{"text_format":"3","workbook":"xlsx","n_sheets":36,"sheets":["Cover","To Do","Scenarii","Hypothèses =>","Sinistres","LoyerBureautique","Logiciels pro","Prestataires","Personnel","Chrono Personnel","Garantie plancher","Actif","Capital Market Assumptions","Scenario Eco","Primes","Apporteur partenariats","--> Calculs","RH","BP=>","BP Financier","BP Assurance","Solva et resultat","Amortissement","Pipe_S2=>","Bilan_Social","Frais","Model_Points","SCR_Op","Output-->","BPI_Annexe Technique (B)","BPI_CR (D)","BPI_Plan de trésorerie (F)","BPI_Fiche de demande (I)","BPI_Annexe financière","BPI_Param","Copie de Primes"],"not_rendered":{"charts":3,"images":5,"external_links":3,"defined_names":67,"comments":11},"read":"whole","date_system":"1900"}

{"sheet":"Cover","index":0,"n_rows":52,"n_cols":21,"rows_kept":52,"merged":[[6,3,6,20],[13,3,13,7],[13,9,13,11],[13,13,13,20]]}
[]
[]
[]
[{"$nulls":19},"Edition Date :",{"$f":"TODAY()","v":"2025-11-06"}]
[]
[]
[{"$nulls":3},"DOSSIER FINANCIER"]
[]
[{"$nulls":4},"Key Presentation Parameters"]
[{"$nulls":4},"Language ",{"$nulls":6},"FR"]
[{"$nulls":4},"Scenario"]
[{"$nulls":4},"Last Update",{"$nulls":6},"2025-04-24"]
[]
[{"$nulls":3},"Item",{"$nulls":5},"Base",{"$nulls":3},"Description"]
[]
[{"$nulls":3},"Dashboard"]
[{"$nulls":4},"Scenarii",{"$nulls":10},"Définition et sélection des Bear, Base, Bull Cases "]
[{"$nulls":4},"Board",{"$nulls":10},"Résumé hypothèses de bases : main profitability drivers à identifer"]
[{"$nulls":15},"B LIfe SA - Business plan synthétique à 5 ans "]
[{"$nulls":3},"Assumptions"]
[{"$nulls":4},"Primes",{"$nulls":6},"Annual"]
[{"$nulls":4},"Sinistres",{"$nulls":6},"Annual"]
[{"$nulls":4},"Loyer/Bureautique"]
[{"$nulls":4},"Logiciels Pro"]
[{"$nulls":4},"Prestataires"]
[{"$nulls":4},"RH"]
[{"$nulls":4},"Garantie Plancher"]
[{"$nulls":4},"Actifs"]
[{"$nulls":4},"Scenarii eco"]
[{"$nulls":4},"Personnel"]
[{"$nulls":4},"Apporteurs Partenariats"]
[]
[{"$nulls":3},"BP"]
[{"$nulls":4},"BP Financier"]
[{"$nulls":4},"BP Assurance"]
[]
[{"$nulls":3},"Output"]
[]
[{"$nulls":4},"BPI_Annexe Technique (B)",{"$nulls":5},"Monthly",{"$nulls":4},"Présentation du programme de Recherche, Développement et Innovation"]
[{"$nulls":4},"BPI_CR (D)",{"$nulls":5},"Monthly",{"$nulls":4},"Comptes de résultats prévisionnels de l'entreprise au format reporting BPI"]
[{"$nulls":4},"BPI_Plan de trésorerie (F)",{"$nulls":5},"Monthly",{"$nulls":4},"Plan de trésorerie prévisionnel sur 24 mois (format reporting BPI)"]
[{"$nulls":4},"BPI_Annexe financière",{"$nulls":10},"Détail des dépenses à engager dans le cadre du programme (format reporting BPI)"]
[{"$nulls":4},"BPI_Fiche de demande (I)",{"$nulls":10},"Formulaire "]
[{"$nulls":4},"BPI_Plan de financement (F)",{"$nulls":10},"Plan de financement prévisionnel de l'entreprise (Format BPI)"]
[]
[{"$nulls":3},"Appendix"]
[{"$nulls":4},"BPI_Param",{"$nulls":10},"Définition des catégories de charges éligibles à une demande de subvention ou prêt R&D"]
[]
[]
[{"$nulls":10},"Monthly",{"$nulls":3},"-","Saisonnalité trésorerie"]
[{"$nulls":10},"Annual",{"$nulls":3},"-","Projections de Perrine"]
[{"$nulls":10},"Annual",{"$nulls":3},"-","Debt terms summary et schedules"]

{"sheet":"To Do","index":1,"n_rows":19,"n_cols":7,"rows_kept":19}
[]
["#","Onglet","Tache","Resp.","Priorité","% Complétion","Commentaires"]
[1,"Nouvel Onglet","Prévisionnel du Canal/produit bottum up"]
[null,null,"Etude benchmarck des distributeurs (courtier en ligne CGP, banque privées, neo banques, muttuelles) - DRESS"]
[]
[4,"Scenarii","détailler les presta à couts fixes dans un nouveau onglet et ventiller par destination"]
[null,null,"A côté du BP, ne pas oublier de pricer les coûts d’adhésion pour l’association nécessaire pour le PER"]
[]
[null,null,"Persona, age, panier moyen ... pour pricer garantie plancher"]
[]
[null,"RH","scinder et réallouer les section portant sur : hypothèses, calculs intermédiaires (allocation des frais de personnel par destination), output"]
[null,"Personnel","Attention aux salariés de moins d'un 1 an peut etre pas pris en compte"]
[]
[]
[]
[null,null,"EBE intermédiaire"]
[]
[]
[null,null,"detaillé dans BP variation de valeur et produit financier"]

{"sheet":"Scenarii","index":2,"n_rows":72,"n_cols":30,"rows_kept":72}
[]
["Calendrier Estimatif"]
["Date agrément","2026-07-01"]
["Capitaux propres",{"v":15000000,"d":"15,000,000"}]
[]
["Choix scenario","Base Case",{"$f":"MATCH(B6,B8:B10,0)","v":2}]
[]
["Scénario 1","Worst Case","Description : ..."]
["Scénario 2","Base Case","Description : ..."]
["Scénario 3","Best Case","Description : ..."]
[]
["Variables indépendantes du scenario"]
["Produits"]
["Proportion Fonds Euro / Actif Général",{"$nulls":5},{"$f":"SUM(B14:F14)","v":{"v":0,"d":"0%"}},null,{"v":0.65,"d":"65%"},6309]
["Quote part participation aux bénéfices",{"$nulls":5},{"v":0,"d":"0%"},null,{"v":0.15,"d":"15%"},6309,"!! charge créditrice !! cf Participation bénéfice"]
["Chargement sur activité de gestion actif UC",{"$nulls":5},{"v":0,"d":"0%"},null,{"v":0.0039,"d":"0.39%"},762]
["Chargement sur activité de gestion actif Fonds Euro",{"$nulls":5},{"v":0,"d":"0%"},null,{"v":0.0045,"d":"0.45%"},762]
["Commission percue Private Asset",{"$nulls":5},{"v":0,"d":"0%"},null,{"v":0.003,"d":"0.30%"},762,"Frais de traitements (revenus)"]
["Commission traitement Produits Structurés",{"$nulls":5},{"v":0,"d":"0%"},null,{"v":0.005,"d":"0.50%"},762,"Frais de traitements (revenus)"]
[]
["Charges","Destination - Acquisition","Destination - Admin","Destination - Sinistre","Destination - Placements","Destination - Autres charges techniques","Total",null,null,"Compte"]
["C3S",{"v":0.5,"d":"50%"},{"v":0.5,"d":"50%"},{"$nulls":3},{"$f":"SUM(B22:F22)","v":{"v":1,"d":"100%"}},null,{"v":0.0016,"d":"0.16%"},9371]
["FGAP",null,{"v":1,"d":"100%"},{"$nulls":5},{"v":0.0005,"d":"0.050%"},93732,"Appelé en N+4 : 100% FG + 1/4 UC"]
["Contribution pour frais de contrôle ACPR",{"$nulls":4},{"v":1,"d":"100%"},{"$f":"SUM(B24:F24)","v":{"v":1,"d":"100%"}},null,{"v":0.00023,"d":"0.023%"},93721,"Assiette Primes"]
["Commission distributeur UC",{"v":1,"d":"100%"},{"$nulls":4},{"v":1,"d":"100%"},null,{"v":0.006,"d":"0.60%"},9222,"frais sur encours reversés aux distributeurs"]
["Commission distributeur Fonds Euro",{"v":1,"d":"100%"},{"$nulls":4},{"v":1,"d":"100%"},null,{"v":0.006,"d":"0.60%"},9222,"frais sur encours reversés aux distributeurs"]
["Participation aux bénéfices",{"$nulls":5},{"v":0,"d":"0%"},null,{"v":1,"d":"100%"},6306,"!! PB et Quote Part PB vont s'addtionner pour faire apparaitre les 85%"]
["Dépositaire UC",{"$nulls":5},{"v":0,"d":"0%"},null,{"v":0.0002,"d":"0.02%"},662,"frais dépositaire : UC non gérées par Izness, UC Izness gratuit et FG déduit des produits financiers"]
["Frais mandat et depositaire FG",{"$nulls":5},{"v":0,"d":"0%"},null,{"v":1E-3,"d":"0.10%"},662]
["Frais Comptabilité",{"$nulls":5},{"v":0,"d":"0%"},null,{"v":0.0002,"d":"0.02%"},662,"CACEIS (sur AuM). A capper."]
["Frais RTO",{"$nulls":5},{"v":0,"d":"0%"},null,{"v":1E-4,"d":"0.01%"},662,"sur volume"]
["Taux moyen IS",{"$nulls":5},{"v":0,"d":"0%"},null,{"v":0.2,"d":"20%"},695]
["Inflation des charges",{"$nulls":5},{"v":0,"d":"0%"},null,{"v":0.01,"d":"1%"},"NA"]
[]
[]
[]
[]
["Description des hypothèses du scenario sélectionné",{"$nulls":8},"Description et hypothèses des différents scenari disponibles"]
[]
["Scenario choisi en B6",{"$f":"B6","v":"Base Case"},{"$f":"C6-1","v":1},8,{"$nulls":4},"Worst case",{"$nulls":7},"Base case",{"$nulls":7},"Best case"]
[]
["Stress sur taux de rachat",{"$f":"OFFSET(J42,0,$C$40*$D$40)","v":{"v":0,"d":"0%"}},{"$nulls":6},"Stress sur taux de rachat",{"v":0.1,"d":"10%"},{"$nulls":6},"Stress sur taux de rachat",{"v":0,"d":"0%"},{"$nulls":6},"Stress sur taux de rachat",{"v":-0.05,"d":"-5%"}]
[]
["Année","Progression collecte en% du tableau pivot","Rendement Fonds propres","Rendement Fonds Général","Volume Structurés en % encours","Private Assets en % encours",{"$nulls":3},"Progression collecte","Rendement Fonds propres","Rendement Fonds Général","Volume Structurés","Private Equity",{"$nulls":3},"Progression collecte","Rendement Fonds propres","Rendement Fonds Général","Volume Structurés","Private Equity",{"$nulls":3},"Progression collecte","Rendement Fonds propres","Rendement Fonds Général","Volume Structurés","Private Equity"]
[1,{"$f":"OFFSET(J45,0,$C$40*$D$40)","v":{"v":1,"d":"100%"}},{"v":0.03,"d":"3%"},{"v":0.03,"d":"3%"},{"v":0.05,"d":"5%"},{"v":0.05,"d":"5%"},null,null,1,{"v":0.8,"d":"80%"},{"v":0.02,"d":"2%"},{"v":0.02,"d":"2%"},{"v":0.02,"d":"2%"},{"v":0.02,"d":"2%"},null,null,1,{"v":1,"d":"100%"},{"v":0.03,"d":"3%"},{"v":0.03,"d":"3%"},{"v":0.05,"d":"5%"},{"v":0.05,"d":"5%"},null,null,1,{"v":1.1,"d":"110%"},{"v":0.03,"d":"3%"},{"v":0.03,"d":"3%"},{"v":0.1,"d":"10%"},{"v":0.1,"d":"10%"}]
[2,{"$f":"OFFSET(J46,0,$C$40*$D$40)","v":{"v":1,"d":"100%"}},{"v":0.03,"d":"3%"},{"v":0.03,"d":"3%"},{"v":0.05,"d":"5%"},{"v":0.05,"d":"5%"},null,null,2,{"v":0.8,"d":"80%"},{"v":0.02,"d":"2%"},{"v":0.02,"d":"2%"},{"v":0.02,"d":"2%"},{"v":0.02,"d":"2%"},null,null,2,{"v":1,"d":"100%"},{"v":0.03,"d":"3%"},{"v":0.03,"d":"3%"},{"v":0.05,"d":"5%"},{"v":0.05,"d":"5%"},null,null,2,{"v":1.2,"d":"120%"},{"v":0.03,"d":"3%"},{"v":0.03,"d":"3%"},{"v":0.1,"d":"10%"},{"v":0.1,"d":"10%"}]
[3,{"$f":"OFFSET(J47,0,$C$40*$D$40)","v":{"v":1,"d":"100%"}},{"v":0.03,"d":"3%"},{"v":0.03,"d":"3%"},{"v":0.05,"d":"5%"},{"v":0.05,"d":"5%"},null,null,3,{"v":0.8,"d":"80%"},{"v":0.02,"d":"2%"},{"v":0.02,"d":"2%"},{"v":0.02,"d":"2%"},{"v":0.02,"d":"2%"},null,null,3,{"v":1,"d":"100%"},{"v":0.03,"d":"3%"},{"v":0.03,"d":"3%"},{"v":0.05,"d":"5%"},{"v":0.05,"d":"5%"},null,null,3,{"v":1.2,"d":"120%"},{"v":0.03,"d":"3%"},{"v":0.03,"d":"3%"},{"v":0.1,"d":"10%"},{"v":0.1,"d":"10%"}]
[4,{"$f":"OFFSET(J48,0,$C$40*$D$40)","v":{"v":1,"d":"100%"}},{"v":0.03,"d":"3%"},{"v":0.03,"d":"3%"},{"v":0.05,"d":"5%"},{"v":0.05,"d":"5%"},null,null,4,{"v":0.8,"d":"80%"},{"v":0.02,"d":"2%"},{"v":0.02,"d":"2%"},{"v":0.02,"d":"2%"},{"v":0.02,"d":"2%"},null,null,4,{"v":1,"d":"100%"},{"v":0.03,"d":"3%"},{"v":0.03,"d":"3%"},{"v":0.05,"d":"5%"},{"v":0.05,"d":"5%"},null,null,4,{"v":1.2,"d":"120%"},{"v":0.03,"d":"3%"},{"v":0.03,"d":"3%"},{"v":0.1,"d":"10%"},{"v":0.1,"d":"10%"}]
[5,{"$f":"OFFSET(J49,0,$C$40*$D$40)","v":{"v":1,"d":"100%"}},{"v":0.03,"d":"3%"},{"v":0.03,"d":"3%"},{"v":0.05,"d":"5%"},{"v":0.05,"d":"5%"},null,null,5,{"v":0.8,"d":"80%"},{"v":0.02,"d":"2%"},{"v":0.02,"d":"2%"},{"v":0.02,"d":"2%"},{"v":0.02,"d":"2%"},null,null,5,{"v":1,"d":"100%"},{"v":0.03,"d":"3%"},{"v":0.03,"d":"3%"},{"v":0.05,"d":"5%"},{"v":0.05,"d":"5%"},null,null,5,{"v":1.2,"d":"120%"},{"v":0.03,"d":"3%"},{"v":0.03,"d":"3%"},{"v":0.1,"d":"10%"},{"v":0.1,"d":"10%"}]
[6,{"$f":"OFFSET(J50,0,$C$40*$D$40)","v":{"v":1,"d":"100%"}},{"v":0.03,"d":"3%"},{"v":0.03,"d":"3%"},{"v":0.05,"d":"5%"},{"v":0.05,"d":"5%"},null,null,6,{"v":0.8,"d":"80%"},{"v":0.02,"d":"2%"},{"v":0.02,"d":"2%"},{"v":0.02,"d":"2%"},{"v":0.02,"d":"2%"},null,null,6,{"v":1,"d":"100%"},{"v":0.03,"d":"3%"},{"v":0.03,"d":"3%"},{"v":0.05,"d":"5%"},{"v":0.05,"d":"5%"},null,null,6,{"v":1.2,"d":"120%"},{"v":0.03,"d":"3%"},{"v":0.03,"d":"3%"},{"v":0.1,"d":"10%"},{"v":0.1,"d":"10%"}]
[7,{"$f":"OFFSET(J51,0,$C$40*$D$40)","v":{"v":1,"d":"100%"}},{"v":0.03,"d":"3%"},{"v":0.03,"d":"3%"},{"v":0.05,"d":"5%"},{"v":0.05,"d":"5%"},null,null,7,{"v":0.8,"d":"80%"},{"v":0.02,"d":"2%"},{"v":0.02,"d":"2%"},{"v":0.02,"d":"2%"},{"v":0.02,"d":"2%"},null,null,7,{"v":1,"d":"100%"},{"v":0.03,"d":"3%"},{"v":0.03,"d":"3%"},{"v":0.05,"d":"5%"},{"v":0.05,"d":"5%"},null,null,7,{"v":1.2,"d":"120%"},{"v":0.03,"d":"3%"},{"v":0.03,"d":"3%"},{"v":0.1,"d":"10%"},{"v":0.1,"d":"10%"}]
[8,{"$f":"OFFSET(J52,0,$C$40*$D$40)","v":{"v":1,"d":"100%"}},{"v":0.03,"d":"3%"},{"v":0.03,"d":"3%"},{"v":0.05,"d":"5%"},{"v":0.05,"d":"5%"},null,null,8,{"v":0.8,"d":"80%"},{"v":0.02,"d":"2%"},{"v":0.02,"d":"2%"},{"v":0.02,"d":"2%"},{"v":0.02,"d":"2%"},null,null,8,{"v":1,"d":"100%"},{"v":0.03,"d":"3%"},{"v":0.03,"d":"3%"},{"v":0.05,"d":"5%"},{"v":0.05,"d":"5%"},null,null,8,{"v":1.2,"d":"120%"},{"v":0.03,"d":"3%"},{"v":0.03,"d":"3%"},{"v":0.1,"d":"10%"},{"v":0.1,"d":"10%"}]
[9,{"$f":"OFFSET(J53,0,$C$40*$D$40)","v":{"v":1,"d":"100%"}},{"v":0.03,"d":"3%"},{"v":0.03,"d":"3%"},{"v":0.05,"d":"5%"},{"v":0.05,"d":"5%"},null,null,9,{"v":0.8,"d":"80%"},{"v":0.02,"d":"2%"},{"v":0.02,"d":"2%"},{"v":0.02,"d":"2%"},{"v":0.02,"d":"2%"},null,null,9,{"v":1,"d":"100%"},{"v":0.03,"d":"3%"},{"v":0.03,"d":"3%"},{"v":0.05,"d":"5%"},{"v":0.05,"d":"5%"},null,null,9,{"v":1.2,"d":"120%"},{"v":0.03,"d":"3%"},{"v":0.03,"d":"3%"},{"v":0.1,"d":"10%"},{"v":0.1,"d":"10%"}]
[10,{"$f":"OFFSET(J54,0,$C$40*$D$40)","v":{"v":1,"d":"100%"}},{"v":0.03,"d":"3%"},{"v":0.03,"d":"3%"},{"v":0.05,"d":"5%"},{"v":0.05,"d":"5%"},null,null,10,{"v":0.8,"d":"80%"},{"v":0.02,"d":"2%"},{"v":0.02,"d":"2%"},{"v":0.02,"d":"2%"},{"v":0.02,"d":"2%"},null,null,10,{"v":1,"d":"100%"},{"v":0.03,"d":"3%"},{"v":0.03,"d":"3%"},{"v":0.05,"d":"5%"},{"v":0.05,"d":"5%"},null,null,10,{"v":1.2,"d":"120%"},{"v":0.03,"d":"3%"},{"v":0.03,"d":"3%"},{"v":0.1,"d":"10%"},{"v":0.1,"d":"10%"}]
[]
[]
[]
[]
["Hypothèses RH"]
[]
["Salaire ",null,null,"Primes (Bonus discrétionnaires)"]
["Payables en 12 mois",null,null,"C Level",{"v":0.15,"d":"15%"}]
["Prime contractuelle 13ème mois",12,null,"Operations",{"v":0.1,"d":"10%"}]
["Prime vacances 1/2 mois",6,null,"Non-cadre",{"v":0.05,"d":"5%"}]
[]
["Charges Sociales",null,null,"Avantages"]
["Mandataires sociaux",{"v":0.35,"d":"35%"},null,"Ticket Restau",{"$f":"7.26*20*10","v":1452}]
["Employés Cadres",{"v":0.41,"d":"41%"},null,"Mutuelle",{"$f":"120*12","v":1440}]
["Employés Non-Cadres",{"v":0.41,"d":"41%"},null,"Prévoyance"]
[{"$nulls":3},"Pass Navigo (50%)",{"$f":"900*50%","v":450}]
[{"$nulls":3},"Chèques-Vacances",1000]
[{"$nulls":3},"Total annuel",{"$f":"SUM(E67:E71)","v":4342}]

{"sheet":"Hypothèses =>","index":3,"n_rows":7,"n_cols":3,"rows_kept":7}
[]
[]
[]
[null,"Hypotheses","contient les onglets pris en hypothese pour le BP financier"]
[]
[null,"Scenari","permet de changer de scenario avec des chocs sur les hypotheses"]
[null,"Prestations"]

{"sheet":"Sinistres","index":4,"n_rows":25,"n_cols":33,"rows_kept":25}
["Sinistres",{"$nulls":3},"Scenario",{"$f":"Scenarii!B6","v":"Base Case"},{"$nulls":7},"Mini biais sur contrat de capi car calcul en prorata FG et contrat de de capi est à 100% UC / pas grave car frequence de rachat plus forte"]
[{"$nulls":4},"Stress appliqué au taux de rachat",null,{"$f":"tx_rachat_stress","v":{"v":0,"d":"0%"}}]
["Sinistres (mortalité)",{"$nulls":12},"Prestations de l'année"]
["Cf Prime pour statistique",{"$nulls":3},"Prestations rachats (structurels)",{"$nulls":3},"Taux de chute global",{"$nulls":4},"N+1","N+2","N+3","N+4","N+5","N+6","N+7","N+8","N+9","N+10","N+11","N+12","N+13","N+14","N+15","N+16","N+17","N+18","N+19","N+20"]
["Age moyen pondéré des assurés :",{"$f":"AVERAGE(Primes!M16:Q16)","v":44.6},"ans",null,"Année","Taux de rachat","Avec stress",null,"Année","Taux de chute",null,"Décollecte","Total",{"$f":"Primes!M15","v":{"v":97940000,"d":"97,940,000"}},{"$f":"Primes!N15","v":{"v":132940000,"d":"132,940,000"}},{"$f":"Primes!O15","v":{"v":206450000,"d":"206,450,000"}},{"$f":"Primes!P15","v":{"v":291540000,"d":"291,540,000"}},{"$f":"Primes!Q15","v":{"v":358780000,"d":"358,780,000"}},{"$f":"Primes!R15","v":0},{"$f":"#REF!","v":{"$error":"#REF!"}},{"$error":"#REF!"},{"$error":"#REF!"},{"$error":"#REF!"},{"$f":"Primes!W15","v":0},"#REF!","#REF!","#REF!","#REF!","#REF!","#REF!","#REF!","#REF!","#REF!"]
["Genre moyen pondéré des assurés :",{"$f":"AVERAGE(Primes!M19:Q19,Primes!M21:Q21)","v":{"v":0.6012266132878674,"d":"60%"}},"homme",null,1,{"v":0.07,"d":"7.0%"},{"$f":"F6*(1+tx_rachat_stress)","v":{"v":0.07,"d":"7.0%"}},null,1,{"$f":"G6+$B$9","v":{"v":0.07077528987966852,"d":"7.078%"}},null,1,{"$f":"SUM(N6:AG6)","v":{"v":6931731.890814736,"d":"6,931,732"}},{"$f":"N$5*$J6","v":{"v":6931731.890814736,"d":"6,931,732"}}]
[null,{"$f":"1-B6","v":{"v":0.3987733867121326,"d":"40%"}},"femme",null,2,{"v":0.06,"d":"6.0%"},{"v":0.06,"d":"6.0%"},null,2,{"v":0.06077528987966852,"d":"6.078%"},null,2,{"v":14031798.927417867,"d":"14,031,799"},{"$f":"N$5*J7","v":{"v":5952331.890814735,"d":"5,952,332"}},{"$f":"O$5*$J7","v":{"v":8079467.036603133,"d":"8,079,467"}}]
[{"$nulls":4},3,{"v":0.06,"d":"6.0%"},{"v":0.06,"d":"6.0%"},null,3,{"v":0.06077528987966852,"d":"6.078%"},null,3,{"v":26578857.52307543,"d":"26,578,858"},{"v":5952331.890814735,"d":"5,952,332"},{"v":8079467.036603133,"d":"8,079,467"},{"$f":"P$5*$J8","v":{"v":12547058.595657567,"d":"12,547,059"}}]
["Taux de sinistre annuel implicite",{"$f":"((B14-B15)/B14*B6)+((C14-C15)/C15*B7)","v":{"v":0.000775289879668522,"d":"0.08%"}},null,null,4,{"v":0.05,"d":"5.0%"},{"v":0.05,"d":"5.0%"},null,4,{"v":0.05077528987966853,"d":"5.078%"},null,4,{"v":37008585.534594,"d":"37,008,586"},{"v":4972931.890814736,"d":"4,972,932"},{"v":6750067.036603134,"d":"6,750,067"},{"v":10482558.595657567,"d":"10,482,559"},{"$f":"Q$5*$J9","v":{"v":14803028.011518562,"d":"14,803,028"}}]
[{"$nulls":4},5,{"v":0.048,"d":"4.8%"},{"v":0.048,"d":"4.8%"},null,5,{"v":0.048775289879668525,"d":"4.878%"},null,5,{"v":53050444.03762147,"d":"53,050,444"},{"v":4777051.890814736,"d":"4,777,052"},{"v":6484187.036603134,"d":"6,484,187"},{"v":10069658.595657567,"d":"10,069,659"},{"v":14219948.011518562,"d":"14,219,948"},{"$f":"R$5*$J10","v":{"v":17499598.503027473,"d":"17,499,599"}}]
["Tables de mortalité génération née en 2000",{"$nulls":3},6,{"v":0.046,"d":"4.6%"},{"v":0.046,"d":"4.6%"},null,6,{"v":0.04677528987966852,"d":"4.678%"},null,6,{"v":50875144.03762147,"d":"50,875,144"},{"v":4581171.890814736,"d":"4,581,172"},{"v":6218307.036603133,"d":"6,218,307"},{"v":9656758.595657567,"d":"9,656,759"},{"v":13636868.01151856,"d":"13,636,868"},{"v":16782038.503027473,"d":"16,782,039"},{"$f":"S$5*$J11","v":0}]
["TG H/F 2005","H","F",null,7,{"v":0.04,"d":"4.0%"},{"v":0.04,"d":"4.0%"},null,7,{"v":0.040775289879668525,"d":"4.078%"},null,7,{"$error":"#REF!"},{"v":3993531.890814735,"d":"3,993,532"},{"v":5420667.036603134,"d":"5,420,667"},{"v":8418058.595657567,"d":"8,418,059"},{"v":11887628.011518562,"d":"11,887,628"},{"v":14629358.503027473,"d":"14,629,359"},0,{"$f":"T$5*$J12","v":{"$error":"#REF!"}}]
["40 ans",98.836,98.841,null,8,{"v":0.05,"d":"5.0%"},{"v":0.05,"d":"5.0%"},null,8,{"v":0.05077528987966853,"d":"5.078%"},null,8,{"$error":"#REF!"},{"v":4972931.890814736,"d":"4,972,932"},{"v":6750067.036603134,"d":"6,750,067"},{"v":10482558.595657567,"d":"10,482,559"},{"v":14803028.011518562,"d":"14,803,028"},{"v":18217158.503027473,"d":"18,217,159"},0,{"$error":"#REF!"},{"$f":"U$5*$J13","v":{"$error":"#REF!"}}]
["50 ans",98.417,98.146,null,9,{"v":0.06,"d":"6.0%"},{"v":0.06,"d":"6.0%"},null,9,{"v":0.06077528987966852,"d":"6.078%"},null,9,{"$error":"#REF!"},{"v":5952331.890814735,"d":"5,952,332"},{"v":8079467.036603133,"d":"8,079,467"},{"v":12547058.595657567,"d":"12,547,059"},{"v":17718428.01151856,"d":"17,718,428"},{"v":21804958.503027473,"d":"21,804,959"},0,{"$error":"#REF!"},{"$error":"#REF!"},{"$f":"V$5*$J14","v":{"$error":"#REF!"}}]
["51 ans",{"v":98.36,"d":"98.360"},98.041,null,10,{"v":0.07,"d":"7.0%"},{"v":0.07,"d":"7.0%"},null,10,{"v":0.07077528987966852,"d":"7.078%"},null,10,{"$error":"#REF!"},{"v":6931731.890814736,"d":"6,931,732"},{"v":9408867.036603134,"d":"9,408,867"},{"v":14611558.595657567,"d":"14,611,559"},{"v":20633828.01151856,"d":"20,633,828"},{"v":25392758.503027473,"d":"25,392,759"},0,{"$error":"#REF!"},{"$error":"#REF!"},{"$error":"#REF!"},{"$f":"W$5*$J15","v":{"$error":"#REF!"}}]
[{"$nulls":4},11,{"v":0.06,"d":"6.0%"},{"v":0.06,"d":"6.0%"},null,11,{"v":0.06077528987966852,"d":"6.078%"},null,11,{"$error":"#REF!"},{"v":5952331.890814735,"d":"5,952,332"},{"v":8079467.036603133,"d":"8,079,467"},{"v":12547058.595657567,"d":"12,547,059"},{"v":17718428.01151856,"d":"17,718,428"},{"v":21804958.503027473,"d":"21,804,959"},0,{"$error":"#REF!"},{"$error":"#REF!"},{"$error":"#REF!"},{"$error":"#REF!"},{"$f":"X$5*$J16","v":0}]
[{"$nulls":4},12,{"v":0.055,"d":"5.5%"},{"v":0.055,"d":"5.5%"},null,12,{"v":0.055775289879668524,"d":"5.578%"},null,12,{"$error":"#REF!"},{"v":5462631.890814736,"d":"5,462,632"},{"v":7414767.036603133,"d":"7,414,767"},{"v":11514808.595657567,"d":"11,514,809"},{"v":16260728.011518562,"d":"16,260,728"},{"v":20011058.503027473,"d":"20,011,059"},0,{"$error":"#REF!"},{"$error":"#REF!"},{"$error":"#REF!"},{"$error":"#REF!"},0,{"$f":"Y$5*$J17","v":{"$error":"#VALUE!"}}]
[{"$nulls":4},13,{"v":0.05,"d":"5.0%"},{"v":0.05,"d":"5.0%"},null,13,{"v":0.05077528987966853,"d":"5.078%"},null,13,{"$error":"#REF!"},{"v":4972931.890814736,"d":"4,972,932"},{"v":6750067.036603134,"d":"6,750,067"},{"v":10482558.595657567,"d":"10,482,559"},{"v":14803028.011518562,"d":"14,803,028"},{"v":18217158.503027473,"d":"18,217,159"},0,{"$error":"#REF!"},{"$error":"#REF!"},{"$error":"#REF!"},{"$error":"#REF!"},0,{"$error":"#VALUE!"},{"$f":"Z$5*$J18","v":{"$error":"#VALUE!"}}]
[{"$nulls":4},14,{"v":0.045,"d":"4.5%"},{"v":0.045,"d":"4.5%"},null,14,{"v":0.04577528987966852,"d":"4.578%"},null,14,{"$error":"#REF!"},{"v":4483231.890814735,"d":"4,483,232"},{"v":6085367.036603133,"d":"6,085,367"},{"v":9450308.595657567,"d":"9,450,309"},{"v":13345328.01151856,"d":"13,345,328"},{"v":16423258.503027473,"d":"16,423,259"},0,{"$error":"#REF!"},{"$error":"#REF!"},{"$error":"#REF!"},{"$error":"#REF!"},0,{"$error":"#VALUE!"},{"$error":"#VALUE!"},{"$f":"AA$5*$J19","v":{"$error":"#VALUE!"}}]
[{"$nulls":4},15,{"v":0.04,"d":"4.0%"},{"v":0.04,"d":"4.0%"},null,15,{"v":0.040775289879668525,"d":"4.078%"},null,15,{"$error":"#REF!"},{"v":3993531.890814735,"d":"3,993,532"},{"v":5420667.036603134,"d":"5,420,667"},{"v":8418058.595657567,"d":"8,418,059"},{"v":11887628.011518562,"d":"11,887,628"},{"v":14629358.503027473,"d":"14,629,359"},0,{"$error":"#REF!"},{"$error":"#REF!"},{"$error":"#REF!"},{"$error":"#REF!"},0,{"$error":"#VALUE!"},{"$error":"#VALUE!"},{"$error":"#VALUE!"},{"$f":"AB$5*$J20","v":{"$error":"#VALUE!"}}]
[{"$nulls":4},16,{"v":0.037,"d":"3.7%"},{"v":0.037,"d":"3.7%"},null,16,{"v":0.03777528987966852,"d":"3.778%"},null,16,{"$error":"#REF!"},{"v":3699711.890814735,"d":"3,699,712"},{"v":5021847.036603133,"d":"5,021,847"},{"v":7798708.595657567,"d":"7,798,709"},{"v":11013008.01151856,"d":"11,013,008"},{"v":13553018.503027473,"d":"13,553,019"},0,{"$error":"#REF!"},{"$error":"#REF!"},{"$error":"#REF!"},{"$error":"#REF!"},0,{"$error":"#VALUE!"},{"$error":"#VALUE!"},{"$error":"#VALUE!"},{"$error":"#VALUE!"},{"$f":"AC$5*$J21","v":{"$error":"#VALUE!"}}]
[{"$nulls":4},17,{"v":0.034,"d":"3.4%"},{"v":0.034,"d":"3.4%"},null,17,{"v":0.034775289879668526,"d":"3.478%"},null,17,{"$error":"#REF!"},{"v":3405891.8908147356,"d":"3,405,892"},{"v":4623027.036603134,"d":"4,623,027"},{"v":7179358.5956575675,"d":"7,179,359"},{"v":10138388.011518562,"d":"10,138,388"},{"v":12476678.503027475,"d":"12,476,679"},0,{"$error":"#REF!"},{"$error":"#REF!"},{"$error":"#REF!"},{"$error":"#REF!"},0,{"$error":"#VALUE!"},{"$error":"#VALUE!"},{"$error":"#VALUE!"},{"$error":"#VALUE!"},{"$error":"#VALUE!"},{"$f":"AD$5*$J22","v":{"$error":"#VALUE!"}}]
[{"$nulls":4},18,{"v":0.03,"d":"3.0%"},{"v":0.03,"d":"3.0%"},null,18,{"v":0.03077528987966852,"d":"3.078%"},null,18,{"$error":"#REF!"},{"v":3014131.8908147346,"d":"3,014,132"},{"v":4091267.036603133,"d":"4,091,267"},{"v":6353558.595657566,"d":"6,353,559"},{"v":8972228.01151856,"d":"8,972,228"},{"v":11041558.50302747,"d":"11,041,559"},0,{"$error":"#REF!"},{"$error":"#REF!"},{"$error":"#REF!"},{"$error":"#REF!"},0,{"$error":"#VALUE!"},{"$error":"#VALUE!"},{"$error":"#VALUE!"},{"$error":"#VALUE!"},{"$error":"#VALUE!"},{"$error":"#VALUE!"},{"$f":"AE$5*$J23","v":{"$error":"#VALUE!"}}]
[{"$nulls":4},19,{"v":0.027,"d":"2.7%"},{"v":0.027,"d":"2.7%"},null,19,{"v":0.02777528987966852,"d":"2.778%"},null,19,{"$error":"#REF!"},{"v":2720311.890814735,"d":"2,720,312"},{"v":3692447.036603133,"d":"3,692,447"},{"v":5734208.595657566,"d":"5,734,209"},{"v":8097608.01151856,"d":"8,097,608"},{"v":9965218.50302747,"d":"9,965,219"},0,{"$error":"#REF!"},{"$error":"#REF!"},{"$error":"#REF!"},{"$error":"#REF!"},0,{"$error":"#VALUE!"},{"$error":"#VALUE!"},{"$error":"#VALUE!"},{"$error":"#VALUE!"},{"$error":"#VALUE!"},{"$error":"#VALUE!"},{"$error":"#VALUE!"},{"$f":"AF$5*$J24","v":{"$error":"#VALUE!"}}]
[{"$nulls":4},20,{"v":0.025,"d":"2.5%"},{"v":0.025,"d":"2.5%"},null,20,{"v":0.025775289879668522,"d":"2.578%"},null,20,{"$error":"#REF!"},{"v":2524431.890814735,"d":"2,524,432"},{"v":3426567.036603133,"d":"3,426,567"},{"v":5321308.595657567,"d":"5,321,309"},{"v":7514528.011518561,"d":"7,514,528"},{"v":9247658.503027473,"d":"9,247,659"},0,{"$error":"#REF!"},{"$error":"#REF!"},{"$error":"#REF!"},{"$error":"#REF!"},0,{"$error":"#VALUE!"},{"$error":"#VALUE!"},{"$error":"#VALUE!"},{"$error":"#VALUE!"},{"$error":"#VALUE!"},{"$error":"#VALUE!"},{"$error":"#VALUE!"},{"$error":"#VALUE!"},{"$f":"AG$5*$J25","v":{"$error":"#VALUE!"}}]

{"sheet":"LoyerBureautique","index":5,"n_rows":16,"n_cols":3,"rows_kept":16}
["Loyer + bureautique / an / employé",{"$f":"SUM(B3:B16)","v":{"v":5928,"d":"5,928 €"}}]
[]
["Loyer",{"$f":"350*12","v":{"v":4200,"d":"4,200 €"}}]
["Ordinateur",{"$f":"1200/3","v":{"v":400,"d":"400 €"}}]
["Ecran",{"$f":"180/3","v":{"v":60,"d":"60 €"}}]
["Casque",{"$f":"300/3","v":{"v":100,"d":"100 €"}}]
["Bravas",{"$f":"7*12","v":{"v":84,"d":"84 €"}}]
["Protonmail",{"v":160,"d":"160 €"}]
["Google Business",{"$f":"14*12","v":{"v":168,"d":"168 €"}}]
["Linear",{"$f":"12*8","v":{"v":96,"d":"96 €"}}]
["Notion",{"$f":"12*10","v":{"v":120,"d":"120 €"}}]
["Figma"]
["Chatgpt (ou Claude...). Il existe des sites qui permet d'avoir des credits parout",{"$f":"25*12","v":{"v":300,"d":"300 €"}}]
["Telephone (C Level)",null,"rbt forfaitaire 40 EUR / mois (a verifier)"]
["Imprimante",null,"non a priori"]
["Thé/Café",{"$f":"2*12*20*0.5","v":{"v":240,"d":"240 €"}}]

{"sheet":"Logiciels pro","index":6,"n_rows":14,"n_cols":13,"rows_kept":14}
["Priorité",null,"Fixe","Variable"]
[null,"Total",{"$f":"SUM(C4:C30)","v":{"v":39214,"d":"39,214"}}]
[]
[0,"Sage FRP 1000",{"v":2000,"d":"2,000"},null,"pour 1 à 4 postes"]
[null,"Sage : module assurance"]
[0,"Invoke",{"v":10000,"d":"10,000"},null,"https://www.regnology.net/fr/",null,"Premier QRT triemstriel"]
[2,"Transpa",null,null,"à redevelopper","800 EUR par fonds par trimestres",null,"TEEPI","Eurnoext Fund 360",null,"Sequantis",null,"boulot conseil Blondel Avertim ?"]
[0,"Memobank",{"$f":"800*1.2","v":960},null,"API Pay in/ Pay out"]
[0,"Qonto",600,null,"Corpo TPE"]
[0,"Efficial",5000,null,"LCB-FT"]
[0,"DotFile",10000,2,"LCB-FT","assiette : nb de nouveaux contrats"]
[0,"Axiocap",{"$f":"(120+425)*1.2","v":654},null,"gestion registre titre + registre personnel + AG","Holding + SA + Asso ?"]
[0,"Signature electronique",null,null,"Dot file ? ou Fourthline"]
[null,"Formation reglementaire",{"v":10000,"d":"10,000"}]

{"sheet":"Prestataires","index":7,"n_rows":37,"n_cols":32,"rows_kept":37,"merged":[[0,19,0,23],[17,1,17,2],[21,1,21,3],[23,2,23,3],[26,1,26,2],[33,1,33,2]]}
["Priorité","Departement","Fonction","SoW","ID","Date arrivée","Onboarding","Salaire brut annuel","Primes","Charges Sociales","Avantage","Total recurring","Destination - Acquisition","Destination - Admin","Destination - Sinistre","Destination - Placements","Destination - Autres charges techniques","Total","CIR","Destination en euros",{"$nulls":4},{"$f":"X1+1","v":1},2,3,4,5,6,7,8]
[{"$nulls":19},"Acquisition","Admin","Sinistre - Frais de prestations","Frais interne de gestions des placements","Autres charges techniques"]
[{"$nulls":3},"classé en autres charges techniques",{"$nulls":13},{"$f":"SUM(M3:Q3)","v":{"v":0,"d":"0%"}},null,{"$f":"SUM(T4:T16)","v":392801.20440535084},99000.48176214035,64400.240881070175,199000.48176214035,364800,{"$f":"SUM(T3:X3)","v":1120002.4088107017}]
[0,"Expert Comptable",{"v":25000,"d":"25,000"},"Burette ou DBA",{"$nulls":8},{"v":0.2,"d":"20%"},{"v":0.2,"d":"20%"},{"v":0.2,"d":"20%"},{"v":0.2,"d":"20%"},{"v":0.2,"d":"20%"},{"v":1,"d":"100%"},null,{"$f":"C4*M4","v":5000},{"$f":"C4*N4","v":5000},{"$f":"C4*O4","v":5000},{"$f":"C4*P4","v":5000},{"$f":"C4*Q4","v":5000}]
[0,"CAC",{"v":50000,"d":"50,000"},"Mazars ou EY ?",{"$nulls":8},{"v":0.2,"d":"20%"},{"v":0.2,"d":"20%"},{"v":0.2,"d":"20%"},{"v":0.2,"d":"20%"},{"v":0.2,"d":"20%"},{"v":1,"d":"100%"},null,10000,10000,10000,10000,10000]
[0,"Audit interne",{"v":30000,"d":"30,000"},"Une mission coute de 15 à 20k par mission et on fait 2  à 3 missions dans le plan triennal",{"$nulls":8},{"v":0.2,"d":"20%"},{"v":0.2,"d":"20%"},{"v":0.2,"d":"20%"},{"v":0.2,"d":"20%"},{"v":0.2,"d":"20%"},{"v":1,"d":"100%"},null,6000,6000,6000,6000,6000]
[null,"Juridique",{"v":30000,"d":"30,000"},"Validation CG ou autres documents, la redaction est chez nous",{"$nulls":8},{"v":0.5,"d":"50%"},{"$nulls":3},{"v":0.5,"d":"50%"},{"v":1,"d":"100%"},null,15000,0,0,0,15000]
[2,"Frais généraux",{"v":30000,"d":"30,000"},"hors salarié deplacement, restaurants",{"$nulls":8},{"v":0.5,"d":"50%"},{"$nulls":3},{"v":0.5,"d":"50%"},{"v":1,"d":"100%"},null,15000,0,0,0,15000]
[3,"Licences",{"v":20000,"d":"20,000"},"SAGE, Invok, etc. à détailler",{"$nulls":8},{"v":0.2,"d":"20%"},{"v":0.2,"d":"20%"},{"v":0.2,"d":"20%"},{"v":0.2,"d":"20%"},{"v":0.2,"d":"20%"},{"v":1,"d":"100%"},null,4000,4000,4000,4000,4000]
[3,"Location Cloud",{"v":24000,"d":"24,000"},"Numspot / Algoan paie 20k/mois",{"$nulls":8},{"v":0.2,"d":"20%"},{"v":0.2,"d":"20%"},{"v":0.2,"d":"20%"},{"v":0.2,"d":"20%"},{"v":0.2,"d":"20%"},{"v":1,"d":"100%"},null,4800,4800,4800,4800,4800]
[null,"Communication",{"v":100000,"d":"100,000"},"€5K/mois, à compléter Paid (publireportage, etc.)",{"$nulls":8},{"v":1,"d":"100%"},{"$nulls":4},{"v":1,"d":"100%"},null,100000,0,0,0,0]
[null,"Marketing",{"v":60000,"d":"60,000"},{"$nulls":9},{"v":1,"d":"100%"},{"$nulls":4},{"v":1,"d":"100%"},null,60000,0,0,0,0]
[1,"Fournisseurs données/transpa",{"v":100000,"d":"100,000"},"indices, VL, etc. à détailler 50k + transparisation 500 UC x 100 EUR/UC = 50k",{"$nulls":11},{"v":1,"d":"100%"},null,{"v":1,"d":"100%"},null,0,0,0,100000,0]
[1,"Frais de structure B-Life tech",{"v":300000,"d":"300,000"},{"$nulls":9},{"v":0.5,"d":"50%"},{"v":0.2,"d":"20%"},{"v":0.1,"d":"10%"},{"v":0.2,"d":"20%"},{"v":1,"d":"100%"},{"v":2,"d":"200%"},null,150000,60000,30000,60000,300000]
[1,"Externalisation IT",{"v":0.0005,"d":"0.05%"},"Ludotech, à détailler",{"$nulls":8},{"v":0.5,"d":"50%"},{"v":0.2,"d":"20%"},{"v":0.1,"d":"10%"},{"v":0.2,"d":"20%"},null,{"v":1,"d":"100%"},null,{"$f":"(C15*'BP Financier'!C50)*M15","v":{"v":23001.204405350873,"d":"23001"}},{"$f":"(C15*'BP Financier'!C50)*N15","v":{"v":9200.481762140349,"d":"9200"}},{"$f":"(C15*'BP Financier'!C50)*O15","v":{"v":4600.2408810701745,"d":"4600"}},{"$f":"(C15*'BP Financier'!C50)*P15","v":{"v":9200.481762140349,"d":"9200"}},{"$f":"(C15*'BP Financier'!C50)*Q15","v":0}]
[1,"Frais holding",{"v":5000,"d":"5,000"},{"$nulls":13},{"v":1,"d":"100%"},{"v":1,"d":"100%"},null,{"$f":"C16*M16","v":0},{"$f":"C16*N16","v":0},{"$f":"C16*O16","v":0},{"$f":"C16*P16","v":0},{"$f":"C16*Q16","v":5000}]
[{"$nulls":17},{"v":0,"d":"0%"}]
[null,"Juridique",{"$nulls":15},{"v":0,"d":"0%"}]
[1,"Juridique Corporate",{"$nulls":15},{"v":0,"d":"0%"}]
[1,"Contentieux",{"$nulls":15},{"v":0,"d":"0%"}]
[null,"RH",{"$nulls":15},{"v":0,"d":"0%"}]
[1,"Chasseur de tête",{"$nulls":15},{"v":0,"d":"0%"}]
[1,"Gestion paie"]
[null,"MarkCom"]
[2,"Conseil Marketing"]
[2,"Budget Marketing"]
[1,"Agence de Communication"]
[null,"Finance"]
[]
[null,"Acturiat"]
[1,"Reporting Prudentiel","Optmind"]
[null,"Assurance"]
[]
[null,"Controles"]
[]
[null,"Risques"]
[null,"Pilotge gestion risques, ORSA","Optmind"]

{"sheet":"Personnel","index":8,"n_rows":43,"n_cols":43,"rows_kept":43,"merged":[[0,5,0,8],[2,19,2,23],[2,26,2,30],[2,32,2,36],[2,38,2,42]]}
[{"$nulls":5},"Renseigner ETP, date entrée et sortie"]
[]
[{"$nulls":19},"Destination en %",{"$nulls":6},"Destination en euros",{"$nulls":5},"Destination prorata embauche",{"$nulls":5},"Destination prorata débauche"]
["Priorité","Departement","Titre","Descriptif","Scorecard","ETP","Date entrée","Prorata","Date sortie","Prorata","Salaire brut annuel","Primes","Charges Sociales","Avantage","Loyer + bureautique","Total recurring",null,"R&D",null,"Acquisition","Admin","Sinistre - Frais de prestations","Frais interne gestion placements","Autres charges techniques","Total",null,"Acquisition","Admin","Sinistre - Frais de prestations","Frais interne de gestions des placements","Autres charges techniques",null,"Acquisition","Admin","Sinistre - Frais de prestations","Frais interne de gestions des placements","Autres charges techniques",null,"Acquisition","Admin","Sinistre - Frais de prestations","Frais interne de gestions des placements","Autres charges techniques"]
[{"$nulls":15},{"$f":"SUM(P13:P90)","v":{"v":1746980.9999999998,"d":"1,746,981"}},{"$nulls":10},{"$f":"SUM(AA13:AA90)","v":{"v":929834.88,"d":"929,835"}},{"v":146073.1,"d":"146,073"},{"v":39078.420000000006,"d":"39,078"},{"v":146604.2,"d":"146,604"},{"v":485390.4,"d":"485,390"},null,{"$f":"SUM(AG13:AG90)","v":{"v":585362.2362739726,"d":"585,362"}},{"v":86056.04792424584,"d":"86,056"},{"v":19437.853315068496,"d":"19,438"},{"v":62733.469041095894,"d":"62,733"},{"v":294937.6807904783,"d":"294,938"},null,{"$f":"SUM(AM13:AM90)","v":0},0,0,0,0]
[null,"Conseil d'Administration",{"$nulls":30},{"$f":"$H6*AA6","v":0},0,0,0,0,null,{"$f":"$J6*AA6","v":0},0,0,0,0]
[null,"CA","Président CA","fixe de 5k",null,null,{"$f":"Date_Agrement","v":"2026-07-01"},{"v":1,"d":"1.00"},"2050-01-01",{"$f":"IF(ISBLANK(I7),0, YEARFRAC(DATE(YEAR(I7),1,1),I7,1))","v":{"v":0,"d":"0.00"}},{"v":5000,"d":"5,000"},{"$nulls":4},{"$f":"SUM(K7,M7,N7,O7,L7*K7)","v":{"v":5000,"d":"5,000"}},{"$nulls":3},{"v":0.5,"d":"50%"},{"v":0.1,"d":"10%"},{"v":0.1,"d":"10%"},{"v":0.2,"d":"20%"},{"v":0.1,"d":"10%"},{"$f":"SUM(T7:X7)","v":{"v":0.9999999999999999,"d":"100%"}},null,{"$f":"T7*$P7","v":{"v":2500,"d":"2,500"}},500,500,{"v":1000,"d":"1,000"},500,null,{"$f":"$H7*AA7","v":{"v":2500,"d":"2,500"}},500,500,{"v":1000,"d":"1,000"},500,null,{"$f":"$J7*AA7","v":0},0,0,0,0]
[null,"CA","Président CAR + RFC Audit","fixe de 5k",null,null,{"$f":"Date_Agrement","v":"2026-07-01"},{"v":1,"d":"1.00"},"2050-01-01",{"v":0,"d":"0.00"},{"v":5000,"d":"5,000"},{"$nulls":8},{"v":0.2,"d":"20%"},{"v":0.2,"d":"20%"},{"v":0.2,"d":"20%"},{"v":0.2,"d":"20%"},{"v":0.2,"d":"20%"},{"v":1,"d":"100%"}]
[null,"CA","Membre CA","5 membres dont président => 6 réunions / an",null,null,{"$f":"Date_Agrement","v":"2026-07-01"},{"v":5,"d":"5.00"},"2050-01-01",{"v":0,"d":"0.00"},{"$f":"5*(2000+6*500)","v":{"v":25000,"d":"25,000"}},{"$nulls":4},{"$f":"SUM(K9,M9,N9,O9,L9*K9)","v":{"v":25000,"d":"25,000"}},{"$nulls":3},{"v":0.2,"d":"20%"},{"v":0.2,"d":"20%"},{"v":0.2,"d":"20%"},{"v":0.2,"d":"20%"},{"v":0.2,"d":"20%"},{"v":1,"d":"100%"},null,{"$f":"T9*$P9","v":{"v":5000,"d":"5,000"}},{"v":5000,"d":"5,000"},{"v":5000,"d":"5,000"},{"v":5000,"d":"5,000"},{"v":5000,"d":"5,000"},null,{"$f":"$H9*AA9","v":{"v":25000,"d":"25,000"}},{"v":25000,"d":"25,000"},{"v":25000,"d":"25,000"},{"v":25000,"d":"25,000"},{"v":25000,"d":"25,000"},null,{"$f":"$J9*AA9","v":0},0,0,0,0]
[null,"CA","Membre CAR","3 membres dont président => 3 réunions / an",null,null,{"$f":"Date_Agrement","v":"2026-07-01"},{"v":3,"d":"3.00"},"2050-01-01",{"v":0,"d":"0.00"},{"$f":"3*(3*500)","v":{"v":4500,"d":"4,500"}},{"$nulls":4},{"v":4500,"d":"4,500"},{"$nulls":3},{"v":0.2,"d":"20%"},{"v":0.2,"d":"20%"},{"v":0.2,"d":"20%"},{"v":0.2,"d":"20%"},{"v":0.2,"d":"20%"},{"v":1,"d":"100%"},null,{"$f":"T10*$P10","v":900},900,900,900,900,null,{"$f":"$H10*AA10","v":{"v":2700,"d":"2,700"}},{"v":2700,"d":"2,700"},{"v":2700,"d":"2,700"},{"v":2700,"d":"2,700"},{"v":2700,"d":"2,700"},null,{"$f":"$J10*AA10","v":0},0,0,0,0]
[null,"CA","Frais fixe","Salles, restaurants, déplacement...",null,null,{"$f":"Date_Agrement","v":"2026-07-01"},{"v":0,"d":"0.00"},"2050-01-01",{"v":0,"d":"0.00"},{"v":3000,"d":"3,000"},{"$nulls":4},{"v":3000,"d":"3,000"},{"$nulls":3},{"v":0.2,"d":"20%"},{"v":0.2,"d":"20%"},{"v":0.2,"d":"20%"},{"v":0.2,"d":"20%"},{"v":0.2,"d":"20%"},{"v":1,"d":"100%"},null,{"$f":"T11*$P11","v":600},600,600,600,600,null,{"$f":"$H11*AA11","v":0},0,0,0,0,null,{"$f":"$J11*AA11","v":0},0,0,0,0]
[null,"DGE"]
[0,"DGE","DG","Conformité/juridique produit CGV, Animation de la gouvernance (CA et CRA), Création et suivi de dashboard, Risques (opérationnel), solvalibité solva/ORSA",null,1,{"$f":"Date_Agrement","v":"2026-07-01"},{"$f":"IF(ISBLANK(G13),0, YEARFRAC(G13, DATE(YEAR(G13),12,31),1))","v":{"v":0.5013698630136987,"d":"0.50"}},"2050-01-01",{"$f":"IF(ISBLANK(I13),0, YEARFRAC(DATE(YEAR(I13),1,1),I13,1))","v":{"v":0,"d":"0.00"}},{"v":120000,"d":"120,000"},{"$f":"Bonus_Clevel","v":{"v":0.15,"d":"15%"}},{"$f":"taux_charges_patronales*K13","v":49200},null,{"$f":"cout_par_salarié","v":{"v":5928,"d":"5,928"}},{"$f":"SUM(K13,M13,N13,O13,L13*K13)*F13","v":{"v":193128,"d":"193,128"}},{"$nulls":3},{"v":0.5,"d":"50%"},{"v":0.1,"d":"10%"},null,{"v":0.1,"d":"10%"},{"v":0.3,"d":"30%"},{"$f":"SUM(T13:X13)","v":{"v":1,"d":"100%"}},null,{"$f":"T13*$P13","v":{"v":96564,"d":"96,564"}},{"v":19312.8,"d":"19,313"},0,{"v":19312.8,"d":"19,313"},{"v":57938.4,"d":"57,938"},null,{"$f":"$H13*AA13","v":{"v":48414.2794520548,"d":"48,414"}},{"v":9682.85589041096,"d":"9,683"},0,{"v":9682.85589041096,"d":"9,683"},{"v":29048.56767123288,"d":"29,049"},null,{"$f":"$J13*AA13","v":0},0,0,0,0]
[0,"DGE","DGD - CPTO","Tech, Produit, Cyber, Office Management\n Supervision UC, Définition politque Invest fonds Euro",null,1,{"$f":"Date_Agrement","v":"2026-07-01"},{"v":0.5013698630136987,"d":"0.50"},"2050-01-01",{"v":0,"d":"0.00"},{"v":60000,"d":"60,000"},{"$f":"Bonus_Clevel","v":{"v":0.15,"d":"15%"}},{"$f":"taux_charges_patronales*K14","v":24600},null,{"$f":"cout_par_salarié","v":{"v":5928,"d":"5,928"}},{"v":99528,"d":"99,528"},null,{"v":0.8,"d":"80%"},null,{"v":0.75,"d":"75%"},null,null,{"v":0.25,"d":"25%"},null,{"v":1,"d":"100%"},null,{"$f":"T14*$P14","v":{"v":74646,"d":"74,646"}},0,0,{"v":24882,"d":"24,882"},0,null,{"$f":"$H14*AA14","v":{"v":37425.25479452055,"d":"37,425"}},0,0,{"v":12475.08493150685,"d":"12,475"},0,null,{"$f":"$J14*AA14","v":0},0,0,0,0]
[0,"DGE","DGD - CFO / COO","Communication financière / relation investisseur, compta corpo, revue prestataires clefs, Juridique affaires et corporate, MarCom, PR, Relation distributeurs, Recrutement, RH,",null,1,{"$f":"Date_Agrement","v":"2026-07-01"},{"v":0.5013698630136987,"d":"0.50"},"2050-01-01",{"v":0,"d":"0.00"},{"v":120000,"d":"120,000"},{"$f":"Bonus_Clevel","v":{"v":0.15,"d":"15%"}},{"$f":"taux_charges_patronales*K15","v":49200},null,{"$f":"cout_par_salarié","v":{"v":5928,"d":"5,928"}},{"v":193128,"d":"193,128"},null,{"v":0.5,"d":"50%"},null,{"v":0.8,"d":"80%"},{"$nulls":3},{"v":0.2,"d":"20%"},{"v":1,"d":"100%"},null,{"$f":"T15*$P15","v":{"v":154502.4,"d":"154,502"}},0,0,0,{"v":38625.6,"d":"38,626"},null,{"$f":"$H15*AA15","v":{"v":77462.84712328768,"d":"77,463"}},0,0,0,{"v":19365.71178082192,"d":"19,366"},null,{"$f":"$J15*AA15","v":0},0,0,0,0]
[null,"FINANCES",{"$nulls":30},{"$f":"$H16*AA16","v":0},0,0,0,0,null,{"$f":"$J16*AA16","v":0},0,0,0,0]
[1,"FINANCES","Responsable comptable assurance","Comptable placement et opérations assurance","Opérationnelen lien avec Burette, en lien avec CAEIS",0.5,{"$f":"EOMONTH(Date_Agrement,1)+1","v":"2026-09-01"},{"$f":"IF(ISBLANK(G17),0, YEARFRAC(G17, DATE(YEAR(G17),12,31),1))","v":{"v":0.3315068493150685,"d":"0.33"}},"2050-01-01",{"$f":"IF(ISBLANK(I17),0, YEARFRAC(DATE(YEAR(I17),1,1),I17,1))","v":{"v":0,"d":"0.00"}},{"v":60000,"d":"60,000"},{"$f":"Bonus_Ops","v":{"v":0.1,"d":"10%"}},{"$f":"taux_charges_patronales*K17","v":24600},null,{"$f":"cout_par_salarié","v":{"v":5928,"d":"5,928"}},{"$f":"SUM(K17,M17,N17,O17,L17*K17)*F17","v":{"v":48264,"d":"48,264"}},{"$nulls":4},{"v":0.2,"d":"20%"},null,{"v":0.2,"d":"20%"},{"v":0.6,"d":"60%"},{"$f":"SUM(T17:X17)","v":{"v":1,"d":"100%"}},null,{"$f":"T17*$P17","v":0},{"v":9652.800000000001,"d":"9,653"},0,{"v":9652.800000000001,"d":"9,653"},{"v":28958.399999999998,"d":"28,958"},null,{"$f":"$H17*AA17","v":0},{"v":3199.969315068494,"d":"3,200"},0,{"v":3199.969315068494,"d":"3,200"},{"v":9599.90794520548,"d":"9,600"},null,{"$f":"$J17*AA17","v":0},0,0,0,0]
[3,"FINANCES","Contrôleur de gestion","Contrôle gestion budgets reporting",null,1,"2028-01-01",{"v":0.9972677595628415,"d":"1.00"},"2050-01-01",{"v":0,"d":"0.00"},{"v":50000,"d":"50,000"},{"$f":"Bonus_Ops","v":{"v":0.1,"d":"10%"}},{"$f":"taux_charges_patronales*K18","v":20500},null,{"$f":"cout_par_salarié","v":{"v":5928,"d":"5,928"}},{"v":81428,"d":"81,428"},{"$nulls":4},{"v":0.4,"d":"40%"},null,null,{"v":0.6,"d":"60%"},{"v":1,"d":"100%"},null,{"$f":"T18*$P18","v":0},{"v":32571.2,"d":"32,571"},0,0,{"v":48856.799999999996,"d":"48,857"},null,{"$f":"$H18*AA18","v":0},{"v":32482.207650273223,"d":"32,482"},0,0,{"v":48723.311475409835,"d":"48,723"},null,{"$f":"$J18*AA18","v":0},0,0,0,0]
[null,"ACTURIAT",{"$nulls":30},{"$f":"$H19*AA19","v":0},0,0,0,0,null,{"$f":"$J19*AA19","v":0},0,0,0,0]
[1,"ACTUARIAT","Responsable actuariat","actuariat et solva & RFC Actuariat","suivi reassurance, tarification sur garantie, provisinnenment, Best Estimate, reporting prudentiel",0.5,{"$f":"EOMONTH(Date_Agrement,1)+1","v":"2026-09-01"},{"$f":"IF(ISBLANK(G20),0, YEARFRAC(G20, DATE(YEAR(G20),12,31),1))","v":{"v":0.3315068493150685,"d":"0.33"}},"2050-01-01",{"$f":"IF(ISBLANK(I20),0, YEARFRAC(DATE(YEAR(I20),1,1),I20,1))","v":{"v":0,"d":"0.00"}},{"v":85000,"d":"85,000"},{"$f":"Bonus_Ops","v":{"v":0.1,"d":"10%"}},{"$f":"taux_charges_patronales*K20","v":34850},null,{"$f":"cout_par_salarié","v":{"v":5928,"d":"5,928"}},{"$f":"SUM(K20,M20,N20,O20,L20*K20)*F20","v":{"v":67139,"d":"67,139"}},{"$nulls":7},{"v":1,"d":"100%"},{"$f":"SUM(T20:X20)","v":{"v":1,"d":"100%"}},null,{"$f":"T20*$P20","v":0},0,0,0,{"v":67139,"d":"67,139"},null,{"$f":"$H20*AA20","v":0},0,0,0,{"v":22257.038356164387,"d":"22,257"},null,{"$f":"$J20*AA20","v":0},0,0,0,0]
[null,"CONTROLES",{"$nulls":30},{"$f":"$H21*AA21","v":0},0,0,0,0,null,{"$f":"$J21*AA21","v":0},0,0,0,0]
[1,"CONTROLES","Data Analyst","Gestion de la donnée et sa qualité","données à vérifier : dpt controle + actuariat + placements",0.5,{"$f":"EOMONTH(Date_Agrement,1)+1","v":"2026-09-01"},{"$f":"IF(ISBLANK(G22),0, YEARFRAC(G22, DATE(YEAR(G22),12,31),1))","v":{"v":0.3315068493150685,"d":"0.33"}},"2050-01-01",{"$f":"IF(ISBLANK(I22),0, YEARFRAC(DATE(YEAR(I22),1,1),I22,1))","v":{"v":0,"d":"0.00"}},{"v":50000,"d":"50,000"},{"$f":"Bonus_Ops","v":{"v":0.1,"d":"10%"}},{"$f":"taux_charges_patronales*K22","v":20500},null,{"$f":"cout_par_salarié","v":{"v":5928,"d":"5,928"}},{"$f":"SUM(K22,M22,N22,O22,L22*K22)*F22","v":{"v":40714,"d":"40,714"}},{"$nulls":3},{"v":0.2,"d":"20%"},{"v":0.2,"d":"20%"},null,{"v":0.3,"d":"30%"},{"v":0.3,"d":"30%"},{"$f":"SUM(T22:X22)","v":{"v":1,"d":"100%"}},null,{"$f":"T22*$P22","v":{"v":8142.8,"d":"8,143"}},{"v":8142.8,"d":"8,143"},0,{"v":12214.199999999999,"d":"12,214"},{"v":12214.199999999999,"d":"12,214"},null,{"$f":"$H22*AA22","v":{"v":2699.39397260274,"d":"2,699"}},{"v":2699.39397260274,"d":"2,699"},0,{"v":4049.0909589041094,"d":"4,049"},{"v":4049.0909589041094,"d":"4,049"},null,{"$f":"$J22*AA22","v":0},0,0,0,0]
[2,"CONTROLES","RCCI + DPO + RFC Conformité"," Conformité & contrôle interne interne, RFC","deploiement et suivi régulier du dispositif de controle interne + conformité, controle des delagataires et tiers (TPRM), ",1,"2026-10-01",{"v":0.2493150684931507,"d":"0.25"},"2050-01-01",{"v":0,"d":"0.00"},{"v":80000,"d":"80,000"},{"$f":"Bonus_Ops","v":{"v":0.1,"d":"10%"}},{"$f":"taux_charges_patronales*K23","v":32800},null,{"$f":"cout_par_salarié","v":{"v":5928,"d":"5,928"}},{"v":126728,"d":"126,728"},{"$nulls":3},{"v":0.6,"d":"60%"},{"v":0.2,"d":"20%"},{"v":0.1,"d":"10%"},null,{"v":0.1,"d":"10%"},{"v":1,"d":"100%"},null,{"$f":"T23*$P23","v":{"v":76036.8,"d":"76,037"}},{"v":25345.600000000002,"d":"25,346"},{"v":12672.800000000001,"d":"12,673"},0,{"v":12672.800000000001,"d":"12,673"},null,{"$f":"$H23*AA23","v":{"v":18957.120000000003,"d":"18,957"}},{"v":6319.040000000001,"d":"6,319"},{"v":3159.5200000000004,"d":"3,160"},0,{"v":3159.5200000000004,"d":"3,160"},null,{"$f":"$J23*AA23","v":0},0,0,0,0]
[null,"RISQUES",{"$nulls":30},{"$f":"$H24*AA24","v":0},0,0,0,0,null,{"$f":"$J24*AA24","v":0},0,0,0,0]
[1,"RISQUES",null,"processus ORSA sur projection des provisions techniques, fournit les calculs que le RCCI ne eut pas faire","en lien avec actuariat",0.1,{"$f":"G20","v":"2026-09-01"},{"v":0.3315068493150685,"d":"0.33"},"2050-01-01",{"v":0,"d":"0.00"},{"v":85000,"d":"85,000"},{"$f":"Bonus_Ops","v":{"v":0.1,"d":"10%"}},{"$f":"taux_charges_patronales*K25","v":34850},null,{"$f":"cout_par_salarié","v":{"v":5928,"d":"5,928"}},{"$f":"SUM(K25,M25,N25,O25,L25*K25)*F25","v":{"v":13427.800000000001,"d":"13,428"}},{"$nulls":6},{"v":0,"d":"0%"},{"v":1,"d":"100%"},{"$f":"SUM(T25:X25)","v":{"v":1,"d":"100%"}},null,{"$f":"T25*$P25","v":0},0,0,0,{"v":13427.800000000001,"d":"13,428"},null,{"$f":"$H25*AA25","v":0},0,0,0,{"v":4451.407671232878,"d":"4,451"},null,{"$f":"$J25*AA25","v":0},0,0,0,0]
[1,"RISQUES","Responsable risque + RFC RISQUES","suivi appetence au risque KRI, PCA, DORA, gestion de la solva, verification des reportings reglementaires, suivi des ratios de couvertures, pilotage gestion risque ORSA, risque de marché, risque technique, risque opérationnel, risque stratégiques","3 à 5 ans d'XP",1,{"$f":"EOMONTH(Date_Agrement,1)+1","v":"2026-09-01"},{"$f":"IF(ISBLANK(G26),0, YEARFRAC(G26, DATE(YEAR(G26),12,31),1))","v":{"v":0.3315068493150685,"d":"0.33"}},"2050-01-01",{"$f":"IF(ISBLANK(I26),0, YEARFRAC(DATE(YEAR(I26),1,1),I26,1))","v":{"v":0,"d":"0.00"}},{"v":70000,"d":"70,000"},{"$f":"Bonus_Ops","v":{"v":0.1,"d":"10%"}},{"$f":"taux_charges_patronales*K26","v":28700},null,{"$f":"cout_par_salarié","v":{"v":5928,"d":"5,928"}},{"v":111628,"d":"111,628"},{"$nulls":3},{"v":0.25,"d":"25%"},{"v":0.2,"d":"20%"},{"v":0.1,"d":"10%"},{"v":0.2,"d":"20%"},{"v":0.25,"d":"25%"},{"v":1,"d":"100%"},null,{"$f":"T26*$P26","v":{"v":27907,"d":"27,907"}},{"v":22325.600000000002,"d":"22,326"},{"v":11162.800000000001,"d":"11,163"},{"v":22325.600000000002,"d":"22,326"},{"v":27907,"d":"27,907"},null,{"$f":"$H26*AA26","v":{"v":9251.361643835617,"d":"9,251"}},{"v":7401.089315068494,"d":"7,401"},{"v":3700.544657534247,"d":"3,701"},{"v":7401.089315068494,"d":"7,401"},{"v":9251.361643835617,"d":"9,251"},null,{"$f":"$J26*AA26","v":0},0,0,0,0]
[null,"PLACEMENTS",{"$nulls":30},{"$f":"$H27*AA27","v":0},0,0,0,0,null,{"$f":"$J27*AA27","v":0},0,0,0,0]
[1,"PLACEMENTS","MO","Middle office client/investissement : suivi du carnet d'ordres des UC + referentiel UC",null,1,{"$f":"EOMONTH(Date_Agrement,1)+1","v":"2026-09-01"},{"$f":"IF(ISBLANK(G28),0, YEARFRAC(G28, DATE(YEAR(G28),12,31),1))","v":{"v":0.3315068493150685,"d":"0.33"}},"2050-01-01",{"$f":"IF(ISBLANK(I28),0, YEARFRAC(DATE(YEAR(I28),1,1),I28,1))","v":{"v":0,"d":"0.00"}},{"v":60000,"d":"60,000"},{"$f":"Bonus_Ops","v":{"v":0.1,"d":"10%"}},{"$f":"taux_charges_patronales*K28","v":24600},null,{"$f":"cout_par_salarié","v":{"v":5928,"d":"5,928"}},{"$f":"SUM(K28,M28,N28,O28,L28*K28)*F28","v":{"v":96528,"d":"96,528"}},{"$nulls":6},{"v":0.5,"d":"50%"},{"v":0.5,"d":"50%"},{"$f":"SUM(T28:X28)","v":{"v":1,"d":"100%"}},null,{"$f":"T28*$P28","v":0},0,0,{"v":48264,"d":"48,264"},{"v":48264,"d":"48,264"},null,{"$f":"$H28*AA28","v":0},0,0,{"v":15999.846575342466,"d":"16,000"},{"v":15999.846575342466,"d":"16,000"},null,{"$f":"$J28*AA28","v":0},0,0,0,0]
[null,"ASSURANCES",{"$nulls":30},{"$f":"$H29*AA29","v":0},0,0,0,0,null,{"$f":"$J29*AA29","v":0},0,0,0,0]
[1,"ASSURANCES","Responsable gestion assurance","Relation delagataire sur les dossiers",null,0.3,{"$f":"Date_Agrement","v":"2026-07-01"},{"$f":"IF(ISBLANK(G30),0, YEARFRAC(G30, DATE(YEAR(G30),12,31),1))","v":{"v":0.5013698630136987,"d":"0.50"}},"2050-01-01",{"$f":"IF(ISBLANK(I30),0, YEARFRAC(DATE(YEAR(I30),1,1),I30,1))","v":{"v":0,"d":"0.00"}},{"v":35000,"d":"35,000"},{"$f":"Bonus_Ops","v":{"v":0.1,"d":"10%"}},{"$f":"taux_charges_patronales*K30","v":14350},null,{"$f":"cout_par_salarié","v":{"v":5928,"d":"5,928"}},{"$f":"SUM(K30,M30,N30,O30,L30*K30)*F30","v":{"v":17633.399999999998,"d":"17,633"}},{"$nulls":3},{"v":0.7,"d":"70%"},{"v":0.2,"d":"20%"},{"v":0.1,"d":"10%"},null,{"v":0,"d":"0%"},{"$f":"SUM(T30:X30)","v":{"v":0.9999999999999999,"d":"100%"}},null,{"$f":"T30*$P30","v":{"v":12343.379999999997,"d":"12,343"}},{"v":3526.68,"d":"3,527"},{"v":1763.34,"d":"1,763"},0,0,null,{"$f":"$H30*AA30","v":{"v":6188.598739726027,"d":"6,189"}},{"v":1768.1710684931509,"d":"1,768"},{"v":884.0855342465754,"d":"884"},0,0,null,{"$f":"$J30*AA30","v":0},0,0,0,0]
[1,"ASSURANCES","CUSTOMER SUCCESS","Relation delagataire sur le produit Tech et relation commerciale",null,0.3,{"$f":"Date_Agrement","v":"2026-07-01"},{"v":0.5013698630136987,"d":"0.50"},"2050-01-01",{"v":0,"d":"0.00"},{"v":35000,"d":"35,000"},{"$f":"Bonus_Ops","v":{"v":0.1,"d":"10%"}},{"$f":"taux_charges_patronales*K31","v":14350},null,{"$f":"cout_par_salarié","v":{"v":5928,"d":"5,928"}},{"v":17633.399999999998,"d":"17,633"},{"$nulls":3},{"v":0.7,"d":"70%"},{"v":0.2,"d":"20%"},{"v":0.1,"d":"10%"},null,null,{"v":0.9999999999999999,"d":"100%"},null,{"$f":"T31*$P31","v":{"v":12343.379999999997,"d":"12,343"}},{"v":3526.68,"d":"3,527"},{"v":1763.34,"d":"1,763"},0,0,null,{"$f":"$H31*AA31","v":{"v":6188.598739726027,"d":"6,189"}},{"v":1768.1710684931509,"d":"1,768"},{"v":884.0855342465754,"d":"884"},0,0,null,{"$f":"$J31*AA31","v":0},0,0,0,0]
[1,"ASSURANCES","Responsable produit","Gouvernance produit",null,0.3,{"$f":"Date_Agrement","v":"2026-07-01"},{"v":0.5013698630136987,"d":"0.50"},"2050-01-01",{"v":0,"d":"0.00"},{"v":35000,"d":"35,000"},{"$f":"Bonus_Ops","v":{"v":0.1,"d":"10%"}},{"$f":"taux_charges_patronales*K32","v":14350},null,{"$f":"cout_par_salarié","v":{"v":5928,"d":"5,928"}},{"v":17633.399999999998,"d":"17,633"},{"$nulls":3},{"v":0.8,"d":"80%"},{"v":0.1,"d":"10%"},{"v":0.1,"d":"10%"},null,null,{"v":1,"d":"100%"},null,{"$f":"T32*$P32","v":{"v":14106.72,"d":"14,107"}},{"v":1763.34,"d":"1,763"},{"v":1763.34,"d":"1,763"},0,0,null,{"$f":"$H32*AA32","v":{"v":7072.6842739726035,"d":"7,073"}},{"v":884.0855342465754,"d":"884"},{"v":884.0855342465754,"d":"884"},0,0,null,{"$f":"$J32*AA32","v":0},0,0,0,0]
[null,"INFORMATIQUE",{"$nulls":24},{"$f":"T33*$P33","v":0},0,0,0,0,null,{"$f":"$H33*AA33","v":0},0,0,0,0,null,{"$f":"$J33*AA33","v":0},0,0,0,0]
[0,"INFORMATIQUE","CTO","Supervisera une partie interne + une partie externalisée",null,1,{"$f":"Date_Agrement","v":"2026-07-01"},{"$f":"IF(ISBLANK(G34),0, YEARFRAC(G34, DATE(YEAR(G34),12,31),1))","v":{"v":0.5013698630136987,"d":"0.50"}},"2050-01-01",{"$f":"IF(ISBLANK(I34),0, YEARFRAC(DATE(YEAR(I34),1,1),I34,1))","v":{"v":0,"d":"0.00"}},null,{"$f":"Bonus_Clevel","v":{"v":0.15,"d":"15%"}},{"$f":"taux_charges_patronales*K34","v":0},null,null,{"$f":"SUM(K34,M34,N34,O34,L34*K34)*F34","v":0},{"$nulls":3},{"v":0.3,"d":"30%"},{"v":0.2,"d":"20%"},{"v":0.2,"d":"20%"},{"v":0.2,"d":"20%"},{"v":0.1,"d":"10%"},{"$f":"SUM(T34:X34)","v":{"v":0.9999999999999999,"d":"100%"}},null,{"$f":"T34*$P34","v":0},0,0,0,0,null,{"$f":"$H34*AA34","v":0},0,0,0,0,null,{"$f":"$J34*AA34","v":0},0,0,0,0]
[1,"INFORMATIQUE","FULLSTACK Lead",null,null,1,{"$f":"EOMONTH(Date_Agrement,1)+1","v":"2026-09-01"},{"v":0.3315068493150685,"d":"0.33"},"2050-01-01",{"v":0,"d":"0.00"},null,{"$f":"Bonus_Ops","v":{"v":0.1,"d":"10%"}},{"$f":"taux_charges_patronales*K35","v":0},null,null,0,{"$nulls":3},{"v":0.3,"d":"30%"},{"v":0.2,"d":"20%"},{"v":0.2,"d":"20%"},{"v":0.2,"d":"20%"},{"v":0.1,"d":"10%"},{"v":0.9999999999999999,"d":"100%"},null,{"$f":"T35*$P35","v":0},0,0,0,0,null,{"$f":"$H35*AA35","v":0},0,0,0,0,null,{"$f":"$J35*AA35","v":0},0,0,0,0]
[1,"INFORMATIQUE","FULLSTACK Junior+",null,null,1,{"$f":"EOMONTH(Date_Agrement,1)+1","v":"2026-09-01"},{"v":0.3315068493150685,"d":"0.33"},"2050-01-01",{"v":0,"d":"0.00"},null,{"$f":"Bonus_Ops","v":{"v":0.1,"d":"10%"}},{"$f":"taux_charges_patronales*K36","v":0},null,null,0,{"$nulls":3},{"v":0.3,"d":"30%"},{"v":0.2,"d":"20%"},{"v":0.2,"d":"20%"},{"v":0.2,"d":"20%"},{"v":0.1,"d":"10%"},{"v":0.9999999999999999,"d":"100%"},null,{"$f":"T36*$P36","v":0},0,0,0,0,null,{"$f":"$H36*AA36","v":0},0,0,0,0,null,{"$f":"$J36*AA36","v":0},0,0,0,0]
[null,"COMMERCIAL",{"$nulls":24},{"$f":"T37*$P37","v":0},0,0,0,0,null,{"$f":"$H37*AA37","v":0},0,0,0,0,null,{"$f":"$J37*AA37","v":0},0,0,0,0]
[1,"COMMERCIAL","Directeur Commercial","Commercial",null,1,{"$f":"Date_Agrement","v":"2026-07-01"},{"$f":"IF(ISBLANK(G38),0, YEARFRAC(G38, DATE(YEAR(G38),12,31),1))","v":{"v":0.5013698630136987,"d":"0.50"}},"2050-01-01",{"$f":"IF(ISBLANK(I38),0, YEARFRAC(DATE(YEAR(I38),1,1),I38,1))","v":{"v":0,"d":"0.00"}},{"v":100000,"d":"100,000"},{"v":0.15,"d":"15%"},{"$f":"taux_charges_patronales*K38","v":41000},null,{"$f":"cout_par_salarié","v":{"v":5928,"d":"5,928"}},{"$f":"SUM(K38,M38,N38,O38,L38*K38)*F38","v":{"v":161928,"d":"161,928"}},{"$nulls":3},{"v":1,"d":"100%"},{"$nulls":4},{"$f":"SUM(T38:X38)","v":{"v":1,"d":"100%"}},null,{"$f":"T38*$P38","v":{"v":161928,"d":"161,928"}},0,0,0,0,null,{"$f":"$H38*AA38","v":{"v":81185.8191780822,"d":"81,186"}},0,0,0,0,null,{"$f":"$J38*AA38","v":0},0,0,0,0]
[4,"COMMERCIAL","INTERNATIONAL EXPANSION","Implantation international",null,1,"2029-01-01",{"v":0.9972602739726028,"d":"1.00"},"2050-01-01",{"v":0,"d":"0.00"},{"v":80000,"d":"80,000"},{"v":0.15,"d":"15%"},{"$f":"taux_charges_patronales*K39","v":32800},null,{"$f":"cout_par_salarié","v":{"v":5928,"d":"5,928"}},{"v":130728,"d":"130,728"},{"$nulls":3},{"v":1,"d":"100%"},{"$nulls":4},{"v":1,"d":"100%"},null,{"$f":"T39*$P39","v":{"v":130728,"d":"130,728"}},0,0,0,0,null,{"$f":"$H39*AA39","v":{"v":130369.84109589041,"d":"130,370"}},0,0,0,0,null,{"$f":"$J39*AA39","v":0},0,0,0,0]
[2,"COMMERCIAL","PARTNERSHIP","Responsable partenariat",null,1,"2029-01-01",{"v":0.9972602739726028,"d":"1.00"},"2050-01-01",{"v":0,"d":"0.00"},{"v":80000,"d":"80,000"},{"v":0.15,"d":"15%"},{"$f":"taux_charges_patronales*K40","v":32800},null,{"$f":"cout_par_salarié","v":{"v":5928,"d":"5,928"}},{"v":130728,"d":"130,728"},{"$nulls":3},{"v":1,"d":"100%"},{"$nulls":4},{"v":1,"d":"100%"},null,{"$f":"T40*$P40","v":{"v":130728,"d":"130,728"}},0,0,0,0,null,{"$f":"$H40*AA40","v":{"v":130369.84109589041,"d":"130,370"}},0,0,0,0,null,{"$f":"$J40*AA40","v":0},0,0,0,0]
[null,"CORPORATE & MIDDLE OFFICE",{"$nulls":13},0,{"$nulls":10},{"$f":"T41*$P41","v":0},0,0,0,0,null,{"$f":"$H41*AA41","v":0},0,0,0,0,null,{"$f":"$J41*AA41","v":0},0,0,0,0]
[3,null,"LEGAL","Juriste",null,1,"2029-01-01",{"$f":"IF(ISBLANK(G42),0, YEARFRAC(G42, DATE(YEAR(G42),12,31),1))","v":0.9972602739726028},"2050-01-01",{"$f":"IF(ISBLANK(I42),0, YEARFRAC(DATE(YEAR(I42),1,1),I42,1))","v":{"v":0,"d":"0.00"}},{"v":60000,"d":"60,000"},{"v":0.15,"d":"15%"},{"$f":"taux_charges_patronales*K42","v":24600},null,{"$f":"cout_par_salarié","v":{"v":5928,"d":"5,928"}},{"v":99528,"d":"99,528"},{"$nulls":3},{"v":0.3,"d":"30%"},{"v":0.2,"d":"20%"},{"v":0.1,"d":"10%"},{"v":0.1,"d":"10%"},{"v":0.3,"d":"30%"},{"$f":"SUM(T42:X42)","v":{"v":1,"d":"100%"}},null,{"$f":"T42*$P42","v":{"v":29858.399999999998,"d":"29,858"}},{"v":19905.600000000002,"d":"19,906"},{"v":9952.800000000001,"d":"9,953"},{"v":9952.800000000001,"d":"9,953"},{"v":29858.399999999998,"d":"29,858"},null,{"$f":"$H42*AA42","v":{"v":29776.596164383558,"d":"29,777"}},{"v":19851.064109589042,"d":"19,851"},{"v":9925.532054794521,"d":"9,926"},{"v":9925.532054794521,"d":"9,926"},{"v":29776.596164383558,"d":"29,777"},null,{"$f":"$J42*AA42","v":0},0,0,0,0]
[3,null,"HR & PAYROLL","Ressource humaine et paie",null,1,"2029-01-01",{"v":0.9972602739726028,"d":"1.00"},"2050-01-01",{"v":0,"d":"0.00"},{"v":60000,"d":"60,000"},{"v":0.15,"d":"15%"},{"$f":"taux_charges_patronales*K43","v":24600},null,{"$f":"cout_par_salarié","v":{"v":5928,"d":"5,928"}},{"v":99528,"d":"99,528"},{"$nulls":3},{"v":0,"d":"0%"},{"v":0,"d":"0%"},{"v":0,"d":"0%"},{"v":0,"d":"0%"},{"v":1,"d":"100%"},{"v":1,"d":"100%"},null,{"$f":"T43*$P43","v":0},0,0,0,{"v":99528,"d":"99,528"},null,{"$f":"$H43*AA43","v":0},0,0,0,{"v":99255.3205479452,"d":"99,255"},null,{"$f":"$J43*AA43","v":0},0,0,0,0]

{"sheet":"Chrono Personnel","index":9,"n_rows":0,"n_cols":0,"rows_kept":0}

{"sheet":"Garantie plancher","index":10,"n_rows":48,"n_cols":11,"rows_kept":48}
["Garantie plancher"]
[]
["Caracteristiques","Capital net investi sur les UC (donc les frais ne sont pas remobursé) garanti si décès"]
[null,"Max garantie : 100k","parametre à pouvoir modifier"]
[null,"S'arrete à 65 ans","parametre à pouvoir modifier"]
[null,"Le garantie porte uniquement sur les UC mais est calculé sur l'encours gloable",{"$nulls":7},"lien table"]
[{"$nulls":9},"https://www.spac-actuaires.fr/lexique/table-de-mortalite/"]
["coût / encours global",{"v":0.0005,"d":"0.05%"}]
[]
[{"$nulls":9},"TH"]
[null,{"$f":"Primes!L2","v":0},{"$f":"Primes!M2","v":"2026-2027"},{"$f":"Primes!N2","v":2028},{"$f":"Primes!O2","v":2029},{"$f":"Primes!P2","v":2030},{"$f":"Primes!Q2","v":2031},null,45,97966]
[null,{"$f":"Primes!L3","v":"Année"},{"$f":"Primes!M3","v":1},{"$f":"Primes!N3","v":2},{"$f":"Primes!O3","v":3},{"$f":"Primes!P3","v":4},{"$f":"Primes!Q3","v":5},null,50,96792]
[null,{"$f":"Primes!L4","v":"# contrats AV"},{"$f":"Primes!M4","v":{"v":3332,"d":"3,332"}},{"$f":"Primes!N4","v":{"v":4460,"d":"4,460"}},{"$f":"Primes!O4","v":{"v":6840,"d":"6,840"}},{"$f":"Primes!P4","v":{"v":9504,"d":"9,504"}},{"$f":"Primes!Q4","v":{"v":11390,"d":"11,390"}}]
[null,{"$f":"Primes!L5","v":"Panier moy. AV"},{"$f":"Primes!M5","v":{"v":27190.876350540217,"d":"27,191"}},{"$f":"Primes!N5","v":{"v":27410.313901345293,"d":"27,410"}},{"$f":"Primes!O5","v":{"v":27339.18128654971,"d":"27,339"}},{"$f":"Primes!P5","v":{"v":27483.164983164985,"d":"27,483"}},{"$f":"Primes!Q5","v":{"v":27919.227392449517,"d":"27,919"}},null,"0│5q 45 =",{"$f":"(J11-J12)/J11","v":{"v":0.01198374946409979,"d":"1.198%"}}]
[null,{"$f":"Primes!L6","v":"Prime AV"},{"$f":"Primes!M6","v":{"v":90600000,"d":"90,600,000"}},{"$f":"Primes!N6","v":{"v":122250000,"d":"122,250,000"}},{"$f":"Primes!O6","v":{"v":187000000,"d":"187,000,000"}},{"$f":"Primes!P6","v":{"v":261200000,"d":"261,200,000"}},{"$f":"Primes!Q6","v":{"v":318000000,"d":"318,000,000"}}]
[null,{"$f":"Primes!L7","v":"# contrats PER"},{"$f":"Primes!M7","v":302},{"$f":"Primes!N7","v":430},{"$f":"Primes!O7","v":700},{"$f":"Primes!P7","v":{"v":1028,"d":"1,028"}},{"$f":"Primes!Q7","v":{"v":1340,"d":"1,340"}},null,null,"0│10q 40 = (l 40 - l 50 ) / l 40 = (98 242 - 96 546) / 98 242 = 1,726%"]
[null,{"$f":"Primes!L8","v":"Panier moy. PER"},{"$f":"Primes!M8","v":{"v":22913.90728476821,"d":"22,914"}},{"$f":"Primes!N8","v":{"v":23581.39534883721,"d":"23,581"}},{"$f":"Primes!O8","v":{"v":25428.571428571428,"d":"25,429"}},{"$f":"Primes!P8","v":{"v":26303.50194552529,"d":"26,304"}},{"$f":"Primes!Q8","v":{"v":26776.119402985074,"d":"26,776"}}]
[null,{"$f":"Primes!L9","v":"Prime PER"},{"$f":"Primes!M9","v":{"v":6920000,"d":"6,920,000"}},{"$f":"Primes!N9","v":{"v":10140000,"d":"10,140,000"}},{"$f":"Primes!O9","v":{"v":17800000,"d":"17,800,000"}},{"$f":"Primes!P9","v":{"v":27040000,"d":"27,040,000"}},{"$f":"Primes!Q9","v":{"v":35880000,"d":"35,880,000"}},null,null,"On obtient ainsi la propriété suivante : t│t’q x = t px – t+t’px"]
[{"$nulls":9},"La probabilité de décéder entre t et t’ ans pour une personne d’âge x est égale à la"]
[null,{"$f":"Primes!L16","v":"Age moyen"},{"$f":"Primes!M16","v":45},{"$f":"Primes!N16","v":45},{"$f":"Primes!O16","v":44},{"$f":"Primes!P16","v":44},{"$f":"Primes!Q16","v":45},null,null,"probabilité de survivre au-delà de t moins la probabilité de survivre au delà de t+t’."]
[]
[null,"Hypothèses : "]
[null,"1% de frais de gestion / an (non garanti)"]
[null,"Classiquement, 20% des contrats concentrent 80% de la prime"]
[null,"Plus on est agé, plus les primes par contrat sont élévés"]
[null,"Les UC sous jacentes sont données en J29"]
[null,"On peut considérer 30% de pertes comme un extreme pour les actions",{"$nulls":5},"Repartition"]
[null,"On peut considérer 15% de pertes comme un extreme pour les obligations",{"$nulls":6},"Euro+UC","hors Euro","volatilité"]
[null,"Un meme assuré peut verser sur plusieurs années donc sur se retrouver dans plusieurs cohortes",{"$nulls":5},"Fonds Euro",{"v":28.900000000000002,"d":"28.9"}]
[null,"Taux moyen de croissance des actifs (actions ou obligations) net de frais 3%",{"$nulls":5},"Obligation CT",2.8,{"$f":"I30/SUM($I$30:$I$34)","v":{"v":0.03938115330520394,"d":"3.9%"}},{"$f":"Actif!F29","v":{"v":0.02,"d":"2%"}}]
[{"$nulls":7},"Obligation",{"v":9.05,"d":"9.1"},{"v":0.12728551336146274,"d":"12.7%"},{"$f":"Actif!F30","v":{"v":0.07200000000000001,"d":"7%"}}]
[null,"Cas à considérer :",{"$nulls":5},"Dette Privéee",{"v":6.05,"d":"6.1"},{"v":0.08509142053445852,"d":"8.5%"},{"$f":"Actif!F31","v":{"v":0.06,"d":"6%"}}]
[null,"En regime normal de marché, de mortalité donc pas de forte baisse des marché",{"$nulls":5},"Action",{"v":47.35,"d":"47.4"},{"v":0.6659634317862166,"d":"66.6%"},{"$f":"Actif!F32","v":{"v":0.17,"d":"17%"}}]
[null,"En risque extreme de marché",{"$nulls":5},"PE",{"v":5.8500000000000005,"d":"5.9"},{"v":0.08227848101265824,"d":"8.2%"},{"$f":"Actif!F33","v":{"v":0.07,"d":"7%"}}]
[null,"En risque extreme de mortalité"]
[null,"En risque extreme de mortalité et de marché",{"$nulls":5},"Total",{"v":100,"d":"100.0"}]
[null,"Vraiment pas de chance : mortalité, marché et taille des contrats dans les extrêmes"]
[]
[null,null,"en moyenne","risque extreme","pas de chance !"]
[null,"Cohorte année",4]
[null,"# contrat AV",{"$f":"OFFSET($C$13,0,$C$40-1)","v":{"v":9504,"d":"9,504"}},{"$f":"C41","v":{"v":9504,"d":"9,504"}},{"v":9504,"d":"9,504"}]
[null,"Taux de sinistre sur 5 ans",{"$f":"J14/3","v":{"v":0.00399458315469993,"d":"0.40%"}},{"$f":"C42*2","v":{"v":0.00798916630939986,"d":"0.80%"}},{"$f":"C42*4","v":{"v":0.01597833261879972,"d":"1.60%"}}]
[null,"# contrat",{"$f":"C42*C41","v":{"v":37.96451830226814,"d":"37.96"}},{"v":75.92903660453628,"d":"75.93"},{"v":151.85807320907256,"d":"151.86"}]
[null,"Max capital garantie",{"$f":"C14","v":{"v":27190.876350540217,"d":"27,191 €"}},{"v":80000,"d":"80,000 €"},{"v":100000,"d":"100,000 €"}]
[null,"Max perte sur 5 ans",{"$f":"(J33*30%+(1-J33)*15%)*50%","v":{"v":0.12494725738396625,"d":"12%"}},{"$f":"(K33*30%+(1-K33)*15%)*70%","v":{"v":0.12284999999999999,"d":"12%"}},{"v":0.3,"d":"30%"}]
[]
[null,"Max loss",{"$f":"C43*C44*C45","v":{"v":128981.61976090175,"d":"128,982 €"}},{"v":746230.5717493824,"d":"746,231 €"},{"v":4555742.196272177,"d":"4,555,742 €"}]
[null,"%encours",{"$f":"C47/OFFSET($C$15,0,$C$40-1)","v":{"v":4.9380405727757182E-4,"d":"0.05%"}},{"v":2.8569317448291823E-3,"d":"0.29%"},{"v":0.017441585743767904,"d":"1.74%"}]

{"sheet":"Actif","index":11,"n_rows":42,"n_cols":15,"rows_kept":42,"merged":[[9,4,9,6]]}
[{"$nulls":11},"rdt fg",{"$f":"rdt_FG","v":{"v":0.03,"d":"3%"}}]
[]
["Fonds Euro + Fonds propres",null,null,"Min","Max","Cible","Rating moyen","Modified duration",{"$nulls":4},"Cpn","Distribué","PMVL"]
[null,null,"Monétaire",0,20,5,"NA",1,{"$nulls":4},{"$f":"'Capital Market Assumptions'!G6","v":{"v":0.021,"d":"2%"}},{"v":0,"d":"0.0%"},{"$f":"M4-N4","v":{"v":0.021,"d":"2%"}}]
[null,null,"Govies & Supra 0% SCR",70,90,75,"A","5-9 ans","possibilité de variabiliser une partie des taux",{"$nulls":3},{"$f":"AVERAGE('Capital Market Assumptions'!G10:G12)","v":{"v":0.029666666666666664,"d":"2.97%"}}]
[null,null,"Dettes privées NR",0,20,20,"NR","Taux variable","diversification  => pas de SCR concentration ",{"$nulls":3},{"$f":"'Capital Market Assumptions'!G19","v":{"v":0.06,"d":"6%"}},{"v":0.03,"d":"3.0%"},{"$f":"M6-N6","v":{"v":0.03,"d":"3%"}}]
["Fonds Euro PERI"]
[null,null,"idem Fonds Euro avec duration un peu plus longue",{"$nulls":9},{"$f":"SUMPRODUCT(M4:M6,F4:F6)","v":3.5299999999999994},null,{"$f":"SUMPRODUCT(O4:O6,F4:F6)/100","v":{"v":0.00705,"d":"0.71%"}}]
[{"$nulls":8},"https://www.yomoni.fr/performances"]
["Gestion piloté",null,null,"Fonds Euro","UC"]
[{"$nulls":3},"Fonds Euro","Obligation CT","Obligation","Dette Privéee","Action OCDE","PE / Autres actions","Total"]
[0,"Fonds Euro","Quasi identique sécurisé",100,{"$nulls":5},{"$f":"SUM(D12:I12)","v":100}]
[1,"Sécurisé","Sécuriser son capital à 2 ans max",80,20,{"$nulls":4},100]
[2,"Prudent",null,50,10,10,null,25,5,100]
[3,"Equilibré",null,30,null,15,5,45,5,100]
[4,"Dynamique",null,20,null,15,10,50,5,100]
[5,"Offensif",null,0,null,null,10,80,10,100]
["Obligation","BBB à 7 ans"]
["Oblig Court Terme","BB à 2 ans"]
["Dette privée","NR / taux variable / 4 ans moyenne"]
["Pas d'immobilier en UC"]
[]
["Arrêté du 1er juillet 2024 instaurant une gestion pilotée profilée "]
["https://www.legifrance.gouv.fr/jorf/id/JORFTEXT000049888609"]
[]
["Répartition des actifs / gestion pilotée"]
["type gestion","% client",null,null,"Repartition","Volatilité annuelle",null,"Expected return for UC (cf Capital market assumption)"]
[0,{"v":0.04,"d":"4%"},null,"Fonds Euro",{"$f":"SUMPRODUCT(B28:B33,D12:D17)","v":{"v":28.900000000000002,"d":"28.9"}}]
[1,{"v":0.04,"d":"4%"},null,"Obligation CT",{"$f":"SUMPRODUCT(B28:B33,E12:E17)","v":2.8},{"v":0.02,"d":"2%"},null,{"$f":"'Capital Market Assumptions'!G6","v":{"v":0.021,"d":"2.10%"}}]
[2,{"v":0.2,"d":"20%"},null,"Obligation",{"$f":"SUMPRODUCT(B28:B33,F12:F17)","v":{"v":9.05,"d":"9.1"}},{"$f":"20%*12%+80%*6%","v":{"v":0.07200000000000001,"d":"7%"}},null,{"$f":"('Capital Market Assumptions'!G14+'Capital Market Assumptions'!G17)/2","v":{"v":0.0295,"d":"2.95%"}}]
[3,{"v":0.23,"d":"23%"},null,"Dette Privéee",{"$f":"SUMPRODUCT(B28:B33,G12:G17)","v":{"v":6.05,"d":"6.1"}},{"v":0.06,"d":"6%"},null,{"$f":"'Capital Market Assumptions'!G19","v":{"v":0.06,"d":"6.00%"}}]
[4,{"v":0.24,"d":"24%"},null,"Action",{"$f":"SUMPRODUCT(B28:B33,H12:H17)","v":{"v":47.35,"d":"47.4"}},{"v":0.17,"d":"17%"},null,{"$f":"('Capital Market Assumptions'!G21+'Capital Market Assumptions'!G22)/2","v":{"v":0.07100000000000001,"d":"7.10%"}}]
[5,{"v":0.25,"d":"25%"},null,"PE",{"$f":"SUMPRODUCT(B28:B33,I12:I17)","v":{"v":5.8500000000000005,"d":"5.9"}},{"v":0.07,"d":"7%"},null,{"$f":"'Capital Market Assumptions'!G23","v":{"v":0.094,"d":"9.40%"}}]
[]
["Total",{"$f":"SUM(B28:B33)","v":{"v":1,"d":"100%"}},null,"Total",{"$f":"SUM(E28:E33)","v":{"v":100,"d":"100.0"}},null,"Expected return UC",{"$f":"SUMPRODUCT(E29:E33,H29:H33/E35)","v":{"v":0.04600525000000001,"d":"4.60%"}}]
[]
[]
[null,null,"Profil « Prudent » : 6% jusqu’à 20 ans avant la date de liquidation envisagée et 2% jusqu’à 10 ans avant l’échéance (progressivité sur 20, 15 et 10 ans) ;"]
[null,null,"Profil « Equilibré » : 8% jusqu’à 20 ans avant la date de liquidation envisagée et 3% jusqu’à 5 ans avant l’échéance (progressivité sur 20, 15, 10 et 5 ans) ;"]
[null,null,"Profil « Dynamique » : 12% jusqu’à 20 ans avant la date de liquidation envisagée et 5% jusqu’à 5 ans avant l’échéance (progressivité sur 20, 15, 10 et 5 ans) ;"]
[null,null,"Profil « Offensif » : 15% jusqu’à 20 ans avant la date de liquidation envisagée et 6% jusqu’à 5 ans avant l’échéance (progressivité sur 20, 15, 10 et 5 ans)."]
["https://www.goodvalueformoney.eu/documentation/ventilation-2025-des-offres-de-gestion-profilee-du-marche-selon-leur-niveau-d-exposition"]

{"sheet":"Capital Market Assumptions","index":12,"n_rows":23,"n_cols":7,"rows_kept":23,"merged":[[27,3,27,12],[36,3,36,12],[39,3,39,12]]}
[]
[{"$nulls":6},"Average Annualised GEOMETRIC"]
[]
[null,"Index","Index Google","Currency","Duration","Current Cpn/retun","5Y Expected returns"]
["Cash"]
["Euro Cash",null,null,"EUR",0.2,null,{"v":0.021,"d":"2.10%"}]
["USD Cash",null,null,"USD",0.2,null,{"v":0.032,"d":"3.20%"}]
["Government Bonds"]
["US Bond","JPMTUS Index",null,"USD",6,null,{"v":0.043,"d":"4.30%"}]
["Emu Bond - Core",null,null,"EUR",7,null,{"v":0.024,"d":"2.40%"}]
["France Bond","JPMTEUFR Index",null,"EUR",7,null,{"v":0.032,"d":"3.20%"}]
["Italy Bond",null,null,"EUR",6,null,{"v":0.033,"d":"3.30%"}]
["Credit Investment Grade"]
["Euro Corporate IG",null,null,"EUR",4.4,null,{"v":0.028,"d":"2.80%"}]
["US Corporate IG",null,null,"USD",6.5,null,{"v":0.051,"d":"5.10%"}]
["Credit High Yield"]
["Euro Corporate ","HY HE00 index",null,"EUR",null,null,{"v":0.031,"d":"3.10%"}]
["US Corporate HY",null,null,"USD",null,null,{"v":0.045,"d":"4.50%"}]
["Dette privée",null,null,"EUR",null,null,{"v":0.06,"d":"6%"}]
["Equity"]
["SP500",null,".INX","USD",null,{"$f":"IFERROR(__xludf.DUMMYFUNCTION(\"GOOGLEFINANCE(C21)\"),6822.4)","v":6822.4},{"v":0.068,"d":"6.80%"}]
["Eurostoxx50",null,"SX5E","EUR",null,{"$f":"IFERROR(__xludf.DUMMYFUNCTION(\"GOOGLEFINANCE(C22)\"),5669.13)","v":5669.13},{"v":0.074,"d":"7.40%"}]
["PE",null,null,"EUR",null,null,{"$f":"G22+2%","v":{"v":0.094,"d":"9.40%"}}]

{"sheet":"Scenario Eco","index":13,"n_rows":8,"n_cols":3,"rows_kept":8}
["Capital Market Assumptions"]
[]
["Amundi","p 17","https://research-center.amundi.com/article/capital-market-assumptions-2025#section-title-19692"]
["JP AM",null,"https://am.jpmorgan.com/gb/en/asset-management/institutional/insights/portfolio-insights/ltcma/"]
["Blackrock","page interactive","https://www.blackrock.com/institutions/en-us/insights/charts/capital-market-assumptions?utm_source=chatgpt.com"]
["NothernTrust",null,"https://www.northerntrust.com/content/dam/northerntrust/investment-management/global/en/documents/thought-leadership/2025/cma/2025-capital-market-assumptions-research-paper.pdf?utm_source=chatgpt.com"]
["Invesco",null,"https://www.invesco.com/content/dam/invesco/apac/en/pdf/insights/2024/december/2025-invesco-capital-market-assumptions-USD.pdf?utm_source=chatgpt.com"]
["SSGA","p5 prevision à 5 ans","https://www.ssga.com/library-content/assets/pdf/global/ltacf/2025/long-term-asset-class-forecasts-q2-2025.pdf?utm_source=chatgpt.com"]

{"sheet":"Primes","index":14,"n_rows":93,"n_cols":22,"rows_kept":93}
["Home"]
[{"$nulls":12},"2026-2027",{"$f":"2026+N3","v":2028},2029,2030,2031,null,"Données marché","Assurance-vie ind.","Epargne retraite PERin","Contrats de capitalisation"]
["Année","Courtier","PER/AV/Capi","Age 30 / 50","H/F","Nb contrat","Nb Contrat Stressé","Panier Moyen","Prime",null,null,"Année",1,2,3,4,5,null,"Primes 2023",{"v":123700000000,"d":"123,700,000,000 €"},{"v":8729000000,"d":"8,729,000,000 €"},{"v":8114000000,"d":"8,114,000,000 €"}]
[1,"Courtier Internet","AV",30,"H",390,{"$f":"ROUND(F4*OFFSET(stress_nb_contrat,A4-1,0),0)","v":390},{"v":15000,"d":"15,000"},{"$f":"G4*H4","v":{"v":5850000,"d":"5,850,000"}},null,null,"# contrats AV",{"$f":"SUMIFS($G$4:$G$100,$C$4:$C$100,\"AV\",$A$4:$A$100,M$3)","v":{"v":3332,"d":"3,332"}},{"v":4460,"d":"4,460"},{"v":6840,"d":"6,840"},{"v":9504,"d":"9,504"},{"v":11390,"d":"11,390"},null,"Stock contrats",46465000,3534000,878000]
[1,"Courtier Internet","AV",50,"H",1575,{"v":1575,"d":"1,575"},{"v":30000,"d":"30,000"},{"$f":"F5*H5","v":{"v":47250000,"d":"47,250,000"}},null,null,"Panier moy. AV",{"$f":"M6/M4","v":{"v":27190.876350540217,"d":"27,191"}},{"v":27410.313901345293,"d":"27,410"},{"v":27339.18128654971,"d":"27,339"},{"v":27483.164983164985,"d":"27,483"},{"v":27919.227392449517,"d":"27,919"},null,"Nouveaux contrats 2023",2534000,633000,35000]
[1,"Courtier Internet","AV",30,"F",300,300,{"v":15000,"d":"15,000"},{"v":4500000,"d":"4,500,000"},null,null,"Prime AV",{"$f":"SUMIFS($I$4:$I$100,$C$4:$C$100,\"AV\",$A$4:$A$100,M$3)","v":{"v":90600000,"d":"90,600,000"}},{"v":122250000,"d":"122,250,000"},{"v":187000000,"d":"187,000,000"},{"v":261200000,"d":"261,200,000"},{"v":318000000,"d":"318,000,000"},null,"Panier moyen 2023",{"$f":"T3/T4","v":{"v":2662.218874421608,"d":"2,662 €"}},{"v":2470.005659309564,"d":"2,470 €"},{"v":9241.457858769932,"d":"9,241 €"}]
[1,"Courtier Internet","AV",50,"F",1050,{"v":1050,"d":"1,050"},{"v":30000,"d":"30,000"},{"v":31500000,"d":"31,500,000"},null,null,"# contrats PER",{"$f":"SUMIFS($G$4:$G$100,$C$4:$C$100,\"PER\",$A$4:$A$100,M$3)","v":302},430,700,{"v":1028,"d":"1,028"},{"v":1340,"d":"1,340"}]
[1,"Courtier Internet","PER",30,"H",75,75,{"v":10000,"d":"10,000"},{"v":750000,"d":"750,000"},null,null,"Panier moy. PER",{"$f":"M9/M7","v":{"v":22913.90728476821,"d":"22,914"}},{"v":23581.39534883721,"d":"23,581"},{"v":25428.571428571428,"d":"25,429"},{"v":26303.50194552529,"d":"26,304"},{"v":26776.119402985074,"d":"26,776"},null,"Nombre de contrats / an","Assurance-vie","Epargne retraite","Contrats de capitalisation"]
[1,"Courtier Internet","PER",50,"H",105,105,{"v":30000,"d":"30,000"},{"v":3150000,"d":"3,150,000"},null,null,"Prime PER",{"$f":"SUMIFS($I$4:$I$100,$C$4:$C$100,\"PER\",$A$4:$A$100,M$3)","v":{"v":6920000,"d":"6,920,000"}},{"v":10140000,"d":"10,140,000"},{"v":17800000,"d":"17,800,000"},{"v":27040000,"d":"27,040,000"},{"v":35880000,"d":"35,880,000"},null,"Courtiers",{"v":10000,"d":"10,000"},{"v":1500,"d":"1,500"},50]
[1,"Courtier Internet","PER",30,"F",45,45,{"v":10000,"d":"10,000"},{"v":450000,"d":"450,000"},null,null,"# contrats Capi",{"$f":"SUMIFS($G$4:$G$100,$C$4:$C$100,\"Capi\",$A$4:$A$100,M$3)","v":10},15,45,90,130,null,"CGP/CIF ",{"v":1000,"d":"1,000"},150,75]
[1,"Courtier Internet","PER",50,"F",60,60,{"v":30000,"d":"30,000"},{"v":1800000,"d":"1,800,000"},null,null,"Panier moy. Capi",{"$f":"M12/M10","v":{"v":42000,"d":"42,000"}},{"v":36666.666666666664,"d":"36,667"},{"v":36666.666666666664,"d":"36,667"},{"v":36666.666666666664,"d":"36,667"},{"v":37692.307692307695,"d":"37,692"}]
[1,"Courtier Internet","Capi","NA","NA",2,2,{"v":10000,"d":"10,000"},{"v":20000,"d":"20,000"},null,null,"Prime Capi",{"$f":"SUMIFS($I$4:$I$100,$C$4:$C$100,\"Capi\",$A$4:$A$100,M$3)","v":{"v":420000,"d":"420,000"}},{"v":550000,"d":"550,000"},{"v":1650000,"d":"1,650,000"},{"v":3300000,"d":"3,300,000"},{"v":4900000,"d":"4,900,000"},null,"Paniers moyens B_Life","Assurance-vie","Epargne retraite","Contrats de capitalisation"]
[1,"CGP/FO/CIF","AV",30,"H",2,2,{"v":50000,"d":"50,000"},{"v":100000,"d":"100,000"},{"$nulls":9},"Courtiers",{"v":30000,"d":"30,000"},{"v":10000,"d":"10,000"},{"v":10000,"d":"10,000"}]
[1,"CGP/FO/CIF","AV",50,"H",8,8,{"v":100000,"d":"100,000"},{"v":800000,"d":"800,000"},null,null,"Total # contrats",{"$f":"SUM(M4,M7,M10)","v":{"v":3644,"d":"3,644"}},{"v":4905,"d":"4,905"},{"v":7585,"d":"7,585"},{"v":10622,"d":"10,622"},{"v":12860,"d":"12,860"},null,"CGP/CIF ",{"v":100000,"d":"100,000"},{"v":50000,"d":"50,000"},{"v":50000,"d":"50,000"}]
[1,"CGP/FO/CIF","AV",30,"F",2,2,{"v":50000,"d":"50,000"},{"v":100000,"d":"100,000"},null,null,"Total prime",{"$f":"SUM(M6,M9,M12)","v":{"v":97940000,"d":"97,940,000"}},{"v":132940000,"d":"132,940,000"},{"v":206450000,"d":"206,450,000"},{"v":291540000,"d":"291,540,000"},{"v":358780000,"d":"358,780,000"}]
[1,"CGP/FO/CIF","AV",50,"F",5,5,{"v":100000,"d":"100,000"},{"v":500000,"d":"500,000"},null,null,"Age moyen",{"$f":"ROUND( (SUMIFS($G$4:$G$100,$D$4:$D$100,\"30\",$A$4:$A$100,M$3)*30 + SUMIFS($G$4:$G$100,$D$4:$D$100,\"50\",$A$4:$A$100,M$3)*50)/M14,0)","v":45},45,44,44,45]
[1,"CGP/FO/CIF","PER",30,"H",2,2,{"v":30000,"d":"30,000"},{"v":60000,"d":"60,000"},{"$nulls":4},{"$f":"N15-M15","v":{"v":35000000,"d":"35,000,000"}},{"v":73510000,"d":"73,510,000"},{"v":85090000,"d":"85,090,000"},{"v":67240000,"d":"67,240,000"}]
[1,"CGP/FO/CIF","PER",50,"H",8,8,{"v":50000,"d":"50,000"},{"v":400000,"d":"400,000"}]
[1,"CGP/FO/CIF","PER",30,"F",2,2,{"v":30000,"d":"30,000"},{"v":60000,"d":"60,000"},null,null,"AV H",{"$f":"SUMIFS($F$4:$F$100,$C$4:$C$100,\"AV\",$A$4:$A$100,M$3,$E$4:$E$100,\"H\")/M4","v":{"v":0.5927370948379351,"d":"59%"}},{"v":0.5919282511210763,"d":"59%"},{"v":0.5964912280701754,"d":"60%"},{"v":0.5734427609427609,"d":"57%"},{"v":0.5364354697102721,"d":"54%"}]
[1,"CGP/FO/CIF","PER",50,"F",5,5,{"v":50000,"d":"50,000"},{"v":250000,"d":"250,000"},null,null,"AV F",{"$f":"SUMIFS($F$4:$F$100,$C$4:$C$100,\"AV\",$A$4:$A$100,M$3,$E$4:$E$100,\"F\")/M4","v":{"v":0.4072629051620648,"d":"41%"}},{"v":0.4080717488789238,"d":"41%"},{"v":0.40350877192982454,"d":"40%"},{"v":0.4265572390572391,"d":"43%"},{"v":0.4635645302897278,"d":"46%"}]
[1,"CGP/FO/CIF","Capi","NA","NA",8,8,{"v":50000,"d":"50,000"},{"v":400000,"d":"400,000"},null,null,"PER H",{"$f":"SUMIFS($F$4:$F$100,$C$4:$C$100,\"PER\",$A$4:$A$100,M$3,$E$4:$E$100,\"H\")/M7","v":{"v":0.6291390728476821,"d":"63%"}},{"v":0.6139534883720931,"d":"61%"},{"v":0.6285714285714286,"d":"63%"},{"v":0.6167315175097277,"d":"62%"},{"v":0.6328358208955224,"d":"63%"}]
[2,"Courtier Internet","AV",30,"H",600,600,{"v":15000,"d":"15,000"},{"v":9000000,"d":"9,000,000"},null,null,"PER F",{"$f":"SUMIFS($F$4:$F$100,$C$4:$C$100,\"PER\",$A$4:$A$100,M$3,$E$4:$E$100,\"F\")/M7","v":{"v":0.3708609271523179,"d":"37%"}},{"v":0.386046511627907,"d":"39%"},{"v":0.37142857142857144,"d":"37%"},{"v":0.3832684824902724,"d":"38%"},{"v":0.36716417910447763,"d":"37%"}]
[2,"Courtier Internet","AV",50,"H",{"v":2000,"d":"2,000"},{"v":2000,"d":"2,000"},{"v":30000,"d":"30,000"},{"v":60000000,"d":"60,000,000"}]
[2,"Courtier Internet","AV",30,"F",400,400,{"v":15000,"d":"15,000"},{"v":6000000,"d":"6,000,000"},null,null,"Evolution"]
[2,"Courtier Internet","AV",50,"F",{"v":1400,"d":"1,400"},{"v":1400,"d":"1,400"},{"v":30000,"d":"30,000"},{"v":42000000,"d":"42,000,000"},null,null,"Courtier Internet","AV","F",30]
[2,"Courtier Internet","PER",30,"H",100,100,{"v":10000,"d":"10,000"},{"v":1000000,"d":"1,000,000"}]
[2,"Courtier Internet","PER",50,"H",140,140,{"v":30000,"d":"30,000"},{"v":4200000,"d":"4,200,000"},null,null,"Année",1,2,3,4,5]
[2,"Courtier Internet","PER",30,"F",70,70,{"v":10000,"d":"10,000"},{"v":700000,"d":"700,000"},null,null,"# contrats stressé",{"$f":"SUMIFS($G$4:$G$100,$A$4:$A$100,M$27,$B$4:$B$100,$L$25,$C$4:$C$100,$M$25,$D$4:$D$100,$O$25,$E$4:$E$100,$N$25)","v":300},400,700,1000,1200]
[2,"Courtier Internet","PER",50,"F",80,80,{"v":30000,"d":"30,000"},{"v":2400000,"d":"2,400,000"},null,null,"% progression",null,{"$f":"N28/M28-1","v":{"v":0.33333333333333326,"d":"33%"}},{"v":0.75,"d":"75%"},{"v":0.4285714285714286,"d":"43%"},{"v":0.19999999999999996,"d":"20%"}]
[2,"Courtier Internet","Capi","NA","NA",5,5,{"v":10000,"d":"10,000"},{"v":50000,"d":"50,000"},null,null,"Panier moy.",{"$f":"SUMIFS($H$4:$H$100,$A$4:$A$100,M$27,$B$4:$B$100,$L$25,$C$4:$C$100,$M$25,$D$4:$D$100,$O$25,$E$4:$E$100,$N$25)","v":{"v":15000,"d":"15,000"}},{"v":15000,"d":"15,000"},{"v":15000,"d":"15,000"},{"v":15000,"d":"15,000"},{"v":15000,"d":"15,000"}]
[2,"CGP/FO/CIF","AV",30,"H",10,10,{"v":50000,"d":"50,000"},{"v":500000,"d":"500,000"},null,null,"Prime",{"$f":"SUMIFS($I$4:$I$100,$A$4:$A$100,M$27,$B$4:$B$100,$L$25,$C$4:$C$100,$M$25,$D$4:$D$100,$O$25,$E$4:$E$100,$N$25)","v":{"v":4500000,"d":"4,500,000"}},{"v":6000000,"d":"6,000,000"},{"v":10500000,"d":"10,500,000"},{"v":15000000,"d":"15,000,000"},{"v":18000000,"d":"18,000,000"}]
[2,"CGP/FO/CIF","AV",50,"H",30,30,{"v":100000,"d":"100,000"},{"v":3000000,"d":"3,000,000"},null,null,"% progression",null,{"$f":"N31/M31-1","v":{"v":0.33333333333333326,"d":"33%"}},{"v":0.75,"d":"75%"},{"v":0.4285714285714286,"d":"43%"},{"v":0.19999999999999996,"d":"20%"}]
[2,"CGP/FO/CIF","AV",30,"F",5,5,{"v":50000,"d":"50,000"},{"v":250000,"d":"250,000"}]
[2,"CGP/FO/CIF","AV",50,"F",15,15,{"v":100000,"d":"100,000"},{"v":1500000,"d":"1,500,000"}]
[2,"CGP/FO/CIF","PER",30,"H",4,4,{"v":30000,"d":"30,000"},{"v":120000,"d":"120,000"}]
[2,"CGP/FO/CIF","PER",50,"H",20,{"$f":"ROUND(F36*OFFSET(stress_nb_contrat,A36-1,0),0)","v":20},{"v":50000,"d":"50,000"},{"v":1000000,"d":"1,000,000"}]
[2,"CGP/FO/CIF","PER",30,"F",4,4,{"v":30000,"d":"30,000"},{"v":120000,"d":"120,000"}]
[2,"CGP/FO/CIF","PER",50,"F",12,12,{"v":50000,"d":"50,000"},{"v":600000,"d":"600,000"}]
[2,"CGP/FO/CIF","Capi","NA","NA",10,10,{"v":50000,"d":"50,000"},{"v":500000,"d":"500,000"}]
[3,"Courtier Internet","AV",30,"H",1000,{"v":1000,"d":"1,000"},{"v":15000,"d":"15,000"},{"v":15000000,"d":"15,000,000"}]
[3,"Courtier Internet","AV",50,"H",3000,{"v":3000,"d":"3,000"},{"v":30000,"d":"30,000"},{"v":90000000,"d":"90,000,000"}]
[3,"Courtier Internet","AV",30,"F",700,700,{"v":15000,"d":"15,000"},{"v":10500000,"d":"10,500,000"}]
[3,"Courtier Internet","AV",50,"F",2000,{"v":2000,"d":"2,000"},{"v":30000,"d":"30,000"},{"v":60000000,"d":"60,000,000"}]
[3,"Courtier Internet","PER",30,"H",150,150,{"v":10000,"d":"10,000"},{"v":1500000,"d":"1,500,000"}]
[3,"Courtier Internet","PER",50,"H",230,230,{"v":30000,"d":"30,000"},{"v":6900000,"d":"6,900,000"}]
[3,"Courtier Internet","PER",30,"F",90,90,{"v":10000,"d":"10,000"},{"v":900000,"d":"900,000"}]
[3,"Courtier Internet","PER",50,"F",130,130,{"v":30000,"d":"30,000"},{"v":3900000,"d":"3,900,000"}]
[3,"Courtier Internet","Capi","NA","NA",15,15,{"v":10000,"d":"10,000"},{"v":150000,"d":"150,000"}]
[3,"CGP/FO/CIF","AV",30,"H",30,30,{"v":50000,"d":"50,000"},{"v":1500000,"d":"1,500,000"}]
[3,"CGP/FO/CIF","AV",50,"H",50,50,{"v":100000,"d":"100,000"},{"v":5000000,"d":"5,000,000"}]
[3,"CGP/FO/CIF","AV",30,"F",20,20,{"v":50000,"d":"50,000"},{"v":1000000,"d":"1,000,000"}]
[3,"CGP/FO/CIF","AV",50,"F",40,40,{"v":100000,"d":"100,000"},{"v":4000000,"d":"4,000,000"}]
[3,"CGP/FO/CIF","PER",30,"H",10,10,{"v":30000,"d":"30,000"},{"v":300000,"d":"300,000"}]
[3,"CGP/FO/CIF","PER",50,"H",50,50,{"v":50000,"d":"50,000"},{"v":2500000,"d":"2,500,000"}]
[3,"CGP/FO/CIF","PER",30,"F",10,10,{"v":30000,"d":"30,000"},{"v":300000,"d":"300,000"}]
[3,"CGP/FO/CIF","PER",50,"F",30,30,{"v":50000,"d":"50,000"},{"v":1500000,"d":"1,500,000"}]
[3,"CGP/FO/CIF","Capi","NA","NA",30,30,{"v":50000,"d":"50,000"},{"v":1500000,"d":"1,500,000"}]
[4,"Courtier Internet","AV",30,"H",1300,{"v":1300,"d":"1,300"},{"v":15000,"d":"15,000"},{"v":19500000,"d":"19,500,000"}]
[4,"Courtier Internet","AV",50,"H",4000,{"v":4000,"d":"4,000"},{"v":30000,"d":"30,000"},{"v":120000000,"d":"120,000,000"}]
[4,"Courtier Internet","AV",30,"F",1000,{"v":1000,"d":"1,000"},{"v":15000,"d":"15,000"},{"v":15000000,"d":"15,000,000"}]
[4,"Courtier Internet","AV",50,"F",3000,{"v":3000,"d":"3,000"},{"v":30000,"d":"30,000"},{"v":90000000,"d":"90,000,000"}]
[4,"Courtier Internet","PER",30,"H",150,150,{"v":10000,"d":"10,000"},{"v":1500000,"d":"1,500,000"}]
[4,"Courtier Internet","PER",50,"H",400,400,{"v":30000,"d":"30,000"},{"v":12000000,"d":"12,000,000"}]
[4,"Courtier Internet","PER",30,"F",150,150,{"v":10000,"d":"10,000"},{"v":1500000,"d":"1,500,000"}]
[4,"Courtier Internet","PER",50,"F",190,190,{"v":30000,"d":"30,000"},{"v":5700000,"d":"5,700,000"}]
[4,"Courtier Internet","Capi","NA","NA",30,30,{"v":10000,"d":"10,000"},{"v":300000,"d":"300,000"}]
[4,"CGP/FO/CIF","AV",30,"H",60,60,{"v":50000,"d":"50,000"},{"v":3000000,"d":"3,000,000"}]
[4,"CGP/FO/CIF","AV",50,"H",90,{"$f":"ROUND(F68*OFFSET(stress_nb_contrat,A68-1,0),0)","v":90},{"v":100000,"d":"100,000"},{"v":9000000,"d":"9,000,000"}]
[4,"CGP/FO/CIF","AV",30,"F",14,14,{"v":50000,"d":"50,000"},{"v":700000,"d":"700,000"}]
[4,"CGP/FO/CIF","AV",50,"F",40,40,{"v":100000,"d":"100,000"},{"v":4000000,"d":"4,000,000"}]
[4,"CGP/FO/CIF","PER",30,"H",14,14,{"v":30000,"d":"30,000"},{"v":420000,"d":"420,000"}]
[4,"CGP/FO/CIF","PER",50,"H",70,70,{"v":50000,"d":"50,000"},{"v":3500000,"d":"3,500,000"}]
[4,"CGP/FO/CIF","PER",30,"F",14,14,{"v":30000,"d":"30,000"},{"v":420000,"d":"420,000"}]
[4,"CGP/FO/CIF","PER",50,"F",40,40,{"v":50000,"d":"50,000"},{"v":2000000,"d":"2,000,000"}]
[4,"CGP/FO/CIF","Capi","NA","NA",60,60,{"v":50000,"d":"50,000"},{"v":3000000,"d":"3,000,000"}]
[5,"Courtier Internet","AV",30,"H",1400,{"v":1400,"d":"1,400"},{"v":15000,"d":"15,000"},{"v":21000000,"d":"21,000,000"}]
[5,"Courtier Internet","AV",50,"H",4500,{"v":4500,"d":"4,500"},{"v":30000,"d":"30,000"},{"v":135000000,"d":"135,000,000"}]
[5,"Courtier Internet","AV",30,"F",1200,{"v":1200,"d":"1,200"},{"v":15000,"d":"15,000"},{"v":18000000,"d":"18,000,000"}]
[5,"Courtier Internet","AV",50,"F",4000,{"v":4000,"d":"4,000"},{"v":30000,"d":"30,000"},{"v":120000000,"d":"120,000,000"}]
[5,"Courtier Internet","PER",30,"H",190,190,{"v":10000,"d":"10,000"},{"v":1900000,"d":"1,900,000"}]
[5,"Courtier Internet","PER",50,"H",550,550,{"v":30000,"d":"30,000"},{"v":16500000,"d":"16,500,000"}]
[5,"Courtier Internet","PER",30,"F",170,170,{"v":10000,"d":"10,000"},{"v":1700000,"d":"1,700,000"}]
[5,"Courtier Internet","PER",50,"F",250,250,{"v":30000,"d":"30,000"},{"v":7500000,"d":"7,500,000"}]
[5,"Courtier Internet","Capi","NA","NA",40,40,{"v":10000,"d":"10,000"},{"v":400000,"d":"400,000"}]
[5,"CGP/FO/CIF","AV",30,"H",80,80,{"v":50000,"d":"50,000"},{"v":4000000,"d":"4,000,000"}]
[5,"CGP/FO/CIF","AV",50,"H",130,130,{"v":100000,"d":"100,000"},{"v":13000000,"d":"13,000,000"}]
[5,"CGP/FO/CIF","AV",30,"F",20,20,{"v":50000,"d":"50,000"},{"v":1000000,"d":"1,000,000"}]
[5,"CGP/FO/CIF","AV",50,"F",60,60,{"v":100000,"d":"100,000"},{"v":6000000,"d":"6,000,000"}]
[5,"CGP/FO/CIF","PER",30,"H",18,18,{"v":30000,"d":"30,000"},{"v":540000,"d":"540,000"}]
[5,"CGP/FO/CIF","PER",50,"H",90,90,{"v":50000,"d":"50,000"},{"v":4500000,"d":"4,500,000"}]
[5,"CGP/FO/CIF","PER",30,"F",18,18,{"v":30000,"d":"30,000"},{"v":540000,"d":"540,000"}]
[5,"CGP/FO/CIF","PER",50,"F",54,54,{"v":50000,"d":"50,000"},{"v":2700000,"d":"2,700,000"}]
[5,"CGP/FO/CIF","Capi","NA","NA",90,90,{"v":50000,"d":"50,000"},{"v":4500000,"d":"4,500,000"}]

{"sheet":"Apporteur partenariats","index":15,"n_rows":27,"n_cols":11,"rows_kept":27}
["Marge brute = Marge perçue par l'assureur sur les frais de gestions après redistribution de la commission du distributeur"]
["Marge nette = 50% x Marge brute"]
[]
["Ex : Frais de gestion d'un contrat souscrit par le client à 1% (100bp)"]
["Philosophie"]
["Marge brute distributeur = 70bp"]
["Marge brute assureur = 30bp"]
["Marge nette pour les calculs des commissions d'apporteurs d'affaires = 30x50% = 15 bp"]
["Le prélèvement des frais serait trimestriel chez B Life, en post compte. Votre commission sera versée à cette occasion."]
[]
[]
["Marge brute",{"$f":"frais_gestion_UC","v":{"v":0.0039,"d":"0.39%"}}]
["Marge nette",{"$f":"50%*B12","v":{"v":0.00195,"d":"0.20%"}},"=> En pratique devra être figé contractuellement car difficile à calculer de façon précise et peut petre volatile"]
[]
["Report BP"]
["Année",1,2,3,4,5,6,7]
["commission",{"$f":"E22","v":{"v":48750,"d":"48,750"}},{"$f":"E23","v":{"v":73125,"d":"73,125"}},{"$f":"E24","v":{"v":87750,"d":"87,750"}},{"$f":"E25","v":{"v":48750,"d":"48,750"}},{"$f":"AVERAGE(B17:E17)","v":{"v":64593.75,"d":"64,594"}},{"v":68554.6875,"d":"68,555"},{"v":67412.109375,"d":"67,412"}]
[]
[]
["Pour un distributeur 1",null,null,"Commission ",null,null,"Pour un distributeur 2",null,null,"Commission "]
[null,"Flux","Stock","en % marge","en €",null,null,"Flux","Stock","en % marge","en €"]
["Année 1",{"v":50000000,"d":"50,000,000"},{"$f":"B22","v":{"v":50000000,"d":"50,000,000"}},{"v":0.5,"d":"50%"},{"$f":"D22*C22*$B$13","v":{"v":48750,"d":"48,750"}},null,"Année 2",{"v":50000000,"d":"50,000,000"},{"$f":"H22","v":{"v":50000000,"d":"50,000,000"}},{"v":0.5,"d":"50%"},{"$f":"J22*I22*$B$13","v":{"v":48750,"d":"48,750"}}]
["Année 2",{"v":100000000,"d":"100,000,000"},{"$f":"C22+B23","v":{"v":150000000,"d":"150,000,000"}},{"v":0.25,"d":"25%"},{"v":73125,"d":"73,125"},null,"Année 3",{"v":100000000,"d":"100,000,000"},{"$f":"I22+H23","v":{"v":150000000,"d":"150,000,000"}},{"v":0.25,"d":"25%"},{"v":73125,"d":"73,125"}]
["Année 3",{"v":150000000,"d":"150,000,000"},{"v":300000000,"d":"300,000,000"},{"v":0.15,"d":"15%"},{"v":87750,"d":"87,750"},null,"Année 4",{"v":150000000,"d":"150,000,000"},{"v":300000000,"d":"300,000,000"},{"v":0.15,"d":"15%"},{"v":87750,"d":"87,750"}]
["Année 4",{"v":200000000,"d":"200,000,000"},{"v":500000000,"d":"500,000,000"},{"v":0.05,"d":"5%"},{"v":48750,"d":"48,750"},null,"Année 5",{"v":200000000,"d":"200,000,000"},{"v":500000000,"d":"500,000,000"},{"v":0.05,"d":"5%"},{"v":48750,"d":"48,750"}]
[]
["Total",null,null,{"$f":"SUM(D22:D26)","v":{"v":0.9500000000000001,"d":"95%"}},{"v":258375,"d":"258,375"},null,"Total",null,null,{"$f":"SUM(J22:J26)","v":{"v":0.9500000000000001,"d":"95%"}},{"v":258375,"d":"258,375"}]

{"sheet":"--> Calculs","index":16,"n_rows":0,"n_cols":0,"rows_kept":0}

{"sheet":"RH","index":17,"n_rows":26,"n_cols":16,"rows_kept":26,"merged":[[9,10,9,14],[12,10,12,14]]}
["Home","Headcount"]
[]
["Fonction","Classification","Salaire brut kEUR"]
["Service client, MO","T1",40]
["Cadre Junior","T2",60]
["Cadre Senior","T3",80]
["C Level","T4",110]
[]
["Coeff brut salarié -> total employeur",null,{"v":0.41,"d":"41%"}]
["Nombre de contrats gérés par gestionnaire :",null,{"v":10000,"d":"10,000"},{"$nulls":7},"Clé de ventilation pour année 3 et plus"]
[{"$nulls":10},{"$f":"SUM(K15:K16)/SUM($K$15:$O$16)","v":{"v":0.5448366455332859,"d":"54%"}},{"v":0.07432032645672246,"d":"7%"},{"v":0.02255423534782551,"d":"2%"},{"v":0.11059363764873958,"d":"11%"},{"v":0.2476951550134265,"d":"25%"}]
[null,null,"cf RH - Detail pour année 1 & 2, par grande masse année 3 et plus"]
[{"$nulls":10},"Destination montant par année"]
[null,"Année","T1","T2","T3","T4","Nb salarié au 31.12","cout additionnel /an",null,null,"Acquisition","Admin","Sinistre - Frais de prestations","Frais interne de gestions des placements","Autres charges techniques","cout total"]
["année partielle",2026,{"$nulls":4},{"$f":"SUMIFS(Personnel!F$13:F$91,Personnel!$G$13:$G$91,\"<\" & DATE($B16,1,1),Personnel!$I$13:$I$91,\">\" & DATE($B16,12,31))","v":{"v":12.5,"d":"13"}},{"$nulls":3},{"$f":"SUMIFS(Personnel!AA$13:AA$91,Personnel!$G$13:$G$91,\"<\" & DATE($B15,1,1),Personnel!$I$13:$I$91,\">\" & DATE($B15,12,31))+SUMIFS(Personnel!AG$13:AG$91,Personnel!$G$13:$G$91,\">\" & DATE($B15,1,1),Personnel!$G$13:$G$91,\"<\" & DATE($B15,12,31)) +SUMIFS(Personnel!AM$13:AM$91,Personnel!$G$13:$G$91,\">\" & DATE($B15,1,1),Personnel!$G$13:$G$91,\"<\" & DATE($B15,12,31))","v":{"v":294845.9579178082,"d":"294,846"}},{"$f":"SUMIFS(Personnel!AB$13:AB$91,Personnel!$G$13:$G$91,\"<\" & DATE($B15,1,1),Personnel!$I$13:$I$91,\">\" & DATE($B15,12,31))+SUMIFS(Personnel!AH$13:AH$91,Personnel!$G$13:$G$91,\">\" & DATE($B15,1,1),Personnel!$G$13:$G$91,\"<\" & DATE($B15,12,31))","v":{"v":33722.77616438356,"d":"33,723"}},{"$f":"SUMIFS(Personnel!AC$13:AC$91,Personnel!$G$13:$G$91,\"<\" & DATE($B15,1,1),Personnel!$I$13:$I$91,\">\" & DATE($B15,12,31))+SUMIFS(Personnel!AI$13:AI$91,Personnel!$G$13:$G$91,\">\" & DATE($B15,1,1),Personnel!$G$13:$G$91,\"<\" & DATE($B15,12,31))","v":{"v":9512.321260273973,"d":"9,512"}},{"$f":"SUMIFS(Personnel!AD$13:AD$91,Personnel!$G$13:$G$91,\"<\" & DATE($B15,1,1),Personnel!$I$13:$I$91,\">\" & DATE($B15,12,31))+SUMIFS(Personnel!AJ$13:AJ$91,Personnel!$G$13:$G$91,\">\" & DATE($B15,1,1),Personnel!$G$13:$G$91,\"<\" & DATE($B15,12,31))","v":{"v":52807.93698630137,"d":"52,808"}},{"$f":"SUMIFS(Personnel!AE$13:AE$91,Personnel!$G$13:$G$91,\"<\" & DATE($B15,1,1),Personnel!$I$13:$I$91,\">\" & DATE($B15,12,31))+SUMIFS(Personnel!AK$13:AK$91,Personnel!$G$13:$G$91,\">\" & DATE($B15,1,1),Personnel!$G$13:$G$91,\"<\" & DATE($B15,12,31))","v":{"v":117182.45260273974,"d":"117,182"}},{"$f":"SUM(K15:O15)","v":{"v":508071.4449315069,"d":"508,071"}}]
[null,{"$f":"B15+1","v":2027},{"$nulls":4},{"$f":"SUMIFS(Personnel!F$13:F$91,Personnel!$G$13:$G$91,\"<\" & DATE($B17,1,1),Personnel!$I$13:$I$91,\">\" & DATE($B17,12,31))","v":{"v":12.5,"d":"13"}},{"$nulls":3},{"$f":"SUMIFS(Personnel!AA$13:AA$91,Personnel!$G$13:$G$91,\"<\" & DATE($B16,1,1),Personnel!$I$13:$I$91,\">\" & DATE($B16,12,31))","v":{"v":638520.48,"d":"638,520"}},{"$f":"SUMIFS(Personnel!AB$13:AB$91,Personnel!$G$13:$G$91,\"<\" & DATE($B16,1,1),Personnel!$I$13:$I$91,\">\" & DATE($B16,12,31))","v":{"v":93596.29999999999,"d":"93,596"}},{"$f":"SUMIFS(Personnel!AC$13:AC$91,Personnel!$G$13:$G$91,\"<\" & DATE($B16,1,1),Personnel!$I$13:$I$91,\">\" & DATE($B16,12,31))","v":{"v":29125.620000000003,"d":"29,126"}},{"$f":"SUMIFS(Personnel!AD$13:AD$91,Personnel!$G$13:$G$91,\"<\" & DATE($B16,1,1),Personnel!$I$13:$I$91,\">\" & DATE($B16,12,31))","v":{"v":136651.40000000002,"d":"136,651"}},{"$f":"SUMIFS(Personnel!AE$13:AE$91,Personnel!$G$13:$G$91,\"<\" & DATE($B16,1,1),Personnel!$I$13:$I$91,\">\" & DATE($B16,12,31))","v":{"v":307147.19999999995,"d":"307,147"}},{"v":1205041,"d":"1,205,041"}]
[null,2028,null,2,null,null,{"$f":"SUM(C17:F17)+G16","v":{"v":14.5,"d":"15"}},{"$f":"(C17*$C$4+D17*$C$5+E17*$C$6+F17*$C$7)*(1+taux_charges_patronales)*1000","v":{"v":169200,"d":"169,200"}},null,null,{"$f":"K16+$K$11*$H17","v":{"v":730706.840424232,"d":"730,707"}},{"$f":"L16+$L$11*$H17","v":{"v":106171.29923647743,"d":"106,171"}},{"$f":"M16+$M$11*$H17","v":{"v":32941.79662085208,"d":"32,942"}},{"$f":"N16+$N$11*$H17","v":{"v":155363.84349016676,"d":"155,364"}},{"$f":"O16+$O$11*$H17","v":{"v":349057.22022827173,"d":"349,057"}},{"v":1374241,"d":"1,374,241"}]
[null,2029,null,2,1,null,{"v":17.5,"d":"18"},{"v":282000,"d":"282,000"},null,null,{"v":884350.7744646186,"d":"884,351"},{"v":127129.63129727315,"d":"127,130"},{"v":39302.09098893887,"d":"39,302"},{"v":186551.2493071113,"d":"186,551"},{"v":418907.253942058,"d":"418,907"},{"v":1656241,"d":"1,656,241"}]
[null,2030,1,1,1,null,{"v":20.5,"d":"21"},{"v":253799.99999999997,"d":"253,800"},null,null,{"v":1022630.3151009666,"d":"1,022,630"},{"v":145992.13015198932,"d":"145,992"},{"v":45026.355920216985,"d":"45,026"},{"v":214619.91454236142,"d":"214,620"},{"v":481772.28428446566,"d":"481,772"},{"v":1910041,"d":"1,910,041"}]
[null,2031,1,1,null,null,{"v":22.5,"d":"23"},{"v":141000,"d":"141,000"},null,null,{"v":1099452.2821211598,"d":"1,099,452"},{"v":156471.2961823872,"d":"156,471"},{"v":48206.50310426038,"d":"48,207"},{"v":230213.6174508337,"d":"230,214"},{"v":516697.3011413588,"d":"516,697"},{"v":2051041,"d":"2,051,041"}]
[null,2032,1,1,null,null,{"v":24.5,"d":"25"},{"v":141000,"d":"141,000"},null,null,{"v":1176274.2491413532,"d":"1,176,274"},{"v":166950.46221278506,"d":"166,950"},{"v":51386.650288303776,"d":"51,387"},{"v":245807.32035930597,"d":"245,807"},{"v":551622.3179982519,"d":"551,622"},{"v":2192041,"d":"2,192,041"}]
[null,2033,1,null,1,null,{"v":26.5,"d":"27"},{"v":169200,"d":"169,200"},null,null,{"v":1268460.6095655852,"d":"1,268,461"},{"v":179525.4614492625,"d":"179,525"},{"v":55202.826909155854,"d":"55,203"},{"v":264519.7638494727,"d":"264,520"},{"v":593532.3382265236,"d":"593,532"},{"v":2361240.9999999995,"d":"2,361,241"}]
[null,2034,1,1,null,null,{"v":28.5,"d":"29"},{"v":141000,"d":"141,000"},null,null,{"v":1345282.5765857785,"d":"1,345,283"},{"v":190004.62747966038,"d":"190,005"},{"v":58382.97409319925,"d":"58,383"},{"v":280113.46675794496,"d":"280,113"},{"v":628457.3550834167,"d":"628,457"},{"v":2502241,"d":"2,502,241"}]
[null,2035,1,null,1,null,{"v":30.5,"d":"31"},{"v":169200,"d":"169,200"},null,null,{"v":1437468.9370100105,"d":"1,437,469"},{"v":202579.62671613783,"d":"202,580"},{"v":62199.15071405133,"d":"62,199"},{"v":298825.9102481117,"d":"298,826"},{"v":670367.3753116884,"d":"670,367"},{"v":2671440.9999999995,"d":"2,671,441"}]
[null,2036,1,1,null,null,{"v":32.5,"d":"33"},{"v":141000,"d":"141,000"},null,null,{"v":1514290.9040302038,"d":"1,514,291"},{"v":213058.7927465357,"d":"213,059"},{"v":65379.29789809472,"d":"65,379"},{"v":314419.613156584,"d":"314,420"},{"v":705292.3921685815,"d":"705,292"},{"v":2812440.9999999995,"d":"2,812,441"}]
[null,2037,1,null,1,null,{"v":34.5,"d":"35"},{"v":169200,"d":"169,200"},null,null,{"v":1606477.2644544358,"d":"1,606,477"},{"v":225633.79198301316,"d":"225,634"},{"v":69195.4745189468,"d":"69,195"},{"v":333132.0566467507,"d":"333,132"},{"v":747202.4123968532,"d":"747,202"},{"v":2981641,"d":"2,981,641"}]

{"sheet":"BP=>","index":18,"n_rows":0,"n_cols":0,"rows_kept":0}

{"sheet":"BP Financier","index":19,"n_rows":167,"n_cols":7,"rows_kept":167}
[null,"B-Life Business Plan "]
[null,"Année","2026-2027",2028,{"$f":"D2+1","v":2029},2030,2031]
[null,"Année",1,{"$f":"C3+1","v":2},3,4,5]
[]
[null,{"$f":"\"Scenario : \" & Scenarii!B6","v":"Scenario : Base Case"},{"$f":"OFFSET(Scenarii!C6,Scenarii!C6,0)","v":"Description : ..."}]
[null,"Rendement Fonds propres",{"$f":"Scenarii!C45","v":{"v":0.03,"d":"3%"}},null,"Commission assureur UC"]
[null,"Rendement Fonds Général",{"$f":"Scenarii!D45","v":{"v":0.03,"d":"3%"}},null,"Commission assureur FG"]
[null,"Proportion Fonds Général en % encours",{"$f":"pct_encours_FG","v":{"v":0.65,"d":"65%"}},null,"Quote part participation aux bénéfices"]
[null,"Les coûts des prestataires sont TTC, pas de récupération de la TVA"]
[]
[null,"Build-up Encours"]
[]
[null,null,"2026-2027",2028,{"$f":"D13+1","v":2029},2030,2031]
[null,"Nb contrats AV",{"$f":"Primes!M4","v":{"v":3332,"d":"3,332"}},{"$f":"Primes!N4","v":{"v":4460,"d":"4,460"}},{"$f":"Primes!O4","v":{"v":6840,"d":"6,840"}},{"$f":"Primes!P4","v":{"v":9504,"d":"9,504"}},{"$f":"Primes!Q4","v":{"v":11390,"d":"11,390"}}]
[null,"Panier moy. AV (€)",{"$f":"Primes!M5","v":{"v":27190.876350540217,"d":"27,191"}},{"$f":"Primes!N5","v":{"v":27410.313901345293,"d":"27,410"}},{"$f":"Primes!O5","v":{"v":27339.18128654971,"d":"27,339"}},{"$f":"Primes!P5","v":{"v":27483.164983164985,"d":"27,483"}},{"$f":"Primes!Q5","v":{"v":27919.227392449517,"d":"27,919"}}]
[null,"Prime AV (€)",{"$f":"Primes!M6","v":{"v":90600000,"d":"90,600,000"}},{"$f":"Primes!N6","v":{"v":122250000,"d":"122,250,000"}},{"$f":"Primes!O6","v":{"v":187000000,"d":"187,000,000"}},{"$f":"Primes!P6","v":{"v":261200000,"d":"261,200,000"}},{"$f":"Primes!Q6","v":{"v":318000000,"d":"318,000,000"}}]
[null,"Nb contrats PER",{"$f":"Primes!M7","v":302},{"$f":"Primes!N7","v":430},{"$f":"Primes!O7","v":700},{"$f":"Primes!P7","v":{"v":1028,"d":"1,028"}},{"$f":"Primes!Q7","v":{"v":1340,"d":"1,340"}}]
[null,"Panier moy. PER (€)",{"$f":"Primes!M8","v":{"v":22913.90728476821,"d":"22,914"}},{"$f":"Primes!N8","v":{"v":23581.39534883721,"d":"23,581"}},{"$f":"Primes!O8","v":{"v":25428.571428571428,"d":"25,429"}},{"$f":"Primes!P8","v":{"v":26303.50194552529,"d":"26,304"}},{"$f":"Primes!Q8","v":{"v":26776.119402985074,"d":"26,776"}}]
[null,"Prime PER (€)",{"$f":"Primes!M9","v":{"v":6920000,"d":"6,920,000"}},{"$f":"Primes!N9","v":{"v":10140000,"d":"10,140,000"}},{"$f":"Primes!O9","v":{"v":17800000,"d":"17,800,000"}},{"$f":"Primes!P9","v":{"v":27040000,"d":"27,040,000"}},{"$f":"Primes!Q9","v":{"v":35880000,"d":"35,880,000"}}]
[null,"Nb contrats Capi",{"$f":"Primes!M10","v":10},{"$f":"Primes!N10","v":15},{"$f":"Primes!O10","v":45},{"$f":"Primes!P10","v":90},{"$f":"Primes!Q10","v":130}]
[null,"Panier moy. Capi (€)",{"$f":"Primes!M11","v":{"v":42000,"d":"42,000"}},{"$f":"Primes!N11","v":{"v":36666.666666666664,"d":"36,667"}},{"$f":"Primes!O11","v":{"v":36666.666666666664,"d":"36,667"}},{"$f":"Primes!P11","v":{"v":36666.666666666664,"d":"36,667"}},{"$f":"Primes!Q11","v":{"v":37692.307692307695,"d":"37,692"}}]
[null,"Prime Capi (€)",{"$f":"Primes!M12","v":{"v":420000,"d":"420,000"}},{"$f":"Primes!N12","v":{"v":550000,"d":"550,000"}},{"$f":"Primes!O12","v":{"v":1650000,"d":"1,650,000"}},{"$f":"Primes!P12","v":{"v":3300000,"d":"3,300,000"}},{"$f":"Primes!Q12","v":{"v":4900000,"d":"4,900,000"}}]
[null,"Total primes (€)",{"$f":"SUM(C16,C19,C22)","v":{"v":97940000,"d":"97,940,000"}},{"$f":"SUM(D16,D19,D22)","v":{"v":132940000,"d":"132,940,000"}},{"$f":"SUM(E16,E19,E22)","v":{"v":206450000,"d":"206,450,000"}},{"$f":"SUM(F16,F19,F22)","v":{"v":291540000,"d":"291,540,000"}},{"$f":"SUM(G16,G19,G22)","v":{"v":358780000,"d":"358,780,000"}}]
[]
[null,"Fonds Général & Fonds Propres"]
[null,"Encours Fonds Général BOB",0,{"$f":"C33","v":{"v":59298967.06893754,"d":"59,298,967"}},{"v":137615177.92732394,"d":"137,615,178"},{"v":256225769.7839623,"d":"256,225,770"},{"v":424307134.29619205,"d":"424,307,134"}]
[null,"+ Prime",{"$f":"SUM(C16,C19) * pct_encours_FG","v":{"v":63388000,"d":"63,388,000"}},{"$f":"SUM(D16,D19) * pct_encours_FG","v":{"v":86053500,"d":"86,053,500"}},{"$f":"SUM(E16,E19) * pct_encours_FG","v":{"v":133120000,"d":"133,120,000"}},{"$f":"SUM(F16,F19) * pct_encours_FG","v":{"v":187356000,"d":"187,356,000"}},{"$f":"SUM(G16,G19) * pct_encours_FG","v":{"v":230022000,"d":"230,022,000"}}]
[null,"- Sinistre (rachats+décès)",{"$f":"-OFFSET(Sinistres!$M$6, COLUMN(C5)-COLUMN($C$5),0)* pct_encours_FG","v":{"v":-4505625.729029578,"d":"(4,505,626)"}},{"$f":"-OFFSET(Sinistres!$M$6, COLUMN(D5)-COLUMN($C$5),0)* pct_encours_FG","v":{"v":-9120669.302821614,"d":"(9,120,669)"}},{"$f":"-OFFSET(Sinistres!$M$6, COLUMN(E5)-COLUMN($C$5),0)* pct_encours_FG","v":{"v":-17276257.389999032,"d":"(17,276,257)"}},{"$f":"-OFFSET(Sinistres!$M$6, COLUMN(F5)-COLUMN($C$5),0)* pct_encours_FG","v":{"v":-24055580.5974861,"d":"(24,055,581)"}},{"$f":"-OFFSET(Sinistres!$M$6, COLUMN(G5)-COLUMN($C$5),0)* pct_encours_FG","v":{"v":-34482788.624453954,"d":"(34,482,789)"}}]
[null,"+ Quote part produit financier FG assuré",{"$f":"C57-C64","v":{"v":725725.2628897104,"d":"725,725"}},{"v":2409916.6765920343,"d":"2,409,917"},{"v":4819988.263576796,"d":"4,819,988"},{"v":8328642.894310653,"d":"8,328,643"},{"v":12869191.640604738,"d":"12,869,192"}]
[null,"- Prélèvement frais assureur",{"$f":"-C60","v":{"v":-132485.34210968344,"d":"(132,485)"}},{"v":-439944.2208788703,"d":"(439,944)"},{"v":-879916.7215454598,"d":"(879,917)"},{"v":-1520441.9076834864,"d":"(1,520,442)"},{"v":-2349345.3299278426,"d":"(2,349,345)"}]
[null,"- Prélèvement frais distributeur",{"$f":"-C62","v":{"v":-176647.12281291126,"d":"(176,647)"}},{"v":-586592.2945051604,"d":"(586,592)"},{"v":-1173222.2953939466,"d":"(1,173,222)"},{"v":-2027255.8769113154,"d":"(2,027,256)"},{"v":-3132460.43990379,"d":"(3,132,460)"}]
[null,"= Collecte nette FG",{"$f":"SUM(C27:C31)","v":{"v":59298967.06893754,"d":"59,298,967"}},{"v":78316210.8583864,"d":"78,316,211"},{"v":118610591.85663836,"d":"118,610,592"},{"v":168081364.51222974,"d":"168,081,365"},{"v":202926597.24631914,"d":"202,926,597"}]
[null,"Encours Fonds Général EOB",{"$f":"C32+C26","v":{"v":59298967.06893754,"d":"59,298,967"}},{"v":137615177.92732394,"d":"137,615,178"},{"v":256225769.7839623,"d":"256,225,770"},{"v":424307134.29619205,"d":"424,307,134"},{"v":627233731.5425112,"d":"627,233,732"}]
[null,"Encours Moyen FG pour calcul frais et performance",{"$f":"(C26+SUM(C27:C28)/2)","v":{"v":29441187.13548521,"d":"29,441,187"}},{"v":97765382.41752674,"d":"97,765,382"},{"v":195537049.23232442,"d":"195,537,049"},{"v":337875979.48521924,"d":"337,875,979"},{"v":522076739.98396504,"d":"522,076,740"}]
[]
[null,"UC"]
[null,"Encours UC BOB",0,{"$f":"C44","v":{"v":32705850.55246595,"d":"32,705,851"}},{"v":76619839.45915239,"d":"76,619,839"},{"v":144569480.42423117,"d":"144,569,480"},{"v":242667151.6624575,"d":"242,667,152"}]
[null,"+ Prime",{"$f":"SUM(C16,C19) * (1-pct_encours_FG) + C22","v":{"v":34552000,"d":"34,552,000"}},{"$f":"SUM(D16,D19) * (1-pct_encours_FG) + D22","v":{"v":46886500,"d":"46,886,500"}},{"$f":"SUM(E16,E19) * (1-pct_encours_FG) + E22","v":{"v":73330000,"d":"73,330,000"}},{"$f":"SUM(F16,F19) * (1-pct_encours_FG) + F22","v":{"v":104184000,"d":"104,184,000"}},{"$f":"SUM(G16,G19) * (1-pct_encours_FG) + G22","v":{"v":128757999.99999999,"d":"128,758,000"}}]
[null,"- Sinistre (rachats+décès)",{"$f":"-OFFSET(Sinistres!$M$6, COLUMN(C5)-COLUMN($C$5),0)* (1-pct_encours_FG)","v":{"v":-2426106.1617851574,"d":"(2,426,106)"}},{"$f":"-OFFSET(Sinistres!$M$6, COLUMN(D5)-COLUMN($C$5),0)* (1-pct_encours_FG)","v":{"v":-4911129.624596253,"d":"(4,911,130)"}},{"$f":"-OFFSET(Sinistres!$M$6, COLUMN(E5)-COLUMN($C$5),0)* (1-pct_encours_FG)","v":{"v":-9302600.1330764,"d":"(9,302,600)"}},{"$f":"-OFFSET(Sinistres!$M$6, COLUMN(F5)-COLUMN($C$5),0)* (1-pct_encours_FG)","v":{"v":-12953004.937107898,"d":"(12,953,005)"}},{"$f":"-OFFSET(Sinistres!$M$6, COLUMN(G5)-COLUMN($C$5),0)* (1-pct_encours_FG)","v":{"v":-18567655.413167514,"d":"(18,567,655)"}}]
[null,"+ Plus-value des UC / Ajustement ACAV",{"$f":"C45* rdt_UC","v":{"v":738979.8887502669,"d":"738,980"}},{"$f":"D45* rdt_UC","v":{"v":2470184.5351103563,"d":"2,470,185"}},{"$f":"E45* rdt_UC","v":{"v":4997713.138142065,"d":"4,997,713"}},{"$f":"F45* rdt_UC","v":{"v":8749507.457095422,"d":"8,749,507"}},{"$f":"G45* rdt_UC","v":{"v":13698630.154170964,"d":"13,698,630"}}]
[null,"- Prélèvement frais assureur",{"$f":"-C61","v":{"v":-62645.49298451895,"d":"(62,645)"}},{"v":-209404.7893866545,"d":"(209,405)"},{"v":-423670.80363119533,"d":"(423,671)"},{"v":-741721.414027141,"d":"(741,721)"},{"v":-1161273.0634279074,"d":"(1,161,273)"}]
[null,"- Prélèvement frais distributeur",{"$f":"-C63","v":{"v":-96377.68151464453,"d":"(96,378)"}},{"v":-322161.21444100694,"d":"(322,161)"},{"v":-651801.2363556852,"d":"(651,801)"},{"v":-1141109.8677340632,"d":"(1,141,110)"},{"v":-1786573.9437352424,"d":"(1,786,574)"}]
[null,"= Collecte nette",{"$f":"SUM(C38:C42)","v":{"v":32705850.55246595,"d":"32,705,851"}},{"v":43913988.90668644,"d":"43,913,989"},{"v":67949640.96507877,"d":"67,949,641"},{"v":98097671.23822632,"d":"98,097,671"},{"v":120941127.73384027,"d":"120,941,128"}]
[null,"Encours UC EOB",{"$f":"C43+C37","v":{"v":32705850.55246595,"d":"32,705,851"}},{"v":76619839.45915239,"d":"76,619,839"},{"v":144569480.42423117,"d":"144,569,480"},{"v":242667151.6624575,"d":"242,667,152"},{"v":363608279.39629775,"d":"363,608,279"}]
[null,"Encours Moyen UC pour calcul frais & performance",{"$f":"(C37+SUM(C38:C39)/2)","v":{"v":16062946.919107422,"d":"16,062,947"}},{"v":53693535.74016783,"d":"53,693,536"},{"v":108633539.39261419,"d":"108,633,539"},{"v":190184977.9556772,"d":"190,184,978"},{"v":297762323.9558737,"d":"297,762,324"}]
[null,"    Flux Produits Structurés (New Money et recyclage)"]
[null,"    Flux Private Assets"]
[null,"Encours Nantissement / Crédit Lombard"]
[]
[null,"Encours Total cumulés EOB",{"$f":"C33+C44","v":{"v":92004817.62140349,"d":"92,004,818"}},{"v":214235017.38647634,"d":"214,235,017"},{"v":400795250.2081935,"d":"400,795,250"},{"v":666974285.9586495,"d":"666,974,286"},{"v":990842010.9388089,"d":"990,842,011"}]
[]
[null,"Produits"]
[null,"Intérêts du Fonds Général "]
[null,"+ Produits financiers brut Fonds Général",{"$f":"C34*OFFSET(rdt_FG, COLUMN(C5)-COLUMN($C$5),0)","v":{"v":883235.6140645562,"d":"883,236"}},{"$f":"(D26+SUM(D27:D28)/2)*OFFSET(rdt_FG, COLUMN(D5)-COLUMN($C$5),0)","v":{"v":2932961.472525802,"d":"2,932,961"}},{"$f":"(E26+SUM(E27:E28)/2)*OFFSET(rdt_FG, COLUMN(E5)-COLUMN($C$5),0)","v":{"v":5866111.476969732,"d":"5,866,111"}},{"$f":"(F26+SUM(F27:F28)/2)*OFFSET(rdt_FG, COLUMN(F5)-COLUMN($C$5),0)","v":{"v":10136279.384556577,"d":"10,136,279"}},{"$f":"(G26+SUM(G27:G28)/2)*OFFSET(rdt_FG, COLUMN(G5)-COLUMN($C$5),0)","v":{"v":15662302.19951895,"d":"15,662,302"}}]
[null,"- Frais mandat et dépositaire FG",{"$f":"-frais_mandat_FG*C34","v":{"v":-29441.187135485212,"d":"(29,441)"}},{"$f":"-frais_mandat_FG*D34","v":{"v":-97765.38241752674,"d":"(97,765)"}},{"$f":"-frais_mandat_FG*E34","v":{"v":-195537.04923232444,"d":"(195,537)"}},{"$f":"-frais_mandat_FG*F34","v":{"v":-337875.9794852192,"d":"(337,876)"}},{"$f":"-frais_mandat_FG*G34","v":{"v":-522076.73998396506,"d":"(522,077)"}}]
[null,"- Intérets dette subordonnée",0,{"$f":"-C147*10%*Quote_part_PB_Fonds_General","v":0},{"$f":"-D147*10%*Quote_part_PB_Fonds_General","v":0},{"$f":"-E147*10%*Quote_part_PB_Fonds_General","v":0},{"$f":"-F147*10%*Quote_part_PB_Fonds_General","v":0}]
[null,"= Produits financiers Fonds Général (N)",{"$f":"SUM(C54:C56)","v":{"v":853794.426929071,"d":"853,794"}},{"v":2835196.0901082754,"d":"2,835,196"},{"v":5670574.427737407,"d":"5,670,574"},{"v":9798403.405071357,"d":"9,798,403"},{"v":15140225.459534986,"d":"15,140,225"}]
[]
[null,"Produits Assurantiels"]
[null,"+ Frais de Gestion Assureur (FG)",{"$f":"frais_gestion_Euro*C34","v":{"v":132485.34210968344,"d":"132,485"}},{"$f":"frais_gestion_Euro*D34","v":{"v":439944.2208788703,"d":"439,944"}},{"$f":"frais_gestion_Euro*E34","v":{"v":879916.7215454598,"d":"879,917"}},{"$f":"frais_gestion_Euro*F34","v":{"v":1520441.9076834864,"d":"1,520,442"}},{"$f":"frais_gestion_Euro*G34","v":{"v":2349345.3299278426,"d":"2,349,345"}}]
[null,"+ Frais de Gestion Assureur (UC)",{"$f":"frais_gestion_UC*C45","v":{"v":62645.49298451895,"d":"62,645"}},{"$f":"frais_gestion_UC*D45","v":{"v":209404.7893866545,"d":"209,405"}},{"$f":"frais_gestion_UC*E45","v":{"v":423670.80363119533,"d":"423,671"}},{"$f":"frais_gestion_UC*F45","v":{"v":741721.414027141,"d":"741,721"}},{"$f":"frais_gestion_UC*G45","v":{"v":1161273.0634279074,"d":"1,161,273"}}]
[null,"+ Frais de Distribution FG (reversés aux distributeurs)",{"$f":"frais_distribution_FG*C34","v":{"v":176647.12281291126,"d":"176,647"}},{"$f":"frais_distribution_FG*D34","v":{"v":586592.2945051604,"d":"586,592"}},{"$f":"frais_distribution_FG*E34","v":{"v":1173222.2953939466,"d":"1,173,222"}},{"$f":"frais_distribution_FG*F34","v":{"v":2027255.8769113154,"d":"2,027,256"}},{"$f":"frais_distribution_FG*G34","v":{"v":3132460.43990379,"d":"3,132,460"}}]
[null,"+ Frais de Distribution UC (reversés aux distributeurs)",{"$f":"frais_distribution_UC*C45","v":{"v":96377.68151464453,"d":"96,378"}},{"$f":"frais_distribution_UC*D45","v":{"v":322161.21444100694,"d":"322,161"}},{"$f":"frais_distribution_UC*E45","v":{"v":651801.2363556852,"d":"651,801"}},{"$f":"frais_distribution_UC*F45","v":{"v":1141109.8677340632,"d":"1,141,110"}},{"$f":"frais_distribution_UC*G45","v":{"v":1786573.9437352424,"d":"1,786,574"}}]
[null,"+ Quote-part produits financiers Fonds Général",{"$f":"Quote_part_PB_Fonds_General*C57","v":{"v":128069.16403936064,"d":"128,069"}},{"$f":"Quote_part_PB_Fonds_General*D57","v":{"v":425279.4135162413,"d":"425,279"}},{"$f":"Quote_part_PB_Fonds_General*E57","v":{"v":850586.1641606111,"d":"850,586"}},{"$f":"Quote_part_PB_Fonds_General*F57","v":{"v":1469760.5107607036,"d":"1,469,761"}},{"$f":"Quote_part_PB_Fonds_General*G57","v":{"v":2271033.818930248,"d":"2,271,034"}}]
[null,"+ Primes encaissées Garantie Prévoyance"]
[null,"+ Intérêts nantissement / crédit lombard"]
[null,"+ Prime Garantie Plancher Optionnelle",0,0,0,0,0]
[null,"Brokerage"]
[null,"+ Commission brokerage Produits Structurés",{"$f":"commission_upfront_produits_structures*C50*OFFSET(pct_encours_produits_structures, COLUMN(C5)-COLUMN($C$5),0)","v":{"v":23001.204405350873,"d":"23,001"}},{"$f":"commission_upfront_produits_structures*D50*OFFSET(pct_encours_produits_structures, COLUMN(D5)-COLUMN($C$5),0)","v":{"v":53558.754346619084,"d":"53,559"}},{"$f":"commission_upfront_produits_structures*E50*OFFSET(pct_encours_produits_structures, COLUMN(E5)-COLUMN($C$5),0)","v":{"v":100198.81255204837,"d":"100,199"}},{"$f":"commission_upfront_produits_structures*F50*OFFSET(pct_encours_produits_structures, COLUMN(F5)-COLUMN($C$5),0)","v":{"v":166743.5714896624,"d":"166,744"}},{"$f":"commission_upfront_produits_structures*G50*OFFSET(pct_encours_produits_structures, COLUMN(G5)-COLUMN($C$5),0)","v":{"v":247710.50273470223,"d":"247,711"}}]
[null,"+ Commission primaire non-coté",{"$f":"commission_upfront_private_assets*C50*OFFSET(pct_encours_private_assets, COLUMN(C5)-COLUMN($C$5),0)","v":{"v":13800.722643210524,"d":"13,801"}},{"$f":"commission_upfront_private_assets*D50*OFFSET(pct_encours_private_assets, COLUMN(D5)-COLUMN($C$5),0)","v":{"v":32135.252607971455,"d":"32,135"}},{"$f":"commission_upfront_private_assets*E50*OFFSET(pct_encours_private_assets, COLUMN(E5)-COLUMN($C$5),0)","v":{"v":60119.28753122903,"d":"60,119"}},{"$f":"commission_upfront_private_assets*F50*OFFSET(pct_encours_private_assets, COLUMN(F5)-COLUMN($C$5),0)","v":{"v":100046.14289379743,"d":"100,046"}},{"$f":"commission_upfront_private_assets*G50*OFFSET(pct_encours_private_assets, COLUMN(G5)-COLUMN($C$5),0)","v":{"v":148626.30164082136,"d":"148,626"}}]
[null,"+ Commission secondaire non-coté"]
[null,"Autres"]
[null,"+ Référencement AM"]
[null,"+ Publicité vitrines"]
[null,"+ Intérêts Fonds Propres LT",{"$f":"C156*OFFSET(rdt_FP, COLUMN(C5)-COLUMN($C$5),0)","v":{"v":420000,"d":"420,000"}},{"$f":"D156*OFFSET(rdt_FP, COLUMN(D5)-COLUMN($C$5),0)","v":{"v":372452.28862154006,"d":"372,452"}},{"$f":"E156*OFFSET(rdt_FP, COLUMN(E5)-COLUMN($C$5),0)","v":{"v":798587.4737747598,"d":"798,587"}},{"$f":"F156*OFFSET(rdt_FP, COLUMN(F5)-COLUMN($C$5),0)","v":{"v":805753.8519526006,"d":"805,754"}},{"$f":"G156*OFFSET(rdt_FP, COLUMN(G5)-COLUMN($C$5),0)","v":{"v":840817.4470781309,"d":"840,817"}}]
[null,"+ Tréso opérationnelle",{"$f":"C157*1%","v":{"v":10000,"d":"10,000"}},{"v":10000,"d":"10,000"},{"v":10000,"d":"10,000"},{"v":10000,"d":"10,000"},{"v":10000,"d":"10,000"}]
[null,"+ Production immobilisée"]
[]
[null,"= Total produits",{"$f":"SUM(C60:C77)","v":{"v":1063026.7305096802,"d":"1,063,027"}},{"v":2451528.2283040644,"d":"2,451,528"},{"v":4948102.7949449355,"d":"4,948,103"},{"v":7982833.143452769,"d":"7,982,833"},{"v":11947840.847378684,"d":"11,947,841"}]
[null,"= Total produits (sans frais de distribution)",{"$f":"C79-SUM(C62:C63)","v":{"v":790001.9261821244,"d":"790,002"}},{"v":1542774.719357897,"d":"1,542,775"},{"v":3123079.2631953037,"d":"3,123,079"},{"v":4814467.398807391,"d":"4,814,467"},{"v":7028806.463739652,"d":"7,028,806"}]
[null,"en % encours (sans frais de distrib) = RoA",{"$f":"C80/C50","v":{"v":0.008586527821107737,"d":"0.86%"}},{"v":0.007201319084894313,"d":"0.72%"},{"v":0.007792206273834376,"d":"0.78%"},{"v":7.218370333254307E-3,"d":"0.72%"},{"v":0.007093771142263091,"d":"0.71%"}]
[]
[null,"Charges"]
[null,"Charges variables"]
[null,"+ Dépositaire (part FG)",0,0,0,0,0]
[null,"+ Dépositaire (part UC)",{"$f":"MAX(40000,frais_depositaire*C45)","v":{"v":40000,"d":"40,000"}},{"$f":"MAX(40000,frais_depositaire*D45)","v":{"v":40000,"d":"40,000"}},{"$f":"MAX(40000,frais_depositaire*E45)","v":{"v":40000,"d":"40,000"}},{"$f":"MAX(40000,frais_depositaire*F45)","v":{"v":40000,"d":"40,000"}},{"$f":"MAX(40000,frais_depositaire*G45)","v":{"v":59552.464791174745,"d":"59,552"}}]
[null,"+ Commission frais de gestion du distributeur UC & FG",{"$f":"SUM(C62:C63)","v":{"v":273024.8043275558,"d":"273,025"}},{"v":908753.5089461673,"d":"908,754"},{"v":1825023.5317496317,"d":"1,825,024"},{"v":3168365.7446453786,"d":"3,168,366"},{"v":4919034.383639032,"d":"4,919,034"}]
[null,"+ Commission Apporteur Partenariats",{"$f":"'Apporteur partenariats'!B17","v":{"v":48750,"d":"48,750"}},{"$f":"'Apporteur partenariats'!C17","v":{"v":73125,"d":"73,125"}},{"$f":"'Apporteur partenariats'!D17","v":{"v":87750,"d":"87,750"}},{"$f":"'Apporteur partenariats'!E17","v":{"v":48750,"d":"48,750"}},{"$f":"'Apporteur partenariats'!F17","v":{"v":64593.75,"d":"64,594"}}]
[null,"+ Commission B-Life tech",{"$f":"(Prestataires!C15*C50)","v":{"v":46002.408810701745,"d":"46,002"}},{"$f":"(Prestataires!C15*D50)","v":{"v":107117.50869323817,"d":"107,118"}},{"$f":"(Prestataires!C15*E50)","v":{"v":200397.62510409675,"d":"200,398"}},{"$f":"(Prestataires!C15*F50)","v":{"v":333487.14297932474,"d":"333,487"}},{"$f":"(Prestataires!C15*G50)","v":{"v":495421.00546940445,"d":"495,421"}}]
[null,"+ RTO, Trading (proxy sur collecte)",{"$f":"frais_RTO*C43","v":{"v":3270.585055246595,"d":"3,271"}},{"$f":"frais_RTO*D43","v":{"v":4391.3988906686445,"d":"4,391"}},{"$f":"frais_RTO*E43","v":{"v":6794.964096507877,"d":"6,795"}},{"$f":"frais_RTO*F43","v":{"v":9809.767123822632,"d":"9,810"}},{"$f":"frais_RTO*G43","v":{"v":12094.112773384028,"d":"12,094"}}]
[null,"+ Comptabilité assurantielle/cac",0,0,0,0,0]
[null,{"$f":"\"+ Réassurance Garantie Plancher (\" & frais_garantie_plancher *10000 & \" bp)\"","v":"+ Réassurance Garantie Plancher (5 bp)"}]
[null,"+  C3S",0,{"$f":"IF(SUM(D27,D38)>19000000,taxe_C3S*(SUM(D27,D38)-19000000),0)","v":{"v":182304,"d":"182,304"}},{"$f":"IF(SUM(E27,E38)>19000000,taxe_C3S*(SUM(E27,E38)-19000000),0)","v":{"v":299920,"d":"299,920"}},{"$f":"IF(SUM(F27,F38)>19000000,taxe_C3S*(SUM(F27,F38)-19000000),0)","v":{"v":436064,"d":"436,064"}},{"$f":"IF(SUM(G27,G38)>19000000,taxe_C3S*(SUM(G27,G38)-19000000),0)","v":{"v":543648,"d":"543,648"}}]
[null,"+ Contribution pour frais de contrôle ACPR",{"$f":"frais_ACPR*SUM(D27,D38)","v":{"v":30576.2,"d":"30,576"}},{"$f":"frais_ACPR*SUM(E27,E38)","v":{"v":47483.5,"d":"47,484"}},{"$f":"frais_ACPR*SUM(F27,F38)","v":{"v":67054.2,"d":"67,054"}},{"$f":"frais_ACPR*SUM(G27,G38)","v":{"v":82519.40000000001,"d":"82,519"}},{"$f":"frais_ACPR*SUM(H27,H38)","v":0}]
[null,"+ Cotisations FGAP FG",0,0,0,{"$f":"frais_FGAP*F33","v":{"v":212153.56714809602,"d":"212,154"}},{"$f":"frais_FGAP*G33","v":{"v":313616.86577125563,"d":"313,617"}}]
[null,"+ Cotisations FGAP UC",0,0,0,{"$f":"frais_FGAP*F44/4","v":{"v":30333.393957807188,"d":"30,333"}},{"$f":"frais_FGAP*G44/4","v":{"v":45451.03492453722,"d":"45,451"}}]
[null,"- Reprise cotisation FGAP N-1",0,{"$f":"SUM(C95:C96)","v":0},0,{"$f":"-SUM(E95:E96)","v":0},{"v":-242486.9611059032,"d":"(242,487)"}]
[]
[null,"= Charges variables",{"$f":"SUM(C85:C97)","v":{"v":441623.9981935042,"d":"441,624"}},{"v":1363174.9165300743,"d":"1,363,175"},{"v":2526940.3209502366,"d":"2,526,940"},{"v":4361483.0158544285,"d":"4,361,483"},{"v":6210924.656262884,"d":"6,210,925"}]
[null,"= Charges variables (sans frais de distribution)",{"$f":"C99-C87","v":{"v":168599.19386594836,"d":"168,599"}},{"v":454421.407583907,"d":"454,421"},{"v":701916.7892006049,"d":"701,917"},{"v":1193117.27120905,"d":"1,193,117"},{"v":1291890.272623852,"d":"1,291,890"}]
[null,"en % encours (sans retro)",{"$f":"C100/C50","v":{"v":1.8325039734302607E-3,"d":"0.18%"}},{"v":2.121135065254708E-3,"d":"0.21%"},{"v":1.7513101486007969E-3,"d":"0.18%"},{"v":1.7888504794366538E-3,"d":"0.18%"},{"v":0.00130383074028099,"d":"0.13%"}]
[]
[null,"Charges fixes"]
[null,"+ Personnel + Gouvernance + Loyer + Bureautique",{"$f":"SUM(RH!P15:P16)","v":{"v":1713112.4449315069,"d":"1,713,112"}},{"$f":"OFFSET(RH!$P$16, COLUMN(D5)-COLUMN($C$5),0)","v":{"v":1374241,"d":"1,374,241"}},{"$f":"OFFSET(RH!$P$16, COLUMN(E5)-COLUMN($C$5),0)","v":{"v":1656241,"d":"1,656,241"}},{"$f":"OFFSET(RH!$P$16, COLUMN(F5)-COLUMN($C$5),0)","v":{"v":1910041,"d":"1,910,041"}},{"$f":"OFFSET(RH!$P$16, COLUMN(G5)-COLUMN($C$5),0)","v":{"v":2051041,"d":"2,051,041"}}]
[null,"# ETP",{"$f":"OFFSET(nb_salariés, COLUMN(C5)-COLUMN($C$5),0)","v":{"v":12.5,"d":"13"}},{"$f":"OFFSET(nb_salariés, COLUMN(D5)-COLUMN($C$5),0)","v":{"v":14.5,"d":"15"}},{"$f":"OFFSET(nb_salariés, COLUMN(E5)-COLUMN($C$5),0)","v":{"v":17.5,"d":"18"}},{"$f":"OFFSET(nb_salariés, COLUMN(F5)-COLUMN($C$5),0)","v":{"v":20.5,"d":"21"}},{"$f":"OFFSET(nb_salariés, COLUMN(G5)-COLUMN($C$5),0)","v":{"v":22.5,"d":"23"}}]
[null,"Coût moyen / salarié (k€)",{"$f":"SUM(C104)/C105*0.001","v":{"v":137.04899559452056,"d":"137"}},{"v":94.77524137931034,"d":"95"},{"v":94.64234285714285,"d":"95"},{"v":93.17273170731707,"d":"93"},{"v":91.15737777777777,"d":"91"}]
[null,"SG&A"]
[null,"+ Marketing",{"$f":"frais_marketing*(1+taux_inflation_charges)^(C3-1)","v":{"v":60000,"d":"60,000"}},{"$f":"frais_marketing*(1+taux_inflation_charges)^(D3-1)","v":{"v":60600,"d":"60,600"}},{"$f":"frais_marketing*(1+taux_inflation_charges)^(E3-1)","v":{"v":61206,"d":"61,206"}},{"$f":"frais_marketing*(1+taux_inflation_charges)^(F3-1)","v":{"v":61818.06,"d":"61,818"}},{"$f":"frais_marketing*(1+taux_inflation_charges)^(G3-1)","v":{"v":62436.240600000005,"d":"62,436"}}]
[null,"+ Communication",{"$f":"frais_communication*(1+taux_inflation_charges)^(C3-1)","v":{"v":100000,"d":"100,000"}},{"$f":"frais_communication*(1+taux_inflation_charges)^(D3-1)","v":{"v":101000,"d":"101,000"}},{"$f":"frais_communication*(1+taux_inflation_charges)^(E3-1)","v":{"v":102010,"d":"102,010"}},{"$f":"frais_communication*(1+taux_inflation_charges)^(F3-1)","v":{"v":103030.09999999999,"d":"103,030"}},{"$f":"frais_communication*(1+taux_inflation_charges)^(G3-1)","v":{"v":104060.401,"d":"104,060"}}]
[null,"+ Fournisseurs données / transparisation",{"$f":"data_provider *(1+taux_inflation_charges)^(C3-1)","v":{"v":100000,"d":"100,000"}},{"$f":"data_provider *(1+taux_inflation_charges)^(D3-1)","v":{"v":101000,"d":"101,000"}},{"$f":"data_provider *(1+taux_inflation_charges)^(E3-1)","v":{"v":102010,"d":"102,010"}},{"$f":"data_provider *(1+taux_inflation_charges)^(F3-1)","v":{"v":103030.09999999999,"d":"103,030"}},{"$f":"data_provider *(1+taux_inflation_charges)^(G3-1)","v":{"v":104060.401,"d":"104,060"}}]
[null,"+ Logiciels",{"$f":"'Logiciels pro'!$C$2*(1+taux_inflation_charges)^(C3-1)","v":{"v":39214,"d":"39,214"}},{"$f":"'Logiciels pro'!$C$2*(1+taux_inflation_charges)^(D3-1)","v":{"v":39606.14,"d":"39,606"}},{"$f":"'Logiciels pro'!$C$2*(1+taux_inflation_charges)^(E3-1)","v":{"v":40002.2014,"d":"40,002"}},{"$f":"'Logiciels pro'!$C$2*(1+taux_inflation_charges)^(F3-1)","v":{"v":40402.223414,"d":"40,402"}},{"$f":"'Logiciels pro'!$C$2*(1+taux_inflation_charges)^(G3-1)","v":{"v":40806.24564814,"d":"40,806"}}]
[null,"+ Location Cloud",{"$f":"frais_cloud*(1+taux_inflation_charges)^(C3-1)","v":{"v":24000,"d":"24,000"}},{"$f":"C112+6000","v":{"v":30000,"d":"30,000"}},{"v":36000,"d":"36,000"},{"v":42000,"d":"42,000"},{"v":48000,"d":"48,000"}]
[null,"+ Frais généraux (dont déplacement)",{"$f":"frais_generaux *(1+taux_inflation_charges)^(C3-1)","v":{"v":30000,"d":"30,000"}},{"$f":"frais_generaux *(1+taux_inflation_charges)^(D3-1)","v":{"v":30300,"d":"30,300"}},{"$f":"frais_generaux *(1+taux_inflation_charges)^(E3-1)","v":{"v":30603,"d":"30,603"}},{"$f":"frais_generaux *(1+taux_inflation_charges)^(F3-1)","v":{"v":30909.03,"d":"30,909"}},{"$f":"frais_generaux *(1+taux_inflation_charges)^(G3-1)","v":{"v":31218.120300000002,"d":"31,218"}}]
[null,"+ Frais holding",{"$f":"frais_holding*(1+taux_inflation_charges)^(C3-1)","v":{"v":5000,"d":"5,000"}},{"$f":"frais_holding*(1+taux_inflation_charges)^(D3-1)","v":{"v":5050,"d":"5,050"}},{"$f":"frais_holding*(1+taux_inflation_charges)^(E3-1)","v":{"v":5100.5,"d":"5,101"}},{"$f":"frais_holding*(1+taux_inflation_charges)^(F3-1)","v":{"v":5151.504999999999,"d":"5,152"}},{"$f":"frais_holding*(1+taux_inflation_charges)^(G3-1)","v":{"v":5203.02005,"d":"5,203"}}]
[null,"+ Juridique",{"$f":"frais_juridique *(1+taux_inflation_charges)^(C3-1)","v":{"v":30000,"d":"30,000"}},{"$f":"C115+6000","v":{"v":36000,"d":"36,000"}},{"v":42000,"d":"42,000"},{"v":48000,"d":"48,000"},{"v":54000,"d":"54,000"}]
[null,"+ Expert-Comptable",{"$f":"frais_expert_comptable*(1+taux_inflation_charges)^(C3-1)","v":{"v":25000,"d":"25,000"}},{"$f":"frais_expert_comptable*(1+taux_inflation_charges)^(D3-1)","v":{"v":25250,"d":"25,250"}},{"$f":"frais_expert_comptable*(1+taux_inflation_charges)^(E3-1)","v":{"v":25502.5,"d":"25,503"}},{"$f":"frais_expert_comptable*(1+taux_inflation_charges)^(F3-1)","v":{"v":25757.524999999998,"d":"25,758"}},{"$f":"frais_expert_comptable*(1+taux_inflation_charges)^(G3-1)","v":{"v":26015.10025,"d":"26,015"}}]
[null,"+ CAC (cf charges variables aussi)",{"$f":"frais_CAC_Compta*(1+taux_inflation_charges)^(C3-1)","v":{"v":50000,"d":"50,000"}},{"$f":"frais_CAC_Compta*(1+taux_inflation_charges)^(D3-1)","v":{"v":50500,"d":"50,500"}},{"$f":"frais_CAC_Compta*(1+taux_inflation_charges)^(E3-1)","v":{"v":51005,"d":"51,005"}},{"$f":"frais_CAC_Compta*(1+taux_inflation_charges)^(F3-1)","v":{"v":51515.049999999996,"d":"51,515"}},{"$f":"frais_CAC_Compta*(1+taux_inflation_charges)^(G3-1)","v":{"v":52030.2005,"d":"52,030"}}]
[null,"+ Audit",{"$f":"frais_audit*(1+taux_inflation_charges)^(C3-1)","v":{"v":30000,"d":"30,000"}},{"$f":"frais_audit*(1+taux_inflation_charges)^(D3-1)","v":{"v":30300,"d":"30,300"}},{"$f":"frais_audit*(1+taux_inflation_charges)^(E3-1)","v":{"v":30603,"d":"30,603"}},{"$f":"frais_audit*(1+taux_inflation_charges)^(F3-1)","v":{"v":30909.03,"d":"30,909"}},{"$f":"frais_audit*(1+taux_inflation_charges)^(G3-1)","v":{"v":31218.120300000002,"d":"31,218"}}]
[null,"+ Prestations B-Life tech "]
[]
[null,"= Charges fixes",{"$f":"SUM(C104,C108:C119)","v":{"v":2206326.444931507,"d":"2,206,326"}},{"v":1883847.14,"d":"1,883,847"},{"v":2182283.2013999997,"d":"2,182,283"},{"v":2452563.6234139996,"d":"2,452,564"},{"v":2610088.8496481404,"d":"2,610,089"}]
[null,"en % encours",{"$f":"C121/C50","v":{"v":0.023980553431565518,"d":"2.40%"}},{"v":0.008793367036732242,"d":"0.88%"},{"v":0.00544488289286465,"d":"0.54%"},{"v":3.6771486923051354E-3,"d":"0.37%"},{"v":2.6342129429646585E-3,"d":"0.26%"}]
[]
[null,"= Charges variables + fixes",{"$f":"C99+C121","v":{"v":2647950.4431250114,"d":"2,647,950"}},{"v":3247022.056530074,"d":"3,247,022"},{"v":4709223.522350237,"d":"4,709,224"},{"v":6814046.639268428,"d":"6,814,047"},{"v":8821013.505911024,"d":"8,821,014"}]
[null,"= Charges variables (sans frais de distribution) + fixes",{"$f":"C124-C87","v":{"v":2374925.6387974555,"d":"2,374,926"}},{"v":2338268.547583907,"d":"2,338,269"},{"v":2884199.990600605,"d":"2,884,200"},{"v":3645680.8946230495,"d":"3,645,681"},{"v":3901979.1222719923,"d":"3,901,979"}]
[null,"en % encours",{"$f":"C125/C50","v":{"v":0.02581305740499578,"d":"2.58%"}},{"v":0.010914502101986951,"d":"1.09%"},{"v":0.007196193041465448,"d":"0.72%"},{"v":0.005465999171741789,"d":"0.55%"},{"v":0.003938043683245649,"d":"0.39%"}]
[]
[null,"P&L synthétique & Cash Flow Projections"]
[]
[null,"Total produits",{"$f":"C79","v":{"v":1063026.7305096802,"d":"1,063,027"}},{"v":2451528.2283040644,"d":"2,451,528"},{"v":4948102.7949449355,"d":"4,948,103"},{"v":7982833.143452769,"d":"7,982,833"},{"v":11947840.847378684,"d":"11,947,841"}]
[null,"Total produits (sans frais de distribution)",{"$f":"C80","v":{"v":790001.9261821244,"d":"790,002"}},{"v":1542774.719357897,"d":"1,542,775"},{"v":3123079.2631953037,"d":"3,123,079"},{"v":4814467.398807391,"d":"4,814,467"},{"v":7028806.463739652,"d":"7,028,806"}]
[null,"Charges variables",{"$f":"C99","v":{"v":441623.9981935042,"d":"441,624"}},{"v":1363174.9165300743,"d":"1,363,175"},{"v":2526940.3209502366,"d":"2,526,940"},{"v":4361483.0158544285,"d":"4,361,483"},{"v":6210924.656262884,"d":"6,210,925"}]
[null,"Charges variables (sans frais de distribution)",{"$f":"C100","v":{"v":168599.19386594836,"d":"168,599"}},{"v":454421.407583907,"d":"454,421"},{"v":701916.7892006049,"d":"701,917"},{"v":1193117.27120905,"d":"1,193,117"},{"v":1291890.272623852,"d":"1,291,890"}]
[null,"Marge brute ",{"$f":"C130-C132","v":{"v":621402.732316176,"d":"621,403"}},{"v":1088353.31177399,"d":"1,088,353"},{"v":2421162.473994699,"d":"2,421,162"},{"v":3621350.1275983406,"d":"3,621,350"},{"v":5736916.1911158,"d":"5,736,916"}]
[]
[null,"Charges fixes",{"$f":"-C121","v":{"v":-2206326.444931507,"d":"(2,206,326)"}},{"v":-1883847.14,"d":"(1,883,847)"},{"v":-2182283.2013999997,"d":"(2,182,283)"},{"v":-2452563.6234139996,"d":"(2,452,564)"},{"v":-2610088.8496481404,"d":"(2,610,089)"}]
[]
[null,"Amortissements"]
[]
[null,"+ Résultat courant avant impôt",{"$f":"SUM(C134,C136,C138)","v":{"v":-1584923.7126153312,"d":"(1,584,924)"}},{"v":-795493.8282260098,"d":"(795,494)"},{"v":238879.27259469917,"d":"238,879"},{"v":1168786.504184341,"d":"1,168,787"},{"v":3126827.34146766,"d":"3,126,827"}]
[null,"- IS",{"$f":"-IF(SUM($C$140:C140)>0,1,0)*taux_impot_societe*MIN(C140, SUM($C$140:C140))","v":0},{"$f":"-IF(SUM($C$140:D140)>0,1,0)*taux_impot_societe*MIN(D140, SUM($C$140:D140))","v":0},{"$f":"-IF(SUM($C$140:E140)>0,1,0)*taux_impot_societe*MIN(E140, SUM($C$140:E140))","v":0},{"$f":"-IF(SUM($C$140:F140)>0,1,0)*taux_impot_societe*MIN(F140, SUM($C$140:F140))","v":0},{"$f":"-IF(SUM($C$140:G140)>0,1,0)*taux_impot_societe*MIN(G140, SUM($C$140:G140))","v":{"v":-430815.1154810719,"d":"(430,815)"}}]
[null,"= Résultat net",{"$f":"C140+C141","v":{"v":-1584923.7126153312,"d":"(1,584,924)"}},{"v":-795493.8282260098,"d":"(795,494)"},{"v":238879.27259469917,"d":"238,879"},{"v":1168786.504184341,"d":"1,168,787"},{"v":2696012.225986588,"d":"2,696,012"}]
[]
[null,"+ Résultat net",{"$f":"C142","v":{"v":-1584923.7126153312,"d":"(1,584,924)"}},{"v":-795493.8282260098,"d":"(795,494)"},{"v":238879.27259469917,"d":"238,879"},{"v":1168786.504184341,"d":"1,168,787"},{"v":2696012.225986588,"d":"2,696,012"}]
[null,"- Dividende versé",0,0,0,0,0]
[null,"+ Emission dette subordonnée (10% intérêt)",0,0,0,0,0]
[null,"Stock de dettes subordonnées",{"$f":"SUM($C$146:C146)","v":0},{"$f":"SUM($C$146:D146)","v":0},{"$f":"SUM($C$146:E146)","v":0},{"$f":"SUM($C$146:F146)","v":0},{"$f":"SUM($C$146:G146)","v":0}]
[]
[null,"Trésorerie BOB",{"$f":"SUM(C156:C157)","v":{"v":15000000,"d":"15,000,000"}},{"$f":"C152","v":{"v":13415076.287384668,"d":"13,415,076"}},{"v":12619582.459158659,"d":"12,619,582"},{"v":12858461.731753359,"d":"12,858,462"},{"v":14027248.2359377,"d":"14,027,248"}]
[null,"+ Résultat net",{"$f":"C142","v":{"v":-1584923.7126153312,"d":"(1,584,924)"}},{"v":-795493.8282260098,"d":"(795,494)"},{"v":238879.27259469917,"d":"238,879"},{"v":1168786.504184341,"d":"1,168,787"},{"v":2696012.225986588,"d":"2,696,012"}]
[null,"- Immobilisation côut direct"]
[null,"Trésorerie FOB",{"$f":"SUM(C149:C151)","v":{"v":13415076.287384668,"d":"13,415,076"}},{"v":12619582.459158659,"d":"12,619,582"},{"v":12858461.731753359,"d":"12,858,462"},{"v":14027248.2359377,"d":"14,027,248"},{"v":16723260.461924288,"d":"16,723,260"}]
[]
[null,"Capitaux Propres"]
[null,"Cash burn avant Seed = Année 1"]
[null,"Fonds Propres BOB",{"$f":"capitaux_propres-SUM(C155,C157)","v":{"v":14000000,"d":"14,000,000"}},{"$f":"C158","v":{"v":12415076.287384668,"d":"12,415,076"}},{"$f":"D158+15000000","v":{"v":26619582.45915866,"d":"26,619,582"}},{"$f":"E158","v":{"v":26858461.731753357,"d":"26,858,462"}},{"v":28027248.2359377,"d":"28,027,248"}]
[null,"Tréso opérationnelle BOB",{"v":1000000,"d":"1,000,000"},{"v":1000000,"d":"1,000,000"},{"$f":"D159","v":{"v":1000000,"d":"1,000,000"}},{"v":1000000,"d":"1,000,000"},{"v":1000000,"d":"1,000,000"}]
[null,"Fonds Propres EOB",{"$f":"C156+SUM(C150:C151)","v":{"v":12415076.287384668,"d":"12,415,076"}},{"v":11619582.459158659,"d":"11,619,582"},{"v":26858461.731753357,"d":"26,858,462"},{"v":28027248.2359377,"d":"28,027,248"},{"v":30723260.46192429,"d":"30,723,260"}]
[null,"Tréso opérationnelle EOB",{"$f":"C157","v":{"v":1000000,"d":"1,000,000"}},{"v":1000000,"d":"1,000,000"},{"v":1000000,"d":"1,000,000"},{"v":1000000,"d":"1,000,000"},{"v":1000000,"d":"1,000,000"}]
[]
[null,"Capitaux propres",{"$f":"$C$155 + C152-C147","v":{"v":13415076.287384668,"d":"13,415,076"}},{"v":12619582.459158659,"d":"12,619,582"},{"v":12858461.731753359,"d":"12,858,462"},{"v":14027248.2359377,"d":"14,027,248"},{"v":16723260.461924288,"d":"16,723,260"}]
[null,"RoC",{"$f":"C144/C152","v":{"v":-0.11814496456540982,"d":"-11.8%"}},{"v":-0.06303646184812402,"d":"-6.3%"},{"v":0.018577593306110494,"d":"1.9%"},{"v":0.08332257934880764,"d":"8.3%"},{"v":0.1612133131649118,"d":"16.1%"}]
[null,"RoE",{"$f":"C144/C161","v":{"v":-0.11814496456540982,"d":"-11.8%"}},{"v":-0.06303646184812402,"d":"-6.3%"},{"v":0.018577593306110494,"d":"1.9%"},{"v":0.08332257934880764,"d":"8.3%"},{"v":0.1612133131649118,"d":"16.1%"}]
[null,"Coefficient d’exploitation (sans distrib)",{"$f":"C125/C80","v":{"v":3.006227656019598,"d":"300.62%"}},{"v":1.5156253976971403,"d":"151.56%"},{"v":0.9235116202749541,"d":"92.35%"},{"v":0.7572345168493891,"d":"75.72%"},{"v":0.5551410673208318,"d":"55.51%"}]
[null,"RoA (Return on Assets)",{"$f":"C81","v":{"v":0.008586527821107737,"d":"0.86%"}},{"v":0.007201319084894313,"d":"0.72%"},{"v":0.007792206273834376,"d":"0.78%"},{"v":7.218370333254307E-3,"d":"0.72%"},{"v":0.007093771142263091,"d":"0.71%"}]
[]
[null,"Treso/Encours",{"$f":"C152/C33","v":{"v":0.22622782403256836,"d":"22.62%"}},{"v":0.09170196666695586,"d":"9.17%"},{"v":0.05018410811135436,"d":"5.02%"},{"v":0.03305918543935166,"d":"3.31%"},{"v":0.026661927796513694,"d":"2.67%"}]

{"sheet":"BP Assurance","index":20,"n_rows":107,"n_cols":13,"rows_kept":107}
[]
[]
[{"$nulls":8},{"$f":"C9+C12","v":{"v":5773526.920794763,"d":"5,773,527"}}]
["COMPTE DE RESULTAT TECHNIQUE OPERATIONS VIE",{"$f":"'BP Financier'!C2","v":"2026-2027"},2028,2029,2030,2031]
["+ Primes",{"$f":"SUM(B6:B8)","v":{"v":97940000,"d":"97,940,000"}},{"v":132940000,"d":"132,940,000"},{"v":206450000,"d":"206,450,000"},{"v":291540000,"d":"291,540,000"},{"v":358780000,"d":"358,780,000"}]
["Assurance-vie",{"$f":"'BP Financier'!C16","v":{"v":90600000,"d":"90,600,000"}},{"$f":"'BP Financier'!D16","v":{"v":122250000,"d":"122,250,000"}},{"$f":"'BP Financier'!E16","v":{"v":187000000,"d":"187,000,000"}},{"$f":"'BP Financier'!F16","v":{"v":261200000,"d":"261,200,000"}},{"$f":"'BP Financier'!G16","v":{"v":318000000,"d":"318,000,000"}}]
["Epargne retraite",{"$f":"'BP Financier'!C19","v":{"v":6920000,"d":"6,920,000"}},{"$f":"'BP Financier'!D19","v":{"v":10140000,"d":"10,140,000"}},{"$f":"'BP Financier'!E19","v":{"v":17800000,"d":"17,800,000"}},{"$f":"'BP Financier'!F19","v":{"v":27040000,"d":"27,040,000"}},{"$f":"'BP Financier'!G19","v":{"v":35880000,"d":"35,880,000"}}]
["Contrats de capitalisation",{"$f":"'BP Financier'!C22","v":{"v":420000,"d":"420,000"}},{"$f":"'BP Financier'!D22","v":{"v":550000,"d":"550,000"}},{"$f":"'BP Financier'!E22","v":{"v":1650000,"d":"1,650,000"}},{"$f":"'BP Financier'!F22","v":{"v":3300000,"d":"3,300,000"}},{"$f":"'BP Financier'!G22","v":{"v":4900000,"d":"4,900,000"}}]
["+ Produits de placements",{"$f":"SUM(B10:B11)","v":{"v":1320596.3539776325,"d":"1,320,596"}},{"v":3303342.385684406,"d":"3,303,342"},{"v":6639480.001595445,"d":"6,639,480"},{"v":10880946.97140742,"d":"10,880,947"},{"v":16387379.71098864,"d":"16,387,380"}]
["Revenus de placements",{"$f":"'BP Financier'!C57+'BP Financier'!C75+'BP Financier'!C76","v":{"v":1283794.426929071,"d":"1,283,794"}},{"$f":"'BP Financier'!D57+'BP Financier'!D75+'BP Financier'!D76","v":{"v":3217648.3787298156,"d":"3,217,648"}},{"$f":"'BP Financier'!E57+'BP Financier'!E75+'BP Financier'!E76","v":{"v":6479161.901512167,"d":"6,479,162"}},{"$f":"'BP Financier'!F57+'BP Financier'!F75+'BP Financier'!F76","v":{"v":10614157.257023958,"d":"10,614,157"}},{"$f":"'BP Financier'!G57+'BP Financier'!G75+'BP Financier'!G76","v":{"v":15991042.906613117,"d":"15,991,043"}},null,"Intérêts FG + RDT FP"]
["Honoraires et commissions reçues",{"$f":"'BP Financier'!C69+'BP Financier'!C70","v":{"v":36801.927048561396,"d":"36,802"}},{"$f":"'BP Financier'!D69+'BP Financier'!D70","v":{"v":85694.00695459054,"d":"85,694"}},{"$f":"'BP Financier'!E69+'BP Financier'!E70","v":{"v":160318.1000832774,"d":"160,318"}},{"$f":"'BP Financier'!F69+'BP Financier'!F70","v":{"v":266789.7143834598,"d":"266,790"}},{"$f":"'BP Financier'!G69+'BP Financier'!G70","v":{"v":396336.8043755236,"d":"396,337"}},null,"Comm produits structurés + non coté"]
["+ Ajustement ACAV (plus-values)",{"$f":"'BP Financier'!C40","v":{"v":738979.8887502669,"d":"738,980"}},{"$f":"'BP Financier'!D40","v":{"v":2470184.5351103563,"d":"2,470,185"}},{"$f":"'BP Financier'!E40","v":{"v":4997713.138142065,"d":"4,997,713"}},{"$f":"'BP Financier'!F40","v":{"v":8749507.457095422,"d":"8,749,507"}},{"$f":"'BP Financier'!G40","v":{"v":13698630.154170964,"d":"13,698,630"}}]
["+ Autres produits techniques",{"$f":"'BP Financier'!C77","v":0},{"$f":"'BP Financier'!D77","v":0},{"$f":"'BP Financier'!E77","v":0},{"$f":"'BP Financier'!F77","v":0},{"$f":"'BP Financier'!G77","v":0}]
[" - Charges des sinistres",{"$f":"SUM(B15:B18)","v":{"v":-7008612.872956079,"d":"-7,008,613"}},{"v":-14110583.702908043,"d":"-14,110,584"},{"v":-26674821.91685478,"d":"-26,674,822"},{"v":-37125077.37049495,"d":"-37,125,077"},{"v":-53187806.5746123,"d":"-53,187,807"}]
["Capitaux décès assurance-vie",{"$f":"-('BP Financier'!C16*Sinistres!$B$9)","v":{"v":-70241.2630979681,"d":"-70,241"}},{"$f":"-('BP Financier'!D16*Sinistres!$B$9)","v":{"v":-94779.18778947681,"d":"-94,779"}},{"$f":"-('BP Financier'!E16*Sinistres!$B$9)","v":{"v":-144979.20749801362,"d":"-144,979"}},{"$f":"-('BP Financier'!F16*Sinistres!$B$9)","v":{"v":-202505.71656941794,"d":"-202,506"}},{"$f":"-('BP Financier'!G16*Sinistres!$B$9)","v":{"v":-246542.18173459,"d":"-246,542"}}]
["Rachats",{"$f":"('BP Financier'!C28+'BP Financier'!C39)-B15","v":{"v":-6861490.627716768,"d":"-6,861,491"}},{"$f":"('BP Financier'!D28+'BP Financier'!D39)-C15","v":{"v":-13937019.73962839,"d":"-13,937,020"}},{"$f":"('BP Financier'!E28+'BP Financier'!E39)-D15","v":{"v":-26433878.315577418,"d":"-26,433,878"}},{"$f":"('BP Financier'!F28+'BP Financier'!F39)-E15","v":{"v":-36806079.81802458,"d":"-36,806,080"}},{"$f":"('BP Financier'!G28+'BP Financier'!G39)-F15","v":{"v":-52803901.85588688,"d":"-52,803,902"}}]
["Frais de prestations (destination)",{"$f":"-(RH!M15+RH!M16)-(20%*'BP Financier'!C116)-(20%*'BP Financier'!C117)-(20%*'BP Financier'!C118)-(20%*'BP Financier'!C111)-(20%*'BP Financier'!C112)-(10%*'BP Financier'!C89)","v":{"v":-76880.98214134415,"d":"-76,881"}},{"$f":"-(RH!M17)-(20%*'BP Financier'!D116)-(20%*'BP Financier'!D117)-(20%*'BP Financier'!D118)-(20%*'BP Financier'!D111)-(20%*'BP Financier'!D112)-(10%*'BP Financier'!D89)","v":{"v":-78784.7754901759,"d":"-78,785"}},{"$f":"-(RH!M18)-(20%*'BP Financier'!E116)-(20%*'BP Financier'!E117)-(20%*'BP Financier'!E118)-(20%*'BP Financier'!E111)-(20%*'BP Financier'!E112)-(10%*'BP Financier'!E89)","v":{"v":-95964.39377934855,"d":"-95,964"}},{"$f":"-(RH!M19)-(20%*'BP Financier'!F116)-(20%*'BP Financier'!F117)-(20%*'BP Financier'!F118)-(20%*'BP Financier'!F111)-(20%*'BP Financier'!F112)-(10%*'BP Financier'!F89)","v":{"v":-116491.83590094946,"d":"-116,492"}},{"$f":"-(RH!M20)-(20%*'BP Financier'!G116)-(20%*'BP Financier'!G117)-(20%*'BP Financier'!G118)-(20%*'BP Financier'!G111)-(20%*'BP Financier'!G112)-(10%*'BP Financier'!G89)","v":{"v":-137362.5369908288,"d":"-137,363"}},null,{"$f":"B17+B25+B26+B29+B30+B33","v":{"v":-2477788.085198487,"d":"-2,477,788"}}]
["Charges des provisions pour sinistres à payer",{"$nulls":6},2322417]
[" - Charges des provisions d'assurance vie et autres provisions techniques",{"$f":"SUM(B20:B22)","v":{"v":-92004817.62140349,"d":"-92,004,818"}},{"v":-122230199.76507284,"d":"-122,230,200"},{"v":-186560232.82171714,"d":"-186,560,233"},{"v":-266179035.75045606,"d":"-266,179,036"},{"v":-323867724.9801594,"d":"-323,867,725"},null,{"$f":"H18+H17","v":{"v":-155371.08519848716,"d":"-155,371"}}]
["Provisions mathématiques vie",{"$f":"-'BP Financier'!C32","v":{"v":-59298967.06893754,"d":"-59,298,967"}},{"$f":"-'BP Financier'!D32","v":{"v":-78316210.8583864,"d":"-78,316,211"}},{"$f":"-'BP Financier'!E32","v":{"v":-118610591.85663836,"d":"-118,610,592"}},{"$f":"-'BP Financier'!F32","v":{"v":-168081364.51222974,"d":"-168,081,365"}},{"$f":"-'BP Financier'!G32","v":{"v":-202926597.24631914,"d":"-202,926,597"}}]
["Provisions sur contrats en UC",{"$f":"-'BP Financier'!C43","v":{"v":-32705850.55246595,"d":"-32,705,851"}},{"$f":"-'BP Financier'!D43","v":{"v":-43913988.90668644,"d":"-43,913,989"}},{"$f":"-'BP Financier'!E43","v":{"v":-67949640.96507877,"d":"-67,949,641"}},{"$f":"-'BP Financier'!F43","v":{"v":-98097671.23822632,"d":"-98,097,671"}},{"$f":"-'BP Financier'!G43","v":{"v":-120941127.73384027,"d":"-120,941,128"}}]
["Autres provisions techniques"]
[" - Participation aux résultats"]
[" - Frais d'acquisition",{"$f":"SUM(B25:B26)","v":{"v":-1501785.246650715,"d":"-1,501,785"}},{"v":-1996025.3317170185,"d":"-1,996,025"},{"v":-3133463.159046299,"d":"-3,133,463"},{"v":-4648909.071918808,"d":"-4,648,909"},{"v":-6579510.553584523,"d":"-6,579,511"}]
["Commissions distribution et apporteurs d'affaires",{"$f":"-('BP Financier'!C87+'BP Financier'!C88)","v":{"v":-321774.8043275558,"d":"-321,775"}},{"$f":"-('BP Financier'!D87+'BP Financier'!D88)","v":{"v":-981878.5089461673,"d":"-981,879"}},{"$f":"-('BP Financier'!E87+'BP Financier'!E88)","v":{"v":-1912773.5317496317,"d":"-1,912,774"}},{"$f":"-('BP Financier'!F87+'BP Financier'!F88)","v":{"v":-3217115.7446453786,"d":"-3,217,116"}},{"$f":"-('BP Financier'!G87+'BP Financier'!G88)","v":{"v":-4983628.133639032,"d":"-4,983,628"}}]
["Frais d'acquisition (destination)",{"$f":"-(RH!K15+RH!K16+'BP Financier'!C108+'BP Financier'!C109+(20%*'BP Financier'!C116)+(20%*'BP Financier'!C117)+(20%*'BP Financier'!C118)+(20%*'BP Financier'!C111)+(20%*'BP Financier'!C112)+(50%*'BP Financier'!C115)+(50%*'BP Financier'!C113)+(50%*'BP Financier'!C89))","v":{"v":-1180010.442323159,"d":"-1,180,010"}},{"$f":"-(RH!K17+'BP Financier'!D108+'BP Financier'!D109+(20%*'BP Financier'!D116)+(20%*'BP Financier'!D117)+(20%*'BP Financier'!D118)+(20%*'BP Financier'!D111)+(20%*'BP Financier'!D112)+(50%*'BP Financier'!D115)+(50%*'BP Financier'!D113)+(50%*'BP Financier'!D89))","v":{"v":-1014146.8227708511,"d":"-1,014,147"}},{"$f":"-(RH!K18+'BP Financier'!E108+'BP Financier'!E109+(20%*'BP Financier'!E116)+(20%*'BP Financier'!E117)+(20%*'BP Financier'!E118)+(20%*'BP Financier'!E111)+(20%*'BP Financier'!E112)+(50%*'BP Financier'!E115)+(50%*'BP Financier'!E113)+(50%*'BP Financier'!E89))","v":{"v":-1220689.627296667,"d":"-1,220,690"}},{"$f":"-(RH!K19+'BP Financier'!F108+'BP Financier'!F109+(20%*'BP Financier'!F116)+(20%*'BP Financier'!F117)+(20%*'BP Financier'!F118)+(20%*'BP Financier'!F111)+(20%*'BP Financier'!F112)+(50%*'BP Financier'!F115)+(50%*'BP Financier'!F113)+(50%*'BP Financier'!F89))","v":{"v":-1431793.327273429,"d":"-1,431,793"}},{"$f":"-(RH!K20+'BP Financier'!G108+'BP Financier'!G109+(20%*'BP Financier'!G116)+(20%*'BP Financier'!G117)+(20%*'BP Financier'!G118)+(20%*'BP Financier'!G111)+(20%*'BP Financier'!G112)+(50%*'BP Financier'!G115)+(50%*'BP Financier'!G113)+(50%*'BP Financier'!G89))","v":{"v":-1595882.4199454903,"d":"-1,595,882"}},null,"Acq + mark + comm"]
[" - Frais d'administration",{"$f":"-(RH!L15+RH!L16+(20%*'BP Financier'!C116)+(20%*'BP Financier'!C117)+(20%*'BP Financier'!C118)+(20%*'BP Financier'!C111)+(20%*'BP Financier'!C112)+(20%*'BP Financier'!C89))","v":{"v":-170162.3579265239,"d":"-170,162"}},{"$f":"-RH!L17-(20%*'BP Financier'!D116)-(20%*'BP Financier'!D117)-(20%*'BP Financier'!D118)-(20%*'BP Financier'!D111)-(20%*'BP Financier'!D112)-(20%*'BP Financier'!D89)","v":{"v":-162726.02897512505,"d":"-162,726"}},{"$f":"-RH!L18-(20%*'BP Financier'!E116)-(20%*'BP Financier'!E117)-(20%*'BP Financier'!E118)-(20%*'BP Financier'!E111)-(20%*'BP Financier'!E112)-(20%*'BP Financier'!E89)","v":{"v":-203831.69659809253,"d":"-203,832"}},{"$f":"-RH!L19-(20%*'BP Financier'!F116)-(20%*'BP Financier'!F117)-(20%*'BP Financier'!F118)-(20%*'BP Financier'!F111)-(20%*'BP Financier'!F112)-(20%*'BP Financier'!F89)","v":{"v":-250806.3244306543,"d":"-250,806"}},{"$f":"-RH!L20-(20%*'BP Financier'!G116)-(20%*'BP Financier'!G117)-(20%*'BP Financier'!G118)-(20%*'BP Financier'!G111)-(20%*'BP Financier'!G112)-(20%*'BP Financier'!G89)","v":{"v":-295169.4306158961,"d":"-295,169"}}]
[" - Charges des placements",{"$f":"SUM(B29:B30)","v":{"v":-375573.20380368835,"d":"-375,573"}},{"v":-357309.97211948305,"d":"-357,310"},{"v":-412058.27870443853,"d":"-412,058"},{"v":-472273.9759448491,"d":"-472,274"},{"v":-544618.7304489014,"d":"-544,619"}]
["Frais internes de gestion des placements (destination)",{"$f":"-(RH!N15+RH!N16+(20%*'BP Financier'!C116)+(20%*'BP Financier'!C117)+(20%*'BP Financier'!C118)+(20%*'BP Financier'!C111)+(20%*'BP Financier'!C112)+'BP Financier'!C110+(20%*'BP Financier'!C89))","v":{"v":-332302.61874844175,"d":"-332,303"}},{"$f":"-RH!N17-(20%*'BP Financier'!D116)-(20%*'BP Financier'!D117)-(20%*'BP Financier'!D118)-(20%*'BP Financier'!D111)-(20%*'BP Financier'!D112)-'BP Financier'!D110-(20%*'BP Financier'!D89)","v":{"v":-312918.5732288144,"d":"-312,919"}},{"$f":"-RH!N18-(20%*'BP Financier'!E116)-(20%*'BP Financier'!E117)-(20%*'BP Financier'!E118)-(20%*'BP Financier'!E111)-(20%*'BP Financier'!E112)-'BP Financier'!E110-(20%*'BP Financier'!E89)","v":{"v":-365263.31460793066,"d":"-365,263"}},{"$f":"-RH!N19-(20%*'BP Financier'!F116)-(20%*'BP Financier'!F117)-(20%*'BP Financier'!F118)-(20%*'BP Financier'!F111)-(20%*'BP Financier'!F112)-'BP Financier'!F110-(20%*'BP Financier'!F89)","v":{"v":-422464.20882102643,"d":"-422,464"}},{"$f":"-RH!N20-(20%*'BP Financier'!G116)-(20%*'BP Financier'!G117)-(20%*'BP Financier'!G118)-(20%*'BP Financier'!G111)-(20%*'BP Financier'!G112)-'BP Financier'!G110-(20%*'BP Financier'!G89)","v":{"v":-472972.1528843426,"d":"-472,972"}}]
["Autres charges de placements",{"$f":"-('BP Financier'!C86+'BP Financier'!C90)","v":{"v":-43270.58505524659,"d":"-43,271"}},{"$f":"-('BP Financier'!D86+'BP Financier'!D90)","v":{"v":-44391.39889066864,"d":"-44,391"}},{"$f":"-('BP Financier'!E86+'BP Financier'!E90)","v":{"v":-46794.96409650788,"d":"-46,795"}},{"$f":"-('BP Financier'!F86+'BP Financier'!F90)","v":{"v":-49809.76712382263,"d":"-49,810"}},{"$f":"-('BP Financier'!G86+'BP Financier'!G90)","v":{"v":-71646.57756455877,"d":"-71,647"}}]
[" - Ajustement ACAV (moins-values)"]
[" - Autres charges techniques",{"$f":"B33+B34","v":{"v":-523548.6526027397,"d":"-523,549"}},{"v":-652175.9482282718,"d":"-652,176"},{"v":-863905.994222058,"d":"-863,906"},{"v":-1325565.4310731688,"d":"-1,325,565"},{"v":-1264352.2542708768,"d":"-1,264,352"}]
["Frais interne charges techniques (destination)",{"$f":"-RH!O15-RH!O16-SUM('BP Financier'!C91:C97)-(20%*'BP Financier'!C116)-(20%*'BP Financier'!C117)-(20%*'BP Financier'!C118)-(20%*'BP Financier'!C111)-(20%*'BP Financier'!C112)-(50%*'BP Financier'!C115)-(50%*'BP Financier'!C113)-'BP Financier'!C114-'BP Financier'!C119","v":{"v":-523548.6526027397,"d":"-523,549"}},{"$f":"-RH!O17-SUM('BP Financier'!D91:D97)-(20%*'BP Financier'!D116)-(20%*'BP Financier'!D117)-(20%*'BP Financier'!D118)-(20%*'BP Financier'!D111)-(20%*'BP Financier'!D112)-(50%*'BP Financier'!D115)-(50%*'BP Financier'!D113)-'BP Financier'!D114-'BP Financier'!D119","v":{"v":-652175.9482282718,"d":"-652,176"}},{"$f":"-RH!O18-SUM('BP Financier'!E91:E97)-(20%*'BP Financier'!E116)-(20%*'BP Financier'!E117)-(20%*'BP Financier'!E118)-(20%*'BP Financier'!E111)-(20%*'BP Financier'!E112)-(50%*'BP Financier'!E115)-(50%*'BP Financier'!E113)-'BP Financier'!E114-'BP Financier'!E119","v":{"v":-863905.994222058,"d":"-863,906"}},{"$f":"-RH!O19-SUM('BP Financier'!F91:F97)-(20%*'BP Financier'!F116)-(20%*'BP Financier'!F117)-(20%*'BP Financier'!F118)-(20%*'BP Financier'!F111)-(20%*'BP Financier'!F112)-(50%*'BP Financier'!F115)-(50%*'BP Financier'!F113)-'BP Financier'!F114-'BP Financier'!F119","v":{"v":-1325565.4310731688,"d":"-1,325,565"}},{"$f":"-RH!O20-SUM('BP Financier'!G91:G97)-(20%*'BP Financier'!G116)-(20%*'BP Financier'!G117)-(20%*'BP Financier'!G118)-(20%*'BP Financier'!G111)-(20%*'BP Financier'!G112)-(50%*'BP Financier'!G115)-(50%*'BP Financier'!G113)-'BP Financier'!G114-'BP Financier'!G119","v":{"v":-1264352.2542708768,"d":"-1,264,352"}}]
["Amortissements actifs incorporels",{"$f":"'BP Financier'!C138","v":0},{"$f":"'BP Financier'!D138","v":0},{"$f":"'BP Financier'!E138","v":0},{"$f":"'BP Financier'!F138","v":0},{"$f":"'BP Financier'!G138","v":0}]
[" - Produits des placements transférés au compte non-technique",{"$f":"-('BP Financier'!C75+'BP Financier'!C76)","v":{"v":-430000,"d":"-430,000"}},{"$f":"-('BP Financier'!D75+'BP Financier'!D76)","v":{"v":-382452.28862154006,"d":"-382,452"}},{"$f":"-('BP Financier'!E75+'BP Financier'!E76)","v":{"v":-808587.4737747598,"d":"-808,587"}},{"$f":"-('BP Financier'!F75+'BP Financier'!F76)","v":{"v":-815753.8519526006,"d":"-815,754"}},{"$f":"-('BP Financier'!G75+'BP Financier'!G76)","v":{"v":-850817.4470781309,"d":"-850,817"}}]
["Résultat technique des opérations vie",{"$f":"SUM(B5,B9,B12,B13,B14,B19,B23,B24,B27,B28,B32,B31,B35)","v":{"v":-2014923.712615329,"d":"-2,014,924"}},{"v":-1177946.1168475598,"d":"-1,177,946"},{"v":-569708.2011800432,"d":"-569,708"},{"v":353032.6522317502,"d":"353,033"},{"v":2276009.894389581,"d":"2,276,010"}]
[]
["COMPTE NON TECHNIQUE",{"$f":"B4","v":"2026-2027"},2028,2029,2030,2031]
["Résultat technique de l'assurance non vie"]
["Résultat technique de l'assurance vie",{"$f":"B36","v":{"v":-2014923.712615329,"d":"-2,014,924"}},{"v":-1177946.1168475598,"d":"-1,177,946"},{"v":-569708.2011800432,"d":"-569,708"},{"v":353032.6522317502,"d":"353,033"},{"v":2276009.894389581,"d":"2,276,010"}]
["Produits des placements"]
["Produits des placements alloués du compte technique vie",{"$f":"-B35","v":{"v":430000,"d":"430,000"}},{"v":382452.28862154006,"d":"382,452"},{"v":808587.4737747598,"d":"808,587"},{"v":815753.8519526006,"d":"815,754"},{"v":850817.4470781309,"d":"850,817"}]
["Charges des placements"]
["Produits des placements transférés au compte technique non vie"]
["Autres produits non techniques"]
["Autres charges non techniques"]
["Résultat exceptionnel"]
["Participation des salariés"]
["Impôt sur les bénéfices",{"$f":"'BP Financier'!C141","v":0},{"$f":"'BP Financier'!D141","v":0},{"$f":"'BP Financier'!E141","v":0},{"$f":"'BP Financier'!F141","v":0},{"$f":"'BP Financier'!G141","v":{"v":-430815.1154810719,"d":"-430,815"}}]
[]
["RESULTAT NET",{"$f":"SUM(B39:B49)","v":{"v":-1584923.712615329,"d":"-1,584,924"}},{"v":-795493.8282260197,"d":"-795,494"},{"v":238879.27259471663,"d":"238,879"},{"v":1168786.5041843508,"d":"1,168,787"},{"v":2696012.22598664,"d":"2,696,012"}]
[]
[null,{"$f":"'BP Financier'!C142","v":{"v":-1584923.7126153312,"d":"(1,584,924)"}},{"$f":"'BP Financier'!D142","v":{"v":-795493.8282260098,"d":"(795,494)"}},{"$f":"'BP Financier'!E142","v":{"v":238879.27259469917,"d":"238,879"}},{"$f":"'BP Financier'!F142","v":{"v":1168786.504184341,"d":"1,168,787"}},{"$f":"'BP Financier'!G142","v":{"v":2696012.225986588,"d":"2,696,012"}}]
[]
["Ecart avec BP Financier",{"$f":"B51-B53","v":{"v":2.0954757928848267E-9,"d":"0"}},{"v":-9.89530235528946e-09,"d":"-0"},{"v":1.7462298274040222E-8,"d":"0"},{"v":9.7788870334625244E-9,"d":"0"},{"v":5.21540641784668e-08,"d":"0"}]
[]
[]
[]
[]
[]
[null,{"$f":"SUM(B56:B60)","v":0},0,0,0,0]
[null,{"$f":"B55-B61","v":{"v":2.0954757928848267E-9,"d":"0"}},{"v":-9.89530235528946e-09,"d":"-0"},{"v":1.7462298274040222E-8,"d":"0"},{"v":9.7788870334625244E-9,"d":"0"},{"v":5.21540641784668e-08,"d":"0"}]
[]
["(en k €)",{"$f":"B4","v":"2026-2027"},2028,2029,2030,2031]
["Primes",{"$f":"B5/1000","v":{"v":97940,"d":"97,940"}},{"v":132940,"d":"132,940"},{"v":206450,"d":"206,450"},{"v":291540,"d":"291,540"},{"v":358780,"d":"358,780"}]
[]
["Produits de placements (et ajustement ACAV)",{"$f":"(B9+B12)/1000","v":{"v":2059.5762427278996,"d":"2,060"}},{"v":5773.526920794763,"d":"5,774"},{"v":11637.193139737508,"d":"11,637"},{"v":19630.454428502842,"d":"19,630"},{"v":30086.009865159605,"d":"30,086"},{"$nulls":3},{"$f":"493125-465917","v":27208}]
["Autres produits techniques",{"$f":"B13/1000","v":0},0,0,0,0]
[]
["Charges des sinistres",{"$f":"B14/1000","v":{"v":-7008.61287295608,"d":"-7,009"}},{"v":-14110.583702908043,"d":"-14,111"},{"v":-26674.82191685478,"d":"-26,675"},{"v":-37125.077370494946,"d":"-37,125"},{"v":-53187.806574612296,"d":"-53,188"}]
["Charges des provisions d'assurance vie ",{"$f":"B19/1000","v":{"v":-92004.81762140349,"d":"-92,005"}},{"v":-122230.19976507284,"d":"-122,230"},{"v":-186560.23282171713,"d":"-186,560"},{"v":-266179.03575045604,"d":"-266,179"},{"v":-323867.72498015943,"d":"-323,868"}]
["Participation aux résultats",{"$f":"B23/1000","v":0},0,0,0,0]
["Frais d'acquisition et d'administration (yc commissions)",{"$f":"(B24+B27)/1000","v":{"v":-1671.9476045772387,"d":"-1,672"}},{"v":-2158.7513606921434,"d":"-2,159"},{"v":-3337.294855644391,"d":"-3,337"},{"v":-4899.715396349462,"d":"-4,900"},{"v":-6874.679984200419,"d":"-6,875"}]
["Charges de placements",{"$f":"B28/1000","v":{"v":-375.57320380368833,"d":"-376"}},{"v":-357.30997211948306,"d":"-357"},{"v":-412.0582787044385,"d":"-412"},{"v":-472.2739759448491,"d":"-472"},{"v":-544.6187304489014,"d":"-545"}]
["Autres charges techniques",{"$f":"B32/1000","v":{"v":-523.5486526027397,"d":"-524"}},{"v":-652.1759482282717,"d":"-652"},{"v":-863.905994222058,"d":"-864"},{"v":-1325.5654310731688,"d":"-1,326"},{"v":-1264.3522542708768,"d":"-1,264"}]
[{"$nulls":7},"Worst case"]
["Résultat net",{"$f":"B65+B67+B68+SUM(B70:B75)","v":{"v":-1584.9237126153312,"d":"-1,585"}},{"v":-795.4938282260264,"d":"-795"},{"v":238.8792725946696,"d":"239"},{"v":1168.7865041843615,"d":"1,169"},{"v":3126.8273414677824,"d":"3,127"},null,{"v":-700.6011818211846,"d":"-701"},{"v":-442.22105106872914,"d":"-442"},{"v":428.83221141670947,"d":"429"},{"v":1944.1501298443764,"d":"1,944"},{"v":4374.191204609175,"d":"4,374"}]
[]
["Encours du Fonds Euro (en k €)",{"$f":"'BP Financier'!C33","v":{"v":59298967.06893754,"d":"59,298,967"}},{"$f":"'BP Financier'!D33","v":{"v":137615177.92732394,"d":"137,615,178"}},{"$f":"'BP Financier'!E33","v":{"v":256225769.7839623,"d":"256,225,770"}},{"$f":"'BP Financier'!F33","v":{"v":424307134.29619205,"d":"424,307,134"}},{"$f":"'BP Financier'!G33","v":{"v":627233731.5425112,"d":"627,233,732"}}]
["Encours des Unités de Compte (en k €)",{"$f":"'BP Financier'!C44","v":{"v":32705850.55246595,"d":"32,705,851"}},{"$f":"'BP Financier'!D44","v":{"v":76619839.45915239,"d":"76,619,839"}},{"$f":"'BP Financier'!E44","v":{"v":144569480.42423117,"d":"144,569,480"}},{"$f":"'BP Financier'!F44","v":{"v":242667151.6624575,"d":"242,667,152"}},{"$f":"'BP Financier'!G44","v":{"v":363608279.39629775,"d":"363,608,279"}}]
[{"$nulls":7},"CANTON PER"]
[null,{"$f":"B4","v":"2026-2027"},2028,2029,2030,2031,null,null,"2026-2027",2028,2029,2030,2031]
["ACTIF",{"$nulls":6},"ACTIF"]
["Capital souscrit non appelé ou compte de liaison avec le siège",{"$nulls":6},"Capital souscrit non appelé ou compte de liaison avec le siège"]
["Actifs incorporels",{"$nulls":6},"Actifs incorporels"]
["Placements",{"$f":"'BP Financier'!C33+'BP Financier'!C158+'BP Financier'!C159","v":{"v":72714043.35632221,"d":"72,714,043"}},{"$f":"'BP Financier'!D33+'BP Financier'!D158+'BP Financier'!D159","v":{"v":150234760.3864826,"d":"150,234,760"}},{"$f":"'BP Financier'!E33+'BP Financier'!E158+'BP Financier'!E159","v":{"v":284084231.51571566,"d":"284,084,232"}},{"$f":"'BP Financier'!F33+'BP Financier'!F158+'BP Financier'!F159","v":{"v":453334382.53212976,"d":"453,334,383"}},{"$f":"'BP Financier'!G33+'BP Financier'!G158+'BP Financier'!G159","v":{"v":658956992.0044355,"d":"658,956,992"}},null,"Placements",{"$f":"B86*(B7/B5)","v":{"v":5137647.335366038,"d":"5,137,647"}},{"v":11459158.043620681,"d":"11,459,158"},{"v":24493578.69207914,"d":"24,493,579"},{"v":42046243.06671053,"d":"42,046,243"},{"v":65899372.52109691,"d":"65,899,373"}]
["Placements représentant les provisions techniques afférentes aux contrats en UC",{"$f":"'BP Financier'!C44","v":{"v":32705850.55246595,"d":"32,705,851"}},{"$f":"'BP Financier'!D44","v":{"v":76619839.45915239,"d":"76,619,839"}},{"$f":"'BP Financier'!E44","v":{"v":144569480.42423117,"d":"144,569,480"}},{"$f":"'BP Financier'!F44","v":{"v":242667151.6624575,"d":"242,667,152"}},{"$f":"'BP Financier'!G44","v":{"v":363608279.39629775,"d":"363,608,279"}},null,"Placements représentant les provisions techniques afférentes aux contrats en UC",{"$f":"B87*(B7/B5)","v":{"v":2310848.3339091726,"d":"2,310,848"}},{"v":5844179.119270386,"d":"5,844,179"},{"v":12464697.27077411,"d":"12,464,697"},{"v":22507099.475038934,"d":"22,507,099"},{"v":36362854.8546161,"d":"36,362,855"}]
["Part des cessionnaires et rétrocessionnaires dans les provisions techniques",{"$nulls":6},"Part des cessionnaires et rétrocessionnaires dans les provisions techniques"]
["Créances",{"$nulls":6},"Créances"]
["Autres actifs",{"$nulls":6},"Autres actifs"]
["Comptes de régularisation Actif",{"$nulls":6},"Comptes de régularisation Actif"]
[null,{"$f":"SUM(B84:B91)","v":{"v":105419893.90878816,"d":"105,419,894"}},{"v":226854599.845635,"d":"226,854,600"},{"v":428653711.93994683,"d":"428,653,712"},{"v":696001534.1945872,"d":"696,001,534"},{"v":1022565271.4007332,"d":"1,022,565,271"},null,null,{"$f":"SUM(I84:I91)","v":{"v":7448495.66927521,"d":"7,448,496"}},{"v":17303337.162891068,"d":"17,303,337"},{"v":36958275.96285325,"d":"36,958,276"},{"v":64553342.54174946,"d":"64,553,343"},{"v":102262227.375713,"d":"102,262,227"}]
[null,"2026-2027",2028,2029,2030,2031]
["PASSIF",{"$nulls":6},"PASSIF"]
["Capitaux propres",{"$f":"'BP Financier'!C156+'BP Financier'!C157","v":{"v":15000000,"d":"15,000,000"}},{"$f":"'BP Financier'!D156+'BP Financier'!D157","v":{"v":13415076.287384668,"d":"13,415,076"}},{"$f":"'BP Financier'!E156+'BP Financier'!E157","v":{"v":27619582.45915866,"d":"27,619,582"}},{"$f":"'BP Financier'!F156+'BP Financier'!F157","v":{"v":27858461.731753357,"d":"27,858,462"}},{"$f":"'BP Financier'!G156+'BP Financier'!G157","v":{"v":29027248.2359377,"d":"29,027,248"}},null,"Capitaux propres",{"v":1271799.0606493773,"d":"1,271,799"},{"v":1251040.2595090326,"d":"1,251,040"},{"v":1163336.8973680884,"d":"1,163,337"},{"v":1134886.3604057878,"d":"1,134,886"},{"v":1187620.6884182394,"d":"1,187,621"}]
["Résultat de l'exercice",{"$f":"B51","v":{"v":-1584923.712615329,"d":"-1,584,924"}},{"$f":"C51","v":{"v":-795493.8282260197,"d":"-795,494"}},{"$f":"D51","v":{"v":238879.27259471663,"d":"238,879"}},{"$f":"E51","v":{"v":1168786.5041843508,"d":"1,168,787"}},{"$f":"F51","v":{"v":2696012.22598664,"d":"2,696,012"}},null,"Résultat de l'exercice"]
["Passifs subordonnés",{"$nulls":6},"Passifs subordonnés"]
["Provisions techniques brutes",{"$f":"'BP Financier'!C33","v":{"v":59298967.06893754,"d":"59,298,967"}},{"$f":"'BP Financier'!D33","v":{"v":137615177.92732394,"d":"137,615,178"}},{"$f":"'BP Financier'!E33","v":{"v":256225769.7839623,"d":"256,225,770"}},{"$f":"'BP Financier'!F33","v":{"v":424307134.29619205,"d":"424,307,134"}},{"$f":"'BP Financier'!G33","v":{"v":627233731.5425112,"d":"627,233,732"}},null,"Provisions techniques brutes",{"$f":"B98*(B7/B5)","v":{"v":4189798.36754184,"d":"4,189,798"}},{"$f":"C98*(C7/C5)","v":{"v":10496599.249158,"d":"10,496,599"}},{"$f":"D98*(D7/D5)","v":{"v":22091638.179484278,"d":"22,091,638"}},{"$f":"E98*(E7/E5)","v":{"v":39353999.1471806,"d":"39,353,999"}},{"$f":"F98*(F7/F5)","v":{"v":62726869.63527873,"d":"62,726,870"}}]
["Provisions techniques des contrats en UC",{"$f":"'BP Financier'!C44","v":{"v":32705850.55246595,"d":"32,705,851"}},{"$f":"'BP Financier'!D44","v":{"v":76619839.45915239,"d":"76,619,839"}},{"$f":"'BP Financier'!E44","v":{"v":144569480.42423117,"d":"144,569,480"}},{"$f":"'BP Financier'!F44","v":{"v":242667151.6624575,"d":"242,667,152"}},{"$f":"'BP Financier'!G44","v":{"v":363608279.39629775,"d":"363,608,279"}},null,"Provisions techniques des contrats en UC",{"$f":"I87","v":{"v":2310848.3339091726,"d":"2,310,848"}},{"$f":"J87","v":{"v":5844179.119270386,"d":"5,844,179"}},{"$f":"K87","v":{"v":12464697.27077411,"d":"12,464,697"}},{"$f":"L87","v":{"v":22507099.475038934,"d":"22,507,099"}},{"$f":"M87","v":{"v":36362854.8546161,"d":"36,362,855"}}]
["Autres provisions techniques",{"$nulls":6},"Autres provisions techniques"]
["Provisions (autres que techniques)",{"$nulls":6},"Provisions (autres que techniques)"]
["Dettes pour dépôts en espèces reçues des cessionnaires",{"$nulls":6},"Dettes pour dépôts en espèces reçues des cessionnaires"]
["Autres dettes",{"$nulls":6},"Autres dettes"]
["Comptes de régularisation passive",{"$nulls":6},"Comptes de régularisation passive"]
[null,{"$f":"SUM(B95:B104)","v":{"v":105419893.90878816,"d":"105,419,894"}},{"v":226854599.845635,"d":"226,854,600"},{"v":428653711.93994683,"d":"428,653,712"},{"v":696001534.1945872,"d":"696,001,534"},{"v":1022565271.4007332,"d":"1,022,565,271"},null,null,{"$f":"SUM(I95:I104)","v":{"v":7772445.762100389,"d":"7,772,446"}},{"v":17591818.62793742,"d":"17,591,819"},{"v":35719672.34762648,"d":"35,719,672"},{"v":62995984.98262532,"d":"62,995,985"},{"v":100277345.17831308,"d":"100,277,345"}]
[]
[null,{"$f":"B92-B105","v":0},{"$f":"C92-C105","v":0},{"$f":"D92-D105","v":0},{"$f":"E92-E105","v":0},{"$f":"F92-F105","v":0},null,null,{"$f":"I92-I105","v":{"v":-323950.092825179,"d":"-323,950"}},{"$f":"J92-J105","v":{"v":-288481.46504635364,"d":"-288,481"}},{"$f":"K92-K105","v":{"v":1238603.6152267754,"d":"1,238,604"}},{"$f":"L92-L105","v":{"v":1557357.559124142,"d":"1,557,358"}},{"$f":"M92-M105","v":{"v":1984882.1973999292,"d":"1,984,882"}}]

{"sheet":"Solva et resultat","index":21,"n_rows":59,"n_cols":26,"rows_kept":59}
[]
[]
[]
[{"$nulls":3},"2026-2027","2028","2029","2030","2031"]
[null,null,"Résultat",{"v":-1951692,"d":"-1,951,692 €"},{"v":-1277754.5019633675,"d":"-1,277,755 €"},{"v":-1053976.6189752384,"d":"-1,053,977 €"},{"v":-644525.759891561,"d":"-644,526 €"},{"v":82051.60714641702,"d":"82,052 €"}]
[null,null,"Solva (8)",{"v":12.23,"d":"1223%"},{"v":6.09,"d":"609%"},{"v":3.25,"d":"325%"},{"v":2.06,"d":"206%"},{"v":1.76,"d":"176%"}]
{"$rows_empty":21}
[{"$nulls":11},"Year","Revenues (€)","Notes"]
[{"$nulls":11},2027,"50 000","Internal beta-client phase"]
[{"$nulls":11},2028,"100 000","MVP scaling"]
[{"$nulls":11},2029,"200 000","Platform commercialization readiness"]
[{"$nulls":11},2030,"375 000","Full SaaS model rollout"]
[]
[]
[{"$nulls":14},"Year (€ m)","2026-27",2028,2029,2030,2031]
[{"$nulls":14},"Life / Savings (AV)","90.6","122.3","215.5","312.2","375.0"]
[{"$nulls":14},"Retirement (PER)",{"v":45906,"d":"45,906"},{"v":45667,"d":"45,667"},{"v":45886,"d":"45,886"},"27.0","35.9"]
[{"$nulls":14},"Capitalisation (CAPI)","0.4","0.6",{"v":45839,"d":"45,839"},{"v":45719,"d":"45,719"},{"v":45904,"d":"45,904"}]
[{"$nulls":14},"Total Annual Premiums","97.9","132.9","234.9","342.5","415.8"]
[]
[{"$nulls":14},"Year-end (€ m)","2026-27",2028,2029,2030,2031]
[{"$nulls":14},"General Fund (Eurofund)",{"v":45773,"d":"45,773"},"61.2","121.8","210.3","315.6"]
[{"$nulls":14},"Unit-Linked Funds (UC)","66.0","154.6","310.2","540.6","819.2"]
[{"$nulls":14},"Total AuM","92.4","215.8","432.0","750.9","1 134.8"]
[]
[]
[{"$nulls":14},"Year-end (€ m)","2026-27",2028,2029,2030,2031,null,{"$f":"'BP Financier'!C50","v":{"v":92004817.62140349,"d":"92,004,818"}},{"$f":"'BP Financier'!D50","v":{"v":214235017.38647634,"d":"214,235,017"}},{"$f":"'BP Financier'!E50","v":{"v":400795250.2081935,"d":"400,795,250"}},{"$f":"'BP Financier'!F50","v":{"v":666974285.9586495,"d":"666,974,286"}},{"$f":"'BP Financier'!G50","v":{"v":990842010.9388089,"d":"990,842,011"}}]
[{"$nulls":14},"Total income",{"$f":"'BP Financier'!C80","v":{"v":790001.9261821244,"d":"790,002"}},{"$f":"'BP Financier'!D80","v":{"v":1542774.719357897,"d":"1,542,775"}},{"$f":"'BP Financier'!E80","v":{"v":3123079.2631953037,"d":"3,123,079"}},{"$f":"'BP Financier'!F80","v":{"v":4814467.398807391,"d":"4,814,467"}},{"$f":"'BP Financier'!G80","v":{"v":7028806.463739652,"d":"7,028,806"}},{"$nulls":5},{"$f":"T52/Z47","v":3.1557274590174418E-3}]
[{"$nulls":14},"as a % of AUM",{"$f":"'BP Financier'!C81","v":{"v":0.008586527821107737,"d":"0.86%"}},{"$f":"'BP Financier'!D81","v":{"v":0.007201319084894313,"d":"0.72%"}},{"$f":"'BP Financier'!E81","v":{"v":0.007792206273834376,"d":"0.78%"}},{"$f":"'BP Financier'!F81","v":{"v":7.218370333254307E-3,"d":"0.72%"}},{"$f":"'BP Financier'!G81","v":{"v":0.007093771142263091,"d":"0.71%"}},{"$nulls":5},{"$f":"T50/Z47","v":0.003938043683245649}]
[{"$nulls":14},"Fixed and variable cost",{"$f":"'BP Financier'!C125","v":{"v":2374925.6387974555,"d":"2,374,926"}},{"$f":"'BP Financier'!D125","v":{"v":2338268.547583907,"d":"2,338,269"}},{"$f":"'BP Financier'!E125","v":{"v":2884199.990600605,"d":"2,884,200"}},{"$f":"'BP Financier'!F125","v":{"v":3645680.8946230495,"d":"3,645,681"}},{"$f":"'BP Financier'!G125","v":{"v":3901979.1222719923,"d":"3,901,979"}},{"$nulls":5},{"$f":"T48/Z47","v":0.007093771142263091}]
[{"$nulls":14},"as a % of AUM",{"$f":"'BP Financier'!C126","v":{"v":0.02581305740499578,"d":"2.58%"}},{"$f":"'BP Financier'!D126","v":{"v":0.010914502101986951,"d":"1.09%"}},{"$f":"'BP Financier'!E126","v":{"v":0.007196193041465448,"d":"0.72%"}},{"$f":"'BP Financier'!F126","v":{"v":0.005465999171741789,"d":"0.55%"}},{"$f":"'BP Financier'!G126","v":{"v":0.003938043683245649,"d":"0.39%"}}]
[{"$nulls":14},"Margin",{"$f":"P48-P50","v":{"v":-1584923.7126153312,"d":"(1,584,924)"}},{"v":-795493.8282260098,"d":"(795,494)"},{"v":238879.2725946987,"d":"238,879"},{"v":1168786.504184341,"d":"1,168,787"},{"v":3126827.34146766,"d":"3,126,827"}]
[{"$nulls":14},"as a % of AUM",{"$f":"P52/'BP Financier'!C50","v":{"v":-0.017226529583888043,"d":"-1.72%"}},{"$f":"Q52/'BP Financier'!D50","v":{"v":-3.7131830170926373E-3,"d":"-0.37%"}},{"$f":"R52/'BP Financier'!E50","v":{"v":5.9601323236892808E-4,"d":"0.06%"}},{"$f":"S52/'BP Financier'!F50","v":{"v":1.7523711615125182E-3,"d":"0.18%"}},{"$f":"T52/'BP Financier'!G50","v":{"v":3.1557274590174418E-3,"d":"0.32%"}}]
[]
[]
[{"$nulls":14},"Metric","2026-27",2028,2029,2030,2031]
[{"$nulls":14},"Headcount (FTEs)",13,15,18,21,23]
[{"$nulls":14},"Total Personnel & Governance (€)",{"$f":"'BP Financier'!C104","v":{"v":1713112.4449315069,"d":"1,713,112"}},{"$f":"'BP Financier'!D104","v":{"v":1374241,"d":"1,374,241"}},{"$f":"'BP Financier'!E104","v":{"v":1656241,"d":"1,656,241"}},{"$f":"'BP Financier'!F104","v":{"v":1910041,"d":"1,910,041"}},{"$f":"'BP Financier'!G104","v":{"v":2051041,"d":"2,051,041"}}]
[{"$nulls":14},"Average Cost per FTE (k€)",{"$f":"'BP Financier'!C106","v":{"v":137.04899559452056,"d":"137"}},{"$f":"'BP Financier'!D106","v":{"v":94.77524137931034,"d":"95"}},{"$f":"'BP Financier'!E106","v":{"v":94.64234285714285,"d":"95"}},{"$f":"'BP Financier'!F106","v":{"v":93.17273170731707,"d":"93"}},{"$f":"'BP Financier'!G106","v":{"v":91.15737777777777,"d":"91"}}]

{"sheet":"Amortissement","index":22,"n_rows":85,"n_cols":12,"rows_kept":85}
["Home"]
[null,null,"2026-2027",2028,2029,2030,2031]
[null,"Année",1,2,3,4,5]
[null,"Cout indirect",null,null,{"$f":"30%*RH!Q17","v":0},{"$f":"30%*RH!R17","v":0},{"$f":"30%*RH!S17","v":0}]
[null,"Salaire des personnes qui travaillent sur le projet",{"$f":"30%*SUM(RH!P15:P16)","v":{"v":513933.733479452,"d":"513,934"}},{"$f":"30%*OFFSET(RH!$P$17, COLUMN(D1)-COLUMN($D$1),0)","v":{"v":412272.3,"d":"412,272"}},{"$f":"30%*OFFSET(RH!$P$17, COLUMN(E1)-COLUMN($D$1),0)","v":{"v":496872.3,"d":"496,872"}},{"$f":"30%*OFFSET(RH!$P$17, COLUMN(F1)-COLUMN($D$1),0)","v":{"v":573012.2999999999,"d":"573,012"}},{"$f":"30%*OFFSET(RH!$P$17, COLUMN(G1)-COLUMN($D$1),0)","v":{"v":615312.2999999999,"d":"615,312"}}]
[]
[null,"Total cout indirect",{"$f":"SUM(C5:C6)","v":{"v":513933.733479452,"d":"513,934"}},{"v":412272.3,"d":"412,272"},{"v":496872.3,"d":"496,872"},{"v":573012.2999999999,"d":"573,012"},{"v":615312.2999999999,"d":"615,312"}]
[]
[null,"Cout direct"]
[null,"Prestation IT",{"v":500000,"d":"500,000"},{"v":300000,"d":"300,000"},{"v":300000,"d":"300,000"},{"v":300000,"d":"300,000"},{"v":300000,"d":"300,000"}]
[]
[null,"Total cout direct",{"$f":"SUM(C10:C11)","v":{"v":500000,"d":"500,000"}},{"v":300000,"d":"300,000"},{"v":300000,"d":"300,000"},{"v":300000,"d":"300,000"},{"v":300000,"d":"300,000"}]
[]
[null,"Immobilisation",{"$f":"SUM(C7,C12)","v":{"v":1013933.7334794521,"d":"1,013,934"}},{"v":712272.3,"d":"712,272"},{"v":796872.3,"d":"796,872"},{"v":873012.2999999999,"d":"873,012"},{"v":915312.2999999999,"d":"915,312"}]
[null,"Immobilisation (cumul)",{"$f":"SUM($C$14:C14)","v":{"v":1013933.7334794521,"d":"1,013,934"}},{"v":1726206.0334794521,"d":"1,726,206"},{"v":2523078.333479452,"d":"2,523,078"},{"v":3396090.6334794518,"d":"3,396,091"},{"v":4311402.933479452,"d":"4,311,403"}]
[]
["Année de mise en service"]
[1,"Amortissement (20%)",null,{"$f":"20%*$C$14","v":{"v":202786.74669589044,"d":"202,787"}},{"v":202786.74669589044,"d":"202,787"},{"v":202786.74669589044,"d":"202,787"},{"v":202786.74669589044,"d":"202,787"},{"v":202786.74669589044,"d":"202,787"}]
[2,"Amortissement (20%)",null,null,{"$f":"20%*$D$14","v":{"v":142454.46000000002,"d":"142,454"}},{"v":142454.46000000002,"d":"142,454"},{"v":142454.46000000002,"d":"142,454"},{"v":142454.46000000002,"d":"142,454"},{"v":142454.46000000002,"d":"142,454"}]
[3,"Amortissement (20%)",{"$nulls":3},{"$f":"20%*$E14","v":{"v":159374.46000000002,"d":"159,374"}},{"v":159374.46000000002,"d":"159,374"},{"v":159374.46000000002,"d":"159,374"},{"v":159374.46000000002,"d":"159,374"},{"v":159374.46000000002,"d":"159,374"}]
[4,"Amortissement (20%)",{"$nulls":4},{"$f":"20%*$F14","v":{"v":174602.46,"d":"174,602"}},{"v":174602.46,"d":"174,602"},{"v":174602.46,"d":"174,602"},{"v":174602.46,"d":"174,602"},{"v":174602.46,"d":"174,602"}]
[5,"Amortissement (20%)",{"$nulls":5},{"$f":"20%*$G14","v":{"v":183062.46,"d":"183,062"}},{"v":183062.46,"d":"183,062"},{"v":183062.46,"d":"183,062"},{"v":183062.46,"d":"183,062"},{"v":183062.46,"d":"183,062"}]
[]
[null,"Dotation annuelle",{"$f":"C25","v":0},{"$f":"SUM(D18:D22)-C25","v":{"v":202786.74669589044,"d":"202,787"}},{"v":142454.46000000002,"d":"142,454"},{"v":159374.46000000002,"d":"159,374"},{"v":174602.45999999996,"d":"174,602"},{"v":183062.45999999996,"d":"183,062"},{"v":-202786.74669589044,"d":"-202,787"},{"v":-142454.45999999996,"d":"-142,454"}]
[null,"Total Amortissement cumulés",{"$f":"SUM(C18:C23)","v":0},{"v":202786.74669589044,"d":"202,787"},{"v":345241.20669589046,"d":"345,241"},{"v":504615.6666958905,"d":"504,616"},{"v":679218.1266958904,"d":"679,218"},{"v":862280.5866958904,"d":"862,281"},{"v":659493.84,"d":"659,494"},{"v":517039.38,"d":"517,039"},{"v":357664.92,"d":"357,665"}]
[null,"VNC Actif incorporel",{"$f":"C15-C25","v":{"v":1013933.7334794521,"d":"1,013,934"}},{"v":1523419.2867835616,"d":"1,523,419"},{"v":2177837.1267835614,"d":"2,177,837"},{"v":2891474.9667835613,"d":"2,891,475"},{"v":3632184.806783561,"d":"3,632,185"},{"v":-862280.5866958904,"d":"-862,281"},{"v":-659493.84,"d":"-659,494"},{"v":-517039.38,"d":"-517,039"}]
{"$rows_empty":58}
[null,{"$f":"Amortissement!C15-C25","v":{"v":1013933.7334794521,"d":"1,013,934"}}]

{"sheet":"Pipe_S2=>","index":23,"n_rows":0,"n_cols":0,"rows_kept":0}

{"sheet":"Bilan_Social","index":24,"n_rows":97,"n_cols":10,"rows_kept":97,"merged":[[1,1,1,8]]}
[]
[null,"I) Bilan Social"]
[]
[null,"AVIE + PER + CAPI + FP","2027-12-31",{"$nulls":4},"CTRL ACTIF","CTRL PASSIF"]
[]
[null,"ACTIF","VNC","VM",null,"PASSIF"]
[null,"Capital souscrit non appelé ou compte de liaison avec le siège",{"$f":"'BP Assurance'!$B$84","v":0},{"$f":"C7","v":0},null,"Capitaux Propres",{"$f":"'BP Assurance'!$B$95","v":{"v":15000000,"d":"15,000,000"}}]
[null,"Actifs Incorporels",{"$f":"'BP Assurance'!$B$85","v":0},{"$f":"C8","v":0},null,"Résultat de l'exercice",{"$f":"'BP Assurance'!$B$96","v":{"v":-1584923.712615329,"d":"-1,584,924"}}]
[null,"Obligation Govies",{"$f":"'BP Assurance'!$B$86*Actif!$F$5/100","v":{"v":54535532.51724166,"d":"54,535,533"}},{"$f":"C9*(1+Actif!$O$5)","v":{"v":54535532.51724166,"d":"54,535,533"}},null,"Passifs subordonnés",{"$f":"'BP Assurance'!$B$97","v":0}]
[null,"Obligation Corporate",{"$f":"'BP Assurance'!$B$86*Actif!$F$6/100","v":{"v":14542808.671264444,"d":"14,542,809"}},{"$f":"C10*(1+Actif!$O$6)","v":{"v":14979092.931402378,"d":"14,979,093"}},null,"Provisions techniques brutes",{"$f":"SUM(G11:G13)","v":{"v":59298967.06893754,"d":"59,298,967"}}]
[null,"Action",0,0,null,"PM",{"$f":"'BP Assurance'!$B$98","v":{"v":59298967.06893754,"d":"59,298,967"}},null,null,{"$f":"G11=SUM(Model_Points!$C$7:$C$11,Model_Points!$C$15:$C$19)","v":false}]
[null,"Monétaire",{"$f":"'BP Assurance'!$B$86*Actif!$F$4/100","v":{"v":3635702.167816111,"d":"3,635,702"}},{"v":3635702.167816111,"d":"3,635,702"},null,"PSAP",0]
[null,"UC",{"$f":"'BP Assurance'!$B$87","v":{"v":32705850.55246595,"d":"32,705,851"}},{"v":32705850.55246595,"d":"32,705,851"},null,"PPE",0,null,{"$f":"C13=G14","v":true}]
[null,"Provisions sur placements",{"$f":"C15","v":0},0,null,"Provision techniques des contrats en unité de comptes",{"$f":"'BP Assurance'!$B$99","v":{"v":32705850.55246595,"d":"32,705,851"}},null,null,{"$f":"ROUND(G14,5)=ROUND(SUM(Model_Points!$L$7:$L$11,Model_Points!$L$15:$L$19),5)","v":true}]
[null,"PDD",0,0,null,"Autres provisions techniques",{"$f":"G16+G17","v":0}]
[null,"Part des cessionnaires et rétrocessionnaires dans les provisions techniques",{"$f":"'BP Assurance'!$B$88","v":0},0,null,"RC",0]
[null,"Créances",{"$f":"'BP Assurance'!$B$89","v":0},0,null,"PRE",0]
[null,"Autres Actifs",{"$f":"'BP Assurance'!$B$90","v":0},0,null,"Provisions (autres que techniques)",{"$f":"'BP Assurance'!$B$101","v":0}]
[null,"Comptes de régularisation Actif",{"$f":"'BP Assurance'!$B$91","v":0},0,null,"Dettes pour dépôts en espèces reçues des cessionnaires",{"$f":"'BP Assurance'!$B$102","v":0}]
[{"$nulls":5},"Autres Dettes",{"$f":"'BP Assurance'!$B$103","v":0}]
[{"$nulls":5},"Comptes de régularisation Passif",{"$f":"'BP Assurance'!$B$104","v":0}]
[]
[null,"AVIE + PER + CAPI + FP","2028-12-31"]
[]
[null,"ACTIF","VNC","VM",null,"PASSIF"]
[null,"Capital souscrit non appelé ou compte de liaison avec le siège",{"$f":"'BP Assurance'!$C$84","v":0},{"$f":"C26","v":0},null,"Capitaux Propres",{"$f":"'BP Assurance'!$C$95","v":{"v":13415076.287384668,"d":"13,415,076"}}]
[null,"Actifs Incorporels",{"$f":"'BP Assurance'!$C$85","v":0},{"$f":"C27","v":0},null,"Résultat de l'exercice",{"$f":"'BP Assurance'!$C$96","v":{"v":-795493.8282260197,"d":"-795,494"}}]
[null,"Obligation Govies",{"$f":"'BP Assurance'!$C$86*Actif!$F$5/100","v":{"v":112676070.28986195,"d":"112,676,070"}},{"$f":"C28*(1+Actif!$O$5)","v":{"v":112676070.28986195,"d":"112,676,070"}},null,"Passifs subordonnés",{"$f":"'BP Assurance'!$C$97","v":0}]
[null,"Obligation Corporate",{"$f":"'BP Assurance'!$C$86*Actif!$F$6/100","v":{"v":30046952.077296518,"d":"30,046,952"}},{"$f":"C29*(1+Actif!$O$6)","v":{"v":30948360.639615413,"d":"30,948,361"}},null,"Provisions techniques brutes",{"$f":"SUM(G30:G32)","v":{"v":137615177.92732394,"d":"137,615,178"}}]
[null,"Action",0,0,null,"PM",{"$f":"'BP Assurance'!$C$98","v":{"v":137615177.92732394,"d":"137,615,178"}},null,null,{"$f":"ROUND(G30,2)=ROUND(SUM(Model_Points!$C$23:$C$27,Model_Points!$C$31:$C$35),2)","v":true}]
[null,"Monétaire",{"$f":"'BP Assurance'!$C$86*Actif!$F$4/100","v":{"v":7511738.019324129,"d":"7,511,738"}},{"v":7511738.019324129,"d":"7,511,738"},null,"PSAP",0]
[null,"UC",{"$f":"'BP Assurance'!$C$87","v":{"v":76619839.45915239,"d":"76,619,839"}},{"v":76619839.45915239,"d":"76,619,839"},null,"PPE",0,null,{"$f":"C32=G33","v":true}]
[null,"Provisions sur placements",{"$f":"C34","v":0},0,null,"Provision techniques des contrats en unité de comptes",{"$f":"'BP Assurance'!$C$99","v":{"v":76619839.45915239,"d":"76,619,839"}},null,null,{"$f":"ROUND(G33,5)=ROUND(SUM(Model_Points!$L$23:$L$27,Model_Points!$L$31:$L$35),5)","v":true}]
[null,"PDD",0,0,null,"Autres provisions techniques",{"$f":"G35+G36","v":0}]
[null,"Part des cessionnaires et rétrocessionnaires dans les provisions techniques",{"$f":"'BP Assurance'!$C$88","v":0},0,null,"RC",0]
[null,"Créances",{"$f":"'BP Assurance'!$C$89","v":0},0,null,"PRE",0]
[null,"Autres Actifs",{"$f":"'BP Assurance'!$C$90","v":0},0,null,"Provisions (autres que techniques)",{"$f":"'BP Assurance'!$C$101","v":0}]
[null,"Comptes de régularisation Actif",{"$f":"'BP Assurance'!$C$91","v":0},0,null,"Dettes pour dépôts en espèces reçues des cessionnaires",{"$f":"'BP Assurance'!$C$102","v":0}]
[{"$nulls":5},"Autres Dettes",{"$f":"'BP Assurance'!$C$103","v":0}]
[{"$nulls":5},"Comptes de régularisation Passif",{"$f":"'BP Assurance'!$C$104","v":0}]
[]
[null,"AVIE + PER + CAPI + FP","2029-12-31"]
[]
[null,"ACTIF","VNC","VM",null,"PASSIF"]
[null,"Capital souscrit non appelé ou compte de liaison avec le siège",{"$f":"'BP Assurance'!$D$84","v":0},{"$f":"C45","v":0},null,"Capitaux Propres",{"$f":"'BP Assurance'!$D$95","v":{"v":27619582.45915866,"d":"27,619,582"}}]
[null,"Actifs Incorporels",{"$f":"'BP Assurance'!$D$85","v":0},{"$f":"C46","v":0},null,"Résultat de l'exercice",{"$f":"'BP Assurance'!$D$96","v":{"v":238879.27259471663,"d":"238,879"}}]
[null,"Obligation Govies",{"$f":"'BP Assurance'!$D$86*Actif!$F$5/100","v":{"v":213063173.63678673,"d":"213,063,174"}},{"$f":"C47*(1+Actif!$O$5)","v":{"v":213063173.63678673,"d":"213,063,174"}},null,"Passifs subordonnés",{"$f":"'BP Assurance'!$D$97","v":0}]
[null,"Obligation Corporate",{"$f":"'BP Assurance'!$D$86*Actif!$F$6/100","v":{"v":56816846.30314313,"d":"56,816,846"}},{"$f":"C48*(1+Actif!$O$6)","v":{"v":58521351.69223742,"d":"58,521,352"}},null,"Provisions techniques brutes",{"$f":"SUM(G49:G51)","v":{"v":256225769.7839623,"d":"256,225,770"}}]
[null,"Action",0,0,null,"PM",{"$f":"'BP Assurance'!$D$98","v":{"v":256225769.7839623,"d":"256,225,770"}},null,null,{"$f":"ROUND(G49,2)=ROUND(SUM(Model_Points!$C$39:$C$43,Model_Points!$C$47:$C$51),2)","v":true}]
[null,"Monétaire",{"$f":"'BP Assurance'!$D$86*Actif!$F$4/100","v":{"v":14204211.575785782,"d":"14,204,212"}},{"v":14204211.575785782,"d":"14,204,212"},null,"PSAP",0]
[null,"UC",{"$f":"'BP Assurance'!$D$87","v":{"v":144569480.42423117,"d":"144,569,480"}},{"v":144569480.42423117,"d":"144,569,480"},null,"PPE",0,null,{"$f":"C51=G52","v":true}]
[null,"Provisions sur placements",{"$f":"C53","v":0},0,null,"Provision techniques des contrats en unité de comptes",{"$f":"'BP Assurance'!$D$99","v":{"v":144569480.42423117,"d":"144,569,480"}},null,null,{"$f":"ROUND(G52,4)=ROUND(SUM(Model_Points!$L$39:$L$43,Model_Points!$L$47:$L$51),4)","v":true}]
[null,"PDD",0,0,null,"Autres provisions techniques",{"$f":"G54+G55","v":0}]
[null,"Part des cessionnaires et rétrocessionnaires dans les provisions techniques",{"$f":"'BP Assurance'!$D$88","v":0},0,null,"RC",0]
[null,"Créances",{"$f":"'BP Assurance'!$D$89","v":0},0,null,"PRE",0]
[null,"Autres Actifs",{"$f":"'BP Assurance'!$D$90","v":0},0,null,"Provisions (autres que techniques)",{"$f":"'BP Assurance'!$D$101","v":0}]
[null,"Comptes de régularisation Actif",{"$f":"'BP Assurance'!$D$91","v":0},0,null,"Dettes pour dépôts en espèces reçues des cessionnaires",{"$f":"'BP Assurance'!$D$102","v":0}]
[{"$nulls":5},"Autres Dettes",{"$f":"'BP Assurance'!$D$103","v":0}]
[{"$nulls":5},"Comptes de régularisation Passif",{"$f":"'BP Assurance'!$D$104","v":0}]
[]
[null,"AVIE + PER + CAPI + FP","2030-12-31"]
[]
[null,"ACTIF","VNC","VM",null,"PASSIF"]
[null,"Capital souscrit non appelé ou compte de liaison avec le siège",{"$f":"'BP Assurance'!$E$84","v":0},{"$f":"C64","v":0},null,"Capitaux Propres",{"$f":"'BP Assurance'!$E$95","v":{"v":27858461.731753357,"d":"27,858,462"}}]
[null,"Actifs Incorporels",{"$f":"'BP Assurance'!$E$85","v":0},{"$f":"C65","v":0},null,"Résultat de l'exercice",{"$f":"'BP Assurance'!$E$96","v":{"v":1168786.5041843508,"d":"1,168,787"}}]
[null,"Obligation Govies",{"$f":"'BP Assurance'!$E$86*Actif!$F$5/100","v":{"v":340000786.8990973,"d":"340,000,787"}},{"$f":"C66*(1+Actif!$O$5)","v":{"v":340000786.8990973,"d":"340,000,787"}},null,"Passifs subordonnés",{"$f":"'BP Assurance'!$E$97","v":0}]
[null,"Obligation Corporate",{"$f":"'BP Assurance'!$E$86*Actif!$F$6/100","v":{"v":90666876.50642595,"d":"90,666,877"}},{"$f":"C67*(1+Actif!$O$6)","v":{"v":93386882.80161873,"d":"93,386,883"}},null,"Provisions techniques brutes",{"$f":"SUM(G68:G70)","v":{"v":424307134.29619205,"d":"424,307,134"}}]
[null,"Action",0,0,null,"PM",{"$f":"'BP Assurance'!$E$98","v":{"v":424307134.29619205,"d":"424,307,134"}},null,null,{"$f":"ROUND(G68,2)=ROUND(SUM(Model_Points!$C$55:$C$59,Model_Points!$C$63:$C$67),2)","v":true}]
[null,"Monétaire",{"$f":"'BP Assurance'!$E$86*Actif!$F$4/100","v":{"v":22666719.126606487,"d":"22,666,719"}},{"v":22666719.126606487,"d":"22,666,719"},null,"PSAP",0]
[null,"UC",{"$f":"'BP Assurance'!$E$87","v":{"v":242667151.6624575,"d":"242,667,152"}},{"v":242667151.6624575,"d":"242,667,152"},null,"PPE",0,null,{"$f":"C70=G71","v":true}]
[null,"Provisions sur placements",{"$f":"C72","v":0},0,null,"Provision techniques des contrats en unité de comptes",{"$f":"'BP Assurance'!$E$99","v":{"v":242667151.6624575,"d":"242,667,152"}},null,null,{"$f":"ROUND(G71,4)=ROUND(SUM(Model_Points!$L$55:$L$59,Model_Points!$L$63:$L$67),4)","v":true}]
[null,"PDD",0,0,null,"Autres provisions techniques",{"$f":"G73+G74","v":0}]
[null,"Part des cessionnaires et rétrocessionnaires dans les provisions techniques",{"$f":"'BP Assurance'!$E$88","v":0},0,null,"RC",0]
[null,"Créances",{"$f":"'BP Assurance'!$E$89","v":0},0,null,"PRE",0]
[null,"Autres Actifs",{"$f":"'BP Assurance'!$E$90","v":0},0,null,"Provisions (autres que techniques)",{"$f":"'BP Assurance'!$E$101","v":0}]
[null,"Comptes de régularisation Actif",{"$f":"'BP Assurance'!$E$91","v":0},0,null,"Dettes pour dépôts en espèces reçues des cessionnaires",{"$f":"'BP Assurance'!$E$102","v":0}]
[{"$nulls":5},"Autres Dettes",{"$f":"'BP Assurance'!$E$103","v":0}]
[{"$nulls":5},"Comptes de régularisation Passif",{"$f":"'BP Assurance'!$E$104","v":0}]
[]
[null,"AVIE + PER + CAPI + FP","2031-12-31"]
[]
[null,"ACTIF","VNC","VM",null,"PASSIF"]
[null,"Capital souscrit non appelé ou compte de liaison avec le siège",{"$f":"'BP Assurance'!$F$84","v":0},{"$f":"C83","v":0},null,"Capitaux Propres",{"$f":"'BP Assurance'!$F$95","v":{"v":29027248.2359377,"d":"29,027,248"}}]
[null,"Actifs Incorporels",{"$f":"'BP Assurance'!$F$85","v":0},{"$f":"C84","v":0},null,"Résultat de l'exercice",{"$f":"'BP Assurance'!$F$96","v":{"v":2696012.22598664,"d":"2,696,012"}}]
[null,"Obligation Govies",{"$f":"'BP Assurance'!$F$86*Actif!$F$5/100","v":{"v":494217744.00332665,"d":"494,217,744"}},{"$f":"C85*(1+Actif!$O$5)","v":{"v":494217744.00332665,"d":"494,217,744"}},null,"Passifs subordonnés",{"$f":"'BP Assurance'!$F$97","v":0}]
[null,"Obligation Corporate",{"$f":"'BP Assurance'!$F$86*Actif!$F$6/100","v":{"v":131791398.4008871,"d":"131,791,398"}},{"$f":"C86*(1+Actif!$O$6)","v":{"v":135745140.3529137,"d":"135,745,140"}},null,"Provisions techniques brutes",{"$f":"SUM(G87:G89)","v":{"v":627233731.5425112,"d":"627,233,732"}}]
[null,"Action",0,{"$f":"C87","v":0},null,"PM",{"$f":"'BP Assurance'!$F$98","v":{"v":627233731.5425112,"d":"627,233,732"}},null,null,{"$f":"ROUND(G87,2)=ROUND(SUM(Model_Points!C71:C75,Model_Points!C79:C83),2)","v":true}]
[null,"Monétaire",{"$f":"'BP Assurance'!$F$86*Actif!$F$4/100","v":{"v":32947849.600221775,"d":"32,947,850"}},{"v":32947849.600221775,"d":"32,947,850"},null,"PSAP",0]
[null,"UC",{"$f":"'BP Assurance'!$F$87","v":{"v":363608279.39629775,"d":"363,608,279"}},{"v":363608279.39629775,"d":"363,608,279"},null,"PPE",0,null,{"$f":"C89=G90","v":true}]
[null,"Provisions sur placements",{"$f":"C91","v":0},0,null,"Provision techniques des contrats en unité de comptes",{"$f":"'BP Assurance'!$F$99","v":{"v":363608279.39629775,"d":"363,608,279"}},null,null,{"$f":"ROUND(G90,4)=ROUND(SUM(Model_Points!L71:L75,Model_Points!L79:L83),4)","v":true}]
[null,"PDD",0,0,null,"Autres provisions techniques",{"$f":"G92+G93","v":0}]
[null,"Part des cessionnaires et rétrocessionnaires dans les provisions techniques",{"$f":"'BP Assurance'!$F$88","v":0},0,null,"RC",0]
[null,"Créances",{"$f":"'BP Assurance'!$F$89","v":0},0,null,"PRE",0]
[null,"Autres Actifs",{"$f":"'BP Assurance'!$F$90","v":0},0,null,"Provisions (autres que techniques)",{"$f":"'BP Assurance'!$F$101","v":0}]
[null,"Comptes de régularisation Actif",{"$f":"'BP Assurance'!$F$91","v":0},0,null,"Dettes pour dépôts en espèces reçues des cessionnaires",{"$f":"'BP Assurance'!$F$102","v":0}]
[{"$nulls":5},"Autres Dettes",{"$f":"'BP Assurance'!$F$103","v":0}]
[{"$nulls":5},"Comptes de régularisation Passif",{"$f":"'BP Assurance'!$F$104","v":0}]

{"sheet":"Frais","index":25,"n_rows":75,"n_cols":7,"rows_kept":75,"merged":[[1,1,1,17]]}
[]
[null,"I) Frais et commissions"]
[]
[]
[null,"AVIE / PER / CAPI",null,"2027-12-31"]
[null,"Frais","Taux","Driver"]
[null,"Frais Acquisition",{"$f":"(-'BP Assurance'!$B$24-'BP Financier'!$C$87)/'BP Assurance'!$B$5","v":{"v":0.012546053117451082,"d":"1.255%"}},"Primes"]
[null,"Frais Gestion Sinistres",{"$f":"'BP Assurance'!$B$17/('BP Assurance'!$B$15+'BP Assurance'!$B$16)","v":{"v":0.011091165000657257,"d":"1.109%"}},"Prestations"]
[null,"Frais Administration",{"$f":"-('BP Assurance'!$B$27+'BP Assurance'!$B$32+'BP Financier'!$C$92+'BP Assurance'!$B$28)/('BP Financier'!$C$50)","v":{"v":0.011622045909954607,"d":"1.162%"}},"PM","exclusion C3S sur primes"]
[null,"Frais Financiers",{"$f":"-'BP Financier'!$C$55/SUM(Model_Points!$D$7:$D$11,Model_Points!$D$15:$D$19)","v":{"v":4.9352619481581289E-4,"d":"0.049%"}},"VM"]
[null,"Prélèvements Sociaux",{"v":0.172,"d":"17.200%"},"PB"]
[null,"Clause PB",{"v":0.85,"d":"85.000%"},"Produits financiers"]
[null,"Frais d'acquisition : hors comm. distribution intégrées directement dans la projection des frais dans la maquette S2"]
[null,"Frais Administration / Frais acq : montant de frais sur l'ensemble des périmètres => tx unique tout produit"]
[]
[null,"AVIE / PER / CAPI",null,"2028-12-31"]
[null,"Frais","Taux","Driver"]
[null,"Frais Acquisition",{"$f":"(-'BP Assurance'!$C$24-'BP Financier'!$D$87)/'BP Assurance'!$C$5","v":{"v":0.008178665734698744,"d":"0.818%"}},"Primes"]
[null,"Frais Gestion Sinistres",{"$f":"'BP Assurance'!$C$17/('BP Assurance'!$C$15+'BP Assurance'!$C$16)","v":{"v":5.6147309334822326E-3,"d":"0.561%"}},"Prestations"]
[null,"Frais Administration",{"$f":"-('BP Assurance'!$C$27+'BP Assurance'!$C$32+'BP Financier'!$D$92+'BP Assurance'!$C$28)/('BP Financier'!$D$50)","v":{"v":0.005471616935564877,"d":"0.547%"}},"PM","exclusion C3S sur primes"]
[null,"Frais Financiers",{"$f":"-'BP Financier'!$D$55/SUM(Model_Points!$D$23:$D$27,Model_Points!$D$31:$D$35)","v":{"v":0.000706188736948312,"d":"0.071%"}},"VM"]
[null,"Prélèvements Sociaux",{"v":0.172,"d":"17.200%"},"PB"]
[null,"Clause PB",{"v":0.85,"d":"85.000%"},"Produits financiers"]
[null,"Frais d'acquisition : hors comm. distribution intégrées directement dans la projection des frais dans la maquette S2"]
[null,"Frais Administration / Frais acq : montant de frais sur l'ensemble des périmètres => tx unique tout produit"]
[]
[null,"AVIE / PER / CAPI",null,"2029-12-31"]
[null,"Frais","Taux","Driver"]
[null,"Frais Acquisition",{"$f":"(-'BP Assurance'!$D$24-'BP Financier'!$E$87)/'BP Assurance'!$D$5","v":{"v":0.00633780395881166,"d":"0.634%"}},"Primes"]
[null,"Frais Gestion Sinistres",{"$f":"'BP Assurance'!$D$17/('BP Assurance'!$D$15+'BP Assurance'!$D$16)","v":{"v":0.003610553752960731,"d":"0.361%"}},"Prestations"]
[null,"Frais Administration",{"$f":"-('BP Assurance'!$D$27+'BP Assurance'!$D$32+'BP Financier'!$E$92+'BP Assurance'!$D$28)/('BP Financier'!$E$50)","v":{"v":3.692149467230232E-3,"d":"0.369%"}},"PM","exclusion C3S sur primes"]
[null,"Frais Financiers",{"$f":"-'BP Financier'!$E$55/SUM(Model_Points!$D$39:$D$43,Model_Points!$D$47:$D$51)","v":{"v":7.5859202003954987E-4,"d":"0.076%"}},"VM"]
[null,"Prélèvements Sociaux",{"v":0.172,"d":"17.200%"},"PB"]
[null,"Clause PB",{"v":0.85,"d":"85.000%"},"Produits financiers"]
[null,"Frais d'acquisition : hors comm. distribution intégrées directement dans la projection des frais dans la maquette S2"]
[null,"Frais Administration / Frais acq : montant de frais sur l'ensemble des périmètres => tx unique tout produit"]
[]
[null,"AVIE / PER / CAPI",null,"2030-12-31"]
[null,"Frais","Taux","Driver"]
[null,"Frais Acquisition",{"$f":"(-'BP Assurance'!$E$24-'BP Financier'!$F$87)/'BP Assurance'!$E$5","v":{"v":0.005078354007249192,"d":"0.508%"}},"Primes"]
[null,"Frais Gestion Sinistres",{"$f":"'BP Assurance'!$E$17/('BP Assurance'!$E$15+'BP Assurance'!$E$16)","v":{"v":0.003147697600927169,"d":"0.315%"}},"Prestations"]
[null,"Frais Administration",{"$f":"-('BP Assurance'!$E$27+'BP Assurance'!$E$32+'BP Financier'!$F$92+'BP Assurance'!$E$28)/('BP Financier'!$F$50)","v":{"v":0.003071551294521244,"d":"0.307%"}},"PM","exclusion C3S sur primes"]
[null,"Frais Financiers",{"$f":"C32","v":{"v":7.5859202003954987E-4,"d":"0.076%"}},"VM","MP 2029 car 2030 non calculés"]
[null,"Prélèvements Sociaux",{"v":0.172,"d":"17.200%"},"PB"]
[null,"Clause PB",{"v":0.85,"d":"85.000%"},"Produits financiers"]
[null,"Frais d'acquisition : hors comm. distribution intégrées directement dans la projection des frais dans la maquette S2"]
[null,"Frais Administration / Frais acq : montant de frais sur l'ensemble des périmètres => tx unique tout produit"]
[]
[null,"AVIE / PER / CAPI",null,"2031-12-31"]
[null,"Frais","Taux","Driver"]
[null,"Frais Acquisition",{"$f":"(-'BP Assurance'!$F$24-'BP Financier'!$G$87)/'BP Assurance'!$F$5","v":{"v":0.00462811798301324,"d":"0.463%"}},"Primes",null,null,{"$f":"(-'BP Assurance'!$F$24-'BP Financier'!$G$87)","v":{"v":1660476.1699454905,"d":"1,660,476"}}]
[null,"Frais Gestion Sinistres",{"$f":"'BP Assurance'!$F$17/('BP Assurance'!$F$15+'BP Assurance'!$F$16)","v":{"v":2.5892815693194997E-3,"d":"0.259%"}},"Prestations",null,null,{"$f":"G51-[3]Frais!$G$51","v":{"v":1148359.571558442,"d":"1,148,360"}}]
[null,"Frais Administration",{"$f":"-('BP Assurance'!$F$27+'BP Assurance'!$F$32+'BP Financier'!$G$92+'BP Assurance'!$F$28)/('BP Financier'!$G$50)","v":{"v":0.00212358821296044,"d":"0.212%"}},"PM","exclusion C3S sur primes",null,{"$f":"-('BP Assurance'!$F$27+'BP Assurance'!$F$32+'BP Financier'!$G$92+'BP Assurance'!$F$28)","v":{"v":2104140.4153356743,"d":"2,104,140"}}]
[null,"Frais Financiers",{"$f":"C43","v":{"v":7.5859202003954987E-4,"d":"0.076%"}},"VM","MP 2029 car 2030 non calculés",null,{"$f":"G53-Frais!$G$53","v":0}]
[null,"Prélèvements Sociaux",{"v":0.172,"d":"17.200%"},"PB"]
[null,"Clause PB",{"v":0.85,"d":"85.000%"},"Produits financiers"]
[null,"Frais d'acquisition : hors comm. distribution intégrées directement dans la projection des frais dans la maquette S2"]
[null,"Frais Administration / Frais acq : montant de frais sur l'ensemble des périmètres => tx unique tout produit"]
[]
[]
[]
[]
[]
[]
[null,"Chargements","Taux"]
[null,"Frais Gestion Euro",{"v":0.0042,"d":"0.42%"}]
[null,"Commissions Distributeur Euro",{"v":0.006,"d":"0.60%"}]
[null,"Frais Gestion UC",{"v":0.004,"d":"0.40%"}]
[null,"Commissions Distributeur UC",{"v":0.006,"d":"0.60%"}]
[]
[null,"Chargements","Taux"]
[null,"Frais Gestion Euro",{"v":0.004,"d":"0.40%"}]
[null,"Commissions Distributeur Euro",{"v":0.006,"d":"0.60%"}]
[null,"Frais Gestion UC",{"v":0.0034,"d":"0.34%"}]
[null,"Commissions Distributeur UC",{"v":0.006,"d":"0.60%"}]

{"sheet":"Model_Points","index":26,"n_rows":10116,"n_cols":28,"rows_kept":10116,"merged":[[1,1,1,17],[84,1,84,19]]}
[]
[null,"I) Model Points Actifs"]
[]
[]
[null,"AVIE","Euro","2027-12-31",{"$nulls":6},"AVIE / CAPI","UC","2027-12-31",{"$nulls":3},"AVIE / CAPI","2027-12-31","TEST PM EURO","A VIE","PER","CAPI"]
[null,"Asset Type","VNC","VM","COUPON_PC","NOMINAL","MATURITY_RESID","SPREAD_PC","DIV_PC",null,"Asset Type","VNC","VM","DIV_PC","UC_TYPE",null,"Asset Type","VNC",2027,{"$f":"SUM($C$7:$C$11)=('BP Financier'!$C$33*SCR_Op!$L$12)","v":false},{"$f":"SUM($C$15:$C$19)=('BP Financier'!$C$33*SCR_Op!$L$13)","v":false}]
[null,"BONDS_GOV",{"$f":"SUM($N$90:$N$195)*Actif!$F$5/100","v":41318343.03049948},{"$f":"C7*(1+Actif!$O$5)","v":41318343.03049948},0,{"$f":"C7","v":41318343.03049948},7,{"$nulls":3},"OBLIG_CORP",{"$f":"SUM($P$90:$P$195)","v":{"v":3868843.461011797,"d":"3,868,843"}},{"$f":"L7","v":3868843.461011797},0,1,null,"PPE",0,2028,{"$f":"ROUND(SUM($C$23:$C$27),2)=ROUND(('BP Financier'!$D$33*SCR_Op!$M$12),2)","v":true},{"$f":"SUM($C$31:$C$35)=('BP Financier'!$D$33*SCR_Op!$M$13)","v":false}]
[null,"BONDS_CORP",{"$f":"SUM($N$90:$N$195)*Actif!$F$6/100","v":11018224.808133194},{"$f":"C8*(1+Actif!$O$6)","v":11348771.55237719},0,{"$f":"C8","v":11018224.808133194},7,{"$nulls":3},"OBLIG_CORP_NR",{"$f":"SUM($Q$90:$Q$195)","v":{"v":2586353.9159250124,"d":"2,586,354"}},{"$f":"L8","v":2586353.9159250124},0,2,null,"RC",0,2029,{"$f":"ROUND(SUM($C$39:$C$43),2)=ROUND(('BP Financier'!$E$33*SCR_Op!$N$12),2)","v":true},{"$f":"ROUND(SUM($C$47:$C$51),2)=ROUND(('BP Financier'!$E$33*SCR_Op!$N$13),2)","v":true}]
[null,"EQ_TYPE_1",0,{"$f":"C9","v":0},0,{"$nulls":3},0,null,"EQ_TYPE_1",{"$f":"SUM($R$90:$R$195)","v":{"v":20241959.98661975,"d":"20,241,960"}},20241959.98661975,0,3,{"$nulls":3},2030,{"$f":"ROUND(SUM($C$55:$C$59),2)=ROUND(('BP Financier'!$F$33*SCR_Op!$O$12),2)","v":true},{"$f":"ROUND(SUM($C$63:$C$67),2)=ROUND(('BP Financier'!$F$33*SCR_Op!$O$13),2)","v":true}]
[null,"EQ_TYPE_2",0,{"$f":"C10","v":0},0,{"$nulls":3},0,null,"EQ_TYPE_2",{"$f":"SUM($S$90:$S$195)","v":{"v":2500854.612919233,"d":"2,500,855"}},2500854.612919233,0,4,{"$nulls":3},2031,{"$f":"ROUND(SUM($C$71:$C$75),5)=ROUND(('BP Financier'!$G$33*SCR_Op!$P$12),5)","v":true},{"$f":"ROUND(SUM($C$79:$C$83),3)=ROUND(('BP Financier'!$G$33*SCR_Op!$P$13),3)","v":true}]
[null,"CASH",{"$f":"SUM($N$90:$N$195)*Actif!$F$4/100","v":2754556.2020332986},{"$f":"C11","v":2754556.2020332986},0,{"$nulls":5},"MONETAIRE",{"$f":"SUM($T$90:$T$195)","v":{"v":1196990.242080996,"d":"1,196,990"}},1196990.242080996,0,5]
[{"$nulls":18},"TEST PM UC","A VIE / CAPI","PER"]
[null,"PER","Euro","2027-12-31",{"$nulls":6},"PER","UC","2027-12-31",{"$nulls":3},"PER","2027-12-31",2027,{"$f":"ROUND(SUM($L$7:$L$11),5)=ROUND(('BP Financier'!$C$44*(SCR_Op!$L$6+SCR_Op!$L$8)),5)","v":true},{"$f":"SUM($L$15:$L$19)=('BP Financier'!$C$44*(SCR_Op!$L$7))","v":true}]
[null,"Asset Type","VNC","VM","COUPON_PC","NOMINAL","MATURITY_RESID","SPREAD_PC","DIV_PC",null,"Asset Type","VNC","VM","DIV_PC","UC_TYPE",null,"Asset Type","VNC",2028,{"$f":"ROUND(SUM($L$23:$L$27),3)=ROUND(('BP Financier'!$D$44*(SCR_Op!$M$6+SCR_Op!$M$8)),3)","v":true},{"$f":"SUM($L$31:$L$35)=('BP Financier'!$D$44*(SCR_Op!$M$7))","v":true}]
[null,"BONDS_GOV",{"$f":"SUM($N$1093:$N$1135)*Actif!$F$5/100","v":3155882.271203712},{"$f":"C15*(1+Actif!$O$5)","v":3155882.271203712},0,{"$f":"C15","v":3155882.271203712},7,{"$nulls":3},"OBLIG_CORP",{"$f":"SUM($P$1093:$P$1135)","v":294137.5164821099},{"$f":"L15","v":294137.5164821099},0,1,null,"PPE",0,2029,{"$f":"ROUND(SUM($L$39:$L$43),5)=ROUND(('BP Financier'!$E$44*(SCR_Op!$N$6+SCR_Op!$N$8)),5)","v":true},{"$f":"SUM($L$47:$L$51)=('BP Financier'!$E$44*(SCR_Op!$N$7))","v":true}]
[null,"BONDS_CORP",{"$f":"SUM($N$1093:$N$1135)*Actif!$F$6/100","v":841568.6056543232},{"$f":"C16*(1+Actif!$O$6)","v":866815.663823953},0,{"$f":"C16","v":841568.6056543232},7,{"$nulls":3},"OBLIG_CORP_NR",{"$f":"SUM($Q$1093:$Q$1135)","v":196633.36737201823},{"$f":"L16","v":196633.36737201823},0,2,null,"RC",0,2030,{"$f":"ROUND(SUM($L$55:$L$59),5)=ROUND(('BP Financier'!$F$44*(SCR_Op!$O$6+SCR_Op!$O$8)),5)","v":true},{"$f":"ROUND(SUM($L$63:$L$67),5)=ROUND(('BP Financier'!$F$44*(SCR_Op!$O$7)),5)","v":true}]
[null,"EQ_TYPE_1",0,{"$f":"C17","v":0},0,{"$nulls":3},0,null,"EQ_TYPE_1",{"$f":"SUM($R$1093:$R$1135)","v":1538940.4867876135},1538940.4867876135,0,3,{"$nulls":3},2031,{"$f":"ROUND(SUM($L$71:$L$75),4)=ROUND(('BP Financier'!$G$44*(SCR_Op!$P$6+SCR_Op!$P$8)),4)","v":true},{"$f":"ROUND(SUM($L$79:$L$83),5)=ROUND(('BP Financier'!$G$44*(SCR_Op!$P$7)),5)","v":true}]
[null,"EQ_TYPE_2",0,{"$f":"C18","v":0},0,{"$nulls":3},0,null,"EQ_TYPE_2",{"$f":"SUM($S$1093:$S$1135)","v":190133.09076467875},190133.09076467875,0,4]
[null,"CASH",{"$f":"SUM($N$1093:$N$1135)*Actif!$F$4/100","v":210392.1514135808},{"$f":"C19","v":210392.1514135808},0,{"$nulls":5},"MONETAIRE",{"$f":"SUM($T$1093:$T$1135)","v":91003.87250275225},91003.87250275225,0,5]
[]
[null,"AVIE","Euro","2028-12-31",{"$nulls":6},"AVIE / CAPI","UC","2028-12-31",{"$nulls":3},"AVIE / CAPI","2028-12-31"]
[null,"Asset Type","VNC","VM","COUPON_PC","NOMINAL","MATURITY_RESID","SPREAD_PC","DIV_PC",null,"Asset Type","VNC","VM","DIV_PC","UC_TYPE",null,"Asset Type","VNC"]
[null,"BONDS_GOV",{"$f":"SUM($N$2096:$N$2201)*Actif!$F$5/100","v":95552794.42552826},{"$f":"C23*(1+Actif!$O$5)","v":95552794.42552826},0,{"$f":"C23","v":95552794.42552826},7,{"$nulls":3},"OBLIG_CORP",{"$f":"SUM($P$2096:$P$2307)","v":{"v":9031964.618102849,"d":"9,031,965"}},{"$f":"L23","v":9031964.618102849},0,1,null,"PPE",0]
[null,"BONDS_CORP",{"$f":"SUM($N$2096:$N$2201)*Actif!$F$6/100","v":25480745.18014087},{"$f":"C24*(1+Actif!$O$6)","v":26245167.5355451},0,{"$f":"C24","v":25480745.18014087},7,{"$nulls":3},"OBLIG_CORP_NR",{"$f":"SUM($Q$2096:$Q$2307)","v":{"v":6037943.197737265,"d":"6,037,943"}},{"$f":"L24","v":6037943.197737265},0,2,null,"RC",0]
[null,"EQ_TYPE_1",0,{"$f":"C25","v":0},0,{"$nulls":3},0,null,"EQ_TYPE_1",{"$f":"SUM($R$2096:$R$2307)","v":{"v":47255638.084770024,"d":"47,255,638"}},47255638.084770024,0,3]
[null,"EQ_TYPE_2",0,{"$f":"C26","v":0},0,{"$nulls":3},0,null,"EQ_TYPE_2",{"$f":"SUM($S$2096:$S$2307)","v":{"v":5838341.769712898,"d":"5,838,342"}},5838341.769712898,0,4]
[null,"CASH",{"$f":"SUM($N$2096:$N$2201)*Actif!$F$4/100","v":6370186.295035218},{"$f":"C27","v":6370186.295035218},0,{"$nulls":5},"MONETAIRE",{"$f":"SUM($T$2096:$T$2307)","v":{"v":2794419.9923412143,"d":"2,794,420"}},2794419.9923412143,0,5]
[]
[null,"PER","Euro","2028-12-31",{"$nulls":6},"PER","UC","2028-12-31",{"$nulls":3},"PER","2028-12-31"]
[null,"Asset Type","VNC","VM","COUPON_PC","NOMINAL","MATURITY_RESID","SPREAD_PC","DIV_PC",null,"Asset Type","VNC","VM","DIV_PC","UC_TYPE",null,"Asset Type","VNC"]
[null,"BONDS_GOV",{"$f":"SUM($N$3099:$N$3184)*Actif!$F$5/100","v":7658589.019964818},{"$f":"C31*(1+Actif!$O$5)","v":7658589.019964818},0,{"$f":"C31","v":7658589.019964818},7,{"$nulls":3},"OBLIG_CORP",{"$f":"SUM($P$3099:$P$3184)","v":720630.9811282144},{"$f":"L31","v":720630.9811282144},0,1,null,"PPE",0]
[null,"BONDS_CORP",{"$f":"SUM($N$3099:$N$3184)*Actif!$F$6/100","v":2042290.4053239513},{"$f":"C32*(1+Actif!$O$6)","v":2103559.11748367},0,{"$f":"C32","v":2042290.4053239513},7,{"$nulls":3},"OBLIG_CORP_NR",{"$f":"SUM($Q$3099:$Q$3184)","v":481747.7829641655},{"$f":"L32","v":481747.7829641655},0,2,null,"RC",0]
[null,"EQ_TYPE_1",0,{"$f":"C33","v":0},0,{"$nulls":3},0,null,"EQ_TYPE_1",{"$f":"SUM($R$3099:$R$3184)","v":3770373.1443559043},3770373.1443559043,0,3]
[null,"EQ_TYPE_2",0,{"$f":"C34","v":0},0,{"$nulls":3},0,null,"EQ_TYPE_2",{"$f":"SUM($S$3099:$S$3184)","v":465822.2364198951},465822.2364198951,0,4]
[null,"CASH",{"$f":"SUM($N$3099:$N$3184)*Actif!$F$4/100","v":510572.6013309878},{"$f":"C35","v":510572.6013309878},0,{"$nulls":5},"MONETAIRE",{"$f":"SUM($T$3099:$T$3184)","v":222957.65161977892},222957.65161977892,0,5]
[]
[null,"AVIE","Euro","2029-12-31",{"$nulls":6},"AVIE / CAPI","UC","2029-12-31",{"$nulls":3},"AVIE / CAPI","2029-12-31"]
[null,"Asset Type","VNC","VM","COUPON_PC","NOMINAL","MATURITY_RESID","SPREAD_PC","DIV_PC",null,"Asset Type","VNC","VM","DIV_PC","UC_TYPE",null,"Asset Type","VNC"]
[null,"BONDS_GOV",{"$f":"SUM($N$4102:$N$4260)*Actif!$F$5/100","v":176759001.4862508},{"$f":"C39*(1+Actif!$O$5)","v":176759001.4862508},0,{"$f":"C39","v":176759001.4862508},7,{"$nulls":3},"OBLIG_CORP",{"$f":"SUM($P$4102:$P$4419)","v":{"v":16934791.041533645,"d":"16,934,791"}},{"$f":"L39","v":16934791.041533645},0,1,null,"PPE",0]
[null,"BONDS_CORP",{"$f":"SUM($N$4102:$N$4260)*Actif!$F$6/100","v":47135733.72966688},{"$f":"C40*(1+Actif!$O$6)","v":48549805.74155689},0,{"$f":"C40","v":47135733.72966688},7,{"$nulls":3},"OBLIG_CORP_NR",{"$f":"SUM($Q$4102:$Q$4419)","v":{"v":11321048.154837241,"d":"11,321,048"}},{"$f":"L40","v":11321048.154837241},0,2,null,"RC",0]
[null,"EQ_TYPE_1",0,{"$f":"C41","v":0},0,{"$nulls":3},0,null,"EQ_TYPE_1",{"$f":"SUM($R$4102:$R$4419)","v":{"v":88603575.2283546,"d":"88,603,575"}},88603575.2283546,0,3]
[null,"EQ_TYPE_2",0,{"$f":"C42","v":0},0,{"$nulls":3},0,null,"EQ_TYPE_2",{"$f":"SUM($S$4102:$S$4419)","v":{"v":10946798.629057538,"d":"10,946,799"}},10946798.629057538,0,4]
[null,"CASH",{"$f":"SUM($N$4102:$N$4260)*Actif!$F$4/100","v":11783933.43241672},{"$f":"C43","v":11783933.43241672},0,{"$nulls":5},"MONETAIRE",{"$f":"SUM($T$4102:$T$4419)","v":{"v":5239493.360916452,"d":"5,239,493"}},5239493.360916452,0,5]
[]
[null,"PER","Euro","2029-12-31",{"$nulls":6},"PER","UC","2029-12-31",{"$nulls":3},"PER","2029-12-31"]
[null,"Asset Type","VNC","VM","COUPON_PC","NOMINAL","MATURITY_RESID","SPREAD_PC","DIV_PC",null,"Asset Type","VNC","VM","DIV_PC","UC_TYPE",null,"Asset Type","VNC"]
[null,"BONDS_GOV",{"$f":"SUM($N$5105:$N$5233)*Actif!$F$5/100","v":15410325.851721132},{"$f":"C47*(1+Actif!$O$5)","v":15410325.851721132},0,{"$f":"C47","v":15410325.851721132},7,{"$nulls":3},"OBLIG_CORP",{"$f":"SUM($P$5105:$P$5233)","v":1466809.4906647818},{"$f":"L47","v":1466809.4906647818},0,1,null,"PPE",0]
[null,"BONDS_CORP",{"$f":"SUM($N$5105:$N$5233)*Actif!$F$6/100","v":4109420.2271256354},{"$f":"C48*(1+Actif!$O$6)","v":4232702.833939404},0,{"$f":"C48","v":4109420.2271256354},7,{"$nulls":3},"OBLIG_CORP_NR",{"$f":"SUM($Q$5105:$Q$5233)","v":980574.3003891656},{"$f":"L48","v":980574.3003891656},0,2,null,"RC",0]
[null,"EQ_TYPE_1",0,{"$f":"C49","v":0},0,{"$nulls":3},0,null,"EQ_TYPE_1",{"$f":"SUM($R$5105:$R$5233)","v":7674412.086516856},7674412.086516856,0,3]
[null,"EQ_TYPE_2",0,{"$f":"C50","v":0},0,{"$nulls":3},0,null,"EQ_TYPE_2",{"$f":"SUM($S$5105:$S$5233)","v":948158.6210374559},948158.6210374559,0,4]
[null,"CASH",{"$f":"SUM($N$5105:$N$5233)*Actif!$F$4/100","v":1027355.0567814088},{"$f":"C51","v":1027355.0567814088},0,{"$nulls":5},"MONETAIRE",{"$f":"SUM($T$5105:$T$5233)","v":453819.51092391036},453819.51092391036,0,5]
[]
[null,"AVIE","Euro","2030-12-31",{"$nulls":6},"AVIE / CAPI","UC","2030-12-31",{"$nulls":3},"AVIE / CAPI","2030-12-31"]
[null,"Asset Type","VNC","VM","COUPON_PC","NOMINAL","MATURITY_RESID","SPREAD_PC","DIV_PC",null,"Asset Type","VNC","VM","DIV_PC","UC_TYPE",null,"Asset Type","VNC"]
[null,"BONDS_GOV",{"$f":"SUM($N$6108:$N$6319)*Actif!$F$5/100","v":290983018.6663988},{"$f":"C55*(1+Actif!$O$5)","v":290983018.6663988},0,{"$f":"C55","v":290983018.6663988},7,{"$nulls":3},"OBLIG_CORP",{"$f":"SUM($P$6108:$P$6531)","v":{"v":28264818.162565555,"d":"28,264,818"}},{"$f":"L55","v":28264818.162565555},0,1,null,"PPE",0]
[null,"BONDS_CORP",{"$f":"SUM($N$6108:$N$6319)*Actif!$F$6/100","v":77595471.64437303},{"$f":"C56*(1+Actif!$O$6)","v":79923335.79370423},0,{"$f":"C56","v":77595471.64437303},7,{"$nulls":3},"OBLIG_CORP_NR",{"$f":"SUM($Q$6108:$Q$6531)","v":{"v":18895265.180499468,"d":"18,895,265"}},{"$f":"L56","v":18895265.180499468},0,2,null,"RC",0]
[null,"EQ_TYPE_1",0,{"$f":"C57","v":0},0,{"$nulls":3},0,null,"EQ_TYPE_1",{"$f":"SUM($R$6108:$R$6531)","v":{"v":147882777.90027216,"d":"147,882,778"}},147882777.90027216,0,3]
[null,"EQ_TYPE_2",0,{"$f":"C58","v":0},0,{"$nulls":3},0,null,"EQ_TYPE_2",{"$f":"SUM($S$6108:$S$6531)","v":{"v":18270628.315028466,"d":"18,270,628"}},18270628.315028466,0,4]
[null,"CASH",{"$f":"SUM($N$6108:$N$6319)*Actif!$F$4/100","v":19398867.911093257},{"$f":"C59","v":19398867.911093257},0,{"$nulls":5},"MONETAIRE",{"$f":"SUM($T$6108:$T$6531)","v":{"v":8744916.11659484,"d":"8,744,916"}},8744916.11659484,0,5]
[]
[null,"PER","Euro","2030-12-31",{"$nulls":6},"PER","UC","2030-12-31",{"$nulls":3},"PER","2030-12-31"]
[null,"Asset Type","VNC","VM","COUPON_PC","NOMINAL","MATURITY_RESID","SPREAD_PC","DIV_PC",null,"Asset Type","VNC","VM","DIV_PC","UC_TYPE",null,"Asset Type","VNC"]
[null,"BONDS_GOV",{"$f":"SUM($N$7111:$N$7282)*Actif!$F$5/100","v":27247332.055744812},{"$f":"C63*(1+Actif!$O$5)","v":27247332.055744812},0,{"$f":"C63","v":27247332.055744812},7,{"$nulls":3},"OBLIG_CORP",{"$f":"SUM($P$7111:$P$7282)","v":{"v":2623194.8127543973,"d":"2,623,195"}},{"$f":"L63","v":2623194.8127543973},0,1,null,"PPE",0]
[null,"BONDS_CORP",{"$f":"SUM($N$7111:$N$7282)*Actif!$F$6/100","v":7265955.214865281},{"$f":"C64*(1+Actif!$O$6)","v":7483933.87131124},0,{"$f":"C64","v":7265955.214865281},7,{"$nulls":3},"OBLIG_CORP_NR",{"$f":"SUM($Q$7111:$Q$7282)","v":{"v":1753627.4715098492,"d":"1,753,627"}},{"$f":"L64","v":1753627.4715098492},0,2,null,"RC",0]
[null,"EQ_TYPE_1",0,{"$f":"C65","v":0},0,{"$nulls":3},0,null,"EQ_TYPE_1",{"$f":"SUM($R$7111:$R$7282)","v":{"v":13724671.202643203,"d":"13,724,671"}},13724671.202643203,0,3]
[null,"EQ_TYPE_2",0,{"$f":"C66","v":0},0,{"$nulls":3},0,null,"EQ_TYPE_2",{"$f":"SUM($S$7111:$S$7282)","v":{"v":1695656.3154268768,"d":"1,695,656"}},1695656.3154268768,0,4]
[null,"CASH",{"$f":"SUM($N$7111:$N$7282)*Actif!$F$4/100","v":1816488.8037163203},{"$f":"C67","v":1816488.8037163203},0,{"$nulls":5},"MONETAIRE",{"$f":"SUM($T$7111:$T$7282)","v":{"v":811596.1851615821,"d":"811,596"}},811596.1851615821,0,5]
[]
[null,"AVIE","Euro","2031-12-31",{"$nulls":6},"AVIE / CAPI","UC","2031-12-31",{"$nulls":3},"AVIE / CAPI","2031-12-31"]
[null,"Asset Type","VNC","VM","COUPON_PC","NOMINAL","MATURITY_RESID","SPREAD_PC","DIV_PC",null,"Asset Type","VNC","VM","DIV_PC","UC_TYPE",null,"Asset Type","VNC"]
[null,"BONDS_GOV",{"$f":"SUM($N$8114:$N$8378)*Actif!$F$5/100","v":427709005.7390877},{"$f":"C71*(1+Actif!$O$5)","v":427709005.7390877},0,{"$f":"C71","v":427709005.7390877},7,{"$nulls":3},"OBLIG_CORP",{"$f":"SUM($P$8114:$P$8643)","v":{"v":42121297.45022341,"d":"42,121,297"}},{"$f":"L71","v":42121297.45022341},0,1,null,"PPE",0]
[null,"BONDS_CORP",{"$f":"SUM($N$8114:$N$8378)*Actif!$F$6/100","v":114055734.86375672},{"$f":"C72*(1+Actif!$O$6)","v":117477406.90966941},0,{"$f":"C72","v":114055734.86375672},7,{"$nulls":3},"OBLIG_CORP_NR",{"$f":"SUM($Q$8114:$Q$8643)","v":{"v":28158436.417000294,"d":"28,158,436"}},{"$f":"L72","v":28158436.417000294},0,2,null,"RC",0]
[null,"EQ_TYPE_1",0,{"$f":"C73","v":0},0,{"$nulls":3},0,null,"EQ_TYPE_1",{"$f":"SUM($R$8114:$R$8643)","v":{"v":220380489.97437483,"d":"220,380,490"}},220380489.97437483,0,3]
[null,"EQ_TYPE_2",0,{"$f":"C74","v":0},0,{"$nulls":3},0,null,"EQ_TYPE_2",{"$f":"SUM($S$8114:$S$8643)","v":{"v":27227579.01478532,"d":"27,227,579"}},27227579.01478532,0,4]
[null,"CASH",{"$f":"SUM($N$8114:$N$8378)*Actif!$F$4/100","v":28513933.71593918},{"$f":"C75","v":28513933.71593918},0,{"$nulls":5},"MONETAIRE",{"$f":"SUM($T$8114:$T$8643)","v":{"v":13032003.63100845,"d":"13,032,004"}},13032003.63100845,0,5]
[]
[null,"PER","Euro","2031-12-31",{"$nulls":6},"PER","UC","2031-12-31",{"$nulls":3},"PER","2031-12-31"]
[null,"Asset Type","VNC","VM","COUPON_PC","NOMINAL","MATURITY_RESID","SPREAD_PC","DIV_PC",null,"Asset Type","VNC","VM","DIV_PC","UC_TYPE",null,"Asset Type","VNC"]
[null,"BONDS_GOV",{"$f":"SUM($N$9117:$N$9331)*Actif!$F$5/100","v":42716292.91779581},{"$f":"C79*(1+Actif!$O$5)","v":42716292.91779581},0,{"$f":"C79","v":42716292.91779581},7,{"$nulls":3},"OBLIG_CORP",{"$f":"SUM($P$9117:$P$9331)","v":{"v":4160769.0552121904,"d":"4,160,769"}},{"$f":"L79","v":4160769.0552121904},0,1,null,"PPE",0]
[null,"BONDS_CORP",{"$f":"SUM($N$9117:$N$9331)*Actif!$F$6/100","v":11391011.444745548},{"$f":"C80*(1+Actif!$O$6)","v":11732741.788087916},0,{"$f":"C80","v":11391011.444745548},7,{"$nulls":3},"OBLIG_CORP_NR",{"$f":"SUM($Q$9117:$Q$9331)","v":{"v":2781508.594920853,"d":"2,781,509"}},{"$f":"L80","v":2781508.594920853},0,2,null,"RC",0]
[null,"EQ_TYPE_1",0,{"$f":"C81","v":0},0,{"$nulls":3},0,null,"EQ_TYPE_1",{"$f":"SUM($R$9117:$R$9331)","v":{"v":21769327.598264813,"d":"21,769,328"}},21769327.598264813,0,3]
[null,"EQ_TYPE_2",0,{"$f":"C82","v":0},0,{"$nulls":3},0,null,"EQ_TYPE_2",{"$f":"SUM($S$9117:$S$9331)","v":{"v":2689557.8975680927,"d":"2,689,558"}},2689557.8975680927,0,4]
[null,"CASH",{"$f":"SUM($N$9117:$N$9331)*Actif!$F$4/100","v":2847752.861186387},{"$f":"C83","v":2847752.861186387},0,{"$nulls":5},"MONETAIRE",{"$f":"SUM($T$9117:$T$9331)","v":{"v":1287309.7629385756,"d":"1,287,310"}},1287309.7629385756,0,5]
[]
[null,"II) Model Points Passif"]
[]
[{"$nulls":23},"OBLIG_CORP","OBLIG_CORP_NR","EQ_TYPE_1","EQ_TYPE_2","MONETAIRE"]
[null,"AVIE / CAPI","Euro - UC","2027-12-31",{"$nulls":19},"Obligation","Dette Privée","Action","Private Equity","Obligation CT"]
[null,"ID","AGE","SOUSCRIPTION_YR","SEXE","PDT","CHGT_GEST_EURO_PC","CHGT_GEST_UC_PC","COMM_DIST_EURO_PC","COMM_DIST_UC_PC","CLAUSE_PB_PC","TMG_PC","NO_POLS","PM_EURO","PM_UC_TOT","PM_UC_1","PM_UC_2","PM_UC_3","PM_UC_4","PM_UC_5",null,"Pondération","%Euro","%UC1","%UC2","%UC3","%UC4","%UC5"]
[null,"#1",18,2026,"H","A_VIE",{"$f":"frais_gestion_Euro*100","v":{"v":0.44999999999999996,"d":"0.45"}},{"$f":"frais_gestion_UC*100","v":{"v":0.38999999999999996,"d":"0.39"}},{"$f":"frais_distribution_FG*100","v":0.6},{"$f":"frais_distribution_UC*100","v":0.6},85,0,{"$f":"ROUND(Primes!$M$4*V90,0)","v":17},{"$f":"'BP Financier'!$C$33*('BP Financier'!$C$16/('BP Financier'!$C$16+'BP Financier'!$C$19))*V90","v":{"v":275455.6202033296,"d":"275,456"}},{"$f":"SUM(P90:T90)","v":{"v":151273.74208971902,"d":"151,274"}},{"$f":"'BP Financier'!$C$44*('BP Financier'!$C$16/('BP Financier'!$C$16+'BP Financier'!$C$19+'BP Financier'!$C$22))*$V90*X90/(1-$W90)","v":{"v":19254.955919999393,"d":"19,255"}},{"$f":"'BP Financier'!$C$44*('BP Financier'!$C$16/('BP Financier'!$C$16+'BP Financier'!$C$19+'BP Financier'!$C$22))*$V90*Y90/(1-$W90)","v":{"v":12872.097603977492,"d":"12,872"}},{"$f":"'BP Financier'!$C$44*('BP Financier'!$C$16/('BP Financier'!$C$16+'BP Financier'!$C$19+'BP Financier'!$C$22))*$V90*Z90/(1-$W90)","v":{"v":100742.7804212123,"d":"100,743"}},{"$f":"'BP Financier'!$C$44*('BP Financier'!$C$16/('BP Financier'!$C$16+'BP Financier'!$C$19+'BP Financier'!$C$22))*$V90*AA90/(1-$W90)","v":{"v":12446.573716242701,"d":"12,447"}},{"$f":"'BP Financier'!$C$44*('BP Financier'!$C$16/('BP Financier'!$C$16+'BP Financier'!$C$19+'BP Financier'!$C$22))*$V90*AB90/(1-$W90)","v":{"v":5957.334428287104,"d":"5,957"}},null,{"v":0.005,"d":"0.50%"},{"$f":"Actif!$E$28/100","v":{"v":0.28900000000000003,"d":"28.90%"}},{"$f":"Actif!$E$30/100","v":{"v":0.09050000000000001,"d":"9.05%"}},{"$f":"Actif!$E$31/100","v":{"v":0.0605,"d":"6.05%"}},{"$f":"Actif!$E$32/100","v":{"v":0.47350000000000003,"d":"47.35%"}},{"$f":"Actif!$E$33/100","v":{"v":0.0585,"d":"5.85%"}},{"$f":"Actif!$E$29/100","v":{"v":0.027999999999999997,"d":"2.80%"}}]
[null,"#2",19,2026,"H","A_VIE",{"v":0.44999999999999996,"d":"0.45"},{"v":0.38999999999999996,"d":"0.39"},0.6,0.6,85,0,{"$f":"ROUND(Primes!$M$4*V91,0)","v":17},{"$f":"'BP Financier'!$C$33*('BP Financier'!$C$16/('BP Financier'!$C$16+'BP Financier'!$C$19))*V91","v":{"v":275455.6202033296,"d":"275,456"}},{"$f":"SUM(P91:T91)","v":{"v":151273.74208971902,"d":"151,274"}},{"$f":"'BP Financier'!$C$44*('BP Financier'!$C$16/('BP Financier'!$C$16+'BP Financier'!$C$19+'BP Financier'!$C$22))*$V91*X91/(1-$W91)","v":{"v":19254.955919999393,"d":"19,255"}},{"$f":"'BP Financier'!$C$44*('BP Financier'!$C$16/('BP Financier'!$C$16+'BP Financier'!$C$19+'BP Financier'!$C$22))*$V91*Y91/(1-$W91)","v":{"v":12872.097603977492,"d":"12,872"}},{"$f":"'BP Financier'!$C$44*('BP Financier'!$C$16/('BP Financier'!$C$16+'BP Financier'!$C$19+'BP Financier'!$C$22))*$V91*Z91/(1-$W91)","v":{"v":100742.7804212123,"d":"100,743"}},{"$f":"'BP Financier'!$C$44*('BP Financier'!$C$16/('BP Financier'!$C$16+'BP Financier'!$C$19+'BP Financier'!$C$22))*$V91*AA91/(1-$W91)","v":{"v":12446.573716242701,"d":"12,447"}},{"$f":"'BP Financier'!$C$44*('BP Financier'!$C$16/('BP Financier'!$C$16+'BP Financier'!$C$19+'BP Financier'!$C$22))*$V91*AB91/(1-$W91)","v":{"v":5957.334428287104,"d":"5,957"}},null,{"v":0.005,"d":"0.50%"},{"$f":"Actif!$E$28/100","v":{"v":0.28900000000000003,"d":"28.90%"}},{"$f":"Actif!$E$30/100","v":{"v":0.09050000000000001,"d":"9.05%"}},{"$f":"Actif!$E$31/100","v":{"v":0.0605,"d":"6.05%"}},{"$f":"Actif!$E$32/100","v":{"v":0.47350000000000003,"d":"47.35%"}},{"$f":"Actif!$E$33/100","v":{"v":0.0585,"d":"5.85%"}},{"$f":"Actif!$E$29/100","v":{"v":0.027999999999999997,"d":"2.80%"}}]
[null,"#3",20,2026,"F","A_VIE",{"v":0.44999999999999996,"d":"0.45"},{"v":0.38999999999999996,"d":"0.39"},0.6,0.6,85,0,{"$f":"ROUND(Primes!$M$4*V92,0)","v":33},{"$f":"'BP Financier'!$C$33*('BP Financier'!$C$16/('BP Financier'!$C$16+'BP Financier'!$C$19))*V92","v":{"v":550911.2404066592,"d":"550,911"}},{"v":302547.48417943803,"d":"302,547"},{"$f":"'BP Financier'!$C$44*('BP Financier'!$C$16/('BP Financier'!$C$16+'BP Financier'!$C$19+'BP Financier'!$C$22))*$V92*X92/(1-$W92)","v":{"v":38509.911839998786,"d":"38,510"}},{"$f":"'BP Financier'!$C$44*('BP Financier'!$C$16/('BP Financier'!$C$16+'BP Financier'!$C$19+'BP Financier'!$C$22))*$V92*Y92/(1-$W92)","v":{"v":25744.195207954985,"d":"25,744"}},{"$f":"'BP Financier'!$C$44*('BP Financier'!$C$16/('BP Financier'!$C$16+'BP Financier'!$C$19+'BP Financier'!$C$22))*$V92*Z92/(1-$W92)","v":{"v":201485.5608424246,"d":"201,486"}},{"$f":"'BP Financier'!$C$44*('BP Financier'!$C$16/('BP Financier'!$C$16+'BP Financier'!$C$19+'BP Financier'!$C$22))*$V92*AA92/(1-$W92)","v":{"v":24893.147432485403,"d":"24,893"}},{"$f":"'BP Financier'!$C$44*('BP Financier'!$C$16/('BP Financier'!$C$16+'BP Financier'!$C$19+'BP Financier'!$C$22))*$V92*AB92/(1-$W92)","v":{"v":11914.668856574208,"d":"11,915"}},null,{"v":0.01,"d":"1.00%"},{"$f":"Actif!$E$28/100","v":{"v":0.28900000000000003,"d":"28.90%"}},{"$f":"Actif!$E$30/100","v":{"v":0.09050000000000001,"d":"9.05%"}},{"$f":"Actif!$E$31/100","v":{"v":0.0605,"d":"6.05%"}},{"$f":"Actif!$E$32/100","v":{"v":0.47350000000000003,"d":"47.35%"}},{"$f":"Actif!$E$33/100","v":{"v":0.0585,"d":"5.85%"}},{"$f":"Actif!$E$29/100","v":{"v":0.027999999999999997,"d":"2.80%"}}]
[null,"#4",21,2026,"H","A_VIE",{"v":0.44999999999999996,"d":"0.45"},{"v":0.38999999999999996,"d":"0.39"},0.6,0.6,85,0,{"$f":"ROUND(Primes!$M$4*V93,0)","v":33},{"$f":"'BP Financier'!$C$33*('BP Financier'!$C$16/('BP Financier'!$C$16+'BP Financier'!$C$19))*V93","v":{"v":550911.2404066592,"d":"550,911"}},{"v":302547.48417943803,"d":"302,547"},{"$f":"'BP Financier'!$C$44*('BP Financier'!$C$16/('BP Financier'!$C$16+'BP Financier'!$C$19+'BP Financier'!$C$22))*$V93*X93/(1-$W93)","v":{"v":38509.911839998786,"d":"38,510"}},{"$f":"'BP Financier'!$C$44*('BP Financier'!$C$16/('BP Financier'!$C$16+'BP Financier'!$C$19+'BP Financier'!$C$22))*$V93*Y93/(1-$W93)","v":{"v":25744.195207954985,"d":"25,744"}},{"$f":"'BP Financier'!$C$44*('BP Financier'!$C$16/('BP Financier'!$C$16+'BP Financier'!$C$19+'BP Financier'!$C$22))*$V93*Z93/(1-$W93)","v":{"v":201485.5608424246,"d":"201,486"}},{"$f":"'BP Financier'!$C$44*('BP Financier'!$C$16/('BP Financier'!$C$16+'BP Financier'!$C$19+'BP Financier'!$C$22))*$V93*AA93/(1-$W93)","v":{"v":24893.147432485403,"d":"24,893"}},{"$f":"'BP Financier'!$C$44*('BP Financier'!$C$16/('BP Financier'!$C$16+'BP Financier'!$C$19+'BP Financier'!$C$22))*$V93*AB93/(1-$W93)","v":{"v":11914.668856574208,"d":"11,915"}},null,{"v":0.01,"d":"1.00%"},{"$f":"Actif!$E$28/100","v":{"v":0.28900000000000003,"d":"28.90%"}},{"$f":"Actif!$E$30/100","v":{"v":0.09050000000000001,"d":"9.05%"}},{"$f":"Actif!$E$31/100","v":{"v":0.0605,"d":"6.05%"}},{"$f":"Actif!$E$32/100","v":{"v":0.47350000000000003,"d":"47.35%"}},{"$f":"Actif!$E$33/100","v":{"v":0.0585,"d":"5.85%"}},{"$f":"Actif!$E$29/100","v":{"v":0.027999999999999997,"d":"2.80%"}}]
[null,"#5",22,2026,"H","A_VIE",{"v":0.44999999999999996,"d":"0.45"},{"v":0.38999999999999996,"d":"0.39"},0.6,0.6,85,0,{"$f":"ROUND(Primes!$M$4*V94,0)","v":33},{"$f":"'BP Financier'!$C$33*('BP Financier'!$C$16/('BP Financier'!$C$16+'BP Financier'!$C$19))*V94","v":{"v":550911.2404066592,"d":"550,911"}},{"v":302547.48417943803,"d":"302,547"},{"$f":"'BP Financier'!$C$44*('BP Financier'!$C$16/('BP Financier'!$C$16+'BP Financier'!$C$19+'BP Financier'!$C$22))*$V94*X94/(1-$W94)","v":{"v":38509.911839998786,"d":"38,510"}},{"$f":"'BP Financier'!$C$44*('BP Financier'!$C$16/('BP Financier'!$C$16+'BP Financier'!$C$19+'BP Financier'!$C$22))*$V94*Y94/(1-$W94)","v":{"v":25744.195207954985,"d":"25,744"}},{"$f":"'BP Financier'!$C$44*('BP Financier'!$C$16/('BP Financier'!$C$16+'BP Financier'!$C$19+'BP Financier'!$C$22))*$V94*Z94/(1-$W94)","v":{"v":201485.5608424246,"d":"201,486"}},{"$f":"'BP Financier'!$C$44*('BP Financier'!$C$16/('BP Financier'!$C$16+'BP Financier'!$C$19+'BP Financier'!$C$22))*$V94*AA94/(1-$W94)","v":{"v":24893.147432485403,"d":"24,893"}},{"$f":"'BP Financier'!$C$44*('BP Financier'!$C$16/('BP Financier'!$C$16+'BP Financier'!$C$19+'BP Financier'!$C$22))*$V94*AB94/(1-$W94)","v":{"v":11914.668856574208,"d":"11,915"}},null,{"v":0.01,"d":"1.00%"},{"$f":"Actif!$E$28/100","v":{"v":0.28900000000000003,"d":"28.90%"}},{"$f":"Actif!$E$30/100","v":{"v":0.09050000000000001,"d":"9.05%"}},{"$f":"Actif!$E$31/100","v":{"v":0.0605,"d":"6.05%"}},{"$f":"Actif!$E$32/100","v":{"v":0.47350000000000003,"d":"47.35%"}},{"$f":"Actif!$E$33/100","v":{"v":0.0585,"d":"5.85%"}},{"$f":"Actif!$E$29/100","v":{"v":0.027999999999999997,"d":"2.80%"}}]
[null,"#6",23,2026,"F","A_VIE",{"v":0.44999999999999996,"d":"0.45"},{"v":0.38999999999999996,"d":"0.39"},0.6,0.6,85,0,{"$f":"ROUND(Primes!$M$4*V95,0)","v":33},{"$f":"'BP Financier'!$C$33*('BP Financier'!$C$16/('BP Financier'!$C$16+'BP Financier'!$C$19))*V95","v":{"v":550911.2404066592,"d":"550,911"}},{"v":302547.48417943803,"d":"302,547"},{"$f":"'BP Financier'!$C$44*('BP Financier'!$C$16/('BP Financier'!$C$16+'BP Financier'!$C$19+'BP Financier'!$C$22))*$V95*X95/(1-$W95)","v":{"v":38509.911839998786,"d":"38,510"}},{"$f":"'BP Financier'!$C$44*('BP Financier'!$C$16/('BP Financier'!$C$16+'BP Financier'!$C$19+'BP Financier'!$C$22))*$V95*Y95/(1-$W95)","v":{"v":25744.195207954985,"d":"25,744"}},{"$f":"'BP Financier'!$C$44*('BP Financier'!$C$16/('BP Financier'!$C$16+'BP Financier'!$C$19+'BP Financier'!$C$22))*$V95*Z95/(1-$W95)","v":{"v":201485.5608424246,"d":"201,486"}},{"$f":"'BP Financier'!$C$44*('BP Financier'!$C$16/('BP Financier'!$C$16+'BP Financier'!$C$19+'BP Financier'!$C$22))*$V95*AA95/(1-$W95)","v":{"v":24893.147432485403,"d":"24,893"}},{"$f":"'BP Financier'!$C$44*('BP Financier'!$C$16/('BP Financier'!$C$16+'BP Financier'!$C$19+'BP Financier'!$C$22))*$V95*AB95/(1-$W95)","v":{"v":11914.668856574208,"d":"11,915"}},null,{"v":0.01,"d":"1.00%"},{"$f":"Actif!$E$28/100","v":{"v":0.28900000000000003,"d":"28.90%"}},{"$f":"Actif!$E$30/100","v":{"v":0.09050000000000001,"d":"9.05%"}},{"$f":"Actif!$E$31/100","v":{"v":0.0605,"d":"6.05%"}},{"$f":"Actif!$E$32/100","v":{"v":0.47350000000000003,"d":"47.35%"}},{"$f":"Actif!$E$33/100","v":{"v":0.0585,"d":"5.85%"}},{"$f":"Actif!$E$29/100","v":{"v":0.027999999999999997,"d":"2.80%"}}]
[null,"#7",24,2026,"H","A_VIE",{"v":0.44999999999999996,"d":"0.45"},{"v":0.38999999999999996,"d":"0.39"},0.6,0.6,85,0,{"$f":"ROUND(Primes!$M$4*V96,0)","v":33},{"$f":"'BP Financier'!$C$33*('BP Financier'!$C$16/('BP Financier'!$C$16+'BP Financier'!$C$19))*V96","v":{"v":550911.2404066592,"d":"550,911"}},{"v":302547.48417943803,"d":"302,547"},{"$f":"'BP Financier'!$C$44*('BP Financier'!$C$16/('BP Financier'!$C$16+'BP Financier'!$C$19+'BP Financier'!$C$22))*$V96*X96/(1-$W96)","v":{"v":38509.911839998786,"d":"38,510"}},{"$f":"'BP Financier'!$C$44*('BP Financier'!$C$16/('BP Financier'!$C$16+'BP Financier'!$C$19+'BP Financier'!$C$22))*$V96*Y96/(1-$W96)","v":{"v":25744.195207954985,"d":"25,744"}},{"$f":"'BP Financier'!$C$44*('BP Financier'!$C$16/('BP Financier'!$C$16+'BP Financier'!$C$19+'BP Financier'!$C$22))*$V96*Z96/(1-$W96)","v":{"v":201485.5608424246,"d":"201,486"}},{"$f":"'BP Financier'!$C$44*('BP Financier'!$C$16/('BP Financier'!$C$16+'BP Financier'!$C$19+'BP Financier'!$C$22))*$V96*AA96/(1-$W96)","v":{"v":24893.147432485403,"d":"24,893"}},{"$f":"'BP Financier'!$C$44*('BP Financier'!$C$16/('BP Financier'!$C$16+'BP Financier'!$C$19+'BP Financier'!$C$22))*$V96*AB96/(1-$W96)","v":{"v":11914.668856574208,"d":"11,915"}},null,{"v":0.01,"d":"1.00%"},{"$f":"Actif!$E$28/100","v":{"v":0.28900000000000003,"d":"28.90%"}},{"$f":"Actif!$E$30/100","v":{"v":0.09050000000000001,"d":"9.05%"}},{"$f":"Actif!$E$31/100","v":{"v":0.0605,"d":"6.05%"}},{"$f":"Actif!$E$32/100","v":{"v":0.47350000000000003,"d":"47.35%"}},{"$f":"Actif!$E$33/100","v":{"v":0.0585,"d":"5.85%"}},{"$f":"Actif!$E$29/100","v":{"v":0.027999999999999997,"d":"2.80%"}}]
[null,"#8",25,2026,"H","A_VIE",{"v":0.44999999999999996,"d":"0.45"},{"v":0.38999999999999996,"d":"0.39"},0.6,0.6,85,0,{"$f":"ROUND(Primes!$M$4*V97,0)","v":167},{"$f":"'BP Financier'!$C$33*('BP Financier'!$C$16/('BP Financier'!$C$16+'BP Financier'!$C$19))*V97","v":{"v":2754556.202033296,"d":"2,754,556"}},{"v":1512737.4208971898,"d":"1,512,737"},{"$f":"'BP Financier'!$C$44*('BP Financier'!$C$16/('BP Financier'!$C$16+'BP Financier'!$C$19+'BP Financier'!$C$22))*$V97*X97/(1-$W97)","v":{"v":192549.5591999939,"d":"192,550"}},{"$f":"'BP Financier'!$C$44*('BP Financier'!$C$16/('BP Financier'!$C$16+'BP Financier'!$C$19+'BP Financier'!$C$22))*$V97*Y97/(1-$W97)","v":{"v":128720.97603977492,"d":"128,721"}},{"$f":"'BP Financier'!$C$44*('BP Financier'!$C$16/('BP Financier'!$C$16+'BP Financier'!$C$19+'BP Financier'!$C$22))*$V97*Z97/(1-$W97)","v":{"v":1007427.8042121228,"d":"1,007,428"}},{"$f":"'BP Financier'!$C$44*('BP Financier'!$C$16/('BP Financier'!$C$16+'BP Financier'!$C$19+'BP Financier'!$C$22))*$V97*AA97/(1-$W97)","v":{"v":124465.737162427,"d":"124,466"}},{"$f":"'BP Financier'!$C$44*('BP Financier'!$C$16/('BP Financier'!$C$16+'BP Financier'!$C$19+'BP Financier'!$C$22))*$V97*AB97/(1-$W97)","v":{"v":59573.34428287104,"d":"59,573"}},null,{"v":0.05,"d":"5.00%"},{"$f":"Actif!$E$28/100","v":{"v":0.28900000000000003,"d":"28.90%"}},{"$f":"Actif!$E$30/100","v":{"v":0.09050000000000001,"d":"9.05%"}},{"$f":"Actif!$E$31/100","v":{"v":0.0605,"d":"6.05%"}},{"$f":"Actif!$E$32/100","v":{"v":0.47350000000000003,"d":"47.35%"}},{"$f":"Actif!$E$33/100","v":{"v":0.0585,"d":"5.85%"}},{"$f":"Actif!$E$29/100","v":{"v":0.027999999999999997,"d":"2.80%"}}]
[null,"#9",26,2026,"F","A_VIE",{"v":0.44999999999999996,"d":"0.45"},{"v":0.38999999999999996,"d":"0.39"},0.6,0.6,85,0,{"$f":"ROUND(Primes!$M$4*V98,0)","v":100},{"$f":"'BP Financier'!$C$33*('BP Financier'!$C$16/('BP Financier'!$C$16+'BP Financier'!$C$19))*V98","v":{"v":1652733.7212199776,"d":"1,652,734"}},{"v":907642.4525383138,"d":"907,642"},{"$f":"'BP Financier'!$C$44*('BP Financier'!$C$16/('BP Financier'!$C$16+'BP Financier'!$C$19+'BP Financier'!$C$22))*$V98*X98/(1-$W98)","v":{"v":115529.73551999635,"d":"115,530"}},{"$f":"'BP Financier'!$C$44*('BP Financier'!$C$16/('BP Financier'!$C$16+'BP Financier'!$C$19+'BP Financier'!$C$22))*$V98*Y98/(1-$W98)","v":{"v":77232.58562386494,"d":"77,233"}},{"$f":"'BP Financier'!$C$44*('BP Financier'!$C$16/('BP Financier'!$C$16+'BP Financier'!$C$19+'BP Financier'!$C$22))*$V98*Z98/(1-$W98)","v":{"v":604456.6825272737,"d":"604,457"}},{"$f":"'BP Financier'!$C$44*('BP Financier'!$C$16/('BP Financier'!$C$16+'BP Financier'!$C$19+'BP Financier'!$C$22))*$V98*AA98/(1-$W98)","v":{"v":74679.44229745619,"d":"74,679"}},{"$f":"'BP Financier'!$C$44*('BP Financier'!$C$16/('BP Financier'!$C$16+'BP Financier'!$C$19+'BP Financier'!$C$22))*$V98*AB98/(1-$W98)","v":{"v":35744.00656972262,"d":"35,744"}},null,{"v":0.03,"d":"3.00%"},{"$f":"Actif!$E$28/100","v":{"v":0.28900000000000003,"d":"28.90%"}},{"$f":"Actif!$E$30/100","v":{"v":0.09050000000000001,"d":"9.05%"}},{"$f":"Actif!$E$31/100","v":{"v":0.0605,"d":"6.05%"}},{"$f":"Actif!$E$32/100","v":{"v":0.47350000000000003,"d":"47.35%"}},{"$f":"Actif!$E$33/100","v":{"v":0.0585,"d":"5.85%"}},{"$f":"Actif!$E$29/100","v":{"v":0.027999999999999997,"d":"2.80%"}}]
[null,"#10",27,2026,"H","A_VIE",{"v":0.44999999999999996,"d":"0.45"},{"v":0.38999999999999996,"d":"0.39"},0.6,0.6,85,0,{"$f":"ROUND(Primes!$M$4*V99,0)","v":100},{"$f":"'BP Financier'!$C$33*('BP Financier'!$C$16/('BP Financier'!$C$16+'BP Financier'!$C$19))*V99","v":{"v":1652733.7212199776,"d":"1,652,734"}},{"v":907642.4525383138,"d":"907,642"},{"$f":"'BP Financier'!$C$44*('BP Financier'!$C$16/('BP Financier'!$C$16+'BP Financier'!$C$19+'BP Financier'!$C$22))*$V99*X99/(1-$W99)","v":{"v":115529.73551999635,"d":"115,530"}},{"$f":"'BP Financier'!$C$44*('BP Financier'!$C$16/('BP Financier'!$C$16+'BP Financier'!$C$19+'BP Financier'!$C$22))*$V99*Y99/(1-$W99)","v":{"v":77232.58562386494,"d":"77,233"}},{"$f":"'BP Financier'!$C$44*('BP Financier'!$C$16/('BP Financier'!$C$16+'BP Financier'!$C$19+'BP Financier'!$C$22))*$V99*Z99/(1-$W99)","v":{"v":604456.6825272737,"d":"604,457"}},{"$f":"'BP Financier'!$C$44*('BP Financier'!$C$16/('BP Financier'!$C$16+'BP Financier'!$C$19+'BP Financier'!$C$22))*$V99*AA99/(1-$W99)","v":{"v":74679.44229745619,"d":"74,679"}},{"$f":"'BP Financier'!$C$44*('BP Financier'!$C$16/('BP Financier'!$C$16+'BP Financier'!$C$19+'BP Financier'!$C$22))*$V99*AB99/(1-$W99)","v":{"v":35744.00656972262,"d":"35,744"}},null,{"v":0.03,"d":"3.00%"},{"$f":"Actif!$E$28/100","v":{"v":0.28900000000000003,"d":"28.90%"}},{"$f":"Actif!$E$30/100","v":{"v":0.09050000000000001,"d":"9.05%"}},{"$f":"Actif!$E$31/100","v":{"v":0.0605,"d":"6.05%"}},{"$f":"Actif!$E$32/100","v":{"v":0.47350000000000003,"d":"47.35%"}},{"$f":"Actif!$E$33/100","v":{"v":0.0585,"d":"5.85%"}},{"$f":"Actif!$E$29/100","v":{"v":0.027999999999999997,"d":"2.80%"}}]
[null,"#11",28,2026,"H","A_VIE",{"v":0.44999999999999996,"d":"0.45"},{"v":0.38999999999999996,"d":"0.39"},0.6,0.6,85,0,{"$f":"ROUND(Primes!$M$4*V100,0)","v":100},{"$f":"'BP Financier'!$C$33*('BP Financier'!$C$16/('BP Financier'!$C$16+'BP Financier'!$C$19))*V100","v":{"v":1652733.7212199776,"d":"1,652,734"}},{"v":907642.4525383138,"d":"907,642"},{"$f":"'BP Financier'!$C$44*('BP Financier'!$C$16/('BP Financier'!$C$16+'BP Financier'!$C$19+'BP Financier'!$C$22))*$V100*X100/(1-$W100)","v":{"v":115529.73551999635,"d":"115,530"}},{"$f":"'BP Financier'!$C$44*('BP Financier'!$C$16/('BP Financier'!$C$16+'BP Financier'!$C$19+'BP Financier'!$C$22))*$V100*Y100/(1-$W100)","v":{"v":77232.58562386494,"d":"77,233"}},{"$f":"'BP Financier'!$C$44*('BP Financier'!$C$16/('BP Financier'!$C$16+'BP Financier'!$C$19+'BP Financier'!$C$22))*$V100*Z100/(1-$W100)","v":{"v":604456.6825272737,"d":"604,457"}},{"$f":"'BP Financier'!$C$44*('BP Financier'!$C$16/('BP Financier'!$C$16+'BP Financier'!$C$19+'BP Financier'!$C$22))*$V100*AA100/(1-$W100)","v":{"v":74679.44229745619,"d":"74,679"}},{"$f":"'BP Financier'!$C$44*('BP Financier'!$C$16/('BP Financier'!$C$16+'BP Financier'!$C$19+'BP Financier'!$C$22))*$V100*AB100/(1-$W100)","v":{"v":35744.00656972262,"d":"35,744"}},null,{"v":0.03,"d":"3.00%"},{"$f":"Actif!$E$28/100","v":{"v":0.28900000000000003,"d":"28.90%"}},{"$f":"Actif!$E$30/100","v":{"v":0.09050000000000001,"d":"9.05%"}},{"$f":"Actif!$E$31/100","v":{"v":0.0605,"d":"6.05%"}},{"$f":"Actif!$E$32/100","v":{"v":0.47350000000000003,"d":"47.35%"}},{"$f":"Actif!$E$33/100","v":{"v":0.0585,"d":"5.85%"}},{"$f":"Actif!$E$29/100","v":{"v":0.027999999999999997,"d":"2.80%"}}]
[null,"#12",29,2026,"F","A_VIE",{"v":0.44999999999999996,"d":"0.45"},{"v":0.38999999999999996,"d":"0.39"},0.6,0.6,85,0,{"$f":"ROUND(Primes!$M$4*V101,0)","v":100},{"$f":"'BP Financier'!$C$33*('BP Financier'!$C$16/('BP Financier'!$C$16+'BP Financier'!$C$19))*V101","v":{"v":1652733.7212199776,"d":"1,652,734"}},{"v":907642.4525383138,"d":"907,642"},{"$f":"'BP Financier'!$C$44*('BP Financier'!$C$16/('BP Financier'!$C$16+'BP Financier'!$C$19+'BP Financier'!$C$22))*$V101*X101/(1-$W101)","v":{"v":115529.73551999635,"d":"115,530"}},{"$f":"'BP Financier'!$C$44*('BP Financier'!$C$16/('BP Financier'!$C$16+'BP Financier'!$C$19+'BP Financier'!$C$22))*$V101*Y101/(1-$W101)","v":{"v":77232.58562386494,"d":"77,233"}},{"$f":"'BP Financier'!$C$44*('BP Financier'!$C$16/('BP Financier'!$C$16+'BP Financier'!$C$19+'BP Financier'!$C$22))*$V101*Z101/(1-$W101)","v":{"v":604456.6825272737,"d":"604,457"}},{"$f":"'BP Financier'!$C$44*('BP Financier'!$C$16/('BP Financier'!$C$16+'BP Financier'!$C$19+'BP Financier'!$C$22))*$V101*AA101/(1-$W101)","v":{"v":74679.44229745619,"d":"74,679"}},{"$f":"'BP Financier'!$C$44*('BP Financier'!$C$16/('BP Financier'!$C$16+'BP Financier'!$C$19+'BP Financier'!$C$22))*$V101*AB101/(1-$W101)","v":{"v":35744.00656972262,"d":"35,744"}},null,{"v":0.03,"d":"3.00%"},{"$f":"Actif!$E$28/100","v":{"v":0.28900000000000003,"d":"28.90%"}},{"$f":"Actif!$E$30/100","v":{"v":0.09050000000000001,"d":"9.05%"}},{"$f":"Actif!$E$31/100","v":{"v":0.0605,"d":"6.05%"}},{"$f":"Actif!$E$32/100","v":{"v":0.47350000000000003,"d":"47.35%"}},{"$f":"Actif!$E$33/100","v":{"v":0.0585,"d":"5.85%"}},{"$f":"Actif!$E$29/100","v":{"v":0.027999999999999997,"d":"2.80%"}}]
[null,"#13",30,2026,"H","A_VIE",{"v":0.44999999999999996,"d":"0.45"},{"v":0.38999999999999996,"d":"0.39"},0.6,0.6,85,0,{"$f":"ROUND(Primes!$M$4*V102,0)","v":100},{"$f":"'BP Financier'!$C$33*('BP Financier'!$C$16/('BP Financier'!$C$16+'BP Financier'!$C$19))*V102","v":{"v":1652733.7212199776,"d":"1,652,734"}},{"v":907642.4525383138,"d":"907,642"},{"$f":"'BP Financier'!$C$44*('BP Financier'!$C$16/('BP Financier'!$C$16+'BP Financier'!$C$19+'BP Financier'!$C$22))*$V102*X102/(1-$W102)","v":{"v":115529.73551999635,"d":"115,530"}},{"$f":"'BP Financier'!$C$44*('BP Financier'!$C$16/('BP Financier'!$C$16+'BP Financier'!$C$19+'BP Financier'!$C$22))*$V102*Y102/(1-$W102)","v":{"v":77232.58562386494,"d":"77,233"}},{"$f":"'BP Financier'!$C$44*('BP Financier'!$C$16/('BP Financier'!$C$16+'BP Financier'!$C$19+'BP Financier'!$C$22))*$V102*Z102/(1-$W102)","v":{"v":604456.6825272737,"d":"604,457"}},{"$f":"'BP Financier'!$C$44*('BP Financier'!$C$16/('BP Financier'!$C$16+'BP Financier'!$C$19+'BP Financier'!$C$22))*$V102*AA102/(1-$W102)","v":{"v":74679.44229745619,"d":"74,679"}},{"$f":"'BP Financier'!$C$44*('BP Financier'!$C$16/('BP Financier'!$C$16+'BP Financier'!$C$19+'BP Financier'!$C$22))*$V102*AB102/(1-$W102)","v":{"v":35744.00656972262,"d":"35,744"}},null,{"v":0.03,"d":"3.00%"},{"$f":"Actif!$E$28/100","v":{"v":0.28900000000000003,"d":"28.90%"}},{"$f":"Actif!$E$30/100","v":{"v":0.09050000000000001,"d":"9.05%"}},{"$f":"Actif!$E$31/100","v":{"v":0.0605,"d":"6.05%"}},{"$f":"Actif!$E$32/100","v":{"v":0.47350000000000003,"d":"47.35%"}},{"$f":"Actif!$E$33/100","v":{"v":0.0585,"d":"5.85%"}},{"$f":"Actif!$E$29/100","v":{"v":0.027999999999999997,"d":"2.80%"}}]
[null,"#14",31,2026,"H","A_VIE",{"v":0.44999999999999996,"d":"0.45"},{"v":0.38999999999999996,"d":"0.39"},0.6,0.6,85,0,{"$f":"ROUND(Primes!$M$4*V103,0)","v":100},{"$f":"'BP Financier'!$C$33*('BP Financier'!$C$16/('BP Financier'!$C$16+'BP Financier'!$C$19))*V103","v":{"v":1652733.7212199776,"d":"1,652,734"}},{"v":907642.4525383138,"d":"907,642"},{"$f":"'BP Financier'!$C$44*('BP Financier'!$C$16/('BP Financier'!$C$16+'BP Financier'!$C$19+'BP Financier'!$C$22))*$V103*X103/(1-$W103)","v":{"v":115529.73551999635,"d":"115,530"}},{"$f":"'BP Financier'!$C$44*('BP Financier'!$C$16/('BP Financier'!$C$16+'BP Financier'!$C$19+'BP Financier'!$C$22))*$V103*Y103/(1-$W103)","v":{"v":77232.58562386494,"d":"77,233"}},{"$f":"'BP Financier'!$C$44*('BP Financier'!$C$16/('BP Financier'!$C$16+'BP Financier'!$C$19+'BP Financier'!$C$22))*$V103*Z103/(1-$W103)","v":{"v":604456.6825272737,"d":"604,457"}},{"$f":"'BP Financier'!$C$44*('BP Financier'!$C$16/('BP Financier'!$C$16+'BP Financier'!$C$19+'BP Financier'!$C$22))*$V103*AA103/(1-$W103)","v":{"v":74679.44229745619,"d":"74,679"}},{"$f":"'BP Financier'!$C$44*('BP Financier'!$C$16/('BP Financier'!$C$16+'BP Financier'!$C$19+'BP Financier'!$C$22))*$V103*AB103/(1-$W103)","v":{"v":35744.00656972262,"d":"35,744"}},null,{"v":0.03,"d":"3.00%"},{"$f":"Actif!$E$28/100","v":{"v":0.28900000000000003,"d":"28.90%"}},{"$f":"Actif!$E$30/100","v":{"v":0.09050000000000001,"d":"9.05%"}},{"$f":"Actif!$E$31/100","v":{"v":0.0605,"d":"6.05%"}},{"$f":"Actif!$E$32/100","v":{"v":0.47350000000000003,"d":"47.35%"}},{"$f":"Actif!$E$33/100","v":{"v":0.0585,"d":"5.85%"}},{"$f":"Actif!$E$29/100","v":{"v":0.027999999999999997,"d":"2.80%"}}]
[null,"#15",32,2026,"F","A_VIE",{"v":0.44999999999999996,"d":"0.45"},{"v":0.38999999999999996,"d":"0.39"},0.6,0.6,85,0,{"$f":"ROUND(Primes!$M$4*V104,0)","v":100},{"$f":"'BP Financier'!$C$33*('BP Financier'!$C$16/('BP Financier'!$C$16+'BP Financier'!$C$19))*V104","v":{"v":1652733.7212199776,"d":"1,652,734"}},{"v":907642.4525383138,"d":"907,642"},{"$f":"'BP Financier'!$C$44*('BP Financier'!$C$16/('BP Financier'!$C$16+'BP Financier'!$C$19+'BP Financier'!$C$22))*$V104*X104/(1-$W104)","v":{"v":115529.73551999635,"d":"115,530"}},{"$f":"'BP Financier'!$C$44*('BP Financier'!$C$16/('BP Financier'!$C$16+'BP Financier'!$C$19+'BP Financier'!$C$22))*$V104*Y104/(1-$W104)","v":{"v":77232.58562386494,"d":"77,233"}},{"$f":"'BP Financier'!$C$44*('BP Financier'!$C$16/('BP Financier'!$C$16+'BP Financier'!$C$19+'BP Financier'!$C$22))*$V104*Z104/(1-$W104)","v":{"v":604456.6825272737,"d":"604,457"}},{"$f":"'BP Financier'!$C$44*('BP Financier'!$C$16/('BP Financier'!$C$16+'BP Financier'!$C$19+'BP Financier'!$C$22))*$V104*AA104/(1-$W104)","v":{"v":74679.44229745619,"d":"74,679"}},{"$f":"'BP Financier'!$C$44*('BP Financier'!$C$16/('BP Financier'!$C$16+'BP Financier'!$C$19+'BP Financier'!$C$22))*$V104*AB104/(1-$W104)","v":{"v":35744.00656972262,"d":"35,744"}},null,{"v":0.03,"d":"3.00%"},{"$f":"Actif!$E$28/100","v":{"v":0.28900000000000003,"d":"28.90%"}},{"$f":"Actif!$E$30/100","v":{"v":0.09050000000000001,"d":"9.05%"}},{"$f":"Actif!$E$31/100","v":{"v":0.0605,"d":"6.05%"}},{"$f":"Actif!$E$32/100","v":{"v":0.47350000000000003,"d":"47.35%"}},{"$f":"Actif!$E$33/100","v":{"v":0.0585,"d":"5.85%"}},{"$f":"Actif!$E$29/100","v":{"v":0.027999999999999997,"d":"2.80%"}}]
[null,"#16",33,2026,"H","A_VIE",{"v":0.44999999999999996,"d":"0.45"},{"v":0.38999999999999996,"d":"0.39"},0.6,0.6,85,0,{"$f":"ROUND(Primes!$M$4*V105,0)","v":100},{"$f":"'BP Financier'!$C$33*('BP Financier'!$C$16/('BP Financier'!$C$16+'BP Financier'!$C$19))*V105","v":{"v":1652733.7212199776,"d":"1,652,734"}},{"v":907642.4525383138,"d":"907,642"},{"$f":"'BP Financier'!$C$44*('BP Financier'!$C$16/('BP Financier'!$C$16+'BP Financier'!$C$19+'BP Financier'!$C$22))*$V105*X105/(1-$W105)","v":{"v":115529.73551999635,"d":"115,530"}},{"$f":"'BP Financier'!$C$44*('BP Financier'!$C$16/('BP Financier'!$C$16+'BP Financier'!$C$19+'BP Financier'!$C$22))*$V105*Y105/(1-$W105)","v":{"v":77232.58562386494,"d":"77,233"}},{"$f":"'BP Financier'!$C$44*('BP Financier'!$C$16/('BP Financier'!$C$16+'BP Financier'!$C$19+'BP Financier'!$C$22))*$V105*Z105/(1-$W105)","v":{"v":604456.6825272737,"d":"604,457"}},{"$f":"'BP Financier'!$C$44*('BP Financier'!$C$16/('BP Financier'!$C$16+'BP Financier'!$C$19+'BP Financier'!$C$22))*$V105*AA105/(1-$W105)","v":{"v":74679.44229745619,"d":"74,679"}},{"$f":"'BP Financier'!$C$44*('BP Financier'!$C$16/('BP Financier'!$C$16+'BP Financier'!$C$19+'BP Financier'!$C$22))*$V105*AB105/(1-$W105)","v":{"v":35744.00656972262,"d":"35,744"}},null,{"v":0.03,"d":"3.00%"},{"$f":"Actif!$E$28/100","v":{"v":0.28900000000000003,"d":"28.90%"}},{"$f":"Actif!$E$30/100","v":{"v":0.09050000000000001,"d":"9.05%"}},{"$f":"Actif!$E$31/100","v":{"v":0.0605,"d":"6.05%"}},{"$f":"Actif!$E$32/100","v":{"v":0.47350000000000003,"d":"47.35%"}},{"$f":"Actif!$E$33/100","v":{"v":0.0585,"d":"5.85%"}},{"$f":"Actif!$E$29/100","v":{"v":0.027999999999999997,"d":"2.80%"}}]
[null,"#17",34,2026,"H","A_VIE",{"v":0.44999999999999996,"d":"0.45"},{"v":0.38999999999999996,"d":"0.39"},0.6,0.6,85,0,{"$f":"ROUND(Primes!$M$4*V106,0)","v":100},{"$f":"'BP Financier'!$C$33*('BP Financier'!$C$16/('BP Financier'!$C$16+'BP Financier'!$C$19))*V106","v":{"v":1652733.7212199776,"d":"1,652,734"}},{"v":907642.4525383138,"d":"907,642"},{"$f":"'BP Financier'!$C$44*('BP Financier'!$C$16/('BP Financier'!$C$16+'BP Financier'!$C$19+'BP Financier'!$C$22))*$V106*X106/(1-$W106)","v":{"v":115529.73551999635,"d":"115,530"}},{"$f":"'BP Financier'!$C$44*('BP Financier'!$C$16/('BP Financier'!$C$16+'BP Financier'!$C$19+'BP Financier'!$C$22))*$V106*Y106/(1-$W106)","v":{"v":77232.58562386494,"d":"77,233"}},{"$f":"'BP Financier'!$C$44*('BP Financier'!$C$16/('BP Financier'!$C$16+'BP Financier'!$C$19+'BP Financier'!$C$22))*$V106*Z106/(1-$W106)","v":{"v":604456.6825272737,"d":"604,457"}},{"$f":"'BP Financier'!$C$44*('BP Financier'!$C$16/('BP Financier'!$C$16+'BP Financier'!$C$19+'BP Financier'!$C$22))*$V106*AA106/(1-$W106)","v":{"v":74679.44229745619,"d":"74,679"}},{"$f":"'BP Financier'!$C$44*('BP Financier'!$C$16/('BP Financier'!$C$16+'BP Financier'!$C$19+'BP Financier'!$C$22))*$V106*AB106/(1-$W106)","v":{"v":35744.00656972262,"d":"35,744"}},null,{"v":0.03,"d":"3.00%"},{"$f":"Actif!$E$28/100","v":{"v":0.28900000000000003,"d":"28.90%"}},{"$f":"Actif!$E$30/100","v":{"v":0.09050000000000001,"d":"9.05%"}},{"$f":"Actif!$E$31/100","v":{"v":0.0605,"d":"6.05%"}},{"$f":"Actif!$E$32/100","v":{"v":0.47350000000000003,"d":"47.35%"}},{"$f":"Actif!$E$33/100","v":{"v":0.0585,"d":"5.85%"}},{"$f":"Actif!$E$29/100","v":{"v":0.027999999999999997,"d":"2.80%"}}]
[null,"#18",35,2026,"F","A_VIE",{"v":0.44999999999999996,"d":"0.45"},{"v":0.38999999999999996,"d":"0.39"},0.6,0.6,85,0,{"$f":"ROUND(Primes!$M$4*V107,0)","v":100},{"$f":"'BP Financier'!$C$33*('BP Financier'!$C$16/('BP Financier'!$C$16+'BP Financier'!$C$19))*V107","v":{"v":1652733.7212199776,"d":"1,652,734"}},{"v":907642.4525383138,"d":"907,642"},{"$f":"'BP Financier'!$C$44*('BP Financier'!$C$16/('BP Financier'!$C$16+'BP Financier'!$C$19+'BP Financier'!$C$22))*$V107*X107/(1-$W107)","v":{"v":115529.73551999635,"d":"115,530"}},{"$f":"'BP Financier'!$C$44*('BP Financier'!$C$16/('BP Financier'!$C$16+'BP Financier'!$C$19+'BP Financier'!$C$22))*$V107*Y107/(1-$W107)","v":{"v":77232.58562386494,"d":"77,233"}},{"$f":"'BP Financier'!$C$44*('BP Financier'!$C$16/('BP Financier'!$C$16+'BP Financier'!$C$19+'BP Financier'!$C$22))*$V107*Z107/(1-$W107)","v":{"v":604456.6825272737,"d":"604,457"}},{"$f":"'BP Financier'!$C$44*('BP Financier'!$C$16/('BP Financier'!$C$16+'BP Financier'!$C$19+'BP Financier'!$C$22))*$V107*AA107/(1-$W107)","v":{"v":74679.44229745619,"d":"74,679"}},{"$f":"'BP Financier'!$C$44*('BP Financier'!$C$16/('BP Financier'!$C$16+'BP Financier'!$C$19+'BP Financier'!$C$22))*$V107*AB107/(1-$W107)","v":{"v":35744.00656972262,"d":"35,744"}},null,{"v":0.03,"d":"3.00%"},{"$f":"Actif!$E$28/100","v":{"v":0.28900000000000003,"d":"28.90%"}},{"$f":"Actif!$E$30/100","v":{"v":0.09050000000000001,"d":"9.05%"}},{"$f":"Actif!$E$31/100","v":{"v":0.0605,"d":"6.05%"}},{"$f":"Actif!$E$32/100","v":{"v":0.47350000000000003,"d":"47.35%"}},{"$f":"Actif!$E$33/100","v":{"v":0.0585,"d":"5.85%"}},{"$f":"Actif!$E$29/100","v":{"v":0.027999999999999997,"d":"2.80%"}}]
[null,"#19",36,2026,"H","A_VIE",{"v":0.44999999999999996,"d":"0.45"},{"v":0.38999999999999996,"d":"0.39"},0.6,0.6,85,0,{"$f":"ROUND(Primes!$M$4*V108,0)","v":17},{"$f":"'BP Financier'!$C$33*('BP Financier'!$C$16/('BP Financier'!$C$16+'BP Financier'!$C$19))*V108","v":{"v":275455.6202033296,"d":"275,456"}},{"v":151273.74208971902,"d":"151,274"},{"$f":"'BP Financier'!$C$44*('BP Financier'!$C$16/('BP Financier'!$C$16+'BP Financier'!$C$19+'BP Financier'!$C$22))*$V108*X108/(1-$W108)","v":{"v":19254.955919999393,"d":"19,255"}},{"$f":"'BP Financier'!$C$44*('BP Financier'!$C$16/('BP Financier'!$C$16+'BP Financier'!$C$19+'BP Financier'!$C$22))*$V108*Y108/(1-$W108)","v":{"v":12872.097603977492,"d":"12,872"}},{"$f":"'BP Financier'!$C$44*('BP Financier'!$C$16/('BP Financier'!$C$16+'BP Financier'!$C$19+'BP Financier'!$C$22))*$V108*Z108/(1-$W108)","v":{"v":100742.7804212123,"d":"100,743"}},{"$f":"'BP Financier'!$C$44*('BP Financier'!$C$16/('BP Financier'!$C$16+'BP Financier'!$C$19+'BP Financier'!$C$22))*$V108*AA108/(1-$W108)","v":{"v":12446.573716242701,"d":"12,447"}},{"$f":"'BP Financier'!$C$44*('BP Financier'!$C$16/('BP Financier'!$C$16+'BP Financier'!$C$19+'BP Financier'!$C$22))*$V108*AB108/(1-$W108)","v":{"v":5957.334428287104,"d":"5,957"}},null,{"v":0.005,"d":"0.50%"},{"$f":"Actif!$E$28/100","v":{"v":0.28900000000000003,"d":"28.90%"}},{"$f":"Actif!$E$30/100","v":{"v":0.09050000000000001,"d":"9.05%"}},{"$f":"Actif!$E$31/100","v":{"v":0.0605,"d":"6.05%"}},{"$f":"Actif!$E$32/100","v":{"v":0.47350000000000003,"d":"47.35%"}},{"$f":"Actif!$E$33/100","v":{"v":0.0585,"d":"5.85%"}},{"$f":"Actif!$E$29/100","v":{"v":0.027999999999999997,"d":"2.80%"}}]
[null,"#20",37,2026,"H","A_VIE",{"v":0.44999999999999996,"d":"0.45"},{"v":0.38999999999999996,"d":"0.39"},0.6,0.6,85,0,{"$f":"ROUND(Primes!$M$4*V109,0)","v":17},{"$f":"'BP Financier'!$C$33*('BP Financier'!$C$16/('BP Financier'!$C$16+'BP Financier'!$C$19))*V109","v":{"v":275455.6202033296,"d":"275,456"}},{"v":151273.74208971902,"d":"151,274"},{"$f":"'BP Financier'!$C$44*('BP Financier'!$C$16/('BP Financier'!$C$16+'BP Financier'!$C$19+'BP Financier'!$C$22))*$V109*X109/(1-$W109)","v":{"v":19254.955919999393,"d":"19,255"}},{"$f":"'BP Financier'!$C$44*('BP Financier'!$C$16/('BP Financier'!$C$16+'BP Financier'!$C$19+'BP Financier'!$C$22))*$V109*Y109/(1-$W109)","v":{"v":12872.097603977492,"d":"12,872"}},{"$f":"'BP Financier'!$C$44*('BP Financier'!$C$16/('BP Financier'!$C$16+'BP Financier'!$C$19+'BP Financier'!$C$22))*$V109*Z109/(1-$W109)","v":{"v":100742.7804212123,"d":"100,743"}},{"$f":"'BP Financier'!$C$44*('BP Financier'!$C$16/('BP Financier'!$C$16+'BP Financier'!$C$19+'BP Financier'!$C$22))*$V109*AA109/(1-$W109)","v":{"v":12446.573716242701,"d":"12,447"}},{"$f":"'BP Financier'!$C$44*('BP Financier'!$C$16/('BP Financier'!$C$16+'BP Financier'!$C$19+'BP Financier'!$C$22))*$V109*AB109/(1-$W109)","v":{"v":5957.334428287104,"d":"5,957"}},null,{"v":0.005,"d":"0.50%"},{"$f":"Actif!$E$28/100","v":{"v":0.28900000000000003,"d":"28.90%"}},{"$f":"Actif!$E$30/100","v":{"v":0.09050000000000001,"d":"9.05%"}},{"$f":"Actif!$E$31/100","v":{"v":0.0605,"d":"6.05%"}},{"$f":"Actif!$E$32/100","v":{"v":0.47350000000000003,"d":"47.35%"}},{"$f":"Actif!$E$33/100","v":{"v":0.0585,"d":"5.85%"}},{"$f":"Actif!$E$29/100","v":{"v":0.027999999999999997,"d":"2.80%"}}]
[null,"#21",38,2026,"F","A_VIE",{"v":0.44999999999999996,"d":"0.45"},{"v":0.38999999999999996,"d":"0.39"},0.6,0.6,85,0,{"$f":"ROUND(Primes!$M$4*V110,0)","v":17},{"$f":"'BP Financier'!$C$33*('BP Financier'!$C$16/('BP Financier'!$C$16+'BP Financier'!$C$19))*V110","v":{"v":275455.6202033296,"d":"275,456"}},{"v":151273.74208971902,"d":"151,274"},{"$f":"'BP Financier'!$C$44*('BP Financier'!$C$16/('BP Financier'!$C$16+'BP Financier'!$C$19+'BP Financier'!$C$22))*$V110*X110/(1-$W110)","v":{"v":19254.955919999393,"d":"19,255"}},{"$f":"'BP Financier'!$C$44*('BP Financier'!$C$16/('BP Financier'!$C$16+'BP Financier'!$C$19+'BP Financier'!$C$22))*$V110*Y110/(1-$W110)","v":{"v":12872.097603977492,"d":"12,872"}},{"$f":"'BP Financier'!$C$44*('BP Financier'!$C$16/('BP Financier'!$C$16+'BP Financier'!$C$19+'BP Financier'!$C$22))*$V110*Z110/(1-$W110)","v":{"v":100742.7804212123,"d":"100,743"}},{"$f":"'BP Financier'!$C$44*('BP Financier'!$C$16/('BP Financier'!$C$16+'BP Financier'!$C$19+'BP Financier'!$C$22))*$V110*AA110/(1-$W110)","v":{"v":12446.573716242701,"d":"12,447"}},{"$f":"'BP Financier'!$C$44*('BP Financier'!$C$16/('BP Financier'!$C$16+'BP Financier'!$C$19+'BP Financier'!$C$22))*$V110*AB110/(1-$W110)","v":{"v":5957.334428287104,"d":"5,957"}},null,{"v":0.005,"d":"0.50%"},{"$f":"Actif!$E$28/100","v":{"v":0.28900000000000003,"d":"28.90%"}},{"$f":"Actif!$E$30/100","v":{"v":0.09050000000000001,"d":"9.05%"}},{"$f":"Actif!$E$31/100","v":{"v":0.0605,"d":"6.05%"}},{"$f":"Actif!$E$32/100","v":{"v":0.47350000000000003,"d":"47.35%"}},{"$f":"Actif!$E$33/100","v":{"v":0.0585,"d":"5.85%"}},{"$f":"Actif!$E$29/100","v":{"v":0.027999999999999997,"d":"2.80%"}}]
[null,"#22",39,2026,"H","A_VIE",{"v":0.44999999999999996,"d":"0.45"},{"v":0.38999999999999996,"d":"0.39"},0.6,0.6,85,0,{"$f":"ROUND(Primes!$M$4*V111,0)","v":17},{"$f":"'BP Financier'!$C$33*('BP Financier'!$C$16/('BP Financier'!$C$16+'BP Financier'!$C$19))*V111","v":{"v":275455.6202033296,"d":"275,456"}},{"v":151273.74208971902,"d":"151,274"},{"$f":"'BP Financier'!$C$44*('BP Financier'!$C$16/('BP Financier'!$C$16+'BP Financier'!$C$19+'BP Financier'!$C$22))*$V111*X111/(1-$W111)","v":{"v":19254.955919999393,"d":"19,255"}},{"$f":"'BP Financier'!$C$44*('BP Financier'!$C$16/('BP Financier'!$C$16+'BP Financier'!$C$19+'BP Financier'!$C$22))*$V111*Y111/(1-$W111)","v":{"v":12872.097603977492,"d":"12,872"}},{"$f":"'BP Financier'!$C$44*('BP Financier'!$C$16/('BP Financier'!$C$16+'BP Financier'!$C$19+'BP Financier'!$C$22))*$V111*Z111/(1-$W111)","v":{"v":100742.7804212123,"d":"100,743"}},{"$f":"'BP Financier'!$C$44*('BP Financier'!$C$16/('BP Financier'!$C$16+'BP Financier'!$C$19+'BP Financier'!$C$22))*$V111*AA111/(1-$W111)","v":{"v":12446.573716242701,"d":"12,447"}},{"$f":"'BP Financier'!$C$44*('BP Financier'!$C$16/('BP Financier'!$C$16+'BP Financier'!$C$19+'BP Financier'!$C$22))*$V111*AB111/(1-$W111)","v":{"v":5957.334428287104,"d":"5,957"}},null,{"v":0.005,"d":"0.50%"},{"$f":"Actif!$E$28/100","v":{"v":0.28900000000000003,"d":"28.90%"}},{"$f":"Actif!$E$30/100","v":{"v":0.09050000000000001,"d":"9.05%"}},{"$f":"Actif!$E$31/100","v":{"v":0.0605,"d":"6.05%"}},{"$f":"Actif!$E$32/100","v":{"v":0.47350000000000003,"d":"47.35%"}},{"$f":"Actif!$E$33/100","v":{"v":0.0585,"d":"5.85%"}},{"$f":"Actif!$E$29/100","v":{"v":0.027999999999999997,"d":"2.80%"}}]
[null,"#23",40,2026,"H","A_VIE",{"v":0.44999999999999996,"d":"0.45"},{"v":0.38999999999999996,"d":"0.39"},0.6,0.6,85,0,{"$f":"ROUND(Primes!$M$4*V112,0)","v":17},{"$f":"'BP Financier'!$C$33*('BP Financier'!$C$16/('BP Financier'!$C$16+'BP Financier'!$C$19))*V112","v":{"v":275455.6202033296,"d":"275,456"}},{"v":151273.74208971902,"d":"151,274"},{"$f":"'BP Financier'!$C$44*('BP Financier'!$C$16/('BP Financier'!$C$16+'BP Financier'!$C$19+'BP Financier'!$C$22))*$V112*X112/(1-$W112)","v":{"v":19254.955919999393,"d":"19,255"}},{"$f":"'BP Financier'!$C$44*('BP Financier'!$C$16/('BP Financier'!$C$16+'BP Financier'!$C$19+'BP Financier'!$C$22))*$V112*Y112/(1-$W112)","v":{"v":12872.097603977492,"d":"12,872"}},{"$f":"'BP Financier'!$C$44*('BP Financier'!$C$16/('BP Financier'!$C$16+'BP Financier'!$C$19+'BP Financier'!$C$22))*$V112*Z112/(1-$W112)","v":{"v":100742.7804212123,"d":"100,743"}},{"$f":"'BP Financier'!$C$44*('BP Financier'!$C$16/('BP Financier'!$C$16+'BP Financier'!$C$19+'BP Financier'!$C$22))*$V112*AA112/(1-$W112)","v":{"v":12446.573716242701,"d":"12,447"}},{"$f":"'BP Financier'!$C$44*('BP Financier'!$C$16/('BP Financier'!$C$16+'BP Financier'!$C$19+'BP Financier'!$C$22))*$V112*AB112/(1-$W112)","v":{"v":5957.334428287104,"d":"5,957"}},null,{"v":0.005,"d":"0.50%"},{"$f":"Actif!$E$28/100","v":{"v":0.28900000000000003,"d":"28.90%"}},{"$f":"Actif!$E$30/100","v":{"v":0.09050000000000001,"d":"9.05%"}},{"$f":"Actif!$E$31/100","v":{"v":0.0605,"d":"6.05%"}},{"$f":"Actif!$E$32/100","v":{"v":0.47350000000000003,"d":"47.35%"}},{"$f":"Actif!$E$33/100","v":{"v":0.0585,"d":"5.85%"}},{"$f":"Actif!$E$29/100","v":{"v":0.027999999999999997,"d":"2.80%"}}]
[null,"#24",41,2026,"F","A_VIE",{"v":0.44999999999999996,"d":"0.45"},{"v":0.38999999999999996,"d":"0.39"},0.6,0.6,85,0,{"$f":"ROUND(Primes!$M$4*V113,0)","v":17},{"$f":"'BP Financier'!$C$33*('BP Financier'!$C$16/('BP Financier'!$C$16+'BP Financier'!$C$19))*V113","v":{"v":275455.6202033296,"d":"275,456"}},{"v":151273.74208971902,"d":"151,274"},{"$f":"'BP Financier'!$C$44*('BP Financier'!$C$16/('BP Financier'!$C$16+'BP Financier'!$C$19+'BP Financier'!$C$22))*$V113*X113/(1-$W113)","v":{"v":19254.955919999393,"d":"19,255"}},{"$f":"'BP Financier'!$C$44*('BP Financier'!$C$16/('BP Financier'!$C$16+'BP Financier'!$C$19+'BP Financier'!$C$22))*$V113*Y113/(1-$W113)","v":{"v":12872.097603977492,"d":"12,872"}},{"$f":"'BP Financier'!$C$44*('BP Financier'!$C$16/('BP Financier'!$C$16+'BP Financier'!$C$19+'BP Financier'!$C$22))*$V113*Z113/(1-$W113)","v":{"v":100742.7804212123,"d":"100,743"}},{"$f":"'BP Financier'!$C$44*('BP Financier'!$C$16/('BP Financier'!$C$16+'BP Financier'!$C$19+'BP Financier'!$C$22))*$V113*AA113/(1-$W113)","v":{"v":12446.573716242701,"d":"12,447"}},{"$f":"'BP Financier'!$C$44*('BP Financier'!$C$16/('BP Financier'!$C$16+'BP Financier'!$C$19+'BP Financier'!$C$22))*$V113*AB113/(1-$W113)","v":{"v":5957.334428287104,"d":"5,957"}},null,{"v":0.005,"d":"0.50%"},{"$f":"Actif!$E$28/100","v":{"v":0.28900000000000003,"d":"28.90%"}},{"$f":"Actif!$E$30/100","v":{"v":0.09050000000000001,"d":"9.05%"}},{"$f":"Actif!$E$31/100","v":{"v":0.0605,"d":"6.05%"}},{"$f":"Actif!$E$32/100","v":{"v":0.47350000000000003,"d":"47.35%"}},{"$f":"Actif!$E$33/100","v":{"v":0.0585,"d":"5.85%"}},{"$f":"Actif!$E$29/100","v":{"v":0.027999999999999997,"d":"2.80%"}}]
[null,"#25",42,2026,"H","A_VIE",{"v":0.44999999999999996,"d":"0.45"},{"v":0.38999999999999996,"d":"0.39"},0.6,0.6,85,0,{"$f":"ROUND(Primes!$M$4*V114,0)","v":17},{"$f":"'BP Financier'!$C$33*('BP Financier'!$C$16/('BP Financier'!$C$16+'BP Financier'!$C$19))*V114","v":{"v":275455.6202033296,"d":"275,456"}},{"v":151273.74208971902,"d":"151,274"},{"$f":"'BP Financier'!$C$44*('BP Financier'!$C$16/('BP Financier'!$C$16+'BP Financier'!$C$19+'BP Financier'!$C$22))*$V114*X114/(1-$W114)","v":{"v":19254.955919999393,"d":"19,255"}},{"$f":"'BP Financier'!$C$44*('BP Financier'!$C$16/('BP Financier'!$C$16+'BP Financier'!$C$19+'BP Financier'!$C$22))*$V114*Y114/(1-$W114)","v":{"v":12872.097603977492,"d":"12,872"}},{"$f":"'BP Financier'!$C$44*('BP Financier'!$C$16/('BP Financier'!$C$16+'BP Financier'!$C$19+'BP Financier'!$C$22))*$V114*Z114/(1-$W114)","v":{"v":100742.7804212123,"d":"100,743"}},{"$f":"'BP Financier'!$C$44*('BP Financier'!$C$16/('BP Financier'!$C$16+'BP Financier'!$C$19+'BP Financier'!$C$22))*$V114*AA114/(1-$W114)","v":{"v":12446.573716242701,"d":"12,447"}},{"$f":"'BP Financier'!$C$44*('BP Financier'!$C$16/('BP Financier'!$C$16+'BP Financier'!$C$19+'BP Financier'!$C$22))*$V114*AB114/(1-$W114)","v":{"v":5957.334428287104,"d":"5,957"}},null,{"v":0.005,"d":"0.50%"},{"$f":"Actif!$E$28/100","v":{"v":0.28900000000000003,"d":"28.90%"}},{"$f":"Actif!$E$30/100","v":{"v":0.09050000000000001,"d":"9.05%"}},{"$f":"Actif!$E$31/100","v":{"v":0.0605,"d":"6.05%"}},{"$f":"Actif!$E$32/100","v":{"v":0.47350000000000003,"d":"47.35%"}},{"$f":"Actif!$E$33/100","v":{"v":0.0585,"d":"5.85%"}},{"$f":"Actif!$E$29/100","v":{"v":0.027999999999999997,"d":"2.80%"}}]
[null,"#26",43,2026,"H","A_VIE",{"v":0.44999999999999996,"d":"0.45"},{"v":0.38999999999999996,"d":"0.39"},0.6,0.6,85,0,{"$f":"ROUND(Primes!$M$4*V115,0)","v":17},{"$f":"'BP Financier'!$C$33*('BP Financier'!$C$16/('BP Financier'!$C$16+'BP Financier'!$C$19))*V115","v":{"v":275455.6202033296,"d":"275,456"}},{"v":151273.74208971902,"d":"151,274"},{"$f":"'BP Financier'!$C$44*('BP Financier'!$C$16/('BP Financier'!$C$16+'BP Financier'!$C$19+'BP Financier'!$C$22))*$V115*X115/(1-$W115)","v":{"v":19254.955919999393,"d":"19,255"}},{"$f":"'BP Financier'!$C$44*('BP Financier'!$C$16/('BP Financier'!$C$16+'BP Financier'!$C$19+'BP Financier'!$C$22))*$V115*Y115/(1-$W115)","v":{"v":12872.097603977492,"d":"12,872"}},{"$f":"'BP Financier'!$C$44*('BP Financier'!$C$16/('BP Financier'!$C$16+'BP Financier'!$C$19+'BP Financier'!$C$22))*$V115*Z115/(1-$W115)","v":{"v":100742.7804212123,"d":"100,743"}},{"$f":"'BP Financier'!$C$44*('BP Financier'!$C$16/('BP Financier'!$C$16+'BP Financier'!$C$19+'BP Financier'!$C$22))*$V115*AA115/(1-$W115)","v":{"v":12446.573716242701,"d":"12,447"}},{"$f":"'BP Financier'!$C$44*('BP Financier'!$C$16/('BP Financier'!$C$16+'BP Financier'!$C$19+'BP Financier'!$C$22))*$V115*AB115/(1-$W115)","v":{"v":5957.334428287104,"d":"5,957"}},null,{"v":0.005,"d":"0.50%"},{"$f":"Actif!$E$28/100","v":{"v":0.28900000000000003,"d":"28.90%"}},{"$f":"Actif!$E$30/100","v":{"v":0.09050000000000001,"d":"9.05%"}},{"$f":"Actif!$E$31/100","v":{"v":0.0605,"d":"6.05%"}},{"$f":"Actif!$E$32/100","v":{"v":0.47350000000000003,"d":"47.35%"}},{"$f":"Actif!$E$33/100","v":{"v":0.0585,"d":"5.85%"}},{"$f":"Actif!$E$29/100","v":{"v":0.027999999999999997,"d":"2.80%"}}]
[null,"#27",44,2026,"F","A_VIE",{"v":0.44999999999999996,"d":"0.45"},{"v":0.38999999999999996,"d":"0.39"},0.6,0.6,85,0,{"$f":"ROUND(Primes!$M$4*V116,0)","v":17},{"$f":"'BP Financier'!$C$33*('BP Financier'!$C$16/('BP Financier'!$C$16+'BP Financier'!$C$19))*V116","v":{"v":275455.6202033296,"d":"275,456"}},{"v":151273.74208971902,"d":"151,274"},{"$f":"'BP Financier'!$C$44*('BP Financier'!$C$16/('BP Financier'!$C$16+'BP Financier'!$C$19+'BP Financier'!$C$22))*$V116*X116/(1-$W116)","v":{"v":19254.955919999393,"d":"19,255"}},{"$f":"'BP Financier'!$C$44*('BP Financier'!$C$16/('BP Financier'!$C$16+'BP Financier'!$C$19+'BP Financier'!$C$22))*$V116*Y116/(1-$W116)","v":{"v":12872.097603977492,"d":"12,872"}},{"$f":"'BP Financier'!$C$44*('BP Financier'!$C$16/('BP Financier'!$C$16+'BP Financier'!$C$19+'BP Financier'!$C$22))*$V116*Z116/(1-$W116)","v":{"v":100742.7804212123,"d":"100,743"}},{"$f":"'BP Financier'!$C$44*('BP Financier'!$C$16/('BP Financier'!$C$16+'BP Financier'!$C$19+'BP Financier'!$C$22))*$V116*AA116/(1-$W116)","v":{"v":12446.573716242701,"d":"12,447"}},{"$f":"'BP Financier'!$C$44*('BP Financier'!$C$16/('BP Financier'!$C$16+'BP Financier'!$C$19+'BP Financier'!$C$22))*$V116*AB116/(1-$W116)","v":{"v":5957.334428287104,"d":"5,957"}},null,{"v":0.005,"d":"0.50%"},{"$f":"Actif!$E$28/100","v":{"v":0.28900000000000003,"d":"28.90%"}},{"$f":"Actif!$E$30/100","v":{"v":0.09050000000000001,"d":"9.05%"}},{"$f":"Actif!$E$31/100","v":{"v":0.0605,"d":"6.05%"}},{"$f":"Actif!$E$32/100","v":{"v":0.47350000000000003,"d":"47.35%"}},{"$f":"Actif!$E$33/100","v":{"v":0.0585,"d":"5.85%"}},{"$f":"Actif!$E$29/100","v":{"v":0.027999999999999997,"d":"2.80%"}}]
[null,"#28",45,2026,"H","A_VIE",{"v":0.44999999999999996,"d":"0.45"},{"v":0.38999999999999996,"d":"0.39"},0.6,0.6,85,0,{"$f":"ROUND(Primes!$M$4*V117,0)","v":17},{"$f":"'BP Financier'!$C$33*('BP Financier'!$C$16/('BP Financier'!$C$16+'BP Financier'!$C$19))*V117","v":{"v":275455.6202033296,"d":"275,456"}},{"v":151273.74208971902,"d":"151,274"},{"$f":"'BP Financier'!$C$44*('BP Financier'!$C$16/('BP Financier'!$C$16+'BP Financier'!$C$19+'BP Financier'!$C$22))*$V117*X117/(1-$W117)","v":{"v":19254.955919999393,"d":"19,255"}},{"$f":"'BP Financier'!$C$44*('BP Financier'!$C$16/('BP Financier'!$C$16+'BP Financier'!$C$19+'BP Financier'!$C$22))*$V117*Y117/(1-$W117)","v":{"v":12872.097603977492,"d":"12,872"}},{"$f":"'BP Financier'!$C$44*('BP Financier'!$C$16/('BP Financier'!$C$16+'BP Financier'!$C$19+'BP Financier'!$C$22))*$V117*Z117/(1-$W117)","v":{"v":100742.7804212123,"d":"100,743"}},{"$f":"'BP Financier'!$C$44*('BP Financier'!$C$16/('BP Financier'!$C$16+'BP Financier'!$C$19+'BP Financier'!$C$22))*$V117*AA117/(1-$W117)","v":{"v":12446.573716242701,"d":"12,447"}},{"$f":"'BP Financier'!$C$44*('BP Financier'!$C$16/('BP Financier'!$C$16+'BP Financier'!$C$19+'BP Financier'!$C$22))*$V117*AB117/(1-$W117)","v":{"v":5957.334428287104,"d":"5,957"}},null,{"v":0.005,"d":"0.50%"},{"$f":"Actif!$E$28/100","v":{"v":0.28900000000000003,"d":"28.90%"}},{"$f":"Actif!$E$30/100","v":{"v":0.09050000000000001,"d":"9.05%"}},{"$f":"Actif!$E$31/100","v":{"v":0.0605,"d":"6.05%"}},{"$f":"Actif!$E$32/100","v":{"v":0.47350000000000003,"d":"47.35%"}},{"$f":"Actif!$E$33/100","v":{"v":0.0585,"d":"5.85%"}},{"$f":"Actif!$E$29/100","v":{"v":0.027999999999999997,"d":"2.80%"}}]
[null,"#29",46,2026,"H","A_VIE",{"v":0.44999999999999996,"d":"0.45"},{"v":0.38999999999999996,"d":"0.39"},0.6,0.6,85,0,{"$f":"ROUND(Primes!$M$4*V118,0)","v":17},{"$f":"'BP Financier'!$C$33*('BP Financier'!$C$16/('BP Financier'!$C$16+'BP Financier'!$C$19))*V118","v":{"v":275455.6202033296,"d":"275,456"}},{"v":151273.74208971902,"d":"151,274"},{"$f":"'BP Financier'!$C$44*('BP Financier'!$C$16/('BP Financier'!$C$16+'BP Financier'!$C$19+'BP Financier'!$C$22))*$V118*X118/(1-$W118)","v":{"v":19254.955919999393,"d":"19,255"}},{"$f":"'BP Financier'!$C$44*('BP Financier'!$C$16/('BP Financier'!$C$16+'BP Financier'!$C$19+'BP Financier'!$C$22))*$V118*Y118/(1-$W118)","v":{"v":12872.097603977492,"d":"12,872"}},{"$f":"'BP Financier'!$C$44*('BP Financier'!$C$16/('BP Financier'!$C$16+'BP Financier'!$C$19+'BP Financier'!$C$22))*$V118*Z118/(1-$W118)","v":{"v":100742.7804212123,"d":"100,743"}},{"$f":"'BP Financier'!$C$44*('BP Financier'!$C$16/('BP Financier'!$C$16+'BP Financier'!$C$19+'BP Financier'!$C$22))*$V118*AA118/(1-$W118)","v":{"v":12446.573716242701,"d":"12,447"}},{"$f":"'BP Financier'!$C$44*('BP Financier'!$C$16/('BP Financier'!$C$16+'BP Financier'!$C$19+'BP Financier'!$C$22))*$V118*AB118/(1-$W118)","v":{"v":5957.334428287104,"d":"5,957"}},null,{"v":0.005,"d":"0.50%"},{"$f":"Actif!$E$28/100","v":{"v":0.28900000000000003,"d":"28.90%"}},{"$f":"Actif!$E$30/100","v":{"v":0.09050000000000001,"d":"9.05%"}},{"$f":"Actif!$E$31/100","v":{"v":0.0605,"d":"6.05%"}},{"$f":"Actif!$E$32/100","v":{"v":0.47350000000000003,"d":"47.35%"}},{"$f":"Actif!$E$33/100","v":{"v":0.0585,"d":"5.85%"}},{"$f":"Actif!$E$29/100","v":{"v":0.027999999999999997,"d":"2.80%"}}]
[null,"#30",47,2026,"F","A_VIE",{"v":0.44999999999999996,"d":"0.45"},{"v":0.38999999999999996,"d":"0.39"},0.6,0.6,85,0,{"$f":"ROUND(Primes!$M$4*V119,0)","v":17},{"$f":"'BP Financier'!$C$33*('BP Financier'!$C$16/('BP Financier'!$C$16+'BP Financier'!$C$19))*V119","v":{"v":275455.6202033296,"d":"275,456"}},{"v":151273.74208971902,"d":"151,274"},{"$f":"'BP Financier'!$C$44*('BP Financier'!$C$16/('BP Financier'!$C$16+'BP Financier'!$C$19+'BP Financier'!$C$22))*$V119*X119/(1-$W119)","v":{"v":19254.955919999393,"d":"19,255"}},{"$f":"'BP Financier'!$C$44*('BP Financier'!$C$16/('BP Financier'!$C$16+'BP Financier'!$C$19+'BP Financier'!$C$22))*$V119*Y119/(1-$W119)","v":{"v":12872.097603977492,"d":"12,872"}},{"$f":"'BP Financier'!$C$44*('BP Financier'!$C$16/('BP Financier'!$C$16+'BP Financier'!$C$19+'BP Financier'!$C$22))*$V119*Z119/(1-$W119)","v":{"v":100742.7804212123,"d":"100,743"}},{"$f":"'BP Financier'!$C$44*('BP Financier'!$C$16/('BP Financier'!$C$16+'BP Financier'!$C$19+'BP Financier'!$C$22))*$V119*AA119/(1-$W119)","v":{"v":12446.573716242701,"d":"12,447"}},{"$f":"'BP Financier'!$C$44*('BP Financier'!$C$16/('BP Financier'!$C$16+'BP Financier'!$C$19+'BP Financier'!$C$22))*$V119*AB119/(1-$W119)","v":{"v":5957.334428287104,"d":"5,957"}},null,{"v":0.005,"d":"0.50%"},{"$f":"Actif!$E$28/100","v":{"v":0.28900000000000003,"d":"28.90%"}},{"$f":"Actif!$E$30/100","v":{"v":0.09050000000000001,"d":"9.05%"}},{"$f":"Actif!$E$31/100","v":{"v":0.0605,"d":"6.05%"}},{"$f":"Actif!$E$32/100","v":{"v":0.47350000000000003,"d":"47.35%"}},{"$f":"Actif!$E$33/100","v":{"v":0.0585,"d":"5.85%"}},{"$f":"Actif!$E$29/100","v":{"v":0.027999999999999997,"d":"2.80%"}}]
[null,"#31",48,2026,"H","A_VIE",{"v":0.44999999999999996,"d":"0.45"},{"v":0.38999999999999996,"d":"0.39"},0.6,0.6,85,0,{"$f":"ROUND(Primes!$M$4*V120,0)","v":17},{"$f":"'BP Financier'!$C$33*('BP Financier'!$C$16/('BP Financier'!$C$16+'BP Financier'!$C$19))*V120","v":{"v":275455.6202033296,"d":"275,456"}},{"v":151273.74208971902,"d":"151,274"},{"$f":"'BP Financier'!$C$44*('BP Financier'!$C$16/('BP Financier'!$C$16+'BP Financier'!$C$19+'BP Financier'!$C$22))*$V120*X120/(1-$W120)","v":{"v":19254.955919999393,"d":"19,255"}},{"$f":"'BP Financier'!$C$44*('BP Financier'!$C$16/('BP Financier'!$C$16+'BP Financier'!$C$19+'BP Financier'!$C$22))*$V120*Y120/(1-$W120)","v":{"v":12872.097603977492,"d":"12,872"}},{"$f":"'BP Financier'!$C$44*('BP Financier'!$C$16/('BP Financier'!$C$16+'BP Financier'!$C$19+'BP Financier'!$C$22))*$V120*Z120/(1-$W120)","v":{"v":100742.7804212123,"d":"100,743"}},{"$f":"'BP Financier'!$C$44*('BP Financier'!$C$16/('BP Financier'!$C$16+'BP Financier'!$C$19+'BP Financier'!$C$22))*$V120*AA120/(1-$W120)","v":{"v":12446.573716242701,"d":"12,447"}},{"$f":"'BP Financier'!$C$44*('BP Financier'!$C$16/('BP Financier'!$C$16+'BP Financier'!$C$19+'BP Financier'!$C$22))*$V120*AB120/(1-$W120)","v":{"v":5957.334428287104,"d":"5,957"}},null,{"v":0.005,"d":"0.50%"},{"$f":"Actif!$E$28/100","v":{"v":0.28900000000000003,"d":"28.90%"}},{"$f":"Actif!$E$30/100","v":{"v":0.09050000000000001,"d":"9.05%"}},{"$f":"Actif!$E$31/100","v":{"v":0.0605,"d":"6.05%"}},{"$f":"Actif!$E$32/100","v":{"v":0.47350000000000003,"d":"47.35%"}},{"$f":"Actif!$E$33/100","v":{"v":0.0585,"d":"5.85%"}},{"$f":"Actif!$E$29/100","v":{"v":0.027999999999999997,"d":"2.80%"}}]
[null,"#32",49,2026,"H","A_VIE",{"v":0.44999999999999996,"d":"0.45"},{"v":0.38999999999999996,"d":"0.39"},0.6,0.6,85,0,{"$f":"ROUND(Primes!$M$4*V121,0)","v":17},{"$f":"'BP Financier'!$C$33*('BP Financier'!$C$16/('BP Financier'!$C$16+'BP Financier'!$C$19))*V121","v":{"v":275455.6202033296,"d":"275,456"}},{"v":151273.74208971902,"d":"151,274"},{"$f":"'BP Financier'!$C$44*('BP Financier'!$C$16/('BP Financier'!$C$16+'BP Financier'!$C$19+'BP Financier'!$C$22))*$V121*X121/(1-$W121)","v":{"v":19254.955919999393,"d":"19,255"}},{"$f":"'BP Financier'!$C$44*('BP Financier'!$C$16/('BP Financier'!$C$16+'BP Financier'!$C$19+'BP Financier'!$C$22))*$V121*Y121/(1-$W121)","v":{"v":12872.097603977492,"d":"12,872"}},{"$f":"'BP Financier'!$C$44*('BP Financier'!$C$16/('BP Financier'!$C$16+'BP Financier'!$C$19+'BP Financier'!$C$22))*$V121*Z121/(1-$W121)","v":{"v":100742.7804212123,"d":"100,743"}},{"$f":"'BP Financier'!$C$44*('BP Financier'!$C$16/('BP Financier'!$C$16+'BP Financier'!$C$19+'BP Financier'!$C$22))*$V121*AA121/(1-$W121)","v":{"v":12446.573716242701,"d":"12,447"}},{"$f":"'BP Financier'!$C$44*('BP Financier'!$C$16/('BP Financier'!$C$16+'BP Financier'!$C$19+'BP Financier'!$C$22))*$V121*AB121/(1-$W121)","v":{"v":5957.334428287104,"d":"5,957"}},null,{"v":0.005,"d":"0.50%"},{"$f":"Actif!$E$28/100","v":{"v":0.28900000000000003,"d":"28.90%"}},{"$f":"Actif!$E$30/100","v":{"v":0.09050000000000001,"d":"9.05%"}},{"$f":"Actif!$E$31/100","v":{"v":0.0605,"d":"6.05%"}},{"$f":"Actif!$E$32/100","v":{"v":0.47350000000000003,"d":"47.35%"}},{"$f":"Actif!$E$33/100","v":{"v":0.0585,"d":"5.85%"}},{"$f":"Actif!$E$29/100","v":{"v":0.027999999999999997,"d":"2.80%"}}]
[null,"#33",50,2026,"F","A_VIE",{"$f":"frais_gestion_Euro*100","v":{"v":0.44999999999999996,"d":"0.45"}},{"$f":"frais_gestion_UC*100","v":{"v":0.38999999999999996,"d":"0.39"}},{"$f":"frais_distribution_FG*100","v":0.6},{"$f":"frais_distribution_UC*100","v":0.6},85,0,{"$f":"ROUND(Primes!$M$4*V122,0)","v":100},{"$f":"'BP Financier'!$C$33*('BP Financier'!$C$16/('BP Financier'!$C$16+'BP Financier'!$C$19))*V122","v":{"v":1652733.7212199776,"d":"1,652,734"}},{"v":907642.4525383138,"d":"907,642"},{"$f":"'BP Financier'!$C$44*('BP Financier'!$C$16/('BP Financier'!$C$16+'BP Financier'!$C$19+'BP Financier'!$C$22))*$V122*X122/(1-$W122)","v":{"v":115529.73551999635,"d":"115,530"}},{"$f":"'BP Financier'!$C$44*('BP Financier'!$C$16/('BP Financier'!$C$16+'BP Financier'!$C$19+'BP Financier'!$C$22))*$V122*Y122/(1-$W122)","v":{"v":77232.58562386494,"d":"77,233"}},{"$f":"'BP Financier'!$C$44*('BP Financier'!$C$16/('BP Financier'!$C$16+'BP Financier'!$C$19+'BP Financier'!$C$22))*$V122*Z122/(1-$W122)","v":{"v":604456.6825272737,"d":"604,457"}},{"$f":"'BP Financier'!$C$44*('BP Financier'!$C$16/('BP Financier'!$C$16+'BP Financier'!$C$19+'BP Financier'!$C$22))*$V122*AA122/(1-$W122)","v":{"v":74679.44229745619,"d":"74,679"}},{"$f":"'BP Financier'!$C$44*('BP Financier'!$C$16/('BP Financier'!$C$16+'BP Financier'!$C$19+'BP Financier'!$C$22))*$V122*AB122/(1-$W122)","v":{"v":35744.00656972262,"d":"35,744"}},null,{"v":0.03,"d":"3.00%"},{"$f":"Actif!$E$28/100","v":{"v":0.28900000000000003,"d":"28.90%"}},{"$f":"Actif!$E$30/100","v":{"v":0.09050000000000001,"d":"9.05%"}},{"$f":"Actif!$E$31/100","v":{"v":0.0605,"d":"6.05%"}},{"$f":"Actif!$E$32/100","v":{"v":0.47350000000000003,"d":"47.35%"}},{"$f":"Actif!$E$33/100","v":{"v":0.0585,"d":"5.85%"}},{"$f":"Actif!$E$29/100","v":{"v":0.027999999999999997,"d":"2.80%"}}]
[null,"#34",51,2026,"H","A_VIE",{"v":0.44999999999999996,"d":"0.45"},{"v":0.38999999999999996,"d":"0.39"},0.6,0.6,85,0,{"$f":"ROUND(Primes!$M$4*V123,0)","v":100},{"$f":"'BP Financier'!$C$33*('BP Financier'!$C$16/('BP Financier'!$C$16+'BP Financier'!$C$19))*V123","v":{"v":1652733.7212199776,"d":"1,652,734"}},{"v":907642.4525383138,"d":"907,642"},{"$f":"'BP Financier'!$C$44*('BP Financier'!$C$16/('BP Financier'!$C$16+'BP Financier'!$C$19+'BP Financier'!$C$22))*$V123*X123/(1-$W123)","v":{"v":115529.73551999635,"d":"115,530"}},{"$f":"'BP Financier'!$C$44*('BP Financier'!$C$16/('BP Financier'!$C$16+'BP Financier'!$C$19+'BP Financier'!$C$22))*$V123*Y123/(1-$W123)","v":{"v":77232.58562386494,"d":"77,233"}},{"$f":"'BP Financier'!$C$44*('BP Financier'!$C$16/('BP Financier'!$C$16+'BP Financier'!$C$19+'BP Financier'!$C$22))*$V123*Z123/(1-$W123)","v":{"v":604456.6825272737,"d":"604,457"}},{"$f":"'BP Financier'!$C$44*('BP Financier'!$C$16/('BP Financier'!$C$16+'BP Financier'!$C$19+'BP Financier'!$C$22))*$V123*AA123/(1-$W123)","v":{"v":74679.44229745619,"d":"74,679"}},{"$f":"'BP Financier'!$C$44*('BP Financier'!$C$16/('BP Financier'!$C$16+'BP Financier'!$C$19+'BP Financier'!$C$22))*$V123*AB123/(1-$W123)","v":{"v":35744.00656972262,"d":"35,744"}},null,{"v":0.03,"d":"3.00%"},{"$f":"Actif!$E$28/100","v":{"v":0.28900000000000003,"d":"28.90%"}},{"$f":"Actif!$E$30/100","v":{"v":0.09050000000000001,"d":"9.05%"}},{"$f":"Actif!$E$31/100","v":{"v":0.0605,"d":"6.05%"}},{"$f":"Actif!$E$32/100","v":{"v":0.47350000000000003,"d":"47.35%"}},{"$f":"Actif!$E$33/100","v":{"v":0.0585,"d":"5.85%"}},{"$f":"Actif!$E$29/100","v":{"v":0.027999999999999997,"d":"2.80%"}}]
[null,"#35",52,2026,"H","A_VIE",{"v":0.44999999999999996,"d":"0.45"},{"v":0.38999999999999996,"d":"0.39"},0.6,0.6,85,0,{"$f":"ROUND(Primes!$M$4*V124,0)","v":100},{"$f":"'BP Financier'!$C$33*('BP Financier'!$C$16/('BP Financier'!$C$16+'BP Financier'!$C$19))*V124","v":{"v":1652733.7212199776,"d":"1,652,734"}},{"v":907642.4525383138,"d":"907,642"},{"$f":"'BP Financier'!$C$44*('BP Financier'!$C$16/('BP Financier'!$C$16+'BP Financier'!$C$19+'BP Financier'!$C$22))*$V124*X124/(1-$W124)","v":{"v":115529.73551999635,"d":"115,530"}},{"$f":"'BP Financier'!$C$44*('BP Financier'!$C$16/('BP Financier'!$C$16+'BP Financier'!$C$19+'BP Financier'!$C$22))*$V124*Y124/(1-$W124)","v":{"v":77232.58562386494,"d":"77,233"}},{"$f":"'BP Financier'!$C$44*('BP Financier'!$C$16/('BP Financier'!$C$16+'BP Financier'!$C$19+'BP Financier'!$C$22))*$V124*Z124/(1-$W124)","v":{"v":604456.6825272737,"d":"604,457"}},{"$f":"'BP Financier'!$C$44*('BP Financier'!$C$16/('BP Financier'!$C$16+'BP Financier'!$C$19+'BP Financier'!$C$22))*$V124*AA124/(1-$W124)","v":{"v":74679.44229745619,"d":"74,679"}},{"$f":"'BP Financier'!$C$44*('BP Financier'!$C$16/('BP Financier'!$C$16+'BP Financier'!$C$19+'BP Financier'!$C$22))*$V124*AB124/(1-$W124)","v":{"v":35744.00656972262,"d":"35,744"}},null,{"v":0.03,"d":"3.00%"},{"$f":"Actif!$E$28/100","v":{"v":0.28900000000000003,"d":"28.90%"}},{"$f":"Actif!$E$30/100","v":{"v":0.09050000000000001,"d":"9.05%"}},{"$f":"Actif!$E$31/100","v":{"v":0.0605,"d":"6.05%"}},{"$f":"Actif!$E$32/100","v":{"v":0.47350000000000003,"d":"47.35%"}},{"$f":"Actif!$E$33/100","v":{"v":0.0585,"d":"5.85%"}},{"$f":"Actif!$E$29/100","v":{"v":0.027999999999999997,"d":"2.80%"}}]
[null,"#36",53,2026,"F","A_VIE",{"v":0.44999999999999996,"d":"0.45"},{"v":0.38999999999999996,"d":"0.39"},0.6,0.6,85,0,{"$f":"ROUND(Primes!$M$4*V125,0)","v":100},{"$f":"'BP Financier'!$C$33*('BP Financier'!$C$16/('BP Financier'!$C$16+'BP Financier'!$C$19))*V125","v":{"v":1652733.7212199776,"d":"1,652,734"}},{"v":907642.4525383138,"d":"907,642"},{"$f":"'BP Financier'!$C$44*('BP Financier'!$C$16/('BP Financier'!$C$16+'BP Financier'!$C$19+'BP Financier'!$C$22))*$V125*X125/(1-$W125)","v":{"v":115529.73551999635,"d":"115,530"}},{"$f":"'BP Financier'!$C$44*('BP Financier'!$C$16/('BP Financier'!$C$16+'BP Financier'!$C$19+'BP Financier'!$C$22))*$V125*Y125/(1-$W125)","v":{"v":77232.58562386494,"d":"77,233"}},{"$f":"'BP Financier'!$C$44*('BP Financier'!$C$16/('BP Financier'!$C$16+'BP Financier'!$C$19+'BP Financier'!$C$22))*$V125*Z125/(1-$W125)","v":{"v":604456.6825272737,"d":"604,457"}},{"$f":"'BP Financier'!$C$44*('BP Financier'!$C$16/('BP Financier'!$C$16+'BP Financier'!$C$19+'BP Financier'!$C$22))*$V125*AA125/(1-$W125)","v":{"v":74679.44229745619,"d":"74,679"}},{"$f":"'BP Financier'!$C$44*('BP Financier'!$C$16/('BP Financier'!$C$16+'BP Financier'!$C$19+'BP Financier'!$C$22))*$V125*AB125/(1-$W125)","v":{"v":35744.00656972262,"d":"35,744"}},null,{"v":0.03,"d":"3.00%"},{"$f":"Actif!$E$28/100","v":{"v":0.28900000000000003,"d":"28.90%"}},{"$f":"Actif!$E$30/100","v":{"v":0.09050000000000001,"d":"9.05%"}},{"$f":"Actif!$E$31/100","v":{"v":0.0605,"d":"6.05%"}},{"$f":"Actif!$E$32/100","v":{"v":0.47350000000000003,"d":"47.35%"}},{"$f":"Actif!$E$33/100","v":{"v":0.0585,"d":"5.85%"}},{"$f":"Actif!$E$29/100","v":{"v":0.027999999999999997,"d":"2.80%"}}]
[null,"#37",54,2026,"H","A_VIE",{"v":0.44999999999999996,"d":"0.45"},{"v":0.38999999999999996,"d":"0.39"},0.6,0.6,85,0,{"$f":"ROUND(Primes!$M$4*V126,0)","v":100},{"$f":"'BP Financier'!$C$33*('BP Financier'!$C$16/('BP Financier'!$C$16+'BP Financier'!$C$19))*V126","v":{"v":1652733.7212199776,"d":"1,652,734"}},{"v":907642.4525383138,"d":"907,642"},{"$f":"'BP Financier'!$C$44*('BP Financier'!$C$16/('BP Financier'!$C$16+'BP Financier'!$C$19+'BP Financier'!$C$22))*$V126*X126/(1-$W126)","v":{"v":115529.73551999635,"d":"115,530"}},{"$f":"'BP Financier'!$C$44*('BP Financier'!$C$16/('BP Financier'!$C$16+'BP Financier'!$C$19+'BP Financier'!$C$22))*$V126*Y126/(1-$W126)","v":{"v":77232.58562386494,"d":"77,233"}},{"$f":"'BP Financier'!$C$44*('BP Financier'!$C$16/('BP Financier'!$C$16+'BP Financier'!$C$19+'BP Financier'!$C$22))*$V126*Z126/(1-$W126)","v":{"v":604456.6825272737,"d":"604,457"}},{"$f":"'BP Financier'!$C$44*('BP Financier'!$C$16/('BP Financier'!$C$16+'BP Financier'!$C$19+'BP Financier'!$C$22))*$V126*AA126/(1-$W126)","v":{"v":74679.44229745619,"d":"74,679"}},{"$f":"'BP Financier'!$C$44*('BP Financier'!$C$16/('BP Financier'!$C$16+'BP Financier'!$C$19+'BP Financier'!$C$22))*$V126*AB126/(1-$W126)","v":{"v":35744.00656972262,"d":"35,744"}},null,{"v":0.03,"d":"3.00%"},{"$f":"Actif!$E$28/100","v":{"v":0.28900000000000003,"d":"28.90%"}},{"$f":"Actif!$E$30/100","v":{"v":0.09050000000000001,"d":"9.05%"}},{"$f":"Actif!$E$31/100","v":{"v":0.0605,"d":"6.05%"}},{"$f":"Actif!$E$32/100","v":{"v":0.47350000000000003,"d":"47.35%"}},{"$f":"Actif!$E$33/100","v":{"v":0.0585,"d":"5.85%"}},{"$f":"Actif!$E$29/100","v":{"v":0.027999999999999997,"d":"2.80%"}}]
[null,"#38",55,2026,"H","A_VIE",{"v":0.44999999999999996,"d":"0.45"},{"v":0.38999999999999996,"d":"0.39"},0.6,0.6,85,0,{"$f":"ROUND(Primes!$M$4*V127,0)","v":100},{"$f":"'BP Financier'!$C$33*('BP Financier'!$C$16/('BP Financier'!$C$16+'BP Financier'!$C$19))*V127","v":{"v":1652733.7212199776,"d":"1,652,734"}},{"v":907642.4525383138,"d":"907,642"},{"$f":"'BP Financier'!$C$44*('BP Financier'!$C$16/('BP Financier'!$C$16+'BP Financier'!$C$19+'BP Financier'!$C$22))*$V127*X127/(1-$W127)","v":{"v":115529.73551999635,"d":"115,530"}},{"$f":"'BP Financier'!$C$44*('BP Financier'!$C$16/('BP Financier'!$C$16+'BP Financier'!$C$19+'BP Financier'!$C$22))*$V127*Y127/(1-$W127)","v":{"v":77232.58562386494,"d":"77,233"}},{"$f":"'BP Financier'!$C$44*('BP Financier'!$C$16/('BP Financier'!$C$16+'BP Financier'!$C$19+'BP Financier'!$C$22))*$V127*Z127/(1-$W127)","v":{"v":604456.6825272737,"d":"604,457"}},{"$f":"'BP Financier'!$C$44*('BP Financier'!$C$16/('BP Financier'!$C$16+'BP Financier'!$C$19+'BP Financier'!$C$22))*$V127*AA127/(1-$W127)","v":{"v":74679.44229745619,"d":"74,679"}},{"$f":"'BP Financier'!$C$44*('BP Financier'!$C$16/('BP Financier'!$C$16+'BP Financier'!$C$19+'BP Financier'!$C$22))*$V127*AB127/(1-$W127)","v":{"v":35744.00656972262,"d":"35,744"}},null,{"v":0.03,"d":"3.00%"},{"$f":"Actif!$E$28/100","v":{"v":0.28900000000000003,"d":"28.90%"}},{"$f":"Actif!$E$30/100","v":{"v":0.09050000000000001,"d":"9.05%"}},{"$f":"Actif!$E$31/100","v":{"v":0.0605,"d":"6.05%"}},{"$f":"Actif!$E$32/100","v":{"v":0.47350000000000003,"d":"47.35%"}},{"$f":"Actif!$E$33/100","v":{"v":0.0585,"d":"5.85%"}},{"$f":"Actif!$E$29/100","v":{"v":0.027999999999999997,"d":"2.80%"}}]
[null,"#39",56,2026,"F","A_VIE",{"v":0.44999999999999996,"d":"0.45"},{"v":0.38999999999999996,"d":"0.39"},0.6,0.6,85,0,{"$f":"ROUND(Primes!$M$4*V128,0)","v":100},{"$f":"'BP Financier'!$C$33*('BP Financier'!$C$16/('BP Financier'!$C$16+'BP Financier'!$C$19))*V128","v":{"v":1652733.7212199776,"d":"1,652,734"}},{"v":907642.4525383138,"d":"907,642"},{"$f":"'BP Financier'!$C$44*('BP Financier'!$C$16/('BP Financier'!$C$16+'BP Financier'!$C$19+'BP Financier'!$C$22))*$V128*X128/(1-$W128)","v":{"v":115529.73551999635,"d":"115,530"}},{"$f":"'BP Financier'!$C$44*('BP Financier'!$C$16/('BP Financier'!$C$16+'BP Financier'!$C$19+'BP Financier'!$C$22))*$V128*Y128/(1-$W128)","v":{"v":77232.58562386494,"d":"77,233"}},{"$f":"'BP Financier'!$C$44*('BP Financier'!$C$16/('BP Financier'!$C$16+'BP Financier'!$C$19+'BP Financier'!$C$22))*$V128*Z128/(1-$W128)","v":{"v":604456.6825272737,"d":"604,457"}},{"$f":"'BP Financier'!$C$44*('BP Financier'!$C$16/('BP Financier'!$C$16+'BP Financier'!$C$19+'BP Financier'!$C$22))*$V128*AA128/(1-$W128)","v":{"v":74679.44229745619,"d":"74,679"}},{"$f":"'BP Financier'!$C$44*('BP Financier'!$C$16/('BP Financier'!$C$16+'BP Financier'!$C$19+'BP Financier'!$C$22))*$V128*AB128/(1-$W128)","v":{"v":35744.00656972262,"d":"35,744"}},null,{"v":0.03,"d":"3.00%"},{"$f":"Actif!$E$28/100","v":{"v":0.28900000000000003,"d":"28.90%"}},{"$f":"Actif!$E$30/100","v":{"v":0.09050000000000001,"d":"9.05%"}},{"$f":"Actif!$E$31/100","v":{"v":0.0605,"d":"6.05%"}},{"$f":"Actif!$E$32/100","v":{"v":0.47350000000000003,"d":"47.35%"}},{"$f":"Actif!$E$33/100","v":{"v":0.0585,"d":"5.85%"}},{"$f":"Actif!$E$29/100","v":{"v":0.027999999999999997,"d":"2.80%"}}]
[null,"#40",57,2026,"H","A_VIE",{"v":0.44999999999999996,"d":"0.45"},{"v":0.38999999999999996,"d":"0.39"},0.6,0.6,85,0,{"$f":"ROUND(Primes!$M$4*V129,0)","v":100},{"$f":"'BP Financier'!$C$33*('BP Financier'!$C$16/('BP Financier'!$C$16+'BP Financier'!$C$19))*V129","v":{"v":1652733.7212199776,"d":"1,652,734"}},{"v":907642.4525383138,"d":"907,642"},{"$f":"'BP Financier'!$C$44*('BP Financier'!$C$16/('BP Financier'!$C$16+'BP Financier'!$C$19+'BP Financier'!$C$22))*$V129*X129/(1-$W129)","v":{"v":115529.73551999635,"d":"115,530"}},{"$f":"'BP Financier'!$C$44*('BP Financier'!$C$16/('BP Financier'!$C$16+'BP Financier'!$C$19+'BP Financier'!$C$22))*$V129*Y129/(1-$W129)","v":{"v":77232.58562386494,"d":"77,233"}},{"$f":"'BP Financier'!$C$44*('BP Financier'!$C$16/('BP Financier'!$C$16+'BP Financier'!$C$19+'BP Financier'!$C$22))*$V129*Z129/(1-$W129)","v":{"v":604456.6825272737,"d":"604,457"}},{"$f":"'BP Financier'!$C$44*('BP Financier'!$C$16/('BP Financier'!$C$16+'BP Financier'!$C$19+'BP Financier'!$C$22))*$V129*AA129/(1-$W129)","v":{"v":74679.44229745619,"d":"74,679"}},{"$f":"'BP Financier'!$C$44*('BP Financier'!$C$16/('BP Financier'!$C$16+'BP Financier'!$C$19+'BP Financier'!$C$22))*$V129*AB129/(1-$W129)","v":{"v":35744.00656972262,"d":"35,744"}},null,{"v":0.03,"d":"3.00%"},{"$f":"Actif!$E$28/100","v":{"v":0.28900000000000003,"d":"28.90%"}},{"$f":"Actif!$E$30/100","v":{"v":0.09050000000000001,"d":"9.05%"}},{"$f":"Actif!$E$31/100","v":{"v":0.0605,"d":"6.05%"}},{"$f":"Actif!$E$32/100","v":{"v":0.47350000000000003,"d":"47.35%"}},{"$f":"Actif!$E$33/100","v":{"v":0.0585,"d":"5.85%"}},{"$f":"Actif!$E$29/100","v":{"v":0.027999999999999997,"d":"2.80%"}}]
[null,"#41",58,2026,"H","A_VIE",{"v":0.44999999999999996,"d":"0.45"},{"v":0.38999999999999996,"d":"0.39"},0.6,0.6,85,0,{"$f":"ROUND(Primes!$M$4*V130,0)","v":100},{"$f":"'BP Financier'!$C$33*('BP Financier'!$C$16/('BP Financier'!$C$16+'BP Financier'!$C$19))*V130","v":{"v":1652733.7212199776,"d":"1,652,734"}},{"v":907642.4525383138,"d":"907,642"},{"$f":"'BP Financier'!$C$44*('BP Financier'!$C$16/('BP Financier'!$C$16+'BP Financier'!$C$19+'BP Financier'!$C$22))*$V130*X130/(1-$W130)","v":{"v":115529.73551999635,"d":"115,530"}},{"$f":"'BP Financier'!$C$44*('BP Financier'!$C$16/('BP Financier'!$C$16+'BP Financier'!$C$19+'BP Financier'!$C$22))*$V130*Y130/(1-$W130)","v":{"v":77232.58562386494,"d":"77,233"}},{"$f":"'BP Financier'!$C$44*('BP Financier'!$C$16/('BP Financier'!$C$16+'BP Financier'!$C$19+'BP Financier'!$C$22))*$V130*Z130/(1-$W130)","v":{"v":604456.6825272737,"d":"604,457"}},{"$f":"'BP Financier'!$C$44*('BP Financier'!$C$16/('BP Financier'!$C$16+'BP Financier'!$C$19+'BP Financier'!$C$22))*$V130*AA130/(1-$W130)","v":{"v":74679.44229745619,"d":"74,679"}},{"$f":"'BP Financier'!$C$44*('BP Financier'!$C$16/('BP Financier'!$C$16+'BP Financier'!$C$19+'BP Financier'!$C$22))*$V130*AB130/(1-$W130)","v":{"v":35744.00656972262,"d":"35,744"}},null,{"v":0.03,"d":"3.00%"},{"$f":"Actif!$E$28/100","v":{"v":0.28900000000000003,"d":"28.90%"}},{"$f":"Actif!$E$30/100","v":{"v":0.09050000000000001,"d":"9.05%"}},{"$f":"Actif!$E$31/100","v":{"v":0.0605,"d":"6.05%"}},{"$f":"Actif!$E$32/100","v":{"v":0.47350000000000003,"d":"47.35%"}},{"$f":"Actif!$E$33/100","v":{"v":0.0585,"d":"5.85%"}},{"$f":"Actif!$E$29/100","v":{"v":0.027999999999999997,"d":"2.80%"}}]
[null,"#42",59,2026,"F","A_VIE",{"v":0.44999999999999996,"d":"0.45"},{"v":0.38999999999999996,"d":"0.39"},0.6,0.6,85,0,{"$f":"ROUND(Primes!$M$4*V131,0)","v":100},{"$f":"'BP Financier'!$C$33*('BP Financier'!$C$16/('BP Financier'!$C$16+'BP Financier'!$C$19))*V131","v":{"v":1652733.7212199776,"d":"1,652,734"}},{"v":907642.4525383138,"d":"907,642"},{"$f":"'BP Financier'!$C$44*('BP Financier'!$C$16/('BP Financier'!$C$16+'BP Financier'!$C$19+'BP Financier'!$C$22))*$V131*X131/(1-$W131)","v":{"v":115529.73551999635,"d":"115,530"}},{"$f":"'BP Financier'!$C$44*('BP Financier'!$C$16/('BP Financier'!$C$16+'BP Financier'!$C$19+'BP Financier'!$C$22))*$V131*Y131/(1-$W131)","v":{"v":77232.58562386494,"d":"77,233"}},{"$f":"'BP Financier'!$C$44*('BP Financier'!$C$16/('BP Financier'!$C$16+'BP Financier'!$C$19+'BP Financier'!$C$22))*$V131*Z131/(1-$W131)","v":{"v":604456.6825272737,"d":"604,457"}},{"$f":"'BP Financier'!$C$44*('BP Financier'!$C$16/('BP Financier'!$C$16+'BP Financier'!$C$19+'BP Financier'!$C$22))*$V131*AA131/(1-$W131)","v":{"v":74679.44229745619,"d":"74,679"}},{"$f":"'BP Financier'!$C$44*('BP Financier'!$C$16/('BP Financier'!$C$16+'BP Financier'!$C$19+'BP Financier'!$C$22))*$V131*AB131/(1-$W131)","v":{"v":35744.00656972262,"d":"35,744"}},null,{"v":0.03,"d":"3.00%"},{"$f":"Actif!$E$28/100","v":{"v":0.28900000000000003,"d":"28.90%"}},{"$f":"Actif!$E$30/100","v":{"v":0.09050000000000001,"d":"9.05%"}},{"$f":"Actif!$E$31/100","v":{"v":0.0605,"d":"6.05%"}},{"$f":"Actif!$E$32/100","v":{"v":0.47350000000000003,"d":"47.35%"}},{"$f":"Actif!$E$33/100","v":{"v":0.0585,"d":"5.85%"}},{"$f":"Actif!$E$29/100","v":{"v":0.027999999999999997,"d":"2.80%"}}]
[null,"#43",60,2026,"H","A_VIE",{"v":0.44999999999999996,"d":"0.45"},{"v":0.38999999999999996,"d":"0.39"},0.6,0.6,85,0,{"$f":"ROUND(Primes!$M$4*V132,0)","v":167},{"$f":"'BP Financier'!$C$33*('BP Financier'!$C$16/('BP Financier'!$C$16+'BP Financier'!$C$19))*V132","v":{"v":2754556.202033296,"d":"2,754,556"}},{"v":1512737.4208971898,"d":"1,512,737"},{"$f":"'BP Financier'!$C$44*('BP Financier'!$C$16/('BP Financier'!$C$16+'BP Financier'!$C$19+'BP Financier'!$C$22))*$V132*X132/(1-$W132)","v":{"v":192549.5591999939,"d":"192,550"}},{"$f":"'BP Financier'!$C$44*('BP Financier'!$C$16/('BP Financier'!$C$16+'BP Financier'!$C$19+'BP Financier'!$C$22))*$V132*Y132/(1-$W132)","v":{"v":128720.97603977492,"d":"128,721"}},{"$f":"'BP Financier'!$C$44*('BP Financier'!$C$16/('BP Financier'!$C$16+'BP Financier'!$C$19+'BP Financier'!$C$22))*$V132*Z132/(1-$W132)","v":{"v":1007427.8042121228,"d":"1,007,428"}},{"$f":"'BP Financier'!$C$44*('BP Financier'!$C$16/('BP Financier'!$C$16+'BP Financier'!$C$19+'BP Financier'!$C$22))*$V132*AA132/(1-$W132)","v":{"v":124465.737162427,"d":"124,466"}},{"$f":"'BP Financier'!$C$44*('BP Financier'!$C$16/('BP Financier'!$C$16+'BP Financier'!$C$19+'BP Financier'!$C$22))*$V132*AB132/(1-$W132)","v":{"v":59573.34428287104,"d":"59,573"}},null,{"v":0.05,"d":"5.00%"},{"$f":"Actif!$E$28/100","v":{"v":0.28900000000000003,"d":"28.90%"}},{"$f":"Actif!$E$30/100","v":{"v":0.09050000000000001,"d":"9.05%"}},{"$f":"Actif!$E$31/100","v":{"v":0.0605,"d":"6.05%"}},{"$f":"Actif!$E$32/100","v":{"v":0.47350000000000003,"d":"47.35%"}},{"$f":"Actif!$E$33/100","v":{"v":0.0585,"d":"5.85%"}},{"$f":"Actif!$E$29/100","v":{"v":0.027999999999999997,"d":"2.80%"}}]
[null,"#44",61,2026,"H","A_VIE",{"v":0.44999999999999996,"d":"0.45"},{"v":0.38999999999999996,"d":"0.39"},0.6,0.6,85,0,{"$f":"ROUND(Primes!$M$4*V133,0)","v":100},{"$f":"'BP Financier'!$C$33*('BP Financier'!$C$16/('BP Financier'!$C$16+'BP Financier'!$C$19))*V133","v":{"v":1652733.7212199776,"d":"1,652,734"}},{"v":907642.4525383138,"d":"907,642"},{"$f":"'BP Financier'!$C$44*('BP Financier'!$C$16/('BP Financier'!$C$16+'BP Financier'!$C$19+'BP Financier'!$C$22))*$V133*X133/(1-$W133)","v":{"v":115529.73551999635,"d":"115,530"}},{"$f":"'BP Financier'!$C$44*('BP Financier'!$C$16/('BP Financier'!$C$16+'BP Financier'!$C$19+'BP Financier'!$C$22))*$V133*Y133/(1-$W133)","v":{"v":77232.58562386494,"d":"77,233"}},{"$f":"'BP Financier'!$C$44*('BP Financier'!$C$16/('BP Financier'!$C$16+'BP Financier'!$C$19+'BP Financier'!$C$22))*$V133*Z133/(1-$W133)","v":{"v":604456.6825272737,"d":"604,457"}},{"$f":"'BP Financier'!$C$44*('BP Financier'!$C$16/('BP Financier'!$C$16+'BP Financier'!$C$19+'BP Financier'!$C$22))*$V133*AA133/(1-$W133)","v":{"v":74679.44229745619,"d":"74,679"}},{"$f":"'BP Financier'!$C$44*('BP Financier'!$C$16/('BP Financier'!$C$16+'BP Financier'!$C$19+'BP Financier'!$C$22))*$V133*AB133/(1-$W133)","v":{"v":35744.00656972262,"d":"35,744"}},null,{"v":0.03,"d":"3.00%"},{"$f":"Actif!$E$28/100","v":{"v":0.28900000000000003,"d":"28.90%"}},{"$f":"Actif!$E$30/100","v":{"v":0.09050000000000001,"d":"9.05%"}},{"$f":"Actif!$E$31/100","v":{"v":0.0605,"d":"6.05%"}},{"$f":"Actif!$E$32/100","v":{"v":0.47350000000000003,"d":"47.35%"}},{"$f":"Actif!$E$33/100","v":{"v":0.0585,"d":"5.85%"}},{"$f":"Actif!$E$29/100","v":{"v":0.027999999999999997,"d":"2.80%"}}]
[null,"#45",62,2026,"F","A_VIE",{"v":0.44999999999999996,"d":"0.45"},{"v":0.38999999999999996,"d":"0.39"},0.6,0.6,85,0,{"$f":"ROUND(Primes!$M$4*V134,0)","v":100},{"$f":"'BP Financier'!$C$33*('BP Financier'!$C$16/('BP Financier'!$C$16+'BP Financier'!$C$19))*V134","v":{"v":1652733.7212199776,"d":"1,652,734"}},{"v":907642.4525383138,"d":"907,642"},{"$f":"'BP Financier'!$C$44*('BP Financier'!$C$16/('BP Financier'!$C$16+'BP Financier'!$C$19+'BP Financier'!$C$22))*$V134*X134/(1-$W134)","v":{"v":115529.73551999635,"d":"115,530"}},{"$f":"'BP Financier'!$C$44*('BP Financier'!$C$16/('BP Financier'!$C$16+'BP Financier'!$C$19+'BP Financier'!$C$22))*$V134*Y134/(1-$W134)","v":{"v":77232.58562386494,"d":"77,233"}},{"$f":"'BP Financier'!$C$44*('BP Financier'!$C$16/('BP Financier'!$C$16+'BP Financier'!$C$19+'BP Financier'!$C$22))*$V134*Z134/(1-$W134)","v":{"v":604456.6825272737,"d":"604,457"}},{"$f":"'BP Financier'!$C$44*('BP Financier'!$C$16/('BP Financier'!$C$16+'BP Financier'!$C$19+'BP Financier'!$C$22))*$V134*AA134/(1-$W134)","v":{"v":74679.44229745619,"d":"74,679"}},{"$f":"'BP Financier'!$C$44*('BP Financier'!$C$16/('BP Financier'!$C$16+'BP Financier'!$C$19+'BP Financier'!$C$22))*$V134*AB134/(1-$W134)","v":{"v":35744.00656972262,"d":"35,744"}},null,{"v":0.03,"d":"3.00%"},{"$f":"Actif!$E$28/100","v":{"v":0.28900000000000003,"d":"28.90%"}},{"$f":"Actif!$E$30/100","v":{"v":0.09050000000000001,"d":"9.05%"}},{"$f":"Actif!$E$31/100","v":{"v":0.0605,"d":"6.05%"}},{"$f":"Actif!$E$32/100","v":{"v":0.47350000000000003,"d":"47.35%"}},{"$f":"Actif!$E$33/100","v":{"v":0.0585,"d":"5.85%"}},{"$f":"Actif!$E$29/100","v":{"v":0.027999999999999997,"d":"2.80%"}}]
[null,"#46",63,2026,"H","A_VIE",{"v":0.44999999999999996,"d":"0.45"},{"v":0.38999999999999996,"d":"0.39"},0.6,0.6,85,0,{"$f":"ROUND(Primes!$M$4*V135,0)","v":100},{"$f":"'BP Financier'!$C$33*('BP Financier'!$C$16/('BP Financier'!$C$16+'BP Financier'!$C$19))*V135","v":{"v":1652733.7212199776,"d":"1,652,734"}},{"v":907642.4525383138,"d":"907,642"},{"$f":"'BP Financier'!$C$44*('BP Financier'!$C$16/('BP Financier'!$C$16+'BP Financier'!$C$19+'BP Financier'!$C$22))*$V135*X135/(1-$W135)","v":{"v":115529.73551999635,"d":"115,530"}},{"$f":"'BP Financier'!$C$44*('BP Financier'!$C$16/('BP Financier'!$C$16+'BP Financier'!$C$19+'BP Financier'!$C$22))*$V135*Y135/(1-$W135)","v":{"v":77232.58562386494,"d":"77,233"}},{"$f":"'BP Financier'!$C$44*('BP Financier'!$C$16/('BP Financier'!$C$16+'BP Financier'!$C$19+'BP Financier'!$C$22))*$V135*Z135/(1-$W135)","v":{"v":604456.6825272737,"d":"604,457"}},{"$f":"'BP Financier'!$C$44*('BP Financier'!$C$16/('BP Financier'!$C$16+'BP Financier'!$C$19+'BP Financier'!$C$22))*$V135*AA135/(1-$W135)","v":{"v":74679.44229745619,"d":"74,679"}},{"$f":"'BP Financier'!$C$44*('BP Financier'!$C$16/('BP Financier'!$C$16+'BP Financier'!$C$19+'BP Financier'!$C$22))*$V135*AB135/(1-$W135)","v":{"v":35744.00656972262,"d":"35,744"}},null,{"v":0.03,"d":"3.00%"},{"$f":"Actif!$E$28/100","v":{"v":0.28900000000000003,"d":"28.90%"}},{"$f":"Actif!$E$30/100","v":{"v":0.09050000000000001,"d":"9.05%"}},{"$f":"Actif!$E$31/100","v":{"v":0.0605,"d":"6.05%"}},{"$f":"Actif!$E$32/100","v":{"v":0.47350000000000003,"d":"47.35%"}},{"$f":"Actif!$E$33/100","v":{"v":0.0585,"d":"5.85%"}},{"$f":"Actif!$E$29/100","v":{"v":0.027999999999999997,"d":"2.80%"}}]
[null,"#47",64,2026,"H","A_VIE",{"v":0.44999999999999996,"d":"0.45"},{"v":0.38999999999999996,"d":"0.39"},0.6,0.6,85,0,{"$f":"ROUND(Primes!$M$4*V136,0)","v":100},{"$f":"'BP Financier'!$C$33*('BP Financier'!$C$16/('BP Financier'!$C$16+'BP Financier'!$C$19))*V136","v":{"v":1652733.7212199776,"d":"1,652,734"}},{"v":907642.4525383138,"d":"907,642"},{"$f":"'BP Financier'!$C$44*('BP Financier'!$C$16/('BP Financier'!$C$16+'BP Financier'!$C$19+'BP Financier'!$C$22))*$V136*X136/(1-$W136)","v":{"v":115529.73551999635,"d":"115,530"}},{"$f":"'BP Financier'!$C$44*('BP Financier'!$C$16/('BP Financier'!$C$16+'BP Financier'!$C$19+'BP Financier'!$C$22))*$V136*Y136/(1-$W136)","v":{"v":77232.58562386494,"d":"77,233"}},{"$f":"'BP Financier'!$C$44*('BP Financier'!$C$16/('BP Financier'!$C$16+'BP Financier'!$C$19+'BP Financier'!$C$22))*$V136*Z136/(1-$W136)","v":{"v":604456.6825272737,"d":"604,457"}},{"$f":"'BP Financier'!$C$44*('BP Financier'!$C$16/('BP Financier'!$C$16+'BP Financier'!$C$19+'BP Financier'!$C$22))*$V136*AA136/(1-$W136)","v":{"v":74679.44229745619,"d":"74,679"}},{"$f":"'BP Financier'!$C$44*('BP Financier'!$C$16/('BP Financier'!$C$16+'BP Financier'!$C$19+'BP Financier'!$C$22))*$V136*AB136/(1-$W136)","v":{"v":35744.00656972262,"d":"35,744"}},null,{"v":0.03,"d":"3.00%"},{"$f":"Actif!$E$28/100","v":{"v":0.28900000000000003,"d":"28.90%"}},{"$f":"Actif!$E$30/100","v":{"v":0.09050000000000001,"d":"9.05%"}},{"$f":"Actif!$E$31/100","v":{"v":0.0605,"d":"6.05%"}},{"$f":"Actif!$E$32/100","v":{"v":0.47350000000000003,"d":"47.35%"}},{"$f":"Actif!$E$33/100","v":{"v":0.0585,"d":"5.85%"}},{"$f":"Actif!$E$29/100","v":{"v":0.027999999999999997,"d":"2.80%"}}]
[null,"#48",65,2026,"F","A_VIE",{"v":0.44999999999999996,"d":"0.45"},{"v":0.38999999999999996,"d":"0.39"},0.6,0.6,85,0,{"$f":"ROUND(Primes!$M$4*V137,0)","v":100},{"$f":"'BP Financier'!$C$33*('BP Financier'!$C$16/('BP Financier'!$C$16+'BP Financier'!$C$19))*V137","v":{"v":1652733.7212199776,"d":"1,652,734"}},{"v":907642.4525383138,"d":"907,642"},{"$f":"'BP Financier'!$C$44*('BP Financier'!$C$16/('BP Financier'!$C$16+'BP Financier'!$C$19+'BP Financier'!$C$22))*$V137*X137/(1-$W137)","v":{"v":115529.73551999635,"d":"115,530"}},{"$f":"'BP Financier'!$C$44*('BP Financier'!$C$16/('BP Financier'!$C$16+'BP Financier'!$C$19+'BP Financier'!$C$22))*$V137*Y137/(1-$W137)","v":{"v":77232.58562386494,"d":"77,233"}},{"$f":"'BP Financier'!$C$44*('BP Financier'!$C$16/('BP Financier'!$C$16+'BP Financier'!$C$19+'BP Financier'!$C$22))*$V137*Z137/(1-$W137)","v":{"v":604456.6825272737,"d":"604,457"}},{"$f":"'BP Financier'!$C$44*('BP Financier'!$C$16/('BP Financier'!$C$16+'BP Financier'!$C$19+'BP Financier'!$C$22))*$V137*AA137/(1-$W137)","v":{"v":74679.44229745619,"d":"74,679"}},{"$f":"'BP Financier'!$C$44*('BP Financier'!$C$16/('BP Financier'!$C$16+'BP Financier'!$C$19+'BP Financier'!$C$22))*$V137*AB137/(1-$W137)","v":{"v":35744.00656972262,"d":"35,744"}},null,{"v":0.03,"d":"3.00%"},{"$f":"Actif!$E$28/100","v":{"v":0.28900000000000003,"d":"28.90%"}},{"$f":"Actif!$E$30/100","v":{"v":0.09050000000000001,"d":"9.05%"}},{"$f":"Actif!$E$31/100","v":{"v":0.0605,"d":"6.05%"}},{"$f":"Actif!$E$32/100","v":{"v":0.47350000000000003,"d":"47.35%"}},{"$f":"Actif!$E$33/100","v":{"v":0.0585,"d":"5.85%"}},{"$f":"Actif!$E$29/100","v":{"v":0.027999999999999997,"d":"2.80%"}}]
[null,"#49",70,2026,"H","A_VIE",{"v":0.44999999999999996,"d":"0.45"},{"v":0.38999999999999996,"d":"0.39"},0.6,0.6,85,0,{"$f":"ROUND(Primes!$M$4*V138,0)","v":17},{"$f":"'BP Financier'!$C$33*('BP Financier'!$C$16/('BP Financier'!$C$16+'BP Financier'!$C$19))*V138","v":{"v":275455.6202033296,"d":"275,456"}},{"v":151273.74208971902,"d":"151,274"},{"$f":"'BP Financier'!$C$44*('BP Financier'!$C$16/('BP Financier'!$C$16+'BP Financier'!$C$19+'BP Financier'!$C$22))*$V138*X138/(1-$W138)","v":{"v":19254.955919999393,"d":"19,255"}},{"$f":"'BP Financier'!$C$44*('BP Financier'!$C$16/('BP Financier'!$C$16+'BP Financier'!$C$19+'BP Financier'!$C$22))*$V138*Y138/(1-$W138)","v":{"v":12872.097603977492,"d":"12,872"}},{"$f":"'BP Financier'!$C$44*('BP Financier'!$C$16/('BP Financier'!$C$16+'BP Financier'!$C$19+'BP Financier'!$C$22))*$V138*Z138/(1-$W138)","v":{"v":100742.7804212123,"d":"100,743"}},{"$f":"'BP Financier'!$C$44*('BP Financier'!$C$16/('BP Financier'!$C$16+'BP Financier'!$C$19+'BP Financier'!$C$22))*$V138*AA138/(1-$W138)","v":{"v":12446.573716242701,"d":"12,447"}},{"$f":"'BP Financier'!$C$44*('BP Financier'!$C$16/('BP Financier'!$C$16+'BP Financier'!$C$19+'BP Financier'!$C$22))*$V138*AB138/(1-$W138)","v":{"v":5957.334428287104,"d":"5,957"}},null,{"v":0.005,"d":"0.50%"},{"$f":"Actif!$E$28/100","v":{"v":0.28900000000000003,"d":"28.90%"}},{"$f":"Actif!$E$30/100","v":{"v":0.09050000000000001,"d":"9.05%"}},{"$f":"Actif!$E$31/100","v":{"v":0.0605,"d":"6.05%"}},{"$f":"Actif!$E$32/100","v":{"v":0.47350000000000003,"d":"47.35%"}},{"$f":"Actif!$E$33/100","v":{"v":0.0585,"d":"5.85%"}},{"$f":"Actif!$E$29/100","v":{"v":0.027999999999999997,"d":"2.80%"}}]
[null,"#50",75,2026,"H","A_VIE",{"v":0.44999999999999996,"d":"0.45"},{"v":0.38999999999999996,"d":"0.39"},0.6,0.6,85,0,{"$f":"ROUND(Primes!$M$4*V139,0)","v":17},{"$f":"'BP Financier'!$C$33*('BP Financier'!$C$16/('BP Financier'!$C$16+'BP Financier'!$C$19))*V139","v":{"v":275455.6202033296,"d":"275,456"}},{"v":151273.74208971902,"d":"151,274"},{"$f":"'BP Financier'!$C$44*('BP Financier'!$C$16/('BP Financier'!$C$16+'BP Financier'!$C$19+'BP Financier'!$C$22))*$V139*X139/(1-$W139)","v":{"v":19254.955919999393,"d":"19,255"}},{"$f":"'BP Financier'!$C$44*('BP Financier'!$C$16/('BP Financier'!$C$16+'BP Financier'!$C$19+'BP Financier'!$C$22))*$V139*Y139/(1-$W139)","v":{"v":12872.097603977492,"d":"12,872"}},{"$f":"'BP Financier'!$C$44*('BP Financier'!$C$16/('BP Financier'!$C$16+'BP Financier'!$C$19+'BP Financier'!$C$22))*$V139*Z139/(1-$W139)","v":{"v":100742.7804212123,"d":"100,743"}},{"$f":"'BP Financier'!$C$44*('BP Financier'!$C$16/('BP Financier'!$C$16+'BP Financier'!$C$19+'BP Financier'!$C$22))*$V139*AA139/(1-$W139)","v":{"v":12446.573716242701,"d":"12,447"}},{"$f":"'BP Financier'!$C$44*('BP Financier'!$C$16/('BP Financier'!$C$16+'BP Financier'!$C$19+'BP Financier'!$C$22))*$V139*AB139/(1-$W139)","v":{"v":5957.334428287104,"d":"5,957"}},null,{"v":0.005,"d":"0.50%"},{"$f":"Actif!$E$28/100","v":{"v":0.28900000000000003,"d":"28.90%"}},{"$f":"Actif!$E$30/100","v":{"v":0.09050000000000001,"d":"9.05%"}},{"$f":"Actif!$E$31/100","v":{"v":0.0605,"d":"6.05%"}},{"$f":"Actif!$E$32/100","v":{"v":0.47350000000000003,"d":"47.35%"}},{"$f":"Actif!$E$33/100","v":{"v":0.0585,"d":"5.85%"}},{"$f":"Actif!$E$29/100","v":{"v":0.027999999999999997,"d":"2.80%"}}]
[null,"#51",80,2026,"F","A_VIE",{"v":0.44999999999999996,"d":"0.45"},{"v":0.38999999999999996,"d":"0.39"},0.6,0.6,85,0,{"$f":"ROUND(Primes!$M$4*V140,0)","v":17},{"$f":"'BP Financier'!$C$33*('BP Financier'!$C$16/('BP Financier'!$C$16+'BP Financier'!$C$19))*V140","v":{"v":275455.6202033296,"d":"275,456"}},{"v":151273.74208971902,"d":"151,274"},{"$f":"'BP Financier'!$C$44*('BP Financier'!$C$16/('BP Financier'!$C$16+'BP Financier'!$C$19+'BP Financier'!$C$22))*$V140*X140/(1-$W140)","v":{"v":19254.955919999393,"d":"19,255"}},{"$f":"'BP Financier'!$C$44*('BP Financier'!$C$16/('BP Financier'!$C$16+'BP Financier'!$C$19+'BP Financier'!$C$22))*$V140*Y140/(1-$W140)","v":{"v":12872.097603977492,"d":"12,872"}},{"$f":"'BP Financier'!$C$44*('BP Financier'!$C$16/('BP Financier'!$C$16+'BP Financier'!$C$19+'BP Financier'!$C$22))*$V140*Z140/(1-$W140)","v":{"v":100742.7804212123,"d":"100,743"}},{"$f":"'BP Financier'!$C$44*('BP Financier'!$C$16/('BP Financier'!$C$16+'BP Financier'!$C$19+'BP Financier'!$C$22))*$V140*AA140/(1-$W140)","v":{"v":12446.573716242701,"d":"12,447"}},{"$f":"'BP Financier'!$C$44*('BP Financier'!$C$16/('BP Financier'!$C$16+'BP Financier'!$C$19+'BP Financier'!$C$22))*$V140*AB140/(1-$W140)","v":{"v":5957.334428287104,"d":"5,957"}},null,{"v":0.005,"d":"0.50%"},{"$f":"Actif!$E$28/100","v":{"v":0.28900000000000003,"d":"28.90%"}},{"$f":"Actif!$E$30/100","v":{"v":0.09050000000000001,"d":"9.05%"}},{"$f":"Actif!$E$31/100","v":{"v":0.0605,"d":"6.05%"}},{"$f":"Actif!$E$32/100","v":{"v":0.47350000000000003,"d":"47.35%"}},{"$f":"Actif!$E$33/100","v":{"v":0.0585,"d":"5.85%"}},{"$f":"Actif!$E$29/100","v":{"v":0.027999999999999997,"d":"2.80%"}}]
[null,"#52",85,2026,"H","A_VIE",{"v":0.44999999999999996,"d":"0.45"},{"v":0.38999999999999996,"d":"0.39"},0.6,0.6,85,0,{"$f":"ROUND(Primes!$M$4*V141,0)","v":8},{"$f":"'BP Financier'!$C$33*('BP Financier'!$C$16/('BP Financier'!$C$16+'BP Financier'!$C$19))*V141","v":{"v":137727.8101016648,"d":"137,728"}},{"v":75636.87104485951,"d":"75,637"},{"$f":"'BP Financier'!$C$44*('BP Financier'!$C$16/('BP Financier'!$C$16+'BP Financier'!$C$19+'BP Financier'!$C$22))*$V141*X141/(1-$W141)","v":{"v":9627.477959999696,"d":"9,627"}},{"$f":"'BP Financier'!$C$44*('BP Financier'!$C$16/('BP Financier'!$C$16+'BP Financier'!$C$19+'BP Financier'!$C$22))*$V141*Y141/(1-$W141)","v":{"v":6436.048801988746,"d":"6,436"}},{"$f":"'BP Financier'!$C$44*('BP Financier'!$C$16/('BP Financier'!$C$16+'BP Financier'!$C$19+'BP Financier'!$C$22))*$V141*Z141/(1-$W141)","v":{"v":50371.39021060615,"d":"50,371"}},{"$f":"'BP Financier'!$C$44*('BP Financier'!$C$16/('BP Financier'!$C$16+'BP Financier'!$C$19+'BP Financier'!$C$22))*$V141*AA141/(1-$W141)","v":{"v":6223.286858121351,"d":"6,223"}},{"$f":"'BP Financier'!$C$44*('BP Financier'!$C$16/('BP Financier'!$C$16+'BP Financier'!$C$19+'BP Financier'!$C$22))*$V141*AB141/(1-$W141)","v":{"v":2978.667214143552,"d":"2,979"}},null,{"v":0.0025,"d":"0.25%"},{"$f":"Actif!$E$28/100","v":{"v":0.28900000000000003,"d":"28.90%"}},{"$f":"Actif!$E$30/100","v":{"v":0.09050000000000001,"d":"9.05%"}},{"$f":"Actif!$E$31/100","v":{"v":0.0605,"d":"6.05%"}},{"$f":"Actif!$E$32/100","v":{"v":0.47350000000000003,"d":"47.35%"}},{"$f":"Actif!$E$33/100","v":{"v":0.0585,"d":"5.85%"}},{"$f":"Actif!$E$29/100","v":{"v":0.027999999999999997,"d":"2.80%"}}]
[null,"#53",90,2026,"H","A_VIE",{"v":0.44999999999999996,"d":"0.45"},{"v":0.38999999999999996,"d":"0.39"},0.6,0.6,85,0,{"$f":"ROUND(Primes!$M$4*V142,0)","v":8},{"$f":"'BP Financier'!$C$33*('BP Financier'!$C$16/('BP Financier'!$C$16+'BP Financier'!$C$19))*V142","v":{"v":137727.8101016648,"d":"137,728"}},{"v":75636.87104485951,"d":"75,637"},{"$f":"'BP Financier'!$C$44*('BP Financier'!$C$16/('BP Financier'!$C$16+'BP Financier'!$C$19+'BP Financier'!$C$22))*$V142*X142/(1-$W142)","v":{"v":9627.477959999696,"d":"9,627"}},{"$f":"'BP Financier'!$C$44*('BP Financier'!$C$16/('BP Financier'!$C$16+'BP Financier'!$C$19+'BP Financier'!$C$22))*$V142*Y142/(1-$W142)","v":{"v":6436.048801988746,"d":"6,436"}},{"$f":"'BP Financier'!$C$44*('BP Financier'!$C$16/('BP Financier'!$C$16+'BP Financier'!$C$19+'BP Financier'!$C$22))*$V142*Z142/(1-$W142)","v":{"v":50371.39021060615,"d":"50,371"}},{"$f":"'BP Financier'!$C$44*('BP Financier'!$C$16/('BP Financier'!$C$16+'BP Financier'!$C$19+'BP Financier'!$C$22))*$V142*AA142/(1-$W142)","v":{"v":6223.286858121351,"d":"6,223"}},{"$f":"'BP Financier'!$C$44*('BP Financier'!$C$16/('BP Financier'!$C$16+'BP Financier'!$C$19+'BP Financier'!$C$22))*$V142*AB142/(1-$W142)","v":{"v":2978.667214143552,"d":"2,979"}},null,{"v":0.0025,"d":"0.25%"},{"$f":"Actif!$E$28/100","v":{"v":0.28900000000000003,"d":"28.90%"}},{"$f":"Actif!$E$30/100","v":{"v":0.09050000000000001,"d":"9.05%"}},{"$f":"Actif!$E$31/100","v":{"v":0.0605,"d":"6.05%"}},{"$f":"Actif!$E$32/100","v":{"v":0.47350000000000003,"d":"47.35%"}},{"$f":"Actif!$E$33/100","v":{"v":0.0585,"d":"5.85%"}},{"$f":"Actif!$E$29/100","v":{"v":0.027999999999999997,"d":"2.80%"}}]
[null,"#54",18,2026,"H","A_CAPI",{"v":0.44999999999999996,"d":"0.45"},{"v":0.38999999999999996,"d":"0.39"},0.6,0.6,85,0,{"$f":"ROUND(Primes!$M$10*V143,2)","v":0.05},0,701.2690030649227,{"$f":"'BP Financier'!$C$44*('BP Financier'!$C$22/('BP Financier'!$C$16+'BP Financier'!$C$19+'BP Financier'!$C$22))*$V143*X143/(1-$W143)","v":89.26138505959985},{"$f":"'BP Financier'!$C$44*('BP Financier'!$C$22/('BP Financier'!$C$16+'BP Financier'!$C$19+'BP Financier'!$C$22))*$V143*Y143/(1-$W143)","v":59.671975647577796},{"$f":"'BP Financier'!$C$44*('BP Financier'!$C$22/('BP Financier'!$C$16+'BP Financier'!$C$19+'BP Financier'!$C$22))*$V143*Z143/(1-$W143)","v":467.0195118864147},{"$f":"'BP Financier'!$C$44*('BP Financier'!$C$22/('BP Financier'!$C$16+'BP Financier'!$C$19+'BP Financier'!$C$22))*$V143*AA143/(1-$W143)","v":57.69934835344299},{"$f":"'BP Financier'!$C$44*('BP Financier'!$C$22/('BP Financier'!$C$16+'BP Financier'!$C$19+'BP Financier'!$C$22))*$V143*AB143/(1-$W143)","v":27.616782117887237},null,{"v":0.005,"d":"0.50%"},{"$f":"Actif!$E$28/100","v":{"v":0.28900000000000003,"d":"28.90%"}},{"$f":"Actif!$E$30/100","v":{"v":0.09050000000000001,"d":"9.05%"}},{"$f":"Actif!$E$31/100","v":{"v":0.0605,"d":"6.05%"}},{"$f":"Actif!$E$32/100","v":{"v":0.47350000000000003,"d":"47.35%"}},{"$f":"Actif!$E$33/100","v":{"v":0.0585,"d":"5.85%"}},{"$f":"Actif!$E$29/100","v":{"v":0.027999999999999997,"d":"2.80%"}}]
[null,"#55",19,2026,"H","A_CAPI",{"v":0.44999999999999996,"d":"0.45"},{"v":0.38999999999999996,"d":"0.39"},0.6,0.6,85,0,{"$f":"ROUND(Primes!$M$10*V144,2)","v":0.05},0,701.2690030649227,{"$f":"'BP Financier'!$C$44*('BP Financier'!$C$22/('BP Financier'!$C$16+'BP Financier'!$C$19+'BP Financier'!$C$22))*$V144*X144/(1-$W144)","v":89.26138505959985},{"$f":"'BP Financier'!$C$44*('BP Financier'!$C$22/('BP Financier'!$C$16+'BP Financier'!$C$19+'BP Financier'!$C$22))*$V144*Y144/(1-$W144)","v":59.671975647577796},{"$f":"'BP Financier'!$C$44*('BP Financier'!$C$22/('BP Financier'!$C$16+'BP Financier'!$C$19+'BP Financier'!$C$22))*$V144*Z144/(1-$W144)","v":467.0195118864147},{"$f":"'BP Financier'!$C$44*('BP Financier'!$C$22/('BP Financier'!$C$16+'BP Financier'!$C$19+'BP Financier'!$C$22))*$V144*AA144/(1-$W144)","v":57.69934835344299},{"$f":"'BP Financier'!$C$44*('BP Financier'!$C$22/('BP Financier'!$C$16+'BP Financier'!$C$19+'BP Financier'!$C$22))*$V144*AB144/(1-$W144)","v":27.616782117887237},null,{"v":0.005,"d":"0.50%"},{"$f":"Actif!$E$28/100","v":{"v":0.28900000000000003,"d":"28.90%"}},{"$f":"Actif!$E$30/100","v":{"v":0.09050000000000001,"d":"9.05%"}},{"$f":"Actif!$E$31/100","v":{"v":0.0605,"d":"6.05%"}},{"$f":"Actif!$E$32/100","v":{"v":0.47350000000000003,"d":"47.35%"}},{"$f":"Actif!$E$33/100","v":{"v":0.0585,"d":"5.85%"}},{"$f":"Actif!$E$29/100","v":{"v":0.027999999999999997,"d":"2.80%"}}]
[null,"#56",20,2026,"F","A_CAPI",{"v":0.44999999999999996,"d":"0.45"},{"v":0.38999999999999996,"d":"0.39"},0.6,0.6,85,0,{"$f":"ROUND(Primes!$M$10*V145,2)","v":{"v":0.1,"d":"0.10"}},0,1402.5380061298454,{"$f":"'BP Financier'!$C$44*('BP Financier'!$C$22/('BP Financier'!$C$16+'BP Financier'!$C$19+'BP Financier'!$C$22))*$V145*X145/(1-$W145)","v":178.5227701191997},{"$f":"'BP Financier'!$C$44*('BP Financier'!$C$22/('BP Financier'!$C$16+'BP Financier'!$C$19+'BP Financier'!$C$22))*$V145*Y145/(1-$W145)","v":119.34395129515559},{"$f":"'BP Financier'!$C$44*('BP Financier'!$C$22/('BP Financier'!$C$16+'BP Financier'!$C$19+'BP Financier'!$C$22))*$V145*Z145/(1-$W145)","v":934.0390237728294},{"$f":"'BP Financier'!$C$44*('BP Financier'!$C$22/('BP Financier'!$C$16+'BP Financier'!$C$19+'BP Financier'!$C$22))*$V145*AA145/(1-$W145)","v":115.39869670688599},{"$f":"'BP Financier'!$C$44*('BP Financier'!$C$22/('BP Financier'!$C$16+'BP Financier'!$C$19+'BP Financier'!$C$22))*$V145*AB145/(1-$W145)","v":55.23356423577447},null,{"v":0.01,"d":"1.00%"},{"$f":"Actif!$E$28/100","v":{"v":0.28900000000000003,"d":"28.90%"}},{"$f":"Actif!$E$30/100","v":{"v":0.09050000000000001,"d":"9.05%"}},{"$f":"Actif!$E$31/100","v":{"v":0.0605,"d":"6.05%"}},{"$f":"Actif!$E$32/100","v":{"v":0.47350000000000003,"d":"47.35%"}},{"$f":"Actif!$E$33/100","v":{"v":0.0585,"d":"5.85%"}},{"$f":"Actif!$E$29/100","v":{"v":0.027999999999999997,"d":"2.80%"}}]
[null,"#57",21,2026,"H","A_CAPI",{"v":0.44999999999999996,"d":"0.45"},{"v":0.38999999999999996,"d":"0.39"},0.6,0.6,85,0,{"$f":"ROUND(Primes!$M$10*V146,2)","v":{"v":0.1,"d":"0.10"}},0,1402.5380061298454,{"$f":"'BP Financier'!$C$44*('BP Financier'!$C$22/('BP Financier'!$C$16+'BP Financier'!$C$19+'BP Financier'!$C$22))*$V146*X146/(1-$W146)","v":178.5227701191997},{"$f":"'BP Financier'!$C$44*('BP Financier'!$C$22/('BP Financier'!$C$16+'BP Financier'!$C$19+'BP Financier'!$C$22))*$V146*Y146/(1-$W146)","v":119.34395129515559},{"$f":"'BP Financier'!$C$44*('BP Financier'!$C$22/('BP Financier'!$C$16+'BP Financier'!$C$19+'BP Financier'!$C$22))*$V146*Z146/(1-$W146)","v":934.0390237728294},{"$f":"'BP Financier'!$C$44*('BP Financier'!$C$22/('BP Financier'!$C$16+'BP Financier'!$C$19+'BP Financier'!$C$22))*$V146*AA146/(1-$W146)","v":115.39869670688599},{"$f":"'BP Financier'!$C$44*('BP Financier'!$C$22/('BP Financier'!$C$16+'BP Financier'!$C$19+'BP Financier'!$C$22))*$V146*AB146/(1-$W146)","v":55.23356423577447},null,{"v":0.01,"d":"1.00%"},{"$f":"Actif!$E$28/100","v":{"v":0.28900000000000003,"d":"28.90%"}},{"$f":"Actif!$E$30/100","v":{"v":0.09050000000000001,"d":"9.05%"}},{"$f":"Actif!$E$31/100","v":{"v":0.0605,"d":"6.05%"}},{"$f":"Actif!$E$32/100","v":{"v":0.47350000000000003,"d":"47.35%"}},{"$f":"Actif!$E$33/100","v":{"v":0.0585,"d":"5.85%"}},{"$f":"Actif!$E$29/100","v":{"v":0.027999999999999997,"d":"2.80%"}}]
[null,"#58",22,2026,"H","A_CAPI",{"v":0.44999999999999996,"d":"0.45"},{"v":0.38999999999999996,"d":"0.39"},0.6,0.6,85,0,{"$f":"ROUND(Primes!$M$10*V147,2)","v":{"v":0.1,"d":"0.10"}},0,1402.5380061298454,{"$f":"'BP Financier'!$C$44*('BP Financier'!$C$22/('BP Financier'!$C$16+'BP Financier'!$C$19+'BP Financier'!$C$22))*$V147*X147/(1-$W147)","v":178.5227701191997},{"$f":"'BP Financier'!$C$44*('BP Financier'!$C$22/('BP Financier'!$C$16+'BP Financier'!$C$19+'BP Financier'!$C$22))*$V147*Y147/(1-$W147)","v":119.34395129515559},{"$f":"'BP Financier'!$C$44*('BP Financier'!$C$22/('BP Financier'!$C$16+'BP Financier'!$C$19+'BP Financier'!$C$22))*$V147*Z147/(1-$W147)","v":934.0390237728294},{"$f":"'BP Financier'!$C$44*('BP Financier'!$C$22/('BP Financier'!$C$16+'BP Financier'!$C$19+'BP Financier'!$C$22))*$V147*AA147/(1-$W147)","v":115.39869670688599},{"$f":"'BP Financier'!$C$44*('BP Financier'!$C$22/('BP Financier'!$C$16+'BP Financier'!$C$19+'BP Financier'!$C$22))*$V147*AB147/(1-$W147)","v":55.23356423577447},null,{"v":0.01,"d":"1.00%"},{"$f":"Actif!$E$28/100","v":{"v":0.28900000000000003,"d":"28.90%"}},{"$f":"Actif!$E$30/100","v":{"v":0.09050000000000001,"d":"9.05%"}},{"$f":"Actif!$E$31/100","v":{"v":0.0605,"d":"6.05%"}},{"$f":"Actif!$E$32/100","v":{"v":0.47350000000000003,"d":"47.35%"}},{"$f":"Actif!$E$33/100","v":{"v":0.0585,"d":"5.85%"}},{"$f":"Actif!$E$29/100","v":{"v":0.027999999999999997,"d":"2.80%"}}]
[null,"#59",23,2026,"F","A_CAPI",{"v":0.44999999999999996,"d":"0.45"},{"v":0.38999999999999996,"d":"0.39"},0.6,0.6,85,0,{"$f":"ROUND(Primes!$M$10*V148,2)","v":{"v":0.1,"d":"0.10"}},0,1402.5380061298454,{"$f":"'BP Financier'!$C$44*('BP Financier'!$C$22/('BP Financier'!$C$16+'BP Financier'!$C$19+'BP Financier'!$C$22))*$V148*X148/(1-$W148)","v":178.5227701191997},{"$f":"'BP Financier'!$C$44*('BP Financier'!$C$22/('BP Financier'!$C$16+'BP Financier'!$C$19+'BP Financier'!$C$22))*$V148*Y148/(1-$W148)","v":119.34395129515559},{"$f":"'BP Financier'!$C$44*('BP Financier'!$C$22/('BP Financier'!$C$16+'BP Financier'!$C$19+'BP Financier'!$C$22))*$V148*Z148/(1-$W148)","v":934.0390237728294},{"$f":"'BP Financier'!$C$44*('BP Financier'!$C$22/('BP Financier'!$C$16+'BP Financier'!$C$19+'BP Financier'!$C$22))*$V148*AA148/(1-$W148)","v":115.39869670688599},{"$f":"'BP Financier'!$C$44*('BP Financier'!$C$22/('BP Financier'!$C$16+'BP Financier'!$C$19+'BP Financier'!$C$22))*$V148*AB148/(1-$W148)","v":55.23356423577447},null,{"v":0.01,"d":"1.00%"},{"$f":"Actif!$E$28/100","v":{"v":0.28900000000000003,"d":"28.90%"}},{"$f":"Actif!$E$30/100","v":{"v":0.09050000000000001,"d":"9.05%"}},{"$f":"Actif!$E$31/100","v":{"v":0.0605,"d":"6.05%"}},{"$f":"Actif!$E$32/100","v":{"v":0.47350000000000003,"d":"47.35%"}},{"$f":"Actif!$E$33/100","v":{"v":0.0585,"d":"5.85%"}},{"$f":"Actif!$E$29/100","v":{"v":0.027999999999999997,"d":"2.80%"}}]
[null,"#60",24,2026,"H","A_CAPI",{"v":0.44999999999999996,"d":"0.45"},{"v":0.38999999999999996,"d":"0.39"},0.6,0.6,85,0,{"$f":"ROUND(Primes!$M$10*V149,2)","v":{"v":0.1,"d":"0.10"}},0,1402.5380061298454,{"$f":"'BP Financier'!$C$44*('BP Financier'!$C$22/('BP Financier'!$C$16+'BP Financier'!$C$19+'BP Financier'!$C$22))*$V149*X149/(1-$W149)","v":178.5227701191997},{"$f":"'BP Financier'!$C$44*('BP Financier'!$C$22/('BP Financier'!$C$16+'BP Financier'!$C$19+'BP Financier'!$C$22))*$V149*Y149/(1-$W149)","v":119.34395129515559},{"$f":"'BP Financier'!$C$44*('BP Financier'!$C$22/('BP Financier'!$C$16+'BP Financier'!$C$19+'BP Financier'!$C$22))*$V149*Z149/(1-$W149)","v":934.0390237728294},{"$f":"'BP Financier'!$C$44*('BP Financier'!$C$22/('BP Financier'!$C$16+'BP Financier'!$C$19+'BP Financier'!$C$22))*$V149*AA149/(1-$W149)","v":115.39869670688599},{"$f":"'BP Financier'!$C$44*('BP Financier'!$C$22/('BP Financier'!$C$16+'BP Financier'!$C$19+'BP Financier'!$C$22))*$V149*AB149/(1-$W149)","v":55.23356423577447},null,{"v":0.01,"d":"1.00%"},{"$f":"Actif!$E$28/100","v":{"v":0.28900000000000003,"d":"28.90%"}},{"$f":"Actif!$E$30/100","v":{"v":0.09050000000000001,"d":"9.05%"}},{"$f":"Actif!$E$31/100","v":{"v":0.0605,"d":"6.05%"}},{"$f":"Actif!$E$32/100","v":{"v":0.47350000000000003,"d":"47.35%"}},{"$f":"Actif!$E$33/100","v":{"v":0.0585,"d":"5.85%"}},{"$f":"Actif!$E$29/100","v":{"v":0.027999999999999997,"d":"2.80%"}}]
[null,"#61",25,2026,"H","A_CAPI",{"v":0.44999999999999996,"d":"0.45"},{"v":0.38999999999999996,"d":"0.39"},0.6,0.6,85,0,{"$f":"ROUND(Primes!$M$10*V150,2)","v":{"v":0.5,"d":"0.50"}},0,7012.690030649225,{"$f":"'BP Financier'!$C$44*('BP Financier'!$C$22/('BP Financier'!$C$16+'BP Financier'!$C$19+'BP Financier'!$C$22))*$V150*X150/(1-$W150)","v":892.6138505959985},{"$f":"'BP Financier'!$C$44*('BP Financier'!$C$22/('BP Financier'!$C$16+'BP Financier'!$C$19+'BP Financier'!$C$22))*$V150*Y150/(1-$W150)","v":596.7197564757779},{"$f":"'BP Financier'!$C$44*('BP Financier'!$C$22/('BP Financier'!$C$16+'BP Financier'!$C$19+'BP Financier'!$C$22))*$V150*Z150/(1-$W150)","v":4670.195118864147},{"$f":"'BP Financier'!$C$44*('BP Financier'!$C$22/('BP Financier'!$C$16+'BP Financier'!$C$19+'BP Financier'!$C$22))*$V150*AA150/(1-$W150)","v":576.9934835344299},{"$f":"'BP Financier'!$C$44*('BP Financier'!$C$22/('BP Financier'!$C$16+'BP Financier'!$C$19+'BP Financier'!$C$22))*$V150*AB150/(1-$W150)","v":276.1678211788724},null,{"v":0.05,"d":"5.00%"},{"$f":"Actif!$E$28/100","v":{"v":0.28900000000000003,"d":"28.90%"}},{"$f":"Actif!$E$30/100","v":{"v":0.09050000000000001,"d":"9.05%"}},{"$f":"Actif!$E$31/100","v":{"v":0.0605,"d":"6.05%"}},{"$f":"Actif!$E$32/100","v":{"v":0.47350000000000003,"d":"47.35%"}},{"$f":"Actif!$E$33/100","v":{"v":0.0585,"d":"5.85%"}},{"$f":"Actif!$E$29/100","v":{"v":0.027999999999999997,"d":"2.80%"}}]
[null,"#62",26,2026,"F","A_CAPI",{"v":0.44999999999999996,"d":"0.45"},{"v":0.38999999999999996,"d":"0.39"},0.6,0.6,85,0,{"$f":"ROUND(Primes!$M$10*V151,2)","v":{"v":0.3,"d":"0.30"}},0,4207.614018389534,{"$f":"'BP Financier'!$C$44*('BP Financier'!$C$22/('BP Financier'!$C$16+'BP Financier'!$C$19+'BP Financier'!$C$22))*$V151*X151/(1-$W151)","v":535.568310357599},{"$f":"'BP Financier'!$C$44*('BP Financier'!$C$22/('BP Financier'!$C$16+'BP Financier'!$C$19+'BP Financier'!$C$22))*$V151*Y151/(1-$W151)","v":358.0318538854667},{"$f":"'BP Financier'!$C$44*('BP Financier'!$C$22/('BP Financier'!$C$16+'BP Financier'!$C$19+'BP Financier'!$C$22))*$V151*Z151/(1-$W151)","v":2802.1170713184874},{"$f":"'BP Financier'!$C$44*('BP Financier'!$C$22/('BP Financier'!$C$16+'BP Financier'!$C$19+'BP Financier'!$C$22))*$V151*AA151/(1-$W151)","v":346.1960901206579},{"$f":"'BP Financier'!$C$44*('BP Financier'!$C$22/('BP Financier'!$C$16+'BP Financier'!$C$19+'BP Financier'!$C$22))*$V151*AB151/(1-$W151)","v":165.7006927073234},null,{"v":0.03,"d":"3.00%"},{"$f":"Actif!$E$28/100","v":{"v":0.28900000000000003,"d":"28.90%"}},{"$f":"Actif!$E$30/100","v":{"v":0.09050000000000001,"d":"9.05%"}},{"$f":"Actif!$E$31/100","v":{"v":0.0605,"d":"6.05%"}},{"$f":"Actif!$E$32/100","v":{"v":0.47350000000000003,"d":"47.35%"}},{"$f":"Actif!$E$33/100","v":{"v":0.0585,"d":"5.85%"}},{"$f":"Actif!$E$29/100","v":{"v":0.027999999999999997,"d":"2.80%"}}]
[null,"#63",27,2026,"H","A_CAPI",{"v":0.44999999999999996,"d":"0.45"},{"v":0.38999999999999996,"d":"0.39"},0.6,0.6,85,0,{"$f":"ROUND(Primes!$M$10*V152,2)","v":{"v":0.3,"d":"0.30"}},0,4207.614018389534,{"$f":"'BP Financier'!$C$44*('BP Financier'!$C$22/('BP Financier'!$C$16+'BP Financier'!$C$19+'BP Financier'!$C$22))*$V152*X152/(1-$W152)","v":535.568310357599},{"$f":"'BP Financier'!$C$44*('BP Financier'!$C$22/('BP Financier'!$C$16+'BP Financier'!$C$19+'BP Financier'!$C$22))*$V152*Y152/(1-$W152)","v":358.0318538854667},{"$f":"'BP Financier'!$C$44*('BP Financier'!$C$22/('BP Financier'!$C$16+'BP Financier'!$C$19+'BP Financier'!$C$22))*$V152*Z152/(1-$W152)","v":2802.1170713184874},{"$f":"'BP Financier'!$C$44*('BP Financier'!$C$22/('BP Financier'!$C$16+'BP Financier'!$C$19+'BP Financier'!$C$22))*$V152*AA152/(1-$W152)","v":346.1960901206579},{"$f":"'BP Financier'!$C$44*('BP Financier'!$C$22/('BP Financier'!$C$16+'BP Financier'!$C$19+'BP Financier'!$C$22))*$V152*AB152/(1-$W152)","v":165.7006927073234},null,{"v":0.03,"d":"3.00%"},{"$f":"Actif!$E$28/100","v":{"v":0.28900000000000003,"d":"28.90%"}},{"$f":"Actif!$E$30/100","v":{"v":0.09050000000000001,"d":"9.05%"}},{"$f":"Actif!$E$31/100","v":{"v":0.0605,"d":"6.05%"}},{"$f":"Actif!$E$32/100","v":{"v":0.47350000000000003,"d":"47.35%"}},{"$f":"Actif!$E$33/100","v":{"v":0.0585,"d":"5.85%"}},{"$f":"Actif!$E$29/100","v":{"v":0.027999999999999997,"d":"2.80%"}}]
[null,"#64",28,2026,"H","A_CAPI",{"v":0.44999999999999996,"d":"0.45"},{"v":0.38999999999999996,"d":"0.39"},0.6,0.6,85,0,{"$f":"ROUND(Primes!$M$10*V153,2)","v":{"v":0.3,"d":"0.30"}},0,4207.614018389534,{"$f":"'BP Financier'!$C$44*('BP Financier'!$C$22/('BP Financier'!$C$16+'BP Financier'!$C$19+'BP Financier'!$C$22))*$V153*X153/(1-$W153)","v":535.568310357599},{"$f":"'BP Financier'!$C$44*('BP Financier'!$C$22/('BP Financier'!$C$16+'BP Financier'!$C$19+'BP Financier'!$C$22))*$V153*Y153/(1-$W153)","v":358.0318538854667},{"$f":"'BP Financier'!$C$44*('BP Financier'!$C$22/('BP Financier'!$C$16+'BP Financier'!$C$19+'BP Financier'!$C$22))*$V153*Z153/(1-$W153)","v":2802.1170713184874},{"$f":"'BP Financier'!$C$44*('BP Financier'!$C$22/('BP Financier'!$C$16+'BP Financier'!$C$19+'BP Financier'!$C$22))*$V153*AA153/(1-$W153)","v":346.1960901206579},{"$f":"'BP Financier'!$C$44*('BP Financier'!$C$22/('BP Financier'!$C$16+'BP Financier'!$C$19+'BP Financier'!$C$22))*$V153*AB153/(1-$W153)","v":165.7006927073234},null,{"v":0.03,"d":"3.00%"},{"$f":"Actif!$E$28/100","v":{"v":0.28900000000000003,"d":"28.90%"}},{"$f":"Actif!$E$30/100","v":{"v":0.09050000000000001,"d":"9.05%"}},{"$f":"Actif!$E$31/100","v":{"v":0.0605,"d":"6.05%"}},{"$f":"Actif!$E$32/100","v":{"v":0.47350000000000003,"d":"47.35%"}},{"$f":"Actif!$E$33/100","v":{"v":0.0585,"d":"5.85%"}},{"$f":"Actif!$E$29/100","v":{"v":0.027999999999999997,"d":"2.80%"}}]
[null,"#65",29,2026,"F","A_CAPI",{"$f":"frais_gestion_Euro*100","v":{"v":0.44999999999999996,"d":"0.45"}},{"$f":"frais_gestion_UC*100","v":{"v":0.38999999999999996,"d":"0.39"}},{"$f":"frais_distribution_FG*100","v":0.6},{"$f":"frais_distribution_UC*100","v":0.6},85,0,{"$f":"ROUND(Primes!$M$10*V154,2)","v":{"v":0.3,"d":"0.30"}},0,4207.614018389534,{"$f":"'BP Financier'!$C$44*('BP Financier'!$C$22/('BP Financier'!$C$16+'BP Financier'!$C$19+'BP Financier'!$C$22))*$V154*X154/(1-$W154)","v":535.568310357599},{"$f":"'BP Financier'!$C$44*('BP Financier'!$C$22/('BP Financier'!$C$16+'BP Financier'!$C$19+'BP Financier'!$C$22))*$V154*Y154/(1-$W154)","v":358.0318538854667},{"$f":"'BP Financier'!$C$44*('BP Financier'!$C$22/('BP Financier'!$C$16+'BP Financier'!$C$19+'BP Financier'!$C$22))*$V154*Z154/(1-$W154)","v":2802.1170713184874},{"$f":"'BP Financier'!$C$44*('BP Financier'!$C$22/('BP Financier'!$C$16+'BP Financier'!$C$19+'BP Financier'!$C$22))*$V154*AA154/(1-$W154)","v":346.1960901206579},{"$f":"'BP Financier'!$C$44*('BP Financier'!$C$22/('BP Financier'!$C$16+'BP Financier'!$C$19+'BP Financier'!$C$22))*$V154*AB154/(1-$W154)","v":165.7006927073234},null,{"v":0.03,"d":"3.00%"},{"$f":"Actif!$E$28/100","v":{"v":0.28900000000000003,"d":"28.90%"}},{"$f":"Actif!$E$30/100","v":{"v":0.09050000000000001,"d":"9.05%"}},{"$f":"Actif!$E$31/100","v":{"v":0.0605,"d":"6.05%"}},{"$f":"Actif!$E$32/100","v":{"v":0.47350000000000003,"d":"47.35%"}},{"$f":"Actif!$E$33/100","v":{"v":0.0585,"d":"5.85%"}},{"$f":"Actif!$E$29/100","v":{"v":0.027999999999999997,"d":"2.80%"}}]
[null,"#66",30,2026,"H","A_CAPI",{"v":0.44999999999999996,"d":"0.45"},{"v":0.38999999999999996,"d":"0.39"},0.6,0.6,85,0,{"$f":"ROUND(Primes!$M$10*V155,2)","v":{"v":0.3,"d":"0.30"}},0,{"$f":"SUM(P155:T155)","v":4207.614018389534},{"$f":"'BP Financier'!$C$44*('BP Financier'!$C$22/('BP Financier'!$C$16+'BP Financier'!$C$19+'BP Financier'!$C$22))*$V155*X155/(1-$W155)","v":535.568310357599},{"$f":"'BP Financier'!$C$44*('BP Financier'!$C$22/('BP Financier'!$C$16+'BP Financier'!$C$19+'BP Financier'!$C$22))*$V155*Y155/(1-$W155)","v":358.0318538854667},{"$f":"'BP Financier'!$C$44*('BP Financier'!$C$22/('BP Financier'!$C$16+'BP Financier'!$C$19+'BP Financier'!$C$22))*$V155*Z155/(1-$W155)","v":2802.1170713184874},{"$f":"'BP Financier'!$C$44*('BP Financier'!$C$22/('BP Financier'!$C$16+'BP Financier'!$C$19+'BP Financier'!$C$22))*$V155*AA155/(1-$W155)","v":346.1960901206579},{"$f":"'BP Financier'!$C$44*('BP Financier'!$C$22/('BP Financier'!$C$16+'BP Financier'!$C$19+'BP Financier'!$C$22))*$V155*AB155/(1-$W155)","v":165.7006927073234},null,{"v":0.03,"d":"3.00%"},{"$f":"Actif!$E$28/100","v":{"v":0.28900000000000003,"d":"28.90%"}},{"$f":"Actif!$E$30/100","v":{"v":0.09050000000000001,"d":"9.05%"}},{"$f":"Actif!$E$31/100","v":{"v":0.0605,"d":"6.05%"}},{"$f":"Actif!$E$32/100","v":{"v":0.47350000000000003,"d":"47.35%"}},{"$f":"Actif!$E$33/100","v":{"v":0.0585,"d":"5.85%"}},{"$f":"Actif!$E$29/100","v":{"v":0.027999999999999997,"d":"2.80%"}}]
[null,"#67",31,2026,"H","A_CAPI",{"v":0.44999999999999996,"d":"0.45"},{"v":0.38999999999999996,"d":"0.39"},0.6,0.6,85,0,{"$f":"ROUND(Primes!$M$10*V156,2)","v":{"v":0.3,"d":"0.30"}},0,4207.614018389534,{"$f":"'BP Financier'!$C$44*('BP Financier'!$C$22/('BP Financier'!$C$16+'BP Financier'!$C$19+'BP Financier'!$C$22))*$V156*X156/(1-$W156)","v":535.568310357599},{"$f":"'BP Financier'!$C$44*('BP Financier'!$C$22/('BP Financier'!$C$16+'BP Financier'!$C$19+'BP Financier'!$C$22))*$V156*Y156/(1-$W156)","v":358.0318538854667},{"$f":"'BP Financier'!$C$44*('BP Financier'!$C$22/('BP Financier'!$C$16+'BP Financier'!$C$19+'BP Financier'!$C$22))*$V156*Z156/(1-$W156)","v":2802.1170713184874},{"$f":"'BP Financier'!$C$44*('BP Financier'!$C$22/('BP Financier'!$C$16+'BP Financier'!$C$19+'BP Financier'!$C$22))*$V156*AA156/(1-$W156)","v":346.1960901206579},{"$f":"'BP Financier'!$C$44*('BP Financier'!$C$22/('BP Financier'!$C$16+'BP Financier'!$C$19+'BP Financier'!$C$22))*$V156*AB156/(1-$W156)","v":165.7006927073234},null,{"v":0.03,"d":"3.00%"},{"$f":"Actif!$E$28/100","v":{"v":0.28900000000000003,"d":"28.90%"}},{"$f":"Actif!$E$30/100","v":{"v":0.09050000000000001,"d":"9.05%"}},{"$f":"Actif!$E$31/100","v":{"v":0.0605,"d":"6.05%"}},{"$f":"Actif!$E$32/100","v":{"v":0.47350000000000003,"d":"47.35%"}},{"$f":"Actif!$E$33/100","v":{"v":0.0585,"d":"5.85%"}},{"$f":"Actif!$E$29/100","v":{"v":0.027999999999999997,"d":"2.80%"}}]
[null,"#68",32,2026,"F","A_CAPI",{"v":0.44999999999999996,"d":"0.45"},{"v":0.38999999999999996,"d":"0.39"},0.6,0.6,85,0,{"$f":"ROUND(Primes!$M$10*V157,2)","v":{"v":0.3,"d":"0.30"}},0,4207.614018389534,{"$f":"'BP Financier'!$C$44*('BP Financier'!$C$22/('BP Financier'!$C$16+'BP Financier'!$C$19+'BP Financier'!$C$22))*$V157*X157/(1-$W157)","v":535.568310357599},{"$f":"'BP Financier'!$C$44*('BP Financier'!$C$22/('BP Financier'!$C$16+'BP Financier'!$C$19+'BP Financier'!$C$22))*$V157*Y157/(1-$W157)","v":358.0318538854667},{"$f":"'BP Financier'!$C$44*('BP Financier'!$C$22/('BP Financier'!$C$16+'BP Financier'!$C$19+'BP Financier'!$C$22))*$V157*Z157/(1-$W157)","v":2802.1170713184874},{"$f":"'BP Financier'!$C$44*('BP Financier'!$C$22/('BP Financier'!$C$16+'BP Financier'!$C$19+'BP Financier'!$C$22))*$V157*AA157/(1-$W157)","v":346.1960901206579},{"$f":"'BP Financier'!$C$44*('BP Financier'!$C$22/('BP Financier'!$C$16+'BP Financier'!$C$19+'BP Financier'!$C$22))*$V157*AB157/(1-$W157)","v":165.7006927073234},null,{"v":0.03,"d":"3.00%"},{"$f":"Actif!$E$28/100","v":{"v":0.28900000000000003,"d":"28.90%"}},{"$f":"Actif!$E$30/100","v":{"v":0.09050000000000001,"d":"9.05%"}},{"$f":"Actif!$E$31/100","v":{"v":0.0605,"d":"6.05%"}},{"$f":"Actif!$E$32/100","v":{"v":0.47350000000000003,"d":"47.35%"}},{"$f":"Actif!$E$33/100","v":{"v":0.0585,"d":"5.85%"}},{"$f":"Actif!$E$29/100","v":{"v":0.027999999999999997,"d":"2.80%"}}]
[null,"#69",33,2026,"H","A_CAPI",{"v":0.44999999999999996,"d":"0.45"},{"v":0.38999999999999996,"d":"0.39"},0.6,0.6,85,0,{"$f":"ROUND(Primes!$M$10*V158,2)","v":{"v":0.3,"d":"0.30"}},0,4207.614018389534,{"$f":"'BP Financier'!$C$44*('BP Financier'!$C$22/('BP Financier'!$C$16+'BP Financier'!$C$19+'BP Financier'!$C$22))*$V158*X158/(1-$W158)","v":535.568310357599},{"$f":"'BP Financier'!$C$44*('BP Financier'!$C$22/('BP Financier'!$C$16+'BP Financier'!$C$19+'BP Financier'!$C$22))*$V158*Y158/(1-$W158)","v":358.0318538854667},{"$f":"'BP Financier'!$C$44*('BP Financier'!$C$22/('BP Financier'!$C$16+'BP Financier'!$C$19+'BP Financier'!$C$22))*$V158*Z158/(1-$W158)","v":2802.1170713184874},{"$f":"'BP Financier'!$C$44*('BP Financier'!$C$22/('BP Financier'!$C$16+'BP Financier'!$C$19+'BP Financier'!$C$22))*$V158*AA158/(1-$W158)","v":346.1960901206579},{"$f":"'BP Financier'!$C$44*('BP Financier'!$C$22/('BP Financier'!$C$16+'BP Financier'!$C$19+'BP Financier'!$C$22))*$V158*AB158/(1-$W158)","v":165.7006927073234},null,{"v":0.03,"d":"3.00%"},{"$f":"Actif!$E$28/100","v":{"v":0.28900000000000003,"d":"28.90%"}},{"$f":"Actif!$E$30/100","v":{"v":0.09050000000000001,"d":"9.05%"}},{"$f":"Actif!$E$31/100","v":{"v":0.0605,"d":"6.05%"}},{"$f":"Actif!$E$32/100","v":{"v":0.47350000000000003,"d":"47.35%"}},{"$f":"Actif!$E$33/100","v":{"v":0.0585,"d":"5.85%"}},{"$f":"Actif!$E$29/100","v":{"v":0.027999999999999997,"d":"2.80%"}}]
[null,"#70",34,2026,"H","A_CAPI",{"v":0.44999999999999996,"d":"0.45"},{"v":0.38999999999999996,"d":"0.39"},0.6,0.6,85,0,{"$f":"ROUND(Primes!$M$10*V159,2)","v":{"v":0.3,"d":"0.30"}},0,4207.614018389534,{"$f":"'BP Financier'!$C$44*('BP Financier'!$C$22/('BP Financier'!$C$16+'BP Financier'!$C$19+'BP Financier'!$C$22))*$V159*X159/(1-$W159)","v":535.568310357599},{"$f":"'BP Financier'!$C$44*('BP Financier'!$C$22/('BP Financier'!$C$16+'BP Financier'!$C$19+'BP Financier'!$C$22))*$V159*Y159/(1-$W159)","v":358.0318538854667},{"$f":"'BP Financier'!$C$44*('BP Financier'!$C$22/('BP Financier'!$C$16+'BP Financier'!$C$19+'BP Financier'!$C$22))*$V159*Z159/(1-$W159)","v":2802.1170713184874},{"$f":"'BP Financier'!$C$44*('BP Financier'!$C$22/('BP Financier'!$C$16+'BP Financier'!$C$19+'BP Financier'!$C$22))*$V159*AA159/(1-$W159)","v":346.1960901206579},{"$f":"'BP Financier'!$C$44*('BP Financier'!$C$22/('BP Financier'!$C$16+'BP Financier'!$C$19+'BP Financier'!$C$22))*$V159*AB159/(1-$W159)","v":165.7006927073234},null,{"v":0.03,"d":"3.00%"},{"$f":"Actif!$E$28/100","v":{"v":0.28900000000000003,"d":"28.90%"}},{"$f":"Actif!$E$30/100","v":{"v":0.09050000000000001,"d":"9.05%"}},{"$f":"Actif!$E$31/100","v":{"v":0.0605,"d":"6.05%"}},{"$f":"Actif!$E$32/100","v":{"v":0.47350000000000003,"d":"47.35%"}},{"$f":"Actif!$E$33/100","v":{"v":0.0585,"d":"5.85%"}},{"$f":"Actif!$E$29/100","v":{"v":0.027999999999999997,"d":"2.80%"}}]
[null,"#71",35,2026,"F","A_CAPI",{"v":0.44999999999999996,"d":"0.45"},{"v":0.38999999999999996,"d":"0.39"},0.6,0.6,85,0,{"$f":"ROUND(Primes!$M$10*V160,2)","v":{"v":0.3,"d":"0.30"}},0,4207.614018389534,{"$f":"'BP Financier'!$C$44*('BP Financier'!$C$22/('BP Financier'!$C$16+'BP Financier'!$C$19+'BP Financier'!$C$22))*$V160*X160/(1-$W160)","v":535.568310357599},{"$f":"'BP Financier'!$C$44*('BP Financier'!$C$22/('BP Financier'!$C$16+'BP Financier'!$C$19+'BP Financier'!$C$22))*$V160*Y160/(1-$W160)","v":358.0318538854667},{"$f":"'BP Financier'!$C$44*('BP Financier'!$C$22/('BP Financier'!$C$16+'BP Financier'!$C$19+'BP Financier'!$C$22))*$V160*Z160/(1-$W160)","v":2802.1170713184874},{"$f":"'BP Financier'!$C$44*('BP Financier'!$C$22/('BP Financier'!$C$16+'BP Financier'!$C$19+'BP Financier'!$C$22))*$V160*AA160/(1-$W160)","v":346.1960901206579},{"$f":"'BP Financier'!$C$44*('BP Financier'!$C$22/('BP Financier'!$C$16+'BP Financier'!$C$19+'BP Financier'!$C$22))*$V160*AB160/(1-$W160)","v":165.7006927073234},null,{"v":0.03,"d":"3.00%"},{"$f":"Actif!$E$28/100","v":{"v":0.28900000000000003,"d":"28.90%"}},{"$f":"Actif!$E$30/100","v":{"v":0.09050000000000001,"d":"9.05%"}},{"$f":"Actif!$E$31/100","v":{"v":0.0605,"d":"6.05%"}},{"$f":"Actif!$E$32/100","v":{"v":0.47350000000000003,"d":"47.35%"}},{"$f":"Actif!$E$33/100","v":{"v":0.0585,"d":"5.85%"}},{"$f":"Actif!$E$29/100","v":{"v":0.027999999999999997,"d":"2.80%"}}]
[null,"#72",36,2026,"H","A_CAPI",{"v":0.44999999999999996,"d":"0.45"},{"v":0.38999999999999996,"d":"0.39"},0.6,0.6,85,0,{"$f":"ROUND(Primes!$M$10*V161,2)","v":0.05},0,701.2690030649227,{"$f":"'BP Financier'!$C$44*('BP Financier'!$C$22/('BP Financier'!$C$16+'BP Financier'!$C$19+'BP Financier'!$C$22))*$V161*X161/(1-$W161)","v":89.26138505959985},{"$f":"'BP Financier'!$C$44*('BP Financier'!$C$22/('BP Financier'!$C$16+'BP Financier'!$C$19+'BP Financier'!$C$22))*$V161*Y161/(1-$W161)","v":59.671975647577796},{"$f":"'BP Financier'!$C$44*('BP Financier'!$C$22/('BP Financier'!$C$16+'BP Financier'!$C$19+'BP Financier'!$C$22))*$V161*Z161/(1-$W161)","v":467.0195118864147},{"$f":"'BP Financier'!$C$44*('BP Financier'!$C$22/('BP Financier'!$C$16+'BP Financier'!$C$19+'BP Financier'!$C$22))*$V161*AA161/(1-$W161)","v":57.69934835344299},{"$f":"'BP Financier'!$C$44*('BP Financier'!$C$22/('BP Financier'!$C$16+'BP Financier'!$C$19+'BP Financier'!$C$22))*$V161*AB161/(1-$W161)","v":27.616782117887237},null,{"v":0.005,"d":"0.50%"},{"$f":"Actif!$E$28/100","v":{"v":0.28900000000000003,"d":"28.90%"}},{"$f":"Actif!$E$30/100","v":{"v":0.09050000000000001,"d":"9.05%"}},{"$f":"Actif!$E$31/100","v":{"v":0.0605,"d":"6.05%"}},{"$f":"Actif!$E$32/100","v":{"v":0.47350000000000003,"d":"47.35%"}},{"$f":"Actif!$E$33/100","v":{"v":0.0585,"d":"5.85%"}},{"$f":"Actif!$E$29/100","v":{"v":0.027999999999999997,"d":"2.80%"}}]
[null,"#73",37,2026,"H","A_CAPI",{"v":0.44999999999999996,"d":"0.45"},{"v":0.38999999999999996,"d":"0.39"},0.6,0.6,85,0,{"$f":"ROUND(Primes!$M$10*V162,2)","v":0.05},0,701.2690030649227,{"$f":"'BP Financier'!$C$44*('BP Financier'!$C$22/('BP Financier'!$C$16+'BP Financier'!$C$19+'BP Financier'!$C$22))*$V162*X162/(1-$W162)","v":89.26138505959985},{"$f":"'BP Financier'!$C$44*('BP Financier'!$C$22/('BP Financier'!$C$16+'BP Financier'!$C$19+'BP Financier'!$C$22))*$V162*Y162/(1-$W162)","v":59.671975647577796},{"$f":"'BP Financier'!$C$44*('BP Financier'!$C$22/('BP Financier'!$C$16+'BP Financier'!$C$19+'BP Financier'!$C$22))*$V162*Z162/(1-$W162)","v":467.0195118864147},{"$f":"'BP Financier'!$C$44*('BP Financier'!$C$22/('BP Financier'!$C$16+'BP Financier'!$C$19+'BP Financier'!$C$22))*$V162*AA162/(1-$W162)","v":57.69934835344299},{"$f":"'BP Financier'!$C$44*('BP Financier'!$C$22/('BP Financier'!$C$16+'BP Financier'!$C$19+'BP Financier'!$C$22))*$V162*AB162/(1-$W162)","v":27.616782117887237},null,{"v":0.005,"d":"0.50%"},{"$f":"Actif!$E$28/100","v":{"v":0.28900000000000003,"d":"28.90%"}},{"$f":"Actif!$E$30/100","v":{"v":0.09050000000000001,"d":"9.05%"}},{"$f":"Actif!$E$31/100","v":{"v":0.0605,"d":"6.05%"}},{"$f":"Actif!$E$32/100","v":{"v":0.47350000000000003,"d":"47.35%"}},{"$f":"Actif!$E$33/100","v":{"v":0.0585,"d":"5.85%"}},{"$f":"Actif!$E$29/100","v":{"v":0.027999999999999997,"d":"2.80%"}}]
[null,"#74",38,2026,"F","A_CAPI",{"v":0.44999999999999996,"d":"0.45"},{"v":0.38999999999999996,"d":"0.39"},0.6,0.6,85,0,{"$f":"ROUND(Primes!$M$10*V163,2)","v":0.05},0,701.2690030649227,{"$f":"'BP Financier'!$C$44*('BP Financier'!$C$22/('BP Financier'!$C$16+'BP Financier'!$C$19+'BP Financier'!$C$22))*$V163*X163/(1-$W163)","v":89.26138505959985},{"$f":"'BP Financier'!$C$44*('BP Financier'!$C$22/('BP Financier'!$C$16+'BP Financier'!$C$19+'BP Financier'!$C$22))*$V163*Y163/(1-$W163)","v":59.671975647577796},{"$f":"'BP Financier'!$C$44*('BP Financier'!$C$22/('BP Financier'!$C$16+'BP Financier'!$C$19+'BP Financier'!$C$22))*$V163*Z163/(1-$W163)","v":467.0195118864147},{"$f":"'BP Financier'!$C$44*('BP Financier'!$C$22/('BP Financier'!$C$16+'BP Financier'!$C$19+'BP Financier'!$C$22))*$V163*AA163/(1-$W163)","v":57.69934835344299},{"$f":"'BP Financier'!$C$44*('BP Financier'!$C$22/('BP Financier'!$C$16+'BP Financier'!$C$19+'BP Financier'!$C$22))*$V163*AB163/(1-$W163)","v":27.616782117887237},null,{"v":0.005,"d":"0.50%"},{"$f":"Actif!$E$28/100","v":{"v":0.28900000000000003,"d":"28.90%"}},{"$f":"Actif!$E$30/100","v":{"v":0.09050000000000001,"d":"9.05%"}},{"$f":"Actif!$E$31/100","v":{"v":0.0605,"d":"6.05%"}},{"$f":"Actif!$E$32/100","v":{"v":0.47350000000000003,"d":"47.35%"}},{"$f":"Actif!$E$33/100","v":{"v":0.0585,"d":"5.85%"}},{"$f":"Actif!$E$29/100","v":{"v":0.027999999999999997,"d":"2.80%"}}]
[null,"#75",39,2026,"H","A_CAPI",{"v":0.44999999999999996,"d":"0.45"},{"v":0.38999999999999996,"d":"0.39"},0.6,0.6,85,0,{"$f":"ROUND(Primes!$M$10*V164,2)","v":0.05},0,701.2690030649227,{"$f":"'BP Financier'!$C$44*('BP Financier'!$C$22/('BP Financier'!$C$16+'BP Financier'!$C$19+'BP Financier'!$C$22))*$V164*X164/(1-$W164)","v":89.26138505959985},{"$f":"'BP Financier'!$C$44*('BP Financier'!$C$22/('BP Financier'!$C$16+'BP Financier'!$C$19+'BP Financier'!$C$22))*$V164*Y164/(1-$W164)","v":59.671975647577796},{"$f":"'BP Financier'!$C$44*('BP Financier'!$C$22/('BP Financier'!$C$16+'BP Financier'!$C$19+'BP Financier'!$C$22))*$V164*Z164/(1-$W164)","v":467.0195118864147},{"$f":"'BP Financier'!$C$44*('BP Financier'!$C$22/('BP Financier'!$C$16+'BP Financier'!$C$19+'BP Financier'!$C$22))*$V164*AA164/(1-$W164)","v":57.69934835344299},{"$f":"'BP Financier'!$C$44*('BP Financier'!$C$22/('BP Financier'!$C$16+'BP Financier'!$C$19+'BP Financier'!$C$22))*$V164*AB164/(1-$W164)","v":27.616782117887237},null,{"v":0.005,"d":"0.50%"},{"$f":"Actif!$E$28/100","v":{"v":0.28900000000000003,"d":"28.90%"}},{"$f":"Actif!$E$30/100","v":{"v":0.09050000000000001,"d":"9.05%"}},{"$f":"Actif!$E$31/100","v":{"v":0.0605,"d":"6.05%"}},{"$f":"Actif!$E$32/100","v":{"v":0.47350000000000003,"d":"47.35%"}},{"$f":"Actif!$E$33/100","v":{"v":0.0585,"d":"5.85%"}},{"$f":"Actif!$E$29/100","v":{"v":0.027999999999999997,"d":"2.80%"}}]
[null,"#76",40,2026,"H","A_CAPI",{"v":0.44999999999999996,"d":"0.45"},{"v":0.38999999999999996,"d":"0.39"},0.6,0.6,85,0,{"$f":"ROUND(Primes!$M$10*V165,2)","v":0.05},0,701.2690030649227,{"$f":"'BP Financier'!$C$44*('BP Financier'!$C$22/('BP Financier'!$C$16+'BP Financier'!$C$19+'BP Financier'!$C$22))*$V165*X165/(1-$W165)","v":89.26138505959985},{"$f":"'BP Financier'!$C$44*('BP Financier'!$C$22/('BP Financier'!$C$16+'BP Financier'!$C$19+'BP Financier'!$C$22))*$V165*Y165/(1-$W165)","v":59.671975647577796},{"$f":"'BP Financier'!$C$44*('BP Financier'!$C$22/('BP Financier'!$C$16+'BP Financier'!$C$19+'BP Financier'!$C$22))*$V165*Z165/(1-$W165)","v":467.0195118864147},{"$f":"'BP Financier'!$C$44*('BP Financier'!$C$22/('BP Financier'!$C$16+'BP Financier'!$C$19+'BP Financier'!$C$22))*$V165*AA165/(1-$W165)","v":57.69934835344299},{"$f":"'BP Financier'!$C$44*('BP Financier'!$C$22/('BP Financier'!$C$16+'BP Financier'!$C$19+'BP Financier'!$C$22))*$V165*AB165/(1-$W165)","v":27.616782117887237},null,{"v":0.005,"d":"0.50%"},{"$f":"Actif!$E$28/100","v":{"v":0.28900000000000003,"d":"28.90%"}},{"$f":"Actif!$E$30/100","v":{"v":0.09050000000000001,"d":"9.05%"}},{"$f":"Actif!$E$31/100","v":{"v":0.0605,"d":"6.05%"}},{"$f":"Actif!$E$32/100","v":{"v":0.47350000000000003,"d":"47.35%"}},{"$f":"Actif!$E$33/100","v":{"v":0.0585,"d":"5.85%"}},{"$f":"Actif!$E$29/100","v":{"v":0.027999999999999997,"d":"2.80%"}}]
[null,"#77",41,2026,"F","A_CAPI",{"v":0.44999999999999996,"d":"0.45"},{"v":0.38999999999999996,"d":"0.39"},0.6,0.6,85,0,{"$f":"ROUND(Primes!$M$10*V166,2)","v":0.05},0,701.2690030649227,{"$f":"'BP Financier'!$C$44*('BP Financier'!$C$22/('BP Financier'!$C$16+'BP Financier'!$C$19+'BP Financier'!$C$22))*$V166*X166/(1-$W166)","v":89.26138505959985},{"$f":"'BP Financier'!$C$44*('BP Financier'!$C$22/('BP Financier'!$C$16+'BP Financier'!$C$19+'BP Financier'!$C$22))*$V166*Y166/(1-$W166)","v":59.671975647577796},{"$f":"'BP Financier'!$C$44*('BP Financier'!$C$22/('BP Financier'!$C$16+'BP Financier'!$C$19+'BP Financier'!$C$22))*$V166*Z166/(1-$W166)","v":467.0195118864147},{"$f":"'BP Financier'!$C$44*('BP Financier'!$C$22/('BP Financier'!$C$16+'BP Financier'!$C$19+'BP Financier'!$C$22))*$V166*AA166/(1-$W166)","v":57.69934835344299},{"$f":"'BP Financier'!$C$44*('BP Financier'!$C$22/('BP Financier'!$C$16+'BP Financier'!$C$19+'BP Financier'!$C$22))*$V166*AB166/(1-$W166)","v":27.616782117887237},null,{"v":0.005,"d":"0.50%"},{"$f":"Actif!$E$28/100","v":{"v":0.28900000000000003,"d":"28.90%"}},{"$f":"Actif!$E$30/100","v":{"v":0.09050000000000001,"d":"9.05%"}},{"$f":"Actif!$E$31/100","v":{"v":0.0605,"d":"6.05%"}},{"$f":"Actif!$E$32/100","v":{"v":0.47350000000000003,"d":"47.35%"}},{"$f":"Actif!$E$33/100","v":{"v":0.0585,"d":"5.85%"}},{"$f":"Actif!$E$29/100","v":{"v":0.027999999999999997,"d":"2.80%"}}]
[null,"#78",42,2026,"H","A_CAPI",{"v":0.44999999999999996,"d":"0.45"},{"v":0.38999999999999996,"d":"0.39"},0.6,0.6,85,0,{"$f":"ROUND(Primes!$M$10*V167,2)","v":0.05},0,701.2690030649227,{"$f":"'BP Financier'!$C$44*('BP Financier'!$C$22/('BP Financier'!$C$16+'BP Financier'!$C$19+'BP Financier'!$C$22))*$V167*X167/(1-$W167)","v":89.26138505959985},{"$f":"'BP Financier'!$C$44*('BP Financier'!$C$22/('BP Financier'!$C$16+'BP Financier'!$C$19+'BP Financier'!$C$22))*$V167*Y167/(1-$W167)","v":59.671975647577796},{"$f":"'BP Financier'!$C$44*('BP Financier'!$C$22/('BP Financier'!$C$16+'BP Financier'!$C$19+'BP Financier'!$C$22))*$V167*Z167/(1-$W167)","v":467.0195118864147},{"$f":"'BP Financier'!$C$44*('BP Financier'!$C$22/('BP Financier'!$C$16+'BP Financier'!$C$19+'BP Financier'!$C$22))*$V167*AA167/(1-$W167)","v":57.69934835344299},{"$f":"'BP Financier'!$C$44*('BP Financier'!$C$22/('BP Financier'!$C$16+'BP Financier'!$C$19+'BP Financier'!$C$22))*$V167*AB167/(1-$W167)","v":27.616782117887237},null,{"v":0.005,"d":"0.50%"},{"$f":"Actif!$E$28/100","v":{"v":0.28900000000000003,"d":"28.90%"}},{"$f":"Actif!$E$30/100","v":{"v":0.09050000000000001,"d":"9.05%"}},{"$f":"Actif!$E$31/100","v":{"v":0.0605,"d":"6.05%"}},{"$f":"Actif!$E$32/100","v":{"v":0.47350000000000003,"d":"47.35%"}},{"$f":"Actif!$E$33/100","v":{"v":0.0585,"d":"5.85%"}},{"$f":"Actif!$E$29/100","v":{"v":0.027999999999999997,"d":"2.80%"}}]
[null,"#79",43,2026,"H","A_CAPI",{"v":0.44999999999999996,"d":"0.45"},{"v":0.38999999999999996,"d":"0.39"},0.6,0.6,85,0,{"$f":"ROUND(Primes!$M$10*V168,2)","v":0.05},0,701.2690030649227,{"$f":"'BP Financier'!$C$44*('BP Financier'!$C$22/('BP Financier'!$C$16+'BP Financier'!$C$19+'BP Financier'!$C$22))*$V168*X168/(1-$W168)","v":89.26138505959985},{"$f":"'BP Financier'!$C$44*('BP Financier'!$C$22/('BP Financier'!$C$16+'BP Financier'!$C$19+'BP Financier'!$C$22))*$V168*Y168/(1-$W168)","v":59.671975647577796},{"$f":"'BP Financier'!$C$44*('BP Financier'!$C$22/('BP Financier'!$C$16+'BP Financier'!$C$19+'BP Financier'!$C$22))*$V168*Z168/(1-$W168)","v":467.0195118864147},{"$f":"'BP Financier'!$C$44*('BP Financier'!$C$22/('BP Financier'!$C$16+'BP Financier'!$C$19+'BP Financier'!$C$22))*$V168*AA168/(1-$W168)","v":57.69934835344299},{"$f":"'BP Financier'!$C$44*('BP Financier'!$C$22/('BP Financier'!$C$16+'BP Financier'!$C$19+'BP Financier'!$C$22))*$V168*AB168/(1-$W168)","v":27.616782117887237},null,{"v":0.005,"d":"0.50%"},{"$f":"Actif!$E$28/100","v":{"v":0.28900000000000003,"d":"28.90%"}},{"$f":"Actif!$E$30/100","v":{"v":0.09050000000000001,"d":"9.05%"}},{"$f":"Actif!$E$31/100","v":{"v":0.0605,"d":"6.05%"}},{"$f":"Actif!$E$32/100","v":{"v":0.47350000000000003,"d":"47.35%"}},{"$f":"Actif!$E$33/100","v":{"v":0.0585,"d":"5.85%"}},{"$f":"Actif!$E$29/100","v":{"v":0.027999999999999997,"d":"2.80%"}}]
[null,"#80",44,2026,"F","A_CAPI",{"v":0.44999999999999996,"d":"0.45"},{"v":0.38999999999999996,"d":"0.39"},0.6,0.6,85,0,{"$f":"ROUND(Primes!$M$10*V169,2)","v":0.05},0,701.2690030649227,{"$f":"'BP Financier'!$C$44*('BP Financier'!$C$22/('BP Financier'!$C$16+'BP Financier'!$C$19+'BP Financier'!$C$22))*$V169*X169/(1-$W169)","v":89.26138505959985},{"$f":"'BP Financier'!$C$44*('BP Financier'!$C$22/('BP Financier'!$C$16+'BP Financier'!$C$19+'BP Financier'!$C$22))*$V169*Y169/(1-$W169)","v":59.671975647577796},{"$f":"'BP Financier'!$C$44*('BP Financier'!$C$22/('BP Financier'!$C$16+'BP Financier'!$C$19+'BP Financier'!$C$22))*$V169*Z169/(1-$W169)","v":467.0195118864147},{"$f":"'BP Financier'!$C$44*('BP Financier'!$C$22/('BP Financier'!$C$16+'BP Financier'!$C$19+'BP Financier'!$C$22))*$V169*AA169/(1-$W169)","v":57.69934835344299},{"$f":"'BP Financier'!$C$44*('BP Financier'!$C$22/('BP Financier'!$C$16+'BP Financier'!$C$19+'BP Financier'!$C$22))*$V169*AB169/(1-$W169)","v":27.616782117887237},null,{"v":0.005,"d":"0.50%"},{"$f":"Actif!$E$28/100","v":{"v":0.28900000000000003,"d":"28.90%"}},{"$f":"Actif!$E$30/100","v":{"v":0.09050000000000001,"d":"9.05%"}},{"$f":"Actif!$E$31/100","v":{"v":0.0605,"d":"6.05%"}},{"$f":"Actif!$E$32/100","v":{"v":0.47350000000000003,"d":"47.35%"}},{"$f":"Actif!$E$33/100","v":{"v":0.0585,"d":"5.85%"}},{"$f":"Actif!$E$29/100","v":{"v":0.027999999999999997,"d":"2.80%"}}]
[null,"#81",45,2026,"H","A_CAPI",{"v":0.44999999999999996,"d":"0.45"},{"v":0.38999999999999996,"d":"0.39"},0.6,0.6,85,0,{"$f":"ROUND(Primes!$M$10*V170,2)","v":0.05},0,701.2690030649227,{"$f":"'BP Financier'!$C$44*('BP Financier'!$C$22/('BP Financier'!$C$16+'BP Financier'!$C$19+'BP Financier'!$C$22))*$V170*X170/(1-$W170)","v":89.26138505959985},{"$f":"'BP Financier'!$C$44*('BP Financier'!$C$22/('BP Financier'!$C$16+'BP Financier'!$C$19+'BP Financier'!$C$22))*$V170*Y170/(1-$W170)","v":59.671975647577796},{"$f":"'BP Financier'!$C$44*('BP Financier'!$C$22/('BP Financier'!$C$16+'BP Financier'!$C$19+'BP Financier'!$C$22))*$V170*Z170/(1-$W170)","v":467.0195118864147},{"$f":"'BP Financier'!$C$44*('BP Financier'!$C$22/('BP Financier'!$C$16+'BP Financier'!$C$19+'BP Financier'!$C$22))*$V170*AA170/(1-$W170)","v":57.69934835344299},{"$f":"'BP Financier'!$C$44*('BP Financier'!$C$22/('BP Financier'!$C$16+'BP Financier'!$C$19+'BP Financier'!$C$22))*$V170*AB170/(1-$W170)","v":27.616782117887237},null,{"v":0.005,"d":"0.50%"},{"$f":"Actif!$E$28/100","v":{"v":0.28900000000000003,"d":"28.90%"}},{"$f":"Actif!$E$30/100","v":{"v":0.09050000000000001,"d":"9.05%"}},{"$f":"Actif!$E$31/100","v":{"v":0.0605,"d":"6.05%"}},{"$f":"Actif!$E$32/100","v":{"v":0.47350000000000003,"d":"47.35%"}},{"$f":"Actif!$E$33/100","v":{"v":0.0585,"d":"5.85%"}},{"$f":"Actif!$E$29/100","v":{"v":0.027999999999999997,"d":"2.80%"}}]
[null,"#82",46,2026,"H","A_CAPI",{"v":0.44999999999999996,"d":"0.45"},{"v":0.38999999999999996,"d":"0.39"},0.6,0.6,85,0,{"$f":"ROUND(Primes!$M$10*V171,2)","v":0.05},0,701.2690030649227,{"$f":"'BP Financier'!$C$44*('BP Financier'!$C$22/('BP Financier'!$C$16+'BP Financier'!$C$19+'BP Financier'!$C$22))*$V171*X171/(1-$W171)","v":89.26138505959985},{"$f":"'BP Financier'!$C$44*('BP Financier'!$C$22/('BP Financier'!$C$16+'BP Financier'!$C$19+'BP Financier'!$C$22))*$V171*Y171/(1-$W171)","v":59.671975647577796},{"$f":"'BP Financier'!$C$44*('BP Financier'!$C$22/('BP Financier'!$C$16+'BP Financier'!$C$19+'BP Financier'!$C$22))*$V171*Z171/(1-$W171)","v":467.0195118864147},{"$f":"'BP Financier'!$C$44*('BP Financier'!$C$22/('BP Financier'!$C$16+'BP Financier'!$C$19+'BP Financier'!$C$22))*$V171*AA171/(1-$W171)","v":57.69934835344299},{"$f":"'BP Financier'!$C$44*('BP Financier'!$C$22/('BP Financier'!$C$16+'BP Financier'!$C$19+'BP Financier'!$C$22))*$V171*AB171/(1-$W171)","v":27.616782117887237},null,{"v":0.005,"d":"0.50%"},{"$f":"Actif!$E$28/100","v":{"v":0.28900000000000003,"d":"28.90%"}},{"$f":"Actif!$E$30/100","v":{"v":0.09050000000000001,"d":"9.05%"}},{"$f":"Actif!$E$31/100","v":{"v":0.0605,"d":"6.05%"}},{"$f":"Actif!$E$32/100","v":{"v":0.47350000000000003,"d":"47.35%"}},{"$f":"Actif!$E$33/100","v":{"v":0.0585,"d":"5.85%"}},{"$f":"Actif!$E$29/100","v":{"v":0.027999999999999997,"d":"2.80%"}}]
[null,"#83",47,2026,"F","A_CAPI",{"v":0.44999999999999996,"d":"0.45"},{"v":0.38999999999999996,"d":"0.39"},0.6,0.6,85,0,{"$f":"ROUND(Primes!$M$10*V172,2)","v":0.05},0,701.2690030649227,{"$f":"'BP Financier'!$C$44*('BP Financier'!$C$22/('BP Financier'!$C$16+'BP Financier'!$C$19+'BP Financier'!$C$22))*$V172*X172/(1-$W172)","v":89.26138505959985},{"$f":"'BP Financier'!$C$44*('BP Financier'!$C$22/('BP Financier'!$C$16+'BP Financier'!$C$19+'BP Financier'!$C$22))*$V172*Y172/(1-$W172)","v":59.671975647577796},{"$f":"'BP Financier'!$C$44*('BP Financier'!$C$22/('BP Financier'!$C$16+'BP Financier'!$C$19+'BP Financier'!$C$22))*$V172*Z172/(1-$W172)","v":467.0195118864147},{"$f":"'BP Financier'!$C$44*('BP Financier'!$C$22/('BP Financier'!$C$16+'BP Financier'!$C$19+'BP Financier'!$C$22))*$V172*AA172/(1-$W172)","v":57.69934835344299},{"$f":"'BP Financier'!$C$44*('BP Financier'!$C$22/('BP Financier'!$C$16+'BP Financier'!$C$19+'BP Financier'!$C$22))*$V172*AB172/(1-$W172)","v":27.616782117887237},null,{"v":0.005,"d":"0.50%"},{"$f":"Actif!$E$28/100","v":{"v":0.28900000000000003,"d":"28.90%"}},{"$f":"Actif!$E$30/100","v":{"v":0.09050000000000001,"d":"9.05%"}},{"$f":"Actif!$E$31/100","v":{"v":0.0605,"d":"6.05%"}},{"$f":"Actif!$E$32/100","v":{"v":0.47350000000000003,"d":"47.35%"}},{"$f":"Actif!$E$33/100","v":{"v":0.0585,"d":"5.85%"}},{"$f":"Actif!$E$29/100","v":{"v":0.027999999999999997,"d":"2.80%"}}]
[null,"#84",48,2026,"H","A_CAPI",{"v":0.44999999999999996,"d":"0.45"},{"v":0.38999999999999996,"d":"0.39"},0.6,0.6,85,0,{"$f":"ROUND(Primes!$M$10*V173,2)","v":0.05},0,701.2690030649227,{"$f":"'BP Financier'!$C$44*('BP Financier'!$C$22/('BP Financier'!$C$16+'BP Financier'!$C$19+'BP Financier'!$C$22))*$V173*X173/(1-$W173)","v":89.26138505959985},{"$f":"'BP Financier'!$C$44*('BP Financier'!$C$22/('BP Financier'!$C$16+'BP Financier'!$C$19+'BP Financier'!$C$22))*$V173*Y173/(1-$W173)","v":59.671975647577796},{"$f":"'BP Financier'!$C$44*('BP Financier'!$C$22/('BP Financier'!$C$16+'BP Financier'!$C$19+'BP Financier'!$C$22))*$V173*Z173/(1-$W173)","v":467.0195118864147},{"$f":"'BP Financier'!$C$44*('BP Financier'!$C$22/('BP Financier'!$C$16+'BP Financier'!$C$19+'BP Financier'!$C$22))*$V173*AA173/(1-$W173)","v":57.69934835344299},{"$f":"'BP Financier'!$C$44*('BP Financier'!$C$22/('BP Financier'!$C$16+'BP Financier'!$C$19+'BP Financier'!$C$22))*$V173*AB173/(1-$W173)","v":27.616782117887237},null,{"v":0.005,"d":"0.50%"},{"$f":"Actif!$E$28/100","v":{"v":0.28900000000000003,"d":"28.90%"}},{"$f":"Actif!$E$30/100","v":{"v":0.09050000000000001,"d":"9.05%"}},{"$f":"Actif!$E$31/100","v":{"v":0.0605,"d":"6.05%"}},{"$f":"Actif!$E$32/100","v":{"v":0.47350000000000003,"d":"47.35%"}},{"$f":"Actif!$E$33/100","v":{"v":0.0585,"d":"5.85%"}},{"$f":"Actif!$E$29/100","v":{"v":0.027999999999999997,"d":"2.80%"}}]
[null,"#85",49,2026,"H","A_CAPI",{"v":0.44999999999999996,"d":"0.45"},{"v":0.38999999999999996,"d":"0.39"},0.6,0.6,85,0,{"$f":"ROUND(Primes!$M$10*V174,2)","v":0.05},0,701.2690030649227,{"$f":"'BP Financier'!$C$44*('BP Financier'!$C$22/('BP Financier'!$C$16+'BP Financier'!$C$19+'BP Financier'!$C$22))*$V174*X174/(1-$W174)","v":89.26138505959985},{"$f":"'BP Financier'!$C$44*('BP Financier'!$C$22/('BP Financier'!$C$16+'BP Financier'!$C$19+'BP Financier'!$C$22))*$V174*Y174/(1-$W174)","v":59.671975647577796},{"$f":"'BP Financier'!$C$44*('BP Financier'!$C$22/('BP Financier'!$C$16+'BP Financier'!$C$19+'BP Financier'!$C$22))*$V174*Z174/(1-$W174)","v":467.0195118864147},{"$f":"'BP Financier'!$C$44*('BP Financier'!$C$22/('BP Financier'!$C$16+'BP Financier'!$C$19+'BP Financier'!$C$22))*$V174*AA174/(1-$W174)","v":57.69934835344299},{"$f":"'BP Financier'!$C$44*('BP Financier'!$C$22/('BP Financier'!$C$16+'BP Financier'!$C$19+'BP Financier'!$C$22))*$V174*AB174/(1-$W174)","v":27.616782117887237},null,{"v":0.005,"d":"0.50%"},{"$f":"Actif!$E$28/100","v":{"v":0.28900000000000003,"d":"28.90%"}},{"$f":"Actif!$E$30/100","v":{"v":0.09050000000000001,"d":"9.05%"}},{"$f":"Actif!$E$31/100","v":{"v":0.0605,"d":"6.05%"}},{"$f":"Actif!$E$32/100","v":{"v":0.47350000000000003,"d":"47.35%"}},{"$f":"Actif!$E$33/100","v":{"v":0.0585,"d":"5.85%"}},{"$f":"Actif!$E$29/100","v":{"v":0.027999999999999997,"d":"2.80%"}}]
[null,"#86",50,2026,"F","A_CAPI",{"v":0.44999999999999996,"d":"0.45"},{"v":0.38999999999999996,"d":"0.39"},0.6,0.6,85,0,{"$f":"ROUND(Primes!$M$10*V175,2)","v":{"v":0.3,"d":"0.30"}},0,4207.614018389534,{"$f":"'BP Financier'!$C$44*('BP Financier'!$C$22/('BP Financier'!$C$16+'BP Financier'!$C$19+'BP Financier'!$C$22))*$V175*X175/(1-$W175)","v":535.568310357599},{"$f":"'BP Financier'!$C$44*('BP Financier'!$C$22/('BP Financier'!$C$16+'BP Financier'!$C$19+'BP Financier'!$C$22))*$V175*Y175/(1-$W175)","v":358.0318538854667},{"$f":"'BP Financier'!$C$44*('BP Financier'!$C$22/('BP Financier'!$C$16+'BP Financier'!$C$19+'BP Financier'!$C$22))*$V175*Z175/(1-$W175)","v":2802.1170713184874},{"$f":"'BP Financier'!$C$44*('BP Financier'!$C$22/('BP Financier'!$C$16+'BP Financier'!$C$19+'BP Financier'!$C$22))*$V175*AA175/(1-$W175)","v":346.1960901206579},{"$f":"'BP Financier'!$C$44*('BP Financier'!$C$22/('BP Financier'!$C$16+'BP Financier'!$C$19+'BP Financier'!$C$22))*$V175*AB175/(1-$W175)","v":165.7006927073234},null,{"v":0.03,"d":"3.00%"},{"$f":"Actif!$E$28/100","v":{"v":0.28900000000000003,"d":"28.90%"}},{"$f":"Actif!$E$30/100","v":{"v":0.09050000000000001,"d":"9.05%"}},{"$f":"Actif!$E$31/100","v":{"v":0.0605,"d":"6.05%"}},{"$f":"Actif!$E$32/100","v":{"v":0.47350000000000003,"d":"47.35%"}},{"$f":"Actif!$E$33/100","v":{"v":0.0585,"d":"5.85%"}},{"$f":"Actif!$E$29/100","v":{"v":0.027999999999999997,"d":"2.80%"}}]
[null,"#87",51,2026,"H","A_CAPI",{"v":0.44999999999999996,"d":"0.45"},{"v":0.38999999999999996,"d":"0.39"},0.6,0.6,85,0,{"$f":"ROUND(Primes!$M$10*V176,2)","v":{"v":0.3,"d":"0.30"}},0,4207.614018389534,{"$f":"'BP Financier'!$C$44*('BP Financier'!$C$22/('BP Financier'!$C$16+'BP Financier'!$C$19+'BP Financier'!$C$22))*$V176*X176/(1-$W176)","v":535.568310357599},{"$f":"'BP Financier'!$C$44*('BP Financier'!$C$22/('BP Financier'!$C$16+'BP Financier'!$C$19+'BP Financier'!$C$22))*$V176*Y176/(1-$W176)","v":358.0318538854667},{"$f":"'BP Financier'!$C$44*('BP Financier'!$C$22/('BP Financier'!$C$16+'BP Financier'!$C$19+'BP Financier'!$C$22))*$V176*Z176/(1-$W176)","v":2802.1170713184874},{"$f":"'BP Financier'!$C$44*('BP Financier'!$C$22/('BP Financier'!$C$16+'BP Financier'!$C$19+'BP Financier'!$C$22))*$V176*AA176/(1-$W176)","v":346.1960901206579},{"$f":"'BP Financier'!$C$44*('BP Financier'!$C$22/('BP Financier'!$C$16+'BP Financier'!$C$19+'BP Financier'!$C$22))*$V176*AB176/(1-$W176)","v":165.7006927073234},null,{"v":0.03,"d":"3.00%"},{"$f":"Actif!$E$28/100","v":{"v":0.28900000000000003,"d":"28.90%"}},{"$f":"Actif!$E$30/100","v":{"v":0.09050000000000001,"d":"9.05%"}},{"$f":"Actif!$E$31/100","v":{"v":0.0605,"d":"6.05%"}},{"$f":"Actif!$E$32/100","v":{"v":0.47350000000000003,"d":"47.35%"}},{"$f":"Actif!$E$33/100","v":{"v":0.0585,"d":"5.85%"}},{"$f":"Actif!$E$29/100","v":{"v":0.027999999999999997,"d":"2.80%"}}]
[null,"#88",52,2026,"H","A_CAPI",{"v":0.44999999999999996,"d":"0.45"},{"v":0.38999999999999996,"d":"0.39"},0.6,0.6,85,0,{"$f":"ROUND(Primes!$M$10*V177,2)","v":{"v":0.3,"d":"0.30"}},0,4207.614018389534,{"$f":"'BP Financier'!$C$44*('BP Financier'!$C$22/('BP Financier'!$C$16+'BP Financier'!$C$19+'BP Financier'!$C$22))*$V177*X177/(1-$W177)","v":535.568310357599},{"$f":"'BP Financier'!$C$44*('BP Financier'!$C$22/('BP Financier'!$C$16+'BP Financier'!$C$19+'BP Financier'!$C$22))*$V177*Y177/(1-$W177)","v":358.0318538854667},{"$f":"'BP Financier'!$C$44*('BP Financier'!$C$22/('BP Financier'!$C$16+'BP Financier'!$C$19+'BP Financier'!$C$22))*$V177*Z177/(1-$W177)","v":2802.1170713184874},{"$f":"'BP Financier'!$C$44*('BP Financier'!$C$22/('BP Financier'!$C$16+'BP Financier'!$C$19+'BP Financier'!$C$22))*$V177*AA177/(1-$W177)","v":346.1960901206579},{"$f":"'BP Financier'!$C$44*('BP Financier'!$C$22/('BP Financier'!$C$16+'BP Financier'!$C$19+'BP Financier'!$C$22))*$V177*AB177/(1-$W177)","v":165.7006927073234},null,{"v":0.03,"d":"3.00%"},{"$f":"Actif!$E$28/100","v":{"v":0.28900000000000003,"d":"28.90%"}},{"$f":"Actif!$E$30/100","v":{"v":0.09050000000000001,"d":"9.05%"}},{"$f":"Actif!$E$31/100","v":{"v":0.0605,"d":"6.05%"}},{"$f":"Actif!$E$32/100","v":{"v":0.47350000000000003,"d":"47.35%"}},{"$f":"Actif!$E$33/100","v":{"v":0.0585,"d":"5.85%"}},{"$f":"Actif!$E$29/100","v":{"v":0.027999999999999997,"d":"2.80%"}}]
[null,"#89",53,2026,"F","A_CAPI",{"v":0.44999999999999996,"d":"0.45"},{"v":0.38999999999999996,"d":"0.39"},0.6,0.6,85,0,{"$f":"ROUND(Primes!$M$10*V178,2)","v":{"v":0.3,"d":"0.30"}},0,4207.614018389534,{"$f":"'BP Financier'!$C$44*('BP Financier'!$C$22/('BP Financier'!$C$16+'BP Financier'!$C$19+'BP Financier'!$C$22))*$V178*X178/(1-$W178)","v":535.568310357599},{"$f":"'BP Financier'!$C$44*('BP Financier'!$C$22/('BP Financier'!$C$16+'BP Financier'!$C$19+'BP Financier'!$C$22))*$V178*Y178/(1-$W178)","v":358.0318538854667},{"$f":"'BP Financier'!$C$44*('BP Financier'!$C$22/('BP Financier'!$C$16+'BP Financier'!$C$19+'BP Financier'!$C$22))*$V178*Z178/(1-$W178)","v":2802.1170713184874},{"$f":"'BP Financier'!$C$44*('BP Financier'!$C$22/('BP Financier'!$C$16+'BP Financier'!$C$19+'BP Financier'!$C$22))*$V178*AA178/(1-$W178)","v":346.1960901206579},{"$f":"'BP Financier'!$C$44*('BP Financier'!$C$22/('BP Financier'!$C$16+'BP Financier'!$C$19+'BP Financier'!$C$22))*$V178*AB178/(1-$W178)","v":165.7006927073234},null,{"v":0.03,"d":"3.00%"},{"$f":"Actif!$E$28/100","v":{"v":0.28900000000000003,"d":"28.90%"}},{"$f":"Actif!$E$30/100","v":{"v":0.09050000000000001,"d":"9.05%"}},{"$f":"Actif!$E$31/100","v":{"v":0.0605,"d":"6.05%"}},{"$f":"Actif!$E$32/100","v":{"v":0.47350000000000003,"d":"47.35%"}},{"$f":"Actif!$E$33/100","v":{"v":0.0585,"d":"5.85%"}},{"$f":"Actif!$E$29/100","v":{"v":0.027999999999999997,"d":"2.80%"}}]
[null,"#90",54,2026,"H","A_CAPI",{"v":0.44999999999999996,"d":"0.45"},{"v":0.38999999999999996,"d":"0.39"},0.6,0.6,85,0,{"$f":"ROUND(Primes!$M$10*V179,2)","v":{"v":0.3,"d":"0.30"}},0,4207.614018389534,{"$f":"'BP Financier'!$C$44*('BP Financier'!$C$22/('BP Financier'!$C$16+'BP Financier'!$C$19+'BP Financier'!$C$22))*$V179*X179/(1-$W179)","v":535.568310357599},{"$f":"'BP Financier'!$C$44*('BP Financier'!$C$22/('BP Financier'!$C$16+'BP Financier'!$C$19+'BP Financier'!$C$22))*$V179*Y179/(1-$W179)","v":358.0318538854667},{"$f":"'BP Financier'!$C$44*('BP Financier'!$C$22/('BP Financier'!$C$16+'BP Financier'!$C$19+'BP Financier'!$C$22))*$V179*Z179/(1-$W179)","v":2802.1170713184874},{"$f":"'BP Financier'!$C$44*('BP Financier'!$C$22/('BP Financier'!$C$16+'BP Financier'!$C$19+'BP Financier'!$C$22))*$V179*AA179/(1-$W179)","v":346.1960901206579},{"$f":"'BP Financier'!$C$44*('BP Financier'!$C$22/('BP Financier'!$C$16+'BP Financier'!$C$19+'BP Financier'!$C$22))*$V179*AB179/(1-$W179)","v":165.7006927073234},null,{"v":0.03,"d":"3.00%"},{"$f":"Actif!$E$28/100","v":{"v":0.28900000000000003,"d":"28.90%"}},{"$f":"Actif!$E$30/100","v":{"v":0.09050000000000001,"d":"9.05%"}},{"$f":"Actif!$E$31/100","v":{"v":0.0605,"d":"6.05%"}},{"$f":"Actif!$E$32/100","v":{"v":0.47350000000000003,"d":"47.35%"}},{"$f":"Actif!$E$33/100","v":{"v":0.0585,"d":"5.85%"}},{"$f":"Actif!$E$29/100","v":{"v":0.027999999999999997,"d":"2.80%"}}]
[null,"#91",55,2026,"H","A_CAPI",{"v":0.44999999999999996,"d":"0.45"},{"v":0.38999999999999996,"d":"0.39"},0.6,0.6,85,0,{"$f":"ROUND(Primes!$M$10*V180,2)","v":{"v":0.3,"d":"0.30"}},0,4207.614018389534,{"$f":"'BP Financier'!$C$44*('BP Financier'!$C$22/('BP Financier'!$C$16+'BP Financier'!$C$19+'BP Financier'!$C$22))*$V180*X180/(1-$W180)","v":535.568310357599},{"$f":"'BP Financier'!$C$44*('BP Financier'!$C$22/('BP Financier'!$C$16+'BP Financier'!$C$19+'BP Financier'!$C$22))*$V180*Y180/(1-$W180)","v":358.0318538854667},{"$f":"'BP Financier'!$C$44*('BP Financier'!$C$22/('BP Financier'!$C$16+'BP Financier'!$C$19+'BP Financier'!$C$22))*$V180*Z180/(1-$W180)","v":2802.1170713184874},{"$f":"'BP Financier'!$C$44*('BP Financier'!$C$22/('BP Financier'!$C$16+'BP Financier'!$C$19+'BP Financier'!$C$22))*$V180*AA180/(1-$W180)","v":346.1960901206579},{"$f":"'BP Financier'!$C$44*('BP Financier'!$C$22/('BP Financier'!$C$16+'BP Financier'!$C$19+'BP Financier'!$C$22))*$V180*AB180/(1-$W180)","v":165.7006927073234},null,{"v":0.03,"d":"3.00%"},{"$f":"Actif!$E$28/100","v":{"v":0.28900000000000003,"d":"28.90%"}},{"$f":"Actif!$E$30/100","v":{"v":0.09050000000000001,"d":"9.05%"}},{"$f":"Actif!$E$31/100","v":{"v":0.0605,"d":"6.05%"}},{"$f":"Actif!$E$32/100","v":{"v":0.47350000000000003,"d":"47.35%"}},{"$f":"Actif!$E$33/100","v":{"v":0.0585,"d":"5.85%"}},{"$f":"Actif!$E$29/100","v":{"v":0.027999999999999997,"d":"2.80%"}}]
[null,"#92",56,2026,"F","A_CAPI",{"v":0.44999999999999996,"d":"0.45"},{"v":0.38999999999999996,"d":"0.39"},0.6,0.6,85,0,{"$f":"ROUND(Primes!$M$10*V181,2)","v":{"v":0.3,"d":"0.30"}},0,4207.614018389534,{"$f":"'BP Financier'!$C$44*('BP Financier'!$C$22/('BP Financier'!$C$16+'BP Financier'!$C$19+'BP Financier'!$C$22))*$V181*X181/(1-$W181)","v":535.568310357599},{"$f":"'BP Financier'!$C$44*('BP Financier'!$C$22/('BP Financier'!$C$16+'BP Financier'!$C$19+'BP Financier'!$C$22))*$V181*Y181/(1-$W181)","v":358.0318538854667},{"$f":"'BP Financier'!$C$44*('BP Financier'!$C$22/('BP Financier'!$C$16+'BP Financier'!$C$19+'BP Financier'!$C$22))*$V181*Z181/(1-$W181)","v":2802.1170713184874},{"$f":"'BP Financier'!$C$44*('BP Financier'!$C$22/('BP Financier'!$C$16+'BP Financier'!$C$19+'BP Financier'!$C$22))*$V181*AA181/(1-$W181)","v":346.1960901206579},{"$f":"'BP Financier'!$C$44*('BP Financier'!$C$22/('BP Financier'!$C$16+'BP Financier'!$C$19+'BP Financier'!$C$22))*$V181*AB181/(1-$W181)","v":165.7006927073234},null,{"v":0.03,"d":"3.00%"},{"$f":"Actif!$E$28/100","v":{"v":0.28900000000000003,"d":"28.90%"}},{"$f":"Actif!$E$30/100","v":{"v":0.09050000000000001,"d":"9.05%"}},{"$f":"Actif!$E$31/100","v":{"v":0.0605,"d":"6.05%"}},{"$f":"Actif!$E$32/100","v":{"v":0.47350000000000003,"d":"47.35%"}},{"$f":"Actif!$E$33/100","v":{"v":0.0585,"d":"5.85%"}},{"$f":"Actif!$E$29/100","v":{"v":0.027999999999999997,"d":"2.80%"}}]
[null,"#93",57,2026,"H","A_CAPI",{"v":0.44999999999999996,"d":"0.45"},{"v":0.38999999999999996,"d":"0.39"},0.6,0.6,85,0,{"$f":"ROUND(Primes!$M$10*V182,2)","v":{"v":0.3,"d":"0.30"}},0,4207.614018389534,{"$f":"'BP Financier'!$C$44*('BP Financier'!$C$22/('BP Financier'!$C$16+'BP Financier'!$C$19+'BP Financier'!$C$22))*$V182*X182/(1-$W182)","v":535.568310357599},{"$f":"'BP Financier'!$C$44*('BP Financier'!$C$22/('BP Financier'!$C$16+'BP Financier'!$C$19+'BP Financier'!$C$22))*$V182*Y182/(1-$W182)","v":358.0318538854667},{"$f":"'BP Financier'!$C$44*('BP Financier'!$C$22/('BP Financier'!$C$16+'BP Financier'!$C$19+'BP Financier'!$C$22))*$V182*Z182/(1-$W182)","v":2802.1170713184874},{"$f":"'BP Financier'!$C$44*('BP Financier'!$C$22/('BP Financier'!$C$16+'BP Financier'!$C$19+'BP Financier'!$C$22))*$V182*AA182/(1-$W182)","v":346.1960901206579},{"$f":"'BP Financier'!$C$44*('BP Financier'!$C$22/('BP Financier'!$C$16+'BP Financier'!$C$19+'BP Financier'!$C$22))*$V182*AB182/(1-$W182)","v":165.7006927073234},null,{"v":0.03,"d":"3.00%"},{"$f":"Actif!$E$28/100","v":{"v":0.28900000000000003,"d":"28.90%"}},{"$f":"Actif!$E$30/100","v":{"v":0.09050000000000001,"d":"9.05%"}},{"$f":"Actif!$E$31/100","v":{"v":0.0605,"d":"6.05%"}},{"$f":"Actif!$E$32/100","v":{"v":0.47350000000000003,"d":"47.35%"}},{"$f":"Actif!$E$33/100","v":{"v":0.0585,"d":"5.85%"}},{"$f":"Actif!$E$29/100","v":{"v":0.027999999999999997,"d":"2.80%"}}]
[null,"#94",58,2026,"H","A_CAPI",{"v":0.44999999999999996,"d":"0.45"},{"v":0.38999999999999996,"d":"0.39"},0.6,0.6,85,0,{"$f":"ROUND(Primes!$M$10*V183,2)","v":{"v":0.3,"d":"0.30"}},0,4207.614018389534,{"$f":"'BP Financier'!$C$44*('BP Financier'!$C$22/('BP Financier'!$C$16+'BP Financier'!$C$19+'BP Financier'!$C$22))*$V183*X183/(1-$W183)","v":535.568310357599},{"$f":"'BP Financier'!$C$44*('BP Financier'!$C$22/('BP Financier'!$C$16+'BP Financier'!$C$19+'BP Financier'!$C$22))*$V183*Y183/(1-$W183)","v":358.0318538854667},{"$f":"'BP Financier'!$C$44*('BP Financier'!$C$22/('BP Financier'!$C$16+'BP Financier'!$C$19+'BP Financier'!$C$22))*$V183*Z183/(1-$W183)","v":2802.1170713184874},{"$f":"'BP Financier'!$C$44*('BP Financier'!$C$22/('BP Financier'!$C$16+'BP Financier'!$C$19+'BP Financier'!$C$22))*$V183*AA183/(1-$W183)","v":346.1960901206579},{"$f":"'BP Financier'!$C$44*('BP Financier'!$C$22/('BP Financier'!$C$16+'BP Financier'!$C$19+'BP Financier'!$C$22))*$V183*AB183/(1-$W183)","v":165.7006927073234},null,{"v":0.03,"d":"3.00%"},{"$f":"Actif!$E$28/100","v":{"v":0.28900000000000003,"d":"28.90%"}},{"$f":"Actif!$E$30/100","v":{"v":0.09050000000000001,"d":"9.05%"}},{"$f":"Actif!$E$31/100","v":{"v":0.0605,"d":"6.05%"}},{"$f":"Actif!$E$32/100","v":{"v":0.47350000000000003,"d":"47.35%"}},{"$f":"Actif!$E$33/100","v":{"v":0.0585,"d":"5.85%"}},{"$f":"Actif!$E$29/100","v":{"v":0.027999999999999997,"d":"2.80%"}}]
[null,"#95",59,2026,"F","A_CAPI",{"v":0.44999999999999996,"d":"0.45"},{"v":0.38999999999999996,"d":"0.39"},0.6,0.6,85,0,{"$f":"ROUND(Primes!$M$10*V184,2)","v":{"v":0.3,"d":"0.30"}},0,4207.614018389534,{"$f":"'BP Financier'!$C$44*('BP Financier'!$C$22/('BP Financier'!$C$16+'BP Financier'!$C$19+'BP Financier'!$C$22))*$V184*X184/(1-$W184)","v":535.568310357599},{"$f":"'BP Financier'!$C$44*('BP Financier'!$C$22/('BP Financier'!$C$16+'BP Financier'!$C$19+'BP Financier'!$C$22))*$V184*Y184/(1-$W184)","v":358.0318538854667},{"$f":"'BP Financier'!$C$44*('BP Financier'!$C$22/('BP Financier'!$C$16+'BP Financier'!$C$19+'BP Financier'!$C$22))*$V184*Z184/(1-$W184)","v":2802.1170713184874},{"$f":"'BP Financier'!$C$44*('BP Financier'!$C$22/('BP Financier'!$C$16+'BP Financier'!$C$19+'BP Financier'!$C$22))*$V184*AA184/(1-$W184)","v":346.1960901206579},{"$f":"'BP Financier'!$C$44*('BP Financier'!$C$22/('BP Financier'!$C$16+'BP Financier'!$C$19+'BP Financier'!$C$22))*$V184*AB184/(1-$W184)","v":165.7006927073234},null,{"v":0.03,"d":"3.00%"},{"$f":"Actif!$E$28/100","v":{"v":0.28900000000000003,"d":"28.90%"}},{"$f":"Actif!$E$30/100","v":{"v":0.09050000000000001,"d":"9.05%"}},{"$f":"Actif!$E$31/100","v":{"v":0.0605,"d":"6.05%"}},{"$f":"Actif!$E$32/100","v":{"v":0.47350000000000003,"d":"47.35%"}},{"$f":"Actif!$E$33/100","v":{"v":0.0585,"d":"5.85%"}},{"$f":"Actif!$E$29/100","v":{"v":0.027999999999999997,"d":"2.80%"}}]
[null,"#96",60,2026,"H","A_CAPI",{"v":0.44999999999999996,"d":"0.45"},{"v":0.38999999999999996,"d":"0.39"},0.6,0.6,85,0,{"$f":"ROUND(Primes!$M$10*V185,2)","v":{"v":0.5,"d":"0.50"}},0,7012.690030649225,{"$f":"'BP Financier'!$C$44*('BP Financier'!$C$22/('BP Financier'!$C$16+'BP Financier'!$C$19+'BP Financier'!$C$22))*$V185*X185/(1-$W185)","v":892.6138505959985},{"$f":"'BP Financier'!$C$44*('BP Financier'!$C$22/('BP Financier'!$C$16+'BP Financier'!$C$19+'BP Financier'!$C$22))*$V185*Y185/(1-$W185)","v":596.7197564757779},{"$f":"'BP Financier'!$C$44*('BP Financier'!$C$22/('BP Financier'!$C$16+'BP Financier'!$C$19+'BP Financier'!$C$22))*$V185*Z185/(1-$W185)","v":4670.195118864147},{"$f":"'BP Financier'!$C$44*('BP Financier'!$C$22/('BP Financier'!$C$16+'BP Financier'!$C$19+'BP Financier'!$C$22))*$V185*AA185/(1-$W185)","v":576.9934835344299},{"$f":"'BP Financier'!$C$44*('BP Financier'!$C$22/('BP Financier'!$C$16+'BP Financier'!$C$19+'BP Financier'!$C$22))*$V185*AB185/(1-$W185)","v":276.1678211788724},null,{"v":0.05,"d":"5.00%"},{"$f":"Actif!$E$28/100","v":{"v":0.28900000000000003,"d":"28.90%"}},{"$f":"Actif!$E$30/100","v":{"v":0.09050000000000001,"d":"9.05%"}},{"$f":"Actif!$E$31/100","v":{"v":0.0605,"d":"6.05%"}},{"$f":"Actif!$E$32/100","v":{"v":0.47350000000000003,"d":"47.35%"}},{"$f":"Actif!$E$33/100","v":{"v":0.0585,"d":"5.85%"}},{"$f":"Actif!$E$29/100","v":{"v":0.027999999999999997,"d":"2.80%"}}]
[null,"#97",61,2026,"H","A_CAPI",{"$f":"frais_gestion_Euro*100","v":{"v":0.44999999999999996,"d":"0.45"}},{"$f":"frais_gestion_UC*100","v":{"v":0.38999999999999996,"d":"0.39"}},{"$f":"frais_distribution_FG*100","v":0.6},{"$f":"frais_distribution_UC*100","v":0.6},85,0,{"$f":"ROUND(Primes!$M$10*V186,2)","v":{"v":0.3,"d":"0.30"}},0,4207.614018389534,{"$f":"'BP Financier'!$C$44*('BP Financier'!$C$22/('BP Financier'!$C$16+'BP Financier'!$C$19+'BP Financier'!$C$22))*$V186*X186/(1-$W186)","v":535.568310357599},{"$f":"'BP Financier'!$C$44*('BP Financier'!$C$22/('BP Financier'!$C$16+'BP Financier'!$C$19+'BP Financier'!$C$22))*$V186*Y186/(1-$W186)","v":358.0318538854667},{"$f":"'BP Financier'!$C$44*('BP Financier'!$C$22/('BP Financier'!$C$16+'BP Financier'!$C$19+'BP Financier'!$C$22))*$V186*Z186/(1-$W186)","v":2802.1170713184874},{"$f":"'BP Financier'!$C$44*('BP Financier'!$C$22/('BP Financier'!$C$16+'BP Financier'!$C$19+'BP Financier'!$C$22))*$V186*AA186/(1-$W186)","v":346.1960901206579},{"$f":"'BP Financier'!$C$44*('BP Financier'!$C$22/('BP Financier'!$C$16+'BP Financier'!$C$19+'BP Financier'!$C$22))*$V186*AB186/(1-$W186)","v":165.7006927073234},null,{"v":0.03,"d":"3.00%"},{"$f":"Actif!$E$28/100","v":{"v":0.28900000000000003,"d":"28.90%"}},{"$f":"Actif!$E$30/100","v":{"v":0.09050000000000001,"d":"9.05%"}},{"$f":"Actif!$E$31/100","v":{"v":0.0605,"d":"6.05%"}},{"$f":"Actif!$E$32/100","v":{"v":0.47350000000000003,"d":"47.35%"}},{"$f":"Actif!$E$33/100","v":{"v":0.0585,"d":"5.85%"}},{"$f":"Actif!$E$29/100","v":{"v":0.027999999999999997,"d":"2.80%"}}]
[null,"#98",62,2026,"F","A_CAPI",{"v":0.44999999999999996,"d":"0.45"},{"v":0.38999999999999996,"d":"0.39"},0.6,0.6,85,0,{"$f":"ROUND(Primes!$M$10*V187,2)","v":{"v":0.3,"d":"0.30"}},0,4207.614018389534,{"$f":"'BP Financier'!$C$44*('BP Financier'!$C$22/('BP Financier'!$C$16+'BP Financier'!$C$19+'BP Financier'!$C$22))*$V187*X187/(1-$W187)","v":535.568310357599},{"$f":"'BP Financier'!$C$44*('BP Financier'!$C$22/('BP Financier'!$C$16+'BP Financier'!$C$19+'BP Financier'!$C$22))*$V187*Y187/(1-$W187)","v":358.0318538854667},{"$f":"'BP Financier'!$C$44*('BP Financier'!$C$22/('BP Financier'!$C$16+'BP Financier'!$C$19+'BP Financier'!$C$22))*$V187*Z187/(1-$W187)","v":2802.1170713184874},{"$f":"'BP Financier'!$C$44*('BP Financier'!$C$22/('BP Financier'!$C$16+'BP Financier'!$C$19+'BP Financier'!$C$22))*$V187*AA187/(1-$W187)","v":346.1960901206579},{"$f":"'BP Financier'!$C$44*('BP Financier'!$C$22/('BP Financier'!$C$16+'BP Financier'!$C$19+'BP Financier'!$C$22))*$V187*AB187/(1-$W187)","v":165.7006927073234},null,{"v":0.03,"d":"3.00%"},{"$f":"Actif!$E$28/100","v":{"v":0.28900000000000003,"d":"28.90%"}},{"$f":"Actif!$E$30/100","v":{"v":0.09050000000000001,"d":"9.05%"}},{"$f":"Actif!$E$31/100","v":{"v":0.0605,"d":"6.05%"}},{"$f":"Actif!$E$32/100","v":{"v":0.47350000000000003,"d":"47.35%"}},{"$f":"Actif!$E$33/100","v":{"v":0.0585,"d":"5.85%"}},{"$f":"Actif!$E$29/100","v":{"v":0.027999999999999997,"d":"2.80%"}}]
[null,"#99",63,2026,"H","A_CAPI",{"v":0.44999999999999996,"d":"0.45"},{"v":0.38999999999999996,"d":"0.39"},0.6,0.6,85,0,{"$f":"ROUND(Primes!$M$10*V188,2)","v":{"v":0.3,"d":"0.30"}},0,4207.614018389534,{"$f":"'BP Financier'!$C$44*('BP Financier'!$C$22/('BP Financier'!$C$16+'BP Financier'!$C$19+'BP Financier'!$C$22))*$V188*X188/(1-$W188)","v":535.568310357599},{"$f":"'BP Financier'!$C$44*('BP Financier'!$C$22/('BP Financier'!$C$16+'BP Financier'!$C$19+'BP Financier'!$C$22))*$V188*Y188/(1-$W188)","v":358.0318538854667},{"$f":"'BP Financier'!$C$44*('BP Financier'!$C$22/('BP Financier'!$C$16+'BP Financier'!$C$19+'BP Financier'!$C$22))*$V188*Z188/(1-$W188)","v":2802.1170713184874},{"$f":"'BP Financier'!$C$44*('BP Financier'!$C$22/('BP Financier'!$C$16+'BP Financier'!$C$19+'BP Financier'!$C$22))*$V188*AA188/(1-$W188)","v":346.1960901206579},{"$f":"'BP Financier'!$C$44*('BP Financier'!$C$22/('BP Financier'!$C$16+'BP Financier'!$C$19+'BP Financier'!$C$22))*$V188*AB188/(1-$W188)","v":165.7006927073234},null,{"v":0.03,"d":"3.00%"},{"$f":"Actif!$E$28/100","v":{"v":0.28900000000000003,"d":"28.90%"}},{"$f":"Actif!$E$30/100","v":{"v":0.09050000000000001,"d":"9.05%"}},{"$f":"Actif!$E$31/100","v":{"v":0.0605,"d":"6.05%"}},{"$f":"Actif!$E$32/100","v":{"v":0.47350000000000003,"d":"47.35%"}},{"$f":"Actif!$E$33/100","v":{"v":0.0585,"d":"5.85%"}},{"$f":"Actif!$E$29/100","v":{"v":0.027999999999999997,"d":"2.80%"}}]
[null,"#100",64,2026,"H","A_CAPI",{"v":0.44999999999999996,"d":"0.45"},{"v":0.38999999999999996,"d":"0.39"},0.6,0.6,85,0,{"$f":"ROUND(Primes!$M$10*V189,2)","v":{"v":0.3,"d":"0.30"}},0,4207.614018389534,{"$f":"'BP Financier'!$C$44*('BP Financier'!$C$22/('BP Financier'!$C$16+'BP Financier'!$C$19+'BP Financier'!$C$22))*$V189*X189/(1-$W189)","v":535.568310357599},{"$f":"'BP Financier'!$C$44*('BP Financier'!$C$22/('BP Financier'!$C$16+'BP Financier'!$C$19+'BP Financier'!$C$22))*$V189*Y189/(1-$W189)","v":358.0318538854667},{"$f":"'BP Financier'!$C$44*('BP Financier'!$C$22/('BP Financier'!$C$16+'BP Financier'!$C$19+'BP Financier'!$C$22))*$V189*Z189/(1-$W189)","v":2802.1170713184874},{"$f":"'BP Financier'!$C$44*('BP Financier'!$C$22/('BP Financier'!$C$16+'BP Financier'!$C$19+'BP Financier'!$C$22))*$V189*AA189/(1-$W189)","v":346.1960901206579},{"$f":"'BP Financier'!$C$44*('BP Financier'!$C$22/('BP Financier'!$C$16+'BP Financier'!$C$19+'BP Financier'!$C$22))*$V189*AB189/(1-$W189)","v":165.7006927073234},null,{"v":0.03,"d":"3.00%"},{"$f":"Actif!$E$28/100","v":{"v":0.28900000000000003,"d":"28.90%"}},{"$f":"Actif!$E$30/100","v":{"v":0.09050000000000001,"d":"9.05%"}},{"$f":"Actif!$E$31/100","v":{"v":0.0605,"d":"6.05%"}},{"$f":"Actif!$E$32/100","v":{"v":0.47350000000000003,"d":"47.35%"}},{"$f":"Actif!$E$33/100","v":{"v":0.0585,"d":"5.85%"}},{"$f":"Actif!$E$29/100","v":{"v":0.027999999999999997,"d":"2.80%"}}]
[null,"#101",65,2026,"F","A_CAPI",{"v":0.44999999999999996,"d":"0.45"},{"v":0.38999999999999996,"d":"0.39"},0.6,0.6,85,0,{"$f":"ROUND(Primes!$M$10*V190,2)","v":{"v":0.3,"d":"0.30"}},0,4207.614018389534,{"$f":"'BP Financier'!$C$44*('BP Financier'!$C$22/('BP Financier'!$C$16+'BP Financier'!$C$19+'BP Financier'!$C$22))*$V190*X190/(1-$W190)","v":535.568310357599},{"$f":"'BP Financier'!$C$44*('BP Financier'!$C$22/('BP Financier'!$C$16+'BP Financier'!$C$19+'BP Financier'!$C$22))*$V190*Y190/(1-$W190)","v":358.0318538854667},{"$f":"'BP Financier'!$C$44*('BP Financier'!$C$22/('BP Financier'!$C$16+'BP Financier'!$C$19+'BP Financier'!$C$22))*$V190*Z190/(1-$W190)","v":2802.1170713184874},{"$f":"'BP Financier'!$C$44*('BP Financier'!$C$22/('BP Financier'!$C$16+'BP Financier'!$C$19+'BP Financier'!$C$22))*$V190*AA190/(1-$W190)","v":346.1960901206579},{"$f":"'BP Financier'!$C$44*('BP Financier'!$C$22/('BP Financier'!$C$16+'BP Financier'!$C$19+'BP Financier'!$C$22))*$V190*AB190/(1-$W190)","v":165.7006927073234},null,{"v":0.03,"d":"3.00%"},{"$f":"Actif!$E$28/100","v":{"v":0.28900000000000003,"d":"28.90%"}},{"$f":"Actif!$E$30/100","v":{"v":0.09050000000000001,"d":"9.05%"}},{"$f":"Actif!$E$31/100","v":{"v":0.0605,"d":"6.05%"}},{"$f":"Actif!$E$32/100","v":{"v":0.47350000000000003,"d":"47.35%"}},{"$f":"Actif!$E$33/100","v":{"v":0.0585,"d":"5.85%"}},{"$f":"Actif!$E$29/100","v":{"v":0.027999999999999997,"d":"2.80%"}}]
[null,"#102",70,2026,"H","A_CAPI",{"v":0.44999999999999996,"d":"0.45"},{"v":0.38999999999999996,"d":"0.39"},0.6,0.6,85,0,{"$f":"ROUND(Primes!$M$10*V191,2)","v":0.05},0,701.2690030649227,{"$f":"'BP Financier'!$C$44*('BP Financier'!$C$22/('BP Financier'!$C$16+'BP Financier'!$C$19+'BP Financier'!$C$22))*$V191*X191/(1-$W191)","v":89.26138505959985},{"$f":"'BP Financier'!$C$44*('BP Financier'!$C$22/('BP Financier'!$C$16+'BP Financier'!$C$19+'BP Financier'!$C$22))*$V191*Y191/(1-$W191)","v":59.671975647577796},{"$f":"'BP Financier'!$C$44*('BP Financier'!$C$22/('BP Financier'!$C$16+'BP Financier'!$C$19+'BP Financier'!$C$22))*$V191*Z191/(1-$W191)","v":467.0195118864147},{"$f":"'BP Financier'!$C$44*('BP Financier'!$C$22/('BP Financier'!$C$16+'BP Financier'!$C$19+'BP Financier'!$C$22))*$V191*AA191/(1-$W191)","v":57.69934835344299},{"$f":"'BP Financier'!$C$44*('BP Financier'!$C$22/('BP Financier'!$C$16+'BP Financier'!$C$19+'BP Financier'!$C$22))*$V191*AB191/(1-$W191)","v":27.616782117887237},null,{"v":0.005,"d":"0.50%"},{"$f":"Actif!$E$28/100","v":{"v":0.28900000000000003,"d":"28.90%"}},{"$f":"Actif!$E$30/100","v":{"v":0.09050000000000001,"d":"9.05%"}},{"$f":"Actif!$E$31/100","v":{"v":0.0605,"d":"6.05%"}},{"$f":"Actif!$E$32/100","v":{"v":0.47350000000000003,"d":"47.35%"}},{"$f":"Actif!$E$33/100","v":{"v":0.0585,"d":"5.85%"}},{"$f":"Actif!$E$29/100","v":{"v":0.027999999999999997,"d":"2.80%"}}]
[null,"#103",75,2026,"H","A_CAPI",{"v":0.44999999999999996,"d":"0.45"},{"v":0.38999999999999996,"d":"0.39"},0.6,0.6,85,0,{"$f":"ROUND(Primes!$M$10*V192,2)","v":0.05},0,701.2690030649227,{"$f":"'BP Financier'!$C$44*('BP Financier'!$C$22/('BP Financier'!$C$16+'BP Financier'!$C$19+'BP Financier'!$C$22))*$V192*X192/(1-$W192)","v":89.26138505959985},{"$f":"'BP Financier'!$C$44*('BP Financier'!$C$22/('BP Financier'!$C$16+'BP Financier'!$C$19+'BP Financier'!$C$22))*$V192*Y192/(1-$W192)","v":59.671975647577796},{"$f":"'BP Financier'!$C$44*('BP Financier'!$C$22/('BP Financier'!$C$16+'BP Financier'!$C$19+'BP Financier'!$C$22))*$V192*Z192/(1-$W192)","v":467.0195118864147},{"$f":"'BP Financier'!$C$44*('BP Financier'!$C$22/('BP Financier'!$C$16+'BP Financier'!$C$19+'BP Financier'!$C$22))*$V192*AA192/(1-$W192)","v":57.69934835344299},{"$f":"'BP Financier'!$C$44*('BP Financier'!$C$22/('BP Financier'!$C$16+'BP Financier'!$C$19+'BP Financier'!$C$22))*$V192*AB192/(1-$W192)","v":27.616782117887237},null,{"v":0.005,"d":"0.50%"},{"$f":"Actif!$E$28/100","v":{"v":0.28900000000000003,"d":"28.90%"}},{"$f":"Actif!$E$30/100","v":{"v":0.09050000000000001,"d":"9.05%"}},{"$f":"Actif!$E$31/100","v":{"v":0.0605,"d":"6.05%"}},{"$f":"Actif!$E$32/100","v":{"v":0.47350000000000003,"d":"47.35%"}},{"$f":"Actif!$E$33/100","v":{"v":0.0585,"d":"5.85%"}},{"$f":"Actif!$E$29/100","v":{"v":0.027999999999999997,"d":"2.80%"}}]
[null,"#104",80,2026,"F","A_CAPI",{"v":0.44999999999999996,"d":"0.45"},{"v":0.38999999999999996,"d":"0.39"},0.6,0.6,85,0,{"$f":"ROUND(Primes!$M$10*V193,2)","v":0.05},0,701.2690030649227,{"$f":"'BP Financier'!$C$44*('BP Financier'!$C$22/('BP Financier'!$C$16+'BP Financier'!$C$19+'BP Financier'!$C$22))*$V193*X193/(1-$W193)","v":89.26138505959985},{"$f":"'BP Financier'!$C$44*('BP Financier'!$C$22/('BP Financier'!$C$16+'BP Financier'!$C$19+'BP Financier'!$C$22))*$V193*Y193/(1-$W193)","v":59.671975647577796},{"$f":"'BP Financier'!$C$44*('BP Financier'!$C$22/('BP Financier'!$C$16+'BP Financier'!$C$19+'BP Financier'!$C$22))*$V193*Z193/(1-$W193)","v":467.0195118864147},{"$f":"'BP Financier'!$C$44*('BP Financier'!$C$22/('BP Financier'!$C$16+'BP Financier'!$C$19+'BP Financier'!$C$22))*$V193*AA193/(1-$W193)","v":57.69934835344299},{"$f":"'BP Financier'!$C$44*('BP Financier'!$C$22/('BP Financier'!$C$16+'BP Financier'!$C$19+'BP Financier'!$C$22))*$V193*AB193/(1-$W193)","v":27.616782117887237},null,{"v":0.005,"d":"0.50%"},{"$f":"Actif!$E$28/100","v":{"v":0.28900000000000003,"d":"28.90%"}},{"$f":"Actif!$E$30/100","v":{"v":0.09050000000000001,"d":"9.05%"}},{"$f":"Actif!$E$31/100","v":{"v":0.0605,"d":"6.05%"}},{"$f":"Actif!$E$32/100","v":{"v":0.47350000000000003,"d":"47.35%"}},{"$f":"Actif!$E$33/100","v":{"v":0.0585,"d":"5.85%"}},{"$f":"Actif!$E$29/100","v":{"v":0.027999999999999997,"d":"2.80%"}}]
[null,"#105",85,2026,"H","A_CAPI",{"v":0.44999999999999996,"d":"0.45"},{"v":0.38999999999999996,"d":"0.39"},0.6,0.6,85,0,{"$f":"ROUND(Primes!$M$10*V194,2)","v":0.03},0,350.63450153246134,{"$f":"'BP Financier'!$C$44*('BP Financier'!$C$22/('BP Financier'!$C$16+'BP Financier'!$C$19+'BP Financier'!$C$22))*$V194*X194/(1-$W194)","v":44.63069252979992},{"$f":"'BP Financier'!$C$44*('BP Financier'!$C$22/('BP Financier'!$C$16+'BP Financier'!$C$19+'BP Financier'!$C$22))*$V194*Y194/(1-$W194)","v":29.835987823788898},{"$f":"'BP Financier'!$C$44*('BP Financier'!$C$22/('BP Financier'!$C$16+'BP Financier'!$C$19+'BP Financier'!$C$22))*$V194*Z194/(1-$W194)","v":233.50975594320735},{"$f":"'BP Financier'!$C$44*('BP Financier'!$C$22/('BP Financier'!$C$16+'BP Financier'!$C$19+'BP Financier'!$C$22))*$V194*AA194/(1-$W194)","v":28.849674176721496},{"$f":"'BP Financier'!$C$44*('BP Financier'!$C$22/('BP Financier'!$C$16+'BP Financier'!$C$19+'BP Financier'!$C$22))*$V194*AB194/(1-$W194)","v":13.808391058943618},null,{"v":0.0025,"d":"0.25%"},{"$f":"Actif!$E$28/100","v":{"v":0.28900000000000003,"d":"28.90%"}},{"$f":"Actif!$E$30/100","v":{"v":0.09050000000000001,"d":"9.05%"}},{"$f":"Actif!$E$31/100","v":{"v":0.0605,"d":"6.05%"}},{"$f":"Actif!$E$32/100","v":{"v":0.47350000000000003,"d":"47.35%"}},{"$f":"Actif!$E$33/100","v":{"v":0.0585,"d":"5.85%"}},{"$f":"Actif!$E$29/100","v":{"v":0.027999999999999997,"d":"2.80%"}}]
[null,"#106",90,2026,"H","A_CAPI",{"v":0.44999999999999996,"d":"0.45"},{"v":0.38999999999999996,"d":"0.39"},0.6,0.6,85,0,{"$f":"ROUND(Primes!$M$10*V195,2)","v":0.03},0,350.63450153246134,{"$f":"'BP Financier'!$C$44*('BP Financier'!$C$22/('BP Financier'!$C$16+'BP Financier'!$C$19+'BP Financier'!$C$22))*$V195*X195/(1-$W195)","v":44.63069252979992},{"$f":"'BP Financier'!$C$44*('BP Financier'!$C$22/('BP Financier'!$C$16+'BP Financier'!$C$19+'BP Financier'!$C$22))*$V195*Y195/(1-$W195)","v":29.835987823788898},{"$f":"'BP Financier'!$C$44*('BP Financier'!$C$22/('BP Financier'!$C$16+'BP Financier'!$C$19+'BP Financier'!$C$22))*$V195*Z195/(1-$W195)","v":233.50975594320735},{"$f":"'BP Financier'!$C$44*('BP Financier'!$C$22/('BP Financier'!$C$16+'BP Financier'!$C$19+'BP Financier'!$C$22))*$V195*AA195/(1-$W195)","v":28.849674176721496},{"$f":"'BP Financier'!$C$44*('BP Financier'!$C$22/('BP Financier'!$C$16+'BP Financier'!$C$19+'BP Financier'!$C$22))*$V195*AB195/(1-$W195)","v":13.808391058943618},null,{"v":0.0025,"d":"0.25%"},{"$f":"Actif!$E$28/100","v":{"v":0.28900000000000003,"d":"28.90%"}},{"$f":"Actif!$E$30/100","v":{"v":0.09050000000000001,"d":"9.05%"}},{"$f":"Actif!$E$31/100","v":{"v":0.0605,"d":"6.05%"}},{"$f":"Actif!$E$32/100","v":{"v":0.47350000000000003,"d":"47.35%"}},{"$f":"Actif!$E$33/100","v":{"v":0.0585,"d":"5.85%"}},{"$f":"Actif!$E$29/100","v":{"v":0.027999999999999997,"d":"2.80%"}}]
[null,"#107"]
[null,"#108"]
[null,"#109"]
[null,"#110"]
[null,"#111"]
[null,"#112"]
[null,"#113"]
[null,"#114"]
[null,"#115"]
[null,"#116"]
[null,"#117"]
[null,"#118"]
[null,"#119"]
[null,"#120"]
[null,"#121"]
[null,"#122"]
[null,"#123"]
[null,"#124"]
[null,"#125"]
[null,"#126"]
[null,"#127"]
[null,"#128"]
[null,"#129"]
[null,"#130"]
[null,"#131"]
[null,"#132"]
[null,"#133"]
[null,"#134"]
[null,"#135"]
[null,"#136"]
[null,"#137"]
[null,"#138"]
[null,"#139"]
[null,"#140"]
[null,"#141"]
[null,"#142"]
[null,"#143"]
[null,"#144"]
[null,"#145"]
[null,"#146"]
[null,"#147"]
[null,"#148"]
[null,"#149"]
[null,"#150"]
[null,"#151"]
[null,"#152"]
[null,"#153"]
[null,"#154"]
[null,"#155"]
[null,"#156"]
[null,"#157"]
[null,"#158"]
[null,"#159"]
[null,"#160"]
[null,"#161"]
[null,"#162"]
[null,"#163"]
[null,"#164"]
[null,"#165"]
[null,"#166"]
[null,"#167"]
[null,"#168"]
[null,"#169"]
[null,"#170"]
[null,"#171"]
[null,"#172"]
[null,"#173"]
[null,"#174"]
[null,"#175"]
[null,"#176"]
[null,"#177"]
[null,"#178"]
[null,"#179"]
[null,"#180"]
[null,"#181"]
[null,"#182"]
[null,"#183"]
[null,"#184"]
[null,"#185"]
[null,"#186"]
[null,"#187"]
[null,"#188"]
[null,"#189"]
[null,"#190"]
[null,"#191"]
[null,"#192"]
[null,"#193"]
[null,"#194"]
[null,"#195"]
[null,"#196"]
[null,"#197"]
[null,"#198"]
[null,"#199"]
[null,"#200"]
[null,"#201"]
[null,"#202"]
[null,"#203"]
[null,"#204"]
[null,"#205"]
[null,"#206"]
[null,"#207"]
[null,"#208"]
[null,"#209"]
[null,"#210"]
[null,"#211"]
[null,"#212"]
[null,"#213"]
[null,"#214"]
[null,"#215"]
[null,"#216"]
[null,"#217"]
[null,"#218"]
[null,"#219"]
[null,"#220"]
[null,"#221"]
[null,"#222"]
[null,"#223"]
[null,"#224"]
[null,"#225"]
[null,"#226"]
[null,"#227"]
[null,"#228"]
[null,"#229"]
[null,"#230"]
[null,"#231"]
[null,"#232"]
[null,"#233"]
[null,"#234"]
[null,"#235"]
[null,"#236"]
[null,"#237"]
[null,"#238"]
[null,"#239"]
[null,"#240"]
[null,"#241"]
[null,"#242"]
[null,"#243"]
[null,"#244"]
[null,"#245"]
[null,"#246"]
[null,"#247"]
[null,"#248"]
[null,"#249"]
[null,"#250"]
[null,"#251"]
[null,"#252"]
[null,"#253"]
[null,"#254"]
[null,"#255"]
[null,"#256"]
[null,"#257"]
[null,"#258"]
[null,"#259"]
[null,"#260"]
[null,"#261"]
[null,"#262"]
[null,"#263"]
[null,"#264"]
[null,"#265"]
[null,"#266"]
[null,"#267"]
[null,"#268"]
[null,"#269"]
[null,"#270"]
[null,"#271"]
[null,"#272"]
[null,"#273"]
[null,"#274"]
[null,"#275"]
[null,"#276"]
[null,"#277"]
[null,"#278"]
[null,"#279"]
[null,"#280"]
[null,"#281"]
[null,"#282"]
[null,"#283"]
[null,"#284"]
[null,"#285"]
[null,"#286"]
[null,"#287"]
[null,"#288"]
[null,"#289"]
[null,"#290"]
[null,"#291"]
[null,"#292"]
[null,"#293"]
[null,"#294"]
[null,"#295"]
[null,"#296"]
[null,"#297"]
[null,"#298"]
[null,"#299"]
[null,"#300"]
[null,"#301"]
[null,"#302"]
[null,"#303"]
[null,"#304"]
[null,"#305"]
[null,"#306"]
[null,"#307"]
[null,"#308"]
[null,"#309"]
[null,"#310"]
[null,"#311"]
[null,"#312"]
[null,"#313"]
[null,"#314"]
[null,"#315"]
[null,"#316"]
[null,"#317"]
[null,"#318"]
[null,"#319"]
[null,"#320"]
[null,"#321"]
[null,"#322"]
[null,"#323"]
[null,"#324"]
[null,"#325"]
[null,"#326"]
[null,"#327"]
[null,"#328"]
[null,"#329"]
[null,"#330"]
[null,"#331"]
[null,"#332"]
[null,"#333"]
[null,"#334"]
[null,"#335"]
[null,"#336"]
[null,"#337"]
[null,"#338"]
[null,"#339"]
[null,"#340"]
[null,"#341"]
[null,"#342"]
[null,"#343"]
[null,"#344"]
[null,"#345"]
[null,"#346"]
[null,"#347"]
[null,"#348"]
[null,"#349"]
[null,"#350"]
[null,"#351"]
[null,"#352"]
[null,"#353"]
[null,"#354"]
[null,"#355"]
[null,"#356"]
[null,"#357"]
[null,"#358"]
[null,"#359"]
[null,"#360"]
[null,"#361"]
[null,"#362"]
[null,"#363"]
[null,"#364"]
[null,"#365"]
[null,"#366"]
[null,"#367"]
[null,"#368"]
[null,"#369"]
[null,"#370"]
[null,"#371"]
[null,"#372"]
[null,"#373"]
[null,"#374"]
[null,"#375"]
[null,"#376"]
[null,"#377"]
[null,"#378"]
[null,"#379"]
[null,"#380"]
[null,"#381"]
[null,"#382"]
[null,"#383"]
[null,"#384"]
[null,"#385"]
[null,"#386"]
[null,"#387"]
[null,"#388"]
[null,"#389"]
[null,"#390"]
[null,"#391"]
[null,"#392"]
[null,"#393"]
[null,"#394"]
[null,"#395"]
[null,"#396"]
[null,"#397"]
[null,"#398"]
[null,"#399"]
[null,"#400"]
[null,"#401"]
[null,"#402"]
[null,"#403"]
[null,"#404"]
[null,"#405"]
[null,"#406"]
[null,"#407"]
[null,"#408"]
[null,"#409"]
[null,"#410"]
[null,"#411"]
[null,"#412"]
[null,"#413"]
[null,"#414"]
[null,"#415"]
[null,"#416"]
[null,"#417"]
[null,"#418"]
[null,"#419"]
[null,"#420"]
[null,"#421"]
[null,"#422"]
[null,"#423"]
[null,"#424"]
[null,"#425"]
[null,"#426"]
[null,"#427"]
[null,"#428"]
[null,"#429"]
[null,"#430"]
[null,"#431"]
[null,"#432"]
[null,"#433"]
[null,"#434"]
[null,"#435"]
[null,"#436"]
[null,"#437"]
[null,"#438"]
[null,"#439"]
[null,"#440"]
[null,"#441"]
[null,"#442"]
[null,"#443"]
[null,"#444"]
[null,"#445"]
[null,"#446"]
[null,"#447"]
[null,"#448"]
[null,"#449"]
[null,"#450"]
[null,"#451"]
[null,"#452"]
[null,"#453"]
[null,"#454"]
[null,"#455"]
[null,"#456"]
[null,"#457"]
[null,"#458"]
[null,"#459"]
[null,"#460"]
[null,"#461"]
[null,"#462"]
[null,"#463"]
[null,"#464"]
[null,"#465"]
[null,"#466"]
[null,"#467"]
[null,"#468"]
[null,"#469"]
[null,"#470"]
[null,"#471"]
[null,"#472"]
[null,"#473"]
[null,"#474"]
[null,"#475"]
[null,"#476"]
[null,"#477"]
[null,"#478"]
[null,"#479"]
[null,"#480"]
[null,"#481"]
[null,"#482"]
[null,"#483"]
[null,"#484"]
[null,"#485"]
[null,"#486"]
[null,"#487"]
[null,"#488"]
[null,"#489"]
[null,"#490"]
[null,"#491"]
[null,"#492"]
[null,"#493"]
[null,"#494"]
[null,"#495"]
[null,"#496"]
[null,"#497"]
[null,"#498"]
[null,"#499"]
[null,"#500"]
[null,"#501"]
[null,"#502"]
[null,"#503"]
[null,"#504"]
[null,"#505"]
[null,"#506"]
[null,"#507"]
[null,"#508"]
[null,"#509"]
[null,"#510"]
[null,"#511"]
[null,"#512"]
[null,"#513"]
[null,"#514"]
[null,"#515"]
[null,"#516"]
[null,"#517"]
[null,"#518"]
[null,"#519"]
[null,"#520"]
[null,"#521"]
[null,"#522"]
[null,"#523"]
[null,"#524"]
[null,"#525"]
[null,"#526"]
[null,"#527"]
[null,"#528"]
[null,"#529"]
[null,"#530"]
[null,"#531"]
[null,"#532"]
[null,"#533"]
[null,"#534"]
[null,"#535"]
[null,"#536"]
[null,"#537"]
[null,"#538"]
[null,"#539"]
[null,"#540"]
[null,"#541"]
[null,"#542"]
[null,"#543"]
[null,"#544"]
[null,"#545"]
[null,"#546"]
[null,"#547"]
[null,"#548"]
[null,"#549"]
[null,"#550"]
[null,"#551"]
[null,"#552"]
[null,"#553"]
[null,"#554"]
[null,"#555"]
[null,"#556"]
[null,"#557"]
[null,"#558"]
[null,"#559"]
[null,"#560"]
[null,"#561"]
[null,"#562"]
[null,"#563"]
[null,"#564"]
[null,"#565"]
[null,"#566"]
[null,"#567"]
[null,"#568"]
[null,"#569"]
[null,"#570"]
[null,"#571"]
[null,"#572"]
[null,"#573"]
[null,"#574"]
[null,"#575"]
[null,"#576"]
[null,"#577"]
[null,"#578"]
[null,"#579"]
[null,"#580"]
[null,"#581"]
[null,"#582"]
[null,"#583"]
[null,"#584"]
[null,"#585"]
[null,"#586"]
[null,"#587"]
[null,"#588"]
[null,"#589"]
[null,"#590"]
[null,"#591"]
[null,"#592"]
[null,"#593"]
[null,"#594"]
[null,"#595"]
[null,"#596"]
[null,"#597"]
[null,"#598"]
[null,"#599"]
[null,"#600"]
[null,"#601"]
[null,"#602"]
[null,"#603"]
[null,"#604"]
[null,"#605"]
[null,"#606"]
[null,"#607"]
[null,"#608"]
[null,"#609"]
[null,"#610"]
[null,"#611"]
[null,"#612"]
[null,"#613"]
[null,"#614"]
[null,"#615"]
[null,"#616"]
[null,"#617"]
[null,"#618"]
[null,"#619"]
[null,"#620"]
[null,"#621"]
[null,"#622"]
[null,"#623"]
[null,"#624"]
[null,"#625"]
[null,"#626"]
[null,"#627"]
[null,"#628"]
[null,"#629"]
[null,"#630"]
[null,"#631"]
[null,"#632"]
[null,"#633"]
[null,"#634"]
[null,"#635"]
[null,"#636"]
[null,"#637"]
[null,"#638"]
[null,"#639"]
[null,"#640"]
[null,"#641"]
[null,"#642"]
[null,"#643"]
[null,"#644"]
[null,"#645"]
[null,"#646"]
[null,"#647"]
[null,"#648"]
[null,"#649"]
[null,"#650"]
[null,"#651"]
[null,"#652"]
[null,"#653"]
[null,"#654"]
[null,"#655"]
[null,"#656"]
[null,"#657"]
[null,"#658"]
[null,"#659"]
[null,"#660"]
[null,"#661"]
[null,"#662"]
[null,"#663"]
[null,"#664"]
[null,"#665"]
[null,"#666"]
[null,"#667"]
[null,"#668"]
[null,"#669"]
[null,"#670"]
[null,"#671"]
[null,"#672"]
[null,"#673"]
[null,"#674"]
[null,"#675"]
[null,"#676"]
[null,"#677"]
[null,"#678"]
[null,"#679"]
[null,"#680"]
[null,"#681"]
[null,"#682"]
[null,"#683"]
[null,"#684"]
[null,"#685"]
[null,"#686"]
[null,"#687"]
[null,"#688"]
[null,"#689"]
[null,"#690"]
[null,"#691"]
[null,"#692"]
[null,"#693"]
[null,"#694"]
[null,"#695"]
[null,"#696"]
[null,"#697"]
[null,"#698"]
[null,"#699"]
[null,"#700"]
[null,"#701"]
[null,"#702"]
[null,"#703"]
[null,"#704"]
[null,"#705"]
[null,"#706"]
[null,"#707"]
[null,"#708"]
[null,"#709"]
[null,"#710"]
[null,"#711"]
[null,"#712"]
[null,"#713"]
[null,"#714"]
[null,"#715"]
[null,"#716"]
[null,"#717"]
[null,"#718"]
[null,"#719"]
[null,"#720"]
[null,"#721"]
[null,"#722"]
[null,"#723"]
[null,"#724"]
[null,"#725"]
[null,"#726"]
[null,"#727"]
[null,"#728"]
[null,"#729"]
[null,"#730"]
[null,"#731"]
[null,"#732"]
[null,"#733"]
[null,"#734"]
[null,"#735"]
[null,"#736"]
[null,"#737"]
[null,"#738"]
[null,"#739"]
[null,"#740"]
[null,"#741"]
[null,"#742"]
[null,"#743"]
[null,"#744"]
[null,"#745"]
[null,"#746"]
[null,"#747"]
[null,"#748"]
[null,"#749"]
[null,"#750"]
[null,"#751"]
[null,"#752"]
[null,"#753"]
[null,"#754"]
[null,"#755"]
[null,"#756"]
[null,"#757"]
[null,"#758"]
[null,"#759"]
[null,"#760"]
[null,"#761"]
[null,"#762"]
[null,"#763"]
[null,"#764"]
[null,"#765"]
[null,"#766"]
[null,"#767"]
[null,"#768"]
[null,"#769"]
[null,"#770"]
[null,"#771"]
[null,"#772"]
[null,"#773"]
[null,"#774"]
[null,"#775"]
[null,"#776"]
[null,"#777"]
[null,"#778"]
[null,"#779"]
[null,"#780"]
[null,"#781"]
[null,"#782"]
[null,"#783"]
[null,"#784"]
[null,"#785"]
[null,"#786"]
[null,"#787"]
[null,"#788"]
[null,"#789"]
[null,"#790"]
[null,"#791"]
[null,"#792"]
[null,"#793"]
[null,"#794"]
[null,"#795"]
[null,"#796"]
[null,"#797"]
[null,"#798"]
[null,"#799"]
[null,"#800"]
[null,"#801"]
[null,"#802"]
[null,"#803"]
[null,"#804"]
[null,"#805"]
[null,"#806"]
[null,"#807"]
[null,"#808"]
[null,"#809"]
[null,"#810"]
[null,"#811"]
[null,"#812"]
[null,"#813"]
[null,"#814"]
[null,"#815"]
[null,"#816"]
[null,"#817"]
[null,"#818"]
[null,"#819"]
[null,"#820"]
[null,"#821"]
[null,"#822"]
[null,"#823"]
[null,"#824"]
[null,"#825"]
[null,"#826"]
[null,"#827"]
[null,"#828"]
[null,"#829"]
[null,"#830"]
[null,"#831"]
[null,"#832"]
[null,"#833"]
[null,"#834"]
[null,"#835"]
[null,"#836"]
[null,"#837"]
[null,"#838"]
[null,"#839"]
[null,"#840"]
[null,"#841"]
[null,"#842"]
[null,"#843"]
[null,"#844"]
[null,"#845"]
[null,"#846"]
[null,"#847"]
[null,"#848"]
[null,"#849"]
[null,"#850"]
[null,"#851"]
[null,"#852"]
[null,"#853"]
[null,"#854"]
[null,"#855"]
[null,"#856"]
[null,"#857"]
[null,"#858"]
[null,"#859"]
[null,"#860"]
[null,"#861"]
[null,"#862"]
[null,"#863"]
[null,"#864"]
[null,"#865"]
[null,"#866"]
[null,"#867"]
[null,"#868"]
[null,"#869"]
[null,"#870"]
[null,"#871"]
[null,"#872"]
[null,"#873"]
[null,"#874"]
[null,"#875"]
[null,"#876"]
[null,"#877"]
[null,"#878"]
[null,"#879"]
[null,"#880"]
[null,"#881"]
[null,"#882"]
[null,"#883"]
[null,"#884"]
[null,"#885"]
[null,"#886"]
[null,"#887"]
[null,"#888"]
[null,"#889"]
[null,"#890"]
[null,"#891"]
[null,"#892"]
[null,"#893"]
[null,"#894"]
[null,"#895"]
[null,"#896"]
[null,"#897"]
[null,"#898"]
[null,"#899"]
[null,"#900"]
[null,"#901"]
[null,"#902"]
[null,"#903"]
[null,"#904"]
[null,"#905"]
[null,"#906"]
[null,"#907"]
[null,"#908"]
[null,"#909"]
[null,"#910"]
[null,"#911"]
[null,"#912"]
[null,"#913"]
[null,"#914"]
[null,"#915"]
[null,"#916"]
[null,"#917"]
[null,"#918"]
[null,"#919"]
[null,"#920"]
[null,"#921"]
[null,"#922"]
[null,"#923"]
[null,"#924"]
[null,"#925"]
[null,"#926"]
[null,"#927"]
[null,"#928"]
[null,"#929"]
[null,"#930"]
[null,"#931"]
[null,"#932"]
[null,"#933"]
[null,"#934"]
[null,"#935"]
[null,"#936"]
[null,"#937"]
[null,"#938"]
[null,"#939"]
[null,"#940"]
[null,"#941"]
[null,"#942"]
[null,"#943"]
[null,"#944"]
[null,"#945"]
[null,"#946"]
[null,"#947"]
[null,"#948"]
[null,"#949"]
[null,"#950"]
[null,"#951"]
[null,"#952"]
[null,"#953"]
[null,"#954"]
[null,"#955"]
[null,"#956"]
[null,"#957"]
[null,"#958"]
[null,"#959"]
[null,"#960"]
[null,"#961"]
[null,"#962"]
[null,"#963"]
[null,"#964"]
[null,"#965"]
[null,"#966"]
[null,"#967"]
[null,"#968"]
[null,"#969"]
[null,"#970"]
[null,"#971"]
[null,"#972"]
[null,"#973"]
[null,"#974"]
[null,"#975"]
[null,"#976"]
[null,"#977"]
[null,"#978"]
[null,"#979"]
[null,"#980"]
[null,"#981"]
[null,"#982"]
[null,"#983"]
[null,"#984"]
[null,"#985"]
[null,"#986"]
[null,"#987"]
[null,"#988"]
[null,"#989"]
[null,"#990"]
[null,"#991"]
[null,"#992"]
[null,"#993"]
[null,"#994"]
[null,"#995"]
[null,"#996"]
[null,"#997"]
[null,"#998"]
[null,"#999"]
[null,"#1000"]
[]
[null,"PER","Euro - UC","2027-12-31",{"$nulls":19},"Obligation","Dette Privée","Action","Private Equity","Obligation CT"]
[null,"ID","AGE","SOUSCRIPTION_YR","SEXE","PDT","CHGT_GEST_EURO_PC","CHGT_GEST_UC_PC","COMM_DIST_EURO_PC","COMM_DIST_UC_PC","CLAUSE_PB_PC","TMG_PC","NO_POLS","PM_EURO","PM_UC_TOT","PM_UC_1","PM_UC_2","PM_UC_3","PM_UC_4","PM_UC_5",null,"Pondération","%Euro","%UC1","%UC2","%UC3","%UC4","%UC5"]
[null,"#1",18,2026,"H","A_PER",{"$f":"frais_gestion_Euro*100","v":{"v":0.44999999999999996,"d":"0.45"}},{"$f":"frais_gestion_UC*100","v":{"v":0.38999999999999996,"d":"0.39"}},{"$f":"frais_distribution_FG*100","v":0.6},{"$f":"frais_distribution_UC*100","v":0.6},85,0,{"$f":"ROUND(Primes!$M$7*V1093,0)","v":2},{"$f":"'BP Financier'!$C$33*('BP Financier'!$C$19/('BP Financier'!$C$16+'BP Financier'!$C$19))*V1093","v":{"v":21039.215141358072,"d":"21,039"}},{"$f":"SUM(P1093:T1093)","v":{"v":11554.241669545865,"d":"11,554"}},{"$f":"'BP Financier'!$C$44*('BP Financier'!$C$19/('BP Financier'!$C$16+'BP Financier'!$C$19+'BP Financier'!$C$22))*$V1093*X1093/(1-$W1093)","v":{"v":1470.6875824105496,"d":"1,471"}},{"$f":"'BP Financier'!$C$44*('BP Financier'!$C$19/('BP Financier'!$C$16+'BP Financier'!$C$19+'BP Financier'!$C$22))*$V1093*Y1093/(1-$W1093)","v":{"v":983.166836860091,"d":"983"}},{"$f":"'BP Financier'!$C$44*('BP Financier'!$C$19/('BP Financier'!$C$16+'BP Financier'!$C$19+'BP Financier'!$C$22))*$V1093*Z1093/(1-$W1093)","v":{"v":7694.702433938069,"d":"7,695"}},{"$f":"'BP Financier'!$C$44*('BP Financier'!$C$19/('BP Financier'!$C$16+'BP Financier'!$C$19+'BP Financier'!$C$22))*$V1093*AA1093/(1-$W1093)","v":{"v":950.6654538233939,"d":"951"}},{"$f":"'BP Financier'!$C$44*('BP Financier'!$C$19/('BP Financier'!$C$16+'BP Financier'!$C$19+'BP Financier'!$C$22))*$V1093*AB1093/(1-$W1093)","v":{"v":455.0193625137611,"d":"455"}},null,{"v":0.005,"d":"0.50%"},{"$f":"Actif!$E$28/100","v":{"v":0.28900000000000003,"d":"28.90%"}},{"$f":"Actif!$E$30/100","v":{"v":0.09050000000000001,"d":"9.05%"}},{"$f":"Actif!$E$31/100","v":{"v":0.0605,"d":"6.05%"}},{"$f":"Actif!$E$32/100","v":{"v":0.47350000000000003,"d":"47.35%"}},{"$f":"Actif!$E$33/100","v":{"v":0.0585,"d":"5.85%"}},{"$f":"Actif!$E$29/100","v":{"v":0.027999999999999997,"d":"2.80%"}}]
[null,"#2",19,2026,"H","A_PER",{"v":0.44999999999999996,"d":"0.45"},{"v":0.38999999999999996,"d":"0.39"},0.6,0.6,85,0,{"$f":"ROUND(Primes!$M$7*V1094,0)","v":2},{"$f":"'BP Financier'!$C$33*('BP Financier'!$C$19/('BP Financier'!$C$16+'BP Financier'!$C$19))*V1094","v":{"v":21039.215141358072,"d":"21,039"}},{"$f":"SUM(P1094:T1094)","v":{"v":11554.241669545865,"d":"11,554"}},{"$f":"'BP Financier'!$C$44*('BP Financier'!$C$19/('BP Financier'!$C$16+'BP Financier'!$C$19+'BP Financier'!$C$22))*$V1094*X1094/(1-$W1094)","v":{"v":1470.6875824105496,"d":"1,471"}},{"$f":"'BP Financier'!$C$44*('BP Financier'!$C$19/('BP Financier'!$C$16+'BP Financier'!$C$19+'BP Financier'!$C$22))*$V1094*Y1094/(1-$W1094)","v":{"v":983.166836860091,"d":"983"}},{"$f":"'BP Financier'!$C$44*('BP Financier'!$C$19/('BP Financier'!$C$16+'BP Financier'!$C$19+'BP Financier'!$C$22))*$V1094*Z1094/(1-$W1094)","v":{"v":7694.702433938069,"d":"7,695"}},{"$f":"'BP Financier'!$C$44*('BP Financier'!$C$19/('BP Financier'!$C$16+'BP Financier'!$C$19+'BP Financier'!$C$22))*$V1094*AA1094/(1-$W1094)","v":{"v":950.6654538233939,"d":"951"}},{"$f":"'BP Financier'!$C$44*('BP Financier'!$C$19/('BP Financier'!$C$16+'BP Financier'!$C$19+'BP Financier'!$C$22))*$V1094*AB1094/(1-$W1094)","v":{"v":455.0193625137611,"d":"455"}},null,{"v":0.005,"d":"0.50%"},{"$f":"Actif!$E$28/100","v":{"v":0.28900000000000003,"d":"28.90%"}},{"$f":"Actif!$E$30/100","v":{"v":0.09050000000000001,"d":"9.05%"}},{"$f":"Actif!$E$31/100","v":{"v":0.0605,"d":"6.05%"}},{"$f":"Actif!$E$32/100","v":{"v":0.47350000000000003,"d":"47.35%"}},{"$f":"Actif!$E$33/100","v":{"v":0.0585,"d":"5.85%"}},{"$f":"Actif!$E$29/100","v":{"v":0.027999999999999997,"d":"2.80%"}}]
[null,"#3",20,2026,"F","A_PER",{"v":0.44999999999999996,"d":"0.45"},{"v":0.38999999999999996,"d":"0.39"},0.6,0.6,85,0,{"$f":"ROUND(Primes!$M$7*V1095,0)","v":2},{"$f":"'BP Financier'!$C$33*('BP Financier'!$C$19/('BP Financier'!$C$16+'BP Financier'!$C$19))*V1095","v":{"v":21039.215141358072,"d":"21,039"}},{"v":11554.241669545865,"d":"11,554"},{"$f":"'BP Financier'!$C$44*('BP Financier'!$C$19/('BP Financier'!$C$16+'BP Financier'!$C$19+'BP Financier'!$C$22))*$V1095*X1095/(1-$W1095)","v":{"v":1470.6875824105496,"d":"1,471"}},{"$f":"'BP Financier'!$C$44*('BP Financier'!$C$19/('BP Financier'!$C$16+'BP Financier'!$C$19+'BP Financier'!$C$22))*$V1095*Y1095/(1-$W1095)","v":{"v":983.166836860091,"d":"983"}},{"$f":"'BP Financier'!$C$44*('BP Financier'!$C$19/('BP Financier'!$C$16+'BP Financier'!$C$19+'BP Financier'!$C$22))*$V1095*Z1095/(1-$W1095)","v":{"v":7694.702433938069,"d":"7,695"}},{"$f":"'BP Financier'!$C$44*('BP Financier'!$C$19/('BP Financier'!$C$16+'BP Financier'!$C$19+'BP Financier'!$C$22))*$V1095*AA1095/(1-$W1095)","v":{"v":950.6654538233939,"d":"951"}},{"$f":"'BP Financier'!$C$44*('BP Financier'!$C$19/('BP Financier'!$C$16+'BP Financier'!$C$19+'BP Financier'!$C$22))*$V1095*AB1095/(1-$W1095)","v":{"v":455.0193625137611,"d":"455"}},null,{"v":0.005,"d":"0.50%"},{"$f":"Actif!$E$28/100","v":{"v":0.28900000000000003,"d":"28.90%"}},{"$f":"Actif!$E$30/100","v":{"v":0.09050000000000001,"d":"9.05%"}},{"$f":"Actif!$E$31/100","v":{"v":0.0605,"d":"6.05%"}},{"$f":"Actif!$E$32/100","v":{"v":0.47350000000000003,"d":"47.35%"}},{"$f":"Actif!$E$33/100","v":{"v":0.0585,"d":"5.85%"}},{"$f":"Actif!$E$29/100","v":{"v":0.027999999999999997,"d":"2.80%"}}]
[null,"#4",21,2026,"H","A_PER",{"v":0.44999999999999996,"d":"0.45"},{"v":0.38999999999999996,"d":"0.39"},0.6,0.6,85,0,{"$f":"ROUND(Primes!$M$7*V1096,0)","v":2},{"$f":"'BP Financier'!$C$33*('BP Financier'!$C$19/('BP Financier'!$C$16+'BP Financier'!$C$19))*V1096","v":{"v":21039.215141358072,"d":"21,039"}},{"v":11554.241669545865,"d":"11,554"},{"$f":"'BP Financier'!$C$44*('BP Financier'!$C$19/('BP Financier'!$C$16+'BP Financier'!$C$19+'BP Financier'!$C$22))*$V1096*X1096/(1-$W1096)","v":{"v":1470.6875824105496,"d":"1,471"}},{"$f":"'BP Financier'!$C$44*('BP Financier'!$C$19/('BP Financier'!$C$16+'BP Financier'!$C$19+'BP Financier'!$C$22))*$V1096*Y1096/(1-$W1096)","v":{"v":983.166836860091,"d":"983"}},{"$f":"'BP Financier'!$C$44*('BP Financier'!$C$19/('BP Financier'!$C$16+'BP Financier'!$C$19+'BP Financier'!$C$22))*$V1096*Z1096/(1-$W1096)","v":{"v":7694.702433938069,"d":"7,695"}},{"$f":"'BP Financier'!$C$44*('BP Financier'!$C$19/('BP Financier'!$C$16+'BP Financier'!$C$19+'BP Financier'!$C$22))*$V1096*AA1096/(1-$W1096)","v":{"v":950.6654538233939,"d":"951"}},{"$f":"'BP Financier'!$C$44*('BP Financier'!$C$19/('BP Financier'!$C$16+'BP Financier'!$C$19+'BP Financier'!$C$22))*$V1096*AB1096/(1-$W1096)","v":{"v":455.0193625137611,"d":"455"}},null,{"v":0.005,"d":"0.50%"},{"$f":"Actif!$E$28/100","v":{"v":0.28900000000000003,"d":"28.90%"}},{"$f":"Actif!$E$30/100","v":{"v":0.09050000000000001,"d":"9.05%"}},{"$f":"Actif!$E$31/100","v":{"v":0.0605,"d":"6.05%"}},{"$f":"Actif!$E$32/100","v":{"v":0.47350000000000003,"d":"47.35%"}},{"$f":"Actif!$E$33/100","v":{"v":0.0585,"d":"5.85%"}},{"$f":"Actif!$E$29/100","v":{"v":0.027999999999999997,"d":"2.80%"}}]
[null,"#5",22,2026,"H","A_PER",{"v":0.44999999999999996,"d":"0.45"},{"v":0.38999999999999996,"d":"0.39"},0.6,0.6,85,0,{"$f":"ROUND(Primes!$M$7*V1097,0)","v":2},{"$f":"'BP Financier'!$C$33*('BP Financier'!$C$19/('BP Financier'!$C$16+'BP Financier'!$C$19))*V1097","v":{"v":21039.215141358072,"d":"21,039"}},{"v":11554.241669545865,"d":"11,554"},{"$f":"'BP Financier'!$C$44*('BP Financier'!$C$19/('BP Financier'!$C$16+'BP Financier'!$C$19+'BP Financier'!$C$22))*$V1097*X1097/(1-$W1097)","v":{"v":1470.6875824105496,"d":"1,471"}},{"$f":"'BP Financier'!$C$44*('BP Financier'!$C$19/('BP Financier'!$C$16+'BP Financier'!$C$19+'BP Financier'!$C$22))*$V1097*Y1097/(1-$W1097)","v":{"v":983.166836860091,"d":"983"}},{"$f":"'BP Financier'!$C$44*('BP Financier'!$C$19/('BP Financier'!$C$16+'BP Financier'!$C$19+'BP Financier'!$C$22))*$V1097*Z1097/(1-$W1097)","v":{"v":7694.702433938069,"d":"7,695"}},{"$f":"'BP Financier'!$C$44*('BP Financier'!$C$19/('BP Financier'!$C$16+'BP Financier'!$C$19+'BP Financier'!$C$22))*$V1097*AA1097/(1-$W1097)","v":{"v":950.6654538233939,"d":"951"}},{"$f":"'BP Financier'!$C$44*('BP Financier'!$C$19/('BP Financier'!$C$16+'BP Financier'!$C$19+'BP Financier'!$C$22))*$V1097*AB1097/(1-$W1097)","v":{"v":455.0193625137611,"d":"455"}},null,{"v":0.005,"d":"0.50%"},{"$f":"Actif!$E$28/100","v":{"v":0.28900000000000003,"d":"28.90%"}},{"$f":"Actif!$E$30/100","v":{"v":0.09050000000000001,"d":"9.05%"}},{"$f":"Actif!$E$31/100","v":{"v":0.0605,"d":"6.05%"}},{"$f":"Actif!$E$32/100","v":{"v":0.47350000000000003,"d":"47.35%"}},{"$f":"Actif!$E$33/100","v":{"v":0.0585,"d":"5.85%"}},{"$f":"Actif!$E$29/100","v":{"v":0.027999999999999997,"d":"2.80%"}}]
[null,"#6",23,2026,"F","A_PER",{"v":0.44999999999999996,"d":"0.45"},{"v":0.38999999999999996,"d":"0.39"},0.6,0.6,85,0,{"$f":"ROUND(Primes!$M$7*V1098,0)","v":2},{"$f":"'BP Financier'!$C$33*('BP Financier'!$C$19/('BP Financier'!$C$16+'BP Financier'!$C$19))*V1098","v":{"v":21039.215141358072,"d":"21,039"}},{"v":11554.241669545865,"d":"11,554"},{"$f":"'BP Financier'!$C$44*('BP Financier'!$C$19/('BP Financier'!$C$16+'BP Financier'!$C$19+'BP Financier'!$C$22))*$V1098*X1098/(1-$W1098)","v":{"v":1470.6875824105496,"d":"1,471"}},{"$f":"'BP Financier'!$C$44*('BP Financier'!$C$19/('BP Financier'!$C$16+'BP Financier'!$C$19+'BP Financier'!$C$22))*$V1098*Y1098/(1-$W1098)","v":{"v":983.166836860091,"d":"983"}},{"$f":"'BP Financier'!$C$44*('BP Financier'!$C$19/('BP Financier'!$C$16+'BP Financier'!$C$19+'BP Financier'!$C$22))*$V1098*Z1098/(1-$W1098)","v":{"v":7694.702433938069,"d":"7,695"}},{"$f":"'BP Financier'!$C$44*('BP Financier'!$C$19/('BP Financier'!$C$16+'BP Financier'!$C$19+'BP Financier'!$C$22))*$V1098*AA1098/(1-$W1098)","v":{"v":950.6654538233939,"d":"951"}},{"$f":"'BP Financier'!$C$44*('BP Financier'!$C$19/('BP Financier'!$C$16+'BP Financier'!$C$19+'BP Financier'!$C$22))*$V1098*AB1098/(1-$W1098)","v":{"v":455.0193625137611,"d":"455"}},null,{"v":0.005,"d":"0.50%"},{"$f":"Actif!$E$28/100","v":{"v":0.28900000000000003,"d":"28.90%"}},{"$f":"Actif!$E$30/100","v":{"v":0.09050000000000001,"d":"9.05%"}},{"$f":"Actif!$E$31/100","v":{"v":0.0605,"d":"6.05%"}},{"$f":"Actif!$E$32/100","v":{"v":0.47350000000000003,"d":"47.35%"}},{"$f":"Actif!$E$33/100","v":{"v":0.0585,"d":"5.85%"}},{"$f":"Actif!$E$29/100","v":{"v":0.027999999999999997,"d":"2.80%"}}]
[null,"#7",24,2026,"H","A_PER",{"v":0.44999999999999996,"d":"0.45"},{"v":0.38999999999999996,"d":"0.39"},0.6,0.6,85,0,{"$f":"ROUND(Primes!$M$7*V1099,0)","v":2},{"$f":"'BP Financier'!$C$33*('BP Financier'!$C$19/('BP Financier'!$C$16+'BP Financier'!$C$19))*V1099","v":{"v":21039.215141358072,"d":"21,039"}},{"v":11554.241669545865,"d":"11,554"},{"$f":"'BP Financier'!$C$44*('BP Financier'!$C$19/('BP Financier'!$C$16+'BP Financier'!$C$19+'BP Financier'!$C$22))*$V1099*X1099/(1-$W1099)","v":{"v":1470.6875824105496,"d":"1,471"}},{"$f":"'BP Financier'!$C$44*('BP Financier'!$C$19/('BP Financier'!$C$16+'BP Financier'!$C$19+'BP Financier'!$C$22))*$V1099*Y1099/(1-$W1099)","v":{"v":983.166836860091,"d":"983"}},{"$f":"'BP Financier'!$C$44*('BP Financier'!$C$19/('BP Financier'!$C$16+'BP Financier'!$C$19+'BP Financier'!$C$22))*$V1099*Z1099/(1-$W1099)","v":{"v":7694.702433938069,"d":"7,695"}},{"$f":"'BP Financier'!$C$44*('BP Financier'!$C$19/('BP Financier'!$C$16+'BP Financier'!$C$19+'BP Financier'!$C$22))*$V1099*AA1099/(1-$W1099)","v":{"v":950.6654538233939,"d":"951"}},{"$f":"'BP Financier'!$C$44*('BP Financier'!$C$19/('BP Financier'!$C$16+'BP Financier'!$C$19+'BP Financier'!$C$22))*$V1099*AB1099/(1-$W1099)","v":{"v":455.0193625137611,"d":"455"}},null,{"v":0.005,"d":"0.50%"},{"$f":"Actif!$E$28/100","v":{"v":0.28900000000000003,"d":"28.90%"}},{"$f":"Actif!$E$30/100","v":{"v":0.09050000000000001,"d":"9.05%"}},{"$f":"Actif!$E$31/100","v":{"v":0.0605,"d":"6.05%"}},{"$f":"Actif!$E$32/100","v":{"v":0.47350000000000003,"d":"47.35%"}},{"$f":"Actif!$E$33/100","v":{"v":0.0585,"d":"5.85%"}},{"$f":"Actif!$E$29/100","v":{"v":0.027999999999999997,"d":"2.80%"}}]
[null,"#8",25,2026,"H","A_PER",{"v":0.44999999999999996,"d":"0.45"},{"v":0.38999999999999996,"d":"0.39"},0.6,0.6,85,0,{"$f":"ROUND(Primes!$M$7*V1100,0)","v":2},{"$f":"'BP Financier'!$C$33*('BP Financier'!$C$19/('BP Financier'!$C$16+'BP Financier'!$C$19))*V1100","v":{"v":21039.215141358072,"d":"21,039"}},{"v":11554.241669545865,"d":"11,554"},{"$f":"'BP Financier'!$C$44*('BP Financier'!$C$19/('BP Financier'!$C$16+'BP Financier'!$C$19+'BP Financier'!$C$22))*$V1100*X1100/(1-$W1100)","v":{"v":1470.6875824105496,"d":"1,471"}},{"$f":"'BP Financier'!$C$44*('BP Financier'!$C$19/('BP Financier'!$C$16+'BP Financier'!$C$19+'BP Financier'!$C$22))*$V1100*Y1100/(1-$W1100)","v":{"v":983.166836860091,"d":"983"}},{"$f":"'BP Financier'!$C$44*('BP Financier'!$C$19/('BP Financier'!$C$16+'BP Financier'!$C$19+'BP Financier'!$C$22))*$V1100*Z1100/(1-$W1100)","v":{"v":7694.702433938069,"d":"7,695"}},{"$f":"'BP Financier'!$C$44*('BP Financier'!$C$19/('BP Financier'!$C$16+'BP Financier'!$C$19+'BP Financier'!$C$22))*$V1100*AA1100/(1-$W1100)","v":{"v":950.6654538233939,"d":"951"}},{"$f":"'BP Financier'!$C$44*('BP Financier'!$C$19/('BP Financier'!$C$16+'BP Financier'!$C$19+'BP Financier'!$C$22))*$V1100*AB1100/(1-$W1100)","v":{"v":455.0193625137611,"d":"455"}},null,{"v":0.005,"d":"0.50%"},{"$f":"Actif!$E$28/100","v":{"v":0.28900000000000003,"d":"28.90%"}},{"$f":"Actif!$E$30/100","v":{"v":0.09050000000000001,"d":"9.05%"}},{"$f":"Actif!$E$31/100","v":{"v":0.0605,"d":"6.05%"}},{"$f":"Actif!$E$32/100","v":{"v":0.47350000000000003,"d":"47.35%"}},{"$f":"Actif!$E$33/100","v":{"v":0.0585,"d":"5.85%"}},{"$f":"Actif!$E$29/100","v":{"v":0.027999999999999997,"d":"2.80%"}}]
[null,"#9",26,2026,"F","A_PER",{"v":0.44999999999999996,"d":"0.45"},{"v":0.38999999999999996,"d":"0.39"},0.6,0.6,85,0,{"$f":"ROUND(Primes!$M$7*V1101,0)","v":5},{"$f":"'BP Financier'!$C$33*('BP Financier'!$C$19/('BP Financier'!$C$16+'BP Financier'!$C$19))*V1101","v":{"v":63117.64542407422,"d":"63,118"}},{"v":34662.72500863759,"d":"34,663"},{"$f":"'BP Financier'!$C$44*('BP Financier'!$C$19/('BP Financier'!$C$16+'BP Financier'!$C$19+'BP Financier'!$C$22))*$V1101*X1101/(1-$W1101)","v":{"v":4412.062747231648,"d":"4,412"}},{"$f":"'BP Financier'!$C$44*('BP Financier'!$C$19/('BP Financier'!$C$16+'BP Financier'!$C$19+'BP Financier'!$C$22))*$V1101*Y1101/(1-$W1101)","v":{"v":2949.500510580273,"d":"2,950"}},{"$f":"'BP Financier'!$C$44*('BP Financier'!$C$19/('BP Financier'!$C$16+'BP Financier'!$C$19+'BP Financier'!$C$22))*$V1101*Z1101/(1-$W1101)","v":{"v":23084.107301814205,"d":"23,084"}},{"$f":"'BP Financier'!$C$44*('BP Financier'!$C$19/('BP Financier'!$C$16+'BP Financier'!$C$19+'BP Financier'!$C$22))*$V1101*AA1101/(1-$W1101)","v":{"v":2851.9963614701815,"d":"2,852"}},{"$f":"'BP Financier'!$C$44*('BP Financier'!$C$19/('BP Financier'!$C$16+'BP Financier'!$C$19+'BP Financier'!$C$22))*$V1101*AB1101/(1-$W1101)","v":{"v":1365.0580875412832,"d":"1,365"}},null,{"v":0.015,"d":"1.50%"},{"$f":"Actif!$E$28/100","v":{"v":0.28900000000000003,"d":"28.90%"}},{"$f":"Actif!$E$30/100","v":{"v":0.09050000000000001,"d":"9.05%"}},{"$f":"Actif!$E$31/100","v":{"v":0.0605,"d":"6.05%"}},{"$f":"Actif!$E$32/100","v":{"v":0.47350000000000003,"d":"47.35%"}},{"$f":"Actif!$E$33/100","v":{"v":0.0585,"d":"5.85%"}},{"$f":"Actif!$E$29/100","v":{"v":0.027999999999999997,"d":"2.80%"}}]
[null,"#10",27,2026,"H","A_PER",{"v":0.44999999999999996,"d":"0.45"},{"v":0.38999999999999996,"d":"0.39"},0.6,0.6,85,0,{"$f":"ROUND(Primes!$M$7*V1102,0)","v":5},{"$f":"'BP Financier'!$C$33*('BP Financier'!$C$19/('BP Financier'!$C$16+'BP Financier'!$C$19))*V1102","v":{"v":63117.64542407422,"d":"63,118"}},{"v":34662.72500863759,"d":"34,663"},{"$f":"'BP Financier'!$C$44*('BP Financier'!$C$19/('BP Financier'!$C$16+'BP Financier'!$C$19+'BP Financier'!$C$22))*$V1102*X1102/(1-$W1102)","v":{"v":4412.062747231648,"d":"4,412"}},{"$f":"'BP Financier'!$C$44*('BP Financier'!$C$19/('BP Financier'!$C$16+'BP Financier'!$C$19+'BP Financier'!$C$22))*$V1102*Y1102/(1-$W1102)","v":{"v":2949.500510580273,"d":"2,950"}},{"$f":"'BP Financier'!$C$44*('BP Financier'!$C$19/('BP Financier'!$C$16+'BP Financier'!$C$19+'BP Financier'!$C$22))*$V1102*Z1102/(1-$W1102)","v":{"v":23084.107301814205,"d":"23,084"}},{"$f":"'BP Financier'!$C$44*('BP Financier'!$C$19/('BP Financier'!$C$16+'BP Financier'!$C$19+'BP Financier'!$C$22))*$V1102*AA1102/(1-$W1102)","v":{"v":2851.9963614701815,"d":"2,852"}},{"$f":"'BP Financier'!$C$44*('BP Financier'!$C$19/('BP Financier'!$C$16+'BP Financier'!$C$19+'BP Financier'!$C$22))*$V1102*AB1102/(1-$W1102)","v":{"v":1365.0580875412832,"d":"1,365"}},null,{"v":0.015,"d":"1.50%"},{"$f":"Actif!$E$28/100","v":{"v":0.28900000000000003,"d":"28.90%"}},{"$f":"Actif!$E$30/100","v":{"v":0.09050000000000001,"d":"9.05%"}},{"$f":"Actif!$E$31/100","v":{"v":0.0605,"d":"6.05%"}},{"$f":"Actif!$E$32/100","v":{"v":0.47350000000000003,"d":"47.35%"}},{"$f":"Actif!$E$33/100","v":{"v":0.0585,"d":"5.85%"}},{"$f":"Actif!$E$29/100","v":{"v":0.027999999999999997,"d":"2.80%"}}]
[null,"#11",28,2026,"H","A_PER",{"v":0.44999999999999996,"d":"0.45"},{"v":0.38999999999999996,"d":"0.39"},0.6,0.6,85,0,{"$f":"ROUND(Primes!$M$7*V1103,0)","v":5},{"$f":"'BP Financier'!$C$33*('BP Financier'!$C$19/('BP Financier'!$C$16+'BP Financier'!$C$19))*V1103","v":{"v":63117.64542407422,"d":"63,118"}},{"v":34662.72500863759,"d":"34,663"},{"$f":"'BP Financier'!$C$44*('BP Financier'!$C$19/('BP Financier'!$C$16+'BP Financier'!$C$19+'BP Financier'!$C$22))*$V1103*X1103/(1-$W1103)","v":{"v":4412.062747231648,"d":"4,412"}},{"$f":"'BP Financier'!$C$44*('BP Financier'!$C$19/('BP Financier'!$C$16+'BP Financier'!$C$19+'BP Financier'!$C$22))*$V1103*Y1103/(1-$W1103)","v":{"v":2949.500510580273,"d":"2,950"}},{"$f":"'BP Financier'!$C$44*('BP Financier'!$C$19/('BP Financier'!$C$16+'BP Financier'!$C$19+'BP Financier'!$C$22))*$V1103*Z1103/(1-$W1103)","v":{"v":23084.107301814205,"d":"23,084"}},{"$f":"'BP Financier'!$C$44*('BP Financier'!$C$19/('BP Financier'!$C$16+'BP Financier'!$C$19+'BP Financier'!$C$22))*$V1103*AA1103/(1-$W1103)","v":{"v":2851.9963614701815,"d":"2,852"}},{"$f":"'BP Financier'!$C$44*('BP Financier'!$C$19/('BP Financier'!$C$16+'BP Financier'!$C$19+'BP Financier'!$C$22))*$V1103*AB1103/(1-$W1103)","v":{"v":1365.0580875412832,"d":"1,365"}},null,{"v":0.015,"d":"1.50%"},{"$f":"Actif!$E$28/100","v":{"v":0.28900000000000003,"d":"28.90%"}},{"$f":"Actif!$E$30/100","v":{"v":0.09050000000000001,"d":"9.05%"}},{"$f":"Actif!$E$31/100","v":{"v":0.0605,"d":"6.05%"}},{"$f":"Actif!$E$32/100","v":{"v":0.47350000000000003,"d":"47.35%"}},{"$f":"Actif!$E$33/100","v":{"v":0.0585,"d":"5.85%"}},{"$f":"Actif!$E$29/100","v":{"v":0.027999999999999997,"d":"2.80%"}}]
[null,"#12",29,2026,"F","A_PER",{"v":0.44999999999999996,"d":"0.45"},{"v":0.38999999999999996,"d":"0.39"},0.6,0.6,85,0,{"$f":"ROUND(Primes!$M$7*V1104,0)","v":5},{"$f":"'BP Financier'!$C$33*('BP Financier'!$C$19/('BP Financier'!$C$16+'BP Financier'!$C$19))*V1104","v":{"v":63117.64542407422,"d":"63,118"}},{"v":34662.72500863759,"d":"34,663"},{"$f":"'BP Financier'!$C$44*('BP Financier'!$C$19/('BP Financier'!$C$16+'BP Financier'!$C$19+'BP Financier'!$C$22))*$V1104*X1104/(1-$W1104)","v":{"v":4412.062747231648,"d":"4,412"}},{"$f":"'BP Financier'!$C$44*('BP Financier'!$C$19/('BP Financier'!$C$16+'BP Financier'!$C$19+'BP Financier'!$C$22))*$V1104*Y1104/(1-$W1104)","v":{"v":2949.500510580273,"d":"2,950"}},{"$f":"'BP Financier'!$C$44*('BP Financier'!$C$19/('BP Financier'!$C$16+'BP Financier'!$C$19+'BP Financier'!$C$22))*$V1104*Z1104/(1-$W1104)","v":{"v":23084.107301814205,"d":"23,084"}},{"$f":"'BP Financier'!$C$44*('BP Financier'!$C$19/('BP Financier'!$C$16+'BP Financier'!$C$19+'BP Financier'!$C$22))*$V1104*AA1104/(1-$W1104)","v":{"v":2851.9963614701815,"d":"2,852"}},{"$f":"'BP Financier'!$C$44*('BP Financier'!$C$19/('BP Financier'!$C$16+'BP Financier'!$C$19+'BP Financier'!$C$22))*$V1104*AB1104/(1-$W1104)","v":{"v":1365.0580875412832,"d":"1,365"}},null,{"v":0.015,"d":"1.50%"},{"$f":"Actif!$E$28/100","v":{"v":0.28900000000000003,"d":"28.90%"}},{"$f":"Actif!$E$30/100","v":{"v":0.09050000000000001,"d":"9.05%"}},{"$f":"Actif!$E$31/100","v":{"v":0.0605,"d":"6.05%"}},{"$f":"Actif!$E$32/100","v":{"v":0.47350000000000003,"d":"47.35%"}},{"$f":"Actif!$E$33/100","v":{"v":0.0585,"d":"5.85%"}},{"$f":"Actif!$E$29/100","v":{"v":0.027999999999999997,"d":"2.80%"}}]
[null,"#13",30,2026,"H","A_PER",{"v":0.44999999999999996,"d":"0.45"},{"v":0.38999999999999996,"d":"0.39"},0.6,0.6,85,0,{"$f":"ROUND(Primes!$M$7*V1105,0)","v":5},{"$f":"'BP Financier'!$C$33*('BP Financier'!$C$19/('BP Financier'!$C$16+'BP Financier'!$C$19))*V1105","v":{"v":63117.64542407422,"d":"63,118"}},{"v":34662.72500863759,"d":"34,663"},{"$f":"'BP Financier'!$C$44*('BP Financier'!$C$19/('BP Financier'!$C$16+'BP Financier'!$C$19+'BP Financier'!$C$22))*$V1105*X1105/(1-$W1105)","v":{"v":4412.062747231648,"d":"4,412"}},{"$f":"'BP Financier'!$C$44*('BP Financier'!$C$19/('BP Financier'!$C$16+'BP Financier'!$C$19+'BP Financier'!$C$22))*$V1105*Y1105/(1-$W1105)","v":{"v":2949.500510580273,"d":"2,950"}},{"$f":"'BP Financier'!$C$44*('BP Financier'!$C$19/('BP Financier'!$C$16+'BP Financier'!$C$19+'BP Financier'!$C$22))*$V1105*Z1105/(1-$W1105)","v":{"v":23084.107301814205,"d":"23,084"}},{"$f":"'BP Financier'!$C$44*('BP Financier'!$C$19/('BP Financier'!$C$16+'BP Financier'!$C$19+'BP Financier'!$C$22))*$V1105*AA1105/(1-$W1105)","v":{"v":2851.9963614701815,"d":"2,852"}},{"$f":"'BP Financier'!$C$44*('BP Financier'!$C$19/('BP Financier'!$C$16+'BP Financier'!$C$19+'BP Financier'!$C$22))*$V1105*AB1105/(1-$W1105)","v":{"v":1365.0580875412832,"d":"1,365"}},null,{"v":0.015,"d":"1.50%"},{"$f":"Actif!$E$28/100","v":{"v":0.28900000000000003,"d":"28.90%"}},{"$f":"Actif!$E$30/100","v":{"v":0.09050000000000001,"d":"9.05%"}},{"$f":"Actif!$E$31/100","v":{"v":0.0605,"d":"6.05%"}},{"$f":"Actif!$E$32/100","v":{"v":0.47350000000000003,"d":"47.35%"}},{"$f":"Actif!$E$33/100","v":{"v":0.0585,"d":"5.85%"}},{"$f":"Actif!$E$29/100","v":{"v":0.027999999999999997,"d":"2.80%"}}]
[null,"#14",31,2026,"H","A_PER",{"v":0.44999999999999996,"d":"0.45"},{"v":0.38999999999999996,"d":"0.39"},0.6,0.6,85,0,{"$f":"ROUND(Primes!$M$7*V1106,0)","v":5},{"$f":"'BP Financier'!$C$33*('BP Financier'!$C$19/('BP Financier'!$C$16+'BP Financier'!$C$19))*V1106","v":{"v":63117.64542407422,"d":"63,118"}},{"v":34662.72500863759,"d":"34,663"},{"$f":"'BP Financier'!$C$44*('BP Financier'!$C$19/('BP Financier'!$C$16+'BP Financier'!$C$19+'BP Financier'!$C$22))*$V1106*X1106/(1-$W1106)","v":{"v":4412.062747231648,"d":"4,412"}},{"$f":"'BP Financier'!$C$44*('BP Financier'!$C$19/('BP Financier'!$C$16+'BP Financier'!$C$19+'BP Financier'!$C$22))*$V1106*Y1106/(1-$W1106)","v":{"v":2949.500510580273,"d":"2,950"}},{"$f":"'BP Financier'!$C$44*('BP Financier'!$C$19/('BP Financier'!$C$16+'BP Financier'!$C$19+'BP Financier'!$C$22))*$V1106*Z1106/(1-$W1106)","v":{"v":23084.107301814205,"d":"23,084"}},{"$f":"'BP Financier'!$C$44*('BP Financier'!$C$19/('BP Financier'!$C$16+'BP Financier'!$C$19+'BP Financier'!$C$22))*$V1106*AA1106/(1-$W1106)","v":{"v":2851.9963614701815,"d":"2,852"}},{"$f":"'BP Financier'!$C$44*('BP Financier'!$C$19/('BP Financier'!$C$16+'BP Financier'!$C$19+'BP Financier'!$C$22))*$V1106*AB1106/(1-$W1106)","v":{"v":1365.0580875412832,"d":"1,365"}},null,{"v":0.015,"d":"1.50%"},{"$f":"Actif!$E$28/100","v":{"v":0.28900000000000003,"d":"28.90%"}},{"$f":"Actif!$E$30/100","v":{"v":0.09050000000000001,"d":"9.05%"}},{"$f":"Actif!$E$31/100","v":{"v":0.0605,"d":"6.05%"}},{"$f":"Actif!$E$32/100","v":{"v":0.47350000000000003,"d":"47.35%"}},{"$f":"Actif!$E$33/100","v":{"v":0.0585,"d":"5.85%"}},{"$f":"Actif!$E$29/100","v":{"v":0.027999999999999997,"d":"2.80%"}}]
[null,"#15",32,2026,"F","A_PER",{"v":0.44999999999999996,"d":"0.45"},{"v":0.38999999999999996,"d":"0.39"},0.6,0.6,85,0,{"$f":"ROUND(Primes!$M$7*V1107,0)","v":5},{"$f":"'BP Financier'!$C$33*('BP Financier'!$C$19/('BP Financier'!$C$16+'BP Financier'!$C$19))*V1107","v":{"v":63117.64542407422,"d":"63,118"}},{"v":34662.72500863759,"d":"34,663"},{"$f":"'BP Financier'!$C$44*('BP Financier'!$C$19/('BP Financier'!$C$16+'BP Financier'!$C$19+'BP Financier'!$C$22))*$V1107*X1107/(1-$W1107)","v":{"v":4412.062747231648,"d":"4,412"}},{"$f":"'BP Financier'!$C$44*('BP Financier'!$C$19/('BP Financier'!$C$16+'BP Financier'!$C$19+'BP Financier'!$C$22))*$V1107*Y1107/(1-$W1107)","v":{"v":2949.500510580273,"d":"2,950"}},{"$f":"'BP Financier'!$C$44*('BP Financier'!$C$19/('BP Financier'!$C$16+'BP Financier'!$C$19+'BP Financier'!$C$22))*$V1107*Z1107/(1-$W1107)","v":{"v":23084.107301814205,"d":"23,084"}},{"$f":"'BP Financier'!$C$44*('BP Financier'!$C$19/('BP Financier'!$C$16+'BP Financier'!$C$19+'BP Financier'!$C$22))*$V1107*AA1107/(1-$W1107)","v":{"v":2851.9963614701815,"d":"2,852"}},{"$f":"'BP Financier'!$C$44*('BP Financier'!$C$19/('BP Financier'!$C$16+'BP Financier'!$C$19+'BP Financier'!$C$22))*$V1107*AB1107/(1-$W1107)","v":{"v":1365.0580875412832,"d":"1,365"}},null,{"v":0.015,"d":"1.50%"},{"$f":"Actif!$E$28/100","v":{"v":0.28900000000000003,"d":"28.90%"}},{"$f":"Actif!$E$30/100","v":{"v":0.09050000000000001,"d":"9.05%"}},{"$f":"Actif!$E$31/100","v":{"v":0.0605,"d":"6.05%"}},{"$f":"Actif!$E$32/100","v":{"v":0.47350000000000003,"d":"47.35%"}},{"$f":"Actif!$E$33/100","v":{"v":0.0585,"d":"5.85%"}},{"$f":"Actif!$E$29/100","v":{"v":0.027999999999999997,"d":"2.80%"}}]
[null,"#16",33,2026,"H","A_PER",{"v":0.44999999999999996,"d":"0.45"},{"v":0.38999999999999996,"d":"0.39"},0.6,0.6,85,0,{"$f":"ROUND(Primes!$M$7*V1108,0)","v":5},{"$f":"'BP Financier'!$C$33*('BP Financier'!$C$19/('BP Financier'!$C$16+'BP Financier'!$C$19))*V1108","v":{"v":63117.64542407422,"d":"63,118"}},{"v":34662.72500863759,"d":"34,663"},{"$f":"'BP Financier'!$C$44*('BP Financier'!$C$19/('BP Financier'!$C$16+'BP Financier'!$C$19+'BP Financier'!$C$22))*$V1108*X1108/(1-$W1108)","v":{"v":4412.062747231648,"d":"4,412"}},{"$f":"'BP Financier'!$C$44*('BP Financier'!$C$19/('BP Financier'!$C$16+'BP Financier'!$C$19+'BP Financier'!$C$22))*$V1108*Y1108/(1-$W1108)","v":{"v":2949.500510580273,"d":"2,950"}},{"$f":"'BP Financier'!$C$44*('BP Financier'!$C$19/('BP Financier'!$C$16+'BP Financier'!$C$19+'BP Financier'!$C$22))*$V1108*Z1108/(1-$W1108)","v":{"v":23084.107301814205,"d":"23,084"}},{"$f":"'BP Financier'!$C$44*('BP Financier'!$C$19/('BP Financier'!$C$16+'BP Financier'!$C$19+'BP Financier'!$C$22))*$V1108*AA1108/(1-$W1108)","v":{"v":2851.9963614701815,"d":"2,852"}},{"$f":"'BP Financier'!$C$44*('BP Financier'!$C$19/('BP Financier'!$C$16+'BP Financier'!$C$19+'BP Financier'!$C$22))*$V1108*AB1108/(1-$W1108)","v":{"v":1365.0580875412832,"d":"1,365"}},null,{"v":0.015,"d":"1.50%"},{"$f":"Actif!$E$28/100","v":{"v":0.28900000000000003,"d":"28.90%"}},{"$f":"Actif!$E$30/100","v":{"v":0.09050000000000001,"d":"9.05%"}},{"$f":"Actif!$E$31/100","v":{"v":0.0605,"d":"6.05%"}},{"$f":"Actif!$E$32/100","v":{"v":0.47350000000000003,"d":"47.35%"}},{"$f":"Actif!$E$33/100","v":{"v":0.0585,"d":"5.85%"}},{"$f":"Actif!$E$29/100","v":{"v":0.027999999999999997,"d":"2.80%"}}]
[null,"#17",34,2026,"H","A_PER",{"v":0.44999999999999996,"d":"0.45"},{"v":0.38999999999999996,"d":"0.39"},0.6,0.6,85,0,{"$f":"ROUND(Primes!$M$7*V1109,0)","v":5},{"$f":"'BP Financier'!$C$33*('BP Financier'!$C$19/('BP Financier'!$C$16+'BP Financier'!$C$19))*V1109","v":{"v":63117.64542407422,"d":"63,118"}},{"v":34662.72500863759,"d":"34,663"},{"$f":"'BP Financier'!$C$44*('BP Financier'!$C$19/('BP Financier'!$C$16+'BP Financier'!$C$19+'BP Financier'!$C$22))*$V1109*X1109/(1-$W1109)","v":{"v":4412.062747231648,"d":"4,412"}},{"$f":"'BP Financier'!$C$44*('BP Financier'!$C$19/('BP Financier'!$C$16+'BP Financier'!$C$19+'BP Financier'!$C$22))*$V1109*Y1109/(1-$W1109)","v":{"v":2949.500510580273,"d":"2,950"}},{"$f":"'BP Financier'!$C$44*('BP Financier'!$C$19/('BP Financier'!$C$16+'BP Financier'!$C$19+'BP Financier'!$C$22))*$V1109*Z1109/(1-$W1109)","v":{"v":23084.107301814205,"d":"23,084"}},{"$f":"'BP Financier'!$C$44*('BP Financier'!$C$19/('BP Financier'!$C$16+'BP Financier'!$C$19+'BP Financier'!$C$22))*$V1109*AA1109/(1-$W1109)","v":{"v":2851.9963614701815,"d":"2,852"}},{"$f":"'BP Financier'!$C$44*('BP Financier'!$C$19/('BP Financier'!$C$16+'BP Financier'!$C$19+'BP Financier'!$C$22))*$V1109*AB1109/(1-$W1109)","v":{"v":1365.0580875412832,"d":"1,365"}},null,{"v":0.015,"d":"1.50%"},{"$f":"Actif!$E$28/100","v":{"v":0.28900000000000003,"d":"28.90%"}},{"$f":"Actif!$E$30/100","v":{"v":0.09050000000000001,"d":"9.05%"}},{"$f":"Actif!$E$31/100","v":{"v":0.0605,"d":"6.05%"}},{"$f":"Actif!$E$32/100","v":{"v":0.47350000000000003,"d":"47.35%"}},{"$f":"Actif!$E$33/100","v":{"v":0.0585,"d":"5.85%"}},{"$f":"Actif!$E$29/100","v":{"v":0.027999999999999997,"d":"2.80%"}}]
[null,"#18",35,2026,"F","A_PER",{"v":0.44999999999999996,"d":"0.45"},{"v":0.38999999999999996,"d":"0.39"},0.6,0.6,85,0,{"$f":"ROUND(Primes!$M$7*V1110,0)","v":5},{"$f":"'BP Financier'!$C$33*('BP Financier'!$C$19/('BP Financier'!$C$16+'BP Financier'!$C$19))*V1110","v":{"v":63117.64542407422,"d":"63,118"}},{"v":34662.72500863759,"d":"34,663"},{"$f":"'BP Financier'!$C$44*('BP Financier'!$C$19/('BP Financier'!$C$16+'BP Financier'!$C$19+'BP Financier'!$C$22))*$V1110*X1110/(1-$W1110)","v":{"v":4412.062747231648,"d":"4,412"}},{"$f":"'BP Financier'!$C$44*('BP Financier'!$C$19/('BP Financier'!$C$16+'BP Financier'!$C$19+'BP Financier'!$C$22))*$V1110*Y1110/(1-$W1110)","v":{"v":2949.500510580273,"d":"2,950"}},{"$f":"'BP Financier'!$C$44*('BP Financier'!$C$19/('BP Financier'!$C$16+'BP Financier'!$C$19+'BP Financier'!$C$22))*$V1110*Z1110/(1-$W1110)","v":{"v":23084.107301814205,"d":"23,084"}},{"$f":"'BP Financier'!$C$44*('BP Financier'!$C$19/('BP Financier'!$C$16+'BP Financier'!$C$19+'BP Financier'!$C$22))*$V1110*AA1110/(1-$W1110)","v":{"v":2851.9963614701815,"d":"2,852"}},{"$f":"'BP Financier'!$C$44*('BP Financier'!$C$19/('BP Financier'!$C$16+'BP Financier'!$C$19+'BP Financier'!$C$22))*$V1110*AB1110/(1-$W1110)","v":{"v":1365.0580875412832,"d":"1,365"}},null,{"v":0.015,"d":"1.50%"},{"$f":"Actif!$E$28/100","v":{"v":0.28900000000000003,"d":"28.90%"}},{"$f":"Actif!$E$30/100","v":{"v":0.09050000000000001,"d":"9.05%"}},{"$f":"Actif!$E$31/100","v":{"v":0.0605,"d":"6.05%"}},{"$f":"Actif!$E$32/100","v":{"v":0.47350000000000003,"d":"47.35%"}},{"$f":"Actif!$E$33/100","v":{"v":0.0585,"d":"5.85%"}},{"$f":"Actif!$E$29/100","v":{"v":0.027999999999999997,"d":"2.80%"}}]
[null,"#19",36,2026,"H","A_PER",{"v":0.44999999999999996,"d":"0.45"},{"v":0.38999999999999996,"d":"0.39"},0.6,0.6,85,0,{"$f":"ROUND(Primes!$M$7*V1111,0)","v":5},{"$f":"'BP Financier'!$C$33*('BP Financier'!$C$19/('BP Financier'!$C$16+'BP Financier'!$C$19))*V1111","v":{"v":63117.64542407422,"d":"63,118"}},{"v":34662.72500863759,"d":"34,663"},{"$f":"'BP Financier'!$C$44*('BP Financier'!$C$19/('BP Financier'!$C$16+'BP Financier'!$C$19+'BP Financier'!$C$22))*$V1111*X1111/(1-$W1111)","v":{"v":4412.062747231648,"d":"4,412"}},{"$f":"'BP Financier'!$C$44*('BP Financier'!$C$19/('BP Financier'!$C$16+'BP Financier'!$C$19+'BP Financier'!$C$22))*$V1111*Y1111/(1-$W1111)","v":{"v":2949.500510580273,"d":"2,950"}},{"$f":"'BP Financier'!$C$44*('BP Financier'!$C$19/('BP Financier'!$C$16+'BP Financier'!$C$19+'BP Financier'!$C$22))*$V1111*Z1111/(1-$W1111)","v":{"v":23084.107301814205,"d":"23,084"}},{"$f":"'BP Financier'!$C$44*('BP Financier'!$C$19/('BP Financier'!$C$16+'BP Financier'!$C$19+'BP Financier'!$C$22))*$V1111*AA1111/(1-$W1111)","v":{"v":2851.9963614701815,"d":"2,852"}},{"$f":"'BP Financier'!$C$44*('BP Financier'!$C$19/('BP Financier'!$C$16+'BP Financier'!$C$19+'BP Financier'!$C$22))*$V1111*AB1111/(1-$W1111)","v":{"v":1365.0580875412832,"d":"1,365"}},null,{"v":0.015,"d":"1.50%"},{"$f":"Actif!$E$28/100","v":{"v":0.28900000000000003,"d":"28.90%"}},{"$f":"Actif!$E$30/100","v":{"v":0.09050000000000001,"d":"9.05%"}},{"$f":"Actif!$E$31/100","v":{"v":0.0605,"d":"6.05%"}},{"$f":"Actif!$E$32/100","v":{"v":0.47350000000000003,"d":"47.35%"}},{"$f":"Actif!$E$33/100","v":{"v":0.0585,"d":"5.85%"}},{"$f":"Actif!$E$29/100","v":{"v":0.027999999999999997,"d":"2.80%"}}]
[null,"#20",37,2026,"H","A_PER",{"v":0.44999999999999996,"d":"0.45"},{"v":0.38999999999999996,"d":"0.39"},0.6,0.6,85,0,{"$f":"ROUND(Primes!$M$7*V1112,0)","v":5},{"$f":"'BP Financier'!$C$33*('BP Financier'!$C$19/('BP Financier'!$C$16+'BP Financier'!$C$19))*V1112","v":{"v":63117.64542407422,"d":"63,118"}},{"v":34662.72500863759,"d":"34,663"},{"$f":"'BP Financier'!$C$44*('BP Financier'!$C$19/('BP Financier'!$C$16+'BP Financier'!$C$19+'BP Financier'!$C$22))*$V1112*X1112/(1-$W1112)","v":{"v":4412.062747231648,"d":"4,412"}},{"$f":"'BP Financier'!$C$44*('BP Financier'!$C$19/('BP Financier'!$C$16+'BP Financier'!$C$19+'BP Financier'!$C$22))*$V1112*Y1112/(1-$W1112)","v":{"v":2949.500510580273,"d":"2,950"}},{"$f":"'BP Financier'!$C$44*('BP Financier'!$C$19/('BP Financier'!$C$16+'BP Financier'!$C$19+'BP Financier'!$C$22))*$V1112*Z1112/(1-$W1112)","v":{"v":23084.107301814205,"d":"23,084"}},{"$f":"'BP Financier'!$C$44*('BP Financier'!$C$19/('BP Financier'!$C$16+'BP Financier'!$C$19+'BP Financier'!$C$22))*$V1112*AA1112/(1-$W1112)","v":{"v":2851.9963614701815,"d":"2,852"}},{"$f":"'BP Financier'!$C$44*('BP Financier'!$C$19/('BP Financier'!$C$16+'BP Financier'!$C$19+'BP Financier'!$C$22))*$V1112*AB1112/(1-$W1112)","v":{"v":1365.0580875412832,"d":"1,365"}},null,{"v":0.015,"d":"1.50%"},{"$f":"Actif!$E$28/100","v":{"v":0.28900000000000003,"d":"28.90%"}},{"$f":"Actif!$E$30/100","v":{"v":0.09050000000000001,"d":"9.05%"}},{"$f":"Actif!$E$31/100","v":{"v":0.0605,"d":"6.05%"}},{"$f":"Actif!$E$32/100","v":{"v":0.47350000000000003,"d":"47.35%"}},{"$f":"Actif!$E$33/100","v":{"v":0.0585,"d":"5.85%"}},{"$f":"Actif!$E$29/100","v":{"v":0.027999999999999997,"d":"2.80%"}}]
[null,"#21",38,2026,"F","A_PER",{"v":0.44999999999999996,"d":"0.45"},{"v":0.38999999999999996,"d":"0.39"},0.6,0.6,85,0,{"$f":"ROUND(Primes!$M$7*V1113,0)","v":9},{"$f":"'BP Financier'!$C$33*('BP Financier'!$C$19/('BP Financier'!$C$16+'BP Financier'!$C$19))*V1113","v":{"v":126235.29084814843,"d":"126,235"}},{"v":69325.45001727519,"d":"69,325"},{"$f":"'BP Financier'!$C$44*('BP Financier'!$C$19/('BP Financier'!$C$16+'BP Financier'!$C$19+'BP Financier'!$C$22))*$V1113*X1113/(1-$W1113)","v":{"v":8824.125494463296,"d":"8,824"}},{"$f":"'BP Financier'!$C$44*('BP Financier'!$C$19/('BP Financier'!$C$16+'BP Financier'!$C$19+'BP Financier'!$C$22))*$V1113*Y1113/(1-$W1113)","v":{"v":5899.001021160546,"d":"5,899"}},{"$f":"'BP Financier'!$C$44*('BP Financier'!$C$19/('BP Financier'!$C$16+'BP Financier'!$C$19+'BP Financier'!$C$22))*$V1113*Z1113/(1-$W1113)","v":{"v":46168.21460362841,"d":"46,168"}},{"$f":"'BP Financier'!$C$44*('BP Financier'!$C$19/('BP Financier'!$C$16+'BP Financier'!$C$19+'BP Financier'!$C$22))*$V1113*AA1113/(1-$W1113)","v":{"v":5703.992722940363,"d":"5,704"}},{"$f":"'BP Financier'!$C$44*('BP Financier'!$C$19/('BP Financier'!$C$16+'BP Financier'!$C$19+'BP Financier'!$C$22))*$V1113*AB1113/(1-$W1113)","v":{"v":2730.1161750825663,"d":"2,730"}},null,{"v":0.03,"d":"3.00%"},{"$f":"Actif!$E$28/100","v":{"v":0.28900000000000003,"d":"28.90%"}},{"$f":"Actif!$E$30/100","v":{"v":0.09050000000000001,"d":"9.05%"}},{"$f":"Actif!$E$31/100","v":{"v":0.0605,"d":"6.05%"}},{"$f":"Actif!$E$32/100","v":{"v":0.47350000000000003,"d":"47.35%"}},{"$f":"Actif!$E$33/100","v":{"v":0.0585,"d":"5.85%"}},{"$f":"Actif!$E$29/100","v":{"v":0.027999999999999997,"d":"2.80%"}}]
[null,"#22",39,2026,"H","A_PER",{"v":0.44999999999999996,"d":"0.45"},{"v":0.38999999999999996,"d":"0.39"},0.6,0.6,85,0,{"$f":"ROUND(Primes!$M$7*V1114,0)","v":9},{"$f":"'BP Financier'!$C$33*('BP Financier'!$C$19/('BP Financier'!$C$16+'BP Financier'!$C$19))*V1114","v":{"v":126235.29084814843,"d":"126,235"}},{"v":69325.45001727519,"d":"69,325"},{"$f":"'BP Financier'!$C$44*('BP Financier'!$C$19/('BP Financier'!$C$16+'BP Financier'!$C$19+'BP Financier'!$C$22))*$V1114*X1114/(1-$W1114)","v":{"v":8824.125494463296,"d":"8,824"}},{"$f":"'BP Financier'!$C$44*('BP Financier'!$C$19/('BP Financier'!$C$16+'BP Financier'!$C$19+'BP Financier'!$C$22))*$V1114*Y1114/(1-$W1114)","v":{"v":5899.001021160546,"d":"5,899"}},{"$f":"'BP Financier'!$C$44*('BP Financier'!$C$19/('BP Financier'!$C$16+'BP Financier'!$C$19+'BP Financier'!$C$22))*$V1114*Z1114/(1-$W1114)","v":{"v":46168.21460362841,"d":"46,168"}},{"$f":"'BP Financier'!$C$44*('BP Financier'!$C$19/('BP Financier'!$C$16+'BP Financier'!$C$19+'BP Financier'!$C$22))*$V1114*AA1114/(1-$W1114)","v":{"v":5703.992722940363,"d":"5,704"}},{"$f":"'BP Financier'!$C$44*('BP Financier'!$C$19/('BP Financier'!$C$16+'BP Financier'!$C$19+'BP Financier'!$C$22))*$V1114*AB1114/(1-$W1114)","v":{"v":2730.1161750825663,"d":"2,730"}},null,{"v":0.03,"d":"3.00%"},{"$f":"Actif!$E$28/100","v":{"v":0.28900000000000003,"d":"28.90%"}},{"$f":"Actif!$E$30/100","v":{"v":0.09050000000000001,"d":"9.05%"}},{"$f":"Actif!$E$31/100","v":{"v":0.0605,"d":"6.05%"}},{"$f":"Actif!$E$32/100","v":{"v":0.47350000000000003,"d":"47.35%"}},{"$f":"Actif!$E$33/100","v":{"v":0.0585,"d":"5.85%"}},{"$f":"Actif!$E$29/100","v":{"v":0.027999999999999997,"d":"2.80%"}}]
[null,"#23",40,2026,"H","A_PER",{"v":0.44999999999999996,"d":"0.45"},{"v":0.38999999999999996,"d":"0.39"},0.6,0.6,85,0,{"$f":"ROUND(Primes!$M$7*V1115,0)","v":9},{"$f":"'BP Financier'!$C$33*('BP Financier'!$C$19/('BP Financier'!$C$16+'BP Financier'!$C$19))*V1115","v":{"v":126235.29084814843,"d":"126,235"}},{"v":69325.45001727519,"d":"69,325"},{"$f":"'BP Financier'!$C$44*('BP Financier'!$C$19/('BP Financier'!$C$16+'BP Financier'!$C$19+'BP Financier'!$C$22))*$V1115*X1115/(1-$W1115)","v":{"v":8824.125494463296,"d":"8,824"}},{"$f":"'BP Financier'!$C$44*('BP Financier'!$C$19/('BP Financier'!$C$16+'BP Financier'!$C$19+'BP Financier'!$C$22))*$V1115*Y1115/(1-$W1115)","v":{"v":5899.001021160546,"d":"5,899"}},{"$f":"'BP Financier'!$C$44*('BP Financier'!$C$19/('BP Financier'!$C$16+'BP Financier'!$C$19+'BP Financier'!$C$22))*$V1115*Z1115/(1-$W1115)","v":{"v":46168.21460362841,"d":"46,168"}},{"$f":"'BP Financier'!$C$44*('BP Financier'!$C$19/('BP Financier'!$C$16+'BP Financier'!$C$19+'BP Financier'!$C$22))*$V1115*AA1115/(1-$W1115)","v":{"v":5703.992722940363,"d":"5,704"}},{"$f":"'BP Financier'!$C$44*('BP Financier'!$C$19/('BP Financier'!$C$16+'BP Financier'!$C$19+'BP Financier'!$C$22))*$V1115*AB1115/(1-$W1115)","v":{"v":2730.1161750825663,"d":"2,730"}},null,{"v":0.03,"d":"3.00%"},{"$f":"Actif!$E$28/100","v":{"v":0.28900000000000003,"d":"28.90%"}},{"$f":"Actif!$E$30/100","v":{"v":0.09050000000000001,"d":"9.05%"}},{"$f":"Actif!$E$31/100","v":{"v":0.0605,"d":"6.05%"}},{"$f":"Actif!$E$32/100","v":{"v":0.47350000000000003,"d":"47.35%"}},{"$f":"Actif!$E$33/100","v":{"v":0.0585,"d":"5.85%"}},{"$f":"Actif!$E$29/100","v":{"v":0.027999999999999997,"d":"2.80%"}}]
[null,"#24",41,2026,"F","A_PER",{"v":0.44999999999999996,"d":"0.45"},{"v":0.38999999999999996,"d":"0.39"},0.6,0.6,85,0,{"$f":"ROUND(Primes!$M$7*V1116,0)","v":12},{"$f":"'BP Financier'!$C$33*('BP Financier'!$C$19/('BP Financier'!$C$16+'BP Financier'!$C$19))*V1116","v":{"v":168313.72113086458,"d":"168,314"}},{"v":92433.93335636692,"d":"92,434"},{"$f":"'BP Financier'!$C$44*('BP Financier'!$C$19/('BP Financier'!$C$16+'BP Financier'!$C$19+'BP Financier'!$C$22))*$V1116*X1116/(1-$W1116)","v":{"v":11765.500659284397,"d":"11,766"}},{"$f":"'BP Financier'!$C$44*('BP Financier'!$C$19/('BP Financier'!$C$16+'BP Financier'!$C$19+'BP Financier'!$C$22))*$V1116*Y1116/(1-$W1116)","v":{"v":7865.334694880728,"d":"7,865"}},{"$f":"'BP Financier'!$C$44*('BP Financier'!$C$19/('BP Financier'!$C$16+'BP Financier'!$C$19+'BP Financier'!$C$22))*$V1116*Z1116/(1-$W1116)","v":{"v":61557.61947150455,"d":"61,558"}},{"$f":"'BP Financier'!$C$44*('BP Financier'!$C$19/('BP Financier'!$C$16+'BP Financier'!$C$19+'BP Financier'!$C$22))*$V1116*AA1116/(1-$W1116)","v":{"v":7605.3236305871515,"d":"7,605"}},{"$f":"'BP Financier'!$C$44*('BP Financier'!$C$19/('BP Financier'!$C$16+'BP Financier'!$C$19+'BP Financier'!$C$22))*$V1116*AB1116/(1-$W1116)","v":{"v":3640.154900110089,"d":"3,640"}},null,{"v":0.04,"d":"4.00%"},{"$f":"Actif!$E$28/100","v":{"v":0.28900000000000003,"d":"28.90%"}},{"$f":"Actif!$E$30/100","v":{"v":0.09050000000000001,"d":"9.05%"}},{"$f":"Actif!$E$31/100","v":{"v":0.0605,"d":"6.05%"}},{"$f":"Actif!$E$32/100","v":{"v":0.47350000000000003,"d":"47.35%"}},{"$f":"Actif!$E$33/100","v":{"v":0.0585,"d":"5.85%"}},{"$f":"Actif!$E$29/100","v":{"v":0.027999999999999997,"d":"2.80%"}}]
[null,"#25",42,2026,"H","A_PER",{"v":0.44999999999999996,"d":"0.45"},{"v":0.38999999999999996,"d":"0.39"},0.6,0.6,85,0,{"$f":"ROUND(Primes!$M$7*V1117,0)","v":12},{"$f":"'BP Financier'!$C$33*('BP Financier'!$C$19/('BP Financier'!$C$16+'BP Financier'!$C$19))*V1117","v":{"v":168313.72113086458,"d":"168,314"}},{"v":92433.93335636692,"d":"92,434"},{"$f":"'BP Financier'!$C$44*('BP Financier'!$C$19/('BP Financier'!$C$16+'BP Financier'!$C$19+'BP Financier'!$C$22))*$V1117*X1117/(1-$W1117)","v":{"v":11765.500659284397,"d":"11,766"}},{"$f":"'BP Financier'!$C$44*('BP Financier'!$C$19/('BP Financier'!$C$16+'BP Financier'!$C$19+'BP Financier'!$C$22))*$V1117*Y1117/(1-$W1117)","v":{"v":7865.334694880728,"d":"7,865"}},{"$f":"'BP Financier'!$C$44*('BP Financier'!$C$19/('BP Financier'!$C$16+'BP Financier'!$C$19+'BP Financier'!$C$22))*$V1117*Z1117/(1-$W1117)","v":{"v":61557.61947150455,"d":"61,558"}},{"$f":"'BP Financier'!$C$44*('BP Financier'!$C$19/('BP Financier'!$C$16+'BP Financier'!$C$19+'BP Financier'!$C$22))*$V1117*AA1117/(1-$W1117)","v":{"v":7605.3236305871515,"d":"7,605"}},{"$f":"'BP Financier'!$C$44*('BP Financier'!$C$19/('BP Financier'!$C$16+'BP Financier'!$C$19+'BP Financier'!$C$22))*$V1117*AB1117/(1-$W1117)","v":{"v":3640.154900110089,"d":"3,640"}},null,{"v":0.04,"d":"4.00%"},{"$f":"Actif!$E$28/100","v":{"v":0.28900000000000003,"d":"28.90%"}},{"$f":"Actif!$E$30/100","v":{"v":0.09050000000000001,"d":"9.05%"}},{"$f":"Actif!$E$31/100","v":{"v":0.0605,"d":"6.05%"}},{"$f":"Actif!$E$32/100","v":{"v":0.47350000000000003,"d":"47.35%"}},{"$f":"Actif!$E$33/100","v":{"v":0.0585,"d":"5.85%"}},{"$f":"Actif!$E$29/100","v":{"v":0.027999999999999997,"d":"2.80%"}}]
[null,"#26",43,2026,"H","A_PER",{"v":0.44999999999999996,"d":"0.45"},{"v":0.38999999999999996,"d":"0.39"},0.6,0.6,85,0,{"$f":"ROUND(Primes!$M$7*V1118,0)","v":12},{"$f":"'BP Financier'!$C$33*('BP Financier'!$C$19/('BP Financier'!$C$16+'BP Financier'!$C$19))*V1118","v":{"v":168313.72113086458,"d":"168,314"}},{"v":92433.93335636692,"d":"92,434"},{"$f":"'BP Financier'!$C$44*('BP Financier'!$C$19/('BP Financier'!$C$16+'BP Financier'!$C$19+'BP Financier'!$C$22))*$V1118*X1118/(1-$W1118)","v":{"v":11765.500659284397,"d":"11,766"}},{"$f":"'BP Financier'!$C$44*('BP Financier'!$C$19/('BP Financier'!$C$16+'BP Financier'!$C$19+'BP Financier'!$C$22))*$V1118*Y1118/(1-$W1118)","v":{"v":7865.334694880728,"d":"7,865"}},{"$f":"'BP Financier'!$C$44*('BP Financier'!$C$19/('BP Financier'!$C$16+'BP Financier'!$C$19+'BP Financier'!$C$22))*$V1118*Z1118/(1-$W1118)","v":{"v":61557.61947150455,"d":"61,558"}},{"$f":"'BP Financier'!$C$44*('BP Financier'!$C$19/('BP Financier'!$C$16+'BP Financier'!$C$19+'BP Financier'!$C$22))*$V1118*AA1118/(1-$W1118)","v":{"v":7605.3236305871515,"d":"7,605"}},{"$f":"'BP Financier'!$C$44*('BP Financier'!$C$19/('BP Financier'!$C$16+'BP Financier'!$C$19+'BP Financier'!$C$22))*$V1118*AB1118/(1-$W1118)","v":{"v":3640.154900110089,"d":"3,640"}},null,{"v":0.04,"d":"4.00%"},{"$f":"Actif!$E$28/100","v":{"v":0.28900000000000003,"d":"28.90%"}},{"$f":"Actif!$E$30/100","v":{"v":0.09050000000000001,"d":"9.05%"}},{"$f":"Actif!$E$31/100","v":{"v":0.0605,"d":"6.05%"}},{"$f":"Actif!$E$32/100","v":{"v":0.47350000000000003,"d":"47.35%"}},{"$f":"Actif!$E$33/100","v":{"v":0.0585,"d":"5.85%"}},{"$f":"Actif!$E$29/100","v":{"v":0.027999999999999997,"d":"2.80%"}}]
[null,"#27",44,2026,"F","A_PER",{"v":0.44999999999999996,"d":"0.45"},{"v":0.38999999999999996,"d":"0.39"},0.6,0.6,85,0,{"$f":"ROUND(Primes!$M$7*V1119,0)","v":15},{"$f":"'BP Financier'!$C$33*('BP Financier'!$C$19/('BP Financier'!$C$16+'BP Financier'!$C$19))*V1119","v":{"v":210392.15141358075,"d":"210,392"}},{"v":115542.41669545865,"d":"115,542"},{"$f":"'BP Financier'!$C$44*('BP Financier'!$C$19/('BP Financier'!$C$16+'BP Financier'!$C$19+'BP Financier'!$C$22))*$V1119*X1119/(1-$W1119)","v":{"v":14706.875824105497,"d":"14,707"}},{"$f":"'BP Financier'!$C$44*('BP Financier'!$C$19/('BP Financier'!$C$16+'BP Financier'!$C$19+'BP Financier'!$C$22))*$V1119*Y1119/(1-$W1119)","v":{"v":9831.668368600911,"d":"9,832"}},{"$f":"'BP Financier'!$C$44*('BP Financier'!$C$19/('BP Financier'!$C$16+'BP Financier'!$C$19+'BP Financier'!$C$22))*$V1119*Z1119/(1-$W1119)","v":{"v":76947.02433938069,"d":"76,947"}},{"$f":"'BP Financier'!$C$44*('BP Financier'!$C$19/('BP Financier'!$C$16+'BP Financier'!$C$19+'BP Financier'!$C$22))*$V1119*AA1119/(1-$W1119)","v":{"v":9506.65453823394,"d":"9,507"}},{"$f":"'BP Financier'!$C$44*('BP Financier'!$C$19/('BP Financier'!$C$16+'BP Financier'!$C$19+'BP Financier'!$C$22))*$V1119*AB1119/(1-$W1119)","v":{"v":4550.193625137611,"d":"4,550"}},null,{"v":0.05,"d":"5.00%"},{"$f":"Actif!$E$28/100","v":{"v":0.28900000000000003,"d":"28.90%"}},{"$f":"Actif!$E$30/100","v":{"v":0.09050000000000001,"d":"9.05%"}},{"$f":"Actif!$E$31/100","v":{"v":0.0605,"d":"6.05%"}},{"$f":"Actif!$E$32/100","v":{"v":0.47350000000000003,"d":"47.35%"}},{"$f":"Actif!$E$33/100","v":{"v":0.0585,"d":"5.85%"}},{"$f":"Actif!$E$29/100","v":{"v":0.027999999999999997,"d":"2.80%"}}]
[null,"#28",45,2026,"H","A_PER",{"v":0.44999999999999996,"d":"0.45"},{"v":0.38999999999999996,"d":"0.39"},0.6,0.6,85,0,{"$f":"ROUND(Primes!$M$7*V1120,0)","v":15},{"$f":"'BP Financier'!$C$33*('BP Financier'!$C$19/('BP Financier'!$C$16+'BP Financier'!$C$19))*V1120","v":{"v":210392.15141358075,"d":"210,392"}},{"v":115542.41669545865,"d":"115,542"},{"$f":"'BP Financier'!$C$44*('BP Financier'!$C$19/('BP Financier'!$C$16+'BP Financier'!$C$19+'BP Financier'!$C$22))*$V1120*X1120/(1-$W1120)","v":{"v":14706.875824105497,"d":"14,707"}},{"$f":"'BP Financier'!$C$44*('BP Financier'!$C$19/('BP Financier'!$C$16+'BP Financier'!$C$19+'BP Financier'!$C$22))*$V1120*Y1120/(1-$W1120)","v":{"v":9831.668368600911,"d":"9,832"}},{"$f":"'BP Financier'!$C$44*('BP Financier'!$C$19/('BP Financier'!$C$16+'BP Financier'!$C$19+'BP Financier'!$C$22))*$V1120*Z1120/(1-$W1120)","v":{"v":76947.02433938069,"d":"76,947"}},{"$f":"'BP Financier'!$C$44*('BP Financier'!$C$19/('BP Financier'!$C$16+'BP Financier'!$C$19+'BP Financier'!$C$22))*$V1120*AA1120/(1-$W1120)","v":{"v":9506.65453823394,"d":"9,507"}},{"$f":"'BP Financier'!$C$44*('BP Financier'!$C$19/('BP Financier'!$C$16+'BP Financier'!$C$19+'BP Financier'!$C$22))*$V1120*AB1120/(1-$W1120)","v":{"v":4550.193625137611,"d":"4,550"}},null,{"v":0.05,"d":"5.00%"},{"$f":"Actif!$E$28/100","v":{"v":0.28900000000000003,"d":"28.90%"}},{"$f":"Actif!$E$30/100","v":{"v":0.09050000000000001,"d":"9.05%"}},{"$f":"Actif!$E$31/100","v":{"v":0.0605,"d":"6.05%"}},{"$f":"Actif!$E$32/100","v":{"v":0.47350000000000003,"d":"47.35%"}},{"$f":"Actif!$E$33/100","v":{"v":0.0585,"d":"5.85%"}},{"$f":"Actif!$E$29/100","v":{"v":0.027999999999999997,"d":"2.80%"}}]
[null,"#29",46,2026,"H","A_PER",{"v":0.44999999999999996,"d":"0.45"},{"v":0.38999999999999996,"d":"0.39"},0.6,0.6,85,0,{"$f":"ROUND(Primes!$M$7*V1121,0)","v":15},{"$f":"'BP Financier'!$C$33*('BP Financier'!$C$19/('BP Financier'!$C$16+'BP Financier'!$C$19))*V1121","v":{"v":210392.15141358075,"d":"210,392"}},{"v":115542.41669545865,"d":"115,542"},{"$f":"'BP Financier'!$C$44*('BP Financier'!$C$19/('BP Financier'!$C$16+'BP Financier'!$C$19+'BP Financier'!$C$22))*$V1121*X1121/(1-$W1121)","v":{"v":14706.875824105497,"d":"14,707"}},{"$f":"'BP Financier'!$C$44*('BP Financier'!$C$19/('BP Financier'!$C$16+'BP Financier'!$C$19+'BP Financier'!$C$22))*$V1121*Y1121/(1-$W1121)","v":{"v":9831.668368600911,"d":"9,832"}},{"$f":"'BP Financier'!$C$44*('BP Financier'!$C$19/('BP Financier'!$C$16+'BP Financier'!$C$19+'BP Financier'!$C$22))*$V1121*Z1121/(1-$W1121)","v":{"v":76947.02433938069,"d":"76,947"}},{"$f":"'BP Financier'!$C$44*('BP Financier'!$C$19/('BP Financier'!$C$16+'BP Financier'!$C$19+'BP Financier'!$C$22))*$V1121*AA1121/(1-$W1121)","v":{"v":9506.65453823394,"d":"9,507"}},{"$f":"'BP Financier'!$C$44*('BP Financier'!$C$19/('BP Financier'!$C$16+'BP Financier'!$C$19+'BP Financier'!$C$22))*$V1121*AB1121/(1-$W1121)","v":{"v":4550.193625137611,"d":"4,550"}},null,{"v":0.05,"d":"5.00%"},{"$f":"Actif!$E$28/100","v":{"v":0.28900000000000003,"d":"28.90%"}},{"$f":"Actif!$E$30/100","v":{"v":0.09050000000000001,"d":"9.05%"}},{"$f":"Actif!$E$31/100","v":{"v":0.0605,"d":"6.05%"}},{"$f":"Actif!$E$32/100","v":{"v":0.47350000000000003,"d":"47.35%"}},{"$f":"Actif!$E$33/100","v":{"v":0.0585,"d":"5.85%"}},{"$f":"Actif!$E$29/100","v":{"v":0.027999999999999997,"d":"2.80%"}}]
[null,"#30",47,2026,"F","A_PER",{"v":0.44999999999999996,"d":"0.45"},{"v":0.38999999999999996,"d":"0.39"},0.6,0.6,85,0,{"$f":"ROUND(Primes!$M$7*V1122,0)","v":12},{"$f":"'BP Financier'!$C$33*('BP Financier'!$C$19/('BP Financier'!$C$16+'BP Financier'!$C$19))*V1122","v":{"v":168313.72113086458,"d":"168,314"}},{"v":92433.93335636692,"d":"92,434"},{"$f":"'BP Financier'!$C$44*('BP Financier'!$C$19/('BP Financier'!$C$16+'BP Financier'!$C$19+'BP Financier'!$C$22))*$V1122*X1122/(1-$W1122)","v":{"v":11765.500659284397,"d":"11,766"}},{"$f":"'BP Financier'!$C$44*('BP Financier'!$C$19/('BP Financier'!$C$16+'BP Financier'!$C$19+'BP Financier'!$C$22))*$V1122*Y1122/(1-$W1122)","v":{"v":7865.334694880728,"d":"7,865"}},{"$f":"'BP Financier'!$C$44*('BP Financier'!$C$19/('BP Financier'!$C$16+'BP Financier'!$C$19+'BP Financier'!$C$22))*$V1122*Z1122/(1-$W1122)","v":{"v":61557.61947150455,"d":"61,558"}},{"$f":"'BP Financier'!$C$44*('BP Financier'!$C$19/('BP Financier'!$C$16+'BP Financier'!$C$19+'BP Financier'!$C$22))*$V1122*AA1122/(1-$W1122)","v":{"v":7605.3236305871515,"d":"7,605"}},{"$f":"'BP Financier'!$C$44*('BP Financier'!$C$19/('BP Financier'!$C$16+'BP Financier'!$C$19+'BP Financier'!$C$22))*$V1122*AB1122/(1-$W1122)","v":{"v":3640.154900110089,"d":"3,640"}},null,{"v":0.04,"d":"4.00%"},{"$f":"Actif!$E$28/100","v":{"v":0.28900000000000003,"d":"28.90%"}},{"$f":"Actif!$E$30/100","v":{"v":0.09050000000000001,"d":"9.05%"}},{"$f":"Actif!$E$31/100","v":{"v":0.0605,"d":"6.05%"}},{"$f":"Actif!$E$32/100","v":{"v":0.47350000000000003,"d":"47.35%"}},{"$f":"Actif!$E$33/100","v":{"v":0.0585,"d":"5.85%"}},{"$f":"Actif!$E$29/100","v":{"v":0.027999999999999997,"d":"2.80%"}}]
[null,"#31",48,2026,"H","A_PER",{"v":0.44999999999999996,"d":"0.45"},{"v":0.38999999999999996,"d":"0.39"},0.6,0.6,85,0,{"$f":"ROUND(Primes!$M$7*V1123,0)","v":12},{"$f":"'BP Financier'!$C$33*('BP Financier'!$C$19/('BP Financier'!$C$16+'BP Financier'!$C$19))*V1123","v":{"v":168313.72113086458,"d":"168,314"}},{"v":92433.93335636692,"d":"92,434"},{"$f":"'BP Financier'!$C$44*('BP Financier'!$C$19/('BP Financier'!$C$16+'BP Financier'!$C$19+'BP Financier'!$C$22))*$V1123*X1123/(1-$W1123)","v":{"v":11765.500659284397,"d":"11,766"}},{"$f":"'BP Financier'!$C$44*('BP Financier'!$C$19/('BP Financier'!$C$16+'BP Financier'!$C$19+'BP Financier'!$C$22))*$V1123*Y1123/(1-$W1123)","v":{"v":7865.334694880728,"d":"7,865"}},{"$f":"'BP Financier'!$C$44*('BP Financier'!$C$19/('BP Financier'!$C$16+'BP Financier'!$C$19+'BP Financier'!$C$22))*$V1123*Z1123/(1-$W1123)","v":{"v":61557.61947150455,"d":"61,558"}},{"$f":"'BP Financier'!$C$44*('BP Financier'!$C$19/('BP Financier'!$C$16+'BP Financier'!$C$19+'BP Financier'!$C$22))*$V1123*AA1123/(1-$W1123)","v":{"v":7605.3236305871515,"d":"7,605"}},{"$f":"'BP Financier'!$C$44*('BP Financier'!$C$19/('BP Financier'!$C$16+'BP Financier'!$C$19+'BP Financier'!$C$22))*$V1123*AB1123/(1-$W1123)","v":{"v":3640.154900110089,"d":"3,640"}},null,{"v":0.04,"d":"4.00%"},{"$f":"Actif!$E$28/100","v":{"v":0.28900000000000003,"d":"28.90%"}},{"$f":"Actif!$E$30/100","v":{"v":0.09050000000000001,"d":"9.05%"}},{"$f":"Actif!$E$31/100","v":{"v":0.0605,"d":"6.05%"}},{"$f":"Actif!$E$32/100","v":{"v":0.47350000000000003,"d":"47.35%"}},{"$f":"Actif!$E$33/100","v":{"v":0.0585,"d":"5.85%"}},{"$f":"Actif!$E$29/100","v":{"v":0.027999999999999997,"d":"2.80%"}}]
[null,"#32",49,2026,"H","A_PER",{"v":0.44999999999999996,"d":"0.45"},{"v":0.38999999999999996,"d":"0.39"},0.6,0.6,85,0,{"$f":"ROUND(Primes!$M$7*V1124,0)","v":12},{"$f":"'BP Financier'!$C$33*('BP Financier'!$C$19/('BP Financier'!$C$16+'BP Financier'!$C$19))*V1124","v":{"v":168313.72113086458,"d":"168,314"}},{"v":92433.93335636692,"d":"92,434"},{"$f":"'BP Financier'!$C$44*('BP Financier'!$C$19/('BP Financier'!$C$16+'BP Financier'!$C$19+'BP Financier'!$C$22))*$V1124*X1124/(1-$W1124)","v":{"v":11765.500659284397,"d":"11,766"}},{"$f":"'BP Financier'!$C$44*('BP Financier'!$C$19/('BP Financier'!$C$16+'BP Financier'!$C$19+'BP Financier'!$C$22))*$V1124*Y1124/(1-$W1124)","v":{"v":7865.334694880728,"d":"7,865"}},{"$f":"'BP Financier'!$C$44*('BP Financier'!$C$19/('BP Financier'!$C$16+'BP Financier'!$C$19+'BP Financier'!$C$22))*$V1124*Z1124/(1-$W1124)","v":{"v":61557.61947150455,"d":"61,558"}},{"$f":"'BP Financier'!$C$44*('BP Financier'!$C$19/('BP Financier'!$C$16+'BP Financier'!$C$19+'BP Financier'!$C$22))*$V1124*AA1124/(1-$W1124)","v":{"v":7605.3236305871515,"d":"7,605"}},{"$f":"'BP Financier'!$C$44*('BP Financier'!$C$19/('BP Financier'!$C$16+'BP Financier'!$C$19+'BP Financier'!$C$22))*$V1124*AB1124/(1-$W1124)","v":{"v":3640.154900110089,"d":"3,640"}},null,{"v":0.04,"d":"4.00%"},{"$f":"Actif!$E$28/100","v":{"v":0.28900000000000003,"d":"28.90%"}},{"$f":"Actif!$E$30/100","v":{"v":0.09050000000000001,"d":"9.05%"}},{"$f":"Actif!$E$31/100","v":{"v":0.0605,"d":"6.05%"}},{"$f":"Actif!$E$32/100","v":{"v":0.47350000000000003,"d":"47.35%"}},{"$f":"Actif!$E$33/100","v":{"v":0.0585,"d":"5.85%"}},{"$f":"Actif!$E$29/100","v":{"v":0.027999999999999997,"d":"2.80%"}}]
[null,"#33",50,2026,"F","A_PER",{"v":0.44999999999999996,"d":"0.45"},{"v":0.38999999999999996,"d":"0.39"},0.6,0.6,85,0,{"$f":"ROUND(Primes!$M$7*V1125,0)","v":12},{"$f":"'BP Financier'!$C$33*('BP Financier'!$C$19/('BP Financier'!$C$16+'BP Financier'!$C$19))*V1125","v":{"v":168313.72113086458,"d":"168,314"}},{"v":92433.93335636692,"d":"92,434"},{"$f":"'BP Financier'!$C$44*('BP Financier'!$C$19/('BP Financier'!$C$16+'BP Financier'!$C$19+'BP Financier'!$C$22))*$V1125*X1125/(1-$W1125)","v":{"v":11765.500659284397,"d":"11,766"}},{"$f":"'BP Financier'!$C$44*('BP Financier'!$C$19/('BP Financier'!$C$16+'BP Financier'!$C$19+'BP Financier'!$C$22))*$V1125*Y1125/(1-$W1125)","v":{"v":7865.334694880728,"d":"7,865"}},{"$f":"'BP Financier'!$C$44*('BP Financier'!$C$19/('BP Financier'!$C$16+'BP Financier'!$C$19+'BP Financier'!$C$22))*$V1125*Z1125/(1-$W1125)","v":{"v":61557.61947150455,"d":"61,558"}},{"$f":"'BP Financier'!$C$44*('BP Financier'!$C$19/('BP Financier'!$C$16+'BP Financier'!$C$19+'BP Financier'!$C$22))*$V1125*AA1125/(1-$W1125)","v":{"v":7605.3236305871515,"d":"7,605"}},{"$f":"'BP Financier'!$C$44*('BP Financier'!$C$19/('BP Financier'!$C$16+'BP Financier'!$C$19+'BP Financier'!$C$22))*$V1125*AB1125/(1-$W1125)","v":{"v":3640.154900110089,"d":"3,640"}},null,{"v":0.04,"d":"4.00%"},{"$f":"Actif!$E$28/100","v":{"v":0.28900000000000003,"d":"28.90%"}},{"$f":"Actif!$E$30/100","v":{"v":0.09050000000000001,"d":"9.05%"}},{"$f":"Actif!$E$31/100","v":{"v":0.0605,"d":"6.05%"}},{"$f":"Actif!$E$32/100","v":{"v":0.47350000000000003,"d":"47.35%"}},{"$f":"Actif!$E$33/100","v":{"v":0.0585,"d":"5.85%"}},{"$f":"Actif!$E$29/100","v":{"v":0.027999999999999997,"d":"2.80%"}}]
[null,"#34",51,2026,"H","A_PER",{"v":0.44999999999999996,"d":"0.45"},{"v":0.38999999999999996,"d":"0.39"},0.6,0.6,85,0,{"$f":"ROUND(Primes!$M$7*V1126,0)","v":12},{"$f":"'BP Financier'!$C$33*('BP Financier'!$C$19/('BP Financier'!$C$16+'BP Financier'!$C$19))*V1126","v":{"v":168313.72113086458,"d":"168,314"}},{"v":92433.93335636692,"d":"92,434"},{"$f":"'BP Financier'!$C$44*('BP Financier'!$C$19/('BP Financier'!$C$16+'BP Financier'!$C$19+'BP Financier'!$C$22))*$V1126*X1126/(1-$W1126)","v":{"v":11765.500659284397,"d":"11,766"}},{"$f":"'BP Financier'!$C$44*('BP Financier'!$C$19/('BP Financier'!$C$16+'BP Financier'!$C$19+'BP Financier'!$C$22))*$V1126*Y1126/(1-$W1126)","v":{"v":7865.334694880728,"d":"7,865"}},{"$f":"'BP Financier'!$C$44*('BP Financier'!$C$19/('BP Financier'!$C$16+'BP Financier'!$C$19+'BP Financier'!$C$22))*$V1126*Z1126/(1-$W1126)","v":{"v":61557.61947150455,"d":"61,558"}},{"$f":"'BP Financier'!$C$44*('BP Financier'!$C$19/('BP Financier'!$C$16+'BP Financier'!$C$19+'BP Financier'!$C$22))*$V1126*AA1126/(1-$W1126)","v":{"v":7605.3236305871515,"d":"7,605"}},{"$f":"'BP Financier'!$C$44*('BP Financier'!$C$19/('BP Financier'!$C$16+'BP Financier'!$C$19+'BP Financier'!$C$22))*$V1126*AB1126/(1-$W1126)","v":{"v":3640.154900110089,"d":"3,640"}},null,{"v":0.04,"d":"4.00%"},{"$f":"Actif!$E$28/100","v":{"v":0.28900000000000003,"d":"28.90%"}},{"$f":"Actif!$E$30/100","v":{"v":0.09050000000000001,"d":"9.05%"}},{"$f":"Actif!$E$31/100","v":{"v":0.0605,"d":"6.05%"}},{"$f":"Actif!$E$32/100","v":{"v":0.47350000000000003,"d":"47.35%"}},{"$f":"Actif!$E$33/100","v":{"v":0.0585,"d":"5.85%"}},{"$f":"Actif!$E$29/100","v":{"v":0.027999999999999997,"d":"2.80%"}}]
[null,"#35",52,2026,"H","A_PER",{"v":0.44999999999999996,"d":"0.45"},{"v":0.38999999999999996,"d":"0.39"},0.6,0.6,85,0,{"$f":"ROUND(Primes!$M$7*V1127,0)","v":12},{"$f":"'BP Financier'!$C$33*('BP Financier'!$C$19/('BP Financier'!$C$16+'BP Financier'!$C$19))*V1127","v":{"v":168313.72113086458,"d":"168,314"}},{"v":92433.93335636692,"d":"92,434"},{"$f":"'BP Financier'!$C$44*('BP Financier'!$C$19/('BP Financier'!$C$16+'BP Financier'!$C$19+'BP Financier'!$C$22))*$V1127*X1127/(1-$W1127)","v":{"v":11765.500659284397,"d":"11,766"}},{"$f":"'BP Financier'!$C$44*('BP Financier'!$C$19/('BP Financier'!$C$16+'BP Financier'!$C$19+'BP Financier'!$C$22))*$V1127*Y1127/(1-$W1127)","v":{"v":7865.334694880728,"d":"7,865"}},{"$f":"'BP Financier'!$C$44*('BP Financier'!$C$19/('BP Financier'!$C$16+'BP Financier'!$C$19+'BP Financier'!$C$22))*$V1127*Z1127/(1-$W1127)","v":{"v":61557.61947150455,"d":"61,558"}},{"$f":"'BP Financier'!$C$44*('BP Financier'!$C$19/('BP Financier'!$C$16+'BP Financier'!$C$19+'BP Financier'!$C$22))*$V1127*AA1127/(1-$W1127)","v":{"v":7605.3236305871515,"d":"7,605"}},{"$f":"'BP Financier'!$C$44*('BP Financier'!$C$19/('BP Financier'!$C$16+'BP Financier'!$C$19+'BP Financier'!$C$22))*$V1127*AB1127/(1-$W1127)","v":{"v":3640.154900110089,"d":"3,640"}},null,{"v":0.04,"d":"4.00%"},{"$f":"Actif!$E$28/100","v":{"v":0.28900000000000003,"d":"28.90%"}},{"$f":"Actif!$E$30/100","v":{"v":0.09050000000000001,"d":"9.05%"}},{"$f":"Actif!$E$31/100","v":{"v":0.0605,"d":"6.05%"}},{"$f":"Actif!$E$32/100","v":{"v":0.47350000000000003,"d":"47.35%"}},{"$f":"Actif!$E$33/100","v":{"v":0.0585,"d":"5.85%"}},{"$f":"Actif!$E$29/100","v":{"v":0.027999999999999997,"d":"2.80%"}}]
[null,"#36",53,2026,"F","A_PER",{"v":0.44999999999999996,"d":"0.45"},{"v":0.38999999999999996,"d":"0.39"},0.6,0.6,85,0,{"$f":"ROUND(Primes!$M$7*V1128,0)","v":12},{"$f":"'BP Financier'!$C$33*('BP Financier'!$C$19/('BP Financier'!$C$16+'BP Financier'!$C$19))*V1128","v":{"v":168313.72113086458,"d":"168,314"}},{"v":92433.93335636692,"d":"92,434"},{"$f":"'BP Financier'!$C$44*('BP Financier'!$C$19/('BP Financier'!$C$16+'BP Financier'!$C$19+'BP Financier'!$C$22))*$V1128*X1128/(1-$W1128)","v":{"v":11765.500659284397,"d":"11,766"}},{"$f":"'BP Financier'!$C$44*('BP Financier'!$C$19/('BP Financier'!$C$16+'BP Financier'!$C$19+'BP Financier'!$C$22))*$V1128*Y1128/(1-$W1128)","v":{"v":7865.334694880728,"d":"7,865"}},{"$f":"'BP Financier'!$C$44*('BP Financier'!$C$19/('BP Financier'!$C$16+'BP Financier'!$C$19+'BP Financier'!$C$22))*$V1128*Z1128/(1-$W1128)","v":{"v":61557.61947150455,"d":"61,558"}},{"$f":"'BP Financier'!$C$44*('BP Financier'!$C$19/('BP Financier'!$C$16+'BP Financier'!$C$19+'BP Financier'!$C$22))*$V1128*AA1128/(1-$W1128)","v":{"v":7605.3236305871515,"d":"7,605"}},{"$f":"'BP Financier'!$C$44*('BP Financier'!$C$19/('BP Financier'!$C$16+'BP Financier'!$C$19+'BP Financier'!$C$22))*$V1128*AB1128/(1-$W1128)","v":{"v":3640.154900110089,"d":"3,640"}},null,{"v":0.04,"d":"4.00%"},{"$f":"Actif!$E$28/100","v":{"v":0.28900000000000003,"d":"28.90%"}},{"$f":"Actif!$E$30/100","v":{"v":0.09050000000000001,"d":"9.05%"}},{"$f":"Actif!$E$31/100","v":{"v":0.0605,"d":"6.05%"}},{"$f":"Actif!$E$32/100","v":{"v":0.47350000000000003,"d":"47.35%"}},{"$f":"Actif!$E$33/100","v":{"v":0.0585,"d":"5.85%"}},{"$f":"Actif!$E$29/100","v":{"v":0.027999999999999997,"d":"2.80%"}}]
[null,"#37",54,2026,"H","A_PER",{"v":0.44999999999999996,"d":"0.45"},{"v":0.38999999999999996,"d":"0.39"},0.6,0.6,85,0,{"$f":"ROUND(Primes!$M$7*V1129,0)","v":12},{"$f":"'BP Financier'!$C$33*('BP Financier'!$C$19/('BP Financier'!$C$16+'BP Financier'!$C$19))*V1129","v":{"v":168313.72113086458,"d":"168,314"}},{"v":92433.93335636692,"d":"92,434"},{"$f":"'BP Financier'!$C$44*('BP Financier'!$C$19/('BP Financier'!$C$16+'BP Financier'!$C$19+'BP Financier'!$C$22))*$V1129*X1129/(1-$W1129)","v":{"v":11765.500659284397,"d":"11,766"}},{"$f":"'BP Financier'!$C$44*('BP Financier'!$C$19/('BP Financier'!$C$16+'BP Financier'!$C$19+'BP Financier'!$C$22))*$V1129*Y1129/(1-$W1129)","v":{"v":7865.334694880728,"d":"7,865"}},{"$f":"'BP Financier'!$C$44*('BP Financier'!$C$19/('BP Financier'!$C$16+'BP Financier'!$C$19+'BP Financier'!$C$22))*$V1129*Z1129/(1-$W1129)","v":{"v":61557.61947150455,"d":"61,558"}},{"$f":"'BP Financier'!$C$44*('BP Financier'!$C$19/('BP Financier'!$C$16+'BP Financier'!$C$19+'BP Financier'!$C$22))*$V1129*AA1129/(1-$W1129)","v":{"v":7605.3236305871515,"d":"7,605"}},{"$f":"'BP Financier'!$C$44*('BP Financier'!$C$19/('BP Financier'!$C$16+'BP Financier'!$C$19+'BP Financier'!$C$22))*$V1129*AB1129/(1-$W1129)","v":{"v":3640.154900110089,"d":"3,640"}},null,{"v":0.04,"d":"4.00%"},{"$f":"Actif!$E$28/100","v":{"v":0.28900000000000003,"d":"28.90%"}},{"$f":"Actif!$E$30/100","v":{"v":0.09050000000000001,"d":"9.05%"}},{"$f":"Actif!$E$31/100","v":{"v":0.0605,"d":"6.05%"}},{"$f":"Actif!$E$32/100","v":{"v":0.47350000000000003,"d":"47.35%"}},{"$f":"Actif!$E$33/100","v":{"v":0.0585,"d":"5.85%"}},{"$f":"Actif!$E$29/100","v":{"v":0.027999999999999997,"d":"2.80%"}}]
[null,"#38",55,2026,"H","A_PER",{"v":0.44999999999999996,"d":"0.45"},{"v":0.38999999999999996,"d":"0.39"},0.6,0.6,85,0,{"$f":"ROUND(Primes!$M$7*V1130,0)","v":12},{"$f":"'BP Financier'!$C$33*('BP Financier'!$C$19/('BP Financier'!$C$16+'BP Financier'!$C$19))*V1130","v":{"v":168313.72113086458,"d":"168,314"}},{"v":92433.93335636692,"d":"92,434"},{"$f":"'BP Financier'!$C$44*('BP Financier'!$C$19/('BP Financier'!$C$16+'BP Financier'!$C$19+'BP Financier'!$C$22))*$V1130*X1130/(1-$W1130)","v":{"v":11765.500659284397,"d":"11,766"}},{"$f":"'BP Financier'!$C$44*('BP Financier'!$C$19/('BP Financier'!$C$16+'BP Financier'!$C$19+'BP Financier'!$C$22))*$V1130*Y1130/(1-$W1130)","v":{"v":7865.334694880728,"d":"7,865"}},{"$f":"'BP Financier'!$C$44*('BP Financier'!$C$19/('BP Financier'!$C$16+'BP Financier'!$C$19+'BP Financier'!$C$22))*$V1130*Z1130/(1-$W1130)","v":{"v":61557.61947150455,"d":"61,558"}},{"$f":"'BP Financier'!$C$44*('BP Financier'!$C$19/('BP Financier'!$C$16+'BP Financier'!$C$19+'BP Financier'!$C$22))*$V1130*AA1130/(1-$W1130)","v":{"v":7605.3236305871515,"d":"7,605"}},{"$f":"'BP Financier'!$C$44*('BP Financier'!$C$19/('BP Financier'!$C$16+'BP Financier'!$C$19+'BP Financier'!$C$22))*$V1130*AB1130/(1-$W1130)","v":{"v":3640.154900110089,"d":"3,640"}},null,{"v":0.04,"d":"4.00%"},{"$f":"Actif!$E$28/100","v":{"v":0.28900000000000003,"d":"28.90%"}},{"$f":"Actif!$E$30/100","v":{"v":0.09050000000000001,"d":"9.05%"}},{"$f":"Actif!$E$31/100","v":{"v":0.0605,"d":"6.05%"}},{"$f":"Actif!$E$32/100","v":{"v":0.47350000000000003,"d":"47.35%"}},{"$f":"Actif!$E$33/100","v":{"v":0.0585,"d":"5.85%"}},{"$f":"Actif!$E$29/100","v":{"v":0.027999999999999997,"d":"2.80%"}}]
[null,"#39",56,2026,"F","A_PER",{"v":0.44999999999999996,"d":"0.45"},{"v":0.38999999999999996,"d":"0.39"},0.6,0.6,85,0,{"$f":"ROUND(Primes!$M$7*V1131,0)","v":6},{"$f":"'BP Financier'!$C$33*('BP Financier'!$C$19/('BP Financier'!$C$16+'BP Financier'!$C$19))*V1131","v":{"v":84156.86056543229,"d":"84,157"}},{"v":46216.96667818346,"d":"46,217"},{"$f":"'BP Financier'!$C$44*('BP Financier'!$C$19/('BP Financier'!$C$16+'BP Financier'!$C$19+'BP Financier'!$C$22))*$V1131*X1131/(1-$W1131)","v":{"v":5882.750329642198,"d":"5,883"}},{"$f":"'BP Financier'!$C$44*('BP Financier'!$C$19/('BP Financier'!$C$16+'BP Financier'!$C$19+'BP Financier'!$C$22))*$V1131*Y1131/(1-$W1131)","v":{"v":3932.667347440364,"d":"3,933"}},{"$f":"'BP Financier'!$C$44*('BP Financier'!$C$19/('BP Financier'!$C$16+'BP Financier'!$C$19+'BP Financier'!$C$22))*$V1131*Z1131/(1-$W1131)","v":{"v":30778.809735752275,"d":"30,779"}},{"$f":"'BP Financier'!$C$44*('BP Financier'!$C$19/('BP Financier'!$C$16+'BP Financier'!$C$19+'BP Financier'!$C$22))*$V1131*AA1131/(1-$W1131)","v":{"v":3802.6618152935757,"d":"3,803"}},{"$f":"'BP Financier'!$C$44*('BP Financier'!$C$19/('BP Financier'!$C$16+'BP Financier'!$C$19+'BP Financier'!$C$22))*$V1131*AB1131/(1-$W1131)","v":{"v":1820.0774500550444,"d":"1,820"}},null,{"v":0.02,"d":"2.00%"},{"$f":"Actif!$E$28/100","v":{"v":0.28900000000000003,"d":"28.90%"}},{"$f":"Actif!$E$30/100","v":{"v":0.09050000000000001,"d":"9.05%"}},{"$f":"Actif!$E$31/100","v":{"v":0.0605,"d":"6.05%"}},{"$f":"Actif!$E$32/100","v":{"v":0.47350000000000003,"d":"47.35%"}},{"$f":"Actif!$E$33/100","v":{"v":0.0585,"d":"5.85%"}},{"$f":"Actif!$E$29/100","v":{"v":0.027999999999999997,"d":"2.80%"}}]
[null,"#40",57,2026,"H","A_PER",{"v":0.44999999999999996,"d":"0.45"},{"v":0.38999999999999996,"d":"0.39"},0.6,0.6,85,0,{"$f":"ROUND(Primes!$M$7*V1132,0)","v":3},{"$f":"'BP Financier'!$C$33*('BP Financier'!$C$19/('BP Financier'!$C$16+'BP Financier'!$C$19))*V1132","v":{"v":42078.430282716145,"d":"42,078"}},{"v":23108.48333909173,"d":"23,108"},{"$f":"'BP Financier'!$C$44*('BP Financier'!$C$19/('BP Financier'!$C$16+'BP Financier'!$C$19+'BP Financier'!$C$22))*$V1132*X1132/(1-$W1132)","v":{"v":2941.375164821099,"d":"2,941"}},{"$f":"'BP Financier'!$C$44*('BP Financier'!$C$19/('BP Financier'!$C$16+'BP Financier'!$C$19+'BP Financier'!$C$22))*$V1132*Y1132/(1-$W1132)","v":{"v":1966.333673720182,"d":"1,966"}},{"$f":"'BP Financier'!$C$44*('BP Financier'!$C$19/('BP Financier'!$C$16+'BP Financier'!$C$19+'BP Financier'!$C$22))*$V1132*Z1132/(1-$W1132)","v":{"v":15389.404867876137,"d":"15,389"}},{"$f":"'BP Financier'!$C$44*('BP Financier'!$C$19/('BP Financier'!$C$16+'BP Financier'!$C$19+'BP Financier'!$C$22))*$V1132*AA1132/(1-$W1132)","v":{"v":1901.3309076467879,"d":"1,901"}},{"$f":"'BP Financier'!$C$44*('BP Financier'!$C$19/('BP Financier'!$C$16+'BP Financier'!$C$19+'BP Financier'!$C$22))*$V1132*AB1132/(1-$W1132)","v":{"v":910.0387250275222,"d":"910"}},null,{"v":0.01,"d":"1.00%"},{"$f":"Actif!$E$28/100","v":{"v":0.28900000000000003,"d":"28.90%"}},{"$f":"Actif!$E$30/100","v":{"v":0.09050000000000001,"d":"9.05%"}},{"$f":"Actif!$E$31/100","v":{"v":0.0605,"d":"6.05%"}},{"$f":"Actif!$E$32/100","v":{"v":0.47350000000000003,"d":"47.35%"}},{"$f":"Actif!$E$33/100","v":{"v":0.0585,"d":"5.85%"}},{"$f":"Actif!$E$29/100","v":{"v":0.027999999999999997,"d":"2.80%"}}]
[null,"#41",58,2026,"H","A_PER",{"v":0.44999999999999996,"d":"0.45"},{"v":0.38999999999999996,"d":"0.39"},0.6,0.6,85,0,{"$f":"ROUND(Primes!$M$7*V1133,0)","v":3},{"$f":"'BP Financier'!$C$33*('BP Financier'!$C$19/('BP Financier'!$C$16+'BP Financier'!$C$19))*V1133","v":{"v":42078.430282716145,"d":"42,078"}},{"v":23108.48333909173,"d":"23,108"},{"$f":"'BP Financier'!$C$44*('BP Financier'!$C$19/('BP Financier'!$C$16+'BP Financier'!$C$19+'BP Financier'!$C$22))*$V1133*X1133/(1-$W1133)","v":{"v":2941.375164821099,"d":"2,941"}},{"$f":"'BP Financier'!$C$44*('BP Financier'!$C$19/('BP Financier'!$C$16+'BP Financier'!$C$19+'BP Financier'!$C$22))*$V1133*Y1133/(1-$W1133)","v":{"v":1966.333673720182,"d":"1,966"}},{"$f":"'BP Financier'!$C$44*('BP Financier'!$C$19/('BP Financier'!$C$16+'BP Financier'!$C$19+'BP Financier'!$C$22))*$V1133*Z1133/(1-$W1133)","v":{"v":15389.404867876137,"d":"15,389"}},{"$f":"'BP Financier'!$C$44*('BP Financier'!$C$19/('BP Financier'!$C$16+'BP Financier'!$C$19+'BP Financier'!$C$22))*$V1133*AA1133/(1-$W1133)","v":{"v":1901.3309076467879,"d":"1,901"}},{"$f":"'BP Financier'!$C$44*('BP Financier'!$C$19/('BP Financier'!$C$16+'BP Financier'!$C$19+'BP Financier'!$C$22))*$V1133*AB1133/(1-$W1133)","v":{"v":910.0387250275222,"d":"910"}},null,{"v":0.01,"d":"1.00%"},{"$f":"Actif!$E$28/100","v":{"v":0.28900000000000003,"d":"28.90%"}},{"$f":"Actif!$E$30/100","v":{"v":0.09050000000000001,"d":"9.05%"}},{"$f":"Actif!$E$31/100","v":{"v":0.0605,"d":"6.05%"}},{"$f":"Actif!$E$32/100","v":{"v":0.47350000000000003,"d":"47.35%"}},{"$f":"Actif!$E$33/100","v":{"v":0.0585,"d":"5.85%"}},{"$f":"Actif!$E$29/100","v":{"v":0.027999999999999997,"d":"2.80%"}}]
[null,"#42",59,2026,"F","A_PER",{"v":0.44999999999999996,"d":"0.45"},{"v":0.38999999999999996,"d":"0.39"},0.6,0.6,85,0,{"$f":"ROUND(Primes!$M$7*V1134,0)","v":3},{"$f":"'BP Financier'!$C$33*('BP Financier'!$C$19/('BP Financier'!$C$16+'BP Financier'!$C$19))*V1134","v":{"v":42078.430282716145,"d":"42,078"}},{"v":23108.48333909173,"d":"23,108"},{"$f":"'BP Financier'!$C$44*('BP Financier'!$C$19/('BP Financier'!$C$16+'BP Financier'!$C$19+'BP Financier'!$C$22))*$V1134*X1134/(1-$W1134)","v":{"v":2941.375164821099,"d":"2,941"}},{"$f":"'BP Financier'!$C$44*('BP Financier'!$C$19/('BP Financier'!$C$16+'BP Financier'!$C$19+'BP Financier'!$C$22))*$V1134*Y1134/(1-$W1134)","v":{"v":1966.333673720182,"d":"1,966"}},{"$f":"'BP Financier'!$C$44*('BP Financier'!$C$19/('BP Financier'!$C$16+'BP Financier'!$C$19+'BP Financier'!$C$22))*$V1134*Z1134/(1-$W1134)","v":{"v":15389.404867876137,"d":"15,389"}},{"$f":"'BP Financier'!$C$44*('BP Financier'!$C$19/('BP Financier'!$C$16+'BP Financier'!$C$19+'BP Financier'!$C$22))*$V1134*AA1134/(1-$W1134)","v":{"v":1901.3309076467879,"d":"1,901"}},{"$f":"'BP Financier'!$C$44*('BP Financier'!$C$19/('BP Financier'!$C$16+'BP Financier'!$C$19+'BP Financier'!$C$22))*$V1134*AB1134/(1-$W1134)","v":{"v":910.0387250275222,"d":"910"}},null,{"v":0.01,"d":"1.00%"},{"$f":"Actif!$E$28/100","v":{"v":0.28900000000000003,"d":"28.90%"}},{"$f":"Actif!$E$30/100","v":{"v":0.09050000000000001,"d":"9.05%"}},{"$f":"Actif!$E$31/100","v":{"v":0.0605,"d":"6.05%"}},{"$f":"Actif!$E$32/100","v":{"v":0.47350000000000003,"d":"47.35%"}},{"$f":"Actif!$E$33/100","v":{"v":0.0585,"d":"5.85%"}},{"$f":"Actif!$E$29/100","v":{"v":0.027999999999999997,"d":"2.80%"}}]
[null,"#43",60,2026,"H","A_PER",{"v":0.44999999999999996,"d":"0.45"},{"v":0.38999999999999996,"d":"0.39"},0.6,0.6,85,0,{"$f":"ROUND(Primes!$M$7*V1135,0)","v":3},{"$f":"'BP Financier'!$C$33*('BP Financier'!$C$19/('BP Financier'!$C$16+'BP Financier'!$C$19))*V1135","v":{"v":42078.430282716145,"d":"42,078"}},{"v":23108.48333909173,"d":"23,108"},{"$f":"'BP Financier'!$C$44*('BP Financier'!$C$19/('BP Financier'!$C$16+'BP Financier'!$C$19+'BP Financier'!$C$22))*$V1135*X1135/(1-$W1135)","v":{"v":2941.375164821099,"d":"2,941"}},{"$f":"'BP Financier'!$C$44*('BP Financier'!$C$19/('BP Financier'!$C$16+'BP Financier'!$C$19+'BP Financier'!$C$22))*$V1135*Y1135/(1-$W1135)","v":{"v":1966.333673720182,"d":"1,966"}},{"$f":"'BP Financier'!$C$44*('BP Financier'!$C$19/('BP Financier'!$C$16+'BP Financier'!$C$19+'BP Financier'!$C$22))*$V1135*Z1135/(1-$W1135)","v":{"v":15389.404867876137,"d":"15,389"}},{"$f":"'BP Financier'!$C$44*('BP Financier'!$C$19/('BP Financier'!$C$16+'BP Financier'!$C$19+'BP Financier'!$C$22))*$V1135*AA1135/(1-$W1135)","v":{"v":1901.3309076467879,"d":"1,901"}},{"$f":"'BP Financier'!$C$44*('BP Financier'!$C$19/('BP Financier'!$C$16+'BP Financier'!$C$19+'BP Financier'!$C$22))*$V1135*AB1135/(1-$W1135)","v":{"v":910.0387250275222,"d":"910"}},null,{"v":0.01,"d":"1.00%"},{"$f":"Actif!$E$28/100","v":{"v":0.28900000000000003,"d":"28.90%"}},{"$f":"Actif!$E$30/100","v":{"v":0.09050000000000001,"d":"9.05%"}},{"$f":"Actif!$E$31/100","v":{"v":0.0605,"d":"6.05%"}},{"$f":"Actif!$E$32/100","v":{"v":0.47350000000000003,"d":"47.35%"}},{"$f":"Actif!$E$33/100","v":{"v":0.0585,"d":"5.85%"}},{"$f":"Actif!$E$29/100","v":{"v":0.027999999999999997,"d":"2.80%"}}]
[null,"#44",{"$nulls":19},{"v":0,"d":"0.00%"},{"$f":"Actif!$E$28/100","v":{"v":0.28900000000000003,"d":"28.90%"}},{"$f":"Actif!$E$30/100","v":{"v":0.09050000000000001,"d":"9.05%"}},{"$f":"Actif!$E$31/100","v":{"v":0.0605,"d":"6.05%"}},{"$f":"Actif!$E$32/100","v":{"v":0.47350000000000003,"d":"47.35%"}},{"$f":"Actif!$E$33/100","v":{"v":0.0585,"d":"5.85%"}},{"$f":"Actif!$E$29/100","v":{"v":0.027999999999999997,"d":"2.80%"}}]
[null,"#45",{"$nulls":19},{"v":0,"d":"0.00%"},{"$f":"Actif!$E$28/100","v":{"v":0.28900000000000003,"d":"28.90%"}},{"$f":"Actif!$E$30/100","v":{"v":0.09050000000000001,"d":"9.05%"}},{"$f":"Actif!$E$31/100","v":{"v":0.0605,"d":"6.05%"}},{"$f":"Actif!$E$32/100","v":{"v":0.47350000000000003,"d":"47.35%"}},{"$f":"Actif!$E$33/100","v":{"v":0.0585,"d":"5.85%"}},{"$f":"Actif!$E$29/100","v":{"v":0.027999999999999997,"d":"2.80%"}}]
[null,"#46",{"$nulls":19},{"v":0,"d":"0.00%"},{"$f":"Actif!$E$28/100","v":{"v":0.28900000000000003,"d":"28.90%"}},{"$f":"Actif!$E$30/100","v":{"v":0.09050000000000001,"d":"9.05%"}},{"$f":"Actif!$E$31/100","v":{"v":0.0605,"d":"6.05%"}},{"$f":"Actif!$E$32/100","v":{"v":0.47350000000000003,"d":"47.35%"}},{"$f":"Actif!$E$33/100","v":{"v":0.0585,"d":"5.85%"}},{"$f":"Actif!$E$29/100","v":{"v":0.027999999999999997,"d":"2.80%"}}]
[null,"#47",{"$nulls":19},{"v":0,"d":"0.00%"},{"$f":"Actif!$E$28/100","v":{"v":0.28900000000000003,"d":"28.90%"}},{"$f":"Actif!$E$30/100","v":{"v":0.09050000000000001,"d":"9.05%"}},{"$f":"Actif!$E$31/100","v":{"v":0.0605,"d":"6.05%"}},{"$f":"Actif!$E$32/100","v":{"v":0.47350000000000003,"d":"47.35%"}},{"$f":"Actif!$E$33/100","v":{"v":0.0585,"d":"5.85%"}},{"$f":"Actif!$E$29/100","v":{"v":0.027999999999999997,"d":"2.80%"}}]
[null,"#48",{"$nulls":19},{"v":0,"d":"0.00%"},{"$f":"Actif!$E$28/100","v":{"v":0.28900000000000003,"d":"28.90%"}},{"$f":"Actif!$E$30/100","v":{"v":0.09050000000000001,"d":"9.05%"}},{"$f":"Actif!$E$31/100","v":{"v":0.0605,"d":"6.05%"}},{"$f":"Actif!$E$32/100","v":{"v":0.47350000000000003,"d":"47.35%"}},{"$f":"Actif!$E$33/100","v":{"v":0.0585,"d":"5.85%"}},{"$f":"Actif!$E$29/100","v":{"v":0.027999999999999997,"d":"2.80%"}}]
[null,"#49",{"$nulls":19},{"v":0,"d":"0.00%"},{"$f":"Actif!$E$28/100","v":{"v":0.28900000000000003,"d":"28.90%"}},{"$f":"Actif!$E$30/100","v":{"v":0.09050000000000001,"d":"9.05%"}},{"$f":"Actif!$E$31/100","v":{"v":0.0605,"d":"6.05%"}},{"$f":"Actif!$E$32/100","v":{"v":0.47350000000000003,"d":"47.35%"}},{"$f":"Actif!$E$33/100","v":{"v":0.0585,"d":"5.85%"}},{"$f":"Actif!$E$29/100","v":{"v":0.027999999999999997,"d":"2.80%"}}]
[null,"#50",{"$nulls":19},{"v":0,"d":"0.00%"},{"$f":"Actif!$E$28/100","v":{"v":0.28900000000000003,"d":"28.90%"}},{"$f":"Actif!$E$30/100","v":{"v":0.09050000000000001,"d":"9.05%"}},{"$f":"Actif!$E$31/100","v":{"v":0.0605,"d":"6.05%"}},{"$f":"Actif!$E$32/100","v":{"v":0.47350000000000003,"d":"47.35%"}},{"$f":"Actif!$E$33/100","v":{"v":0.0585,"d":"5.85%"}},{"$f":"Actif!$E$29/100","v":{"v":0.027999999999999997,"d":"2.80%"}}]
[null,"#51",{"$nulls":19},{"v":0,"d":"0.00%"},{"$f":"Actif!$E$28/100","v":{"v":0.28900000000000003,"d":"28.90%"}},{"$f":"Actif!$E$30/100","v":{"v":0.09050000000000001,"d":"9.05%"}},{"$f":"Actif!$E$31/100","v":{"v":0.0605,"d":"6.05%"}},{"$f":"Actif!$E$32/100","v":{"v":0.47350000000000003,"d":"47.35%"}},{"$f":"Actif!$E$33/100","v":{"v":0.0585,"d":"5.85%"}},{"$f":"Actif!$E$29/100","v":{"v":0.027999999999999997,"d":"2.80%"}}]
[null,"#52",{"$nulls":19},{"v":0,"d":"0.00%"},{"$f":"Actif!$E$28/100","v":{"v":0.28900000000000003,"d":"28.90%"}},{"$f":"Actif!$E$30/100","v":{"v":0.09050000000000001,"d":"9.05%"}},{"$f":"Actif!$E$31/100","v":{"v":0.0605,"d":"6.05%"}},{"$f":"Actif!$E$32/100","v":{"v":0.47350000000000003,"d":"47.35%"}},{"$f":"Actif!$E$33/100","v":{"v":0.0585,"d":"5.85%"}},{"$f":"Actif!$E$29/100","v":{"v":0.027999999999999997,"d":"2.80%"}}]
[null,"#53",{"$nulls":19},{"v":0,"d":"0.00%"},{"$f":"Actif!$E$28/100","v":{"v":0.28900000000000003,"d":"28.90%"}},{"$f":"Actif!$E$30/100","v":{"v":0.09050000000000001,"d":"9.05%"}},{"$f":"Actif!$E$31/100","v":{"v":0.0605,"d":"6.05%"}},{"$f":"Actif!$E$32/100","v":{"v":0.47350000000000003,"d":"47.35%"}},{"$f":"Actif!$E$33/100","v":{"v":0.0585,"d":"5.85%"}},{"$f":"Actif!$E$29/100","v":{"v":0.027999999999999997,"d":"2.80%"}}]
[null,"#54"]
[null,"#55"]
[null,"#56"]
[null,"#57"]
[null,"#58"]
[null,"#59"]
[null,"#60"]
[null,"#61"]
[null,"#62"]
[null,"#63"]
[null,"#64"]
[null,"#65"]
[null,"#66"]
[null,"#67"]
[null,"#68"]
[null,"#69"]
[null,"#70"]
[null,"#71"]
[null,"#72"]
[null,"#73"]
[null,"#74"]
[null,"#75"]
[null,"#76"]
[null,"#77"]
[null,"#78"]
[null,"#79"]
[null,"#80"]
[null,"#81"]
[null,"#82"]
[null,"#83"]
[null,"#84"]
[null,"#85"]
[null,"#86"]
[null,"#87"]
[null,"#88"]
[null,"#89"]
[null,"#90"]
[null,"#91"]
[null,"#92"]
[null,"#93"]
[null,"#94"]
[null,"#95"]
[null,"#96"]
[null,"#97"]
[null,"#98"]
[null,"#99"]
[null,"#100"]
[null,"#101"]
[null,"#102"]
[null,"#103"]
[null,"#104"]
[null,"#105"]
[null,"#106"]
[null,"#107"]
[null,"#108"]
[null,"#109"]
[null,"#110"]
[null,"#111"]
[null,"#112"]
[null,"#113"]
[null,"#114"]
[null,"#115"]
[null,"#116"]
[null,"#117"]
[null,"#118"]
[null,"#119"]
[null,"#120"]
[null,"#121"]
[null,"#122"]
[null,"#123"]
[null,"#124"]
[null,"#125"]
[null,"#126"]
[null,"#127"]
[null,"#128"]
[null,"#129"]
[null,"#130"]
[null,"#131"]
[null,"#132"]
[null,"#133"]
[null,"#134"]
[null,"#135"]
[null,"#136"]
[null,"#137"]
[null,"#138"]
[null,"#139"]
[null,"#140"]
[null,"#141"]
[null,"#142"]
[null,"#143"]
[null,"#144"]
[null,"#145"]
[null,"#146"]
[null,"#147"]
[null,"#148"]
[null,"#149"]
[null,"#150"]
[null,"#151"]
[null,"#152"]
[null,"#153"]
[null,"#154"]
[null,"#155"]
[null,"#156"]
[null,"#157"]
[null,"#158"]
[null,"#159"]
[null,"#160"]
[null,"#161"]
[null,"#162"]
[null,"#163"]
[null,"#164"]
[null,"#165"]
[null,"#166"]
[null,"#167"]
[null,"#168"]
[null,"#169"]
[null,"#170"]
[null,"#171"]
[null,"#172"]
[null,"#173"]
[null,"#174"]
[null,"#175"]
[null,"#176"]
[null,"#177"]
[null,"#178"]
[null,"#179"]
[null,"#180"]
[null,"#181"]
[null,"#182"]
[null,"#183"]
[null,"#184"]
[null,"#185"]
[null,"#186"]
[null,"#187"]
[null,"#188"]
[null,"#189"]
[null,"#190"]
[null,"#191"]
[null,"#192"]
[null,"#193"]
[null,"#194"]
[null,"#195"]
[null,"#196"]
[null,"#197"]
[null,"#198"]
[null,"#199"]
[null,"#200"]
[null,"#201"]
[null,"#202"]
[null,"#203"]
[null,"#204"]
[null,"#205"]
[null,"#206"]
[null,"#207"]
[null,"#208"]
[null,"#209"]
[null,"#210"]
[null,"#211"]
[null,"#212"]
[null,"#213"]
[null,"#214"]
[null,"#215"]
[null,"#216"]
[null,"#217"]
[null,"#218"]
[null,"#219"]
[null,"#220"]
[null,"#221"]
[null,"#222"]
[null,"#223"]
[null,"#224"]
[null,"#225"]
[null,"#226"]
[null,"#227"]
[null,"#228"]
[null,"#229"]
[null,"#230"]
[null,"#231"]
[null,"#232"]
[null,"#233"]
[null,"#234"]
[null,"#235"]
[null,"#236"]
[null,"#237"]
[null,"#238"]
[null,"#239"]
[null,"#240"]
[null,"#241"]
[null,"#242"]
[null,"#243"]
[null,"#244"]
[null,"#245"]
[null,"#246"]
[null,"#247"]
[null,"#248"]
[null,"#249"]
[null,"#250"]
[null,"#251"]
[null,"#252"]
[null,"#253"]
[null,"#254"]
[null,"#255"]
[null,"#256"]
[null,"#257"]
[null,"#258"]
[null,"#259"]
[null,"#260"]
[null,"#261"]
[null,"#262"]
[null,"#263"]
[null,"#264"]
[null,"#265"]
[null,"#266"]
[null,"#267"]
[null,"#268"]
[null,"#269"]
[null,"#270"]
[null,"#271"]
[null,"#272"]
[null,"#273"]
[null,"#274"]
[null,"#275"]
[null,"#276"]
[null,"#277"]
[null,"#278"]
[null,"#279"]
[null,"#280"]
[null,"#281"]
[null,"#282"]
[null,"#283"]
[null,"#284"]
[null,"#285"]
[null,"#286"]
[null,"#287"]
[null,"#288"]
[null,"#289"]
[null,"#290"]
[null,"#291"]
[null,"#292"]
[null,"#293"]
[null,"#294"]
[null,"#295"]
[null,"#296"]
[null,"#297"]
[null,"#298"]
[null,"#299"]
[null,"#300"]
[null,"#301"]
[null,"#302"]
[null,"#303"]
[null,"#304"]
[null,"#305"]
[null,"#306"]
[null,"#307"]
[null,"#308"]
[null,"#309"]
[null,"#310"]
[null,"#311"]
[null,"#312"]
[null,"#313"]
[null,"#314"]
[null,"#315"]
[null,"#316"]
[null,"#317"]
[null,"#318"]
[null,"#319"]
[null,"#320"]
[null,"#321"]
[null,"#322"]
[null,"#323"]
[null,"#324"]
[null,"#325"]
[null,"#326"]
[null,"#327"]
[null,"#328"]
[null,"#329"]
[null,"#330"]
[null,"#331"]
[null,"#332"]
[null,"#333"]
[null,"#334"]
[null,"#335"]
[null,"#336"]
[null,"#337"]
[null,"#338"]
[null,"#339"]
[null,"#340"]
[null,"#341"]
[null,"#342"]
[null,"#343"]
[null,"#344"]
[null,"#345"]
[null,"#346"]
[null,"#347"]
[null,"#348"]
[null,"#349"]
[null,"#350"]
[null,"#351"]
[null,"#352"]
[null,"#353"]
[null,"#354"]
[null,"#355"]
[null,"#356"]
[null,"#357"]
[null,"#358"]
[null,"#359"]
[null,"#360"]
[null,"#361"]
[null,"#362"]
[null,"#363"]
[null,"#364"]
[null,"#365"]
[null,"#366"]
[null,"#367"]
[null,"#368"]
[null,"#369"]
[null,"#370"]
[null,"#371"]
[null,"#372"]
[null,"#373"]
[null,"#374"]
[null,"#375"]
[null,"#376"]
[null,"#377"]
[null,"#378"]
[null,"#379"]
[null,"#380"]
[null,"#381"]
[null,"#382"]
[null,"#383"]
[null,"#384"]
[null,"#385"]
[null,"#386"]
[null,"#387"]
[null,"#388"]
[null,"#389"]
[null,"#390"]
[null,"#391"]
[null,"#392"]
[null,"#393"]
[null,"#394"]
[null,"#395"]
[null,"#396"]
[null,"#397"]
[null,"#398"]
[null,"#399"]
[null,"#400"]
[null,"#401"]
[null,"#402"]
[null,"#403"]
[null,"#404"]
[null,"#405"]
[null,"#406"]
[null,"#407"]
[null,"#408"]
[null,"#409"]
[null,"#410"]
[null,"#411"]
[null,"#412"]
[null,"#413"]
[null,"#414"]
[null,"#415"]
[null,"#416"]
[null,"#417"]
[null,"#418"]
[null,"#419"]
[null,"#420"]
[null,"#421"]
[null,"#422"]
[null,"#423"]
[null,"#424"]
[null,"#425"]
[null,"#426"]
[null,"#427"]
[null,"#428"]
[null,"#429"]
[null,"#430"]
[null,"#431"]
[null,"#432"]
[null,"#433"]
[null,"#434"]
[null,"#435"]
[null,"#436"]
[null,"#437"]
[null,"#438"]
[null,"#439"]
[null,"#440"]
[null,"#441"]
[null,"#442"]
[null,"#443"]
[null,"#444"]
[null,"#445"]
[null,"#446"]
[null,"#447"]
[null,"#448"]
[null,"#449"]
[null,"#450"]
[null,"#451"]
[null,"#452"]
[null,"#453"]
[null,"#454"]
[null,"#455"]
[null,"#456"]
[null,"#457"]
[null,"#458"]
[null,"#459"]
[null,"#460"]
[null,"#461"]
[null,"#462"]
[null,"#463"]
[null,"#464"]
[null,"#465"]
[null,"#466"]
[null,"#467"]
[null,"#468"]
[null,"#469"]
[null,"#470"]
[null,"#471"]
[null,"#472"]
[null,"#473"]
[null,"#474"]
[null,"#475"]
[null,"#476"]
[null,"#477"]
[null,"#478"]
[null,"#479"]
[null,"#480"]
[null,"#481"]
[null,"#482"]
[null,"#483"]
[null,"#484"]
[null,"#485"]
[null,"#486"]
[null,"#487"]
[null,"#488"]
[null,"#489"]
[null,"#490"]
[null,"#491"]
[null,"#492"]
[null,"#493"]
[null,"#494"]
[null,"#495"]
[null,"#496"]
[null,"#497"]
[null,"#498"]
[null,"#499"]
[null,"#500"]
[null,"#501"]
[null,"#502"]
[null,"#503"]
[null,"#504"]
[null,"#505"]
[null,"#506"]
[null,"#507"]
[null,"#508"]
[null,"#509"]
[null,"#510"]
[null,"#511"]
[null,"#512"]
[null,"#513"]
[null,"#514"]
[null,"#515"]
[null,"#516"]
[null,"#517"]
[null,"#518"]
[null,"#519"]
[null,"#520"]
[null,"#521"]
[null,"#522"]
[null,"#523"]
[null,"#524"]
[null,"#525"]
[null,"#526"]
[null,"#527"]
[null,"#528"]
[null,"#529"]
[null,"#530"]
[null,"#531"]
[null,"#532"]
[null,"#533"]
[null,"#534"]
[null,"#535"]
[null,"#536"]
[null,"#537"]
[null,"#538"]
[null,"#539"]
[null,"#540"]
[null,"#541"]
[null,"#542"]
[null,"#543"]
[null,"#544"]
[null,"#545"]
[null,"#546"]
[null,"#547"]
[null,"#548"]
[null,"#549"]
[null,"#550"]
[null,"#551"]
[null,"#552"]
[null,"#553"]
[null,"#554"]
[null,"#555"]
[null,"#556"]
[null,"#557"]
[null,"#558"]
[null,"#559"]
[null,"#560"]
[null,"#561"]
[null,"#562"]
[null,"#563"]
[null,"#564"]
[null,"#565"]
[null,"#566"]
[null,"#567"]
[null,"#568"]
[null,"#569"]
[null,"#570"]
[null,"#571"]
[null,"#572"]
[null,"#573"]
[null,"#574"]
[null,"#575"]
[null,"#576"]
[null,"#577"]
[null,"#578"]
[null,"#579"]
[null,"#580"]
[null,"#581"]
[null,"#582"]
[null,"#583"]
[null,"#584"]
[null,"#585"]
[null,"#586"]
[null,"#587"]
[null,"#588"]
[null,"#589"]
[null,"#590"]
[null,"#591"]
[null,"#592"]
[null,"#593"]
[null,"#594"]
[null,"#595"]
[null,"#596"]
[null,"#597"]
[null,"#598"]
[null,"#599"]
[null,"#600"]
[null,"#601"]
[null,"#602"]
[null,"#603"]
[null,"#604"]
[null,"#605"]
[null,"#606"]
[null,"#607"]
[null,"#608"]
[null,"#609"]
[null,"#610"]
[null,"#611"]
[null,"#612"]
[null,"#613"]
[null,"#614"]
[null,"#615"]
[null,"#616"]
[null,"#617"]
[null,"#618"]
[null,"#619"]
[null,"#620"]
[null,"#621"]
[null,"#622"]
[null,"#623"]
[null,"#624"]
[null,"#625"]
[null,"#626"]
[null,"#627"]
[null,"#628"]
[null,"#629"]
[null,"#630"]
[null,"#631"]
[null,"#632"]
[null,"#633"]
[null,"#634"]
[null,"#635"]
[null,"#636"]
[null,"#637"]
[null,"#638"]
[null,"#639"]
[null,"#640"]
[null,"#641"]
[null,"#642"]
[null,"#643"]
[null,"#644"]
[null,"#645"]
[null,"#646"]
[null,"#647"]
[null,"#648"]
[null,"#649"]
[null,"#650"]
[null,"#651"]
[null,"#652"]
[null,"#653"]
[null,"#654"]
[null,"#655"]
[null,"#656"]
[null,"#657"]
[null,"#658"]
[null,"#659"]
[null,"#660"]
[null,"#661"]
[null,"#662"]
[null,"#663"]
[null,"#664"]
[null,"#665"]
[null,"#666"]
[null,"#667"]
[null,"#668"]
[null,"#669"]
[null,"#670"]
[null,"#671"]
[null,"#672"]
[null,"#673"]
[null,"#674"]
[null,"#675"]
[null,"#676"]
[null,"#677"]
[null,"#678"]
[null,"#679"]
[null,"#680"]
[null,"#681"]
[null,"#682"]
[null,"#683"]
[null,"#684"]
[null,"#685"]
[null,"#686"]
[null,"#687"]
[null,"#688"]
[null,"#689"]
[null,"#690"]
[null,"#691"]
[null,"#692"]
[null,"#693"]
[null,"#694"]
[null,"#695"]
[null,"#696"]
[null,"#697"]
[null,"#698"]
[null,"#699"]
[null,"#700"]
[null,"#701"]
[null,"#702"]
[null,"#703"]
[null,"#704"]
[null,"#705"]
[null,"#706"]
[null,"#707"]
[null,"#708"]
[null,"#709"]
[null,"#710"]
[null,"#711"]
[null,"#712"]
[null,"#713"]
[null,"#714"]
[null,"#715"]
[null,"#716"]
[null,"#717"]
[null,"#718"]
[null,"#719"]
[null,"#720"]
[null,"#721"]
[null,"#722"]
[null,"#723"]
[null,"#724"]
[null,"#725"]
[null,"#726"]
[null,"#727"]
[null,"#728"]
[null,"#729"]
[null,"#730"]
[null,"#731"]
[null,"#732"]
[null,"#733"]
[null,"#734"]
[null,"#735"]
[null,"#736"]
[null,"#737"]
[null,"#738"]
[null,"#739"]
[null,"#740"]
[null,"#741"]
[null,"#742"]
[null,"#743"]
[null,"#744"]
[null,"#745"]
[null,"#746"]
[null,"#747"]
[null,"#748"]
[null,"#749"]
[null,"#750"]
[null,"#751"]
[null,"#752"]
[null,"#753"]
[null,"#754"]
[null,"#755"]
[null,"#756"]
[null,"#757"]
[null,"#758"]
[null,"#759"]
[null,"#760"]
[null,"#761"]
[null,"#762"]
[null,"#763"]
[null,"#764"]
[null,"#765"]
[null,"#766"]
[null,"#767"]
[null,"#768"]
[null,"#769"]
[null,"#770"]
[null,"#771"]
[null,"#772"]
[null,"#773"]
[null,"#774"]
[null,"#775"]
[null,"#776"]
[null,"#777"]
[null,"#778"]
[null,"#779"]
[null,"#780"]
[null,"#781"]
[null,"#782"]
[null,"#783"]
[null,"#784"]
[null,"#785"]
[null,"#786"]
[null,"#787"]
[null,"#788"]
[null,"#789"]
[null,"#790"]
[null,"#791"]
[null,"#792"]
[null,"#793"]
[null,"#794"]
[null,"#795"]
[null,"#796"]
[null,"#797"]
[null,"#798"]
[null,"#799"]
[null,"#800"]
[null,"#801"]
[null,"#802"]
[null,"#803"]
[null,"#804"]
[null,"#805"]
[null,"#806"]
[null,"#807"]
[null,"#808"]
[null,"#809"]
[null,"#810"]
[null,"#811"]
[null,"#812"]
[null,"#813"]
[null,"#814"]
[null,"#815"]
[null,"#816"]
[null,"#817"]
[null,"#818"]
[null,"#819"]
[null,"#820"]
[null,"#821"]
[null,"#822"]
[null,"#823"]
[null,"#824"]
[null,"#825"]
[null,"#826"]
[null,"#827"]
[null,"#828"]
[null,"#829"]
[null,"#830"]
[null,"#831"]
[null,"#832"]
[null,"#833"]
[null,"#834"]
[null,"#835"]
[null,"#836"]
[null,"#837"]
[null,"#838"]
[null,"#839"]
[null,"#840"]
[null,"#841"]
[null,"#842"]
[null,"#843"]
[null,"#844"]
[null,"#845"]
[null,"#846"]
[null,"#847"]
[null,"#848"]
[null,"#849"]
[null,"#850"]
[null,"#851"]
[null,"#852"]
[null,"#853"]
[null,"#854"]
[null,"#855"]
[null,"#856"]
[null,"#857"]
[null,"#858"]
[null,"#859"]
[null,"#860"]
[null,"#861"]
[null,"#862"]
[null,"#863"]
[null,"#864"]
[null,"#865"]
[null,"#866"]
[null,"#867"]
[null,"#868"]
[null,"#869"]
[null,"#870"]
[null,"#871"]
[null,"#872"]
[null,"#873"]
[null,"#874"]
[null,"#875"]
[null,"#876"]
[null,"#877"]
[null,"#878"]
[null,"#879"]
[null,"#880"]
[null,"#881"]
[null,"#882"]
[null,"#883"]
[null,"#884"]
[null,"#885"]
[null,"#886"]
[null,"#887"]
[null,"#888"]
[null,"#889"]
[null,"#890"]
[null,"#891"]
[null,"#892"]
[null,"#893"]
[null,"#894"]
[null,"#895"]
[null,"#896"]
[null,"#897"]
[null,"#898"]
[null,"#899"]
[null,"#900"]
[null,"#901"]
[null,"#902"]
[null,"#903"]
[null,"#904"]
[null,"#905"]
[null,"#906"]
[null,"#907"]
[null,"#908"]
[null,"#909"]
[null,"#910"]
[null,"#911"]
[null,"#912"]
[null,"#913"]
[null,"#914"]
[null,"#915"]
[null,"#916"]
[null,"#917"]
[null,"#918"]
[null,"#919"]
[null,"#920"]
[null,"#921"]
[null,"#922"]
[null,"#923"]
[null,"#924"]
[null,"#925"]
[null,"#926"]
[null,"#927"]
[null,"#928"]
[null,"#929"]
[null,"#930"]
[null,"#931"]
[null,"#932"]
[null,"#933"]
[null,"#934"]
[null,"#935"]
[null,"#936"]
[null,"#937"]
[null,"#938"]
[null,"#939"]
[null,"#940"]
[null,"#941"]
[null,"#942"]
[null,"#943"]
[null,"#944"]
[null,"#945"]
[null,"#946"]
[null,"#947"]
[null,"#948"]
[null,"#949"]
[null,"#950"]
[null,"#951"]
[null,"#952"]
[null,"#953"]
[null,"#954"]
[null,"#955"]
[null,"#956"]
[null,"#957"]
[null,"#958"]
[null,"#959"]
[null,"#960"]
[null,"#961"]
[null,"#962"]
[null,"#963"]
[null,"#964"]
[null,"#965"]
[null,"#966"]
[null,"#967"]
[null,"#968"]
[null,"#969"]
[null,"#970"]
[null,"#971"]
[null,"#972"]
[null,"#973"]
[null,"#974"]
[null,"#975"]
[null,"#976"]
[null,"#977"]
[null,"#978"]
[null,"#979"]
[null,"#980"]
[null,"#981"]
[null,"#982"]
[null,"#983"]
[null,"#984"]
[null,"#985"]
[null,"#986"]
[null,"#987"]
[null,"#988"]
[null,"#989"]
[null,"#990"]
[null,"#991"]
[null,"#992"]
[null,"#993"]
[null,"#994"]
[null,"#995"]
[null,"#996"]
[null,"#997"]
[null,"#998"]
[null,"#999"]
[null,"#1000"]
[]
[null,"AVIE / CAPI","Euro - UC","2028-12-31",{"$nulls":19},"Obligation","Dette Privée","Action","Private Equity","Obligation CT"]
[null,"ID","AGE","SOUSCRIPTION_YR","SEXE","PDT","CHGT_GEST_EURO_PC","CHGT_GEST_UC_PC","COMM_DIST_EURO_PC","COMM_DIST_UC_PC","CLAUSE_PB_PC","TMG_PC","NO_POLS","PM_EURO","PM_UC_TOT","PM_UC_1","PM_UC_2","PM_UC_3","PM_UC_4","PM_UC_5",null,"Pondération","%Euro","%UC1","%UC2","%UC3","%UC4","%UC5"]
[null,"#1",18,2026,"H","A_VIE",{"$f":"frais_gestion_Euro*100","v":{"v":0.44999999999999996,"d":"0.45"}},{"$f":"frais_gestion_UC*100","v":{"v":0.38999999999999996,"d":"0.39"}},{"$f":"frais_distribution_FG*100","v":0.6},{"$f":"frais_distribution_UC*100","v":0.6},85,0,{"$f":"ROUND(Primes!$N$4*V2096,0)","v":11},{"$f":"'BP Financier'!$D$33*(('BP Financier'!$C$16+'BP Financier'!$D$16)/('BP Financier'!$C$16+'BP Financier'!$C$19+'BP Financier'!$D$16+'BP Financier'!$D$19))*V2096","v":{"v":318509.3147517605,"d":"318,509"}},{"$f":"SUM(P2096:T2096)","v":{"v":176591.00862873122,"d":"176,591"}},{"$f":"'BP Financier'!$D$44*(('BP Financier'!$C$16+'BP Financier'!$D$16)/('BP Financier'!$C$16+'BP Financier'!$C$19+'BP Financier'!$D$16+'BP Financier'!$D$19+'BP Financier'!$C$22+'BP Financier'!$D$22))*$V2096*X2096/(1-$W2096)","v":{"v":22477.47718832655,"d":"22,477"}},{"$f":"'BP Financier'!$D$44*(('BP Financier'!$C$16+'BP Financier'!$D$16)/('BP Financier'!$C$16+'BP Financier'!$C$19+'BP Financier'!$D$16+'BP Financier'!$D$19+'BP Financier'!$C$22+'BP Financier'!$D$22))*$V2096*Y2096/(1-$W2096)","v":{"v":15026.37977783156,"d":"15,026"}},{"$f":"'BP Financier'!$D$44*(('BP Financier'!$C$16+'BP Financier'!$D$16)/('BP Financier'!$C$16+'BP Financier'!$C$19+'BP Financier'!$D$16+'BP Financier'!$D$19+'BP Financier'!$C$22+'BP Financier'!$D$22))*$V2096*Z2096/(1-$W2096)","v":{"v":117603.15412897924,"d":"117,603"}},{"$f":"'BP Financier'!$D$44*(('BP Financier'!$C$16+'BP Financier'!$D$16)/('BP Financier'!$C$16+'BP Financier'!$C$19+'BP Financier'!$D$16+'BP Financier'!$D$19+'BP Financier'!$C$22+'BP Financier'!$D$22))*$V2096*AA2096/(1-$W2096)","v":{"v":14529.639950465227,"d":"14,530"}},{"$f":"'BP Financier'!$D$44*(('BP Financier'!$C$16+'BP Financier'!$D$16)/('BP Financier'!$C$16+'BP Financier'!$C$19+'BP Financier'!$D$16+'BP Financier'!$D$19+'BP Financier'!$C$22+'BP Financier'!$D$22))*$V2096*AB2096/(1-$W2096)","v":{"v":6954.357583128654,"d":"6,954"}},null,{"v":0.0025,"d":"0.25%"},{"$f":"Actif!$E$28/100","v":{"v":0.28900000000000003,"d":"28.90%"}},{"$f":"Actif!$E$30/100","v":{"v":0.09050000000000001,"d":"9.05%"}},{"$f":"Actif!$E$31/100","v":{"v":0.0605,"d":"6.05%"}},{"$f":"Actif!$E$32/100","v":{"v":0.47350000000000003,"d":"47.35%"}},{"$f":"Actif!$E$33/100","v":{"v":0.0585,"d":"5.85%"}},{"$f":"Actif!$E$29/100","v":{"v":0.027999999999999997,"d":"2.80%"}}]
[null,"#2",18,2028,"H","A_VIE",{"v":0.44999999999999996,"d":"0.45"},{"v":0.38999999999999996,"d":"0.39"},0.6,0.6,85,0,{"$f":"ROUND(Primes!$N$4*V2097,0)","v":11},{"$f":"'BP Financier'!$D$33*(('BP Financier'!$C$16+'BP Financier'!$D$16)/('BP Financier'!$C$16+'BP Financier'!$C$19+'BP Financier'!$D$16+'BP Financier'!$D$19))*V2097","v":{"v":318509.3147517605,"d":"318,509"}},{"$f":"SUM(P2097:T2097)","v":{"v":176591.00862873122,"d":"176,591"}},{"$f":"'BP Financier'!$D$44*(('BP Financier'!$C$16+'BP Financier'!$D$16)/('BP Financier'!$C$16+'BP Financier'!$C$19+'BP Financier'!$D$16+'BP Financier'!$D$19+'BP Financier'!$C$22+'BP Financier'!$D$22))*$V2097*X2097/(1-$W2097)","v":{"v":22477.47718832655,"d":"22,477"}},{"$f":"'BP Financier'!$D$44*(('BP Financier'!$C$16+'BP Financier'!$D$16)/('BP Financier'!$C$16+'BP Financier'!$C$19+'BP Financier'!$D$16+'BP Financier'!$D$19+'BP Financier'!$C$22+'BP Financier'!$D$22))*$V2097*Y2097/(1-$W2097)","v":{"v":15026.37977783156,"d":"15,026"}},{"$f":"'BP Financier'!$D$44*(('BP Financier'!$C$16+'BP Financier'!$D$16)/('BP Financier'!$C$16+'BP Financier'!$C$19+'BP Financier'!$D$16+'BP Financier'!$D$19+'BP Financier'!$C$22+'BP Financier'!$D$22))*$V2097*Z2097/(1-$W2097)","v":{"v":117603.15412897924,"d":"117,603"}},{"$f":"'BP Financier'!$D$44*(('BP Financier'!$C$16+'BP Financier'!$D$16)/('BP Financier'!$C$16+'BP Financier'!$C$19+'BP Financier'!$D$16+'BP Financier'!$D$19+'BP Financier'!$C$22+'BP Financier'!$D$22))*$V2097*AA2097/(1-$W2097)","v":{"v":14529.639950465227,"d":"14,530"}},{"$f":"'BP Financier'!$D$44*(('BP Financier'!$C$16+'BP Financier'!$D$16)/('BP Financier'!$C$16+'BP Financier'!$C$19+'BP Financier'!$D$16+'BP Financier'!$D$19+'BP Financier'!$C$22+'BP Financier'!$D$22))*$V2097*AB2097/(1-$W2097)","v":{"v":6954.357583128654,"d":"6,954"}},null,{"v":0.0025,"d":"0.25%"},{"$f":"Actif!$E$28/100","v":{"v":0.28900000000000003,"d":"28.90%"}},{"$f":"Actif!$E$30/100","v":{"v":0.09050000000000001,"d":"9.05%"}},{"$f":"Actif!$E$31/100","v":{"v":0.0605,"d":"6.05%"}},{"$f":"Actif!$E$32/100","v":{"v":0.47350000000000003,"d":"47.35%"}},{"$f":"Actif!$E$33/100","v":{"v":0.0585,"d":"5.85%"}},{"$f":"Actif!$E$29/100","v":{"v":0.027999999999999997,"d":"2.80%"}}]
[null,"#3",19,2026,"H","A_VIE",{"v":0.44999999999999996,"d":"0.45"},{"v":0.38999999999999996,"d":"0.39"},0.6,0.6,85,0,{"$f":"ROUND(Primes!$N$4*V2098,0)","v":11},{"$f":"'BP Financier'!$D$33*(('BP Financier'!$C$16+'BP Financier'!$D$16)/('BP Financier'!$C$16+'BP Financier'!$C$19+'BP Financier'!$D$16+'BP Financier'!$D$19))*V2098","v":{"v":318509.3147517605,"d":"318,509"}},{"v":176591.00862873122,"d":"176,591"},{"$f":"'BP Financier'!$D$44*(('BP Financier'!$C$16+'BP Financier'!$D$16)/('BP Financier'!$C$16+'BP Financier'!$C$19+'BP Financier'!$D$16+'BP Financier'!$D$19+'BP Financier'!$C$22+'BP Financier'!$D$22))*$V2098*X2098/(1-$W2098)","v":{"v":22477.47718832655,"d":"22,477"}},{"$f":"'BP Financier'!$D$44*(('BP Financier'!$C$16+'BP Financier'!$D$16)/('BP Financier'!$C$16+'BP Financier'!$C$19+'BP Financier'!$D$16+'BP Financier'!$D$19+'BP Financier'!$C$22+'BP Financier'!$D$22))*$V2098*Y2098/(1-$W2098)","v":{"v":15026.37977783156,"d":"15,026"}},{"$f":"'BP Financier'!$D$44*(('BP Financier'!$C$16+'BP Financier'!$D$16)/('BP Financier'!$C$16+'BP Financier'!$C$19+'BP Financier'!$D$16+'BP Financier'!$D$19+'BP Financier'!$C$22+'BP Financier'!$D$22))*$V2098*Z2098/(1-$W2098)","v":{"v":117603.15412897924,"d":"117,603"}},{"$f":"'BP Financier'!$D$44*(('BP Financier'!$C$16+'BP Financier'!$D$16)/('BP Financier'!$C$16+'BP Financier'!$C$19+'BP Financier'!$D$16+'BP Financier'!$D$19+'BP Financier'!$C$22+'BP Financier'!$D$22))*$V2098*AA2098/(1-$W2098)","v":{"v":14529.639950465227,"d":"14,530"}},{"$f":"'BP Financier'!$D$44*(('BP Financier'!$C$16+'BP Financier'!$D$16)/('BP Financier'!$C$16+'BP Financier'!$C$19+'BP Financier'!$D$16+'BP Financier'!$D$19+'BP Financier'!$C$22+'BP Financier'!$D$22))*$V2098*AB2098/(1-$W2098)","v":{"v":6954.357583128654,"d":"6,954"}},null,{"v":0.0025,"d":"0.25%"},{"$f":"Actif!$E$28/100","v":{"v":0.28900000000000003,"d":"28.90%"}},{"$f":"Actif!$E$30/100","v":{"v":0.09050000000000001,"d":"9.05%"}},{"$f":"Actif!$E$31/100","v":{"v":0.0605,"d":"6.05%"}},{"$f":"Actif!$E$32/100","v":{"v":0.47350000000000003,"d":"47.35%"}},{"$f":"Actif!$E$33/100","v":{"v":0.0585,"d":"5.85%"}},{"$f":"Actif!$E$29/100","v":{"v":0.027999999999999997,"d":"2.80%"}}]
[null,"#4",19,2028,"H","A_VIE",{"v":0.44999999999999996,"d":"0.45"},{"v":0.38999999999999996,"d":"0.39"},0.6,0.6,85,0,{"$f":"ROUND(Primes!$N$4*V2099,0)","v":11},{"$f":"'BP Financier'!$D$33*(('BP Financier'!$C$16+'BP Financier'!$D$16)/('BP Financier'!$C$16+'BP Financier'!$C$19+'BP Financier'!$D$16+'BP Financier'!$D$19))*V2099","v":{"v":318509.3147517605,"d":"318,509"}},{"v":176591.00862873122,"d":"176,591"},{"$f":"'BP Financier'!$D$44*(('BP Financier'!$C$16+'BP Financier'!$D$16)/('BP Financier'!$C$16+'BP Financier'!$C$19+'BP Financier'!$D$16+'BP Financier'!$D$19+'BP Financier'!$C$22+'BP Financier'!$D$22))*$V2099*X2099/(1-$W2099)","v":{"v":22477.47718832655,"d":"22,477"}},{"$f":"'BP Financier'!$D$44*(('BP Financier'!$C$16+'BP Financier'!$D$16)/('BP Financier'!$C$16+'BP Financier'!$C$19+'BP Financier'!$D$16+'BP Financier'!$D$19+'BP Financier'!$C$22+'BP Financier'!$D$22))*$V2099*Y2099/(1-$W2099)","v":{"v":15026.37977783156,"d":"15,026"}},{"$f":"'BP Financier'!$D$44*(('BP Financier'!$C$16+'BP Financier'!$D$16)/('BP Financier'!$C$16+'BP Financier'!$C$19+'BP Financier'!$D$16+'BP Financier'!$D$19+'BP Financier'!$C$22+'BP Financier'!$D$22))*$V2099*Z2099/(1-$W2099)","v":{"v":117603.15412897924,"d":"117,603"}},{"$f":"'BP Financier'!$D$44*(('BP Financier'!$C$16+'BP Financier'!$D$16)/('BP Financier'!$C$16+'BP Financier'!$C$19+'BP Financier'!$D$16+'BP Financier'!$D$19+'BP Financier'!$C$22+'BP Financier'!$D$22))*$V2099*AA2099/(1-$W2099)","v":{"v":14529.639950465227,"d":"14,530"}},{"$f":"'BP Financier'!$D$44*(('BP Financier'!$C$16+'BP Financier'!$D$16)/('BP Financier'!$C$16+'BP Financier'!$C$19+'BP Financier'!$D$16+'BP Financier'!$D$19+'BP Financier'!$C$22+'BP Financier'!$D$22))*$V2099*AB2099/(1-$W2099)","v":{"v":6954.357583128654,"d":"6,954"}},null,{"v":0.0025,"d":"0.25%"},{"$f":"Actif!$E$28/100","v":{"v":0.28900000000000003,"d":"28.90%"}},{"$f":"Actif!$E$30/100","v":{"v":0.09050000000000001,"d":"9.05%"}},{"$f":"Actif!$E$31/100","v":{"v":0.0605,"d":"6.05%"}},{"$f":"Actif!$E$32/100","v":{"v":0.47350000000000003,"d":"47.35%"}},{"$f":"Actif!$E$33/100","v":{"v":0.0585,"d":"5.85%"}},{"$f":"Actif!$E$29/100","v":{"v":0.027999999999999997,"d":"2.80%"}}]
[null,"#5",20,2026,"F","A_VIE",{"v":0.44999999999999996,"d":"0.45"},{"v":0.38999999999999996,"d":"0.39"},0.6,0.6,85,0,{"$f":"ROUND(Primes!$N$4*V2100,0)","v":22},{"$f":"'BP Financier'!$D$33*(('BP Financier'!$C$16+'BP Financier'!$D$16)/('BP Financier'!$C$16+'BP Financier'!$C$19+'BP Financier'!$D$16+'BP Financier'!$D$19))*V2100","v":{"v":637018.629503521,"d":"637,019"}},{"v":353182.01725746243,"d":"353,182"},{"$f":"'BP Financier'!$D$44*(('BP Financier'!$C$16+'BP Financier'!$D$16)/('BP Financier'!$C$16+'BP Financier'!$C$19+'BP Financier'!$D$16+'BP Financier'!$D$19+'BP Financier'!$C$22+'BP Financier'!$D$22))*$V2100*X2100/(1-$W2100)","v":{"v":44954.9543766531,"d":"44,955"}},{"$f":"'BP Financier'!$D$44*(('BP Financier'!$C$16+'BP Financier'!$D$16)/('BP Financier'!$C$16+'BP Financier'!$C$19+'BP Financier'!$D$16+'BP Financier'!$D$19+'BP Financier'!$C$22+'BP Financier'!$D$22))*$V2100*Y2100/(1-$W2100)","v":{"v":30052.75955566312,"d":"30,053"}},{"$f":"'BP Financier'!$D$44*(('BP Financier'!$C$16+'BP Financier'!$D$16)/('BP Financier'!$C$16+'BP Financier'!$C$19+'BP Financier'!$D$16+'BP Financier'!$D$19+'BP Financier'!$C$22+'BP Financier'!$D$22))*$V2100*Z2100/(1-$W2100)","v":{"v":235206.30825795847,"d":"235,206"}},{"$f":"'BP Financier'!$D$44*(('BP Financier'!$C$16+'BP Financier'!$D$16)/('BP Financier'!$C$16+'BP Financier'!$C$19+'BP Financier'!$D$16+'BP Financier'!$D$19+'BP Financier'!$C$22+'BP Financier'!$D$22))*$V2100*AA2100/(1-$W2100)","v":{"v":29059.279900930454,"d":"29,059"}},{"$f":"'BP Financier'!$D$44*(('BP Financier'!$C$16+'BP Financier'!$D$16)/('BP Financier'!$C$16+'BP Financier'!$C$19+'BP Financier'!$D$16+'BP Financier'!$D$19+'BP Financier'!$C$22+'BP Financier'!$D$22))*$V2100*AB2100/(1-$W2100)","v":{"v":13908.715166257309,"d":"13,909"}},null,{"v":0.005,"d":"0.50%"},{"$f":"Actif!$E$28/100","v":{"v":0.28900000000000003,"d":"28.90%"}},{"$f":"Actif!$E$30/100","v":{"v":0.09050000000000001,"d":"9.05%"}},{"$f":"Actif!$E$31/100","v":{"v":0.0605,"d":"6.05%"}},{"$f":"Actif!$E$32/100","v":{"v":0.47350000000000003,"d":"47.35%"}},{"$f":"Actif!$E$33/100","v":{"v":0.0585,"d":"5.85%"}},{"$f":"Actif!$E$29/100","v":{"v":0.027999999999999997,"d":"2.80%"}}]
[null,"#6",20,2028,"F","A_VIE",{"v":0.44999999999999996,"d":"0.45"},{"v":0.38999999999999996,"d":"0.39"},0.6,0.6,85,0,{"$f":"ROUND(Primes!$N$4*V2101,0)","v":22},{"$f":"'BP Financier'!$D$33*(('BP Financier'!$C$16+'BP Financier'!$D$16)/('BP Financier'!$C$16+'BP Financier'!$C$19+'BP Financier'!$D$16+'BP Financier'!$D$19))*V2101","v":{"v":637018.629503521,"d":"637,019"}},{"v":353182.01725746243,"d":"353,182"},{"$f":"'BP Financier'!$D$44*(('BP Financier'!$C$16+'BP Financier'!$D$16)/('BP Financier'!$C$16+'BP Financier'!$C$19+'BP Financier'!$D$16+'BP Financier'!$D$19+'BP Financier'!$C$22+'BP Financier'!$D$22))*$V2101*X2101/(1-$W2101)","v":{"v":44954.9543766531,"d":"44,955"}},{"$f":"'BP Financier'!$D$44*(('BP Financier'!$C$16+'BP Financier'!$D$16)/('BP Financier'!$C$16+'BP Financier'!$C$19+'BP Financier'!$D$16+'BP Financier'!$D$19+'BP Financier'!$C$22+'BP Financier'!$D$22))*$V2101*Y2101/(1-$W2101)","v":{"v":30052.75955566312,"d":"30,053"}},{"$f":"'BP Financier'!$D$44*(('BP Financier'!$C$16+'BP Financier'!$D$16)/('BP Financier'!$C$16+'BP Financier'!$C$19+'BP Financier'!$D$16+'BP Financier'!$D$19+'BP Financier'!$C$22+'BP Financier'!$D$22))*$V2101*Z2101/(1-$W2101)","v":{"v":235206.30825795847,"d":"235,206"}},{"$f":"'BP Financier'!$D$44*(('BP Financier'!$C$16+'BP Financier'!$D$16)/('BP Financier'!$C$16+'BP Financier'!$C$19+'BP Financier'!$D$16+'BP Financier'!$D$19+'BP Financier'!$C$22+'BP Financier'!$D$22))*$V2101*AA2101/(1-$W2101)","v":{"v":29059.279900930454,"d":"29,059"}},{"$f":"'BP Financier'!$D$44*(('BP Financier'!$C$16+'BP Financier'!$D$16)/('BP Financier'!$C$16+'BP Financier'!$C$19+'BP Financier'!$D$16+'BP Financier'!$D$19+'BP Financier'!$C$22+'BP Financier'!$D$22))*$V2101*AB2101/(1-$W2101)","v":{"v":13908.715166257309,"d":"13,909"}},null,{"v":0.005,"d":"0.50%"},{"$f":"Actif!$E$28/100","v":{"v":0.28900000000000003,"d":"28.90%"}},{"$f":"Actif!$E$30/100","v":{"v":0.09050000000000001,"d":"9.05%"}},{"$f":"Actif!$E$31/100","v":{"v":0.0605,"d":"6.05%"}},{"$f":"Actif!$E$32/100","v":{"v":0.47350000000000003,"d":"47.35%"}},{"$f":"Actif!$E$33/100","v":{"v":0.0585,"d":"5.85%"}},{"$f":"Actif!$E$29/100","v":{"v":0.027999999999999997,"d":"2.80%"}}]
[null,"#7",21,2026,"H","A_VIE",{"v":0.44999999999999996,"d":"0.45"},{"v":0.38999999999999996,"d":"0.39"},0.6,0.6,85,0,{"$f":"ROUND(Primes!$N$4*V2102,0)","v":22},{"$f":"'BP Financier'!$D$33*(('BP Financier'!$C$16+'BP Financier'!$D$16)/('BP Financier'!$C$16+'BP Financier'!$C$19+'BP Financier'!$D$16+'BP Financier'!$D$19))*V2102","v":{"v":637018.629503521,"d":"637,019"}},{"v":353182.01725746243,"d":"353,182"},{"$f":"'BP Financier'!$D$44*(('BP Financier'!$C$16+'BP Financier'!$D$16)/('BP Financier'!$C$16+'BP Financier'!$C$19+'BP Financier'!$D$16+'BP Financier'!$D$19+'BP Financier'!$C$22+'BP Financier'!$D$22))*$V2102*X2102/(1-$W2102)","v":{"v":44954.9543766531,"d":"44,955"}},{"$f":"'BP Financier'!$D$44*(('BP Financier'!$C$16+'BP Financier'!$D$16)/('BP Financier'!$C$16+'BP Financier'!$C$19+'BP Financier'!$D$16+'BP Financier'!$D$19+'BP Financier'!$C$22+'BP Financier'!$D$22))*$V2102*Y2102/(1-$W2102)","v":{"v":30052.75955566312,"d":"30,053"}},{"$f":"'BP Financier'!$D$44*(('BP Financier'!$C$16+'BP Financier'!$D$16)/('BP Financier'!$C$16+'BP Financier'!$C$19+'BP Financier'!$D$16+'BP Financier'!$D$19+'BP Financier'!$C$22+'BP Financier'!$D$22))*$V2102*Z2102/(1-$W2102)","v":{"v":235206.30825795847,"d":"235,206"}},{"$f":"'BP Financier'!$D$44*(('BP Financier'!$C$16+'BP Financier'!$D$16)/('BP Financier'!$C$16+'BP Financier'!$C$19+'BP Financier'!$D$16+'BP Financier'!$D$19+'BP Financier'!$C$22+'BP Financier'!$D$22))*$V2102*AA2102/(1-$W2102)","v":{"v":29059.279900930454,"d":"29,059"}},{"$f":"'BP Financier'!$D$44*(('BP Financier'!$C$16+'BP Financier'!$D$16)/('BP Financier'!$C$16+'BP Financier'!$C$19+'BP Financier'!$D$16+'BP Financier'!$D$19+'BP Financier'!$C$22+'BP Financier'!$D$22))*$V2102*AB2102/(1-$W2102)","v":{"v":13908.715166257309,"d":"13,909"}},null,{"v":0.005,"d":"0.50%"},{"$f":"Actif!$E$28/100","v":{"v":0.28900000000000003,"d":"28.90%"}},{"$f":"Actif!$E$30/100","v":{"v":0.09050000000000001,"d":"9.05%"}},{"$f":"Actif!$E$31/100","v":{"v":0.0605,"d":"6.05%"}},{"$f":"Actif!$E$32/100","v":{"v":0.47350000000000003,"d":"47.35%"}},{"$f":"Actif!$E$33/100","v":{"v":0.0585,"d":"5.85%"}},{"$f":"Actif!$E$29/100","v":{"v":0.027999999999999997,"d":"2.80%"}}]
[null,"#8",21,2028,"H","A_VIE",{"v":0.44999999999999996,"d":"0.45"},{"v":0.38999999999999996,"d":"0.39"},0.6,0.6,85,0,{"$f":"ROUND(Primes!$N$4*V2103,0)","v":22},{"$f":"'BP Financier'!$D$33*(('BP Financier'!$C$16+'BP Financier'!$D$16)/('BP Financier'!$C$16+'BP Financier'!$C$19+'BP Financier'!$D$16+'BP Financier'!$D$19))*V2103","v":{"v":637018.629503521,"d":"637,019"}},{"v":353182.01725746243,"d":"353,182"},{"$f":"'BP Financier'!$D$44*(('BP Financier'!$C$16+'BP Financier'!$D$16)/('BP Financier'!$C$16+'BP Financier'!$C$19+'BP Financier'!$D$16+'BP Financier'!$D$19+'BP Financier'!$C$22+'BP Financier'!$D$22))*$V2103*X2103/(1-$W2103)","v":{"v":44954.9543766531,"d":"44,955"}},{"$f":"'BP Financier'!$D$44*(('BP Financier'!$C$16+'BP Financier'!$D$16)/('BP Financier'!$C$16+'BP Financier'!$C$19+'BP Financier'!$D$16+'BP Financier'!$D$19+'BP Financier'!$C$22+'BP Financier'!$D$22))*$V2103*Y2103/(1-$W2103)","v":{"v":30052.75955566312,"d":"30,053"}},{"$f":"'BP Financier'!$D$44*(('BP Financier'!$C$16+'BP Financier'!$D$16)/('BP Financier'!$C$16+'BP Financier'!$C$19+'BP Financier'!$D$16+'BP Financier'!$D$19+'BP Financier'!$C$22+'BP Financier'!$D$22))*$V2103*Z2103/(1-$W2103)","v":{"v":235206.30825795847,"d":"235,206"}},{"$f":"'BP Financier'!$D$44*(('BP Financier'!$C$16+'BP Financier'!$D$16)/('BP Financier'!$C$16+'BP Financier'!$C$19+'BP Financier'!$D$16+'BP Financier'!$D$19+'BP Financier'!$C$22+'BP Financier'!$D$22))*$V2103*AA2103/(1-$W2103)","v":{"v":29059.279900930454,"d":"29,059"}},{"$f":"'BP Financier'!$D$44*(('BP Financier'!$C$16+'BP Financier'!$D$16)/('BP Financier'!$C$16+'BP Financier'!$C$19+'BP Financier'!$D$16+'BP Financier'!$D$19+'BP Financier'!$C$22+'BP Financier'!$D$22))*$V2103*AB2103/(1-$W2103)","v":{"v":13908.715166257309,"d":"13,909"}},null,{"v":0.005,"d":"0.50%"},{"$f":"Actif!$E$28/100","v":{"v":0.28900000000000003,"d":"28.90%"}},{"$f":"Actif!$E$30/100","v":{"v":0.09050000000000001,"d":"9.05%"}},{"$f":"Actif!$E$31/100","v":{"v":0.0605,"d":"6.05%"}},{"$f":"Actif!$E$32/100","v":{"v":0.47350000000000003,"d":"47.35%"}},{"$f":"Actif!$E$33/100","v":{"v":0.0585,"d":"5.85%"}},{"$f":"Actif!$E$29/100","v":{"v":0.027999999999999997,"d":"2.80%"}}]
[null,"#9",22,2026,"H","A_VIE",{"v":0.44999999999999996,"d":"0.45"},{"v":0.38999999999999996,"d":"0.39"},0.6,0.6,85,0,{"$f":"ROUND(Primes!$N$4*V2104,0)","v":22},{"$f":"'BP Financier'!$D$33*(('BP Financier'!$C$16+'BP Financier'!$D$16)/('BP Financier'!$C$16+'BP Financier'!$C$19+'BP Financier'!$D$16+'BP Financier'!$D$19))*V2104","v":{"v":637018.629503521,"d":"637,019"}},{"v":353182.01725746243,"d":"353,182"},{"$f":"'BP Financier'!$D$44*(('BP Financier'!$C$16+'BP Financier'!$D$16)/('BP Financier'!$C$16+'BP Financier'!$C$19+'BP Financier'!$D$16+'BP Financier'!$D$19+'BP Financier'!$C$22+'BP Financier'!$D$22))*$V2104*X2104/(1-$W2104)","v":{"v":44954.9543766531,"d":"44,955"}},{"$f":"'BP Financier'!$D$44*(('BP Financier'!$C$16+'BP Financier'!$D$16)/('BP Financier'!$C$16+'BP Financier'!$C$19+'BP Financier'!$D$16+'BP Financier'!$D$19+'BP Financier'!$C$22+'BP Financier'!$D$22))*$V2104*Y2104/(1-$W2104)","v":{"v":30052.75955566312,"d":"30,053"}},{"$f":"'BP Financier'!$D$44*(('BP Financier'!$C$16+'BP Financier'!$D$16)/('BP Financier'!$C$16+'BP Financier'!$C$19+'BP Financier'!$D$16+'BP Financier'!$D$19+'BP Financier'!$C$22+'BP Financier'!$D$22))*$V2104*Z2104/(1-$W2104)","v":{"v":235206.30825795847,"d":"235,206"}},{"$f":"'BP Financier'!$D$44*(('BP Financier'!$C$16+'BP Financier'!$D$16)/('BP Financier'!$C$16+'BP Financier'!$C$19+'BP Financier'!$D$16+'BP Financier'!$D$19+'BP Financier'!$C$22+'BP Financier'!$D$22))*$V2104*AA2104/(1-$W2104)","v":{"v":29059.279900930454,"d":"29,059"}},{"$f":"'BP Financier'!$D$44*(('BP Financier'!$C$16+'BP Financier'!$D$16)/('BP Financier'!$C$16+'BP Financier'!$C$19+'BP Financier'!$D$16+'BP Financier'!$D$19+'BP Financier'!$C$22+'BP Financier'!$D$22))*$V2104*AB2104/(1-$W2104)","v":{"v":13908.715166257309,"d":"13,909"}},null,{"v":0.005,"d":"0.50%"},{"$f":"Actif!$E$28/100","v":{"v":0.28900000000000003,"d":"28.90%"}},{"$f":"Actif!$E$30/100","v":{"v":0.09050000000000001,"d":"9.05%"}},{"$f":"Actif!$E$31/100","v":{"v":0.0605,"d":"6.05%"}},{"$f":"Actif!$E$32/100","v":{"v":0.47350000000000003,"d":"47.35%"}},{"$f":"Actif!$E$33/100","v":{"v":0.0585,"d":"5.85%"}},{"$f":"Actif!$E$29/100","v":{"v":0.027999999999999997,"d":"2.80%"}}]
[null,"#10",22,2028,"H","A_VIE",{"v":0.44999999999999996,"d":"0.45"},{"v":0.38999999999999996,"d":"0.39"},0.6,0.6,85,0,{"$f":"ROUND(Primes!$N$4*V2105,0)","v":22},{"$f":"'BP Financier'!$D$33*(('BP Financier'!$C$16+'BP Financier'!$D$16)/('BP Financier'!$C$16+'BP Financier'!$C$19+'BP Financier'!$D$16+'BP Financier'!$D$19))*V2105","v":{"v":637018.629503521,"d":"637,019"}},{"v":353182.01725746243,"d":"353,182"},{"$f":"'BP Financier'!$D$44*(('BP Financier'!$C$16+'BP Financier'!$D$16)/('BP Financier'!$C$16+'BP Financier'!$C$19+'BP Financier'!$D$16+'BP Financier'!$D$19+'BP Financier'!$C$22+'BP Financier'!$D$22))*$V2105*X2105/(1-$W2105)","v":{"v":44954.9543766531,"d":"44,955"}},{"$f":"'BP Financier'!$D$44*(('BP Financier'!$C$16+'BP Financier'!$D$16)/('BP Financier'!$C$16+'BP Financier'!$C$19+'BP Financier'!$D$16+'BP Financier'!$D$19+'BP Financier'!$C$22+'BP Financier'!$D$22))*$V2105*Y2105/(1-$W2105)","v":{"v":30052.75955566312,"d":"30,053"}},{"$f":"'BP Financier'!$D$44*(('BP Financier'!$C$16+'BP Financier'!$D$16)/('BP Financier'!$C$16+'BP Financier'!$C$19+'BP Financier'!$D$16+'BP Financier'!$D$19+'BP Financier'!$C$22+'BP Financier'!$D$22))*$V2105*Z2105/(1-$W2105)","v":{"v":235206.30825795847,"d":"235,206"}},{"$f":"'BP Financier'!$D$44*(('BP Financier'!$C$16+'BP Financier'!$D$16)/('BP Financier'!$C$16+'BP Financier'!$C$19+'BP Financier'!$D$16+'BP Financier'!$D$19+'BP Financier'!$C$22+'BP Financier'!$D$22))*$V2105*AA2105/(1-$W2105)","v":{"v":29059.279900930454,"d":"29,059"}},{"$f":"'BP Financier'!$D$44*(('BP Financier'!$C$16+'BP Financier'!$D$16)/('BP Financier'!$C$16+'BP Financier'!$C$19+'BP Financier'!$D$16+'BP Financier'!$D$19+'BP Financier'!$C$22+'BP Financier'!$D$22))*$V2105*AB2105/(1-$W2105)","v":{"v":13908.715166257309,"d":"13,909"}},null,{"v":0.005,"d":"0.50%"},{"$f":"Actif!$E$28/100","v":{"v":0.28900000000000003,"d":"28.90%"}},{"$f":"Actif!$E$30/100","v":{"v":0.09050000000000001,"d":"9.05%"}},{"$f":"Actif!$E$31/100","v":{"v":0.0605,"d":"6.05%"}},{"$f":"Actif!$E$32/100","v":{"v":0.47350000000000003,"d":"47.35%"}},{"$f":"Actif!$E$33/100","v":{"v":0.0585,"d":"5.85%"}},{"$f":"Actif!$E$29/100","v":{"v":0.027999999999999997,"d":"2.80%"}}]
[null,"#11",23,2026,"F","A_VIE",{"v":0.44999999999999996,"d":"0.45"},{"v":0.38999999999999996,"d":"0.39"},0.6,0.6,85,0,{"$f":"ROUND(Primes!$N$4*V2106,0)","v":22},{"$f":"'BP Financier'!$D$33*(('BP Financier'!$C$16+'BP Financier'!$D$16)/('BP Financier'!$C$16+'BP Financier'!$C$19+'BP Financier'!$D$16+'BP Financier'!$D$19))*V2106","v":{"v":637018.629503521,"d":"637,019"}},{"v":353182.01725746243,"d":"353,182"},{"$f":"'BP Financier'!$D$44*(('BP Financier'!$C$16+'BP Financier'!$D$16)/('BP Financier'!$C$16+'BP Financier'!$C$19+'BP Financier'!$D$16+'BP Financier'!$D$19+'BP Financier'!$C$22+'BP Financier'!$D$22))*$V2106*X2106/(1-$W2106)","v":{"v":44954.9543766531,"d":"44,955"}},{"$f":"'BP Financier'!$D$44*(('BP Financier'!$C$16+'BP Financier'!$D$16)/('BP Financier'!$C$16+'BP Financier'!$C$19+'BP Financier'!$D$16+'BP Financier'!$D$19+'BP Financier'!$C$22+'BP Financier'!$D$22))*$V2106*Y2106/(1-$W2106)","v":{"v":30052.75955566312,"d":"30,053"}},{"$f":"'BP Financier'!$D$44*(('BP Financier'!$C$16+'BP Financier'!$D$16)/('BP Financier'!$C$16+'BP Financier'!$C$19+'BP Financier'!$D$16+'BP Financier'!$D$19+'BP Financier'!$C$22+'BP Financier'!$D$22))*$V2106*Z2106/(1-$W2106)","v":{"v":235206.30825795847,"d":"235,206"}},{"$f":"'BP Financier'!$D$44*(('BP Financier'!$C$16+'BP Financier'!$D$16)/('BP Financier'!$C$16+'BP Financier'!$C$19+'BP Financier'!$D$16+'BP Financier'!$D$19+'BP Financier'!$C$22+'BP Financier'!$D$22))*$V2106*AA2106/(1-$W2106)","v":{"v":29059.279900930454,"d":"29,059"}},{"$f":"'BP Financier'!$D$44*(('BP Financier'!$C$16+'BP Financier'!$D$16)/('BP Financier'!$C$16+'BP Financier'!$C$19+'BP Financier'!$D$16+'BP Financier'!$D$19+'BP Financier'!$C$22+'BP Financier'!$D$22))*$V2106*AB2106/(1-$W2106)","v":{"v":13908.715166257309,"d":"13,909"}},null,{"v":0.005,"d":"0.50%"},{"$f":"Actif!$E$28/100","v":{"v":0.28900000000000003,"d":"28.90%"}},{"$f":"Actif!$E$30/100","v":{"v":0.09050000000000001,"d":"9.05%"}},{"$f":"Actif!$E$31/100","v":{"v":0.0605,"d":"6.05%"}},{"$f":"Actif!$E$32/100","v":{"v":0.47350000000000003,"d":"47.35%"}},{"$f":"Actif!$E$33/100","v":{"v":0.0585,"d":"5.85%"}},{"$f":"Actif!$E$29/100","v":{"v":0.027999999999999997,"d":"2.80%"}}]
[null,"#12",23,2028,"F","A_VIE",{"v":0.44999999999999996,"d":"0.45"},{"v":0.38999999999999996,"d":"0.39"},0.6,0.6,85,0,{"$f":"ROUND(Primes!$N$4*V2107,0)","v":22},{"$f":"'BP Financier'!$D$33*(('BP Financier'!$C$16+'BP Financier'!$D$16)/('BP Financier'!$C$16+'BP Financier'!$C$19+'BP Financier'!$D$16+'BP Financier'!$D$19))*V2107","v":{"v":637018.629503521,"d":"637,019"}},{"v":353182.01725746243,"d":"353,182"},{"$f":"'BP Financier'!$D$44*(('BP Financier'!$C$16+'BP Financier'!$D$16)/('BP Financier'!$C$16+'BP Financier'!$C$19+'BP Financier'!$D$16+'BP Financier'!$D$19+'BP Financier'!$C$22+'BP Financier'!$D$22))*$V2107*X2107/(1-$W2107)","v":{"v":44954.9543766531,"d":"44,955"}},{"$f":"'BP Financier'!$D$44*(('BP Financier'!$C$16+'BP Financier'!$D$16)/('BP Financier'!$C$16+'BP Financier'!$C$19+'BP Financier'!$D$16+'BP Financier'!$D$19+'BP Financier'!$C$22+'BP Financier'!$D$22))*$V2107*Y2107/(1-$W2107)","v":{"v":30052.75955566312,"d":"30,053"}},{"$f":"'BP Financier'!$D$44*(('BP Financier'!$C$16+'BP Financier'!$D$16)/('BP Financier'!$C$16+'BP Financier'!$C$19+'BP Financier'!$D$16+'BP Financier'!$D$19+'BP Financier'!$C$22+'BP Financier'!$D$22))*$V2107*Z2107/(1-$W2107)","v":{"v":235206.30825795847,"d":"235,206"}},{"$f":"'BP Financier'!$D$44*(('BP Financier'!$C$16+'BP Financier'!$D$16)/('BP Financier'!$C$16+'BP Financier'!$C$19+'BP Financier'!$D$16+'BP Financier'!$D$19+'BP Financier'!$C$22+'BP Financier'!$D$22))*$V2107*AA2107/(1-$W2107)","v":{"v":29059.279900930454,"d":"29,059"}},{"$f":"'BP Financier'!$D$44*(('BP Financier'!$C$16+'BP Financier'!$D$16)/('BP Financier'!$C$16+'BP Financier'!$C$19+'BP Financier'!$D$16+'BP Financier'!$D$19+'BP Financier'!$C$22+'BP Financier'!$D$22))*$V2107*AB2107/(1-$W2107)","v":{"v":13908.715166257309,"d":"13,909"}},null,{"v":0.005,"d":"0.50%"},{"$f":"Actif!$E$28/100","v":{"v":0.28900000000000003,"d":"28.90%"}},{"$f":"Actif!$E$30/100","v":{"v":0.09050000000000001,"d":"9.05%"}},{"$f":"Actif!$E$31/100","v":{"v":0.0605,"d":"6.05%"}},{"$f":"Actif!$E$32/100","v":{"v":0.47350000000000003,"d":"47.35%"}},{"$f":"Actif!$E$33/100","v":{"v":0.0585,"d":"5.85%"}},{"$f":"Actif!$E$29/100","v":{"v":0.027999999999999997,"d":"2.80%"}}]
[null,"#13",24,2026,"H","A_VIE",{"v":0.44999999999999996,"d":"0.45"},{"v":0.38999999999999996,"d":"0.39"},0.6,0.6,85,0,{"$f":"ROUND(Primes!$N$4*V2108,0)","v":22},{"$f":"'BP Financier'!$D$33*(('BP Financier'!$C$16+'BP Financier'!$D$16)/('BP Financier'!$C$16+'BP Financier'!$C$19+'BP Financier'!$D$16+'BP Financier'!$D$19))*V2108","v":{"v":637018.629503521,"d":"637,019"}},{"v":353182.01725746243,"d":"353,182"},{"$f":"'BP Financier'!$D$44*(('BP Financier'!$C$16+'BP Financier'!$D$16)/('BP Financier'!$C$16+'BP Financier'!$C$19+'BP Financier'!$D$16+'BP Financier'!$D$19+'BP Financier'!$C$22+'BP Financier'!$D$22))*$V2108*X2108/(1-$W2108)","v":{"v":44954.9543766531,"d":"44,955"}},{"$f":"'BP Financier'!$D$44*(('BP Financier'!$C$16+'BP Financier'!$D$16)/('BP Financier'!$C$16+'BP Financier'!$C$19+'BP Financier'!$D$16+'BP Financier'!$D$19+'BP Financier'!$C$22+'BP Financier'!$D$22))*$V2108*Y2108/(1-$W2108)","v":{"v":30052.75955566312,"d":"30,053"}},{"$f":"'BP Financier'!$D$44*(('BP Financier'!$C$16+'BP Financier'!$D$16)/('BP Financier'!$C$16+'BP Financier'!$C$19+'BP Financier'!$D$16+'BP Financier'!$D$19+'BP Financier'!$C$22+'BP Financier'!$D$22))*$V2108*Z2108/(1-$W2108)","v":{"v":235206.30825795847,"d":"235,206"}},{"$f":"'BP Financier'!$D$44*(('BP Financier'!$C$16+'BP Financier'!$D$16)/('BP Financier'!$C$16+'BP Financier'!$C$19+'BP Financier'!$D$16+'BP Financier'!$D$19+'BP Financier'!$C$22+'BP Financier'!$D$22))*$V2108*AA2108/(1-$W2108)","v":{"v":29059.279900930454,"d":"29,059"}},{"$f":"'BP Financier'!$D$44*(('BP Financier'!$C$16+'BP Financier'!$D$16)/('BP Financier'!$C$16+'BP Financier'!$C$19+'BP Financier'!$D$16+'BP Financier'!$D$19+'BP Financier'!$C$22+'BP Financier'!$D$22))*$V2108*AB2108/(1-$W2108)","v":{"v":13908.715166257309,"d":"13,909"}},null,{"v":0.005,"d":"0.50%"},{"$f":"Actif!$E$28/100","v":{"v":0.28900000000000003,"d":"28.90%"}},{"$f":"Actif!$E$30/100","v":{"v":0.09050000000000001,"d":"9.05%"}},{"$f":"Actif!$E$31/100","v":{"v":0.0605,"d":"6.05%"}},{"$f":"Actif!$E$32/100","v":{"v":0.47350000000000003,"d":"47.35%"}},{"$f":"Actif!$E$33/100","v":{"v":0.0585,"d":"5.85%"}},{"$f":"Actif!$E$29/100","v":{"v":0.027999999999999997,"d":"2.80%"}}]
[null,"#14",24,2028,"H","A_VIE",{"v":0.44999999999999996,"d":"0.45"},{"v":0.38999999999999996,"d":"0.39"},0.6,0.6,85,0,{"$f":"ROUND(Primes!$N$4*V2109,0)","v":22},{"$f":"'BP Financier'!$D$33*(('BP Financier'!$C$16+'BP Financier'!$D$16)/('BP Financier'!$C$16+'BP Financier'!$C$19+'BP Financier'!$D$16+'BP Financier'!$D$19))*V2109","v":{"v":637018.629503521,"d":"637,019"}},{"v":353182.01725746243,"d":"353,182"},{"$f":"'BP Financier'!$D$44*(('BP Financier'!$C$16+'BP Financier'!$D$16)/('BP Financier'!$C$16+'BP Financier'!$C$19+'BP Financier'!$D$16+'BP Financier'!$D$19+'BP Financier'!$C$22+'BP Financier'!$D$22))*$V2109*X2109/(1-$W2109)","v":{"v":44954.9543766531,"d":"44,955"}},{"$f":"'BP Financier'!$D$44*(('BP Financier'!$C$16+'BP Financier'!$D$16)/('BP Financier'!$C$16+'BP Financier'!$C$19+'BP Financier'!$D$16+'BP Financier'!$D$19+'BP Financier'!$C$22+'BP Financier'!$D$22))*$V2109*Y2109/(1-$W2109)","v":{"v":30052.75955566312,"d":"30,053"}},{"$f":"'BP Financier'!$D$44*(('BP Financier'!$C$16+'BP Financier'!$D$16)/('BP Financier'!$C$16+'BP Financier'!$C$19+'BP Financier'!$D$16+'BP Financier'!$D$19+'BP Financier'!$C$22+'BP Financier'!$D$22))*$V2109*Z2109/(1-$W2109)","v":{"v":235206.30825795847,"d":"235,206"}},{"$f":"'BP Financier'!$D$44*(('BP Financier'!$C$16+'BP Financier'!$D$16)/('BP Financier'!$C$16+'BP Financier'!$C$19+'BP Financier'!$D$16+'BP Financier'!$D$19+'BP Financier'!$C$22+'BP Financier'!$D$22))*$V2109*AA2109/(1-$W2109)","v":{"v":29059.279900930454,"d":"29,059"}},{"$f":"'BP Financier'!$D$44*(('BP Financier'!$C$16+'BP Financier'!$D$16)/('BP Financier'!$C$16+'BP Financier'!$C$19+'BP Financier'!$D$16+'BP Financier'!$D$19+'BP Financier'!$C$22+'BP Financier'!$D$22))*$V2109*AB2109/(1-$W2109)","v":{"v":13908.715166257309,"d":"13,909"}},null,{"v":0.005,"d":"0.50%"},{"$f":"Actif!$E$28/100","v":{"v":0.28900000000000003,"d":"28.90%"}},{"$f":"Actif!$E$30/100","v":{"v":0.09050000000000001,"d":"9.05%"}},{"$f":"Actif!$E$31/100","v":{"v":0.0605,"d":"6.05%"}},{"$f":"Actif!$E$32/100","v":{"v":0.47350000000000003,"d":"47.35%"}},{"$f":"Actif!$E$33/100","v":{"v":0.0585,"d":"5.85%"}},{"$f":"Actif!$E$29/100","v":{"v":0.027999999999999997,"d":"2.80%"}}]
[null,"#15",25,2026,"H","A_VIE",{"v":0.44999999999999996,"d":"0.45"},{"v":0.38999999999999996,"d":"0.39"},0.6,0.6,85,0,{"$f":"ROUND(Primes!$N$4*V2110,0)","v":112},{"$f":"'BP Financier'!$D$33*(('BP Financier'!$C$16+'BP Financier'!$D$16)/('BP Financier'!$C$16+'BP Financier'!$C$19+'BP Financier'!$D$16+'BP Financier'!$D$19))*V2110","v":{"v":3185093.1475176048,"d":"3,185,093"}},{"v":1765910.0862873122,"d":"1,765,910"},{"$f":"'BP Financier'!$D$44*(('BP Financier'!$C$16+'BP Financier'!$D$16)/('BP Financier'!$C$16+'BP Financier'!$C$19+'BP Financier'!$D$16+'BP Financier'!$D$19+'BP Financier'!$C$22+'BP Financier'!$D$22))*$V2110*X2110/(1-$W2110)","v":{"v":224774.77188326552,"d":"224,775"}},{"$f":"'BP Financier'!$D$44*(('BP Financier'!$C$16+'BP Financier'!$D$16)/('BP Financier'!$C$16+'BP Financier'!$C$19+'BP Financier'!$D$16+'BP Financier'!$D$19+'BP Financier'!$C$22+'BP Financier'!$D$22))*$V2110*Y2110/(1-$W2110)","v":{"v":150263.79777831558,"d":"150,264"}},{"$f":"'BP Financier'!$D$44*(('BP Financier'!$C$16+'BP Financier'!$D$16)/('BP Financier'!$C$16+'BP Financier'!$C$19+'BP Financier'!$D$16+'BP Financier'!$D$19+'BP Financier'!$C$22+'BP Financier'!$D$22))*$V2110*Z2110/(1-$W2110)","v":{"v":1176031.5412897924,"d":"1,176,032"}},{"$f":"'BP Financier'!$D$44*(('BP Financier'!$C$16+'BP Financier'!$D$16)/('BP Financier'!$C$16+'BP Financier'!$C$19+'BP Financier'!$D$16+'BP Financier'!$D$19+'BP Financier'!$C$22+'BP Financier'!$D$22))*$V2110*AA2110/(1-$W2110)","v":{"v":145296.3995046523,"d":"145,296"}},{"$f":"'BP Financier'!$D$44*(('BP Financier'!$C$16+'BP Financier'!$D$16)/('BP Financier'!$C$16+'BP Financier'!$C$19+'BP Financier'!$D$16+'BP Financier'!$D$19+'BP Financier'!$C$22+'BP Financier'!$D$22))*$V2110*AB2110/(1-$W2110)","v":{"v":69543.57583128655,"d":"69,544"}},null,{"v":0.025,"d":"2.50%"},{"$f":"Actif!$E$28/100","v":{"v":0.28900000000000003,"d":"28.90%"}},{"$f":"Actif!$E$30/100","v":{"v":0.09050000000000001,"d":"9.05%"}},{"$f":"Actif!$E$31/100","v":{"v":0.0605,"d":"6.05%"}},{"$f":"Actif!$E$32/100","v":{"v":0.47350000000000003,"d":"47.35%"}},{"$f":"Actif!$E$33/100","v":{"v":0.0585,"d":"5.85%"}},{"$f":"Actif!$E$29/100","v":{"v":0.027999999999999997,"d":"2.80%"}}]
[null,"#16",25,2028,"H","A_VIE",{"v":0.44999999999999996,"d":"0.45"},{"v":0.38999999999999996,"d":"0.39"},0.6,0.6,85,0,{"$f":"ROUND(Primes!$N$4*V2111,0)","v":112},{"$f":"'BP Financier'!$D$33*(('BP Financier'!$C$16+'BP Financier'!$D$16)/('BP Financier'!$C$16+'BP Financier'!$C$19+'BP Financier'!$D$16+'BP Financier'!$D$19))*V2111","v":{"v":3185093.1475176048,"d":"3,185,093"}},{"v":1765910.0862873122,"d":"1,765,910"},{"$f":"'BP Financier'!$D$44*(('BP Financier'!$C$16+'BP Financier'!$D$16)/('BP Financier'!$C$16+'BP Financier'!$C$19+'BP Financier'!$D$16+'BP Financier'!$D$19+'BP Financier'!$C$22+'BP Financier'!$D$22))*$V2111*X2111/(1-$W2111)","v":{"v":224774.77188326552,"d":"224,775"}},{"$f":"'BP Financier'!$D$44*(('BP Financier'!$C$16+'BP Financier'!$D$16)/('BP Financier'!$C$16+'BP Financier'!$C$19+'BP Financier'!$D$16+'BP Financier'!$D$19+'BP Financier'!$C$22+'BP Financier'!$D$22))*$V2111*Y2111/(1-$W2111)","v":{"v":150263.79777831558,"d":"150,264"}},{"$f":"'BP Financier'!$D$44*(('BP Financier'!$C$16+'BP Financier'!$D$16)/('BP Financier'!$C$16+'BP Financier'!$C$19+'BP Financier'!$D$16+'BP Financier'!$D$19+'BP Financier'!$C$22+'BP Financier'!$D$22))*$V2111*Z2111/(1-$W2111)","v":{"v":1176031.5412897924,"d":"1,176,032"}},{"$f":"'BP Financier'!$D$44*(('BP Financier'!$C$16+'BP Financier'!$D$16)/('BP Financier'!$C$16+'BP Financier'!$C$19+'BP Financier'!$D$16+'BP Financier'!$D$19+'BP Financier'!$C$22+'BP Financier'!$D$22))*$V2111*AA2111/(1-$W2111)","v":{"v":145296.3995046523,"d":"145,296"}},{"$f":"'BP Financier'!$D$44*(('BP Financier'!$C$16+'BP Financier'!$D$16)/('BP Financier'!$C$16+'BP Financier'!$C$19+'BP Financier'!$D$16+'BP Financier'!$D$19+'BP Financier'!$C$22+'BP Financier'!$D$22))*$V2111*AB2111/(1-$W2111)","v":{"v":69543.57583128655,"d":"69,544"}},null,{"v":0.025,"d":"2.50%"},{"$f":"Actif!$E$28/100","v":{"v":0.28900000000000003,"d":"28.90%"}},{"$f":"Actif!$E$30/100","v":{"v":0.09050000000000001,"d":"9.05%"}},{"$f":"Actif!$E$31/100","v":{"v":0.0605,"d":"6.05%"}},{"$f":"Actif!$E$32/100","v":{"v":0.47350000000000003,"d":"47.35%"}},{"$f":"Actif!$E$33/100","v":{"v":0.0585,"d":"5.85%"}},{"$f":"Actif!$E$29/100","v":{"v":0.027999999999999997,"d":"2.80%"}}]
[null,"#17",26,2026,"F","A_VIE",{"v":0.44999999999999996,"d":"0.45"},{"v":0.38999999999999996,"d":"0.39"},0.6,0.6,85,0,{"$f":"ROUND(Primes!$N$4*V2112,0)","v":67},{"$f":"'BP Financier'!$D$33*(('BP Financier'!$C$16+'BP Financier'!$D$16)/('BP Financier'!$C$16+'BP Financier'!$C$19+'BP Financier'!$D$16+'BP Financier'!$D$19))*V2112","v":{"v":1911055.8885105627,"d":"1,911,056"}},{"v":1059546.0517723872,"d":"1,059,546"},{"$f":"'BP Financier'!$D$44*(('BP Financier'!$C$16+'BP Financier'!$D$16)/('BP Financier'!$C$16+'BP Financier'!$C$19+'BP Financier'!$D$16+'BP Financier'!$D$19+'BP Financier'!$C$22+'BP Financier'!$D$22))*$V2112*X2112/(1-$W2112)","v":{"v":134864.8631299593,"d":"134,865"}},{"$f":"'BP Financier'!$D$44*(('BP Financier'!$C$16+'BP Financier'!$D$16)/('BP Financier'!$C$16+'BP Financier'!$C$19+'BP Financier'!$D$16+'BP Financier'!$D$19+'BP Financier'!$C$22+'BP Financier'!$D$22))*$V2112*Y2112/(1-$W2112)","v":{"v":90158.27866698935,"d":"90,158"}},{"$f":"'BP Financier'!$D$44*(('BP Financier'!$C$16+'BP Financier'!$D$16)/('BP Financier'!$C$16+'BP Financier'!$C$19+'BP Financier'!$D$16+'BP Financier'!$D$19+'BP Financier'!$C$22+'BP Financier'!$D$22))*$V2112*Z2112/(1-$W2112)","v":{"v":705618.9247738754,"d":"705,619"}},{"$f":"'BP Financier'!$D$44*(('BP Financier'!$C$16+'BP Financier'!$D$16)/('BP Financier'!$C$16+'BP Financier'!$C$19+'BP Financier'!$D$16+'BP Financier'!$D$19+'BP Financier'!$C$22+'BP Financier'!$D$22))*$V2112*AA2112/(1-$W2112)","v":{"v":87177.83970279136,"d":"87,178"}},{"$f":"'BP Financier'!$D$44*(('BP Financier'!$C$16+'BP Financier'!$D$16)/('BP Financier'!$C$16+'BP Financier'!$C$19+'BP Financier'!$D$16+'BP Financier'!$D$19+'BP Financier'!$C$22+'BP Financier'!$D$22))*$V2112*AB2112/(1-$W2112)","v":{"v":41726.145498771926,"d":"41,726"}},null,{"v":0.015,"d":"1.50%"},{"$f":"Actif!$E$28/100","v":{"v":0.28900000000000003,"d":"28.90%"}},{"$f":"Actif!$E$30/100","v":{"v":0.09050000000000001,"d":"9.05%"}},{"$f":"Actif!$E$31/100","v":{"v":0.0605,"d":"6.05%"}},{"$f":"Actif!$E$32/100","v":{"v":0.47350000000000003,"d":"47.35%"}},{"$f":"Actif!$E$33/100","v":{"v":0.0585,"d":"5.85%"}},{"$f":"Actif!$E$29/100","v":{"v":0.027999999999999997,"d":"2.80%"}}]
[null,"#18",26,2028,"F","A_VIE",{"v":0.44999999999999996,"d":"0.45"},{"v":0.38999999999999996,"d":"0.39"},0.6,0.6,85,0,{"$f":"ROUND(Primes!$N$4*V2113,0)","v":67},{"$f":"'BP Financier'!$D$33*(('BP Financier'!$C$16+'BP Financier'!$D$16)/('BP Financier'!$C$16+'BP Financier'!$C$19+'BP Financier'!$D$16+'BP Financier'!$D$19))*V2113","v":{"v":1911055.8885105627,"d":"1,911,056"}},{"v":1059546.0517723872,"d":"1,059,546"},{"$f":"'BP Financier'!$D$44*(('BP Financier'!$C$16+'BP Financier'!$D$16)/('BP Financier'!$C$16+'BP Financier'!$C$19+'BP Financier'!$D$16+'BP Financier'!$D$19+'BP Financier'!$C$22+'BP Financier'!$D$22))*$V2113*X2113/(1-$W2113)","v":{"v":134864.8631299593,"d":"134,865"}},{"$f":"'BP Financier'!$D$44*(('BP Financier'!$C$16+'BP Financier'!$D$16)/('BP Financier'!$C$16+'BP Financier'!$C$19+'BP Financier'!$D$16+'BP Financier'!$D$19+'BP Financier'!$C$22+'BP Financier'!$D$22))*$V2113*Y2113/(1-$W2113)","v":{"v":90158.27866698935,"d":"90,158"}},{"$f":"'BP Financier'!$D$44*(('BP Financier'!$C$16+'BP Financier'!$D$16)/('BP Financier'!$C$16+'BP Financier'!$C$19+'BP Financier'!$D$16+'BP Financier'!$D$19+'BP Financier'!$C$22+'BP Financier'!$D$22))*$V2113*Z2113/(1-$W2113)","v":{"v":705618.9247738754,"d":"705,619"}},{"$f":"'BP Financier'!$D$44*(('BP Financier'!$C$16+'BP Financier'!$D$16)/('BP Financier'!$C$16+'BP Financier'!$C$19+'BP Financier'!$D$16+'BP Financier'!$D$19+'BP Financier'!$C$22+'BP Financier'!$D$22))*$V2113*AA2113/(1-$W2113)","v":{"v":87177.83970279136,"d":"87,178"}},{"$f":"'BP Financier'!$D$44*(('BP Financier'!$C$16+'BP Financier'!$D$16)/('BP Financier'!$C$16+'BP Financier'!$C$19+'BP Financier'!$D$16+'BP Financier'!$D$19+'BP Financier'!$C$22+'BP Financier'!$D$22))*$V2113*AB2113/(1-$W2113)","v":{"v":41726.145498771926,"d":"41,726"}},null,{"v":0.015,"d":"1.50%"},{"$f":"Actif!$E$28/100","v":{"v":0.28900000000000003,"d":"28.90%"}},{"$f":"Actif!$E$30/100","v":{"v":0.09050000000000001,"d":"9.05%"}},{"$f":"Actif!$E$31/100","v":{"v":0.0605,"d":"6.05%"}},{"$f":"Actif!$E$32/100","v":{"v":0.47350000000000003,"d":"47.35%"}},{"$f":"Actif!$E$33/100","v":{"v":0.0585,"d":"5.85%"}},{"$f":"Actif!$E$29/100","v":{"v":0.027999999999999997,"d":"2.80%"}}]
[null,"#19",27,2026,"H","A_VIE",{"v":0.44999999999999996,"d":"0.45"},{"v":0.38999999999999996,"d":"0.39"},0.6,0.6,85,0,{"$f":"ROUND(Primes!$N$4*V2114,0)","v":67},{"$f":"'BP Financier'!$D$33*(('BP Financier'!$C$16+'BP Financier'!$D$16)/('BP Financier'!$C$16+'BP Financier'!$C$19+'BP Financier'!$D$16+'BP Financier'!$D$19))*V2114","v":{"v":1911055.8885105627,"d":"1,911,056"}},{"v":1059546.0517723872,"d":"1,059,546"},{"$f":"'BP Financier'!$D$44*(('BP Financier'!$C$16+'BP Financier'!$D$16)/('BP Financier'!$C$16+'BP Financier'!$C$19+'BP Financier'!$D$16+'BP Financier'!$D$19+'BP Financier'!$C$22+'BP Financier'!$D$22))*$V2114*X2114/(1-$W2114)","v":{"v":134864.8631299593,"d":"134,865"}},{"$f":"'BP Financier'!$D$44*(('BP Financier'!$C$16+'BP Financier'!$D$16)/('BP Financier'!$C$16+'BP Financier'!$C$19+'BP Financier'!$D$16+'BP Financier'!$D$19+'BP Financier'!$C$22+'BP Financier'!$D$22))*$V2114*Y2114/(1-$W2114)","v":{"v":90158.27866698935,"d":"90,158"}},{"$f":"'BP Financier'!$D$44*(('BP Financier'!$C$16+'BP Financier'!$D$16)/('BP Financier'!$C$16+'BP Financier'!$C$19+'BP Financier'!$D$16+'BP Financier'!$D$19+'BP Financier'!$C$22+'BP Financier'!$D$22))*$V2114*Z2114/(1-$W2114)","v":{"v":705618.9247738754,"d":"705,619"}},{"$f":"'BP Financier'!$D$44*(('BP Financier'!$C$16+'BP Financier'!$D$16)/('BP Financier'!$C$16+'BP Financier'!$C$19+'BP Financier'!$D$16+'BP Financier'!$D$19+'BP Financier'!$C$22+'BP Financier'!$D$22))*$V2114*AA2114/(1-$W2114)","v":{"v":87177.83970279136,"d":"87,178"}},{"$f":"'BP Financier'!$D$44*(('BP Financier'!$C$16+'BP Financier'!$D$16)/('BP Financier'!$C$16+'BP Financier'!$C$19+'BP Financier'!$D$16+'BP Financier'!$D$19+'BP Financier'!$C$22+'BP Financier'!$D$22))*$V2114*AB2114/(1-$W2114)","v":{"v":41726.145498771926,"d":"41,726"}},null,{"v":0.015,"d":"1.50%"},{"$f":"Actif!$E$28/100","v":{"v":0.28900000000000003,"d":"28.90%"}},{"$f":"Actif!$E$30/100","v":{"v":0.09050000000000001,"d":"9.05%"}},{"$f":"Actif!$E$31/100","v":{"v":0.0605,"d":"6.05%"}},{"$f":"Actif!$E$32/100","v":{"v":0.47350000000000003,"d":"47.35%"}},{"$f":"Actif!$E$33/100","v":{"v":0.0585,"d":"5.85%"}},{"$f":"Actif!$E$29/100","v":{"v":0.027999999999999997,"d":"2.80%"}}]
[null,"#20",27,2028,"H","A_VIE",{"v":0.44999999999999996,"d":"0.45"},{"v":0.38999999999999996,"d":"0.39"},0.6,0.6,85,0,{"$f":"ROUND(Primes!$N$4*V2115,0)","v":67},{"$f":"'BP Financier'!$D$33*(('BP Financier'!$C$16+'BP Financier'!$D$16)/('BP Financier'!$C$16+'BP Financier'!$C$19+'BP Financier'!$D$16+'BP Financier'!$D$19))*V2115","v":{"v":1911055.8885105627,"d":"1,911,056"}},{"v":1059546.0517723872,"d":"1,059,546"},{"$f":"'BP Financier'!$D$44*(('BP Financier'!$C$16+'BP Financier'!$D$16)/('BP Financier'!$C$16+'BP Financier'!$C$19+'BP Financier'!$D$16+'BP Financier'!$D$19+'BP Financier'!$C$22+'BP Financier'!$D$22))*$V2115*X2115/(1-$W2115)","v":{"v":134864.8631299593,"d":"134,865"}},{"$f":"'BP Financier'!$D$44*(('BP Financier'!$C$16+'BP Financier'!$D$16)/('BP Financier'!$C$16+'BP Financier'!$C$19+'BP Financier'!$D$16+'BP Financier'!$D$19+'BP Financier'!$C$22+'BP Financier'!$D$22))*$V2115*Y2115/(1-$W2115)","v":{"v":90158.27866698935,"d":"90,158"}},{"$f":"'BP Financier'!$D$44*(('BP Financier'!$C$16+'BP Financier'!$D$16)/('BP Financier'!$C$16+'BP Financier'!$C$19+'BP Financier'!$D$16+'BP Financier'!$D$19+'BP Financier'!$C$22+'BP Financier'!$D$22))*$V2115*Z2115/(1-$W2115)","v":{"v":705618.9247738754,"d":"705,619"}},{"$f":"'BP Financier'!$D$44*(('BP Financier'!$C$16+'BP Financier'!$D$16)/('BP Financier'!$C$16+'BP Financier'!$C$19+'BP Financier'!$D$16+'BP Financier'!$D$19+'BP Financier'!$C$22+'BP Financier'!$D$22))*$V2115*AA2115/(1-$W2115)","v":{"v":87177.83970279136,"d":"87,178"}},{"$f":"'BP Financier'!$D$44*(('BP Financier'!$C$16+'BP Financier'!$D$16)/('BP Financier'!$C$16+'BP Financier'!$C$19+'BP Financier'!$D$16+'BP Financier'!$D$19+'BP Financier'!$C$22+'BP Financier'!$D$22))*$V2115*AB2115/(1-$W2115)","v":{"v":41726.145498771926,"d":"41,726"}},null,{"v":0.015,"d":"1.50%"},{"$f":"Actif!$E$28/100","v":{"v":0.28900000000000003,"d":"28.90%"}},{"$f":"Actif!$E$30/100","v":{"v":0.09050000000000001,"d":"9.05%"}},{"$f":"Actif!$E$31/100","v":{"v":0.0605,"d":"6.05%"}},{"$f":"Actif!$E$32/100","v":{"v":0.47350000000000003,"d":"47.35%"}},{"$f":"Actif!$E$33/100","v":{"v":0.0585,"d":"5.85%"}},{"$f":"Actif!$E$29/100","v":{"v":0.027999999999999997,"d":"2.80%"}}]
[null,"#21",28,2026,"H","A_VIE",{"v":0.44999999999999996,"d":"0.45"},{"v":0.38999999999999996,"d":"0.39"},0.6,0.6,85,0,{"$f":"ROUND(Primes!$N$4*V2116,0)","v":67},{"$f":"'BP Financier'!$D$33*(('BP Financier'!$C$16+'BP Financier'!$D$16)/('BP Financier'!$C$16+'BP Financier'!$C$19+'BP Financier'!$D$16+'BP Financier'!$D$19))*V2116","v":{"v":1911055.8885105627,"d":"1,911,056"}},{"v":1059546.0517723872,"d":"1,059,546"},{"$f":"'BP Financier'!$D$44*(('BP Financier'!$C$16+'BP Financier'!$D$16)/('BP Financier'!$C$16+'BP Financier'!$C$19+'BP Financier'!$D$16+'BP Financier'!$D$19+'BP Financier'!$C$22+'BP Financier'!$D$22))*$V2116*X2116/(1-$W2116)","v":{"v":134864.8631299593,"d":"134,865"}},{"$f":"'BP Financier'!$D$44*(('BP Financier'!$C$16+'BP Financier'!$D$16)/('BP Financier'!$C$16+'BP Financier'!$C$19+'BP Financier'!$D$16+'BP Financier'!$D$19+'BP Financier'!$C$22+'BP Financier'!$D$22))*$V2116*Y2116/(1-$W2116)","v":{"v":90158.27866698935,"d":"90,158"}},{"$f":"'BP Financier'!$D$44*(('BP Financier'!$C$16+'BP Financier'!$D$16)/('BP Financier'!$C$16+'BP Financier'!$C$19+'BP Financier'!$D$16+'BP Financier'!$D$19+'BP Financier'!$C$22+'BP Financier'!$D$22))*$V2116*Z2116/(1-$W2116)","v":{"v":705618.9247738754,"d":"705,619"}},{"$f":"'BP Financier'!$D$44*(('BP Financier'!$C$16+'BP Financier'!$D$16)/('BP Financier'!$C$16+'BP Financier'!$C$19+'BP Financier'!$D$16+'BP Financier'!$D$19+'BP Financier'!$C$22+'BP Financier'!$D$22))*$V2116*AA2116/(1-$W2116)","v":{"v":87177.83970279136,"d":"87,178"}},{"$f":"'BP Financier'!$D$44*(('BP Financier'!$C$16+'BP Financier'!$D$16)/('BP Financier'!$C$16+'BP Financier'!$C$19+'BP Financier'!$D$16+'BP Financier'!$D$19+'BP Financier'!$C$22+'BP Financier'!$D$22))*$V2116*AB2116/(1-$W2116)","v":{"v":41726.145498771926,"d":"41,726"}},null,{"v":0.015,"d":"1.50%"},{"$f":"Actif!$E$28/100","v":{"v":0.28900000000000003,"d":"28.90%"}},{"$f":"Actif!$E$30/100","v":{"v":0.09050000000000001,"d":"9.05%"}},{"$f":"Actif!$E$31/100","v":{"v":0.0605,"d":"6.05%"}},{"$f":"Actif!$E$32/100","v":{"v":0.47350000000000003,"d":"47.35%"}},{"$f":"Actif!$E$33/100","v":{"v":0.0585,"d":"5.85%"}},{"$f":"Actif!$E$29/100","v":{"v":0.027999999999999997,"d":"2.80%"}}]
[null,"#22",28,2028,"H","A_VIE",{"v":0.44999999999999996,"d":"0.45"},{"v":0.38999999999999996,"d":"0.39"},0.6,0.6,85,0,{"$f":"ROUND(Primes!$N$4*V2117,0)","v":67},{"$f":"'BP Financier'!$D$33*(('BP Financier'!$C$16+'BP Financier'!$D$16)/('BP Financier'!$C$16+'BP Financier'!$C$19+'BP Financier'!$D$16+'BP Financier'!$D$19))*V2117","v":{"v":1911055.8885105627,"d":"1,911,056"}},{"v":1059546.0517723872,"d":"1,059,546"},{"$f":"'BP Financier'!$D$44*(('BP Financier'!$C$16+'BP Financier'!$D$16)/('BP Financier'!$C$16+'BP Financier'!$C$19+'BP Financier'!$D$16+'BP Financier'!$D$19+'BP Financier'!$C$22+'BP Financier'!$D$22))*$V2117*X2117/(1-$W2117)","v":{"v":134864.8631299593,"d":"134,865"}},{"$f":"'BP Financier'!$D$44*(('BP Financier'!$C$16+'BP Financier'!$D$16)/('BP Financier'!$C$16+'BP Financier'!$C$19+'BP Financier'!$D$16+'BP Financier'!$D$19+'BP Financier'!$C$22+'BP Financier'!$D$22))*$V2117*Y2117/(1-$W2117)","v":{"v":90158.27866698935,"d":"90,158"}},{"$f":"'BP Financier'!$D$44*(('BP Financier'!$C$16+'BP Financier'!$D$16)/('BP Financier'!$C$16+'BP Financier'!$C$19+'BP Financier'!$D$16+'BP Financier'!$D$19+'BP Financier'!$C$22+'BP Financier'!$D$22))*$V2117*Z2117/(1-$W2117)","v":{"v":705618.9247738754,"d":"705,619"}},{"$f":"'BP Financier'!$D$44*(('BP Financier'!$C$16+'BP Financier'!$D$16)/('BP Financier'!$C$16+'BP Financier'!$C$19+'BP Financier'!$D$16+'BP Financier'!$D$19+'BP Financier'!$C$22+'BP Financier'!$D$22))*$V2117*AA2117/(1-$W2117)","v":{"v":87177.83970279136,"d":"87,178"}},{"$f":"'BP Financier'!$D$44*(('BP Financier'!$C$16+'BP Financier'!$D$16)/('BP Financier'!$C$16+'BP Financier'!$C$19+'BP Financier'!$D$16+'BP Financier'!$D$19+'BP Financier'!$C$22+'BP Financier'!$D$22))*$V2117*AB2117/(1-$W2117)","v":{"v":41726.145498771926,"d":"41,726"}},null,{"v":0.015,"d":"1.50%"},{"$f":"Actif!$E$28/100","v":{"v":0.28900000000000003,"d":"28.90%"}},{"$f":"Actif!$E$30/100","v":{"v":0.09050000000000001,"d":"9.05%"}},{"$f":"Actif!$E$31/100","v":{"v":0.0605,"d":"6.05%"}},{"$f":"Actif!$E$32/100","v":{"v":0.47350000000000003,"d":"47.35%"}},{"$f":"Actif!$E$33/100","v":{"v":0.0585,"d":"5.85%"}},{"$f":"Actif!$E$29/100","v":{"v":0.027999999999999997,"d":"2.80%"}}]
[null,"#23",29,2026,"F","A_VIE",{"v":0.44999999999999996,"d":"0.45"},{"v":0.38999999999999996,"d":"0.39"},0.6,0.6,85,0,{"$f":"ROUND(Primes!$N$4*V2118,0)","v":67},{"$f":"'BP Financier'!$D$33*(('BP Financier'!$C$16+'BP Financier'!$D$16)/('BP Financier'!$C$16+'BP Financier'!$C$19+'BP Financier'!$D$16+'BP Financier'!$D$19))*V2118","v":{"v":1911055.8885105627,"d":"1,911,056"}},{"v":1059546.0517723872,"d":"1,059,546"},{"$f":"'BP Financier'!$D$44*(('BP Financier'!$C$16+'BP Financier'!$D$16)/('BP Financier'!$C$16+'BP Financier'!$C$19+'BP Financier'!$D$16+'BP Financier'!$D$19+'BP Financier'!$C$22+'BP Financier'!$D$22))*$V2118*X2118/(1-$W2118)","v":{"v":134864.8631299593,"d":"134,865"}},{"$f":"'BP Financier'!$D$44*(('BP Financier'!$C$16+'BP Financier'!$D$16)/('BP Financier'!$C$16+'BP Financier'!$C$19+'BP Financier'!$D$16+'BP Financier'!$D$19+'BP Financier'!$C$22+'BP Financier'!$D$22))*$V2118*Y2118/(1-$W2118)","v":{"v":90158.27866698935,"d":"90,158"}},{"$f":"'BP Financier'!$D$44*(('BP Financier'!$C$16+'BP Financier'!$D$16)/('BP Financier'!$C$16+'BP Financier'!$C$19+'BP Financier'!$D$16+'BP Financier'!$D$19+'BP Financier'!$C$22+'BP Financier'!$D$22))*$V2118*Z2118/(1-$W2118)","v":{"v":705618.9247738754,"d":"705,619"}},{"$f":"'BP Financier'!$D$44*(('BP Financier'!$C$16+'BP Financier'!$D$16)/('BP Financier'!$C$16+'BP Financier'!$C$19+'BP Financier'!$D$16+'BP Financier'!$D$19+'BP Financier'!$C$22+'BP Financier'!$D$22))*$V2118*AA2118/(1-$W2118)","v":{"v":87177.83970279136,"d":"87,178"}},{"$f":"'BP Financier'!$D$44*(('BP Financier'!$C$16+'BP Financier'!$D$16)/('BP Financier'!$C$16+'BP Financier'!$C$19+'BP Financier'!$D$16+'BP Financier'!$D$19+'BP Financier'!$C$22+'BP Financier'!$D$22))*$V2118*AB2118/(1-$W2118)","v":{"v":41726.145498771926,"d":"41,726"}},null,{"v":0.015,"d":"1.50%"},{"$f":"Actif!$E$28/100","v":{"v":0.28900000000000003,"d":"28.90%"}},{"$f":"Actif!$E$30/100","v":{"v":0.09050000000000001,"d":"9.05%"}},{"$f":"Actif!$E$31/100","v":{"v":0.0605,"d":"6.05%"}},{"$f":"Actif!$E$32/100","v":{"v":0.47350000000000003,"d":"47.35%"}},{"$f":"Actif!$E$33/100","v":{"v":0.0585,"d":"5.85%"}},{"$f":"Actif!$E$29/100","v":{"v":0.027999999999999997,"d":"2.80%"}}]
[null,"#24",29,2028,"F","A_VIE",{"v":0.44999999999999996,"d":"0.45"},{"v":0.38999999999999996,"d":"0.39"},0.6,0.6,85,0,{"$f":"ROUND(Primes!$N$4*V2119,0)","v":67},{"$f":"'BP Financier'!$D$33*(('BP Financier'!$C$16+'BP Financier'!$D$16)/('BP Financier'!$C$16+'BP Financier'!$C$19+'BP Financier'!$D$16+'BP Financier'!$D$19))*V2119","v":{"v":1911055.8885105627,"d":"1,911,056"}},{"v":1059546.0517723872,"d":"1,059,546"},{"$f":"'BP Financier'!$D$44*(('BP Financier'!$C$16+'BP Financier'!$D$16)/('BP Financier'!$C$16+'BP Financier'!$C$19+'BP Financier'!$D$16+'BP Financier'!$D$19+'BP Financier'!$C$22+'BP Financier'!$D$22))*$V2119*X2119/(1-$W2119)","v":{"v":134864.8631299593,"d":"134,865"}},{"$f":"'BP Financier'!$D$44*(('BP Financier'!$C$16+'BP Financier'!$D$16)/('BP Financier'!$C$16+'BP Financier'!$C$19+'BP Financier'!$D$16+'BP Financier'!$D$19+'BP Financier'!$C$22+'BP Financier'!$D$22))*$V2119*Y2119/(1-$W2119)","v":{"v":90158.27866698935,"d":"90,158"}},{"$f":"'BP Financier'!$D$44*(('BP Financier'!$C$16+'BP Financier'!$D$16)/('BP Financier'!$C$16+'BP Financier'!$C$19+'BP Financier'!$D$16+'BP Financier'!$D$19+'BP Financier'!$C$22+'BP Financier'!$D$22))*$V2119*Z2119/(1-$W2119)","v":{"v":705618.9247738754,"d":"705,619"}},{"$f":"'BP Financier'!$D$44*(('BP Financier'!$C$16+'BP Financier'!$D$16)/('BP Financier'!$C$16+'BP Financier'!$C$19+'BP Financier'!$D$16+'BP Financier'!$D$19+'BP Financier'!$C$22+'BP Financier'!$D$22))*$V2119*AA2119/(1-$W2119)","v":{"v":87177.83970279136,"d":"87,178"}},{"$f":"'BP Financier'!$D$44*(('BP Financier'!$C$16+'BP Financier'!$D$16)/('BP Financier'!$C$16+'BP Financier'!$C$19+'BP Financier'!$D$16+'BP Financier'!$D$19+'BP Financier'!$C$22+'BP Financier'!$D$22))*$V2119*AB2119/(1-$W2119)","v":{"v":41726.145498771926,"d":"41,726"}},null,{"v":0.015,"d":"1.50%"},{"$f":"Actif!$E$28/100","v":{"v":0.28900000000000003,"d":"28.90%"}},{"$f":"Actif!$E$30/100","v":{"v":0.09050000000000001,"d":"9.05%"}},{"$f":"Actif!$E$31/100","v":{"v":0.0605,"d":"6.05%"}},{"$f":"Actif!$E$32/100","v":{"v":0.47350000000000003,"d":"47.35%"}},{"$f":"Actif!$E$33/100","v":{"v":0.0585,"d":"5.85%"}},{"$f":"Actif!$E$29/100","v":{"v":0.027999999999999997,"d":"2.80%"}}]
[null,"#25",30,2026,"H","A_VIE",{"v":0.44999999999999996,"d":"0.45"},{"v":0.38999999999999996,"d":"0.39"},0.6,0.6,85,0,{"$f":"ROUND(Primes!$N$4*V2120,0)","v":67},{"$f":"'BP Financier'!$D$33*(('BP Financier'!$C$16+'BP Financier'!$D$16)/('BP Financier'!$C$16+'BP Financier'!$C$19+'BP Financier'!$D$16+'BP Financier'!$D$19))*V2120","v":{"v":1911055.8885105627,"d":"1,911,056"}},{"v":1059546.0517723872,"d":"1,059,546"},{"$f":"'BP Financier'!$D$44*(('BP Financier'!$C$16+'BP Financier'!$D$16)/('BP Financier'!$C$16+'BP Financier'!$C$19+'BP Financier'!$D$16+'BP Financier'!$D$19+'BP Financier'!$C$22+'BP Financier'!$D$22))*$V2120*X2120/(1-$W2120)","v":{"v":134864.8631299593,"d":"134,865"}},{"$f":"'BP Financier'!$D$44*(('BP Financier'!$C$16+'BP Financier'!$D$16)/('BP Financier'!$C$16+'BP Financier'!$C$19+'BP Financier'!$D$16+'BP Financier'!$D$19+'BP Financier'!$C$22+'BP Financier'!$D$22))*$V2120*Y2120/(1-$W2120)","v":{"v":90158.27866698935,"d":"90,158"}},{"$f":"'BP Financier'!$D$44*(('BP Financier'!$C$16+'BP Financier'!$D$16)/('BP Financier'!$C$16+'BP Financier'!$C$19+'BP Financier'!$D$16+'BP Financier'!$D$19+'BP Financier'!$C$22+'BP Financier'!$D$22))*$V2120*Z2120/(1-$W2120)","v":{"v":705618.9247738754,"d":"705,619"}},{"$f":"'BP Financier'!$D$44*(('BP Financier'!$C$16+'BP Financier'!$D$16)/('BP Financier'!$C$16+'BP Financier'!$C$19+'BP Financier'!$D$16+'BP Financier'!$D$19+'BP Financier'!$C$22+'BP Financier'!$D$22))*$V2120*AA2120/(1-$W2120)","v":{"v":87177.83970279136,"d":"87,178"}},{"$f":"'BP Financier'!$D$44*(('BP Financier'!$C$16+'BP Financier'!$D$16)/('BP Financier'!$C$16+'BP Financier'!$C$19+'BP Financier'!$D$16+'BP Financier'!$D$19+'BP Financier'!$C$22+'BP Financier'!$D$22))*$V2120*AB2120/(1-$W2120)","v":{"v":41726.145498771926,"d":"41,726"}},null,{"v":0.015,"d":"1.50%"},{"$f":"Actif!$E$28/100","v":{"v":0.28900000000000003,"d":"28.90%"}},{"$f":"Actif!$E$30/100","v":{"v":0.09050000000000001,"d":"9.05%"}},{"$f":"Actif!$E$31/100","v":{"v":0.0605,"d":"6.05%"}},{"$f":"Actif!$E$32/100","v":{"v":0.47350000000000003,"d":"47.35%"}},{"$f":"Actif!$E$33/100","v":{"v":0.0585,"d":"5.85%"}},{"$f":"Actif!$E$29/100","v":{"v":0.027999999999999997,"d":"2.80%"}}]
[null,"#26",30,2028,"H","A_VIE",{"v":0.44999999999999996,"d":"0.45"},{"v":0.38999999999999996,"d":"0.39"},0.6,0.6,85,0,{"$f":"ROUND(Primes!$N$4*V2121,0)","v":67},{"$f":"'BP Financier'!$D$33*(('BP Financier'!$C$16+'BP Financier'!$D$16)/('BP Financier'!$C$16+'BP Financier'!$C$19+'BP Financier'!$D$16+'BP Financier'!$D$19))*V2121","v":{"v":1911055.8885105627,"d":"1,911,056"}},{"v":1059546.0517723872,"d":"1,059,546"},{"$f":"'BP Financier'!$D$44*(('BP Financier'!$C$16+'BP Financier'!$D$16)/('BP Financier'!$C$16+'BP Financier'!$C$19+'BP Financier'!$D$16+'BP Financier'!$D$19+'BP Financier'!$C$22+'BP Financier'!$D$22))*$V2121*X2121/(1-$W2121)","v":{"v":134864.8631299593,"d":"134,865"}},{"$f":"'BP Financier'!$D$44*(('BP Financier'!$C$16+'BP Financier'!$D$16)/('BP Financier'!$C$16+'BP Financier'!$C$19+'BP Financier'!$D$16+'BP Financier'!$D$19+'BP Financier'!$C$22+'BP Financier'!$D$22))*$V2121*Y2121/(1-$W2121)","v":{"v":90158.27866698935,"d":"90,158"}},{"$f":"'BP Financier'!$D$44*(('BP Financier'!$C$16+'BP Financier'!$D$16)/('BP Financier'!$C$16+'BP Financier'!$C$19+'BP Financier'!$D$16+'BP Financier'!$D$19+'BP Financier'!$C$22+'BP Financier'!$D$22))*$V2121*Z2121/(1-$W2121)","v":{"v":705618.9247738754,"d":"705,619"}},{"$f":"'BP Financier'!$D$44*(('BP Financier'!$C$16+'BP Financier'!$D$16)/('BP Financier'!$C$16+'BP Financier'!$C$19+'BP Financier'!$D$16+'BP Financier'!$D$19+'BP Financier'!$C$22+'BP Financier'!$D$22))*$V2121*AA2121/(1-$W2121)","v":{"v":87177.83970279136,"d":"87,178"}},{"$f":"'BP Financier'!$D$44*(('BP Financier'!$C$16+'BP Financier'!$D$16)/('BP Financier'!$C$16+'BP Financier'!$C$19+'BP Financier'!$D$16+'BP Financier'!$D$19+'BP Financier'!$C$22+'BP Financier'!$D$22))*$V2121*AB2121/(1-$W2121)","v":{"v":41726.145498771926,"d":"41,726"}},null,{"v":0.015,"d":"1.50%"},{"$f":"Actif!$E$28/100","v":{"v":0.28900000000000003,"d":"28.90%"}},{"$f":"Actif!$E$30/100","v":{"v":0.09050000000000001,"d":"9.05%"}},{"$f":"Actif!$E$31/100","v":{"v":0.0605,"d":"6.05%"}},{"$f":"Actif!$E$32/100","v":{"v":0.47350000000000003,"d":"47.35%"}},{"$f":"Actif!$E$33/100","v":{"v":0.0585,"d":"5.85%"}},{"$f":"Actif!$E$29/100","v":{"v":0.027999999999999997,"d":"2.80%"}}]
[null,"#27",31,2026,"H","A_VIE",{"v":0.44999999999999996,"d":"0.45"},{"v":0.38999999999999996,"d":"0.39"},0.6,0.6,85,0,{"$f":"ROUND(Primes!$N$4*V2122,0)","v":67},{"$f":"'BP Financier'!$D$33*(('BP Financier'!$C$16+'BP Financier'!$D$16)/('BP Financier'!$C$16+'BP Financier'!$C$19+'BP Financier'!$D$16+'BP Financier'!$D$19))*V2122","v":{"v":1911055.8885105627,"d":"1,911,056"}},{"v":1059546.0517723872,"d":"1,059,546"},{"$f":"'BP Financier'!$D$44*(('BP Financier'!$C$16+'BP Financier'!$D$16)/('BP Financier'!$C$16+'BP Financier'!$C$19+'BP Financier'!$D$16+'BP Financier'!$D$19+'BP Financier'!$C$22+'BP Financier'!$D$22))*$V2122*X2122/(1-$W2122)","v":{"v":134864.8631299593,"d":"134,865"}},{"$f":"'BP Financier'!$D$44*(('BP Financier'!$C$16+'BP Financier'!$D$16)/('BP Financier'!$C$16+'BP Financier'!$C$19+'BP Financier'!$D$16+'BP Financier'!$D$19+'BP Financier'!$C$22+'BP Financier'!$D$22))*$V2122*Y2122/(1-$W2122)","v":{"v":90158.27866698935,"d":"90,158"}},{"$f":"'BP Financier'!$D$44*(('BP Financier'!$C$16+'BP Financier'!$D$16)/('BP Financier'!$C$16+'BP Financier'!$C$19+'BP Financier'!$D$16+'BP Financier'!$D$19+'BP Financier'!$C$22+'BP Financier'!$D$22))*$V2122*Z2122/(1-$W2122)","v":{"v":705618.9247738754,"d":"705,619"}},{"$f":"'BP Financier'!$D$44*(('BP Financier'!$C$16+'BP Financier'!$D$16)/('BP Financier'!$C$16+'BP Financier'!$C$19+'BP Financier'!$D$16+'BP Financier'!$D$19+'BP Financier'!$C$22+'BP Financier'!$D$22))*$V2122*AA2122/(1-$W2122)","v":{"v":87177.83970279136,"d":"87,178"}},{"$f":"'BP Financier'!$D$44*(('BP Financier'!$C$16+'BP Financier'!$D$16)/('BP Financier'!$C$16+'BP Financier'!$C$19+'BP Financier'!$D$16+'BP Financier'!$D$19+'BP Financier'!$C$22+'BP Financier'!$D$22))*$V2122*AB2122/(1-$W2122)","v":{"v":41726.145498771926,"d":"41,726"}},null,{"v":0.015,"d":"1.50%"},{"$f":"Actif!$E$28/100","v":{"v":0.28900000000000003,"d":"28.90%"}},{"$f":"Actif!$E$30/100","v":{"v":0.09050000000000001,"d":"9.05%"}},{"$f":"Actif!$E$31/100","v":{"v":0.0605,"d":"6.05%"}},{"$f":"Actif!$E$32/100","v":{"v":0.47350000000000003,"d":"47.35%"}},{"$f":"Actif!$E$33/100","v":{"v":0.0585,"d":"5.85%"}},{"$f":"Actif!$E$29/100","v":{"v":0.027999999999999997,"d":"2.80%"}}]
[null,"#28",31,2028,"H","A_VIE",{"v":0.44999999999999996,"d":"0.45"},{"v":0.38999999999999996,"d":"0.39"},0.6,0.6,85,0,{"$f":"ROUND(Primes!$N$4*V2123,0)","v":67},{"$f":"'BP Financier'!$D$33*(('BP Financier'!$C$16+'BP Financier'!$D$16)/('BP Financier'!$C$16+'BP Financier'!$C$19+'BP Financier'!$D$16+'BP Financier'!$D$19))*V2123","v":{"v":1911055.8885105627,"d":"1,911,056"}},{"v":1059546.0517723872,"d":"1,059,546"},{"$f":"'BP Financier'!$D$44*(('BP Financier'!$C$16+'BP Financier'!$D$16)/('BP Financier'!$C$16+'BP Financier'!$C$19+'BP Financier'!$D$16+'BP Financier'!$D$19+'BP Financier'!$C$22+'BP Financier'!$D$22))*$V2123*X2123/(1-$W2123)","v":{"v":134864.8631299593,"d":"134,865"}},{"$f":"'BP Financier'!$D$44*(('BP Financier'!$C$16+'BP Financier'!$D$16)/('BP Financier'!$C$16+'BP Financier'!$C$19+'BP Financier'!$D$16+'BP Financier'!$D$19+'BP Financier'!$C$22+'BP Financier'!$D$22))*$V2123*Y2123/(1-$W2123)","v":{"v":90158.27866698935,"d":"90,158"}},{"$f":"'BP Financier'!$D$44*(('BP Financier'!$C$16+'BP Financier'!$D$16)/('BP Financier'!$C$16+'BP Financier'!$C$19+'BP Financier'!$D$16+'BP Financier'!$D$19+'BP Financier'!$C$22+'BP Financier'!$D$22))*$V2123*Z2123/(1-$W2123)","v":{"v":705618.9247738754,"d":"705,619"}},{"$f":"'BP Financier'!$D$44*(('BP Financier'!$C$16+'BP Financier'!$D$16)/('BP Financier'!$C$16+'BP Financier'!$C$19+'BP Financier'!$D$16+'BP Financier'!$D$19+'BP Financier'!$C$22+'BP Financier'!$D$22))*$V2123*AA2123/(1-$W2123)","v":{"v":87177.83970279136,"d":"87,178"}},{"$f":"'BP Financier'!$D$44*(('BP Financier'!$C$16+'BP Financier'!$D$16)/('BP Financier'!$C$16+'BP Financier'!$C$19+'BP Financier'!$D$16+'BP Financier'!$D$19+'BP Financier'!$C$22+'BP Financier'!$D$22))*$V2123*AB2123/(1-$W2123)","v":{"v":41726.145498771926,"d":"41,726"}},null,{"v":0.015,"d":"1.50%"},{"$f":"Actif!$E$28/100","v":{"v":0.28900000000000003,"d":"28.90%"}},{"$f":"Actif!$E$30/100","v":{"v":0.09050000000000001,"d":"9.05%"}},{"$f":"Actif!$E$31/100","v":{"v":0.0605,"d":"6.05%"}},{"$f":"Actif!$E$32/100","v":{"v":0.47350000000000003,"d":"47.35%"}},{"$f":"Actif!$E$33/100","v":{"v":0.0585,"d":"5.85%"}},{"$f":"Actif!$E$29/100","v":{"v":0.027999999999999997,"d":"2.80%"}}]
[null,"#29",32,2026,"F","A_VIE",{"v":0.44999999999999996,"d":"0.45"},{"v":0.38999999999999996,"d":"0.39"},0.6,0.6,85,0,{"$f":"ROUND(Primes!$N$4*V2124,0)","v":67},{"$f":"'BP Financier'!$D$33*(('BP Financier'!$C$16+'BP Financier'!$D$16)/('BP Financier'!$C$16+'BP Financier'!$C$19+'BP Financier'!$D$16+'BP Financier'!$D$19))*V2124","v":{"v":1911055.8885105627,"d":"1,911,056"}},{"v":1059546.0517723872,"d":"1,059,546"},{"$f":"'BP Financier'!$D$44*(('BP Financier'!$C$16+'BP Financier'!$D$16)/('BP Financier'!$C$16+'BP Financier'!$C$19+'BP Financier'!$D$16+'BP Financier'!$D$19+'BP Financier'!$C$22+'BP Financier'!$D$22))*$V2124*X2124/(1-$W2124)","v":{"v":134864.8631299593,"d":"134,865"}},{"$f":"'BP Financier'!$D$44*(('BP Financier'!$C$16+'BP Financier'!$D$16)/('BP Financier'!$C$16+'BP Financier'!$C$19+'BP Financier'!$D$16+'BP Financier'!$D$19+'BP Financier'!$C$22+'BP Financier'!$D$22))*$V2124*Y2124/(1-$W2124)","v":{"v":90158.27866698935,"d":"90,158"}},{"$f":"'BP Financier'!$D$44*(('BP Financier'!$C$16+'BP Financier'!$D$16)/('BP Financier'!$C$16+'BP Financier'!$C$19+'BP Financier'!$D$16+'BP Financier'!$D$19+'BP Financier'!$C$22+'BP Financier'!$D$22))*$V2124*Z2124/(1-$W2124)","v":{"v":705618.9247738754,"d":"705,619"}},{"$f":"'BP Financier'!$D$44*(('BP Financier'!$C$16+'BP Financier'!$D$16)/('BP Financier'!$C$16+'BP Financier'!$C$19+'BP Financier'!$D$16+'BP Financier'!$D$19+'BP Financier'!$C$22+'BP Financier'!$D$22))*$V2124*AA2124/(1-$W2124)","v":{"v":87177.83970279136,"d":"87,178"}},{"$f":"'BP Financier'!$D$44*(('BP Financier'!$C$16+'BP Financier'!$D$16)/('BP Financier'!$C$16+'BP Financier'!$C$19+'BP Financier'!$D$16+'BP Financier'!$D$19+'BP Financier'!$C$22+'BP Financier'!$D$22))*$V2124*AB2124/(1-$W2124)","v":{"v":41726.145498771926,"d":"41,726"}},null,{"v":0.015,"d":"1.50%"},{"$f":"Actif!$E$28/100","v":{"v":0.28900000000000003,"d":"28.90%"}},{"$f":"Actif!$E$30/100","v":{"v":0.09050000000000001,"d":"9.05%"}},{"$f":"Actif!$E$31/100","v":{"v":0.0605,"d":"6.05%"}},{"$f":"Actif!$E$32/100","v":{"v":0.47350000000000003,"d":"47.35%"}},{"$f":"Actif!$E$33/100","v":{"v":0.0585,"d":"5.85%"}},{"$f":"Actif!$E$29/100","v":{"v":0.027999999999999997,"d":"2.80%"}}]
[null,"#30",32,2028,"F","A_VIE",{"v":0.44999999999999996,"d":"0.45"},{"v":0.38999999999999996,"d":"0.39"},0.6,0.6,85,0,{"$f":"ROUND(Primes!$N$4*V2125,0)","v":67},{"$f":"'BP Financier'!$D$33*(('BP Financier'!$C$16+'BP Financier'!$D$16)/('BP Financier'!$C$16+'BP Financier'!$C$19+'BP Financier'!$D$16+'BP Financier'!$D$19))*V2125","v":{"v":1911055.8885105627,"d":"1,911,056"}},{"v":1059546.0517723872,"d":"1,059,546"},{"$f":"'BP Financier'!$D$44*(('BP Financier'!$C$16+'BP Financier'!$D$16)/('BP Financier'!$C$16+'BP Financier'!$C$19+'BP Financier'!$D$16+'BP Financier'!$D$19+'BP Financier'!$C$22+'BP Financier'!$D$22))*$V2125*X2125/(1-$W2125)","v":{"v":134864.8631299593,"d":"134,865"}},{"$f":"'BP Financier'!$D$44*(('BP Financier'!$C$16+'BP Financier'!$D$16)/('BP Financier'!$C$16+'BP Financier'!$C$19+'BP Financier'!$D$16+'BP Financier'!$D$19+'BP Financier'!$C$22+'BP Financier'!$D$22))*$V2125*Y2125/(1-$W2125)","v":{"v":90158.27866698935,"d":"90,158"}},{"$f":"'BP Financier'!$D$44*(('BP Financier'!$C$16+'BP Financier'!$D$16)/('BP Financier'!$C$16+'BP Financier'!$C$19+'BP Financier'!$D$16+'BP Financier'!$D$19+'BP Financier'!$C$22+'BP Financier'!$D$22))*$V2125*Z2125/(1-$W2125)","v":{"v":705618.9247738754,"d":"705,619"}},{"$f":"'BP Financier'!$D$44*(('BP Financier'!$C$16+'BP Financier'!$D$16)/('BP Financier'!$C$16+'BP Financier'!$C$19+'BP Financier'!$D$16+'BP Financier'!$D$19+'BP Financier'!$C$22+'BP Financier'!$D$22))*$V2125*AA2125/(1-$W2125)","v":{"v":87177.83970279136,"d":"87,178"}},{"$f":"'BP Financier'!$D$44*(('BP Financier'!$C$16+'BP Financier'!$D$16)/('BP Financier'!$C$16+'BP Financier'!$C$19+'BP Financier'!$D$16+'BP Financier'!$D$19+'BP Financier'!$C$22+'BP Financier'!$D$22))*$V2125*AB2125/(1-$W2125)","v":{"v":41726.145498771926,"d":"41,726"}},null,{"v":0.015,"d":"1.50%"},{"$f":"Actif!$E$28/100","v":{"v":0.28900000000000003,"d":"28.90%"}},{"$f":"Actif!$E$30/100","v":{"v":0.09050000000000001,"d":"9.05%"}},{"$f":"Actif!$E$31/100","v":{"v":0.0605,"d":"6.05%"}},{"$f":"Actif!$E$32/100","v":{"v":0.47350000000000003,"d":"47.35%"}},{"$f":"Actif!$E$33/100","v":{"v":0.0585,"d":"5.85%"}},{"$f":"Actif!$E$29/100","v":{"v":0.027999999999999997,"d":"2.80%"}}]
[null,"#31",33,2026,"H","A_VIE",{"v":0.44999999999999996,"d":"0.45"},{"v":0.38999999999999996,"d":"0.39"},0.6,0.6,85,0,{"$f":"ROUND(Primes!$N$4*V2126,0)","v":67},{"$f":"'BP Financier'!$D$33*(('BP Financier'!$C$16+'BP Financier'!$D$16)/('BP Financier'!$C$16+'BP Financier'!$C$19+'BP Financier'!$D$16+'BP Financier'!$D$19))*V2126","v":{"v":1911055.8885105627,"d":"1,911,056"}},{"v":1059546.0517723872,"d":"1,059,546"},{"$f":"'BP Financier'!$D$44*(('BP Financier'!$C$16+'BP Financier'!$D$16)/('BP Financier'!$C$16+'BP Financier'!$C$19+'BP Financier'!$D$16+'BP Financier'!$D$19+'BP Financier'!$C$22+'BP Financier'!$D$22))*$V2126*X2126/(1-$W2126)","v":{"v":134864.8631299593,"d":"134,865"}},{"$f":"'BP Financier'!$D$44*(('BP Financier'!$C$16+'BP Financier'!$D$16)/('BP Financier'!$C$16+'BP Financier'!$C$19+'BP Financier'!$D$16+'BP Financier'!$D$19+'BP Financier'!$C$22+'BP Financier'!$D$22))*$V2126*Y2126/(1-$W2126)","v":{"v":90158.27866698935,"d":"90,158"}},{"$f":"'BP Financier'!$D$44*(('BP Financier'!$C$16+'BP Financier'!$D$16)/('BP Financier'!$C$16+'BP Financier'!$C$19+'BP Financier'!$D$16+'BP Financier'!$D$19+'BP Financier'!$C$22+'BP Financier'!$D$22))*$V2126*Z2126/(1-$W2126)","v":{"v":705618.9247738754,"d":"705,619"}},{"$f":"'BP Financier'!$D$44*(('BP Financier'!$C$16+'BP Financier'!$D$16)/('BP Financier'!$C$16+'BP Financier'!$C$19+'BP Financier'!$D$16+'BP Financier'!$D$19+'BP Financier'!$C$22+'BP Financier'!$D$22))*$V2126*AA2126/(1-$W2126)","v":{"v":87177.83970279136,"d":"87,178"}},{"$f":"'BP Financier'!$D$44*(('BP Financier'!$C$16+'BP Financier'!$D$16)/('BP Financier'!$C$16+'BP Financier'!$C$19+'BP Financier'!$D$16+'BP Financier'!$D$19+'BP Financier'!$C$22+'BP Financier'!$D$22))*$V2126*AB2126/(1-$W2126)","v":{"v":41726.145498771926,"d":"41,726"}},null,{"v":0.015,"d":"1.50%"},{"$f":"Actif!$E$28/100","v":{"v":0.28900000000000003,"d":"28.90%"}},{"$f":"Actif!$E$30/100","v":{"v":0.09050000000000001,"d":"9.05%"}},{"$f":"Actif!$E$31/100","v":{"v":0.0605,"d":"6.05%"}},{"$f":"Actif!$E$32/100","v":{"v":0.47350000000000003,"d":"47.35%"}},{"$f":"Actif!$E$33/100","v":{"v":0.0585,"d":"5.85%"}},{"$f":"Actif!$E$29/100","v":{"v":0.027999999999999997,"d":"2.80%"}}]
[null,"#32",33,2028,"H","A_VIE",{"v":0.44999999999999996,"d":"0.45"},{"v":0.38999999999999996,"d":"0.39"},0.6,0.6,85,0,{"$f":"ROUND(Primes!$N$4*V2127,0)","v":67},{"$f":"'BP Financier'!$D$33*(('BP Financier'!$C$16+'BP Financier'!$D$16)/('BP Financier'!$C$16+'BP Financier'!$C$19+'BP Financier'!$D$16+'BP Financier'!$D$19))*V2127","v":{"v":1911055.8885105627,"d":"1,911,056"}},{"v":1059546.0517723872,"d":"1,059,546"},{"$f":"'BP Financier'!$D$44*(('BP Financier'!$C$16+'BP Financier'!$D$16)/('BP Financier'!$C$16+'BP Financier'!$C$19+'BP Financier'!$D$16+'BP Financier'!$D$19+'BP Financier'!$C$22+'BP Financier'!$D$22))*$V2127*X2127/(1-$W2127)","v":{"v":134864.8631299593,"d":"134,865"}},{"$f":"'BP Financier'!$D$44*(('BP Financier'!$C$16+'BP Financier'!$D$16)/('BP Financier'!$C$16+'BP Financier'!$C$19+'BP Financier'!$D$16+'BP Financier'!$D$19+'BP Financier'!$C$22+'BP Financier'!$D$22))*$V2127*Y2127/(1-$W2127)","v":{"v":90158.27866698935,"d":"90,158"}},{"$f":"'BP Financier'!$D$44*(('BP Financier'!$C$16+'BP Financier'!$D$16)/('BP Financier'!$C$16+'BP Financier'!$C$19+'BP Financier'!$D$16+'BP Financier'!$D$19+'BP Financier'!$C$22+'BP Financier'!$D$22))*$V2127*Z2127/(1-$W2127)","v":{"v":705618.9247738754,"d":"705,619"}},{"$f":"'BP Financier'!$D$44*(('BP Financier'!$C$16+'BP Financier'!$D$16)/('BP Financier'!$C$16+'BP Financier'!$C$19+'BP Financier'!$D$16+'BP Financier'!$D$19+'BP Financier'!$C$22+'BP Financier'!$D$22))*$V2127*AA2127/(1-$W2127)","v":{"v":87177.83970279136,"d":"87,178"}},{"$f":"'BP Financier'!$D$44*(('BP Financier'!$C$16+'BP Financier'!$D$16)/('BP Financier'!$C$16+'BP Financier'!$C$19+'BP Financier'!$D$16+'BP Financier'!$D$19+'BP Financier'!$C$22+'BP Financier'!$D$22))*$V2127*AB2127/(1-$W2127)","v":{"v":41726.145498771926,"d":"41,726"}},null,{"v":0.015,"d":"1.50%"},{"$f":"Actif!$E$28/100","v":{"v":0.28900000000000003,"d":"28.90%"}},{"$f":"Actif!$E$30/100","v":{"v":0.09050000000000001,"d":"9.05%"}},{"$f":"Actif!$E$31/100","v":{"v":0.0605,"d":"6.05%"}},{"$f":"Actif!$E$32/100","v":{"v":0.47350000000000003,"d":"47.35%"}},{"$f":"Actif!$E$33/100","v":{"v":0.0585,"d":"5.85%"}},{"$f":"Actif!$E$29/100","v":{"v":0.027999999999999997,"d":"2.80%"}}]
[null,"#33",34,2026,"H","A_VIE",{"v":0.44999999999999996,"d":"0.45"},{"v":0.38999999999999996,"d":"0.39"},0.6,0.6,85,0,{"$f":"ROUND(Primes!$N$4*V2128,0)","v":67},{"$f":"'BP Financier'!$D$33*(('BP Financier'!$C$16+'BP Financier'!$D$16)/('BP Financier'!$C$16+'BP Financier'!$C$19+'BP Financier'!$D$16+'BP Financier'!$D$19))*V2128","v":{"v":1911055.8885105627,"d":"1,911,056"}},{"v":1059546.0517723872,"d":"1,059,546"},{"$f":"'BP Financier'!$D$44*(('BP Financier'!$C$16+'BP Financier'!$D$16)/('BP Financier'!$C$16+'BP Financier'!$C$19+'BP Financier'!$D$16+'BP Financier'!$D$19+'BP Financier'!$C$22+'BP Financier'!$D$22))*$V2128*X2128/(1-$W2128)","v":{"v":134864.8631299593,"d":"134,865"}},{"$f":"'BP Financier'!$D$44*(('BP Financier'!$C$16+'BP Financier'!$D$16)/('BP Financier'!$C$16+'BP Financier'!$C$19+'BP Financier'!$D$16+'BP Financier'!$D$19+'BP Financier'!$C$22+'BP Financier'!$D$22))*$V2128*Y2128/(1-$W2128)","v":{"v":90158.27866698935,"d":"90,158"}},{"$f":"'BP Financier'!$D$44*(('BP Financier'!$C$16+'BP Financier'!$D$16)/('BP Financier'!$C$16+'BP Financier'!$C$19+'BP Financier'!$D$16+'BP Financier'!$D$19+'BP Financier'!$C$22+'BP Financier'!$D$22))*$V2128*Z2128/(1-$W2128)","v":{"v":705618.9247738754,"d":"705,619"}},{"$f":"'BP Financier'!$D$44*(('BP Financier'!$C$16+'BP Financier'!$D$16)/('BP Financier'!$C$16+'BP Financier'!$C$19+'BP Financier'!$D$16+'BP Financier'!$D$19+'BP Financier'!$C$22+'BP Financier'!$D$22))*$V2128*AA2128/(1-$W2128)","v":{"v":87177.83970279136,"d":"87,178"}},{"$f":"'BP Financier'!$D$44*(('BP Financier'!$C$16+'BP Financier'!$D$16)/('BP Financier'!$C$16+'BP Financier'!$C$19+'BP Financier'!$D$16+'BP Financier'!$D$19+'BP Financier'!$C$22+'BP Financier'!$D$22))*$V2128*AB2128/(1-$W2128)","v":{"v":41726.145498771926,"d":"41,726"}},null,{"v":0.015,"d":"1.50%"},{"$f":"Actif!$E$28/100","v":{"v":0.28900000000000003,"d":"28.90%"}},{"$f":"Actif!$E$30/100","v":{"v":0.09050000000000001,"d":"9.05%"}},{"$f":"Actif!$E$31/100","v":{"v":0.0605,"d":"6.05%"}},{"$f":"Actif!$E$32/100","v":{"v":0.47350000000000003,"d":"47.35%"}},{"$f":"Actif!$E$33/100","v":{"v":0.0585,"d":"5.85%"}},{"$f":"Actif!$E$29/100","v":{"v":0.027999999999999997,"d":"2.80%"}}]
[null,"#34",34,2028,"H","A_VIE",{"v":0.44999999999999996,"d":"0.45"},{"v":0.38999999999999996,"d":"0.39"},0.6,0.6,85,0,{"$f":"ROUND(Primes!$N$4*V2129,0)","v":67},{"$f":"'BP Financier'!$D$33*(('BP Financier'!$C$16+'BP Financier'!$D$16)/('BP Financier'!$C$16+'BP Financier'!$C$19+'BP Financier'!$D$16+'BP Financier'!$D$19))*V2129","v":{"v":1911055.8885105627,"d":"1,911,056"}},{"v":1059546.0517723872,"d":"1,059,546"},{"$f":"'BP Financier'!$D$44*(('BP Financier'!$C$16+'BP Financier'!$D$16)/('BP Financier'!$C$16+'BP Financier'!$C$19+'BP Financier'!$D$16+'BP Financier'!$D$19+'BP Financier'!$C$22+'BP Financier'!$D$22))*$V2129*X2129/(1-$W2129)","v":{"v":134864.8631299593,"d":"134,865"}},{"$f":"'BP Financier'!$D$44*(('BP Financier'!$C$16+'BP Financier'!$D$16)/('BP Financier'!$C$16+'BP Financier'!$C$19+'BP Financier'!$D$16+'BP Financier'!$D$19+'BP Financier'!$C$22+'BP Financier'!$D$22))*$V2129*Y2129/(1-$W2129)","v":{"v":90158.27866698935,"d":"90,158"}},{"$f":"'BP Financier'!$D$44*(('BP Financier'!$C$16+'BP Financier'!$D$16)/('BP Financier'!$C$16+'BP Financier'!$C$19+'BP Financier'!$D$16+'BP Financier'!$D$19+'BP Financier'!$C$22+'BP Financier'!$D$22))*$V2129*Z2129/(1-$W2129)","v":{"v":705618.9247738754,"d":"705,619"}},{"$f":"'BP Financier'!$D$44*(('BP Financier'!$C$16+'BP Financier'!$D$16)/('BP Financier'!$C$16+'BP Financier'!$C$19+'BP Financier'!$D$16+'BP Financier'!$D$19+'BP Financier'!$C$22+'BP Financier'!$D$22))*$V2129*AA2129/(1-$W2129)","v":{"v":87177.83970279136,"d":"87,178"}},{"$f":"'BP Financier'!$D$44*(('BP Financier'!$C$16+'BP Financier'!$D$16)/('BP Financier'!$C$16+'BP Financier'!$C$19+'BP Financier'!$D$16+'BP Financier'!$D$19+'BP Financier'!$C$22+'BP Financier'!$D$22))*$V2129*AB2129/(1-$W2129)","v":{"v":41726.145498771926,"d":"41,726"}},null,{"v":0.015,"d":"1.50%"},{"$f":"Actif!$E$28/100","v":{"v":0.28900000000000003,"d":"28.90%"}},{"$f":"Actif!$E$30/100","v":{"v":0.09050000000000001,"d":"9.05%"}},{"$f":"Actif!$E$31/100","v":{"v":0.0605,"d":"6.05%"}},{"$f":"Actif!$E$32/100","v":{"v":0.47350000000000003,"d":"47.35%"}},{"$f":"Actif!$E$33/100","v":{"v":0.0585,"d":"5.85%"}},{"$f":"Actif!$E$29/100","v":{"v":0.027999999999999997,"d":"2.80%"}}]
[null,"#35",35,2026,"F","A_VIE",{"v":0.44999999999999996,"d":"0.45"},{"v":0.38999999999999996,"d":"0.39"},0.6,0.6,85,0,{"$f":"ROUND(Primes!$N$4*V2130,0)","v":67},{"$f":"'BP Financier'!$D$33*(('BP Financier'!$C$16+'BP Financier'!$D$16)/('BP Financier'!$C$16+'BP Financier'!$C$19+'BP Financier'!$D$16+'BP Financier'!$D$19))*V2130","v":{"v":1911055.8885105627,"d":"1,911,056"}},{"v":1059546.0517723872,"d":"1,059,546"},{"$f":"'BP Financier'!$D$44*(('BP Financier'!$C$16+'BP Financier'!$D$16)/('BP Financier'!$C$16+'BP Financier'!$C$19+'BP Financier'!$D$16+'BP Financier'!$D$19+'BP Financier'!$C$22+'BP Financier'!$D$22))*$V2130*X2130/(1-$W2130)","v":{"v":134864.8631299593,"d":"134,865"}},{"$f":"'BP Financier'!$D$44*(('BP Financier'!$C$16+'BP Financier'!$D$16)/('BP Financier'!$C$16+'BP Financier'!$C$19+'BP Financier'!$D$16+'BP Financier'!$D$19+'BP Financier'!$C$22+'BP Financier'!$D$22))*$V2130*Y2130/(1-$W2130)","v":{"v":90158.27866698935,"d":"90,158"}},{"$f":"'BP Financier'!$D$44*(('BP Financier'!$C$16+'BP Financier'!$D$16)/('BP Financier'!$C$16+'BP Financier'!$C$19+'BP Financier'!$D$16+'BP Financier'!$D$19+'BP Financier'!$C$22+'BP Financier'!$D$22))*$V2130*Z2130/(1-$W2130)","v":{"v":705618.9247738754,"d":"705,619"}},{"$f":"'BP Financier'!$D$44*(('BP Financier'!$C$16+'BP Financier'!$D$16)/('BP Financier'!$C$16+'BP Financier'!$C$19+'BP Financier'!$D$16+'BP Financier'!$D$19+'BP Financier'!$C$22+'BP Financier'!$D$22))*$V2130*AA2130/(1-$W2130)","v":{"v":87177.83970279136,"d":"87,178"}},{"$f":"'BP Financier'!$D$44*(('BP Financier'!$C$16+'BP Financier'!$D$16)/('BP Financier'!$C$16+'BP Financier'!$C$19+'BP Financier'!$D$16+'BP Financier'!$D$19+'BP Financier'!$C$22+'BP Financier'!$D$22))*$V2130*AB2130/(1-$W2130)","v":{"v":41726.145498771926,"d":"41,726"}},null,{"v":0.015,"d":"1.50%"},{"$f":"Actif!$E$28/100","v":{"v":0.28900000000000003,"d":"28.90%"}},{"$f":"Actif!$E$30/100","v":{"v":0.09050000000000001,"d":"9.05%"}},{"$f":"Actif!$E$31/100","v":{"v":0.0605,"d":"6.05%"}},{"$f":"Actif!$E$32/100","v":{"v":0.47350000000000003,"d":"47.35%"}},{"$f":"Actif!$E$33/100","v":{"v":0.0585,"d":"5.85%"}},{"$f":"Actif!$E$29/100","v":{"v":0.027999999999999997,"d":"2.80%"}}]
[null,"#36",35,2028,"F","A_VIE",{"v":0.44999999999999996,"d":"0.45"},{"v":0.38999999999999996,"d":"0.39"},0.6,0.6,85,0,{"$f":"ROUND(Primes!$N$4*V2131,0)","v":67},{"$f":"'BP Financier'!$D$33*(('BP Financier'!$C$16+'BP Financier'!$D$16)/('BP Financier'!$C$16+'BP Financier'!$C$19+'BP Financier'!$D$16+'BP Financier'!$D$19))*V2131","v":{"v":1911055.8885105627,"d":"1,911,056"}},{"v":1059546.0517723872,"d":"1,059,546"},{"$f":"'BP Financier'!$D$44*(('BP Financier'!$C$16+'BP Financier'!$D$16)/('BP Financier'!$C$16+'BP Financier'!$C$19+'BP Financier'!$D$16+'BP Financier'!$D$19+'BP Financier'!$C$22+'BP Financier'!$D$22))*$V2131*X2131/(1-$W2131)","v":{"v":134864.8631299593,"d":"134,865"}},{"$f":"'BP Financier'!$D$44*(('BP Financier'!$C$16+'BP Financier'!$D$16)/('BP Financier'!$C$16+'BP Financier'!$C$19+'BP Financier'!$D$16+'BP Financier'!$D$19+'BP Financier'!$C$22+'BP Financier'!$D$22))*$V2131*Y2131/(1-$W2131)","v":{"v":90158.27866698935,"d":"90,158"}},{"$f":"'BP Financier'!$D$44*(('BP Financier'!$C$16+'BP Financier'!$D$16)/('BP Financier'!$C$16+'BP Financier'!$C$19+'BP Financier'!$D$16+'BP Financier'!$D$19+'BP Financier'!$C$22+'BP Financier'!$D$22))*$V2131*Z2131/(1-$W2131)","v":{"v":705618.9247738754,"d":"705,619"}},{"$f":"'BP Financier'!$D$44*(('BP Financier'!$C$16+'BP Financier'!$D$16)/('BP Financier'!$C$16+'BP Financier'!$C$19+'BP Financier'!$D$16+'BP Financier'!$D$19+'BP Financier'!$C$22+'BP Financier'!$D$22))*$V2131*AA2131/(1-$W2131)","v":{"v":87177.83970279136,"d":"87,178"}},{"$f":"'BP Financier'!$D$44*(('BP Financier'!$C$16+'BP Financier'!$D$16)/('BP Financier'!$C$16+'BP Financier'!$C$19+'BP Financier'!$D$16+'BP Financier'!$D$19+'BP Financier'!$C$22+'BP Financier'!$D$22))*$V2131*AB2131/(1-$W2131)","v":{"v":41726.145498771926,"d":"41,726"}},null,{"v":0.015,"d":"1.50%"},{"$f":"Actif!$E$28/100","v":{"v":0.28900000000000003,"d":"28.90%"}},{"$f":"Actif!$E$30/100","v":{"v":0.09050000000000001,"d":"9.05%"}},{"$f":"Actif!$E$31/100","v":{"v":0.0605,"d":"6.05%"}},{"$f":"Actif!$E$32/100","v":{"v":0.47350000000000003,"d":"47.35%"}},{"$f":"Actif!$E$33/100","v":{"v":0.0585,"d":"5.85%"}},{"$f":"Actif!$E$29/100","v":{"v":0.027999999999999997,"d":"2.80%"}}]
[null,"#37",36,2026,"H","A_VIE",{"v":0.44999999999999996,"d":"0.45"},{"v":0.38999999999999996,"d":"0.39"},0.6,0.6,85,0,{"$f":"ROUND(Primes!$N$4*V2132,0)","v":11},{"$f":"'BP Financier'!$D$33*(('BP Financier'!$C$16+'BP Financier'!$D$16)/('BP Financier'!$C$16+'BP Financier'!$C$19+'BP Financier'!$D$16+'BP Financier'!$D$19))*V2132","v":{"v":318509.3147517605,"d":"318,509"}},{"v":176591.00862873122,"d":"176,591"},{"$f":"'BP Financier'!$D$44*(('BP Financier'!$C$16+'BP Financier'!$D$16)/('BP Financier'!$C$16+'BP Financier'!$C$19+'BP Financier'!$D$16+'BP Financier'!$D$19+'BP Financier'!$C$22+'BP Financier'!$D$22))*$V2132*X2132/(1-$W2132)","v":{"v":22477.47718832655,"d":"22,477"}},{"$f":"'BP Financier'!$D$44*(('BP Financier'!$C$16+'BP Financier'!$D$16)/('BP Financier'!$C$16+'BP Financier'!$C$19+'BP Financier'!$D$16+'BP Financier'!$D$19+'BP Financier'!$C$22+'BP Financier'!$D$22))*$V2132*Y2132/(1-$W2132)","v":{"v":15026.37977783156,"d":"15,026"}},{"$f":"'BP Financier'!$D$44*(('BP Financier'!$C$16+'BP Financier'!$D$16)/('BP Financier'!$C$16+'BP Financier'!$C$19+'BP Financier'!$D$16+'BP Financier'!$D$19+'BP Financier'!$C$22+'BP Financier'!$D$22))*$V2132*Z2132/(1-$W2132)","v":{"v":117603.15412897924,"d":"117,603"}},{"$f":"'BP Financier'!$D$44*(('BP Financier'!$C$16+'BP Financier'!$D$16)/('BP Financier'!$C$16+'BP Financier'!$C$19+'BP Financier'!$D$16+'BP Financier'!$D$19+'BP Financier'!$C$22+'BP Financier'!$D$22))*$V2132*AA2132/(1-$W2132)","v":{"v":14529.639950465227,"d":"14,530"}},{"$f":"'BP Financier'!$D$44*(('BP Financier'!$C$16+'BP Financier'!$D$16)/('BP Financier'!$C$16+'BP Financier'!$C$19+'BP Financier'!$D$16+'BP Financier'!$D$19+'BP Financier'!$C$22+'BP Financier'!$D$22))*$V2132*AB2132/(1-$W2132)","v":{"v":6954.357583128654,"d":"6,954"}},null,{"v":0.0025,"d":"0.25%"},{"$f":"Actif!$E$28/100","v":{"v":0.28900000000000003,"d":"28.90%"}},{"$f":"Actif!$E$30/100","v":{"v":0.09050000000000001,"d":"9.05%"}},{"$f":"Actif!$E$31/100","v":{"v":0.0605,"d":"6.05%"}},{"$f":"Actif!$E$32/100","v":{"v":0.47350000000000003,"d":"47.35%"}},{"$f":"Actif!$E$33/100","v":{"v":0.0585,"d":"5.85%"}},{"$f":"Actif!$E$29/100","v":{"v":0.027999999999999997,"d":"2.80%"}}]
[null,"#38",36,2028,"H","A_VIE",{"v":0.44999999999999996,"d":"0.45"},{"v":0.38999999999999996,"d":"0.39"},0.6,0.6,85,0,{"$f":"ROUND(Primes!$N$4*V2133,0)","v":11},{"$f":"'BP Financier'!$D$33*(('BP Financier'!$C$16+'BP Financier'!$D$16)/('BP Financier'!$C$16+'BP Financier'!$C$19+'BP Financier'!$D$16+'BP Financier'!$D$19))*V2133","v":{"v":318509.3147517605,"d":"318,509"}},{"v":176591.00862873122,"d":"176,591"},{"$f":"'BP Financier'!$D$44*(('BP Financier'!$C$16+'BP Financier'!$D$16)/('BP Financier'!$C$16+'BP Financier'!$C$19+'BP Financier'!$D$16+'BP Financier'!$D$19+'BP Financier'!$C$22+'BP Financier'!$D$22))*$V2133*X2133/(1-$W2133)","v":{"v":22477.47718832655,"d":"22,477"}},{"$f":"'BP Financier'!$D$44*(('BP Financier'!$C$16+'BP Financier'!$D$16)/('BP Financier'!$C$16+'BP Financier'!$C$19+'BP Financier'!$D$16+'BP Financier'!$D$19+'BP Financier'!$C$22+'BP Financier'!$D$22))*$V2133*Y2133/(1-$W2133)","v":{"v":15026.37977783156,"d":"15,026"}},{"$f":"'BP Financier'!$D$44*(('BP Financier'!$C$16+'BP Financier'!$D$16)/('BP Financier'!$C$16+'BP Financier'!$C$19+'BP Financier'!$D$16+'BP Financier'!$D$19+'BP Financier'!$C$22+'BP Financier'!$D$22))*$V2133*Z2133/(1-$W2133)","v":{"v":117603.15412897924,"d":"117,603"}},{"$f":"'BP Financier'!$D$44*(('BP Financier'!$C$16+'BP Financier'!$D$16)/('BP Financier'!$C$16+'BP Financier'!$C$19+'BP Financier'!$D$16+'BP Financier'!$D$19+'BP Financier'!$C$22+'BP Financier'!$D$22))*$V2133*AA2133/(1-$W2133)","v":{"v":14529.639950465227,"d":"14,530"}},{"$f":"'BP Financier'!$D$44*(('BP Financier'!$C$16+'BP Financier'!$D$16)/('BP Financier'!$C$16+'BP Financier'!$C$19+'BP Financier'!$D$16+'BP Financier'!$D$19+'BP Financier'!$C$22+'BP Financier'!$D$22))*$V2133*AB2133/(1-$W2133)","v":{"v":6954.357583128654,"d":"6,954"}},null,{"v":0.0025,"d":"0.25%"},{"$f":"Actif!$E$28/100","v":{"v":0.28900000000000003,"d":"28.90%"}},{"$f":"Actif!$E$30/100","v":{"v":0.09050000000000001,"d":"9.05%"}},{"$f":"Actif!$E$31/100","v":{"v":0.0605,"d":"6.05%"}},{"$f":"Actif!$E$32/100","v":{"v":0.47350000000000003,"d":"47.35%"}},{"$f":"Actif!$E$33/100","v":{"v":0.0585,"d":"5.85%"}},{"$f":"Actif!$E$29/100","v":{"v":0.027999999999999997,"d":"2.80%"}}]
[null,"#39",37,2026,"H","A_VIE",{"v":0.44999999999999996,"d":"0.45"},{"v":0.38999999999999996,"d":"0.39"},0.6,0.6,85,0,{"$f":"ROUND(Primes!$N$4*V2134,0)","v":11},{"$f":"'BP Financier'!$D$33*(('BP Financier'!$C$16+'BP Financier'!$D$16)/('BP Financier'!$C$16+'BP Financier'!$C$19+'BP Financier'!$D$16+'BP Financier'!$D$19))*V2134","v":{"v":318509.3147517605,"d":"318,509"}},{"v":176591.00862873122,"d":"176,591"},{"$f":"'BP Financier'!$D$44*(('BP Financier'!$C$16+'BP Financier'!$D$16)/('BP Financier'!$C$16+'BP Financier'!$C$19+'BP Financier'!$D$16+'BP Financier'!$D$19+'BP Financier'!$C$22+'BP Financier'!$D$22))*$V2134*X2134/(1-$W2134)","v":{"v":22477.47718832655,"d":"22,477"}},{"$f":"'BP Financier'!$D$44*(('BP Financier'!$C$16+'BP Financier'!$D$16)/('BP Financier'!$C$16+'BP Financier'!$C$19+'BP Financier'!$D$16+'BP Financier'!$D$19+'BP Financier'!$C$22+'BP Financier'!$D$22))*$V2134*Y2134/(1-$W2134)","v":{"v":15026.37977783156,"d":"15,026"}},{"$f":"'BP Financier'!$D$44*(('BP Financier'!$C$16+'BP Financier'!$D$16)/('BP Financier'!$C$16+'BP Financier'!$C$19+'BP Financier'!$D$16+'BP Financier'!$D$19+'BP Financier'!$C$22+'BP Financier'!$D$22))*$V2134*Z2134/(1-$W2134)","v":{"v":117603.15412897924,"d":"117,603"}},{"$f":"'BP Financier'!$D$44*(('BP Financier'!$C$16+'BP Financier'!$D$16)/('BP Financier'!$C$16+'BP Financier'!$C$19+'BP Financier'!$D$16+'BP Financier'!$D$19+'BP Financier'!$C$22+'BP Financier'!$D$22))*$V2134*AA2134/(1-$W2134)","v":{"v":14529.639950465227,"d":"14,530"}},{"$f":"'BP Financier'!$D$44*(('BP Financier'!$C$16+'BP Financier'!$D$16)/('BP Financier'!$C$16+'BP Financier'!$C$19+'BP Financier'!$D$16+'BP Financier'!$D$19+'BP Financier'!$C$22+'BP Financier'!$D$22))*$V2134*AB2134/(1-$W2134)","v":{"v":6954.357583128654,"d":"6,954"}},null,{"v":0.0025,"d":"0.25%"},{"$f":"Actif!$E$28/100","v":{"v":0.28900000000000003,"d":"28.90%"}},{"$f":"Actif!$E$30/100","v":{"v":0.09050000000000001,"d":"9.05%"}},{"$f":"Actif!$E$31/100","v":{"v":0.0605,"d":"6.05%"}},{"$f":"Actif!$E$32/100","v":{"v":0.47350000000000003,"d":"47.35%"}},{"$f":"Actif!$E$33/100","v":{"v":0.0585,"d":"5.85%"}},{"$f":"Actif!$E$29/100","v":{"v":0.027999999999999997,"d":"2.80%"}}]
[null,"#40",37,2028,"H","A_VIE",{"v":0.44999999999999996,"d":"0.45"},{"v":0.38999999999999996,"d":"0.39"},0.6,0.6,85,0,{"$f":"ROUND(Primes!$N$4*V2135,0)","v":11},{"$f":"'BP Financier'!$D$33*(('BP Financier'!$C$16+'BP Financier'!$D$16)/('BP Financier'!$C$16+'BP Financier'!$C$19+'BP Financier'!$D$16+'BP Financier'!$D$19))*V2135","v":{"v":318509.3147517605,"d":"318,509"}},{"v":176591.00862873122,"d":"176,591"},{"$f":"'BP Financier'!$D$44*(('BP Financier'!$C$16+'BP Financier'!$D$16)/('BP Financier'!$C$16+'BP Financier'!$C$19+'BP Financier'!$D$16+'BP Financier'!$D$19+'BP Financier'!$C$22+'BP Financier'!$D$22))*$V2135*X2135/(1-$W2135)","v":{"v":22477.47718832655,"d":"22,477"}},{"$f":"'BP Financier'!$D$44*(('BP Financier'!$C$16+'BP Financier'!$D$16)/('BP Financier'!$C$16+'BP Financier'!$C$19+'BP Financier'!$D$16+'BP Financier'!$D$19+'BP Financier'!$C$22+'BP Financier'!$D$22))*$V2135*Y2135/(1-$W2135)","v":{"v":15026.37977783156,"d":"15,026"}},{"$f":"'BP Financier'!$D$44*(('BP Financier'!$C$16+'BP Financier'!$D$16)/('BP Financier'!$C$16+'BP Financier'!$C$19+'BP Financier'!$D$16+'BP Financier'!$D$19+'BP Financier'!$C$22+'BP Financier'!$D$22))*$V2135*Z2135/(1-$W2135)","v":{"v":117603.15412897924,"d":"117,603"}},{"$f":"'BP Financier'!$D$44*(('BP Financier'!$C$16+'BP Financier'!$D$16)/('BP Financier'!$C$16+'BP Financier'!$C$19+'BP Financier'!$D$16+'BP Financier'!$D$19+'BP Financier'!$C$22+'BP Financier'!$D$22))*$V2135*AA2135/(1-$W2135)","v":{"v":14529.639950465227,"d":"14,530"}},{"$f":"'BP Financier'!$D$44*(('BP Financier'!$C$16+'BP Financier'!$D$16)/('BP Financier'!$C$16+'BP Financier'!$C$19+'BP Financier'!$D$16+'BP Financier'!$D$19+'BP Financier'!$C$22+'BP Financier'!$D$22))*$V2135*AB2135/(1-$W2135)","v":{"v":6954.357583128654,"d":"6,954"}},null,{"v":0.0025,"d":"0.25%"},{"$f":"Actif!$E$28/100","v":{"v":0.28900000000000003,"d":"28.90%"}},{"$f":"Actif!$E$30/100","v":{"v":0.09050000000000001,"d":"9.05%"}},{"$f":"Actif!$E$31/100","v":{"v":0.0605,"d":"6.05%"}},{"$f":"Actif!$E$32/100","v":{"v":0.47350000000000003,"d":"47.35%"}},{"$f":"Actif!$E$33/100","v":{"v":0.0585,"d":"5.85%"}},{"$f":"Actif!$E$29/100","v":{"v":0.027999999999999997,"d":"2.80%"}}]
[null,"#41",38,2026,"F","A_VIE",{"v":0.44999999999999996,"d":"0.45"},{"v":0.38999999999999996,"d":"0.39"},0.6,0.6,85,0,{"$f":"ROUND(Primes!$N$4*V2136,0)","v":11},{"$f":"'BP Financier'!$D$33*(('BP Financier'!$C$16+'BP Financier'!$D$16)/('BP Financier'!$C$16+'BP Financier'!$C$19+'BP Financier'!$D$16+'BP Financier'!$D$19))*V2136","v":{"v":318509.3147517605,"d":"318,509"}},{"v":176591.00862873122,"d":"176,591"},{"$f":"'BP Financier'!$D$44*(('BP Financier'!$C$16+'BP Financier'!$D$16)/('BP Financier'!$C$16+'BP Financier'!$C$19+'BP Financier'!$D$16+'BP Financier'!$D$19+'BP Financier'!$C$22+'BP Financier'!$D$22))*$V2136*X2136/(1-$W2136)","v":{"v":22477.47718832655,"d":"22,477"}},{"$f":"'BP Financier'!$D$44*(('BP Financier'!$C$16+'BP Financier'!$D$16)/('BP Financier'!$C$16+'BP Financier'!$C$19+'BP Financier'!$D$16+'BP Financier'!$D$19+'BP Financier'!$C$22+'BP Financier'!$D$22))*$V2136*Y2136/(1-$W2136)","v":{"v":15026.37977783156,"d":"15,026"}},{"$f":"'BP Financier'!$D$44*(('BP Financier'!$C$16+'BP Financier'!$D$16)/('BP Financier'!$C$16+'BP Financier'!$C$19+'BP Financier'!$D$16+'BP Financier'!$D$19+'BP Financier'!$C$22+'BP Financier'!$D$22))*$V2136*Z2136/(1-$W2136)","v":{"v":117603.15412897924,"d":"117,603"}},{"$f":"'BP Financier'!$D$44*(('BP Financier'!$C$16+'BP Financier'!$D$16)/('BP Financier'!$C$16+'BP Financier'!$C$19+'BP Financier'!$D$16+'BP Financier'!$D$19+'BP Financier'!$C$22+'BP Financier'!$D$22))*$V2136*AA2136/(1-$W2136)","v":{"v":14529.639950465227,"d":"14,530"}},{"$f":"'BP Financier'!$D$44*(('BP Financier'!$C$16+'BP Financier'!$D$16)/('BP Financier'!$C$16+'BP Financier'!$C$19+'BP Financier'!$D$16+'BP Financier'!$D$19+'BP Financier'!$C$22+'BP Financier'!$D$22))*$V2136*AB2136/(1-$W2136)","v":{"v":6954.357583128654,"d":"6,954"}},null,{"v":0.0025,"d":"0.25%"},{"$f":"Actif!$E$28/100","v":{"v":0.28900000000000003,"d":"28.90%"}},{"$f":"Actif!$E$30/100","v":{"v":0.09050000000000001,"d":"9.05%"}},{"$f":"Actif!$E$31/100","v":{"v":0.0605,"d":"6.05%"}},{"$f":"Actif!$E$32/100","v":{"v":0.47350000000000003,"d":"47.35%"}},{"$f":"Actif!$E$33/100","v":{"v":0.0585,"d":"5.85%"}},{"$f":"Actif!$E$29/100","v":{"v":0.027999999999999997,"d":"2.80%"}}]
[null,"#42",38,2028,"F","A_VIE",{"v":0.44999999999999996,"d":"0.45"},{"v":0.38999999999999996,"d":"0.39"},0.6,0.6,85,0,{"$f":"ROUND(Primes!$N$4*V2137,0)","v":11},{"$f":"'BP Financier'!$D$33*(('BP Financier'!$C$16+'BP Financier'!$D$16)/('BP Financier'!$C$16+'BP Financier'!$C$19+'BP Financier'!$D$16+'BP Financier'!$D$19))*V2137","v":{"v":318509.3147517605,"d":"318,509"}},{"v":176591.00862873122,"d":"176,591"},{"$f":"'BP Financier'!$D$44*(('BP Financier'!$C$16+'BP Financier'!$D$16)/('BP Financier'!$C$16+'BP Financier'!$C$19+'BP Financier'!$D$16+'BP Financier'!$D$19+'BP Financier'!$C$22+'BP Financier'!$D$22))*$V2137*X2137/(1-$W2137)","v":{"v":22477.47718832655,"d":"22,477"}},{"$f":"'BP Financier'!$D$44*(('BP Financier'!$C$16+'BP Financier'!$D$16)/('BP Financier'!$C$16+'BP Financier'!$C$19+'BP Financier'!$D$16+'BP Financier'!$D$19+'BP Financier'!$C$22+'BP Financier'!$D$22))*$V2137*Y2137/(1-$W2137)","v":{"v":15026.37977783156,"d":"15,026"}},{"$f":"'BP Financier'!$D$44*(('BP Financier'!$C$16+'BP Financier'!$D$16)/('BP Financier'!$C$16+'BP Financier'!$C$19+'BP Financier'!$D$16+'BP Financier'!$D$19+'BP Financier'!$C$22+'BP Financier'!$D$22))*$V2137*Z2137/(1-$W2137)","v":{"v":117603.15412897924,"d":"117,603"}},{"$f":"'BP Financier'!$D$44*(('BP Financier'!$C$16+'BP Financier'!$D$16)/('BP Financier'!$C$16+'BP Financier'!$C$19+'BP Financier'!$D$16+'BP Financier'!$D$19+'BP Financier'!$C$22+'BP Financier'!$D$22))*$V2137*AA2137/(1-$W2137)","v":{"v":14529.639950465227,"d":"14,530"}},{"$f":"'BP Financier'!$D$44*(('BP Financier'!$C$16+'BP Financier'!$D$16)/('BP Financier'!$C$16+'BP Financier'!$C$19+'BP Financier'!$D$16+'BP Financier'!$D$19+'BP Financier'!$C$22+'BP Financier'!$D$22))*$V2137*AB2137/(1-$W2137)","v":{"v":6954.357583128654,"d":"6,954"}},null,{"v":0.0025,"d":"0.25%"},{"$f":"Actif!$E$28/100","v":{"v":0.28900000000000003,"d":"28.90%"}},{"$f":"Actif!$E$30/100","v":{"v":0.09050000000000001,"d":"9.05%"}},{"$f":"Actif!$E$31/100","v":{"v":0.0605,"d":"6.05%"}},{"$f":"Actif!$E$32/100","v":{"v":0.47350000000000003,"d":"47.35%"}},{"$f":"Actif!$E$33/100","v":{"v":0.0585,"d":"5.85%"}},{"$f":"Actif!$E$29/100","v":{"v":0.027999999999999997,"d":"2.80%"}}]
[null,"#43",39,2026,"H","A_VIE",{"v":0.44999999999999996,"d":"0.45"},{"v":0.38999999999999996,"d":"0.39"},0.6,0.6,85,0,{"$f":"ROUND(Primes!$N$4*V2138,0)","v":11},{"$f":"'BP Financier'!$D$33*(('BP Financier'!$C$16+'BP Financier'!$D$16)/('BP Financier'!$C$16+'BP Financier'!$C$19+'BP Financier'!$D$16+'BP Financier'!$D$19))*V2138","v":{"v":318509.3147517605,"d":"318,509"}},{"v":176591.00862873122,"d":"176,591"},{"$f":"'BP Financier'!$D$44*(('BP Financier'!$C$16+'BP Financier'!$D$16)/('BP Financier'!$C$16+'BP Financier'!$C$19+'BP Financier'!$D$16+'BP Financier'!$D$19+'BP Financier'!$C$22+'BP Financier'!$D$22))*$V2138*X2138/(1-$W2138)","v":{"v":22477.47718832655,"d":"22,477"}},{"$f":"'BP Financier'!$D$44*(('BP Financier'!$C$16+'BP Financier'!$D$16)/('BP Financier'!$C$16+'BP Financier'!$C$19+'BP Financier'!$D$16+'BP Financier'!$D$19+'BP Financier'!$C$22+'BP Financier'!$D$22))*$V2138*Y2138/(1-$W2138)","v":{"v":15026.37977783156,"d":"15,026"}},{"$f":"'BP Financier'!$D$44*(('BP Financier'!$C$16+'BP Financier'!$D$16)/('BP Financier'!$C$16+'BP Financier'!$C$19+'BP Financier'!$D$16+'BP Financier'!$D$19+'BP Financier'!$C$22+'BP Financier'!$D$22))*$V2138*Z2138/(1-$W2138)","v":{"v":117603.15412897924,"d":"117,603"}},{"$f":"'BP Financier'!$D$44*(('BP Financier'!$C$16+'BP Financier'!$D$16)/('BP Financier'!$C$16+'BP Financier'!$C$19+'BP Financier'!$D$16+'BP Financier'!$D$19+'BP Financier'!$C$22+'BP Financier'!$D$22))*$V2138*AA2138/(1-$W2138)","v":{"v":14529.639950465227,"d":"14,530"}},{"$f":"'BP Financier'!$D$44*(('BP Financier'!$C$16+'BP Financier'!$D$16)/('BP Financier'!$C$16+'BP Financier'!$C$19+'BP Financier'!$D$16+'BP Financier'!$D$19+'BP Financier'!$C$22+'BP Financier'!$D$22))*$V2138*AB2138/(1-$W2138)","v":{"v":6954.357583128654,"d":"6,954"}},null,{"v":0.0025,"d":"0.25%"},{"$f":"Actif!$E$28/100","v":{"v":0.28900000000000003,"d":"28.90%"}},{"$f":"Actif!$E$30/100","v":{"v":0.09050000000000001,"d":"9.05%"}},{"$f":"Actif!$E$31/100","v":{"v":0.0605,"d":"6.05%"}},{"$f":"Actif!$E$32/100","v":{"v":0.47350000000000003,"d":"47.35%"}},{"$f":"Actif!$E$33/100","v":{"v":0.0585,"d":"5.85%"}},{"$f":"Actif!$E$29/100","v":{"v":0.027999999999999997,"d":"2.80%"}}]
[null,"#44",39,2028,"H","A_VIE",{"v":0.44999999999999996,"d":"0.45"},{"v":0.38999999999999996,"d":"0.39"},0.6,0.6,85,0,{"$f":"ROUND(Primes!$N$4*V2139,0)","v":11},{"$f":"'BP Financier'!$D$33*(('BP Financier'!$C$16+'BP Financier'!$D$16)/('BP Financier'!$C$16+'BP Financier'!$C$19+'BP Financier'!$D$16+'BP Financier'!$D$19))*V2139","v":{"v":318509.3147517605,"d":"318,509"}},{"v":176591.00862873122,"d":"176,591"},{"$f":"'BP Financier'!$D$44*(('BP Financier'!$C$16+'BP Financier'!$D$16)/('BP Financier'!$C$16+'BP Financier'!$C$19+'BP Financier'!$D$16+'BP Financier'!$D$19+'BP Financier'!$C$22+'BP Financier'!$D$22))*$V2139*X2139/(1-$W2139)","v":{"v":22477.47718832655,"d":"22,477"}},{"$f":"'BP Financier'!$D$44*(('BP Financier'!$C$16+'BP Financier'!$D$16)/('BP Financier'!$C$16+'BP Financier'!$C$19+'BP Financier'!$D$16+'BP Financier'!$D$19+'BP Financier'!$C$22+'BP Financier'!$D$22))*$V2139*Y2139/(1-$W2139)","v":{"v":15026.37977783156,"d":"15,026"}},{"$f":"'BP Financier'!$D$44*(('BP Financier'!$C$16+'BP Financier'!$D$16)/('BP Financier'!$C$16+'BP Financier'!$C$19+'BP Financier'!$D$16+'BP Financier'!$D$19+'BP Financier'!$C$22+'BP Financier'!$D$22))*$V2139*Z2139/(1-$W2139)","v":{"v":117603.15412897924,"d":"117,603"}},{"$f":"'BP Financier'!$D$44*(('BP Financier'!$C$16+'BP Financier'!$D$16)/('BP Financier'!$C$16+'BP Financier'!$C$19+'BP Financier'!$D$16+'BP Financier'!$D$19+'BP Financier'!$C$22+'BP Financier'!$D$22))*$V2139*AA2139/(1-$W2139)","v":{"v":14529.639950465227,"d":"14,530"}},{"$f":"'BP Financier'!$D$44*(('BP Financier'!$C$16+'BP Financier'!$D$16)/('BP Financier'!$C$16+'BP Financier'!$C$19+'BP Financier'!$D$16+'BP Financier'!$D$19+'BP Financier'!$C$22+'BP Financier'!$D$22))*$V2139*AB2139/(1-$W2139)","v":{"v":6954.357583128654,"d":"6,954"}},null,{"v":0.0025,"d":"0.25%"},{"$f":"Actif!$E$28/100","v":{"v":0.28900000000000003,"d":"28.90%"}},{"$f":"Actif!$E$30/100","v":{"v":0.09050000000000001,"d":"9.05%"}},{"$f":"Actif!$E$31/100","v":{"v":0.0605,"d":"6.05%"}},{"$f":"Actif!$E$32/100","v":{"v":0.47350000000000003,"d":"47.35%"}},{"$f":"Actif!$E$33/100","v":{"v":0.0585,"d":"5.85%"}},{"$f":"Actif!$E$29/100","v":{"v":0.027999999999999997,"d":"2.80%"}}]
[null,"#45",40,2026,"H","A_VIE",{"v":0.44999999999999996,"d":"0.45"},{"v":0.38999999999999996,"d":"0.39"},0.6,0.6,85,0,{"$f":"ROUND(Primes!$N$4*V2140,0)","v":11},{"$f":"'BP Financier'!$D$33*(('BP Financier'!$C$16+'BP Financier'!$D$16)/('BP Financier'!$C$16+'BP Financier'!$C$19+'BP Financier'!$D$16+'BP Financier'!$D$19))*V2140","v":{"v":318509.3147517605,"d":"318,509"}},{"v":176591.00862873122,"d":"176,591"},{"$f":"'BP Financier'!$D$44*(('BP Financier'!$C$16+'BP Financier'!$D$16)/('BP Financier'!$C$16+'BP Financier'!$C$19+'BP Financier'!$D$16+'BP Financier'!$D$19+'BP Financier'!$C$22+'BP Financier'!$D$22))*$V2140*X2140/(1-$W2140)","v":{"v":22477.47718832655,"d":"22,477"}},{"$f":"'BP Financier'!$D$44*(('BP Financier'!$C$16+'BP Financier'!$D$16)/('BP Financier'!$C$16+'BP Financier'!$C$19+'BP Financier'!$D$16+'BP Financier'!$D$19+'BP Financier'!$C$22+'BP Financier'!$D$22))*$V2140*Y2140/(1-$W2140)","v":{"v":15026.37977783156,"d":"15,026"}},{"$f":"'BP Financier'!$D$44*(('BP Financier'!$C$16+'BP Financier'!$D$16)/('BP Financier'!$C$16+'BP Financier'!$C$19+'BP Financier'!$D$16+'BP Financier'!$D$19+'BP Financier'!$C$22+'BP Financier'!$D$22))*$V2140*Z2140/(1-$W2140)","v":{"v":117603.15412897924,"d":"117,603"}},{"$f":"'BP Financier'!$D$44*(('BP Financier'!$C$16+'BP Financier'!$D$16)/('BP Financier'!$C$16+'BP Financier'!$C$19+'BP Financier'!$D$16+'BP Financier'!$D$19+'BP Financier'!$C$22+'BP Financier'!$D$22))*$V2140*AA2140/(1-$W2140)","v":{"v":14529.639950465227,"d":"14,530"}},{"$f":"'BP Financier'!$D$44*(('BP Financier'!$C$16+'BP Financier'!$D$16)/('BP Financier'!$C$16+'BP Financier'!$C$19+'BP Financier'!$D$16+'BP Financier'!$D$19+'BP Financier'!$C$22+'BP Financier'!$D$22))*$V2140*AB2140/(1-$W2140)","v":{"v":6954.357583128654,"d":"6,954"}},null,{"v":0.0025,"d":"0.25%"},{"$f":"Actif!$E$28/100","v":{"v":0.28900000000000003,"d":"28.90%"}},{"$f":"Actif!$E$30/100","v":{"v":0.09050000000000001,"d":"9.05%"}},{"$f":"Actif!$E$31/100","v":{"v":0.0605,"d":"6.05%"}},{"$f":"Actif!$E$32/100","v":{"v":0.47350000000000003,"d":"47.35%"}},{"$f":"Actif!$E$33/100","v":{"v":0.0585,"d":"5.85%"}},{"$f":"Actif!$E$29/100","v":{"v":0.027999999999999997,"d":"2.80%"}}]
[null,"#46",40,2028,"H","A_VIE",{"v":0.44999999999999996,"d":"0.45"},{"v":0.38999999999999996,"d":"0.39"},0.6,0.6,85,0,{"$f":"ROUND(Primes!$N$4*V2141,0)","v":11},{"$f":"'BP Financier'!$D$33*(('BP Financier'!$C$16+'BP Financier'!$D$16)/('BP Financier'!$C$16+'BP Financier'!$C$19+'BP Financier'!$D$16+'BP Financier'!$D$19))*V2141","v":{"v":318509.3147517605,"d":"318,509"}},{"v":176591.00862873122,"d":"176,591"},{"$f":"'BP Financier'!$D$44*(('BP Financier'!$C$16+'BP Financier'!$D$16)/('BP Financier'!$C$16+'BP Financier'!$C$19+'BP Financier'!$D$16+'BP Financier'!$D$19+'BP Financier'!$C$22+'BP Financier'!$D$22))*$V2141*X2141/(1-$W2141)","v":{"v":22477.47718832655,"d":"22,477"}},{"$f":"'BP Financier'!$D$44*(('BP Financier'!$C$16+'BP Financier'!$D$16)/('BP Financier'!$C$16+'BP Financier'!$C$19+'BP Financier'!$D$16+'BP Financier'!$D$19+'BP Financier'!$C$22+'BP Financier'!$D$22))*$V2141*Y2141/(1-$W2141)","v":{"v":15026.37977783156,"d":"15,026"}},{"$f":"'BP Financier'!$D$44*(('BP Financier'!$C$16+'BP Financier'!$D$16)/('BP Financier'!$C$16+'BP Financier'!$C$19+'BP Financier'!$D$16+'BP Financier'!$D$19+'BP Financier'!$C$22+'BP Financier'!$D$22))*$V2141*Z2141/(1-$W2141)","v":{"v":117603.15412897924,"d":"117,603"}},{"$f":"'BP Financier'!$D$44*(('BP Financier'!$C$16+'BP Financier'!$D$16)/('BP Financier'!$C$16+'BP Financier'!$C$19+'BP Financier'!$D$16+'BP Financier'!$D$19+'BP Financier'!$C$22+'BP Financier'!$D$22))*$V2141*AA2141/(1-$W2141)","v":{"v":14529.639950465227,"d":"14,530"}},{"$f":"'BP Financier'!$D$44*(('BP Financier'!$C$16+'BP Financier'!$D$16)/('BP Financier'!$C$16+'BP Financier'!$C$19+'BP Financier'!$D$16+'BP Financier'!$D$19+'BP Financier'!$C$22+'BP Financier'!$D$22))*$V2141*AB2141/(1-$W2141)","v":{"v":6954.357583128654,"d":"6,954"}},null,{"v":0.0025,"d":"0.25%"},{"$f":"Actif!$E$28/100","v":{"v":0.28900000000000003,"d":"28.90%"}},{"$f":"Actif!$E$30/100","v":{"v":0.09050000000000001,"d":"9.05%"}},{"$f":"Actif!$E$31/100","v":{"v":0.0605,"d":"6.05%"}},{"$f":"Actif!$E$32/100","v":{"v":0.47350000000000003,"d":"47.35%"}},{"$f":"Actif!$E$33/100","v":{"v":0.0585,"d":"5.85%"}},{"$f":"Actif!$E$29/100","v":{"v":0.027999999999999997,"d":"2.80%"}}]
[null,"#47",41,2026,"F","A_VIE",{"v":0.44999999999999996,"d":"0.45"},{"v":0.38999999999999996,"d":"0.39"},0.6,0.6,85,0,{"$f":"ROUND(Primes!$N$4*V2142,0)","v":11},{"$f":"'BP Financier'!$D$33*(('BP Financier'!$C$16+'BP Financier'!$D$16)/('BP Financier'!$C$16+'BP Financier'!$C$19+'BP Financier'!$D$16+'BP Financier'!$D$19))*V2142","v":{"v":318509.3147517605,"d":"318,509"}},{"v":176591.00862873122,"d":"176,591"},{"$f":"'BP Financier'!$D$44*(('BP Financier'!$C$16+'BP Financier'!$D$16)/('BP Financier'!$C$16+'BP Financier'!$C$19+'BP Financier'!$D$16+'BP Financier'!$D$19+'BP Financier'!$C$22+'BP Financier'!$D$22))*$V2142*X2142/(1-$W2142)","v":{"v":22477.47718832655,"d":"22,477"}},{"$f":"'BP Financier'!$D$44*(('BP Financier'!$C$16+'BP Financier'!$D$16)/('BP Financier'!$C$16+'BP Financier'!$C$19+'BP Financier'!$D$16+'BP Financier'!$D$19+'BP Financier'!$C$22+'BP Financier'!$D$22))*$V2142*Y2142/(1-$W2142)","v":{"v":15026.37977783156,"d":"15,026"}},{"$f":"'BP Financier'!$D$44*(('BP Financier'!$C$16+'BP Financier'!$D$16)/('BP Financier'!$C$16+'BP Financier'!$C$19+'BP Financier'!$D$16+'BP Financier'!$D$19+'BP Financier'!$C$22+'BP Financier'!$D$22))*$V2142*Z2142/(1-$W2142)","v":{"v":117603.15412897924,"d":"117,603"}},{"$f":"'BP Financier'!$D$44*(('BP Financier'!$C$16+'BP Financier'!$D$16)/('BP Financier'!$C$16+'BP Financier'!$C$19+'BP Financier'!$D$16+'BP Financier'!$D$19+'BP Financier'!$C$22+'BP Financier'!$D$22))*$V2142*AA2142/(1-$W2142)","v":{"v":14529.639950465227,"d":"14,530"}},{"$f":"'BP Financier'!$D$44*(('BP Financier'!$C$16+'BP Financier'!$D$16)/('BP Financier'!$C$16+'BP Financier'!$C$19+'BP Financier'!$D$16+'BP Financier'!$D$19+'BP Financier'!$C$22+'BP Financier'!$D$22))*$V2142*AB2142/(1-$W2142)","v":{"v":6954.357583128654,"d":"6,954"}},null,{"v":0.0025,"d":"0.25%"},{"$f":"Actif!$E$28/100","v":{"v":0.28900000000000003,"d":"28.90%"}},{"$f":"Actif!$E$30/100","v":{"v":0.09050000000000001,"d":"9.05%"}},{"$f":"Actif!$E$31/100","v":{"v":0.0605,"d":"6.05%"}},{"$f":"Actif!$E$32/100","v":{"v":0.47350000000000003,"d":"47.35%"}},{"$f":"Actif!$E$33/100","v":{"v":0.0585,"d":"5.85%"}},{"$f":"Actif!$E$29/100","v":{"v":0.027999999999999997,"d":"2.80%"}}]
[null,"#48",41,2028,"F","A_VIE",{"v":0.44999999999999996,"d":"0.45"},{"v":0.38999999999999996,"d":"0.39"},0.6,0.6,85,0,{"$f":"ROUND(Primes!$N$4*V2143,0)","v":11},{"$f":"'BP Financier'!$D$33*(('BP Financier'!$C$16+'BP Financier'!$D$16)/('BP Financier'!$C$16+'BP Financier'!$C$19+'BP Financier'!$D$16+'BP Financier'!$D$19))*V2143","v":{"v":318509.3147517605,"d":"318,509"}},{"v":176591.00862873122,"d":"176,591"},{"$f":"'BP Financier'!$D$44*(('BP Financier'!$C$16+'BP Financier'!$D$16)/('BP Financier'!$C$16+'BP Financier'!$C$19+'BP Financier'!$D$16+'BP Financier'!$D$19+'BP Financier'!$C$22+'BP Financier'!$D$22))*$V2143*X2143/(1-$W2143)","v":{"v":22477.47718832655,"d":"22,477"}},{"$f":"'BP Financier'!$D$44*(('BP Financier'!$C$16+'BP Financier'!$D$16)/('BP Financier'!$C$16+'BP Financier'!$C$19+'BP Financier'!$D$16+'BP Financier'!$D$19+'BP Financier'!$C$22+'BP Financier'!$D$22))*$V2143*Y2143/(1-$W2143)","v":{"v":15026.37977783156,"d":"15,026"}},{"$f":"'BP Financier'!$D$44*(('BP Financier'!$C$16+'BP Financier'!$D$16)/('BP Financier'!$C$16+'BP Financier'!$C$19+'BP Financier'!$D$16+'BP Financier'!$D$19+'BP Financier'!$C$22+'BP Financier'!$D$22))*$V2143*Z2143/(1-$W2143)","v":{"v":117603.15412897924,"d":"117,603"}},{"$f":"'BP Financier'!$D$44*(('BP Financier'!$C$16+'BP Financier'!$D$16)/('BP Financier'!$C$16+'BP Financier'!$C$19+'BP Financier'!$D$16+'BP Financier'!$D$19+'BP Financier'!$C$22+'BP Financier'!$D$22))*$V2143*AA2143/(1-$W2143)","v":{"v":14529.639950465227,"d":"14,530"}},{"$f":"'BP Financier'!$D$44*(('BP Financier'!$C$16+'BP Financier'!$D$16)/('BP Financier'!$C$16+'BP Financier'!$C$19+'BP Financier'!$D$16+'BP Financier'!$D$19+'BP Financier'!$C$22+'BP Financier'!$D$22))*$V2143*AB2143/(1-$W2143)","v":{"v":6954.357583128654,"d":"6,954"}},null,{"v":0.0025,"d":"0.25%"},{"$f":"Actif!$E$28/100","v":{"v":0.28900000000000003,"d":"28.90%"}},{"$f":"Actif!$E$30/100","v":{"v":0.09050000000000001,"d":"9.05%"}},{"$f":"Actif!$E$31/100","v":{"v":0.0605,"d":"6.05%"}},{"$f":"Actif!$E$32/100","v":{"v":0.47350000000000003,"d":"47.35%"}},{"$f":"Actif!$E$33/100","v":{"v":0.0585,"d":"5.85%"}},{"$f":"Actif!$E$29/100","v":{"v":0.027999999999999997,"d":"2.80%"}}]
[null,"#49",42,2026,"H","A_VIE",{"v":0.44999999999999996,"d":"0.45"},{"v":0.38999999999999996,"d":"0.39"},0.6,0.6,85,0,{"$f":"ROUND(Primes!$N$4*V2144,0)","v":11},{"$f":"'BP Financier'!$D$33*(('BP Financier'!$C$16+'BP Financier'!$D$16)/('BP Financier'!$C$16+'BP Financier'!$C$19+'BP Financier'!$D$16+'BP Financier'!$D$19))*V2144","v":{"v":318509.3147517605,"d":"318,509"}},{"v":176591.00862873122,"d":"176,591"},{"$f":"'BP Financier'!$D$44*(('BP Financier'!$C$16+'BP Financier'!$D$16)/('BP Financier'!$C$16+'BP Financier'!$C$19+'BP Financier'!$D$16+'BP Financier'!$D$19+'BP Financier'!$C$22+'BP Financier'!$D$22))*$V2144*X2144/(1-$W2144)","v":{"v":22477.47718832655,"d":"22,477"}},{"$f":"'BP Financier'!$D$44*(('BP Financier'!$C$16+'BP Financier'!$D$16)/('BP Financier'!$C$16+'BP Financier'!$C$19+'BP Financier'!$D$16+'BP Financier'!$D$19+'BP Financier'!$C$22+'BP Financier'!$D$22))*$V2144*Y2144/(1-$W2144)","v":{"v":15026.37977783156,"d":"15,026"}},{"$f":"'BP Financier'!$D$44*(('BP Financier'!$C$16+'BP Financier'!$D$16)/('BP Financier'!$C$16+'BP Financier'!$C$19+'BP Financier'!$D$16+'BP Financier'!$D$19+'BP Financier'!$C$22+'BP Financier'!$D$22))*$V2144*Z2144/(1-$W2144)","v":{"v":117603.15412897924,"d":"117,603"}},{"$f":"'BP Financier'!$D$44*(('BP Financier'!$C$16+'BP Financier'!$D$16)/('BP Financier'!$C$16+'BP Financier'!$C$19+'BP Financier'!$D$16+'BP Financier'!$D$19+'BP Financier'!$C$22+'BP Financier'!$D$22))*$V2144*AA2144/(1-$W2144)","v":{"v":14529.639950465227,"d":"14,530"}},{"$f":"'BP Financier'!$D$44*(('BP Financier'!$C$16+'BP Financier'!$D$16)/('BP Financier'!$C$16+'BP Financier'!$C$19+'BP Financier'!$D$16+'BP Financier'!$D$19+'BP Financier'!$C$22+'BP Financier'!$D$22))*$V2144*AB2144/(1-$W2144)","v":{"v":6954.357583128654,"d":"6,954"}},null,{"v":0.0025,"d":"0.25%"},{"$f":"Actif!$E$28/100","v":{"v":0.28900000000000003,"d":"28.90%"}},{"$f":"Actif!$E$30/100","v":{"v":0.09050000000000001,"d":"9.05%"}},{"$f":"Actif!$E$31/100","v":{"v":0.0605,"d":"6.05%"}},{"$f":"Actif!$E$32/100","v":{"v":0.47350000000000003,"d":"47.35%"}},{"$f":"Actif!$E$33/100","v":{"v":0.0585,"d":"5.85%"}},{"$f":"Actif!$E$29/100","v":{"v":0.027999999999999997,"d":"2.80%"}}]
[null,"#50",42,2028,"H","A_VIE",{"v":0.44999999999999996,"d":"0.45"},{"v":0.38999999999999996,"d":"0.39"},0.6,0.6,85,0,{"$f":"ROUND(Primes!$N$4*V2145,0)","v":11},{"$f":"'BP Financier'!$D$33*(('BP Financier'!$C$16+'BP Financier'!$D$16)/('BP Financier'!$C$16+'BP Financier'!$C$19+'BP Financier'!$D$16+'BP Financier'!$D$19))*V2145","v":{"v":318509.3147517605,"d":"318,509"}},{"v":176591.00862873122,"d":"176,591"},{"$f":"'BP Financier'!$D$44*(('BP Financier'!$C$16+'BP Financier'!$D$16)/('BP Financier'!$C$16+'BP Financier'!$C$19+'BP Financier'!$D$16+'BP Financier'!$D$19+'BP Financier'!$C$22+'BP Financier'!$D$22))*$V2145*X2145/(1-$W2145)","v":{"v":22477.47718832655,"d":"22,477"}},{"$f":"'BP Financier'!$D$44*(('BP Financier'!$C$16+'BP Financier'!$D$16)/('BP Financier'!$C$16+'BP Financier'!$C$19+'BP Financier'!$D$16+'BP Financier'!$D$19+'BP Financier'!$C$22+'BP Financier'!$D$22))*$V2145*Y2145/(1-$W2145)","v":{"v":15026.37977783156,"d":"15,026"}},{"$f":"'BP Financier'!$D$44*(('BP Financier'!$C$16+'BP Financier'!$D$16)/('BP Financier'!$C$16+'BP Financier'!$C$19+'BP Financier'!$D$16+'BP Financier'!$D$19+'BP Financier'!$C$22+'BP Financier'!$D$22))*$V2145*Z2145/(1-$W2145)","v":{"v":117603.15412897924,"d":"117,603"}},{"$f":"'BP Financier'!$D$44*(('BP Financier'!$C$16+'BP Financier'!$D$16)/('BP Financier'!$C$16+'BP Financier'!$C$19+'BP Financier'!$D$16+'BP Financier'!$D$19+'BP Financier'!$C$22+'BP Financier'!$D$22))*$V2145*AA2145/(1-$W2145)","v":{"v":14529.639950465227,"d":"14,530"}},{"$f":"'BP Financier'!$D$44*(('BP Financier'!$C$16+'BP Financier'!$D$16)/('BP Financier'!$C$16+'BP Financier'!$C$19+'BP Financier'!$D$16+'BP Financier'!$D$19+'BP Financier'!$C$22+'BP Financier'!$D$22))*$V2145*AB2145/(1-$W2145)","v":{"v":6954.357583128654,"d":"6,954"}},null,{"v":0.0025,"d":"0.25%"},{"$f":"Actif!$E$28/100","v":{"v":0.28900000000000003,"d":"28.90%"}},{"$f":"Actif!$E$30/100","v":{"v":0.09050000000000001,"d":"9.05%"}},{"$f":"Actif!$E$31/100","v":{"v":0.0605,"d":"6.05%"}},{"$f":"Actif!$E$32/100","v":{"v":0.47350000000000003,"d":"47.35%"}},{"$f":"Actif!$E$33/100","v":{"v":0.0585,"d":"5.85%"}},{"$f":"Actif!$E$29/100","v":{"v":0.027999999999999997,"d":"2.80%"}}]
[null,"#51",43,2026,"H","A_VIE",{"v":0.44999999999999996,"d":"0.45"},{"v":0.38999999999999996,"d":"0.39"},0.6,0.6,85,0,{"$f":"ROUND(Primes!$N$4*V2146,0)","v":11},{"$f":"'BP Financier'!$D$33*(('BP Financier'!$C$16+'BP Financier'!$D$16)/('BP Financier'!$C$16+'BP Financier'!$C$19+'BP Financier'!$D$16+'BP Financier'!$D$19))*V2146","v":{"v":318509.3147517605,"d":"318,509"}},{"v":176591.00862873122,"d":"176,591"},{"$f":"'BP Financier'!$D$44*(('BP Financier'!$C$16+'BP Financier'!$D$16)/('BP Financier'!$C$16+'BP Financier'!$C$19+'BP Financier'!$D$16+'BP Financier'!$D$19+'BP Financier'!$C$22+'BP Financier'!$D$22))*$V2146*X2146/(1-$W2146)","v":{"v":22477.47718832655,"d":"22,477"}},{"$f":"'BP Financier'!$D$44*(('BP Financier'!$C$16+'BP Financier'!$D$16)/('BP Financier'!$C$16+'BP Financier'!$C$19+'BP Financier'!$D$16+'BP Financier'!$D$19+'BP Financier'!$C$22+'BP Financier'!$D$22))*$V2146*Y2146/(1-$W2146)","v":{"v":15026.37977783156,"d":"15,026"}},{"$f":"'BP Financier'!$D$44*(('BP Financier'!$C$16+'BP Financier'!$D$16)/('BP Financier'!$C$16+'BP Financier'!$C$19+'BP Financier'!$D$16+'BP Financier'!$D$19+'BP Financier'!$C$22+'BP Financier'!$D$22))*$V2146*Z2146/(1-$W2146)","v":{"v":117603.15412897924,"d":"117,603"}},{"$f":"'BP Financier'!$D$44*(('BP Financier'!$C$16+'BP Financier'!$D$16)/('BP Financier'!$C$16+'BP Financier'!$C$19+'BP Financier'!$D$16+'BP Financier'!$D$19+'BP Financier'!$C$22+'BP Financier'!$D$22))*$V2146*AA2146/(1-$W2146)","v":{"v":14529.639950465227,"d":"14,530"}},{"$f":"'BP Financier'!$D$44*(('BP Financier'!$C$16+'BP Financier'!$D$16)/('BP Financier'!$C$16+'BP Financier'!$C$19+'BP Financier'!$D$16+'BP Financier'!$D$19+'BP Financier'!$C$22+'BP Financier'!$D$22))*$V2146*AB2146/(1-$W2146)","v":{"v":6954.357583128654,"d":"6,954"}},null,{"v":0.0025,"d":"0.25%"},{"$f":"Actif!$E$28/100","v":{"v":0.28900000000000003,"d":"28.90%"}},{"$f":"Actif!$E$30/100","v":{"v":0.09050000000000001,"d":"9.05%"}},{"$f":"Actif!$E$31/100","v":{"v":0.0605,"d":"6.05%"}},{"$f":"Actif!$E$32/100","v":{"v":0.47350000000000003,"d":"47.35%"}},{"$f":"Actif!$E$33/100","v":{"v":0.0585,"d":"5.85%"}},{"$f":"Actif!$E$29/100","v":{"v":0.027999999999999997,"d":"2.80%"}}]
[null,"#52",43,2028,"H","A_VIE",{"v":0.44999999999999996,"d":"0.45"},{"v":0.38999999999999996,"d":"0.39"},0.6,0.6,85,0,{"$f":"ROUND(Primes!$N$4*V2147,0)","v":11},{"$f":"'BP Financier'!$D$33*(('BP Financier'!$C$16+'BP Financier'!$D$16)/('BP Financier'!$C$16+'BP Financier'!$C$19+'BP Financier'!$D$16+'BP Financier'!$D$19))*V2147","v":{"v":318509.3147517605,"d":"318,509"}},{"v":176591.00862873122,"d":"176,591"},{"$f":"'BP Financier'!$D$44*(('BP Financier'!$C$16+'BP Financier'!$D$16)/('BP Financier'!$C$16+'BP Financier'!$C$19+'BP Financier'!$D$16+'BP Financier'!$D$19+'BP Financier'!$C$22+'BP Financier'!$D$22))*$V2147*X2147/(1-$W2147)","v":{"v":22477.47718832655,"d":"22,477"}},{"$f":"'BP Financier'!$D$44*(('BP Financier'!$C$16+'BP Financier'!$D$16)/('BP Financier'!$C$16+'BP Financier'!$C$19+'BP Financier'!$D$16+'BP Financier'!$D$19+'BP Financier'!$C$22+'BP Financier'!$D$22))*$V2147*Y2147/(1-$W2147)","v":{"v":15026.37977783156,"d":"15,026"}},{"$f":"'BP Financier'!$D$44*(('BP Financier'!$C$16+'BP Financier'!$D$16)/('BP Financier'!$C$16+'BP Financier'!$C$19+'BP Financier'!$D$16+'BP Financier'!$D$19+'BP Financier'!$C$22+'BP Financier'!$D$22))*$V2147*Z2147/(1-$W2147)","v":{"v":117603.15412897924,"d":"117,603"}},{"$f":"'BP Financier'!$D$44*(('BP Financier'!$C$16+'BP Financier'!$D$16)/('BP Financier'!$C$16+'BP Financier'!$C$19+'BP Financier'!$D$16+'BP Financier'!$D$19+'BP Financier'!$C$22+'BP Financier'!$D$22))*$V2147*AA2147/(1-$W2147)","v":{"v":14529.639950465227,"d":"14,530"}},{"$f":"'BP Financier'!$D$44*(('BP Financier'!$C$16+'BP Financier'!$D$16)/('BP Financier'!$C$16+'BP Financier'!$C$19+'BP Financier'!$D$16+'BP Financier'!$D$19+'BP Financier'!$C$22+'BP Financier'!$D$22))*$V2147*AB2147/(1-$W2147)","v":{"v":6954.357583128654,"d":"6,954"}},null,{"v":0.0025,"d":"0.25%"},{"$f":"Actif!$E$28/100","v":{"v":0.28900000000000003,"d":"28.90%"}},{"$f":"Actif!$E$30/100","v":{"v":0.09050000000000001,"d":"9.05%"}},{"$f":"Actif!$E$31/100","v":{"v":0.0605,"d":"6.05%"}},{"$f":"Actif!$E$32/100","v":{"v":0.47350000000000003,"d":"47.35%"}},{"$f":"Actif!$E$33/100","v":{"v":0.0585,"d":"5.85%"}},{"$f":"Actif!$E$29/100","v":{"v":0.027999999999999997,"d":"2.80%"}}]
[null,"#53",44,2026,"F","A_VIE",{"v":0.44999999999999996,"d":"0.45"},{"v":0.38999999999999996,"d":"0.39"},0.6,0.6,85,0,{"$f":"ROUND(Primes!$N$4*V2148,0)","v":11},{"$f":"'BP Financier'!$D$33*(('BP Financier'!$C$16+'BP Financier'!$D$16)/('BP Financier'!$C$16+'BP Financier'!$C$19+'BP Financier'!$D$16+'BP Financier'!$D$19))*V2148","v":{"v":318509.3147517605,"d":"318,509"}},{"v":176591.00862873122,"d":"176,591"},{"$f":"'BP Financier'!$D$44*(('BP Financier'!$C$16+'BP Financier'!$D$16)/('BP Financier'!$C$16+'BP Financier'!$C$19+'BP Financier'!$D$16+'BP Financier'!$D$19+'BP Financier'!$C$22+'BP Financier'!$D$22))*$V2148*X2148/(1-$W2148)","v":{"v":22477.47718832655,"d":"22,477"}},{"$f":"'BP Financier'!$D$44*(('BP Financier'!$C$16+'BP Financier'!$D$16)/('BP Financier'!$C$16+'BP Financier'!$C$19+'BP Financier'!$D$16+'BP Financier'!$D$19+'BP Financier'!$C$22+'BP Financier'!$D$22))*$V2148*Y2148/(1-$W2148)","v":{"v":15026.37977783156,"d":"15,026"}},{"$f":"'BP Financier'!$D$44*(('BP Financier'!$C$16+'BP Financier'!$D$16)/('BP Financier'!$C$16+'BP Financier'!$C$19+'BP Financier'!$D$16+'BP Financier'!$D$19+'BP Financier'!$C$22+'BP Financier'!$D$22))*$V2148*Z2148/(1-$W2148)","v":{"v":117603.15412897924,"d":"117,603"}},{"$f":"'BP Financier'!$D$44*(('BP Financier'!$C$16+'BP Financier'!$D$16)/('BP Financier'!$C$16+'BP Financier'!$C$19+'BP Financier'!$D$16+'BP Financier'!$D$19+'BP Financier'!$C$22+'BP Financier'!$D$22))*$V2148*AA2148/(1-$W2148)","v":{"v":14529.639950465227,"d":"14,530"}},{"$f":"'BP Financier'!$D$44*(('BP Financier'!$C$16+'BP Financier'!$D$16)/('BP Financier'!$C$16+'BP Financier'!$C$19+'BP Financier'!$D$16+'BP Financier'!$D$19+'BP Financier'!$C$22+'BP Financier'!$D$22))*$V2148*AB2148/(1-$W2148)","v":{"v":6954.357583128654,"d":"6,954"}},null,{"v":0.0025,"d":"0.25%"},{"$f":"Actif!$E$28/100","v":{"v":0.28900000000000003,"d":"28.90%"}},{"$f":"Actif!$E$30/100","v":{"v":0.09050000000000001,"d":"9.05%"}},{"$f":"Actif!$E$31/100","v":{"v":0.0605,"d":"6.05%"}},{"$f":"Actif!$E$32/100","v":{"v":0.47350000000000003,"d":"47.35%"}},{"$f":"Actif!$E$33/100","v":{"v":0.0585,"d":"5.85%"}},{"$f":"Actif!$E$29/100","v":{"v":0.027999999999999997,"d":"2.80%"}}]
[null,"#54",44,2028,"F","A_VIE",{"v":0.44999999999999996,"d":"0.45"},{"v":0.38999999999999996,"d":"0.39"},0.6,0.6,85,0,{"$f":"ROUND(Primes!$N$4*V2149,0)","v":11},{"$f":"'BP Financier'!$D$33*(('BP Financier'!$C$16+'BP Financier'!$D$16)/('BP Financier'!$C$16+'BP Financier'!$C$19+'BP Financier'!$D$16+'BP Financier'!$D$19))*V2149","v":{"v":318509.3147517605,"d":"318,509"}},{"v":176591.00862873122,"d":"176,591"},{"$f":"'BP Financier'!$D$44*(('BP Financier'!$C$16+'BP Financier'!$D$16)/('BP Financier'!$C$16+'BP Financier'!$C$19+'BP Financier'!$D$16+'BP Financier'!$D$19+'BP Financier'!$C$22+'BP Financier'!$D$22))*$V2149*X2149/(1-$W2149)","v":{"v":22477.47718832655,"d":"22,477"}},{"$f":"'BP Financier'!$D$44*(('BP Financier'!$C$16+'BP Financier'!$D$16)/('BP Financier'!$C$16+'BP Financier'!$C$19+'BP Financier'!$D$16+'BP Financier'!$D$19+'BP Financier'!$C$22+'BP Financier'!$D$22))*$V2149*Y2149/(1-$W2149)","v":{"v":15026.37977783156,"d":"15,026"}},{"$f":"'BP Financier'!$D$44*(('BP Financier'!$C$16+'BP Financier'!$D$16)/('BP Financier'!$C$16+'BP Financier'!$C$19+'BP Financier'!$D$16+'BP Financier'!$D$19+'BP Financier'!$C$22+'BP Financier'!$D$22))*$V2149*Z2149/(1-$W2149)","v":{"v":117603.15412897924,"d":"117,603"}},{"$f":"'BP Financier'!$D$44*(('BP Financier'!$C$16+'BP Financier'!$D$16)/('BP Financier'!$C$16+'BP Financier'!$C$19+'BP Financier'!$D$16+'BP Financier'!$D$19+'BP Financier'!$C$22+'BP Financier'!$D$22))*$V2149*AA2149/(1-$W2149)","v":{"v":14529.639950465227,"d":"14,530"}},{"$f":"'BP Financier'!$D$44*(('BP Financier'!$C$16+'BP Financier'!$D$16)/('BP Financier'!$C$16+'BP Financier'!$C$19+'BP Financier'!$D$16+'BP Financier'!$D$19+'BP Financier'!$C$22+'BP Financier'!$D$22))*$V2149*AB2149/(1-$W2149)","v":{"v":6954.357583128654,"d":"6,954"}},null,{"v":0.0025,"d":"0.25%"},{"$f":"Actif!$E$28/100","v":{"v":0.28900000000000003,"d":"28.90%"}},{"$f":"Actif!$E$30/100","v":{"v":0.09050000000000001,"d":"9.05%"}},{"$f":"Actif!$E$31/100","v":{"v":0.0605,"d":"6.05%"}},{"$f":"Actif!$E$32/100","v":{"v":0.47350000000000003,"d":"47.35%"}},{"$f":"Actif!$E$33/100","v":{"v":0.0585,"d":"5.85%"}},{"$f":"Actif!$E$29/100","v":{"v":0.027999999999999997,"d":"2.80%"}}]
[null,"#55",45,2026,"H","A_VIE",{"v":0.44999999999999996,"d":"0.45"},{"v":0.38999999999999996,"d":"0.39"},0.6,0.6,85,0,{"$f":"ROUND(Primes!$N$4*V2150,0)","v":11},{"$f":"'BP Financier'!$D$33*(('BP Financier'!$C$16+'BP Financier'!$D$16)/('BP Financier'!$C$16+'BP Financier'!$C$19+'BP Financier'!$D$16+'BP Financier'!$D$19))*V2150","v":{"v":318509.3147517605,"d":"318,509"}},{"v":176591.00862873122,"d":"176,591"},{"$f":"'BP Financier'!$D$44*(('BP Financier'!$C$16+'BP Financier'!$D$16)/('BP Financier'!$C$16+'BP Financier'!$C$19+'BP Financier'!$D$16+'BP Financier'!$D$19+'BP Financier'!$C$22+'BP Financier'!$D$22))*$V2150*X2150/(1-$W2150)","v":{"v":22477.47718832655,"d":"22,477"}},{"$f":"'BP Financier'!$D$44*(('BP Financier'!$C$16+'BP Financier'!$D$16)/('BP Financier'!$C$16+'BP Financier'!$C$19+'BP Financier'!$D$16+'BP Financier'!$D$19+'BP Financier'!$C$22+'BP Financier'!$D$22))*$V2150*Y2150/(1-$W2150)","v":{"v":15026.37977783156,"d":"15,026"}},{"$f":"'BP Financier'!$D$44*(('BP Financier'!$C$16+'BP Financier'!$D$16)/('BP Financier'!$C$16+'BP Financier'!$C$19+'BP Financier'!$D$16+'BP Financier'!$D$19+'BP Financier'!$C$22+'BP Financier'!$D$22))*$V2150*Z2150/(1-$W2150)","v":{"v":117603.15412897924,"d":"117,603"}},{"$f":"'BP Financier'!$D$44*(('BP Financier'!$C$16+'BP Financier'!$D$16)/('BP Financier'!$C$16+'BP Financier'!$C$19+'BP Financier'!$D$16+'BP Financier'!$D$19+'BP Financier'!$C$22+'BP Financier'!$D$22))*$V2150*AA2150/(1-$W2150)","v":{"v":14529.639950465227,"d":"14,530"}},{"$f":"'BP Financier'!$D$44*(('BP Financier'!$C$16+'BP Financier'!$D$16)/('BP Financier'!$C$16+'BP Financier'!$C$19+'BP Financier'!$D$16+'BP Financier'!$D$19+'BP Financier'!$C$22+'BP Financier'!$D$22))*$V2150*AB2150/(1-$W2150)","v":{"v":6954.357583128654,"d":"6,954"}},null,{"v":0.0025,"d":"0.25%"},{"$f":"Actif!$E$28/100","v":{"v":0.28900000000000003,"d":"28.90%"}},{"$f":"Actif!$E$30/100","v":{"v":0.09050000000000001,"d":"9.05%"}},{"$f":"Actif!$E$31/100","v":{"v":0.0605,"d":"6.05%"}},{"$f":"Actif!$E$32/100","v":{"v":0.47350000000000003,"d":"47.35%"}},{"$f":"Actif!$E$33/100","v":{"v":0.0585,"d":"5.85%"}},{"$f":"Actif!$E$29/100","v":{"v":0.027999999999999997,"d":"2.80%"}}]
[null,"#56",45,2028,"H","A_VIE",{"v":0.44999999999999996,"d":"0.45"},{"v":0.38999999999999996,"d":"0.39"},0.6,0.6,85,0,{"$f":"ROUND(Primes!$N$4*V2151,0)","v":11},{"$f":"'BP Financier'!$D$33*(('BP Financier'!$C$16+'BP Financier'!$D$16)/('BP Financier'!$C$16+'BP Financier'!$C$19+'BP Financier'!$D$16+'BP Financier'!$D$19))*V2151","v":{"v":318509.3147517605,"d":"318,509"}},{"v":176591.00862873122,"d":"176,591"},{"$f":"'BP Financier'!$D$44*(('BP Financier'!$C$16+'BP Financier'!$D$16)/('BP Financier'!$C$16+'BP Financier'!$C$19+'BP Financier'!$D$16+'BP Financier'!$D$19+'BP Financier'!$C$22+'BP Financier'!$D$22))*$V2151*X2151/(1-$W2151)","v":{"v":22477.47718832655,"d":"22,477"}},{"$f":"'BP Financier'!$D$44*(('BP Financier'!$C$16+'BP Financier'!$D$16)/('BP Financier'!$C$16+'BP Financier'!$C$19+'BP Financier'!$D$16+'BP Financier'!$D$19+'BP Financier'!$C$22+'BP Financier'!$D$22))*$V2151*Y2151/(1-$W2151)","v":{"v":15026.37977783156,"d":"15,026"}},{"$f":"'BP Financier'!$D$44*(('BP Financier'!$C$16+'BP Financier'!$D$16)/('BP Financier'!$C$16+'BP Financier'!$C$19+'BP Financier'!$D$16+'BP Financier'!$D$19+'BP Financier'!$C$22+'BP Financier'!$D$22))*$V2151*Z2151/(1-$W2151)","v":{"v":117603.15412897924,"d":"117,603"}},{"$f":"'BP Financier'!$D$44*(('BP Financier'!$C$16+'BP Financier'!$D$16)/('BP Financier'!$C$16+'BP Financier'!$C$19+'BP Financier'!$D$16+'BP Financier'!$D$19+'BP Financier'!$C$22+'BP Financier'!$D$22))*$V2151*AA2151/(1-$W2151)","v":{"v":14529.639950465227,"d":"14,530"}},{"$f":"'BP Financier'!$D$44*(('BP Financier'!$C$16+'BP Financier'!$D$16)/('BP Financier'!$C$16+'BP Financier'!$C$19+'BP Financier'!$D$16+'BP Financier'!$D$19+'BP Financier'!$C$22+'BP Financier'!$D$22))*$V2151*AB2151/(1-$W2151)","v":{"v":6954.357583128654,"d":"6,954"}},null,{"v":0.0025,"d":"0.25%"},{"$f":"Actif!$E$28/100","v":{"v":0.28900000000000003,"d":"28.90%"}},{"$f":"Actif!$E$30/100","v":{"v":0.09050000000000001,"d":"9.05%"}},{"$f":"Actif!$E$31/100","v":{"v":0.0605,"d":"6.05%"}},{"$f":"Actif!$E$32/100","v":{"v":0.47350000000000003,"d":"47.35%"}},{"$f":"Actif!$E$33/100","v":{"v":0.0585,"d":"5.85%"}},{"$f":"Actif!$E$29/100","v":{"v":0.027999999999999997,"d":"2.80%"}}]
[null,"#57",46,2026,"H","A_VIE",{"v":0.44999999999999996,"d":"0.45"},{"v":0.38999999999999996,"d":"0.39"},0.6,0.6,85,0,{"$f":"ROUND(Primes!$N$4*V2152,0)","v":11},{"$f":"'BP Financier'!$D$33*(('BP Financier'!$C$16+'BP Financier'!$D$16)/('BP Financier'!$C$16+'BP Financier'!$C$19+'BP Financier'!$D$16+'BP Financier'!$D$19))*V2152","v":{"v":318509.3147517605,"d":"318,509"}},{"v":176591.00862873122,"d":"176,591"},{"$f":"'BP Financier'!$D$44*(('BP Financier'!$C$16+'BP Financier'!$D$16)/('BP Financier'!$C$16+'BP Financier'!$C$19+'BP Financier'!$D$16+'BP Financier'!$D$19+'BP Financier'!$C$22+'BP Financier'!$D$22))*$V2152*X2152/(1-$W2152)","v":{"v":22477.47718832655,"d":"22,477"}},{"$f":"'BP Financier'!$D$44*(('BP Financier'!$C$16+'BP Financier'!$D$16)/('BP Financier'!$C$16+'BP Financier'!$C$19+'BP Financier'!$D$16+'BP Financier'!$D$19+'BP Financier'!$C$22+'BP Financier'!$D$22))*$V2152*Y2152/(1-$W2152)","v":{"v":15026.37977783156,"d":"15,026"}},{"$f":"'BP Financier'!$D$44*(('BP Financier'!$C$16+'BP Financier'!$D$16)/('BP Financier'!$C$16+'BP Financier'!$C$19+'BP Financier'!$D$16+'BP Financier'!$D$19+'BP Financier'!$C$22+'BP Financier'!$D$22))*$V2152*Z2152/(1-$W2152)","v":{"v":117603.15412897924,"d":"117,603"}},{"$f":"'BP Financier'!$D$44*(('BP Financier'!$C$16+'BP Financier'!$D$16)/('BP Financier'!$C$16+'BP Financier'!$C$19+'BP Financier'!$D$16+'BP Financier'!$D$19+'BP Financier'!$C$22+'BP Financier'!$D$22))*$V2152*AA2152/(1-$W2152)","v":{"v":14529.639950465227,"d":"14,530"}},{"$f":"'BP Financier'!$D$44*(('BP Financier'!$C$16+'BP Financier'!$D$16)/('BP Financier'!$C$16+'BP Financier'!$C$19+'BP Financier'!$D$16+'BP Financier'!$D$19+'BP Financier'!$C$22+'BP Financier'!$D$22))*$V2152*AB2152/(1-$W2152)","v":{"v":6954.357583128654,"d":"6,954"}},null,{"v":0.0025,"d":"0.25%"},{"$f":"Actif!$E$28/100","v":{"v":0.28900000000000003,"d":"28.90%"}},{"$f":"Actif!$E$30/100","v":{"v":0.09050000000000001,"d":"9.05%"}},{"$f":"Actif!$E$31/100","v":{"v":0.0605,"d":"6.05%"}},{"$f":"Actif!$E$32/100","v":{"v":0.47350000000000003,"d":"47.35%"}},{"$f":"Actif!$E$33/100","v":{"v":0.0585,"d":"5.85%"}},{"$f":"Actif!$E$29/100","v":{"v":0.027999999999999997,"d":"2.80%"}}]
[null,"#58",46,2028,"H","A_VIE",{"v":0.44999999999999996,"d":"0.45"},{"v":0.38999999999999996,"d":"0.39"},0.6,0.6,85,0,{"$f":"ROUND(Primes!$N$4*V2153,0)","v":11},{"$f":"'BP Financier'!$D$33*(('BP Financier'!$C$16+'BP Financier'!$D$16)/('BP Financier'!$C$16+'BP Financier'!$C$19+'BP Financier'!$D$16+'BP Financier'!$D$19))*V2153","v":{"v":318509.3147517605,"d":"318,509"}},{"v":176591.00862873122,"d":"176,591"},{"$f":"'BP Financier'!$D$44*(('BP Financier'!$C$16+'BP Financier'!$D$16)/('BP Financier'!$C$16+'BP Financier'!$C$19+'BP Financier'!$D$16+'BP Financier'!$D$19+'BP Financier'!$C$22+'BP Financier'!$D$22))*$V2153*X2153/(1-$W2153)","v":{"v":22477.47718832655,"d":"22,477"}},{"$f":"'BP Financier'!$D$44*(('BP Financier'!$C$16+'BP Financier'!$D$16)/('BP Financier'!$C$16+'BP Financier'!$C$19+'BP Financier'!$D$16+'BP Financier'!$D$19+'BP Financier'!$C$22+'BP Financier'!$D$22))*$V2153*Y2153/(1-$W2153)","v":{"v":15026.37977783156,"d":"15,026"}},{"$f":"'BP Financier'!$D$44*(('BP Financier'!$C$16+'BP Financier'!$D$16)/('BP Financier'!$C$16+'BP Financier'!$C$19+'BP Financier'!$D$16+'BP Financier'!$D$19+'BP Financier'!$C$22+'BP Financier'!$D$22))*$V2153*Z2153/(1-$W2153)","v":{"v":117603.15412897924,"d":"117,603"}},{"$f":"'BP Financier'!$D$44*(('BP Financier'!$C$16+'BP Financier'!$D$16)/('BP Financier'!$C$16+'BP Financier'!$C$19+'BP Financier'!$D$16+'BP Financier'!$D$19+'BP Financier'!$C$22+'BP Financier'!$D$22))*$V2153*AA2153/(1-$W2153)","v":{"v":14529.639950465227,"d":"14,530"}},{"$f":"'BP Financier'!$D$44*(('BP Financier'!$C$16+'BP Financier'!$D$16)/('BP Financier'!$C$16+'BP Financier'!$C$19+'BP Financier'!$D$16+'BP Financier'!$D$19+'BP Financier'!$C$22+'BP Financier'!$D$22))*$V2153*AB2153/(1-$W2153)","v":{"v":6954.357583128654,"d":"6,954"}},null,{"v":0.0025,"d":"0.25%"},{"$f":"Actif!$E$28/100","v":{"v":0.28900000000000003,"d":"28.90%"}},{"$f":"Actif!$E$30/100","v":{"v":0.09050000000000001,"d":"9.05%"}},{"$f":"Actif!$E$31/100","v":{"v":0.0605,"d":"6.05%"}},{"$f":"Actif!$E$32/100","v":{"v":0.47350000000000003,"d":"47.35%"}},{"$f":"Actif!$E$33/100","v":{"v":0.0585,"d":"5.85%"}},{"$f":"Actif!$E$29/100","v":{"v":0.027999999999999997,"d":"2.80%"}}]
[null,"#59",47,2026,"F","A_VIE",{"v":0.44999999999999996,"d":"0.45"},{"v":0.38999999999999996,"d":"0.39"},0.6,0.6,85,0,{"$f":"ROUND(Primes!$N$4*V2154,0)","v":11},{"$f":"'BP Financier'!$D$33*(('BP Financier'!$C$16+'BP Financier'!$D$16)/('BP Financier'!$C$16+'BP Financier'!$C$19+'BP Financier'!$D$16+'BP Financier'!$D$19))*V2154","v":{"v":318509.3147517605,"d":"318,509"}},{"v":176591.00862873122,"d":"176,591"},{"$f":"'BP Financier'!$D$44*(('BP Financier'!$C$16+'BP Financier'!$D$16)/('BP Financier'!$C$16+'BP Financier'!$C$19+'BP Financier'!$D$16+'BP Financier'!$D$19+'BP Financier'!$C$22+'BP Financier'!$D$22))*$V2154*X2154/(1-$W2154)","v":{"v":22477.47718832655,"d":"22,477"}},{"$f":"'BP Financier'!$D$44*(('BP Financier'!$C$16+'BP Financier'!$D$16)/('BP Financier'!$C$16+'BP Financier'!$C$19+'BP Financier'!$D$16+'BP Financier'!$D$19+'BP Financier'!$C$22+'BP Financier'!$D$22))*$V2154*Y2154/(1-$W2154)","v":{"v":15026.37977783156,"d":"15,026"}},{"$f":"'BP Financier'!$D$44*(('BP Financier'!$C$16+'BP Financier'!$D$16)/('BP Financier'!$C$16+'BP Financier'!$C$19+'BP Financier'!$D$16+'BP Financier'!$D$19+'BP Financier'!$C$22+'BP Financier'!$D$22))*$V2154*Z2154/(1-$W2154)","v":{"v":117603.15412897924,"d":"117,603"}},{"$f":"'BP Financier'!$D$44*(('BP Financier'!$C$16+'BP Financier'!$D$16)/('BP Financier'!$C$16+'BP Financier'!$C$19+'BP Financier'!$D$16+'BP Financier'!$D$19+'BP Financier'!$C$22+'BP Financier'!$D$22))*$V2154*AA2154/(1-$W2154)","v":{"v":14529.639950465227,"d":"14,530"}},{"$f":"'BP Financier'!$D$44*(('BP Financier'!$C$16+'BP Financier'!$D$16)/('BP Financier'!$C$16+'BP Financier'!$C$19+'BP Financier'!$D$16+'BP Financier'!$D$19+'BP Financier'!$C$22+'BP Financier'!$D$22))*$V2154*AB2154/(1-$W2154)","v":{"v":6954.357583128654,"d":"6,954"}},null,{"v":0.0025,"d":"0.25%"},{"$f":"Actif!$E$28/100","v":{"v":0.28900000000000003,"d":"28.90%"}},{"$f":"Actif!$E$30/100","v":{"v":0.09050000000000001,"d":"9.05%"}},{"$f":"Actif!$E$31/100","v":{"v":0.0605,"d":"6.05%"}},{"$f":"Actif!$E$32/100","v":{"v":0.47350000000000003,"d":"47.35%"}},{"$f":"Actif!$E$33/100","v":{"v":0.0585,"d":"5.85%"}},{"$f":"Actif!$E$29/100","v":{"v":0.027999999999999997,"d":"2.80%"}}]
[null,"#60",47,2028,"F","A_VIE",{"v":0.44999999999999996,"d":"0.45"},{"v":0.38999999999999996,"d":"0.39"},0.6,0.6,85,0,{"$f":"ROUND(Primes!$N$4*V2155,0)","v":11},{"$f":"'BP Financier'!$D$33*(('BP Financier'!$C$16+'BP Financier'!$D$16)/('BP Financier'!$C$16+'BP Financier'!$C$19+'BP Financier'!$D$16+'BP Financier'!$D$19))*V2155","v":{"v":318509.3147517605,"d":"318,509"}},{"v":176591.00862873122,"d":"176,591"},{"$f":"'BP Financier'!$D$44*(('BP Financier'!$C$16+'BP Financier'!$D$16)/('BP Financier'!$C$16+'BP Financier'!$C$19+'BP Financier'!$D$16+'BP Financier'!$D$19+'BP Financier'!$C$22+'BP Financier'!$D$22))*$V2155*X2155/(1-$W2155)","v":{"v":22477.47718832655,"d":"22,477"}},{"$f":"'BP Financier'!$D$44*(('BP Financier'!$C$16+'BP Financier'!$D$16)/('BP Financier'!$C$16+'BP Financier'!$C$19+'BP Financier'!$D$16+'BP Financier'!$D$19+'BP Financier'!$C$22+'BP Financier'!$D$22))*$V2155*Y2155/(1-$W2155)","v":{"v":15026.37977783156,"d":"15,026"}},{"$f":"'BP Financier'!$D$44*(('BP Financier'!$C$16+'BP Financier'!$D$16)/('BP Financier'!$C$16+'BP Financier'!$C$19+'BP Financier'!$D$16+'BP Financier'!$D$19+'BP Financier'!$C$22+'BP Financier'!$D$22))*$V2155*Z2155/(1-$W2155)","v":{"v":117603.15412897924,"d":"117,603"}},{"$f":"'BP Financier'!$D$44*(('BP Financier'!$C$16+'BP Financier'!$D$16)/('BP Financier'!$C$16+'BP Financier'!$C$19+'BP Financier'!$D$16+'BP Financier'!$D$19+'BP Financier'!$C$22+'BP Financier'!$D$22))*$V2155*AA2155/(1-$W2155)","v":{"v":14529.639950465227,"d":"14,530"}},{"$f":"'BP Financier'!$D$44*(('BP Financier'!$C$16+'BP Financier'!$D$16)/('BP Financier'!$C$16+'BP Financier'!$C$19+'BP Financier'!$D$16+'BP Financier'!$D$19+'BP Financier'!$C$22+'BP Financier'!$D$22))*$V2155*AB2155/(1-$W2155)","v":{"v":6954.357583128654,"d":"6,954"}},null,{"v":0.0025,"d":"0.25%"},{"$f":"Actif!$E$28/100","v":{"v":0.28900000000000003,"d":"28.90%"}},{"$f":"Actif!$E$30/100","v":{"v":0.09050000000000001,"d":"9.05%"}},{"$f":"Actif!$E$31/100","v":{"v":0.0605,"d":"6.05%"}},{"$f":"Actif!$E$32/100","v":{"v":0.47350000000000003,"d":"47.35%"}},{"$f":"Actif!$E$33/100","v":{"v":0.0585,"d":"5.85%"}},{"$f":"Actif!$E$29/100","v":{"v":0.027999999999999997,"d":"2.80%"}}]
[null,"#61",48,2026,"H","A_VIE",{"v":0.44999999999999996,"d":"0.45"},{"v":0.38999999999999996,"d":"0.39"},0.6,0.6,85,0,{"$f":"ROUND(Primes!$N$4*V2156,0)","v":11},{"$f":"'BP Financier'!$D$33*(('BP Financier'!$C$16+'BP Financier'!$D$16)/('BP Financier'!$C$16+'BP Financier'!$C$19+'BP Financier'!$D$16+'BP Financier'!$D$19))*V2156","v":{"v":318509.3147517605,"d":"318,509"}},{"v":176591.00862873122,"d":"176,591"},{"$f":"'BP Financier'!$D$44*(('BP Financier'!$C$16+'BP Financier'!$D$16)/('BP Financier'!$C$16+'BP Financier'!$C$19+'BP Financier'!$D$16+'BP Financier'!$D$19+'BP Financier'!$C$22+'BP Financier'!$D$22))*$V2156*X2156/(1-$W2156)","v":{"v":22477.47718832655,"d":"22,477"}},{"$f":"'BP Financier'!$D$44*(('BP Financier'!$C$16+'BP Financier'!$D$16)/('BP Financier'!$C$16+'BP Financier'!$C$19+'BP Financier'!$D$16+'BP Financier'!$D$19+'BP Financier'!$C$22+'BP Financier'!$D$22))*$V2156*Y2156/(1-$W2156)","v":{"v":15026.37977783156,"d":"15,026"}},{"$f":"'BP Financier'!$D$44*(('BP Financier'!$C$16+'BP Financier'!$D$16)/('BP Financier'!$C$16+'BP Financier'!$C$19+'BP Financier'!$D$16+'BP Financier'!$D$19+'BP Financier'!$C$22+'BP Financier'!$D$22))*$V2156*Z2156/(1-$W2156)","v":{"v":117603.15412897924,"d":"117,603"}},{"$f":"'BP Financier'!$D$44*(('BP Financier'!$C$16+'BP Financier'!$D$16)/('BP Financier'!$C$16+'BP Financier'!$C$19+'BP Financier'!$D$16+'BP Financier'!$D$19+'BP Financier'!$C$22+'BP Financier'!$D$22))*$V2156*AA2156/(1-$W2156)","v":{"v":14529.639950465227,"d":"14,530"}},{"$f":"'BP Financier'!$D$44*(('BP Financier'!$C$16+'BP Financier'!$D$16)/('BP Financier'!$C$16+'BP Financier'!$C$19+'BP Financier'!$D$16+'BP Financier'!$D$19+'BP Financier'!$C$22+'BP Financier'!$D$22))*$V2156*AB2156/(1-$W2156)","v":{"v":6954.357583128654,"d":"6,954"}},null,{"v":0.0025,"d":"0.25%"},{"$f":"Actif!$E$28/100","v":{"v":0.28900000000000003,"d":"28.90%"}},{"$f":"Actif!$E$30/100","v":{"v":0.09050000000000001,"d":"9.05%"}},{"$f":"Actif!$E$31/100","v":{"v":0.0605,"d":"6.05%"}},{"$f":"Actif!$E$32/100","v":{"v":0.47350000000000003,"d":"47.35%"}},{"$f":"Actif!$E$33/100","v":{"v":0.0585,"d":"5.85%"}},{"$f":"Actif!$E$29/100","v":{"v":0.027999999999999997,"d":"2.80%"}}]
[null,"#62",48,2028,"H","A_VIE",{"v":0.44999999999999996,"d":"0.45"},{"v":0.38999999999999996,"d":"0.39"},0.6,0.6,85,0,{"$f":"ROUND(Primes!$N$4*V2157,0)","v":11},{"$f":"'BP Financier'!$D$33*(('BP Financier'!$C$16+'BP Financier'!$D$16)/('BP Financier'!$C$16+'BP Financier'!$C$19+'BP Financier'!$D$16+'BP Financier'!$D$19))*V2157","v":{"v":318509.3147517605,"d":"318,509"}},{"v":176591.00862873122,"d":"176,591"},{"$f":"'BP Financier'!$D$44*(('BP Financier'!$C$16+'BP Financier'!$D$16)/('BP Financier'!$C$16+'BP Financier'!$C$19+'BP Financier'!$D$16+'BP Financier'!$D$19+'BP Financier'!$C$22+'BP Financier'!$D$22))*$V2157*X2157/(1-$W2157)","v":{"v":22477.47718832655,"d":"22,477"}},{"$f":"'BP Financier'!$D$44*(('BP Financier'!$C$16+'BP Financier'!$D$16)/('BP Financier'!$C$16+'BP Financier'!$C$19+'BP Financier'!$D$16+'BP Financier'!$D$19+'BP Financier'!$C$22+'BP Financier'!$D$22))*$V2157*Y2157/(1-$W2157)","v":{"v":15026.37977783156,"d":"15,026"}},{"$f":"'BP Financier'!$D$44*(('BP Financier'!$C$16+'BP Financier'!$D$16)/('BP Financier'!$C$16+'BP Financier'!$C$19+'BP Financier'!$D$16+'BP Financier'!$D$19+'BP Financier'!$C$22+'BP Financier'!$D$22))*$V2157*Z2157/(1-$W2157)","v":{"v":117603.15412897924,"d":"117,603"}},{"$f":"'BP Financier'!$D$44*(('BP Financier'!$C$16+'BP Financier'!$D$16)/('BP Financier'!$C$16+'BP Financier'!$C$19+'BP Financier'!$D$16+'BP Financier'!$D$19+'BP Financier'!$C$22+'BP Financier'!$D$22))*$V2157*AA2157/(1-$W2157)","v":{"v":14529.639950465227,"d":"14,530"}},{"$f":"'BP Financier'!$D$44*(('BP Financier'!$C$16+'BP Financier'!$D$16)/('BP Financier'!$C$16+'BP Financier'!$C$19+'BP Financier'!$D$16+'BP Financier'!$D$19+'BP Financier'!$C$22+'BP Financier'!$D$22))*$V2157*AB2157/(1-$W2157)","v":{"v":6954.357583128654,"d":"6,954"}},null,{"v":0.0025,"d":"0.25%"},{"$f":"Actif!$E$28/100","v":{"v":0.28900000000000003,"d":"28.90%"}},{"$f":"Actif!$E$30/100","v":{"v":0.09050000000000001,"d":"9.05%"}},{"$f":"Actif!$E$31/100","v":{"v":0.0605,"d":"6.05%"}},{"$f":"Actif!$E$32/100","v":{"v":0.47350000000000003,"d":"47.35%"}},{"$f":"Actif!$E$33/100","v":{"v":0.0585,"d":"5.85%"}},{"$f":"Actif!$E$29/100","v":{"v":0.027999999999999997,"d":"2.80%"}}]
[null,"#63",49,2026,"H","A_VIE",{"v":0.44999999999999996,"d":"0.45"},{"v":0.38999999999999996,"d":"0.39"},0.6,0.6,85,0,{"$f":"ROUND(Primes!$N$4*V2158,0)","v":11},{"$f":"'BP Financier'!$D$33*(('BP Financier'!$C$16+'BP Financier'!$D$16)/('BP Financier'!$C$16+'BP Financier'!$C$19+'BP Financier'!$D$16+'BP Financier'!$D$19))*V2158","v":{"v":318509.3147517605,"d":"318,509"}},{"v":176591.00862873122,"d":"176,591"},{"$f":"'BP Financier'!$D$44*(('BP Financier'!$C$16+'BP Financier'!$D$16)/('BP Financier'!$C$16+'BP Financier'!$C$19+'BP Financier'!$D$16+'BP Financier'!$D$19+'BP Financier'!$C$22+'BP Financier'!$D$22))*$V2158*X2158/(1-$W2158)","v":{"v":22477.47718832655,"d":"22,477"}},{"$f":"'BP Financier'!$D$44*(('BP Financier'!$C$16+'BP Financier'!$D$16)/('BP Financier'!$C$16+'BP Financier'!$C$19+'BP Financier'!$D$16+'BP Financier'!$D$19+'BP Financier'!$C$22+'BP Financier'!$D$22))*$V2158*Y2158/(1-$W2158)","v":{"v":15026.37977783156,"d":"15,026"}},{"$f":"'BP Financier'!$D$44*(('BP Financier'!$C$16+'BP Financier'!$D$16)/('BP Financier'!$C$16+'BP Financier'!$C$19+'BP Financier'!$D$16+'BP Financier'!$D$19+'BP Financier'!$C$22+'BP Financier'!$D$22))*$V2158*Z2158/(1-$W2158)","v":{"v":117603.15412897924,"d":"117,603"}},{"$f":"'BP Financier'!$D$44*(('BP Financier'!$C$16+'BP Financier'!$D$16)/('BP Financier'!$C$16+'BP Financier'!$C$19+'BP Financier'!$D$16+'BP Financier'!$D$19+'BP Financier'!$C$22+'BP Financier'!$D$22))*$V2158*AA2158/(1-$W2158)","v":{"v":14529.639950465227,"d":"14,530"}},{"$f":"'BP Financier'!$D$44*(('BP Financier'!$C$16+'BP Financier'!$D$16)/('BP Financier'!$C$16+'BP Financier'!$C$19+'BP Financier'!$D$16+'BP Financier'!$D$19+'BP Financier'!$C$22+'BP Financier'!$D$22))*$V2158*AB2158/(1-$W2158)","v":{"v":6954.357583128654,"d":"6,954"}},null,{"v":0.0025,"d":"0.25%"},{"$f":"Actif!$E$28/100","v":{"v":0.28900000000000003,"d":"28.90%"}},{"$f":"Actif!$E$30/100","v":{"v":0.09050000000000001,"d":"9.05%"}},{"$f":"Actif!$E$31/100","v":{"v":0.0605,"d":"6.05%"}},{"$f":"Actif!$E$32/100","v":{"v":0.47350000000000003,"d":"47.35%"}},{"$f":"Actif!$E$33/100","v":{"v":0.0585,"d":"5.85%"}},{"$f":"Actif!$E$29/100","v":{"v":0.027999999999999997,"d":"2.80%"}}]
[null,"#64",49,2028,"H","A_VIE",{"v":0.44999999999999996,"d":"0.45"},{"v":0.38999999999999996,"d":"0.39"},0.6,0.6,85,0,{"$f":"ROUND(Primes!$N$4*V2159,0)","v":11},{"$f":"'BP Financier'!$D$33*(('BP Financier'!$C$16+'BP Financier'!$D$16)/('BP Financier'!$C$16+'BP Financier'!$C$19+'BP Financier'!$D$16+'BP Financier'!$D$19))*V2159","v":{"v":318509.3147517605,"d":"318,509"}},{"v":176591.00862873122,"d":"176,591"},{"$f":"'BP Financier'!$D$44*(('BP Financier'!$C$16+'BP Financier'!$D$16)/('BP Financier'!$C$16+'BP Financier'!$C$19+'BP Financier'!$D$16+'BP Financier'!$D$19+'BP Financier'!$C$22+'BP Financier'!$D$22))*$V2159*X2159/(1-$W2159)","v":{"v":22477.47718832655,"d":"22,477"}},{"$f":"'BP Financier'!$D$44*(('BP Financier'!$C$16+'BP Financier'!$D$16)/('BP Financier'!$C$16+'BP Financier'!$C$19+'BP Financier'!$D$16+'BP Financier'!$D$19+'BP Financier'!$C$22+'BP Financier'!$D$22))*$V2159*Y2159/(1-$W2159)","v":{"v":15026.37977783156,"d":"15,026"}},{"$f":"'BP Financier'!$D$44*(('BP Financier'!$C$16+'BP Financier'!$D$16)/('BP Financier'!$C$16+'BP Financier'!$C$19+'BP Financier'!$D$16+'BP Financier'!$D$19+'BP Financier'!$C$22+'BP Financier'!$D$22))*$V2159*Z2159/(1-$W2159)","v":{"v":117603.15412897924,"d":"117,603"}},{"$f":"'BP Financier'!$D$44*(('BP Financier'!$C$16+'BP Financier'!$D$16)/('BP Financier'!$C$16+'BP Financier'!$C$19+'BP Financier'!$D$16+'BP Financier'!$D$19+'BP Financier'!$C$22+'BP Financier'!$D$22))*$V2159*AA2159/(1-$W2159)","v":{"v":14529.639950465227,"d":"14,530"}},{"$f":"'BP Financier'!$D$44*(('BP Financier'!$C$16+'BP Financier'!$D$16)/('BP Financier'!$C$16+'BP Financier'!$C$19+'BP Financier'!$D$16+'BP Financier'!$D$19+'BP Financier'!$C$22+'BP Financier'!$D$22))*$V2159*AB2159/(1-$W2159)","v":{"v":6954.357583128654,"d":"6,954"}},null,{"v":0.0025,"d":"0.25%"},{"$f":"Actif!$E$28/100","v":{"v":0.28900000000000003,"d":"28.90%"}},{"$f":"Actif!$E$30/100","v":{"v":0.09050000000000001,"d":"9.05%"}},{"$f":"Actif!$E$31/100","v":{"v":0.0605,"d":"6.05%"}},{"$f":"Actif!$E$32/100","v":{"v":0.47350000000000003,"d":"47.35%"}},{"$f":"Actif!$E$33/100","v":{"v":0.0585,"d":"5.85%"}},{"$f":"Actif!$E$29/100","v":{"v":0.027999999999999997,"d":"2.80%"}}]
[null,"#65",50,2026,"F","A_VIE",{"$f":"frais_gestion_Euro*100","v":{"v":0.44999999999999996,"d":"0.45"}},{"$f":"frais_gestion_UC*100","v":{"v":0.38999999999999996,"d":"0.39"}},{"$f":"frais_distribution_FG*100","v":0.6},{"$f":"frais_distribution_UC*100","v":0.6},85,0,{"$f":"ROUND(Primes!$N$4*V2160,0)","v":67},{"$f":"'BP Financier'!$D$33*(('BP Financier'!$C$16+'BP Financier'!$D$16)/('BP Financier'!$C$16+'BP Financier'!$C$19+'BP Financier'!$D$16+'BP Financier'!$D$19))*V2160","v":{"v":1911055.8885105627,"d":"1,911,056"}},{"v":1059546.0517723872,"d":"1,059,546"},{"$f":"'BP Financier'!$D$44*(('BP Financier'!$C$16+'BP Financier'!$D$16)/('BP Financier'!$C$16+'BP Financier'!$C$19+'BP Financier'!$D$16+'BP Financier'!$D$19+'BP Financier'!$C$22+'BP Financier'!$D$22))*$V2160*X2160/(1-$W2160)","v":{"v":134864.8631299593,"d":"134,865"}},{"$f":"'BP Financier'!$D$44*(('BP Financier'!$C$16+'BP Financier'!$D$16)/('BP Financier'!$C$16+'BP Financier'!$C$19+'BP Financier'!$D$16+'BP Financier'!$D$19+'BP Financier'!$C$22+'BP Financier'!$D$22))*$V2160*Y2160/(1-$W2160)","v":{"v":90158.27866698935,"d":"90,158"}},{"$f":"'BP Financier'!$D$44*(('BP Financier'!$C$16+'BP Financier'!$D$16)/('BP Financier'!$C$16+'BP Financier'!$C$19+'BP Financier'!$D$16+'BP Financier'!$D$19+'BP Financier'!$C$22+'BP Financier'!$D$22))*$V2160*Z2160/(1-$W2160)","v":{"v":705618.9247738754,"d":"705,619"}},{"$f":"'BP Financier'!$D$44*(('BP Financier'!$C$16+'BP Financier'!$D$16)/('BP Financier'!$C$16+'BP Financier'!$C$19+'BP Financier'!$D$16+'BP Financier'!$D$19+'BP Financier'!$C$22+'BP Financier'!$D$22))*$V2160*AA2160/(1-$W2160)","v":{"v":87177.83970279136,"d":"87,178"}},{"$f":"'BP Financier'!$D$44*(('BP Financier'!$C$16+'BP Financier'!$D$16)/('BP Financier'!$C$16+'BP Financier'!$C$19+'BP Financier'!$D$16+'BP Financier'!$D$19+'BP Financier'!$C$22+'BP Financier'!$D$22))*$V2160*AB2160/(1-$W2160)","v":{"v":41726.145498771926,"d":"41,726"}},null,{"v":0.015,"d":"1.50%"},{"$f":"Actif!$E$28/100","v":{"v":0.28900000000000003,"d":"28.90%"}},{"$f":"Actif!$E$30/100","v":{"v":0.09050000000000001,"d":"9.05%"}},{"$f":"Actif!$E$31/100","v":{"v":0.0605,"d":"6.05%"}},{"$f":"Actif!$E$32/100","v":{"v":0.47350000000000003,"d":"47.35%"}},{"$f":"Actif!$E$33/100","v":{"v":0.0585,"d":"5.85%"}},{"$f":"Actif!$E$29/100","v":{"v":0.027999999999999997,"d":"2.80%"}}]
[null,"#66",50,2028,"F","A_VIE",{"v":0.44999999999999996,"d":"0.45"},{"v":0.38999999999999996,"d":"0.39"},0.6,0.6,85,0,{"$f":"ROUND(Primes!$N$4*V2161,0)","v":67},{"$f":"'BP Financier'!$D$33*(('BP Financier'!$C$16+'BP Financier'!$D$16)/('BP Financier'!$C$16+'BP Financier'!$C$19+'BP Financier'!$D$16+'BP Financier'!$D$19))*V2161","v":{"v":1911055.8885105627,"d":"1,911,056"}},{"$f":"SUM(P2161:T2161)","v":{"v":1059546.0517723872,"d":"1,059,546"}},{"$f":"'BP Financier'!$D$44*(('BP Financier'!$C$16+'BP Financier'!$D$16)/('BP Financier'!$C$16+'BP Financier'!$C$19+'BP Financier'!$D$16+'BP Financier'!$D$19+'BP Financier'!$C$22+'BP Financier'!$D$22))*$V2161*X2161/(1-$W2161)","v":{"v":134864.8631299593,"d":"134,865"}},{"$f":"'BP Financier'!$D$44*(('BP Financier'!$C$16+'BP Financier'!$D$16)/('BP Financier'!$C$16+'BP Financier'!$C$19+'BP Financier'!$D$16+'BP Financier'!$D$19+'BP Financier'!$C$22+'BP Financier'!$D$22))*$V2161*Y2161/(1-$W2161)","v":{"v":90158.27866698935,"d":"90,158"}},{"$f":"'BP Financier'!$D$44*(('BP Financier'!$C$16+'BP Financier'!$D$16)/('BP Financier'!$C$16+'BP Financier'!$C$19+'BP Financier'!$D$16+'BP Financier'!$D$19+'BP Financier'!$C$22+'BP Financier'!$D$22))*$V2161*Z2161/(1-$W2161)","v":{"v":705618.9247738754,"d":"705,619"}},{"$f":"'BP Financier'!$D$44*(('BP Financier'!$C$16+'BP Financier'!$D$16)/('BP Financier'!$C$16+'BP Financier'!$C$19+'BP Financier'!$D$16+'BP Financier'!$D$19+'BP Financier'!$C$22+'BP Financier'!$D$22))*$V2161*AA2161/(1-$W2161)","v":{"v":87177.83970279136,"d":"87,178"}},{"$f":"'BP Financier'!$D$44*(('BP Financier'!$C$16+'BP Financier'!$D$16)/('BP Financier'!$C$16+'BP Financier'!$C$19+'BP Financier'!$D$16+'BP Financier'!$D$19+'BP Financier'!$C$22+'BP Financier'!$D$22))*$V2161*AB2161/(1-$W2161)","v":{"v":41726.145498771926,"d":"41,726"}},null,{"v":0.015,"d":"1.50%"},{"$f":"Actif!$E$28/100","v":{"v":0.28900000000000003,"d":"28.90%"}},{"$f":"Actif!$E$30/100","v":{"v":0.09050000000000001,"d":"9.05%"}},{"$f":"Actif!$E$31/100","v":{"v":0.0605,"d":"6.05%"}},{"$f":"Actif!$E$32/100","v":{"v":0.47350000000000003,"d":"47.35%"}},{"$f":"Actif!$E$33/100","v":{"v":0.0585,"d":"5.85%"}},{"$f":"Actif!$E$29/100","v":{"v":0.027999999999999997,"d":"2.80%"}}]
[null,"#67",51,2026,"H","A_VIE",{"v":0.44999999999999996,"d":"0.45"},{"v":0.38999999999999996,"d":"0.39"},0.6,0.6,85,0,{"$f":"ROUND(Primes!$N$4*V2162,0)","v":67},{"$f":"'BP Financier'!$D$33*(('BP Financier'!$C$16+'BP Financier'!$D$16)/('BP Financier'!$C$16+'BP Financier'!$C$19+'BP Financier'!$D$16+'BP Financier'!$D$19))*V2162","v":{"v":1911055.8885105627,"d":"1,911,056"}},{"v":1059546.0517723872,"d":"1,059,546"},{"$f":"'BP Financier'!$D$44*(('BP Financier'!$C$16+'BP Financier'!$D$16)/('BP Financier'!$C$16+'BP Financier'!$C$19+'BP Financier'!$D$16+'BP Financier'!$D$19+'BP Financier'!$C$22+'BP Financier'!$D$22))*$V2162*X2162/(1-$W2162)","v":{"v":134864.8631299593,"d":"134,865"}},{"$f":"'BP Financier'!$D$44*(('BP Financier'!$C$16+'BP Financier'!$D$16)/('BP Financier'!$C$16+'BP Financier'!$C$19+'BP Financier'!$D$16+'BP Financier'!$D$19+'BP Financier'!$C$22+'BP Financier'!$D$22))*$V2162*Y2162/(1-$W2162)","v":{"v":90158.27866698935,"d":"90,158"}},{"$f":"'BP Financier'!$D$44*(('BP Financier'!$C$16+'BP Financier'!$D$16)/('BP Financier'!$C$16+'BP Financier'!$C$19+'BP Financier'!$D$16+'BP Financier'!$D$19+'BP Financier'!$C$22+'BP Financier'!$D$22))*$V2162*Z2162/(1-$W2162)","v":{"v":705618.9247738754,"d":"705,619"}},{"$f":"'BP Financier'!$D$44*(('BP Financier'!$C$16+'BP Financier'!$D$16)/('BP Financier'!$C$16+'BP Financier'!$C$19+'BP Financier'!$D$16+'BP Financier'!$D$19+'BP Financier'!$C$22+'BP Financier'!$D$22))*$V2162*AA2162/(1-$W2162)","v":{"v":87177.83970279136,"d":"87,178"}},{"$f":"'BP Financier'!$D$44*(('BP Financier'!$C$16+'BP Financier'!$D$16)/('BP Financier'!$C$16+'BP Financier'!$C$19+'BP Financier'!$D$16+'BP Financier'!$D$19+'BP Financier'!$C$22+'BP Financier'!$D$22))*$V2162*AB2162/(1-$W2162)","v":{"v":41726.145498771926,"d":"41,726"}},null,{"v":0.015,"d":"1.50%"},{"$f":"Actif!$E$28/100","v":{"v":0.28900000000000003,"d":"28.90%"}},{"$f":"Actif!$E$30/100","v":{"v":0.09050000000000001,"d":"9.05%"}},{"$f":"Actif!$E$31/100","v":{"v":0.0605,"d":"6.05%"}},{"$f":"Actif!$E$32/100","v":{"v":0.47350000000000003,"d":"47.35%"}},{"$f":"Actif!$E$33/100","v":{"v":0.0585,"d":"5.85%"}},{"$f":"Actif!$E$29/100","v":{"v":0.027999999999999997,"d":"2.80%"}}]
[null,"#68",51,2028,"H","A_VIE",{"v":0.44999999999999996,"d":"0.45"},{"v":0.38999999999999996,"d":"0.39"},0.6,0.6,85,0,{"$f":"ROUND(Primes!$N$4*V2163,0)","v":67},{"$f":"'BP Financier'!$D$33*(('BP Financier'!$C$16+'BP Financier'!$D$16)/('BP Financier'!$C$16+'BP Financier'!$C$19+'BP Financier'!$D$16+'BP Financier'!$D$19))*V2163","v":{"v":1911055.8885105627,"d":"1,911,056"}},{"v":1059546.0517723872,"d":"1,059,546"},{"$f":"'BP Financier'!$D$44*(('BP Financier'!$C$16+'BP Financier'!$D$16)/('BP Financier'!$C$16+'BP Financier'!$C$19+'BP Financier'!$D$16+'BP Financier'!$D$19+'BP Financier'!$C$22+'BP Financier'!$D$22))*$V2163*X2163/(1-$W2163)","v":{"v":134864.8631299593,"d":"134,865"}},{"$f":"'BP Financier'!$D$44*(('BP Financier'!$C$16+'BP Financier'!$D$16)/('BP Financier'!$C$16+'BP Financier'!$C$19+'BP Financier'!$D$16+'BP Financier'!$D$19+'BP Financier'!$C$22+'BP Financier'!$D$22))*$V2163*Y2163/(1-$W2163)","v":{"v":90158.27866698935,"d":"90,158"}},{"$f":"'BP Financier'!$D$44*(('BP Financier'!$C$16+'BP Financier'!$D$16)/('BP Financier'!$C$16+'BP Financier'!$C$19+'BP Financier'!$D$16+'BP Financier'!$D$19+'BP Financier'!$C$22+'BP Financier'!$D$22))*$V2163*Z2163/(1-$W2163)","v":{"v":705618.9247738754,"d":"705,619"}},{"$f":"'BP Financier'!$D$44*(('BP Financier'!$C$16+'BP Financier'!$D$16)/('BP Financier'!$C$16+'BP Financier'!$C$19+'BP Financier'!$D$16+'BP Financier'!$D$19+'BP Financier'!$C$22+'BP Financier'!$D$22))*$V2163*AA2163/(1-$W2163)","v":{"v":87177.83970279136,"d":"87,178"}},{"$f":"'BP Financier'!$D$44*(('BP Financier'!$C$16+'BP Financier'!$D$16)/('BP Financier'!$C$16+'BP Financier'!$C$19+'BP Financier'!$D$16+'BP Financier'!$D$19+'BP Financier'!$C$22+'BP Financier'!$D$22))*$V2163*AB2163/(1-$W2163)","v":{"v":41726.145498771926,"d":"41,726"}},null,{"v":0.015,"d":"1.50%"},{"$f":"Actif!$E$28/100","v":{"v":0.28900000000000003,"d":"28.90%"}},{"$f":"Actif!$E$30/100","v":{"v":0.09050000000000001,"d":"9.05%"}},{"$f":"Actif!$E$31/100","v":{"v":0.0605,"d":"6.05%"}},{"$f":"Actif!$E$32/100","v":{"v":0.47350000000000003,"d":"47.35%"}},{"$f":"Actif!$E$33/100","v":{"v":0.0585,"d":"5.85%"}},{"$f":"Actif!$E$29/100","v":{"v":0.027999999999999997,"d":"2.80%"}}]
[null,"#69",52,2026,"H","A_VIE",{"v":0.44999999999999996,"d":"0.45"},{"v":0.38999999999999996,"d":"0.39"},0.6,0.6,85,0,{"$f":"ROUND(Primes!$N$4*V2164,0)","v":67},{"$f":"'BP Financier'!$D$33*(('BP Financier'!$C$16+'BP Financier'!$D$16)/('BP Financier'!$C$16+'BP Financier'!$C$19+'BP Financier'!$D$16+'BP Financier'!$D$19))*V2164","v":{"v":1911055.8885105627,"d":"1,911,056"}},{"v":1059546.0517723872,"d":"1,059,546"},{"$f":"'BP Financier'!$D$44*(('BP Financier'!$C$16+'BP Financier'!$D$16)/('BP Financier'!$C$16+'BP Financier'!$C$19+'BP Financier'!$D$16+'BP Financier'!$D$19+'BP Financier'!$C$22+'BP Financier'!$D$22))*$V2164*X2164/(1-$W2164)","v":{"v":134864.8631299593,"d":"134,865"}},{"$f":"'BP Financier'!$D$44*(('BP Financier'!$C$16+'BP Financier'!$D$16)/('BP Financier'!$C$16+'BP Financier'!$C$19+'BP Financier'!$D$16+'BP Financier'!$D$19+'BP Financier'!$C$22+'BP Financier'!$D$22))*$V2164*Y2164/(1-$W2164)","v":{"v":90158.27866698935,"d":"90,158"}},{"$f":"'BP Financier'!$D$44*(('BP Financier'!$C$16+'BP Financier'!$D$16)/('BP Financier'!$C$16+'BP Financier'!$C$19+'BP Financier'!$D$16+'BP Financier'!$D$19+'BP Financier'!$C$22+'BP Financier'!$D$22))*$V2164*Z2164/(1-$W2164)","v":{"v":705618.9247738754,"d":"705,619"}},{"$f":"'BP Financier'!$D$44*(('BP Financier'!$C$16+'BP Financier'!$D$16)/('BP Financier'!$C$16+'BP Financier'!$C$19+'BP Financier'!$D$16+'BP Financier'!$D$19+'BP Financier'!$C$22+'BP Financier'!$D$22))*$V2164*AA2164/(1-$W2164)","v":{"v":87177.83970279136,"d":"87,178"}},{"$f":"'BP Financier'!$D$44*(('BP Financier'!$C$16+'BP Financier'!$D$16)/('BP Financier'!$C$16+'BP Financier'!$C$19+'BP Financier'!$D$16+'BP Financier'!$D$19+'BP Financier'!$C$22+'BP Financier'!$D$22))*$V2164*AB2164/(1-$W2164)","v":{"v":41726.145498771926,"d":"41,726"}},null,{"v":0.015,"d":"1.50%"},{"$f":"Actif!$E$28/100","v":{"v":0.28900000000000003,"d":"28.90%"}},{"$f":"Actif!$E$30/100","v":{"v":0.09050000000000001,"d":"9.05%"}},{"$f":"Actif!$E$31/100","v":{"v":0.0605,"d":"6.05%"}},{"$f":"Actif!$E$32/100","v":{"v":0.47350000000000003,"d":"47.35%"}},{"$f":"Actif!$E$33/100","v":{"v":0.0585,"d":"5.85%"}},{"$f":"Actif!$E$29/100","v":{"v":0.027999999999999997,"d":"2.80%"}}]
[null,"#70",52,2028,"H","A_VIE",{"v":0.44999999999999996,"d":"0.45"},{"v":0.38999999999999996,"d":"0.39"},0.6,0.6,85,0,{"$f":"ROUND(Primes!$N$4*V2165,0)","v":67},{"$f":"'BP Financier'!$D$33*(('BP Financier'!$C$16+'BP Financier'!$D$16)/('BP Financier'!$C$16+'BP Financier'!$C$19+'BP Financier'!$D$16+'BP Financier'!$D$19))*V2165","v":{"v":1911055.8885105627,"d":"1,911,056"}},{"v":1059546.0517723872,"d":"1,059,546"},{"$f":"'BP Financier'!$D$44*(('BP Financier'!$C$16+'BP Financier'!$D$16)/('BP Financier'!$C$16+'BP Financier'!$C$19+'BP Financier'!$D$16+'BP Financier'!$D$19+'BP Financier'!$C$22+'BP Financier'!$D$22))*$V2165*X2165/(1-$W2165)","v":{"v":134864.8631299593,"d":"134,865"}},{"$f":"'BP Financier'!$D$44*(('BP Financier'!$C$16+'BP Financier'!$D$16)/('BP Financier'!$C$16+'BP Financier'!$C$19+'BP Financier'!$D$16+'BP Financier'!$D$19+'BP Financier'!$C$22+'BP Financier'!$D$22))*$V2165*Y2165/(1-$W2165)","v":{"v":90158.27866698935,"d":"90,158"}},{"$f":"'BP Financier'!$D$44*(('BP Financier'!$C$16+'BP Financier'!$D$16)/('BP Financier'!$C$16+'BP Financier'!$C$19+'BP Financier'!$D$16+'BP Financier'!$D$19+'BP Financier'!$C$22+'BP Financier'!$D$22))*$V2165*Z2165/(1-$W2165)","v":{"v":705618.9247738754,"d":"705,619"}},{"$f":"'BP Financier'!$D$44*(('BP Financier'!$C$16+'BP Financier'!$D$16)/('BP Financier'!$C$16+'BP Financier'!$C$19+'BP Financier'!$D$16+'BP Financier'!$D$19+'BP Financier'!$C$22+'BP Financier'!$D$22))*$V2165*AA2165/(1-$W2165)","v":{"v":87177.83970279136,"d":"87,178"}},{"$f":"'BP Financier'!$D$44*(('BP Financier'!$C$16+'BP Financier'!$D$16)/('BP Financier'!$C$16+'BP Financier'!$C$19+'BP Financier'!$D$16+'BP Financier'!$D$19+'BP Financier'!$C$22+'BP Financier'!$D$22))*$V2165*AB2165/(1-$W2165)","v":{"v":41726.145498771926,"d":"41,726"}},null,{"v":0.015,"d":"1.50%"},{"$f":"Actif!$E$28/100","v":{"v":0.28900000000000003,"d":"28.90%"}},{"$f":"Actif!$E$30/100","v":{"v":0.09050000000000001,"d":"9.05%"}},{"$f":"Actif!$E$31/100","v":{"v":0.0605,"d":"6.05%"}},{"$f":"Actif!$E$32/100","v":{"v":0.47350000000000003,"d":"47.35%"}},{"$f":"Actif!$E$33/100","v":{"v":0.0585,"d":"5.85%"}},{"$f":"Actif!$E$29/100","v":{"v":0.027999999999999997,"d":"2.80%"}}]
[null,"#71",53,2026,"F","A_VIE",{"v":0.44999999999999996,"d":"0.45"},{"v":0.38999999999999996,"d":"0.39"},0.6,0.6,85,0,{"$f":"ROUND(Primes!$N$4*V2166,0)","v":67},{"$f":"'BP Financier'!$D$33*(('BP Financier'!$C$16+'BP Financier'!$D$16)/('BP Financier'!$C$16+'BP Financier'!$C$19+'BP Financier'!$D$16+'BP Financier'!$D$19))*V2166","v":{"v":1911055.8885105627,"d":"1,911,056"}},{"v":1059546.0517723872,"d":"1,059,546"},{"$f":"'BP Financier'!$D$44*(('BP Financier'!$C$16+'BP Financier'!$D$16)/('BP Financier'!$C$16+'BP Financier'!$C$19+'BP Financier'!$D$16+'BP Financier'!$D$19+'BP Financier'!$C$22+'BP Financier'!$D$22))*$V2166*X2166/(1-$W2166)","v":{"v":134864.8631299593,"d":"134,865"}},{"$f":"'BP Financier'!$D$44*(('BP Financier'!$C$16+'BP Financier'!$D$16)/('BP Financier'!$C$16+'BP Financier'!$C$19+'BP Financier'!$D$16+'BP Financier'!$D$19+'BP Financier'!$C$22+'BP Financier'!$D$22))*$V2166*Y2166/(1-$W2166)","v":{"v":90158.27866698935,"d":"90,158"}},{"$f":"'BP Financier'!$D$44*(('BP Financier'!$C$16+'BP Financier'!$D$16)/('BP Financier'!$C$16+'BP Financier'!$C$19+'BP Financier'!$D$16+'BP Financier'!$D$19+'BP Financier'!$C$22+'BP Financier'!$D$22))*$V2166*Z2166/(1-$W2166)","v":{"v":705618.9247738754,"d":"705,619"}},{"$f":"'BP Financier'!$D$44*(('BP Financier'!$C$16+'BP Financier'!$D$16)/('BP Financier'!$C$16+'BP Financier'!$C$19+'BP Financier'!$D$16+'BP Financier'!$D$19+'BP Financier'!$C$22+'BP Financier'!$D$22))*$V2166*AA2166/(1-$W2166)","v":{"v":87177.83970279136,"d":"87,178"}},{"$f":"'BP Financier'!$D$44*(('BP Financier'!$C$16+'BP Financier'!$D$16)/('BP Financier'!$C$16+'BP Financier'!$C$19+'BP Financier'!$D$16+'BP Financier'!$D$19+'BP Financier'!$C$22+'BP Financier'!$D$22))*$V2166*AB2166/(1-$W2166)","v":{"v":41726.145498771926,"d":"41,726"}},null,{"v":0.015,"d":"1.50%"},{"$f":"Actif!$E$28/100","v":{"v":0.28900000000000003,"d":"28.90%"}},{"$f":"Actif!$E$30/100","v":{"v":0.09050000000000001,"d":"9.05%"}},{"$f":"Actif!$E$31/100","v":{"v":0.0605,"d":"6.05%"}},{"$f":"Actif!$E$32/100","v":{"v":0.47350000000000003,"d":"47.35%"}},{"$f":"Actif!$E$33/100","v":{"v":0.0585,"d":"5.85%"}},{"$f":"Actif!$E$29/100","v":{"v":0.027999999999999997,"d":"2.80%"}}]
[null,"#72",53,2028,"F","A_VIE",{"v":0.44999999999999996,"d":"0.45"},{"v":0.38999999999999996,"d":"0.39"},0.6,0.6,85,0,{"$f":"ROUND(Primes!$N$4*V2167,0)","v":67},{"$f":"'BP Financier'!$D$33*(('BP Financier'!$C$16+'BP Financier'!$D$16)/('BP Financier'!$C$16+'BP Financier'!$C$19+'BP Financier'!$D$16+'BP Financier'!$D$19))*V2167","v":{"v":1911055.8885105627,"d":"1,911,056"}},{"v":1059546.0517723872,"d":"1,059,546"},{"$f":"'BP Financier'!$D$44*(('BP Financier'!$C$16+'BP Financier'!$D$16)/('BP Financier'!$C$16+'BP Financier'!$C$19+'BP Financier'!$D$16+'BP Financier'!$D$19+'BP Financier'!$C$22+'BP Financier'!$D$22))*$V2167*X2167/(1-$W2167)","v":{"v":134864.8631299593,"d":"134,865"}},{"$f":"'BP Financier'!$D$44*(('BP Financier'!$C$16+'BP Financier'!$D$16)/('BP Financier'!$C$16+'BP Financier'!$C$19+'BP Financier'!$D$16+'BP Financier'!$D$19+'BP Financier'!$C$22+'BP Financier'!$D$22))*$V2167*Y2167/(1-$W2167)","v":{"v":90158.27866698935,"d":"90,158"}},{"$f":"'BP Financier'!$D$44*(('BP Financier'!$C$16+'BP Financier'!$D$16)/('BP Financier'!$C$16+'BP Financier'!$C$19+'BP Financier'!$D$16+'BP Financier'!$D$19+'BP Financier'!$C$22+'BP Financier'!$D$22))*$V2167*Z2167/(1-$W2167)","v":{"v":705618.9247738754,"d":"705,619"}},{"$f":"'BP Financier'!$D$44*(('BP Financier'!$C$16+'BP Financier'!$D$16)/('BP Financier'!$C$16+'BP Financier'!$C$19+'BP Financier'!$D$16+'BP Financier'!$D$19+'BP Financier'!$C$22+'BP Financier'!$D$22))*$V2167*AA2167/(1-$W2167)","v":{"v":87177.83970279136,"d":"87,178"}},{"$f":"'BP Financier'!$D$44*(('BP Financier'!$C$16+'BP Financier'!$D$16)/('BP Financier'!$C$16+'BP Financier'!$C$19+'BP Financier'!$D$16+'BP Financier'!$D$19+'BP Financier'!$C$22+'BP Financier'!$D$22))*$V2167*AB2167/(1-$W2167)","v":{"v":41726.145498771926,"d":"41,726"}},null,{"v":0.015,"d":"1.50%"},{"$f":"Actif!$E$28/100","v":{"v":0.28900000000000003,"d":"28.90%"}},{"$f":"Actif!$E$30/100","v":{"v":0.09050000000000001,"d":"9.05%"}},{"$f":"Actif!$E$31/100","v":{"v":0.0605,"d":"6.05%"}},{"$f":"Actif!$E$32/100","v":{"v":0.47350000000000003,"d":"47.35%"}},{"$f":"Actif!$E$33/100","v":{"v":0.0585,"d":"5.85%"}},{"$f":"Actif!$E$29/100","v":{"v":0.027999999999999997,"d":"2.80%"}}]
[null,"#73",54,2026,"H","A_VIE",{"v":0.44999999999999996,"d":"0.45"},{"v":0.38999999999999996,"d":"0.39"},0.6,0.6,85,0,{"$f":"ROUND(Primes!$N$4*V2168,0)","v":67},{"$f":"'BP Financier'!$D$33*(('BP Financier'!$C$16+'BP Financier'!$D$16)/('BP Financier'!$C$16+'BP Financier'!$C$19+'BP Financier'!$D$16+'BP Financier'!$D$19))*V2168","v":{"v":1911055.8885105627,"d":"1,911,056"}},{"v":1059546.0517723872,"d":"1,059,546"},{"$f":"'BP Financier'!$D$44*(('BP Financier'!$C$16+'BP Financier'!$D$16)/('BP Financier'!$C$16+'BP Financier'!$C$19+'BP Financier'!$D$16+'BP Financier'!$D$19+'BP Financier'!$C$22+'BP Financier'!$D$22))*$V2168*X2168/(1-$W2168)","v":{"v":134864.8631299593,"d":"134,865"}},{"$f":"'BP Financier'!$D$44*(('BP Financier'!$C$16+'BP Financier'!$D$16)/('BP Financier'!$C$16+'BP Financier'!$C$19+'BP Financier'!$D$16+'BP Financier'!$D$19+'BP Financier'!$C$22+'BP Financier'!$D$22))*$V2168*Y2168/(1-$W2168)","v":{"v":90158.27866698935,"d":"90,158"}},{"$f":"'BP Financier'!$D$44*(('BP Financier'!$C$16+'BP Financier'!$D$16)/('BP Financier'!$C$16+'BP Financier'!$C$19+'BP Financier'!$D$16+'BP Financier'!$D$19+'BP Financier'!$C$22+'BP Financier'!$D$22))*$V2168*Z2168/(1-$W2168)","v":{"v":705618.9247738754,"d":"705,619"}},{"$f":"'BP Financier'!$D$44*(('BP Financier'!$C$16+'BP Financier'!$D$16)/('BP Financier'!$C$16+'BP Financier'!$C$19+'BP Financier'!$D$16+'BP Financier'!$D$19+'BP Financier'!$C$22+'BP Financier'!$D$22))*$V2168*AA2168/(1-$W2168)","v":{"v":87177.83970279136,"d":"87,178"}},{"$f":"'BP Financier'!$D$44*(('BP Financier'!$C$16+'BP Financier'!$D$16)/('BP Financier'!$C$16+'BP Financier'!$C$19+'BP Financier'!$D$16+'BP Financier'!$D$19+'BP Financier'!$C$22+'BP Financier'!$D$22))*$V2168*AB2168/(1-$W2168)","v":{"v":41726.145498771926,"d":"41,726"}},null,{"v":0.015,"d":"1.50%"},{"$f":"Actif!$E$28/100","v":{"v":0.28900000000000003,"d":"28.90%"}},{"$f":"Actif!$E$30/100","v":{"v":0.09050000000000001,"d":"9.05%"}},{"$f":"Actif!$E$31/100","v":{"v":0.0605,"d":"6.05%"}},{"$f":"Actif!$E$32/100","v":{"v":0.47350000000000003,"d":"47.35%"}},{"$f":"Actif!$E$33/100","v":{"v":0.0585,"d":"5.85%"}},{"$f":"Actif!$E$29/100","v":{"v":0.027999999999999997,"d":"2.80%"}}]
[null,"#74",54,2028,"H","A_VIE",{"v":0.44999999999999996,"d":"0.45"},{"v":0.38999999999999996,"d":"0.39"},0.6,0.6,85,0,{"$f":"ROUND(Primes!$N$4*V2169,0)","v":67},{"$f":"'BP Financier'!$D$33*(('BP Financier'!$C$16+'BP Financier'!$D$16)/('BP Financier'!$C$16+'BP Financier'!$C$19+'BP Financier'!$D$16+'BP Financier'!$D$19))*V2169","v":{"v":1911055.8885105627,"d":"1,911,056"}},{"v":1059546.0517723872,"d":"1,059,546"},{"$f":"'BP Financier'!$D$44*(('BP Financier'!$C$16+'BP Financier'!$D$16)/('BP Financier'!$C$16+'BP Financier'!$C$19+'BP Financier'!$D$16+'BP Financier'!$D$19+'BP Financier'!$C$22+'BP Financier'!$D$22))*$V2169*X2169/(1-$W2169)","v":{"v":134864.8631299593,"d":"134,865"}},{"$f":"'BP Financier'!$D$44*(('BP Financier'!$C$16+'BP Financier'!$D$16)/('BP Financier'!$C$16+'BP Financier'!$C$19+'BP Financier'!$D$16+'BP Financier'!$D$19+'BP Financier'!$C$22+'BP Financier'!$D$22))*$V2169*Y2169/(1-$W2169)","v":{"v":90158.27866698935,"d":"90,158"}},{"$f":"'BP Financier'!$D$44*(('BP Financier'!$C$16+'BP Financier'!$D$16)/('BP Financier'!$C$16+'BP Financier'!$C$19+'BP Financier'!$D$16+'BP Financier'!$D$19+'BP Financier'!$C$22+'BP Financier'!$D$22))*$V2169*Z2169/(1-$W2169)","v":{"v":705618.9247738754,"d":"705,619"}},{"$f":"'BP Financier'!$D$44*(('BP Financier'!$C$16+'BP Financier'!$D$16)/('BP Financier'!$C$16+'BP Financier'!$C$19+'BP Financier'!$D$16+'BP Financier'!$D$19+'BP Financier'!$C$22+'BP Financier'!$D$22))*$V2169*AA2169/(1-$W2169)","v":{"v":87177.83970279136,"d":"87,178"}},{"$f":"'BP Financier'!$D$44*(('BP Financier'!$C$16+'BP Financier'!$D$16)/('BP Financier'!$C$16+'BP Financier'!$C$19+'BP Financier'!$D$16+'BP Financier'!$D$19+'BP Financier'!$C$22+'BP Financier'!$D$22))*$V2169*AB2169/(1-$W2169)","v":{"v":41726.145498771926,"d":"41,726"}},null,{"v":0.015,"d":"1.50%"},{"$f":"Actif!$E$28/100","v":{"v":0.28900000000000003,"d":"28.90%"}},{"$f":"Actif!$E$30/100","v":{"v":0.09050000000000001,"d":"9.05%"}},{"$f":"Actif!$E$31/100","v":{"v":0.0605,"d":"6.05%"}},{"$f":"Actif!$E$32/100","v":{"v":0.47350000000000003,"d":"47.35%"}},{"$f":"Actif!$E$33/100","v":{"v":0.0585,"d":"5.85%"}},{"$f":"Actif!$E$29/100","v":{"v":0.027999999999999997,"d":"2.80%"}}]
[null,"#75",55,2026,"H","A_VIE",{"v":0.44999999999999996,"d":"0.45"},{"v":0.38999999999999996,"d":"0.39"},0.6,0.6,85,0,{"$f":"ROUND(Primes!$N$4*V2170,0)","v":67},{"$f":"'BP Financier'!$D$33*(('BP Financier'!$C$16+'BP Financier'!$D$16)/('BP Financier'!$C$16+'BP Financier'!$C$19+'BP Financier'!$D$16+'BP Financier'!$D$19))*V2170","v":{"v":1911055.8885105627,"d":"1,911,056"}},{"v":1059546.0517723872,"d":"1,059,546"},{"$f":"'BP Financier'!$D$44*(('BP Financier'!$C$16+'BP Financier'!$D$16)/('BP Financier'!$C$16+'BP Financier'!$C$19+'BP Financier'!$D$16+'BP Financier'!$D$19+'BP Financier'!$C$22+'BP Financier'!$D$22))*$V2170*X2170/(1-$W2170)","v":{"v":134864.8631299593,"d":"134,865"}},{"$f":"'BP Financier'!$D$44*(('BP Financier'!$C$16+'BP Financier'!$D$16)/('BP Financier'!$C$16+'BP Financier'!$C$19+'BP Financier'!$D$16+'BP Financier'!$D$19+'BP Financier'!$C$22+'BP Financier'!$D$22))*$V2170*Y2170/(1-$W2170)","v":{"v":90158.27866698935,"d":"90,158"}},{"$f":"'BP Financier'!$D$44*(('BP Financier'!$C$16+'BP Financier'!$D$16)/('BP Financier'!$C$16+'BP Financier'!$C$19+'BP Financier'!$D$16+'BP Financier'!$D$19+'BP Financier'!$C$22+'BP Financier'!$D$22))*$V2170*Z2170/(1-$W2170)","v":{"v":705618.9247738754,"d":"705,619"}},{"$f":"'BP Financier'!$D$44*(('BP Financier'!$C$16+'BP Financier'!$D$16)/('BP Financier'!$C$16+'BP Financier'!$C$19+'BP Financier'!$D$16+'BP Financier'!$D$19+'BP Financier'!$C$22+'BP Financier'!$D$22))*$V2170*AA2170/(1-$W2170)","v":{"v":87177.83970279136,"d":"87,178"}},{"$f":"'BP Financier'!$D$44*(('BP Financier'!$C$16+'BP Financier'!$D$16)/('BP Financier'!$C$16+'BP Financier'!$C$19+'BP Financier'!$D$16+'BP Financier'!$D$19+'BP Financier'!$C$22+'BP Financier'!$D$22))*$V2170*AB2170/(1-$W2170)","v":{"v":41726.145498771926,"d":"41,726"}},null,{"v":0.015,"d":"1.50%"},{"$f":"Actif!$E$28/100","v":{"v":0.28900000000000003,"d":"28.90%"}},{"$f":"Actif!$E$30/100","v":{"v":0.09050000000000001,"d":"9.05%"}},{"$f":"Actif!$E$31/100","v":{"v":0.0605,"d":"6.05%"}},{"$f":"Actif!$E$32/100","v":{"v":0.47350000000000003,"d":"47.35%"}},{"$f":"Actif!$E$33/100","v":{"v":0.0585,"d":"5.85%"}},{"$f":"Actif!$E$29/100","v":{"v":0.027999999999999997,"d":"2.80%"}}]
[null,"#76",55,2028,"H","A_VIE",{"v":0.44999999999999996,"d":"0.45"},{"v":0.38999999999999996,"d":"0.39"},0.6,0.6,85,0,{"$f":"ROUND(Primes!$N$4*V2171,0)","v":67},{"$f":"'BP Financier'!$D$33*(('BP Financier'!$C$16+'BP Financier'!$D$16)/('BP Financier'!$C$16+'BP Financier'!$C$19+'BP Financier'!$D$16+'BP Financier'!$D$19))*V2171","v":{"v":1911055.8885105627,"d":"1,911,056"}},{"v":1059546.0517723872,"d":"1,059,546"},{"$f":"'BP Financier'!$D$44*(('BP Financier'!$C$16+'BP Financier'!$D$16)/('BP Financier'!$C$16+'BP Financier'!$C$19+'BP Financier'!$D$16+'BP Financier'!$D$19+'BP Financier'!$C$22+'BP Financier'!$D$22))*$V2171*X2171/(1-$W2171)","v":{"v":134864.8631299593,"d":"134,865"}},{"$f":"'BP Financier'!$D$44*(('BP Financier'!$C$16+'BP Financier'!$D$16)/('BP Financier'!$C$16+'BP Financier'!$C$19+'BP Financier'!$D$16+'BP Financier'!$D$19+'BP Financier'!$C$22+'BP Financier'!$D$22))*$V2171*Y2171/(1-$W2171)","v":{"v":90158.27866698935,"d":"90,158"}},{"$f":"'BP Financier'!$D$44*(('BP Financier'!$C$16+'BP Financier'!$D$16)/('BP Financier'!$C$16+'BP Financier'!$C$19+'BP Financier'!$D$16+'BP Financier'!$D$19+'BP Financier'!$C$22+'BP Financier'!$D$22))*$V2171*Z2171/(1-$W2171)","v":{"v":705618.9247738754,"d":"705,619"}},{"$f":"'BP Financier'!$D$44*(('BP Financier'!$C$16+'BP Financier'!$D$16)/('BP Financier'!$C$16+'BP Financier'!$C$19+'BP Financier'!$D$16+'BP Financier'!$D$19+'BP Financier'!$C$22+'BP Financier'!$D$22))*$V2171*AA2171/(1-$W2171)","v":{"v":87177.83970279136,"d":"87,178"}},{"$f":"'BP Financier'!$D$44*(('BP Financier'!$C$16+'BP Financier'!$D$16)/('BP Financier'!$C$16+'BP Financier'!$C$19+'BP Financier'!$D$16+'BP Financier'!$D$19+'BP Financier'!$C$22+'BP Financier'!$D$22))*$V2171*AB2171/(1-$W2171)","v":{"v":41726.145498771926,"d":"41,726"}},null,{"v":0.015,"d":"1.50%"},{"$f":"Actif!$E$28/100","v":{"v":0.28900000000000003,"d":"28.90%"}},{"$f":"Actif!$E$30/100","v":{"v":0.09050000000000001,"d":"9.05%"}},{"$f":"Actif!$E$31/100","v":{"v":0.0605,"d":"6.05%"}},{"$f":"Actif!$E$32/100","v":{"v":0.47350000000000003,"d":"47.35%"}},{"$f":"Actif!$E$33/100","v":{"v":0.0585,"d":"5.85%"}},{"$f":"Actif!$E$29/100","v":{"v":0.027999999999999997,"d":"2.80%"}}]
[null,"#77",56,2026,"F","A_VIE",{"v":0.44999999999999996,"d":"0.45"},{"v":0.38999999999999996,"d":"0.39"},0.6,0.6,85,0,{"$f":"ROUND(Primes!$N$4*V2172,0)","v":67},{"$f":"'BP Financier'!$D$33*(('BP Financier'!$C$16+'BP Financier'!$D$16)/('BP Financier'!$C$16+'BP Financier'!$C$19+'BP Financier'!$D$16+'BP Financier'!$D$19))*V2172","v":{"v":1911055.8885105627,"d":"1,911,056"}},{"v":1059546.0517723872,"d":"1,059,546"},{"$f":"'BP Financier'!$D$44*(('BP Financier'!$C$16+'BP Financier'!$D$16)/('BP Financier'!$C$16+'BP Financier'!$C$19+'BP Financier'!$D$16+'BP Financier'!$D$19+'BP Financier'!$C$22+'BP Financier'!$D$22))*$V2172*X2172/(1-$W2172)","v":{"v":134864.8631299593,"d":"134,865"}},{"$f":"'BP Financier'!$D$44*(('BP Financier'!$C$16+'BP Financier'!$D$16)/('BP Financier'!$C$16+'BP Financier'!$C$19+'BP Financier'!$D$16+'BP Financier'!$D$19+'BP Financier'!$C$22+'BP Financier'!$D$22))*$V2172*Y2172/(1-$W2172)","v":{"v":90158.27866698935,"d":"90,158"}},{"$f":"'BP Financier'!$D$44*(('BP Financier'!$C$16+'BP Financier'!$D$16)/('BP Financier'!$C$16+'BP Financier'!$C$19+'BP Financier'!$D$16+'BP Financier'!$D$19+'BP Financier'!$C$22+'BP Financier'!$D$22))*$V2172*Z2172/(1-$W2172)","v":{"v":705618.9247738754,"d":"705,619"}},{"$f":"'BP Financier'!$D$44*(('BP Financier'!$C$16+'BP Financier'!$D$16)/('BP Financier'!$C$16+'BP Financier'!$C$19+'BP Financier'!$D$16+'BP Financier'!$D$19+'BP Financier'!$C$22+'BP Financier'!$D$22))*$V2172*AA2172/(1-$W2172)","v":{"v":87177.83970279136,"d":"87,178"}},{"$f":"'BP Financier'!$D$44*(('BP Financier'!$C$16+'BP Financier'!$D$16)/('BP Financier'!$C$16+'BP Financier'!$C$19+'BP Financier'!$D$16+'BP Financier'!$D$19+'BP Financier'!$C$22+'BP Financier'!$D$22))*$V2172*AB2172/(1-$W2172)","v":{"v":41726.145498771926,"d":"41,726"}},null,{"v":0.015,"d":"1.50%"},{"$f":"Actif!$E$28/100","v":{"v":0.28900000000000003,"d":"28.90%"}},{"$f":"Actif!$E$30/100","v":{"v":0.09050000000000001,"d":"9.05%"}},{"$f":"Actif!$E$31/100","v":{"v":0.0605,"d":"6.05%"}},{"$f":"Actif!$E$32/100","v":{"v":0.47350000000000003,"d":"47.35%"}},{"$f":"Actif!$E$33/100","v":{"v":0.0585,"d":"5.85%"}},{"$f":"Actif!$E$29/100","v":{"v":0.027999999999999997,"d":"2.80%"}}]
[null,"#78",56,2028,"F","A_VIE",{"v":0.44999999999999996,"d":"0.45"},{"v":0.38999999999999996,"d":"0.39"},0.6,0.6,85,0,{"$f":"ROUND(Primes!$N$4*V2173,0)","v":67},{"$f":"'BP Financier'!$D$33*(('BP Financier'!$C$16+'BP Financier'!$D$16)/('BP Financier'!$C$16+'BP Financier'!$C$19+'BP Financier'!$D$16+'BP Financier'!$D$19))*V2173","v":{"v":1911055.8885105627,"d":"1,911,056"}},{"v":1059546.0517723872,"d":"1,059,546"},{"$f":"'BP Financier'!$D$44*(('BP Financier'!$C$16+'BP Financier'!$D$16)/('BP Financier'!$C$16+'BP Financier'!$C$19+'BP Financier'!$D$16+'BP Financier'!$D$19+'BP Financier'!$C$22+'BP Financier'!$D$22))*$V2173*X2173/(1-$W2173)","v":{"v":134864.8631299593,"d":"134,865"}},{"$f":"'BP Financier'!$D$44*(('BP Financier'!$C$16+'BP Financier'!$D$16)/('BP Financier'!$C$16+'BP Financier'!$C$19+'BP Financier'!$D$16+'BP Financier'!$D$19+'BP Financier'!$C$22+'BP Financier'!$D$22))*$V2173*Y2173/(1-$W2173)","v":{"v":90158.27866698935,"d":"90,158"}},{"$f":"'BP Financier'!$D$44*(('BP Financier'!$C$16+'BP Financier'!$D$16)/('BP Financier'!$C$16+'BP Financier'!$C$19+'BP Financier'!$D$16+'BP Financier'!$D$19+'BP Financier'!$C$22+'BP Financier'!$D$22))*$V2173*Z2173/(1-$W2173)","v":{"v":705618.9247738754,"d":"705,619"}},{"$f":"'BP Financier'!$D$44*(('BP Financier'!$C$16+'BP Financier'!$D$16)/('BP Financier'!$C$16+'BP Financier'!$C$19+'BP Financier'!$D$16+'BP Financier'!$D$19+'BP Financier'!$C$22+'BP Financier'!$D$22))*$V2173*AA2173/(1-$W2173)","v":{"v":87177.83970279136,"d":"87,178"}},{"$f":"'BP Financier'!$D$44*(('BP Financier'!$C$16+'BP Financier'!$D$16)/('BP Financier'!$C$16+'BP Financier'!$C$19+'BP Financier'!$D$16+'BP Financier'!$D$19+'BP Financier'!$C$22+'BP Financier'!$D$22))*$V2173*AB2173/(1-$W2173)","v":{"v":41726.145498771926,"d":"41,726"}},null,{"v":0.015,"d":"1.50%"},{"$f":"Actif!$E$28/100","v":{"v":0.28900000000000003,"d":"28.90%"}},{"$f":"Actif!$E$30/100","v":{"v":0.09050000000000001,"d":"9.05%"}},{"$f":"Actif!$E$31/100","v":{"v":0.0605,"d":"6.05%"}},{"$f":"Actif!$E$32/100","v":{"v":0.47350000000000003,"d":"47.35%"}},{"$f":"Actif!$E$33/100","v":{"v":0.0585,"d":"5.85%"}},{"$f":"Actif!$E$29/100","v":{"v":0.027999999999999997,"d":"2.80%"}}]
[null,"#79",57,2026,"H","A_VIE",{"v":0.44999999999999996,"d":"0.45"},{"v":0.38999999999999996,"d":"0.39"},0.6,0.6,85,0,{"$f":"ROUND(Primes!$N$4*V2174,0)","v":67},{"$f":"'BP Financier'!$D$33*(('BP Financier'!$C$16+'BP Financier'!$D$16)/('BP Financier'!$C$16+'BP Financier'!$C$19+'BP Financier'!$D$16+'BP Financier'!$D$19))*V2174","v":{"v":1911055.8885105627,"d":"1,911,056"}},{"v":1059546.0517723872,"d":"1,059,546"},{"$f":"'BP Financier'!$D$44*(('BP Financier'!$C$16+'BP Financier'!$D$16)/('BP Financier'!$C$16+'BP Financier'!$C$19+'BP Financier'!$D$16+'BP Financier'!$D$19+'BP Financier'!$C$22+'BP Financier'!$D$22))*$V2174*X2174/(1-$W2174)","v":{"v":134864.8631299593,"d":"134,865"}},{"$f":"'BP Financier'!$D$44*(('BP Financier'!$C$16+'BP Financier'!$D$16)/('BP Financier'!$C$16+'BP Financier'!$C$19+'BP Financier'!$D$16+'BP Financier'!$D$19+'BP Financier'!$C$22+'BP Financier'!$D$22))*$V2174*Y2174/(1-$W2174)","v":{"v":90158.27866698935,"d":"90,158"}},{"$f":"'BP Financier'!$D$44*(('BP Financier'!$C$16+'BP Financier'!$D$16)/('BP Financier'!$C$16+'BP Financier'!$C$19+'BP Financier'!$D$16+'BP Financier'!$D$19+'BP Financier'!$C$22+'BP Financier'!$D$22))*$V2174*Z2174/(1-$W2174)","v":{"v":705618.9247738754,"d":"705,619"}},{"$f":"'BP Financier'!$D$44*(('BP Financier'!$C$16+'BP Financier'!$D$16)/('BP Financier'!$C$16+'BP Financier'!$C$19+'BP Financier'!$D$16+'BP Financier'!$D$19+'BP Financier'!$C$22+'BP Financier'!$D$22))*$V2174*AA2174/(1-$W2174)","v":{"v":87177.83970279136,"d":"87,178"}},{"$f":"'BP Financier'!$D$44*(('BP Financier'!$C$16+'BP Financier'!$D$16)/('BP Financier'!$C$16+'BP Financier'!$C$19+'BP Financier'!$D$16+'BP Financier'!$D$19+'BP Financier'!$C$22+'BP Financier'!$D$22))*$V2174*AB2174/(1-$W2174)","v":{"v":41726.145498771926,"d":"41,726"}},null,{"v":0.015,"d":"1.50%"},{"$f":"Actif!$E$28/100","v":{"v":0.28900000000000003,"d":"28.90%"}},{"$f":"Actif!$E$30/100","v":{"v":0.09050000000000001,"d":"9.05%"}},{"$f":"Actif!$E$31/100","v":{"v":0.0605,"d":"6.05%"}},{"$f":"Actif!$E$32/100","v":{"v":0.47350000000000003,"d":"47.35%"}},{"$f":"Actif!$E$33/100","v":{"v":0.0585,"d":"5.85%"}},{"$f":"Actif!$E$29/100","v":{"v":0.027999999999999997,"d":"2.80%"}}]
[null,"#80",57,2028,"H","A_VIE",{"v":0.44999999999999996,"d":"0.45"},{"v":0.38999999999999996,"d":"0.39"},0.6,0.6,85,0,{"$f":"ROUND(Primes!$N$4*V2175,0)","v":67},{"$f":"'BP Financier'!$D$33*(('BP Financier'!$C$16+'BP Financier'!$D$16)/('BP Financier'!$C$16+'BP Financier'!$C$19+'BP Financier'!$D$16+'BP Financier'!$D$19))*V2175","v":{"v":1911055.8885105627,"d":"1,911,056"}},{"v":1059546.0517723872,"d":"1,059,546"},{"$f":"'BP Financier'!$D$44*(('BP Financier'!$C$16+'BP Financier'!$D$16)/('BP Financier'!$C$16+'BP Financier'!$C$19+'BP Financier'!$D$16+'BP Financier'!$D$19+'BP Financier'!$C$22+'BP Financier'!$D$22))*$V2175*X2175/(1-$W2175)","v":{"v":134864.8631299593,"d":"134,865"}},{"$f":"'BP Financier'!$D$44*(('BP Financier'!$C$16+'BP Financier'!$D$16)/('BP Financier'!$C$16+'BP Financier'!$C$19+'BP Financier'!$D$16+'BP Financier'!$D$19+'BP Financier'!$C$22+'BP Financier'!$D$22))*$V2175*Y2175/(1-$W2175)","v":{"v":90158.27866698935,"d":"90,158"}},{"$f":"'BP Financier'!$D$44*(('BP Financier'!$C$16+'BP Financier'!$D$16)/('BP Financier'!$C$16+'BP Financier'!$C$19+'BP Financier'!$D$16+'BP Financier'!$D$19+'BP Financier'!$C$22+'BP Financier'!$D$22))*$V2175*Z2175/(1-$W2175)","v":{"v":705618.9247738754,"d":"705,619"}},{"$f":"'BP Financier'!$D$44*(('BP Financier'!$C$16+'BP Financier'!$D$16)/('BP Financier'!$C$16+'BP Financier'!$C$19+'BP Financier'!$D$16+'BP Financier'!$D$19+'BP Financier'!$C$22+'BP Financier'!$D$22))*$V2175*AA2175/(1-$W2175)","v":{"v":87177.83970279136,"d":"87,178"}},{"$f":"'BP Financier'!$D$44*(('BP Financier'!$C$16+'BP Financier'!$D$16)/('BP Financier'!$C$16+'BP Financier'!$C$19+'BP Financier'!$D$16+'BP Financier'!$D$19+'BP Financier'!$C$22+'BP Financier'!$D$22))*$V2175*AB2175/(1-$W2175)","v":{"v":41726.145498771926,"d":"41,726"}},null,{"v":0.015,"d":"1.50%"},{"$f":"Actif!$E$28/100","v":{"v":0.28900000000000003,"d":"28.90%"}},{"$f":"Actif!$E$30/100","v":{"v":0.09050000000000001,"d":"9.05%"}},{"$f":"Actif!$E$31/100","v":{"v":0.0605,"d":"6.05%"}},{"$f":"Actif!$E$32/100","v":{"v":0.47350000000000003,"d":"47.35%"}},{"$f":"Actif!$E$33/100","v":{"v":0.0585,"d":"5.85%"}},{"$f":"Actif!$E$29/100","v":{"v":0.027999999999999997,"d":"2.80%"}}]
[null,"#81",58,2026,"H","A_VIE",{"v":0.44999999999999996,"d":"0.45"},{"v":0.38999999999999996,"d":"0.39"},0.6,0.6,85,0,{"$f":"ROUND(Primes!$N$4*V2176,0)","v":67},{"$f":"'BP Financier'!$D$33*(('BP Financier'!$C$16+'BP Financier'!$D$16)/('BP Financier'!$C$16+'BP Financier'!$C$19+'BP Financier'!$D$16+'BP Financier'!$D$19))*V2176","v":{"v":1911055.8885105627,"d":"1,911,056"}},{"v":1059546.0517723872,"d":"1,059,546"},{"$f":"'BP Financier'!$D$44*(('BP Financier'!$C$16+'BP Financier'!$D$16)/('BP Financier'!$C$16+'BP Financier'!$C$19+'BP Financier'!$D$16+'BP Financier'!$D$19+'BP Financier'!$C$22+'BP Financier'!$D$22))*$V2176*X2176/(1-$W2176)","v":{"v":134864.8631299593,"d":"134,865"}},{"$f":"'BP Financier'!$D$44*(('BP Financier'!$C$16+'BP Financier'!$D$16)/('BP Financier'!$C$16+'BP Financier'!$C$19+'BP Financier'!$D$16+'BP Financier'!$D$19+'BP Financier'!$C$22+'BP Financier'!$D$22))*$V2176*Y2176/(1-$W2176)","v":{"v":90158.27866698935,"d":"90,158"}},{"$f":"'BP Financier'!$D$44*(('BP Financier'!$C$16+'BP Financier'!$D$16)/('BP Financier'!$C$16+'BP Financier'!$C$19+'BP Financier'!$D$16+'BP Financier'!$D$19+'BP Financier'!$C$22+'BP Financier'!$D$22))*$V2176*Z2176/(1-$W2176)","v":{"v":705618.9247738754,"d":"705,619"}},{"$f":"'BP Financier'!$D$44*(('BP Financier'!$C$16+'BP Financier'!$D$16)/('BP Financier'!$C$16+'BP Financier'!$C$19+'BP Financier'!$D$16+'BP Financier'!$D$19+'BP Financier'!$C$22+'BP Financier'!$D$22))*$V2176*AA2176/(1-$W2176)","v":{"v":87177.83970279136,"d":"87,178"}},{"$f":"'BP Financier'!$D$44*(('BP Financier'!$C$16+'BP Financier'!$D$16)/('BP Financier'!$C$16+'BP Financier'!$C$19+'BP Financier'!$D$16+'BP Financier'!$D$19+'BP Financier'!$C$22+'BP Financier'!$D$22))*$V2176*AB2176/(1-$W2176)","v":{"v":41726.145498771926,"d":"41,726"}},null,{"v":0.015,"d":"1.50%"},{"$f":"Actif!$E$28/100","v":{"v":0.28900000000000003,"d":"28.90%"}},{"$f":"Actif!$E$30/100","v":{"v":0.09050000000000001,"d":"9.05%"}},{"$f":"Actif!$E$31/100","v":{"v":0.0605,"d":"6.05%"}},{"$f":"Actif!$E$32/100","v":{"v":0.47350000000000003,"d":"47.35%"}},{"$f":"Actif!$E$33/100","v":{"v":0.0585,"d":"5.85%"}},{"$f":"Actif!$E$29/100","v":{"v":0.027999999999999997,"d":"2.80%"}}]
[null,"#82",58,2028,"H","A_VIE",{"v":0.44999999999999996,"d":"0.45"},{"v":0.38999999999999996,"d":"0.39"},0.6,0.6,85,0,{"$f":"ROUND(Primes!$N$4*V2177,0)","v":67},{"$f":"'BP Financier'!$D$33*(('BP Financier'!$C$16+'BP Financier'!$D$16)/('BP Financier'!$C$16+'BP Financier'!$C$19+'BP Financier'!$D$16+'BP Financier'!$D$19))*V2177","v":{"v":1911055.8885105627,"d":"1,911,056"}},{"v":1059546.0517723872,"d":"1,059,546"},{"$f":"'BP Financier'!$D$44*(('BP Financier'!$C$16+'BP Financier'!$D$16)/('BP Financier'!$C$16+'BP Financier'!$C$19+'BP Financier'!$D$16+'BP Financier'!$D$19+'BP Financier'!$C$22+'BP Financier'!$D$22))*$V2177*X2177/(1-$W2177)","v":{"v":134864.8631299593,"d":"134,865"}},{"$f":"'BP Financier'!$D$44*(('BP Financier'!$C$16+'BP Financier'!$D$16)/('BP Financier'!$C$16+'BP Financier'!$C$19+'BP Financier'!$D$16+'BP Financier'!$D$19+'BP Financier'!$C$22+'BP Financier'!$D$22))*$V2177*Y2177/(1-$W2177)","v":{"v":90158.27866698935,"d":"90,158"}},{"$f":"'BP Financier'!$D$44*(('BP Financier'!$C$16+'BP Financier'!$D$16)/('BP Financier'!$C$16+'BP Financier'!$C$19+'BP Financier'!$D$16+'BP Financier'!$D$19+'BP Financier'!$C$22+'BP Financier'!$D$22))*$V2177*Z2177/(1-$W2177)","v":{"v":705618.9247738754,"d":"705,619"}},{"$f":"'BP Financier'!$D$44*(('BP Financier'!$C$16+'BP Financier'!$D$16)/('BP Financier'!$C$16+'BP Financier'!$C$19+'BP Financier'!$D$16+'BP Financier'!$D$19+'BP Financier'!$C$22+'BP Financier'!$D$22))*$V2177*AA2177/(1-$W2177)","v":{"v":87177.83970279136,"d":"87,178"}},{"$f":"'BP Financier'!$D$44*(('BP Financier'!$C$16+'BP Financier'!$D$16)/('BP Financier'!$C$16+'BP Financier'!$C$19+'BP Financier'!$D$16+'BP Financier'!$D$19+'BP Financier'!$C$22+'BP Financier'!$D$22))*$V2177*AB2177/(1-$W2177)","v":{"v":41726.145498771926,"d":"41,726"}},null,{"v":0.015,"d":"1.50%"},{"$f":"Actif!$E$28/100","v":{"v":0.28900000000000003,"d":"28.90%"}},{"$f":"Actif!$E$30/100","v":{"v":0.09050000000000001,"d":"9.05%"}},{"$f":"Actif!$E$31/100","v":{"v":0.0605,"d":"6.05%"}},{"$f":"Actif!$E$32/100","v":{"v":0.47350000000000003,"d":"47.35%"}},{"$f":"Actif!$E$33/100","v":{"v":0.0585,"d":"5.85%"}},{"$f":"Actif!$E$29/100","v":{"v":0.027999999999999997,"d":"2.80%"}}]
[null,"#83",59,2026,"F","A_VIE",{"v":0.44999999999999996,"d":"0.45"},{"v":0.38999999999999996,"d":"0.39"},0.6,0.6,85,0,{"$f":"ROUND(Primes!$N$4*V2178,0)","v":67},{"$f":"'BP Financier'!$D$33*(('BP Financier'!$C$16+'BP Financier'!$D$16)/('BP Financier'!$C$16+'BP Financier'!$C$19+'BP Financier'!$D$16+'BP Financier'!$D$19))*V2178","v":{"v":1911055.8885105627,"d":"1,911,056"}},{"v":1059546.0517723872,"d":"1,059,546"},{"$f":"'BP Financier'!$D$44*(('BP Financier'!$C$16+'BP Financier'!$D$16)/('BP Financier'!$C$16+'BP Financier'!$C$19+'BP Financier'!$D$16+'BP Financier'!$D$19+'BP Financier'!$C$22+'BP Financier'!$D$22))*$V2178*X2178/(1-$W2178)","v":{"v":134864.8631299593,"d":"134,865"}},{"$f":"'BP Financier'!$D$44*(('BP Financier'!$C$16+'BP Financier'!$D$16)/('BP Financier'!$C$16+'BP Financier'!$C$19+'BP Financier'!$D$16+'BP Financier'!$D$19+'BP Financier'!$C$22+'BP Financier'!$D$22))*$V2178*Y2178/(1-$W2178)","v":{"v":90158.27866698935,"d":"90,158"}},{"$f":"'BP Financier'!$D$44*(('BP Financier'!$C$16+'BP Financier'!$D$16)/('BP Financier'!$C$16+'BP Financier'!$C$19+'BP Financier'!$D$16+'BP Financier'!$D$19+'BP Financier'!$C$22+'BP Financier'!$D$22))*$V2178*Z2178/(1-$W2178)","v":{"v":705618.9247738754,"d":"705,619"}},{"$f":"'BP Financier'!$D$44*(('BP Financier'!$C$16+'BP Financier'!$D$16)/('BP Financier'!$C$16+'BP Financier'!$C$19+'BP Financier'!$D$16+'BP Financier'!$D$19+'BP Financier'!$C$22+'BP Financier'!$D$22))*$V2178*AA2178/(1-$W2178)","v":{"v":87177.83970279136,"d":"87,178"}},{"$f":"'BP Financier'!$D$44*(('BP Financier'!$C$16+'BP Financier'!$D$16)/('BP Financier'!$C$16+'BP Financier'!$C$19+'BP Financier'!$D$16+'BP Financier'!$D$19+'BP Financier'!$C$22+'BP Financier'!$D$22))*$V2178*AB2178/(1-$W2178)","v":{"v":41726.145498771926,"d":"41,726"}},null,{"v":0.015,"d":"1.50%"},{"$f":"Actif!$E$28/100","v":{"v":0.28900000000000003,"d":"28.90%"}},{"$f":"Actif!$E$30/100","v":{"v":0.09050000000000001,"d":"9.05%"}},{"$f":"Actif!$E$31/100","v":{"v":0.0605,"d":"6.05%"}},{"$f":"Actif!$E$32/100","v":{"v":0.47350000000000003,"d":"47.35%"}},{"$f":"Actif!$E$33/100","v":{"v":0.0585,"d":"5.85%"}},{"$f":"Actif!$E$29/100","v":{"v":0.027999999999999997,"d":"2.80%"}}]
[null,"#84",59,2028,"F","A_VIE",{"v":0.44999999999999996,"d":"0.45"},{"v":0.38999999999999996,"d":"0.39"},0.6,0.6,85,0,{"$f":"ROUND(Primes!$N$4*V2179,0)","v":67},{"$f":"'BP Financier'!$D$33*(('BP Financier'!$C$16+'BP Financier'!$D$16)/('BP Financier'!$C$16+'BP Financier'!$C$19+'BP Financier'!$D$16+'BP Financier'!$D$19))*V2179","v":{"v":1911055.8885105627,"d":"1,911,056"}},{"v":1059546.0517723872,"d":"1,059,546"},{"$f":"'BP Financier'!$D$44*(('BP Financier'!$C$16+'BP Financier'!$D$16)/('BP Financier'!$C$16+'BP Financier'!$C$19+'BP Financier'!$D$16+'BP Financier'!$D$19+'BP Financier'!$C$22+'BP Financier'!$D$22))*$V2179*X2179/(1-$W2179)","v":{"v":134864.8631299593,"d":"134,865"}},{"$f":"'BP Financier'!$D$44*(('BP Financier'!$C$16+'BP Financier'!$D$16)/('BP Financier'!$C$16+'BP Financier'!$C$19+'BP Financier'!$D$16+'BP Financier'!$D$19+'BP Financier'!$C$22+'BP Financier'!$D$22))*$V2179*Y2179/(1-$W2179)","v":{"v":90158.27866698935,"d":"90,158"}},{"$f":"'BP Financier'!$D$44*(('BP Financier'!$C$16+'BP Financier'!$D$16)/('BP Financier'!$C$16+'BP Financier'!$C$19+'BP Financier'!$D$16+'BP Financier'!$D$19+'BP Financier'!$C$22+'BP Financier'!$D$22))*$V2179*Z2179/(1-$W2179)","v":{"v":705618.9247738754,"d":"705,619"}},{"$f":"'BP Financier'!$D$44*(('BP Financier'!$C$16+'BP Financier'!$D$16)/('BP Financier'!$C$16+'BP Financier'!$C$19+'BP Financier'!$D$16+'BP Financier'!$D$19+'BP Financier'!$C$22+'BP Financier'!$D$22))*$V2179*AA2179/(1-$W2179)","v":{"v":87177.83970279136,"d":"87,178"}},{"$f":"'BP Financier'!$D$44*(('BP Financier'!$C$16+'BP Financier'!$D$16)/('BP Financier'!$C$16+'BP Financier'!$C$19+'BP Financier'!$D$16+'BP Financier'!$D$19+'BP Financier'!$C$22+'BP Financier'!$D$22))*$V2179*AB2179/(1-$W2179)","v":{"v":41726.145498771926,"d":"41,726"}},null,{"v":0.015,"d":"1.50%"},{"$f":"Actif!$E$28/100","v":{"v":0.28900000000000003,"d":"28.90%"}},{"$f":"Actif!$E$30/100","v":{"v":0.09050000000000001,"d":"9.05%"}},{"$f":"Actif!$E$31/100","v":{"v":0.0605,"d":"6.05%"}},{"$f":"Actif!$E$32/100","v":{"v":0.47350000000000003,"d":"47.35%"}},{"$f":"Actif!$E$33/100","v":{"v":0.0585,"d":"5.85%"}},{"$f":"Actif!$E$29/100","v":{"v":0.027999999999999997,"d":"2.80%"}}]
[null,"#85",60,2026,"H","A_VIE",{"v":0.44999999999999996,"d":"0.45"},{"v":0.38999999999999996,"d":"0.39"},0.6,0.6,85,0,{"$f":"ROUND(Primes!$N$4*V2180,0)","v":112},{"$f":"'BP Financier'!$D$33*(('BP Financier'!$C$16+'BP Financier'!$D$16)/('BP Financier'!$C$16+'BP Financier'!$C$19+'BP Financier'!$D$16+'BP Financier'!$D$19))*V2180","v":{"v":3185093.1475176048,"d":"3,185,093"}},{"v":1765910.0862873122,"d":"1,765,910"},{"$f":"'BP Financier'!$D$44*(('BP Financier'!$C$16+'BP Financier'!$D$16)/('BP Financier'!$C$16+'BP Financier'!$C$19+'BP Financier'!$D$16+'BP Financier'!$D$19+'BP Financier'!$C$22+'BP Financier'!$D$22))*$V2180*X2180/(1-$W2180)","v":{"v":224774.77188326552,"d":"224,775"}},{"$f":"'BP Financier'!$D$44*(('BP Financier'!$C$16+'BP Financier'!$D$16)/('BP Financier'!$C$16+'BP Financier'!$C$19+'BP Financier'!$D$16+'BP Financier'!$D$19+'BP Financier'!$C$22+'BP Financier'!$D$22))*$V2180*Y2180/(1-$W2180)","v":{"v":150263.79777831558,"d":"150,264"}},{"$f":"'BP Financier'!$D$44*(('BP Financier'!$C$16+'BP Financier'!$D$16)/('BP Financier'!$C$16+'BP Financier'!$C$19+'BP Financier'!$D$16+'BP Financier'!$D$19+'BP Financier'!$C$22+'BP Financier'!$D$22))*$V2180*Z2180/(1-$W2180)","v":{"v":1176031.5412897924,"d":"1,176,032"}},{"$f":"'BP Financier'!$D$44*(('BP Financier'!$C$16+'BP Financier'!$D$16)/('BP Financier'!$C$16+'BP Financier'!$C$19+'BP Financier'!$D$16+'BP Financier'!$D$19+'BP Financier'!$C$22+'BP Financier'!$D$22))*$V2180*AA2180/(1-$W2180)","v":{"v":145296.3995046523,"d":"145,296"}},{"$f":"'BP Financier'!$D$44*(('BP Financier'!$C$16+'BP Financier'!$D$16)/('BP Financier'!$C$16+'BP Financier'!$C$19+'BP Financier'!$D$16+'BP Financier'!$D$19+'BP Financier'!$C$22+'BP Financier'!$D$22))*$V2180*AB2180/(1-$W2180)","v":{"v":69543.57583128655,"d":"69,544"}},null,{"v":0.025,"d":"2.50%"},{"$f":"Actif!$E$28/100","v":{"v":0.28900000000000003,"d":"28.90%"}},{"$f":"Actif!$E$30/100","v":{"v":0.09050000000000001,"d":"9.05%"}},{"$f":"Actif!$E$31/100","v":{"v":0.0605,"d":"6.05%"}},{"$f":"Actif!$E$32/100","v":{"v":0.47350000000000003,"d":"47.35%"}},{"$f":"Actif!$E$33/100","v":{"v":0.0585,"d":"5.85%"}},{"$f":"Actif!$E$29/100","v":{"v":0.027999999999999997,"d":"2.80%"}}]
[null,"#86",60,2028,"H","A_VIE",{"v":0.44999999999999996,"d":"0.45"},{"v":0.38999999999999996,"d":"0.39"},0.6,0.6,85,0,{"$f":"ROUND(Primes!$N$4*V2181,0)","v":112},{"$f":"'BP Financier'!$D$33*(('BP Financier'!$C$16+'BP Financier'!$D$16)/('BP Financier'!$C$16+'BP Financier'!$C$19+'BP Financier'!$D$16+'BP Financier'!$D$19))*V2181","v":{"v":3185093.1475176048,"d":"3,185,093"}},{"v":1765910.0862873122,"d":"1,765,910"},{"$f":"'BP Financier'!$D$44*(('BP Financier'!$C$16+'BP Financier'!$D$16)/('BP Financier'!$C$16+'BP Financier'!$C$19+'BP Financier'!$D$16+'BP Financier'!$D$19+'BP Financier'!$C$22+'BP Financier'!$D$22))*$V2181*X2181/(1-$W2181)","v":{"v":224774.77188326552,"d":"224,775"}},{"$f":"'BP Financier'!$D$44*(('BP Financier'!$C$16+'BP Financier'!$D$16)/('BP Financier'!$C$16+'BP Financier'!$C$19+'BP Financier'!$D$16+'BP Financier'!$D$19+'BP Financier'!$C$22+'BP Financier'!$D$22))*$V2181*Y2181/(1-$W2181)","v":{"v":150263.79777831558,"d":"150,264"}},{"$f":"'BP Financier'!$D$44*(('BP Financier'!$C$16+'BP Financier'!$D$16)/('BP Financier'!$C$16+'BP Financier'!$C$19+'BP Financier'!$D$16+'BP Financier'!$D$19+'BP Financier'!$C$22+'BP Financier'!$D$22))*$V2181*Z2181/(1-$W2181)","v":{"v":1176031.5412897924,"d":"1,176,032"}},{"$f":"'BP Financier'!$D$44*(('BP Financier'!$C$16+'BP Financier'!$D$16)/('BP Financier'!$C$16+'BP Financier'!$C$19+'BP Financier'!$D$16+'BP Financier'!$D$19+'BP Financier'!$C$22+'BP Financier'!$D$22))*$V2181*AA2181/(1-$W2181)","v":{"v":145296.3995046523,"d":"145,296"}},{"$f":"'BP Financier'!$D$44*(('BP Financier'!$C$16+'BP Financier'!$D$16)/('BP Financier'!$C$16+'BP Financier'!$C$19+'BP Financier'!$D$16+'BP Financier'!$D$19+'BP Financier'!$C$22+'BP Financier'!$D$22))*$V2181*AB2181/(1-$W2181)","v":{"v":69543.57583128655,"d":"69,544"}},null,{"v":0.025,"d":"2.50%"},{"$f":"Actif!$E$28/100","v":{"v":0.28900000000000003,"d":"28.90%"}},{"$f":"Actif!$E$30/100","v":{"v":0.09050000000000001,"d":"9.05%"}},{"$f":"Actif!$E$31/100","v":{"v":0.0605,"d":"6.05%"}},{"$f":"Actif!$E$32/100","v":{"v":0.47350000000000003,"d":"47.35%"}},{"$f":"Actif!$E$33/100","v":{"v":0.0585,"d":"5.85%"}},{"$f":"Actif!$E$29/100","v":{"v":0.027999999999999997,"d":"2.80%"}}]
[null,"#87",61,2026,"H","A_VIE",{"v":0.44999999999999996,"d":"0.45"},{"v":0.38999999999999996,"d":"0.39"},0.6,0.6,85,0,{"$f":"ROUND(Primes!$N$4*V2182,0)","v":67},{"$f":"'BP Financier'!$D$33*(('BP Financier'!$C$16+'BP Financier'!$D$16)/('BP Financier'!$C$16+'BP Financier'!$C$19+'BP Financier'!$D$16+'BP Financier'!$D$19))*V2182","v":{"v":1911055.8885105627,"d":"1,911,056"}},{"v":1059546.0517723872,"d":"1,059,546"},{"$f":"'BP Financier'!$D$44*(('BP Financier'!$C$16+'BP Financier'!$D$16)/('BP Financier'!$C$16+'BP Financier'!$C$19+'BP Financier'!$D$16+'BP Financier'!$D$19+'BP Financier'!$C$22+'BP Financier'!$D$22))*$V2182*X2182/(1-$W2182)","v":{"v":134864.8631299593,"d":"134,865"}},{"$f":"'BP Financier'!$D$44*(('BP Financier'!$C$16+'BP Financier'!$D$16)/('BP Financier'!$C$16+'BP Financier'!$C$19+'BP Financier'!$D$16+'BP Financier'!$D$19+'BP Financier'!$C$22+'BP Financier'!$D$22))*$V2182*Y2182/(1-$W2182)","v":{"v":90158.27866698935,"d":"90,158"}},{"$f":"'BP Financier'!$D$44*(('BP Financier'!$C$16+'BP Financier'!$D$16)/('BP Financier'!$C$16+'BP Financier'!$C$19+'BP Financier'!$D$16+'BP Financier'!$D$19+'BP Financier'!$C$22+'BP Financier'!$D$22))*$V2182*Z2182/(1-$W2182)","v":{"v":705618.9247738754,"d":"705,619"}},{"$f":"'BP Financier'!$D$44*(('BP Financier'!$C$16+'BP Financier'!$D$16)/('BP Financier'!$C$16+'BP Financier'!$C$19+'BP Financier'!$D$16+'BP Financier'!$D$19+'BP Financier'!$C$22+'BP Financier'!$D$22))*$V2182*AA2182/(1-$W2182)","v":{"v":87177.83970279136,"d":"87,178"}},{"$f":"'BP Financier'!$D$44*(('BP Financier'!$C$16+'BP Financier'!$D$16)/('BP Financier'!$C$16+'BP Financier'!$C$19+'BP Financier'!$D$16+'BP Financier'!$D$19+'BP Financier'!$C$22+'BP Financier'!$D$22))*$V2182*AB2182/(1-$W2182)","v":{"v":41726.145498771926,"d":"41,726"}},null,{"v":0.015,"d":"1.50%"},{"$f":"Actif!$E$28/100","v":{"v":0.28900000000000003,"d":"28.90%"}},{"$f":"Actif!$E$30/100","v":{"v":0.09050000000000001,"d":"9.05%"}},{"$f":"Actif!$E$31/100","v":{"v":0.0605,"d":"6.05%"}},{"$f":"Actif!$E$32/100","v":{"v":0.47350000000000003,"d":"47.35%"}},{"$f":"Actif!$E$33/100","v":{"v":0.0585,"d":"5.85%"}},{"$f":"Actif!$E$29/100","v":{"v":0.027999999999999997,"d":"2.80%"}}]
[null,"#88",61,2028,"H","A_VIE",{"v":0.44999999999999996,"d":"0.45"},{"v":0.38999999999999996,"d":"0.39"},0.6,0.6,85,0,{"$f":"ROUND(Primes!$N$4*V2183,0)","v":67},{"$f":"'BP Financier'!$D$33*(('BP Financier'!$C$16+'BP Financier'!$D$16)/('BP Financier'!$C$16+'BP Financier'!$C$19+'BP Financier'!$D$16+'BP Financier'!$D$19))*V2183","v":{"v":1911055.8885105627,"d":"1,911,056"}},{"v":1059546.0517723872,"d":"1,059,546"},{"$f":"'BP Financier'!$D$44*(('BP Financier'!$C$16+'BP Financier'!$D$16)/('BP Financier'!$C$16+'BP Financier'!$C$19+'BP Financier'!$D$16+'BP Financier'!$D$19+'BP Financier'!$C$22+'BP Financier'!$D$22))*$V2183*X2183/(1-$W2183)","v":{"v":134864.8631299593,"d":"134,865"}},{"$f":"'BP Financier'!$D$44*(('BP Financier'!$C$16+'BP Financier'!$D$16)/('BP Financier'!$C$16+'BP Financier'!$C$19+'BP Financier'!$D$16+'BP Financier'!$D$19+'BP Financier'!$C$22+'BP Financier'!$D$22))*$V2183*Y2183/(1-$W2183)","v":{"v":90158.27866698935,"d":"90,158"}},{"$f":"'BP Financier'!$D$44*(('BP Financier'!$C$16+'BP Financier'!$D$16)/('BP Financier'!$C$16+'BP Financier'!$C$19+'BP Financier'!$D$16+'BP Financier'!$D$19+'BP Financier'!$C$22+'BP Financier'!$D$22))*$V2183*Z2183/(1-$W2183)","v":{"v":705618.9247738754,"d":"705,619"}},{"$f":"'BP Financier'!$D$44*(('BP Financier'!$C$16+'BP Financier'!$D$16)/('BP Financier'!$C$16+'BP Financier'!$C$19+'BP Financier'!$D$16+'BP Financier'!$D$19+'BP Financier'!$C$22+'BP Financier'!$D$22))*$V2183*AA2183/(1-$W2183)","v":{"v":87177.83970279136,"d":"87,178"}},{"$f":"'BP Financier'!$D$44*(('BP Financier'!$C$16+'BP Financier'!$D$16)/('BP Financier'!$C$16+'BP Financier'!$C$19+'BP Financier'!$D$16+'BP Financier'!$D$19+'BP Financier'!$C$22+'BP Financier'!$D$22))*$V2183*AB2183/(1-$W2183)","v":{"v":41726.145498771926,"d":"41,726"}},null,{"v":0.015,"d":"1.50%"},{"$f":"Actif!$E$28/100","v":{"v":0.28900000000000003,"d":"28.90%"}},{"$f":"Actif!$E$30/100","v":{"v":0.09050000000000001,"d":"9.05%"}},{"$f":"Actif!$E$31/100","v":{"v":0.0605,"d":"6.05%"}},{"$f":"Actif!$E$32/100","v":{"v":0.47350000000000003,"d":"47.35%"}},{"$f":"Actif!$E$33/100","v":{"v":0.0585,"d":"5.85%"}},{"$f":"Actif!$E$29/100","v":{"v":0.027999999999999997,"d":"2.80%"}}]
[null,"#89",62,2026,"F","A_VIE",{"v":0.44999999999999996,"d":"0.45"},{"v":0.38999999999999996,"d":"0.39"},0.6,0.6,85,0,{"$f":"ROUND(Primes!$N$4*V2184,0)","v":67},{"$f":"'BP Financier'!$D$33*(('BP Financier'!$C$16+'BP Financier'!$D$16)/('BP Financier'!$C$16+'BP Financier'!$C$19+'BP Financier'!$D$16+'BP Financier'!$D$19))*V2184","v":{"v":1911055.8885105627,"d":"1,911,056"}},{"v":1059546.0517723872,"d":"1,059,546"},{"$f":"'BP Financier'!$D$44*(('BP Financier'!$C$16+'BP Financier'!$D$16)/('BP Financier'!$C$16+'BP Financier'!$C$19+'BP Financier'!$D$16+'BP Financier'!$D$19+'BP Financier'!$C$22+'BP Financier'!$D$22))*$V2184*X2184/(1-$W2184)","v":{"v":134864.8631299593,"d":"134,865"}},{"$f":"'BP Financier'!$D$44*(('BP Financier'!$C$16+'BP Financier'!$D$16)/('BP Financier'!$C$16+'BP Financier'!$C$19+'BP Financier'!$D$16+'BP Financier'!$D$19+'BP Financier'!$C$22+'BP Financier'!$D$22))*$V2184*Y2184/(1-$W2184)","v":{"v":90158.27866698935,"d":"90,158"}},{"$f":"'BP Financier'!$D$44*(('BP Financier'!$C$16+'BP Financier'!$D$16)/('BP Financier'!$C$16+'BP Financier'!$C$19+'BP Financier'!$D$16+'BP Financier'!$D$19+'BP Financier'!$C$22+'BP Financier'!$D$22))*$V2184*Z2184/(1-$W2184)","v":{"v":705618.9247738754,"d":"705,619"}},{"$f":"'BP Financier'!$D$44*(('BP Financier'!$C$16+'BP Financier'!$D$16)/('BP Financier'!$C$16+'BP Financier'!$C$19+'BP Financier'!$D$16+'BP Financier'!$D$19+'BP Financier'!$C$22+'BP Financier'!$D$22))*$V2184*AA2184/(1-$W2184)","v":{"v":87177.83970279136,"d":"87,178"}},{"$f":"'BP Financier'!$D$44*(('BP Financier'!$C$16+'BP Financier'!$D$16)/('BP Financier'!$C$16+'BP Financier'!$C$19+'BP Financier'!$D$16+'BP Financier'!$D$19+'BP Financier'!$C$22+'BP Financier'!$D$22))*$V2184*AB2184/(1-$W2184)","v":{"v":41726.145498771926,"d":"41,726"}},null,{"v":0.015,"d":"1.50%"},{"$f":"Actif!$E$28/100","v":{"v":0.28900000000000003,"d":"28.90%"}},{"$f":"Actif!$E$30/100","v":{"v":0.09050000000000001,"d":"9.05%"}},{"$f":"Actif!$E$31/100","v":{"v":0.0605,"d":"6.05%"}},{"$f":"Actif!$E$32/100","v":{"v":0.47350000000000003,"d":"47.35%"}},{"$f":"Actif!$E$33/100","v":{"v":0.0585,"d":"5.85%"}},{"$f":"Actif!$E$29/100","v":{"v":0.027999999999999997,"d":"2.80%"}}]
[null,"#90",62,2028,"F","A_VIE",{"v":0.44999999999999996,"d":"0.45"},{"v":0.38999999999999996,"d":"0.39"},0.6,0.6,85,0,{"$f":"ROUND(Primes!$N$4*V2185,0)","v":67},{"$f":"'BP Financier'!$D$33*(('BP Financier'!$C$16+'BP Financier'!$D$16)/('BP Financier'!$C$16+'BP Financier'!$C$19+'BP Financier'!$D$16+'BP Financier'!$D$19))*V2185","v":{"v":1911055.8885105627,"d":"1,911,056"}},{"v":1059546.0517723872,"d":"1,059,546"},{"$f":"'BP Financier'!$D$44*(('BP Financier'!$C$16+'BP Financier'!$D$16)/('BP Financier'!$C$16+'BP Financier'!$C$19+'BP Financier'!$D$16+'BP Financier'!$D$19+'BP Financier'!$C$22+'BP Financier'!$D$22))*$V2185*X2185/(1-$W2185)","v":{"v":134864.8631299593,"d":"134,865"}},{"$f":"'BP Financier'!$D$44*(('BP Financier'!$C$16+'BP Financier'!$D$16)/('BP Financier'!$C$16+'BP Financier'!$C$19+'BP Financier'!$D$16+'BP Financier'!$D$19+'BP Financier'!$C$22+'BP Financier'!$D$22))*$V2185*Y2185/(1-$W2185)","v":{"v":90158.27866698935,"d":"90,158"}},{"$f":"'BP Financier'!$D$44*(('BP Financier'!$C$16+'BP Financier'!$D$16)/('BP Financier'!$C$16+'BP Financier'!$C$19+'BP Financier'!$D$16+'BP Financier'!$D$19+'BP Financier'!$C$22+'BP Financier'!$D$22))*$V2185*Z2185/(1-$W2185)","v":{"v":705618.9247738754,"d":"705,619"}},{"$f":"'BP Financier'!$D$44*(('BP Financier'!$C$16+'BP Financier'!$D$16)/('BP Financier'!$C$16+'BP Financier'!$C$19+'BP Financier'!$D$16+'BP Financier'!$D$19+'BP Financier'!$C$22+'BP Financier'!$D$22))*$V2185*AA2185/(1-$W2185)","v":{"v":87177.83970279136,"d":"87,178"}},{"$f":"'BP Financier'!$D$44*(('BP Financier'!$C$16+'BP Financier'!$D$16)/('BP Financier'!$C$16+'BP Financier'!$C$19+'BP Financier'!$D$16+'BP Financier'!$D$19+'BP Financier'!$C$22+'BP Financier'!$D$22))*$V2185*AB2185/(1-$W2185)","v":{"v":41726.145498771926,"d":"41,726"}},null,{"v":0.015,"d":"1.50%"},{"$f":"Actif!$E$28/100","v":{"v":0.28900000000000003,"d":"28.90%"}},{"$f":"Actif!$E$30/100","v":{"v":0.09050000000000001,"d":"9.05%"}},{"$f":"Actif!$E$31/100","v":{"v":0.0605,"d":"6.05%"}},{"$f":"Actif!$E$32/100","v":{"v":0.47350000000000003,"d":"47.35%"}},{"$f":"Actif!$E$33/100","v":{"v":0.0585,"d":"5.85%"}},{"$f":"Actif!$E$29/100","v":{"v":0.027999999999999997,"d":"2.80%"}}]
[null,"#91",63,2026,"H","A_VIE",{"v":0.44999999999999996,"d":"0.45"},{"v":0.38999999999999996,"d":"0.39"},0.6,0.6,85,0,{"$f":"ROUND(Primes!$N$4*V2186,0)","v":67},{"$f":"'BP Financier'!$D$33*(('BP Financier'!$C$16+'BP Financier'!$D$16)/('BP Financier'!$C$16+'BP Financier'!$C$19+'BP Financier'!$D$16+'BP Financier'!$D$19))*V2186","v":{"v":1911055.8885105627,"d":"1,911,056"}},{"v":1059546.0517723872,"d":"1,059,546"},{"$f":"'BP Financier'!$D$44*(('BP Financier'!$C$16+'BP Financier'!$D$16)/('BP Financier'!$C$16+'BP Financier'!$C$19+'BP Financier'!$D$16+'BP Financier'!$D$19+'BP Financier'!$C$22+'BP Financier'!$D$22))*$V2186*X2186/(1-$W2186)","v":{"v":134864.8631299593,"d":"134,865"}},{"$f":"'BP Financier'!$D$44*(('BP Financier'!$C$16+'BP Financier'!$D$16)/('BP Financier'!$C$16+'BP Financier'!$C$19+'BP Financier'!$D$16+'BP Financier'!$D$19+'BP Financier'!$C$22+'BP Financier'!$D$22))*$V2186*Y2186/(1-$W2186)","v":{"v":90158.27866698935,"d":"90,158"}},{"$f":"'BP Financier'!$D$44*(('BP Financier'!$C$16+'BP Financier'!$D$16)/('BP Financier'!$C$16+'BP Financier'!$C$19+'BP Financier'!$D$16+'BP Financier'!$D$19+'BP Financier'!$C$22+'BP Financier'!$D$22))*$V2186*Z2186/(1-$W2186)","v":{"v":705618.9247738754,"d":"705,619"}},{"$f":"'BP Financier'!$D$44*(('BP Financier'!$C$16+'BP Financier'!$D$16)/('BP Financier'!$C$16+'BP Financier'!$C$19+'BP Financier'!$D$16+'BP Financier'!$D$19+'BP Financier'!$C$22+'BP Financier'!$D$22))*$V2186*AA2186/(1-$W2186)","v":{"v":87177.83970279136,"d":"87,178"}},{"$f":"'BP Financier'!$D$44*(('BP Financier'!$C$16+'BP Financier'!$D$16)/('BP Financier'!$C$16+'BP Financier'!$C$19+'BP Financier'!$D$16+'BP Financier'!$D$19+'BP Financier'!$C$22+'BP Financier'!$D$22))*$V2186*AB2186/(1-$W2186)","v":{"v":41726.145498771926,"d":"41,726"}},null,{"v":0.015,"d":"1.50%"},{"$f":"Actif!$E$28/100","v":{"v":0.28900000000000003,"d":"28.90%"}},{"$f":"Actif!$E$30/100","v":{"v":0.09050000000000001,"d":"9.05%"}},{"$f":"Actif!$E$31/100","v":{"v":0.0605,"d":"6.05%"}},{"$f":"Actif!$E$32/100","v":{"v":0.47350000000000003,"d":"47.35%"}},{"$f":"Actif!$E$33/100","v":{"v":0.0585,"d":"5.85%"}},{"$f":"Actif!$E$29/100","v":{"v":0.027999999999999997,"d":"2.80%"}}]
[null,"#92",63,2028,"H","A_VIE",{"v":0.44999999999999996,"d":"0.45"},{"v":0.38999999999999996,"d":"0.39"},0.6,0.6,85,0,{"$f":"ROUND(Primes!$N$4*V2187,0)","v":67},{"$f":"'BP Financier'!$D$33*(('BP Financier'!$C$16+'BP Financier'!$D$16)/('BP Financier'!$C$16+'BP Financier'!$C$19+'BP Financier'!$D$16+'BP Financier'!$D$19))*V2187","v":{"v":1911055.8885105627,"d":"1,911,056"}},{"v":1059546.0517723872,"d":"1,059,546"},{"$f":"'BP Financier'!$D$44*(('BP Financier'!$C$16+'BP Financier'!$D$16)/('BP Financier'!$C$16+'BP Financier'!$C$19+'BP Financier'!$D$16+'BP Financier'!$D$19+'BP Financier'!$C$22+'BP Financier'!$D$22))*$V2187*X2187/(1-$W2187)","v":{"v":134864.8631299593,"d":"134,865"}},{"$f":"'BP Financier'!$D$44*(('BP Financier'!$C$16+'BP Financier'!$D$16)/('BP Financier'!$C$16+'BP Financier'!$C$19+'BP Financier'!$D$16+'BP Financier'!$D$19+'BP Financier'!$C$22+'BP Financier'!$D$22))*$V2187*Y2187/(1-$W2187)","v":{"v":90158.27866698935,"d":"90,158"}},{"$f":"'BP Financier'!$D$44*(('BP Financier'!$C$16+'BP Financier'!$D$16)/('BP Financier'!$C$16+'BP Financier'!$C$19+'BP Financier'!$D$16+'BP Financier'!$D$19+'BP Financier'!$C$22+'BP Financier'!$D$22))*$V2187*Z2187/(1-$W2187)","v":{"v":705618.9247738754,"d":"705,619"}},{"$f":"'BP Financier'!$D$44*(('BP Financier'!$C$16+'BP Financier'!$D$16)/('BP Financier'!$C$16+'BP Financier'!$C$19+'BP Financier'!$D$16+'BP Financier'!$D$19+'BP Financier'!$C$22+'BP Financier'!$D$22))*$V2187*AA2187/(1-$W2187)","v":{"v":87177.83970279136,"d":"87,178"}},{"$f":"'BP Financier'!$D$44*(('BP Financier'!$C$16+'BP Financier'!$D$16)/('BP Financier'!$C$16+'BP Financier'!$C$19+'BP Financier'!$D$16+'BP Financier'!$D$19+'BP Financier'!$C$22+'BP Financier'!$D$22))*$V2187*AB2187/(1-$W2187)","v":{"v":41726.145498771926,"d":"41,726"}},null,{"v":0.015,"d":"1.50%"},{"$f":"Actif!$E$28/100","v":{"v":0.28900000000000003,"d":"28.90%"}},{"$f":"Actif!$E$30/100","v":{"v":0.09050000000000001,"d":"9.05%"}},{"$f":"Actif!$E$31/100","v":{"v":0.0605,"d":"6.05%"}},{"$f":"Actif!$E$32/100","v":{"v":0.47350000000000003,"d":"47.35%"}},{"$f":"Actif!$E$33/100","v":{"v":0.0585,"d":"5.85%"}},{"$f":"Actif!$E$29/100","v":{"v":0.027999999999999997,"d":"2.80%"}}]
[null,"#93",64,2026,"H","A_VIE",{"v":0.44999999999999996,"d":"0.45"},{"v":0.38999999999999996,"d":"0.39"},0.6,0.6,85,0,{"$f":"ROUND(Primes!$N$4*V2188,0)","v":67},{"$f":"'BP Financier'!$D$33*(('BP Financier'!$C$16+'BP Financier'!$D$16)/('BP Financier'!$C$16+'BP Financier'!$C$19+'BP Financier'!$D$16+'BP Financier'!$D$19))*V2188","v":{"v":1911055.8885105627,"d":"1,911,056"}},{"v":1059546.0517723872,"d":"1,059,546"},{"$f":"'BP Financier'!$D$44*(('BP Financier'!$C$16+'BP Financier'!$D$16)/('BP Financier'!$C$16+'BP Financier'!$C$19+'BP Financier'!$D$16+'BP Financier'!$D$19+'BP Financier'!$C$22+'BP Financier'!$D$22))*$V2188*X2188/(1-$W2188)","v":{"v":134864.8631299593,"d":"134,865"}},{"$f":"'BP Financier'!$D$44*(('BP Financier'!$C$16+'BP Financier'!$D$16)/('BP Financier'!$C$16+'BP Financier'!$C$19+'BP Financier'!$D$16+'BP Financier'!$D$19+'BP Financier'!$C$22+'BP Financier'!$D$22))*$V2188*Y2188/(1-$W2188)","v":{"v":90158.27866698935,"d":"90,158"}},{"$f":"'BP Financier'!$D$44*(('BP Financier'!$C$16+'BP Financier'!$D$16)/('BP Financier'!$C$16+'BP Financier'!$C$19+'BP Financier'!$D$16+'BP Financier'!$D$19+'BP Financier'!$C$22+'BP Financier'!$D$22))*$V2188*Z2188/(1-$W2188)","v":{"v":705618.9247738754,"d":"705,619"}},{"$f":"'BP Financier'!$D$44*(('BP Financier'!$C$16+'BP Financier'!$D$16)/('BP Financier'!$C$16+'BP Financier'!$C$19+'BP Financier'!$D$16+'BP Financier'!$D$19+'BP Financier'!$C$22+'BP Financier'!$D$22))*$V2188*AA2188/(1-$W2188)","v":{"v":87177.83970279136,"d":"87,178"}},{"$f":"'BP Financier'!$D$44*(('BP Financier'!$C$16+'BP Financier'!$D$16)/('BP Financier'!$C$16+'BP Financier'!$C$19+'BP Financier'!$D$16+'BP Financier'!$D$19+'BP Financier'!$C$22+'BP Financier'!$D$22))*$V2188*AB2188/(1-$W2188)","v":{"v":41726.145498771926,"d":"41,726"}},null,{"v":0.015,"d":"1.50%"},{"$f":"Actif!$E$28/100","v":{"v":0.28900000000000003,"d":"28.90%"}},{"$f":"Actif!$E$30/100","v":{"v":0.09050000000000001,"d":"9.05%"}},{"$f":"Actif!$E$31/100","v":{"v":0.0605,"d":"6.05%"}},{"$f":"Actif!$E$32/100","v":{"v":0.47350000000000003,"d":"47.35%"}},{"$f":"Actif!$E$33/100","v":{"v":0.0585,"d":"5.85%"}},{"$f":"Actif!$E$29/100","v":{"v":0.027999999999999997,"d":"2.80%"}}]
[null,"#94",64,2028,"H","A_VIE",{"v":0.44999999999999996,"d":"0.45"},{"v":0.38999999999999996,"d":"0.39"},0.6,0.6,85,0,{"$f":"ROUND(Primes!$N$4*V2189,0)","v":67},{"$f":"'BP Financier'!$D$33*(('BP Financier'!$C$16+'BP Financier'!$D$16)/('BP Financier'!$C$16+'BP Financier'!$C$19+'BP Financier'!$D$16+'BP Financier'!$D$19))*V2189","v":{"v":1911055.8885105627,"d":"1,911,056"}},{"v":1059546.0517723872,"d":"1,059,546"},{"$f":"'BP Financier'!$D$44*(('BP Financier'!$C$16+'BP Financier'!$D$16)/('BP Financier'!$C$16+'BP Financier'!$C$19+'BP Financier'!$D$16+'BP Financier'!$D$19+'BP Financier'!$C$22+'BP Financier'!$D$22))*$V2189*X2189/(1-$W2189)","v":{"v":134864.8631299593,"d":"134,865"}},{"$f":"'BP Financier'!$D$44*(('BP Financier'!$C$16+'BP Financier'!$D$16)/('BP Financier'!$C$16+'BP Financier'!$C$19+'BP Financier'!$D$16+'BP Financier'!$D$19+'BP Financier'!$C$22+'BP Financier'!$D$22))*$V2189*Y2189/(1-$W2189)","v":{"v":90158.27866698935,"d":"90,158"}},{"$f":"'BP Financier'!$D$44*(('BP Financier'!$C$16+'BP Financier'!$D$16)/('BP Financier'!$C$16+'BP Financier'!$C$19+'BP Financier'!$D$16+'BP Financier'!$D$19+'BP Financier'!$C$22+'BP Financier'!$D$22))*$V2189*Z2189/(1-$W2189)","v":{"v":705618.9247738754,"d":"705,619"}},{"$f":"'BP Financier'!$D$44*(('BP Financier'!$C$16+'BP Financier'!$D$16)/('BP Financier'!$C$16+'BP Financier'!$C$19+'BP Financier'!$D$16+'BP Financier'!$D$19+'BP Financier'!$C$22+'BP Financier'!$D$22))*$V2189*AA2189/(1-$W2189)","v":{"v":87177.83970279136,"d":"87,178"}},{"$f":"'BP Financier'!$D$44*(('BP Financier'!$C$16+'BP Financier'!$D$16)/('BP Financier'!$C$16+'BP Financier'!$C$19+'BP Financier'!$D$16+'BP Financier'!$D$19+'BP Financier'!$C$22+'BP Financier'!$D$22))*$V2189*AB2189/(1-$W2189)","v":{"v":41726.145498771926,"d":"41,726"}},null,{"v":0.015,"d":"1.50%"},{"$f":"Actif!$E$28/100","v":{"v":0.28900000000000003,"d":"28.90%"}},{"$f":"Actif!$E$30/100","v":{"v":0.09050000000000001,"d":"9.05%"}},{"$f":"Actif!$E$31/100","v":{"v":0.0605,"d":"6.05%"}},{"$f":"Actif!$E$32/100","v":{"v":0.47350000000000003,"d":"47.35%"}},{"$f":"Actif!$E$33/100","v":{"v":0.0585,"d":"5.85%"}},{"$f":"Actif!$E$29/100","v":{"v":0.027999999999999997,"d":"2.80%"}}]
[null,"#95",65,2026,"F","A_VIE",{"v":0.44999999999999996,"d":"0.45"},{"v":0.38999999999999996,"d":"0.39"},0.6,0.6,85,0,{"$f":"ROUND(Primes!$N$4*V2190,0)","v":67},{"$f":"'BP Financier'!$D$33*(('BP Financier'!$C$16+'BP Financier'!$D$16)/('BP Financier'!$C$16+'BP Financier'!$C$19+'BP Financier'!$D$16+'BP Financier'!$D$19))*V2190","v":{"v":1911055.8885105627,"d":"1,911,056"}},{"v":1059546.0517723872,"d":"1,059,546"},{"$f":"'BP Financier'!$D$44*(('BP Financier'!$C$16+'BP Financier'!$D$16)/('BP Financier'!$C$16+'BP Financier'!$C$19+'BP Financier'!$D$16+'BP Financier'!$D$19+'BP Financier'!$C$22+'BP Financier'!$D$22))*$V2190*X2190/(1-$W2190)","v":{"v":134864.8631299593,"d":"134,865"}},{"$f":"'BP Financier'!$D$44*(('BP Financier'!$C$16+'BP Financier'!$D$16)/('BP Financier'!$C$16+'BP Financier'!$C$19+'BP Financier'!$D$16+'BP Financier'!$D$19+'BP Financier'!$C$22+'BP Financier'!$D$22))*$V2190*Y2190/(1-$W2190)","v":{"v":90158.27866698935,"d":"90,158"}},{"$f":"'BP Financier'!$D$44*(('BP Financier'!$C$16+'BP Financier'!$D$16)/('BP Financier'!$C$16+'BP Financier'!$C$19+'BP Financier'!$D$16+'BP Financier'!$D$19+'BP Financier'!$C$22+'BP Financier'!$D$22))*$V2190*Z2190/(1-$W2190)","v":{"v":705618.9247738754,"d":"705,619"}},{"$f":"'BP Financier'!$D$44*(('BP Financier'!$C$16+'BP Financier'!$D$16)/('BP Financier'!$C$16+'BP Financier'!$C$19+'BP Financier'!$D$16+'BP Financier'!$D$19+'BP Financier'!$C$22+'BP Financier'!$D$22))*$V2190*AA2190/(1-$W2190)","v":{"v":87177.83970279136,"d":"87,178"}},{"$f":"'BP Financier'!$D$44*(('BP Financier'!$C$16+'BP Financier'!$D$16)/('BP Financier'!$C$16+'BP Financier'!$C$19+'BP Financier'!$D$16+'BP Financier'!$D$19+'BP Financier'!$C$22+'BP Financier'!$D$22))*$V2190*AB2190/(1-$W2190)","v":{"v":41726.145498771926,"d":"41,726"}},null,{"v":0.015,"d":"1.50%"},{"$f":"Actif!$E$28/100","v":{"v":0.28900000000000003,"d":"28.90%"}},{"$f":"Actif!$E$30/100","v":{"v":0.09050000000000001,"d":"9.05%"}},{"$f":"Actif!$E$31/100","v":{"v":0.0605,"d":"6.05%"}},{"$f":"Actif!$E$32/100","v":{"v":0.47350000000000003,"d":"47.35%"}},{"$f":"Actif!$E$33/100","v":{"v":0.0585,"d":"5.85%"}},{"$f":"Actif!$E$29/100","v":{"v":0.027999999999999997,"d":"2.80%"}}]
[null,"#96",65,2028,"F","A_VIE",{"v":0.44999999999999996,"d":"0.45"},{"v":0.38999999999999996,"d":"0.39"},0.6,0.6,85,0,{"$f":"ROUND(Primes!$N$4*V2191,0)","v":67},{"$f":"'BP Financier'!$D$33*(('BP Financier'!$C$16+'BP Financier'!$D$16)/('BP Financier'!$C$16+'BP Financier'!$C$19+'BP Financier'!$D$16+'BP Financier'!$D$19))*V2191","v":{"v":1911055.8885105627,"d":"1,911,056"}},{"v":1059546.0517723872,"d":"1,059,546"},{"$f":"'BP Financier'!$D$44*(('BP Financier'!$C$16+'BP Financier'!$D$16)/('BP Financier'!$C$16+'BP Financier'!$C$19+'BP Financier'!$D$16+'BP Financier'!$D$19+'BP Financier'!$C$22+'BP Financier'!$D$22))*$V2191*X2191/(1-$W2191)","v":{"v":134864.8631299593,"d":"134,865"}},{"$f":"'BP Financier'!$D$44*(('BP Financier'!$C$16+'BP Financier'!$D$16)/('BP Financier'!$C$16+'BP Financier'!$C$19+'BP Financier'!$D$16+'BP Financier'!$D$19+'BP Financier'!$C$22+'BP Financier'!$D$22))*$V2191*Y2191/(1-$W2191)","v":{"v":90158.27866698935,"d":"90,158"}},{"$f":"'BP Financier'!$D$44*(('BP Financier'!$C$16+'BP Financier'!$D$16)/('BP Financier'!$C$16+'BP Financier'!$C$19+'BP Financier'!$D$16+'BP Financier'!$D$19+'BP Financier'!$C$22+'BP Financier'!$D$22))*$V2191*Z2191/(1-$W2191)","v":{"v":705618.9247738754,"d":"705,619"}},{"$f":"'BP Financier'!$D$44*(('BP Financier'!$C$16+'BP Financier'!$D$16)/('BP Financier'!$C$16+'BP Financier'!$C$19+'BP Financier'!$D$16+'BP Financier'!$D$19+'BP Financier'!$C$22+'BP Financier'!$D$22))*$V2191*AA2191/(1-$W2191)","v":{"v":87177.83970279136,"d":"87,178"}},{"$f":"'BP Financier'!$D$44*(('BP Financier'!$C$16+'BP Financier'!$D$16)/('BP Financier'!$C$16+'BP Financier'!$C$19+'BP Financier'!$D$16+'BP Financier'!$D$19+'BP Financier'!$C$22+'BP Financier'!$D$22))*$V2191*AB2191/(1-$W2191)","v":{"v":41726.145498771926,"d":"41,726"}},null,{"v":0.015,"d":"1.50%"},{"$f":"Actif!$E$28/100","v":{"v":0.28900000000000003,"d":"28.90%"}},{"$f":"Actif!$E$30/100","v":{"v":0.09050000000000001,"d":"9.05%"}},{"$f":"Actif!$E$31/100","v":{"v":0.0605,"d":"6.05%"}},{"$f":"Actif!$E$32/100","v":{"v":0.47350000000000003,"d":"47.35%"}},{"$f":"Actif!$E$33/100","v":{"v":0.0585,"d":"5.85%"}},{"$f":"Actif!$E$29/100","v":{"v":0.027999999999999997,"d":"2.80%"}}]
[null,"#97",70,2026,"H","A_VIE",{"v":0.44999999999999996,"d":"0.45"},{"v":0.38999999999999996,"d":"0.39"},0.6,0.6,85,0,{"$f":"ROUND(Primes!$N$4*V2192,0)","v":11},{"$f":"'BP Financier'!$D$33*(('BP Financier'!$C$16+'BP Financier'!$D$16)/('BP Financier'!$C$16+'BP Financier'!$C$19+'BP Financier'!$D$16+'BP Financier'!$D$19))*V2192","v":{"v":318509.3147517605,"d":"318,509"}},{"v":176591.00862873122,"d":"176,591"},{"$f":"'BP Financier'!$D$44*(('BP Financier'!$C$16+'BP Financier'!$D$16)/('BP Financier'!$C$16+'BP Financier'!$C$19+'BP Financier'!$D$16+'BP Financier'!$D$19+'BP Financier'!$C$22+'BP Financier'!$D$22))*$V2192*X2192/(1-$W2192)","v":{"v":22477.47718832655,"d":"22,477"}},{"$f":"'BP Financier'!$D$44*(('BP Financier'!$C$16+'BP Financier'!$D$16)/('BP Financier'!$C$16+'BP Financier'!$C$19+'BP Financier'!$D$16+'BP Financier'!$D$19+'BP Financier'!$C$22+'BP Financier'!$D$22))*$V2192*Y2192/(1-$W2192)","v":{"v":15026.37977783156,"d":"15,026"}},{"$f":"'BP Financier'!$D$44*(('BP Financier'!$C$16+'BP Financier'!$D$16)/('BP Financier'!$C$16+'BP Financier'!$C$19+'BP Financier'!$D$16+'BP Financier'!$D$19+'BP Financier'!$C$22+'BP Financier'!$D$22))*$V2192*Z2192/(1-$W2192)","v":{"v":117603.15412897924,"d":"117,603"}},{"$f":"'BP Financier'!$D$44*(('BP Financier'!$C$16+'BP Financier'!$D$16)/('BP Financier'!$C$16+'BP Financier'!$C$19+'BP Financier'!$D$16+'BP Financier'!$D$19+'BP Financier'!$C$22+'BP Financier'!$D$22))*$V2192*AA2192/(1-$W2192)","v":{"v":14529.639950465227,"d":"14,530"}},{"$f":"'BP Financier'!$D$44*(('BP Financier'!$C$16+'BP Financier'!$D$16)/('BP Financier'!$C$16+'BP Financier'!$C$19+'BP Financier'!$D$16+'BP Financier'!$D$19+'BP Financier'!$C$22+'BP Financier'!$D$22))*$V2192*AB2192/(1-$W2192)","v":{"v":6954.357583128654,"d":"6,954"}},null,{"v":0.0025,"d":"0.25%"},{"$f":"Actif!$E$28/100","v":{"v":0.28900000000000003,"d":"28.90%"}},{"$f":"Actif!$E$30/100","v":{"v":0.09050000000000001,"d":"9.05%"}},{"$f":"Actif!$E$31/100","v":{"v":0.0605,"d":"6.05%"}},{"$f":"Actif!$E$32/100","v":{"v":0.47350000000000003,"d":"47.35%"}},{"$f":"Actif!$E$33/100","v":{"v":0.0585,"d":"5.85%"}},{"$f":"Actif!$E$29/100","v":{"v":0.027999999999999997,"d":"2.80%"}}]
[null,"#98",70,2028,"H","A_VIE",{"v":0.44999999999999996,"d":"0.45"},{"v":0.38999999999999996,"d":"0.39"},0.6,0.6,85,0,{"$f":"ROUND(Primes!$N$4*V2193,0)","v":11},{"$f":"'BP Financier'!$D$33*(('BP Financier'!$C$16+'BP Financier'!$D$16)/('BP Financier'!$C$16+'BP Financier'!$C$19+'BP Financier'!$D$16+'BP Financier'!$D$19))*V2193","v":{"v":318509.3147517605,"d":"318,509"}},{"v":176591.00862873122,"d":"176,591"},{"$f":"'BP Financier'!$D$44*(('BP Financier'!$C$16+'BP Financier'!$D$16)/('BP Financier'!$C$16+'BP Financier'!$C$19+'BP Financier'!$D$16+'BP Financier'!$D$19+'BP Financier'!$C$22+'BP Financier'!$D$22))*$V2193*X2193/(1-$W2193)","v":{"v":22477.47718832655,"d":"22,477"}},{"$f":"'BP Financier'!$D$44*(('BP Financier'!$C$16+'BP Financier'!$D$16)/('BP Financier'!$C$16+'BP Financier'!$C$19+'BP Financier'!$D$16+'BP Financier'!$D$19+'BP Financier'!$C$22+'BP Financier'!$D$22))*$V2193*Y2193/(1-$W2193)","v":{"v":15026.37977783156,"d":"15,026"}},{"$f":"'BP Financier'!$D$44*(('BP Financier'!$C$16+'BP Financier'!$D$16)/('BP Financier'!$C$16+'BP Financier'!$C$19+'BP Financier'!$D$16+'BP Financier'!$D$19+'BP Financier'!$C$22+'BP Financier'!$D$22))*$V2193*Z2193/(1-$W2193)","v":{"v":117603.15412897924,"d":"117,603"}},{"$f":"'BP Financier'!$D$44*(('BP Financier'!$C$16+'BP Financier'!$D$16)/('BP Financier'!$C$16+'BP Financier'!$C$19+'BP Financier'!$D$16+'BP Financier'!$D$19+'BP Financier'!$C$22+'BP Financier'!$D$22))*$V2193*AA2193/(1-$W2193)","v":{"v":14529.639950465227,"d":"14,530"}},{"$f":"'BP Financier'!$D$44*(('BP Financier'!$C$16+'BP Financier'!$D$16)/('BP Financier'!$C$16+'BP Financier'!$C$19+'BP Financier'!$D$16+'BP Financier'!$D$19+'BP Financier'!$C$22+'BP Financier'!$D$22))*$V2193*AB2193/(1-$W2193)","v":{"v":6954.357583128654,"d":"6,954"}},null,{"v":0.0025,"d":"0.25%"},{"$f":"Actif!$E$28/100","v":{"v":0.28900000000000003,"d":"28.90%"}},{"$f":"Actif!$E$30/100","v":{"v":0.09050000000000001,"d":"9.05%"}},{"$f":"Actif!$E$31/100","v":{"v":0.0605,"d":"6.05%"}},{"$f":"Actif!$E$32/100","v":{"v":0.47350000000000003,"d":"47.35%"}},{"$f":"Actif!$E$33/100","v":{"v":0.0585,"d":"5.85%"}},{"$f":"Actif!$E$29/100","v":{"v":0.027999999999999997,"d":"2.80%"}}]
[null,"#99",75,2026,"H","A_VIE",{"v":0.44999999999999996,"d":"0.45"},{"v":0.38999999999999996,"d":"0.39"},0.6,0.6,85,0,{"$f":"ROUND(Primes!$N$4*V2194,0)","v":11},{"$f":"'BP Financier'!$D$33*(('BP Financier'!$C$16+'BP Financier'!$D$16)/('BP Financier'!$C$16+'BP Financier'!$C$19+'BP Financier'!$D$16+'BP Financier'!$D$19))*V2194","v":{"v":318509.3147517605,"d":"318,509"}},{"v":176591.00862873122,"d":"176,591"},{"$f":"'BP Financier'!$D$44*(('BP Financier'!$C$16+'BP Financier'!$D$16)/('BP Financier'!$C$16+'BP Financier'!$C$19+'BP Financier'!$D$16+'BP Financier'!$D$19+'BP Financier'!$C$22+'BP Financier'!$D$22))*$V2194*X2194/(1-$W2194)","v":{"v":22477.47718832655,"d":"22,477"}},{"$f":"'BP Financier'!$D$44*(('BP Financier'!$C$16+'BP Financier'!$D$16)/('BP Financier'!$C$16+'BP Financier'!$C$19+'BP Financier'!$D$16+'BP Financier'!$D$19+'BP Financier'!$C$22+'BP Financier'!$D$22))*$V2194*Y2194/(1-$W2194)","v":{"v":15026.37977783156,"d":"15,026"}},{"$f":"'BP Financier'!$D$44*(('BP Financier'!$C$16+'BP Financier'!$D$16)/('BP Financier'!$C$16+'BP Financier'!$C$19+'BP Financier'!$D$16+'BP Financier'!$D$19+'BP Financier'!$C$22+'BP Financier'!$D$22))*$V2194*Z2194/(1-$W2194)","v":{"v":117603.15412897924,"d":"117,603"}},{"$f":"'BP Financier'!$D$44*(('BP Financier'!$C$16+'BP Financier'!$D$16)/('BP Financier'!$C$16+'BP Financier'!$C$19+'BP Financier'!$D$16+'BP Financier'!$D$19+'BP Financier'!$C$22+'BP Financier'!$D$22))*$V2194*AA2194/(1-$W2194)","v":{"v":14529.639950465227,"d":"14,530"}},{"$f":"'BP Financier'!$D$44*(('BP Financier'!$C$16+'BP Financier'!$D$16)/('BP Financier'!$C$16+'BP Financier'!$C$19+'BP Financier'!$D$16+'BP Financier'!$D$19+'BP Financier'!$C$22+'BP Financier'!$D$22))*$V2194*AB2194/(1-$W2194)","v":{"v":6954.357583128654,"d":"6,954"}},null,{"v":0.0025,"d":"0.25%"},{"$f":"Actif!$E$28/100","v":{"v":0.28900000000000003,"d":"28.90%"}},{"$f":"Actif!$E$30/100","v":{"v":0.09050000000000001,"d":"9.05%"}},{"$f":"Actif!$E$31/100","v":{"v":0.0605,"d":"6.05%"}},{"$f":"Actif!$E$32/100","v":{"v":0.47350000000000003,"d":"47.35%"}},{"$f":"Actif!$E$33/100","v":{"v":0.0585,"d":"5.85%"}},{"$f":"Actif!$E$29/100","v":{"v":0.027999999999999997,"d":"2.80%"}}]
[null,"#100",75,2028,"H","A_VIE",{"v":0.44999999999999996,"d":"0.45"},{"v":0.38999999999999996,"d":"0.39"},0.6,0.6,85,0,{"$f":"ROUND(Primes!$N$4*V2195,0)","v":11},{"$f":"'BP Financier'!$D$33*(('BP Financier'!$C$16+'BP Financier'!$D$16)/('BP Financier'!$C$16+'BP Financier'!$C$19+'BP Financier'!$D$16+'BP Financier'!$D$19))*V2195","v":{"v":318509.3147517605,"d":"318,509"}},{"v":176591.00862873122,"d":"176,591"},{"$f":"'BP Financier'!$D$44*(('BP Financier'!$C$16+'BP Financier'!$D$16)/('BP Financier'!$C$16+'BP Financier'!$C$19+'BP Financier'!$D$16+'BP Financier'!$D$19+'BP Financier'!$C$22+'BP Financier'!$D$22))*$V2195*X2195/(1-$W2195)","v":{"v":22477.47718832655,"d":"22,477"}},{"$f":"'BP Financier'!$D$44*(('BP Financier'!$C$16+'BP Financier'!$D$16)/('BP Financier'!$C$16+'BP Financier'!$C$19+'BP Financier'!$D$16+'BP Financier'!$D$19+'BP Financier'!$C$22+'BP Financier'!$D$22))*$V2195*Y2195/(1-$W2195)","v":{"v":15026.37977783156,"d":"15,026"}},{"$f":"'BP Financier'!$D$44*(('BP Financier'!$C$16+'BP Financier'!$D$16)/('BP Financier'!$C$16+'BP Financier'!$C$19+'BP Financier'!$D$16+'BP Financier'!$D$19+'BP Financier'!$C$22+'BP Financier'!$D$22))*$V2195*Z2195/(1-$W2195)","v":{"v":117603.15412897924,"d":"117,603"}},{"$f":"'BP Financier'!$D$44*(('BP Financier'!$C$16+'BP Financier'!$D$16)/('BP Financier'!$C$16+'BP Financier'!$C$19+'BP Financier'!$D$16+'BP Financier'!$D$19+'BP Financier'!$C$22+'BP Financier'!$D$22))*$V2195*AA2195/(1-$W2195)","v":{"v":14529.639950465227,"d":"14,530"}},{"$f":"'BP Financier'!$D$44*(('BP Financier'!$C$16+'BP Financier'!$D$16)/('BP Financier'!$C$16+'BP Financier'!$C$19+'BP Financier'!$D$16+'BP Financier'!$D$19+'BP Financier'!$C$22+'BP Financier'!$D$22))*$V2195*AB2195/(1-$W2195)","v":{"v":6954.357583128654,"d":"6,954"}},null,{"v":0.0025,"d":"0.25%"},{"$f":"Actif!$E$28/100","v":{"v":0.28900000000000003,"d":"28.90%"}},{"$f":"Actif!$E$30/100","v":{"v":0.09050000000000001,"d":"9.05%"}},{"$f":"Actif!$E$31/100","v":{"v":0.0605,"d":"6.05%"}},{"$f":"Actif!$E$32/100","v":{"v":0.47350000000000003,"d":"47.35%"}},{"$f":"Actif!$E$33/100","v":{"v":0.0585,"d":"5.85%"}},{"$f":"Actif!$E$29/100","v":{"v":0.027999999999999997,"d":"2.80%"}}]
[null,"#101",80,2026,"F","A_VIE",{"v":0.44999999999999996,"d":"0.45"},{"v":0.38999999999999996,"d":"0.39"},0.6,0.6,85,0,{"$f":"ROUND(Primes!$N$4*V2196,0)","v":11},{"$f":"'BP Financier'!$D$33*(('BP Financier'!$C$16+'BP Financier'!$D$16)/('BP Financier'!$C$16+'BP Financier'!$C$19+'BP Financier'!$D$16+'BP Financier'!$D$19))*V2196","v":{"v":318509.3147517605,"d":"318,509"}},{"v":176591.00862873122,"d":"176,591"},{"$f":"'BP Financier'!$D$44*(('BP Financier'!$C$16+'BP Financier'!$D$16)/('BP Financier'!$C$16+'BP Financier'!$C$19+'BP Financier'!$D$16+'BP Financier'!$D$19+'BP Financier'!$C$22+'BP Financier'!$D$22))*$V2196*X2196/(1-$W2196)","v":{"v":22477.47718832655,"d":"22,477"}},{"$f":"'BP Financier'!$D$44*(('BP Financier'!$C$16+'BP Financier'!$D$16)/('BP Financier'!$C$16+'BP Financier'!$C$19+'BP Financier'!$D$16+'BP Financier'!$D$19+'BP Financier'!$C$22+'BP Financier'!$D$22))*$V2196*Y2196/(1-$W2196)","v":{"v":15026.37977783156,"d":"15,026"}},{"$f":"'BP Financier'!$D$44*(('BP Financier'!$C$16+'BP Financier'!$D$16)/('BP Financier'!$C$16+'BP Financier'!$C$19+'BP Financier'!$D$16+'BP Financier'!$D$19+'BP Financier'!$C$22+'BP Financier'!$D$22))*$V2196*Z2196/(1-$W2196)","v":{"v":117603.15412897924,"d":"117,603"}},{"$f":"'BP Financier'!$D$44*(('BP Financier'!$C$16+'BP Financier'!$D$16)/('BP Financier'!$C$16+'BP Financier'!$C$19+'BP Financier'!$D$16+'BP Financier'!$D$19+'BP Financier'!$C$22+'BP Financier'!$D$22))*$V2196*AA2196/(1-$W2196)","v":{"v":14529.639950465227,"d":"14,530"}},{"$f":"'BP Financier'!$D$44*(('BP Financier'!$C$16+'BP Financier'!$D$16)/('BP Financier'!$C$16+'BP Financier'!$C$19+'BP Financier'!$D$16+'BP Financier'!$D$19+'BP Financier'!$C$22+'BP Financier'!$D$22))*$V2196*AB2196/(1-$W2196)","v":{"v":6954.357583128654,"d":"6,954"}},null,{"v":0.0025,"d":"0.25%"},{"$f":"Actif!$E$28/100","v":{"v":0.28900000000000003,"d":"28.90%"}},{"$f":"Actif!$E$30/100","v":{"v":0.09050000000000001,"d":"9.05%"}},{"$f":"Actif!$E$31/100","v":{"v":0.0605,"d":"6.05%"}},{"$f":"Actif!$E$32/100","v":{"v":0.47350000000000003,"d":"47.35%"}},{"$f":"Actif!$E$33/100","v":{"v":0.0585,"d":"5.85%"}},{"$f":"Actif!$E$29/100","v":{"v":0.027999999999999997,"d":"2.80%"}}]
[null,"#102",80,2028,"F","A_VIE",{"v":0.44999999999999996,"d":"0.45"},{"v":0.38999999999999996,"d":"0.39"},0.6,0.6,85,0,{"$f":"ROUND(Primes!$N$4*V2197,0)","v":11},{"$f":"'BP Financier'!$D$33*(('BP Financier'!$C$16+'BP Financier'!$D$16)/('BP Financier'!$C$16+'BP Financier'!$C$19+'BP Financier'!$D$16+'BP Financier'!$D$19))*V2197","v":{"v":318509.3147517605,"d":"318,509"}},{"v":176591.00862873122,"d":"176,591"},{"$f":"'BP Financier'!$D$44*(('BP Financier'!$C$16+'BP Financier'!$D$16)/('BP Financier'!$C$16+'BP Financier'!$C$19+'BP Financier'!$D$16+'BP Financier'!$D$19+'BP Financier'!$C$22+'BP Financier'!$D$22))*$V2197*X2197/(1-$W2197)","v":{"v":22477.47718832655,"d":"22,477"}},{"$f":"'BP Financier'!$D$44*(('BP Financier'!$C$16+'BP Financier'!$D$16)/('BP Financier'!$C$16+'BP Financier'!$C$19+'BP Financier'!$D$16+'BP Financier'!$D$19+'BP Financier'!$C$22+'BP Financier'!$D$22))*$V2197*Y2197/(1-$W2197)","v":{"v":15026.37977783156,"d":"15,026"}},{"$f":"'BP Financier'!$D$44*(('BP Financier'!$C$16+'BP Financier'!$D$16)/('BP Financier'!$C$16+'BP Financier'!$C$19+'BP Financier'!$D$16+'BP Financier'!$D$19+'BP Financier'!$C$22+'BP Financier'!$D$22))*$V2197*Z2197/(1-$W2197)","v":{"v":117603.15412897924,"d":"117,603"}},{"$f":"'BP Financier'!$D$44*(('BP Financier'!$C$16+'BP Financier'!$D$16)/('BP Financier'!$C$16+'BP Financier'!$C$19+'BP Financier'!$D$16+'BP Financier'!$D$19+'BP Financier'!$C$22+'BP Financier'!$D$22))*$V2197*AA2197/(1-$W2197)","v":{"v":14529.639950465227,"d":"14,530"}},{"$f":"'BP Financier'!$D$44*(('BP Financier'!$C$16+'BP Financier'!$D$16)/('BP Financier'!$C$16+'BP Financier'!$C$19+'BP Financier'!$D$16+'BP Financier'!$D$19+'BP Financier'!$C$22+'BP Financier'!$D$22))*$V2197*AB2197/(1-$W2197)","v":{"v":6954.357583128654,"d":"6,954"}},null,{"v":0.0025,"d":"0.25%"},{"$f":"Actif!$E$28/100","v":{"v":0.28900000000000003,"d":"28.90%"}},{"$f":"Actif!$E$30/100","v":{"v":0.09050000000000001,"d":"9.05%"}},{"$f":"Actif!$E$31/100","v":{"v":0.0605,"d":"6.05%"}},{"$f":"Actif!$E$32/100","v":{"v":0.47350000000000003,"d":"47.35%"}},{"$f":"Actif!$E$33/100","v":{"v":0.0585,"d":"5.85%"}},{"$f":"Actif!$E$29/100","v":{"v":0.027999999999999997,"d":"2.80%"}}]
[null,"#103",85,2026,"H","A_VIE",{"v":0.44999999999999996,"d":"0.45"},{"v":0.38999999999999996,"d":"0.39"},0.6,0.6,85,0,{"$f":"ROUND(Primes!$N$4*V2198,0)","v":6},{"$f":"'BP Financier'!$D$33*(('BP Financier'!$C$16+'BP Financier'!$D$16)/('BP Financier'!$C$16+'BP Financier'!$C$19+'BP Financier'!$D$16+'BP Financier'!$D$19))*V2198","v":{"v":159254.65737588026,"d":"159,255"}},{"v":88295.50431436561,"d":"88,296"},{"$f":"'BP Financier'!$D$44*(('BP Financier'!$C$16+'BP Financier'!$D$16)/('BP Financier'!$C$16+'BP Financier'!$C$19+'BP Financier'!$D$16+'BP Financier'!$D$19+'BP Financier'!$C$22+'BP Financier'!$D$22))*$V2198*X2198/(1-$W2198)","v":{"v":11238.738594163275,"d":"11,239"}},{"$f":"'BP Financier'!$D$44*(('BP Financier'!$C$16+'BP Financier'!$D$16)/('BP Financier'!$C$16+'BP Financier'!$C$19+'BP Financier'!$D$16+'BP Financier'!$D$19+'BP Financier'!$C$22+'BP Financier'!$D$22))*$V2198*Y2198/(1-$W2198)","v":{"v":7513.18988891578,"d":"7,513"}},{"$f":"'BP Financier'!$D$44*(('BP Financier'!$C$16+'BP Financier'!$D$16)/('BP Financier'!$C$16+'BP Financier'!$C$19+'BP Financier'!$D$16+'BP Financier'!$D$19+'BP Financier'!$C$22+'BP Financier'!$D$22))*$V2198*Z2198/(1-$W2198)","v":{"v":58801.57706448962,"d":"58,802"}},{"$f":"'BP Financier'!$D$44*(('BP Financier'!$C$16+'BP Financier'!$D$16)/('BP Financier'!$C$16+'BP Financier'!$C$19+'BP Financier'!$D$16+'BP Financier'!$D$19+'BP Financier'!$C$22+'BP Financier'!$D$22))*$V2198*AA2198/(1-$W2198)","v":{"v":7264.819975232614,"d":"7,265"}},{"$f":"'BP Financier'!$D$44*(('BP Financier'!$C$16+'BP Financier'!$D$16)/('BP Financier'!$C$16+'BP Financier'!$C$19+'BP Financier'!$D$16+'BP Financier'!$D$19+'BP Financier'!$C$22+'BP Financier'!$D$22))*$V2198*AB2198/(1-$W2198)","v":{"v":3477.178791564327,"d":"3,477"}},null,{"v":1.25E-3,"d":"0.13%"},{"$f":"Actif!$E$28/100","v":{"v":0.28900000000000003,"d":"28.90%"}},{"$f":"Actif!$E$30/100","v":{"v":0.09050000000000001,"d":"9.05%"}},{"$f":"Actif!$E$31/100","v":{"v":0.0605,"d":"6.05%"}},{"$f":"Actif!$E$32/100","v":{"v":0.47350000000000003,"d":"47.35%"}},{"$f":"Actif!$E$33/100","v":{"v":0.0585,"d":"5.85%"}},{"$f":"Actif!$E$29/100","v":{"v":0.027999999999999997,"d":"2.80%"}}]
[null,"#104",85,2028,"H","A_VIE",{"v":0.44999999999999996,"d":"0.45"},{"v":0.38999999999999996,"d":"0.39"},0.6,0.6,85,0,{"$f":"ROUND(Primes!$N$4*V2199,0)","v":6},{"$f":"'BP Financier'!$D$33*(('BP Financier'!$C$16+'BP Financier'!$D$16)/('BP Financier'!$C$16+'BP Financier'!$C$19+'BP Financier'!$D$16+'BP Financier'!$D$19))*V2199","v":{"v":159254.65737588026,"d":"159,255"}},{"v":88295.50431436561,"d":"88,296"},{"$f":"'BP Financier'!$D$44*(('BP Financier'!$C$16+'BP Financier'!$D$16)/('BP Financier'!$C$16+'BP Financier'!$C$19+'BP Financier'!$D$16+'BP Financier'!$D$19+'BP Financier'!$C$22+'BP Financier'!$D$22))*$V2199*X2199/(1-$W2199)","v":{"v":11238.738594163275,"d":"11,239"}},{"$f":"'BP Financier'!$D$44*(('BP Financier'!$C$16+'BP Financier'!$D$16)/('BP Financier'!$C$16+'BP Financier'!$C$19+'BP Financier'!$D$16+'BP Financier'!$D$19+'BP Financier'!$C$22+'BP Financier'!$D$22))*$V2199*Y2199/(1-$W2199)","v":{"v":7513.18988891578,"d":"7,513"}},{"$f":"'BP Financier'!$D$44*(('BP Financier'!$C$16+'BP Financier'!$D$16)/('BP Financier'!$C$16+'BP Financier'!$C$19+'BP Financier'!$D$16+'BP Financier'!$D$19+'BP Financier'!$C$22+'BP Financier'!$D$22))*$V2199*Z2199/(1-$W2199)","v":{"v":58801.57706448962,"d":"58,802"}},{"$f":"'BP Financier'!$D$44*(('BP Financier'!$C$16+'BP Financier'!$D$16)/('BP Financier'!$C$16+'BP Financier'!$C$19+'BP Financier'!$D$16+'BP Financier'!$D$19+'BP Financier'!$C$22+'BP Financier'!$D$22))*$V2199*AA2199/(1-$W2199)","v":{"v":7264.819975232614,"d":"7,265"}},{"$f":"'BP Financier'!$D$44*(('BP Financier'!$C$16+'BP Financier'!$D$16)/('BP Financier'!$C$16+'BP Financier'!$C$19+'BP Financier'!$D$16+'BP Financier'!$D$19+'BP Financier'!$C$22+'BP Financier'!$D$22))*$V2199*AB2199/(1-$W2199)","v":{"v":3477.178791564327,"d":"3,477"}},null,{"v":1.25E-3,"d":"0.13%"},{"$f":"Actif!$E$28/100","v":{"v":0.28900000000000003,"d":"28.90%"}},{"$f":"Actif!$E$30/100","v":{"v":0.09050000000000001,"d":"9.05%"}},{"$f":"Actif!$E$31/100","v":{"v":0.0605,"d":"6.05%"}},{"$f":"Actif!$E$32/100","v":{"v":0.47350000000000003,"d":"47.35%"}},{"$f":"Actif!$E$33/100","v":{"v":0.0585,"d":"5.85%"}},{"$f":"Actif!$E$29/100","v":{"v":0.027999999999999997,"d":"2.80%"}}]
[null,"#105",90,2026,"H","A_VIE",{"v":0.44999999999999996,"d":"0.45"},{"v":0.38999999999999996,"d":"0.39"},0.6,0.6,85,0,{"$f":"ROUND(Primes!$N$4*V2200,0)","v":6},{"$f":"'BP Financier'!$D$33*(('BP Financier'!$C$16+'BP Financier'!$D$16)/('BP Financier'!$C$16+'BP Financier'!$C$19+'BP Financier'!$D$16+'BP Financier'!$D$19))*V2200","v":{"v":159254.65737588026,"d":"159,255"}},{"v":88295.50431436561,"d":"88,296"},{"$f":"'BP Financier'!$D$44*(('BP Financier'!$C$16+'BP Financier'!$D$16)/('BP Financier'!$C$16+'BP Financier'!$C$19+'BP Financier'!$D$16+'BP Financier'!$D$19+'BP Financier'!$C$22+'BP Financier'!$D$22))*$V2200*X2200/(1-$W2200)","v":{"v":11238.738594163275,"d":"11,239"}},{"$f":"'BP Financier'!$D$44*(('BP Financier'!$C$16+'BP Financier'!$D$16)/('BP Financier'!$C$16+'BP Financier'!$C$19+'BP Financier'!$D$16+'BP Financier'!$D$19+'BP Financier'!$C$22+'BP Financier'!$D$22))*$V2200*Y2200/(1-$W2200)","v":{"v":7513.18988891578,"d":"7,513"}},{"$f":"'BP Financier'!$D$44*(('BP Financier'!$C$16+'BP Financier'!$D$16)/('BP Financier'!$C$16+'BP Financier'!$C$19+'BP Financier'!$D$16+'BP Financier'!$D$19+'BP Financier'!$C$22+'BP Financier'!$D$22))*$V2200*Z2200/(1-$W2200)","v":{"v":58801.57706448962,"d":"58,802"}},{"$f":"'BP Financier'!$D$44*(('BP Financier'!$C$16+'BP Financier'!$D$16)/('BP Financier'!$C$16+'BP Financier'!$C$19+'BP Financier'!$D$16+'BP Financier'!$D$19+'BP Financier'!$C$22+'BP Financier'!$D$22))*$V2200*AA2200/(1-$W2200)","v":{"v":7264.819975232614,"d":"7,265"}},{"$f":"'BP Financier'!$D$44*(('BP Financier'!$C$16+'BP Financier'!$D$16)/('BP Financier'!$C$16+'BP Financier'!$C$19+'BP Financier'!$D$16+'BP Financier'!$D$19+'BP Financier'!$C$22+'BP Financier'!$D$22))*$V2200*AB2200/(1-$W2200)","v":{"v":3477.178791564327,"d":"3,477"}},null,{"v":1.25E-3,"d":"0.13%"},{"$f":"Actif!$E$28/100","v":{"v":0.28900000000000003,"d":"28.90%"}},{"$f":"Actif!$E$30/100","v":{"v":0.09050000000000001,"d":"9.05%"}},{"$f":"Actif!$E$31/100","v":{"v":0.0605,"d":"6.05%"}},{"$f":"Actif!$E$32/100","v":{"v":0.47350000000000003,"d":"47.35%"}},{"$f":"Actif!$E$33/100","v":{"v":0.0585,"d":"5.85%"}},{"$f":"Actif!$E$29/100","v":{"v":0.027999999999999997,"d":"2.80%"}}]
[null,"#106",90,2028,"H","A_VIE",{"v":0.44999999999999996,"d":"0.45"},{"v":0.38999999999999996,"d":"0.39"},0.6,0.6,85,0,{"$f":"ROUND(Primes!$N$4*V2201,0)","v":6},{"$f":"'BP Financier'!$D$33*(('BP Financier'!$C$16+'BP Financier'!$D$16)/('BP Financier'!$C$16+'BP Financier'!$C$19+'BP Financier'!$D$16+'BP Financier'!$D$19))*V2201","v":{"v":159254.65737588026,"d":"159,255"}},{"v":88295.50431436561,"d":"88,296"},{"$f":"'BP Financier'!$D$44*(('BP Financier'!$C$16+'BP Financier'!$D$16)/('BP Financier'!$C$16+'BP Financier'!$C$19+'BP Financier'!$D$16+'BP Financier'!$D$19+'BP Financier'!$C$22+'BP Financier'!$D$22))*$V2201*X2201/(1-$W2201)","v":{"v":11238.738594163275,"d":"11,239"}},{"$f":"'BP Financier'!$D$44*(('BP Financier'!$C$16+'BP Financier'!$D$16)/('BP Financier'!$C$16+'BP Financier'!$C$19+'BP Financier'!$D$16+'BP Financier'!$D$19+'BP Financier'!$C$22+'BP Financier'!$D$22))*$V2201*Y2201/(1-$W2201)","v":{"v":7513.18988891578,"d":"7,513"}},{"$f":"'BP Financier'!$D$44*(('BP Financier'!$C$16+'BP Financier'!$D$16)/('BP Financier'!$C$16+'BP Financier'!$C$19+'BP Financier'!$D$16+'BP Financier'!$D$19+'BP Financier'!$C$22+'BP Financier'!$D$22))*$V2201*Z2201/(1-$W2201)","v":{"v":58801.57706448962,"d":"58,802"}},{"$f":"'BP Financier'!$D$44*(('BP Financier'!$C$16+'BP Financier'!$D$16)/('BP Financier'!$C$16+'BP Financier'!$C$19+'BP Financier'!$D$16+'BP Financier'!$D$19+'BP Financier'!$C$22+'BP Financier'!$D$22))*$V2201*AA2201/(1-$W2201)","v":{"v":7264.819975232614,"d":"7,265"}},{"$f":"'BP Financier'!$D$44*(('BP Financier'!$C$16+'BP Financier'!$D$16)/('BP Financier'!$C$16+'BP Financier'!$C$19+'BP Financier'!$D$16+'BP Financier'!$D$19+'BP Financier'!$C$22+'BP Financier'!$D$22))*$V2201*AB2201/(1-$W2201)","v":{"v":3477.178791564327,"d":"3,477"}},null,{"v":1.25E-3,"d":"0.13%"},{"$f":"Actif!$E$28/100","v":{"v":0.28900000000000003,"d":"28.90%"}},{"$f":"Actif!$E$30/100","v":{"v":0.09050000000000001,"d":"9.05%"}},{"$f":"Actif!$E$31/100","v":{"v":0.0605,"d":"6.05%"}},{"$f":"Actif!$E$32/100","v":{"v":0.47350000000000003,"d":"47.35%"}},{"$f":"Actif!$E$33/100","v":{"v":0.0585,"d":"5.85%"}},{"$f":"Actif!$E$29/100","v":{"v":0.027999999999999997,"d":"2.80%"}}]
[null,"#107",18,2026,"H","A_CAPI",{"v":0.44999999999999996,"d":"0.45"},{"v":0.38999999999999996,"d":"0.39"},0.6,0.6,85,0,{"$f":"ROUND(Primes!$N$10*V2202,2)","v":{"v":0.04,"d":"0.040"}},0,{"$f":"SUM(P2202:T2202)","v":{"v":804.7605279298534,"d":"805"}},{"$f":"'BP Financier'!$D$44*(('BP Financier'!$C$22+'BP Financier'!$D$22)/('BP Financier'!$C$16+'BP Financier'!$C$19+'BP Financier'!$D$16+'BP Financier'!$D$19+'BP Financier'!$C$22+'BP Financier'!$D$22))*$V2202*X2202/(1-$W2202)","v":{"v":102.43435693059317,"d":"102"}},{"$f":"'BP Financier'!$D$44*(('BP Financier'!$C$22+'BP Financier'!$D$22)/('BP Financier'!$C$16+'BP Financier'!$C$19+'BP Financier'!$D$16+'BP Financier'!$D$19+'BP Financier'!$C$22+'BP Financier'!$D$22))*$V2202*Y2202/(1-$W2202)","v":{"v":68.47821651161199,"d":"68"}},{"$f":"'BP Financier'!$D$44*(('BP Financier'!$C$22+'BP Financier'!$D$22)/('BP Financier'!$C$16+'BP Financier'!$C$19+'BP Financier'!$D$16+'BP Financier'!$D$19+'BP Financier'!$C$22+'BP Financier'!$D$22))*$V2202*Z2202/(1-$W2202)","v":{"v":535.9410829462525,"d":"536"}},{"$f":"'BP Financier'!$D$44*(('BP Financier'!$C$22+'BP Financier'!$D$22)/('BP Financier'!$C$16+'BP Financier'!$C$19+'BP Financier'!$D$16+'BP Financier'!$D$19+'BP Financier'!$C$22+'BP Financier'!$D$22))*$V2202*AA2202/(1-$W2202)","v":{"v":66.21447381701326,"d":"66"}},{"$f":"'BP Financier'!$D$44*(('BP Financier'!$C$22+'BP Financier'!$D$22)/('BP Financier'!$C$16+'BP Financier'!$C$19+'BP Financier'!$D$16+'BP Financier'!$D$19+'BP Financier'!$C$22+'BP Financier'!$D$22))*$V2202*AB2202/(1-$W2202)","v":{"v":31.69239772438241,"d":"32"}},null,{"v":0.0025,"d":"0.25%"},{"$f":"Actif!$E$28/100","v":{"v":0.28900000000000003,"d":"28.90%"}},{"$f":"Actif!$E$30/100","v":{"v":0.09050000000000001,"d":"9.05%"}},{"$f":"Actif!$E$31/100","v":{"v":0.0605,"d":"6.05%"}},{"$f":"Actif!$E$32/100","v":{"v":0.47350000000000003,"d":"47.35%"}},{"$f":"Actif!$E$33/100","v":{"v":0.0585,"d":"5.85%"}},{"$f":"Actif!$E$29/100","v":{"v":0.027999999999999997,"d":"2.80%"}}]
[null,"#108",18,2028,"H","A_CAPI",{"v":0.44999999999999996,"d":"0.45"},{"v":0.38999999999999996,"d":"0.39"},0.6,0.6,85,0,{"$f":"ROUND(Primes!$N$10*V2203,2)","v":{"v":0.04,"d":"0.040"}},0,{"$f":"SUM(P2203:T2203)","v":{"v":804.7605279298534,"d":"805"}},{"$f":"'BP Financier'!$D$44*(('BP Financier'!$C$22+'BP Financier'!$D$22)/('BP Financier'!$C$16+'BP Financier'!$C$19+'BP Financier'!$D$16+'BP Financier'!$D$19+'BP Financier'!$C$22+'BP Financier'!$D$22))*$V2203*X2203/(1-$W2203)","v":{"v":102.43435693059317,"d":"102"}},{"$f":"'BP Financier'!$D$44*(('BP Financier'!$C$22+'BP Financier'!$D$22)/('BP Financier'!$C$16+'BP Financier'!$C$19+'BP Financier'!$D$16+'BP Financier'!$D$19+'BP Financier'!$C$22+'BP Financier'!$D$22))*$V2203*Y2203/(1-$W2203)","v":{"v":68.47821651161199,"d":"68"}},{"$f":"'BP Financier'!$D$44*(('BP Financier'!$C$22+'BP Financier'!$D$22)/('BP Financier'!$C$16+'BP Financier'!$C$19+'BP Financier'!$D$16+'BP Financier'!$D$19+'BP Financier'!$C$22+'BP Financier'!$D$22))*$V2203*Z2203/(1-$W2203)","v":{"v":535.9410829462525,"d":"536"}},{"$f":"'BP Financier'!$D$44*(('BP Financier'!$C$22+'BP Financier'!$D$22)/('BP Financier'!$C$16+'BP Financier'!$C$19+'BP Financier'!$D$16+'BP Financier'!$D$19+'BP Financier'!$C$22+'BP Financier'!$D$22))*$V2203*AA2203/(1-$W2203)","v":{"v":66.21447381701326,"d":"66"}},{"$f":"'BP Financier'!$D$44*(('BP Financier'!$C$22+'BP Financier'!$D$22)/('BP Financier'!$C$16+'BP Financier'!$C$19+'BP Financier'!$D$16+'BP Financier'!$D$19+'BP Financier'!$C$22+'BP Financier'!$D$22))*$V2203*AB2203/(1-$W2203)","v":{"v":31.69239772438241,"d":"32"}},null,{"v":0.0025,"d":"0.25%"},{"$f":"Actif!$E$28/100","v":{"v":0.28900000000000003,"d":"28.90%"}},{"$f":"Actif!$E$30/100","v":{"v":0.09050000000000001,"d":"9.05%"}},{"$f":"Actif!$E$31/100","v":{"v":0.0605,"d":"6.05%"}},{"$f":"Actif!$E$32/100","v":{"v":0.47350000000000003,"d":"47.35%"}},{"$f":"Actif!$E$33/100","v":{"v":0.0585,"d":"5.85%"}},{"$f":"Actif!$E$29/100","v":{"v":0.027999999999999997,"d":"2.80%"}}]
[null,"#109",19,2026,"H","A_CAPI",{"v":0.44999999999999996,"d":"0.45"},{"v":0.38999999999999996,"d":"0.39"},0.6,0.6,85,0,{"$f":"ROUND(Primes!$N$10*V2204,2)","v":{"v":0.04,"d":"0.040"}},0,{"v":804.7605279298534,"d":"805"},{"$f":"'BP Financier'!$D$44*(('BP Financier'!$C$22+'BP Financier'!$D$22)/('BP Financier'!$C$16+'BP Financier'!$C$19+'BP Financier'!$D$16+'BP Financier'!$D$19+'BP Financier'!$C$22+'BP Financier'!$D$22))*$V2204*X2204/(1-$W2204)","v":{"v":102.43435693059317,"d":"102"}},{"$f":"'BP Financier'!$D$44*(('BP Financier'!$C$22+'BP Financier'!$D$22)/('BP Financier'!$C$16+'BP Financier'!$C$19+'BP Financier'!$D$16+'BP Financier'!$D$19+'BP Financier'!$C$22+'BP Financier'!$D$22))*$V2204*Y2204/(1-$W2204)","v":{"v":68.47821651161199,"d":"68"}},{"$f":"'BP Financier'!$D$44*(('BP Financier'!$C$22+'BP Financier'!$D$22)/('BP Financier'!$C$16+'BP Financier'!$C$19+'BP Financier'!$D$16+'BP Financier'!$D$19+'BP Financier'!$C$22+'BP Financier'!$D$22))*$V2204*Z2204/(1-$W2204)","v":{"v":535.9410829462525,"d":"536"}},{"$f":"'BP Financier'!$D$44*(('BP Financier'!$C$22+'BP Financier'!$D$22)/('BP Financier'!$C$16+'BP Financier'!$C$19+'BP Financier'!$D$16+'BP Financier'!$D$19+'BP Financier'!$C$22+'BP Financier'!$D$22))*$V2204*AA2204/(1-$W2204)","v":{"v":66.21447381701326,"d":"66"}},{"$f":"'BP Financier'!$D$44*(('BP Financier'!$C$22+'BP Financier'!$D$22)/('BP Financier'!$C$16+'BP Financier'!$C$19+'BP Financier'!$D$16+'BP Financier'!$D$19+'BP Financier'!$C$22+'BP Financier'!$D$22))*$V2204*AB2204/(1-$W2204)","v":{"v":31.69239772438241,"d":"32"}},null,{"v":0.0025,"d":"0.25%"},{"$f":"Actif!$E$28/100","v":{"v":0.28900000000000003,"d":"28.90%"}},{"$f":"Actif!$E$30/100","v":{"v":0.09050000000000001,"d":"9.05%"}},{"$f":"Actif!$E$31/100","v":{"v":0.0605,"d":"6.05%"}},{"$f":"Actif!$E$32/100","v":{"v":0.47350000000000003,"d":"47.35%"}},{"$f":"Actif!$E$33/100","v":{"v":0.0585,"d":"5.85%"}},{"$f":"Actif!$E$29/100","v":{"v":0.027999999999999997,"d":"2.80%"}}]
[null,"#110",19,2028,"H","A_CAPI",{"v":0.44999999999999996,"d":"0.45"},{"v":0.38999999999999996,"d":"0.39"},0.6,0.6,85,0,{"$f":"ROUND(Primes!$N$10*V2205,2)","v":{"v":0.04,"d":"0.040"}},0,{"v":804.7605279298534,"d":"805"},{"$f":"'BP Financier'!$D$44*(('BP Financier'!$C$22+'BP Financier'!$D$22)/('BP Financier'!$C$16+'BP Financier'!$C$19+'BP Financier'!$D$16+'BP Financier'!$D$19+'BP Financier'!$C$22+'BP Financier'!$D$22))*$V2205*X2205/(1-$W2205)","v":{"v":102.43435693059317,"d":"102"}},{"$f":"'BP Financier'!$D$44*(('BP Financier'!$C$22+'BP Financier'!$D$22)/('BP Financier'!$C$16+'BP Financier'!$C$19+'BP Financier'!$D$16+'BP Financier'!$D$19+'BP Financier'!$C$22+'BP Financier'!$D$22))*$V2205*Y2205/(1-$W2205)","v":{"v":68.47821651161199,"d":"68"}},{"$f":"'BP Financier'!$D$44*(('BP Financier'!$C$22+'BP Financier'!$D$22)/('BP Financier'!$C$16+'BP Financier'!$C$19+'BP Financier'!$D$16+'BP Financier'!$D$19+'BP Financier'!$C$22+'BP Financier'!$D$22))*$V2205*Z2205/(1-$W2205)","v":{"v":535.9410829462525,"d":"536"}},{"$f":"'BP Financier'!$D$44*(('BP Financier'!$C$22+'BP Financier'!$D$22)/('BP Financier'!$C$16+'BP Financier'!$C$19+'BP Financier'!$D$16+'BP Financier'!$D$19+'BP Financier'!$C$22+'BP Financier'!$D$22))*$V2205*AA2205/(1-$W2205)","v":{"v":66.21447381701326,"d":"66"}},{"$f":"'BP Financier'!$D$44*(('BP Financier'!$C$22+'BP Financier'!$D$22)/('BP Financier'!$C$16+'BP Financier'!$C$19+'BP Financier'!$D$16+'BP Financier'!$D$19+'BP Financier'!$C$22+'BP Financier'!$D$22))*$V2205*AB2205/(1-$W2205)","v":{"v":31.69239772438241,"d":"32"}},null,{"v":0.0025,"d":"0.25%"},{"$f":"Actif!$E$28/100","v":{"v":0.28900000000000003,"d":"28.90%"}},{"$f":"Actif!$E$30/100","v":{"v":0.09050000000000001,"d":"9.05%"}},{"$f":"Actif!$E$31/100","v":{"v":0.0605,"d":"6.05%"}},{"$f":"Actif!$E$32/100","v":{"v":0.47350000000000003,"d":"47.35%"}},{"$f":"Actif!$E$33/100","v":{"v":0.0585,"d":"5.85%"}},{"$f":"Actif!$E$29/100","v":{"v":0.027999999999999997,"d":"2.80%"}}]
[null,"#111",20,2026,"F","A_CAPI",{"v":0.44999999999999996,"d":"0.45"},{"v":0.38999999999999996,"d":"0.39"},0.6,0.6,85,0,{"$f":"ROUND(Primes!$N$10*V2206,2)","v":{"v":0.08,"d":"0.080"}},0,{"v":1609.5210558597068,"d":"1,610"},{"$f":"'BP Financier'!$D$44*(('BP Financier'!$C$22+'BP Financier'!$D$22)/('BP Financier'!$C$16+'BP Financier'!$C$19+'BP Financier'!$D$16+'BP Financier'!$D$19+'BP Financier'!$C$22+'BP Financier'!$D$22))*$V2206*X2206/(1-$W2206)","v":{"v":204.86871386118634,"d":"205"}},{"$f":"'BP Financier'!$D$44*(('BP Financier'!$C$22+'BP Financier'!$D$22)/('BP Financier'!$C$16+'BP Financier'!$C$19+'BP Financier'!$D$16+'BP Financier'!$D$19+'BP Financier'!$C$22+'BP Financier'!$D$22))*$V2206*Y2206/(1-$W2206)","v":{"v":136.95643302322398,"d":"137"}},{"$f":"'BP Financier'!$D$44*(('BP Financier'!$C$22+'BP Financier'!$D$22)/('BP Financier'!$C$16+'BP Financier'!$C$19+'BP Financier'!$D$16+'BP Financier'!$D$19+'BP Financier'!$C$22+'BP Financier'!$D$22))*$V2206*Z2206/(1-$W2206)","v":{"v":1071.882165892505,"d":"1,072"}},{"$f":"'BP Financier'!$D$44*(('BP Financier'!$C$22+'BP Financier'!$D$22)/('BP Financier'!$C$16+'BP Financier'!$C$19+'BP Financier'!$D$16+'BP Financier'!$D$19+'BP Financier'!$C$22+'BP Financier'!$D$22))*$V2206*AA2206/(1-$W2206)","v":{"v":132.4289476340265,"d":"132"}},{"$f":"'BP Financier'!$D$44*(('BP Financier'!$C$22+'BP Financier'!$D$22)/('BP Financier'!$C$16+'BP Financier'!$C$19+'BP Financier'!$D$16+'BP Financier'!$D$19+'BP Financier'!$C$22+'BP Financier'!$D$22))*$V2206*AB2206/(1-$W2206)","v":{"v":63.38479544876482,"d":"63"}},null,{"v":0.005,"d":"0.50%"},{"$f":"Actif!$E$28/100","v":{"v":0.28900000000000003,"d":"28.90%"}},{"$f":"Actif!$E$30/100","v":{"v":0.09050000000000001,"d":"9.05%"}},{"$f":"Actif!$E$31/100","v":{"v":0.0605,"d":"6.05%"}},{"$f":"Actif!$E$32/100","v":{"v":0.47350000000000003,"d":"47.35%"}},{"$f":"Actif!$E$33/100","v":{"v":0.0585,"d":"5.85%"}},{"$f":"Actif!$E$29/100","v":{"v":0.027999999999999997,"d":"2.80%"}}]
[null,"#112",20,2028,"F","A_CAPI",{"v":0.44999999999999996,"d":"0.45"},{"v":0.38999999999999996,"d":"0.39"},0.6,0.6,85,0,{"$f":"ROUND(Primes!$N$10*V2207,2)","v":{"v":0.08,"d":"0.080"}},0,{"v":1609.5210558597068,"d":"1,610"},{"$f":"'BP Financier'!$D$44*(('BP Financier'!$C$22+'BP Financier'!$D$22)/('BP Financier'!$C$16+'BP Financier'!$C$19+'BP Financier'!$D$16+'BP Financier'!$D$19+'BP Financier'!$C$22+'BP Financier'!$D$22))*$V2207*X2207/(1-$W2207)","v":{"v":204.86871386118634,"d":"205"}},{"$f":"'BP Financier'!$D$44*(('BP Financier'!$C$22+'BP Financier'!$D$22)/('BP Financier'!$C$16+'BP Financier'!$C$19+'BP Financier'!$D$16+'BP Financier'!$D$19+'BP Financier'!$C$22+'BP Financier'!$D$22))*$V2207*Y2207/(1-$W2207)","v":{"v":136.95643302322398,"d":"137"}},{"$f":"'BP Financier'!$D$44*(('BP Financier'!$C$22+'BP Financier'!$D$22)/('BP Financier'!$C$16+'BP Financier'!$C$19+'BP Financier'!$D$16+'BP Financier'!$D$19+'BP Financier'!$C$22+'BP Financier'!$D$22))*$V2207*Z2207/(1-$W2207)","v":{"v":1071.882165892505,"d":"1,072"}},{"$f":"'BP Financier'!$D$44*(('BP Financier'!$C$22+'BP Financier'!$D$22)/('BP Financier'!$C$16+'BP Financier'!$C$19+'BP Financier'!$D$16+'BP Financier'!$D$19+'BP Financier'!$C$22+'BP Financier'!$D$22))*$V2207*AA2207/(1-$W2207)","v":{"v":132.4289476340265,"d":"132"}},{"$f":"'BP Financier'!$D$44*(('BP Financier'!$C$22+'BP Financier'!$D$22)/('BP Financier'!$C$16+'BP Financier'!$C$19+'BP Financier'!$D$16+'BP Financier'!$D$19+'BP Financier'!$C$22+'BP Financier'!$D$22))*$V2207*AB2207/(1-$W2207)","v":{"v":63.38479544876482,"d":"63"}},null,{"v":0.005,"d":"0.50%"},{"$f":"Actif!$E$28/100","v":{"v":0.28900000000000003,"d":"28.90%"}},{"$f":"Actif!$E$30/100","v":{"v":0.09050000000000001,"d":"9.05%"}},{"$f":"Actif!$E$31/100","v":{"v":0.0605,"d":"6.05%"}},{"$f":"Actif!$E$32/100","v":{"v":0.47350000000000003,"d":"47.35%"}},{"$f":"Actif!$E$33/100","v":{"v":0.0585,"d":"5.85%"}},{"$f":"Actif!$E$29/100","v":{"v":0.027999999999999997,"d":"2.80%"}}]
[null,"#113",21,2026,"H","A_CAPI",{"v":0.44999999999999996,"d":"0.45"},{"v":0.38999999999999996,"d":"0.39"},0.6,0.6,85,0,{"$f":"ROUND(Primes!$N$10*V2208,2)","v":{"v":0.08,"d":"0.080"}},0,{"v":1609.5210558597068,"d":"1,610"},{"$f":"'BP Financier'!$D$44*(('BP Financier'!$C$22+'BP Financier'!$D$22)/('BP Financier'!$C$16+'BP Financier'!$C$19+'BP Financier'!$D$16+'BP Financier'!$D$19+'BP Financier'!$C$22+'BP Financier'!$D$22))*$V2208*X2208/(1-$W2208)","v":{"v":204.86871386118634,"d":"205"}},{"$f":"'BP Financier'!$D$44*(('BP Financier'!$C$22+'BP Financier'!$D$22)/('BP Financier'!$C$16+'BP Financier'!$C$19+'BP Financier'!$D$16+'BP Financier'!$D$19+'BP Financier'!$C$22+'BP Financier'!$D$22))*$V2208*Y2208/(1-$W2208)","v":{"v":136.95643302322398,"d":"137"}},{"$f":"'BP Financier'!$D$44*(('BP Financier'!$C$22+'BP Financier'!$D$22)/('BP Financier'!$C$16+'BP Financier'!$C$19+'BP Financier'!$D$16+'BP Financier'!$D$19+'BP Financier'!$C$22+'BP Financier'!$D$22))*$V2208*Z2208/(1-$W2208)","v":{"v":1071.882165892505,"d":"1,072"}},{"$f":"'BP Financier'!$D$44*(('BP Financier'!$C$22+'BP Financier'!$D$22)/('BP Financier'!$C$16+'BP Financier'!$C$19+'BP Financier'!$D$16+'BP Financier'!$D$19+'BP Financier'!$C$22+'BP Financier'!$D$22))*$V2208*AA2208/(1-$W2208)","v":{"v":132.4289476340265,"d":"132"}},{"$f":"'BP Financier'!$D$44*(('BP Financier'!$C$22+'BP Financier'!$D$22)/('BP Financier'!$C$16+'BP Financier'!$C$19+'BP Financier'!$D$16+'BP Financier'!$D$19+'BP Financier'!$C$22+'BP Financier'!$D$22))*$V2208*AB2208/(1-$W2208)","v":{"v":63.38479544876482,"d":"63"}},null,{"v":0.005,"d":"0.50%"},{"$f":"Actif!$E$28/100","v":{"v":0.28900000000000003,"d":"28.90%"}},{"$f":"Actif!$E$30/100","v":{"v":0.09050000000000001,"d":"9.05%"}},{"$f":"Actif!$E$31/100","v":{"v":0.0605,"d":"6.05%"}},{"$f":"Actif!$E$32/100","v":{"v":0.47350000000000003,"d":"47.35%"}},{"$f":"Actif!$E$33/100","v":{"v":0.0585,"d":"5.85%"}},{"$f":"Actif!$E$29/100","v":{"v":0.027999999999999997,"d":"2.80%"}}]
[null,"#114",21,2028,"H","A_CAPI",{"v":0.44999999999999996,"d":"0.45"},{"v":0.38999999999999996,"d":"0.39"},0.6,0.6,85,0,{"$f":"ROUND(Primes!$N$10*V2209,2)","v":{"v":0.08,"d":"0.080"}},0,{"v":1609.5210558597068,"d":"1,610"},{"$f":"'BP Financier'!$D$44*(('BP Financier'!$C$22+'BP Financier'!$D$22)/('BP Financier'!$C$16+'BP Financier'!$C$19+'BP Financier'!$D$16+'BP Financier'!$D$19+'BP Financier'!$C$22+'BP Financier'!$D$22))*$V2209*X2209/(1-$W2209)","v":{"v":204.86871386118634,"d":"205"}},{"$f":"'BP Financier'!$D$44*(('BP Financier'!$C$22+'BP Financier'!$D$22)/('BP Financier'!$C$16+'BP Financier'!$C$19+'BP Financier'!$D$16+'BP Financier'!$D$19+'BP Financier'!$C$22+'BP Financier'!$D$22))*$V2209*Y2209/(1-$W2209)","v":{"v":136.95643302322398,"d":"137"}},{"$f":"'BP Financier'!$D$44*(('BP Financier'!$C$22+'BP Financier'!$D$22)/('BP Financier'!$C$16+'BP Financier'!$C$19+'BP Financier'!$D$16+'BP Financier'!$D$19+'BP Financier'!$C$22+'BP Financier'!$D$22))*$V2209*Z2209/(1-$W2209)","v":{"v":1071.882165892505,"d":"1,072"}},{"$f":"'BP Financier'!$D$44*(('BP Financier'!$C$22+'BP Financier'!$D$22)/('BP Financier'!$C$16+'BP Financier'!$C$19+'BP Financier'!$D$16+'BP Financier'!$D$19+'BP Financier'!$C$22+'BP Financier'!$D$22))*$V2209*AA2209/(1-$W2209)","v":{"v":132.4289476340265,"d":"132"}},{"$f":"'BP Financier'!$D$44*(('BP Financier'!$C$22+'BP Financier'!$D$22)/('BP Financier'!$C$16+'BP Financier'!$C$19+'BP Financier'!$D$16+'BP Financier'!$D$19+'BP Financier'!$C$22+'BP Financier'!$D$22))*$V2209*AB2209/(1-$W2209)","v":{"v":63.38479544876482,"d":"63"}},null,{"v":0.005,"d":"0.50%"},{"$f":"Actif!$E$28/100","v":{"v":0.28900000000000003,"d":"28.90%"}},{"$f":"Actif!$E$30/100","v":{"v":0.09050000000000001,"d":"9.05%"}},{"$f":"Actif!$E$31/100","v":{"v":0.0605,"d":"6.05%"}},{"$f":"Actif!$E$32/100","v":{"v":0.47350000000000003,"d":"47.35%"}},{"$f":"Actif!$E$33/100","v":{"v":0.0585,"d":"5.85%"}},{"$f":"Actif!$E$29/100","v":{"v":0.027999999999999997,"d":"2.80%"}}]
[null,"#115",22,2026,"H","A_CAPI",{"v":0.44999999999999996,"d":"0.45"},{"v":0.38999999999999996,"d":"0.39"},0.6,0.6,85,0,{"$f":"ROUND(Primes!$N$10*V2210,2)","v":{"v":0.08,"d":"0.080"}},0,{"v":1609.5210558597068,"d":"1,610"},{"$f":"'BP Financier'!$D$44*(('BP Financier'!$C$22+'BP Financier'!$D$22)/('BP Financier'!$C$16+'BP Financier'!$C$19+'BP Financier'!$D$16+'BP Financier'!$D$19+'BP Financier'!$C$22+'BP Financier'!$D$22))*$V2210*X2210/(1-$W2210)","v":{"v":204.86871386118634,"d":"205"}},{"$f":"'BP Financier'!$D$44*(('BP Financier'!$C$22+'BP Financier'!$D$22)/('BP Financier'!$C$16+'BP Financier'!$C$19+'BP Financier'!$D$16+'BP Financier'!$D$19+'BP Financier'!$C$22+'BP Financier'!$D$22))*$V2210*Y2210/(1-$W2210)","v":{"v":136.95643302322398,"d":"137"}},{"$f":"'BP Financier'!$D$44*(('BP Financier'!$C$22+'BP Financier'!$D$22)/('BP Financier'!$C$16+'BP Financier'!$C$19+'BP Financier'!$D$16+'BP Financier'!$D$19+'BP Financier'!$C$22+'BP Financier'!$D$22))*$V2210*Z2210/(1-$W2210)","v":{"v":1071.882165892505,"d":"1,072"}},{"$f":"'BP Financier'!$D$44*(('BP Financier'!$C$22+'BP Financier'!$D$22)/('BP Financier'!$C$16+'BP Financier'!$C$19+'BP Financier'!$D$16+'BP Financier'!$D$19+'BP Financier'!$C$22+'BP Financier'!$D$22))*$V2210*AA2210/(1-$W2210)","v":{"v":132.4289476340265,"d":"132"}},{"$f":"'BP Financier'!$D$44*(('BP Financier'!$C$22+'BP Financier'!$D$22)/('BP Financier'!$C$16+'BP Financier'!$C$19+'BP Financier'!$D$16+'BP Financier'!$D$19+'BP Financier'!$C$22+'BP Financier'!$D$22))*$V2210*AB2210/(1-$W2210)","v":{"v":63.38479544876482,"d":"63"}},null,{"v":0.005,"d":"0.50%"},{"$f":"Actif!$E$28/100","v":{"v":0.28900000000000003,"d":"28.90%"}},{"$f":"Actif!$E$30/100","v":{"v":0.09050000000000001,"d":"9.05%"}},{"$f":"Actif!$E$31/100","v":{"v":0.0605,"d":"6.05%"}},{"$f":"Actif!$E$32/100","v":{"v":0.47350000000000003,"d":"47.35%"}},{"$f":"Actif!$E$33/100","v":{"v":0.0585,"d":"5.85%"}},{"$f":"Actif!$E$29/100","v":{"v":0.027999999999999997,"d":"2.80%"}}]
[null,"#116",22,2028,"H","A_CAPI",{"v":0.44999999999999996,"d":"0.45"},{"v":0.38999999999999996,"d":"0.39"},0.6,0.6,85,0,{"$f":"ROUND(Primes!$N$10*V2211,2)","v":{"v":0.08,"d":"0.080"}},0,{"v":1609.5210558597068,"d":"1,610"},{"$f":"'BP Financier'!$D$44*(('BP Financier'!$C$22+'BP Financier'!$D$22)/('BP Financier'!$C$16+'BP Financier'!$C$19+'BP Financier'!$D$16+'BP Financier'!$D$19+'BP Financier'!$C$22+'BP Financier'!$D$22))*$V2211*X2211/(1-$W2211)","v":{"v":204.86871386118634,"d":"205"}},{"$f":"'BP Financier'!$D$44*(('BP Financier'!$C$22+'BP Financier'!$D$22)/('BP Financier'!$C$16+'BP Financier'!$C$19+'BP Financier'!$D$16+'BP Financier'!$D$19+'BP Financier'!$C$22+'BP Financier'!$D$22))*$V2211*Y2211/(1-$W2211)","v":{"v":136.95643302322398,"d":"137"}},{"$f":"'BP Financier'!$D$44*(('BP Financier'!$C$22+'BP Financier'!$D$22)/('BP Financier'!$C$16+'BP Financier'!$C$19+'BP Financier'!$D$16+'BP Financier'!$D$19+'BP Financier'!$C$22+'BP Financier'!$D$22))*$V2211*Z2211/(1-$W2211)","v":{"v":1071.882165892505,"d":"1,072"}},{"$f":"'BP Financier'!$D$44*(('BP Financier'!$C$22+'BP Financier'!$D$22)/('BP Financier'!$C$16+'BP Financier'!$C$19+'BP Financier'!$D$16+'BP Financier'!$D$19+'BP Financier'!$C$22+'BP Financier'!$D$22))*$V2211*AA2211/(1-$W2211)","v":{"v":132.4289476340265,"d":"132"}},{"$f":"'BP Financier'!$D$44*(('BP Financier'!$C$22+'BP Financier'!$D$22)/('BP Financier'!$C$16+'BP Financier'!$C$19+'BP Financier'!$D$16+'BP Financier'!$D$19+'BP Financier'!$C$22+'BP Financier'!$D$22))*$V2211*AB2211/(1-$W2211)","v":{"v":63.38479544876482,"d":"63"}},null,{"v":0.005,"d":"0.50%"},{"$f":"Actif!$E$28/100","v":{"v":0.28900000000000003,"d":"28.90%"}},{"$f":"Actif!$E$30/100","v":{"v":0.09050000000000001,"d":"9.05%"}},{"$f":"Actif!$E$31/100","v":{"v":0.0605,"d":"6.05%"}},{"$f":"Actif!$E$32/100","v":{"v":0.47350000000000003,"d":"47.35%"}},{"$f":"Actif!$E$33/100","v":{"v":0.0585,"d":"5.85%"}},{"$f":"Actif!$E$29/100","v":{"v":0.027999999999999997,"d":"2.80%"}}]
[null,"#117",23,2026,"F","A_CAPI",{"v":0.44999999999999996,"d":"0.45"},{"v":0.38999999999999996,"d":"0.39"},0.6,0.6,85,0,{"$f":"ROUND(Primes!$N$10*V2212,2)","v":{"v":0.08,"d":"0.080"}},0,{"v":1609.5210558597068,"d":"1,610"},{"$f":"'BP Financier'!$D$44*(('BP Financier'!$C$22+'BP Financier'!$D$22)/('BP Financier'!$C$16+'BP Financier'!$C$19+'BP Financier'!$D$16+'BP Financier'!$D$19+'BP Financier'!$C$22+'BP Financier'!$D$22))*$V2212*X2212/(1-$W2212)","v":{"v":204.86871386118634,"d":"205"}},{"$f":"'BP Financier'!$D$44*(('BP Financier'!$C$22+'BP Financier'!$D$22)/('BP Financier'!$C$16+'BP Financier'!$C$19+'BP Financier'!$D$16+'BP Financier'!$D$19+'BP Financier'!$C$22+'BP Financier'!$D$22))*$V2212*Y2212/(1-$W2212)","v":{"v":136.95643302322398,"d":"137"}},{"$f":"'BP Financier'!$D$44*(('BP Financier'!$C$22+'BP Financier'!$D$22)/('BP Financier'!$C$16+'BP Financier'!$C$19+'BP Financier'!$D$16+'BP Financier'!$D$19+'BP Financier'!$C$22+'BP Financier'!$D$22))*$V2212*Z2212/(1-$W2212)","v":{"v":1071.882165892505,"d":"1,072"}},{"$f":"'BP Financier'!$D$44*(('BP Financier'!$C$22+'BP Financier'!$D$22)/('BP Financier'!$C$16+'BP Financier'!$C$19+'BP Financier'!$D$16+'BP Financier'!$D$19+'BP Financier'!$C$22+'BP Financier'!$D$22))*$V2212*AA2212/(1-$W2212)","v":{"v":132.4289476340265,"d":"132"}},{"$f":"'BP Financier'!$D$44*(('BP Financier'!$C$22+'BP Financier'!$D$22)/('BP Financier'!$C$16+'BP Financier'!$C$19+'BP Financier'!$D$16+'BP Financier'!$D$19+'BP Financier'!$C$22+'BP Financier'!$D$22))*$V2212*AB2212/(1-$W2212)","v":{"v":63.38479544876482,"d":"63"}},null,{"v":0.005,"d":"0.50%"},{"$f":"Actif!$E$28/100","v":{"v":0.28900000000000003,"d":"28.90%"}},{"$f":"Actif!$E$30/100","v":{"v":0.09050000000000001,"d":"9.05%"}},{"$f":"Actif!$E$31/100","v":{"v":0.0605,"d":"6.05%"}},{"$f":"Actif!$E$32/100","v":{"v":0.47350000000000003,"d":"47.35%"}},{"$f":"Actif!$E$33/100","v":{"v":0.0585,"d":"5.85%"}},{"$f":"Actif!$E$29/100","v":{"v":0.027999999999999997,"d":"2.80%"}}]
[null,"#118",23,2028,"F","A_CAPI",{"v":0.44999999999999996,"d":"0.45"},{"v":0.38999999999999996,"d":"0.39"},0.6,0.6,85,0,{"$f":"ROUND(Primes!$N$10*V2213,2)","v":{"v":0.08,"d":"0.080"}},0,{"v":1609.5210558597068,"d":"1,610"},{"$f":"'BP Financier'!$D$44*(('BP Financier'!$C$22+'BP Financier'!$D$22)/('BP Financier'!$C$16+'BP Financier'!$C$19+'BP Financier'!$D$16+'BP Financier'!$D$19+'BP Financier'!$C$22+'BP Financier'!$D$22))*$V2213*X2213/(1-$W2213)","v":{"v":204.86871386118634,"d":"205"}},{"$f":"'BP Financier'!$D$44*(('BP Financier'!$C$22+'BP Financier'!$D$22)/('BP Financier'!$C$16+'BP Financier'!$C$19+'BP Financier'!$D$16+'BP Financier'!$D$19+'BP Financier'!$C$22+'BP Financier'!$D$22))*$V2213*Y2213/(1-$W2213)","v":{"v":136.95643302322398,"d":"137"}},{"$f":"'BP Financier'!$D$44*(('BP Financier'!$C$22+'BP Financier'!$D$22)/('BP Financier'!$C$16+'BP Financier'!$C$19+'BP Financier'!$D$16+'BP Financier'!$D$19+'BP Financier'!$C$22+'BP Financier'!$D$22))*$V2213*Z2213/(1-$W2213)","v":{"v":1071.882165892505,"d":"1,072"}},{"$f":"'BP Financier'!$D$44*(('BP Financier'!$C$22+'BP Financier'!$D$22)/('BP Financier'!$C$16+'BP Financier'!$C$19+'BP Financier'!$D$16+'BP Financier'!$D$19+'BP Financier'!$C$22+'BP Financier'!$D$22))*$V2213*AA2213/(1-$W2213)","v":{"v":132.4289476340265,"d":"132"}},{"$f":"'BP Financier'!$D$44*(('BP Financier'!$C$22+'BP Financier'!$D$22)/('BP Financier'!$C$16+'BP Financier'!$C$19+'BP Financier'!$D$16+'BP Financier'!$D$19+'BP Financier'!$C$22+'BP Financier'!$D$22))*$V2213*AB2213/(1-$W2213)","v":{"v":63.38479544876482,"d":"63"}},null,{"v":0.005,"d":"0.50%"},{"$f":"Actif!$E$28/100","v":{"v":0.28900000000000003,"d":"28.90%"}},{"$f":"Actif!$E$30/100","v":{"v":0.09050000000000001,"d":"9.05%"}},{"$f":"Actif!$E$31/100","v":{"v":0.0605,"d":"6.05%"}},{"$f":"Actif!$E$32/100","v":{"v":0.47350000000000003,"d":"47.35%"}},{"$f":"Actif!$E$33/100","v":{"v":0.0585,"d":"5.85%"}},{"$f":"Actif!$E$29/100","v":{"v":0.027999999999999997,"d":"2.80%"}}]
[null,"#119",24,2026,"H","A_CAPI",{"v":0.44999999999999996,"d":"0.45"},{"v":0.38999999999999996,"d":"0.39"},0.6,0.6,85,0,{"$f":"ROUND(Primes!$N$10*V2214,2)","v":{"v":0.08,"d":"0.080"}},0,{"v":1609.5210558597068,"d":"1,610"},{"$f":"'BP Financier'!$D$44*(('BP Financier'!$C$22+'BP Financier'!$D$22)/('BP Financier'!$C$16+'BP Financier'!$C$19+'BP Financier'!$D$16+'BP Financier'!$D$19+'BP Financier'!$C$22+'BP Financier'!$D$22))*$V2214*X2214/(1-$W2214)","v":{"v":204.86871386118634,"d":"205"}},{"$f":"'BP Financier'!$D$44*(('BP Financier'!$C$22+'BP Financier'!$D$22)/('BP Financier'!$C$16+'BP Financier'!$C$19+'BP Financier'!$D$16+'BP Financier'!$D$19+'BP Financier'!$C$22+'BP Financier'!$D$22))*$V2214*Y2214/(1-$W2214)","v":{"v":136.95643302322398,"d":"137"}},{"$f":"'BP Financier'!$D$44*(('BP Financier'!$C$22+'BP Financier'!$D$22)/('BP Financier'!$C$16+'BP Financier'!$C$19+'BP Financier'!$D$16+'BP Financier'!$D$19+'BP Financier'!$C$22+'BP Financier'!$D$22))*$V2214*Z2214/(1-$W2214)","v":{"v":1071.882165892505,"d":"1,072"}},{"$f":"'BP Financier'!$D$44*(('BP Financier'!$C$22+'BP Financier'!$D$22)/('BP Financier'!$C$16+'BP Financier'!$C$19+'BP Financier'!$D$16+'BP Financier'!$D$19+'BP Financier'!$C$22+'BP Financier'!$D$22))*$V2214*AA2214/(1-$W2214)","v":{"v":132.4289476340265,"d":"132"}},{"$f":"'BP Financier'!$D$44*(('BP Financier'!$C$22+'BP Financier'!$D$22)/('BP Financier'!$C$16+'BP Financier'!$C$19+'BP Financier'!$D$16+'BP Financier'!$D$19+'BP Financier'!$C$22+'BP Financier'!$D$22))*$V2214*AB2214/(1-$W2214)","v":{"v":63.38479544876482,"d":"63"}},null,{"v":0.005,"d":"0.50%"},{"$f":"Actif!$E$28/100","v":{"v":0.28900000000000003,"d":"28.90%"}},{"$f":"Actif!$E$30/100","v":{"v":0.09050000000000001,"d":"9.05%"}},{"$f":"Actif!$E$31/100","v":{"v":0.0605,"d":"6.05%"}},{"$f":"Actif!$E$32/100","v":{"v":0.47350000000000003,"d":"47.35%"}},{"$f":"Actif!$E$33/100","v":{"v":0.0585,"d":"5.85%"}},{"$f":"Actif!$E$29/100","v":{"v":0.027999999999999997,"d":"2.80%"}}]
[null,"#120",24,2028,"H","A_CAPI",{"v":0.44999999999999996,"d":"0.45"},{"v":0.38999999999999996,"d":"0.39"},0.6,0.6,85,0,{"$f":"ROUND(Primes!$N$10*V2215,2)","v":{"v":0.08,"d":"0.080"}},0,{"v":1609.5210558597068,"d":"1,610"},{"$f":"'BP Financier'!$D$44*(('BP Financier'!$C$22+'BP Financier'!$D$22)/('BP Financier'!$C$16+'BP Financier'!$C$19+'BP Financier'!$D$16+'BP Financier'!$D$19+'BP Financier'!$C$22+'BP Financier'!$D$22))*$V2215*X2215/(1-$W2215)","v":{"v":204.86871386118634,"d":"205"}},{"$f":"'BP Financier'!$D$44*(('BP Financier'!$C$22+'BP Financier'!$D$22)/('BP Financier'!$C$16+'BP Financier'!$C$19+'BP Financier'!$D$16+'BP Financier'!$D$19+'BP Financier'!$C$22+'BP Financier'!$D$22))*$V2215*Y2215/(1-$W2215)","v":{"v":136.95643302322398,"d":"137"}},{"$f":"'BP Financier'!$D$44*(('BP Financier'!$C$22+'BP Financier'!$D$22)/('BP Financier'!$C$16+'BP Financier'!$C$19+'BP Financier'!$D$16+'BP Financier'!$D$19+'BP Financier'!$C$22+'BP Financier'!$D$22))*$V2215*Z2215/(1-$W2215)","v":{"v":1071.882165892505,"d":"1,072"}},{"$f":"'BP Financier'!$D$44*(('BP Financier'!$C$22+'BP Financier'!$D$22)/('BP Financier'!$C$16+'BP Financier'!$C$19+'BP Financier'!$D$16+'BP Financier'!$D$19+'BP Financier'!$C$22+'BP Financier'!$D$22))*$V2215*AA2215/(1-$W2215)","v":{"v":132.4289476340265,"d":"132"}},{"$f":"'BP Financier'!$D$44*(('BP Financier'!$C$22+'BP Financier'!$D$22)/('BP Financier'!$C$16+'BP Financier'!$C$19+'BP Financier'!$D$16+'BP Financier'!$D$19+'BP Financier'!$C$22+'BP Financier'!$D$22))*$V2215*AB2215/(1-$W2215)","v":{"v":63.38479544876482,"d":"63"}},null,{"v":0.005,"d":"0.50%"},{"$f":"Actif!$E$28/100","v":{"v":0.28900000000000003,"d":"28.90%"}},{"$f":"Actif!$E$30/100","v":{"v":0.09050000000000001,"d":"9.05%"}},{"$f":"Actif!$E$31/100","v":{"v":0.0605,"d":"6.05%"}},{"$f":"Actif!$E$32/100","v":{"v":0.47350000000000003,"d":"47.35%"}},{"$f":"Actif!$E$33/100","v":{"v":0.0585,"d":"5.85%"}},{"$f":"Actif!$E$29/100","v":{"v":0.027999999999999997,"d":"2.80%"}}]
[null,"#121",25,2026,"H","A_CAPI",{"v":0.44999999999999996,"d":"0.45"},{"v":0.38999999999999996,"d":"0.39"},0.6,0.6,85,0,{"$f":"ROUND(Primes!$N$10*V2216,2)","v":{"v":0.38,"d":"0.380"}},0,{"v":8047.605279298534,"d":"8,048"},{"$f":"'BP Financier'!$D$44*(('BP Financier'!$C$22+'BP Financier'!$D$22)/('BP Financier'!$C$16+'BP Financier'!$C$19+'BP Financier'!$D$16+'BP Financier'!$D$19+'BP Financier'!$C$22+'BP Financier'!$D$22))*$V2216*X2216/(1-$W2216)","v":{"v":1024.3435693059316,"d":"1,024"}},{"$f":"'BP Financier'!$D$44*(('BP Financier'!$C$22+'BP Financier'!$D$22)/('BP Financier'!$C$16+'BP Financier'!$C$19+'BP Financier'!$D$16+'BP Financier'!$D$19+'BP Financier'!$C$22+'BP Financier'!$D$22))*$V2216*Y2216/(1-$W2216)","v":{"v":684.7821651161198,"d":"685"}},{"$f":"'BP Financier'!$D$44*(('BP Financier'!$C$22+'BP Financier'!$D$22)/('BP Financier'!$C$16+'BP Financier'!$C$19+'BP Financier'!$D$16+'BP Financier'!$D$19+'BP Financier'!$C$22+'BP Financier'!$D$22))*$V2216*Z2216/(1-$W2216)","v":{"v":5359.410829462526,"d":"5,359"}},{"$f":"'BP Financier'!$D$44*(('BP Financier'!$C$22+'BP Financier'!$D$22)/('BP Financier'!$C$16+'BP Financier'!$C$19+'BP Financier'!$D$16+'BP Financier'!$D$19+'BP Financier'!$C$22+'BP Financier'!$D$22))*$V2216*AA2216/(1-$W2216)","v":{"v":662.1447381701325,"d":"662"}},{"$f":"'BP Financier'!$D$44*(('BP Financier'!$C$22+'BP Financier'!$D$22)/('BP Financier'!$C$16+'BP Financier'!$C$19+'BP Financier'!$D$16+'BP Financier'!$D$19+'BP Financier'!$C$22+'BP Financier'!$D$22))*$V2216*AB2216/(1-$W2216)","v":{"v":316.9239772438241,"d":"317"}},null,{"v":0.025,"d":"2.50%"},{"$f":"Actif!$E$28/100","v":{"v":0.28900000000000003,"d":"28.90%"}},{"$f":"Actif!$E$30/100","v":{"v":0.09050000000000001,"d":"9.05%"}},{"$f":"Actif!$E$31/100","v":{"v":0.0605,"d":"6.05%"}},{"$f":"Actif!$E$32/100","v":{"v":0.47350000000000003,"d":"47.35%"}},{"$f":"Actif!$E$33/100","v":{"v":0.0585,"d":"5.85%"}},{"$f":"Actif!$E$29/100","v":{"v":0.027999999999999997,"d":"2.80%"}}]
[null,"#122",25,2028,"H","A_CAPI",{"v":0.44999999999999996,"d":"0.45"},{"v":0.38999999999999996,"d":"0.39"},0.6,0.6,85,0,{"$f":"ROUND(Primes!$N$10*V2217,2)","v":{"v":0.38,"d":"0.380"}},0,{"v":8047.605279298534,"d":"8,048"},{"$f":"'BP Financier'!$D$44*(('BP Financier'!$C$22+'BP Financier'!$D$22)/('BP Financier'!$C$16+'BP Financier'!$C$19+'BP Financier'!$D$16+'BP Financier'!$D$19+'BP Financier'!$C$22+'BP Financier'!$D$22))*$V2217*X2217/(1-$W2217)","v":{"v":1024.3435693059316,"d":"1,024"}},{"$f":"'BP Financier'!$D$44*(('BP Financier'!$C$22+'BP Financier'!$D$22)/('BP Financier'!$C$16+'BP Financier'!$C$19+'BP Financier'!$D$16+'BP Financier'!$D$19+'BP Financier'!$C$22+'BP Financier'!$D$22))*$V2217*Y2217/(1-$W2217)","v":{"v":684.7821651161198,"d":"685"}},{"$f":"'BP Financier'!$D$44*(('BP Financier'!$C$22+'BP Financier'!$D$22)/('BP Financier'!$C$16+'BP Financier'!$C$19+'BP Financier'!$D$16+'BP Financier'!$D$19+'BP Financier'!$C$22+'BP Financier'!$D$22))*$V2217*Z2217/(1-$W2217)","v":{"v":5359.410829462526,"d":"5,359"}},{"$f":"'BP Financier'!$D$44*(('BP Financier'!$C$22+'BP Financier'!$D$22)/('BP Financier'!$C$16+'BP Financier'!$C$19+'BP Financier'!$D$16+'BP Financier'!$D$19+'BP Financier'!$C$22+'BP Financier'!$D$22))*$V2217*AA2217/(1-$W2217)","v":{"v":662.1447381701325,"d":"662"}},{"$f":"'BP Financier'!$D$44*(('BP Financier'!$C$22+'BP Financier'!$D$22)/('BP Financier'!$C$16+'BP Financier'!$C$19+'BP Financier'!$D$16+'BP Financier'!$D$19+'BP Financier'!$C$22+'BP Financier'!$D$22))*$V2217*AB2217/(1-$W2217)","v":{"v":316.9239772438241,"d":"317"}},null,{"v":0.025,"d":"2.50%"},{"$f":"Actif!$E$28/100","v":{"v":0.28900000000000003,"d":"28.90%"}},{"$f":"Actif!$E$30/100","v":{"v":0.09050000000000001,"d":"9.05%"}},{"$f":"Actif!$E$31/100","v":{"v":0.0605,"d":"6.05%"}},{"$f":"Actif!$E$32/100","v":{"v":0.47350000000000003,"d":"47.35%"}},{"$f":"Actif!$E$33/100","v":{"v":0.0585,"d":"5.85%"}},{"$f":"Actif!$E$29/100","v":{"v":0.027999999999999997,"d":"2.80%"}}]
[null,"#123",26,2026,"F","A_CAPI",{"v":0.44999999999999996,"d":"0.45"},{"v":0.38999999999999996,"d":"0.39"},0.6,0.6,85,0,{"$f":"ROUND(Primes!$N$10*V2218,2)","v":{"v":0.23,"d":"0.230"}},0,{"v":4828.563167579119,"d":"4,829"},{"$f":"'BP Financier'!$D$44*(('BP Financier'!$C$22+'BP Financier'!$D$22)/('BP Financier'!$C$16+'BP Financier'!$C$19+'BP Financier'!$D$16+'BP Financier'!$D$19+'BP Financier'!$C$22+'BP Financier'!$D$22))*$V2218*X2218/(1-$W2218)","v":{"v":614.6061415835588,"d":"615"}},{"$f":"'BP Financier'!$D$44*(('BP Financier'!$C$22+'BP Financier'!$D$22)/('BP Financier'!$C$16+'BP Financier'!$C$19+'BP Financier'!$D$16+'BP Financier'!$D$19+'BP Financier'!$C$22+'BP Financier'!$D$22))*$V2218*Y2218/(1-$W2218)","v":{"v":410.8692990696719,"d":"411"}},{"$f":"'BP Financier'!$D$44*(('BP Financier'!$C$22+'BP Financier'!$D$22)/('BP Financier'!$C$16+'BP Financier'!$C$19+'BP Financier'!$D$16+'BP Financier'!$D$19+'BP Financier'!$C$22+'BP Financier'!$D$22))*$V2218*Z2218/(1-$W2218)","v":{"v":3215.646497677515,"d":"3,216"}},{"$f":"'BP Financier'!$D$44*(('BP Financier'!$C$22+'BP Financier'!$D$22)/('BP Financier'!$C$16+'BP Financier'!$C$19+'BP Financier'!$D$16+'BP Financier'!$D$19+'BP Financier'!$C$22+'BP Financier'!$D$22))*$V2218*AA2218/(1-$W2218)","v":{"v":397.28684290207946,"d":"397"}},{"$f":"'BP Financier'!$D$44*(('BP Financier'!$C$22+'BP Financier'!$D$22)/('BP Financier'!$C$16+'BP Financier'!$C$19+'BP Financier'!$D$16+'BP Financier'!$D$19+'BP Financier'!$C$22+'BP Financier'!$D$22))*$V2218*AB2218/(1-$W2218)","v":{"v":190.15438634629442,"d":"190"}},null,{"v":0.015,"d":"1.50%"},{"$f":"Actif!$E$28/100","v":{"v":0.28900000000000003,"d":"28.90%"}},{"$f":"Actif!$E$30/100","v":{"v":0.09050000000000001,"d":"9.05%"}},{"$f":"Actif!$E$31/100","v":{"v":0.0605,"d":"6.05%"}},{"$f":"Actif!$E$32/100","v":{"v":0.47350000000000003,"d":"47.35%"}},{"$f":"Actif!$E$33/100","v":{"v":0.0585,"d":"5.85%"}},{"$f":"Actif!$E$29/100","v":{"v":0.027999999999999997,"d":"2.80%"}}]
[null,"#124",26,2028,"F","A_CAPI",{"v":0.44999999999999996,"d":"0.45"},{"v":0.38999999999999996,"d":"0.39"},0.6,0.6,85,0,{"$f":"ROUND(Primes!$N$10*V2219,2)","v":{"v":0.23,"d":"0.230"}},0,{"v":4828.563167579119,"d":"4,829"},{"$f":"'BP Financier'!$D$44*(('BP Financier'!$C$22+'BP Financier'!$D$22)/('BP Financier'!$C$16+'BP Financier'!$C$19+'BP Financier'!$D$16+'BP Financier'!$D$19+'BP Financier'!$C$22+'BP Financier'!$D$22))*$V2219*X2219/(1-$W2219)","v":{"v":614.6061415835588,"d":"615"}},{"$f":"'BP Financier'!$D$44*(('BP Financier'!$C$22+'BP Financier'!$D$22)/('BP Financier'!$C$16+'BP Financier'!$C$19+'BP Financier'!$D$16+'BP Financier'!$D$19+'BP Financier'!$C$22+'BP Financier'!$D$22))*$V2219*Y2219/(1-$W2219)","v":{"v":410.8692990696719,"d":"411"}},{"$f":"'BP Financier'!$D$44*(('BP Financier'!$C$22+'BP Financier'!$D$22)/('BP Financier'!$C$16+'BP Financier'!$C$19+'BP Financier'!$D$16+'BP Financier'!$D$19+'BP Financier'!$C$22+'BP Financier'!$D$22))*$V2219*Z2219/(1-$W2219)","v":{"v":3215.646497677515,"d":"3,216"}},{"$f":"'BP Financier'!$D$44*(('BP Financier'!$C$22+'BP Financier'!$D$22)/('BP Financier'!$C$16+'BP Financier'!$C$19+'BP Financier'!$D$16+'BP Financier'!$D$19+'BP Financier'!$C$22+'BP Financier'!$D$22))*$V2219*AA2219/(1-$W2219)","v":{"v":397.28684290207946,"d":"397"}},{"$f":"'BP Financier'!$D$44*(('BP Financier'!$C$22+'BP Financier'!$D$22)/('BP Financier'!$C$16+'BP Financier'!$C$19+'BP Financier'!$D$16+'BP Financier'!$D$19+'BP Financier'!$C$22+'BP Financier'!$D$22))*$V2219*AB2219/(1-$W2219)","v":{"v":190.15438634629442,"d":"190"}},null,{"v":0.015,"d":"1.50%"},{"$f":"Actif!$E$28/100","v":{"v":0.28900000000000003,"d":"28.90%"}},{"$f":"Actif!$E$30/100","v":{"v":0.09050000000000001,"d":"9.05%"}},{"$f":"Actif!$E$31/100","v":{"v":0.0605,"d":"6.05%"}},{"$f":"Actif!$E$32/100","v":{"v":0.47350000000000003,"d":"47.35%"}},{"$f":"Actif!$E$33/100","v":{"v":0.0585,"d":"5.85%"}},{"$f":"Actif!$E$29/100","v":{"v":0.027999999999999997,"d":"2.80%"}}]
[null,"#125",27,2026,"H","A_CAPI",{"v":0.44999999999999996,"d":"0.45"},{"v":0.38999999999999996,"d":"0.39"},0.6,0.6,85,0,{"$f":"ROUND(Primes!$N$10*V2220,2)","v":{"v":0.23,"d":"0.230"}},0,{"v":4828.563167579119,"d":"4,829"},{"$f":"'BP Financier'!$D$44*(('BP Financier'!$C$22+'BP Financier'!$D$22)/('BP Financier'!$C$16+'BP Financier'!$C$19+'BP Financier'!$D$16+'BP Financier'!$D$19+'BP Financier'!$C$22+'BP Financier'!$D$22))*$V2220*X2220/(1-$W2220)","v":{"v":614.6061415835588,"d":"615"}},{"$f":"'BP Financier'!$D$44*(('BP Financier'!$C$22+'BP Financier'!$D$22)/('BP Financier'!$C$16+'BP Financier'!$C$19+'BP Financier'!$D$16+'BP Financier'!$D$19+'BP Financier'!$C$22+'BP Financier'!$D$22))*$V2220*Y2220/(1-$W2220)","v":{"v":410.8692990696719,"d":"411"}},{"$f":"'BP Financier'!$D$44*(('BP Financier'!$C$22+'BP Financier'!$D$22)/('BP Financier'!$C$16+'BP Financier'!$C$19+'BP Financier'!$D$16+'BP Financier'!$D$19+'BP Financier'!$C$22+'BP Financier'!$D$22))*$V2220*Z2220/(1-$W2220)","v":{"v":3215.646497677515,"d":"3,216"}},{"$f":"'BP Financier'!$D$44*(('BP Financier'!$C$22+'BP Financier'!$D$22)/('BP Financier'!$C$16+'BP Financier'!$C$19+'BP Financier'!$D$16+'BP Financier'!$D$19+'BP Financier'!$C$22+'BP Financier'!$D$22))*$V2220*AA2220/(1-$W2220)","v":{"v":397.28684290207946,"d":"397"}},{"$f":"'BP Financier'!$D$44*(('BP Financier'!$C$22+'BP Financier'!$D$22)/('BP Financier'!$C$16+'BP Financier'!$C$19+'BP Financier'!$D$16+'BP Financier'!$D$19+'BP Financier'!$C$22+'BP Financier'!$D$22))*$V2220*AB2220/(1-$W2220)","v":{"v":190.15438634629442,"d":"190"}},null,{"v":0.015,"d":"1.50%"},{"$f":"Actif!$E$28/100","v":{"v":0.28900000000000003,"d":"28.90%"}},{"$f":"Actif!$E$30/100","v":{"v":0.09050000000000001,"d":"9.05%"}},{"$f":"Actif!$E$31/100","v":{"v":0.0605,"d":"6.05%"}},{"$f":"Actif!$E$32/100","v":{"v":0.47350000000000003,"d":"47.35%"}},{"$f":"Actif!$E$33/100","v":{"v":0.0585,"d":"5.85%"}},{"$f":"Actif!$E$29/100","v":{"v":0.027999999999999997,"d":"2.80%"}}]
[null,"#126",27,2028,"H","A_CAPI",{"v":0.44999999999999996,"d":"0.45"},{"v":0.38999999999999996,"d":"0.39"},0.6,0.6,85,0,{"$f":"ROUND(Primes!$N$10*V2221,2)","v":{"v":0.23,"d":"0.230"}},0,{"v":4828.563167579119,"d":"4,829"},{"$f":"'BP Financier'!$D$44*(('BP Financier'!$C$22+'BP Financier'!$D$22)/('BP Financier'!$C$16+'BP Financier'!$C$19+'BP Financier'!$D$16+'BP Financier'!$D$19+'BP Financier'!$C$22+'BP Financier'!$D$22))*$V2221*X2221/(1-$W2221)","v":{"v":614.6061415835588,"d":"615"}},{"$f":"'BP Financier'!$D$44*(('BP Financier'!$C$22+'BP Financier'!$D$22)/('BP Financier'!$C$16+'BP Financier'!$C$19+'BP Financier'!$D$16+'BP Financier'!$D$19+'BP Financier'!$C$22+'BP Financier'!$D$22))*$V2221*Y2221/(1-$W2221)","v":{"v":410.8692990696719,"d":"411"}},{"$f":"'BP Financier'!$D$44*(('BP Financier'!$C$22+'BP Financier'!$D$22)/('BP Financier'!$C$16+'BP Financier'!$C$19+'BP Financier'!$D$16+'BP Financier'!$D$19+'BP Financier'!$C$22+'BP Financier'!$D$22))*$V2221*Z2221/(1-$W2221)","v":{"v":3215.646497677515,"d":"3,216"}},{"$f":"'BP Financier'!$D$44*(('BP Financier'!$C$22+'BP Financier'!$D$22)/('BP Financier'!$C$16+'BP Financier'!$C$19+'BP Financier'!$D$16+'BP Financier'!$D$19+'BP Financier'!$C$22+'BP Financier'!$D$22))*$V2221*AA2221/(1-$W2221)","v":{"v":397.28684290207946,"d":"397"}},{"$f":"'BP Financier'!$D$44*(('BP Financier'!$C$22+'BP Financier'!$D$22)/('BP Financier'!$C$16+'BP Financier'!$C$19+'BP Financier'!$D$16+'BP Financier'!$D$19+'BP Financier'!$C$22+'BP Financier'!$D$22))*$V2221*AB2221/(1-$W2221)","v":{"v":190.15438634629442,"d":"190"}},null,{"v":0.015,"d":"1.50%"},{"$f":"Actif!$E$28/100","v":{"v":0.28900000000000003,"d":"28.90%"}},{"$f":"Actif!$E$30/100","v":{"v":0.09050000000000001,"d":"9.05%"}},{"$f":"Actif!$E$31/100","v":{"v":0.0605,"d":"6.05%"}},{"$f":"Actif!$E$32/100","v":{"v":0.47350000000000003,"d":"47.35%"}},{"$f":"Actif!$E$33/100","v":{"v":0.0585,"d":"5.85%"}},{"$f":"Actif!$E$29/100","v":{"v":0.027999999999999997,"d":"2.80%"}}]
[null,"#127",28,2026,"H","A_CAPI",{"v":0.44999999999999996,"d":"0.45"},{"v":0.38999999999999996,"d":"0.39"},0.6,0.6,85,0,{"$f":"ROUND(Primes!$N$10*V2222,2)","v":{"v":0.23,"d":"0.230"}},0,{"v":4828.563167579119,"d":"4,829"},{"$f":"'BP Financier'!$D$44*(('BP Financier'!$C$22+'BP Financier'!$D$22)/('BP Financier'!$C$16+'BP Financier'!$C$19+'BP Financier'!$D$16+'BP Financier'!$D$19+'BP Financier'!$C$22+'BP Financier'!$D$22))*$V2222*X2222/(1-$W2222)","v":{"v":614.6061415835588,"d":"615"}},{"$f":"'BP Financier'!$D$44*(('BP Financier'!$C$22+'BP Financier'!$D$22)/('BP Financier'!$C$16+'BP Financier'!$C$19+'BP Financier'!$D$16+'BP Financier'!$D$19+'BP Financier'!$C$22+'BP Financier'!$D$22))*$V2222*Y2222/(1-$W2222)","v":{"v":410.8692990696719,"d":"411"}},{"$f":"'BP Financier'!$D$44*(('BP Financier'!$C$22+'BP Financier'!$D$22)/('BP Financier'!$C$16+'BP Financier'!$C$19+'BP Financier'!$D$16+'BP Financier'!$D$19+'BP Financier'!$C$22+'BP Financier'!$D$22))*$V2222*Z2222/(1-$W2222)","v":{"v":3215.646497677515,"d":"3,216"}},{"$f":"'BP Financier'!$D$44*(('BP Financier'!$C$22+'BP Financier'!$D$22)/('BP Financier'!$C$16+'BP Financier'!$C$19+'BP Financier'!$D$16+'BP Financier'!$D$19+'BP Financier'!$C$22+'BP Financier'!$D$22))*$V2222*AA2222/(1-$W2222)","v":{"v":397.28684290207946,"d":"397"}},{"$f":"'BP Financier'!$D$44*(('BP Financier'!$C$22+'BP Financier'!$D$22)/('BP Financier'!$C$16+'BP Financier'!$C$19+'BP Financier'!$D$16+'BP Financier'!$D$19+'BP Financier'!$C$22+'BP Financier'!$D$22))*$V2222*AB2222/(1-$W2222)","v":{"v":190.15438634629442,"d":"190"}},null,{"v":0.015,"d":"1.50%"},{"$f":"Actif!$E$28/100","v":{"v":0.28900000000000003,"d":"28.90%"}},{"$f":"Actif!$E$30/100","v":{"v":0.09050000000000001,"d":"9.05%"}},{"$f":"Actif!$E$31/100","v":{"v":0.0605,"d":"6.05%"}},{"$f":"Actif!$E$32/100","v":{"v":0.47350000000000003,"d":"47.35%"}},{"$f":"Actif!$E$33/100","v":{"v":0.0585,"d":"5.85%"}},{"$f":"Actif!$E$29/100","v":{"v":0.027999999999999997,"d":"2.80%"}}]
[null,"#128",28,2028,"H","A_CAPI",{"v":0.44999999999999996,"d":"0.45"},{"v":0.38999999999999996,"d":"0.39"},0.6,0.6,85,0,{"$f":"ROUND(Primes!$N$10*V2223,2)","v":{"v":0.23,"d":"0.230"}},0,{"v":4828.563167579119,"d":"4,829"},{"$f":"'BP Financier'!$D$44*(('BP Financier'!$C$22+'BP Financier'!$D$22)/('BP Financier'!$C$16+'BP Financier'!$C$19+'BP Financier'!$D$16+'BP Financier'!$D$19+'BP Financier'!$C$22+'BP Financier'!$D$22))*$V2223*X2223/(1-$W2223)","v":{"v":614.6061415835588,"d":"615"}},{"$f":"'BP Financier'!$D$44*(('BP Financier'!$C$22+'BP Financier'!$D$22)/('BP Financier'!$C$16+'BP Financier'!$C$19+'BP Financier'!$D$16+'BP Financier'!$D$19+'BP Financier'!$C$22+'BP Financier'!$D$22))*$V2223*Y2223/(1-$W2223)","v":{"v":410.8692990696719,"d":"411"}},{"$f":"'BP Financier'!$D$44*(('BP Financier'!$C$22+'BP Financier'!$D$22)/('BP Financier'!$C$16+'BP Financier'!$C$19+'BP Financier'!$D$16+'BP Financier'!$D$19+'BP Financier'!$C$22+'BP Financier'!$D$22))*$V2223*Z2223/(1-$W2223)","v":{"v":3215.646497677515,"d":"3,216"}},{"$f":"'BP Financier'!$D$44*(('BP Financier'!$C$22+'BP Financier'!$D$22)/('BP Financier'!$C$16+'BP Financier'!$C$19+'BP Financier'!$D$16+'BP Financier'!$D$19+'BP Financier'!$C$22+'BP Financier'!$D$22))*$V2223*AA2223/(1-$W2223)","v":{"v":397.28684290207946,"d":"397"}},{"$f":"'BP Financier'!$D$44*(('BP Financier'!$C$22+'BP Financier'!$D$22)/('BP Financier'!$C$16+'BP Financier'!$C$19+'BP Financier'!$D$16+'BP Financier'!$D$19+'BP Financier'!$C$22+'BP Financier'!$D$22))*$V2223*AB2223/(1-$W2223)","v":{"v":190.15438634629442,"d":"190"}},null,{"v":0.015,"d":"1.50%"},{"$f":"Actif!$E$28/100","v":{"v":0.28900000000000003,"d":"28.90%"}},{"$f":"Actif!$E$30/100","v":{"v":0.09050000000000001,"d":"9.05%"}},{"$f":"Actif!$E$31/100","v":{"v":0.0605,"d":"6.05%"}},{"$f":"Actif!$E$32/100","v":{"v":0.47350000000000003,"d":"47.35%"}},{"$f":"Actif!$E$33/100","v":{"v":0.0585,"d":"5.85%"}},{"$f":"Actif!$E$29/100","v":{"v":0.027999999999999997,"d":"2.80%"}}]
[null,"#129",29,2026,"F","A_CAPI",{"$f":"frais_gestion_Euro*100","v":{"v":0.44999999999999996,"d":"0.45"}},{"$f":"frais_gestion_UC*100","v":{"v":0.38999999999999996,"d":"0.39"}},{"$f":"frais_distribution_FG*100","v":0.6},{"$f":"frais_distribution_UC*100","v":0.6},85,0,{"$f":"ROUND(Primes!$N$10*V2224,2)","v":{"v":0.23,"d":"0.230"}},0,{"v":4828.563167579119,"d":"4,829"},{"$f":"'BP Financier'!$D$44*(('BP Financier'!$C$22+'BP Financier'!$D$22)/('BP Financier'!$C$16+'BP Financier'!$C$19+'BP Financier'!$D$16+'BP Financier'!$D$19+'BP Financier'!$C$22+'BP Financier'!$D$22))*$V2224*X2224/(1-$W2224)","v":{"v":614.6061415835588,"d":"615"}},{"$f":"'BP Financier'!$D$44*(('BP Financier'!$C$22+'BP Financier'!$D$22)/('BP Financier'!$C$16+'BP Financier'!$C$19+'BP Financier'!$D$16+'BP Financier'!$D$19+'BP Financier'!$C$22+'BP Financier'!$D$22))*$V2224*Y2224/(1-$W2224)","v":{"v":410.8692990696719,"d":"411"}},{"$f":"'BP Financier'!$D$44*(('BP Financier'!$C$22+'BP Financier'!$D$22)/('BP Financier'!$C$16+'BP Financier'!$C$19+'BP Financier'!$D$16+'BP Financier'!$D$19+'BP Financier'!$C$22+'BP Financier'!$D$22))*$V2224*Z2224/(1-$W2224)","v":{"v":3215.646497677515,"d":"3,216"}},{"$f":"'BP Financier'!$D$44*(('BP Financier'!$C$22+'BP Financier'!$D$22)/('BP Financier'!$C$16+'BP Financier'!$C$19+'BP Financier'!$D$16+'BP Financier'!$D$19+'BP Financier'!$C$22+'BP Financier'!$D$22))*$V2224*AA2224/(1-$W2224)","v":{"v":397.28684290207946,"d":"397"}},{"$f":"'BP Financier'!$D$44*(('BP Financier'!$C$22+'BP Financier'!$D$22)/('BP Financier'!$C$16+'BP Financier'!$C$19+'BP Financier'!$D$16+'BP Financier'!$D$19+'BP Financier'!$C$22+'BP Financier'!$D$22))*$V2224*AB2224/(1-$W2224)","v":{"v":190.15438634629442,"d":"190"}},null,{"v":0.015,"d":"1.50%"},{"$f":"Actif!$E$28/100","v":{"v":0.28900000000000003,"d":"28.90%"}},{"$f":"Actif!$E$30/100","v":{"v":0.09050000000000001,"d":"9.05%"}},{"$f":"Actif!$E$31/100","v":{"v":0.0605,"d":"6.05%"}},{"$f":"Actif!$E$32/100","v":{"v":0.47350000000000003,"d":"47.35%"}},{"$f":"Actif!$E$33/100","v":{"v":0.0585,"d":"5.85%"}},{"$f":"Actif!$E$29/100","v":{"v":0.027999999999999997,"d":"2.80%"}}]
[null,"#130",29,2028,"F","A_CAPI",{"v":0.44999999999999996,"d":"0.45"},{"v":0.38999999999999996,"d":"0.39"},0.6,0.6,85,0,{"$f":"ROUND(Primes!$N$10*V2225,2)","v":{"v":0.23,"d":"0.230"}},0,{"v":4828.563167579119,"d":"4,829"},{"$f":"'BP Financier'!$D$44*(('BP Financier'!$C$22+'BP Financier'!$D$22)/('BP Financier'!$C$16+'BP Financier'!$C$19+'BP Financier'!$D$16+'BP Financier'!$D$19+'BP Financier'!$C$22+'BP Financier'!$D$22))*$V2225*X2225/(1-$W2225)","v":{"v":614.6061415835588,"d":"615"}},{"$f":"'BP Financier'!$D$44*(('BP Financier'!$C$22+'BP Financier'!$D$22)/('BP Financier'!$C$16+'BP Financier'!$C$19+'BP Financier'!$D$16+'BP Financier'!$D$19+'BP Financier'!$C$22+'BP Financier'!$D$22))*$V2225*Y2225/(1-$W2225)","v":{"v":410.8692990696719,"d":"411"}},{"$f":"'BP Financier'!$D$44*(('BP Financier'!$C$22+'BP Financier'!$D$22)/('BP Financier'!$C$16+'BP Financier'!$C$19+'BP Financier'!$D$16+'BP Financier'!$D$19+'BP Financier'!$C$22+'BP Financier'!$D$22))*$V2225*Z2225/(1-$W2225)","v":{"v":3215.646497677515,"d":"3,216"}},{"$f":"'BP Financier'!$D$44*(('BP Financier'!$C$22+'BP Financier'!$D$22)/('BP Financier'!$C$16+'BP Financier'!$C$19+'BP Financier'!$D$16+'BP Financier'!$D$19+'BP Financier'!$C$22+'BP Financier'!$D$22))*$V2225*AA2225/(1-$W2225)","v":{"v":397.28684290207946,"d":"397"}},{"$f":"'BP Financier'!$D$44*(('BP Financier'!$C$22+'BP Financier'!$D$22)/('BP Financier'!$C$16+'BP Financier'!$C$19+'BP Financier'!$D$16+'BP Financier'!$D$19+'BP Financier'!$C$22+'BP Financier'!$D$22))*$V2225*AB2225/(1-$W2225)","v":{"v":190.15438634629442,"d":"190"}},null,{"v":0.015,"d":"1.50%"},{"$f":"Actif!$E$28/100","v":{"v":0.28900000000000003,"d":"28.90%"}},{"$f":"Actif!$E$30/100","v":{"v":0.09050000000000001,"d":"9.05%"}},{"$f":"Actif!$E$31/100","v":{"v":0.0605,"d":"6.05%"}},{"$f":"Actif!$E$32/100","v":{"v":0.47350000000000003,"d":"47.35%"}},{"$f":"Actif!$E$33/100","v":{"v":0.0585,"d":"5.85%"}},{"$f":"Actif!$E$29/100","v":{"v":0.027999999999999997,"d":"2.80%"}}]
[null,"#131",30,2026,"H","A_CAPI",{"v":0.44999999999999996,"d":"0.45"},{"v":0.38999999999999996,"d":"0.39"},0.6,0.6,85,0,{"$f":"ROUND(Primes!$N$10*V2226,2)","v":{"v":0.23,"d":"0.230"}},0,{"v":4828.563167579119,"d":"4,829"},{"$f":"'BP Financier'!$D$44*(('BP Financier'!$C$22+'BP Financier'!$D$22)/('BP Financier'!$C$16+'BP Financier'!$C$19+'BP Financier'!$D$16+'BP Financier'!$D$19+'BP Financier'!$C$22+'BP Financier'!$D$22))*$V2226*X2226/(1-$W2226)","v":{"v":614.6061415835588,"d":"615"}},{"$f":"'BP Financier'!$D$44*(('BP Financier'!$C$22+'BP Financier'!$D$22)/('BP Financier'!$C$16+'BP Financier'!$C$19+'BP Financier'!$D$16+'BP Financier'!$D$19+'BP Financier'!$C$22+'BP Financier'!$D$22))*$V2226*Y2226/(1-$W2226)","v":{"v":410.8692990696719,"d":"411"}},{"$f":"'BP Financier'!$D$44*(('BP Financier'!$C$22+'BP Financier'!$D$22)/('BP Financier'!$C$16+'BP Financier'!$C$19+'BP Financier'!$D$16+'BP Financier'!$D$19+'BP Financier'!$C$22+'BP Financier'!$D$22))*$V2226*Z2226/(1-$W2226)","v":{"v":3215.646497677515,"d":"3,216"}},{"$f":"'BP Financier'!$D$44*(('BP Financier'!$C$22+'BP Financier'!$D$22)/('BP Financier'!$C$16+'BP Financier'!$C$19+'BP Financier'!$D$16+'BP Financier'!$D$19+'BP Financier'!$C$22+'BP Financier'!$D$22))*$V2226*AA2226/(1-$W2226)","v":{"v":397.28684290207946,"d":"397"}},{"$f":"'BP Financier'!$D$44*(('BP Financier'!$C$22+'BP Financier'!$D$22)/('BP Financier'!$C$16+'BP Financier'!$C$19+'BP Financier'!$D$16+'BP Financier'!$D$19+'BP Financier'!$C$22+'BP Financier'!$D$22))*$V2226*AB2226/(1-$W2226)","v":{"v":190.15438634629442,"d":"190"}},null,{"v":0.015,"d":"1.50%"},{"$f":"Actif!$E$28/100","v":{"v":0.28900000000000003,"d":"28.90%"}},{"$f":"Actif!$E$30/100","v":{"v":0.09050000000000001,"d":"9.05%"}},{"$f":"Actif!$E$31/100","v":{"v":0.0605,"d":"6.05%"}},{"$f":"Actif!$E$32/100","v":{"v":0.47350000000000003,"d":"47.35%"}},{"$f":"Actif!$E$33/100","v":{"v":0.0585,"d":"5.85%"}},{"$f":"Actif!$E$29/100","v":{"v":0.027999999999999997,"d":"2.80%"}}]
[null,"#132",30,2028,"H","A_CAPI",{"v":0.44999999999999996,"d":"0.45"},{"v":0.38999999999999996,"d":"0.39"},0.6,0.6,85,0,{"$f":"ROUND(Primes!$N$10*V2227,2)","v":{"v":0.23,"d":"0.230"}},0,{"v":4828.563167579119,"d":"4,829"},{"$f":"'BP Financier'!$D$44*(('BP Financier'!$C$22+'BP Financier'!$D$22)/('BP Financier'!$C$16+'BP Financier'!$C$19+'BP Financier'!$D$16+'BP Financier'!$D$19+'BP Financier'!$C$22+'BP Financier'!$D$22))*$V2227*X2227/(1-$W2227)","v":{"v":614.6061415835588,"d":"615"}},{"$f":"'BP Financier'!$D$44*(('BP Financier'!$C$22+'BP Financier'!$D$22)/('BP Financier'!$C$16+'BP Financier'!$C$19+'BP Financier'!$D$16+'BP Financier'!$D$19+'BP Financier'!$C$22+'BP Financier'!$D$22))*$V2227*Y2227/(1-$W2227)","v":{"v":410.8692990696719,"d":"411"}},{"$f":"'BP Financier'!$D$44*(('BP Financier'!$C$22+'BP Financier'!$D$22)/('BP Financier'!$C$16+'BP Financier'!$C$19+'BP Financier'!$D$16+'BP Financier'!$D$19+'BP Financier'!$C$22+'BP Financier'!$D$22))*$V2227*Z2227/(1-$W2227)","v":{"v":3215.646497677515,"d":"3,216"}},{"$f":"'BP Financier'!$D$44*(('BP Financier'!$C$22+'BP Financier'!$D$22)/('BP Financier'!$C$16+'BP Financier'!$C$19+'BP Financier'!$D$16+'BP Financier'!$D$19+'BP Financier'!$C$22+'BP Financier'!$D$22))*$V2227*AA2227/(1-$W2227)","v":{"v":397.28684290207946,"d":"397"}},{"$f":"'BP Financier'!$D$44*(('BP Financier'!$C$22+'BP Financier'!$D$22)/('BP Financier'!$C$16+'BP Financier'!$C$19+'BP Financier'!$D$16+'BP Financier'!$D$19+'BP Financier'!$C$22+'BP Financier'!$D$22))*$V2227*AB2227/(1-$W2227)","v":{"v":190.15438634629442,"d":"190"}},null,{"v":0.015,"d":"1.50%"},{"$f":"Actif!$E$28/100","v":{"v":0.28900000000000003,"d":"28.90%"}},{"$f":"Actif!$E$30/100","v":{"v":0.09050000000000001,"d":"9.05%"}},{"$f":"Actif!$E$31/100","v":{"v":0.0605,"d":"6.05%"}},{"$f":"Actif!$E$32/100","v":{"v":0.47350000000000003,"d":"47.35%"}},{"$f":"Actif!$E$33/100","v":{"v":0.0585,"d":"5.85%"}},{"$f":"Actif!$E$29/100","v":{"v":0.027999999999999997,"d":"2.80%"}}]
[null,"#133",31,2026,"H","A_CAPI",{"v":0.44999999999999996,"d":"0.45"},{"v":0.38999999999999996,"d":"0.39"},0.6,0.6,85,0,{"$f":"ROUND(Primes!$N$10*V2228,2)","v":{"v":0.23,"d":"0.230"}},0,{"v":4828.563167579119,"d":"4,829"},{"$f":"'BP Financier'!$D$44*(('BP Financier'!$C$22+'BP Financier'!$D$22)/('BP Financier'!$C$16+'BP Financier'!$C$19+'BP Financier'!$D$16+'BP Financier'!$D$19+'BP Financier'!$C$22+'BP Financier'!$D$22))*$V2228*X2228/(1-$W2228)","v":{"v":614.6061415835588,"d":"615"}},{"$f":"'BP Financier'!$D$44*(('BP Financier'!$C$22+'BP Financier'!$D$22)/('BP Financier'!$C$16+'BP Financier'!$C$19+'BP Financier'!$D$16+'BP Financier'!$D$19+'BP Financier'!$C$22+'BP Financier'!$D$22))*$V2228*Y2228/(1-$W2228)","v":{"v":410.8692990696719,"d":"411"}},{"$f":"'BP Financier'!$D$44*(('BP Financier'!$C$22+'BP Financier'!$D$22)/('BP Financier'!$C$16+'BP Financier'!$C$19+'BP Financier'!$D$16+'BP Financier'!$D$19+'BP Financier'!$C$22+'BP Financier'!$D$22))*$V2228*Z2228/(1-$W2228)","v":{"v":3215.646497677515,"d":"3,216"}},{"$f":"'BP Financier'!$D$44*(('BP Financier'!$C$22+'BP Financier'!$D$22)/('BP Financier'!$C$16+'BP Financier'!$C$19+'BP Financier'!$D$16+'BP Financier'!$D$19+'BP Financier'!$C$22+'BP Financier'!$D$22))*$V2228*AA2228/(1-$W2228)","v":{"v":397.28684290207946,"d":"397"}},{"$f":"'BP Financier'!$D$44*(('BP Financier'!$C$22+'BP Financier'!$D$22)/('BP Financier'!$C$16+'BP Financier'!$C$19+'BP Financier'!$D$16+'BP Financier'!$D$19+'BP Financier'!$C$22+'BP Financier'!$D$22))*$V2228*AB2228/(1-$W2228)","v":{"v":190.15438634629442,"d":"190"}},null,{"v":0.015,"d":"1.50%"},{"$f":"Actif!$E$28/100","v":{"v":0.28900000000000003,"d":"28.90%"}},{"$f":"Actif!$E$30/100","v":{"v":0.09050000000000001,"d":"9.05%"}},{"$f":"Actif!$E$31/100","v":{"v":0.0605,"d":"6.05%"}},{"$f":"Actif!$E$32/100","v":{"v":0.47350000000000003,"d":"47.35%"}},{"$f":"Actif!$E$33/100","v":{"v":0.0585,"d":"5.85%"}},{"$f":"Actif!$E$29/100","v":{"v":0.027999999999999997,"d":"2.80%"}}]
[null,"#134",31,2028,"H","A_CAPI",{"v":0.44999999999999996,"d":"0.45"},{"v":0.38999999999999996,"d":"0.39"},0.6,0.6,85,0,{"$f":"ROUND(Primes!$N$10*V2229,2)","v":{"v":0.23,"d":"0.230"}},0,{"v":4828.563167579119,"d":"4,829"},{"$f":"'BP Financier'!$D$44*(('BP Financier'!$C$22+'BP Financier'!$D$22)/('BP Financier'!$C$16+'BP Financier'!$C$19+'BP Financier'!$D$16+'BP Financier'!$D$19+'BP Financier'!$C$22+'BP Financier'!$D$22))*$V2229*X2229/(1-$W2229)","v":{"v":614.6061415835588,"d":"615"}},{"$f":"'BP Financier'!$D$44*(('BP Financier'!$C$22+'BP Financier'!$D$22)/('BP Financier'!$C$16+'BP Financier'!$C$19+'BP Financier'!$D$16+'BP Financier'!$D$19+'BP Financier'!$C$22+'BP Financier'!$D$22))*$V2229*Y2229/(1-$W2229)","v":{"v":410.8692990696719,"d":"411"}},{"$f":"'BP Financier'!$D$44*(('BP Financier'!$C$22+'BP Financier'!$D$22)/('BP Financier'!$C$16+'BP Financier'!$C$19+'BP Financier'!$D$16+'BP Financier'!$D$19+'BP Financier'!$C$22+'BP Financier'!$D$22))*$V2229*Z2229/(1-$W2229)","v":{"v":3215.646497677515,"d":"3,216"}},{"$f":"'BP Financier'!$D$44*(('BP Financier'!$C$22+'BP Financier'!$D$22)/('BP Financier'!$C$16+'BP Financier'!$C$19+'BP Financier'!$D$16+'BP Financier'!$D$19+'BP Financier'!$C$22+'BP Financier'!$D$22))*$V2229*AA2229/(1-$W2229)","v":{"v":397.28684290207946,"d":"397"}},{"$f":"'BP Financier'!$D$44*(('BP Financier'!$C$22+'BP Financier'!$D$22)/('BP Financier'!$C$16+'BP Financier'!$C$19+'BP Financier'!$D$16+'BP Financier'!$D$19+'BP Financier'!$C$22+'BP Financier'!$D$22))*$V2229*AB2229/(1-$W2229)","v":{"v":190.15438634629442,"d":"190"}},null,{"v":0.015,"d":"1.50%"},{"$f":"Actif!$E$28/100","v":{"v":0.28900000000000003,"d":"28.90%"}},{"$f":"Actif!$E$30/100","v":{"v":0.09050000000000001,"d":"9.05%"}},{"$f":"Actif!$E$31/100","v":{"v":0.0605,"d":"6.05%"}},{"$f":"Actif!$E$32/100","v":{"v":0.47350000000000003,"d":"47.35%"}},{"$f":"Actif!$E$33/100","v":{"v":0.0585,"d":"5.85%"}},{"$f":"Actif!$E$29/100","v":{"v":0.027999999999999997,"d":"2.80%"}}]
[null,"#135",32,2026,"F","A_CAPI",{"v":0.44999999999999996,"d":"0.45"},{"v":0.38999999999999996,"d":"0.39"},0.6,0.6,85,0,{"$f":"ROUND(Primes!$N$10*V2230,2)","v":{"v":0.23,"d":"0.230"}},0,{"v":4828.563167579119,"d":"4,829"},{"$f":"'BP Financier'!$D$44*(('BP Financier'!$C$22+'BP Financier'!$D$22)/('BP Financier'!$C$16+'BP Financier'!$C$19+'BP Financier'!$D$16+'BP Financier'!$D$19+'BP Financier'!$C$22+'BP Financier'!$D$22))*$V2230*X2230/(1-$W2230)","v":{"v":614.6061415835588,"d":"615"}},{"$f":"'BP Financier'!$D$44*(('BP Financier'!$C$22+'BP Financier'!$D$22)/('BP Financier'!$C$16+'BP Financier'!$C$19+'BP Financier'!$D$16+'BP Financier'!$D$19+'BP Financier'!$C$22+'BP Financier'!$D$22))*$V2230*Y2230/(1-$W2230)","v":{"v":410.8692990696719,"d":"411"}},{"$f":"'BP Financier'!$D$44*(('BP Financier'!$C$22+'BP Financier'!$D$22)/('BP Financier'!$C$16+'BP Financier'!$C$19+'BP Financier'!$D$16+'BP Financier'!$D$19+'BP Financier'!$C$22+'BP Financier'!$D$22))*$V2230*Z2230/(1-$W2230)","v":{"v":3215.646497677515,"d":"3,216"}},{"$f":"'BP Financier'!$D$44*(('BP Financier'!$C$22+'BP Financier'!$D$22)/('BP Financier'!$C$16+'BP Financier'!$C$19+'BP Financier'!$D$16+'BP Financier'!$D$19+'BP Financier'!$C$22+'BP Financier'!$D$22))*$V2230*AA2230/(1-$W2230)","v":{"v":397.28684290207946,"d":"397"}},{"$f":"'BP Financier'!$D$44*(('BP Financier'!$C$22+'BP Financier'!$D$22)/('BP Financier'!$C$16+'BP Financier'!$C$19+'BP Financier'!$D$16+'BP Financier'!$D$19+'BP Financier'!$C$22+'BP Financier'!$D$22))*$V2230*AB2230/(1-$W2230)","v":{"v":190.15438634629442,"d":"190"}},null,{"v":0.015,"d":"1.50%"},{"$f":"Actif!$E$28/100","v":{"v":0.28900000000000003,"d":"28.90%"}},{"$f":"Actif!$E$30/100","v":{"v":0.09050000000000001,"d":"9.05%"}},{"$f":"Actif!$E$31/100","v":{"v":0.0605,"d":"6.05%"}},{"$f":"Actif!$E$32/100","v":{"v":0.47350000000000003,"d":"47.35%"}},{"$f":"Actif!$E$33/100","v":{"v":0.0585,"d":"5.85%"}},{"$f":"Actif!$E$29/100","v":{"v":0.027999999999999997,"d":"2.80%"}}]
[null,"#136",32,2028,"F","A_CAPI",{"v":0.44999999999999996,"d":"0.45"},{"v":0.38999999999999996,"d":"0.39"},0.6,0.6,85,0,{"$f":"ROUND(Primes!$N$10*V2231,2)","v":{"v":0.23,"d":"0.230"}},0,{"v":4828.563167579119,"d":"4,829"},{"$f":"'BP Financier'!$D$44*(('BP Financier'!$C$22+'BP Financier'!$D$22)/('BP Financier'!$C$16+'BP Financier'!$C$19+'BP Financier'!$D$16+'BP Financier'!$D$19+'BP Financier'!$C$22+'BP Financier'!$D$22))*$V2231*X2231/(1-$W2231)","v":{"v":614.6061415835588,"d":"615"}},{"$f":"'BP Financier'!$D$44*(('BP Financier'!$C$22+'BP Financier'!$D$22)/('BP Financier'!$C$16+'BP Financier'!$C$19+'BP Financier'!$D$16+'BP Financier'!$D$19+'BP Financier'!$C$22+'BP Financier'!$D$22))*$V2231*Y2231/(1-$W2231)","v":{"v":410.8692990696719,"d":"411"}},{"$f":"'BP Financier'!$D$44*(('BP Financier'!$C$22+'BP Financier'!$D$22)/('BP Financier'!$C$16+'BP Financier'!$C$19+'BP Financier'!$D$16+'BP Financier'!$D$19+'BP Financier'!$C$22+'BP Financier'!$D$22))*$V2231*Z2231/(1-$W2231)","v":{"v":3215.646497677515,"d":"3,216"}},{"$f":"'BP Financier'!$D$44*(('BP Financier'!$C$22+'BP Financier'!$D$22)/('BP Financier'!$C$16+'BP Financier'!$C$19+'BP Financier'!$D$16+'BP Financier'!$D$19+'BP Financier'!$C$22+'BP Financier'!$D$22))*$V2231*AA2231/(1-$W2231)","v":{"v":397.28684290207946,"d":"397"}},{"$f":"'BP Financier'!$D$44*(('BP Financier'!$C$22+'BP Financier'!$D$22)/('BP Financier'!$C$16+'BP Financier'!$C$19+'BP Financier'!$D$16+'BP Financier'!$D$19+'BP Financier'!$C$22+'BP Financier'!$D$22))*$V2231*AB2231/(1-$W2231)","v":{"v":190.15438634629442,"d":"190"}},null,{"v":0.015,"d":"1.50%"},{"$f":"Actif!$E$28/100","v":{"v":0.28900000000000003,"d":"28.90%"}},{"$f":"Actif!$E$30/100","v":{"v":0.09050000000000001,"d":"9.05%"}},{"$f":"Actif!$E$31/100","v":{"v":0.0605,"d":"6.05%"}},{"$f":"Actif!$E$32/100","v":{"v":0.47350000000000003,"d":"47.35%"}},{"$f":"Actif!$E$33/100","v":{"v":0.0585,"d":"5.85%"}},{"$f":"Actif!$E$29/100","v":{"v":0.027999999999999997,"d":"2.80%"}}]
[null,"#137",33,2026,"H","A_CAPI",{"v":0.44999999999999996,"d":"0.45"},{"v":0.38999999999999996,"d":"0.39"},0.6,0.6,85,0,{"$f":"ROUND(Primes!$N$10*V2232,2)","v":{"v":0.23,"d":"0.230"}},0,{"v":4828.563167579119,"d":"4,829"},{"$f":"'BP Financier'!$D$44*(('BP Financier'!$C$22+'BP Financier'!$D$22)/('BP Financier'!$C$16+'BP Financier'!$C$19+'BP Financier'!$D$16+'BP Financier'!$D$19+'BP Financier'!$C$22+'BP Financier'!$D$22))*$V2232*X2232/(1-$W2232)","v":{"v":614.6061415835588,"d":"615"}},{"$f":"'BP Financier'!$D$44*(('BP Financier'!$C$22+'BP Financier'!$D$22)/('BP Financier'!$C$16+'BP Financier'!$C$19+'BP Financier'!$D$16+'BP Financier'!$D$19+'BP Financier'!$C$22+'BP Financier'!$D$22))*$V2232*Y2232/(1-$W2232)","v":{"v":410.8692990696719,"d":"411"}},{"$f":"'BP Financier'!$D$44*(('BP Financier'!$C$22+'BP Financier'!$D$22)/('BP Financier'!$C$16+'BP Financier'!$C$19+'BP Financier'!$D$16+'BP Financier'!$D$19+'BP Financier'!$C$22+'BP Financier'!$D$22))*$V2232*Z2232/(1-$W2232)","v":{"v":3215.646497677515,"d":"3,216"}},{"$f":"'BP Financier'!$D$44*(('BP Financier'!$C$22+'BP Financier'!$D$22)/('BP Financier'!$C$16+'BP Financier'!$C$19+'BP Financier'!$D$16+'BP Financier'!$D$19+'BP Financier'!$C$22+'BP Financier'!$D$22))*$V2232*AA2232/(1-$W2232)","v":{"v":397.28684290207946,"d":"397"}},{"$f":"'BP Financier'!$D$44*(('BP Financier'!$C$22+'BP Financier'!$D$22)/('BP Financier'!$C$16+'BP Financier'!$C$19+'BP Financier'!$D$16+'BP Financier'!$D$19+'BP Financier'!$C$22+'BP Financier'!$D$22))*$V2232*AB2232/(1-$W2232)","v":{"v":190.15438634629442,"d":"190"}},null,{"v":0.015,"d":"1.50%"},{"$f":"Actif!$E$28/100","v":{"v":0.28900000000000003,"d":"28.90%"}},{"$f":"Actif!$E$30/100","v":{"v":0.09050000000000001,"d":"9.05%"}},{"$f":"Actif!$E$31/100","v":{"v":0.0605,"d":"6.05%"}},{"$f":"Actif!$E$32/100","v":{"v":0.47350000000000003,"d":"47.35%"}},{"$f":"Actif!$E$33/100","v":{"v":0.0585,"d":"5.85%"}},{"$f":"Actif!$E$29/100","v":{"v":0.027999999999999997,"d":"2.80%"}}]
[null,"#138",33,2028,"H","A_CAPI",{"v":0.44999999999999996,"d":"0.45"},{"v":0.38999999999999996,"d":"0.39"},0.6,0.6,85,0,{"$f":"ROUND(Primes!$N$10*V2233,2)","v":{"v":0.23,"d":"0.230"}},0,{"v":4828.563167579119,"d":"4,829"},{"$f":"'BP Financier'!$D$44*(('BP Financier'!$C$22+'BP Financier'!$D$22)/('BP Financier'!$C$16+'BP Financier'!$C$19+'BP Financier'!$D$16+'BP Financier'!$D$19+'BP Financier'!$C$22+'BP Financier'!$D$22))*$V2233*X2233/(1-$W2233)","v":{"v":614.6061415835588,"d":"615"}},{"$f":"'BP Financier'!$D$44*(('BP Financier'!$C$22+'BP Financier'!$D$22)/('BP Financier'!$C$16+'BP Financier'!$C$19+'BP Financier'!$D$16+'BP Financier'!$D$19+'BP Financier'!$C$22+'BP Financier'!$D$22))*$V2233*Y2233/(1-$W2233)","v":{"v":410.8692990696719,"d":"411"}},{"$f":"'BP Financier'!$D$44*(('BP Financier'!$C$22+'BP Financier'!$D$22)/('BP Financier'!$C$16+'BP Financier'!$C$19+'BP Financier'!$D$16+'BP Financier'!$D$19+'BP Financier'!$C$22+'BP Financier'!$D$22))*$V2233*Z2233/(1-$W2233)","v":{"v":3215.646497677515,"d":"3,216"}},{"$f":"'BP Financier'!$D$44*(('BP Financier'!$C$22+'BP Financier'!$D$22)/('BP Financier'!$C$16+'BP Financier'!$C$19+'BP Financier'!$D$16+'BP Financier'!$D$19+'BP Financier'!$C$22+'BP Financier'!$D$22))*$V2233*AA2233/(1-$W2233)","v":{"v":397.28684290207946,"d":"397"}},{"$f":"'BP Financier'!$D$44*(('BP Financier'!$C$22+'BP Financier'!$D$22)/('BP Financier'!$C$16+'BP Financier'!$C$19+'BP Financier'!$D$16+'BP Financier'!$D$19+'BP Financier'!$C$22+'BP Financier'!$D$22))*$V2233*AB2233/(1-$W2233)","v":{"v":190.15438634629442,"d":"190"}},null,{"v":0.015,"d":"1.50%"},{"$f":"Actif!$E$28/100","v":{"v":0.28900000000000003,"d":"28.90%"}},{"$f":"Actif!$E$30/100","v":{"v":0.09050000000000001,"d":"9.05%"}},{"$f":"Actif!$E$31/100","v":{"v":0.0605,"d":"6.05%"}},{"$f":"Actif!$E$32/100","v":{"v":0.47350000000000003,"d":"47.35%"}},{"$f":"Actif!$E$33/100","v":{"v":0.0585,"d":"5.85%"}},{"$f":"Actif!$E$29/100","v":{"v":0.027999999999999997,"d":"2.80%"}}]
[null,"#139",34,2026,"H","A_CAPI",{"v":0.44999999999999996,"d":"0.45"},{"v":0.38999999999999996,"d":"0.39"},0.6,0.6,85,0,{"$f":"ROUND(Primes!$N$10*V2234,2)","v":{"v":0.23,"d":"0.230"}},0,{"v":4828.563167579119,"d":"4,829"},{"$f":"'BP Financier'!$D$44*(('BP Financier'!$C$22+'BP Financier'!$D$22)/('BP Financier'!$C$16+'BP Financier'!$C$19+'BP Financier'!$D$16+'BP Financier'!$D$19+'BP Financier'!$C$22+'BP Financier'!$D$22))*$V2234*X2234/(1-$W2234)","v":{"v":614.6061415835588,"d":"615"}},{"$f":"'BP Financier'!$D$44*(('BP Financier'!$C$22+'BP Financier'!$D$22)/('BP Financier'!$C$16+'BP Financier'!$C$19+'BP Financier'!$D$16+'BP Financier'!$D$19+'BP Financier'!$C$22+'BP Financier'!$D$22))*$V2234*Y2234/(1-$W2234)","v":{"v":410.8692990696719,"d":"411"}},{"$f":"'BP Financier'!$D$44*(('BP Financier'!$C$22+'BP Financier'!$D$22)/('BP Financier'!$C$16+'BP Financier'!$C$19+'BP Financier'!$D$16+'BP Financier'!$D$19+'BP Financier'!$C$22+'BP Financier'!$D$22))*$V2234*Z2234/(1-$W2234)","v":{"v":3215.646497677515,"d":"3,216"}},{"$f":"'BP Financier'!$D$44*(('BP Financier'!$C$22+'BP Financier'!$D$22)/('BP Financier'!$C$16+'BP Financier'!$C$19+'BP Financier'!$D$16+'BP Financier'!$D$19+'BP Financier'!$C$22+'BP Financier'!$D$22))*$V2234*AA2234/(1-$W2234)","v":{"v":397.28684290207946,"d":"397"}},{"$f":"'BP Financier'!$D$44*(('BP Financier'!$C$22+'BP Financier'!$D$22)/('BP Financier'!$C$16+'BP Financier'!$C$19+'BP Financier'!$D$16+'BP Financier'!$D$19+'BP Financier'!$C$22+'BP Financier'!$D$22))*$V2234*AB2234/(1-$W2234)","v":{"v":190.15438634629442,"d":"190"}},null,{"v":0.015,"d":"1.50%"},{"$f":"Actif!$E$28/100","v":{"v":0.28900000000000003,"d":"28.90%"}},{"$f":"Actif!$E$30/100","v":{"v":0.09050000000000001,"d":"9.05%"}},{"$f":"Actif!$E$31/100","v":{"v":0.0605,"d":"6.05%"}},{"$f":"Actif!$E$32/100","v":{"v":0.47350000000000003,"d":"47.35%"}},{"$f":"Actif!$E$33/100","v":{"v":0.0585,"d":"5.85%"}},{"$f":"Actif!$E$29/100","v":{"v":0.027999999999999997,"d":"2.80%"}}]
[null,"#140",34,2028,"H","A_CAPI",{"v":0.44999999999999996,"d":"0.45"},{"v":0.38999999999999996,"d":"0.39"},0.6,0.6,85,0,{"$f":"ROUND(Primes!$N$10*V2235,2)","v":{"v":0.23,"d":"0.230"}},0,{"v":4828.563167579119,"d":"4,829"},{"$f":"'BP Financier'!$D$44*(('BP Financier'!$C$22+'BP Financier'!$D$22)/('BP Financier'!$C$16+'BP Financier'!$C$19+'BP Financier'!$D$16+'BP Financier'!$D$19+'BP Financier'!$C$22+'BP Financier'!$D$22))*$V2235*X2235/(1-$W2235)","v":{"v":614.6061415835588,"d":"615"}},{"$f":"'BP Financier'!$D$44*(('BP Financier'!$C$22+'BP Financier'!$D$22)/('BP Financier'!$C$16+'BP Financier'!$C$19+'BP Financier'!$D$16+'BP Financier'!$D$19+'BP Financier'!$C$22+'BP Financier'!$D$22))*$V2235*Y2235/(1-$W2235)","v":{"v":410.8692990696719,"d":"411"}},{"$f":"'BP Financier'!$D$44*(('BP Financier'!$C$22+'BP Financier'!$D$22)/('BP Financier'!$C$16+'BP Financier'!$C$19+'BP Financier'!$D$16+'BP Financier'!$D$19+'BP Financier'!$C$22+'BP Financier'!$D$22))*$V2235*Z2235/(1-$W2235)","v":{"v":3215.646497677515,"d":"3,216"}},{"$f":"'BP Financier'!$D$44*(('BP Financier'!$C$22+'BP Financier'!$D$22)/('BP Financier'!$C$16+'BP Financier'!$C$19+'BP Financier'!$D$16+'BP Financier'!$D$19+'BP Financier'!$C$22+'BP Financier'!$D$22))*$V2235*AA2235/(1-$W2235)","v":{"v":397.28684290207946,"d":"397"}},{"$f":"'BP Financier'!$D$44*(('BP Financier'!$C$22+'BP Financier'!$D$22)/('BP Financier'!$C$16+'BP Financier'!$C$19+'BP Financier'!$D$16+'BP Financier'!$D$19+'BP Financier'!$C$22+'BP Financier'!$D$22))*$V2235*AB2235/(1-$W2235)","v":{"v":190.15438634629442,"d":"190"}},null,{"v":0.015,"d":"1.50%"},{"$f":"Actif!$E$28/100","v":{"v":0.28900000000000003,"d":"28.90%"}},{"$f":"Actif!$E$30/100","v":{"v":0.09050000000000001,"d":"9.05%"}},{"$f":"Actif!$E$31/100","v":{"v":0.0605,"d":"6.05%"}},{"$f":"Actif!$E$32/100","v":{"v":0.47350000000000003,"d":"47.35%"}},{"$f":"Actif!$E$33/100","v":{"v":0.0585,"d":"5.85%"}},{"$f":"Actif!$E$29/100","v":{"v":0.027999999999999997,"d":"2.80%"}}]
[null,"#141",35,2026,"F","A_CAPI",{"v":0.44999999999999996,"d":"0.45"},{"v":0.38999999999999996,"d":"0.39"},0.6,0.6,85,0,{"$f":"ROUND(Primes!$N$10*V2236,2)","v":{"v":0.23,"d":"0.230"}},0,{"v":4828.563167579119,"d":"4,829"},{"$f":"'BP Financier'!$D$44*(('BP Financier'!$C$22+'BP Financier'!$D$22)/('BP Financier'!$C$16+'BP Financier'!$C$19+'BP Financier'!$D$16+'BP Financier'!$D$19+'BP Financier'!$C$22+'BP Financier'!$D$22))*$V2236*X2236/(1-$W2236)","v":{"v":614.6061415835588,"d":"615"}},{"$f":"'BP Financier'!$D$44*(('BP Financier'!$C$22+'BP Financier'!$D$22)/('BP Financier'!$C$16+'BP Financier'!$C$19+'BP Financier'!$D$16+'BP Financier'!$D$19+'BP Financier'!$C$22+'BP Financier'!$D$22))*$V2236*Y2236/(1-$W2236)","v":{"v":410.8692990696719,"d":"411"}},{"$f":"'BP Financier'!$D$44*(('BP Financier'!$C$22+'BP Financier'!$D$22)/('BP Financier'!$C$16+'BP Financier'!$C$19+'BP Financier'!$D$16+'BP Financier'!$D$19+'BP Financier'!$C$22+'BP Financier'!$D$22))*$V2236*Z2236/(1-$W2236)","v":{"v":3215.646497677515,"d":"3,216"}},{"$f":"'BP Financier'!$D$44*(('BP Financier'!$C$22+'BP Financier'!$D$22)/('BP Financier'!$C$16+'BP Financier'!$C$19+'BP Financier'!$D$16+'BP Financier'!$D$19+'BP Financier'!$C$22+'BP Financier'!$D$22))*$V2236*AA2236/(1-$W2236)","v":{"v":397.28684290207946,"d":"397"}},{"$f":"'BP Financier'!$D$44*(('BP Financier'!$C$22+'BP Financier'!$D$22)/('BP Financier'!$C$16+'BP Financier'!$C$19+'BP Financier'!$D$16+'BP Financier'!$D$19+'BP Financier'!$C$22+'BP Financier'!$D$22))*$V2236*AB2236/(1-$W2236)","v":{"v":190.15438634629442,"d":"190"}},null,{"v":0.015,"d":"1.50%"},{"$f":"Actif!$E$28/100","v":{"v":0.28900000000000003,"d":"28.90%"}},{"$f":"Actif!$E$30/100","v":{"v":0.09050000000000001,"d":"9.05%"}},{"$f":"Actif!$E$31/100","v":{"v":0.0605,"d":"6.05%"}},{"$f":"Actif!$E$32/100","v":{"v":0.47350000000000003,"d":"47.35%"}},{"$f":"Actif!$E$33/100","v":{"v":0.0585,"d":"5.85%"}},{"$f":"Actif!$E$29/100","v":{"v":0.027999999999999997,"d":"2.80%"}}]
[null,"#142",35,2028,"F","A_CAPI",{"v":0.44999999999999996,"d":"0.45"},{"v":0.38999999999999996,"d":"0.39"},0.6,0.6,85,0,{"$f":"ROUND(Primes!$N$10*V2237,2)","v":{"v":0.23,"d":"0.230"}},0,{"v":4828.563167579119,"d":"4,829"},{"$f":"'BP Financier'!$D$44*(('BP Financier'!$C$22+'BP Financier'!$D$22)/('BP Financier'!$C$16+'BP Financier'!$C$19+'BP Financier'!$D$16+'BP Financier'!$D$19+'BP Financier'!$C$22+'BP Financier'!$D$22))*$V2237*X2237/(1-$W2237)","v":{"v":614.6061415835588,"d":"615"}},{"$f":"'BP Financier'!$D$44*(('BP Financier'!$C$22+'BP Financier'!$D$22)/('BP Financier'!$C$16+'BP Financier'!$C$19+'BP Financier'!$D$16+'BP Financier'!$D$19+'BP Financier'!$C$22+'BP Financier'!$D$22))*$V2237*Y2237/(1-$W2237)","v":{"v":410.8692990696719,"d":"411"}},{"$f":"'BP Financier'!$D$44*(('BP Financier'!$C$22+'BP Financier'!$D$22)/('BP Financier'!$C$16+'BP Financier'!$C$19+'BP Financier'!$D$16+'BP Financier'!$D$19+'BP Financier'!$C$22+'BP Financier'!$D$22))*$V2237*Z2237/(1-$W2237)","v":{"v":3215.646497677515,"d":"3,216"}},{"$f":"'BP Financier'!$D$44*(('BP Financier'!$C$22+'BP Financier'!$D$22)/('BP Financier'!$C$16+'BP Financier'!$C$19+'BP Financier'!$D$16+'BP Financier'!$D$19+'BP Financier'!$C$22+'BP Financier'!$D$22))*$V2237*AA2237/(1-$W2237)","v":{"v":397.28684290207946,"d":"397"}},{"$f":"'BP Financier'!$D$44*(('BP Financier'!$C$22+'BP Financier'!$D$22)/('BP Financier'!$C$16+'BP Financier'!$C$19+'BP Financier'!$D$16+'BP Financier'!$D$19+'BP Financier'!$C$22+'BP Financier'!$D$22))*$V2237*AB2237/(1-$W2237)","v":{"v":190.15438634629442,"d":"190"}},null,{"v":0.015,"d":"1.50%"},{"$f":"Actif!$E$28/100","v":{"v":0.28900000000000003,"d":"28.90%"}},{"$f":"Actif!$E$30/100","v":{"v":0.09050000000000001,"d":"9.05%"}},{"$f":"Actif!$E$31/100","v":{"v":0.0605,"d":"6.05%"}},{"$f":"Actif!$E$32/100","v":{"v":0.47350000000000003,"d":"47.35%"}},{"$f":"Actif!$E$33/100","v":{"v":0.0585,"d":"5.85%"}},{"$f":"Actif!$E$29/100","v":{"v":0.027999999999999997,"d":"2.80%"}}]
[null,"#143",36,2026,"H","A_CAPI",{"v":0.44999999999999996,"d":"0.45"},{"v":0.38999999999999996,"d":"0.39"},0.6,0.6,85,0,{"$f":"ROUND(Primes!$N$10*V2238,2)","v":{"v":0.04,"d":"0.040"}},0,{"v":804.7605279298534,"d":"805"},{"$f":"'BP Financier'!$D$44*(('BP Financier'!$C$22+'BP Financier'!$D$22)/('BP Financier'!$C$16+'BP Financier'!$C$19+'BP Financier'!$D$16+'BP Financier'!$D$19+'BP Financier'!$C$22+'BP Financier'!$D$22))*$V2238*X2238/(1-$W2238)","v":{"v":102.43435693059317,"d":"102"}},{"$f":"'BP Financier'!$D$44*(('BP Financier'!$C$22+'BP Financier'!$D$22)/('BP Financier'!$C$16+'BP Financier'!$C$19+'BP Financier'!$D$16+'BP Financier'!$D$19+'BP Financier'!$C$22+'BP Financier'!$D$22))*$V2238*Y2238/(1-$W2238)","v":{"v":68.47821651161199,"d":"68"}},{"$f":"'BP Financier'!$D$44*(('BP Financier'!$C$22+'BP Financier'!$D$22)/('BP Financier'!$C$16+'BP Financier'!$C$19+'BP Financier'!$D$16+'BP Financier'!$D$19+'BP Financier'!$C$22+'BP Financier'!$D$22))*$V2238*Z2238/(1-$W2238)","v":{"v":535.9410829462525,"d":"536"}},{"$f":"'BP Financier'!$D$44*(('BP Financier'!$C$22+'BP Financier'!$D$22)/('BP Financier'!$C$16+'BP Financier'!$C$19+'BP Financier'!$D$16+'BP Financier'!$D$19+'BP Financier'!$C$22+'BP Financier'!$D$22))*$V2238*AA2238/(1-$W2238)","v":{"v":66.21447381701326,"d":"66"}},{"$f":"'BP Financier'!$D$44*(('BP Financier'!$C$22+'BP Financier'!$D$22)/('BP Financier'!$C$16+'BP Financier'!$C$19+'BP Financier'!$D$16+'BP Financier'!$D$19+'BP Financier'!$C$22+'BP Financier'!$D$22))*$V2238*AB2238/(1-$W2238)","v":{"v":31.69239772438241,"d":"32"}},null,{"v":0.0025,"d":"0.25%"},{"$f":"Actif!$E$28/100","v":{"v":0.28900000000000003,"d":"28.90%"}},{"$f":"Actif!$E$30/100","v":{"v":0.09050000000000001,"d":"9.05%"}},{"$f":"Actif!$E$31/100","v":{"v":0.0605,"d":"6.05%"}},{"$f":"Actif!$E$32/100","v":{"v":0.47350000000000003,"d":"47.35%"}},{"$f":"Actif!$E$33/100","v":{"v":0.0585,"d":"5.85%"}},{"$f":"Actif!$E$29/100","v":{"v":0.027999999999999997,"d":"2.80%"}}]
[null,"#144",36,2028,"H","A_CAPI",{"v":0.44999999999999996,"d":"0.45"},{"v":0.38999999999999996,"d":"0.39"},0.6,0.6,85,0,{"$f":"ROUND(Primes!$N$10*V2239,2)","v":{"v":0.04,"d":"0.040"}},0,{"v":804.7605279298534,"d":"805"},{"$f":"'BP Financier'!$D$44*(('BP Financier'!$C$22+'BP Financier'!$D$22)/('BP Financier'!$C$16+'BP Financier'!$C$19+'BP Financier'!$D$16+'BP Financier'!$D$19+'BP Financier'!$C$22+'BP Financier'!$D$22))*$V2239*X2239/(1-$W2239)","v":{"v":102.43435693059317,"d":"102"}},{"$f":"'BP Financier'!$D$44*(('BP Financier'!$C$22+'BP Financier'!$D$22)/('BP Financier'!$C$16+'BP Financier'!$C$19+'BP Financier'!$D$16+'BP Financier'!$D$19+'BP Financier'!$C$22+'BP Financier'!$D$22))*$V2239*Y2239/(1-$W2239)","v":{"v":68.47821651161199,"d":"68"}},{"$f":"'BP Financier'!$D$44*(('BP Financier'!$C$22+'BP Financier'!$D$22)/('BP Financier'!$C$16+'BP Financier'!$C$19+'BP Financier'!$D$16+'BP Financier'!$D$19+'BP Financier'!$C$22+'BP Financier'!$D$22))*$V2239*Z2239/(1-$W2239)","v":{"v":535.9410829462525,"d":"536"}},{"$f":"'BP Financier'!$D$44*(('BP Financier'!$C$22+'BP Financier'!$D$22)/('BP Financier'!$C$16+'BP Financier'!$C$19+'BP Financier'!$D$16+'BP Financier'!$D$19+'BP Financier'!$C$22+'BP Financier'!$D$22))*$V2239*AA2239/(1-$W2239)","v":{"v":66.21447381701326,"d":"66"}},{"$f":"'BP Financier'!$D$44*(('BP Financier'!$C$22+'BP Financier'!$D$22)/('BP Financier'!$C$16+'BP Financier'!$C$19+'BP Financier'!$D$16+'BP Financier'!$D$19+'BP Financier'!$C$22+'BP Financier'!$D$22))*$V2239*AB2239/(1-$W2239)","v":{"v":31.69239772438241,"d":"32"}},null,{"v":0.0025,"d":"0.25%"},{"$f":"Actif!$E$28/100","v":{"v":0.28900000000000003,"d":"28.90%"}},{"$f":"Actif!$E$30/100","v":{"v":0.09050000000000001,"d":"9.05%"}},{"$f":"Actif!$E$31/100","v":{"v":0.0605,"d":"6.05%"}},{"$f":"Actif!$E$32/100","v":{"v":0.47350000000000003,"d":"47.35%"}},{"$f":"Actif!$E$33/100","v":{"v":0.0585,"d":"5.85%"}},{"$f":"Actif!$E$29/100","v":{"v":0.027999999999999997,"d":"2.80%"}}]
[null,"#145",37,2026,"H","A_CAPI",{"v":0.44999999999999996,"d":"0.45"},{"v":0.38999999999999996,"d":"0.39"},0.6,0.6,85,0,{"$f":"ROUND(Primes!$N$10*V2240,2)","v":{"v":0.04,"d":"0.040"}},0,{"v":804.7605279298534,"d":"805"},{"$f":"'BP Financier'!$D$44*(('BP Financier'!$C$22+'BP Financier'!$D$22)/('BP Financier'!$C$16+'BP Financier'!$C$19+'BP Financier'!$D$16+'BP Financier'!$D$19+'BP Financier'!$C$22+'BP Financier'!$D$22))*$V2240*X2240/(1-$W2240)","v":{"v":102.43435693059317,"d":"102"}},{"$f":"'BP Financier'!$D$44*(('BP Financier'!$C$22+'BP Financier'!$D$22)/('BP Financier'!$C$16+'BP Financier'!$C$19+'BP Financier'!$D$16+'BP Financier'!$D$19+'BP Financier'!$C$22+'BP Financier'!$D$22))*$V2240*Y2240/(1-$W2240)","v":{"v":68.47821651161199,"d":"68"}},{"$f":"'BP Financier'!$D$44*(('BP Financier'!$C$22+'BP Financier'!$D$22)/('BP Financier'!$C$16+'BP Financier'!$C$19+'BP Financier'!$D$16+'BP Financier'!$D$19+'BP Financier'!$C$22+'BP Financier'!$D$22))*$V2240*Z2240/(1-$W2240)","v":{"v":535.9410829462525,"d":"536"}},{"$f":"'BP Financier'!$D$44*(('BP Financier'!$C$22+'BP Financier'!$D$22)/('BP Financier'!$C$16+'BP Financier'!$C$19+'BP Financier'!$D$16+'BP Financier'!$D$19+'BP Financier'!$C$22+'BP Financier'!$D$22))*$V2240*AA2240/(1-$W2240)","v":{"v":66.21447381701326,"d":"66"}},{"$f":"'BP Financier'!$D$44*(('BP Financier'!$C$22+'BP Financier'!$D$22)/('BP Financier'!$C$16+'BP Financier'!$C$19+'BP Financier'!$D$16+'BP Financier'!$D$19+'BP Financier'!$C$22+'BP Financier'!$D$22))*$V2240*AB2240/(1-$W2240)","v":{"v":31.69239772438241,"d":"32"}},null,{"v":0.0025,"d":"0.25%"},{"$f":"Actif!$E$28/100","v":{"v":0.28900000000000003,"d":"28.90%"}},{"$f":"Actif!$E$30/100","v":{"v":0.09050000000000001,"d":"9.05%"}},{"$f":"Actif!$E$31/100","v":{"v":0.0605,"d":"6.05%"}},{"$f":"Actif!$E$32/100","v":{"v":0.47350000000000003,"d":"47.35%"}},{"$f":"Actif!$E$33/100","v":{"v":0.0585,"d":"5.85%"}},{"$f":"Actif!$E$29/100","v":{"v":0.027999999999999997,"d":"2.80%"}}]
[null,"#146",37,2028,"H","A_CAPI",{"v":0.44999999999999996,"d":"0.45"},{"v":0.38999999999999996,"d":"0.39"},0.6,0.6,85,0,{"$f":"ROUND(Primes!$N$10*V2241,2)","v":{"v":0.04,"d":"0.040"}},0,{"v":804.7605279298534,"d":"805"},{"$f":"'BP Financier'!$D$44*(('BP Financier'!$C$22+'BP Financier'!$D$22)/('BP Financier'!$C$16+'BP Financier'!$C$19+'BP Financier'!$D$16+'BP Financier'!$D$19+'BP Financier'!$C$22+'BP Financier'!$D$22))*$V2241*X2241/(1-$W2241)","v":{"v":102.43435693059317,"d":"102"}},{"$f":"'BP Financier'!$D$44*(('BP Financier'!$C$22+'BP Financier'!$D$22)/('BP Financier'!$C$16+'BP Financier'!$C$19+'BP Financier'!$D$16+'BP Financier'!$D$19+'BP Financier'!$C$22+'BP Financier'!$D$22))*$V2241*Y2241/(1-$W2241)","v":{"v":68.47821651161199,"d":"68"}},{"$f":"'BP Financier'!$D$44*(('BP Financier'!$C$22+'BP Financier'!$D$22)/('BP Financier'!$C$16+'BP Financier'!$C$19+'BP Financier'!$D$16+'BP Financier'!$D$19+'BP Financier'!$C$22+'BP Financier'!$D$22))*$V2241*Z2241/(1-$W2241)","v":{"v":535.9410829462525,"d":"536"}},{"$f":"'BP Financier'!$D$44*(('BP Financier'!$C$22+'BP Financier'!$D$22)/('BP Financier'!$C$16+'BP Financier'!$C$19+'BP Financier'!$D$16+'BP Financier'!$D$19+'BP Financier'!$C$22+'BP Financier'!$D$22))*$V2241*AA2241/(1-$W2241)","v":{"v":66.21447381701326,"d":"66"}},{"$f":"'BP Financier'!$D$44*(('BP Financier'!$C$22+'BP Financier'!$D$22)/('BP Financier'!$C$16+'BP Financier'!$C$19+'BP Financier'!$D$16+'BP Financier'!$D$19+'BP Financier'!$C$22+'BP Financier'!$D$22))*$V2241*AB2241/(1-$W2241)","v":{"v":31.69239772438241,"d":"32"}},null,{"v":0.0025,"d":"0.25%"},{"$f":"Actif!$E$28/100","v":{"v":0.28900000000000003,"d":"28.90%"}},{"$f":"Actif!$E$30/100","v":{"v":0.09050000000000001,"d":"9.05%"}},{"$f":"Actif!$E$31/100","v":{"v":0.0605,"d":"6.05%"}},{"$f":"Actif!$E$32/100","v":{"v":0.47350000000000003,"d":"47.35%"}},{"$f":"Actif!$E$33/100","v":{"v":0.0585,"d":"5.85%"}},{"$f":"Actif!$E$29/100","v":{"v":0.027999999999999997,"d":"2.80%"}}]
[null,"#147",38,2026,"F","A_CAPI",{"v":0.44999999999999996,"d":"0.45"},{"v":0.38999999999999996,"d":"0.39"},0.6,0.6,85,0,{"$f":"ROUND(Primes!$N$10*V2242,2)","v":{"v":0.04,"d":"0.040"}},0,{"v":804.7605279298534,"d":"805"},{"$f":"'BP Financier'!$D$44*(('BP Financier'!$C$22+'BP Financier'!$D$22)/('BP Financier'!$C$16+'BP Financier'!$C$19+'BP Financier'!$D$16+'BP Financier'!$D$19+'BP Financier'!$C$22+'BP Financier'!$D$22))*$V2242*X2242/(1-$W2242)","v":{"v":102.43435693059317,"d":"102"}},{"$f":"'BP Financier'!$D$44*(('BP Financier'!$C$22+'BP Financier'!$D$22)/('BP Financier'!$C$16+'BP Financier'!$C$19+'BP Financier'!$D$16+'BP Financier'!$D$19+'BP Financier'!$C$22+'BP Financier'!$D$22))*$V2242*Y2242/(1-$W2242)","v":{"v":68.47821651161199,"d":"68"}},{"$f":"'BP Financier'!$D$44*(('BP Financier'!$C$22+'BP Financier'!$D$22)/('BP Financier'!$C$16+'BP Financier'!$C$19+'BP Financier'!$D$16+'BP Financier'!$D$19+'BP Financier'!$C$22+'BP Financier'!$D$22))*$V2242*Z2242/(1-$W2242)","v":{"v":535.9410829462525,"d":"536"}},{"$f":"'BP Financier'!$D$44*(('BP Financier'!$C$22+'BP Financier'!$D$22)/('BP Financier'!$C$16+'BP Financier'!$C$19+'BP Financier'!$D$16+'BP Financier'!$D$19+'BP Financier'!$C$22+'BP Financier'!$D$22))*$V2242*AA2242/(1-$W2242)","v":{"v":66.21447381701326,"d":"66"}},{"$f":"'BP Financier'!$D$44*(('BP Financier'!$C$22+'BP Financier'!$D$22)/('BP Financier'!$C$16+'BP Financier'!$C$19+'BP Financier'!$D$16+'BP Financier'!$D$19+'BP Financier'!$C$22+'BP Financier'!$D$22))*$V2242*AB2242/(1-$W2242)","v":{"v":31.69239772438241,"d":"32"}},null,{"v":0.0025,"d":"0.25%"},{"$f":"Actif!$E$28/100","v":{"v":0.28900000000000003,"d":"28.90%"}},{"$f":"Actif!$E$30/100","v":{"v":0.09050000000000001,"d":"9.05%"}},{"$f":"Actif!$E$31/100","v":{"v":0.0605,"d":"6.05%"}},{"$f":"Actif!$E$32/100","v":{"v":0.47350000000000003,"d":"47.35%"}},{"$f":"Actif!$E$33/100","v":{"v":0.0585,"d":"5.85%"}},{"$f":"Actif!$E$29/100","v":{"v":0.027999999999999997,"d":"2.80%"}}]
[null,"#148",38,2028,"F","A_CAPI",{"v":0.44999999999999996,"d":"0.45"},{"v":0.38999999999999996,"d":"0.39"},0.6,0.6,85,0,{"$f":"ROUND(Primes!$N$10*V2243,2)","v":{"v":0.04,"d":"0.040"}},0,{"v":804.7605279298534,"d":"805"},{"$f":"'BP Financier'!$D$44*(('BP Financier'!$C$22+'BP Financier'!$D$22)/('BP Financier'!$C$16+'BP Financier'!$C$19+'BP Financier'!$D$16+'BP Financier'!$D$19+'BP Financier'!$C$22+'BP Financier'!$D$22))*$V2243*X2243/(1-$W2243)","v":{"v":102.43435693059317,"d":"102"}},{"$f":"'BP Financier'!$D$44*(('BP Financier'!$C$22+'BP Financier'!$D$22)/('BP Financier'!$C$16+'BP Financier'!$C$19+'BP Financier'!$D$16+'BP Financier'!$D$19+'BP Financier'!$C$22+'BP Financier'!$D$22))*$V2243*Y2243/(1-$W2243)","v":{"v":68.47821651161199,"d":"68"}},{"$f":"'BP Financier'!$D$44*(('BP Financier'!$C$22+'BP Financier'!$D$22)/('BP Financier'!$C$16+'BP Financier'!$C$19+'BP Financier'!$D$16+'BP Financier'!$D$19+'BP Financier'!$C$22+'BP Financier'!$D$22))*$V2243*Z2243/(1-$W2243)","v":{"v":535.9410829462525,"d":"536"}},{"$f":"'BP Financier'!$D$44*(('BP Financier'!$C$22+'BP Financier'!$D$22)/('BP Financier'!$C$16+'BP Financier'!$C$19+'BP Financier'!$D$16+'BP Financier'!$D$19+'BP Financier'!$C$22+'BP Financier'!$D$22))*$V2243*AA2243/(1-$W2243)","v":{"v":66.21447381701326,"d":"66"}},{"$f":"'BP Financier'!$D$44*(('BP Financier'!$C$22+'BP Financier'!$D$22)/('BP Financier'!$C$16+'BP Financier'!$C$19+'BP Financier'!$D$16+'BP Financier'!$D$19+'BP Financier'!$C$22+'BP Financier'!$D$22))*$V2243*AB2243/(1-$W2243)","v":{"v":31.69239772438241,"d":"32"}},null,{"v":0.0025,"d":"0.25%"},{"$f":"Actif!$E$28/100","v":{"v":0.28900000000000003,"d":"28.90%"}},{"$f":"Actif!$E$30/100","v":{"v":0.09050000000000001,"d":"9.05%"}},{"$f":"Actif!$E$31/100","v":{"v":0.0605,"d":"6.05%"}},{"$f":"Actif!$E$32/100","v":{"v":0.47350000000000003,"d":"47.35%"}},{"$f":"Actif!$E$33/100","v":{"v":0.0585,"d":"5.85%"}},{"$f":"Actif!$E$29/100","v":{"v":0.027999999999999997,"d":"2.80%"}}]
[null,"#149",39,2026,"H","A_CAPI",{"v":0.44999999999999996,"d":"0.45"},{"v":0.38999999999999996,"d":"0.39"},0.6,0.6,85,0,{"$f":"ROUND(Primes!$N$10*V2244,2)","v":{"v":0.04,"d":"0.040"}},0,{"v":804.7605279298534,"d":"805"},{"$f":"'BP Financier'!$D$44*(('BP Financier'!$C$22+'BP Financier'!$D$22)/('BP Financier'!$C$16+'BP Financier'!$C$19+'BP Financier'!$D$16+'BP Financier'!$D$19+'BP Financier'!$C$22+'BP Financier'!$D$22))*$V2244*X2244/(1-$W2244)","v":{"v":102.43435693059317,"d":"102"}},{"$f":"'BP Financier'!$D$44*(('BP Financier'!$C$22+'BP Financier'!$D$22)/('BP Financier'!$C$16+'BP Financier'!$C$19+'BP Financier'!$D$16+'BP Financier'!$D$19+'BP Financier'!$C$22+'BP Financier'!$D$22))*$V2244*Y2244/(1-$W2244)","v":{"v":68.47821651161199,"d":"68"}},{"$f":"'BP Financier'!$D$44*(('BP Financier'!$C$22+'BP Financier'!$D$22)/('BP Financier'!$C$16+'BP Financier'!$C$19+'BP Financier'!$D$16+'BP Financier'!$D$19+'BP Financier'!$C$22+'BP Financier'!$D$22))*$V2244*Z2244/(1-$W2244)","v":{"v":535.9410829462525,"d":"536"}},{"$f":"'BP Financier'!$D$44*(('BP Financier'!$C$22+'BP Financier'!$D$22)/('BP Financier'!$C$16+'BP Financier'!$C$19+'BP Financier'!$D$16+'BP Financier'!$D$19+'BP Financier'!$C$22+'BP Financier'!$D$22))*$V2244*AA2244/(1-$W2244)","v":{"v":66.21447381701326,"d":"66"}},{"$f":"'BP Financier'!$D$44*(('BP Financier'!$C$22+'BP Financier'!$D$22)/('BP Financier'!$C$16+'BP Financier'!$C$19+'BP Financier'!$D$16+'BP Financier'!$D$19+'BP Financier'!$C$22+'BP Financier'!$D$22))*$V2244*AB2244/(1-$W2244)","v":{"v":31.69239772438241,"d":"32"}},null,{"v":0.0025,"d":"0.25%"},{"$f":"Actif!$E$28/100","v":{"v":0.28900000000000003,"d":"28.90%"}},{"$f":"Actif!$E$30/100","v":{"v":0.09050000000000001,"d":"9.05%"}},{"$f":"Actif!$E$31/100","v":{"v":0.0605,"d":"6.05%"}},{"$f":"Actif!$E$32/100","v":{"v":0.47350000000000003,"d":"47.35%"}},{"$f":"Actif!$E$33/100","v":{"v":0.0585,"d":"5.85%"}},{"$f":"Actif!$E$29/100","v":{"v":0.027999999999999997,"d":"2.80%"}}]
[null,"#150",39,2028,"H","A_CAPI",{"v":0.44999999999999996,"d":"0.45"},{"v":0.38999999999999996,"d":"0.39"},0.6,0.6,85,0,{"$f":"ROUND(Primes!$N$10*V2245,2)","v":{"v":0.04,"d":"0.040"}},0,{"v":804.7605279298534,"d":"805"},{"$f":"'BP Financier'!$D$44*(('BP Financier'!$C$22+'BP Financier'!$D$22)/('BP Financier'!$C$16+'BP Financier'!$C$19+'BP Financier'!$D$16+'BP Financier'!$D$19+'BP Financier'!$C$22+'BP Financier'!$D$22))*$V2245*X2245/(1-$W2245)","v":{"v":102.43435693059317,"d":"102"}},{"$f":"'BP Financier'!$D$44*(('BP Financier'!$C$22+'BP Financier'!$D$22)/('BP Financier'!$C$16+'BP Financier'!$C$19+'BP Financier'!$D$16+'BP Financier'!$D$19+'BP Financier'!$C$22+'BP Financier'!$D$22))*$V2245*Y2245/(1-$W2245)","v":{"v":68.47821651161199,"d":"68"}},{"$f":"'BP Financier'!$D$44*(('BP Financier'!$C$22+'BP Financier'!$D$22)/('BP Financier'!$C$16+'BP Financier'!$C$19+'BP Financier'!$D$16+'BP Financier'!$D$19+'BP Financier'!$C$22+'BP Financier'!$D$22))*$V2245*Z2245/(1-$W2245)","v":{"v":535.9410829462525,"d":"536"}},{"$f":"'BP Financier'!$D$44*(('BP Financier'!$C$22+'BP Financier'!$D$22)/('BP Financier'!$C$16+'BP Financier'!$C$19+'BP Financier'!$D$16+'BP Financier'!$D$19+'BP Financier'!$C$22+'BP Financier'!$D$22))*$V2245*AA2245/(1-$W2245)","v":{"v":66.21447381701326,"d":"66"}},{"$f":"'BP Financier'!$D$44*(('BP Financier'!$C$22+'BP Financier'!$D$22)/('BP Financier'!$C$16+'BP Financier'!$C$19+'BP Financier'!$D$16+'BP Financier'!$D$19+'BP Financier'!$C$22+'BP Financier'!$D$22))*$V2245*AB2245/(1-$W2245)","v":{"v":31.69239772438241,"d":"32"}},null,{"v":0.0025,"d":"0.25%"},{"$f":"Actif!$E$28/100","v":{"v":0.28900000000000003,"d":"28.90%"}},{"$f":"Actif!$E$30/100","v":{"v":0.09050000000000001,"d":"9.05%"}},{"$f":"Actif!$E$31/100","v":{"v":0.0605,"d":"6.05%"}},{"$f":"Actif!$E$32/100","v":{"v":0.47350000000000003,"d":"47.35%"}},{"$f":"Actif!$E$33/100","v":{"v":0.0585,"d":"5.85%"}},{"$f":"Actif!$E$29/100","v":{"v":0.027999999999999997,"d":"2.80%"}}]
[null,"#151",40,2026,"H","A_CAPI",{"v":0.44999999999999996,"d":"0.45"},{"v":0.38999999999999996,"d":"0.39"},0.6,0.6,85,0,{"$f":"ROUND(Primes!$N$10*V2246,2)","v":{"v":0.04,"d":"0.040"}},0,{"v":804.7605279298534,"d":"805"},{"$f":"'BP Financier'!$D$44*(('BP Financier'!$C$22+'BP Financier'!$D$22)/('BP Financier'!$C$16+'BP Financier'!$C$19+'BP Financier'!$D$16+'BP Financier'!$D$19+'BP Financier'!$C$22+'BP Financier'!$D$22))*$V2246*X2246/(1-$W2246)","v":{"v":102.43435693059317,"d":"102"}},{"$f":"'BP Financier'!$D$44*(('BP Financier'!$C$22+'BP Financier'!$D$22)/('BP Financier'!$C$16+'BP Financier'!$C$19+'BP Financier'!$D$16+'BP Financier'!$D$19+'BP Financier'!$C$22+'BP Financier'!$D$22))*$V2246*Y2246/(1-$W2246)","v":{"v":68.47821651161199,"d":"68"}},{"$f":"'BP Financier'!$D$44*(('BP Financier'!$C$22+'BP Financier'!$D$22)/('BP Financier'!$C$16+'BP Financier'!$C$19+'BP Financier'!$D$16+'BP Financier'!$D$19+'BP Financier'!$C$22+'BP Financier'!$D$22))*$V2246*Z2246/(1-$W2246)","v":{"v":535.9410829462525,"d":"536"}},{"$f":"'BP Financier'!$D$44*(('BP Financier'!$C$22+'BP Financier'!$D$22)/('BP Financier'!$C$16+'BP Financier'!$C$19+'BP Financier'!$D$16+'BP Financier'!$D$19+'BP Financier'!$C$22+'BP Financier'!$D$22))*$V2246*AA2246/(1-$W2246)","v":{"v":66.21447381701326,"d":"66"}},{"$f":"'BP Financier'!$D$44*(('BP Financier'!$C$22+'BP Financier'!$D$22)/('BP Financier'!$C$16+'BP Financier'!$C$19+'BP Financier'!$D$16+'BP Financier'!$D$19+'BP Financier'!$C$22+'BP Financier'!$D$22))*$V2246*AB2246/(1-$W2246)","v":{"v":31.69239772438241,"d":"32"}},null,{"v":0.0025,"d":"0.25%"},{"$f":"Actif!$E$28/100","v":{"v":0.28900000000000003,"d":"28.90%"}},{"$f":"Actif!$E$30/100","v":{"v":0.09050000000000001,"d":"9.05%"}},{"$f":"Actif!$E$31/100","v":{"v":0.0605,"d":"6.05%"}},{"$f":"Actif!$E$32/100","v":{"v":0.47350000000000003,"d":"47.35%"}},{"$f":"Actif!$E$33/100","v":{"v":0.0585,"d":"5.85%"}},{"$f":"Actif!$E$29/100","v":{"v":0.027999999999999997,"d":"2.80%"}}]
[null,"#152",40,2028,"H","A_CAPI",{"v":0.44999999999999996,"d":"0.45"},{"v":0.38999999999999996,"d":"0.39"},0.6,0.6,85,0,{"$f":"ROUND(Primes!$N$10*V2247,2)","v":{"v":0.04,"d":"0.040"}},0,{"v":804.7605279298534,"d":"805"},{"$f":"'BP Financier'!$D$44*(('BP Financier'!$C$22+'BP Financier'!$D$22)/('BP Financier'!$C$16+'BP Financier'!$C$19+'BP Financier'!$D$16+'BP Financier'!$D$19+'BP Financier'!$C$22+'BP Financier'!$D$22))*$V2247*X2247/(1-$W2247)","v":{"v":102.43435693059317,"d":"102"}},{"$f":"'BP Financier'!$D$44*(('BP Financier'!$C$22+'BP Financier'!$D$22)/('BP Financier'!$C$16+'BP Financier'!$C$19+'BP Financier'!$D$16+'BP Financier'!$D$19+'BP Financier'!$C$22+'BP Financier'!$D$22))*$V2247*Y2247/(1-$W2247)","v":{"v":68.47821651161199,"d":"68"}},{"$f":"'BP Financier'!$D$44*(('BP Financier'!$C$22+'BP Financier'!$D$22)/('BP Financier'!$C$16+'BP Financier'!$C$19+'BP Financier'!$D$16+'BP Financier'!$D$19+'BP Financier'!$C$22+'BP Financier'!$D$22))*$V2247*Z2247/(1-$W2247)","v":{"v":535.9410829462525,"d":"536"}},{"$f":"'BP Financier'!$D$44*(('BP Financier'!$C$22+'BP Financier'!$D$22)/('BP Financier'!$C$16+'BP Financier'!$C$19+'BP Financier'!$D$16+'BP Financier'!$D$19+'BP Financier'!$C$22+'BP Financier'!$D$22))*$V2247*AA2247/(1-$W2247)","v":{"v":66.21447381701326,"d":"66"}},{"$f":"'BP Financier'!$D$44*(('BP Financier'!$C$22+'BP Financier'!$D$22)/('BP Financier'!$C$16+'BP Financier'!$C$19+'BP Financier'!$D$16+'BP Financier'!$D$19+'BP Financier'!$C$22+'BP Financier'!$D$22))*$V2247*AB2247/(1-$W2247)","v":{"v":31.69239772438241,"d":"32"}},null,{"v":0.0025,"d":"0.25%"},{"$f":"Actif!$E$28/100","v":{"v":0.28900000000000003,"d":"28.90%"}},{"$f":"Actif!$E$30/100","v":{"v":0.09050000000000001,"d":"9.05%"}},{"$f":"Actif!$E$31/100","v":{"v":0.0605,"d":"6.05%"}},{"$f":"Actif!$E$32/100","v":{"v":0.47350000000000003,"d":"47.35%"}},{"$f":"Actif!$E$33/100","v":{"v":0.0585,"d":"5.85%"}},{"$f":"Actif!$E$29/100","v":{"v":0.027999999999999997,"d":"2.80%"}}]
[null,"#153",41,2026,"F","A_CAPI",{"v":0.44999999999999996,"d":"0.45"},{"v":0.38999999999999996,"d":"0.39"},0.6,0.6,85,0,{"$f":"ROUND(Primes!$N$10*V2248,2)","v":{"v":0.04,"d":"0.040"}},0,{"v":804.7605279298534,"d":"805"},{"$f":"'BP Financier'!$D$44*(('BP Financier'!$C$22+'BP Financier'!$D$22)/('BP Financier'!$C$16+'BP Financier'!$C$19+'BP Financier'!$D$16+'BP Financier'!$D$19+'BP Financier'!$C$22+'BP Financier'!$D$22))*$V2248*X2248/(1-$W2248)","v":{"v":102.43435693059317,"d":"102"}},{"$f":"'BP Financier'!$D$44*(('BP Financier'!$C$22+'BP Financier'!$D$22)/('BP Financier'!$C$16+'BP Financier'!$C$19+'BP Financier'!$D$16+'BP Financier'!$D$19+'BP Financier'!$C$22+'BP Financier'!$D$22))*$V2248*Y2248/(1-$W2248)","v":{"v":68.47821651161199,"d":"68"}},{"$f":"'BP Financier'!$D$44*(('BP Financier'!$C$22+'BP Financier'!$D$22)/('BP Financier'!$C$16+'BP Financier'!$C$19+'BP Financier'!$D$16+'BP Financier'!$D$19+'BP Financier'!$C$22+'BP Financier'!$D$22))*$V2248*Z2248/(1-$W2248)","v":{"v":535.9410829462525,"d":"536"}},{"$f":"'BP Financier'!$D$44*(('BP Financier'!$C$22+'BP Financier'!$D$22)/('BP Financier'!$C$16+'BP Financier'!$C$19+'BP Financier'!$D$16+'BP Financier'!$D$19+'BP Financier'!$C$22+'BP Financier'!$D$22))*$V2248*AA2248/(1-$W2248)","v":{"v":66.21447381701326,"d":"66"}},{"$f":"'BP Financier'!$D$44*(('BP Financier'!$C$22+'BP Financier'!$D$22)/('BP Financier'!$C$16+'BP Financier'!$C$19+'BP Financier'!$D$16+'BP Financier'!$D$19+'BP Financier'!$C$22+'BP Financier'!$D$22))*$V2248*AB2248/(1-$W2248)","v":{"v":31.69239772438241,"d":"32"}},null,{"v":0.0025,"d":"0.25%"},{"$f":"Actif!$E$28/100","v":{"v":0.28900000000000003,"d":"28.90%"}},{"$f":"Actif!$E$30/100","v":{"v":0.09050000000000001,"d":"9.05%"}},{"$f":"Actif!$E$31/100","v":{"v":0.0605,"d":"6.05%"}},{"$f":"Actif!$E$32/100","v":{"v":0.47350000000000003,"d":"47.35%"}},{"$f":"Actif!$E$33/100","v":{"v":0.0585,"d":"5.85%"}},{"$f":"Actif!$E$29/100","v":{"v":0.027999999999999997,"d":"2.80%"}}]
[null,"#154",41,2028,"F","A_CAPI",{"v":0.44999999999999996,"d":"0.45"},{"v":0.38999999999999996,"d":"0.39"},0.6,0.6,85,0,{"$f":"ROUND(Primes!$N$10*V2249,2)","v":{"v":0.04,"d":"0.040"}},0,{"v":804.7605279298534,"d":"805"},{"$f":"'BP Financier'!$D$44*(('BP Financier'!$C$22+'BP Financier'!$D$22)/('BP Financier'!$C$16+'BP Financier'!$C$19+'BP Financier'!$D$16+'BP Financier'!$D$19+'BP Financier'!$C$22+'BP Financier'!$D$22))*$V2249*X2249/(1-$W2249)","v":{"v":102.43435693059317,"d":"102"}},{"$f":"'BP Financier'!$D$44*(('BP Financier'!$C$22+'BP Financier'!$D$22)/('BP Financier'!$C$16+'BP Financier'!$C$19+'BP Financier'!$D$16+'BP Financier'!$D$19+'BP Financier'!$C$22+'BP Financier'!$D$22))*$V2249*Y2249/(1-$W2249)","v":{"v":68.47821651161199,"d":"68"}},{"$f":"'BP Financier'!$D$44*(('BP Financier'!$C$22+'BP Financier'!$D$22)/('BP Financier'!$C$16+'BP Financier'!$C$19+'BP Financier'!$D$16+'BP Financier'!$D$19+'BP Financier'!$C$22+'BP Financier'!$D$22))*$V2249*Z2249/(1-$W2249)","v":{"v":535.9410829462525,"d":"536"}},{"$f":"'BP Financier'!$D$44*(('BP Financier'!$C$22+'BP Financier'!$D$22)/('BP Financier'!$C$16+'BP Financier'!$C$19+'BP Financier'!$D$16+'BP Financier'!$D$19+'BP Financier'!$C$22+'BP Financier'!$D$22))*$V2249*AA2249/(1-$W2249)","v":{"v":66.21447381701326,"d":"66"}},{"$f":"'BP Financier'!$D$44*(('BP Financier'!$C$22+'BP Financier'!$D$22)/('BP Financier'!$C$16+'BP Financier'!$C$19+'BP Financier'!$D$16+'BP Financier'!$D$19+'BP Financier'!$C$22+'BP Financier'!$D$22))*$V2249*AB2249/(1-$W2249)","v":{"v":31.69239772438241,"d":"32"}},null,{"v":0.0025,"d":"0.25%"},{"$f":"Actif!$E$28/100","v":{"v":0.28900000000000003,"d":"28.90%"}},{"$f":"Actif!$E$30/100","v":{"v":0.09050000000000001,"d":"9.05%"}},{"$f":"Actif!$E$31/100","v":{"v":0.0605,"d":"6.05%"}},{"$f":"Actif!$E$32/100","v":{"v":0.47350000000000003,"d":"47.35%"}},{"$f":"Actif!$E$33/100","v":{"v":0.0585,"d":"5.85%"}},{"$f":"Actif!$E$29/100","v":{"v":0.027999999999999997,"d":"2.80%"}}]
[null,"#155",42,2026,"H","A_CAPI",{"v":0.44999999999999996,"d":"0.45"},{"v":0.38999999999999996,"d":"0.39"},0.6,0.6,85,0,{"$f":"ROUND(Primes!$N$10*V2250,2)","v":{"v":0.04,"d":"0.040"}},0,{"v":804.7605279298534,"d":"805"},{"$f":"'BP Financier'!$D$44*(('BP Financier'!$C$22+'BP Financier'!$D$22)/('BP Financier'!$C$16+'BP Financier'!$C$19+'BP Financier'!$D$16+'BP Financier'!$D$19+'BP Financier'!$C$22+'BP Financier'!$D$22))*$V2250*X2250/(1-$W2250)","v":{"v":102.43435693059317,"d":"102"}},{"$f":"'BP Financier'!$D$44*(('BP Financier'!$C$22+'BP Financier'!$D$22)/('BP Financier'!$C$16+'BP Financier'!$C$19+'BP Financier'!$D$16+'BP Financier'!$D$19+'BP Financier'!$C$22+'BP Financier'!$D$22))*$V2250*Y2250/(1-$W2250)","v":{"v":68.47821651161199,"d":"68"}},{"$f":"'BP Financier'!$D$44*(('BP Financier'!$C$22+'BP Financier'!$D$22)/('BP Financier'!$C$16+'BP Financier'!$C$19+'BP Financier'!$D$16+'BP Financier'!$D$19+'BP Financier'!$C$22+'BP Financier'!$D$22))*$V2250*Z2250/(1-$W2250)","v":{"v":535.9410829462525,"d":"536"}},{"$f":"'BP Financier'!$D$44*(('BP Financier'!$C$22+'BP Financier'!$D$22)/('BP Financier'!$C$16+'BP Financier'!$C$19+'BP Financier'!$D$16+'BP Financier'!$D$19+'BP Financier'!$C$22+'BP Financier'!$D$22))*$V2250*AA2250/(1-$W2250)","v":{"v":66.21447381701326,"d":"66"}},{"$f":"'BP Financier'!$D$44*(('BP Financier'!$C$22+'BP Financier'!$D$22)/('BP Financier'!$C$16+'BP Financier'!$C$19+'BP Financier'!$D$16+'BP Financier'!$D$19+'BP Financier'!$C$22+'BP Financier'!$D$22))*$V2250*AB2250/(1-$W2250)","v":{"v":31.69239772438241,"d":"32"}},null,{"v":0.0025,"d":"0.25%"},{"$f":"Actif!$E$28/100","v":{"v":0.28900000000000003,"d":"28.90%"}},{"$f":"Actif!$E$30/100","v":{"v":0.09050000000000001,"d":"9.05%"}},{"$f":"Actif!$E$31/100","v":{"v":0.0605,"d":"6.05%"}},{"$f":"Actif!$E$32/100","v":{"v":0.47350000000000003,"d":"47.35%"}},{"$f":"Actif!$E$33/100","v":{"v":0.0585,"d":"5.85%"}},{"$f":"Actif!$E$29/100","v":{"v":0.027999999999999997,"d":"2.80%"}}]
[null,"#156",42,2028,"H","A_CAPI",{"v":0.44999999999999996,"d":"0.45"},{"v":0.38999999999999996,"d":"0.39"},0.6,0.6,85,0,{"$f":"ROUND(Primes!$N$10*V2251,2)","v":{"v":0.04,"d":"0.040"}},0,{"v":804.7605279298534,"d":"805"},{"$f":"'BP Financier'!$D$44*(('BP Financier'!$C$22+'BP Financier'!$D$22)/('BP Financier'!$C$16+'BP Financier'!$C$19+'BP Financier'!$D$16+'BP Financier'!$D$19+'BP Financier'!$C$22+'BP Financier'!$D$22))*$V2251*X2251/(1-$W2251)","v":{"v":102.43435693059317,"d":"102"}},{"$f":"'BP Financier'!$D$44*(('BP Financier'!$C$22+'BP Financier'!$D$22)/('BP Financier'!$C$16+'BP Financier'!$C$19+'BP Financier'!$D$16+'BP Financier'!$D$19+'BP Financier'!$C$22+'BP Financier'!$D$22))*$V2251*Y2251/(1-$W2251)","v":{"v":68.47821651161199,"d":"68"}},{"$f":"'BP Financier'!$D$44*(('BP Financier'!$C$22+'BP Financier'!$D$22)/('BP Financier'!$C$16+'BP Financier'!$C$19+'BP Financier'!$D$16+'BP Financier'!$D$19+'BP Financier'!$C$22+'BP Financier'!$D$22))*$V2251*Z2251/(1-$W2251)","v":{"v":535.9410829462525,"d":"536"}},{"$f":"'BP Financier'!$D$44*(('BP Financier'!$C$22+'BP Financier'!$D$22)/('BP Financier'!$C$16+'BP Financier'!$C$19+'BP Financier'!$D$16+'BP Financier'!$D$19+'BP Financier'!$C$22+'BP Financier'!$D$22))*$V2251*AA2251/(1-$W2251)","v":{"v":66.21447381701326,"d":"66"}},{"$f":"'BP Financier'!$D$44*(('BP Financier'!$C$22+'BP Financier'!$D$22)/('BP Financier'!$C$16+'BP Financier'!$C$19+'BP Financier'!$D$16+'BP Financier'!$D$19+'BP Financier'!$C$22+'BP Financier'!$D$22))*$V2251*AB2251/(1-$W2251)","v":{"v":31.69239772438241,"d":"32"}},null,{"v":0.0025,"d":"0.25%"},{"$f":"Actif!$E$28/100","v":{"v":0.28900000000000003,"d":"28.90%"}},{"$f":"Actif!$E$30/100","v":{"v":0.09050000000000001,"d":"9.05%"}},{"$f":"Actif!$E$31/100","v":{"v":0.0605,"d":"6.05%"}},{"$f":"Actif!$E$32/100","v":{"v":0.47350000000000003,"d":"47.35%"}},{"$f":"Actif!$E$33/100","v":{"v":0.0585,"d":"5.85%"}},{"$f":"Actif!$E$29/100","v":{"v":0.027999999999999997,"d":"2.80%"}}]
[null,"#157",43,2026,"H","A_CAPI",{"v":0.44999999999999996,"d":"0.45"},{"v":0.38999999999999996,"d":"0.39"},0.6,0.6,85,0,{"$f":"ROUND(Primes!$N$10*V2252,2)","v":{"v":0.04,"d":"0.040"}},0,{"v":804.7605279298534,"d":"805"},{"$f":"'BP Financier'!$D$44*(('BP Financier'!$C$22+'BP Financier'!$D$22)/('BP Financier'!$C$16+'BP Financier'!$C$19+'BP Financier'!$D$16+'BP Financier'!$D$19+'BP Financier'!$C$22+'BP Financier'!$D$22))*$V2252*X2252/(1-$W2252)","v":{"v":102.43435693059317,"d":"102"}},{"$f":"'BP Financier'!$D$44*(('BP Financier'!$C$22+'BP Financier'!$D$22)/('BP Financier'!$C$16+'BP Financier'!$C$19+'BP Financier'!$D$16+'BP Financier'!$D$19+'BP Financier'!$C$22+'BP Financier'!$D$22))*$V2252*Y2252/(1-$W2252)","v":{"v":68.47821651161199,"d":"68"}},{"$f":"'BP Financier'!$D$44*(('BP Financier'!$C$22+'BP Financier'!$D$22)/('BP Financier'!$C$16+'BP Financier'!$C$19+'BP Financier'!$D$16+'BP Financier'!$D$19+'BP Financier'!$C$22+'BP Financier'!$D$22))*$V2252*Z2252/(1-$W2252)","v":{"v":535.9410829462525,"d":"536"}},{"$f":"'BP Financier'!$D$44*(('BP Financier'!$C$22+'BP Financier'!$D$22)/('BP Financier'!$C$16+'BP Financier'!$C$19+'BP Financier'!$D$16+'BP Financier'!$D$19+'BP Financier'!$C$22+'BP Financier'!$D$22))*$V2252*AA2252/(1-$W2252)","v":{"v":66.21447381701326,"d":"66"}},{"$f":"'BP Financier'!$D$44*(('BP Financier'!$C$22+'BP Financier'!$D$22)/('BP Financier'!$C$16+'BP Financier'!$C$19+'BP Financier'!$D$16+'BP Financier'!$D$19+'BP Financier'!$C$22+'BP Financier'!$D$22))*$V2252*AB2252/(1-$W2252)","v":{"v":31.69239772438241,"d":"32"}},null,{"v":0.0025,"d":"0.25%"},{"$f":"Actif!$E$28/100","v":{"v":0.28900000000000003,"d":"28.90%"}},{"$f":"Actif!$E$30/100","v":{"v":0.09050000000000001,"d":"9.05%"}},{"$f":"Actif!$E$31/100","v":{"v":0.0605,"d":"6.05%"}},{"$f":"Actif!$E$32/100","v":{"v":0.47350000000000003,"d":"47.35%"}},{"$f":"Actif!$E$33/100","v":{"v":0.0585,"d":"5.85%"}},{"$f":"Actif!$E$29/100","v":{"v":0.027999999999999997,"d":"2.80%"}}]
[null,"#158",43,2028,"H","A_CAPI",{"v":0.44999999999999996,"d":"0.45"},{"v":0.38999999999999996,"d":"0.39"},0.6,0.6,85,0,{"$f":"ROUND(Primes!$N$10*V2253,2)","v":{"v":0.04,"d":"0.040"}},0,{"v":804.7605279298534,"d":"805"},{"$f":"'BP Financier'!$D$44*(('BP Financier'!$C$22+'BP Financier'!$D$22)/('BP Financier'!$C$16+'BP Financier'!$C$19+'BP Financier'!$D$16+'BP Financier'!$D$19+'BP Financier'!$C$22+'BP Financier'!$D$22))*$V2253*X2253/(1-$W2253)","v":{"v":102.43435693059317,"d":"102"}},{"$f":"'BP Financier'!$D$44*(('BP Financier'!$C$22+'BP Financier'!$D$22)/('BP Financier'!$C$16+'BP Financier'!$C$19+'BP Financier'!$D$16+'BP Financier'!$D$19+'BP Financier'!$C$22+'BP Financier'!$D$22))*$V2253*Y2253/(1-$W2253)","v":{"v":68.47821651161199,"d":"68"}},{"$f":"'BP Financier'!$D$44*(('BP Financier'!$C$22+'BP Financier'!$D$22)/('BP Financier'!$C$16+'BP Financier'!$C$19+'BP Financier'!$D$16+'BP Financier'!$D$19+'BP Financier'!$C$22+'BP Financier'!$D$22))*$V2253*Z2253/(1-$W2253)","v":{"v":535.9410829462525,"d":"536"}},{"$f":"'BP Financier'!$D$44*(('BP Financier'!$C$22+'BP Financier'!$D$22)/('BP Financier'!$C$16+'BP Financier'!$C$19+'BP Financier'!$D$16+'BP Financier'!$D$19+'BP Financier'!$C$22+'BP Financier'!$D$22))*$V2253*AA2253/(1-$W2253)","v":{"v":66.21447381701326,"d":"66"}},{"$f":"'BP Financier'!$D$44*(('BP Financier'!$C$22+'BP Financier'!$D$22)/('BP Financier'!$C$16+'BP Financier'!$C$19+'BP Financier'!$D$16+'BP Financier'!$D$19+'BP Financier'!$C$22+'BP Financier'!$D$22))*$V2253*AB2253/(1-$W2253)","v":{"v":31.69239772438241,"d":"32"}},null,{"v":0.0025,"d":"0.25%"},{"$f":"Actif!$E$28/100","v":{"v":0.28900000000000003,"d":"28.90%"}},{"$f":"Actif!$E$30/100","v":{"v":0.09050000000000001,"d":"9.05%"}},{"$f":"Actif!$E$31/100","v":{"v":0.0605,"d":"6.05%"}},{"$f":"Actif!$E$32/100","v":{"v":0.47350000000000003,"d":"47.35%"}},{"$f":"Actif!$E$33/100","v":{"v":0.0585,"d":"5.85%"}},{"$f":"Actif!$E$29/100","v":{"v":0.027999999999999997,"d":"2.80%"}}]
[null,"#159",44,2026,"F","A_CAPI",{"v":0.44999999999999996,"d":"0.45"},{"v":0.38999999999999996,"d":"0.39"},0.6,0.6,85,0,{"$f":"ROUND(Primes!$N$10*V2254,2)","v":{"v":0.04,"d":"0.040"}},0,{"v":804.7605279298534,"d":"805"},{"$f":"'BP Financier'!$D$44*(('BP Financier'!$C$22+'BP Financier'!$D$22)/('BP Financier'!$C$16+'BP Financier'!$C$19+'BP Financier'!$D$16+'BP Financier'!$D$19+'BP Financier'!$C$22+'BP Financier'!$D$22))*$V2254*X2254/(1-$W2254)","v":{"v":102.43435693059317,"d":"102"}},{"$f":"'BP Financier'!$D$44*(('BP Financier'!$C$22+'BP Financier'!$D$22)/('BP Financier'!$C$16+'BP Financier'!$C$19+'BP Financier'!$D$16+'BP Financier'!$D$19+'BP Financier'!$C$22+'BP Financier'!$D$22))*$V2254*Y2254/(1-$W2254)","v":{"v":68.47821651161199,"d":"68"}},{"$f":"'BP Financier'!$D$44*(('BP Financier'!$C$22+'BP Financier'!$D$22)/('BP Financier'!$C$16+'BP Financier'!$C$19+'BP Financier'!$D$16+'BP Financier'!$D$19+'BP Financier'!$C$22+'BP Financier'!$D$22))*$V2254*Z2254/(1-$W2254)","v":{"v":535.9410829462525,"d":"536"}},{"$f":"'BP Financier'!$D$44*(('BP Financier'!$C$22+'BP Financier'!$D$22)/('BP Financier'!$C$16+'BP Financier'!$C$19+'BP Financier'!$D$16+'BP Financier'!$D$19+'BP Financier'!$C$22+'BP Financier'!$D$22))*$V2254*AA2254/(1-$W2254)","v":{"v":66.21447381701326,"d":"66"}},{"$f":"'BP Financier'!$D$44*(('BP Financier'!$C$22+'BP Financier'!$D$22)/('BP Financier'!$C$16+'BP Financier'!$C$19+'BP Financier'!$D$16+'BP Financier'!$D$19+'BP Financier'!$C$22+'BP Financier'!$D$22))*$V2254*AB2254/(1-$W2254)","v":{"v":31.69239772438241,"d":"32"}},null,{"v":0.0025,"d":"0.25%"},{"$f":"Actif!$E$28/100","v":{"v":0.28900000000000003,"d":"28.90%"}},{"$f":"Actif!$E$30/100","v":{"v":0.09050000000000001,"d":"9.05%"}},{"$f":"Actif!$E$31/100","v":{"v":0.0605,"d":"6.05%"}},{"$f":"Actif!$E$32/100","v":{"v":0.47350000000000003,"d":"47.35%"}},{"$f":"Actif!$E$33/100","v":{"v":0.0585,"d":"5.85%"}},{"$f":"Actif!$E$29/100","v":{"v":0.027999999999999997,"d":"2.80%"}}]
[null,"#160",44,2028,"F","A_CAPI",{"v":0.44999999999999996,"d":"0.45"},{"v":0.38999999999999996,"d":"0.39"},0.6,0.6,85,0,{"$f":"ROUND(Primes!$N$10*V2255,2)","v":{"v":0.04,"d":"0.040"}},0,{"v":804.7605279298534,"d":"805"},{"$f":"'BP Financier'!$D$44*(('BP Financier'!$C$22+'BP Financier'!$D$22)/('BP Financier'!$C$16+'BP Financier'!$C$19+'BP Financier'!$D$16+'BP Financier'!$D$19+'BP Financier'!$C$22+'BP Financier'!$D$22))*$V2255*X2255/(1-$W2255)","v":{"v":102.43435693059317,"d":"102"}},{"$f":"'BP Financier'!$D$44*(('BP Financier'!$C$22+'BP Financier'!$D$22)/('BP Financier'!$C$16+'BP Financier'!$C$19+'BP Financier'!$D$16+'BP Financier'!$D$19+'BP Financier'!$C$22+'BP Financier'!$D$22))*$V2255*Y2255/(1-$W2255)","v":{"v":68.47821651161199,"d":"68"}},{"$f":"'BP Financier'!$D$44*(('BP Financier'!$C$22+'BP Financier'!$D$22)/('BP Financier'!$C$16+'BP Financier'!$C$19+'BP Financier'!$D$16+'BP Financier'!$D$19+'BP Financier'!$C$22+'BP Financier'!$D$22))*$V2255*Z2255/(1-$W2255)","v":{"v":535.9410829462525,"d":"536"}},{"$f":"'BP Financier'!$D$44*(('BP Financier'!$C$22+'BP Financier'!$D$22)/('BP Financier'!$C$16+'BP Financier'!$C$19+'BP Financier'!$D$16+'BP Financier'!$D$19+'BP Financier'!$C$22+'BP Financier'!$D$22))*$V2255*AA2255/(1-$W2255)","v":{"v":66.21447381701326,"d":"66"}},{"$f":"'BP Financier'!$D$44*(('BP Financier'!$C$22+'BP Financier'!$D$22)/('BP Financier'!$C$16+'BP Financier'!$C$19+'BP Financier'!$D$16+'BP Financier'!$D$19+'BP Financier'!$C$22+'BP Financier'!$D$22))*$V2255*AB2255/(1-$W2255)","v":{"v":31.69239772438241,"d":"32"}},null,{"v":0.0025,"d":"0.25%"},{"$f":"Actif!$E$28/100","v":{"v":0.28900000000000003,"d":"28.90%"}},{"$f":"Actif!$E$30/100","v":{"v":0.09050000000000001,"d":"9.05%"}},{"$f":"Actif!$E$31/100","v":{"v":0.0605,"d":"6.05%"}},{"$f":"Actif!$E$32/100","v":{"v":0.47350000000000003,"d":"47.35%"}},{"$f":"Actif!$E$33/100","v":{"v":0.0585,"d":"5.85%"}},{"$f":"Actif!$E$29/100","v":{"v":0.027999999999999997,"d":"2.80%"}}]
[null,"#161",45,2026,"H","A_CAPI",{"v":0.44999999999999996,"d":"0.45"},{"v":0.38999999999999996,"d":"0.39"},0.6,0.6,85,0,{"$f":"ROUND(Primes!$N$10*V2256,2)","v":{"v":0.04,"d":"0.040"}},0,{"v":804.7605279298534,"d":"805"},{"$f":"'BP Financier'!$D$44*(('BP Financier'!$C$22+'BP Financier'!$D$22)/('BP Financier'!$C$16+'BP Financier'!$C$19+'BP Financier'!$D$16+'BP Financier'!$D$19+'BP Financier'!$C$22+'BP Financier'!$D$22))*$V2256*X2256/(1-$W2256)","v":{"v":102.43435693059317,"d":"102"}},{"$f":"'BP Financier'!$D$44*(('BP Financier'!$C$22+'BP Financier'!$D$22)/('BP Financier'!$C$16+'BP Financier'!$C$19+'BP Financier'!$D$16+'BP Financier'!$D$19+'BP Financier'!$C$22+'BP Financier'!$D$22))*$V2256*Y2256/(1-$W2256)","v":{"v":68.47821651161199,"d":"68"}},{"$f":"'BP Financier'!$D$44*(('BP Financier'!$C$22+'BP Financier'!$D$22)/('BP Financier'!$C$16+'BP Financier'!$C$19+'BP Financier'!$D$16+'BP Financier'!$D$19+'BP Financier'!$C$22+'BP Financier'!$D$22))*$V2256*Z2256/(1-$W2256)","v":{"v":535.9410829462525,"d":"536"}},{"$f":"'BP Financier'!$D$44*(('BP Financier'!$C$22+'BP Financier'!$D$22)/('BP Financier'!$C$16+'BP Financier'!$C$19+'BP Financier'!$D$16+'BP Financier'!$D$19+'BP Financier'!$C$22+'BP Financier'!$D$22))*$V2256*AA2256/(1-$W2256)","v":{"v":66.21447381701326,"d":"66"}},{"$f":"'BP Financier'!$D$44*(('BP Financier'!$C$22+'BP Financier'!$D$22)/('BP Financier'!$C$16+'BP Financier'!$C$19+'BP Financier'!$D$16+'BP Financier'!$D$19+'BP Financier'!$C$22+'BP Financier'!$D$22))*$V2256*AB2256/(1-$W2256)","v":{"v":31.69239772438241,"d":"32"}},null,{"v":0.0025,"d":"0.25%"},{"$f":"Actif!$E$28/100","v":{"v":0.28900000000000003,"d":"28.90%"}},{"$f":"Actif!$E$30/100","v":{"v":0.09050000000000001,"d":"9.05%"}},{"$f":"Actif!$E$31/100","v":{"v":0.0605,"d":"6.05%"}},{"$f":"Actif!$E$32/100","v":{"v":0.47350000000000003,"d":"47.35%"}},{"$f":"Actif!$E$33/100","v":{"v":0.0585,"d":"5.85%"}},{"$f":"Actif!$E$29/100","v":{"v":0.027999999999999997,"d":"2.80%"}}]
[null,"#162",45,2028,"H","A_CAPI",{"v":0.44999999999999996,"d":"0.45"},{"v":0.38999999999999996,"d":"0.39"},0.6,0.6,85,0,{"$f":"ROUND(Primes!$N$10*V2257,2)","v":{"v":0.04,"d":"0.040"}},0,{"v":804.7605279298534,"d":"805"},{"$f":"'BP Financier'!$D$44*(('BP Financier'!$C$22+'BP Financier'!$D$22)/('BP Financier'!$C$16+'BP Financier'!$C$19+'BP Financier'!$D$16+'BP Financier'!$D$19+'BP Financier'!$C$22+'BP Financier'!$D$22))*$V2257*X2257/(1-$W2257)","v":{"v":102.43435693059317,"d":"102"}},{"$f":"'BP Financier'!$D$44*(('BP Financier'!$C$22+'BP Financier'!$D$22)/('BP Financier'!$C$16+'BP Financier'!$C$19+'BP Financier'!$D$16+'BP Financier'!$D$19+'BP Financier'!$C$22+'BP Financier'!$D$22))*$V2257*Y2257/(1-$W2257)","v":{"v":68.47821651161199,"d":"68"}},{"$f":"'BP Financier'!$D$44*(('BP Financier'!$C$22+'BP Financier'!$D$22)/('BP Financier'!$C$16+'BP Financier'!$C$19+'BP Financier'!$D$16+'BP Financier'!$D$19+'BP Financier'!$C$22+'BP Financier'!$D$22))*$V2257*Z2257/(1-$W2257)","v":{"v":535.9410829462525,"d":"536"}},{"$f":"'BP Financier'!$D$44*(('BP Financier'!$C$22+'BP Financier'!$D$22)/('BP Financier'!$C$16+'BP Financier'!$C$19+'BP Financier'!$D$16+'BP Financier'!$D$19+'BP Financier'!$C$22+'BP Financier'!$D$22))*$V2257*AA2257/(1-$W2257)","v":{"v":66.21447381701326,"d":"66"}},{"$f":"'BP Financier'!$D$44*(('BP Financier'!$C$22+'BP Financier'!$D$22)/('BP Financier'!$C$16+'BP Financier'!$C$19+'BP Financier'!$D$16+'BP Financier'!$D$19+'BP Financier'!$C$22+'BP Financier'!$D$22))*$V2257*AB2257/(1-$W2257)","v":{"v":31.69239772438241,"d":"32"}},null,{"v":0.0025,"d":"0.25%"},{"$f":"Actif!$E$28/100","v":{"v":0.28900000000000003,"d":"28.90%"}},{"$f":"Actif!$E$30/100","v":{"v":0.09050000000000001,"d":"9.05%"}},{"$f":"Actif!$E$31/100","v":{"v":0.0605,"d":"6.05%"}},{"$f":"Actif!$E$32/100","v":{"v":0.47350000000000003,"d":"47.35%"}},{"$f":"Actif!$E$33/100","v":{"v":0.0585,"d":"5.85%"}},{"$f":"Actif!$E$29/100","v":{"v":0.027999999999999997,"d":"2.80%"}}]
[null,"#163",46,2026,"H","A_CAPI",{"v":0.44999999999999996,"d":"0.45"},{"v":0.38999999999999996,"d":"0.39"},0.6,0.6,85,0,{"$f":"ROUND(Primes!$N$10*V2258,2)","v":{"v":0.04,"d":"0.040"}},0,{"v":804.7605279298534,"d":"805"},{"$f":"'BP Financier'!$D$44*(('BP Financier'!$C$22+'BP Financier'!$D$22)/('BP Financier'!$C$16+'BP Financier'!$C$19+'BP Financier'!$D$16+'BP Financier'!$D$19+'BP Financier'!$C$22+'BP Financier'!$D$22))*$V2258*X2258/(1-$W2258)","v":{"v":102.43435693059317,"d":"102"}},{"$f":"'BP Financier'!$D$44*(('BP Financier'!$C$22+'BP Financier'!$D$22)/('BP Financier'!$C$16+'BP Financier'!$C$19+'BP Financier'!$D$16+'BP Financier'!$D$19+'BP Financier'!$C$22+'BP Financier'!$D$22))*$V2258*Y2258/(1-$W2258)","v":{"v":68.47821651161199,"d":"68"}},{"$f":"'BP Financier'!$D$44*(('BP Financier'!$C$22+'BP Financier'!$D$22)/('BP Financier'!$C$16+'BP Financier'!$C$19+'BP Financier'!$D$16+'BP Financier'!$D$19+'BP Financier'!$C$22+'BP Financier'!$D$22))*$V2258*Z2258/(1-$W2258)","v":{"v":535.9410829462525,"d":"536"}},{"$f":"'BP Financier'!$D$44*(('BP Financier'!$C$22+'BP Financier'!$D$22)/('BP Financier'!$C$16+'BP Financier'!$C$19+'BP Financier'!$D$16+'BP Financier'!$D$19+'BP Financier'!$C$22+'BP Financier'!$D$22))*$V2258*AA2258/(1-$W2258)","v":{"v":66.21447381701326,"d":"66"}},{"$f":"'BP Financier'!$D$44*(('BP Financier'!$C$22+'BP Financier'!$D$22)/('BP Financier'!$C$16+'BP Financier'!$C$19+'BP Financier'!$D$16+'BP Financier'!$D$19+'BP Financier'!$C$22+'BP Financier'!$D$22))*$V2258*AB2258/(1-$W2258)","v":{"v":31.69239772438241,"d":"32"}},null,{"v":0.0025,"d":"0.25%"},{"$f":"Actif!$E$28/100","v":{"v":0.28900000000000003,"d":"28.90%"}},{"$f":"Actif!$E$30/100","v":{"v":0.09050000000000001,"d":"9.05%"}},{"$f":"Actif!$E$31/100","v":{"v":0.0605,"d":"6.05%"}},{"$f":"Actif!$E$32/100","v":{"v":0.47350000000000003,"d":"47.35%"}},{"$f":"Actif!$E$33/100","v":{"v":0.0585,"d":"5.85%"}},{"$f":"Actif!$E$29/100","v":{"v":0.027999999999999997,"d":"2.80%"}}]
[null,"#164",46,2028,"H","A_CAPI",{"v":0.44999999999999996,"d":"0.45"},{"v":0.38999999999999996,"d":"0.39"},0.6,0.6,85,0,{"$f":"ROUND(Primes!$N$10*V2259,2)","v":{"v":0.04,"d":"0.040"}},0,{"v":804.7605279298534,"d":"805"},{"$f":"'BP Financier'!$D$44*(('BP Financier'!$C$22+'BP Financier'!$D$22)/('BP Financier'!$C$16+'BP Financier'!$C$19+'BP Financier'!$D$16+'BP Financier'!$D$19+'BP Financier'!$C$22+'BP Financier'!$D$22))*$V2259*X2259/(1-$W2259)","v":{"v":102.43435693059317,"d":"102"}},{"$f":"'BP Financier'!$D$44*(('BP Financier'!$C$22+'BP Financier'!$D$22)/('BP Financier'!$C$16+'BP Financier'!$C$19+'BP Financier'!$D$16+'BP Financier'!$D$19+'BP Financier'!$C$22+'BP Financier'!$D$22))*$V2259*Y2259/(1-$W2259)","v":{"v":68.47821651161199,"d":"68"}},{"$f":"'BP Financier'!$D$44*(('BP Financier'!$C$22+'BP Financier'!$D$22)/('BP Financier'!$C$16+'BP Financier'!$C$19+'BP Financier'!$D$16+'BP Financier'!$D$19+'BP Financier'!$C$22+'BP Financier'!$D$22))*$V2259*Z2259/(1-$W2259)","v":{"v":535.9410829462525,"d":"536"}},{"$f":"'BP Financier'!$D$44*(('BP Financier'!$C$22+'BP Financier'!$D$22)/('BP Financier'!$C$16+'BP Financier'!$C$19+'BP Financier'!$D$16+'BP Financier'!$D$19+'BP Financier'!$C$22+'BP Financier'!$D$22))*$V2259*AA2259/(1-$W2259)","v":{"v":66.21447381701326,"d":"66"}},{"$f":"'BP Financier'!$D$44*(('BP Financier'!$C$22+'BP Financier'!$D$22)/('BP Financier'!$C$16+'BP Financier'!$C$19+'BP Financier'!$D$16+'BP Financier'!$D$19+'BP Financier'!$C$22+'BP Financier'!$D$22))*$V2259*AB2259/(1-$W2259)","v":{"v":31.69239772438241,"d":"32"}},null,{"v":0.0025,"d":"0.25%"},{"$f":"Actif!$E$28/100","v":{"v":0.28900000000000003,"d":"28.90%"}},{"$f":"Actif!$E$30/100","v":{"v":0.09050000000000001,"d":"9.05%"}},{"$f":"Actif!$E$31/100","v":{"v":0.0605,"d":"6.05%"}},{"$f":"Actif!$E$32/100","v":{"v":0.47350000000000003,"d":"47.35%"}},{"$f":"Actif!$E$33/100","v":{"v":0.0585,"d":"5.85%"}},{"$f":"Actif!$E$29/100","v":{"v":0.027999999999999997,"d":"2.80%"}}]
[null,"#165",47,2026,"F","A_CAPI",{"v":0.44999999999999996,"d":"0.45"},{"v":0.38999999999999996,"d":"0.39"},0.6,0.6,85,0,{"$f":"ROUND(Primes!$N$10*V2260,2)","v":{"v":0.04,"d":"0.040"}},0,{"v":804.7605279298534,"d":"805"},{"$f":"'BP Financier'!$D$44*(('BP Financier'!$C$22+'BP Financier'!$D$22)/('BP Financier'!$C$16+'BP Financier'!$C$19+'BP Financier'!$D$16+'BP Financier'!$D$19+'BP Financier'!$C$22+'BP Financier'!$D$22))*$V2260*X2260/(1-$W2260)","v":{"v":102.43435693059317,"d":"102"}},{"$f":"'BP Financier'!$D$44*(('BP Financier'!$C$22+'BP Financier'!$D$22)/('BP Financier'!$C$16+'BP Financier'!$C$19+'BP Financier'!$D$16+'BP Financier'!$D$19+'BP Financier'!$C$22+'BP Financier'!$D$22))*$V2260*Y2260/(1-$W2260)","v":{"v":68.47821651161199,"d":"68"}},{"$f":"'BP Financier'!$D$44*(('BP Financier'!$C$22+'BP Financier'!$D$22)/('BP Financier'!$C$16+'BP Financier'!$C$19+'BP Financier'!$D$16+'BP Financier'!$D$19+'BP Financier'!$C$22+'BP Financier'!$D$22))*$V2260*Z2260/(1-$W2260)","v":{"v":535.9410829462525,"d":"536"}},{"$f":"'BP Financier'!$D$44*(('BP Financier'!$C$22+'BP Financier'!$D$22)/('BP Financier'!$C$16+'BP Financier'!$C$19+'BP Financier'!$D$16+'BP Financier'!$D$19+'BP Financier'!$C$22+'BP Financier'!$D$22))*$V2260*AA2260/(1-$W2260)","v":{"v":66.21447381701326,"d":"66"}},{"$f":"'BP Financier'!$D$44*(('BP Financier'!$C$22+'BP Financier'!$D$22)/('BP Financier'!$C$16+'BP Financier'!$C$19+'BP Financier'!$D$16+'BP Financier'!$D$19+'BP Financier'!$C$22+'BP Financier'!$D$22))*$V2260*AB2260/(1-$W2260)","v":{"v":31.69239772438241,"d":"32"}},null,{"v":0.0025,"d":"0.25%"},{"$f":"Actif!$E$28/100","v":{"v":0.28900000000000003,"d":"28.90%"}},{"$f":"Actif!$E$30/100","v":{"v":0.09050000000000001,"d":"9.05%"}},{"$f":"Actif!$E$31/100","v":{"v":0.0605,"d":"6.05%"}},{"$f":"Actif!$E$32/100","v":{"v":0.47350000000000003,"d":"47.35%"}},{"$f":"Actif!$E$33/100","v":{"v":0.0585,"d":"5.85%"}},{"$f":"Actif!$E$29/100","v":{"v":0.027999999999999997,"d":"2.80%"}}]
[null,"#166",47,2028,"F","A_CAPI",{"v":0.44999999999999996,"d":"0.45"},{"v":0.38999999999999996,"d":"0.39"},0.6,0.6,85,0,{"$f":"ROUND(Primes!$N$10*V2261,2)","v":{"v":0.04,"d":"0.040"}},0,{"v":804.7605279298534,"d":"805"},{"$f":"'BP Financier'!$D$44*(('BP Financier'!$C$22+'BP Financier'!$D$22)/('BP Financier'!$C$16+'BP Financier'!$C$19+'BP Financier'!$D$16+'BP Financier'!$D$19+'BP Financier'!$C$22+'BP Financier'!$D$22))*$V2261*X2261/(1-$W2261)","v":{"v":102.43435693059317,"d":"102"}},{"$f":"'BP Financier'!$D$44*(('BP Financier'!$C$22+'BP Financier'!$D$22)/('BP Financier'!$C$16+'BP Financier'!$C$19+'BP Financier'!$D$16+'BP Financier'!$D$19+'BP Financier'!$C$22+'BP Financier'!$D$22))*$V2261*Y2261/(1-$W2261)","v":{"v":68.47821651161199,"d":"68"}},{"$f":"'BP Financier'!$D$44*(('BP Financier'!$C$22+'BP Financier'!$D$22)/('BP Financier'!$C$16+'BP Financier'!$C$19+'BP Financier'!$D$16+'BP Financier'!$D$19+'BP Financier'!$C$22+'BP Financier'!$D$22))*$V2261*Z2261/(1-$W2261)","v":{"v":535.9410829462525,"d":"536"}},{"$f":"'BP Financier'!$D$44*(('BP Financier'!$C$22+'BP Financier'!$D$22)/('BP Financier'!$C$16+'BP Financier'!$C$19+'BP Financier'!$D$16+'BP Financier'!$D$19+'BP Financier'!$C$22+'BP Financier'!$D$22))*$V2261*AA2261/(1-$W2261)","v":{"v":66.21447381701326,"d":"66"}},{"$f":"'BP Financier'!$D$44*(('BP Financier'!$C$22+'BP Financier'!$D$22)/('BP Financier'!$C$16+'BP Financier'!$C$19+'BP Financier'!$D$16+'BP Financier'!$D$19+'BP Financier'!$C$22+'BP Financier'!$D$22))*$V2261*AB2261/(1-$W2261)","v":{"v":31.69239772438241,"d":"32"}},null,{"v":0.0025,"d":"0.25%"},{"$f":"Actif!$E$28/100","v":{"v":0.28900000000000003,"d":"28.90%"}},{"$f":"Actif!$E$30/100","v":{"v":0.09050000000000001,"d":"9.05%"}},{"$f":"Actif!$E$31/100","v":{"v":0.0605,"d":"6.05%"}},{"$f":"Actif!$E$32/100","v":{"v":0.47350000000000003,"d":"47.35%"}},{"$f":"Actif!$E$33/100","v":{"v":0.0585,"d":"5.85%"}},{"$f":"Actif!$E$29/100","v":{"v":0.027999999999999997,"d":"2.80%"}}]
[null,"#167",48,2026,"H","A_CAPI",{"v":0.44999999999999996,"d":"0.45"},{"v":0.38999999999999996,"d":"0.39"},0.6,0.6,85,0,{"$f":"ROUND(Primes!$N$10*V2262,2)","v":{"v":0.04,"d":"0.040"}},0,{"v":804.7605279298534,"d":"805"},{"$f":"'BP Financier'!$D$44*(('BP Financier'!$C$22+'BP Financier'!$D$22)/('BP Financier'!$C$16+'BP Financier'!$C$19+'BP Financier'!$D$16+'BP Financier'!$D$19+'BP Financier'!$C$22+'BP Financier'!$D$22))*$V2262*X2262/(1-$W2262)","v":{"v":102.43435693059317,"d":"102"}},{"$f":"'BP Financier'!$D$44*(('BP Financier'!$C$22+'BP Financier'!$D$22)/('BP Financier'!$C$16+'BP Financier'!$C$19+'BP Financier'!$D$16+'BP Financier'!$D$19+'BP Financier'!$C$22+'BP Financier'!$D$22))*$V2262*Y2262/(1-$W2262)","v":{"v":68.47821651161199,"d":"68"}},{"$f":"'BP Financier'!$D$44*(('BP Financier'!$C$22+'BP Financier'!$D$22)/('BP Financier'!$C$16+'BP Financier'!$C$19+'BP Financier'!$D$16+'BP Financier'!$D$19+'BP Financier'!$C$22+'BP Financier'!$D$22))*$V2262*Z2262/(1-$W2262)","v":{"v":535.9410829462525,"d":"536"}},{"$f":"'BP Financier'!$D$44*(('BP Financier'!$C$22+'BP Financier'!$D$22)/('BP Financier'!$C$16+'BP Financier'!$C$19+'BP Financier'!$D$16+'BP Financier'!$D$19+'BP Financier'!$C$22+'BP Financier'!$D$22))*$V2262*AA2262/(1-$W2262)","v":{"v":66.21447381701326,"d":"66"}},{"$f":"'BP Financier'!$D$44*(('BP Financier'!$C$22+'BP Financier'!$D$22)/('BP Financier'!$C$16+'BP Financier'!$C$19+'BP Financier'!$D$16+'BP Financier'!$D$19+'BP Financier'!$C$22+'BP Financier'!$D$22))*$V2262*AB2262/(1-$W2262)","v":{"v":31.69239772438241,"d":"32"}},null,{"v":0.0025,"d":"0.25%"},{"$f":"Actif!$E$28/100","v":{"v":0.28900000000000003,"d":"28.90%"}},{"$f":"Actif!$E$30/100","v":{"v":0.09050000000000001,"d":"9.05%"}},{"$f":"Actif!$E$31/100","v":{"v":0.0605,"d":"6.05%"}},{"$f":"Actif!$E$32/100","v":{"v":0.47350000000000003,"d":"47.35%"}},{"$f":"Actif!$E$33/100","v":{"v":0.0585,"d":"5.85%"}},{"$f":"Actif!$E$29/100","v":{"v":0.027999999999999997,"d":"2.80%"}}]
[null,"#168",48,2028,"H","A_CAPI",{"v":0.44999999999999996,"d":"0.45"},{"v":0.38999999999999996,"d":"0.39"},0.6,0.6,85,0,{"$f":"ROUND(Primes!$N$10*V2263,2)","v":{"v":0.04,"d":"0.040"}},0,{"v":804.7605279298534,"d":"805"},{"$f":"'BP Financier'!$D$44*(('BP Financier'!$C$22+'BP Financier'!$D$22)/('BP Financier'!$C$16+'BP Financier'!$C$19+'BP Financier'!$D$16+'BP Financier'!$D$19+'BP Financier'!$C$22+'BP Financier'!$D$22))*$V2263*X2263/(1-$W2263)","v":{"v":102.43435693059317,"d":"102"}},{"$f":"'BP Financier'!$D$44*(('BP Financier'!$C$22+'BP Financier'!$D$22)/('BP Financier'!$C$16+'BP Financier'!$C$19+'BP Financier'!$D$16+'BP Financier'!$D$19+'BP Financier'!$C$22+'BP Financier'!$D$22))*$V2263*Y2263/(1-$W2263)","v":{"v":68.47821651161199,"d":"68"}},{"$f":"'BP Financier'!$D$44*(('BP Financier'!$C$22+'BP Financier'!$D$22)/('BP Financier'!$C$16+'BP Financier'!$C$19+'BP Financier'!$D$16+'BP Financier'!$D$19+'BP Financier'!$C$22+'BP Financier'!$D$22))*$V2263*Z2263/(1-$W2263)","v":{"v":535.9410829462525,"d":"536"}},{"$f":"'BP Financier'!$D$44*(('BP Financier'!$C$22+'BP Financier'!$D$22)/('BP Financier'!$C$16+'BP Financier'!$C$19+'BP Financier'!$D$16+'BP Financier'!$D$19+'BP Financier'!$C$22+'BP Financier'!$D$22))*$V2263*AA2263/(1-$W2263)","v":{"v":66.21447381701326,"d":"66"}},{"$f":"'BP Financier'!$D$44*(('BP Financier'!$C$22+'BP Financier'!$D$22)/('BP Financier'!$C$16+'BP Financier'!$C$19+'BP Financier'!$D$16+'BP Financier'!$D$19+'BP Financier'!$C$22+'BP Financier'!$D$22))*$V2263*AB2263/(1-$W2263)","v":{"v":31.69239772438241,"d":"32"}},null,{"v":0.0025,"d":"0.25%"},{"$f":"Actif!$E$28/100","v":{"v":0.28900000000000003,"d":"28.90%"}},{"$f":"Actif!$E$30/100","v":{"v":0.09050000000000001,"d":"9.05%"}},{"$f":"Actif!$E$31/100","v":{"v":0.0605,"d":"6.05%"}},{"$f":"Actif!$E$32/100","v":{"v":0.47350000000000003,"d":"47.35%"}},{"$f":"Actif!$E$33/100","v":{"v":0.0585,"d":"5.85%"}},{"$f":"Actif!$E$29/100","v":{"v":0.027999999999999997,"d":"2.80%"}}]
[null,"#169",49,2026,"H","A_CAPI",{"v":0.44999999999999996,"d":"0.45"},{"v":0.38999999999999996,"d":"0.39"},0.6,0.6,85,0,{"$f":"ROUND(Primes!$N$10*V2264,2)","v":{"v":0.04,"d":"0.040"}},0,{"v":804.7605279298534,"d":"805"},{"$f":"'BP Financier'!$D$44*(('BP Financier'!$C$22+'BP Financier'!$D$22)/('BP Financier'!$C$16+'BP Financier'!$C$19+'BP Financier'!$D$16+'BP Financier'!$D$19+'BP Financier'!$C$22+'BP Financier'!$D$22))*$V2264*X2264/(1-$W2264)","v":{"v":102.43435693059317,"d":"102"}},{"$f":"'BP Financier'!$D$44*(('BP Financier'!$C$22+'BP Financier'!$D$22)/('BP Financier'!$C$16+'BP Financier'!$C$19+'BP Financier'!$D$16+'BP Financier'!$D$19+'BP Financier'!$C$22+'BP Financier'!$D$22))*$V2264*Y2264/(1-$W2264)","v":{"v":68.47821651161199,"d":"68"}},{"$f":"'BP Financier'!$D$44*(('BP Financier'!$C$22+'BP Financier'!$D$22)/('BP Financier'!$C$16+'BP Financier'!$C$19+'BP Financier'!$D$16+'BP Financier'!$D$19+'BP Financier'!$C$22+'BP Financier'!$D$22))*$V2264*Z2264/(1-$W2264)","v":{"v":535.9410829462525,"d":"536"}},{"$f":"'BP Financier'!$D$44*(('BP Financier'!$C$22+'BP Financier'!$D$22)/('BP Financier'!$C$16+'BP Financier'!$C$19+'BP Financier'!$D$16+'BP Financier'!$D$19+'BP Financier'!$C$22+'BP Financier'!$D$22))*$V2264*AA2264/(1-$W2264)","v":{"v":66.21447381701326,"d":"66"}},{"$f":"'BP Financier'!$D$44*(('BP Financier'!$C$22+'BP Financier'!$D$22)/('BP Financier'!$C$16+'BP Financier'!$C$19+'BP Financier'!$D$16+'BP Financier'!$D$19+'BP Financier'!$C$22+'BP Financier'!$D$22))*$V2264*AB2264/(1-$W2264)","v":{"v":31.69239772438241,"d":"32"}},null,{"v":0.0025,"d":"0.25%"},{"$f":"Actif!$E$28/100","v":{"v":0.28900000000000003,"d":"28.90%"}},{"$f":"Actif!$E$30/100","v":{"v":0.09050000000000001,"d":"9.05%"}},{"$f":"Actif!$E$31/100","v":{"v":0.0605,"d":"6.05%"}},{"$f":"Actif!$E$32/100","v":{"v":0.47350000000000003,"d":"47.35%"}},{"$f":"Actif!$E$33/100","v":{"v":0.0585,"d":"5.85%"}},{"$f":"Actif!$E$29/100","v":{"v":0.027999999999999997,"d":"2.80%"}}]
[null,"#170",49,2028,"H","A_CAPI",{"v":0.44999999999999996,"d":"0.45"},{"v":0.38999999999999996,"d":"0.39"},0.6,0.6,85,0,{"$f":"ROUND(Primes!$N$10*V2265,2)","v":{"v":0.04,"d":"0.040"}},0,{"v":804.7605279298534,"d":"805"},{"$f":"'BP Financier'!$D$44*(('BP Financier'!$C$22+'BP Financier'!$D$22)/('BP Financier'!$C$16+'BP Financier'!$C$19+'BP Financier'!$D$16+'BP Financier'!$D$19+'BP Financier'!$C$22+'BP Financier'!$D$22))*$V2265*X2265/(1-$W2265)","v":{"v":102.43435693059317,"d":"102"}},{"$f":"'BP Financier'!$D$44*(('BP Financier'!$C$22+'BP Financier'!$D$22)/('BP Financier'!$C$16+'BP Financier'!$C$19+'BP Financier'!$D$16+'BP Financier'!$D$19+'BP Financier'!$C$22+'BP Financier'!$D$22))*$V2265*Y2265/(1-$W2265)","v":{"v":68.47821651161199,"d":"68"}},{"$f":"'BP Financier'!$D$44*(('BP Financier'!$C$22+'BP Financier'!$D$22)/('BP Financier'!$C$16+'BP Financier'!$C$19+'BP Financier'!$D$16+'BP Financier'!$D$19+'BP Financier'!$C$22+'BP Financier'!$D$22))*$V2265*Z2265/(1-$W2265)","v":{"v":535.9410829462525,"d":"536"}},{"$f":"'BP Financier'!$D$44*(('BP Financier'!$C$22+'BP Financier'!$D$22)/('BP Financier'!$C$16+'BP Financier'!$C$19+'BP Financier'!$D$16+'BP Financier'!$D$19+'BP Financier'!$C$22+'BP Financier'!$D$22))*$V2265*AA2265/(1-$W2265)","v":{"v":66.21447381701326,"d":"66"}},{"$f":"'BP Financier'!$D$44*(('BP Financier'!$C$22+'BP Financier'!$D$22)/('BP Financier'!$C$16+'BP Financier'!$C$19+'BP Financier'!$D$16+'BP Financier'!$D$19+'BP Financier'!$C$22+'BP Financier'!$D$22))*$V2265*AB2265/(1-$W2265)","v":{"v":31.69239772438241,"d":"32"}},null,{"v":0.0025,"d":"0.25%"},{"$f":"Actif!$E$28/100","v":{"v":0.28900000000000003,"d":"28.90%"}},{"$f":"Actif!$E$30/100","v":{"v":0.09050000000000001,"d":"9.05%"}},{"$f":"Actif!$E$31/100","v":{"v":0.0605,"d":"6.05%"}},{"$f":"Actif!$E$32/100","v":{"v":0.47350000000000003,"d":"47.35%"}},{"$f":"Actif!$E$33/100","v":{"v":0.0585,"d":"5.85%"}},{"$f":"Actif!$E$29/100","v":{"v":0.027999999999999997,"d":"2.80%"}}]
[null,"#171",50,2026,"F","A_CAPI",{"v":0.44999999999999996,"d":"0.45"},{"v":0.38999999999999996,"d":"0.39"},0.6,0.6,85,0,{"$f":"ROUND(Primes!$N$10*V2266,2)","v":{"v":0.23,"d":"0.230"}},0,{"v":4828.563167579119,"d":"4,829"},{"$f":"'BP Financier'!$D$44*(('BP Financier'!$C$22+'BP Financier'!$D$22)/('BP Financier'!$C$16+'BP Financier'!$C$19+'BP Financier'!$D$16+'BP Financier'!$D$19+'BP Financier'!$C$22+'BP Financier'!$D$22))*$V2266*X2266/(1-$W2266)","v":{"v":614.6061415835588,"d":"615"}},{"$f":"'BP Financier'!$D$44*(('BP Financier'!$C$22+'BP Financier'!$D$22)/('BP Financier'!$C$16+'BP Financier'!$C$19+'BP Financier'!$D$16+'BP Financier'!$D$19+'BP Financier'!$C$22+'BP Financier'!$D$22))*$V2266*Y2266/(1-$W2266)","v":{"v":410.8692990696719,"d":"411"}},{"$f":"'BP Financier'!$D$44*(('BP Financier'!$C$22+'BP Financier'!$D$22)/('BP Financier'!$C$16+'BP Financier'!$C$19+'BP Financier'!$D$16+'BP Financier'!$D$19+'BP Financier'!$C$22+'BP Financier'!$D$22))*$V2266*Z2266/(1-$W2266)","v":{"v":3215.646497677515,"d":"3,216"}},{"$f":"'BP Financier'!$D$44*(('BP Financier'!$C$22+'BP Financier'!$D$22)/('BP Financier'!$C$16+'BP Financier'!$C$19+'BP Financier'!$D$16+'BP Financier'!$D$19+'BP Financier'!$C$22+'BP Financier'!$D$22))*$V2266*AA2266/(1-$W2266)","v":{"v":397.28684290207946,"d":"397"}},{"$f":"'BP Financier'!$D$44*(('BP Financier'!$C$22+'BP Financier'!$D$22)/('BP Financier'!$C$16+'BP Financier'!$C$19+'BP Financier'!$D$16+'BP Financier'!$D$19+'BP Financier'!$C$22+'BP Financier'!$D$22))*$V2266*AB2266/(1-$W2266)","v":{"v":190.15438634629442,"d":"190"}},null,{"v":0.015,"d":"1.50%"},{"$f":"Actif!$E$28/100","v":{"v":0.28900000000000003,"d":"28.90%"}},{"$f":"Actif!$E$30/100","v":{"v":0.09050000000000001,"d":"9.05%"}},{"$f":"Actif!$E$31/100","v":{"v":0.0605,"d":"6.05%"}},{"$f":"Actif!$E$32/100","v":{"v":0.47350000000000003,"d":"47.35%"}},{"$f":"Actif!$E$33/100","v":{"v":0.0585,"d":"5.85%"}},{"$f":"Actif!$E$29/100","v":{"v":0.027999999999999997,"d":"2.80%"}}]
[null,"#172",50,2028,"F","A_CAPI",{"v":0.44999999999999996,"d":"0.45"},{"v":0.38999999999999996,"d":"0.39"},0.6,0.6,85,0,{"$f":"ROUND(Primes!$N$10*V2267,2)","v":{"v":0.23,"d":"0.230"}},0,{"$f":"SUM(P2267:T2267)","v":{"v":4828.563167579119,"d":"4,829"}},{"$f":"'BP Financier'!$D$44*(('BP Financier'!$C$22+'BP Financier'!$D$22)/('BP Financier'!$C$16+'BP Financier'!$C$19+'BP Financier'!$D$16+'BP Financier'!$D$19+'BP Financier'!$C$22+'BP Financier'!$D$22))*$V2267*X2267/(1-$W2267)","v":{"v":614.6061415835588,"d":"615"}},{"$f":"'BP Financier'!$D$44*(('BP Financier'!$C$22+'BP Financier'!$D$22)/('BP Financier'!$C$16+'BP Financier'!$C$19+'BP Financier'!$D$16+'BP Financier'!$D$19+'BP Financier'!$C$22+'BP Financier'!$D$22))*$V2267*Y2267/(1-$W2267)","v":{"v":410.8692990696719,"d":"411"}},{"$f":"'BP Financier'!$D$44*(('BP Financier'!$C$22+'BP Financier'!$D$22)/('BP Financier'!$C$16+'BP Financier'!$C$19+'BP Financier'!$D$16+'BP Financier'!$D$19+'BP Financier'!$C$22+'BP Financier'!$D$22))*$V2267*Z2267/(1-$W2267)","v":{"v":3215.646497677515,"d":"3,216"}},{"$f":"'BP Financier'!$D$44*(('BP Financier'!$C$22+'BP Financier'!$D$22)/('BP Financier'!$C$16+'BP Financier'!$C$19+'BP Financier'!$D$16+'BP Financier'!$D$19+'BP Financier'!$C$22+'BP Financier'!$D$22))*$V2267*AA2267/(1-$W2267)","v":{"v":397.28684290207946,"d":"397"}},{"$f":"'BP Financier'!$D$44*(('BP Financier'!$C$22+'BP Financier'!$D$22)/('BP Financier'!$C$16+'BP Financier'!$C$19+'BP Financier'!$D$16+'BP Financier'!$D$19+'BP Financier'!$C$22+'BP Financier'!$D$22))*$V2267*AB2267/(1-$W2267)","v":{"v":190.15438634629442,"d":"190"}},null,{"v":0.015,"d":"1.50%"},{"$f":"Actif!$E$28/100","v":{"v":0.28900000000000003,"d":"28.90%"}},{"$f":"Actif!$E$30/100","v":{"v":0.09050000000000001,"d":"9.05%"}},{"$f":"Actif!$E$31/100","v":{"v":0.0605,"d":"6.05%"}},{"$f":"Actif!$E$32/100","v":{"v":0.47350000000000003,"d":"47.35%"}},{"$f":"Actif!$E$33/100","v":{"v":0.0585,"d":"5.85%"}},{"$f":"Actif!$E$29/100","v":{"v":0.027999999999999997,"d":"2.80%"}}]
[null,"#173",51,2026,"H","A_CAPI",{"v":0.44999999999999996,"d":"0.45"},{"v":0.38999999999999996,"d":"0.39"},0.6,0.6,85,0,{"$f":"ROUND(Primes!$N$10*V2268,2)","v":{"v":0.23,"d":"0.230"}},0,{"v":4828.563167579119,"d":"4,829"},{"$f":"'BP Financier'!$D$44*(('BP Financier'!$C$22+'BP Financier'!$D$22)/('BP Financier'!$C$16+'BP Financier'!$C$19+'BP Financier'!$D$16+'BP Financier'!$D$19+'BP Financier'!$C$22+'BP Financier'!$D$22))*$V2268*X2268/(1-$W2268)","v":{"v":614.6061415835588,"d":"615"}},{"$f":"'BP Financier'!$D$44*(('BP Financier'!$C$22+'BP Financier'!$D$22)/('BP Financier'!$C$16+'BP Financier'!$C$19+'BP Financier'!$D$16+'BP Financier'!$D$19+'BP Financier'!$C$22+'BP Financier'!$D$22))*$V2268*Y2268/(1-$W2268)","v":{"v":410.8692990696719,"d":"411"}},{"$f":"'BP Financier'!$D$44*(('BP Financier'!$C$22+'BP Financier'!$D$22)/('BP Financier'!$C$16+'BP Financier'!$C$19+'BP Financier'!$D$16+'BP Financier'!$D$19+'BP Financier'!$C$22+'BP Financier'!$D$22))*$V2268*Z2268/(1-$W2268)","v":{"v":3215.646497677515,"d":"3,216"}},{"$f":"'BP Financier'!$D$44*(('BP Financier'!$C$22+'BP Financier'!$D$22)/('BP Financier'!$C$16+'BP Financier'!$C$19+'BP Financier'!$D$16+'BP Financier'!$D$19+'BP Financier'!$C$22+'BP Financier'!$D$22))*$V2268*AA2268/(1-$W2268)","v":{"v":397.28684290207946,"d":"397"}},{"$f":"'BP Financier'!$D$44*(('BP Financier'!$C$22+'BP Financier'!$D$22)/('BP Financier'!$C$16+'BP Financier'!$C$19+'BP Financier'!$D$16+'BP Financier'!$D$19+'BP Financier'!$C$22+'BP Financier'!$D$22))*$V2268*AB2268/(1-$W2268)","v":{"v":190.15438634629442,"d":"190"}},null,{"v":0.015,"d":"1.50%"},{"$f":"Actif!$E$28/100","v":{"v":0.28900000000000003,"d":"28.90%"}},{"$f":"Actif!$E$30/100","v":{"v":0.09050000000000001,"d":"9.05%"}},{"$f":"Actif!$E$31/100","v":{"v":0.0605,"d":"6.05%"}},{"$f":"Actif!$E$32/100","v":{"v":0.47350000000000003,"d":"47.35%"}},{"$f":"Actif!$E$33/100","v":{"v":0.0585,"d":"5.85%"}},{"$f":"Actif!$E$29/100","v":{"v":0.027999999999999997,"d":"2.80%"}}]
[null,"#174",51,2028,"H","A_CAPI",{"v":0.44999999999999996,"d":"0.45"},{"v":0.38999999999999996,"d":"0.39"},0.6,0.6,85,0,{"$f":"ROUND(Primes!$N$10*V2269,2)","v":{"v":0.23,"d":"0.230"}},0,{"v":4828.563167579119,"d":"4,829"},{"$f":"'BP Financier'!$D$44*(('BP Financier'!$C$22+'BP Financier'!$D$22)/('BP Financier'!$C$16+'BP Financier'!$C$19+'BP Financier'!$D$16+'BP Financier'!$D$19+'BP Financier'!$C$22+'BP Financier'!$D$22))*$V2269*X2269/(1-$W2269)","v":{"v":614.6061415835588,"d":"615"}},{"$f":"'BP Financier'!$D$44*(('BP Financier'!$C$22+'BP Financier'!$D$22)/('BP Financier'!$C$16+'BP Financier'!$C$19+'BP Financier'!$D$16+'BP Financier'!$D$19+'BP Financier'!$C$22+'BP Financier'!$D$22))*$V2269*Y2269/(1-$W2269)","v":{"v":410.8692990696719,"d":"411"}},{"$f":"'BP Financier'!$D$44*(('BP Financier'!$C$22+'BP Financier'!$D$22)/('BP Financier'!$C$16+'BP Financier'!$C$19+'BP Financier'!$D$16+'BP Financier'!$D$19+'BP Financier'!$C$22+'BP Financier'!$D$22))*$V2269*Z2269/(1-$W2269)","v":{"v":3215.646497677515,"d":"3,216"}},{"$f":"'BP Financier'!$D$44*(('BP Financier'!$C$22+'BP Financier'!$D$22)/('BP Financier'!$C$16+'BP Financier'!$C$19+'BP Financier'!$D$16+'BP Financier'!$D$19+'BP Financier'!$C$22+'BP Financier'!$D$22))*$V2269*AA2269/(1-$W2269)","v":{"v":397.28684290207946,"d":"397"}},{"$f":"'BP Financier'!$D$44*(('BP Financier'!$C$22+'BP Financier'!$D$22)/('BP Financier'!$C$16+'BP Financier'!$C$19+'BP Financier'!$D$16+'BP Financier'!$D$19+'BP Financier'!$C$22+'BP Financier'!$D$22))*$V2269*AB2269/(1-$W2269)","v":{"v":190.15438634629442,"d":"190"}},null,{"v":0.015,"d":"1.50%"},{"$f":"Actif!$E$28/100","v":{"v":0.28900000000000003,"d":"28.90%"}},{"$f":"Actif!$E$30/100","v":{"v":0.09050000000000001,"d":"9.05%"}},{"$f":"Actif!$E$31/100","v":{"v":0.0605,"d":"6.05%"}},{"$f":"Actif!$E$32/100","v":{"v":0.47350000000000003,"d":"47.35%"}},{"$f":"Actif!$E$33/100","v":{"v":0.0585,"d":"5.85%"}},{"$f":"Actif!$E$29/100","v":{"v":0.027999999999999997,"d":"2.80%"}}]
[null,"#175",52,2026,"H","A_CAPI",{"v":0.44999999999999996,"d":"0.45"},{"v":0.38999999999999996,"d":"0.39"},0.6,0.6,85,0,{"$f":"ROUND(Primes!$N$10*V2270,2)","v":{"v":0.23,"d":"0.230"}},0,{"v":4828.563167579119,"d":"4,829"},{"$f":"'BP Financier'!$D$44*(('BP Financier'!$C$22+'BP Financier'!$D$22)/('BP Financier'!$C$16+'BP Financier'!$C$19+'BP Financier'!$D$16+'BP Financier'!$D$19+'BP Financier'!$C$22+'BP Financier'!$D$22))*$V2270*X2270/(1-$W2270)","v":{"v":614.6061415835588,"d":"615"}},{"$f":"'BP Financier'!$D$44*(('BP Financier'!$C$22+'BP Financier'!$D$22)/('BP Financier'!$C$16+'BP Financier'!$C$19+'BP Financier'!$D$16+'BP Financier'!$D$19+'BP Financier'!$C$22+'BP Financier'!$D$22))*$V2270*Y2270/(1-$W2270)","v":{"v":410.8692990696719,"d":"411"}},{"$f":"'BP Financier'!$D$44*(('BP Financier'!$C$22+'BP Financier'!$D$22)/('BP Financier'!$C$16+'BP Financier'!$C$19+'BP Financier'!$D$16+'BP Financier'!$D$19+'BP Financier'!$C$22+'BP Financier'!$D$22))*$V2270*Z2270/(1-$W2270)","v":{"v":3215.646497677515,"d":"3,216"}},{"$f":"'BP Financier'!$D$44*(('BP Financier'!$C$22+'BP Financier'!$D$22)/('BP Financier'!$C$16+'BP Financier'!$C$19+'BP Financier'!$D$16+'BP Financier'!$D$19+'BP Financier'!$C$22+'BP Financier'!$D$22))*$V2270*AA2270/(1-$W2270)","v":{"v":397.28684290207946,"d":"397"}},{"$f":"'BP Financier'!$D$44*(('BP Financier'!$C$22+'BP Financier'!$D$22)/('BP Financier'!$C$16+'BP Financier'!$C$19+'BP Financier'!$D$16+'BP Financier'!$D$19+'BP Financier'!$C$22+'BP Financier'!$D$22))*$V2270*AB2270/(1-$W2270)","v":{"v":190.15438634629442,"d":"190"}},null,{"v":0.015,"d":"1.50%"},{"$f":"Actif!$E$28/100","v":{"v":0.28900000000000003,"d":"28.90%"}},{"$f":"Actif!$E$30/100","v":{"v":0.09050000000000001,"d":"9.05%"}},{"$f":"Actif!$E$31/100","v":{"v":0.0605,"d":"6.05%"}},{"$f":"Actif!$E$32/100","v":{"v":0.47350000000000003,"d":"47.35%"}},{"$f":"Actif!$E$33/100","v":{"v":0.0585,"d":"5.85%"}},{"$f":"Actif!$E$29/100","v":{"v":0.027999999999999997,"d":"2.80%"}}]
[null,"#176",52,2028,"H","A_CAPI",{"v":0.44999999999999996,"d":"0.45"},{"v":0.38999999999999996,"d":"0.39"},0.6,0.6,85,0,{"$f":"ROUND(Primes!$N$10*V2271,2)","v":{"v":0.23,"d":"0.230"}},0,{"v":4828.563167579119,"d":"4,829"},{"$f":"'BP Financier'!$D$44*(('BP Financier'!$C$22+'BP Financier'!$D$22)/('BP Financier'!$C$16+'BP Financier'!$C$19+'BP Financier'!$D$16+'BP Financier'!$D$19+'BP Financier'!$C$22+'BP Financier'!$D$22))*$V2271*X2271/(1-$W2271)","v":{"v":614.6061415835588,"d":"615"}},{"$f":"'BP Financier'!$D$44*(('BP Financier'!$C$22+'BP Financier'!$D$22)/('BP Financier'!$C$16+'BP Financier'!$C$19+'BP Financier'!$D$16+'BP Financier'!$D$19+'BP Financier'!$C$22+'BP Financier'!$D$22))*$V2271*Y2271/(1-$W2271)","v":{"v":410.8692990696719,"d":"411"}},{"$f":"'BP Financier'!$D$44*(('BP Financier'!$C$22+'BP Financier'!$D$22)/('BP Financier'!$C$16+'BP Financier'!$C$19+'BP Financier'!$D$16+'BP Financier'!$D$19+'BP Financier'!$C$22+'BP Financier'!$D$22))*$V2271*Z2271/(1-$W2271)","v":{"v":3215.646497677515,"d":"3,216"}},{"$f":"'BP Financier'!$D$44*(('BP Financier'!$C$22+'BP Financier'!$D$22)/('BP Financier'!$C$16+'BP Financier'!$C$19+'BP Financier'!$D$16+'BP Financier'!$D$19+'BP Financier'!$C$22+'BP Financier'!$D$22))*$V2271*AA2271/(1-$W2271)","v":{"v":397.28684290207946,"d":"397"}},{"$f":"'BP Financier'!$D$44*(('BP Financier'!$C$22+'BP Financier'!$D$22)/('BP Financier'!$C$16+'BP Financier'!$C$19+'BP Financier'!$D$16+'BP Financier'!$D$19+'BP Financier'!$C$22+'BP Financier'!$D$22))*$V2271*AB2271/(1-$W2271)","v":{"v":190.15438634629442,"d":"190"}},null,{"v":0.015,"d":"1.50%"},{"$f":"Actif!$E$28/100","v":{"v":0.28900000000000003,"d":"28.90%"}},{"$f":"Actif!$E$30/100","v":{"v":0.09050000000000001,"d":"9.05%"}},{"$f":"Actif!$E$31/100","v":{"v":0.0605,"d":"6.05%"}},{"$f":"Actif!$E$32/100","v":{"v":0.47350000000000003,"d":"47.35%"}},{"$f":"Actif!$E$33/100","v":{"v":0.0585,"d":"5.85%"}},{"$f":"Actif!$E$29/100","v":{"v":0.027999999999999997,"d":"2.80%"}}]
[null,"#177",53,2026,"F","A_CAPI",{"v":0.44999999999999996,"d":"0.45"},{"v":0.38999999999999996,"d":"0.39"},0.6,0.6,85,0,{"$f":"ROUND(Primes!$N$10*V2272,2)","v":{"v":0.23,"d":"0.230"}},0,{"v":4828.563167579119,"d":"4,829"},{"$f":"'BP Financier'!$D$44*(('BP Financier'!$C$22+'BP Financier'!$D$22)/('BP Financier'!$C$16+'BP Financier'!$C$19+'BP Financier'!$D$16+'BP Financier'!$D$19+'BP Financier'!$C$22+'BP Financier'!$D$22))*$V2272*X2272/(1-$W2272)","v":{"v":614.6061415835588,"d":"615"}},{"$f":"'BP Financier'!$D$44*(('BP Financier'!$C$22+'BP Financier'!$D$22)/('BP Financier'!$C$16+'BP Financier'!$C$19+'BP Financier'!$D$16+'BP Financier'!$D$19+'BP Financier'!$C$22+'BP Financier'!$D$22))*$V2272*Y2272/(1-$W2272)","v":{"v":410.8692990696719,"d":"411"}},{"$f":"'BP Financier'!$D$44*(('BP Financier'!$C$22+'BP Financier'!$D$22)/('BP Financier'!$C$16+'BP Financier'!$C$19+'BP Financier'!$D$16+'BP Financier'!$D$19+'BP Financier'!$C$22+'BP Financier'!$D$22))*$V2272*Z2272/(1-$W2272)","v":{"v":3215.646497677515,"d":"3,216"}},{"$f":"'BP Financier'!$D$44*(('BP Financier'!$C$22+'BP Financier'!$D$22)/('BP Financier'!$C$16+'BP Financier'!$C$19+'BP Financier'!$D$16+'BP Financier'!$D$19+'BP Financier'!$C$22+'BP Financier'!$D$22))*$V2272*AA2272/(1-$W2272)","v":{"v":397.28684290207946,"d":"397"}},{"$f":"'BP Financier'!$D$44*(('BP Financier'!$C$22+'BP Financier'!$D$22)/('BP Financier'!$C$16+'BP Financier'!$C$19+'BP Financier'!$D$16+'BP Financier'!$D$19+'BP Financier'!$C$22+'BP Financier'!$D$22))*$V2272*AB2272/(1-$W2272)","v":{"v":190.15438634629442,"d":"190"}},null,{"v":0.015,"d":"1.50%"},{"$f":"Actif!$E$28/100","v":{"v":0.28900000000000003,"d":"28.90%"}},{"$f":"Actif!$E$30/100","v":{"v":0.09050000000000001,"d":"9.05%"}},{"$f":"Actif!$E$31/100","v":{"v":0.0605,"d":"6.05%"}},{"$f":"Actif!$E$32/100","v":{"v":0.47350000000000003,"d":"47.35%"}},{"$f":"Actif!$E$33/100","v":{"v":0.0585,"d":"5.85%"}},{"$f":"Actif!$E$29/100","v":{"v":0.027999999999999997,"d":"2.80%"}}]
[null,"#178",53,2028,"F","A_CAPI",{"v":0.44999999999999996,"d":"0.45"},{"v":0.38999999999999996,"d":"0.39"},0.6,0.6,85,0,{"$f":"ROUND(Primes!$N$10*V2273,2)","v":{"v":0.23,"d":"0.230"}},0,{"v":4828.563167579119,"d":"4,829"},{"$f":"'BP Financier'!$D$44*(('BP Financier'!$C$22+'BP Financier'!$D$22)/('BP Financier'!$C$16+'BP Financier'!$C$19+'BP Financier'!$D$16+'BP Financier'!$D$19+'BP Financier'!$C$22+'BP Financier'!$D$22))*$V2273*X2273/(1-$W2273)","v":{"v":614.6061415835588,"d":"615"}},{"$f":"'BP Financier'!$D$44*(('BP Financier'!$C$22+'BP Financier'!$D$22)/('BP Financier'!$C$16+'BP Financier'!$C$19+'BP Financier'!$D$16+'BP Financier'!$D$19+'BP Financier'!$C$22+'BP Financier'!$D$22))*$V2273*Y2273/(1-$W2273)","v":{"v":410.8692990696719,"d":"411"}},{"$f":"'BP Financier'!$D$44*(('BP Financier'!$C$22+'BP Financier'!$D$22)/('BP Financier'!$C$16+'BP Financier'!$C$19+'BP Financier'!$D$16+'BP Financier'!$D$19+'BP Financier'!$C$22+'BP Financier'!$D$22))*$V2273*Z2273/(1-$W2273)","v":{"v":3215.646497677515,"d":"3,216"}},{"$f":"'BP Financier'!$D$44*(('BP Financier'!$C$22+'BP Financier'!$D$22)/('BP Financier'!$C$16+'BP Financier'!$C$19+'BP Financier'!$D$16+'BP Financier'!$D$19+'BP Financier'!$C$22+'BP Financier'!$D$22))*$V2273*AA2273/(1-$W2273)","v":{"v":397.28684290207946,"d":"397"}},{"$f":"'BP Financier'!$D$44*(('BP Financier'!$C$22+'BP Financier'!$D$22)/('BP Financier'!$C$16+'BP Financier'!$C$19+'BP Financier'!$D$16+'BP Financier'!$D$19+'BP Financier'!$C$22+'BP Financier'!$D$22))*$V2273*AB2273/(1-$W2273)","v":{"v":190.15438634629442,"d":"190"}},null,{"v":0.015,"d":"1.50%"},{"$f":"Actif!$E$28/100","v":{"v":0.28900000000000003,"d":"28.90%"}},{"$f":"Actif!$E$30/100","v":{"v":0.09050000000000001,"d":"9.05%"}},{"$f":"Actif!$E$31/100","v":{"v":0.0605,"d":"6.05%"}},{"$f":"Actif!$E$32/100","v":{"v":0.47350000000000003,"d":"47.35%"}},{"$f":"Actif!$E$33/100","v":{"v":0.0585,"d":"5.85%"}},{"$f":"Actif!$E$29/100","v":{"v":0.027999999999999997,"d":"2.80%"}}]
[null,"#179",54,2026,"H","A_CAPI",{"v":0.44999999999999996,"d":"0.45"},{"v":0.38999999999999996,"d":"0.39"},0.6,0.6,85,0,{"$f":"ROUND(Primes!$N$10*V2274,2)","v":{"v":0.23,"d":"0.230"}},0,{"v":4828.563167579119,"d":"4,829"},{"$f":"'BP Financier'!$D$44*(('BP Financier'!$C$22+'BP Financier'!$D$22)/('BP Financier'!$C$16+'BP Financier'!$C$19+'BP Financier'!$D$16+'BP Financier'!$D$19+'BP Financier'!$C$22+'BP Financier'!$D$22))*$V2274*X2274/(1-$W2274)","v":{"v":614.6061415835588,"d":"615"}},{"$f":"'BP Financier'!$D$44*(('BP Financier'!$C$22+'BP Financier'!$D$22)/('BP Financier'!$C$16+'BP Financier'!$C$19+'BP Financier'!$D$16+'BP Financier'!$D$19+'BP Financier'!$C$22+'BP Financier'!$D$22))*$V2274*Y2274/(1-$W2274)","v":{"v":410.8692990696719,"d":"411"}},{"$f":"'BP Financier'!$D$44*(('BP Financier'!$C$22+'BP Financier'!$D$22)/('BP Financier'!$C$16+'BP Financier'!$C$19+'BP Financier'!$D$16+'BP Financier'!$D$19+'BP Financier'!$C$22+'BP Financier'!$D$22))*$V2274*Z2274/(1-$W2274)","v":{"v":3215.646497677515,"d":"3,216"}},{"$f":"'BP Financier'!$D$44*(('BP Financier'!$C$22+'BP Financier'!$D$22)/('BP Financier'!$C$16+'BP Financier'!$C$19+'BP Financier'!$D$16+'BP Financier'!$D$19+'BP Financier'!$C$22+'BP Financier'!$D$22))*$V2274*AA2274/(1-$W2274)","v":{"v":397.28684290207946,"d":"397"}},{"$f":"'BP Financier'!$D$44*(('BP Financier'!$C$22+'BP Financier'!$D$22)/('BP Financier'!$C$16+'BP Financier'!$C$19+'BP Financier'!$D$16+'BP Financier'!$D$19+'BP Financier'!$C$22+'BP Financier'!$D$22))*$V2274*AB2274/(1-$W2274)","v":{"v":190.15438634629442,"d":"190"}},null,{"v":0.015,"d":"1.50%"},{"$f":"Actif!$E$28/100","v":{"v":0.28900000000000003,"d":"28.90%"}},{"$f":"Actif!$E$30/100","v":{"v":0.09050000000000001,"d":"9.05%"}},{"$f":"Actif!$E$31/100","v":{"v":0.0605,"d":"6.05%"}},{"$f":"Actif!$E$32/100","v":{"v":0.47350000000000003,"d":"47.35%"}},{"$f":"Actif!$E$33/100","v":{"v":0.0585,"d":"5.85%"}},{"$f":"Actif!$E$29/100","v":{"v":0.027999999999999997,"d":"2.80%"}}]
[null,"#180",54,2028,"H","A_CAPI",{"v":0.44999999999999996,"d":"0.45"},{"v":0.38999999999999996,"d":"0.39"},0.6,0.6,85,0,{"$f":"ROUND(Primes!$N$10*V2275,2)","v":{"v":0.23,"d":"0.230"}},0,{"v":4828.563167579119,"d":"4,829"},{"$f":"'BP Financier'!$D$44*(('BP Financier'!$C$22+'BP Financier'!$D$22)/('BP Financier'!$C$16+'BP Financier'!$C$19+'BP Financier'!$D$16+'BP Financier'!$D$19+'BP Financier'!$C$22+'BP Financier'!$D$22))*$V2275*X2275/(1-$W2275)","v":{"v":614.6061415835588,"d":"615"}},{"$f":"'BP Financier'!$D$44*(('BP Financier'!$C$22+'BP Financier'!$D$22)/('BP Financier'!$C$16+'BP Financier'!$C$19+'BP Financier'!$D$16+'BP Financier'!$D$19+'BP Financier'!$C$22+'BP Financier'!$D$22))*$V2275*Y2275/(1-$W2275)","v":{"v":410.8692990696719,"d":"411"}},{"$f":"'BP Financier'!$D$44*(('BP Financier'!$C$22+'BP Financier'!$D$22)/('BP Financier'!$C$16+'BP Financier'!$C$19+'BP Financier'!$D$16+'BP Financier'!$D$19+'BP Financier'!$C$22+'BP Financier'!$D$22))*$V2275*Z2275/(1-$W2275)","v":{"v":3215.646497677515,"d":"3,216"}},{"$f":"'BP Financier'!$D$44*(('BP Financier'!$C$22+'BP Financier'!$D$22)/('BP Financier'!$C$16+'BP Financier'!$C$19+'BP Financier'!$D$16+'BP Financier'!$D$19+'BP Financier'!$C$22+'BP Financier'!$D$22))*$V2275*AA2275/(1-$W2275)","v":{"v":397.28684290207946,"d":"397"}},{"$f":"'BP Financier'!$D$44*(('BP Financier'!$C$22+'BP Financier'!$D$22)/('BP Financier'!$C$16+'BP Financier'!$C$19+'BP Financier'!$D$16+'BP Financier'!$D$19+'BP Financier'!$C$22+'BP Financier'!$D$22))*$V2275*AB2275/(1-$W2275)","v":{"v":190.15438634629442,"d":"190"}},null,{"v":0.015,"d":"1.50%"},{"$f":"Actif!$E$28/100","v":{"v":0.28900000000000003,"d":"28.90%"}},{"$f":"Actif!$E$30/100","v":{"v":0.09050000000000001,"d":"9.05%"}},{"$f":"Actif!$E$31/100","v":{"v":0.0605,"d":"6.05%"}},{"$f":"Actif!$E$32/100","v":{"v":0.47350000000000003,"d":"47.35%"}},{"$f":"Actif!$E$33/100","v":{"v":0.0585,"d":"5.85%"}},{"$f":"Actif!$E$29/100","v":{"v":0.027999999999999997,"d":"2.80%"}}]
[null,"#181",55,2026,"H","A_CAPI",{"v":0.44999999999999996,"d":"0.45"},{"v":0.38999999999999996,"d":"0.39"},0.6,0.6,85,0,{"$f":"ROUND(Primes!$N$10*V2276,2)","v":{"v":0.23,"d":"0.230"}},0,{"v":4828.563167579119,"d":"4,829"},{"$f":"'BP Financier'!$D$44*(('BP Financier'!$C$22+'BP Financier'!$D$22)/('BP Financier'!$C$16+'BP Financier'!$C$19+'BP Financier'!$D$16+'BP Financier'!$D$19+'BP Financier'!$C$22+'BP Financier'!$D$22))*$V2276*X2276/(1-$W2276)","v":{"v":614.6061415835588,"d":"615"}},{"$f":"'BP Financier'!$D$44*(('BP Financier'!$C$22+'BP Financier'!$D$22)/('BP Financier'!$C$16+'BP Financier'!$C$19+'BP Financier'!$D$16+'BP Financier'!$D$19+'BP Financier'!$C$22+'BP Financier'!$D$22))*$V2276*Y2276/(1-$W2276)","v":{"v":410.8692990696719,"d":"411"}},{"$f":"'BP Financier'!$D$44*(('BP Financier'!$C$22+'BP Financier'!$D$22)/('BP Financier'!$C$16+'BP Financier'!$C$19+'BP Financier'!$D$16+'BP Financier'!$D$19+'BP Financier'!$C$22+'BP Financier'!$D$22))*$V2276*Z2276/(1-$W2276)","v":{"v":3215.646497677515,"d":"3,216"}},{"$f":"'BP Financier'!$D$44*(('BP Financier'!$C$22+'BP Financier'!$D$22)/('BP Financier'!$C$16+'BP Financier'!$C$19+'BP Financier'!$D$16+'BP Financier'!$D$19+'BP Financier'!$C$22+'BP Financier'!$D$22))*$V2276*AA2276/(1-$W2276)","v":{"v":397.28684290207946,"d":"397"}},{"$f":"'BP Financier'!$D$44*(('BP Financier'!$C$22+'BP Financier'!$D$22)/('BP Financier'!$C$16+'BP Financier'!$C$19+'BP Financier'!$D$16+'BP Financier'!$D$19+'BP Financier'!$C$22+'BP Financier'!$D$22))*$V2276*AB2276/(1-$W2276)","v":{"v":190.15438634629442,"d":"190"}},null,{"v":0.015,"d":"1.50%"},{"$f":"Actif!$E$28/100","v":{"v":0.28900000000000003,"d":"28.90%"}},{"$f":"Actif!$E$30/100","v":{"v":0.09050000000000001,"d":"9.05%"}},{"$f":"Actif!$E$31/100","v":{"v":0.0605,"d":"6.05%"}},{"$f":"Actif!$E$32/100","v":{"v":0.47350000000000003,"d":"47.35%"}},{"$f":"Actif!$E$33/100","v":{"v":0.0585,"d":"5.85%"}},{"$f":"Actif!$E$29/100","v":{"v":0.027999999999999997,"d":"2.80%"}}]
[null,"#182",55,2028,"H","A_CAPI",{"v":0.44999999999999996,"d":"0.45"},{"v":0.38999999999999996,"d":"0.39"},0.6,0.6,85,0,{"$f":"ROUND(Primes!$N$10*V2277,2)","v":{"v":0.23,"d":"0.230"}},0,{"v":4828.563167579119,"d":"4,829"},{"$f":"'BP Financier'!$D$44*(('BP Financier'!$C$22+'BP Financier'!$D$22)/('BP Financier'!$C$16+'BP Financier'!$C$19+'BP Financier'!$D$16+'BP Financier'!$D$19+'BP Financier'!$C$22+'BP Financier'!$D$22))*$V2277*X2277/(1-$W2277)","v":{"v":614.6061415835588,"d":"615"}},{"$f":"'BP Financier'!$D$44*(('BP Financier'!$C$22+'BP Financier'!$D$22)/('BP Financier'!$C$16+'BP Financier'!$C$19+'BP Financier'!$D$16+'BP Financier'!$D$19+'BP Financier'!$C$22+'BP Financier'!$D$22))*$V2277*Y2277/(1-$W2277)","v":{"v":410.8692990696719,"d":"411"}},{"$f":"'BP Financier'!$D$44*(('BP Financier'!$C$22+'BP Financier'!$D$22)/('BP Financier'!$C$16+'BP Financier'!$C$19+'BP Financier'!$D$16+'BP Financier'!$D$19+'BP Financier'!$C$22+'BP Financier'!$D$22))*$V2277*Z2277/(1-$W2277)","v":{"v":3215.646497677515,"d":"3,216"}},{"$f":"'BP Financier'!$D$44*(('BP Financier'!$C$22+'BP Financier'!$D$22)/('BP Financier'!$C$16+'BP Financier'!$C$19+'BP Financier'!$D$16+'BP Financier'!$D$19+'BP Financier'!$C$22+'BP Financier'!$D$22))*$V2277*AA2277/(1-$W2277)","v":{"v":397.28684290207946,"d":"397"}},{"$f":"'BP Financier'!$D$44*(('BP Financier'!$C$22+'BP Financier'!$D$22)/('BP Financier'!$C$16+'BP Financier'!$C$19+'BP Financier'!$D$16+'BP Financier'!$D$19+'BP Financier'!$C$22+'BP Financier'!$D$22))*$V2277*AB2277/(1-$W2277)","v":{"v":190.15438634629442,"d":"190"}},null,{"v":0.015,"d":"1.50%"},{"$f":"Actif!$E$28/100","v":{"v":0.28900000000000003,"d":"28.90%"}},{"$f":"Actif!$E$30/100","v":{"v":0.09050000000000001,"d":"9.05%"}},{"$f":"Actif!$E$31/100","v":{"v":0.0605,"d":"6.05%"}},{"$f":"Actif!$E$32/100","v":{"v":0.47350000000000003,"d":"47.35%"}},{"$f":"Actif!$E$33/100","v":{"v":0.0585,"d":"5.85%"}},{"$f":"Actif!$E$29/100","v":{"v":0.027999999999999997,"d":"2.80%"}}]
[null,"#183",56,2026,"F","A_CAPI",{"v":0.44999999999999996,"d":"0.45"},{"v":0.38999999999999996,"d":"0.39"},0.6,0.6,85,0,{"$f":"ROUND(Primes!$N$10*V2278,2)","v":{"v":0.23,"d":"0.230"}},0,{"v":4828.563167579119,"d":"4,829"},{"$f":"'BP Financier'!$D$44*(('BP Financier'!$C$22+'BP Financier'!$D$22)/('BP Financier'!$C$16+'BP Financier'!$C$19+'BP Financier'!$D$16+'BP Financier'!$D$19+'BP Financier'!$C$22+'BP Financier'!$D$22))*$V2278*X2278/(1-$W2278)","v":{"v":614.6061415835588,"d":"615"}},{"$f":"'BP Financier'!$D$44*(('BP Financier'!$C$22+'BP Financier'!$D$22)/('BP Financier'!$C$16+'BP Financier'!$C$19+'BP Financier'!$D$16+'BP Financier'!$D$19+'BP Financier'!$C$22+'BP Financier'!$D$22))*$V2278*Y2278/(1-$W2278)","v":{"v":410.8692990696719,"d":"411"}},{"$f":"'BP Financier'!$D$44*(('BP Financier'!$C$22+'BP Financier'!$D$22)/('BP Financier'!$C$16+'BP Financier'!$C$19+'BP Financier'!$D$16+'BP Financier'!$D$19+'BP Financier'!$C$22+'BP Financier'!$D$22))*$V2278*Z2278/(1-$W2278)","v":{"v":3215.646497677515,"d":"3,216"}},{"$f":"'BP Financier'!$D$44*(('BP Financier'!$C$22+'BP Financier'!$D$22)/('BP Financier'!$C$16+'BP Financier'!$C$19+'BP Financier'!$D$16+'BP Financier'!$D$19+'BP Financier'!$C$22+'BP Financier'!$D$22))*$V2278*AA2278/(1-$W2278)","v":{"v":397.28684290207946,"d":"397"}},{"$f":"'BP Financier'!$D$44*(('BP Financier'!$C$22+'BP Financier'!$D$22)/('BP Financier'!$C$16+'BP Financier'!$C$19+'BP Financier'!$D$16+'BP Financier'!$D$19+'BP Financier'!$C$22+'BP Financier'!$D$22))*$V2278*AB2278/(1-$W2278)","v":{"v":190.15438634629442,"d":"190"}},null,{"v":0.015,"d":"1.50%"},{"$f":"Actif!$E$28/100","v":{"v":0.28900000000000003,"d":"28.90%"}},{"$f":"Actif!$E$30/100","v":{"v":0.09050000000000001,"d":"9.05%"}},{"$f":"Actif!$E$31/100","v":{"v":0.0605,"d":"6.05%"}},{"$f":"Actif!$E$32/100","v":{"v":0.47350000000000003,"d":"47.35%"}},{"$f":"Actif!$E$33/100","v":{"v":0.0585,"d":"5.85%"}},{"$f":"Actif!$E$29/100","v":{"v":0.027999999999999997,"d":"2.80%"}}]
[null,"#184",56,2028,"F","A_CAPI",{"v":0.44999999999999996,"d":"0.45"},{"v":0.38999999999999996,"d":"0.39"},0.6,0.6,85,0,{"$f":"ROUND(Primes!$N$10*V2279,2)","v":{"v":0.23,"d":"0.230"}},0,{"v":4828.563167579119,"d":"4,829"},{"$f":"'BP Financier'!$D$44*(('BP Financier'!$C$22+'BP Financier'!$D$22)/('BP Financier'!$C$16+'BP Financier'!$C$19+'BP Financier'!$D$16+'BP Financier'!$D$19+'BP Financier'!$C$22+'BP Financier'!$D$22))*$V2279*X2279/(1-$W2279)","v":{"v":614.6061415835588,"d":"615"}},{"$f":"'BP Financier'!$D$44*(('BP Financier'!$C$22+'BP Financier'!$D$22)/('BP Financier'!$C$16+'BP Financier'!$C$19+'BP Financier'!$D$16+'BP Financier'!$D$19+'BP Financier'!$C$22+'BP Financier'!$D$22))*$V2279*Y2279/(1-$W2279)","v":{"v":410.8692990696719,"d":"411"}},{"$f":"'BP Financier'!$D$44*(('BP Financier'!$C$22+'BP Financier'!$D$22)/('BP Financier'!$C$16+'BP Financier'!$C$19+'BP Financier'!$D$16+'BP Financier'!$D$19+'BP Financier'!$C$22+'BP Financier'!$D$22))*$V2279*Z2279/(1-$W2279)","v":{"v":3215.646497677515,"d":"3,216"}},{"$f":"'BP Financier'!$D$44*(('BP Financier'!$C$22+'BP Financier'!$D$22)/('BP Financier'!$C$16+'BP Financier'!$C$19+'BP Financier'!$D$16+'BP Financier'!$D$19+'BP Financier'!$C$22+'BP Financier'!$D$22))*$V2279*AA2279/(1-$W2279)","v":{"v":397.28684290207946,"d":"397"}},{"$f":"'BP Financier'!$D$44*(('BP Financier'!$C$22+'BP Financier'!$D$22)/('BP Financier'!$C$16+'BP Financier'!$C$19+'BP Financier'!$D$16+'BP Financier'!$D$19+'BP Financier'!$C$22+'BP Financier'!$D$22))*$V2279*AB2279/(1-$W2279)","v":{"v":190.15438634629442,"d":"190"}},null,{"v":0.015,"d":"1.50%"},{"$f":"Actif!$E$28/100","v":{"v":0.28900000000000003,"d":"28.90%"}},{"$f":"Actif!$E$30/100","v":{"v":0.09050000000000001,"d":"9.05%"}},{"$f":"Actif!$E$31/100","v":{"v":0.0605,"d":"6.05%"}},{"$f":"Actif!$E$32/100","v":{"v":0.47350000000000003,"d":"47.35%"}},{"$f":"Actif!$E$33/100","v":{"v":0.0585,"d":"5.85%"}},{"$f":"Actif!$E$29/100","v":{"v":0.027999999999999997,"d":"2.80%"}}]
[null,"#185",57,2026,"H","A_CAPI",{"v":0.44999999999999996,"d":"0.45"},{"v":0.38999999999999996,"d":"0.39"},0.6,0.6,85,0,{"$f":"ROUND(Primes!$N$10*V2280,2)","v":{"v":0.23,"d":"0.230"}},0,{"v":4828.563167579119,"d":"4,829"},{"$f":"'BP Financier'!$D$44*(('BP Financier'!$C$22+'BP Financier'!$D$22)/('BP Financier'!$C$16+'BP Financier'!$C$19+'BP Financier'!$D$16+'BP Financier'!$D$19+'BP Financier'!$C$22+'BP Financier'!$D$22))*$V2280*X2280/(1-$W2280)","v":{"v":614.6061415835588,"d":"615"}},{"$f":"'BP Financier'!$D$44*(('BP Financier'!$C$22+'BP Financier'!$D$22)/('BP Financier'!$C$16+'BP Financier'!$C$19+'BP Financier'!$D$16+'BP Financier'!$D$19+'BP Financier'!$C$22+'BP Financier'!$D$22))*$V2280*Y2280/(1-$W2280)","v":{"v":410.8692990696719,"d":"411"}},{"$f":"'BP Financier'!$D$44*(('BP Financier'!$C$22+'BP Financier'!$D$22)/('BP Financier'!$C$16+'BP Financier'!$C$19+'BP Financier'!$D$16+'BP Financier'!$D$19+'BP Financier'!$C$22+'BP Financier'!$D$22))*$V2280*Z2280/(1-$W2280)","v":{"v":3215.646497677515,"d":"3,216"}},{"$f":"'BP Financier'!$D$44*(('BP Financier'!$C$22+'BP Financier'!$D$22)/('BP Financier'!$C$16+'BP Financier'!$C$19+'BP Financier'!$D$16+'BP Financier'!$D$19+'BP Financier'!$C$22+'BP Financier'!$D$22))*$V2280*AA2280/(1-$W2280)","v":{"v":397.28684290207946,"d":"397"}},{"$f":"'BP Financier'!$D$44*(('BP Financier'!$C$22+'BP Financier'!$D$22)/('BP Financier'!$C$16+'BP Financier'!$C$19+'BP Financier'!$D$16+'BP Financier'!$D$19+'BP Financier'!$C$22+'BP Financier'!$D$22))*$V2280*AB2280/(1-$W2280)","v":{"v":190.15438634629442,"d":"190"}},null,{"v":0.015,"d":"1.50%"},{"$f":"Actif!$E$28/100","v":{"v":0.28900000000000003,"d":"28.90%"}},{"$f":"Actif!$E$30/100","v":{"v":0.09050000000000001,"d":"9.05%"}},{"$f":"Actif!$E$31/100","v":{"v":0.0605,"d":"6.05%"}},{"$f":"Actif!$E$32/100","v":{"v":0.47350000000000003,"d":"47.35%"}},{"$f":"Actif!$E$33/100","v":{"v":0.0585,"d":"5.85%"}},{"$f":"Actif!$E$29/100","v":{"v":0.027999999999999997,"d":"2.80%"}}]
[null,"#186",57,2028,"H","A_CAPI",{"v":0.44999999999999996,"d":"0.45"},{"v":0.38999999999999996,"d":"0.39"},0.6,0.6,85,0,{"$f":"ROUND(Primes!$N$10*V2281,2)","v":{"v":0.23,"d":"0.230"}},0,{"v":4828.563167579119,"d":"4,829"},{"$f":"'BP Financier'!$D$44*(('BP Financier'!$C$22+'BP Financier'!$D$22)/('BP Financier'!$C$16+'BP Financier'!$C$19+'BP Financier'!$D$16+'BP Financier'!$D$19+'BP Financier'!$C$22+'BP Financier'!$D$22))*$V2281*X2281/(1-$W2281)","v":{"v":614.6061415835588,"d":"615"}},{"$f":"'BP Financier'!$D$44*(('BP Financier'!$C$22+'BP Financier'!$D$22)/('BP Financier'!$C$16+'BP Financier'!$C$19+'BP Financier'!$D$16+'BP Financier'!$D$19+'BP Financier'!$C$22+'BP Financier'!$D$22))*$V2281*Y2281/(1-$W2281)","v":{"v":410.8692990696719,"d":"411"}},{"$f":"'BP Financier'!$D$44*(('BP Financier'!$C$22+'BP Financier'!$D$22)/('BP Financier'!$C$16+'BP Financier'!$C$19+'BP Financier'!$D$16+'BP Financier'!$D$19+'BP Financier'!$C$22+'BP Financier'!$D$22))*$V2281*Z2281/(1-$W2281)","v":{"v":3215.646497677515,"d":"3,216"}},{"$f":"'BP Financier'!$D$44*(('BP Financier'!$C$22+'BP Financier'!$D$22)/('BP Financier'!$C$16+'BP Financier'!$C$19+'BP Financier'!$D$16+'BP Financier'!$D$19+'BP Financier'!$C$22+'BP Financier'!$D$22))*$V2281*AA2281/(1-$W2281)","v":{"v":397.28684290207946,"d":"397"}},{"$f":"'BP Financier'!$D$44*(('BP Financier'!$C$22+'BP Financier'!$D$22)/('BP Financier'!$C$16+'BP Financier'!$C$19+'BP Financier'!$D$16+'BP Financier'!$D$19+'BP Financier'!$C$22+'BP Financier'!$D$22))*$V2281*AB2281/(1-$W2281)","v":{"v":190.15438634629442,"d":"190"}},null,{"v":0.015,"d":"1.50%"},{"$f":"Actif!$E$28/100","v":{"v":0.28900000000000003,"d":"28.90%"}},{"$f":"Actif!$E$30/100","v":{"v":0.09050000000000001,"d":"9.05%"}},{"$f":"Actif!$E$31/100","v":{"v":0.0605,"d":"6.05%"}},{"$f":"Actif!$E$32/100","v":{"v":0.47350000000000003,"d":"47.35%"}},{"$f":"Actif!$E$33/100","v":{"v":0.0585,"d":"5.85%"}},{"$f":"Actif!$E$29/100","v":{"v":0.027999999999999997,"d":"2.80%"}}]
[null,"#187",58,2026,"H","A_CAPI",{"v":0.44999999999999996,"d":"0.45"},{"v":0.38999999999999996,"d":"0.39"},0.6,0.6,85,0,{"$f":"ROUND(Primes!$N$10*V2282,2)","v":{"v":0.23,"d":"0.230"}},0,{"v":4828.563167579119,"d":"4,829"},{"$f":"'BP Financier'!$D$44*(('BP Financier'!$C$22+'BP Financier'!$D$22)/('BP Financier'!$C$16+'BP Financier'!$C$19+'BP Financier'!$D$16+'BP Financier'!$D$19+'BP Financier'!$C$22+'BP Financier'!$D$22))*$V2282*X2282/(1-$W2282)","v":{"v":614.6061415835588,"d":"615"}},{"$f":"'BP Financier'!$D$44*(('BP Financier'!$C$22+'BP Financier'!$D$22)/('BP Financier'!$C$16+'BP Financier'!$C$19+'BP Financier'!$D$16+'BP Financier'!$D$19+'BP Financier'!$C$22+'BP Financier'!$D$22))*$V2282*Y2282/(1-$W2282)","v":{"v":410.8692990696719,"d":"411"}},{"$f":"'BP Financier'!$D$44*(('BP Financier'!$C$22+'BP Financier'!$D$22)/('BP Financier'!$C$16+'BP Financier'!$C$19+'BP Financier'!$D$16+'BP Financier'!$D$19+'BP Financier'!$C$22+'BP Financier'!$D$22))*$V2282*Z2282/(1-$W2282)","v":{"v":3215.646497677515,"d":"3,216"}},{"$f":"'BP Financier'!$D$44*(('BP Financier'!$C$22+'BP Financier'!$D$22)/('BP Financier'!$C$16+'BP Financier'!$C$19+'BP Financier'!$D$16+'BP Financier'!$D$19+'BP Financier'!$C$22+'BP Financier'!$D$22))*$V2282*AA2282/(1-$W2282)","v":{"v":397.28684290207946,"d":"397"}},{"$f":"'BP Financier'!$D$44*(('BP Financier'!$C$22+'BP Financier'!$D$22)/('BP Financier'!$C$16+'BP Financier'!$C$19+'BP Financier'!$D$16+'BP Financier'!$D$19+'BP Financier'!$C$22+'BP Financier'!$D$22))*$V2282*AB2282/(1-$W2282)","v":{"v":190.15438634629442,"d":"190"}},null,{"v":0.015,"d":"1.50%"},{"$f":"Actif!$E$28/100","v":{"v":0.28900000000000003,"d":"28.90%"}},{"$f":"Actif!$E$30/100","v":{"v":0.09050000000000001,"d":"9.05%"}},{"$f":"Actif!$E$31/100","v":{"v":0.0605,"d":"6.05%"}},{"$f":"Actif!$E$32/100","v":{"v":0.47350000000000003,"d":"47.35%"}},{"$f":"Actif!$E$33/100","v":{"v":0.0585,"d":"5.85%"}},{"$f":"Actif!$E$29/100","v":{"v":0.027999999999999997,"d":"2.80%"}}]
[null,"#188",58,2028,"H","A_CAPI",{"v":0.44999999999999996,"d":"0.45"},{"v":0.38999999999999996,"d":"0.39"},0.6,0.6,85,0,{"$f":"ROUND(Primes!$N$10*V2283,2)","v":{"v":0.23,"d":"0.230"}},0,{"v":4828.563167579119,"d":"4,829"},{"$f":"'BP Financier'!$D$44*(('BP Financier'!$C$22+'BP Financier'!$D$22)/('BP Financier'!$C$16+'BP Financier'!$C$19+'BP Financier'!$D$16+'BP Financier'!$D$19+'BP Financier'!$C$22+'BP Financier'!$D$22))*$V2283*X2283/(1-$W2283)","v":{"v":614.6061415835588,"d":"615"}},{"$f":"'BP Financier'!$D$44*(('BP Financier'!$C$22+'BP Financier'!$D$22)/('BP Financier'!$C$16+'BP Financier'!$C$19+'BP Financier'!$D$16+'BP Financier'!$D$19+'BP Financier'!$C$22+'BP Financier'!$D$22))*$V2283*Y2283/(1-$W2283)","v":{"v":410.8692990696719,"d":"411"}},{"$f":"'BP Financier'!$D$44*(('BP Financier'!$C$22+'BP Financier'!$D$22)/('BP Financier'!$C$16+'BP Financier'!$C$19+'BP Financier'!$D$16+'BP Financier'!$D$19+'BP Financier'!$C$22+'BP Financier'!$D$22))*$V2283*Z2283/(1-$W2283)","v":{"v":3215.646497677515,"d":"3,216"}},{"$f":"'BP Financier'!$D$44*(('BP Financier'!$C$22+'BP Financier'!$D$22)/('BP Financier'!$C$16+'BP Financier'!$C$19+'BP Financier'!$D$16+'BP Financier'!$D$19+'BP Financier'!$C$22+'BP Financier'!$D$22))*$V2283*AA2283/(1-$W2283)","v":{"v":397.28684290207946,"d":"397"}},{"$f":"'BP Financier'!$D$44*(('BP Financier'!$C$22+'BP Financier'!$D$22)/('BP Financier'!$C$16+'BP Financier'!$C$19+'BP Financier'!$D$16+'BP Financier'!$D$19+'BP Financier'!$C$22+'BP Financier'!$D$22))*$V2283*AB2283/(1-$W2283)","v":{"v":190.15438634629442,"d":"190"}},null,{"v":0.015,"d":"1.50%"},{"$f":"Actif!$E$28/100","v":{"v":0.28900000000000003,"d":"28.90%"}},{"$f":"Actif!$E$30/100","v":{"v":0.09050000000000001,"d":"9.05%"}},{"$f":"Actif!$E$31/100","v":{"v":0.0605,"d":"6.05%"}},{"$f":"Actif!$E$32/100","v":{"v":0.47350000000000003,"d":"47.35%"}},{"$f":"Actif!$E$33/100","v":{"v":0.0585,"d":"5.85%"}},{"$f":"Actif!$E$29/100","v":{"v":0.027999999999999997,"d":"2.80%"}}]
[null,"#189",59,2026,"F","A_CAPI",{"v":0.44999999999999996,"d":"0.45"},{"v":0.38999999999999996,"d":"0.39"},0.6,0.6,85,0,{"$f":"ROUND(Primes!$N$10*V2284,2)","v":{"v":0.23,"d":"0.230"}},0,{"v":4828.563167579119,"d":"4,829"},{"$f":"'BP Financier'!$D$44*(('BP Financier'!$C$22+'BP Financier'!$D$22)/('BP Financier'!$C$16+'BP Financier'!$C$19+'BP Financier'!$D$16+'BP Financier'!$D$19+'BP Financier'!$C$22+'BP Financier'!$D$22))*$V2284*X2284/(1-$W2284)","v":{"v":614.6061415835588,"d":"615"}},{"$f":"'BP Financier'!$D$44*(('BP Financier'!$C$22+'BP Financier'!$D$22)/('BP Financier'!$C$16+'BP Financier'!$C$19+'BP Financier'!$D$16+'BP Financier'!$D$19+'BP Financier'!$C$22+'BP Financier'!$D$22))*$V2284*Y2284/(1-$W2284)","v":{"v":410.8692990696719,"d":"411"}},{"$f":"'BP Financier'!$D$44*(('BP Financier'!$C$22+'BP Financier'!$D$22)/('BP Financier'!$C$16+'BP Financier'!$C$19+'BP Financier'!$D$16+'BP Financier'!$D$19+'BP Financier'!$C$22+'BP Financier'!$D$22))*$V2284*Z2284/(1-$W2284)","v":{"v":3215.646497677515,"d":"3,216"}},{"$f":"'BP Financier'!$D$44*(('BP Financier'!$C$22+'BP Financier'!$D$22)/('BP Financier'!$C$16+'BP Financier'!$C$19+'BP Financier'!$D$16+'BP Financier'!$D$19+'BP Financier'!$C$22+'BP Financier'!$D$22))*$V2284*AA2284/(1-$W2284)","v":{"v":397.28684290207946,"d":"397"}},{"$f":"'BP Financier'!$D$44*(('BP Financier'!$C$22+'BP Financier'!$D$22)/('BP Financier'!$C$16+'BP Financier'!$C$19+'BP Financier'!$D$16+'BP Financier'!$D$19+'BP Financier'!$C$22+'BP Financier'!$D$22))*$V2284*AB2284/(1-$W2284)","v":{"v":190.15438634629442,"d":"190"}},null,{"v":0.015,"d":"1.50%"},{"$f":"Actif!$E$28/100","v":{"v":0.28900000000000003,"d":"28.90%"}},{"$f":"Actif!$E$30/100","v":{"v":0.09050000000000001,"d":"9.05%"}},{"$f":"Actif!$E$31/100","v":{"v":0.0605,"d":"6.05%"}},{"$f":"Actif!$E$32/100","v":{"v":0.47350000000000003,"d":"47.35%"}},{"$f":"Actif!$E$33/100","v":{"v":0.0585,"d":"5.85%"}},{"$f":"Actif!$E$29/100","v":{"v":0.027999999999999997,"d":"2.80%"}}]
[null,"#190",59,2028,"F","A_CAPI",{"v":0.44999999999999996,"d":"0.45"},{"v":0.38999999999999996,"d":"0.39"},0.6,0.6,85,0,{"$f":"ROUND(Primes!$N$10*V2285,2)","v":{"v":0.23,"d":"0.230"}},0,{"v":4828.563167579119,"d":"4,829"},{"$f":"'BP Financier'!$D$44*(('BP Financier'!$C$22+'BP Financier'!$D$22)/('BP Financier'!$C$16+'BP Financier'!$C$19+'BP Financier'!$D$16+'BP Financier'!$D$19+'BP Financier'!$C$22+'BP Financier'!$D$22))*$V2285*X2285/(1-$W2285)","v":{"v":614.6061415835588,"d":"615"}},{"$f":"'BP Financier'!$D$44*(('BP Financier'!$C$22+'BP Financier'!$D$22)/('BP Financier'!$C$16+'BP Financier'!$C$19+'BP Financier'!$D$16+'BP Financier'!$D$19+'BP Financier'!$C$22+'BP Financier'!$D$22))*$V2285*Y2285/(1-$W2285)","v":{"v":410.8692990696719,"d":"411"}},{"$f":"'BP Financier'!$D$44*(('BP Financier'!$C$22+'BP Financier'!$D$22)/('BP Financier'!$C$16+'BP Financier'!$C$19+'BP Financier'!$D$16+'BP Financier'!$D$19+'BP Financier'!$C$22+'BP Financier'!$D$22))*$V2285*Z2285/(1-$W2285)","v":{"v":3215.646497677515,"d":"3,216"}},{"$f":"'BP Financier'!$D$44*(('BP Financier'!$C$22+'BP Financier'!$D$22)/('BP Financier'!$C$16+'BP Financier'!$C$19+'BP Financier'!$D$16+'BP Financier'!$D$19+'BP Financier'!$C$22+'BP Financier'!$D$22))*$V2285*AA2285/(1-$W2285)","v":{"v":397.28684290207946,"d":"397"}},{"$f":"'BP Financier'!$D$44*(('BP Financier'!$C$22+'BP Financier'!$D$22)/('BP Financier'!$C$16+'BP Financier'!$C$19+'BP Financier'!$D$16+'BP Financier'!$D$19+'BP Financier'!$C$22+'BP Financier'!$D$22))*$V2285*AB2285/(1-$W2285)","v":{"v":190.15438634629442,"d":"190"}},null,{"v":0.015,"d":"1.50%"},{"$f":"Actif!$E$28/100","v":{"v":0.28900000000000003,"d":"28.90%"}},{"$f":"Actif!$E$30/100","v":{"v":0.09050000000000001,"d":"9.05%"}},{"$f":"Actif!$E$31/100","v":{"v":0.0605,"d":"6.05%"}},{"$f":"Actif!$E$32/100","v":{"v":0.47350000000000003,"d":"47.35%"}},{"$f":"Actif!$E$33/100","v":{"v":0.0585,"d":"5.85%"}},{"$f":"Actif!$E$29/100","v":{"v":0.027999999999999997,"d":"2.80%"}}]
[null,"#191",60,2026,"H","A_CAPI",{"v":0.44999999999999996,"d":"0.45"},{"v":0.38999999999999996,"d":"0.39"},0.6,0.6,85,0,{"$f":"ROUND(Primes!$N$10*V2286,2)","v":{"v":0.38,"d":"0.380"}},0,{"v":8047.605279298534,"d":"8,048"},{"$f":"'BP Financier'!$D$44*(('BP Financier'!$C$22+'BP Financier'!$D$22)/('BP Financier'!$C$16+'BP Financier'!$C$19+'BP Financier'!$D$16+'BP Financier'!$D$19+'BP Financier'!$C$22+'BP Financier'!$D$22))*$V2286*X2286/(1-$W2286)","v":{"v":1024.3435693059316,"d":"1,024"}},{"$f":"'BP Financier'!$D$44*(('BP Financier'!$C$22+'BP Financier'!$D$22)/('BP Financier'!$C$16+'BP Financier'!$C$19+'BP Financier'!$D$16+'BP Financier'!$D$19+'BP Financier'!$C$22+'BP Financier'!$D$22))*$V2286*Y2286/(1-$W2286)","v":{"v":684.7821651161198,"d":"685"}},{"$f":"'BP Financier'!$D$44*(('BP Financier'!$C$22+'BP Financier'!$D$22)/('BP Financier'!$C$16+'BP Financier'!$C$19+'BP Financier'!$D$16+'BP Financier'!$D$19+'BP Financier'!$C$22+'BP Financier'!$D$22))*$V2286*Z2286/(1-$W2286)","v":{"v":5359.410829462526,"d":"5,359"}},{"$f":"'BP Financier'!$D$44*(('BP Financier'!$C$22+'BP Financier'!$D$22)/('BP Financier'!$C$16+'BP Financier'!$C$19+'BP Financier'!$D$16+'BP Financier'!$D$19+'BP Financier'!$C$22+'BP Financier'!$D$22))*$V2286*AA2286/(1-$W2286)","v":{"v":662.1447381701325,"d":"662"}},{"$f":"'BP Financier'!$D$44*(('BP Financier'!$C$22+'BP Financier'!$D$22)/('BP Financier'!$C$16+'BP Financier'!$C$19+'BP Financier'!$D$16+'BP Financier'!$D$19+'BP Financier'!$C$22+'BP Financier'!$D$22))*$V2286*AB2286/(1-$W2286)","v":{"v":316.9239772438241,"d":"317"}},null,{"v":0.025,"d":"2.50%"},{"$f":"Actif!$E$28/100","v":{"v":0.28900000000000003,"d":"28.90%"}},{"$f":"Actif!$E$30/100","v":{"v":0.09050000000000001,"d":"9.05%"}},{"$f":"Actif!$E$31/100","v":{"v":0.0605,"d":"6.05%"}},{"$f":"Actif!$E$32/100","v":{"v":0.47350000000000003,"d":"47.35%"}},{"$f":"Actif!$E$33/100","v":{"v":0.0585,"d":"5.85%"}},{"$f":"Actif!$E$29/100","v":{"v":0.027999999999999997,"d":"2.80%"}}]
[null,"#192",60,2028,"H","A_CAPI",{"v":0.44999999999999996,"d":"0.45"},{"v":0.38999999999999996,"d":"0.39"},0.6,0.6,85,0,{"$f":"ROUND(Primes!$N$10*V2287,2)","v":{"v":0.38,"d":"0.380"}},0,{"v":8047.605279298534,"d":"8,048"},{"$f":"'BP Financier'!$D$44*(('BP Financier'!$C$22+'BP Financier'!$D$22)/('BP Financier'!$C$16+'BP Financier'!$C$19+'BP Financier'!$D$16+'BP Financier'!$D$19+'BP Financier'!$C$22+'BP Financier'!$D$22))*$V2287*X2287/(1-$W2287)","v":{"v":1024.3435693059316,"d":"1,024"}},{"$f":"'BP Financier'!$D$44*(('BP Financier'!$C$22+'BP Financier'!$D$22)/('BP Financier'!$C$16+'BP Financier'!$C$19+'BP Financier'!$D$16+'BP Financier'!$D$19+'BP Financier'!$C$22+'BP Financier'!$D$22))*$V2287*Y2287/(1-$W2287)","v":{"v":684.7821651161198,"d":"685"}},{"$f":"'BP Financier'!$D$44*(('BP Financier'!$C$22+'BP Financier'!$D$22)/('BP Financier'!$C$16+'BP Financier'!$C$19+'BP Financier'!$D$16+'BP Financier'!$D$19+'BP Financier'!$C$22+'BP Financier'!$D$22))*$V2287*Z2287/(1-$W2287)","v":{"v":5359.410829462526,"d":"5,359"}},{"$f":"'BP Financier'!$D$44*(('BP Financier'!$C$22+'BP Financier'!$D$22)/('BP Financier'!$C$16+'BP Financier'!$C$19+'BP Financier'!$D$16+'BP Financier'!$D$19+'BP Financier'!$C$22+'BP Financier'!$D$22))*$V2287*AA2287/(1-$W2287)","v":{"v":662.1447381701325,"d":"662"}},{"$f":"'BP Financier'!$D$44*(('BP Financier'!$C$22+'BP Financier'!$D$22)/('BP Financier'!$C$16+'BP Financier'!$C$19+'BP Financier'!$D$16+'BP Financier'!$D$19+'BP Financier'!$C$22+'BP Financier'!$D$22))*$V2287*AB2287/(1-$W2287)","v":{"v":316.9239772438241,"d":"317"}},null,{"v":0.025,"d":"2.50%"},{"$f":"Actif!$E$28/100","v":{"v":0.28900000000000003,"d":"28.90%"}},{"$f":"Actif!$E$30/100","v":{"v":0.09050000000000001,"d":"9.05%"}},{"$f":"Actif!$E$31/100","v":{"v":0.0605,"d":"6.05%"}},{"$f":"Actif!$E$32/100","v":{"v":0.47350000000000003,"d":"47.35%"}},{"$f":"Actif!$E$33/100","v":{"v":0.0585,"d":"5.85%"}},{"$f":"Actif!$E$29/100","v":{"v":0.027999999999999997,"d":"2.80%"}}]
[null,"#193",61,2026,"H","A_CAPI",{"$f":"frais_gestion_Euro*100","v":{"v":0.44999999999999996,"d":"0.45"}},{"$f":"frais_gestion_UC*100","v":{"v":0.38999999999999996,"d":"0.39"}},{"$f":"frais_distribution_FG*100","v":0.6},{"$f":"frais_distribution_UC*100","v":0.6},85,0,{"$f":"ROUND(Primes!$N$10*V2288,2)","v":{"v":0.23,"d":"0.230"}},0,{"v":4828.563167579119,"d":"4,829"},{"$f":"'BP Financier'!$D$44*(('BP Financier'!$C$22+'BP Financier'!$D$22)/('BP Financier'!$C$16+'BP Financier'!$C$19+'BP Financier'!$D$16+'BP Financier'!$D$19+'BP Financier'!$C$22+'BP Financier'!$D$22))*$V2288*X2288/(1-$W2288)","v":{"v":614.6061415835588,"d":"615"}},{"$f":"'BP Financier'!$D$44*(('BP Financier'!$C$22+'BP Financier'!$D$22)/('BP Financier'!$C$16+'BP Financier'!$C$19+'BP Financier'!$D$16+'BP Financier'!$D$19+'BP Financier'!$C$22+'BP Financier'!$D$22))*$V2288*Y2288/(1-$W2288)","v":{"v":410.8692990696719,"d":"411"}},{"$f":"'BP Financier'!$D$44*(('BP Financier'!$C$22+'BP Financier'!$D$22)/('BP Financier'!$C$16+'BP Financier'!$C$19+'BP Financier'!$D$16+'BP Financier'!$D$19+'BP Financier'!$C$22+'BP Financier'!$D$22))*$V2288*Z2288/(1-$W2288)","v":{"v":3215.646497677515,"d":"3,216"}},{"$f":"'BP Financier'!$D$44*(('BP Financier'!$C$22+'BP Financier'!$D$22)/('BP Financier'!$C$16+'BP Financier'!$C$19+'BP Financier'!$D$16+'BP Financier'!$D$19+'BP Financier'!$C$22+'BP Financier'!$D$22))*$V2288*AA2288/(1-$W2288)","v":{"v":397.28684290207946,"d":"397"}},{"$f":"'BP Financier'!$D$44*(('BP Financier'!$C$22+'BP Financier'!$D$22)/('BP Financier'!$C$16+'BP Financier'!$C$19+'BP Financier'!$D$16+'BP Financier'!$D$19+'BP Financier'!$C$22+'BP Financier'!$D$22))*$V2288*AB2288/(1-$W2288)","v":{"v":190.15438634629442,"d":"190"}},null,{"v":0.015,"d":"1.50%"},{"$f":"Actif!$E$28/100","v":{"v":0.28900000000000003,"d":"28.90%"}},{"$f":"Actif!$E$30/100","v":{"v":0.09050000000000001,"d":"9.05%"}},{"$f":"Actif!$E$31/100","v":{"v":0.0605,"d":"6.05%"}},{"$f":"Actif!$E$32/100","v":{"v":0.47350000000000003,"d":"47.35%"}},{"$f":"Actif!$E$33/100","v":{"v":0.0585,"d":"5.85%"}},{"$f":"Actif!$E$29/100","v":{"v":0.027999999999999997,"d":"2.80%"}}]
[null,"#194",61,2028,"H","A_CAPI",{"v":0.44999999999999996,"d":"0.45"},{"v":0.38999999999999996,"d":"0.39"},0.6,0.6,85,0,{"$f":"ROUND(Primes!$N$10*V2289,2)","v":{"v":0.23,"d":"0.230"}},0,{"v":4828.563167579119,"d":"4,829"},{"$f":"'BP Financier'!$D$44*(('BP Financier'!$C$22+'BP Financier'!$D$22)/('BP Financier'!$C$16+'BP Financier'!$C$19+'BP Financier'!$D$16+'BP Financier'!$D$19+'BP Financier'!$C$22+'BP Financier'!$D$22))*$V2289*X2289/(1-$W2289)","v":{"v":614.6061415835588,"d":"615"}},{"$f":"'BP Financier'!$D$44*(('BP Financier'!$C$22+'BP Financier'!$D$22)/('BP Financier'!$C$16+'BP Financier'!$C$19+'BP Financier'!$D$16+'BP Financier'!$D$19+'BP Financier'!$C$22+'BP Financier'!$D$22))*$V2289*Y2289/(1-$W2289)","v":{"v":410.8692990696719,"d":"411"}},{"$f":"'BP Financier'!$D$44*(('BP Financier'!$C$22+'BP Financier'!$D$22)/('BP Financier'!$C$16+'BP Financier'!$C$19+'BP Financier'!$D$16+'BP Financier'!$D$19+'BP Financier'!$C$22+'BP Financier'!$D$22))*$V2289*Z2289/(1-$W2289)","v":{"v":3215.646497677515,"d":"3,216"}},{"$f":"'BP Financier'!$D$44*(('BP Financier'!$C$22+'BP Financier'!$D$22)/('BP Financier'!$C$16+'BP Financier'!$C$19+'BP Financier'!$D$16+'BP Financier'!$D$19+'BP Financier'!$C$22+'BP Financier'!$D$22))*$V2289*AA2289/(1-$W2289)","v":{"v":397.28684290207946,"d":"397"}},{"$f":"'BP Financier'!$D$44*(('BP Financier'!$C$22+'BP Financier'!$D$22)/('BP Financier'!$C$16+'BP Financier'!$C$19+'BP Financier'!$D$16+'BP Financier'!$D$19+'BP Financier'!$C$22+'BP Financier'!$D$22))*$V2289*AB2289/(1-$W2289)","v":{"v":190.15438634629442,"d":"190"}},null,{"v":0.015,"d":"1.50%"},{"$f":"Actif!$E$28/100","v":{"v":0.28900000000000003,"d":"28.90%"}},{"$f":"Actif!$E$30/100","v":{"v":0.09050000000000001,"d":"9.05%"}},{"$f":"Actif!$E$31/100","v":{"v":0.0605,"d":"6.05%"}},{"$f":"Actif!$E$32/100","v":{"v":0.47350000000000003,"d":"47.35%"}},{"$f":"Actif!$E$33/100","v":{"v":0.0585,"d":"5.85%"}},{"$f":"Actif!$E$29/100","v":{"v":0.027999999999999997,"d":"2.80%"}}]
[null,"#195",62,2026,"F","A_CAPI",{"v":0.44999999999999996,"d":"0.45"},{"v":0.38999999999999996,"d":"0.39"},0.6,0.6,85,0,{"$f":"ROUND(Primes!$N$10*V2290,2)","v":{"v":0.23,"d":"0.230"}},0,{"v":4828.563167579119,"d":"4,829"},{"$f":"'BP Financier'!$D$44*(('BP Financier'!$C$22+'BP Financier'!$D$22)/('BP Financier'!$C$16+'BP Financier'!$C$19+'BP Financier'!$D$16+'BP Financier'!$D$19+'BP Financier'!$C$22+'BP Financier'!$D$22))*$V2290*X2290/(1-$W2290)","v":{"v":614.6061415835588,"d":"615"}},{"$f":"'BP Financier'!$D$44*(('BP Financier'!$C$22+'BP Financier'!$D$22)/('BP Financier'!$C$16+'BP Financier'!$C$19+'BP Financier'!$D$16+'BP Financier'!$D$19+'BP Financier'!$C$22+'BP Financier'!$D$22))*$V2290*Y2290/(1-$W2290)","v":{"v":410.8692990696719,"d":"411"}},{"$f":"'BP Financier'!$D$44*(('BP Financier'!$C$22+'BP Financier'!$D$22)/('BP Financier'!$C$16+'BP Financier'!$C$19+'BP Financier'!$D$16+'BP Financier'!$D$19+'BP Financier'!$C$22+'BP Financier'!$D$22))*$V2290*Z2290/(1-$W2290)","v":{"v":3215.646497677515,"d":"3,216"}},{"$f":"'BP Financier'!$D$44*(('BP Financier'!$C$22+'BP Financier'!$D$22)/('BP Financier'!$C$16+'BP Financier'!$C$19+'BP Financier'!$D$16+'BP Financier'!$D$19+'BP Financier'!$C$22+'BP Financier'!$D$22))*$V2290*AA2290/(1-$W2290)","v":{"v":397.28684290207946,"d":"397"}},{"$f":"'BP Financier'!$D$44*(('BP Financier'!$C$22+'BP Financier'!$D$22)/('BP Financier'!$C$16+'BP Financier'!$C$19+'BP Financier'!$D$16+'BP Financier'!$D$19+'BP Financier'!$C$22+'BP Financier'!$D$22))*$V2290*AB2290/(1-$W2290)","v":{"v":190.15438634629442,"d":"190"}},null,{"v":0.015,"d":"1.50%"},{"$f":"Actif!$E$28/100","v":{"v":0.28900000000000003,"d":"28.90%"}},{"$f":"Actif!$E$30/100","v":{"v":0.09050000000000001,"d":"9.05%"}},{"$f":"Actif!$E$31/100","v":{"v":0.0605,"d":"6.05%"}},{"$f":"Actif!$E$32/100","v":{"v":0.47350000000000003,"d":"47.35%"}},{"$f":"Actif!$E$33/100","v":{"v":0.0585,"d":"5.85%"}},{"$f":"Actif!$E$29/100","v":{"v":0.027999999999999997,"d":"2.80%"}}]
[null,"#196",62,2028,"F","A_CAPI",{"v":0.44999999999999996,"d":"0.45"},{"v":0.38999999999999996,"d":"0.39"},0.6,0.6,85,0,{"$f":"ROUND(Primes!$N$10*V2291,2)","v":{"v":0.23,"d":"0.230"}},0,{"v":4828.563167579119,"d":"4,829"},{"$f":"'BP Financier'!$D$44*(('BP Financier'!$C$22+'BP Financier'!$D$22)/('BP Financier'!$C$16+'BP Financier'!$C$19+'BP Financier'!$D$16+'BP Financier'!$D$19+'BP Financier'!$C$22+'BP Financier'!$D$22))*$V2291*X2291/(1-$W2291)","v":{"v":614.6061415835588,"d":"615"}},{"$f":"'BP Financier'!$D$44*(('BP Financier'!$C$22+'BP Financier'!$D$22)/('BP Financier'!$C$16+'BP Financier'!$C$19+'BP Financier'!$D$16+'BP Financier'!$D$19+'BP Financier'!$C$22+'BP Financier'!$D$22))*$V2291*Y2291/(1-$W2291)","v":{"v":410.8692990696719,"d":"411"}},{"$f":"'BP Financier'!$D$44*(('BP Financier'!$C$22+'BP Financier'!$D$22)/('BP Financier'!$C$16+'BP Financier'!$C$19+'BP Financier'!$D$16+'BP Financier'!$D$19+'BP Financier'!$C$22+'BP Financier'!$D$22))*$V2291*Z2291/(1-$W2291)","v":{"v":3215.646497677515,"d":"3,216"}},{"$f":"'BP Financier'!$D$44*(('BP Financier'!$C$22+'BP Financier'!$D$22)/('BP Financier'!$C$16+'BP Financier'!$C$19+'BP Financier'!$D$16+'BP Financier'!$D$19+'BP Financier'!$C$22+'BP Financier'!$D$22))*$V2291*AA2291/(1-$W2291)","v":{"v":397.28684290207946,"d":"397"}},{"$f":"'BP Financier'!$D$44*(('BP Financier'!$C$22+'BP Financier'!$D$22)/('BP Financier'!$C$16+'BP Financier'!$C$19+'BP Financier'!$D$16+'BP Financier'!$D$19+'BP Financier'!$C$22+'BP Financier'!$D$22))*$V2291*AB2291/(1-$W2291)","v":{"v":190.15438634629442,"d":"190"}},null,{"v":0.015,"d":"1.50%"},{"$f":"Actif!$E$28/100","v":{"v":0.28900000000000003,"d":"28.90%"}},{"$f":"Actif!$E$30/100","v":{"v":0.09050000000000001,"d":"9.05%"}},{"$f":"Actif!$E$31/100","v":{"v":0.0605,"d":"6.05%"}},{"$f":"Actif!$E$32/100","v":{"v":0.47350000000000003,"d":"47.35%"}},{"$f":"Actif!$E$33/100","v":{"v":0.0585,"d":"5.85%"}},{"$f":"Actif!$E$29/100","v":{"v":0.027999999999999997,"d":"2.80%"}}]
[null,"#197",63,2026,"H","A_CAPI",{"v":0.44999999999999996,"d":"0.45"},{"v":0.38999999999999996,"d":"0.39"},0.6,0.6,85,0,{"$f":"ROUND(Primes!$N$10*V2292,2)","v":{"v":0.23,"d":"0.230"}},0,{"v":4828.563167579119,"d":"4,829"},{"$f":"'BP Financier'!$D$44*(('BP Financier'!$C$22+'BP Financier'!$D$22)/('BP Financier'!$C$16+'BP Financier'!$C$19+'BP Financier'!$D$16+'BP Financier'!$D$19+'BP Financier'!$C$22+'BP Financier'!$D$22))*$V2292*X2292/(1-$W2292)","v":{"v":614.6061415835588,"d":"615"}},{"$f":"'BP Financier'!$D$44*(('BP Financier'!$C$22+'BP Financier'!$D$22)/('BP Financier'!$C$16+'BP Financier'!$C$19+'BP Financier'!$D$16+'BP Financier'!$D$19+'BP Financier'!$C$22+'BP Financier'!$D$22))*$V2292*Y2292/(1-$W2292)","v":{"v":410.8692990696719,"d":"411"}},{"$f":"'BP Financier'!$D$44*(('BP Financier'!$C$22+'BP Financier'!$D$22)/('BP Financier'!$C$16+'BP Financier'!$C$19+'BP Financier'!$D$16+'BP Financier'!$D$19+'BP Financier'!$C$22+'BP Financier'!$D$22))*$V2292*Z2292/(1-$W2292)","v":{"v":3215.646497677515,"d":"3,216"}},{"$f":"'BP Financier'!$D$44*(('BP Financier'!$C$22+'BP Financier'!$D$22)/('BP Financier'!$C$16+'BP Financier'!$C$19+'BP Financier'!$D$16+'BP Financier'!$D$19+'BP Financier'!$C$22+'BP Financier'!$D$22))*$V2292*AA2292/(1-$W2292)","v":{"v":397.28684290207946,"d":"397"}},{"$f":"'BP Financier'!$D$44*(('BP Financier'!$C$22+'BP Financier'!$D$22)/('BP Financier'!$C$16+'BP Financier'!$C$19+'BP Financier'!$D$16+'BP Financier'!$D$19+'BP Financier'!$C$22+'BP Financier'!$D$22))*$V2292*AB2292/(1-$W2292)","v":{"v":190.15438634629442,"d":"190"}},null,{"v":0.015,"d":"1.50%"},{"$f":"Actif!$E$28/100","v":{"v":0.28900000000000003,"d":"28.90%"}},{"$f":"Actif!$E$30/100","v":{"v":0.09050000000000001,"d":"9.05%"}},{"$f":"Actif!$E$31/100","v":{"v":0.0605,"d":"6.05%"}},{"$f":"Actif!$E$32/100","v":{"v":0.47350000000000003,"d":"47.35%"}},{"$f":"Actif!$E$33/100","v":{"v":0.0585,"d":"5.85%"}},{"$f":"Actif!$E$29/100","v":{"v":0.027999999999999997,"d":"2.80%"}}]
[null,"#198",63,2028,"H","A_CAPI",{"v":0.44999999999999996,"d":"0.45"},{"v":0.38999999999999996,"d":"0.39"},0.6,0.6,85,0,{"$f":"ROUND(Primes!$N$10*V2293,2)","v":{"v":0.23,"d":"0.230"}},0,{"v":4828.563167579119,"d":"4,829"},{"$f":"'BP Financier'!$D$44*(('BP Financier'!$C$22+'BP Financier'!$D$22)/('BP Financier'!$C$16+'BP Financier'!$C$19+'BP Financier'!$D$16+'BP Financier'!$D$19+'BP Financier'!$C$22+'BP Financier'!$D$22))*$V2293*X2293/(1-$W2293)","v":{"v":614.6061415835588,"d":"615"}},{"$f":"'BP Financier'!$D$44*(('BP Financier'!$C$22+'BP Financier'!$D$22)/('BP Financier'!$C$16+'BP Financier'!$C$19+'BP Financier'!$D$16+'BP Financier'!$D$19+'BP Financier'!$C$22+'BP Financier'!$D$22))*$V2293*Y2293/(1-$W2293)","v":{"v":410.8692990696719,"d":"411"}},{"$f":"'BP Financier'!$D$44*(('BP Financier'!$C$22+'BP Financier'!$D$22)/('BP Financier'!$C$16+'BP Financier'!$C$19+'BP Financier'!$D$16+'BP Financier'!$D$19+'BP Financier'!$C$22+'BP Financier'!$D$22))*$V2293*Z2293/(1-$W2293)","v":{"v":3215.646497677515,"d":"3,216"}},{"$f":"'BP Financier'!$D$44*(('BP Financier'!$C$22+'BP Financier'!$D$22)/('BP Financier'!$C$16+'BP Financier'!$C$19+'BP Financier'!$D$16+'BP Financier'!$D$19+'BP Financier'!$C$22+'BP Financier'!$D$22))*$V2293*AA2293/(1-$W2293)","v":{"v":397.28684290207946,"d":"397"}},{"$f":"'BP Financier'!$D$44*(('BP Financier'!$C$22+'BP Financier'!$D$22)/('BP Financier'!$C$16+'BP Financier'!$C$19+'BP Financier'!$D$16+'BP Financier'!$D$19+'BP Financier'!$C$22+'BP Financier'!$D$22))*$V2293*AB2293/(1-$W2293)","v":{"v":190.15438634629442,"d":"190"}},null,{"v":0.015,"d":"1.50%"},{"$f":"Actif!$E$28/100","v":{"v":0.28900000000000003,"d":"28.90%"}},{"$f":"Actif!$E$30/100","v":{"v":0.09050000000000001,"d":"9.05%"}},{"$f":"Actif!$E$31/100","v":{"v":0.0605,"d":"6.05%"}},{"$f":"Actif!$E$32/100","v":{"v":0.47350000000000003,"d":"47.35%"}},{"$f":"Actif!$E$33/100","v":{"v":0.0585,"d":"5.85%"}},{"$f":"Actif!$E$29/100","v":{"v":0.027999999999999997,"d":"2.80%"}}]
[null,"#199",64,2026,"H","A_CAPI",{"v":0.44999999999999996,"d":"0.45"},{"v":0.38999999999999996,"d":"0.39"},0.6,0.6,85,0,{"$f":"ROUND(Primes!$N$10*V2294,2)","v":{"v":0.23,"d":"0.230"}},0,{"v":4828.563167579119,"d":"4,829"},{"$f":"'BP Financier'!$D$44*(('BP Financier'!$C$22+'BP Financier'!$D$22)/('BP Financier'!$C$16+'BP Financier'!$C$19+'BP Financier'!$D$16+'BP Financier'!$D$19+'BP Financier'!$C$22+'BP Financier'!$D$22))*$V2294*X2294/(1-$W2294)","v":{"v":614.6061415835588,"d":"615"}},{"$f":"'BP Financier'!$D$44*(('BP Financier'!$C$22+'BP Financier'!$D$22)/('BP Financier'!$C$16+'BP Financier'!$C$19+'BP Financier'!$D$16+'BP Financier'!$D$19+'BP Financier'!$C$22+'BP Financier'!$D$22))*$V2294*Y2294/(1-$W2294)","v":{"v":410.8692990696719,"d":"411"}},{"$f":"'BP Financier'!$D$44*(('BP Financier'!$C$22+'BP Financier'!$D$22)/('BP Financier'!$C$16+'BP Financier'!$C$19+'BP Financier'!$D$16+'BP Financier'!$D$19+'BP Financier'!$C$22+'BP Financier'!$D$22))*$V2294*Z2294/(1-$W2294)","v":{"v":3215.646497677515,"d":"3,216"}},{"$f":"'BP Financier'!$D$44*(('BP Financier'!$C$22+'BP Financier'!$D$22)/('BP Financier'!$C$16+'BP Financier'!$C$19+'BP Financier'!$D$16+'BP Financier'!$D$19+'BP Financier'!$C$22+'BP Financier'!$D$22))*$V2294*AA2294/(1-$W2294)","v":{"v":397.28684290207946,"d":"397"}},{"$f":"'BP Financier'!$D$44*(('BP Financier'!$C$22+'BP Financier'!$D$22)/('BP Financier'!$C$16+'BP Financier'!$C$19+'BP Financier'!$D$16+'BP Financier'!$D$19+'BP Financier'!$C$22+'BP Financier'!$D$22))*$V2294*AB2294/(1-$W2294)","v":{"v":190.15438634629442,"d":"190"}},null,{"v":0.015,"d":"1.50%"},{"$f":"Actif!$E$28/100","v":{"v":0.28900000000000003,"d":"28.90%"}},{"$f":"Actif!$E$30/100","v":{"v":0.09050000000000001,"d":"9.05%"}},{"$f":"Actif!$E$31/100","v":{"v":0.0605,"d":"6.05%"}},{"$f":"Actif!$E$32/100","v":{"v":0.47350000000000003,"d":"47.35%"}},{"$f":"Actif!$E$33/100","v":{"v":0.0585,"d":"5.85%"}},{"$f":"Actif!$E$29/100","v":{"v":0.027999999999999997,"d":"2.80%"}}]
[null,"#200",64,2028,"H","A_CAPI",{"v":0.44999999999999996,"d":"0.45"},{"v":0.38999999999999996,"d":"0.39"},0.6,0.6,85,0,{"$f":"ROUND(Primes!$N$10*V2295,2)","v":{"v":0.23,"d":"0.230"}},0,{"v":4828.563167579119,"d":"4,829"},{"$f":"'BP Financier'!$D$44*(('BP Financier'!$C$22+'BP Financier'!$D$22)/('BP Financier'!$C$16+'BP Financier'!$C$19+'BP Financier'!$D$16+'BP Financier'!$D$19+'BP Financier'!$C$22+'BP Financier'!$D$22))*$V2295*X2295/(1-$W2295)","v":{"v":614.6061415835588,"d":"615"}},{"$f":"'BP Financier'!$D$44*(('BP Financier'!$C$22+'BP Financier'!$D$22)/('BP Financier'!$C$16+'BP Financier'!$C$19+'BP Financier'!$D$16+'BP Financier'!$D$19+'BP Financier'!$C$22+'BP Financier'!$D$22))*$V2295*Y2295/(1-$W2295)","v":{"v":410.8692990696719,"d":"411"}},{"$f":"'BP Financier'!$D$44*(('BP Financier'!$C$22+'BP Financier'!$D$22)/('BP Financier'!$C$16+'BP Financier'!$C$19+'BP Financier'!$D$16+'BP Financier'!$D$19+'BP Financier'!$C$22+'BP Financier'!$D$22))*$V2295*Z2295/(1-$W2295)","v":{"v":3215.646497677515,"d":"3,216"}},{"$f":"'BP Financier'!$D$44*(('BP Financier'!$C$22+'BP Financier'!$D$22)/('BP Financier'!$C$16+'BP Financier'!$C$19+'BP Financier'!$D$16+'BP Financier'!$D$19+'BP Financier'!$C$22+'BP Financier'!$D$22))*$V2295*AA2295/(1-$W2295)","v":{"v":397.28684290207946,"d":"397"}},{"$f":"'BP Financier'!$D$44*(('BP Financier'!$C$22+'BP Financier'!$D$22)/('BP Financier'!$C$16+'BP Financier'!$C$19+'BP Financier'!$D$16+'BP Financier'!$D$19+'BP Financier'!$C$22+'BP Financier'!$D$22))*$V2295*AB2295/(1-$W2295)","v":{"v":190.15438634629442,"d":"190"}},null,{"v":0.015,"d":"1.50%"},{"$f":"Actif!$E$28/100","v":{"v":0.28900000000000003,"d":"28.90%"}},{"$f":"Actif!$E$30/100","v":{"v":0.09050000000000001,"d":"9.05%"}},{"$f":"Actif!$E$31/100","v":{"v":0.0605,"d":"6.05%"}},{"$f":"Actif!$E$32/100","v":{"v":0.47350000000000003,"d":"47.35%"}},{"$f":"Actif!$E$33/100","v":{"v":0.0585,"d":"5.85%"}},{"$f":"Actif!$E$29/100","v":{"v":0.027999999999999997,"d":"2.80%"}}]
[null,"#201",65,2026,"F","A_CAPI",{"v":0.44999999999999996,"d":"0.45"},{"v":0.38999999999999996,"d":"0.39"},0.6,0.6,85,0,{"$f":"ROUND(Primes!$N$10*V2296,2)","v":{"v":0.23,"d":"0.230"}},0,{"v":4828.563167579119,"d":"4,829"},{"$f":"'BP Financier'!$D$44*(('BP Financier'!$C$22+'BP Financier'!$D$22)/('BP Financier'!$C$16+'BP Financier'!$C$19+'BP Financier'!$D$16+'BP Financier'!$D$19+'BP Financier'!$C$22+'BP Financier'!$D$22))*$V2296*X2296/(1-$W2296)","v":{"v":614.6061415835588,"d":"615"}},{"$f":"'BP Financier'!$D$44*(('BP Financier'!$C$22+'BP Financier'!$D$22)/('BP Financier'!$C$16+'BP Financier'!$C$19+'BP Financier'!$D$16+'BP Financier'!$D$19+'BP Financier'!$C$22+'BP Financier'!$D$22))*$V2296*Y2296/(1-$W2296)","v":{"v":410.8692990696719,"d":"411"}},{"$f":"'BP Financier'!$D$44*(('BP Financier'!$C$22+'BP Financier'!$D$22)/('BP Financier'!$C$16+'BP Financier'!$C$19+'BP Financier'!$D$16+'BP Financier'!$D$19+'BP Financier'!$C$22+'BP Financier'!$D$22))*$V2296*Z2296/(1-$W2296)","v":{"v":3215.646497677515,"d":"3,216"}},{"$f":"'BP Financier'!$D$44*(('BP Financier'!$C$22+'BP Financier'!$D$22)/('BP Financier'!$C$16+'BP Financier'!$C$19+'BP Financier'!$D$16+'BP Financier'!$D$19+'BP Financier'!$C$22+'BP Financier'!$D$22))*$V2296*AA2296/(1-$W2296)","v":{"v":397.28684290207946,"d":"397"}},{"$f":"'BP Financier'!$D$44*(('BP Financier'!$C$22+'BP Financier'!$D$22)/('BP Financier'!$C$16+'BP Financier'!$C$19+'BP Financier'!$D$16+'BP Financier'!$D$19+'BP Financier'!$C$22+'BP Financier'!$D$22))*$V2296*AB2296/(1-$W2296)","v":{"v":190.15438634629442,"d":"190"}},null,{"v":0.015,"d":"1.50%"},{"$f":"Actif!$E$28/100","v":{"v":0.28900000000000003,"d":"28.90%"}},{"$f":"Actif!$E$30/100","v":{"v":0.09050000000000001,"d":"9.05%"}},{"$f":"Actif!$E$31/100","v":{"v":0.0605,"d":"6.05%"}},{"$f":"Actif!$E$32/100","v":{"v":0.47350000000000003,"d":"47.35%"}},{"$f":"Actif!$E$33/100","v":{"v":0.0585,"d":"5.85%"}},{"$f":"Actif!$E$29/100","v":{"v":0.027999999999999997,"d":"2.80%"}}]
[null,"#202",65,2028,"F","A_CAPI",{"v":0.44999999999999996,"d":"0.45"},{"v":0.38999999999999996,"d":"0.39"},0.6,0.6,85,0,{"$f":"ROUND(Primes!$N$10*V2297,2)","v":{"v":0.23,"d":"0.230"}},0,{"v":4828.563167579119,"d":"4,829"},{"$f":"'BP Financier'!$D$44*(('BP Financier'!$C$22+'BP Financier'!$D$22)/('BP Financier'!$C$16+'BP Financier'!$C$19+'BP Financier'!$D$16+'BP Financier'!$D$19+'BP Financier'!$C$22+'BP Financier'!$D$22))*$V2297*X2297/(1-$W2297)","v":{"v":614.6061415835588,"d":"615"}},{"$f":"'BP Financier'!$D$44*(('BP Financier'!$C$22+'BP Financier'!$D$22)/('BP Financier'!$C$16+'BP Financier'!$C$19+'BP Financier'!$D$16+'BP Financier'!$D$19+'BP Financier'!$C$22+'BP Financier'!$D$22))*$V2297*Y2297/(1-$W2297)","v":{"v":410.8692990696719,"d":"411"}},{"$f":"'BP Financier'!$D$44*(('BP Financier'!$C$22+'BP Financier'!$D$22)/('BP Financier'!$C$16+'BP Financier'!$C$19+'BP Financier'!$D$16+'BP Financier'!$D$19+'BP Financier'!$C$22+'BP Financier'!$D$22))*$V2297*Z2297/(1-$W2297)","v":{"v":3215.646497677515,"d":"3,216"}},{"$f":"'BP Financier'!$D$44*(('BP Financier'!$C$22+'BP Financier'!$D$22)/('BP Financier'!$C$16+'BP Financier'!$C$19+'BP Financier'!$D$16+'BP Financier'!$D$19+'BP Financier'!$C$22+'BP Financier'!$D$22))*$V2297*AA2297/(1-$W2297)","v":{"v":397.28684290207946,"d":"397"}},{"$f":"'BP Financier'!$D$44*(('BP Financier'!$C$22+'BP Financier'!$D$22)/('BP Financier'!$C$16+'BP Financier'!$C$19+'BP Financier'!$D$16+'BP Financier'!$D$19+'BP Financier'!$C$22+'BP Financier'!$D$22))*$V2297*AB2297/(1-$W2297)","v":{"v":190.15438634629442,"d":"190"}},null,{"v":0.015,"d":"1.50%"},{"$f":"Actif!$E$28/100","v":{"v":0.28900000000000003,"d":"28.90%"}},{"$f":"Actif!$E$30/100","v":{"v":0.09050000000000001,"d":"9.05%"}},{"$f":"Actif!$E$31/100","v":{"v":0.0605,"d":"6.05%"}},{"$f":"Actif!$E$32/100","v":{"v":0.47350000000000003,"d":"47.35%"}},{"$f":"Actif!$E$33/100","v":{"v":0.0585,"d":"5.85%"}},{"$f":"Actif!$E$29/100","v":{"v":0.027999999999999997,"d":"2.80%"}}]
[null,"#203",70,2026,"H","A_CAPI",{"v":0.44999999999999996,"d":"0.45"},{"v":0.38999999999999996,"d":"0.39"},0.6,0.6,85,0,{"$f":"ROUND(Primes!$N$10*V2298,2)","v":{"v":0.04,"d":"0.040"}},0,{"v":804.7605279298534,"d":"805"},{"$f":"'BP Financier'!$D$44*(('BP Financier'!$C$22+'BP Financier'!$D$22)/('BP Financier'!$C$16+'BP Financier'!$C$19+'BP Financier'!$D$16+'BP Financier'!$D$19+'BP Financier'!$C$22+'BP Financier'!$D$22))*$V2298*X2298/(1-$W2298)","v":{"v":102.43435693059317,"d":"102"}},{"$f":"'BP Financier'!$D$44*(('BP Financier'!$C$22+'BP Financier'!$D$22)/('BP Financier'!$C$16+'BP Financier'!$C$19+'BP Financier'!$D$16+'BP Financier'!$D$19+'BP Financier'!$C$22+'BP Financier'!$D$22))*$V2298*Y2298/(1-$W2298)","v":{"v":68.47821651161199,"d":"68"}},{"$f":"'BP Financier'!$D$44*(('BP Financier'!$C$22+'BP Financier'!$D$22)/('BP Financier'!$C$16+'BP Financier'!$C$19+'BP Financier'!$D$16+'BP Financier'!$D$19+'BP Financier'!$C$22+'BP Financier'!$D$22))*$V2298*Z2298/(1-$W2298)","v":{"v":535.9410829462525,"d":"536"}},{"$f":"'BP Financier'!$D$44*(('BP Financier'!$C$22+'BP Financier'!$D$22)/('BP Financier'!$C$16+'BP Financier'!$C$19+'BP Financier'!$D$16+'BP Financier'!$D$19+'BP Financier'!$C$22+'BP Financier'!$D$22))*$V2298*AA2298/(1-$W2298)","v":{"v":66.21447381701326,"d":"66"}},{"$f":"'BP Financier'!$D$44*(('BP Financier'!$C$22+'BP Financier'!$D$22)/('BP Financier'!$C$16+'BP Financier'!$C$19+'BP Financier'!$D$16+'BP Financier'!$D$19+'BP Financier'!$C$22+'BP Financier'!$D$22))*$V2298*AB2298/(1-$W2298)","v":{"v":31.69239772438241,"d":"32"}},null,{"v":0.0025,"d":"0.25%"},{"$f":"Actif!$E$28/100","v":{"v":0.28900000000000003,"d":"28.90%"}},{"$f":"Actif!$E$30/100","v":{"v":0.09050000000000001,"d":"9.05%"}},{"$f":"Actif!$E$31/100","v":{"v":0.0605,"d":"6.05%"}},{"$f":"Actif!$E$32/100","v":{"v":0.47350000000000003,"d":"47.35%"}},{"$f":"Actif!$E$33/100","v":{"v":0.0585,"d":"5.85%"}},{"$f":"Actif!$E$29/100","v":{"v":0.027999999999999997,"d":"2.80%"}}]
[null,"#204",70,2028,"H","A_CAPI",{"v":0.44999999999999996,"d":"0.45"},{"v":0.38999999999999996,"d":"0.39"},0.6,0.6,85,0,{"$f":"ROUND(Primes!$N$10*V2299,2)","v":{"v":0.04,"d":"0.040"}},0,{"v":804.7605279298534,"d":"805"},{"$f":"'BP Financier'!$D$44*(('BP Financier'!$C$22+'BP Financier'!$D$22)/('BP Financier'!$C$16+'BP Financier'!$C$19+'BP Financier'!$D$16+'BP Financier'!$D$19+'BP Financier'!$C$22+'BP Financier'!$D$22))*$V2299*X2299/(1-$W2299)","v":{"v":102.43435693059317,"d":"102"}},{"$f":"'BP Financier'!$D$44*(('BP Financier'!$C$22+'BP Financier'!$D$22)/('BP Financier'!$C$16+'BP Financier'!$C$19+'BP Financier'!$D$16+'BP Financier'!$D$19+'BP Financier'!$C$22+'BP Financier'!$D$22))*$V2299*Y2299/(1-$W2299)","v":{"v":68.47821651161199,"d":"68"}},{"$f":"'BP Financier'!$D$44*(('BP Financier'!$C$22+'BP Financier'!$D$22)/('BP Financier'!$C$16+'BP Financier'!$C$19+'BP Financier'!$D$16+'BP Financier'!$D$19+'BP Financier'!$C$22+'BP Financier'!$D$22))*$V2299*Z2299/(1-$W2299)","v":{"v":535.9410829462525,"d":"536"}},{"$f":"'BP Financier'!$D$44*(('BP Financier'!$C$22+'BP Financier'!$D$22)/('BP Financier'!$C$16+'BP Financier'!$C$19+'BP Financier'!$D$16+'BP Financier'!$D$19+'BP Financier'!$C$22+'BP Financier'!$D$22))*$V2299*AA2299/(1-$W2299)","v":{"v":66.21447381701326,"d":"66"}},{"$f":"'BP Financier'!$D$44*(('BP Financier'!$C$22+'BP Financier'!$D$22)/('BP Financier'!$C$16+'BP Financier'!$C$19+'BP Financier'!$D$16+'BP Financier'!$D$19+'BP Financier'!$C$22+'BP Financier'!$D$22))*$V2299*AB2299/(1-$W2299)","v":{"v":31.69239772438241,"d":"32"}},null,{"v":0.0025,"d":"0.25%"},{"$f":"Actif!$E$28/100","v":{"v":0.28900000000000003,"d":"28.90%"}},{"$f":"Actif!$E$30/100","v":{"v":0.09050000000000001,"d":"9.05%"}},{"$f":"Actif!$E$31/100","v":{"v":0.0605,"d":"6.05%"}},{"$f":"Actif!$E$32/100","v":{"v":0.47350000000000003,"d":"47.35%"}},{"$f":"Actif!$E$33/100","v":{"v":0.0585,"d":"5.85%"}},{"$f":"Actif!$E$29/100","v":{"v":0.027999999999999997,"d":"2.80%"}}]
[null,"#205",75,2026,"H","A_CAPI",{"v":0.44999999999999996,"d":"0.45"},{"v":0.38999999999999996,"d":"0.39"},0.6,0.6,85,0,{"$f":"ROUND(Primes!$N$10*V2300,2)","v":{"v":0.04,"d":"0.040"}},0,{"v":804.7605279298534,"d":"805"},{"$f":"'BP Financier'!$D$44*(('BP Financier'!$C$22+'BP Financier'!$D$22)/('BP Financier'!$C$16+'BP Financier'!$C$19+'BP Financier'!$D$16+'BP Financier'!$D$19+'BP Financier'!$C$22+'BP Financier'!$D$22))*$V2300*X2300/(1-$W2300)","v":{"v":102.43435693059317,"d":"102"}},{"$f":"'BP Financier'!$D$44*(('BP Financier'!$C$22+'BP Financier'!$D$22)/('BP Financier'!$C$16+'BP Financier'!$C$19+'BP Financier'!$D$16+'BP Financier'!$D$19+'BP Financier'!$C$22+'BP Financier'!$D$22))*$V2300*Y2300/(1-$W2300)","v":{"v":68.47821651161199,"d":"68"}},{"$f":"'BP Financier'!$D$44*(('BP Financier'!$C$22+'BP Financier'!$D$22)/('BP Financier'!$C$16+'BP Financier'!$C$19+'BP Financier'!$D$16+'BP Financier'!$D$19+'BP Financier'!$C$22+'BP Financier'!$D$22))*$V2300*Z2300/(1-$W2300)","v":{"v":535.9410829462525,"d":"536"}},{"$f":"'BP Financier'!$D$44*(('BP Financier'!$C$22+'BP Financier'!$D$22)/('BP Financier'!$C$16+'BP Financier'!$C$19+'BP Financier'!$D$16+'BP Financier'!$D$19+'BP Financier'!$C$22+'BP Financier'!$D$22))*$V2300*AA2300/(1-$W2300)","v":{"v":66.21447381701326,"d":"66"}},{"$f":"'BP Financier'!$D$44*(('BP Financier'!$C$22+'BP Financier'!$D$22)/('BP Financier'!$C$16+'BP Financier'!$C$19+'BP Financier'!$D$16+'BP Financier'!$D$19+'BP Financier'!$C$22+'BP Financier'!$D$22))*$V2300*AB2300/(1-$W2300)","v":{"v":31.69239772438241,"d":"32"}},null,{"v":0.0025,"d":"0.25%"},{"$f":"Actif!$E$28/100","v":{"v":0.28900000000000003,"d":"28.90%"}},{"$f":"Actif!$E$30/100","v":{"v":0.09050000000000001,"d":"9.05%"}},{"$f":"Actif!$E$31/100","v":{"v":0.0605,"d":"6.05%"}},{"$f":"Actif!$E$32/100","v":{"v":0.47350000000000003,"d":"47.35%"}},{"$f":"Actif!$E$33/100","v":{"v":0.0585,"d":"5.85%"}},{"$f":"Actif!$E$29/100","v":{"v":0.027999999999999997,"d":"2.80%"}}]
[null,"#206",75,2028,"H","A_CAPI",{"v":0.44999999999999996,"d":"0.45"},{"v":0.38999999999999996,"d":"0.39"},0.6,0.6,85,0,{"$f":"ROUND(Primes!$N$10*V2301,2)","v":{"v":0.04,"d":"0.040"}},0,{"v":804.7605279298534,"d":"805"},{"$f":"'BP Financier'!$D$44*(('BP Financier'!$C$22+'BP Financier'!$D$22)/('BP Financier'!$C$16+'BP Financier'!$C$19+'BP Financier'!$D$16+'BP Financier'!$D$19+'BP Financier'!$C$22+'BP Financier'!$D$22))*$V2301*X2301/(1-$W2301)","v":{"v":102.43435693059317,"d":"102"}},{"$f":"'BP Financier'!$D$44*(('BP Financier'!$C$22+'BP Financier'!$D$22)/('BP Financier'!$C$16+'BP Financier'!$C$19+'BP Financier'!$D$16+'BP Financier'!$D$19+'BP Financier'!$C$22+'BP Financier'!$D$22))*$V2301*Y2301/(1-$W2301)","v":{"v":68.47821651161199,"d":"68"}},{"$f":"'BP Financier'!$D$44*(('BP Financier'!$C$22+'BP Financier'!$D$22)/('BP Financier'!$C$16+'BP Financier'!$C$19+'BP Financier'!$D$16+'BP Financier'!$D$19+'BP Financier'!$C$22+'BP Financier'!$D$22))*$V2301*Z2301/(1-$W2301)","v":{"v":535.9410829462525,"d":"536"}},{"$f":"'BP Financier'!$D$44*(('BP Financier'!$C$22+'BP Financier'!$D$22)/('BP Financier'!$C$16+'BP Financier'!$C$19+'BP Financier'!$D$16+'BP Financier'!$D$19+'BP Financier'!$C$22+'BP Financier'!$D$22))*$V2301*AA2301/(1-$W2301)","v":{"v":66.21447381701326,"d":"66"}},{"$f":"'BP Financier'!$D$44*(('BP Financier'!$C$22+'BP Financier'!$D$22)/('BP Financier'!$C$16+'BP Financier'!$C$19+'BP Financier'!$D$16+'BP Financier'!$D$19+'BP Financier'!$C$22+'BP Financier'!$D$22))*$V2301*AB2301/(1-$W2301)","v":{"v":31.69239772438241,"d":"32"}},null,{"v":0.0025,"d":"0.25%"},{"$f":"Actif!$E$28/100","v":{"v":0.28900000000000003,"d":"28.90%"}},{"$f":"Actif!$E$30/100","v":{"v":0.09050000000000001,"d":"9.05%"}},{"$f":"Actif!$E$31/100","v":{"v":0.0605,"d":"6.05%"}},{"$f":"Actif!$E$32/100","v":{"v":0.47350000000000003,"d":"47.35%"}},{"$f":"Actif!$E$33/100","v":{"v":0.0585,"d":"5.85%"}},{"$f":"Actif!$E$29/100","v":{"v":0.027999999999999997,"d":"2.80%"}}]
[null,"#207",80,2026,"F","A_CAPI",{"v":0.44999999999999996,"d":"0.45"},{"v":0.38999999999999996,"d":"0.39"},0.6,0.6,85,0,{"$f":"ROUND(Primes!$N$10*V2302,2)","v":{"v":0.04,"d":"0.040"}},0,{"v":804.7605279298534,"d":"805"},{"$f":"'BP Financier'!$D$44*(('BP Financier'!$C$22+'BP Financier'!$D$22)/('BP Financier'!$C$16+'BP Financier'!$C$19+'BP Financier'!$D$16+'BP Financier'!$D$19+'BP Financier'!$C$22+'BP Financier'!$D$22))*$V2302*X2302/(1-$W2302)","v":{"v":102.43435693059317,"d":"102"}},{"$f":"'BP Financier'!$D$44*(('BP Financier'!$C$22+'BP Financier'!$D$22)/('BP Financier'!$C$16+'BP Financier'!$C$19+'BP Financier'!$D$16+'BP Financier'!$D$19+'BP Financier'!$C$22+'BP Financier'!$D$22))*$V2302*Y2302/(1-$W2302)","v":{"v":68.47821651161199,"d":"68"}},{"$f":"'BP Financier'!$D$44*(('BP Financier'!$C$22+'BP Financier'!$D$22)/('BP Financier'!$C$16+'BP Financier'!$C$19+'BP Financier'!$D$16+'BP Financier'!$D$19+'BP Financier'!$C$22+'BP Financier'!$D$22))*$V2302*Z2302/(1-$W2302)","v":{"v":535.9410829462525,"d":"536"}},{"$f":"'BP Financier'!$D$44*(('BP Financier'!$C$22+'BP Financier'!$D$22)/('BP Financier'!$C$16+'BP Financier'!$C$19+'BP Financier'!$D$16+'BP Financier'!$D$19+'BP Financier'!$C$22+'BP Financier'!$D$22))*$V2302*AA2302/(1-$W2302)","v":{"v":66.21447381701326,"d":"66"}},{"$f":"'BP Financier'!$D$44*(('BP Financier'!$C$22+'BP Financier'!$D$22)/('BP Financier'!$C$16+'BP Financier'!$C$19+'BP Financier'!$D$16+'BP Financier'!$D$19+'BP Financier'!$C$22+'BP Financier'!$D$22))*$V2302*AB2302/(1-$W2302)","v":{"v":31.69239772438241,"d":"32"}},null,{"v":0.0025,"d":"0.25%"},{"$f":"Actif!$E$28/100","v":{"v":0.28900000000000003,"d":"28.90%"}},{"$f":"Actif!$E$30/100","v":{"v":0.09050000000000001,"d":"9.05%"}},{"$f":"Actif!$E$31/100","v":{"v":0.0605,"d":"6.05%"}},{"$f":"Actif!$E$32/100","v":{"v":0.47350000000000003,"d":"47.35%"}},{"$f":"Actif!$E$33/100","v":{"v":0.0585,"d":"5.85%"}},{"$f":"Actif!$E$29/100","v":{"v":0.027999999999999997,"d":"2.80%"}}]
[null,"#208",80,2028,"F","A_CAPI",{"v":0.44999999999999996,"d":"0.45"},{"v":0.38999999999999996,"d":"0.39"},0.6,0.6,85,0,{"$f":"ROUND(Primes!$N$10*V2303,2)","v":{"v":0.04,"d":"0.040"}},0,{"v":804.7605279298534,"d":"805"},{"$f":"'BP Financier'!$D$44*(('BP Financier'!$C$22+'BP Financier'!$D$22)/('BP Financier'!$C$16+'BP Financier'!$C$19+'BP Financier'!$D$16+'BP Financier'!$D$19+'BP Financier'!$C$22+'BP Financier'!$D$22))*$V2303*X2303/(1-$W2303)","v":{"v":102.43435693059317,"d":"102"}},{"$f":"'BP Financier'!$D$44*(('BP Financier'!$C$22+'BP Financier'!$D$22)/('BP Financier'!$C$16+'BP Financier'!$C$19+'BP Financier'!$D$16+'BP Financier'!$D$19+'BP Financier'!$C$22+'BP Financier'!$D$22))*$V2303*Y2303/(1-$W2303)","v":{"v":68.47821651161199,"d":"68"}},{"$f":"'BP Financier'!$D$44*(('BP Financier'!$C$22+'BP Financier'!$D$22)/('BP Financier'!$C$16+'BP Financier'!$C$19+'BP Financier'!$D$16+'BP Financier'!$D$19+'BP Financier'!$C$22+'BP Financier'!$D$22))*$V2303*Z2303/(1-$W2303)","v":{"v":535.9410829462525,"d":"536"}},{"$f":"'BP Financier'!$D$44*(('BP Financier'!$C$22+'BP Financier'!$D$22)/('BP Financier'!$C$16+'BP Financier'!$C$19+'BP Financier'!$D$16+'BP Financier'!$D$19+'BP Financier'!$C$22+'BP Financier'!$D$22))*$V2303*AA2303/(1-$W2303)","v":{"v":66.21447381701326,"d":"66"}},{"$f":"'BP Financier'!$D$44*(('BP Financier'!$C$22+'BP Financier'!$D$22)/('BP Financier'!$C$16+'BP Financier'!$C$19+'BP Financier'!$D$16+'BP Financier'!$D$19+'BP Financier'!$C$22+'BP Financier'!$D$22))*$V2303*AB2303/(1-$W2303)","v":{"v":31.69239772438241,"d":"32"}},null,{"v":0.0025,"d":"0.25%"},{"$f":"Actif!$E$28/100","v":{"v":0.28900000000000003,"d":"28.90%"}},{"$f":"Actif!$E$30/100","v":{"v":0.09050000000000001,"d":"9.05%"}},{"$f":"Actif!$E$31/100","v":{"v":0.0605,"d":"6.05%"}},{"$f":"Actif!$E$32/100","v":{"v":0.47350000000000003,"d":"47.35%"}},{"$f":"Actif!$E$33/100","v":{"v":0.0585,"d":"5.85%"}},{"$f":"Actif!$E$29/100","v":{"v":0.027999999999999997,"d":"2.80%"}}]
[null,"#209",85,2026,"H","A_CAPI",{"v":0.44999999999999996,"d":"0.45"},{"v":0.38999999999999996,"d":"0.39"},0.6,0.6,85,0,{"$f":"ROUND(Primes!$N$10*V2304,2)","v":{"v":0.02,"d":"0.020"}},0,{"v":402.3802639649267,"d":"402"},{"$f":"'BP Financier'!$D$44*(('BP Financier'!$C$22+'BP Financier'!$D$22)/('BP Financier'!$C$16+'BP Financier'!$C$19+'BP Financier'!$D$16+'BP Financier'!$D$19+'BP Financier'!$C$22+'BP Financier'!$D$22))*$V2304*X2304/(1-$W2304)","v":{"v":51.217178465296584,"d":"51"}},{"$f":"'BP Financier'!$D$44*(('BP Financier'!$C$22+'BP Financier'!$D$22)/('BP Financier'!$C$16+'BP Financier'!$C$19+'BP Financier'!$D$16+'BP Financier'!$D$19+'BP Financier'!$C$22+'BP Financier'!$D$22))*$V2304*Y2304/(1-$W2304)","v":{"v":34.239108255805995,"d":"34"}},{"$f":"'BP Financier'!$D$44*(('BP Financier'!$C$22+'BP Financier'!$D$22)/('BP Financier'!$C$16+'BP Financier'!$C$19+'BP Financier'!$D$16+'BP Financier'!$D$19+'BP Financier'!$C$22+'BP Financier'!$D$22))*$V2304*Z2304/(1-$W2304)","v":{"v":267.9705414731263,"d":"268"}},{"$f":"'BP Financier'!$D$44*(('BP Financier'!$C$22+'BP Financier'!$D$22)/('BP Financier'!$C$16+'BP Financier'!$C$19+'BP Financier'!$D$16+'BP Financier'!$D$19+'BP Financier'!$C$22+'BP Financier'!$D$22))*$V2304*AA2304/(1-$W2304)","v":{"v":33.10723690850663,"d":"33"}},{"$f":"'BP Financier'!$D$44*(('BP Financier'!$C$22+'BP Financier'!$D$22)/('BP Financier'!$C$16+'BP Financier'!$C$19+'BP Financier'!$D$16+'BP Financier'!$D$19+'BP Financier'!$C$22+'BP Financier'!$D$22))*$V2304*AB2304/(1-$W2304)","v":{"v":15.846198862191205,"d":"16"}},null,{"v":1.25E-3,"d":"0.13%"},{"$f":"Actif!$E$28/100","v":{"v":0.28900000000000003,"d":"28.90%"}},{"$f":"Actif!$E$30/100","v":{"v":0.09050000000000001,"d":"9.05%"}},{"$f":"Actif!$E$31/100","v":{"v":0.0605,"d":"6.05%"}},{"$f":"Actif!$E$32/100","v":{"v":0.47350000000000003,"d":"47.35%"}},{"$f":"Actif!$E$33/100","v":{"v":0.0585,"d":"5.85%"}},{"$f":"Actif!$E$29/100","v":{"v":0.027999999999999997,"d":"2.80%"}}]
[null,"#210",85,2028,"H","A_CAPI",{"v":0.44999999999999996,"d":"0.45"},{"v":0.38999999999999996,"d":"0.39"},0.6,0.6,85,0,{"$f":"ROUND(Primes!$N$10*V2305,2)","v":{"v":0.02,"d":"0.020"}},0,{"v":402.3802639649267,"d":"402"},{"$f":"'BP Financier'!$D$44*(('BP Financier'!$C$22+'BP Financier'!$D$22)/('BP Financier'!$C$16+'BP Financier'!$C$19+'BP Financier'!$D$16+'BP Financier'!$D$19+'BP Financier'!$C$22+'BP Financier'!$D$22))*$V2305*X2305/(1-$W2305)","v":{"v":51.217178465296584,"d":"51"}},{"$f":"'BP Financier'!$D$44*(('BP Financier'!$C$22+'BP Financier'!$D$22)/('BP Financier'!$C$16+'BP Financier'!$C$19+'BP Financier'!$D$16+'BP Financier'!$D$19+'BP Financier'!$C$22+'BP Financier'!$D$22))*$V2305*Y2305/(1-$W2305)","v":{"v":34.239108255805995,"d":"34"}},{"$f":"'BP Financier'!$D$44*(('BP Financier'!$C$22+'BP Financier'!$D$22)/('BP Financier'!$C$16+'BP Financier'!$C$19+'BP Financier'!$D$16+'BP Financier'!$D$19+'BP Financier'!$C$22+'BP Financier'!$D$22))*$V2305*Z2305/(1-$W2305)","v":{"v":267.9705414731263,"d":"268"}},{"$f":"'BP Financier'!$D$44*(('BP Financier'!$C$22+'BP Financier'!$D$22)/('BP Financier'!$C$16+'BP Financier'!$C$19+'BP Financier'!$D$16+'BP Financier'!$D$19+'BP Financier'!$C$22+'BP Financier'!$D$22))*$V2305*AA2305/(1-$W2305)","v":{"v":33.10723690850663,"d":"33"}},{"$f":"'BP Financier'!$D$44*(('BP Financier'!$C$22+'BP Financier'!$D$22)/('BP Financier'!$C$16+'BP Financier'!$C$19+'BP Financier'!$D$16+'BP Financier'!$D$19+'BP Financier'!$C$22+'BP Financier'!$D$22))*$V2305*AB2305/(1-$W2305)","v":{"v":15.846198862191205,"d":"16"}},null,{"v":1.25E-3,"d":"0.13%"},{"$f":"Actif!$E$28/100","v":{"v":0.28900000000000003,"d":"28.90%"}},{"$f":"Actif!$E$30/100","v":{"v":0.09050000000000001,"d":"9.05%"}},{"$f":"Actif!$E$31/100","v":{"v":0.0605,"d":"6.05%"}},{"$f":"Actif!$E$32/100","v":{"v":0.47350000000000003,"d":"47.35%"}},{"$f":"Actif!$E$33/100","v":{"v":0.0585,"d":"5.85%"}},{"$f":"Actif!$E$29/100","v":{"v":0.027999999999999997,"d":"2.80%"}}]
[null,"#211",90,2026,"H","A_CAPI",{"v":0.44999999999999996,"d":"0.45"},{"v":0.38999999999999996,"d":"0.39"},0.6,0.6,85,0,{"$f":"ROUND(Primes!$N$10*V2306,2)","v":{"v":0.02,"d":"0.020"}},0,{"v":402.3802639649267,"d":"402"},{"$f":"'BP Financier'!$D$44*(('BP Financier'!$C$22+'BP Financier'!$D$22)/('BP Financier'!$C$16+'BP Financier'!$C$19+'BP Financier'!$D$16+'BP Financier'!$D$19+'BP Financier'!$C$22+'BP Financier'!$D$22))*$V2306*X2306/(1-$W2306)","v":{"v":51.217178465296584,"d":"51"}},{"$f":"'BP Financier'!$D$44*(('BP Financier'!$C$22+'BP Financier'!$D$22)/('BP Financier'!$C$16+'BP Financier'!$C$19+'BP Financier'!$D$16+'BP Financier'!$D$19+'BP Financier'!$C$22+'BP Financier'!$D$22))*$V2306*Y2306/(1-$W2306)","v":{"v":34.239108255805995,"d":"34"}},{"$f":"'BP Financier'!$D$44*(('BP Financier'!$C$22+'BP Financier'!$D$22)/('BP Financier'!$C$16+'BP Financier'!$C$19+'BP Financier'!$D$16+'BP Financier'!$D$19+'BP Financier'!$C$22+'BP Financier'!$D$22))*$V2306*Z2306/(1-$W2306)","v":{"v":267.9705414731263,"d":"268"}},{"$f":"'BP Financier'!$D$44*(('BP Financier'!$C$22+'BP Financier'!$D$22)/('BP Financier'!$C$16+'BP Financier'!$C$19+'BP Financier'!$D$16+'BP Financier'!$D$19+'BP Financier'!$C$22+'BP Financier'!$D$22))*$V2306*AA2306/(1-$W2306)","v":{"v":33.10723690850663,"d":"33"}},{"$f":"'BP Financier'!$D$44*(('BP Financier'!$C$22+'BP Financier'!$D$22)/('BP Financier'!$C$16+'BP Financier'!$C$19+'BP Financier'!$D$16+'BP Financier'!$D$19+'BP Financier'!$C$22+'BP Financier'!$D$22))*$V2306*AB2306/(1-$W2306)","v":{"v":15.846198862191205,"d":"16"}},null,{"v":1.25E-3,"d":"0.13%"},{"$f":"Actif!$E$28/100","v":{"v":0.28900000000000003,"d":"28.90%"}},{"$f":"Actif!$E$30/100","v":{"v":0.09050000000000001,"d":"9.05%"}},{"$f":"Actif!$E$31/100","v":{"v":0.0605,"d":"6.05%"}},{"$f":"Actif!$E$32/100","v":{"v":0.47350000000000003,"d":"47.35%"}},{"$f":"Actif!$E$33/100","v":{"v":0.0585,"d":"5.85%"}},{"$f":"Actif!$E$29/100","v":{"v":0.027999999999999997,"d":"2.80%"}}]
[null,"#212",90,2028,"H","A_CAPI",{"v":0.44999999999999996,"d":"0.45"},{"v":0.38999999999999996,"d":"0.39"},0.6,0.6,85,0,{"$f":"ROUND(Primes!$N$10*V2307,2)","v":{"v":0.02,"d":"0.020"}},0,{"v":402.3802639649267,"d":"402"},{"$f":"'BP Financier'!$D$44*(('BP Financier'!$C$22+'BP Financier'!$D$22)/('BP Financier'!$C$16+'BP Financier'!$C$19+'BP Financier'!$D$16+'BP Financier'!$D$19+'BP Financier'!$C$22+'BP Financier'!$D$22))*$V2307*X2307/(1-$W2307)","v":{"v":51.217178465296584,"d":"51"}},{"$f":"'BP Financier'!$D$44*(('BP Financier'!$C$22+'BP Financier'!$D$22)/('BP Financier'!$C$16+'BP Financier'!$C$19+'BP Financier'!$D$16+'BP Financier'!$D$19+'BP Financier'!$C$22+'BP Financier'!$D$22))*$V2307*Y2307/(1-$W2307)","v":{"v":34.239108255805995,"d":"34"}},{"$f":"'BP Financier'!$D$44*(('BP Financier'!$C$22+'BP Financier'!$D$22)/('BP Financier'!$C$16+'BP Financier'!$C$19+'BP Financier'!$D$16+'BP Financier'!$D$19+'BP Financier'!$C$22+'BP Financier'!$D$22))*$V2307*Z2307/(1-$W2307)","v":{"v":267.9705414731263,"d":"268"}},{"$f":"'BP Financier'!$D$44*(('BP Financier'!$C$22+'BP Financier'!$D$22)/('BP Financier'!$C$16+'BP Financier'!$C$19+'BP Financier'!$D$16+'BP Financier'!$D$19+'BP Financier'!$C$22+'BP Financier'!$D$22))*$V2307*AA2307/(1-$W2307)","v":{"v":33.10723690850663,"d":"33"}},{"$f":"'BP Financier'!$D$44*(('BP Financier'!$C$22+'BP Financier'!$D$22)/('BP Financier'!$C$16+'BP Financier'!$C$19+'BP Financier'!$D$16+'BP Financier'!$D$19+'BP Financier'!$C$22+'BP Financier'!$D$22))*$V2307*AB2307/(1-$W2307)","v":{"v":15.846198862191205,"d":"16"}},null,{"v":1.25E-3,"d":"0.13%"},{"$f":"Actif!$E$28/100","v":{"v":0.28900000000000003,"d":"28.90%"}},{"$f":"Actif!$E$30/100","v":{"v":0.09050000000000001,"d":"9.05%"}},{"$f":"Actif!$E$31/100","v":{"v":0.0605,"d":"6.05%"}},{"$f":"Actif!$E$32/100","v":{"v":0.47350000000000003,"d":"47.35%"}},{"$f":"Actif!$E$33/100","v":{"v":0.0585,"d":"5.85%"}},{"$f":"Actif!$E$29/100","v":{"v":0.027999999999999997,"d":"2.80%"}}]
[null,"#213"]
[null,"#214"]
[null,"#215"]
[null,"#216"]
[null,"#217"]
[null,"#218"]
[null,"#219"]
[null,"#220"]
[null,"#221"]
[null,"#222"]
[null,"#223"]
[null,"#224"]
[null,"#225"]
[null,"#226"]
[null,"#227"]
[null,"#228"]
[null,"#229"]
[null,"#230"]
[null,"#231"]
[null,"#232"]
[null,"#233"]
[null,"#234"]
[null,"#235"]
[null,"#236"]
[null,"#237"]
[null,"#238"]
[null,"#239"]
[null,"#240"]
[null,"#241"]
[null,"#242"]
[null,"#243"]
[null,"#244"]
[null,"#245"]
[null,"#246"]
[null,"#247"]
[null,"#248"]
[null,"#249"]
[null,"#250"]
[null,"#251"]
[null,"#252"]
[null,"#253"]
[null,"#254"]
[null,"#255"]
[null,"#256"]
[null,"#257"]
[null,"#258"]
[null,"#259"]
[null,"#260"]
[null,"#261"]
[null,"#262"]
[null,"#263"]
[null,"#264"]
[null,"#265"]
[null,"#266"]
[null,"#267"]
[null,"#268"]
[null,"#269"]
[null,"#270"]
[null,"#271"]
[null,"#272"]
[null,"#273"]
[null,"#274"]
[null,"#275"]
[null,"#276"]
[null,"#277"]
[null,"#278"]
[null,"#279"]
[null,"#280"]
[null,"#281"]
[null,"#282"]
[null,"#283"]
[null,"#284"]
[null,"#285"]
[null,"#286"]
[null,"#287"]
[null,"#288"]
[null,"#289"]
[null,"#290"]
[null,"#291"]
[null,"#292"]
[null,"#293"]
[null,"#294"]
[null,"#295"]
[null,"#296"]
[null,"#297"]
[null,"#298"]
[null,"#299"]
[null,"#300"]
[null,"#301"]
[null,"#302"]
[null,"#303"]
[null,"#304"]
[null,"#305"]
[null,"#306"]
[null,"#307"]
[null,"#308"]
[null,"#309"]
[null,"#310"]
[null,"#311"]
[null,"#312"]
[null,"#313"]
[null,"#314"]
[null,"#315"]
[null,"#316"]
[null,"#317"]
[null,"#318"]
[null,"#319"]
[null,"#320"]
[null,"#321"]
[null,"#322"]
[null,"#323"]
[null,"#324"]
[null,"#325"]
[null,"#326"]
[null,"#327"]
[null,"#328"]
[null,"#329"]
[null,"#330"]
[null,"#331"]
[null,"#332"]
[null,"#333"]
[null,"#334"]
[null,"#335"]
[null,"#336"]
[null,"#337"]
[null,"#338"]
[null,"#339"]
[null,"#340"]
[null,"#341"]
[null,"#342"]
[null,"#343"]
[null,"#344"]
[null,"#345"]
[null,"#346"]
[null,"#347"]
[null,"#348"]
[null,"#349"]
[null,"#350"]
[null,"#351"]
[null,"#352"]
[null,"#353"]
[null,"#354"]
[null,"#355"]
[null,"#356"]
[null,"#357"]
[null,"#358"]
[null,"#359"]
[null,"#360"]
[null,"#361"]
[null,"#362"]
[null,"#363"]
[null,"#364"]
[null,"#365"]
[null,"#366"]
[null,"#367"]
[null,"#368"]
[null,"#369"]
[null,"#370"]
[null,"#371"]
[null,"#372"]
[null,"#373"]
[null,"#374"]
[null,"#375"]
[null,"#376"]
[null,"#377"]
[null,"#378"]
[null,"#379"]
[null,"#380"]
[null,"#381"]
[null,"#382"]
[null,"#383"]
[null,"#384"]
[null,"#385"]
[null,"#386"]
[null,"#387"]
[null,"#388"]
[null,"#389"]
[null,"#390"]
[null,"#391"]
[null,"#392"]
[null,"#393"]
[null,"#394"]
[null,"#395"]
[null,"#396"]
[null,"#397"]
[null,"#398"]
[null,"#399"]
[null,"#400"]
[null,"#401"]
[null,"#402"]
[null,"#403"]
[null,"#404"]
[null,"#405"]
[null,"#406"]
[null,"#407"]
[null,"#408"]
[null,"#409"]
[null,"#410"]
[null,"#411"]
[null,"#412"]
[null,"#413"]
[null,"#414"]
[null,"#415"]
[null,"#416"]
[null,"#417"]
[null,"#418"]
[null,"#419"]
[null,"#420"]
[null,"#421"]
[null,"#422"]
[null,"#423"]
[null,"#424"]
[null,"#425"]
[null,"#426"]
[null,"#427"]
[null,"#428"]
[null,"#429"]
[null,"#430"]
[null,"#431"]
[null,"#432"]
[null,"#433"]
[null,"#434"]
[null,"#435"]
[null,"#436"]
[null,"#437"]
[null,"#438"]
[null,"#439"]
[null,"#440"]
[null,"#441"]
[null,"#442"]
[null,"#443"]
[null,"#444"]
[null,"#445"]
[null,"#446"]
[null,"#447"]
[null,"#448"]
[null,"#449"]
[null,"#450"]
[null,"#451"]
[null,"#452"]
[null,"#453"]
[null,"#454"]
[null,"#455"]
[null,"#456"]
[null,"#457"]
[null,"#458"]
[null,"#459"]
[null,"#460"]
[null,"#461"]
[null,"#462"]
[null,"#463"]
[null,"#464"]
[null,"#465"]
[null,"#466"]
[null,"#467"]
[null,"#468"]
[null,"#469"]
[null,"#470"]
[null,"#471"]
[null,"#472"]
[null,"#473"]
[null,"#474"]
[null,"#475"]
[null,"#476"]
[null,"#477"]
[null,"#478"]
[null,"#479"]
[null,"#480"]
[null,"#481"]
[null,"#482"]
[null,"#483"]
[null,"#484"]
[null,"#485"]
[null,"#486"]
[null,"#487"]
[null,"#488"]
[null,"#489"]
[null,"#490"]
[null,"#491"]
[null,"#492"]
[null,"#493"]
[null,"#494"]
[null,"#495"]
[null,"#496"]
[null,"#497"]
[null,"#498"]
[null,"#499"]
[null,"#500"]
[null,"#501"]
[null,"#502"]
[null,"#503"]
[null,"#504"]
[null,"#505"]
[null,"#506"]
[null,"#507"]
[null,"#508"]
[null,"#509"]
[null,"#510"]
[null,"#511"]
[null,"#512"]
[null,"#513"]
[null,"#514"]
[null,"#515"]
[null,"#516"]
[null,"#517"]
[null,"#518"]
[null,"#519"]
[null,"#520"]
[null,"#521"]
[null,"#522"]
[null,"#523"]
[null,"#524"]
[null,"#525"]
[null,"#526"]
[null,"#527"]
[null,"#528"]
[null,"#529"]
[null,"#530"]
[null,"#531"]
[null,"#532"]
[null,"#533"]
[null,"#534"]
[null,"#535"]
[null,"#536"]
[null,"#537"]
[null,"#538"]
[null,"#539"]
[null,"#540"]
[null,"#541"]
[null,"#542"]
[null,"#543"]
[null,"#544"]
[null,"#545"]
[null,"#546"]
[null,"#547"]
[null,"#548"]
[null,"#549"]
[null,"#550"]
[null,"#551"]
[null,"#552"]
[null,"#553"]
[null,"#554"]
[null,"#555"]
[null,"#556"]
[null,"#557"]
[null,"#558"]
[null,"#559"]
[null,"#560"]
[null,"#561"]
[null,"#562"]
[null,"#563"]
[null,"#564"]
[null,"#565"]
[null,"#566"]
[null,"#567"]
[null,"#568"]
[null,"#569"]
[null,"#570"]
[null,"#571"]
[null,"#572"]
[null,"#573"]
[null,"#574"]
[null,"#575"]
[null,"#576"]
[null,"#577"]
[null,"#578"]
[null,"#579"]
[null,"#580"]
[null,"#581"]
[null,"#582"]
[null,"#583"]
[null,"#584"]
[null,"#585"]
[null,"#586"]
[null,"#587"]
[null,"#588"]
[null,"#589"]
[null,"#590"]
[null,"#591"]
[null,"#592"]
[null,"#593"]
[null,"#594"]
[null,"#595"]
[null,"#596"]
[null,"#597"]
[null,"#598"]
[null,"#599"]
[null,"#600"]
[null,"#601"]
[null,"#602"]
[null,"#603"]
[null,"#604"]
[null,"#605"]
[null,"#606"]
[null,"#607"]
[null,"#608"]
[null,"#609"]
[null,"#610"]
[null,"#611"]
[null,"#612"]
[null,"#613"]
[null,"#614"]
[null,"#615"]
[null,"#616"]
[null,"#617"]
[null,"#618"]
[null,"#619"]
[null,"#620"]
[null,"#621"]
[null,"#622"]
[null,"#623"]
[null,"#624"]
[null,"#625"]
[null,"#626"]
[null,"#627"]
[null,"#628"]
[null,"#629"]
[null,"#630"]
[null,"#631"]
[null,"#632"]
[null,"#633"]
[null,"#634"]
[null,"#635"]
[null,"#636"]
[null,"#637"]
[null,"#638"]
[null,"#639"]
[null,"#640"]
[null,"#641"]
[null,"#642"]
[null,"#643"]
[null,"#644"]
[null,"#645"]
[null,"#646"]
[null,"#647"]
[null,"#648"]
[null,"#649"]
[null,"#650"]
[null,"#651"]
[null,"#652"]
[null,"#653"]
[null,"#654"]
[null,"#655"]
[null,"#656"]
[null,"#657"]
[null,"#658"]
[null,"#659"]
[null,"#660"]
[null,"#661"]
[null,"#662"]
[null,"#663"]
[null,"#664"]
[null,"#665"]
[null,"#666"]
[null,"#667"]
[null,"#668"]
[null,"#669"]
[null,"#670"]
[null,"#671"]
[null,"#672"]
[null,"#673"]
[null,"#674"]
[null,"#675"]
[null,"#676"]
[null,"#677"]
[null,"#678"]
[null,"#679"]
[null,"#680"]
[null,"#681"]
[null,"#682"]
[null,"#683"]
[null,"#684"]
[null,"#685"]
[null,"#686"]
[null,"#687"]
[null,"#688"]
[null,"#689"]
[null,"#690"]
[null,"#691"]
[null,"#692"]
[null,"#693"]
[null,"#694"]
[null,"#695"]
[null,"#696"]
[null,"#697"]
[null,"#698"]
[null,"#699"]
[null,"#700"]
[null,"#701"]
[null,"#702"]
[null,"#703"]
[null,"#704"]
[null,"#705"]
[null,"#706"]
[null,"#707"]
[null,"#708"]
[null,"#709"]
[null,"#710"]
[null,"#711"]
[null,"#712"]
[null,"#713"]
[null,"#714"]
[null,"#715"]
[null,"#716"]
[null,"#717"]
[null,"#718"]
[null,"#719"]
[null,"#720"]
[null,"#721"]
[null,"#722"]
[null,"#723"]
[null,"#724"]
[null,"#725"]
[null,"#726"]
[null,"#727"]
[null,"#728"]
[null,"#729"]
[null,"#730"]
[null,"#731"]
[null,"#732"]
[null,"#733"]
[null,"#734"]
[null,"#735"]
[null,"#736"]
[null,"#737"]
[null,"#738"]
[null,"#739"]
[null,"#740"]
[null,"#741"]
[null,"#742"]
[null,"#743"]
[null,"#744"]
[null,"#745"]
[null,"#746"]
[null,"#747"]
[null,"#748"]
[null,"#749"]
[null,"#750"]
[null,"#751"]
[null,"#752"]
[null,"#753"]
[null,"#754"]
[null,"#755"]
[null,"#756"]
[null,"#757"]
[null,"#758"]
[null,"#759"]
[null,"#760"]
[null,"#761"]
[null,"#762"]
[null,"#763"]
[null,"#764"]
[null,"#765"]
[null,"#766"]
[null,"#767"]
[null,"#768"]
[null,"#769"]
[null,"#770"]
[null,"#771"]
[null,"#772"]
[null,"#773"]
[null,"#774"]
[null,"#775"]
[null,"#776"]
[null,"#777"]
[null,"#778"]
[null,"#779"]
[null,"#780"]
[null,"#781"]
[null,"#782"]
[null,"#783"]
[null,"#784"]
[null,"#785"]
[null,"#786"]
[null,"#787"]
[null,"#788"]
[null,"#789"]
[null,"#790"]
[null,"#791"]
[null,"#792"]
[null,"#793"]
[null,"#794"]
[null,"#795"]
[null,"#796"]
[null,"#797"]
[null,"#798"]
[null,"#799"]
[null,"#800"]
[null,"#801"]
[null,"#802"]
[null,"#803"]
[null,"#804"]
[null,"#805"]
[null,"#806"]
[null,"#807"]
[null,"#808"]
[null,"#809"]
[null,"#810"]
[null,"#811"]
[null,"#812"]
[null,"#813"]
[null,"#814"]
[null,"#815"]
[null,"#816"]
[null,"#817"]
[null,"#818"]
[null,"#819"]
[null,"#820"]
[null,"#821"]
[null,"#822"]
[null,"#823"]
[null,"#824"]
[null,"#825"]
[null,"#826"]
[null,"#827"]
[null,"#828"]
[null,"#829"]
[null,"#830"]
[null,"#831"]
[null,"#832"]
[null,"#833"]
[null,"#834"]
[null,"#835"]
[null,"#836"]
[null,"#837"]
[null,"#838"]
[null,"#839"]
[null,"#840"]
[null,"#841"]
[null,"#842"]
[null,"#843"]
[null,"#844"]
[null,"#845"]
[null,"#846"]
[null,"#847"]
[null,"#848"]
[null,"#849"]
[null,"#850"]
[null,"#851"]
[null,"#852"]
[null,"#853"]
[null,"#854"]
[null,"#855"]
[null,"#856"]
[null,"#857"]
[null,"#858"]
[null,"#859"]
[null,"#860"]
[null,"#861"]
[null,"#862"]
[null,"#863"]
[null,"#864"]
[null,"#865"]
[null,"#866"]
[null,"#867"]
[null,"#868"]
[null,"#869"]
[null,"#870"]
[null,"#871"]
[null,"#872"]
[null,"#873"]
[null,"#874"]
[null,"#875"]
[null,"#876"]
[null,"#877"]
[null,"#878"]
[null,"#879"]
[null,"#880"]
[null,"#881"]
[null,"#882"]
[null,"#883"]
[null,"#884"]
[null,"#885"]
[null,"#886"]
[null,"#887"]
[null,"#888"]
[null,"#889"]
[null,"#890"]
[null,"#891"]
[null,"#892"]
[null,"#893"]
[null,"#894"]
[null,"#895"]
[null,"#896"]
[null,"#897"]
[null,"#898"]
[null,"#899"]
[null,"#900"]
[null,"#901"]
[null,"#902"]
[null,"#903"]
[null,"#904"]
[null,"#905"]
[null,"#906"]
[null,"#907"]
[null,"#908"]
[null,"#909"]
[null,"#910"]
[null,"#911"]
[null,"#912"]
[null,"#913"]
[null,"#914"]
[null,"#915"]
[null,"#916"]
[null,"#917"]
[null,"#918"]
[null,"#919"]
[null,"#920"]
[null,"#921"]
[null,"#922"]
[null,"#923"]
[null,"#924"]
[null,"#925"]
[null,"#926"]
[null,"#927"]
[null,"#928"]
[null,"#929"]
[null,"#930"]
[null,"#931"]
[null,"#932"]
[null,"#933"]
[null,"#934"]
[null,"#935"]
[null,"#936"]
[null,"#937"]
[null,"#938"]
[null,"#939"]
[null,"#940"]
[null,"#941"]
[null,"#942"]
[null,"#943"]
[null,"#944"]
[null,"#945"]
[null,"#946"]
[null,"#947"]
[null,"#948"]
[null,"#949"]
[null,"#950"]
[null,"#951"]
[null,"#952"]
[null,"#953"]
[null,"#954"]
[null,"#955"]
[null,"#956"]
[null,"#957"]
[null,"#958"]
[null,"#959"]
[null,"#960"]
[null,"#961"]
[null,"#962"]
[null,"#963"]
[null,"#964"]
[null,"#965"]
[null,"#966"]
[null,"#967"]
[null,"#968"]
[null,"#969"]
[null,"#970"]
[null,"#971"]
[null,"#972"]
[null,"#973"]
[null,"#974"]
[null,"#975"]
[null,"#976"]
[null,"#977"]
[null,"#978"]
[null,"#979"]
[null,"#980"]
[null,"#981"]
[null,"#982"]
[null,"#983"]
[null,"#984"]
[null,"#985"]
[null,"#986"]
[null,"#987"]
[null,"#988"]
[null,"#989"]
[null,"#990"]
[null,"#991"]
[null,"#992"]
[null,"#993"]
[null,"#994"]
[null,"#995"]
[null,"#996"]
[null,"#997"]
[null,"#998"]
[null,"#999"]
[null,"#1000"]
[]
[null,"PER","Euro - UC","2028-12-31",{"$nulls":19},"Obligation","Dette Privée","Action","Private Equity","Obligation CT"]
[null,"ID","AGE","SOUSCRIPTION_YR","SEXE","PDT","CHGT_GEST_EURO_PC","CHGT_GEST_UC_PC","COMM_DIST_EURO_PC","COMM_DIST_UC_PC","CLAUSE_PB_PC","TMG_PC","NO_POLS","PM_EURO","PM_UC_TOT","PM_UC_1","PM_UC_2","PM_UC_3","PM_UC_4","PM_UC_5",null,"Pondération","%Euro","%UC1","%UC2","%UC3","%UC4","%UC5"]
[null,"#1",18,2026,"H","A_PER",{"$f":"frais_gestion_Euro*100","v":{"v":0.44999999999999996,"d":"0.45"}},{"$f":"frais_gestion_UC*100","v":{"v":0.38999999999999996,"d":"0.39"}},{"$f":"frais_distribution_FG*100","v":0.6},{"$f":"frais_distribution_UC*100","v":0.6},85,0,{"$f":"ROUND(Primes!$N$7*V3099,0)","v":1},{"$f":"'BP Financier'!$D$33*(('BP Financier'!$C$19+'BP Financier'!$D$19)/('BP Financier'!$C$16+'BP Financier'!$C$19+'BP Financier'!$D$16+'BP Financier'!$D$19))*V3099","v":{"v":25528.630066549373,"d":"25,529"}},{"$f":"SUM(P3099:T3099)","v":{"v":14153.829491219898,"d":"14,154"}},{"$f":"'BP Financier'!$D$44*(('BP Financier'!$C$19+'BP Financier'!$D$19)/('BP Financier'!$C$16+'BP Financier'!$C$19+'BP Financier'!$D$16+'BP Financier'!$D$19+'BP Financier'!$C$22+'BP Financier'!$D$22))*$V3099*X3099/(1-$W3099)","v":{"v":1801.5774528205357,"d":"1,802"}},{"$f":"'BP Financier'!$D$44*(('BP Financier'!$C$19+'BP Financier'!$D$19)/('BP Financier'!$C$16+'BP Financier'!$C$19+'BP Financier'!$D$16+'BP Financier'!$D$19+'BP Financier'!$C$22+'BP Financier'!$D$22))*$V3099*Y3099/(1-$W3099)","v":{"v":1204.3694574104131,"d":"1,204"}},{"$f":"'BP Financier'!$D$44*(('BP Financier'!$C$19+'BP Financier'!$D$19)/('BP Financier'!$C$16+'BP Financier'!$C$19+'BP Financier'!$D$16+'BP Financier'!$D$19+'BP Financier'!$C$22+'BP Financier'!$D$22))*$V3099*Z3099/(1-$W3099)","v":{"v":9425.932860889763,"d":"9,426"}},{"$f":"'BP Financier'!$D$44*(('BP Financier'!$C$19+'BP Financier'!$D$19)/('BP Financier'!$C$16+'BP Financier'!$C$19+'BP Financier'!$D$16+'BP Financier'!$D$19+'BP Financier'!$C$22+'BP Financier'!$D$22))*$V3099*AA3099/(1-$W3099)","v":{"v":1164.5555910497385,"d":"1,165"}},{"$f":"'BP Financier'!$D$44*(('BP Financier'!$C$19+'BP Financier'!$D$19)/('BP Financier'!$C$16+'BP Financier'!$C$19+'BP Financier'!$D$16+'BP Financier'!$D$19+'BP Financier'!$C$22+'BP Financier'!$D$22))*$V3099*AB3099/(1-$W3099)","v":{"v":557.3941290494473,"d":"557"}},null,{"v":0.0025,"d":"0.25%"},{"$f":"Actif!$E$28/100","v":{"v":0.28900000000000003,"d":"28.90%"}},{"$f":"Actif!$E$30/100","v":{"v":0.09050000000000001,"d":"9.05%"}},{"$f":"Actif!$E$31/100","v":{"v":0.0605,"d":"6.05%"}},{"$f":"Actif!$E$32/100","v":{"v":0.47350000000000003,"d":"47.35%"}},{"$f":"Actif!$E$33/100","v":{"v":0.0585,"d":"5.85%"}},{"$f":"Actif!$E$29/100","v":{"v":0.027999999999999997,"d":"2.80%"}}]
[null,"#2",18,2028,"H","A_PER",{"v":0.44999999999999996,"d":"0.45"},{"v":0.38999999999999996,"d":"0.39"},0.6,0.6,85,0,{"$f":"ROUND(Primes!$N$7*V3100,0)","v":1},{"$f":"'BP Financier'!$D$33*(('BP Financier'!$C$19+'BP Financier'!$D$19)/('BP Financier'!$C$16+'BP Financier'!$C$19+'BP Financier'!$D$16+'BP Financier'!$D$19))*V3100","v":{"v":25528.630066549373,"d":"25,529"}},{"$f":"SUM(P3100:T3100)","v":{"v":14153.829491219898,"d":"14,154"}},{"$f":"'BP Financier'!$D$44*(('BP Financier'!$C$19+'BP Financier'!$D$19)/('BP Financier'!$C$16+'BP Financier'!$C$19+'BP Financier'!$D$16+'BP Financier'!$D$19+'BP Financier'!$C$22+'BP Financier'!$D$22))*$V3100*X3100/(1-$W3100)","v":{"v":1801.5774528205357,"d":"1,802"}},{"$f":"'BP Financier'!$D$44*(('BP Financier'!$C$19+'BP Financier'!$D$19)/('BP Financier'!$C$16+'BP Financier'!$C$19+'BP Financier'!$D$16+'BP Financier'!$D$19+'BP Financier'!$C$22+'BP Financier'!$D$22))*$V3100*Y3100/(1-$W3100)","v":{"v":1204.3694574104131,"d":"1,204"}},{"$f":"'BP Financier'!$D$44*(('BP Financier'!$C$19+'BP Financier'!$D$19)/('BP Financier'!$C$16+'BP Financier'!$C$19+'BP Financier'!$D$16+'BP Financier'!$D$19+'BP Financier'!$C$22+'BP Financier'!$D$22))*$V3100*Z3100/(1-$W3100)","v":{"v":9425.932860889763,"d":"9,426"}},{"$f":"'BP Financier'!$D$44*(('BP Financier'!$C$19+'BP Financier'!$D$19)/('BP Financier'!$C$16+'BP Financier'!$C$19+'BP Financier'!$D$16+'BP Financier'!$D$19+'BP Financier'!$C$22+'BP Financier'!$D$22))*$V3100*AA3100/(1-$W3100)","v":{"v":1164.5555910497385,"d":"1,165"}},{"$f":"'BP Financier'!$D$44*(('BP Financier'!$C$19+'BP Financier'!$D$19)/('BP Financier'!$C$16+'BP Financier'!$C$19+'BP Financier'!$D$16+'BP Financier'!$D$19+'BP Financier'!$C$22+'BP Financier'!$D$22))*$V3100*AB3100/(1-$W3100)","v":{"v":557.3941290494473,"d":"557"}},null,{"v":0.0025,"d":"0.25%"},{"$f":"Actif!$E$28/100","v":{"v":0.28900000000000003,"d":"28.90%"}},{"$f":"Actif!$E$30/100","v":{"v":0.09050000000000001,"d":"9.05%"}},{"$f":"Actif!$E$31/100","v":{"v":0.0605,"d":"6.05%"}},{"$f":"Actif!$E$32/100","v":{"v":0.47350000000000003,"d":"47.35%"}},{"$f":"Actif!$E$33/100","v":{"v":0.0585,"d":"5.85%"}},{"$f":"Actif!$E$29/100","v":{"v":0.027999999999999997,"d":"2.80%"}}]
[null,"#3",19,2026,"H","A_PER",{"v":0.44999999999999996,"d":"0.45"},{"v":0.38999999999999996,"d":"0.39"},0.6,0.6,85,0,{"$f":"ROUND(Primes!$N$7*V3101,0)","v":1},{"$f":"'BP Financier'!$D$33*(('BP Financier'!$C$19+'BP Financier'!$D$19)/('BP Financier'!$C$16+'BP Financier'!$C$19+'BP Financier'!$D$16+'BP Financier'!$D$19))*V3101","v":{"v":25528.630066549373,"d":"25,529"}},{"v":14153.829491219898,"d":"14,154"},{"$f":"'BP Financier'!$D$44*(('BP Financier'!$C$19+'BP Financier'!$D$19)/('BP Financier'!$C$16+'BP Financier'!$C$19+'BP Financier'!$D$16+'BP Financier'!$D$19+'BP Financier'!$C$22+'BP Financier'!$D$22))*$V3101*X3101/(1-$W3101)","v":{"v":1801.5774528205357,"d":"1,802"}},{"$f":"'BP Financier'!$D$44*(('BP Financier'!$C$19+'BP Financier'!$D$19)/('BP Financier'!$C$16+'BP Financier'!$C$19+'BP Financier'!$D$16+'BP Financier'!$D$19+'BP Financier'!$C$22+'BP Financier'!$D$22))*$V3101*Y3101/(1-$W3101)","v":{"v":1204.3694574104131,"d":"1,204"}},{"$f":"'BP Financier'!$D$44*(('BP Financier'!$C$19+'BP Financier'!$D$19)/('BP Financier'!$C$16+'BP Financier'!$C$19+'BP Financier'!$D$16+'BP Financier'!$D$19+'BP Financier'!$C$22+'BP Financier'!$D$22))*$V3101*Z3101/(1-$W3101)","v":{"v":9425.932860889763,"d":"9,426"}},{"$f":"'BP Financier'!$D$44*(('BP Financier'!$C$19+'BP Financier'!$D$19)/('BP Financier'!$C$16+'BP Financier'!$C$19+'BP Financier'!$D$16+'BP Financier'!$D$19+'BP Financier'!$C$22+'BP Financier'!$D$22))*$V3101*AA3101/(1-$W3101)","v":{"v":1164.5555910497385,"d":"1,165"}},{"$f":"'BP Financier'!$D$44*(('BP Financier'!$C$19+'BP Financier'!$D$19)/('BP Financier'!$C$16+'BP Financier'!$C$19+'BP Financier'!$D$16+'BP Financier'!$D$19+'BP Financier'!$C$22+'BP Financier'!$D$22))*$V3101*AB3101/(1-$W3101)","v":{"v":557.3941290494473,"d":"557"}},null,{"v":0.0025,"d":"0.25%"},{"$f":"Actif!$E$28/100","v":{"v":0.28900000000000003,"d":"28.90%"}},{"$f":"Actif!$E$30/100","v":{"v":0.09050000000000001,"d":"9.05%"}},{"$f":"Actif!$E$31/100","v":{"v":0.0605,"d":"6.05%"}},{"$f":"Actif!$E$32/100","v":{"v":0.47350000000000003,"d":"47.35%"}},{"$f":"Actif!$E$33/100","v":{"v":0.0585,"d":"5.85%"}},{"$f":"Actif!$E$29/100","v":{"v":0.027999999999999997,"d":"2.80%"}}]
[null,"#4",19,2028,"H","A_PER",{"v":0.44999999999999996,"d":"0.45"},{"v":0.38999999999999996,"d":"0.39"},0.6,0.6,85,0,{"$f":"ROUND(Primes!$N$7*V3102,0)","v":1},{"$f":"'BP Financier'!$D$33*(('BP Financier'!$C$19+'BP Financier'!$D$19)/('BP Financier'!$C$16+'BP Financier'!$C$19+'BP Financier'!$D$16+'BP Financier'!$D$19))*V3102","v":{"v":25528.630066549373,"d":"25,529"}},{"v":14153.829491219898,"d":"14,154"},{"$f":"'BP Financier'!$D$44*(('BP Financier'!$C$19+'BP Financier'!$D$19)/('BP Financier'!$C$16+'BP Financier'!$C$19+'BP Financier'!$D$16+'BP Financier'!$D$19+'BP Financier'!$C$22+'BP Financier'!$D$22))*$V3102*X3102/(1-$W3102)","v":{"v":1801.5774528205357,"d":"1,802"}},{"$f":"'BP Financier'!$D$44*(('BP Financier'!$C$19+'BP Financier'!$D$19)/('BP Financier'!$C$16+'BP Financier'!$C$19+'BP Financier'!$D$16+'BP Financier'!$D$19+'BP Financier'!$C$22+'BP Financier'!$D$22))*$V3102*Y3102/(1-$W3102)","v":{"v":1204.3694574104131,"d":"1,204"}},{"$f":"'BP Financier'!$D$44*(('BP Financier'!$C$19+'BP Financier'!$D$19)/('BP Financier'!$C$16+'BP Financier'!$C$19+'BP Financier'!$D$16+'BP Financier'!$D$19+'BP Financier'!$C$22+'BP Financier'!$D$22))*$V3102*Z3102/(1-$W3102)","v":{"v":9425.932860889763,"d":"9,426"}},{"$f":"'BP Financier'!$D$44*(('BP Financier'!$C$19+'BP Financier'!$D$19)/('BP Financier'!$C$16+'BP Financier'!$C$19+'BP Financier'!$D$16+'BP Financier'!$D$19+'BP Financier'!$C$22+'BP Financier'!$D$22))*$V3102*AA3102/(1-$W3102)","v":{"v":1164.5555910497385,"d":"1,165"}},{"$f":"'BP Financier'!$D$44*(('BP Financier'!$C$19+'BP Financier'!$D$19)/('BP Financier'!$C$16+'BP Financier'!$C$19+'BP Financier'!$D$16+'BP Financier'!$D$19+'BP Financier'!$C$22+'BP Financier'!$D$22))*$V3102*AB3102/(1-$W3102)","v":{"v":557.3941290494473,"d":"557"}},null,{"v":0.0025,"d":"0.25%"},{"$f":"Actif!$E$28/100","v":{"v":0.28900000000000003,"d":"28.90%"}},{"$f":"Actif!$E$30/100","v":{"v":0.09050000000000001,"d":"9.05%"}},{"$f":"Actif!$E$31/100","v":{"v":0.0605,"d":"6.05%"}},{"$f":"Actif!$E$32/100","v":{"v":0.47350000000000003,"d":"47.35%"}},{"$f":"Actif!$E$33/100","v":{"v":0.0585,"d":"5.85%"}},{"$f":"Actif!$E$29/100","v":{"v":0.027999999999999997,"d":"2.80%"}}]
[null,"#5",20,2026,"F","A_PER",{"v":0.44999999999999996,"d":"0.45"},{"v":0.38999999999999996,"d":"0.39"},0.6,0.6,85,0,{"$f":"ROUND(Primes!$N$7*V3103,0)","v":1},{"$f":"'BP Financier'!$D$33*(('BP Financier'!$C$19+'BP Financier'!$D$19)/('BP Financier'!$C$16+'BP Financier'!$C$19+'BP Financier'!$D$16+'BP Financier'!$D$19))*V3103","v":{"v":25528.630066549373,"d":"25,529"}},{"v":14153.829491219898,"d":"14,154"},{"$f":"'BP Financier'!$D$44*(('BP Financier'!$C$19+'BP Financier'!$D$19)/('BP Financier'!$C$16+'BP Financier'!$C$19+'BP Financier'!$D$16+'BP Financier'!$D$19+'BP Financier'!$C$22+'BP Financier'!$D$22))*$V3103*X3103/(1-$W3103)","v":{"v":1801.5774528205357,"d":"1,802"}},{"$f":"'BP Financier'!$D$44*(('BP Financier'!$C$19+'BP Financier'!$D$19)/('BP Financier'!$C$16+'BP Financier'!$C$19+'BP Financier'!$D$16+'BP Financier'!$D$19+'BP Financier'!$C$22+'BP Financier'!$D$22))*$V3103*Y3103/(1-$W3103)","v":{"v":1204.3694574104131,"d":"1,204"}},{"$f":"'BP Financier'!$D$44*(('BP Financier'!$C$19+'BP Financier'!$D$19)/('BP Financier'!$C$16+'BP Financier'!$C$19+'BP Financier'!$D$16+'BP Financier'!$D$19+'BP Financier'!$C$22+'BP Financier'!$D$22))*$V3103*Z3103/(1-$W3103)","v":{"v":9425.932860889763,"d":"9,426"}},{"$f":"'BP Financier'!$D$44*(('BP Financier'!$C$19+'BP Financier'!$D$19)/('BP Financier'!$C$16+'BP Financier'!$C$19+'BP Financier'!$D$16+'BP Financier'!$D$19+'BP Financier'!$C$22+'BP Financier'!$D$22))*$V3103*AA3103/(1-$W3103)","v":{"v":1164.5555910497385,"d":"1,165"}},{"$f":"'BP Financier'!$D$44*(('BP Financier'!$C$19+'BP Financier'!$D$19)/('BP Financier'!$C$16+'BP Financier'!$C$19+'BP Financier'!$D$16+'BP Financier'!$D$19+'BP Financier'!$C$22+'BP Financier'!$D$22))*$V3103*AB3103/(1-$W3103)","v":{"v":557.3941290494473,"d":"557"}},null,{"v":0.0025,"d":"0.25%"},{"$f":"Actif!$E$28/100","v":{"v":0.28900000000000003,"d":"28.90%"}},{"$f":"Actif!$E$30/100","v":{"v":0.09050000000000001,"d":"9.05%"}},{"$f":"Actif!$E$31/100","v":{"v":0.0605,"d":"6.05%"}},{"$f":"Actif!$E$32/100","v":{"v":0.47350000000000003,"d":"47.35%"}},{"$f":"Actif!$E$33/100","v":{"v":0.0585,"d":"5.85%"}},{"$f":"Actif!$E$29/100","v":{"v":0.027999999999999997,"d":"2.80%"}}]
[null,"#6",20,2028,"F","A_PER",{"v":0.44999999999999996,"d":"0.45"},{"v":0.38999999999999996,"d":"0.39"},0.6,0.6,85,0,{"$f":"ROUND(Primes!$N$7*V3104,0)","v":1},{"$f":"'BP Financier'!$D$33*(('BP Financier'!$C$19+'BP Financier'!$D$19)/('BP Financier'!$C$16+'BP Financier'!$C$19+'BP Financier'!$D$16+'BP Financier'!$D$19))*V3104","v":{"v":25528.630066549373,"d":"25,529"}},{"v":14153.829491219898,"d":"14,154"},{"$f":"'BP Financier'!$D$44*(('BP Financier'!$C$19+'BP Financier'!$D$19)/('BP Financier'!$C$16+'BP Financier'!$C$19+'BP Financier'!$D$16+'BP Financier'!$D$19+'BP Financier'!$C$22+'BP Financier'!$D$22))*$V3104*X3104/(1-$W3104)","v":{"v":1801.5774528205357,"d":"1,802"}},{"$f":"'BP Financier'!$D$44*(('BP Financier'!$C$19+'BP Financier'!$D$19)/('BP Financier'!$C$16+'BP Financier'!$C$19+'BP Financier'!$D$16+'BP Financier'!$D$19+'BP Financier'!$C$22+'BP Financier'!$D$22))*$V3104*Y3104/(1-$W3104)","v":{"v":1204.3694574104131,"d":"1,204"}},{"$f":"'BP Financier'!$D$44*(('BP Financier'!$C$19+'BP Financier'!$D$19)/('BP Financier'!$C$16+'BP Financier'!$C$19+'BP Financier'!$D$16+'BP Financier'!$D$19+'BP Financier'!$C$22+'BP Financier'!$D$22))*$V3104*Z3104/(1-$W3104)","v":{"v":9425.932860889763,"d":"9,426"}},{"$f":"'BP Financier'!$D$44*(('BP Financier'!$C$19+'BP Financier'!$D$19)/('BP Financier'!$C$16+'BP Financier'!$C$19+'BP Financier'!$D$16+'BP Financier'!$D$19+'BP Financier'!$C$22+'BP Financier'!$D$22))*$V3104*AA3104/(1-$W3104)","v":{"v":1164.5555910497385,"d":"1,165"}},{"$f":"'BP Financier'!$D$44*(('BP Financier'!$C$19+'BP Financier'!$D$19)/('BP Financier'!$C$16+'BP Financier'!$C$19+'BP Financier'!$D$16+'BP Financier'!$D$19+'BP Financier'!$C$22+'BP Financier'!$D$22))*$V3104*AB3104/(1-$W3104)","v":{"v":557.3941290494473,"d":"557"}},null,{"v":0.0025,"d":"0.25%"},{"$f":"Actif!$E$28/100","v":{"v":0.28900000000000003,"d":"28.90%"}},{"$f":"Actif!$E$30/100","v":{"v":0.09050000000000001,"d":"9.05%"}},{"$f":"Actif!$E$31/100","v":{"v":0.0605,"d":"6.05%"}},{"$f":"Actif!$E$32/100","v":{"v":0.47350000000000003,"d":"47.35%"}},{"$f":"Actif!$E$33/100","v":{"v":0.0585,"d":"5.85%"}},{"$f":"Actif!$E$29/100","v":{"v":0.027999999999999997,"d":"2.80%"}}]
[null,"#7",21,2026,"H","A_PER",{"v":0.44999999999999996,"d":"0.45"},{"v":0.38999999999999996,"d":"0.39"},0.6,0.6,85,0,{"$f":"ROUND(Primes!$N$7*V3105,0)","v":1},{"$f":"'BP Financier'!$D$33*(('BP Financier'!$C$19+'BP Financier'!$D$19)/('BP Financier'!$C$16+'BP Financier'!$C$19+'BP Financier'!$D$16+'BP Financier'!$D$19))*V3105","v":{"v":25528.630066549373,"d":"25,529"}},{"v":14153.829491219898,"d":"14,154"},{"$f":"'BP Financier'!$D$44*(('BP Financier'!$C$19+'BP Financier'!$D$19)/('BP Financier'!$C$16+'BP Financier'!$C$19+'BP Financier'!$D$16+'BP Financier'!$D$19+'BP Financier'!$C$22+'BP Financier'!$D$22))*$V3105*X3105/(1-$W3105)","v":{"v":1801.5774528205357,"d":"1,802"}},{"$f":"'BP Financier'!$D$44*(('BP Financier'!$C$19+'BP Financier'!$D$19)/('BP Financier'!$C$16+'BP Financier'!$C$19+'BP Financier'!$D$16+'BP Financier'!$D$19+'BP Financier'!$C$22+'BP Financier'!$D$22))*$V3105*Y3105/(1-$W3105)","v":{"v":1204.3694574104131,"d":"1,204"}},{"$f":"'BP Financier'!$D$44*(('BP Financier'!$C$19+'BP Financier'!$D$19)/('BP Financier'!$C$16+'BP Financier'!$C$19+'BP Financier'!$D$16+'BP Financier'!$D$19+'BP Financier'!$C$22+'BP Financier'!$D$22))*$V3105*Z3105/(1-$W3105)","v":{"v":9425.932860889763,"d":"9,426"}},{"$f":"'BP Financier'!$D$44*(('BP Financier'!$C$19+'BP Financier'!$D$19)/('BP Financier'!$C$16+'BP Financier'!$C$19+'BP Financier'!$D$16+'BP Financier'!$D$19+'BP Financier'!$C$22+'BP Financier'!$D$22))*$V3105*AA3105/(1-$W3105)","v":{"v":1164.5555910497385,"d":"1,165"}},{"$f":"'BP Financier'!$D$44*(('BP Financier'!$C$19+'BP Financier'!$D$19)/('BP Financier'!$C$16+'BP Financier'!$C$19+'BP Financier'!$D$16+'BP Financier'!$D$19+'BP Financier'!$C$22+'BP Financier'!$D$22))*$V3105*AB3105/(1-$W3105)","v":{"v":557.3941290494473,"d":"557"}},null,{"v":0.0025,"d":"0.25%"},{"$f":"Actif!$E$28/100","v":{"v":0.28900000000000003,"d":"28.90%"}},{"$f":"Actif!$E$30/100","v":{"v":0.09050000000000001,"d":"9.05%"}},{"$f":"Actif!$E$31/100","v":{"v":0.0605,"d":"6.05%"}},{"$f":"Actif!$E$32/100","v":{"v":0.47350000000000003,"d":"47.35%"}},{"$f":"Actif!$E$33/100","v":{"v":0.0585,"d":"5.85%"}},{"$f":"Actif!$E$29/100","v":{"v":0.027999999999999997,"d":"2.80%"}}]
[null,"#8",21,2028,"H","A_PER",{"v":0.44999999999999996,"d":"0.45"},{"v":0.38999999999999996,"d":"0.39"},0.6,0.6,85,0,{"$f":"ROUND(Primes!$N$7*V3106,0)","v":1},{"$f":"'BP Financier'!$D$33*(('BP Financier'!$C$19+'BP Financier'!$D$19)/('BP Financier'!$C$16+'BP Financier'!$C$19+'BP Financier'!$D$16+'BP Financier'!$D$19))*V3106","v":{"v":25528.630066549373,"d":"25,529"}},{"v":14153.829491219898,"d":"14,154"},{"$f":"'BP Financier'!$D$44*(('BP Financier'!$C$19+'BP Financier'!$D$19)/('BP Financier'!$C$16+'BP Financier'!$C$19+'BP Financier'!$D$16+'BP Financier'!$D$19+'BP Financier'!$C$22+'BP Financier'!$D$22))*$V3106*X3106/(1-$W3106)","v":{"v":1801.5774528205357,"d":"1,802"}},{"$f":"'BP Financier'!$D$44*(('BP Financier'!$C$19+'BP Financier'!$D$19)/('BP Financier'!$C$16+'BP Financier'!$C$19+'BP Financier'!$D$16+'BP Financier'!$D$19+'BP Financier'!$C$22+'BP Financier'!$D$22))*$V3106*Y3106/(1-$W3106)","v":{"v":1204.3694574104131,"d":"1,204"}},{"$f":"'BP Financier'!$D$44*(('BP Financier'!$C$19+'BP Financier'!$D$19)/('BP Financier'!$C$16+'BP Financier'!$C$19+'BP Financier'!$D$16+'BP Financier'!$D$19+'BP Financier'!$C$22+'BP Financier'!$D$22))*$V3106*Z3106/(1-$W3106)","v":{"v":9425.932860889763,"d":"9,426"}},{"$f":"'BP Financier'!$D$44*(('BP Financier'!$C$19+'BP Financier'!$D$19)/('BP Financier'!$C$16+'BP Financier'!$C$19+'BP Financier'!$D$16+'BP Financier'!$D$19+'BP Financier'!$C$22+'BP Financier'!$D$22))*$V3106*AA3106/(1-$W3106)","v":{"v":1164.5555910497385,"d":"1,165"}},{"$f":"'BP Financier'!$D$44*(('BP Financier'!$C$19+'BP Financier'!$D$19)/('BP Financier'!$C$16+'BP Financier'!$C$19+'BP Financier'!$D$16+'BP Financier'!$D$19+'BP Financier'!$C$22+'BP Financier'!$D$22))*$V3106*AB3106/(1-$W3106)","v":{"v":557.3941290494473,"d":"557"}},null,{"v":0.0025,"d":"0.25%"},{"$f":"Actif!$E$28/100","v":{"v":0.28900000000000003,"d":"28.90%"}},{"$f":"Actif!$E$30/100","v":{"v":0.09050000000000001,"d":"9.05%"}},{"$f":"Actif!$E$31/100","v":{"v":0.0605,"d":"6.05%"}},{"$f":"Actif!$E$32/100","v":{"v":0.47350000000000003,"d":"47.35%"}},{"$f":"Actif!$E$33/100","v":{"v":0.0585,"d":"5.85%"}},{"$f":"Actif!$E$29/100","v":{"v":0.027999999999999997,"d":"2.80%"}}]
[null,"#9",22,2026,"H","A_PER",{"v":0.44999999999999996,"d":"0.45"},{"v":0.38999999999999996,"d":"0.39"},0.6,0.6,85,0,{"$f":"ROUND(Primes!$N$7*V3107,0)","v":1},{"$f":"'BP Financier'!$D$33*(('BP Financier'!$C$19+'BP Financier'!$D$19)/('BP Financier'!$C$16+'BP Financier'!$C$19+'BP Financier'!$D$16+'BP Financier'!$D$19))*V3107","v":{"v":25528.630066549373,"d":"25,529"}},{"v":14153.829491219898,"d":"14,154"},{"$f":"'BP Financier'!$D$44*(('BP Financier'!$C$19+'BP Financier'!$D$19)/('BP Financier'!$C$16+'BP Financier'!$C$19+'BP Financier'!$D$16+'BP Financier'!$D$19+'BP Financier'!$C$22+'BP Financier'!$D$22))*$V3107*X3107/(1-$W3107)","v":{"v":1801.5774528205357,"d":"1,802"}},{"$f":"'BP Financier'!$D$44*(('BP Financier'!$C$19+'BP Financier'!$D$19)/('BP Financier'!$C$16+'BP Financier'!$C$19+'BP Financier'!$D$16+'BP Financier'!$D$19+'BP Financier'!$C$22+'BP Financier'!$D$22))*$V3107*Y3107/(1-$W3107)","v":{"v":1204.3694574104131,"d":"1,204"}},{"$f":"'BP Financier'!$D$44*(('BP Financier'!$C$19+'BP Financier'!$D$19)/('BP Financier'!$C$16+'BP Financier'!$C$19+'BP Financier'!$D$16+'BP Financier'!$D$19+'BP Financier'!$C$22+'BP Financier'!$D$22))*$V3107*Z3107/(1-$W3107)","v":{"v":9425.932860889763,"d":"9,426"}},{"$f":"'BP Financier'!$D$44*(('BP Financier'!$C$19+'BP Financier'!$D$19)/('BP Financier'!$C$16+'BP Financier'!$C$19+'BP Financier'!$D$16+'BP Financier'!$D$19+'BP Financier'!$C$22+'BP Financier'!$D$22))*$V3107*AA3107/(1-$W3107)","v":{"v":1164.5555910497385,"d":"1,165"}},{"$f":"'BP Financier'!$D$44*(('BP Financier'!$C$19+'BP Financier'!$D$19)/('BP Financier'!$C$16+'BP Financier'!$C$19+'BP Financier'!$D$16+'BP Financier'!$D$19+'BP Financier'!$C$22+'BP Financier'!$D$22))*$V3107*AB3107/(1-$W3107)","v":{"v":557.3941290494473,"d":"557"}},null,{"v":0.0025,"d":"0.25%"},{"$f":"Actif!$E$28/100","v":{"v":0.28900000000000003,"d":"28.90%"}},{"$f":"Actif!$E$30/100","v":{"v":0.09050000000000001,"d":"9.05%"}},{"$f":"Actif!$E$31/100","v":{"v":0.0605,"d":"6.05%"}},{"$f":"Actif!$E$32/100","v":{"v":0.47350000000000003,"d":"47.35%"}},{"$f":"Actif!$E$33/100","v":{"v":0.0585,"d":"5.85%"}},{"$f":"Actif!$E$29/100","v":{"v":0.027999999999999997,"d":"2.80%"}}]
[null,"#10",22,2028,"H","A_PER",{"v":0.44999999999999996,"d":"0.45"},{"v":0.38999999999999996,"d":"0.39"},0.6,0.6,85,0,{"$f":"ROUND(Primes!$N$7*V3108,0)","v":1},{"$f":"'BP Financier'!$D$33*(('BP Financier'!$C$19+'BP Financier'!$D$19)/('BP Financier'!$C$16+'BP Financier'!$C$19+'BP Financier'!$D$16+'BP Financier'!$D$19))*V3108","v":{"v":25528.630066549373,"d":"25,529"}},{"v":14153.829491219898,"d":"14,154"},{"$f":"'BP Financier'!$D$44*(('BP Financier'!$C$19+'BP Financier'!$D$19)/('BP Financier'!$C$16+'BP Financier'!$C$19+'BP Financier'!$D$16+'BP Financier'!$D$19+'BP Financier'!$C$22+'BP Financier'!$D$22))*$V3108*X3108/(1-$W3108)","v":{"v":1801.5774528205357,"d":"1,802"}},{"$f":"'BP Financier'!$D$44*(('BP Financier'!$C$19+'BP Financier'!$D$19)/('BP Financier'!$C$16+'BP Financier'!$C$19+'BP Financier'!$D$16+'BP Financier'!$D$19+'BP Financier'!$C$22+'BP Financier'!$D$22))*$V3108*Y3108/(1-$W3108)","v":{"v":1204.3694574104131,"d":"1,204"}},{"$f":"'BP Financier'!$D$44*(('BP Financier'!$C$19+'BP Financier'!$D$19)/('BP Financier'!$C$16+'BP Financier'!$C$19+'BP Financier'!$D$16+'BP Financier'!$D$19+'BP Financier'!$C$22+'BP Financier'!$D$22))*$V3108*Z3108/(1-$W3108)","v":{"v":9425.932860889763,"d":"9,426"}},{"$f":"'BP Financier'!$D$44*(('BP Financier'!$C$19+'BP Financier'!$D$19)/('BP Financier'!$C$16+'BP Financier'!$C$19+'BP Financier'!$D$16+'BP Financier'!$D$19+'BP Financier'!$C$22+'BP Financier'!$D$22))*$V3108*AA3108/(1-$W3108)","v":{"v":1164.5555910497385,"d":"1,165"}},{"$f":"'BP Financier'!$D$44*(('BP Financier'!$C$19+'BP Financier'!$D$19)/('BP Financier'!$C$16+'BP Financier'!$C$19+'BP Financier'!$D$16+'BP Financier'!$D$19+'BP Financier'!$C$22+'BP Financier'!$D$22))*$V3108*AB3108/(1-$W3108)","v":{"v":557.3941290494473,"d":"557"}},null,{"v":0.0025,"d":"0.25%"},{"$f":"Actif!$E$28/100","v":{"v":0.28900000000000003,"d":"28.90%"}},{"$f":"Actif!$E$30/100","v":{"v":0.09050000000000001,"d":"9.05%"}},{"$f":"Actif!$E$31/100","v":{"v":0.0605,"d":"6.05%"}},{"$f":"Actif!$E$32/100","v":{"v":0.47350000000000003,"d":"47.35%"}},{"$f":"Actif!$E$33/100","v":{"v":0.0585,"d":"5.85%"}},{"$f":"Actif!$E$29/100","v":{"v":0.027999999999999997,"d":"2.80%"}}]
[null,"#11",23,2026,"F","A_PER",{"v":0.44999999999999996,"d":"0.45"},{"v":0.38999999999999996,"d":"0.39"},0.6,0.6,85,0,{"$f":"ROUND(Primes!$N$7*V3109,0)","v":1},{"$f":"'BP Financier'!$D$33*(('BP Financier'!$C$19+'BP Financier'!$D$19)/('BP Financier'!$C$16+'BP Financier'!$C$19+'BP Financier'!$D$16+'BP Financier'!$D$19))*V3109","v":{"v":25528.630066549373,"d":"25,529"}},{"v":14153.829491219898,"d":"14,154"},{"$f":"'BP Financier'!$D$44*(('BP Financier'!$C$19+'BP Financier'!$D$19)/('BP Financier'!$C$16+'BP Financier'!$C$19+'BP Financier'!$D$16+'BP Financier'!$D$19+'BP Financier'!$C$22+'BP Financier'!$D$22))*$V3109*X3109/(1-$W3109)","v":{"v":1801.5774528205357,"d":"1,802"}},{"$f":"'BP Financier'!$D$44*(('BP Financier'!$C$19+'BP Financier'!$D$19)/('BP Financier'!$C$16+'BP Financier'!$C$19+'BP Financier'!$D$16+'BP Financier'!$D$19+'BP Financier'!$C$22+'BP Financier'!$D$22))*$V3109*Y3109/(1-$W3109)","v":{"v":1204.3694574104131,"d":"1,204"}},{"$f":"'BP Financier'!$D$44*(('BP Financier'!$C$19+'BP Financier'!$D$19)/('BP Financier'!$C$16+'BP Financier'!$C$19+'BP Financier'!$D$16+'BP Financier'!$D$19+'BP Financier'!$C$22+'BP Financier'!$D$22))*$V3109*Z3109/(1-$W3109)","v":{"v":9425.932860889763,"d":"9,426"}},{"$f":"'BP Financier'!$D$44*(('BP Financier'!$C$19+'BP Financier'!$D$19)/('BP Financier'!$C$16+'BP Financier'!$C$19+'BP Financier'!$D$16+'BP Financier'!$D$19+'BP Financier'!$C$22+'BP Financier'!$D$22))*$V3109*AA3109/(1-$W3109)","v":{"v":1164.5555910497385,"d":"1,165"}},{"$f":"'BP Financier'!$D$44*(('BP Financier'!$C$19+'BP Financier'!$D$19)/('BP Financier'!$C$16+'BP Financier'!$C$19+'BP Financier'!$D$16+'BP Financier'!$D$19+'BP Financier'!$C$22+'BP Financier'!$D$22))*$V3109*AB3109/(1-$W3109)","v":{"v":557.3941290494473,"d":"557"}},null,{"v":0.0025,"d":"0.25%"},{"$f":"Actif!$E$28/100","v":{"v":0.28900000000000003,"d":"28.90%"}},{"$f":"Actif!$E$30/100","v":{"v":0.09050000000000001,"d":"9.05%"}},{"$f":"Actif!$E$31/100","v":{"v":0.0605,"d":"6.05%"}},{"$f":"Actif!$E$32/100","v":{"v":0.47350000000000003,"d":"47.35%"}},{"$f":"Actif!$E$33/100","v":{"v":0.0585,"d":"5.85%"}},{"$f":"Actif!$E$29/100","v":{"v":0.027999999999999997,"d":"2.80%"}}]
[null,"#12",23,2028,"F","A_PER",{"v":0.44999999999999996,"d":"0.45"},{"v":0.38999999999999996,"d":"0.39"},0.6,0.6,85,0,{"$f":"ROUND(Primes!$N$7*V3110,0)","v":1},{"$f":"'BP Financier'!$D$33*(('BP Financier'!$C$19+'BP Financier'!$D$19)/('BP Financier'!$C$16+'BP Financier'!$C$19+'BP Financier'!$D$16+'BP Financier'!$D$19))*V3110","v":{"v":25528.630066549373,"d":"25,529"}},{"v":14153.829491219898,"d":"14,154"},{"$f":"'BP Financier'!$D$44*(('BP Financier'!$C$19+'BP Financier'!$D$19)/('BP Financier'!$C$16+'BP Financier'!$C$19+'BP Financier'!$D$16+'BP Financier'!$D$19+'BP Financier'!$C$22+'BP Financier'!$D$22))*$V3110*X3110/(1-$W3110)","v":{"v":1801.5774528205357,"d":"1,802"}},{"$f":"'BP Financier'!$D$44*(('BP Financier'!$C$19+'BP Financier'!$D$19)/('BP Financier'!$C$16+'BP Financier'!$C$19+'BP Financier'!$D$16+'BP Financier'!$D$19+'BP Financier'!$C$22+'BP Financier'!$D$22))*$V3110*Y3110/(1-$W3110)","v":{"v":1204.3694574104131,"d":"1,204"}},{"$f":"'BP Financier'!$D$44*(('BP Financier'!$C$19+'BP Financier'!$D$19)/('BP Financier'!$C$16+'BP Financier'!$C$19+'BP Financier'!$D$16+'BP Financier'!$D$19+'BP Financier'!$C$22+'BP Financier'!$D$22))*$V3110*Z3110/(1-$W3110)","v":{"v":9425.932860889763,"d":"9,426"}},{"$f":"'BP Financier'!$D$44*(('BP Financier'!$C$19+'BP Financier'!$D$19)/('BP Financier'!$C$16+'BP Financier'!$C$19+'BP Financier'!$D$16+'BP Financier'!$D$19+'BP Financier'!$C$22+'BP Financier'!$D$22))*$V3110*AA3110/(1-$W3110)","v":{"v":1164.5555910497385,"d":"1,165"}},{"$f":"'BP Financier'!$D$44*(('BP Financier'!$C$19+'BP Financier'!$D$19)/('BP Financier'!$C$16+'BP Financier'!$C$19+'BP Financier'!$D$16+'BP Financier'!$D$19+'BP Financier'!$C$22+'BP Financier'!$D$22))*$V3110*AB3110/(1-$W3110)","v":{"v":557.3941290494473,"d":"557"}},null,{"v":0.0025,"d":"0.25%"},{"$f":"Actif!$E$28/100","v":{"v":0.28900000000000003,"d":"28.90%"}},{"$f":"Actif!$E$30/100","v":{"v":0.09050000000000001,"d":"9.05%"}},{"$f":"Actif!$E$31/100","v":{"v":0.0605,"d":"6.05%"}},{"$f":"Actif!$E$32/100","v":{"v":0.47350000000000003,"d":"47.35%"}},{"$f":"Actif!$E$33/100","v":{"v":0.0585,"d":"5.85%"}},{"$f":"Actif!$E$29/100","v":{"v":0.027999999999999997,"d":"2.80%"}}]
[null,"#13",24,2026,"H","A_PER",{"v":0.44999999999999996,"d":"0.45"},{"v":0.38999999999999996,"d":"0.39"},0.6,0.6,85,0,{"$f":"ROUND(Primes!$N$7*V3111,0)","v":1},{"$f":"'BP Financier'!$D$33*(('BP Financier'!$C$19+'BP Financier'!$D$19)/('BP Financier'!$C$16+'BP Financier'!$C$19+'BP Financier'!$D$16+'BP Financier'!$D$19))*V3111","v":{"v":25528.630066549373,"d":"25,529"}},{"v":14153.829491219898,"d":"14,154"},{"$f":"'BP Financier'!$D$44*(('BP Financier'!$C$19+'BP Financier'!$D$19)/('BP Financier'!$C$16+'BP Financier'!$C$19+'BP Financier'!$D$16+'BP Financier'!$D$19+'BP Financier'!$C$22+'BP Financier'!$D$22))*$V3111*X3111/(1-$W3111)","v":{"v":1801.5774528205357,"d":"1,802"}},{"$f":"'BP Financier'!$D$44*(('BP Financier'!$C$19+'BP Financier'!$D$19)/('BP Financier'!$C$16+'BP Financier'!$C$19+'BP Financier'!$D$16+'BP Financier'!$D$19+'BP Financier'!$C$22+'BP Financier'!$D$22))*$V3111*Y3111/(1-$W3111)","v":{"v":1204.3694574104131,"d":"1,204"}},{"$f":"'BP Financier'!$D$44*(('BP Financier'!$C$19+'BP Financier'!$D$19)/('BP Financier'!$C$16+'BP Financier'!$C$19+'BP Financier'!$D$16+'BP Financier'!$D$19+'BP Financier'!$C$22+'BP Financier'!$D$22))*$V3111*Z3111/(1-$W3111)","v":{"v":9425.932860889763,"d":"9,426"}},{"$f":"'BP Financier'!$D$44*(('BP Financier'!$C$19+'BP Financier'!$D$19)/('BP Financier'!$C$16+'BP Financier'!$C$19+'BP Financier'!$D$16+'BP Financier'!$D$19+'BP Financier'!$C$22+'BP Financier'!$D$22))*$V3111*AA3111/(1-$W3111)","v":{"v":1164.5555910497385,"d":"1,165"}},{"$f":"'BP Financier'!$D$44*(('BP Financier'!$C$19+'BP Financier'!$D$19)/('BP Financier'!$C$16+'BP Financier'!$C$19+'BP Financier'!$D$16+'BP Financier'!$D$19+'BP Financier'!$C$22+'BP Financier'!$D$22))*$V3111*AB3111/(1-$W3111)","v":{"v":557.3941290494473,"d":"557"}},null,{"v":0.0025,"d":"0.25%"},{"$f":"Actif!$E$28/100","v":{"v":0.28900000000000003,"d":"28.90%"}},{"$f":"Actif!$E$30/100","v":{"v":0.09050000000000001,"d":"9.05%"}},{"$f":"Actif!$E$31/100","v":{"v":0.0605,"d":"6.05%"}},{"$f":"Actif!$E$32/100","v":{"v":0.47350000000000003,"d":"47.35%"}},{"$f":"Actif!$E$33/100","v":{"v":0.0585,"d":"5.85%"}},{"$f":"Actif!$E$29/100","v":{"v":0.027999999999999997,"d":"2.80%"}}]
[null,"#14",24,2028,"H","A_PER",{"v":0.44999999999999996,"d":"0.45"},{"v":0.38999999999999996,"d":"0.39"},0.6,0.6,85,0,{"$f":"ROUND(Primes!$N$7*V3112,0)","v":1},{"$f":"'BP Financier'!$D$33*(('BP Financier'!$C$19+'BP Financier'!$D$19)/('BP Financier'!$C$16+'BP Financier'!$C$19+'BP Financier'!$D$16+'BP Financier'!$D$19))*V3112","v":{"v":25528.630066549373,"d":"25,529"}},{"v":14153.829491219898,"d":"14,154"},{"$f":"'BP Financier'!$D$44*(('BP Financier'!$C$19+'BP Financier'!$D$19)/('BP Financier'!$C$16+'BP Financier'!$C$19+'BP Financier'!$D$16+'BP Financier'!$D$19+'BP Financier'!$C$22+'BP Financier'!$D$22))*$V3112*X3112/(1-$W3112)","v":{"v":1801.5774528205357,"d":"1,802"}},{"$f":"'BP Financier'!$D$44*(('BP Financier'!$C$19+'BP Financier'!$D$19)/('BP Financier'!$C$16+'BP Financier'!$C$19+'BP Financier'!$D$16+'BP Financier'!$D$19+'BP Financier'!$C$22+'BP Financier'!$D$22))*$V3112*Y3112/(1-$W3112)","v":{"v":1204.3694574104131,"d":"1,204"}},{"$f":"'BP Financier'!$D$44*(('BP Financier'!$C$19+'BP Financier'!$D$19)/('BP Financier'!$C$16+'BP Financier'!$C$19+'BP Financier'!$D$16+'BP Financier'!$D$19+'BP Financier'!$C$22+'BP Financier'!$D$22))*$V3112*Z3112/(1-$W3112)","v":{"v":9425.932860889763,"d":"9,426"}},{"$f":"'BP Financier'!$D$44*(('BP Financier'!$C$19+'BP Financier'!$D$19)/('BP Financier'!$C$16+'BP Financier'!$C$19+'BP Financier'!$D$16+'BP Financier'!$D$19+'BP Financier'!$C$22+'BP Financier'!$D$22))*$V3112*AA3112/(1-$W3112)","v":{"v":1164.5555910497385,"d":"1,165"}},{"$f":"'BP Financier'!$D$44*(('BP Financier'!$C$19+'BP Financier'!$D$19)/('BP Financier'!$C$16+'BP Financier'!$C$19+'BP Financier'!$D$16+'BP Financier'!$D$19+'BP Financier'!$C$22+'BP Financier'!$D$22))*$V3112*AB3112/(1-$W3112)","v":{"v":557.3941290494473,"d":"557"}},null,{"v":0.0025,"d":"0.25%"},{"$f":"Actif!$E$28/100","v":{"v":0.28900000000000003,"d":"28.90%"}},{"$f":"Actif!$E$30/100","v":{"v":0.09050000000000001,"d":"9.05%"}},{"$f":"Actif!$E$31/100","v":{"v":0.0605,"d":"6.05%"}},{"$f":"Actif!$E$32/100","v":{"v":0.47350000000000003,"d":"47.35%"}},{"$f":"Actif!$E$33/100","v":{"v":0.0585,"d":"5.85%"}},{"$f":"Actif!$E$29/100","v":{"v":0.027999999999999997,"d":"2.80%"}}]
[null,"#15",25,2026,"H","A_PER",{"v":0.44999999999999996,"d":"0.45"},{"v":0.38999999999999996,"d":"0.39"},0.6,0.6,85,0,{"$f":"ROUND(Primes!$N$7*V3113,0)","v":1},{"$f":"'BP Financier'!$D$33*(('BP Financier'!$C$19+'BP Financier'!$D$19)/('BP Financier'!$C$16+'BP Financier'!$C$19+'BP Financier'!$D$16+'BP Financier'!$D$19))*V3113","v":{"v":25528.630066549373,"d":"25,529"}},{"v":14153.829491219898,"d":"14,154"},{"$f":"'BP Financier'!$D$44*(('BP Financier'!$C$19+'BP Financier'!$D$19)/('BP Financier'!$C$16+'BP Financier'!$C$19+'BP Financier'!$D$16+'BP Financier'!$D$19+'BP Financier'!$C$22+'BP Financier'!$D$22))*$V3113*X3113/(1-$W3113)","v":{"v":1801.5774528205357,"d":"1,802"}},{"$f":"'BP Financier'!$D$44*(('BP Financier'!$C$19+'BP Financier'!$D$19)/('BP Financier'!$C$16+'BP Financier'!$C$19+'BP Financier'!$D$16+'BP Financier'!$D$19+'BP Financier'!$C$22+'BP Financier'!$D$22))*$V3113*Y3113/(1-$W3113)","v":{"v":1204.3694574104131,"d":"1,204"}},{"$f":"'BP Financier'!$D$44*(('BP Financier'!$C$19+'BP Financier'!$D$19)/('BP Financier'!$C$16+'BP Financier'!$C$19+'BP Financier'!$D$16+'BP Financier'!$D$19+'BP Financier'!$C$22+'BP Financier'!$D$22))*$V3113*Z3113/(1-$W3113)","v":{"v":9425.932860889763,"d":"9,426"}},{"$f":"'BP Financier'!$D$44*(('BP Financier'!$C$19+'BP Financier'!$D$19)/('BP Financier'!$C$16+'BP Financier'!$C$19+'BP Financier'!$D$16+'BP Financier'!$D$19+'BP Financier'!$C$22+'BP Financier'!$D$22))*$V3113*AA3113/(1-$W3113)","v":{"v":1164.5555910497385,"d":"1,165"}},{"$f":"'BP Financier'!$D$44*(('BP Financier'!$C$19+'BP Financier'!$D$19)/('BP Financier'!$C$16+'BP Financier'!$C$19+'BP Financier'!$D$16+'BP Financier'!$D$19+'BP Financier'!$C$22+'BP Financier'!$D$22))*$V3113*AB3113/(1-$W3113)","v":{"v":557.3941290494473,"d":"557"}},null,{"v":0.0025,"d":"0.25%"},{"$f":"Actif!$E$28/100","v":{"v":0.28900000000000003,"d":"28.90%"}},{"$f":"Actif!$E$30/100","v":{"v":0.09050000000000001,"d":"9.05%"}},{"$f":"Actif!$E$31/100","v":{"v":0.0605,"d":"6.05%"}},{"$f":"Actif!$E$32/100","v":{"v":0.47350000000000003,"d":"47.35%"}},{"$f":"Actif!$E$33/100","v":{"v":0.0585,"d":"5.85%"}},{"$f":"Actif!$E$29/100","v":{"v":0.027999999999999997,"d":"2.80%"}}]
[null,"#16",25,2028,"H","A_PER",{"v":0.44999999999999996,"d":"0.45"},{"v":0.38999999999999996,"d":"0.39"},0.6,0.6,85,0,{"$f":"ROUND(Primes!$N$7*V3114,0)","v":1},{"$f":"'BP Financier'!$D$33*(('BP Financier'!$C$19+'BP Financier'!$D$19)/('BP Financier'!$C$16+'BP Financier'!$C$19+'BP Financier'!$D$16+'BP Financier'!$D$19))*V3114","v":{"v":25528.630066549373,"d":"25,529"}},{"v":14153.829491219898,"d":"14,154"},{"$f":"'BP Financier'!$D$44*(('BP Financier'!$C$19+'BP Financier'!$D$19)/('BP Financier'!$C$16+'BP Financier'!$C$19+'BP Financier'!$D$16+'BP Financier'!$D$19+'BP Financier'!$C$22+'BP Financier'!$D$22))*$V3114*X3114/(1-$W3114)","v":{"v":1801.5774528205357,"d":"1,802"}},{"$f":"'BP Financier'!$D$44*(('BP Financier'!$C$19+'BP Financier'!$D$19)/('BP Financier'!$C$16+'BP Financier'!$C$19+'BP Financier'!$D$16+'BP Financier'!$D$19+'BP Financier'!$C$22+'BP Financier'!$D$22))*$V3114*Y3114/(1-$W3114)","v":{"v":1204.3694574104131,"d":"1,204"}},{"$f":"'BP Financier'!$D$44*(('BP Financier'!$C$19+'BP Financier'!$D$19)/('BP Financier'!$C$16+'BP Financier'!$C$19+'BP Financier'!$D$16+'BP Financier'!$D$19+'BP Financier'!$C$22+'BP Financier'!$D$22))*$V3114*Z3114/(1-$W3114)","v":{"v":9425.932860889763,"d":"9,426"}},{"$f":"'BP Financier'!$D$44*(('BP Financier'!$C$19+'BP Financier'!$D$19)/('BP Financier'!$C$16+'BP Financier'!$C$19+'BP Financier'!$D$16+'BP Financier'!$D$19+'BP Financier'!$C$22+'BP Financier'!$D$22))*$V3114*AA3114/(1-$W3114)","v":{"v":1164.5555910497385,"d":"1,165"}},{"$f":"'BP Financier'!$D$44*(('BP Financier'!$C$19+'BP Financier'!$D$19)/('BP Financier'!$C$16+'BP Financier'!$C$19+'BP Financier'!$D$16+'BP Financier'!$D$19+'BP Financier'!$C$22+'BP Financier'!$D$22))*$V3114*AB3114/(1-$W3114)","v":{"v":557.3941290494473,"d":"557"}},null,{"v":0.0025,"d":"0.25%"},{"$f":"Actif!$E$28/100","v":{"v":0.28900000000000003,"d":"28.90%"}},{"$f":"Actif!$E$30/100","v":{"v":0.09050000000000001,"d":"9.05%"}},{"$f":"Actif!$E$31/100","v":{"v":0.0605,"d":"6.05%"}},{"$f":"Actif!$E$32/100","v":{"v":0.47350000000000003,"d":"47.35%"}},{"$f":"Actif!$E$33/100","v":{"v":0.0585,"d":"5.85%"}},{"$f":"Actif!$E$29/100","v":{"v":0.027999999999999997,"d":"2.80%"}}]
[null,"#17",26,2026,"F","A_PER",{"v":0.44999999999999996,"d":"0.45"},{"v":0.38999999999999996,"d":"0.39"},0.6,0.6,85,0,{"$f":"ROUND(Primes!$N$7*V3115,0)","v":3},{"$f":"'BP Financier'!$D$33*(('BP Financier'!$C$19+'BP Financier'!$D$19)/('BP Financier'!$C$16+'BP Financier'!$C$19+'BP Financier'!$D$16+'BP Financier'!$D$19))*V3115","v":{"v":76585.89019964811,"d":"76,586"}},{"v":42461.48847365969,"d":"42,461"},{"$f":"'BP Financier'!$D$44*(('BP Financier'!$C$19+'BP Financier'!$D$19)/('BP Financier'!$C$16+'BP Financier'!$C$19+'BP Financier'!$D$16+'BP Financier'!$D$19+'BP Financier'!$C$22+'BP Financier'!$D$22))*$V3115*X3115/(1-$W3115)","v":{"v":5404.732358461607,"d":"5,405"}},{"$f":"'BP Financier'!$D$44*(('BP Financier'!$C$19+'BP Financier'!$D$19)/('BP Financier'!$C$16+'BP Financier'!$C$19+'BP Financier'!$D$16+'BP Financier'!$D$19+'BP Financier'!$C$22+'BP Financier'!$D$22))*$V3115*Y3115/(1-$W3115)","v":{"v":3613.108372231239,"d":"3,613"}},{"$f":"'BP Financier'!$D$44*(('BP Financier'!$C$19+'BP Financier'!$D$19)/('BP Financier'!$C$16+'BP Financier'!$C$19+'BP Financier'!$D$16+'BP Financier'!$D$19+'BP Financier'!$C$22+'BP Financier'!$D$22))*$V3115*Z3115/(1-$W3115)","v":{"v":28277.79858266929,"d":"28,278"}},{"$f":"'BP Financier'!$D$44*(('BP Financier'!$C$19+'BP Financier'!$D$19)/('BP Financier'!$C$16+'BP Financier'!$C$19+'BP Financier'!$D$16+'BP Financier'!$D$19+'BP Financier'!$C$22+'BP Financier'!$D$22))*$V3115*AA3115/(1-$W3115)","v":{"v":3493.6667731492153,"d":"3,494"}},{"$f":"'BP Financier'!$D$44*(('BP Financier'!$C$19+'BP Financier'!$D$19)/('BP Financier'!$C$16+'BP Financier'!$C$19+'BP Financier'!$D$16+'BP Financier'!$D$19+'BP Financier'!$C$22+'BP Financier'!$D$22))*$V3115*AB3115/(1-$W3115)","v":{"v":1672.182387148342,"d":"1,672"}},null,{"v":0.0075,"d":"0.75%"},{"$f":"Actif!$E$28/100","v":{"v":0.28900000000000003,"d":"28.90%"}},{"$f":"Actif!$E$30/100","v":{"v":0.09050000000000001,"d":"9.05%"}},{"$f":"Actif!$E$31/100","v":{"v":0.0605,"d":"6.05%"}},{"$f":"Actif!$E$32/100","v":{"v":0.47350000000000003,"d":"47.35%"}},{"$f":"Actif!$E$33/100","v":{"v":0.0585,"d":"5.85%"}},{"$f":"Actif!$E$29/100","v":{"v":0.027999999999999997,"d":"2.80%"}}]
[null,"#18",26,2028,"F","A_PER",{"v":0.44999999999999996,"d":"0.45"},{"v":0.38999999999999996,"d":"0.39"},0.6,0.6,85,0,{"$f":"ROUND(Primes!$N$7*V3116,0)","v":3},{"$f":"'BP Financier'!$D$33*(('BP Financier'!$C$19+'BP Financier'!$D$19)/('BP Financier'!$C$16+'BP Financier'!$C$19+'BP Financier'!$D$16+'BP Financier'!$D$19))*V3116","v":{"v":76585.89019964811,"d":"76,586"}},{"v":42461.48847365969,"d":"42,461"},{"$f":"'BP Financier'!$D$44*(('BP Financier'!$C$19+'BP Financier'!$D$19)/('BP Financier'!$C$16+'BP Financier'!$C$19+'BP Financier'!$D$16+'BP Financier'!$D$19+'BP Financier'!$C$22+'BP Financier'!$D$22))*$V3116*X3116/(1-$W3116)","v":{"v":5404.732358461607,"d":"5,405"}},{"$f":"'BP Financier'!$D$44*(('BP Financier'!$C$19+'BP Financier'!$D$19)/('BP Financier'!$C$16+'BP Financier'!$C$19+'BP Financier'!$D$16+'BP Financier'!$D$19+'BP Financier'!$C$22+'BP Financier'!$D$22))*$V3116*Y3116/(1-$W3116)","v":{"v":3613.108372231239,"d":"3,613"}},{"$f":"'BP Financier'!$D$44*(('BP Financier'!$C$19+'BP Financier'!$D$19)/('BP Financier'!$C$16+'BP Financier'!$C$19+'BP Financier'!$D$16+'BP Financier'!$D$19+'BP Financier'!$C$22+'BP Financier'!$D$22))*$V3116*Z3116/(1-$W3116)","v":{"v":28277.79858266929,"d":"28,278"}},{"$f":"'BP Financier'!$D$44*(('BP Financier'!$C$19+'BP Financier'!$D$19)/('BP Financier'!$C$16+'BP Financier'!$C$19+'BP Financier'!$D$16+'BP Financier'!$D$19+'BP Financier'!$C$22+'BP Financier'!$D$22))*$V3116*AA3116/(1-$W3116)","v":{"v":3493.6667731492153,"d":"3,494"}},{"$f":"'BP Financier'!$D$44*(('BP Financier'!$C$19+'BP Financier'!$D$19)/('BP Financier'!$C$16+'BP Financier'!$C$19+'BP Financier'!$D$16+'BP Financier'!$D$19+'BP Financier'!$C$22+'BP Financier'!$D$22))*$V3116*AB3116/(1-$W3116)","v":{"v":1672.182387148342,"d":"1,672"}},null,{"v":0.0075,"d":"0.75%"},{"$f":"Actif!$E$28/100","v":{"v":0.28900000000000003,"d":"28.90%"}},{"$f":"Actif!$E$30/100","v":{"v":0.09050000000000001,"d":"9.05%"}},{"$f":"Actif!$E$31/100","v":{"v":0.0605,"d":"6.05%"}},{"$f":"Actif!$E$32/100","v":{"v":0.47350000000000003,"d":"47.35%"}},{"$f":"Actif!$E$33/100","v":{"v":0.0585,"d":"5.85%"}},{"$f":"Actif!$E$29/100","v":{"v":0.027999999999999997,"d":"2.80%"}}]
[null,"#19",27,2026,"H","A_PER",{"v":0.44999999999999996,"d":"0.45"},{"v":0.38999999999999996,"d":"0.39"},0.6,0.6,85,0,{"$f":"ROUND(Primes!$N$7*V3117,0)","v":3},{"$f":"'BP Financier'!$D$33*(('BP Financier'!$C$19+'BP Financier'!$D$19)/('BP Financier'!$C$16+'BP Financier'!$C$19+'BP Financier'!$D$16+'BP Financier'!$D$19))*V3117","v":{"v":76585.89019964811,"d":"76,586"}},{"v":42461.48847365969,"d":"42,461"},{"$f":"'BP Financier'!$D$44*(('BP Financier'!$C$19+'BP Financier'!$D$19)/('BP Financier'!$C$16+'BP Financier'!$C$19+'BP Financier'!$D$16+'BP Financier'!$D$19+'BP Financier'!$C$22+'BP Financier'!$D$22))*$V3117*X3117/(1-$W3117)","v":{"v":5404.732358461607,"d":"5,405"}},{"$f":"'BP Financier'!$D$44*(('BP Financier'!$C$19+'BP Financier'!$D$19)/('BP Financier'!$C$16+'BP Financier'!$C$19+'BP Financier'!$D$16+'BP Financier'!$D$19+'BP Financier'!$C$22+'BP Financier'!$D$22))*$V3117*Y3117/(1-$W3117)","v":{"v":3613.108372231239,"d":"3,613"}},{"$f":"'BP Financier'!$D$44*(('BP Financier'!$C$19+'BP Financier'!$D$19)/('BP Financier'!$C$16+'BP Financier'!$C$19+'BP Financier'!$D$16+'BP Financier'!$D$19+'BP Financier'!$C$22+'BP Financier'!$D$22))*$V3117*Z3117/(1-$W3117)","v":{"v":28277.79858266929,"d":"28,278"}},{"$f":"'BP Financier'!$D$44*(('BP Financier'!$C$19+'BP Financier'!$D$19)/('BP Financier'!$C$16+'BP Financier'!$C$19+'BP Financier'!$D$16+'BP Financier'!$D$19+'BP Financier'!$C$22+'BP Financier'!$D$22))*$V3117*AA3117/(1-$W3117)","v":{"v":3493.6667731492153,"d":"3,494"}},{"$f":"'BP Financier'!$D$44*(('BP Financier'!$C$19+'BP Financier'!$D$19)/('BP Financier'!$C$16+'BP Financier'!$C$19+'BP Financier'!$D$16+'BP Financier'!$D$19+'BP Financier'!$C$22+'BP Financier'!$D$22))*$V3117*AB3117/(1-$W3117)","v":{"v":1672.182387148342,"d":"1,672"}},null,{"v":0.0075,"d":"0.75%"},{"$f":"Actif!$E$28/100","v":{"v":0.28900000000000003,"d":"28.90%"}},{"$f":"Actif!$E$30/100","v":{"v":0.09050000000000001,"d":"9.05%"}},{"$f":"Actif!$E$31/100","v":{"v":0.0605,"d":"6.05%"}},{"$f":"Actif!$E$32/100","v":{"v":0.47350000000000003,"d":"47.35%"}},{"$f":"Actif!$E$33/100","v":{"v":0.0585,"d":"5.85%"}},{"$f":"Actif!$E$29/100","v":{"v":0.027999999999999997,"d":"2.80%"}}]
[null,"#20",27,2028,"H","A_PER",{"v":0.44999999999999996,"d":"0.45"},{"v":0.38999999999999996,"d":"0.39"},0.6,0.6,85,0,{"$f":"ROUND(Primes!$N$7*V3118,0)","v":3},{"$f":"'BP Financier'!$D$33*(('BP Financier'!$C$19+'BP Financier'!$D$19)/('BP Financier'!$C$16+'BP Financier'!$C$19+'BP Financier'!$D$16+'BP Financier'!$D$19))*V3118","v":{"v":76585.89019964811,"d":"76,586"}},{"v":42461.48847365969,"d":"42,461"},{"$f":"'BP Financier'!$D$44*(('BP Financier'!$C$19+'BP Financier'!$D$19)/('BP Financier'!$C$16+'BP Financier'!$C$19+'BP Financier'!$D$16+'BP Financier'!$D$19+'BP Financier'!$C$22+'BP Financier'!$D$22))*$V3118*X3118/(1-$W3118)","v":{"v":5404.732358461607,"d":"5,405"}},{"$f":"'BP Financier'!$D$44*(('BP Financier'!$C$19+'BP Financier'!$D$19)/('BP Financier'!$C$16+'BP Financier'!$C$19+'BP Financier'!$D$16+'BP Financier'!$D$19+'BP Financier'!$C$22+'BP Financier'!$D$22))*$V3118*Y3118/(1-$W3118)","v":{"v":3613.108372231239,"d":"3,613"}},{"$f":"'BP Financier'!$D$44*(('BP Financier'!$C$19+'BP Financier'!$D$19)/('BP Financier'!$C$16+'BP Financier'!$C$19+'BP Financier'!$D$16+'BP Financier'!$D$19+'BP Financier'!$C$22+'BP Financier'!$D$22))*$V3118*Z3118/(1-$W3118)","v":{"v":28277.79858266929,"d":"28,278"}},{"$f":"'BP Financier'!$D$44*(('BP Financier'!$C$19+'BP Financier'!$D$19)/('BP Financier'!$C$16+'BP Financier'!$C$19+'BP Financier'!$D$16+'BP Financier'!$D$19+'BP Financier'!$C$22+'BP Financier'!$D$22))*$V3118*AA3118/(1-$W3118)","v":{"v":3493.6667731492153,"d":"3,494"}},{"$f":"'BP Financier'!$D$44*(('BP Financier'!$C$19+'BP Financier'!$D$19)/('BP Financier'!$C$16+'BP Financier'!$C$19+'BP Financier'!$D$16+'BP Financier'!$D$19+'BP Financier'!$C$22+'BP Financier'!$D$22))*$V3118*AB3118/(1-$W3118)","v":{"v":1672.182387148342,"d":"1,672"}},null,{"v":0.0075,"d":"0.75%"},{"$f":"Actif!$E$28/100","v":{"v":0.28900000000000003,"d":"28.90%"}},{"$f":"Actif!$E$30/100","v":{"v":0.09050000000000001,"d":"9.05%"}},{"$f":"Actif!$E$31/100","v":{"v":0.0605,"d":"6.05%"}},{"$f":"Actif!$E$32/100","v":{"v":0.47350000000000003,"d":"47.35%"}},{"$f":"Actif!$E$33/100","v":{"v":0.0585,"d":"5.85%"}},{"$f":"Actif!$E$29/100","v":{"v":0.027999999999999997,"d":"2.80%"}}]
[null,"#21",28,2026,"H","A_PER",{"v":0.44999999999999996,"d":"0.45"},{"v":0.38999999999999996,"d":"0.39"},0.6,0.6,85,0,{"$f":"ROUND(Primes!$N$7*V3119,0)","v":3},{"$f":"'BP Financier'!$D$33*(('BP Financier'!$C$19+'BP Financier'!$D$19)/('BP Financier'!$C$16+'BP Financier'!$C$19+'BP Financier'!$D$16+'BP Financier'!$D$19))*V3119","v":{"v":76585.89019964811,"d":"76,586"}},{"v":42461.48847365969,"d":"42,461"},{"$f":"'BP Financier'!$D$44*(('BP Financier'!$C$19+'BP Financier'!$D$19)/('BP Financier'!$C$16+'BP Financier'!$C$19+'BP Financier'!$D$16+'BP Financier'!$D$19+'BP Financier'!$C$22+'BP Financier'!$D$22))*$V3119*X3119/(1-$W3119)","v":{"v":5404.732358461607,"d":"5,405"}},{"$f":"'BP Financier'!$D$44*(('BP Financier'!$C$19+'BP Financier'!$D$19)/('BP Financier'!$C$16+'BP Financier'!$C$19+'BP Financier'!$D$16+'BP Financier'!$D$19+'BP Financier'!$C$22+'BP Financier'!$D$22))*$V3119*Y3119/(1-$W3119)","v":{"v":3613.108372231239,"d":"3,613"}},{"$f":"'BP Financier'!$D$44*(('BP Financier'!$C$19+'BP Financier'!$D$19)/('BP Financier'!$C$16+'BP Financier'!$C$19+'BP Financier'!$D$16+'BP Financier'!$D$19+'BP Financier'!$C$22+'BP Financier'!$D$22))*$V3119*Z3119/(1-$W3119)","v":{"v":28277.79858266929,"d":"28,278"}},{"$f":"'BP Financier'!$D$44*(('BP Financier'!$C$19+'BP Financier'!$D$19)/('BP Financier'!$C$16+'BP Financier'!$C$19+'BP Financier'!$D$16+'BP Financier'!$D$19+'BP Financier'!$C$22+'BP Financier'!$D$22))*$V3119*AA3119/(1-$W3119)","v":{"v":3493.6667731492153,"d":"3,494"}},{"$f":"'BP Financier'!$D$44*(('BP Financier'!$C$19+'BP Financier'!$D$19)/('BP Financier'!$C$16+'BP Financier'!$C$19+'BP Financier'!$D$16+'BP Financier'!$D$19+'BP Financier'!$C$22+'BP Financier'!$D$22))*$V3119*AB3119/(1-$W3119)","v":{"v":1672.182387148342,"d":"1,672"}},null,{"v":0.0075,"d":"0.75%"},{"$f":"Actif!$E$28/100","v":{"v":0.28900000000000003,"d":"28.90%"}},{"$f":"Actif!$E$30/100","v":{"v":0.09050000000000001,"d":"9.05%"}},{"$f":"Actif!$E$31/100","v":{"v":0.0605,"d":"6.05%"}},{"$f":"Actif!$E$32/100","v":{"v":0.47350000000000003,"d":"47.35%"}},{"$f":"Actif!$E$33/100","v":{"v":0.0585,"d":"5.85%"}},{"$f":"Actif!$E$29/100","v":{"v":0.027999999999999997,"d":"2.80%"}}]
[null,"#22",28,2028,"H","A_PER",{"v":0.44999999999999996,"d":"0.45"},{"v":0.38999999999999996,"d":"0.39"},0.6,0.6,85,0,{"$f":"ROUND(Primes!$N$7*V3120,0)","v":3},{"$f":"'BP Financier'!$D$33*(('BP Financier'!$C$19+'BP Financier'!$D$19)/('BP Financier'!$C$16+'BP Financier'!$C$19+'BP Financier'!$D$16+'BP Financier'!$D$19))*V3120","v":{"v":76585.89019964811,"d":"76,586"}},{"v":42461.48847365969,"d":"42,461"},{"$f":"'BP Financier'!$D$44*(('BP Financier'!$C$19+'BP Financier'!$D$19)/('BP Financier'!$C$16+'BP Financier'!$C$19+'BP Financier'!$D$16+'BP Financier'!$D$19+'BP Financier'!$C$22+'BP Financier'!$D$22))*$V3120*X3120/(1-$W3120)","v":{"v":5404.732358461607,"d":"5,405"}},{"$f":"'BP Financier'!$D$44*(('BP Financier'!$C$19+'BP Financier'!$D$19)/('BP Financier'!$C$16+'BP Financier'!$C$19+'BP Financier'!$D$16+'BP Financier'!$D$19+'BP Financier'!$C$22+'BP Financier'!$D$22))*$V3120*Y3120/(1-$W3120)","v":{"v":3613.108372231239,"d":"3,613"}},{"$f":"'BP Financier'!$D$44*(('BP Financier'!$C$19+'BP Financier'!$D$19)/('BP Financier'!$C$16+'BP Financier'!$C$19+'BP Financier'!$D$16+'BP Financier'!$D$19+'BP Financier'!$C$22+'BP Financier'!$D$22))*$V3120*Z3120/(1-$W3120)","v":{"v":28277.79858266929,"d":"28,278"}},{"$f":"'BP Financier'!$D$44*(('BP Financier'!$C$19+'BP Financier'!$D$19)/('BP Financier'!$C$16+'BP Financier'!$C$19+'BP Financier'!$D$16+'BP Financier'!$D$19+'BP Financier'!$C$22+'BP Financier'!$D$22))*$V3120*AA3120/(1-$W3120)","v":{"v":3493.6667731492153,"d":"3,494"}},{"$f":"'BP Financier'!$D$44*(('BP Financier'!$C$19+'BP Financier'!$D$19)/('BP Financier'!$C$16+'BP Financier'!$C$19+'BP Financier'!$D$16+'BP Financier'!$D$19+'BP Financier'!$C$22+'BP Financier'!$D$22))*$V3120*AB3120/(1-$W3120)","v":{"v":1672.182387148342,"d":"1,672"}},null,{"v":0.0075,"d":"0.75%"},{"$f":"Actif!$E$28/100","v":{"v":0.28900000000000003,"d":"28.90%"}},{"$f":"Actif!$E$30/100","v":{"v":0.09050000000000001,"d":"9.05%"}},{"$f":"Actif!$E$31/100","v":{"v":0.0605,"d":"6.05%"}},{"$f":"Actif!$E$32/100","v":{"v":0.47350000000000003,"d":"47.35%"}},{"$f":"Actif!$E$33/100","v":{"v":0.0585,"d":"5.85%"}},{"$f":"Actif!$E$29/100","v":{"v":0.027999999999999997,"d":"2.80%"}}]
[null,"#23",29,2026,"F","A_PER",{"v":0.44999999999999996,"d":"0.45"},{"v":0.38999999999999996,"d":"0.39"},0.6,0.6,85,0,{"$f":"ROUND(Primes!$N$7*V3121,0)","v":3},{"$f":"'BP Financier'!$D$33*(('BP Financier'!$C$19+'BP Financier'!$D$19)/('BP Financier'!$C$16+'BP Financier'!$C$19+'BP Financier'!$D$16+'BP Financier'!$D$19))*V3121","v":{"v":76585.89019964811,"d":"76,586"}},{"v":42461.48847365969,"d":"42,461"},{"$f":"'BP Financier'!$D$44*(('BP Financier'!$C$19+'BP Financier'!$D$19)/('BP Financier'!$C$16+'BP Financier'!$C$19+'BP Financier'!$D$16+'BP Financier'!$D$19+'BP Financier'!$C$22+'BP Financier'!$D$22))*$V3121*X3121/(1-$W3121)","v":{"v":5404.732358461607,"d":"5,405"}},{"$f":"'BP Financier'!$D$44*(('BP Financier'!$C$19+'BP Financier'!$D$19)/('BP Financier'!$C$16+'BP Financier'!$C$19+'BP Financier'!$D$16+'BP Financier'!$D$19+'BP Financier'!$C$22+'BP Financier'!$D$22))*$V3121*Y3121/(1-$W3121)","v":{"v":3613.108372231239,"d":"3,613"}},{"$f":"'BP Financier'!$D$44*(('BP Financier'!$C$19+'BP Financier'!$D$19)/('BP Financier'!$C$16+'BP Financier'!$C$19+'BP Financier'!$D$16+'BP Financier'!$D$19+'BP Financier'!$C$22+'BP Financier'!$D$22))*$V3121*Z3121/(1-$W3121)","v":{"v":28277.79858266929,"d":"28,278"}},{"$f":"'BP Financier'!$D$44*(('BP Financier'!$C$19+'BP Financier'!$D$19)/('BP Financier'!$C$16+'BP Financier'!$C$19+'BP Financier'!$D$16+'BP Financier'!$D$19+'BP Financier'!$C$22+'BP Financier'!$D$22))*$V3121*AA3121/(1-$W3121)","v":{"v":3493.6667731492153,"d":"3,494"}},{"$f":"'BP Financier'!$D$44*(('BP Financier'!$C$19+'BP Financier'!$D$19)/('BP Financier'!$C$16+'BP Financier'!$C$19+'BP Financier'!$D$16+'BP Financier'!$D$19+'BP Financier'!$C$22+'BP Financier'!$D$22))*$V3121*AB3121/(1-$W3121)","v":{"v":1672.182387148342,"d":"1,672"}},null,{"v":0.0075,"d":"0.75%"},{"$f":"Actif!$E$28/100","v":{"v":0.28900000000000003,"d":"28.90%"}},{"$f":"Actif!$E$30/100","v":{"v":0.09050000000000001,"d":"9.05%"}},{"$f":"Actif!$E$31/100","v":{"v":0.0605,"d":"6.05%"}},{"$f":"Actif!$E$32/100","v":{"v":0.47350000000000003,"d":"47.35%"}},{"$f":"Actif!$E$33/100","v":{"v":0.0585,"d":"5.85%"}},{"$f":"Actif!$E$29/100","v":{"v":0.027999999999999997,"d":"2.80%"}}]
[null,"#24",29,2028,"F","A_PER",{"v":0.44999999999999996,"d":"0.45"},{"v":0.38999999999999996,"d":"0.39"},0.6,0.6,85,0,{"$f":"ROUND(Primes!$N$7*V3122,0)","v":3},{"$f":"'BP Financier'!$D$33*(('BP Financier'!$C$19+'BP Financier'!$D$19)/('BP Financier'!$C$16+'BP Financier'!$C$19+'BP Financier'!$D$16+'BP Financier'!$D$19))*V3122","v":{"v":76585.89019964811,"d":"76,586"}},{"v":42461.48847365969,"d":"42,461"},{"$f":"'BP Financier'!$D$44*(('BP Financier'!$C$19+'BP Financier'!$D$19)/('BP Financier'!$C$16+'BP Financier'!$C$19+'BP Financier'!$D$16+'BP Financier'!$D$19+'BP Financier'!$C$22+'BP Financier'!$D$22))*$V3122*X3122/(1-$W3122)","v":{"v":5404.732358461607,"d":"5,405"}},{"$f":"'BP Financier'!$D$44*(('BP Financier'!$C$19+'BP Financier'!$D$19)/('BP Financier'!$C$16+'BP Financier'!$C$19+'BP Financier'!$D$16+'BP Financier'!$D$19+'BP Financier'!$C$22+'BP Financier'!$D$22))*$V3122*Y3122/(1-$W3122)","v":{"v":3613.108372231239,"d":"3,613"}},{"$f":"'BP Financier'!$D$44*(('BP Financier'!$C$19+'BP Financier'!$D$19)/('BP Financier'!$C$16+'BP Financier'!$C$19+'BP Financier'!$D$16+'BP Financier'!$D$19+'BP Financier'!$C$22+'BP Financier'!$D$22))*$V3122*Z3122/(1-$W3122)","v":{"v":28277.79858266929,"d":"28,278"}},{"$f":"'BP Financier'!$D$44*(('BP Financier'!$C$19+'BP Financier'!$D$19)/('BP Financier'!$C$16+'BP Financier'!$C$19+'BP Financier'!$D$16+'BP Financier'!$D$19+'BP Financier'!$C$22+'BP Financier'!$D$22))*$V3122*AA3122/(1-$W3122)","v":{"v":3493.6667731492153,"d":"3,494"}},{"$f":"'BP Financier'!$D$44*(('BP Financier'!$C$19+'BP Financier'!$D$19)/('BP Financier'!$C$16+'BP Financier'!$C$19+'BP Financier'!$D$16+'BP Financier'!$D$19+'BP Financier'!$C$22+'BP Financier'!$D$22))*$V3122*AB3122/(1-$W3122)","v":{"v":1672.182387148342,"d":"1,672"}},null,{"v":0.0075,"d":"0.75%"},{"$f":"Actif!$E$28/100","v":{"v":0.28900000000000003,"d":"28.90%"}},{"$f":"Actif!$E$30/100","v":{"v":0.09050000000000001,"d":"9.05%"}},{"$f":"Actif!$E$31/100","v":{"v":0.0605,"d":"6.05%"}},{"$f":"Actif!$E$32/100","v":{"v":0.47350000000000003,"d":"47.35%"}},{"$f":"Actif!$E$33/100","v":{"v":0.0585,"d":"5.85%"}},{"$f":"Actif!$E$29/100","v":{"v":0.027999999999999997,"d":"2.80%"}}]
[null,"#25",30,2026,"H","A_PER",{"v":0.44999999999999996,"d":"0.45"},{"v":0.38999999999999996,"d":"0.39"},0.6,0.6,85,0,{"$f":"ROUND(Primes!$N$7*V3123,0)","v":3},{"$f":"'BP Financier'!$D$33*(('BP Financier'!$C$19+'BP Financier'!$D$19)/('BP Financier'!$C$16+'BP Financier'!$C$19+'BP Financier'!$D$16+'BP Financier'!$D$19))*V3123","v":{"v":76585.89019964811,"d":"76,586"}},{"v":42461.48847365969,"d":"42,461"},{"$f":"'BP Financier'!$D$44*(('BP Financier'!$C$19+'BP Financier'!$D$19)/('BP Financier'!$C$16+'BP Financier'!$C$19+'BP Financier'!$D$16+'BP Financier'!$D$19+'BP Financier'!$C$22+'BP Financier'!$D$22))*$V3123*X3123/(1-$W3123)","v":{"v":5404.732358461607,"d":"5,405"}},{"$f":"'BP Financier'!$D$44*(('BP Financier'!$C$19+'BP Financier'!$D$19)/('BP Financier'!$C$16+'BP Financier'!$C$19+'BP Financier'!$D$16+'BP Financier'!$D$19+'BP Financier'!$C$22+'BP Financier'!$D$22))*$V3123*Y3123/(1-$W3123)","v":{"v":3613.108372231239,"d":"3,613"}},{"$f":"'BP Financier'!$D$44*(('BP Financier'!$C$19+'BP Financier'!$D$19)/('BP Financier'!$C$16+'BP Financier'!$C$19+'BP Financier'!$D$16+'BP Financier'!$D$19+'BP Financier'!$C$22+'BP Financier'!$D$22))*$V3123*Z3123/(1-$W3123)","v":{"v":28277.79858266929,"d":"28,278"}},{"$f":"'BP Financier'!$D$44*(('BP Financier'!$C$19+'BP Financier'!$D$19)/('BP Financier'!$C$16+'BP Financier'!$C$19+'BP Financier'!$D$16+'BP Financier'!$D$19+'BP Financier'!$C$22+'BP Financier'!$D$22))*$V3123*AA3123/(1-$W3123)","v":{"v":3493.6667731492153,"d":"3,494"}},{"$f":"'BP Financier'!$D$44*(('BP Financier'!$C$19+'BP Financier'!$D$19)/('BP Financier'!$C$16+'BP Financier'!$C$19+'BP Financier'!$D$16+'BP Financier'!$D$19+'BP Financier'!$C$22+'BP Financier'!$D$22))*$V3123*AB3123/(1-$W3123)","v":{"v":1672.182387148342,"d":"1,672"}},null,{"v":0.0075,"d":"0.75%"},{"$f":"Actif!$E$28/100","v":{"v":0.28900000000000003,"d":"28.90%"}},{"$f":"Actif!$E$30/100","v":{"v":0.09050000000000001,"d":"9.05%"}},{"$f":"Actif!$E$31/100","v":{"v":0.0605,"d":"6.05%"}},{"$f":"Actif!$E$32/100","v":{"v":0.47350000000000003,"d":"47.35%"}},{"$f":"Actif!$E$33/100","v":{"v":0.0585,"d":"5.85%"}},{"$f":"Actif!$E$29/100","v":{"v":0.027999999999999997,"d":"2.80%"}}]
[null,"#26",30,2028,"H","A_PER",{"v":0.44999999999999996,"d":"0.45"},{"v":0.38999999999999996,"d":"0.39"},0.6,0.6,85,0,{"$f":"ROUND(Primes!$N$7*V3124,0)","v":3},{"$f":"'BP Financier'!$D$33*(('BP Financier'!$C$19+'BP Financier'!$D$19)/('BP Financier'!$C$16+'BP Financier'!$C$19+'BP Financier'!$D$16+'BP Financier'!$D$19))*V3124","v":{"v":76585.89019964811,"d":"76,586"}},{"v":42461.48847365969,"d":"42,461"},{"$f":"'BP Financier'!$D$44*(('BP Financier'!$C$19+'BP Financier'!$D$19)/('BP Financier'!$C$16+'BP Financier'!$C$19+'BP Financier'!$D$16+'BP Financier'!$D$19+'BP Financier'!$C$22+'BP Financier'!$D$22))*$V3124*X3124/(1-$W3124)","v":{"v":5404.732358461607,"d":"5,405"}},{"$f":"'BP Financier'!$D$44*(('BP Financier'!$C$19+'BP Financier'!$D$19)/('BP Financier'!$C$16+'BP Financier'!$C$19+'BP Financier'!$D$16+'BP Financier'!$D$19+'BP Financier'!$C$22+'BP Financier'!$D$22))*$V3124*Y3124/(1-$W3124)","v":{"v":3613.108372231239,"d":"3,613"}},{"$f":"'BP Financier'!$D$44*(('BP Financier'!$C$19+'BP Financier'!$D$19)/('BP Financier'!$C$16+'BP Financier'!$C$19+'BP Financier'!$D$16+'BP Financier'!$D$19+'BP Financier'!$C$22+'BP Financier'!$D$22))*$V3124*Z3124/(1-$W3124)","v":{"v":28277.79858266929,"d":"28,278"}},{"$f":"'BP Financier'!$D$44*(('BP Financier'!$C$19+'BP Financier'!$D$19)/('BP Financier'!$C$16+'BP Financier'!$C$19+'BP Financier'!$D$16+'BP Financier'!$D$19+'BP Financier'!$C$22+'BP Financier'!$D$22))*$V3124*AA3124/(1-$W3124)","v":{"v":3493.6667731492153,"d":"3,494"}},{"$f":"'BP Financier'!$D$44*(('BP Financier'!$C$19+'BP Financier'!$D$19)/('BP Financier'!$C$16+'BP Financier'!$C$19+'BP Financier'!$D$16+'BP Financier'!$D$19+'BP Financier'!$C$22+'BP Financier'!$D$22))*$V3124*AB3124/(1-$W3124)","v":{"v":1672.182387148342,"d":"1,672"}},null,{"v":0.0075,"d":"0.75%"},{"$f":"Actif!$E$28/100","v":{"v":0.28900000000000003,"d":"28.90%"}},{"$f":"Actif!$E$30/100","v":{"v":0.09050000000000001,"d":"9.05%"}},{"$f":"Actif!$E$31/100","v":{"v":0.0605,"d":"6.05%"}},{"$f":"Actif!$E$32/100","v":{"v":0.47350000000000003,"d":"47.35%"}},{"$f":"Actif!$E$33/100","v":{"v":0.0585,"d":"5.85%"}},{"$f":"Actif!$E$29/100","v":{"v":0.027999999999999997,"d":"2.80%"}}]
[null,"#27",31,2026,"H","A_PER",{"v":0.44999999999999996,"d":"0.45"},{"v":0.38999999999999996,"d":"0.39"},0.6,0.6,85,0,{"$f":"ROUND(Primes!$N$7*V3125,0)","v":3},{"$f":"'BP Financier'!$D$33*(('BP Financier'!$C$19+'BP Financier'!$D$19)/('BP Financier'!$C$16+'BP Financier'!$C$19+'BP Financier'!$D$16+'BP Financier'!$D$19))*V3125","v":{"v":76585.89019964811,"d":"76,586"}},{"v":42461.48847365969,"d":"42,461"},{"$f":"'BP Financier'!$D$44*(('BP Financier'!$C$19+'BP Financier'!$D$19)/('BP Financier'!$C$16+'BP Financier'!$C$19+'BP Financier'!$D$16+'BP Financier'!$D$19+'BP Financier'!$C$22+'BP Financier'!$D$22))*$V3125*X3125/(1-$W3125)","v":{"v":5404.732358461607,"d":"5,405"}},{"$f":"'BP Financier'!$D$44*(('BP Financier'!$C$19+'BP Financier'!$D$19)/('BP Financier'!$C$16+'BP Financier'!$C$19+'BP Financier'!$D$16+'BP Financier'!$D$19+'BP Financier'!$C$22+'BP Financier'!$D$22))*$V3125*Y3125/(1-$W3125)","v":{"v":3613.108372231239,"d":"3,613"}},{"$f":"'BP Financier'!$D$44*(('BP Financier'!$C$19+'BP Financier'!$D$19)/('BP Financier'!$C$16+'BP Financier'!$C$19+'BP Financier'!$D$16+'BP Financier'!$D$19+'BP Financier'!$C$22+'BP Financier'!$D$22))*$V3125*Z3125/(1-$W3125)","v":{"v":28277.79858266929,"d":"28,278"}},{"$f":"'BP Financier'!$D$44*(('BP Financier'!$C$19+'BP Financier'!$D$19)/('BP Financier'!$C$16+'BP Financier'!$C$19+'BP Financier'!$D$16+'BP Financier'!$D$19+'BP Financier'!$C$22+'BP Financier'!$D$22))*$V3125*AA3125/(1-$W3125)","v":{"v":3493.6667731492153,"d":"3,494"}},{"$f":"'BP Financier'!$D$44*(('BP Financier'!$C$19+'BP Financier'!$D$19)/('BP Financier'!$C$16+'BP Financier'!$C$19+'BP Financier'!$D$16+'BP Financier'!$D$19+'BP Financier'!$C$22+'BP Financier'!$D$22))*$V3125*AB3125/(1-$W3125)","v":{"v":1672.182387148342,"d":"1,672"}},null,{"v":0.0075,"d":"0.75%"},{"$f":"Actif!$E$28/100","v":{"v":0.28900000000000003,"d":"28.90%"}},{"$f":"Actif!$E$30/100","v":{"v":0.09050000000000001,"d":"9.05%"}},{"$f":"Actif!$E$31/100","v":{"v":0.0605,"d":"6.05%"}},{"$f":"Actif!$E$32/100","v":{"v":0.47350000000000003,"d":"47.35%"}},{"$f":"Actif!$E$33/100","v":{"v":0.0585,"d":"5.85%"}},{"$f":"Actif!$E$29/100","v":{"v":0.027999999999999997,"d":"2.80%"}}]
[null,"#28",31,2028,"H","A_PER",{"v":0.44999999999999996,"d":"0.45"},{"v":0.38999999999999996,"d":"0.39"},0.6,0.6,85,0,{"$f":"ROUND(Primes!$N$7*V3126,0)","v":3},{"$f":"'BP Financier'!$D$33*(('BP Financier'!$C$19+'BP Financier'!$D$19)/('BP Financier'!$C$16+'BP Financier'!$C$19+'BP Financier'!$D$16+'BP Financier'!$D$19))*V3126","v":{"v":76585.89019964811,"d":"76,586"}},{"v":42461.48847365969,"d":"42,461"},{"$f":"'BP Financier'!$D$44*(('BP Financier'!$C$19+'BP Financier'!$D$19)/('BP Financier'!$C$16+'BP Financier'!$C$19+'BP Financier'!$D$16+'BP Financier'!$D$19+'BP Financier'!$C$22+'BP Financier'!$D$22))*$V3126*X3126/(1-$W3126)","v":{"v":5404.732358461607,"d":"5,405"}},{"$f":"'BP Financier'!$D$44*(('BP Financier'!$C$19+'BP Financier'!$D$19)/('BP Financier'!$C$16+'BP Financier'!$C$19+'BP Financier'!$D$16+'BP Financier'!$D$19+'BP Financier'!$C$22+'BP Financier'!$D$22))*$V3126*Y3126/(1-$W3126)","v":{"v":3613.108372231239,"d":"3,613"}},{"$f":"'BP Financier'!$D$44*(('BP Financier'!$C$19+'BP Financier'!$D$19)/('BP Financier'!$C$16+'BP Financier'!$C$19+'BP Financier'!$D$16+'BP Financier'!$D$19+'BP Financier'!$C$22+'BP Financier'!$D$22))*$V3126*Z3126/(1-$W3126)","v":{"v":28277.79858266929,"d":"28,278"}},{"$f":"'BP Financier'!$D$44*(('BP Financier'!$C$19+'BP Financier'!$D$19)/('BP Financier'!$C$16+'BP Financier'!$C$19+'BP Financier'!$D$16+'BP Financier'!$D$19+'BP Financier'!$C$22+'BP Financier'!$D$22))*$V3126*AA3126/(1-$W3126)","v":{"v":3493.6667731492153,"d":"3,494"}},{"$f":"'BP Financier'!$D$44*(('BP Financier'!$C$19+'BP Financier'!$D$19)/('BP Financier'!$C$16+'BP Financier'!$C$19+'BP Financier'!$D$16+'BP Financier'!$D$19+'BP Financier'!$C$22+'BP Financier'!$D$22))*$V3126*AB3126/(1-$W3126)","v":{"v":1672.182387148342,"d":"1,672"}},null,{"v":0.0075,"d":"0.75%"},{"$f":"Actif!$E$28/100","v":{"v":0.28900000000000003,"d":"28.90%"}},{"$f":"Actif!$E$30/100","v":{"v":0.09050000000000001,"d":"9.05%"}},{"$f":"Actif!$E$31/100","v":{"v":0.0605,"d":"6.05%"}},{"$f":"Actif!$E$32/100","v":{"v":0.47350000000000003,"d":"47.35%"}},{"$f":"Actif!$E$33/100","v":{"v":0.0585,"d":"5.85%"}},{"$f":"Actif!$E$29/100","v":{"v":0.027999999999999997,"d":"2.80%"}}]
[null,"#29",32,2026,"F","A_PER",{"v":0.44999999999999996,"d":"0.45"},{"v":0.38999999999999996,"d":"0.39"},0.6,0.6,85,0,{"$f":"ROUND(Primes!$N$7*V3127,0)","v":3},{"$f":"'BP Financier'!$D$33*(('BP Financier'!$C$19+'BP Financier'!$D$19)/('BP Financier'!$C$16+'BP Financier'!$C$19+'BP Financier'!$D$16+'BP Financier'!$D$19))*V3127","v":{"v":76585.89019964811,"d":"76,586"}},{"v":42461.48847365969,"d":"42,461"},{"$f":"'BP Financier'!$D$44*(('BP Financier'!$C$19+'BP Financier'!$D$19)/('BP Financier'!$C$16+'BP Financier'!$C$19+'BP Financier'!$D$16+'BP Financier'!$D$19+'BP Financier'!$C$22+'BP Financier'!$D$22))*$V3127*X3127/(1-$W3127)","v":{"v":5404.732358461607,"d":"5,405"}},{"$f":"'BP Financier'!$D$44*(('BP Financier'!$C$19+'BP Financier'!$D$19)/('BP Financier'!$C$16+'BP Financier'!$C$19+'BP Financier'!$D$16+'BP Financier'!$D$19+'BP Financier'!$C$22+'BP Financier'!$D$22))*$V3127*Y3127/(1-$W3127)","v":{"v":3613.108372231239,"d":"3,613"}},{"$f":"'BP Financier'!$D$44*(('BP Financier'!$C$19+'BP Financier'!$D$19)/('BP Financier'!$C$16+'BP Financier'!$C$19+'BP Financier'!$D$16+'BP Financier'!$D$19+'BP Financier'!$C$22+'BP Financier'!$D$22))*$V3127*Z3127/(1-$W3127)","v":{"v":28277.79858266929,"d":"28,278"}},{"$f":"'BP Financier'!$D$44*(('BP Financier'!$C$19+'BP Financier'!$D$19)/('BP Financier'!$C$16+'BP Financier'!$C$19+'BP Financier'!$D$16+'BP Financier'!$D$19+'BP Financier'!$C$22+'BP Financier'!$D$22))*$V3127*AA3127/(1-$W3127)","v":{"v":3493.6667731492153,"d":"3,494"}},{"$f":"'BP Financier'!$D$44*(('BP Financier'!$C$19+'BP Financier'!$D$19)/('BP Financier'!$C$16+'BP Financier'!$C$19+'BP Financier'!$D$16+'BP Financier'!$D$19+'BP Financier'!$C$22+'BP Financier'!$D$22))*$V3127*AB3127/(1-$W3127)","v":{"v":1672.182387148342,"d":"1,672"}},null,{"v":0.0075,"d":"0.75%"},{"$f":"Actif!$E$28/100","v":{"v":0.28900000000000003,"d":"28.90%"}},{"$f":"Actif!$E$30/100","v":{"v":0.09050000000000001,"d":"9.05%"}},{"$f":"Actif!$E$31/100","v":{"v":0.0605,"d":"6.05%"}},{"$f":"Actif!$E$32/100","v":{"v":0.47350000000000003,"d":"47.35%"}},{"$f":"Actif!$E$33/100","v":{"v":0.0585,"d":"5.85%"}},{"$f":"Actif!$E$29/100","v":{"v":0.027999999999999997,"d":"2.80%"}}]
[null,"#30",32,2028,"F","A_PER",{"v":0.44999999999999996,"d":"0.45"},{"v":0.38999999999999996,"d":"0.39"},0.6,0.6,85,0,{"$f":"ROUND(Primes!$N$7*V3128,0)","v":3},{"$f":"'BP Financier'!$D$33*(('BP Financier'!$C$19+'BP Financier'!$D$19)/('BP Financier'!$C$16+'BP Financier'!$C$19+'BP Financier'!$D$16+'BP Financier'!$D$19))*V3128","v":{"v":76585.89019964811,"d":"76,586"}},{"v":42461.48847365969,"d":"42,461"},{"$f":"'BP Financier'!$D$44*(('BP Financier'!$C$19+'BP Financier'!$D$19)/('BP Financier'!$C$16+'BP Financier'!$C$19+'BP Financier'!$D$16+'BP Financier'!$D$19+'BP Financier'!$C$22+'BP Financier'!$D$22))*$V3128*X3128/(1-$W3128)","v":{"v":5404.732358461607,"d":"5,405"}},{"$f":"'BP Financier'!$D$44*(('BP Financier'!$C$19+'BP Financier'!$D$19)/('BP Financier'!$C$16+'BP Financier'!$C$19+'BP Financier'!$D$16+'BP Financier'!$D$19+'BP Financier'!$C$22+'BP Financier'!$D$22))*$V3128*Y3128/(1-$W3128)","v":{"v":3613.108372231239,"d":"3,613"}},{"$f":"'BP Financier'!$D$44*(('BP Financier'!$C$19+'BP Financier'!$D$19)/('BP Financier'!$C$16+'BP Financier'!$C$19+'BP Financier'!$D$16+'BP Financier'!$D$19+'BP Financier'!$C$22+'BP Financier'!$D$22))*$V3128*Z3128/(1-$W3128)","v":{"v":28277.79858266929,"d":"28,278"}},{"$f":"'BP Financier'!$D$44*(('BP Financier'!$C$19+'BP Financier'!$D$19)/('BP Financier'!$C$16+'BP Financier'!$C$19+'BP Financier'!$D$16+'BP Financier'!$D$19+'BP Financier'!$C$22+'BP Financier'!$D$22))*$V3128*AA3128/(1-$W3128)","v":{"v":3493.6667731492153,"d":"3,494"}},{"$f":"'BP Financier'!$D$44*(('BP Financier'!$C$19+'BP Financier'!$D$19)/('BP Financier'!$C$16+'BP Financier'!$C$19+'BP Financier'!$D$16+'BP Financier'!$D$19+'BP Financier'!$C$22+'BP Financier'!$D$22))*$V3128*AB3128/(1-$W3128)","v":{"v":1672.182387148342,"d":"1,672"}},null,{"v":0.0075,"d":"0.75%"},{"$f":"Actif!$E$28/100","v":{"v":0.28900000000000003,"d":"28.90%"}},{"$f":"Actif!$E$30/100","v":{"v":0.09050000000000001,"d":"9.05%"}},{"$f":"Actif!$E$31/100","v":{"v":0.0605,"d":"6.05%"}},{"$f":"Actif!$E$32/100","v":{"v":0.47350000000000003,"d":"47.35%"}},{"$f":"Actif!$E$33/100","v":{"v":0.0585,"d":"5.85%"}},{"$f":"Actif!$E$29/100","v":{"v":0.027999999999999997,"d":"2.80%"}}]
[null,"#31",33,2026,"H","A_PER",{"v":0.44999999999999996,"d":"0.45"},{"v":0.38999999999999996,"d":"0.39"},0.6,0.6,85,0,{"$f":"ROUND(Primes!$N$7*V3129,0)","v":3},{"$f":"'BP Financier'!$D$33*(('BP Financier'!$C$19+'BP Financier'!$D$19)/('BP Financier'!$C$16+'BP Financier'!$C$19+'BP Financier'!$D$16+'BP Financier'!$D$19))*V3129","v":{"v":76585.89019964811,"d":"76,586"}},{"v":42461.48847365969,"d":"42,461"},{"$f":"'BP Financier'!$D$44*(('BP Financier'!$C$19+'BP Financier'!$D$19)/('BP Financier'!$C$16+'BP Financier'!$C$19+'BP Financier'!$D$16+'BP Financier'!$D$19+'BP Financier'!$C$22+'BP Financier'!$D$22))*$V3129*X3129/(1-$W3129)","v":{"v":5404.732358461607,"d":"5,405"}},{"$f":"'BP Financier'!$D$44*(('BP Financier'!$C$19+'BP Financier'!$D$19)/('BP Financier'!$C$16+'BP Financier'!$C$19+'BP Financier'!$D$16+'BP Financier'!$D$19+'BP Financier'!$C$22+'BP Financier'!$D$22))*$V3129*Y3129/(1-$W3129)","v":{"v":3613.108372231239,"d":"3,613"}},{"$f":"'BP Financier'!$D$44*(('BP Financier'!$C$19+'BP Financier'!$D$19)/('BP Financier'!$C$16+'BP Financier'!$C$19+'BP Financier'!$D$16+'BP Financier'!$D$19+'BP Financier'!$C$22+'BP Financier'!$D$22))*$V3129*Z3129/(1-$W3129)","v":{"v":28277.79858266929,"d":"28,278"}},{"$f":"'BP Financier'!$D$44*(('BP Financier'!$C$19+'BP Financier'!$D$19)/('BP Financier'!$C$16+'BP Financier'!$C$19+'BP Financier'!$D$16+'BP Financier'!$D$19+'BP Financier'!$C$22+'BP Financier'!$D$22))*$V3129*AA3129/(1-$W3129)","v":{"v":3493.6667731492153,"d":"3,494"}},{"$f":"'BP Financier'!$D$44*(('BP Financier'!$C$19+'BP Financier'!$D$19)/('BP Financier'!$C$16+'BP Financier'!$C$19+'BP Financier'!$D$16+'BP Financier'!$D$19+'BP Financier'!$C$22+'BP Financier'!$D$22))*$V3129*AB3129/(1-$W3129)","v":{"v":1672.182387148342,"d":"1,672"}},null,{"v":0.0075,"d":"0.75%"},{"$f":"Actif!$E$28/100","v":{"v":0.28900000000000003,"d":"28.90%"}},{"$f":"Actif!$E$30/100","v":{"v":0.09050000000000001,"d":"9.05%"}},{"$f":"Actif!$E$31/100","v":{"v":0.0605,"d":"6.05%"}},{"$f":"Actif!$E$32/100","v":{"v":0.47350000000000003,"d":"47.35%"}},{"$f":"Actif!$E$33/100","v":{"v":0.0585,"d":"5.85%"}},{"$f":"Actif!$E$29/100","v":{"v":0.027999999999999997,"d":"2.80%"}}]
[null,"#32",33,2028,"H","A_PER",{"v":0.44999999999999996,"d":"0.45"},{"v":0.38999999999999996,"d":"0.39"},0.6,0.6,85,0,{"$f":"ROUND(Primes!$N$7*V3130,0)","v":3},{"$f":"'BP Financier'!$D$33*(('BP Financier'!$C$19+'BP Financier'!$D$19)/('BP Financier'!$C$16+'BP Financier'!$C$19+'BP Financier'!$D$16+'BP Financier'!$D$19))*V3130","v":{"v":76585.89019964811,"d":"76,586"}},{"v":42461.48847365969,"d":"42,461"},{"$f":"'BP Financier'!$D$44*(('BP Financier'!$C$19+'BP Financier'!$D$19)/('BP Financier'!$C$16+'BP Financier'!$C$19+'BP Financier'!$D$16+'BP Financier'!$D$19+'BP Financier'!$C$22+'BP Financier'!$D$22))*$V3130*X3130/(1-$W3130)","v":{"v":5404.732358461607,"d":"5,405"}},{"$f":"'BP Financier'!$D$44*(('BP Financier'!$C$19+'BP Financier'!$D$19)/('BP Financier'!$C$16+'BP Financier'!$C$19+'BP Financier'!$D$16+'BP Financier'!$D$19+'BP Financier'!$C$22+'BP Financier'!$D$22))*$V3130*Y3130/(1-$W3130)","v":{"v":3613.108372231239,"d":"3,613"}},{"$f":"'BP Financier'!$D$44*(('BP Financier'!$C$19+'BP Financier'!$D$19)/('BP Financier'!$C$16+'BP Financier'!$C$19+'BP Financier'!$D$16+'BP Financier'!$D$19+'BP Financier'!$C$22+'BP Financier'!$D$22))*$V3130*Z3130/(1-$W3130)","v":{"v":28277.79858266929,"d":"28,278"}},{"$f":"'BP Financier'!$D$44*(('BP Financier'!$C$19+'BP Financier'!$D$19)/('BP Financier'!$C$16+'BP Financier'!$C$19+'BP Financier'!$D$16+'BP Financier'!$D$19+'BP Financier'!$C$22+'BP Financier'!$D$22))*$V3130*AA3130/(1-$W3130)","v":{"v":3493.6667731492153,"d":"3,494"}},{"$f":"'BP Financier'!$D$44*(('BP Financier'!$C$19+'BP Financier'!$D$19)/('BP Financier'!$C$16+'BP Financier'!$C$19+'BP Financier'!$D$16+'BP Financier'!$D$19+'BP Financier'!$C$22+'BP Financier'!$D$22))*$V3130*AB3130/(1-$W3130)","v":{"v":1672.182387148342,"d":"1,672"}},null,{"v":0.0075,"d":"0.75%"},{"$f":"Actif!$E$28/100","v":{"v":0.28900000000000003,"d":"28.90%"}},{"$f":"Actif!$E$30/100","v":{"v":0.09050000000000001,"d":"9.05%"}},{"$f":"Actif!$E$31/100","v":{"v":0.0605,"d":"6.05%"}},{"$f":"Actif!$E$32/100","v":{"v":0.47350000000000003,"d":"47.35%"}},{"$f":"Actif!$E$33/100","v":{"v":0.0585,"d":"5.85%"}},{"$f":"Actif!$E$29/100","v":{"v":0.027999999999999997,"d":"2.80%"}}]
[null,"#33",34,2026,"H","A_PER",{"$f":"frais_gestion_Euro*100","v":{"v":0.44999999999999996,"d":"0.45"}},{"$f":"frais_gestion_UC*100","v":{"v":0.38999999999999996,"d":"0.39"}},{"$f":"frais_distribution_FG*100","v":0.6},{"$f":"frais_distribution_UC*100","v":0.6},85,0,{"$f":"ROUND(Primes!$N$7*V3131,0)","v":3},{"$f":"'BP Financier'!$D$33*(('BP Financier'!$C$19+'BP Financier'!$D$19)/('BP Financier'!$C$16+'BP Financier'!$C$19+'BP Financier'!$D$16+'BP Financier'!$D$19))*V3131","v":{"v":76585.89019964811,"d":"76,586"}},{"v":42461.48847365969,"d":"42,461"},{"$f":"'BP Financier'!$D$44*(('BP Financier'!$C$19+'BP Financier'!$D$19)/('BP Financier'!$C$16+'BP Financier'!$C$19+'BP Financier'!$D$16+'BP Financier'!$D$19+'BP Financier'!$C$22+'BP Financier'!$D$22))*$V3131*X3131/(1-$W3131)","v":{"v":5404.732358461607,"d":"5,405"}},{"$f":"'BP Financier'!$D$44*(('BP Financier'!$C$19+'BP Financier'!$D$19)/('BP Financier'!$C$16+'BP Financier'!$C$19+'BP Financier'!$D$16+'BP Financier'!$D$19+'BP Financier'!$C$22+'BP Financier'!$D$22))*$V3131*Y3131/(1-$W3131)","v":{"v":3613.108372231239,"d":"3,613"}},{"$f":"'BP Financier'!$D$44*(('BP Financier'!$C$19+'BP Financier'!$D$19)/('BP Financier'!$C$16+'BP Financier'!$C$19+'BP Financier'!$D$16+'BP Financier'!$D$19+'BP Financier'!$C$22+'BP Financier'!$D$22))*$V3131*Z3131/(1-$W3131)","v":{"v":28277.79858266929,"d":"28,278"}},{"$f":"'BP Financier'!$D$44*(('BP Financier'!$C$19+'BP Financier'!$D$19)/('BP Financier'!$C$16+'BP Financier'!$C$19+'BP Financier'!$D$16+'BP Financier'!$D$19+'BP Financier'!$C$22+'BP Financier'!$D$22))*$V3131*AA3131/(1-$W3131)","v":{"v":3493.6667731492153,"d":"3,494"}},{"$f":"'BP Financier'!$D$44*(('BP Financier'!$C$19+'BP Financier'!$D$19)/('BP Financier'!$C$16+'BP Financier'!$C$19+'BP Financier'!$D$16+'BP Financier'!$D$19+'BP Financier'!$C$22+'BP Financier'!$D$22))*$V3131*AB3131/(1-$W3131)","v":{"v":1672.182387148342,"d":"1,672"}},null,{"v":0.0075,"d":"0.75%"},{"$f":"Actif!$E$28/100","v":{"v":0.28900000000000003,"d":"28.90%"}},{"$f":"Actif!$E$30/100","v":{"v":0.09050000000000001,"d":"9.05%"}},{"$f":"Actif!$E$31/100","v":{"v":0.0605,"d":"6.05%"}},{"$f":"Actif!$E$32/100","v":{"v":0.47350000000000003,"d":"47.35%"}},{"$f":"Actif!$E$33/100","v":{"v":0.0585,"d":"5.85%"}},{"$f":"Actif!$E$29/100","v":{"v":0.027999999999999997,"d":"2.80%"}}]
[null,"#34",34,2028,"H","A_PER",{"v":0.44999999999999996,"d":"0.45"},{"v":0.38999999999999996,"d":"0.39"},0.6,0.6,85,0,{"$f":"ROUND(Primes!$N$7*V3132,0)","v":3},{"$f":"'BP Financier'!$D$33*(('BP Financier'!$C$19+'BP Financier'!$D$19)/('BP Financier'!$C$16+'BP Financier'!$C$19+'BP Financier'!$D$16+'BP Financier'!$D$19))*V3132","v":{"v":76585.89019964811,"d":"76,586"}},{"v":42461.48847365969,"d":"42,461"},{"$f":"'BP Financier'!$D$44*(('BP Financier'!$C$19+'BP Financier'!$D$19)/('BP Financier'!$C$16+'BP Financier'!$C$19+'BP Financier'!$D$16+'BP Financier'!$D$19+'BP Financier'!$C$22+'BP Financier'!$D$22))*$V3132*X3132/(1-$W3132)","v":{"v":5404.732358461607,"d":"5,405"}},{"$f":"'BP Financier'!$D$44*(('BP Financier'!$C$19+'BP Financier'!$D$19)/('BP Financier'!$C$16+'BP Financier'!$C$19+'BP Financier'!$D$16+'BP Financier'!$D$19+'BP Financier'!$C$22+'BP Financier'!$D$22))*$V3132*Y3132/(1-$W3132)","v":{"v":3613.108372231239,"d":"3,613"}},{"$f":"'BP Financier'!$D$44*(('BP Financier'!$C$19+'BP Financier'!$D$19)/('BP Financier'!$C$16+'BP Financier'!$C$19+'BP Financier'!$D$16+'BP Financier'!$D$19+'BP Financier'!$C$22+'BP Financier'!$D$22))*$V3132*Z3132/(1-$W3132)","v":{"v":28277.79858266929,"d":"28,278"}},{"$f":"'BP Financier'!$D$44*(('BP Financier'!$C$19+'BP Financier'!$D$19)/('BP Financier'!$C$16+'BP Financier'!$C$19+'BP Financier'!$D$16+'BP Financier'!$D$19+'BP Financier'!$C$22+'BP Financier'!$D$22))*$V3132*AA3132/(1-$W3132)","v":{"v":3493.6667731492153,"d":"3,494"}},{"$f":"'BP Financier'!$D$44*(('BP Financier'!$C$19+'BP Financier'!$D$19)/('BP Financier'!$C$16+'BP Financier'!$C$19+'BP Financier'!$D$16+'BP Financier'!$D$19+'BP Financier'!$C$22+'BP Financier'!$D$22))*$V3132*AB3132/(1-$W3132)","v":{"v":1672.182387148342,"d":"1,672"}},null,{"v":0.0075,"d":"0.75%"},{"$f":"Actif!$E$28/100","v":{"v":0.28900000000000003,"d":"28.90%"}},{"$f":"Actif!$E$30/100","v":{"v":0.09050000000000001,"d":"9.05%"}},{"$f":"Actif!$E$31/100","v":{"v":0.0605,"d":"6.05%"}},{"$f":"Actif!$E$32/100","v":{"v":0.47350000000000003,"d":"47.35%"}},{"$f":"Actif!$E$33/100","v":{"v":0.0585,"d":"5.85%"}},{"$f":"Actif!$E$29/100","v":{"v":0.027999999999999997,"d":"2.80%"}}]
[null,"#35",35,2026,"F","A_PER",{"v":0.44999999999999996,"d":"0.45"},{"v":0.38999999999999996,"d":"0.39"},0.6,0.6,85,0,{"$f":"ROUND(Primes!$N$7*V3133,0)","v":3},{"$f":"'BP Financier'!$D$33*(('BP Financier'!$C$19+'BP Financier'!$D$19)/('BP Financier'!$C$16+'BP Financier'!$C$19+'BP Financier'!$D$16+'BP Financier'!$D$19))*V3133","v":{"v":76585.89019964811,"d":"76,586"}},{"v":42461.48847365969,"d":"42,461"},{"$f":"'BP Financier'!$D$44*(('BP Financier'!$C$19+'BP Financier'!$D$19)/('BP Financier'!$C$16+'BP Financier'!$C$19+'BP Financier'!$D$16+'BP Financier'!$D$19+'BP Financier'!$C$22+'BP Financier'!$D$22))*$V3133*X3133/(1-$W3133)","v":{"v":5404.732358461607,"d":"5,405"}},{"$f":"'BP Financier'!$D$44*(('BP Financier'!$C$19+'BP Financier'!$D$19)/('BP Financier'!$C$16+'BP Financier'!$C$19+'BP Financier'!$D$16+'BP Financier'!$D$19+'BP Financier'!$C$22+'BP Financier'!$D$22))*$V3133*Y3133/(1-$W3133)","v":{"v":3613.108372231239,"d":"3,613"}},{"$f":"'BP Financier'!$D$44*(('BP Financier'!$C$19+'BP Financier'!$D$19)/('BP Financier'!$C$16+'BP Financier'!$C$19+'BP Financier'!$D$16+'BP Financier'!$D$19+'BP Financier'!$C$22+'BP Financier'!$D$22))*$V3133*Z3133/(1-$W3133)","v":{"v":28277.79858266929,"d":"28,278"}},{"$f":"'BP Financier'!$D$44*(('BP Financier'!$C$19+'BP Financier'!$D$19)/('BP Financier'!$C$16+'BP Financier'!$C$19+'BP Financier'!$D$16+'BP Financier'!$D$19+'BP Financier'!$C$22+'BP Financier'!$D$22))*$V3133*AA3133/(1-$W3133)","v":{"v":3493.6667731492153,"d":"3,494"}},{"$f":"'BP Financier'!$D$44*(('BP Financier'!$C$19+'BP Financier'!$D$19)/('BP Financier'!$C$16+'BP Financier'!$C$19+'BP Financier'!$D$16+'BP Financier'!$D$19+'BP Financier'!$C$22+'BP Financier'!$D$22))*$V3133*AB3133/(1-$W3133)","v":{"v":1672.182387148342,"d":"1,672"}},null,{"v":0.0075,"d":"0.75%"},{"$f":"Actif!$E$28/100","v":{"v":0.28900000000000003,"d":"28.90%"}},{"$f":"Actif!$E$30/100","v":{"v":0.09050000000000001,"d":"9.05%"}},{"$f":"Actif!$E$31/100","v":{"v":0.0605,"d":"6.05%"}},{"$f":"Actif!$E$32/100","v":{"v":0.47350000000000003,"d":"47.35%"}},{"$f":"Actif!$E$33/100","v":{"v":0.0585,"d":"5.85%"}},{"$f":"Actif!$E$29/100","v":{"v":0.027999999999999997,"d":"2.80%"}}]
[null,"#36",35,2028,"F","A_PER",{"v":0.44999999999999996,"d":"0.45"},{"v":0.38999999999999996,"d":"0.39"},0.6,0.6,85,0,{"$f":"ROUND(Primes!$N$7*V3134,0)","v":3},{"$f":"'BP Financier'!$D$33*(('BP Financier'!$C$19+'BP Financier'!$D$19)/('BP Financier'!$C$16+'BP Financier'!$C$19+'BP Financier'!$D$16+'BP Financier'!$D$19))*V3134","v":{"v":76585.89019964811,"d":"76,586"}},{"v":42461.48847365969,"d":"42,461"},{"$f":"'BP Financier'!$D$44*(('BP Financier'!$C$19+'BP Financier'!$D$19)/('BP Financier'!$C$16+'BP Financier'!$C$19+'BP Financier'!$D$16+'BP Financier'!$D$19+'BP Financier'!$C$22+'BP Financier'!$D$22))*$V3134*X3134/(1-$W3134)","v":{"v":5404.732358461607,"d":"5,405"}},{"$f":"'BP Financier'!$D$44*(('BP Financier'!$C$19+'BP Financier'!$D$19)/('BP Financier'!$C$16+'BP Financier'!$C$19+'BP Financier'!$D$16+'BP Financier'!$D$19+'BP Financier'!$C$22+'BP Financier'!$D$22))*$V3134*Y3134/(1-$W3134)","v":{"v":3613.108372231239,"d":"3,613"}},{"$f":"'BP Financier'!$D$44*(('BP Financier'!$C$19+'BP Financier'!$D$19)/('BP Financier'!$C$16+'BP Financier'!$C$19+'BP Financier'!$D$16+'BP Financier'!$D$19+'BP Financier'!$C$22+'BP Financier'!$D$22))*$V3134*Z3134/(1-$W3134)","v":{"v":28277.79858266929,"d":"28,278"}},{"$f":"'BP Financier'!$D$44*(('BP Financier'!$C$19+'BP Financier'!$D$19)/('BP Financier'!$C$16+'BP Financier'!$C$19+'BP Financier'!$D$16+'BP Financier'!$D$19+'BP Financier'!$C$22+'BP Financier'!$D$22))*$V3134*AA3134/(1-$W3134)","v":{"v":3493.6667731492153,"d":"3,494"}},{"$f":"'BP Financier'!$D$44*(('BP Financier'!$C$19+'BP Financier'!$D$19)/('BP Financier'!$C$16+'BP Financier'!$C$19+'BP Financier'!$D$16+'BP Financier'!$D$19+'BP Financier'!$C$22+'BP Financier'!$D$22))*$V3134*AB3134/(1-$W3134)","v":{"v":1672.182387148342,"d":"1,672"}},null,{"v":0.0075,"d":"0.75%"},{"$f":"Actif!$E$28/100","v":{"v":0.28900000000000003,"d":"28.90%"}},{"$f":"Actif!$E$30/100","v":{"v":0.09050000000000001,"d":"9.05%"}},{"$f":"Actif!$E$31/100","v":{"v":0.0605,"d":"6.05%"}},{"$f":"Actif!$E$32/100","v":{"v":0.47350000000000003,"d":"47.35%"}},{"$f":"Actif!$E$33/100","v":{"v":0.0585,"d":"5.85%"}},{"$f":"Actif!$E$29/100","v":{"v":0.027999999999999997,"d":"2.80%"}}]
[null,"#37",36,2026,"H","A_PER",{"v":0.44999999999999996,"d":"0.45"},{"v":0.38999999999999996,"d":"0.39"},0.6,0.6,85,0,{"$f":"ROUND(Primes!$N$7*V3135,0)","v":3},{"$f":"'BP Financier'!$D$33*(('BP Financier'!$C$19+'BP Financier'!$D$19)/('BP Financier'!$C$16+'BP Financier'!$C$19+'BP Financier'!$D$16+'BP Financier'!$D$19))*V3135","v":{"v":76585.89019964811,"d":"76,586"}},{"v":42461.48847365969,"d":"42,461"},{"$f":"'BP Financier'!$D$44*(('BP Financier'!$C$19+'BP Financier'!$D$19)/('BP Financier'!$C$16+'BP Financier'!$C$19+'BP Financier'!$D$16+'BP Financier'!$D$19+'BP Financier'!$C$22+'BP Financier'!$D$22))*$V3135*X3135/(1-$W3135)","v":{"v":5404.732358461607,"d":"5,405"}},{"$f":"'BP Financier'!$D$44*(('BP Financier'!$C$19+'BP Financier'!$D$19)/('BP Financier'!$C$16+'BP Financier'!$C$19+'BP Financier'!$D$16+'BP Financier'!$D$19+'BP Financier'!$C$22+'BP Financier'!$D$22))*$V3135*Y3135/(1-$W3135)","v":{"v":3613.108372231239,"d":"3,613"}},{"$f":"'BP Financier'!$D$44*(('BP Financier'!$C$19+'BP Financier'!$D$19)/('BP Financier'!$C$16+'BP Financier'!$C$19+'BP Financier'!$D$16+'BP Financier'!$D$19+'BP Financier'!$C$22+'BP Financier'!$D$22))*$V3135*Z3135/(1-$W3135)","v":{"v":28277.79858266929,"d":"28,278"}},{"$f":"'BP Financier'!$D$44*(('BP Financier'!$C$19+'BP Financier'!$D$19)/('BP Financier'!$C$16+'BP Financier'!$C$19+'BP Financier'!$D$16+'BP Financier'!$D$19+'BP Financier'!$C$22+'BP Financier'!$D$22))*$V3135*AA3135/(1-$W3135)","v":{"v":3493.6667731492153,"d":"3,494"}},{"$f":"'BP Financier'!$D$44*(('BP Financier'!$C$19+'BP Financier'!$D$19)/('BP Financier'!$C$16+'BP Financier'!$C$19+'BP Financier'!$D$16+'BP Financier'!$D$19+'BP Financier'!$C$22+'BP Financier'!$D$22))*$V3135*AB3135/(1-$W3135)","v":{"v":1672.182387148342,"d":"1,672"}},null,{"v":0.0075,"d":"0.75%"},{"$f":"Actif!$E$28/100","v":{"v":0.28900000000000003,"d":"28.90%"}},{"$f":"Actif!$E$30/100","v":{"v":0.09050000000000001,"d":"9.05%"}},{"$f":"Actif!$E$31/100","v":{"v":0.0605,"d":"6.05%"}},{"$f":"Actif!$E$32/100","v":{"v":0.47350000000000003,"d":"47.35%"}},{"$f":"Actif!$E$33/100","v":{"v":0.0585,"d":"5.85%"}},{"$f":"Actif!$E$29/100","v":{"v":0.027999999999999997,"d":"2.80%"}}]
[null,"#38",36,2028,"H","A_PER",{"v":0.44999999999999996,"d":"0.45"},{"v":0.38999999999999996,"d":"0.39"},0.6,0.6,85,0,{"$f":"ROUND(Primes!$N$7*V3136,0)","v":3},{"$f":"'BP Financier'!$D$33*(('BP Financier'!$C$19+'BP Financier'!$D$19)/('BP Financier'!$C$16+'BP Financier'!$C$19+'BP Financier'!$D$16+'BP Financier'!$D$19))*V3136","v":{"v":76585.89019964811,"d":"76,586"}},{"v":42461.48847365969,"d":"42,461"},{"$f":"'BP Financier'!$D$44*(('BP Financier'!$C$19+'BP Financier'!$D$19)/('BP Financier'!$C$16+'BP Financier'!$C$19+'BP Financier'!$D$16+'BP Financier'!$D$19+'BP Financier'!$C$22+'BP Financier'!$D$22))*$V3136*X3136/(1-$W3136)","v":{"v":5404.732358461607,"d":"5,405"}},{"$f":"'BP Financier'!$D$44*(('BP Financier'!$C$19+'BP Financier'!$D$19)/('BP Financier'!$C$16+'BP Financier'!$C$19+'BP Financier'!$D$16+'BP Financier'!$D$19+'BP Financier'!$C$22+'BP Financier'!$D$22))*$V3136*Y3136/(1-$W3136)","v":{"v":3613.108372231239,"d":"3,613"}},{"$f":"'BP Financier'!$D$44*(('BP Financier'!$C$19+'BP Financier'!$D$19)/('BP Financier'!$C$16+'BP Financier'!$C$19+'BP Financier'!$D$16+'BP Financier'!$D$19+'BP Financier'!$C$22+'BP Financier'!$D$22))*$V3136*Z3136/(1-$W3136)","v":{"v":28277.79858266929,"d":"28,278"}},{"$f":"'BP Financier'!$D$44*(('BP Financier'!$C$19+'BP Financier'!$D$19)/('BP Financier'!$C$16+'BP Financier'!$C$19+'BP Financier'!$D$16+'BP Financier'!$D$19+'BP Financier'!$C$22+'BP Financier'!$D$22))*$V3136*AA3136/(1-$W3136)","v":{"v":3493.6667731492153,"d":"3,494"}},{"$f":"'BP Financier'!$D$44*(('BP Financier'!$C$19+'BP Financier'!$D$19)/('BP Financier'!$C$16+'BP Financier'!$C$19+'BP Financier'!$D$16+'BP Financier'!$D$19+'BP Financier'!$C$22+'BP Financier'!$D$22))*$V3136*AB3136/(1-$W3136)","v":{"v":1672.182387148342,"d":"1,672"}},null,{"v":0.0075,"d":"0.75%"},{"$f":"Actif!$E$28/100","v":{"v":0.28900000000000003,"d":"28.90%"}},{"$f":"Actif!$E$30/100","v":{"v":0.09050000000000001,"d":"9.05%"}},{"$f":"Actif!$E$31/100","v":{"v":0.0605,"d":"6.05%"}},{"$f":"Actif!$E$32/100","v":{"v":0.47350000000000003,"d":"47.35%"}},{"$f":"Actif!$E$33/100","v":{"v":0.0585,"d":"5.85%"}},{"$f":"Actif!$E$29/100","v":{"v":0.027999999999999997,"d":"2.80%"}}]
[null,"#39",37,2026,"H","A_PER",{"v":0.44999999999999996,"d":"0.45"},{"v":0.38999999999999996,"d":"0.39"},0.6,0.6,85,0,{"$f":"ROUND(Primes!$N$7*V3137,0)","v":3},{"$f":"'BP Financier'!$D$33*(('BP Financier'!$C$19+'BP Financier'!$D$19)/('BP Financier'!$C$16+'BP Financier'!$C$19+'BP Financier'!$D$16+'BP Financier'!$D$19))*V3137","v":{"v":76585.89019964811,"d":"76,586"}},{"v":42461.48847365969,"d":"42,461"},{"$f":"'BP Financier'!$D$44*(('BP Financier'!$C$19+'BP Financier'!$D$19)/('BP Financier'!$C$16+'BP Financier'!$C$19+'BP Financier'!$D$16+'BP Financier'!$D$19+'BP Financier'!$C$22+'BP Financier'!$D$22))*$V3137*X3137/(1-$W3137)","v":{"v":5404.732358461607,"d":"5,405"}},{"$f":"'BP Financier'!$D$44*(('BP Financier'!$C$19+'BP Financier'!$D$19)/('BP Financier'!$C$16+'BP Financier'!$C$19+'BP Financier'!$D$16+'BP Financier'!$D$19+'BP Financier'!$C$22+'BP Financier'!$D$22))*$V3137*Y3137/(1-$W3137)","v":{"v":3613.108372231239,"d":"3,613"}},{"$f":"'BP Financier'!$D$44*(('BP Financier'!$C$19+'BP Financier'!$D$19)/('BP Financier'!$C$16+'BP Financier'!$C$19+'BP Financier'!$D$16+'BP Financier'!$D$19+'BP Financier'!$C$22+'BP Financier'!$D$22))*$V3137*Z3137/(1-$W3137)","v":{"v":28277.79858266929,"d":"28,278"}},{"$f":"'BP Financier'!$D$44*(('BP Financier'!$C$19+'BP Financier'!$D$19)/('BP Financier'!$C$16+'BP Financier'!$C$19+'BP Financier'!$D$16+'BP Financier'!$D$19+'BP Financier'!$C$22+'BP Financier'!$D$22))*$V3137*AA3137/(1-$W3137)","v":{"v":3493.6667731492153,"d":"3,494"}},{"$f":"'BP Financier'!$D$44*(('BP Financier'!$C$19+'BP Financier'!$D$19)/('BP Financier'!$C$16+'BP Financier'!$C$19+'BP Financier'!$D$16+'BP Financier'!$D$19+'BP Financier'!$C$22+'BP Financier'!$D$22))*$V3137*AB3137/(1-$W3137)","v":{"v":1672.182387148342,"d":"1,672"}},null,{"v":0.0075,"d":"0.75%"},{"$f":"Actif!$E$28/100","v":{"v":0.28900000000000003,"d":"28.90%"}},{"$f":"Actif!$E$30/100","v":{"v":0.09050000000000001,"d":"9.05%"}},{"$f":"Actif!$E$31/100","v":{"v":0.0605,"d":"6.05%"}},{"$f":"Actif!$E$32/100","v":{"v":0.47350000000000003,"d":"47.35%"}},{"$f":"Actif!$E$33/100","v":{"v":0.0585,"d":"5.85%"}},{"$f":"Actif!$E$29/100","v":{"v":0.027999999999999997,"d":"2.80%"}}]
[null,"#40",37,2028,"H","A_PER",{"v":0.44999999999999996,"d":"0.45"},{"v":0.38999999999999996,"d":"0.39"},0.6,0.6,85,0,{"$f":"ROUND(Primes!$N$7*V3138,0)","v":3},{"$f":"'BP Financier'!$D$33*(('BP Financier'!$C$19+'BP Financier'!$D$19)/('BP Financier'!$C$16+'BP Financier'!$C$19+'BP Financier'!$D$16+'BP Financier'!$D$19))*V3138","v":{"v":76585.89019964811,"d":"76,586"}},{"v":42461.48847365969,"d":"42,461"},{"$f":"'BP Financier'!$D$44*(('BP Financier'!$C$19+'BP Financier'!$D$19)/('BP Financier'!$C$16+'BP Financier'!$C$19+'BP Financier'!$D$16+'BP Financier'!$D$19+'BP Financier'!$C$22+'BP Financier'!$D$22))*$V3138*X3138/(1-$W3138)","v":{"v":5404.732358461607,"d":"5,405"}},{"$f":"'BP Financier'!$D$44*(('BP Financier'!$C$19+'BP Financier'!$D$19)/('BP Financier'!$C$16+'BP Financier'!$C$19+'BP Financier'!$D$16+'BP Financier'!$D$19+'BP Financier'!$C$22+'BP Financier'!$D$22))*$V3138*Y3138/(1-$W3138)","v":{"v":3613.108372231239,"d":"3,613"}},{"$f":"'BP Financier'!$D$44*(('BP Financier'!$C$19+'BP Financier'!$D$19)/('BP Financier'!$C$16+'BP Financier'!$C$19+'BP Financier'!$D$16+'BP Financier'!$D$19+'BP Financier'!$C$22+'BP Financier'!$D$22))*$V3138*Z3138/(1-$W3138)","v":{"v":28277.79858266929,"d":"28,278"}},{"$f":"'BP Financier'!$D$44*(('BP Financier'!$C$19+'BP Financier'!$D$19)/('BP Financier'!$C$16+'BP Financier'!$C$19+'BP Financier'!$D$16+'BP Financier'!$D$19+'BP Financier'!$C$22+'BP Financier'!$D$22))*$V3138*AA3138/(1-$W3138)","v":{"v":3493.6667731492153,"d":"3,494"}},{"$f":"'BP Financier'!$D$44*(('BP Financier'!$C$19+'BP Financier'!$D$19)/('BP Financier'!$C$16+'BP Financier'!$C$19+'BP Financier'!$D$16+'BP Financier'!$D$19+'BP Financier'!$C$22+'BP Financier'!$D$22))*$V3138*AB3138/(1-$W3138)","v":{"v":1672.182387148342,"d":"1,672"}},null,{"v":0.0075,"d":"0.75%"},{"$f":"Actif!$E$28/100","v":{"v":0.28900000000000003,"d":"28.90%"}},{"$f":"Actif!$E$30/100","v":{"v":0.09050000000000001,"d":"9.05%"}},{"$f":"Actif!$E$31/100","v":{"v":0.0605,"d":"6.05%"}},{"$f":"Actif!$E$32/100","v":{"v":0.47350000000000003,"d":"47.35%"}},{"$f":"Actif!$E$33/100","v":{"v":0.0585,"d":"5.85%"}},{"$f":"Actif!$E$29/100","v":{"v":0.027999999999999997,"d":"2.80%"}}]
[null,"#41",38,2026,"F","A_PER",{"v":0.44999999999999996,"d":"0.45"},{"v":0.38999999999999996,"d":"0.39"},0.6,0.6,85,0,{"$f":"ROUND(Primes!$N$7*V3139,0)","v":6},{"$f":"'BP Financier'!$D$33*(('BP Financier'!$C$19+'BP Financier'!$D$19)/('BP Financier'!$C$16+'BP Financier'!$C$19+'BP Financier'!$D$16+'BP Financier'!$D$19))*V3139","v":{"v":153171.78039929623,"d":"153,172"}},{"v":84922.97694731937,"d":"84,923"},{"$f":"'BP Financier'!$D$44*(('BP Financier'!$C$19+'BP Financier'!$D$19)/('BP Financier'!$C$16+'BP Financier'!$C$19+'BP Financier'!$D$16+'BP Financier'!$D$19+'BP Financier'!$C$22+'BP Financier'!$D$22))*$V3139*X3139/(1-$W3139)","v":{"v":10809.464716923214,"d":"10,809"}},{"$f":"'BP Financier'!$D$44*(('BP Financier'!$C$19+'BP Financier'!$D$19)/('BP Financier'!$C$16+'BP Financier'!$C$19+'BP Financier'!$D$16+'BP Financier'!$D$19+'BP Financier'!$C$22+'BP Financier'!$D$22))*$V3139*Y3139/(1-$W3139)","v":{"v":7226.216744462478,"d":"7,226"}},{"$f":"'BP Financier'!$D$44*(('BP Financier'!$C$19+'BP Financier'!$D$19)/('BP Financier'!$C$16+'BP Financier'!$C$19+'BP Financier'!$D$16+'BP Financier'!$D$19+'BP Financier'!$C$22+'BP Financier'!$D$22))*$V3139*Z3139/(1-$W3139)","v":{"v":56555.59716533858,"d":"56,556"}},{"$f":"'BP Financier'!$D$44*(('BP Financier'!$C$19+'BP Financier'!$D$19)/('BP Financier'!$C$16+'BP Financier'!$C$19+'BP Financier'!$D$16+'BP Financier'!$D$19+'BP Financier'!$C$22+'BP Financier'!$D$22))*$V3139*AA3139/(1-$W3139)","v":{"v":6987.3335462984305,"d":"6,987"}},{"$f":"'BP Financier'!$D$44*(('BP Financier'!$C$19+'BP Financier'!$D$19)/('BP Financier'!$C$16+'BP Financier'!$C$19+'BP Financier'!$D$16+'BP Financier'!$D$19+'BP Financier'!$C$22+'BP Financier'!$D$22))*$V3139*AB3139/(1-$W3139)","v":{"v":3344.364774296684,"d":"3,344"}},null,{"v":0.015,"d":"1.50%"},{"$f":"Actif!$E$28/100","v":{"v":0.28900000000000003,"d":"28.90%"}},{"$f":"Actif!$E$30/100","v":{"v":0.09050000000000001,"d":"9.05%"}},{"$f":"Actif!$E$31/100","v":{"v":0.0605,"d":"6.05%"}},{"$f":"Actif!$E$32/100","v":{"v":0.47350000000000003,"d":"47.35%"}},{"$f":"Actif!$E$33/100","v":{"v":0.0585,"d":"5.85%"}},{"$f":"Actif!$E$29/100","v":{"v":0.027999999999999997,"d":"2.80%"}}]
[null,"#42",38,2028,"F","A_PER",{"v":0.44999999999999996,"d":"0.45"},{"v":0.38999999999999996,"d":"0.39"},0.6,0.6,85,0,{"$f":"ROUND(Primes!$N$7*V3140,0)","v":6},{"$f":"'BP Financier'!$D$33*(('BP Financier'!$C$19+'BP Financier'!$D$19)/('BP Financier'!$C$16+'BP Financier'!$C$19+'BP Financier'!$D$16+'BP Financier'!$D$19))*V3140","v":{"v":153171.78039929623,"d":"153,172"}},{"v":84922.97694731937,"d":"84,923"},{"$f":"'BP Financier'!$D$44*(('BP Financier'!$C$19+'BP Financier'!$D$19)/('BP Financier'!$C$16+'BP Financier'!$C$19+'BP Financier'!$D$16+'BP Financier'!$D$19+'BP Financier'!$C$22+'BP Financier'!$D$22))*$V3140*X3140/(1-$W3140)","v":{"v":10809.464716923214,"d":"10,809"}},{"$f":"'BP Financier'!$D$44*(('BP Financier'!$C$19+'BP Financier'!$D$19)/('BP Financier'!$C$16+'BP Financier'!$C$19+'BP Financier'!$D$16+'BP Financier'!$D$19+'BP Financier'!$C$22+'BP Financier'!$D$22))*$V3140*Y3140/(1-$W3140)","v":{"v":7226.216744462478,"d":"7,226"}},{"$f":"'BP Financier'!$D$44*(('BP Financier'!$C$19+'BP Financier'!$D$19)/('BP Financier'!$C$16+'BP Financier'!$C$19+'BP Financier'!$D$16+'BP Financier'!$D$19+'BP Financier'!$C$22+'BP Financier'!$D$22))*$V3140*Z3140/(1-$W3140)","v":{"v":56555.59716533858,"d":"56,556"}},{"$f":"'BP Financier'!$D$44*(('BP Financier'!$C$19+'BP Financier'!$D$19)/('BP Financier'!$C$16+'BP Financier'!$C$19+'BP Financier'!$D$16+'BP Financier'!$D$19+'BP Financier'!$C$22+'BP Financier'!$D$22))*$V3140*AA3140/(1-$W3140)","v":{"v":6987.3335462984305,"d":"6,987"}},{"$f":"'BP Financier'!$D$44*(('BP Financier'!$C$19+'BP Financier'!$D$19)/('BP Financier'!$C$16+'BP Financier'!$C$19+'BP Financier'!$D$16+'BP Financier'!$D$19+'BP Financier'!$C$22+'BP Financier'!$D$22))*$V3140*AB3140/(1-$W3140)","v":{"v":3344.364774296684,"d":"3,344"}},null,{"v":0.015,"d":"1.50%"},{"$f":"Actif!$E$28/100","v":{"v":0.28900000000000003,"d":"28.90%"}},{"$f":"Actif!$E$30/100","v":{"v":0.09050000000000001,"d":"9.05%"}},{"$f":"Actif!$E$31/100","v":{"v":0.0605,"d":"6.05%"}},{"$f":"Actif!$E$32/100","v":{"v":0.47350000000000003,"d":"47.35%"}},{"$f":"Actif!$E$33/100","v":{"v":0.0585,"d":"5.85%"}},{"$f":"Actif!$E$29/100","v":{"v":0.027999999999999997,"d":"2.80%"}}]
[null,"#43",39,2026,"H","A_PER",{"v":0.44999999999999996,"d":"0.45"},{"v":0.38999999999999996,"d":"0.39"},0.6,0.6,85,0,{"$f":"ROUND(Primes!$N$7*V3141,0)","v":6},{"$f":"'BP Financier'!$D$33*(('BP Financier'!$C$19+'BP Financier'!$D$19)/('BP Financier'!$C$16+'BP Financier'!$C$19+'BP Financier'!$D$16+'BP Financier'!$D$19))*V3141","v":{"v":153171.78039929623,"d":"153,172"}},{"v":84922.97694731937,"d":"84,923"},{"$f":"'BP Financier'!$D$44*(('BP Financier'!$C$19+'BP Financier'!$D$19)/('BP Financier'!$C$16+'BP Financier'!$C$19+'BP Financier'!$D$16+'BP Financier'!$D$19+'BP Financier'!$C$22+'BP Financier'!$D$22))*$V3141*X3141/(1-$W3141)","v":{"v":10809.464716923214,"d":"10,809"}},{"$f":"'BP Financier'!$D$44*(('BP Financier'!$C$19+'BP Financier'!$D$19)/('BP Financier'!$C$16+'BP Financier'!$C$19+'BP Financier'!$D$16+'BP Financier'!$D$19+'BP Financier'!$C$22+'BP Financier'!$D$22))*$V3141*Y3141/(1-$W3141)","v":{"v":7226.216744462478,"d":"7,226"}},{"$f":"'BP Financier'!$D$44*(('BP Financier'!$C$19+'BP Financier'!$D$19)/('BP Financier'!$C$16+'BP Financier'!$C$19+'BP Financier'!$D$16+'BP Financier'!$D$19+'BP Financier'!$C$22+'BP Financier'!$D$22))*$V3141*Z3141/(1-$W3141)","v":{"v":56555.59716533858,"d":"56,556"}},{"$f":"'BP Financier'!$D$44*(('BP Financier'!$C$19+'BP Financier'!$D$19)/('BP Financier'!$C$16+'BP Financier'!$C$19+'BP Financier'!$D$16+'BP Financier'!$D$19+'BP Financier'!$C$22+'BP Financier'!$D$22))*$V3141*AA3141/(1-$W3141)","v":{"v":6987.3335462984305,"d":"6,987"}},{"$f":"'BP Financier'!$D$44*(('BP Financier'!$C$19+'BP Financier'!$D$19)/('BP Financier'!$C$16+'BP Financier'!$C$19+'BP Financier'!$D$16+'BP Financier'!$D$19+'BP Financier'!$C$22+'BP Financier'!$D$22))*$V3141*AB3141/(1-$W3141)","v":{"v":3344.364774296684,"d":"3,344"}},null,{"v":0.015,"d":"1.50%"},{"$f":"Actif!$E$28/100","v":{"v":0.28900000000000003,"d":"28.90%"}},{"$f":"Actif!$E$30/100","v":{"v":0.09050000000000001,"d":"9.05%"}},{"$f":"Actif!$E$31/100","v":{"v":0.0605,"d":"6.05%"}},{"$f":"Actif!$E$32/100","v":{"v":0.47350000000000003,"d":"47.35%"}},{"$f":"Actif!$E$33/100","v":{"v":0.0585,"d":"5.85%"}},{"$f":"Actif!$E$29/100","v":{"v":0.027999999999999997,"d":"2.80%"}}]
[null,"#44",39,2028,"H","A_PER",{"v":0.44999999999999996,"d":"0.45"},{"v":0.38999999999999996,"d":"0.39"},0.6,0.6,85,0,{"$f":"ROUND(Primes!$N$7*V3142,0)","v":6},{"$f":"'BP Financier'!$D$33*(('BP Financier'!$C$19+'BP Financier'!$D$19)/('BP Financier'!$C$16+'BP Financier'!$C$19+'BP Financier'!$D$16+'BP Financier'!$D$19))*V3142","v":{"v":153171.78039929623,"d":"153,172"}},{"v":84922.97694731937,"d":"84,923"},{"$f":"'BP Financier'!$D$44*(('BP Financier'!$C$19+'BP Financier'!$D$19)/('BP Financier'!$C$16+'BP Financier'!$C$19+'BP Financier'!$D$16+'BP Financier'!$D$19+'BP Financier'!$C$22+'BP Financier'!$D$22))*$V3142*X3142/(1-$W3142)","v":{"v":10809.464716923214,"d":"10,809"}},{"$f":"'BP Financier'!$D$44*(('BP Financier'!$C$19+'BP Financier'!$D$19)/('BP Financier'!$C$16+'BP Financier'!$C$19+'BP Financier'!$D$16+'BP Financier'!$D$19+'BP Financier'!$C$22+'BP Financier'!$D$22))*$V3142*Y3142/(1-$W3142)","v":{"v":7226.216744462478,"d":"7,226"}},{"$f":"'BP Financier'!$D$44*(('BP Financier'!$C$19+'BP Financier'!$D$19)/('BP Financier'!$C$16+'BP Financier'!$C$19+'BP Financier'!$D$16+'BP Financier'!$D$19+'BP Financier'!$C$22+'BP Financier'!$D$22))*$V3142*Z3142/(1-$W3142)","v":{"v":56555.59716533858,"d":"56,556"}},{"$f":"'BP Financier'!$D$44*(('BP Financier'!$C$19+'BP Financier'!$D$19)/('BP Financier'!$C$16+'BP Financier'!$C$19+'BP Financier'!$D$16+'BP Financier'!$D$19+'BP Financier'!$C$22+'BP Financier'!$D$22))*$V3142*AA3142/(1-$W3142)","v":{"v":6987.3335462984305,"d":"6,987"}},{"$f":"'BP Financier'!$D$44*(('BP Financier'!$C$19+'BP Financier'!$D$19)/('BP Financier'!$C$16+'BP Financier'!$C$19+'BP Financier'!$D$16+'BP Financier'!$D$19+'BP Financier'!$C$22+'BP Financier'!$D$22))*$V3142*AB3142/(1-$W3142)","v":{"v":3344.364774296684,"d":"3,344"}},null,{"v":0.015,"d":"1.50%"},{"$f":"Actif!$E$28/100","v":{"v":0.28900000000000003,"d":"28.90%"}},{"$f":"Actif!$E$30/100","v":{"v":0.09050000000000001,"d":"9.05%"}},{"$f":"Actif!$E$31/100","v":{"v":0.0605,"d":"6.05%"}},{"$f":"Actif!$E$32/100","v":{"v":0.47350000000000003,"d":"47.35%"}},{"$f":"Actif!$E$33/100","v":{"v":0.0585,"d":"5.85%"}},{"$f":"Actif!$E$29/100","v":{"v":0.027999999999999997,"d":"2.80%"}}]
[null,"#45",40,2026,"H","A_PER",{"v":0.44999999999999996,"d":"0.45"},{"v":0.38999999999999996,"d":"0.39"},0.6,0.6,85,0,{"$f":"ROUND(Primes!$N$7*V3143,0)","v":6},{"$f":"'BP Financier'!$D$33*(('BP Financier'!$C$19+'BP Financier'!$D$19)/('BP Financier'!$C$16+'BP Financier'!$C$19+'BP Financier'!$D$16+'BP Financier'!$D$19))*V3143","v":{"v":153171.78039929623,"d":"153,172"}},{"v":84922.97694731937,"d":"84,923"},{"$f":"'BP Financier'!$D$44*(('BP Financier'!$C$19+'BP Financier'!$D$19)/('BP Financier'!$C$16+'BP Financier'!$C$19+'BP Financier'!$D$16+'BP Financier'!$D$19+'BP Financier'!$C$22+'BP Financier'!$D$22))*$V3143*X3143/(1-$W3143)","v":{"v":10809.464716923214,"d":"10,809"}},{"$f":"'BP Financier'!$D$44*(('BP Financier'!$C$19+'BP Financier'!$D$19)/('BP Financier'!$C$16+'BP Financier'!$C$19+'BP Financier'!$D$16+'BP Financier'!$D$19+'BP Financier'!$C$22+'BP Financier'!$D$22))*$V3143*Y3143/(1-$W3143)","v":{"v":7226.216744462478,"d":"7,226"}},{"$f":"'BP Financier'!$D$44*(('BP Financier'!$C$19+'BP Financier'!$D$19)/('BP Financier'!$C$16+'BP Financier'!$C$19+'BP Financier'!$D$16+'BP Financier'!$D$19+'BP Financier'!$C$22+'BP Financier'!$D$22))*$V3143*Z3143/(1-$W3143)","v":{"v":56555.59716533858,"d":"56,556"}},{"$f":"'BP Financier'!$D$44*(('BP Financier'!$C$19+'BP Financier'!$D$19)/('BP Financier'!$C$16+'BP Financier'!$C$19+'BP Financier'!$D$16+'BP Financier'!$D$19+'BP Financier'!$C$22+'BP Financier'!$D$22))*$V3143*AA3143/(1-$W3143)","v":{"v":6987.3335462984305,"d":"6,987"}},{"$f":"'BP Financier'!$D$44*(('BP Financier'!$C$19+'BP Financier'!$D$19)/('BP Financier'!$C$16+'BP Financier'!$C$19+'BP Financier'!$D$16+'BP Financier'!$D$19+'BP Financier'!$C$22+'BP Financier'!$D$22))*$V3143*AB3143/(1-$W3143)","v":{"v":3344.364774296684,"d":"3,344"}},null,{"v":0.015,"d":"1.50%"},{"$f":"Actif!$E$28/100","v":{"v":0.28900000000000003,"d":"28.90%"}},{"$f":"Actif!$E$30/100","v":{"v":0.09050000000000001,"d":"9.05%"}},{"$f":"Actif!$E$31/100","v":{"v":0.0605,"d":"6.05%"}},{"$f":"Actif!$E$32/100","v":{"v":0.47350000000000003,"d":"47.35%"}},{"$f":"Actif!$E$33/100","v":{"v":0.0585,"d":"5.85%"}},{"$f":"Actif!$E$29/100","v":{"v":0.027999999999999997,"d":"2.80%"}}]
[null,"#46",40,2028,"H","A_PER",{"v":0.44999999999999996,"d":"0.45"},{"v":0.38999999999999996,"d":"0.39"},0.6,0.6,85,0,{"$f":"ROUND(Primes!$N$7*V3144,0)","v":6},{"$f":"'BP Financier'!$D$33*(('BP Financier'!$C$19+'BP Financier'!$D$19)/('BP Financier'!$C$16+'BP Financier'!$C$19+'BP Financier'!$D$16+'BP Financier'!$D$19))*V3144","v":{"v":153171.78039929623,"d":"153,172"}},{"v":84922.97694731937,"d":"84,923"},{"$f":"'BP Financier'!$D$44*(('BP Financier'!$C$19+'BP Financier'!$D$19)/('BP Financier'!$C$16+'BP Financier'!$C$19+'BP Financier'!$D$16+'BP Financier'!$D$19+'BP Financier'!$C$22+'BP Financier'!$D$22))*$V3144*X3144/(1-$W3144)","v":{"v":10809.464716923214,"d":"10,809"}},{"$f":"'BP Financier'!$D$44*(('BP Financier'!$C$19+'BP Financier'!$D$19)/('BP Financier'!$C$16+'BP Financier'!$C$19+'BP Financier'!$D$16+'BP Financier'!$D$19+'BP Financier'!$C$22+'BP Financier'!$D$22))*$V3144*Y3144/(1-$W3144)","v":{"v":7226.216744462478,"d":"7,226"}},{"$f":"'BP Financier'!$D$44*(('BP Financier'!$C$19+'BP Financier'!$D$19)/('BP Financier'!$C$16+'BP Financier'!$C$19+'BP Financier'!$D$16+'BP Financier'!$D$19+'BP Financier'!$C$22+'BP Financier'!$D$22))*$V3144*Z3144/(1-$W3144)","v":{"v":56555.59716533858,"d":"56,556"}},{"$f":"'BP Financier'!$D$44*(('BP Financier'!$C$19+'BP Financier'!$D$19)/('BP Financier'!$C$16+'BP Financier'!$C$19+'BP Financier'!$D$16+'BP Financier'!$D$19+'BP Financier'!$C$22+'BP Financier'!$D$22))*$V3144*AA3144/(1-$W3144)","v":{"v":6987.3335462984305,"d":"6,987"}},{"$f":"'BP Financier'!$D$44*(('BP Financier'!$C$19+'BP Financier'!$D$19)/('BP Financier'!$C$16+'BP Financier'!$C$19+'BP Financier'!$D$16+'BP Financier'!$D$19+'BP Financier'!$C$22+'BP Financier'!$D$22))*$V3144*AB3144/(1-$W3144)","v":{"v":3344.364774296684,"d":"3,344"}},null,{"v":0.015,"d":"1.50%"},{"$f":"Actif!$E$28/100","v":{"v":0.28900000000000003,"d":"28.90%"}},{"$f":"Actif!$E$30/100","v":{"v":0.09050000000000001,"d":"9.05%"}},{"$f":"Actif!$E$31/100","v":{"v":0.0605,"d":"6.05%"}},{"$f":"Actif!$E$32/100","v":{"v":0.47350000000000003,"d":"47.35%"}},{"$f":"Actif!$E$33/100","v":{"v":0.0585,"d":"5.85%"}},{"$f":"Actif!$E$29/100","v":{"v":0.027999999999999997,"d":"2.80%"}}]
[null,"#47",41,2026,"F","A_PER",{"v":0.44999999999999996,"d":"0.45"},{"v":0.38999999999999996,"d":"0.39"},0.6,0.6,85,0,{"$f":"ROUND(Primes!$N$7*V3145,0)","v":9},{"$f":"'BP Financier'!$D$33*(('BP Financier'!$C$19+'BP Financier'!$D$19)/('BP Financier'!$C$16+'BP Financier'!$C$19+'BP Financier'!$D$16+'BP Financier'!$D$19))*V3145","v":{"v":204229.04053239498,"d":"204,229"}},{"v":113230.63592975918,"d":"113,231"},{"$f":"'BP Financier'!$D$44*(('BP Financier'!$C$19+'BP Financier'!$D$19)/('BP Financier'!$C$16+'BP Financier'!$C$19+'BP Financier'!$D$16+'BP Financier'!$D$19+'BP Financier'!$C$22+'BP Financier'!$D$22))*$V3145*X3145/(1-$W3145)","v":{"v":14412.619622564285,"d":"14,413"}},{"$f":"'BP Financier'!$D$44*(('BP Financier'!$C$19+'BP Financier'!$D$19)/('BP Financier'!$C$16+'BP Financier'!$C$19+'BP Financier'!$D$16+'BP Financier'!$D$19+'BP Financier'!$C$22+'BP Financier'!$D$22))*$V3145*Y3145/(1-$W3145)","v":{"v":9634.955659283305,"d":"9,635"}},{"$f":"'BP Financier'!$D$44*(('BP Financier'!$C$19+'BP Financier'!$D$19)/('BP Financier'!$C$16+'BP Financier'!$C$19+'BP Financier'!$D$16+'BP Financier'!$D$19+'BP Financier'!$C$22+'BP Financier'!$D$22))*$V3145*Z3145/(1-$W3145)","v":{"v":75407.4628871181,"d":"75,407"}},{"$f":"'BP Financier'!$D$44*(('BP Financier'!$C$19+'BP Financier'!$D$19)/('BP Financier'!$C$16+'BP Financier'!$C$19+'BP Financier'!$D$16+'BP Financier'!$D$19+'BP Financier'!$C$22+'BP Financier'!$D$22))*$V3145*AA3145/(1-$W3145)","v":{"v":9316.444728397908,"d":"9,316"}},{"$f":"'BP Financier'!$D$44*(('BP Financier'!$C$19+'BP Financier'!$D$19)/('BP Financier'!$C$16+'BP Financier'!$C$19+'BP Financier'!$D$16+'BP Financier'!$D$19+'BP Financier'!$C$22+'BP Financier'!$D$22))*$V3145*AB3145/(1-$W3145)","v":{"v":4459.1530323955785,"d":"4,459"}},null,{"v":0.02,"d":"2.00%"},{"$f":"Actif!$E$28/100","v":{"v":0.28900000000000003,"d":"28.90%"}},{"$f":"Actif!$E$30/100","v":{"v":0.09050000000000001,"d":"9.05%"}},{"$f":"Actif!$E$31/100","v":{"v":0.0605,"d":"6.05%"}},{"$f":"Actif!$E$32/100","v":{"v":0.47350000000000003,"d":"47.35%"}},{"$f":"Actif!$E$33/100","v":{"v":0.0585,"d":"5.85%"}},{"$f":"Actif!$E$29/100","v":{"v":0.027999999999999997,"d":"2.80%"}}]
[null,"#48",41,2028,"F","A_PER",{"v":0.44999999999999996,"d":"0.45"},{"v":0.38999999999999996,"d":"0.39"},0.6,0.6,85,0,{"$f":"ROUND(Primes!$N$7*V3146,0)","v":9},{"$f":"'BP Financier'!$D$33*(('BP Financier'!$C$19+'BP Financier'!$D$19)/('BP Financier'!$C$16+'BP Financier'!$C$19+'BP Financier'!$D$16+'BP Financier'!$D$19))*V3146","v":{"v":204229.04053239498,"d":"204,229"}},{"v":113230.63592975918,"d":"113,231"},{"$f":"'BP Financier'!$D$44*(('BP Financier'!$C$19+'BP Financier'!$D$19)/('BP Financier'!$C$16+'BP Financier'!$C$19+'BP Financier'!$D$16+'BP Financier'!$D$19+'BP Financier'!$C$22+'BP Financier'!$D$22))*$V3146*X3146/(1-$W3146)","v":{"v":14412.619622564285,"d":"14,413"}},{"$f":"'BP Financier'!$D$44*(('BP Financier'!$C$19+'BP Financier'!$D$19)/('BP Financier'!$C$16+'BP Financier'!$C$19+'BP Financier'!$D$16+'BP Financier'!$D$19+'BP Financier'!$C$22+'BP Financier'!$D$22))*$V3146*Y3146/(1-$W3146)","v":{"v":9634.955659283305,"d":"9,635"}},{"$f":"'BP Financier'!$D$44*(('BP Financier'!$C$19+'BP Financier'!$D$19)/('BP Financier'!$C$16+'BP Financier'!$C$19+'BP Financier'!$D$16+'BP Financier'!$D$19+'BP Financier'!$C$22+'BP Financier'!$D$22))*$V3146*Z3146/(1-$W3146)","v":{"v":75407.4628871181,"d":"75,407"}},{"$f":"'BP Financier'!$D$44*(('BP Financier'!$C$19+'BP Financier'!$D$19)/('BP Financier'!$C$16+'BP Financier'!$C$19+'BP Financier'!$D$16+'BP Financier'!$D$19+'BP Financier'!$C$22+'BP Financier'!$D$22))*$V3146*AA3146/(1-$W3146)","v":{"v":9316.444728397908,"d":"9,316"}},{"$f":"'BP Financier'!$D$44*(('BP Financier'!$C$19+'BP Financier'!$D$19)/('BP Financier'!$C$16+'BP Financier'!$C$19+'BP Financier'!$D$16+'BP Financier'!$D$19+'BP Financier'!$C$22+'BP Financier'!$D$22))*$V3146*AB3146/(1-$W3146)","v":{"v":4459.1530323955785,"d":"4,459"}},null,{"v":0.02,"d":"2.00%"},{"$f":"Actif!$E$28/100","v":{"v":0.28900000000000003,"d":"28.90%"}},{"$f":"Actif!$E$30/100","v":{"v":0.09050000000000001,"d":"9.05%"}},{"$f":"Actif!$E$31/100","v":{"v":0.0605,"d":"6.05%"}},{"$f":"Actif!$E$32/100","v":{"v":0.47350000000000003,"d":"47.35%"}},{"$f":"Actif!$E$33/100","v":{"v":0.0585,"d":"5.85%"}},{"$f":"Actif!$E$29/100","v":{"v":0.027999999999999997,"d":"2.80%"}}]
[null,"#49",42,2026,"H","A_PER",{"v":0.44999999999999996,"d":"0.45"},{"v":0.38999999999999996,"d":"0.39"},0.6,0.6,85,0,{"$f":"ROUND(Primes!$N$7*V3147,0)","v":9},{"$f":"'BP Financier'!$D$33*(('BP Financier'!$C$19+'BP Financier'!$D$19)/('BP Financier'!$C$16+'BP Financier'!$C$19+'BP Financier'!$D$16+'BP Financier'!$D$19))*V3147","v":{"v":204229.04053239498,"d":"204,229"}},{"v":113230.63592975918,"d":"113,231"},{"$f":"'BP Financier'!$D$44*(('BP Financier'!$C$19+'BP Financier'!$D$19)/('BP Financier'!$C$16+'BP Financier'!$C$19+'BP Financier'!$D$16+'BP Financier'!$D$19+'BP Financier'!$C$22+'BP Financier'!$D$22))*$V3147*X3147/(1-$W3147)","v":{"v":14412.619622564285,"d":"14,413"}},{"$f":"'BP Financier'!$D$44*(('BP Financier'!$C$19+'BP Financier'!$D$19)/('BP Financier'!$C$16+'BP Financier'!$C$19+'BP Financier'!$D$16+'BP Financier'!$D$19+'BP Financier'!$C$22+'BP Financier'!$D$22))*$V3147*Y3147/(1-$W3147)","v":{"v":9634.955659283305,"d":"9,635"}},{"$f":"'BP Financier'!$D$44*(('BP Financier'!$C$19+'BP Financier'!$D$19)/('BP Financier'!$C$16+'BP Financier'!$C$19+'BP Financier'!$D$16+'BP Financier'!$D$19+'BP Financier'!$C$22+'BP Financier'!$D$22))*$V3147*Z3147/(1-$W3147)","v":{"v":75407.4628871181,"d":"75,407"}},{"$f":"'BP Financier'!$D$44*(('BP Financier'!$C$19+'BP Financier'!$D$19)/('BP Financier'!$C$16+'BP Financier'!$C$19+'BP Financier'!$D$16+'BP Financier'!$D$19+'BP Financier'!$C$22+'BP Financier'!$D$22))*$V3147*AA3147/(1-$W3147)","v":{"v":9316.444728397908,"d":"9,316"}},{"$f":"'BP Financier'!$D$44*(('BP Financier'!$C$19+'BP Financier'!$D$19)/('BP Financier'!$C$16+'BP Financier'!$C$19+'BP Financier'!$D$16+'BP Financier'!$D$19+'BP Financier'!$C$22+'BP Financier'!$D$22))*$V3147*AB3147/(1-$W3147)","v":{"v":4459.1530323955785,"d":"4,459"}},null,{"v":0.02,"d":"2.00%"},{"$f":"Actif!$E$28/100","v":{"v":0.28900000000000003,"d":"28.90%"}},{"$f":"Actif!$E$30/100","v":{"v":0.09050000000000001,"d":"9.05%"}},{"$f":"Actif!$E$31/100","v":{"v":0.0605,"d":"6.05%"}},{"$f":"Actif!$E$32/100","v":{"v":0.47350000000000003,"d":"47.35%"}},{"$f":"Actif!$E$33/100","v":{"v":0.0585,"d":"5.85%"}},{"$f":"Actif!$E$29/100","v":{"v":0.027999999999999997,"d":"2.80%"}}]
[null,"#50",42,2028,"H","A_PER",{"v":0.44999999999999996,"d":"0.45"},{"v":0.38999999999999996,"d":"0.39"},0.6,0.6,85,0,{"$f":"ROUND(Primes!$N$7*V3148,0)","v":9},{"$f":"'BP Financier'!$D$33*(('BP Financier'!$C$19+'BP Financier'!$D$19)/('BP Financier'!$C$16+'BP Financier'!$C$19+'BP Financier'!$D$16+'BP Financier'!$D$19))*V3148","v":{"v":204229.04053239498,"d":"204,229"}},{"v":113230.63592975918,"d":"113,231"},{"$f":"'BP Financier'!$D$44*(('BP Financier'!$C$19+'BP Financier'!$D$19)/('BP Financier'!$C$16+'BP Financier'!$C$19+'BP Financier'!$D$16+'BP Financier'!$D$19+'BP Financier'!$C$22+'BP Financier'!$D$22))*$V3148*X3148/(1-$W3148)","v":{"v":14412.619622564285,"d":"14,413"}},{"$f":"'BP Financier'!$D$44*(('BP Financier'!$C$19+'BP Financier'!$D$19)/('BP Financier'!$C$16+'BP Financier'!$C$19+'BP Financier'!$D$16+'BP Financier'!$D$19+'BP Financier'!$C$22+'BP Financier'!$D$22))*$V3148*Y3148/(1-$W3148)","v":{"v":9634.955659283305,"d":"9,635"}},{"$f":"'BP Financier'!$D$44*(('BP Financier'!$C$19+'BP Financier'!$D$19)/('BP Financier'!$C$16+'BP Financier'!$C$19+'BP Financier'!$D$16+'BP Financier'!$D$19+'BP Financier'!$C$22+'BP Financier'!$D$22))*$V3148*Z3148/(1-$W3148)","v":{"v":75407.4628871181,"d":"75,407"}},{"$f":"'BP Financier'!$D$44*(('BP Financier'!$C$19+'BP Financier'!$D$19)/('BP Financier'!$C$16+'BP Financier'!$C$19+'BP Financier'!$D$16+'BP Financier'!$D$19+'BP Financier'!$C$22+'BP Financier'!$D$22))*$V3148*AA3148/(1-$W3148)","v":{"v":9316.444728397908,"d":"9,316"}},{"$f":"'BP Financier'!$D$44*(('BP Financier'!$C$19+'BP Financier'!$D$19)/('BP Financier'!$C$16+'BP Financier'!$C$19+'BP Financier'!$D$16+'BP Financier'!$D$19+'BP Financier'!$C$22+'BP Financier'!$D$22))*$V3148*AB3148/(1-$W3148)","v":{"v":4459.1530323955785,"d":"4,459"}},null,{"v":0.02,"d":"2.00%"},{"$f":"Actif!$E$28/100","v":{"v":0.28900000000000003,"d":"28.90%"}},{"$f":"Actif!$E$30/100","v":{"v":0.09050000000000001,"d":"9.05%"}},{"$f":"Actif!$E$31/100","v":{"v":0.0605,"d":"6.05%"}},{"$f":"Actif!$E$32/100","v":{"v":0.47350000000000003,"d":"47.35%"}},{"$f":"Actif!$E$33/100","v":{"v":0.0585,"d":"5.85%"}},{"$f":"Actif!$E$29/100","v":{"v":0.027999999999999997,"d":"2.80%"}}]
[null,"#51",43,2026,"H","A_PER",{"v":0.44999999999999996,"d":"0.45"},{"v":0.38999999999999996,"d":"0.39"},0.6,0.6,85,0,{"$f":"ROUND(Primes!$N$7*V3149,0)","v":9},{"$f":"'BP Financier'!$D$33*(('BP Financier'!$C$19+'BP Financier'!$D$19)/('BP Financier'!$C$16+'BP Financier'!$C$19+'BP Financier'!$D$16+'BP Financier'!$D$19))*V3149","v":{"v":204229.04053239498,"d":"204,229"}},{"v":113230.63592975918,"d":"113,231"},{"$f":"'BP Financier'!$D$44*(('BP Financier'!$C$19+'BP Financier'!$D$19)/('BP Financier'!$C$16+'BP Financier'!$C$19+'BP Financier'!$D$16+'BP Financier'!$D$19+'BP Financier'!$C$22+'BP Financier'!$D$22))*$V3149*X3149/(1-$W3149)","v":{"v":14412.619622564285,"d":"14,413"}},{"$f":"'BP Financier'!$D$44*(('BP Financier'!$C$19+'BP Financier'!$D$19)/('BP Financier'!$C$16+'BP Financier'!$C$19+'BP Financier'!$D$16+'BP Financier'!$D$19+'BP Financier'!$C$22+'BP Financier'!$D$22))*$V3149*Y3149/(1-$W3149)","v":{"v":9634.955659283305,"d":"9,635"}},{"$f":"'BP Financier'!$D$44*(('BP Financier'!$C$19+'BP Financier'!$D$19)/('BP Financier'!$C$16+'BP Financier'!$C$19+'BP Financier'!$D$16+'BP Financier'!$D$19+'BP Financier'!$C$22+'BP Financier'!$D$22))*$V3149*Z3149/(1-$W3149)","v":{"v":75407.4628871181,"d":"75,407"}},{"$f":"'BP Financier'!$D$44*(('BP Financier'!$C$19+'BP Financier'!$D$19)/('BP Financier'!$C$16+'BP Financier'!$C$19+'BP Financier'!$D$16+'BP Financier'!$D$19+'BP Financier'!$C$22+'BP Financier'!$D$22))*$V3149*AA3149/(1-$W3149)","v":{"v":9316.444728397908,"d":"9,316"}},{"$f":"'BP Financier'!$D$44*(('BP Financier'!$C$19+'BP Financier'!$D$19)/('BP Financier'!$C$16+'BP Financier'!$C$19+'BP Financier'!$D$16+'BP Financier'!$D$19+'BP Financier'!$C$22+'BP Financier'!$D$22))*$V3149*AB3149/(1-$W3149)","v":{"v":4459.1530323955785,"d":"4,459"}},null,{"v":0.02,"d":"2.00%"},{"$f":"Actif!$E$28/100","v":{"v":0.28900000000000003,"d":"28.90%"}},{"$f":"Actif!$E$30/100","v":{"v":0.09050000000000001,"d":"9.05%"}},{"$f":"Actif!$E$31/100","v":{"v":0.0605,"d":"6.05%"}},{"$f":"Actif!$E$32/100","v":{"v":0.47350000000000003,"d":"47.35%"}},{"$f":"Actif!$E$33/100","v":{"v":0.0585,"d":"5.85%"}},{"$f":"Actif!$E$29/100","v":{"v":0.027999999999999997,"d":"2.80%"}}]
[null,"#52",43,2028,"H","A_PER",{"v":0.44999999999999996,"d":"0.45"},{"v":0.38999999999999996,"d":"0.39"},0.6,0.6,85,0,{"$f":"ROUND(Primes!$N$7*V3150,0)","v":9},{"$f":"'BP Financier'!$D$33*(('BP Financier'!$C$19+'BP Financier'!$D$19)/('BP Financier'!$C$16+'BP Financier'!$C$19+'BP Financier'!$D$16+'BP Financier'!$D$19))*V3150","v":{"v":204229.04053239498,"d":"204,229"}},{"v":113230.63592975918,"d":"113,231"},{"$f":"'BP Financier'!$D$44*(('BP Financier'!$C$19+'BP Financier'!$D$19)/('BP Financier'!$C$16+'BP Financier'!$C$19+'BP Financier'!$D$16+'BP Financier'!$D$19+'BP Financier'!$C$22+'BP Financier'!$D$22))*$V3150*X3150/(1-$W3150)","v":{"v":14412.619622564285,"d":"14,413"}},{"$f":"'BP Financier'!$D$44*(('BP Financier'!$C$19+'BP Financier'!$D$19)/('BP Financier'!$C$16+'BP Financier'!$C$19+'BP Financier'!$D$16+'BP Financier'!$D$19+'BP Financier'!$C$22+'BP Financier'!$D$22))*$V3150*Y3150/(1-$W3150)","v":{"v":9634.955659283305,"d":"9,635"}},{"$f":"'BP Financier'!$D$44*(('BP Financier'!$C$19+'BP Financier'!$D$19)/('BP Financier'!$C$16+'BP Financier'!$C$19+'BP Financier'!$D$16+'BP Financier'!$D$19+'BP Financier'!$C$22+'BP Financier'!$D$22))*$V3150*Z3150/(1-$W3150)","v":{"v":75407.4628871181,"d":"75,407"}},{"$f":"'BP Financier'!$D$44*(('BP Financier'!$C$19+'BP Financier'!$D$19)/('BP Financier'!$C$16+'BP Financier'!$C$19+'BP Financier'!$D$16+'BP Financier'!$D$19+'BP Financier'!$C$22+'BP Financier'!$D$22))*$V3150*AA3150/(1-$W3150)","v":{"v":9316.444728397908,"d":"9,316"}},{"$f":"'BP Financier'!$D$44*(('BP Financier'!$C$19+'BP Financier'!$D$19)/('BP Financier'!$C$16+'BP Financier'!$C$19+'BP Financier'!$D$16+'BP Financier'!$D$19+'BP Financier'!$C$22+'BP Financier'!$D$22))*$V3150*AB3150/(1-$W3150)","v":{"v":4459.1530323955785,"d":"4,459"}},null,{"v":0.02,"d":"2.00%"},{"$f":"Actif!$E$28/100","v":{"v":0.28900000000000003,"d":"28.90%"}},{"$f":"Actif!$E$30/100","v":{"v":0.09050000000000001,"d":"9.05%"}},{"$f":"Actif!$E$31/100","v":{"v":0.0605,"d":"6.05%"}},{"$f":"Actif!$E$32/100","v":{"v":0.47350000000000003,"d":"47.35%"}},{"$f":"Actif!$E$33/100","v":{"v":0.0585,"d":"5.85%"}},{"$f":"Actif!$E$29/100","v":{"v":0.027999999999999997,"d":"2.80%"}}]
[null,"#53",44,2026,"F","A_PER",{"v":0.44999999999999996,"d":"0.45"},{"v":0.38999999999999996,"d":"0.39"},0.6,0.6,85,0,{"$f":"ROUND(Primes!$N$7*V3151,0)","v":11},{"$f":"'BP Financier'!$D$33*(('BP Financier'!$C$19+'BP Financier'!$D$19)/('BP Financier'!$C$16+'BP Financier'!$C$19+'BP Financier'!$D$16+'BP Financier'!$D$19))*V3151","v":{"v":255286.30066549373,"d":"255,286"}},{"v":141538.29491219897,"d":"141,538"},{"$f":"'BP Financier'!$D$44*(('BP Financier'!$C$19+'BP Financier'!$D$19)/('BP Financier'!$C$16+'BP Financier'!$C$19+'BP Financier'!$D$16+'BP Financier'!$D$19+'BP Financier'!$C$22+'BP Financier'!$D$22))*$V3151*X3151/(1-$W3151)","v":{"v":18015.77452820536,"d":"18,016"}},{"$f":"'BP Financier'!$D$44*(('BP Financier'!$C$19+'BP Financier'!$D$19)/('BP Financier'!$C$16+'BP Financier'!$C$19+'BP Financier'!$D$16+'BP Financier'!$D$19+'BP Financier'!$C$22+'BP Financier'!$D$22))*$V3151*Y3151/(1-$W3151)","v":{"v":12043.69457410413,"d":"12,044"}},{"$f":"'BP Financier'!$D$44*(('BP Financier'!$C$19+'BP Financier'!$D$19)/('BP Financier'!$C$16+'BP Financier'!$C$19+'BP Financier'!$D$16+'BP Financier'!$D$19+'BP Financier'!$C$22+'BP Financier'!$D$22))*$V3151*Z3151/(1-$W3151)","v":{"v":94259.32860889763,"d":"94,259"}},{"$f":"'BP Financier'!$D$44*(('BP Financier'!$C$19+'BP Financier'!$D$19)/('BP Financier'!$C$16+'BP Financier'!$C$19+'BP Financier'!$D$16+'BP Financier'!$D$19+'BP Financier'!$C$22+'BP Financier'!$D$22))*$V3151*AA3151/(1-$W3151)","v":{"v":11645.555910497384,"d":"11,646"}},{"$f":"'BP Financier'!$D$44*(('BP Financier'!$C$19+'BP Financier'!$D$19)/('BP Financier'!$C$16+'BP Financier'!$C$19+'BP Financier'!$D$16+'BP Financier'!$D$19+'BP Financier'!$C$22+'BP Financier'!$D$22))*$V3151*AB3151/(1-$W3151)","v":{"v":5573.941290494474,"d":"5,574"}},null,{"v":0.025,"d":"2.50%"},{"$f":"Actif!$E$28/100","v":{"v":0.28900000000000003,"d":"28.90%"}},{"$f":"Actif!$E$30/100","v":{"v":0.09050000000000001,"d":"9.05%"}},{"$f":"Actif!$E$31/100","v":{"v":0.0605,"d":"6.05%"}},{"$f":"Actif!$E$32/100","v":{"v":0.47350000000000003,"d":"47.35%"}},{"$f":"Actif!$E$33/100","v":{"v":0.0585,"d":"5.85%"}},{"$f":"Actif!$E$29/100","v":{"v":0.027999999999999997,"d":"2.80%"}}]
[null,"#54",44,2028,"F","A_PER",{"v":0.44999999999999996,"d":"0.45"},{"v":0.38999999999999996,"d":"0.39"},0.6,0.6,85,0,{"$f":"ROUND(Primes!$N$7*V3152,0)","v":11},{"$f":"'BP Financier'!$D$33*(('BP Financier'!$C$19+'BP Financier'!$D$19)/('BP Financier'!$C$16+'BP Financier'!$C$19+'BP Financier'!$D$16+'BP Financier'!$D$19))*V3152","v":{"v":255286.30066549373,"d":"255,286"}},{"v":141538.29491219897,"d":"141,538"},{"$f":"'BP Financier'!$D$44*(('BP Financier'!$C$19+'BP Financier'!$D$19)/('BP Financier'!$C$16+'BP Financier'!$C$19+'BP Financier'!$D$16+'BP Financier'!$D$19+'BP Financier'!$C$22+'BP Financier'!$D$22))*$V3152*X3152/(1-$W3152)","v":{"v":18015.77452820536,"d":"18,016"}},{"$f":"'BP Financier'!$D$44*(('BP Financier'!$C$19+'BP Financier'!$D$19)/('BP Financier'!$C$16+'BP Financier'!$C$19+'BP Financier'!$D$16+'BP Financier'!$D$19+'BP Financier'!$C$22+'BP Financier'!$D$22))*$V3152*Y3152/(1-$W3152)","v":{"v":12043.69457410413,"d":"12,044"}},{"$f":"'BP Financier'!$D$44*(('BP Financier'!$C$19+'BP Financier'!$D$19)/('BP Financier'!$C$16+'BP Financier'!$C$19+'BP Financier'!$D$16+'BP Financier'!$D$19+'BP Financier'!$C$22+'BP Financier'!$D$22))*$V3152*Z3152/(1-$W3152)","v":{"v":94259.32860889763,"d":"94,259"}},{"$f":"'BP Financier'!$D$44*(('BP Financier'!$C$19+'BP Financier'!$D$19)/('BP Financier'!$C$16+'BP Financier'!$C$19+'BP Financier'!$D$16+'BP Financier'!$D$19+'BP Financier'!$C$22+'BP Financier'!$D$22))*$V3152*AA3152/(1-$W3152)","v":{"v":11645.555910497384,"d":"11,646"}},{"$f":"'BP Financier'!$D$44*(('BP Financier'!$C$19+'BP Financier'!$D$19)/('BP Financier'!$C$16+'BP Financier'!$C$19+'BP Financier'!$D$16+'BP Financier'!$D$19+'BP Financier'!$C$22+'BP Financier'!$D$22))*$V3152*AB3152/(1-$W3152)","v":{"v":5573.941290494474,"d":"5,574"}},null,{"v":0.025,"d":"2.50%"},{"$f":"Actif!$E$28/100","v":{"v":0.28900000000000003,"d":"28.90%"}},{"$f":"Actif!$E$30/100","v":{"v":0.09050000000000001,"d":"9.05%"}},{"$f":"Actif!$E$31/100","v":{"v":0.0605,"d":"6.05%"}},{"$f":"Actif!$E$32/100","v":{"v":0.47350000000000003,"d":"47.35%"}},{"$f":"Actif!$E$33/100","v":{"v":0.0585,"d":"5.85%"}},{"$f":"Actif!$E$29/100","v":{"v":0.027999999999999997,"d":"2.80%"}}]
[null,"#55",45,2026,"H","A_PER",{"v":0.44999999999999996,"d":"0.45"},{"v":0.38999999999999996,"d":"0.39"},0.6,0.6,85,0,{"$f":"ROUND(Primes!$N$7*V3153,0)","v":11},{"$f":"'BP Financier'!$D$33*(('BP Financier'!$C$19+'BP Financier'!$D$19)/('BP Financier'!$C$16+'BP Financier'!$C$19+'BP Financier'!$D$16+'BP Financier'!$D$19))*V3153","v":{"v":255286.30066549373,"d":"255,286"}},{"v":141538.29491219897,"d":"141,538"},{"$f":"'BP Financier'!$D$44*(('BP Financier'!$C$19+'BP Financier'!$D$19)/('BP Financier'!$C$16+'BP Financier'!$C$19+'BP Financier'!$D$16+'BP Financier'!$D$19+'BP Financier'!$C$22+'BP Financier'!$D$22))*$V3153*X3153/(1-$W3153)","v":{"v":18015.77452820536,"d":"18,016"}},{"$f":"'BP Financier'!$D$44*(('BP Financier'!$C$19+'BP Financier'!$D$19)/('BP Financier'!$C$16+'BP Financier'!$C$19+'BP Financier'!$D$16+'BP Financier'!$D$19+'BP Financier'!$C$22+'BP Financier'!$D$22))*$V3153*Y3153/(1-$W3153)","v":{"v":12043.69457410413,"d":"12,044"}},{"$f":"'BP Financier'!$D$44*(('BP Financier'!$C$19+'BP Financier'!$D$19)/('BP Financier'!$C$16+'BP Financier'!$C$19+'BP Financier'!$D$16+'BP Financier'!$D$19+'BP Financier'!$C$22+'BP Financier'!$D$22))*$V3153*Z3153/(1-$W3153)","v":{"v":94259.32860889763,"d":"94,259"}},{"$f":"'BP Financier'!$D$44*(('BP Financier'!$C$19+'BP Financier'!$D$19)/('BP Financier'!$C$16+'BP Financier'!$C$19+'BP Financier'!$D$16+'BP Financier'!$D$19+'BP Financier'!$C$22+'BP Financier'!$D$22))*$V3153*AA3153/(1-$W3153)","v":{"v":11645.555910497384,"d":"11,646"}},{"$f":"'BP Financier'!$D$44*(('BP Financier'!$C$19+'BP Financier'!$D$19)/('BP Financier'!$C$16+'BP Financier'!$C$19+'BP Financier'!$D$16+'BP Financier'!$D$19+'BP Financier'!$C$22+'BP Financier'!$D$22))*$V3153*AB3153/(1-$W3153)","v":{"v":5573.941290494474,"d":"5,574"}},null,{"v":0.025,"d":"2.50%"},{"$f":"Actif!$E$28/100","v":{"v":0.28900000000000003,"d":"28.90%"}},{"$f":"Actif!$E$30/100","v":{"v":0.09050000000000001,"d":"9.05%"}},{"$f":"Actif!$E$31/100","v":{"v":0.0605,"d":"6.05%"}},{"$f":"Actif!$E$32/100","v":{"v":0.47350000000000003,"d":"47.35%"}},{"$f":"Actif!$E$33/100","v":{"v":0.0585,"d":"5.85%"}},{"$f":"Actif!$E$29/100","v":{"v":0.027999999999999997,"d":"2.80%"}}]
[null,"#56",45,2028,"H","A_PER",{"v":0.44999999999999996,"d":"0.45"},{"v":0.38999999999999996,"d":"0.39"},0.6,0.6,85,0,{"$f":"ROUND(Primes!$N$7*V3154,0)","v":11},{"$f":"'BP Financier'!$D$33*(('BP Financier'!$C$19+'BP Financier'!$D$19)/('BP Financier'!$C$16+'BP Financier'!$C$19+'BP Financier'!$D$16+'BP Financier'!$D$19))*V3154","v":{"v":255286.30066549373,"d":"255,286"}},{"v":141538.29491219897,"d":"141,538"},{"$f":"'BP Financier'!$D$44*(('BP Financier'!$C$19+'BP Financier'!$D$19)/('BP Financier'!$C$16+'BP Financier'!$C$19+'BP Financier'!$D$16+'BP Financier'!$D$19+'BP Financier'!$C$22+'BP Financier'!$D$22))*$V3154*X3154/(1-$W3154)","v":{"v":18015.77452820536,"d":"18,016"}},{"$f":"'BP Financier'!$D$44*(('BP Financier'!$C$19+'BP Financier'!$D$19)/('BP Financier'!$C$16+'BP Financier'!$C$19+'BP Financier'!$D$16+'BP Financier'!$D$19+'BP Financier'!$C$22+'BP Financier'!$D$22))*$V3154*Y3154/(1-$W3154)","v":{"v":12043.69457410413,"d":"12,044"}},{"$f":"'BP Financier'!$D$44*(('BP Financier'!$C$19+'BP Financier'!$D$19)/('BP Financier'!$C$16+'BP Financier'!$C$19+'BP Financier'!$D$16+'BP Financier'!$D$19+'BP Financier'!$C$22+'BP Financier'!$D$22))*$V3154*Z3154/(1-$W3154)","v":{"v":94259.32860889763,"d":"94,259"}},{"$f":"'BP Financier'!$D$44*(('BP Financier'!$C$19+'BP Financier'!$D$19)/('BP Financier'!$C$16+'BP Financier'!$C$19+'BP Financier'!$D$16+'BP Financier'!$D$19+'BP Financier'!$C$22+'BP Financier'!$D$22))*$V3154*AA3154/(1-$W3154)","v":{"v":11645.555910497384,"d":"11,646"}},{"$f":"'BP Financier'!$D$44*(('BP Financier'!$C$19+'BP Financier'!$D$19)/('BP Financier'!$C$16+'BP Financier'!$C$19+'BP Financier'!$D$16+'BP Financier'!$D$19+'BP Financier'!$C$22+'BP Financier'!$D$22))*$V3154*AB3154/(1-$W3154)","v":{"v":5573.941290494474,"d":"5,574"}},null,{"v":0.025,"d":"2.50%"},{"$f":"Actif!$E$28/100","v":{"v":0.28900000000000003,"d":"28.90%"}},{"$f":"Actif!$E$30/100","v":{"v":0.09050000000000001,"d":"9.05%"}},{"$f":"Actif!$E$31/100","v":{"v":0.0605,"d":"6.05%"}},{"$f":"Actif!$E$32/100","v":{"v":0.47350000000000003,"d":"47.35%"}},{"$f":"Actif!$E$33/100","v":{"v":0.0585,"d":"5.85%"}},{"$f":"Actif!$E$29/100","v":{"v":0.027999999999999997,"d":"2.80%"}}]
[null,"#57",46,2026,"H","A_PER",{"v":0.44999999999999996,"d":"0.45"},{"v":0.38999999999999996,"d":"0.39"},0.6,0.6,85,0,{"$f":"ROUND(Primes!$N$7*V3155,0)","v":11},{"$f":"'BP Financier'!$D$33*(('BP Financier'!$C$19+'BP Financier'!$D$19)/('BP Financier'!$C$16+'BP Financier'!$C$19+'BP Financier'!$D$16+'BP Financier'!$D$19))*V3155","v":{"v":255286.30066549373,"d":"255,286"}},{"v":141538.29491219897,"d":"141,538"},{"$f":"'BP Financier'!$D$44*(('BP Financier'!$C$19+'BP Financier'!$D$19)/('BP Financier'!$C$16+'BP Financier'!$C$19+'BP Financier'!$D$16+'BP Financier'!$D$19+'BP Financier'!$C$22+'BP Financier'!$D$22))*$V3155*X3155/(1-$W3155)","v":{"v":18015.77452820536,"d":"18,016"}},{"$f":"'BP Financier'!$D$44*(('BP Financier'!$C$19+'BP Financier'!$D$19)/('BP Financier'!$C$16+'BP Financier'!$C$19+'BP Financier'!$D$16+'BP Financier'!$D$19+'BP Financier'!$C$22+'BP Financier'!$D$22))*$V3155*Y3155/(1-$W3155)","v":{"v":12043.69457410413,"d":"12,044"}},{"$f":"'BP Financier'!$D$44*(('BP Financier'!$C$19+'BP Financier'!$D$19)/('BP Financier'!$C$16+'BP Financier'!$C$19+'BP Financier'!$D$16+'BP Financier'!$D$19+'BP Financier'!$C$22+'BP Financier'!$D$22))*$V3155*Z3155/(1-$W3155)","v":{"v":94259.32860889763,"d":"94,259"}},{"$f":"'BP Financier'!$D$44*(('BP Financier'!$C$19+'BP Financier'!$D$19)/('BP Financier'!$C$16+'BP Financier'!$C$19+'BP Financier'!$D$16+'BP Financier'!$D$19+'BP Financier'!$C$22+'BP Financier'!$D$22))*$V3155*AA3155/(1-$W3155)","v":{"v":11645.555910497384,"d":"11,646"}},{"$f":"'BP Financier'!$D$44*(('BP Financier'!$C$19+'BP Financier'!$D$19)/('BP Financier'!$C$16+'BP Financier'!$C$19+'BP Financier'!$D$16+'BP Financier'!$D$19+'BP Financier'!$C$22+'BP Financier'!$D$22))*$V3155*AB3155/(1-$W3155)","v":{"v":5573.941290494474,"d":"5,574"}},null,{"v":0.025,"d":"2.50%"},{"$f":"Actif!$E$28/100","v":{"v":0.28900000000000003,"d":"28.90%"}},{"$f":"Actif!$E$30/100","v":{"v":0.09050000000000001,"d":"9.05%"}},{"$f":"Actif!$E$31/100","v":{"v":0.0605,"d":"6.05%"}},{"$f":"Actif!$E$32/100","v":{"v":0.47350000000000003,"d":"47.35%"}},{"$f":"Actif!$E$33/100","v":{"v":0.0585,"d":"5.85%"}},{"$f":"Actif!$E$29/100","v":{"v":0.027999999999999997,"d":"2.80%"}}]
[null,"#58",46,2028,"H","A_PER",{"v":0.44999999999999996,"d":"0.45"},{"v":0.38999999999999996,"d":"0.39"},0.6,0.6,85,0,{"$f":"ROUND(Primes!$N$7*V3156,0)","v":11},{"$f":"'BP Financier'!$D$33*(('BP Financier'!$C$19+'BP Financier'!$D$19)/('BP Financier'!$C$16+'BP Financier'!$C$19+'BP Financier'!$D$16+'BP Financier'!$D$19))*V3156","v":{"v":255286.30066549373,"d":"255,286"}},{"v":141538.29491219897,"d":"141,538"},{"$f":"'BP Financier'!$D$44*(('BP Financier'!$C$19+'BP Financier'!$D$19)/('BP Financier'!$C$16+'BP Financier'!$C$19+'BP Financier'!$D$16+'BP Financier'!$D$19+'BP Financier'!$C$22+'BP Financier'!$D$22))*$V3156*X3156/(1-$W3156)","v":{"v":18015.77452820536,"d":"18,016"}},{"$f":"'BP Financier'!$D$44*(('BP Financier'!$C$19+'BP Financier'!$D$19)/('BP Financier'!$C$16+'BP Financier'!$C$19+'BP Financier'!$D$16+'BP Financier'!$D$19+'BP Financier'!$C$22+'BP Financier'!$D$22))*$V3156*Y3156/(1-$W3156)","v":{"v":12043.69457410413,"d":"12,044"}},{"$f":"'BP Financier'!$D$44*(('BP Financier'!$C$19+'BP Financier'!$D$19)/('BP Financier'!$C$16+'BP Financier'!$C$19+'BP Financier'!$D$16+'BP Financier'!$D$19+'BP Financier'!$C$22+'BP Financier'!$D$22))*$V3156*Z3156/(1-$W3156)","v":{"v":94259.32860889763,"d":"94,259"}},{"$f":"'BP Financier'!$D$44*(('BP Financier'!$C$19+'BP Financier'!$D$19)/('BP Financier'!$C$16+'BP Financier'!$C$19+'BP Financier'!$D$16+'BP Financier'!$D$19+'BP Financier'!$C$22+'BP Financier'!$D$22))*$V3156*AA3156/(1-$W3156)","v":{"v":11645.555910497384,"d":"11,646"}},{"$f":"'BP Financier'!$D$44*(('BP Financier'!$C$19+'BP Financier'!$D$19)/('BP Financier'!$C$16+'BP Financier'!$C$19+'BP Financier'!$D$16+'BP Financier'!$D$19+'BP Financier'!$C$22+'BP Financier'!$D$22))*$V3156*AB3156/(1-$W3156)","v":{"v":5573.941290494474,"d":"5,574"}},null,{"v":0.025,"d":"2.50%"},{"$f":"Actif!$E$28/100","v":{"v":0.28900000000000003,"d":"28.90%"}},{"$f":"Actif!$E$30/100","v":{"v":0.09050000000000001,"d":"9.05%"}},{"$f":"Actif!$E$31/100","v":{"v":0.0605,"d":"6.05%"}},{"$f":"Actif!$E$32/100","v":{"v":0.47350000000000003,"d":"47.35%"}},{"$f":"Actif!$E$33/100","v":{"v":0.0585,"d":"5.85%"}},{"$f":"Actif!$E$29/100","v":{"v":0.027999999999999997,"d":"2.80%"}}]
[null,"#59",47,2026,"F","A_PER",{"v":0.44999999999999996,"d":"0.45"},{"v":0.38999999999999996,"d":"0.39"},0.6,0.6,85,0,{"$f":"ROUND(Primes!$N$7*V3157,0)","v":9},{"$f":"'BP Financier'!$D$33*(('BP Financier'!$C$19+'BP Financier'!$D$19)/('BP Financier'!$C$16+'BP Financier'!$C$19+'BP Financier'!$D$16+'BP Financier'!$D$19))*V3157","v":{"v":204229.04053239498,"d":"204,229"}},{"v":113230.63592975918,"d":"113,231"},{"$f":"'BP Financier'!$D$44*(('BP Financier'!$C$19+'BP Financier'!$D$19)/('BP Financier'!$C$16+'BP Financier'!$C$19+'BP Financier'!$D$16+'BP Financier'!$D$19+'BP Financier'!$C$22+'BP Financier'!$D$22))*$V3157*X3157/(1-$W3157)","v":{"v":14412.619622564285,"d":"14,413"}},{"$f":"'BP Financier'!$D$44*(('BP Financier'!$C$19+'BP Financier'!$D$19)/('BP Financier'!$C$16+'BP Financier'!$C$19+'BP Financier'!$D$16+'BP Financier'!$D$19+'BP Financier'!$C$22+'BP Financier'!$D$22))*$V3157*Y3157/(1-$W3157)","v":{"v":9634.955659283305,"d":"9,635"}},{"$f":"'BP Financier'!$D$44*(('BP Financier'!$C$19+'BP Financier'!$D$19)/('BP Financier'!$C$16+'BP Financier'!$C$19+'BP Financier'!$D$16+'BP Financier'!$D$19+'BP Financier'!$C$22+'BP Financier'!$D$22))*$V3157*Z3157/(1-$W3157)","v":{"v":75407.4628871181,"d":"75,407"}},{"$f":"'BP Financier'!$D$44*(('BP Financier'!$C$19+'BP Financier'!$D$19)/('BP Financier'!$C$16+'BP Financier'!$C$19+'BP Financier'!$D$16+'BP Financier'!$D$19+'BP Financier'!$C$22+'BP Financier'!$D$22))*$V3157*AA3157/(1-$W3157)","v":{"v":9316.444728397908,"d":"9,316"}},{"$f":"'BP Financier'!$D$44*(('BP Financier'!$C$19+'BP Financier'!$D$19)/('BP Financier'!$C$16+'BP Financier'!$C$19+'BP Financier'!$D$16+'BP Financier'!$D$19+'BP Financier'!$C$22+'BP Financier'!$D$22))*$V3157*AB3157/(1-$W3157)","v":{"v":4459.1530323955785,"d":"4,459"}},null,{"v":0.02,"d":"2.00%"},{"$f":"Actif!$E$28/100","v":{"v":0.28900000000000003,"d":"28.90%"}},{"$f":"Actif!$E$30/100","v":{"v":0.09050000000000001,"d":"9.05%"}},{"$f":"Actif!$E$31/100","v":{"v":0.0605,"d":"6.05%"}},{"$f":"Actif!$E$32/100","v":{"v":0.47350000000000003,"d":"47.35%"}},{"$f":"Actif!$E$33/100","v":{"v":0.0585,"d":"5.85%"}},{"$f":"Actif!$E$29/100","v":{"v":0.027999999999999997,"d":"2.80%"}}]
[null,"#60",47,2028,"F","A_PER",{"v":0.44999999999999996,"d":"0.45"},{"v":0.38999999999999996,"d":"0.39"},0.6,0.6,85,0,{"$f":"ROUND(Primes!$N$7*V3158,0)","v":9},{"$f":"'BP Financier'!$D$33*(('BP Financier'!$C$19+'BP Financier'!$D$19)/('BP Financier'!$C$16+'BP Financier'!$C$19+'BP Financier'!$D$16+'BP Financier'!$D$19))*V3158","v":{"v":204229.04053239498,"d":"204,229"}},{"v":113230.63592975918,"d":"113,231"},{"$f":"'BP Financier'!$D$44*(('BP Financier'!$C$19+'BP Financier'!$D$19)/('BP Financier'!$C$16+'BP Financier'!$C$19+'BP Financier'!$D$16+'BP Financier'!$D$19+'BP Financier'!$C$22+'BP Financier'!$D$22))*$V3158*X3158/(1-$W3158)","v":{"v":14412.619622564285,"d":"14,413"}},{"$f":"'BP Financier'!$D$44*(('BP Financier'!$C$19+'BP Financier'!$D$19)/('BP Financier'!$C$16+'BP Financier'!$C$19+'BP Financier'!$D$16+'BP Financier'!$D$19+'BP Financier'!$C$22+'BP Financier'!$D$22))*$V3158*Y3158/(1-$W3158)","v":{"v":9634.955659283305,"d":"9,635"}},{"$f":"'BP Financier'!$D$44*(('BP Financier'!$C$19+'BP Financier'!$D$19)/('BP Financier'!$C$16+'BP Financier'!$C$19+'BP Financier'!$D$16+'BP Financier'!$D$19+'BP Financier'!$C$22+'BP Financier'!$D$22))*$V3158*Z3158/(1-$W3158)","v":{"v":75407.4628871181,"d":"75,407"}},{"$f":"'BP Financier'!$D$44*(('BP Financier'!$C$19+'BP Financier'!$D$19)/('BP Financier'!$C$16+'BP Financier'!$C$19+'BP Financier'!$D$16+'BP Financier'!$D$19+'BP Financier'!$C$22+'BP Financier'!$D$22))*$V3158*AA3158/(1-$W3158)","v":{"v":9316.444728397908,"d":"9,316"}},{"$f":"'BP Financier'!$D$44*(('BP Financier'!$C$19+'BP Financier'!$D$19)/('BP Financier'!$C$16+'BP Financier'!$C$19+'BP Financier'!$D$16+'BP Financier'!$D$19+'BP Financier'!$C$22+'BP Financier'!$D$22))*$V3158*AB3158/(1-$W3158)","v":{"v":4459.1530323955785,"d":"4,459"}},null,{"v":0.02,"d":"2.00%"},{"$f":"Actif!$E$28/100","v":{"v":0.28900000000000003,"d":"28.90%"}},{"$f":"Actif!$E$30/100","v":{"v":0.09050000000000001,"d":"9.05%"}},{"$f":"Actif!$E$31/100","v":{"v":0.0605,"d":"6.05%"}},{"$f":"Actif!$E$32/100","v":{"v":0.47350000000000003,"d":"47.35%"}},{"$f":"Actif!$E$33/100","v":{"v":0.0585,"d":"5.85%"}},{"$f":"Actif!$E$29/100","v":{"v":0.027999999999999997,"d":"2.80%"}}]
[null,"#61",48,2026,"H","A_PER",{"v":0.44999999999999996,"d":"0.45"},{"v":0.38999999999999996,"d":"0.39"},0.6,0.6,85,0,{"$f":"ROUND(Primes!$N$7*V3159,0)","v":9},{"$f":"'BP Financier'!$D$33*(('BP Financier'!$C$19+'BP Financier'!$D$19)/('BP Financier'!$C$16+'BP Financier'!$C$19+'BP Financier'!$D$16+'BP Financier'!$D$19))*V3159","v":{"v":204229.04053239498,"d":"204,229"}},{"v":113230.63592975918,"d":"113,231"},{"$f":"'BP Financier'!$D$44*(('BP Financier'!$C$19+'BP Financier'!$D$19)/('BP Financier'!$C$16+'BP Financier'!$C$19+'BP Financier'!$D$16+'BP Financier'!$D$19+'BP Financier'!$C$22+'BP Financier'!$D$22))*$V3159*X3159/(1-$W3159)","v":{"v":14412.619622564285,"d":"14,413"}},{"$f":"'BP Financier'!$D$44*(('BP Financier'!$C$19+'BP Financier'!$D$19)/('BP Financier'!$C$16+'BP Financier'!$C$19+'BP Financier'!$D$16+'BP Financier'!$D$19+'BP Financier'!$C$22+'BP Financier'!$D$22))*$V3159*Y3159/(1-$W3159)","v":{"v":9634.955659283305,"d":"9,635"}},{"$f":"'BP Financier'!$D$44*(('BP Financier'!$C$19+'BP Financier'!$D$19)/('BP Financier'!$C$16+'BP Financier'!$C$19+'BP Financier'!$D$16+'BP Financier'!$D$19+'BP Financier'!$C$22+'BP Financier'!$D$22))*$V3159*Z3159/(1-$W3159)","v":{"v":75407.4628871181,"d":"75,407"}},{"$f":"'BP Financier'!$D$44*(('BP Financier'!$C$19+'BP Financier'!$D$19)/('BP Financier'!$C$16+'BP Financier'!$C$19+'BP Financier'!$D$16+'BP Financier'!$D$19+'BP Financier'!$C$22+'BP Financier'!$D$22))*$V3159*AA3159/(1-$W3159)","v":{"v":9316.444728397908,"d":"9,316"}},{"$f":"'BP Financier'!$D$44*(('BP Financier'!$C$19+'BP Financier'!$D$19)/('BP Financier'!$C$16+'BP Financier'!$C$19+'BP Financier'!$D$16+'BP Financier'!$D$19+'BP Financier'!$C$22+'BP Financier'!$D$22))*$V3159*AB3159/(1-$W3159)","v":{"v":4459.1530323955785,"d":"4,459"}},null,{"v":0.02,"d":"2.00%"},{"$f":"Actif!$E$28/100","v":{"v":0.28900000000000003,"d":"28.90%"}},{"$f":"Actif!$E$30/100","v":{"v":0.09050000000000001,"d":"9.05%"}},{"$f":"Actif!$E$31/100","v":{"v":0.0605,"d":"6.05%"}},{"$f":"Actif!$E$32/100","v":{"v":0.47350000000000003,"d":"47.35%"}},{"$f":"Actif!$E$33/100","v":{"v":0.0585,"d":"5.85%"}},{"$f":"Actif!$E$29/100","v":{"v":0.027999999999999997,"d":"2.80%"}}]
[null,"#62",48,2028,"H","A_PER",{"v":0.44999999999999996,"d":"0.45"},{"v":0.38999999999999996,"d":"0.39"},0.6,0.6,85,0,{"$f":"ROUND(Primes!$N$7*V3160,0)","v":9},{"$f":"'BP Financier'!$D$33*(('BP Financier'!$C$19+'BP Financier'!$D$19)/('BP Financier'!$C$16+'BP Financier'!$C$19+'BP Financier'!$D$16+'BP Financier'!$D$19))*V3160","v":{"v":204229.04053239498,"d":"204,229"}},{"v":113230.63592975918,"d":"113,231"},{"$f":"'BP Financier'!$D$44*(('BP Financier'!$C$19+'BP Financier'!$D$19)/('BP Financier'!$C$16+'BP Financier'!$C$19+'BP Financier'!$D$16+'BP Financier'!$D$19+'BP Financier'!$C$22+'BP Financier'!$D$22))*$V3160*X3160/(1-$W3160)","v":{"v":14412.619622564285,"d":"14,413"}},{"$f":"'BP Financier'!$D$44*(('BP Financier'!$C$19+'BP Financier'!$D$19)/('BP Financier'!$C$16+'BP Financier'!$C$19+'BP Financier'!$D$16+'BP Financier'!$D$19+'BP Financier'!$C$22+'BP Financier'!$D$22))*$V3160*Y3160/(1-$W3160)","v":{"v":9634.955659283305,"d":"9,635"}},{"$f":"'BP Financier'!$D$44*(('BP Financier'!$C$19+'BP Financier'!$D$19)/('BP Financier'!$C$16+'BP Financier'!$C$19+'BP Financier'!$D$16+'BP Financier'!$D$19+'BP Financier'!$C$22+'BP Financier'!$D$22))*$V3160*Z3160/(1-$W3160)","v":{"v":75407.4628871181,"d":"75,407"}},{"$f":"'BP Financier'!$D$44*(('BP Financier'!$C$19+'BP Financier'!$D$19)/('BP Financier'!$C$16+'BP Financier'!$C$19+'BP Financier'!$D$16+'BP Financier'!$D$19+'BP Financier'!$C$22+'BP Financier'!$D$22))*$V3160*AA3160/(1-$W3160)","v":{"v":9316.444728397908,"d":"9,316"}},{"$f":"'BP Financier'!$D$44*(('BP Financier'!$C$19+'BP Financier'!$D$19)/('BP Financier'!$C$16+'BP Financier'!$C$19+'BP Financier'!$D$16+'BP Financier'!$D$19+'BP Financier'!$C$22+'BP Financier'!$D$22))*$V3160*AB3160/(1-$W3160)","v":{"v":4459.1530323955785,"d":"4,459"}},null,{"v":0.02,"d":"2.00%"},{"$f":"Actif!$E$28/100","v":{"v":0.28900000000000003,"d":"28.90%"}},{"$f":"Actif!$E$30/100","v":{"v":0.09050000000000001,"d":"9.05%"}},{"$f":"Actif!$E$31/100","v":{"v":0.0605,"d":"6.05%"}},{"$f":"Actif!$E$32/100","v":{"v":0.47350000000000003,"d":"47.35%"}},{"$f":"Actif!$E$33/100","v":{"v":0.0585,"d":"5.85%"}},{"$f":"Actif!$E$29/100","v":{"v":0.027999999999999997,"d":"2.80%"}}]
[null,"#63",49,2026,"H","A_PER",{"v":0.44999999999999996,"d":"0.45"},{"v":0.38999999999999996,"d":"0.39"},0.6,0.6,85,0,{"$f":"ROUND(Primes!$N$7*V3161,0)","v":9},{"$f":"'BP Financier'!$D$33*(('BP Financier'!$C$19+'BP Financier'!$D$19)/('BP Financier'!$C$16+'BP Financier'!$C$19+'BP Financier'!$D$16+'BP Financier'!$D$19))*V3161","v":{"v":204229.04053239498,"d":"204,229"}},{"v":113230.63592975918,"d":"113,231"},{"$f":"'BP Financier'!$D$44*(('BP Financier'!$C$19+'BP Financier'!$D$19)/('BP Financier'!$C$16+'BP Financier'!$C$19+'BP Financier'!$D$16+'BP Financier'!$D$19+'BP Financier'!$C$22+'BP Financier'!$D$22))*$V3161*X3161/(1-$W3161)","v":{"v":14412.619622564285,"d":"14,413"}},{"$f":"'BP Financier'!$D$44*(('BP Financier'!$C$19+'BP Financier'!$D$19)/('BP Financier'!$C$16+'BP Financier'!$C$19+'BP Financier'!$D$16+'BP Financier'!$D$19+'BP Financier'!$C$22+'BP Financier'!$D$22))*$V3161*Y3161/(1-$W3161)","v":{"v":9634.955659283305,"d":"9,635"}},{"$f":"'BP Financier'!$D$44*(('BP Financier'!$C$19+'BP Financier'!$D$19)/('BP Financier'!$C$16+'BP Financier'!$C$19+'BP Financier'!$D$16+'BP Financier'!$D$19+'BP Financier'!$C$22+'BP Financier'!$D$22))*$V3161*Z3161/(1-$W3161)","v":{"v":75407.4628871181,"d":"75,407"}},{"$f":"'BP Financier'!$D$44*(('BP Financier'!$C$19+'BP Financier'!$D$19)/('BP Financier'!$C$16+'BP Financier'!$C$19+'BP Financier'!$D$16+'BP Financier'!$D$19+'BP Financier'!$C$22+'BP Financier'!$D$22))*$V3161*AA3161/(1-$W3161)","v":{"v":9316.444728397908,"d":"9,316"}},{"$f":"'BP Financier'!$D$44*(('BP Financier'!$C$19+'BP Financier'!$D$19)/('BP Financier'!$C$16+'BP Financier'!$C$19+'BP Financier'!$D$16+'BP Financier'!$D$19+'BP Financier'!$C$22+'BP Financier'!$D$22))*$V3161*AB3161/(1-$W3161)","v":{"v":4459.1530323955785,"d":"4,459"}},null,{"v":0.02,"d":"2.00%"},{"$f":"Actif!$E$28/100","v":{"v":0.28900000000000003,"d":"28.90%"}},{"$f":"Actif!$E$30/100","v":{"v":0.09050000000000001,"d":"9.05%"}},{"$f":"Actif!$E$31/100","v":{"v":0.0605,"d":"6.05%"}},{"$f":"Actif!$E$32/100","v":{"v":0.47350000000000003,"d":"47.35%"}},{"$f":"Actif!$E$33/100","v":{"v":0.0585,"d":"5.85%"}},{"$f":"Actif!$E$29/100","v":{"v":0.027999999999999997,"d":"2.80%"}}]
[null,"#64",49,2028,"H","A_PER",{"v":0.44999999999999996,"d":"0.45"},{"v":0.38999999999999996,"d":"0.39"},0.6,0.6,85,0,{"$f":"ROUND(Primes!$N$7*V3162,0)","v":9},{"$f":"'BP Financier'!$D$33*(('BP Financier'!$C$19+'BP Financier'!$D$19)/('BP Financier'!$C$16+'BP Financier'!$C$19+'BP Financier'!$D$16+'BP Financier'!$D$19))*V3162","v":{"v":204229.04053239498,"d":"204,229"}},{"v":113230.63592975918,"d":"113,231"},{"$f":"'BP Financier'!$D$44*(('BP Financier'!$C$19+'BP Financier'!$D$19)/('BP Financier'!$C$16+'BP Financier'!$C$19+'BP Financier'!$D$16+'BP Financier'!$D$19+'BP Financier'!$C$22+'BP Financier'!$D$22))*$V3162*X3162/(1-$W3162)","v":{"v":14412.619622564285,"d":"14,413"}},{"$f":"'BP Financier'!$D$44*(('BP Financier'!$C$19+'BP Financier'!$D$19)/('BP Financier'!$C$16+'BP Financier'!$C$19+'BP Financier'!$D$16+'BP Financier'!$D$19+'BP Financier'!$C$22+'BP Financier'!$D$22))*$V3162*Y3162/(1-$W3162)","v":{"v":9634.955659283305,"d":"9,635"}},{"$f":"'BP Financier'!$D$44*(('BP Financier'!$C$19+'BP Financier'!$D$19)/('BP Financier'!$C$16+'BP Financier'!$C$19+'BP Financier'!$D$16+'BP Financier'!$D$19+'BP Financier'!$C$22+'BP Financier'!$D$22))*$V3162*Z3162/(1-$W3162)","v":{"v":75407.4628871181,"d":"75,407"}},{"$f":"'BP Financier'!$D$44*(('BP Financier'!$C$19+'BP Financier'!$D$19)/('BP Financier'!$C$16+'BP Financier'!$C$19+'BP Financier'!$D$16+'BP Financier'!$D$19+'BP Financier'!$C$22+'BP Financier'!$D$22))*$V3162*AA3162/(1-$W3162)","v":{"v":9316.444728397908,"d":"9,316"}},{"$f":"'BP Financier'!$D$44*(('BP Financier'!$C$19+'BP Financier'!$D$19)/('BP Financier'!$C$16+'BP Financier'!$C$19+'BP Financier'!$D$16+'BP Financier'!$D$19+'BP Financier'!$C$22+'BP Financier'!$D$22))*$V3162*AB3162/(1-$W3162)","v":{"v":4459.1530323955785,"d":"4,459"}},null,{"v":0.02,"d":"2.00%"},{"$f":"Actif!$E$28/100","v":{"v":0.28900000000000003,"d":"28.90%"}},{"$f":"Actif!$E$30/100","v":{"v":0.09050000000000001,"d":"9.05%"}},{"$f":"Actif!$E$31/100","v":{"v":0.0605,"d":"6.05%"}},{"$f":"Actif!$E$32/100","v":{"v":0.47350000000000003,"d":"47.35%"}},{"$f":"Actif!$E$33/100","v":{"v":0.0585,"d":"5.85%"}},{"$f":"Actif!$E$29/100","v":{"v":0.027999999999999997,"d":"2.80%"}}]
[null,"#65",50,2026,"F","A_PER",{"$f":"frais_gestion_Euro*100","v":{"v":0.44999999999999996,"d":"0.45"}},{"$f":"frais_gestion_UC*100","v":{"v":0.38999999999999996,"d":"0.39"}},{"$f":"frais_distribution_FG*100","v":0.6},{"$f":"frais_distribution_UC*100","v":0.6},85,0,{"$f":"ROUND(Primes!$N$7*V3163,0)","v":9},{"$f":"'BP Financier'!$D$33*(('BP Financier'!$C$19+'BP Financier'!$D$19)/('BP Financier'!$C$16+'BP Financier'!$C$19+'BP Financier'!$D$16+'BP Financier'!$D$19))*V3163","v":{"v":204229.04053239498,"d":"204,229"}},{"v":113230.63592975918,"d":"113,231"},{"$f":"'BP Financier'!$D$44*(('BP Financier'!$C$19+'BP Financier'!$D$19)/('BP Financier'!$C$16+'BP Financier'!$C$19+'BP Financier'!$D$16+'BP Financier'!$D$19+'BP Financier'!$C$22+'BP Financier'!$D$22))*$V3163*X3163/(1-$W3163)","v":{"v":14412.619622564285,"d":"14,413"}},{"$f":"'BP Financier'!$D$44*(('BP Financier'!$C$19+'BP Financier'!$D$19)/('BP Financier'!$C$16+'BP Financier'!$C$19+'BP Financier'!$D$16+'BP Financier'!$D$19+'BP Financier'!$C$22+'BP Financier'!$D$22))*$V3163*Y3163/(1-$W3163)","v":{"v":9634.955659283305,"d":"9,635"}},{"$f":"'BP Financier'!$D$44*(('BP Financier'!$C$19+'BP Financier'!$D$19)/('BP Financier'!$C$16+'BP Financier'!$C$19+'BP Financier'!$D$16+'BP Financier'!$D$19+'BP Financier'!$C$22+'BP Financier'!$D$22))*$V3163*Z3163/(1-$W3163)","v":{"v":75407.4628871181,"d":"75,407"}},{"$f":"'BP Financier'!$D$44*(('BP Financier'!$C$19+'BP Financier'!$D$19)/('BP Financier'!$C$16+'BP Financier'!$C$19+'BP Financier'!$D$16+'BP Financier'!$D$19+'BP Financier'!$C$22+'BP Financier'!$D$22))*$V3163*AA3163/(1-$W3163)","v":{"v":9316.444728397908,"d":"9,316"}},{"$f":"'BP Financier'!$D$44*(('BP Financier'!$C$19+'BP Financier'!$D$19)/('BP Financier'!$C$16+'BP Financier'!$C$19+'BP Financier'!$D$16+'BP Financier'!$D$19+'BP Financier'!$C$22+'BP Financier'!$D$22))*$V3163*AB3163/(1-$W3163)","v":{"v":4459.1530323955785,"d":"4,459"}},null,{"v":0.02,"d":"2.00%"},{"$f":"Actif!$E$28/100","v":{"v":0.28900000000000003,"d":"28.90%"}},{"$f":"Actif!$E$30/100","v":{"v":0.09050000000000001,"d":"9.05%"}},{"$f":"Actif!$E$31/100","v":{"v":0.0605,"d":"6.05%"}},{"$f":"Actif!$E$32/100","v":{"v":0.47350000000000003,"d":"47.35%"}},{"$f":"Actif!$E$33/100","v":{"v":0.0585,"d":"5.85%"}},{"$f":"Actif!$E$29/100","v":{"v":0.027999999999999997,"d":"2.80%"}}]
[null,"#66",50,2028,"F","A_PER",{"v":0.44999999999999996,"d":"0.45"},{"v":0.38999999999999996,"d":"0.39"},0.6,0.6,85,0,{"$f":"ROUND(Primes!$N$7*V3164,0)","v":9},{"$f":"'BP Financier'!$D$33*(('BP Financier'!$C$19+'BP Financier'!$D$19)/('BP Financier'!$C$16+'BP Financier'!$C$19+'BP Financier'!$D$16+'BP Financier'!$D$19))*V3164","v":{"v":204229.04053239498,"d":"204,229"}},{"$f":"SUM(P3164:T3164)","v":{"v":113230.63592975918,"d":"113,231"}},{"$f":"'BP Financier'!$D$44*(('BP Financier'!$C$19+'BP Financier'!$D$19)/('BP Financier'!$C$16+'BP Financier'!$C$19+'BP Financier'!$D$16+'BP Financier'!$D$19+'BP Financier'!$C$22+'BP Financier'!$D$22))*$V3164*X3164/(1-$W3164)","v":{"v":14412.619622564285,"d":"14,413"}},{"$f":"'BP Financier'!$D$44*(('BP Financier'!$C$19+'BP Financier'!$D$19)/('BP Financier'!$C$16+'BP Financier'!$C$19+'BP Financier'!$D$16+'BP Financier'!$D$19+'BP Financier'!$C$22+'BP Financier'!$D$22))*$V3164*Y3164/(1-$W3164)","v":{"v":9634.955659283305,"d":"9,635"}},{"$f":"'BP Financier'!$D$44*(('BP Financier'!$C$19+'BP Financier'!$D$19)/('BP Financier'!$C$16+'BP Financier'!$C$19+'BP Financier'!$D$16+'BP Financier'!$D$19+'BP Financier'!$C$22+'BP Financier'!$D$22))*$V3164*Z3164/(1-$W3164)","v":{"v":75407.4628871181,"d":"75,407"}},{"$f":"'BP Financier'!$D$44*(('BP Financier'!$C$19+'BP Financier'!$D$19)/('BP Financier'!$C$16+'BP Financier'!$C$19+'BP Financier'!$D$16+'BP Financier'!$D$19+'BP Financier'!$C$22+'BP Financier'!$D$22))*$V3164*AA3164/(1-$W3164)","v":{"v":9316.444728397908,"d":"9,316"}},{"$f":"'BP Financier'!$D$44*(('BP Financier'!$C$19+'BP Financier'!$D$19)/('BP Financier'!$C$16+'BP Financier'!$C$19+'BP Financier'!$D$16+'BP Financier'!$D$19+'BP Financier'!$C$22+'BP Financier'!$D$22))*$V3164*AB3164/(1-$W3164)","v":{"v":4459.1530323955785,"d":"4,459"}},null,{"v":0.02,"d":"2.00%"},{"$f":"Actif!$E$28/100","v":{"v":0.28900000000000003,"d":"28.90%"}},{"$f":"Actif!$E$30/100","v":{"v":0.09050000000000001,"d":"9.05%"}},{"$f":"Actif!$E$31/100","v":{"v":0.0605,"d":"6.05%"}},{"$f":"Actif!$E$32/100","v":{"v":0.47350000000000003,"d":"47.35%"}},{"$f":"Actif!$E$33/100","v":{"v":0.0585,"d":"5.85%"}},{"$f":"Actif!$E$29/100","v":{"v":0.027999999999999997,"d":"2.80%"}}]
[null,"#67",51,2026,"H","A_PER",{"v":0.44999999999999996,"d":"0.45"},{"v":0.38999999999999996,"d":"0.39"},0.6,0.6,85,0,{"$f":"ROUND(Primes!$N$7*V3165,0)","v":9},{"$f":"'BP Financier'!$D$33*(('BP Financier'!$C$19+'BP Financier'!$D$19)/('BP Financier'!$C$16+'BP Financier'!$C$19+'BP Financier'!$D$16+'BP Financier'!$D$19))*V3165","v":{"v":204229.04053239498,"d":"204,229"}},{"v":113230.63592975918,"d":"113,231"},{"$f":"'BP Financier'!$D$44*(('BP Financier'!$C$19+'BP Financier'!$D$19)/('BP Financier'!$C$16+'BP Financier'!$C$19+'BP Financier'!$D$16+'BP Financier'!$D$19+'BP Financier'!$C$22+'BP Financier'!$D$22))*$V3165*X3165/(1-$W3165)","v":{"v":14412.619622564285,"d":"14,413"}},{"$f":"'BP Financier'!$D$44*(('BP Financier'!$C$19+'BP Financier'!$D$19)/('BP Financier'!$C$16+'BP Financier'!$C$19+'BP Financier'!$D$16+'BP Financier'!$D$19+'BP Financier'!$C$22+'BP Financier'!$D$22))*$V3165*Y3165/(1-$W3165)","v":{"v":9634.955659283305,"d":"9,635"}},{"$f":"'BP Financier'!$D$44*(('BP Financier'!$C$19+'BP Financier'!$D$19)/('BP Financier'!$C$16+'BP Financier'!$C$19+'BP Financier'!$D$16+'BP Financier'!$D$19+'BP Financier'!$C$22+'BP Financier'!$D$22))*$V3165*Z3165/(1-$W3165)","v":{"v":75407.4628871181,"d":"75,407"}},{"$f":"'BP Financier'!$D$44*(('BP Financier'!$C$19+'BP Financier'!$D$19)/('BP Financier'!$C$16+'BP Financier'!$C$19+'BP Financier'!$D$16+'BP Financier'!$D$19+'BP Financier'!$C$22+'BP Financier'!$D$22))*$V3165*AA3165/(1-$W3165)","v":{"v":9316.444728397908,"d":"9,316"}},{"$f":"'BP Financier'!$D$44*(('BP Financier'!$C$19+'BP Financier'!$D$19)/('BP Financier'!$C$16+'BP Financier'!$C$19+'BP Financier'!$D$16+'BP Financier'!$D$19+'BP Financier'!$C$22+'BP Financier'!$D$22))*$V3165*AB3165/(1-$W3165)","v":{"v":4459.1530323955785,"d":"4,459"}},null,{"v":0.02,"d":"2.00%"},{"$f":"Actif!$E$28/100","v":{"v":0.28900000000000003,"d":"28.90%"}},{"$f":"Actif!$E$30/100","v":{"v":0.09050000000000001,"d":"9.05%"}},{"$f":"Actif!$E$31/100","v":{"v":0.0605,"d":"6.05%"}},{"$f":"Actif!$E$32/100","v":{"v":0.47350000000000003,"d":"47.35%"}},{"$f":"Actif!$E$33/100","v":{"v":0.0585,"d":"5.85%"}},{"$f":"Actif!$E$29/100","v":{"v":0.027999999999999997,"d":"2.80%"}}]
[null,"#68",51,2028,"H","A_PER",{"v":0.44999999999999996,"d":"0.45"},{"v":0.38999999999999996,"d":"0.39"},0.6,0.6,85,0,{"$f":"ROUND(Primes!$N$7*V3166,0)","v":9},{"$f":"'BP Financier'!$D$33*(('BP Financier'!$C$19+'BP Financier'!$D$19)/('BP Financier'!$C$16+'BP Financier'!$C$19+'BP Financier'!$D$16+'BP Financier'!$D$19))*V3166","v":{"v":204229.04053239498,"d":"204,229"}},{"v":113230.63592975918,"d":"113,231"},{"$f":"'BP Financier'!$D$44*(('BP Financier'!$C$19+'BP Financier'!$D$19)/('BP Financier'!$C$16+'BP Financier'!$C$19+'BP Financier'!$D$16+'BP Financier'!$D$19+'BP Financier'!$C$22+'BP Financier'!$D$22))*$V3166*X3166/(1-$W3166)","v":{"v":14412.619622564285,"d":"14,413"}},{"$f":"'BP Financier'!$D$44*(('BP Financier'!$C$19+'BP Financier'!$D$19)/('BP Financier'!$C$16+'BP Financier'!$C$19+'BP Financier'!$D$16+'BP Financier'!$D$19+'BP Financier'!$C$22+'BP Financier'!$D$22))*$V3166*Y3166/(1-$W3166)","v":{"v":9634.955659283305,"d":"9,635"}},{"$f":"'BP Financier'!$D$44*(('BP Financier'!$C$19+'BP Financier'!$D$19)/('BP Financier'!$C$16+'BP Financier'!$C$19+'BP Financier'!$D$16+'BP Financier'!$D$19+'BP Financier'!$C$22+'BP Financier'!$D$22))*$V3166*Z3166/(1-$W3166)","v":{"v":75407.4628871181,"d":"75,407"}},{"$f":"'BP Financier'!$D$44*(('BP Financier'!$C$19+'BP Financier'!$D$19)/('BP Financier'!$C$16+'BP Financier'!$C$19+'BP Financier'!$D$16+'BP Financier'!$D$19+'BP Financier'!$C$22+'BP Financier'!$D$22))*$V3166*AA3166/(1-$W3166)","v":{"v":9316.444728397908,"d":"9,316"}},{"$f":"'BP Financier'!$D$44*(('BP Financier'!$C$19+'BP Financier'!$D$19)/('BP Financier'!$C$16+'BP Financier'!$C$19+'BP Financier'!$D$16+'BP Financier'!$D$19+'BP Financier'!$C$22+'BP Financier'!$D$22))*$V3166*AB3166/(1-$W3166)","v":{"v":4459.1530323955785,"d":"4,459"}},null,{"v":0.02,"d":"2.00%"},{"$f":"Actif!$E$28/100","v":{"v":0.28900000000000003,"d":"28.90%"}},{"$f":"Actif!$E$30/100","v":{"v":0.09050000000000001,"d":"9.05%"}},{"$f":"Actif!$E$31/100","v":{"v":0.0605,"d":"6.05%"}},{"$f":"Actif!$E$32/100","v":{"v":0.47350000000000003,"d":"47.35%"}},{"$f":"Actif!$E$33/100","v":{"v":0.0585,"d":"5.85%"}},{"$f":"Actif!$E$29/100","v":{"v":0.027999999999999997,"d":"2.80%"}}]
[null,"#69",52,2026,"H","A_PER",{"v":0.44999999999999996,"d":"0.45"},{"v":0.38999999999999996,"d":"0.39"},0.6,0.6,85,0,{"$f":"ROUND(Primes!$N$7*V3167,0)","v":9},{"$f":"'BP Financier'!$D$33*(('BP Financier'!$C$19+'BP Financier'!$D$19)/('BP Financier'!$C$16+'BP Financier'!$C$19+'BP Financier'!$D$16+'BP Financier'!$D$19))*V3167","v":{"v":204229.04053239498,"d":"204,229"}},{"v":113230.63592975918,"d":"113,231"},{"$f":"'BP Financier'!$D$44*(('BP Financier'!$C$19+'BP Financier'!$D$19)/('BP Financier'!$C$16+'BP Financier'!$C$19+'BP Financier'!$D$16+'BP Financier'!$D$19+'BP Financier'!$C$22+'BP Financier'!$D$22))*$V3167*X3167/(1-$W3167)","v":{"v":14412.619622564285,"d":"14,413"}},{"$f":"'BP Financier'!$D$44*(('BP Financier'!$C$19+'BP Financier'!$D$19)/('BP Financier'!$C$16+'BP Financier'!$C$19+'BP Financier'!$D$16+'BP Financier'!$D$19+'BP Financier'!$C$22+'BP Financier'!$D$22))*$V3167*Y3167/(1-$W3167)","v":{"v":9634.955659283305,"d":"9,635"}},{"$f":"'BP Financier'!$D$44*(('BP Financier'!$C$19+'BP Financier'!$D$19)/('BP Financier'!$C$16+'BP Financier'!$C$19+'BP Financier'!$D$16+'BP Financier'!$D$19+'BP Financier'!$C$22+'BP Financier'!$D$22))*$V3167*Z3167/(1-$W3167)","v":{"v":75407.4628871181,"d":"75,407"}},{"$f":"'BP Financier'!$D$44*(('BP Financier'!$C$19+'BP Financier'!$D$19)/('BP Financier'!$C$16+'BP Financier'!$C$19+'BP Financier'!$D$16+'BP Financier'!$D$19+'BP Financier'!$C$22+'BP Financier'!$D$22))*$V3167*AA3167/(1-$W3167)","v":{"v":9316.444728397908,"d":"9,316"}},{"$f":"'BP Financier'!$D$44*(('BP Financier'!$C$19+'BP Financier'!$D$19)/('BP Financier'!$C$16+'BP Financier'!$C$19+'BP Financier'!$D$16+'BP Financier'!$D$19+'BP Financier'!$C$22+'BP Financier'!$D$22))*$V3167*AB3167/(1-$W3167)","v":{"v":4459.1530323955785,"d":"4,459"}},null,{"v":0.02,"d":"2.00%"},{"$f":"Actif!$E$28/100","v":{"v":0.28900000000000003,"d":"28.90%"}},{"$f":"Actif!$E$30/100","v":{"v":0.09050000000000001,"d":"9.05%"}},{"$f":"Actif!$E$31/100","v":{"v":0.0605,"d":"6.05%"}},{"$f":"Actif!$E$32/100","v":{"v":0.47350000000000003,"d":"47.35%"}},{"$f":"Actif!$E$33/100","v":{"v":0.0585,"d":"5.85%"}},{"$f":"Actif!$E$29/100","v":{"v":0.027999999999999997,"d":"2.80%"}}]
[null,"#70",52,2028,"H","A_PER",{"v":0.44999999999999996,"d":"0.45"},{"v":0.38999999999999996,"d":"0.39"},0.6,0.6,85,0,{"$f":"ROUND(Primes!$N$7*V3168,0)","v":9},{"$f":"'BP Financier'!$D$33*(('BP Financier'!$C$19+'BP Financier'!$D$19)/('BP Financier'!$C$16+'BP Financier'!$C$19+'BP Financier'!$D$16+'BP Financier'!$D$19))*V3168","v":{"v":204229.04053239498,"d":"204,229"}},{"v":113230.63592975918,"d":"113,231"},{"$f":"'BP Financier'!$D$44*(('BP Financier'!$C$19+'BP Financier'!$D$19)/('BP Financier'!$C$16+'BP Financier'!$C$19+'BP Financier'!$D$16+'BP Financier'!$D$19+'BP Financier'!$C$22+'BP Financier'!$D$22))*$V3168*X3168/(1-$W3168)","v":{"v":14412.619622564285,"d":"14,413"}},{"$f":"'BP Financier'!$D$44*(('BP Financier'!$C$19+'BP Financier'!$D$19)/('BP Financier'!$C$16+'BP Financier'!$C$19+'BP Financier'!$D$16+'BP Financier'!$D$19+'BP Financier'!$C$22+'BP Financier'!$D$22))*$V3168*Y3168/(1-$W3168)","v":{"v":9634.955659283305,"d":"9,635"}},{"$f":"'BP Financier'!$D$44*(('BP Financier'!$C$19+'BP Financier'!$D$19)/('BP Financier'!$C$16+'BP Financier'!$C$19+'BP Financier'!$D$16+'BP Financier'!$D$19+'BP Financier'!$C$22+'BP Financier'!$D$22))*$V3168*Z3168/(1-$W3168)","v":{"v":75407.4628871181,"d":"75,407"}},{"$f":"'BP Financier'!$D$44*(('BP Financier'!$C$19+'BP Financier'!$D$19)/('BP Financier'!$C$16+'BP Financier'!$C$19+'BP Financier'!$D$16+'BP Financier'!$D$19+'BP Financier'!$C$22+'BP Financier'!$D$22))*$V3168*AA3168/(1-$W3168)","v":{"v":9316.444728397908,"d":"9,316"}},{"$f":"'BP Financier'!$D$44*(('BP Financier'!$C$19+'BP Financier'!$D$19)/('BP Financier'!$C$16+'BP Financier'!$C$19+'BP Financier'!$D$16+'BP Financier'!$D$19+'BP Financier'!$C$22+'BP Financier'!$D$22))*$V3168*AB3168/(1-$W3168)","v":{"v":4459.1530323955785,"d":"4,459"}},null,{"v":0.02,"d":"2.00%"},{"$f":"Actif!$E$28/100","v":{"v":0.28900000000000003,"d":"28.90%"}},{"$f":"Actif!$E$30/100","v":{"v":0.09050000000000001,"d":"9.05%"}},{"$f":"Actif!$E$31/100","v":{"v":0.0605,"d":"6.05%"}},{"$f":"Actif!$E$32/100","v":{"v":0.47350000000000003,"d":"47.35%"}},{"$f":"Actif!$E$33/100","v":{"v":0.0585,"d":"5.85%"}},{"$f":"Actif!$E$29/100","v":{"v":0.027999999999999997,"d":"2.80%"}}]
[null,"#71",53,2026,"F","A_PER",{"v":0.44999999999999996,"d":"0.45"},{"v":0.38999999999999996,"d":"0.39"},0.6,0.6,85,0,{"$f":"ROUND(Primes!$N$7*V3169,0)","v":9},{"$f":"'BP Financier'!$D$33*(('BP Financier'!$C$19+'BP Financier'!$D$19)/('BP Financier'!$C$16+'BP Financier'!$C$19+'BP Financier'!$D$16+'BP Financier'!$D$19))*V3169","v":{"v":204229.04053239498,"d":"204,229"}},{"v":113230.63592975918,"d":"113,231"},{"$f":"'BP Financier'!$D$44*(('BP Financier'!$C$19+'BP Financier'!$D$19)/('BP Financier'!$C$16+'BP Financier'!$C$19+'BP Financier'!$D$16+'BP Financier'!$D$19+'BP Financier'!$C$22+'BP Financier'!$D$22))*$V3169*X3169/(1-$W3169)","v":{"v":14412.619622564285,"d":"14,413"}},{"$f":"'BP Financier'!$D$44*(('BP Financier'!$C$19+'BP Financier'!$D$19)/('BP Financier'!$C$16+'BP Financier'!$C$19+'BP Financier'!$D$16+'BP Financier'!$D$19+'BP Financier'!$C$22+'BP Financier'!$D$22))*$V3169*Y3169/(1-$W3169)","v":{"v":9634.955659283305,"d":"9,635"}},{"$f":"'BP Financier'!$D$44*(('BP Financier'!$C$19+'BP Financier'!$D$19)/('BP Financier'!$C$16+'BP Financier'!$C$19+'BP Financier'!$D$16+'BP Financier'!$D$19+'BP Financier'!$C$22+'BP Financier'!$D$22))*$V3169*Z3169/(1-$W3169)","v":{"v":75407.4628871181,"d":"75,407"}},{"$f":"'BP Financier'!$D$44*(('BP Financier'!$C$19+'BP Financier'!$D$19)/('BP Financier'!$C$16+'BP Financier'!$C$19+'BP Financier'!$D$16+'BP Financier'!$D$19+'BP Financier'!$C$22+'BP Financier'!$D$22))*$V3169*AA3169/(1-$W3169)","v":{"v":9316.444728397908,"d":"9,316"}},{"$f":"'BP Financier'!$D$44*(('BP Financier'!$C$19+'BP Financier'!$D$19)/('BP Financier'!$C$16+'BP Financier'!$C$19+'BP Financier'!$D$16+'BP Financier'!$D$19+'BP Financier'!$C$22+'BP Financier'!$D$22))*$V3169*AB3169/(1-$W3169)","v":{"v":4459.1530323955785,"d":"4,459"}},null,{"v":0.02,"d":"2.00%"},{"$f":"Actif!$E$28/100","v":{"v":0.28900000000000003,"d":"28.90%"}},{"$f":"Actif!$E$30/100","v":{"v":0.09050000000000001,"d":"9.05%"}},{"$f":"Actif!$E$31/100","v":{"v":0.0605,"d":"6.05%"}},{"$f":"Actif!$E$32/100","v":{"v":0.47350000000000003,"d":"47.35%"}},{"$f":"Actif!$E$33/100","v":{"v":0.0585,"d":"5.85%"}},{"$f":"Actif!$E$29/100","v":{"v":0.027999999999999997,"d":"2.80%"}}]
[null,"#72",53,2028,"F","A_PER",{"v":0.44999999999999996,"d":"0.45"},{"v":0.38999999999999996,"d":"0.39"},0.6,0.6,85,0,{"$f":"ROUND(Primes!$N$7*V3170,0)","v":9},{"$f":"'BP Financier'!$D$33*(('BP Financier'!$C$19+'BP Financier'!$D$19)/('BP Financier'!$C$16+'BP Financier'!$C$19+'BP Financier'!$D$16+'BP Financier'!$D$19))*V3170","v":{"v":204229.04053239498,"d":"204,229"}},{"v":113230.63592975918,"d":"113,231"},{"$f":"'BP Financier'!$D$44*(('BP Financier'!$C$19+'BP Financier'!$D$19)/('BP Financier'!$C$16+'BP Financier'!$C$19+'BP Financier'!$D$16+'BP Financier'!$D$19+'BP Financier'!$C$22+'BP Financier'!$D$22))*$V3170*X3170/(1-$W3170)","v":{"v":14412.619622564285,"d":"14,413"}},{"$f":"'BP Financier'!$D$44*(('BP Financier'!$C$19+'BP Financier'!$D$19)/('BP Financier'!$C$16+'BP Financier'!$C$19+'BP Financier'!$D$16+'BP Financier'!$D$19+'BP Financier'!$C$22+'BP Financier'!$D$22))*$V3170*Y3170/(1-$W3170)","v":{"v":9634.955659283305,"d":"9,635"}},{"$f":"'BP Financier'!$D$44*(('BP Financier'!$C$19+'BP Financier'!$D$19)/('BP Financier'!$C$16+'BP Financier'!$C$19+'BP Financier'!$D$16+'BP Financier'!$D$19+'BP Financier'!$C$22+'BP Financier'!$D$22))*$V3170*Z3170/(1-$W3170)","v":{"v":75407.4628871181,"d":"75,407"}},{"$f":"'BP Financier'!$D$44*(('BP Financier'!$C$19+'BP Financier'!$D$19)/('BP Financier'!$C$16+'BP Financier'!$C$19+'BP Financier'!$D$16+'BP Financier'!$D$19+'BP Financier'!$C$22+'BP Financier'!$D$22))*$V3170*AA3170/(1-$W3170)","v":{"v":9316.444728397908,"d":"9,316"}},{"$f":"'BP Financier'!$D$44*(('BP Financier'!$C$19+'BP Financier'!$D$19)/('BP Financier'!$C$16+'BP Financier'!$C$19+'BP Financier'!$D$16+'BP Financier'!$D$19+'BP Financier'!$C$22+'BP Financier'!$D$22))*$V3170*AB3170/(1-$W3170)","v":{"v":4459.1530323955785,"d":"4,459"}},null,{"v":0.02,"d":"2.00%"},{"$f":"Actif!$E$28/100","v":{"v":0.28900000000000003,"d":"28.90%"}},{"$f":"Actif!$E$30/100","v":{"v":0.09050000000000001,"d":"9.05%"}},{"$f":"Actif!$E$31/100","v":{"v":0.0605,"d":"6.05%"}},{"$f":"Actif!$E$32/100","v":{"v":0.47350000000000003,"d":"47.35%"}},{"$f":"Actif!$E$33/100","v":{"v":0.0585,"d":"5.85%"}},{"$f":"Actif!$E$29/100","v":{"v":0.027999999999999997,"d":"2.80%"}}]
[null,"#73",54,2026,"H","A_PER",{"v":0.44999999999999996,"d":"0.45"},{"v":0.38999999999999996,"d":"0.39"},0.6,0.6,85,0,{"$f":"ROUND(Primes!$N$7*V3171,0)","v":9},{"$f":"'BP Financier'!$D$33*(('BP Financier'!$C$19+'BP Financier'!$D$19)/('BP Financier'!$C$16+'BP Financier'!$C$19+'BP Financier'!$D$16+'BP Financier'!$D$19))*V3171","v":{"v":204229.04053239498,"d":"204,229"}},{"v":113230.63592975918,"d":"113,231"},{"$f":"'BP Financier'!$D$44*(('BP Financier'!$C$19+'BP Financier'!$D$19)/('BP Financier'!$C$16+'BP Financier'!$C$19+'BP Financier'!$D$16+'BP Financier'!$D$19+'BP Financier'!$C$22+'BP Financier'!$D$22))*$V3171*X3171/(1-$W3171)","v":{"v":14412.619622564285,"d":"14,413"}},{"$f":"'BP Financier'!$D$44*(('BP Financier'!$C$19+'BP Financier'!$D$19)/('BP Financier'!$C$16+'BP Financier'!$C$19+'BP Financier'!$D$16+'BP Financier'!$D$19+'BP Financier'!$C$22+'BP Financier'!$D$22))*$V3171*Y3171/(1-$W3171)","v":{"v":9634.955659283305,"d":"9,635"}},{"$f":"'BP Financier'!$D$44*(('BP Financier'!$C$19+'BP Financier'!$D$19)/('BP Financier'!$C$16+'BP Financier'!$C$19+'BP Financier'!$D$16+'BP Financier'!$D$19+'BP Financier'!$C$22+'BP Financier'!$D$22))*$V3171*Z3171/(1-$W3171)","v":{"v":75407.4628871181,"d":"75,407"}},{"$f":"'BP Financier'!$D$44*(('BP Financier'!$C$19+'BP Financier'!$D$19)/('BP Financier'!$C$16+'BP Financier'!$C$19+'BP Financier'!$D$16+'BP Financier'!$D$19+'BP Financier'!$C$22+'BP Financier'!$D$22))*$V3171*AA3171/(1-$W3171)","v":{"v":9316.444728397908,"d":"9,316"}},{"$f":"'BP Financier'!$D$44*(('BP Financier'!$C$19+'BP Financier'!$D$19)/('BP Financier'!$C$16+'BP Financier'!$C$19+'BP Financier'!$D$16+'BP Financier'!$D$19+'BP Financier'!$C$22+'BP Financier'!$D$22))*$V3171*AB3171/(1-$W3171)","v":{"v":4459.1530323955785,"d":"4,459"}},null,{"v":0.02,"d":"2.00%"},{"$f":"Actif!$E$28/100","v":{"v":0.28900000000000003,"d":"28.90%"}},{"$f":"Actif!$E$30/100","v":{"v":0.09050000000000001,"d":"9.05%"}},{"$f":"Actif!$E$31/100","v":{"v":0.0605,"d":"6.05%"}},{"$f":"Actif!$E$32/100","v":{"v":0.47350000000000003,"d":"47.35%"}},{"$f":"Actif!$E$33/100","v":{"v":0.0585,"d":"5.85%"}},{"$f":"Actif!$E$29/100","v":{"v":0.027999999999999997,"d":"2.80%"}}]
[null,"#74",54,2028,"H","A_PER",{"v":0.44999999999999996,"d":"0.45"},{"v":0.38999999999999996,"d":"0.39"},0.6,0.6,85,0,{"$f":"ROUND(Primes!$N$7*V3172,0)","v":9},{"$f":"'BP Financier'!$D$33*(('BP Financier'!$C$19+'BP Financier'!$D$19)/('BP Financier'!$C$16+'BP Financier'!$C$19+'BP Financier'!$D$16+'BP Financier'!$D$19))*V3172","v":{"v":204229.04053239498,"d":"204,229"}},{"v":113230.63592975918,"d":"113,231"},{"$f":"'BP Financier'!$D$44*(('BP Financier'!$C$19+'BP Financier'!$D$19)/('BP Financier'!$C$16+'BP Financier'!$C$19+'BP Financier'!$D$16+'BP Financier'!$D$19+'BP Financier'!$C$22+'BP Financier'!$D$22))*$V3172*X3172/(1-$W3172)","v":{"v":14412.619622564285,"d":"14,413"}},{"$f":"'BP Financier'!$D$44*(('BP Financier'!$C$19+'BP Financier'!$D$19)/('BP Financier'!$C$16+'BP Financier'!$C$19+'BP Financier'!$D$16+'BP Financier'!$D$19+'BP Financier'!$C$22+'BP Financier'!$D$22))*$V3172*Y3172/(1-$W3172)","v":{"v":9634.955659283305,"d":"9,635"}},{"$f":"'BP Financier'!$D$44*(('BP Financier'!$C$19+'BP Financier'!$D$19)/('BP Financier'!$C$16+'BP Financier'!$C$19+'BP Financier'!$D$16+'BP Financier'!$D$19+'BP Financier'!$C$22+'BP Financier'!$D$22))*$V3172*Z3172/(1-$W3172)","v":{"v":75407.4628871181,"d":"75,407"}},{"$f":"'BP Financier'!$D$44*(('BP Financier'!$C$19+'BP Financier'!$D$19)/('BP Financier'!$C$16+'BP Financier'!$C$19+'BP Financier'!$D$16+'BP Financier'!$D$19+'BP Financier'!$C$22+'BP Financier'!$D$22))*$V3172*AA3172/(1-$W3172)","v":{"v":9316.444728397908,"d":"9,316"}},{"$f":"'BP Financier'!$D$44*(('BP Financier'!$C$19+'BP Financier'!$D$19)/('BP Financier'!$C$16+'BP Financier'!$C$19+'BP Financier'!$D$16+'BP Financier'!$D$19+'BP Financier'!$C$22+'BP Financier'!$D$22))*$V3172*AB3172/(1-$W3172)","v":{"v":4459.1530323955785,"d":"4,459"}},null,{"v":0.02,"d":"2.00%"},{"$f":"Actif!$E$28/100","v":{"v":0.28900000000000003,"d":"28.90%"}},{"$f":"Actif!$E$30/100","v":{"v":0.09050000000000001,"d":"9.05%"}},{"$f":"Actif!$E$31/100","v":{"v":0.0605,"d":"6.05%"}},{"$f":"Actif!$E$32/100","v":{"v":0.47350000000000003,"d":"47.35%"}},{"$f":"Actif!$E$33/100","v":{"v":0.0585,"d":"5.85%"}},{"$f":"Actif!$E$29/100","v":{"v":0.027999999999999997,"d":"2.80%"}}]
[null,"#75",55,2026,"H","A_PER",{"v":0.44999999999999996,"d":"0.45"},{"v":0.38999999999999996,"d":"0.39"},0.6,0.6,85,0,{"$f":"ROUND(Primes!$N$7*V3173,0)","v":9},{"$f":"'BP Financier'!$D$33*(('BP Financier'!$C$19+'BP Financier'!$D$19)/('BP Financier'!$C$16+'BP Financier'!$C$19+'BP Financier'!$D$16+'BP Financier'!$D$19))*V3173","v":{"v":204229.04053239498,"d":"204,229"}},{"v":113230.63592975918,"d":"113,231"},{"$f":"'BP Financier'!$D$44*(('BP Financier'!$C$19+'BP Financier'!$D$19)/('BP Financier'!$C$16+'BP Financier'!$C$19+'BP Financier'!$D$16+'BP Financier'!$D$19+'BP Financier'!$C$22+'BP Financier'!$D$22))*$V3173*X3173/(1-$W3173)","v":{"v":14412.619622564285,"d":"14,413"}},{"$f":"'BP Financier'!$D$44*(('BP Financier'!$C$19+'BP Financier'!$D$19)/('BP Financier'!$C$16+'BP Financier'!$C$19+'BP Financier'!$D$16+'BP Financier'!$D$19+'BP Financier'!$C$22+'BP Financier'!$D$22))*$V3173*Y3173/(1-$W3173)","v":{"v":9634.955659283305,"d":"9,635"}},{"$f":"'BP Financier'!$D$44*(('BP Financier'!$C$19+'BP Financier'!$D$19)/('BP Financier'!$C$16+'BP Financier'!$C$19+'BP Financier'!$D$16+'BP Financier'!$D$19+'BP Financier'!$C$22+'BP Financier'!$D$22))*$V3173*Z3173/(1-$W3173)","v":{"v":75407.4628871181,"d":"75,407"}},{"$f":"'BP Financier'!$D$44*(('BP Financier'!$C$19+'BP Financier'!$D$19)/('BP Financier'!$C$16+'BP Financier'!$C$19+'BP Financier'!$D$16+'BP Financier'!$D$19+'BP Financier'!$C$22+'BP Financier'!$D$22))*$V3173*AA3173/(1-$W3173)","v":{"v":9316.444728397908,"d":"9,316"}},{"$f":"'BP Financier'!$D$44*(('BP Financier'!$C$19+'BP Financier'!$D$19)/('BP Financier'!$C$16+'BP Financier'!$C$19+'BP Financier'!$D$16+'BP Financier'!$D$19+'BP Financier'!$C$22+'BP Financier'!$D$22))*$V3173*AB3173/(1-$W3173)","v":{"v":4459.1530323955785,"d":"4,459"}},null,{"v":0.02,"d":"2.00%"},{"$f":"Actif!$E$28/100","v":{"v":0.28900000000000003,"d":"28.90%"}},{"$f":"Actif!$E$30/100","v":{"v":0.09050000000000001,"d":"9.05%"}},{"$f":"Actif!$E$31/100","v":{"v":0.0605,"d":"6.05%"}},{"$f":"Actif!$E$32/100","v":{"v":0.47350000000000003,"d":"47.35%"}},{"$f":"Actif!$E$33/100","v":{"v":0.0585,"d":"5.85%"}},{"$f":"Actif!$E$29/100","v":{"v":0.027999999999999997,"d":"2.80%"}}]
[null,"#76",55,2028,"H","A_PER",{"v":0.44999999999999996,"d":"0.45"},{"v":0.38999999999999996,"d":"0.39"},0.6,0.6,85,0,{"$f":"ROUND(Primes!$N$7*V3174,0)","v":9},{"$f":"'BP Financier'!$D$33*(('BP Financier'!$C$19+'BP Financier'!$D$19)/('BP Financier'!$C$16+'BP Financier'!$C$19+'BP Financier'!$D$16+'BP Financier'!$D$19))*V3174","v":{"v":204229.04053239498,"d":"204,229"}},{"v":113230.63592975918,"d":"113,231"},{"$f":"'BP Financier'!$D$44*(('BP Financier'!$C$19+'BP Financier'!$D$19)/('BP Financier'!$C$16+'BP Financier'!$C$19+'BP Financier'!$D$16+'BP Financier'!$D$19+'BP Financier'!$C$22+'BP Financier'!$D$22))*$V3174*X3174/(1-$W3174)","v":{"v":14412.619622564285,"d":"14,413"}},{"$f":"'BP Financier'!$D$44*(('BP Financier'!$C$19+'BP Financier'!$D$19)/('BP Financier'!$C$16+'BP Financier'!$C$19+'BP Financier'!$D$16+'BP Financier'!$D$19+'BP Financier'!$C$22+'BP Financier'!$D$22))*$V3174*Y3174/(1-$W3174)","v":{"v":9634.955659283305,"d":"9,635"}},{"$f":"'BP Financier'!$D$44*(('BP Financier'!$C$19+'BP Financier'!$D$19)/('BP Financier'!$C$16+'BP Financier'!$C$19+'BP Financier'!$D$16+'BP Financier'!$D$19+'BP Financier'!$C$22+'BP Financier'!$D$22))*$V3174*Z3174/(1-$W3174)","v":{"v":75407.4628871181,"d":"75,407"}},{"$f":"'BP Financier'!$D$44*(('BP Financier'!$C$19+'BP Financier'!$D$19)/('BP Financier'!$C$16+'BP Financier'!$C$19+'BP Financier'!$D$16+'BP Financier'!$D$19+'BP Financier'!$C$22+'BP Financier'!$D$22))*$V3174*AA3174/(1-$W3174)","v":{"v":9316.444728397908,"d":"9,316"}},{"$f":"'BP Financier'!$D$44*(('BP Financier'!$C$19+'BP Financier'!$D$19)/('BP Financier'!$C$16+'BP Financier'!$C$19+'BP Financier'!$D$16+'BP Financier'!$D$19+'BP Financier'!$C$22+'BP Financier'!$D$22))*$V3174*AB3174/(1-$W3174)","v":{"v":4459.1530323955785,"d":"4,459"}},null,{"v":0.02,"d":"2.00%"},{"$f":"Actif!$E$28/100","v":{"v":0.28900000000000003,"d":"28.90%"}},{"$f":"Actif!$E$30/100","v":{"v":0.09050000000000001,"d":"9.05%"}},{"$f":"Actif!$E$31/100","v":{"v":0.0605,"d":"6.05%"}},{"$f":"Actif!$E$32/100","v":{"v":0.47350000000000003,"d":"47.35%"}},{"$f":"Actif!$E$33/100","v":{"v":0.0585,"d":"5.85%"}},{"$f":"Actif!$E$29/100","v":{"v":0.027999999999999997,"d":"2.80%"}}]
[null,"#77",56,2026,"F","A_PER",{"v":0.44999999999999996,"d":"0.45"},{"v":0.38999999999999996,"d":"0.39"},0.6,0.6,85,0,{"$f":"ROUND(Primes!$N$7*V3175,0)","v":4},{"$f":"'BP Financier'!$D$33*(('BP Financier'!$C$19+'BP Financier'!$D$19)/('BP Financier'!$C$16+'BP Financier'!$C$19+'BP Financier'!$D$16+'BP Financier'!$D$19))*V3175","v":{"v":102114.52026619749,"d":"102,115"}},{"v":56615.31796487959,"d":"56,615"},{"$f":"'BP Financier'!$D$44*(('BP Financier'!$C$19+'BP Financier'!$D$19)/('BP Financier'!$C$16+'BP Financier'!$C$19+'BP Financier'!$D$16+'BP Financier'!$D$19+'BP Financier'!$C$22+'BP Financier'!$D$22))*$V3175*X3175/(1-$W3175)","v":{"v":7206.309811282143,"d":"7,206"}},{"$f":"'BP Financier'!$D$44*(('BP Financier'!$C$19+'BP Financier'!$D$19)/('BP Financier'!$C$16+'BP Financier'!$C$19+'BP Financier'!$D$16+'BP Financier'!$D$19+'BP Financier'!$C$22+'BP Financier'!$D$22))*$V3175*Y3175/(1-$W3175)","v":{"v":4817.4778296416525,"d":"4,817"}},{"$f":"'BP Financier'!$D$44*(('BP Financier'!$C$19+'BP Financier'!$D$19)/('BP Financier'!$C$16+'BP Financier'!$C$19+'BP Financier'!$D$16+'BP Financier'!$D$19+'BP Financier'!$C$22+'BP Financier'!$D$22))*$V3175*Z3175/(1-$W3175)","v":{"v":37703.73144355905,"d":"37,704"}},{"$f":"'BP Financier'!$D$44*(('BP Financier'!$C$19+'BP Financier'!$D$19)/('BP Financier'!$C$16+'BP Financier'!$C$19+'BP Financier'!$D$16+'BP Financier'!$D$19+'BP Financier'!$C$22+'BP Financier'!$D$22))*$V3175*AA3175/(1-$W3175)","v":{"v":4658.222364198954,"d":"4,658"}},{"$f":"'BP Financier'!$D$44*(('BP Financier'!$C$19+'BP Financier'!$D$19)/('BP Financier'!$C$16+'BP Financier'!$C$19+'BP Financier'!$D$16+'BP Financier'!$D$19+'BP Financier'!$C$22+'BP Financier'!$D$22))*$V3175*AB3175/(1-$W3175)","v":{"v":2229.5765161977893,"d":"2,230"}},null,{"v":0.01,"d":"1.00%"},{"$f":"Actif!$E$28/100","v":{"v":0.28900000000000003,"d":"28.90%"}},{"$f":"Actif!$E$30/100","v":{"v":0.09050000000000001,"d":"9.05%"}},{"$f":"Actif!$E$31/100","v":{"v":0.0605,"d":"6.05%"}},{"$f":"Actif!$E$32/100","v":{"v":0.47350000000000003,"d":"47.35%"}},{"$f":"Actif!$E$33/100","v":{"v":0.0585,"d":"5.85%"}},{"$f":"Actif!$E$29/100","v":{"v":0.027999999999999997,"d":"2.80%"}}]
[null,"#78",56,2028,"F","A_PER",{"v":0.44999999999999996,"d":"0.45"},{"v":0.38999999999999996,"d":"0.39"},0.6,0.6,85,0,{"$f":"ROUND(Primes!$N$7*V3176,0)","v":4},{"$f":"'BP Financier'!$D$33*(('BP Financier'!$C$19+'BP Financier'!$D$19)/('BP Financier'!$C$16+'BP Financier'!$C$19+'BP Financier'!$D$16+'BP Financier'!$D$19))*V3176","v":{"v":102114.52026619749,"d":"102,115"}},{"v":56615.31796487959,"d":"56,615"},{"$f":"'BP Financier'!$D$44*(('BP Financier'!$C$19+'BP Financier'!$D$19)/('BP Financier'!$C$16+'BP Financier'!$C$19+'BP Financier'!$D$16+'BP Financier'!$D$19+'BP Financier'!$C$22+'BP Financier'!$D$22))*$V3176*X3176/(1-$W3176)","v":{"v":7206.309811282143,"d":"7,206"}},{"$f":"'BP Financier'!$D$44*(('BP Financier'!$C$19+'BP Financier'!$D$19)/('BP Financier'!$C$16+'BP Financier'!$C$19+'BP Financier'!$D$16+'BP Financier'!$D$19+'BP Financier'!$C$22+'BP Financier'!$D$22))*$V3176*Y3176/(1-$W3176)","v":{"v":4817.4778296416525,"d":"4,817"}},{"$f":"'BP Financier'!$D$44*(('BP Financier'!$C$19+'BP Financier'!$D$19)/('BP Financier'!$C$16+'BP Financier'!$C$19+'BP Financier'!$D$16+'BP Financier'!$D$19+'BP Financier'!$C$22+'BP Financier'!$D$22))*$V3176*Z3176/(1-$W3176)","v":{"v":37703.73144355905,"d":"37,704"}},{"$f":"'BP Financier'!$D$44*(('BP Financier'!$C$19+'BP Financier'!$D$19)/('BP Financier'!$C$16+'BP Financier'!$C$19+'BP Financier'!$D$16+'BP Financier'!$D$19+'BP Financier'!$C$22+'BP Financier'!$D$22))*$V3176*AA3176/(1-$W3176)","v":{"v":4658.222364198954,"d":"4,658"}},{"$f":"'BP Financier'!$D$44*(('BP Financier'!$C$19+'BP Financier'!$D$19)/('BP Financier'!$C$16+'BP Financier'!$C$19+'BP Financier'!$D$16+'BP Financier'!$D$19+'BP Financier'!$C$22+'BP Financier'!$D$22))*$V3176*AB3176/(1-$W3176)","v":{"v":2229.5765161977893,"d":"2,230"}},null,{"v":0.01,"d":"1.00%"},{"$f":"Actif!$E$28/100","v":{"v":0.28900000000000003,"d":"28.90%"}},{"$f":"Actif!$E$30/100","v":{"v":0.09050000000000001,"d":"9.05%"}},{"$f":"Actif!$E$31/100","v":{"v":0.0605,"d":"6.05%"}},{"$f":"Actif!$E$32/100","v":{"v":0.47350000000000003,"d":"47.35%"}},{"$f":"Actif!$E$33/100","v":{"v":0.0585,"d":"5.85%"}},{"$f":"Actif!$E$29/100","v":{"v":0.027999999999999997,"d":"2.80%"}}]
[null,"#79",57,2026,"H","A_PER",{"v":0.44999999999999996,"d":"0.45"},{"v":0.38999999999999996,"d":"0.39"},0.6,0.6,85,0,{"$f":"ROUND(Primes!$N$7*V3177,0)","v":2},{"$f":"'BP Financier'!$D$33*(('BP Financier'!$C$19+'BP Financier'!$D$19)/('BP Financier'!$C$16+'BP Financier'!$C$19+'BP Financier'!$D$16+'BP Financier'!$D$19))*V3177","v":{"v":51057.260133098745,"d":"51,057"}},{"v":28307.658982439796,"d":"28,308"},{"$f":"'BP Financier'!$D$44*(('BP Financier'!$C$19+'BP Financier'!$D$19)/('BP Financier'!$C$16+'BP Financier'!$C$19+'BP Financier'!$D$16+'BP Financier'!$D$19+'BP Financier'!$C$22+'BP Financier'!$D$22))*$V3177*X3177/(1-$W3177)","v":{"v":3603.1549056410713,"d":"3,603"}},{"$f":"'BP Financier'!$D$44*(('BP Financier'!$C$19+'BP Financier'!$D$19)/('BP Financier'!$C$16+'BP Financier'!$C$19+'BP Financier'!$D$16+'BP Financier'!$D$19+'BP Financier'!$C$22+'BP Financier'!$D$22))*$V3177*Y3177/(1-$W3177)","v":{"v":2408.7389148208263,"d":"2,409"}},{"$f":"'BP Financier'!$D$44*(('BP Financier'!$C$19+'BP Financier'!$D$19)/('BP Financier'!$C$16+'BP Financier'!$C$19+'BP Financier'!$D$16+'BP Financier'!$D$19+'BP Financier'!$C$22+'BP Financier'!$D$22))*$V3177*Z3177/(1-$W3177)","v":{"v":18851.865721779526,"d":"18,852"}},{"$f":"'BP Financier'!$D$44*(('BP Financier'!$C$19+'BP Financier'!$D$19)/('BP Financier'!$C$16+'BP Financier'!$C$19+'BP Financier'!$D$16+'BP Financier'!$D$19+'BP Financier'!$C$22+'BP Financier'!$D$22))*$V3177*AA3177/(1-$W3177)","v":{"v":2329.111182099477,"d":"2,329"}},{"$f":"'BP Financier'!$D$44*(('BP Financier'!$C$19+'BP Financier'!$D$19)/('BP Financier'!$C$16+'BP Financier'!$C$19+'BP Financier'!$D$16+'BP Financier'!$D$19+'BP Financier'!$C$22+'BP Financier'!$D$22))*$V3177*AB3177/(1-$W3177)","v":{"v":1114.7882580988946,"d":"1,115"}},null,{"v":0.005,"d":"0.50%"},{"$f":"Actif!$E$28/100","v":{"v":0.28900000000000003,"d":"28.90%"}},{"$f":"Actif!$E$30/100","v":{"v":0.09050000000000001,"d":"9.05%"}},{"$f":"Actif!$E$31/100","v":{"v":0.0605,"d":"6.05%"}},{"$f":"Actif!$E$32/100","v":{"v":0.47350000000000003,"d":"47.35%"}},{"$f":"Actif!$E$33/100","v":{"v":0.0585,"d":"5.85%"}},{"$f":"Actif!$E$29/100","v":{"v":0.027999999999999997,"d":"2.80%"}}]
[null,"#80",57,2028,"H","A_PER",{"v":0.44999999999999996,"d":"0.45"},{"v":0.38999999999999996,"d":"0.39"},0.6,0.6,85,0,{"$f":"ROUND(Primes!$N$7*V3178,0)","v":2},{"$f":"'BP Financier'!$D$33*(('BP Financier'!$C$19+'BP Financier'!$D$19)/('BP Financier'!$C$16+'BP Financier'!$C$19+'BP Financier'!$D$16+'BP Financier'!$D$19))*V3178","v":{"v":51057.260133098745,"d":"51,057"}},{"v":28307.658982439796,"d":"28,308"},{"$f":"'BP Financier'!$D$44*(('BP Financier'!$C$19+'BP Financier'!$D$19)/('BP Financier'!$C$16+'BP Financier'!$C$19+'BP Financier'!$D$16+'BP Financier'!$D$19+'BP Financier'!$C$22+'BP Financier'!$D$22))*$V3178*X3178/(1-$W3178)","v":{"v":3603.1549056410713,"d":"3,603"}},{"$f":"'BP Financier'!$D$44*(('BP Financier'!$C$19+'BP Financier'!$D$19)/('BP Financier'!$C$16+'BP Financier'!$C$19+'BP Financier'!$D$16+'BP Financier'!$D$19+'BP Financier'!$C$22+'BP Financier'!$D$22))*$V3178*Y3178/(1-$W3178)","v":{"v":2408.7389148208263,"d":"2,409"}},{"$f":"'BP Financier'!$D$44*(('BP Financier'!$C$19+'BP Financier'!$D$19)/('BP Financier'!$C$16+'BP Financier'!$C$19+'BP Financier'!$D$16+'BP Financier'!$D$19+'BP Financier'!$C$22+'BP Financier'!$D$22))*$V3178*Z3178/(1-$W3178)","v":{"v":18851.865721779526,"d":"18,852"}},{"$f":"'BP Financier'!$D$44*(('BP Financier'!$C$19+'BP Financier'!$D$19)/('BP Financier'!$C$16+'BP Financier'!$C$19+'BP Financier'!$D$16+'BP Financier'!$D$19+'BP Financier'!$C$22+'BP Financier'!$D$22))*$V3178*AA3178/(1-$W3178)","v":{"v":2329.111182099477,"d":"2,329"}},{"$f":"'BP Financier'!$D$44*(('BP Financier'!$C$19+'BP Financier'!$D$19)/('BP Financier'!$C$16+'BP Financier'!$C$19+'BP Financier'!$D$16+'BP Financier'!$D$19+'BP Financier'!$C$22+'BP Financier'!$D$22))*$V3178*AB3178/(1-$W3178)","v":{"v":1114.7882580988946,"d":"1,115"}},null,{"v":0.005,"d":"0.50%"},{"$f":"Actif!$E$28/100","v":{"v":0.28900000000000003,"d":"28.90%"}},{"$f":"Actif!$E$30/100","v":{"v":0.09050000000000001,"d":"9.05%"}},{"$f":"Actif!$E$31/100","v":{"v":0.0605,"d":"6.05%"}},{"$f":"Actif!$E$32/100","v":{"v":0.47350000000000003,"d":"47.35%"}},{"$f":"Actif!$E$33/100","v":{"v":0.0585,"d":"5.85%"}},{"$f":"Actif!$E$29/100","v":{"v":0.027999999999999997,"d":"2.80%"}}]
[null,"#81",58,2026,"H","A_PER",{"v":0.44999999999999996,"d":"0.45"},{"v":0.38999999999999996,"d":"0.39"},0.6,0.6,85,0,{"$f":"ROUND(Primes!$N$7*V3179,0)","v":2},{"$f":"'BP Financier'!$D$33*(('BP Financier'!$C$19+'BP Financier'!$D$19)/('BP Financier'!$C$16+'BP Financier'!$C$19+'BP Financier'!$D$16+'BP Financier'!$D$19))*V3179","v":{"v":51057.260133098745,"d":"51,057"}},{"v":28307.658982439796,"d":"28,308"},{"$f":"'BP Financier'!$D$44*(('BP Financier'!$C$19+'BP Financier'!$D$19)/('BP Financier'!$C$16+'BP Financier'!$C$19+'BP Financier'!$D$16+'BP Financier'!$D$19+'BP Financier'!$C$22+'BP Financier'!$D$22))*$V3179*X3179/(1-$W3179)","v":{"v":3603.1549056410713,"d":"3,603"}},{"$f":"'BP Financier'!$D$44*(('BP Financier'!$C$19+'BP Financier'!$D$19)/('BP Financier'!$C$16+'BP Financier'!$C$19+'BP Financier'!$D$16+'BP Financier'!$D$19+'BP Financier'!$C$22+'BP Financier'!$D$22))*$V3179*Y3179/(1-$W3179)","v":{"v":2408.7389148208263,"d":"2,409"}},{"$f":"'BP Financier'!$D$44*(('BP Financier'!$C$19+'BP Financier'!$D$19)/('BP Financier'!$C$16+'BP Financier'!$C$19+'BP Financier'!$D$16+'BP Financier'!$D$19+'BP Financier'!$C$22+'BP Financier'!$D$22))*$V3179*Z3179/(1-$W3179)","v":{"v":18851.865721779526,"d":"18,852"}},{"$f":"'BP Financier'!$D$44*(('BP Financier'!$C$19+'BP Financier'!$D$19)/('BP Financier'!$C$16+'BP Financier'!$C$19+'BP Financier'!$D$16+'BP Financier'!$D$19+'BP Financier'!$C$22+'BP Financier'!$D$22))*$V3179*AA3179/(1-$W3179)","v":{"v":2329.111182099477,"d":"2,329"}},{"$f":"'BP Financier'!$D$44*(('BP Financier'!$C$19+'BP Financier'!$D$19)/('BP Financier'!$C$16+'BP Financier'!$C$19+'BP Financier'!$D$16+'BP Financier'!$D$19+'BP Financier'!$C$22+'BP Financier'!$D$22))*$V3179*AB3179/(1-$W3179)","v":{"v":1114.7882580988946,"d":"1,115"}},null,{"v":0.005,"d":"0.50%"},{"$f":"Actif!$E$28/100","v":{"v":0.28900000000000003,"d":"28.90%"}},{"$f":"Actif!$E$30/100","v":{"v":0.09050000000000001,"d":"9.05%"}},{"$f":"Actif!$E$31/100","v":{"v":0.0605,"d":"6.05%"}},{"$f":"Actif!$E$32/100","v":{"v":0.47350000000000003,"d":"47.35%"}},{"$f":"Actif!$E$33/100","v":{"v":0.0585,"d":"5.85%"}},{"$f":"Actif!$E$29/100","v":{"v":0.027999999999999997,"d":"2.80%"}}]
[null,"#82",58,2028,"H","A_PER",{"v":0.44999999999999996,"d":"0.45"},{"v":0.38999999999999996,"d":"0.39"},0.6,0.6,85,0,{"$f":"ROUND(Primes!$N$7*V3180,0)","v":2},{"$f":"'BP Financier'!$D$33*(('BP Financier'!$C$19+'BP Financier'!$D$19)/('BP Financier'!$C$16+'BP Financier'!$C$19+'BP Financier'!$D$16+'BP Financier'!$D$19))*V3180","v":{"v":51057.260133098745,"d":"51,057"}},{"v":28307.658982439796,"d":"28,308"},{"$f":"'BP Financier'!$D$44*(('BP Financier'!$C$19+'BP Financier'!$D$19)/('BP Financier'!$C$16+'BP Financier'!$C$19+'BP Financier'!$D$16+'BP Financier'!$D$19+'BP Financier'!$C$22+'BP Financier'!$D$22))*$V3180*X3180/(1-$W3180)","v":{"v":3603.1549056410713,"d":"3,603"}},{"$f":"'BP Financier'!$D$44*(('BP Financier'!$C$19+'BP Financier'!$D$19)/('BP Financier'!$C$16+'BP Financier'!$C$19+'BP Financier'!$D$16+'BP Financier'!$D$19+'BP Financier'!$C$22+'BP Financier'!$D$22))*$V3180*Y3180/(1-$W3180)","v":{"v":2408.7389148208263,"d":"2,409"}},{"$f":"'BP Financier'!$D$44*(('BP Financier'!$C$19+'BP Financier'!$D$19)/('BP Financier'!$C$16+'BP Financier'!$C$19+'BP Financier'!$D$16+'BP Financier'!$D$19+'BP Financier'!$C$22+'BP Financier'!$D$22))*$V3180*Z3180/(1-$W3180)","v":{"v":18851.865721779526,"d":"18,852"}},{"$f":"'BP Financier'!$D$44*(('BP Financier'!$C$19+'BP Financier'!$D$19)/('BP Financier'!$C$16+'BP Financier'!$C$19+'BP Financier'!$D$16+'BP Financier'!$D$19+'BP Financier'!$C$22+'BP Financier'!$D$22))*$V3180*AA3180/(1-$W3180)","v":{"v":2329.111182099477,"d":"2,329"}},{"$f":"'BP Financier'!$D$44*(('BP Financier'!$C$19+'BP Financier'!$D$19)/('BP Financier'!$C$16+'BP Financier'!$C$19+'BP Financier'!$D$16+'BP Financier'!$D$19+'BP Financier'!$C$22+'BP Financier'!$D$22))*$V3180*AB3180/(1-$W3180)","v":{"v":1114.7882580988946,"d":"1,115"}},null,{"v":0.005,"d":"0.50%"},{"$f":"Actif!$E$28/100","v":{"v":0.28900000000000003,"d":"28.90%"}},{"$f":"Actif!$E$30/100","v":{"v":0.09050000000000001,"d":"9.05%"}},{"$f":"Actif!$E$31/100","v":{"v":0.0605,"d":"6.05%"}},{"$f":"Actif!$E$32/100","v":{"v":0.47350000000000003,"d":"47.35%"}},{"$f":"Actif!$E$33/100","v":{"v":0.0585,"d":"5.85%"}},{"$f":"Actif!$E$29/100","v":{"v":0.027999999999999997,"d":"2.80%"}}]
[null,"#83",59,2026,"F","A_PER",{"v":0.44999999999999996,"d":"0.45"},{"v":0.38999999999999996,"d":"0.39"},0.6,0.6,85,0,{"$f":"ROUND(Primes!$N$7*V3181,0)","v":2},{"$f":"'BP Financier'!$D$33*(('BP Financier'!$C$19+'BP Financier'!$D$19)/('BP Financier'!$C$16+'BP Financier'!$C$19+'BP Financier'!$D$16+'BP Financier'!$D$19))*V3181","v":{"v":51057.260133098745,"d":"51,057"}},{"v":28307.658982439796,"d":"28,308"},{"$f":"'BP Financier'!$D$44*(('BP Financier'!$C$19+'BP Financier'!$D$19)/('BP Financier'!$C$16+'BP Financier'!$C$19+'BP Financier'!$D$16+'BP Financier'!$D$19+'BP Financier'!$C$22+'BP Financier'!$D$22))*$V3181*X3181/(1-$W3181)","v":{"v":3603.1549056410713,"d":"3,603"}},{"$f":"'BP Financier'!$D$44*(('BP Financier'!$C$19+'BP Financier'!$D$19)/('BP Financier'!$C$16+'BP Financier'!$C$19+'BP Financier'!$D$16+'BP Financier'!$D$19+'BP Financier'!$C$22+'BP Financier'!$D$22))*$V3181*Y3181/(1-$W3181)","v":{"v":2408.7389148208263,"d":"2,409"}},{"$f":"'BP Financier'!$D$44*(('BP Financier'!$C$19+'BP Financier'!$D$19)/('BP Financier'!$C$16+'BP Financier'!$C$19+'BP Financier'!$D$16+'BP Financier'!$D$19+'BP Financier'!$C$22+'BP Financier'!$D$22))*$V3181*Z3181/(1-$W3181)","v":{"v":18851.865721779526,"d":"18,852"}},{"$f":"'BP Financier'!$D$44*(('BP Financier'!$C$19+'BP Financier'!$D$19)/('BP Financier'!$C$16+'BP Financier'!$C$19+'BP Financier'!$D$16+'BP Financier'!$D$19+'BP Financier'!$C$22+'BP Financier'!$D$22))*$V3181*AA3181/(1-$W3181)","v":{"v":2329.111182099477,"d":"2,329"}},{"$f":"'BP Financier'!$D$44*(('BP Financier'!$C$19+'BP Financier'!$D$19)/('BP Financier'!$C$16+'BP Financier'!$C$19+'BP Financier'!$D$16+'BP Financier'!$D$19+'BP Financier'!$C$22+'BP Financier'!$D$22))*$V3181*AB3181/(1-$W3181)","v":{"v":1114.7882580988946,"d":"1,115"}},null,{"v":0.005,"d":"0.50%"},{"$f":"Actif!$E$28/100","v":{"v":0.28900000000000003,"d":"28.90%"}},{"$f":"Actif!$E$30/100","v":{"v":0.09050000000000001,"d":"9.05%"}},{"$f":"Actif!$E$31/100","v":{"v":0.0605,"d":"6.05%"}},{"$f":"Actif!$E$32/100","v":{"v":0.47350000000000003,"d":"47.35%"}},{"$f":"Actif!$E$33/100","v":{"v":0.0585,"d":"5.85%"}},{"$f":"Actif!$E$29/100","v":{"v":0.027999999999999997,"d":"2.80%"}}]
[null,"#84",59,2028,"F","A_PER",{"v":0.44999999999999996,"d":"0.45"},{"v":0.38999999999999996,"d":"0.39"},0.6,0.6,85,0,{"$f":"ROUND(Primes!$N$7*V3182,0)","v":2},{"$f":"'BP Financier'!$D$33*(('BP Financier'!$C$19+'BP Financier'!$D$19)/('BP Financier'!$C$16+'BP Financier'!$C$19+'BP Financier'!$D$16+'BP Financier'!$D$19))*V3182","v":{"v":51057.260133098745,"d":"51,057"}},{"v":28307.658982439796,"d":"28,308"},{"$f":"'BP Financier'!$D$44*(('BP Financier'!$C$19+'BP Financier'!$D$19)/('BP Financier'!$C$16+'BP Financier'!$C$19+'BP Financier'!$D$16+'BP Financier'!$D$19+'BP Financier'!$C$22+'BP Financier'!$D$22))*$V3182*X3182/(1-$W3182)","v":{"v":3603.1549056410713,"d":"3,603"}},{"$f":"'BP Financier'!$D$44*(('BP Financier'!$C$19+'BP Financier'!$D$19)/('BP Financier'!$C$16+'BP Financier'!$C$19+'BP Financier'!$D$16+'BP Financier'!$D$19+'BP Financier'!$C$22+'BP Financier'!$D$22))*$V3182*Y3182/(1-$W3182)","v":{"v":2408.7389148208263,"d":"2,409"}},{"$f":"'BP Financier'!$D$44*(('BP Financier'!$C$19+'BP Financier'!$D$19)/('BP Financier'!$C$16+'BP Financier'!$C$19+'BP Financier'!$D$16+'BP Financier'!$D$19+'BP Financier'!$C$22+'BP Financier'!$D$22))*$V3182*Z3182/(1-$W3182)","v":{"v":18851.865721779526,"d":"18,852"}},{"$f":"'BP Financier'!$D$44*(('BP Financier'!$C$19+'BP Financier'!$D$19)/('BP Financier'!$C$16+'BP Financier'!$C$19+'BP Financier'!$D$16+'BP Financier'!$D$19+'BP Financier'!$C$22+'BP Financier'!$D$22))*$V3182*AA3182/(1-$W3182)","v":{"v":2329.111182099477,"d":"2,329"}},{"$f":"'BP Financier'!$D$44*(('BP Financier'!$C$19+'BP Financier'!$D$19)/('BP Financier'!$C$16+'BP Financier'!$C$19+'BP Financier'!$D$16+'BP Financier'!$D$19+'BP Financier'!$C$22+'BP Financier'!$D$22))*$V3182*AB3182/(1-$W3182)","v":{"v":1114.7882580988946,"d":"1,115"}},null,{"v":0.005,"d":"0.50%"},{"$f":"Actif!$E$28/100","v":{"v":0.28900000000000003,"d":"28.90%"}},{"$f":"Actif!$E$30/100","v":{"v":0.09050000000000001,"d":"9.05%"}},{"$f":"Actif!$E$31/100","v":{"v":0.0605,"d":"6.05%"}},{"$f":"Actif!$E$32/100","v":{"v":0.47350000000000003,"d":"47.35%"}},{"$f":"Actif!$E$33/100","v":{"v":0.0585,"d":"5.85%"}},{"$f":"Actif!$E$29/100","v":{"v":0.027999999999999997,"d":"2.80%"}}]
[null,"#85",60,2026,"H","A_PER",{"v":0.44999999999999996,"d":"0.45"},{"v":0.38999999999999996,"d":"0.39"},0.6,0.6,85,0,{"$f":"ROUND(Primes!$N$7*V3183,0)","v":2},{"$f":"'BP Financier'!$D$33*(('BP Financier'!$C$19+'BP Financier'!$D$19)/('BP Financier'!$C$16+'BP Financier'!$C$19+'BP Financier'!$D$16+'BP Financier'!$D$19))*V3183","v":{"v":51057.260133098745,"d":"51,057"}},{"v":28307.658982439796,"d":"28,308"},{"$f":"'BP Financier'!$D$44*(('BP Financier'!$C$19+'BP Financier'!$D$19)/('BP Financier'!$C$16+'BP Financier'!$C$19+'BP Financier'!$D$16+'BP Financier'!$D$19+'BP Financier'!$C$22+'BP Financier'!$D$22))*$V3183*X3183/(1-$W3183)","v":{"v":3603.1549056410713,"d":"3,603"}},{"$f":"'BP Financier'!$D$44*(('BP Financier'!$C$19+'BP Financier'!$D$19)/('BP Financier'!$C$16+'BP Financier'!$C$19+'BP Financier'!$D$16+'BP Financier'!$D$19+'BP Financier'!$C$22+'BP Financier'!$D$22))*$V3183*Y3183/(1-$W3183)","v":{"v":2408.7389148208263,"d":"2,409"}},{"$f":"'BP Financier'!$D$44*(('BP Financier'!$C$19+'BP Financier'!$D$19)/('BP Financier'!$C$16+'BP Financier'!$C$19+'BP Financier'!$D$16+'BP Financier'!$D$19+'BP Financier'!$C$22+'BP Financier'!$D$22))*$V3183*Z3183/(1-$W3183)","v":{"v":18851.865721779526,"d":"18,852"}},{"$f":"'BP Financier'!$D$44*(('BP Financier'!$C$19+'BP Financier'!$D$19)/('BP Financier'!$C$16+'BP Financier'!$C$19+'BP Financier'!$D$16+'BP Financier'!$D$19+'BP Financier'!$C$22+'BP Financier'!$D$22))*$V3183*AA3183/(1-$W3183)","v":{"v":2329.111182099477,"d":"2,329"}},{"$f":"'BP Financier'!$D$44*(('BP Financier'!$C$19+'BP Financier'!$D$19)/('BP Financier'!$C$16+'BP Financier'!$C$19+'BP Financier'!$D$16+'BP Financier'!$D$19+'BP Financier'!$C$22+'BP Financier'!$D$22))*$V3183*AB3183/(1-$W3183)","v":{"v":1114.7882580988946,"d":"1,115"}},null,{"v":0.005,"d":"0.50%"},{"$f":"Actif!$E$28/100","v":{"v":0.28900000000000003,"d":"28.90%"}},{"$f":"Actif!$E$30/100","v":{"v":0.09050000000000001,"d":"9.05%"}},{"$f":"Actif!$E$31/100","v":{"v":0.0605,"d":"6.05%"}},{"$f":"Actif!$E$32/100","v":{"v":0.47350000000000003,"d":"47.35%"}},{"$f":"Actif!$E$33/100","v":{"v":0.0585,"d":"5.85%"}},{"$f":"Actif!$E$29/100","v":{"v":0.027999999999999997,"d":"2.80%"}}]
[null,"#86",60,2028,"H","A_PER",{"v":0.44999999999999996,"d":"0.45"},{"v":0.38999999999999996,"d":"0.39"},0.6,0.6,85,0,{"$f":"ROUND(Primes!$N$7*V3184,0)","v":2},{"$f":"'BP Financier'!$D$33*(('BP Financier'!$C$19+'BP Financier'!$D$19)/('BP Financier'!$C$16+'BP Financier'!$C$19+'BP Financier'!$D$16+'BP Financier'!$D$19))*V3184","v":{"v":51057.260133098745,"d":"51,057"}},{"v":28307.658982439796,"d":"28,308"},{"$f":"'BP Financier'!$D$44*(('BP Financier'!$C$19+'BP Financier'!$D$19)/('BP Financier'!$C$16+'BP Financier'!$C$19+'BP Financier'!$D$16+'BP Financier'!$D$19+'BP Financier'!$C$22+'BP Financier'!$D$22))*$V3184*X3184/(1-$W3184)","v":{"v":3603.1549056410713,"d":"3,603"}},{"$f":"'BP Financier'!$D$44*(('BP Financier'!$C$19+'BP Financier'!$D$19)/('BP Financier'!$C$16+'BP Financier'!$C$19+'BP Financier'!$D$16+'BP Financier'!$D$19+'BP Financier'!$C$22+'BP Financier'!$D$22))*$V3184*Y3184/(1-$W3184)","v":{"v":2408.7389148208263,"d":"2,409"}},{"$f":"'BP Financier'!$D$44*(('BP Financier'!$C$19+'BP Financier'!$D$19)/('BP Financier'!$C$16+'BP Financier'!$C$19+'BP Financier'!$D$16+'BP Financier'!$D$19+'BP Financier'!$C$22+'BP Financier'!$D$22))*$V3184*Z3184/(1-$W3184)","v":{"v":18851.865721779526,"d":"18,852"}},{"$f":"'BP Financier'!$D$44*(('BP Financier'!$C$19+'BP Financier'!$D$19)/('BP Financier'!$C$16+'BP Financier'!$C$19+'BP Financier'!$D$16+'BP Financier'!$D$19+'BP Financier'!$C$22+'BP Financier'!$D$22))*$V3184*AA3184/(1-$W3184)","v":{"v":2329.111182099477,"d":"2,329"}},{"$f":"'BP Financier'!$D$44*(('BP Financier'!$C$19+'BP Financier'!$D$19)/('BP Financier'!$C$16+'BP Financier'!$C$19+'BP Financier'!$D$16+'BP Financier'!$D$19+'BP Financier'!$C$22+'BP Financier'!$D$22))*$V3184*AB3184/(1-$W3184)","v":{"v":1114.7882580988946,"d":"1,115"}},null,{"v":0.005,"d":"0.50%"},{"$f":"Actif!$E$28/100","v":{"v":0.28900000000000003,"d":"28.90%"}},{"$f":"Actif!$E$30/100","v":{"v":0.09050000000000001,"d":"9.05%"}},{"$f":"Actif!$E$31/100","v":{"v":0.0605,"d":"6.05%"}},{"$f":"Actif!$E$32/100","v":{"v":0.47350000000000003,"d":"47.35%"}},{"$f":"Actif!$E$33/100","v":{"v":0.0585,"d":"5.85%"}},{"$f":"Actif!$E$29/100","v":{"v":0.027999999999999997,"d":"2.80%"}}]
[null,"#87",{"$nulls":19},{"v":0,"d":"0.00%"},{"$f":"Actif!$E$28/100","v":{"v":0.28900000000000003,"d":"28.90%"}},{"$f":"Actif!$E$30/100","v":{"v":0.09050000000000001,"d":"9.05%"}},{"$f":"Actif!$E$31/100","v":{"v":0.0605,"d":"6.05%"}},{"$f":"Actif!$E$32/100","v":{"v":0.47350000000000003,"d":"47.35%"}},{"$f":"Actif!$E$33/100","v":{"v":0.0585,"d":"5.85%"}},{"$f":"Actif!$E$29/100","v":{"v":0.027999999999999997,"d":"2.80%"}}]
[null,"#88",{"$nulls":19},{"v":0,"d":"0.00%"},{"$f":"Actif!$E$28/100","v":{"v":0.28900000000000003,"d":"28.90%"}},{"$f":"Actif!$E$30/100","v":{"v":0.09050000000000001,"d":"9.05%"}},{"$f":"Actif!$E$31/100","v":{"v":0.0605,"d":"6.05%"}},{"$f":"Actif!$E$32/100","v":{"v":0.47350000000000003,"d":"47.35%"}},{"$f":"Actif!$E$33/100","v":{"v":0.0585,"d":"5.85%"}},{"$f":"Actif!$E$29/100","v":{"v":0.027999999999999997,"d":"2.80%"}}]
[null,"#89",{"$nulls":19},{"v":0,"d":"0.00%"},{"$f":"Actif!$E$28/100","v":{"v":0.28900000000000003,"d":"28.90%"}},{"$f":"Actif!$E$30/100","v":{"v":0.09050000000000001,"d":"9.05%"}},{"$f":"Actif!$E$31/100","v":{"v":0.0605,"d":"6.05%"}},{"$f":"Actif!$E$32/100","v":{"v":0.47350000000000003,"d":"47.35%"}},{"$f":"Actif!$E$33/100","v":{"v":0.0585,"d":"5.85%"}},{"$f":"Actif!$E$29/100","v":{"v":0.027999999999999997,"d":"2.80%"}}]
[null,"#90",{"$nulls":19},{"v":0,"d":"0.00%"},{"$f":"Actif!$E$28/100","v":{"v":0.28900000000000003,"d":"28.90%"}},{"$f":"Actif!$E$30/100","v":{"v":0.09050000000000001,"d":"9.05%"}},{"$f":"Actif!$E$31/100","v":{"v":0.0605,"d":"6.05%"}},{"$f":"Actif!$E$32/100","v":{"v":0.47350000000000003,"d":"47.35%"}},{"$f":"Actif!$E$33/100","v":{"v":0.0585,"d":"5.85%"}},{"$f":"Actif!$E$29/100","v":{"v":0.027999999999999997,"d":"2.80%"}}]
[null,"#91",{"$nulls":19},{"v":0,"d":"0.00%"},{"$f":"Actif!$E$28/100","v":{"v":0.28900000000000003,"d":"28.90%"}},{"$f":"Actif!$E$30/100","v":{"v":0.09050000000000001,"d":"9.05%"}},{"$f":"Actif!$E$31/100","v":{"v":0.0605,"d":"6.05%"}},{"$f":"Actif!$E$32/100","v":{"v":0.47350000000000003,"d":"47.35%"}},{"$f":"Actif!$E$33/100","v":{"v":0.0585,"d":"5.85%"}},{"$f":"Actif!$E$29/100","v":{"v":0.027999999999999997,"d":"2.80%"}}]
[null,"#92",{"$nulls":19},{"v":0,"d":"0.00%"},{"$f":"Actif!$E$28/100","v":{"v":0.28900000000000003,"d":"28.90%"}},{"$f":"Actif!$E$30/100","v":{"v":0.09050000000000001,"d":"9.05%"}},{"$f":"Actif!$E$31/100","v":{"v":0.0605,"d":"6.05%"}},{"$f":"Actif!$E$32/100","v":{"v":0.47350000000000003,"d":"47.35%"}},{"$f":"Actif!$E$33/100","v":{"v":0.0585,"d":"5.85%"}},{"$f":"Actif!$E$29/100","v":{"v":0.027999999999999997,"d":"2.80%"}}]
[null,"#93",{"$nulls":19},{"v":0,"d":"0.00%"},{"$f":"Actif!$E$28/100","v":{"v":0.28900000000000003,"d":"28.90%"}},{"$f":"Actif!$E$30/100","v":{"v":0.09050000000000001,"d":"9.05%"}},{"$f":"Actif!$E$31/100","v":{"v":0.0605,"d":"6.05%"}},{"$f":"Actif!$E$32/100","v":{"v":0.47350000000000003,"d":"47.35%"}},{"$f":"Actif!$E$33/100","v":{"v":0.0585,"d":"5.85%"}},{"$f":"Actif!$E$29/100","v":{"v":0.027999999999999997,"d":"2.80%"}}]
[null,"#94",{"$nulls":19},{"v":0,"d":"0.00%"},{"$f":"Actif!$E$28/100","v":{"v":0.28900000000000003,"d":"28.90%"}},{"$f":"Actif!$E$30/100","v":{"v":0.09050000000000001,"d":"9.05%"}},{"$f":"Actif!$E$31/100","v":{"v":0.0605,"d":"6.05%"}},{"$f":"Actif!$E$32/100","v":{"v":0.47350000000000003,"d":"47.35%"}},{"$f":"Actif!$E$33/100","v":{"v":0.0585,"d":"5.85%"}},{"$f":"Actif!$E$29/100","v":{"v":0.027999999999999997,"d":"2.80%"}}]
[null,"#95",{"$nulls":19},{"v":0,"d":"0.00%"},{"$f":"Actif!$E$28/100","v":{"v":0.28900000000000003,"d":"28.90%"}},{"$f":"Actif!$E$30/100","v":{"v":0.09050000000000001,"d":"9.05%"}},{"$f":"Actif!$E$31/100","v":{"v":0.0605,"d":"6.05%"}},{"$f":"Actif!$E$32/100","v":{"v":0.47350000000000003,"d":"47.35%"}},{"$f":"Actif!$E$33/100","v":{"v":0.0585,"d":"5.85%"}},{"$f":"Actif!$E$29/100","v":{"v":0.027999999999999997,"d":"2.80%"}}]
[null,"#96"]
[null,"#97"]
[null,"#98"]
[null,"#99"]
[null,"#100"]
[null,"#101"]
[null,"#102"]
[null,"#103"]
[null,"#104"]
[null,"#105"]
[null,"#106"]
[null,"#107"]
[null,"#108"]
[null,"#109"]
[null,"#110"]
[null,"#111"]
[null,"#112"]
[null,"#113"]
[null,"#114"]
[null,"#115"]
[null,"#116"]
[null,"#117"]
[null,"#118"]
[null,"#119"]
[null,"#120"]
[null,"#121"]
[null,"#122"]
[null,"#123"]
[null,"#124"]
[null,"#125"]
[null,"#126"]
[null,"#127"]
[null,"#128"]
[null,"#129"]
[null,"#130"]
[null,"#131"]
[null,"#132"]
[null,"#133"]
[null,"#134"]
[null,"#135"]
[null,"#136"]
[null,"#137"]
[null,"#138"]
[null,"#139"]
[null,"#140"]
[null,"#141"]
[null,"#142"]
[null,"#143"]
[null,"#144"]
[null,"#145"]
[null,"#146"]
[null,"#147"]
[null,"#148"]
[null,"#149"]
[null,"#150"]
[null,"#151"]
[null,"#152"]
[null,"#153"]
[null,"#154"]
[null,"#155"]
[null,"#156"]
[null,"#157"]
[null,"#158"]
[null,"#159"]
[null,"#160"]
[null,"#161"]
[null,"#162"]
[null,"#163"]
[null,"#164"]
[null,"#165"]
[null,"#166"]
[null,"#167"]
[null,"#168"]
[null,"#169"]
[null,"#170"]
[null,"#171"]
[null,"#172"]
[null,"#173"]
[null,"#174"]
[null,"#175"]
[null,"#176"]
[null,"#177"]
[null,"#178"]
[null,"#179"]
[null,"#180"]
[null,"#181"]
[null,"#182"]
[null,"#183"]
[null,"#184"]
[null,"#185"]
[null,"#186"]
[null,"#187"]
[null,"#188"]
[null,"#189"]
[null,"#190"]
[null,"#191"]
[null,"#192"]
[null,"#193"]
[null,"#194"]
[null,"#195"]
[null,"#196"]
[null,"#197"]
[null,"#198"]
[null,"#199"]
[null,"#200"]
[null,"#201"]
[null,"#202"]
[null,"#203"]
[null,"#204"]
[null,"#205"]
[null,"#206"]
[null,"#207"]
[null,"#208"]
[null,"#209"]
[null,"#210"]
[null,"#211"]
[null,"#212"]
[null,"#213"]
[null,"#214"]
[null,"#215"]
[null,"#216"]
[null,"#217"]
[null,"#218"]
[null,"#219"]
[null,"#220"]
[null,"#221"]
[null,"#222"]
[null,"#223"]
[null,"#224"]
[null,"#225"]
[null,"#226"]
[null,"#227"]
[null,"#228"]
[null,"#229"]
[null,"#230"]
[null,"#231"]
[null,"#232"]
[null,"#233"]
[null,"#234"]
[null,"#235"]
[null,"#236"]
[null,"#237"]
[null,"#238"]
[null,"#239"]
[null,"#240"]
[null,"#241"]
[null,"#242"]
[null,"#243"]
[null,"#244"]
[null,"#245"]
[null,"#246"]
[null,"#247"]
[null,"#248"]
[null,"#249"]
[null,"#250"]
[null,"#251"]
[null,"#252"]
[null,"#253"]
[null,"#254"]
[null,"#255"]
[null,"#256"]
[null,"#257"]
[null,"#258"]
[null,"#259"]
[null,"#260"]
[null,"#261"]
[null,"#262"]
[null,"#263"]
[null,"#264"]
[null,"#265"]
[null,"#266"]
[null,"#267"]
[null,"#268"]
[null,"#269"]
[null,"#270"]
[null,"#271"]
[null,"#272"]
[null,"#273"]
[null,"#274"]
[null,"#275"]
[null,"#276"]
[null,"#277"]
[null,"#278"]
[null,"#279"]
[null,"#280"]
[null,"#281"]
[null,"#282"]
[null,"#283"]
[null,"#284"]
[null,"#285"]
[null,"#286"]
[null,"#287"]
[null,"#288"]
[null,"#289"]
[null,"#290"]
[null,"#291"]
[null,"#292"]
[null,"#293"]
[null,"#294"]
[null,"#295"]
[null,"#296"]
[null,"#297"]
[null,"#298"]
[null,"#299"]
[null,"#300"]
[null,"#301"]
[null,"#302"]
[null,"#303"]
[null,"#304"]
[null,"#305"]
[null,"#306"]
[null,"#307"]
[null,"#308"]
[null,"#309"]
[null,"#310"]
[null,"#311"]
[null,"#312"]
[null,"#313"]
[null,"#314"]
[null,"#315"]
[null,"#316"]
[null,"#317"]
[null,"#318"]
[null,"#319"]
[null,"#320"]
[null,"#321"]
[null,"#322"]
[null,"#323"]
[null,"#324"]
[null,"#325"]
[null,"#326"]
[null,"#327"]
[null,"#328"]
[null,"#329"]
[null,"#330"]
[null,"#331"]
[null,"#332"]
[null,"#333"]
[null,"#334"]
[null,"#335"]
[null,"#336"]
[null,"#337"]
[null,"#338"]
[null,"#339"]
[null,"#340"]
[null,"#341"]
[null,"#342"]
[null,"#343"]
[null,"#344"]
[null,"#345"]
[null,"#346"]
[null,"#347"]
[null,"#348"]
[null,"#349"]
[null,"#350"]
[null,"#351"]
[null,"#352"]
[null,"#353"]
[null,"#354"]
[null,"#355"]
[null,"#356"]
[null,"#357"]
[null,"#358"]
[null,"#359"]
[null,"#360"]
[null,"#361"]
[null,"#362"]
[null,"#363"]
[null,"#364"]
[null,"#365"]
[null,"#366"]
[null,"#367"]
[null,"#368"]
[null,"#369"]
[null,"#370"]
[null,"#371"]
[null,"#372"]
[null,"#373"]
[null,"#374"]
[null,"#375"]
[null,"#376"]
[null,"#377"]
[null,"#378"]
[null,"#379"]
[null,"#380"]
[null,"#381"]
[null,"#382"]
[null,"#383"]
[null,"#384"]
[null,"#385"]
[null,"#386"]
[null,"#387"]
[null,"#388"]
[null,"#389"]
[null,"#390"]
[null,"#391"]
[null,"#392"]
[null,"#393"]
[null,"#394"]
[null,"#395"]
[null,"#396"]
[null,"#397"]
[null,"#398"]
[null,"#399"]
[null,"#400"]
[null,"#401"]
[null,"#402"]
[null,"#403"]
[null,"#404"]
[null,"#405"]
[null,"#406"]
[null,"#407"]
[null,"#408"]
[null,"#409"]
[null,"#410"]
[null,"#411"]
[null,"#412"]
[null,"#413"]
[null,"#414"]
[null,"#415"]
[null,"#416"]
[null,"#417"]
[null,"#418"]
[null,"#419"]
[null,"#420"]
[null,"#421"]
[null,"#422"]
[null,"#423"]
[null,"#424"]
[null,"#425"]
[null,"#426"]
[null,"#427"]
[null,"#428"]
[null,"#429"]
[null,"#430"]
[null,"#431"]
[null,"#432"]
[null,"#433"]
[null,"#434"]
[null,"#435"]
[null,"#436"]
[null,"#437"]
[null,"#438"]
[null,"#439"]
[null,"#440"]
[null,"#441"]
[null,"#442"]
[null,"#443"]
[null,"#444"]
[null,"#445"]
[null,"#446"]
[null,"#447"]
[null,"#448"]
[null,"#449"]
[null,"#450"]
[null,"#451"]
[null,"#452"]
[null,"#453"]
[null,"#454"]
[null,"#455"]
[null,"#456"]
[null,"#457"]
[null,"#458"]
[null,"#459"]
[null,"#460"]
[null,"#461"]
[null,"#462"]
[null,"#463"]
[null,"#464"]
[null,"#465"]
[null,"#466"]
[null,"#467"]
[null,"#468"]
[null,"#469"]
[null,"#470"]
[null,"#471"]
[null,"#472"]
[null,"#473"]
[null,"#474"]
[null,"#475"]
[null,"#476"]
[null,"#477"]
[null,"#478"]
[null,"#479"]
[null,"#480"]
[null,"#481"]
[null,"#482"]
[null,"#483"]
[null,"#484"]
[null,"#485"]
[null,"#486"]
[null,"#487"]
[null,"#488"]
[null,"#489"]
[null,"#490"]
[null,"#491"]
[null,"#492"]
[null,"#493"]
[null,"#494"]
[null,"#495"]
[null,"#496"]
[null,"#497"]
[null,"#498"]
[null,"#499"]
[null,"#500"]
[null,"#501"]
[null,"#502"]
[null,"#503"]
[null,"#504"]
[null,"#505"]
[null,"#506"]
[null,"#507"]
[null,"#508"]
[null,"#509"]
[null,"#510"]
[null,"#511"]
[null,"#512"]
[null,"#513"]
[null,"#514"]
[null,"#515"]
[null,"#516"]
[null,"#517"]
[null,"#518"]
[null,"#519"]
[null,"#520"]
[null,"#521"]
[null,"#522"]
[null,"#523"]
[null,"#524"]
[null,"#525"]
[null,"#526"]
[null,"#527"]
[null,"#528"]
[null,"#529"]
[null,"#530"]
[null,"#531"]
[null,"#532"]
[null,"#533"]
[null,"#534"]
[null,"#535"]
[null,"#536"]
[null,"#537"]
[null,"#538"]
[null,"#539"]
[null,"#540"]
[null,"#541"]
[null,"#542"]
[null,"#543"]
[null,"#544"]
[null,"#545"]
[null,"#546"]
[null,"#547"]
[null,"#548"]
[null,"#549"]
[null,"#550"]
[null,"#551"]
[null,"#552"]
[null,"#553"]
[null,"#554"]
[null,"#555"]
[null,"#556"]
[null,"#557"]
[null,"#558"]
[null,"#559"]
[null,"#560"]
[null,"#561"]
[null,"#562"]
[null,"#563"]
[null,"#564"]
[null,"#565"]
[null,"#566"]
[null,"#567"]
[null,"#568"]
[null,"#569"]
[null,"#570"]
[null,"#571"]
[null,"#572"]
[null,"#573"]
[null,"#574"]
[null,"#575"]
[null,"#576"]
[null,"#577"]
[null,"#578"]
[null,"#579"]
[null,"#580"]
[null,"#581"]
[null,"#582"]
[null,"#583"]
[null,"#584"]
[null,"#585"]
[null,"#586"]
[null,"#587"]
[null,"#588"]
[null,"#589"]
[null,"#590"]
[null,"#591"]
[null,"#592"]
[null,"#593"]
[null,"#594"]
[null,"#595"]
[null,"#596"]
[null,"#597"]
[null,"#598"]
[null,"#599"]
[null,"#600"]
[null,"#601"]
[null,"#602"]
[null,"#603"]
[null,"#604"]
[null,"#605"]
[null,"#606"]
[null,"#607"]
[null,"#608"]
[null,"#609"]
[null,"#610"]
[null,"#611"]
[null,"#612"]
[null,"#613"]
[null,"#614"]
[null,"#615"]
[null,"#616"]
[null,"#617"]
[null,"#618"]
[null,"#619"]
[null,"#620"]
[null,"#621"]
[null,"#622"]
[null,"#623"]
[null,"#624"]
[null,"#625"]
[null,"#626"]
[null,"#627"]
[null,"#628"]
[null,"#629"]
[null,"#630"]
[null,"#631"]
[null,"#632"]
[null,"#633"]
[null,"#634"]
[null,"#635"]
[null,"#636"]
[null,"#637"]
[null,"#638"]
[null,"#639"]
[null,"#640"]
[null,"#641"]
[null,"#642"]
[null,"#643"]
[null,"#644"]
[null,"#645"]
[null,"#646"]
[null,"#647"]
[null,"#648"]
[null,"#649"]
[null,"#650"]
[null,"#651"]
[null,"#652"]
[null,"#653"]
[null,"#654"]
[null,"#655"]
[null,"#656"]
[null,"#657"]
[null,"#658"]
[null,"#659"]
[null,"#660"]
[null,"#661"]
[null,"#662"]
[null,"#663"]
[null,"#664"]
[null,"#665"]
[null,"#666"]
[null,"#667"]
[null,"#668"]
[null,"#669"]
[null,"#670"]
[null,"#671"]
[null,"#672"]
[null,"#673"]
[null,"#674"]
[null,"#675"]
[null,"#676"]
[null,"#677"]
[null,"#678"]
[null,"#679"]
[null,"#680"]
[null,"#681"]
[null,"#682"]
[null,"#683"]
[null,"#684"]
[null,"#685"]
[null,"#686"]
[null,"#687"]
[null,"#688"]
[null,"#689"]
[null,"#690"]
[null,"#691"]
[null,"#692"]
[null,"#693"]
[null,"#694"]
[null,"#695"]
[null,"#696"]
[null,"#697"]
[null,"#698"]
[null,"#699"]
[null,"#700"]
[null,"#701"]
[null,"#702"]
[null,"#703"]
[null,"#704"]
[null,"#705"]
[null,"#706"]
[null,"#707"]
[null,"#708"]
[null,"#709"]
[null,"#710"]
[null,"#711"]
[null,"#712"]
[null,"#713"]
[null,"#714"]
[null,"#715"]
[null,"#716"]
[null,"#717"]
[null,"#718"]
[null,"#719"]
[null,"#720"]
[null,"#721"]
[null,"#722"]
[null,"#723"]
[null,"#724"]
[null,"#725"]
[null,"#726"]
[null,"#727"]
[null,"#728"]
[null,"#729"]
[null,"#730"]
[null,"#731"]
[null,"#732"]
[null,"#733"]
[null,"#734"]
[null,"#735"]
[null,"#736"]
[null,"#737"]
[null,"#738"]
[null,"#739"]
[null,"#740"]
[null,"#741"]
[null,"#742"]
[null,"#743"]
[null,"#744"]
[null,"#745"]
[null,"#746"]
[null,"#747"]
[null,"#748"]
[null,"#749"]
[null,"#750"]
[null,"#751"]
[null,"#752"]
[null,"#753"]
[null,"#754"]
[null,"#755"]
[null,"#756"]
[null,"#757"]
[null,"#758"]
[null,"#759"]
[null,"#760"]
[null,"#761"]
[null,"#762"]
[null,"#763"]
[null,"#764"]
[null,"#765"]
[null,"#766"]
[null,"#767"]
[null,"#768"]
[null,"#769"]
[null,"#770"]
[null,"#771"]
[null,"#772"]
[null,"#773"]
[null,"#774"]
[null,"#775"]
[null,"#776"]
[null,"#777"]
[null,"#778"]
[null,"#779"]
[null,"#780"]
[null,"#781"]
[null,"#782"]
[null,"#783"]
[null,"#784"]
[null,"#785"]
[null,"#786"]
[null,"#787"]
[null,"#788"]
[null,"#789"]
[null,"#790"]
[null,"#791"]
[null,"#792"]
[null,"#793"]
[null,"#794"]
[null,"#795"]
[null,"#796"]
[null,"#797"]
[null,"#798"]
[null,"#799"]
[null,"#800"]
[null,"#801"]
[null,"#802"]
[null,"#803"]
[null,"#804"]
[null,"#805"]
[null,"#806"]
[null,"#807"]
[null,"#808"]
[null,"#809"]
[null,"#810"]
[null,"#811"]
[null,"#812"]
[null,"#813"]
[null,"#814"]
[null,"#815"]
[null,"#816"]
[null,"#817"]
[null,"#818"]
[null,"#819"]
[null,"#820"]
[null,"#821"]
[null,"#822"]
[null,"#823"]
[null,"#824"]
[null,"#825"]
[null,"#826"]
[null,"#827"]
[null,"#828"]
[null,"#829"]
[null,"#830"]
[null,"#831"]
[null,"#832"]
[null,"#833"]
[null,"#834"]
[null,"#835"]
[null,"#836"]
[null,"#837"]
[null,"#838"]
[null,"#839"]
[null,"#840"]
[null,"#841"]
[null,"#842"]
[null,"#843"]
[null,"#844"]
[null,"#845"]
[null,"#846"]
[null,"#847"]
[null,"#848"]
[null,"#849"]
[null,"#850"]
[null,"#851"]
[null,"#852"]
[null,"#853"]
[null,"#854"]
[null,"#855"]
[null,"#856"]
[null,"#857"]
[null,"#858"]
[null,"#859"]
[null,"#860"]
[null,"#861"]
[null,"#862"]
[null,"#863"]
[null,"#864"]
[null,"#865"]
[null,"#866"]
[null,"#867"]
[null,"#868"]
[null,"#869"]
[null,"#870"]
[null,"#871"]
[null,"#872"]
[null,"#873"]
[null,"#874"]
[null,"#875"]
[null,"#876"]
[null,"#877"]
[null,"#878"]
[null,"#879"]
[null,"#880"]
[null,"#881"]
[null,"#882"]
[null,"#883"]
[null,"#884"]
[null,"#885"]
[null,"#886"]
[null,"#887"]
[null,"#888"]
[null,"#889"]
[null,"#890"]
[null,"#891"]
[null,"#892"]
[null,"#893"]
[null,"#894"]
[null,"#895"]
[null,"#896"]
[null,"#897"]
[null,"#898"]
[null,"#899"]
[null,"#900"]
[null,"#901"]
[null,"#902"]
[null,"#903"]
[null,"#904"]
[null,"#905"]
[null,"#906"]
[null,"#907"]
[null,"#908"]
[null,"#909"]
[null,"#910"]
[null,"#911"]
[null,"#912"]
[null,"#913"]
[null,"#914"]
[null,"#915"]
[null,"#916"]
[null,"#917"]
[null,"#918"]
[null,"#919"]
[null,"#920"]
[null,"#921"]
[null,"#922"]
[null,"#923"]
[null,"#924"]
[null,"#925"]
[null,"#926"]
[null,"#927"]
[null,"#928"]
[null,"#929"]
[null,"#930"]
[null,"#931"]
[null,"#932"]
[null,"#933"]
[null,"#934"]
[null,"#935"]
[null,"#936"]
[null,"#937"]
[null,"#938"]
[null,"#939"]
[null,"#940"]
[null,"#941"]
[null,"#942"]
[null,"#943"]
[null,"#944"]
[null,"#945"]
[null,"#946"]
[null,"#947"]
[null,"#948"]
[null,"#949"]
[null,"#950"]
[null,"#951"]
[null,"#952"]
[null,"#953"]
[null,"#954"]
[null,"#955"]
[null,"#956"]
[null,"#957"]
[null,"#958"]
[null,"#959"]
[null,"#960"]
[null,"#961"]
[null,"#962"]
[null,"#963"]
[null,"#964"]
[null,"#965"]
[null,"#966"]
[null,"#967"]
[null,"#968"]
[null,"#969"]
[null,"#970"]
[null,"#971"]
[null,"#972"]
[null,"#973"]
[null,"#974"]
[null,"#975"]
[null,"#976"]
[null,"#977"]
[null,"#978"]
[null,"#979"]
[null,"#980"]
[null,"#981"]
[null,"#982"]
[null,"#983"]
[null,"#984"]
[null,"#985"]
[null,"#986"]
[null,"#987"]
[null,"#988"]
[null,"#989"]
[null,"#990"]
[null,"#991"]
[null,"#992"]
[null,"#993"]
[null,"#994"]
[null,"#995"]
[null,"#996"]
[null,"#997"]
[null,"#998"]
[null,"#999"]
[null,"#1000"]
[]
[null,"AVIE / CAPI","Euro - UC","2029-12-31",{"$nulls":19},"Obligation","Dette Privée","Action","Private Equity","Obligation CT"]
[null,"ID","AGE","SOUSCRIPTION_YR","SEXE","PDT","CHGT_GEST_EURO_PC","CHGT_GEST_UC_PC","COMM_DIST_EURO_PC","COMM_DIST_UC_PC","CLAUSE_PB_PC","TMG_PC","NO_POLS","PM_EURO","PM_UC_TOT","PM_UC_1","PM_UC_2","PM_UC_3","PM_UC_4","PM_UC_5",null,"Pondération","%Euro","%UC1","%UC2","%UC3","%UC4","%UC5"]
[null,"#1",18,2026,"H","A_VIE",{"$f":"frais_gestion_Euro*100","v":{"v":0.44999999999999996,"d":"0.45"}},{"$f":"frais_gestion_UC*100","v":{"v":0.38999999999999996,"d":"0.39"}},{"$f":"frais_distribution_FG*100","v":0.6},{"$f":"frais_distribution_UC*100","v":0.6},85,0,{"$f":"ROUND(Primes!$O$4*V4102,0)","v":11},{"$f":"'BP Financier'!$E$33*(('BP Financier'!$C$16+'BP Financier'!$D$16+'BP Financier'!$E$16)/('BP Financier'!$C$16+'BP Financier'!$C$19+'BP Financier'!$D$16+'BP Financier'!$D$19+'BP Financier'!$E$16+'BP Financier'!$E$19))*V4102","v":{"v":392797.7810805569,"d":"392,798"}},{"$f":"SUM(P4102:T4102)","v":{"v":220299.34202100948,"d":"220,299"}},{"$f":"'BP Financier'!$E$44*(('BP Financier'!$C$16+'BP Financier'!$D$16+'BP Financier'!$E$16)/('BP Financier'!$C$16+'BP Financier'!$C$19+'BP Financier'!$D$16+'BP Financier'!$D$19+'BP Financier'!$E$16+'BP Financier'!$E$19+'BP Financier'!$C$22+'BP Financier'!$D$22+'BP Financier'!$E$22))*$V4102*X4102/(1-$W4102)","v":{"v":28040.91484233665,"d":"28,041"}},{"$f":"'BP Financier'!$E$44*(('BP Financier'!$C$16+'BP Financier'!$D$16+'BP Financier'!$E$16)/('BP Financier'!$C$16+'BP Financier'!$C$19+'BP Financier'!$D$16+'BP Financier'!$D$19+'BP Financier'!$E$16+'BP Financier'!$E$19+'BP Financier'!$C$22+'BP Financier'!$D$22+'BP Financier'!$E$22))*$V4102*Y4102/(1-$W4102)","v":{"v":18745.583955374223,"d":"18,746"}},{"$f":"'BP Financier'!$E$44*(('BP Financier'!$C$16+'BP Financier'!$D$16+'BP Financier'!$E$16)/('BP Financier'!$C$16+'BP Financier'!$C$19+'BP Financier'!$D$16+'BP Financier'!$D$19+'BP Financier'!$E$16+'BP Financier'!$E$19+'BP Financier'!$C$22+'BP Financier'!$D$22+'BP Financier'!$E$22))*$V4102*Z4102/(1-$W4102)","v":{"v":146711.30583255694,"d":"146,711"}},{"$f":"'BP Financier'!$E$44*(('BP Financier'!$C$16+'BP Financier'!$D$16+'BP Financier'!$E$16)/('BP Financier'!$C$16+'BP Financier'!$C$19+'BP Financier'!$D$16+'BP Financier'!$D$19+'BP Financier'!$E$16+'BP Financier'!$E$19+'BP Financier'!$C$22+'BP Financier'!$D$22+'BP Financier'!$E$22))*$V4102*AA4102/(1-$W4102)","v":{"v":18125.89522957673,"d":"18,126"}},{"$f":"'BP Financier'!$E$44*(('BP Financier'!$C$16+'BP Financier'!$D$16+'BP Financier'!$E$16)/('BP Financier'!$C$16+'BP Financier'!$C$19+'BP Financier'!$D$16+'BP Financier'!$D$19+'BP Financier'!$E$16+'BP Financier'!$E$19+'BP Financier'!$C$22+'BP Financier'!$D$22+'BP Financier'!$E$22))*$V4102*AB4102/(1-$W4102)","v":{"v":8675.642161164928,"d":"8,676"}},null,{"v":1.6666666666666668E-3,"d":"0.17%"},{"$f":"Actif!$E$28/100","v":{"v":0.28900000000000003,"d":"28.90%"}},{"$f":"Actif!$E$30/100","v":{"v":0.09050000000000001,"d":"9.05%"}},{"$f":"Actif!$E$31/100","v":{"v":0.0605,"d":"6.05%"}},{"$f":"Actif!$E$32/100","v":{"v":0.47350000000000003,"d":"47.35%"}},{"$f":"Actif!$E$33/100","v":{"v":0.0585,"d":"5.85%"}},{"$f":"Actif!$E$29/100","v":{"v":0.027999999999999997,"d":"2.80%"}}]
[null,"#2",18,2028,"H","A_VIE",{"v":0.44999999999999996,"d":"0.45"},{"v":0.38999999999999996,"d":"0.39"},0.6,0.6,85,0,{"$f":"ROUND(Primes!$O$4*V4103,0)","v":11},{"$f":"'BP Financier'!$E$33*(('BP Financier'!$C$16+'BP Financier'!$D$16+'BP Financier'!$E$16)/('BP Financier'!$C$16+'BP Financier'!$C$19+'BP Financier'!$D$16+'BP Financier'!$D$19+'BP Financier'!$E$16+'BP Financier'!$E$19))*V4103","v":{"v":392797.7810805569,"d":"392,798"}},{"$f":"SUM(P4103:T4103)","v":{"v":220299.34202100948,"d":"220,299"}},{"$f":"'BP Financier'!$E$44*(('BP Financier'!$C$16+'BP Financier'!$D$16+'BP Financier'!$E$16)/('BP Financier'!$C$16+'BP Financier'!$C$19+'BP Financier'!$D$16+'BP Financier'!$D$19+'BP Financier'!$E$16+'BP Financier'!$E$19+'BP Financier'!$C$22+'BP Financier'!$D$22+'BP Financier'!$E$22))*$V4103*X4103/(1-$W4103)","v":{"v":28040.91484233665,"d":"28,041"}},{"$f":"'BP Financier'!$E$44*(('BP Financier'!$C$16+'BP Financier'!$D$16+'BP Financier'!$E$16)/('BP Financier'!$C$16+'BP Financier'!$C$19+'BP Financier'!$D$16+'BP Financier'!$D$19+'BP Financier'!$E$16+'BP Financier'!$E$19+'BP Financier'!$C$22+'BP Financier'!$D$22+'BP Financier'!$E$22))*$V4103*Y4103/(1-$W4103)","v":{"v":18745.583955374223,"d":"18,746"}},{"$f":"'BP Financier'!$E$44*(('BP Financier'!$C$16+'BP Financier'!$D$16+'BP Financier'!$E$16)/('BP Financier'!$C$16+'BP Financier'!$C$19+'BP Financier'!$D$16+'BP Financier'!$D$19+'BP Financier'!$E$16+'BP Financier'!$E$19+'BP Financier'!$C$22+'BP Financier'!$D$22+'BP Financier'!$E$22))*$V4103*Z4103/(1-$W4103)","v":{"v":146711.30583255694,"d":"146,711"}},{"$f":"'BP Financier'!$E$44*(('BP Financier'!$C$16+'BP Financier'!$D$16+'BP Financier'!$E$16)/('BP Financier'!$C$16+'BP Financier'!$C$19+'BP Financier'!$D$16+'BP Financier'!$D$19+'BP Financier'!$E$16+'BP Financier'!$E$19+'BP Financier'!$C$22+'BP Financier'!$D$22+'BP Financier'!$E$22))*$V4103*AA4103/(1-$W4103)","v":{"v":18125.89522957673,"d":"18,126"}},{"$f":"'BP Financier'!$E$44*(('BP Financier'!$C$16+'BP Financier'!$D$16+'BP Financier'!$E$16)/('BP Financier'!$C$16+'BP Financier'!$C$19+'BP Financier'!$D$16+'BP Financier'!$D$19+'BP Financier'!$E$16+'BP Financier'!$E$19+'BP Financier'!$C$22+'BP Financier'!$D$22+'BP Financier'!$E$22))*$V4103*AB4103/(1-$W4103)","v":{"v":8675.642161164928,"d":"8,676"}},null,{"v":1.6666666666666668E-3,"d":"0.17%"},{"$f":"Actif!$E$28/100","v":{"v":0.28900000000000003,"d":"28.90%"}},{"$f":"Actif!$E$30/100","v":{"v":0.09050000000000001,"d":"9.05%"}},{"$f":"Actif!$E$31/100","v":{"v":0.0605,"d":"6.05%"}},{"$f":"Actif!$E$32/100","v":{"v":0.47350000000000003,"d":"47.35%"}},{"$f":"Actif!$E$33/100","v":{"v":0.0585,"d":"5.85%"}},{"$f":"Actif!$E$29/100","v":{"v":0.027999999999999997,"d":"2.80%"}}]
[null,"#3",18,2029,"H","A_VIE",{"v":0.44999999999999996,"d":"0.45"},{"v":0.38999999999999996,"d":"0.39"},0.6,0.6,85,0,{"$f":"ROUND(Primes!$O$4*V4104,0)","v":11},{"$f":"'BP Financier'!$E$33*(('BP Financier'!$C$16+'BP Financier'!$D$16+'BP Financier'!$E$16)/('BP Financier'!$C$16+'BP Financier'!$C$19+'BP Financier'!$D$16+'BP Financier'!$D$19+'BP Financier'!$E$16+'BP Financier'!$E$19))*V4104","v":{"v":392797.7810805569,"d":"392,798"}},{"v":220299.34202100948,"d":"220,299"},{"$f":"'BP Financier'!$E$44*(('BP Financier'!$C$16+'BP Financier'!$D$16+'BP Financier'!$E$16)/('BP Financier'!$C$16+'BP Financier'!$C$19+'BP Financier'!$D$16+'BP Financier'!$D$19+'BP Financier'!$E$16+'BP Financier'!$E$19+'BP Financier'!$C$22+'BP Financier'!$D$22+'BP Financier'!$E$22))*$V4104*X4104/(1-$W4104)","v":{"v":28040.91484233665,"d":"28,041"}},{"$f":"'BP Financier'!$E$44*(('BP Financier'!$C$16+'BP Financier'!$D$16+'BP Financier'!$E$16)/('BP Financier'!$C$16+'BP Financier'!$C$19+'BP Financier'!$D$16+'BP Financier'!$D$19+'BP Financier'!$E$16+'BP Financier'!$E$19+'BP Financier'!$C$22+'BP Financier'!$D$22+'BP Financier'!$E$22))*$V4104*Y4104/(1-$W4104)","v":{"v":18745.583955374223,"d":"18,746"}},{"$f":"'BP Financier'!$E$44*(('BP Financier'!$C$16+'BP Financier'!$D$16+'BP Financier'!$E$16)/('BP Financier'!$C$16+'BP Financier'!$C$19+'BP Financier'!$D$16+'BP Financier'!$D$19+'BP Financier'!$E$16+'BP Financier'!$E$19+'BP Financier'!$C$22+'BP Financier'!$D$22+'BP Financier'!$E$22))*$V4104*Z4104/(1-$W4104)","v":{"v":146711.30583255694,"d":"146,711"}},{"$f":"'BP Financier'!$E$44*(('BP Financier'!$C$16+'BP Financier'!$D$16+'BP Financier'!$E$16)/('BP Financier'!$C$16+'BP Financier'!$C$19+'BP Financier'!$D$16+'BP Financier'!$D$19+'BP Financier'!$E$16+'BP Financier'!$E$19+'BP Financier'!$C$22+'BP Financier'!$D$22+'BP Financier'!$E$22))*$V4104*AA4104/(1-$W4104)","v":{"v":18125.89522957673,"d":"18,126"}},{"$f":"'BP Financier'!$E$44*(('BP Financier'!$C$16+'BP Financier'!$D$16+'BP Financier'!$E$16)/('BP Financier'!$C$16+'BP Financier'!$C$19+'BP Financier'!$D$16+'BP Financier'!$D$19+'BP Financier'!$E$16+'BP Financier'!$E$19+'BP Financier'!$C$22+'BP Financier'!$D$22+'BP Financier'!$E$22))*$V4104*AB4104/(1-$W4104)","v":{"v":8675.642161164928,"d":"8,676"}},null,{"v":1.6666666666666668E-3,"d":"0.17%"},{"$f":"Actif!$E$28/100","v":{"v":0.28900000000000003,"d":"28.90%"}},{"$f":"Actif!$E$30/100","v":{"v":0.09050000000000001,"d":"9.05%"}},{"$f":"Actif!$E$31/100","v":{"v":0.0605,"d":"6.05%"}},{"$f":"Actif!$E$32/100","v":{"v":0.47350000000000003,"d":"47.35%"}},{"$f":"Actif!$E$33/100","v":{"v":0.0585,"d":"5.85%"}},{"$f":"Actif!$E$29/100","v":{"v":0.027999999999999997,"d":"2.80%"}}]
[null,"#4",19,2026,"H","A_VIE",{"v":0.44999999999999996,"d":"0.45"},{"v":0.38999999999999996,"d":"0.39"},0.6,0.6,85,0,{"$f":"ROUND(Primes!$O$4*V4105,0)","v":11},{"$f":"'BP Financier'!$E$33*(('BP Financier'!$C$16+'BP Financier'!$D$16+'BP Financier'!$E$16)/('BP Financier'!$C$16+'BP Financier'!$C$19+'BP Financier'!$D$16+'BP Financier'!$D$19+'BP Financier'!$E$16+'BP Financier'!$E$19))*V4105","v":{"v":392797.7810805569,"d":"392,798"}},{"v":220299.34202100948,"d":"220,299"},{"$f":"'BP Financier'!$E$44*(('BP Financier'!$C$16+'BP Financier'!$D$16+'BP Financier'!$E$16)/('BP Financier'!$C$16+'BP Financier'!$C$19+'BP Financier'!$D$16+'BP Financier'!$D$19+'BP Financier'!$E$16+'BP Financier'!$E$19+'BP Financier'!$C$22+'BP Financier'!$D$22+'BP Financier'!$E$22))*$V4105*X4105/(1-$W4105)","v":{"v":28040.91484233665,"d":"28,041"}},{"$f":"'BP Financier'!$E$44*(('BP Financier'!$C$16+'BP Financier'!$D$16+'BP Financier'!$E$16)/('BP Financier'!$C$16+'BP Financier'!$C$19+'BP Financier'!$D$16+'BP Financier'!$D$19+'BP Financier'!$E$16+'BP Financier'!$E$19+'BP Financier'!$C$22+'BP Financier'!$D$22+'BP Financier'!$E$22))*$V4105*Y4105/(1-$W4105)","v":{"v":18745.583955374223,"d":"18,746"}},{"$f":"'BP Financier'!$E$44*(('BP Financier'!$C$16+'BP Financier'!$D$16+'BP Financier'!$E$16)/('BP Financier'!$C$16+'BP Financier'!$C$19+'BP Financier'!$D$16+'BP Financier'!$D$19+'BP Financier'!$E$16+'BP Financier'!$E$19+'BP Financier'!$C$22+'BP Financier'!$D$22+'BP Financier'!$E$22))*$V4105*Z4105/(1-$W4105)","v":{"v":146711.30583255694,"d":"146,711"}},{"$f":"'BP Financier'!$E$44*(('BP Financier'!$C$16+'BP Financier'!$D$16+'BP Financier'!$E$16)/('BP Financier'!$C$16+'BP Financier'!$C$19+'BP Financier'!$D$16+'BP Financier'!$D$19+'BP Financier'!$E$16+'BP Financier'!$E$19+'BP Financier'!$C$22+'BP Financier'!$D$22+'BP Financier'!$E$22))*$V4105*AA4105/(1-$W4105)","v":{"v":18125.89522957673,"d":"18,126"}},{"$f":"'BP Financier'!$E$44*(('BP Financier'!$C$16+'BP Financier'!$D$16+'BP Financier'!$E$16)/('BP Financier'!$C$16+'BP Financier'!$C$19+'BP Financier'!$D$16+'BP Financier'!$D$19+'BP Financier'!$E$16+'BP Financier'!$E$19+'BP Financier'!$C$22+'BP Financier'!$D$22+'BP Financier'!$E$22))*$V4105*AB4105/(1-$W4105)","v":{"v":8675.642161164928,"d":"8,676"}},null,{"v":1.6666666666666668E-3,"d":"0.17%"},{"$f":"Actif!$E$28/100","v":{"v":0.28900000000000003,"d":"28.90%"}},{"$f":"Actif!$E$30/100","v":{"v":0.09050000000000001,"d":"9.05%"}},{"$f":"Actif!$E$31/100","v":{"v":0.0605,"d":"6.05%"}},{"$f":"Actif!$E$32/100","v":{"v":0.47350000000000003,"d":"47.35%"}},{"$f":"Actif!$E$33/100","v":{"v":0.0585,"d":"5.85%"}},{"$f":"Actif!$E$29/100","v":{"v":0.027999999999999997,"d":"2.80%"}}]
[null,"#5",19,2028,"H","A_VIE",{"v":0.44999999999999996,"d":"0.45"},{"v":0.38999999999999996,"d":"0.39"},0.6,0.6,85,0,{"$f":"ROUND(Primes!$O$4*V4106,0)","v":11},{"$f":"'BP Financier'!$E$33*(('BP Financier'!$C$16+'BP Financier'!$D$16+'BP Financier'!$E$16)/('BP Financier'!$C$16+'BP Financier'!$C$19+'BP Financier'!$D$16+'BP Financier'!$D$19+'BP Financier'!$E$16+'BP Financier'!$E$19))*V4106","v":{"v":392797.7810805569,"d":"392,798"}},{"v":220299.34202100948,"d":"220,299"},{"$f":"'BP Financier'!$E$44*(('BP Financier'!$C$16+'BP Financier'!$D$16+'BP Financier'!$E$16)/('BP Financier'!$C$16+'BP Financier'!$C$19+'BP Financier'!$D$16+'BP Financier'!$D$19+'BP Financier'!$E$16+'BP Financier'!$E$19+'BP Financier'!$C$22+'BP Financier'!$D$22+'BP Financier'!$E$22))*$V4106*X4106/(1-$W4106)","v":{"v":28040.91484233665,"d":"28,041"}},{"$f":"'BP Financier'!$E$44*(('BP Financier'!$C$16+'BP Financier'!$D$16+'BP Financier'!$E$16)/('BP Financier'!$C$16+'BP Financier'!$C$19+'BP Financier'!$D$16+'BP Financier'!$D$19+'BP Financier'!$E$16+'BP Financier'!$E$19+'BP Financier'!$C$22+'BP Financier'!$D$22+'BP Financier'!$E$22))*$V4106*Y4106/(1-$W4106)","v":{"v":18745.583955374223,"d":"18,746"}},{"$f":"'BP Financier'!$E$44*(('BP Financier'!$C$16+'BP Financier'!$D$16+'BP Financier'!$E$16)/('BP Financier'!$C$16+'BP Financier'!$C$19+'BP Financier'!$D$16+'BP Financier'!$D$19+'BP Financier'!$E$16+'BP Financier'!$E$19+'BP Financier'!$C$22+'BP Financier'!$D$22+'BP Financier'!$E$22))*$V4106*Z4106/(1-$W4106)","v":{"v":146711.30583255694,"d":"146,711"}},{"$f":"'BP Financier'!$E$44*(('BP Financier'!$C$16+'BP Financier'!$D$16+'BP Financier'!$E$16)/('BP Financier'!$C$16+'BP Financier'!$C$19+'BP Financier'!$D$16+'BP Financier'!$D$19+'BP Financier'!$E$16+'BP Financier'!$E$19+'BP Financier'!$C$22+'BP Financier'!$D$22+'BP Financier'!$E$22))*$V4106*AA4106/(1-$W4106)","v":{"v":18125.89522957673,"d":"18,126"}},{"$f":"'BP Financier'!$E$44*(('BP Financier'!$C$16+'BP Financier'!$D$16+'BP Financier'!$E$16)/('BP Financier'!$C$16+'BP Financier'!$C$19+'BP Financier'!$D$16+'BP Financier'!$D$19+'BP Financier'!$E$16+'BP Financier'!$E$19+'BP Financier'!$C$22+'BP Financier'!$D$22+'BP Financier'!$E$22))*$V4106*AB4106/(1-$W4106)","v":{"v":8675.642161164928,"d":"8,676"}},null,{"v":1.6666666666666668E-3,"d":"0.17%"},{"$f":"Actif!$E$28/100","v":{"v":0.28900000000000003,"d":"28.90%"}},{"$f":"Actif!$E$30/100","v":{"v":0.09050000000000001,"d":"9.05%"}},{"$f":"Actif!$E$31/100","v":{"v":0.0605,"d":"6.05%"}},{"$f":"Actif!$E$32/100","v":{"v":0.47350000000000003,"d":"47.35%"}},{"$f":"Actif!$E$33/100","v":{"v":0.0585,"d":"5.85%"}},{"$f":"Actif!$E$29/100","v":{"v":0.027999999999999997,"d":"2.80%"}}]
[null,"#6",19,2029,"H","A_VIE",{"v":0.44999999999999996,"d":"0.45"},{"v":0.38999999999999996,"d":"0.39"},0.6,0.6,85,0,{"$f":"ROUND(Primes!$O$4*V4107,0)","v":11},{"$f":"'BP Financier'!$E$33*(('BP Financier'!$C$16+'BP Financier'!$D$16+'BP Financier'!$E$16)/('BP Financier'!$C$16+'BP Financier'!$C$19+'BP Financier'!$D$16+'BP Financier'!$D$19+'BP Financier'!$E$16+'BP Financier'!$E$19))*V4107","v":{"v":392797.7810805569,"d":"392,798"}},{"v":220299.34202100948,"d":"220,299"},{"$f":"'BP Financier'!$E$44*(('BP Financier'!$C$16+'BP Financier'!$D$16+'BP Financier'!$E$16)/('BP Financier'!$C$16+'BP Financier'!$C$19+'BP Financier'!$D$16+'BP Financier'!$D$19+'BP Financier'!$E$16+'BP Financier'!$E$19+'BP Financier'!$C$22+'BP Financier'!$D$22+'BP Financier'!$E$22))*$V4107*X4107/(1-$W4107)","v":{"v":28040.91484233665,"d":"28,041"}},{"$f":"'BP Financier'!$E$44*(('BP Financier'!$C$16+'BP Financier'!$D$16+'BP Financier'!$E$16)/('BP Financier'!$C$16+'BP Financier'!$C$19+'BP Financier'!$D$16+'BP Financier'!$D$19+'BP Financier'!$E$16+'BP Financier'!$E$19+'BP Financier'!$C$22+'BP Financier'!$D$22+'BP Financier'!$E$22))*$V4107*Y4107/(1-$W4107)","v":{"v":18745.583955374223,"d":"18,746"}},{"$f":"'BP Financier'!$E$44*(('BP Financier'!$C$16+'BP Financier'!$D$16+'BP Financier'!$E$16)/('BP Financier'!$C$16+'BP Financier'!$C$19+'BP Financier'!$D$16+'BP Financier'!$D$19+'BP Financier'!$E$16+'BP Financier'!$E$19+'BP Financier'!$C$22+'BP Financier'!$D$22+'BP Financier'!$E$22))*$V4107*Z4107/(1-$W4107)","v":{"v":146711.30583255694,"d":"146,711"}},{"$f":"'BP Financier'!$E$44*(('BP Financier'!$C$16+'BP Financier'!$D$16+'BP Financier'!$E$16)/('BP Financier'!$C$16+'BP Financier'!$C$19+'BP Financier'!$D$16+'BP Financier'!$D$19+'BP Financier'!$E$16+'BP Financier'!$E$19+'BP Financier'!$C$22+'BP Financier'!$D$22+'BP Financier'!$E$22))*$V4107*AA4107/(1-$W4107)","v":{"v":18125.89522957673,"d":"18,126"}},{"$f":"'BP Financier'!$E$44*(('BP Financier'!$C$16+'BP Financier'!$D$16+'BP Financier'!$E$16)/('BP Financier'!$C$16+'BP Financier'!$C$19+'BP Financier'!$D$16+'BP Financier'!$D$19+'BP Financier'!$E$16+'BP Financier'!$E$19+'BP Financier'!$C$22+'BP Financier'!$D$22+'BP Financier'!$E$22))*$V4107*AB4107/(1-$W4107)","v":{"v":8675.642161164928,"d":"8,676"}},null,{"v":1.6666666666666668E-3,"d":"0.17%"},{"$f":"Actif!$E$28/100","v":{"v":0.28900000000000003,"d":"28.90%"}},{"$f":"Actif!$E$30/100","v":{"v":0.09050000000000001,"d":"9.05%"}},{"$f":"Actif!$E$31/100","v":{"v":0.0605,"d":"6.05%"}},{"$f":"Actif!$E$32/100","v":{"v":0.47350000000000003,"d":"47.35%"}},{"$f":"Actif!$E$33/100","v":{"v":0.0585,"d":"5.85%"}},{"$f":"Actif!$E$29/100","v":{"v":0.027999999999999997,"d":"2.80%"}}]
[null,"#7",20,2026,"F","A_VIE",{"v":0.44999999999999996,"d":"0.45"},{"v":0.38999999999999996,"d":"0.39"},0.6,0.6,85,0,{"$f":"ROUND(Primes!$O$4*V4108,0)","v":23},{"$f":"'BP Financier'!$E$33*(('BP Financier'!$C$16+'BP Financier'!$D$16+'BP Financier'!$E$16)/('BP Financier'!$C$16+'BP Financier'!$C$19+'BP Financier'!$D$16+'BP Financier'!$D$19+'BP Financier'!$E$16+'BP Financier'!$E$19))*V4108","v":{"v":785595.5621611138,"d":"785,596"}},{"v":440598.68404201895,"d":"440,599"},{"$f":"'BP Financier'!$E$44*(('BP Financier'!$C$16+'BP Financier'!$D$16+'BP Financier'!$E$16)/('BP Financier'!$C$16+'BP Financier'!$C$19+'BP Financier'!$D$16+'BP Financier'!$D$19+'BP Financier'!$E$16+'BP Financier'!$E$19+'BP Financier'!$C$22+'BP Financier'!$D$22+'BP Financier'!$E$22))*$V4108*X4108/(1-$W4108)","v":{"v":56081.8296846733,"d":"56,082"}},{"$f":"'BP Financier'!$E$44*(('BP Financier'!$C$16+'BP Financier'!$D$16+'BP Financier'!$E$16)/('BP Financier'!$C$16+'BP Financier'!$C$19+'BP Financier'!$D$16+'BP Financier'!$D$19+'BP Financier'!$E$16+'BP Financier'!$E$19+'BP Financier'!$C$22+'BP Financier'!$D$22+'BP Financier'!$E$22))*$V4108*Y4108/(1-$W4108)","v":{"v":37491.167910748445,"d":"37,491"}},{"$f":"'BP Financier'!$E$44*(('BP Financier'!$C$16+'BP Financier'!$D$16+'BP Financier'!$E$16)/('BP Financier'!$C$16+'BP Financier'!$C$19+'BP Financier'!$D$16+'BP Financier'!$D$19+'BP Financier'!$E$16+'BP Financier'!$E$19+'BP Financier'!$C$22+'BP Financier'!$D$22+'BP Financier'!$E$22))*$V4108*Z4108/(1-$W4108)","v":{"v":293422.6116651139,"d":"293,423"}},{"$f":"'BP Financier'!$E$44*(('BP Financier'!$C$16+'BP Financier'!$D$16+'BP Financier'!$E$16)/('BP Financier'!$C$16+'BP Financier'!$C$19+'BP Financier'!$D$16+'BP Financier'!$D$19+'BP Financier'!$E$16+'BP Financier'!$E$19+'BP Financier'!$C$22+'BP Financier'!$D$22+'BP Financier'!$E$22))*$V4108*AA4108/(1-$W4108)","v":{"v":36251.79045915346,"d":"36,252"}},{"$f":"'BP Financier'!$E$44*(('BP Financier'!$C$16+'BP Financier'!$D$16+'BP Financier'!$E$16)/('BP Financier'!$C$16+'BP Financier'!$C$19+'BP Financier'!$D$16+'BP Financier'!$D$19+'BP Financier'!$E$16+'BP Financier'!$E$19+'BP Financier'!$C$22+'BP Financier'!$D$22+'BP Financier'!$E$22))*$V4108*AB4108/(1-$W4108)","v":{"v":17351.284322329855,"d":"17,351"}},null,{"v":3.3333333333333335E-3,"d":"0.33%"},{"$f":"Actif!$E$28/100","v":{"v":0.28900000000000003,"d":"28.90%"}},{"$f":"Actif!$E$30/100","v":{"v":0.09050000000000001,"d":"9.05%"}},{"$f":"Actif!$E$31/100","v":{"v":0.0605,"d":"6.05%"}},{"$f":"Actif!$E$32/100","v":{"v":0.47350000000000003,"d":"47.35%"}},{"$f":"Actif!$E$33/100","v":{"v":0.0585,"d":"5.85%"}},{"$f":"Actif!$E$29/100","v":{"v":0.027999999999999997,"d":"2.80%"}}]
[null,"#8",20,2028,"F","A_VIE",{"v":0.44999999999999996,"d":"0.45"},{"v":0.38999999999999996,"d":"0.39"},0.6,0.6,85,0,{"$f":"ROUND(Primes!$O$4*V4109,0)","v":23},{"$f":"'BP Financier'!$E$33*(('BP Financier'!$C$16+'BP Financier'!$D$16+'BP Financier'!$E$16)/('BP Financier'!$C$16+'BP Financier'!$C$19+'BP Financier'!$D$16+'BP Financier'!$D$19+'BP Financier'!$E$16+'BP Financier'!$E$19))*V4109","v":{"v":785595.5621611138,"d":"785,596"}},{"v":440598.68404201895,"d":"440,599"},{"$f":"'BP Financier'!$E$44*(('BP Financier'!$C$16+'BP Financier'!$D$16+'BP Financier'!$E$16)/('BP Financier'!$C$16+'BP Financier'!$C$19+'BP Financier'!$D$16+'BP Financier'!$D$19+'BP Financier'!$E$16+'BP Financier'!$E$19+'BP Financier'!$C$22+'BP Financier'!$D$22+'BP Financier'!$E$22))*$V4109*X4109/(1-$W4109)","v":{"v":56081.8296846733,"d":"56,082"}},{"$f":"'BP Financier'!$E$44*(('BP Financier'!$C$16+'BP Financier'!$D$16+'BP Financier'!$E$16)/('BP Financier'!$C$16+'BP Financier'!$C$19+'BP Financier'!$D$16+'BP Financier'!$D$19+'BP Financier'!$E$16+'BP Financier'!$E$19+'BP Financier'!$C$22+'BP Financier'!$D$22+'BP Financier'!$E$22))*$V4109*Y4109/(1-$W4109)","v":{"v":37491.167910748445,"d":"37,491"}},{"$f":"'BP Financier'!$E$44*(('BP Financier'!$C$16+'BP Financier'!$D$16+'BP Financier'!$E$16)/('BP Financier'!$C$16+'BP Financier'!$C$19+'BP Financier'!$D$16+'BP Financier'!$D$19+'BP Financier'!$E$16+'BP Financier'!$E$19+'BP Financier'!$C$22+'BP Financier'!$D$22+'BP Financier'!$E$22))*$V4109*Z4109/(1-$W4109)","v":{"v":293422.6116651139,"d":"293,423"}},{"$f":"'BP Financier'!$E$44*(('BP Financier'!$C$16+'BP Financier'!$D$16+'BP Financier'!$E$16)/('BP Financier'!$C$16+'BP Financier'!$C$19+'BP Financier'!$D$16+'BP Financier'!$D$19+'BP Financier'!$E$16+'BP Financier'!$E$19+'BP Financier'!$C$22+'BP Financier'!$D$22+'BP Financier'!$E$22))*$V4109*AA4109/(1-$W4109)","v":{"v":36251.79045915346,"d":"36,252"}},{"$f":"'BP Financier'!$E$44*(('BP Financier'!$C$16+'BP Financier'!$D$16+'BP Financier'!$E$16)/('BP Financier'!$C$16+'BP Financier'!$C$19+'BP Financier'!$D$16+'BP Financier'!$D$19+'BP Financier'!$E$16+'BP Financier'!$E$19+'BP Financier'!$C$22+'BP Financier'!$D$22+'BP Financier'!$E$22))*$V4109*AB4109/(1-$W4109)","v":{"v":17351.284322329855,"d":"17,351"}},null,{"v":3.3333333333333335E-3,"d":"0.33%"},{"$f":"Actif!$E$28/100","v":{"v":0.28900000000000003,"d":"28.90%"}},{"$f":"Actif!$E$30/100","v":{"v":0.09050000000000001,"d":"9.05%"}},{"$f":"Actif!$E$31/100","v":{"v":0.0605,"d":"6.05%"}},{"$f":"Actif!$E$32/100","v":{"v":0.47350000000000003,"d":"47.35%"}},{"$f":"Actif!$E$33/100","v":{"v":0.0585,"d":"5.85%"}},{"$f":"Actif!$E$29/100","v":{"v":0.027999999999999997,"d":"2.80%"}}]
[null,"#9",20,2029,"F","A_VIE",{"v":0.44999999999999996,"d":"0.45"},{"v":0.38999999999999996,"d":"0.39"},0.6,0.6,85,0,{"$f":"ROUND(Primes!$O$4*V4110,0)","v":23},{"$f":"'BP Financier'!$E$33*(('BP Financier'!$C$16+'BP Financier'!$D$16+'BP Financier'!$E$16)/('BP Financier'!$C$16+'BP Financier'!$C$19+'BP Financier'!$D$16+'BP Financier'!$D$19+'BP Financier'!$E$16+'BP Financier'!$E$19))*V4110","v":{"v":785595.5621611138,"d":"785,596"}},{"v":440598.68404201895,"d":"440,599"},{"$f":"'BP Financier'!$E$44*(('BP Financier'!$C$16+'BP Financier'!$D$16+'BP Financier'!$E$16)/('BP Financier'!$C$16+'BP Financier'!$C$19+'BP Financier'!$D$16+'BP Financier'!$D$19+'BP Financier'!$E$16+'BP Financier'!$E$19+'BP Financier'!$C$22+'BP Financier'!$D$22+'BP Financier'!$E$22))*$V4110*X4110/(1-$W4110)","v":{"v":56081.8296846733,"d":"56,082"}},{"$f":"'BP Financier'!$E$44*(('BP Financier'!$C$16+'BP Financier'!$D$16+'BP Financier'!$E$16)/('BP Financier'!$C$16+'BP Financier'!$C$19+'BP Financier'!$D$16+'BP Financier'!$D$19+'BP Financier'!$E$16+'BP Financier'!$E$19+'BP Financier'!$C$22+'BP Financier'!$D$22+'BP Financier'!$E$22))*$V4110*Y4110/(1-$W4110)","v":{"v":37491.167910748445,"d":"37,491"}},{"$f":"'BP Financier'!$E$44*(('BP Financier'!$C$16+'BP Financier'!$D$16+'BP Financier'!$E$16)/('BP Financier'!$C$16+'BP Financier'!$C$19+'BP Financier'!$D$16+'BP Financier'!$D$19+'BP Financier'!$E$16+'BP Financier'!$E$19+'BP Financier'!$C$22+'BP Financier'!$D$22+'BP Financier'!$E$22))*$V4110*Z4110/(1-$W4110)","v":{"v":293422.6116651139,"d":"293,423"}},{"$f":"'BP Financier'!$E$44*(('BP Financier'!$C$16+'BP Financier'!$D$16+'BP Financier'!$E$16)/('BP Financier'!$C$16+'BP Financier'!$C$19+'BP Financier'!$D$16+'BP Financier'!$D$19+'BP Financier'!$E$16+'BP Financier'!$E$19+'BP Financier'!$C$22+'BP Financier'!$D$22+'BP Financier'!$E$22))*$V4110*AA4110/(1-$W4110)","v":{"v":36251.79045915346,"d":"36,252"}},{"$f":"'BP Financier'!$E$44*(('BP Financier'!$C$16+'BP Financier'!$D$16+'BP Financier'!$E$16)/('BP Financier'!$C$16+'BP Financier'!$C$19+'BP Financier'!$D$16+'BP Financier'!$D$19+'BP Financier'!$E$16+'BP Financier'!$E$19+'BP Financier'!$C$22+'BP Financier'!$D$22+'BP Financier'!$E$22))*$V4110*AB4110/(1-$W4110)","v":{"v":17351.284322329855,"d":"17,351"}},null,{"v":3.3333333333333335E-3,"d":"0.33%"},{"$f":"Actif!$E$28/100","v":{"v":0.28900000000000003,"d":"28.90%"}},{"$f":"Actif!$E$30/100","v":{"v":0.09050000000000001,"d":"9.05%"}},{"$f":"Actif!$E$31/100","v":{"v":0.0605,"d":"6.05%"}},{"$f":"Actif!$E$32/100","v":{"v":0.47350000000000003,"d":"47.35%"}},{"$f":"Actif!$E$33/100","v":{"v":0.0585,"d":"5.85%"}},{"$f":"Actif!$E$29/100","v":{"v":0.027999999999999997,"d":"2.80%"}}]
[null,"#10",21,2026,"H","A_VIE",{"v":0.44999999999999996,"d":"0.45"},{"v":0.38999999999999996,"d":"0.39"},0.6,0.6,85,0,{"$f":"ROUND(Primes!$O$4*V4111,0)","v":23},{"$f":"'BP Financier'!$E$33*(('BP Financier'!$C$16+'BP Financier'!$D$16+'BP Financier'!$E$16)/('BP Financier'!$C$16+'BP Financier'!$C$19+'BP Financier'!$D$16+'BP Financier'!$D$19+'BP Financier'!$E$16+'BP Financier'!$E$19))*V4111","v":{"v":785595.5621611138,"d":"785,596"}},{"v":440598.68404201895,"d":"440,599"},{"$f":"'BP Financier'!$E$44*(('BP Financier'!$C$16+'BP Financier'!$D$16+'BP Financier'!$E$16)/('BP Financier'!$C$16+'BP Financier'!$C$19+'BP Financier'!$D$16+'BP Financier'!$D$19+'BP Financier'!$E$16+'BP Financier'!$E$19+'BP Financier'!$C$22+'BP Financier'!$D$22+'BP Financier'!$E$22))*$V4111*X4111/(1-$W4111)","v":{"v":56081.8296846733,"d":"56,082"}},{"$f":"'BP Financier'!$E$44*(('BP Financier'!$C$16+'BP Financier'!$D$16+'BP Financier'!$E$16)/('BP Financier'!$C$16+'BP Financier'!$C$19+'BP Financier'!$D$16+'BP Financier'!$D$19+'BP Financier'!$E$16+'BP Financier'!$E$19+'BP Financier'!$C$22+'BP Financier'!$D$22+'BP Financier'!$E$22))*$V4111*Y4111/(1-$W4111)","v":{"v":37491.167910748445,"d":"37,491"}},{"$f":"'BP Financier'!$E$44*(('BP Financier'!$C$16+'BP Financier'!$D$16+'BP Financier'!$E$16)/('BP Financier'!$C$16+'BP Financier'!$C$19+'BP Financier'!$D$16+'BP Financier'!$D$19+'BP Financier'!$E$16+'BP Financier'!$E$19+'BP Financier'!$C$22+'BP Financier'!$D$22+'BP Financier'!$E$22))*$V4111*Z4111/(1-$W4111)","v":{"v":293422.6116651139,"d":"293,423"}},{"$f":"'BP Financier'!$E$44*(('BP Financier'!$C$16+'BP Financier'!$D$16+'BP Financier'!$E$16)/('BP Financier'!$C$16+'BP Financier'!$C$19+'BP Financier'!$D$16+'BP Financier'!$D$19+'BP Financier'!$E$16+'BP Financier'!$E$19+'BP Financier'!$C$22+'BP Financier'!$D$22+'BP Financier'!$E$22))*$V4111*AA4111/(1-$W4111)","v":{"v":36251.79045915346,"d":"36,252"}},{"$f":"'BP Financier'!$E$44*(('BP Financier'!$C$16+'BP Financier'!$D$16+'BP Financier'!$E$16)/('BP Financier'!$C$16+'BP Financier'!$C$19+'BP Financier'!$D$16+'BP Financier'!$D$19+'BP Financier'!$E$16+'BP Financier'!$E$19+'BP Financier'!$C$22+'BP Financier'!$D$22+'BP Financier'!$E$22))*$V4111*AB4111/(1-$W4111)","v":{"v":17351.284322329855,"d":"17,351"}},null,{"v":3.3333333333333335E-3,"d":"0.33%"},{"$f":"Actif!$E$28/100","v":{"v":0.28900000000000003,"d":"28.90%"}},{"$f":"Actif!$E$30/100","v":{"v":0.09050000000000001,"d":"9.05%"}},{"$f":"Actif!$E$31/100","v":{"v":0.0605,"d":"6.05%"}},{"$f":"Actif!$E$32/100","v":{"v":0.47350000000000003,"d":"47.35%"}},{"$f":"Actif!$E$33/100","v":{"v":0.0585,"d":"5.85%"}},{"$f":"Actif!$E$29/100","v":{"v":0.027999999999999997,"d":"2.80%"}}]
[null,"#11",21,2028,"H","A_VIE",{"v":0.44999999999999996,"d":"0.45"},{"v":0.38999999999999996,"d":"0.39"},0.6,0.6,85,0,{"$f":"ROUND(Primes!$O$4*V4112,0)","v":23},{"$f":"'BP Financier'!$E$33*(('BP Financier'!$C$16+'BP Financier'!$D$16+'BP Financier'!$E$16)/('BP Financier'!$C$16+'BP Financier'!$C$19+'BP Financier'!$D$16+'BP Financier'!$D$19+'BP Financier'!$E$16+'BP Financier'!$E$19))*V4112","v":{"v":785595.5621611138,"d":"785,596"}},{"v":440598.68404201895,"d":"440,599"},{"$f":"'BP Financier'!$E$44*(('BP Financier'!$C$16+'BP Financier'!$D$16+'BP Financier'!$E$16)/('BP Financier'!$C$16+'BP Financier'!$C$19+'BP Financier'!$D$16+'BP Financier'!$D$19+'BP Financier'!$E$16+'BP Financier'!$E$19+'BP Financier'!$C$22+'BP Financier'!$D$22+'BP Financier'!$E$22))*$V4112*X4112/(1-$W4112)","v":{"v":56081.8296846733,"d":"56,082"}},{"$f":"'BP Financier'!$E$44*(('BP Financier'!$C$16+'BP Financier'!$D$16+'BP Financier'!$E$16)/('BP Financier'!$C$16+'BP Financier'!$C$19+'BP Financier'!$D$16+'BP Financier'!$D$19+'BP Financier'!$E$16+'BP Financier'!$E$19+'BP Financier'!$C$22+'BP Financier'!$D$22+'BP Financier'!$E$22))*$V4112*Y4112/(1-$W4112)","v":{"v":37491.167910748445,"d":"37,491"}},{"$f":"'BP Financier'!$E$44*(('BP Financier'!$C$16+'BP Financier'!$D$16+'BP Financier'!$E$16)/('BP Financier'!$C$16+'BP Financier'!$C$19+'BP Financier'!$D$16+'BP Financier'!$D$19+'BP Financier'!$E$16+'BP Financier'!$E$19+'BP Financier'!$C$22+'BP Financier'!$D$22+'BP Financier'!$E$22))*$V4112*Z4112/(1-$W4112)","v":{"v":293422.6116651139,"d":"293,423"}},{"$f":"'BP Financier'!$E$44*(('BP Financier'!$C$16+'BP Financier'!$D$16+'BP Financier'!$E$16)/('BP Financier'!$C$16+'BP Financier'!$C$19+'BP Financier'!$D$16+'BP Financier'!$D$19+'BP Financier'!$E$16+'BP Financier'!$E$19+'BP Financier'!$C$22+'BP Financier'!$D$22+'BP Financier'!$E$22))*$V4112*AA4112/(1-$W4112)","v":{"v":36251.79045915346,"d":"36,252"}},{"$f":"'BP Financier'!$E$44*(('BP Financier'!$C$16+'BP Financier'!$D$16+'BP Financier'!$E$16)/('BP Financier'!$C$16+'BP Financier'!$C$19+'BP Financier'!$D$16+'BP Financier'!$D$19+'BP Financier'!$E$16+'BP Financier'!$E$19+'BP Financier'!$C$22+'BP Financier'!$D$22+'BP Financier'!$E$22))*$V4112*AB4112/(1-$W4112)","v":{"v":17351.284322329855,"d":"17,351"}},null,{"v":3.3333333333333335E-3,"d":"0.33%"},{"$f":"Actif!$E$28/100","v":{"v":0.28900000000000003,"d":"28.90%"}},{"$f":"Actif!$E$30/100","v":{"v":0.09050000000000001,"d":"9.05%"}},{"$f":"Actif!$E$31/100","v":{"v":0.0605,"d":"6.05%"}},{"$f":"Actif!$E$32/100","v":{"v":0.47350000000000003,"d":"47.35%"}},{"$f":"Actif!$E$33/100","v":{"v":0.0585,"d":"5.85%"}},{"$f":"Actif!$E$29/100","v":{"v":0.027999999999999997,"d":"2.80%"}}]
[null,"#12",21,2029,"H","A_VIE",{"v":0.44999999999999996,"d":"0.45"},{"v":0.38999999999999996,"d":"0.39"},0.6,0.6,85,0,{"$f":"ROUND(Primes!$O$4*V4113,0)","v":23},{"$f":"'BP Financier'!$E$33*(('BP Financier'!$C$16+'BP Financier'!$D$16+'BP Financier'!$E$16)/('BP Financier'!$C$16+'BP Financier'!$C$19+'BP Financier'!$D$16+'BP Financier'!$D$19+'BP Financier'!$E$16+'BP Financier'!$E$19))*V4113","v":{"v":785595.5621611138,"d":"785,596"}},{"v":440598.68404201895,"d":"440,599"},{"$f":"'BP Financier'!$E$44*(('BP Financier'!$C$16+'BP Financier'!$D$16+'BP Financier'!$E$16)/('BP Financier'!$C$16+'BP Financier'!$C$19+'BP Financier'!$D$16+'BP Financier'!$D$19+'BP Financier'!$E$16+'BP Financier'!$E$19+'BP Financier'!$C$22+'BP Financier'!$D$22+'BP Financier'!$E$22))*$V4113*X4113/(1-$W4113)","v":{"v":56081.8296846733,"d":"56,082"}},{"$f":"'BP Financier'!$E$44*(('BP Financier'!$C$16+'BP Financier'!$D$16+'BP Financier'!$E$16)/('BP Financier'!$C$16+'BP Financier'!$C$19+'BP Financier'!$D$16+'BP Financier'!$D$19+'BP Financier'!$E$16+'BP Financier'!$E$19+'BP Financier'!$C$22+'BP Financier'!$D$22+'BP Financier'!$E$22))*$V4113*Y4113/(1-$W4113)","v":{"v":37491.167910748445,"d":"37,491"}},{"$f":"'BP Financier'!$E$44*(('BP Financier'!$C$16+'BP Financier'!$D$16+'BP Financier'!$E$16)/('BP Financier'!$C$16+'BP Financier'!$C$19+'BP Financier'!$D$16+'BP Financier'!$D$19+'BP Financier'!$E$16+'BP Financier'!$E$19+'BP Financier'!$C$22+'BP Financier'!$D$22+'BP Financier'!$E$22))*$V4113*Z4113/(1-$W4113)","v":{"v":293422.6116651139,"d":"293,423"}},{"$f":"'BP Financier'!$E$44*(('BP Financier'!$C$16+'BP Financier'!$D$16+'BP Financier'!$E$16)/('BP Financier'!$C$16+'BP Financier'!$C$19+'BP Financier'!$D$16+'BP Financier'!$D$19+'BP Financier'!$E$16+'BP Financier'!$E$19+'BP Financier'!$C$22+'BP Financier'!$D$22+'BP Financier'!$E$22))*$V4113*AA4113/(1-$W4113)","v":{"v":36251.79045915346,"d":"36,252"}},{"$f":"'BP Financier'!$E$44*(('BP Financier'!$C$16+'BP Financier'!$D$16+'BP Financier'!$E$16)/('BP Financier'!$C$16+'BP Financier'!$C$19+'BP Financier'!$D$16+'BP Financier'!$D$19+'BP Financier'!$E$16+'BP Financier'!$E$19+'BP Financier'!$C$22+'BP Financier'!$D$22+'BP Financier'!$E$22))*$V4113*AB4113/(1-$W4113)","v":{"v":17351.284322329855,"d":"17,351"}},null,{"v":3.3333333333333335E-3,"d":"0.33%"},{"$f":"Actif!$E$28/100","v":{"v":0.28900000000000003,"d":"28.90%"}},{"$f":"Actif!$E$30/100","v":{"v":0.09050000000000001,"d":"9.05%"}},{"$f":"Actif!$E$31/100","v":{"v":0.0605,"d":"6.05%"}},{"$f":"Actif!$E$32/100","v":{"v":0.47350000000000003,"d":"47.35%"}},{"$f":"Actif!$E$33/100","v":{"v":0.0585,"d":"5.85%"}},{"$f":"Actif!$E$29/100","v":{"v":0.027999999999999997,"d":"2.80%"}}]
[null,"#13",22,2026,"H","A_VIE",{"v":0.44999999999999996,"d":"0.45"},{"v":0.38999999999999996,"d":"0.39"},0.6,0.6,85,0,{"$f":"ROUND(Primes!$O$4*V4114,0)","v":23},{"$f":"'BP Financier'!$E$33*(('BP Financier'!$C$16+'BP Financier'!$D$16+'BP Financier'!$E$16)/('BP Financier'!$C$16+'BP Financier'!$C$19+'BP Financier'!$D$16+'BP Financier'!$D$19+'BP Financier'!$E$16+'BP Financier'!$E$19))*V4114","v":{"v":785595.5621611138,"d":"785,596"}},{"v":440598.68404201895,"d":"440,599"},{"$f":"'BP Financier'!$E$44*(('BP Financier'!$C$16+'BP Financier'!$D$16+'BP Financier'!$E$16)/('BP Financier'!$C$16+'BP Financier'!$C$19+'BP Financier'!$D$16+'BP Financier'!$D$19+'BP Financier'!$E$16+'BP Financier'!$E$19+'BP Financier'!$C$22+'BP Financier'!$D$22+'BP Financier'!$E$22))*$V4114*X4114/(1-$W4114)","v":{"v":56081.8296846733,"d":"56,082"}},{"$f":"'BP Financier'!$E$44*(('BP Financier'!$C$16+'BP Financier'!$D$16+'BP Financier'!$E$16)/('BP Financier'!$C$16+'BP Financier'!$C$19+'BP Financier'!$D$16+'BP Financier'!$D$19+'BP Financier'!$E$16+'BP Financier'!$E$19+'BP Financier'!$C$22+'BP Financier'!$D$22+'BP Financier'!$E$22))*$V4114*Y4114/(1-$W4114)","v":{"v":37491.167910748445,"d":"37,491"}},{"$f":"'BP Financier'!$E$44*(('BP Financier'!$C$16+'BP Financier'!$D$16+'BP Financier'!$E$16)/('BP Financier'!$C$16+'BP Financier'!$C$19+'BP Financier'!$D$16+'BP Financier'!$D$19+'BP Financier'!$E$16+'BP Financier'!$E$19+'BP Financier'!$C$22+'BP Financier'!$D$22+'BP Financier'!$E$22))*$V4114*Z4114/(1-$W4114)","v":{"v":293422.6116651139,"d":"293,423"}},{"$f":"'BP Financier'!$E$44*(('BP Financier'!$C$16+'BP Financier'!$D$16+'BP Financier'!$E$16)/('BP Financier'!$C$16+'BP Financier'!$C$19+'BP Financier'!$D$16+'BP Financier'!$D$19+'BP Financier'!$E$16+'BP Financier'!$E$19+'BP Financier'!$C$22+'BP Financier'!$D$22+'BP Financier'!$E$22))*$V4114*AA4114/(1-$W4114)","v":{"v":36251.79045915346,"d":"36,252"}},{"$f":"'BP Financier'!$E$44*(('BP Financier'!$C$16+'BP Financier'!$D$16+'BP Financier'!$E$16)/('BP Financier'!$C$16+'BP Financier'!$C$19+'BP Financier'!$D$16+'BP Financier'!$D$19+'BP Financier'!$E$16+'BP Financier'!$E$19+'BP Financier'!$C$22+'BP Financier'!$D$22+'BP Financier'!$E$22))*$V4114*AB4114/(1-$W4114)","v":{"v":17351.284322329855,"d":"17,351"}},null,{"v":3.3333333333333335E-3,"d":"0.33%"},{"$f":"Actif!$E$28/100","v":{"v":0.28900000000000003,"d":"28.90%"}},{"$f":"Actif!$E$30/100","v":{"v":0.09050000000000001,"d":"9.05%"}},{"$f":"Actif!$E$31/100","v":{"v":0.0605,"d":"6.05%"}},{"$f":"Actif!$E$32/100","v":{"v":0.47350000000000003,"d":"47.35%"}},{"$f":"Actif!$E$33/100","v":{"v":0.0585,"d":"5.85%"}},{"$f":"Actif!$E$29/100","v":{"v":0.027999999999999997,"d":"2.80%"}}]
[null,"#14",22,2028,"H","A_VIE",{"v":0.44999999999999996,"d":"0.45"},{"v":0.38999999999999996,"d":"0.39"},0.6,0.6,85,0,{"$f":"ROUND(Primes!$O$4*V4115,0)","v":23},{"$f":"'BP Financier'!$E$33*(('BP Financier'!$C$16+'BP Financier'!$D$16+'BP Financier'!$E$16)/('BP Financier'!$C$16+'BP Financier'!$C$19+'BP Financier'!$D$16+'BP Financier'!$D$19+'BP Financier'!$E$16+'BP Financier'!$E$19))*V4115","v":{"v":785595.5621611138,"d":"785,596"}},{"v":440598.68404201895,"d":"440,599"},{"$f":"'BP Financier'!$E$44*(('BP Financier'!$C$16+'BP Financier'!$D$16+'BP Financier'!$E$16)/('BP Financier'!$C$16+'BP Financier'!$C$19+'BP Financier'!$D$16+'BP Financier'!$D$19+'BP Financier'!$E$16+'BP Financier'!$E$19+'BP Financier'!$C$22+'BP Financier'!$D$22+'BP Financier'!$E$22))*$V4115*X4115/(1-$W4115)","v":{"v":56081.8296846733,"d":"56,082"}},{"$f":"'BP Financier'!$E$44*(('BP Financier'!$C$16+'BP Financier'!$D$16+'BP Financier'!$E$16)/('BP Financier'!$C$16+'BP Financier'!$C$19+'BP Financier'!$D$16+'BP Financier'!$D$19+'BP Financier'!$E$16+'BP Financier'!$E$19+'BP Financier'!$C$22+'BP Financier'!$D$22+'BP Financier'!$E$22))*$V4115*Y4115/(1-$W4115)","v":{"v":37491.167910748445,"d":"37,491"}},{"$f":"'BP Financier'!$E$44*(('BP Financier'!$C$16+'BP Financier'!$D$16+'BP Financier'!$E$16)/('BP Financier'!$C$16+'BP Financier'!$C$19+'BP Financier'!$D$16+'BP Financier'!$D$19+'BP Financier'!$E$16+'BP Financier'!$E$19+'BP Financier'!$C$22+'BP Financier'!$D$22+'BP Financier'!$E$22))*$V4115*Z4115/(1-$W4115)","v":{"v":293422.6116651139,"d":"293,423"}},{"$f":"'BP Financier'!$E$44*(('BP Financier'!$C$16+'BP Financier'!$D$16+'BP Financier'!$E$16)/('BP Financier'!$C$16+'BP Financier'!$C$19+'BP Financier'!$D$16+'BP Financier'!$D$19+'BP Financier'!$E$16+'BP Financier'!$E$19+'BP Financier'!$C$22+'BP Financier'!$D$22+'BP Financier'!$E$22))*$V4115*AA4115/(1-$W4115)","v":{"v":36251.79045915346,"d":"36,252"}},{"$f":"'BP Financier'!$E$44*(('BP Financier'!$C$16+'BP Financier'!$D$16+'BP Financier'!$E$16)/('BP Financier'!$C$16+'BP Financier'!$C$19+'BP Financier'!$D$16+'BP Financier'!$D$19+'BP Financier'!$E$16+'BP Financier'!$E$19+'BP Financier'!$C$22+'BP Financier'!$D$22+'BP Financier'!$E$22))*$V4115*AB4115/(1-$W4115)","v":{"v":17351.284322329855,"d":"17,351"}},null,{"v":3.3333333333333335E-3,"d":"0.33%"},{"$f":"Actif!$E$28/100","v":{"v":0.28900000000000003,"d":"28.90%"}},{"$f":"Actif!$E$30/100","v":{"v":0.09050000000000001,"d":"9.05%"}},{"$f":"Actif!$E$31/100","v":{"v":0.0605,"d":"6.05%"}},{"$f":"Actif!$E$32/100","v":{"v":0.47350000000000003,"d":"47.35%"}},{"$f":"Actif!$E$33/100","v":{"v":0.0585,"d":"5.85%"}},{"$f":"Actif!$E$29/100","v":{"v":0.027999999999999997,"d":"2.80%"}}]
[null,"#15",22,2029,"H","A_VIE",{"v":0.44999999999999996,"d":"0.45"},{"v":0.38999999999999996,"d":"0.39"},0.6,0.6,85,0,{"$f":"ROUND(Primes!$O$4*V4116,0)","v":23},{"$f":"'BP Financier'!$E$33*(('BP Financier'!$C$16+'BP Financier'!$D$16+'BP Financier'!$E$16)/('BP Financier'!$C$16+'BP Financier'!$C$19+'BP Financier'!$D$16+'BP Financier'!$D$19+'BP Financier'!$E$16+'BP Financier'!$E$19))*V4116","v":{"v":785595.5621611138,"d":"785,596"}},{"v":440598.68404201895,"d":"440,599"},{"$f":"'BP Financier'!$E$44*(('BP Financier'!$C$16+'BP Financier'!$D$16+'BP Financier'!$E$16)/('BP Financier'!$C$16+'BP Financier'!$C$19+'BP Financier'!$D$16+'BP Financier'!$D$19+'BP Financier'!$E$16+'BP Financier'!$E$19+'BP Financier'!$C$22+'BP Financier'!$D$22+'BP Financier'!$E$22))*$V4116*X4116/(1-$W4116)","v":{"v":56081.8296846733,"d":"56,082"}},{"$f":"'BP Financier'!$E$44*(('BP Financier'!$C$16+'BP Financier'!$D$16+'BP Financier'!$E$16)/('BP Financier'!$C$16+'BP Financier'!$C$19+'BP Financier'!$D$16+'BP Financier'!$D$19+'BP Financier'!$E$16+'BP Financier'!$E$19+'BP Financier'!$C$22+'BP Financier'!$D$22+'BP Financier'!$E$22))*$V4116*Y4116/(1-$W4116)","v":{"v":37491.167910748445,"d":"37,491"}},{"$f":"'BP Financier'!$E$44*(('BP Financier'!$C$16+'BP Financier'!$D$16+'BP Financier'!$E$16)/('BP Financier'!$C$16+'BP Financier'!$C$19+'BP Financier'!$D$16+'BP Financier'!$D$19+'BP Financier'!$E$16+'BP Financier'!$E$19+'BP Financier'!$C$22+'BP Financier'!$D$22+'BP Financier'!$E$22))*$V4116*Z4116/(1-$W4116)","v":{"v":293422.6116651139,"d":"293,423"}},{"$f":"'BP Financier'!$E$44*(('BP Financier'!$C$16+'BP Financier'!$D$16+'BP Financier'!$E$16)/('BP Financier'!$C$16+'BP Financier'!$C$19+'BP Financier'!$D$16+'BP Financier'!$D$19+'BP Financier'!$E$16+'BP Financier'!$E$19+'BP Financier'!$C$22+'BP Financier'!$D$22+'BP Financier'!$E$22))*$V4116*AA4116/(1-$W4116)","v":{"v":36251.79045915346,"d":"36,252"}},{"$f":"'BP Financier'!$E$44*(('BP Financier'!$C$16+'BP Financier'!$D$16+'BP Financier'!$E$16)/('BP Financier'!$C$16+'BP Financier'!$C$19+'BP Financier'!$D$16+'BP Financier'!$D$19+'BP Financier'!$E$16+'BP Financier'!$E$19+'BP Financier'!$C$22+'BP Financier'!$D$22+'BP Financier'!$E$22))*$V4116*AB4116/(1-$W4116)","v":{"v":17351.284322329855,"d":"17,351"}},null,{"v":3.3333333333333335E-3,"d":"0.33%"},{"$f":"Actif!$E$28/100","v":{"v":0.28900000000000003,"d":"28.90%"}},{"$f":"Actif!$E$30/100","v":{"v":0.09050000000000001,"d":"9.05%"}},{"$f":"Actif!$E$31/100","v":{"v":0.0605,"d":"6.05%"}},{"$f":"Actif!$E$32/100","v":{"v":0.47350000000000003,"d":"47.35%"}},{"$f":"Actif!$E$33/100","v":{"v":0.0585,"d":"5.85%"}},{"$f":"Actif!$E$29/100","v":{"v":0.027999999999999997,"d":"2.80%"}}]
[null,"#16",23,2026,"F","A_VIE",{"v":0.44999999999999996,"d":"0.45"},{"v":0.38999999999999996,"d":"0.39"},0.6,0.6,85,0,{"$f":"ROUND(Primes!$O$4*V4117,0)","v":23},{"$f":"'BP Financier'!$E$33*(('BP Financier'!$C$16+'BP Financier'!$D$16+'BP Financier'!$E$16)/('BP Financier'!$C$16+'BP Financier'!$C$19+'BP Financier'!$D$16+'BP Financier'!$D$19+'BP Financier'!$E$16+'BP Financier'!$E$19))*V4117","v":{"v":785595.5621611138,"d":"785,596"}},{"v":440598.68404201895,"d":"440,599"},{"$f":"'BP Financier'!$E$44*(('BP Financier'!$C$16+'BP Financier'!$D$16+'BP Financier'!$E$16)/('BP Financier'!$C$16+'BP Financier'!$C$19+'BP Financier'!$D$16+'BP Financier'!$D$19+'BP Financier'!$E$16+'BP Financier'!$E$19+'BP Financier'!$C$22+'BP Financier'!$D$22+'BP Financier'!$E$22))*$V4117*X4117/(1-$W4117)","v":{"v":56081.8296846733,"d":"56,082"}},{"$f":"'BP Financier'!$E$44*(('BP Financier'!$C$16+'BP Financier'!$D$16+'BP Financier'!$E$16)/('BP Financier'!$C$16+'BP Financier'!$C$19+'BP Financier'!$D$16+'BP Financier'!$D$19+'BP Financier'!$E$16+'BP Financier'!$E$19+'BP Financier'!$C$22+'BP Financier'!$D$22+'BP Financier'!$E$22))*$V4117*Y4117/(1-$W4117)","v":{"v":37491.167910748445,"d":"37,491"}},{"$f":"'BP Financier'!$E$44*(('BP Financier'!$C$16+'BP Financier'!$D$16+'BP Financier'!$E$16)/('BP Financier'!$C$16+'BP Financier'!$C$19+'BP Financier'!$D$16+'BP Financier'!$D$19+'BP Financier'!$E$16+'BP Financier'!$E$19+'BP Financier'!$C$22+'BP Financier'!$D$22+'BP Financier'!$E$22))*$V4117*Z4117/(1-$W4117)","v":{"v":293422.6116651139,"d":"293,423"}},{"$f":"'BP Financier'!$E$44*(('BP Financier'!$C$16+'BP Financier'!$D$16+'BP Financier'!$E$16)/('BP Financier'!$C$16+'BP Financier'!$C$19+'BP Financier'!$D$16+'BP Financier'!$D$19+'BP Financier'!$E$16+'BP Financier'!$E$19+'BP Financier'!$C$22+'BP Financier'!$D$22+'BP Financier'!$E$22))*$V4117*AA4117/(1-$W4117)","v":{"v":36251.79045915346,"d":"36,252"}},{"$f":"'BP Financier'!$E$44*(('BP Financier'!$C$16+'BP Financier'!$D$16+'BP Financier'!$E$16)/('BP Financier'!$C$16+'BP Financier'!$C$19+'BP Financier'!$D$16+'BP Financier'!$D$19+'BP Financier'!$E$16+'BP Financier'!$E$19+'BP Financier'!$C$22+'BP Financier'!$D$22+'BP Financier'!$E$22))*$V4117*AB4117/(1-$W4117)","v":{"v":17351.284322329855,"d":"17,351"}},null,{"v":3.3333333333333335E-3,"d":"0.33%"},{"$f":"Actif!$E$28/100","v":{"v":0.28900000000000003,"d":"28.90%"}},{"$f":"Actif!$E$30/100","v":{"v":0.09050000000000001,"d":"9.05%"}},{"$f":"Actif!$E$31/100","v":{"v":0.0605,"d":"6.05%"}},{"$f":"Actif!$E$32/100","v":{"v":0.47350000000000003,"d":"47.35%"}},{"$f":"Actif!$E$33/100","v":{"v":0.0585,"d":"5.85%"}},{"$f":"Actif!$E$29/100","v":{"v":0.027999999999999997,"d":"2.80%"}}]
[null,"#17",23,2028,"F","A_VIE",{"v":0.44999999999999996,"d":"0.45"},{"v":0.38999999999999996,"d":"0.39"},0.6,0.6,85,0,{"$f":"ROUND(Primes!$O$4*V4118,0)","v":23},{"$f":"'BP Financier'!$E$33*(('BP Financier'!$C$16+'BP Financier'!$D$16+'BP Financier'!$E$16)/('BP Financier'!$C$16+'BP Financier'!$C$19+'BP Financier'!$D$16+'BP Financier'!$D$19+'BP Financier'!$E$16+'BP Financier'!$E$19))*V4118","v":{"v":785595.5621611138,"d":"785,596"}},{"v":440598.68404201895,"d":"440,599"},{"$f":"'BP Financier'!$E$44*(('BP Financier'!$C$16+'BP Financier'!$D$16+'BP Financier'!$E$16)/('BP Financier'!$C$16+'BP Financier'!$C$19+'BP Financier'!$D$16+'BP Financier'!$D$19+'BP Financier'!$E$16+'BP Financier'!$E$19+'BP Financier'!$C$22+'BP Financier'!$D$22+'BP Financier'!$E$22))*$V4118*X4118/(1-$W4118)","v":{"v":56081.8296846733,"d":"56,082"}},{"$f":"'BP Financier'!$E$44*(('BP Financier'!$C$16+'BP Financier'!$D$16+'BP Financier'!$E$16)/('BP Financier'!$C$16+'BP Financier'!$C$19+'BP Financier'!$D$16+'BP Financier'!$D$19+'BP Financier'!$E$16+'BP Financier'!$E$19+'BP Financier'!$C$22+'BP Financier'!$D$22+'BP Financier'!$E$22))*$V4118*Y4118/(1-$W4118)","v":{"v":37491.167910748445,"d":"37,491"}},{"$f":"'BP Financier'!$E$44*(('BP Financier'!$C$16+'BP Financier'!$D$16+'BP Financier'!$E$16)/('BP Financier'!$C$16+'BP Financier'!$C$19+'BP Financier'!$D$16+'BP Financier'!$D$19+'BP Financier'!$E$16+'BP Financier'!$E$19+'BP Financier'!$C$22+'BP Financier'!$D$22+'BP Financier'!$E$22))*$V4118*Z4118/(1-$W4118)","v":{"v":293422.6116651139,"d":"293,423"}},{"$f":"'BP Financier'!$E$44*(('BP Financier'!$C$16+'BP Financier'!$D$16+'BP Financier'!$E$16)/('BP Financier'!$C$16+'BP Financier'!$C$19+'BP Financier'!$D$16+'BP Financier'!$D$19+'BP Financier'!$E$16+'BP Financier'!$E$19+'BP Financier'!$C$22+'BP Financier'!$D$22+'BP Financier'!$E$22))*$V4118*AA4118/(1-$W4118)","v":{"v":36251.79045915346,"d":"36,252"}},{"$f":"'BP Financier'!$E$44*(('BP Financier'!$C$16+'BP Financier'!$D$16+'BP Financier'!$E$16)/('BP Financier'!$C$16+'BP Financier'!$C$19+'BP Financier'!$D$16+'BP Financier'!$D$19+'BP Financier'!$E$16+'BP Financier'!$E$19+'BP Financier'!$C$22+'BP Financier'!$D$22+'BP Financier'!$E$22))*$V4118*AB4118/(1-$W4118)","v":{"v":17351.284322329855,"d":"17,351"}},null,{"v":3.3333333333333335E-3,"d":"0.33%"},{"$f":"Actif!$E$28/100","v":{"v":0.28900000000000003,"d":"28.90%"}},{"$f":"Actif!$E$30/100","v":{"v":0.09050000000000001,"d":"9.05%"}},{"$f":"Actif!$E$31/100","v":{"v":0.0605,"d":"6.05%"}},{"$f":"Actif!$E$32/100","v":{"v":0.47350000000000003,"d":"47.35%"}},{"$f":"Actif!$E$33/100","v":{"v":0.0585,"d":"5.85%"}},{"$f":"Actif!$E$29/100","v":{"v":0.027999999999999997,"d":"2.80%"}}]
[null,"#18",23,2029,"F","A_VIE",{"v":0.44999999999999996,"d":"0.45"},{"v":0.38999999999999996,"d":"0.39"},0.6,0.6,85,0,{"$f":"ROUND(Primes!$O$4*V4119,0)","v":23},{"$f":"'BP Financier'!$E$33*(('BP Financier'!$C$16+'BP Financier'!$D$16+'BP Financier'!$E$16)/('BP Financier'!$C$16+'BP Financier'!$C$19+'BP Financier'!$D$16+'BP Financier'!$D$19+'BP Financier'!$E$16+'BP Financier'!$E$19))*V4119","v":{"v":785595.5621611138,"d":"785,596"}},{"v":440598.68404201895,"d":"440,599"},{"$f":"'BP Financier'!$E$44*(('BP Financier'!$C$16+'BP Financier'!$D$16+'BP Financier'!$E$16)/('BP Financier'!$C$16+'BP Financier'!$C$19+'BP Financier'!$D$16+'BP Financier'!$D$19+'BP Financier'!$E$16+'BP Financier'!$E$19+'BP Financier'!$C$22+'BP Financier'!$D$22+'BP Financier'!$E$22))*$V4119*X4119/(1-$W4119)","v":{"v":56081.8296846733,"d":"56,082"}},{"$f":"'BP Financier'!$E$44*(('BP Financier'!$C$16+'BP Financier'!$D$16+'BP Financier'!$E$16)/('BP Financier'!$C$16+'BP Financier'!$C$19+'BP Financier'!$D$16+'BP Financier'!$D$19+'BP Financier'!$E$16+'BP Financier'!$E$19+'BP Financier'!$C$22+'BP Financier'!$D$22+'BP Financier'!$E$22))*$V4119*Y4119/(1-$W4119)","v":{"v":37491.167910748445,"d":"37,491"}},{"$f":"'BP Financier'!$E$44*(('BP Financier'!$C$16+'BP Financier'!$D$16+'BP Financier'!$E$16)/('BP Financier'!$C$16+'BP Financier'!$C$19+'BP Financier'!$D$16+'BP Financier'!$D$19+'BP Financier'!$E$16+'BP Financier'!$E$19+'BP Financier'!$C$22+'BP Financier'!$D$22+'BP Financier'!$E$22))*$V4119*Z4119/(1-$W4119)","v":{"v":293422.6116651139,"d":"293,423"}},{"$f":"'BP Financier'!$E$44*(('BP Financier'!$C$16+'BP Financier'!$D$16+'BP Financier'!$E$16)/('BP Financier'!$C$16+'BP Financier'!$C$19+'BP Financier'!$D$16+'BP Financier'!$D$19+'BP Financier'!$E$16+'BP Financier'!$E$19+'BP Financier'!$C$22+'BP Financier'!$D$22+'BP Financier'!$E$22))*$V4119*AA4119/(1-$W4119)","v":{"v":36251.79045915346,"d":"36,252"}},{"$f":"'BP Financier'!$E$44*(('BP Financier'!$C$16+'BP Financier'!$D$16+'BP Financier'!$E$16)/('BP Financier'!$C$16+'BP Financier'!$C$19+'BP Financier'!$D$16+'BP Financier'!$D$19+'BP Financier'!$E$16+'BP Financier'!$E$19+'BP Financier'!$C$22+'BP Financier'!$D$22+'BP Financier'!$E$22))*$V4119*AB4119/(1-$W4119)","v":{"v":17351.284322329855,"d":"17,351"}},null,{"v":3.3333333333333335E-3,"d":"0.33%"},{"$f":"Actif!$E$28/100","v":{"v":0.28900000000000003,"d":"28.90%"}},{"$f":"Actif!$E$30/100","v":{"v":0.09050000000000001,"d":"9.05%"}},{"$f":"Actif!$E$31/100","v":{"v":0.0605,"d":"6.05%"}},{"$f":"Actif!$E$32/100","v":{"v":0.47350000000000003,"d":"47.35%"}},{"$f":"Actif!$E$33/100","v":{"v":0.0585,"d":"5.85%"}},{"$f":"Actif!$E$29/100","v":{"v":0.027999999999999997,"d":"2.80%"}}]
[null,"#19",24,2026,"H","A_VIE",{"v":0.44999999999999996,"d":"0.45"},{"v":0.38999999999999996,"d":"0.39"},0.6,0.6,85,0,{"$f":"ROUND(Primes!$O$4*V4120,0)","v":23},{"$f":"'BP Financier'!$E$33*(('BP Financier'!$C$16+'BP Financier'!$D$16+'BP Financier'!$E$16)/('BP Financier'!$C$16+'BP Financier'!$C$19+'BP Financier'!$D$16+'BP Financier'!$D$19+'BP Financier'!$E$16+'BP Financier'!$E$19))*V4120","v":{"v":785595.5621611138,"d":"785,596"}},{"v":440598.68404201895,"d":"440,599"},{"$f":"'BP Financier'!$E$44*(('BP Financier'!$C$16+'BP Financier'!$D$16+'BP Financier'!$E$16)/('BP Financier'!$C$16+'BP Financier'!$C$19+'BP Financier'!$D$16+'BP Financier'!$D$19+'BP Financier'!$E$16+'BP Financier'!$E$19+'BP Financier'!$C$22+'BP Financier'!$D$22+'BP Financier'!$E$22))*$V4120*X4120/(1-$W4120)","v":{"v":56081.8296846733,"d":"56,082"}},{"$f":"'BP Financier'!$E$44*(('BP Financier'!$C$16+'BP Financier'!$D$16+'BP Financier'!$E$16)/('BP Financier'!$C$16+'BP Financier'!$C$19+'BP Financier'!$D$16+'BP Financier'!$D$19+'BP Financier'!$E$16+'BP Financier'!$E$19+'BP Financier'!$C$22+'BP Financier'!$D$22+'BP Financier'!$E$22))*$V4120*Y4120/(1-$W4120)","v":{"v":37491.167910748445,"d":"37,491"}},{"$f":"'BP Financier'!$E$44*(('BP Financier'!$C$16+'BP Financier'!$D$16+'BP Financier'!$E$16)/('BP Financier'!$C$16+'BP Financier'!$C$19+'BP Financier'!$D$16+'BP Financier'!$D$19+'BP Financier'!$E$16+'BP Financier'!$E$19+'BP Financier'!$C$22+'BP Financier'!$D$22+'BP Financier'!$E$22))*$V4120*Z4120/(1-$W4120)","v":{"v":293422.6116651139,"d":"293,423"}},{"$f":"'BP Financier'!$E$44*(('BP Financier'!$C$16+'BP Financier'!$D$16+'BP Financier'!$E$16)/('BP Financier'!$C$16+'BP Financier'!$C$19+'BP Financier'!$D$16+'BP Financier'!$D$19+'BP Financier'!$E$16+'BP Financier'!$E$19+'BP Financier'!$C$22+'BP Financier'!$D$22+'BP Financier'!$E$22))*$V4120*AA4120/(1-$W4120)","v":{"v":36251.79045915346,"d":"36,252"}},{"$f":"'BP Financier'!$E$44*(('BP Financier'!$C$16+'BP Financier'!$D$16+'BP Financier'!$E$16)/('BP Financier'!$C$16+'BP Financier'!$C$19+'BP Financier'!$D$16+'BP Financier'!$D$19+'BP Financier'!$E$16+'BP Financier'!$E$19+'BP Financier'!$C$22+'BP Financier'!$D$22+'BP Financier'!$E$22))*$V4120*AB4120/(1-$W4120)","v":{"v":17351.284322329855,"d":"17,351"}},null,{"v":3.3333333333333335E-3,"d":"0.33%"},{"$f":"Actif!$E$28/100","v":{"v":0.28900000000000003,"d":"28.90%"}},{"$f":"Actif!$E$30/100","v":{"v":0.09050000000000001,"d":"9.05%"}},{"$f":"Actif!$E$31/100","v":{"v":0.0605,"d":"6.05%"}},{"$f":"Actif!$E$32/100","v":{"v":0.47350000000000003,"d":"47.35%"}},{"$f":"Actif!$E$33/100","v":{"v":0.0585,"d":"5.85%"}},{"$f":"Actif!$E$29/100","v":{"v":0.027999999999999997,"d":"2.80%"}}]
[null,"#20",24,2028,"H","A_VIE",{"v":0.44999999999999996,"d":"0.45"},{"v":0.38999999999999996,"d":"0.39"},0.6,0.6,85,0,{"$f":"ROUND(Primes!$O$4*V4121,0)","v":23},{"$f":"'BP Financier'!$E$33*(('BP Financier'!$C$16+'BP Financier'!$D$16+'BP Financier'!$E$16)/('BP Financier'!$C$16+'BP Financier'!$C$19+'BP Financier'!$D$16+'BP Financier'!$D$19+'BP Financier'!$E$16+'BP Financier'!$E$19))*V4121","v":{"v":785595.5621611138,"d":"785,596"}},{"v":440598.68404201895,"d":"440,599"},{"$f":"'BP Financier'!$E$44*(('BP Financier'!$C$16+'BP Financier'!$D$16+'BP Financier'!$E$16)/('BP Financier'!$C$16+'BP Financier'!$C$19+'BP Financier'!$D$16+'BP Financier'!$D$19+'BP Financier'!$E$16+'BP Financier'!$E$19+'BP Financier'!$C$22+'BP Financier'!$D$22+'BP Financier'!$E$22))*$V4121*X4121/(1-$W4121)","v":{"v":56081.8296846733,"d":"56,082"}},{"$f":"'BP Financier'!$E$44*(('BP Financier'!$C$16+'BP Financier'!$D$16+'BP Financier'!$E$16)/('BP Financier'!$C$16+'BP Financier'!$C$19+'BP Financier'!$D$16+'BP Financier'!$D$19+'BP Financier'!$E$16+'BP Financier'!$E$19+'BP Financier'!$C$22+'BP Financier'!$D$22+'BP Financier'!$E$22))*$V4121*Y4121/(1-$W4121)","v":{"v":37491.167910748445,"d":"37,491"}},{"$f":"'BP Financier'!$E$44*(('BP Financier'!$C$16+'BP Financier'!$D$16+'BP Financier'!$E$16)/('BP Financier'!$C$16+'BP Financier'!$C$19+'BP Financier'!$D$16+'BP Financier'!$D$19+'BP Financier'!$E$16+'BP Financier'!$E$19+'BP Financier'!$C$22+'BP Financier'!$D$22+'BP Financier'!$E$22))*$V4121*Z4121/(1-$W4121)","v":{"v":293422.6116651139,"d":"293,423"}},{"$f":"'BP Financier'!$E$44*(('BP Financier'!$C$16+'BP Financier'!$D$16+'BP Financier'!$E$16)/('BP Financier'!$C$16+'BP Financier'!$C$19+'BP Financier'!$D$16+'BP Financier'!$D$19+'BP Financier'!$E$16+'BP Financier'!$E$19+'BP Financier'!$C$22+'BP Financier'!$D$22+'BP Financier'!$E$22))*$V4121*AA4121/(1-$W4121)","v":{"v":36251.79045915346,"d":"36,252"}},{"$f":"'BP Financier'!$E$44*(('BP Financier'!$C$16+'BP Financier'!$D$16+'BP Financier'!$E$16)/('BP Financier'!$C$16+'BP Financier'!$C$19+'BP Financier'!$D$16+'BP Financier'!$D$19+'BP Financier'!$E$16+'BP Financier'!$E$19+'BP Financier'!$C$22+'BP Financier'!$D$22+'BP Financier'!$E$22))*$V4121*AB4121/(1-$W4121)","v":{"v":17351.284322329855,"d":"17,351"}},null,{"v":3.3333333333333335E-3,"d":"0.33%"},{"$f":"Actif!$E$28/100","v":{"v":0.28900000000000003,"d":"28.90%"}},{"$f":"Actif!$E$30/100","v":{"v":0.09050000000000001,"d":"9.05%"}},{"$f":"Actif!$E$31/100","v":{"v":0.0605,"d":"6.05%"}},{"$f":"Actif!$E$32/100","v":{"v":0.47350000000000003,"d":"47.35%"}},{"$f":"Actif!$E$33/100","v":{"v":0.0585,"d":"5.85%"}},{"$f":"Actif!$E$29/100","v":{"v":0.027999999999999997,"d":"2.80%"}}]
[null,"#21",24,2029,"H","A_VIE",{"v":0.44999999999999996,"d":"0.45"},{"v":0.38999999999999996,"d":"0.39"},0.6,0.6,85,0,{"$f":"ROUND(Primes!$O$4*V4122,0)","v":23},{"$f":"'BP Financier'!$E$33*(('BP Financier'!$C$16+'BP Financier'!$D$16+'BP Financier'!$E$16)/('BP Financier'!$C$16+'BP Financier'!$C$19+'BP Financier'!$D$16+'BP Financier'!$D$19+'BP Financier'!$E$16+'BP Financier'!$E$19))*V4122","v":{"v":785595.5621611138,"d":"785,596"}},{"v":440598.68404201895,"d":"440,599"},{"$f":"'BP Financier'!$E$44*(('BP Financier'!$C$16+'BP Financier'!$D$16+'BP Financier'!$E$16)/('BP Financier'!$C$16+'BP Financier'!$C$19+'BP Financier'!$D$16+'BP Financier'!$D$19+'BP Financier'!$E$16+'BP Financier'!$E$19+'BP Financier'!$C$22+'BP Financier'!$D$22+'BP Financier'!$E$22))*$V4122*X4122/(1-$W4122)","v":{"v":56081.8296846733,"d":"56,082"}},{"$f":"'BP Financier'!$E$44*(('BP Financier'!$C$16+'BP Financier'!$D$16+'BP Financier'!$E$16)/('BP Financier'!$C$16+'BP Financier'!$C$19+'BP Financier'!$D$16+'BP Financier'!$D$19+'BP Financier'!$E$16+'BP Financier'!$E$19+'BP Financier'!$C$22+'BP Financier'!$D$22+'BP Financier'!$E$22))*$V4122*Y4122/(1-$W4122)","v":{"v":37491.167910748445,"d":"37,491"}},{"$f":"'BP Financier'!$E$44*(('BP Financier'!$C$16+'BP Financier'!$D$16+'BP Financier'!$E$16)/('BP Financier'!$C$16+'BP Financier'!$C$19+'BP Financier'!$D$16+'BP Financier'!$D$19+'BP Financier'!$E$16+'BP Financier'!$E$19+'BP Financier'!$C$22+'BP Financier'!$D$22+'BP Financier'!$E$22))*$V4122*Z4122/(1-$W4122)","v":{"v":293422.6116651139,"d":"293,423"}},{"$f":"'BP Financier'!$E$44*(('BP Financier'!$C$16+'BP Financier'!$D$16+'BP Financier'!$E$16)/('BP Financier'!$C$16+'BP Financier'!$C$19+'BP Financier'!$D$16+'BP Financier'!$D$19+'BP Financier'!$E$16+'BP Financier'!$E$19+'BP Financier'!$C$22+'BP Financier'!$D$22+'BP Financier'!$E$22))*$V4122*AA4122/(1-$W4122)","v":{"v":36251.79045915346,"d":"36,252"}},{"$f":"'BP Financier'!$E$44*(('BP Financier'!$C$16+'BP Financier'!$D$16+'BP Financier'!$E$16)/('BP Financier'!$C$16+'BP Financier'!$C$19+'BP Financier'!$D$16+'BP Financier'!$D$19+'BP Financier'!$E$16+'BP Financier'!$E$19+'BP Financier'!$C$22+'BP Financier'!$D$22+'BP Financier'!$E$22))*$V4122*AB4122/(1-$W4122)","v":{"v":17351.284322329855,"d":"17,351"}},null,{"v":3.3333333333333335E-3,"d":"0.33%"},{"$f":"Actif!$E$28/100","v":{"v":0.28900000000000003,"d":"28.90%"}},{"$f":"Actif!$E$30/100","v":{"v":0.09050000000000001,"d":"9.05%"}},{"$f":"Actif!$E$31/100","v":{"v":0.0605,"d":"6.05%"}},{"$f":"Actif!$E$32/100","v":{"v":0.47350000000000003,"d":"47.35%"}},{"$f":"Actif!$E$33/100","v":{"v":0.0585,"d":"5.85%"}},{"$f":"Actif!$E$29/100","v":{"v":0.027999999999999997,"d":"2.80%"}}]
[null,"#22",25,2026,"H","A_VIE",{"v":0.44999999999999996,"d":"0.45"},{"v":0.38999999999999996,"d":"0.39"},0.6,0.6,85,0,{"$f":"ROUND(Primes!$O$4*V4123,0)","v":114},{"$f":"'BP Financier'!$E$33*(('BP Financier'!$C$16+'BP Financier'!$D$16+'BP Financier'!$E$16)/('BP Financier'!$C$16+'BP Financier'!$C$19+'BP Financier'!$D$16+'BP Financier'!$D$19+'BP Financier'!$E$16+'BP Financier'!$E$19))*V4123","v":{"v":3927977.810805569,"d":"3,927,978"}},{"v":2202993.4202100947,"d":"2,202,993"},{"$f":"'BP Financier'!$E$44*(('BP Financier'!$C$16+'BP Financier'!$D$16+'BP Financier'!$E$16)/('BP Financier'!$C$16+'BP Financier'!$C$19+'BP Financier'!$D$16+'BP Financier'!$D$19+'BP Financier'!$E$16+'BP Financier'!$E$19+'BP Financier'!$C$22+'BP Financier'!$D$22+'BP Financier'!$E$22))*$V4123*X4123/(1-$W4123)","v":{"v":280409.1484233665,"d":"280,409"}},{"$f":"'BP Financier'!$E$44*(('BP Financier'!$C$16+'BP Financier'!$D$16+'BP Financier'!$E$16)/('BP Financier'!$C$16+'BP Financier'!$C$19+'BP Financier'!$D$16+'BP Financier'!$D$19+'BP Financier'!$E$16+'BP Financier'!$E$19+'BP Financier'!$C$22+'BP Financier'!$D$22+'BP Financier'!$E$22))*$V4123*Y4123/(1-$W4123)","v":{"v":187455.83955374217,"d":"187,456"}},{"$f":"'BP Financier'!$E$44*(('BP Financier'!$C$16+'BP Financier'!$D$16+'BP Financier'!$E$16)/('BP Financier'!$C$16+'BP Financier'!$C$19+'BP Financier'!$D$16+'BP Financier'!$D$19+'BP Financier'!$E$16+'BP Financier'!$E$19+'BP Financier'!$C$22+'BP Financier'!$D$22+'BP Financier'!$E$22))*$V4123*Z4123/(1-$W4123)","v":{"v":1467113.0583255691,"d":"1,467,113"}},{"$f":"'BP Financier'!$E$44*(('BP Financier'!$C$16+'BP Financier'!$D$16+'BP Financier'!$E$16)/('BP Financier'!$C$16+'BP Financier'!$C$19+'BP Financier'!$D$16+'BP Financier'!$D$19+'BP Financier'!$E$16+'BP Financier'!$E$19+'BP Financier'!$C$22+'BP Financier'!$D$22+'BP Financier'!$E$22))*$V4123*AA4123/(1-$W4123)","v":{"v":181258.95229576726,"d":"181,259"}},{"$f":"'BP Financier'!$E$44*(('BP Financier'!$C$16+'BP Financier'!$D$16+'BP Financier'!$E$16)/('BP Financier'!$C$16+'BP Financier'!$C$19+'BP Financier'!$D$16+'BP Financier'!$D$19+'BP Financier'!$E$16+'BP Financier'!$E$19+'BP Financier'!$C$22+'BP Financier'!$D$22+'BP Financier'!$E$22))*$V4123*AB4123/(1-$W4123)","v":{"v":86756.42161164928,"d":"86,756"}},null,{"v":0.016666666666666666,"d":"1.67%"},{"$f":"Actif!$E$28/100","v":{"v":0.28900000000000003,"d":"28.90%"}},{"$f":"Actif!$E$30/100","v":{"v":0.09050000000000001,"d":"9.05%"}},{"$f":"Actif!$E$31/100","v":{"v":0.0605,"d":"6.05%"}},{"$f":"Actif!$E$32/100","v":{"v":0.47350000000000003,"d":"47.35%"}},{"$f":"Actif!$E$33/100","v":{"v":0.0585,"d":"5.85%"}},{"$f":"Actif!$E$29/100","v":{"v":0.027999999999999997,"d":"2.80%"}}]
[null,"#23",25,2028,"H","A_VIE",{"v":0.44999999999999996,"d":"0.45"},{"v":0.38999999999999996,"d":"0.39"},0.6,0.6,85,0,{"$f":"ROUND(Primes!$O$4*V4124,0)","v":114},{"$f":"'BP Financier'!$E$33*(('BP Financier'!$C$16+'BP Financier'!$D$16+'BP Financier'!$E$16)/('BP Financier'!$C$16+'BP Financier'!$C$19+'BP Financier'!$D$16+'BP Financier'!$D$19+'BP Financier'!$E$16+'BP Financier'!$E$19))*V4124","v":{"v":3927977.810805569,"d":"3,927,978"}},{"v":2202993.4202100947,"d":"2,202,993"},{"$f":"'BP Financier'!$E$44*(('BP Financier'!$C$16+'BP Financier'!$D$16+'BP Financier'!$E$16)/('BP Financier'!$C$16+'BP Financier'!$C$19+'BP Financier'!$D$16+'BP Financier'!$D$19+'BP Financier'!$E$16+'BP Financier'!$E$19+'BP Financier'!$C$22+'BP Financier'!$D$22+'BP Financier'!$E$22))*$V4124*X4124/(1-$W4124)","v":{"v":280409.1484233665,"d":"280,409"}},{"$f":"'BP Financier'!$E$44*(('BP Financier'!$C$16+'BP Financier'!$D$16+'BP Financier'!$E$16)/('BP Financier'!$C$16+'BP Financier'!$C$19+'BP Financier'!$D$16+'BP Financier'!$D$19+'BP Financier'!$E$16+'BP Financier'!$E$19+'BP Financier'!$C$22+'BP Financier'!$D$22+'BP Financier'!$E$22))*$V4124*Y4124/(1-$W4124)","v":{"v":187455.83955374217,"d":"187,456"}},{"$f":"'BP Financier'!$E$44*(('BP Financier'!$C$16+'BP Financier'!$D$16+'BP Financier'!$E$16)/('BP Financier'!$C$16+'BP Financier'!$C$19+'BP Financier'!$D$16+'BP Financier'!$D$19+'BP Financier'!$E$16+'BP Financier'!$E$19+'BP Financier'!$C$22+'BP Financier'!$D$22+'BP Financier'!$E$22))*$V4124*Z4124/(1-$W4124)","v":{"v":1467113.0583255691,"d":"1,467,113"}},{"$f":"'BP Financier'!$E$44*(('BP Financier'!$C$16+'BP Financier'!$D$16+'BP Financier'!$E$16)/('BP Financier'!$C$16+'BP Financier'!$C$19+'BP Financier'!$D$16+'BP Financier'!$D$19+'BP Financier'!$E$16+'BP Financier'!$E$19+'BP Financier'!$C$22+'BP Financier'!$D$22+'BP Financier'!$E$22))*$V4124*AA4124/(1-$W4124)","v":{"v":181258.95229576726,"d":"181,259"}},{"$f":"'BP Financier'!$E$44*(('BP Financier'!$C$16+'BP Financier'!$D$16+'BP Financier'!$E$16)/('BP Financier'!$C$16+'BP Financier'!$C$19+'BP Financier'!$D$16+'BP Financier'!$D$19+'BP Financier'!$E$16+'BP Financier'!$E$19+'BP Financier'!$C$22+'BP Financier'!$D$22+'BP Financier'!$E$22))*$V4124*AB4124/(1-$W4124)","v":{"v":86756.42161164928,"d":"86,756"}},null,{"v":0.016666666666666666,"d":"1.67%"},{"$f":"Actif!$E$28/100","v":{"v":0.28900000000000003,"d":"28.90%"}},{"$f":"Actif!$E$30/100","v":{"v":0.09050000000000001,"d":"9.05%"}},{"$f":"Actif!$E$31/100","v":{"v":0.0605,"d":"6.05%"}},{"$f":"Actif!$E$32/100","v":{"v":0.47350000000000003,"d":"47.35%"}},{"$f":"Actif!$E$33/100","v":{"v":0.0585,"d":"5.85%"}},{"$f":"Actif!$E$29/100","v":{"v":0.027999999999999997,"d":"2.80%"}}]
[null,"#24",25,2029,"H","A_VIE",{"v":0.44999999999999996,"d":"0.45"},{"v":0.38999999999999996,"d":"0.39"},0.6,0.6,85,0,{"$f":"ROUND(Primes!$O$4*V4125,0)","v":114},{"$f":"'BP Financier'!$E$33*(('BP Financier'!$C$16+'BP Financier'!$D$16+'BP Financier'!$E$16)/('BP Financier'!$C$16+'BP Financier'!$C$19+'BP Financier'!$D$16+'BP Financier'!$D$19+'BP Financier'!$E$16+'BP Financier'!$E$19))*V4125","v":{"v":3927977.810805569,"d":"3,927,978"}},{"v":2202993.4202100947,"d":"2,202,993"},{"$f":"'BP Financier'!$E$44*(('BP Financier'!$C$16+'BP Financier'!$D$16+'BP Financier'!$E$16)/('BP Financier'!$C$16+'BP Financier'!$C$19+'BP Financier'!$D$16+'BP Financier'!$D$19+'BP Financier'!$E$16+'BP Financier'!$E$19+'BP Financier'!$C$22+'BP Financier'!$D$22+'BP Financier'!$E$22))*$V4125*X4125/(1-$W4125)","v":{"v":280409.1484233665,"d":"280,409"}},{"$f":"'BP Financier'!$E$44*(('BP Financier'!$C$16+'BP Financier'!$D$16+'BP Financier'!$E$16)/('BP Financier'!$C$16+'BP Financier'!$C$19+'BP Financier'!$D$16+'BP Financier'!$D$19+'BP Financier'!$E$16+'BP Financier'!$E$19+'BP Financier'!$C$22+'BP Financier'!$D$22+'BP Financier'!$E$22))*$V4125*Y4125/(1-$W4125)","v":{"v":187455.83955374217,"d":"187,456"}},{"$f":"'BP Financier'!$E$44*(('BP Financier'!$C$16+'BP Financier'!$D$16+'BP Financier'!$E$16)/('BP Financier'!$C$16+'BP Financier'!$C$19+'BP Financier'!$D$16+'BP Financier'!$D$19+'BP Financier'!$E$16+'BP Financier'!$E$19+'BP Financier'!$C$22+'BP Financier'!$D$22+'BP Financier'!$E$22))*$V4125*Z4125/(1-$W4125)","v":{"v":1467113.0583255691,"d":"1,467,113"}},{"$f":"'BP Financier'!$E$44*(('BP Financier'!$C$16+'BP Financier'!$D$16+'BP Financier'!$E$16)/('BP Financier'!$C$16+'BP Financier'!$C$19+'BP Financier'!$D$16+'BP Financier'!$D$19+'BP Financier'!$E$16+'BP Financier'!$E$19+'BP Financier'!$C$22+'BP Financier'!$D$22+'BP Financier'!$E$22))*$V4125*AA4125/(1-$W4125)","v":{"v":181258.95229576726,"d":"181,259"}},{"$f":"'BP Financier'!$E$44*(('BP Financier'!$C$16+'BP Financier'!$D$16+'BP Financier'!$E$16)/('BP Financier'!$C$16+'BP Financier'!$C$19+'BP Financier'!$D$16+'BP Financier'!$D$19+'BP Financier'!$E$16+'BP Financier'!$E$19+'BP Financier'!$C$22+'BP Financier'!$D$22+'BP Financier'!$E$22))*$V4125*AB4125/(1-$W4125)","v":{"v":86756.42161164928,"d":"86,756"}},null,{"v":0.016666666666666666,"d":"1.67%"},{"$f":"Actif!$E$28/100","v":{"v":0.28900000000000003,"d":"28.90%"}},{"$f":"Actif!$E$30/100","v":{"v":0.09050000000000001,"d":"9.05%"}},{"$f":"Actif!$E$31/100","v":{"v":0.0605,"d":"6.05%"}},{"$f":"Actif!$E$32/100","v":{"v":0.47350000000000003,"d":"47.35%"}},{"$f":"Actif!$E$33/100","v":{"v":0.0585,"d":"5.85%"}},{"$f":"Actif!$E$29/100","v":{"v":0.027999999999999997,"d":"2.80%"}}]
[null,"#25",26,2026,"F","A_VIE",{"v":0.44999999999999996,"d":"0.45"},{"v":0.38999999999999996,"d":"0.39"},0.6,0.6,85,0,{"$f":"ROUND(Primes!$O$4*V4126,0)","v":68},{"$f":"'BP Financier'!$E$33*(('BP Financier'!$C$16+'BP Financier'!$D$16+'BP Financier'!$E$16)/('BP Financier'!$C$16+'BP Financier'!$C$19+'BP Financier'!$D$16+'BP Financier'!$D$19+'BP Financier'!$E$16+'BP Financier'!$E$19))*V4126","v":{"v":2356786.6864833417,"d":"2,356,787"}},{"v":1321796.0521260567,"d":"1,321,796"},{"$f":"'BP Financier'!$E$44*(('BP Financier'!$C$16+'BP Financier'!$D$16+'BP Financier'!$E$16)/('BP Financier'!$C$16+'BP Financier'!$C$19+'BP Financier'!$D$16+'BP Financier'!$D$19+'BP Financier'!$E$16+'BP Financier'!$E$19+'BP Financier'!$C$22+'BP Financier'!$D$22+'BP Financier'!$E$22))*$V4126*X4126/(1-$W4126)","v":{"v":168245.48905401988,"d":"168,245"}},{"$f":"'BP Financier'!$E$44*(('BP Financier'!$C$16+'BP Financier'!$D$16+'BP Financier'!$E$16)/('BP Financier'!$C$16+'BP Financier'!$C$19+'BP Financier'!$D$16+'BP Financier'!$D$19+'BP Financier'!$E$16+'BP Financier'!$E$19+'BP Financier'!$C$22+'BP Financier'!$D$22+'BP Financier'!$E$22))*$V4126*Y4126/(1-$W4126)","v":{"v":112473.50373224531,"d":"112,474"}},{"$f":"'BP Financier'!$E$44*(('BP Financier'!$C$16+'BP Financier'!$D$16+'BP Financier'!$E$16)/('BP Financier'!$C$16+'BP Financier'!$C$19+'BP Financier'!$D$16+'BP Financier'!$D$19+'BP Financier'!$E$16+'BP Financier'!$E$19+'BP Financier'!$C$22+'BP Financier'!$D$22+'BP Financier'!$E$22))*$V4126*Z4126/(1-$W4126)","v":{"v":880267.8349953415,"d":"880,268"}},{"$f":"'BP Financier'!$E$44*(('BP Financier'!$C$16+'BP Financier'!$D$16+'BP Financier'!$E$16)/('BP Financier'!$C$16+'BP Financier'!$C$19+'BP Financier'!$D$16+'BP Financier'!$D$19+'BP Financier'!$E$16+'BP Financier'!$E$19+'BP Financier'!$C$22+'BP Financier'!$D$22+'BP Financier'!$E$22))*$V4126*AA4126/(1-$W4126)","v":{"v":108755.37137746037,"d":"108,755"}},{"$f":"'BP Financier'!$E$44*(('BP Financier'!$C$16+'BP Financier'!$D$16+'BP Financier'!$E$16)/('BP Financier'!$C$16+'BP Financier'!$C$19+'BP Financier'!$D$16+'BP Financier'!$D$19+'BP Financier'!$E$16+'BP Financier'!$E$19+'BP Financier'!$C$22+'BP Financier'!$D$22+'BP Financier'!$E$22))*$V4126*AB4126/(1-$W4126)","v":{"v":52053.852966989565,"d":"52,054"}},null,{"v":0.01,"d":"1.00%"},{"$f":"Actif!$E$28/100","v":{"v":0.28900000000000003,"d":"28.90%"}},{"$f":"Actif!$E$30/100","v":{"v":0.09050000000000001,"d":"9.05%"}},{"$f":"Actif!$E$31/100","v":{"v":0.0605,"d":"6.05%"}},{"$f":"Actif!$E$32/100","v":{"v":0.47350000000000003,"d":"47.35%"}},{"$f":"Actif!$E$33/100","v":{"v":0.0585,"d":"5.85%"}},{"$f":"Actif!$E$29/100","v":{"v":0.027999999999999997,"d":"2.80%"}}]
[null,"#26",26,2028,"F","A_VIE",{"v":0.44999999999999996,"d":"0.45"},{"v":0.38999999999999996,"d":"0.39"},0.6,0.6,85,0,{"$f":"ROUND(Primes!$O$4*V4127,0)","v":68},{"$f":"'BP Financier'!$E$33*(('BP Financier'!$C$16+'BP Financier'!$D$16+'BP Financier'!$E$16)/('BP Financier'!$C$16+'BP Financier'!$C$19+'BP Financier'!$D$16+'BP Financier'!$D$19+'BP Financier'!$E$16+'BP Financier'!$E$19))*V4127","v":{"v":2356786.6864833417,"d":"2,356,787"}},{"v":1321796.0521260567,"d":"1,321,796"},{"$f":"'BP Financier'!$E$44*(('BP Financier'!$C$16+'BP Financier'!$D$16+'BP Financier'!$E$16)/('BP Financier'!$C$16+'BP Financier'!$C$19+'BP Financier'!$D$16+'BP Financier'!$D$19+'BP Financier'!$E$16+'BP Financier'!$E$19+'BP Financier'!$C$22+'BP Financier'!$D$22+'BP Financier'!$E$22))*$V4127*X4127/(1-$W4127)","v":{"v":168245.48905401988,"d":"168,245"}},{"$f":"'BP Financier'!$E$44*(('BP Financier'!$C$16+'BP Financier'!$D$16+'BP Financier'!$E$16)/('BP Financier'!$C$16+'BP Financier'!$C$19+'BP Financier'!$D$16+'BP Financier'!$D$19+'BP Financier'!$E$16+'BP Financier'!$E$19+'BP Financier'!$C$22+'BP Financier'!$D$22+'BP Financier'!$E$22))*$V4127*Y4127/(1-$W4127)","v":{"v":112473.50373224531,"d":"112,474"}},{"$f":"'BP Financier'!$E$44*(('BP Financier'!$C$16+'BP Financier'!$D$16+'BP Financier'!$E$16)/('BP Financier'!$C$16+'BP Financier'!$C$19+'BP Financier'!$D$16+'BP Financier'!$D$19+'BP Financier'!$E$16+'BP Financier'!$E$19+'BP Financier'!$C$22+'BP Financier'!$D$22+'BP Financier'!$E$22))*$V4127*Z4127/(1-$W4127)","v":{"v":880267.8349953415,"d":"880,268"}},{"$f":"'BP Financier'!$E$44*(('BP Financier'!$C$16+'BP Financier'!$D$16+'BP Financier'!$E$16)/('BP Financier'!$C$16+'BP Financier'!$C$19+'BP Financier'!$D$16+'BP Financier'!$D$19+'BP Financier'!$E$16+'BP Financier'!$E$19+'BP Financier'!$C$22+'BP Financier'!$D$22+'BP Financier'!$E$22))*$V4127*AA4127/(1-$W4127)","v":{"v":108755.37137746037,"d":"108,755"}},{"$f":"'BP Financier'!$E$44*(('BP Financier'!$C$16+'BP Financier'!$D$16+'BP Financier'!$E$16)/('BP Financier'!$C$16+'BP Financier'!$C$19+'BP Financier'!$D$16+'BP Financier'!$D$19+'BP Financier'!$E$16+'BP Financier'!$E$19+'BP Financier'!$C$22+'BP Financier'!$D$22+'BP Financier'!$E$22))*$V4127*AB4127/(1-$W4127)","v":{"v":52053.852966989565,"d":"52,054"}},null,{"v":0.01,"d":"1.00%"},{"$f":"Actif!$E$28/100","v":{"v":0.28900000000000003,"d":"28.90%"}},{"$f":"Actif!$E$30/100","v":{"v":0.09050000000000001,"d":"9.05%"}},{"$f":"Actif!$E$31/100","v":{"v":0.0605,"d":"6.05%"}},{"$f":"Actif!$E$32/100","v":{"v":0.47350000000000003,"d":"47.35%"}},{"$f":"Actif!$E$33/100","v":{"v":0.0585,"d":"5.85%"}},{"$f":"Actif!$E$29/100","v":{"v":0.027999999999999997,"d":"2.80%"}}]
[null,"#27",26,2029,"F","A_VIE",{"v":0.44999999999999996,"d":"0.45"},{"v":0.38999999999999996,"d":"0.39"},0.6,0.6,85,0,{"$f":"ROUND(Primes!$O$4*V4128,0)","v":68},{"$f":"'BP Financier'!$E$33*(('BP Financier'!$C$16+'BP Financier'!$D$16+'BP Financier'!$E$16)/('BP Financier'!$C$16+'BP Financier'!$C$19+'BP Financier'!$D$16+'BP Financier'!$D$19+'BP Financier'!$E$16+'BP Financier'!$E$19))*V4128","v":{"v":2356786.6864833417,"d":"2,356,787"}},{"v":1321796.0521260567,"d":"1,321,796"},{"$f":"'BP Financier'!$E$44*(('BP Financier'!$C$16+'BP Financier'!$D$16+'BP Financier'!$E$16)/('BP Financier'!$C$16+'BP Financier'!$C$19+'BP Financier'!$D$16+'BP Financier'!$D$19+'BP Financier'!$E$16+'BP Financier'!$E$19+'BP Financier'!$C$22+'BP Financier'!$D$22+'BP Financier'!$E$22))*$V4128*X4128/(1-$W4128)","v":{"v":168245.48905401988,"d":"168,245"}},{"$f":"'BP Financier'!$E$44*(('BP Financier'!$C$16+'BP Financier'!$D$16+'BP Financier'!$E$16)/('BP Financier'!$C$16+'BP Financier'!$C$19+'BP Financier'!$D$16+'BP Financier'!$D$19+'BP Financier'!$E$16+'BP Financier'!$E$19+'BP Financier'!$C$22+'BP Financier'!$D$22+'BP Financier'!$E$22))*$V4128*Y4128/(1-$W4128)","v":{"v":112473.50373224531,"d":"112,474"}},{"$f":"'BP Financier'!$E$44*(('BP Financier'!$C$16+'BP Financier'!$D$16+'BP Financier'!$E$16)/('BP Financier'!$C$16+'BP Financier'!$C$19+'BP Financier'!$D$16+'BP Financier'!$D$19+'BP Financier'!$E$16+'BP Financier'!$E$19+'BP Financier'!$C$22+'BP Financier'!$D$22+'BP Financier'!$E$22))*$V4128*Z4128/(1-$W4128)","v":{"v":880267.8349953415,"d":"880,268"}},{"$f":"'BP Financier'!$E$44*(('BP Financier'!$C$16+'BP Financier'!$D$16+'BP Financier'!$E$16)/('BP Financier'!$C$16+'BP Financier'!$C$19+'BP Financier'!$D$16+'BP Financier'!$D$19+'BP Financier'!$E$16+'BP Financier'!$E$19+'BP Financier'!$C$22+'BP Financier'!$D$22+'BP Financier'!$E$22))*$V4128*AA4128/(1-$W4128)","v":{"v":108755.37137746037,"d":"108,755"}},{"$f":"'BP Financier'!$E$44*(('BP Financier'!$C$16+'BP Financier'!$D$16+'BP Financier'!$E$16)/('BP Financier'!$C$16+'BP Financier'!$C$19+'BP Financier'!$D$16+'BP Financier'!$D$19+'BP Financier'!$E$16+'BP Financier'!$E$19+'BP Financier'!$C$22+'BP Financier'!$D$22+'BP Financier'!$E$22))*$V4128*AB4128/(1-$W4128)","v":{"v":52053.852966989565,"d":"52,054"}},null,{"v":0.01,"d":"1.00%"},{"$f":"Actif!$E$28/100","v":{"v":0.28900000000000003,"d":"28.90%"}},{"$f":"Actif!$E$30/100","v":{"v":0.09050000000000001,"d":"9.05%"}},{"$f":"Actif!$E$31/100","v":{"v":0.0605,"d":"6.05%"}},{"$f":"Actif!$E$32/100","v":{"v":0.47350000000000003,"d":"47.35%"}},{"$f":"Actif!$E$33/100","v":{"v":0.0585,"d":"5.85%"}},{"$f":"Actif!$E$29/100","v":{"v":0.027999999999999997,"d":"2.80%"}}]
[null,"#28",27,2026,"H","A_VIE",{"v":0.44999999999999996,"d":"0.45"},{"v":0.38999999999999996,"d":"0.39"},0.6,0.6,85,0,{"$f":"ROUND(Primes!$O$4*V4129,0)","v":68},{"$f":"'BP Financier'!$E$33*(('BP Financier'!$C$16+'BP Financier'!$D$16+'BP Financier'!$E$16)/('BP Financier'!$C$16+'BP Financier'!$C$19+'BP Financier'!$D$16+'BP Financier'!$D$19+'BP Financier'!$E$16+'BP Financier'!$E$19))*V4129","v":{"v":2356786.6864833417,"d":"2,356,787"}},{"v":1321796.0521260567,"d":"1,321,796"},{"$f":"'BP Financier'!$E$44*(('BP Financier'!$C$16+'BP Financier'!$D$16+'BP Financier'!$E$16)/('BP Financier'!$C$16+'BP Financier'!$C$19+'BP Financier'!$D$16+'BP Financier'!$D$19+'BP Financier'!$E$16+'BP Financier'!$E$19+'BP Financier'!$C$22+'BP Financier'!$D$22+'BP Financier'!$E$22))*$V4129*X4129/(1-$W4129)","v":{"v":168245.48905401988,"d":"168,245"}},{"$f":"'BP Financier'!$E$44*(('BP Financier'!$C$16+'BP Financier'!$D$16+'BP Financier'!$E$16)/('BP Financier'!$C$16+'BP Financier'!$C$19+'BP Financier'!$D$16+'BP Financier'!$D$19+'BP Financier'!$E$16+'BP Financier'!$E$19+'BP Financier'!$C$22+'BP Financier'!$D$22+'BP Financier'!$E$22))*$V4129*Y4129/(1-$W4129)","v":{"v":112473.50373224531,"d":"112,474"}},{"$f":"'BP Financier'!$E$44*(('BP Financier'!$C$16+'BP Financier'!$D$16+'BP Financier'!$E$16)/('BP Financier'!$C$16+'BP Financier'!$C$19+'BP Financier'!$D$16+'BP Financier'!$D$19+'BP Financier'!$E$16+'BP Financier'!$E$19+'BP Financier'!$C$22+'BP Financier'!$D$22+'BP Financier'!$E$22))*$V4129*Z4129/(1-$W4129)","v":{"v":880267.8349953415,"d":"880,268"}},{"$f":"'BP Financier'!$E$44*(('BP Financier'!$C$16+'BP Financier'!$D$16+'BP Financier'!$E$16)/('BP Financier'!$C$16+'BP Financier'!$C$19+'BP Financier'!$D$16+'BP Financier'!$D$19+'BP Financier'!$E$16+'BP Financier'!$E$19+'BP Financier'!$C$22+'BP Financier'!$D$22+'BP Financier'!$E$22))*$V4129*AA4129/(1-$W4129)","v":{"v":108755.37137746037,"d":"108,755"}},{"$f":"'BP Financier'!$E$44*(('BP Financier'!$C$16+'BP Financier'!$D$16+'BP Financier'!$E$16)/('BP Financier'!$C$16+'BP Financier'!$C$19+'BP Financier'!$D$16+'BP Financier'!$D$19+'BP Financier'!$E$16+'BP Financier'!$E$19+'BP Financier'!$C$22+'BP Financier'!$D$22+'BP Financier'!$E$22))*$V4129*AB4129/(1-$W4129)","v":{"v":52053.852966989565,"d":"52,054"}},null,{"v":0.01,"d":"1.00%"},{"$f":"Actif!$E$28/100","v":{"v":0.28900000000000003,"d":"28.90%"}},{"$f":"Actif!$E$30/100","v":{"v":0.09050000000000001,"d":"9.05%"}},{"$f":"Actif!$E$31/100","v":{"v":0.0605,"d":"6.05%"}},{"$f":"Actif!$E$32/100","v":{"v":0.47350000000000003,"d":"47.35%"}},{"$f":"Actif!$E$33/100","v":{"v":0.0585,"d":"5.85%"}},{"$f":"Actif!$E$29/100","v":{"v":0.027999999999999997,"d":"2.80%"}}]
[null,"#29",27,2028,"H","A_VIE",{"v":0.44999999999999996,"d":"0.45"},{"v":0.38999999999999996,"d":"0.39"},0.6,0.6,85,0,{"$f":"ROUND(Primes!$O$4*V4130,0)","v":68},{"$f":"'BP Financier'!$E$33*(('BP Financier'!$C$16+'BP Financier'!$D$16+'BP Financier'!$E$16)/('BP Financier'!$C$16+'BP Financier'!$C$19+'BP Financier'!$D$16+'BP Financier'!$D$19+'BP Financier'!$E$16+'BP Financier'!$E$19))*V4130","v":{"v":2356786.6864833417,"d":"2,356,787"}},{"v":1321796.0521260567,"d":"1,321,796"},{"$f":"'BP Financier'!$E$44*(('BP Financier'!$C$16+'BP Financier'!$D$16+'BP Financier'!$E$16)/('BP Financier'!$C$16+'BP Financier'!$C$19+'BP Financier'!$D$16+'BP Financier'!$D$19+'BP Financier'!$E$16+'BP Financier'!$E$19+'BP Financier'!$C$22+'BP Financier'!$D$22+'BP Financier'!$E$22))*$V4130*X4130/(1-$W4130)","v":{"v":168245.48905401988,"d":"168,245"}},{"$f":"'BP Financier'!$E$44*(('BP Financier'!$C$16+'BP Financier'!$D$16+'BP Financier'!$E$16)/('BP Financier'!$C$16+'BP Financier'!$C$19+'BP Financier'!$D$16+'BP Financier'!$D$19+'BP Financier'!$E$16+'BP Financier'!$E$19+'BP Financier'!$C$22+'BP Financier'!$D$22+'BP Financier'!$E$22))*$V4130*Y4130/(1-$W4130)","v":{"v":112473.50373224531,"d":"112,474"}},{"$f":"'BP Financier'!$E$44*(('BP Financier'!$C$16+'BP Financier'!$D$16+'BP Financier'!$E$16)/('BP Financier'!$C$16+'BP Financier'!$C$19+'BP Financier'!$D$16+'BP Financier'!$D$19+'BP Financier'!$E$16+'BP Financier'!$E$19+'BP Financier'!$C$22+'BP Financier'!$D$22+'BP Financier'!$E$22))*$V4130*Z4130/(1-$W4130)","v":{"v":880267.8349953415,"d":"880,268"}},{"$f":"'BP Financier'!$E$44*(('BP Financier'!$C$16+'BP Financier'!$D$16+'BP Financier'!$E$16)/('BP Financier'!$C$16+'BP Financier'!$C$19+'BP Financier'!$D$16+'BP Financier'!$D$19+'BP Financier'!$E$16+'BP Financier'!$E$19+'BP Financier'!$C$22+'BP Financier'!$D$22+'BP Financier'!$E$22))*$V4130*AA4130/(1-$W4130)","v":{"v":108755.37137746037,"d":"108,755"}},{"$f":"'BP Financier'!$E$44*(('BP Financier'!$C$16+'BP Financier'!$D$16+'BP Financier'!$E$16)/('BP Financier'!$C$16+'BP Financier'!$C$19+'BP Financier'!$D$16+'BP Financier'!$D$19+'BP Financier'!$E$16+'BP Financier'!$E$19+'BP Financier'!$C$22+'BP Financier'!$D$22+'BP Financier'!$E$22))*$V4130*AB4130/(1-$W4130)","v":{"v":52053.852966989565,"d":"52,054"}},null,{"v":0.01,"d":"1.00%"},{"$f":"Actif!$E$28/100","v":{"v":0.28900000000000003,"d":"28.90%"}},{"$f":"Actif!$E$30/100","v":{"v":0.09050000000000001,"d":"9.05%"}},{"$f":"Actif!$E$31/100","v":{"v":0.0605,"d":"6.05%"}},{"$f":"Actif!$E$32/100","v":{"v":0.47350000000000003,"d":"47.35%"}},{"$f":"Actif!$E$33/100","v":{"v":0.0585,"d":"5.85%"}},{"$f":"Actif!$E$29/100","v":{"v":0.027999999999999997,"d":"2.80%"}}]
[null,"#30",27,2029,"H","A_VIE",{"v":0.44999999999999996,"d":"0.45"},{"v":0.38999999999999996,"d":"0.39"},0.6,0.6,85,0,{"$f":"ROUND(Primes!$O$4*V4131,0)","v":68},{"$f":"'BP Financier'!$E$33*(('BP Financier'!$C$16+'BP Financier'!$D$16+'BP Financier'!$E$16)/('BP Financier'!$C$16+'BP Financier'!$C$19+'BP Financier'!$D$16+'BP Financier'!$D$19+'BP Financier'!$E$16+'BP Financier'!$E$19))*V4131","v":{"v":2356786.6864833417,"d":"2,356,787"}},{"v":1321796.0521260567,"d":"1,321,796"},{"$f":"'BP Financier'!$E$44*(('BP Financier'!$C$16+'BP Financier'!$D$16+'BP Financier'!$E$16)/('BP Financier'!$C$16+'BP Financier'!$C$19+'BP Financier'!$D$16+'BP Financier'!$D$19+'BP Financier'!$E$16+'BP Financier'!$E$19+'BP Financier'!$C$22+'BP Financier'!$D$22+'BP Financier'!$E$22))*$V4131*X4131/(1-$W4131)","v":{"v":168245.48905401988,"d":"168,245"}},{"$f":"'BP Financier'!$E$44*(('BP Financier'!$C$16+'BP Financier'!$D$16+'BP Financier'!$E$16)/('BP Financier'!$C$16+'BP Financier'!$C$19+'BP Financier'!$D$16+'BP Financier'!$D$19+'BP Financier'!$E$16+'BP Financier'!$E$19+'BP Financier'!$C$22+'BP Financier'!$D$22+'BP Financier'!$E$22))*$V4131*Y4131/(1-$W4131)","v":{"v":112473.50373224531,"d":"112,474"}},{"$f":"'BP Financier'!$E$44*(('BP Financier'!$C$16+'BP Financier'!$D$16+'BP Financier'!$E$16)/('BP Financier'!$C$16+'BP Financier'!$C$19+'BP Financier'!$D$16+'BP Financier'!$D$19+'BP Financier'!$E$16+'BP Financier'!$E$19+'BP Financier'!$C$22+'BP Financier'!$D$22+'BP Financier'!$E$22))*$V4131*Z4131/(1-$W4131)","v":{"v":880267.8349953415,"d":"880,268"}},{"$f":"'BP Financier'!$E$44*(('BP Financier'!$C$16+'BP Financier'!$D$16+'BP Financier'!$E$16)/('BP Financier'!$C$16+'BP Financier'!$C$19+'BP Financier'!$D$16+'BP Financier'!$D$19+'BP Financier'!$E$16+'BP Financier'!$E$19+'BP Financier'!$C$22+'BP Financier'!$D$22+'BP Financier'!$E$22))*$V4131*AA4131/(1-$W4131)","v":{"v":108755.37137746037,"d":"108,755"}},{"$f":"'BP Financier'!$E$44*(('BP Financier'!$C$16+'BP Financier'!$D$16+'BP Financier'!$E$16)/('BP Financier'!$C$16+'BP Financier'!$C$19+'BP Financier'!$D$16+'BP Financier'!$D$19+'BP Financier'!$E$16+'BP Financier'!$E$19+'BP Financier'!$C$22+'BP Financier'!$D$22+'BP Financier'!$E$22))*$V4131*AB4131/(1-$W4131)","v":{"v":52053.852966989565,"d":"52,054"}},null,{"v":0.01,"d":"1.00%"},{"$f":"Actif!$E$28/100","v":{"v":0.28900000000000003,"d":"28.90%"}},{"$f":"Actif!$E$30/100","v":{"v":0.09050000000000001,"d":"9.05%"}},{"$f":"Actif!$E$31/100","v":{"v":0.0605,"d":"6.05%"}},{"$f":"Actif!$E$32/100","v":{"v":0.47350000000000003,"d":"47.35%"}},{"$f":"Actif!$E$33/100","v":{"v":0.0585,"d":"5.85%"}},{"$f":"Actif!$E$29/100","v":{"v":0.027999999999999997,"d":"2.80%"}}]
[null,"#31",28,2026,"H","A_VIE",{"v":0.44999999999999996,"d":"0.45"},{"v":0.38999999999999996,"d":"0.39"},0.6,0.6,85,0,{"$f":"ROUND(Primes!$O$4*V4132,0)","v":68},{"$f":"'BP Financier'!$E$33*(('BP Financier'!$C$16+'BP Financier'!$D$16+'BP Financier'!$E$16)/('BP Financier'!$C$16+'BP Financier'!$C$19+'BP Financier'!$D$16+'BP Financier'!$D$19+'BP Financier'!$E$16+'BP Financier'!$E$19))*V4132","v":{"v":2356786.6864833417,"d":"2,356,787"}},{"v":1321796.0521260567,"d":"1,321,796"},{"$f":"'BP Financier'!$E$44*(('BP Financier'!$C$16+'BP Financier'!$D$16+'BP Financier'!$E$16)/('BP Financier'!$C$16+'BP Financier'!$C$19+'BP Financier'!$D$16+'BP Financier'!$D$19+'BP Financier'!$E$16+'BP Financier'!$E$19+'BP Financier'!$C$22+'BP Financier'!$D$22+'BP Financier'!$E$22))*$V4132*X4132/(1-$W4132)","v":{"v":168245.48905401988,"d":"168,245"}},{"$f":"'BP Financier'!$E$44*(('BP Financier'!$C$16+'BP Financier'!$D$16+'BP Financier'!$E$16)/('BP Financier'!$C$16+'BP Financier'!$C$19+'BP Financier'!$D$16+'BP Financier'!$D$19+'BP Financier'!$E$16+'BP Financier'!$E$19+'BP Financier'!$C$22+'BP Financier'!$D$22+'BP Financier'!$E$22))*$V4132*Y4132/(1-$W4132)","v":{"v":112473.50373224531,"d":"112,474"}},{"$f":"'BP Financier'!$E$44*(('BP Financier'!$C$16+'BP Financier'!$D$16+'BP Financier'!$E$16)/('BP Financier'!$C$16+'BP Financier'!$C$19+'BP Financier'!$D$16+'BP Financier'!$D$19+'BP Financier'!$E$16+'BP Financier'!$E$19+'BP Financier'!$C$22+'BP Financier'!$D$22+'BP Financier'!$E$22))*$V4132*Z4132/(1-$W4132)","v":{"v":880267.8349953415,"d":"880,268"}},{"$f":"'BP Financier'!$E$44*(('BP Financier'!$C$16+'BP Financier'!$D$16+'BP Financier'!$E$16)/('BP Financier'!$C$16+'BP Financier'!$C$19+'BP Financier'!$D$16+'BP Financier'!$D$19+'BP Financier'!$E$16+'BP Financier'!$E$19+'BP Financier'!$C$22+'BP Financier'!$D$22+'BP Financier'!$E$22))*$V4132*AA4132/(1-$W4132)","v":{"v":108755.37137746037,"d":"108,755"}},{"$f":"'BP Financier'!$E$44*(('BP Financier'!$C$16+'BP Financier'!$D$16+'BP Financier'!$E$16)/('BP Financier'!$C$16+'BP Financier'!$C$19+'BP Financier'!$D$16+'BP Financier'!$D$19+'BP Financier'!$E$16+'BP Financier'!$E$19+'BP Financier'!$C$22+'BP Financier'!$D$22+'BP Financier'!$E$22))*$V4132*AB4132/(1-$W4132)","v":{"v":52053.852966989565,"d":"52,054"}},null,{"v":0.01,"d":"1.00%"},{"$f":"Actif!$E$28/100","v":{"v":0.28900000000000003,"d":"28.90%"}},{"$f":"Actif!$E$30/100","v":{"v":0.09050000000000001,"d":"9.05%"}},{"$f":"Actif!$E$31/100","v":{"v":0.0605,"d":"6.05%"}},{"$f":"Actif!$E$32/100","v":{"v":0.47350000000000003,"d":"47.35%"}},{"$f":"Actif!$E$33/100","v":{"v":0.0585,"d":"5.85%"}},{"$f":"Actif!$E$29/100","v":{"v":0.027999999999999997,"d":"2.80%"}}]
[null,"#32",28,2028,"H","A_VIE",{"v":0.44999999999999996,"d":"0.45"},{"v":0.38999999999999996,"d":"0.39"},0.6,0.6,85,0,{"$f":"ROUND(Primes!$O$4*V4133,0)","v":68},{"$f":"'BP Financier'!$E$33*(('BP Financier'!$C$16+'BP Financier'!$D$16+'BP Financier'!$E$16)/('BP Financier'!$C$16+'BP Financier'!$C$19+'BP Financier'!$D$16+'BP Financier'!$D$19+'BP Financier'!$E$16+'BP Financier'!$E$19))*V4133","v":{"v":2356786.6864833417,"d":"2,356,787"}},{"v":1321796.0521260567,"d":"1,321,796"},{"$f":"'BP Financier'!$E$44*(('BP Financier'!$C$16+'BP Financier'!$D$16+'BP Financier'!$E$16)/('BP Financier'!$C$16+'BP Financier'!$C$19+'BP Financier'!$D$16+'BP Financier'!$D$19+'BP Financier'!$E$16+'BP Financier'!$E$19+'BP Financier'!$C$22+'BP Financier'!$D$22+'BP Financier'!$E$22))*$V4133*X4133/(1-$W4133)","v":{"v":168245.48905401988,"d":"168,245"}},{"$f":"'BP Financier'!$E$44*(('BP Financier'!$C$16+'BP Financier'!$D$16+'BP Financier'!$E$16)/('BP Financier'!$C$16+'BP Financier'!$C$19+'BP Financier'!$D$16+'BP Financier'!$D$19+'BP Financier'!$E$16+'BP Financier'!$E$19+'BP Financier'!$C$22+'BP Financier'!$D$22+'BP Financier'!$E$22))*$V4133*Y4133/(1-$W4133)","v":{"v":112473.50373224531,"d":"112,474"}},{"$f":"'BP Financier'!$E$44*(('BP Financier'!$C$16+'BP Financier'!$D$16+'BP Financier'!$E$16)/('BP Financier'!$C$16+'BP Financier'!$C$19+'BP Financier'!$D$16+'BP Financier'!$D$19+'BP Financier'!$E$16+'BP Financier'!$E$19+'BP Financier'!$C$22+'BP Financier'!$D$22+'BP Financier'!$E$22))*$V4133*Z4133/(1-$W4133)","v":{"v":880267.8349953415,"d":"880,268"}},{"$f":"'BP Financier'!$E$44*(('BP Financier'!$C$16+'BP Financier'!$D$16+'BP Financier'!$E$16)/('BP Financier'!$C$16+'BP Financier'!$C$19+'BP Financier'!$D$16+'BP Financier'!$D$19+'BP Financier'!$E$16+'BP Financier'!$E$19+'BP Financier'!$C$22+'BP Financier'!$D$22+'BP Financier'!$E$22))*$V4133*AA4133/(1-$W4133)","v":{"v":108755.37137746037,"d":"108,755"}},{"$f":"'BP Financier'!$E$44*(('BP Financier'!$C$16+'BP Financier'!$D$16+'BP Financier'!$E$16)/('BP Financier'!$C$16+'BP Financier'!$C$19+'BP Financier'!$D$16+'BP Financier'!$D$19+'BP Financier'!$E$16+'BP Financier'!$E$19+'BP Financier'!$C$22+'BP Financier'!$D$22+'BP Financier'!$E$22))*$V4133*AB4133/(1-$W4133)","v":{"v":52053.852966989565,"d":"52,054"}},null,{"v":0.01,"d":"1.00%"},{"$f":"Actif!$E$28/100","v":{"v":0.28900000000000003,"d":"28.90%"}},{"$f":"Actif!$E$30/100","v":{"v":0.09050000000000001,"d":"9.05%"}},{"$f":"Actif!$E$31/100","v":{"v":0.0605,"d":"6.05%"}},{"$f":"Actif!$E$32/100","v":{"v":0.47350000000000003,"d":"47.35%"}},{"$f":"Actif!$E$33/100","v":{"v":0.0585,"d":"5.85%"}},{"$f":"Actif!$E$29/100","v":{"v":0.027999999999999997,"d":"2.80%"}}]
[null,"#33",28,2029,"H","A_VIE",{"v":0.44999999999999996,"d":"0.45"},{"v":0.38999999999999996,"d":"0.39"},0.6,0.6,85,0,{"$f":"ROUND(Primes!$O$4*V4134,0)","v":68},{"$f":"'BP Financier'!$E$33*(('BP Financier'!$C$16+'BP Financier'!$D$16+'BP Financier'!$E$16)/('BP Financier'!$C$16+'BP Financier'!$C$19+'BP Financier'!$D$16+'BP Financier'!$D$19+'BP Financier'!$E$16+'BP Financier'!$E$19))*V4134","v":{"v":2356786.6864833417,"d":"2,356,787"}},{"v":1321796.0521260567,"d":"1,321,796"},{"$f":"'BP Financier'!$E$44*(('BP Financier'!$C$16+'BP Financier'!$D$16+'BP Financier'!$E$16)/('BP Financier'!$C$16+'BP Financier'!$C$19+'BP Financier'!$D$16+'BP Financier'!$D$19+'BP Financier'!$E$16+'BP Financier'!$E$19+'BP Financier'!$C$22+'BP Financier'!$D$22+'BP Financier'!$E$22))*$V4134*X4134/(1-$W4134)","v":{"v":168245.48905401988,"d":"168,245"}},{"$f":"'BP Financier'!$E$44*(('BP Financier'!$C$16+'BP Financier'!$D$16+'BP Financier'!$E$16)/('BP Financier'!$C$16+'BP Financier'!$C$19+'BP Financier'!$D$16+'BP Financier'!$D$19+'BP Financier'!$E$16+'BP Financier'!$E$19+'BP Financier'!$C$22+'BP Financier'!$D$22+'BP Financier'!$E$22))*$V4134*Y4134/(1-$W4134)","v":{"v":112473.50373224531,"d":"112,474"}},{"$f":"'BP Financier'!$E$44*(('BP Financier'!$C$16+'BP Financier'!$D$16+'BP Financier'!$E$16)/('BP Financier'!$C$16+'BP Financier'!$C$19+'BP Financier'!$D$16+'BP Financier'!$D$19+'BP Financier'!$E$16+'BP Financier'!$E$19+'BP Financier'!$C$22+'BP Financier'!$D$22+'BP Financier'!$E$22))*$V4134*Z4134/(1-$W4134)","v":{"v":880267.8349953415,"d":"880,268"}},{"$f":"'BP Financier'!$E$44*(('BP Financier'!$C$16+'BP Financier'!$D$16+'BP Financier'!$E$16)/('BP Financier'!$C$16+'BP Financier'!$C$19+'BP Financier'!$D$16+'BP Financier'!$D$19+'BP Financier'!$E$16+'BP Financier'!$E$19+'BP Financier'!$C$22+'BP Financier'!$D$22+'BP Financier'!$E$22))*$V4134*AA4134/(1-$W4134)","v":{"v":108755.37137746037,"d":"108,755"}},{"$f":"'BP Financier'!$E$44*(('BP Financier'!$C$16+'BP Financier'!$D$16+'BP Financier'!$E$16)/('BP Financier'!$C$16+'BP Financier'!$C$19+'BP Financier'!$D$16+'BP Financier'!$D$19+'BP Financier'!$E$16+'BP Financier'!$E$19+'BP Financier'!$C$22+'BP Financier'!$D$22+'BP Financier'!$E$22))*$V4134*AB4134/(1-$W4134)","v":{"v":52053.852966989565,"d":"52,054"}},null,{"v":0.01,"d":"1.00%"},{"$f":"Actif!$E$28/100","v":{"v":0.28900000000000003,"d":"28.90%"}},{"$f":"Actif!$E$30/100","v":{"v":0.09050000000000001,"d":"9.05%"}},{"$f":"Actif!$E$31/100","v":{"v":0.0605,"d":"6.05%"}},{"$f":"Actif!$E$32/100","v":{"v":0.47350000000000003,"d":"47.35%"}},{"$f":"Actif!$E$33/100","v":{"v":0.0585,"d":"5.85%"}},{"$f":"Actif!$E$29/100","v":{"v":0.027999999999999997,"d":"2.80%"}}]
[null,"#34",29,2026,"F","A_VIE",{"v":0.44999999999999996,"d":"0.45"},{"v":0.38999999999999996,"d":"0.39"},0.6,0.6,85,0,{"$f":"ROUND(Primes!$O$4*V4135,0)","v":68},{"$f":"'BP Financier'!$E$33*(('BP Financier'!$C$16+'BP Financier'!$D$16+'BP Financier'!$E$16)/('BP Financier'!$C$16+'BP Financier'!$C$19+'BP Financier'!$D$16+'BP Financier'!$D$19+'BP Financier'!$E$16+'BP Financier'!$E$19))*V4135","v":{"v":2356786.6864833417,"d":"2,356,787"}},{"v":1321796.0521260567,"d":"1,321,796"},{"$f":"'BP Financier'!$E$44*(('BP Financier'!$C$16+'BP Financier'!$D$16+'BP Financier'!$E$16)/('BP Financier'!$C$16+'BP Financier'!$C$19+'BP Financier'!$D$16+'BP Financier'!$D$19+'BP Financier'!$E$16+'BP Financier'!$E$19+'BP Financier'!$C$22+'BP Financier'!$D$22+'BP Financier'!$E$22))*$V4135*X4135/(1-$W4135)","v":{"v":168245.48905401988,"d":"168,245"}},{"$f":"'BP Financier'!$E$44*(('BP Financier'!$C$16+'BP Financier'!$D$16+'BP Financier'!$E$16)/('BP Financier'!$C$16+'BP Financier'!$C$19+'BP Financier'!$D$16+'BP Financier'!$D$19+'BP Financier'!$E$16+'BP Financier'!$E$19+'BP Financier'!$C$22+'BP Financier'!$D$22+'BP Financier'!$E$22))*$V4135*Y4135/(1-$W4135)","v":{"v":112473.50373224531,"d":"112,474"}},{"$f":"'BP Financier'!$E$44*(('BP Financier'!$C$16+'BP Financier'!$D$16+'BP Financier'!$E$16)/('BP Financier'!$C$16+'BP Financier'!$C$19+'BP Financier'!$D$16+'BP Financier'!$D$19+'BP Financier'!$E$16+'BP Financier'!$E$19+'BP Financier'!$C$22+'BP Financier'!$D$22+'BP Financier'!$E$22))*$V4135*Z4135/(1-$W4135)","v":{"v":880267.8349953415,"d":"880,268"}},{"$f":"'BP Financier'!$E$44*(('BP Financier'!$C$16+'BP Financier'!$D$16+'BP Financier'!$E$16)/('BP Financier'!$C$16+'BP Financier'!$C$19+'BP Financier'!$D$16+'BP Financier'!$D$19+'BP Financier'!$E$16+'BP Financier'!$E$19+'BP Financier'!$C$22+'BP Financier'!$D$22+'BP Financier'!$E$22))*$V4135*AA4135/(1-$W4135)","v":{"v":108755.37137746037,"d":"108,755"}},{"$f":"'BP Financier'!$E$44*(('BP Financier'!$C$16+'BP Financier'!$D$16+'BP Financier'!$E$16)/('BP Financier'!$C$16+'BP Financier'!$C$19+'BP Financier'!$D$16+'BP Financier'!$D$19+'BP Financier'!$E$16+'BP Financier'!$E$19+'BP Financier'!$C$22+'BP Financier'!$D$22+'BP Financier'!$E$22))*$V4135*AB4135/(1-$W4135)","v":{"v":52053.852966989565,"d":"52,054"}},null,{"v":0.01,"d":"1.00%"},{"$f":"Actif!$E$28/100","v":{"v":0.28900000000000003,"d":"28.90%"}},{"$f":"Actif!$E$30/100","v":{"v":0.09050000000000001,"d":"9.05%"}},{"$f":"Actif!$E$31/100","v":{"v":0.0605,"d":"6.05%"}},{"$f":"Actif!$E$32/100","v":{"v":0.47350000000000003,"d":"47.35%"}},{"$f":"Actif!$E$33/100","v":{"v":0.0585,"d":"5.85%"}},{"$f":"Actif!$E$29/100","v":{"v":0.027999999999999997,"d":"2.80%"}}]
[null,"#35",29,2028,"F","A_VIE",{"v":0.44999999999999996,"d":"0.45"},{"v":0.38999999999999996,"d":"0.39"},0.6,0.6,85,0,{"$f":"ROUND(Primes!$O$4*V4136,0)","v":68},{"$f":"'BP Financier'!$E$33*(('BP Financier'!$C$16+'BP Financier'!$D$16+'BP Financier'!$E$16)/('BP Financier'!$C$16+'BP Financier'!$C$19+'BP Financier'!$D$16+'BP Financier'!$D$19+'BP Financier'!$E$16+'BP Financier'!$E$19))*V4136","v":{"v":2356786.6864833417,"d":"2,356,787"}},{"v":1321796.0521260567,"d":"1,321,796"},{"$f":"'BP Financier'!$E$44*(('BP Financier'!$C$16+'BP Financier'!$D$16+'BP Financier'!$E$16)/('BP Financier'!$C$16+'BP Financier'!$C$19+'BP Financier'!$D$16+'BP Financier'!$D$19+'BP Financier'!$E$16+'BP Financier'!$E$19+'BP Financier'!$C$22+'BP Financier'!$D$22+'BP Financier'!$E$22))*$V4136*X4136/(1-$W4136)","v":{"v":168245.48905401988,"d":"168,245"}},{"$f":"'BP Financier'!$E$44*(('BP Financier'!$C$16+'BP Financier'!$D$16+'BP Financier'!$E$16)/('BP Financier'!$C$16+'BP Financier'!$C$19+'BP Financier'!$D$16+'BP Financier'!$D$19+'BP Financier'!$E$16+'BP Financier'!$E$19+'BP Financier'!$C$22+'BP Financier'!$D$22+'BP Financier'!$E$22))*$V4136*Y4136/(1-$W4136)","v":{"v":112473.50373224531,"d":"112,474"}},{"$f":"'BP Financier'!$E$44*(('BP Financier'!$C$16+'BP Financier'!$D$16+'BP Financier'!$E$16)/('BP Financier'!$C$16+'BP Financier'!$C$19+'BP Financier'!$D$16+'BP Financier'!$D$19+'BP Financier'!$E$16+'BP Financier'!$E$19+'BP Financier'!$C$22+'BP Financier'!$D$22+'BP Financier'!$E$22))*$V4136*Z4136/(1-$W4136)","v":{"v":880267.8349953415,"d":"880,268"}},{"$f":"'BP Financier'!$E$44*(('BP Financier'!$C$16+'BP Financier'!$D$16+'BP Financier'!$E$16)/('BP Financier'!$C$16+'BP Financier'!$C$19+'BP Financier'!$D$16+'BP Financier'!$D$19+'BP Financier'!$E$16+'BP Financier'!$E$19+'BP Financier'!$C$22+'BP Financier'!$D$22+'BP Financier'!$E$22))*$V4136*AA4136/(1-$W4136)","v":{"v":108755.37137746037,"d":"108,755"}},{"$f":"'BP Financier'!$E$44*(('BP Financier'!$C$16+'BP Financier'!$D$16+'BP Financier'!$E$16)/('BP Financier'!$C$16+'BP Financier'!$C$19+'BP Financier'!$D$16+'BP Financier'!$D$19+'BP Financier'!$E$16+'BP Financier'!$E$19+'BP Financier'!$C$22+'BP Financier'!$D$22+'BP Financier'!$E$22))*$V4136*AB4136/(1-$W4136)","v":{"v":52053.852966989565,"d":"52,054"}},null,{"v":0.01,"d":"1.00%"},{"$f":"Actif!$E$28/100","v":{"v":0.28900000000000003,"d":"28.90%"}},{"$f":"Actif!$E$30/100","v":{"v":0.09050000000000001,"d":"9.05%"}},{"$f":"Actif!$E$31/100","v":{"v":0.0605,"d":"6.05%"}},{"$f":"Actif!$E$32/100","v":{"v":0.47350000000000003,"d":"47.35%"}},{"$f":"Actif!$E$33/100","v":{"v":0.0585,"d":"5.85%"}},{"$f":"Actif!$E$29/100","v":{"v":0.027999999999999997,"d":"2.80%"}}]
[null,"#36",29,2029,"F","A_VIE",{"v":0.44999999999999996,"d":"0.45"},{"v":0.38999999999999996,"d":"0.39"},0.6,0.6,85,0,{"$f":"ROUND(Primes!$O$4*V4137,0)","v":68},{"$f":"'BP Financier'!$E$33*(('BP Financier'!$C$16+'BP Financier'!$D$16+'BP Financier'!$E$16)/('BP Financier'!$C$16+'BP Financier'!$C$19+'BP Financier'!$D$16+'BP Financier'!$D$19+'BP Financier'!$E$16+'BP Financier'!$E$19))*V4137","v":{"v":2356786.6864833417,"d":"2,356,787"}},{"v":1321796.0521260567,"d":"1,321,796"},{"$f":"'BP Financier'!$E$44*(('BP Financier'!$C$16+'BP Financier'!$D$16+'BP Financier'!$E$16)/('BP Financier'!$C$16+'BP Financier'!$C$19+'BP Financier'!$D$16+'BP Financier'!$D$19+'BP Financier'!$E$16+'BP Financier'!$E$19+'BP Financier'!$C$22+'BP Financier'!$D$22+'BP Financier'!$E$22))*$V4137*X4137/(1-$W4137)","v":{"v":168245.48905401988,"d":"168,245"}},{"$f":"'BP Financier'!$E$44*(('BP Financier'!$C$16+'BP Financier'!$D$16+'BP Financier'!$E$16)/('BP Financier'!$C$16+'BP Financier'!$C$19+'BP Financier'!$D$16+'BP Financier'!$D$19+'BP Financier'!$E$16+'BP Financier'!$E$19+'BP Financier'!$C$22+'BP Financier'!$D$22+'BP Financier'!$E$22))*$V4137*Y4137/(1-$W4137)","v":{"v":112473.50373224531,"d":"112,474"}},{"$f":"'BP Financier'!$E$44*(('BP Financier'!$C$16+'BP Financier'!$D$16+'BP Financier'!$E$16)/('BP Financier'!$C$16+'BP Financier'!$C$19+'BP Financier'!$D$16+'BP Financier'!$D$19+'BP Financier'!$E$16+'BP Financier'!$E$19+'BP Financier'!$C$22+'BP Financier'!$D$22+'BP Financier'!$E$22))*$V4137*Z4137/(1-$W4137)","v":{"v":880267.8349953415,"d":"880,268"}},{"$f":"'BP Financier'!$E$44*(('BP Financier'!$C$16+'BP Financier'!$D$16+'BP Financier'!$E$16)/('BP Financier'!$C$16+'BP Financier'!$C$19+'BP Financier'!$D$16+'BP Financier'!$D$19+'BP Financier'!$E$16+'BP Financier'!$E$19+'BP Financier'!$C$22+'BP Financier'!$D$22+'BP Financier'!$E$22))*$V4137*AA4137/(1-$W4137)","v":{"v":108755.37137746037,"d":"108,755"}},{"$f":"'BP Financier'!$E$44*(('BP Financier'!$C$16+'BP Financier'!$D$16+'BP Financier'!$E$16)/('BP Financier'!$C$16+'BP Financier'!$C$19+'BP Financier'!$D$16+'BP Financier'!$D$19+'BP Financier'!$E$16+'BP Financier'!$E$19+'BP Financier'!$C$22+'BP Financier'!$D$22+'BP Financier'!$E$22))*$V4137*AB4137/(1-$W4137)","v":{"v":52053.852966989565,"d":"52,054"}},null,{"v":0.01,"d":"1.00%"},{"$f":"Actif!$E$28/100","v":{"v":0.28900000000000003,"d":"28.90%"}},{"$f":"Actif!$E$30/100","v":{"v":0.09050000000000001,"d":"9.05%"}},{"$f":"Actif!$E$31/100","v":{"v":0.0605,"d":"6.05%"}},{"$f":"Actif!$E$32/100","v":{"v":0.47350000000000003,"d":"47.35%"}},{"$f":"Actif!$E$33/100","v":{"v":0.0585,"d":"5.85%"}},{"$f":"Actif!$E$29/100","v":{"v":0.027999999999999997,"d":"2.80%"}}]
[null,"#37",30,2026,"H","A_VIE",{"v":0.44999999999999996,"d":"0.45"},{"v":0.38999999999999996,"d":"0.39"},0.6,0.6,85,0,{"$f":"ROUND(Primes!$O$4*V4138,0)","v":68},{"$f":"'BP Financier'!$E$33*(('BP Financier'!$C$16+'BP Financier'!$D$16+'BP Financier'!$E$16)/('BP Financier'!$C$16+'BP Financier'!$C$19+'BP Financier'!$D$16+'BP Financier'!$D$19+'BP Financier'!$E$16+'BP Financier'!$E$19))*V4138","v":{"v":2356786.6864833417,"d":"2,356,787"}},{"v":1321796.0521260567,"d":"1,321,796"},{"$f":"'BP Financier'!$E$44*(('BP Financier'!$C$16+'BP Financier'!$D$16+'BP Financier'!$E$16)/('BP Financier'!$C$16+'BP Financier'!$C$19+'BP Financier'!$D$16+'BP Financier'!$D$19+'BP Financier'!$E$16+'BP Financier'!$E$19+'BP Financier'!$C$22+'BP Financier'!$D$22+'BP Financier'!$E$22))*$V4138*X4138/(1-$W4138)","v":{"v":168245.48905401988,"d":"168,245"}},{"$f":"'BP Financier'!$E$44*(('BP Financier'!$C$16+'BP Financier'!$D$16+'BP Financier'!$E$16)/('BP Financier'!$C$16+'BP Financier'!$C$19+'BP Financier'!$D$16+'BP Financier'!$D$19+'BP Financier'!$E$16+'BP Financier'!$E$19+'BP Financier'!$C$22+'BP Financier'!$D$22+'BP Financier'!$E$22))*$V4138*Y4138/(1-$W4138)","v":{"v":112473.50373224531,"d":"112,474"}},{"$f":"'BP Financier'!$E$44*(('BP Financier'!$C$16+'BP Financier'!$D$16+'BP Financier'!$E$16)/('BP Financier'!$C$16+'BP Financier'!$C$19+'BP Financier'!$D$16+'BP Financier'!$D$19+'BP Financier'!$E$16+'BP Financier'!$E$19+'BP Financier'!$C$22+'BP Financier'!$D$22+'BP Financier'!$E$22))*$V4138*Z4138/(1-$W4138)","v":{"v":880267.8349953415,"d":"880,268"}},{"$f":"'BP Financier'!$E$44*(('BP Financier'!$C$16+'BP Financier'!$D$16+'BP Financier'!$E$16)/('BP Financier'!$C$16+'BP Financier'!$C$19+'BP Financier'!$D$16+'BP Financier'!$D$19+'BP Financier'!$E$16+'BP Financier'!$E$19+'BP Financier'!$C$22+'BP Financier'!$D$22+'BP Financier'!$E$22))*$V4138*AA4138/(1-$W4138)","v":{"v":108755.37137746037,"d":"108,755"}},{"$f":"'BP Financier'!$E$44*(('BP Financier'!$C$16+'BP Financier'!$D$16+'BP Financier'!$E$16)/('BP Financier'!$C$16+'BP Financier'!$C$19+'BP Financier'!$D$16+'BP Financier'!$D$19+'BP Financier'!$E$16+'BP Financier'!$E$19+'BP Financier'!$C$22+'BP Financier'!$D$22+'BP Financier'!$E$22))*$V4138*AB4138/(1-$W4138)","v":{"v":52053.852966989565,"d":"52,054"}},null,{"v":0.01,"d":"1.00%"},{"$f":"Actif!$E$28/100","v":{"v":0.28900000000000003,"d":"28.90%"}},{"$f":"Actif!$E$30/100","v":{"v":0.09050000000000001,"d":"9.05%"}},{"$f":"Actif!$E$31/100","v":{"v":0.0605,"d":"6.05%"}},{"$f":"Actif!$E$32/100","v":{"v":0.47350000000000003,"d":"47.35%"}},{"$f":"Actif!$E$33/100","v":{"v":0.0585,"d":"5.85%"}},{"$f":"Actif!$E$29/100","v":{"v":0.027999999999999997,"d":"2.80%"}}]
[null,"#38",30,2028,"H","A_VIE",{"v":0.44999999999999996,"d":"0.45"},{"v":0.38999999999999996,"d":"0.39"},0.6,0.6,85,0,{"$f":"ROUND(Primes!$O$4*V4139,0)","v":68},{"$f":"'BP Financier'!$E$33*(('BP Financier'!$C$16+'BP Financier'!$D$16+'BP Financier'!$E$16)/('BP Financier'!$C$16+'BP Financier'!$C$19+'BP Financier'!$D$16+'BP Financier'!$D$19+'BP Financier'!$E$16+'BP Financier'!$E$19))*V4139","v":{"v":2356786.6864833417,"d":"2,356,787"}},{"v":1321796.0521260567,"d":"1,321,796"},{"$f":"'BP Financier'!$E$44*(('BP Financier'!$C$16+'BP Financier'!$D$16+'BP Financier'!$E$16)/('BP Financier'!$C$16+'BP Financier'!$C$19+'BP Financier'!$D$16+'BP Financier'!$D$19+'BP Financier'!$E$16+'BP Financier'!$E$19+'BP Financier'!$C$22+'BP Financier'!$D$22+'BP Financier'!$E$22))*$V4139*X4139/(1-$W4139)","v":{"v":168245.48905401988,"d":"168,245"}},{"$f":"'BP Financier'!$E$44*(('BP Financier'!$C$16+'BP Financier'!$D$16+'BP Financier'!$E$16)/('BP Financier'!$C$16+'BP Financier'!$C$19+'BP Financier'!$D$16+'BP Financier'!$D$19+'BP Financier'!$E$16+'BP Financier'!$E$19+'BP Financier'!$C$22+'BP Financier'!$D$22+'BP Financier'!$E$22))*$V4139*Y4139/(1-$W4139)","v":{"v":112473.50373224531,"d":"112,474"}},{"$f":"'BP Financier'!$E$44*(('BP Financier'!$C$16+'BP Financier'!$D$16+'BP Financier'!$E$16)/('BP Financier'!$C$16+'BP Financier'!$C$19+'BP Financier'!$D$16+'BP Financier'!$D$19+'BP Financier'!$E$16+'BP Financier'!$E$19+'BP Financier'!$C$22+'BP Financier'!$D$22+'BP Financier'!$E$22))*$V4139*Z4139/(1-$W4139)","v":{"v":880267.8349953415,"d":"880,268"}},{"$f":"'BP Financier'!$E$44*(('BP Financier'!$C$16+'BP Financier'!$D$16+'BP Financier'!$E$16)/('BP Financier'!$C$16+'BP Financier'!$C$19+'BP Financier'!$D$16+'BP Financier'!$D$19+'BP Financier'!$E$16+'BP Financier'!$E$19+'BP Financier'!$C$22+'BP Financier'!$D$22+'BP Financier'!$E$22))*$V4139*AA4139/(1-$W4139)","v":{"v":108755.37137746037,"d":"108,755"}},{"$f":"'BP Financier'!$E$44*(('BP Financier'!$C$16+'BP Financier'!$D$16+'BP Financier'!$E$16)/('BP Financier'!$C$16+'BP Financier'!$C$19+'BP Financier'!$D$16+'BP Financier'!$D$19+'BP Financier'!$E$16+'BP Financier'!$E$19+'BP Financier'!$C$22+'BP Financier'!$D$22+'BP Financier'!$E$22))*$V4139*AB4139/(1-$W4139)","v":{"v":52053.852966989565,"d":"52,054"}},null,{"v":0.01,"d":"1.00%"},{"$f":"Actif!$E$28/100","v":{"v":0.28900000000000003,"d":"28.90%"}},{"$f":"Actif!$E$30/100","v":{"v":0.09050000000000001,"d":"9.05%"}},{"$f":"Actif!$E$31/100","v":{"v":0.0605,"d":"6.05%"}},{"$f":"Actif!$E$32/100","v":{"v":0.47350000000000003,"d":"47.35%"}},{"$f":"Actif!$E$33/100","v":{"v":0.0585,"d":"5.85%"}},{"$f":"Actif!$E$29/100","v":{"v":0.027999999999999997,"d":"2.80%"}}]
[null,"#39",30,2029,"H","A_VIE",{"v":0.44999999999999996,"d":"0.45"},{"v":0.38999999999999996,"d":"0.39"},0.6,0.6,85,0,{"$f":"ROUND(Primes!$O$4*V4140,0)","v":68},{"$f":"'BP Financier'!$E$33*(('BP Financier'!$C$16+'BP Financier'!$D$16+'BP Financier'!$E$16)/('BP Financier'!$C$16+'BP Financier'!$C$19+'BP Financier'!$D$16+'BP Financier'!$D$19+'BP Financier'!$E$16+'BP Financier'!$E$19))*V4140","v":{"v":2356786.6864833417,"d":"2,356,787"}},{"v":1321796.0521260567,"d":"1,321,796"},{"$f":"'BP Financier'!$E$44*(('BP Financier'!$C$16+'BP Financier'!$D$16+'BP Financier'!$E$16)/('BP Financier'!$C$16+'BP Financier'!$C$19+'BP Financier'!$D$16+'BP Financier'!$D$19+'BP Financier'!$E$16+'BP Financier'!$E$19+'BP Financier'!$C$22+'BP Financier'!$D$22+'BP Financier'!$E$22))*$V4140*X4140/(1-$W4140)","v":{"v":168245.48905401988,"d":"168,245"}},{"$f":"'BP Financier'!$E$44*(('BP Financier'!$C$16+'BP Financier'!$D$16+'BP Financier'!$E$16)/('BP Financier'!$C$16+'BP Financier'!$C$19+'BP Financier'!$D$16+'BP Financier'!$D$19+'BP Financier'!$E$16+'BP Financier'!$E$19+'BP Financier'!$C$22+'BP Financier'!$D$22+'BP Financier'!$E$22))*$V4140*Y4140/(1-$W4140)","v":{"v":112473.50373224531,"d":"112,474"}},{"$f":"'BP Financier'!$E$44*(('BP Financier'!$C$16+'BP Financier'!$D$16+'BP Financier'!$E$16)/('BP Financier'!$C$16+'BP Financier'!$C$19+'BP Financier'!$D$16+'BP Financier'!$D$19+'BP Financier'!$E$16+'BP Financier'!$E$19+'BP Financier'!$C$22+'BP Financier'!$D$22+'BP Financier'!$E$22))*$V4140*Z4140/(1-$W4140)","v":{"v":880267.8349953415,"d":"880,268"}},{"$f":"'BP Financier'!$E$44*(('BP Financier'!$C$16+'BP Financier'!$D$16+'BP Financier'!$E$16)/('BP Financier'!$C$16+'BP Financier'!$C$19+'BP Financier'!$D$16+'BP Financier'!$D$19+'BP Financier'!$E$16+'BP Financier'!$E$19+'BP Financier'!$C$22+'BP Financier'!$D$22+'BP Financier'!$E$22))*$V4140*AA4140/(1-$W4140)","v":{"v":108755.37137746037,"d":"108,755"}},{"$f":"'BP Financier'!$E$44*(('BP Financier'!$C$16+'BP Financier'!$D$16+'BP Financier'!$E$16)/('BP Financier'!$C$16+'BP Financier'!$C$19+'BP Financier'!$D$16+'BP Financier'!$D$19+'BP Financier'!$E$16+'BP Financier'!$E$19+'BP Financier'!$C$22+'BP Financier'!$D$22+'BP Financier'!$E$22))*$V4140*AB4140/(1-$W4140)","v":{"v":52053.852966989565,"d":"52,054"}},null,{"v":0.01,"d":"1.00%"},{"$f":"Actif!$E$28/100","v":{"v":0.28900000000000003,"d":"28.90%"}},{"$f":"Actif!$E$30/100","v":{"v":0.09050000000000001,"d":"9.05%"}},{"$f":"Actif!$E$31/100","v":{"v":0.0605,"d":"6.05%"}},{"$f":"Actif!$E$32/100","v":{"v":0.47350000000000003,"d":"47.35%"}},{"$f":"Actif!$E$33/100","v":{"v":0.0585,"d":"5.85%"}},{"$f":"Actif!$E$29/100","v":{"v":0.027999999999999997,"d":"2.80%"}}]
[null,"#40",31,2026,"H","A_VIE",{"v":0.44999999999999996,"d":"0.45"},{"v":0.38999999999999996,"d":"0.39"},0.6,0.6,85,0,{"$f":"ROUND(Primes!$O$4*V4141,0)","v":68},{"$f":"'BP Financier'!$E$33*(('BP Financier'!$C$16+'BP Financier'!$D$16+'BP Financier'!$E$16)/('BP Financier'!$C$16+'BP Financier'!$C$19+'BP Financier'!$D$16+'BP Financier'!$D$19+'BP Financier'!$E$16+'BP Financier'!$E$19))*V4141","v":{"v":2356786.6864833417,"d":"2,356,787"}},{"v":1321796.0521260567,"d":"1,321,796"},{"$f":"'BP Financier'!$E$44*(('BP Financier'!$C$16+'BP Financier'!$D$16+'BP Financier'!$E$16)/('BP Financier'!$C$16+'BP Financier'!$C$19+'BP Financier'!$D$16+'BP Financier'!$D$19+'BP Financier'!$E$16+'BP Financier'!$E$19+'BP Financier'!$C$22+'BP Financier'!$D$22+'BP Financier'!$E$22))*$V4141*X4141/(1-$W4141)","v":{"v":168245.48905401988,"d":"168,245"}},{"$f":"'BP Financier'!$E$44*(('BP Financier'!$C$16+'BP Financier'!$D$16+'BP Financier'!$E$16)/('BP Financier'!$C$16+'BP Financier'!$C$19+'BP Financier'!$D$16+'BP Financier'!$D$19+'BP Financier'!$E$16+'BP Financier'!$E$19+'BP Financier'!$C$22+'BP Financier'!$D$22+'BP Financier'!$E$22))*$V4141*Y4141/(1-$W4141)","v":{"v":112473.50373224531,"d":"112,474"}},{"$f":"'BP Financier'!$E$44*(('BP Financier'!$C$16+'BP Financier'!$D$16+'BP Financier'!$E$16)/('BP Financier'!$C$16+'BP Financier'!$C$19+'BP Financier'!$D$16+'BP Financier'!$D$19+'BP Financier'!$E$16+'BP Financier'!$E$19+'BP Financier'!$C$22+'BP Financier'!$D$22+'BP Financier'!$E$22))*$V4141*Z4141/(1-$W4141)","v":{"v":880267.8349953415,"d":"880,268"}},{"$f":"'BP Financier'!$E$44*(('BP Financier'!$C$16+'BP Financier'!$D$16+'BP Financier'!$E$16)/('BP Financier'!$C$16+'BP Financier'!$C$19+'BP Financier'!$D$16+'BP Financier'!$D$19+'BP Financier'!$E$16+'BP Financier'!$E$19+'BP Financier'!$C$22+'BP Financier'!$D$22+'BP Financier'!$E$22))*$V4141*AA4141/(1-$W4141)","v":{"v":108755.37137746037,"d":"108,755"}},{"$f":"'BP Financier'!$E$44*(('BP Financier'!$C$16+'BP Financier'!$D$16+'BP Financier'!$E$16)/('BP Financier'!$C$16+'BP Financier'!$C$19+'BP Financier'!$D$16+'BP Financier'!$D$19+'BP Financier'!$E$16+'BP Financier'!$E$19+'BP Financier'!$C$22+'BP Financier'!$D$22+'BP Financier'!$E$22))*$V4141*AB4141/(1-$W4141)","v":{"v":52053.852966989565,"d":"52,054"}},null,{"v":0.01,"d":"1.00%"},{"$f":"Actif!$E$28/100","v":{"v":0.28900000000000003,"d":"28.90%"}},{"$f":"Actif!$E$30/100","v":{"v":0.09050000000000001,"d":"9.05%"}},{"$f":"Actif!$E$31/100","v":{"v":0.0605,"d":"6.05%"}},{"$f":"Actif!$E$32/100","v":{"v":0.47350000000000003,"d":"47.35%"}},{"$f":"Actif!$E$33/100","v":{"v":0.0585,"d":"5.85%"}},{"$f":"Actif!$E$29/100","v":{"v":0.027999999999999997,"d":"2.80%"}}]
[null,"#41",31,2028,"H","A_VIE",{"v":0.44999999999999996,"d":"0.45"},{"v":0.38999999999999996,"d":"0.39"},0.6,0.6,85,0,{"$f":"ROUND(Primes!$O$4*V4142,0)","v":68},{"$f":"'BP Financier'!$E$33*(('BP Financier'!$C$16+'BP Financier'!$D$16+'BP Financier'!$E$16)/('BP Financier'!$C$16+'BP Financier'!$C$19+'BP Financier'!$D$16+'BP Financier'!$D$19+'BP Financier'!$E$16+'BP Financier'!$E$19))*V4142","v":{"v":2356786.6864833417,"d":"2,356,787"}},{"v":1321796.0521260567,"d":"1,321,796"},{"$f":"'BP Financier'!$E$44*(('BP Financier'!$C$16+'BP Financier'!$D$16+'BP Financier'!$E$16)/('BP Financier'!$C$16+'BP Financier'!$C$19+'BP Financier'!$D$16+'BP Financier'!$D$19+'BP Financier'!$E$16+'BP Financier'!$E$19+'BP Financier'!$C$22+'BP Financier'!$D$22+'BP Financier'!$E$22))*$V4142*X4142/(1-$W4142)","v":{"v":168245.48905401988,"d":"168,245"}},{"$f":"'BP Financier'!$E$44*(('BP Financier'!$C$16+'BP Financier'!$D$16+'BP Financier'!$E$16)/('BP Financier'!$C$16+'BP Financier'!$C$19+'BP Financier'!$D$16+'BP Financier'!$D$19+'BP Financier'!$E$16+'BP Financier'!$E$19+'BP Financier'!$C$22+'BP Financier'!$D$22+'BP Financier'!$E$22))*$V4142*Y4142/(1-$W4142)","v":{"v":112473.50373224531,"d":"112,474"}},{"$f":"'BP Financier'!$E$44*(('BP Financier'!$C$16+'BP Financier'!$D$16+'BP Financier'!$E$16)/('BP Financier'!$C$16+'BP Financier'!$C$19+'BP Financier'!$D$16+'BP Financier'!$D$19+'BP Financier'!$E$16+'BP Financier'!$E$19+'BP Financier'!$C$22+'BP Financier'!$D$22+'BP Financier'!$E$22))*$V4142*Z4142/(1-$W4142)","v":{"v":880267.8349953415,"d":"880,268"}},{"$f":"'BP Financier'!$E$44*(('BP Financier'!$C$16+'BP Financier'!$D$16+'BP Financier'!$E$16)/('BP Financier'!$C$16+'BP Financier'!$C$19+'BP Financier'!$D$16+'BP Financier'!$D$19+'BP Financier'!$E$16+'BP Financier'!$E$19+'BP Financier'!$C$22+'BP Financier'!$D$22+'BP Financier'!$E$22))*$V4142*AA4142/(1-$W4142)","v":{"v":108755.37137746037,"d":"108,755"}},{"$f":"'BP Financier'!$E$44*(('BP Financier'!$C$16+'BP Financier'!$D$16+'BP Financier'!$E$16)/('BP Financier'!$C$16+'BP Financier'!$C$19+'BP Financier'!$D$16+'BP Financier'!$D$19+'BP Financier'!$E$16+'BP Financier'!$E$19+'BP Financier'!$C$22+'BP Financier'!$D$22+'BP Financier'!$E$22))*$V4142*AB4142/(1-$W4142)","v":{"v":52053.852966989565,"d":"52,054"}},null,{"v":0.01,"d":"1.00%"},{"$f":"Actif!$E$28/100","v":{"v":0.28900000000000003,"d":"28.90%"}},{"$f":"Actif!$E$30/100","v":{"v":0.09050000000000001,"d":"9.05%"}},{"$f":"Actif!$E$31/100","v":{"v":0.0605,"d":"6.05%"}},{"$f":"Actif!$E$32/100","v":{"v":0.47350000000000003,"d":"47.35%"}},{"$f":"Actif!$E$33/100","v":{"v":0.0585,"d":"5.85%"}},{"$f":"Actif!$E$29/100","v":{"v":0.027999999999999997,"d":"2.80%"}}]
[null,"#42",31,2029,"H","A_VIE",{"v":0.44999999999999996,"d":"0.45"},{"v":0.38999999999999996,"d":"0.39"},0.6,0.6,85,0,{"$f":"ROUND(Primes!$O$4*V4143,0)","v":68},{"$f":"'BP Financier'!$E$33*(('BP Financier'!$C$16+'BP Financier'!$D$16+'BP Financier'!$E$16)/('BP Financier'!$C$16+'BP Financier'!$C$19+'BP Financier'!$D$16+'BP Financier'!$D$19+'BP Financier'!$E$16+'BP Financier'!$E$19))*V4143","v":{"v":2356786.6864833417,"d":"2,356,787"}},{"v":1321796.0521260567,"d":"1,321,796"},{"$f":"'BP Financier'!$E$44*(('BP Financier'!$C$16+'BP Financier'!$D$16+'BP Financier'!$E$16)/('BP Financier'!$C$16+'BP Financier'!$C$19+'BP Financier'!$D$16+'BP Financier'!$D$19+'BP Financier'!$E$16+'BP Financier'!$E$19+'BP Financier'!$C$22+'BP Financier'!$D$22+'BP Financier'!$E$22))*$V4143*X4143/(1-$W4143)","v":{"v":168245.48905401988,"d":"168,245"}},{"$f":"'BP Financier'!$E$44*(('BP Financier'!$C$16+'BP Financier'!$D$16+'BP Financier'!$E$16)/('BP Financier'!$C$16+'BP Financier'!$C$19+'BP Financier'!$D$16+'BP Financier'!$D$19+'BP Financier'!$E$16+'BP Financier'!$E$19+'BP Financier'!$C$22+'BP Financier'!$D$22+'BP Financier'!$E$22))*$V4143*Y4143/(1-$W4143)","v":{"v":112473.50373224531,"d":"112,474"}},{"$f":"'BP Financier'!$E$44*(('BP Financier'!$C$16+'BP Financier'!$D$16+'BP Financier'!$E$16)/('BP Financier'!$C$16+'BP Financier'!$C$19+'BP Financier'!$D$16+'BP Financier'!$D$19+'BP Financier'!$E$16+'BP Financier'!$E$19+'BP Financier'!$C$22+'BP Financier'!$D$22+'BP Financier'!$E$22))*$V4143*Z4143/(1-$W4143)","v":{"v":880267.8349953415,"d":"880,268"}},{"$f":"'BP Financier'!$E$44*(('BP Financier'!$C$16+'BP Financier'!$D$16+'BP Financier'!$E$16)/('BP Financier'!$C$16+'BP Financier'!$C$19+'BP Financier'!$D$16+'BP Financier'!$D$19+'BP Financier'!$E$16+'BP Financier'!$E$19+'BP Financier'!$C$22+'BP Financier'!$D$22+'BP Financier'!$E$22))*$V4143*AA4143/(1-$W4143)","v":{"v":108755.37137746037,"d":"108,755"}},{"$f":"'BP Financier'!$E$44*(('BP Financier'!$C$16+'BP Financier'!$D$16+'BP Financier'!$E$16)/('BP Financier'!$C$16+'BP Financier'!$C$19+'BP Financier'!$D$16+'BP Financier'!$D$19+'BP Financier'!$E$16+'BP Financier'!$E$19+'BP Financier'!$C$22+'BP Financier'!$D$22+'BP Financier'!$E$22))*$V4143*AB4143/(1-$W4143)","v":{"v":52053.852966989565,"d":"52,054"}},null,{"v":0.01,"d":"1.00%"},{"$f":"Actif!$E$28/100","v":{"v":0.28900000000000003,"d":"28.90%"}},{"$f":"Actif!$E$30/100","v":{"v":0.09050000000000001,"d":"9.05%"}},{"$f":"Actif!$E$31/100","v":{"v":0.0605,"d":"6.05%"}},{"$f":"Actif!$E$32/100","v":{"v":0.47350000000000003,"d":"47.35%"}},{"$f":"Actif!$E$33/100","v":{"v":0.0585,"d":"5.85%"}},{"$f":"Actif!$E$29/100","v":{"v":0.027999999999999997,"d":"2.80%"}}]
[null,"#43",32,2026,"F","A_VIE",{"v":0.44999999999999996,"d":"0.45"},{"v":0.38999999999999996,"d":"0.39"},0.6,0.6,85,0,{"$f":"ROUND(Primes!$O$4*V4144,0)","v":68},{"$f":"'BP Financier'!$E$33*(('BP Financier'!$C$16+'BP Financier'!$D$16+'BP Financier'!$E$16)/('BP Financier'!$C$16+'BP Financier'!$C$19+'BP Financier'!$D$16+'BP Financier'!$D$19+'BP Financier'!$E$16+'BP Financier'!$E$19))*V4144","v":{"v":2356786.6864833417,"d":"2,356,787"}},{"v":1321796.0521260567,"d":"1,321,796"},{"$f":"'BP Financier'!$E$44*(('BP Financier'!$C$16+'BP Financier'!$D$16+'BP Financier'!$E$16)/('BP Financier'!$C$16+'BP Financier'!$C$19+'BP Financier'!$D$16+'BP Financier'!$D$19+'BP Financier'!$E$16+'BP Financier'!$E$19+'BP Financier'!$C$22+'BP Financier'!$D$22+'BP Financier'!$E$22))*$V4144*X4144/(1-$W4144)","v":{"v":168245.48905401988,"d":"168,245"}},{"$f":"'BP Financier'!$E$44*(('BP Financier'!$C$16+'BP Financier'!$D$16+'BP Financier'!$E$16)/('BP Financier'!$C$16+'BP Financier'!$C$19+'BP Financier'!$D$16+'BP Financier'!$D$19+'BP Financier'!$E$16+'BP Financier'!$E$19+'BP Financier'!$C$22+'BP Financier'!$D$22+'BP Financier'!$E$22))*$V4144*Y4144/(1-$W4144)","v":{"v":112473.50373224531,"d":"112,474"}},{"$f":"'BP Financier'!$E$44*(('BP Financier'!$C$16+'BP Financier'!$D$16+'BP Financier'!$E$16)/('BP Financier'!$C$16+'BP Financier'!$C$19+'BP Financier'!$D$16+'BP Financier'!$D$19+'BP Financier'!$E$16+'BP Financier'!$E$19+'BP Financier'!$C$22+'BP Financier'!$D$22+'BP Financier'!$E$22))*$V4144*Z4144/(1-$W4144)","v":{"v":880267.8349953415,"d":"880,268"}},{"$f":"'BP Financier'!$E$44*(('BP Financier'!$C$16+'BP Financier'!$D$16+'BP Financier'!$E$16)/('BP Financier'!$C$16+'BP Financier'!$C$19+'BP Financier'!$D$16+'BP Financier'!$D$19+'BP Financier'!$E$16+'BP Financier'!$E$19+'BP Financier'!$C$22+'BP Financier'!$D$22+'BP Financier'!$E$22))*$V4144*AA4144/(1-$W4144)","v":{"v":108755.37137746037,"d":"108,755"}},{"$f":"'BP Financier'!$E$44*(('BP Financier'!$C$16+'BP Financier'!$D$16+'BP Financier'!$E$16)/('BP Financier'!$C$16+'BP Financier'!$C$19+'BP Financier'!$D$16+'BP Financier'!$D$19+'BP Financier'!$E$16+'BP Financier'!$E$19+'BP Financier'!$C$22+'BP Financier'!$D$22+'BP Financier'!$E$22))*$V4144*AB4144/(1-$W4144)","v":{"v":52053.852966989565,"d":"52,054"}},null,{"v":0.01,"d":"1.00%"},{"$f":"Actif!$E$28/100","v":{"v":0.28900000000000003,"d":"28.90%"}},{"$f":"Actif!$E$30/100","v":{"v":0.09050000000000001,"d":"9.05%"}},{"$f":"Actif!$E$31/100","v":{"v":0.0605,"d":"6.05%"}},{"$f":"Actif!$E$32/100","v":{"v":0.47350000000000003,"d":"47.35%"}},{"$f":"Actif!$E$33/100","v":{"v":0.0585,"d":"5.85%"}},{"$f":"Actif!$E$29/100","v":{"v":0.027999999999999997,"d":"2.80%"}}]
[null,"#44",32,2028,"F","A_VIE",{"v":0.44999999999999996,"d":"0.45"},{"v":0.38999999999999996,"d":"0.39"},0.6,0.6,85,0,{"$f":"ROUND(Primes!$O$4*V4145,0)","v":68},{"$f":"'BP Financier'!$E$33*(('BP Financier'!$C$16+'BP Financier'!$D$16+'BP Financier'!$E$16)/('BP Financier'!$C$16+'BP Financier'!$C$19+'BP Financier'!$D$16+'BP Financier'!$D$19+'BP Financier'!$E$16+'BP Financier'!$E$19))*V4145","v":{"v":2356786.6864833417,"d":"2,356,787"}},{"v":1321796.0521260567,"d":"1,321,796"},{"$f":"'BP Financier'!$E$44*(('BP Financier'!$C$16+'BP Financier'!$D$16+'BP Financier'!$E$16)/('BP Financier'!$C$16+'BP Financier'!$C$19+'BP Financier'!$D$16+'BP Financier'!$D$19+'BP Financier'!$E$16+'BP Financier'!$E$19+'BP Financier'!$C$22+'BP Financier'!$D$22+'BP Financier'!$E$22))*$V4145*X4145/(1-$W4145)","v":{"v":168245.48905401988,"d":"168,245"}},{"$f":"'BP Financier'!$E$44*(('BP Financier'!$C$16+'BP Financier'!$D$16+'BP Financier'!$E$16)/('BP Financier'!$C$16+'BP Financier'!$C$19+'BP Financier'!$D$16+'BP Financier'!$D$19+'BP Financier'!$E$16+'BP Financier'!$E$19+'BP Financier'!$C$22+'BP Financier'!$D$22+'BP Financier'!$E$22))*$V4145*Y4145/(1-$W4145)","v":{"v":112473.50373224531,"d":"112,474"}},{"$f":"'BP Financier'!$E$44*(('BP Financier'!$C$16+'BP Financier'!$D$16+'BP Financier'!$E$16)/('BP Financier'!$C$16+'BP Financier'!$C$19+'BP Financier'!$D$16+'BP Financier'!$D$19+'BP Financier'!$E$16+'BP Financier'!$E$19+'BP Financier'!$C$22+'BP Financier'!$D$22+'BP Financier'!$E$22))*$V4145*Z4145/(1-$W4145)","v":{"v":880267.8349953415,"d":"880,268"}},{"$f":"'BP Financier'!$E$44*(('BP Financier'!$C$16+'BP Financier'!$D$16+'BP Financier'!$E$16)/('BP Financier'!$C$16+'BP Financier'!$C$19+'BP Financier'!$D$16+'BP Financier'!$D$19+'BP Financier'!$E$16+'BP Financier'!$E$19+'BP Financier'!$C$22+'BP Financier'!$D$22+'BP Financier'!$E$22))*$V4145*AA4145/(1-$W4145)","v":{"v":108755.37137746037,"d":"108,755"}},{"$f":"'BP Financier'!$E$44*(('BP Financier'!$C$16+'BP Financier'!$D$16+'BP Financier'!$E$16)/('BP Financier'!$C$16+'BP Financier'!$C$19+'BP Financier'!$D$16+'BP Financier'!$D$19+'BP Financier'!$E$16+'BP Financier'!$E$19+'BP Financier'!$C$22+'BP Financier'!$D$22+'BP Financier'!$E$22))*$V4145*AB4145/(1-$W4145)","v":{"v":52053.852966989565,"d":"52,054"}},null,{"v":0.01,"d":"1.00%"},{"$f":"Actif!$E$28/100","v":{"v":0.28900000000000003,"d":"28.90%"}},{"$f":"Actif!$E$30/100","v":{"v":0.09050000000000001,"d":"9.05%"}},{"$f":"Actif!$E$31/100","v":{"v":0.0605,"d":"6.05%"}},{"$f":"Actif!$E$32/100","v":{"v":0.47350000000000003,"d":"47.35%"}},{"$f":"Actif!$E$33/100","v":{"v":0.0585,"d":"5.85%"}},{"$f":"Actif!$E$29/100","v":{"v":0.027999999999999997,"d":"2.80%"}}]
[null,"#45",32,2029,"F","A_VIE",{"v":0.44999999999999996,"d":"0.45"},{"v":0.38999999999999996,"d":"0.39"},0.6,0.6,85,0,{"$f":"ROUND(Primes!$O$4*V4146,0)","v":68},{"$f":"'BP Financier'!$E$33*(('BP Financier'!$C$16+'BP Financier'!$D$16+'BP Financier'!$E$16)/('BP Financier'!$C$16+'BP Financier'!$C$19+'BP Financier'!$D$16+'BP Financier'!$D$19+'BP Financier'!$E$16+'BP Financier'!$E$19))*V4146","v":{"v":2356786.6864833417,"d":"2,356,787"}},{"v":1321796.0521260567,"d":"1,321,796"},{"$f":"'BP Financier'!$E$44*(('BP Financier'!$C$16+'BP Financier'!$D$16+'BP Financier'!$E$16)/('BP Financier'!$C$16+'BP Financier'!$C$19+'BP Financier'!$D$16+'BP Financier'!$D$19+'BP Financier'!$E$16+'BP Financier'!$E$19+'BP Financier'!$C$22+'BP Financier'!$D$22+'BP Financier'!$E$22))*$V4146*X4146/(1-$W4146)","v":{"v":168245.48905401988,"d":"168,245"}},{"$f":"'BP Financier'!$E$44*(('BP Financier'!$C$16+'BP Financier'!$D$16+'BP Financier'!$E$16)/('BP Financier'!$C$16+'BP Financier'!$C$19+'BP Financier'!$D$16+'BP Financier'!$D$19+'BP Financier'!$E$16+'BP Financier'!$E$19+'BP Financier'!$C$22+'BP Financier'!$D$22+'BP Financier'!$E$22))*$V4146*Y4146/(1-$W4146)","v":{"v":112473.50373224531,"d":"112,474"}},{"$f":"'BP Financier'!$E$44*(('BP Financier'!$C$16+'BP Financier'!$D$16+'BP Financier'!$E$16)/('BP Financier'!$C$16+'BP Financier'!$C$19+'BP Financier'!$D$16+'BP Financier'!$D$19+'BP Financier'!$E$16+'BP Financier'!$E$19+'BP Financier'!$C$22+'BP Financier'!$D$22+'BP Financier'!$E$22))*$V4146*Z4146/(1-$W4146)","v":{"v":880267.8349953415,"d":"880,268"}},{"$f":"'BP Financier'!$E$44*(('BP Financier'!$C$16+'BP Financier'!$D$16+'BP Financier'!$E$16)/('BP Financier'!$C$16+'BP Financier'!$C$19+'BP Financier'!$D$16+'BP Financier'!$D$19+'BP Financier'!$E$16+'BP Financier'!$E$19+'BP Financier'!$C$22+'BP Financier'!$D$22+'BP Financier'!$E$22))*$V4146*AA4146/(1-$W4146)","v":{"v":108755.37137746037,"d":"108,755"}},{"$f":"'BP Financier'!$E$44*(('BP Financier'!$C$16+'BP Financier'!$D$16+'BP Financier'!$E$16)/('BP Financier'!$C$16+'BP Financier'!$C$19+'BP Financier'!$D$16+'BP Financier'!$D$19+'BP Financier'!$E$16+'BP Financier'!$E$19+'BP Financier'!$C$22+'BP Financier'!$D$22+'BP Financier'!$E$22))*$V4146*AB4146/(1-$W4146)","v":{"v":52053.852966989565,"d":"52,054"}},null,{"v":0.01,"d":"1.00%"},{"$f":"Actif!$E$28/100","v":{"v":0.28900000000000003,"d":"28.90%"}},{"$f":"Actif!$E$30/100","v":{"v":0.09050000000000001,"d":"9.05%"}},{"$f":"Actif!$E$31/100","v":{"v":0.0605,"d":"6.05%"}},{"$f":"Actif!$E$32/100","v":{"v":0.47350000000000003,"d":"47.35%"}},{"$f":"Actif!$E$33/100","v":{"v":0.0585,"d":"5.85%"}},{"$f":"Actif!$E$29/100","v":{"v":0.027999999999999997,"d":"2.80%"}}]
[null,"#46",33,2026,"H","A_VIE",{"v":0.44999999999999996,"d":"0.45"},{"v":0.38999999999999996,"d":"0.39"},0.6,0.6,85,0,{"$f":"ROUND(Primes!$O$4*V4147,0)","v":68},{"$f":"'BP Financier'!$E$33*(('BP Financier'!$C$16+'BP Financier'!$D$16+'BP Financier'!$E$16)/('BP Financier'!$C$16+'BP Financier'!$C$19+'BP Financier'!$D$16+'BP Financier'!$D$19+'BP Financier'!$E$16+'BP Financier'!$E$19))*V4147","v":{"v":2356786.6864833417,"d":"2,356,787"}},{"v":1321796.0521260567,"d":"1,321,796"},{"$f":"'BP Financier'!$E$44*(('BP Financier'!$C$16+'BP Financier'!$D$16+'BP Financier'!$E$16)/('BP Financier'!$C$16+'BP Financier'!$C$19+'BP Financier'!$D$16+'BP Financier'!$D$19+'BP Financier'!$E$16+'BP Financier'!$E$19+'BP Financier'!$C$22+'BP Financier'!$D$22+'BP Financier'!$E$22))*$V4147*X4147/(1-$W4147)","v":{"v":168245.48905401988,"d":"168,245"}},{"$f":"'BP Financier'!$E$44*(('BP Financier'!$C$16+'BP Financier'!$D$16+'BP Financier'!$E$16)/('BP Financier'!$C$16+'BP Financier'!$C$19+'BP Financier'!$D$16+'BP Financier'!$D$19+'BP Financier'!$E$16+'BP Financier'!$E$19+'BP Financier'!$C$22+'BP Financier'!$D$22+'BP Financier'!$E$22))*$V4147*Y4147/(1-$W4147)","v":{"v":112473.50373224531,"d":"112,474"}},{"$f":"'BP Financier'!$E$44*(('BP Financier'!$C$16+'BP Financier'!$D$16+'BP Financier'!$E$16)/('BP Financier'!$C$16+'BP Financier'!$C$19+'BP Financier'!$D$16+'BP Financier'!$D$19+'BP Financier'!$E$16+'BP Financier'!$E$19+'BP Financier'!$C$22+'BP Financier'!$D$22+'BP Financier'!$E$22))*$V4147*Z4147/(1-$W4147)","v":{"v":880267.8349953415,"d":"880,268"}},{"$f":"'BP Financier'!$E$44*(('BP Financier'!$C$16+'BP Financier'!$D$16+'BP Financier'!$E$16)/('BP Financier'!$C$16+'BP Financier'!$C$19+'BP Financier'!$D$16+'BP Financier'!$D$19+'BP Financier'!$E$16+'BP Financier'!$E$19+'BP Financier'!$C$22+'BP Financier'!$D$22+'BP Financier'!$E$22))*$V4147*AA4147/(1-$W4147)","v":{"v":108755.37137746037,"d":"108,755"}},{"$f":"'BP Financier'!$E$44*(('BP Financier'!$C$16+'BP Financier'!$D$16+'BP Financier'!$E$16)/('BP Financier'!$C$16+'BP Financier'!$C$19+'BP Financier'!$D$16+'BP Financier'!$D$19+'BP Financier'!$E$16+'BP Financier'!$E$19+'BP Financier'!$C$22+'BP Financier'!$D$22+'BP Financier'!$E$22))*$V4147*AB4147/(1-$W4147)","v":{"v":52053.852966989565,"d":"52,054"}},null,{"v":0.01,"d":"1.00%"},{"$f":"Actif!$E$28/100","v":{"v":0.28900000000000003,"d":"28.90%"}},{"$f":"Actif!$E$30/100","v":{"v":0.09050000000000001,"d":"9.05%"}},{"$f":"Actif!$E$31/100","v":{"v":0.0605,"d":"6.05%"}},{"$f":"Actif!$E$32/100","v":{"v":0.47350000000000003,"d":"47.35%"}},{"$f":"Actif!$E$33/100","v":{"v":0.0585,"d":"5.85%"}},{"$f":"Actif!$E$29/100","v":{"v":0.027999999999999997,"d":"2.80%"}}]
[null,"#47",33,2028,"H","A_VIE",{"v":0.44999999999999996,"d":"0.45"},{"v":0.38999999999999996,"d":"0.39"},0.6,0.6,85,0,{"$f":"ROUND(Primes!$O$4*V4148,0)","v":68},{"$f":"'BP Financier'!$E$33*(('BP Financier'!$C$16+'BP Financier'!$D$16+'BP Financier'!$E$16)/('BP Financier'!$C$16+'BP Financier'!$C$19+'BP Financier'!$D$16+'BP Financier'!$D$19+'BP Financier'!$E$16+'BP Financier'!$E$19))*V4148","v":{"v":2356786.6864833417,"d":"2,356,787"}},{"v":1321796.0521260567,"d":"1,321,796"},{"$f":"'BP Financier'!$E$44*(('BP Financier'!$C$16+'BP Financier'!$D$16+'BP Financier'!$E$16)/('BP Financier'!$C$16+'BP Financier'!$C$19+'BP Financier'!$D$16+'BP Financier'!$D$19+'BP Financier'!$E$16+'BP Financier'!$E$19+'BP Financier'!$C$22+'BP Financier'!$D$22+'BP Financier'!$E$22))*$V4148*X4148/(1-$W4148)","v":{"v":168245.48905401988,"d":"168,245"}},{"$f":"'BP Financier'!$E$44*(('BP Financier'!$C$16+'BP Financier'!$D$16+'BP Financier'!$E$16)/('BP Financier'!$C$16+'BP Financier'!$C$19+'BP Financier'!$D$16+'BP Financier'!$D$19+'BP Financier'!$E$16+'BP Financier'!$E$19+'BP Financier'!$C$22+'BP Financier'!$D$22+'BP Financier'!$E$22))*$V4148*Y4148/(1-$W4148)","v":{"v":112473.50373224531,"d":"112,474"}},{"$f":"'BP Financier'!$E$44*(('BP Financier'!$C$16+'BP Financier'!$D$16+'BP Financier'!$E$16)/('BP Financier'!$C$16+'BP Financier'!$C$19+'BP Financier'!$D$16+'BP Financier'!$D$19+'BP Financier'!$E$16+'BP Financier'!$E$19+'BP Financier'!$C$22+'BP Financier'!$D$22+'BP Financier'!$E$22))*$V4148*Z4148/(1-$W4148)","v":{"v":880267.8349953415,"d":"880,268"}},{"$f":"'BP Financier'!$E$44*(('BP Financier'!$C$16+'BP Financier'!$D$16+'BP Financier'!$E$16)/('BP Financier'!$C$16+'BP Financier'!$C$19+'BP Financier'!$D$16+'BP Financier'!$D$19+'BP Financier'!$E$16+'BP Financier'!$E$19+'BP Financier'!$C$22+'BP Financier'!$D$22+'BP Financier'!$E$22))*$V4148*AA4148/(1-$W4148)","v":{"v":108755.37137746037,"d":"108,755"}},{"$f":"'BP Financier'!$E$44*(('BP Financier'!$C$16+'BP Financier'!$D$16+'BP Financier'!$E$16)/('BP Financier'!$C$16+'BP Financier'!$C$19+'BP Financier'!$D$16+'BP Financier'!$D$19+'BP Financier'!$E$16+'BP Financier'!$E$19+'BP Financier'!$C$22+'BP Financier'!$D$22+'BP Financier'!$E$22))*$V4148*AB4148/(1-$W4148)","v":{"v":52053.852966989565,"d":"52,054"}},null,{"v":0.01,"d":"1.00%"},{"$f":"Actif!$E$28/100","v":{"v":0.28900000000000003,"d":"28.90%"}},{"$f":"Actif!$E$30/100","v":{"v":0.09050000000000001,"d":"9.05%"}},{"$f":"Actif!$E$31/100","v":{"v":0.0605,"d":"6.05%"}},{"$f":"Actif!$E$32/100","v":{"v":0.47350000000000003,"d":"47.35%"}},{"$f":"Actif!$E$33/100","v":{"v":0.0585,"d":"5.85%"}},{"$f":"Actif!$E$29/100","v":{"v":0.027999999999999997,"d":"2.80%"}}]
[null,"#48",33,2029,"H","A_VIE",{"v":0.44999999999999996,"d":"0.45"},{"v":0.38999999999999996,"d":"0.39"},0.6,0.6,85,0,{"$f":"ROUND(Primes!$O$4*V4149,0)","v":68},{"$f":"'BP Financier'!$E$33*(('BP Financier'!$C$16+'BP Financier'!$D$16+'BP Financier'!$E$16)/('BP Financier'!$C$16+'BP Financier'!$C$19+'BP Financier'!$D$16+'BP Financier'!$D$19+'BP Financier'!$E$16+'BP Financier'!$E$19))*V4149","v":{"v":2356786.6864833417,"d":"2,356,787"}},{"v":1321796.0521260567,"d":"1,321,796"},{"$f":"'BP Financier'!$E$44*(('BP Financier'!$C$16+'BP Financier'!$D$16+'BP Financier'!$E$16)/('BP Financier'!$C$16+'BP Financier'!$C$19+'BP Financier'!$D$16+'BP Financier'!$D$19+'BP Financier'!$E$16+'BP Financier'!$E$19+'BP Financier'!$C$22+'BP Financier'!$D$22+'BP Financier'!$E$22))*$V4149*X4149/(1-$W4149)","v":{"v":168245.48905401988,"d":"168,245"}},{"$f":"'BP Financier'!$E$44*(('BP Financier'!$C$16+'BP Financier'!$D$16+'BP Financier'!$E$16)/('BP Financier'!$C$16+'BP Financier'!$C$19+'BP Financier'!$D$16+'BP Financier'!$D$19+'BP Financier'!$E$16+'BP Financier'!$E$19+'BP Financier'!$C$22+'BP Financier'!$D$22+'BP Financier'!$E$22))*$V4149*Y4149/(1-$W4149)","v":{"v":112473.50373224531,"d":"112,474"}},{"$f":"'BP Financier'!$E$44*(('BP Financier'!$C$16+'BP Financier'!$D$16+'BP Financier'!$E$16)/('BP Financier'!$C$16+'BP Financier'!$C$19+'BP Financier'!$D$16+'BP Financier'!$D$19+'BP Financier'!$E$16+'BP Financier'!$E$19+'BP Financier'!$C$22+'BP Financier'!$D$22+'BP Financier'!$E$22))*$V4149*Z4149/(1-$W4149)","v":{"v":880267.8349953415,"d":"880,268"}},{"$f":"'BP Financier'!$E$44*(('BP Financier'!$C$16+'BP Financier'!$D$16+'BP Financier'!$E$16)/('BP Financier'!$C$16+'BP Financier'!$C$19+'BP Financier'!$D$16+'BP Financier'!$D$19+'BP Financier'!$E$16+'BP Financier'!$E$19+'BP Financier'!$C$22+'BP Financier'!$D$22+'BP Financier'!$E$22))*$V4149*AA4149/(1-$W4149)","v":{"v":108755.37137746037,"d":"108,755"}},{"$f":"'BP Financier'!$E$44*(('BP Financier'!$C$16+'BP Financier'!$D$16+'BP Financier'!$E$16)/('BP Financier'!$C$16+'BP Financier'!$C$19+'BP Financier'!$D$16+'BP Financier'!$D$19+'BP Financier'!$E$16+'BP Financier'!$E$19+'BP Financier'!$C$22+'BP Financier'!$D$22+'BP Financier'!$E$22))*$V4149*AB4149/(1-$W4149)","v":{"v":52053.852966989565,"d":"52,054"}},null,{"v":0.01,"d":"1.00%"},{"$f":"Actif!$E$28/100","v":{"v":0.28900000000000003,"d":"28.90%"}},{"$f":"Actif!$E$30/100","v":{"v":0.09050000000000001,"d":"9.05%"}},{"$f":"Actif!$E$31/100","v":{"v":0.0605,"d":"6.05%"}},{"$f":"Actif!$E$32/100","v":{"v":0.47350000000000003,"d":"47.35%"}},{"$f":"Actif!$E$33/100","v":{"v":0.0585,"d":"5.85%"}},{"$f":"Actif!$E$29/100","v":{"v":0.027999999999999997,"d":"2.80%"}}]
[null,"#49",34,2026,"H","A_VIE",{"v":0.44999999999999996,"d":"0.45"},{"v":0.38999999999999996,"d":"0.39"},0.6,0.6,85,0,{"$f":"ROUND(Primes!$O$4*V4150,0)","v":68},{"$f":"'BP Financier'!$E$33*(('BP Financier'!$C$16+'BP Financier'!$D$16+'BP Financier'!$E$16)/('BP Financier'!$C$16+'BP Financier'!$C$19+'BP Financier'!$D$16+'BP Financier'!$D$19+'BP Financier'!$E$16+'BP Financier'!$E$19))*V4150","v":{"v":2356786.6864833417,"d":"2,356,787"}},{"v":1321796.0521260567,"d":"1,321,796"},{"$f":"'BP Financier'!$E$44*(('BP Financier'!$C$16+'BP Financier'!$D$16+'BP Financier'!$E$16)/('BP Financier'!$C$16+'BP Financier'!$C$19+'BP Financier'!$D$16+'BP Financier'!$D$19+'BP Financier'!$E$16+'BP Financier'!$E$19+'BP Financier'!$C$22+'BP Financier'!$D$22+'BP Financier'!$E$22))*$V4150*X4150/(1-$W4150)","v":{"v":168245.48905401988,"d":"168,245"}},{"$f":"'BP Financier'!$E$44*(('BP Financier'!$C$16+'BP Financier'!$D$16+'BP Financier'!$E$16)/('BP Financier'!$C$16+'BP Financier'!$C$19+'BP Financier'!$D$16+'BP Financier'!$D$19+'BP Financier'!$E$16+'BP Financier'!$E$19+'BP Financier'!$C$22+'BP Financier'!$D$22+'BP Financier'!$E$22))*$V4150*Y4150/(1-$W4150)","v":{"v":112473.50373224531,"d":"112,474"}},{"$f":"'BP Financier'!$E$44*(('BP Financier'!$C$16+'BP Financier'!$D$16+'BP Financier'!$E$16)/('BP Financier'!$C$16+'BP Financier'!$C$19+'BP Financier'!$D$16+'BP Financier'!$D$19+'BP Financier'!$E$16+'BP Financier'!$E$19+'BP Financier'!$C$22+'BP Financier'!$D$22+'BP Financier'!$E$22))*$V4150*Z4150/(1-$W4150)","v":{"v":880267.8349953415,"d":"880,268"}},{"$f":"'BP Financier'!$E$44*(('BP Financier'!$C$16+'BP Financier'!$D$16+'BP Financier'!$E$16)/('BP Financier'!$C$16+'BP Financier'!$C$19+'BP Financier'!$D$16+'BP Financier'!$D$19+'BP Financier'!$E$16+'BP Financier'!$E$19+'BP Financier'!$C$22+'BP Financier'!$D$22+'BP Financier'!$E$22))*$V4150*AA4150/(1-$W4150)","v":{"v":108755.37137746037,"d":"108,755"}},{"$f":"'BP Financier'!$E$44*(('BP Financier'!$C$16+'BP Financier'!$D$16+'BP Financier'!$E$16)/('BP Financier'!$C$16+'BP Financier'!$C$19+'BP Financier'!$D$16+'BP Financier'!$D$19+'BP Financier'!$E$16+'BP Financier'!$E$19+'BP Financier'!$C$22+'BP Financier'!$D$22+'BP Financier'!$E$22))*$V4150*AB4150/(1-$W4150)","v":{"v":52053.852966989565,"d":"52,054"}},null,{"v":0.01,"d":"1.00%"},{"$f":"Actif!$E$28/100","v":{"v":0.28900000000000003,"d":"28.90%"}},{"$f":"Actif!$E$30/100","v":{"v":0.09050000000000001,"d":"9.05%"}},{"$f":"Actif!$E$31/100","v":{"v":0.0605,"d":"6.05%"}},{"$f":"Actif!$E$32/100","v":{"v":0.47350000000000003,"d":"47.35%"}},{"$f":"Actif!$E$33/100","v":{"v":0.0585,"d":"5.85%"}},{"$f":"Actif!$E$29/100","v":{"v":0.027999999999999997,"d":"2.80%"}}]
[null,"#50",34,2028,"H","A_VIE",{"v":0.44999999999999996,"d":"0.45"},{"v":0.38999999999999996,"d":"0.39"},0.6,0.6,85,0,{"$f":"ROUND(Primes!$O$4*V4151,0)","v":68},{"$f":"'BP Financier'!$E$33*(('BP Financier'!$C$16+'BP Financier'!$D$16+'BP Financier'!$E$16)/('BP Financier'!$C$16+'BP Financier'!$C$19+'BP Financier'!$D$16+'BP Financier'!$D$19+'BP Financier'!$E$16+'BP Financier'!$E$19))*V4151","v":{"v":2356786.6864833417,"d":"2,356,787"}},{"v":1321796.0521260567,"d":"1,321,796"},{"$f":"'BP Financier'!$E$44*(('BP Financier'!$C$16+'BP Financier'!$D$16+'BP Financier'!$E$16)/('BP Financier'!$C$16+'BP Financier'!$C$19+'BP Financier'!$D$16+'BP Financier'!$D$19+'BP Financier'!$E$16+'BP Financier'!$E$19+'BP Financier'!$C$22+'BP Financier'!$D$22+'BP Financier'!$E$22))*$V4151*X4151/(1-$W4151)","v":{"v":168245.48905401988,"d":"168,245"}},{"$f":"'BP Financier'!$E$44*(('BP Financier'!$C$16+'BP Financier'!$D$16+'BP Financier'!$E$16)/('BP Financier'!$C$16+'BP Financier'!$C$19+'BP Financier'!$D$16+'BP Financier'!$D$19+'BP Financier'!$E$16+'BP Financier'!$E$19+'BP Financier'!$C$22+'BP Financier'!$D$22+'BP Financier'!$E$22))*$V4151*Y4151/(1-$W4151)","v":{"v":112473.50373224531,"d":"112,474"}},{"$f":"'BP Financier'!$E$44*(('BP Financier'!$C$16+'BP Financier'!$D$16+'BP Financier'!$E$16)/('BP Financier'!$C$16+'BP Financier'!$C$19+'BP Financier'!$D$16+'BP Financier'!$D$19+'BP Financier'!$E$16+'BP Financier'!$E$19+'BP Financier'!$C$22+'BP Financier'!$D$22+'BP Financier'!$E$22))*$V4151*Z4151/(1-$W4151)","v":{"v":880267.8349953415,"d":"880,268"}},{"$f":"'BP Financier'!$E$44*(('BP Financier'!$C$16+'BP Financier'!$D$16+'BP Financier'!$E$16)/('BP Financier'!$C$16+'BP Financier'!$C$19+'BP Financier'!$D$16+'BP Financier'!$D$19+'BP Financier'!$E$16+'BP Financier'!$E$19+'BP Financier'!$C$22+'BP Financier'!$D$22+'BP Financier'!$E$22))*$V4151*AA4151/(1-$W4151)","v":{"v":108755.37137746037,"d":"108,755"}},{"$f":"'BP Financier'!$E$44*(('BP Financier'!$C$16+'BP Financier'!$D$16+'BP Financier'!$E$16)/('BP Financier'!$C$16+'BP Financier'!$C$19+'BP Financier'!$D$16+'BP Financier'!$D$19+'BP Financier'!$E$16+'BP Financier'!$E$19+'BP Financier'!$C$22+'BP Financier'!$D$22+'BP Financier'!$E$22))*$V4151*AB4151/(1-$W4151)","v":{"v":52053.852966989565,"d":"52,054"}},null,{"v":0.01,"d":"1.00%"},{"$f":"Actif!$E$28/100","v":{"v":0.28900000000000003,"d":"28.90%"}},{"$f":"Actif!$E$30/100","v":{"v":0.09050000000000001,"d":"9.05%"}},{"$f":"Actif!$E$31/100","v":{"v":0.0605,"d":"6.05%"}},{"$f":"Actif!$E$32/100","v":{"v":0.47350000000000003,"d":"47.35%"}},{"$f":"Actif!$E$33/100","v":{"v":0.0585,"d":"5.85%"}},{"$f":"Actif!$E$29/100","v":{"v":0.027999999999999997,"d":"2.80%"}}]
[null,"#51",34,2029,"H","A_VIE",{"v":0.44999999999999996,"d":"0.45"},{"v":0.38999999999999996,"d":"0.39"},0.6,0.6,85,0,{"$f":"ROUND(Primes!$O$4*V4152,0)","v":68},{"$f":"'BP Financier'!$E$33*(('BP Financier'!$C$16+'BP Financier'!$D$16+'BP Financier'!$E$16)/('BP Financier'!$C$16+'BP Financier'!$C$19+'BP Financier'!$D$16+'BP Financier'!$D$19+'BP Financier'!$E$16+'BP Financier'!$E$19))*V4152","v":{"v":2356786.6864833417,"d":"2,356,787"}},{"v":1321796.0521260567,"d":"1,321,796"},{"$f":"'BP Financier'!$E$44*(('BP Financier'!$C$16+'BP Financier'!$D$16+'BP Financier'!$E$16)/('BP Financier'!$C$16+'BP Financier'!$C$19+'BP Financier'!$D$16+'BP Financier'!$D$19+'BP Financier'!$E$16+'BP Financier'!$E$19+'BP Financier'!$C$22+'BP Financier'!$D$22+'BP Financier'!$E$22))*$V4152*X4152/(1-$W4152)","v":{"v":168245.48905401988,"d":"168,245"}},{"$f":"'BP Financier'!$E$44*(('BP Financier'!$C$16+'BP Financier'!$D$16+'BP Financier'!$E$16)/('BP Financier'!$C$16+'BP Financier'!$C$19+'BP Financier'!$D$16+'BP Financier'!$D$19+'BP Financier'!$E$16+'BP Financier'!$E$19+'BP Financier'!$C$22+'BP Financier'!$D$22+'BP Financier'!$E$22))*$V4152*Y4152/(1-$W4152)","v":{"v":112473.50373224531,"d":"112,474"}},{"$f":"'BP Financier'!$E$44*(('BP Financier'!$C$16+'BP Financier'!$D$16+'BP Financier'!$E$16)/('BP Financier'!$C$16+'BP Financier'!$C$19+'BP Financier'!$D$16+'BP Financier'!$D$19+'BP Financier'!$E$16+'BP Financier'!$E$19+'BP Financier'!$C$22+'BP Financier'!$D$22+'BP Financier'!$E$22))*$V4152*Z4152/(1-$W4152)","v":{"v":880267.8349953415,"d":"880,268"}},{"$f":"'BP Financier'!$E$44*(('BP Financier'!$C$16+'BP Financier'!$D$16+'BP Financier'!$E$16)/('BP Financier'!$C$16+'BP Financier'!$C$19+'BP Financier'!$D$16+'BP Financier'!$D$19+'BP Financier'!$E$16+'BP Financier'!$E$19+'BP Financier'!$C$22+'BP Financier'!$D$22+'BP Financier'!$E$22))*$V4152*AA4152/(1-$W4152)","v":{"v":108755.37137746037,"d":"108,755"}},{"$f":"'BP Financier'!$E$44*(('BP Financier'!$C$16+'BP Financier'!$D$16+'BP Financier'!$E$16)/('BP Financier'!$C$16+'BP Financier'!$C$19+'BP Financier'!$D$16+'BP Financier'!$D$19+'BP Financier'!$E$16+'BP Financier'!$E$19+'BP Financier'!$C$22+'BP Financier'!$D$22+'BP Financier'!$E$22))*$V4152*AB4152/(1-$W4152)","v":{"v":52053.852966989565,"d":"52,054"}},null,{"v":0.01,"d":"1.00%"},{"$f":"Actif!$E$28/100","v":{"v":0.28900000000000003,"d":"28.90%"}},{"$f":"Actif!$E$30/100","v":{"v":0.09050000000000001,"d":"9.05%"}},{"$f":"Actif!$E$31/100","v":{"v":0.0605,"d":"6.05%"}},{"$f":"Actif!$E$32/100","v":{"v":0.47350000000000003,"d":"47.35%"}},{"$f":"Actif!$E$33/100","v":{"v":0.0585,"d":"5.85%"}},{"$f":"Actif!$E$29/100","v":{"v":0.027999999999999997,"d":"2.80%"}}]
[null,"#52",35,2026,"F","A_VIE",{"v":0.44999999999999996,"d":"0.45"},{"v":0.38999999999999996,"d":"0.39"},0.6,0.6,85,0,{"$f":"ROUND(Primes!$O$4*V4153,0)","v":68},{"$f":"'BP Financier'!$E$33*(('BP Financier'!$C$16+'BP Financier'!$D$16+'BP Financier'!$E$16)/('BP Financier'!$C$16+'BP Financier'!$C$19+'BP Financier'!$D$16+'BP Financier'!$D$19+'BP Financier'!$E$16+'BP Financier'!$E$19))*V4153","v":{"v":2356786.6864833417,"d":"2,356,787"}},{"v":1321796.0521260567,"d":"1,321,796"},{"$f":"'BP Financier'!$E$44*(('BP Financier'!$C$16+'BP Financier'!$D$16+'BP Financier'!$E$16)/('BP Financier'!$C$16+'BP Financier'!$C$19+'BP Financier'!$D$16+'BP Financier'!$D$19+'BP Financier'!$E$16+'BP Financier'!$E$19+'BP Financier'!$C$22+'BP Financier'!$D$22+'BP Financier'!$E$22))*$V4153*X4153/(1-$W4153)","v":{"v":168245.48905401988,"d":"168,245"}},{"$f":"'BP Financier'!$E$44*(('BP Financier'!$C$16+'BP Financier'!$D$16+'BP Financier'!$E$16)/('BP Financier'!$C$16+'BP Financier'!$C$19+'BP Financier'!$D$16+'BP Financier'!$D$19+'BP Financier'!$E$16+'BP Financier'!$E$19+'BP Financier'!$C$22+'BP Financier'!$D$22+'BP Financier'!$E$22))*$V4153*Y4153/(1-$W4153)","v":{"v":112473.50373224531,"d":"112,474"}},{"$f":"'BP Financier'!$E$44*(('BP Financier'!$C$16+'BP Financier'!$D$16+'BP Financier'!$E$16)/('BP Financier'!$C$16+'BP Financier'!$C$19+'BP Financier'!$D$16+'BP Financier'!$D$19+'BP Financier'!$E$16+'BP Financier'!$E$19+'BP Financier'!$C$22+'BP Financier'!$D$22+'BP Financier'!$E$22))*$V4153*Z4153/(1-$W4153)","v":{"v":880267.8349953415,"d":"880,268"}},{"$f":"'BP Financier'!$E$44*(('BP Financier'!$C$16+'BP Financier'!$D$16+'BP Financier'!$E$16)/('BP Financier'!$C$16+'BP Financier'!$C$19+'BP Financier'!$D$16+'BP Financier'!$D$19+'BP Financier'!$E$16+'BP Financier'!$E$19+'BP Financier'!$C$22+'BP Financier'!$D$22+'BP Financier'!$E$22))*$V4153*AA4153/(1-$W4153)","v":{"v":108755.37137746037,"d":"108,755"}},{"$f":"'BP Financier'!$E$44*(('BP Financier'!$C$16+'BP Financier'!$D$16+'BP Financier'!$E$16)/('BP Financier'!$C$16+'BP Financier'!$C$19+'BP Financier'!$D$16+'BP Financier'!$D$19+'BP Financier'!$E$16+'BP Financier'!$E$19+'BP Financier'!$C$22+'BP Financier'!$D$22+'BP Financier'!$E$22))*$V4153*AB4153/(1-$W4153)","v":{"v":52053.852966989565,"d":"52,054"}},null,{"v":0.01,"d":"1.00%"},{"$f":"Actif!$E$28/100","v":{"v":0.28900000000000003,"d":"28.90%"}},{"$f":"Actif!$E$30/100","v":{"v":0.09050000000000001,"d":"9.05%"}},{"$f":"Actif!$E$31/100","v":{"v":0.0605,"d":"6.05%"}},{"$f":"Actif!$E$32/100","v":{"v":0.47350000000000003,"d":"47.35%"}},{"$f":"Actif!$E$33/100","v":{"v":0.0585,"d":"5.85%"}},{"$f":"Actif!$E$29/100","v":{"v":0.027999999999999997,"d":"2.80%"}}]
[null,"#53",35,2028,"F","A_VIE",{"v":0.44999999999999996,"d":"0.45"},{"v":0.38999999999999996,"d":"0.39"},0.6,0.6,85,0,{"$f":"ROUND(Primes!$O$4*V4154,0)","v":68},{"$f":"'BP Financier'!$E$33*(('BP Financier'!$C$16+'BP Financier'!$D$16+'BP Financier'!$E$16)/('BP Financier'!$C$16+'BP Financier'!$C$19+'BP Financier'!$D$16+'BP Financier'!$D$19+'BP Financier'!$E$16+'BP Financier'!$E$19))*V4154","v":{"v":2356786.6864833417,"d":"2,356,787"}},{"v":1321796.0521260567,"d":"1,321,796"},{"$f":"'BP Financier'!$E$44*(('BP Financier'!$C$16+'BP Financier'!$D$16+'BP Financier'!$E$16)/('BP Financier'!$C$16+'BP Financier'!$C$19+'BP Financier'!$D$16+'BP Financier'!$D$19+'BP Financier'!$E$16+'BP Financier'!$E$19+'BP Financier'!$C$22+'BP Financier'!$D$22+'BP Financier'!$E$22))*$V4154*X4154/(1-$W4154)","v":{"v":168245.48905401988,"d":"168,245"}},{"$f":"'BP Financier'!$E$44*(('BP Financier'!$C$16+'BP Financier'!$D$16+'BP Financier'!$E$16)/('BP Financier'!$C$16+'BP Financier'!$C$19+'BP Financier'!$D$16+'BP Financier'!$D$19+'BP Financier'!$E$16+'BP Financier'!$E$19+'BP Financier'!$C$22+'BP Financier'!$D$22+'BP Financier'!$E$22))*$V4154*Y4154/(1-$W4154)","v":{"v":112473.50373224531,"d":"112,474"}},{"$f":"'BP Financier'!$E$44*(('BP Financier'!$C$16+'BP Financier'!$D$16+'BP Financier'!$E$16)/('BP Financier'!$C$16+'BP Financier'!$C$19+'BP Financier'!$D$16+'BP Financier'!$D$19+'BP Financier'!$E$16+'BP Financier'!$E$19+'BP Financier'!$C$22+'BP Financier'!$D$22+'BP Financier'!$E$22))*$V4154*Z4154/(1-$W4154)","v":{"v":880267.8349953415,"d":"880,268"}},{"$f":"'BP Financier'!$E$44*(('BP Financier'!$C$16+'BP Financier'!$D$16+'BP Financier'!$E$16)/('BP Financier'!$C$16+'BP Financier'!$C$19+'BP Financier'!$D$16+'BP Financier'!$D$19+'BP Financier'!$E$16+'BP Financier'!$E$19+'BP Financier'!$C$22+'BP Financier'!$D$22+'BP Financier'!$E$22))*$V4154*AA4154/(1-$W4154)","v":{"v":108755.37137746037,"d":"108,755"}},{"$f":"'BP Financier'!$E$44*(('BP Financier'!$C$16+'BP Financier'!$D$16+'BP Financier'!$E$16)/('BP Financier'!$C$16+'BP Financier'!$C$19+'BP Financier'!$D$16+'BP Financier'!$D$19+'BP Financier'!$E$16+'BP Financier'!$E$19+'BP Financier'!$C$22+'BP Financier'!$D$22+'BP Financier'!$E$22))*$V4154*AB4154/(1-$W4154)","v":{"v":52053.852966989565,"d":"52,054"}},null,{"v":0.01,"d":"1.00%"},{"$f":"Actif!$E$28/100","v":{"v":0.28900000000000003,"d":"28.90%"}},{"$f":"Actif!$E$30/100","v":{"v":0.09050000000000001,"d":"9.05%"}},{"$f":"Actif!$E$31/100","v":{"v":0.0605,"d":"6.05%"}},{"$f":"Actif!$E$32/100","v":{"v":0.47350000000000003,"d":"47.35%"}},{"$f":"Actif!$E$33/100","v":{"v":0.0585,"d":"5.85%"}},{"$f":"Actif!$E$29/100","v":{"v":0.027999999999999997,"d":"2.80%"}}]
[null,"#54",35,2029,"F","A_VIE",{"v":0.44999999999999996,"d":"0.45"},{"v":0.38999999999999996,"d":"0.39"},0.6,0.6,85,0,{"$f":"ROUND(Primes!$O$4*V4155,0)","v":68},{"$f":"'BP Financier'!$E$33*(('BP Financier'!$C$16+'BP Financier'!$D$16+'BP Financier'!$E$16)/('BP Financier'!$C$16+'BP Financier'!$C$19+'BP Financier'!$D$16+'BP Financier'!$D$19+'BP Financier'!$E$16+'BP Financier'!$E$19))*V4155","v":{"v":2356786.6864833417,"d":"2,356,787"}},{"v":1321796.0521260567,"d":"1,321,796"},{"$f":"'BP Financier'!$E$44*(('BP Financier'!$C$16+'BP Financier'!$D$16+'BP Financier'!$E$16)/('BP Financier'!$C$16+'BP Financier'!$C$19+'BP Financier'!$D$16+'BP Financier'!$D$19+'BP Financier'!$E$16+'BP Financier'!$E$19+'BP Financier'!$C$22+'BP Financier'!$D$22+'BP Financier'!$E$22))*$V4155*X4155/(1-$W4155)","v":{"v":168245.48905401988,"d":"168,245"}},{"$f":"'BP Financier'!$E$44*(('BP Financier'!$C$16+'BP Financier'!$D$16+'BP Financier'!$E$16)/('BP Financier'!$C$16+'BP Financier'!$C$19+'BP Financier'!$D$16+'BP Financier'!$D$19+'BP Financier'!$E$16+'BP Financier'!$E$19+'BP Financier'!$C$22+'BP Financier'!$D$22+'BP Financier'!$E$22))*$V4155*Y4155/(1-$W4155)","v":{"v":112473.50373224531,"d":"112,474"}},{"$f":"'BP Financier'!$E$44*(('BP Financier'!$C$16+'BP Financier'!$D$16+'BP Financier'!$E$16)/('BP Financier'!$C$16+'BP Financier'!$C$19+'BP Financier'!$D$16+'BP Financier'!$D$19+'BP Financier'!$E$16+'BP Financier'!$E$19+'BP Financier'!$C$22+'BP Financier'!$D$22+'BP Financier'!$E$22))*$V4155*Z4155/(1-$W4155)","v":{"v":880267.8349953415,"d":"880,268"}},{"$f":"'BP Financier'!$E$44*(('BP Financier'!$C$16+'BP Financier'!$D$16+'BP Financier'!$E$16)/('BP Financier'!$C$16+'BP Financier'!$C$19+'BP Financier'!$D$16+'BP Financier'!$D$19+'BP Financier'!$E$16+'BP Financier'!$E$19+'BP Financier'!$C$22+'BP Financier'!$D$22+'BP Financier'!$E$22))*$V4155*AA4155/(1-$W4155)","v":{"v":108755.37137746037,"d":"108,755"}},{"$f":"'BP Financier'!$E$44*(('BP Financier'!$C$16+'BP Financier'!$D$16+'BP Financier'!$E$16)/('BP Financier'!$C$16+'BP Financier'!$C$19+'BP Financier'!$D$16+'BP Financier'!$D$19+'BP Financier'!$E$16+'BP Financier'!$E$19+'BP Financier'!$C$22+'BP Financier'!$D$22+'BP Financier'!$E$22))*$V4155*AB4155/(1-$W4155)","v":{"v":52053.852966989565,"d":"52,054"}},null,{"v":0.01,"d":"1.00%"},{"$f":"Actif!$E$28/100","v":{"v":0.28900000000000003,"d":"28.90%"}},{"$f":"Actif!$E$30/100","v":{"v":0.09050000000000001,"d":"9.05%"}},{"$f":"Actif!$E$31/100","v":{"v":0.0605,"d":"6.05%"}},{"$f":"Actif!$E$32/100","v":{"v":0.47350000000000003,"d":"47.35%"}},{"$f":"Actif!$E$33/100","v":{"v":0.0585,"d":"5.85%"}},{"$f":"Actif!$E$29/100","v":{"v":0.027999999999999997,"d":"2.80%"}}]
[null,"#55",36,2026,"H","A_VIE",{"v":0.44999999999999996,"d":"0.45"},{"v":0.38999999999999996,"d":"0.39"},0.6,0.6,85,0,{"$f":"ROUND(Primes!$O$4*V4156,0)","v":11},{"$f":"'BP Financier'!$E$33*(('BP Financier'!$C$16+'BP Financier'!$D$16+'BP Financier'!$E$16)/('BP Financier'!$C$16+'BP Financier'!$C$19+'BP Financier'!$D$16+'BP Financier'!$D$19+'BP Financier'!$E$16+'BP Financier'!$E$19))*V4156","v":{"v":392797.7810805569,"d":"392,798"}},{"v":220299.34202100948,"d":"220,299"},{"$f":"'BP Financier'!$E$44*(('BP Financier'!$C$16+'BP Financier'!$D$16+'BP Financier'!$E$16)/('BP Financier'!$C$16+'BP Financier'!$C$19+'BP Financier'!$D$16+'BP Financier'!$D$19+'BP Financier'!$E$16+'BP Financier'!$E$19+'BP Financier'!$C$22+'BP Financier'!$D$22+'BP Financier'!$E$22))*$V4156*X4156/(1-$W4156)","v":{"v":28040.91484233665,"d":"28,041"}},{"$f":"'BP Financier'!$E$44*(('BP Financier'!$C$16+'BP Financier'!$D$16+'BP Financier'!$E$16)/('BP Financier'!$C$16+'BP Financier'!$C$19+'BP Financier'!$D$16+'BP Financier'!$D$19+'BP Financier'!$E$16+'BP Financier'!$E$19+'BP Financier'!$C$22+'BP Financier'!$D$22+'BP Financier'!$E$22))*$V4156*Y4156/(1-$W4156)","v":{"v":18745.583955374223,"d":"18,746"}},{"$f":"'BP Financier'!$E$44*(('BP Financier'!$C$16+'BP Financier'!$D$16+'BP Financier'!$E$16)/('BP Financier'!$C$16+'BP Financier'!$C$19+'BP Financier'!$D$16+'BP Financier'!$D$19+'BP Financier'!$E$16+'BP Financier'!$E$19+'BP Financier'!$C$22+'BP Financier'!$D$22+'BP Financier'!$E$22))*$V4156*Z4156/(1-$W4156)","v":{"v":146711.30583255694,"d":"146,711"}},{"$f":"'BP Financier'!$E$44*(('BP Financier'!$C$16+'BP Financier'!$D$16+'BP Financier'!$E$16)/('BP Financier'!$C$16+'BP Financier'!$C$19+'BP Financier'!$D$16+'BP Financier'!$D$19+'BP Financier'!$E$16+'BP Financier'!$E$19+'BP Financier'!$C$22+'BP Financier'!$D$22+'BP Financier'!$E$22))*$V4156*AA4156/(1-$W4156)","v":{"v":18125.89522957673,"d":"18,126"}},{"$f":"'BP Financier'!$E$44*(('BP Financier'!$C$16+'BP Financier'!$D$16+'BP Financier'!$E$16)/('BP Financier'!$C$16+'BP Financier'!$C$19+'BP Financier'!$D$16+'BP Financier'!$D$19+'BP Financier'!$E$16+'BP Financier'!$E$19+'BP Financier'!$C$22+'BP Financier'!$D$22+'BP Financier'!$E$22))*$V4156*AB4156/(1-$W4156)","v":{"v":8675.642161164928,"d":"8,676"}},null,{"v":1.6666666666666668E-3,"d":"0.17%"},{"$f":"Actif!$E$28/100","v":{"v":0.28900000000000003,"d":"28.90%"}},{"$f":"Actif!$E$30/100","v":{"v":0.09050000000000001,"d":"9.05%"}},{"$f":"Actif!$E$31/100","v":{"v":0.0605,"d":"6.05%"}},{"$f":"Actif!$E$32/100","v":{"v":0.47350000000000003,"d":"47.35%"}},{"$f":"Actif!$E$33/100","v":{"v":0.0585,"d":"5.85%"}},{"$f":"Actif!$E$29/100","v":{"v":0.027999999999999997,"d":"2.80%"}}]
[null,"#56",36,2028,"H","A_VIE",{"v":0.44999999999999996,"d":"0.45"},{"v":0.38999999999999996,"d":"0.39"},0.6,0.6,85,0,{"$f":"ROUND(Primes!$O$4*V4157,0)","v":11},{"$f":"'BP Financier'!$E$33*(('BP Financier'!$C$16+'BP Financier'!$D$16+'BP Financier'!$E$16)/('BP Financier'!$C$16+'BP Financier'!$C$19+'BP Financier'!$D$16+'BP Financier'!$D$19+'BP Financier'!$E$16+'BP Financier'!$E$19))*V4157","v":{"v":392797.7810805569,"d":"392,798"}},{"v":220299.34202100948,"d":"220,299"},{"$f":"'BP Financier'!$E$44*(('BP Financier'!$C$16+'BP Financier'!$D$16+'BP Financier'!$E$16)/('BP Financier'!$C$16+'BP Financier'!$C$19+'BP Financier'!$D$16+'BP Financier'!$D$19+'BP Financier'!$E$16+'BP Financier'!$E$19+'BP Financier'!$C$22+'BP Financier'!$D$22+'BP Financier'!$E$22))*$V4157*X4157/(1-$W4157)","v":{"v":28040.91484233665,"d":"28,041"}},{"$f":"'BP Financier'!$E$44*(('BP Financier'!$C$16+'BP Financier'!$D$16+'BP Financier'!$E$16)/('BP Financier'!$C$16+'BP Financier'!$C$19+'BP Financier'!$D$16+'BP Financier'!$D$19+'BP Financier'!$E$16+'BP Financier'!$E$19+'BP Financier'!$C$22+'BP Financier'!$D$22+'BP Financier'!$E$22))*$V4157*Y4157/(1-$W4157)","v":{"v":18745.583955374223,"d":"18,746"}},{"$f":"'BP Financier'!$E$44*(('BP Financier'!$C$16+'BP Financier'!$D$16+'BP Financier'!$E$16)/('BP Financier'!$C$16+'BP Financier'!$C$19+'BP Financier'!$D$16+'BP Financier'!$D$19+'BP Financier'!$E$16+'BP Financier'!$E$19+'BP Financier'!$C$22+'BP Financier'!$D$22+'BP Financier'!$E$22))*$V4157*Z4157/(1-$W4157)","v":{"v":146711.30583255694,"d":"146,711"}},{"$f":"'BP Financier'!$E$44*(('BP Financier'!$C$16+'BP Financier'!$D$16+'BP Financier'!$E$16)/('BP Financier'!$C$16+'BP Financier'!$C$19+'BP Financier'!$D$16+'BP Financier'!$D$19+'BP Financier'!$E$16+'BP Financier'!$E$19+'BP Financier'!$C$22+'BP Financier'!$D$22+'BP Financier'!$E$22))*$V4157*AA4157/(1-$W4157)","v":{"v":18125.89522957673,"d":"18,126"}},{"$f":"'BP Financier'!$E$44*(('BP Financier'!$C$16+'BP Financier'!$D$16+'BP Financier'!$E$16)/('BP Financier'!$C$16+'BP Financier'!$C$19+'BP Financier'!$D$16+'BP Financier'!$D$19+'BP Financier'!$E$16+'BP Financier'!$E$19+'BP Financier'!$C$22+'BP Financier'!$D$22+'BP Financier'!$E$22))*$V4157*AB4157/(1-$W4157)","v":{"v":8675.642161164928,"d":"8,676"}},null,{"v":1.6666666666666668E-3,"d":"0.17%"},{"$f":"Actif!$E$28/100","v":{"v":0.28900000000000003,"d":"28.90%"}},{"$f":"Actif!$E$30/100","v":{"v":0.09050000000000001,"d":"9.05%"}},{"$f":"Actif!$E$31/100","v":{"v":0.0605,"d":"6.05%"}},{"$f":"Actif!$E$32/100","v":{"v":0.47350000000000003,"d":"47.35%"}},{"$f":"Actif!$E$33/100","v":{"v":0.0585,"d":"5.85%"}},{"$f":"Actif!$E$29/100","v":{"v":0.027999999999999997,"d":"2.80%"}}]
[null,"#57",36,2029,"H","A_VIE",{"v":0.44999999999999996,"d":"0.45"},{"v":0.38999999999999996,"d":"0.39"},0.6,0.6,85,0,{"$f":"ROUND(Primes!$O$4*V4158,0)","v":11},{"$f":"'BP Financier'!$E$33*(('BP Financier'!$C$16+'BP Financier'!$D$16+'BP Financier'!$E$16)/('BP Financier'!$C$16+'BP Financier'!$C$19+'BP Financier'!$D$16+'BP Financier'!$D$19+'BP Financier'!$E$16+'BP Financier'!$E$19))*V4158","v":{"v":392797.7810805569,"d":"392,798"}},{"v":220299.34202100948,"d":"220,299"},{"$f":"'BP Financier'!$E$44*(('BP Financier'!$C$16+'BP Financier'!$D$16+'BP Financier'!$E$16)/('BP Financier'!$C$16+'BP Financier'!$C$19+'BP Financier'!$D$16+'BP Financier'!$D$19+'BP Financier'!$E$16+'BP Financier'!$E$19+'BP Financier'!$C$22+'BP Financier'!$D$22+'BP Financier'!$E$22))*$V4158*X4158/(1-$W4158)","v":{"v":28040.91484233665,"d":"28,041"}},{"$f":"'BP Financier'!$E$44*(('BP Financier'!$C$16+'BP Financier'!$D$16+'BP Financier'!$E$16)/('BP Financier'!$C$16+'BP Financier'!$C$19+'BP Financier'!$D$16+'BP Financier'!$D$19+'BP Financier'!$E$16+'BP Financier'!$E$19+'BP Financier'!$C$22+'BP Financier'!$D$22+'BP Financier'!$E$22))*$V4158*Y4158/(1-$W4158)","v":{"v":18745.583955374223,"d":"18,746"}},{"$f":"'BP Financier'!$E$44*(('BP Financier'!$C$16+'BP Financier'!$D$16+'BP Financier'!$E$16)/('BP Financier'!$C$16+'BP Financier'!$C$19+'BP Financier'!$D$16+'BP Financier'!$D$19+'BP Financier'!$E$16+'BP Financier'!$E$19+'BP Financier'!$C$22+'BP Financier'!$D$22+'BP Financier'!$E$22))*$V4158*Z4158/(1-$W4158)","v":{"v":146711.30583255694,"d":"146,711"}},{"$f":"'BP Financier'!$E$44*(('BP Financier'!$C$16+'BP Financier'!$D$16+'BP Financier'!$E$16)/('BP Financier'!$C$16+'BP Financier'!$C$19+'BP Financier'!$D$16+'BP Financier'!$D$19+'BP Financier'!$E$16+'BP Financier'!$E$19+'BP Financier'!$C$22+'BP Financier'!$D$22+'BP Financier'!$E$22))*$V4158*AA4158/(1-$W4158)","v":{"v":18125.89522957673,"d":"18,126"}},{"$f":"'BP Financier'!$E$44*(('BP Financier'!$C$16+'BP Financier'!$D$16+'BP Financier'!$E$16)/('BP Financier'!$C$16+'BP Financier'!$C$19+'BP Financier'!$D$16+'BP Financier'!$D$19+'BP Financier'!$E$16+'BP Financier'!$E$19+'BP Financier'!$C$22+'BP Financier'!$D$22+'BP Financier'!$E$22))*$V4158*AB4158/(1-$W4158)","v":{"v":8675.642161164928,"d":"8,676"}},null,{"v":1.6666666666666668E-3,"d":"0.17%"},{"$f":"Actif!$E$28/100","v":{"v":0.28900000000000003,"d":"28.90%"}},{"$f":"Actif!$E$30/100","v":{"v":0.09050000000000001,"d":"9.05%"}},{"$f":"Actif!$E$31/100","v":{"v":0.0605,"d":"6.05%"}},{"$f":"Actif!$E$32/100","v":{"v":0.47350000000000003,"d":"47.35%"}},{"$f":"Actif!$E$33/100","v":{"v":0.0585,"d":"5.85%"}},{"$f":"Actif!$E$29/100","v":{"v":0.027999999999999997,"d":"2.80%"}}]
[null,"#58",37,2026,"H","A_VIE",{"v":0.44999999999999996,"d":"0.45"},{"v":0.38999999999999996,"d":"0.39"},0.6,0.6,85,0,{"$f":"ROUND(Primes!$O$4*V4159,0)","v":11},{"$f":"'BP Financier'!$E$33*(('BP Financier'!$C$16+'BP Financier'!$D$16+'BP Financier'!$E$16)/('BP Financier'!$C$16+'BP Financier'!$C$19+'BP Financier'!$D$16+'BP Financier'!$D$19+'BP Financier'!$E$16+'BP Financier'!$E$19))*V4159","v":{"v":392797.7810805569,"d":"392,798"}},{"v":220299.34202100948,"d":"220,299"},{"$f":"'BP Financier'!$E$44*(('BP Financier'!$C$16+'BP Financier'!$D$16+'BP Financier'!$E$16)/('BP Financier'!$C$16+'BP Financier'!$C$19+'BP Financier'!$D$16+'BP Financier'!$D$19+'BP Financier'!$E$16+'BP Financier'!$E$19+'BP Financier'!$C$22+'BP Financier'!$D$22+'BP Financier'!$E$22))*$V4159*X4159/(1-$W4159)","v":{"v":28040.91484233665,"d":"28,041"}},{"$f":"'BP Financier'!$E$44*(('BP Financier'!$C$16+'BP Financier'!$D$16+'BP Financier'!$E$16)/('BP Financier'!$C$16+'BP Financier'!$C$19+'BP Financier'!$D$16+'BP Financier'!$D$19+'BP Financier'!$E$16+'BP Financier'!$E$19+'BP Financier'!$C$22+'BP Financier'!$D$22+'BP Financier'!$E$22))*$V4159*Y4159/(1-$W4159)","v":{"v":18745.583955374223,"d":"18,746"}},{"$f":"'BP Financier'!$E$44*(('BP Financier'!$C$16+'BP Financier'!$D$16+'BP Financier'!$E$16)/('BP Financier'!$C$16+'BP Financier'!$C$19+'BP Financier'!$D$16+'BP Financier'!$D$19+'BP Financier'!$E$16+'BP Financier'!$E$19+'BP Financier'!$C$22+'BP Financier'!$D$22+'BP Financier'!$E$22))*$V4159*Z4159/(1-$W4159)","v":{"v":146711.30583255694,"d":"146,711"}},{"$f":"'BP Financier'!$E$44*(('BP Financier'!$C$16+'BP Financier'!$D$16+'BP Financier'!$E$16)/('BP Financier'!$C$16+'BP Financier'!$C$19+'BP Financier'!$D$16+'BP Financier'!$D$19+'BP Financier'!$E$16+'BP Financier'!$E$19+'BP Financier'!$C$22+'BP Financier'!$D$22+'BP Financier'!$E$22))*$V4159*AA4159/(1-$W4159)","v":{"v":18125.89522957673,"d":"18,126"}},{"$f":"'BP Financier'!$E$44*(('BP Financier'!$C$16+'BP Financier'!$D$16+'BP Financier'!$E$16)/('BP Financier'!$C$16+'BP Financier'!$C$19+'BP Financier'!$D$16+'BP Financier'!$D$19+'BP Financier'!$E$16+'BP Financier'!$E$19+'BP Financier'!$C$22+'BP Financier'!$D$22+'BP Financier'!$E$22))*$V4159*AB4159/(1-$W4159)","v":{"v":8675.642161164928,"d":"8,676"}},null,{"v":1.6666666666666668E-3,"d":"0.17%"},{"$f":"Actif!$E$28/100","v":{"v":0.28900000000000003,"d":"28.90%"}},{"$f":"Actif!$E$30/100","v":{"v":0.09050000000000001,"d":"9.05%"}},{"$f":"Actif!$E$31/100","v":{"v":0.0605,"d":"6.05%"}},{"$f":"Actif!$E$32/100","v":{"v":0.47350000000000003,"d":"47.35%"}},{"$f":"Actif!$E$33/100","v":{"v":0.0585,"d":"5.85%"}},{"$f":"Actif!$E$29/100","v":{"v":0.027999999999999997,"d":"2.80%"}}]
[null,"#59",37,2028,"H","A_VIE",{"v":0.44999999999999996,"d":"0.45"},{"v":0.38999999999999996,"d":"0.39"},0.6,0.6,85,0,{"$f":"ROUND(Primes!$O$4*V4160,0)","v":11},{"$f":"'BP Financier'!$E$33*(('BP Financier'!$C$16+'BP Financier'!$D$16+'BP Financier'!$E$16)/('BP Financier'!$C$16+'BP Financier'!$C$19+'BP Financier'!$D$16+'BP Financier'!$D$19+'BP Financier'!$E$16+'BP Financier'!$E$19))*V4160","v":{"v":392797.7810805569,"d":"392,798"}},{"v":220299.34202100948,"d":"220,299"},{"$f":"'BP Financier'!$E$44*(('BP Financier'!$C$16+'BP Financier'!$D$16+'BP Financier'!$E$16)/('BP Financier'!$C$16+'BP Financier'!$C$19+'BP Financier'!$D$16+'BP Financier'!$D$19+'BP Financier'!$E$16+'BP Financier'!$E$19+'BP Financier'!$C$22+'BP Financier'!$D$22+'BP Financier'!$E$22))*$V4160*X4160/(1-$W4160)","v":{"v":28040.91484233665,"d":"28,041"}},{"$f":"'BP Financier'!$E$44*(('BP Financier'!$C$16+'BP Financier'!$D$16+'BP Financier'!$E$16)/('BP Financier'!$C$16+'BP Financier'!$C$19+'BP Financier'!$D$16+'BP Financier'!$D$19+'BP Financier'!$E$16+'BP Financier'!$E$19+'BP Financier'!$C$22+'BP Financier'!$D$22+'BP Financier'!$E$22))*$V4160*Y4160/(1-$W4160)","v":{"v":18745.583955374223,"d":"18,746"}},{"$f":"'BP Financier'!$E$44*(('BP Financier'!$C$16+'BP Financier'!$D$16+'BP Financier'!$E$16)/('BP Financier'!$C$16+'BP Financier'!$C$19+'BP Financier'!$D$16+'BP Financier'!$D$19+'BP Financier'!$E$16+'BP Financier'!$E$19+'BP Financier'!$C$22+'BP Financier'!$D$22+'BP Financier'!$E$22))*$V4160*Z4160/(1-$W4160)","v":{"v":146711.30583255694,"d":"146,711"}},{"$f":"'BP Financier'!$E$44*(('BP Financier'!$C$16+'BP Financier'!$D$16+'BP Financier'!$E$16)/('BP Financier'!$C$16+'BP Financier'!$C$19+'BP Financier'!$D$16+'BP Financier'!$D$19+'BP Financier'!$E$16+'BP Financier'!$E$19+'BP Financier'!$C$22+'BP Financier'!$D$22+'BP Financier'!$E$22))*$V4160*AA4160/(1-$W4160)","v":{"v":18125.89522957673,"d":"18,126"}},{"$f":"'BP Financier'!$E$44*(('BP Financier'!$C$16+'BP Financier'!$D$16+'BP Financier'!$E$16)/('BP Financier'!$C$16+'BP Financier'!$C$19+'BP Financier'!$D$16+'BP Financier'!$D$19+'BP Financier'!$E$16+'BP Financier'!$E$19+'BP Financier'!$C$22+'BP Financier'!$D$22+'BP Financier'!$E$22))*$V4160*AB4160/(1-$W4160)","v":{"v":8675.642161164928,"d":"8,676"}},null,{"v":1.6666666666666668E-3,"d":"0.17%"},{"$f":"Actif!$E$28/100","v":{"v":0.28900000000000003,"d":"28.90%"}},{"$f":"Actif!$E$30/100","v":{"v":0.09050000000000001,"d":"9.05%"}},{"$f":"Actif!$E$31/100","v":{"v":0.0605,"d":"6.05%"}},{"$f":"Actif!$E$32/100","v":{"v":0.47350000000000003,"d":"47.35%"}},{"$f":"Actif!$E$33/100","v":{"v":0.0585,"d":"5.85%"}},{"$f":"Actif!$E$29/100","v":{"v":0.027999999999999997,"d":"2.80%"}}]
[null,"#60",37,2029,"H","A_VIE",{"v":0.44999999999999996,"d":"0.45"},{"v":0.38999999999999996,"d":"0.39"},0.6,0.6,85,0,{"$f":"ROUND(Primes!$O$4*V4161,0)","v":11},{"$f":"'BP Financier'!$E$33*(('BP Financier'!$C$16+'BP Financier'!$D$16+'BP Financier'!$E$16)/('BP Financier'!$C$16+'BP Financier'!$C$19+'BP Financier'!$D$16+'BP Financier'!$D$19+'BP Financier'!$E$16+'BP Financier'!$E$19))*V4161","v":{"v":392797.7810805569,"d":"392,798"}},{"v":220299.34202100948,"d":"220,299"},{"$f":"'BP Financier'!$E$44*(('BP Financier'!$C$16+'BP Financier'!$D$16+'BP Financier'!$E$16)/('BP Financier'!$C$16+'BP Financier'!$C$19+'BP Financier'!$D$16+'BP Financier'!$D$19+'BP Financier'!$E$16+'BP Financier'!$E$19+'BP Financier'!$C$22+'BP Financier'!$D$22+'BP Financier'!$E$22))*$V4161*X4161/(1-$W4161)","v":{"v":28040.91484233665,"d":"28,041"}},{"$f":"'BP Financier'!$E$44*(('BP Financier'!$C$16+'BP Financier'!$D$16+'BP Financier'!$E$16)/('BP Financier'!$C$16+'BP Financier'!$C$19+'BP Financier'!$D$16+'BP Financier'!$D$19+'BP Financier'!$E$16+'BP Financier'!$E$19+'BP Financier'!$C$22+'BP Financier'!$D$22+'BP Financier'!$E$22))*$V4161*Y4161/(1-$W4161)","v":{"v":18745.583955374223,"d":"18,746"}},{"$f":"'BP Financier'!$E$44*(('BP Financier'!$C$16+'BP Financier'!$D$16+'BP Financier'!$E$16)/('BP Financier'!$C$16+'BP Financier'!$C$19+'BP Financier'!$D$16+'BP Financier'!$D$19+'BP Financier'!$E$16+'BP Financier'!$E$19+'BP Financier'!$C$22+'BP Financier'!$D$22+'BP Financier'!$E$22))*$V4161*Z4161/(1-$W4161)","v":{"v":146711.30583255694,"d":"146,711"}},{"$f":"'BP Financier'!$E$44*(('BP Financier'!$C$16+'BP Financier'!$D$16+'BP Financier'!$E$16)/('BP Financier'!$C$16+'BP Financier'!$C$19+'BP Financier'!$D$16+'BP Financier'!$D$19+'BP Financier'!$E$16+'BP Financier'!$E$19+'BP Financier'!$C$22+'BP Financier'!$D$22+'BP Financier'!$E$22))*$V4161*AA4161/(1-$W4161)","v":{"v":18125.89522957673,"d":"18,126"}},{"$f":"'BP Financier'!$E$44*(('BP Financier'!$C$16+'BP Financier'!$D$16+'BP Financier'!$E$16)/('BP Financier'!$C$16+'BP Financier'!$C$19+'BP Financier'!$D$16+'BP Financier'!$D$19+'BP Financier'!$E$16+'BP Financier'!$E$19+'BP Financier'!$C$22+'BP Financier'!$D$22+'BP Financier'!$E$22))*$V4161*AB4161/(1-$W4161)","v":{"v":8675.642161164928,"d":"8,676"}},null,{"v":1.6666666666666668E-3,"d":"0.17%"},{"$f":"Actif!$E$28/100","v":{"v":0.28900000000000003,"d":"28.90%"}},{"$f":"Actif!$E$30/100","v":{"v":0.09050000000000001,"d":"9.05%"}},{"$f":"Actif!$E$31/100","v":{"v":0.0605,"d":"6.05%"}},{"$f":"Actif!$E$32/100","v":{"v":0.47350000000000003,"d":"47.35%"}},{"$f":"Actif!$E$33/100","v":{"v":0.0585,"d":"5.85%"}},{"$f":"Actif!$E$29/100","v":{"v":0.027999999999999997,"d":"2.80%"}}]
[null,"#61",38,2026,"F","A_VIE",{"v":0.44999999999999996,"d":"0.45"},{"v":0.38999999999999996,"d":"0.39"},0.6,0.6,85,0,{"$f":"ROUND(Primes!$O$4*V4162,0)","v":11},{"$f":"'BP Financier'!$E$33*(('BP Financier'!$C$16+'BP Financier'!$D$16+'BP Financier'!$E$16)/('BP Financier'!$C$16+'BP Financier'!$C$19+'BP Financier'!$D$16+'BP Financier'!$D$19+'BP Financier'!$E$16+'BP Financier'!$E$19))*V4162","v":{"v":392797.7810805569,"d":"392,798"}},{"v":220299.34202100948,"d":"220,299"},{"$f":"'BP Financier'!$E$44*(('BP Financier'!$C$16+'BP Financier'!$D$16+'BP Financier'!$E$16)/('BP Financier'!$C$16+'BP Financier'!$C$19+'BP Financier'!$D$16+'BP Financier'!$D$19+'BP Financier'!$E$16+'BP Financier'!$E$19+'BP Financier'!$C$22+'BP Financier'!$D$22+'BP Financier'!$E$22))*$V4162*X4162/(1-$W4162)","v":{"v":28040.91484233665,"d":"28,041"}},{"$f":"'BP Financier'!$E$44*(('BP Financier'!$C$16+'BP Financier'!$D$16+'BP Financier'!$E$16)/('BP Financier'!$C$16+'BP Financier'!$C$19+'BP Financier'!$D$16+'BP Financier'!$D$19+'BP Financier'!$E$16+'BP Financier'!$E$19+'BP Financier'!$C$22+'BP Financier'!$D$22+'BP Financier'!$E$22))*$V4162*Y4162/(1-$W4162)","v":{"v":18745.583955374223,"d":"18,746"}},{"$f":"'BP Financier'!$E$44*(('BP Financier'!$C$16+'BP Financier'!$D$16+'BP Financier'!$E$16)/('BP Financier'!$C$16+'BP Financier'!$C$19+'BP Financier'!$D$16+'BP Financier'!$D$19+'BP Financier'!$E$16+'BP Financier'!$E$19+'BP Financier'!$C$22+'BP Financier'!$D$22+'BP Financier'!$E$22))*$V4162*Z4162/(1-$W4162)","v":{"v":146711.30583255694,"d":"146,711"}},{"$f":"'BP Financier'!$E$44*(('BP Financier'!$C$16+'BP Financier'!$D$16+'BP Financier'!$E$16)/('BP Financier'!$C$16+'BP Financier'!$C$19+'BP Financier'!$D$16+'BP Financier'!$D$19+'BP Financier'!$E$16+'BP Financier'!$E$19+'BP Financier'!$C$22+'BP Financier'!$D$22+'BP Financier'!$E$22))*$V4162*AA4162/(1-$W4162)","v":{"v":18125.89522957673,"d":"18,126"}},{"$f":"'BP Financier'!$E$44*(('BP Financier'!$C$16+'BP Financier'!$D$16+'BP Financier'!$E$16)/('BP Financier'!$C$16+'BP Financier'!$C$19+'BP Financier'!$D$16+'BP Financier'!$D$19+'BP Financier'!$E$16+'BP Financier'!$E$19+'BP Financier'!$C$22+'BP Financier'!$D$22+'BP Financier'!$E$22))*$V4162*AB4162/(1-$W4162)","v":{"v":8675.642161164928,"d":"8,676"}},null,{"v":1.6666666666666668E-3,"d":"0.17%"},{"$f":"Actif!$E$28/100","v":{"v":0.28900000000000003,"d":"28.90%"}},{"$f":"Actif!$E$30/100","v":{"v":0.09050000000000001,"d":"9.05%"}},{"$f":"Actif!$E$31/100","v":{"v":0.0605,"d":"6.05%"}},{"$f":"Actif!$E$32/100","v":{"v":0.47350000000000003,"d":"47.35%"}},{"$f":"Actif!$E$33/100","v":{"v":0.0585,"d":"5.85%"}},{"$f":"Actif!$E$29/100","v":{"v":0.027999999999999997,"d":"2.80%"}}]
[null,"#62",38,2028,"F","A_VIE",{"v":0.44999999999999996,"d":"0.45"},{"v":0.38999999999999996,"d":"0.39"},0.6,0.6,85,0,{"$f":"ROUND(Primes!$O$4*V4163,0)","v":11},{"$f":"'BP Financier'!$E$33*(('BP Financier'!$C$16+'BP Financier'!$D$16+'BP Financier'!$E$16)/('BP Financier'!$C$16+'BP Financier'!$C$19+'BP Financier'!$D$16+'BP Financier'!$D$19+'BP Financier'!$E$16+'BP Financier'!$E$19))*V4163","v":{"v":392797.7810805569,"d":"392,798"}},{"v":220299.34202100948,"d":"220,299"},{"$f":"'BP Financier'!$E$44*(('BP Financier'!$C$16+'BP Financier'!$D$16+'BP Financier'!$E$16)/('BP Financier'!$C$16+'BP Financier'!$C$19+'BP Financier'!$D$16+'BP Financier'!$D$19+'BP Financier'!$E$16+'BP Financier'!$E$19+'BP Financier'!$C$22+'BP Financier'!$D$22+'BP Financier'!$E$22))*$V4163*X4163/(1-$W4163)","v":{"v":28040.91484233665,"d":"28,041"}},{"$f":"'BP Financier'!$E$44*(('BP Financier'!$C$16+'BP Financier'!$D$16+'BP Financier'!$E$16)/('BP Financier'!$C$16+'BP Financier'!$C$19+'BP Financier'!$D$16+'BP Financier'!$D$19+'BP Financier'!$E$16+'BP Financier'!$E$19+'BP Financier'!$C$22+'BP Financier'!$D$22+'BP Financier'!$E$22))*$V4163*Y4163/(1-$W4163)","v":{"v":18745.583955374223,"d":"18,746"}},{"$f":"'BP Financier'!$E$44*(('BP Financier'!$C$16+'BP Financier'!$D$16+'BP Financier'!$E$16)/('BP Financier'!$C$16+'BP Financier'!$C$19+'BP Financier'!$D$16+'BP Financier'!$D$19+'BP Financier'!$E$16+'BP Financier'!$E$19+'BP Financier'!$C$22+'BP Financier'!$D$22+'BP Financier'!$E$22))*$V4163*Z4163/(1-$W4163)","v":{"v":146711.30583255694,"d":"146,711"}},{"$f":"'BP Financier'!$E$44*(('BP Financier'!$C$16+'BP Financier'!$D$16+'BP Financier'!$E$16)/('BP Financier'!$C$16+'BP Financier'!$C$19+'BP Financier'!$D$16+'BP Financier'!$D$19+'BP Financier'!$E$16+'BP Financier'!$E$19+'BP Financier'!$C$22+'BP Financier'!$D$22+'BP Financier'!$E$22))*$V4163*AA4163/(1-$W4163)","v":{"v":18125.89522957673,"d":"18,126"}},{"$f":"'BP Financier'!$E$44*(('BP Financier'!$C$16+'BP Financier'!$D$16+'BP Financier'!$E$16)/('BP Financier'!$C$16+'BP Financier'!$C$19+'BP Financier'!$D$16+'BP Financier'!$D$19+'BP Financier'!$E$16+'BP Financier'!$E$19+'BP Financier'!$C$22+'BP Financier'!$D$22+'BP Financier'!$E$22))*$V4163*AB4163/(1-$W4163)","v":{"v":8675.642161164928,"d":"8,676"}},null,{"v":1.6666666666666668E-3,"d":"0.17%"},{"$f":"Actif!$E$28/100","v":{"v":0.28900000000000003,"d":"28.90%"}},{"$f":"Actif!$E$30/100","v":{"v":0.09050000000000001,"d":"9.05%"}},{"$f":"Actif!$E$31/100","v":{"v":0.0605,"d":"6.05%"}},{"$f":"Actif!$E$32/100","v":{"v":0.47350000000000003,"d":"47.35%"}},{"$f":"Actif!$E$33/100","v":{"v":0.0585,"d":"5.85%"}},{"$f":"Actif!$E$29/100","v":{"v":0.027999999999999997,"d":"2.80%"}}]
[null,"#63",38,2029,"F","A_VIE",{"v":0.44999999999999996,"d":"0.45"},{"v":0.38999999999999996,"d":"0.39"},0.6,0.6,85,0,{"$f":"ROUND(Primes!$O$4*V4164,0)","v":11},{"$f":"'BP Financier'!$E$33*(('BP Financier'!$C$16+'BP Financier'!$D$16+'BP Financier'!$E$16)/('BP Financier'!$C$16+'BP Financier'!$C$19+'BP Financier'!$D$16+'BP Financier'!$D$19+'BP Financier'!$E$16+'BP Financier'!$E$19))*V4164","v":{"v":392797.7810805569,"d":"392,798"}},{"v":220299.34202100948,"d":"220,299"},{"$f":"'BP Financier'!$E$44*(('BP Financier'!$C$16+'BP Financier'!$D$16+'BP Financier'!$E$16)/('BP Financier'!$C$16+'BP Financier'!$C$19+'BP Financier'!$D$16+'BP Financier'!$D$19+'BP Financier'!$E$16+'BP Financier'!$E$19+'BP Financier'!$C$22+'BP Financier'!$D$22+'BP Financier'!$E$22))*$V4164*X4164/(1-$W4164)","v":{"v":28040.91484233665,"d":"28,041"}},{"$f":"'BP Financier'!$E$44*(('BP Financier'!$C$16+'BP Financier'!$D$16+'BP Financier'!$E$16)/('BP Financier'!$C$16+'BP Financier'!$C$19+'BP Financier'!$D$16+'BP Financier'!$D$19+'BP Financier'!$E$16+'BP Financier'!$E$19+'BP Financier'!$C$22+'BP Financier'!$D$22+'BP Financier'!$E$22))*$V4164*Y4164/(1-$W4164)","v":{"v":18745.583955374223,"d":"18,746"}},{"$f":"'BP Financier'!$E$44*(('BP Financier'!$C$16+'BP Financier'!$D$16+'BP Financier'!$E$16)/('BP Financier'!$C$16+'BP Financier'!$C$19+'BP Financier'!$D$16+'BP Financier'!$D$19+'BP Financier'!$E$16+'BP Financier'!$E$19+'BP Financier'!$C$22+'BP Financier'!$D$22+'BP Financier'!$E$22))*$V4164*Z4164/(1-$W4164)","v":{"v":146711.30583255694,"d":"146,711"}},{"$f":"'BP Financier'!$E$44*(('BP Financier'!$C$16+'BP Financier'!$D$16+'BP Financier'!$E$16)/('BP Financier'!$C$16+'BP Financier'!$C$19+'BP Financier'!$D$16+'BP Financier'!$D$19+'BP Financier'!$E$16+'BP Financier'!$E$19+'BP Financier'!$C$22+'BP Financier'!$D$22+'BP Financier'!$E$22))*$V4164*AA4164/(1-$W4164)","v":{"v":18125.89522957673,"d":"18,126"}},{"$f":"'BP Financier'!$E$44*(('BP Financier'!$C$16+'BP Financier'!$D$16+'BP Financier'!$E$16)/('BP Financier'!$C$16+'BP Financier'!$C$19+'BP Financier'!$D$16+'BP Financier'!$D$19+'BP Financier'!$E$16+'BP Financier'!$E$19+'BP Financier'!$C$22+'BP Financier'!$D$22+'BP Financier'!$E$22))*$V4164*AB4164/(1-$W4164)","v":{"v":8675.642161164928,"d":"8,676"}},null,{"v":1.6666666666666668E-3,"d":"0.17%"},{"$f":"Actif!$E$28/100","v":{"v":0.28900000000000003,"d":"28.90%"}},{"$f":"Actif!$E$30/100","v":{"v":0.09050000000000001,"d":"9.05%"}},{"$f":"Actif!$E$31/100","v":{"v":0.0605,"d":"6.05%"}},{"$f":"Actif!$E$32/100","v":{"v":0.47350000000000003,"d":"47.35%"}},{"$f":"Actif!$E$33/100","v":{"v":0.0585,"d":"5.85%"}},{"$f":"Actif!$E$29/100","v":{"v":0.027999999999999997,"d":"2.80%"}}]
[null,"#64",39,2026,"H","A_VIE",{"v":0.44999999999999996,"d":"0.45"},{"v":0.38999999999999996,"d":"0.39"},0.6,0.6,85,0,{"$f":"ROUND(Primes!$O$4*V4165,0)","v":11},{"$f":"'BP Financier'!$E$33*(('BP Financier'!$C$16+'BP Financier'!$D$16+'BP Financier'!$E$16)/('BP Financier'!$C$16+'BP Financier'!$C$19+'BP Financier'!$D$16+'BP Financier'!$D$19+'BP Financier'!$E$16+'BP Financier'!$E$19))*V4165","v":{"v":392797.7810805569,"d":"392,798"}},{"v":220299.34202100948,"d":"220,299"},{"$f":"'BP Financier'!$E$44*(('BP Financier'!$C$16+'BP Financier'!$D$16+'BP Financier'!$E$16)/('BP Financier'!$C$16+'BP Financier'!$C$19+'BP Financier'!$D$16+'BP Financier'!$D$19+'BP Financier'!$E$16+'BP Financier'!$E$19+'BP Financier'!$C$22+'BP Financier'!$D$22+'BP Financier'!$E$22))*$V4165*X4165/(1-$W4165)","v":{"v":28040.91484233665,"d":"28,041"}},{"$f":"'BP Financier'!$E$44*(('BP Financier'!$C$16+'BP Financier'!$D$16+'BP Financier'!$E$16)/('BP Financier'!$C$16+'BP Financier'!$C$19+'BP Financier'!$D$16+'BP Financier'!$D$19+'BP Financier'!$E$16+'BP Financier'!$E$19+'BP Financier'!$C$22+'BP Financier'!$D$22+'BP Financier'!$E$22))*$V4165*Y4165/(1-$W4165)","v":{"v":18745.583955374223,"d":"18,746"}},{"$f":"'BP Financier'!$E$44*(('BP Financier'!$C$16+'BP Financier'!$D$16+'BP Financier'!$E$16)/('BP Financier'!$C$16+'BP Financier'!$C$19+'BP Financier'!$D$16+'BP Financier'!$D$19+'BP Financier'!$E$16+'BP Financier'!$E$19+'BP Financier'!$C$22+'BP Financier'!$D$22+'BP Financier'!$E$22))*$V4165*Z4165/(1-$W4165)","v":{"v":146711.30583255694,"d":"146,711"}},{"$f":"'BP Financier'!$E$44*(('BP Financier'!$C$16+'BP Financier'!$D$16+'BP Financier'!$E$16)/('BP Financier'!$C$16+'BP Financier'!$C$19+'BP Financier'!$D$16+'BP Financier'!$D$19+'BP Financier'!$E$16+'BP Financier'!$E$19+'BP Financier'!$C$22+'BP Financier'!$D$22+'BP Financier'!$E$22))*$V4165*AA4165/(1-$W4165)","v":{"v":18125.89522957673,"d":"18,126"}},{"$f":"'BP Financier'!$E$44*(('BP Financier'!$C$16+'BP Financier'!$D$16+'BP Financier'!$E$16)/('BP Financier'!$C$16+'BP Financier'!$C$19+'BP Financier'!$D$16+'BP Financier'!$D$19+'BP Financier'!$E$16+'BP Financier'!$E$19+'BP Financier'!$C$22+'BP Financier'!$D$22+'BP Financier'!$E$22))*$V4165*AB4165/(1-$W4165)","v":{"v":8675.642161164928,"d":"8,676"}},null,{"v":1.6666666666666668E-3,"d":"0.17%"},{"$f":"Actif!$E$28/100","v":{"v":0.28900000000000003,"d":"28.90%"}},{"$f":"Actif!$E$30/100","v":{"v":0.09050000000000001,"d":"9.05%"}},{"$f":"Actif!$E$31/100","v":{"v":0.0605,"d":"6.05%"}},{"$f":"Actif!$E$32/100","v":{"v":0.47350000000000003,"d":"47.35%"}},{"$f":"Actif!$E$33/100","v":{"v":0.0585,"d":"5.85%"}},{"$f":"Actif!$E$29/100","v":{"v":0.027999999999999997,"d":"2.80%"}}]
[null,"#65",39,2028,"H","A_VIE",{"$f":"frais_gestion_Euro*100","v":{"v":0.44999999999999996,"d":"0.45"}},{"$f":"frais_gestion_UC*100","v":{"v":0.38999999999999996,"d":"0.39"}},{"$f":"frais_distribution_FG*100","v":0.6},{"$f":"frais_distribution_UC*100","v":0.6},85,0,{"$f":"ROUND(Primes!$O$4*V4166,0)","v":11},{"$f":"'BP Financier'!$E$33*(('BP Financier'!$C$16+'BP Financier'!$D$16+'BP Financier'!$E$16)/('BP Financier'!$C$16+'BP Financier'!$C$19+'BP Financier'!$D$16+'BP Financier'!$D$19+'BP Financier'!$E$16+'BP Financier'!$E$19))*V4166","v":{"v":392797.7810805569,"d":"392,798"}},{"v":220299.34202100948,"d":"220,299"},{"$f":"'BP Financier'!$E$44*(('BP Financier'!$C$16+'BP Financier'!$D$16+'BP Financier'!$E$16)/('BP Financier'!$C$16+'BP Financier'!$C$19+'BP Financier'!$D$16+'BP Financier'!$D$19+'BP Financier'!$E$16+'BP Financier'!$E$19+'BP Financier'!$C$22+'BP Financier'!$D$22+'BP Financier'!$E$22))*$V4166*X4166/(1-$W4166)","v":{"v":28040.91484233665,"d":"28,041"}},{"$f":"'BP Financier'!$E$44*(('BP Financier'!$C$16+'BP Financier'!$D$16+'BP Financier'!$E$16)/('BP Financier'!$C$16+'BP Financier'!$C$19+'BP Financier'!$D$16+'BP Financier'!$D$19+'BP Financier'!$E$16+'BP Financier'!$E$19+'BP Financier'!$C$22+'BP Financier'!$D$22+'BP Financier'!$E$22))*$V4166*Y4166/(1-$W4166)","v":{"v":18745.583955374223,"d":"18,746"}},{"$f":"'BP Financier'!$E$44*(('BP Financier'!$C$16+'BP Financier'!$D$16+'BP Financier'!$E$16)/('BP Financier'!$C$16+'BP Financier'!$C$19+'BP Financier'!$D$16+'BP Financier'!$D$19+'BP Financier'!$E$16+'BP Financier'!$E$19+'BP Financier'!$C$22+'BP Financier'!$D$22+'BP Financier'!$E$22))*$V4166*Z4166/(1-$W4166)","v":{"v":146711.30583255694,"d":"146,711"}},{"$f":"'BP Financier'!$E$44*(('BP Financier'!$C$16+'BP Financier'!$D$16+'BP Financier'!$E$16)/('BP Financier'!$C$16+'BP Financier'!$C$19+'BP Financier'!$D$16+'BP Financier'!$D$19+'BP Financier'!$E$16+'BP Financier'!$E$19+'BP Financier'!$C$22+'BP Financier'!$D$22+'BP Financier'!$E$22))*$V4166*AA4166/(1-$W4166)","v":{"v":18125.89522957673,"d":"18,126"}},{"$f":"'BP Financier'!$E$44*(('BP Financier'!$C$16+'BP Financier'!$D$16+'BP Financier'!$E$16)/('BP Financier'!$C$16+'BP Financier'!$C$19+'BP Financier'!$D$16+'BP Financier'!$D$19+'BP Financier'!$E$16+'BP Financier'!$E$19+'BP Financier'!$C$22+'BP Financier'!$D$22+'BP Financier'!$E$22))*$V4166*AB4166/(1-$W4166)","v":{"v":8675.642161164928,"d":"8,676"}},null,{"v":1.6666666666666668E-3,"d":"0.17%"},{"$f":"Actif!$E$28/100","v":{"v":0.28900000000000003,"d":"28.90%"}},{"$f":"Actif!$E$30/100","v":{"v":0.09050000000000001,"d":"9.05%"}},{"$f":"Actif!$E$31/100","v":{"v":0.0605,"d":"6.05%"}},{"$f":"Actif!$E$32/100","v":{"v":0.47350000000000003,"d":"47.35%"}},{"$f":"Actif!$E$33/100","v":{"v":0.0585,"d":"5.85%"}},{"$f":"Actif!$E$29/100","v":{"v":0.027999999999999997,"d":"2.80%"}}]
[null,"#66",39,2029,"H","A_VIE",{"v":0.44999999999999996,"d":"0.45"},{"v":0.38999999999999996,"d":"0.39"},0.6,0.6,85,0,{"$f":"ROUND(Primes!$O$4*V4167,0)","v":11},{"$f":"'BP Financier'!$E$33*(('BP Financier'!$C$16+'BP Financier'!$D$16+'BP Financier'!$E$16)/('BP Financier'!$C$16+'BP Financier'!$C$19+'BP Financier'!$D$16+'BP Financier'!$D$19+'BP Financier'!$E$16+'BP Financier'!$E$19))*V4167","v":{"v":392797.7810805569,"d":"392,798"}},{"$f":"SUM(P4167:T4167)","v":{"v":220299.34202100948,"d":"220,299"}},{"$f":"'BP Financier'!$E$44*(('BP Financier'!$C$16+'BP Financier'!$D$16+'BP Financier'!$E$16)/('BP Financier'!$C$16+'BP Financier'!$C$19+'BP Financier'!$D$16+'BP Financier'!$D$19+'BP Financier'!$E$16+'BP Financier'!$E$19+'BP Financier'!$C$22+'BP Financier'!$D$22+'BP Financier'!$E$22))*$V4167*X4167/(1-$W4167)","v":{"v":28040.91484233665,"d":"28,041"}},{"$f":"'BP Financier'!$E$44*(('BP Financier'!$C$16+'BP Financier'!$D$16+'BP Financier'!$E$16)/('BP Financier'!$C$16+'BP Financier'!$C$19+'BP Financier'!$D$16+'BP Financier'!$D$19+'BP Financier'!$E$16+'BP Financier'!$E$19+'BP Financier'!$C$22+'BP Financier'!$D$22+'BP Financier'!$E$22))*$V4167*Y4167/(1-$W4167)","v":{"v":18745.583955374223,"d":"18,746"}},{"$f":"'BP Financier'!$E$44*(('BP Financier'!$C$16+'BP Financier'!$D$16+'BP Financier'!$E$16)/('BP Financier'!$C$16+'BP Financier'!$C$19+'BP Financier'!$D$16+'BP Financier'!$D$19+'BP Financier'!$E$16+'BP Financier'!$E$19+'BP Financier'!$C$22+'BP Financier'!$D$22+'BP Financier'!$E$22))*$V4167*Z4167/(1-$W4167)","v":{"v":146711.30583255694,"d":"146,711"}},{"$f":"'BP Financier'!$E$44*(('BP Financier'!$C$16+'BP Financier'!$D$16+'BP Financier'!$E$16)/('BP Financier'!$C$16+'BP Financier'!$C$19+'BP Financier'!$D$16+'BP Financier'!$D$19+'BP Financier'!$E$16+'BP Financier'!$E$19+'BP Financier'!$C$22+'BP Financier'!$D$22+'BP Financier'!$E$22))*$V4167*AA4167/(1-$W4167)","v":{"v":18125.89522957673,"d":"18,126"}},{"$f":"'BP Financier'!$E$44*(('BP Financier'!$C$16+'BP Financier'!$D$16+'BP Financier'!$E$16)/('BP Financier'!$C$16+'BP Financier'!$C$19+'BP Financier'!$D$16+'BP Financier'!$D$19+'BP Financier'!$E$16+'BP Financier'!$E$19+'BP Financier'!$C$22+'BP Financier'!$D$22+'BP Financier'!$E$22))*$V4167*AB4167/(1-$W4167)","v":{"v":8675.642161164928,"d":"8,676"}},null,{"v":1.6666666666666668E-3,"d":"0.17%"},{"$f":"Actif!$E$28/100","v":{"v":0.28900000000000003,"d":"28.90%"}},{"$f":"Actif!$E$30/100","v":{"v":0.09050000000000001,"d":"9.05%"}},{"$f":"Actif!$E$31/100","v":{"v":0.0605,"d":"6.05%"}},{"$f":"Actif!$E$32/100","v":{"v":0.47350000000000003,"d":"47.35%"}},{"$f":"Actif!$E$33/100","v":{"v":0.0585,"d":"5.85%"}},{"$f":"Actif!$E$29/100","v":{"v":0.027999999999999997,"d":"2.80%"}}]
[null,"#67",40,2026,"H","A_VIE",{"v":0.44999999999999996,"d":"0.45"},{"v":0.38999999999999996,"d":"0.39"},0.6,0.6,85,0,{"$f":"ROUND(Primes!$O$4*V4168,0)","v":11},{"$f":"'BP Financier'!$E$33*(('BP Financier'!$C$16+'BP Financier'!$D$16+'BP Financier'!$E$16)/('BP Financier'!$C$16+'BP Financier'!$C$19+'BP Financier'!$D$16+'BP Financier'!$D$19+'BP Financier'!$E$16+'BP Financier'!$E$19))*V4168","v":{"v":392797.7810805569,"d":"392,798"}},{"v":220299.34202100948,"d":"220,299"},{"$f":"'BP Financier'!$E$44*(('BP Financier'!$C$16+'BP Financier'!$D$16+'BP Financier'!$E$16)/('BP Financier'!$C$16+'BP Financier'!$C$19+'BP Financier'!$D$16+'BP Financier'!$D$19+'BP Financier'!$E$16+'BP Financier'!$E$19+'BP Financier'!$C$22+'BP Financier'!$D$22+'BP Financier'!$E$22))*$V4168*X4168/(1-$W4168)","v":{"v":28040.91484233665,"d":"28,041"}},{"$f":"'BP Financier'!$E$44*(('BP Financier'!$C$16+'BP Financier'!$D$16+'BP Financier'!$E$16)/('BP Financier'!$C$16+'BP Financier'!$C$19+'BP Financier'!$D$16+'BP Financier'!$D$19+'BP Financier'!$E$16+'BP Financier'!$E$19+'BP Financier'!$C$22+'BP Financier'!$D$22+'BP Financier'!$E$22))*$V4168*Y4168/(1-$W4168)","v":{"v":18745.583955374223,"d":"18,746"}},{"$f":"'BP Financier'!$E$44*(('BP Financier'!$C$16+'BP Financier'!$D$16+'BP Financier'!$E$16)/('BP Financier'!$C$16+'BP Financier'!$C$19+'BP Financier'!$D$16+'BP Financier'!$D$19+'BP Financier'!$E$16+'BP Financier'!$E$19+'BP Financier'!$C$22+'BP Financier'!$D$22+'BP Financier'!$E$22))*$V4168*Z4168/(1-$W4168)","v":{"v":146711.30583255694,"d":"146,711"}},{"$f":"'BP Financier'!$E$44*(('BP Financier'!$C$16+'BP Financier'!$D$16+'BP Financier'!$E$16)/('BP Financier'!$C$16+'BP Financier'!$C$19+'BP Financier'!$D$16+'BP Financier'!$D$19+'BP Financier'!$E$16+'BP Financier'!$E$19+'BP Financier'!$C$22+'BP Financier'!$D$22+'BP Financier'!$E$22))*$V4168*AA4168/(1-$W4168)","v":{"v":18125.89522957673,"d":"18,126"}},{"$f":"'BP Financier'!$E$44*(('BP Financier'!$C$16+'BP Financier'!$D$16+'BP Financier'!$E$16)/('BP Financier'!$C$16+'BP Financier'!$C$19+'BP Financier'!$D$16+'BP Financier'!$D$19+'BP Financier'!$E$16+'BP Financier'!$E$19+'BP Financier'!$C$22+'BP Financier'!$D$22+'BP Financier'!$E$22))*$V4168*AB4168/(1-$W4168)","v":{"v":8675.642161164928,"d":"8,676"}},null,{"v":1.6666666666666668E-3,"d":"0.17%"},{"$f":"Actif!$E$28/100","v":{"v":0.28900000000000003,"d":"28.90%"}},{"$f":"Actif!$E$30/100","v":{"v":0.09050000000000001,"d":"9.05%"}},{"$f":"Actif!$E$31/100","v":{"v":0.0605,"d":"6.05%"}},{"$f":"Actif!$E$32/100","v":{"v":0.47350000000000003,"d":"47.35%"}},{"$f":"Actif!$E$33/100","v":{"v":0.0585,"d":"5.85%"}},{"$f":"Actif!$E$29/100","v":{"v":0.027999999999999997,"d":"2.80%"}}]
[null,"#68",40,2028,"H","A_VIE",{"v":0.44999999999999996,"d":"0.45"},{"v":0.38999999999999996,"d":"0.39"},0.6,0.6,85,0,{"$f":"ROUND(Primes!$O$4*V4169,0)","v":11},{"$f":"'BP Financier'!$E$33*(('BP Financier'!$C$16+'BP Financier'!$D$16+'BP Financier'!$E$16)/('BP Financier'!$C$16+'BP Financier'!$C$19+'BP Financier'!$D$16+'BP Financier'!$D$19+'BP Financier'!$E$16+'BP Financier'!$E$19))*V4169","v":{"v":392797.7810805569,"d":"392,798"}},{"v":220299.34202100948,"d":"220,299"},{"$f":"'BP Financier'!$E$44*(('BP Financier'!$C$16+'BP Financier'!$D$16+'BP Financier'!$E$16)/('BP Financier'!$C$16+'BP Financier'!$C$19+'BP Financier'!$D$16+'BP Financier'!$D$19+'BP Financier'!$E$16+'BP Financier'!$E$19+'BP Financier'!$C$22+'BP Financier'!$D$22+'BP Financier'!$E$22))*$V4169*X4169/(1-$W4169)","v":{"v":28040.91484233665,"d":"28,041"}},{"$f":"'BP Financier'!$E$44*(('BP Financier'!$C$16+'BP Financier'!$D$16+'BP Financier'!$E$16)/('BP Financier'!$C$16+'BP Financier'!$C$19+'BP Financier'!$D$16+'BP Financier'!$D$19+'BP Financier'!$E$16+'BP Financier'!$E$19+'BP Financier'!$C$22+'BP Financier'!$D$22+'BP Financier'!$E$22))*$V4169*Y4169/(1-$W4169)","v":{"v":18745.583955374223,"d":"18,746"}},{"$f":"'BP Financier'!$E$44*(('BP Financier'!$C$16+'BP Financier'!$D$16+'BP Financier'!$E$16)/('BP Financier'!$C$16+'BP Financier'!$C$19+'BP Financier'!$D$16+'BP Financier'!$D$19+'BP Financier'!$E$16+'BP Financier'!$E$19+'BP Financier'!$C$22+'BP Financier'!$D$22+'BP Financier'!$E$22))*$V4169*Z4169/(1-$W4169)","v":{"v":146711.30583255694,"d":"146,711"}},{"$f":"'BP Financier'!$E$44*(('BP Financier'!$C$16+'BP Financier'!$D$16+'BP Financier'!$E$16)/('BP Financier'!$C$16+'BP Financier'!$C$19+'BP Financier'!$D$16+'BP Financier'!$D$19+'BP Financier'!$E$16+'BP Financier'!$E$19+'BP Financier'!$C$22+'BP Financier'!$D$22+'BP Financier'!$E$22))*$V4169*AA4169/(1-$W4169)","v":{"v":18125.89522957673,"d":"18,126"}},{"$f":"'BP Financier'!$E$44*(('BP Financier'!$C$16+'BP Financier'!$D$16+'BP Financier'!$E$16)/('BP Financier'!$C$16+'BP Financier'!$C$19+'BP Financier'!$D$16+'BP Financier'!$D$19+'BP Financier'!$E$16+'BP Financier'!$E$19+'BP Financier'!$C$22+'BP Financier'!$D$22+'BP Financier'!$E$22))*$V4169*AB4169/(1-$W4169)","v":{"v":8675.642161164928,"d":"8,676"}},null,{"v":1.6666666666666668E-3,"d":"0.17%"},{"$f":"Actif!$E$28/100","v":{"v":0.28900000000000003,"d":"28.90%"}},{"$f":"Actif!$E$30/100","v":{"v":0.09050000000000001,"d":"9.05%"}},{"$f":"Actif!$E$31/100","v":{"v":0.0605,"d":"6.05%"}},{"$f":"Actif!$E$32/100","v":{"v":0.47350000000000003,"d":"47.35%"}},{"$f":"Actif!$E$33/100","v":{"v":0.0585,"d":"5.85%"}},{"$f":"Actif!$E$29/100","v":{"v":0.027999999999999997,"d":"2.80%"}}]
[null,"#69",40,2029,"H","A_VIE",{"v":0.44999999999999996,"d":"0.45"},{"v":0.38999999999999996,"d":"0.39"},0.6,0.6,85,0,{"$f":"ROUND(Primes!$O$4*V4170,0)","v":11},{"$f":"'BP Financier'!$E$33*(('BP Financier'!$C$16+'BP Financier'!$D$16+'BP Financier'!$E$16)/('BP Financier'!$C$16+'BP Financier'!$C$19+'BP Financier'!$D$16+'BP Financier'!$D$19+'BP Financier'!$E$16+'BP Financier'!$E$19))*V4170","v":{"v":392797.7810805569,"d":"392,798"}},{"v":220299.34202100948,"d":"220,299"},{"$f":"'BP Financier'!$E$44*(('BP Financier'!$C$16+'BP Financier'!$D$16+'BP Financier'!$E$16)/('BP Financier'!$C$16+'BP Financier'!$C$19+'BP Financier'!$D$16+'BP Financier'!$D$19+'BP Financier'!$E$16+'BP Financier'!$E$19+'BP Financier'!$C$22+'BP Financier'!$D$22+'BP Financier'!$E$22))*$V4170*X4170/(1-$W4170)","v":{"v":28040.91484233665,"d":"28,041"}},{"$f":"'BP Financier'!$E$44*(('BP Financier'!$C$16+'BP Financier'!$D$16+'BP Financier'!$E$16)/('BP Financier'!$C$16+'BP Financier'!$C$19+'BP Financier'!$D$16+'BP Financier'!$D$19+'BP Financier'!$E$16+'BP Financier'!$E$19+'BP Financier'!$C$22+'BP Financier'!$D$22+'BP Financier'!$E$22))*$V4170*Y4170/(1-$W4170)","v":{"v":18745.583955374223,"d":"18,746"}},{"$f":"'BP Financier'!$E$44*(('BP Financier'!$C$16+'BP Financier'!$D$16+'BP Financier'!$E$16)/('BP Financier'!$C$16+'BP Financier'!$C$19+'BP Financier'!$D$16+'BP Financier'!$D$19+'BP Financier'!$E$16+'BP Financier'!$E$19+'BP Financier'!$C$22+'BP Financier'!$D$22+'BP Financier'!$E$22))*$V4170*Z4170/(1-$W4170)","v":{"v":146711.30583255694,"d":"146,711"}},{"$f":"'BP Financier'!$E$44*(('BP Financier'!$C$16+'BP Financier'!$D$16+'BP Financier'!$E$16)/('BP Financier'!$C$16+'BP Financier'!$C$19+'BP Financier'!$D$16+'BP Financier'!$D$19+'BP Financier'!$E$16+'BP Financier'!$E$19+'BP Financier'!$C$22+'BP Financier'!$D$22+'BP Financier'!$E$22))*$V4170*AA4170/(1-$W4170)","v":{"v":18125.89522957673,"d":"18,126"}},{"$f":"'BP Financier'!$E$44*(('BP Financier'!$C$16+'BP Financier'!$D$16+'BP Financier'!$E$16)/('BP Financier'!$C$16+'BP Financier'!$C$19+'BP Financier'!$D$16+'BP Financier'!$D$19+'BP Financier'!$E$16+'BP Financier'!$E$19+'BP Financier'!$C$22+'BP Financier'!$D$22+'BP Financier'!$E$22))*$V4170*AB4170/(1-$W4170)","v":{"v":8675.642161164928,"d":"8,676"}},null,{"v":1.6666666666666668E-3,"d":"0.17%"},{"$f":"Actif!$E$28/100","v":{"v":0.28900000000000003,"d":"28.90%"}},{"$f":"Actif!$E$30/100","v":{"v":0.09050000000000001,"d":"9.05%"}},{"$f":"Actif!$E$31/100","v":{"v":0.0605,"d":"6.05%"}},{"$f":"Actif!$E$32/100","v":{"v":0.47350000000000003,"d":"47.35%"}},{"$f":"Actif!$E$33/100","v":{"v":0.0585,"d":"5.85%"}},{"$f":"Actif!$E$29/100","v":{"v":0.027999999999999997,"d":"2.80%"}}]
[null,"#70",41,2026,"F","A_VIE",{"v":0.44999999999999996,"d":"0.45"},{"v":0.38999999999999996,"d":"0.39"},0.6,0.6,85,0,{"$f":"ROUND(Primes!$O$4*V4171,0)","v":11},{"$f":"'BP Financier'!$E$33*(('BP Financier'!$C$16+'BP Financier'!$D$16+'BP Financier'!$E$16)/('BP Financier'!$C$16+'BP Financier'!$C$19+'BP Financier'!$D$16+'BP Financier'!$D$19+'BP Financier'!$E$16+'BP Financier'!$E$19))*V4171","v":{"v":392797.7810805569,"d":"392,798"}},{"v":220299.34202100948,"d":"220,299"},{"$f":"'BP Financier'!$E$44*(('BP Financier'!$C$16+'BP Financier'!$D$16+'BP Financier'!$E$16)/('BP Financier'!$C$16+'BP Financier'!$C$19+'BP Financier'!$D$16+'BP Financier'!$D$19+'BP Financier'!$E$16+'BP Financier'!$E$19+'BP Financier'!$C$22+'BP Financier'!$D$22+'BP Financier'!$E$22))*$V4171*X4171/(1-$W4171)","v":{"v":28040.91484233665,"d":"28,041"}},{"$f":"'BP Financier'!$E$44*(('BP Financier'!$C$16+'BP Financier'!$D$16+'BP Financier'!$E$16)/('BP Financier'!$C$16+'BP Financier'!$C$19+'BP Financier'!$D$16+'BP Financier'!$D$19+'BP Financier'!$E$16+'BP Financier'!$E$19+'BP Financier'!$C$22+'BP Financier'!$D$22+'BP Financier'!$E$22))*$V4171*Y4171/(1-$W4171)","v":{"v":18745.583955374223,"d":"18,746"}},{"$f":"'BP Financier'!$E$44*(('BP Financier'!$C$16+'BP Financier'!$D$16+'BP Financier'!$E$16)/('BP Financier'!$C$16+'BP Financier'!$C$19+'BP Financier'!$D$16+'BP Financier'!$D$19+'BP Financier'!$E$16+'BP Financier'!$E$19+'BP Financier'!$C$22+'BP Financier'!$D$22+'BP Financier'!$E$22))*$V4171*Z4171/(1-$W4171)","v":{"v":146711.30583255694,"d":"146,711"}},{"$f":"'BP Financier'!$E$44*(('BP Financier'!$C$16+'BP Financier'!$D$16+'BP Financier'!$E$16)/('BP Financier'!$C$16+'BP Financier'!$C$19+'BP Financier'!$D$16+'BP Financier'!$D$19+'BP Financier'!$E$16+'BP Financier'!$E$19+'BP Financier'!$C$22+'BP Financier'!$D$22+'BP Financier'!$E$22))*$V4171*AA4171/(1-$W4171)","v":{"v":18125.89522957673,"d":"18,126"}},{"$f":"'BP Financier'!$E$44*(('BP Financier'!$C$16+'BP Financier'!$D$16+'BP Financier'!$E$16)/('BP Financier'!$C$16+'BP Financier'!$C$19+'BP Financier'!$D$16+'BP Financier'!$D$19+'BP Financier'!$E$16+'BP Financier'!$E$19+'BP Financier'!$C$22+'BP Financier'!$D$22+'BP Financier'!$E$22))*$V4171*AB4171/(1-$W4171)","v":{"v":8675.642161164928,"d":"8,676"}},null,{"v":1.6666666666666668E-3,"d":"0.17%"},{"$f":"Actif!$E$28/100","v":{"v":0.28900000000000003,"d":"28.90%"}},{"$f":"Actif!$E$30/100","v":{"v":0.09050000000000001,"d":"9.05%"}},{"$f":"Actif!$E$31/100","v":{"v":0.0605,"d":"6.05%"}},{"$f":"Actif!$E$32/100","v":{"v":0.47350000000000003,"d":"47.35%"}},{"$f":"Actif!$E$33/100","v":{"v":0.0585,"d":"5.85%"}},{"$f":"Actif!$E$29/100","v":{"v":0.027999999999999997,"d":"2.80%"}}]
[null,"#71",41,2028,"F","A_VIE",{"v":0.44999999999999996,"d":"0.45"},{"v":0.38999999999999996,"d":"0.39"},0.6,0.6,85,0,{"$f":"ROUND(Primes!$O$4*V4172,0)","v":11},{"$f":"'BP Financier'!$E$33*(('BP Financier'!$C$16+'BP Financier'!$D$16+'BP Financier'!$E$16)/('BP Financier'!$C$16+'BP Financier'!$C$19+'BP Financier'!$D$16+'BP Financier'!$D$19+'BP Financier'!$E$16+'BP Financier'!$E$19))*V4172","v":{"v":392797.7810805569,"d":"392,798"}},{"v":220299.34202100948,"d":"220,299"},{"$f":"'BP Financier'!$E$44*(('BP Financier'!$C$16+'BP Financier'!$D$16+'BP Financier'!$E$16)/('BP Financier'!$C$16+'BP Financier'!$C$19+'BP Financier'!$D$16+'BP Financier'!$D$19+'BP Financier'!$E$16+'BP Financier'!$E$19+'BP Financier'!$C$22+'BP Financier'!$D$22+'BP Financier'!$E$22))*$V4172*X4172/(1-$W4172)","v":{"v":28040.91484233665,"d":"28,041"}},{"$f":"'BP Financier'!$E$44*(('BP Financier'!$C$16+'BP Financier'!$D$16+'BP Financier'!$E$16)/('BP Financier'!$C$16+'BP Financier'!$C$19+'BP Financier'!$D$16+'BP Financier'!$D$19+'BP Financier'!$E$16+'BP Financier'!$E$19+'BP Financier'!$C$22+'BP Financier'!$D$22+'BP Financier'!$E$22))*$V4172*Y4172/(1-$W4172)","v":{"v":18745.583955374223,"d":"18,746"}},{"$f":"'BP Financier'!$E$44*(('BP Financier'!$C$16+'BP Financier'!$D$16+'BP Financier'!$E$16)/('BP Financier'!$C$16+'BP Financier'!$C$19+'BP Financier'!$D$16+'BP Financier'!$D$19+'BP Financier'!$E$16+'BP Financier'!$E$19+'BP Financier'!$C$22+'BP Financier'!$D$22+'BP Financier'!$E$22))*$V4172*Z4172/(1-$W4172)","v":{"v":146711.30583255694,"d":"146,711"}},{"$f":"'BP Financier'!$E$44*(('BP Financier'!$C$16+'BP Financier'!$D$16+'BP Financier'!$E$16)/('BP Financier'!$C$16+'BP Financier'!$C$19+'BP Financier'!$D$16+'BP Financier'!$D$19+'BP Financier'!$E$16+'BP Financier'!$E$19+'BP Financier'!$C$22+'BP Financier'!$D$22+'BP Financier'!$E$22))*$V4172*AA4172/(1-$W4172)","v":{"v":18125.89522957673,"d":"18,126"}},{"$f":"'BP Financier'!$E$44*(('BP Financier'!$C$16+'BP Financier'!$D$16+'BP Financier'!$E$16)/('BP Financier'!$C$16+'BP Financier'!$C$19+'BP Financier'!$D$16+'BP Financier'!$D$19+'BP Financier'!$E$16+'BP Financier'!$E$19+'BP Financier'!$C$22+'BP Financier'!$D$22+'BP Financier'!$E$22))*$V4172*AB4172/(1-$W4172)","v":{"v":8675.642161164928,"d":"8,676"}},null,{"v":1.6666666666666668E-3,"d":"0.17%"},{"$f":"Actif!$E$28/100","v":{"v":0.28900000000000003,"d":"28.90%"}},{"$f":"Actif!$E$30/100","v":{"v":0.09050000000000001,"d":"9.05%"}},{"$f":"Actif!$E$31/100","v":{"v":0.0605,"d":"6.05%"}},{"$f":"Actif!$E$32/100","v":{"v":0.47350000000000003,"d":"47.35%"}},{"$f":"Actif!$E$33/100","v":{"v":0.0585,"d":"5.85%"}},{"$f":"Actif!$E$29/100","v":{"v":0.027999999999999997,"d":"2.80%"}}]
[null,"#72",41,2029,"F","A_VIE",{"v":0.44999999999999996,"d":"0.45"},{"v":0.38999999999999996,"d":"0.39"},0.6,0.6,85,0,{"$f":"ROUND(Primes!$O$4*V4173,0)","v":11},{"$f":"'BP Financier'!$E$33*(('BP Financier'!$C$16+'BP Financier'!$D$16+'BP Financier'!$E$16)/('BP Financier'!$C$16+'BP Financier'!$C$19+'BP Financier'!$D$16+'BP Financier'!$D$19+'BP Financier'!$E$16+'BP Financier'!$E$19))*V4173","v":{"v":392797.7810805569,"d":"392,798"}},{"v":220299.34202100948,"d":"220,299"},{"$f":"'BP Financier'!$E$44*(('BP Financier'!$C$16+'BP Financier'!$D$16+'BP Financier'!$E$16)/('BP Financier'!$C$16+'BP Financier'!$C$19+'BP Financier'!$D$16+'BP Financier'!$D$19+'BP Financier'!$E$16+'BP Financier'!$E$19+'BP Financier'!$C$22+'BP Financier'!$D$22+'BP Financier'!$E$22))*$V4173*X4173/(1-$W4173)","v":{"v":28040.91484233665,"d":"28,041"}},{"$f":"'BP Financier'!$E$44*(('BP Financier'!$C$16+'BP Financier'!$D$16+'BP Financier'!$E$16)/('BP Financier'!$C$16+'BP Financier'!$C$19+'BP Financier'!$D$16+'BP Financier'!$D$19+'BP Financier'!$E$16+'BP Financier'!$E$19+'BP Financier'!$C$22+'BP Financier'!$D$22+'BP Financier'!$E$22))*$V4173*Y4173/(1-$W4173)","v":{"v":18745.583955374223,"d":"18,746"}},{"$f":"'BP Financier'!$E$44*(('BP Financier'!$C$16+'BP Financier'!$D$16+'BP Financier'!$E$16)/('BP Financier'!$C$16+'BP Financier'!$C$19+'BP Financier'!$D$16+'BP Financier'!$D$19+'BP Financier'!$E$16+'BP Financier'!$E$19+'BP Financier'!$C$22+'BP Financier'!$D$22+'BP Financier'!$E$22))*$V4173*Z4173/(1-$W4173)","v":{"v":146711.30583255694,"d":"146,711"}},{"$f":"'BP Financier'!$E$44*(('BP Financier'!$C$16+'BP Financier'!$D$16+'BP Financier'!$E$16)/('BP Financier'!$C$16+'BP Financier'!$C$19+'BP Financier'!$D$16+'BP Financier'!$D$19+'BP Financier'!$E$16+'BP Financier'!$E$19+'BP Financier'!$C$22+'BP Financier'!$D$22+'BP Financier'!$E$22))*$V4173*AA4173/(1-$W4173)","v":{"v":18125.89522957673,"d":"18,126"}},{"$f":"'BP Financier'!$E$44*(('BP Financier'!$C$16+'BP Financier'!$D$16+'BP Financier'!$E$16)/('BP Financier'!$C$16+'BP Financier'!$C$19+'BP Financier'!$D$16+'BP Financier'!$D$19+'BP Financier'!$E$16+'BP Financier'!$E$19+'BP Financier'!$C$22+'BP Financier'!$D$22+'BP Financier'!$E$22))*$V4173*AB4173/(1-$W4173)","v":{"v":8675.642161164928,"d":"8,676"}},null,{"v":1.6666666666666668E-3,"d":"0.17%"},{"$f":"Actif!$E$28/100","v":{"v":0.28900000000000003,"d":"28.90%"}},{"$f":"Actif!$E$30/100","v":{"v":0.09050000000000001,"d":"9.05%"}},{"$f":"Actif!$E$31/100","v":{"v":0.0605,"d":"6.05%"}},{"$f":"Actif!$E$32/100","v":{"v":0.47350000000000003,"d":"47.35%"}},{"$f":"Actif!$E$33/100","v":{"v":0.0585,"d":"5.85%"}},{"$f":"Actif!$E$29/100","v":{"v":0.027999999999999997,"d":"2.80%"}}]
[null,"#73",42,2026,"H","A_VIE",{"v":0.44999999999999996,"d":"0.45"},{"v":0.38999999999999996,"d":"0.39"},0.6,0.6,85,0,{"$f":"ROUND(Primes!$O$4*V4174,0)","v":11},{"$f":"'BP Financier'!$E$33*(('BP Financier'!$C$16+'BP Financier'!$D$16+'BP Financier'!$E$16)/('BP Financier'!$C$16+'BP Financier'!$C$19+'BP Financier'!$D$16+'BP Financier'!$D$19+'BP Financier'!$E$16+'BP Financier'!$E$19))*V4174","v":{"v":392797.7810805569,"d":"392,798"}},{"v":220299.34202100948,"d":"220,299"},{"$f":"'BP Financier'!$E$44*(('BP Financier'!$C$16+'BP Financier'!$D$16+'BP Financier'!$E$16)/('BP Financier'!$C$16+'BP Financier'!$C$19+'BP Financier'!$D$16+'BP Financier'!$D$19+'BP Financier'!$E$16+'BP Financier'!$E$19+'BP Financier'!$C$22+'BP Financier'!$D$22+'BP Financier'!$E$22))*$V4174*X4174/(1-$W4174)","v":{"v":28040.91484233665,"d":"28,041"}},{"$f":"'BP Financier'!$E$44*(('BP Financier'!$C$16+'BP Financier'!$D$16+'BP Financier'!$E$16)/('BP Financier'!$C$16+'BP Financier'!$C$19+'BP Financier'!$D$16+'BP Financier'!$D$19+'BP Financier'!$E$16+'BP Financier'!$E$19+'BP Financier'!$C$22+'BP Financier'!$D$22+'BP Financier'!$E$22))*$V4174*Y4174/(1-$W4174)","v":{"v":18745.583955374223,"d":"18,746"}},{"$f":"'BP Financier'!$E$44*(('BP Financier'!$C$16+'BP Financier'!$D$16+'BP Financier'!$E$16)/('BP Financier'!$C$16+'BP Financier'!$C$19+'BP Financier'!$D$16+'BP Financier'!$D$19+'BP Financier'!$E$16+'BP Financier'!$E$19+'BP Financier'!$C$22+'BP Financier'!$D$22+'BP Financier'!$E$22))*$V4174*Z4174/(1-$W4174)","v":{"v":146711.30583255694,"d":"146,711"}},{"$f":"'BP Financier'!$E$44*(('BP Financier'!$C$16+'BP Financier'!$D$16+'BP Financier'!$E$16)/('BP Financier'!$C$16+'BP Financier'!$C$19+'BP Financier'!$D$16+'BP Financier'!$D$19+'BP Financier'!$E$16+'BP Financier'!$E$19+'BP Financier'!$C$22+'BP Financier'!$D$22+'BP Financier'!$E$22))*$V4174*AA4174/(1-$W4174)","v":{"v":18125.89522957673,"d":"18,126"}},{"$f":"'BP Financier'!$E$44*(('BP Financier'!$C$16+'BP Financier'!$D$16+'BP Financier'!$E$16)/('BP Financier'!$C$16+'BP Financier'!$C$19+'BP Financier'!$D$16+'BP Financier'!$D$19+'BP Financier'!$E$16+'BP Financier'!$E$19+'BP Financier'!$C$22+'BP Financier'!$D$22+'BP Financier'!$E$22))*$V4174*AB4174/(1-$W4174)","v":{"v":8675.642161164928,"d":"8,676"}},null,{"v":1.6666666666666668E-3,"d":"0.17%"},{"$f":"Actif!$E$28/100","v":{"v":0.28900000000000003,"d":"28.90%"}},{"$f":"Actif!$E$30/100","v":{"v":0.09050000000000001,"d":"9.05%"}},{"$f":"Actif!$E$31/100","v":{"v":0.0605,"d":"6.05%"}},{"$f":"Actif!$E$32/100","v":{"v":0.47350000000000003,"d":"47.35%"}},{"$f":"Actif!$E$33/100","v":{"v":0.0585,"d":"5.85%"}},{"$f":"Actif!$E$29/100","v":{"v":0.027999999999999997,"d":"2.80%"}}]
[null,"#74",42,2028,"H","A_VIE",{"v":0.44999999999999996,"d":"0.45"},{"v":0.38999999999999996,"d":"0.39"},0.6,0.6,85,0,{"$f":"ROUND(Primes!$O$4*V4175,0)","v":11},{"$f":"'BP Financier'!$E$33*(('BP Financier'!$C$16+'BP Financier'!$D$16+'BP Financier'!$E$16)/('BP Financier'!$C$16+'BP Financier'!$C$19+'BP Financier'!$D$16+'BP Financier'!$D$19+'BP Financier'!$E$16+'BP Financier'!$E$19))*V4175","v":{"v":392797.7810805569,"d":"392,798"}},{"v":220299.34202100948,"d":"220,299"},{"$f":"'BP Financier'!$E$44*(('BP Financier'!$C$16+'BP Financier'!$D$16+'BP Financier'!$E$16)/('BP Financier'!$C$16+'BP Financier'!$C$19+'BP Financier'!$D$16+'BP Financier'!$D$19+'BP Financier'!$E$16+'BP Financier'!$E$19+'BP Financier'!$C$22+'BP Financier'!$D$22+'BP Financier'!$E$22))*$V4175*X4175/(1-$W4175)","v":{"v":28040.91484233665,"d":"28,041"}},{"$f":"'BP Financier'!$E$44*(('BP Financier'!$C$16+'BP Financier'!$D$16+'BP Financier'!$E$16)/('BP Financier'!$C$16+'BP Financier'!$C$19+'BP Financier'!$D$16+'BP Financier'!$D$19+'BP Financier'!$E$16+'BP Financier'!$E$19+'BP Financier'!$C$22+'BP Financier'!$D$22+'BP Financier'!$E$22))*$V4175*Y4175/(1-$W4175)","v":{"v":18745.583955374223,"d":"18,746"}},{"$f":"'BP Financier'!$E$44*(('BP Financier'!$C$16+'BP Financier'!$D$16+'BP Financier'!$E$16)/('BP Financier'!$C$16+'BP Financier'!$C$19+'BP Financier'!$D$16+'BP Financier'!$D$19+'BP Financier'!$E$16+'BP Financier'!$E$19+'BP Financier'!$C$22+'BP Financier'!$D$22+'BP Financier'!$E$22))*$V4175*Z4175/(1-$W4175)","v":{"v":146711.30583255694,"d":"146,711"}},{"$f":"'BP Financier'!$E$44*(('BP Financier'!$C$16+'BP Financier'!$D$16+'BP Financier'!$E$16)/('BP Financier'!$C$16+'BP Financier'!$C$19+'BP Financier'!$D$16+'BP Financier'!$D$19+'BP Financier'!$E$16+'BP Financier'!$E$19+'BP Financier'!$C$22+'BP Financier'!$D$22+'BP Financier'!$E$22))*$V4175*AA4175/(1-$W4175)","v":{"v":18125.89522957673,"d":"18,126"}},{"$f":"'BP Financier'!$E$44*(('BP Financier'!$C$16+'BP Financier'!$D$16+'BP Financier'!$E$16)/('BP Financier'!$C$16+'BP Financier'!$C$19+'BP Financier'!$D$16+'BP Financier'!$D$19+'BP Financier'!$E$16+'BP Financier'!$E$19+'BP Financier'!$C$22+'BP Financier'!$D$22+'BP Financier'!$E$22))*$V4175*AB4175/(1-$W4175)","v":{"v":8675.642161164928,"d":"8,676"}},null,{"v":1.6666666666666668E-3,"d":"0.17%"},{"$f":"Actif!$E$28/100","v":{"v":0.28900000000000003,"d":"28.90%"}},{"$f":"Actif!$E$30/100","v":{"v":0.09050000000000001,"d":"9.05%"}},{"$f":"Actif!$E$31/100","v":{"v":0.0605,"d":"6.05%"}},{"$f":"Actif!$E$32/100","v":{"v":0.47350000000000003,"d":"47.35%"}},{"$f":"Actif!$E$33/100","v":{"v":0.0585,"d":"5.85%"}},{"$f":"Actif!$E$29/100","v":{"v":0.027999999999999997,"d":"2.80%"}}]
[null,"#75",42,2029,"H","A_VIE",{"v":0.44999999999999996,"d":"0.45"},{"v":0.38999999999999996,"d":"0.39"},0.6,0.6,85,0,{"$f":"ROUND(Primes!$O$4*V4176,0)","v":11},{"$f":"'BP Financier'!$E$33*(('BP Financier'!$C$16+'BP Financier'!$D$16+'BP Financier'!$E$16)/('BP Financier'!$C$16+'BP Financier'!$C$19+'BP Financier'!$D$16+'BP Financier'!$D$19+'BP Financier'!$E$16+'BP Financier'!$E$19))*V4176","v":{"v":392797.7810805569,"d":"392,798"}},{"v":220299.34202100948,"d":"220,299"},{"$f":"'BP Financier'!$E$44*(('BP Financier'!$C$16+'BP Financier'!$D$16+'BP Financier'!$E$16)/('BP Financier'!$C$16+'BP Financier'!$C$19+'BP Financier'!$D$16+'BP Financier'!$D$19+'BP Financier'!$E$16+'BP Financier'!$E$19+'BP Financier'!$C$22+'BP Financier'!$D$22+'BP Financier'!$E$22))*$V4176*X4176/(1-$W4176)","v":{"v":28040.91484233665,"d":"28,041"}},{"$f":"'BP Financier'!$E$44*(('BP Financier'!$C$16+'BP Financier'!$D$16+'BP Financier'!$E$16)/('BP Financier'!$C$16+'BP Financier'!$C$19+'BP Financier'!$D$16+'BP Financier'!$D$19+'BP Financier'!$E$16+'BP Financier'!$E$19+'BP Financier'!$C$22+'BP Financier'!$D$22+'BP Financier'!$E$22))*$V4176*Y4176/(1-$W4176)","v":{"v":18745.583955374223,"d":"18,746"}},{"$f":"'BP Financier'!$E$44*(('BP Financier'!$C$16+'BP Financier'!$D$16+'BP Financier'!$E$16)/('BP Financier'!$C$16+'BP Financier'!$C$19+'BP Financier'!$D$16+'BP Financier'!$D$19+'BP Financier'!$E$16+'BP Financier'!$E$19+'BP Financier'!$C$22+'BP Financier'!$D$22+'BP Financier'!$E$22))*$V4176*Z4176/(1-$W4176)","v":{"v":146711.30583255694,"d":"146,711"}},{"$f":"'BP Financier'!$E$44*(('BP Financier'!$C$16+'BP Financier'!$D$16+'BP Financier'!$E$16)/('BP Financier'!$C$16+'BP Financier'!$C$19+'BP Financier'!$D$16+'BP Financier'!$D$19+'BP Financier'!$E$16+'BP Financier'!$E$19+'BP Financier'!$C$22+'BP Financier'!$D$22+'BP Financier'!$E$22))*$V4176*AA4176/(1-$W4176)","v":{"v":18125.89522957673,"d":"18,126"}},{"$f":"'BP Financier'!$E$44*(('BP Financier'!$C$16+'BP Financier'!$D$16+'BP Financier'!$E$16)/('BP Financier'!$C$16+'BP Financier'!$C$19+'BP Financier'!$D$16+'BP Financier'!$D$19+'BP Financier'!$E$16+'BP Financier'!$E$19+'BP Financier'!$C$22+'BP Financier'!$D$22+'BP Financier'!$E$22))*$V4176*AB4176/(1-$W4176)","v":{"v":8675.642161164928,"d":"8,676"}},null,{"v":1.6666666666666668E-3,"d":"0.17%"},{"$f":"Actif!$E$28/100","v":{"v":0.28900000000000003,"d":"28.90%"}},{"$f":"Actif!$E$30/100","v":{"v":0.09050000000000001,"d":"9.05%"}},{"$f":"Actif!$E$31/100","v":{"v":0.0605,"d":"6.05%"}},{"$f":"Actif!$E$32/100","v":{"v":0.47350000000000003,"d":"47.35%"}},{"$f":"Actif!$E$33/100","v":{"v":0.0585,"d":"5.85%"}},{"$f":"Actif!$E$29/100","v":{"v":0.027999999999999997,"d":"2.80%"}}]
[null,"#76",43,2026,"H","A_VIE",{"v":0.44999999999999996,"d":"0.45"},{"v":0.38999999999999996,"d":"0.39"},0.6,0.6,85,0,{"$f":"ROUND(Primes!$O$4*V4177,0)","v":11},{"$f":"'BP Financier'!$E$33*(('BP Financier'!$C$16+'BP Financier'!$D$16+'BP Financier'!$E$16)/('BP Financier'!$C$16+'BP Financier'!$C$19+'BP Financier'!$D$16+'BP Financier'!$D$19+'BP Financier'!$E$16+'BP Financier'!$E$19))*V4177","v":{"v":392797.7810805569,"d":"392,798"}},{"v":220299.34202100948,"d":"220,299"},{"$f":"'BP Financier'!$E$44*(('BP Financier'!$C$16+'BP Financier'!$D$16+'BP Financier'!$E$16)/('BP Financier'!$C$16+'BP Financier'!$C$19+'BP Financier'!$D$16+'BP Financier'!$D$19+'BP Financier'!$E$16+'BP Financier'!$E$19+'BP Financier'!$C$22+'BP Financier'!$D$22+'BP Financier'!$E$22))*$V4177*X4177/(1-$W4177)","v":{"v":28040.91484233665,"d":"28,041"}},{"$f":"'BP Financier'!$E$44*(('BP Financier'!$C$16+'BP Financier'!$D$16+'BP Financier'!$E$16)/('BP Financier'!$C$16+'BP Financier'!$C$19+'BP Financier'!$D$16+'BP Financier'!$D$19+'BP Financier'!$E$16+'BP Financier'!$E$19+'BP Financier'!$C$22+'BP Financier'!$D$22+'BP Financier'!$E$22))*$V4177*Y4177/(1-$W4177)","v":{"v":18745.583955374223,"d":"18,746"}},{"$f":"'BP Financier'!$E$44*(('BP Financier'!$C$16+'BP Financier'!$D$16+'BP Financier'!$E$16)/('BP Financier'!$C$16+'BP Financier'!$C$19+'BP Financier'!$D$16+'BP Financier'!$D$19+'BP Financier'!$E$16+'BP Financier'!$E$19+'BP Financier'!$C$22+'BP Financier'!$D$22+'BP Financier'!$E$22))*$V4177*Z4177/(1-$W4177)","v":{"v":146711.30583255694,"d":"146,711"}},{"$f":"'BP Financier'!$E$44*(('BP Financier'!$C$16+'BP Financier'!$D$16+'BP Financier'!$E$16)/('BP Financier'!$C$16+'BP Financier'!$C$19+'BP Financier'!$D$16+'BP Financier'!$D$19+'BP Financier'!$E$16+'BP Financier'!$E$19+'BP Financier'!$C$22+'BP Financier'!$D$22+'BP Financier'!$E$22))*$V4177*AA4177/(1-$W4177)","v":{"v":18125.89522957673,"d":"18,126"}},{"$f":"'BP Financier'!$E$44*(('BP Financier'!$C$16+'BP Financier'!$D$16+'BP Financier'!$E$16)/('BP Financier'!$C$16+'BP Financier'!$C$19+'BP Financier'!$D$16+'BP Financier'!$D$19+'BP Financier'!$E$16+'BP Financier'!$E$19+'BP Financier'!$C$22+'BP Financier'!$D$22+'BP Financier'!$E$22))*$V4177*AB4177/(1-$W4177)","v":{"v":8675.642161164928,"d":"8,676"}},null,{"v":1.6666666666666668E-3,"d":"0.17%"},{"$f":"Actif!$E$28/100","v":{"v":0.28900000000000003,"d":"28.90%"}},{"$f":"Actif!$E$30/100","v":{"v":0.09050000000000001,"d":"9.05%"}},{"$f":"Actif!$E$31/100","v":{"v":0.0605,"d":"6.05%"}},{"$f":"Actif!$E$32/100","v":{"v":0.47350000000000003,"d":"47.35%"}},{"$f":"Actif!$E$33/100","v":{"v":0.0585,"d":"5.85%"}},{"$f":"Actif!$E$29/100","v":{"v":0.027999999999999997,"d":"2.80%"}}]
[null,"#77",43,2028,"H","A_VIE",{"v":0.44999999999999996,"d":"0.45"},{"v":0.38999999999999996,"d":"0.39"},0.6,0.6,85,0,{"$f":"ROUND(Primes!$O$4*V4178,0)","v":11},{"$f":"'BP Financier'!$E$33*(('BP Financier'!$C$16+'BP Financier'!$D$16+'BP Financier'!$E$16)/('BP Financier'!$C$16+'BP Financier'!$C$19+'BP Financier'!$D$16+'BP Financier'!$D$19+'BP Financier'!$E$16+'BP Financier'!$E$19))*V4178","v":{"v":392797.7810805569,"d":"392,798"}},{"v":220299.34202100948,"d":"220,299"},{"$f":"'BP Financier'!$E$44*(('BP Financier'!$C$16+'BP Financier'!$D$16+'BP Financier'!$E$16)/('BP Financier'!$C$16+'BP Financier'!$C$19+'BP Financier'!$D$16+'BP Financier'!$D$19+'BP Financier'!$E$16+'BP Financier'!$E$19+'BP Financier'!$C$22+'BP Financier'!$D$22+'BP Financier'!$E$22))*$V4178*X4178/(1-$W4178)","v":{"v":28040.91484233665,"d":"28,041"}},{"$f":"'BP Financier'!$E$44*(('BP Financier'!$C$16+'BP Financier'!$D$16+'BP Financier'!$E$16)/('BP Financier'!$C$16+'BP Financier'!$C$19+'BP Financier'!$D$16+'BP Financier'!$D$19+'BP Financier'!$E$16+'BP Financier'!$E$19+'BP Financier'!$C$22+'BP Financier'!$D$22+'BP Financier'!$E$22))*$V4178*Y4178/(1-$W4178)","v":{"v":18745.583955374223,"d":"18,746"}},{"$f":"'BP Financier'!$E$44*(('BP Financier'!$C$16+'BP Financier'!$D$16+'BP Financier'!$E$16)/('BP Financier'!$C$16+'BP Financier'!$C$19+'BP Financier'!$D$16+'BP Financier'!$D$19+'BP Financier'!$E$16+'BP Financier'!$E$19+'BP Financier'!$C$22+'BP Financier'!$D$22+'BP Financier'!$E$22))*$V4178*Z4178/(1-$W4178)","v":{"v":146711.30583255694,"d":"146,711"}},{"$f":"'BP Financier'!$E$44*(('BP Financier'!$C$16+'BP Financier'!$D$16+'BP Financier'!$E$16)/('BP Financier'!$C$16+'BP Financier'!$C$19+'BP Financier'!$D$16+'BP Financier'!$D$19+'BP Financier'!$E$16+'BP Financier'!$E$19+'BP Financier'!$C$22+'BP Financier'!$D$22+'BP Financier'!$E$22))*$V4178*AA4178/(1-$W4178)","v":{"v":18125.89522957673,"d":"18,126"}},{"$f":"'BP Financier'!$E$44*(('BP Financier'!$C$16+'BP Financier'!$D$16+'BP Financier'!$E$16)/('BP Financier'!$C$16+'BP Financier'!$C$19+'BP Financier'!$D$16+'BP Financier'!$D$19+'BP Financier'!$E$16+'BP Financier'!$E$19+'BP Financier'!$C$22+'BP Financier'!$D$22+'BP Financier'!$E$22))*$V4178*AB4178/(1-$W4178)","v":{"v":8675.642161164928,"d":"8,676"}},null,{"v":1.6666666666666668E-3,"d":"0.17%"},{"$f":"Actif!$E$28/100","v":{"v":0.28900000000000003,"d":"28.90%"}},{"$f":"Actif!$E$30/100","v":{"v":0.09050000000000001,"d":"9.05%"}},{"$f":"Actif!$E$31/100","v":{"v":0.0605,"d":"6.05%"}},{"$f":"Actif!$E$32/100","v":{"v":0.47350000000000003,"d":"47.35%"}},{"$f":"Actif!$E$33/100","v":{"v":0.0585,"d":"5.85%"}},{"$f":"Actif!$E$29/100","v":{"v":0.027999999999999997,"d":"2.80%"}}]
[null,"#78",43,2029,"H","A_VIE",{"v":0.44999999999999996,"d":"0.45"},{"v":0.38999999999999996,"d":"0.39"},0.6,0.6,85,0,{"$f":"ROUND(Primes!$O$4*V4179,0)","v":11},{"$f":"'BP Financier'!$E$33*(('BP Financier'!$C$16+'BP Financier'!$D$16+'BP Financier'!$E$16)/('BP Financier'!$C$16+'BP Financier'!$C$19+'BP Financier'!$D$16+'BP Financier'!$D$19+'BP Financier'!$E$16+'BP Financier'!$E$19))*V4179","v":{"v":392797.7810805569,"d":"392,798"}},{"v":220299.34202100948,"d":"220,299"},{"$f":"'BP Financier'!$E$44*(('BP Financier'!$C$16+'BP Financier'!$D$16+'BP Financier'!$E$16)/('BP Financier'!$C$16+'BP Financier'!$C$19+'BP Financier'!$D$16+'BP Financier'!$D$19+'BP Financier'!$E$16+'BP Financier'!$E$19+'BP Financier'!$C$22+'BP Financier'!$D$22+'BP Financier'!$E$22))*$V4179*X4179/(1-$W4179)","v":{"v":28040.91484233665,"d":"28,041"}},{"$f":"'BP Financier'!$E$44*(('BP Financier'!$C$16+'BP Financier'!$D$16+'BP Financier'!$E$16)/('BP Financier'!$C$16+'BP Financier'!$C$19+'BP Financier'!$D$16+'BP Financier'!$D$19+'BP Financier'!$E$16+'BP Financier'!$E$19+'BP Financier'!$C$22+'BP Financier'!$D$22+'BP Financier'!$E$22))*$V4179*Y4179/(1-$W4179)","v":{"v":18745.583955374223,"d":"18,746"}},{"$f":"'BP Financier'!$E$44*(('BP Financier'!$C$16+'BP Financier'!$D$16+'BP Financier'!$E$16)/('BP Financier'!$C$16+'BP Financier'!$C$19+'BP Financier'!$D$16+'BP Financier'!$D$19+'BP Financier'!$E$16+'BP Financier'!$E$19+'BP Financier'!$C$22+'BP Financier'!$D$22+'BP Financier'!$E$22))*$V4179*Z4179/(1-$W4179)","v":{"v":146711.30583255694,"d":"146,711"}},{"$f":"'BP Financier'!$E$44*(('BP Financier'!$C$16+'BP Financier'!$D$16+'BP Financier'!$E$16)/('BP Financier'!$C$16+'BP Financier'!$C$19+'BP Financier'!$D$16+'BP Financier'!$D$19+'BP Financier'!$E$16+'BP Financier'!$E$19+'BP Financier'!$C$22+'BP Financier'!$D$22+'BP Financier'!$E$22))*$V4179*AA4179/(1-$W4179)","v":{"v":18125.89522957673,"d":"18,126"}},{"$f":"'BP Financier'!$E$44*(('BP Financier'!$C$16+'BP Financier'!$D$16+'BP Financier'!$E$16)/('BP Financier'!$C$16+'BP Financier'!$C$19+'BP Financier'!$D$16+'BP Financier'!$D$19+'BP Financier'!$E$16+'BP Financier'!$E$19+'BP Financier'!$C$22+'BP Financier'!$D$22+'BP Financier'!$E$22))*$V4179*AB4179/(1-$W4179)","v":{"v":8675.642161164928,"d":"8,676"}},null,{"v":1.6666666666666668E-3,"d":"0.17%"},{"$f":"Actif!$E$28/100","v":{"v":0.28900000000000003,"d":"28.90%"}},{"$f":"Actif!$E$30/100","v":{"v":0.09050000000000001,"d":"9.05%"}},{"$f":"Actif!$E$31/100","v":{"v":0.0605,"d":"6.05%"}},{"$f":"Actif!$E$32/100","v":{"v":0.47350000000000003,"d":"47.35%"}},{"$f":"Actif!$E$33/100","v":{"v":0.0585,"d":"5.85%"}},{"$f":"Actif!$E$29/100","v":{"v":0.027999999999999997,"d":"2.80%"}}]
[null,"#79",44,2026,"F","A_VIE",{"v":0.44999999999999996,"d":"0.45"},{"v":0.38999999999999996,"d":"0.39"},0.6,0.6,85,0,{"$f":"ROUND(Primes!$O$4*V4180,0)","v":11},{"$f":"'BP Financier'!$E$33*(('BP Financier'!$C$16+'BP Financier'!$D$16+'BP Financier'!$E$16)/('BP Financier'!$C$16+'BP Financier'!$C$19+'BP Financier'!$D$16+'BP Financier'!$D$19+'BP Financier'!$E$16+'BP Financier'!$E$19))*V4180","v":{"v":392797.7810805569,"d":"392,798"}},{"v":220299.34202100948,"d":"220,299"},{"$f":"'BP Financier'!$E$44*(('BP Financier'!$C$16+'BP Financier'!$D$16+'BP Financier'!$E$16)/('BP Financier'!$C$16+'BP Financier'!$C$19+'BP Financier'!$D$16+'BP Financier'!$D$19+'BP Financier'!$E$16+'BP Financier'!$E$19+'BP Financier'!$C$22+'BP Financier'!$D$22+'BP Financier'!$E$22))*$V4180*X4180/(1-$W4180)","v":{"v":28040.91484233665,"d":"28,041"}},{"$f":"'BP Financier'!$E$44*(('BP Financier'!$C$16+'BP Financier'!$D$16+'BP Financier'!$E$16)/('BP Financier'!$C$16+'BP Financier'!$C$19+'BP Financier'!$D$16+'BP Financier'!$D$19+'BP Financier'!$E$16+'BP Financier'!$E$19+'BP Financier'!$C$22+'BP Financier'!$D$22+'BP Financier'!$E$22))*$V4180*Y4180/(1-$W4180)","v":{"v":18745.583955374223,"d":"18,746"}},{"$f":"'BP Financier'!$E$44*(('BP Financier'!$C$16+'BP Financier'!$D$16+'BP Financier'!$E$16)/('BP Financier'!$C$16+'BP Financier'!$C$19+'BP Financier'!$D$16+'BP Financier'!$D$19+'BP Financier'!$E$16+'BP Financier'!$E$19+'BP Financier'!$C$22+'BP Financier'!$D$22+'BP Financier'!$E$22))*$V4180*Z4180/(1-$W4180)","v":{"v":146711.30583255694,"d":"146,711"}},{"$f":"'BP Financier'!$E$44*(('BP Financier'!$C$16+'BP Financier'!$D$16+'BP Financier'!$E$16)/('BP Financier'!$C$16+'BP Financier'!$C$19+'BP Financier'!$D$16+'BP Financier'!$D$19+'BP Financier'!$E$16+'BP Financier'!$E$19+'BP Financier'!$C$22+'BP Financier'!$D$22+'BP Financier'!$E$22))*$V4180*AA4180/(1-$W4180)","v":{"v":18125.89522957673,"d":"18,126"}},{"$f":"'BP Financier'!$E$44*(('BP Financier'!$C$16+'BP Financier'!$D$16+'BP Financier'!$E$16)/('BP Financier'!$C$16+'BP Financier'!$C$19+'BP Financier'!$D$16+'BP Financier'!$D$19+'BP Financier'!$E$16+'BP Financier'!$E$19+'BP Financier'!$C$22+'BP Financier'!$D$22+'BP Financier'!$E$22))*$V4180*AB4180/(1-$W4180)","v":{"v":8675.642161164928,"d":"8,676"}},null,{"v":1.6666666666666668E-3,"d":"0.17%"},{"$f":"Actif!$E$28/100","v":{"v":0.28900000000000003,"d":"28.90%"}},{"$f":"Actif!$E$30/100","v":{"v":0.09050000000000001,"d":"9.05%"}},{"$f":"Actif!$E$31/100","v":{"v":0.0605,"d":"6.05%"}},{"$f":"Actif!$E$32/100","v":{"v":0.47350000000000003,"d":"47.35%"}},{"$f":"Actif!$E$33/100","v":{"v":0.0585,"d":"5.85%"}},{"$f":"Actif!$E$29/100","v":{"v":0.027999999999999997,"d":"2.80%"}}]
[null,"#80",44,2028,"F","A_VIE",{"v":0.44999999999999996,"d":"0.45"},{"v":0.38999999999999996,"d":"0.39"},0.6,0.6,85,0,{"$f":"ROUND(Primes!$O$4*V4181,0)","v":11},{"$f":"'BP Financier'!$E$33*(('BP Financier'!$C$16+'BP Financier'!$D$16+'BP Financier'!$E$16)/('BP Financier'!$C$16+'BP Financier'!$C$19+'BP Financier'!$D$16+'BP Financier'!$D$19+'BP Financier'!$E$16+'BP Financier'!$E$19))*V4181","v":{"v":392797.7810805569,"d":"392,798"}},{"v":220299.34202100948,"d":"220,299"},{"$f":"'BP Financier'!$E$44*(('BP Financier'!$C$16+'BP Financier'!$D$16+'BP Financier'!$E$16)/('BP Financier'!$C$16+'BP Financier'!$C$19+'BP Financier'!$D$16+'BP Financier'!$D$19+'BP Financier'!$E$16+'BP Financier'!$E$19+'BP Financier'!$C$22+'BP Financier'!$D$22+'BP Financier'!$E$22))*$V4181*X4181/(1-$W4181)","v":{"v":28040.91484233665,"d":"28,041"}},{"$f":"'BP Financier'!$E$44*(('BP Financier'!$C$16+'BP Financier'!$D$16+'BP Financier'!$E$16)/('BP Financier'!$C$16+'BP Financier'!$C$19+'BP Financier'!$D$16+'BP Financier'!$D$19+'BP Financier'!$E$16+'BP Financier'!$E$19+'BP Financier'!$C$22+'BP Financier'!$D$22+'BP Financier'!$E$22))*$V4181*Y4181/(1-$W4181)","v":{"v":18745.583955374223,"d":"18,746"}},{"$f":"'BP Financier'!$E$44*(('BP Financier'!$C$16+'BP Financier'!$D$16+'BP Financier'!$E$16)/('BP Financier'!$C$16+'BP Financier'!$C$19+'BP Financier'!$D$16+'BP Financier'!$D$19+'BP Financier'!$E$16+'BP Financier'!$E$19+'BP Financier'!$C$22+'BP Financier'!$D$22+'BP Financier'!$E$22))*$V4181*Z4181/(1-$W4181)","v":{"v":146711.30583255694,"d":"146,711"}},{"$f":"'BP Financier'!$E$44*(('BP Financier'!$C$16+'BP Financier'!$D$16+'BP Financier'!$E$16)/('BP Financier'!$C$16+'BP Financier'!$C$19+'BP Financier'!$D$16+'BP Financier'!$D$19+'BP Financier'!$E$16+'BP Financier'!$E$19+'BP Financier'!$C$22+'BP Financier'!$D$22+'BP Financier'!$E$22))*$V4181*AA4181/(1-$W4181)","v":{"v":18125.89522957673,"d":"18,126"}},{"$f":"'BP Financier'!$E$44*(('BP Financier'!$C$16+'BP Financier'!$D$16+'BP Financier'!$E$16)/('BP Financier'!$C$16+'BP Financier'!$C$19+'BP Financier'!$D$16+'BP Financier'!$D$19+'BP Financier'!$E$16+'BP Financier'!$E$19+'BP Financier'!$C$22+'BP Financier'!$D$22+'BP Financier'!$E$22))*$V4181*AB4181/(1-$W4181)","v":{"v":8675.642161164928,"d":"8,676"}},null,{"v":1.6666666666666668E-3,"d":"0.17%"},{"$f":"Actif!$E$28/100","v":{"v":0.28900000000000003,"d":"28.90%"}},{"$f":"Actif!$E$30/100","v":{"v":0.09050000000000001,"d":"9.05%"}},{"$f":"Actif!$E$31/100","v":{"v":0.0605,"d":"6.05%"}},{"$f":"Actif!$E$32/100","v":{"v":0.47350000000000003,"d":"47.35%"}},{"$f":"Actif!$E$33/100","v":{"v":0.0585,"d":"5.85%"}},{"$f":"Actif!$E$29/100","v":{"v":0.027999999999999997,"d":"2.80%"}}]
[null,"#81",44,2029,"F","A_VIE",{"v":0.44999999999999996,"d":"0.45"},{"v":0.38999999999999996,"d":"0.39"},0.6,0.6,85,0,{"$f":"ROUND(Primes!$O$4*V4182,0)","v":11},{"$f":"'BP Financier'!$E$33*(('BP Financier'!$C$16+'BP Financier'!$D$16+'BP Financier'!$E$16)/('BP Financier'!$C$16+'BP Financier'!$C$19+'BP Financier'!$D$16+'BP Financier'!$D$19+'BP Financier'!$E$16+'BP Financier'!$E$19))*V4182","v":{"v":392797.7810805569,"d":"392,798"}},{"v":220299.34202100948,"d":"220,299"},{"$f":"'BP Financier'!$E$44*(('BP Financier'!$C$16+'BP Financier'!$D$16+'BP Financier'!$E$16)/('BP Financier'!$C$16+'BP Financier'!$C$19+'BP Financier'!$D$16+'BP Financier'!$D$19+'BP Financier'!$E$16+'BP Financier'!$E$19+'BP Financier'!$C$22+'BP Financier'!$D$22+'BP Financier'!$E$22))*$V4182*X4182/(1-$W4182)","v":{"v":28040.91484233665,"d":"28,041"}},{"$f":"'BP Financier'!$E$44*(('BP Financier'!$C$16+'BP Financier'!$D$16+'BP Financier'!$E$16)/('BP Financier'!$C$16+'BP Financier'!$C$19+'BP Financier'!$D$16+'BP Financier'!$D$19+'BP Financier'!$E$16+'BP Financier'!$E$19+'BP Financier'!$C$22+'BP Financier'!$D$22+'BP Financier'!$E$22))*$V4182*Y4182/(1-$W4182)","v":{"v":18745.583955374223,"d":"18,746"}},{"$f":"'BP Financier'!$E$44*(('BP Financier'!$C$16+'BP Financier'!$D$16+'BP Financier'!$E$16)/('BP Financier'!$C$16+'BP Financier'!$C$19+'BP Financier'!$D$16+'BP Financier'!$D$19+'BP Financier'!$E$16+'BP Financier'!$E$19+'BP Financier'!$C$22+'BP Financier'!$D$22+'BP Financier'!$E$22))*$V4182*Z4182/(1-$W4182)","v":{"v":146711.30583255694,"d":"146,711"}},{"$f":"'BP Financier'!$E$44*(('BP Financier'!$C$16+'BP Financier'!$D$16+'BP Financier'!$E$16)/('BP Financier'!$C$16+'BP Financier'!$C$19+'BP Financier'!$D$16+'BP Financier'!$D$19+'BP Financier'!$E$16+'BP Financier'!$E$19+'BP Financier'!$C$22+'BP Financier'!$D$22+'BP Financier'!$E$22))*$V4182*AA4182/(1-$W4182)","v":{"v":18125.89522957673,"d":"18,126"}},{"$f":"'BP Financier'!$E$44*(('BP Financier'!$C$16+'BP Financier'!$D$16+'BP Financier'!$E$16)/('BP Financier'!$C$16+'BP Financier'!$C$19+'BP Financier'!$D$16+'BP Financier'!$D$19+'BP Financier'!$E$16+'BP Financier'!$E$19+'BP Financier'!$C$22+'BP Financier'!$D$22+'BP Financier'!$E$22))*$V4182*AB4182/(1-$W4182)","v":{"v":8675.642161164928,"d":"8,676"}},null,{"v":1.6666666666666668E-3,"d":"0.17%"},{"$f":"Actif!$E$28/100","v":{"v":0.28900000000000003,"d":"28.90%"}},{"$f":"Actif!$E$30/100","v":{"v":0.09050000000000001,"d":"9.05%"}},{"$f":"Actif!$E$31/100","v":{"v":0.0605,"d":"6.05%"}},{"$f":"Actif!$E$32/100","v":{"v":0.47350000000000003,"d":"47.35%"}},{"$f":"Actif!$E$33/100","v":{"v":0.0585,"d":"5.85%"}},{"$f":"Actif!$E$29/100","v":{"v":0.027999999999999997,"d":"2.80%"}}]
[null,"#82",45,2026,"H","A_VIE",{"v":0.44999999999999996,"d":"0.45"},{"v":0.38999999999999996,"d":"0.39"},0.6,0.6,85,0,{"$f":"ROUND(Primes!$O$4*V4183,0)","v":11},{"$f":"'BP Financier'!$E$33*(('BP Financier'!$C$16+'BP Financier'!$D$16+'BP Financier'!$E$16)/('BP Financier'!$C$16+'BP Financier'!$C$19+'BP Financier'!$D$16+'BP Financier'!$D$19+'BP Financier'!$E$16+'BP Financier'!$E$19))*V4183","v":{"v":392797.7810805569,"d":"392,798"}},{"v":220299.34202100948,"d":"220,299"},{"$f":"'BP Financier'!$E$44*(('BP Financier'!$C$16+'BP Financier'!$D$16+'BP Financier'!$E$16)/('BP Financier'!$C$16+'BP Financier'!$C$19+'BP Financier'!$D$16+'BP Financier'!$D$19+'BP Financier'!$E$16+'BP Financier'!$E$19+'BP Financier'!$C$22+'BP Financier'!$D$22+'BP Financier'!$E$22))*$V4183*X4183/(1-$W4183)","v":{"v":28040.91484233665,"d":"28,041"}},{"$f":"'BP Financier'!$E$44*(('BP Financier'!$C$16+'BP Financier'!$D$16+'BP Financier'!$E$16)/('BP Financier'!$C$16+'BP Financier'!$C$19+'BP Financier'!$D$16+'BP Financier'!$D$19+'BP Financier'!$E$16+'BP Financier'!$E$19+'BP Financier'!$C$22+'BP Financier'!$D$22+'BP Financier'!$E$22))*$V4183*Y4183/(1-$W4183)","v":{"v":18745.583955374223,"d":"18,746"}},{"$f":"'BP Financier'!$E$44*(('BP Financier'!$C$16+'BP Financier'!$D$16+'BP Financier'!$E$16)/('BP Financier'!$C$16+'BP Financier'!$C$19+'BP Financier'!$D$16+'BP Financier'!$D$19+'BP Financier'!$E$16+'BP Financier'!$E$19+'BP Financier'!$C$22+'BP Financier'!$D$22+'BP Financier'!$E$22))*$V4183*Z4183/(1-$W4183)","v":{"v":146711.30583255694,"d":"146,711"}},{"$f":"'BP Financier'!$E$44*(('BP Financier'!$C$16+'BP Financier'!$D$16+'BP Financier'!$E$16)/('BP Financier'!$C$16+'BP Financier'!$C$19+'BP Financier'!$D$16+'BP Financier'!$D$19+'BP Financier'!$E$16+'BP Financier'!$E$19+'BP Financier'!$C$22+'BP Financier'!$D$22+'BP Financier'!$E$22))*$V4183*AA4183/(1-$W4183)","v":{"v":18125.89522957673,"d":"18,126"}},{"$f":"'BP Financier'!$E$44*(('BP Financier'!$C$16+'BP Financier'!$D$16+'BP Financier'!$E$16)/('BP Financier'!$C$16+'BP Financier'!$C$19+'BP Financier'!$D$16+'BP Financier'!$D$19+'BP Financier'!$E$16+'BP Financier'!$E$19+'BP Financier'!$C$22+'BP Financier'!$D$22+'BP Financier'!$E$22))*$V4183*AB4183/(1-$W4183)","v":{"v":8675.642161164928,"d":"8,676"}},null,{"v":1.6666666666666668E-3,"d":"0.17%"},{"$f":"Actif!$E$28/100","v":{"v":0.28900000000000003,"d":"28.90%"}},{"$f":"Actif!$E$30/100","v":{"v":0.09050000000000001,"d":"9.05%"}},{"$f":"Actif!$E$31/100","v":{"v":0.0605,"d":"6.05%"}},{"$f":"Actif!$E$32/100","v":{"v":0.47350000000000003,"d":"47.35%"}},{"$f":"Actif!$E$33/100","v":{"v":0.0585,"d":"5.85%"}},{"$f":"Actif!$E$29/100","v":{"v":0.027999999999999997,"d":"2.80%"}}]
[null,"#83",45,2028,"H","A_VIE",{"v":0.44999999999999996,"d":"0.45"},{"v":0.38999999999999996,"d":"0.39"},0.6,0.6,85,0,{"$f":"ROUND(Primes!$O$4*V4184,0)","v":11},{"$f":"'BP Financier'!$E$33*(('BP Financier'!$C$16+'BP Financier'!$D$16+'BP Financier'!$E$16)/('BP Financier'!$C$16+'BP Financier'!$C$19+'BP Financier'!$D$16+'BP Financier'!$D$19+'BP Financier'!$E$16+'BP Financier'!$E$19))*V4184","v":{"v":392797.7810805569,"d":"392,798"}},{"v":220299.34202100948,"d":"220,299"},{"$f":"'BP Financier'!$E$44*(('BP Financier'!$C$16+'BP Financier'!$D$16+'BP Financier'!$E$16)/('BP Financier'!$C$16+'BP Financier'!$C$19+'BP Financier'!$D$16+'BP Financier'!$D$19+'BP Financier'!$E$16+'BP Financier'!$E$19+'BP Financier'!$C$22+'BP Financier'!$D$22+'BP Financier'!$E$22))*$V4184*X4184/(1-$W4184)","v":{"v":28040.91484233665,"d":"28,041"}},{"$f":"'BP Financier'!$E$44*(('BP Financier'!$C$16+'BP Financier'!$D$16+'BP Financier'!$E$16)/('BP Financier'!$C$16+'BP Financier'!$C$19+'BP Financier'!$D$16+'BP Financier'!$D$19+'BP Financier'!$E$16+'BP Financier'!$E$19+'BP Financier'!$C$22+'BP Financier'!$D$22+'BP Financier'!$E$22))*$V4184*Y4184/(1-$W4184)","v":{"v":18745.583955374223,"d":"18,746"}},{"$f":"'BP Financier'!$E$44*(('BP Financier'!$C$16+'BP Financier'!$D$16+'BP Financier'!$E$16)/('BP Financier'!$C$16+'BP Financier'!$C$19+'BP Financier'!$D$16+'BP Financier'!$D$19+'BP Financier'!$E$16+'BP Financier'!$E$19+'BP Financier'!$C$22+'BP Financier'!$D$22+'BP Financier'!$E$22))*$V4184*Z4184/(1-$W4184)","v":{"v":146711.30583255694,"d":"146,711"}},{"$f":"'BP Financier'!$E$44*(('BP Financier'!$C$16+'BP Financier'!$D$16+'BP Financier'!$E$16)/('BP Financier'!$C$16+'BP Financier'!$C$19+'BP Financier'!$D$16+'BP Financier'!$D$19+'BP Financier'!$E$16+'BP Financier'!$E$19+'BP Financier'!$C$22+'BP Financier'!$D$22+'BP Financier'!$E$22))*$V4184*AA4184/(1-$W4184)","v":{"v":18125.89522957673,"d":"18,126"}},{"$f":"'BP Financier'!$E$44*(('BP Financier'!$C$16+'BP Financier'!$D$16+'BP Financier'!$E$16)/('BP Financier'!$C$16+'BP Financier'!$C$19+'BP Financier'!$D$16+'BP Financier'!$D$19+'BP Financier'!$E$16+'BP Financier'!$E$19+'BP Financier'!$C$22+'BP Financier'!$D$22+'BP Financier'!$E$22))*$V4184*AB4184/(1-$W4184)","v":{"v":8675.642161164928,"d":"8,676"}},null,{"v":1.6666666666666668E-3,"d":"0.17%"},{"$f":"Actif!$E$28/100","v":{"v":0.28900000000000003,"d":"28.90%"}},{"$f":"Actif!$E$30/100","v":{"v":0.09050000000000001,"d":"9.05%"}},{"$f":"Actif!$E$31/100","v":{"v":0.0605,"d":"6.05%"}},{"$f":"Actif!$E$32/100","v":{"v":0.47350000000000003,"d":"47.35%"}},{"$f":"Actif!$E$33/100","v":{"v":0.0585,"d":"5.85%"}},{"$f":"Actif!$E$29/100","v":{"v":0.027999999999999997,"d":"2.80%"}}]
[null,"#84",45,2029,"H","A_VIE",{"v":0.44999999999999996,"d":"0.45"},{"v":0.38999999999999996,"d":"0.39"},0.6,0.6,85,0,{"$f":"ROUND(Primes!$O$4*V4185,0)","v":11},{"$f":"'BP Financier'!$E$33*(('BP Financier'!$C$16+'BP Financier'!$D$16+'BP Financier'!$E$16)/('BP Financier'!$C$16+'BP Financier'!$C$19+'BP Financier'!$D$16+'BP Financier'!$D$19+'BP Financier'!$E$16+'BP Financier'!$E$19))*V4185","v":{"v":392797.7810805569,"d":"392,798"}},{"v":220299.34202100948,"d":"220,299"},{"$f":"'BP Financier'!$E$44*(('BP Financier'!$C$16+'BP Financier'!$D$16+'BP Financier'!$E$16)/('BP Financier'!$C$16+'BP Financier'!$C$19+'BP Financier'!$D$16+'BP Financier'!$D$19+'BP Financier'!$E$16+'BP Financier'!$E$19+'BP Financier'!$C$22+'BP Financier'!$D$22+'BP Financier'!$E$22))*$V4185*X4185/(1-$W4185)","v":{"v":28040.91484233665,"d":"28,041"}},{"$f":"'BP Financier'!$E$44*(('BP Financier'!$C$16+'BP Financier'!$D$16+'BP Financier'!$E$16)/('BP Financier'!$C$16+'BP Financier'!$C$19+'BP Financier'!$D$16+'BP Financier'!$D$19+'BP Financier'!$E$16+'BP Financier'!$E$19+'BP Financier'!$C$22+'BP Financier'!$D$22+'BP Financier'!$E$22))*$V4185*Y4185/(1-$W4185)","v":{"v":18745.583955374223,"d":"18,746"}},{"$f":"'BP Financier'!$E$44*(('BP Financier'!$C$16+'BP Financier'!$D$16+'BP Financier'!$E$16)/('BP Financier'!$C$16+'BP Financier'!$C$19+'BP Financier'!$D$16+'BP Financier'!$D$19+'BP Financier'!$E$16+'BP Financier'!$E$19+'BP Financier'!$C$22+'BP Financier'!$D$22+'BP Financier'!$E$22))*$V4185*Z4185/(1-$W4185)","v":{"v":146711.30583255694,"d":"146,711"}},{"$f":"'BP Financier'!$E$44*(('BP Financier'!$C$16+'BP Financier'!$D$16+'BP Financier'!$E$16)/('BP Financier'!$C$16+'BP Financier'!$C$19+'BP Financier'!$D$16+'BP Financier'!$D$19+'BP Financier'!$E$16+'BP Financier'!$E$19+'BP Financier'!$C$22+'BP Financier'!$D$22+'BP Financier'!$E$22))*$V4185*AA4185/(1-$W4185)","v":{"v":18125.89522957673,"d":"18,126"}},{"$f":"'BP Financier'!$E$44*(('BP Financier'!$C$16+'BP Financier'!$D$16+'BP Financier'!$E$16)/('BP Financier'!$C$16+'BP Financier'!$C$19+'BP Financier'!$D$16+'BP Financier'!$D$19+'BP Financier'!$E$16+'BP Financier'!$E$19+'BP Financier'!$C$22+'BP Financier'!$D$22+'BP Financier'!$E$22))*$V4185*AB4185/(1-$W4185)","v":{"v":8675.642161164928,"d":"8,676"}},null,{"v":1.6666666666666668E-3,"d":"0.17%"},{"$f":"Actif!$E$28/100","v":{"v":0.28900000000000003,"d":"28.90%"}},{"$f":"Actif!$E$30/100","v":{"v":0.09050000000000001,"d":"9.05%"}},{"$f":"Actif!$E$31/100","v":{"v":0.0605,"d":"6.05%"}},{"$f":"Actif!$E$32/100","v":{"v":0.47350000000000003,"d":"47.35%"}},{"$f":"Actif!$E$33/100","v":{"v":0.0585,"d":"5.85%"}},{"$f":"Actif!$E$29/100","v":{"v":0.027999999999999997,"d":"2.80%"}}]
[null,"#85",46,2026,"H","A_VIE",{"v":0.44999999999999996,"d":"0.45"},{"v":0.38999999999999996,"d":"0.39"},0.6,0.6,85,0,{"$f":"ROUND(Primes!$O$4*V4186,0)","v":11},{"$f":"'BP Financier'!$E$33*(('BP Financier'!$C$16+'BP Financier'!$D$16+'BP Financier'!$E$16)/('BP Financier'!$C$16+'BP Financier'!$C$19+'BP Financier'!$D$16+'BP Financier'!$D$19+'BP Financier'!$E$16+'BP Financier'!$E$19))*V4186","v":{"v":392797.7810805569,"d":"392,798"}},{"v":220299.34202100948,"d":"220,299"},{"$f":"'BP Financier'!$E$44*(('BP Financier'!$C$16+'BP Financier'!$D$16+'BP Financier'!$E$16)/('BP Financier'!$C$16+'BP Financier'!$C$19+'BP Financier'!$D$16+'BP Financier'!$D$19+'BP Financier'!$E$16+'BP Financier'!$E$19+'BP Financier'!$C$22+'BP Financier'!$D$22+'BP Financier'!$E$22))*$V4186*X4186/(1-$W4186)","v":{"v":28040.91484233665,"d":"28,041"}},{"$f":"'BP Financier'!$E$44*(('BP Financier'!$C$16+'BP Financier'!$D$16+'BP Financier'!$E$16)/('BP Financier'!$C$16+'BP Financier'!$C$19+'BP Financier'!$D$16+'BP Financier'!$D$19+'BP Financier'!$E$16+'BP Financier'!$E$19+'BP Financier'!$C$22+'BP Financier'!$D$22+'BP Financier'!$E$22))*$V4186*Y4186/(1-$W4186)","v":{"v":18745.583955374223,"d":"18,746"}},{"$f":"'BP Financier'!$E$44*(('BP Financier'!$C$16+'BP Financier'!$D$16+'BP Financier'!$E$16)/('BP Financier'!$C$16+'BP Financier'!$C$19+'BP Financier'!$D$16+'BP Financier'!$D$19+'BP Financier'!$E$16+'BP Financier'!$E$19+'BP Financier'!$C$22+'BP Financier'!$D$22+'BP Financier'!$E$22))*$V4186*Z4186/(1-$W4186)","v":{"v":146711.30583255694,"d":"146,711"}},{"$f":"'BP Financier'!$E$44*(('BP Financier'!$C$16+'BP Financier'!$D$16+'BP Financier'!$E$16)/('BP Financier'!$C$16+'BP Financier'!$C$19+'BP Financier'!$D$16+'BP Financier'!$D$19+'BP Financier'!$E$16+'BP Financier'!$E$19+'BP Financier'!$C$22+'BP Financier'!$D$22+'BP Financier'!$E$22))*$V4186*AA4186/(1-$W4186)","v":{"v":18125.89522957673,"d":"18,126"}},{"$f":"'BP Financier'!$E$44*(('BP Financier'!$C$16+'BP Financier'!$D$16+'BP Financier'!$E$16)/('BP Financier'!$C$16+'BP Financier'!$C$19+'BP Financier'!$D$16+'BP Financier'!$D$19+'BP Financier'!$E$16+'BP Financier'!$E$19+'BP Financier'!$C$22+'BP Financier'!$D$22+'BP Financier'!$E$22))*$V4186*AB4186/(1-$W4186)","v":{"v":8675.642161164928,"d":"8,676"}},null,{"v":1.6666666666666668E-3,"d":"0.17%"},{"$f":"Actif!$E$28/100","v":{"v":0.28900000000000003,"d":"28.90%"}},{"$f":"Actif!$E$30/100","v":{"v":0.09050000000000001,"d":"9.05%"}},{"$f":"Actif!$E$31/100","v":{"v":0.0605,"d":"6.05%"}},{"$f":"Actif!$E$32/100","v":{"v":0.47350000000000003,"d":"47.35%"}},{"$f":"Actif!$E$33/100","v":{"v":0.0585,"d":"5.85%"}},{"$f":"Actif!$E$29/100","v":{"v":0.027999999999999997,"d":"2.80%"}}]
[null,"#86",46,2028,"H","A_VIE",{"v":0.44999999999999996,"d":"0.45"},{"v":0.38999999999999996,"d":"0.39"},0.6,0.6,85,0,{"$f":"ROUND(Primes!$O$4*V4187,0)","v":11},{"$f":"'BP Financier'!$E$33*(('BP Financier'!$C$16+'BP Financier'!$D$16+'BP Financier'!$E$16)/('BP Financier'!$C$16+'BP Financier'!$C$19+'BP Financier'!$D$16+'BP Financier'!$D$19+'BP Financier'!$E$16+'BP Financier'!$E$19))*V4187","v":{"v":392797.7810805569,"d":"392,798"}},{"v":220299.34202100948,"d":"220,299"},{"$f":"'BP Financier'!$E$44*(('BP Financier'!$C$16+'BP Financier'!$D$16+'BP Financier'!$E$16)/('BP Financier'!$C$16+'BP Financier'!$C$19+'BP Financier'!$D$16+'BP Financier'!$D$19+'BP Financier'!$E$16+'BP Financier'!$E$19+'BP Financier'!$C$22+'BP Financier'!$D$22+'BP Financier'!$E$22))*$V4187*X4187/(1-$W4187)","v":{"v":28040.91484233665,"d":"28,041"}},{"$f":"'BP Financier'!$E$44*(('BP Financier'!$C$16+'BP Financier'!$D$16+'BP Financier'!$E$16)/('BP Financier'!$C$16+'BP Financier'!$C$19+'BP Financier'!$D$16+'BP Financier'!$D$19+'BP Financier'!$E$16+'BP Financier'!$E$19+'BP Financier'!$C$22+'BP Financier'!$D$22+'BP Financier'!$E$22))*$V4187*Y4187/(1-$W4187)","v":{"v":18745.583955374223,"d":"18,746"}},{"$f":"'BP Financier'!$E$44*(('BP Financier'!$C$16+'BP Financier'!$D$16+'BP Financier'!$E$16)/('BP Financier'!$C$16+'BP Financier'!$C$19+'BP Financier'!$D$16+'BP Financier'!$D$19+'BP Financier'!$E$16+'BP Financier'!$E$19+'BP Financier'!$C$22+'BP Financier'!$D$22+'BP Financier'!$E$22))*$V4187*Z4187/(1-$W4187)","v":{"v":146711.30583255694,"d":"146,711"}},{"$f":"'BP Financier'!$E$44*(('BP Financier'!$C$16+'BP Financier'!$D$16+'BP Financier'!$E$16)/('BP Financier'!$C$16+'BP Financier'!$C$19+'BP Financier'!$D$16+'BP Financier'!$D$19+'BP Financier'!$E$16+'BP Financier'!$E$19+'BP Financier'!$C$22+'BP Financier'!$D$22+'BP Financier'!$E$22))*$V4187*AA4187/(1-$W4187)","v":{"v":18125.89522957673,"d":"18,126"}},{"$f":"'BP Financier'!$E$44*(('BP Financier'!$C$16+'BP Financier'!$D$16+'BP Financier'!$E$16)/('BP Financier'!$C$16+'BP Financier'!$C$19+'BP Financier'!$D$16+'BP Financier'!$D$19+'BP Financier'!$E$16+'BP Financier'!$E$19+'BP Financier'!$C$22+'BP Financier'!$D$22+'BP Financier'!$E$22))*$V4187*AB4187/(1-$W4187)","v":{"v":8675.642161164928,"d":"8,676"}},null,{"v":1.6666666666666668E-3,"d":"0.17%"},{"$f":"Actif!$E$28/100","v":{"v":0.28900000000000003,"d":"28.90%"}},{"$f":"Actif!$E$30/100","v":{"v":0.09050000000000001,"d":"9.05%"}},{"$f":"Actif!$E$31/100","v":{"v":0.0605,"d":"6.05%"}},{"$f":"Actif!$E$32/100","v":{"v":0.47350000000000003,"d":"47.35%"}},{"$f":"Actif!$E$33/100","v":{"v":0.0585,"d":"5.85%"}},{"$f":"Actif!$E$29/100","v":{"v":0.027999999999999997,"d":"2.80%"}}]
[null,"#87",46,2029,"H","A_VIE",{"v":0.44999999999999996,"d":"0.45"},{"v":0.38999999999999996,"d":"0.39"},0.6,0.6,85,0,{"$f":"ROUND(Primes!$O$4*V4188,0)","v":11},{"$f":"'BP Financier'!$E$33*(('BP Financier'!$C$16+'BP Financier'!$D$16+'BP Financier'!$E$16)/('BP Financier'!$C$16+'BP Financier'!$C$19+'BP Financier'!$D$16+'BP Financier'!$D$19+'BP Financier'!$E$16+'BP Financier'!$E$19))*V4188","v":{"v":392797.7810805569,"d":"392,798"}},{"v":220299.34202100948,"d":"220,299"},{"$f":"'BP Financier'!$E$44*(('BP Financier'!$C$16+'BP Financier'!$D$16+'BP Financier'!$E$16)/('BP Financier'!$C$16+'BP Financier'!$C$19+'BP Financier'!$D$16+'BP Financier'!$D$19+'BP Financier'!$E$16+'BP Financier'!$E$19+'BP Financier'!$C$22+'BP Financier'!$D$22+'BP Financier'!$E$22))*$V4188*X4188/(1-$W4188)","v":{"v":28040.91484233665,"d":"28,041"}},{"$f":"'BP Financier'!$E$44*(('BP Financier'!$C$16+'BP Financier'!$D$16+'BP Financier'!$E$16)/('BP Financier'!$C$16+'BP Financier'!$C$19+'BP Financier'!$D$16+'BP Financier'!$D$19+'BP Financier'!$E$16+'BP Financier'!$E$19+'BP Financier'!$C$22+'BP Financier'!$D$22+'BP Financier'!$E$22))*$V4188*Y4188/(1-$W4188)","v":{"v":18745.583955374223,"d":"18,746"}},{"$f":"'BP Financier'!$E$44*(('BP Financier'!$C$16+'BP Financier'!$D$16+'BP Financier'!$E$16)/('BP Financier'!$C$16+'BP Financier'!$C$19+'BP Financier'!$D$16+'BP Financier'!$D$19+'BP Financier'!$E$16+'BP Financier'!$E$19+'BP Financier'!$C$22+'BP Financier'!$D$22+'BP Financier'!$E$22))*$V4188*Z4188/(1-$W4188)","v":{"v":146711.30583255694,"d":"146,711"}},{"$f":"'BP Financier'!$E$44*(('BP Financier'!$C$16+'BP Financier'!$D$16+'BP Financier'!$E$16)/('BP Financier'!$C$16+'BP Financier'!$C$19+'BP Financier'!$D$16+'BP Financier'!$D$19+'BP Financier'!$E$16+'BP Financier'!$E$19+'BP Financier'!$C$22+'BP Financier'!$D$22+'BP Financier'!$E$22))*$V4188*AA4188/(1-$W4188)","v":{"v":18125.89522957673,"d":"18,126"}},{"$f":"'BP Financier'!$E$44*(('BP Financier'!$C$16+'BP Financier'!$D$16+'BP Financier'!$E$16)/('BP Financier'!$C$16+'BP Financier'!$C$19+'BP Financier'!$D$16+'BP Financier'!$D$19+'BP Financier'!$E$16+'BP Financier'!$E$19+'BP Financier'!$C$22+'BP Financier'!$D$22+'BP Financier'!$E$22))*$V4188*AB4188/(1-$W4188)","v":{"v":8675.642161164928,"d":"8,676"}},null,{"v":1.6666666666666668E-3,"d":"0.17%"},{"$f":"Actif!$E$28/100","v":{"v":0.28900000000000003,"d":"28.90%"}},{"$f":"Actif!$E$30/100","v":{"v":0.09050000000000001,"d":"9.05%"}},{"$f":"Actif!$E$31/100","v":{"v":0.0605,"d":"6.05%"}},{"$f":"Actif!$E$32/100","v":{"v":0.47350000000000003,"d":"47.35%"}},{"$f":"Actif!$E$33/100","v":{"v":0.0585,"d":"5.85%"}},{"$f":"Actif!$E$29/100","v":{"v":0.027999999999999997,"d":"2.80%"}}]
[null,"#88",47,2026,"F","A_VIE",{"v":0.44999999999999996,"d":"0.45"},{"v":0.38999999999999996,"d":"0.39"},0.6,0.6,85,0,{"$f":"ROUND(Primes!$O$4*V4189,0)","v":11},{"$f":"'BP Financier'!$E$33*(('BP Financier'!$C$16+'BP Financier'!$D$16+'BP Financier'!$E$16)/('BP Financier'!$C$16+'BP Financier'!$C$19+'BP Financier'!$D$16+'BP Financier'!$D$19+'BP Financier'!$E$16+'BP Financier'!$E$19))*V4189","v":{"v":392797.7810805569,"d":"392,798"}},{"v":220299.34202100948,"d":"220,299"},{"$f":"'BP Financier'!$E$44*(('BP Financier'!$C$16+'BP Financier'!$D$16+'BP Financier'!$E$16)/('BP Financier'!$C$16+'BP Financier'!$C$19+'BP Financier'!$D$16+'BP Financier'!$D$19+'BP Financier'!$E$16+'BP Financier'!$E$19+'BP Financier'!$C$22+'BP Financier'!$D$22+'BP Financier'!$E$22))*$V4189*X4189/(1-$W4189)","v":{"v":28040.91484233665,"d":"28,041"}},{"$f":"'BP Financier'!$E$44*(('BP Financier'!$C$16+'BP Financier'!$D$16+'BP Financier'!$E$16)/('BP Financier'!$C$16+'BP Financier'!$C$19+'BP Financier'!$D$16+'BP Financier'!$D$19+'BP Financier'!$E$16+'BP Financier'!$E$19+'BP Financier'!$C$22+'BP Financier'!$D$22+'BP Financier'!$E$22))*$V4189*Y4189/(1-$W4189)","v":{"v":18745.583955374223,"d":"18,746"}},{"$f":"'BP Financier'!$E$44*(('BP Financier'!$C$16+'BP Financier'!$D$16+'BP Financier'!$E$16)/('BP Financier'!$C$16+'BP Financier'!$C$19+'BP Financier'!$D$16+'BP Financier'!$D$19+'BP Financier'!$E$16+'BP Financier'!$E$19+'BP Financier'!$C$22+'BP Financier'!$D$22+'BP Financier'!$E$22))*$V4189*Z4189/(1-$W4189)","v":{"v":146711.30583255694,"d":"146,711"}},{"$f":"'BP Financier'!$E$44*(('BP Financier'!$C$16+'BP Financier'!$D$16+'BP Financier'!$E$16)/('BP Financier'!$C$16+'BP Financier'!$C$19+'BP Financier'!$D$16+'BP Financier'!$D$19+'BP Financier'!$E$16+'BP Financier'!$E$19+'BP Financier'!$C$22+'BP Financier'!$D$22+'BP Financier'!$E$22))*$V4189*AA4189/(1-$W4189)","v":{"v":18125.89522957673,"d":"18,126"}},{"$f":"'BP Financier'!$E$44*(('BP Financier'!$C$16+'BP Financier'!$D$16+'BP Financier'!$E$16)/('BP Financier'!$C$16+'BP Financier'!$C$19+'BP Financier'!$D$16+'BP Financier'!$D$19+'BP Financier'!$E$16+'BP Financier'!$E$19+'BP Financier'!$C$22+'BP Financier'!$D$22+'BP Financier'!$E$22))*$V4189*AB4189/(1-$W4189)","v":{"v":8675.642161164928,"d":"8,676"}},null,{"v":1.6666666666666668E-3,"d":"0.17%"},{"$f":"Actif!$E$28/100","v":{"v":0.28900000000000003,"d":"28.90%"}},{"$f":"Actif!$E$30/100","v":{"v":0.09050000000000001,"d":"9.05%"}},{"$f":"Actif!$E$31/100","v":{"v":0.0605,"d":"6.05%"}},{"$f":"Actif!$E$32/100","v":{"v":0.47350000000000003,"d":"47.35%"}},{"$f":"Actif!$E$33/100","v":{"v":0.0585,"d":"5.85%"}},{"$f":"Actif!$E$29/100","v":{"v":0.027999999999999997,"d":"2.80%"}}]
[null,"#89",47,2028,"F","A_VIE",{"v":0.44999999999999996,"d":"0.45"},{"v":0.38999999999999996,"d":"0.39"},0.6,0.6,85,0,{"$f":"ROUND(Primes!$O$4*V4190,0)","v":11},{"$f":"'BP Financier'!$E$33*(('BP Financier'!$C$16+'BP Financier'!$D$16+'BP Financier'!$E$16)/('BP Financier'!$C$16+'BP Financier'!$C$19+'BP Financier'!$D$16+'BP Financier'!$D$19+'BP Financier'!$E$16+'BP Financier'!$E$19))*V4190","v":{"v":392797.7810805569,"d":"392,798"}},{"v":220299.34202100948,"d":"220,299"},{"$f":"'BP Financier'!$E$44*(('BP Financier'!$C$16+'BP Financier'!$D$16+'BP Financier'!$E$16)/('BP Financier'!$C$16+'BP Financier'!$C$19+'BP Financier'!$D$16+'BP Financier'!$D$19+'BP Financier'!$E$16+'BP Financier'!$E$19+'BP Financier'!$C$22+'BP Financier'!$D$22+'BP Financier'!$E$22))*$V4190*X4190/(1-$W4190)","v":{"v":28040.91484233665,"d":"28,041"}},{"$f":"'BP Financier'!$E$44*(('BP Financier'!$C$16+'BP Financier'!$D$16+'BP Financier'!$E$16)/('BP Financier'!$C$16+'BP Financier'!$C$19+'BP Financier'!$D$16+'BP Financier'!$D$19+'BP Financier'!$E$16+'BP Financier'!$E$19+'BP Financier'!$C$22+'BP Financier'!$D$22+'BP Financier'!$E$22))*$V4190*Y4190/(1-$W4190)","v":{"v":18745.583955374223,"d":"18,746"}},{"$f":"'BP Financier'!$E$44*(('BP Financier'!$C$16+'BP Financier'!$D$16+'BP Financier'!$E$16)/('BP Financier'!$C$16+'BP Financier'!$C$19+'BP Financier'!$D$16+'BP Financier'!$D$19+'BP Financier'!$E$16+'BP Financier'!$E$19+'BP Financier'!$C$22+'BP Financier'!$D$22+'BP Financier'!$E$22))*$V4190*Z4190/(1-$W4190)","v":{"v":146711.30583255694,"d":"146,711"}},{"$f":"'BP Financier'!$E$44*(('BP Financier'!$C$16+'BP Financier'!$D$16+'BP Financier'!$E$16)/('BP Financier'!$C$16+'BP Financier'!$C$19+'BP Financier'!$D$16+'BP Financier'!$D$19+'BP Financier'!$E$16+'BP Financier'!$E$19+'BP Financier'!$C$22+'BP Financier'!$D$22+'BP Financier'!$E$22))*$V4190*AA4190/(1-$W4190)","v":{"v":18125.89522957673,"d":"18,126"}},{"$f":"'BP Financier'!$E$44*(('BP Financier'!$C$16+'BP Financier'!$D$16+'BP Financier'!$E$16)/('BP Financier'!$C$16+'BP Financier'!$C$19+'BP Financier'!$D$16+'BP Financier'!$D$19+'BP Financier'!$E$16+'BP Financier'!$E$19+'BP Financier'!$C$22+'BP Financier'!$D$22+'BP Financier'!$E$22))*$V4190*AB4190/(1-$W4190)","v":{"v":8675.642161164928,"d":"8,676"}},null,{"v":1.6666666666666668E-3,"d":"0.17%"},{"$f":"Actif!$E$28/100","v":{"v":0.28900000000000003,"d":"28.90%"}},{"$f":"Actif!$E$30/100","v":{"v":0.09050000000000001,"d":"9.05%"}},{"$f":"Actif!$E$31/100","v":{"v":0.0605,"d":"6.05%"}},{"$f":"Actif!$E$32/100","v":{"v":0.47350000000000003,"d":"47.35%"}},{"$f":"Actif!$E$33/100","v":{"v":0.0585,"d":"5.85%"}},{"$f":"Actif!$E$29/100","v":{"v":0.027999999999999997,"d":"2.80%"}}]
[null,"#90",47,2029,"F","A_VIE",{"v":0.44999999999999996,"d":"0.45"},{"v":0.38999999999999996,"d":"0.39"},0.6,0.6,85,0,{"$f":"ROUND(Primes!$O$4*V4191,0)","v":11},{"$f":"'BP Financier'!$E$33*(('BP Financier'!$C$16+'BP Financier'!$D$16+'BP Financier'!$E$16)/('BP Financier'!$C$16+'BP Financier'!$C$19+'BP Financier'!$D$16+'BP Financier'!$D$19+'BP Financier'!$E$16+'BP Financier'!$E$19))*V4191","v":{"v":392797.7810805569,"d":"392,798"}},{"v":220299.34202100948,"d":"220,299"},{"$f":"'BP Financier'!$E$44*(('BP Financier'!$C$16+'BP Financier'!$D$16+'BP Financier'!$E$16)/('BP Financier'!$C$16+'BP Financier'!$C$19+'BP Financier'!$D$16+'BP Financier'!$D$19+'BP Financier'!$E$16+'BP Financier'!$E$19+'BP Financier'!$C$22+'BP Financier'!$D$22+'BP Financier'!$E$22))*$V4191*X4191/(1-$W4191)","v":{"v":28040.91484233665,"d":"28,041"}},{"$f":"'BP Financier'!$E$44*(('BP Financier'!$C$16+'BP Financier'!$D$16+'BP Financier'!$E$16)/('BP Financier'!$C$16+'BP Financier'!$C$19+'BP Financier'!$D$16+'BP Financier'!$D$19+'BP Financier'!$E$16+'BP Financier'!$E$19+'BP Financier'!$C$22+'BP Financier'!$D$22+'BP Financier'!$E$22))*$V4191*Y4191/(1-$W4191)","v":{"v":18745.583955374223,"d":"18,746"}},{"$f":"'BP Financier'!$E$44*(('BP Financier'!$C$16+'BP Financier'!$D$16+'BP Financier'!$E$16)/('BP Financier'!$C$16+'BP Financier'!$C$19+'BP Financier'!$D$16+'BP Financier'!$D$19+'BP Financier'!$E$16+'BP Financier'!$E$19+'BP Financier'!$C$22+'BP Financier'!$D$22+'BP Financier'!$E$22))*$V4191*Z4191/(1-$W4191)","v":{"v":146711.30583255694,"d":"146,711"}},{"$f":"'BP Financier'!$E$44*(('BP Financier'!$C$16+'BP Financier'!$D$16+'BP Financier'!$E$16)/('BP Financier'!$C$16+'BP Financier'!$C$19+'BP Financier'!$D$16+'BP Financier'!$D$19+'BP Financier'!$E$16+'BP Financier'!$E$19+'BP Financier'!$C$22+'BP Financier'!$D$22+'BP Financier'!$E$22))*$V4191*AA4191/(1-$W4191)","v":{"v":18125.89522957673,"d":"18,126"}},{"$f":"'BP Financier'!$E$44*(('BP Financier'!$C$16+'BP Financier'!$D$16+'BP Financier'!$E$16)/('BP Financier'!$C$16+'BP Financier'!$C$19+'BP Financier'!$D$16+'BP Financier'!$D$19+'BP Financier'!$E$16+'BP Financier'!$E$19+'BP Financier'!$C$22+'BP Financier'!$D$22+'BP Financier'!$E$22))*$V4191*AB4191/(1-$W4191)","v":{"v":8675.642161164928,"d":"8,676"}},null,{"v":1.6666666666666668E-3,"d":"0.17%"},{"$f":"Actif!$E$28/100","v":{"v":0.28900000000000003,"d":"28.90%"}},{"$f":"Actif!$E$30/100","v":{"v":0.09050000000000001,"d":"9.05%"}},{"$f":"Actif!$E$31/100","v":{"v":0.0605,"d":"6.05%"}},{"$f":"Actif!$E$32/100","v":{"v":0.47350000000000003,"d":"47.35%"}},{"$f":"Actif!$E$33/100","v":{"v":0.0585,"d":"5.85%"}},{"$f":"Actif!$E$29/100","v":{"v":0.027999999999999997,"d":"2.80%"}}]
[null,"#91",48,2026,"H","A_VIE",{"v":0.44999999999999996,"d":"0.45"},{"v":0.38999999999999996,"d":"0.39"},0.6,0.6,85,0,{"$f":"ROUND(Primes!$O$4*V4192,0)","v":11},{"$f":"'BP Financier'!$E$33*(('BP Financier'!$C$16+'BP Financier'!$D$16+'BP Financier'!$E$16)/('BP Financier'!$C$16+'BP Financier'!$C$19+'BP Financier'!$D$16+'BP Financier'!$D$19+'BP Financier'!$E$16+'BP Financier'!$E$19))*V4192","v":{"v":392797.7810805569,"d":"392,798"}},{"v":220299.34202100948,"d":"220,299"},{"$f":"'BP Financier'!$E$44*(('BP Financier'!$C$16+'BP Financier'!$D$16+'BP Financier'!$E$16)/('BP Financier'!$C$16+'BP Financier'!$C$19+'BP Financier'!$D$16+'BP Financier'!$D$19+'BP Financier'!$E$16+'BP Financier'!$E$19+'BP Financier'!$C$22+'BP Financier'!$D$22+'BP Financier'!$E$22))*$V4192*X4192/(1-$W4192)","v":{"v":28040.91484233665,"d":"28,041"}},{"$f":"'BP Financier'!$E$44*(('BP Financier'!$C$16+'BP Financier'!$D$16+'BP Financier'!$E$16)/('BP Financier'!$C$16+'BP Financier'!$C$19+'BP Financier'!$D$16+'BP Financier'!$D$19+'BP Financier'!$E$16+'BP Financier'!$E$19+'BP Financier'!$C$22+'BP Financier'!$D$22+'BP Financier'!$E$22))*$V4192*Y4192/(1-$W4192)","v":{"v":18745.583955374223,"d":"18,746"}},{"$f":"'BP Financier'!$E$44*(('BP Financier'!$C$16+'BP Financier'!$D$16+'BP Financier'!$E$16)/('BP Financier'!$C$16+'BP Financier'!$C$19+'BP Financier'!$D$16+'BP Financier'!$D$19+'BP Financier'!$E$16+'BP Financier'!$E$19+'BP Financier'!$C$22+'BP Financier'!$D$22+'BP Financier'!$E$22))*$V4192*Z4192/(1-$W4192)","v":{"v":146711.30583255694,"d":"146,711"}},{"$f":"'BP Financier'!$E$44*(('BP Financier'!$C$16+'BP Financier'!$D$16+'BP Financier'!$E$16)/('BP Financier'!$C$16+'BP Financier'!$C$19+'BP Financier'!$D$16+'BP Financier'!$D$19+'BP Financier'!$E$16+'BP Financier'!$E$19+'BP Financier'!$C$22+'BP Financier'!$D$22+'BP Financier'!$E$22))*$V4192*AA4192/(1-$W4192)","v":{"v":18125.89522957673,"d":"18,126"}},{"$f":"'BP Financier'!$E$44*(('BP Financier'!$C$16+'BP Financier'!$D$16+'BP Financier'!$E$16)/('BP Financier'!$C$16+'BP Financier'!$C$19+'BP Financier'!$D$16+'BP Financier'!$D$19+'BP Financier'!$E$16+'BP Financier'!$E$19+'BP Financier'!$C$22+'BP Financier'!$D$22+'BP Financier'!$E$22))*$V4192*AB4192/(1-$W4192)","v":{"v":8675.642161164928,"d":"8,676"}},null,{"v":1.6666666666666668E-3,"d":"0.17%"},{"$f":"Actif!$E$28/100","v":{"v":0.28900000000000003,"d":"28.90%"}},{"$f":"Actif!$E$30/100","v":{"v":0.09050000000000001,"d":"9.05%"}},{"$f":"Actif!$E$31/100","v":{"v":0.0605,"d":"6.05%"}},{"$f":"Actif!$E$32/100","v":{"v":0.47350000000000003,"d":"47.35%"}},{"$f":"Actif!$E$33/100","v":{"v":0.0585,"d":"5.85%"}},{"$f":"Actif!$E$29/100","v":{"v":0.027999999999999997,"d":"2.80%"}}]
[null,"#92",48,2028,"H","A_VIE",{"v":0.44999999999999996,"d":"0.45"},{"v":0.38999999999999996,"d":"0.39"},0.6,0.6,85,0,{"$f":"ROUND(Primes!$O$4*V4193,0)","v":11},{"$f":"'BP Financier'!$E$33*(('BP Financier'!$C$16+'BP Financier'!$D$16+'BP Financier'!$E$16)/('BP Financier'!$C$16+'BP Financier'!$C$19+'BP Financier'!$D$16+'BP Financier'!$D$19+'BP Financier'!$E$16+'BP Financier'!$E$19))*V4193","v":{"v":392797.7810805569,"d":"392,798"}},{"v":220299.34202100948,"d":"220,299"},{"$f":"'BP Financier'!$E$44*(('BP Financier'!$C$16+'BP Financier'!$D$16+'BP Financier'!$E$16)/('BP Financier'!$C$16+'BP Financier'!$C$19+'BP Financier'!$D$16+'BP Financier'!$D$19+'BP Financier'!$E$16+'BP Financier'!$E$19+'BP Financier'!$C$22+'BP Financier'!$D$22+'BP Financier'!$E$22))*$V4193*X4193/(1-$W4193)","v":{"v":28040.91484233665,"d":"28,041"}},{"$f":"'BP Financier'!$E$44*(('BP Financier'!$C$16+'BP Financier'!$D$16+'BP Financier'!$E$16)/('BP Financier'!$C$16+'BP Financier'!$C$19+'BP Financier'!$D$16+'BP Financier'!$D$19+'BP Financier'!$E$16+'BP Financier'!$E$19+'BP Financier'!$C$22+'BP Financier'!$D$22+'BP Financier'!$E$22))*$V4193*Y4193/(1-$W4193)","v":{"v":18745.583955374223,"d":"18,746"}},{"$f":"'BP Financier'!$E$44*(('BP Financier'!$C$16+'BP Financier'!$D$16+'BP Financier'!$E$16)/('BP Financier'!$C$16+'BP Financier'!$C$19+'BP Financier'!$D$16+'BP Financier'!$D$19+'BP Financier'!$E$16+'BP Financier'!$E$19+'BP Financier'!$C$22+'BP Financier'!$D$22+'BP Financier'!$E$22))*$V4193*Z4193/(1-$W4193)","v":{"v":146711.30583255694,"d":"146,711"}},{"$f":"'BP Financier'!$E$44*(('BP Financier'!$C$16+'BP Financier'!$D$16+'BP Financier'!$E$16)/('BP Financier'!$C$16+'BP Financier'!$C$19+'BP Financier'!$D$16+'BP Financier'!$D$19+'BP Financier'!$E$16+'BP Financier'!$E$19+'BP Financier'!$C$22+'BP Financier'!$D$22+'BP Financier'!$E$22))*$V4193*AA4193/(1-$W4193)","v":{"v":18125.89522957673,"d":"18,126"}},{"$f":"'BP Financier'!$E$44*(('BP Financier'!$C$16+'BP Financier'!$D$16+'BP Financier'!$E$16)/('BP Financier'!$C$16+'BP Financier'!$C$19+'BP Financier'!$D$16+'BP Financier'!$D$19+'BP Financier'!$E$16+'BP Financier'!$E$19+'BP Financier'!$C$22+'BP Financier'!$D$22+'BP Financier'!$E$22))*$V4193*AB4193/(1-$W4193)","v":{"v":8675.642161164928,"d":"8,676"}},null,{"v":1.6666666666666668E-3,"d":"0.17%"},{"$f":"Actif!$E$28/100","v":{"v":0.28900000000000003,"d":"28.90%"}},{"$f":"Actif!$E$30/100","v":{"v":0.09050000000000001,"d":"9.05%"}},{"$f":"Actif!$E$31/100","v":{"v":0.0605,"d":"6.05%"}},{"$f":"Actif!$E$32/100","v":{"v":0.47350000000000003,"d":"47.35%"}},{"$f":"Actif!$E$33/100","v":{"v":0.0585,"d":"5.85%"}},{"$f":"Actif!$E$29/100","v":{"v":0.027999999999999997,"d":"2.80%"}}]
[null,"#93",48,2029,"H","A_VIE",{"v":0.44999999999999996,"d":"0.45"},{"v":0.38999999999999996,"d":"0.39"},0.6,0.6,85,0,{"$f":"ROUND(Primes!$O$4*V4194,0)","v":11},{"$f":"'BP Financier'!$E$33*(('BP Financier'!$C$16+'BP Financier'!$D$16+'BP Financier'!$E$16)/('BP Financier'!$C$16+'BP Financier'!$C$19+'BP Financier'!$D$16+'BP Financier'!$D$19+'BP Financier'!$E$16+'BP Financier'!$E$19))*V4194","v":{"v":392797.7810805569,"d":"392,798"}},{"v":220299.34202100948,"d":"220,299"},{"$f":"'BP Financier'!$E$44*(('BP Financier'!$C$16+'BP Financier'!$D$16+'BP Financier'!$E$16)/('BP Financier'!$C$16+'BP Financier'!$C$19+'BP Financier'!$D$16+'BP Financier'!$D$19+'BP Financier'!$E$16+'BP Financier'!$E$19+'BP Financier'!$C$22+'BP Financier'!$D$22+'BP Financier'!$E$22))*$V4194*X4194/(1-$W4194)","v":{"v":28040.91484233665,"d":"28,041"}},{"$f":"'BP Financier'!$E$44*(('BP Financier'!$C$16+'BP Financier'!$D$16+'BP Financier'!$E$16)/('BP Financier'!$C$16+'BP Financier'!$C$19+'BP Financier'!$D$16+'BP Financier'!$D$19+'BP Financier'!$E$16+'BP Financier'!$E$19+'BP Financier'!$C$22+'BP Financier'!$D$22+'BP Financier'!$E$22))*$V4194*Y4194/(1-$W4194)","v":{"v":18745.583955374223,"d":"18,746"}},{"$f":"'BP Financier'!$E$44*(('BP Financier'!$C$16+'BP Financier'!$D$16+'BP Financier'!$E$16)/('BP Financier'!$C$16+'BP Financier'!$C$19+'BP Financier'!$D$16+'BP Financier'!$D$19+'BP Financier'!$E$16+'BP Financier'!$E$19+'BP Financier'!$C$22+'BP Financier'!$D$22+'BP Financier'!$E$22))*$V4194*Z4194/(1-$W4194)","v":{"v":146711.30583255694,"d":"146,711"}},{"$f":"'BP Financier'!$E$44*(('BP Financier'!$C$16+'BP Financier'!$D$16+'BP Financier'!$E$16)/('BP Financier'!$C$16+'BP Financier'!$C$19+'BP Financier'!$D$16+'BP Financier'!$D$19+'BP Financier'!$E$16+'BP Financier'!$E$19+'BP Financier'!$C$22+'BP Financier'!$D$22+'BP Financier'!$E$22))*$V4194*AA4194/(1-$W4194)","v":{"v":18125.89522957673,"d":"18,126"}},{"$f":"'BP Financier'!$E$44*(('BP Financier'!$C$16+'BP Financier'!$D$16+'BP Financier'!$E$16)/('BP Financier'!$C$16+'BP Financier'!$C$19+'BP Financier'!$D$16+'BP Financier'!$D$19+'BP Financier'!$E$16+'BP Financier'!$E$19+'BP Financier'!$C$22+'BP Financier'!$D$22+'BP Financier'!$E$22))*$V4194*AB4194/(1-$W4194)","v":{"v":8675.642161164928,"d":"8,676"}},null,{"v":1.6666666666666668E-3,"d":"0.17%"},{"$f":"Actif!$E$28/100","v":{"v":0.28900000000000003,"d":"28.90%"}},{"$f":"Actif!$E$30/100","v":{"v":0.09050000000000001,"d":"9.05%"}},{"$f":"Actif!$E$31/100","v":{"v":0.0605,"d":"6.05%"}},{"$f":"Actif!$E$32/100","v":{"v":0.47350000000000003,"d":"47.35%"}},{"$f":"Actif!$E$33/100","v":{"v":0.0585,"d":"5.85%"}},{"$f":"Actif!$E$29/100","v":{"v":0.027999999999999997,"d":"2.80%"}}]
[null,"#94",49,2026,"H","A_VIE",{"v":0.44999999999999996,"d":"0.45"},{"v":0.38999999999999996,"d":"0.39"},0.6,0.6,85,0,{"$f":"ROUND(Primes!$O$4*V4195,0)","v":11},{"$f":"'BP Financier'!$E$33*(('BP Financier'!$C$16+'BP Financier'!$D$16+'BP Financier'!$E$16)/('BP Financier'!$C$16+'BP Financier'!$C$19+'BP Financier'!$D$16+'BP Financier'!$D$19+'BP Financier'!$E$16+'BP Financier'!$E$19))*V4195","v":{"v":392797.7810805569,"d":"392,798"}},{"v":220299.34202100948,"d":"220,299"},{"$f":"'BP Financier'!$E$44*(('BP Financier'!$C$16+'BP Financier'!$D$16+'BP Financier'!$E$16)/('BP Financier'!$C$16+'BP Financier'!$C$19+'BP Financier'!$D$16+'BP Financier'!$D$19+'BP Financier'!$E$16+'BP Financier'!$E$19+'BP Financier'!$C$22+'BP Financier'!$D$22+'BP Financier'!$E$22))*$V4195*X4195/(1-$W4195)","v":{"v":28040.91484233665,"d":"28,041"}},{"$f":"'BP Financier'!$E$44*(('BP Financier'!$C$16+'BP Financier'!$D$16+'BP Financier'!$E$16)/('BP Financier'!$C$16+'BP Financier'!$C$19+'BP Financier'!$D$16+'BP Financier'!$D$19+'BP Financier'!$E$16+'BP Financier'!$E$19+'BP Financier'!$C$22+'BP Financier'!$D$22+'BP Financier'!$E$22))*$V4195*Y4195/(1-$W4195)","v":{"v":18745.583955374223,"d":"18,746"}},{"$f":"'BP Financier'!$E$44*(('BP Financier'!$C$16+'BP Financier'!$D$16+'BP Financier'!$E$16)/('BP Financier'!$C$16+'BP Financier'!$C$19+'BP Financier'!$D$16+'BP Financier'!$D$19+'BP Financier'!$E$16+'BP Financier'!$E$19+'BP Financier'!$C$22+'BP Financier'!$D$22+'BP Financier'!$E$22))*$V4195*Z4195/(1-$W4195)","v":{"v":146711.30583255694,"d":"146,711"}},{"$f":"'BP Financier'!$E$44*(('BP Financier'!$C$16+'BP Financier'!$D$16+'BP Financier'!$E$16)/('BP Financier'!$C$16+'BP Financier'!$C$19+'BP Financier'!$D$16+'BP Financier'!$D$19+'BP Financier'!$E$16+'BP Financier'!$E$19+'BP Financier'!$C$22+'BP Financier'!$D$22+'BP Financier'!$E$22))*$V4195*AA4195/(1-$W4195)","v":{"v":18125.89522957673,"d":"18,126"}},{"$f":"'BP Financier'!$E$44*(('BP Financier'!$C$16+'BP Financier'!$D$16+'BP Financier'!$E$16)/('BP Financier'!$C$16+'BP Financier'!$C$19+'BP Financier'!$D$16+'BP Financier'!$D$19+'BP Financier'!$E$16+'BP Financier'!$E$19+'BP Financier'!$C$22+'BP Financier'!$D$22+'BP Financier'!$E$22))*$V4195*AB4195/(1-$W4195)","v":{"v":8675.642161164928,"d":"8,676"}},null,{"v":1.6666666666666668E-3,"d":"0.17%"},{"$f":"Actif!$E$28/100","v":{"v":0.28900000000000003,"d":"28.90%"}},{"$f":"Actif!$E$30/100","v":{"v":0.09050000000000001,"d":"9.05%"}},{"$f":"Actif!$E$31/100","v":{"v":0.0605,"d":"6.05%"}},{"$f":"Actif!$E$32/100","v":{"v":0.47350000000000003,"d":"47.35%"}},{"$f":"Actif!$E$33/100","v":{"v":0.0585,"d":"5.85%"}},{"$f":"Actif!$E$29/100","v":{"v":0.027999999999999997,"d":"2.80%"}}]
[null,"#95",49,2028,"H","A_VIE",{"v":0.44999999999999996,"d":"0.45"},{"v":0.38999999999999996,"d":"0.39"},0.6,0.6,85,0,{"$f":"ROUND(Primes!$O$4*V4196,0)","v":11},{"$f":"'BP Financier'!$E$33*(('BP Financier'!$C$16+'BP Financier'!$D$16+'BP Financier'!$E$16)/('BP Financier'!$C$16+'BP Financier'!$C$19+'BP Financier'!$D$16+'BP Financier'!$D$19+'BP Financier'!$E$16+'BP Financier'!$E$19))*V4196","v":{"v":392797.7810805569,"d":"392,798"}},{"v":220299.34202100948,"d":"220,299"},{"$f":"'BP Financier'!$E$44*(('BP Financier'!$C$16+'BP Financier'!$D$16+'BP Financier'!$E$16)/('BP Financier'!$C$16+'BP Financier'!$C$19+'BP Financier'!$D$16+'BP Financier'!$D$19+'BP Financier'!$E$16+'BP Financier'!$E$19+'BP Financier'!$C$22+'BP Financier'!$D$22+'BP Financier'!$E$22))*$V4196*X4196/(1-$W4196)","v":{"v":28040.91484233665,"d":"28,041"}},{"$f":"'BP Financier'!$E$44*(('BP Financier'!$C$16+'BP Financier'!$D$16+'BP Financier'!$E$16)/('BP Financier'!$C$16+'BP Financier'!$C$19+'BP Financier'!$D$16+'BP Financier'!$D$19+'BP Financier'!$E$16+'BP Financier'!$E$19+'BP Financier'!$C$22+'BP Financier'!$D$22+'BP Financier'!$E$22))*$V4196*Y4196/(1-$W4196)","v":{"v":18745.583955374223,"d":"18,746"}},{"$f":"'BP Financier'!$E$44*(('BP Financier'!$C$16+'BP Financier'!$D$16+'BP Financier'!$E$16)/('BP Financier'!$C$16+'BP Financier'!$C$19+'BP Financier'!$D$16+'BP Financier'!$D$19+'BP Financier'!$E$16+'BP Financier'!$E$19+'BP Financier'!$C$22+'BP Financier'!$D$22+'BP Financier'!$E$22))*$V4196*Z4196/(1-$W4196)","v":{"v":146711.30583255694,"d":"146,711"}},{"$f":"'BP Financier'!$E$44*(('BP Financier'!$C$16+'BP Financier'!$D$16+'BP Financier'!$E$16)/('BP Financier'!$C$16+'BP Financier'!$C$19+'BP Financier'!$D$16+'BP Financier'!$D$19+'BP Financier'!$E$16+'BP Financier'!$E$19+'BP Financier'!$C$22+'BP Financier'!$D$22+'BP Financier'!$E$22))*$V4196*AA4196/(1-$W4196)","v":{"v":18125.89522957673,"d":"18,126"}},{"$f":"'BP Financier'!$E$44*(('BP Financier'!$C$16+'BP Financier'!$D$16+'BP Financier'!$E$16)/('BP Financier'!$C$16+'BP Financier'!$C$19+'BP Financier'!$D$16+'BP Financier'!$D$19+'BP Financier'!$E$16+'BP Financier'!$E$19+'BP Financier'!$C$22+'BP Financier'!$D$22+'BP Financier'!$E$22))*$V4196*AB4196/(1-$W4196)","v":{"v":8675.642161164928,"d":"8,676"}},null,{"v":1.6666666666666668E-3,"d":"0.17%"},{"$f":"Actif!$E$28/100","v":{"v":0.28900000000000003,"d":"28.90%"}},{"$f":"Actif!$E$30/100","v":{"v":0.09050000000000001,"d":"9.05%"}},{"$f":"Actif!$E$31/100","v":{"v":0.0605,"d":"6.05%"}},{"$f":"Actif!$E$32/100","v":{"v":0.47350000000000003,"d":"47.35%"}},{"$f":"Actif!$E$33/100","v":{"v":0.0585,"d":"5.85%"}},{"$f":"Actif!$E$29/100","v":{"v":0.027999999999999997,"d":"2.80%"}}]
[null,"#96",49,2029,"H","A_VIE",{"v":0.44999999999999996,"d":"0.45"},{"v":0.38999999999999996,"d":"0.39"},0.6,0.6,85,0,{"$f":"ROUND(Primes!$O$4*V4197,0)","v":11},{"$f":"'BP Financier'!$E$33*(('BP Financier'!$C$16+'BP Financier'!$D$16+'BP Financier'!$E$16)/('BP Financier'!$C$16+'BP Financier'!$C$19+'BP Financier'!$D$16+'BP Financier'!$D$19+'BP Financier'!$E$16+'BP Financier'!$E$19))*V4197","v":{"v":392797.7810805569,"d":"392,798"}},{"v":220299.34202100948,"d":"220,299"},{"$f":"'BP Financier'!$E$44*(('BP Financier'!$C$16+'BP Financier'!$D$16+'BP Financier'!$E$16)/('BP Financier'!$C$16+'BP Financier'!$C$19+'BP Financier'!$D$16+'BP Financier'!$D$19+'BP Financier'!$E$16+'BP Financier'!$E$19+'BP Financier'!$C$22+'BP Financier'!$D$22+'BP Financier'!$E$22))*$V4197*X4197/(1-$W4197)","v":{"v":28040.91484233665,"d":"28,041"}},{"$f":"'BP Financier'!$E$44*(('BP Financier'!$C$16+'BP Financier'!$D$16+'BP Financier'!$E$16)/('BP Financier'!$C$16+'BP Financier'!$C$19+'BP Financier'!$D$16+'BP Financier'!$D$19+'BP Financier'!$E$16+'BP Financier'!$E$19+'BP Financier'!$C$22+'BP Financier'!$D$22+'BP Financier'!$E$22))*$V4197*Y4197/(1-$W4197)","v":{"v":18745.583955374223,"d":"18,746"}},{"$f":"'BP Financier'!$E$44*(('BP Financier'!$C$16+'BP Financier'!$D$16+'BP Financier'!$E$16)/('BP Financier'!$C$16+'BP Financier'!$C$19+'BP Financier'!$D$16+'BP Financier'!$D$19+'BP Financier'!$E$16+'BP Financier'!$E$19+'BP Financier'!$C$22+'BP Financier'!$D$22+'BP Financier'!$E$22))*$V4197*Z4197/(1-$W4197)","v":{"v":146711.30583255694,"d":"146,711"}},{"$f":"'BP Financier'!$E$44*(('BP Financier'!$C$16+'BP Financier'!$D$16+'BP Financier'!$E$16)/('BP Financier'!$C$16+'BP Financier'!$C$19+'BP Financier'!$D$16+'BP Financier'!$D$19+'BP Financier'!$E$16+'BP Financier'!$E$19+'BP Financier'!$C$22+'BP Financier'!$D$22+'BP Financier'!$E$22))*$V4197*AA4197/(1-$W4197)","v":{"v":18125.89522957673,"d":"18,126"}},{"$f":"'BP Financier'!$E$44*(('BP Financier'!$C$16+'BP Financier'!$D$16+'BP Financier'!$E$16)/('BP Financier'!$C$16+'BP Financier'!$C$19+'BP Financier'!$D$16+'BP Financier'!$D$19+'BP Financier'!$E$16+'BP Financier'!$E$19+'BP Financier'!$C$22+'BP Financier'!$D$22+'BP Financier'!$E$22))*$V4197*AB4197/(1-$W4197)","v":{"v":8675.642161164928,"d":"8,676"}},null,{"v":1.6666666666666668E-3,"d":"0.17%"},{"$f":"Actif!$E$28/100","v":{"v":0.28900000000000003,"d":"28.90%"}},{"$f":"Actif!$E$30/100","v":{"v":0.09050000000000001,"d":"9.05%"}},{"$f":"Actif!$E$31/100","v":{"v":0.0605,"d":"6.05%"}},{"$f":"Actif!$E$32/100","v":{"v":0.47350000000000003,"d":"47.35%"}},{"$f":"Actif!$E$33/100","v":{"v":0.0585,"d":"5.85%"}},{"$f":"Actif!$E$29/100","v":{"v":0.027999999999999997,"d":"2.80%"}}]
[null,"#97",50,2026,"F","A_VIE",{"v":0.44999999999999996,"d":"0.45"},{"v":0.38999999999999996,"d":"0.39"},0.6,0.6,85,0,{"$f":"ROUND(Primes!$O$4*V4198,0)","v":68},{"$f":"'BP Financier'!$E$33*(('BP Financier'!$C$16+'BP Financier'!$D$16+'BP Financier'!$E$16)/('BP Financier'!$C$16+'BP Financier'!$C$19+'BP Financier'!$D$16+'BP Financier'!$D$19+'BP Financier'!$E$16+'BP Financier'!$E$19))*V4198","v":{"v":2356786.6864833417,"d":"2,356,787"}},{"v":1321796.0521260567,"d":"1,321,796"},{"$f":"'BP Financier'!$E$44*(('BP Financier'!$C$16+'BP Financier'!$D$16+'BP Financier'!$E$16)/('BP Financier'!$C$16+'BP Financier'!$C$19+'BP Financier'!$D$16+'BP Financier'!$D$19+'BP Financier'!$E$16+'BP Financier'!$E$19+'BP Financier'!$C$22+'BP Financier'!$D$22+'BP Financier'!$E$22))*$V4198*X4198/(1-$W4198)","v":{"v":168245.48905401988,"d":"168,245"}},{"$f":"'BP Financier'!$E$44*(('BP Financier'!$C$16+'BP Financier'!$D$16+'BP Financier'!$E$16)/('BP Financier'!$C$16+'BP Financier'!$C$19+'BP Financier'!$D$16+'BP Financier'!$D$19+'BP Financier'!$E$16+'BP Financier'!$E$19+'BP Financier'!$C$22+'BP Financier'!$D$22+'BP Financier'!$E$22))*$V4198*Y4198/(1-$W4198)","v":{"v":112473.50373224531,"d":"112,474"}},{"$f":"'BP Financier'!$E$44*(('BP Financier'!$C$16+'BP Financier'!$D$16+'BP Financier'!$E$16)/('BP Financier'!$C$16+'BP Financier'!$C$19+'BP Financier'!$D$16+'BP Financier'!$D$19+'BP Financier'!$E$16+'BP Financier'!$E$19+'BP Financier'!$C$22+'BP Financier'!$D$22+'BP Financier'!$E$22))*$V4198*Z4198/(1-$W4198)","v":{"v":880267.8349953415,"d":"880,268"}},{"$f":"'BP Financier'!$E$44*(('BP Financier'!$C$16+'BP Financier'!$D$16+'BP Financier'!$E$16)/('BP Financier'!$C$16+'BP Financier'!$C$19+'BP Financier'!$D$16+'BP Financier'!$D$19+'BP Financier'!$E$16+'BP Financier'!$E$19+'BP Financier'!$C$22+'BP Financier'!$D$22+'BP Financier'!$E$22))*$V4198*AA4198/(1-$W4198)","v":{"v":108755.37137746037,"d":"108,755"}},{"$f":"'BP Financier'!$E$44*(('BP Financier'!$C$16+'BP Financier'!$D$16+'BP Financier'!$E$16)/('BP Financier'!$C$16+'BP Financier'!$C$19+'BP Financier'!$D$16+'BP Financier'!$D$19+'BP Financier'!$E$16+'BP Financier'!$E$19+'BP Financier'!$C$22+'BP Financier'!$D$22+'BP Financier'!$E$22))*$V4198*AB4198/(1-$W4198)","v":{"v":52053.852966989565,"d":"52,054"}},null,{"v":0.01,"d":"1.00%"},{"$f":"Actif!$E$28/100","v":{"v":0.28900000000000003,"d":"28.90%"}},{"$f":"Actif!$E$30/100","v":{"v":0.09050000000000001,"d":"9.05%"}},{"$f":"Actif!$E$31/100","v":{"v":0.0605,"d":"6.05%"}},{"$f":"Actif!$E$32/100","v":{"v":0.47350000000000003,"d":"47.35%"}},{"$f":"Actif!$E$33/100","v":{"v":0.0585,"d":"5.85%"}},{"$f":"Actif!$E$29/100","v":{"v":0.027999999999999997,"d":"2.80%"}}]
[null,"#98",50,2028,"F","A_VIE",{"v":0.44999999999999996,"d":"0.45"},{"v":0.38999999999999996,"d":"0.39"},0.6,0.6,85,0,{"$f":"ROUND(Primes!$O$4*V4199,0)","v":68},{"$f":"'BP Financier'!$E$33*(('BP Financier'!$C$16+'BP Financier'!$D$16+'BP Financier'!$E$16)/('BP Financier'!$C$16+'BP Financier'!$C$19+'BP Financier'!$D$16+'BP Financier'!$D$19+'BP Financier'!$E$16+'BP Financier'!$E$19))*V4199","v":{"v":2356786.6864833417,"d":"2,356,787"}},{"v":1321796.0521260567,"d":"1,321,796"},{"$f":"'BP Financier'!$E$44*(('BP Financier'!$C$16+'BP Financier'!$D$16+'BP Financier'!$E$16)/('BP Financier'!$C$16+'BP Financier'!$C$19+'BP Financier'!$D$16+'BP Financier'!$D$19+'BP Financier'!$E$16+'BP Financier'!$E$19+'BP Financier'!$C$22+'BP Financier'!$D$22+'BP Financier'!$E$22))*$V4199*X4199/(1-$W4199)","v":{"v":168245.48905401988,"d":"168,245"}},{"$f":"'BP Financier'!$E$44*(('BP Financier'!$C$16+'BP Financier'!$D$16+'BP Financier'!$E$16)/('BP Financier'!$C$16+'BP Financier'!$C$19+'BP Financier'!$D$16+'BP Financier'!$D$19+'BP Financier'!$E$16+'BP Financier'!$E$19+'BP Financier'!$C$22+'BP Financier'!$D$22+'BP Financier'!$E$22))*$V4199*Y4199/(1-$W4199)","v":{"v":112473.50373224531,"d":"112,474"}},{"$f":"'BP Financier'!$E$44*(('BP Financier'!$C$16+'BP Financier'!$D$16+'BP Financier'!$E$16)/('BP Financier'!$C$16+'BP Financier'!$C$19+'BP Financier'!$D$16+'BP Financier'!$D$19+'BP Financier'!$E$16+'BP Financier'!$E$19+'BP Financier'!$C$22+'BP Financier'!$D$22+'BP Financier'!$E$22))*$V4199*Z4199/(1-$W4199)","v":{"v":880267.8349953415,"d":"880,268"}},{"$f":"'BP Financier'!$E$44*(('BP Financier'!$C$16+'BP Financier'!$D$16+'BP Financier'!$E$16)/('BP Financier'!$C$16+'BP Financier'!$C$19+'BP Financier'!$D$16+'BP Financier'!$D$19+'BP Financier'!$E$16+'BP Financier'!$E$19+'BP Financier'!$C$22+'BP Financier'!$D$22+'BP Financier'!$E$22))*$V4199*AA4199/(1-$W4199)","v":{"v":108755.37137746037,"d":"108,755"}},{"$f":"'BP Financier'!$E$44*(('BP Financier'!$C$16+'BP Financier'!$D$16+'BP Financier'!$E$16)/('BP Financier'!$C$16+'BP Financier'!$C$19+'BP Financier'!$D$16+'BP Financier'!$D$19+'BP Financier'!$E$16+'BP Financier'!$E$19+'BP Financier'!$C$22+'BP Financier'!$D$22+'BP Financier'!$E$22))*$V4199*AB4199/(1-$W4199)","v":{"v":52053.852966989565,"d":"52,054"}},null,{"v":0.01,"d":"1.00%"},{"$f":"Actif!$E$28/100","v":{"v":0.28900000000000003,"d":"28.90%"}},{"$f":"Actif!$E$30/100","v":{"v":0.09050000000000001,"d":"9.05%"}},{"$f":"Actif!$E$31/100","v":{"v":0.0605,"d":"6.05%"}},{"$f":"Actif!$E$32/100","v":{"v":0.47350000000000003,"d":"47.35%"}},{"$f":"Actif!$E$33/100","v":{"v":0.0585,"d":"5.85%"}},{"$f":"Actif!$E$29/100","v":{"v":0.027999999999999997,"d":"2.80%"}}]
[null,"#99",50,2029,"F","A_VIE",{"v":0.44999999999999996,"d":"0.45"},{"v":0.38999999999999996,"d":"0.39"},0.6,0.6,85,0,{"$f":"ROUND(Primes!$O$4*V4200,0)","v":68},{"$f":"'BP Financier'!$E$33*(('BP Financier'!$C$16+'BP Financier'!$D$16+'BP Financier'!$E$16)/('BP Financier'!$C$16+'BP Financier'!$C$19+'BP Financier'!$D$16+'BP Financier'!$D$19+'BP Financier'!$E$16+'BP Financier'!$E$19))*V4200","v":{"v":2356786.6864833417,"d":"2,356,787"}},{"v":1321796.0521260567,"d":"1,321,796"},{"$f":"'BP Financier'!$E$44*(('BP Financier'!$C$16+'BP Financier'!$D$16+'BP Financier'!$E$16)/('BP Financier'!$C$16+'BP Financier'!$C$19+'BP Financier'!$D$16+'BP Financier'!$D$19+'BP Financier'!$E$16+'BP Financier'!$E$19+'BP Financier'!$C$22+'BP Financier'!$D$22+'BP Financier'!$E$22))*$V4200*X4200/(1-$W4200)","v":{"v":168245.48905401988,"d":"168,245"}},{"$f":"'BP Financier'!$E$44*(('BP Financier'!$C$16+'BP Financier'!$D$16+'BP Financier'!$E$16)/('BP Financier'!$C$16+'BP Financier'!$C$19+'BP Financier'!$D$16+'BP Financier'!$D$19+'BP Financier'!$E$16+'BP Financier'!$E$19+'BP Financier'!$C$22+'BP Financier'!$D$22+'BP Financier'!$E$22))*$V4200*Y4200/(1-$W4200)","v":{"v":112473.50373224531,"d":"112,474"}},{"$f":"'BP Financier'!$E$44*(('BP Financier'!$C$16+'BP Financier'!$D$16+'BP Financier'!$E$16)/('BP Financier'!$C$16+'BP Financier'!$C$19+'BP Financier'!$D$16+'BP Financier'!$D$19+'BP Financier'!$E$16+'BP Financier'!$E$19+'BP Financier'!$C$22+'BP Financier'!$D$22+'BP Financier'!$E$22))*$V4200*Z4200/(1-$W4200)","v":{"v":880267.8349953415,"d":"880,268"}},{"$f":"'BP Financier'!$E$44*(('BP Financier'!$C$16+'BP Financier'!$D$16+'BP Financier'!$E$16)/('BP Financier'!$C$16+'BP Financier'!$C$19+'BP Financier'!$D$16+'BP Financier'!$D$19+'BP Financier'!$E$16+'BP Financier'!$E$19+'BP Financier'!$C$22+'BP Financier'!$D$22+'BP Financier'!$E$22))*$V4200*AA4200/(1-$W4200)","v":{"v":108755.37137746037,"d":"108,755"}},{"$f":"'BP Financier'!$E$44*(('BP Financier'!$C$16+'BP Financier'!$D$16+'BP Financier'!$E$16)/('BP Financier'!$C$16+'BP Financier'!$C$19+'BP Financier'!$D$16+'BP Financier'!$D$19+'BP Financier'!$E$16+'BP Financier'!$E$19+'BP Financier'!$C$22+'BP Financier'!$D$22+'BP Financier'!$E$22))*$V4200*AB4200/(1-$W4200)","v":{"v":52053.852966989565,"d":"52,054"}},null,{"v":0.01,"d":"1.00%"},{"$f":"Actif!$E$28/100","v":{"v":0.28900000000000003,"d":"28.90%"}},{"$f":"Actif!$E$30/100","v":{"v":0.09050000000000001,"d":"9.05%"}},{"$f":"Actif!$E$31/100","v":{"v":0.0605,"d":"6.05%"}},{"$f":"Actif!$E$32/100","v":{"v":0.47350000000000003,"d":"47.35%"}},{"$f":"Actif!$E$33/100","v":{"v":0.0585,"d":"5.85%"}},{"$f":"Actif!$E$29/100","v":{"v":0.027999999999999997,"d":"2.80%"}}]
[null,"#100",51,2026,"H","A_VIE",{"v":0.44999999999999996,"d":"0.45"},{"v":0.38999999999999996,"d":"0.39"},0.6,0.6,85,0,{"$f":"ROUND(Primes!$O$4*V4201,0)","v":68},{"$f":"'BP Financier'!$E$33*(('BP Financier'!$C$16+'BP Financier'!$D$16+'BP Financier'!$E$16)/('BP Financier'!$C$16+'BP Financier'!$C$19+'BP Financier'!$D$16+'BP Financier'!$D$19+'BP Financier'!$E$16+'BP Financier'!$E$19))*V4201","v":{"v":2356786.6864833417,"d":"2,356,787"}},{"v":1321796.0521260567,"d":"1,321,796"},{"$f":"'BP Financier'!$E$44*(('BP Financier'!$C$16+'BP Financier'!$D$16+'BP Financier'!$E$16)/('BP Financier'!$C$16+'BP Financier'!$C$19+'BP Financier'!$D$16+'BP Financier'!$D$19+'BP Financier'!$E$16+'BP Financier'!$E$19+'BP Financier'!$C$22+'BP Financier'!$D$22+'BP Financier'!$E$22))*$V4201*X4201/(1-$W4201)","v":{"v":168245.48905401988,"d":"168,245"}},{"$f":"'BP Financier'!$E$44*(('BP Financier'!$C$16+'BP Financier'!$D$16+'BP Financier'!$E$16)/('BP Financier'!$C$16+'BP Financier'!$C$19+'BP Financier'!$D$16+'BP Financier'!$D$19+'BP Financier'!$E$16+'BP Financier'!$E$19+'BP Financier'!$C$22+'BP Financier'!$D$22+'BP Financier'!$E$22))*$V4201*Y4201/(1-$W4201)","v":{"v":112473.50373224531,"d":"112,474"}},{"$f":"'BP Financier'!$E$44*(('BP Financier'!$C$16+'BP Financier'!$D$16+'BP Financier'!$E$16)/('BP Financier'!$C$16+'BP Financier'!$C$19+'BP Financier'!$D$16+'BP Financier'!$D$19+'BP Financier'!$E$16+'BP Financier'!$E$19+'BP Financier'!$C$22+'BP Financier'!$D$22+'BP Financier'!$E$22))*$V4201*Z4201/(1-$W4201)","v":{"v":880267.8349953415,"d":"880,268"}},{"$f":"'BP Financier'!$E$44*(('BP Financier'!$C$16+'BP Financier'!$D$16+'BP Financier'!$E$16)/('BP Financier'!$C$16+'BP Financier'!$C$19+'BP Financier'!$D$16+'BP Financier'!$D$19+'BP Financier'!$E$16+'BP Financier'!$E$19+'BP Financier'!$C$22+'BP Financier'!$D$22+'BP Financier'!$E$22))*$V4201*AA4201/(1-$W4201)","v":{"v":108755.37137746037,"d":"108,755"}},{"$f":"'BP Financier'!$E$44*(('BP Financier'!$C$16+'BP Financier'!$D$16+'BP Financier'!$E$16)/('BP Financier'!$C$16+'BP Financier'!$C$19+'BP Financier'!$D$16+'BP Financier'!$D$19+'BP Financier'!$E$16+'BP Financier'!$E$19+'BP Financier'!$C$22+'BP Financier'!$D$22+'BP Financier'!$E$22))*$V4201*AB4201/(1-$W4201)","v":{"v":52053.852966989565,"d":"52,054"}},null,{"v":0.01,"d":"1.00%"},{"$f":"Actif!$E$28/100","v":{"v":0.28900000000000003,"d":"28.90%"}},{"$f":"Actif!$E$30/100","v":{"v":0.09050000000000001,"d":"9.05%"}},{"$f":"Actif!$E$31/100","v":{"v":0.0605,"d":"6.05%"}},{"$f":"Actif!$E$32/100","v":{"v":0.47350000000000003,"d":"47.35%"}},{"$f":"Actif!$E$33/100","v":{"v":0.0585,"d":"5.85%"}},{"$f":"Actif!$E$29/100","v":{"v":0.027999999999999997,"d":"2.80%"}}]
[null,"#101",51,2028,"H","A_VIE",{"v":0.44999999999999996,"d":"0.45"},{"v":0.38999999999999996,"d":"0.39"},0.6,0.6,85,0,{"$f":"ROUND(Primes!$O$4*V4202,0)","v":68},{"$f":"'BP Financier'!$E$33*(('BP Financier'!$C$16+'BP Financier'!$D$16+'BP Financier'!$E$16)/('BP Financier'!$C$16+'BP Financier'!$C$19+'BP Financier'!$D$16+'BP Financier'!$D$19+'BP Financier'!$E$16+'BP Financier'!$E$19))*V4202","v":{"v":2356786.6864833417,"d":"2,356,787"}},{"v":1321796.0521260567,"d":"1,321,796"},{"$f":"'BP Financier'!$E$44*(('BP Financier'!$C$16+'BP Financier'!$D$16+'BP Financier'!$E$16)/('BP Financier'!$C$16+'BP Financier'!$C$19+'BP Financier'!$D$16+'BP Financier'!$D$19+'BP Financier'!$E$16+'BP Financier'!$E$19+'BP Financier'!$C$22+'BP Financier'!$D$22+'BP Financier'!$E$22))*$V4202*X4202/(1-$W4202)","v":{"v":168245.48905401988,"d":"168,245"}},{"$f":"'BP Financier'!$E$44*(('BP Financier'!$C$16+'BP Financier'!$D$16+'BP Financier'!$E$16)/('BP Financier'!$C$16+'BP Financier'!$C$19+'BP Financier'!$D$16+'BP Financier'!$D$19+'BP Financier'!$E$16+'BP Financier'!$E$19+'BP Financier'!$C$22+'BP Financier'!$D$22+'BP Financier'!$E$22))*$V4202*Y4202/(1-$W4202)","v":{"v":112473.50373224531,"d":"112,474"}},{"$f":"'BP Financier'!$E$44*(('BP Financier'!$C$16+'BP Financier'!$D$16+'BP Financier'!$E$16)/('BP Financier'!$C$16+'BP Financier'!$C$19+'BP Financier'!$D$16+'BP Financier'!$D$19+'BP Financier'!$E$16+'BP Financier'!$E$19+'BP Financier'!$C$22+'BP Financier'!$D$22+'BP Financier'!$E$22))*$V4202*Z4202/(1-$W4202)","v":{"v":880267.8349953415,"d":"880,268"}},{"$f":"'BP Financier'!$E$44*(('BP Financier'!$C$16+'BP Financier'!$D$16+'BP Financier'!$E$16)/('BP Financier'!$C$16+'BP Financier'!$C$19+'BP Financier'!$D$16+'BP Financier'!$D$19+'BP Financier'!$E$16+'BP Financier'!$E$19+'BP Financier'!$C$22+'BP Financier'!$D$22+'BP Financier'!$E$22))*$V4202*AA4202/(1-$W4202)","v":{"v":108755.37137746037,"d":"108,755"}},{"$f":"'BP Financier'!$E$44*(('BP Financier'!$C$16+'BP Financier'!$D$16+'BP Financier'!$E$16)/('BP Financier'!$C$16+'BP Financier'!$C$19+'BP Financier'!$D$16+'BP Financier'!$D$19+'BP Financier'!$E$16+'BP Financier'!$E$19+'BP Financier'!$C$22+'BP Financier'!$D$22+'BP Financier'!$E$22))*$V4202*AB4202/(1-$W4202)","v":{"v":52053.852966989565,"d":"52,054"}},null,{"v":0.01,"d":"1.00%"},{"$f":"Actif!$E$28/100","v":{"v":0.28900000000000003,"d":"28.90%"}},{"$f":"Actif!$E$30/100","v":{"v":0.09050000000000001,"d":"9.05%"}},{"$f":"Actif!$E$31/100","v":{"v":0.0605,"d":"6.05%"}},{"$f":"Actif!$E$32/100","v":{"v":0.47350000000000003,"d":"47.35%"}},{"$f":"Actif!$E$33/100","v":{"v":0.0585,"d":"5.85%"}},{"$f":"Actif!$E$29/100","v":{"v":0.027999999999999997,"d":"2.80%"}}]
[null,"#102",51,2029,"H","A_VIE",{"v":0.44999999999999996,"d":"0.45"},{"v":0.38999999999999996,"d":"0.39"},0.6,0.6,85,0,{"$f":"ROUND(Primes!$O$4*V4203,0)","v":68},{"$f":"'BP Financier'!$E$33*(('BP Financier'!$C$16+'BP Financier'!$D$16+'BP Financier'!$E$16)/('BP Financier'!$C$16+'BP Financier'!$C$19+'BP Financier'!$D$16+'BP Financier'!$D$19+'BP Financier'!$E$16+'BP Financier'!$E$19))*V4203","v":{"v":2356786.6864833417,"d":"2,356,787"}},{"v":1321796.0521260567,"d":"1,321,796"},{"$f":"'BP Financier'!$E$44*(('BP Financier'!$C$16+'BP Financier'!$D$16+'BP Financier'!$E$16)/('BP Financier'!$C$16+'BP Financier'!$C$19+'BP Financier'!$D$16+'BP Financier'!$D$19+'BP Financier'!$E$16+'BP Financier'!$E$19+'BP Financier'!$C$22+'BP Financier'!$D$22+'BP Financier'!$E$22))*$V4203*X4203/(1-$W4203)","v":{"v":168245.48905401988,"d":"168,245"}},{"$f":"'BP Financier'!$E$44*(('BP Financier'!$C$16+'BP Financier'!$D$16+'BP Financier'!$E$16)/('BP Financier'!$C$16+'BP Financier'!$C$19+'BP Financier'!$D$16+'BP Financier'!$D$19+'BP Financier'!$E$16+'BP Financier'!$E$19+'BP Financier'!$C$22+'BP Financier'!$D$22+'BP Financier'!$E$22))*$V4203*Y4203/(1-$W4203)","v":{"v":112473.50373224531,"d":"112,474"}},{"$f":"'BP Financier'!$E$44*(('BP Financier'!$C$16+'BP Financier'!$D$16+'BP Financier'!$E$16)/('BP Financier'!$C$16+'BP Financier'!$C$19+'BP Financier'!$D$16+'BP Financier'!$D$19+'BP Financier'!$E$16+'BP Financier'!$E$19+'BP Financier'!$C$22+'BP Financier'!$D$22+'BP Financier'!$E$22))*$V4203*Z4203/(1-$W4203)","v":{"v":880267.8349953415,"d":"880,268"}},{"$f":"'BP Financier'!$E$44*(('BP Financier'!$C$16+'BP Financier'!$D$16+'BP Financier'!$E$16)/('BP Financier'!$C$16+'BP Financier'!$C$19+'BP Financier'!$D$16+'BP Financier'!$D$19+'BP Financier'!$E$16+'BP Financier'!$E$19+'BP Financier'!$C$22+'BP Financier'!$D$22+'BP Financier'!$E$22))*$V4203*AA4203/(1-$W4203)","v":{"v":108755.37137746037,"d":"108,755"}},{"$f":"'BP Financier'!$E$44*(('BP Financier'!$C$16+'BP Financier'!$D$16+'BP Financier'!$E$16)/('BP Financier'!$C$16+'BP Financier'!$C$19+'BP Financier'!$D$16+'BP Financier'!$D$19+'BP Financier'!$E$16+'BP Financier'!$E$19+'BP Financier'!$C$22+'BP Financier'!$D$22+'BP Financier'!$E$22))*$V4203*AB4203/(1-$W4203)","v":{"v":52053.852966989565,"d":"52,054"}},null,{"v":0.01,"d":"1.00%"},{"$f":"Actif!$E$28/100","v":{"v":0.28900000000000003,"d":"28.90%"}},{"$f":"Actif!$E$30/100","v":{"v":0.09050000000000001,"d":"9.05%"}},{"$f":"Actif!$E$31/100","v":{"v":0.0605,"d":"6.05%"}},{"$f":"Actif!$E$32/100","v":{"v":0.47350000000000003,"d":"47.35%"}},{"$f":"Actif!$E$33/100","v":{"v":0.0585,"d":"5.85%"}},{"$f":"Actif!$E$29/100","v":{"v":0.027999999999999997,"d":"2.80%"}}]
[null,"#103",52,2026,"H","A_VIE",{"v":0.44999999999999996,"d":"0.45"},{"v":0.38999999999999996,"d":"0.39"},0.6,0.6,85,0,{"$f":"ROUND(Primes!$O$4*V4204,0)","v":68},{"$f":"'BP Financier'!$E$33*(('BP Financier'!$C$16+'BP Financier'!$D$16+'BP Financier'!$E$16)/('BP Financier'!$C$16+'BP Financier'!$C$19+'BP Financier'!$D$16+'BP Financier'!$D$19+'BP Financier'!$E$16+'BP Financier'!$E$19))*V4204","v":{"v":2356786.6864833417,"d":"2,356,787"}},{"v":1321796.0521260567,"d":"1,321,796"},{"$f":"'BP Financier'!$E$44*(('BP Financier'!$C$16+'BP Financier'!$D$16+'BP Financier'!$E$16)/('BP Financier'!$C$16+'BP Financier'!$C$19+'BP Financier'!$D$16+'BP Financier'!$D$19+'BP Financier'!$E$16+'BP Financier'!$E$19+'BP Financier'!$C$22+'BP Financier'!$D$22+'BP Financier'!$E$22))*$V4204*X4204/(1-$W4204)","v":{"v":168245.48905401988,"d":"168,245"}},{"$f":"'BP Financier'!$E$44*(('BP Financier'!$C$16+'BP Financier'!$D$16+'BP Financier'!$E$16)/('BP Financier'!$C$16+'BP Financier'!$C$19+'BP Financier'!$D$16+'BP Financier'!$D$19+'BP Financier'!$E$16+'BP Financier'!$E$19+'BP Financier'!$C$22+'BP Financier'!$D$22+'BP Financier'!$E$22))*$V4204*Y4204/(1-$W4204)","v":{"v":112473.50373224531,"d":"112,474"}},{"$f":"'BP Financier'!$E$44*(('BP Financier'!$C$16+'BP Financier'!$D$16+'BP Financier'!$E$16)/('BP Financier'!$C$16+'BP Financier'!$C$19+'BP Financier'!$D$16+'BP Financier'!$D$19+'BP Financier'!$E$16+'BP Financier'!$E$19+'BP Financier'!$C$22+'BP Financier'!$D$22+'BP Financier'!$E$22))*$V4204*Z4204/(1-$W4204)","v":{"v":880267.8349953415,"d":"880,268"}},{"$f":"'BP Financier'!$E$44*(('BP Financier'!$C$16+'BP Financier'!$D$16+'BP Financier'!$E$16)/('BP Financier'!$C$16+'BP Financier'!$C$19+'BP Financier'!$D$16+'BP Financier'!$D$19+'BP Financier'!$E$16+'BP Financier'!$E$19+'BP Financier'!$C$22+'BP Financier'!$D$22+'BP Financier'!$E$22))*$V4204*AA4204/(1-$W4204)","v":{"v":108755.37137746037,"d":"108,755"}},{"$f":"'BP Financier'!$E$44*(('BP Financier'!$C$16+'BP Financier'!$D$16+'BP Financier'!$E$16)/('BP Financier'!$C$16+'BP Financier'!$C$19+'BP Financier'!$D$16+'BP Financier'!$D$19+'BP Financier'!$E$16+'BP Financier'!$E$19+'BP Financier'!$C$22+'BP Financier'!$D$22+'BP Financier'!$E$22))*$V4204*AB4204/(1-$W4204)","v":{"v":52053.852966989565,"d":"52,054"}},null,{"v":0.01,"d":"1.00%"},{"$f":"Actif!$E$28/100","v":{"v":0.28900000000000003,"d":"28.90%"}},{"$f":"Actif!$E$30/100","v":{"v":0.09050000000000001,"d":"9.05%"}},{"$f":"Actif!$E$31/100","v":{"v":0.0605,"d":"6.05%"}},{"$f":"Actif!$E$32/100","v":{"v":0.47350000000000003,"d":"47.35%"}},{"$f":"Actif!$E$33/100","v":{"v":0.0585,"d":"5.85%"}},{"$f":"Actif!$E$29/100","v":{"v":0.027999999999999997,"d":"2.80%"}}]
[null,"#104",52,2028,"H","A_VIE",{"v":0.44999999999999996,"d":"0.45"},{"v":0.38999999999999996,"d":"0.39"},0.6,0.6,85,0,{"$f":"ROUND(Primes!$O$4*V4205,0)","v":68},{"$f":"'BP Financier'!$E$33*(('BP Financier'!$C$16+'BP Financier'!$D$16+'BP Financier'!$E$16)/('BP Financier'!$C$16+'BP Financier'!$C$19+'BP Financier'!$D$16+'BP Financier'!$D$19+'BP Financier'!$E$16+'BP Financier'!$E$19))*V4205","v":{"v":2356786.6864833417,"d":"2,356,787"}},{"v":1321796.0521260567,"d":"1,321,796"},{"$f":"'BP Financier'!$E$44*(('BP Financier'!$C$16+'BP Financier'!$D$16+'BP Financier'!$E$16)/('BP Financier'!$C$16+'BP Financier'!$C$19+'BP Financier'!$D$16+'BP Financier'!$D$19+'BP Financier'!$E$16+'BP Financier'!$E$19+'BP Financier'!$C$22+'BP Financier'!$D$22+'BP Financier'!$E$22))*$V4205*X4205/(1-$W4205)","v":{"v":168245.48905401988,"d":"168,245"}},{"$f":"'BP Financier'!$E$44*(('BP Financier'!$C$16+'BP Financier'!$D$16+'BP Financier'!$E$16)/('BP Financier'!$C$16+'BP Financier'!$C$19+'BP Financier'!$D$16+'BP Financier'!$D$19+'BP Financier'!$E$16+'BP Financier'!$E$19+'BP Financier'!$C$22+'BP Financier'!$D$22+'BP Financier'!$E$22))*$V4205*Y4205/(1-$W4205)","v":{"v":112473.50373224531,"d":"112,474"}},{"$f":"'BP Financier'!$E$44*(('BP Financier'!$C$16+'BP Financier'!$D$16+'BP Financier'!$E$16)/('BP Financier'!$C$16+'BP Financier'!$C$19+'BP Financier'!$D$16+'BP Financier'!$D$19+'BP Financier'!$E$16+'BP Financier'!$E$19+'BP Financier'!$C$22+'BP Financier'!$D$22+'BP Financier'!$E$22))*$V4205*Z4205/(1-$W4205)","v":{"v":880267.8349953415,"d":"880,268"}},{"$f":"'BP Financier'!$E$44*(('BP Financier'!$C$16+'BP Financier'!$D$16+'BP Financier'!$E$16)/('BP Financier'!$C$16+'BP Financier'!$C$19+'BP Financier'!$D$16+'BP Financier'!$D$19+'BP Financier'!$E$16+'BP Financier'!$E$19+'BP Financier'!$C$22+'BP Financier'!$D$22+'BP Financier'!$E$22))*$V4205*AA4205/(1-$W4205)","v":{"v":108755.37137746037,"d":"108,755"}},{"$f":"'BP Financier'!$E$44*(('BP Financier'!$C$16+'BP Financier'!$D$16+'BP Financier'!$E$16)/('BP Financier'!$C$16+'BP Financier'!$C$19+'BP Financier'!$D$16+'BP Financier'!$D$19+'BP Financier'!$E$16+'BP Financier'!$E$19+'BP Financier'!$C$22+'BP Financier'!$D$22+'BP Financier'!$E$22))*$V4205*AB4205/(1-$W4205)","v":{"v":52053.852966989565,"d":"52,054"}},null,{"v":0.01,"d":"1.00%"},{"$f":"Actif!$E$28/100","v":{"v":0.28900000000000003,"d":"28.90%"}},{"$f":"Actif!$E$30/100","v":{"v":0.09050000000000001,"d":"9.05%"}},{"$f":"Actif!$E$31/100","v":{"v":0.0605,"d":"6.05%"}},{"$f":"Actif!$E$32/100","v":{"v":0.47350000000000003,"d":"47.35%"}},{"$f":"Actif!$E$33/100","v":{"v":0.0585,"d":"5.85%"}},{"$f":"Actif!$E$29/100","v":{"v":0.027999999999999997,"d":"2.80%"}}]
[null,"#105",52,2029,"H","A_VIE",{"v":0.44999999999999996,"d":"0.45"},{"v":0.38999999999999996,"d":"0.39"},0.6,0.6,85,0,{"$f":"ROUND(Primes!$O$4*V4206,0)","v":68},{"$f":"'BP Financier'!$E$33*(('BP Financier'!$C$16+'BP Financier'!$D$16+'BP Financier'!$E$16)/('BP Financier'!$C$16+'BP Financier'!$C$19+'BP Financier'!$D$16+'BP Financier'!$D$19+'BP Financier'!$E$16+'BP Financier'!$E$19))*V4206","v":{"v":2356786.6864833417,"d":"2,356,787"}},{"v":1321796.0521260567,"d":"1,321,796"},{"$f":"'BP Financier'!$E$44*(('BP Financier'!$C$16+'BP Financier'!$D$16+'BP Financier'!$E$16)/('BP Financier'!$C$16+'BP Financier'!$C$19+'BP Financier'!$D$16+'BP Financier'!$D$19+'BP Financier'!$E$16+'BP Financier'!$E$19+'BP Financier'!$C$22+'BP Financier'!$D$22+'BP Financier'!$E$22))*$V4206*X4206/(1-$W4206)","v":{"v":168245.48905401988,"d":"168,245"}},{"$f":"'BP Financier'!$E$44*(('BP Financier'!$C$16+'BP Financier'!$D$16+'BP Financier'!$E$16)/('BP Financier'!$C$16+'BP Financier'!$C$19+'BP Financier'!$D$16+'BP Financier'!$D$19+'BP Financier'!$E$16+'BP Financier'!$E$19+'BP Financier'!$C$22+'BP Financier'!$D$22+'BP Financier'!$E$22))*$V4206*Y4206/(1-$W4206)","v":{"v":112473.50373224531,"d":"112,474"}},{"$f":"'BP Financier'!$E$44*(('BP Financier'!$C$16+'BP Financier'!$D$16+'BP Financier'!$E$16)/('BP Financier'!$C$16+'BP Financier'!$C$19+'BP Financier'!$D$16+'BP Financier'!$D$19+'BP Financier'!$E$16+'BP Financier'!$E$19+'BP Financier'!$C$22+'BP Financier'!$D$22+'BP Financier'!$E$22))*$V4206*Z4206/(1-$W4206)","v":{"v":880267.8349953415,"d":"880,268"}},{"$f":"'BP Financier'!$E$44*(('BP Financier'!$C$16+'BP Financier'!$D$16+'BP Financier'!$E$16)/('BP Financier'!$C$16+'BP Financier'!$C$19+'BP Financier'!$D$16+'BP Financier'!$D$19+'BP Financier'!$E$16+'BP Financier'!$E$19+'BP Financier'!$C$22+'BP Financier'!$D$22+'BP Financier'!$E$22))*$V4206*AA4206/(1-$W4206)","v":{"v":108755.37137746037,"d":"108,755"}},{"$f":"'BP Financier'!$E$44*(('BP Financier'!$C$16+'BP Financier'!$D$16+'BP Financier'!$E$16)/('BP Financier'!$C$16+'BP Financier'!$C$19+'BP Financier'!$D$16+'BP Financier'!$D$19+'BP Financier'!$E$16+'BP Financier'!$E$19+'BP Financier'!$C$22+'BP Financier'!$D$22+'BP Financier'!$E$22))*$V4206*AB4206/(1-$W4206)","v":{"v":52053.852966989565,"d":"52,054"}},null,{"v":0.01,"d":"1.00%"},{"$f":"Actif!$E$28/100","v":{"v":0.28900000000000003,"d":"28.90%"}},{"$f":"Actif!$E$30/100","v":{"v":0.09050000000000001,"d":"9.05%"}},{"$f":"Actif!$E$31/100","v":{"v":0.0605,"d":"6.05%"}},{"$f":"Actif!$E$32/100","v":{"v":0.47350000000000003,"d":"47.35%"}},{"$f":"Actif!$E$33/100","v":{"v":0.0585,"d":"5.85%"}},{"$f":"Actif!$E$29/100","v":{"v":0.027999999999999997,"d":"2.80%"}}]
[null,"#106",53,2026,"F","A_VIE",{"v":0.44999999999999996,"d":"0.45"},{"v":0.38999999999999996,"d":"0.39"},0.6,0.6,85,0,{"$f":"ROUND(Primes!$O$4*V4207,0)","v":68},{"$f":"'BP Financier'!$E$33*(('BP Financier'!$C$16+'BP Financier'!$D$16+'BP Financier'!$E$16)/('BP Financier'!$C$16+'BP Financier'!$C$19+'BP Financier'!$D$16+'BP Financier'!$D$19+'BP Financier'!$E$16+'BP Financier'!$E$19))*V4207","v":{"v":2356786.6864833417,"d":"2,356,787"}},{"v":1321796.0521260567,"d":"1,321,796"},{"$f":"'BP Financier'!$E$44*(('BP Financier'!$C$16+'BP Financier'!$D$16+'BP Financier'!$E$16)/('BP Financier'!$C$16+'BP Financier'!$C$19+'BP Financier'!$D$16+'BP Financier'!$D$19+'BP Financier'!$E$16+'BP Financier'!$E$19+'BP Financier'!$C$22+'BP Financier'!$D$22+'BP Financier'!$E$22))*$V4207*X4207/(1-$W4207)","v":{"v":168245.48905401988,"d":"168,245"}},{"$f":"'BP Financier'!$E$44*(('BP Financier'!$C$16+'BP Financier'!$D$16+'BP Financier'!$E$16)/('BP Financier'!$C$16+'BP Financier'!$C$19+'BP Financier'!$D$16+'BP Financier'!$D$19+'BP Financier'!$E$16+'BP Financier'!$E$19+'BP Financier'!$C$22+'BP Financier'!$D$22+'BP Financier'!$E$22))*$V4207*Y4207/(1-$W4207)","v":{"v":112473.50373224531,"d":"112,474"}},{"$f":"'BP Financier'!$E$44*(('BP Financier'!$C$16+'BP Financier'!$D$16+'BP Financier'!$E$16)/('BP Financier'!$C$16+'BP Financier'!$C$19+'BP Financier'!$D$16+'BP Financier'!$D$19+'BP Financier'!$E$16+'BP Financier'!$E$19+'BP Financier'!$C$22+'BP Financier'!$D$22+'BP Financier'!$E$22))*$V4207*Z4207/(1-$W4207)","v":{"v":880267.8349953415,"d":"880,268"}},{"$f":"'BP Financier'!$E$44*(('BP Financier'!$C$16+'BP Financier'!$D$16+'BP Financier'!$E$16)/('BP Financier'!$C$16+'BP Financier'!$C$19+'BP Financier'!$D$16+'BP Financier'!$D$19+'BP Financier'!$E$16+'BP Financier'!$E$19+'BP Financier'!$C$22+'BP Financier'!$D$22+'BP Financier'!$E$22))*$V4207*AA4207/(1-$W4207)","v":{"v":108755.37137746037,"d":"108,755"}},{"$f":"'BP Financier'!$E$44*(('BP Financier'!$C$16+'BP Financier'!$D$16+'BP Financier'!$E$16)/('BP Financier'!$C$16+'BP Financier'!$C$19+'BP Financier'!$D$16+'BP Financier'!$D$19+'BP Financier'!$E$16+'BP Financier'!$E$19+'BP Financier'!$C$22+'BP Financier'!$D$22+'BP Financier'!$E$22))*$V4207*AB4207/(1-$W4207)","v":{"v":52053.852966989565,"d":"52,054"}},null,{"v":0.01,"d":"1.00%"},{"$f":"Actif!$E$28/100","v":{"v":0.28900000000000003,"d":"28.90%"}},{"$f":"Actif!$E$30/100","v":{"v":0.09050000000000001,"d":"9.05%"}},{"$f":"Actif!$E$31/100","v":{"v":0.0605,"d":"6.05%"}},{"$f":"Actif!$E$32/100","v":{"v":0.47350000000000003,"d":"47.35%"}},{"$f":"Actif!$E$33/100","v":{"v":0.0585,"d":"5.85%"}},{"$f":"Actif!$E$29/100","v":{"v":0.027999999999999997,"d":"2.80%"}}]
[null,"#107",53,2028,"F","A_VIE",{"v":0.44999999999999996,"d":"0.45"},{"v":0.38999999999999996,"d":"0.39"},0.6,0.6,85,0,{"$f":"ROUND(Primes!$O$4*V4208,0)","v":68},{"$f":"'BP Financier'!$E$33*(('BP Financier'!$C$16+'BP Financier'!$D$16+'BP Financier'!$E$16)/('BP Financier'!$C$16+'BP Financier'!$C$19+'BP Financier'!$D$16+'BP Financier'!$D$19+'BP Financier'!$E$16+'BP Financier'!$E$19))*V4208","v":{"v":2356786.6864833417,"d":"2,356,787"}},{"v":1321796.0521260567,"d":"1,321,796"},{"$f":"'BP Financier'!$E$44*(('BP Financier'!$C$16+'BP Financier'!$D$16+'BP Financier'!$E$16)/('BP Financier'!$C$16+'BP Financier'!$C$19+'BP Financier'!$D$16+'BP Financier'!$D$19+'BP Financier'!$E$16+'BP Financier'!$E$19+'BP Financier'!$C$22+'BP Financier'!$D$22+'BP Financier'!$E$22))*$V4208*X4208/(1-$W4208)","v":{"v":168245.48905401988,"d":"168,245"}},{"$f":"'BP Financier'!$E$44*(('BP Financier'!$C$16+'BP Financier'!$D$16+'BP Financier'!$E$16)/('BP Financier'!$C$16+'BP Financier'!$C$19+'BP Financier'!$D$16+'BP Financier'!$D$19+'BP Financier'!$E$16+'BP Financier'!$E$19+'BP Financier'!$C$22+'BP Financier'!$D$22+'BP Financier'!$E$22))*$V4208*Y4208/(1-$W4208)","v":{"v":112473.50373224531,"d":"112,474"}},{"$f":"'BP Financier'!$E$44*(('BP Financier'!$C$16+'BP Financier'!$D$16+'BP Financier'!$E$16)/('BP Financier'!$C$16+'BP Financier'!$C$19+'BP Financier'!$D$16+'BP Financier'!$D$19+'BP Financier'!$E$16+'BP Financier'!$E$19+'BP Financier'!$C$22+'BP Financier'!$D$22+'BP Financier'!$E$22))*$V4208*Z4208/(1-$W4208)","v":{"v":880267.8349953415,"d":"880,268"}},{"$f":"'BP Financier'!$E$44*(('BP Financier'!$C$16+'BP Financier'!$D$16+'BP Financier'!$E$16)/('BP Financier'!$C$16+'BP Financier'!$C$19+'BP Financier'!$D$16+'BP Financier'!$D$19+'BP Financier'!$E$16+'BP Financier'!$E$19+'BP Financier'!$C$22+'BP Financier'!$D$22+'BP Financier'!$E$22))*$V4208*AA4208/(1-$W4208)","v":{"v":108755.37137746037,"d":"108,755"}},{"$f":"'BP Financier'!$E$44*(('BP Financier'!$C$16+'BP Financier'!$D$16+'BP Financier'!$E$16)/('BP Financier'!$C$16+'BP Financier'!$C$19+'BP Financier'!$D$16+'BP Financier'!$D$19+'BP Financier'!$E$16+'BP Financier'!$E$19+'BP Financier'!$C$22+'BP Financier'!$D$22+'BP Financier'!$E$22))*$V4208*AB4208/(1-$W4208)","v":{"v":52053.852966989565,"d":"52,054"}},null,{"v":0.01,"d":"1.00%"},{"$f":"Actif!$E$28/100","v":{"v":0.28900000000000003,"d":"28.90%"}},{"$f":"Actif!$E$30/100","v":{"v":0.09050000000000001,"d":"9.05%"}},{"$f":"Actif!$E$31/100","v":{"v":0.0605,"d":"6.05%"}},{"$f":"Actif!$E$32/100","v":{"v":0.47350000000000003,"d":"47.35%"}},{"$f":"Actif!$E$33/100","v":{"v":0.0585,"d":"5.85%"}},{"$f":"Actif!$E$29/100","v":{"v":0.027999999999999997,"d":"2.80%"}}]
[null,"#108",53,2029,"F","A_VIE",{"v":0.44999999999999996,"d":"0.45"},{"v":0.38999999999999996,"d":"0.39"},0.6,0.6,85,0,{"$f":"ROUND(Primes!$O$4*V4209,0)","v":68},{"$f":"'BP Financier'!$E$33*(('BP Financier'!$C$16+'BP Financier'!$D$16+'BP Financier'!$E$16)/('BP Financier'!$C$16+'BP Financier'!$C$19+'BP Financier'!$D$16+'BP Financier'!$D$19+'BP Financier'!$E$16+'BP Financier'!$E$19))*V4209","v":{"v":2356786.6864833417,"d":"2,356,787"}},{"v":1321796.0521260567,"d":"1,321,796"},{"$f":"'BP Financier'!$E$44*(('BP Financier'!$C$16+'BP Financier'!$D$16+'BP Financier'!$E$16)/('BP Financier'!$C$16+'BP Financier'!$C$19+'BP Financier'!$D$16+'BP Financier'!$D$19+'BP Financier'!$E$16+'BP Financier'!$E$19+'BP Financier'!$C$22+'BP Financier'!$D$22+'BP Financier'!$E$22))*$V4209*X4209/(1-$W4209)","v":{"v":168245.48905401988,"d":"168,245"}},{"$f":"'BP Financier'!$E$44*(('BP Financier'!$C$16+'BP Financier'!$D$16+'BP Financier'!$E$16)/('BP Financier'!$C$16+'BP Financier'!$C$19+'BP Financier'!$D$16+'BP Financier'!$D$19+'BP Financier'!$E$16+'BP Financier'!$E$19+'BP Financier'!$C$22+'BP Financier'!$D$22+'BP Financier'!$E$22))*$V4209*Y4209/(1-$W4209)","v":{"v":112473.50373224531,"d":"112,474"}},{"$f":"'BP Financier'!$E$44*(('BP Financier'!$C$16+'BP Financier'!$D$16+'BP Financier'!$E$16)/('BP Financier'!$C$16+'BP Financier'!$C$19+'BP Financier'!$D$16+'BP Financier'!$D$19+'BP Financier'!$E$16+'BP Financier'!$E$19+'BP Financier'!$C$22+'BP Financier'!$D$22+'BP Financier'!$E$22))*$V4209*Z4209/(1-$W4209)","v":{"v":880267.8349953415,"d":"880,268"}},{"$f":"'BP Financier'!$E$44*(('BP Financier'!$C$16+'BP Financier'!$D$16+'BP Financier'!$E$16)/('BP Financier'!$C$16+'BP Financier'!$C$19+'BP Financier'!$D$16+'BP Financier'!$D$19+'BP Financier'!$E$16+'BP Financier'!$E$19+'BP Financier'!$C$22+'BP Financier'!$D$22+'BP Financier'!$E$22))*$V4209*AA4209/(1-$W4209)","v":{"v":108755.37137746037,"d":"108,755"}},{"$f":"'BP Financier'!$E$44*(('BP Financier'!$C$16+'BP Financier'!$D$16+'BP Financier'!$E$16)/('BP Financier'!$C$16+'BP Financier'!$C$19+'BP Financier'!$D$16+'BP Financier'!$D$19+'BP Financier'!$E$16+'BP Financier'!$E$19+'BP Financier'!$C$22+'BP Financier'!$D$22+'BP Financier'!$E$22))*$V4209*AB4209/(1-$W4209)","v":{"v":52053.852966989565,"d":"52,054"}},null,{"v":0.01,"d":"1.00%"},{"$f":"Actif!$E$28/100","v":{"v":0.28900000000000003,"d":"28.90%"}},{"$f":"Actif!$E$30/100","v":{"v":0.09050000000000001,"d":"9.05%"}},{"$f":"Actif!$E$31/100","v":{"v":0.0605,"d":"6.05%"}},{"$f":"Actif!$E$32/100","v":{"v":0.47350000000000003,"d":"47.35%"}},{"$f":"Actif!$E$33/100","v":{"v":0.0585,"d":"5.85%"}},{"$f":"Actif!$E$29/100","v":{"v":0.027999999999999997,"d":"2.80%"}}]
[null,"#109",54,2026,"H","A_VIE",{"v":0.44999999999999996,"d":"0.45"},{"v":0.38999999999999996,"d":"0.39"},0.6,0.6,85,0,{"$f":"ROUND(Primes!$O$4*V4210,0)","v":68},{"$f":"'BP Financier'!$E$33*(('BP Financier'!$C$16+'BP Financier'!$D$16+'BP Financier'!$E$16)/('BP Financier'!$C$16+'BP Financier'!$C$19+'BP Financier'!$D$16+'BP Financier'!$D$19+'BP Financier'!$E$16+'BP Financier'!$E$19))*V4210","v":{"v":2356786.6864833417,"d":"2,356,787"}},{"v":1321796.0521260567,"d":"1,321,796"},{"$f":"'BP Financier'!$E$44*(('BP Financier'!$C$16+'BP Financier'!$D$16+'BP Financier'!$E$16)/('BP Financier'!$C$16+'BP Financier'!$C$19+'BP Financier'!$D$16+'BP Financier'!$D$19+'BP Financier'!$E$16+'BP Financier'!$E$19+'BP Financier'!$C$22+'BP Financier'!$D$22+'BP Financier'!$E$22))*$V4210*X4210/(1-$W4210)","v":{"v":168245.48905401988,"d":"168,245"}},{"$f":"'BP Financier'!$E$44*(('BP Financier'!$C$16+'BP Financier'!$D$16+'BP Financier'!$E$16)/('BP Financier'!$C$16+'BP Financier'!$C$19+'BP Financier'!$D$16+'BP Financier'!$D$19+'BP Financier'!$E$16+'BP Financier'!$E$19+'BP Financier'!$C$22+'BP Financier'!$D$22+'BP Financier'!$E$22))*$V4210*Y4210/(1-$W4210)","v":{"v":112473.50373224531,"d":"112,474"}},{"$f":"'BP Financier'!$E$44*(('BP Financier'!$C$16+'BP Financier'!$D$16+'BP Financier'!$E$16)/('BP Financier'!$C$16+'BP Financier'!$C$19+'BP Financier'!$D$16+'BP Financier'!$D$19+'BP Financier'!$E$16+'BP Financier'!$E$19+'BP Financier'!$C$22+'BP Financier'!$D$22+'BP Financier'!$E$22))*$V4210*Z4210/(1-$W4210)","v":{"v":880267.8349953415,"d":"880,268"}},{"$f":"'BP Financier'!$E$44*(('BP Financier'!$C$16+'BP Financier'!$D$16+'BP Financier'!$E$16)/('BP Financier'!$C$16+'BP Financier'!$C$19+'BP Financier'!$D$16+'BP Financier'!$D$19+'BP Financier'!$E$16+'BP Financier'!$E$19+'BP Financier'!$C$22+'BP Financier'!$D$22+'BP Financier'!$E$22))*$V4210*AA4210/(1-$W4210)","v":{"v":108755.37137746037,"d":"108,755"}},{"$f":"'BP Financier'!$E$44*(('BP Financier'!$C$16+'BP Financier'!$D$16+'BP Financier'!$E$16)/('BP Financier'!$C$16+'BP Financier'!$C$19+'BP Financier'!$D$16+'BP Financier'!$D$19+'BP Financier'!$E$16+'BP Financier'!$E$19+'BP Financier'!$C$22+'BP Financier'!$D$22+'BP Financier'!$E$22))*$V4210*AB4210/(1-$W4210)","v":{"v":52053.852966989565,"d":"52,054"}},null,{"v":0.01,"d":"1.00%"},{"$f":"Actif!$E$28/100","v":{"v":0.28900000000000003,"d":"28.90%"}},{"$f":"Actif!$E$30/100","v":{"v":0.09050000000000001,"d":"9.05%"}},{"$f":"Actif!$E$31/100","v":{"v":0.0605,"d":"6.05%"}},{"$f":"Actif!$E$32/100","v":{"v":0.47350000000000003,"d":"47.35%"}},{"$f":"Actif!$E$33/100","v":{"v":0.0585,"d":"5.85%"}},{"$f":"Actif!$E$29/100","v":{"v":0.027999999999999997,"d":"2.80%"}}]
[null,"#110",54,2028,"H","A_VIE",{"v":0.44999999999999996,"d":"0.45"},{"v":0.38999999999999996,"d":"0.39"},0.6,0.6,85,0,{"$f":"ROUND(Primes!$O$4*V4211,0)","v":68},{"$f":"'BP Financier'!$E$33*(('BP Financier'!$C$16+'BP Financier'!$D$16+'BP Financier'!$E$16)/('BP Financier'!$C$16+'BP Financier'!$C$19+'BP Financier'!$D$16+'BP Financier'!$D$19+'BP Financier'!$E$16+'BP Financier'!$E$19))*V4211","v":{"v":2356786.6864833417,"d":"2,356,787"}},{"v":1321796.0521260567,"d":"1,321,796"},{"$f":"'BP Financier'!$E$44*(('BP Financier'!$C$16+'BP Financier'!$D$16+'BP Financier'!$E$16)/('BP Financier'!$C$16+'BP Financier'!$C$19+'BP Financier'!$D$16+'BP Financier'!$D$19+'BP Financier'!$E$16+'BP Financier'!$E$19+'BP Financier'!$C$22+'BP Financier'!$D$22+'BP Financier'!$E$22))*$V4211*X4211/(1-$W4211)","v":{"v":168245.48905401988,"d":"168,245"}},{"$f":"'BP Financier'!$E$44*(('BP Financier'!$C$16+'BP Financier'!$D$16+'BP Financier'!$E$16)/('BP Financier'!$C$16+'BP Financier'!$C$19+'BP Financier'!$D$16+'BP Financier'!$D$19+'BP Financier'!$E$16+'BP Financier'!$E$19+'BP Financier'!$C$22+'BP Financier'!$D$22+'BP Financier'!$E$22))*$V4211*Y4211/(1-$W4211)","v":{"v":112473.50373224531,"d":"112,474"}},{"$f":"'BP Financier'!$E$44*(('BP Financier'!$C$16+'BP Financier'!$D$16+'BP Financier'!$E$16)/('BP Financier'!$C$16+'BP Financier'!$C$19+'BP Financier'!$D$16+'BP Financier'!$D$19+'BP Financier'!$E$16+'BP Financier'!$E$19+'BP Financier'!$C$22+'BP Financier'!$D$22+'BP Financier'!$E$22))*$V4211*Z4211/(1-$W4211)","v":{"v":880267.8349953415,"d":"880,268"}},{"$f":"'BP Financier'!$E$44*(('BP Financier'!$C$16+'BP Financier'!$D$16+'BP Financier'!$E$16)/('BP Financier'!$C$16+'BP Financier'!$C$19+'BP Financier'!$D$16+'BP Financier'!$D$19+'BP Financier'!$E$16+'BP Financier'!$E$19+'BP Financier'!$C$22+'BP Financier'!$D$22+'BP Financier'!$E$22))*$V4211*AA4211/(1-$W4211)","v":{"v":108755.37137746037,"d":"108,755"}},{"$f":"'BP Financier'!$E$44*(('BP Financier'!$C$16+'BP Financier'!$D$16+'BP Financier'!$E$16)/('BP Financier'!$C$16+'BP Financier'!$C$19+'BP Financier'!$D$16+'BP Financier'!$D$19+'BP Financier'!$E$16+'BP Financier'!$E$19+'BP Financier'!$C$22+'BP Financier'!$D$22+'BP Financier'!$E$22))*$V4211*AB4211/(1-$W4211)","v":{"v":52053.852966989565,"d":"52,054"}},null,{"v":0.01,"d":"1.00%"},{"$f":"Actif!$E$28/100","v":{"v":0.28900000000000003,"d":"28.90%"}},{"$f":"Actif!$E$30/100","v":{"v":0.09050000000000001,"d":"9.05%"}},{"$f":"Actif!$E$31/100","v":{"v":0.0605,"d":"6.05%"}},{"$f":"Actif!$E$32/100","v":{"v":0.47350000000000003,"d":"47.35%"}},{"$f":"Actif!$E$33/100","v":{"v":0.0585,"d":"5.85%"}},{"$f":"Actif!$E$29/100","v":{"v":0.027999999999999997,"d":"2.80%"}}]
[null,"#111",54,2029,"H","A_VIE",{"v":0.44999999999999996,"d":"0.45"},{"v":0.38999999999999996,"d":"0.39"},0.6,0.6,85,0,{"$f":"ROUND(Primes!$O$4*V4212,0)","v":68},{"$f":"'BP Financier'!$E$33*(('BP Financier'!$C$16+'BP Financier'!$D$16+'BP Financier'!$E$16)/('BP Financier'!$C$16+'BP Financier'!$C$19+'BP Financier'!$D$16+'BP Financier'!$D$19+'BP Financier'!$E$16+'BP Financier'!$E$19))*V4212","v":{"v":2356786.6864833417,"d":"2,356,787"}},{"v":1321796.0521260567,"d":"1,321,796"},{"$f":"'BP Financier'!$E$44*(('BP Financier'!$C$16+'BP Financier'!$D$16+'BP Financier'!$E$16)/('BP Financier'!$C$16+'BP Financier'!$C$19+'BP Financier'!$D$16+'BP Financier'!$D$19+'BP Financier'!$E$16+'BP Financier'!$E$19+'BP Financier'!$C$22+'BP Financier'!$D$22+'BP Financier'!$E$22))*$V4212*X4212/(1-$W4212)","v":{"v":168245.48905401988,"d":"168,245"}},{"$f":"'BP Financier'!$E$44*(('BP Financier'!$C$16+'BP Financier'!$D$16+'BP Financier'!$E$16)/('BP Financier'!$C$16+'BP Financier'!$C$19+'BP Financier'!$D$16+'BP Financier'!$D$19+'BP Financier'!$E$16+'BP Financier'!$E$19+'BP Financier'!$C$22+'BP Financier'!$D$22+'BP Financier'!$E$22))*$V4212*Y4212/(1-$W4212)","v":{"v":112473.50373224531,"d":"112,474"}},{"$f":"'BP Financier'!$E$44*(('BP Financier'!$C$16+'BP Financier'!$D$16+'BP Financier'!$E$16)/('BP Financier'!$C$16+'BP Financier'!$C$19+'BP Financier'!$D$16+'BP Financier'!$D$19+'BP Financier'!$E$16+'BP Financier'!$E$19+'BP Financier'!$C$22+'BP Financier'!$D$22+'BP Financier'!$E$22))*$V4212*Z4212/(1-$W4212)","v":{"v":880267.8349953415,"d":"880,268"}},{"$f":"'BP Financier'!$E$44*(('BP Financier'!$C$16+'BP Financier'!$D$16+'BP Financier'!$E$16)/('BP Financier'!$C$16+'BP Financier'!$C$19+'BP Financier'!$D$16+'BP Financier'!$D$19+'BP Financier'!$E$16+'BP Financier'!$E$19+'BP Financier'!$C$22+'BP Financier'!$D$22+'BP Financier'!$E$22))*$V4212*AA4212/(1-$W4212)","v":{"v":108755.37137746037,"d":"108,755"}},{"$f":"'BP Financier'!$E$44*(('BP Financier'!$C$16+'BP Financier'!$D$16+'BP Financier'!$E$16)/('BP Financier'!$C$16+'BP Financier'!$C$19+'BP Financier'!$D$16+'BP Financier'!$D$19+'BP Financier'!$E$16+'BP Financier'!$E$19+'BP Financier'!$C$22+'BP Financier'!$D$22+'BP Financier'!$E$22))*$V4212*AB4212/(1-$W4212)","v":{"v":52053.852966989565,"d":"52,054"}},null,{"v":0.01,"d":"1.00%"},{"$f":"Actif!$E$28/100","v":{"v":0.28900000000000003,"d":"28.90%"}},{"$f":"Actif!$E$30/100","v":{"v":0.09050000000000001,"d":"9.05%"}},{"$f":"Actif!$E$31/100","v":{"v":0.0605,"d":"6.05%"}},{"$f":"Actif!$E$32/100","v":{"v":0.47350000000000003,"d":"47.35%"}},{"$f":"Actif!$E$33/100","v":{"v":0.0585,"d":"5.85%"}},{"$f":"Actif!$E$29/100","v":{"v":0.027999999999999997,"d":"2.80%"}}]
[null,"#112",55,2026,"H","A_VIE",{"v":0.44999999999999996,"d":"0.45"},{"v":0.38999999999999996,"d":"0.39"},0.6,0.6,85,0,{"$f":"ROUND(Primes!$O$4*V4213,0)","v":68},{"$f":"'BP Financier'!$E$33*(('BP Financier'!$C$16+'BP Financier'!$D$16+'BP Financier'!$E$16)/('BP Financier'!$C$16+'BP Financier'!$C$19+'BP Financier'!$D$16+'BP Financier'!$D$19+'BP Financier'!$E$16+'BP Financier'!$E$19))*V4213","v":{"v":2356786.6864833417,"d":"2,356,787"}},{"v":1321796.0521260567,"d":"1,321,796"},{"$f":"'BP Financier'!$E$44*(('BP Financier'!$C$16+'BP Financier'!$D$16+'BP Financier'!$E$16)/('BP Financier'!$C$16+'BP Financier'!$C$19+'BP Financier'!$D$16+'BP Financier'!$D$19+'BP Financier'!$E$16+'BP Financier'!$E$19+'BP Financier'!$C$22+'BP Financier'!$D$22+'BP Financier'!$E$22))*$V4213*X4213/(1-$W4213)","v":{"v":168245.48905401988,"d":"168,245"}},{"$f":"'BP Financier'!$E$44*(('BP Financier'!$C$16+'BP Financier'!$D$16+'BP Financier'!$E$16)/('BP Financier'!$C$16+'BP Financier'!$C$19+'BP Financier'!$D$16+'BP Financier'!$D$19+'BP Financier'!$E$16+'BP Financier'!$E$19+'BP Financier'!$C$22+'BP Financier'!$D$22+'BP Financier'!$E$22))*$V4213*Y4213/(1-$W4213)","v":{"v":112473.50373224531,"d":"112,474"}},{"$f":"'BP Financier'!$E$44*(('BP Financier'!$C$16+'BP Financier'!$D$16+'BP Financier'!$E$16)/('BP Financier'!$C$16+'BP Financier'!$C$19+'BP Financier'!$D$16+'BP Financier'!$D$19+'BP Financier'!$E$16+'BP Financier'!$E$19+'BP Financier'!$C$22+'BP Financier'!$D$22+'BP Financier'!$E$22))*$V4213*Z4213/(1-$W4213)","v":{"v":880267.8349953415,"d":"880,268"}},{"$f":"'BP Financier'!$E$44*(('BP Financier'!$C$16+'BP Financier'!$D$16+'BP Financier'!$E$16)/('BP Financier'!$C$16+'BP Financier'!$C$19+'BP Financier'!$D$16+'BP Financier'!$D$19+'BP Financier'!$E$16+'BP Financier'!$E$19+'BP Financier'!$C$22+'BP Financier'!$D$22+'BP Financier'!$E$22))*$V4213*AA4213/(1-$W4213)","v":{"v":108755.37137746037,"d":"108,755"}},{"$f":"'BP Financier'!$E$44*(('BP Financier'!$C$16+'BP Financier'!$D$16+'BP Financier'!$E$16)/('BP Financier'!$C$16+'BP Financier'!$C$19+'BP Financier'!$D$16+'BP Financier'!$D$19+'BP Financier'!$E$16+'BP Financier'!$E$19+'BP Financier'!$C$22+'BP Financier'!$D$22+'BP Financier'!$E$22))*$V4213*AB4213/(1-$W4213)","v":{"v":52053.852966989565,"d":"52,054"}},null,{"v":0.01,"d":"1.00%"},{"$f":"Actif!$E$28/100","v":{"v":0.28900000000000003,"d":"28.90%"}},{"$f":"Actif!$E$30/100","v":{"v":0.09050000000000001,"d":"9.05%"}},{"$f":"Actif!$E$31/100","v":{"v":0.0605,"d":"6.05%"}},{"$f":"Actif!$E$32/100","v":{"v":0.47350000000000003,"d":"47.35%"}},{"$f":"Actif!$E$33/100","v":{"v":0.0585,"d":"5.85%"}},{"$f":"Actif!$E$29/100","v":{"v":0.027999999999999997,"d":"2.80%"}}]
[null,"#113",55,2028,"H","A_VIE",{"v":0.44999999999999996,"d":"0.45"},{"v":0.38999999999999996,"d":"0.39"},0.6,0.6,85,0,{"$f":"ROUND(Primes!$O$4*V4214,0)","v":68},{"$f":"'BP Financier'!$E$33*(('BP Financier'!$C$16+'BP Financier'!$D$16+'BP Financier'!$E$16)/('BP Financier'!$C$16+'BP Financier'!$C$19+'BP Financier'!$D$16+'BP Financier'!$D$19+'BP Financier'!$E$16+'BP Financier'!$E$19))*V4214","v":{"v":2356786.6864833417,"d":"2,356,787"}},{"v":1321796.0521260567,"d":"1,321,796"},{"$f":"'BP Financier'!$E$44*(('BP Financier'!$C$16+'BP Financier'!$D$16+'BP Financier'!$E$16)/('BP Financier'!$C$16+'BP Financier'!$C$19+'BP Financier'!$D$16+'BP Financier'!$D$19+'BP Financier'!$E$16+'BP Financier'!$E$19+'BP Financier'!$C$22+'BP Financier'!$D$22+'BP Financier'!$E$22))*$V4214*X4214/(1-$W4214)","v":{"v":168245.48905401988,"d":"168,245"}},{"$f":"'BP Financier'!$E$44*(('BP Financier'!$C$16+'BP Financier'!$D$16+'BP Financier'!$E$16)/('BP Financier'!$C$16+'BP Financier'!$C$19+'BP Financier'!$D$16+'BP Financier'!$D$19+'BP Financier'!$E$16+'BP Financier'!$E$19+'BP Financier'!$C$22+'BP Financier'!$D$22+'BP Financier'!$E$22))*$V4214*Y4214/(1-$W4214)","v":{"v":112473.50373224531,"d":"112,474"}},{"$f":"'BP Financier'!$E$44*(('BP Financier'!$C$16+'BP Financier'!$D$16+'BP Financier'!$E$16)/('BP Financier'!$C$16+'BP Financier'!$C$19+'BP Financier'!$D$16+'BP Financier'!$D$19+'BP Financier'!$E$16+'BP Financier'!$E$19+'BP Financier'!$C$22+'BP Financier'!$D$22+'BP Financier'!$E$22))*$V4214*Z4214/(1-$W4214)","v":{"v":880267.8349953415,"d":"880,268"}},{"$f":"'BP Financier'!$E$44*(('BP Financier'!$C$16+'BP Financier'!$D$16+'BP Financier'!$E$16)/('BP Financier'!$C$16+'BP Financier'!$C$19+'BP Financier'!$D$16+'BP Financier'!$D$19+'BP Financier'!$E$16+'BP Financier'!$E$19+'BP Financier'!$C$22+'BP Financier'!$D$22+'BP Financier'!$E$22))*$V4214*AA4214/(1-$W4214)","v":{"v":108755.37137746037,"d":"108,755"}},{"$f":"'BP Financier'!$E$44*(('BP Financier'!$C$16+'BP Financier'!$D$16+'BP Financier'!$E$16)/('BP Financier'!$C$16+'BP Financier'!$C$19+'BP Financier'!$D$16+'BP Financier'!$D$19+'BP Financier'!$E$16+'BP Financier'!$E$19+'BP Financier'!$C$22+'BP Financier'!$D$22+'BP Financier'!$E$22))*$V4214*AB4214/(1-$W4214)","v":{"v":52053.852966989565,"d":"52,054"}},null,{"v":0.01,"d":"1.00%"},{"$f":"Actif!$E$28/100","v":{"v":0.28900000000000003,"d":"28.90%"}},{"$f":"Actif!$E$30/100","v":{"v":0.09050000000000001,"d":"9.05%"}},{"$f":"Actif!$E$31/100","v":{"v":0.0605,"d":"6.05%"}},{"$f":"Actif!$E$32/100","v":{"v":0.47350000000000003,"d":"47.35%"}},{"$f":"Actif!$E$33/100","v":{"v":0.0585,"d":"5.85%"}},{"$f":"Actif!$E$29/100","v":{"v":0.027999999999999997,"d":"2.80%"}}]
[null,"#114",55,2029,"H","A_VIE",{"v":0.44999999999999996,"d":"0.45"},{"v":0.38999999999999996,"d":"0.39"},0.6,0.6,85,0,{"$f":"ROUND(Primes!$O$4*V4215,0)","v":68},{"$f":"'BP Financier'!$E$33*(('BP Financier'!$C$16+'BP Financier'!$D$16+'BP Financier'!$E$16)/('BP Financier'!$C$16+'BP Financier'!$C$19+'BP Financier'!$D$16+'BP Financier'!$D$19+'BP Financier'!$E$16+'BP Financier'!$E$19))*V4215","v":{"v":2356786.6864833417,"d":"2,356,787"}},{"v":1321796.0521260567,"d":"1,321,796"},{"$f":"'BP Financier'!$E$44*(('BP Financier'!$C$16+'BP Financier'!$D$16+'BP Financier'!$E$16)/('BP Financier'!$C$16+'BP Financier'!$C$19+'BP Financier'!$D$16+'BP Financier'!$D$19+'BP Financier'!$E$16+'BP Financier'!$E$19+'BP Financier'!$C$22+'BP Financier'!$D$22+'BP Financier'!$E$22))*$V4215*X4215/(1-$W4215)","v":{"v":168245.48905401988,"d":"168,245"}},{"$f":"'BP Financier'!$E$44*(('BP Financier'!$C$16+'BP Financier'!$D$16+'BP Financier'!$E$16)/('BP Financier'!$C$16+'BP Financier'!$C$19+'BP Financier'!$D$16+'BP Financier'!$D$19+'BP Financier'!$E$16+'BP Financier'!$E$19+'BP Financier'!$C$22+'BP Financier'!$D$22+'BP Financier'!$E$22))*$V4215*Y4215/(1-$W4215)","v":{"v":112473.50373224531,"d":"112,474"}},{"$f":"'BP Financier'!$E$44*(('BP Financier'!$C$16+'BP Financier'!$D$16+'BP Financier'!$E$16)/('BP Financier'!$C$16+'BP Financier'!$C$19+'BP Financier'!$D$16+'BP Financier'!$D$19+'BP Financier'!$E$16+'BP Financier'!$E$19+'BP Financier'!$C$22+'BP Financier'!$D$22+'BP Financier'!$E$22))*$V4215*Z4215/(1-$W4215)","v":{"v":880267.8349953415,"d":"880,268"}},{"$f":"'BP Financier'!$E$44*(('BP Financier'!$C$16+'BP Financier'!$D$16+'BP Financier'!$E$16)/('BP Financier'!$C$16+'BP Financier'!$C$19+'BP Financier'!$D$16+'BP Financier'!$D$19+'BP Financier'!$E$16+'BP Financier'!$E$19+'BP Financier'!$C$22+'BP Financier'!$D$22+'BP Financier'!$E$22))*$V4215*AA4215/(1-$W4215)","v":{"v":108755.37137746037,"d":"108,755"}},{"$f":"'BP Financier'!$E$44*(('BP Financier'!$C$16+'BP Financier'!$D$16+'BP Financier'!$E$16)/('BP Financier'!$C$16+'BP Financier'!$C$19+'BP Financier'!$D$16+'BP Financier'!$D$19+'BP Financier'!$E$16+'BP Financier'!$E$19+'BP Financier'!$C$22+'BP Financier'!$D$22+'BP Financier'!$E$22))*$V4215*AB4215/(1-$W4215)","v":{"v":52053.852966989565,"d":"52,054"}},null,{"v":0.01,"d":"1.00%"},{"$f":"Actif!$E$28/100","v":{"v":0.28900000000000003,"d":"28.90%"}},{"$f":"Actif!$E$30/100","v":{"v":0.09050000000000001,"d":"9.05%"}},{"$f":"Actif!$E$31/100","v":{"v":0.0605,"d":"6.05%"}},{"$f":"Actif!$E$32/100","v":{"v":0.47350000000000003,"d":"47.35%"}},{"$f":"Actif!$E$33/100","v":{"v":0.0585,"d":"5.85%"}},{"$f":"Actif!$E$29/100","v":{"v":0.027999999999999997,"d":"2.80%"}}]
[null,"#115",56,2026,"F","A_VIE",{"v":0.44999999999999996,"d":"0.45"},{"v":0.38999999999999996,"d":"0.39"},0.6,0.6,85,0,{"$f":"ROUND(Primes!$O$4*V4216,0)","v":68},{"$f":"'BP Financier'!$E$33*(('BP Financier'!$C$16+'BP Financier'!$D$16+'BP Financier'!$E$16)/('BP Financier'!$C$16+'BP Financier'!$C$19+'BP Financier'!$D$16+'BP Financier'!$D$19+'BP Financier'!$E$16+'BP Financier'!$E$19))*V4216","v":{"v":2356786.6864833417,"d":"2,356,787"}},{"v":1321796.0521260567,"d":"1,321,796"},{"$f":"'BP Financier'!$E$44*(('BP Financier'!$C$16+'BP Financier'!$D$16+'BP Financier'!$E$16)/('BP Financier'!$C$16+'BP Financier'!$C$19+'BP Financier'!$D$16+'BP Financier'!$D$19+'BP Financier'!$E$16+'BP Financier'!$E$19+'BP Financier'!$C$22+'BP Financier'!$D$22+'BP Financier'!$E$22))*$V4216*X4216/(1-$W4216)","v":{"v":168245.48905401988,"d":"168,245"}},{"$f":"'BP Financier'!$E$44*(('BP Financier'!$C$16+'BP Financier'!$D$16+'BP Financier'!$E$16)/('BP Financier'!$C$16+'BP Financier'!$C$19+'BP Financier'!$D$16+'BP Financier'!$D$19+'BP Financier'!$E$16+'BP Financier'!$E$19+'BP Financier'!$C$22+'BP Financier'!$D$22+'BP Financier'!$E$22))*$V4216*Y4216/(1-$W4216)","v":{"v":112473.50373224531,"d":"112,474"}},{"$f":"'BP Financier'!$E$44*(('BP Financier'!$C$16+'BP Financier'!$D$16+'BP Financier'!$E$16)/('BP Financier'!$C$16+'BP Financier'!$C$19+'BP Financier'!$D$16+'BP Financier'!$D$19+'BP Financier'!$E$16+'BP Financier'!$E$19+'BP Financier'!$C$22+'BP Financier'!$D$22+'BP Financier'!$E$22))*$V4216*Z4216/(1-$W4216)","v":{"v":880267.8349953415,"d":"880,268"}},{"$f":"'BP Financier'!$E$44*(('BP Financier'!$C$16+'BP Financier'!$D$16+'BP Financier'!$E$16)/('BP Financier'!$C$16+'BP Financier'!$C$19+'BP Financier'!$D$16+'BP Financier'!$D$19+'BP Financier'!$E$16+'BP Financier'!$E$19+'BP Financier'!$C$22+'BP Financier'!$D$22+'BP Financier'!$E$22))*$V4216*AA4216/(1-$W4216)","v":{"v":108755.37137746037,"d":"108,755"}},{"$f":"'BP Financier'!$E$44*(('BP Financier'!$C$16+'BP Financier'!$D$16+'BP Financier'!$E$16)/('BP Financier'!$C$16+'BP Financier'!$C$19+'BP Financier'!$D$16+'BP Financier'!$D$19+'BP Financier'!$E$16+'BP Financier'!$E$19+'BP Financier'!$C$22+'BP Financier'!$D$22+'BP Financier'!$E$22))*$V4216*AB4216/(1-$W4216)","v":{"v":52053.852966989565,"d":"52,054"}},null,{"v":0.01,"d":"1.00%"},{"$f":"Actif!$E$28/100","v":{"v":0.28900000000000003,"d":"28.90%"}},{"$f":"Actif!$E$30/100","v":{"v":0.09050000000000001,"d":"9.05%"}},{"$f":"Actif!$E$31/100","v":{"v":0.0605,"d":"6.05%"}},{"$f":"Actif!$E$32/100","v":{"v":0.47350000000000003,"d":"47.35%"}},{"$f":"Actif!$E$33/100","v":{"v":0.0585,"d":"5.85%"}},{"$f":"Actif!$E$29/100","v":{"v":0.027999999999999997,"d":"2.80%"}}]
[null,"#116",56,2028,"F","A_VIE",{"v":0.44999999999999996,"d":"0.45"},{"v":0.38999999999999996,"d":"0.39"},0.6,0.6,85,0,{"$f":"ROUND(Primes!$O$4*V4217,0)","v":68},{"$f":"'BP Financier'!$E$33*(('BP Financier'!$C$16+'BP Financier'!$D$16+'BP Financier'!$E$16)/('BP Financier'!$C$16+'BP Financier'!$C$19+'BP Financier'!$D$16+'BP Financier'!$D$19+'BP Financier'!$E$16+'BP Financier'!$E$19))*V4217","v":{"v":2356786.6864833417,"d":"2,356,787"}},{"v":1321796.0521260567,"d":"1,321,796"},{"$f":"'BP Financier'!$E$44*(('BP Financier'!$C$16+'BP Financier'!$D$16+'BP Financier'!$E$16)/('BP Financier'!$C$16+'BP Financier'!$C$19+'BP Financier'!$D$16+'BP Financier'!$D$19+'BP Financier'!$E$16+'BP Financier'!$E$19+'BP Financier'!$C$22+'BP Financier'!$D$22+'BP Financier'!$E$22))*$V4217*X4217/(1-$W4217)","v":{"v":168245.48905401988,"d":"168,245"}},{"$f":"'BP Financier'!$E$44*(('BP Financier'!$C$16+'BP Financier'!$D$16+'BP Financier'!$E$16)/('BP Financier'!$C$16+'BP Financier'!$C$19+'BP Financier'!$D$16+'BP Financier'!$D$19+'BP Financier'!$E$16+'BP Financier'!$E$19+'BP Financier'!$C$22+'BP Financier'!$D$22+'BP Financier'!$E$22))*$V4217*Y4217/(1-$W4217)","v":{"v":112473.50373224531,"d":"112,474"}},{"$f":"'BP Financier'!$E$44*(('BP Financier'!$C$16+'BP Financier'!$D$16+'BP Financier'!$E$16)/('BP Financier'!$C$16+'BP Financier'!$C$19+'BP Financier'!$D$16+'BP Financier'!$D$19+'BP Financier'!$E$16+'BP Financier'!$E$19+'BP Financier'!$C$22+'BP Financier'!$D$22+'BP Financier'!$E$22))*$V4217*Z4217/(1-$W4217)","v":{"v":880267.8349953415,"d":"880,268"}},{"$f":"'BP Financier'!$E$44*(('BP Financier'!$C$16+'BP Financier'!$D$16+'BP Financier'!$E$16)/('BP Financier'!$C$16+'BP Financier'!$C$19+'BP Financier'!$D$16+'BP Financier'!$D$19+'BP Financier'!$E$16+'BP Financier'!$E$19+'BP Financier'!$C$22+'BP Financier'!$D$22+'BP Financier'!$E$22))*$V4217*AA4217/(1-$W4217)","v":{"v":108755.37137746037,"d":"108,755"}},{"$f":"'BP Financier'!$E$44*(('BP Financier'!$C$16+'BP Financier'!$D$16+'BP Financier'!$E$16)/('BP Financier'!$C$16+'BP Financier'!$C$19+'BP Financier'!$D$16+'BP Financier'!$D$19+'BP Financier'!$E$16+'BP Financier'!$E$19+'BP Financier'!$C$22+'BP Financier'!$D$22+'BP Financier'!$E$22))*$V4217*AB4217/(1-$W4217)","v":{"v":52053.852966989565,"d":"52,054"}},null,{"v":0.01,"d":"1.00%"},{"$f":"Actif!$E$28/100","v":{"v":0.28900000000000003,"d":"28.90%"}},{"$f":"Actif!$E$30/100","v":{"v":0.09050000000000001,"d":"9.05%"}},{"$f":"Actif!$E$31/100","v":{"v":0.0605,"d":"6.05%"}},{"$f":"Actif!$E$32/100","v":{"v":0.47350000000000003,"d":"47.35%"}},{"$f":"Actif!$E$33/100","v":{"v":0.0585,"d":"5.85%"}},{"$f":"Actif!$E$29/100","v":{"v":0.027999999999999997,"d":"2.80%"}}]
[null,"#117",56,2029,"F","A_VIE",{"v":0.44999999999999996,"d":"0.45"},{"v":0.38999999999999996,"d":"0.39"},0.6,0.6,85,0,{"$f":"ROUND(Primes!$O$4*V4218,0)","v":68},{"$f":"'BP Financier'!$E$33*(('BP Financier'!$C$16+'BP Financier'!$D$16+'BP Financier'!$E$16)/('BP Financier'!$C$16+'BP Financier'!$C$19+'BP Financier'!$D$16+'BP Financier'!$D$19+'BP Financier'!$E$16+'BP Financier'!$E$19))*V4218","v":{"v":2356786.6864833417,"d":"2,356,787"}},{"v":1321796.0521260567,"d":"1,321,796"},{"$f":"'BP Financier'!$E$44*(('BP Financier'!$C$16+'BP Financier'!$D$16+'BP Financier'!$E$16)/('BP Financier'!$C$16+'BP Financier'!$C$19+'BP Financier'!$D$16+'BP Financier'!$D$19+'BP Financier'!$E$16+'BP Financier'!$E$19+'BP Financier'!$C$22+'BP Financier'!$D$22+'BP Financier'!$E$22))*$V4218*X4218/(1-$W4218)","v":{"v":168245.48905401988,"d":"168,245"}},{"$f":"'BP Financier'!$E$44*(('BP Financier'!$C$16+'BP Financier'!$D$16+'BP Financier'!$E$16)/('BP Financier'!$C$16+'BP Financier'!$C$19+'BP Financier'!$D$16+'BP Financier'!$D$19+'BP Financier'!$E$16+'BP Financier'!$E$19+'BP Financier'!$C$22+'BP Financier'!$D$22+'BP Financier'!$E$22))*$V4218*Y4218/(1-$W4218)","v":{"v":112473.50373224531,"d":"112,474"}},{"$f":"'BP Financier'!$E$44*(('BP Financier'!$C$16+'BP Financier'!$D$16+'BP Financier'!$E$16)/('BP Financier'!$C$16+'BP Financier'!$C$19+'BP Financier'!$D$16+'BP Financier'!$D$19+'BP Financier'!$E$16+'BP Financier'!$E$19+'BP Financier'!$C$22+'BP Financier'!$D$22+'BP Financier'!$E$22))*$V4218*Z4218/(1-$W4218)","v":{"v":880267.8349953415,"d":"880,268"}},{"$f":"'BP Financier'!$E$44*(('BP Financier'!$C$16+'BP Financier'!$D$16+'BP Financier'!$E$16)/('BP Financier'!$C$16+'BP Financier'!$C$19+'BP Financier'!$D$16+'BP Financier'!$D$19+'BP Financier'!$E$16+'BP Financier'!$E$19+'BP Financier'!$C$22+'BP Financier'!$D$22+'BP Financier'!$E$22))*$V4218*AA4218/(1-$W4218)","v":{"v":108755.37137746037,"d":"108,755"}},{"$f":"'BP Financier'!$E$44*(('BP Financier'!$C$16+'BP Financier'!$D$16+'BP Financier'!$E$16)/('BP Financier'!$C$16+'BP Financier'!$C$19+'BP Financier'!$D$16+'BP Financier'!$D$19+'BP Financier'!$E$16+'BP Financier'!$E$19+'BP Financier'!$C$22+'BP Financier'!$D$22+'BP Financier'!$E$22))*$V4218*AB4218/(1-$W4218)","v":{"v":52053.852966989565,"d":"52,054"}},null,{"v":0.01,"d":"1.00%"},{"$f":"Actif!$E$28/100","v":{"v":0.28900000000000003,"d":"28.90%"}},{"$f":"Actif!$E$30/100","v":{"v":0.09050000000000001,"d":"9.05%"}},{"$f":"Actif!$E$31/100","v":{"v":0.0605,"d":"6.05%"}},{"$f":"Actif!$E$32/100","v":{"v":0.47350000000000003,"d":"47.35%"}},{"$f":"Actif!$E$33/100","v":{"v":0.0585,"d":"5.85%"}},{"$f":"Actif!$E$29/100","v":{"v":0.027999999999999997,"d":"2.80%"}}]
[null,"#118",57,2026,"H","A_VIE",{"v":0.44999999999999996,"d":"0.45"},{"v":0.38999999999999996,"d":"0.39"},0.6,0.6,85,0,{"$f":"ROUND(Primes!$O$4*V4219,0)","v":68},{"$f":"'BP Financier'!$E$33*(('BP Financier'!$C$16+'BP Financier'!$D$16+'BP Financier'!$E$16)/('BP Financier'!$C$16+'BP Financier'!$C$19+'BP Financier'!$D$16+'BP Financier'!$D$19+'BP Financier'!$E$16+'BP Financier'!$E$19))*V4219","v":{"v":2356786.6864833417,"d":"2,356,787"}},{"v":1321796.0521260567,"d":"1,321,796"},{"$f":"'BP Financier'!$E$44*(('BP Financier'!$C$16+'BP Financier'!$D$16+'BP Financier'!$E$16)/('BP Financier'!$C$16+'BP Financier'!$C$19+'BP Financier'!$D$16+'BP Financier'!$D$19+'BP Financier'!$E$16+'BP Financier'!$E$19+'BP Financier'!$C$22+'BP Financier'!$D$22+'BP Financier'!$E$22))*$V4219*X4219/(1-$W4219)","v":{"v":168245.48905401988,"d":"168,245"}},{"$f":"'BP Financier'!$E$44*(('BP Financier'!$C$16+'BP Financier'!$D$16+'BP Financier'!$E$16)/('BP Financier'!$C$16+'BP Financier'!$C$19+'BP Financier'!$D$16+'BP Financier'!$D$19+'BP Financier'!$E$16+'BP Financier'!$E$19+'BP Financier'!$C$22+'BP Financier'!$D$22+'BP Financier'!$E$22))*$V4219*Y4219/(1-$W4219)","v":{"v":112473.50373224531,"d":"112,474"}},{"$f":"'BP Financier'!$E$44*(('BP Financier'!$C$16+'BP Financier'!$D$16+'BP Financier'!$E$16)/('BP Financier'!$C$16+'BP Financier'!$C$19+'BP Financier'!$D$16+'BP Financier'!$D$19+'BP Financier'!$E$16+'BP Financier'!$E$19+'BP Financier'!$C$22+'BP Financier'!$D$22+'BP Financier'!$E$22))*$V4219*Z4219/(1-$W4219)","v":{"v":880267.8349953415,"d":"880,268"}},{"$f":"'BP Financier'!$E$44*(('BP Financier'!$C$16+'BP Financier'!$D$16+'BP Financier'!$E$16)/('BP Financier'!$C$16+'BP Financier'!$C$19+'BP Financier'!$D$16+'BP Financier'!$D$19+'BP Financier'!$E$16+'BP Financier'!$E$19+'BP Financier'!$C$22+'BP Financier'!$D$22+'BP Financier'!$E$22))*$V4219*AA4219/(1-$W4219)","v":{"v":108755.37137746037,"d":"108,755"}},{"$f":"'BP Financier'!$E$44*(('BP Financier'!$C$16+'BP Financier'!$D$16+'BP Financier'!$E$16)/('BP Financier'!$C$16+'BP Financier'!$C$19+'BP Financier'!$D$16+'BP Financier'!$D$19+'BP Financier'!$E$16+'BP Financier'!$E$19+'BP Financier'!$C$22+'BP Financier'!$D$22+'BP Financier'!$E$22))*$V4219*AB4219/(1-$W4219)","v":{"v":52053.852966989565,"d":"52,054"}},null,{"v":0.01,"d":"1.00%"},{"$f":"Actif!$E$28/100","v":{"v":0.28900000000000003,"d":"28.90%"}},{"$f":"Actif!$E$30/100","v":{"v":0.09050000000000001,"d":"9.05%"}},{"$f":"Actif!$E$31/100","v":{"v":0.0605,"d":"6.05%"}},{"$f":"Actif!$E$32/100","v":{"v":0.47350000000000003,"d":"47.35%"}},{"$f":"Actif!$E$33/100","v":{"v":0.0585,"d":"5.85%"}},{"$f":"Actif!$E$29/100","v":{"v":0.027999999999999997,"d":"2.80%"}}]
[null,"#119",57,2028,"H","A_VIE",{"v":0.44999999999999996,"d":"0.45"},{"v":0.38999999999999996,"d":"0.39"},0.6,0.6,85,0,{"$f":"ROUND(Primes!$O$4*V4220,0)","v":68},{"$f":"'BP Financier'!$E$33*(('BP Financier'!$C$16+'BP Financier'!$D$16+'BP Financier'!$E$16)/('BP Financier'!$C$16+'BP Financier'!$C$19+'BP Financier'!$D$16+'BP Financier'!$D$19+'BP Financier'!$E$16+'BP Financier'!$E$19))*V4220","v":{"v":2356786.6864833417,"d":"2,356,787"}},{"v":1321796.0521260567,"d":"1,321,796"},{"$f":"'BP Financier'!$E$44*(('BP Financier'!$C$16+'BP Financier'!$D$16+'BP Financier'!$E$16)/('BP Financier'!$C$16+'BP Financier'!$C$19+'BP Financier'!$D$16+'BP Financier'!$D$19+'BP Financier'!$E$16+'BP Financier'!$E$19+'BP Financier'!$C$22+'BP Financier'!$D$22+'BP Financier'!$E$22))*$V4220*X4220/(1-$W4220)","v":{"v":168245.48905401988,"d":"168,245"}},{"$f":"'BP Financier'!$E$44*(('BP Financier'!$C$16+'BP Financier'!$D$16+'BP Financier'!$E$16)/('BP Financier'!$C$16+'BP Financier'!$C$19+'BP Financier'!$D$16+'BP Financier'!$D$19+'BP Financier'!$E$16+'BP Financier'!$E$19+'BP Financier'!$C$22+'BP Financier'!$D$22+'BP Financier'!$E$22))*$V4220*Y4220/(1-$W4220)","v":{"v":112473.50373224531,"d":"112,474"}},{"$f":"'BP Financier'!$E$44*(('BP Financier'!$C$16+'BP Financier'!$D$16+'BP Financier'!$E$16)/('BP Financier'!$C$16+'BP Financier'!$C$19+'BP Financier'!$D$16+'BP Financier'!$D$19+'BP Financier'!$E$16+'BP Financier'!$E$19+'BP Financier'!$C$22+'BP Financier'!$D$22+'BP Financier'!$E$22))*$V4220*Z4220/(1-$W4220)","v":{"v":880267.8349953415,"d":"880,268"}},{"$f":"'BP Financier'!$E$44*(('BP Financier'!$C$16+'BP Financier'!$D$16+'BP Financier'!$E$16)/('BP Financier'!$C$16+'BP Financier'!$C$19+'BP Financier'!$D$16+'BP Financier'!$D$19+'BP Financier'!$E$16+'BP Financier'!$E$19+'BP Financier'!$C$22+'BP Financier'!$D$22+'BP Financier'!$E$22))*$V4220*AA4220/(1-$W4220)","v":{"v":108755.37137746037,"d":"108,755"}},{"$f":"'BP Financier'!$E$44*(('BP Financier'!$C$16+'BP Financier'!$D$16+'BP Financier'!$E$16)/('BP Financier'!$C$16+'BP Financier'!$C$19+'BP Financier'!$D$16+'BP Financier'!$D$19+'BP Financier'!$E$16+'BP Financier'!$E$19+'BP Financier'!$C$22+'BP Financier'!$D$22+'BP Financier'!$E$22))*$V4220*AB4220/(1-$W4220)","v":{"v":52053.852966989565,"d":"52,054"}},null,{"v":0.01,"d":"1.00%"},{"$f":"Actif!$E$28/100","v":{"v":0.28900000000000003,"d":"28.90%"}},{"$f":"Actif!$E$30/100","v":{"v":0.09050000000000001,"d":"9.05%"}},{"$f":"Actif!$E$31/100","v":{"v":0.0605,"d":"6.05%"}},{"$f":"Actif!$E$32/100","v":{"v":0.47350000000000003,"d":"47.35%"}},{"$f":"Actif!$E$33/100","v":{"v":0.0585,"d":"5.85%"}},{"$f":"Actif!$E$29/100","v":{"v":0.027999999999999997,"d":"2.80%"}}]
[null,"#120",57,2029,"H","A_VIE",{"v":0.44999999999999996,"d":"0.45"},{"v":0.38999999999999996,"d":"0.39"},0.6,0.6,85,0,{"$f":"ROUND(Primes!$O$4*V4221,0)","v":68},{"$f":"'BP Financier'!$E$33*(('BP Financier'!$C$16+'BP Financier'!$D$16+'BP Financier'!$E$16)/('BP Financier'!$C$16+'BP Financier'!$C$19+'BP Financier'!$D$16+'BP Financier'!$D$19+'BP Financier'!$E$16+'BP Financier'!$E$19))*V4221","v":{"v":2356786.6864833417,"d":"2,356,787"}},{"v":1321796.0521260567,"d":"1,321,796"},{"$f":"'BP Financier'!$E$44*(('BP Financier'!$C$16+'BP Financier'!$D$16+'BP Financier'!$E$16)/('BP Financier'!$C$16+'BP Financier'!$C$19+'BP Financier'!$D$16+'BP Financier'!$D$19+'BP Financier'!$E$16+'BP Financier'!$E$19+'BP Financier'!$C$22+'BP Financier'!$D$22+'BP Financier'!$E$22))*$V4221*X4221/(1-$W4221)","v":{"v":168245.48905401988,"d":"168,245"}},{"$f":"'BP Financier'!$E$44*(('BP Financier'!$C$16+'BP Financier'!$D$16+'BP Financier'!$E$16)/('BP Financier'!$C$16+'BP Financier'!$C$19+'BP Financier'!$D$16+'BP Financier'!$D$19+'BP Financier'!$E$16+'BP Financier'!$E$19+'BP Financier'!$C$22+'BP Financier'!$D$22+'BP Financier'!$E$22))*$V4221*Y4221/(1-$W4221)","v":{"v":112473.50373224531,"d":"112,474"}},{"$f":"'BP Financier'!$E$44*(('BP Financier'!$C$16+'BP Financier'!$D$16+'BP Financier'!$E$16)/('BP Financier'!$C$16+'BP Financier'!$C$19+'BP Financier'!$D$16+'BP Financier'!$D$19+'BP Financier'!$E$16+'BP Financier'!$E$19+'BP Financier'!$C$22+'BP Financier'!$D$22+'BP Financier'!$E$22))*$V4221*Z4221/(1-$W4221)","v":{"v":880267.8349953415,"d":"880,268"}},{"$f":"'BP Financier'!$E$44*(('BP Financier'!$C$16+'BP Financier'!$D$16+'BP Financier'!$E$16)/('BP Financier'!$C$16+'BP Financier'!$C$19+'BP Financier'!$D$16+'BP Financier'!$D$19+'BP Financier'!$E$16+'BP Financier'!$E$19+'BP Financier'!$C$22+'BP Financier'!$D$22+'BP Financier'!$E$22))*$V4221*AA4221/(1-$W4221)","v":{"v":108755.37137746037,"d":"108,755"}},{"$f":"'BP Financier'!$E$44*(('BP Financier'!$C$16+'BP Financier'!$D$16+'BP Financier'!$E$16)/('BP Financier'!$C$16+'BP Financier'!$C$19+'BP Financier'!$D$16+'BP Financier'!$D$19+'BP Financier'!$E$16+'BP Financier'!$E$19+'BP Financier'!$C$22+'BP Financier'!$D$22+'BP Financier'!$E$22))*$V4221*AB4221/(1-$W4221)","v":{"v":52053.852966989565,"d":"52,054"}},null,{"v":0.01,"d":"1.00%"},{"$f":"Actif!$E$28/100","v":{"v":0.28900000000000003,"d":"28.90%"}},{"$f":"Actif!$E$30/100","v":{"v":0.09050000000000001,"d":"9.05%"}},{"$f":"Actif!$E$31/100","v":{"v":0.0605,"d":"6.05%"}},{"$f":"Actif!$E$32/100","v":{"v":0.47350000000000003,"d":"47.35%"}},{"$f":"Actif!$E$33/100","v":{"v":0.0585,"d":"5.85%"}},{"$f":"Actif!$E$29/100","v":{"v":0.027999999999999997,"d":"2.80%"}}]
[null,"#121",58,2026,"H","A_VIE",{"v":0.44999999999999996,"d":"0.45"},{"v":0.38999999999999996,"d":"0.39"},0.6,0.6,85,0,{"$f":"ROUND(Primes!$O$4*V4222,0)","v":68},{"$f":"'BP Financier'!$E$33*(('BP Financier'!$C$16+'BP Financier'!$D$16+'BP Financier'!$E$16)/('BP Financier'!$C$16+'BP Financier'!$C$19+'BP Financier'!$D$16+'BP Financier'!$D$19+'BP Financier'!$E$16+'BP Financier'!$E$19))*V4222","v":{"v":2356786.6864833417,"d":"2,356,787"}},{"v":1321796.0521260567,"d":"1,321,796"},{"$f":"'BP Financier'!$E$44*(('BP Financier'!$C$16+'BP Financier'!$D$16+'BP Financier'!$E$16)/('BP Financier'!$C$16+'BP Financier'!$C$19+'BP Financier'!$D$16+'BP Financier'!$D$19+'BP Financier'!$E$16+'BP Financier'!$E$19+'BP Financier'!$C$22+'BP Financier'!$D$22+'BP Financier'!$E$22))*$V4222*X4222/(1-$W4222)","v":{"v":168245.48905401988,"d":"168,245"}},{"$f":"'BP Financier'!$E$44*(('BP Financier'!$C$16+'BP Financier'!$D$16+'BP Financier'!$E$16)/('BP Financier'!$C$16+'BP Financier'!$C$19+'BP Financier'!$D$16+'BP Financier'!$D$19+'BP Financier'!$E$16+'BP Financier'!$E$19+'BP Financier'!$C$22+'BP Financier'!$D$22+'BP Financier'!$E$22))*$V4222*Y4222/(1-$W4222)","v":{"v":112473.50373224531,"d":"112,474"}},{"$f":"'BP Financier'!$E$44*(('BP Financier'!$C$16+'BP Financier'!$D$16+'BP Financier'!$E$16)/('BP Financier'!$C$16+'BP Financier'!$C$19+'BP Financier'!$D$16+'BP Financier'!$D$19+'BP Financier'!$E$16+'BP Financier'!$E$19+'BP Financier'!$C$22+'BP Financier'!$D$22+'BP Financier'!$E$22))*$V4222*Z4222/(1-$W4222)","v":{"v":880267.8349953415,"d":"880,268"}},{"$f":"'BP Financier'!$E$44*(('BP Financier'!$C$16+'BP Financier'!$D$16+'BP Financier'!$E$16)/('BP Financier'!$C$16+'BP Financier'!$C$19+'BP Financier'!$D$16+'BP Financier'!$D$19+'BP Financier'!$E$16+'BP Financier'!$E$19+'BP Financier'!$C$22+'BP Financier'!$D$22+'BP Financier'!$E$22))*$V4222*AA4222/(1-$W4222)","v":{"v":108755.37137746037,"d":"108,755"}},{"$f":"'BP Financier'!$E$44*(('BP Financier'!$C$16+'BP Financier'!$D$16+'BP Financier'!$E$16)/('BP Financier'!$C$16+'BP Financier'!$C$19+'BP Financier'!$D$16+'BP Financier'!$D$19+'BP Financier'!$E$16+'BP Financier'!$E$19+'BP Financier'!$C$22+'BP Financier'!$D$22+'BP Financier'!$E$22))*$V4222*AB4222/(1-$W4222)","v":{"v":52053.852966989565,"d":"52,054"}},null,{"v":0.01,"d":"1.00%"},{"$f":"Actif!$E$28/100","v":{"v":0.28900000000000003,"d":"28.90%"}},{"$f":"Actif!$E$30/100","v":{"v":0.09050000000000001,"d":"9.05%"}},{"$f":"Actif!$E$31/100","v":{"v":0.0605,"d":"6.05%"}},{"$f":"Actif!$E$32/100","v":{"v":0.47350000000000003,"d":"47.35%"}},{"$f":"Actif!$E$33/100","v":{"v":0.0585,"d":"5.85%"}},{"$f":"Actif!$E$29/100","v":{"v":0.027999999999999997,"d":"2.80%"}}]
[null,"#122",58,2028,"H","A_VIE",{"v":0.44999999999999996,"d":"0.45"},{"v":0.38999999999999996,"d":"0.39"},0.6,0.6,85,0,{"$f":"ROUND(Primes!$O$4*V4223,0)","v":68},{"$f":"'BP Financier'!$E$33*(('BP Financier'!$C$16+'BP Financier'!$D$16+'BP Financier'!$E$16)/('BP Financier'!$C$16+'BP Financier'!$C$19+'BP Financier'!$D$16+'BP Financier'!$D$19+'BP Financier'!$E$16+'BP Financier'!$E$19))*V4223","v":{"v":2356786.6864833417,"d":"2,356,787"}},{"v":1321796.0521260567,"d":"1,321,796"},{"$f":"'BP Financier'!$E$44*(('BP Financier'!$C$16+'BP Financier'!$D$16+'BP Financier'!$E$16)/('BP Financier'!$C$16+'BP Financier'!$C$19+'BP Financier'!$D$16+'BP Financier'!$D$19+'BP Financier'!$E$16+'BP Financier'!$E$19+'BP Financier'!$C$22+'BP Financier'!$D$22+'BP Financier'!$E$22))*$V4223*X4223/(1-$W4223)","v":{"v":168245.48905401988,"d":"168,245"}},{"$f":"'BP Financier'!$E$44*(('BP Financier'!$C$16+'BP Financier'!$D$16+'BP Financier'!$E$16)/('BP Financier'!$C$16+'BP Financier'!$C$19+'BP Financier'!$D$16+'BP Financier'!$D$19+'BP Financier'!$E$16+'BP Financier'!$E$19+'BP Financier'!$C$22+'BP Financier'!$D$22+'BP Financier'!$E$22))*$V4223*Y4223/(1-$W4223)","v":{"v":112473.50373224531,"d":"112,474"}},{"$f":"'BP Financier'!$E$44*(('BP Financier'!$C$16+'BP Financier'!$D$16+'BP Financier'!$E$16)/('BP Financier'!$C$16+'BP Financier'!$C$19+'BP Financier'!$D$16+'BP Financier'!$D$19+'BP Financier'!$E$16+'BP Financier'!$E$19+'BP Financier'!$C$22+'BP Financier'!$D$22+'BP Financier'!$E$22))*$V4223*Z4223/(1-$W4223)","v":{"v":880267.8349953415,"d":"880,268"}},{"$f":"'BP Financier'!$E$44*(('BP Financier'!$C$16+'BP Financier'!$D$16+'BP Financier'!$E$16)/('BP Financier'!$C$16+'BP Financier'!$C$19+'BP Financier'!$D$16+'BP Financier'!$D$19+'BP Financier'!$E$16+'BP Financier'!$E$19+'BP Financier'!$C$22+'BP Financier'!$D$22+'BP Financier'!$E$22))*$V4223*AA4223/(1-$W4223)","v":{"v":108755.37137746037,"d":"108,755"}},{"$f":"'BP Financier'!$E$44*(('BP Financier'!$C$16+'BP Financier'!$D$16+'BP Financier'!$E$16)/('BP Financier'!$C$16+'BP Financier'!$C$19+'BP Financier'!$D$16+'BP Financier'!$D$19+'BP Financier'!$E$16+'BP Financier'!$E$19+'BP Financier'!$C$22+'BP Financier'!$D$22+'BP Financier'!$E$22))*$V4223*AB4223/(1-$W4223)","v":{"v":52053.852966989565,"d":"52,054"}},null,{"v":0.01,"d":"1.00%"},{"$f":"Actif!$E$28/100","v":{"v":0.28900000000000003,"d":"28.90%"}},{"$f":"Actif!$E$30/100","v":{"v":0.09050000000000001,"d":"9.05%"}},{"$f":"Actif!$E$31/100","v":{"v":0.0605,"d":"6.05%"}},{"$f":"Actif!$E$32/100","v":{"v":0.47350000000000003,"d":"47.35%"}},{"$f":"Actif!$E$33/100","v":{"v":0.0585,"d":"5.85%"}},{"$f":"Actif!$E$29/100","v":{"v":0.027999999999999997,"d":"2.80%"}}]
[null,"#123",58,2029,"H","A_VIE",{"v":0.44999999999999996,"d":"0.45"},{"v":0.38999999999999996,"d":"0.39"},0.6,0.6,85,0,{"$f":"ROUND(Primes!$O$4*V4224,0)","v":68},{"$f":"'BP Financier'!$E$33*(('BP Financier'!$C$16+'BP Financier'!$D$16+'BP Financier'!$E$16)/('BP Financier'!$C$16+'BP Financier'!$C$19+'BP Financier'!$D$16+'BP Financier'!$D$19+'BP Financier'!$E$16+'BP Financier'!$E$19))*V4224","v":{"v":2356786.6864833417,"d":"2,356,787"}},{"v":1321796.0521260567,"d":"1,321,796"},{"$f":"'BP Financier'!$E$44*(('BP Financier'!$C$16+'BP Financier'!$D$16+'BP Financier'!$E$16)/('BP Financier'!$C$16+'BP Financier'!$C$19+'BP Financier'!$D$16+'BP Financier'!$D$19+'BP Financier'!$E$16+'BP Financier'!$E$19+'BP Financier'!$C$22+'BP Financier'!$D$22+'BP Financier'!$E$22))*$V4224*X4224/(1-$W4224)","v":{"v":168245.48905401988,"d":"168,245"}},{"$f":"'BP Financier'!$E$44*(('BP Financier'!$C$16+'BP Financier'!$D$16+'BP Financier'!$E$16)/('BP Financier'!$C$16+'BP Financier'!$C$19+'BP Financier'!$D$16+'BP Financier'!$D$19+'BP Financier'!$E$16+'BP Financier'!$E$19+'BP Financier'!$C$22+'BP Financier'!$D$22+'BP Financier'!$E$22))*$V4224*Y4224/(1-$W4224)","v":{"v":112473.50373224531,"d":"112,474"}},{"$f":"'BP Financier'!$E$44*(('BP Financier'!$C$16+'BP Financier'!$D$16+'BP Financier'!$E$16)/('BP Financier'!$C$16+'BP Financier'!$C$19+'BP Financier'!$D$16+'BP Financier'!$D$19+'BP Financier'!$E$16+'BP Financier'!$E$19+'BP Financier'!$C$22+'BP Financier'!$D$22+'BP Financier'!$E$22))*$V4224*Z4224/(1-$W4224)","v":{"v":880267.8349953415,"d":"880,268"}},{"$f":"'BP Financier'!$E$44*(('BP Financier'!$C$16+'BP Financier'!$D$16+'BP Financier'!$E$16)/('BP Financier'!$C$16+'BP Financier'!$C$19+'BP Financier'!$D$16+'BP Financier'!$D$19+'BP Financier'!$E$16+'BP Financier'!$E$19+'BP Financier'!$C$22+'BP Financier'!$D$22+'BP Financier'!$E$22))*$V4224*AA4224/(1-$W4224)","v":{"v":108755.37137746037,"d":"108,755"}},{"$f":"'BP Financier'!$E$44*(('BP Financier'!$C$16+'BP Financier'!$D$16+'BP Financier'!$E$16)/('BP Financier'!$C$16+'BP Financier'!$C$19+'BP Financier'!$D$16+'BP Financier'!$D$19+'BP Financier'!$E$16+'BP Financier'!$E$19+'BP Financier'!$C$22+'BP Financier'!$D$22+'BP Financier'!$E$22))*$V4224*AB4224/(1-$W4224)","v":{"v":52053.852966989565,"d":"52,054"}},null,{"v":0.01,"d":"1.00%"},{"$f":"Actif!$E$28/100","v":{"v":0.28900000000000003,"d":"28.90%"}},{"$f":"Actif!$E$30/100","v":{"v":0.09050000000000001,"d":"9.05%"}},{"$f":"Actif!$E$31/100","v":{"v":0.0605,"d":"6.05%"}},{"$f":"Actif!$E$32/100","v":{"v":0.47350000000000003,"d":"47.35%"}},{"$f":"Actif!$E$33/100","v":{"v":0.0585,"d":"5.85%"}},{"$f":"Actif!$E$29/100","v":{"v":0.027999999999999997,"d":"2.80%"}}]
[null,"#124",59,2026,"F","A_VIE",{"v":0.44999999999999996,"d":"0.45"},{"v":0.38999999999999996,"d":"0.39"},0.6,0.6,85,0,{"$f":"ROUND(Primes!$O$4*V4225,0)","v":68},{"$f":"'BP Financier'!$E$33*(('BP Financier'!$C$16+'BP Financier'!$D$16+'BP Financier'!$E$16)/('BP Financier'!$C$16+'BP Financier'!$C$19+'BP Financier'!$D$16+'BP Financier'!$D$19+'BP Financier'!$E$16+'BP Financier'!$E$19))*V4225","v":{"v":2356786.6864833417,"d":"2,356,787"}},{"v":1321796.0521260567,"d":"1,321,796"},{"$f":"'BP Financier'!$E$44*(('BP Financier'!$C$16+'BP Financier'!$D$16+'BP Financier'!$E$16)/('BP Financier'!$C$16+'BP Financier'!$C$19+'BP Financier'!$D$16+'BP Financier'!$D$19+'BP Financier'!$E$16+'BP Financier'!$E$19+'BP Financier'!$C$22+'BP Financier'!$D$22+'BP Financier'!$E$22))*$V4225*X4225/(1-$W4225)","v":{"v":168245.48905401988,"d":"168,245"}},{"$f":"'BP Financier'!$E$44*(('BP Financier'!$C$16+'BP Financier'!$D$16+'BP Financier'!$E$16)/('BP Financier'!$C$16+'BP Financier'!$C$19+'BP Financier'!$D$16+'BP Financier'!$D$19+'BP Financier'!$E$16+'BP Financier'!$E$19+'BP Financier'!$C$22+'BP Financier'!$D$22+'BP Financier'!$E$22))*$V4225*Y4225/(1-$W4225)","v":{"v":112473.50373224531,"d":"112,474"}},{"$f":"'BP Financier'!$E$44*(('BP Financier'!$C$16+'BP Financier'!$D$16+'BP Financier'!$E$16)/('BP Financier'!$C$16+'BP Financier'!$C$19+'BP Financier'!$D$16+'BP Financier'!$D$19+'BP Financier'!$E$16+'BP Financier'!$E$19+'BP Financier'!$C$22+'BP Financier'!$D$22+'BP Financier'!$E$22))*$V4225*Z4225/(1-$W4225)","v":{"v":880267.8349953415,"d":"880,268"}},{"$f":"'BP Financier'!$E$44*(('BP Financier'!$C$16+'BP Financier'!$D$16+'BP Financier'!$E$16)/('BP Financier'!$C$16+'BP Financier'!$C$19+'BP Financier'!$D$16+'BP Financier'!$D$19+'BP Financier'!$E$16+'BP Financier'!$E$19+'BP Financier'!$C$22+'BP Financier'!$D$22+'BP Financier'!$E$22))*$V4225*AA4225/(1-$W4225)","v":{"v":108755.37137746037,"d":"108,755"}},{"$f":"'BP Financier'!$E$44*(('BP Financier'!$C$16+'BP Financier'!$D$16+'BP Financier'!$E$16)/('BP Financier'!$C$16+'BP Financier'!$C$19+'BP Financier'!$D$16+'BP Financier'!$D$19+'BP Financier'!$E$16+'BP Financier'!$E$19+'BP Financier'!$C$22+'BP Financier'!$D$22+'BP Financier'!$E$22))*$V4225*AB4225/(1-$W4225)","v":{"v":52053.852966989565,"d":"52,054"}},null,{"v":0.01,"d":"1.00%"},{"$f":"Actif!$E$28/100","v":{"v":0.28900000000000003,"d":"28.90%"}},{"$f":"Actif!$E$30/100","v":{"v":0.09050000000000001,"d":"9.05%"}},{"$f":"Actif!$E$31/100","v":{"v":0.0605,"d":"6.05%"}},{"$f":"Actif!$E$32/100","v":{"v":0.47350000000000003,"d":"47.35%"}},{"$f":"Actif!$E$33/100","v":{"v":0.0585,"d":"5.85%"}},{"$f":"Actif!$E$29/100","v":{"v":0.027999999999999997,"d":"2.80%"}}]
[null,"#125",59,2028,"F","A_VIE",{"v":0.44999999999999996,"d":"0.45"},{"v":0.38999999999999996,"d":"0.39"},0.6,0.6,85,0,{"$f":"ROUND(Primes!$O$4*V4226,0)","v":68},{"$f":"'BP Financier'!$E$33*(('BP Financier'!$C$16+'BP Financier'!$D$16+'BP Financier'!$E$16)/('BP Financier'!$C$16+'BP Financier'!$C$19+'BP Financier'!$D$16+'BP Financier'!$D$19+'BP Financier'!$E$16+'BP Financier'!$E$19))*V4226","v":{"v":2356786.6864833417,"d":"2,356,787"}},{"v":1321796.0521260567,"d":"1,321,796"},{"$f":"'BP Financier'!$E$44*(('BP Financier'!$C$16+'BP Financier'!$D$16+'BP Financier'!$E$16)/('BP Financier'!$C$16+'BP Financier'!$C$19+'BP Financier'!$D$16+'BP Financier'!$D$19+'BP Financier'!$E$16+'BP Financier'!$E$19+'BP Financier'!$C$22+'BP Financier'!$D$22+'BP Financier'!$E$22))*$V4226*X4226/(1-$W4226)","v":{"v":168245.48905401988,"d":"168,245"}},{"$f":"'BP Financier'!$E$44*(('BP Financier'!$C$16+'BP Financier'!$D$16+'BP Financier'!$E$16)/('BP Financier'!$C$16+'BP Financier'!$C$19+'BP Financier'!$D$16+'BP Financier'!$D$19+'BP Financier'!$E$16+'BP Financier'!$E$19+'BP Financier'!$C$22+'BP Financier'!$D$22+'BP Financier'!$E$22))*$V4226*Y4226/(1-$W4226)","v":{"v":112473.50373224531,"d":"112,474"}},{"$f":"'BP Financier'!$E$44*(('BP Financier'!$C$16+'BP Financier'!$D$16+'BP Financier'!$E$16)/('BP Financier'!$C$16+'BP Financier'!$C$19+'BP Financier'!$D$16+'BP Financier'!$D$19+'BP Financier'!$E$16+'BP Financier'!$E$19+'BP Financier'!$C$22+'BP Financier'!$D$22+'BP Financier'!$E$22))*$V4226*Z4226/(1-$W4226)","v":{"v":880267.8349953415,"d":"880,268"}},{"$f":"'BP Financier'!$E$44*(('BP Financier'!$C$16+'BP Financier'!$D$16+'BP Financier'!$E$16)/('BP Financier'!$C$16+'BP Financier'!$C$19+'BP Financier'!$D$16+'BP Financier'!$D$19+'BP Financier'!$E$16+'BP Financier'!$E$19+'BP Financier'!$C$22+'BP Financier'!$D$22+'BP Financier'!$E$22))*$V4226*AA4226/(1-$W4226)","v":{"v":108755.37137746037,"d":"108,755"}},{"$f":"'BP Financier'!$E$44*(('BP Financier'!$C$16+'BP Financier'!$D$16+'BP Financier'!$E$16)/('BP Financier'!$C$16+'BP Financier'!$C$19+'BP Financier'!$D$16+'BP Financier'!$D$19+'BP Financier'!$E$16+'BP Financier'!$E$19+'BP Financier'!$C$22+'BP Financier'!$D$22+'BP Financier'!$E$22))*$V4226*AB4226/(1-$W4226)","v":{"v":52053.852966989565,"d":"52,054"}},null,{"v":0.01,"d":"1.00%"},{"$f":"Actif!$E$28/100","v":{"v":0.28900000000000003,"d":"28.90%"}},{"$f":"Actif!$E$30/100","v":{"v":0.09050000000000001,"d":"9.05%"}},{"$f":"Actif!$E$31/100","v":{"v":0.0605,"d":"6.05%"}},{"$f":"Actif!$E$32/100","v":{"v":0.47350000000000003,"d":"47.35%"}},{"$f":"Actif!$E$33/100","v":{"v":0.0585,"d":"5.85%"}},{"$f":"Actif!$E$29/100","v":{"v":0.027999999999999997,"d":"2.80%"}}]
[null,"#126",59,2029,"F","A_VIE",{"v":0.44999999999999996,"d":"0.45"},{"v":0.38999999999999996,"d":"0.39"},0.6,0.6,85,0,{"$f":"ROUND(Primes!$O$4*V4227,0)","v":68},{"$f":"'BP Financier'!$E$33*(('BP Financier'!$C$16+'BP Financier'!$D$16+'BP Financier'!$E$16)/('BP Financier'!$C$16+'BP Financier'!$C$19+'BP Financier'!$D$16+'BP Financier'!$D$19+'BP Financier'!$E$16+'BP Financier'!$E$19))*V4227","v":{"v":2356786.6864833417,"d":"2,356,787"}},{"v":1321796.0521260567,"d":"1,321,796"},{"$f":"'BP Financier'!$E$44*(('BP Financier'!$C$16+'BP Financier'!$D$16+'BP Financier'!$E$16)/('BP Financier'!$C$16+'BP Financier'!$C$19+'BP Financier'!$D$16+'BP Financier'!$D$19+'BP Financier'!$E$16+'BP Financier'!$E$19+'BP Financier'!$C$22+'BP Financier'!$D$22+'BP Financier'!$E$22))*$V4227*X4227/(1-$W4227)","v":{"v":168245.48905401988,"d":"168,245"}},{"$f":"'BP Financier'!$E$44*(('BP Financier'!$C$16+'BP Financier'!$D$16+'BP Financier'!$E$16)/('BP Financier'!$C$16+'BP Financier'!$C$19+'BP Financier'!$D$16+'BP Financier'!$D$19+'BP Financier'!$E$16+'BP Financier'!$E$19+'BP Financier'!$C$22+'BP Financier'!$D$22+'BP Financier'!$E$22))*$V4227*Y4227/(1-$W4227)","v":{"v":112473.50373224531,"d":"112,474"}},{"$f":"'BP Financier'!$E$44*(('BP Financier'!$C$16+'BP Financier'!$D$16+'BP Financier'!$E$16)/('BP Financier'!$C$16+'BP Financier'!$C$19+'BP Financier'!$D$16+'BP Financier'!$D$19+'BP Financier'!$E$16+'BP Financier'!$E$19+'BP Financier'!$C$22+'BP Financier'!$D$22+'BP Financier'!$E$22))*$V4227*Z4227/(1-$W4227)","v":{"v":880267.8349953415,"d":"880,268"}},{"$f":"'BP Financier'!$E$44*(('BP Financier'!$C$16+'BP Financier'!$D$16+'BP Financier'!$E$16)/('BP Financier'!$C$16+'BP Financier'!$C$19+'BP Financier'!$D$16+'BP Financier'!$D$19+'BP Financier'!$E$16+'BP Financier'!$E$19+'BP Financier'!$C$22+'BP Financier'!$D$22+'BP Financier'!$E$22))*$V4227*AA4227/(1-$W4227)","v":{"v":108755.37137746037,"d":"108,755"}},{"$f":"'BP Financier'!$E$44*(('BP Financier'!$C$16+'BP Financier'!$D$16+'BP Financier'!$E$16)/('BP Financier'!$C$16+'BP Financier'!$C$19+'BP Financier'!$D$16+'BP Financier'!$D$19+'BP Financier'!$E$16+'BP Financier'!$E$19+'BP Financier'!$C$22+'BP Financier'!$D$22+'BP Financier'!$E$22))*$V4227*AB4227/(1-$W4227)","v":{"v":52053.852966989565,"d":"52,054"}},null,{"v":0.01,"d":"1.00%"},{"$f":"Actif!$E$28/100","v":{"v":0.28900000000000003,"d":"28.90%"}},{"$f":"Actif!$E$30/100","v":{"v":0.09050000000000001,"d":"9.05%"}},{"$f":"Actif!$E$31/100","v":{"v":0.0605,"d":"6.05%"}},{"$f":"Actif!$E$32/100","v":{"v":0.47350000000000003,"d":"47.35%"}},{"$f":"Actif!$E$33/100","v":{"v":0.0585,"d":"5.85%"}},{"$f":"Actif!$E$29/100","v":{"v":0.027999999999999997,"d":"2.80%"}}]
[null,"#127",60,2026,"H","A_VIE",{"v":0.44999999999999996,"d":"0.45"},{"v":0.38999999999999996,"d":"0.39"},0.6,0.6,85,0,{"$f":"ROUND(Primes!$O$4*V4228,0)","v":114},{"$f":"'BP Financier'!$E$33*(('BP Financier'!$C$16+'BP Financier'!$D$16+'BP Financier'!$E$16)/('BP Financier'!$C$16+'BP Financier'!$C$19+'BP Financier'!$D$16+'BP Financier'!$D$19+'BP Financier'!$E$16+'BP Financier'!$E$19))*V4228","v":{"v":3927977.810805569,"d":"3,927,978"}},{"v":2202993.4202100947,"d":"2,202,993"},{"$f":"'BP Financier'!$E$44*(('BP Financier'!$C$16+'BP Financier'!$D$16+'BP Financier'!$E$16)/('BP Financier'!$C$16+'BP Financier'!$C$19+'BP Financier'!$D$16+'BP Financier'!$D$19+'BP Financier'!$E$16+'BP Financier'!$E$19+'BP Financier'!$C$22+'BP Financier'!$D$22+'BP Financier'!$E$22))*$V4228*X4228/(1-$W4228)","v":{"v":280409.1484233665,"d":"280,409"}},{"$f":"'BP Financier'!$E$44*(('BP Financier'!$C$16+'BP Financier'!$D$16+'BP Financier'!$E$16)/('BP Financier'!$C$16+'BP Financier'!$C$19+'BP Financier'!$D$16+'BP Financier'!$D$19+'BP Financier'!$E$16+'BP Financier'!$E$19+'BP Financier'!$C$22+'BP Financier'!$D$22+'BP Financier'!$E$22))*$V4228*Y4228/(1-$W4228)","v":{"v":187455.83955374217,"d":"187,456"}},{"$f":"'BP Financier'!$E$44*(('BP Financier'!$C$16+'BP Financier'!$D$16+'BP Financier'!$E$16)/('BP Financier'!$C$16+'BP Financier'!$C$19+'BP Financier'!$D$16+'BP Financier'!$D$19+'BP Financier'!$E$16+'BP Financier'!$E$19+'BP Financier'!$C$22+'BP Financier'!$D$22+'BP Financier'!$E$22))*$V4228*Z4228/(1-$W4228)","v":{"v":1467113.0583255691,"d":"1,467,113"}},{"$f":"'BP Financier'!$E$44*(('BP Financier'!$C$16+'BP Financier'!$D$16+'BP Financier'!$E$16)/('BP Financier'!$C$16+'BP Financier'!$C$19+'BP Financier'!$D$16+'BP Financier'!$D$19+'BP Financier'!$E$16+'BP Financier'!$E$19+'BP Financier'!$C$22+'BP Financier'!$D$22+'BP Financier'!$E$22))*$V4228*AA4228/(1-$W4228)","v":{"v":181258.95229576726,"d":"181,259"}},{"$f":"'BP Financier'!$E$44*(('BP Financier'!$C$16+'BP Financier'!$D$16+'BP Financier'!$E$16)/('BP Financier'!$C$16+'BP Financier'!$C$19+'BP Financier'!$D$16+'BP Financier'!$D$19+'BP Financier'!$E$16+'BP Financier'!$E$19+'BP Financier'!$C$22+'BP Financier'!$D$22+'BP Financier'!$E$22))*$V4228*AB4228/(1-$W4228)","v":{"v":86756.42161164928,"d":"86,756"}},null,{"v":0.016666666666666666,"d":"1.67%"},{"$f":"Actif!$E$28/100","v":{"v":0.28900000000000003,"d":"28.90%"}},{"$f":"Actif!$E$30/100","v":{"v":0.09050000000000001,"d":"9.05%"}},{"$f":"Actif!$E$31/100","v":{"v":0.0605,"d":"6.05%"}},{"$f":"Actif!$E$32/100","v":{"v":0.47350000000000003,"d":"47.35%"}},{"$f":"Actif!$E$33/100","v":{"v":0.0585,"d":"5.85%"}},{"$f":"Actif!$E$29/100","v":{"v":0.027999999999999997,"d":"2.80%"}}]
[null,"#128",60,2028,"H","A_VIE",{"v":0.44999999999999996,"d":"0.45"},{"v":0.38999999999999996,"d":"0.39"},0.6,0.6,85,0,{"$f":"ROUND(Primes!$O$4*V4229,0)","v":114},{"$f":"'BP Financier'!$E$33*(('BP Financier'!$C$16+'BP Financier'!$D$16+'BP Financier'!$E$16)/('BP Financier'!$C$16+'BP Financier'!$C$19+'BP Financier'!$D$16+'BP Financier'!$D$19+'BP Financier'!$E$16+'BP Financier'!$E$19))*V4229","v":{"v":3927977.810805569,"d":"3,927,978"}},{"v":2202993.4202100947,"d":"2,202,993"},{"$f":"'BP Financier'!$E$44*(('BP Financier'!$C$16+'BP Financier'!$D$16+'BP Financier'!$E$16)/('BP Financier'!$C$16+'BP Financier'!$C$19+'BP Financier'!$D$16+'BP Financier'!$D$19+'BP Financier'!$E$16+'BP Financier'!$E$19+'BP Financier'!$C$22+'BP Financier'!$D$22+'BP Financier'!$E$22))*$V4229*X4229/(1-$W4229)","v":{"v":280409.1484233665,"d":"280,409"}},{"$f":"'BP Financier'!$E$44*(('BP Financier'!$C$16+'BP Financier'!$D$16+'BP Financier'!$E$16)/('BP Financier'!$C$16+'BP Financier'!$C$19+'BP Financier'!$D$16+'BP Financier'!$D$19+'BP Financier'!$E$16+'BP Financier'!$E$19+'BP Financier'!$C$22+'BP Financier'!$D$22+'BP Financier'!$E$22))*$V4229*Y4229/(1-$W4229)","v":{"v":187455.83955374217,"d":"187,456"}},{"$f":"'BP Financier'!$E$44*(('BP Financier'!$C$16+'BP Financier'!$D$16+'BP Financier'!$E$16)/('BP Financier'!$C$16+'BP Financier'!$C$19+'BP Financier'!$D$16+'BP Financier'!$D$19+'BP Financier'!$E$16+'BP Financier'!$E$19+'BP Financier'!$C$22+'BP Financier'!$D$22+'BP Financier'!$E$22))*$V4229*Z4229/(1-$W4229)","v":{"v":1467113.0583255691,"d":"1,467,113"}},{"$f":"'BP Financier'!$E$44*(('BP Financier'!$C$16+'BP Financier'!$D$16+'BP Financier'!$E$16)/('BP Financier'!$C$16+'BP Financier'!$C$19+'BP Financier'!$D$16+'BP Financier'!$D$19+'BP Financier'!$E$16+'BP Financier'!$E$19+'BP Financier'!$C$22+'BP Financier'!$D$22+'BP Financier'!$E$22))*$V4229*AA4229/(1-$W4229)","v":{"v":181258.95229576726,"d":"181,259"}},{"$f":"'BP Financier'!$E$44*(('BP Financier'!$C$16+'BP Financier'!$D$16+'BP Financier'!$E$16)/('BP Financier'!$C$16+'BP Financier'!$C$19+'BP Financier'!$D$16+'BP Financier'!$D$19+'BP Financier'!$E$16+'BP Financier'!$E$19+'BP Financier'!$C$22+'BP Financier'!$D$22+'BP Financier'!$E$22))*$V4229*AB4229/(1-$W4229)","v":{"v":86756.42161164928,"d":"86,756"}},null,{"v":0.016666666666666666,"d":"1.67%"},{"$f":"Actif!$E$28/100","v":{"v":0.28900000000000003,"d":"28.90%"}},{"$f":"Actif!$E$30/100","v":{"v":0.09050000000000001,"d":"9.05%"}},{"$f":"Actif!$E$31/100","v":{"v":0.0605,"d":"6.05%"}},{"$f":"Actif!$E$32/100","v":{"v":0.47350000000000003,"d":"47.35%"}},{"$f":"Actif!$E$33/100","v":{"v":0.0585,"d":"5.85%"}},{"$f":"Actif!$E$29/100","v":{"v":0.027999999999999997,"d":"2.80%"}}]
[null,"#129",60,2029,"H","A_VIE",{"$f":"frais_gestion_Euro*100","v":{"v":0.44999999999999996,"d":"0.45"}},{"$f":"frais_gestion_UC*100","v":{"v":0.38999999999999996,"d":"0.39"}},{"$f":"frais_distribution_FG*100","v":0.6},{"$f":"frais_distribution_UC*100","v":0.6},85,0,{"$f":"ROUND(Primes!$O$4*V4230,0)","v":114},{"$f":"'BP Financier'!$E$33*(('BP Financier'!$C$16+'BP Financier'!$D$16+'BP Financier'!$E$16)/('BP Financier'!$C$16+'BP Financier'!$C$19+'BP Financier'!$D$16+'BP Financier'!$D$19+'BP Financier'!$E$16+'BP Financier'!$E$19))*V4230","v":{"v":3927977.810805569,"d":"3,927,978"}},{"v":2202993.4202100947,"d":"2,202,993"},{"$f":"'BP Financier'!$E$44*(('BP Financier'!$C$16+'BP Financier'!$D$16+'BP Financier'!$E$16)/('BP Financier'!$C$16+'BP Financier'!$C$19+'BP Financier'!$D$16+'BP Financier'!$D$19+'BP Financier'!$E$16+'BP Financier'!$E$19+'BP Financier'!$C$22+'BP Financier'!$D$22+'BP Financier'!$E$22))*$V4230*X4230/(1-$W4230)","v":{"v":280409.1484233665,"d":"280,409"}},{"$f":"'BP Financier'!$E$44*(('BP Financier'!$C$16+'BP Financier'!$D$16+'BP Financier'!$E$16)/('BP Financier'!$C$16+'BP Financier'!$C$19+'BP Financier'!$D$16+'BP Financier'!$D$19+'BP Financier'!$E$16+'BP Financier'!$E$19+'BP Financier'!$C$22+'BP Financier'!$D$22+'BP Financier'!$E$22))*$V4230*Y4230/(1-$W4230)","v":{"v":187455.83955374217,"d":"187,456"}},{"$f":"'BP Financier'!$E$44*(('BP Financier'!$C$16+'BP Financier'!$D$16+'BP Financier'!$E$16)/('BP Financier'!$C$16+'BP Financier'!$C$19+'BP Financier'!$D$16+'BP Financier'!$D$19+'BP Financier'!$E$16+'BP Financier'!$E$19+'BP Financier'!$C$22+'BP Financier'!$D$22+'BP Financier'!$E$22))*$V4230*Z4230/(1-$W4230)","v":{"v":1467113.0583255691,"d":"1,467,113"}},{"$f":"'BP Financier'!$E$44*(('BP Financier'!$C$16+'BP Financier'!$D$16+'BP Financier'!$E$16)/('BP Financier'!$C$16+'BP Financier'!$C$19+'BP Financier'!$D$16+'BP Financier'!$D$19+'BP Financier'!$E$16+'BP Financier'!$E$19+'BP Financier'!$C$22+'BP Financier'!$D$22+'BP Financier'!$E$22))*$V4230*AA4230/(1-$W4230)","v":{"v":181258.95229576726,"d":"181,259"}},{"$f":"'BP Financier'!$E$44*(('BP Financier'!$C$16+'BP Financier'!$D$16+'BP Financier'!$E$16)/('BP Financier'!$C$16+'BP Financier'!$C$19+'BP Financier'!$D$16+'BP Financier'!$D$19+'BP Financier'!$E$16+'BP Financier'!$E$19+'BP Financier'!$C$22+'BP Financier'!$D$22+'BP Financier'!$E$22))*$V4230*AB4230/(1-$W4230)","v":{"v":86756.42161164928,"d":"86,756"}},null,{"v":0.016666666666666666,"d":"1.67%"},{"$f":"Actif!$E$28/100","v":{"v":0.28900000000000003,"d":"28.90%"}},{"$f":"Actif!$E$30/100","v":{"v":0.09050000000000001,"d":"9.05%"}},{"$f":"Actif!$E$31/100","v":{"v":0.0605,"d":"6.05%"}},{"$f":"Actif!$E$32/100","v":{"v":0.47350000000000003,"d":"47.35%"}},{"$f":"Actif!$E$33/100","v":{"v":0.0585,"d":"5.85%"}},{"$f":"Actif!$E$29/100","v":{"v":0.027999999999999997,"d":"2.80%"}}]
[null,"#130",61,2026,"H","A_VIE",{"v":0.44999999999999996,"d":"0.45"},{"v":0.38999999999999996,"d":"0.39"},0.6,0.6,85,0,{"$f":"ROUND(Primes!$O$4*V4231,0)","v":68},{"$f":"'BP Financier'!$E$33*(('BP Financier'!$C$16+'BP Financier'!$D$16+'BP Financier'!$E$16)/('BP Financier'!$C$16+'BP Financier'!$C$19+'BP Financier'!$D$16+'BP Financier'!$D$19+'BP Financier'!$E$16+'BP Financier'!$E$19))*V4231","v":{"v":2356786.6864833417,"d":"2,356,787"}},{"$f":"SUM(P4231:T4231)","v":{"v":1321796.0521260567,"d":"1,321,796"}},{"$f":"'BP Financier'!$E$44*(('BP Financier'!$C$16+'BP Financier'!$D$16+'BP Financier'!$E$16)/('BP Financier'!$C$16+'BP Financier'!$C$19+'BP Financier'!$D$16+'BP Financier'!$D$19+'BP Financier'!$E$16+'BP Financier'!$E$19+'BP Financier'!$C$22+'BP Financier'!$D$22+'BP Financier'!$E$22))*$V4231*X4231/(1-$W4231)","v":{"v":168245.48905401988,"d":"168,245"}},{"$f":"'BP Financier'!$E$44*(('BP Financier'!$C$16+'BP Financier'!$D$16+'BP Financier'!$E$16)/('BP Financier'!$C$16+'BP Financier'!$C$19+'BP Financier'!$D$16+'BP Financier'!$D$19+'BP Financier'!$E$16+'BP Financier'!$E$19+'BP Financier'!$C$22+'BP Financier'!$D$22+'BP Financier'!$E$22))*$V4231*Y4231/(1-$W4231)","v":{"v":112473.50373224531,"d":"112,474"}},{"$f":"'BP Financier'!$E$44*(('BP Financier'!$C$16+'BP Financier'!$D$16+'BP Financier'!$E$16)/('BP Financier'!$C$16+'BP Financier'!$C$19+'BP Financier'!$D$16+'BP Financier'!$D$19+'BP Financier'!$E$16+'BP Financier'!$E$19+'BP Financier'!$C$22+'BP Financier'!$D$22+'BP Financier'!$E$22))*$V4231*Z4231/(1-$W4231)","v":{"v":880267.8349953415,"d":"880,268"}},{"$f":"'BP Financier'!$E$44*(('BP Financier'!$C$16+'BP Financier'!$D$16+'BP Financier'!$E$16)/('BP Financier'!$C$16+'BP Financier'!$C$19+'BP Financier'!$D$16+'BP Financier'!$D$19+'BP Financier'!$E$16+'BP Financier'!$E$19+'BP Financier'!$C$22+'BP Financier'!$D$22+'BP Financier'!$E$22))*$V4231*AA4231/(1-$W4231)","v":{"v":108755.37137746037,"d":"108,755"}},{"$f":"'BP Financier'!$E$44*(('BP Financier'!$C$16+'BP Financier'!$D$16+'BP Financier'!$E$16)/('BP Financier'!$C$16+'BP Financier'!$C$19+'BP Financier'!$D$16+'BP Financier'!$D$19+'BP Financier'!$E$16+'BP Financier'!$E$19+'BP Financier'!$C$22+'BP Financier'!$D$22+'BP Financier'!$E$22))*$V4231*AB4231/(1-$W4231)","v":{"v":52053.852966989565,"d":"52,054"}},null,{"v":0.01,"d":"1.00%"},{"$f":"Actif!$E$28/100","v":{"v":0.28900000000000003,"d":"28.90%"}},{"$f":"Actif!$E$30/100","v":{"v":0.09050000000000001,"d":"9.05%"}},{"$f":"Actif!$E$31/100","v":{"v":0.0605,"d":"6.05%"}},{"$f":"Actif!$E$32/100","v":{"v":0.47350000000000003,"d":"47.35%"}},{"$f":"Actif!$E$33/100","v":{"v":0.0585,"d":"5.85%"}},{"$f":"Actif!$E$29/100","v":{"v":0.027999999999999997,"d":"2.80%"}}]
[null,"#131",61,2028,"H","A_VIE",{"v":0.44999999999999996,"d":"0.45"},{"v":0.38999999999999996,"d":"0.39"},0.6,0.6,85,0,{"$f":"ROUND(Primes!$O$4*V4232,0)","v":68},{"$f":"'BP Financier'!$E$33*(('BP Financier'!$C$16+'BP Financier'!$D$16+'BP Financier'!$E$16)/('BP Financier'!$C$16+'BP Financier'!$C$19+'BP Financier'!$D$16+'BP Financier'!$D$19+'BP Financier'!$E$16+'BP Financier'!$E$19))*V4232","v":{"v":2356786.6864833417,"d":"2,356,787"}},{"v":1321796.0521260567,"d":"1,321,796"},{"$f":"'BP Financier'!$E$44*(('BP Financier'!$C$16+'BP Financier'!$D$16+'BP Financier'!$E$16)/('BP Financier'!$C$16+'BP Financier'!$C$19+'BP Financier'!$D$16+'BP Financier'!$D$19+'BP Financier'!$E$16+'BP Financier'!$E$19+'BP Financier'!$C$22+'BP Financier'!$D$22+'BP Financier'!$E$22))*$V4232*X4232/(1-$W4232)","v":{"v":168245.48905401988,"d":"168,245"}},{"$f":"'BP Financier'!$E$44*(('BP Financier'!$C$16+'BP Financier'!$D$16+'BP Financier'!$E$16)/('BP Financier'!$C$16+'BP Financier'!$C$19+'BP Financier'!$D$16+'BP Financier'!$D$19+'BP Financier'!$E$16+'BP Financier'!$E$19+'BP Financier'!$C$22+'BP Financier'!$D$22+'BP Financier'!$E$22))*$V4232*Y4232/(1-$W4232)","v":{"v":112473.50373224531,"d":"112,474"}},{"$f":"'BP Financier'!$E$44*(('BP Financier'!$C$16+'BP Financier'!$D$16+'BP Financier'!$E$16)/('BP Financier'!$C$16+'BP Financier'!$C$19+'BP Financier'!$D$16+'BP Financier'!$D$19+'BP Financier'!$E$16+'BP Financier'!$E$19+'BP Financier'!$C$22+'BP Financier'!$D$22+'BP Financier'!$E$22))*$V4232*Z4232/(1-$W4232)","v":{"v":880267.8349953415,"d":"880,268"}},{"$f":"'BP Financier'!$E$44*(('BP Financier'!$C$16+'BP Financier'!$D$16+'BP Financier'!$E$16)/('BP Financier'!$C$16+'BP Financier'!$C$19+'BP Financier'!$D$16+'BP Financier'!$D$19+'BP Financier'!$E$16+'BP Financier'!$E$19+'BP Financier'!$C$22+'BP Financier'!$D$22+'BP Financier'!$E$22))*$V4232*AA4232/(1-$W4232)","v":{"v":108755.37137746037,"d":"108,755"}},{"$f":"'BP Financier'!$E$44*(('BP Financier'!$C$16+'BP Financier'!$D$16+'BP Financier'!$E$16)/('BP Financier'!$C$16+'BP Financier'!$C$19+'BP Financier'!$D$16+'BP Financier'!$D$19+'BP Financier'!$E$16+'BP Financier'!$E$19+'BP Financier'!$C$22+'BP Financier'!$D$22+'BP Financier'!$E$22))*$V4232*AB4232/(1-$W4232)","v":{"v":52053.852966989565,"d":"52,054"}},null,{"v":0.01,"d":"1.00%"},{"$f":"Actif!$E$28/100","v":{"v":0.28900000000000003,"d":"28.90%"}},{"$f":"Actif!$E$30/100","v":{"v":0.09050000000000001,"d":"9.05%"}},{"$f":"Actif!$E$31/100","v":{"v":0.0605,"d":"6.05%"}},{"$f":"Actif!$E$32/100","v":{"v":0.47350000000000003,"d":"47.35%"}},{"$f":"Actif!$E$33/100","v":{"v":0.0585,"d":"5.85%"}},{"$f":"Actif!$E$29/100","v":{"v":0.027999999999999997,"d":"2.80%"}}]
[null,"#132",61,2029,"H","A_VIE",{"v":0.44999999999999996,"d":"0.45"},{"v":0.38999999999999996,"d":"0.39"},0.6,0.6,85,0,{"$f":"ROUND(Primes!$O$4*V4233,0)","v":68},{"$f":"'BP Financier'!$E$33*(('BP Financier'!$C$16+'BP Financier'!$D$16+'BP Financier'!$E$16)/('BP Financier'!$C$16+'BP Financier'!$C$19+'BP Financier'!$D$16+'BP Financier'!$D$19+'BP Financier'!$E$16+'BP Financier'!$E$19))*V4233","v":{"v":2356786.6864833417,"d":"2,356,787"}},{"v":1321796.0521260567,"d":"1,321,796"},{"$f":"'BP Financier'!$E$44*(('BP Financier'!$C$16+'BP Financier'!$D$16+'BP Financier'!$E$16)/('BP Financier'!$C$16+'BP Financier'!$C$19+'BP Financier'!$D$16+'BP Financier'!$D$19+'BP Financier'!$E$16+'BP Financier'!$E$19+'BP Financier'!$C$22+'BP Financier'!$D$22+'BP Financier'!$E$22))*$V4233*X4233/(1-$W4233)","v":{"v":168245.48905401988,"d":"168,245"}},{"$f":"'BP Financier'!$E$44*(('BP Financier'!$C$16+'BP Financier'!$D$16+'BP Financier'!$E$16)/('BP Financier'!$C$16+'BP Financier'!$C$19+'BP Financier'!$D$16+'BP Financier'!$D$19+'BP Financier'!$E$16+'BP Financier'!$E$19+'BP Financier'!$C$22+'BP Financier'!$D$22+'BP Financier'!$E$22))*$V4233*Y4233/(1-$W4233)","v":{"v":112473.50373224531,"d":"112,474"}},{"$f":"'BP Financier'!$E$44*(('BP Financier'!$C$16+'BP Financier'!$D$16+'BP Financier'!$E$16)/('BP Financier'!$C$16+'BP Financier'!$C$19+'BP Financier'!$D$16+'BP Financier'!$D$19+'BP Financier'!$E$16+'BP Financier'!$E$19+'BP Financier'!$C$22+'BP Financier'!$D$22+'BP Financier'!$E$22))*$V4233*Z4233/(1-$W4233)","v":{"v":880267.8349953415,"d":"880,268"}},{"$f":"'BP Financier'!$E$44*(('BP Financier'!$C$16+'BP Financier'!$D$16+'BP Financier'!$E$16)/('BP Financier'!$C$16+'BP Financier'!$C$19+'BP Financier'!$D$16+'BP Financier'!$D$19+'BP Financier'!$E$16+'BP Financier'!$E$19+'BP Financier'!$C$22+'BP Financier'!$D$22+'BP Financier'!$E$22))*$V4233*AA4233/(1-$W4233)","v":{"v":108755.37137746037,"d":"108,755"}},{"$f":"'BP Financier'!$E$44*(('BP Financier'!$C$16+'BP Financier'!$D$16+'BP Financier'!$E$16)/('BP Financier'!$C$16+'BP Financier'!$C$19+'BP Financier'!$D$16+'BP Financier'!$D$19+'BP Financier'!$E$16+'BP Financier'!$E$19+'BP Financier'!$C$22+'BP Financier'!$D$22+'BP Financier'!$E$22))*$V4233*AB4233/(1-$W4233)","v":{"v":52053.852966989565,"d":"52,054"}},null,{"v":0.01,"d":"1.00%"},{"$f":"Actif!$E$28/100","v":{"v":0.28900000000000003,"d":"28.90%"}},{"$f":"Actif!$E$30/100","v":{"v":0.09050000000000001,"d":"9.05%"}},{"$f":"Actif!$E$31/100","v":{"v":0.0605,"d":"6.05%"}},{"$f":"Actif!$E$32/100","v":{"v":0.47350000000000003,"d":"47.35%"}},{"$f":"Actif!$E$33/100","v":{"v":0.0585,"d":"5.85%"}},{"$f":"Actif!$E$29/100","v":{"v":0.027999999999999997,"d":"2.80%"}}]
[null,"#133",62,2026,"F","A_VIE",{"v":0.44999999999999996,"d":"0.45"},{"v":0.38999999999999996,"d":"0.39"},0.6,0.6,85,0,{"$f":"ROUND(Primes!$O$4*V4234,0)","v":68},{"$f":"'BP Financier'!$E$33*(('BP Financier'!$C$16+'BP Financier'!$D$16+'BP Financier'!$E$16)/('BP Financier'!$C$16+'BP Financier'!$C$19+'BP Financier'!$D$16+'BP Financier'!$D$19+'BP Financier'!$E$16+'BP Financier'!$E$19))*V4234","v":{"v":2356786.6864833417,"d":"2,356,787"}},{"v":1321796.0521260567,"d":"1,321,796"},{"$f":"'BP Financier'!$E$44*(('BP Financier'!$C$16+'BP Financier'!$D$16+'BP Financier'!$E$16)/('BP Financier'!$C$16+'BP Financier'!$C$19+'BP Financier'!$D$16+'BP Financier'!$D$19+'BP Financier'!$E$16+'BP Financier'!$E$19+'BP Financier'!$C$22+'BP Financier'!$D$22+'BP Financier'!$E$22))*$V4234*X4234/(1-$W4234)","v":{"v":168245.48905401988,"d":"168,245"}},{"$f":"'BP Financier'!$E$44*(('BP Financier'!$C$16+'BP Financier'!$D$16+'BP Financier'!$E$16)/('BP Financier'!$C$16+'BP Financier'!$C$19+'BP Financier'!$D$16+'BP Financier'!$D$19+'BP Financier'!$E$16+'BP Financier'!$E$19+'BP Financier'!$C$22+'BP Financier'!$D$22+'BP Financier'!$E$22))*$V4234*Y4234/(1-$W4234)","v":{"v":112473.50373224531,"d":"112,474"}},{"$f":"'BP Financier'!$E$44*(('BP Financier'!$C$16+'BP Financier'!$D$16+'BP Financier'!$E$16)/('BP Financier'!$C$16+'BP Financier'!$C$19+'BP Financier'!$D$16+'BP Financier'!$D$19+'BP Financier'!$E$16+'BP Financier'!$E$19+'BP Financier'!$C$22+'BP Financier'!$D$22+'BP Financier'!$E$22))*$V4234*Z4234/(1-$W4234)","v":{"v":880267.8349953415,"d":"880,268"}},{"$f":"'BP Financier'!$E$44*(('BP Financier'!$C$16+'BP Financier'!$D$16+'BP Financier'!$E$16)/('BP Financier'!$C$16+'BP Financier'!$C$19+'BP Financier'!$D$16+'BP Financier'!$D$19+'BP Financier'!$E$16+'BP Financier'!$E$19+'BP Financier'!$C$22+'BP Financier'!$D$22+'BP Financier'!$E$22))*$V4234*AA4234/(1-$W4234)","v":{"v":108755.37137746037,"d":"108,755"}},{"$f":"'BP Financier'!$E$44*(('BP Financier'!$C$16+'BP Financier'!$D$16+'BP Financier'!$E$16)/('BP Financier'!$C$16+'BP Financier'!$C$19+'BP Financier'!$D$16+'BP Financier'!$D$19+'BP Financier'!$E$16+'BP Financier'!$E$19+'BP Financier'!$C$22+'BP Financier'!$D$22+'BP Financier'!$E$22))*$V4234*AB4234/(1-$W4234)","v":{"v":52053.852966989565,"d":"52,054"}},null,{"v":0.01,"d":"1.00%"},{"$f":"Actif!$E$28/100","v":{"v":0.28900000000000003,"d":"28.90%"}},{"$f":"Actif!$E$30/100","v":{"v":0.09050000000000001,"d":"9.05%"}},{"$f":"Actif!$E$31/100","v":{"v":0.0605,"d":"6.05%"}},{"$f":"Actif!$E$32/100","v":{"v":0.47350000000000003,"d":"47.35%"}},{"$f":"Actif!$E$33/100","v":{"v":0.0585,"d":"5.85%"}},{"$f":"Actif!$E$29/100","v":{"v":0.027999999999999997,"d":"2.80%"}}]
[null,"#134",62,2028,"F","A_VIE",{"v":0.44999999999999996,"d":"0.45"},{"v":0.38999999999999996,"d":"0.39"},0.6,0.6,85,0,{"$f":"ROUND(Primes!$O$4*V4235,0)","v":68},{"$f":"'BP Financier'!$E$33*(('BP Financier'!$C$16+'BP Financier'!$D$16+'BP Financier'!$E$16)/('BP Financier'!$C$16+'BP Financier'!$C$19+'BP Financier'!$D$16+'BP Financier'!$D$19+'BP Financier'!$E$16+'BP Financier'!$E$19))*V4235","v":{"v":2356786.6864833417,"d":"2,356,787"}},{"v":1321796.0521260567,"d":"1,321,796"},{"$f":"'BP Financier'!$E$44*(('BP Financier'!$C$16+'BP Financier'!$D$16+'BP Financier'!$E$16)/('BP Financier'!$C$16+'BP Financier'!$C$19+'BP Financier'!$D$16+'BP Financier'!$D$19+'BP Financier'!$E$16+'BP Financier'!$E$19+'BP Financier'!$C$22+'BP Financier'!$D$22+'BP Financier'!$E$22))*$V4235*X4235/(1-$W4235)","v":{"v":168245.48905401988,"d":"168,245"}},{"$f":"'BP Financier'!$E$44*(('BP Financier'!$C$16+'BP Financier'!$D$16+'BP Financier'!$E$16)/('BP Financier'!$C$16+'BP Financier'!$C$19+'BP Financier'!$D$16+'BP Financier'!$D$19+'BP Financier'!$E$16+'BP Financier'!$E$19+'BP Financier'!$C$22+'BP Financier'!$D$22+'BP Financier'!$E$22))*$V4235*Y4235/(1-$W4235)","v":{"v":112473.50373224531,"d":"112,474"}},{"$f":"'BP Financier'!$E$44*(('BP Financier'!$C$16+'BP Financier'!$D$16+'BP Financier'!$E$16)/('BP Financier'!$C$16+'BP Financier'!$C$19+'BP Financier'!$D$16+'BP Financier'!$D$19+'BP Financier'!$E$16+'BP Financier'!$E$19+'BP Financier'!$C$22+'BP Financier'!$D$22+'BP Financier'!$E$22))*$V4235*Z4235/(1-$W4235)","v":{"v":880267.8349953415,"d":"880,268"}},{"$f":"'BP Financier'!$E$44*(('BP Financier'!$C$16+'BP Financier'!$D$16+'BP Financier'!$E$16)/('BP Financier'!$C$16+'BP Financier'!$C$19+'BP Financier'!$D$16+'BP Financier'!$D$19+'BP Financier'!$E$16+'BP Financier'!$E$19+'BP Financier'!$C$22+'BP Financier'!$D$22+'BP Financier'!$E$22))*$V4235*AA4235/(1-$W4235)","v":{"v":108755.37137746037,"d":"108,755"}},{"$f":"'BP Financier'!$E$44*(('BP Financier'!$C$16+'BP Financier'!$D$16+'BP Financier'!$E$16)/('BP Financier'!$C$16+'BP Financier'!$C$19+'BP Financier'!$D$16+'BP Financier'!$D$19+'BP Financier'!$E$16+'BP Financier'!$E$19+'BP Financier'!$C$22+'BP Financier'!$D$22+'BP Financier'!$E$22))*$V4235*AB4235/(1-$W4235)","v":{"v":52053.852966989565,"d":"52,054"}},null,{"v":0.01,"d":"1.00%"},{"$f":"Actif!$E$28/100","v":{"v":0.28900000000000003,"d":"28.90%"}},{"$f":"Actif!$E$30/100","v":{"v":0.09050000000000001,"d":"9.05%"}},{"$f":"Actif!$E$31/100","v":{"v":0.0605,"d":"6.05%"}},{"$f":"Actif!$E$32/100","v":{"v":0.47350000000000003,"d":"47.35%"}},{"$f":"Actif!$E$33/100","v":{"v":0.0585,"d":"5.85%"}},{"$f":"Actif!$E$29/100","v":{"v":0.027999999999999997,"d":"2.80%"}}]
[null,"#135",62,2029,"F","A_VIE",{"v":0.44999999999999996,"d":"0.45"},{"v":0.38999999999999996,"d":"0.39"},0.6,0.6,85,0,{"$f":"ROUND(Primes!$O$4*V4236,0)","v":68},{"$f":"'BP Financier'!$E$33*(('BP Financier'!$C$16+'BP Financier'!$D$16+'BP Financier'!$E$16)/('BP Financier'!$C$16+'BP Financier'!$C$19+'BP Financier'!$D$16+'BP Financier'!$D$19+'BP Financier'!$E$16+'BP Financier'!$E$19))*V4236","v":{"v":2356786.6864833417,"d":"2,356,787"}},{"v":1321796.0521260567,"d":"1,321,796"},{"$f":"'BP Financier'!$E$44*(('BP Financier'!$C$16+'BP Financier'!$D$16+'BP Financier'!$E$16)/('BP Financier'!$C$16+'BP Financier'!$C$19+'BP Financier'!$D$16+'BP Financier'!$D$19+'BP Financier'!$E$16+'BP Financier'!$E$19+'BP Financier'!$C$22+'BP Financier'!$D$22+'BP Financier'!$E$22))*$V4236*X4236/(1-$W4236)","v":{"v":168245.48905401988,"d":"168,245"}},{"$f":"'BP Financier'!$E$44*(('BP Financier'!$C$16+'BP Financier'!$D$16+'BP Financier'!$E$16)/('BP Financier'!$C$16+'BP Financier'!$C$19+'BP Financier'!$D$16+'BP Financier'!$D$19+'BP Financier'!$E$16+'BP Financier'!$E$19+'BP Financier'!$C$22+'BP Financier'!$D$22+'BP Financier'!$E$22))*$V4236*Y4236/(1-$W4236)","v":{"v":112473.50373224531,"d":"112,474"}},{"$f":"'BP Financier'!$E$44*(('BP Financier'!$C$16+'BP Financier'!$D$16+'BP Financier'!$E$16)/('BP Financier'!$C$16+'BP Financier'!$C$19+'BP Financier'!$D$16+'BP Financier'!$D$19+'BP Financier'!$E$16+'BP Financier'!$E$19+'BP Financier'!$C$22+'BP Financier'!$D$22+'BP Financier'!$E$22))*$V4236*Z4236/(1-$W4236)","v":{"v":880267.8349953415,"d":"880,268"}},{"$f":"'BP Financier'!$E$44*(('BP Financier'!$C$16+'BP Financier'!$D$16+'BP Financier'!$E$16)/('BP Financier'!$C$16+'BP Financier'!$C$19+'BP Financier'!$D$16+'BP Financier'!$D$19+'BP Financier'!$E$16+'BP Financier'!$E$19+'BP Financier'!$C$22+'BP Financier'!$D$22+'BP Financier'!$E$22))*$V4236*AA4236/(1-$W4236)","v":{"v":108755.37137746037,"d":"108,755"}},{"$f":"'BP Financier'!$E$44*(('BP Financier'!$C$16+'BP Financier'!$D$16+'BP Financier'!$E$16)/('BP Financier'!$C$16+'BP Financier'!$C$19+'BP Financier'!$D$16+'BP Financier'!$D$19+'BP Financier'!$E$16+'BP Financier'!$E$19+'BP Financier'!$C$22+'BP Financier'!$D$22+'BP Financier'!$E$22))*$V4236*AB4236/(1-$W4236)","v":{"v":52053.852966989565,"d":"52,054"}},null,{"v":0.01,"d":"1.00%"},{"$f":"Actif!$E$28/100","v":{"v":0.28900000000000003,"d":"28.90%"}},{"$f":"Actif!$E$30/100","v":{"v":0.09050000000000001,"d":"9.05%"}},{"$f":"Actif!$E$31/100","v":{"v":0.0605,"d":"6.05%"}},{"$f":"Actif!$E$32/100","v":{"v":0.47350000000000003,"d":"47.35%"}},{"$f":"Actif!$E$33/100","v":{"v":0.0585,"d":"5.85%"}},{"$f":"Actif!$E$29/100","v":{"v":0.027999999999999997,"d":"2.80%"}}]
[null,"#136",63,2026,"H","A_VIE",{"v":0.44999999999999996,"d":"0.45"},{"v":0.38999999999999996,"d":"0.39"},0.6,0.6,85,0,{"$f":"ROUND(Primes!$O$4*V4237,0)","v":68},{"$f":"'BP Financier'!$E$33*(('BP Financier'!$C$16+'BP Financier'!$D$16+'BP Financier'!$E$16)/('BP Financier'!$C$16+'BP Financier'!$C$19+'BP Financier'!$D$16+'BP Financier'!$D$19+'BP Financier'!$E$16+'BP Financier'!$E$19))*V4237","v":{"v":2356786.6864833417,"d":"2,356,787"}},{"v":1321796.0521260567,"d":"1,321,796"},{"$f":"'BP Financier'!$E$44*(('BP Financier'!$C$16+'BP Financier'!$D$16+'BP Financier'!$E$16)/('BP Financier'!$C$16+'BP Financier'!$C$19+'BP Financier'!$D$16+'BP Financier'!$D$19+'BP Financier'!$E$16+'BP Financier'!$E$19+'BP Financier'!$C$22+'BP Financier'!$D$22+'BP Financier'!$E$22))*$V4237*X4237/(1-$W4237)","v":{"v":168245.48905401988,"d":"168,245"}},{"$f":"'BP Financier'!$E$44*(('BP Financier'!$C$16+'BP Financier'!$D$16+'BP Financier'!$E$16)/('BP Financier'!$C$16+'BP Financier'!$C$19+'BP Financier'!$D$16+'BP Financier'!$D$19+'BP Financier'!$E$16+'BP Financier'!$E$19+'BP Financier'!$C$22+'BP Financier'!$D$22+'BP Financier'!$E$22))*$V4237*Y4237/(1-$W4237)","v":{"v":112473.50373224531,"d":"112,474"}},{"$f":"'BP Financier'!$E$44*(('BP Financier'!$C$16+'BP Financier'!$D$16+'BP Financier'!$E$16)/('BP Financier'!$C$16+'BP Financier'!$C$19+'BP Financier'!$D$16+'BP Financier'!$D$19+'BP Financier'!$E$16+'BP Financier'!$E$19+'BP Financier'!$C$22+'BP Financier'!$D$22+'BP Financier'!$E$22))*$V4237*Z4237/(1-$W4237)","v":{"v":880267.8349953415,"d":"880,268"}},{"$f":"'BP Financier'!$E$44*(('BP Financier'!$C$16+'BP Financier'!$D$16+'BP Financier'!$E$16)/('BP Financier'!$C$16+'BP Financier'!$C$19+'BP Financier'!$D$16+'BP Financier'!$D$19+'BP Financier'!$E$16+'BP Financier'!$E$19+'BP Financier'!$C$22+'BP Financier'!$D$22+'BP Financier'!$E$22))*$V4237*AA4237/(1-$W4237)","v":{"v":108755.37137746037,"d":"108,755"}},{"$f":"'BP Financier'!$E$44*(('BP Financier'!$C$16+'BP Financier'!$D$16+'BP Financier'!$E$16)/('BP Financier'!$C$16+'BP Financier'!$C$19+'BP Financier'!$D$16+'BP Financier'!$D$19+'BP Financier'!$E$16+'BP Financier'!$E$19+'BP Financier'!$C$22+'BP Financier'!$D$22+'BP Financier'!$E$22))*$V4237*AB4237/(1-$W4237)","v":{"v":52053.852966989565,"d":"52,054"}},null,{"v":0.01,"d":"1.00%"},{"$f":"Actif!$E$28/100","v":{"v":0.28900000000000003,"d":"28.90%"}},{"$f":"Actif!$E$30/100","v":{"v":0.09050000000000001,"d":"9.05%"}},{"$f":"Actif!$E$31/100","v":{"v":0.0605,"d":"6.05%"}},{"$f":"Actif!$E$32/100","v":{"v":0.47350000000000003,"d":"47.35%"}},{"$f":"Actif!$E$33/100","v":{"v":0.0585,"d":"5.85%"}},{"$f":"Actif!$E$29/100","v":{"v":0.027999999999999997,"d":"2.80%"}}]
[null,"#137",63,2028,"H","A_VIE",{"v":0.44999999999999996,"d":"0.45"},{"v":0.38999999999999996,"d":"0.39"},0.6,0.6,85,0,{"$f":"ROUND(Primes!$O$4*V4238,0)","v":68},{"$f":"'BP Financier'!$E$33*(('BP Financier'!$C$16+'BP Financier'!$D$16+'BP Financier'!$E$16)/('BP Financier'!$C$16+'BP Financier'!$C$19+'BP Financier'!$D$16+'BP Financier'!$D$19+'BP Financier'!$E$16+'BP Financier'!$E$19))*V4238","v":{"v":2356786.6864833417,"d":"2,356,787"}},{"v":1321796.0521260567,"d":"1,321,796"},{"$f":"'BP Financier'!$E$44*(('BP Financier'!$C$16+'BP Financier'!$D$16+'BP Financier'!$E$16)/('BP Financier'!$C$16+'BP Financier'!$C$19+'BP Financier'!$D$16+'BP Financier'!$D$19+'BP Financier'!$E$16+'BP Financier'!$E$19+'BP Financier'!$C$22+'BP Financier'!$D$22+'BP Financier'!$E$22))*$V4238*X4238/(1-$W4238)","v":{"v":168245.48905401988,"d":"168,245"}},{"$f":"'BP Financier'!$E$44*(('BP Financier'!$C$16+'BP Financier'!$D$16+'BP Financier'!$E$16)/('BP Financier'!$C$16+'BP Financier'!$C$19+'BP Financier'!$D$16+'BP Financier'!$D$19+'BP Financier'!$E$16+'BP Financier'!$E$19+'BP Financier'!$C$22+'BP Financier'!$D$22+'BP Financier'!$E$22))*$V4238*Y4238/(1-$W4238)","v":{"v":112473.50373224531,"d":"112,474"}},{"$f":"'BP Financier'!$E$44*(('BP Financier'!$C$16+'BP Financier'!$D$16+'BP Financier'!$E$16)/('BP Financier'!$C$16+'BP Financier'!$C$19+'BP Financier'!$D$16+'BP Financier'!$D$19+'BP Financier'!$E$16+'BP Financier'!$E$19+'BP Financier'!$C$22+'BP Financier'!$D$22+'BP Financier'!$E$22))*$V4238*Z4238/(1-$W4238)","v":{"v":880267.8349953415,"d":"880,268"}},{"$f":"'BP Financier'!$E$44*(('BP Financier'!$C$16+'BP Financier'!$D$16+'BP Financier'!$E$16)/('BP Financier'!$C$16+'BP Financier'!$C$19+'BP Financier'!$D$16+'BP Financier'!$D$19+'BP Financier'!$E$16+'BP Financier'!$E$19+'BP Financier'!$C$22+'BP Financier'!$D$22+'BP Financier'!$E$22))*$V4238*AA4238/(1-$W4238)","v":{"v":108755.37137746037,"d":"108,755"}},{"$f":"'BP Financier'!$E$44*(('BP Financier'!$C$16+'BP Financier'!$D$16+'BP Financier'!$E$16)/('BP Financier'!$C$16+'BP Financier'!$C$19+'BP Financier'!$D$16+'BP Financier'!$D$19+'BP Financier'!$E$16+'BP Financier'!$E$19+'BP Financier'!$C$22+'BP Financier'!$D$22+'BP Financier'!$E$22))*$V4238*AB4238/(1-$W4238)","v":{"v":52053.852966989565,"d":"52,054"}},null,{"v":0.01,"d":"1.00%"},{"$f":"Actif!$E$28/100","v":{"v":0.28900000000000003,"d":"28.90%"}},{"$f":"Actif!$E$30/100","v":{"v":0.09050000000000001,"d":"9.05%"}},{"$f":"Actif!$E$31/100","v":{"v":0.0605,"d":"6.05%"}},{"$f":"Actif!$E$32/100","v":{"v":0.47350000000000003,"d":"47.35%"}},{"$f":"Actif!$E$33/100","v":{"v":0.0585,"d":"5.85%"}},{"$f":"Actif!$E$29/100","v":{"v":0.027999999999999997,"d":"2.80%"}}]
[null,"#138",63,2029,"H","A_VIE",{"v":0.44999999999999996,"d":"0.45"},{"v":0.38999999999999996,"d":"0.39"},0.6,0.6,85,0,{"$f":"ROUND(Primes!$O$4*V4239,0)","v":68},{"$f":"'BP Financier'!$E$33*(('BP Financier'!$C$16+'BP Financier'!$D$16+'BP Financier'!$E$16)/('BP Financier'!$C$16+'BP Financier'!$C$19+'BP Financier'!$D$16+'BP Financier'!$D$19+'BP Financier'!$E$16+'BP Financier'!$E$19))*V4239","v":{"v":2356786.6864833417,"d":"2,356,787"}},{"v":1321796.0521260567,"d":"1,321,796"},{"$f":"'BP Financier'!$E$44*(('BP Financier'!$C$16+'BP Financier'!$D$16+'BP Financier'!$E$16)/('BP Financier'!$C$16+'BP Financier'!$C$19+'BP Financier'!$D$16+'BP Financier'!$D$19+'BP Financier'!$E$16+'BP Financier'!$E$19+'BP Financier'!$C$22+'BP Financier'!$D$22+'BP Financier'!$E$22))*$V4239*X4239/(1-$W4239)","v":{"v":168245.48905401988,"d":"168,245"}},{"$f":"'BP Financier'!$E$44*(('BP Financier'!$C$16+'BP Financier'!$D$16+'BP Financier'!$E$16)/('BP Financier'!$C$16+'BP Financier'!$C$19+'BP Financier'!$D$16+'BP Financier'!$D$19+'BP Financier'!$E$16+'BP Financier'!$E$19+'BP Financier'!$C$22+'BP Financier'!$D$22+'BP Financier'!$E$22))*$V4239*Y4239/(1-$W4239)","v":{"v":112473.50373224531,"d":"112,474"}},{"$f":"'BP Financier'!$E$44*(('BP Financier'!$C$16+'BP Financier'!$D$16+'BP Financier'!$E$16)/('BP Financier'!$C$16+'BP Financier'!$C$19+'BP Financier'!$D$16+'BP Financier'!$D$19+'BP Financier'!$E$16+'BP Financier'!$E$19+'BP Financier'!$C$22+'BP Financier'!$D$22+'BP Financier'!$E$22))*$V4239*Z4239/(1-$W4239)","v":{"v":880267.8349953415,"d":"880,268"}},{"$f":"'BP Financier'!$E$44*(('BP Financier'!$C$16+'BP Financier'!$D$16+'BP Financier'!$E$16)/('BP Financier'!$C$16+'BP Financier'!$C$19+'BP Financier'!$D$16+'BP Financier'!$D$19+'BP Financier'!$E$16+'BP Financier'!$E$19+'BP Financier'!$C$22+'BP Financier'!$D$22+'BP Financier'!$E$22))*$V4239*AA4239/(1-$W4239)","v":{"v":108755.37137746037,"d":"108,755"}},{"$f":"'BP Financier'!$E$44*(('BP Financier'!$C$16+'BP Financier'!$D$16+'BP Financier'!$E$16)/('BP Financier'!$C$16+'BP Financier'!$C$19+'BP Financier'!$D$16+'BP Financier'!$D$19+'BP Financier'!$E$16+'BP Financier'!$E$19+'BP Financier'!$C$22+'BP Financier'!$D$22+'BP Financier'!$E$22))*$V4239*AB4239/(1-$W4239)","v":{"v":52053.852966989565,"d":"52,054"}},null,{"v":0.01,"d":"1.00%"},{"$f":"Actif!$E$28/100","v":{"v":0.28900000000000003,"d":"28.90%"}},{"$f":"Actif!$E$30/100","v":{"v":0.09050000000000001,"d":"9.05%"}},{"$f":"Actif!$E$31/100","v":{"v":0.0605,"d":"6.05%"}},{"$f":"Actif!$E$32/100","v":{"v":0.47350000000000003,"d":"47.35%"}},{"$f":"Actif!$E$33/100","v":{"v":0.0585,"d":"5.85%"}},{"$f":"Actif!$E$29/100","v":{"v":0.027999999999999997,"d":"2.80%"}}]
[null,"#139",64,2026,"H","A_VIE",{"v":0.44999999999999996,"d":"0.45"},{"v":0.38999999999999996,"d":"0.39"},0.6,0.6,85,0,{"$f":"ROUND(Primes!$O$4*V4240,0)","v":68},{"$f":"'BP Financier'!$E$33*(('BP Financier'!$C$16+'BP Financier'!$D$16+'BP Financier'!$E$16)/('BP Financier'!$C$16+'BP Financier'!$C$19+'BP Financier'!$D$16+'BP Financier'!$D$19+'BP Financier'!$E$16+'BP Financier'!$E$19))*V4240","v":{"v":2356786.6864833417,"d":"2,356,787"}},{"v":1321796.0521260567,"d":"1,321,796"},{"$f":"'BP Financier'!$E$44*(('BP Financier'!$C$16+'BP Financier'!$D$16+'BP Financier'!$E$16)/('BP Financier'!$C$16+'BP Financier'!$C$19+'BP Financier'!$D$16+'BP Financier'!$D$19+'BP Financier'!$E$16+'BP Financier'!$E$19+'BP Financier'!$C$22+'BP Financier'!$D$22+'BP Financier'!$E$22))*$V4240*X4240/(1-$W4240)","v":{"v":168245.48905401988,"d":"168,245"}},{"$f":"'BP Financier'!$E$44*(('BP Financier'!$C$16+'BP Financier'!$D$16+'BP Financier'!$E$16)/('BP Financier'!$C$16+'BP Financier'!$C$19+'BP Financier'!$D$16+'BP Financier'!$D$19+'BP Financier'!$E$16+'BP Financier'!$E$19+'BP Financier'!$C$22+'BP Financier'!$D$22+'BP Financier'!$E$22))*$V4240*Y4240/(1-$W4240)","v":{"v":112473.50373224531,"d":"112,474"}},{"$f":"'BP Financier'!$E$44*(('BP Financier'!$C$16+'BP Financier'!$D$16+'BP Financier'!$E$16)/('BP Financier'!$C$16+'BP Financier'!$C$19+'BP Financier'!$D$16+'BP Financier'!$D$19+'BP Financier'!$E$16+'BP Financier'!$E$19+'BP Financier'!$C$22+'BP Financier'!$D$22+'BP Financier'!$E$22))*$V4240*Z4240/(1-$W4240)","v":{"v":880267.8349953415,"d":"880,268"}},{"$f":"'BP Financier'!$E$44*(('BP Financier'!$C$16+'BP Financier'!$D$16+'BP Financier'!$E$16)/('BP Financier'!$C$16+'BP Financier'!$C$19+'BP Financier'!$D$16+'BP Financier'!$D$19+'BP Financier'!$E$16+'BP Financier'!$E$19+'BP Financier'!$C$22+'BP Financier'!$D$22+'BP Financier'!$E$22))*$V4240*AA4240/(1-$W4240)","v":{"v":108755.37137746037,"d":"108,755"}},{"$f":"'BP Financier'!$E$44*(('BP Financier'!$C$16+'BP Financier'!$D$16+'BP Financier'!$E$16)/('BP Financier'!$C$16+'BP Financier'!$C$19+'BP Financier'!$D$16+'BP Financier'!$D$19+'BP Financier'!$E$16+'BP Financier'!$E$19+'BP Financier'!$C$22+'BP Financier'!$D$22+'BP Financier'!$E$22))*$V4240*AB4240/(1-$W4240)","v":{"v":52053.852966989565,"d":"52,054"}},null,{"v":0.01,"d":"1.00%"},{"$f":"Actif!$E$28/100","v":{"v":0.28900000000000003,"d":"28.90%"}},{"$f":"Actif!$E$30/100","v":{"v":0.09050000000000001,"d":"9.05%"}},{"$f":"Actif!$E$31/100","v":{"v":0.0605,"d":"6.05%"}},{"$f":"Actif!$E$32/100","v":{"v":0.47350000000000003,"d":"47.35%"}},{"$f":"Actif!$E$33/100","v":{"v":0.0585,"d":"5.85%"}},{"$f":"Actif!$E$29/100","v":{"v":0.027999999999999997,"d":"2.80%"}}]
[null,"#140",64,2028,"H","A_VIE",{"v":0.44999999999999996,"d":"0.45"},{"v":0.38999999999999996,"d":"0.39"},0.6,0.6,85,0,{"$f":"ROUND(Primes!$O$4*V4241,0)","v":68},{"$f":"'BP Financier'!$E$33*(('BP Financier'!$C$16+'BP Financier'!$D$16+'BP Financier'!$E$16)/('BP Financier'!$C$16+'BP Financier'!$C$19+'BP Financier'!$D$16+'BP Financier'!$D$19+'BP Financier'!$E$16+'BP Financier'!$E$19))*V4241","v":{"v":2356786.6864833417,"d":"2,356,787"}},{"v":1321796.0521260567,"d":"1,321,796"},{"$f":"'BP Financier'!$E$44*(('BP Financier'!$C$16+'BP Financier'!$D$16+'BP Financier'!$E$16)/('BP Financier'!$C$16+'BP Financier'!$C$19+'BP Financier'!$D$16+'BP Financier'!$D$19+'BP Financier'!$E$16+'BP Financier'!$E$19+'BP Financier'!$C$22+'BP Financier'!$D$22+'BP Financier'!$E$22))*$V4241*X4241/(1-$W4241)","v":{"v":168245.48905401988,"d":"168,245"}},{"$f":"'BP Financier'!$E$44*(('BP Financier'!$C$16+'BP Financier'!$D$16+'BP Financier'!$E$16)/('BP Financier'!$C$16+'BP Financier'!$C$19+'BP Financier'!$D$16+'BP Financier'!$D$19+'BP Financier'!$E$16+'BP Financier'!$E$19+'BP Financier'!$C$22+'BP Financier'!$D$22+'BP Financier'!$E$22))*$V4241*Y4241/(1-$W4241)","v":{"v":112473.50373224531,"d":"112,474"}},{"$f":"'BP Financier'!$E$44*(('BP Financier'!$C$16+'BP Financier'!$D$16+'BP Financier'!$E$16)/('BP Financier'!$C$16+'BP Financier'!$C$19+'BP Financier'!$D$16+'BP Financier'!$D$19+'BP Financier'!$E$16+'BP Financier'!$E$19+'BP Financier'!$C$22+'BP Financier'!$D$22+'BP Financier'!$E$22))*$V4241*Z4241/(1-$W4241)","v":{"v":880267.8349953415,"d":"880,268"}},{"$f":"'BP Financier'!$E$44*(('BP Financier'!$C$16+'BP Financier'!$D$16+'BP Financier'!$E$16)/('BP Financier'!$C$16+'BP Financier'!$C$19+'BP Financier'!$D$16+'BP Financier'!$D$19+'BP Financier'!$E$16+'BP Financier'!$E$19+'BP Financier'!$C$22+'BP Financier'!$D$22+'BP Financier'!$E$22))*$V4241*AA4241/(1-$W4241)","v":{"v":108755.37137746037,"d":"108,755"}},{"$f":"'BP Financier'!$E$44*(('BP Financier'!$C$16+'BP Financier'!$D$16+'BP Financier'!$E$16)/('BP Financier'!$C$16+'BP Financier'!$C$19+'BP Financier'!$D$16+'BP Financier'!$D$19+'BP Financier'!$E$16+'BP Financier'!$E$19+'BP Financier'!$C$22+'BP Financier'!$D$22+'BP Financier'!$E$22))*$V4241*AB4241/(1-$W4241)","v":{"v":52053.852966989565,"d":"52,054"}},null,{"v":0.01,"d":"1.00%"},{"$f":"Actif!$E$28/100","v":{"v":0.28900000000000003,"d":"28.90%"}},{"$f":"Actif!$E$30/100","v":{"v":0.09050000000000001,"d":"9.05%"}},{"$f":"Actif!$E$31/100","v":{"v":0.0605,"d":"6.05%"}},{"$f":"Actif!$E$32/100","v":{"v":0.47350000000000003,"d":"47.35%"}},{"$f":"Actif!$E$33/100","v":{"v":0.0585,"d":"5.85%"}},{"$f":"Actif!$E$29/100","v":{"v":0.027999999999999997,"d":"2.80%"}}]
[null,"#141",64,2029,"H","A_VIE",{"v":0.44999999999999996,"d":"0.45"},{"v":0.38999999999999996,"d":"0.39"},0.6,0.6,85,0,{"$f":"ROUND(Primes!$O$4*V4242,0)","v":68},{"$f":"'BP Financier'!$E$33*(('BP Financier'!$C$16+'BP Financier'!$D$16+'BP Financier'!$E$16)/('BP Financier'!$C$16+'BP Financier'!$C$19+'BP Financier'!$D$16+'BP Financier'!$D$19+'BP Financier'!$E$16+'BP Financier'!$E$19))*V4242","v":{"v":2356786.6864833417,"d":"2,356,787"}},{"v":1321796.0521260567,"d":"1,321,796"},{"$f":"'BP Financier'!$E$44*(('BP Financier'!$C$16+'BP Financier'!$D$16+'BP Financier'!$E$16)/('BP Financier'!$C$16+'BP Financier'!$C$19+'BP Financier'!$D$16+'BP Financier'!$D$19+'BP Financier'!$E$16+'BP Financier'!$E$19+'BP Financier'!$C$22+'BP Financier'!$D$22+'BP Financier'!$E$22))*$V4242*X4242/(1-$W4242)","v":{"v":168245.48905401988,"d":"168,245"}},{"$f":"'BP Financier'!$E$44*(('BP Financier'!$C$16+'BP Financier'!$D$16+'BP Financier'!$E$16)/('BP Financier'!$C$16+'BP Financier'!$C$19+'BP Financier'!$D$16+'BP Financier'!$D$19+'BP Financier'!$E$16+'BP Financier'!$E$19+'BP Financier'!$C$22+'BP Financier'!$D$22+'BP Financier'!$E$22))*$V4242*Y4242/(1-$W4242)","v":{"v":112473.50373224531,"d":"112,474"}},{"$f":"'BP Financier'!$E$44*(('BP Financier'!$C$16+'BP Financier'!$D$16+'BP Financier'!$E$16)/('BP Financier'!$C$16+'BP Financier'!$C$19+'BP Financier'!$D$16+'BP Financier'!$D$19+'BP Financier'!$E$16+'BP Financier'!$E$19+'BP Financier'!$C$22+'BP Financier'!$D$22+'BP Financier'!$E$22))*$V4242*Z4242/(1-$W4242)","v":{"v":880267.8349953415,"d":"880,268"}},{"$f":"'BP Financier'!$E$44*(('BP Financier'!$C$16+'BP Financier'!$D$16+'BP Financier'!$E$16)/('BP Financier'!$C$16+'BP Financier'!$C$19+'BP Financier'!$D$16+'BP Financier'!$D$19+'BP Financier'!$E$16+'BP Financier'!$E$19+'BP Financier'!$C$22+'BP Financier'!$D$22+'BP Financier'!$E$22))*$V4242*AA4242/(1-$W4242)","v":{"v":108755.37137746037,"d":"108,755"}},{"$f":"'BP Financier'!$E$44*(('BP Financier'!$C$16+'BP Financier'!$D$16+'BP Financier'!$E$16)/('BP Financier'!$C$16+'BP Financier'!$C$19+'BP Financier'!$D$16+'BP Financier'!$D$19+'BP Financier'!$E$16+'BP Financier'!$E$19+'BP Financier'!$C$22+'BP Financier'!$D$22+'BP Financier'!$E$22))*$V4242*AB4242/(1-$W4242)","v":{"v":52053.852966989565,"d":"52,054"}},null,{"v":0.01,"d":"1.00%"},{"$f":"Actif!$E$28/100","v":{"v":0.28900000000000003,"d":"28.90%"}},{"$f":"Actif!$E$30/100","v":{"v":0.09050000000000001,"d":"9.05%"}},{"$f":"Actif!$E$31/100","v":{"v":0.0605,"d":"6.05%"}},{"$f":"Actif!$E$32/100","v":{"v":0.47350000000000003,"d":"47.35%"}},{"$f":"Actif!$E$33/100","v":{"v":0.0585,"d":"5.85%"}},{"$f":"Actif!$E$29/100","v":{"v":0.027999999999999997,"d":"2.80%"}}]
[null,"#142",65,2026,"F","A_VIE",{"v":0.44999999999999996,"d":"0.45"},{"v":0.38999999999999996,"d":"0.39"},0.6,0.6,85,0,{"$f":"ROUND(Primes!$O$4*V4243,0)","v":68},{"$f":"'BP Financier'!$E$33*(('BP Financier'!$C$16+'BP Financier'!$D$16+'BP Financier'!$E$16)/('BP Financier'!$C$16+'BP Financier'!$C$19+'BP Financier'!$D$16+'BP Financier'!$D$19+'BP Financier'!$E$16+'BP Financier'!$E$19))*V4243","v":{"v":2356786.6864833417,"d":"2,356,787"}},{"v":1321796.0521260567,"d":"1,321,796"},{"$f":"'BP Financier'!$E$44*(('BP Financier'!$C$16+'BP Financier'!$D$16+'BP Financier'!$E$16)/('BP Financier'!$C$16+'BP Financier'!$C$19+'BP Financier'!$D$16+'BP Financier'!$D$19+'BP Financier'!$E$16+'BP Financier'!$E$19+'BP Financier'!$C$22+'BP Financier'!$D$22+'BP Financier'!$E$22))*$V4243*X4243/(1-$W4243)","v":{"v":168245.48905401988,"d":"168,245"}},{"$f":"'BP Financier'!$E$44*(('BP Financier'!$C$16+'BP Financier'!$D$16+'BP Financier'!$E$16)/('BP Financier'!$C$16+'BP Financier'!$C$19+'BP Financier'!$D$16+'BP Financier'!$D$19+'BP Financier'!$E$16+'BP Financier'!$E$19+'BP Financier'!$C$22+'BP Financier'!$D$22+'BP Financier'!$E$22))*$V4243*Y4243/(1-$W4243)","v":{"v":112473.50373224531,"d":"112,474"}},{"$f":"'BP Financier'!$E$44*(('BP Financier'!$C$16+'BP Financier'!$D$16+'BP Financier'!$E$16)/('BP Financier'!$C$16+'BP Financier'!$C$19+'BP Financier'!$D$16+'BP Financier'!$D$19+'BP Financier'!$E$16+'BP Financier'!$E$19+'BP Financier'!$C$22+'BP Financier'!$D$22+'BP Financier'!$E$22))*$V4243*Z4243/(1-$W4243)","v":{"v":880267.8349953415,"d":"880,268"}},{"$f":"'BP Financier'!$E$44*(('BP Financier'!$C$16+'BP Financier'!$D$16+'BP Financier'!$E$16)/('BP Financier'!$C$16+'BP Financier'!$C$19+'BP Financier'!$D$16+'BP Financier'!$D$19+'BP Financier'!$E$16+'BP Financier'!$E$19+'BP Financier'!$C$22+'BP Financier'!$D$22+'BP Financier'!$E$22))*$V4243*AA4243/(1-$W4243)","v":{"v":108755.37137746037,"d":"108,755"}},{"$f":"'BP Financier'!$E$44*(('BP Financier'!$C$16+'BP Financier'!$D$16+'BP Financier'!$E$16)/('BP Financier'!$C$16+'BP Financier'!$C$19+'BP Financier'!$D$16+'BP Financier'!$D$19+'BP Financier'!$E$16+'BP Financier'!$E$19+'BP Financier'!$C$22+'BP Financier'!$D$22+'BP Financier'!$E$22))*$V4243*AB4243/(1-$W4243)","v":{"v":52053.852966989565,"d":"52,054"}},null,{"v":0.01,"d":"1.00%"},{"$f":"Actif!$E$28/100","v":{"v":0.28900000000000003,"d":"28.90%"}},{"$f":"Actif!$E$30/100","v":{"v":0.09050000000000001,"d":"9.05%"}},{"$f":"Actif!$E$31/100","v":{"v":0.0605,"d":"6.05%"}},{"$f":"Actif!$E$32/100","v":{"v":0.47350000000000003,"d":"47.35%"}},{"$f":"Actif!$E$33/100","v":{"v":0.0585,"d":"5.85%"}},{"$f":"Actif!$E$29/100","v":{"v":0.027999999999999997,"d":"2.80%"}}]
[null,"#143",65,2028,"F","A_VIE",{"v":0.44999999999999996,"d":"0.45"},{"v":0.38999999999999996,"d":"0.39"},0.6,0.6,85,0,{"$f":"ROUND(Primes!$O$4*V4244,0)","v":68},{"$f":"'BP Financier'!$E$33*(('BP Financier'!$C$16+'BP Financier'!$D$16+'BP Financier'!$E$16)/('BP Financier'!$C$16+'BP Financier'!$C$19+'BP Financier'!$D$16+'BP Financier'!$D$19+'BP Financier'!$E$16+'BP Financier'!$E$19))*V4244","v":{"v":2356786.6864833417,"d":"2,356,787"}},{"v":1321796.0521260567,"d":"1,321,796"},{"$f":"'BP Financier'!$E$44*(('BP Financier'!$C$16+'BP Financier'!$D$16+'BP Financier'!$E$16)/('BP Financier'!$C$16+'BP Financier'!$C$19+'BP Financier'!$D$16+'BP Financier'!$D$19+'BP Financier'!$E$16+'BP Financier'!$E$19+'BP Financier'!$C$22+'BP Financier'!$D$22+'BP Financier'!$E$22))*$V4244*X4244/(1-$W4244)","v":{"v":168245.48905401988,"d":"168,245"}},{"$f":"'BP Financier'!$E$44*(('BP Financier'!$C$16+'BP Financier'!$D$16+'BP Financier'!$E$16)/('BP Financier'!$C$16+'BP Financier'!$C$19+'BP Financier'!$D$16+'BP Financier'!$D$19+'BP Financier'!$E$16+'BP Financier'!$E$19+'BP Financier'!$C$22+'BP Financier'!$D$22+'BP Financier'!$E$22))*$V4244*Y4244/(1-$W4244)","v":{"v":112473.50373224531,"d":"112,474"}},{"$f":"'BP Financier'!$E$44*(('BP Financier'!$C$16+'BP Financier'!$D$16+'BP Financier'!$E$16)/('BP Financier'!$C$16+'BP Financier'!$C$19+'BP Financier'!$D$16+'BP Financier'!$D$19+'BP Financier'!$E$16+'BP Financier'!$E$19+'BP Financier'!$C$22+'BP Financier'!$D$22+'BP Financier'!$E$22))*$V4244*Z4244/(1-$W4244)","v":{"v":880267.8349953415,"d":"880,268"}},{"$f":"'BP Financier'!$E$44*(('BP Financier'!$C$16+'BP Financier'!$D$16+'BP Financier'!$E$16)/('BP Financier'!$C$16+'BP Financier'!$C$19+'BP Financier'!$D$16+'BP Financier'!$D$19+'BP Financier'!$E$16+'BP Financier'!$E$19+'BP Financier'!$C$22+'BP Financier'!$D$22+'BP Financier'!$E$22))*$V4244*AA4244/(1-$W4244)","v":{"v":108755.37137746037,"d":"108,755"}},{"$f":"'BP Financier'!$E$44*(('BP Financier'!$C$16+'BP Financier'!$D$16+'BP Financier'!$E$16)/('BP Financier'!$C$16+'BP Financier'!$C$19+'BP Financier'!$D$16+'BP Financier'!$D$19+'BP Financier'!$E$16+'BP Financier'!$E$19+'BP Financier'!$C$22+'BP Financier'!$D$22+'BP Financier'!$E$22))*$V4244*AB4244/(1-$W4244)","v":{"v":52053.852966989565,"d":"52,054"}},null,{"v":0.01,"d":"1.00%"},{"$f":"Actif!$E$28/100","v":{"v":0.28900000000000003,"d":"28.90%"}},{"$f":"Actif!$E$30/100","v":{"v":0.09050000000000001,"d":"9.05%"}},{"$f":"Actif!$E$31/100","v":{"v":0.0605,"d":"6.05%"}},{"$f":"Actif!$E$32/100","v":{"v":0.47350000000000003,"d":"47.35%"}},{"$f":"Actif!$E$33/100","v":{"v":0.0585,"d":"5.85%"}},{"$f":"Actif!$E$29/100","v":{"v":0.027999999999999997,"d":"2.80%"}}]
[null,"#144",65,2029,"F","A_VIE",{"v":0.44999999999999996,"d":"0.45"},{"v":0.38999999999999996,"d":"0.39"},0.6,0.6,85,0,{"$f":"ROUND(Primes!$O$4*V4245,0)","v":68},{"$f":"'BP Financier'!$E$33*(('BP Financier'!$C$16+'BP Financier'!$D$16+'BP Financier'!$E$16)/('BP Financier'!$C$16+'BP Financier'!$C$19+'BP Financier'!$D$16+'BP Financier'!$D$19+'BP Financier'!$E$16+'BP Financier'!$E$19))*V4245","v":{"v":2356786.6864833417,"d":"2,356,787"}},{"v":1321796.0521260567,"d":"1,321,796"},{"$f":"'BP Financier'!$E$44*(('BP Financier'!$C$16+'BP Financier'!$D$16+'BP Financier'!$E$16)/('BP Financier'!$C$16+'BP Financier'!$C$19+'BP Financier'!$D$16+'BP Financier'!$D$19+'BP Financier'!$E$16+'BP Financier'!$E$19+'BP Financier'!$C$22+'BP Financier'!$D$22+'BP Financier'!$E$22))*$V4245*X4245/(1-$W4245)","v":{"v":168245.48905401988,"d":"168,245"}},{"$f":"'BP Financier'!$E$44*(('BP Financier'!$C$16+'BP Financier'!$D$16+'BP Financier'!$E$16)/('BP Financier'!$C$16+'BP Financier'!$C$19+'BP Financier'!$D$16+'BP Financier'!$D$19+'BP Financier'!$E$16+'BP Financier'!$E$19+'BP Financier'!$C$22+'BP Financier'!$D$22+'BP Financier'!$E$22))*$V4245*Y4245/(1-$W4245)","v":{"v":112473.50373224531,"d":"112,474"}},{"$f":"'BP Financier'!$E$44*(('BP Financier'!$C$16+'BP Financier'!$D$16+'BP Financier'!$E$16)/('BP Financier'!$C$16+'BP Financier'!$C$19+'BP Financier'!$D$16+'BP Financier'!$D$19+'BP Financier'!$E$16+'BP Financier'!$E$19+'BP Financier'!$C$22+'BP Financier'!$D$22+'BP Financier'!$E$22))*$V4245*Z4245/(1-$W4245)","v":{"v":880267.8349953415,"d":"880,268"}},{"$f":"'BP Financier'!$E$44*(('BP Financier'!$C$16+'BP Financier'!$D$16+'BP Financier'!$E$16)/('BP Financier'!$C$16+'BP Financier'!$C$19+'BP Financier'!$D$16+'BP Financier'!$D$19+'BP Financier'!$E$16+'BP Financier'!$E$19+'BP Financier'!$C$22+'BP Financier'!$D$22+'BP Financier'!$E$22))*$V4245*AA4245/(1-$W4245)","v":{"v":108755.37137746037,"d":"108,755"}},{"$f":"'BP Financier'!$E$44*(('BP Financier'!$C$16+'BP Financier'!$D$16+'BP Financier'!$E$16)/('BP Financier'!$C$16+'BP Financier'!$C$19+'BP Financier'!$D$16+'BP Financier'!$D$19+'BP Financier'!$E$16+'BP Financier'!$E$19+'BP Financier'!$C$22+'BP Financier'!$D$22+'BP Financier'!$E$22))*$V4245*AB4245/(1-$W4245)","v":{"v":52053.852966989565,"d":"52,054"}},null,{"v":0.01,"d":"1.00%"},{"$f":"Actif!$E$28/100","v":{"v":0.28900000000000003,"d":"28.90%"}},{"$f":"Actif!$E$30/100","v":{"v":0.09050000000000001,"d":"9.05%"}},{"$f":"Actif!$E$31/100","v":{"v":0.0605,"d":"6.05%"}},{"$f":"Actif!$E$32/100","v":{"v":0.47350000000000003,"d":"47.35%"}},{"$f":"Actif!$E$33/100","v":{"v":0.0585,"d":"5.85%"}},{"$f":"Actif!$E$29/100","v":{"v":0.027999999999999997,"d":"2.80%"}}]
[null,"#145",70,2026,"H","A_VIE",{"v":0.44999999999999996,"d":"0.45"},{"v":0.38999999999999996,"d":"0.39"},0.6,0.6,85,0,{"$f":"ROUND(Primes!$O$4*V4246,0)","v":11},{"$f":"'BP Financier'!$E$33*(('BP Financier'!$C$16+'BP Financier'!$D$16+'BP Financier'!$E$16)/('BP Financier'!$C$16+'BP Financier'!$C$19+'BP Financier'!$D$16+'BP Financier'!$D$19+'BP Financier'!$E$16+'BP Financier'!$E$19))*V4246","v":{"v":392797.7810805569,"d":"392,798"}},{"v":220299.34202100948,"d":"220,299"},{"$f":"'BP Financier'!$E$44*(('BP Financier'!$C$16+'BP Financier'!$D$16+'BP Financier'!$E$16)/('BP Financier'!$C$16+'BP Financier'!$C$19+'BP Financier'!$D$16+'BP Financier'!$D$19+'BP Financier'!$E$16+'BP Financier'!$E$19+'BP Financier'!$C$22+'BP Financier'!$D$22+'BP Financier'!$E$22))*$V4246*X4246/(1-$W4246)","v":{"v":28040.91484233665,"d":"28,041"}},{"$f":"'BP Financier'!$E$44*(('BP Financier'!$C$16+'BP Financier'!$D$16+'BP Financier'!$E$16)/('BP Financier'!$C$16+'BP Financier'!$C$19+'BP Financier'!$D$16+'BP Financier'!$D$19+'BP Financier'!$E$16+'BP Financier'!$E$19+'BP Financier'!$C$22+'BP Financier'!$D$22+'BP Financier'!$E$22))*$V4246*Y4246/(1-$W4246)","v":{"v":18745.583955374223,"d":"18,746"}},{"$f":"'BP Financier'!$E$44*(('BP Financier'!$C$16+'BP Financier'!$D$16+'BP Financier'!$E$16)/('BP Financier'!$C$16+'BP Financier'!$C$19+'BP Financier'!$D$16+'BP Financier'!$D$19+'BP Financier'!$E$16+'BP Financier'!$E$19+'BP Financier'!$C$22+'BP Financier'!$D$22+'BP Financier'!$E$22))*$V4246*Z4246/(1-$W4246)","v":{"v":146711.30583255694,"d":"146,711"}},{"$f":"'BP Financier'!$E$44*(('BP Financier'!$C$16+'BP Financier'!$D$16+'BP Financier'!$E$16)/('BP Financier'!$C$16+'BP Financier'!$C$19+'BP Financier'!$D$16+'BP Financier'!$D$19+'BP Financier'!$E$16+'BP Financier'!$E$19+'BP Financier'!$C$22+'BP Financier'!$D$22+'BP Financier'!$E$22))*$V4246*AA4246/(1-$W4246)","v":{"v":18125.89522957673,"d":"18,126"}},{"$f":"'BP Financier'!$E$44*(('BP Financier'!$C$16+'BP Financier'!$D$16+'BP Financier'!$E$16)/('BP Financier'!$C$16+'BP Financier'!$C$19+'BP Financier'!$D$16+'BP Financier'!$D$19+'BP Financier'!$E$16+'BP Financier'!$E$19+'BP Financier'!$C$22+'BP Financier'!$D$22+'BP Financier'!$E$22))*$V4246*AB4246/(1-$W4246)","v":{"v":8675.642161164928,"d":"8,676"}},null,{"v":1.6666666666666668E-3,"d":"0.17%"},{"$f":"Actif!$E$28/100","v":{"v":0.28900000000000003,"d":"28.90%"}},{"$f":"Actif!$E$30/100","v":{"v":0.09050000000000001,"d":"9.05%"}},{"$f":"Actif!$E$31/100","v":{"v":0.0605,"d":"6.05%"}},{"$f":"Actif!$E$32/100","v":{"v":0.47350000000000003,"d":"47.35%"}},{"$f":"Actif!$E$33/100","v":{"v":0.0585,"d":"5.85%"}},{"$f":"Actif!$E$29/100","v":{"v":0.027999999999999997,"d":"2.80%"}}]
[null,"#146",70,2028,"H","A_VIE",{"v":0.44999999999999996,"d":"0.45"},{"v":0.38999999999999996,"d":"0.39"},0.6,0.6,85,0,{"$f":"ROUND(Primes!$O$4*V4247,0)","v":11},{"$f":"'BP Financier'!$E$33*(('BP Financier'!$C$16+'BP Financier'!$D$16+'BP Financier'!$E$16)/('BP Financier'!$C$16+'BP Financier'!$C$19+'BP Financier'!$D$16+'BP Financier'!$D$19+'BP Financier'!$E$16+'BP Financier'!$E$19))*V4247","v":{"v":392797.7810805569,"d":"392,798"}},{"v":220299.34202100948,"d":"220,299"},{"$f":"'BP Financier'!$E$44*(('BP Financier'!$C$16+'BP Financier'!$D$16+'BP Financier'!$E$16)/('BP Financier'!$C$16+'BP Financier'!$C$19+'BP Financier'!$D$16+'BP Financier'!$D$19+'BP Financier'!$E$16+'BP Financier'!$E$19+'BP Financier'!$C$22+'BP Financier'!$D$22+'BP Financier'!$E$22))*$V4247*X4247/(1-$W4247)","v":{"v":28040.91484233665,"d":"28,041"}},{"$f":"'BP Financier'!$E$44*(('BP Financier'!$C$16+'BP Financier'!$D$16+'BP Financier'!$E$16)/('BP Financier'!$C$16+'BP Financier'!$C$19+'BP Financier'!$D$16+'BP Financier'!$D$19+'BP Financier'!$E$16+'BP Financier'!$E$19+'BP Financier'!$C$22+'BP Financier'!$D$22+'BP Financier'!$E$22))*$V4247*Y4247/(1-$W4247)","v":{"v":18745.583955374223,"d":"18,746"}},{"$f":"'BP Financier'!$E$44*(('BP Financier'!$C$16+'BP Financier'!$D$16+'BP Financier'!$E$16)/('BP Financier'!$C$16+'BP Financier'!$C$19+'BP Financier'!$D$16+'BP Financier'!$D$19+'BP Financier'!$E$16+'BP Financier'!$E$19+'BP Financier'!$C$22+'BP Financier'!$D$22+'BP Financier'!$E$22))*$V4247*Z4247/(1-$W4247)","v":{"v":146711.30583255694,"d":"146,711"}},{"$f":"'BP Financier'!$E$44*(('BP Financier'!$C$16+'BP Financier'!$D$16+'BP Financier'!$E$16)/('BP Financier'!$C$16+'BP Financier'!$C$19+'BP Financier'!$D$16+'BP Financier'!$D$19+'BP Financier'!$E$16+'BP Financier'!$E$19+'BP Financier'!$C$22+'BP Financier'!$D$22+'BP Financier'!$E$22))*$V4247*AA4247/(1-$W4247)","v":{"v":18125.89522957673,"d":"18,126"}},{"$f":"'BP Financier'!$E$44*(('BP Financier'!$C$16+'BP Financier'!$D$16+'BP Financier'!$E$16)/('BP Financier'!$C$16+'BP Financier'!$C$19+'BP Financier'!$D$16+'BP Financier'!$D$19+'BP Financier'!$E$16+'BP Financier'!$E$19+'BP Financier'!$C$22+'BP Financier'!$D$22+'BP Financier'!$E$22))*$V4247*AB4247/(1-$W4247)","v":{"v":8675.642161164928,"d":"8,676"}},null,{"v":1.6666666666666668E-3,"d":"0.17%"},{"$f":"Actif!$E$28/100","v":{"v":0.28900000000000003,"d":"28.90%"}},{"$f":"Actif!$E$30/100","v":{"v":0.09050000000000001,"d":"9.05%"}},{"$f":"Actif!$E$31/100","v":{"v":0.0605,"d":"6.05%"}},{"$f":"Actif!$E$32/100","v":{"v":0.47350000000000003,"d":"47.35%"}},{"$f":"Actif!$E$33/100","v":{"v":0.0585,"d":"5.85%"}},{"$f":"Actif!$E$29/100","v":{"v":0.027999999999999997,"d":"2.80%"}}]
[null,"#147",70,2029,"H","A_VIE",{"v":0.44999999999999996,"d":"0.45"},{"v":0.38999999999999996,"d":"0.39"},0.6,0.6,85,0,{"$f":"ROUND(Primes!$O$4*V4248,0)","v":11},{"$f":"'BP Financier'!$E$33*(('BP Financier'!$C$16+'BP Financier'!$D$16+'BP Financier'!$E$16)/('BP Financier'!$C$16+'BP Financier'!$C$19+'BP Financier'!$D$16+'BP Financier'!$D$19+'BP Financier'!$E$16+'BP Financier'!$E$19))*V4248","v":{"v":392797.7810805569,"d":"392,798"}},{"v":220299.34202100948,"d":"220,299"},{"$f":"'BP Financier'!$E$44*(('BP Financier'!$C$16+'BP Financier'!$D$16+'BP Financier'!$E$16)/('BP Financier'!$C$16+'BP Financier'!$C$19+'BP Financier'!$D$16+'BP Financier'!$D$19+'BP Financier'!$E$16+'BP Financier'!$E$19+'BP Financier'!$C$22+'BP Financier'!$D$22+'BP Financier'!$E$22))*$V4248*X4248/(1-$W4248)","v":{"v":28040.91484233665,"d":"28,041"}},{"$f":"'BP Financier'!$E$44*(('BP Financier'!$C$16+'BP Financier'!$D$16+'BP Financier'!$E$16)/('BP Financier'!$C$16+'BP Financier'!$C$19+'BP Financier'!$D$16+'BP Financier'!$D$19+'BP Financier'!$E$16+'BP Financier'!$E$19+'BP Financier'!$C$22+'BP Financier'!$D$22+'BP Financier'!$E$22))*$V4248*Y4248/(1-$W4248)","v":{"v":18745.583955374223,"d":"18,746"}},{"$f":"'BP Financier'!$E$44*(('BP Financier'!$C$16+'BP Financier'!$D$16+'BP Financier'!$E$16)/('BP Financier'!$C$16+'BP Financier'!$C$19+'BP Financier'!$D$16+'BP Financier'!$D$19+'BP Financier'!$E$16+'BP Financier'!$E$19+'BP Financier'!$C$22+'BP Financier'!$D$22+'BP Financier'!$E$22))*$V4248*Z4248/(1-$W4248)","v":{"v":146711.30583255694,"d":"146,711"}},{"$f":"'BP Financier'!$E$44*(('BP Financier'!$C$16+'BP Financier'!$D$16+'BP Financier'!$E$16)/('BP Financier'!$C$16+'BP Financier'!$C$19+'BP Financier'!$D$16+'BP Financier'!$D$19+'BP Financier'!$E$16+'BP Financier'!$E$19+'BP Financier'!$C$22+'BP Financier'!$D$22+'BP Financier'!$E$22))*$V4248*AA4248/(1-$W4248)","v":{"v":18125.89522957673,"d":"18,126"}},{"$f":"'BP Financier'!$E$44*(('BP Financier'!$C$16+'BP Financier'!$D$16+'BP Financier'!$E$16)/('BP Financier'!$C$16+'BP Financier'!$C$19+'BP Financier'!$D$16+'BP Financier'!$D$19+'BP Financier'!$E$16+'BP Financier'!$E$19+'BP Financier'!$C$22+'BP Financier'!$D$22+'BP Financier'!$E$22))*$V4248*AB4248/(1-$W4248)","v":{"v":8675.642161164928,"d":"8,676"}},null,{"v":1.6666666666666668E-3,"d":"0.17%"},{"$f":"Actif!$E$28/100","v":{"v":0.28900000000000003,"d":"28.90%"}},{"$f":"Actif!$E$30/100","v":{"v":0.09050000000000001,"d":"9.05%"}},{"$f":"Actif!$E$31/100","v":{"v":0.0605,"d":"6.05%"}},{"$f":"Actif!$E$32/100","v":{"v":0.47350000000000003,"d":"47.35%"}},{"$f":"Actif!$E$33/100","v":{"v":0.0585,"d":"5.85%"}},{"$f":"Actif!$E$29/100","v":{"v":0.027999999999999997,"d":"2.80%"}}]
[null,"#148",75,2026,"H","A_VIE",{"v":0.44999999999999996,"d":"0.45"},{"v":0.38999999999999996,"d":"0.39"},0.6,0.6,85,0,{"$f":"ROUND(Primes!$O$4*V4249,0)","v":11},{"$f":"'BP Financier'!$E$33*(('BP Financier'!$C$16+'BP Financier'!$D$16+'BP Financier'!$E$16)/('BP Financier'!$C$16+'BP Financier'!$C$19+'BP Financier'!$D$16+'BP Financier'!$D$19+'BP Financier'!$E$16+'BP Financier'!$E$19))*V4249","v":{"v":392797.7810805569,"d":"392,798"}},{"v":220299.34202100948,"d":"220,299"},{"$f":"'BP Financier'!$E$44*(('BP Financier'!$C$16+'BP Financier'!$D$16+'BP Financier'!$E$16)/('BP Financier'!$C$16+'BP Financier'!$C$19+'BP Financier'!$D$16+'BP Financier'!$D$19+'BP Financier'!$E$16+'BP Financier'!$E$19+'BP Financier'!$C$22+'BP Financier'!$D$22+'BP Financier'!$E$22))*$V4249*X4249/(1-$W4249)","v":{"v":28040.91484233665,"d":"28,041"}},{"$f":"'BP Financier'!$E$44*(('BP Financier'!$C$16+'BP Financier'!$D$16+'BP Financier'!$E$16)/('BP Financier'!$C$16+'BP Financier'!$C$19+'BP Financier'!$D$16+'BP Financier'!$D$19+'BP Financier'!$E$16+'BP Financier'!$E$19+'BP Financier'!$C$22+'BP Financier'!$D$22+'BP Financier'!$E$22))*$V4249*Y4249/(1-$W4249)","v":{"v":18745.583955374223,"d":"18,746"}},{"$f":"'BP Financier'!$E$44*(('BP Financier'!$C$16+'BP Financier'!$D$16+'BP Financier'!$E$16)/('BP Financier'!$C$16+'BP Financier'!$C$19+'BP Financier'!$D$16+'BP Financier'!$D$19+'BP Financier'!$E$16+'BP Financier'!$E$19+'BP Financier'!$C$22+'BP Financier'!$D$22+'BP Financier'!$E$22))*$V4249*Z4249/(1-$W4249)","v":{"v":146711.30583255694,"d":"146,711"}},{"$f":"'BP Financier'!$E$44*(('BP Financier'!$C$16+'BP Financier'!$D$16+'BP Financier'!$E$16)/('BP Financier'!$C$16+'BP Financier'!$C$19+'BP Financier'!$D$16+'BP Financier'!$D$19+'BP Financier'!$E$16+'BP Financier'!$E$19+'BP Financier'!$C$22+'BP Financier'!$D$22+'BP Financier'!$E$22))*$V4249*AA4249/(1-$W4249)","v":{"v":18125.89522957673,"d":"18,126"}},{"$f":"'BP Financier'!$E$44*(('BP Financier'!$C$16+'BP Financier'!$D$16+'BP Financier'!$E$16)/('BP Financier'!$C$16+'BP Financier'!$C$19+'BP Financier'!$D$16+'BP Financier'!$D$19+'BP Financier'!$E$16+'BP Financier'!$E$19+'BP Financier'!$C$22+'BP Financier'!$D$22+'BP Financier'!$E$22))*$V4249*AB4249/(1-$W4249)","v":{"v":8675.642161164928,"d":"8,676"}},null,{"v":1.6666666666666668E-3,"d":"0.17%"},{"$f":"Actif!$E$28/100","v":{"v":0.28900000000000003,"d":"28.90%"}},{"$f":"Actif!$E$30/100","v":{"v":0.09050000000000001,"d":"9.05%"}},{"$f":"Actif!$E$31/100","v":{"v":0.0605,"d":"6.05%"}},{"$f":"Actif!$E$32/100","v":{"v":0.47350000000000003,"d":"47.35%"}},{"$f":"Actif!$E$33/100","v":{"v":0.0585,"d":"5.85%"}},{"$f":"Actif!$E$29/100","v":{"v":0.027999999999999997,"d":"2.80%"}}]
[null,"#149",75,2028,"H","A_VIE",{"v":0.44999999999999996,"d":"0.45"},{"v":0.38999999999999996,"d":"0.39"},0.6,0.6,85,0,{"$f":"ROUND(Primes!$O$4*V4250,0)","v":11},{"$f":"'BP Financier'!$E$33*(('BP Financier'!$C$16+'BP Financier'!$D$16+'BP Financier'!$E$16)/('BP Financier'!$C$16+'BP Financier'!$C$19+'BP Financier'!$D$16+'BP Financier'!$D$19+'BP Financier'!$E$16+'BP Financier'!$E$19))*V4250","v":{"v":392797.7810805569,"d":"392,798"}},{"v":220299.34202100948,"d":"220,299"},{"$f":"'BP Financier'!$E$44*(('BP Financier'!$C$16+'BP Financier'!$D$16+'BP Financier'!$E$16)/('BP Financier'!$C$16+'BP Financier'!$C$19+'BP Financier'!$D$16+'BP Financier'!$D$19+'BP Financier'!$E$16+'BP Financier'!$E$19+'BP Financier'!$C$22+'BP Financier'!$D$22+'BP Financier'!$E$22))*$V4250*X4250/(1-$W4250)","v":{"v":28040.91484233665,"d":"28,041"}},{"$f":"'BP Financier'!$E$44*(('BP Financier'!$C$16+'BP Financier'!$D$16+'BP Financier'!$E$16)/('BP Financier'!$C$16+'BP Financier'!$C$19+'BP Financier'!$D$16+'BP Financier'!$D$19+'BP Financier'!$E$16+'BP Financier'!$E$19+'BP Financier'!$C$22+'BP Financier'!$D$22+'BP Financier'!$E$22))*$V4250*Y4250/(1-$W4250)","v":{"v":18745.583955374223,"d":"18,746"}},{"$f":"'BP Financier'!$E$44*(('BP Financier'!$C$16+'BP Financier'!$D$16+'BP Financier'!$E$16)/('BP Financier'!$C$16+'BP Financier'!$C$19+'BP Financier'!$D$16+'BP Financier'!$D$19+'BP Financier'!$E$16+'BP Financier'!$E$19+'BP Financier'!$C$22+'BP Financier'!$D$22+'BP Financier'!$E$22))*$V4250*Z4250/(1-$W4250)","v":{"v":146711.30583255694,"d":"146,711"}},{"$f":"'BP Financier'!$E$44*(('BP Financier'!$C$16+'BP Financier'!$D$16+'BP Financier'!$E$16)/('BP Financier'!$C$16+'BP Financier'!$C$19+'BP Financier'!$D$16+'BP Financier'!$D$19+'BP Financier'!$E$16+'BP Financier'!$E$19+'BP Financier'!$C$22+'BP Financier'!$D$22+'BP Financier'!$E$22))*$V4250*AA4250/(1-$W4250)","v":{"v":18125.89522957673,"d":"18,126"}},{"$f":"'BP Financier'!$E$44*(('BP Financier'!$C$16+'BP Financier'!$D$16+'BP Financier'!$E$16)/('BP Financier'!$C$16+'BP Financier'!$C$19+'BP Financier'!$D$16+'BP Financier'!$D$19+'BP Financier'!$E$16+'BP Financier'!$E$19+'BP Financier'!$C$22+'BP Financier'!$D$22+'BP Financier'!$E$22))*$V4250*AB4250/(1-$W4250)","v":{"v":8675.642161164928,"d":"8,676"}},null,{"v":1.6666666666666668E-3,"d":"0.17%"},{"$f":"Actif!$E$28/100","v":{"v":0.28900000000000003,"d":"28.90%"}},{"$f":"Actif!$E$30/100","v":{"v":0.09050000000000001,"d":"9.05%"}},{"$f":"Actif!$E$31/100","v":{"v":0.0605,"d":"6.05%"}},{"$f":"Actif!$E$32/100","v":{"v":0.47350000000000003,"d":"47.35%"}},{"$f":"Actif!$E$33/100","v":{"v":0.0585,"d":"5.85%"}},{"$f":"Actif!$E$29/100","v":{"v":0.027999999999999997,"d":"2.80%"}}]
[null,"#150",75,2029,"H","A_VIE",{"v":0.44999999999999996,"d":"0.45"},{"v":0.38999999999999996,"d":"0.39"},0.6,0.6,85,0,{"$f":"ROUND(Primes!$O$4*V4251,0)","v":11},{"$f":"'BP Financier'!$E$33*(('BP Financier'!$C$16+'BP Financier'!$D$16+'BP Financier'!$E$16)/('BP Financier'!$C$16+'BP Financier'!$C$19+'BP Financier'!$D$16+'BP Financier'!$D$19+'BP Financier'!$E$16+'BP Financier'!$E$19))*V4251","v":{"v":392797.7810805569,"d":"392,798"}},{"v":220299.34202100948,"d":"220,299"},{"$f":"'BP Financier'!$E$44*(('BP Financier'!$C$16+'BP Financier'!$D$16+'BP Financier'!$E$16)/('BP Financier'!$C$16+'BP Financier'!$C$19+'BP Financier'!$D$16+'BP Financier'!$D$19+'BP Financier'!$E$16+'BP Financier'!$E$19+'BP Financier'!$C$22+'BP Financier'!$D$22+'BP Financier'!$E$22))*$V4251*X4251/(1-$W4251)","v":{"v":28040.91484233665,"d":"28,041"}},{"$f":"'BP Financier'!$E$44*(('BP Financier'!$C$16+'BP Financier'!$D$16+'BP Financier'!$E$16)/('BP Financier'!$C$16+'BP Financier'!$C$19+'BP Financier'!$D$16+'BP Financier'!$D$19+'BP Financier'!$E$16+'BP Financier'!$E$19+'BP Financier'!$C$22+'BP Financier'!$D$22+'BP Financier'!$E$22))*$V4251*Y4251/(1-$W4251)","v":{"v":18745.583955374223,"d":"18,746"}},{"$f":"'BP Financier'!$E$44*(('BP Financier'!$C$16+'BP Financier'!$D$16+'BP Financier'!$E$16)/('BP Financier'!$C$16+'BP Financier'!$C$19+'BP Financier'!$D$16+'BP Financier'!$D$19+'BP Financier'!$E$16+'BP Financier'!$E$19+'BP Financier'!$C$22+'BP Financier'!$D$22+'BP Financier'!$E$22))*$V4251*Z4251/(1-$W4251)","v":{"v":146711.30583255694,"d":"146,711"}},{"$f":"'BP Financier'!$E$44*(('BP Financier'!$C$16+'BP Financier'!$D$16+'BP Financier'!$E$16)/('BP Financier'!$C$16+'BP Financier'!$C$19+'BP Financier'!$D$16+'BP Financier'!$D$19+'BP Financier'!$E$16+'BP Financier'!$E$19+'BP Financier'!$C$22+'BP Financier'!$D$22+'BP Financier'!$E$22))*$V4251*AA4251/(1-$W4251)","v":{"v":18125.89522957673,"d":"18,126"}},{"$f":"'BP Financier'!$E$44*(('BP Financier'!$C$16+'BP Financier'!$D$16+'BP Financier'!$E$16)/('BP Financier'!$C$16+'BP Financier'!$C$19+'BP Financier'!$D$16+'BP Financier'!$D$19+'BP Financier'!$E$16+'BP Financier'!$E$19+'BP Financier'!$C$22+'BP Financier'!$D$22+'BP Financier'!$E$22))*$V4251*AB4251/(1-$W4251)","v":{"v":8675.642161164928,"d":"8,676"}},null,{"v":1.6666666666666668E-3,"d":"0.17%"},{"$f":"Actif!$E$28/100","v":{"v":0.28900000000000003,"d":"28.90%"}},{"$f":"Actif!$E$30/100","v":{"v":0.09050000000000001,"d":"9.05%"}},{"$f":"Actif!$E$31/100","v":{"v":0.0605,"d":"6.05%"}},{"$f":"Actif!$E$32/100","v":{"v":0.47350000000000003,"d":"47.35%"}},{"$f":"Actif!$E$33/100","v":{"v":0.0585,"d":"5.85%"}},{"$f":"Actif!$E$29/100","v":{"v":0.027999999999999997,"d":"2.80%"}}]
[null,"#151",80,2026,"F","A_VIE",{"v":0.44999999999999996,"d":"0.45"},{"v":0.38999999999999996,"d":"0.39"},0.6,0.6,85,0,{"$f":"ROUND(Primes!$O$4*V4252,0)","v":11},{"$f":"'BP Financier'!$E$33*(('BP Financier'!$C$16+'BP Financier'!$D$16+'BP Financier'!$E$16)/('BP Financier'!$C$16+'BP Financier'!$C$19+'BP Financier'!$D$16+'BP Financier'!$D$19+'BP Financier'!$E$16+'BP Financier'!$E$19))*V4252","v":{"v":392797.7810805569,"d":"392,798"}},{"v":220299.34202100948,"d":"220,299"},{"$f":"'BP Financier'!$E$44*(('BP Financier'!$C$16+'BP Financier'!$D$16+'BP Financier'!$E$16)/('BP Financier'!$C$16+'BP Financier'!$C$19+'BP Financier'!$D$16+'BP Financier'!$D$19+'BP Financier'!$E$16+'BP Financier'!$E$19+'BP Financier'!$C$22+'BP Financier'!$D$22+'BP Financier'!$E$22))*$V4252*X4252/(1-$W4252)","v":{"v":28040.91484233665,"d":"28,041"}},{"$f":"'BP Financier'!$E$44*(('BP Financier'!$C$16+'BP Financier'!$D$16+'BP Financier'!$E$16)/('BP Financier'!$C$16+'BP Financier'!$C$19+'BP Financier'!$D$16+'BP Financier'!$D$19+'BP Financier'!$E$16+'BP Financier'!$E$19+'BP Financier'!$C$22+'BP Financier'!$D$22+'BP Financier'!$E$22))*$V4252*Y4252/(1-$W4252)","v":{"v":18745.583955374223,"d":"18,746"}},{"$f":"'BP Financier'!$E$44*(('BP Financier'!$C$16+'BP Financier'!$D$16+'BP Financier'!$E$16)/('BP Financier'!$C$16+'BP Financier'!$C$19+'BP Financier'!$D$16+'BP Financier'!$D$19+'BP Financier'!$E$16+'BP Financier'!$E$19+'BP Financier'!$C$22+'BP Financier'!$D$22+'BP Financier'!$E$22))*$V4252*Z4252/(1-$W4252)","v":{"v":146711.30583255694,"d":"146,711"}},{"$f":"'BP Financier'!$E$44*(('BP Financier'!$C$16+'BP Financier'!$D$16+'BP Financier'!$E$16)/('BP Financier'!$C$16+'BP Financier'!$C$19+'BP Financier'!$D$16+'BP Financier'!$D$19+'BP Financier'!$E$16+'BP Financier'!$E$19+'BP Financier'!$C$22+'BP Financier'!$D$22+'BP Financier'!$E$22))*$V4252*AA4252/(1-$W4252)","v":{"v":18125.89522957673,"d":"18,126"}},{"$f":"'BP Financier'!$E$44*(('BP Financier'!$C$16+'BP Financier'!$D$16+'BP Financier'!$E$16)/('BP Financier'!$C$16+'BP Financier'!$C$19+'BP Financier'!$D$16+'BP Financier'!$D$19+'BP Financier'!$E$16+'BP Financier'!$E$19+'BP Financier'!$C$22+'BP Financier'!$D$22+'BP Financier'!$E$22))*$V4252*AB4252/(1-$W4252)","v":{"v":8675.642161164928,"d":"8,676"}},null,{"v":1.6666666666666668E-3,"d":"0.17%"},{"$f":"Actif!$E$28/100","v":{"v":0.28900000000000003,"d":"28.90%"}},{"$f":"Actif!$E$30/100","v":{"v":0.09050000000000001,"d":"9.05%"}},{"$f":"Actif!$E$31/100","v":{"v":0.0605,"d":"6.05%"}},{"$f":"Actif!$E$32/100","v":{"v":0.47350000000000003,"d":"47.35%"}},{"$f":"Actif!$E$33/100","v":{"v":0.0585,"d":"5.85%"}},{"$f":"Actif!$E$29/100","v":{"v":0.027999999999999997,"d":"2.80%"}}]
[null,"#152",80,2028,"F","A_VIE",{"v":0.44999999999999996,"d":"0.45"},{"v":0.38999999999999996,"d":"0.39"},0.6,0.6,85,0,{"$f":"ROUND(Primes!$O$4*V4253,0)","v":11},{"$f":"'BP Financier'!$E$33*(('BP Financier'!$C$16+'BP Financier'!$D$16+'BP Financier'!$E$16)/('BP Financier'!$C$16+'BP Financier'!$C$19+'BP Financier'!$D$16+'BP Financier'!$D$19+'BP Financier'!$E$16+'BP Financier'!$E$19))*V4253","v":{"v":392797.7810805569,"d":"392,798"}},{"v":220299.34202100948,"d":"220,299"},{"$f":"'BP Financier'!$E$44*(('BP Financier'!$C$16+'BP Financier'!$D$16+'BP Financier'!$E$16)/('BP Financier'!$C$16+'BP Financier'!$C$19+'BP Financier'!$D$16+'BP Financier'!$D$19+'BP Financier'!$E$16+'BP Financier'!$E$19+'BP Financier'!$C$22+'BP Financier'!$D$22+'BP Financier'!$E$22))*$V4253*X4253/(1-$W4253)","v":{"v":28040.91484233665,"d":"28,041"}},{"$f":"'BP Financier'!$E$44*(('BP Financier'!$C$16+'BP Financier'!$D$16+'BP Financier'!$E$16)/('BP Financier'!$C$16+'BP Financier'!$C$19+'BP Financier'!$D$16+'BP Financier'!$D$19+'BP Financier'!$E$16+'BP Financier'!$E$19+'BP Financier'!$C$22+'BP Financier'!$D$22+'BP Financier'!$E$22))*$V4253*Y4253/(1-$W4253)","v":{"v":18745.583955374223,"d":"18,746"}},{"$f":"'BP Financier'!$E$44*(('BP Financier'!$C$16+'BP Financier'!$D$16+'BP Financier'!$E$16)/('BP Financier'!$C$16+'BP Financier'!$C$19+'BP Financier'!$D$16+'BP Financier'!$D$19+'BP Financier'!$E$16+'BP Financier'!$E$19+'BP Financier'!$C$22+'BP Financier'!$D$22+'BP Financier'!$E$22))*$V4253*Z4253/(1-$W4253)","v":{"v":146711.30583255694,"d":"146,711"}},{"$f":"'BP Financier'!$E$44*(('BP Financier'!$C$16+'BP Financier'!$D$16+'BP Financier'!$E$16)/('BP Financier'!$C$16+'BP Financier'!$C$19+'BP Financier'!$D$16+'BP Financier'!$D$19+'BP Financier'!$E$16+'BP Financier'!$E$19+'BP Financier'!$C$22+'BP Financier'!$D$22+'BP Financier'!$E$22))*$V4253*AA4253/(1-$W4253)","v":{"v":18125.89522957673,"d":"18,126"}},{"$f":"'BP Financier'!$E$44*(('BP Financier'!$C$16+'BP Financier'!$D$16+'BP Financier'!$E$16)/('BP Financier'!$C$16+'BP Financier'!$C$19+'BP Financier'!$D$16+'BP Financier'!$D$19+'BP Financier'!$E$16+'BP Financier'!$E$19+'BP Financier'!$C$22+'BP Financier'!$D$22+'BP Financier'!$E$22))*$V4253*AB4253/(1-$W4253)","v":{"v":8675.642161164928,"d":"8,676"}},null,{"v":1.6666666666666668E-3,"d":"0.17%"},{"$f":"Actif!$E$28/100","v":{"v":0.28900000000000003,"d":"28.90%"}},{"$f":"Actif!$E$30/100","v":{"v":0.09050000000000001,"d":"9.05%"}},{"$f":"Actif!$E$31/100","v":{"v":0.0605,"d":"6.05%"}},{"$f":"Actif!$E$32/100","v":{"v":0.47350000000000003,"d":"47.35%"}},{"$f":"Actif!$E$33/100","v":{"v":0.0585,"d":"5.85%"}},{"$f":"Actif!$E$29/100","v":{"v":0.027999999999999997,"d":"2.80%"}}]
[null,"#153",80,2029,"F","A_VIE",{"v":0.44999999999999996,"d":"0.45"},{"v":0.38999999999999996,"d":"0.39"},0.6,0.6,85,0,{"$f":"ROUND(Primes!$O$4*V4254,0)","v":11},{"$f":"'BP Financier'!$E$33*(('BP Financier'!$C$16+'BP Financier'!$D$16+'BP Financier'!$E$16)/('BP Financier'!$C$16+'BP Financier'!$C$19+'BP Financier'!$D$16+'BP Financier'!$D$19+'BP Financier'!$E$16+'BP Financier'!$E$19))*V4254","v":{"v":392797.7810805569,"d":"392,798"}},{"v":220299.34202100948,"d":"220,299"},{"$f":"'BP Financier'!$E$44*(('BP Financier'!$C$16+'BP Financier'!$D$16+'BP Financier'!$E$16)/('BP Financier'!$C$16+'BP Financier'!$C$19+'BP Financier'!$D$16+'BP Financier'!$D$19+'BP Financier'!$E$16+'BP Financier'!$E$19+'BP Financier'!$C$22+'BP Financier'!$D$22+'BP Financier'!$E$22))*$V4254*X4254/(1-$W4254)","v":{"v":28040.91484233665,"d":"28,041"}},{"$f":"'BP Financier'!$E$44*(('BP Financier'!$C$16+'BP Financier'!$D$16+'BP Financier'!$E$16)/('BP Financier'!$C$16+'BP Financier'!$C$19+'BP Financier'!$D$16+'BP Financier'!$D$19+'BP Financier'!$E$16+'BP Financier'!$E$19+'BP Financier'!$C$22+'BP Financier'!$D$22+'BP Financier'!$E$22))*$V4254*Y4254/(1-$W4254)","v":{"v":18745.583955374223,"d":"18,746"}},{"$f":"'BP Financier'!$E$44*(('BP Financier'!$C$16+'BP Financier'!$D$16+'BP Financier'!$E$16)/('BP Financier'!$C$16+'BP Financier'!$C$19+'BP Financier'!$D$16+'BP Financier'!$D$19+'BP Financier'!$E$16+'BP Financier'!$E$19+'BP Financier'!$C$22+'BP Financier'!$D$22+'BP Financier'!$E$22))*$V4254*Z4254/(1-$W4254)","v":{"v":146711.30583255694,"d":"146,711"}},{"$f":"'BP Financier'!$E$44*(('BP Financier'!$C$16+'BP Financier'!$D$16+'BP Financier'!$E$16)/('BP Financier'!$C$16+'BP Financier'!$C$19+'BP Financier'!$D$16+'BP Financier'!$D$19+'BP Financier'!$E$16+'BP Financier'!$E$19+'BP Financier'!$C$22+'BP Financier'!$D$22+'BP Financier'!$E$22))*$V4254*AA4254/(1-$W4254)","v":{"v":18125.89522957673,"d":"18,126"}},{"$f":"'BP Financier'!$E$44*(('BP Financier'!$C$16+'BP Financier'!$D$16+'BP Financier'!$E$16)/('BP Financier'!$C$16+'BP Financier'!$C$19+'BP Financier'!$D$16+'BP Financier'!$D$19+'BP Financier'!$E$16+'BP Financier'!$E$19+'BP Financier'!$C$22+'BP Financier'!$D$22+'BP Financier'!$E$22))*$V4254*AB4254/(1-$W4254)","v":{"v":8675.642161164928,"d":"8,676"}},null,{"v":1.6666666666666668E-3,"d":"0.17%"},{"$f":"Actif!$E$28/100","v":{"v":0.28900000000000003,"d":"28.90%"}},{"$f":"Actif!$E$30/100","v":{"v":0.09050000000000001,"d":"9.05%"}},{"$f":"Actif!$E$31/100","v":{"v":0.0605,"d":"6.05%"}},{"$f":"Actif!$E$32/100","v":{"v":0.47350000000000003,"d":"47.35%"}},{"$f":"Actif!$E$33/100","v":{"v":0.0585,"d":"5.85%"}},{"$f":"Actif!$E$29/100","v":{"v":0.027999999999999997,"d":"2.80%"}}]
[null,"#154",85,2026,"H","A_VIE",{"v":0.44999999999999996,"d":"0.45"},{"v":0.38999999999999996,"d":"0.39"},0.6,0.6,85,0,{"$f":"ROUND(Primes!$O$4*V4255,0)","v":6},{"$f":"'BP Financier'!$E$33*(('BP Financier'!$C$16+'BP Financier'!$D$16+'BP Financier'!$E$16)/('BP Financier'!$C$16+'BP Financier'!$C$19+'BP Financier'!$D$16+'BP Financier'!$D$19+'BP Financier'!$E$16+'BP Financier'!$E$19))*V4255","v":{"v":196398.89054027846,"d":"196,399"}},{"v":110149.67101050474,"d":"110,150"},{"$f":"'BP Financier'!$E$44*(('BP Financier'!$C$16+'BP Financier'!$D$16+'BP Financier'!$E$16)/('BP Financier'!$C$16+'BP Financier'!$C$19+'BP Financier'!$D$16+'BP Financier'!$D$19+'BP Financier'!$E$16+'BP Financier'!$E$19+'BP Financier'!$C$22+'BP Financier'!$D$22+'BP Financier'!$E$22))*$V4255*X4255/(1-$W4255)","v":{"v":14020.457421168325,"d":"14,020"}},{"$f":"'BP Financier'!$E$44*(('BP Financier'!$C$16+'BP Financier'!$D$16+'BP Financier'!$E$16)/('BP Financier'!$C$16+'BP Financier'!$C$19+'BP Financier'!$D$16+'BP Financier'!$D$19+'BP Financier'!$E$16+'BP Financier'!$E$19+'BP Financier'!$C$22+'BP Financier'!$D$22+'BP Financier'!$E$22))*$V4255*Y4255/(1-$W4255)","v":{"v":9372.791977687111,"d":"9,373"}},{"$f":"'BP Financier'!$E$44*(('BP Financier'!$C$16+'BP Financier'!$D$16+'BP Financier'!$E$16)/('BP Financier'!$C$16+'BP Financier'!$C$19+'BP Financier'!$D$16+'BP Financier'!$D$19+'BP Financier'!$E$16+'BP Financier'!$E$19+'BP Financier'!$C$22+'BP Financier'!$D$22+'BP Financier'!$E$22))*$V4255*Z4255/(1-$W4255)","v":{"v":73355.65291627847,"d":"73,356"}},{"$f":"'BP Financier'!$E$44*(('BP Financier'!$C$16+'BP Financier'!$D$16+'BP Financier'!$E$16)/('BP Financier'!$C$16+'BP Financier'!$C$19+'BP Financier'!$D$16+'BP Financier'!$D$19+'BP Financier'!$E$16+'BP Financier'!$E$19+'BP Financier'!$C$22+'BP Financier'!$D$22+'BP Financier'!$E$22))*$V4255*AA4255/(1-$W4255)","v":{"v":9062.947614788365,"d":"9,063"}},{"$f":"'BP Financier'!$E$44*(('BP Financier'!$C$16+'BP Financier'!$D$16+'BP Financier'!$E$16)/('BP Financier'!$C$16+'BP Financier'!$C$19+'BP Financier'!$D$16+'BP Financier'!$D$19+'BP Financier'!$E$16+'BP Financier'!$E$19+'BP Financier'!$C$22+'BP Financier'!$D$22+'BP Financier'!$E$22))*$V4255*AB4255/(1-$W4255)","v":{"v":4337.821080582464,"d":"4,338"}},null,{"v":8.3333333333333339E-4,"d":"0.08%"},{"$f":"Actif!$E$28/100","v":{"v":0.28900000000000003,"d":"28.90%"}},{"$f":"Actif!$E$30/100","v":{"v":0.09050000000000001,"d":"9.05%"}},{"$f":"Actif!$E$31/100","v":{"v":0.0605,"d":"6.05%"}},{"$f":"Actif!$E$32/100","v":{"v":0.47350000000000003,"d":"47.35%"}},{"$f":"Actif!$E$33/100","v":{"v":0.0585,"d":"5.85%"}},{"$f":"Actif!$E$29/100","v":{"v":0.027999999999999997,"d":"2.80%"}}]
[null,"#155",85,2028,"H","A_VIE",{"v":0.44999999999999996,"d":"0.45"},{"v":0.38999999999999996,"d":"0.39"},0.6,0.6,85,0,{"$f":"ROUND(Primes!$O$4*V4256,0)","v":6},{"$f":"'BP Financier'!$E$33*(('BP Financier'!$C$16+'BP Financier'!$D$16+'BP Financier'!$E$16)/('BP Financier'!$C$16+'BP Financier'!$C$19+'BP Financier'!$D$16+'BP Financier'!$D$19+'BP Financier'!$E$16+'BP Financier'!$E$19))*V4256","v":{"v":196398.89054027846,"d":"196,399"}},{"v":110149.67101050474,"d":"110,150"},{"$f":"'BP Financier'!$E$44*(('BP Financier'!$C$16+'BP Financier'!$D$16+'BP Financier'!$E$16)/('BP Financier'!$C$16+'BP Financier'!$C$19+'BP Financier'!$D$16+'BP Financier'!$D$19+'BP Financier'!$E$16+'BP Financier'!$E$19+'BP Financier'!$C$22+'BP Financier'!$D$22+'BP Financier'!$E$22))*$V4256*X4256/(1-$W4256)","v":{"v":14020.457421168325,"d":"14,020"}},{"$f":"'BP Financier'!$E$44*(('BP Financier'!$C$16+'BP Financier'!$D$16+'BP Financier'!$E$16)/('BP Financier'!$C$16+'BP Financier'!$C$19+'BP Financier'!$D$16+'BP Financier'!$D$19+'BP Financier'!$E$16+'BP Financier'!$E$19+'BP Financier'!$C$22+'BP Financier'!$D$22+'BP Financier'!$E$22))*$V4256*Y4256/(1-$W4256)","v":{"v":9372.791977687111,"d":"9,373"}},{"$f":"'BP Financier'!$E$44*(('BP Financier'!$C$16+'BP Financier'!$D$16+'BP Financier'!$E$16)/('BP Financier'!$C$16+'BP Financier'!$C$19+'BP Financier'!$D$16+'BP Financier'!$D$19+'BP Financier'!$E$16+'BP Financier'!$E$19+'BP Financier'!$C$22+'BP Financier'!$D$22+'BP Financier'!$E$22))*$V4256*Z4256/(1-$W4256)","v":{"v":73355.65291627847,"d":"73,356"}},{"$f":"'BP Financier'!$E$44*(('BP Financier'!$C$16+'BP Financier'!$D$16+'BP Financier'!$E$16)/('BP Financier'!$C$16+'BP Financier'!$C$19+'BP Financier'!$D$16+'BP Financier'!$D$19+'BP Financier'!$E$16+'BP Financier'!$E$19+'BP Financier'!$C$22+'BP Financier'!$D$22+'BP Financier'!$E$22))*$V4256*AA4256/(1-$W4256)","v":{"v":9062.947614788365,"d":"9,063"}},{"$f":"'BP Financier'!$E$44*(('BP Financier'!$C$16+'BP Financier'!$D$16+'BP Financier'!$E$16)/('BP Financier'!$C$16+'BP Financier'!$C$19+'BP Financier'!$D$16+'BP Financier'!$D$19+'BP Financier'!$E$16+'BP Financier'!$E$19+'BP Financier'!$C$22+'BP Financier'!$D$22+'BP Financier'!$E$22))*$V4256*AB4256/(1-$W4256)","v":{"v":4337.821080582464,"d":"4,338"}},null,{"v":8.3333333333333339E-4,"d":"0.08%"},{"$f":"Actif!$E$28/100","v":{"v":0.28900000000000003,"d":"28.90%"}},{"$f":"Actif!$E$30/100","v":{"v":0.09050000000000001,"d":"9.05%"}},{"$f":"Actif!$E$31/100","v":{"v":0.0605,"d":"6.05%"}},{"$f":"Actif!$E$32/100","v":{"v":0.47350000000000003,"d":"47.35%"}},{"$f":"Actif!$E$33/100","v":{"v":0.0585,"d":"5.85%"}},{"$f":"Actif!$E$29/100","v":{"v":0.027999999999999997,"d":"2.80%"}}]
[null,"#156",85,2029,"H","A_VIE",{"v":0.44999999999999996,"d":"0.45"},{"v":0.38999999999999996,"d":"0.39"},0.6,0.6,85,0,{"$f":"ROUND(Primes!$O$4*V4257,0)","v":6},{"$f":"'BP Financier'!$E$33*(('BP Financier'!$C$16+'BP Financier'!$D$16+'BP Financier'!$E$16)/('BP Financier'!$C$16+'BP Financier'!$C$19+'BP Financier'!$D$16+'BP Financier'!$D$19+'BP Financier'!$E$16+'BP Financier'!$E$19))*V4257","v":{"v":196398.89054027846,"d":"196,399"}},{"v":110149.67101050474,"d":"110,150"},{"$f":"'BP Financier'!$E$44*(('BP Financier'!$C$16+'BP Financier'!$D$16+'BP Financier'!$E$16)/('BP Financier'!$C$16+'BP Financier'!$C$19+'BP Financier'!$D$16+'BP Financier'!$D$19+'BP Financier'!$E$16+'BP Financier'!$E$19+'BP Financier'!$C$22+'BP Financier'!$D$22+'BP Financier'!$E$22))*$V4257*X4257/(1-$W4257)","v":{"v":14020.457421168325,"d":"14,020"}},{"$f":"'BP Financier'!$E$44*(('BP Financier'!$C$16+'BP Financier'!$D$16+'BP Financier'!$E$16)/('BP Financier'!$C$16+'BP Financier'!$C$19+'BP Financier'!$D$16+'BP Financier'!$D$19+'BP Financier'!$E$16+'BP Financier'!$E$19+'BP Financier'!$C$22+'BP Financier'!$D$22+'BP Financier'!$E$22))*$V4257*Y4257/(1-$W4257)","v":{"v":9372.791977687111,"d":"9,373"}},{"$f":"'BP Financier'!$E$44*(('BP Financier'!$C$16+'BP Financier'!$D$16+'BP Financier'!$E$16)/('BP Financier'!$C$16+'BP Financier'!$C$19+'BP Financier'!$D$16+'BP Financier'!$D$19+'BP Financier'!$E$16+'BP Financier'!$E$19+'BP Financier'!$C$22+'BP Financier'!$D$22+'BP Financier'!$E$22))*$V4257*Z4257/(1-$W4257)","v":{"v":73355.65291627847,"d":"73,356"}},{"$f":"'BP Financier'!$E$44*(('BP Financier'!$C$16+'BP Financier'!$D$16+'BP Financier'!$E$16)/('BP Financier'!$C$16+'BP Financier'!$C$19+'BP Financier'!$D$16+'BP Financier'!$D$19+'BP Financier'!$E$16+'BP Financier'!$E$19+'BP Financier'!$C$22+'BP Financier'!$D$22+'BP Financier'!$E$22))*$V4257*AA4257/(1-$W4257)","v":{"v":9062.947614788365,"d":"9,063"}},{"$f":"'BP Financier'!$E$44*(('BP Financier'!$C$16+'BP Financier'!$D$16+'BP Financier'!$E$16)/('BP Financier'!$C$16+'BP Financier'!$C$19+'BP Financier'!$D$16+'BP Financier'!$D$19+'BP Financier'!$E$16+'BP Financier'!$E$19+'BP Financier'!$C$22+'BP Financier'!$D$22+'BP Financier'!$E$22))*$V4257*AB4257/(1-$W4257)","v":{"v":4337.821080582464,"d":"4,338"}},null,{"v":8.3333333333333339E-4,"d":"0.08%"},{"$f":"Actif!$E$28/100","v":{"v":0.28900000000000003,"d":"28.90%"}},{"$f":"Actif!$E$30/100","v":{"v":0.09050000000000001,"d":"9.05%"}},{"$f":"Actif!$E$31/100","v":{"v":0.0605,"d":"6.05%"}},{"$f":"Actif!$E$32/100","v":{"v":0.47350000000000003,"d":"47.35%"}},{"$f":"Actif!$E$33/100","v":{"v":0.0585,"d":"5.85%"}},{"$f":"Actif!$E$29/100","v":{"v":0.027999999999999997,"d":"2.80%"}}]
[null,"#157",90,2026,"H","A_VIE",{"v":0.44999999999999996,"d":"0.45"},{"v":0.38999999999999996,"d":"0.39"},0.6,0.6,85,0,{"$f":"ROUND(Primes!$O$4*V4258,0)","v":6},{"$f":"'BP Financier'!$E$33*(('BP Financier'!$C$16+'BP Financier'!$D$16+'BP Financier'!$E$16)/('BP Financier'!$C$16+'BP Financier'!$C$19+'BP Financier'!$D$16+'BP Financier'!$D$19+'BP Financier'!$E$16+'BP Financier'!$E$19))*V4258","v":{"v":196398.89054027846,"d":"196,399"}},{"v":110149.67101050474,"d":"110,150"},{"$f":"'BP Financier'!$E$44*(('BP Financier'!$C$16+'BP Financier'!$D$16+'BP Financier'!$E$16)/('BP Financier'!$C$16+'BP Financier'!$C$19+'BP Financier'!$D$16+'BP Financier'!$D$19+'BP Financier'!$E$16+'BP Financier'!$E$19+'BP Financier'!$C$22+'BP Financier'!$D$22+'BP Financier'!$E$22))*$V4258*X4258/(1-$W4258)","v":{"v":14020.457421168325,"d":"14,020"}},{"$f":"'BP Financier'!$E$44*(('BP Financier'!$C$16+'BP Financier'!$D$16+'BP Financier'!$E$16)/('BP Financier'!$C$16+'BP Financier'!$C$19+'BP Financier'!$D$16+'BP Financier'!$D$19+'BP Financier'!$E$16+'BP Financier'!$E$19+'BP Financier'!$C$22+'BP Financier'!$D$22+'BP Financier'!$E$22))*$V4258*Y4258/(1-$W4258)","v":{"v":9372.791977687111,"d":"9,373"}},{"$f":"'BP Financier'!$E$44*(('BP Financier'!$C$16+'BP Financier'!$D$16+'BP Financier'!$E$16)/('BP Financier'!$C$16+'BP Financier'!$C$19+'BP Financier'!$D$16+'BP Financier'!$D$19+'BP Financier'!$E$16+'BP Financier'!$E$19+'BP Financier'!$C$22+'BP Financier'!$D$22+'BP Financier'!$E$22))*$V4258*Z4258/(1-$W4258)","v":{"v":73355.65291627847,"d":"73,356"}},{"$f":"'BP Financier'!$E$44*(('BP Financier'!$C$16+'BP Financier'!$D$16+'BP Financier'!$E$16)/('BP Financier'!$C$16+'BP Financier'!$C$19+'BP Financier'!$D$16+'BP Financier'!$D$19+'BP Financier'!$E$16+'BP Financier'!$E$19+'BP Financier'!$C$22+'BP Financier'!$D$22+'BP Financier'!$E$22))*$V4258*AA4258/(1-$W4258)","v":{"v":9062.947614788365,"d":"9,063"}},{"$f":"'BP Financier'!$E$44*(('BP Financier'!$C$16+'BP Financier'!$D$16+'BP Financier'!$E$16)/('BP Financier'!$C$16+'BP Financier'!$C$19+'BP Financier'!$D$16+'BP Financier'!$D$19+'BP Financier'!$E$16+'BP Financier'!$E$19+'BP Financier'!$C$22+'BP Financier'!$D$22+'BP Financier'!$E$22))*$V4258*AB4258/(1-$W4258)","v":{"v":4337.821080582464,"d":"4,338"}},null,{"v":8.3333333333333339E-4,"d":"0.08%"},{"$f":"Actif!$E$28/100","v":{"v":0.28900000000000003,"d":"28.90%"}},{"$f":"Actif!$E$30/100","v":{"v":0.09050000000000001,"d":"9.05%"}},{"$f":"Actif!$E$31/100","v":{"v":0.0605,"d":"6.05%"}},{"$f":"Actif!$E$32/100","v":{"v":0.47350000000000003,"d":"47.35%"}},{"$f":"Actif!$E$33/100","v":{"v":0.0585,"d":"5.85%"}},{"$f":"Actif!$E$29/100","v":{"v":0.027999999999999997,"d":"2.80%"}}]
[null,"#158",90,2028,"H","A_VIE",{"v":0.44999999999999996,"d":"0.45"},{"v":0.38999999999999996,"d":"0.39"},0.6,0.6,85,0,{"$f":"ROUND(Primes!$O$4*V4259,0)","v":6},{"$f":"'BP Financier'!$E$33*(('BP Financier'!$C$16+'BP Financier'!$D$16+'BP Financier'!$E$16)/('BP Financier'!$C$16+'BP Financier'!$C$19+'BP Financier'!$D$16+'BP Financier'!$D$19+'BP Financier'!$E$16+'BP Financier'!$E$19))*V4259","v":{"v":196398.89054027846,"d":"196,399"}},{"v":110149.67101050474,"d":"110,150"},{"$f":"'BP Financier'!$E$44*(('BP Financier'!$C$16+'BP Financier'!$D$16+'BP Financier'!$E$16)/('BP Financier'!$C$16+'BP Financier'!$C$19+'BP Financier'!$D$16+'BP Financier'!$D$19+'BP Financier'!$E$16+'BP Financier'!$E$19+'BP Financier'!$C$22+'BP Financier'!$D$22+'BP Financier'!$E$22))*$V4259*X4259/(1-$W4259)","v":{"v":14020.457421168325,"d":"14,020"}},{"$f":"'BP Financier'!$E$44*(('BP Financier'!$C$16+'BP Financier'!$D$16+'BP Financier'!$E$16)/('BP Financier'!$C$16+'BP Financier'!$C$19+'BP Financier'!$D$16+'BP Financier'!$D$19+'BP Financier'!$E$16+'BP Financier'!$E$19+'BP Financier'!$C$22+'BP Financier'!$D$22+'BP Financier'!$E$22))*$V4259*Y4259/(1-$W4259)","v":{"v":9372.791977687111,"d":"9,373"}},{"$f":"'BP Financier'!$E$44*(('BP Financier'!$C$16+'BP Financier'!$D$16+'BP Financier'!$E$16)/('BP Financier'!$C$16+'BP Financier'!$C$19+'BP Financier'!$D$16+'BP Financier'!$D$19+'BP Financier'!$E$16+'BP Financier'!$E$19+'BP Financier'!$C$22+'BP Financier'!$D$22+'BP Financier'!$E$22))*$V4259*Z4259/(1-$W4259)","v":{"v":73355.65291627847,"d":"73,356"}},{"$f":"'BP Financier'!$E$44*(('BP Financier'!$C$16+'BP Financier'!$D$16+'BP Financier'!$E$16)/('BP Financier'!$C$16+'BP Financier'!$C$19+'BP Financier'!$D$16+'BP Financier'!$D$19+'BP Financier'!$E$16+'BP Financier'!$E$19+'BP Financier'!$C$22+'BP Financier'!$D$22+'BP Financier'!$E$22))*$V4259*AA4259/(1-$W4259)","v":{"v":9062.947614788365,"d":"9,063"}},{"$f":"'BP Financier'!$E$44*(('BP Financier'!$C$16+'BP Financier'!$D$16+'BP Financier'!$E$16)/('BP Financier'!$C$16+'BP Financier'!$C$19+'BP Financier'!$D$16+'BP Financier'!$D$19+'BP Financier'!$E$16+'BP Financier'!$E$19+'BP Financier'!$C$22+'BP Financier'!$D$22+'BP Financier'!$E$22))*$V4259*AB4259/(1-$W4259)","v":{"v":4337.821080582464,"d":"4,338"}},null,{"v":8.3333333333333339E-4,"d":"0.08%"},{"$f":"Actif!$E$28/100","v":{"v":0.28900000000000003,"d":"28.90%"}},{"$f":"Actif!$E$30/100","v":{"v":0.09050000000000001,"d":"9.05%"}},{"$f":"Actif!$E$31/100","v":{"v":0.0605,"d":"6.05%"}},{"$f":"Actif!$E$32/100","v":{"v":0.47350000000000003,"d":"47.35%"}},{"$f":"Actif!$E$33/100","v":{"v":0.0585,"d":"5.85%"}},{"$f":"Actif!$E$29/100","v":{"v":0.027999999999999997,"d":"2.80%"}}]
[null,"#159",90,2029,"H","A_VIE",{"v":0.44999999999999996,"d":"0.45"},{"v":0.38999999999999996,"d":"0.39"},0.6,0.6,85,0,{"$f":"ROUND(Primes!$O$4*V4260,0)","v":6},{"$f":"'BP Financier'!$E$33*(('BP Financier'!$C$16+'BP Financier'!$D$16+'BP Financier'!$E$16)/('BP Financier'!$C$16+'BP Financier'!$C$19+'BP Financier'!$D$16+'BP Financier'!$D$19+'BP Financier'!$E$16+'BP Financier'!$E$19))*V4260","v":{"v":196398.89054027846,"d":"196,399"}},{"v":110149.67101050474,"d":"110,150"},{"$f":"'BP Financier'!$E$44*(('BP Financier'!$C$16+'BP Financier'!$D$16+'BP Financier'!$E$16)/('BP Financier'!$C$16+'BP Financier'!$C$19+'BP Financier'!$D$16+'BP Financier'!$D$19+'BP Financier'!$E$16+'BP Financier'!$E$19+'BP Financier'!$C$22+'BP Financier'!$D$22+'BP Financier'!$E$22))*$V4260*X4260/(1-$W4260)","v":{"v":14020.457421168325,"d":"14,020"}},{"$f":"'BP Financier'!$E$44*(('BP Financier'!$C$16+'BP Financier'!$D$16+'BP Financier'!$E$16)/('BP Financier'!$C$16+'BP Financier'!$C$19+'BP Financier'!$D$16+'BP Financier'!$D$19+'BP Financier'!$E$16+'BP Financier'!$E$19+'BP Financier'!$C$22+'BP Financier'!$D$22+'BP Financier'!$E$22))*$V4260*Y4260/(1-$W4260)","v":{"v":9372.791977687111,"d":"9,373"}},{"$f":"'BP Financier'!$E$44*(('BP Financier'!$C$16+'BP Financier'!$D$16+'BP Financier'!$E$16)/('BP Financier'!$C$16+'BP Financier'!$C$19+'BP Financier'!$D$16+'BP Financier'!$D$19+'BP Financier'!$E$16+'BP Financier'!$E$19+'BP Financier'!$C$22+'BP Financier'!$D$22+'BP Financier'!$E$22))*$V4260*Z4260/(1-$W4260)","v":{"v":73355.65291627847,"d":"73,356"}},{"$f":"'BP Financier'!$E$44*(('BP Financier'!$C$16+'BP Financier'!$D$16+'BP Financier'!$E$16)/('BP Financier'!$C$16+'BP Financier'!$C$19+'BP Financier'!$D$16+'BP Financier'!$D$19+'BP Financier'!$E$16+'BP Financier'!$E$19+'BP Financier'!$C$22+'BP Financier'!$D$22+'BP Financier'!$E$22))*$V4260*AA4260/(1-$W4260)","v":{"v":9062.947614788365,"d":"9,063"}},{"$f":"'BP Financier'!$E$44*(('BP Financier'!$C$16+'BP Financier'!$D$16+'BP Financier'!$E$16)/('BP Financier'!$C$16+'BP Financier'!$C$19+'BP Financier'!$D$16+'BP Financier'!$D$19+'BP Financier'!$E$16+'BP Financier'!$E$19+'BP Financier'!$C$22+'BP Financier'!$D$22+'BP Financier'!$E$22))*$V4260*AB4260/(1-$W4260)","v":{"v":4337.821080582464,"d":"4,338"}},null,{"v":8.3333333333333339E-4,"d":"0.08%"},{"$f":"Actif!$E$28/100","v":{"v":0.28900000000000003,"d":"28.90%"}},{"$f":"Actif!$E$30/100","v":{"v":0.09050000000000001,"d":"9.05%"}},{"$f":"Actif!$E$31/100","v":{"v":0.0605,"d":"6.05%"}},{"$f":"Actif!$E$32/100","v":{"v":0.47350000000000003,"d":"47.35%"}},{"$f":"Actif!$E$33/100","v":{"v":0.0585,"d":"5.85%"}},{"$f":"Actif!$E$29/100","v":{"v":0.027999999999999997,"d":"2.80%"}}]
[null,"#160",18,2026,"H","A_CAPI",{"v":0.44999999999999996,"d":"0.45"},{"v":0.38999999999999996,"d":"0.39"},0.6,0.6,85,0,{"$f":"ROUND(Primes!$O$10*V4261,2)","v":0.08},0,{"$f":"SUM(P4261:T4261)","v":{"v":1443.5020034889205,"d":"1,444"}},{"$f":"'BP Financier'!$E$44*(('BP Financier'!$C$22+'BP Financier'!$D$22+'BP Financier'!$E$22)/('BP Financier'!$C$16+'BP Financier'!$C$19+'BP Financier'!$D$16+'BP Financier'!$D$19+'BP Financier'!$E$16+'BP Financier'!$E$19+'BP Financier'!$C$22+'BP Financier'!$D$22+'BP Financier'!$E$22))*$V4261*X4261/(1-$W4261)","v":{"v":183.7368935523872,"d":"184"}},{"$f":"'BP Financier'!$E$44*(('BP Financier'!$C$22+'BP Financier'!$D$22+'BP Financier'!$E$22)/('BP Financier'!$C$16+'BP Financier'!$C$19+'BP Financier'!$D$16+'BP Financier'!$D$19+'BP Financier'!$E$16+'BP Financier'!$E$19+'BP Financier'!$C$22+'BP Financier'!$D$22+'BP Financier'!$E$22))*$V4261*Y4261/(1-$W4261)","v":{"v":122.82963602120911,"d":"123"}},{"$f":"'BP Financier'!$E$44*(('BP Financier'!$C$22+'BP Financier'!$D$22+'BP Financier'!$E$22)/('BP Financier'!$C$16+'BP Financier'!$C$19+'BP Financier'!$D$16+'BP Financier'!$D$19+'BP Financier'!$E$16+'BP Financier'!$E$19+'BP Financier'!$C$22+'BP Financier'!$D$22+'BP Financier'!$E$22))*$V4261*Z4261/(1-$W4261)","v":{"v":961.3195480337606,"d":"961"}},{"$f":"'BP Financier'!$E$44*(('BP Financier'!$C$22+'BP Financier'!$D$22+'BP Financier'!$E$22)/('BP Financier'!$C$16+'BP Financier'!$C$19+'BP Financier'!$D$16+'BP Financier'!$D$19+'BP Financier'!$E$16+'BP Financier'!$E$19+'BP Financier'!$C$22+'BP Financier'!$D$22+'BP Financier'!$E$22))*$V4261*AA4261/(1-$W4261)","v":{"v":118.76915218579725,"d":"119"}},{"$f":"'BP Financier'!$E$44*(('BP Financier'!$C$22+'BP Financier'!$D$22+'BP Financier'!$E$22)/('BP Financier'!$C$16+'BP Financier'!$C$19+'BP Financier'!$D$16+'BP Financier'!$D$19+'BP Financier'!$E$16+'BP Financier'!$E$19+'BP Financier'!$C$22+'BP Financier'!$D$22+'BP Financier'!$E$22))*$V4261*AB4261/(1-$W4261)","v":{"v":56.846773695766196,"d":"57"}},null,{"v":1.6666666666666668E-3,"d":"0.17%"},{"$f":"Actif!$E$28/100","v":{"v":0.28900000000000003,"d":"28.90%"}},{"$f":"Actif!$E$30/100","v":{"v":0.09050000000000001,"d":"9.05%"}},{"$f":"Actif!$E$31/100","v":{"v":0.0605,"d":"6.05%"}},{"$f":"Actif!$E$32/100","v":{"v":0.47350000000000003,"d":"47.35%"}},{"$f":"Actif!$E$33/100","v":{"v":0.0585,"d":"5.85%"}},{"$f":"Actif!$E$29/100","v":{"v":0.027999999999999997,"d":"2.80%"}}]
[null,"#161",18,2028,"H","A_CAPI",{"v":0.44999999999999996,"d":"0.45"},{"v":0.38999999999999996,"d":"0.39"},0.6,0.6,85,0,{"$f":"ROUND(Primes!$O$10*V4262,2)","v":0.08},0,{"$f":"SUM(P4262:T4262)","v":{"v":1443.5020034889205,"d":"1,444"}},{"$f":"'BP Financier'!$E$44*(('BP Financier'!$C$22+'BP Financier'!$D$22+'BP Financier'!$E$22)/('BP Financier'!$C$16+'BP Financier'!$C$19+'BP Financier'!$D$16+'BP Financier'!$D$19+'BP Financier'!$E$16+'BP Financier'!$E$19+'BP Financier'!$C$22+'BP Financier'!$D$22+'BP Financier'!$E$22))*$V4262*X4262/(1-$W4262)","v":{"v":183.7368935523872,"d":"184"}},{"$f":"'BP Financier'!$E$44*(('BP Financier'!$C$22+'BP Financier'!$D$22+'BP Financier'!$E$22)/('BP Financier'!$C$16+'BP Financier'!$C$19+'BP Financier'!$D$16+'BP Financier'!$D$19+'BP Financier'!$E$16+'BP Financier'!$E$19+'BP Financier'!$C$22+'BP Financier'!$D$22+'BP Financier'!$E$22))*$V4262*Y4262/(1-$W4262)","v":{"v":122.82963602120911,"d":"123"}},{"$f":"'BP Financier'!$E$44*(('BP Financier'!$C$22+'BP Financier'!$D$22+'BP Financier'!$E$22)/('BP Financier'!$C$16+'BP Financier'!$C$19+'BP Financier'!$D$16+'BP Financier'!$D$19+'BP Financier'!$E$16+'BP Financier'!$E$19+'BP Financier'!$C$22+'BP Financier'!$D$22+'BP Financier'!$E$22))*$V4262*Z4262/(1-$W4262)","v":{"v":961.3195480337606,"d":"961"}},{"$f":"'BP Financier'!$E$44*(('BP Financier'!$C$22+'BP Financier'!$D$22+'BP Financier'!$E$22)/('BP Financier'!$C$16+'BP Financier'!$C$19+'BP Financier'!$D$16+'BP Financier'!$D$19+'BP Financier'!$E$16+'BP Financier'!$E$19+'BP Financier'!$C$22+'BP Financier'!$D$22+'BP Financier'!$E$22))*$V4262*AA4262/(1-$W4262)","v":{"v":118.76915218579725,"d":"119"}},{"$f":"'BP Financier'!$E$44*(('BP Financier'!$C$22+'BP Financier'!$D$22+'BP Financier'!$E$22)/('BP Financier'!$C$16+'BP Financier'!$C$19+'BP Financier'!$D$16+'BP Financier'!$D$19+'BP Financier'!$E$16+'BP Financier'!$E$19+'BP Financier'!$C$22+'BP Financier'!$D$22+'BP Financier'!$E$22))*$V4262*AB4262/(1-$W4262)","v":{"v":56.846773695766196,"d":"57"}},null,{"v":1.6666666666666668E-3,"d":"0.17%"},{"$f":"Actif!$E$28/100","v":{"v":0.28900000000000003,"d":"28.90%"}},{"$f":"Actif!$E$30/100","v":{"v":0.09050000000000001,"d":"9.05%"}},{"$f":"Actif!$E$31/100","v":{"v":0.0605,"d":"6.05%"}},{"$f":"Actif!$E$32/100","v":{"v":0.47350000000000003,"d":"47.35%"}},{"$f":"Actif!$E$33/100","v":{"v":0.0585,"d":"5.85%"}},{"$f":"Actif!$E$29/100","v":{"v":0.027999999999999997,"d":"2.80%"}}]
[null,"#162",18,2029,"H","A_CAPI",{"v":0.44999999999999996,"d":"0.45"},{"v":0.38999999999999996,"d":"0.39"},0.6,0.6,85,0,{"$f":"ROUND(Primes!$O$10*V4263,2)","v":0.08},0,{"v":1443.5020034889205,"d":"1,444"},{"$f":"'BP Financier'!$E$44*(('BP Financier'!$C$22+'BP Financier'!$D$22+'BP Financier'!$E$22)/('BP Financier'!$C$16+'BP Financier'!$C$19+'BP Financier'!$D$16+'BP Financier'!$D$19+'BP Financier'!$E$16+'BP Financier'!$E$19+'BP Financier'!$C$22+'BP Financier'!$D$22+'BP Financier'!$E$22))*$V4263*X4263/(1-$W4263)","v":{"v":183.7368935523872,"d":"184"}},{"$f":"'BP Financier'!$E$44*(('BP Financier'!$C$22+'BP Financier'!$D$22+'BP Financier'!$E$22)/('BP Financier'!$C$16+'BP Financier'!$C$19+'BP Financier'!$D$16+'BP Financier'!$D$19+'BP Financier'!$E$16+'BP Financier'!$E$19+'BP Financier'!$C$22+'BP Financier'!$D$22+'BP Financier'!$E$22))*$V4263*Y4263/(1-$W4263)","v":{"v":122.82963602120911,"d":"123"}},{"$f":"'BP Financier'!$E$44*(('BP Financier'!$C$22+'BP Financier'!$D$22+'BP Financier'!$E$22)/('BP Financier'!$C$16+'BP Financier'!$C$19+'BP Financier'!$D$16+'BP Financier'!$D$19+'BP Financier'!$E$16+'BP Financier'!$E$19+'BP Financier'!$C$22+'BP Financier'!$D$22+'BP Financier'!$E$22))*$V4263*Z4263/(1-$W4263)","v":{"v":961.3195480337606,"d":"961"}},{"$f":"'BP Financier'!$E$44*(('BP Financier'!$C$22+'BP Financier'!$D$22+'BP Financier'!$E$22)/('BP Financier'!$C$16+'BP Financier'!$C$19+'BP Financier'!$D$16+'BP Financier'!$D$19+'BP Financier'!$E$16+'BP Financier'!$E$19+'BP Financier'!$C$22+'BP Financier'!$D$22+'BP Financier'!$E$22))*$V4263*AA4263/(1-$W4263)","v":{"v":118.76915218579725,"d":"119"}},{"$f":"'BP Financier'!$E$44*(('BP Financier'!$C$22+'BP Financier'!$D$22+'BP Financier'!$E$22)/('BP Financier'!$C$16+'BP Financier'!$C$19+'BP Financier'!$D$16+'BP Financier'!$D$19+'BP Financier'!$E$16+'BP Financier'!$E$19+'BP Financier'!$C$22+'BP Financier'!$D$22+'BP Financier'!$E$22))*$V4263*AB4263/(1-$W4263)","v":{"v":56.846773695766196,"d":"57"}},null,{"v":1.6666666666666668E-3,"d":"0.17%"},{"$f":"Actif!$E$28/100","v":{"v":0.28900000000000003,"d":"28.90%"}},{"$f":"Actif!$E$30/100","v":{"v":0.09050000000000001,"d":"9.05%"}},{"$f":"Actif!$E$31/100","v":{"v":0.0605,"d":"6.05%"}},{"$f":"Actif!$E$32/100","v":{"v":0.47350000000000003,"d":"47.35%"}},{"$f":"Actif!$E$33/100","v":{"v":0.0585,"d":"5.85%"}},{"$f":"Actif!$E$29/100","v":{"v":0.027999999999999997,"d":"2.80%"}}]
[null,"#163",19,2026,"H","A_CAPI",{"v":0.44999999999999996,"d":"0.45"},{"v":0.38999999999999996,"d":"0.39"},0.6,0.6,85,0,{"$f":"ROUND(Primes!$O$10*V4264,2)","v":0.08},0,{"v":1443.5020034889205,"d":"1,444"},{"$f":"'BP Financier'!$E$44*(('BP Financier'!$C$22+'BP Financier'!$D$22+'BP Financier'!$E$22)/('BP Financier'!$C$16+'BP Financier'!$C$19+'BP Financier'!$D$16+'BP Financier'!$D$19+'BP Financier'!$E$16+'BP Financier'!$E$19+'BP Financier'!$C$22+'BP Financier'!$D$22+'BP Financier'!$E$22))*$V4264*X4264/(1-$W4264)","v":{"v":183.7368935523872,"d":"184"}},{"$f":"'BP Financier'!$E$44*(('BP Financier'!$C$22+'BP Financier'!$D$22+'BP Financier'!$E$22)/('BP Financier'!$C$16+'BP Financier'!$C$19+'BP Financier'!$D$16+'BP Financier'!$D$19+'BP Financier'!$E$16+'BP Financier'!$E$19+'BP Financier'!$C$22+'BP Financier'!$D$22+'BP Financier'!$E$22))*$V4264*Y4264/(1-$W4264)","v":{"v":122.82963602120911,"d":"123"}},{"$f":"'BP Financier'!$E$44*(('BP Financier'!$C$22+'BP Financier'!$D$22+'BP Financier'!$E$22)/('BP Financier'!$C$16+'BP Financier'!$C$19+'BP Financier'!$D$16+'BP Financier'!$D$19+'BP Financier'!$E$16+'BP Financier'!$E$19+'BP Financier'!$C$22+'BP Financier'!$D$22+'BP Financier'!$E$22))*$V4264*Z4264/(1-$W4264)","v":{"v":961.3195480337606,"d":"961"}},{"$f":"'BP Financier'!$E$44*(('BP Financier'!$C$22+'BP Financier'!$D$22+'BP Financier'!$E$22)/('BP Financier'!$C$16+'BP Financier'!$C$19+'BP Financier'!$D$16+'BP Financier'!$D$19+'BP Financier'!$E$16+'BP Financier'!$E$19+'BP Financier'!$C$22+'BP Financier'!$D$22+'BP Financier'!$E$22))*$V4264*AA4264/(1-$W4264)","v":{"v":118.76915218579725,"d":"119"}},{"$f":"'BP Financier'!$E$44*(('BP Financier'!$C$22+'BP Financier'!$D$22+'BP Financier'!$E$22)/('BP Financier'!$C$16+'BP Financier'!$C$19+'BP Financier'!$D$16+'BP Financier'!$D$19+'BP Financier'!$E$16+'BP Financier'!$E$19+'BP Financier'!$C$22+'BP Financier'!$D$22+'BP Financier'!$E$22))*$V4264*AB4264/(1-$W4264)","v":{"v":56.846773695766196,"d":"57"}},null,{"v":1.6666666666666668E-3,"d":"0.17%"},{"$f":"Actif!$E$28/100","v":{"v":0.28900000000000003,"d":"28.90%"}},{"$f":"Actif!$E$30/100","v":{"v":0.09050000000000001,"d":"9.05%"}},{"$f":"Actif!$E$31/100","v":{"v":0.0605,"d":"6.05%"}},{"$f":"Actif!$E$32/100","v":{"v":0.47350000000000003,"d":"47.35%"}},{"$f":"Actif!$E$33/100","v":{"v":0.0585,"d":"5.85%"}},{"$f":"Actif!$E$29/100","v":{"v":0.027999999999999997,"d":"2.80%"}}]
[null,"#164",19,2028,"H","A_CAPI",{"v":0.44999999999999996,"d":"0.45"},{"v":0.38999999999999996,"d":"0.39"},0.6,0.6,85,0,{"$f":"ROUND(Primes!$O$10*V4265,2)","v":0.08},0,{"v":1443.5020034889205,"d":"1,444"},{"$f":"'BP Financier'!$E$44*(('BP Financier'!$C$22+'BP Financier'!$D$22+'BP Financier'!$E$22)/('BP Financier'!$C$16+'BP Financier'!$C$19+'BP Financier'!$D$16+'BP Financier'!$D$19+'BP Financier'!$E$16+'BP Financier'!$E$19+'BP Financier'!$C$22+'BP Financier'!$D$22+'BP Financier'!$E$22))*$V4265*X4265/(1-$W4265)","v":{"v":183.7368935523872,"d":"184"}},{"$f":"'BP Financier'!$E$44*(('BP Financier'!$C$22+'BP Financier'!$D$22+'BP Financier'!$E$22)/('BP Financier'!$C$16+'BP Financier'!$C$19+'BP Financier'!$D$16+'BP Financier'!$D$19+'BP Financier'!$E$16+'BP Financier'!$E$19+'BP Financier'!$C$22+'BP Financier'!$D$22+'BP Financier'!$E$22))*$V4265*Y4265/(1-$W4265)","v":{"v":122.82963602120911,"d":"123"}},{"$f":"'BP Financier'!$E$44*(('BP Financier'!$C$22+'BP Financier'!$D$22+'BP Financier'!$E$22)/('BP Financier'!$C$16+'BP Financier'!$C$19+'BP Financier'!$D$16+'BP Financier'!$D$19+'BP Financier'!$E$16+'BP Financier'!$E$19+'BP Financier'!$C$22+'BP Financier'!$D$22+'BP Financier'!$E$22))*$V4265*Z4265/(1-$W4265)","v":{"v":961.3195480337606,"d":"961"}},{"$f":"'BP Financier'!$E$44*(('BP Financier'!$C$22+'BP Financier'!$D$22+'BP Financier'!$E$22)/('BP Financier'!$C$16+'BP Financier'!$C$19+'BP Financier'!$D$16+'BP Financier'!$D$19+'BP Financier'!$E$16+'BP Financier'!$E$19+'BP Financier'!$C$22+'BP Financier'!$D$22+'BP Financier'!$E$22))*$V4265*AA4265/(1-$W4265)","v":{"v":118.76915218579725,"d":"119"}},{"$f":"'BP Financier'!$E$44*(('BP Financier'!$C$22+'BP Financier'!$D$22+'BP Financier'!$E$22)/('BP Financier'!$C$16+'BP Financier'!$C$19+'BP Financier'!$D$16+'BP Financier'!$D$19+'BP Financier'!$E$16+'BP Financier'!$E$19+'BP Financier'!$C$22+'BP Financier'!$D$22+'BP Financier'!$E$22))*$V4265*AB4265/(1-$W4265)","v":{"v":56.846773695766196,"d":"57"}},null,{"v":1.6666666666666668E-3,"d":"0.17%"},{"$f":"Actif!$E$28/100","v":{"v":0.28900000000000003,"d":"28.90%"}},{"$f":"Actif!$E$30/100","v":{"v":0.09050000000000001,"d":"9.05%"}},{"$f":"Actif!$E$31/100","v":{"v":0.0605,"d":"6.05%"}},{"$f":"Actif!$E$32/100","v":{"v":0.47350000000000003,"d":"47.35%"}},{"$f":"Actif!$E$33/100","v":{"v":0.0585,"d":"5.85%"}},{"$f":"Actif!$E$29/100","v":{"v":0.027999999999999997,"d":"2.80%"}}]
[null,"#165",19,2029,"H","A_CAPI",{"v":0.44999999999999996,"d":"0.45"},{"v":0.38999999999999996,"d":"0.39"},0.6,0.6,85,0,{"$f":"ROUND(Primes!$O$10*V4266,2)","v":0.08},0,{"v":1443.5020034889205,"d":"1,444"},{"$f":"'BP Financier'!$E$44*(('BP Financier'!$C$22+'BP Financier'!$D$22+'BP Financier'!$E$22)/('BP Financier'!$C$16+'BP Financier'!$C$19+'BP Financier'!$D$16+'BP Financier'!$D$19+'BP Financier'!$E$16+'BP Financier'!$E$19+'BP Financier'!$C$22+'BP Financier'!$D$22+'BP Financier'!$E$22))*$V4266*X4266/(1-$W4266)","v":{"v":183.7368935523872,"d":"184"}},{"$f":"'BP Financier'!$E$44*(('BP Financier'!$C$22+'BP Financier'!$D$22+'BP Financier'!$E$22)/('BP Financier'!$C$16+'BP Financier'!$C$19+'BP Financier'!$D$16+'BP Financier'!$D$19+'BP Financier'!$E$16+'BP Financier'!$E$19+'BP Financier'!$C$22+'BP Financier'!$D$22+'BP Financier'!$E$22))*$V4266*Y4266/(1-$W4266)","v":{"v":122.82963602120911,"d":"123"}},{"$f":"'BP Financier'!$E$44*(('BP Financier'!$C$22+'BP Financier'!$D$22+'BP Financier'!$E$22)/('BP Financier'!$C$16+'BP Financier'!$C$19+'BP Financier'!$D$16+'BP Financier'!$D$19+'BP Financier'!$E$16+'BP Financier'!$E$19+'BP Financier'!$C$22+'BP Financier'!$D$22+'BP Financier'!$E$22))*$V4266*Z4266/(1-$W4266)","v":{"v":961.3195480337606,"d":"961"}},{"$f":"'BP Financier'!$E$44*(('BP Financier'!$C$22+'BP Financier'!$D$22+'BP Financier'!$E$22)/('BP Financier'!$C$16+'BP Financier'!$C$19+'BP Financier'!$D$16+'BP Financier'!$D$19+'BP Financier'!$E$16+'BP Financier'!$E$19+'BP Financier'!$C$22+'BP Financier'!$D$22+'BP Financier'!$E$22))*$V4266*AA4266/(1-$W4266)","v":{"v":118.76915218579725,"d":"119"}},{"$f":"'BP Financier'!$E$44*(('BP Financier'!$C$22+'BP Financier'!$D$22+'BP Financier'!$E$22)/('BP Financier'!$C$16+'BP Financier'!$C$19+'BP Financier'!$D$16+'BP Financier'!$D$19+'BP Financier'!$E$16+'BP Financier'!$E$19+'BP Financier'!$C$22+'BP Financier'!$D$22+'BP Financier'!$E$22))*$V4266*AB4266/(1-$W4266)","v":{"v":56.846773695766196,"d":"57"}},null,{"v":1.6666666666666668E-3,"d":"0.17%"},{"$f":"Actif!$E$28/100","v":{"v":0.28900000000000003,"d":"28.90%"}},{"$f":"Actif!$E$30/100","v":{"v":0.09050000000000001,"d":"9.05%"}},{"$f":"Actif!$E$31/100","v":{"v":0.0605,"d":"6.05%"}},{"$f":"Actif!$E$32/100","v":{"v":0.47350000000000003,"d":"47.35%"}},{"$f":"Actif!$E$33/100","v":{"v":0.0585,"d":"5.85%"}},{"$f":"Actif!$E$29/100","v":{"v":0.027999999999999997,"d":"2.80%"}}]
[null,"#166",20,2026,"F","A_CAPI",{"v":0.44999999999999996,"d":"0.45"},{"v":0.38999999999999996,"d":"0.39"},0.6,0.6,85,0,{"$f":"ROUND(Primes!$O$10*V4267,2)","v":0.15},0,{"v":2887.004006977841,"d":"2,887"},{"$f":"'BP Financier'!$E$44*(('BP Financier'!$C$22+'BP Financier'!$D$22+'BP Financier'!$E$22)/('BP Financier'!$C$16+'BP Financier'!$C$19+'BP Financier'!$D$16+'BP Financier'!$D$19+'BP Financier'!$E$16+'BP Financier'!$E$19+'BP Financier'!$C$22+'BP Financier'!$D$22+'BP Financier'!$E$22))*$V4267*X4267/(1-$W4267)","v":{"v":367.4737871047744,"d":"367"}},{"$f":"'BP Financier'!$E$44*(('BP Financier'!$C$22+'BP Financier'!$D$22+'BP Financier'!$E$22)/('BP Financier'!$C$16+'BP Financier'!$C$19+'BP Financier'!$D$16+'BP Financier'!$D$19+'BP Financier'!$E$16+'BP Financier'!$E$19+'BP Financier'!$C$22+'BP Financier'!$D$22+'BP Financier'!$E$22))*$V4267*Y4267/(1-$W4267)","v":{"v":245.65927204241822,"d":"246"}},{"$f":"'BP Financier'!$E$44*(('BP Financier'!$C$22+'BP Financier'!$D$22+'BP Financier'!$E$22)/('BP Financier'!$C$16+'BP Financier'!$C$19+'BP Financier'!$D$16+'BP Financier'!$D$19+'BP Financier'!$E$16+'BP Financier'!$E$19+'BP Financier'!$C$22+'BP Financier'!$D$22+'BP Financier'!$E$22))*$V4267*Z4267/(1-$W4267)","v":{"v":1922.6390960675212,"d":"1,923"}},{"$f":"'BP Financier'!$E$44*(('BP Financier'!$C$22+'BP Financier'!$D$22+'BP Financier'!$E$22)/('BP Financier'!$C$16+'BP Financier'!$C$19+'BP Financier'!$D$16+'BP Financier'!$D$19+'BP Financier'!$E$16+'BP Financier'!$E$19+'BP Financier'!$C$22+'BP Financier'!$D$22+'BP Financier'!$E$22))*$V4267*AA4267/(1-$W4267)","v":{"v":237.5383043715945,"d":"238"}},{"$f":"'BP Financier'!$E$44*(('BP Financier'!$C$22+'BP Financier'!$D$22+'BP Financier'!$E$22)/('BP Financier'!$C$16+'BP Financier'!$C$19+'BP Financier'!$D$16+'BP Financier'!$D$19+'BP Financier'!$E$16+'BP Financier'!$E$19+'BP Financier'!$C$22+'BP Financier'!$D$22+'BP Financier'!$E$22))*$V4267*AB4267/(1-$W4267)","v":{"v":113.69354739153239,"d":"114"}},null,{"v":3.3333333333333335E-3,"d":"0.33%"},{"$f":"Actif!$E$28/100","v":{"v":0.28900000000000003,"d":"28.90%"}},{"$f":"Actif!$E$30/100","v":{"v":0.09050000000000001,"d":"9.05%"}},{"$f":"Actif!$E$31/100","v":{"v":0.0605,"d":"6.05%"}},{"$f":"Actif!$E$32/100","v":{"v":0.47350000000000003,"d":"47.35%"}},{"$f":"Actif!$E$33/100","v":{"v":0.0585,"d":"5.85%"}},{"$f":"Actif!$E$29/100","v":{"v":0.027999999999999997,"d":"2.80%"}}]
[null,"#167",20,2028,"F","A_CAPI",{"v":0.44999999999999996,"d":"0.45"},{"v":0.38999999999999996,"d":"0.39"},0.6,0.6,85,0,{"$f":"ROUND(Primes!$O$10*V4268,2)","v":0.15},0,{"v":2887.004006977841,"d":"2,887"},{"$f":"'BP Financier'!$E$44*(('BP Financier'!$C$22+'BP Financier'!$D$22+'BP Financier'!$E$22)/('BP Financier'!$C$16+'BP Financier'!$C$19+'BP Financier'!$D$16+'BP Financier'!$D$19+'BP Financier'!$E$16+'BP Financier'!$E$19+'BP Financier'!$C$22+'BP Financier'!$D$22+'BP Financier'!$E$22))*$V4268*X4268/(1-$W4268)","v":{"v":367.4737871047744,"d":"367"}},{"$f":"'BP Financier'!$E$44*(('BP Financier'!$C$22+'BP Financier'!$D$22+'BP Financier'!$E$22)/('BP Financier'!$C$16+'BP Financier'!$C$19+'BP Financier'!$D$16+'BP Financier'!$D$19+'BP Financier'!$E$16+'BP Financier'!$E$19+'BP Financier'!$C$22+'BP Financier'!$D$22+'BP Financier'!$E$22))*$V4268*Y4268/(1-$W4268)","v":{"v":245.65927204241822,"d":"246"}},{"$f":"'BP Financier'!$E$44*(('BP Financier'!$C$22+'BP Financier'!$D$22+'BP Financier'!$E$22)/('BP Financier'!$C$16+'BP Financier'!$C$19+'BP Financier'!$D$16+'BP Financier'!$D$19+'BP Financier'!$E$16+'BP Financier'!$E$19+'BP Financier'!$C$22+'BP Financier'!$D$22+'BP Financier'!$E$22))*$V4268*Z4268/(1-$W4268)","v":{"v":1922.6390960675212,"d":"1,923"}},{"$f":"'BP Financier'!$E$44*(('BP Financier'!$C$22+'BP Financier'!$D$22+'BP Financier'!$E$22)/('BP Financier'!$C$16+'BP Financier'!$C$19+'BP Financier'!$D$16+'BP Financier'!$D$19+'BP Financier'!$E$16+'BP Financier'!$E$19+'BP Financier'!$C$22+'BP Financier'!$D$22+'BP Financier'!$E$22))*$V4268*AA4268/(1-$W4268)","v":{"v":237.5383043715945,"d":"238"}},{"$f":"'BP Financier'!$E$44*(('BP Financier'!$C$22+'BP Financier'!$D$22+'BP Financier'!$E$22)/('BP Financier'!$C$16+'BP Financier'!$C$19+'BP Financier'!$D$16+'BP Financier'!$D$19+'BP Financier'!$E$16+'BP Financier'!$E$19+'BP Financier'!$C$22+'BP Financier'!$D$22+'BP Financier'!$E$22))*$V4268*AB4268/(1-$W4268)","v":{"v":113.69354739153239,"d":"114"}},null,{"v":3.3333333333333335E-3,"d":"0.33%"},{"$f":"Actif!$E$28/100","v":{"v":0.28900000000000003,"d":"28.90%"}},{"$f":"Actif!$E$30/100","v":{"v":0.09050000000000001,"d":"9.05%"}},{"$f":"Actif!$E$31/100","v":{"v":0.0605,"d":"6.05%"}},{"$f":"Actif!$E$32/100","v":{"v":0.47350000000000003,"d":"47.35%"}},{"$f":"Actif!$E$33/100","v":{"v":0.0585,"d":"5.85%"}},{"$f":"Actif!$E$29/100","v":{"v":0.027999999999999997,"d":"2.80%"}}]
[null,"#168",20,2029,"F","A_CAPI",{"v":0.44999999999999996,"d":"0.45"},{"v":0.38999999999999996,"d":"0.39"},0.6,0.6,85,0,{"$f":"ROUND(Primes!$O$10*V4269,2)","v":0.15},0,{"v":2887.004006977841,"d":"2,887"},{"$f":"'BP Financier'!$E$44*(('BP Financier'!$C$22+'BP Financier'!$D$22+'BP Financier'!$E$22)/('BP Financier'!$C$16+'BP Financier'!$C$19+'BP Financier'!$D$16+'BP Financier'!$D$19+'BP Financier'!$E$16+'BP Financier'!$E$19+'BP Financier'!$C$22+'BP Financier'!$D$22+'BP Financier'!$E$22))*$V4269*X4269/(1-$W4269)","v":{"v":367.4737871047744,"d":"367"}},{"$f":"'BP Financier'!$E$44*(('BP Financier'!$C$22+'BP Financier'!$D$22+'BP Financier'!$E$22)/('BP Financier'!$C$16+'BP Financier'!$C$19+'BP Financier'!$D$16+'BP Financier'!$D$19+'BP Financier'!$E$16+'BP Financier'!$E$19+'BP Financier'!$C$22+'BP Financier'!$D$22+'BP Financier'!$E$22))*$V4269*Y4269/(1-$W4269)","v":{"v":245.65927204241822,"d":"246"}},{"$f":"'BP Financier'!$E$44*(('BP Financier'!$C$22+'BP Financier'!$D$22+'BP Financier'!$E$22)/('BP Financier'!$C$16+'BP Financier'!$C$19+'BP Financier'!$D$16+'BP Financier'!$D$19+'BP Financier'!$E$16+'BP Financier'!$E$19+'BP Financier'!$C$22+'BP Financier'!$D$22+'BP Financier'!$E$22))*$V4269*Z4269/(1-$W4269)","v":{"v":1922.6390960675212,"d":"1,923"}},{"$f":"'BP Financier'!$E$44*(('BP Financier'!$C$22+'BP Financier'!$D$22+'BP Financier'!$E$22)/('BP Financier'!$C$16+'BP Financier'!$C$19+'BP Financier'!$D$16+'BP Financier'!$D$19+'BP Financier'!$E$16+'BP Financier'!$E$19+'BP Financier'!$C$22+'BP Financier'!$D$22+'BP Financier'!$E$22))*$V4269*AA4269/(1-$W4269)","v":{"v":237.5383043715945,"d":"238"}},{"$f":"'BP Financier'!$E$44*(('BP Financier'!$C$22+'BP Financier'!$D$22+'BP Financier'!$E$22)/('BP Financier'!$C$16+'BP Financier'!$C$19+'BP Financier'!$D$16+'BP Financier'!$D$19+'BP Financier'!$E$16+'BP Financier'!$E$19+'BP Financier'!$C$22+'BP Financier'!$D$22+'BP Financier'!$E$22))*$V4269*AB4269/(1-$W4269)","v":{"v":113.69354739153239,"d":"114"}},null,{"v":3.3333333333333335E-3,"d":"0.33%"},{"$f":"Actif!$E$28/100","v":{"v":0.28900000000000003,"d":"28.90%"}},{"$f":"Actif!$E$30/100","v":{"v":0.09050000000000001,"d":"9.05%"}},{"$f":"Actif!$E$31/100","v":{"v":0.0605,"d":"6.05%"}},{"$f":"Actif!$E$32/100","v":{"v":0.47350000000000003,"d":"47.35%"}},{"$f":"Actif!$E$33/100","v":{"v":0.0585,"d":"5.85%"}},{"$f":"Actif!$E$29/100","v":{"v":0.027999999999999997,"d":"2.80%"}}]
[null,"#169",21,2026,"H","A_CAPI",{"v":0.44999999999999996,"d":"0.45"},{"v":0.38999999999999996,"d":"0.39"},0.6,0.6,85,0,{"$f":"ROUND(Primes!$O$10*V4270,2)","v":0.15},0,{"v":2887.004006977841,"d":"2,887"},{"$f":"'BP Financier'!$E$44*(('BP Financier'!$C$22+'BP Financier'!$D$22+'BP Financier'!$E$22)/('BP Financier'!$C$16+'BP Financier'!$C$19+'BP Financier'!$D$16+'BP Financier'!$D$19+'BP Financier'!$E$16+'BP Financier'!$E$19+'BP Financier'!$C$22+'BP Financier'!$D$22+'BP Financier'!$E$22))*$V4270*X4270/(1-$W4270)","v":{"v":367.4737871047744,"d":"367"}},{"$f":"'BP Financier'!$E$44*(('BP Financier'!$C$22+'BP Financier'!$D$22+'BP Financier'!$E$22)/('BP Financier'!$C$16+'BP Financier'!$C$19+'BP Financier'!$D$16+'BP Financier'!$D$19+'BP Financier'!$E$16+'BP Financier'!$E$19+'BP Financier'!$C$22+'BP Financier'!$D$22+'BP Financier'!$E$22))*$V4270*Y4270/(1-$W4270)","v":{"v":245.65927204241822,"d":"246"}},{"$f":"'BP Financier'!$E$44*(('BP Financier'!$C$22+'BP Financier'!$D$22+'BP Financier'!$E$22)/('BP Financier'!$C$16+'BP Financier'!$C$19+'BP Financier'!$D$16+'BP Financier'!$D$19+'BP Financier'!$E$16+'BP Financier'!$E$19+'BP Financier'!$C$22+'BP Financier'!$D$22+'BP Financier'!$E$22))*$V4270*Z4270/(1-$W4270)","v":{"v":1922.6390960675212,"d":"1,923"}},{"$f":"'BP Financier'!$E$44*(('BP Financier'!$C$22+'BP Financier'!$D$22+'BP Financier'!$E$22)/('BP Financier'!$C$16+'BP Financier'!$C$19+'BP Financier'!$D$16+'BP Financier'!$D$19+'BP Financier'!$E$16+'BP Financier'!$E$19+'BP Financier'!$C$22+'BP Financier'!$D$22+'BP Financier'!$E$22))*$V4270*AA4270/(1-$W4270)","v":{"v":237.5383043715945,"d":"238"}},{"$f":"'BP Financier'!$E$44*(('BP Financier'!$C$22+'BP Financier'!$D$22+'BP Financier'!$E$22)/('BP Financier'!$C$16+'BP Financier'!$C$19+'BP Financier'!$D$16+'BP Financier'!$D$19+'BP Financier'!$E$16+'BP Financier'!$E$19+'BP Financier'!$C$22+'BP Financier'!$D$22+'BP Financier'!$E$22))*$V4270*AB4270/(1-$W4270)","v":{"v":113.69354739153239,"d":"114"}},null,{"v":3.3333333333333335E-3,"d":"0.33%"},{"$f":"Actif!$E$28/100","v":{"v":0.28900000000000003,"d":"28.90%"}},{"$f":"Actif!$E$30/100","v":{"v":0.09050000000000001,"d":"9.05%"}},{"$f":"Actif!$E$31/100","v":{"v":0.0605,"d":"6.05%"}},{"$f":"Actif!$E$32/100","v":{"v":0.47350000000000003,"d":"47.35%"}},{"$f":"Actif!$E$33/100","v":{"v":0.0585,"d":"5.85%"}},{"$f":"Actif!$E$29/100","v":{"v":0.027999999999999997,"d":"2.80%"}}]
[null,"#170",21,2028,"H","A_CAPI",{"v":0.44999999999999996,"d":"0.45"},{"v":0.38999999999999996,"d":"0.39"},0.6,0.6,85,0,{"$f":"ROUND(Primes!$O$10*V4271,2)","v":0.15},0,{"v":2887.004006977841,"d":"2,887"},{"$f":"'BP Financier'!$E$44*(('BP Financier'!$C$22+'BP Financier'!$D$22+'BP Financier'!$E$22)/('BP Financier'!$C$16+'BP Financier'!$C$19+'BP Financier'!$D$16+'BP Financier'!$D$19+'BP Financier'!$E$16+'BP Financier'!$E$19+'BP Financier'!$C$22+'BP Financier'!$D$22+'BP Financier'!$E$22))*$V4271*X4271/(1-$W4271)","v":{"v":367.4737871047744,"d":"367"}},{"$f":"'BP Financier'!$E$44*(('BP Financier'!$C$22+'BP Financier'!$D$22+'BP Financier'!$E$22)/('BP Financier'!$C$16+'BP Financier'!$C$19+'BP Financier'!$D$16+'BP Financier'!$D$19+'BP Financier'!$E$16+'BP Financier'!$E$19+'BP Financier'!$C$22+'BP Financier'!$D$22+'BP Financier'!$E$22))*$V4271*Y4271/(1-$W4271)","v":{"v":245.65927204241822,"d":"246"}},{"$f":"'BP Financier'!$E$44*(('BP Financier'!$C$22+'BP Financier'!$D$22+'BP Financier'!$E$22)/('BP Financier'!$C$16+'BP Financier'!$C$19+'BP Financier'!$D$16+'BP Financier'!$D$19+'BP Financier'!$E$16+'BP Financier'!$E$19+'BP Financier'!$C$22+'BP Financier'!$D$22+'BP Financier'!$E$22))*$V4271*Z4271/(1-$W4271)","v":{"v":1922.6390960675212,"d":"1,923"}},{"$f":"'BP Financier'!$E$44*(('BP Financier'!$C$22+'BP Financier'!$D$22+'BP Financier'!$E$22)/('BP Financier'!$C$16+'BP Financier'!$C$19+'BP Financier'!$D$16+'BP Financier'!$D$19+'BP Financier'!$E$16+'BP Financier'!$E$19+'BP Financier'!$C$22+'BP Financier'!$D$22+'BP Financier'!$E$22))*$V4271*AA4271/(1-$W4271)","v":{"v":237.5383043715945,"d":"238"}},{"$f":"'BP Financier'!$E$44*(('BP Financier'!$C$22+'BP Financier'!$D$22+'BP Financier'!$E$22)/('BP Financier'!$C$16+'BP Financier'!$C$19+'BP Financier'!$D$16+'BP Financier'!$D$19+'BP Financier'!$E$16+'BP Financier'!$E$19+'BP Financier'!$C$22+'BP Financier'!$D$22+'BP Financier'!$E$22))*$V4271*AB4271/(1-$W4271)","v":{"v":113.69354739153239,"d":"114"}},null,{"v":3.3333333333333335E-3,"d":"0.33%"},{"$f":"Actif!$E$28/100","v":{"v":0.28900000000000003,"d":"28.90%"}},{"$f":"Actif!$E$30/100","v":{"v":0.09050000000000001,"d":"9.05%"}},{"$f":"Actif!$E$31/100","v":{"v":0.0605,"d":"6.05%"}},{"$f":"Actif!$E$32/100","v":{"v":0.47350000000000003,"d":"47.35%"}},{"$f":"Actif!$E$33/100","v":{"v":0.0585,"d":"5.85%"}},{"$f":"Actif!$E$29/100","v":{"v":0.027999999999999997,"d":"2.80%"}}]
[null,"#171",21,2029,"H","A_CAPI",{"v":0.44999999999999996,"d":"0.45"},{"v":0.38999999999999996,"d":"0.39"},0.6,0.6,85,0,{"$f":"ROUND(Primes!$O$10*V4272,2)","v":0.15},0,{"v":2887.004006977841,"d":"2,887"},{"$f":"'BP Financier'!$E$44*(('BP Financier'!$C$22+'BP Financier'!$D$22+'BP Financier'!$E$22)/('BP Financier'!$C$16+'BP Financier'!$C$19+'BP Financier'!$D$16+'BP Financier'!$D$19+'BP Financier'!$E$16+'BP Financier'!$E$19+'BP Financier'!$C$22+'BP Financier'!$D$22+'BP Financier'!$E$22))*$V4272*X4272/(1-$W4272)","v":{"v":367.4737871047744,"d":"367"}},{"$f":"'BP Financier'!$E$44*(('BP Financier'!$C$22+'BP Financier'!$D$22+'BP Financier'!$E$22)/('BP Financier'!$C$16+'BP Financier'!$C$19+'BP Financier'!$D$16+'BP Financier'!$D$19+'BP Financier'!$E$16+'BP Financier'!$E$19+'BP Financier'!$C$22+'BP Financier'!$D$22+'BP Financier'!$E$22))*$V4272*Y4272/(1-$W4272)","v":{"v":245.65927204241822,"d":"246"}},{"$f":"'BP Financier'!$E$44*(('BP Financier'!$C$22+'BP Financier'!$D$22+'BP Financier'!$E$22)/('BP Financier'!$C$16+'BP Financier'!$C$19+'BP Financier'!$D$16+'BP Financier'!$D$19+'BP Financier'!$E$16+'BP Financier'!$E$19+'BP Financier'!$C$22+'BP Financier'!$D$22+'BP Financier'!$E$22))*$V4272*Z4272/(1-$W4272)","v":{"v":1922.6390960675212,"d":"1,923"}},{"$f":"'BP Financier'!$E$44*(('BP Financier'!$C$22+'BP Financier'!$D$22+'BP Financier'!$E$22)/('BP Financier'!$C$16+'BP Financier'!$C$19+'BP Financier'!$D$16+'BP Financier'!$D$19+'BP Financier'!$E$16+'BP Financier'!$E$19+'BP Financier'!$C$22+'BP Financier'!$D$22+'BP Financier'!$E$22))*$V4272*AA4272/(1-$W4272)","v":{"v":237.5383043715945,"d":"238"}},{"$f":"'BP Financier'!$E$44*(('BP Financier'!$C$22+'BP Financier'!$D$22+'BP Financier'!$E$22)/('BP Financier'!$C$16+'BP Financier'!$C$19+'BP Financier'!$D$16+'BP Financier'!$D$19+'BP Financier'!$E$16+'BP Financier'!$E$19+'BP Financier'!$C$22+'BP Financier'!$D$22+'BP Financier'!$E$22))*$V4272*AB4272/(1-$W4272)","v":{"v":113.69354739153239,"d":"114"}},null,{"v":3.3333333333333335E-3,"d":"0.33%"},{"$f":"Actif!$E$28/100","v":{"v":0.28900000000000003,"d":"28.90%"}},{"$f":"Actif!$E$30/100","v":{"v":0.09050000000000001,"d":"9.05%"}},{"$f":"Actif!$E$31/100","v":{"v":0.0605,"d":"6.05%"}},{"$f":"Actif!$E$32/100","v":{"v":0.47350000000000003,"d":"47.35%"}},{"$f":"Actif!$E$33/100","v":{"v":0.0585,"d":"5.85%"}},{"$f":"Actif!$E$29/100","v":{"v":0.027999999999999997,"d":"2.80%"}}]
[null,"#172",22,2026,"H","A_CAPI",{"v":0.44999999999999996,"d":"0.45"},{"v":0.38999999999999996,"d":"0.39"},0.6,0.6,85,0,{"$f":"ROUND(Primes!$O$10*V4273,2)","v":0.15},0,{"v":2887.004006977841,"d":"2,887"},{"$f":"'BP Financier'!$E$44*(('BP Financier'!$C$22+'BP Financier'!$D$22+'BP Financier'!$E$22)/('BP Financier'!$C$16+'BP Financier'!$C$19+'BP Financier'!$D$16+'BP Financier'!$D$19+'BP Financier'!$E$16+'BP Financier'!$E$19+'BP Financier'!$C$22+'BP Financier'!$D$22+'BP Financier'!$E$22))*$V4273*X4273/(1-$W4273)","v":{"v":367.4737871047744,"d":"367"}},{"$f":"'BP Financier'!$E$44*(('BP Financier'!$C$22+'BP Financier'!$D$22+'BP Financier'!$E$22)/('BP Financier'!$C$16+'BP Financier'!$C$19+'BP Financier'!$D$16+'BP Financier'!$D$19+'BP Financier'!$E$16+'BP Financier'!$E$19+'BP Financier'!$C$22+'BP Financier'!$D$22+'BP Financier'!$E$22))*$V4273*Y4273/(1-$W4273)","v":{"v":245.65927204241822,"d":"246"}},{"$f":"'BP Financier'!$E$44*(('BP Financier'!$C$22+'BP Financier'!$D$22+'BP Financier'!$E$22)/('BP Financier'!$C$16+'BP Financier'!$C$19+'BP Financier'!$D$16+'BP Financier'!$D$19+'BP Financier'!$E$16+'BP Financier'!$E$19+'BP Financier'!$C$22+'BP Financier'!$D$22+'BP Financier'!$E$22))*$V4273*Z4273/(1-$W4273)","v":{"v":1922.6390960675212,"d":"1,923"}},{"$f":"'BP Financier'!$E$44*(('BP Financier'!$C$22+'BP Financier'!$D$22+'BP Financier'!$E$22)/('BP Financier'!$C$16+'BP Financier'!$C$19+'BP Financier'!$D$16+'BP Financier'!$D$19+'BP Financier'!$E$16+'BP Financier'!$E$19+'BP Financier'!$C$22+'BP Financier'!$D$22+'BP Financier'!$E$22))*$V4273*AA4273/(1-$W4273)","v":{"v":237.5383043715945,"d":"238"}},{"$f":"'BP Financier'!$E$44*(('BP Financier'!$C$22+'BP Financier'!$D$22+'BP Financier'!$E$22)/('BP Financier'!$C$16+'BP Financier'!$C$19+'BP Financier'!$D$16+'BP Financier'!$D$19+'BP Financier'!$E$16+'BP Financier'!$E$19+'BP Financier'!$C$22+'BP Financier'!$D$22+'BP Financier'!$E$22))*$V4273*AB4273/(1-$W4273)","v":{"v":113.69354739153239,"d":"114"}},null,{"v":3.3333333333333335E-3,"d":"0.33%"},{"$f":"Actif!$E$28/100","v":{"v":0.28900000000000003,"d":"28.90%"}},{"$f":"Actif!$E$30/100","v":{"v":0.09050000000000001,"d":"9.05%"}},{"$f":"Actif!$E$31/100","v":{"v":0.0605,"d":"6.05%"}},{"$f":"Actif!$E$32/100","v":{"v":0.47350000000000003,"d":"47.35%"}},{"$f":"Actif!$E$33/100","v":{"v":0.0585,"d":"5.85%"}},{"$f":"Actif!$E$29/100","v":{"v":0.027999999999999997,"d":"2.80%"}}]
[null,"#173",22,2028,"H","A_CAPI",{"v":0.44999999999999996,"d":"0.45"},{"v":0.38999999999999996,"d":"0.39"},0.6,0.6,85,0,{"$f":"ROUND(Primes!$O$10*V4274,2)","v":0.15},0,{"v":2887.004006977841,"d":"2,887"},{"$f":"'BP Financier'!$E$44*(('BP Financier'!$C$22+'BP Financier'!$D$22+'BP Financier'!$E$22)/('BP Financier'!$C$16+'BP Financier'!$C$19+'BP Financier'!$D$16+'BP Financier'!$D$19+'BP Financier'!$E$16+'BP Financier'!$E$19+'BP Financier'!$C$22+'BP Financier'!$D$22+'BP Financier'!$E$22))*$V4274*X4274/(1-$W4274)","v":{"v":367.4737871047744,"d":"367"}},{"$f":"'BP Financier'!$E$44*(('BP Financier'!$C$22+'BP Financier'!$D$22+'BP Financier'!$E$22)/('BP Financier'!$C$16+'BP Financier'!$C$19+'BP Financier'!$D$16+'BP Financier'!$D$19+'BP Financier'!$E$16+'BP Financier'!$E$19+'BP Financier'!$C$22+'BP Financier'!$D$22+'BP Financier'!$E$22))*$V4274*Y4274/(1-$W4274)","v":{"v":245.65927204241822,"d":"246"}},{"$f":"'BP Financier'!$E$44*(('BP Financier'!$C$22+'BP Financier'!$D$22+'BP Financier'!$E$22)/('BP Financier'!$C$16+'BP Financier'!$C$19+'BP Financier'!$D$16+'BP Financier'!$D$19+'BP Financier'!$E$16+'BP Financier'!$E$19+'BP Financier'!$C$22+'BP Financier'!$D$22+'BP Financier'!$E$22))*$V4274*Z4274/(1-$W4274)","v":{"v":1922.6390960675212,"d":"1,923"}},{"$f":"'BP Financier'!$E$44*(('BP Financier'!$C$22+'BP Financier'!$D$22+'BP Financier'!$E$22)/('BP Financier'!$C$16+'BP Financier'!$C$19+'BP Financier'!$D$16+'BP Financier'!$D$19+'BP Financier'!$E$16+'BP Financier'!$E$19+'BP Financier'!$C$22+'BP Financier'!$D$22+'BP Financier'!$E$22))*$V4274*AA4274/(1-$W4274)","v":{"v":237.5383043715945,"d":"238"}},{"$f":"'BP Financier'!$E$44*(('BP Financier'!$C$22+'BP Financier'!$D$22+'BP Financier'!$E$22)/('BP Financier'!$C$16+'BP Financier'!$C$19+'BP Financier'!$D$16+'BP Financier'!$D$19+'BP Financier'!$E$16+'BP Financier'!$E$19+'BP Financier'!$C$22+'BP Financier'!$D$22+'BP Financier'!$E$22))*$V4274*AB4274/(1-$W4274)","v":{"v":113.69354739153239,"d":"114"}},null,{"v":3.3333333333333335E-3,"d":"0.33%"},{"$f":"Actif!$E$28/100","v":{"v":0.28900000000000003,"d":"28.90%"}},{"$f":"Actif!$E$30/100","v":{"v":0.09050000000000001,"d":"9.05%"}},{"$f":"Actif!$E$31/100","v":{"v":0.0605,"d":"6.05%"}},{"$f":"Actif!$E$32/100","v":{"v":0.47350000000000003,"d":"47.35%"}},{"$f":"Actif!$E$33/100","v":{"v":0.0585,"d":"5.85%"}},{"$f":"Actif!$E$29/100","v":{"v":0.027999999999999997,"d":"2.80%"}}]
[null,"#174",22,2029,"H","A_CAPI",{"v":0.44999999999999996,"d":"0.45"},{"v":0.38999999999999996,"d":"0.39"},0.6,0.6,85,0,{"$f":"ROUND(Primes!$O$10*V4275,2)","v":0.15},0,{"v":2887.004006977841,"d":"2,887"},{"$f":"'BP Financier'!$E$44*(('BP Financier'!$C$22+'BP Financier'!$D$22+'BP Financier'!$E$22)/('BP Financier'!$C$16+'BP Financier'!$C$19+'BP Financier'!$D$16+'BP Financier'!$D$19+'BP Financier'!$E$16+'BP Financier'!$E$19+'BP Financier'!$C$22+'BP Financier'!$D$22+'BP Financier'!$E$22))*$V4275*X4275/(1-$W4275)","v":{"v":367.4737871047744,"d":"367"}},{"$f":"'BP Financier'!$E$44*(('BP Financier'!$C$22+'BP Financier'!$D$22+'BP Financier'!$E$22)/('BP Financier'!$C$16+'BP Financier'!$C$19+'BP Financier'!$D$16+'BP Financier'!$D$19+'BP Financier'!$E$16+'BP Financier'!$E$19+'BP Financier'!$C$22+'BP Financier'!$D$22+'BP Financier'!$E$22))*$V4275*Y4275/(1-$W4275)","v":{"v":245.65927204241822,"d":"246"}},{"$f":"'BP Financier'!$E$44*(('BP Financier'!$C$22+'BP Financier'!$D$22+'BP Financier'!$E$22)/('BP Financier'!$C$16+'BP Financier'!$C$19+'BP Financier'!$D$16+'BP Financier'!$D$19+'BP Financier'!$E$16+'BP Financier'!$E$19+'BP Financier'!$C$22+'BP Financier'!$D$22+'BP Financier'!$E$22))*$V4275*Z4275/(1-$W4275)","v":{"v":1922.6390960675212,"d":"1,923"}},{"$f":"'BP Financier'!$E$44*(('BP Financier'!$C$22+'BP Financier'!$D$22+'BP Financier'!$E$22)/('BP Financier'!$C$16+'BP Financier'!$C$19+'BP Financier'!$D$16+'BP Financier'!$D$19+'BP Financier'!$E$16+'BP Financier'!$E$19+'BP Financier'!$C$22+'BP Financier'!$D$22+'BP Financier'!$E$22))*$V4275*AA4275/(1-$W4275)","v":{"v":237.5383043715945,"d":"238"}},{"$f":"'BP Financier'!$E$44*(('BP Financier'!$C$22+'BP Financier'!$D$22+'BP Financier'!$E$22)/('BP Financier'!$C$16+'BP Financier'!$C$19+'BP Financier'!$D$16+'BP Financier'!$D$19+'BP Financier'!$E$16+'BP Financier'!$E$19+'BP Financier'!$C$22+'BP Financier'!$D$22+'BP Financier'!$E$22))*$V4275*AB4275/(1-$W4275)","v":{"v":113.69354739153239,"d":"114"}},null,{"v":3.3333333333333335E-3,"d":"0.33%"},{"$f":"Actif!$E$28/100","v":{"v":0.28900000000000003,"d":"28.90%"}},{"$f":"Actif!$E$30/100","v":{"v":0.09050000000000001,"d":"9.05%"}},{"$f":"Actif!$E$31/100","v":{"v":0.0605,"d":"6.05%"}},{"$f":"Actif!$E$32/100","v":{"v":0.47350000000000003,"d":"47.35%"}},{"$f":"Actif!$E$33/100","v":{"v":0.0585,"d":"5.85%"}},{"$f":"Actif!$E$29/100","v":{"v":0.027999999999999997,"d":"2.80%"}}]
[null,"#175",23,2026,"F","A_CAPI",{"v":0.44999999999999996,"d":"0.45"},{"v":0.38999999999999996,"d":"0.39"},0.6,0.6,85,0,{"$f":"ROUND(Primes!$O$10*V4276,2)","v":0.15},0,{"v":2887.004006977841,"d":"2,887"},{"$f":"'BP Financier'!$E$44*(('BP Financier'!$C$22+'BP Financier'!$D$22+'BP Financier'!$E$22)/('BP Financier'!$C$16+'BP Financier'!$C$19+'BP Financier'!$D$16+'BP Financier'!$D$19+'BP Financier'!$E$16+'BP Financier'!$E$19+'BP Financier'!$C$22+'BP Financier'!$D$22+'BP Financier'!$E$22))*$V4276*X4276/(1-$W4276)","v":{"v":367.4737871047744,"d":"367"}},{"$f":"'BP Financier'!$E$44*(('BP Financier'!$C$22+'BP Financier'!$D$22+'BP Financier'!$E$22)/('BP Financier'!$C$16+'BP Financier'!$C$19+'BP Financier'!$D$16+'BP Financier'!$D$19+'BP Financier'!$E$16+'BP Financier'!$E$19+'BP Financier'!$C$22+'BP Financier'!$D$22+'BP Financier'!$E$22))*$V4276*Y4276/(1-$W4276)","v":{"v":245.65927204241822,"d":"246"}},{"$f":"'BP Financier'!$E$44*(('BP Financier'!$C$22+'BP Financier'!$D$22+'BP Financier'!$E$22)/('BP Financier'!$C$16+'BP Financier'!$C$19+'BP Financier'!$D$16+'BP Financier'!$D$19+'BP Financier'!$E$16+'BP Financier'!$E$19+'BP Financier'!$C$22+'BP Financier'!$D$22+'BP Financier'!$E$22))*$V4276*Z4276/(1-$W4276)","v":{"v":1922.6390960675212,"d":"1,923"}},{"$f":"'BP Financier'!$E$44*(('BP Financier'!$C$22+'BP Financier'!$D$22+'BP Financier'!$E$22)/('BP Financier'!$C$16+'BP Financier'!$C$19+'BP Financier'!$D$16+'BP Financier'!$D$19+'BP Financier'!$E$16+'BP Financier'!$E$19+'BP Financier'!$C$22+'BP Financier'!$D$22+'BP Financier'!$E$22))*$V4276*AA4276/(1-$W4276)","v":{"v":237.5383043715945,"d":"238"}},{"$f":"'BP Financier'!$E$44*(('BP Financier'!$C$22+'BP Financier'!$D$22+'BP Financier'!$E$22)/('BP Financier'!$C$16+'BP Financier'!$C$19+'BP Financier'!$D$16+'BP Financier'!$D$19+'BP Financier'!$E$16+'BP Financier'!$E$19+'BP Financier'!$C$22+'BP Financier'!$D$22+'BP Financier'!$E$22))*$V4276*AB4276/(1-$W4276)","v":{"v":113.69354739153239,"d":"114"}},null,{"v":3.3333333333333335E-3,"d":"0.33%"},{"$f":"Actif!$E$28/100","v":{"v":0.28900000000000003,"d":"28.90%"}},{"$f":"Actif!$E$30/100","v":{"v":0.09050000000000001,"d":"9.05%"}},{"$f":"Actif!$E$31/100","v":{"v":0.0605,"d":"6.05%"}},{"$f":"Actif!$E$32/100","v":{"v":0.47350000000000003,"d":"47.35%"}},{"$f":"Actif!$E$33/100","v":{"v":0.0585,"d":"5.85%"}},{"$f":"Actif!$E$29/100","v":{"v":0.027999999999999997,"d":"2.80%"}}]
[null,"#176",23,2028,"F","A_CAPI",{"v":0.44999999999999996,"d":"0.45"},{"v":0.38999999999999996,"d":"0.39"},0.6,0.6,85,0,{"$f":"ROUND(Primes!$O$10*V4277,2)","v":0.15},0,{"v":2887.004006977841,"d":"2,887"},{"$f":"'BP Financier'!$E$44*(('BP Financier'!$C$22+'BP Financier'!$D$22+'BP Financier'!$E$22)/('BP Financier'!$C$16+'BP Financier'!$C$19+'BP Financier'!$D$16+'BP Financier'!$D$19+'BP Financier'!$E$16+'BP Financier'!$E$19+'BP Financier'!$C$22+'BP Financier'!$D$22+'BP Financier'!$E$22))*$V4277*X4277/(1-$W4277)","v":{"v":367.4737871047744,"d":"367"}},{"$f":"'BP Financier'!$E$44*(('BP Financier'!$C$22+'BP Financier'!$D$22+'BP Financier'!$E$22)/('BP Financier'!$C$16+'BP Financier'!$C$19+'BP Financier'!$D$16+'BP Financier'!$D$19+'BP Financier'!$E$16+'BP Financier'!$E$19+'BP Financier'!$C$22+'BP Financier'!$D$22+'BP Financier'!$E$22))*$V4277*Y4277/(1-$W4277)","v":{"v":245.65927204241822,"d":"246"}},{"$f":"'BP Financier'!$E$44*(('BP Financier'!$C$22+'BP Financier'!$D$22+'BP Financier'!$E$22)/('BP Financier'!$C$16+'BP Financier'!$C$19+'BP Financier'!$D$16+'BP Financier'!$D$19+'BP Financier'!$E$16+'BP Financier'!$E$19+'BP Financier'!$C$22+'BP Financier'!$D$22+'BP Financier'!$E$22))*$V4277*Z4277/(1-$W4277)","v":{"v":1922.6390960675212,"d":"1,923"}},{"$f":"'BP Financier'!$E$44*(('BP Financier'!$C$22+'BP Financier'!$D$22+'BP Financier'!$E$22)/('BP Financier'!$C$16+'BP Financier'!$C$19+'BP Financier'!$D$16+'BP Financier'!$D$19+'BP Financier'!$E$16+'BP Financier'!$E$19+'BP Financier'!$C$22+'BP Financier'!$D$22+'BP Financier'!$E$22))*$V4277*AA4277/(1-$W4277)","v":{"v":237.5383043715945,"d":"238"}},{"$f":"'BP Financier'!$E$44*(('BP Financier'!$C$22+'BP Financier'!$D$22+'BP Financier'!$E$22)/('BP Financier'!$C$16+'BP Financier'!$C$19+'BP Financier'!$D$16+'BP Financier'!$D$19+'BP Financier'!$E$16+'BP Financier'!$E$19+'BP Financier'!$C$22+'BP Financier'!$D$22+'BP Financier'!$E$22))*$V4277*AB4277/(1-$W4277)","v":{"v":113.69354739153239,"d":"114"}},null,{"v":3.3333333333333335E-3,"d":"0.33%"},{"$f":"Actif!$E$28/100","v":{"v":0.28900000000000003,"d":"28.90%"}},{"$f":"Actif!$E$30/100","v":{"v":0.09050000000000001,"d":"9.05%"}},{"$f":"Actif!$E$31/100","v":{"v":0.0605,"d":"6.05%"}},{"$f":"Actif!$E$32/100","v":{"v":0.47350000000000003,"d":"47.35%"}},{"$f":"Actif!$E$33/100","v":{"v":0.0585,"d":"5.85%"}},{"$f":"Actif!$E$29/100","v":{"v":0.027999999999999997,"d":"2.80%"}}]
[null,"#177",23,2029,"F","A_CAPI",{"v":0.44999999999999996,"d":"0.45"},{"v":0.38999999999999996,"d":"0.39"},0.6,0.6,85,0,{"$f":"ROUND(Primes!$O$10*V4278,2)","v":0.15},0,{"v":2887.004006977841,"d":"2,887"},{"$f":"'BP Financier'!$E$44*(('BP Financier'!$C$22+'BP Financier'!$D$22+'BP Financier'!$E$22)/('BP Financier'!$C$16+'BP Financier'!$C$19+'BP Financier'!$D$16+'BP Financier'!$D$19+'BP Financier'!$E$16+'BP Financier'!$E$19+'BP Financier'!$C$22+'BP Financier'!$D$22+'BP Financier'!$E$22))*$V4278*X4278/(1-$W4278)","v":{"v":367.4737871047744,"d":"367"}},{"$f":"'BP Financier'!$E$44*(('BP Financier'!$C$22+'BP Financier'!$D$22+'BP Financier'!$E$22)/('BP Financier'!$C$16+'BP Financier'!$C$19+'BP Financier'!$D$16+'BP Financier'!$D$19+'BP Financier'!$E$16+'BP Financier'!$E$19+'BP Financier'!$C$22+'BP Financier'!$D$22+'BP Financier'!$E$22))*$V4278*Y4278/(1-$W4278)","v":{"v":245.65927204241822,"d":"246"}},{"$f":"'BP Financier'!$E$44*(('BP Financier'!$C$22+'BP Financier'!$D$22+'BP Financier'!$E$22)/('BP Financier'!$C$16+'BP Financier'!$C$19+'BP Financier'!$D$16+'BP Financier'!$D$19+'BP Financier'!$E$16+'BP Financier'!$E$19+'BP Financier'!$C$22+'BP Financier'!$D$22+'BP Financier'!$E$22))*$V4278*Z4278/(1-$W4278)","v":{"v":1922.6390960675212,"d":"1,923"}},{"$f":"'BP Financier'!$E$44*(('BP Financier'!$C$22+'BP Financier'!$D$22+'BP Financier'!$E$22)/('BP Financier'!$C$16+'BP Financier'!$C$19+'BP Financier'!$D$16+'BP Financier'!$D$19+'BP Financier'!$E$16+'BP Financier'!$E$19+'BP Financier'!$C$22+'BP Financier'!$D$22+'BP Financier'!$E$22))*$V4278*AA4278/(1-$W4278)","v":{"v":237.5383043715945,"d":"238"}},{"$f":"'BP Financier'!$E$44*(('BP Financier'!$C$22+'BP Financier'!$D$22+'BP Financier'!$E$22)/('BP Financier'!$C$16+'BP Financier'!$C$19+'BP Financier'!$D$16+'BP Financier'!$D$19+'BP Financier'!$E$16+'BP Financier'!$E$19+'BP Financier'!$C$22+'BP Financier'!$D$22+'BP Financier'!$E$22))*$V4278*AB4278/(1-$W4278)","v":{"v":113.69354739153239,"d":"114"}},null,{"v":3.3333333333333335E-3,"d":"0.33%"},{"$f":"Actif!$E$28/100","v":{"v":0.28900000000000003,"d":"28.90%"}},{"$f":"Actif!$E$30/100","v":{"v":0.09050000000000001,"d":"9.05%"}},{"$f":"Actif!$E$31/100","v":{"v":0.0605,"d":"6.05%"}},{"$f":"Actif!$E$32/100","v":{"v":0.47350000000000003,"d":"47.35%"}},{"$f":"Actif!$E$33/100","v":{"v":0.0585,"d":"5.85%"}},{"$f":"Actif!$E$29/100","v":{"v":0.027999999999999997,"d":"2.80%"}}]
[null,"#178",24,2026,"H","A_CAPI",{"v":0.44999999999999996,"d":"0.45"},{"v":0.38999999999999996,"d":"0.39"},0.6,0.6,85,0,{"$f":"ROUND(Primes!$O$10*V4279,2)","v":0.15},0,{"v":2887.004006977841,"d":"2,887"},{"$f":"'BP Financier'!$E$44*(('BP Financier'!$C$22+'BP Financier'!$D$22+'BP Financier'!$E$22)/('BP Financier'!$C$16+'BP Financier'!$C$19+'BP Financier'!$D$16+'BP Financier'!$D$19+'BP Financier'!$E$16+'BP Financier'!$E$19+'BP Financier'!$C$22+'BP Financier'!$D$22+'BP Financier'!$E$22))*$V4279*X4279/(1-$W4279)","v":{"v":367.4737871047744,"d":"367"}},{"$f":"'BP Financier'!$E$44*(('BP Financier'!$C$22+'BP Financier'!$D$22+'BP Financier'!$E$22)/('BP Financier'!$C$16+'BP Financier'!$C$19+'BP Financier'!$D$16+'BP Financier'!$D$19+'BP Financier'!$E$16+'BP Financier'!$E$19+'BP Financier'!$C$22+'BP Financier'!$D$22+'BP Financier'!$E$22))*$V4279*Y4279/(1-$W4279)","v":{"v":245.65927204241822,"d":"246"}},{"$f":"'BP Financier'!$E$44*(('BP Financier'!$C$22+'BP Financier'!$D$22+'BP Financier'!$E$22)/('BP Financier'!$C$16+'BP Financier'!$C$19+'BP Financier'!$D$16+'BP Financier'!$D$19+'BP Financier'!$E$16+'BP Financier'!$E$19+'BP Financier'!$C$22+'BP Financier'!$D$22+'BP Financier'!$E$22))*$V4279*Z4279/(1-$W4279)","v":{"v":1922.6390960675212,"d":"1,923"}},{"$f":"'BP Financier'!$E$44*(('BP Financier'!$C$22+'BP Financier'!$D$22+'BP Financier'!$E$22)/('BP Financier'!$C$16+'BP Financier'!$C$19+'BP Financier'!$D$16+'BP Financier'!$D$19+'BP Financier'!$E$16+'BP Financier'!$E$19+'BP Financier'!$C$22+'BP Financier'!$D$22+'BP Financier'!$E$22))*$V4279*AA4279/(1-$W4279)","v":{"v":237.5383043715945,"d":"238"}},{"$f":"'BP Financier'!$E$44*(('BP Financier'!$C$22+'BP Financier'!$D$22+'BP Financier'!$E$22)/('BP Financier'!$C$16+'BP Financier'!$C$19+'BP Financier'!$D$16+'BP Financier'!$D$19+'BP Financier'!$E$16+'BP Financier'!$E$19+'BP Financier'!$C$22+'BP Financier'!$D$22+'BP Financier'!$E$22))*$V4279*AB4279/(1-$W4279)","v":{"v":113.69354739153239,"d":"114"}},null,{"v":3.3333333333333335E-3,"d":"0.33%"},{"$f":"Actif!$E$28/100","v":{"v":0.28900000000000003,"d":"28.90%"}},{"$f":"Actif!$E$30/100","v":{"v":0.09050000000000001,"d":"9.05%"}},{"$f":"Actif!$E$31/100","v":{"v":0.0605,"d":"6.05%"}},{"$f":"Actif!$E$32/100","v":{"v":0.47350000000000003,"d":"47.35%"}},{"$f":"Actif!$E$33/100","v":{"v":0.0585,"d":"5.85%"}},{"$f":"Actif!$E$29/100","v":{"v":0.027999999999999997,"d":"2.80%"}}]
[null,"#179",24,2028,"H","A_CAPI",{"v":0.44999999999999996,"d":"0.45"},{"v":0.38999999999999996,"d":"0.39"},0.6,0.6,85,0,{"$f":"ROUND(Primes!$O$10*V4280,2)","v":0.15},0,{"v":2887.004006977841,"d":"2,887"},{"$f":"'BP Financier'!$E$44*(('BP Financier'!$C$22+'BP Financier'!$D$22+'BP Financier'!$E$22)/('BP Financier'!$C$16+'BP Financier'!$C$19+'BP Financier'!$D$16+'BP Financier'!$D$19+'BP Financier'!$E$16+'BP Financier'!$E$19+'BP Financier'!$C$22+'BP Financier'!$D$22+'BP Financier'!$E$22))*$V4280*X4280/(1-$W4280)","v":{"v":367.4737871047744,"d":"367"}},{"$f":"'BP Financier'!$E$44*(('BP Financier'!$C$22+'BP Financier'!$D$22+'BP Financier'!$E$22)/('BP Financier'!$C$16+'BP Financier'!$C$19+'BP Financier'!$D$16+'BP Financier'!$D$19+'BP Financier'!$E$16+'BP Financier'!$E$19+'BP Financier'!$C$22+'BP Financier'!$D$22+'BP Financier'!$E$22))*$V4280*Y4280/(1-$W4280)","v":{"v":245.65927204241822,"d":"246"}},{"$f":"'BP Financier'!$E$44*(('BP Financier'!$C$22+'BP Financier'!$D$22+'BP Financier'!$E$22)/('BP Financier'!$C$16+'BP Financier'!$C$19+'BP Financier'!$D$16+'BP Financier'!$D$19+'BP Financier'!$E$16+'BP Financier'!$E$19+'BP Financier'!$C$22+'BP Financier'!$D$22+'BP Financier'!$E$22))*$V4280*Z4280/(1-$W4280)","v":{"v":1922.6390960675212,"d":"1,923"}},{"$f":"'BP Financier'!$E$44*(('BP Financier'!$C$22+'BP Financier'!$D$22+'BP Financier'!$E$22)/('BP Financier'!$C$16+'BP Financier'!$C$19+'BP Financier'!$D$16+'BP Financier'!$D$19+'BP Financier'!$E$16+'BP Financier'!$E$19+'BP Financier'!$C$22+'BP Financier'!$D$22+'BP Financier'!$E$22))*$V4280*AA4280/(1-$W4280)","v":{"v":237.5383043715945,"d":"238"}},{"$f":"'BP Financier'!$E$44*(('BP Financier'!$C$22+'BP Financier'!$D$22+'BP Financier'!$E$22)/('BP Financier'!$C$16+'BP Financier'!$C$19+'BP Financier'!$D$16+'BP Financier'!$D$19+'BP Financier'!$E$16+'BP Financier'!$E$19+'BP Financier'!$C$22+'BP Financier'!$D$22+'BP Financier'!$E$22))*$V4280*AB4280/(1-$W4280)","v":{"v":113.69354739153239,"d":"114"}},null,{"v":3.3333333333333335E-3,"d":"0.33%"},{"$f":"Actif!$E$28/100","v":{"v":0.28900000000000003,"d":"28.90%"}},{"$f":"Actif!$E$30/100","v":{"v":0.09050000000000001,"d":"9.05%"}},{"$f":"Actif!$E$31/100","v":{"v":0.0605,"d":"6.05%"}},{"$f":"Actif!$E$32/100","v":{"v":0.47350000000000003,"d":"47.35%"}},{"$f":"Actif!$E$33/100","v":{"v":0.0585,"d":"5.85%"}},{"$f":"Actif!$E$29/100","v":{"v":0.027999999999999997,"d":"2.80%"}}]
[null,"#180",24,2029,"H","A_CAPI",{"v":0.44999999999999996,"d":"0.45"},{"v":0.38999999999999996,"d":"0.39"},0.6,0.6,85,0,{"$f":"ROUND(Primes!$O$10*V4281,2)","v":0.15},0,{"v":2887.004006977841,"d":"2,887"},{"$f":"'BP Financier'!$E$44*(('BP Financier'!$C$22+'BP Financier'!$D$22+'BP Financier'!$E$22)/('BP Financier'!$C$16+'BP Financier'!$C$19+'BP Financier'!$D$16+'BP Financier'!$D$19+'BP Financier'!$E$16+'BP Financier'!$E$19+'BP Financier'!$C$22+'BP Financier'!$D$22+'BP Financier'!$E$22))*$V4281*X4281/(1-$W4281)","v":{"v":367.4737871047744,"d":"367"}},{"$f":"'BP Financier'!$E$44*(('BP Financier'!$C$22+'BP Financier'!$D$22+'BP Financier'!$E$22)/('BP Financier'!$C$16+'BP Financier'!$C$19+'BP Financier'!$D$16+'BP Financier'!$D$19+'BP Financier'!$E$16+'BP Financier'!$E$19+'BP Financier'!$C$22+'BP Financier'!$D$22+'BP Financier'!$E$22))*$V4281*Y4281/(1-$W4281)","v":{"v":245.65927204241822,"d":"246"}},{"$f":"'BP Financier'!$E$44*(('BP Financier'!$C$22+'BP Financier'!$D$22+'BP Financier'!$E$22)/('BP Financier'!$C$16+'BP Financier'!$C$19+'BP Financier'!$D$16+'BP Financier'!$D$19+'BP Financier'!$E$16+'BP Financier'!$E$19+'BP Financier'!$C$22+'BP Financier'!$D$22+'BP Financier'!$E$22))*$V4281*Z4281/(1-$W4281)","v":{"v":1922.6390960675212,"d":"1,923"}},{"$f":"'BP Financier'!$E$44*(('BP Financier'!$C$22+'BP Financier'!$D$22+'BP Financier'!$E$22)/('BP Financier'!$C$16+'BP Financier'!$C$19+'BP Financier'!$D$16+'BP Financier'!$D$19+'BP Financier'!$E$16+'BP Financier'!$E$19+'BP Financier'!$C$22+'BP Financier'!$D$22+'BP Financier'!$E$22))*$V4281*AA4281/(1-$W4281)","v":{"v":237.5383043715945,"d":"238"}},{"$f":"'BP Financier'!$E$44*(('BP Financier'!$C$22+'BP Financier'!$D$22+'BP Financier'!$E$22)/('BP Financier'!$C$16+'BP Financier'!$C$19+'BP Financier'!$D$16+'BP Financier'!$D$19+'BP Financier'!$E$16+'BP Financier'!$E$19+'BP Financier'!$C$22+'BP Financier'!$D$22+'BP Financier'!$E$22))*$V4281*AB4281/(1-$W4281)","v":{"v":113.69354739153239,"d":"114"}},null,{"v":3.3333333333333335E-3,"d":"0.33%"},{"$f":"Actif!$E$28/100","v":{"v":0.28900000000000003,"d":"28.90%"}},{"$f":"Actif!$E$30/100","v":{"v":0.09050000000000001,"d":"9.05%"}},{"$f":"Actif!$E$31/100","v":{"v":0.0605,"d":"6.05%"}},{"$f":"Actif!$E$32/100","v":{"v":0.47350000000000003,"d":"47.35%"}},{"$f":"Actif!$E$33/100","v":{"v":0.0585,"d":"5.85%"}},{"$f":"Actif!$E$29/100","v":{"v":0.027999999999999997,"d":"2.80%"}}]
[null,"#181",25,2026,"H","A_CAPI",{"v":0.44999999999999996,"d":"0.45"},{"v":0.38999999999999996,"d":"0.39"},0.6,0.6,85,0,{"$f":"ROUND(Primes!$O$10*V4282,2)","v":0.75},0,{"v":14435.020034889203,"d":"14,435"},{"$f":"'BP Financier'!$E$44*(('BP Financier'!$C$22+'BP Financier'!$D$22+'BP Financier'!$E$22)/('BP Financier'!$C$16+'BP Financier'!$C$19+'BP Financier'!$D$16+'BP Financier'!$D$19+'BP Financier'!$E$16+'BP Financier'!$E$19+'BP Financier'!$C$22+'BP Financier'!$D$22+'BP Financier'!$E$22))*$V4282*X4282/(1-$W4282)","v":{"v":1837.3689355238719,"d":"1,837"}},{"$f":"'BP Financier'!$E$44*(('BP Financier'!$C$22+'BP Financier'!$D$22+'BP Financier'!$E$22)/('BP Financier'!$C$16+'BP Financier'!$C$19+'BP Financier'!$D$16+'BP Financier'!$D$19+'BP Financier'!$E$16+'BP Financier'!$E$19+'BP Financier'!$C$22+'BP Financier'!$D$22+'BP Financier'!$E$22))*$V4282*Y4282/(1-$W4282)","v":{"v":1228.296360212091,"d":"1,228"}},{"$f":"'BP Financier'!$E$44*(('BP Financier'!$C$22+'BP Financier'!$D$22+'BP Financier'!$E$22)/('BP Financier'!$C$16+'BP Financier'!$C$19+'BP Financier'!$D$16+'BP Financier'!$D$19+'BP Financier'!$E$16+'BP Financier'!$E$19+'BP Financier'!$C$22+'BP Financier'!$D$22+'BP Financier'!$E$22))*$V4282*Z4282/(1-$W4282)","v":{"v":9613.195480337605,"d":"9,613"}},{"$f":"'BP Financier'!$E$44*(('BP Financier'!$C$22+'BP Financier'!$D$22+'BP Financier'!$E$22)/('BP Financier'!$C$16+'BP Financier'!$C$19+'BP Financier'!$D$16+'BP Financier'!$D$19+'BP Financier'!$E$16+'BP Financier'!$E$19+'BP Financier'!$C$22+'BP Financier'!$D$22+'BP Financier'!$E$22))*$V4282*AA4282/(1-$W4282)","v":{"v":1187.6915218579725,"d":"1,188"}},{"$f":"'BP Financier'!$E$44*(('BP Financier'!$C$22+'BP Financier'!$D$22+'BP Financier'!$E$22)/('BP Financier'!$C$16+'BP Financier'!$C$19+'BP Financier'!$D$16+'BP Financier'!$D$19+'BP Financier'!$E$16+'BP Financier'!$E$19+'BP Financier'!$C$22+'BP Financier'!$D$22+'BP Financier'!$E$22))*$V4282*AB4282/(1-$W4282)","v":{"v":568.4677369576619,"d":"568"}},null,{"v":0.016666666666666666,"d":"1.67%"},{"$f":"Actif!$E$28/100","v":{"v":0.28900000000000003,"d":"28.90%"}},{"$f":"Actif!$E$30/100","v":{"v":0.09050000000000001,"d":"9.05%"}},{"$f":"Actif!$E$31/100","v":{"v":0.0605,"d":"6.05%"}},{"$f":"Actif!$E$32/100","v":{"v":0.47350000000000003,"d":"47.35%"}},{"$f":"Actif!$E$33/100","v":{"v":0.0585,"d":"5.85%"}},{"$f":"Actif!$E$29/100","v":{"v":0.027999999999999997,"d":"2.80%"}}]
[null,"#182",25,2028,"H","A_CAPI",{"v":0.44999999999999996,"d":"0.45"},{"v":0.38999999999999996,"d":"0.39"},0.6,0.6,85,0,{"$f":"ROUND(Primes!$O$10*V4283,2)","v":0.75},0,{"v":14435.020034889203,"d":"14,435"},{"$f":"'BP Financier'!$E$44*(('BP Financier'!$C$22+'BP Financier'!$D$22+'BP Financier'!$E$22)/('BP Financier'!$C$16+'BP Financier'!$C$19+'BP Financier'!$D$16+'BP Financier'!$D$19+'BP Financier'!$E$16+'BP Financier'!$E$19+'BP Financier'!$C$22+'BP Financier'!$D$22+'BP Financier'!$E$22))*$V4283*X4283/(1-$W4283)","v":{"v":1837.3689355238719,"d":"1,837"}},{"$f":"'BP Financier'!$E$44*(('BP Financier'!$C$22+'BP Financier'!$D$22+'BP Financier'!$E$22)/('BP Financier'!$C$16+'BP Financier'!$C$19+'BP Financier'!$D$16+'BP Financier'!$D$19+'BP Financier'!$E$16+'BP Financier'!$E$19+'BP Financier'!$C$22+'BP Financier'!$D$22+'BP Financier'!$E$22))*$V4283*Y4283/(1-$W4283)","v":{"v":1228.296360212091,"d":"1,228"}},{"$f":"'BP Financier'!$E$44*(('BP Financier'!$C$22+'BP Financier'!$D$22+'BP Financier'!$E$22)/('BP Financier'!$C$16+'BP Financier'!$C$19+'BP Financier'!$D$16+'BP Financier'!$D$19+'BP Financier'!$E$16+'BP Financier'!$E$19+'BP Financier'!$C$22+'BP Financier'!$D$22+'BP Financier'!$E$22))*$V4283*Z4283/(1-$W4283)","v":{"v":9613.195480337605,"d":"9,613"}},{"$f":"'BP Financier'!$E$44*(('BP Financier'!$C$22+'BP Financier'!$D$22+'BP Financier'!$E$22)/('BP Financier'!$C$16+'BP Financier'!$C$19+'BP Financier'!$D$16+'BP Financier'!$D$19+'BP Financier'!$E$16+'BP Financier'!$E$19+'BP Financier'!$C$22+'BP Financier'!$D$22+'BP Financier'!$E$22))*$V4283*AA4283/(1-$W4283)","v":{"v":1187.6915218579725,"d":"1,188"}},{"$f":"'BP Financier'!$E$44*(('BP Financier'!$C$22+'BP Financier'!$D$22+'BP Financier'!$E$22)/('BP Financier'!$C$16+'BP Financier'!$C$19+'BP Financier'!$D$16+'BP Financier'!$D$19+'BP Financier'!$E$16+'BP Financier'!$E$19+'BP Financier'!$C$22+'BP Financier'!$D$22+'BP Financier'!$E$22))*$V4283*AB4283/(1-$W4283)","v":{"v":568.4677369576619,"d":"568"}},null,{"v":0.016666666666666666,"d":"1.67%"},{"$f":"Actif!$E$28/100","v":{"v":0.28900000000000003,"d":"28.90%"}},{"$f":"Actif!$E$30/100","v":{"v":0.09050000000000001,"d":"9.05%"}},{"$f":"Actif!$E$31/100","v":{"v":0.0605,"d":"6.05%"}},{"$f":"Actif!$E$32/100","v":{"v":0.47350000000000003,"d":"47.35%"}},{"$f":"Actif!$E$33/100","v":{"v":0.0585,"d":"5.85%"}},{"$f":"Actif!$E$29/100","v":{"v":0.027999999999999997,"d":"2.80%"}}]
[null,"#183",25,2029,"H","A_CAPI",{"v":0.44999999999999996,"d":"0.45"},{"v":0.38999999999999996,"d":"0.39"},0.6,0.6,85,0,{"$f":"ROUND(Primes!$O$10*V4284,2)","v":0.75},0,{"v":14435.020034889203,"d":"14,435"},{"$f":"'BP Financier'!$E$44*(('BP Financier'!$C$22+'BP Financier'!$D$22+'BP Financier'!$E$22)/('BP Financier'!$C$16+'BP Financier'!$C$19+'BP Financier'!$D$16+'BP Financier'!$D$19+'BP Financier'!$E$16+'BP Financier'!$E$19+'BP Financier'!$C$22+'BP Financier'!$D$22+'BP Financier'!$E$22))*$V4284*X4284/(1-$W4284)","v":{"v":1837.3689355238719,"d":"1,837"}},{"$f":"'BP Financier'!$E$44*(('BP Financier'!$C$22+'BP Financier'!$D$22+'BP Financier'!$E$22)/('BP Financier'!$C$16+'BP Financier'!$C$19+'BP Financier'!$D$16+'BP Financier'!$D$19+'BP Financier'!$E$16+'BP Financier'!$E$19+'BP Financier'!$C$22+'BP Financier'!$D$22+'BP Financier'!$E$22))*$V4284*Y4284/(1-$W4284)","v":{"v":1228.296360212091,"d":"1,228"}},{"$f":"'BP Financier'!$E$44*(('BP Financier'!$C$22+'BP Financier'!$D$22+'BP Financier'!$E$22)/('BP Financier'!$C$16+'BP Financier'!$C$19+'BP Financier'!$D$16+'BP Financier'!$D$19+'BP Financier'!$E$16+'BP Financier'!$E$19+'BP Financier'!$C$22+'BP Financier'!$D$22+'BP Financier'!$E$22))*$V4284*Z4284/(1-$W4284)","v":{"v":9613.195480337605,"d":"9,613"}},{"$f":"'BP Financier'!$E$44*(('BP Financier'!$C$22+'BP Financier'!$D$22+'BP Financier'!$E$22)/('BP Financier'!$C$16+'BP Financier'!$C$19+'BP Financier'!$D$16+'BP Financier'!$D$19+'BP Financier'!$E$16+'BP Financier'!$E$19+'BP Financier'!$C$22+'BP Financier'!$D$22+'BP Financier'!$E$22))*$V4284*AA4284/(1-$W4284)","v":{"v":1187.6915218579725,"d":"1,188"}},{"$f":"'BP Financier'!$E$44*(('BP Financier'!$C$22+'BP Financier'!$D$22+'BP Financier'!$E$22)/('BP Financier'!$C$16+'BP Financier'!$C$19+'BP Financier'!$D$16+'BP Financier'!$D$19+'BP Financier'!$E$16+'BP Financier'!$E$19+'BP Financier'!$C$22+'BP Financier'!$D$22+'BP Financier'!$E$22))*$V4284*AB4284/(1-$W4284)","v":{"v":568.4677369576619,"d":"568"}},null,{"v":0.016666666666666666,"d":"1.67%"},{"$f":"Actif!$E$28/100","v":{"v":0.28900000000000003,"d":"28.90%"}},{"$f":"Actif!$E$30/100","v":{"v":0.09050000000000001,"d":"9.05%"}},{"$f":"Actif!$E$31/100","v":{"v":0.0605,"d":"6.05%"}},{"$f":"Actif!$E$32/100","v":{"v":0.47350000000000003,"d":"47.35%"}},{"$f":"Actif!$E$33/100","v":{"v":0.0585,"d":"5.85%"}},{"$f":"Actif!$E$29/100","v":{"v":0.027999999999999997,"d":"2.80%"}}]
[null,"#184",26,2026,"F","A_CAPI",{"v":0.44999999999999996,"d":"0.45"},{"v":0.38999999999999996,"d":"0.39"},0.6,0.6,85,0,{"$f":"ROUND(Primes!$O$10*V4285,2)","v":0.45},0,{"v":8661.012020933522,"d":"8,661"},{"$f":"'BP Financier'!$E$44*(('BP Financier'!$C$22+'BP Financier'!$D$22+'BP Financier'!$E$22)/('BP Financier'!$C$16+'BP Financier'!$C$19+'BP Financier'!$D$16+'BP Financier'!$D$19+'BP Financier'!$E$16+'BP Financier'!$E$19+'BP Financier'!$C$22+'BP Financier'!$D$22+'BP Financier'!$E$22))*$V4285*X4285/(1-$W4285)","v":{"v":1102.4213613143233,"d":"1,102"}},{"$f":"'BP Financier'!$E$44*(('BP Financier'!$C$22+'BP Financier'!$D$22+'BP Financier'!$E$22)/('BP Financier'!$C$16+'BP Financier'!$C$19+'BP Financier'!$D$16+'BP Financier'!$D$19+'BP Financier'!$E$16+'BP Financier'!$E$19+'BP Financier'!$C$22+'BP Financier'!$D$22+'BP Financier'!$E$22))*$V4285*Y4285/(1-$W4285)","v":{"v":736.9778161272546,"d":"737"}},{"$f":"'BP Financier'!$E$44*(('BP Financier'!$C$22+'BP Financier'!$D$22+'BP Financier'!$E$22)/('BP Financier'!$C$16+'BP Financier'!$C$19+'BP Financier'!$D$16+'BP Financier'!$D$19+'BP Financier'!$E$16+'BP Financier'!$E$19+'BP Financier'!$C$22+'BP Financier'!$D$22+'BP Financier'!$E$22))*$V4285*Z4285/(1-$W4285)","v":{"v":5767.917288202564,"d":"5,768"}},{"$f":"'BP Financier'!$E$44*(('BP Financier'!$C$22+'BP Financier'!$D$22+'BP Financier'!$E$22)/('BP Financier'!$C$16+'BP Financier'!$C$19+'BP Financier'!$D$16+'BP Financier'!$D$19+'BP Financier'!$E$16+'BP Financier'!$E$19+'BP Financier'!$C$22+'BP Financier'!$D$22+'BP Financier'!$E$22))*$V4285*AA4285/(1-$W4285)","v":{"v":712.6149131147836,"d":"713"}},{"$f":"'BP Financier'!$E$44*(('BP Financier'!$C$22+'BP Financier'!$D$22+'BP Financier'!$E$22)/('BP Financier'!$C$16+'BP Financier'!$C$19+'BP Financier'!$D$16+'BP Financier'!$D$19+'BP Financier'!$E$16+'BP Financier'!$E$19+'BP Financier'!$C$22+'BP Financier'!$D$22+'BP Financier'!$E$22))*$V4285*AB4285/(1-$W4285)","v":{"v":341.0806421745972,"d":"341"}},null,{"v":0.01,"d":"1.00%"},{"$f":"Actif!$E$28/100","v":{"v":0.28900000000000003,"d":"28.90%"}},{"$f":"Actif!$E$30/100","v":{"v":0.09050000000000001,"d":"9.05%"}},{"$f":"Actif!$E$31/100","v":{"v":0.0605,"d":"6.05%"}},{"$f":"Actif!$E$32/100","v":{"v":0.47350000000000003,"d":"47.35%"}},{"$f":"Actif!$E$33/100","v":{"v":0.0585,"d":"5.85%"}},{"$f":"Actif!$E$29/100","v":{"v":0.027999999999999997,"d":"2.80%"}}]
[null,"#185",26,2028,"F","A_CAPI",{"v":0.44999999999999996,"d":"0.45"},{"v":0.38999999999999996,"d":"0.39"},0.6,0.6,85,0,{"$f":"ROUND(Primes!$O$10*V4286,2)","v":0.45},0,{"v":8661.012020933522,"d":"8,661"},{"$f":"'BP Financier'!$E$44*(('BP Financier'!$C$22+'BP Financier'!$D$22+'BP Financier'!$E$22)/('BP Financier'!$C$16+'BP Financier'!$C$19+'BP Financier'!$D$16+'BP Financier'!$D$19+'BP Financier'!$E$16+'BP Financier'!$E$19+'BP Financier'!$C$22+'BP Financier'!$D$22+'BP Financier'!$E$22))*$V4286*X4286/(1-$W4286)","v":{"v":1102.4213613143233,"d":"1,102"}},{"$f":"'BP Financier'!$E$44*(('BP Financier'!$C$22+'BP Financier'!$D$22+'BP Financier'!$E$22)/('BP Financier'!$C$16+'BP Financier'!$C$19+'BP Financier'!$D$16+'BP Financier'!$D$19+'BP Financier'!$E$16+'BP Financier'!$E$19+'BP Financier'!$C$22+'BP Financier'!$D$22+'BP Financier'!$E$22))*$V4286*Y4286/(1-$W4286)","v":{"v":736.9778161272546,"d":"737"}},{"$f":"'BP Financier'!$E$44*(('BP Financier'!$C$22+'BP Financier'!$D$22+'BP Financier'!$E$22)/('BP Financier'!$C$16+'BP Financier'!$C$19+'BP Financier'!$D$16+'BP Financier'!$D$19+'BP Financier'!$E$16+'BP Financier'!$E$19+'BP Financier'!$C$22+'BP Financier'!$D$22+'BP Financier'!$E$22))*$V4286*Z4286/(1-$W4286)","v":{"v":5767.917288202564,"d":"5,768"}},{"$f":"'BP Financier'!$E$44*(('BP Financier'!$C$22+'BP Financier'!$D$22+'BP Financier'!$E$22)/('BP Financier'!$C$16+'BP Financier'!$C$19+'BP Financier'!$D$16+'BP Financier'!$D$19+'BP Financier'!$E$16+'BP Financier'!$E$19+'BP Financier'!$C$22+'BP Financier'!$D$22+'BP Financier'!$E$22))*$V4286*AA4286/(1-$W4286)","v":{"v":712.6149131147836,"d":"713"}},{"$f":"'BP Financier'!$E$44*(('BP Financier'!$C$22+'BP Financier'!$D$22+'BP Financier'!$E$22)/('BP Financier'!$C$16+'BP Financier'!$C$19+'BP Financier'!$D$16+'BP Financier'!$D$19+'BP Financier'!$E$16+'BP Financier'!$E$19+'BP Financier'!$C$22+'BP Financier'!$D$22+'BP Financier'!$E$22))*$V4286*AB4286/(1-$W4286)","v":{"v":341.0806421745972,"d":"341"}},null,{"v":0.01,"d":"1.00%"},{"$f":"Actif!$E$28/100","v":{"v":0.28900000000000003,"d":"28.90%"}},{"$f":"Actif!$E$30/100","v":{"v":0.09050000000000001,"d":"9.05%"}},{"$f":"Actif!$E$31/100","v":{"v":0.0605,"d":"6.05%"}},{"$f":"Actif!$E$32/100","v":{"v":0.47350000000000003,"d":"47.35%"}},{"$f":"Actif!$E$33/100","v":{"v":0.0585,"d":"5.85%"}},{"$f":"Actif!$E$29/100","v":{"v":0.027999999999999997,"d":"2.80%"}}]
[null,"#186",26,2029,"F","A_CAPI",{"v":0.44999999999999996,"d":"0.45"},{"v":0.38999999999999996,"d":"0.39"},0.6,0.6,85,0,{"$f":"ROUND(Primes!$O$10*V4287,2)","v":0.45},0,{"v":8661.012020933522,"d":"8,661"},{"$f":"'BP Financier'!$E$44*(('BP Financier'!$C$22+'BP Financier'!$D$22+'BP Financier'!$E$22)/('BP Financier'!$C$16+'BP Financier'!$C$19+'BP Financier'!$D$16+'BP Financier'!$D$19+'BP Financier'!$E$16+'BP Financier'!$E$19+'BP Financier'!$C$22+'BP Financier'!$D$22+'BP Financier'!$E$22))*$V4287*X4287/(1-$W4287)","v":{"v":1102.4213613143233,"d":"1,102"}},{"$f":"'BP Financier'!$E$44*(('BP Financier'!$C$22+'BP Financier'!$D$22+'BP Financier'!$E$22)/('BP Financier'!$C$16+'BP Financier'!$C$19+'BP Financier'!$D$16+'BP Financier'!$D$19+'BP Financier'!$E$16+'BP Financier'!$E$19+'BP Financier'!$C$22+'BP Financier'!$D$22+'BP Financier'!$E$22))*$V4287*Y4287/(1-$W4287)","v":{"v":736.9778161272546,"d":"737"}},{"$f":"'BP Financier'!$E$44*(('BP Financier'!$C$22+'BP Financier'!$D$22+'BP Financier'!$E$22)/('BP Financier'!$C$16+'BP Financier'!$C$19+'BP Financier'!$D$16+'BP Financier'!$D$19+'BP Financier'!$E$16+'BP Financier'!$E$19+'BP Financier'!$C$22+'BP Financier'!$D$22+'BP Financier'!$E$22))*$V4287*Z4287/(1-$W4287)","v":{"v":5767.917288202564,"d":"5,768"}},{"$f":"'BP Financier'!$E$44*(('BP Financier'!$C$22+'BP Financier'!$D$22+'BP Financier'!$E$22)/('BP Financier'!$C$16+'BP Financier'!$C$19+'BP Financier'!$D$16+'BP Financier'!$D$19+'BP Financier'!$E$16+'BP Financier'!$E$19+'BP Financier'!$C$22+'BP Financier'!$D$22+'BP Financier'!$E$22))*$V4287*AA4287/(1-$W4287)","v":{"v":712.6149131147836,"d":"713"}},{"$f":"'BP Financier'!$E$44*(('BP Financier'!$C$22+'BP Financier'!$D$22+'BP Financier'!$E$22)/('BP Financier'!$C$16+'BP Financier'!$C$19+'BP Financier'!$D$16+'BP Financier'!$D$19+'BP Financier'!$E$16+'BP Financier'!$E$19+'BP Financier'!$C$22+'BP Financier'!$D$22+'BP Financier'!$E$22))*$V4287*AB4287/(1-$W4287)","v":{"v":341.0806421745972,"d":"341"}},null,{"v":0.01,"d":"1.00%"},{"$f":"Actif!$E$28/100","v":{"v":0.28900000000000003,"d":"28.90%"}},{"$f":"Actif!$E$30/100","v":{"v":0.09050000000000001,"d":"9.05%"}},{"$f":"Actif!$E$31/100","v":{"v":0.0605,"d":"6.05%"}},{"$f":"Actif!$E$32/100","v":{"v":0.47350000000000003,"d":"47.35%"}},{"$f":"Actif!$E$33/100","v":{"v":0.0585,"d":"5.85%"}},{"$f":"Actif!$E$29/100","v":{"v":0.027999999999999997,"d":"2.80%"}}]
[null,"#187",27,2026,"H","A_CAPI",{"v":0.44999999999999996,"d":"0.45"},{"v":0.38999999999999996,"d":"0.39"},0.6,0.6,85,0,{"$f":"ROUND(Primes!$O$10*V4288,2)","v":0.45},0,{"v":8661.012020933522,"d":"8,661"},{"$f":"'BP Financier'!$E$44*(('BP Financier'!$C$22+'BP Financier'!$D$22+'BP Financier'!$E$22)/('BP Financier'!$C$16+'BP Financier'!$C$19+'BP Financier'!$D$16+'BP Financier'!$D$19+'BP Financier'!$E$16+'BP Financier'!$E$19+'BP Financier'!$C$22+'BP Financier'!$D$22+'BP Financier'!$E$22))*$V4288*X4288/(1-$W4288)","v":{"v":1102.4213613143233,"d":"1,102"}},{"$f":"'BP Financier'!$E$44*(('BP Financier'!$C$22+'BP Financier'!$D$22+'BP Financier'!$E$22)/('BP Financier'!$C$16+'BP Financier'!$C$19+'BP Financier'!$D$16+'BP Financier'!$D$19+'BP Financier'!$E$16+'BP Financier'!$E$19+'BP Financier'!$C$22+'BP Financier'!$D$22+'BP Financier'!$E$22))*$V4288*Y4288/(1-$W4288)","v":{"v":736.9778161272546,"d":"737"}},{"$f":"'BP Financier'!$E$44*(('BP Financier'!$C$22+'BP Financier'!$D$22+'BP Financier'!$E$22)/('BP Financier'!$C$16+'BP Financier'!$C$19+'BP Financier'!$D$16+'BP Financier'!$D$19+'BP Financier'!$E$16+'BP Financier'!$E$19+'BP Financier'!$C$22+'BP Financier'!$D$22+'BP Financier'!$E$22))*$V4288*Z4288/(1-$W4288)","v":{"v":5767.917288202564,"d":"5,768"}},{"$f":"'BP Financier'!$E$44*(('BP Financier'!$C$22+'BP Financier'!$D$22+'BP Financier'!$E$22)/('BP Financier'!$C$16+'BP Financier'!$C$19+'BP Financier'!$D$16+'BP Financier'!$D$19+'BP Financier'!$E$16+'BP Financier'!$E$19+'BP Financier'!$C$22+'BP Financier'!$D$22+'BP Financier'!$E$22))*$V4288*AA4288/(1-$W4288)","v":{"v":712.6149131147836,"d":"713"}},{"$f":"'BP Financier'!$E$44*(('BP Financier'!$C$22+'BP Financier'!$D$22+'BP Financier'!$E$22)/('BP Financier'!$C$16+'BP Financier'!$C$19+'BP Financier'!$D$16+'BP Financier'!$D$19+'BP Financier'!$E$16+'BP Financier'!$E$19+'BP Financier'!$C$22+'BP Financier'!$D$22+'BP Financier'!$E$22))*$V4288*AB4288/(1-$W4288)","v":{"v":341.0806421745972,"d":"341"}},null,{"v":0.01,"d":"1.00%"},{"$f":"Actif!$E$28/100","v":{"v":0.28900000000000003,"d":"28.90%"}},{"$f":"Actif!$E$30/100","v":{"v":0.09050000000000001,"d":"9.05%"}},{"$f":"Actif!$E$31/100","v":{"v":0.0605,"d":"6.05%"}},{"$f":"Actif!$E$32/100","v":{"v":0.47350000000000003,"d":"47.35%"}},{"$f":"Actif!$E$33/100","v":{"v":0.0585,"d":"5.85%"}},{"$f":"Actif!$E$29/100","v":{"v":0.027999999999999997,"d":"2.80%"}}]
[null,"#188",27,2028,"H","A_CAPI",{"v":0.44999999999999996,"d":"0.45"},{"v":0.38999999999999996,"d":"0.39"},0.6,0.6,85,0,{"$f":"ROUND(Primes!$O$10*V4289,2)","v":0.45},0,{"v":8661.012020933522,"d":"8,661"},{"$f":"'BP Financier'!$E$44*(('BP Financier'!$C$22+'BP Financier'!$D$22+'BP Financier'!$E$22)/('BP Financier'!$C$16+'BP Financier'!$C$19+'BP Financier'!$D$16+'BP Financier'!$D$19+'BP Financier'!$E$16+'BP Financier'!$E$19+'BP Financier'!$C$22+'BP Financier'!$D$22+'BP Financier'!$E$22))*$V4289*X4289/(1-$W4289)","v":{"v":1102.4213613143233,"d":"1,102"}},{"$f":"'BP Financier'!$E$44*(('BP Financier'!$C$22+'BP Financier'!$D$22+'BP Financier'!$E$22)/('BP Financier'!$C$16+'BP Financier'!$C$19+'BP Financier'!$D$16+'BP Financier'!$D$19+'BP Financier'!$E$16+'BP Financier'!$E$19+'BP Financier'!$C$22+'BP Financier'!$D$22+'BP Financier'!$E$22))*$V4289*Y4289/(1-$W4289)","v":{"v":736.9778161272546,"d":"737"}},{"$f":"'BP Financier'!$E$44*(('BP Financier'!$C$22+'BP Financier'!$D$22+'BP Financier'!$E$22)/('BP Financier'!$C$16+'BP Financier'!$C$19+'BP Financier'!$D$16+'BP Financier'!$D$19+'BP Financier'!$E$16+'BP Financier'!$E$19+'BP Financier'!$C$22+'BP Financier'!$D$22+'BP Financier'!$E$22))*$V4289*Z4289/(1-$W4289)","v":{"v":5767.917288202564,"d":"5,768"}},{"$f":"'BP Financier'!$E$44*(('BP Financier'!$C$22+'BP Financier'!$D$22+'BP Financier'!$E$22)/('BP Financier'!$C$16+'BP Financier'!$C$19+'BP Financier'!$D$16+'BP Financier'!$D$19+'BP Financier'!$E$16+'BP Financier'!$E$19+'BP Financier'!$C$22+'BP Financier'!$D$22+'BP Financier'!$E$22))*$V4289*AA4289/(1-$W4289)","v":{"v":712.6149131147836,"d":"713"}},{"$f":"'BP Financier'!$E$44*(('BP Financier'!$C$22+'BP Financier'!$D$22+'BP Financier'!$E$22)/('BP Financier'!$C$16+'BP Financier'!$C$19+'BP Financier'!$D$16+'BP Financier'!$D$19+'BP Financier'!$E$16+'BP Financier'!$E$19+'BP Financier'!$C$22+'BP Financier'!$D$22+'BP Financier'!$E$22))*$V4289*AB4289/(1-$W4289)","v":{"v":341.0806421745972,"d":"341"}},null,{"v":0.01,"d":"1.00%"},{"$f":"Actif!$E$28/100","v":{"v":0.28900000000000003,"d":"28.90%"}},{"$f":"Actif!$E$30/100","v":{"v":0.09050000000000001,"d":"9.05%"}},{"$f":"Actif!$E$31/100","v":{"v":0.0605,"d":"6.05%"}},{"$f":"Actif!$E$32/100","v":{"v":0.47350000000000003,"d":"47.35%"}},{"$f":"Actif!$E$33/100","v":{"v":0.0585,"d":"5.85%"}},{"$f":"Actif!$E$29/100","v":{"v":0.027999999999999997,"d":"2.80%"}}]
[null,"#189",27,2029,"H","A_CAPI",{"v":0.44999999999999996,"d":"0.45"},{"v":0.38999999999999996,"d":"0.39"},0.6,0.6,85,0,{"$f":"ROUND(Primes!$O$10*V4290,2)","v":0.45},0,{"v":8661.012020933522,"d":"8,661"},{"$f":"'BP Financier'!$E$44*(('BP Financier'!$C$22+'BP Financier'!$D$22+'BP Financier'!$E$22)/('BP Financier'!$C$16+'BP Financier'!$C$19+'BP Financier'!$D$16+'BP Financier'!$D$19+'BP Financier'!$E$16+'BP Financier'!$E$19+'BP Financier'!$C$22+'BP Financier'!$D$22+'BP Financier'!$E$22))*$V4290*X4290/(1-$W4290)","v":{"v":1102.4213613143233,"d":"1,102"}},{"$f":"'BP Financier'!$E$44*(('BP Financier'!$C$22+'BP Financier'!$D$22+'BP Financier'!$E$22)/('BP Financier'!$C$16+'BP Financier'!$C$19+'BP Financier'!$D$16+'BP Financier'!$D$19+'BP Financier'!$E$16+'BP Financier'!$E$19+'BP Financier'!$C$22+'BP Financier'!$D$22+'BP Financier'!$E$22))*$V4290*Y4290/(1-$W4290)","v":{"v":736.9778161272546,"d":"737"}},{"$f":"'BP Financier'!$E$44*(('BP Financier'!$C$22+'BP Financier'!$D$22+'BP Financier'!$E$22)/('BP Financier'!$C$16+'BP Financier'!$C$19+'BP Financier'!$D$16+'BP Financier'!$D$19+'BP Financier'!$E$16+'BP Financier'!$E$19+'BP Financier'!$C$22+'BP Financier'!$D$22+'BP Financier'!$E$22))*$V4290*Z4290/(1-$W4290)","v":{"v":5767.917288202564,"d":"5,768"}},{"$f":"'BP Financier'!$E$44*(('BP Financier'!$C$22+'BP Financier'!$D$22+'BP Financier'!$E$22)/('BP Financier'!$C$16+'BP Financier'!$C$19+'BP Financier'!$D$16+'BP Financier'!$D$19+'BP Financier'!$E$16+'BP Financier'!$E$19+'BP Financier'!$C$22+'BP Financier'!$D$22+'BP Financier'!$E$22))*$V4290*AA4290/(1-$W4290)","v":{"v":712.6149131147836,"d":"713"}},{"$f":"'BP Financier'!$E$44*(('BP Financier'!$C$22+'BP Financier'!$D$22+'BP Financier'!$E$22)/('BP Financier'!$C$16+'BP Financier'!$C$19+'BP Financier'!$D$16+'BP Financier'!$D$19+'BP Financier'!$E$16+'BP Financier'!$E$19+'BP Financier'!$C$22+'BP Financier'!$D$22+'BP Financier'!$E$22))*$V4290*AB4290/(1-$W4290)","v":{"v":341.0806421745972,"d":"341"}},null,{"v":0.01,"d":"1.00%"},{"$f":"Actif!$E$28/100","v":{"v":0.28900000000000003,"d":"28.90%"}},{"$f":"Actif!$E$30/100","v":{"v":0.09050000000000001,"d":"9.05%"}},{"$f":"Actif!$E$31/100","v":{"v":0.0605,"d":"6.05%"}},{"$f":"Actif!$E$32/100","v":{"v":0.47350000000000003,"d":"47.35%"}},{"$f":"Actif!$E$33/100","v":{"v":0.0585,"d":"5.85%"}},{"$f":"Actif!$E$29/100","v":{"v":0.027999999999999997,"d":"2.80%"}}]
[null,"#190",28,2026,"H","A_CAPI",{"v":0.44999999999999996,"d":"0.45"},{"v":0.38999999999999996,"d":"0.39"},0.6,0.6,85,0,{"$f":"ROUND(Primes!$O$10*V4291,2)","v":0.45},0,{"v":8661.012020933522,"d":"8,661"},{"$f":"'BP Financier'!$E$44*(('BP Financier'!$C$22+'BP Financier'!$D$22+'BP Financier'!$E$22)/('BP Financier'!$C$16+'BP Financier'!$C$19+'BP Financier'!$D$16+'BP Financier'!$D$19+'BP Financier'!$E$16+'BP Financier'!$E$19+'BP Financier'!$C$22+'BP Financier'!$D$22+'BP Financier'!$E$22))*$V4291*X4291/(1-$W4291)","v":{"v":1102.4213613143233,"d":"1,102"}},{"$f":"'BP Financier'!$E$44*(('BP Financier'!$C$22+'BP Financier'!$D$22+'BP Financier'!$E$22)/('BP Financier'!$C$16+'BP Financier'!$C$19+'BP Financier'!$D$16+'BP Financier'!$D$19+'BP Financier'!$E$16+'BP Financier'!$E$19+'BP Financier'!$C$22+'BP Financier'!$D$22+'BP Financier'!$E$22))*$V4291*Y4291/(1-$W4291)","v":{"v":736.9778161272546,"d":"737"}},{"$f":"'BP Financier'!$E$44*(('BP Financier'!$C$22+'BP Financier'!$D$22+'BP Financier'!$E$22)/('BP Financier'!$C$16+'BP Financier'!$C$19+'BP Financier'!$D$16+'BP Financier'!$D$19+'BP Financier'!$E$16+'BP Financier'!$E$19+'BP Financier'!$C$22+'BP Financier'!$D$22+'BP Financier'!$E$22))*$V4291*Z4291/(1-$W4291)","v":{"v":5767.917288202564,"d":"5,768"}},{"$f":"'BP Financier'!$E$44*(('BP Financier'!$C$22+'BP Financier'!$D$22+'BP Financier'!$E$22)/('BP Financier'!$C$16+'BP Financier'!$C$19+'BP Financier'!$D$16+'BP Financier'!$D$19+'BP Financier'!$E$16+'BP Financier'!$E$19+'BP Financier'!$C$22+'BP Financier'!$D$22+'BP Financier'!$E$22))*$V4291*AA4291/(1-$W4291)","v":{"v":712.6149131147836,"d":"713"}},{"$f":"'BP Financier'!$E$44*(('BP Financier'!$C$22+'BP Financier'!$D$22+'BP Financier'!$E$22)/('BP Financier'!$C$16+'BP Financier'!$C$19+'BP Financier'!$D$16+'BP Financier'!$D$19+'BP Financier'!$E$16+'BP Financier'!$E$19+'BP Financier'!$C$22+'BP Financier'!$D$22+'BP Financier'!$E$22))*$V4291*AB4291/(1-$W4291)","v":{"v":341.0806421745972,"d":"341"}},null,{"v":0.01,"d":"1.00%"},{"$f":"Actif!$E$28/100","v":{"v":0.28900000000000003,"d":"28.90%"}},{"$f":"Actif!$E$30/100","v":{"v":0.09050000000000001,"d":"9.05%"}},{"$f":"Actif!$E$31/100","v":{"v":0.0605,"d":"6.05%"}},{"$f":"Actif!$E$32/100","v":{"v":0.47350000000000003,"d":"47.35%"}},{"$f":"Actif!$E$33/100","v":{"v":0.0585,"d":"5.85%"}},{"$f":"Actif!$E$29/100","v":{"v":0.027999999999999997,"d":"2.80%"}}]
[null,"#191",28,2028,"H","A_CAPI",{"v":0.44999999999999996,"d":"0.45"},{"v":0.38999999999999996,"d":"0.39"},0.6,0.6,85,0,{"$f":"ROUND(Primes!$O$10*V4292,2)","v":0.45},0,{"v":8661.012020933522,"d":"8,661"},{"$f":"'BP Financier'!$E$44*(('BP Financier'!$C$22+'BP Financier'!$D$22+'BP Financier'!$E$22)/('BP Financier'!$C$16+'BP Financier'!$C$19+'BP Financier'!$D$16+'BP Financier'!$D$19+'BP Financier'!$E$16+'BP Financier'!$E$19+'BP Financier'!$C$22+'BP Financier'!$D$22+'BP Financier'!$E$22))*$V4292*X4292/(1-$W4292)","v":{"v":1102.4213613143233,"d":"1,102"}},{"$f":"'BP Financier'!$E$44*(('BP Financier'!$C$22+'BP Financier'!$D$22+'BP Financier'!$E$22)/('BP Financier'!$C$16+'BP Financier'!$C$19+'BP Financier'!$D$16+'BP Financier'!$D$19+'BP Financier'!$E$16+'BP Financier'!$E$19+'BP Financier'!$C$22+'BP Financier'!$D$22+'BP Financier'!$E$22))*$V4292*Y4292/(1-$W4292)","v":{"v":736.9778161272546,"d":"737"}},{"$f":"'BP Financier'!$E$44*(('BP Financier'!$C$22+'BP Financier'!$D$22+'BP Financier'!$E$22)/('BP Financier'!$C$16+'BP Financier'!$C$19+'BP Financier'!$D$16+'BP Financier'!$D$19+'BP Financier'!$E$16+'BP Financier'!$E$19+'BP Financier'!$C$22+'BP Financier'!$D$22+'BP Financier'!$E$22))*$V4292*Z4292/(1-$W4292)","v":{"v":5767.917288202564,"d":"5,768"}},{"$f":"'BP Financier'!$E$44*(('BP Financier'!$C$22+'BP Financier'!$D$22+'BP Financier'!$E$22)/('BP Financier'!$C$16+'BP Financier'!$C$19+'BP Financier'!$D$16+'BP Financier'!$D$19+'BP Financier'!$E$16+'BP Financier'!$E$19+'BP Financier'!$C$22+'BP Financier'!$D$22+'BP Financier'!$E$22))*$V4292*AA4292/(1-$W4292)","v":{"v":712.6149131147836,"d":"713"}},{"$f":"'BP Financier'!$E$44*(('BP Financier'!$C$22+'BP Financier'!$D$22+'BP Financier'!$E$22)/('BP Financier'!$C$16+'BP Financier'!$C$19+'BP Financier'!$D$16+'BP Financier'!$D$19+'BP Financier'!$E$16+'BP Financier'!$E$19+'BP Financier'!$C$22+'BP Financier'!$D$22+'BP Financier'!$E$22))*$V4292*AB4292/(1-$W4292)","v":{"v":341.0806421745972,"d":"341"}},null,{"v":0.01,"d":"1.00%"},{"$f":"Actif!$E$28/100","v":{"v":0.28900000000000003,"d":"28.90%"}},{"$f":"Actif!$E$30/100","v":{"v":0.09050000000000001,"d":"9.05%"}},{"$f":"Actif!$E$31/100","v":{"v":0.0605,"d":"6.05%"}},{"$f":"Actif!$E$32/100","v":{"v":0.47350000000000003,"d":"47.35%"}},{"$f":"Actif!$E$33/100","v":{"v":0.0585,"d":"5.85%"}},{"$f":"Actif!$E$29/100","v":{"v":0.027999999999999997,"d":"2.80%"}}]
[null,"#192",28,2029,"H","A_CAPI",{"v":0.44999999999999996,"d":"0.45"},{"v":0.38999999999999996,"d":"0.39"},0.6,0.6,85,0,{"$f":"ROUND(Primes!$O$10*V4293,2)","v":0.45},0,{"v":8661.012020933522,"d":"8,661"},{"$f":"'BP Financier'!$E$44*(('BP Financier'!$C$22+'BP Financier'!$D$22+'BP Financier'!$E$22)/('BP Financier'!$C$16+'BP Financier'!$C$19+'BP Financier'!$D$16+'BP Financier'!$D$19+'BP Financier'!$E$16+'BP Financier'!$E$19+'BP Financier'!$C$22+'BP Financier'!$D$22+'BP Financier'!$E$22))*$V4293*X4293/(1-$W4293)","v":{"v":1102.4213613143233,"d":"1,102"}},{"$f":"'BP Financier'!$E$44*(('BP Financier'!$C$22+'BP Financier'!$D$22+'BP Financier'!$E$22)/('BP Financier'!$C$16+'BP Financier'!$C$19+'BP Financier'!$D$16+'BP Financier'!$D$19+'BP Financier'!$E$16+'BP Financier'!$E$19+'BP Financier'!$C$22+'BP Financier'!$D$22+'BP Financier'!$E$22))*$V4293*Y4293/(1-$W4293)","v":{"v":736.9778161272546,"d":"737"}},{"$f":"'BP Financier'!$E$44*(('BP Financier'!$C$22+'BP Financier'!$D$22+'BP Financier'!$E$22)/('BP Financier'!$C$16+'BP Financier'!$C$19+'BP Financier'!$D$16+'BP Financier'!$D$19+'BP Financier'!$E$16+'BP Financier'!$E$19+'BP Financier'!$C$22+'BP Financier'!$D$22+'BP Financier'!$E$22))*$V4293*Z4293/(1-$W4293)","v":{"v":5767.917288202564,"d":"5,768"}},{"$f":"'BP Financier'!$E$44*(('BP Financier'!$C$22+'BP Financier'!$D$22+'BP Financier'!$E$22)/('BP Financier'!$C$16+'BP Financier'!$C$19+'BP Financier'!$D$16+'BP Financier'!$D$19+'BP Financier'!$E$16+'BP Financier'!$E$19+'BP Financier'!$C$22+'BP Financier'!$D$22+'BP Financier'!$E$22))*$V4293*AA4293/(1-$W4293)","v":{"v":712.6149131147836,"d":"713"}},{"$f":"'BP Financier'!$E$44*(('BP Financier'!$C$22+'BP Financier'!$D$22+'BP Financier'!$E$22)/('BP Financier'!$C$16+'BP Financier'!$C$19+'BP Financier'!$D$16+'BP Financier'!$D$19+'BP Financier'!$E$16+'BP Financier'!$E$19+'BP Financier'!$C$22+'BP Financier'!$D$22+'BP Financier'!$E$22))*$V4293*AB4293/(1-$W4293)","v":{"v":341.0806421745972,"d":"341"}},null,{"v":0.01,"d":"1.00%"},{"$f":"Actif!$E$28/100","v":{"v":0.28900000000000003,"d":"28.90%"}},{"$f":"Actif!$E$30/100","v":{"v":0.09050000000000001,"d":"9.05%"}},{"$f":"Actif!$E$31/100","v":{"v":0.0605,"d":"6.05%"}},{"$f":"Actif!$E$32/100","v":{"v":0.47350000000000003,"d":"47.35%"}},{"$f":"Actif!$E$33/100","v":{"v":0.0585,"d":"5.85%"}},{"$f":"Actif!$E$29/100","v":{"v":0.027999999999999997,"d":"2.80%"}}]
[null,"#193",29,2026,"F","A_CAPI",{"$f":"frais_gestion_Euro*100","v":{"v":0.44999999999999996,"d":"0.45"}},{"$f":"frais_gestion_UC*100","v":{"v":0.38999999999999996,"d":"0.39"}},{"$f":"frais_distribution_FG*100","v":0.6},{"$f":"frais_distribution_UC*100","v":0.6},85,0,{"$f":"ROUND(Primes!$O$10*V4294,2)","v":0.45},0,{"v":8661.012020933522,"d":"8,661"},{"$f":"'BP Financier'!$E$44*(('BP Financier'!$C$22+'BP Financier'!$D$22+'BP Financier'!$E$22)/('BP Financier'!$C$16+'BP Financier'!$C$19+'BP Financier'!$D$16+'BP Financier'!$D$19+'BP Financier'!$E$16+'BP Financier'!$E$19+'BP Financier'!$C$22+'BP Financier'!$D$22+'BP Financier'!$E$22))*$V4294*X4294/(1-$W4294)","v":{"v":1102.4213613143233,"d":"1,102"}},{"$f":"'BP Financier'!$E$44*(('BP Financier'!$C$22+'BP Financier'!$D$22+'BP Financier'!$E$22)/('BP Financier'!$C$16+'BP Financier'!$C$19+'BP Financier'!$D$16+'BP Financier'!$D$19+'BP Financier'!$E$16+'BP Financier'!$E$19+'BP Financier'!$C$22+'BP Financier'!$D$22+'BP Financier'!$E$22))*$V4294*Y4294/(1-$W4294)","v":{"v":736.9778161272546,"d":"737"}},{"$f":"'BP Financier'!$E$44*(('BP Financier'!$C$22+'BP Financier'!$D$22+'BP Financier'!$E$22)/('BP Financier'!$C$16+'BP Financier'!$C$19+'BP Financier'!$D$16+'BP Financier'!$D$19+'BP Financier'!$E$16+'BP Financier'!$E$19+'BP Financier'!$C$22+'BP Financier'!$D$22+'BP Financier'!$E$22))*$V4294*Z4294/(1-$W4294)","v":{"v":5767.917288202564,"d":"5,768"}},{"$f":"'BP Financier'!$E$44*(('BP Financier'!$C$22+'BP Financier'!$D$22+'BP Financier'!$E$22)/('BP Financier'!$C$16+'BP Financier'!$C$19+'BP Financier'!$D$16+'BP Financier'!$D$19+'BP Financier'!$E$16+'BP Financier'!$E$19+'BP Financier'!$C$22+'BP Financier'!$D$22+'BP Financier'!$E$22))*$V4294*AA4294/(1-$W4294)","v":{"v":712.6149131147836,"d":"713"}},{"$f":"'BP Financier'!$E$44*(('BP Financier'!$C$22+'BP Financier'!$D$22+'BP Financier'!$E$22)/('BP Financier'!$C$16+'BP Financier'!$C$19+'BP Financier'!$D$16+'BP Financier'!$D$19+'BP Financier'!$E$16+'BP Financier'!$E$19+'BP Financier'!$C$22+'BP Financier'!$D$22+'BP Financier'!$E$22))*$V4294*AB4294/(1-$W4294)","v":{"v":341.0806421745972,"d":"341"}},null,{"v":0.01,"d":"1.00%"},{"$f":"Actif!$E$28/100","v":{"v":0.28900000000000003,"d":"28.90%"}},{"$f":"Actif!$E$30/100","v":{"v":0.09050000000000001,"d":"9.05%"}},{"$f":"Actif!$E$31/100","v":{"v":0.0605,"d":"6.05%"}},{"$f":"Actif!$E$32/100","v":{"v":0.47350000000000003,"d":"47.35%"}},{"$f":"Actif!$E$33/100","v":{"v":0.0585,"d":"5.85%"}},{"$f":"Actif!$E$29/100","v":{"v":0.027999999999999997,"d":"2.80%"}}]
[null,"#194",29,2028,"F","A_CAPI",{"v":0.44999999999999996,"d":"0.45"},{"v":0.38999999999999996,"d":"0.39"},0.6,0.6,85,0,{"$f":"ROUND(Primes!$O$10*V4295,2)","v":0.45},0,{"v":8661.012020933522,"d":"8,661"},{"$f":"'BP Financier'!$E$44*(('BP Financier'!$C$22+'BP Financier'!$D$22+'BP Financier'!$E$22)/('BP Financier'!$C$16+'BP Financier'!$C$19+'BP Financier'!$D$16+'BP Financier'!$D$19+'BP Financier'!$E$16+'BP Financier'!$E$19+'BP Financier'!$C$22+'BP Financier'!$D$22+'BP Financier'!$E$22))*$V4295*X4295/(1-$W4295)","v":{"v":1102.4213613143233,"d":"1,102"}},{"$f":"'BP Financier'!$E$44*(('BP Financier'!$C$22+'BP Financier'!$D$22+'BP Financier'!$E$22)/('BP Financier'!$C$16+'BP Financier'!$C$19+'BP Financier'!$D$16+'BP Financier'!$D$19+'BP Financier'!$E$16+'BP Financier'!$E$19+'BP Financier'!$C$22+'BP Financier'!$D$22+'BP Financier'!$E$22))*$V4295*Y4295/(1-$W4295)","v":{"v":736.9778161272546,"d":"737"}},{"$f":"'BP Financier'!$E$44*(('BP Financier'!$C$22+'BP Financier'!$D$22+'BP Financier'!$E$22)/('BP Financier'!$C$16+'BP Financier'!$C$19+'BP Financier'!$D$16+'BP Financier'!$D$19+'BP Financier'!$E$16+'BP Financier'!$E$19+'BP Financier'!$C$22+'BP Financier'!$D$22+'BP Financier'!$E$22))*$V4295*Z4295/(1-$W4295)","v":{"v":5767.917288202564,"d":"5,768"}},{"$f":"'BP Financier'!$E$44*(('BP Financier'!$C$22+'BP Financier'!$D$22+'BP Financier'!$E$22)/('BP Financier'!$C$16+'BP Financier'!$C$19+'BP Financier'!$D$16+'BP Financier'!$D$19+'BP Financier'!$E$16+'BP Financier'!$E$19+'BP Financier'!$C$22+'BP Financier'!$D$22+'BP Financier'!$E$22))*$V4295*AA4295/(1-$W4295)","v":{"v":712.6149131147836,"d":"713"}},{"$f":"'BP Financier'!$E$44*(('BP Financier'!$C$22+'BP Financier'!$D$22+'BP Financier'!$E$22)/('BP Financier'!$C$16+'BP Financier'!$C$19+'BP Financier'!$D$16+'BP Financier'!$D$19+'BP Financier'!$E$16+'BP Financier'!$E$19+'BP Financier'!$C$22+'BP Financier'!$D$22+'BP Financier'!$E$22))*$V4295*AB4295/(1-$W4295)","v":{"v":341.0806421745972,"d":"341"}},null,{"v":0.01,"d":"1.00%"},{"$f":"Actif!$E$28/100","v":{"v":0.28900000000000003,"d":"28.90%"}},{"$f":"Actif!$E$30/100","v":{"v":0.09050000000000001,"d":"9.05%"}},{"$f":"Actif!$E$31/100","v":{"v":0.0605,"d":"6.05%"}},{"$f":"Actif!$E$32/100","v":{"v":0.47350000000000003,"d":"47.35%"}},{"$f":"Actif!$E$33/100","v":{"v":0.0585,"d":"5.85%"}},{"$f":"Actif!$E$29/100","v":{"v":0.027999999999999997,"d":"2.80%"}}]
[null,"#195",29,2029,"F","A_CAPI",{"v":0.44999999999999996,"d":"0.45"},{"v":0.38999999999999996,"d":"0.39"},0.6,0.6,85,0,{"$f":"ROUND(Primes!$O$10*V4296,2)","v":0.45},0,{"v":8661.012020933522,"d":"8,661"},{"$f":"'BP Financier'!$E$44*(('BP Financier'!$C$22+'BP Financier'!$D$22+'BP Financier'!$E$22)/('BP Financier'!$C$16+'BP Financier'!$C$19+'BP Financier'!$D$16+'BP Financier'!$D$19+'BP Financier'!$E$16+'BP Financier'!$E$19+'BP Financier'!$C$22+'BP Financier'!$D$22+'BP Financier'!$E$22))*$V4296*X4296/(1-$W4296)","v":{"v":1102.4213613143233,"d":"1,102"}},{"$f":"'BP Financier'!$E$44*(('BP Financier'!$C$22+'BP Financier'!$D$22+'BP Financier'!$E$22)/('BP Financier'!$C$16+'BP Financier'!$C$19+'BP Financier'!$D$16+'BP Financier'!$D$19+'BP Financier'!$E$16+'BP Financier'!$E$19+'BP Financier'!$C$22+'BP Financier'!$D$22+'BP Financier'!$E$22))*$V4296*Y4296/(1-$W4296)","v":{"v":736.9778161272546,"d":"737"}},{"$f":"'BP Financier'!$E$44*(('BP Financier'!$C$22+'BP Financier'!$D$22+'BP Financier'!$E$22)/('BP Financier'!$C$16+'BP Financier'!$C$19+'BP Financier'!$D$16+'BP Financier'!$D$19+'BP Financier'!$E$16+'BP Financier'!$E$19+'BP Financier'!$C$22+'BP Financier'!$D$22+'BP Financier'!$E$22))*$V4296*Z4296/(1-$W4296)","v":{"v":5767.917288202564,"d":"5,768"}},{"$f":"'BP Financier'!$E$44*(('BP Financier'!$C$22+'BP Financier'!$D$22+'BP Financier'!$E$22)/('BP Financier'!$C$16+'BP Financier'!$C$19+'BP Financier'!$D$16+'BP Financier'!$D$19+'BP Financier'!$E$16+'BP Financier'!$E$19+'BP Financier'!$C$22+'BP Financier'!$D$22+'BP Financier'!$E$22))*$V4296*AA4296/(1-$W4296)","v":{"v":712.6149131147836,"d":"713"}},{"$f":"'BP Financier'!$E$44*(('BP Financier'!$C$22+'BP Financier'!$D$22+'BP Financier'!$E$22)/('BP Financier'!$C$16+'BP Financier'!$C$19+'BP Financier'!$D$16+'BP Financier'!$D$19+'BP Financier'!$E$16+'BP Financier'!$E$19+'BP Financier'!$C$22+'BP Financier'!$D$22+'BP Financier'!$E$22))*$V4296*AB4296/(1-$W4296)","v":{"v":341.0806421745972,"d":"341"}},null,{"v":0.01,"d":"1.00%"},{"$f":"Actif!$E$28/100","v":{"v":0.28900000000000003,"d":"28.90%"}},{"$f":"Actif!$E$30/100","v":{"v":0.09050000000000001,"d":"9.05%"}},{"$f":"Actif!$E$31/100","v":{"v":0.0605,"d":"6.05%"}},{"$f":"Actif!$E$32/100","v":{"v":0.47350000000000003,"d":"47.35%"}},{"$f":"Actif!$E$33/100","v":{"v":0.0585,"d":"5.85%"}},{"$f":"Actif!$E$29/100","v":{"v":0.027999999999999997,"d":"2.80%"}}]
[null,"#196",30,2026,"H","A_CAPI",{"v":0.44999999999999996,"d":"0.45"},{"v":0.38999999999999996,"d":"0.39"},0.6,0.6,85,0,{"$f":"ROUND(Primes!$O$10*V4297,2)","v":0.45},0,{"v":8661.012020933522,"d":"8,661"},{"$f":"'BP Financier'!$E$44*(('BP Financier'!$C$22+'BP Financier'!$D$22+'BP Financier'!$E$22)/('BP Financier'!$C$16+'BP Financier'!$C$19+'BP Financier'!$D$16+'BP Financier'!$D$19+'BP Financier'!$E$16+'BP Financier'!$E$19+'BP Financier'!$C$22+'BP Financier'!$D$22+'BP Financier'!$E$22))*$V4297*X4297/(1-$W4297)","v":{"v":1102.4213613143233,"d":"1,102"}},{"$f":"'BP Financier'!$E$44*(('BP Financier'!$C$22+'BP Financier'!$D$22+'BP Financier'!$E$22)/('BP Financier'!$C$16+'BP Financier'!$C$19+'BP Financier'!$D$16+'BP Financier'!$D$19+'BP Financier'!$E$16+'BP Financier'!$E$19+'BP Financier'!$C$22+'BP Financier'!$D$22+'BP Financier'!$E$22))*$V4297*Y4297/(1-$W4297)","v":{"v":736.9778161272546,"d":"737"}},{"$f":"'BP Financier'!$E$44*(('BP Financier'!$C$22+'BP Financier'!$D$22+'BP Financier'!$E$22)/('BP Financier'!$C$16+'BP Financier'!$C$19+'BP Financier'!$D$16+'BP Financier'!$D$19+'BP Financier'!$E$16+'BP Financier'!$E$19+'BP Financier'!$C$22+'BP Financier'!$D$22+'BP Financier'!$E$22))*$V4297*Z4297/(1-$W4297)","v":{"v":5767.917288202564,"d":"5,768"}},{"$f":"'BP Financier'!$E$44*(('BP Financier'!$C$22+'BP Financier'!$D$22+'BP Financier'!$E$22)/('BP Financier'!$C$16+'BP Financier'!$C$19+'BP Financier'!$D$16+'BP Financier'!$D$19+'BP Financier'!$E$16+'BP Financier'!$E$19+'BP Financier'!$C$22+'BP Financier'!$D$22+'BP Financier'!$E$22))*$V4297*AA4297/(1-$W4297)","v":{"v":712.6149131147836,"d":"713"}},{"$f":"'BP Financier'!$E$44*(('BP Financier'!$C$22+'BP Financier'!$D$22+'BP Financier'!$E$22)/('BP Financier'!$C$16+'BP Financier'!$C$19+'BP Financier'!$D$16+'BP Financier'!$D$19+'BP Financier'!$E$16+'BP Financier'!$E$19+'BP Financier'!$C$22+'BP Financier'!$D$22+'BP Financier'!$E$22))*$V4297*AB4297/(1-$W4297)","v":{"v":341.0806421745972,"d":"341"}},null,{"v":0.01,"d":"1.00%"},{"$f":"Actif!$E$28/100","v":{"v":0.28900000000000003,"d":"28.90%"}},{"$f":"Actif!$E$30/100","v":{"v":0.09050000000000001,"d":"9.05%"}},{"$f":"Actif!$E$31/100","v":{"v":0.0605,"d":"6.05%"}},{"$f":"Actif!$E$32/100","v":{"v":0.47350000000000003,"d":"47.35%"}},{"$f":"Actif!$E$33/100","v":{"v":0.0585,"d":"5.85%"}},{"$f":"Actif!$E$29/100","v":{"v":0.027999999999999997,"d":"2.80%"}}]
[null,"#197",30,2028,"H","A_CAPI",{"v":0.44999999999999996,"d":"0.45"},{"v":0.38999999999999996,"d":"0.39"},0.6,0.6,85,0,{"$f":"ROUND(Primes!$O$10*V4298,2)","v":0.45},0,{"v":8661.012020933522,"d":"8,661"},{"$f":"'BP Financier'!$E$44*(('BP Financier'!$C$22+'BP Financier'!$D$22+'BP Financier'!$E$22)/('BP Financier'!$C$16+'BP Financier'!$C$19+'BP Financier'!$D$16+'BP Financier'!$D$19+'BP Financier'!$E$16+'BP Financier'!$E$19+'BP Financier'!$C$22+'BP Financier'!$D$22+'BP Financier'!$E$22))*$V4298*X4298/(1-$W4298)","v":{"v":1102.4213613143233,"d":"1,102"}},{"$f":"'BP Financier'!$E$44*(('BP Financier'!$C$22+'BP Financier'!$D$22+'BP Financier'!$E$22)/('BP Financier'!$C$16+'BP Financier'!$C$19+'BP Financier'!$D$16+'BP Financier'!$D$19+'BP Financier'!$E$16+'BP Financier'!$E$19+'BP Financier'!$C$22+'BP Financier'!$D$22+'BP Financier'!$E$22))*$V4298*Y4298/(1-$W4298)","v":{"v":736.9778161272546,"d":"737"}},{"$f":"'BP Financier'!$E$44*(('BP Financier'!$C$22+'BP Financier'!$D$22+'BP Financier'!$E$22)/('BP Financier'!$C$16+'BP Financier'!$C$19+'BP Financier'!$D$16+'BP Financier'!$D$19+'BP Financier'!$E$16+'BP Financier'!$E$19+'BP Financier'!$C$22+'BP Financier'!$D$22+'BP Financier'!$E$22))*$V4298*Z4298/(1-$W4298)","v":{"v":5767.917288202564,"d":"5,768"}},{"$f":"'BP Financier'!$E$44*(('BP Financier'!$C$22+'BP Financier'!$D$22+'BP Financier'!$E$22)/('BP Financier'!$C$16+'BP Financier'!$C$19+'BP Financier'!$D$16+'BP Financier'!$D$19+'BP Financier'!$E$16+'BP Financier'!$E$19+'BP Financier'!$C$22+'BP Financier'!$D$22+'BP Financier'!$E$22))*$V4298*AA4298/(1-$W4298)","v":{"v":712.6149131147836,"d":"713"}},{"$f":"'BP Financier'!$E$44*(('BP Financier'!$C$22+'BP Financier'!$D$22+'BP Financier'!$E$22)/('BP Financier'!$C$16+'BP Financier'!$C$19+'BP Financier'!$D$16+'BP Financier'!$D$19+'BP Financier'!$E$16+'BP Financier'!$E$19+'BP Financier'!$C$22+'BP Financier'!$D$22+'BP Financier'!$E$22))*$V4298*AB4298/(1-$W4298)","v":{"v":341.0806421745972,"d":"341"}},null,{"v":0.01,"d":"1.00%"},{"$f":"Actif!$E$28/100","v":{"v":0.28900000000000003,"d":"28.90%"}},{"$f":"Actif!$E$30/100","v":{"v":0.09050000000000001,"d":"9.05%"}},{"$f":"Actif!$E$31/100","v":{"v":0.0605,"d":"6.05%"}},{"$f":"Actif!$E$32/100","v":{"v":0.47350000000000003,"d":"47.35%"}},{"$f":"Actif!$E$33/100","v":{"v":0.0585,"d":"5.85%"}},{"$f":"Actif!$E$29/100","v":{"v":0.027999999999999997,"d":"2.80%"}}]
[null,"#198",30,2029,"H","A_CAPI",{"v":0.44999999999999996,"d":"0.45"},{"v":0.38999999999999996,"d":"0.39"},0.6,0.6,85,0,{"$f":"ROUND(Primes!$O$10*V4299,2)","v":0.45},0,{"v":8661.012020933522,"d":"8,661"},{"$f":"'BP Financier'!$E$44*(('BP Financier'!$C$22+'BP Financier'!$D$22+'BP Financier'!$E$22)/('BP Financier'!$C$16+'BP Financier'!$C$19+'BP Financier'!$D$16+'BP Financier'!$D$19+'BP Financier'!$E$16+'BP Financier'!$E$19+'BP Financier'!$C$22+'BP Financier'!$D$22+'BP Financier'!$E$22))*$V4299*X4299/(1-$W4299)","v":{"v":1102.4213613143233,"d":"1,102"}},{"$f":"'BP Financier'!$E$44*(('BP Financier'!$C$22+'BP Financier'!$D$22+'BP Financier'!$E$22)/('BP Financier'!$C$16+'BP Financier'!$C$19+'BP Financier'!$D$16+'BP Financier'!$D$19+'BP Financier'!$E$16+'BP Financier'!$E$19+'BP Financier'!$C$22+'BP Financier'!$D$22+'BP Financier'!$E$22))*$V4299*Y4299/(1-$W4299)","v":{"v":736.9778161272546,"d":"737"}},{"$f":"'BP Financier'!$E$44*(('BP Financier'!$C$22+'BP Financier'!$D$22+'BP Financier'!$E$22)/('BP Financier'!$C$16+'BP Financier'!$C$19+'BP Financier'!$D$16+'BP Financier'!$D$19+'BP Financier'!$E$16+'BP Financier'!$E$19+'BP Financier'!$C$22+'BP Financier'!$D$22+'BP Financier'!$E$22))*$V4299*Z4299/(1-$W4299)","v":{"v":5767.917288202564,"d":"5,768"}},{"$f":"'BP Financier'!$E$44*(('BP Financier'!$C$22+'BP Financier'!$D$22+'BP Financier'!$E$22)/('BP Financier'!$C$16+'BP Financier'!$C$19+'BP Financier'!$D$16+'BP Financier'!$D$19+'BP Financier'!$E$16+'BP Financier'!$E$19+'BP Financier'!$C$22+'BP Financier'!$D$22+'BP Financier'!$E$22))*$V4299*AA4299/(1-$W4299)","v":{"v":712.6149131147836,"d":"713"}},{"$f":"'BP Financier'!$E$44*(('BP Financier'!$C$22+'BP Financier'!$D$22+'BP Financier'!$E$22)/('BP Financier'!$C$16+'BP Financier'!$C$19+'BP Financier'!$D$16+'BP Financier'!$D$19+'BP Financier'!$E$16+'BP Financier'!$E$19+'BP Financier'!$C$22+'BP Financier'!$D$22+'BP Financier'!$E$22))*$V4299*AB4299/(1-$W4299)","v":{"v":341.0806421745972,"d":"341"}},null,{"v":0.01,"d":"1.00%"},{"$f":"Actif!$E$28/100","v":{"v":0.28900000000000003,"d":"28.90%"}},{"$f":"Actif!$E$30/100","v":{"v":0.09050000000000001,"d":"9.05%"}},{"$f":"Actif!$E$31/100","v":{"v":0.0605,"d":"6.05%"}},{"$f":"Actif!$E$32/100","v":{"v":0.47350000000000003,"d":"47.35%"}},{"$f":"Actif!$E$33/100","v":{"v":0.0585,"d":"5.85%"}},{"$f":"Actif!$E$29/100","v":{"v":0.027999999999999997,"d":"2.80%"}}]
[null,"#199",31,2026,"H","A_CAPI",{"v":0.44999999999999996,"d":"0.45"},{"v":0.38999999999999996,"d":"0.39"},0.6,0.6,85,0,{"$f":"ROUND(Primes!$O$10*V4300,2)","v":0.45},0,{"v":8661.012020933522,"d":"8,661"},{"$f":"'BP Financier'!$E$44*(('BP Financier'!$C$22+'BP Financier'!$D$22+'BP Financier'!$E$22)/('BP Financier'!$C$16+'BP Financier'!$C$19+'BP Financier'!$D$16+'BP Financier'!$D$19+'BP Financier'!$E$16+'BP Financier'!$E$19+'BP Financier'!$C$22+'BP Financier'!$D$22+'BP Financier'!$E$22))*$V4300*X4300/(1-$W4300)","v":{"v":1102.4213613143233,"d":"1,102"}},{"$f":"'BP Financier'!$E$44*(('BP Financier'!$C$22+'BP Financier'!$D$22+'BP Financier'!$E$22)/('BP Financier'!$C$16+'BP Financier'!$C$19+'BP Financier'!$D$16+'BP Financier'!$D$19+'BP Financier'!$E$16+'BP Financier'!$E$19+'BP Financier'!$C$22+'BP Financier'!$D$22+'BP Financier'!$E$22))*$V4300*Y4300/(1-$W4300)","v":{"v":736.9778161272546,"d":"737"}},{"$f":"'BP Financier'!$E$44*(('BP Financier'!$C$22+'BP Financier'!$D$22+'BP Financier'!$E$22)/('BP Financier'!$C$16+'BP Financier'!$C$19+'BP Financier'!$D$16+'BP Financier'!$D$19+'BP Financier'!$E$16+'BP Financier'!$E$19+'BP Financier'!$C$22+'BP Financier'!$D$22+'BP Financier'!$E$22))*$V4300*Z4300/(1-$W4300)","v":{"v":5767.917288202564,"d":"5,768"}},{"$f":"'BP Financier'!$E$44*(('BP Financier'!$C$22+'BP Financier'!$D$22+'BP Financier'!$E$22)/('BP Financier'!$C$16+'BP Financier'!$C$19+'BP Financier'!$D$16+'BP Financier'!$D$19+'BP Financier'!$E$16+'BP Financier'!$E$19+'BP Financier'!$C$22+'BP Financier'!$D$22+'BP Financier'!$E$22))*$V4300*AA4300/(1-$W4300)","v":{"v":712.6149131147836,"d":"713"}},{"$f":"'BP Financier'!$E$44*(('BP Financier'!$C$22+'BP Financier'!$D$22+'BP Financier'!$E$22)/('BP Financier'!$C$16+'BP Financier'!$C$19+'BP Financier'!$D$16+'BP Financier'!$D$19+'BP Financier'!$E$16+'BP Financier'!$E$19+'BP Financier'!$C$22+'BP Financier'!$D$22+'BP Financier'!$E$22))*$V4300*AB4300/(1-$W4300)","v":{"v":341.0806421745972,"d":"341"}},null,{"v":0.01,"d":"1.00%"},{"$f":"Actif!$E$28/100","v":{"v":0.28900000000000003,"d":"28.90%"}},{"$f":"Actif!$E$30/100","v":{"v":0.09050000000000001,"d":"9.05%"}},{"$f":"Actif!$E$31/100","v":{"v":0.0605,"d":"6.05%"}},{"$f":"Actif!$E$32/100","v":{"v":0.47350000000000003,"d":"47.35%"}},{"$f":"Actif!$E$33/100","v":{"v":0.0585,"d":"5.85%"}},{"$f":"Actif!$E$29/100","v":{"v":0.027999999999999997,"d":"2.80%"}}]
[null,"#200",31,2028,"H","A_CAPI",{"v":0.44999999999999996,"d":"0.45"},{"v":0.38999999999999996,"d":"0.39"},0.6,0.6,85,0,{"$f":"ROUND(Primes!$O$10*V4301,2)","v":0.45},0,{"v":8661.012020933522,"d":"8,661"},{"$f":"'BP Financier'!$E$44*(('BP Financier'!$C$22+'BP Financier'!$D$22+'BP Financier'!$E$22)/('BP Financier'!$C$16+'BP Financier'!$C$19+'BP Financier'!$D$16+'BP Financier'!$D$19+'BP Financier'!$E$16+'BP Financier'!$E$19+'BP Financier'!$C$22+'BP Financier'!$D$22+'BP Financier'!$E$22))*$V4301*X4301/(1-$W4301)","v":{"v":1102.4213613143233,"d":"1,102"}},{"$f":"'BP Financier'!$E$44*(('BP Financier'!$C$22+'BP Financier'!$D$22+'BP Financier'!$E$22)/('BP Financier'!$C$16+'BP Financier'!$C$19+'BP Financier'!$D$16+'BP Financier'!$D$19+'BP Financier'!$E$16+'BP Financier'!$E$19+'BP Financier'!$C$22+'BP Financier'!$D$22+'BP Financier'!$E$22))*$V4301*Y4301/(1-$W4301)","v":{"v":736.9778161272546,"d":"737"}},{"$f":"'BP Financier'!$E$44*(('BP Financier'!$C$22+'BP Financier'!$D$22+'BP Financier'!$E$22)/('BP Financier'!$C$16+'BP Financier'!$C$19+'BP Financier'!$D$16+'BP Financier'!$D$19+'BP Financier'!$E$16+'BP Financier'!$E$19+'BP Financier'!$C$22+'BP Financier'!$D$22+'BP Financier'!$E$22))*$V4301*Z4301/(1-$W4301)","v":{"v":5767.917288202564,"d":"5,768"}},{"$f":"'BP Financier'!$E$44*(('BP Financier'!$C$22+'BP Financier'!$D$22+'BP Financier'!$E$22)/('BP Financier'!$C$16+'BP Financier'!$C$19+'BP Financier'!$D$16+'BP Financier'!$D$19+'BP Financier'!$E$16+'BP Financier'!$E$19+'BP Financier'!$C$22+'BP Financier'!$D$22+'BP Financier'!$E$22))*$V4301*AA4301/(1-$W4301)","v":{"v":712.6149131147836,"d":"713"}},{"$f":"'BP Financier'!$E$44*(('BP Financier'!$C$22+'BP Financier'!$D$22+'BP Financier'!$E$22)/('BP Financier'!$C$16+'BP Financier'!$C$19+'BP Financier'!$D$16+'BP Financier'!$D$19+'BP Financier'!$E$16+'BP Financier'!$E$19+'BP Financier'!$C$22+'BP Financier'!$D$22+'BP Financier'!$E$22))*$V4301*AB4301/(1-$W4301)","v":{"v":341.0806421745972,"d":"341"}},null,{"v":0.01,"d":"1.00%"},{"$f":"Actif!$E$28/100","v":{"v":0.28900000000000003,"d":"28.90%"}},{"$f":"Actif!$E$30/100","v":{"v":0.09050000000000001,"d":"9.05%"}},{"$f":"Actif!$E$31/100","v":{"v":0.0605,"d":"6.05%"}},{"$f":"Actif!$E$32/100","v":{"v":0.47350000000000003,"d":"47.35%"}},{"$f":"Actif!$E$33/100","v":{"v":0.0585,"d":"5.85%"}},{"$f":"Actif!$E$29/100","v":{"v":0.027999999999999997,"d":"2.80%"}}]
[null,"#201",31,2029,"H","A_CAPI",{"v":0.44999999999999996,"d":"0.45"},{"v":0.38999999999999996,"d":"0.39"},0.6,0.6,85,0,{"$f":"ROUND(Primes!$O$10*V4302,2)","v":0.45},0,{"v":8661.012020933522,"d":"8,661"},{"$f":"'BP Financier'!$E$44*(('BP Financier'!$C$22+'BP Financier'!$D$22+'BP Financier'!$E$22)/('BP Financier'!$C$16+'BP Financier'!$C$19+'BP Financier'!$D$16+'BP Financier'!$D$19+'BP Financier'!$E$16+'BP Financier'!$E$19+'BP Financier'!$C$22+'BP Financier'!$D$22+'BP Financier'!$E$22))*$V4302*X4302/(1-$W4302)","v":{"v":1102.4213613143233,"d":"1,102"}},{"$f":"'BP Financier'!$E$44*(('BP Financier'!$C$22+'BP Financier'!$D$22+'BP Financier'!$E$22)/('BP Financier'!$C$16+'BP Financier'!$C$19+'BP Financier'!$D$16+'BP Financier'!$D$19+'BP Financier'!$E$16+'BP Financier'!$E$19+'BP Financier'!$C$22+'BP Financier'!$D$22+'BP Financier'!$E$22))*$V4302*Y4302/(1-$W4302)","v":{"v":736.9778161272546,"d":"737"}},{"$f":"'BP Financier'!$E$44*(('BP Financier'!$C$22+'BP Financier'!$D$22+'BP Financier'!$E$22)/('BP Financier'!$C$16+'BP Financier'!$C$19+'BP Financier'!$D$16+'BP Financier'!$D$19+'BP Financier'!$E$16+'BP Financier'!$E$19+'BP Financier'!$C$22+'BP Financier'!$D$22+'BP Financier'!$E$22))*$V4302*Z4302/(1-$W4302)","v":{"v":5767.917288202564,"d":"5,768"}},{"$f":"'BP Financier'!$E$44*(('BP Financier'!$C$22+'BP Financier'!$D$22+'BP Financier'!$E$22)/('BP Financier'!$C$16+'BP Financier'!$C$19+'BP Financier'!$D$16+'BP Financier'!$D$19+'BP Financier'!$E$16+'BP Financier'!$E$19+'BP Financier'!$C$22+'BP Financier'!$D$22+'BP Financier'!$E$22))*$V4302*AA4302/(1-$W4302)","v":{"v":712.6149131147836,"d":"713"}},{"$f":"'BP Financier'!$E$44*(('BP Financier'!$C$22+'BP Financier'!$D$22+'BP Financier'!$E$22)/('BP Financier'!$C$16+'BP Financier'!$C$19+'BP Financier'!$D$16+'BP Financier'!$D$19+'BP Financier'!$E$16+'BP Financier'!$E$19+'BP Financier'!$C$22+'BP Financier'!$D$22+'BP Financier'!$E$22))*$V4302*AB4302/(1-$W4302)","v":{"v":341.0806421745972,"d":"341"}},null,{"v":0.01,"d":"1.00%"},{"$f":"Actif!$E$28/100","v":{"v":0.28900000000000003,"d":"28.90%"}},{"$f":"Actif!$E$30/100","v":{"v":0.09050000000000001,"d":"9.05%"}},{"$f":"Actif!$E$31/100","v":{"v":0.0605,"d":"6.05%"}},{"$f":"Actif!$E$32/100","v":{"v":0.47350000000000003,"d":"47.35%"}},{"$f":"Actif!$E$33/100","v":{"v":0.0585,"d":"5.85%"}},{"$f":"Actif!$E$29/100","v":{"v":0.027999999999999997,"d":"2.80%"}}]
[null,"#202",32,2026,"F","A_CAPI",{"v":0.44999999999999996,"d":"0.45"},{"v":0.38999999999999996,"d":"0.39"},0.6,0.6,85,0,{"$f":"ROUND(Primes!$O$10*V4303,2)","v":0.45},0,{"v":8661.012020933522,"d":"8,661"},{"$f":"'BP Financier'!$E$44*(('BP Financier'!$C$22+'BP Financier'!$D$22+'BP Financier'!$E$22)/('BP Financier'!$C$16+'BP Financier'!$C$19+'BP Financier'!$D$16+'BP Financier'!$D$19+'BP Financier'!$E$16+'BP Financier'!$E$19+'BP Financier'!$C$22+'BP Financier'!$D$22+'BP Financier'!$E$22))*$V4303*X4303/(1-$W4303)","v":{"v":1102.4213613143233,"d":"1,102"}},{"$f":"'BP Financier'!$E$44*(('BP Financier'!$C$22+'BP Financier'!$D$22+'BP Financier'!$E$22)/('BP Financier'!$C$16+'BP Financier'!$C$19+'BP Financier'!$D$16+'BP Financier'!$D$19+'BP Financier'!$E$16+'BP Financier'!$E$19+'BP Financier'!$C$22+'BP Financier'!$D$22+'BP Financier'!$E$22))*$V4303*Y4303/(1-$W4303)","v":{"v":736.9778161272546,"d":"737"}},{"$f":"'BP Financier'!$E$44*(('BP Financier'!$C$22+'BP Financier'!$D$22+'BP Financier'!$E$22)/('BP Financier'!$C$16+'BP Financier'!$C$19+'BP Financier'!$D$16+'BP Financier'!$D$19+'BP Financier'!$E$16+'BP Financier'!$E$19+'BP Financier'!$C$22+'BP Financier'!$D$22+'BP Financier'!$E$22))*$V4303*Z4303/(1-$W4303)","v":{"v":5767.917288202564,"d":"5,768"}},{"$f":"'BP Financier'!$E$44*(('BP Financier'!$C$22+'BP Financier'!$D$22+'BP Financier'!$E$22)/('BP Financier'!$C$16+'BP Financier'!$C$19+'BP Financier'!$D$16+'BP Financier'!$D$19+'BP Financier'!$E$16+'BP Financier'!$E$19+'BP Financier'!$C$22+'BP Financier'!$D$22+'BP Financier'!$E$22))*$V4303*AA4303/(1-$W4303)","v":{"v":712.6149131147836,"d":"713"}},{"$f":"'BP Financier'!$E$44*(('BP Financier'!$C$22+'BP Financier'!$D$22+'BP Financier'!$E$22)/('BP Financier'!$C$16+'BP Financier'!$C$19+'BP Financier'!$D$16+'BP Financier'!$D$19+'BP Financier'!$E$16+'BP Financier'!$E$19+'BP Financier'!$C$22+'BP Financier'!$D$22+'BP Financier'!$E$22))*$V4303*AB4303/(1-$W4303)","v":{"v":341.0806421745972,"d":"341"}},null,{"v":0.01,"d":"1.00%"},{"$f":"Actif!$E$28/100","v":{"v":0.28900000000000003,"d":"28.90%"}},{"$f":"Actif!$E$30/100","v":{"v":0.09050000000000001,"d":"9.05%"}},{"$f":"Actif!$E$31/100","v":{"v":0.0605,"d":"6.05%"}},{"$f":"Actif!$E$32/100","v":{"v":0.47350000000000003,"d":"47.35%"}},{"$f":"Actif!$E$33/100","v":{"v":0.0585,"d":"5.85%"}},{"$f":"Actif!$E$29/100","v":{"v":0.027999999999999997,"d":"2.80%"}}]
[null,"#203",32,2028,"F","A_CAPI",{"v":0.44999999999999996,"d":"0.45"},{"v":0.38999999999999996,"d":"0.39"},0.6,0.6,85,0,{"$f":"ROUND(Primes!$O$10*V4304,2)","v":0.45},0,{"v":8661.012020933522,"d":"8,661"},{"$f":"'BP Financier'!$E$44*(('BP Financier'!$C$22+'BP Financier'!$D$22+'BP Financier'!$E$22)/('BP Financier'!$C$16+'BP Financier'!$C$19+'BP Financier'!$D$16+'BP Financier'!$D$19+'BP Financier'!$E$16+'BP Financier'!$E$19+'BP Financier'!$C$22+'BP Financier'!$D$22+'BP Financier'!$E$22))*$V4304*X4304/(1-$W4304)","v":{"v":1102.4213613143233,"d":"1,102"}},{"$f":"'BP Financier'!$E$44*(('BP Financier'!$C$22+'BP Financier'!$D$22+'BP Financier'!$E$22)/('BP Financier'!$C$16+'BP Financier'!$C$19+'BP Financier'!$D$16+'BP Financier'!$D$19+'BP Financier'!$E$16+'BP Financier'!$E$19+'BP Financier'!$C$22+'BP Financier'!$D$22+'BP Financier'!$E$22))*$V4304*Y4304/(1-$W4304)","v":{"v":736.9778161272546,"d":"737"}},{"$f":"'BP Financier'!$E$44*(('BP Financier'!$C$22+'BP Financier'!$D$22+'BP Financier'!$E$22)/('BP Financier'!$C$16+'BP Financier'!$C$19+'BP Financier'!$D$16+'BP Financier'!$D$19+'BP Financier'!$E$16+'BP Financier'!$E$19+'BP Financier'!$C$22+'BP Financier'!$D$22+'BP Financier'!$E$22))*$V4304*Z4304/(1-$W4304)","v":{"v":5767.917288202564,"d":"5,768"}},{"$f":"'BP Financier'!$E$44*(('BP Financier'!$C$22+'BP Financier'!$D$22+'BP Financier'!$E$22)/('BP Financier'!$C$16+'BP Financier'!$C$19+'BP Financier'!$D$16+'BP Financier'!$D$19+'BP Financier'!$E$16+'BP Financier'!$E$19+'BP Financier'!$C$22+'BP Financier'!$D$22+'BP Financier'!$E$22))*$V4304*AA4304/(1-$W4304)","v":{"v":712.6149131147836,"d":"713"}},{"$f":"'BP Financier'!$E$44*(('BP Financier'!$C$22+'BP Financier'!$D$22+'BP Financier'!$E$22)/('BP Financier'!$C$16+'BP Financier'!$C$19+'BP Financier'!$D$16+'BP Financier'!$D$19+'BP Financier'!$E$16+'BP Financier'!$E$19+'BP Financier'!$C$22+'BP Financier'!$D$22+'BP Financier'!$E$22))*$V4304*AB4304/(1-$W4304)","v":{"v":341.0806421745972,"d":"341"}},null,{"v":0.01,"d":"1.00%"},{"$f":"Actif!$E$28/100","v":{"v":0.28900000000000003,"d":"28.90%"}},{"$f":"Actif!$E$30/100","v":{"v":0.09050000000000001,"d":"9.05%"}},{"$f":"Actif!$E$31/100","v":{"v":0.0605,"d":"6.05%"}},{"$f":"Actif!$E$32/100","v":{"v":0.47350000000000003,"d":"47.35%"}},{"$f":"Actif!$E$33/100","v":{"v":0.0585,"d":"5.85%"}},{"$f":"Actif!$E$29/100","v":{"v":0.027999999999999997,"d":"2.80%"}}]
[null,"#204",32,2029,"F","A_CAPI",{"v":0.44999999999999996,"d":"0.45"},{"v":0.38999999999999996,"d":"0.39"},0.6,0.6,85,0,{"$f":"ROUND(Primes!$O$10*V4305,2)","v":0.45},0,{"v":8661.012020933522,"d":"8,661"},{"$f":"'BP Financier'!$E$44*(('BP Financier'!$C$22+'BP Financier'!$D$22+'BP Financier'!$E$22)/('BP Financier'!$C$16+'BP Financier'!$C$19+'BP Financier'!$D$16+'BP Financier'!$D$19+'BP Financier'!$E$16+'BP Financier'!$E$19+'BP Financier'!$C$22+'BP Financier'!$D$22+'BP Financier'!$E$22))*$V4305*X4305/(1-$W4305)","v":{"v":1102.4213613143233,"d":"1,102"}},{"$f":"'BP Financier'!$E$44*(('BP Financier'!$C$22+'BP Financier'!$D$22+'BP Financier'!$E$22)/('BP Financier'!$C$16+'BP Financier'!$C$19+'BP Financier'!$D$16+'BP Financier'!$D$19+'BP Financier'!$E$16+'BP Financier'!$E$19+'BP Financier'!$C$22+'BP Financier'!$D$22+'BP Financier'!$E$22))*$V4305*Y4305/(1-$W4305)","v":{"v":736.9778161272546,"d":"737"}},{"$f":"'BP Financier'!$E$44*(('BP Financier'!$C$22+'BP Financier'!$D$22+'BP Financier'!$E$22)/('BP Financier'!$C$16+'BP Financier'!$C$19+'BP Financier'!$D$16+'BP Financier'!$D$19+'BP Financier'!$E$16+'BP Financier'!$E$19+'BP Financier'!$C$22+'BP Financier'!$D$22+'BP Financier'!$E$22))*$V4305*Z4305/(1-$W4305)","v":{"v":5767.917288202564,"d":"5,768"}},{"$f":"'BP Financier'!$E$44*(('BP Financier'!$C$22+'BP Financier'!$D$22+'BP Financier'!$E$22)/('BP Financier'!$C$16+'BP Financier'!$C$19+'BP Financier'!$D$16+'BP Financier'!$D$19+'BP Financier'!$E$16+'BP Financier'!$E$19+'BP Financier'!$C$22+'BP Financier'!$D$22+'BP Financier'!$E$22))*$V4305*AA4305/(1-$W4305)","v":{"v":712.6149131147836,"d":"713"}},{"$f":"'BP Financier'!$E$44*(('BP Financier'!$C$22+'BP Financier'!$D$22+'BP Financier'!$E$22)/('BP Financier'!$C$16+'BP Financier'!$C$19+'BP Financier'!$D$16+'BP Financier'!$D$19+'BP Financier'!$E$16+'BP Financier'!$E$19+'BP Financier'!$C$22+'BP Financier'!$D$22+'BP Financier'!$E$22))*$V4305*AB4305/(1-$W4305)","v":{"v":341.0806421745972,"d":"341"}},null,{"v":0.01,"d":"1.00%"},{"$f":"Actif!$E$28/100","v":{"v":0.28900000000000003,"d":"28.90%"}},{"$f":"Actif!$E$30/100","v":{"v":0.09050000000000001,"d":"9.05%"}},{"$f":"Actif!$E$31/100","v":{"v":0.0605,"d":"6.05%"}},{"$f":"Actif!$E$32/100","v":{"v":0.47350000000000003,"d":"47.35%"}},{"$f":"Actif!$E$33/100","v":{"v":0.0585,"d":"5.85%"}},{"$f":"Actif!$E$29/100","v":{"v":0.027999999999999997,"d":"2.80%"}}]
[null,"#205",33,2026,"H","A_CAPI",{"v":0.44999999999999996,"d":"0.45"},{"v":0.38999999999999996,"d":"0.39"},0.6,0.6,85,0,{"$f":"ROUND(Primes!$O$10*V4306,2)","v":0.45},0,{"v":8661.012020933522,"d":"8,661"},{"$f":"'BP Financier'!$E$44*(('BP Financier'!$C$22+'BP Financier'!$D$22+'BP Financier'!$E$22)/('BP Financier'!$C$16+'BP Financier'!$C$19+'BP Financier'!$D$16+'BP Financier'!$D$19+'BP Financier'!$E$16+'BP Financier'!$E$19+'BP Financier'!$C$22+'BP Financier'!$D$22+'BP Financier'!$E$22))*$V4306*X4306/(1-$W4306)","v":{"v":1102.4213613143233,"d":"1,102"}},{"$f":"'BP Financier'!$E$44*(('BP Financier'!$C$22+'BP Financier'!$D$22+'BP Financier'!$E$22)/('BP Financier'!$C$16+'BP Financier'!$C$19+'BP Financier'!$D$16+'BP Financier'!$D$19+'BP Financier'!$E$16+'BP Financier'!$E$19+'BP Financier'!$C$22+'BP Financier'!$D$22+'BP Financier'!$E$22))*$V4306*Y4306/(1-$W4306)","v":{"v":736.9778161272546,"d":"737"}},{"$f":"'BP Financier'!$E$44*(('BP Financier'!$C$22+'BP Financier'!$D$22+'BP Financier'!$E$22)/('BP Financier'!$C$16+'BP Financier'!$C$19+'BP Financier'!$D$16+'BP Financier'!$D$19+'BP Financier'!$E$16+'BP Financier'!$E$19+'BP Financier'!$C$22+'BP Financier'!$D$22+'BP Financier'!$E$22))*$V4306*Z4306/(1-$W4306)","v":{"v":5767.917288202564,"d":"5,768"}},{"$f":"'BP Financier'!$E$44*(('BP Financier'!$C$22+'BP Financier'!$D$22+'BP Financier'!$E$22)/('BP Financier'!$C$16+'BP Financier'!$C$19+'BP Financier'!$D$16+'BP Financier'!$D$19+'BP Financier'!$E$16+'BP Financier'!$E$19+'BP Financier'!$C$22+'BP Financier'!$D$22+'BP Financier'!$E$22))*$V4306*AA4306/(1-$W4306)","v":{"v":712.6149131147836,"d":"713"}},{"$f":"'BP Financier'!$E$44*(('BP Financier'!$C$22+'BP Financier'!$D$22+'BP Financier'!$E$22)/('BP Financier'!$C$16+'BP Financier'!$C$19+'BP Financier'!$D$16+'BP Financier'!$D$19+'BP Financier'!$E$16+'BP Financier'!$E$19+'BP Financier'!$C$22+'BP Financier'!$D$22+'BP Financier'!$E$22))*$V4306*AB4306/(1-$W4306)","v":{"v":341.0806421745972,"d":"341"}},null,{"v":0.01,"d":"1.00%"},{"$f":"Actif!$E$28/100","v":{"v":0.28900000000000003,"d":"28.90%"}},{"$f":"Actif!$E$30/100","v":{"v":0.09050000000000001,"d":"9.05%"}},{"$f":"Actif!$E$31/100","v":{"v":0.0605,"d":"6.05%"}},{"$f":"Actif!$E$32/100","v":{"v":0.47350000000000003,"d":"47.35%"}},{"$f":"Actif!$E$33/100","v":{"v":0.0585,"d":"5.85%"}},{"$f":"Actif!$E$29/100","v":{"v":0.027999999999999997,"d":"2.80%"}}]
[null,"#206",33,2028,"H","A_CAPI",{"v":0.44999999999999996,"d":"0.45"},{"v":0.38999999999999996,"d":"0.39"},0.6,0.6,85,0,{"$f":"ROUND(Primes!$O$10*V4307,2)","v":0.45},0,{"v":8661.012020933522,"d":"8,661"},{"$f":"'BP Financier'!$E$44*(('BP Financier'!$C$22+'BP Financier'!$D$22+'BP Financier'!$E$22)/('BP Financier'!$C$16+'BP Financier'!$C$19+'BP Financier'!$D$16+'BP Financier'!$D$19+'BP Financier'!$E$16+'BP Financier'!$E$19+'BP Financier'!$C$22+'BP Financier'!$D$22+'BP Financier'!$E$22))*$V4307*X4307/(1-$W4307)","v":{"v":1102.4213613143233,"d":"1,102"}},{"$f":"'BP Financier'!$E$44*(('BP Financier'!$C$22+'BP Financier'!$D$22+'BP Financier'!$E$22)/('BP Financier'!$C$16+'BP Financier'!$C$19+'BP Financier'!$D$16+'BP Financier'!$D$19+'BP Financier'!$E$16+'BP Financier'!$E$19+'BP Financier'!$C$22+'BP Financier'!$D$22+'BP Financier'!$E$22))*$V4307*Y4307/(1-$W4307)","v":{"v":736.9778161272546,"d":"737"}},{"$f":"'BP Financier'!$E$44*(('BP Financier'!$C$22+'BP Financier'!$D$22+'BP Financier'!$E$22)/('BP Financier'!$C$16+'BP Financier'!$C$19+'BP Financier'!$D$16+'BP Financier'!$D$19+'BP Financier'!$E$16+'BP Financier'!$E$19+'BP Financier'!$C$22+'BP Financier'!$D$22+'BP Financier'!$E$22))*$V4307*Z4307/(1-$W4307)","v":{"v":5767.917288202564,"d":"5,768"}},{"$f":"'BP Financier'!$E$44*(('BP Financier'!$C$22+'BP Financier'!$D$22+'BP Financier'!$E$22)/('BP Financier'!$C$16+'BP Financier'!$C$19+'BP Financier'!$D$16+'BP Financier'!$D$19+'BP Financier'!$E$16+'BP Financier'!$E$19+'BP Financier'!$C$22+'BP Financier'!$D$22+'BP Financier'!$E$22))*$V4307*AA4307/(1-$W4307)","v":{"v":712.6149131147836,"d":"713"}},{"$f":"'BP Financier'!$E$44*(('BP Financier'!$C$22+'BP Financier'!$D$22+'BP Financier'!$E$22)/('BP Financier'!$C$16+'BP Financier'!$C$19+'BP Financier'!$D$16+'BP Financier'!$D$19+'BP Financier'!$E$16+'BP Financier'!$E$19+'BP Financier'!$C$22+'BP Financier'!$D$22+'BP Financier'!$E$22))*$V4307*AB4307/(1-$W4307)","v":{"v":341.0806421745972,"d":"341"}},null,{"v":0.01,"d":"1.00%"},{"$f":"Actif!$E$28/100","v":{"v":0.28900000000000003,"d":"28.90%"}},{"$f":"Actif!$E$30/100","v":{"v":0.09050000000000001,"d":"9.05%"}},{"$f":"Actif!$E$31/100","v":{"v":0.0605,"d":"6.05%"}},{"$f":"Actif!$E$32/100","v":{"v":0.47350000000000003,"d":"47.35%"}},{"$f":"Actif!$E$33/100","v":{"v":0.0585,"d":"5.85%"}},{"$f":"Actif!$E$29/100","v":{"v":0.027999999999999997,"d":"2.80%"}}]
[null,"#207",33,2029,"H","A_CAPI",{"v":0.44999999999999996,"d":"0.45"},{"v":0.38999999999999996,"d":"0.39"},0.6,0.6,85,0,{"$f":"ROUND(Primes!$O$10*V4308,2)","v":0.45},0,{"v":8661.012020933522,"d":"8,661"},{"$f":"'BP Financier'!$E$44*(('BP Financier'!$C$22+'BP Financier'!$D$22+'BP Financier'!$E$22)/('BP Financier'!$C$16+'BP Financier'!$C$19+'BP Financier'!$D$16+'BP Financier'!$D$19+'BP Financier'!$E$16+'BP Financier'!$E$19+'BP Financier'!$C$22+'BP Financier'!$D$22+'BP Financier'!$E$22))*$V4308*X4308/(1-$W4308)","v":{"v":1102.4213613143233,"d":"1,102"}},{"$f":"'BP Financier'!$E$44*(('BP Financier'!$C$22+'BP Financier'!$D$22+'BP Financier'!$E$22)/('BP Financier'!$C$16+'BP Financier'!$C$19+'BP Financier'!$D$16+'BP Financier'!$D$19+'BP Financier'!$E$16+'BP Financier'!$E$19+'BP Financier'!$C$22+'BP Financier'!$D$22+'BP Financier'!$E$22))*$V4308*Y4308/(1-$W4308)","v":{"v":736.9778161272546,"d":"737"}},{"$f":"'BP Financier'!$E$44*(('BP Financier'!$C$22+'BP Financier'!$D$22+'BP Financier'!$E$22)/('BP Financier'!$C$16+'BP Financier'!$C$19+'BP Financier'!$D$16+'BP Financier'!$D$19+'BP Financier'!$E$16+'BP Financier'!$E$19+'BP Financier'!$C$22+'BP Financier'!$D$22+'BP Financier'!$E$22))*$V4308*Z4308/(1-$W4308)","v":{"v":5767.917288202564,"d":"5,768"}},{"$f":"'BP Financier'!$E$44*(('BP Financier'!$C$22+'BP Financier'!$D$22+'BP Financier'!$E$22)/('BP Financier'!$C$16+'BP Financier'!$C$19+'BP Financier'!$D$16+'BP Financier'!$D$19+'BP Financier'!$E$16+'BP Financier'!$E$19+'BP Financier'!$C$22+'BP Financier'!$D$22+'BP Financier'!$E$22))*$V4308*AA4308/(1-$W4308)","v":{"v":712.6149131147836,"d":"713"}},{"$f":"'BP Financier'!$E$44*(('BP Financier'!$C$22+'BP Financier'!$D$22+'BP Financier'!$E$22)/('BP Financier'!$C$16+'BP Financier'!$C$19+'BP Financier'!$D$16+'BP Financier'!$D$19+'BP Financier'!$E$16+'BP Financier'!$E$19+'BP Financier'!$C$22+'BP Financier'!$D$22+'BP Financier'!$E$22))*$V4308*AB4308/(1-$W4308)","v":{"v":341.0806421745972,"d":"341"}},null,{"v":0.01,"d":"1.00%"},{"$f":"Actif!$E$28/100","v":{"v":0.28900000000000003,"d":"28.90%"}},{"$f":"Actif!$E$30/100","v":{"v":0.09050000000000001,"d":"9.05%"}},{"$f":"Actif!$E$31/100","v":{"v":0.0605,"d":"6.05%"}},{"$f":"Actif!$E$32/100","v":{"v":0.47350000000000003,"d":"47.35%"}},{"$f":"Actif!$E$33/100","v":{"v":0.0585,"d":"5.85%"}},{"$f":"Actif!$E$29/100","v":{"v":0.027999999999999997,"d":"2.80%"}}]
[null,"#208",34,2026,"H","A_CAPI",{"v":0.44999999999999996,"d":"0.45"},{"v":0.38999999999999996,"d":"0.39"},0.6,0.6,85,0,{"$f":"ROUND(Primes!$O$10*V4309,2)","v":0.45},0,{"v":8661.012020933522,"d":"8,661"},{"$f":"'BP Financier'!$E$44*(('BP Financier'!$C$22+'BP Financier'!$D$22+'BP Financier'!$E$22)/('BP Financier'!$C$16+'BP Financier'!$C$19+'BP Financier'!$D$16+'BP Financier'!$D$19+'BP Financier'!$E$16+'BP Financier'!$E$19+'BP Financier'!$C$22+'BP Financier'!$D$22+'BP Financier'!$E$22))*$V4309*X4309/(1-$W4309)","v":{"v":1102.4213613143233,"d":"1,102"}},{"$f":"'BP Financier'!$E$44*(('BP Financier'!$C$22+'BP Financier'!$D$22+'BP Financier'!$E$22)/('BP Financier'!$C$16+'BP Financier'!$C$19+'BP Financier'!$D$16+'BP Financier'!$D$19+'BP Financier'!$E$16+'BP Financier'!$E$19+'BP Financier'!$C$22+'BP Financier'!$D$22+'BP Financier'!$E$22))*$V4309*Y4309/(1-$W4309)","v":{"v":736.9778161272546,"d":"737"}},{"$f":"'BP Financier'!$E$44*(('BP Financier'!$C$22+'BP Financier'!$D$22+'BP Financier'!$E$22)/('BP Financier'!$C$16+'BP Financier'!$C$19+'BP Financier'!$D$16+'BP Financier'!$D$19+'BP Financier'!$E$16+'BP Financier'!$E$19+'BP Financier'!$C$22+'BP Financier'!$D$22+'BP Financier'!$E$22))*$V4309*Z4309/(1-$W4309)","v":{"v":5767.917288202564,"d":"5,768"}},{"$f":"'BP Financier'!$E$44*(('BP Financier'!$C$22+'BP Financier'!$D$22+'BP Financier'!$E$22)/('BP Financier'!$C$16+'BP Financier'!$C$19+'BP Financier'!$D$16+'BP Financier'!$D$19+'BP Financier'!$E$16+'BP Financier'!$E$19+'BP Financier'!$C$22+'BP Financier'!$D$22+'BP Financier'!$E$22))*$V4309*AA4309/(1-$W4309)","v":{"v":712.6149131147836,"d":"713"}},{"$f":"'BP Financier'!$E$44*(('BP Financier'!$C$22+'BP Financier'!$D$22+'BP Financier'!$E$22)/('BP Financier'!$C$16+'BP Financier'!$C$19+'BP Financier'!$D$16+'BP Financier'!$D$19+'BP Financier'!$E$16+'BP Financier'!$E$19+'BP Financier'!$C$22+'BP Financier'!$D$22+'BP Financier'!$E$22))*$V4309*AB4309/(1-$W4309)","v":{"v":341.0806421745972,"d":"341"}},null,{"v":0.01,"d":"1.00%"},{"$f":"Actif!$E$28/100","v":{"v":0.28900000000000003,"d":"28.90%"}},{"$f":"Actif!$E$30/100","v":{"v":0.09050000000000001,"d":"9.05%"}},{"$f":"Actif!$E$31/100","v":{"v":0.0605,"d":"6.05%"}},{"$f":"Actif!$E$32/100","v":{"v":0.47350000000000003,"d":"47.35%"}},{"$f":"Actif!$E$33/100","v":{"v":0.0585,"d":"5.85%"}},{"$f":"Actif!$E$29/100","v":{"v":0.027999999999999997,"d":"2.80%"}}]
[null,"#209",34,2028,"H","A_CAPI",{"v":0.44999999999999996,"d":"0.45"},{"v":0.38999999999999996,"d":"0.39"},0.6,0.6,85,0,{"$f":"ROUND(Primes!$O$10*V4310,2)","v":0.45},0,{"v":8661.012020933522,"d":"8,661"},{"$f":"'BP Financier'!$E$44*(('BP Financier'!$C$22+'BP Financier'!$D$22+'BP Financier'!$E$22)/('BP Financier'!$C$16+'BP Financier'!$C$19+'BP Financier'!$D$16+'BP Financier'!$D$19+'BP Financier'!$E$16+'BP Financier'!$E$19+'BP Financier'!$C$22+'BP Financier'!$D$22+'BP Financier'!$E$22))*$V4310*X4310/(1-$W4310)","v":{"v":1102.4213613143233,"d":"1,102"}},{"$f":"'BP Financier'!$E$44*(('BP Financier'!$C$22+'BP Financier'!$D$22+'BP Financier'!$E$22)/('BP Financier'!$C$16+'BP Financier'!$C$19+'BP Financier'!$D$16+'BP Financier'!$D$19+'BP Financier'!$E$16+'BP Financier'!$E$19+'BP Financier'!$C$22+'BP Financier'!$D$22+'BP Financier'!$E$22))*$V4310*Y4310/(1-$W4310)","v":{"v":736.9778161272546,"d":"737"}},{"$f":"'BP Financier'!$E$44*(('BP Financier'!$C$22+'BP Financier'!$D$22+'BP Financier'!$E$22)/('BP Financier'!$C$16+'BP Financier'!$C$19+'BP Financier'!$D$16+'BP Financier'!$D$19+'BP Financier'!$E$16+'BP Financier'!$E$19+'BP Financier'!$C$22+'BP Financier'!$D$22+'BP Financier'!$E$22))*$V4310*Z4310/(1-$W4310)","v":{"v":5767.917288202564,"d":"5,768"}},{"$f":"'BP Financier'!$E$44*(('BP Financier'!$C$22+'BP Financier'!$D$22+'BP Financier'!$E$22)/('BP Financier'!$C$16+'BP Financier'!$C$19+'BP Financier'!$D$16+'BP Financier'!$D$19+'BP Financier'!$E$16+'BP Financier'!$E$19+'BP Financier'!$C$22+'BP Financier'!$D$22+'BP Financier'!$E$22))*$V4310*AA4310/(1-$W4310)","v":{"v":712.6149131147836,"d":"713"}},{"$f":"'BP Financier'!$E$44*(('BP Financier'!$C$22+'BP Financier'!$D$22+'BP Financier'!$E$22)/('BP Financier'!$C$16+'BP Financier'!$C$19+'BP Financier'!$D$16+'BP Financier'!$D$19+'BP Financier'!$E$16+'BP Financier'!$E$19+'BP Financier'!$C$22+'BP Financier'!$D$22+'BP Financier'!$E$22))*$V4310*AB4310/(1-$W4310)","v":{"v":341.0806421745972,"d":"341"}},null,{"v":0.01,"d":"1.00%"},{"$f":"Actif!$E$28/100","v":{"v":0.28900000000000003,"d":"28.90%"}},{"$f":"Actif!$E$30/100","v":{"v":0.09050000000000001,"d":"9.05%"}},{"$f":"Actif!$E$31/100","v":{"v":0.0605,"d":"6.05%"}},{"$f":"Actif!$E$32/100","v":{"v":0.47350000000000003,"d":"47.35%"}},{"$f":"Actif!$E$33/100","v":{"v":0.0585,"d":"5.85%"}},{"$f":"Actif!$E$29/100","v":{"v":0.027999999999999997,"d":"2.80%"}}]
[null,"#210",34,2029,"H","A_CAPI",{"v":0.44999999999999996,"d":"0.45"},{"v":0.38999999999999996,"d":"0.39"},0.6,0.6,85,0,{"$f":"ROUND(Primes!$O$10*V4311,2)","v":0.45},0,{"v":8661.012020933522,"d":"8,661"},{"$f":"'BP Financier'!$E$44*(('BP Financier'!$C$22+'BP Financier'!$D$22+'BP Financier'!$E$22)/('BP Financier'!$C$16+'BP Financier'!$C$19+'BP Financier'!$D$16+'BP Financier'!$D$19+'BP Financier'!$E$16+'BP Financier'!$E$19+'BP Financier'!$C$22+'BP Financier'!$D$22+'BP Financier'!$E$22))*$V4311*X4311/(1-$W4311)","v":{"v":1102.4213613143233,"d":"1,102"}},{"$f":"'BP Financier'!$E$44*(('BP Financier'!$C$22+'BP Financier'!$D$22+'BP Financier'!$E$22)/('BP Financier'!$C$16+'BP Financier'!$C$19+'BP Financier'!$D$16+'BP Financier'!$D$19+'BP Financier'!$E$16+'BP Financier'!$E$19+'BP Financier'!$C$22+'BP Financier'!$D$22+'BP Financier'!$E$22))*$V4311*Y4311/(1-$W4311)","v":{"v":736.9778161272546,"d":"737"}},{"$f":"'BP Financier'!$E$44*(('BP Financier'!$C$22+'BP Financier'!$D$22+'BP Financier'!$E$22)/('BP Financier'!$C$16+'BP Financier'!$C$19+'BP Financier'!$D$16+'BP Financier'!$D$19+'BP Financier'!$E$16+'BP Financier'!$E$19+'BP Financier'!$C$22+'BP Financier'!$D$22+'BP Financier'!$E$22))*$V4311*Z4311/(1-$W4311)","v":{"v":5767.917288202564,"d":"5,768"}},{"$f":"'BP Financier'!$E$44*(('BP Financier'!$C$22+'BP Financier'!$D$22+'BP Financier'!$E$22)/('BP Financier'!$C$16+'BP Financier'!$C$19+'BP Financier'!$D$16+'BP Financier'!$D$19+'BP Financier'!$E$16+'BP Financier'!$E$19+'BP Financier'!$C$22+'BP Financier'!$D$22+'BP Financier'!$E$22))*$V4311*AA4311/(1-$W4311)","v":{"v":712.6149131147836,"d":"713"}},{"$f":"'BP Financier'!$E$44*(('BP Financier'!$C$22+'BP Financier'!$D$22+'BP Financier'!$E$22)/('BP Financier'!$C$16+'BP Financier'!$C$19+'BP Financier'!$D$16+'BP Financier'!$D$19+'BP Financier'!$E$16+'BP Financier'!$E$19+'BP Financier'!$C$22+'BP Financier'!$D$22+'BP Financier'!$E$22))*$V4311*AB4311/(1-$W4311)","v":{"v":341.0806421745972,"d":"341"}},null,{"v":0.01,"d":"1.00%"},{"$f":"Actif!$E$28/100","v":{"v":0.28900000000000003,"d":"28.90%"}},{"$f":"Actif!$E$30/100","v":{"v":0.09050000000000001,"d":"9.05%"}},{"$f":"Actif!$E$31/100","v":{"v":0.0605,"d":"6.05%"}},{"$f":"Actif!$E$32/100","v":{"v":0.47350000000000003,"d":"47.35%"}},{"$f":"Actif!$E$33/100","v":{"v":0.0585,"d":"5.85%"}},{"$f":"Actif!$E$29/100","v":{"v":0.027999999999999997,"d":"2.80%"}}]
[null,"#211",35,2026,"F","A_CAPI",{"v":0.44999999999999996,"d":"0.45"},{"v":0.38999999999999996,"d":"0.39"},0.6,0.6,85,0,{"$f":"ROUND(Primes!$O$10*V4312,2)","v":0.45},0,{"v":8661.012020933522,"d":"8,661"},{"$f":"'BP Financier'!$E$44*(('BP Financier'!$C$22+'BP Financier'!$D$22+'BP Financier'!$E$22)/('BP Financier'!$C$16+'BP Financier'!$C$19+'BP Financier'!$D$16+'BP Financier'!$D$19+'BP Financier'!$E$16+'BP Financier'!$E$19+'BP Financier'!$C$22+'BP Financier'!$D$22+'BP Financier'!$E$22))*$V4312*X4312/(1-$W4312)","v":{"v":1102.4213613143233,"d":"1,102"}},{"$f":"'BP Financier'!$E$44*(('BP Financier'!$C$22+'BP Financier'!$D$22+'BP Financier'!$E$22)/('BP Financier'!$C$16+'BP Financier'!$C$19+'BP Financier'!$D$16+'BP Financier'!$D$19+'BP Financier'!$E$16+'BP Financier'!$E$19+'BP Financier'!$C$22+'BP Financier'!$D$22+'BP Financier'!$E$22))*$V4312*Y4312/(1-$W4312)","v":{"v":736.9778161272546,"d":"737"}},{"$f":"'BP Financier'!$E$44*(('BP Financier'!$C$22+'BP Financier'!$D$22+'BP Financier'!$E$22)/('BP Financier'!$C$16+'BP Financier'!$C$19+'BP Financier'!$D$16+'BP Financier'!$D$19+'BP Financier'!$E$16+'BP Financier'!$E$19+'BP Financier'!$C$22+'BP Financier'!$D$22+'BP Financier'!$E$22))*$V4312*Z4312/(1-$W4312)","v":{"v":5767.917288202564,"d":"5,768"}},{"$f":"'BP Financier'!$E$44*(('BP Financier'!$C$22+'BP Financier'!$D$22+'BP Financier'!$E$22)/('BP Financier'!$C$16+'BP Financier'!$C$19+'BP Financier'!$D$16+'BP Financier'!$D$19+'BP Financier'!$E$16+'BP Financier'!$E$19+'BP Financier'!$C$22+'BP Financier'!$D$22+'BP Financier'!$E$22))*$V4312*AA4312/(1-$W4312)","v":{"v":712.6149131147836,"d":"713"}},{"$f":"'BP Financier'!$E$44*(('BP Financier'!$C$22+'BP Financier'!$D$22+'BP Financier'!$E$22)/('BP Financier'!$C$16+'BP Financier'!$C$19+'BP Financier'!$D$16+'BP Financier'!$D$19+'BP Financier'!$E$16+'BP Financier'!$E$19+'BP Financier'!$C$22+'BP Financier'!$D$22+'BP Financier'!$E$22))*$V4312*AB4312/(1-$W4312)","v":{"v":341.0806421745972,"d":"341"}},null,{"v":0.01,"d":"1.00%"},{"$f":"Actif!$E$28/100","v":{"v":0.28900000000000003,"d":"28.90%"}},{"$f":"Actif!$E$30/100","v":{"v":0.09050000000000001,"d":"9.05%"}},{"$f":"Actif!$E$31/100","v":{"v":0.0605,"d":"6.05%"}},{"$f":"Actif!$E$32/100","v":{"v":0.47350000000000003,"d":"47.35%"}},{"$f":"Actif!$E$33/100","v":{"v":0.0585,"d":"5.85%"}},{"$f":"Actif!$E$29/100","v":{"v":0.027999999999999997,"d":"2.80%"}}]
[null,"#212",35,2028,"F","A_CAPI",{"v":0.44999999999999996,"d":"0.45"},{"v":0.38999999999999996,"d":"0.39"},0.6,0.6,85,0,{"$f":"ROUND(Primes!$O$10*V4313,2)","v":0.45},0,{"v":8661.012020933522,"d":"8,661"},{"$f":"'BP Financier'!$E$44*(('BP Financier'!$C$22+'BP Financier'!$D$22+'BP Financier'!$E$22)/('BP Financier'!$C$16+'BP Financier'!$C$19+'BP Financier'!$D$16+'BP Financier'!$D$19+'BP Financier'!$E$16+'BP Financier'!$E$19+'BP Financier'!$C$22+'BP Financier'!$D$22+'BP Financier'!$E$22))*$V4313*X4313/(1-$W4313)","v":{"v":1102.4213613143233,"d":"1,102"}},{"$f":"'BP Financier'!$E$44*(('BP Financier'!$C$22+'BP Financier'!$D$22+'BP Financier'!$E$22)/('BP Financier'!$C$16+'BP Financier'!$C$19+'BP Financier'!$D$16+'BP Financier'!$D$19+'BP Financier'!$E$16+'BP Financier'!$E$19+'BP Financier'!$C$22+'BP Financier'!$D$22+'BP Financier'!$E$22))*$V4313*Y4313/(1-$W4313)","v":{"v":736.9778161272546,"d":"737"}},{"$f":"'BP Financier'!$E$44*(('BP Financier'!$C$22+'BP Financier'!$D$22+'BP Financier'!$E$22)/('BP Financier'!$C$16+'BP Financier'!$C$19+'BP Financier'!$D$16+'BP Financier'!$D$19+'BP Financier'!$E$16+'BP Financier'!$E$19+'BP Financier'!$C$22+'BP Financier'!$D$22+'BP Financier'!$E$22))*$V4313*Z4313/(1-$W4313)","v":{"v":5767.917288202564,"d":"5,768"}},{"$f":"'BP Financier'!$E$44*(('BP Financier'!$C$22+'BP Financier'!$D$22+'BP Financier'!$E$22)/('BP Financier'!$C$16+'BP Financier'!$C$19+'BP Financier'!$D$16+'BP Financier'!$D$19+'BP Financier'!$E$16+'BP Financier'!$E$19+'BP Financier'!$C$22+'BP Financier'!$D$22+'BP Financier'!$E$22))*$V4313*AA4313/(1-$W4313)","v":{"v":712.6149131147836,"d":"713"}},{"$f":"'BP Financier'!$E$44*(('BP Financier'!$C$22+'BP Financier'!$D$22+'BP Financier'!$E$22)/('BP Financier'!$C$16+'BP Financier'!$C$19+'BP Financier'!$D$16+'BP Financier'!$D$19+'BP Financier'!$E$16+'BP Financier'!$E$19+'BP Financier'!$C$22+'BP Financier'!$D$22+'BP Financier'!$E$22))*$V4313*AB4313/(1-$W4313)","v":{"v":341.0806421745972,"d":"341"}},null,{"v":0.01,"d":"1.00%"},{"$f":"Actif!$E$28/100","v":{"v":0.28900000000000003,"d":"28.90%"}},{"$f":"Actif!$E$30/100","v":{"v":0.09050000000000001,"d":"9.05%"}},{"$f":"Actif!$E$31/100","v":{"v":0.0605,"d":"6.05%"}},{"$f":"Actif!$E$32/100","v":{"v":0.47350000000000003,"d":"47.35%"}},{"$f":"Actif!$E$33/100","v":{"v":0.0585,"d":"5.85%"}},{"$f":"Actif!$E$29/100","v":{"v":0.027999999999999997,"d":"2.80%"}}]
[null,"#213",35,2029,"F","A_CAPI",{"v":0.44999999999999996,"d":"0.45"},{"v":0.38999999999999996,"d":"0.39"},0.6,0.6,85,0,{"$f":"ROUND(Primes!$O$10*V4314,2)","v":0.45},0,{"v":8661.012020933522,"d":"8,661"},{"$f":"'BP Financier'!$E$44*(('BP Financier'!$C$22+'BP Financier'!$D$22+'BP Financier'!$E$22)/('BP Financier'!$C$16+'BP Financier'!$C$19+'BP Financier'!$D$16+'BP Financier'!$D$19+'BP Financier'!$E$16+'BP Financier'!$E$19+'BP Financier'!$C$22+'BP Financier'!$D$22+'BP Financier'!$E$22))*$V4314*X4314/(1-$W4314)","v":{"v":1102.4213613143233,"d":"1,102"}},{"$f":"'BP Financier'!$E$44*(('BP Financier'!$C$22+'BP Financier'!$D$22+'BP Financier'!$E$22)/('BP Financier'!$C$16+'BP Financier'!$C$19+'BP Financier'!$D$16+'BP Financier'!$D$19+'BP Financier'!$E$16+'BP Financier'!$E$19+'BP Financier'!$C$22+'BP Financier'!$D$22+'BP Financier'!$E$22))*$V4314*Y4314/(1-$W4314)","v":{"v":736.9778161272546,"d":"737"}},{"$f":"'BP Financier'!$E$44*(('BP Financier'!$C$22+'BP Financier'!$D$22+'BP Financier'!$E$22)/('BP Financier'!$C$16+'BP Financier'!$C$19+'BP Financier'!$D$16+'BP Financier'!$D$19+'BP Financier'!$E$16+'BP Financier'!$E$19+'BP Financier'!$C$22+'BP Financier'!$D$22+'BP Financier'!$E$22))*$V4314*Z4314/(1-$W4314)","v":{"v":5767.917288202564,"d":"5,768"}},{"$f":"'BP Financier'!$E$44*(('BP Financier'!$C$22+'BP Financier'!$D$22+'BP Financier'!$E$22)/('BP Financier'!$C$16+'BP Financier'!$C$19+'BP Financier'!$D$16+'BP Financier'!$D$19+'BP Financier'!$E$16+'BP Financier'!$E$19+'BP Financier'!$C$22+'BP Financier'!$D$22+'BP Financier'!$E$22))*$V4314*AA4314/(1-$W4314)","v":{"v":712.6149131147836,"d":"713"}},{"$f":"'BP Financier'!$E$44*(('BP Financier'!$C$22+'BP Financier'!$D$22+'BP Financier'!$E$22)/('BP Financier'!$C$16+'BP Financier'!$C$19+'BP Financier'!$D$16+'BP Financier'!$D$19+'BP Financier'!$E$16+'BP Financier'!$E$19+'BP Financier'!$C$22+'BP Financier'!$D$22+'BP Financier'!$E$22))*$V4314*AB4314/(1-$W4314)","v":{"v":341.0806421745972,"d":"341"}},null,{"v":0.01,"d":"1.00%"},{"$f":"Actif!$E$28/100","v":{"v":0.28900000000000003,"d":"28.90%"}},{"$f":"Actif!$E$30/100","v":{"v":0.09050000000000001,"d":"9.05%"}},{"$f":"Actif!$E$31/100","v":{"v":0.0605,"d":"6.05%"}},{"$f":"Actif!$E$32/100","v":{"v":0.47350000000000003,"d":"47.35%"}},{"$f":"Actif!$E$33/100","v":{"v":0.0585,"d":"5.85%"}},{"$f":"Actif!$E$29/100","v":{"v":0.027999999999999997,"d":"2.80%"}}]
[null,"#214",36,2026,"H","A_CAPI",{"v":0.44999999999999996,"d":"0.45"},{"v":0.38999999999999996,"d":"0.39"},0.6,0.6,85,0,{"$f":"ROUND(Primes!$O$10*V4315,2)","v":0.08},0,{"v":1443.5020034889205,"d":"1,444"},{"$f":"'BP Financier'!$E$44*(('BP Financier'!$C$22+'BP Financier'!$D$22+'BP Financier'!$E$22)/('BP Financier'!$C$16+'BP Financier'!$C$19+'BP Financier'!$D$16+'BP Financier'!$D$19+'BP Financier'!$E$16+'BP Financier'!$E$19+'BP Financier'!$C$22+'BP Financier'!$D$22+'BP Financier'!$E$22))*$V4315*X4315/(1-$W4315)","v":{"v":183.7368935523872,"d":"184"}},{"$f":"'BP Financier'!$E$44*(('BP Financier'!$C$22+'BP Financier'!$D$22+'BP Financier'!$E$22)/('BP Financier'!$C$16+'BP Financier'!$C$19+'BP Financier'!$D$16+'BP Financier'!$D$19+'BP Financier'!$E$16+'BP Financier'!$E$19+'BP Financier'!$C$22+'BP Financier'!$D$22+'BP Financier'!$E$22))*$V4315*Y4315/(1-$W4315)","v":{"v":122.82963602120911,"d":"123"}},{"$f":"'BP Financier'!$E$44*(('BP Financier'!$C$22+'BP Financier'!$D$22+'BP Financier'!$E$22)/('BP Financier'!$C$16+'BP Financier'!$C$19+'BP Financier'!$D$16+'BP Financier'!$D$19+'BP Financier'!$E$16+'BP Financier'!$E$19+'BP Financier'!$C$22+'BP Financier'!$D$22+'BP Financier'!$E$22))*$V4315*Z4315/(1-$W4315)","v":{"v":961.3195480337606,"d":"961"}},{"$f":"'BP Financier'!$E$44*(('BP Financier'!$C$22+'BP Financier'!$D$22+'BP Financier'!$E$22)/('BP Financier'!$C$16+'BP Financier'!$C$19+'BP Financier'!$D$16+'BP Financier'!$D$19+'BP Financier'!$E$16+'BP Financier'!$E$19+'BP Financier'!$C$22+'BP Financier'!$D$22+'BP Financier'!$E$22))*$V4315*AA4315/(1-$W4315)","v":{"v":118.76915218579725,"d":"119"}},{"$f":"'BP Financier'!$E$44*(('BP Financier'!$C$22+'BP Financier'!$D$22+'BP Financier'!$E$22)/('BP Financier'!$C$16+'BP Financier'!$C$19+'BP Financier'!$D$16+'BP Financier'!$D$19+'BP Financier'!$E$16+'BP Financier'!$E$19+'BP Financier'!$C$22+'BP Financier'!$D$22+'BP Financier'!$E$22))*$V4315*AB4315/(1-$W4315)","v":{"v":56.846773695766196,"d":"57"}},null,{"v":1.6666666666666668E-3,"d":"0.17%"},{"$f":"Actif!$E$28/100","v":{"v":0.28900000000000003,"d":"28.90%"}},{"$f":"Actif!$E$30/100","v":{"v":0.09050000000000001,"d":"9.05%"}},{"$f":"Actif!$E$31/100","v":{"v":0.0605,"d":"6.05%"}},{"$f":"Actif!$E$32/100","v":{"v":0.47350000000000003,"d":"47.35%"}},{"$f":"Actif!$E$33/100","v":{"v":0.0585,"d":"5.85%"}},{"$f":"Actif!$E$29/100","v":{"v":0.027999999999999997,"d":"2.80%"}}]
[null,"#215",36,2028,"H","A_CAPI",{"v":0.44999999999999996,"d":"0.45"},{"v":0.38999999999999996,"d":"0.39"},0.6,0.6,85,0,{"$f":"ROUND(Primes!$O$10*V4316,2)","v":0.08},0,{"v":1443.5020034889205,"d":"1,444"},{"$f":"'BP Financier'!$E$44*(('BP Financier'!$C$22+'BP Financier'!$D$22+'BP Financier'!$E$22)/('BP Financier'!$C$16+'BP Financier'!$C$19+'BP Financier'!$D$16+'BP Financier'!$D$19+'BP Financier'!$E$16+'BP Financier'!$E$19+'BP Financier'!$C$22+'BP Financier'!$D$22+'BP Financier'!$E$22))*$V4316*X4316/(1-$W4316)","v":{"v":183.7368935523872,"d":"184"}},{"$f":"'BP Financier'!$E$44*(('BP Financier'!$C$22+'BP Financier'!$D$22+'BP Financier'!$E$22)/('BP Financier'!$C$16+'BP Financier'!$C$19+'BP Financier'!$D$16+'BP Financier'!$D$19+'BP Financier'!$E$16+'BP Financier'!$E$19+'BP Financier'!$C$22+'BP Financier'!$D$22+'BP Financier'!$E$22))*$V4316*Y4316/(1-$W4316)","v":{"v":122.82963602120911,"d":"123"}},{"$f":"'BP Financier'!$E$44*(('BP Financier'!$C$22+'BP Financier'!$D$22+'BP Financier'!$E$22)/('BP Financier'!$C$16+'BP Financier'!$C$19+'BP Financier'!$D$16+'BP Financier'!$D$19+'BP Financier'!$E$16+'BP Financier'!$E$19+'BP Financier'!$C$22+'BP Financier'!$D$22+'BP Financier'!$E$22))*$V4316*Z4316/(1-$W4316)","v":{"v":961.3195480337606,"d":"961"}},{"$f":"'BP Financier'!$E$44*(('BP Financier'!$C$22+'BP Financier'!$D$22+'BP Financier'!$E$22)/('BP Financier'!$C$16+'BP Financier'!$C$19+'BP Financier'!$D$16+'BP Financier'!$D$19+'BP Financier'!$E$16+'BP Financier'!$E$19+'BP Financier'!$C$22+'BP Financier'!$D$22+'BP Financier'!$E$22))*$V4316*AA4316/(1-$W4316)","v":{"v":118.76915218579725,"d":"119"}},{"$f":"'BP Financier'!$E$44*(('BP Financier'!$C$22+'BP Financier'!$D$22+'BP Financier'!$E$22)/('BP Financier'!$C$16+'BP Financier'!$C$19+'BP Financier'!$D$16+'BP Financier'!$D$19+'BP Financier'!$E$16+'BP Financier'!$E$19+'BP Financier'!$C$22+'BP Financier'!$D$22+'BP Financier'!$E$22))*$V4316*AB4316/(1-$W4316)","v":{"v":56.846773695766196,"d":"57"}},null,{"v":1.6666666666666668E-3,"d":"0.17%"},{"$f":"Actif!$E$28/100","v":{"v":0.28900000000000003,"d":"28.90%"}},{"$f":"Actif!$E$30/100","v":{"v":0.09050000000000001,"d":"9.05%"}},{"$f":"Actif!$E$31/100","v":{"v":0.0605,"d":"6.05%"}},{"$f":"Actif!$E$32/100","v":{"v":0.47350000000000003,"d":"47.35%"}},{"$f":"Actif!$E$33/100","v":{"v":0.0585,"d":"5.85%"}},{"$f":"Actif!$E$29/100","v":{"v":0.027999999999999997,"d":"2.80%"}}]
[null,"#216",36,2029,"H","A_CAPI",{"v":0.44999999999999996,"d":"0.45"},{"v":0.38999999999999996,"d":"0.39"},0.6,0.6,85,0,{"$f":"ROUND(Primes!$O$10*V4317,2)","v":0.08},0,{"v":1443.5020034889205,"d":"1,444"},{"$f":"'BP Financier'!$E$44*(('BP Financier'!$C$22+'BP Financier'!$D$22+'BP Financier'!$E$22)/('BP Financier'!$C$16+'BP Financier'!$C$19+'BP Financier'!$D$16+'BP Financier'!$D$19+'BP Financier'!$E$16+'BP Financier'!$E$19+'BP Financier'!$C$22+'BP Financier'!$D$22+'BP Financier'!$E$22))*$V4317*X4317/(1-$W4317)","v":{"v":183.7368935523872,"d":"184"}},{"$f":"'BP Financier'!$E$44*(('BP Financier'!$C$22+'BP Financier'!$D$22+'BP Financier'!$E$22)/('BP Financier'!$C$16+'BP Financier'!$C$19+'BP Financier'!$D$16+'BP Financier'!$D$19+'BP Financier'!$E$16+'BP Financier'!$E$19+'BP Financier'!$C$22+'BP Financier'!$D$22+'BP Financier'!$E$22))*$V4317*Y4317/(1-$W4317)","v":{"v":122.82963602120911,"d":"123"}},{"$f":"'BP Financier'!$E$44*(('BP Financier'!$C$22+'BP Financier'!$D$22+'BP Financier'!$E$22)/('BP Financier'!$C$16+'BP Financier'!$C$19+'BP Financier'!$D$16+'BP Financier'!$D$19+'BP Financier'!$E$16+'BP Financier'!$E$19+'BP Financier'!$C$22+'BP Financier'!$D$22+'BP Financier'!$E$22))*$V4317*Z4317/(1-$W4317)","v":{"v":961.3195480337606,"d":"961"}},{"$f":"'BP Financier'!$E$44*(('BP Financier'!$C$22+'BP Financier'!$D$22+'BP Financier'!$E$22)/('BP Financier'!$C$16+'BP Financier'!$C$19+'BP Financier'!$D$16+'BP Financier'!$D$19+'BP Financier'!$E$16+'BP Financier'!$E$19+'BP Financier'!$C$22+'BP Financier'!$D$22+'BP Financier'!$E$22))*$V4317*AA4317/(1-$W4317)","v":{"v":118.76915218579725,"d":"119"}},{"$f":"'BP Financier'!$E$44*(('BP Financier'!$C$22+'BP Financier'!$D$22+'BP Financier'!$E$22)/('BP Financier'!$C$16+'BP Financier'!$C$19+'BP Financier'!$D$16+'BP Financier'!$D$19+'BP Financier'!$E$16+'BP Financier'!$E$19+'BP Financier'!$C$22+'BP Financier'!$D$22+'BP Financier'!$E$22))*$V4317*AB4317/(1-$W4317)","v":{"v":56.846773695766196,"d":"57"}},null,{"v":1.6666666666666668E-3,"d":"0.17%"},{"$f":"Actif!$E$28/100","v":{"v":0.28900000000000003,"d":"28.90%"}},{"$f":"Actif!$E$30/100","v":{"v":0.09050000000000001,"d":"9.05%"}},{"$f":"Actif!$E$31/100","v":{"v":0.0605,"d":"6.05%"}},{"$f":"Actif!$E$32/100","v":{"v":0.47350000000000003,"d":"47.35%"}},{"$f":"Actif!$E$33/100","v":{"v":0.0585,"d":"5.85%"}},{"$f":"Actif!$E$29/100","v":{"v":0.027999999999999997,"d":"2.80%"}}]
[null,"#217",37,2026,"H","A_CAPI",{"v":0.44999999999999996,"d":"0.45"},{"v":0.38999999999999996,"d":"0.39"},0.6,0.6,85,0,{"$f":"ROUND(Primes!$O$10*V4318,2)","v":0.08},0,{"v":1443.5020034889205,"d":"1,444"},{"$f":"'BP Financier'!$E$44*(('BP Financier'!$C$22+'BP Financier'!$D$22+'BP Financier'!$E$22)/('BP Financier'!$C$16+'BP Financier'!$C$19+'BP Financier'!$D$16+'BP Financier'!$D$19+'BP Financier'!$E$16+'BP Financier'!$E$19+'BP Financier'!$C$22+'BP Financier'!$D$22+'BP Financier'!$E$22))*$V4318*X4318/(1-$W4318)","v":{"v":183.7368935523872,"d":"184"}},{"$f":"'BP Financier'!$E$44*(('BP Financier'!$C$22+'BP Financier'!$D$22+'BP Financier'!$E$22)/('BP Financier'!$C$16+'BP Financier'!$C$19+'BP Financier'!$D$16+'BP Financier'!$D$19+'BP Financier'!$E$16+'BP Financier'!$E$19+'BP Financier'!$C$22+'BP Financier'!$D$22+'BP Financier'!$E$22))*$V4318*Y4318/(1-$W4318)","v":{"v":122.82963602120911,"d":"123"}},{"$f":"'BP Financier'!$E$44*(('BP Financier'!$C$22+'BP Financier'!$D$22+'BP Financier'!$E$22)/('BP Financier'!$C$16+'BP Financier'!$C$19+'BP Financier'!$D$16+'BP Financier'!$D$19+'BP Financier'!$E$16+'BP Financier'!$E$19+'BP Financier'!$C$22+'BP Financier'!$D$22+'BP Financier'!$E$22))*$V4318*Z4318/(1-$W4318)","v":{"v":961.3195480337606,"d":"961"}},{"$f":"'BP Financier'!$E$44*(('BP Financier'!$C$22+'BP Financier'!$D$22+'BP Financier'!$E$22)/('BP Financier'!$C$16+'BP Financier'!$C$19+'BP Financier'!$D$16+'BP Financier'!$D$19+'BP Financier'!$E$16+'BP Financier'!$E$19+'BP Financier'!$C$22+'BP Financier'!$D$22+'BP Financier'!$E$22))*$V4318*AA4318/(1-$W4318)","v":{"v":118.76915218579725,"d":"119"}},{"$f":"'BP Financier'!$E$44*(('BP Financier'!$C$22+'BP Financier'!$D$22+'BP Financier'!$E$22)/('BP Financier'!$C$16+'BP Financier'!$C$19+'BP Financier'!$D$16+'BP Financier'!$D$19+'BP Financier'!$E$16+'BP Financier'!$E$19+'BP Financier'!$C$22+'BP Financier'!$D$22+'BP Financier'!$E$22))*$V4318*AB4318/(1-$W4318)","v":{"v":56.846773695766196,"d":"57"}},null,{"v":1.6666666666666668E-3,"d":"0.17%"},{"$f":"Actif!$E$28/100","v":{"v":0.28900000000000003,"d":"28.90%"}},{"$f":"Actif!$E$30/100","v":{"v":0.09050000000000001,"d":"9.05%"}},{"$f":"Actif!$E$31/100","v":{"v":0.0605,"d":"6.05%"}},{"$f":"Actif!$E$32/100","v":{"v":0.47350000000000003,"d":"47.35%"}},{"$f":"Actif!$E$33/100","v":{"v":0.0585,"d":"5.85%"}},{"$f":"Actif!$E$29/100","v":{"v":0.027999999999999997,"d":"2.80%"}}]
[null,"#218",37,2028,"H","A_CAPI",{"v":0.44999999999999996,"d":"0.45"},{"v":0.38999999999999996,"d":"0.39"},0.6,0.6,85,0,{"$f":"ROUND(Primes!$O$10*V4319,2)","v":0.08},0,{"v":1443.5020034889205,"d":"1,444"},{"$f":"'BP Financier'!$E$44*(('BP Financier'!$C$22+'BP Financier'!$D$22+'BP Financier'!$E$22)/('BP Financier'!$C$16+'BP Financier'!$C$19+'BP Financier'!$D$16+'BP Financier'!$D$19+'BP Financier'!$E$16+'BP Financier'!$E$19+'BP Financier'!$C$22+'BP Financier'!$D$22+'BP Financier'!$E$22))*$V4319*X4319/(1-$W4319)","v":{"v":183.7368935523872,"d":"184"}},{"$f":"'BP Financier'!$E$44*(('BP Financier'!$C$22+'BP Financier'!$D$22+'BP Financier'!$E$22)/('BP Financier'!$C$16+'BP Financier'!$C$19+'BP Financier'!$D$16+'BP Financier'!$D$19+'BP Financier'!$E$16+'BP Financier'!$E$19+'BP Financier'!$C$22+'BP Financier'!$D$22+'BP Financier'!$E$22))*$V4319*Y4319/(1-$W4319)","v":{"v":122.82963602120911,"d":"123"}},{"$f":"'BP Financier'!$E$44*(('BP Financier'!$C$22+'BP Financier'!$D$22+'BP Financier'!$E$22)/('BP Financier'!$C$16+'BP Financier'!$C$19+'BP Financier'!$D$16+'BP Financier'!$D$19+'BP Financier'!$E$16+'BP Financier'!$E$19+'BP Financier'!$C$22+'BP Financier'!$D$22+'BP Financier'!$E$22))*$V4319*Z4319/(1-$W4319)","v":{"v":961.3195480337606,"d":"961"}},{"$f":"'BP Financier'!$E$44*(('BP Financier'!$C$22+'BP Financier'!$D$22+'BP Financier'!$E$22)/('BP Financier'!$C$16+'BP Financier'!$C$19+'BP Financier'!$D$16+'BP Financier'!$D$19+'BP Financier'!$E$16+'BP Financier'!$E$19+'BP Financier'!$C$22+'BP Financier'!$D$22+'BP Financier'!$E$22))*$V4319*AA4319/(1-$W4319)","v":{"v":118.76915218579725,"d":"119"}},{"$f":"'BP Financier'!$E$44*(('BP Financier'!$C$22+'BP Financier'!$D$22+'BP Financier'!$E$22)/('BP Financier'!$C$16+'BP Financier'!$C$19+'BP Financier'!$D$16+'BP Financier'!$D$19+'BP Financier'!$E$16+'BP Financier'!$E$19+'BP Financier'!$C$22+'BP Financier'!$D$22+'BP Financier'!$E$22))*$V4319*AB4319/(1-$W4319)","v":{"v":56.846773695766196,"d":"57"}},null,{"v":1.6666666666666668E-3,"d":"0.17%"},{"$f":"Actif!$E$28/100","v":{"v":0.28900000000000003,"d":"28.90%"}},{"$f":"Actif!$E$30/100","v":{"v":0.09050000000000001,"d":"9.05%"}},{"$f":"Actif!$E$31/100","v":{"v":0.0605,"d":"6.05%"}},{"$f":"Actif!$E$32/100","v":{"v":0.47350000000000003,"d":"47.35%"}},{"$f":"Actif!$E$33/100","v":{"v":0.0585,"d":"5.85%"}},{"$f":"Actif!$E$29/100","v":{"v":0.027999999999999997,"d":"2.80%"}}]
[null,"#219",37,2029,"H","A_CAPI",{"v":0.44999999999999996,"d":"0.45"},{"v":0.38999999999999996,"d":"0.39"},0.6,0.6,85,0,{"$f":"ROUND(Primes!$O$10*V4320,2)","v":0.08},0,{"v":1443.5020034889205,"d":"1,444"},{"$f":"'BP Financier'!$E$44*(('BP Financier'!$C$22+'BP Financier'!$D$22+'BP Financier'!$E$22)/('BP Financier'!$C$16+'BP Financier'!$C$19+'BP Financier'!$D$16+'BP Financier'!$D$19+'BP Financier'!$E$16+'BP Financier'!$E$19+'BP Financier'!$C$22+'BP Financier'!$D$22+'BP Financier'!$E$22))*$V4320*X4320/(1-$W4320)","v":{"v":183.7368935523872,"d":"184"}},{"$f":"'BP Financier'!$E$44*(('BP Financier'!$C$22+'BP Financier'!$D$22+'BP Financier'!$E$22)/('BP Financier'!$C$16+'BP Financier'!$C$19+'BP Financier'!$D$16+'BP Financier'!$D$19+'BP Financier'!$E$16+'BP Financier'!$E$19+'BP Financier'!$C$22+'BP Financier'!$D$22+'BP Financier'!$E$22))*$V4320*Y4320/(1-$W4320)","v":{"v":122.82963602120911,"d":"123"}},{"$f":"'BP Financier'!$E$44*(('BP Financier'!$C$22+'BP Financier'!$D$22+'BP Financier'!$E$22)/('BP Financier'!$C$16+'BP Financier'!$C$19+'BP Financier'!$D$16+'BP Financier'!$D$19+'BP Financier'!$E$16+'BP Financier'!$E$19+'BP Financier'!$C$22+'BP Financier'!$D$22+'BP Financier'!$E$22))*$V4320*Z4320/(1-$W4320)","v":{"v":961.3195480337606,"d":"961"}},{"$f":"'BP Financier'!$E$44*(('BP Financier'!$C$22+'BP Financier'!$D$22+'BP Financier'!$E$22)/('BP Financier'!$C$16+'BP Financier'!$C$19+'BP Financier'!$D$16+'BP Financier'!$D$19+'BP Financier'!$E$16+'BP Financier'!$E$19+'BP Financier'!$C$22+'BP Financier'!$D$22+'BP Financier'!$E$22))*$V4320*AA4320/(1-$W4320)","v":{"v":118.76915218579725,"d":"119"}},{"$f":"'BP Financier'!$E$44*(('BP Financier'!$C$22+'BP Financier'!$D$22+'BP Financier'!$E$22)/('BP Financier'!$C$16+'BP Financier'!$C$19+'BP Financier'!$D$16+'BP Financier'!$D$19+'BP Financier'!$E$16+'BP Financier'!$E$19+'BP Financier'!$C$22+'BP Financier'!$D$22+'BP Financier'!$E$22))*$V4320*AB4320/(1-$W4320)","v":{"v":56.846773695766196,"d":"57"}},null,{"v":1.6666666666666668E-3,"d":"0.17%"},{"$f":"Actif!$E$28/100","v":{"v":0.28900000000000003,"d":"28.90%"}},{"$f":"Actif!$E$30/100","v":{"v":0.09050000000000001,"d":"9.05%"}},{"$f":"Actif!$E$31/100","v":{"v":0.0605,"d":"6.05%"}},{"$f":"Actif!$E$32/100","v":{"v":0.47350000000000003,"d":"47.35%"}},{"$f":"Actif!$E$33/100","v":{"v":0.0585,"d":"5.85%"}},{"$f":"Actif!$E$29/100","v":{"v":0.027999999999999997,"d":"2.80%"}}]
[null,"#220",38,2026,"F","A_CAPI",{"v":0.44999999999999996,"d":"0.45"},{"v":0.38999999999999996,"d":"0.39"},0.6,0.6,85,0,{"$f":"ROUND(Primes!$O$10*V4321,2)","v":0.08},0,{"v":1443.5020034889205,"d":"1,444"},{"$f":"'BP Financier'!$E$44*(('BP Financier'!$C$22+'BP Financier'!$D$22+'BP Financier'!$E$22)/('BP Financier'!$C$16+'BP Financier'!$C$19+'BP Financier'!$D$16+'BP Financier'!$D$19+'BP Financier'!$E$16+'BP Financier'!$E$19+'BP Financier'!$C$22+'BP Financier'!$D$22+'BP Financier'!$E$22))*$V4321*X4321/(1-$W4321)","v":{"v":183.7368935523872,"d":"184"}},{"$f":"'BP Financier'!$E$44*(('BP Financier'!$C$22+'BP Financier'!$D$22+'BP Financier'!$E$22)/('BP Financier'!$C$16+'BP Financier'!$C$19+'BP Financier'!$D$16+'BP Financier'!$D$19+'BP Financier'!$E$16+'BP Financier'!$E$19+'BP Financier'!$C$22+'BP Financier'!$D$22+'BP Financier'!$E$22))*$V4321*Y4321/(1-$W4321)","v":{"v":122.82963602120911,"d":"123"}},{"$f":"'BP Financier'!$E$44*(('BP Financier'!$C$22+'BP Financier'!$D$22+'BP Financier'!$E$22)/('BP Financier'!$C$16+'BP Financier'!$C$19+'BP Financier'!$D$16+'BP Financier'!$D$19+'BP Financier'!$E$16+'BP Financier'!$E$19+'BP Financier'!$C$22+'BP Financier'!$D$22+'BP Financier'!$E$22))*$V4321*Z4321/(1-$W4321)","v":{"v":961.3195480337606,"d":"961"}},{"$f":"'BP Financier'!$E$44*(('BP Financier'!$C$22+'BP Financier'!$D$22+'BP Financier'!$E$22)/('BP Financier'!$C$16+'BP Financier'!$C$19+'BP Financier'!$D$16+'BP Financier'!$D$19+'BP Financier'!$E$16+'BP Financier'!$E$19+'BP Financier'!$C$22+'BP Financier'!$D$22+'BP Financier'!$E$22))*$V4321*AA4321/(1-$W4321)","v":{"v":118.76915218579725,"d":"119"}},{"$f":"'BP Financier'!$E$44*(('BP Financier'!$C$22+'BP Financier'!$D$22+'BP Financier'!$E$22)/('BP Financier'!$C$16+'BP Financier'!$C$19+'BP Financier'!$D$16+'BP Financier'!$D$19+'BP Financier'!$E$16+'BP Financier'!$E$19+'BP Financier'!$C$22+'BP Financier'!$D$22+'BP Financier'!$E$22))*$V4321*AB4321/(1-$W4321)","v":{"v":56.846773695766196,"d":"57"}},null,{"v":1.6666666666666668E-3,"d":"0.17%"},{"$f":"Actif!$E$28/100","v":{"v":0.28900000000000003,"d":"28.90%"}},{"$f":"Actif!$E$30/100","v":{"v":0.09050000000000001,"d":"9.05%"}},{"$f":"Actif!$E$31/100","v":{"v":0.0605,"d":"6.05%"}},{"$f":"Actif!$E$32/100","v":{"v":0.47350000000000003,"d":"47.35%"}},{"$f":"Actif!$E$33/100","v":{"v":0.0585,"d":"5.85%"}},{"$f":"Actif!$E$29/100","v":{"v":0.027999999999999997,"d":"2.80%"}}]
[null,"#221",38,2028,"F","A_CAPI",{"v":0.44999999999999996,"d":"0.45"},{"v":0.38999999999999996,"d":"0.39"},0.6,0.6,85,0,{"$f":"ROUND(Primes!$O$10*V4322,2)","v":0.08},0,{"v":1443.5020034889205,"d":"1,444"},{"$f":"'BP Financier'!$E$44*(('BP Financier'!$C$22+'BP Financier'!$D$22+'BP Financier'!$E$22)/('BP Financier'!$C$16+'BP Financier'!$C$19+'BP Financier'!$D$16+'BP Financier'!$D$19+'BP Financier'!$E$16+'BP Financier'!$E$19+'BP Financier'!$C$22+'BP Financier'!$D$22+'BP Financier'!$E$22))*$V4322*X4322/(1-$W4322)","v":{"v":183.7368935523872,"d":"184"}},{"$f":"'BP Financier'!$E$44*(('BP Financier'!$C$22+'BP Financier'!$D$22+'BP Financier'!$E$22)/('BP Financier'!$C$16+'BP Financier'!$C$19+'BP Financier'!$D$16+'BP Financier'!$D$19+'BP Financier'!$E$16+'BP Financier'!$E$19+'BP Financier'!$C$22+'BP Financier'!$D$22+'BP Financier'!$E$22))*$V4322*Y4322/(1-$W4322)","v":{"v":122.82963602120911,"d":"123"}},{"$f":"'BP Financier'!$E$44*(('BP Financier'!$C$22+'BP Financier'!$D$22+'BP Financier'!$E$22)/('BP Financier'!$C$16+'BP Financier'!$C$19+'BP Financier'!$D$16+'BP Financier'!$D$19+'BP Financier'!$E$16+'BP Financier'!$E$19+'BP Financier'!$C$22+'BP Financier'!$D$22+'BP Financier'!$E$22))*$V4322*Z4322/(1-$W4322)","v":{"v":961.3195480337606,"d":"961"}},{"$f":"'BP Financier'!$E$44*(('BP Financier'!$C$22+'BP Financier'!$D$22+'BP Financier'!$E$22)/('BP Financier'!$C$16+'BP Financier'!$C$19+'BP Financier'!$D$16+'BP Financier'!$D$19+'BP Financier'!$E$16+'BP Financier'!$E$19+'BP Financier'!$C$22+'BP Financier'!$D$22+'BP Financier'!$E$22))*$V4322*AA4322/(1-$W4322)","v":{"v":118.76915218579725,"d":"119"}},{"$f":"'BP Financier'!$E$44*(('BP Financier'!$C$22+'BP Financier'!$D$22+'BP Financier'!$E$22)/('BP Financier'!$C$16+'BP Financier'!$C$19+'BP Financier'!$D$16+'BP Financier'!$D$19+'BP Financier'!$E$16+'BP Financier'!$E$19+'BP Financier'!$C$22+'BP Financier'!$D$22+'BP Financier'!$E$22))*$V4322*AB4322/(1-$W4322)","v":{"v":56.846773695766196,"d":"57"}},null,{"v":1.6666666666666668E-3,"d":"0.17%"},{"$f":"Actif!$E$28/100","v":{"v":0.28900000000000003,"d":"28.90%"}},{"$f":"Actif!$E$30/100","v":{"v":0.09050000000000001,"d":"9.05%"}},{"$f":"Actif!$E$31/100","v":{"v":0.0605,"d":"6.05%"}},{"$f":"Actif!$E$32/100","v":{"v":0.47350000000000003,"d":"47.35%"}},{"$f":"Actif!$E$33/100","v":{"v":0.0585,"d":"5.85%"}},{"$f":"Actif!$E$29/100","v":{"v":0.027999999999999997,"d":"2.80%"}}]
[null,"#222",38,2029,"F","A_CAPI",{"v":0.44999999999999996,"d":"0.45"},{"v":0.38999999999999996,"d":"0.39"},0.6,0.6,85,0,{"$f":"ROUND(Primes!$O$10*V4323,2)","v":0.08},0,{"v":1443.5020034889205,"d":"1,444"},{"$f":"'BP Financier'!$E$44*(('BP Financier'!$C$22+'BP Financier'!$D$22+'BP Financier'!$E$22)/('BP Financier'!$C$16+'BP Financier'!$C$19+'BP Financier'!$D$16+'BP Financier'!$D$19+'BP Financier'!$E$16+'BP Financier'!$E$19+'BP Financier'!$C$22+'BP Financier'!$D$22+'BP Financier'!$E$22))*$V4323*X4323/(1-$W4323)","v":{"v":183.7368935523872,"d":"184"}},{"$f":"'BP Financier'!$E$44*(('BP Financier'!$C$22+'BP Financier'!$D$22+'BP Financier'!$E$22)/('BP Financier'!$C$16+'BP Financier'!$C$19+'BP Financier'!$D$16+'BP Financier'!$D$19+'BP Financier'!$E$16+'BP Financier'!$E$19+'BP Financier'!$C$22+'BP Financier'!$D$22+'BP Financier'!$E$22))*$V4323*Y4323/(1-$W4323)","v":{"v":122.82963602120911,"d":"123"}},{"$f":"'BP Financier'!$E$44*(('BP Financier'!$C$22+'BP Financier'!$D$22+'BP Financier'!$E$22)/('BP Financier'!$C$16+'BP Financier'!$C$19+'BP Financier'!$D$16+'BP Financier'!$D$19+'BP Financier'!$E$16+'BP Financier'!$E$19+'BP Financier'!$C$22+'BP Financier'!$D$22+'BP Financier'!$E$22))*$V4323*Z4323/(1-$W4323)","v":{"v":961.3195480337606,"d":"961"}},{"$f":"'BP Financier'!$E$44*(('BP Financier'!$C$22+'BP Financier'!$D$22+'BP Financier'!$E$22)/('BP Financier'!$C$16+'BP Financier'!$C$19+'BP Financier'!$D$16+'BP Financier'!$D$19+'BP Financier'!$E$16+'BP Financier'!$E$19+'BP Financier'!$C$22+'BP Financier'!$D$22+'BP Financier'!$E$22))*$V4323*AA4323/(1-$W4323)","v":{"v":118.76915218579725,"d":"119"}},{"$f":"'BP Financier'!$E$44*(('BP Financier'!$C$22+'BP Financier'!$D$22+'BP Financier'!$E$22)/('BP Financier'!$C$16+'BP Financier'!$C$19+'BP Financier'!$D$16+'BP Financier'!$D$19+'BP Financier'!$E$16+'BP Financier'!$E$19+'BP Financier'!$C$22+'BP Financier'!$D$22+'BP Financier'!$E$22))*$V4323*AB4323/(1-$W4323)","v":{"v":56.846773695766196,"d":"57"}},null,{"v":1.6666666666666668E-3,"d":"0.17%"},{"$f":"Actif!$E$28/100","v":{"v":0.28900000000000003,"d":"28.90%"}},{"$f":"Actif!$E$30/100","v":{"v":0.09050000000000001,"d":"9.05%"}},{"$f":"Actif!$E$31/100","v":{"v":0.0605,"d":"6.05%"}},{"$f":"Actif!$E$32/100","v":{"v":0.47350000000000003,"d":"47.35%"}},{"$f":"Actif!$E$33/100","v":{"v":0.0585,"d":"5.85%"}},{"$f":"Actif!$E$29/100","v":{"v":0.027999999999999997,"d":"2.80%"}}]
[null,"#223",39,2026,"H","A_CAPI",{"v":0.44999999999999996,"d":"0.45"},{"v":0.38999999999999996,"d":"0.39"},0.6,0.6,85,0,{"$f":"ROUND(Primes!$O$10*V4324,2)","v":0.08},0,{"v":1443.5020034889205,"d":"1,444"},{"$f":"'BP Financier'!$E$44*(('BP Financier'!$C$22+'BP Financier'!$D$22+'BP Financier'!$E$22)/('BP Financier'!$C$16+'BP Financier'!$C$19+'BP Financier'!$D$16+'BP Financier'!$D$19+'BP Financier'!$E$16+'BP Financier'!$E$19+'BP Financier'!$C$22+'BP Financier'!$D$22+'BP Financier'!$E$22))*$V4324*X4324/(1-$W4324)","v":{"v":183.7368935523872,"d":"184"}},{"$f":"'BP Financier'!$E$44*(('BP Financier'!$C$22+'BP Financier'!$D$22+'BP Financier'!$E$22)/('BP Financier'!$C$16+'BP Financier'!$C$19+'BP Financier'!$D$16+'BP Financier'!$D$19+'BP Financier'!$E$16+'BP Financier'!$E$19+'BP Financier'!$C$22+'BP Financier'!$D$22+'BP Financier'!$E$22))*$V4324*Y4324/(1-$W4324)","v":{"v":122.82963602120911,"d":"123"}},{"$f":"'BP Financier'!$E$44*(('BP Financier'!$C$22+'BP Financier'!$D$22+'BP Financier'!$E$22)/('BP Financier'!$C$16+'BP Financier'!$C$19+'BP Financier'!$D$16+'BP Financier'!$D$19+'BP Financier'!$E$16+'BP Financier'!$E$19+'BP Financier'!$C$22+'BP Financier'!$D$22+'BP Financier'!$E$22))*$V4324*Z4324/(1-$W4324)","v":{"v":961.3195480337606,"d":"961"}},{"$f":"'BP Financier'!$E$44*(('BP Financier'!$C$22+'BP Financier'!$D$22+'BP Financier'!$E$22)/('BP Financier'!$C$16+'BP Financier'!$C$19+'BP Financier'!$D$16+'BP Financier'!$D$19+'BP Financier'!$E$16+'BP Financier'!$E$19+'BP Financier'!$C$22+'BP Financier'!$D$22+'BP Financier'!$E$22))*$V4324*AA4324/(1-$W4324)","v":{"v":118.76915218579725,"d":"119"}},{"$f":"'BP Financier'!$E$44*(('BP Financier'!$C$22+'BP Financier'!$D$22+'BP Financier'!$E$22)/('BP Financier'!$C$16+'BP Financier'!$C$19+'BP Financier'!$D$16+'BP Financier'!$D$19+'BP Financier'!$E$16+'BP Financier'!$E$19+'BP Financier'!$C$22+'BP Financier'!$D$22+'BP Financier'!$E$22))*$V4324*AB4324/(1-$W4324)","v":{"v":56.846773695766196,"d":"57"}},null,{"v":1.6666666666666668E-3,"d":"0.17%"},{"$f":"Actif!$E$28/100","v":{"v":0.28900000000000003,"d":"28.90%"}},{"$f":"Actif!$E$30/100","v":{"v":0.09050000000000001,"d":"9.05%"}},{"$f":"Actif!$E$31/100","v":{"v":0.0605,"d":"6.05%"}},{"$f":"Actif!$E$32/100","v":{"v":0.47350000000000003,"d":"47.35%"}},{"$f":"Actif!$E$33/100","v":{"v":0.0585,"d":"5.85%"}},{"$f":"Actif!$E$29/100","v":{"v":0.027999999999999997,"d":"2.80%"}}]
[null,"#224",39,2028,"H","A_CAPI",{"v":0.44999999999999996,"d":"0.45"},{"v":0.38999999999999996,"d":"0.39"},0.6,0.6,85,0,{"$f":"ROUND(Primes!$O$10*V4325,2)","v":0.08},0,{"v":1443.5020034889205,"d":"1,444"},{"$f":"'BP Financier'!$E$44*(('BP Financier'!$C$22+'BP Financier'!$D$22+'BP Financier'!$E$22)/('BP Financier'!$C$16+'BP Financier'!$C$19+'BP Financier'!$D$16+'BP Financier'!$D$19+'BP Financier'!$E$16+'BP Financier'!$E$19+'BP Financier'!$C$22+'BP Financier'!$D$22+'BP Financier'!$E$22))*$V4325*X4325/(1-$W4325)","v":{"v":183.7368935523872,"d":"184"}},{"$f":"'BP Financier'!$E$44*(('BP Financier'!$C$22+'BP Financier'!$D$22+'BP Financier'!$E$22)/('BP Financier'!$C$16+'BP Financier'!$C$19+'BP Financier'!$D$16+'BP Financier'!$D$19+'BP Financier'!$E$16+'BP Financier'!$E$19+'BP Financier'!$C$22+'BP Financier'!$D$22+'BP Financier'!$E$22))*$V4325*Y4325/(1-$W4325)","v":{"v":122.82963602120911,"d":"123"}},{"$f":"'BP Financier'!$E$44*(('BP Financier'!$C$22+'BP Financier'!$D$22+'BP Financier'!$E$22)/('BP Financier'!$C$16+'BP Financier'!$C$19+'BP Financier'!$D$16+'BP Financier'!$D$19+'BP Financier'!$E$16+'BP Financier'!$E$19+'BP Financier'!$C$22+'BP Financier'!$D$22+'BP Financier'!$E$22))*$V4325*Z4325/(1-$W4325)","v":{"v":961.3195480337606,"d":"961"}},{"$f":"'BP Financier'!$E$44*(('BP Financier'!$C$22+'BP Financier'!$D$22+'BP Financier'!$E$22)/('BP Financier'!$C$16+'BP Financier'!$C$19+'BP Financier'!$D$16+'BP Financier'!$D$19+'BP Financier'!$E$16+'BP Financier'!$E$19+'BP Financier'!$C$22+'BP Financier'!$D$22+'BP Financier'!$E$22))*$V4325*AA4325/(1-$W4325)","v":{"v":118.76915218579725,"d":"119"}},{"$f":"'BP Financier'!$E$44*(('BP Financier'!$C$22+'BP Financier'!$D$22+'BP Financier'!$E$22)/('BP Financier'!$C$16+'BP Financier'!$C$19+'BP Financier'!$D$16+'BP Financier'!$D$19+'BP Financier'!$E$16+'BP Financier'!$E$19+'BP Financier'!$C$22+'BP Financier'!$D$22+'BP Financier'!$E$22))*$V4325*AB4325/(1-$W4325)","v":{"v":56.846773695766196,"d":"57"}},null,{"v":1.6666666666666668E-3,"d":"0.17%"},{"$f":"Actif!$E$28/100","v":{"v":0.28900000000000003,"d":"28.90%"}},{"$f":"Actif!$E$30/100","v":{"v":0.09050000000000001,"d":"9.05%"}},{"$f":"Actif!$E$31/100","v":{"v":0.0605,"d":"6.05%"}},{"$f":"Actif!$E$32/100","v":{"v":0.47350000000000003,"d":"47.35%"}},{"$f":"Actif!$E$33/100","v":{"v":0.0585,"d":"5.85%"}},{"$f":"Actif!$E$29/100","v":{"v":0.027999999999999997,"d":"2.80%"}}]
[null,"#225",39,2029,"H","A_CAPI",{"v":0.44999999999999996,"d":"0.45"},{"v":0.38999999999999996,"d":"0.39"},0.6,0.6,85,0,{"$f":"ROUND(Primes!$O$10*V4326,2)","v":0.08},0,{"$f":"SUM(P4326:T4326)","v":{"v":1443.5020034889205,"d":"1,444"}},{"$f":"'BP Financier'!$E$44*(('BP Financier'!$C$22+'BP Financier'!$D$22+'BP Financier'!$E$22)/('BP Financier'!$C$16+'BP Financier'!$C$19+'BP Financier'!$D$16+'BP Financier'!$D$19+'BP Financier'!$E$16+'BP Financier'!$E$19+'BP Financier'!$C$22+'BP Financier'!$D$22+'BP Financier'!$E$22))*$V4326*X4326/(1-$W4326)","v":{"v":183.7368935523872,"d":"184"}},{"$f":"'BP Financier'!$E$44*(('BP Financier'!$C$22+'BP Financier'!$D$22+'BP Financier'!$E$22)/('BP Financier'!$C$16+'BP Financier'!$C$19+'BP Financier'!$D$16+'BP Financier'!$D$19+'BP Financier'!$E$16+'BP Financier'!$E$19+'BP Financier'!$C$22+'BP Financier'!$D$22+'BP Financier'!$E$22))*$V4326*Y4326/(1-$W4326)","v":{"v":122.82963602120911,"d":"123"}},{"$f":"'BP Financier'!$E$44*(('BP Financier'!$C$22+'BP Financier'!$D$22+'BP Financier'!$E$22)/('BP Financier'!$C$16+'BP Financier'!$C$19+'BP Financier'!$D$16+'BP Financier'!$D$19+'BP Financier'!$E$16+'BP Financier'!$E$19+'BP Financier'!$C$22+'BP Financier'!$D$22+'BP Financier'!$E$22))*$V4326*Z4326/(1-$W4326)","v":{"v":961.3195480337606,"d":"961"}},{"$f":"'BP Financier'!$E$44*(('BP Financier'!$C$22+'BP Financier'!$D$22+'BP Financier'!$E$22)/('BP Financier'!$C$16+'BP Financier'!$C$19+'BP Financier'!$D$16+'BP Financier'!$D$19+'BP Financier'!$E$16+'BP Financier'!$E$19+'BP Financier'!$C$22+'BP Financier'!$D$22+'BP Financier'!$E$22))*$V4326*AA4326/(1-$W4326)","v":{"v":118.76915218579725,"d":"119"}},{"$f":"'BP Financier'!$E$44*(('BP Financier'!$C$22+'BP Financier'!$D$22+'BP Financier'!$E$22)/('BP Financier'!$C$16+'BP Financier'!$C$19+'BP Financier'!$D$16+'BP Financier'!$D$19+'BP Financier'!$E$16+'BP Financier'!$E$19+'BP Financier'!$C$22+'BP Financier'!$D$22+'BP Financier'!$E$22))*$V4326*AB4326/(1-$W4326)","v":{"v":56.846773695766196,"d":"57"}},null,{"v":1.6666666666666668E-3,"d":"0.17%"},{"$f":"Actif!$E$28/100","v":{"v":0.28900000000000003,"d":"28.90%"}},{"$f":"Actif!$E$30/100","v":{"v":0.09050000000000001,"d":"9.05%"}},{"$f":"Actif!$E$31/100","v":{"v":0.0605,"d":"6.05%"}},{"$f":"Actif!$E$32/100","v":{"v":0.47350000000000003,"d":"47.35%"}},{"$f":"Actif!$E$33/100","v":{"v":0.0585,"d":"5.85%"}},{"$f":"Actif!$E$29/100","v":{"v":0.027999999999999997,"d":"2.80%"}}]
[null,"#226",40,2026,"H","A_CAPI",{"v":0.44999999999999996,"d":"0.45"},{"v":0.38999999999999996,"d":"0.39"},0.6,0.6,85,0,{"$f":"ROUND(Primes!$O$10*V4327,2)","v":0.08},0,{"v":1443.5020034889205,"d":"1,444"},{"$f":"'BP Financier'!$E$44*(('BP Financier'!$C$22+'BP Financier'!$D$22+'BP Financier'!$E$22)/('BP Financier'!$C$16+'BP Financier'!$C$19+'BP Financier'!$D$16+'BP Financier'!$D$19+'BP Financier'!$E$16+'BP Financier'!$E$19+'BP Financier'!$C$22+'BP Financier'!$D$22+'BP Financier'!$E$22))*$V4327*X4327/(1-$W4327)","v":{"v":183.7368935523872,"d":"184"}},{"$f":"'BP Financier'!$E$44*(('BP Financier'!$C$22+'BP Financier'!$D$22+'BP Financier'!$E$22)/('BP Financier'!$C$16+'BP Financier'!$C$19+'BP Financier'!$D$16+'BP Financier'!$D$19+'BP Financier'!$E$16+'BP Financier'!$E$19+'BP Financier'!$C$22+'BP Financier'!$D$22+'BP Financier'!$E$22))*$V4327*Y4327/(1-$W4327)","v":{"v":122.82963602120911,"d":"123"}},{"$f":"'BP Financier'!$E$44*(('BP Financier'!$C$22+'BP Financier'!$D$22+'BP Financier'!$E$22)/('BP Financier'!$C$16+'BP Financier'!$C$19+'BP Financier'!$D$16+'BP Financier'!$D$19+'BP Financier'!$E$16+'BP Financier'!$E$19+'BP Financier'!$C$22+'BP Financier'!$D$22+'BP Financier'!$E$22))*$V4327*Z4327/(1-$W4327)","v":{"v":961.3195480337606,"d":"961"}},{"$f":"'BP Financier'!$E$44*(('BP Financier'!$C$22+'BP Financier'!$D$22+'BP Financier'!$E$22)/('BP Financier'!$C$16+'BP Financier'!$C$19+'BP Financier'!$D$16+'BP Financier'!$D$19+'BP Financier'!$E$16+'BP Financier'!$E$19+'BP Financier'!$C$22+'BP Financier'!$D$22+'BP Financier'!$E$22))*$V4327*AA4327/(1-$W4327)","v":{"v":118.76915218579725,"d":"119"}},{"$f":"'BP Financier'!$E$44*(('BP Financier'!$C$22+'BP Financier'!$D$22+'BP Financier'!$E$22)/('BP Financier'!$C$16+'BP Financier'!$C$19+'BP Financier'!$D$16+'BP Financier'!$D$19+'BP Financier'!$E$16+'BP Financier'!$E$19+'BP Financier'!$C$22+'BP Financier'!$D$22+'BP Financier'!$E$22))*$V4327*AB4327/(1-$W4327)","v":{"v":56.846773695766196,"d":"57"}},null,{"v":1.6666666666666668E-3,"d":"0.17%"},{"$f":"Actif!$E$28/100","v":{"v":0.28900000000000003,"d":"28.90%"}},{"$f":"Actif!$E$30/100","v":{"v":0.09050000000000001,"d":"9.05%"}},{"$f":"Actif!$E$31/100","v":{"v":0.0605,"d":"6.05%"}},{"$f":"Actif!$E$32/100","v":{"v":0.47350000000000003,"d":"47.35%"}},{"$f":"Actif!$E$33/100","v":{"v":0.0585,"d":"5.85%"}},{"$f":"Actif!$E$29/100","v":{"v":0.027999999999999997,"d":"2.80%"}}]
[null,"#227",40,2028,"H","A_CAPI",{"v":0.44999999999999996,"d":"0.45"},{"v":0.38999999999999996,"d":"0.39"},0.6,0.6,85,0,{"$f":"ROUND(Primes!$O$10*V4328,2)","v":0.08},0,{"v":1443.5020034889205,"d":"1,444"},{"$f":"'BP Financier'!$E$44*(('BP Financier'!$C$22+'BP Financier'!$D$22+'BP Financier'!$E$22)/('BP Financier'!$C$16+'BP Financier'!$C$19+'BP Financier'!$D$16+'BP Financier'!$D$19+'BP Financier'!$E$16+'BP Financier'!$E$19+'BP Financier'!$C$22+'BP Financier'!$D$22+'BP Financier'!$E$22))*$V4328*X4328/(1-$W4328)","v":{"v":183.7368935523872,"d":"184"}},{"$f":"'BP Financier'!$E$44*(('BP Financier'!$C$22+'BP Financier'!$D$22+'BP Financier'!$E$22)/('BP Financier'!$C$16+'BP Financier'!$C$19+'BP Financier'!$D$16+'BP Financier'!$D$19+'BP Financier'!$E$16+'BP Financier'!$E$19+'BP Financier'!$C$22+'BP Financier'!$D$22+'BP Financier'!$E$22))*$V4328*Y4328/(1-$W4328)","v":{"v":122.82963602120911,"d":"123"}},{"$f":"'BP Financier'!$E$44*(('BP Financier'!$C$22+'BP Financier'!$D$22+'BP Financier'!$E$22)/('BP Financier'!$C$16+'BP Financier'!$C$19+'BP Financier'!$D$16+'BP Financier'!$D$19+'BP Financier'!$E$16+'BP Financier'!$E$19+'BP Financier'!$C$22+'BP Financier'!$D$22+'BP Financier'!$E$22))*$V4328*Z4328/(1-$W4328)","v":{"v":961.3195480337606,"d":"961"}},{"$f":"'BP Financier'!$E$44*(('BP Financier'!$C$22+'BP Financier'!$D$22+'BP Financier'!$E$22)/('BP Financier'!$C$16+'BP Financier'!$C$19+'BP Financier'!$D$16+'BP Financier'!$D$19+'BP Financier'!$E$16+'BP Financier'!$E$19+'BP Financier'!$C$22+'BP Financier'!$D$22+'BP Financier'!$E$22))*$V4328*AA4328/(1-$W4328)","v":{"v":118.76915218579725,"d":"119"}},{"$f":"'BP Financier'!$E$44*(('BP Financier'!$C$22+'BP Financier'!$D$22+'BP Financier'!$E$22)/('BP Financier'!$C$16+'BP Financier'!$C$19+'BP Financier'!$D$16+'BP Financier'!$D$19+'BP Financier'!$E$16+'BP Financier'!$E$19+'BP Financier'!$C$22+'BP Financier'!$D$22+'BP Financier'!$E$22))*$V4328*AB4328/(1-$W4328)","v":{"v":56.846773695766196,"d":"57"}},null,{"v":1.6666666666666668E-3,"d":"0.17%"},{"$f":"Actif!$E$28/100","v":{"v":0.28900000000000003,"d":"28.90%"}},{"$f":"Actif!$E$30/100","v":{"v":0.09050000000000001,"d":"9.05%"}},{"$f":"Actif!$E$31/100","v":{"v":0.0605,"d":"6.05%"}},{"$f":"Actif!$E$32/100","v":{"v":0.47350000000000003,"d":"47.35%"}},{"$f":"Actif!$E$33/100","v":{"v":0.0585,"d":"5.85%"}},{"$f":"Actif!$E$29/100","v":{"v":0.027999999999999997,"d":"2.80%"}}]
[null,"#228",40,2029,"H","A_CAPI",{"v":0.44999999999999996,"d":"0.45"},{"v":0.38999999999999996,"d":"0.39"},0.6,0.6,85,0,{"$f":"ROUND(Primes!$O$10*V4329,2)","v":0.08},0,{"v":1443.5020034889205,"d":"1,444"},{"$f":"'BP Financier'!$E$44*(('BP Financier'!$C$22+'BP Financier'!$D$22+'BP Financier'!$E$22)/('BP Financier'!$C$16+'BP Financier'!$C$19+'BP Financier'!$D$16+'BP Financier'!$D$19+'BP Financier'!$E$16+'BP Financier'!$E$19+'BP Financier'!$C$22+'BP Financier'!$D$22+'BP Financier'!$E$22))*$V4329*X4329/(1-$W4329)","v":{"v":183.7368935523872,"d":"184"}},{"$f":"'BP Financier'!$E$44*(('BP Financier'!$C$22+'BP Financier'!$D$22+'BP Financier'!$E$22)/('BP Financier'!$C$16+'BP Financier'!$C$19+'BP Financier'!$D$16+'BP Financier'!$D$19+'BP Financier'!$E$16+'BP Financier'!$E$19+'BP Financier'!$C$22+'BP Financier'!$D$22+'BP Financier'!$E$22))*$V4329*Y4329/(1-$W4329)","v":{"v":122.82963602120911,"d":"123"}},{"$f":"'BP Financier'!$E$44*(('BP Financier'!$C$22+'BP Financier'!$D$22+'BP Financier'!$E$22)/('BP Financier'!$C$16+'BP Financier'!$C$19+'BP Financier'!$D$16+'BP Financier'!$D$19+'BP Financier'!$E$16+'BP Financier'!$E$19+'BP Financier'!$C$22+'BP Financier'!$D$22+'BP Financier'!$E$22))*$V4329*Z4329/(1-$W4329)","v":{"v":961.3195480337606,"d":"961"}},{"$f":"'BP Financier'!$E$44*(('BP Financier'!$C$22+'BP Financier'!$D$22+'BP Financier'!$E$22)/('BP Financier'!$C$16+'BP Financier'!$C$19+'BP Financier'!$D$16+'BP Financier'!$D$19+'BP Financier'!$E$16+'BP Financier'!$E$19+'BP Financier'!$C$22+'BP Financier'!$D$22+'BP Financier'!$E$22))*$V4329*AA4329/(1-$W4329)","v":{"v":118.76915218579725,"d":"119"}},{"$f":"'BP Financier'!$E$44*(('BP Financier'!$C$22+'BP Financier'!$D$22+'BP Financier'!$E$22)/('BP Financier'!$C$16+'BP Financier'!$C$19+'BP Financier'!$D$16+'BP Financier'!$D$19+'BP Financier'!$E$16+'BP Financier'!$E$19+'BP Financier'!$C$22+'BP Financier'!$D$22+'BP Financier'!$E$22))*$V4329*AB4329/(1-$W4329)","v":{"v":56.846773695766196,"d":"57"}},null,{"v":1.6666666666666668E-3,"d":"0.17%"},{"$f":"Actif!$E$28/100","v":{"v":0.28900000000000003,"d":"28.90%"}},{"$f":"Actif!$E$30/100","v":{"v":0.09050000000000001,"d":"9.05%"}},{"$f":"Actif!$E$31/100","v":{"v":0.0605,"d":"6.05%"}},{"$f":"Actif!$E$32/100","v":{"v":0.47350000000000003,"d":"47.35%"}},{"$f":"Actif!$E$33/100","v":{"v":0.0585,"d":"5.85%"}},{"$f":"Actif!$E$29/100","v":{"v":0.027999999999999997,"d":"2.80%"}}]
[null,"#229",41,2026,"F","A_CAPI",{"v":0.44999999999999996,"d":"0.45"},{"v":0.38999999999999996,"d":"0.39"},0.6,0.6,85,0,{"$f":"ROUND(Primes!$O$10*V4330,2)","v":0.08},0,{"v":1443.5020034889205,"d":"1,444"},{"$f":"'BP Financier'!$E$44*(('BP Financier'!$C$22+'BP Financier'!$D$22+'BP Financier'!$E$22)/('BP Financier'!$C$16+'BP Financier'!$C$19+'BP Financier'!$D$16+'BP Financier'!$D$19+'BP Financier'!$E$16+'BP Financier'!$E$19+'BP Financier'!$C$22+'BP Financier'!$D$22+'BP Financier'!$E$22))*$V4330*X4330/(1-$W4330)","v":{"v":183.7368935523872,"d":"184"}},{"$f":"'BP Financier'!$E$44*(('BP Financier'!$C$22+'BP Financier'!$D$22+'BP Financier'!$E$22)/('BP Financier'!$C$16+'BP Financier'!$C$19+'BP Financier'!$D$16+'BP Financier'!$D$19+'BP Financier'!$E$16+'BP Financier'!$E$19+'BP Financier'!$C$22+'BP Financier'!$D$22+'BP Financier'!$E$22))*$V4330*Y4330/(1-$W4330)","v":{"v":122.82963602120911,"d":"123"}},{"$f":"'BP Financier'!$E$44*(('BP Financier'!$C$22+'BP Financier'!$D$22+'BP Financier'!$E$22)/('BP Financier'!$C$16+'BP Financier'!$C$19+'BP Financier'!$D$16+'BP Financier'!$D$19+'BP Financier'!$E$16+'BP Financier'!$E$19+'BP Financier'!$C$22+'BP Financier'!$D$22+'BP Financier'!$E$22))*$V4330*Z4330/(1-$W4330)","v":{"v":961.3195480337606,"d":"961"}},{"$f":"'BP Financier'!$E$44*(('BP Financier'!$C$22+'BP Financier'!$D$22+'BP Financier'!$E$22)/('BP Financier'!$C$16+'BP Financier'!$C$19+'BP Financier'!$D$16+'BP Financier'!$D$19+'BP Financier'!$E$16+'BP Financier'!$E$19+'BP Financier'!$C$22+'BP Financier'!$D$22+'BP Financier'!$E$22))*$V4330*AA4330/(1-$W4330)","v":{"v":118.76915218579725,"d":"119"}},{"$f":"'BP Financier'!$E$44*(('BP Financier'!$C$22+'BP Financier'!$D$22+'BP Financier'!$E$22)/('BP Financier'!$C$16+'BP Financier'!$C$19+'BP Financier'!$D$16+'BP Financier'!$D$19+'BP Financier'!$E$16+'BP Financier'!$E$19+'BP Financier'!$C$22+'BP Financier'!$D$22+'BP Financier'!$E$22))*$V4330*AB4330/(1-$W4330)","v":{"v":56.846773695766196,"d":"57"}},null,{"v":1.6666666666666668E-3,"d":"0.17%"},{"$f":"Actif!$E$28/100","v":{"v":0.28900000000000003,"d":"28.90%"}},{"$f":"Actif!$E$30/100","v":{"v":0.09050000000000001,"d":"9.05%"}},{"$f":"Actif!$E$31/100","v":{"v":0.0605,"d":"6.05%"}},{"$f":"Actif!$E$32/100","v":{"v":0.47350000000000003,"d":"47.35%"}},{"$f":"Actif!$E$33/100","v":{"v":0.0585,"d":"5.85%"}},{"$f":"Actif!$E$29/100","v":{"v":0.027999999999999997,"d":"2.80%"}}]
[null,"#230",41,2028,"F","A_CAPI",{"v":0.44999999999999996,"d":"0.45"},{"v":0.38999999999999996,"d":"0.39"},0.6,0.6,85,0,{"$f":"ROUND(Primes!$O$10*V4331,2)","v":0.08},0,{"v":1443.5020034889205,"d":"1,444"},{"$f":"'BP Financier'!$E$44*(('BP Financier'!$C$22+'BP Financier'!$D$22+'BP Financier'!$E$22)/('BP Financier'!$C$16+'BP Financier'!$C$19+'BP Financier'!$D$16+'BP Financier'!$D$19+'BP Financier'!$E$16+'BP Financier'!$E$19+'BP Financier'!$C$22+'BP Financier'!$D$22+'BP Financier'!$E$22))*$V4331*X4331/(1-$W4331)","v":{"v":183.7368935523872,"d":"184"}},{"$f":"'BP Financier'!$E$44*(('BP Financier'!$C$22+'BP Financier'!$D$22+'BP Financier'!$E$22)/('BP Financier'!$C$16+'BP Financier'!$C$19+'BP Financier'!$D$16+'BP Financier'!$D$19+'BP Financier'!$E$16+'BP Financier'!$E$19+'BP Financier'!$C$22+'BP Financier'!$D$22+'BP Financier'!$E$22))*$V4331*Y4331/(1-$W4331)","v":{"v":122.82963602120911,"d":"123"}},{"$f":"'BP Financier'!$E$44*(('BP Financier'!$C$22+'BP Financier'!$D$22+'BP Financier'!$E$22)/('BP Financier'!$C$16+'BP Financier'!$C$19+'BP Financier'!$D$16+'BP Financier'!$D$19+'BP Financier'!$E$16+'BP Financier'!$E$19+'BP Financier'!$C$22+'BP Financier'!$D$22+'BP Financier'!$E$22))*$V4331*Z4331/(1-$W4331)","v":{"v":961.3195480337606,"d":"961"}},{"$f":"'BP Financier'!$E$44*(('BP Financier'!$C$22+'BP Financier'!$D$22+'BP Financier'!$E$22)/('BP Financier'!$C$16+'BP Financier'!$C$19+'BP Financier'!$D$16+'BP Financier'!$D$19+'BP Financier'!$E$16+'BP Financier'!$E$19+'BP Financier'!$C$22+'BP Financier'!$D$22+'BP Financier'!$E$22))*$V4331*AA4331/(1-$W4331)","v":{"v":118.76915218579725,"d":"119"}},{"$f":"'BP Financier'!$E$44*(('BP Financier'!$C$22+'BP Financier'!$D$22+'BP Financier'!$E$22)/('BP Financier'!$C$16+'BP Financier'!$C$19+'BP Financier'!$D$16+'BP Financier'!$D$19+'BP Financier'!$E$16+'BP Financier'!$E$19+'BP Financier'!$C$22+'BP Financier'!$D$22+'BP Financier'!$E$22))*$V4331*AB4331/(1-$W4331)","v":{"v":56.846773695766196,"d":"57"}},null,{"v":1.6666666666666668E-3,"d":"0.17%"},{"$f":"Actif!$E$28/100","v":{"v":0.28900000000000003,"d":"28.90%"}},{"$f":"Actif!$E$30/100","v":{"v":0.09050000000000001,"d":"9.05%"}},{"$f":"Actif!$E$31/100","v":{"v":0.0605,"d":"6.05%"}},{"$f":"Actif!$E$32/100","v":{"v":0.47350000000000003,"d":"47.35%"}},{"$f":"Actif!$E$33/100","v":{"v":0.0585,"d":"5.85%"}},{"$f":"Actif!$E$29/100","v":{"v":0.027999999999999997,"d":"2.80%"}}]
[null,"#231",41,2029,"F","A_CAPI",{"v":0.44999999999999996,"d":"0.45"},{"v":0.38999999999999996,"d":"0.39"},0.6,0.6,85,0,{"$f":"ROUND(Primes!$O$10*V4332,2)","v":0.08},0,{"v":1443.5020034889205,"d":"1,444"},{"$f":"'BP Financier'!$E$44*(('BP Financier'!$C$22+'BP Financier'!$D$22+'BP Financier'!$E$22)/('BP Financier'!$C$16+'BP Financier'!$C$19+'BP Financier'!$D$16+'BP Financier'!$D$19+'BP Financier'!$E$16+'BP Financier'!$E$19+'BP Financier'!$C$22+'BP Financier'!$D$22+'BP Financier'!$E$22))*$V4332*X4332/(1-$W4332)","v":{"v":183.7368935523872,"d":"184"}},{"$f":"'BP Financier'!$E$44*(('BP Financier'!$C$22+'BP Financier'!$D$22+'BP Financier'!$E$22)/('BP Financier'!$C$16+'BP Financier'!$C$19+'BP Financier'!$D$16+'BP Financier'!$D$19+'BP Financier'!$E$16+'BP Financier'!$E$19+'BP Financier'!$C$22+'BP Financier'!$D$22+'BP Financier'!$E$22))*$V4332*Y4332/(1-$W4332)","v":{"v":122.82963602120911,"d":"123"}},{"$f":"'BP Financier'!$E$44*(('BP Financier'!$C$22+'BP Financier'!$D$22+'BP Financier'!$E$22)/('BP Financier'!$C$16+'BP Financier'!$C$19+'BP Financier'!$D$16+'BP Financier'!$D$19+'BP Financier'!$E$16+'BP Financier'!$E$19+'BP Financier'!$C$22+'BP Financier'!$D$22+'BP Financier'!$E$22))*$V4332*Z4332/(1-$W4332)","v":{"v":961.3195480337606,"d":"961"}},{"$f":"'BP Financier'!$E$44*(('BP Financier'!$C$22+'BP Financier'!$D$22+'BP Financier'!$E$22)/('BP Financier'!$C$16+'BP Financier'!$C$19+'BP Financier'!$D$16+'BP Financier'!$D$19+'BP Financier'!$E$16+'BP Financier'!$E$19+'BP Financier'!$C$22+'BP Financier'!$D$22+'BP Financier'!$E$22))*$V4332*AA4332/(1-$W4332)","v":{"v":118.76915218579725,"d":"119"}},{"$f":"'BP Financier'!$E$44*(('BP Financier'!$C$22+'BP Financier'!$D$22+'BP Financier'!$E$22)/('BP Financier'!$C$16+'BP Financier'!$C$19+'BP Financier'!$D$16+'BP Financier'!$D$19+'BP Financier'!$E$16+'BP Financier'!$E$19+'BP Financier'!$C$22+'BP Financier'!$D$22+'BP Financier'!$E$22))*$V4332*AB4332/(1-$W4332)","v":{"v":56.846773695766196,"d":"57"}},null,{"v":1.6666666666666668E-3,"d":"0.17%"},{"$f":"Actif!$E$28/100","v":{"v":0.28900000000000003,"d":"28.90%"}},{"$f":"Actif!$E$30/100","v":{"v":0.09050000000000001,"d":"9.05%"}},{"$f":"Actif!$E$31/100","v":{"v":0.0605,"d":"6.05%"}},{"$f":"Actif!$E$32/100","v":{"v":0.47350000000000003,"d":"47.35%"}},{"$f":"Actif!$E$33/100","v":{"v":0.0585,"d":"5.85%"}},{"$f":"Actif!$E$29/100","v":{"v":0.027999999999999997,"d":"2.80%"}}]
[null,"#232",42,2026,"H","A_CAPI",{"v":0.44999999999999996,"d":"0.45"},{"v":0.38999999999999996,"d":"0.39"},0.6,0.6,85,0,{"$f":"ROUND(Primes!$O$10*V4333,2)","v":0.08},0,{"v":1443.5020034889205,"d":"1,444"},{"$f":"'BP Financier'!$E$44*(('BP Financier'!$C$22+'BP Financier'!$D$22+'BP Financier'!$E$22)/('BP Financier'!$C$16+'BP Financier'!$C$19+'BP Financier'!$D$16+'BP Financier'!$D$19+'BP Financier'!$E$16+'BP Financier'!$E$19+'BP Financier'!$C$22+'BP Financier'!$D$22+'BP Financier'!$E$22))*$V4333*X4333/(1-$W4333)","v":{"v":183.7368935523872,"d":"184"}},{"$f":"'BP Financier'!$E$44*(('BP Financier'!$C$22+'BP Financier'!$D$22+'BP Financier'!$E$22)/('BP Financier'!$C$16+'BP Financier'!$C$19+'BP Financier'!$D$16+'BP Financier'!$D$19+'BP Financier'!$E$16+'BP Financier'!$E$19+'BP Financier'!$C$22+'BP Financier'!$D$22+'BP Financier'!$E$22))*$V4333*Y4333/(1-$W4333)","v":{"v":122.82963602120911,"d":"123"}},{"$f":"'BP Financier'!$E$44*(('BP Financier'!$C$22+'BP Financier'!$D$22+'BP Financier'!$E$22)/('BP Financier'!$C$16+'BP Financier'!$C$19+'BP Financier'!$D$16+'BP Financier'!$D$19+'BP Financier'!$E$16+'BP Financier'!$E$19+'BP Financier'!$C$22+'BP Financier'!$D$22+'BP Financier'!$E$22))*$V4333*Z4333/(1-$W4333)","v":{"v":961.3195480337606,"d":"961"}},{"$f":"'BP Financier'!$E$44*(('BP Financier'!$C$22+'BP Financier'!$D$22+'BP Financier'!$E$22)/('BP Financier'!$C$16+'BP Financier'!$C$19+'BP Financier'!$D$16+'BP Financier'!$D$19+'BP Financier'!$E$16+'BP Financier'!$E$19+'BP Financier'!$C$22+'BP Financier'!$D$22+'BP Financier'!$E$22))*$V4333*AA4333/(1-$W4333)","v":{"v":118.76915218579725,"d":"119"}},{"$f":"'BP Financier'!$E$44*(('BP Financier'!$C$22+'BP Financier'!$D$22+'BP Financier'!$E$22)/('BP Financier'!$C$16+'BP Financier'!$C$19+'BP Financier'!$D$16+'BP Financier'!$D$19+'BP Financier'!$E$16+'BP Financier'!$E$19+'BP Financier'!$C$22+'BP Financier'!$D$22+'BP Financier'!$E$22))*$V4333*AB4333/(1-$W4333)","v":{"v":56.846773695766196,"d":"57"}},null,{"v":1.6666666666666668E-3,"d":"0.17%"},{"$f":"Actif!$E$28/100","v":{"v":0.28900000000000003,"d":"28.90%"}},{"$f":"Actif!$E$30/100","v":{"v":0.09050000000000001,"d":"9.05%"}},{"$f":"Actif!$E$31/100","v":{"v":0.0605,"d":"6.05%"}},{"$f":"Actif!$E$32/100","v":{"v":0.47350000000000003,"d":"47.35%"}},{"$f":"Actif!$E$33/100","v":{"v":0.0585,"d":"5.85%"}},{"$f":"Actif!$E$29/100","v":{"v":0.027999999999999997,"d":"2.80%"}}]
[null,"#233",42,2028,"H","A_CAPI",{"v":0.44999999999999996,"d":"0.45"},{"v":0.38999999999999996,"d":"0.39"},0.6,0.6,85,0,{"$f":"ROUND(Primes!$O$10*V4334,2)","v":0.08},0,{"v":1443.5020034889205,"d":"1,444"},{"$f":"'BP Financier'!$E$44*(('BP Financier'!$C$22+'BP Financier'!$D$22+'BP Financier'!$E$22)/('BP Financier'!$C$16+'BP Financier'!$C$19+'BP Financier'!$D$16+'BP Financier'!$D$19+'BP Financier'!$E$16+'BP Financier'!$E$19+'BP Financier'!$C$22+'BP Financier'!$D$22+'BP Financier'!$E$22))*$V4334*X4334/(1-$W4334)","v":{"v":183.7368935523872,"d":"184"}},{"$f":"'BP Financier'!$E$44*(('BP Financier'!$C$22+'BP Financier'!$D$22+'BP Financier'!$E$22)/('BP Financier'!$C$16+'BP Financier'!$C$19+'BP Financier'!$D$16+'BP Financier'!$D$19+'BP Financier'!$E$16+'BP Financier'!$E$19+'BP Financier'!$C$22+'BP Financier'!$D$22+'BP Financier'!$E$22))*$V4334*Y4334/(1-$W4334)","v":{"v":122.82963602120911,"d":"123"}},{"$f":"'BP Financier'!$E$44*(('BP Financier'!$C$22+'BP Financier'!$D$22+'BP Financier'!$E$22)/('BP Financier'!$C$16+'BP Financier'!$C$19+'BP Financier'!$D$16+'BP Financier'!$D$19+'BP Financier'!$E$16+'BP Financier'!$E$19+'BP Financier'!$C$22+'BP Financier'!$D$22+'BP Financier'!$E$22))*$V4334*Z4334/(1-$W4334)","v":{"v":961.3195480337606,"d":"961"}},{"$f":"'BP Financier'!$E$44*(('BP Financier'!$C$22+'BP Financier'!$D$22+'BP Financier'!$E$22)/('BP Financier'!$C$16+'BP Financier'!$C$19+'BP Financier'!$D$16+'BP Financier'!$D$19+'BP Financier'!$E$16+'BP Financier'!$E$19+'BP Financier'!$C$22+'BP Financier'!$D$22+'BP Financier'!$E$22))*$V4334*AA4334/(1-$W4334)","v":{"v":118.76915218579725,"d":"119"}},{"$f":"'BP Financier'!$E$44*(('BP Financier'!$C$22+'BP Financier'!$D$22+'BP Financier'!$E$22)/('BP Financier'!$C$16+'BP Financier'!$C$19+'BP Financier'!$D$16+'BP Financier'!$D$19+'BP Financier'!$E$16+'BP Financier'!$E$19+'BP Financier'!$C$22+'BP Financier'!$D$22+'BP Financier'!$E$22))*$V4334*AB4334/(1-$W4334)","v":{"v":56.846773695766196,"d":"57"}},null,{"v":1.6666666666666668E-3,"d":"0.17%"},{"$f":"Actif!$E$28/100","v":{"v":0.28900000000000003,"d":"28.90%"}},{"$f":"Actif!$E$30/100","v":{"v":0.09050000000000001,"d":"9.05%"}},{"$f":"Actif!$E$31/100","v":{"v":0.0605,"d":"6.05%"}},{"$f":"Actif!$E$32/100","v":{"v":0.47350000000000003,"d":"47.35%"}},{"$f":"Actif!$E$33/100","v":{"v":0.0585,"d":"5.85%"}},{"$f":"Actif!$E$29/100","v":{"v":0.027999999999999997,"d":"2.80%"}}]
[null,"#234",42,2029,"H","A_CAPI",{"v":0.44999999999999996,"d":"0.45"},{"v":0.38999999999999996,"d":"0.39"},0.6,0.6,85,0,{"$f":"ROUND(Primes!$O$10*V4335,2)","v":0.08},0,{"v":1443.5020034889205,"d":"1,444"},{"$f":"'BP Financier'!$E$44*(('BP Financier'!$C$22+'BP Financier'!$D$22+'BP Financier'!$E$22)/('BP Financier'!$C$16+'BP Financier'!$C$19+'BP Financier'!$D$16+'BP Financier'!$D$19+'BP Financier'!$E$16+'BP Financier'!$E$19+'BP Financier'!$C$22+'BP Financier'!$D$22+'BP Financier'!$E$22))*$V4335*X4335/(1-$W4335)","v":{"v":183.7368935523872,"d":"184"}},{"$f":"'BP Financier'!$E$44*(('BP Financier'!$C$22+'BP Financier'!$D$22+'BP Financier'!$E$22)/('BP Financier'!$C$16+'BP Financier'!$C$19+'BP Financier'!$D$16+'BP Financier'!$D$19+'BP Financier'!$E$16+'BP Financier'!$E$19+'BP Financier'!$C$22+'BP Financier'!$D$22+'BP Financier'!$E$22))*$V4335*Y4335/(1-$W4335)","v":{"v":122.82963602120911,"d":"123"}},{"$f":"'BP Financier'!$E$44*(('BP Financier'!$C$22+'BP Financier'!$D$22+'BP Financier'!$E$22)/('BP Financier'!$C$16+'BP Financier'!$C$19+'BP Financier'!$D$16+'BP Financier'!$D$19+'BP Financier'!$E$16+'BP Financier'!$E$19+'BP Financier'!$C$22+'BP Financier'!$D$22+'BP Financier'!$E$22))*$V4335*Z4335/(1-$W4335)","v":{"v":961.3195480337606,"d":"961"}},{"$f":"'BP Financier'!$E$44*(('BP Financier'!$C$22+'BP Financier'!$D$22+'BP Financier'!$E$22)/('BP Financier'!$C$16+'BP Financier'!$C$19+'BP Financier'!$D$16+'BP Financier'!$D$19+'BP Financier'!$E$16+'BP Financier'!$E$19+'BP Financier'!$C$22+'BP Financier'!$D$22+'BP Financier'!$E$22))*$V4335*AA4335/(1-$W4335)","v":{"v":118.76915218579725,"d":"119"}},{"$f":"'BP Financier'!$E$44*(('BP Financier'!$C$22+'BP Financier'!$D$22+'BP Financier'!$E$22)/('BP Financier'!$C$16+'BP Financier'!$C$19+'BP Financier'!$D$16+'BP Financier'!$D$19+'BP Financier'!$E$16+'BP Financier'!$E$19+'BP Financier'!$C$22+'BP Financier'!$D$22+'BP Financier'!$E$22))*$V4335*AB4335/(1-$W4335)","v":{"v":56.846773695766196,"d":"57"}},null,{"v":1.6666666666666668E-3,"d":"0.17%"},{"$f":"Actif!$E$28/100","v":{"v":0.28900000000000003,"d":"28.90%"}},{"$f":"Actif!$E$30/100","v":{"v":0.09050000000000001,"d":"9.05%"}},{"$f":"Actif!$E$31/100","v":{"v":0.0605,"d":"6.05%"}},{"$f":"Actif!$E$32/100","v":{"v":0.47350000000000003,"d":"47.35%"}},{"$f":"Actif!$E$33/100","v":{"v":0.0585,"d":"5.85%"}},{"$f":"Actif!$E$29/100","v":{"v":0.027999999999999997,"d":"2.80%"}}]
[null,"#235",43,2026,"H","A_CAPI",{"v":0.44999999999999996,"d":"0.45"},{"v":0.38999999999999996,"d":"0.39"},0.6,0.6,85,0,{"$f":"ROUND(Primes!$O$10*V4336,2)","v":0.08},0,{"v":1443.5020034889205,"d":"1,444"},{"$f":"'BP Financier'!$E$44*(('BP Financier'!$C$22+'BP Financier'!$D$22+'BP Financier'!$E$22)/('BP Financier'!$C$16+'BP Financier'!$C$19+'BP Financier'!$D$16+'BP Financier'!$D$19+'BP Financier'!$E$16+'BP Financier'!$E$19+'BP Financier'!$C$22+'BP Financier'!$D$22+'BP Financier'!$E$22))*$V4336*X4336/(1-$W4336)","v":{"v":183.7368935523872,"d":"184"}},{"$f":"'BP Financier'!$E$44*(('BP Financier'!$C$22+'BP Financier'!$D$22+'BP Financier'!$E$22)/('BP Financier'!$C$16+'BP Financier'!$C$19+'BP Financier'!$D$16+'BP Financier'!$D$19+'BP Financier'!$E$16+'BP Financier'!$E$19+'BP Financier'!$C$22+'BP Financier'!$D$22+'BP Financier'!$E$22))*$V4336*Y4336/(1-$W4336)","v":{"v":122.82963602120911,"d":"123"}},{"$f":"'BP Financier'!$E$44*(('BP Financier'!$C$22+'BP Financier'!$D$22+'BP Financier'!$E$22)/('BP Financier'!$C$16+'BP Financier'!$C$19+'BP Financier'!$D$16+'BP Financier'!$D$19+'BP Financier'!$E$16+'BP Financier'!$E$19+'BP Financier'!$C$22+'BP Financier'!$D$22+'BP Financier'!$E$22))*$V4336*Z4336/(1-$W4336)","v":{"v":961.3195480337606,"d":"961"}},{"$f":"'BP Financier'!$E$44*(('BP Financier'!$C$22+'BP Financier'!$D$22+'BP Financier'!$E$22)/('BP Financier'!$C$16+'BP Financier'!$C$19+'BP Financier'!$D$16+'BP Financier'!$D$19+'BP Financier'!$E$16+'BP Financier'!$E$19+'BP Financier'!$C$22+'BP Financier'!$D$22+'BP Financier'!$E$22))*$V4336*AA4336/(1-$W4336)","v":{"v":118.76915218579725,"d":"119"}},{"$f":"'BP Financier'!$E$44*(('BP Financier'!$C$22+'BP Financier'!$D$22+'BP Financier'!$E$22)/('BP Financier'!$C$16+'BP Financier'!$C$19+'BP Financier'!$D$16+'BP Financier'!$D$19+'BP Financier'!$E$16+'BP Financier'!$E$19+'BP Financier'!$C$22+'BP Financier'!$D$22+'BP Financier'!$E$22))*$V4336*AB4336/(1-$W4336)","v":{"v":56.846773695766196,"d":"57"}},null,{"v":1.6666666666666668E-3,"d":"0.17%"},{"$f":"Actif!$E$28/100","v":{"v":0.28900000000000003,"d":"28.90%"}},{"$f":"Actif!$E$30/100","v":{"v":0.09050000000000001,"d":"9.05%"}},{"$f":"Actif!$E$31/100","v":{"v":0.0605,"d":"6.05%"}},{"$f":"Actif!$E$32/100","v":{"v":0.47350000000000003,"d":"47.35%"}},{"$f":"Actif!$E$33/100","v":{"v":0.0585,"d":"5.85%"}},{"$f":"Actif!$E$29/100","v":{"v":0.027999999999999997,"d":"2.80%"}}]
[null,"#236",43,2028,"H","A_CAPI",{"v":0.44999999999999996,"d":"0.45"},{"v":0.38999999999999996,"d":"0.39"},0.6,0.6,85,0,{"$f":"ROUND(Primes!$O$10*V4337,2)","v":0.08},0,{"v":1443.5020034889205,"d":"1,444"},{"$f":"'BP Financier'!$E$44*(('BP Financier'!$C$22+'BP Financier'!$D$22+'BP Financier'!$E$22)/('BP Financier'!$C$16+'BP Financier'!$C$19+'BP Financier'!$D$16+'BP Financier'!$D$19+'BP Financier'!$E$16+'BP Financier'!$E$19+'BP Financier'!$C$22+'BP Financier'!$D$22+'BP Financier'!$E$22))*$V4337*X4337/(1-$W4337)","v":{"v":183.7368935523872,"d":"184"}},{"$f":"'BP Financier'!$E$44*(('BP Financier'!$C$22+'BP Financier'!$D$22+'BP Financier'!$E$22)/('BP Financier'!$C$16+'BP Financier'!$C$19+'BP Financier'!$D$16+'BP Financier'!$D$19+'BP Financier'!$E$16+'BP Financier'!$E$19+'BP Financier'!$C$22+'BP Financier'!$D$22+'BP Financier'!$E$22))*$V4337*Y4337/(1-$W4337)","v":{"v":122.82963602120911,"d":"123"}},{"$f":"'BP Financier'!$E$44*(('BP Financier'!$C$22+'BP Financier'!$D$22+'BP Financier'!$E$22)/('BP Financier'!$C$16+'BP Financier'!$C$19+'BP Financier'!$D$16+'BP Financier'!$D$19+'BP Financier'!$E$16+'BP Financier'!$E$19+'BP Financier'!$C$22+'BP Financier'!$D$22+'BP Financier'!$E$22))*$V4337*Z4337/(1-$W4337)","v":{"v":961.3195480337606,"d":"961"}},{"$f":"'BP Financier'!$E$44*(('BP Financier'!$C$22+'BP Financier'!$D$22+'BP Financier'!$E$22)/('BP Financier'!$C$16+'BP Financier'!$C$19+'BP Financier'!$D$16+'BP Financier'!$D$19+'BP Financier'!$E$16+'BP Financier'!$E$19+'BP Financier'!$C$22+'BP Financier'!$D$22+'BP Financier'!$E$22))*$V4337*AA4337/(1-$W4337)","v":{"v":118.76915218579725,"d":"119"}},{"$f":"'BP Financier'!$E$44*(('BP Financier'!$C$22+'BP Financier'!$D$22+'BP Financier'!$E$22)/('BP Financier'!$C$16+'BP Financier'!$C$19+'BP Financier'!$D$16+'BP Financier'!$D$19+'BP Financier'!$E$16+'BP Financier'!$E$19+'BP Financier'!$C$22+'BP Financier'!$D$22+'BP Financier'!$E$22))*$V4337*AB4337/(1-$W4337)","v":{"v":56.846773695766196,"d":"57"}},null,{"v":1.6666666666666668E-3,"d":"0.17%"},{"$f":"Actif!$E$28/100","v":{"v":0.28900000000000003,"d":"28.90%"}},{"$f":"Actif!$E$30/100","v":{"v":0.09050000000000001,"d":"9.05%"}},{"$f":"Actif!$E$31/100","v":{"v":0.0605,"d":"6.05%"}},{"$f":"Actif!$E$32/100","v":{"v":0.47350000000000003,"d":"47.35%"}},{"$f":"Actif!$E$33/100","v":{"v":0.0585,"d":"5.85%"}},{"$f":"Actif!$E$29/100","v":{"v":0.027999999999999997,"d":"2.80%"}}]
[null,"#237",43,2029,"H","A_CAPI",{"v":0.44999999999999996,"d":"0.45"},{"v":0.38999999999999996,"d":"0.39"},0.6,0.6,85,0,{"$f":"ROUND(Primes!$O$10*V4338,2)","v":0.08},0,{"v":1443.5020034889205,"d":"1,444"},{"$f":"'BP Financier'!$E$44*(('BP Financier'!$C$22+'BP Financier'!$D$22+'BP Financier'!$E$22)/('BP Financier'!$C$16+'BP Financier'!$C$19+'BP Financier'!$D$16+'BP Financier'!$D$19+'BP Financier'!$E$16+'BP Financier'!$E$19+'BP Financier'!$C$22+'BP Financier'!$D$22+'BP Financier'!$E$22))*$V4338*X4338/(1-$W4338)","v":{"v":183.7368935523872,"d":"184"}},{"$f":"'BP Financier'!$E$44*(('BP Financier'!$C$22+'BP Financier'!$D$22+'BP Financier'!$E$22)/('BP Financier'!$C$16+'BP Financier'!$C$19+'BP Financier'!$D$16+'BP Financier'!$D$19+'BP Financier'!$E$16+'BP Financier'!$E$19+'BP Financier'!$C$22+'BP Financier'!$D$22+'BP Financier'!$E$22))*$V4338*Y4338/(1-$W4338)","v":{"v":122.82963602120911,"d":"123"}},{"$f":"'BP Financier'!$E$44*(('BP Financier'!$C$22+'BP Financier'!$D$22+'BP Financier'!$E$22)/('BP Financier'!$C$16+'BP Financier'!$C$19+'BP Financier'!$D$16+'BP Financier'!$D$19+'BP Financier'!$E$16+'BP Financier'!$E$19+'BP Financier'!$C$22+'BP Financier'!$D$22+'BP Financier'!$E$22))*$V4338*Z4338/(1-$W4338)","v":{"v":961.3195480337606,"d":"961"}},{"$f":"'BP Financier'!$E$44*(('BP Financier'!$C$22+'BP Financier'!$D$22+'BP Financier'!$E$22)/('BP Financier'!$C$16+'BP Financier'!$C$19+'BP Financier'!$D$16+'BP Financier'!$D$19+'BP Financier'!$E$16+'BP Financier'!$E$19+'BP Financier'!$C$22+'BP Financier'!$D$22+'BP Financier'!$E$22))*$V4338*AA4338/(1-$W4338)","v":{"v":118.76915218579725,"d":"119"}},{"$f":"'BP Financier'!$E$44*(('BP Financier'!$C$22+'BP Financier'!$D$22+'BP Financier'!$E$22)/('BP Financier'!$C$16+'BP Financier'!$C$19+'BP Financier'!$D$16+'BP Financier'!$D$19+'BP Financier'!$E$16+'BP Financier'!$E$19+'BP Financier'!$C$22+'BP Financier'!$D$22+'BP Financier'!$E$22))*$V4338*AB4338/(1-$W4338)","v":{"v":56.846773695766196,"d":"57"}},null,{"v":1.6666666666666668E-3,"d":"0.17%"},{"$f":"Actif!$E$28/100","v":{"v":0.28900000000000003,"d":"28.90%"}},{"$f":"Actif!$E$30/100","v":{"v":0.09050000000000001,"d":"9.05%"}},{"$f":"Actif!$E$31/100","v":{"v":0.0605,"d":"6.05%"}},{"$f":"Actif!$E$32/100","v":{"v":0.47350000000000003,"d":"47.35%"}},{"$f":"Actif!$E$33/100","v":{"v":0.0585,"d":"5.85%"}},{"$f":"Actif!$E$29/100","v":{"v":0.027999999999999997,"d":"2.80%"}}]
[null,"#238",44,2026,"F","A_CAPI",{"v":0.44999999999999996,"d":"0.45"},{"v":0.38999999999999996,"d":"0.39"},0.6,0.6,85,0,{"$f":"ROUND(Primes!$O$10*V4339,2)","v":0.08},0,{"v":1443.5020034889205,"d":"1,444"},{"$f":"'BP Financier'!$E$44*(('BP Financier'!$C$22+'BP Financier'!$D$22+'BP Financier'!$E$22)/('BP Financier'!$C$16+'BP Financier'!$C$19+'BP Financier'!$D$16+'BP Financier'!$D$19+'BP Financier'!$E$16+'BP Financier'!$E$19+'BP Financier'!$C$22+'BP Financier'!$D$22+'BP Financier'!$E$22))*$V4339*X4339/(1-$W4339)","v":{"v":183.7368935523872,"d":"184"}},{"$f":"'BP Financier'!$E$44*(('BP Financier'!$C$22+'BP Financier'!$D$22+'BP Financier'!$E$22)/('BP Financier'!$C$16+'BP Financier'!$C$19+'BP Financier'!$D$16+'BP Financier'!$D$19+'BP Financier'!$E$16+'BP Financier'!$E$19+'BP Financier'!$C$22+'BP Financier'!$D$22+'BP Financier'!$E$22))*$V4339*Y4339/(1-$W4339)","v":{"v":122.82963602120911,"d":"123"}},{"$f":"'BP Financier'!$E$44*(('BP Financier'!$C$22+'BP Financier'!$D$22+'BP Financier'!$E$22)/('BP Financier'!$C$16+'BP Financier'!$C$19+'BP Financier'!$D$16+'BP Financier'!$D$19+'BP Financier'!$E$16+'BP Financier'!$E$19+'BP Financier'!$C$22+'BP Financier'!$D$22+'BP Financier'!$E$22))*$V4339*Z4339/(1-$W4339)","v":{"v":961.3195480337606,"d":"961"}},{"$f":"'BP Financier'!$E$44*(('BP Financier'!$C$22+'BP Financier'!$D$22+'BP Financier'!$E$22)/('BP Financier'!$C$16+'BP Financier'!$C$19+'BP Financier'!$D$16+'BP Financier'!$D$19+'BP Financier'!$E$16+'BP Financier'!$E$19+'BP Financier'!$C$22+'BP Financier'!$D$22+'BP Financier'!$E$22))*$V4339*AA4339/(1-$W4339)","v":{"v":118.76915218579725,"d":"119"}},{"$f":"'BP Financier'!$E$44*(('BP Financier'!$C$22+'BP Financier'!$D$22+'BP Financier'!$E$22)/('BP Financier'!$C$16+'BP Financier'!$C$19+'BP Financier'!$D$16+'BP Financier'!$D$19+'BP Financier'!$E$16+'BP Financier'!$E$19+'BP Financier'!$C$22+'BP Financier'!$D$22+'BP Financier'!$E$22))*$V4339*AB4339/(1-$W4339)","v":{"v":56.846773695766196,"d":"57"}},null,{"v":1.6666666666666668E-3,"d":"0.17%"},{"$f":"Actif!$E$28/100","v":{"v":0.28900000000000003,"d":"28.90%"}},{"$f":"Actif!$E$30/100","v":{"v":0.09050000000000001,"d":"9.05%"}},{"$f":"Actif!$E$31/100","v":{"v":0.0605,"d":"6.05%"}},{"$f":"Actif!$E$32/100","v":{"v":0.47350000000000003,"d":"47.35%"}},{"$f":"Actif!$E$33/100","v":{"v":0.0585,"d":"5.85%"}},{"$f":"Actif!$E$29/100","v":{"v":0.027999999999999997,"d":"2.80%"}}]
[null,"#239",44,2028,"F","A_CAPI",{"v":0.44999999999999996,"d":"0.45"},{"v":0.38999999999999996,"d":"0.39"},0.6,0.6,85,0,{"$f":"ROUND(Primes!$O$10*V4340,2)","v":0.08},0,{"v":1443.5020034889205,"d":"1,444"},{"$f":"'BP Financier'!$E$44*(('BP Financier'!$C$22+'BP Financier'!$D$22+'BP Financier'!$E$22)/('BP Financier'!$C$16+'BP Financier'!$C$19+'BP Financier'!$D$16+'BP Financier'!$D$19+'BP Financier'!$E$16+'BP Financier'!$E$19+'BP Financier'!$C$22+'BP Financier'!$D$22+'BP Financier'!$E$22))*$V4340*X4340/(1-$W4340)","v":{"v":183.7368935523872,"d":"184"}},{"$f":"'BP Financier'!$E$44*(('BP Financier'!$C$22+'BP Financier'!$D$22+'BP Financier'!$E$22)/('BP Financier'!$C$16+'BP Financier'!$C$19+'BP Financier'!$D$16+'BP Financier'!$D$19+'BP Financier'!$E$16+'BP Financier'!$E$19+'BP Financier'!$C$22+'BP Financier'!$D$22+'BP Financier'!$E$22))*$V4340*Y4340/(1-$W4340)","v":{"v":122.82963602120911,"d":"123"}},{"$f":"'BP Financier'!$E$44*(('BP Financier'!$C$22+'BP Financier'!$D$22+'BP Financier'!$E$22)/('BP Financier'!$C$16+'BP Financier'!$C$19+'BP Financier'!$D$16+'BP Financier'!$D$19+'BP Financier'!$E$16+'BP Financier'!$E$19+'BP Financier'!$C$22+'BP Financier'!$D$22+'BP Financier'!$E$22))*$V4340*Z4340/(1-$W4340)","v":{"v":961.3195480337606,"d":"961"}},{"$f":"'BP Financier'!$E$44*(('BP Financier'!$C$22+'BP Financier'!$D$22+'BP Financier'!$E$22)/('BP Financier'!$C$16+'BP Financier'!$C$19+'BP Financier'!$D$16+'BP Financier'!$D$19+'BP Financier'!$E$16+'BP Financier'!$E$19+'BP Financier'!$C$22+'BP Financier'!$D$22+'BP Financier'!$E$22))*$V4340*AA4340/(1-$W4340)","v":{"v":118.76915218579725,"d":"119"}},{"$f":"'BP Financier'!$E$44*(('BP Financier'!$C$22+'BP Financier'!$D$22+'BP Financier'!$E$22)/('BP Financier'!$C$16+'BP Financier'!$C$19+'BP Financier'!$D$16+'BP Financier'!$D$19+'BP Financier'!$E$16+'BP Financier'!$E$19+'BP Financier'!$C$22+'BP Financier'!$D$22+'BP Financier'!$E$22))*$V4340*AB4340/(1-$W4340)","v":{"v":56.846773695766196,"d":"57"}},null,{"v":1.6666666666666668E-3,"d":"0.17%"},{"$f":"Actif!$E$28/100","v":{"v":0.28900000000000003,"d":"28.90%"}},{"$f":"Actif!$E$30/100","v":{"v":0.09050000000000001,"d":"9.05%"}},{"$f":"Actif!$E$31/100","v":{"v":0.0605,"d":"6.05%"}},{"$f":"Actif!$E$32/100","v":{"v":0.47350000000000003,"d":"47.35%"}},{"$f":"Actif!$E$33/100","v":{"v":0.0585,"d":"5.85%"}},{"$f":"Actif!$E$29/100","v":{"v":0.027999999999999997,"d":"2.80%"}}]
[null,"#240",44,2029,"F","A_CAPI",{"v":0.44999999999999996,"d":"0.45"},{"v":0.38999999999999996,"d":"0.39"},0.6,0.6,85,0,{"$f":"ROUND(Primes!$O$10*V4341,2)","v":0.08},0,{"v":1443.5020034889205,"d":"1,444"},{"$f":"'BP Financier'!$E$44*(('BP Financier'!$C$22+'BP Financier'!$D$22+'BP Financier'!$E$22)/('BP Financier'!$C$16+'BP Financier'!$C$19+'BP Financier'!$D$16+'BP Financier'!$D$19+'BP Financier'!$E$16+'BP Financier'!$E$19+'BP Financier'!$C$22+'BP Financier'!$D$22+'BP Financier'!$E$22))*$V4341*X4341/(1-$W4341)","v":{"v":183.7368935523872,"d":"184"}},{"$f":"'BP Financier'!$E$44*(('BP Financier'!$C$22+'BP Financier'!$D$22+'BP Financier'!$E$22)/('BP Financier'!$C$16+'BP Financier'!$C$19+'BP Financier'!$D$16+'BP Financier'!$D$19+'BP Financier'!$E$16+'BP Financier'!$E$19+'BP Financier'!$C$22+'BP Financier'!$D$22+'BP Financier'!$E$22))*$V4341*Y4341/(1-$W4341)","v":{"v":122.82963602120911,"d":"123"}},{"$f":"'BP Financier'!$E$44*(('BP Financier'!$C$22+'BP Financier'!$D$22+'BP Financier'!$E$22)/('BP Financier'!$C$16+'BP Financier'!$C$19+'BP Financier'!$D$16+'BP Financier'!$D$19+'BP Financier'!$E$16+'BP Financier'!$E$19+'BP Financier'!$C$22+'BP Financier'!$D$22+'BP Financier'!$E$22))*$V4341*Z4341/(1-$W4341)","v":{"v":961.3195480337606,"d":"961"}},{"$f":"'BP Financier'!$E$44*(('BP Financier'!$C$22+'BP Financier'!$D$22+'BP Financier'!$E$22)/('BP Financier'!$C$16+'BP Financier'!$C$19+'BP Financier'!$D$16+'BP Financier'!$D$19+'BP Financier'!$E$16+'BP Financier'!$E$19+'BP Financier'!$C$22+'BP Financier'!$D$22+'BP Financier'!$E$22))*$V4341*AA4341/(1-$W4341)","v":{"v":118.76915218579725,"d":"119"}},{"$f":"'BP Financier'!$E$44*(('BP Financier'!$C$22+'BP Financier'!$D$22+'BP Financier'!$E$22)/('BP Financier'!$C$16+'BP Financier'!$C$19+'BP Financier'!$D$16+'BP Financier'!$D$19+'BP Financier'!$E$16+'BP Financier'!$E$19+'BP Financier'!$C$22+'BP Financier'!$D$22+'BP Financier'!$E$22))*$V4341*AB4341/(1-$W4341)","v":{"v":56.846773695766196,"d":"57"}},null,{"v":1.6666666666666668E-3,"d":"0.17%"},{"$f":"Actif!$E$28/100","v":{"v":0.28900000000000003,"d":"28.90%"}},{"$f":"Actif!$E$30/100","v":{"v":0.09050000000000001,"d":"9.05%"}},{"$f":"Actif!$E$31/100","v":{"v":0.0605,"d":"6.05%"}},{"$f":"Actif!$E$32/100","v":{"v":0.47350000000000003,"d":"47.35%"}},{"$f":"Actif!$E$33/100","v":{"v":0.0585,"d":"5.85%"}},{"$f":"Actif!$E$29/100","v":{"v":0.027999999999999997,"d":"2.80%"}}]
[null,"#241",45,2026,"H","A_CAPI",{"v":0.44999999999999996,"d":"0.45"},{"v":0.38999999999999996,"d":"0.39"},0.6,0.6,85,0,{"$f":"ROUND(Primes!$O$10*V4342,2)","v":0.08},0,{"v":1443.5020034889205,"d":"1,444"},{"$f":"'BP Financier'!$E$44*(('BP Financier'!$C$22+'BP Financier'!$D$22+'BP Financier'!$E$22)/('BP Financier'!$C$16+'BP Financier'!$C$19+'BP Financier'!$D$16+'BP Financier'!$D$19+'BP Financier'!$E$16+'BP Financier'!$E$19+'BP Financier'!$C$22+'BP Financier'!$D$22+'BP Financier'!$E$22))*$V4342*X4342/(1-$W4342)","v":{"v":183.7368935523872,"d":"184"}},{"$f":"'BP Financier'!$E$44*(('BP Financier'!$C$22+'BP Financier'!$D$22+'BP Financier'!$E$22)/('BP Financier'!$C$16+'BP Financier'!$C$19+'BP Financier'!$D$16+'BP Financier'!$D$19+'BP Financier'!$E$16+'BP Financier'!$E$19+'BP Financier'!$C$22+'BP Financier'!$D$22+'BP Financier'!$E$22))*$V4342*Y4342/(1-$W4342)","v":{"v":122.82963602120911,"d":"123"}},{"$f":"'BP Financier'!$E$44*(('BP Financier'!$C$22+'BP Financier'!$D$22+'BP Financier'!$E$22)/('BP Financier'!$C$16+'BP Financier'!$C$19+'BP Financier'!$D$16+'BP Financier'!$D$19+'BP Financier'!$E$16+'BP Financier'!$E$19+'BP Financier'!$C$22+'BP Financier'!$D$22+'BP Financier'!$E$22))*$V4342*Z4342/(1-$W4342)","v":{"v":961.3195480337606,"d":"961"}},{"$f":"'BP Financier'!$E$44*(('BP Financier'!$C$22+'BP Financier'!$D$22+'BP Financier'!$E$22)/('BP Financier'!$C$16+'BP Financier'!$C$19+'BP Financier'!$D$16+'BP Financier'!$D$19+'BP Financier'!$E$16+'BP Financier'!$E$19+'BP Financier'!$C$22+'BP Financier'!$D$22+'BP Financier'!$E$22))*$V4342*AA4342/(1-$W4342)","v":{"v":118.76915218579725,"d":"119"}},{"$f":"'BP Financier'!$E$44*(('BP Financier'!$C$22+'BP Financier'!$D$22+'BP Financier'!$E$22)/('BP Financier'!$C$16+'BP Financier'!$C$19+'BP Financier'!$D$16+'BP Financier'!$D$19+'BP Financier'!$E$16+'BP Financier'!$E$19+'BP Financier'!$C$22+'BP Financier'!$D$22+'BP Financier'!$E$22))*$V4342*AB4342/(1-$W4342)","v":{"v":56.846773695766196,"d":"57"}},null,{"v":1.6666666666666668E-3,"d":"0.17%"},{"$f":"Actif!$E$28/100","v":{"v":0.28900000000000003,"d":"28.90%"}},{"$f":"Actif!$E$30/100","v":{"v":0.09050000000000001,"d":"9.05%"}},{"$f":"Actif!$E$31/100","v":{"v":0.0605,"d":"6.05%"}},{"$f":"Actif!$E$32/100","v":{"v":0.47350000000000003,"d":"47.35%"}},{"$f":"Actif!$E$33/100","v":{"v":0.0585,"d":"5.85%"}},{"$f":"Actif!$E$29/100","v":{"v":0.027999999999999997,"d":"2.80%"}}]
[null,"#242",45,2028,"H","A_CAPI",{"v":0.44999999999999996,"d":"0.45"},{"v":0.38999999999999996,"d":"0.39"},0.6,0.6,85,0,{"$f":"ROUND(Primes!$O$10*V4343,2)","v":0.08},0,{"v":1443.5020034889205,"d":"1,444"},{"$f":"'BP Financier'!$E$44*(('BP Financier'!$C$22+'BP Financier'!$D$22+'BP Financier'!$E$22)/('BP Financier'!$C$16+'BP Financier'!$C$19+'BP Financier'!$D$16+'BP Financier'!$D$19+'BP Financier'!$E$16+'BP Financier'!$E$19+'BP Financier'!$C$22+'BP Financier'!$D$22+'BP Financier'!$E$22))*$V4343*X4343/(1-$W4343)","v":{"v":183.7368935523872,"d":"184"}},{"$f":"'BP Financier'!$E$44*(('BP Financier'!$C$22+'BP Financier'!$D$22+'BP Financier'!$E$22)/('BP Financier'!$C$16+'BP Financier'!$C$19+'BP Financier'!$D$16+'BP Financier'!$D$19+'BP Financier'!$E$16+'BP Financier'!$E$19+'BP Financier'!$C$22+'BP Financier'!$D$22+'BP Financier'!$E$22))*$V4343*Y4343/(1-$W4343)","v":{"v":122.82963602120911,"d":"123"}},{"$f":"'BP Financier'!$E$44*(('BP Financier'!$C$22+'BP Financier'!$D$22+'BP Financier'!$E$22)/('BP Financier'!$C$16+'BP Financier'!$C$19+'BP Financier'!$D$16+'BP Financier'!$D$19+'BP Financier'!$E$16+'BP Financier'!$E$19+'BP Financier'!$C$22+'BP Financier'!$D$22+'BP Financier'!$E$22))*$V4343*Z4343/(1-$W4343)","v":{"v":961.3195480337606,"d":"961"}},{"$f":"'BP Financier'!$E$44*(('BP Financier'!$C$22+'BP Financier'!$D$22+'BP Financier'!$E$22)/('BP Financier'!$C$16+'BP Financier'!$C$19+'BP Financier'!$D$16+'BP Financier'!$D$19+'BP Financier'!$E$16+'BP Financier'!$E$19+'BP Financier'!$C$22+'BP Financier'!$D$22+'BP Financier'!$E$22))*$V4343*AA4343/(1-$W4343)","v":{"v":118.76915218579725,"d":"119"}},{"$f":"'BP Financier'!$E$44*(('BP Financier'!$C$22+'BP Financier'!$D$22+'BP Financier'!$E$22)/('BP Financier'!$C$16+'BP Financier'!$C$19+'BP Financier'!$D$16+'BP Financier'!$D$19+'BP Financier'!$E$16+'BP Financier'!$E$19+'BP Financier'!$C$22+'BP Financier'!$D$22+'BP Financier'!$E$22))*$V4343*AB4343/(1-$W4343)","v":{"v":56.846773695766196,"d":"57"}},null,{"v":1.6666666666666668E-3,"d":"0.17%"},{"$f":"Actif!$E$28/100","v":{"v":0.28900000000000003,"d":"28.90%"}},{"$f":"Actif!$E$30/100","v":{"v":0.09050000000000001,"d":"9.05%"}},{"$f":"Actif!$E$31/100","v":{"v":0.0605,"d":"6.05%"}},{"$f":"Actif!$E$32/100","v":{"v":0.47350000000000003,"d":"47.35%"}},{"$f":"Actif!$E$33/100","v":{"v":0.0585,"d":"5.85%"}},{"$f":"Actif!$E$29/100","v":{"v":0.027999999999999997,"d":"2.80%"}}]
[null,"#243",45,2029,"H","A_CAPI",{"v":0.44999999999999996,"d":"0.45"},{"v":0.38999999999999996,"d":"0.39"},0.6,0.6,85,0,{"$f":"ROUND(Primes!$O$10*V4344,2)","v":0.08},0,{"v":1443.5020034889205,"d":"1,444"},{"$f":"'BP Financier'!$E$44*(('BP Financier'!$C$22+'BP Financier'!$D$22+'BP Financier'!$E$22)/('BP Financier'!$C$16+'BP Financier'!$C$19+'BP Financier'!$D$16+'BP Financier'!$D$19+'BP Financier'!$E$16+'BP Financier'!$E$19+'BP Financier'!$C$22+'BP Financier'!$D$22+'BP Financier'!$E$22))*$V4344*X4344/(1-$W4344)","v":{"v":183.7368935523872,"d":"184"}},{"$f":"'BP Financier'!$E$44*(('BP Financier'!$C$22+'BP Financier'!$D$22+'BP Financier'!$E$22)/('BP Financier'!$C$16+'BP Financier'!$C$19+'BP Financier'!$D$16+'BP Financier'!$D$19+'BP Financier'!$E$16+'BP Financier'!$E$19+'BP Financier'!$C$22+'BP Financier'!$D$22+'BP Financier'!$E$22))*$V4344*Y4344/(1-$W4344)","v":{"v":122.82963602120911,"d":"123"}},{"$f":"'BP Financier'!$E$44*(('BP Financier'!$C$22+'BP Financier'!$D$22+'BP Financier'!$E$22)/('BP Financier'!$C$16+'BP Financier'!$C$19+'BP Financier'!$D$16+'BP Financier'!$D$19+'BP Financier'!$E$16+'BP Financier'!$E$19+'BP Financier'!$C$22+'BP Financier'!$D$22+'BP Financier'!$E$22))*$V4344*Z4344/(1-$W4344)","v":{"v":961.3195480337606,"d":"961"}},{"$f":"'BP Financier'!$E$44*(('BP Financier'!$C$22+'BP Financier'!$D$22+'BP Financier'!$E$22)/('BP Financier'!$C$16+'BP Financier'!$C$19+'BP Financier'!$D$16+'BP Financier'!$D$19+'BP Financier'!$E$16+'BP Financier'!$E$19+'BP Financier'!$C$22+'BP Financier'!$D$22+'BP Financier'!$E$22))*$V4344*AA4344/(1-$W4344)","v":{"v":118.76915218579725,"d":"119"}},{"$f":"'BP Financier'!$E$44*(('BP Financier'!$C$22+'BP Financier'!$D$22+'BP Financier'!$E$22)/('BP Financier'!$C$16+'BP Financier'!$C$19+'BP Financier'!$D$16+'BP Financier'!$D$19+'BP Financier'!$E$16+'BP Financier'!$E$19+'BP Financier'!$C$22+'BP Financier'!$D$22+'BP Financier'!$E$22))*$V4344*AB4344/(1-$W4344)","v":{"v":56.846773695766196,"d":"57"}},null,{"v":1.6666666666666668E-3,"d":"0.17%"},{"$f":"Actif!$E$28/100","v":{"v":0.28900000000000003,"d":"28.90%"}},{"$f":"Actif!$E$30/100","v":{"v":0.09050000000000001,"d":"9.05%"}},{"$f":"Actif!$E$31/100","v":{"v":0.0605,"d":"6.05%"}},{"$f":"Actif!$E$32/100","v":{"v":0.47350000000000003,"d":"47.35%"}},{"$f":"Actif!$E$33/100","v":{"v":0.0585,"d":"5.85%"}},{"$f":"Actif!$E$29/100","v":{"v":0.027999999999999997,"d":"2.80%"}}]
[null,"#244",46,2026,"H","A_CAPI",{"v":0.44999999999999996,"d":"0.45"},{"v":0.38999999999999996,"d":"0.39"},0.6,0.6,85,0,{"$f":"ROUND(Primes!$O$10*V4345,2)","v":0.08},0,{"v":1443.5020034889205,"d":"1,444"},{"$f":"'BP Financier'!$E$44*(('BP Financier'!$C$22+'BP Financier'!$D$22+'BP Financier'!$E$22)/('BP Financier'!$C$16+'BP Financier'!$C$19+'BP Financier'!$D$16+'BP Financier'!$D$19+'BP Financier'!$E$16+'BP Financier'!$E$19+'BP Financier'!$C$22+'BP Financier'!$D$22+'BP Financier'!$E$22))*$V4345*X4345/(1-$W4345)","v":{"v":183.7368935523872,"d":"184"}},{"$f":"'BP Financier'!$E$44*(('BP Financier'!$C$22+'BP Financier'!$D$22+'BP Financier'!$E$22)/('BP Financier'!$C$16+'BP Financier'!$C$19+'BP Financier'!$D$16+'BP Financier'!$D$19+'BP Financier'!$E$16+'BP Financier'!$E$19+'BP Financier'!$C$22+'BP Financier'!$D$22+'BP Financier'!$E$22))*$V4345*Y4345/(1-$W4345)","v":{"v":122.82963602120911,"d":"123"}},{"$f":"'BP Financier'!$E$44*(('BP Financier'!$C$22+'BP Financier'!$D$22+'BP Financier'!$E$22)/('BP Financier'!$C$16+'BP Financier'!$C$19+'BP Financier'!$D$16+'BP Financier'!$D$19+'BP Financier'!$E$16+'BP Financier'!$E$19+'BP Financier'!$C$22+'BP Financier'!$D$22+'BP Financier'!$E$22))*$V4345*Z4345/(1-$W4345)","v":{"v":961.3195480337606,"d":"961"}},{"$f":"'BP Financier'!$E$44*(('BP Financier'!$C$22+'BP Financier'!$D$22+'BP Financier'!$E$22)/('BP Financier'!$C$16+'BP Financier'!$C$19+'BP Financier'!$D$16+'BP Financier'!$D$19+'BP Financier'!$E$16+'BP Financier'!$E$19+'BP Financier'!$C$22+'BP Financier'!$D$22+'BP Financier'!$E$22))*$V4345*AA4345/(1-$W4345)","v":{"v":118.76915218579725,"d":"119"}},{"$f":"'BP Financier'!$E$44*(('BP Financier'!$C$22+'BP Financier'!$D$22+'BP Financier'!$E$22)/('BP Financier'!$C$16+'BP Financier'!$C$19+'BP Financier'!$D$16+'BP Financier'!$D$19+'BP Financier'!$E$16+'BP Financier'!$E$19+'BP Financier'!$C$22+'BP Financier'!$D$22+'BP Financier'!$E$22))*$V4345*AB4345/(1-$W4345)","v":{"v":56.846773695766196,"d":"57"}},null,{"v":1.6666666666666668E-3,"d":"0.17%"},{"$f":"Actif!$E$28/100","v":{"v":0.28900000000000003,"d":"28.90%"}},{"$f":"Actif!$E$30/100","v":{"v":0.09050000000000001,"d":"9.05%"}},{"$f":"Actif!$E$31/100","v":{"v":0.0605,"d":"6.05%"}},{"$f":"Actif!$E$32/100","v":{"v":0.47350000000000003,"d":"47.35%"}},{"$f":"Actif!$E$33/100","v":{"v":0.0585,"d":"5.85%"}},{"$f":"Actif!$E$29/100","v":{"v":0.027999999999999997,"d":"2.80%"}}]
[null,"#245",46,2028,"H","A_CAPI",{"v":0.44999999999999996,"d":"0.45"},{"v":0.38999999999999996,"d":"0.39"},0.6,0.6,85,0,{"$f":"ROUND(Primes!$O$10*V4346,2)","v":0.08},0,{"v":1443.5020034889205,"d":"1,444"},{"$f":"'BP Financier'!$E$44*(('BP Financier'!$C$22+'BP Financier'!$D$22+'BP Financier'!$E$22)/('BP Financier'!$C$16+'BP Financier'!$C$19+'BP Financier'!$D$16+'BP Financier'!$D$19+'BP Financier'!$E$16+'BP Financier'!$E$19+'BP Financier'!$C$22+'BP Financier'!$D$22+'BP Financier'!$E$22))*$V4346*X4346/(1-$W4346)","v":{"v":183.7368935523872,"d":"184"}},{"$f":"'BP Financier'!$E$44*(('BP Financier'!$C$22+'BP Financier'!$D$22+'BP Financier'!$E$22)/('BP Financier'!$C$16+'BP Financier'!$C$19+'BP Financier'!$D$16+'BP Financier'!$D$19+'BP Financier'!$E$16+'BP Financier'!$E$19+'BP Financier'!$C$22+'BP Financier'!$D$22+'BP Financier'!$E$22))*$V4346*Y4346/(1-$W4346)","v":{"v":122.82963602120911,"d":"123"}},{"$f":"'BP Financier'!$E$44*(('BP Financier'!$C$22+'BP Financier'!$D$22+'BP Financier'!$E$22)/('BP Financier'!$C$16+'BP Financier'!$C$19+'BP Financier'!$D$16+'BP Financier'!$D$19+'BP Financier'!$E$16+'BP Financier'!$E$19+'BP Financier'!$C$22+'BP Financier'!$D$22+'BP Financier'!$E$22))*$V4346*Z4346/(1-$W4346)","v":{"v":961.3195480337606,"d":"961"}},{"$f":"'BP Financier'!$E$44*(('BP Financier'!$C$22+'BP Financier'!$D$22+'BP Financier'!$E$22)/('BP Financier'!$C$16+'BP Financier'!$C$19+'BP Financier'!$D$16+'BP Financier'!$D$19+'BP Financier'!$E$16+'BP Financier'!$E$19+'BP Financier'!$C$22+'BP Financier'!$D$22+'BP Financier'!$E$22))*$V4346*AA4346/(1-$W4346)","v":{"v":118.76915218579725,"d":"119"}},{"$f":"'BP Financier'!$E$44*(('BP Financier'!$C$22+'BP Financier'!$D$22+'BP Financier'!$E$22)/('BP Financier'!$C$16+'BP Financier'!$C$19+'BP Financier'!$D$16+'BP Financier'!$D$19+'BP Financier'!$E$16+'BP Financier'!$E$19+'BP Financier'!$C$22+'BP Financier'!$D$22+'BP Financier'!$E$22))*$V4346*AB4346/(1-$W4346)","v":{"v":56.846773695766196,"d":"57"}},null,{"v":1.6666666666666668E-3,"d":"0.17%"},{"$f":"Actif!$E$28/100","v":{"v":0.28900000000000003,"d":"28.90%"}},{"$f":"Actif!$E$30/100","v":{"v":0.09050000000000001,"d":"9.05%"}},{"$f":"Actif!$E$31/100","v":{"v":0.0605,"d":"6.05%"}},{"$f":"Actif!$E$32/100","v":{"v":0.47350000000000003,"d":"47.35%"}},{"$f":"Actif!$E$33/100","v":{"v":0.0585,"d":"5.85%"}},{"$f":"Actif!$E$29/100","v":{"v":0.027999999999999997,"d":"2.80%"}}]
[null,"#246",46,2029,"H","A_CAPI",{"v":0.44999999999999996,"d":"0.45"},{"v":0.38999999999999996,"d":"0.39"},0.6,0.6,85,0,{"$f":"ROUND(Primes!$O$10*V4347,2)","v":0.08},0,{"v":1443.5020034889205,"d":"1,444"},{"$f":"'BP Financier'!$E$44*(('BP Financier'!$C$22+'BP Financier'!$D$22+'BP Financier'!$E$22)/('BP Financier'!$C$16+'BP Financier'!$C$19+'BP Financier'!$D$16+'BP Financier'!$D$19+'BP Financier'!$E$16+'BP Financier'!$E$19+'BP Financier'!$C$22+'BP Financier'!$D$22+'BP Financier'!$E$22))*$V4347*X4347/(1-$W4347)","v":{"v":183.7368935523872,"d":"184"}},{"$f":"'BP Financier'!$E$44*(('BP Financier'!$C$22+'BP Financier'!$D$22+'BP Financier'!$E$22)/('BP Financier'!$C$16+'BP Financier'!$C$19+'BP Financier'!$D$16+'BP Financier'!$D$19+'BP Financier'!$E$16+'BP Financier'!$E$19+'BP Financier'!$C$22+'BP Financier'!$D$22+'BP Financier'!$E$22))*$V4347*Y4347/(1-$W4347)","v":{"v":122.82963602120911,"d":"123"}},{"$f":"'BP Financier'!$E$44*(('BP Financier'!$C$22+'BP Financier'!$D$22+'BP Financier'!$E$22)/('BP Financier'!$C$16+'BP Financier'!$C$19+'BP Financier'!$D$16+'BP Financier'!$D$19+'BP Financier'!$E$16+'BP Financier'!$E$19+'BP Financier'!$C$22+'BP Financier'!$D$22+'BP Financier'!$E$22))*$V4347*Z4347/(1-$W4347)","v":{"v":961.3195480337606,"d":"961"}},{"$f":"'BP Financier'!$E$44*(('BP Financier'!$C$22+'BP Financier'!$D$22+'BP Financier'!$E$22)/('BP Financier'!$C$16+'BP Financier'!$C$19+'BP Financier'!$D$16+'BP Financier'!$D$19+'BP Financier'!$E$16+'BP Financier'!$E$19+'BP Financier'!$C$22+'BP Financier'!$D$22+'BP Financier'!$E$22))*$V4347*AA4347/(1-$W4347)","v":{"v":118.76915218579725,"d":"119"}},{"$f":"'BP Financier'!$E$44*(('BP Financier'!$C$22+'BP Financier'!$D$22+'BP Financier'!$E$22)/('BP Financier'!$C$16+'BP Financier'!$C$19+'BP Financier'!$D$16+'BP Financier'!$D$19+'BP Financier'!$E$16+'BP Financier'!$E$19+'BP Financier'!$C$22+'BP Financier'!$D$22+'BP Financier'!$E$22))*$V4347*AB4347/(1-$W4347)","v":{"v":56.846773695766196,"d":"57"}},null,{"v":1.6666666666666668E-3,"d":"0.17%"},{"$f":"Actif!$E$28/100","v":{"v":0.28900000000000003,"d":"28.90%"}},{"$f":"Actif!$E$30/100","v":{"v":0.09050000000000001,"d":"9.05%"}},{"$f":"Actif!$E$31/100","v":{"v":0.0605,"d":"6.05%"}},{"$f":"Actif!$E$32/100","v":{"v":0.47350000000000003,"d":"47.35%"}},{"$f":"Actif!$E$33/100","v":{"v":0.0585,"d":"5.85%"}},{"$f":"Actif!$E$29/100","v":{"v":0.027999999999999997,"d":"2.80%"}}]
[null,"#247",47,2026,"F","A_CAPI",{"v":0.44999999999999996,"d":"0.45"},{"v":0.38999999999999996,"d":"0.39"},0.6,0.6,85,0,{"$f":"ROUND(Primes!$O$10*V4348,2)","v":0.08},0,{"v":1443.5020034889205,"d":"1,444"},{"$f":"'BP Financier'!$E$44*(('BP Financier'!$C$22+'BP Financier'!$D$22+'BP Financier'!$E$22)/('BP Financier'!$C$16+'BP Financier'!$C$19+'BP Financier'!$D$16+'BP Financier'!$D$19+'BP Financier'!$E$16+'BP Financier'!$E$19+'BP Financier'!$C$22+'BP Financier'!$D$22+'BP Financier'!$E$22))*$V4348*X4348/(1-$W4348)","v":{"v":183.7368935523872,"d":"184"}},{"$f":"'BP Financier'!$E$44*(('BP Financier'!$C$22+'BP Financier'!$D$22+'BP Financier'!$E$22)/('BP Financier'!$C$16+'BP Financier'!$C$19+'BP Financier'!$D$16+'BP Financier'!$D$19+'BP Financier'!$E$16+'BP Financier'!$E$19+'BP Financier'!$C$22+'BP Financier'!$D$22+'BP Financier'!$E$22))*$V4348*Y4348/(1-$W4348)","v":{"v":122.82963602120911,"d":"123"}},{"$f":"'BP Financier'!$E$44*(('BP Financier'!$C$22+'BP Financier'!$D$22+'BP Financier'!$E$22)/('BP Financier'!$C$16+'BP Financier'!$C$19+'BP Financier'!$D$16+'BP Financier'!$D$19+'BP Financier'!$E$16+'BP Financier'!$E$19+'BP Financier'!$C$22+'BP Financier'!$D$22+'BP Financier'!$E$22))*$V4348*Z4348/(1-$W4348)","v":{"v":961.3195480337606,"d":"961"}},{"$f":"'BP Financier'!$E$44*(('BP Financier'!$C$22+'BP Financier'!$D$22+'BP Financier'!$E$22)/('BP Financier'!$C$16+'BP Financier'!$C$19+'BP Financier'!$D$16+'BP Financier'!$D$19+'BP Financier'!$E$16+'BP Financier'!$E$19+'BP Financier'!$C$22+'BP Financier'!$D$22+'BP Financier'!$E$22))*$V4348*AA4348/(1-$W4348)","v":{"v":118.76915218579725,"d":"119"}},{"$f":"'BP Financier'!$E$44*(('BP Financier'!$C$22+'BP Financier'!$D$22+'BP Financier'!$E$22)/('BP Financier'!$C$16+'BP Financier'!$C$19+'BP Financier'!$D$16+'BP Financier'!$D$19+'BP Financier'!$E$16+'BP Financier'!$E$19+'BP Financier'!$C$22+'BP Financier'!$D$22+'BP Financier'!$E$22))*$V4348*AB4348/(1-$W4348)","v":{"v":56.846773695766196,"d":"57"}},null,{"v":1.6666666666666668E-3,"d":"0.17%"},{"$f":"Actif!$E$28/100","v":{"v":0.28900000000000003,"d":"28.90%"}},{"$f":"Actif!$E$30/100","v":{"v":0.09050000000000001,"d":"9.05%"}},{"$f":"Actif!$E$31/100","v":{"v":0.0605,"d":"6.05%"}},{"$f":"Actif!$E$32/100","v":{"v":0.47350000000000003,"d":"47.35%"}},{"$f":"Actif!$E$33/100","v":{"v":0.0585,"d":"5.85%"}},{"$f":"Actif!$E$29/100","v":{"v":0.027999999999999997,"d":"2.80%"}}]
[null,"#248",47,2028,"F","A_CAPI",{"v":0.44999999999999996,"d":"0.45"},{"v":0.38999999999999996,"d":"0.39"},0.6,0.6,85,0,{"$f":"ROUND(Primes!$O$10*V4349,2)","v":0.08},0,{"v":1443.5020034889205,"d":"1,444"},{"$f":"'BP Financier'!$E$44*(('BP Financier'!$C$22+'BP Financier'!$D$22+'BP Financier'!$E$22)/('BP Financier'!$C$16+'BP Financier'!$C$19+'BP Financier'!$D$16+'BP Financier'!$D$19+'BP Financier'!$E$16+'BP Financier'!$E$19+'BP Financier'!$C$22+'BP Financier'!$D$22+'BP Financier'!$E$22))*$V4349*X4349/(1-$W4349)","v":{"v":183.7368935523872,"d":"184"}},{"$f":"'BP Financier'!$E$44*(('BP Financier'!$C$22+'BP Financier'!$D$22+'BP Financier'!$E$22)/('BP Financier'!$C$16+'BP Financier'!$C$19+'BP Financier'!$D$16+'BP Financier'!$D$19+'BP Financier'!$E$16+'BP Financier'!$E$19+'BP Financier'!$C$22+'BP Financier'!$D$22+'BP Financier'!$E$22))*$V4349*Y4349/(1-$W4349)","v":{"v":122.82963602120911,"d":"123"}},{"$f":"'BP Financier'!$E$44*(('BP Financier'!$C$22+'BP Financier'!$D$22+'BP Financier'!$E$22)/('BP Financier'!$C$16+'BP Financier'!$C$19+'BP Financier'!$D$16+'BP Financier'!$D$19+'BP Financier'!$E$16+'BP Financier'!$E$19+'BP Financier'!$C$22+'BP Financier'!$D$22+'BP Financier'!$E$22))*$V4349*Z4349/(1-$W4349)","v":{"v":961.3195480337606,"d":"961"}},{"$f":"'BP Financier'!$E$44*(('BP Financier'!$C$22+'BP Financier'!$D$22+'BP Financier'!$E$22)/('BP Financier'!$C$16+'BP Financier'!$C$19+'BP Financier'!$D$16+'BP Financier'!$D$19+'BP Financier'!$E$16+'BP Financier'!$E$19+'BP Financier'!$C$22+'BP Financier'!$D$22+'BP Financier'!$E$22))*$V4349*AA4349/(1-$W4349)","v":{"v":118.76915218579725,"d":"119"}},{"$f":"'BP Financier'!$E$44*(('BP Financier'!$C$22+'BP Financier'!$D$22+'BP Financier'!$E$22)/('BP Financier'!$C$16+'BP Financier'!$C$19+'BP Financier'!$D$16+'BP Financier'!$D$19+'BP Financier'!$E$16+'BP Financier'!$E$19+'BP Financier'!$C$22+'BP Financier'!$D$22+'BP Financier'!$E$22))*$V4349*AB4349/(1-$W4349)","v":{"v":56.846773695766196,"d":"57"}},null,{"v":1.6666666666666668E-3,"d":"0.17%"},{"$f":"Actif!$E$28/100","v":{"v":0.28900000000000003,"d":"28.90%"}},{"$f":"Actif!$E$30/100","v":{"v":0.09050000000000001,"d":"9.05%"}},{"$f":"Actif!$E$31/100","v":{"v":0.0605,"d":"6.05%"}},{"$f":"Actif!$E$32/100","v":{"v":0.47350000000000003,"d":"47.35%"}},{"$f":"Actif!$E$33/100","v":{"v":0.0585,"d":"5.85%"}},{"$f":"Actif!$E$29/100","v":{"v":0.027999999999999997,"d":"2.80%"}}]
[null,"#249",47,2029,"F","A_CAPI",{"v":0.44999999999999996,"d":"0.45"},{"v":0.38999999999999996,"d":"0.39"},0.6,0.6,85,0,{"$f":"ROUND(Primes!$O$10*V4350,2)","v":0.08},0,{"v":1443.5020034889205,"d":"1,444"},{"$f":"'BP Financier'!$E$44*(('BP Financier'!$C$22+'BP Financier'!$D$22+'BP Financier'!$E$22)/('BP Financier'!$C$16+'BP Financier'!$C$19+'BP Financier'!$D$16+'BP Financier'!$D$19+'BP Financier'!$E$16+'BP Financier'!$E$19+'BP Financier'!$C$22+'BP Financier'!$D$22+'BP Financier'!$E$22))*$V4350*X4350/(1-$W4350)","v":{"v":183.7368935523872,"d":"184"}},{"$f":"'BP Financier'!$E$44*(('BP Financier'!$C$22+'BP Financier'!$D$22+'BP Financier'!$E$22)/('BP Financier'!$C$16+'BP Financier'!$C$19+'BP Financier'!$D$16+'BP Financier'!$D$19+'BP Financier'!$E$16+'BP Financier'!$E$19+'BP Financier'!$C$22+'BP Financier'!$D$22+'BP Financier'!$E$22))*$V4350*Y4350/(1-$W4350)","v":{"v":122.82963602120911,"d":"123"}},{"$f":"'BP Financier'!$E$44*(('BP Financier'!$C$22+'BP Financier'!$D$22+'BP Financier'!$E$22)/('BP Financier'!$C$16+'BP Financier'!$C$19+'BP Financier'!$D$16+'BP Financier'!$D$19+'BP Financier'!$E$16+'BP Financier'!$E$19+'BP Financier'!$C$22+'BP Financier'!$D$22+'BP Financier'!$E$22))*$V4350*Z4350/(1-$W4350)","v":{"v":961.3195480337606,"d":"961"}},{"$f":"'BP Financier'!$E$44*(('BP Financier'!$C$22+'BP Financier'!$D$22+'BP Financier'!$E$22)/('BP Financier'!$C$16+'BP Financier'!$C$19+'BP Financier'!$D$16+'BP Financier'!$D$19+'BP Financier'!$E$16+'BP Financier'!$E$19+'BP Financier'!$C$22+'BP Financier'!$D$22+'BP Financier'!$E$22))*$V4350*AA4350/(1-$W4350)","v":{"v":118.76915218579725,"d":"119"}},{"$f":"'BP Financier'!$E$44*(('BP Financier'!$C$22+'BP Financier'!$D$22+'BP Financier'!$E$22)/('BP Financier'!$C$16+'BP Financier'!$C$19+'BP Financier'!$D$16+'BP Financier'!$D$19+'BP Financier'!$E$16+'BP Financier'!$E$19+'BP Financier'!$C$22+'BP Financier'!$D$22+'BP Financier'!$E$22))*$V4350*AB4350/(1-$W4350)","v":{"v":56.846773695766196,"d":"57"}},null,{"v":1.6666666666666668E-3,"d":"0.17%"},{"$f":"Actif!$E$28/100","v":{"v":0.28900000000000003,"d":"28.90%"}},{"$f":"Actif!$E$30/100","v":{"v":0.09050000000000001,"d":"9.05%"}},{"$f":"Actif!$E$31/100","v":{"v":0.0605,"d":"6.05%"}},{"$f":"Actif!$E$32/100","v":{"v":0.47350000000000003,"d":"47.35%"}},{"$f":"Actif!$E$33/100","v":{"v":0.0585,"d":"5.85%"}},{"$f":"Actif!$E$29/100","v":{"v":0.027999999999999997,"d":"2.80%"}}]
[null,"#250",48,2026,"H","A_CAPI",{"v":0.44999999999999996,"d":"0.45"},{"v":0.38999999999999996,"d":"0.39"},0.6,0.6,85,0,{"$f":"ROUND(Primes!$O$10*V4351,2)","v":0.08},0,{"v":1443.5020034889205,"d":"1,444"},{"$f":"'BP Financier'!$E$44*(('BP Financier'!$C$22+'BP Financier'!$D$22+'BP Financier'!$E$22)/('BP Financier'!$C$16+'BP Financier'!$C$19+'BP Financier'!$D$16+'BP Financier'!$D$19+'BP Financier'!$E$16+'BP Financier'!$E$19+'BP Financier'!$C$22+'BP Financier'!$D$22+'BP Financier'!$E$22))*$V4351*X4351/(1-$W4351)","v":{"v":183.7368935523872,"d":"184"}},{"$f":"'BP Financier'!$E$44*(('BP Financier'!$C$22+'BP Financier'!$D$22+'BP Financier'!$E$22)/('BP Financier'!$C$16+'BP Financier'!$C$19+'BP Financier'!$D$16+'BP Financier'!$D$19+'BP Financier'!$E$16+'BP Financier'!$E$19+'BP Financier'!$C$22+'BP Financier'!$D$22+'BP Financier'!$E$22))*$V4351*Y4351/(1-$W4351)","v":{"v":122.82963602120911,"d":"123"}},{"$f":"'BP Financier'!$E$44*(('BP Financier'!$C$22+'BP Financier'!$D$22+'BP Financier'!$E$22)/('BP Financier'!$C$16+'BP Financier'!$C$19+'BP Financier'!$D$16+'BP Financier'!$D$19+'BP Financier'!$E$16+'BP Financier'!$E$19+'BP Financier'!$C$22+'BP Financier'!$D$22+'BP Financier'!$E$22))*$V4351*Z4351/(1-$W4351)","v":{"v":961.3195480337606,"d":"961"}},{"$f":"'BP Financier'!$E$44*(('BP Financier'!$C$22+'BP Financier'!$D$22+'BP Financier'!$E$22)/('BP Financier'!$C$16+'BP Financier'!$C$19+'BP Financier'!$D$16+'BP Financier'!$D$19+'BP Financier'!$E$16+'BP Financier'!$E$19+'BP Financier'!$C$22+'BP Financier'!$D$22+'BP Financier'!$E$22))*$V4351*AA4351/(1-$W4351)","v":{"v":118.76915218579725,"d":"119"}},{"$f":"'BP Financier'!$E$44*(('BP Financier'!$C$22+'BP Financier'!$D$22+'BP Financier'!$E$22)/('BP Financier'!$C$16+'BP Financier'!$C$19+'BP Financier'!$D$16+'BP Financier'!$D$19+'BP Financier'!$E$16+'BP Financier'!$E$19+'BP Financier'!$C$22+'BP Financier'!$D$22+'BP Financier'!$E$22))*$V4351*AB4351/(1-$W4351)","v":{"v":56.846773695766196,"d":"57"}},null,{"v":1.6666666666666668E-3,"d":"0.17%"},{"$f":"Actif!$E$28/100","v":{"v":0.28900000000000003,"d":"28.90%"}},{"$f":"Actif!$E$30/100","v":{"v":0.09050000000000001,"d":"9.05%"}},{"$f":"Actif!$E$31/100","v":{"v":0.0605,"d":"6.05%"}},{"$f":"Actif!$E$32/100","v":{"v":0.47350000000000003,"d":"47.35%"}},{"$f":"Actif!$E$33/100","v":{"v":0.0585,"d":"5.85%"}},{"$f":"Actif!$E$29/100","v":{"v":0.027999999999999997,"d":"2.80%"}}]
[null,"#251",48,2028,"H","A_CAPI",{"v":0.44999999999999996,"d":"0.45"},{"v":0.38999999999999996,"d":"0.39"},0.6,0.6,85,0,{"$f":"ROUND(Primes!$O$10*V4352,2)","v":0.08},0,{"v":1443.5020034889205,"d":"1,444"},{"$f":"'BP Financier'!$E$44*(('BP Financier'!$C$22+'BP Financier'!$D$22+'BP Financier'!$E$22)/('BP Financier'!$C$16+'BP Financier'!$C$19+'BP Financier'!$D$16+'BP Financier'!$D$19+'BP Financier'!$E$16+'BP Financier'!$E$19+'BP Financier'!$C$22+'BP Financier'!$D$22+'BP Financier'!$E$22))*$V4352*X4352/(1-$W4352)","v":{"v":183.7368935523872,"d":"184"}},{"$f":"'BP Financier'!$E$44*(('BP Financier'!$C$22+'BP Financier'!$D$22+'BP Financier'!$E$22)/('BP Financier'!$C$16+'BP Financier'!$C$19+'BP Financier'!$D$16+'BP Financier'!$D$19+'BP Financier'!$E$16+'BP Financier'!$E$19+'BP Financier'!$C$22+'BP Financier'!$D$22+'BP Financier'!$E$22))*$V4352*Y4352/(1-$W4352)","v":{"v":122.82963602120911,"d":"123"}},{"$f":"'BP Financier'!$E$44*(('BP Financier'!$C$22+'BP Financier'!$D$22+'BP Financier'!$E$22)/('BP Financier'!$C$16+'BP Financier'!$C$19+'BP Financier'!$D$16+'BP Financier'!$D$19+'BP Financier'!$E$16+'BP Financier'!$E$19+'BP Financier'!$C$22+'BP Financier'!$D$22+'BP Financier'!$E$22))*$V4352*Z4352/(1-$W4352)","v":{"v":961.3195480337606,"d":"961"}},{"$f":"'BP Financier'!$E$44*(('BP Financier'!$C$22+'BP Financier'!$D$22+'BP Financier'!$E$22)/('BP Financier'!$C$16+'BP Financier'!$C$19+'BP Financier'!$D$16+'BP Financier'!$D$19+'BP Financier'!$E$16+'BP Financier'!$E$19+'BP Financier'!$C$22+'BP Financier'!$D$22+'BP Financier'!$E$22))*$V4352*AA4352/(1-$W4352)","v":{"v":118.76915218579725,"d":"119"}},{"$f":"'BP Financier'!$E$44*(('BP Financier'!$C$22+'BP Financier'!$D$22+'BP Financier'!$E$22)/('BP Financier'!$C$16+'BP Financier'!$C$19+'BP Financier'!$D$16+'BP Financier'!$D$19+'BP Financier'!$E$16+'BP Financier'!$E$19+'BP Financier'!$C$22+'BP Financier'!$D$22+'BP Financier'!$E$22))*$V4352*AB4352/(1-$W4352)","v":{"v":56.846773695766196,"d":"57"}},null,{"v":1.6666666666666668E-3,"d":"0.17%"},{"$f":"Actif!$E$28/100","v":{"v":0.28900000000000003,"d":"28.90%"}},{"$f":"Actif!$E$30/100","v":{"v":0.09050000000000001,"d":"9.05%"}},{"$f":"Actif!$E$31/100","v":{"v":0.0605,"d":"6.05%"}},{"$f":"Actif!$E$32/100","v":{"v":0.47350000000000003,"d":"47.35%"}},{"$f":"Actif!$E$33/100","v":{"v":0.0585,"d":"5.85%"}},{"$f":"Actif!$E$29/100","v":{"v":0.027999999999999997,"d":"2.80%"}}]
[null,"#252",48,2029,"H","A_CAPI",{"v":0.44999999999999996,"d":"0.45"},{"v":0.38999999999999996,"d":"0.39"},0.6,0.6,85,0,{"$f":"ROUND(Primes!$O$10*V4353,2)","v":0.08},0,{"v":1443.5020034889205,"d":"1,444"},{"$f":"'BP Financier'!$E$44*(('BP Financier'!$C$22+'BP Financier'!$D$22+'BP Financier'!$E$22)/('BP Financier'!$C$16+'BP Financier'!$C$19+'BP Financier'!$D$16+'BP Financier'!$D$19+'BP Financier'!$E$16+'BP Financier'!$E$19+'BP Financier'!$C$22+'BP Financier'!$D$22+'BP Financier'!$E$22))*$V4353*X4353/(1-$W4353)","v":{"v":183.7368935523872,"d":"184"}},{"$f":"'BP Financier'!$E$44*(('BP Financier'!$C$22+'BP Financier'!$D$22+'BP Financier'!$E$22)/('BP Financier'!$C$16+'BP Financier'!$C$19+'BP Financier'!$D$16+'BP Financier'!$D$19+'BP Financier'!$E$16+'BP Financier'!$E$19+'BP Financier'!$C$22+'BP Financier'!$D$22+'BP Financier'!$E$22))*$V4353*Y4353/(1-$W4353)","v":{"v":122.82963602120911,"d":"123"}},{"$f":"'BP Financier'!$E$44*(('BP Financier'!$C$22+'BP Financier'!$D$22+'BP Financier'!$E$22)/('BP Financier'!$C$16+'BP Financier'!$C$19+'BP Financier'!$D$16+'BP Financier'!$D$19+'BP Financier'!$E$16+'BP Financier'!$E$19+'BP Financier'!$C$22+'BP Financier'!$D$22+'BP Financier'!$E$22))*$V4353*Z4353/(1-$W4353)","v":{"v":961.3195480337606,"d":"961"}},{"$f":"'BP Financier'!$E$44*(('BP Financier'!$C$22+'BP Financier'!$D$22+'BP Financier'!$E$22)/('BP Financier'!$C$16+'BP Financier'!$C$19+'BP Financier'!$D$16+'BP Financier'!$D$19+'BP Financier'!$E$16+'BP Financier'!$E$19+'BP Financier'!$C$22+'BP Financier'!$D$22+'BP Financier'!$E$22))*$V4353*AA4353/(1-$W4353)","v":{"v":118.76915218579725,"d":"119"}},{"$f":"'BP Financier'!$E$44*(('BP Financier'!$C$22+'BP Financier'!$D$22+'BP Financier'!$E$22)/('BP Financier'!$C$16+'BP Financier'!$C$19+'BP Financier'!$D$16+'BP Financier'!$D$19+'BP Financier'!$E$16+'BP Financier'!$E$19+'BP Financier'!$C$22+'BP Financier'!$D$22+'BP Financier'!$E$22))*$V4353*AB4353/(1-$W4353)","v":{"v":56.846773695766196,"d":"57"}},null,{"v":1.6666666666666668E-3,"d":"0.17%"},{"$f":"Actif!$E$28/100","v":{"v":0.28900000000000003,"d":"28.90%"}},{"$f":"Actif!$E$30/100","v":{"v":0.09050000000000001,"d":"9.05%"}},{"$f":"Actif!$E$31/100","v":{"v":0.0605,"d":"6.05%"}},{"$f":"Actif!$E$32/100","v":{"v":0.47350000000000003,"d":"47.35%"}},{"$f":"Actif!$E$33/100","v":{"v":0.0585,"d":"5.85%"}},{"$f":"Actif!$E$29/100","v":{"v":0.027999999999999997,"d":"2.80%"}}]
[null,"#253",49,2026,"H","A_CAPI",{"v":0.44999999999999996,"d":"0.45"},{"v":0.38999999999999996,"d":"0.39"},0.6,0.6,85,0,{"$f":"ROUND(Primes!$O$10*V4354,2)","v":0.08},0,{"v":1443.5020034889205,"d":"1,444"},{"$f":"'BP Financier'!$E$44*(('BP Financier'!$C$22+'BP Financier'!$D$22+'BP Financier'!$E$22)/('BP Financier'!$C$16+'BP Financier'!$C$19+'BP Financier'!$D$16+'BP Financier'!$D$19+'BP Financier'!$E$16+'BP Financier'!$E$19+'BP Financier'!$C$22+'BP Financier'!$D$22+'BP Financier'!$E$22))*$V4354*X4354/(1-$W4354)","v":{"v":183.7368935523872,"d":"184"}},{"$f":"'BP Financier'!$E$44*(('BP Financier'!$C$22+'BP Financier'!$D$22+'BP Financier'!$E$22)/('BP Financier'!$C$16+'BP Financier'!$C$19+'BP Financier'!$D$16+'BP Financier'!$D$19+'BP Financier'!$E$16+'BP Financier'!$E$19+'BP Financier'!$C$22+'BP Financier'!$D$22+'BP Financier'!$E$22))*$V4354*Y4354/(1-$W4354)","v":{"v":122.82963602120911,"d":"123"}},{"$f":"'BP Financier'!$E$44*(('BP Financier'!$C$22+'BP Financier'!$D$22+'BP Financier'!$E$22)/('BP Financier'!$C$16+'BP Financier'!$C$19+'BP Financier'!$D$16+'BP Financier'!$D$19+'BP Financier'!$E$16+'BP Financier'!$E$19+'BP Financier'!$C$22+'BP Financier'!$D$22+'BP Financier'!$E$22))*$V4354*Z4354/(1-$W4354)","v":{"v":961.3195480337606,"d":"961"}},{"$f":"'BP Financier'!$E$44*(('BP Financier'!$C$22+'BP Financier'!$D$22+'BP Financier'!$E$22)/('BP Financier'!$C$16+'BP Financier'!$C$19+'BP Financier'!$D$16+'BP Financier'!$D$19+'BP Financier'!$E$16+'BP Financier'!$E$19+'BP Financier'!$C$22+'BP Financier'!$D$22+'BP Financier'!$E$22))*$V4354*AA4354/(1-$W4354)","v":{"v":118.76915218579725,"d":"119"}},{"$f":"'BP Financier'!$E$44*(('BP Financier'!$C$22+'BP Financier'!$D$22+'BP Financier'!$E$22)/('BP Financier'!$C$16+'BP Financier'!$C$19+'BP Financier'!$D$16+'BP Financier'!$D$19+'BP Financier'!$E$16+'BP Financier'!$E$19+'BP Financier'!$C$22+'BP Financier'!$D$22+'BP Financier'!$E$22))*$V4354*AB4354/(1-$W4354)","v":{"v":56.846773695766196,"d":"57"}},null,{"v":1.6666666666666668E-3,"d":"0.17%"},{"$f":"Actif!$E$28/100","v":{"v":0.28900000000000003,"d":"28.90%"}},{"$f":"Actif!$E$30/100","v":{"v":0.09050000000000001,"d":"9.05%"}},{"$f":"Actif!$E$31/100","v":{"v":0.0605,"d":"6.05%"}},{"$f":"Actif!$E$32/100","v":{"v":0.47350000000000003,"d":"47.35%"}},{"$f":"Actif!$E$33/100","v":{"v":0.0585,"d":"5.85%"}},{"$f":"Actif!$E$29/100","v":{"v":0.027999999999999997,"d":"2.80%"}}]
[null,"#254",49,2028,"H","A_CAPI",{"v":0.44999999999999996,"d":"0.45"},{"v":0.38999999999999996,"d":"0.39"},0.6,0.6,85,0,{"$f":"ROUND(Primes!$O$10*V4355,2)","v":0.08},0,{"v":1443.5020034889205,"d":"1,444"},{"$f":"'BP Financier'!$E$44*(('BP Financier'!$C$22+'BP Financier'!$D$22+'BP Financier'!$E$22)/('BP Financier'!$C$16+'BP Financier'!$C$19+'BP Financier'!$D$16+'BP Financier'!$D$19+'BP Financier'!$E$16+'BP Financier'!$E$19+'BP Financier'!$C$22+'BP Financier'!$D$22+'BP Financier'!$E$22))*$V4355*X4355/(1-$W4355)","v":{"v":183.7368935523872,"d":"184"}},{"$f":"'BP Financier'!$E$44*(('BP Financier'!$C$22+'BP Financier'!$D$22+'BP Financier'!$E$22)/('BP Financier'!$C$16+'BP Financier'!$C$19+'BP Financier'!$D$16+'BP Financier'!$D$19+'BP Financier'!$E$16+'BP Financier'!$E$19+'BP Financier'!$C$22+'BP Financier'!$D$22+'BP Financier'!$E$22))*$V4355*Y4355/(1-$W4355)","v":{"v":122.82963602120911,"d":"123"}},{"$f":"'BP Financier'!$E$44*(('BP Financier'!$C$22+'BP Financier'!$D$22+'BP Financier'!$E$22)/('BP Financier'!$C$16+'BP Financier'!$C$19+'BP Financier'!$D$16+'BP Financier'!$D$19+'BP Financier'!$E$16+'BP Financier'!$E$19+'BP Financier'!$C$22+'BP Financier'!$D$22+'BP Financier'!$E$22))*$V4355*Z4355/(1-$W4355)","v":{"v":961.3195480337606,"d":"961"}},{"$f":"'BP Financier'!$E$44*(('BP Financier'!$C$22+'BP Financier'!$D$22+'BP Financier'!$E$22)/('BP Financier'!$C$16+'BP Financier'!$C$19+'BP Financier'!$D$16+'BP Financier'!$D$19+'BP Financier'!$E$16+'BP Financier'!$E$19+'BP Financier'!$C$22+'BP Financier'!$D$22+'BP Financier'!$E$22))*$V4355*AA4355/(1-$W4355)","v":{"v":118.76915218579725,"d":"119"}},{"$f":"'BP Financier'!$E$44*(('BP Financier'!$C$22+'BP Financier'!$D$22+'BP Financier'!$E$22)/('BP Financier'!$C$16+'BP Financier'!$C$19+'BP Financier'!$D$16+'BP Financier'!$D$19+'BP Financier'!$E$16+'BP Financier'!$E$19+'BP Financier'!$C$22+'BP Financier'!$D$22+'BP Financier'!$E$22))*$V4355*AB4355/(1-$W4355)","v":{"v":56.846773695766196,"d":"57"}},null,{"v":1.6666666666666668E-3,"d":"0.17%"},{"$f":"Actif!$E$28/100","v":{"v":0.28900000000000003,"d":"28.90%"}},{"$f":"Actif!$E$30/100","v":{"v":0.09050000000000001,"d":"9.05%"}},{"$f":"Actif!$E$31/100","v":{"v":0.0605,"d":"6.05%"}},{"$f":"Actif!$E$32/100","v":{"v":0.47350000000000003,"d":"47.35%"}},{"$f":"Actif!$E$33/100","v":{"v":0.0585,"d":"5.85%"}},{"$f":"Actif!$E$29/100","v":{"v":0.027999999999999997,"d":"2.80%"}}]
[null,"#255",49,2029,"H","A_CAPI",{"v":0.44999999999999996,"d":"0.45"},{"v":0.38999999999999996,"d":"0.39"},0.6,0.6,85,0,{"$f":"ROUND(Primes!$O$10*V4356,2)","v":0.08},0,{"v":1443.5020034889205,"d":"1,444"},{"$f":"'BP Financier'!$E$44*(('BP Financier'!$C$22+'BP Financier'!$D$22+'BP Financier'!$E$22)/('BP Financier'!$C$16+'BP Financier'!$C$19+'BP Financier'!$D$16+'BP Financier'!$D$19+'BP Financier'!$E$16+'BP Financier'!$E$19+'BP Financier'!$C$22+'BP Financier'!$D$22+'BP Financier'!$E$22))*$V4356*X4356/(1-$W4356)","v":{"v":183.7368935523872,"d":"184"}},{"$f":"'BP Financier'!$E$44*(('BP Financier'!$C$22+'BP Financier'!$D$22+'BP Financier'!$E$22)/('BP Financier'!$C$16+'BP Financier'!$C$19+'BP Financier'!$D$16+'BP Financier'!$D$19+'BP Financier'!$E$16+'BP Financier'!$E$19+'BP Financier'!$C$22+'BP Financier'!$D$22+'BP Financier'!$E$22))*$V4356*Y4356/(1-$W4356)","v":{"v":122.82963602120911,"d":"123"}},{"$f":"'BP Financier'!$E$44*(('BP Financier'!$C$22+'BP Financier'!$D$22+'BP Financier'!$E$22)/('BP Financier'!$C$16+'BP Financier'!$C$19+'BP Financier'!$D$16+'BP Financier'!$D$19+'BP Financier'!$E$16+'BP Financier'!$E$19+'BP Financier'!$C$22+'BP Financier'!$D$22+'BP Financier'!$E$22))*$V4356*Z4356/(1-$W4356)","v":{"v":961.3195480337606,"d":"961"}},{"$f":"'BP Financier'!$E$44*(('BP Financier'!$C$22+'BP Financier'!$D$22+'BP Financier'!$E$22)/('BP Financier'!$C$16+'BP Financier'!$C$19+'BP Financier'!$D$16+'BP Financier'!$D$19+'BP Financier'!$E$16+'BP Financier'!$E$19+'BP Financier'!$C$22+'BP Financier'!$D$22+'BP Financier'!$E$22))*$V4356*AA4356/(1-$W4356)","v":{"v":118.76915218579725,"d":"119"}},{"$f":"'BP Financier'!$E$44*(('BP Financier'!$C$22+'BP Financier'!$D$22+'BP Financier'!$E$22)/('BP Financier'!$C$16+'BP Financier'!$C$19+'BP Financier'!$D$16+'BP Financier'!$D$19+'BP Financier'!$E$16+'BP Financier'!$E$19+'BP Financier'!$C$22+'BP Financier'!$D$22+'BP Financier'!$E$22))*$V4356*AB4356/(1-$W4356)","v":{"v":56.846773695766196,"d":"57"}},null,{"v":1.6666666666666668E-3,"d":"0.17%"},{"$f":"Actif!$E$28/100","v":{"v":0.28900000000000003,"d":"28.90%"}},{"$f":"Actif!$E$30/100","v":{"v":0.09050000000000001,"d":"9.05%"}},{"$f":"Actif!$E$31/100","v":{"v":0.0605,"d":"6.05%"}},{"$f":"Actif!$E$32/100","v":{"v":0.47350000000000003,"d":"47.35%"}},{"$f":"Actif!$E$33/100","v":{"v":0.0585,"d":"5.85%"}},{"$f":"Actif!$E$29/100","v":{"v":0.027999999999999997,"d":"2.80%"}}]
[null,"#256",50,2026,"F","A_CAPI",{"v":0.44999999999999996,"d":"0.45"},{"v":0.38999999999999996,"d":"0.39"},0.6,0.6,85,0,{"$f":"ROUND(Primes!$O$10*V4357,2)","v":0.45},0,{"v":8661.012020933522,"d":"8,661"},{"$f":"'BP Financier'!$E$44*(('BP Financier'!$C$22+'BP Financier'!$D$22+'BP Financier'!$E$22)/('BP Financier'!$C$16+'BP Financier'!$C$19+'BP Financier'!$D$16+'BP Financier'!$D$19+'BP Financier'!$E$16+'BP Financier'!$E$19+'BP Financier'!$C$22+'BP Financier'!$D$22+'BP Financier'!$E$22))*$V4357*X4357/(1-$W4357)","v":{"v":1102.4213613143233,"d":"1,102"}},{"$f":"'BP Financier'!$E$44*(('BP Financier'!$C$22+'BP Financier'!$D$22+'BP Financier'!$E$22)/('BP Financier'!$C$16+'BP Financier'!$C$19+'BP Financier'!$D$16+'BP Financier'!$D$19+'BP Financier'!$E$16+'BP Financier'!$E$19+'BP Financier'!$C$22+'BP Financier'!$D$22+'BP Financier'!$E$22))*$V4357*Y4357/(1-$W4357)","v":{"v":736.9778161272546,"d":"737"}},{"$f":"'BP Financier'!$E$44*(('BP Financier'!$C$22+'BP Financier'!$D$22+'BP Financier'!$E$22)/('BP Financier'!$C$16+'BP Financier'!$C$19+'BP Financier'!$D$16+'BP Financier'!$D$19+'BP Financier'!$E$16+'BP Financier'!$E$19+'BP Financier'!$C$22+'BP Financier'!$D$22+'BP Financier'!$E$22))*$V4357*Z4357/(1-$W4357)","v":{"v":5767.917288202564,"d":"5,768"}},{"$f":"'BP Financier'!$E$44*(('BP Financier'!$C$22+'BP Financier'!$D$22+'BP Financier'!$E$22)/('BP Financier'!$C$16+'BP Financier'!$C$19+'BP Financier'!$D$16+'BP Financier'!$D$19+'BP Financier'!$E$16+'BP Financier'!$E$19+'BP Financier'!$C$22+'BP Financier'!$D$22+'BP Financier'!$E$22))*$V4357*AA4357/(1-$W4357)","v":{"v":712.6149131147836,"d":"713"}},{"$f":"'BP Financier'!$E$44*(('BP Financier'!$C$22+'BP Financier'!$D$22+'BP Financier'!$E$22)/('BP Financier'!$C$16+'BP Financier'!$C$19+'BP Financier'!$D$16+'BP Financier'!$D$19+'BP Financier'!$E$16+'BP Financier'!$E$19+'BP Financier'!$C$22+'BP Financier'!$D$22+'BP Financier'!$E$22))*$V4357*AB4357/(1-$W4357)","v":{"v":341.0806421745972,"d":"341"}},null,{"v":0.01,"d":"1.00%"},{"$f":"Actif!$E$28/100","v":{"v":0.28900000000000003,"d":"28.90%"}},{"$f":"Actif!$E$30/100","v":{"v":0.09050000000000001,"d":"9.05%"}},{"$f":"Actif!$E$31/100","v":{"v":0.0605,"d":"6.05%"}},{"$f":"Actif!$E$32/100","v":{"v":0.47350000000000003,"d":"47.35%"}},{"$f":"Actif!$E$33/100","v":{"v":0.0585,"d":"5.85%"}},{"$f":"Actif!$E$29/100","v":{"v":0.027999999999999997,"d":"2.80%"}}]
[null,"#257",50,2028,"F","A_CAPI",{"$f":"frais_gestion_Euro*100","v":{"v":0.44999999999999996,"d":"0.45"}},{"$f":"frais_gestion_UC*100","v":{"v":0.38999999999999996,"d":"0.39"}},{"$f":"frais_distribution_FG*100","v":0.6},{"$f":"frais_distribution_UC*100","v":0.6},85,0,{"$f":"ROUND(Primes!$O$10*V4358,2)","v":0.45},0,{"v":8661.012020933522,"d":"8,661"},{"$f":"'BP Financier'!$E$44*(('BP Financier'!$C$22+'BP Financier'!$D$22+'BP Financier'!$E$22)/('BP Financier'!$C$16+'BP Financier'!$C$19+'BP Financier'!$D$16+'BP Financier'!$D$19+'BP Financier'!$E$16+'BP Financier'!$E$19+'BP Financier'!$C$22+'BP Financier'!$D$22+'BP Financier'!$E$22))*$V4358*X4358/(1-$W4358)","v":{"v":1102.4213613143233,"d":"1,102"}},{"$f":"'BP Financier'!$E$44*(('BP Financier'!$C$22+'BP Financier'!$D$22+'BP Financier'!$E$22)/('BP Financier'!$C$16+'BP Financier'!$C$19+'BP Financier'!$D$16+'BP Financier'!$D$19+'BP Financier'!$E$16+'BP Financier'!$E$19+'BP Financier'!$C$22+'BP Financier'!$D$22+'BP Financier'!$E$22))*$V4358*Y4358/(1-$W4358)","v":{"v":736.9778161272546,"d":"737"}},{"$f":"'BP Financier'!$E$44*(('BP Financier'!$C$22+'BP Financier'!$D$22+'BP Financier'!$E$22)/('BP Financier'!$C$16+'BP Financier'!$C$19+'BP Financier'!$D$16+'BP Financier'!$D$19+'BP Financier'!$E$16+'BP Financier'!$E$19+'BP Financier'!$C$22+'BP Financier'!$D$22+'BP Financier'!$E$22))*$V4358*Z4358/(1-$W4358)","v":{"v":5767.917288202564,"d":"5,768"}},{"$f":"'BP Financier'!$E$44*(('BP Financier'!$C$22+'BP Financier'!$D$22+'BP Financier'!$E$22)/('BP Financier'!$C$16+'BP Financier'!$C$19+'BP Financier'!$D$16+'BP Financier'!$D$19+'BP Financier'!$E$16+'BP Financier'!$E$19+'BP Financier'!$C$22+'BP Financier'!$D$22+'BP Financier'!$E$22))*$V4358*AA4358/(1-$W4358)","v":{"v":712.6149131147836,"d":"713"}},{"$f":"'BP Financier'!$E$44*(('BP Financier'!$C$22+'BP Financier'!$D$22+'BP Financier'!$E$22)/('BP Financier'!$C$16+'BP Financier'!$C$19+'BP Financier'!$D$16+'BP Financier'!$D$19+'BP Financier'!$E$16+'BP Financier'!$E$19+'BP Financier'!$C$22+'BP Financier'!$D$22+'BP Financier'!$E$22))*$V4358*AB4358/(1-$W4358)","v":{"v":341.0806421745972,"d":"341"}},null,{"v":0.01,"d":"1.00%"},{"$f":"Actif!$E$28/100","v":{"v":0.28900000000000003,"d":"28.90%"}},{"$f":"Actif!$E$30/100","v":{"v":0.09050000000000001,"d":"9.05%"}},{"$f":"Actif!$E$31/100","v":{"v":0.0605,"d":"6.05%"}},{"$f":"Actif!$E$32/100","v":{"v":0.47350000000000003,"d":"47.35%"}},{"$f":"Actif!$E$33/100","v":{"v":0.0585,"d":"5.85%"}},{"$f":"Actif!$E$29/100","v":{"v":0.027999999999999997,"d":"2.80%"}}]
[null,"#258",50,2029,"F","A_CAPI",{"v":0.44999999999999996,"d":"0.45"},{"v":0.38999999999999996,"d":"0.39"},0.6,0.6,85,0,{"$f":"ROUND(Primes!$O$10*V4359,2)","v":0.45},0,{"v":8661.012020933522,"d":"8,661"},{"$f":"'BP Financier'!$E$44*(('BP Financier'!$C$22+'BP Financier'!$D$22+'BP Financier'!$E$22)/('BP Financier'!$C$16+'BP Financier'!$C$19+'BP Financier'!$D$16+'BP Financier'!$D$19+'BP Financier'!$E$16+'BP Financier'!$E$19+'BP Financier'!$C$22+'BP Financier'!$D$22+'BP Financier'!$E$22))*$V4359*X4359/(1-$W4359)","v":{"v":1102.4213613143233,"d":"1,102"}},{"$f":"'BP Financier'!$E$44*(('BP Financier'!$C$22+'BP Financier'!$D$22+'BP Financier'!$E$22)/('BP Financier'!$C$16+'BP Financier'!$C$19+'BP Financier'!$D$16+'BP Financier'!$D$19+'BP Financier'!$E$16+'BP Financier'!$E$19+'BP Financier'!$C$22+'BP Financier'!$D$22+'BP Financier'!$E$22))*$V4359*Y4359/(1-$W4359)","v":{"v":736.9778161272546,"d":"737"}},{"$f":"'BP Financier'!$E$44*(('BP Financier'!$C$22+'BP Financier'!$D$22+'BP Financier'!$E$22)/('BP Financier'!$C$16+'BP Financier'!$C$19+'BP Financier'!$D$16+'BP Financier'!$D$19+'BP Financier'!$E$16+'BP Financier'!$E$19+'BP Financier'!$C$22+'BP Financier'!$D$22+'BP Financier'!$E$22))*$V4359*Z4359/(1-$W4359)","v":{"v":5767.917288202564,"d":"5,768"}},{"$f":"'BP Financier'!$E$44*(('BP Financier'!$C$22+'BP Financier'!$D$22+'BP Financier'!$E$22)/('BP Financier'!$C$16+'BP Financier'!$C$19+'BP Financier'!$D$16+'BP Financier'!$D$19+'BP Financier'!$E$16+'BP Financier'!$E$19+'BP Financier'!$C$22+'BP Financier'!$D$22+'BP Financier'!$E$22))*$V4359*AA4359/(1-$W4359)","v":{"v":712.6149131147836,"d":"713"}},{"$f":"'BP Financier'!$E$44*(('BP Financier'!$C$22+'BP Financier'!$D$22+'BP Financier'!$E$22)/('BP Financier'!$C$16+'BP Financier'!$C$19+'BP Financier'!$D$16+'BP Financier'!$D$19+'BP Financier'!$E$16+'BP Financier'!$E$19+'BP Financier'!$C$22+'BP Financier'!$D$22+'BP Financier'!$E$22))*$V4359*AB4359/(1-$W4359)","v":{"v":341.0806421745972,"d":"341"}},null,{"v":0.01,"d":"1.00%"},{"$f":"Actif!$E$28/100","v":{"v":0.28900000000000003,"d":"28.90%"}},{"$f":"Actif!$E$30/100","v":{"v":0.09050000000000001,"d":"9.05%"}},{"$f":"Actif!$E$31/100","v":{"v":0.0605,"d":"6.05%"}},{"$f":"Actif!$E$32/100","v":{"v":0.47350000000000003,"d":"47.35%"}},{"$f":"Actif!$E$33/100","v":{"v":0.0585,"d":"5.85%"}},{"$f":"Actif!$E$29/100","v":{"v":0.027999999999999997,"d":"2.80%"}}]
[null,"#259",51,2026,"H","A_CAPI",{"v":0.44999999999999996,"d":"0.45"},{"v":0.38999999999999996,"d":"0.39"},0.6,0.6,85,0,{"$f":"ROUND(Primes!$O$10*V4360,2)","v":0.45},0,{"v":8661.012020933522,"d":"8,661"},{"$f":"'BP Financier'!$E$44*(('BP Financier'!$C$22+'BP Financier'!$D$22+'BP Financier'!$E$22)/('BP Financier'!$C$16+'BP Financier'!$C$19+'BP Financier'!$D$16+'BP Financier'!$D$19+'BP Financier'!$E$16+'BP Financier'!$E$19+'BP Financier'!$C$22+'BP Financier'!$D$22+'BP Financier'!$E$22))*$V4360*X4360/(1-$W4360)","v":{"v":1102.4213613143233,"d":"1,102"}},{"$f":"'BP Financier'!$E$44*(('BP Financier'!$C$22+'BP Financier'!$D$22+'BP Financier'!$E$22)/('BP Financier'!$C$16+'BP Financier'!$C$19+'BP Financier'!$D$16+'BP Financier'!$D$19+'BP Financier'!$E$16+'BP Financier'!$E$19+'BP Financier'!$C$22+'BP Financier'!$D$22+'BP Financier'!$E$22))*$V4360*Y4360/(1-$W4360)","v":{"v":736.9778161272546,"d":"737"}},{"$f":"'BP Financier'!$E$44*(('BP Financier'!$C$22+'BP Financier'!$D$22+'BP Financier'!$E$22)/('BP Financier'!$C$16+'BP Financier'!$C$19+'BP Financier'!$D$16+'BP Financier'!$D$19+'BP Financier'!$E$16+'BP Financier'!$E$19+'BP Financier'!$C$22+'BP Financier'!$D$22+'BP Financier'!$E$22))*$V4360*Z4360/(1-$W4360)","v":{"v":5767.917288202564,"d":"5,768"}},{"$f":"'BP Financier'!$E$44*(('BP Financier'!$C$22+'BP Financier'!$D$22+'BP Financier'!$E$22)/('BP Financier'!$C$16+'BP Financier'!$C$19+'BP Financier'!$D$16+'BP Financier'!$D$19+'BP Financier'!$E$16+'BP Financier'!$E$19+'BP Financier'!$C$22+'BP Financier'!$D$22+'BP Financier'!$E$22))*$V4360*AA4360/(1-$W4360)","v":{"v":712.6149131147836,"d":"713"}},{"$f":"'BP Financier'!$E$44*(('BP Financier'!$C$22+'BP Financier'!$D$22+'BP Financier'!$E$22)/('BP Financier'!$C$16+'BP Financier'!$C$19+'BP Financier'!$D$16+'BP Financier'!$D$19+'BP Financier'!$E$16+'BP Financier'!$E$19+'BP Financier'!$C$22+'BP Financier'!$D$22+'BP Financier'!$E$22))*$V4360*AB4360/(1-$W4360)","v":{"v":341.0806421745972,"d":"341"}},null,{"v":0.01,"d":"1.00%"},{"$f":"Actif!$E$28/100","v":{"v":0.28900000000000003,"d":"28.90%"}},{"$f":"Actif!$E$30/100","v":{"v":0.09050000000000001,"d":"9.05%"}},{"$f":"Actif!$E$31/100","v":{"v":0.0605,"d":"6.05%"}},{"$f":"Actif!$E$32/100","v":{"v":0.47350000000000003,"d":"47.35%"}},{"$f":"Actif!$E$33/100","v":{"v":0.0585,"d":"5.85%"}},{"$f":"Actif!$E$29/100","v":{"v":0.027999999999999997,"d":"2.80%"}}]
[null,"#260",51,2028,"H","A_CAPI",{"v":0.44999999999999996,"d":"0.45"},{"v":0.38999999999999996,"d":"0.39"},0.6,0.6,85,0,{"$f":"ROUND(Primes!$O$10*V4361,2)","v":0.45},0,{"v":8661.012020933522,"d":"8,661"},{"$f":"'BP Financier'!$E$44*(('BP Financier'!$C$22+'BP Financier'!$D$22+'BP Financier'!$E$22)/('BP Financier'!$C$16+'BP Financier'!$C$19+'BP Financier'!$D$16+'BP Financier'!$D$19+'BP Financier'!$E$16+'BP Financier'!$E$19+'BP Financier'!$C$22+'BP Financier'!$D$22+'BP Financier'!$E$22))*$V4361*X4361/(1-$W4361)","v":{"v":1102.4213613143233,"d":"1,102"}},{"$f":"'BP Financier'!$E$44*(('BP Financier'!$C$22+'BP Financier'!$D$22+'BP Financier'!$E$22)/('BP Financier'!$C$16+'BP Financier'!$C$19+'BP Financier'!$D$16+'BP Financier'!$D$19+'BP Financier'!$E$16+'BP Financier'!$E$19+'BP Financier'!$C$22+'BP Financier'!$D$22+'BP Financier'!$E$22))*$V4361*Y4361/(1-$W4361)","v":{"v":736.9778161272546,"d":"737"}},{"$f":"'BP Financier'!$E$44*(('BP Financier'!$C$22+'BP Financier'!$D$22+'BP Financier'!$E$22)/('BP Financier'!$C$16+'BP Financier'!$C$19+'BP Financier'!$D$16+'BP Financier'!$D$19+'BP Financier'!$E$16+'BP Financier'!$E$19+'BP Financier'!$C$22+'BP Financier'!$D$22+'BP Financier'!$E$22))*$V4361*Z4361/(1-$W4361)","v":{"v":5767.917288202564,"d":"5,768"}},{"$f":"'BP Financier'!$E$44*(('BP Financier'!$C$22+'BP Financier'!$D$22+'BP Financier'!$E$22)/('BP Financier'!$C$16+'BP Financier'!$C$19+'BP Financier'!$D$16+'BP Financier'!$D$19+'BP Financier'!$E$16+'BP Financier'!$E$19+'BP Financier'!$C$22+'BP Financier'!$D$22+'BP Financier'!$E$22))*$V4361*AA4361/(1-$W4361)","v":{"v":712.6149131147836,"d":"713"}},{"$f":"'BP Financier'!$E$44*(('BP Financier'!$C$22+'BP Financier'!$D$22+'BP Financier'!$E$22)/('BP Financier'!$C$16+'BP Financier'!$C$19+'BP Financier'!$D$16+'BP Financier'!$D$19+'BP Financier'!$E$16+'BP Financier'!$E$19+'BP Financier'!$C$22+'BP Financier'!$D$22+'BP Financier'!$E$22))*$V4361*AB4361/(1-$W4361)","v":{"v":341.0806421745972,"d":"341"}},null,{"v":0.01,"d":"1.00%"},{"$f":"Actif!$E$28/100","v":{"v":0.28900000000000003,"d":"28.90%"}},{"$f":"Actif!$E$30/100","v":{"v":0.09050000000000001,"d":"9.05%"}},{"$f":"Actif!$E$31/100","v":{"v":0.0605,"d":"6.05%"}},{"$f":"Actif!$E$32/100","v":{"v":0.47350000000000003,"d":"47.35%"}},{"$f":"Actif!$E$33/100","v":{"v":0.0585,"d":"5.85%"}},{"$f":"Actif!$E$29/100","v":{"v":0.027999999999999997,"d":"2.80%"}}]
[null,"#261",51,2029,"H","A_CAPI",{"v":0.44999999999999996,"d":"0.45"},{"v":0.38999999999999996,"d":"0.39"},0.6,0.6,85,0,{"$f":"ROUND(Primes!$O$10*V4362,2)","v":0.45},0,{"v":8661.012020933522,"d":"8,661"},{"$f":"'BP Financier'!$E$44*(('BP Financier'!$C$22+'BP Financier'!$D$22+'BP Financier'!$E$22)/('BP Financier'!$C$16+'BP Financier'!$C$19+'BP Financier'!$D$16+'BP Financier'!$D$19+'BP Financier'!$E$16+'BP Financier'!$E$19+'BP Financier'!$C$22+'BP Financier'!$D$22+'BP Financier'!$E$22))*$V4362*X4362/(1-$W4362)","v":{"v":1102.4213613143233,"d":"1,102"}},{"$f":"'BP Financier'!$E$44*(('BP Financier'!$C$22+'BP Financier'!$D$22+'BP Financier'!$E$22)/('BP Financier'!$C$16+'BP Financier'!$C$19+'BP Financier'!$D$16+'BP Financier'!$D$19+'BP Financier'!$E$16+'BP Financier'!$E$19+'BP Financier'!$C$22+'BP Financier'!$D$22+'BP Financier'!$E$22))*$V4362*Y4362/(1-$W4362)","v":{"v":736.9778161272546,"d":"737"}},{"$f":"'BP Financier'!$E$44*(('BP Financier'!$C$22+'BP Financier'!$D$22+'BP Financier'!$E$22)/('BP Financier'!$C$16+'BP Financier'!$C$19+'BP Financier'!$D$16+'BP Financier'!$D$19+'BP Financier'!$E$16+'BP Financier'!$E$19+'BP Financier'!$C$22+'BP Financier'!$D$22+'BP Financier'!$E$22))*$V4362*Z4362/(1-$W4362)","v":{"v":5767.917288202564,"d":"5,768"}},{"$f":"'BP Financier'!$E$44*(('BP Financier'!$C$22+'BP Financier'!$D$22+'BP Financier'!$E$22)/('BP Financier'!$C$16+'BP Financier'!$C$19+'BP Financier'!$D$16+'BP Financier'!$D$19+'BP Financier'!$E$16+'BP Financier'!$E$19+'BP Financier'!$C$22+'BP Financier'!$D$22+'BP Financier'!$E$22))*$V4362*AA4362/(1-$W4362)","v":{"v":712.6149131147836,"d":"713"}},{"$f":"'BP Financier'!$E$44*(('BP Financier'!$C$22+'BP Financier'!$D$22+'BP Financier'!$E$22)/('BP Financier'!$C$16+'BP Financier'!$C$19+'BP Financier'!$D$16+'BP Financier'!$D$19+'BP Financier'!$E$16+'BP Financier'!$E$19+'BP Financier'!$C$22+'BP Financier'!$D$22+'BP Financier'!$E$22))*$V4362*AB4362/(1-$W4362)","v":{"v":341.0806421745972,"d":"341"}},null,{"v":0.01,"d":"1.00%"},{"$f":"Actif!$E$28/100","v":{"v":0.28900000000000003,"d":"28.90%"}},{"$f":"Actif!$E$30/100","v":{"v":0.09050000000000001,"d":"9.05%"}},{"$f":"Actif!$E$31/100","v":{"v":0.0605,"d":"6.05%"}},{"$f":"Actif!$E$32/100","v":{"v":0.47350000000000003,"d":"47.35%"}},{"$f":"Actif!$E$33/100","v":{"v":0.0585,"d":"5.85%"}},{"$f":"Actif!$E$29/100","v":{"v":0.027999999999999997,"d":"2.80%"}}]
[null,"#262",52,2026,"H","A_CAPI",{"v":0.44999999999999996,"d":"0.45"},{"v":0.38999999999999996,"d":"0.39"},0.6,0.6,85,0,{"$f":"ROUND(Primes!$O$10*V4363,2)","v":0.45},0,{"v":8661.012020933522,"d":"8,661"},{"$f":"'BP Financier'!$E$44*(('BP Financier'!$C$22+'BP Financier'!$D$22+'BP Financier'!$E$22)/('BP Financier'!$C$16+'BP Financier'!$C$19+'BP Financier'!$D$16+'BP Financier'!$D$19+'BP Financier'!$E$16+'BP Financier'!$E$19+'BP Financier'!$C$22+'BP Financier'!$D$22+'BP Financier'!$E$22))*$V4363*X4363/(1-$W4363)","v":{"v":1102.4213613143233,"d":"1,102"}},{"$f":"'BP Financier'!$E$44*(('BP Financier'!$C$22+'BP Financier'!$D$22+'BP Financier'!$E$22)/('BP Financier'!$C$16+'BP Financier'!$C$19+'BP Financier'!$D$16+'BP Financier'!$D$19+'BP Financier'!$E$16+'BP Financier'!$E$19+'BP Financier'!$C$22+'BP Financier'!$D$22+'BP Financier'!$E$22))*$V4363*Y4363/(1-$W4363)","v":{"v":736.9778161272546,"d":"737"}},{"$f":"'BP Financier'!$E$44*(('BP Financier'!$C$22+'BP Financier'!$D$22+'BP Financier'!$E$22)/('BP Financier'!$C$16+'BP Financier'!$C$19+'BP Financier'!$D$16+'BP Financier'!$D$19+'BP Financier'!$E$16+'BP Financier'!$E$19+'BP Financier'!$C$22+'BP Financier'!$D$22+'BP Financier'!$E$22))*$V4363*Z4363/(1-$W4363)","v":{"v":5767.917288202564,"d":"5,768"}},{"$f":"'BP Financier'!$E$44*(('BP Financier'!$C$22+'BP Financier'!$D$22+'BP Financier'!$E$22)/('BP Financier'!$C$16+'BP Financier'!$C$19+'BP Financier'!$D$16+'BP Financier'!$D$19+'BP Financier'!$E$16+'BP Financier'!$E$19+'BP Financier'!$C$22+'BP Financier'!$D$22+'BP Financier'!$E$22))*$V4363*AA4363/(1-$W4363)","v":{"v":712.6149131147836,"d":"713"}},{"$f":"'BP Financier'!$E$44*(('BP Financier'!$C$22+'BP Financier'!$D$22+'BP Financier'!$E$22)/('BP Financier'!$C$16+'BP Financier'!$C$19+'BP Financier'!$D$16+'BP Financier'!$D$19+'BP Financier'!$E$16+'BP Financier'!$E$19+'BP Financier'!$C$22+'BP Financier'!$D$22+'BP Financier'!$E$22))*$V4363*AB4363/(1-$W4363)","v":{"v":341.0806421745972,"d":"341"}},null,{"v":0.01,"d":"1.00%"},{"$f":"Actif!$E$28/100","v":{"v":0.28900000000000003,"d":"28.90%"}},{"$f":"Actif!$E$30/100","v":{"v":0.09050000000000001,"d":"9.05%"}},{"$f":"Actif!$E$31/100","v":{"v":0.0605,"d":"6.05%"}},{"$f":"Actif!$E$32/100","v":{"v":0.47350000000000003,"d":"47.35%"}},{"$f":"Actif!$E$33/100","v":{"v":0.0585,"d":"5.85%"}},{"$f":"Actif!$E$29/100","v":{"v":0.027999999999999997,"d":"2.80%"}}]
[null,"#263",52,2028,"H","A_CAPI",{"v":0.44999999999999996,"d":"0.45"},{"v":0.38999999999999996,"d":"0.39"},0.6,0.6,85,0,{"$f":"ROUND(Primes!$O$10*V4364,2)","v":0.45},0,{"v":8661.012020933522,"d":"8,661"},{"$f":"'BP Financier'!$E$44*(('BP Financier'!$C$22+'BP Financier'!$D$22+'BP Financier'!$E$22)/('BP Financier'!$C$16+'BP Financier'!$C$19+'BP Financier'!$D$16+'BP Financier'!$D$19+'BP Financier'!$E$16+'BP Financier'!$E$19+'BP Financier'!$C$22+'BP Financier'!$D$22+'BP Financier'!$E$22))*$V4364*X4364/(1-$W4364)","v":{"v":1102.4213613143233,"d":"1,102"}},{"$f":"'BP Financier'!$E$44*(('BP Financier'!$C$22+'BP Financier'!$D$22+'BP Financier'!$E$22)/('BP Financier'!$C$16+'BP Financier'!$C$19+'BP Financier'!$D$16+'BP Financier'!$D$19+'BP Financier'!$E$16+'BP Financier'!$E$19+'BP Financier'!$C$22+'BP Financier'!$D$22+'BP Financier'!$E$22))*$V4364*Y4364/(1-$W4364)","v":{"v":736.9778161272546,"d":"737"}},{"$f":"'BP Financier'!$E$44*(('BP Financier'!$C$22+'BP Financier'!$D$22+'BP Financier'!$E$22)/('BP Financier'!$C$16+'BP Financier'!$C$19+'BP Financier'!$D$16+'BP Financier'!$D$19+'BP Financier'!$E$16+'BP Financier'!$E$19+'BP Financier'!$C$22+'BP Financier'!$D$22+'BP Financier'!$E$22))*$V4364*Z4364/(1-$W4364)","v":{"v":5767.917288202564,"d":"5,768"}},{"$f":"'BP Financier'!$E$44*(('BP Financier'!$C$22+'BP Financier'!$D$22+'BP Financier'!$E$22)/('BP Financier'!$C$16+'BP Financier'!$C$19+'BP Financier'!$D$16+'BP Financier'!$D$19+'BP Financier'!$E$16+'BP Financier'!$E$19+'BP Financier'!$C$22+'BP Financier'!$D$22+'BP Financier'!$E$22))*$V4364*AA4364/(1-$W4364)","v":{"v":712.6149131147836,"d":"713"}},{"$f":"'BP Financier'!$E$44*(('BP Financier'!$C$22+'BP Financier'!$D$22+'BP Financier'!$E$22)/('BP Financier'!$C$16+'BP Financier'!$C$19+'BP Financier'!$D$16+'BP Financier'!$D$19+'BP Financier'!$E$16+'BP Financier'!$E$19+'BP Financier'!$C$22+'BP Financier'!$D$22+'BP Financier'!$E$22))*$V4364*AB4364/(1-$W4364)","v":{"v":341.0806421745972,"d":"341"}},null,{"v":0.01,"d":"1.00%"},{"$f":"Actif!$E$28/100","v":{"v":0.28900000000000003,"d":"28.90%"}},{"$f":"Actif!$E$30/100","v":{"v":0.09050000000000001,"d":"9.05%"}},{"$f":"Actif!$E$31/100","v":{"v":0.0605,"d":"6.05%"}},{"$f":"Actif!$E$32/100","v":{"v":0.47350000000000003,"d":"47.35%"}},{"$f":"Actif!$E$33/100","v":{"v":0.0585,"d":"5.85%"}},{"$f":"Actif!$E$29/100","v":{"v":0.027999999999999997,"d":"2.80%"}}]
[null,"#264",52,2029,"H","A_CAPI",{"v":0.44999999999999996,"d":"0.45"},{"v":0.38999999999999996,"d":"0.39"},0.6,0.6,85,0,{"$f":"ROUND(Primes!$O$10*V4365,2)","v":0.45},0,{"v":8661.012020933522,"d":"8,661"},{"$f":"'BP Financier'!$E$44*(('BP Financier'!$C$22+'BP Financier'!$D$22+'BP Financier'!$E$22)/('BP Financier'!$C$16+'BP Financier'!$C$19+'BP Financier'!$D$16+'BP Financier'!$D$19+'BP Financier'!$E$16+'BP Financier'!$E$19+'BP Financier'!$C$22+'BP Financier'!$D$22+'BP Financier'!$E$22))*$V4365*X4365/(1-$W4365)","v":{"v":1102.4213613143233,"d":"1,102"}},{"$f":"'BP Financier'!$E$44*(('BP Financier'!$C$22+'BP Financier'!$D$22+'BP Financier'!$E$22)/('BP Financier'!$C$16+'BP Financier'!$C$19+'BP Financier'!$D$16+'BP Financier'!$D$19+'BP Financier'!$E$16+'BP Financier'!$E$19+'BP Financier'!$C$22+'BP Financier'!$D$22+'BP Financier'!$E$22))*$V4365*Y4365/(1-$W4365)","v":{"v":736.9778161272546,"d":"737"}},{"$f":"'BP Financier'!$E$44*(('BP Financier'!$C$22+'BP Financier'!$D$22+'BP Financier'!$E$22)/('BP Financier'!$C$16+'BP Financier'!$C$19+'BP Financier'!$D$16+'BP Financier'!$D$19+'BP Financier'!$E$16+'BP Financier'!$E$19+'BP Financier'!$C$22+'BP Financier'!$D$22+'BP Financier'!$E$22))*$V4365*Z4365/(1-$W4365)","v":{"v":5767.917288202564,"d":"5,768"}},{"$f":"'BP Financier'!$E$44*(('BP Financier'!$C$22+'BP Financier'!$D$22+'BP Financier'!$E$22)/('BP Financier'!$C$16+'BP Financier'!$C$19+'BP Financier'!$D$16+'BP Financier'!$D$19+'BP Financier'!$E$16+'BP Financier'!$E$19+'BP Financier'!$C$22+'BP Financier'!$D$22+'BP Financier'!$E$22))*$V4365*AA4365/(1-$W4365)","v":{"v":712.6149131147836,"d":"713"}},{"$f":"'BP Financier'!$E$44*(('BP Financier'!$C$22+'BP Financier'!$D$22+'BP Financier'!$E$22)/('BP Financier'!$C$16+'BP Financier'!$C$19+'BP Financier'!$D$16+'BP Financier'!$D$19+'BP Financier'!$E$16+'BP Financier'!$E$19+'BP Financier'!$C$22+'BP Financier'!$D$22+'BP Financier'!$E$22))*$V4365*AB4365/(1-$W4365)","v":{"v":341.0806421745972,"d":"341"}},null,{"v":0.01,"d":"1.00%"},{"$f":"Actif!$E$28/100","v":{"v":0.28900000000000003,"d":"28.90%"}},{"$f":"Actif!$E$30/100","v":{"v":0.09050000000000001,"d":"9.05%"}},{"$f":"Actif!$E$31/100","v":{"v":0.0605,"d":"6.05%"}},{"$f":"Actif!$E$32/100","v":{"v":0.47350000000000003,"d":"47.35%"}},{"$f":"Actif!$E$33/100","v":{"v":0.0585,"d":"5.85%"}},{"$f":"Actif!$E$29/100","v":{"v":0.027999999999999997,"d":"2.80%"}}]
[null,"#265",53,2026,"F","A_CAPI",{"v":0.44999999999999996,"d":"0.45"},{"v":0.38999999999999996,"d":"0.39"},0.6,0.6,85,0,{"$f":"ROUND(Primes!$O$10*V4366,2)","v":0.45},0,{"v":8661.012020933522,"d":"8,661"},{"$f":"'BP Financier'!$E$44*(('BP Financier'!$C$22+'BP Financier'!$D$22+'BP Financier'!$E$22)/('BP Financier'!$C$16+'BP Financier'!$C$19+'BP Financier'!$D$16+'BP Financier'!$D$19+'BP Financier'!$E$16+'BP Financier'!$E$19+'BP Financier'!$C$22+'BP Financier'!$D$22+'BP Financier'!$E$22))*$V4366*X4366/(1-$W4366)","v":{"v":1102.4213613143233,"d":"1,102"}},{"$f":"'BP Financier'!$E$44*(('BP Financier'!$C$22+'BP Financier'!$D$22+'BP Financier'!$E$22)/('BP Financier'!$C$16+'BP Financier'!$C$19+'BP Financier'!$D$16+'BP Financier'!$D$19+'BP Financier'!$E$16+'BP Financier'!$E$19+'BP Financier'!$C$22+'BP Financier'!$D$22+'BP Financier'!$E$22))*$V4366*Y4366/(1-$W4366)","v":{"v":736.9778161272546,"d":"737"}},{"$f":"'BP Financier'!$E$44*(('BP Financier'!$C$22+'BP Financier'!$D$22+'BP Financier'!$E$22)/('BP Financier'!$C$16+'BP Financier'!$C$19+'BP Financier'!$D$16+'BP Financier'!$D$19+'BP Financier'!$E$16+'BP Financier'!$E$19+'BP Financier'!$C$22+'BP Financier'!$D$22+'BP Financier'!$E$22))*$V4366*Z4366/(1-$W4366)","v":{"v":5767.917288202564,"d":"5,768"}},{"$f":"'BP Financier'!$E$44*(('BP Financier'!$C$22+'BP Financier'!$D$22+'BP Financier'!$E$22)/('BP Financier'!$C$16+'BP Financier'!$C$19+'BP Financier'!$D$16+'BP Financier'!$D$19+'BP Financier'!$E$16+'BP Financier'!$E$19+'BP Financier'!$C$22+'BP Financier'!$D$22+'BP Financier'!$E$22))*$V4366*AA4366/(1-$W4366)","v":{"v":712.6149131147836,"d":"713"}},{"$f":"'BP Financier'!$E$44*(('BP Financier'!$C$22+'BP Financier'!$D$22+'BP Financier'!$E$22)/('BP Financier'!$C$16+'BP Financier'!$C$19+'BP Financier'!$D$16+'BP Financier'!$D$19+'BP Financier'!$E$16+'BP Financier'!$E$19+'BP Financier'!$C$22+'BP Financier'!$D$22+'BP Financier'!$E$22))*$V4366*AB4366/(1-$W4366)","v":{"v":341.0806421745972,"d":"341"}},null,{"v":0.01,"d":"1.00%"},{"$f":"Actif!$E$28/100","v":{"v":0.28900000000000003,"d":"28.90%"}},{"$f":"Actif!$E$30/100","v":{"v":0.09050000000000001,"d":"9.05%"}},{"$f":"Actif!$E$31/100","v":{"v":0.0605,"d":"6.05%"}},{"$f":"Actif!$E$32/100","v":{"v":0.47350000000000003,"d":"47.35%"}},{"$f":"Actif!$E$33/100","v":{"v":0.0585,"d":"5.85%"}},{"$f":"Actif!$E$29/100","v":{"v":0.027999999999999997,"d":"2.80%"}}]
[null,"#266",53,2028,"F","A_CAPI",{"v":0.44999999999999996,"d":"0.45"},{"v":0.38999999999999996,"d":"0.39"},0.6,0.6,85,0,{"$f":"ROUND(Primes!$O$10*V4367,2)","v":0.45},0,{"v":8661.012020933522,"d":"8,661"},{"$f":"'BP Financier'!$E$44*(('BP Financier'!$C$22+'BP Financier'!$D$22+'BP Financier'!$E$22)/('BP Financier'!$C$16+'BP Financier'!$C$19+'BP Financier'!$D$16+'BP Financier'!$D$19+'BP Financier'!$E$16+'BP Financier'!$E$19+'BP Financier'!$C$22+'BP Financier'!$D$22+'BP Financier'!$E$22))*$V4367*X4367/(1-$W4367)","v":{"v":1102.4213613143233,"d":"1,102"}},{"$f":"'BP Financier'!$E$44*(('BP Financier'!$C$22+'BP Financier'!$D$22+'BP Financier'!$E$22)/('BP Financier'!$C$16+'BP Financier'!$C$19+'BP Financier'!$D$16+'BP Financier'!$D$19+'BP Financier'!$E$16+'BP Financier'!$E$19+'BP Financier'!$C$22+'BP Financier'!$D$22+'BP Financier'!$E$22))*$V4367*Y4367/(1-$W4367)","v":{"v":736.9778161272546,"d":"737"}},{"$f":"'BP Financier'!$E$44*(('BP Financier'!$C$22+'BP Financier'!$D$22+'BP Financier'!$E$22)/('BP Financier'!$C$16+'BP Financier'!$C$19+'BP Financier'!$D$16+'BP Financier'!$D$19+'BP Financier'!$E$16+'BP Financier'!$E$19+'BP Financier'!$C$22+'BP Financier'!$D$22+'BP Financier'!$E$22))*$V4367*Z4367/(1-$W4367)","v":{"v":5767.917288202564,"d":"5,768"}},{"$f":"'BP Financier'!$E$44*(('BP Financier'!$C$22+'BP Financier'!$D$22+'BP Financier'!$E$22)/('BP Financier'!$C$16+'BP Financier'!$C$19+'BP Financier'!$D$16+'BP Financier'!$D$19+'BP Financier'!$E$16+'BP Financier'!$E$19+'BP Financier'!$C$22+'BP Financier'!$D$22+'BP Financier'!$E$22))*$V4367*AA4367/(1-$W4367)","v":{"v":712.6149131147836,"d":"713"}},{"$f":"'BP Financier'!$E$44*(('BP Financier'!$C$22+'BP Financier'!$D$22+'BP Financier'!$E$22)/('BP Financier'!$C$16+'BP Financier'!$C$19+'BP Financier'!$D$16+'BP Financier'!$D$19+'BP Financier'!$E$16+'BP Financier'!$E$19+'BP Financier'!$C$22+'BP Financier'!$D$22+'BP Financier'!$E$22))*$V4367*AB4367/(1-$W4367)","v":{"v":341.0806421745972,"d":"341"}},null,{"v":0.01,"d":"1.00%"},{"$f":"Actif!$E$28/100","v":{"v":0.28900000000000003,"d":"28.90%"}},{"$f":"Actif!$E$30/100","v":{"v":0.09050000000000001,"d":"9.05%"}},{"$f":"Actif!$E$31/100","v":{"v":0.0605,"d":"6.05%"}},{"$f":"Actif!$E$32/100","v":{"v":0.47350000000000003,"d":"47.35%"}},{"$f":"Actif!$E$33/100","v":{"v":0.0585,"d":"5.85%"}},{"$f":"Actif!$E$29/100","v":{"v":0.027999999999999997,"d":"2.80%"}}]
[null,"#267",53,2029,"F","A_CAPI",{"v":0.44999999999999996,"d":"0.45"},{"v":0.38999999999999996,"d":"0.39"},0.6,0.6,85,0,{"$f":"ROUND(Primes!$O$10*V4368,2)","v":0.45},0,{"v":8661.012020933522,"d":"8,661"},{"$f":"'BP Financier'!$E$44*(('BP Financier'!$C$22+'BP Financier'!$D$22+'BP Financier'!$E$22)/('BP Financier'!$C$16+'BP Financier'!$C$19+'BP Financier'!$D$16+'BP Financier'!$D$19+'BP Financier'!$E$16+'BP Financier'!$E$19+'BP Financier'!$C$22+'BP Financier'!$D$22+'BP Financier'!$E$22))*$V4368*X4368/(1-$W4368)","v":{"v":1102.4213613143233,"d":"1,102"}},{"$f":"'BP Financier'!$E$44*(('BP Financier'!$C$22+'BP Financier'!$D$22+'BP Financier'!$E$22)/('BP Financier'!$C$16+'BP Financier'!$C$19+'BP Financier'!$D$16+'BP Financier'!$D$19+'BP Financier'!$E$16+'BP Financier'!$E$19+'BP Financier'!$C$22+'BP Financier'!$D$22+'BP Financier'!$E$22))*$V4368*Y4368/(1-$W4368)","v":{"v":736.9778161272546,"d":"737"}},{"$f":"'BP Financier'!$E$44*(('BP Financier'!$C$22+'BP Financier'!$D$22+'BP Financier'!$E$22)/('BP Financier'!$C$16+'BP Financier'!$C$19+'BP Financier'!$D$16+'BP Financier'!$D$19+'BP Financier'!$E$16+'BP Financier'!$E$19+'BP Financier'!$C$22+'BP Financier'!$D$22+'BP Financier'!$E$22))*$V4368*Z4368/(1-$W4368)","v":{"v":5767.917288202564,"d":"5,768"}},{"$f":"'BP Financier'!$E$44*(('BP Financier'!$C$22+'BP Financier'!$D$22+'BP Financier'!$E$22)/('BP Financier'!$C$16+'BP Financier'!$C$19+'BP Financier'!$D$16+'BP Financier'!$D$19+'BP Financier'!$E$16+'BP Financier'!$E$19+'BP Financier'!$C$22+'BP Financier'!$D$22+'BP Financier'!$E$22))*$V4368*AA4368/(1-$W4368)","v":{"v":712.6149131147836,"d":"713"}},{"$f":"'BP Financier'!$E$44*(('BP Financier'!$C$22+'BP Financier'!$D$22+'BP Financier'!$E$22)/('BP Financier'!$C$16+'BP Financier'!$C$19+'BP Financier'!$D$16+'BP Financier'!$D$19+'BP Financier'!$E$16+'BP Financier'!$E$19+'BP Financier'!$C$22+'BP Financier'!$D$22+'BP Financier'!$E$22))*$V4368*AB4368/(1-$W4368)","v":{"v":341.0806421745972,"d":"341"}},null,{"v":0.01,"d":"1.00%"},{"$f":"Actif!$E$28/100","v":{"v":0.28900000000000003,"d":"28.90%"}},{"$f":"Actif!$E$30/100","v":{"v":0.09050000000000001,"d":"9.05%"}},{"$f":"Actif!$E$31/100","v":{"v":0.0605,"d":"6.05%"}},{"$f":"Actif!$E$32/100","v":{"v":0.47350000000000003,"d":"47.35%"}},{"$f":"Actif!$E$33/100","v":{"v":0.0585,"d":"5.85%"}},{"$f":"Actif!$E$29/100","v":{"v":0.027999999999999997,"d":"2.80%"}}]
[null,"#268",54,2026,"H","A_CAPI",{"v":0.44999999999999996,"d":"0.45"},{"v":0.38999999999999996,"d":"0.39"},0.6,0.6,85,0,{"$f":"ROUND(Primes!$O$10*V4369,2)","v":0.45},0,{"v":8661.012020933522,"d":"8,661"},{"$f":"'BP Financier'!$E$44*(('BP Financier'!$C$22+'BP Financier'!$D$22+'BP Financier'!$E$22)/('BP Financier'!$C$16+'BP Financier'!$C$19+'BP Financier'!$D$16+'BP Financier'!$D$19+'BP Financier'!$E$16+'BP Financier'!$E$19+'BP Financier'!$C$22+'BP Financier'!$D$22+'BP Financier'!$E$22))*$V4369*X4369/(1-$W4369)","v":{"v":1102.4213613143233,"d":"1,102"}},{"$f":"'BP Financier'!$E$44*(('BP Financier'!$C$22+'BP Financier'!$D$22+'BP Financier'!$E$22)/('BP Financier'!$C$16+'BP Financier'!$C$19+'BP Financier'!$D$16+'BP Financier'!$D$19+'BP Financier'!$E$16+'BP Financier'!$E$19+'BP Financier'!$C$22+'BP Financier'!$D$22+'BP Financier'!$E$22))*$V4369*Y4369/(1-$W4369)","v":{"v":736.9778161272546,"d":"737"}},{"$f":"'BP Financier'!$E$44*(('BP Financier'!$C$22+'BP Financier'!$D$22+'BP Financier'!$E$22)/('BP Financier'!$C$16+'BP Financier'!$C$19+'BP Financier'!$D$16+'BP Financier'!$D$19+'BP Financier'!$E$16+'BP Financier'!$E$19+'BP Financier'!$C$22+'BP Financier'!$D$22+'BP Financier'!$E$22))*$V4369*Z4369/(1-$W4369)","v":{"v":5767.917288202564,"d":"5,768"}},{"$f":"'BP Financier'!$E$44*(('BP Financier'!$C$22+'BP Financier'!$D$22+'BP Financier'!$E$22)/('BP Financier'!$C$16+'BP Financier'!$C$19+'BP Financier'!$D$16+'BP Financier'!$D$19+'BP Financier'!$E$16+'BP Financier'!$E$19+'BP Financier'!$C$22+'BP Financier'!$D$22+'BP Financier'!$E$22))*$V4369*AA4369/(1-$W4369)","v":{"v":712.6149131147836,"d":"713"}},{"$f":"'BP Financier'!$E$44*(('BP Financier'!$C$22+'BP Financier'!$D$22+'BP Financier'!$E$22)/('BP Financier'!$C$16+'BP Financier'!$C$19+'BP Financier'!$D$16+'BP Financier'!$D$19+'BP Financier'!$E$16+'BP Financier'!$E$19+'BP Financier'!$C$22+'BP Financier'!$D$22+'BP Financier'!$E$22))*$V4369*AB4369/(1-$W4369)","v":{"v":341.0806421745972,"d":"341"}},null,{"v":0.01,"d":"1.00%"},{"$f":"Actif!$E$28/100","v":{"v":0.28900000000000003,"d":"28.90%"}},{"$f":"Actif!$E$30/100","v":{"v":0.09050000000000001,"d":"9.05%"}},{"$f":"Actif!$E$31/100","v":{"v":0.0605,"d":"6.05%"}},{"$f":"Actif!$E$32/100","v":{"v":0.47350000000000003,"d":"47.35%"}},{"$f":"Actif!$E$33/100","v":{"v":0.0585,"d":"5.85%"}},{"$f":"Actif!$E$29/100","v":{"v":0.027999999999999997,"d":"2.80%"}}]
[null,"#269",54,2028,"H","A_CAPI",{"v":0.44999999999999996,"d":"0.45"},{"v":0.38999999999999996,"d":"0.39"},0.6,0.6,85,0,{"$f":"ROUND(Primes!$O$10*V4370,2)","v":0.45},0,{"v":8661.012020933522,"d":"8,661"},{"$f":"'BP Financier'!$E$44*(('BP Financier'!$C$22+'BP Financier'!$D$22+'BP Financier'!$E$22)/('BP Financier'!$C$16+'BP Financier'!$C$19+'BP Financier'!$D$16+'BP Financier'!$D$19+'BP Financier'!$E$16+'BP Financier'!$E$19+'BP Financier'!$C$22+'BP Financier'!$D$22+'BP Financier'!$E$22))*$V4370*X4370/(1-$W4370)","v":{"v":1102.4213613143233,"d":"1,102"}},{"$f":"'BP Financier'!$E$44*(('BP Financier'!$C$22+'BP Financier'!$D$22+'BP Financier'!$E$22)/('BP Financier'!$C$16+'BP Financier'!$C$19+'BP Financier'!$D$16+'BP Financier'!$D$19+'BP Financier'!$E$16+'BP Financier'!$E$19+'BP Financier'!$C$22+'BP Financier'!$D$22+'BP Financier'!$E$22))*$V4370*Y4370/(1-$W4370)","v":{"v":736.9778161272546,"d":"737"}},{"$f":"'BP Financier'!$E$44*(('BP Financier'!$C$22+'BP Financier'!$D$22+'BP Financier'!$E$22)/('BP Financier'!$C$16+'BP Financier'!$C$19+'BP Financier'!$D$16+'BP Financier'!$D$19+'BP Financier'!$E$16+'BP Financier'!$E$19+'BP Financier'!$C$22+'BP Financier'!$D$22+'BP Financier'!$E$22))*$V4370*Z4370/(1-$W4370)","v":{"v":5767.917288202564,"d":"5,768"}},{"$f":"'BP Financier'!$E$44*(('BP Financier'!$C$22+'BP Financier'!$D$22+'BP Financier'!$E$22)/('BP Financier'!$C$16+'BP Financier'!$C$19+'BP Financier'!$D$16+'BP Financier'!$D$19+'BP Financier'!$E$16+'BP Financier'!$E$19+'BP Financier'!$C$22+'BP Financier'!$D$22+'BP Financier'!$E$22))*$V4370*AA4370/(1-$W4370)","v":{"v":712.6149131147836,"d":"713"}},{"$f":"'BP Financier'!$E$44*(('BP Financier'!$C$22+'BP Financier'!$D$22+'BP Financier'!$E$22)/('BP Financier'!$C$16+'BP Financier'!$C$19+'BP Financier'!$D$16+'BP Financier'!$D$19+'BP Financier'!$E$16+'BP Financier'!$E$19+'BP Financier'!$C$22+'BP Financier'!$D$22+'BP Financier'!$E$22))*$V4370*AB4370/(1-$W4370)","v":{"v":341.0806421745972,"d":"341"}},null,{"v":0.01,"d":"1.00%"},{"$f":"Actif!$E$28/100","v":{"v":0.28900000000000003,"d":"28.90%"}},{"$f":"Actif!$E$30/100","v":{"v":0.09050000000000001,"d":"9.05%"}},{"$f":"Actif!$E$31/100","v":{"v":0.0605,"d":"6.05%"}},{"$f":"Actif!$E$32/100","v":{"v":0.47350000000000003,"d":"47.35%"}},{"$f":"Actif!$E$33/100","v":{"v":0.0585,"d":"5.85%"}},{"$f":"Actif!$E$29/100","v":{"v":0.027999999999999997,"d":"2.80%"}}]
[null,"#270",54,2029,"H","A_CAPI",{"v":0.44999999999999996,"d":"0.45"},{"v":0.38999999999999996,"d":"0.39"},0.6,0.6,85,0,{"$f":"ROUND(Primes!$O$10*V4371,2)","v":0.45},0,{"v":8661.012020933522,"d":"8,661"},{"$f":"'BP Financier'!$E$44*(('BP Financier'!$C$22+'BP Financier'!$D$22+'BP Financier'!$E$22)/('BP Financier'!$C$16+'BP Financier'!$C$19+'BP Financier'!$D$16+'BP Financier'!$D$19+'BP Financier'!$E$16+'BP Financier'!$E$19+'BP Financier'!$C$22+'BP Financier'!$D$22+'BP Financier'!$E$22))*$V4371*X4371/(1-$W4371)","v":{"v":1102.4213613143233,"d":"1,102"}},{"$f":"'BP Financier'!$E$44*(('BP Financier'!$C$22+'BP Financier'!$D$22+'BP Financier'!$E$22)/('BP Financier'!$C$16+'BP Financier'!$C$19+'BP Financier'!$D$16+'BP Financier'!$D$19+'BP Financier'!$E$16+'BP Financier'!$E$19+'BP Financier'!$C$22+'BP Financier'!$D$22+'BP Financier'!$E$22))*$V4371*Y4371/(1-$W4371)","v":{"v":736.9778161272546,"d":"737"}},{"$f":"'BP Financier'!$E$44*(('BP Financier'!$C$22+'BP Financier'!$D$22+'BP Financier'!$E$22)/('BP Financier'!$C$16+'BP Financier'!$C$19+'BP Financier'!$D$16+'BP Financier'!$D$19+'BP Financier'!$E$16+'BP Financier'!$E$19+'BP Financier'!$C$22+'BP Financier'!$D$22+'BP Financier'!$E$22))*$V4371*Z4371/(1-$W4371)","v":{"v":5767.917288202564,"d":"5,768"}},{"$f":"'BP Financier'!$E$44*(('BP Financier'!$C$22+'BP Financier'!$D$22+'BP Financier'!$E$22)/('BP Financier'!$C$16+'BP Financier'!$C$19+'BP Financier'!$D$16+'BP Financier'!$D$19+'BP Financier'!$E$16+'BP Financier'!$E$19+'BP Financier'!$C$22+'BP Financier'!$D$22+'BP Financier'!$E$22))*$V4371*AA4371/(1-$W4371)","v":{"v":712.6149131147836,"d":"713"}},{"$f":"'BP Financier'!$E$44*(('BP Financier'!$C$22+'BP Financier'!$D$22+'BP Financier'!$E$22)/('BP Financier'!$C$16+'BP Financier'!$C$19+'BP Financier'!$D$16+'BP Financier'!$D$19+'BP Financier'!$E$16+'BP Financier'!$E$19+'BP Financier'!$C$22+'BP Financier'!$D$22+'BP Financier'!$E$22))*$V4371*AB4371/(1-$W4371)","v":{"v":341.0806421745972,"d":"341"}},null,{"v":0.01,"d":"1.00%"},{"$f":"Actif!$E$28/100","v":{"v":0.28900000000000003,"d":"28.90%"}},{"$f":"Actif!$E$30/100","v":{"v":0.09050000000000001,"d":"9.05%"}},{"$f":"Actif!$E$31/100","v":{"v":0.0605,"d":"6.05%"}},{"$f":"Actif!$E$32/100","v":{"v":0.47350000000000003,"d":"47.35%"}},{"$f":"Actif!$E$33/100","v":{"v":0.0585,"d":"5.85%"}},{"$f":"Actif!$E$29/100","v":{"v":0.027999999999999997,"d":"2.80%"}}]
[null,"#271",55,2026,"H","A_CAPI",{"v":0.44999999999999996,"d":"0.45"},{"v":0.38999999999999996,"d":"0.39"},0.6,0.6,85,0,{"$f":"ROUND(Primes!$O$10*V4372,2)","v":0.45},0,{"v":8661.012020933522,"d":"8,661"},{"$f":"'BP Financier'!$E$44*(('BP Financier'!$C$22+'BP Financier'!$D$22+'BP Financier'!$E$22)/('BP Financier'!$C$16+'BP Financier'!$C$19+'BP Financier'!$D$16+'BP Financier'!$D$19+'BP Financier'!$E$16+'BP Financier'!$E$19+'BP Financier'!$C$22+'BP Financier'!$D$22+'BP Financier'!$E$22))*$V4372*X4372/(1-$W4372)","v":{"v":1102.4213613143233,"d":"1,102"}},{"$f":"'BP Financier'!$E$44*(('BP Financier'!$C$22+'BP Financier'!$D$22+'BP Financier'!$E$22)/('BP Financier'!$C$16+'BP Financier'!$C$19+'BP Financier'!$D$16+'BP Financier'!$D$19+'BP Financier'!$E$16+'BP Financier'!$E$19+'BP Financier'!$C$22+'BP Financier'!$D$22+'BP Financier'!$E$22))*$V4372*Y4372/(1-$W4372)","v":{"v":736.9778161272546,"d":"737"}},{"$f":"'BP Financier'!$E$44*(('BP Financier'!$C$22+'BP Financier'!$D$22+'BP Financier'!$E$22)/('BP Financier'!$C$16+'BP Financier'!$C$19+'BP Financier'!$D$16+'BP Financier'!$D$19+'BP Financier'!$E$16+'BP Financier'!$E$19+'BP Financier'!$C$22+'BP Financier'!$D$22+'BP Financier'!$E$22))*$V4372*Z4372/(1-$W4372)","v":{"v":5767.917288202564,"d":"5,768"}},{"$f":"'BP Financier'!$E$44*(('BP Financier'!$C$22+'BP Financier'!$D$22+'BP Financier'!$E$22)/('BP Financier'!$C$16+'BP Financier'!$C$19+'BP Financier'!$D$16+'BP Financier'!$D$19+'BP Financier'!$E$16+'BP Financier'!$E$19+'BP Financier'!$C$22+'BP Financier'!$D$22+'BP Financier'!$E$22))*$V4372*AA4372/(1-$W4372)","v":{"v":712.6149131147836,"d":"713"}},{"$f":"'BP Financier'!$E$44*(('BP Financier'!$C$22+'BP Financier'!$D$22+'BP Financier'!$E$22)/('BP Financier'!$C$16+'BP Financier'!$C$19+'BP Financier'!$D$16+'BP Financier'!$D$19+'BP Financier'!$E$16+'BP Financier'!$E$19+'BP Financier'!$C$22+'BP Financier'!$D$22+'BP Financier'!$E$22))*$V4372*AB4372/(1-$W4372)","v":{"v":341.0806421745972,"d":"341"}},null,{"v":0.01,"d":"1.00%"},{"$f":"Actif!$E$28/100","v":{"v":0.28900000000000003,"d":"28.90%"}},{"$f":"Actif!$E$30/100","v":{"v":0.09050000000000001,"d":"9.05%"}},{"$f":"Actif!$E$31/100","v":{"v":0.0605,"d":"6.05%"}},{"$f":"Actif!$E$32/100","v":{"v":0.47350000000000003,"d":"47.35%"}},{"$f":"Actif!$E$33/100","v":{"v":0.0585,"d":"5.85%"}},{"$f":"Actif!$E$29/100","v":{"v":0.027999999999999997,"d":"2.80%"}}]
[null,"#272",55,2028,"H","A_CAPI",{"v":0.44999999999999996,"d":"0.45"},{"v":0.38999999999999996,"d":"0.39"},0.6,0.6,85,0,{"$f":"ROUND(Primes!$O$10*V4373,2)","v":0.45},0,{"v":8661.012020933522,"d":"8,661"},{"$f":"'BP Financier'!$E$44*(('BP Financier'!$C$22+'BP Financier'!$D$22+'BP Financier'!$E$22)/('BP Financier'!$C$16+'BP Financier'!$C$19+'BP Financier'!$D$16+'BP Financier'!$D$19+'BP Financier'!$E$16+'BP Financier'!$E$19+'BP Financier'!$C$22+'BP Financier'!$D$22+'BP Financier'!$E$22))*$V4373*X4373/(1-$W4373)","v":{"v":1102.4213613143233,"d":"1,102"}},{"$f":"'BP Financier'!$E$44*(('BP Financier'!$C$22+'BP Financier'!$D$22+'BP Financier'!$E$22)/('BP Financier'!$C$16+'BP Financier'!$C$19+'BP Financier'!$D$16+'BP Financier'!$D$19+'BP Financier'!$E$16+'BP Financier'!$E$19+'BP Financier'!$C$22+'BP Financier'!$D$22+'BP Financier'!$E$22))*$V4373*Y4373/(1-$W4373)","v":{"v":736.9778161272546,"d":"737"}},{"$f":"'BP Financier'!$E$44*(('BP Financier'!$C$22+'BP Financier'!$D$22+'BP Financier'!$E$22)/('BP Financier'!$C$16+'BP Financier'!$C$19+'BP Financier'!$D$16+'BP Financier'!$D$19+'BP Financier'!$E$16+'BP Financier'!$E$19+'BP Financier'!$C$22+'BP Financier'!$D$22+'BP Financier'!$E$22))*$V4373*Z4373/(1-$W4373)","v":{"v":5767.917288202564,"d":"5,768"}},{"$f":"'BP Financier'!$E$44*(('BP Financier'!$C$22+'BP Financier'!$D$22+'BP Financier'!$E$22)/('BP Financier'!$C$16+'BP Financier'!$C$19+'BP Financier'!$D$16+'BP Financier'!$D$19+'BP Financier'!$E$16+'BP Financier'!$E$19+'BP Financier'!$C$22+'BP Financier'!$D$22+'BP Financier'!$E$22))*$V4373*AA4373/(1-$W4373)","v":{"v":712.6149131147836,"d":"713"}},{"$f":"'BP Financier'!$E$44*(('BP Financier'!$C$22+'BP Financier'!$D$22+'BP Financier'!$E$22)/('BP Financier'!$C$16+'BP Financier'!$C$19+'BP Financier'!$D$16+'BP Financier'!$D$19+'BP Financier'!$E$16+'BP Financier'!$E$19+'BP Financier'!$C$22+'BP Financier'!$D$22+'BP Financier'!$E$22))*$V4373*AB4373/(1-$W4373)","v":{"v":341.0806421745972,"d":"341"}},null,{"v":0.01,"d":"1.00%"},{"$f":"Actif!$E$28/100","v":{"v":0.28900000000000003,"d":"28.90%"}},{"$f":"Actif!$E$30/100","v":{"v":0.09050000000000001,"d":"9.05%"}},{"$f":"Actif!$E$31/100","v":{"v":0.0605,"d":"6.05%"}},{"$f":"Actif!$E$32/100","v":{"v":0.47350000000000003,"d":"47.35%"}},{"$f":"Actif!$E$33/100","v":{"v":0.0585,"d":"5.85%"}},{"$f":"Actif!$E$29/100","v":{"v":0.027999999999999997,"d":"2.80%"}}]
[null,"#273",55,2029,"H","A_CAPI",{"v":0.44999999999999996,"d":"0.45"},{"v":0.38999999999999996,"d":"0.39"},0.6,0.6,85,0,{"$f":"ROUND(Primes!$O$10*V4374,2)","v":0.45},0,{"v":8661.012020933522,"d":"8,661"},{"$f":"'BP Financier'!$E$44*(('BP Financier'!$C$22+'BP Financier'!$D$22+'BP Financier'!$E$22)/('BP Financier'!$C$16+'BP Financier'!$C$19+'BP Financier'!$D$16+'BP Financier'!$D$19+'BP Financier'!$E$16+'BP Financier'!$E$19+'BP Financier'!$C$22+'BP Financier'!$D$22+'BP Financier'!$E$22))*$V4374*X4374/(1-$W4374)","v":{"v":1102.4213613143233,"d":"1,102"}},{"$f":"'BP Financier'!$E$44*(('BP Financier'!$C$22+'BP Financier'!$D$22+'BP Financier'!$E$22)/('BP Financier'!$C$16+'BP Financier'!$C$19+'BP Financier'!$D$16+'BP Financier'!$D$19+'BP Financier'!$E$16+'BP Financier'!$E$19+'BP Financier'!$C$22+'BP Financier'!$D$22+'BP Financier'!$E$22))*$V4374*Y4374/(1-$W4374)","v":{"v":736.9778161272546,"d":"737"}},{"$f":"'BP Financier'!$E$44*(('BP Financier'!$C$22+'BP Financier'!$D$22+'BP Financier'!$E$22)/('BP Financier'!$C$16+'BP Financier'!$C$19+'BP Financier'!$D$16+'BP Financier'!$D$19+'BP Financier'!$E$16+'BP Financier'!$E$19+'BP Financier'!$C$22+'BP Financier'!$D$22+'BP Financier'!$E$22))*$V4374*Z4374/(1-$W4374)","v":{"v":5767.917288202564,"d":"5,768"}},{"$f":"'BP Financier'!$E$44*(('BP Financier'!$C$22+'BP Financier'!$D$22+'BP Financier'!$E$22)/('BP Financier'!$C$16+'BP Financier'!$C$19+'BP Financier'!$D$16+'BP Financier'!$D$19+'BP Financier'!$E$16+'BP Financier'!$E$19+'BP Financier'!$C$22+'BP Financier'!$D$22+'BP Financier'!$E$22))*$V4374*AA4374/(1-$W4374)","v":{"v":712.6149131147836,"d":"713"}},{"$f":"'BP Financier'!$E$44*(('BP Financier'!$C$22+'BP Financier'!$D$22+'BP Financier'!$E$22)/('BP Financier'!$C$16+'BP Financier'!$C$19+'BP Financier'!$D$16+'BP Financier'!$D$19+'BP Financier'!$E$16+'BP Financier'!$E$19+'BP Financier'!$C$22+'BP Financier'!$D$22+'BP Financier'!$E$22))*$V4374*AB4374/(1-$W4374)","v":{"v":341.0806421745972,"d":"341"}},null,{"v":0.01,"d":"1.00%"},{"$f":"Actif!$E$28/100","v":{"v":0.28900000000000003,"d":"28.90%"}},{"$f":"Actif!$E$30/100","v":{"v":0.09050000000000001,"d":"9.05%"}},{"$f":"Actif!$E$31/100","v":{"v":0.0605,"d":"6.05%"}},{"$f":"Actif!$E$32/100","v":{"v":0.47350000000000003,"d":"47.35%"}},{"$f":"Actif!$E$33/100","v":{"v":0.0585,"d":"5.85%"}},{"$f":"Actif!$E$29/100","v":{"v":0.027999999999999997,"d":"2.80%"}}]
[null,"#274",56,2026,"F","A_CAPI",{"v":0.44999999999999996,"d":"0.45"},{"v":0.38999999999999996,"d":"0.39"},0.6,0.6,85,0,{"$f":"ROUND(Primes!$O$10*V4375,2)","v":0.45},0,{"v":8661.012020933522,"d":"8,661"},{"$f":"'BP Financier'!$E$44*(('BP Financier'!$C$22+'BP Financier'!$D$22+'BP Financier'!$E$22)/('BP Financier'!$C$16+'BP Financier'!$C$19+'BP Financier'!$D$16+'BP Financier'!$D$19+'BP Financier'!$E$16+'BP Financier'!$E$19+'BP Financier'!$C$22+'BP Financier'!$D$22+'BP Financier'!$E$22))*$V4375*X4375/(1-$W4375)","v":{"v":1102.4213613143233,"d":"1,102"}},{"$f":"'BP Financier'!$E$44*(('BP Financier'!$C$22+'BP Financier'!$D$22+'BP Financier'!$E$22)/('BP Financier'!$C$16+'BP Financier'!$C$19+'BP Financier'!$D$16+'BP Financier'!$D$19+'BP Financier'!$E$16+'BP Financier'!$E$19+'BP Financier'!$C$22+'BP Financier'!$D$22+'BP Financier'!$E$22))*$V4375*Y4375/(1-$W4375)","v":{"v":736.9778161272546,"d":"737"}},{"$f":"'BP Financier'!$E$44*(('BP Financier'!$C$22+'BP Financier'!$D$22+'BP Financier'!$E$22)/('BP Financier'!$C$16+'BP Financier'!$C$19+'BP Financier'!$D$16+'BP Financier'!$D$19+'BP Financier'!$E$16+'BP Financier'!$E$19+'BP Financier'!$C$22+'BP Financier'!$D$22+'BP Financier'!$E$22))*$V4375*Z4375/(1-$W4375)","v":{"v":5767.917288202564,"d":"5,768"}},{"$f":"'BP Financier'!$E$44*(('BP Financier'!$C$22+'BP Financier'!$D$22+'BP Financier'!$E$22)/('BP Financier'!$C$16+'BP Financier'!$C$19+'BP Financier'!$D$16+'BP Financier'!$D$19+'BP Financier'!$E$16+'BP Financier'!$E$19+'BP Financier'!$C$22+'BP Financier'!$D$22+'BP Financier'!$E$22))*$V4375*AA4375/(1-$W4375)","v":{"v":712.6149131147836,"d":"713"}},{"$f":"'BP Financier'!$E$44*(('BP Financier'!$C$22+'BP Financier'!$D$22+'BP Financier'!$E$22)/('BP Financier'!$C$16+'BP Financier'!$C$19+'BP Financier'!$D$16+'BP Financier'!$D$19+'BP Financier'!$E$16+'BP Financier'!$E$19+'BP Financier'!$C$22+'BP Financier'!$D$22+'BP Financier'!$E$22))*$V4375*AB4375/(1-$W4375)","v":{"v":341.0806421745972,"d":"341"}},null,{"v":0.01,"d":"1.00%"},{"$f":"Actif!$E$28/100","v":{"v":0.28900000000000003,"d":"28.90%"}},{"$f":"Actif!$E$30/100","v":{"v":0.09050000000000001,"d":"9.05%"}},{"$f":"Actif!$E$31/100","v":{"v":0.0605,"d":"6.05%"}},{"$f":"Actif!$E$32/100","v":{"v":0.47350000000000003,"d":"47.35%"}},{"$f":"Actif!$E$33/100","v":{"v":0.0585,"d":"5.85%"}},{"$f":"Actif!$E$29/100","v":{"v":0.027999999999999997,"d":"2.80%"}}]
[null,"#275",56,2028,"F","A_CAPI",{"v":0.44999999999999996,"d":"0.45"},{"v":0.38999999999999996,"d":"0.39"},0.6,0.6,85,0,{"$f":"ROUND(Primes!$O$10*V4376,2)","v":0.45},0,{"v":8661.012020933522,"d":"8,661"},{"$f":"'BP Financier'!$E$44*(('BP Financier'!$C$22+'BP Financier'!$D$22+'BP Financier'!$E$22)/('BP Financier'!$C$16+'BP Financier'!$C$19+'BP Financier'!$D$16+'BP Financier'!$D$19+'BP Financier'!$E$16+'BP Financier'!$E$19+'BP Financier'!$C$22+'BP Financier'!$D$22+'BP Financier'!$E$22))*$V4376*X4376/(1-$W4376)","v":{"v":1102.4213613143233,"d":"1,102"}},{"$f":"'BP Financier'!$E$44*(('BP Financier'!$C$22+'BP Financier'!$D$22+'BP Financier'!$E$22)/('BP Financier'!$C$16+'BP Financier'!$C$19+'BP Financier'!$D$16+'BP Financier'!$D$19+'BP Financier'!$E$16+'BP Financier'!$E$19+'BP Financier'!$C$22+'BP Financier'!$D$22+'BP Financier'!$E$22))*$V4376*Y4376/(1-$W4376)","v":{"v":736.9778161272546,"d":"737"}},{"$f":"'BP Financier'!$E$44*(('BP Financier'!$C$22+'BP Financier'!$D$22+'BP Financier'!$E$22)/('BP Financier'!$C$16+'BP Financier'!$C$19+'BP Financier'!$D$16+'BP Financier'!$D$19+'BP Financier'!$E$16+'BP Financier'!$E$19+'BP Financier'!$C$22+'BP Financier'!$D$22+'BP Financier'!$E$22))*$V4376*Z4376/(1-$W4376)","v":{"v":5767.917288202564,"d":"5,768"}},{"$f":"'BP Financier'!$E$44*(('BP Financier'!$C$22+'BP Financier'!$D$22+'BP Financier'!$E$22)/('BP Financier'!$C$16+'BP Financier'!$C$19+'BP Financier'!$D$16+'BP Financier'!$D$19+'BP Financier'!$E$16+'BP Financier'!$E$19+'BP Financier'!$C$22+'BP Financier'!$D$22+'BP Financier'!$E$22))*$V4376*AA4376/(1-$W4376)","v":{"v":712.6149131147836,"d":"713"}},{"$f":"'BP Financier'!$E$44*(('BP Financier'!$C$22+'BP Financier'!$D$22+'BP Financier'!$E$22)/('BP Financier'!$C$16+'BP Financier'!$C$19+'BP Financier'!$D$16+'BP Financier'!$D$19+'BP Financier'!$E$16+'BP Financier'!$E$19+'BP Financier'!$C$22+'BP Financier'!$D$22+'BP Financier'!$E$22))*$V4376*AB4376/(1-$W4376)","v":{"v":341.0806421745972,"d":"341"}},null,{"v":0.01,"d":"1.00%"},{"$f":"Actif!$E$28/100","v":{"v":0.28900000000000003,"d":"28.90%"}},{"$f":"Actif!$E$30/100","v":{"v":0.09050000000000001,"d":"9.05%"}},{"$f":"Actif!$E$31/100","v":{"v":0.0605,"d":"6.05%"}},{"$f":"Actif!$E$32/100","v":{"v":0.47350000000000003,"d":"47.35%"}},{"$f":"Actif!$E$33/100","v":{"v":0.0585,"d":"5.85%"}},{"$f":"Actif!$E$29/100","v":{"v":0.027999999999999997,"d":"2.80%"}}]
[null,"#276",56,2029,"F","A_CAPI",{"v":0.44999999999999996,"d":"0.45"},{"v":0.38999999999999996,"d":"0.39"},0.6,0.6,85,0,{"$f":"ROUND(Primes!$O$10*V4377,2)","v":0.45},0,{"v":8661.012020933522,"d":"8,661"},{"$f":"'BP Financier'!$E$44*(('BP Financier'!$C$22+'BP Financier'!$D$22+'BP Financier'!$E$22)/('BP Financier'!$C$16+'BP Financier'!$C$19+'BP Financier'!$D$16+'BP Financier'!$D$19+'BP Financier'!$E$16+'BP Financier'!$E$19+'BP Financier'!$C$22+'BP Financier'!$D$22+'BP Financier'!$E$22))*$V4377*X4377/(1-$W4377)","v":{"v":1102.4213613143233,"d":"1,102"}},{"$f":"'BP Financier'!$E$44*(('BP Financier'!$C$22+'BP Financier'!$D$22+'BP Financier'!$E$22)/('BP Financier'!$C$16+'BP Financier'!$C$19+'BP Financier'!$D$16+'BP Financier'!$D$19+'BP Financier'!$E$16+'BP Financier'!$E$19+'BP Financier'!$C$22+'BP Financier'!$D$22+'BP Financier'!$E$22))*$V4377*Y4377/(1-$W4377)","v":{"v":736.9778161272546,"d":"737"}},{"$f":"'BP Financier'!$E$44*(('BP Financier'!$C$22+'BP Financier'!$D$22+'BP Financier'!$E$22)/('BP Financier'!$C$16+'BP Financier'!$C$19+'BP Financier'!$D$16+'BP Financier'!$D$19+'BP Financier'!$E$16+'BP Financier'!$E$19+'BP Financier'!$C$22+'BP Financier'!$D$22+'BP Financier'!$E$22))*$V4377*Z4377/(1-$W4377)","v":{"v":5767.917288202564,"d":"5,768"}},{"$f":"'BP Financier'!$E$44*(('BP Financier'!$C$22+'BP Financier'!$D$22+'BP Financier'!$E$22)/('BP Financier'!$C$16+'BP Financier'!$C$19+'BP Financier'!$D$16+'BP Financier'!$D$19+'BP Financier'!$E$16+'BP Financier'!$E$19+'BP Financier'!$C$22+'BP Financier'!$D$22+'BP Financier'!$E$22))*$V4377*AA4377/(1-$W4377)","v":{"v":712.6149131147836,"d":"713"}},{"$f":"'BP Financier'!$E$44*(('BP Financier'!$C$22+'BP Financier'!$D$22+'BP Financier'!$E$22)/('BP Financier'!$C$16+'BP Financier'!$C$19+'BP Financier'!$D$16+'BP Financier'!$D$19+'BP Financier'!$E$16+'BP Financier'!$E$19+'BP Financier'!$C$22+'BP Financier'!$D$22+'BP Financier'!$E$22))*$V4377*AB4377/(1-$W4377)","v":{"v":341.0806421745972,"d":"341"}},null,{"v":0.01,"d":"1.00%"},{"$f":"Actif!$E$28/100","v":{"v":0.28900000000000003,"d":"28.90%"}},{"$f":"Actif!$E$30/100","v":{"v":0.09050000000000001,"d":"9.05%"}},{"$f":"Actif!$E$31/100","v":{"v":0.0605,"d":"6.05%"}},{"$f":"Actif!$E$32/100","v":{"v":0.47350000000000003,"d":"47.35%"}},{"$f":"Actif!$E$33/100","v":{"v":0.0585,"d":"5.85%"}},{"$f":"Actif!$E$29/100","v":{"v":0.027999999999999997,"d":"2.80%"}}]
[null,"#277",57,2026,"H","A_CAPI",{"v":0.44999999999999996,"d":"0.45"},{"v":0.38999999999999996,"d":"0.39"},0.6,0.6,85,0,{"$f":"ROUND(Primes!$O$10*V4378,2)","v":0.45},0,{"v":8661.012020933522,"d":"8,661"},{"$f":"'BP Financier'!$E$44*(('BP Financier'!$C$22+'BP Financier'!$D$22+'BP Financier'!$E$22)/('BP Financier'!$C$16+'BP Financier'!$C$19+'BP Financier'!$D$16+'BP Financier'!$D$19+'BP Financier'!$E$16+'BP Financier'!$E$19+'BP Financier'!$C$22+'BP Financier'!$D$22+'BP Financier'!$E$22))*$V4378*X4378/(1-$W4378)","v":{"v":1102.4213613143233,"d":"1,102"}},{"$f":"'BP Financier'!$E$44*(('BP Financier'!$C$22+'BP Financier'!$D$22+'BP Financier'!$E$22)/('BP Financier'!$C$16+'BP Financier'!$C$19+'BP Financier'!$D$16+'BP Financier'!$D$19+'BP Financier'!$E$16+'BP Financier'!$E$19+'BP Financier'!$C$22+'BP Financier'!$D$22+'BP Financier'!$E$22))*$V4378*Y4378/(1-$W4378)","v":{"v":736.9778161272546,"d":"737"}},{"$f":"'BP Financier'!$E$44*(('BP Financier'!$C$22+'BP Financier'!$D$22+'BP Financier'!$E$22)/('BP Financier'!$C$16+'BP Financier'!$C$19+'BP Financier'!$D$16+'BP Financier'!$D$19+'BP Financier'!$E$16+'BP Financier'!$E$19+'BP Financier'!$C$22+'BP Financier'!$D$22+'BP Financier'!$E$22))*$V4378*Z4378/(1-$W4378)","v":{"v":5767.917288202564,"d":"5,768"}},{"$f":"'BP Financier'!$E$44*(('BP Financier'!$C$22+'BP Financier'!$D$22+'BP Financier'!$E$22)/('BP Financier'!$C$16+'BP Financier'!$C$19+'BP Financier'!$D$16+'BP Financier'!$D$19+'BP Financier'!$E$16+'BP Financier'!$E$19+'BP Financier'!$C$22+'BP Financier'!$D$22+'BP Financier'!$E$22))*$V4378*AA4378/(1-$W4378)","v":{"v":712.6149131147836,"d":"713"}},{"$f":"'BP Financier'!$E$44*(('BP Financier'!$C$22+'BP Financier'!$D$22+'BP Financier'!$E$22)/('BP Financier'!$C$16+'BP Financier'!$C$19+'BP Financier'!$D$16+'BP Financier'!$D$19+'BP Financier'!$E$16+'BP Financier'!$E$19+'BP Financier'!$C$22+'BP Financier'!$D$22+'BP Financier'!$E$22))*$V4378*AB4378/(1-$W4378)","v":{"v":341.0806421745972,"d":"341"}},null,{"v":0.01,"d":"1.00%"},{"$f":"Actif!$E$28/100","v":{"v":0.28900000000000003,"d":"28.90%"}},{"$f":"Actif!$E$30/100","v":{"v":0.09050000000000001,"d":"9.05%"}},{"$f":"Actif!$E$31/100","v":{"v":0.0605,"d":"6.05%"}},{"$f":"Actif!$E$32/100","v":{"v":0.47350000000000003,"d":"47.35%"}},{"$f":"Actif!$E$33/100","v":{"v":0.0585,"d":"5.85%"}},{"$f":"Actif!$E$29/100","v":{"v":0.027999999999999997,"d":"2.80%"}}]
[null,"#278",57,2028,"H","A_CAPI",{"v":0.44999999999999996,"d":"0.45"},{"v":0.38999999999999996,"d":"0.39"},0.6,0.6,85,0,{"$f":"ROUND(Primes!$O$10*V4379,2)","v":0.45},0,{"v":8661.012020933522,"d":"8,661"},{"$f":"'BP Financier'!$E$44*(('BP Financier'!$C$22+'BP Financier'!$D$22+'BP Financier'!$E$22)/('BP Financier'!$C$16+'BP Financier'!$C$19+'BP Financier'!$D$16+'BP Financier'!$D$19+'BP Financier'!$E$16+'BP Financier'!$E$19+'BP Financier'!$C$22+'BP Financier'!$D$22+'BP Financier'!$E$22))*$V4379*X4379/(1-$W4379)","v":{"v":1102.4213613143233,"d":"1,102"}},{"$f":"'BP Financier'!$E$44*(('BP Financier'!$C$22+'BP Financier'!$D$22+'BP Financier'!$E$22)/('BP Financier'!$C$16+'BP Financier'!$C$19+'BP Financier'!$D$16+'BP Financier'!$D$19+'BP Financier'!$E$16+'BP Financier'!$E$19+'BP Financier'!$C$22+'BP Financier'!$D$22+'BP Financier'!$E$22))*$V4379*Y4379/(1-$W4379)","v":{"v":736.9778161272546,"d":"737"}},{"$f":"'BP Financier'!$E$44*(('BP Financier'!$C$22+'BP Financier'!$D$22+'BP Financier'!$E$22)/('BP Financier'!$C$16+'BP Financier'!$C$19+'BP Financier'!$D$16+'BP Financier'!$D$19+'BP Financier'!$E$16+'BP Financier'!$E$19+'BP Financier'!$C$22+'BP Financier'!$D$22+'BP Financier'!$E$22))*$V4379*Z4379/(1-$W4379)","v":{"v":5767.917288202564,"d":"5,768"}},{"$f":"'BP Financier'!$E$44*(('BP Financier'!$C$22+'BP Financier'!$D$22+'BP Financier'!$E$22)/('BP Financier'!$C$16+'BP Financier'!$C$19+'BP Financier'!$D$16+'BP Financier'!$D$19+'BP Financier'!$E$16+'BP Financier'!$E$19+'BP Financier'!$C$22+'BP Financier'!$D$22+'BP Financier'!$E$22))*$V4379*AA4379/(1-$W4379)","v":{"v":712.6149131147836,"d":"713"}},{"$f":"'BP Financier'!$E$44*(('BP Financier'!$C$22+'BP Financier'!$D$22+'BP Financier'!$E$22)/('BP Financier'!$C$16+'BP Financier'!$C$19+'BP Financier'!$D$16+'BP Financier'!$D$19+'BP Financier'!$E$16+'BP Financier'!$E$19+'BP Financier'!$C$22+'BP Financier'!$D$22+'BP Financier'!$E$22))*$V4379*AB4379/(1-$W4379)","v":{"v":341.0806421745972,"d":"341"}},null,{"v":0.01,"d":"1.00%"},{"$f":"Actif!$E$28/100","v":{"v":0.28900000000000003,"d":"28.90%"}},{"$f":"Actif!$E$30/100","v":{"v":0.09050000000000001,"d":"9.05%"}},{"$f":"Actif!$E$31/100","v":{"v":0.0605,"d":"6.05%"}},{"$f":"Actif!$E$32/100","v":{"v":0.47350000000000003,"d":"47.35%"}},{"$f":"Actif!$E$33/100","v":{"v":0.0585,"d":"5.85%"}},{"$f":"Actif!$E$29/100","v":{"v":0.027999999999999997,"d":"2.80%"}}]
[null,"#279",57,2029,"H","A_CAPI",{"v":0.44999999999999996,"d":"0.45"},{"v":0.38999999999999996,"d":"0.39"},0.6,0.6,85,0,{"$f":"ROUND(Primes!$O$10*V4380,2)","v":0.45},0,{"v":8661.012020933522,"d":"8,661"},{"$f":"'BP Financier'!$E$44*(('BP Financier'!$C$22+'BP Financier'!$D$22+'BP Financier'!$E$22)/('BP Financier'!$C$16+'BP Financier'!$C$19+'BP Financier'!$D$16+'BP Financier'!$D$19+'BP Financier'!$E$16+'BP Financier'!$E$19+'BP Financier'!$C$22+'BP Financier'!$D$22+'BP Financier'!$E$22))*$V4380*X4380/(1-$W4380)","v":{"v":1102.4213613143233,"d":"1,102"}},{"$f":"'BP Financier'!$E$44*(('BP Financier'!$C$22+'BP Financier'!$D$22+'BP Financier'!$E$22)/('BP Financier'!$C$16+'BP Financier'!$C$19+'BP Financier'!$D$16+'BP Financier'!$D$19+'BP Financier'!$E$16+'BP Financier'!$E$19+'BP Financier'!$C$22+'BP Financier'!$D$22+'BP Financier'!$E$22))*$V4380*Y4380/(1-$W4380)","v":{"v":736.9778161272546,"d":"737"}},{"$f":"'BP Financier'!$E$44*(('BP Financier'!$C$22+'BP Financier'!$D$22+'BP Financier'!$E$22)/('BP Financier'!$C$16+'BP Financier'!$C$19+'BP Financier'!$D$16+'BP Financier'!$D$19+'BP Financier'!$E$16+'BP Financier'!$E$19+'BP Financier'!$C$22+'BP Financier'!$D$22+'BP Financier'!$E$22))*$V4380*Z4380/(1-$W4380)","v":{"v":5767.917288202564,"d":"5,768"}},{"$f":"'BP Financier'!$E$44*(('BP Financier'!$C$22+'BP Financier'!$D$22+'BP Financier'!$E$22)/('BP Financier'!$C$16+'BP Financier'!$C$19+'BP Financier'!$D$16+'BP Financier'!$D$19+'BP Financier'!$E$16+'BP Financier'!$E$19+'BP Financier'!$C$22+'BP Financier'!$D$22+'BP Financier'!$E$22))*$V4380*AA4380/(1-$W4380)","v":{"v":712.6149131147836,"d":"713"}},{"$f":"'BP Financier'!$E$44*(('BP Financier'!$C$22+'BP Financier'!$D$22+'BP Financier'!$E$22)/('BP Financier'!$C$16+'BP Financier'!$C$19+'BP Financier'!$D$16+'BP Financier'!$D$19+'BP Financier'!$E$16+'BP Financier'!$E$19+'BP Financier'!$C$22+'BP Financier'!$D$22+'BP Financier'!$E$22))*$V4380*AB4380/(1-$W4380)","v":{"v":341.0806421745972,"d":"341"}},null,{"v":0.01,"d":"1.00%"},{"$f":"Actif!$E$28/100","v":{"v":0.28900000000000003,"d":"28.90%"}},{"$f":"Actif!$E$30/100","v":{"v":0.09050000000000001,"d":"9.05%"}},{"$f":"Actif!$E$31/100","v":{"v":0.0605,"d":"6.05%"}},{"$f":"Actif!$E$32/100","v":{"v":0.47350000000000003,"d":"47.35%"}},{"$f":"Actif!$E$33/100","v":{"v":0.0585,"d":"5.85%"}},{"$f":"Actif!$E$29/100","v":{"v":0.027999999999999997,"d":"2.80%"}}]
[null,"#280",58,2026,"H","A_CAPI",{"v":0.44999999999999996,"d":"0.45"},{"v":0.38999999999999996,"d":"0.39"},0.6,0.6,85,0,{"$f":"ROUND(Primes!$O$10*V4381,2)","v":0.45},0,{"v":8661.012020933522,"d":"8,661"},{"$f":"'BP Financier'!$E$44*(('BP Financier'!$C$22+'BP Financier'!$D$22+'BP Financier'!$E$22)/('BP Financier'!$C$16+'BP Financier'!$C$19+'BP Financier'!$D$16+'BP Financier'!$D$19+'BP Financier'!$E$16+'BP Financier'!$E$19+'BP Financier'!$C$22+'BP Financier'!$D$22+'BP Financier'!$E$22))*$V4381*X4381/(1-$W4381)","v":{"v":1102.4213613143233,"d":"1,102"}},{"$f":"'BP Financier'!$E$44*(('BP Financier'!$C$22+'BP Financier'!$D$22+'BP Financier'!$E$22)/('BP Financier'!$C$16+'BP Financier'!$C$19+'BP Financier'!$D$16+'BP Financier'!$D$19+'BP Financier'!$E$16+'BP Financier'!$E$19+'BP Financier'!$C$22+'BP Financier'!$D$22+'BP Financier'!$E$22))*$V4381*Y4381/(1-$W4381)","v":{"v":736.9778161272546,"d":"737"}},{"$f":"'BP Financier'!$E$44*(('BP Financier'!$C$22+'BP Financier'!$D$22+'BP Financier'!$E$22)/('BP Financier'!$C$16+'BP Financier'!$C$19+'BP Financier'!$D$16+'BP Financier'!$D$19+'BP Financier'!$E$16+'BP Financier'!$E$19+'BP Financier'!$C$22+'BP Financier'!$D$22+'BP Financier'!$E$22))*$V4381*Z4381/(1-$W4381)","v":{"v":5767.917288202564,"d":"5,768"}},{"$f":"'BP Financier'!$E$44*(('BP Financier'!$C$22+'BP Financier'!$D$22+'BP Financier'!$E$22)/('BP Financier'!$C$16+'BP Financier'!$C$19+'BP Financier'!$D$16+'BP Financier'!$D$19+'BP Financier'!$E$16+'BP Financier'!$E$19+'BP Financier'!$C$22+'BP Financier'!$D$22+'BP Financier'!$E$22))*$V4381*AA4381/(1-$W4381)","v":{"v":712.6149131147836,"d":"713"}},{"$f":"'BP Financier'!$E$44*(('BP Financier'!$C$22+'BP Financier'!$D$22+'BP Financier'!$E$22)/('BP Financier'!$C$16+'BP Financier'!$C$19+'BP Financier'!$D$16+'BP Financier'!$D$19+'BP Financier'!$E$16+'BP Financier'!$E$19+'BP Financier'!$C$22+'BP Financier'!$D$22+'BP Financier'!$E$22))*$V4381*AB4381/(1-$W4381)","v":{"v":341.0806421745972,"d":"341"}},null,{"v":0.01,"d":"1.00%"},{"$f":"Actif!$E$28/100","v":{"v":0.28900000000000003,"d":"28.90%"}},{"$f":"Actif!$E$30/100","v":{"v":0.09050000000000001,"d":"9.05%"}},{"$f":"Actif!$E$31/100","v":{"v":0.0605,"d":"6.05%"}},{"$f":"Actif!$E$32/100","v":{"v":0.47350000000000003,"d":"47.35%"}},{"$f":"Actif!$E$33/100","v":{"v":0.0585,"d":"5.85%"}},{"$f":"Actif!$E$29/100","v":{"v":0.027999999999999997,"d":"2.80%"}}]
[null,"#281",58,2028,"H","A_CAPI",{"v":0.44999999999999996,"d":"0.45"},{"v":0.38999999999999996,"d":"0.39"},0.6,0.6,85,0,{"$f":"ROUND(Primes!$O$10*V4382,2)","v":0.45},0,{"v":8661.012020933522,"d":"8,661"},{"$f":"'BP Financier'!$E$44*(('BP Financier'!$C$22+'BP Financier'!$D$22+'BP Financier'!$E$22)/('BP Financier'!$C$16+'BP Financier'!$C$19+'BP Financier'!$D$16+'BP Financier'!$D$19+'BP Financier'!$E$16+'BP Financier'!$E$19+'BP Financier'!$C$22+'BP Financier'!$D$22+'BP Financier'!$E$22))*$V4382*X4382/(1-$W4382)","v":{"v":1102.4213613143233,"d":"1,102"}},{"$f":"'BP Financier'!$E$44*(('BP Financier'!$C$22+'BP Financier'!$D$22+'BP Financier'!$E$22)/('BP Financier'!$C$16+'BP Financier'!$C$19+'BP Financier'!$D$16+'BP Financier'!$D$19+'BP Financier'!$E$16+'BP Financier'!$E$19+'BP Financier'!$C$22+'BP Financier'!$D$22+'BP Financier'!$E$22))*$V4382*Y4382/(1-$W4382)","v":{"v":736.9778161272546,"d":"737"}},{"$f":"'BP Financier'!$E$44*(('BP Financier'!$C$22+'BP Financier'!$D$22+'BP Financier'!$E$22)/('BP Financier'!$C$16+'BP Financier'!$C$19+'BP Financier'!$D$16+'BP Financier'!$D$19+'BP Financier'!$E$16+'BP Financier'!$E$19+'BP Financier'!$C$22+'BP Financier'!$D$22+'BP Financier'!$E$22))*$V4382*Z4382/(1-$W4382)","v":{"v":5767.917288202564,"d":"5,768"}},{"$f":"'BP Financier'!$E$44*(('BP Financier'!$C$22+'BP Financier'!$D$22+'BP Financier'!$E$22)/('BP Financier'!$C$16+'BP Financier'!$C$19+'BP Financier'!$D$16+'BP Financier'!$D$19+'BP Financier'!$E$16+'BP Financier'!$E$19+'BP Financier'!$C$22+'BP Financier'!$D$22+'BP Financier'!$E$22))*$V4382*AA4382/(1-$W4382)","v":{"v":712.6149131147836,"d":"713"}},{"$f":"'BP Financier'!$E$44*(('BP Financier'!$C$22+'BP Financier'!$D$22+'BP Financier'!$E$22)/('BP Financier'!$C$16+'BP Financier'!$C$19+'BP Financier'!$D$16+'BP Financier'!$D$19+'BP Financier'!$E$16+'BP Financier'!$E$19+'BP Financier'!$C$22+'BP Financier'!$D$22+'BP Financier'!$E$22))*$V4382*AB4382/(1-$W4382)","v":{"v":341.0806421745972,"d":"341"}},null,{"v":0.01,"d":"1.00%"},{"$f":"Actif!$E$28/100","v":{"v":0.28900000000000003,"d":"28.90%"}},{"$f":"Actif!$E$30/100","v":{"v":0.09050000000000001,"d":"9.05%"}},{"$f":"Actif!$E$31/100","v":{"v":0.0605,"d":"6.05%"}},{"$f":"Actif!$E$32/100","v":{"v":0.47350000000000003,"d":"47.35%"}},{"$f":"Actif!$E$33/100","v":{"v":0.0585,"d":"5.85%"}},{"$f":"Actif!$E$29/100","v":{"v":0.027999999999999997,"d":"2.80%"}}]
[null,"#282",58,2029,"H","A_CAPI",{"v":0.44999999999999996,"d":"0.45"},{"v":0.38999999999999996,"d":"0.39"},0.6,0.6,85,0,{"$f":"ROUND(Primes!$O$10*V4383,2)","v":0.45},0,{"v":8661.012020933522,"d":"8,661"},{"$f":"'BP Financier'!$E$44*(('BP Financier'!$C$22+'BP Financier'!$D$22+'BP Financier'!$E$22)/('BP Financier'!$C$16+'BP Financier'!$C$19+'BP Financier'!$D$16+'BP Financier'!$D$19+'BP Financier'!$E$16+'BP Financier'!$E$19+'BP Financier'!$C$22+'BP Financier'!$D$22+'BP Financier'!$E$22))*$V4383*X4383/(1-$W4383)","v":{"v":1102.4213613143233,"d":"1,102"}},{"$f":"'BP Financier'!$E$44*(('BP Financier'!$C$22+'BP Financier'!$D$22+'BP Financier'!$E$22)/('BP Financier'!$C$16+'BP Financier'!$C$19+'BP Financier'!$D$16+'BP Financier'!$D$19+'BP Financier'!$E$16+'BP Financier'!$E$19+'BP Financier'!$C$22+'BP Financier'!$D$22+'BP Financier'!$E$22))*$V4383*Y4383/(1-$W4383)","v":{"v":736.9778161272546,"d":"737"}},{"$f":"'BP Financier'!$E$44*(('BP Financier'!$C$22+'BP Financier'!$D$22+'BP Financier'!$E$22)/('BP Financier'!$C$16+'BP Financier'!$C$19+'BP Financier'!$D$16+'BP Financier'!$D$19+'BP Financier'!$E$16+'BP Financier'!$E$19+'BP Financier'!$C$22+'BP Financier'!$D$22+'BP Financier'!$E$22))*$V4383*Z4383/(1-$W4383)","v":{"v":5767.917288202564,"d":"5,768"}},{"$f":"'BP Financier'!$E$44*(('BP Financier'!$C$22+'BP Financier'!$D$22+'BP Financier'!$E$22)/('BP Financier'!$C$16+'BP Financier'!$C$19+'BP Financier'!$D$16+'BP Financier'!$D$19+'BP Financier'!$E$16+'BP Financier'!$E$19+'BP Financier'!$C$22+'BP Financier'!$D$22+'BP Financier'!$E$22))*$V4383*AA4383/(1-$W4383)","v":{"v":712.6149131147836,"d":"713"}},{"$f":"'BP Financier'!$E$44*(('BP Financier'!$C$22+'BP Financier'!$D$22+'BP Financier'!$E$22)/('BP Financier'!$C$16+'BP Financier'!$C$19+'BP Financier'!$D$16+'BP Financier'!$D$19+'BP Financier'!$E$16+'BP Financier'!$E$19+'BP Financier'!$C$22+'BP Financier'!$D$22+'BP Financier'!$E$22))*$V4383*AB4383/(1-$W4383)","v":{"v":341.0806421745972,"d":"341"}},null,{"v":0.01,"d":"1.00%"},{"$f":"Actif!$E$28/100","v":{"v":0.28900000000000003,"d":"28.90%"}},{"$f":"Actif!$E$30/100","v":{"v":0.09050000000000001,"d":"9.05%"}},{"$f":"Actif!$E$31/100","v":{"v":0.0605,"d":"6.05%"}},{"$f":"Actif!$E$32/100","v":{"v":0.47350000000000003,"d":"47.35%"}},{"$f":"Actif!$E$33/100","v":{"v":0.0585,"d":"5.85%"}},{"$f":"Actif!$E$29/100","v":{"v":0.027999999999999997,"d":"2.80%"}}]
[null,"#283",59,2026,"F","A_CAPI",{"v":0.44999999999999996,"d":"0.45"},{"v":0.38999999999999996,"d":"0.39"},0.6,0.6,85,0,{"$f":"ROUND(Primes!$O$10*V4384,2)","v":0.45},0,{"v":8661.012020933522,"d":"8,661"},{"$f":"'BP Financier'!$E$44*(('BP Financier'!$C$22+'BP Financier'!$D$22+'BP Financier'!$E$22)/('BP Financier'!$C$16+'BP Financier'!$C$19+'BP Financier'!$D$16+'BP Financier'!$D$19+'BP Financier'!$E$16+'BP Financier'!$E$19+'BP Financier'!$C$22+'BP Financier'!$D$22+'BP Financier'!$E$22))*$V4384*X4384/(1-$W4384)","v":{"v":1102.4213613143233,"d":"1,102"}},{"$f":"'BP Financier'!$E$44*(('BP Financier'!$C$22+'BP Financier'!$D$22+'BP Financier'!$E$22)/('BP Financier'!$C$16+'BP Financier'!$C$19+'BP Financier'!$D$16+'BP Financier'!$D$19+'BP Financier'!$E$16+'BP Financier'!$E$19+'BP Financier'!$C$22+'BP Financier'!$D$22+'BP Financier'!$E$22))*$V4384*Y4384/(1-$W4384)","v":{"v":736.9778161272546,"d":"737"}},{"$f":"'BP Financier'!$E$44*(('BP Financier'!$C$22+'BP Financier'!$D$22+'BP Financier'!$E$22)/('BP Financier'!$C$16+'BP Financier'!$C$19+'BP Financier'!$D$16+'BP Financier'!$D$19+'BP Financier'!$E$16+'BP Financier'!$E$19+'BP Financier'!$C$22+'BP Financier'!$D$22+'BP Financier'!$E$22))*$V4384*Z4384/(1-$W4384)","v":{"v":5767.917288202564,"d":"5,768"}},{"$f":"'BP Financier'!$E$44*(('BP Financier'!$C$22+'BP Financier'!$D$22+'BP Financier'!$E$22)/('BP Financier'!$C$16+'BP Financier'!$C$19+'BP Financier'!$D$16+'BP Financier'!$D$19+'BP Financier'!$E$16+'BP Financier'!$E$19+'BP Financier'!$C$22+'BP Financier'!$D$22+'BP Financier'!$E$22))*$V4384*AA4384/(1-$W4384)","v":{"v":712.6149131147836,"d":"713"}},{"$f":"'BP Financier'!$E$44*(('BP Financier'!$C$22+'BP Financier'!$D$22+'BP Financier'!$E$22)/('BP Financier'!$C$16+'BP Financier'!$C$19+'BP Financier'!$D$16+'BP Financier'!$D$19+'BP Financier'!$E$16+'BP Financier'!$E$19+'BP Financier'!$C$22+'BP Financier'!$D$22+'BP Financier'!$E$22))*$V4384*AB4384/(1-$W4384)","v":{"v":341.0806421745972,"d":"341"}},null,{"v":0.01,"d":"1.00%"},{"$f":"Actif!$E$28/100","v":{"v":0.28900000000000003,"d":"28.90%"}},{"$f":"Actif!$E$30/100","v":{"v":0.09050000000000001,"d":"9.05%"}},{"$f":"Actif!$E$31/100","v":{"v":0.0605,"d":"6.05%"}},{"$f":"Actif!$E$32/100","v":{"v":0.47350000000000003,"d":"47.35%"}},{"$f":"Actif!$E$33/100","v":{"v":0.0585,"d":"5.85%"}},{"$f":"Actif!$E$29/100","v":{"v":0.027999999999999997,"d":"2.80%"}}]
[null,"#284",59,2028,"F","A_CAPI",{"v":0.44999999999999996,"d":"0.45"},{"v":0.38999999999999996,"d":"0.39"},0.6,0.6,85,0,{"$f":"ROUND(Primes!$O$10*V4385,2)","v":0.45},0,{"v":8661.012020933522,"d":"8,661"},{"$f":"'BP Financier'!$E$44*(('BP Financier'!$C$22+'BP Financier'!$D$22+'BP Financier'!$E$22)/('BP Financier'!$C$16+'BP Financier'!$C$19+'BP Financier'!$D$16+'BP Financier'!$D$19+'BP Financier'!$E$16+'BP Financier'!$E$19+'BP Financier'!$C$22+'BP Financier'!$D$22+'BP Financier'!$E$22))*$V4385*X4385/(1-$W4385)","v":{"v":1102.4213613143233,"d":"1,102"}},{"$f":"'BP Financier'!$E$44*(('BP Financier'!$C$22+'BP Financier'!$D$22+'BP Financier'!$E$22)/('BP Financier'!$C$16+'BP Financier'!$C$19+'BP Financier'!$D$16+'BP Financier'!$D$19+'BP Financier'!$E$16+'BP Financier'!$E$19+'BP Financier'!$C$22+'BP Financier'!$D$22+'BP Financier'!$E$22))*$V4385*Y4385/(1-$W4385)","v":{"v":736.9778161272546,"d":"737"}},{"$f":"'BP Financier'!$E$44*(('BP Financier'!$C$22+'BP Financier'!$D$22+'BP Financier'!$E$22)/('BP Financier'!$C$16+'BP Financier'!$C$19+'BP Financier'!$D$16+'BP Financier'!$D$19+'BP Financier'!$E$16+'BP Financier'!$E$19+'BP Financier'!$C$22+'BP Financier'!$D$22+'BP Financier'!$E$22))*$V4385*Z4385/(1-$W4385)","v":{"v":5767.917288202564,"d":"5,768"}},{"$f":"'BP Financier'!$E$44*(('BP Financier'!$C$22+'BP Financier'!$D$22+'BP Financier'!$E$22)/('BP Financier'!$C$16+'BP Financier'!$C$19+'BP Financier'!$D$16+'BP Financier'!$D$19+'BP Financier'!$E$16+'BP Financier'!$E$19+'BP Financier'!$C$22+'BP Financier'!$D$22+'BP Financier'!$E$22))*$V4385*AA4385/(1-$W4385)","v":{"v":712.6149131147836,"d":"713"}},{"$f":"'BP Financier'!$E$44*(('BP Financier'!$C$22+'BP Financier'!$D$22+'BP Financier'!$E$22)/('BP Financier'!$C$16+'BP Financier'!$C$19+'BP Financier'!$D$16+'BP Financier'!$D$19+'BP Financier'!$E$16+'BP Financier'!$E$19+'BP Financier'!$C$22+'BP Financier'!$D$22+'BP Financier'!$E$22))*$V4385*AB4385/(1-$W4385)","v":{"v":341.0806421745972,"d":"341"}},null,{"v":0.01,"d":"1.00%"},{"$f":"Actif!$E$28/100","v":{"v":0.28900000000000003,"d":"28.90%"}},{"$f":"Actif!$E$30/100","v":{"v":0.09050000000000001,"d":"9.05%"}},{"$f":"Actif!$E$31/100","v":{"v":0.0605,"d":"6.05%"}},{"$f":"Actif!$E$32/100","v":{"v":0.47350000000000003,"d":"47.35%"}},{"$f":"Actif!$E$33/100","v":{"v":0.0585,"d":"5.85%"}},{"$f":"Actif!$E$29/100","v":{"v":0.027999999999999997,"d":"2.80%"}}]
[null,"#285",59,2029,"F","A_CAPI",{"v":0.44999999999999996,"d":"0.45"},{"v":0.38999999999999996,"d":"0.39"},0.6,0.6,85,0,{"$f":"ROUND(Primes!$O$10*V4386,2)","v":0.45},0,{"v":8661.012020933522,"d":"8,661"},{"$f":"'BP Financier'!$E$44*(('BP Financier'!$C$22+'BP Financier'!$D$22+'BP Financier'!$E$22)/('BP Financier'!$C$16+'BP Financier'!$C$19+'BP Financier'!$D$16+'BP Financier'!$D$19+'BP Financier'!$E$16+'BP Financier'!$E$19+'BP Financier'!$C$22+'BP Financier'!$D$22+'BP Financier'!$E$22))*$V4386*X4386/(1-$W4386)","v":{"v":1102.4213613143233,"d":"1,102"}},{"$f":"'BP Financier'!$E$44*(('BP Financier'!$C$22+'BP Financier'!$D$22+'BP Financier'!$E$22)/('BP Financier'!$C$16+'BP Financier'!$C$19+'BP Financier'!$D$16+'BP Financier'!$D$19+'BP Financier'!$E$16+'BP Financier'!$E$19+'BP Financier'!$C$22+'BP Financier'!$D$22+'BP Financier'!$E$22))*$V4386*Y4386/(1-$W4386)","v":{"v":736.9778161272546,"d":"737"}},{"$f":"'BP Financier'!$E$44*(('BP Financier'!$C$22+'BP Financier'!$D$22+'BP Financier'!$E$22)/('BP Financier'!$C$16+'BP Financier'!$C$19+'BP Financier'!$D$16+'BP Financier'!$D$19+'BP Financier'!$E$16+'BP Financier'!$E$19+'BP Financier'!$C$22+'BP Financier'!$D$22+'BP Financier'!$E$22))*$V4386*Z4386/(1-$W4386)","v":{"v":5767.917288202564,"d":"5,768"}},{"$f":"'BP Financier'!$E$44*(('BP Financier'!$C$22+'BP Financier'!$D$22+'BP Financier'!$E$22)/('BP Financier'!$C$16+'BP Financier'!$C$19+'BP Financier'!$D$16+'BP Financier'!$D$19+'BP Financier'!$E$16+'BP Financier'!$E$19+'BP Financier'!$C$22+'BP Financier'!$D$22+'BP Financier'!$E$22))*$V4386*AA4386/(1-$W4386)","v":{"v":712.6149131147836,"d":"713"}},{"$f":"'BP Financier'!$E$44*(('BP Financier'!$C$22+'BP Financier'!$D$22+'BP Financier'!$E$22)/('BP Financier'!$C$16+'BP Financier'!$C$19+'BP Financier'!$D$16+'BP Financier'!$D$19+'BP Financier'!$E$16+'BP Financier'!$E$19+'BP Financier'!$C$22+'BP Financier'!$D$22+'BP Financier'!$E$22))*$V4386*AB4386/(1-$W4386)","v":{"v":341.0806421745972,"d":"341"}},null,{"v":0.01,"d":"1.00%"},{"$f":"Actif!$E$28/100","v":{"v":0.28900000000000003,"d":"28.90%"}},{"$f":"Actif!$E$30/100","v":{"v":0.09050000000000001,"d":"9.05%"}},{"$f":"Actif!$E$31/100","v":{"v":0.0605,"d":"6.05%"}},{"$f":"Actif!$E$32/100","v":{"v":0.47350000000000003,"d":"47.35%"}},{"$f":"Actif!$E$33/100","v":{"v":0.0585,"d":"5.85%"}},{"$f":"Actif!$E$29/100","v":{"v":0.027999999999999997,"d":"2.80%"}}]
[null,"#286",60,2026,"H","A_CAPI",{"v":0.44999999999999996,"d":"0.45"},{"v":0.38999999999999996,"d":"0.39"},0.6,0.6,85,0,{"$f":"ROUND(Primes!$O$10*V4387,2)","v":0.75},0,{"v":14435.020034889203,"d":"14,435"},{"$f":"'BP Financier'!$E$44*(('BP Financier'!$C$22+'BP Financier'!$D$22+'BP Financier'!$E$22)/('BP Financier'!$C$16+'BP Financier'!$C$19+'BP Financier'!$D$16+'BP Financier'!$D$19+'BP Financier'!$E$16+'BP Financier'!$E$19+'BP Financier'!$C$22+'BP Financier'!$D$22+'BP Financier'!$E$22))*$V4387*X4387/(1-$W4387)","v":{"v":1837.3689355238719,"d":"1,837"}},{"$f":"'BP Financier'!$E$44*(('BP Financier'!$C$22+'BP Financier'!$D$22+'BP Financier'!$E$22)/('BP Financier'!$C$16+'BP Financier'!$C$19+'BP Financier'!$D$16+'BP Financier'!$D$19+'BP Financier'!$E$16+'BP Financier'!$E$19+'BP Financier'!$C$22+'BP Financier'!$D$22+'BP Financier'!$E$22))*$V4387*Y4387/(1-$W4387)","v":{"v":1228.296360212091,"d":"1,228"}},{"$f":"'BP Financier'!$E$44*(('BP Financier'!$C$22+'BP Financier'!$D$22+'BP Financier'!$E$22)/('BP Financier'!$C$16+'BP Financier'!$C$19+'BP Financier'!$D$16+'BP Financier'!$D$19+'BP Financier'!$E$16+'BP Financier'!$E$19+'BP Financier'!$C$22+'BP Financier'!$D$22+'BP Financier'!$E$22))*$V4387*Z4387/(1-$W4387)","v":{"v":9613.195480337605,"d":"9,613"}},{"$f":"'BP Financier'!$E$44*(('BP Financier'!$C$22+'BP Financier'!$D$22+'BP Financier'!$E$22)/('BP Financier'!$C$16+'BP Financier'!$C$19+'BP Financier'!$D$16+'BP Financier'!$D$19+'BP Financier'!$E$16+'BP Financier'!$E$19+'BP Financier'!$C$22+'BP Financier'!$D$22+'BP Financier'!$E$22))*$V4387*AA4387/(1-$W4387)","v":{"v":1187.6915218579725,"d":"1,188"}},{"$f":"'BP Financier'!$E$44*(('BP Financier'!$C$22+'BP Financier'!$D$22+'BP Financier'!$E$22)/('BP Financier'!$C$16+'BP Financier'!$C$19+'BP Financier'!$D$16+'BP Financier'!$D$19+'BP Financier'!$E$16+'BP Financier'!$E$19+'BP Financier'!$C$22+'BP Financier'!$D$22+'BP Financier'!$E$22))*$V4387*AB4387/(1-$W4387)","v":{"v":568.4677369576619,"d":"568"}},null,{"v":0.016666666666666666,"d":"1.67%"},{"$f":"Actif!$E$28/100","v":{"v":0.28900000000000003,"d":"28.90%"}},{"$f":"Actif!$E$30/100","v":{"v":0.09050000000000001,"d":"9.05%"}},{"$f":"Actif!$E$31/100","v":{"v":0.0605,"d":"6.05%"}},{"$f":"Actif!$E$32/100","v":{"v":0.47350000000000003,"d":"47.35%"}},{"$f":"Actif!$E$33/100","v":{"v":0.0585,"d":"5.85%"}},{"$f":"Actif!$E$29/100","v":{"v":0.027999999999999997,"d":"2.80%"}}]
[null,"#287",60,2028,"H","A_CAPI",{"v":0.44999999999999996,"d":"0.45"},{"v":0.38999999999999996,"d":"0.39"},0.6,0.6,85,0,{"$f":"ROUND(Primes!$O$10*V4388,2)","v":0.75},0,{"v":14435.020034889203,"d":"14,435"},{"$f":"'BP Financier'!$E$44*(('BP Financier'!$C$22+'BP Financier'!$D$22+'BP Financier'!$E$22)/('BP Financier'!$C$16+'BP Financier'!$C$19+'BP Financier'!$D$16+'BP Financier'!$D$19+'BP Financier'!$E$16+'BP Financier'!$E$19+'BP Financier'!$C$22+'BP Financier'!$D$22+'BP Financier'!$E$22))*$V4388*X4388/(1-$W4388)","v":{"v":1837.3689355238719,"d":"1,837"}},{"$f":"'BP Financier'!$E$44*(('BP Financier'!$C$22+'BP Financier'!$D$22+'BP Financier'!$E$22)/('BP Financier'!$C$16+'BP Financier'!$C$19+'BP Financier'!$D$16+'BP Financier'!$D$19+'BP Financier'!$E$16+'BP Financier'!$E$19+'BP Financier'!$C$22+'BP Financier'!$D$22+'BP Financier'!$E$22))*$V4388*Y4388/(1-$W4388)","v":{"v":1228.296360212091,"d":"1,228"}},{"$f":"'BP Financier'!$E$44*(('BP Financier'!$C$22+'BP Financier'!$D$22+'BP Financier'!$E$22)/('BP Financier'!$C$16+'BP Financier'!$C$19+'BP Financier'!$D$16+'BP Financier'!$D$19+'BP Financier'!$E$16+'BP Financier'!$E$19+'BP Financier'!$C$22+'BP Financier'!$D$22+'BP Financier'!$E$22))*$V4388*Z4388/(1-$W4388)","v":{"v":9613.195480337605,"d":"9,613"}},{"$f":"'BP Financier'!$E$44*(('BP Financier'!$C$22+'BP Financier'!$D$22+'BP Financier'!$E$22)/('BP Financier'!$C$16+'BP Financier'!$C$19+'BP Financier'!$D$16+'BP Financier'!$D$19+'BP Financier'!$E$16+'BP Financier'!$E$19+'BP Financier'!$C$22+'BP Financier'!$D$22+'BP Financier'!$E$22))*$V4388*AA4388/(1-$W4388)","v":{"v":1187.6915218579725,"d":"1,188"}},{"$f":"'BP Financier'!$E$44*(('BP Financier'!$C$22+'BP Financier'!$D$22+'BP Financier'!$E$22)/('BP Financier'!$C$16+'BP Financier'!$C$19+'BP Financier'!$D$16+'BP Financier'!$D$19+'BP Financier'!$E$16+'BP Financier'!$E$19+'BP Financier'!$C$22+'BP Financier'!$D$22+'BP Financier'!$E$22))*$V4388*AB4388/(1-$W4388)","v":{"v":568.4677369576619,"d":"568"}},null,{"v":0.016666666666666666,"d":"1.67%"},{"$f":"Actif!$E$28/100","v":{"v":0.28900000000000003,"d":"28.90%"}},{"$f":"Actif!$E$30/100","v":{"v":0.09050000000000001,"d":"9.05%"}},{"$f":"Actif!$E$31/100","v":{"v":0.0605,"d":"6.05%"}},{"$f":"Actif!$E$32/100","v":{"v":0.47350000000000003,"d":"47.35%"}},{"$f":"Actif!$E$33/100","v":{"v":0.0585,"d":"5.85%"}},{"$f":"Actif!$E$29/100","v":{"v":0.027999999999999997,"d":"2.80%"}}]
[null,"#288",60,2029,"H","A_CAPI",{"v":0.44999999999999996,"d":"0.45"},{"v":0.38999999999999996,"d":"0.39"},0.6,0.6,85,0,{"$f":"ROUND(Primes!$O$10*V4389,2)","v":0.75},0,{"v":14435.020034889203,"d":"14,435"},{"$f":"'BP Financier'!$E$44*(('BP Financier'!$C$22+'BP Financier'!$D$22+'BP Financier'!$E$22)/('BP Financier'!$C$16+'BP Financier'!$C$19+'BP Financier'!$D$16+'BP Financier'!$D$19+'BP Financier'!$E$16+'BP Financier'!$E$19+'BP Financier'!$C$22+'BP Financier'!$D$22+'BP Financier'!$E$22))*$V4389*X4389/(1-$W4389)","v":{"v":1837.3689355238719,"d":"1,837"}},{"$f":"'BP Financier'!$E$44*(('BP Financier'!$C$22+'BP Financier'!$D$22+'BP Financier'!$E$22)/('BP Financier'!$C$16+'BP Financier'!$C$19+'BP Financier'!$D$16+'BP Financier'!$D$19+'BP Financier'!$E$16+'BP Financier'!$E$19+'BP Financier'!$C$22+'BP Financier'!$D$22+'BP Financier'!$E$22))*$V4389*Y4389/(1-$W4389)","v":{"v":1228.296360212091,"d":"1,228"}},{"$f":"'BP Financier'!$E$44*(('BP Financier'!$C$22+'BP Financier'!$D$22+'BP Financier'!$E$22)/('BP Financier'!$C$16+'BP Financier'!$C$19+'BP Financier'!$D$16+'BP Financier'!$D$19+'BP Financier'!$E$16+'BP Financier'!$E$19+'BP Financier'!$C$22+'BP Financier'!$D$22+'BP Financier'!$E$22))*$V4389*Z4389/(1-$W4389)","v":{"v":9613.195480337605,"d":"9,613"}},{"$f":"'BP Financier'!$E$44*(('BP Financier'!$C$22+'BP Financier'!$D$22+'BP Financier'!$E$22)/('BP Financier'!$C$16+'BP Financier'!$C$19+'BP Financier'!$D$16+'BP Financier'!$D$19+'BP Financier'!$E$16+'BP Financier'!$E$19+'BP Financier'!$C$22+'BP Financier'!$D$22+'BP Financier'!$E$22))*$V4389*AA4389/(1-$W4389)","v":{"v":1187.6915218579725,"d":"1,188"}},{"$f":"'BP Financier'!$E$44*(('BP Financier'!$C$22+'BP Financier'!$D$22+'BP Financier'!$E$22)/('BP Financier'!$C$16+'BP Financier'!$C$19+'BP Financier'!$D$16+'BP Financier'!$D$19+'BP Financier'!$E$16+'BP Financier'!$E$19+'BP Financier'!$C$22+'BP Financier'!$D$22+'BP Financier'!$E$22))*$V4389*AB4389/(1-$W4389)","v":{"v":568.4677369576619,"d":"568"}},null,{"v":0.016666666666666666,"d":"1.67%"},{"$f":"Actif!$E$28/100","v":{"v":0.28900000000000003,"d":"28.90%"}},{"$f":"Actif!$E$30/100","v":{"v":0.09050000000000001,"d":"9.05%"}},{"$f":"Actif!$E$31/100","v":{"v":0.0605,"d":"6.05%"}},{"$f":"Actif!$E$32/100","v":{"v":0.47350000000000003,"d":"47.35%"}},{"$f":"Actif!$E$33/100","v":{"v":0.0585,"d":"5.85%"}},{"$f":"Actif!$E$29/100","v":{"v":0.027999999999999997,"d":"2.80%"}}]
[null,"#289",61,2026,"H","A_CAPI",{"v":0.44999999999999996,"d":"0.45"},{"v":0.38999999999999996,"d":"0.39"},0.6,0.6,85,0,{"$f":"ROUND(Primes!$O$10*V4390,2)","v":0.45},0,{"$f":"SUM(P4390:T4390)","v":{"v":8661.012020933522,"d":"8,661"}},{"$f":"'BP Financier'!$E$44*(('BP Financier'!$C$22+'BP Financier'!$D$22+'BP Financier'!$E$22)/('BP Financier'!$C$16+'BP Financier'!$C$19+'BP Financier'!$D$16+'BP Financier'!$D$19+'BP Financier'!$E$16+'BP Financier'!$E$19+'BP Financier'!$C$22+'BP Financier'!$D$22+'BP Financier'!$E$22))*$V4390*X4390/(1-$W4390)","v":{"v":1102.4213613143233,"d":"1,102"}},{"$f":"'BP Financier'!$E$44*(('BP Financier'!$C$22+'BP Financier'!$D$22+'BP Financier'!$E$22)/('BP Financier'!$C$16+'BP Financier'!$C$19+'BP Financier'!$D$16+'BP Financier'!$D$19+'BP Financier'!$E$16+'BP Financier'!$E$19+'BP Financier'!$C$22+'BP Financier'!$D$22+'BP Financier'!$E$22))*$V4390*Y4390/(1-$W4390)","v":{"v":736.9778161272546,"d":"737"}},{"$f":"'BP Financier'!$E$44*(('BP Financier'!$C$22+'BP Financier'!$D$22+'BP Financier'!$E$22)/('BP Financier'!$C$16+'BP Financier'!$C$19+'BP Financier'!$D$16+'BP Financier'!$D$19+'BP Financier'!$E$16+'BP Financier'!$E$19+'BP Financier'!$C$22+'BP Financier'!$D$22+'BP Financier'!$E$22))*$V4390*Z4390/(1-$W4390)","v":{"v":5767.917288202564,"d":"5,768"}},{"$f":"'BP Financier'!$E$44*(('BP Financier'!$C$22+'BP Financier'!$D$22+'BP Financier'!$E$22)/('BP Financier'!$C$16+'BP Financier'!$C$19+'BP Financier'!$D$16+'BP Financier'!$D$19+'BP Financier'!$E$16+'BP Financier'!$E$19+'BP Financier'!$C$22+'BP Financier'!$D$22+'BP Financier'!$E$22))*$V4390*AA4390/(1-$W4390)","v":{"v":712.6149131147836,"d":"713"}},{"$f":"'BP Financier'!$E$44*(('BP Financier'!$C$22+'BP Financier'!$D$22+'BP Financier'!$E$22)/('BP Financier'!$C$16+'BP Financier'!$C$19+'BP Financier'!$D$16+'BP Financier'!$D$19+'BP Financier'!$E$16+'BP Financier'!$E$19+'BP Financier'!$C$22+'BP Financier'!$D$22+'BP Financier'!$E$22))*$V4390*AB4390/(1-$W4390)","v":{"v":341.0806421745972,"d":"341"}},null,{"v":0.01,"d":"1.00%"},{"$f":"Actif!$E$28/100","v":{"v":0.28900000000000003,"d":"28.90%"}},{"$f":"Actif!$E$30/100","v":{"v":0.09050000000000001,"d":"9.05%"}},{"$f":"Actif!$E$31/100","v":{"v":0.0605,"d":"6.05%"}},{"$f":"Actif!$E$32/100","v":{"v":0.47350000000000003,"d":"47.35%"}},{"$f":"Actif!$E$33/100","v":{"v":0.0585,"d":"5.85%"}},{"$f":"Actif!$E$29/100","v":{"v":0.027999999999999997,"d":"2.80%"}}]
[null,"#290",61,2028,"H","A_CAPI",{"v":0.44999999999999996,"d":"0.45"},{"v":0.38999999999999996,"d":"0.39"},0.6,0.6,85,0,{"$f":"ROUND(Primes!$O$10*V4391,2)","v":0.45},0,{"v":8661.012020933522,"d":"8,661"},{"$f":"'BP Financier'!$E$44*(('BP Financier'!$C$22+'BP Financier'!$D$22+'BP Financier'!$E$22)/('BP Financier'!$C$16+'BP Financier'!$C$19+'BP Financier'!$D$16+'BP Financier'!$D$19+'BP Financier'!$E$16+'BP Financier'!$E$19+'BP Financier'!$C$22+'BP Financier'!$D$22+'BP Financier'!$E$22))*$V4391*X4391/(1-$W4391)","v":{"v":1102.4213613143233,"d":"1,102"}},{"$f":"'BP Financier'!$E$44*(('BP Financier'!$C$22+'BP Financier'!$D$22+'BP Financier'!$E$22)/('BP Financier'!$C$16+'BP Financier'!$C$19+'BP Financier'!$D$16+'BP Financier'!$D$19+'BP Financier'!$E$16+'BP Financier'!$E$19+'BP Financier'!$C$22+'BP Financier'!$D$22+'BP Financier'!$E$22))*$V4391*Y4391/(1-$W4391)","v":{"v":736.9778161272546,"d":"737"}},{"$f":"'BP Financier'!$E$44*(('BP Financier'!$C$22+'BP Financier'!$D$22+'BP Financier'!$E$22)/('BP Financier'!$C$16+'BP Financier'!$C$19+'BP Financier'!$D$16+'BP Financier'!$D$19+'BP Financier'!$E$16+'BP Financier'!$E$19+'BP Financier'!$C$22+'BP Financier'!$D$22+'BP Financier'!$E$22))*$V4391*Z4391/(1-$W4391)","v":{"v":5767.917288202564,"d":"5,768"}},{"$f":"'BP Financier'!$E$44*(('BP Financier'!$C$22+'BP Financier'!$D$22+'BP Financier'!$E$22)/('BP Financier'!$C$16+'BP Financier'!$C$19+'BP Financier'!$D$16+'BP Financier'!$D$19+'BP Financier'!$E$16+'BP Financier'!$E$19+'BP Financier'!$C$22+'BP Financier'!$D$22+'BP Financier'!$E$22))*$V4391*AA4391/(1-$W4391)","v":{"v":712.6149131147836,"d":"713"}},{"$f":"'BP Financier'!$E$44*(('BP Financier'!$C$22+'BP Financier'!$D$22+'BP Financier'!$E$22)/('BP Financier'!$C$16+'BP Financier'!$C$19+'BP Financier'!$D$16+'BP Financier'!$D$19+'BP Financier'!$E$16+'BP Financier'!$E$19+'BP Financier'!$C$22+'BP Financier'!$D$22+'BP Financier'!$E$22))*$V4391*AB4391/(1-$W4391)","v":{"v":341.0806421745972,"d":"341"}},null,{"v":0.01,"d":"1.00%"},{"$f":"Actif!$E$28/100","v":{"v":0.28900000000000003,"d":"28.90%"}},{"$f":"Actif!$E$30/100","v":{"v":0.09050000000000001,"d":"9.05%"}},{"$f":"Actif!$E$31/100","v":{"v":0.0605,"d":"6.05%"}},{"$f":"Actif!$E$32/100","v":{"v":0.47350000000000003,"d":"47.35%"}},{"$f":"Actif!$E$33/100","v":{"v":0.0585,"d":"5.85%"}},{"$f":"Actif!$E$29/100","v":{"v":0.027999999999999997,"d":"2.80%"}}]
[null,"#291",61,2029,"H","A_CAPI",{"v":0.44999999999999996,"d":"0.45"},{"v":0.38999999999999996,"d":"0.39"},0.6,0.6,85,0,{"$f":"ROUND(Primes!$O$10*V4392,2)","v":0.45},0,{"v":8661.012020933522,"d":"8,661"},{"$f":"'BP Financier'!$E$44*(('BP Financier'!$C$22+'BP Financier'!$D$22+'BP Financier'!$E$22)/('BP Financier'!$C$16+'BP Financier'!$C$19+'BP Financier'!$D$16+'BP Financier'!$D$19+'BP Financier'!$E$16+'BP Financier'!$E$19+'BP Financier'!$C$22+'BP Financier'!$D$22+'BP Financier'!$E$22))*$V4392*X4392/(1-$W4392)","v":{"v":1102.4213613143233,"d":"1,102"}},{"$f":"'BP Financier'!$E$44*(('BP Financier'!$C$22+'BP Financier'!$D$22+'BP Financier'!$E$22)/('BP Financier'!$C$16+'BP Financier'!$C$19+'BP Financier'!$D$16+'BP Financier'!$D$19+'BP Financier'!$E$16+'BP Financier'!$E$19+'BP Financier'!$C$22+'BP Financier'!$D$22+'BP Financier'!$E$22))*$V4392*Y4392/(1-$W4392)","v":{"v":736.9778161272546,"d":"737"}},{"$f":"'BP Financier'!$E$44*(('BP Financier'!$C$22+'BP Financier'!$D$22+'BP Financier'!$E$22)/('BP Financier'!$C$16+'BP Financier'!$C$19+'BP Financier'!$D$16+'BP Financier'!$D$19+'BP Financier'!$E$16+'BP Financier'!$E$19+'BP Financier'!$C$22+'BP Financier'!$D$22+'BP Financier'!$E$22))*$V4392*Z4392/(1-$W4392)","v":{"v":5767.917288202564,"d":"5,768"}},{"$f":"'BP Financier'!$E$44*(('BP Financier'!$C$22+'BP Financier'!$D$22+'BP Financier'!$E$22)/('BP Financier'!$C$16+'BP Financier'!$C$19+'BP Financier'!$D$16+'BP Financier'!$D$19+'BP Financier'!$E$16+'BP Financier'!$E$19+'BP Financier'!$C$22+'BP Financier'!$D$22+'BP Financier'!$E$22))*$V4392*AA4392/(1-$W4392)","v":{"v":712.6149131147836,"d":"713"}},{"$f":"'BP Financier'!$E$44*(('BP Financier'!$C$22+'BP Financier'!$D$22+'BP Financier'!$E$22)/('BP Financier'!$C$16+'BP Financier'!$C$19+'BP Financier'!$D$16+'BP Financier'!$D$19+'BP Financier'!$E$16+'BP Financier'!$E$19+'BP Financier'!$C$22+'BP Financier'!$D$22+'BP Financier'!$E$22))*$V4392*AB4392/(1-$W4392)","v":{"v":341.0806421745972,"d":"341"}},null,{"v":0.01,"d":"1.00%"},{"$f":"Actif!$E$28/100","v":{"v":0.28900000000000003,"d":"28.90%"}},{"$f":"Actif!$E$30/100","v":{"v":0.09050000000000001,"d":"9.05%"}},{"$f":"Actif!$E$31/100","v":{"v":0.0605,"d":"6.05%"}},{"$f":"Actif!$E$32/100","v":{"v":0.47350000000000003,"d":"47.35%"}},{"$f":"Actif!$E$33/100","v":{"v":0.0585,"d":"5.85%"}},{"$f":"Actif!$E$29/100","v":{"v":0.027999999999999997,"d":"2.80%"}}]
[null,"#292",62,2026,"F","A_CAPI",{"v":0.44999999999999996,"d":"0.45"},{"v":0.38999999999999996,"d":"0.39"},0.6,0.6,85,0,{"$f":"ROUND(Primes!$O$10*V4393,2)","v":0.45},0,{"v":8661.012020933522,"d":"8,661"},{"$f":"'BP Financier'!$E$44*(('BP Financier'!$C$22+'BP Financier'!$D$22+'BP Financier'!$E$22)/('BP Financier'!$C$16+'BP Financier'!$C$19+'BP Financier'!$D$16+'BP Financier'!$D$19+'BP Financier'!$E$16+'BP Financier'!$E$19+'BP Financier'!$C$22+'BP Financier'!$D$22+'BP Financier'!$E$22))*$V4393*X4393/(1-$W4393)","v":{"v":1102.4213613143233,"d":"1,102"}},{"$f":"'BP Financier'!$E$44*(('BP Financier'!$C$22+'BP Financier'!$D$22+'BP Financier'!$E$22)/('BP Financier'!$C$16+'BP Financier'!$C$19+'BP Financier'!$D$16+'BP Financier'!$D$19+'BP Financier'!$E$16+'BP Financier'!$E$19+'BP Financier'!$C$22+'BP Financier'!$D$22+'BP Financier'!$E$22))*$V4393*Y4393/(1-$W4393)","v":{"v":736.9778161272546,"d":"737"}},{"$f":"'BP Financier'!$E$44*(('BP Financier'!$C$22+'BP Financier'!$D$22+'BP Financier'!$E$22)/('BP Financier'!$C$16+'BP Financier'!$C$19+'BP Financier'!$D$16+'BP Financier'!$D$19+'BP Financier'!$E$16+'BP Financier'!$E$19+'BP Financier'!$C$22+'BP Financier'!$D$22+'BP Financier'!$E$22))*$V4393*Z4393/(1-$W4393)","v":{"v":5767.917288202564,"d":"5,768"}},{"$f":"'BP Financier'!$E$44*(('BP Financier'!$C$22+'BP Financier'!$D$22+'BP Financier'!$E$22)/('BP Financier'!$C$16+'BP Financier'!$C$19+'BP Financier'!$D$16+'BP Financier'!$D$19+'BP Financier'!$E$16+'BP Financier'!$E$19+'BP Financier'!$C$22+'BP Financier'!$D$22+'BP Financier'!$E$22))*$V4393*AA4393/(1-$W4393)","v":{"v":712.6149131147836,"d":"713"}},{"$f":"'BP Financier'!$E$44*(('BP Financier'!$C$22+'BP Financier'!$D$22+'BP Financier'!$E$22)/('BP Financier'!$C$16+'BP Financier'!$C$19+'BP Financier'!$D$16+'BP Financier'!$D$19+'BP Financier'!$E$16+'BP Financier'!$E$19+'BP Financier'!$C$22+'BP Financier'!$D$22+'BP Financier'!$E$22))*$V4393*AB4393/(1-$W4393)","v":{"v":341.0806421745972,"d":"341"}},null,{"v":0.01,"d":"1.00%"},{"$f":"Actif!$E$28/100","v":{"v":0.28900000000000003,"d":"28.90%"}},{"$f":"Actif!$E$30/100","v":{"v":0.09050000000000001,"d":"9.05%"}},{"$f":"Actif!$E$31/100","v":{"v":0.0605,"d":"6.05%"}},{"$f":"Actif!$E$32/100","v":{"v":0.47350000000000003,"d":"47.35%"}},{"$f":"Actif!$E$33/100","v":{"v":0.0585,"d":"5.85%"}},{"$f":"Actif!$E$29/100","v":{"v":0.027999999999999997,"d":"2.80%"}}]
[null,"#293",62,2028,"F","A_CAPI",{"v":0.44999999999999996,"d":"0.45"},{"v":0.38999999999999996,"d":"0.39"},0.6,0.6,85,0,{"$f":"ROUND(Primes!$O$10*V4394,2)","v":0.45},0,{"v":8661.012020933522,"d":"8,661"},{"$f":"'BP Financier'!$E$44*(('BP Financier'!$C$22+'BP Financier'!$D$22+'BP Financier'!$E$22)/('BP Financier'!$C$16+'BP Financier'!$C$19+'BP Financier'!$D$16+'BP Financier'!$D$19+'BP Financier'!$E$16+'BP Financier'!$E$19+'BP Financier'!$C$22+'BP Financier'!$D$22+'BP Financier'!$E$22))*$V4394*X4394/(1-$W4394)","v":{"v":1102.4213613143233,"d":"1,102"}},{"$f":"'BP Financier'!$E$44*(('BP Financier'!$C$22+'BP Financier'!$D$22+'BP Financier'!$E$22)/('BP Financier'!$C$16+'BP Financier'!$C$19+'BP Financier'!$D$16+'BP Financier'!$D$19+'BP Financier'!$E$16+'BP Financier'!$E$19+'BP Financier'!$C$22+'BP Financier'!$D$22+'BP Financier'!$E$22))*$V4394*Y4394/(1-$W4394)","v":{"v":736.9778161272546,"d":"737"}},{"$f":"'BP Financier'!$E$44*(('BP Financier'!$C$22+'BP Financier'!$D$22+'BP Financier'!$E$22)/('BP Financier'!$C$16+'BP Financier'!$C$19+'BP Financier'!$D$16+'BP Financier'!$D$19+'BP Financier'!$E$16+'BP Financier'!$E$19+'BP Financier'!$C$22+'BP Financier'!$D$22+'BP Financier'!$E$22))*$V4394*Z4394/(1-$W4394)","v":{"v":5767.917288202564,"d":"5,768"}},{"$f":"'BP Financier'!$E$44*(('BP Financier'!$C$22+'BP Financier'!$D$22+'BP Financier'!$E$22)/('BP Financier'!$C$16+'BP Financier'!$C$19+'BP Financier'!$D$16+'BP Financier'!$D$19+'BP Financier'!$E$16+'BP Financier'!$E$19+'BP Financier'!$C$22+'BP Financier'!$D$22+'BP Financier'!$E$22))*$V4394*AA4394/(1-$W4394)","v":{"v":712.6149131147836,"d":"713"}},{"$f":"'BP Financier'!$E$44*(('BP Financier'!$C$22+'BP Financier'!$D$22+'BP Financier'!$E$22)/('BP Financier'!$C$16+'BP Financier'!$C$19+'BP Financier'!$D$16+'BP Financier'!$D$19+'BP Financier'!$E$16+'BP Financier'!$E$19+'BP Financier'!$C$22+'BP Financier'!$D$22+'BP Financier'!$E$22))*$V4394*AB4394/(1-$W4394)","v":{"v":341.0806421745972,"d":"341"}},null,{"v":0.01,"d":"1.00%"},{"$f":"Actif!$E$28/100","v":{"v":0.28900000000000003,"d":"28.90%"}},{"$f":"Actif!$E$30/100","v":{"v":0.09050000000000001,"d":"9.05%"}},{"$f":"Actif!$E$31/100","v":{"v":0.0605,"d":"6.05%"}},{"$f":"Actif!$E$32/100","v":{"v":0.47350000000000003,"d":"47.35%"}},{"$f":"Actif!$E$33/100","v":{"v":0.0585,"d":"5.85%"}},{"$f":"Actif!$E$29/100","v":{"v":0.027999999999999997,"d":"2.80%"}}]
[null,"#294",62,2029,"F","A_CAPI",{"v":0.44999999999999996,"d":"0.45"},{"v":0.38999999999999996,"d":"0.39"},0.6,0.6,85,0,{"$f":"ROUND(Primes!$O$10*V4395,2)","v":0.45},0,{"v":8661.012020933522,"d":"8,661"},{"$f":"'BP Financier'!$E$44*(('BP Financier'!$C$22+'BP Financier'!$D$22+'BP Financier'!$E$22)/('BP Financier'!$C$16+'BP Financier'!$C$19+'BP Financier'!$D$16+'BP Financier'!$D$19+'BP Financier'!$E$16+'BP Financier'!$E$19+'BP Financier'!$C$22+'BP Financier'!$D$22+'BP Financier'!$E$22))*$V4395*X4395/(1-$W4395)","v":{"v":1102.4213613143233,"d":"1,102"}},{"$f":"'BP Financier'!$E$44*(('BP Financier'!$C$22+'BP Financier'!$D$22+'BP Financier'!$E$22)/('BP Financier'!$C$16+'BP Financier'!$C$19+'BP Financier'!$D$16+'BP Financier'!$D$19+'BP Financier'!$E$16+'BP Financier'!$E$19+'BP Financier'!$C$22+'BP Financier'!$D$22+'BP Financier'!$E$22))*$V4395*Y4395/(1-$W4395)","v":{"v":736.9778161272546,"d":"737"}},{"$f":"'BP Financier'!$E$44*(('BP Financier'!$C$22+'BP Financier'!$D$22+'BP Financier'!$E$22)/('BP Financier'!$C$16+'BP Financier'!$C$19+'BP Financier'!$D$16+'BP Financier'!$D$19+'BP Financier'!$E$16+'BP Financier'!$E$19+'BP Financier'!$C$22+'BP Financier'!$D$22+'BP Financier'!$E$22))*$V4395*Z4395/(1-$W4395)","v":{"v":5767.917288202564,"d":"5,768"}},{"$f":"'BP Financier'!$E$44*(('BP Financier'!$C$22+'BP Financier'!$D$22+'BP Financier'!$E$22)/('BP Financier'!$C$16+'BP Financier'!$C$19+'BP Financier'!$D$16+'BP Financier'!$D$19+'BP Financier'!$E$16+'BP Financier'!$E$19+'BP Financier'!$C$22+'BP Financier'!$D$22+'BP Financier'!$E$22))*$V4395*AA4395/(1-$W4395)","v":{"v":712.6149131147836,"d":"713"}},{"$f":"'BP Financier'!$E$44*(('BP Financier'!$C$22+'BP Financier'!$D$22+'BP Financier'!$E$22)/('BP Financier'!$C$16+'BP Financier'!$C$19+'BP Financier'!$D$16+'BP Financier'!$D$19+'BP Financier'!$E$16+'BP Financier'!$E$19+'BP Financier'!$C$22+'BP Financier'!$D$22+'BP Financier'!$E$22))*$V4395*AB4395/(1-$W4395)","v":{"v":341.0806421745972,"d":"341"}},null,{"v":0.01,"d":"1.00%"},{"$f":"Actif!$E$28/100","v":{"v":0.28900000000000003,"d":"28.90%"}},{"$f":"Actif!$E$30/100","v":{"v":0.09050000000000001,"d":"9.05%"}},{"$f":"Actif!$E$31/100","v":{"v":0.0605,"d":"6.05%"}},{"$f":"Actif!$E$32/100","v":{"v":0.47350000000000003,"d":"47.35%"}},{"$f":"Actif!$E$33/100","v":{"v":0.0585,"d":"5.85%"}},{"$f":"Actif!$E$29/100","v":{"v":0.027999999999999997,"d":"2.80%"}}]
[null,"#295",63,2026,"H","A_CAPI",{"v":0.44999999999999996,"d":"0.45"},{"v":0.38999999999999996,"d":"0.39"},0.6,0.6,85,0,{"$f":"ROUND(Primes!$O$10*V4396,2)","v":0.45},0,{"v":8661.012020933522,"d":"8,661"},{"$f":"'BP Financier'!$E$44*(('BP Financier'!$C$22+'BP Financier'!$D$22+'BP Financier'!$E$22)/('BP Financier'!$C$16+'BP Financier'!$C$19+'BP Financier'!$D$16+'BP Financier'!$D$19+'BP Financier'!$E$16+'BP Financier'!$E$19+'BP Financier'!$C$22+'BP Financier'!$D$22+'BP Financier'!$E$22))*$V4396*X4396/(1-$W4396)","v":{"v":1102.4213613143233,"d":"1,102"}},{"$f":"'BP Financier'!$E$44*(('BP Financier'!$C$22+'BP Financier'!$D$22+'BP Financier'!$E$22)/('BP Financier'!$C$16+'BP Financier'!$C$19+'BP Financier'!$D$16+'BP Financier'!$D$19+'BP Financier'!$E$16+'BP Financier'!$E$19+'BP Financier'!$C$22+'BP Financier'!$D$22+'BP Financier'!$E$22))*$V4396*Y4396/(1-$W4396)","v":{"v":736.9778161272546,"d":"737"}},{"$f":"'BP Financier'!$E$44*(('BP Financier'!$C$22+'BP Financier'!$D$22+'BP Financier'!$E$22)/('BP Financier'!$C$16+'BP Financier'!$C$19+'BP Financier'!$D$16+'BP Financier'!$D$19+'BP Financier'!$E$16+'BP Financier'!$E$19+'BP Financier'!$C$22+'BP Financier'!$D$22+'BP Financier'!$E$22))*$V4396*Z4396/(1-$W4396)","v":{"v":5767.917288202564,"d":"5,768"}},{"$f":"'BP Financier'!$E$44*(('BP Financier'!$C$22+'BP Financier'!$D$22+'BP Financier'!$E$22)/('BP Financier'!$C$16+'BP Financier'!$C$19+'BP Financier'!$D$16+'BP Financier'!$D$19+'BP Financier'!$E$16+'BP Financier'!$E$19+'BP Financier'!$C$22+'BP Financier'!$D$22+'BP Financier'!$E$22))*$V4396*AA4396/(1-$W4396)","v":{"v":712.6149131147836,"d":"713"}},{"$f":"'BP Financier'!$E$44*(('BP Financier'!$C$22+'BP Financier'!$D$22+'BP Financier'!$E$22)/('BP Financier'!$C$16+'BP Financier'!$C$19+'BP Financier'!$D$16+'BP Financier'!$D$19+'BP Financier'!$E$16+'BP Financier'!$E$19+'BP Financier'!$C$22+'BP Financier'!$D$22+'BP Financier'!$E$22))*$V4396*AB4396/(1-$W4396)","v":{"v":341.0806421745972,"d":"341"}},null,{"v":0.01,"d":"1.00%"},{"$f":"Actif!$E$28/100","v":{"v":0.28900000000000003,"d":"28.90%"}},{"$f":"Actif!$E$30/100","v":{"v":0.09050000000000001,"d":"9.05%"}},{"$f":"Actif!$E$31/100","v":{"v":0.0605,"d":"6.05%"}},{"$f":"Actif!$E$32/100","v":{"v":0.47350000000000003,"d":"47.35%"}},{"$f":"Actif!$E$33/100","v":{"v":0.0585,"d":"5.85%"}},{"$f":"Actif!$E$29/100","v":{"v":0.027999999999999997,"d":"2.80%"}}]
[null,"#296",63,2028,"H","A_CAPI",{"v":0.44999999999999996,"d":"0.45"},{"v":0.38999999999999996,"d":"0.39"},0.6,0.6,85,0,{"$f":"ROUND(Primes!$O$10*V4397,2)","v":0.45},0,{"v":8661.012020933522,"d":"8,661"},{"$f":"'BP Financier'!$E$44*(('BP Financier'!$C$22+'BP Financier'!$D$22+'BP Financier'!$E$22)/('BP Financier'!$C$16+'BP Financier'!$C$19+'BP Financier'!$D$16+'BP Financier'!$D$19+'BP Financier'!$E$16+'BP Financier'!$E$19+'BP Financier'!$C$22+'BP Financier'!$D$22+'BP Financier'!$E$22))*$V4397*X4397/(1-$W4397)","v":{"v":1102.4213613143233,"d":"1,102"}},{"$f":"'BP Financier'!$E$44*(('BP Financier'!$C$22+'BP Financier'!$D$22+'BP Financier'!$E$22)/('BP Financier'!$C$16+'BP Financier'!$C$19+'BP Financier'!$D$16+'BP Financier'!$D$19+'BP Financier'!$E$16+'BP Financier'!$E$19+'BP Financier'!$C$22+'BP Financier'!$D$22+'BP Financier'!$E$22))*$V4397*Y4397/(1-$W4397)","v":{"v":736.9778161272546,"d":"737"}},{"$f":"'BP Financier'!$E$44*(('BP Financier'!$C$22+'BP Financier'!$D$22+'BP Financier'!$E$22)/('BP Financier'!$C$16+'BP Financier'!$C$19+'BP Financier'!$D$16+'BP Financier'!$D$19+'BP Financier'!$E$16+'BP Financier'!$E$19+'BP Financier'!$C$22+'BP Financier'!$D$22+'BP Financier'!$E$22))*$V4397*Z4397/(1-$W4397)","v":{"v":5767.917288202564,"d":"5,768"}},{"$f":"'BP Financier'!$E$44*(('BP Financier'!$C$22+'BP Financier'!$D$22+'BP Financier'!$E$22)/('BP Financier'!$C$16+'BP Financier'!$C$19+'BP Financier'!$D$16+'BP Financier'!$D$19+'BP Financier'!$E$16+'BP Financier'!$E$19+'BP Financier'!$C$22+'BP Financier'!$D$22+'BP Financier'!$E$22))*$V4397*AA4397/(1-$W4397)","v":{"v":712.6149131147836,"d":"713"}},{"$f":"'BP Financier'!$E$44*(('BP Financier'!$C$22+'BP Financier'!$D$22+'BP Financier'!$E$22)/('BP Financier'!$C$16+'BP Financier'!$C$19+'BP Financier'!$D$16+'BP Financier'!$D$19+'BP Financier'!$E$16+'BP Financier'!$E$19+'BP Financier'!$C$22+'BP Financier'!$D$22+'BP Financier'!$E$22))*$V4397*AB4397/(1-$W4397)","v":{"v":341.0806421745972,"d":"341"}},null,{"v":0.01,"d":"1.00%"},{"$f":"Actif!$E$28/100","v":{"v":0.28900000000000003,"d":"28.90%"}},{"$f":"Actif!$E$30/100","v":{"v":0.09050000000000001,"d":"9.05%"}},{"$f":"Actif!$E$31/100","v":{"v":0.0605,"d":"6.05%"}},{"$f":"Actif!$E$32/100","v":{"v":0.47350000000000003,"d":"47.35%"}},{"$f":"Actif!$E$33/100","v":{"v":0.0585,"d":"5.85%"}},{"$f":"Actif!$E$29/100","v":{"v":0.027999999999999997,"d":"2.80%"}}]
[null,"#297",63,2029,"H","A_CAPI",{"v":0.44999999999999996,"d":"0.45"},{"v":0.38999999999999996,"d":"0.39"},0.6,0.6,85,0,{"$f":"ROUND(Primes!$O$10*V4398,2)","v":0.45},0,{"v":8661.012020933522,"d":"8,661"},{"$f":"'BP Financier'!$E$44*(('BP Financier'!$C$22+'BP Financier'!$D$22+'BP Financier'!$E$22)/('BP Financier'!$C$16+'BP Financier'!$C$19+'BP Financier'!$D$16+'BP Financier'!$D$19+'BP Financier'!$E$16+'BP Financier'!$E$19+'BP Financier'!$C$22+'BP Financier'!$D$22+'BP Financier'!$E$22))*$V4398*X4398/(1-$W4398)","v":{"v":1102.4213613143233,"d":"1,102"}},{"$f":"'BP Financier'!$E$44*(('BP Financier'!$C$22+'BP Financier'!$D$22+'BP Financier'!$E$22)/('BP Financier'!$C$16+'BP Financier'!$C$19+'BP Financier'!$D$16+'BP Financier'!$D$19+'BP Financier'!$E$16+'BP Financier'!$E$19+'BP Financier'!$C$22+'BP Financier'!$D$22+'BP Financier'!$E$22))*$V4398*Y4398/(1-$W4398)","v":{"v":736.9778161272546,"d":"737"}},{"$f":"'BP Financier'!$E$44*(('BP Financier'!$C$22+'BP Financier'!$D$22+'BP Financier'!$E$22)/('BP Financier'!$C$16+'BP Financier'!$C$19+'BP Financier'!$D$16+'BP Financier'!$D$19+'BP Financier'!$E$16+'BP Financier'!$E$19+'BP Financier'!$C$22+'BP Financier'!$D$22+'BP Financier'!$E$22))*$V4398*Z4398/(1-$W4398)","v":{"v":5767.917288202564,"d":"5,768"}},{"$f":"'BP Financier'!$E$44*(('BP Financier'!$C$22+'BP Financier'!$D$22+'BP Financier'!$E$22)/('BP Financier'!$C$16+'BP Financier'!$C$19+'BP Financier'!$D$16+'BP Financier'!$D$19+'BP Financier'!$E$16+'BP Financier'!$E$19+'BP Financier'!$C$22+'BP Financier'!$D$22+'BP Financier'!$E$22))*$V4398*AA4398/(1-$W4398)","v":{"v":712.6149131147836,"d":"713"}},{"$f":"'BP Financier'!$E$44*(('BP Financier'!$C$22+'BP Financier'!$D$22+'BP Financier'!$E$22)/('BP Financier'!$C$16+'BP Financier'!$C$19+'BP Financier'!$D$16+'BP Financier'!$D$19+'BP Financier'!$E$16+'BP Financier'!$E$19+'BP Financier'!$C$22+'BP Financier'!$D$22+'BP Financier'!$E$22))*$V4398*AB4398/(1-$W4398)","v":{"v":341.0806421745972,"d":"341"}},null,{"v":0.01,"d":"1.00%"},{"$f":"Actif!$E$28/100","v":{"v":0.28900000000000003,"d":"28.90%"}},{"$f":"Actif!$E$30/100","v":{"v":0.09050000000000001,"d":"9.05%"}},{"$f":"Actif!$E$31/100","v":{"v":0.0605,"d":"6.05%"}},{"$f":"Actif!$E$32/100","v":{"v":0.47350000000000003,"d":"47.35%"}},{"$f":"Actif!$E$33/100","v":{"v":0.0585,"d":"5.85%"}},{"$f":"Actif!$E$29/100","v":{"v":0.027999999999999997,"d":"2.80%"}}]
[null,"#298",64,2026,"H","A_CAPI",{"v":0.44999999999999996,"d":"0.45"},{"v":0.38999999999999996,"d":"0.39"},0.6,0.6,85,0,{"$f":"ROUND(Primes!$O$10*V4399,2)","v":0.45},0,{"v":8661.012020933522,"d":"8,661"},{"$f":"'BP Financier'!$E$44*(('BP Financier'!$C$22+'BP Financier'!$D$22+'BP Financier'!$E$22)/('BP Financier'!$C$16+'BP Financier'!$C$19+'BP Financier'!$D$16+'BP Financier'!$D$19+'BP Financier'!$E$16+'BP Financier'!$E$19+'BP Financier'!$C$22+'BP Financier'!$D$22+'BP Financier'!$E$22))*$V4399*X4399/(1-$W4399)","v":{"v":1102.4213613143233,"d":"1,102"}},{"$f":"'BP Financier'!$E$44*(('BP Financier'!$C$22+'BP Financier'!$D$22+'BP Financier'!$E$22)/('BP Financier'!$C$16+'BP Financier'!$C$19+'BP Financier'!$D$16+'BP Financier'!$D$19+'BP Financier'!$E$16+'BP Financier'!$E$19+'BP Financier'!$C$22+'BP Financier'!$D$22+'BP Financier'!$E$22))*$V4399*Y4399/(1-$W4399)","v":{"v":736.9778161272546,"d":"737"}},{"$f":"'BP Financier'!$E$44*(('BP Financier'!$C$22+'BP Financier'!$D$22+'BP Financier'!$E$22)/('BP Financier'!$C$16+'BP Financier'!$C$19+'BP Financier'!$D$16+'BP Financier'!$D$19+'BP Financier'!$E$16+'BP Financier'!$E$19+'BP Financier'!$C$22+'BP Financier'!$D$22+'BP Financier'!$E$22))*$V4399*Z4399/(1-$W4399)","v":{"v":5767.917288202564,"d":"5,768"}},{"$f":"'BP Financier'!$E$44*(('BP Financier'!$C$22+'BP Financier'!$D$22+'BP Financier'!$E$22)/('BP Financier'!$C$16+'BP Financier'!$C$19+'BP Financier'!$D$16+'BP Financier'!$D$19+'BP Financier'!$E$16+'BP Financier'!$E$19+'BP Financier'!$C$22+'BP Financier'!$D$22+'BP Financier'!$E$22))*$V4399*AA4399/(1-$W4399)","v":{"v":712.6149131147836,"d":"713"}},{"$f":"'BP Financier'!$E$44*(('BP Financier'!$C$22+'BP Financier'!$D$22+'BP Financier'!$E$22)/('BP Financier'!$C$16+'BP Financier'!$C$19+'BP Financier'!$D$16+'BP Financier'!$D$19+'BP Financier'!$E$16+'BP Financier'!$E$19+'BP Financier'!$C$22+'BP Financier'!$D$22+'BP Financier'!$E$22))*$V4399*AB4399/(1-$W4399)","v":{"v":341.0806421745972,"d":"341"}},null,{"v":0.01,"d":"1.00%"},{"$f":"Actif!$E$28/100","v":{"v":0.28900000000000003,"d":"28.90%"}},{"$f":"Actif!$E$30/100","v":{"v":0.09050000000000001,"d":"9.05%"}},{"$f":"Actif!$E$31/100","v":{"v":0.0605,"d":"6.05%"}},{"$f":"Actif!$E$32/100","v":{"v":0.47350000000000003,"d":"47.35%"}},{"$f":"Actif!$E$33/100","v":{"v":0.0585,"d":"5.85%"}},{"$f":"Actif!$E$29/100","v":{"v":0.027999999999999997,"d":"2.80%"}}]
[null,"#299",64,2028,"H","A_CAPI",{"v":0.44999999999999996,"d":"0.45"},{"v":0.38999999999999996,"d":"0.39"},0.6,0.6,85,0,{"$f":"ROUND(Primes!$O$10*V4400,2)","v":0.45},0,{"v":8661.012020933522,"d":"8,661"},{"$f":"'BP Financier'!$E$44*(('BP Financier'!$C$22+'BP Financier'!$D$22+'BP Financier'!$E$22)/('BP Financier'!$C$16+'BP Financier'!$C$19+'BP Financier'!$D$16+'BP Financier'!$D$19+'BP Financier'!$E$16+'BP Financier'!$E$19+'BP Financier'!$C$22+'BP Financier'!$D$22+'BP Financier'!$E$22))*$V4400*X4400/(1-$W4400)","v":{"v":1102.4213613143233,"d":"1,102"}},{"$f":"'BP Financier'!$E$44*(('BP Financier'!$C$22+'BP Financier'!$D$22+'BP Financier'!$E$22)/('BP Financier'!$C$16+'BP Financier'!$C$19+'BP Financier'!$D$16+'BP Financier'!$D$19+'BP Financier'!$E$16+'BP Financier'!$E$19+'BP Financier'!$C$22+'BP Financier'!$D$22+'BP Financier'!$E$22))*$V4400*Y4400/(1-$W4400)","v":{"v":736.9778161272546,"d":"737"}},{"$f":"'BP Financier'!$E$44*(('BP Financier'!$C$22+'BP Financier'!$D$22+'BP Financier'!$E$22)/('BP Financier'!$C$16+'BP Financier'!$C$19+'BP Financier'!$D$16+'BP Financier'!$D$19+'BP Financier'!$E$16+'BP Financier'!$E$19+'BP Financier'!$C$22+'BP Financier'!$D$22+'BP Financier'!$E$22))*$V4400*Z4400/(1-$W4400)","v":{"v":5767.917288202564,"d":"5,768"}},{"$f":"'BP Financier'!$E$44*(('BP Financier'!$C$22+'BP Financier'!$D$22+'BP Financier'!$E$22)/('BP Financier'!$C$16+'BP Financier'!$C$19+'BP Financier'!$D$16+'BP Financier'!$D$19+'BP Financier'!$E$16+'BP Financier'!$E$19+'BP Financier'!$C$22+'BP Financier'!$D$22+'BP Financier'!$E$22))*$V4400*AA4400/(1-$W4400)","v":{"v":712.6149131147836,"d":"713"}},{"$f":"'BP Financier'!$E$44*(('BP Financier'!$C$22+'BP Financier'!$D$22+'BP Financier'!$E$22)/('BP Financier'!$C$16+'BP Financier'!$C$19+'BP Financier'!$D$16+'BP Financier'!$D$19+'BP Financier'!$E$16+'BP Financier'!$E$19+'BP Financier'!$C$22+'BP Financier'!$D$22+'BP Financier'!$E$22))*$V4400*AB4400/(1-$W4400)","v":{"v":341.0806421745972,"d":"341"}},null,{"v":0.01,"d":"1.00%"},{"$f":"Actif!$E$28/100","v":{"v":0.28900000000000003,"d":"28.90%"}},{"$f":"Actif!$E$30/100","v":{"v":0.09050000000000001,"d":"9.05%"}},{"$f":"Actif!$E$31/100","v":{"v":0.0605,"d":"6.05%"}},{"$f":"Actif!$E$32/100","v":{"v":0.47350000000000003,"d":"47.35%"}},{"$f":"Actif!$E$33/100","v":{"v":0.0585,"d":"5.85%"}},{"$f":"Actif!$E$29/100","v":{"v":0.027999999999999997,"d":"2.80%"}}]
[null,"#300",64,2029,"H","A_CAPI",{"v":0.44999999999999996,"d":"0.45"},{"v":0.38999999999999996,"d":"0.39"},0.6,0.6,85,0,{"$f":"ROUND(Primes!$O$10*V4401,2)","v":0.45},0,{"v":8661.012020933522,"d":"8,661"},{"$f":"'BP Financier'!$E$44*(('BP Financier'!$C$22+'BP Financier'!$D$22+'BP Financier'!$E$22)/('BP Financier'!$C$16+'BP Financier'!$C$19+'BP Financier'!$D$16+'BP Financier'!$D$19+'BP Financier'!$E$16+'BP Financier'!$E$19+'BP Financier'!$C$22+'BP Financier'!$D$22+'BP Financier'!$E$22))*$V4401*X4401/(1-$W4401)","v":{"v":1102.4213613143233,"d":"1,102"}},{"$f":"'BP Financier'!$E$44*(('BP Financier'!$C$22+'BP Financier'!$D$22+'BP Financier'!$E$22)/('BP Financier'!$C$16+'BP Financier'!$C$19+'BP Financier'!$D$16+'BP Financier'!$D$19+'BP Financier'!$E$16+'BP Financier'!$E$19+'BP Financier'!$C$22+'BP Financier'!$D$22+'BP Financier'!$E$22))*$V4401*Y4401/(1-$W4401)","v":{"v":736.9778161272546,"d":"737"}},{"$f":"'BP Financier'!$E$44*(('BP Financier'!$C$22+'BP Financier'!$D$22+'BP Financier'!$E$22)/('BP Financier'!$C$16+'BP Financier'!$C$19+'BP Financier'!$D$16+'BP Financier'!$D$19+'BP Financier'!$E$16+'BP Financier'!$E$19+'BP Financier'!$C$22+'BP Financier'!$D$22+'BP Financier'!$E$22))*$V4401*Z4401/(1-$W4401)","v":{"v":5767.917288202564,"d":"5,768"}},{"$f":"'BP Financier'!$E$44*(('BP Financier'!$C$22+'BP Financier'!$D$22+'BP Financier'!$E$22)/('BP Financier'!$C$16+'BP Financier'!$C$19+'BP Financier'!$D$16+'BP Financier'!$D$19+'BP Financier'!$E$16+'BP Financier'!$E$19+'BP Financier'!$C$22+'BP Financier'!$D$22+'BP Financier'!$E$22))*$V4401*AA4401/(1-$W4401)","v":{"v":712.6149131147836,"d":"713"}},{"$f":"'BP Financier'!$E$44*(('BP Financier'!$C$22+'BP Financier'!$D$22+'BP Financier'!$E$22)/('BP Financier'!$C$16+'BP Financier'!$C$19+'BP Financier'!$D$16+'BP Financier'!$D$19+'BP Financier'!$E$16+'BP Financier'!$E$19+'BP Financier'!$C$22+'BP Financier'!$D$22+'BP Financier'!$E$22))*$V4401*AB4401/(1-$W4401)","v":{"v":341.0806421745972,"d":"341"}},null,{"v":0.01,"d":"1.00%"},{"$f":"Actif!$E$28/100","v":{"v":0.28900000000000003,"d":"28.90%"}},{"$f":"Actif!$E$30/100","v":{"v":0.09050000000000001,"d":"9.05%"}},{"$f":"Actif!$E$31/100","v":{"v":0.0605,"d":"6.05%"}},{"$f":"Actif!$E$32/100","v":{"v":0.47350000000000003,"d":"47.35%"}},{"$f":"Actif!$E$33/100","v":{"v":0.0585,"d":"5.85%"}},{"$f":"Actif!$E$29/100","v":{"v":0.027999999999999997,"d":"2.80%"}}]
[null,"#301",65,2026,"F","A_CAPI",{"v":0.44999999999999996,"d":"0.45"},{"v":0.38999999999999996,"d":"0.39"},0.6,0.6,85,0,{"$f":"ROUND(Primes!$O$10*V4402,2)","v":0.45},0,{"v":8661.012020933522,"d":"8,661"},{"$f":"'BP Financier'!$E$44*(('BP Financier'!$C$22+'BP Financier'!$D$22+'BP Financier'!$E$22)/('BP Financier'!$C$16+'BP Financier'!$C$19+'BP Financier'!$D$16+'BP Financier'!$D$19+'BP Financier'!$E$16+'BP Financier'!$E$19+'BP Financier'!$C$22+'BP Financier'!$D$22+'BP Financier'!$E$22))*$V4402*X4402/(1-$W4402)","v":{"v":1102.4213613143233,"d":"1,102"}},{"$f":"'BP Financier'!$E$44*(('BP Financier'!$C$22+'BP Financier'!$D$22+'BP Financier'!$E$22)/('BP Financier'!$C$16+'BP Financier'!$C$19+'BP Financier'!$D$16+'BP Financier'!$D$19+'BP Financier'!$E$16+'BP Financier'!$E$19+'BP Financier'!$C$22+'BP Financier'!$D$22+'BP Financier'!$E$22))*$V4402*Y4402/(1-$W4402)","v":{"v":736.9778161272546,"d":"737"}},{"$f":"'BP Financier'!$E$44*(('BP Financier'!$C$22+'BP Financier'!$D$22+'BP Financier'!$E$22)/('BP Financier'!$C$16+'BP Financier'!$C$19+'BP Financier'!$D$16+'BP Financier'!$D$19+'BP Financier'!$E$16+'BP Financier'!$E$19+'BP Financier'!$C$22+'BP Financier'!$D$22+'BP Financier'!$E$22))*$V4402*Z4402/(1-$W4402)","v":{"v":5767.917288202564,"d":"5,768"}},{"$f":"'BP Financier'!$E$44*(('BP Financier'!$C$22+'BP Financier'!$D$22+'BP Financier'!$E$22)/('BP Financier'!$C$16+'BP Financier'!$C$19+'BP Financier'!$D$16+'BP Financier'!$D$19+'BP Financier'!$E$16+'BP Financier'!$E$19+'BP Financier'!$C$22+'BP Financier'!$D$22+'BP Financier'!$E$22))*$V4402*AA4402/(1-$W4402)","v":{"v":712.6149131147836,"d":"713"}},{"$f":"'BP Financier'!$E$44*(('BP Financier'!$C$22+'BP Financier'!$D$22+'BP Financier'!$E$22)/('BP Financier'!$C$16+'BP Financier'!$C$19+'BP Financier'!$D$16+'BP Financier'!$D$19+'BP Financier'!$E$16+'BP Financier'!$E$19+'BP Financier'!$C$22+'BP Financier'!$D$22+'BP Financier'!$E$22))*$V4402*AB4402/(1-$W4402)","v":{"v":341.0806421745972,"d":"341"}},null,{"v":0.01,"d":"1.00%"},{"$f":"Actif!$E$28/100","v":{"v":0.28900000000000003,"d":"28.90%"}},{"$f":"Actif!$E$30/100","v":{"v":0.09050000000000001,"d":"9.05%"}},{"$f":"Actif!$E$31/100","v":{"v":0.0605,"d":"6.05%"}},{"$f":"Actif!$E$32/100","v":{"v":0.47350000000000003,"d":"47.35%"}},{"$f":"Actif!$E$33/100","v":{"v":0.0585,"d":"5.85%"}},{"$f":"Actif!$E$29/100","v":{"v":0.027999999999999997,"d":"2.80%"}}]
[null,"#302",65,2028,"F","A_CAPI",{"v":0.44999999999999996,"d":"0.45"},{"v":0.38999999999999996,"d":"0.39"},0.6,0.6,85,0,{"$f":"ROUND(Primes!$O$10*V4403,2)","v":0.45},0,{"v":8661.012020933522,"d":"8,661"},{"$f":"'BP Financier'!$E$44*(('BP Financier'!$C$22+'BP Financier'!$D$22+'BP Financier'!$E$22)/('BP Financier'!$C$16+'BP Financier'!$C$19+'BP Financier'!$D$16+'BP Financier'!$D$19+'BP Financier'!$E$16+'BP Financier'!$E$19+'BP Financier'!$C$22+'BP Financier'!$D$22+'BP Financier'!$E$22))*$V4403*X4403/(1-$W4403)","v":{"v":1102.4213613143233,"d":"1,102"}},{"$f":"'BP Financier'!$E$44*(('BP Financier'!$C$22+'BP Financier'!$D$22+'BP Financier'!$E$22)/('BP Financier'!$C$16+'BP Financier'!$C$19+'BP Financier'!$D$16+'BP Financier'!$D$19+'BP Financier'!$E$16+'BP Financier'!$E$19+'BP Financier'!$C$22+'BP Financier'!$D$22+'BP Financier'!$E$22))*$V4403*Y4403/(1-$W4403)","v":{"v":736.9778161272546,"d":"737"}},{"$f":"'BP Financier'!$E$44*(('BP Financier'!$C$22+'BP Financier'!$D$22+'BP Financier'!$E$22)/('BP Financier'!$C$16+'BP Financier'!$C$19+'BP Financier'!$D$16+'BP Financier'!$D$19+'BP Financier'!$E$16+'BP Financier'!$E$19+'BP Financier'!$C$22+'BP Financier'!$D$22+'BP Financier'!$E$22))*$V4403*Z4403/(1-$W4403)","v":{"v":5767.917288202564,"d":"5,768"}},{"$f":"'BP Financier'!$E$44*(('BP Financier'!$C$22+'BP Financier'!$D$22+'BP Financier'!$E$22)/('BP Financier'!$C$16+'BP Financier'!$C$19+'BP Financier'!$D$16+'BP Financier'!$D$19+'BP Financier'!$E$16+'BP Financier'!$E$19+'BP Financier'!$C$22+'BP Financier'!$D$22+'BP Financier'!$E$22))*$V4403*AA4403/(1-$W4403)","v":{"v":712.6149131147836,"d":"713"}},{"$f":"'BP Financier'!$E$44*(('BP Financier'!$C$22+'BP Financier'!$D$22+'BP Financier'!$E$22)/('BP Financier'!$C$16+'BP Financier'!$C$19+'BP Financier'!$D$16+'BP Financier'!$D$19+'BP Financier'!$E$16+'BP Financier'!$E$19+'BP Financier'!$C$22+'BP Financier'!$D$22+'BP Financier'!$E$22))*$V4403*AB4403/(1-$W4403)","v":{"v":341.0806421745972,"d":"341"}},null,{"v":0.01,"d":"1.00%"},{"$f":"Actif!$E$28/100","v":{"v":0.28900000000000003,"d":"28.90%"}},{"$f":"Actif!$E$30/100","v":{"v":0.09050000000000001,"d":"9.05%"}},{"$f":"Actif!$E$31/100","v":{"v":0.0605,"d":"6.05%"}},{"$f":"Actif!$E$32/100","v":{"v":0.47350000000000003,"d":"47.35%"}},{"$f":"Actif!$E$33/100","v":{"v":0.0585,"d":"5.85%"}},{"$f":"Actif!$E$29/100","v":{"v":0.027999999999999997,"d":"2.80%"}}]
[null,"#303",65,2029,"F","A_CAPI",{"v":0.44999999999999996,"d":"0.45"},{"v":0.38999999999999996,"d":"0.39"},0.6,0.6,85,0,{"$f":"ROUND(Primes!$O$10*V4404,2)","v":0.45},0,{"v":8661.012020933522,"d":"8,661"},{"$f":"'BP Financier'!$E$44*(('BP Financier'!$C$22+'BP Financier'!$D$22+'BP Financier'!$E$22)/('BP Financier'!$C$16+'BP Financier'!$C$19+'BP Financier'!$D$16+'BP Financier'!$D$19+'BP Financier'!$E$16+'BP Financier'!$E$19+'BP Financier'!$C$22+'BP Financier'!$D$22+'BP Financier'!$E$22))*$V4404*X4404/(1-$W4404)","v":{"v":1102.4213613143233,"d":"1,102"}},{"$f":"'BP Financier'!$E$44*(('BP Financier'!$C$22+'BP Financier'!$D$22+'BP Financier'!$E$22)/('BP Financier'!$C$16+'BP Financier'!$C$19+'BP Financier'!$D$16+'BP Financier'!$D$19+'BP Financier'!$E$16+'BP Financier'!$E$19+'BP Financier'!$C$22+'BP Financier'!$D$22+'BP Financier'!$E$22))*$V4404*Y4404/(1-$W4404)","v":{"v":736.9778161272546,"d":"737"}},{"$f":"'BP Financier'!$E$44*(('BP Financier'!$C$22+'BP Financier'!$D$22+'BP Financier'!$E$22)/('BP Financier'!$C$16+'BP Financier'!$C$19+'BP Financier'!$D$16+'BP Financier'!$D$19+'BP Financier'!$E$16+'BP Financier'!$E$19+'BP Financier'!$C$22+'BP Financier'!$D$22+'BP Financier'!$E$22))*$V4404*Z4404/(1-$W4404)","v":{"v":5767.917288202564,"d":"5,768"}},{"$f":"'BP Financier'!$E$44*(('BP Financier'!$C$22+'BP Financier'!$D$22+'BP Financier'!$E$22)/('BP Financier'!$C$16+'BP Financier'!$C$19+'BP Financier'!$D$16+'BP Financier'!$D$19+'BP Financier'!$E$16+'BP Financier'!$E$19+'BP Financier'!$C$22+'BP Financier'!$D$22+'BP Financier'!$E$22))*$V4404*AA4404/(1-$W4404)","v":{"v":712.6149131147836,"d":"713"}},{"$f":"'BP Financier'!$E$44*(('BP Financier'!$C$22+'BP Financier'!$D$22+'BP Financier'!$E$22)/('BP Financier'!$C$16+'BP Financier'!$C$19+'BP Financier'!$D$16+'BP Financier'!$D$19+'BP Financier'!$E$16+'BP Financier'!$E$19+'BP Financier'!$C$22+'BP Financier'!$D$22+'BP Financier'!$E$22))*$V4404*AB4404/(1-$W4404)","v":{"v":341.0806421745972,"d":"341"}},null,{"v":0.01,"d":"1.00%"},{"$f":"Actif!$E$28/100","v":{"v":0.28900000000000003,"d":"28.90%"}},{"$f":"Actif!$E$30/100","v":{"v":0.09050000000000001,"d":"9.05%"}},{"$f":"Actif!$E$31/100","v":{"v":0.0605,"d":"6.05%"}},{"$f":"Actif!$E$32/100","v":{"v":0.47350000000000003,"d":"47.35%"}},{"$f":"Actif!$E$33/100","v":{"v":0.0585,"d":"5.85%"}},{"$f":"Actif!$E$29/100","v":{"v":0.027999999999999997,"d":"2.80%"}}]
[null,"#304",70,2026,"H","A_CAPI",{"v":0.44999999999999996,"d":"0.45"},{"v":0.38999999999999996,"d":"0.39"},0.6,0.6,85,0,{"$f":"ROUND(Primes!$O$10*V4405,2)","v":0.08},0,{"v":1443.5020034889205,"d":"1,444"},{"$f":"'BP Financier'!$E$44*(('BP Financier'!$C$22+'BP Financier'!$D$22+'BP Financier'!$E$22)/('BP Financier'!$C$16+'BP Financier'!$C$19+'BP Financier'!$D$16+'BP Financier'!$D$19+'BP Financier'!$E$16+'BP Financier'!$E$19+'BP Financier'!$C$22+'BP Financier'!$D$22+'BP Financier'!$E$22))*$V4405*X4405/(1-$W4405)","v":{"v":183.7368935523872,"d":"184"}},{"$f":"'BP Financier'!$E$44*(('BP Financier'!$C$22+'BP Financier'!$D$22+'BP Financier'!$E$22)/('BP Financier'!$C$16+'BP Financier'!$C$19+'BP Financier'!$D$16+'BP Financier'!$D$19+'BP Financier'!$E$16+'BP Financier'!$E$19+'BP Financier'!$C$22+'BP Financier'!$D$22+'BP Financier'!$E$22))*$V4405*Y4405/(1-$W4405)","v":{"v":122.82963602120911,"d":"123"}},{"$f":"'BP Financier'!$E$44*(('BP Financier'!$C$22+'BP Financier'!$D$22+'BP Financier'!$E$22)/('BP Financier'!$C$16+'BP Financier'!$C$19+'BP Financier'!$D$16+'BP Financier'!$D$19+'BP Financier'!$E$16+'BP Financier'!$E$19+'BP Financier'!$C$22+'BP Financier'!$D$22+'BP Financier'!$E$22))*$V4405*Z4405/(1-$W4405)","v":{"v":961.3195480337606,"d":"961"}},{"$f":"'BP Financier'!$E$44*(('BP Financier'!$C$22+'BP Financier'!$D$22+'BP Financier'!$E$22)/('BP Financier'!$C$16+'BP Financier'!$C$19+'BP Financier'!$D$16+'BP Financier'!$D$19+'BP Financier'!$E$16+'BP Financier'!$E$19+'BP Financier'!$C$22+'BP Financier'!$D$22+'BP Financier'!$E$22))*$V4405*AA4405/(1-$W4405)","v":{"v":118.76915218579725,"d":"119"}},{"$f":"'BP Financier'!$E$44*(('BP Financier'!$C$22+'BP Financier'!$D$22+'BP Financier'!$E$22)/('BP Financier'!$C$16+'BP Financier'!$C$19+'BP Financier'!$D$16+'BP Financier'!$D$19+'BP Financier'!$E$16+'BP Financier'!$E$19+'BP Financier'!$C$22+'BP Financier'!$D$22+'BP Financier'!$E$22))*$V4405*AB4405/(1-$W4405)","v":{"v":56.846773695766196,"d":"57"}},null,{"v":1.6666666666666668E-3,"d":"0.17%"},{"$f":"Actif!$E$28/100","v":{"v":0.28900000000000003,"d":"28.90%"}},{"$f":"Actif!$E$30/100","v":{"v":0.09050000000000001,"d":"9.05%"}},{"$f":"Actif!$E$31/100","v":{"v":0.0605,"d":"6.05%"}},{"$f":"Actif!$E$32/100","v":{"v":0.47350000000000003,"d":"47.35%"}},{"$f":"Actif!$E$33/100","v":{"v":0.0585,"d":"5.85%"}},{"$f":"Actif!$E$29/100","v":{"v":0.027999999999999997,"d":"2.80%"}}]
[null,"#305",70,2028,"H","A_CAPI",{"v":0.44999999999999996,"d":"0.45"},{"v":0.38999999999999996,"d":"0.39"},0.6,0.6,85,0,{"$f":"ROUND(Primes!$O$10*V4406,2)","v":0.08},0,{"v":1443.5020034889205,"d":"1,444"},{"$f":"'BP Financier'!$E$44*(('BP Financier'!$C$22+'BP Financier'!$D$22+'BP Financier'!$E$22)/('BP Financier'!$C$16+'BP Financier'!$C$19+'BP Financier'!$D$16+'BP Financier'!$D$19+'BP Financier'!$E$16+'BP Financier'!$E$19+'BP Financier'!$C$22+'BP Financier'!$D$22+'BP Financier'!$E$22))*$V4406*X4406/(1-$W4406)","v":{"v":183.7368935523872,"d":"184"}},{"$f":"'BP Financier'!$E$44*(('BP Financier'!$C$22+'BP Financier'!$D$22+'BP Financier'!$E$22)/('BP Financier'!$C$16+'BP Financier'!$C$19+'BP Financier'!$D$16+'BP Financier'!$D$19+'BP Financier'!$E$16+'BP Financier'!$E$19+'BP Financier'!$C$22+'BP Financier'!$D$22+'BP Financier'!$E$22))*$V4406*Y4406/(1-$W4406)","v":{"v":122.82963602120911,"d":"123"}},{"$f":"'BP Financier'!$E$44*(('BP Financier'!$C$22+'BP Financier'!$D$22+'BP Financier'!$E$22)/('BP Financier'!$C$16+'BP Financier'!$C$19+'BP Financier'!$D$16+'BP Financier'!$D$19+'BP Financier'!$E$16+'BP Financier'!$E$19+'BP Financier'!$C$22+'BP Financier'!$D$22+'BP Financier'!$E$22))*$V4406*Z4406/(1-$W4406)","v":{"v":961.3195480337606,"d":"961"}},{"$f":"'BP Financier'!$E$44*(('BP Financier'!$C$22+'BP Financier'!$D$22+'BP Financier'!$E$22)/('BP Financier'!$C$16+'BP Financier'!$C$19+'BP Financier'!$D$16+'BP Financier'!$D$19+'BP Financier'!$E$16+'BP Financier'!$E$19+'BP Financier'!$C$22+'BP Financier'!$D$22+'BP Financier'!$E$22))*$V4406*AA4406/(1-$W4406)","v":{"v":118.76915218579725,"d":"119"}},{"$f":"'BP Financier'!$E$44*(('BP Financier'!$C$22+'BP Financier'!$D$22+'BP Financier'!$E$22)/('BP Financier'!$C$16+'BP Financier'!$C$19+'BP Financier'!$D$16+'BP Financier'!$D$19+'BP Financier'!$E$16+'BP Financier'!$E$19+'BP Financier'!$C$22+'BP Financier'!$D$22+'BP Financier'!$E$22))*$V4406*AB4406/(1-$W4406)","v":{"v":56.846773695766196,"d":"57"}},null,{"v":1.6666666666666668E-3,"d":"0.17%"},{"$f":"Actif!$E$28/100","v":{"v":0.28900000000000003,"d":"28.90%"}},{"$f":"Actif!$E$30/100","v":{"v":0.09050000000000001,"d":"9.05%"}},{"$f":"Actif!$E$31/100","v":{"v":0.0605,"d":"6.05%"}},{"$f":"Actif!$E$32/100","v":{"v":0.47350000000000003,"d":"47.35%"}},{"$f":"Actif!$E$33/100","v":{"v":0.0585,"d":"5.85%"}},{"$f":"Actif!$E$29/100","v":{"v":0.027999999999999997,"d":"2.80%"}}]
[null,"#306",70,2029,"H","A_CAPI",{"v":0.44999999999999996,"d":"0.45"},{"v":0.38999999999999996,"d":"0.39"},0.6,0.6,85,0,{"$f":"ROUND(Primes!$O$10*V4407,2)","v":0.08},0,{"v":1443.5020034889205,"d":"1,444"},{"$f":"'BP Financier'!$E$44*(('BP Financier'!$C$22+'BP Financier'!$D$22+'BP Financier'!$E$22)/('BP Financier'!$C$16+'BP Financier'!$C$19+'BP Financier'!$D$16+'BP Financier'!$D$19+'BP Financier'!$E$16+'BP Financier'!$E$19+'BP Financier'!$C$22+'BP Financier'!$D$22+'BP Financier'!$E$22))*$V4407*X4407/(1-$W4407)","v":{"v":183.7368935523872,"d":"184"}},{"$f":"'BP Financier'!$E$44*(('BP Financier'!$C$22+'BP Financier'!$D$22+'BP Financier'!$E$22)/('BP Financier'!$C$16+'BP Financier'!$C$19+'BP Financier'!$D$16+'BP Financier'!$D$19+'BP Financier'!$E$16+'BP Financier'!$E$19+'BP Financier'!$C$22+'BP Financier'!$D$22+'BP Financier'!$E$22))*$V4407*Y4407/(1-$W4407)","v":{"v":122.82963602120911,"d":"123"}},{"$f":"'BP Financier'!$E$44*(('BP Financier'!$C$22+'BP Financier'!$D$22+'BP Financier'!$E$22)/('BP Financier'!$C$16+'BP Financier'!$C$19+'BP Financier'!$D$16+'BP Financier'!$D$19+'BP Financier'!$E$16+'BP Financier'!$E$19+'BP Financier'!$C$22+'BP Financier'!$D$22+'BP Financier'!$E$22))*$V4407*Z4407/(1-$W4407)","v":{"v":961.3195480337606,"d":"961"}},{"$f":"'BP Financier'!$E$44*(('BP Financier'!$C$22+'BP Financier'!$D$22+'BP Financier'!$E$22)/('BP Financier'!$C$16+'BP Financier'!$C$19+'BP Financier'!$D$16+'BP Financier'!$D$19+'BP Financier'!$E$16+'BP Financier'!$E$19+'BP Financier'!$C$22+'BP Financier'!$D$22+'BP Financier'!$E$22))*$V4407*AA4407/(1-$W4407)","v":{"v":118.76915218579725,"d":"119"}},{"$f":"'BP Financier'!$E$44*(('BP Financier'!$C$22+'BP Financier'!$D$22+'BP Financier'!$E$22)/('BP Financier'!$C$16+'BP Financier'!$C$19+'BP Financier'!$D$16+'BP Financier'!$D$19+'BP Financier'!$E$16+'BP Financier'!$E$19+'BP Financier'!$C$22+'BP Financier'!$D$22+'BP Financier'!$E$22))*$V4407*AB4407/(1-$W4407)","v":{"v":56.846773695766196,"d":"57"}},null,{"v":1.6666666666666668E-3,"d":"0.17%"},{"$f":"Actif!$E$28/100","v":{"v":0.28900000000000003,"d":"28.90%"}},{"$f":"Actif!$E$30/100","v":{"v":0.09050000000000001,"d":"9.05%"}},{"$f":"Actif!$E$31/100","v":{"v":0.0605,"d":"6.05%"}},{"$f":"Actif!$E$32/100","v":{"v":0.47350000000000003,"d":"47.35%"}},{"$f":"Actif!$E$33/100","v":{"v":0.0585,"d":"5.85%"}},{"$f":"Actif!$E$29/100","v":{"v":0.027999999999999997,"d":"2.80%"}}]
[null,"#307",75,2026,"H","A_CAPI",{"v":0.44999999999999996,"d":"0.45"},{"v":0.38999999999999996,"d":"0.39"},0.6,0.6,85,0,{"$f":"ROUND(Primes!$O$10*V4408,2)","v":0.08},0,{"v":1443.5020034889205,"d":"1,444"},{"$f":"'BP Financier'!$E$44*(('BP Financier'!$C$22+'BP Financier'!$D$22+'BP Financier'!$E$22)/('BP Financier'!$C$16+'BP Financier'!$C$19+'BP Financier'!$D$16+'BP Financier'!$D$19+'BP Financier'!$E$16+'BP Financier'!$E$19+'BP Financier'!$C$22+'BP Financier'!$D$22+'BP Financier'!$E$22))*$V4408*X4408/(1-$W4408)","v":{"v":183.7368935523872,"d":"184"}},{"$f":"'BP Financier'!$E$44*(('BP Financier'!$C$22+'BP Financier'!$D$22+'BP Financier'!$E$22)/('BP Financier'!$C$16+'BP Financier'!$C$19+'BP Financier'!$D$16+'BP Financier'!$D$19+'BP Financier'!$E$16+'BP Financier'!$E$19+'BP Financier'!$C$22+'BP Financier'!$D$22+'BP Financier'!$E$22))*$V4408*Y4408/(1-$W4408)","v":{"v":122.82963602120911,"d":"123"}},{"$f":"'BP Financier'!$E$44*(('BP Financier'!$C$22+'BP Financier'!$D$22+'BP Financier'!$E$22)/('BP Financier'!$C$16+'BP Financier'!$C$19+'BP Financier'!$D$16+'BP Financier'!$D$19+'BP Financier'!$E$16+'BP Financier'!$E$19+'BP Financier'!$C$22+'BP Financier'!$D$22+'BP Financier'!$E$22))*$V4408*Z4408/(1-$W4408)","v":{"v":961.3195480337606,"d":"961"}},{"$f":"'BP Financier'!$E$44*(('BP Financier'!$C$22+'BP Financier'!$D$22+'BP Financier'!$E$22)/('BP Financier'!$C$16+'BP Financier'!$C$19+'BP Financier'!$D$16+'BP Financier'!$D$19+'BP Financier'!$E$16+'BP Financier'!$E$19+'BP Financier'!$C$22+'BP Financier'!$D$22+'BP Financier'!$E$22))*$V4408*AA4408/(1-$W4408)","v":{"v":118.76915218579725,"d":"119"}},{"$f":"'BP Financier'!$E$44*(('BP Financier'!$C$22+'BP Financier'!$D$22+'BP Financier'!$E$22)/('BP Financier'!$C$16+'BP Financier'!$C$19+'BP Financier'!$D$16+'BP Financier'!$D$19+'BP Financier'!$E$16+'BP Financier'!$E$19+'BP Financier'!$C$22+'BP Financier'!$D$22+'BP Financier'!$E$22))*$V4408*AB4408/(1-$W4408)","v":{"v":56.846773695766196,"d":"57"}},null,{"v":1.6666666666666668E-3,"d":"0.17%"},{"$f":"Actif!$E$28/100","v":{"v":0.28900000000000003,"d":"28.90%"}},{"$f":"Actif!$E$30/100","v":{"v":0.09050000000000001,"d":"9.05%"}},{"$f":"Actif!$E$31/100","v":{"v":0.0605,"d":"6.05%"}},{"$f":"Actif!$E$32/100","v":{"v":0.47350000000000003,"d":"47.35%"}},{"$f":"Actif!$E$33/100","v":{"v":0.0585,"d":"5.85%"}},{"$f":"Actif!$E$29/100","v":{"v":0.027999999999999997,"d":"2.80%"}}]
[null,"#308",75,2028,"H","A_CAPI",{"v":0.44999999999999996,"d":"0.45"},{"v":0.38999999999999996,"d":"0.39"},0.6,0.6,85,0,{"$f":"ROUND(Primes!$O$10*V4409,2)","v":0.08},0,{"v":1443.5020034889205,"d":"1,444"},{"$f":"'BP Financier'!$E$44*(('BP Financier'!$C$22+'BP Financier'!$D$22+'BP Financier'!$E$22)/('BP Financier'!$C$16+'BP Financier'!$C$19+'BP Financier'!$D$16+'BP Financier'!$D$19+'BP Financier'!$E$16+'BP Financier'!$E$19+'BP Financier'!$C$22+'BP Financier'!$D$22+'BP Financier'!$E$22))*$V4409*X4409/(1-$W4409)","v":{"v":183.7368935523872,"d":"184"}},{"$f":"'BP Financier'!$E$44*(('BP Financier'!$C$22+'BP Financier'!$D$22+'BP Financier'!$E$22)/('BP Financier'!$C$16+'BP Financier'!$C$19+'BP Financier'!$D$16+'BP Financier'!$D$19+'BP Financier'!$E$16+'BP Financier'!$E$19+'BP Financier'!$C$22+'BP Financier'!$D$22+'BP Financier'!$E$22))*$V4409*Y4409/(1-$W4409)","v":{"v":122.82963602120911,"d":"123"}},{"$f":"'BP Financier'!$E$44*(('BP Financier'!$C$22+'BP Financier'!$D$22+'BP Financier'!$E$22)/('BP Financier'!$C$16+'BP Financier'!$C$19+'BP Financier'!$D$16+'BP Financier'!$D$19+'BP Financier'!$E$16+'BP Financier'!$E$19+'BP Financier'!$C$22+'BP Financier'!$D$22+'BP Financier'!$E$22))*$V4409*Z4409/(1-$W4409)","v":{"v":961.3195480337606,"d":"961"}},{"$f":"'BP Financier'!$E$44*(('BP Financier'!$C$22+'BP Financier'!$D$22+'BP Financier'!$E$22)/('BP Financier'!$C$16+'BP Financier'!$C$19+'BP Financier'!$D$16+'BP Financier'!$D$19+'BP Financier'!$E$16+'BP Financier'!$E$19+'BP Financier'!$C$22+'BP Financier'!$D$22+'BP Financier'!$E$22))*$V4409*AA4409/(1-$W4409)","v":{"v":118.76915218579725,"d":"119"}},{"$f":"'BP Financier'!$E$44*(('BP Financier'!$C$22+'BP Financier'!$D$22+'BP Financier'!$E$22)/('BP Financier'!$C$16+'BP Financier'!$C$19+'BP Financier'!$D$16+'BP Financier'!$D$19+'BP Financier'!$E$16+'BP Financier'!$E$19+'BP Financier'!$C$22+'BP Financier'!$D$22+'BP Financier'!$E$22))*$V4409*AB4409/(1-$W4409)","v":{"v":56.846773695766196,"d":"57"}},null,{"v":1.6666666666666668E-3,"d":"0.17%"},{"$f":"Actif!$E$28/100","v":{"v":0.28900000000000003,"d":"28.90%"}},{"$f":"Actif!$E$30/100","v":{"v":0.09050000000000001,"d":"9.05%"}},{"$f":"Actif!$E$31/100","v":{"v":0.0605,"d":"6.05%"}},{"$f":"Actif!$E$32/100","v":{"v":0.47350000000000003,"d":"47.35%"}},{"$f":"Actif!$E$33/100","v":{"v":0.0585,"d":"5.85%"}},{"$f":"Actif!$E$29/100","v":{"v":0.027999999999999997,"d":"2.80%"}}]
[null,"#309",75,2029,"H","A_CAPI",{"v":0.44999999999999996,"d":"0.45"},{"v":0.38999999999999996,"d":"0.39"},0.6,0.6,85,0,{"$f":"ROUND(Primes!$O$10*V4410,2)","v":0.08},0,{"v":1443.5020034889205,"d":"1,444"},{"$f":"'BP Financier'!$E$44*(('BP Financier'!$C$22+'BP Financier'!$D$22+'BP Financier'!$E$22)/('BP Financier'!$C$16+'BP Financier'!$C$19+'BP Financier'!$D$16+'BP Financier'!$D$19+'BP Financier'!$E$16+'BP Financier'!$E$19+'BP Financier'!$C$22+'BP Financier'!$D$22+'BP Financier'!$E$22))*$V4410*X4410/(1-$W4410)","v":{"v":183.7368935523872,"d":"184"}},{"$f":"'BP Financier'!$E$44*(('BP Financier'!$C$22+'BP Financier'!$D$22+'BP Financier'!$E$22)/('BP Financier'!$C$16+'BP Financier'!$C$19+'BP Financier'!$D$16+'BP Financier'!$D$19+'BP Financier'!$E$16+'BP Financier'!$E$19+'BP Financier'!$C$22+'BP Financier'!$D$22+'BP Financier'!$E$22))*$V4410*Y4410/(1-$W4410)","v":{"v":122.82963602120911,"d":"123"}},{"$f":"'BP Financier'!$E$44*(('BP Financier'!$C$22+'BP Financier'!$D$22+'BP Financier'!$E$22)/('BP Financier'!$C$16+'BP Financier'!$C$19+'BP Financier'!$D$16+'BP Financier'!$D$19+'BP Financier'!$E$16+'BP Financier'!$E$19+'BP Financier'!$C$22+'BP Financier'!$D$22+'BP Financier'!$E$22))*$V4410*Z4410/(1-$W4410)","v":{"v":961.3195480337606,"d":"961"}},{"$f":"'BP Financier'!$E$44*(('BP Financier'!$C$22+'BP Financier'!$D$22+'BP Financier'!$E$22)/('BP Financier'!$C$16+'BP Financier'!$C$19+'BP Financier'!$D$16+'BP Financier'!$D$19+'BP Financier'!$E$16+'BP Financier'!$E$19+'BP Financier'!$C$22+'BP Financier'!$D$22+'BP Financier'!$E$22))*$V4410*AA4410/(1-$W4410)","v":{"v":118.76915218579725,"d":"119"}},{"$f":"'BP Financier'!$E$44*(('BP Financier'!$C$22+'BP Financier'!$D$22+'BP Financier'!$E$22)/('BP Financier'!$C$16+'BP Financier'!$C$19+'BP Financier'!$D$16+'BP Financier'!$D$19+'BP Financier'!$E$16+'BP Financier'!$E$19+'BP Financier'!$C$22+'BP Financier'!$D$22+'BP Financier'!$E$22))*$V4410*AB4410/(1-$W4410)","v":{"v":56.846773695766196,"d":"57"}},null,{"v":1.6666666666666668E-3,"d":"0.17%"},{"$f":"Actif!$E$28/100","v":{"v":0.28900000000000003,"d":"28.90%"}},{"$f":"Actif!$E$30/100","v":{"v":0.09050000000000001,"d":"9.05%"}},{"$f":"Actif!$E$31/100","v":{"v":0.0605,"d":"6.05%"}},{"$f":"Actif!$E$32/100","v":{"v":0.47350000000000003,"d":"47.35%"}},{"$f":"Actif!$E$33/100","v":{"v":0.0585,"d":"5.85%"}},{"$f":"Actif!$E$29/100","v":{"v":0.027999999999999997,"d":"2.80%"}}]
[null,"#310",80,2026,"F","A_CAPI",{"v":0.44999999999999996,"d":"0.45"},{"v":0.38999999999999996,"d":"0.39"},0.6,0.6,85,0,{"$f":"ROUND(Primes!$O$10*V4411,2)","v":0.08},0,{"v":1443.5020034889205,"d":"1,444"},{"$f":"'BP Financier'!$E$44*(('BP Financier'!$C$22+'BP Financier'!$D$22+'BP Financier'!$E$22)/('BP Financier'!$C$16+'BP Financier'!$C$19+'BP Financier'!$D$16+'BP Financier'!$D$19+'BP Financier'!$E$16+'BP Financier'!$E$19+'BP Financier'!$C$22+'BP Financier'!$D$22+'BP Financier'!$E$22))*$V4411*X4411/(1-$W4411)","v":{"v":183.7368935523872,"d":"184"}},{"$f":"'BP Financier'!$E$44*(('BP Financier'!$C$22+'BP Financier'!$D$22+'BP Financier'!$E$22)/('BP Financier'!$C$16+'BP Financier'!$C$19+'BP Financier'!$D$16+'BP Financier'!$D$19+'BP Financier'!$E$16+'BP Financier'!$E$19+'BP Financier'!$C$22+'BP Financier'!$D$22+'BP Financier'!$E$22))*$V4411*Y4411/(1-$W4411)","v":{"v":122.82963602120911,"d":"123"}},{"$f":"'BP Financier'!$E$44*(('BP Financier'!$C$22+'BP Financier'!$D$22+'BP Financier'!$E$22)/('BP Financier'!$C$16+'BP Financier'!$C$19+'BP Financier'!$D$16+'BP Financier'!$D$19+'BP Financier'!$E$16+'BP Financier'!$E$19+'BP Financier'!$C$22+'BP Financier'!$D$22+'BP Financier'!$E$22))*$V4411*Z4411/(1-$W4411)","v":{"v":961.3195480337606,"d":"961"}},{"$f":"'BP Financier'!$E$44*(('BP Financier'!$C$22+'BP Financier'!$D$22+'BP Financier'!$E$22)/('BP Financier'!$C$16+'BP Financier'!$C$19+'BP Financier'!$D$16+'BP Financier'!$D$19+'BP Financier'!$E$16+'BP Financier'!$E$19+'BP Financier'!$C$22+'BP Financier'!$D$22+'BP Financier'!$E$22))*$V4411*AA4411/(1-$W4411)","v":{"v":118.76915218579725,"d":"119"}},{"$f":"'BP Financier'!$E$44*(('BP Financier'!$C$22+'BP Financier'!$D$22+'BP Financier'!$E$22)/('BP Financier'!$C$16+'BP Financier'!$C$19+'BP Financier'!$D$16+'BP Financier'!$D$19+'BP Financier'!$E$16+'BP Financier'!$E$19+'BP Financier'!$C$22+'BP Financier'!$D$22+'BP Financier'!$E$22))*$V4411*AB4411/(1-$W4411)","v":{"v":56.846773695766196,"d":"57"}},null,{"v":1.6666666666666668E-3,"d":"0.17%"},{"$f":"Actif!$E$28/100","v":{"v":0.28900000000000003,"d":"28.90%"}},{"$f":"Actif!$E$30/100","v":{"v":0.09050000000000001,"d":"9.05%"}},{"$f":"Actif!$E$31/100","v":{"v":0.0605,"d":"6.05%"}},{"$f":"Actif!$E$32/100","v":{"v":0.47350000000000003,"d":"47.35%"}},{"$f":"Actif!$E$33/100","v":{"v":0.0585,"d":"5.85%"}},{"$f":"Actif!$E$29/100","v":{"v":0.027999999999999997,"d":"2.80%"}}]
[null,"#311",80,2028,"F","A_CAPI",{"v":0.44999999999999996,"d":"0.45"},{"v":0.38999999999999996,"d":"0.39"},0.6,0.6,85,0,{"$f":"ROUND(Primes!$O$10*V4412,2)","v":0.08},0,{"v":1443.5020034889205,"d":"1,444"},{"$f":"'BP Financier'!$E$44*(('BP Financier'!$C$22+'BP Financier'!$D$22+'BP Financier'!$E$22)/('BP Financier'!$C$16+'BP Financier'!$C$19+'BP Financier'!$D$16+'BP Financier'!$D$19+'BP Financier'!$E$16+'BP Financier'!$E$19+'BP Financier'!$C$22+'BP Financier'!$D$22+'BP Financier'!$E$22))*$V4412*X4412/(1-$W4412)","v":{"v":183.7368935523872,"d":"184"}},{"$f":"'BP Financier'!$E$44*(('BP Financier'!$C$22+'BP Financier'!$D$22+'BP Financier'!$E$22)/('BP Financier'!$C$16+'BP Financier'!$C$19+'BP Financier'!$D$16+'BP Financier'!$D$19+'BP Financier'!$E$16+'BP Financier'!$E$19+'BP Financier'!$C$22+'BP Financier'!$D$22+'BP Financier'!$E$22))*$V4412*Y4412/(1-$W4412)","v":{"v":122.82963602120911,"d":"123"}},{"$f":"'BP Financier'!$E$44*(('BP Financier'!$C$22+'BP Financier'!$D$22+'BP Financier'!$E$22)/('BP Financier'!$C$16+'BP Financier'!$C$19+'BP Financier'!$D$16+'BP Financier'!$D$19+'BP Financier'!$E$16+'BP Financier'!$E$19+'BP Financier'!$C$22+'BP Financier'!$D$22+'BP Financier'!$E$22))*$V4412*Z4412/(1-$W4412)","v":{"v":961.3195480337606,"d":"961"}},{"$f":"'BP Financier'!$E$44*(('BP Financier'!$C$22+'BP Financier'!$D$22+'BP Financier'!$E$22)/('BP Financier'!$C$16+'BP Financier'!$C$19+'BP Financier'!$D$16+'BP Financier'!$D$19+'BP Financier'!$E$16+'BP Financier'!$E$19+'BP Financier'!$C$22+'BP Financier'!$D$22+'BP Financier'!$E$22))*$V4412*AA4412/(1-$W4412)","v":{"v":118.76915218579725,"d":"119"}},{"$f":"'BP Financier'!$E$44*(('BP Financier'!$C$22+'BP Financier'!$D$22+'BP Financier'!$E$22)/('BP Financier'!$C$16+'BP Financier'!$C$19+'BP Financier'!$D$16+'BP Financier'!$D$19+'BP Financier'!$E$16+'BP Financier'!$E$19+'BP Financier'!$C$22+'BP Financier'!$D$22+'BP Financier'!$E$22))*$V4412*AB4412/(1-$W4412)","v":{"v":56.846773695766196,"d":"57"}},null,{"v":1.6666666666666668E-3,"d":"0.17%"},{"$f":"Actif!$E$28/100","v":{"v":0.28900000000000003,"d":"28.90%"}},{"$f":"Actif!$E$30/100","v":{"v":0.09050000000000001,"d":"9.05%"}},{"$f":"Actif!$E$31/100","v":{"v":0.0605,"d":"6.05%"}},{"$f":"Actif!$E$32/100","v":{"v":0.47350000000000003,"d":"47.35%"}},{"$f":"Actif!$E$33/100","v":{"v":0.0585,"d":"5.85%"}},{"$f":"Actif!$E$29/100","v":{"v":0.027999999999999997,"d":"2.80%"}}]
[null,"#312",80,2029,"F","A_CAPI",{"v":0.44999999999999996,"d":"0.45"},{"v":0.38999999999999996,"d":"0.39"},0.6,0.6,85,0,{"$f":"ROUND(Primes!$O$10*V4413,2)","v":0.08},0,{"v":1443.5020034889205,"d":"1,444"},{"$f":"'BP Financier'!$E$44*(('BP Financier'!$C$22+'BP Financier'!$D$22+'BP Financier'!$E$22)/('BP Financier'!$C$16+'BP Financier'!$C$19+'BP Financier'!$D$16+'BP Financier'!$D$19+'BP Financier'!$E$16+'BP Financier'!$E$19+'BP Financier'!$C$22+'BP Financier'!$D$22+'BP Financier'!$E$22))*$V4413*X4413/(1-$W4413)","v":{"v":183.7368935523872,"d":"184"}},{"$f":"'BP Financier'!$E$44*(('BP Financier'!$C$22+'BP Financier'!$D$22+'BP Financier'!$E$22)/('BP Financier'!$C$16+'BP Financier'!$C$19+'BP Financier'!$D$16+'BP Financier'!$D$19+'BP Financier'!$E$16+'BP Financier'!$E$19+'BP Financier'!$C$22+'BP Financier'!$D$22+'BP Financier'!$E$22))*$V4413*Y4413/(1-$W4413)","v":{"v":122.82963602120911,"d":"123"}},{"$f":"'BP Financier'!$E$44*(('BP Financier'!$C$22+'BP Financier'!$D$22+'BP Financier'!$E$22)/('BP Financier'!$C$16+'BP Financier'!$C$19+'BP Financier'!$D$16+'BP Financier'!$D$19+'BP Financier'!$E$16+'BP Financier'!$E$19+'BP Financier'!$C$22+'BP Financier'!$D$22+'BP Financier'!$E$22))*$V4413*Z4413/(1-$W4413)","v":{"v":961.3195480337606,"d":"961"}},{"$f":"'BP Financier'!$E$44*(('BP Financier'!$C$22+'BP Financier'!$D$22+'BP Financier'!$E$22)/('BP Financier'!$C$16+'BP Financier'!$C$19+'BP Financier'!$D$16+'BP Financier'!$D$19+'BP Financier'!$E$16+'BP Financier'!$E$19+'BP Financier'!$C$22+'BP Financier'!$D$22+'BP Financier'!$E$22))*$V4413*AA4413/(1-$W4413)","v":{"v":118.76915218579725,"d":"119"}},{"$f":"'BP Financier'!$E$44*(('BP Financier'!$C$22+'BP Financier'!$D$22+'BP Financier'!$E$22)/('BP Financier'!$C$16+'BP Financier'!$C$19+'BP Financier'!$D$16+'BP Financier'!$D$19+'BP Financier'!$E$16+'BP Financier'!$E$19+'BP Financier'!$C$22+'BP Financier'!$D$22+'BP Financier'!$E$22))*$V4413*AB4413/(1-$W4413)","v":{"v":56.846773695766196,"d":"57"}},null,{"v":1.6666666666666668E-3,"d":"0.17%"},{"$f":"Actif!$E$28/100","v":{"v":0.28900000000000003,"d":"28.90%"}},{"$f":"Actif!$E$30/100","v":{"v":0.09050000000000001,"d":"9.05%"}},{"$f":"Actif!$E$31/100","v":{"v":0.0605,"d":"6.05%"}},{"$f":"Actif!$E$32/100","v":{"v":0.47350000000000003,"d":"47.35%"}},{"$f":"Actif!$E$33/100","v":{"v":0.0585,"d":"5.85%"}},{"$f":"Actif!$E$29/100","v":{"v":0.027999999999999997,"d":"2.80%"}}]
[null,"#313",85,2026,"H","A_CAPI",{"v":0.44999999999999996,"d":"0.45"},{"v":0.38999999999999996,"d":"0.39"},0.6,0.6,85,0,{"$f":"ROUND(Primes!$O$10*V4414,2)","v":0.04},0,{"v":721.7510017444603,"d":"722"},{"$f":"'BP Financier'!$E$44*(('BP Financier'!$C$22+'BP Financier'!$D$22+'BP Financier'!$E$22)/('BP Financier'!$C$16+'BP Financier'!$C$19+'BP Financier'!$D$16+'BP Financier'!$D$19+'BP Financier'!$E$16+'BP Financier'!$E$19+'BP Financier'!$C$22+'BP Financier'!$D$22+'BP Financier'!$E$22))*$V4414*X4414/(1-$W4414)","v":{"v":91.8684467761936,"d":"92"}},{"$f":"'BP Financier'!$E$44*(('BP Financier'!$C$22+'BP Financier'!$D$22+'BP Financier'!$E$22)/('BP Financier'!$C$16+'BP Financier'!$C$19+'BP Financier'!$D$16+'BP Financier'!$D$19+'BP Financier'!$E$16+'BP Financier'!$E$19+'BP Financier'!$C$22+'BP Financier'!$D$22+'BP Financier'!$E$22))*$V4414*Y4414/(1-$W4414)","v":{"v":61.414818010604556,"d":"61"}},{"$f":"'BP Financier'!$E$44*(('BP Financier'!$C$22+'BP Financier'!$D$22+'BP Financier'!$E$22)/('BP Financier'!$C$16+'BP Financier'!$C$19+'BP Financier'!$D$16+'BP Financier'!$D$19+'BP Financier'!$E$16+'BP Financier'!$E$19+'BP Financier'!$C$22+'BP Financier'!$D$22+'BP Financier'!$E$22))*$V4414*Z4414/(1-$W4414)","v":{"v":480.6597740168803,"d":"481"}},{"$f":"'BP Financier'!$E$44*(('BP Financier'!$C$22+'BP Financier'!$D$22+'BP Financier'!$E$22)/('BP Financier'!$C$16+'BP Financier'!$C$19+'BP Financier'!$D$16+'BP Financier'!$D$19+'BP Financier'!$E$16+'BP Financier'!$E$19+'BP Financier'!$C$22+'BP Financier'!$D$22+'BP Financier'!$E$22))*$V4414*AA4414/(1-$W4414)","v":{"v":59.38457609289863,"d":"59"}},{"$f":"'BP Financier'!$E$44*(('BP Financier'!$C$22+'BP Financier'!$D$22+'BP Financier'!$E$22)/('BP Financier'!$C$16+'BP Financier'!$C$19+'BP Financier'!$D$16+'BP Financier'!$D$19+'BP Financier'!$E$16+'BP Financier'!$E$19+'BP Financier'!$C$22+'BP Financier'!$D$22+'BP Financier'!$E$22))*$V4414*AB4414/(1-$W4414)","v":{"v":28.423386847883098,"d":"28"}},null,{"v":8.3333333333333339E-4,"d":"0.08%"},{"$f":"Actif!$E$28/100","v":{"v":0.28900000000000003,"d":"28.90%"}},{"$f":"Actif!$E$30/100","v":{"v":0.09050000000000001,"d":"9.05%"}},{"$f":"Actif!$E$31/100","v":{"v":0.0605,"d":"6.05%"}},{"$f":"Actif!$E$32/100","v":{"v":0.47350000000000003,"d":"47.35%"}},{"$f":"Actif!$E$33/100","v":{"v":0.0585,"d":"5.85%"}},{"$f":"Actif!$E$29/100","v":{"v":0.027999999999999997,"d":"2.80%"}}]
[null,"#314",85,2028,"H","A_CAPI",{"v":0.44999999999999996,"d":"0.45"},{"v":0.38999999999999996,"d":"0.39"},0.6,0.6,85,0,{"$f":"ROUND(Primes!$O$10*V4415,2)","v":0.04},0,{"v":721.7510017444603,"d":"722"},{"$f":"'BP Financier'!$E$44*(('BP Financier'!$C$22+'BP Financier'!$D$22+'BP Financier'!$E$22)/('BP Financier'!$C$16+'BP Financier'!$C$19+'BP Financier'!$D$16+'BP Financier'!$D$19+'BP Financier'!$E$16+'BP Financier'!$E$19+'BP Financier'!$C$22+'BP Financier'!$D$22+'BP Financier'!$E$22))*$V4415*X4415/(1-$W4415)","v":{"v":91.8684467761936,"d":"92"}},{"$f":"'BP Financier'!$E$44*(('BP Financier'!$C$22+'BP Financier'!$D$22+'BP Financier'!$E$22)/('BP Financier'!$C$16+'BP Financier'!$C$19+'BP Financier'!$D$16+'BP Financier'!$D$19+'BP Financier'!$E$16+'BP Financier'!$E$19+'BP Financier'!$C$22+'BP Financier'!$D$22+'BP Financier'!$E$22))*$V4415*Y4415/(1-$W4415)","v":{"v":61.414818010604556,"d":"61"}},{"$f":"'BP Financier'!$E$44*(('BP Financier'!$C$22+'BP Financier'!$D$22+'BP Financier'!$E$22)/('BP Financier'!$C$16+'BP Financier'!$C$19+'BP Financier'!$D$16+'BP Financier'!$D$19+'BP Financier'!$E$16+'BP Financier'!$E$19+'BP Financier'!$C$22+'BP Financier'!$D$22+'BP Financier'!$E$22))*$V4415*Z4415/(1-$W4415)","v":{"v":480.6597740168803,"d":"481"}},{"$f":"'BP Financier'!$E$44*(('BP Financier'!$C$22+'BP Financier'!$D$22+'BP Financier'!$E$22)/('BP Financier'!$C$16+'BP Financier'!$C$19+'BP Financier'!$D$16+'BP Financier'!$D$19+'BP Financier'!$E$16+'BP Financier'!$E$19+'BP Financier'!$C$22+'BP Financier'!$D$22+'BP Financier'!$E$22))*$V4415*AA4415/(1-$W4415)","v":{"v":59.38457609289863,"d":"59"}},{"$f":"'BP Financier'!$E$44*(('BP Financier'!$C$22+'BP Financier'!$D$22+'BP Financier'!$E$22)/('BP Financier'!$C$16+'BP Financier'!$C$19+'BP Financier'!$D$16+'BP Financier'!$D$19+'BP Financier'!$E$16+'BP Financier'!$E$19+'BP Financier'!$C$22+'BP Financier'!$D$22+'BP Financier'!$E$22))*$V4415*AB4415/(1-$W4415)","v":{"v":28.423386847883098,"d":"28"}},null,{"v":8.3333333333333339E-4,"d":"0.08%"},{"$f":"Actif!$E$28/100","v":{"v":0.28900000000000003,"d":"28.90%"}},{"$f":"Actif!$E$30/100","v":{"v":0.09050000000000001,"d":"9.05%"}},{"$f":"Actif!$E$31/100","v":{"v":0.0605,"d":"6.05%"}},{"$f":"Actif!$E$32/100","v":{"v":0.47350000000000003,"d":"47.35%"}},{"$f":"Actif!$E$33/100","v":{"v":0.0585,"d":"5.85%"}},{"$f":"Actif!$E$29/100","v":{"v":0.027999999999999997,"d":"2.80%"}}]
[null,"#315",85,2029,"H","A_CAPI",{"v":0.44999999999999996,"d":"0.45"},{"v":0.38999999999999996,"d":"0.39"},0.6,0.6,85,0,{"$f":"ROUND(Primes!$O$10*V4416,2)","v":0.04},0,{"v":721.7510017444603,"d":"722"},{"$f":"'BP Financier'!$E$44*(('BP Financier'!$C$22+'BP Financier'!$D$22+'BP Financier'!$E$22)/('BP Financier'!$C$16+'BP Financier'!$C$19+'BP Financier'!$D$16+'BP Financier'!$D$19+'BP Financier'!$E$16+'BP Financier'!$E$19+'BP Financier'!$C$22+'BP Financier'!$D$22+'BP Financier'!$E$22))*$V4416*X4416/(1-$W4416)","v":{"v":91.8684467761936,"d":"92"}},{"$f":"'BP Financier'!$E$44*(('BP Financier'!$C$22+'BP Financier'!$D$22+'BP Financier'!$E$22)/('BP Financier'!$C$16+'BP Financier'!$C$19+'BP Financier'!$D$16+'BP Financier'!$D$19+'BP Financier'!$E$16+'BP Financier'!$E$19+'BP Financier'!$C$22+'BP Financier'!$D$22+'BP Financier'!$E$22))*$V4416*Y4416/(1-$W4416)","v":{"v":61.414818010604556,"d":"61"}},{"$f":"'BP Financier'!$E$44*(('BP Financier'!$C$22+'BP Financier'!$D$22+'BP Financier'!$E$22)/('BP Financier'!$C$16+'BP Financier'!$C$19+'BP Financier'!$D$16+'BP Financier'!$D$19+'BP Financier'!$E$16+'BP Financier'!$E$19+'BP Financier'!$C$22+'BP Financier'!$D$22+'BP Financier'!$E$22))*$V4416*Z4416/(1-$W4416)","v":{"v":480.6597740168803,"d":"481"}},{"$f":"'BP Financier'!$E$44*(('BP Financier'!$C$22+'BP Financier'!$D$22+'BP Financier'!$E$22)/('BP Financier'!$C$16+'BP Financier'!$C$19+'BP Financier'!$D$16+'BP Financier'!$D$19+'BP Financier'!$E$16+'BP Financier'!$E$19+'BP Financier'!$C$22+'BP Financier'!$D$22+'BP Financier'!$E$22))*$V4416*AA4416/(1-$W4416)","v":{"v":59.38457609289863,"d":"59"}},{"$f":"'BP Financier'!$E$44*(('BP Financier'!$C$22+'BP Financier'!$D$22+'BP Financier'!$E$22)/('BP Financier'!$C$16+'BP Financier'!$C$19+'BP Financier'!$D$16+'BP Financier'!$D$19+'BP Financier'!$E$16+'BP Financier'!$E$19+'BP Financier'!$C$22+'BP Financier'!$D$22+'BP Financier'!$E$22))*$V4416*AB4416/(1-$W4416)","v":{"v":28.423386847883098,"d":"28"}},null,{"v":8.3333333333333339E-4,"d":"0.08%"},{"$f":"Actif!$E$28/100","v":{"v":0.28900000000000003,"d":"28.90%"}},{"$f":"Actif!$E$30/100","v":{"v":0.09050000000000001,"d":"9.05%"}},{"$f":"Actif!$E$31/100","v":{"v":0.0605,"d":"6.05%"}},{"$f":"Actif!$E$32/100","v":{"v":0.47350000000000003,"d":"47.35%"}},{"$f":"Actif!$E$33/100","v":{"v":0.0585,"d":"5.85%"}},{"$f":"Actif!$E$29/100","v":{"v":0.027999999999999997,"d":"2.80%"}}]
[null,"#316",90,2026,"H","A_CAPI",{"v":0.44999999999999996,"d":"0.45"},{"v":0.38999999999999996,"d":"0.39"},0.6,0.6,85,0,{"$f":"ROUND(Primes!$O$10*V4417,2)","v":0.04},0,{"v":721.7510017444603,"d":"722"},{"$f":"'BP Financier'!$E$44*(('BP Financier'!$C$22+'BP Financier'!$D$22+'BP Financier'!$E$22)/('BP Financier'!$C$16+'BP Financier'!$C$19+'BP Financier'!$D$16+'BP Financier'!$D$19+'BP Financier'!$E$16+'BP Financier'!$E$19+'BP Financier'!$C$22+'BP Financier'!$D$22+'BP Financier'!$E$22))*$V4417*X4417/(1-$W4417)","v":{"v":91.8684467761936,"d":"92"}},{"$f":"'BP Financier'!$E$44*(('BP Financier'!$C$22+'BP Financier'!$D$22+'BP Financier'!$E$22)/('BP Financier'!$C$16+'BP Financier'!$C$19+'BP Financier'!$D$16+'BP Financier'!$D$19+'BP Financier'!$E$16+'BP Financier'!$E$19+'BP Financier'!$C$22+'BP Financier'!$D$22+'BP Financier'!$E$22))*$V4417*Y4417/(1-$W4417)","v":{"v":61.414818010604556,"d":"61"}},{"$f":"'BP Financier'!$E$44*(('BP Financier'!$C$22+'BP Financier'!$D$22+'BP Financier'!$E$22)/('BP Financier'!$C$16+'BP Financier'!$C$19+'BP Financier'!$D$16+'BP Financier'!$D$19+'BP Financier'!$E$16+'BP Financier'!$E$19+'BP Financier'!$C$22+'BP Financier'!$D$22+'BP Financier'!$E$22))*$V4417*Z4417/(1-$W4417)","v":{"v":480.6597740168803,"d":"481"}},{"$f":"'BP Financier'!$E$44*(('BP Financier'!$C$22+'BP Financier'!$D$22+'BP Financier'!$E$22)/('BP Financier'!$C$16+'BP Financier'!$C$19+'BP Financier'!$D$16+'BP Financier'!$D$19+'BP Financier'!$E$16+'BP Financier'!$E$19+'BP Financier'!$C$22+'BP Financier'!$D$22+'BP Financier'!$E$22))*$V4417*AA4417/(1-$W4417)","v":{"v":59.38457609289863,"d":"59"}},{"$f":"'BP Financier'!$E$44*(('BP Financier'!$C$22+'BP Financier'!$D$22+'BP Financier'!$E$22)/('BP Financier'!$C$16+'BP Financier'!$C$19+'BP Financier'!$D$16+'BP Financier'!$D$19+'BP Financier'!$E$16+'BP Financier'!$E$19+'BP Financier'!$C$22+'BP Financier'!$D$22+'BP Financier'!$E$22))*$V4417*AB4417/(1-$W4417)","v":{"v":28.423386847883098,"d":"28"}},null,{"v":8.3333333333333339E-4,"d":"0.08%"},{"$f":"Actif!$E$28/100","v":{"v":0.28900000000000003,"d":"28.90%"}},{"$f":"Actif!$E$30/100","v":{"v":0.09050000000000001,"d":"9.05%"}},{"$f":"Actif!$E$31/100","v":{"v":0.0605,"d":"6.05%"}},{"$f":"Actif!$E$32/100","v":{"v":0.47350000000000003,"d":"47.35%"}},{"$f":"Actif!$E$33/100","v":{"v":0.0585,"d":"5.85%"}},{"$f":"Actif!$E$29/100","v":{"v":0.027999999999999997,"d":"2.80%"}}]
[null,"#317",90,2028,"H","A_CAPI",{"v":0.44999999999999996,"d":"0.45"},{"v":0.38999999999999996,"d":"0.39"},0.6,0.6,85,0,{"$f":"ROUND(Primes!$O$10*V4418,2)","v":0.04},0,{"v":721.7510017444603,"d":"722"},{"$f":"'BP Financier'!$E$44*(('BP Financier'!$C$22+'BP Financier'!$D$22+'BP Financier'!$E$22)/('BP Financier'!$C$16+'BP Financier'!$C$19+'BP Financier'!$D$16+'BP Financier'!$D$19+'BP Financier'!$E$16+'BP Financier'!$E$19+'BP Financier'!$C$22+'BP Financier'!$D$22+'BP Financier'!$E$22))*$V4418*X4418/(1-$W4418)","v":{"v":91.8684467761936,"d":"92"}},{"$f":"'BP Financier'!$E$44*(('BP Financier'!$C$22+'BP Financier'!$D$22+'BP Financier'!$E$22)/('BP Financier'!$C$16+'BP Financier'!$C$19+'BP Financier'!$D$16+'BP Financier'!$D$19+'BP Financier'!$E$16+'BP Financier'!$E$19+'BP Financier'!$C$22+'BP Financier'!$D$22+'BP Financier'!$E$22))*$V4418*Y4418/(1-$W4418)","v":{"v":61.414818010604556,"d":"61"}},{"$f":"'BP Financier'!$E$44*(('BP Financier'!$C$22+'BP Financier'!$D$22+'BP Financier'!$E$22)/('BP Financier'!$C$16+'BP Financier'!$C$19+'BP Financier'!$D$16+'BP Financier'!$D$19+'BP Financier'!$E$16+'BP Financier'!$E$19+'BP Financier'!$C$22+'BP Financier'!$D$22+'BP Financier'!$E$22))*$V4418*Z4418/(1-$W4418)","v":{"v":480.6597740168803,"d":"481"}},{"$f":"'BP Financier'!$E$44*(('BP Financier'!$C$22+'BP Financier'!$D$22+'BP Financier'!$E$22)/('BP Financier'!$C$16+'BP Financier'!$C$19+'BP Financier'!$D$16+'BP Financier'!$D$19+'BP Financier'!$E$16+'BP Financier'!$E$19+'BP Financier'!$C$22+'BP Financier'!$D$22+'BP Financier'!$E$22))*$V4418*AA4418/(1-$W4418)","v":{"v":59.38457609289863,"d":"59"}},{"$f":"'BP Financier'!$E$44*(('BP Financier'!$C$22+'BP Financier'!$D$22+'BP Financier'!$E$22)/('BP Financier'!$C$16+'BP Financier'!$C$19+'BP Financier'!$D$16+'BP Financier'!$D$19+'BP Financier'!$E$16+'BP Financier'!$E$19+'BP Financier'!$C$22+'BP Financier'!$D$22+'BP Financier'!$E$22))*$V4418*AB4418/(1-$W4418)","v":{"v":28.423386847883098,"d":"28"}},null,{"v":8.3333333333333339E-4,"d":"0.08%"},{"$f":"Actif!$E$28/100","v":{"v":0.28900000000000003,"d":"28.90%"}},{"$f":"Actif!$E$30/100","v":{"v":0.09050000000000001,"d":"9.05%"}},{"$f":"Actif!$E$31/100","v":{"v":0.0605,"d":"6.05%"}},{"$f":"Actif!$E$32/100","v":{"v":0.47350000000000003,"d":"47.35%"}},{"$f":"Actif!$E$33/100","v":{"v":0.0585,"d":"5.85%"}},{"$f":"Actif!$E$29/100","v":{"v":0.027999999999999997,"d":"2.80%"}}]
[null,"#318",90,2029,"H","A_CAPI",{"v":0.44999999999999996,"d":"0.45"},{"v":0.38999999999999996,"d":"0.39"},0.6,0.6,85,0,{"$f":"ROUND(Primes!$O$10*V4419,2)","v":0.04},0,{"v":721.7510017444603,"d":"722"},{"$f":"'BP Financier'!$E$44*(('BP Financier'!$C$22+'BP Financier'!$D$22+'BP Financier'!$E$22)/('BP Financier'!$C$16+'BP Financier'!$C$19+'BP Financier'!$D$16+'BP Financier'!$D$19+'BP Financier'!$E$16+'BP Financier'!$E$19+'BP Financier'!$C$22+'BP Financier'!$D$22+'BP Financier'!$E$22))*$V4419*X4419/(1-$W4419)","v":{"v":91.8684467761936,"d":"92"}},{"$f":"'BP Financier'!$E$44*(('BP Financier'!$C$22+'BP Financier'!$D$22+'BP Financier'!$E$22)/('BP Financier'!$C$16+'BP Financier'!$C$19+'BP Financier'!$D$16+'BP Financier'!$D$19+'BP Financier'!$E$16+'BP Financier'!$E$19+'BP Financier'!$C$22+'BP Financier'!$D$22+'BP Financier'!$E$22))*$V4419*Y4419/(1-$W4419)","v":{"v":61.414818010604556,"d":"61"}},{"$f":"'BP Financier'!$E$44*(('BP Financier'!$C$22+'BP Financier'!$D$22+'BP Financier'!$E$22)/('BP Financier'!$C$16+'BP Financier'!$C$19+'BP Financier'!$D$16+'BP Financier'!$D$19+'BP Financier'!$E$16+'BP Financier'!$E$19+'BP Financier'!$C$22+'BP Financier'!$D$22+'BP Financier'!$E$22))*$V4419*Z4419/(1-$W4419)","v":{"v":480.6597740168803,"d":"481"}},{"$f":"'BP Financier'!$E$44*(('BP Financier'!$C$22+'BP Financier'!$D$22+'BP Financier'!$E$22)/('BP Financier'!$C$16+'BP Financier'!$C$19+'BP Financier'!$D$16+'BP Financier'!$D$19+'BP Financier'!$E$16+'BP Financier'!$E$19+'BP Financier'!$C$22+'BP Financier'!$D$22+'BP Financier'!$E$22))*$V4419*AA4419/(1-$W4419)","v":{"v":59.38457609289863,"d":"59"}},{"$f":"'BP Financier'!$E$44*(('BP Financier'!$C$22+'BP Financier'!$D$22+'BP Financier'!$E$22)/('BP Financier'!$C$16+'BP Financier'!$C$19+'BP Financier'!$D$16+'BP Financier'!$D$19+'BP Financier'!$E$16+'BP Financier'!$E$19+'BP Financier'!$C$22+'BP Financier'!$D$22+'BP Financier'!$E$22))*$V4419*AB4419/(1-$W4419)","v":{"v":28.423386847883098,"d":"28"}},null,{"v":8.3333333333333339E-4,"d":"0.08%"},{"$f":"Actif!$E$28/100","v":{"v":0.28900000000000003,"d":"28.90%"}},{"$f":"Actif!$E$30/100","v":{"v":0.09050000000000001,"d":"9.05%"}},{"$f":"Actif!$E$31/100","v":{"v":0.0605,"d":"6.05%"}},{"$f":"Actif!$E$32/100","v":{"v":0.47350000000000003,"d":"47.35%"}},{"$f":"Actif!$E$33/100","v":{"v":0.0585,"d":"5.85%"}},{"$f":"Actif!$E$29/100","v":{"v":0.027999999999999997,"d":"2.80%"}}]
[null,"#319"]
[null,"#320"]
[null,"#321"]
[null,"#322"]
[null,"#323"]
[null,"#324"]
[null,"#325"]
[null,"#326"]
[null,"#327"]
[null,"#328"]
[null,"#329"]
[null,"#330"]
[null,"#331"]
[null,"#332"]
[null,"#333"]
[null,"#334"]
[null,"#335"]
[null,"#336"]
[null,"#337"]
[null,"#338"]
[null,"#339"]
[null,"#340"]
[null,"#341"]
[null,"#342"]
[null,"#343"]
[null,"#344"]
[null,"#345"]
[null,"#346"]
[null,"#347"]
[null,"#348"]
[null,"#349"]
[null,"#350"]
[null,"#351"]
[null,"#352"]
[null,"#353"]
[null,"#354"]
[null,"#355"]
[null,"#356"]
[null,"#357"]
[null,"#358"]
[null,"#359"]
[null,"#360"]
[null,"#361"]
[null,"#362"]
[null,"#363"]
[null,"#364"]
[null,"#365"]
[null,"#366"]
[null,"#367"]
[null,"#368"]
[null,"#369"]
[null,"#370"]
[null,"#371"]
[null,"#372"]
[null,"#373"]
[null,"#374"]
[null,"#375"]
[null,"#376"]
[null,"#377"]
[null,"#378"]
[null,"#379"]
[null,"#380"]
[null,"#381"]
[null,"#382"]
[null,"#383"]
[null,"#384"]
[null,"#385"]
[null,"#386"]
[null,"#387"]
[null,"#388"]
[null,"#389"]
[null,"#390"]
[null,"#391"]
[null,"#392"]
[null,"#393"]
[null,"#394"]
[null,"#395"]
[null,"#396"]
[null,"#397"]
[null,"#398"]
[null,"#399"]
[null,"#400"]
[null,"#401"]
[null,"#402"]
[null,"#403"]
[null,"#404"]
[null,"#405"]
[null,"#406"]
[null,"#407"]
[null,"#408"]
[null,"#409"]
[null,"#410"]
[null,"#411"]
[null,"#412"]
[null,"#413"]
[null,"#414"]
[null,"#415"]
[null,"#416"]
[null,"#417"]
[null,"#418"]
[null,"#419"]
[null,"#420"]
[null,"#421"]
[null,"#422"]
[null,"#423"]
[null,"#424"]
[null,"#425"]
[null,"#426"]
[null,"#427"]
[null,"#428"]
[null,"#429"]
[null,"#430"]
[null,"#431"]
[null,"#432"]
[null,"#433"]
[null,"#434"]
[null,"#435"]
[null,"#436"]
[null,"#437"]
[null,"#438"]
[null,"#439"]
[null,"#440"]
[null,"#441"]
[null,"#442"]
[null,"#443"]
[null,"#444"]
[null,"#445"]
[null,"#446"]
[null,"#447"]
[null,"#448"]
[null,"#449"]
[null,"#450"]
[null,"#451"]
[null,"#452"]
[null,"#453"]
[null,"#454"]
[null,"#455"]
[null,"#456"]
[null,"#457"]
[null,"#458"]
[null,"#459"]
[null,"#460"]
[null,"#461"]
[null,"#462"]
[null,"#463"]
[null,"#464"]
[null,"#465"]
[null,"#466"]
[null,"#467"]
[null,"#468"]
[null,"#469"]
[null,"#470"]
[null,"#471"]
[null,"#472"]
[null,"#473"]
[null,"#474"]
[null,"#475"]
[null,"#476"]
[null,"#477"]
[null,"#478"]
[null,"#479"]
[null,"#480"]
[null,"#481"]
[null,"#482"]
[null,"#483"]
[null,"#484"]
[null,"#485"]
[null,"#486"]
[null,"#487"]
[null,"#488"]
[null,"#489"]
[null,"#490"]
[null,"#491"]
[null,"#492"]
[null,"#493"]
[null,"#494"]
[null,"#495"]
[null,"#496"]
[null,"#497"]
[null,"#498"]
[null,"#499"]
[null,"#500"]
[null,"#501"]
[null,"#502"]
[null,"#503"]
[null,"#504"]
[null,"#505"]
[null,"#506"]
[null,"#507"]
[null,"#508"]
[null,"#509"]
[null,"#510"]
[null,"#511"]
[null,"#512"]
[null,"#513"]
[null,"#514"]
[null,"#515"]
[null,"#516"]
[null,"#517"]
[null,"#518"]
[null,"#519"]
[null,"#520"]
[null,"#521"]
[null,"#522"]
[null,"#523"]
[null,"#524"]
[null,"#525"]
[null,"#526"]
[null,"#527"]
[null,"#528"]
[null,"#529"]
[null,"#530"]
[null,"#531"]
[null,"#532"]
[null,"#533"]
[null,"#534"]
[null,"#535"]
[null,"#536"]
[null,"#537"]
[null,"#538"]
[null,"#539"]
[null,"#540"]
[null,"#541"]
[null,"#542"]
[null,"#543"]
[null,"#544"]
[null,"#545"]
[null,"#546"]
[null,"#547"]
[null,"#548"]
[null,"#549"]
[null,"#550"]
[null,"#551"]
[null,"#552"]
[null,"#553"]
[null,"#554"]
[null,"#555"]
[null,"#556"]
[null,"#557"]
[null,"#558"]
[null,"#559"]
[null,"#560"]
[null,"#561"]
[null,"#562"]
[null,"#563"]
[null,"#564"]
[null,"#565"]
[null,"#566"]
[null,"#567"]
[null,"#568"]
[null,"#569"]
[null,"#570"]
[null,"#571"]
[null,"#572"]
[null,"#573"]
[null,"#574"]
[null,"#575"]
[null,"#576"]
[null,"#577"]
[null,"#578"]
[null,"#579"]
[null,"#580"]
[null,"#581"]
[null,"#582"]
[null,"#583"]
[null,"#584"]
[null,"#585"]
[null,"#586"]
[null,"#587"]
[null,"#588"]
[null,"#589"]
[null,"#590"]
[null,"#591"]
[null,"#592"]
[null,"#593"]
[null,"#594"]
[null,"#595"]
[null,"#596"]
[null,"#597"]
[null,"#598"]
[null,"#599"]
[null,"#600"]
[null,"#601"]
[null,"#602"]
[null,"#603"]
[null,"#604"]
[null,"#605"]
[null,"#606"]
[null,"#607"]
[null,"#608"]
[null,"#609"]
[null,"#610"]
[null,"#611"]
[null,"#612"]
[null,"#613"]
[null,"#614"]
[null,"#615"]
[null,"#616"]
[null,"#617"]
[null,"#618"]
[null,"#619"]
[null,"#620"]
[null,"#621"]
[null,"#622"]
[null,"#623"]
[null,"#624"]
[null,"#625"]
[null,"#626"]
[null,"#627"]
[null,"#628"]
[null,"#629"]
[null,"#630"]
[null,"#631"]
[null,"#632"]
[null,"#633"]
[null,"#634"]
[null,"#635"]
[null,"#636"]
[null,"#637"]
[null,"#638"]
[null,"#639"]
[null,"#640"]
[null,"#641"]
[null,"#642"]
[null,"#643"]
[null,"#644"]
[null,"#645"]
[null,"#646"]
[null,"#647"]
[null,"#648"]
[null,"#649"]
[null,"#650"]
[null,"#651"]
[null,"#652"]
[null,"#653"]
[null,"#654"]
[null,"#655"]
[null,"#656"]
[null,"#657"]
[null,"#658"]
[null,"#659"]
[null,"#660"]
[null,"#661"]
[null,"#662"]
[null,"#663"]
[null,"#664"]
[null,"#665"]
[null,"#666"]
[null,"#667"]
[null,"#668"]
[null,"#669"]
[null,"#670"]
[null,"#671"]
[null,"#672"]
[null,"#673"]
[null,"#674"]
[null,"#675"]
[null,"#676"]
[null,"#677"]
[null,"#678"]
[null,"#679"]
[null,"#680"]
[null,"#681"]
[null,"#682"]
[null,"#683"]
[null,"#684"]
[null,"#685"]
[null,"#686"]
[null,"#687"]
[null,"#688"]
[null,"#689"]
[null,"#690"]
[null,"#691"]
[null,"#692"]
[null,"#693"]
[null,"#694"]
[null,"#695"]
[null,"#696"]
[null,"#697"]
[null,"#698"]
[null,"#699"]
[null,"#700"]
[null,"#701"]
[null,"#702"]
[null,"#703"]
[null,"#704"]
[null,"#705"]
[null,"#706"]
[null,"#707"]
[null,"#708"]
[null,"#709"]
[null,"#710"]
[null,"#711"]
[null,"#712"]
[null,"#713"]
[null,"#714"]
[null,"#715"]
[null,"#716"]
[null,"#717"]
[null,"#718"]
[null,"#719"]
[null,"#720"]
[null,"#721"]
[null,"#722"]
[null,"#723"]
[null,"#724"]
[null,"#725"]
[null,"#726"]
[null,"#727"]
[null,"#728"]
[null,"#729"]
[null,"#730"]
[null,"#731"]
[null,"#732"]
[null,"#733"]
[null,"#734"]
[null,"#735"]
[null,"#736"]
[null,"#737"]
[null,"#738"]
[null,"#739"]
[null,"#740"]
[null,"#741"]
[null,"#742"]
[null,"#743"]
[null,"#744"]
[null,"#745"]
[null,"#746"]
[null,"#747"]
[null,"#748"]
[null,"#749"]
[null,"#750"]
[null,"#751"]
[null,"#752"]
[null,"#753"]
[null,"#754"]
[null,"#755"]
[null,"#756"]
[null,"#757"]
[null,"#758"]
[null,"#759"]
[null,"#760"]
[null,"#761"]
[null,"#762"]
[null,"#763"]
[null,"#764"]
[null,"#765"]
[null,"#766"]
[null,"#767"]
[null,"#768"]
[null,"#769"]
[null,"#770"]
[null,"#771"]
[null,"#772"]
[null,"#773"]
[null,"#774"]
[null,"#775"]
[null,"#776"]
[null,"#777"]
[null,"#778"]
[null,"#779"]
[null,"#780"]
[null,"#781"]
[null,"#782"]
[null,"#783"]
[null,"#784"]
[null,"#785"]
[null,"#786"]
[null,"#787"]
[null,"#788"]
[null,"#789"]
[null,"#790"]
[null,"#791"]
[null,"#792"]
[null,"#793"]
[null,"#794"]
[null,"#795"]
[null,"#796"]
[null,"#797"]
[null,"#798"]
[null,"#799"]
[null,"#800"]
[null,"#801"]
[null,"#802"]
[null,"#803"]
[null,"#804"]
[null,"#805"]
[null,"#806"]
[null,"#807"]
[null,"#808"]
[null,"#809"]
[null,"#810"]
[null,"#811"]
[null,"#812"]
[null,"#813"]
[null,"#814"]
[null,"#815"]
[null,"#816"]
[null,"#817"]
[null,"#818"]
[null,"#819"]
[null,"#820"]
[null,"#821"]
[null,"#822"]
[null,"#823"]
[null,"#824"]
[null,"#825"]
[null,"#826"]
[null,"#827"]
[null,"#828"]
[null,"#829"]
[null,"#830"]
[null,"#831"]
[null,"#832"]
[null,"#833"]
[null,"#834"]
[null,"#835"]
[null,"#836"]
[null,"#837"]
[null,"#838"]
[null,"#839"]
[null,"#840"]
[null,"#841"]
[null,"#842"]
[null,"#843"]
[null,"#844"]
[null,"#845"]
[null,"#846"]
[null,"#847"]
[null,"#848"]
[null,"#849"]
[null,"#850"]
[null,"#851"]
[null,"#852"]
[null,"#853"]
[null,"#854"]
[null,"#855"]
[null,"#856"]
[null,"#857"]
[null,"#858"]
[null,"#859"]
[null,"#860"]
[null,"#861"]
[null,"#862"]
[null,"#863"]
[null,"#864"]
[null,"#865"]
[null,"#866"]
[null,"#867"]
[null,"#868"]
[null,"#869"]
[null,"#870"]
[null,"#871"]
[null,"#872"]
[null,"#873"]
[null,"#874"]
[null,"#875"]
[null,"#876"]
[null,"#877"]
[null,"#878"]
[null,"#879"]
[null,"#880"]
[null,"#881"]
[null,"#882"]
[null,"#883"]
[null,"#884"]
[null,"#885"]
[null,"#886"]
[null,"#887"]
[null,"#888"]
[null,"#889"]
[null,"#890"]
[null,"#891"]
[null,"#892"]
[null,"#893"]
[null,"#894"]
[null,"#895"]
[null,"#896"]
[null,"#897"]
[null,"#898"]
[null,"#899"]
[null,"#900"]
[null,"#901"]
[null,"#902"]
[null,"#903"]
[null,"#904"]
[null,"#905"]
[null,"#906"]
[null,"#907"]
[null,"#908"]
[null,"#909"]
[null,"#910"]
[null,"#911"]
[null,"#912"]
[null,"#913"]
[null,"#914"]
[null,"#915"]
[null,"#916"]
[null,"#917"]
[null,"#918"]
[null,"#919"]
[null,"#920"]
[null,"#921"]
[null,"#922"]
[null,"#923"]
[null,"#924"]
[null,"#925"]
[null,"#926"]
[null,"#927"]
[null,"#928"]
[null,"#929"]
[null,"#930"]
[null,"#931"]
[null,"#932"]
[null,"#933"]
[null,"#934"]
[null,"#935"]
[null,"#936"]
[null,"#937"]
[null,"#938"]
[null,"#939"]
[null,"#940"]
[null,"#941"]
[null,"#942"]
[null,"#943"]
[null,"#944"]
[null,"#945"]
[null,"#946"]
[null,"#947"]
[null,"#948"]
[null,"#949"]
[null,"#950"]
[null,"#951"]
[null,"#952"]
[null,"#953"]
[null,"#954"]
[null,"#955"]
[null,"#956"]
[null,"#957"]
[null,"#958"]
[null,"#959"]
[null,"#960"]
[null,"#961"]
[null,"#962"]
[null,"#963"]
[null,"#964"]
[null,"#965"]
[null,"#966"]
[null,"#967"]
[null,"#968"]
[null,"#969"]
[null,"#970"]
[null,"#971"]
[null,"#972"]
[null,"#973"]
[null,"#974"]
[null,"#975"]
[null,"#976"]
[null,"#977"]
[null,"#978"]
[null,"#979"]
[null,"#980"]
[null,"#981"]
[null,"#982"]
[null,"#983"]
[null,"#984"]
[null,"#985"]
[null,"#986"]
[null,"#987"]
[null,"#988"]
[null,"#989"]
[null,"#990"]
[null,"#991"]
[null,"#992"]
[null,"#993"]
[null,"#994"]
[null,"#995"]
[null,"#996"]
[null,"#997"]
[null,"#998"]
[null,"#999"]
[null,"#1000"]
[]
[null,"PER","Euro - UC","2029-12-31",{"$nulls":19},"Obligation","Dette Privée","Action","Private Equity","Obligation CT"]
[null,"ID","AGE","SOUSCRIPTION_YR","SEXE","PDT","CHGT_GEST_EURO_PC","CHGT_GEST_UC_PC","COMM_DIST_EURO_PC","COMM_DIST_UC_PC","CLAUSE_PB_PC","TMG_PC","NO_POLS","PM_EURO","PM_UC_TOT","PM_UC_1","PM_UC_2","PM_UC_3","PM_UC_4","PM_UC_5",null,"Pondération","%Euro","%UC1","%UC2","%UC3","%UC4","%UC5"]
[null,"#1",18,2026,"H","A_PER",{"$f":"frais_gestion_Euro*100","v":{"v":0.44999999999999996,"d":"0.45"}},{"$f":"frais_gestion_UC*100","v":{"v":0.38999999999999996,"d":"0.39"}},{"$f":"frais_distribution_FG*100","v":0.6},{"$f":"frais_distribution_UC*100","v":0.6},85,0,{"$f":"ROUND(Primes!$O$7*V5105,0)","v":1},{"$f":"'BP Financier'!$E$33*(('BP Financier'!$C$19+'BP Financier'!$D$19+'BP Financier'!$E$19)/('BP Financier'!$C$16+'BP Financier'!$C$19+'BP Financier'!$D$16+'BP Financier'!$D$19+'BP Financier'!$E$16+'BP Financier'!$E$19))*V5105","v":{"v":34245.1685593803,"d":"34,245"}},{"$f":"SUM(P5105:T5105)","v":{"v":19206.290015886938,"d":"19,206"}},{"$f":"'BP Financier'!$E$44*(('BP Financier'!$C$19+'BP Financier'!$D$19+'BP Financier'!$E$19)/('BP Financier'!$C$16+'BP Financier'!$C$19+'BP Financier'!$D$16+'BP Financier'!$D$19+'BP Financier'!$E$16+'BP Financier'!$E$19+'BP Financier'!$C$22+'BP Financier'!$D$22+'BP Financier'!$E$22))*$V5105*X5105/(1-$W5105)","v":{"v":2444.682484441305,"d":"2,445"}},{"$f":"'BP Financier'!$E$44*(('BP Financier'!$C$19+'BP Financier'!$D$19+'BP Financier'!$E$19)/('BP Financier'!$C$16+'BP Financier'!$C$19+'BP Financier'!$D$16+'BP Financier'!$D$19+'BP Financier'!$E$16+'BP Financier'!$E$19+'BP Financier'!$C$22+'BP Financier'!$D$22+'BP Financier'!$E$22))*$V5105*Y5105/(1-$W5105)","v":{"v":1634.2905006486071,"d":"1,634"}},{"$f":"'BP Financier'!$E$44*(('BP Financier'!$C$19+'BP Financier'!$D$19+'BP Financier'!$E$19)/('BP Financier'!$C$16+'BP Financier'!$C$19+'BP Financier'!$D$16+'BP Financier'!$D$19+'BP Financier'!$E$16+'BP Financier'!$E$19+'BP Financier'!$C$22+'BP Financier'!$D$22+'BP Financier'!$E$22))*$V5105*Z5105/(1-$W5105)","v":{"v":12790.686810861413,"d":"12,791"}},{"$f":"'BP Financier'!$E$44*(('BP Financier'!$C$19+'BP Financier'!$D$19+'BP Financier'!$E$19)/('BP Financier'!$C$16+'BP Financier'!$C$19+'BP Financier'!$D$16+'BP Financier'!$D$19+'BP Financier'!$E$16+'BP Financier'!$E$19+'BP Financier'!$C$22+'BP Financier'!$D$22+'BP Financier'!$E$22))*$V5105*AA5105/(1-$W5105)","v":{"v":1580.2643683957606,"d":"1,580"}},{"$f":"'BP Financier'!$E$44*(('BP Financier'!$C$19+'BP Financier'!$D$19+'BP Financier'!$E$19)/('BP Financier'!$C$16+'BP Financier'!$C$19+'BP Financier'!$D$16+'BP Financier'!$D$19+'BP Financier'!$E$16+'BP Financier'!$E$19+'BP Financier'!$C$22+'BP Financier'!$D$22+'BP Financier'!$E$22))*$V5105*AB5105/(1-$W5105)","v":{"v":756.3658515398511,"d":"756"}},null,{"v":1.6666666666666668E-3,"d":"0.17%"},{"$f":"Actif!$E$28/100","v":{"v":0.28900000000000003,"d":"28.90%"}},{"$f":"Actif!$E$30/100","v":{"v":0.09050000000000001,"d":"9.05%"}},{"$f":"Actif!$E$31/100","v":{"v":0.0605,"d":"6.05%"}},{"$f":"Actif!$E$32/100","v":{"v":0.47350000000000003,"d":"47.35%"}},{"$f":"Actif!$E$33/100","v":{"v":0.0585,"d":"5.85%"}},{"$f":"Actif!$E$29/100","v":{"v":0.027999999999999997,"d":"2.80%"}}]
[null,"#2",18,2028,"H","A_PER",{"v":0.44999999999999996,"d":"0.45"},{"v":0.38999999999999996,"d":"0.39"},0.6,0.6,85,0,{"$f":"ROUND(Primes!$O$7*V5106,0)","v":1},{"$f":"'BP Financier'!$E$33*(('BP Financier'!$C$19+'BP Financier'!$D$19+'BP Financier'!$E$19)/('BP Financier'!$C$16+'BP Financier'!$C$19+'BP Financier'!$D$16+'BP Financier'!$D$19+'BP Financier'!$E$16+'BP Financier'!$E$19))*V5106","v":{"v":34245.1685593803,"d":"34,245"}},{"$f":"SUM(P5106:T5106)","v":{"v":19206.290015886938,"d":"19,206"}},{"$f":"'BP Financier'!$E$44*(('BP Financier'!$C$19+'BP Financier'!$D$19+'BP Financier'!$E$19)/('BP Financier'!$C$16+'BP Financier'!$C$19+'BP Financier'!$D$16+'BP Financier'!$D$19+'BP Financier'!$E$16+'BP Financier'!$E$19+'BP Financier'!$C$22+'BP Financier'!$D$22+'BP Financier'!$E$22))*$V5106*X5106/(1-$W5106)","v":{"v":2444.682484441305,"d":"2,445"}},{"$f":"'BP Financier'!$E$44*(('BP Financier'!$C$19+'BP Financier'!$D$19+'BP Financier'!$E$19)/('BP Financier'!$C$16+'BP Financier'!$C$19+'BP Financier'!$D$16+'BP Financier'!$D$19+'BP Financier'!$E$16+'BP Financier'!$E$19+'BP Financier'!$C$22+'BP Financier'!$D$22+'BP Financier'!$E$22))*$V5106*Y5106/(1-$W5106)","v":{"v":1634.2905006486071,"d":"1,634"}},{"$f":"'BP Financier'!$E$44*(('BP Financier'!$C$19+'BP Financier'!$D$19+'BP Financier'!$E$19)/('BP Financier'!$C$16+'BP Financier'!$C$19+'BP Financier'!$D$16+'BP Financier'!$D$19+'BP Financier'!$E$16+'BP Financier'!$E$19+'BP Financier'!$C$22+'BP Financier'!$D$22+'BP Financier'!$E$22))*$V5106*Z5106/(1-$W5106)","v":{"v":12790.686810861413,"d":"12,791"}},{"$f":"'BP Financier'!$E$44*(('BP Financier'!$C$19+'BP Financier'!$D$19+'BP Financier'!$E$19)/('BP Financier'!$C$16+'BP Financier'!$C$19+'BP Financier'!$D$16+'BP Financier'!$D$19+'BP Financier'!$E$16+'BP Financier'!$E$19+'BP Financier'!$C$22+'BP Financier'!$D$22+'BP Financier'!$E$22))*$V5106*AA5106/(1-$W5106)","v":{"v":1580.2643683957606,"d":"1,580"}},{"$f":"'BP Financier'!$E$44*(('BP Financier'!$C$19+'BP Financier'!$D$19+'BP Financier'!$E$19)/('BP Financier'!$C$16+'BP Financier'!$C$19+'BP Financier'!$D$16+'BP Financier'!$D$19+'BP Financier'!$E$16+'BP Financier'!$E$19+'BP Financier'!$C$22+'BP Financier'!$D$22+'BP Financier'!$E$22))*$V5106*AB5106/(1-$W5106)","v":{"v":756.3658515398511,"d":"756"}},null,{"v":1.6666666666666668E-3,"d":"0.17%"},{"$f":"Actif!$E$28/100","v":{"v":0.28900000000000003,"d":"28.90%"}},{"$f":"Actif!$E$30/100","v":{"v":0.09050000000000001,"d":"9.05%"}},{"$f":"Actif!$E$31/100","v":{"v":0.0605,"d":"6.05%"}},{"$f":"Actif!$E$32/100","v":{"v":0.47350000000000003,"d":"47.35%"}},{"$f":"Actif!$E$33/100","v":{"v":0.0585,"d":"5.85%"}},{"$f":"Actif!$E$29/100","v":{"v":0.027999999999999997,"d":"2.80%"}}]
[null,"#3",18,2029,"H","A_PER",{"v":0.44999999999999996,"d":"0.45"},{"v":0.38999999999999996,"d":"0.39"},0.6,0.6,85,0,{"$f":"ROUND(Primes!$O$7*V5107,0)","v":1},{"$f":"'BP Financier'!$E$33*(('BP Financier'!$C$19+'BP Financier'!$D$19+'BP Financier'!$E$19)/('BP Financier'!$C$16+'BP Financier'!$C$19+'BP Financier'!$D$16+'BP Financier'!$D$19+'BP Financier'!$E$16+'BP Financier'!$E$19))*V5107","v":{"v":34245.1685593803,"d":"34,245"}},{"v":19206.290015886938,"d":"19,206"},{"$f":"'BP Financier'!$E$44*(('BP Financier'!$C$19+'BP Financier'!$D$19+'BP Financier'!$E$19)/('BP Financier'!$C$16+'BP Financier'!$C$19+'BP Financier'!$D$16+'BP Financier'!$D$19+'BP Financier'!$E$16+'BP Financier'!$E$19+'BP Financier'!$C$22+'BP Financier'!$D$22+'BP Financier'!$E$22))*$V5107*X5107/(1-$W5107)","v":{"v":2444.682484441305,"d":"2,445"}},{"$f":"'BP Financier'!$E$44*(('BP Financier'!$C$19+'BP Financier'!$D$19+'BP Financier'!$E$19)/('BP Financier'!$C$16+'BP Financier'!$C$19+'BP Financier'!$D$16+'BP Financier'!$D$19+'BP Financier'!$E$16+'BP Financier'!$E$19+'BP Financier'!$C$22+'BP Financier'!$D$22+'BP Financier'!$E$22))*$V5107*Y5107/(1-$W5107)","v":{"v":1634.2905006486071,"d":"1,634"}},{"$f":"'BP Financier'!$E$44*(('BP Financier'!$C$19+'BP Financier'!$D$19+'BP Financier'!$E$19)/('BP Financier'!$C$16+'BP Financier'!$C$19+'BP Financier'!$D$16+'BP Financier'!$D$19+'BP Financier'!$E$16+'BP Financier'!$E$19+'BP Financier'!$C$22+'BP Financier'!$D$22+'BP Financier'!$E$22))*$V5107*Z5107/(1-$W5107)","v":{"v":12790.686810861413,"d":"12,791"}},{"$f":"'BP Financier'!$E$44*(('BP Financier'!$C$19+'BP Financier'!$D$19+'BP Financier'!$E$19)/('BP Financier'!$C$16+'BP Financier'!$C$19+'BP Financier'!$D$16+'BP Financier'!$D$19+'BP Financier'!$E$16+'BP Financier'!$E$19+'BP Financier'!$C$22+'BP Financier'!$D$22+'BP Financier'!$E$22))*$V5107*AA5107/(1-$W5107)","v":{"v":1580.2643683957606,"d":"1,580"}},{"$f":"'BP Financier'!$E$44*(('BP Financier'!$C$19+'BP Financier'!$D$19+'BP Financier'!$E$19)/('BP Financier'!$C$16+'BP Financier'!$C$19+'BP Financier'!$D$16+'BP Financier'!$D$19+'BP Financier'!$E$16+'BP Financier'!$E$19+'BP Financier'!$C$22+'BP Financier'!$D$22+'BP Financier'!$E$22))*$V5107*AB5107/(1-$W5107)","v":{"v":756.3658515398511,"d":"756"}},null,{"v":1.6666666666666668E-3,"d":"0.17%"},{"$f":"Actif!$E$28/100","v":{"v":0.28900000000000003,"d":"28.90%"}},{"$f":"Actif!$E$30/100","v":{"v":0.09050000000000001,"d":"9.05%"}},{"$f":"Actif!$E$31/100","v":{"v":0.0605,"d":"6.05%"}},{"$f":"Actif!$E$32/100","v":{"v":0.47350000000000003,"d":"47.35%"}},{"$f":"Actif!$E$33/100","v":{"v":0.0585,"d":"5.85%"}},{"$f":"Actif!$E$29/100","v":{"v":0.027999999999999997,"d":"2.80%"}}]
[null,"#4",19,2026,"H","A_PER",{"v":0.44999999999999996,"d":"0.45"},{"v":0.38999999999999996,"d":"0.39"},0.6,0.6,85,0,{"$f":"ROUND(Primes!$O$7*V5108,0)","v":1},{"$f":"'BP Financier'!$E$33*(('BP Financier'!$C$19+'BP Financier'!$D$19+'BP Financier'!$E$19)/('BP Financier'!$C$16+'BP Financier'!$C$19+'BP Financier'!$D$16+'BP Financier'!$D$19+'BP Financier'!$E$16+'BP Financier'!$E$19))*V5108","v":{"v":34245.1685593803,"d":"34,245"}},{"v":19206.290015886938,"d":"19,206"},{"$f":"'BP Financier'!$E$44*(('BP Financier'!$C$19+'BP Financier'!$D$19+'BP Financier'!$E$19)/('BP Financier'!$C$16+'BP Financier'!$C$19+'BP Financier'!$D$16+'BP Financier'!$D$19+'BP Financier'!$E$16+'BP Financier'!$E$19+'BP Financier'!$C$22+'BP Financier'!$D$22+'BP Financier'!$E$22))*$V5108*X5108/(1-$W5108)","v":{"v":2444.682484441305,"d":"2,445"}},{"$f":"'BP Financier'!$E$44*(('BP Financier'!$C$19+'BP Financier'!$D$19+'BP Financier'!$E$19)/('BP Financier'!$C$16+'BP Financier'!$C$19+'BP Financier'!$D$16+'BP Financier'!$D$19+'BP Financier'!$E$16+'BP Financier'!$E$19+'BP Financier'!$C$22+'BP Financier'!$D$22+'BP Financier'!$E$22))*$V5108*Y5108/(1-$W5108)","v":{"v":1634.2905006486071,"d":"1,634"}},{"$f":"'BP Financier'!$E$44*(('BP Financier'!$C$19+'BP Financier'!$D$19+'BP Financier'!$E$19)/('BP Financier'!$C$16+'BP Financier'!$C$19+'BP Financier'!$D$16+'BP Financier'!$D$19+'BP Financier'!$E$16+'BP Financier'!$E$19+'BP Financier'!$C$22+'BP Financier'!$D$22+'BP Financier'!$E$22))*$V5108*Z5108/(1-$W5108)","v":{"v":12790.686810861413,"d":"12,791"}},{"$f":"'BP Financier'!$E$44*(('BP Financier'!$C$19+'BP Financier'!$D$19+'BP Financier'!$E$19)/('BP Financier'!$C$16+'BP Financier'!$C$19+'BP Financier'!$D$16+'BP Financier'!$D$19+'BP Financier'!$E$16+'BP Financier'!$E$19+'BP Financier'!$C$22+'BP Financier'!$D$22+'BP Financier'!$E$22))*$V5108*AA5108/(1-$W5108)","v":{"v":1580.2643683957606,"d":"1,580"}},{"$f":"'BP Financier'!$E$44*(('BP Financier'!$C$19+'BP Financier'!$D$19+'BP Financier'!$E$19)/('BP Financier'!$C$16+'BP Financier'!$C$19+'BP Financier'!$D$16+'BP Financier'!$D$19+'BP Financier'!$E$16+'BP Financier'!$E$19+'BP Financier'!$C$22+'BP Financier'!$D$22+'BP Financier'!$E$22))*$V5108*AB5108/(1-$W5108)","v":{"v":756.3658515398511,"d":"756"}},null,{"v":1.6666666666666668E-3,"d":"0.17%"},{"$f":"Actif!$E$28/100","v":{"v":0.28900000000000003,"d":"28.90%"}},{"$f":"Actif!$E$30/100","v":{"v":0.09050000000000001,"d":"9.05%"}},{"$f":"Actif!$E$31/100","v":{"v":0.0605,"d":"6.05%"}},{"$f":"Actif!$E$32/100","v":{"v":0.47350000000000003,"d":"47.35%"}},{"$f":"Actif!$E$33/100","v":{"v":0.0585,"d":"5.85%"}},{"$f":"Actif!$E$29/100","v":{"v":0.027999999999999997,"d":"2.80%"}}]
[null,"#5",19,2028,"H","A_PER",{"v":0.44999999999999996,"d":"0.45"},{"v":0.38999999999999996,"d":"0.39"},0.6,0.6,85,0,{"$f":"ROUND(Primes!$O$7*V5109,0)","v":1},{"$f":"'BP Financier'!$E$33*(('BP Financier'!$C$19+'BP Financier'!$D$19+'BP Financier'!$E$19)/('BP Financier'!$C$16+'BP Financier'!$C$19+'BP Financier'!$D$16+'BP Financier'!$D$19+'BP Financier'!$E$16+'BP Financier'!$E$19))*V5109","v":{"v":34245.1685593803,"d":"34,245"}},{"v":19206.290015886938,"d":"19,206"},{"$f":"'BP Financier'!$E$44*(('BP Financier'!$C$19+'BP Financier'!$D$19+'BP Financier'!$E$19)/('BP Financier'!$C$16+'BP Financier'!$C$19+'BP Financier'!$D$16+'BP Financier'!$D$19+'BP Financier'!$E$16+'BP Financier'!$E$19+'BP Financier'!$C$22+'BP Financier'!$D$22+'BP Financier'!$E$22))*$V5109*X5109/(1-$W5109)","v":{"v":2444.682484441305,"d":"2,445"}},{"$f":"'BP Financier'!$E$44*(('BP Financier'!$C$19+'BP Financier'!$D$19+'BP Financier'!$E$19)/('BP Financier'!$C$16+'BP Financier'!$C$19+'BP Financier'!$D$16+'BP Financier'!$D$19+'BP Financier'!$E$16+'BP Financier'!$E$19+'BP Financier'!$C$22+'BP Financier'!$D$22+'BP Financier'!$E$22))*$V5109*Y5109/(1-$W5109)","v":{"v":1634.2905006486071,"d":"1,634"}},{"$f":"'BP Financier'!$E$44*(('BP Financier'!$C$19+'BP Financier'!$D$19+'BP Financier'!$E$19)/('BP Financier'!$C$16+'BP Financier'!$C$19+'BP Financier'!$D$16+'BP Financier'!$D$19+'BP Financier'!$E$16+'BP Financier'!$E$19+'BP Financier'!$C$22+'BP Financier'!$D$22+'BP Financier'!$E$22))*$V5109*Z5109/(1-$W5109)","v":{"v":12790.686810861413,"d":"12,791"}},{"$f":"'BP Financier'!$E$44*(('BP Financier'!$C$19+'BP Financier'!$D$19+'BP Financier'!$E$19)/('BP Financier'!$C$16+'BP Financier'!$C$19+'BP Financier'!$D$16+'BP Financier'!$D$19+'BP Financier'!$E$16+'BP Financier'!$E$19+'BP Financier'!$C$22+'BP Financier'!$D$22+'BP Financier'!$E$22))*$V5109*AA5109/(1-$W5109)","v":{"v":1580.2643683957606,"d":"1,580"}},{"$f":"'BP Financier'!$E$44*(('BP Financier'!$C$19+'BP Financier'!$D$19+'BP Financier'!$E$19)/('BP Financier'!$C$16+'BP Financier'!$C$19+'BP Financier'!$D$16+'BP Financier'!$D$19+'BP Financier'!$E$16+'BP Financier'!$E$19+'BP Financier'!$C$22+'BP Financier'!$D$22+'BP Financier'!$E$22))*$V5109*AB5109/(1-$W5109)","v":{"v":756.3658515398511,"d":"756"}},null,{"v":1.6666666666666668E-3,"d":"0.17%"},{"$f":"Actif!$E$28/100","v":{"v":0.28900000000000003,"d":"28.90%"}},{"$f":"Actif!$E$30/100","v":{"v":0.09050000000000001,"d":"9.05%"}},{"$f":"Actif!$E$31/100","v":{"v":0.0605,"d":"6.05%"}},{"$f":"Actif!$E$32/100","v":{"v":0.47350000000000003,"d":"47.35%"}},{"$f":"Actif!$E$33/100","v":{"v":0.0585,"d":"5.85%"}},{"$f":"Actif!$E$29/100","v":{"v":0.027999999999999997,"d":"2.80%"}}]
[null,"#6",19,2029,"H","A_PER",{"v":0.44999999999999996,"d":"0.45"},{"v":0.38999999999999996,"d":"0.39"},0.6,0.6,85,0,{"$f":"ROUND(Primes!$O$7*V5110,0)","v":1},{"$f":"'BP Financier'!$E$33*(('BP Financier'!$C$19+'BP Financier'!$D$19+'BP Financier'!$E$19)/('BP Financier'!$C$16+'BP Financier'!$C$19+'BP Financier'!$D$16+'BP Financier'!$D$19+'BP Financier'!$E$16+'BP Financier'!$E$19))*V5110","v":{"v":34245.1685593803,"d":"34,245"}},{"v":19206.290015886938,"d":"19,206"},{"$f":"'BP Financier'!$E$44*(('BP Financier'!$C$19+'BP Financier'!$D$19+'BP Financier'!$E$19)/('BP Financier'!$C$16+'BP Financier'!$C$19+'BP Financier'!$D$16+'BP Financier'!$D$19+'BP Financier'!$E$16+'BP Financier'!$E$19+'BP Financier'!$C$22+'BP Financier'!$D$22+'BP Financier'!$E$22))*$V5110*X5110/(1-$W5110)","v":{"v":2444.682484441305,"d":"2,445"}},{"$f":"'BP Financier'!$E$44*(('BP Financier'!$C$19+'BP Financier'!$D$19+'BP Financier'!$E$19)/('BP Financier'!$C$16+'BP Financier'!$C$19+'BP Financier'!$D$16+'BP Financier'!$D$19+'BP Financier'!$E$16+'BP Financier'!$E$19+'BP Financier'!$C$22+'BP Financier'!$D$22+'BP Financier'!$E$22))*$V5110*Y5110/(1-$W5110)","v":{"v":1634.2905006486071,"d":"1,634"}},{"$f":"'BP Financier'!$E$44*(('BP Financier'!$C$19+'BP Financier'!$D$19+'BP Financier'!$E$19)/('BP Financier'!$C$16+'BP Financier'!$C$19+'BP Financier'!$D$16+'BP Financier'!$D$19+'BP Financier'!$E$16+'BP Financier'!$E$19+'BP Financier'!$C$22+'BP Financier'!$D$22+'BP Financier'!$E$22))*$V5110*Z5110/(1-$W5110)","v":{"v":12790.686810861413,"d":"12,791"}},{"$f":"'BP Financier'!$E$44*(('BP Financier'!$C$19+'BP Financier'!$D$19+'BP Financier'!$E$19)/('BP Financier'!$C$16+'BP Financier'!$C$19+'BP Financier'!$D$16+'BP Financier'!$D$19+'BP Financier'!$E$16+'BP Financier'!$E$19+'BP Financier'!$C$22+'BP Financier'!$D$22+'BP Financier'!$E$22))*$V5110*AA5110/(1-$W5110)","v":{"v":1580.2643683957606,"d":"1,580"}},{"$f":"'BP Financier'!$E$44*(('BP Financier'!$C$19+'BP Financier'!$D$19+'BP Financier'!$E$19)/('BP Financier'!$C$16+'BP Financier'!$C$19+'BP Financier'!$D$16+'BP Financier'!$D$19+'BP Financier'!$E$16+'BP Financier'!$E$19+'BP Financier'!$C$22+'BP Financier'!$D$22+'BP Financier'!$E$22))*$V5110*AB5110/(1-$W5110)","v":{"v":756.3658515398511,"d":"756"}},null,{"v":1.6666666666666668E-3,"d":"0.17%"},{"$f":"Actif!$E$28/100","v":{"v":0.28900000000000003,"d":"28.90%"}},{"$f":"Actif!$E$30/100","v":{"v":0.09050000000000001,"d":"9.05%"}},{"$f":"Actif!$E$31/100","v":{"v":0.0605,"d":"6.05%"}},{"$f":"Actif!$E$32/100","v":{"v":0.47350000000000003,"d":"47.35%"}},{"$f":"Actif!$E$33/100","v":{"v":0.0585,"d":"5.85%"}},{"$f":"Actif!$E$29/100","v":{"v":0.027999999999999997,"d":"2.80%"}}]
[null,"#7",20,2026,"F","A_PER",{"v":0.44999999999999996,"d":"0.45"},{"v":0.38999999999999996,"d":"0.39"},0.6,0.6,85,0,{"$f":"ROUND(Primes!$O$7*V5111,0)","v":1},{"$f":"'BP Financier'!$E$33*(('BP Financier'!$C$19+'BP Financier'!$D$19+'BP Financier'!$E$19)/('BP Financier'!$C$16+'BP Financier'!$C$19+'BP Financier'!$D$16+'BP Financier'!$D$19+'BP Financier'!$E$16+'BP Financier'!$E$19))*V5111","v":{"v":34245.1685593803,"d":"34,245"}},{"v":19206.290015886938,"d":"19,206"},{"$f":"'BP Financier'!$E$44*(('BP Financier'!$C$19+'BP Financier'!$D$19+'BP Financier'!$E$19)/('BP Financier'!$C$16+'BP Financier'!$C$19+'BP Financier'!$D$16+'BP Financier'!$D$19+'BP Financier'!$E$16+'BP Financier'!$E$19+'BP Financier'!$C$22+'BP Financier'!$D$22+'BP Financier'!$E$22))*$V5111*X5111/(1-$W5111)","v":{"v":2444.682484441305,"d":"2,445"}},{"$f":"'BP Financier'!$E$44*(('BP Financier'!$C$19+'BP Financier'!$D$19+'BP Financier'!$E$19)/('BP Financier'!$C$16+'BP Financier'!$C$19+'BP Financier'!$D$16+'BP Financier'!$D$19+'BP Financier'!$E$16+'BP Financier'!$E$19+'BP Financier'!$C$22+'BP Financier'!$D$22+'BP Financier'!$E$22))*$V5111*Y5111/(1-$W5111)","v":{"v":1634.2905006486071,"d":"1,634"}},{"$f":"'BP Financier'!$E$44*(('BP Financier'!$C$19+'BP Financier'!$D$19+'BP Financier'!$E$19)/('BP Financier'!$C$16+'BP Financier'!$C$19+'BP Financier'!$D$16+'BP Financier'!$D$19+'BP Financier'!$E$16+'BP Financier'!$E$19+'BP Financier'!$C$22+'BP Financier'!$D$22+'BP Financier'!$E$22))*$V5111*Z5111/(1-$W5111)","v":{"v":12790.686810861413,"d":"12,791"}},{"$f":"'BP Financier'!$E$44*(('BP Financier'!$C$19+'BP Financier'!$D$19+'BP Financier'!$E$19)/('BP Financier'!$C$16+'BP Financier'!$C$19+'BP Financier'!$D$16+'BP Financier'!$D$19+'BP Financier'!$E$16+'BP Financier'!$E$19+'BP Financier'!$C$22+'BP Financier'!$D$22+'BP Financier'!$E$22))*$V5111*AA5111/(1-$W5111)","v":{"v":1580.2643683957606,"d":"1,580"}},{"$f":"'BP Financier'!$E$44*(('BP Financier'!$C$19+'BP Financier'!$D$19+'BP Financier'!$E$19)/('BP Financier'!$C$16+'BP Financier'!$C$19+'BP Financier'!$D$16+'BP Financier'!$D$19+'BP Financier'!$E$16+'BP Financier'!$E$19+'BP Financier'!$C$22+'BP Financier'!$D$22+'BP Financier'!$E$22))*$V5111*AB5111/(1-$W5111)","v":{"v":756.3658515398511,"d":"756"}},null,{"v":1.6666666666666668E-3,"d":"0.17%"},{"$f":"Actif!$E$28/100","v":{"v":0.28900000000000003,"d":"28.90%"}},{"$f":"Actif!$E$30/100","v":{"v":0.09050000000000001,"d":"9.05%"}},{"$f":"Actif!$E$31/100","v":{"v":0.0605,"d":"6.05%"}},{"$f":"Actif!$E$32/100","v":{"v":0.47350000000000003,"d":"47.35%"}},{"$f":"Actif!$E$33/100","v":{"v":0.0585,"d":"5.85%"}},{"$f":"Actif!$E$29/100","v":{"v":0.027999999999999997,"d":"2.80%"}}]
[null,"#8",20,2028,"F","A_PER",{"v":0.44999999999999996,"d":"0.45"},{"v":0.38999999999999996,"d":"0.39"},0.6,0.6,85,0,{"$f":"ROUND(Primes!$O$7*V5112,0)","v":1},{"$f":"'BP Financier'!$E$33*(('BP Financier'!$C$19+'BP Financier'!$D$19+'BP Financier'!$E$19)/('BP Financier'!$C$16+'BP Financier'!$C$19+'BP Financier'!$D$16+'BP Financier'!$D$19+'BP Financier'!$E$16+'BP Financier'!$E$19))*V5112","v":{"v":34245.1685593803,"d":"34,245"}},{"v":19206.290015886938,"d":"19,206"},{"$f":"'BP Financier'!$E$44*(('BP Financier'!$C$19+'BP Financier'!$D$19+'BP Financier'!$E$19)/('BP Financier'!$C$16+'BP Financier'!$C$19+'BP Financier'!$D$16+'BP Financier'!$D$19+'BP Financier'!$E$16+'BP Financier'!$E$19+'BP Financier'!$C$22+'BP Financier'!$D$22+'BP Financier'!$E$22))*$V5112*X5112/(1-$W5112)","v":{"v":2444.682484441305,"d":"2,445"}},{"$f":"'BP Financier'!$E$44*(('BP Financier'!$C$19+'BP Financier'!$D$19+'BP Financier'!$E$19)/('BP Financier'!$C$16+'BP Financier'!$C$19+'BP Financier'!$D$16+'BP Financier'!$D$19+'BP Financier'!$E$16+'BP Financier'!$E$19+'BP Financier'!$C$22+'BP Financier'!$D$22+'BP Financier'!$E$22))*$V5112*Y5112/(1-$W5112)","v":{"v":1634.2905006486071,"d":"1,634"}},{"$f":"'BP Financier'!$E$44*(('BP Financier'!$C$19+'BP Financier'!$D$19+'BP Financier'!$E$19)/('BP Financier'!$C$16+'BP Financier'!$C$19+'BP Financier'!$D$16+'BP Financier'!$D$19+'BP Financier'!$E$16+'BP Financier'!$E$19+'BP Financier'!$C$22+'BP Financier'!$D$22+'BP Financier'!$E$22))*$V5112*Z5112/(1-$W5112)","v":{"v":12790.686810861413,"d":"12,791"}},{"$f":"'BP Financier'!$E$44*(('BP Financier'!$C$19+'BP Financier'!$D$19+'BP Financier'!$E$19)/('BP Financier'!$C$16+'BP Financier'!$C$19+'BP Financier'!$D$16+'BP Financier'!$D$19+'BP Financier'!$E$16+'BP Financier'!$E$19+'BP Financier'!$C$22+'BP Financier'!$D$22+'BP Financier'!$E$22))*$V5112*AA5112/(1-$W5112)","v":{"v":1580.2643683957606,"d":"1,580"}},{"$f":"'BP Financier'!$E$44*(('BP Financier'!$C$19+'BP Financier'!$D$19+'BP Financier'!$E$19)/('BP Financier'!$C$16+'BP Financier'!$C$19+'BP Financier'!$D$16+'BP Financier'!$D$19+'BP Financier'!$E$16+'BP Financier'!$E$19+'BP Financier'!$C$22+'BP Financier'!$D$22+'BP Financier'!$E$22))*$V5112*AB5112/(1-$W5112)","v":{"v":756.3658515398511,"d":"756"}},null,{"v":1.6666666666666668E-3,"d":"0.17%"},{"$f":"Actif!$E$28/100","v":{"v":0.28900000000000003,"d":"28.90%"}},{"$f":"Actif!$E$30/100","v":{"v":0.09050000000000001,"d":"9.05%"}},{"$f":"Actif!$E$31/100","v":{"v":0.0605,"d":"6.05%"}},{"$f":"Actif!$E$32/100","v":{"v":0.47350000000000003,"d":"47.35%"}},{"$f":"Actif!$E$33/100","v":{"v":0.0585,"d":"5.85%"}},{"$f":"Actif!$E$29/100","v":{"v":0.027999999999999997,"d":"2.80%"}}]
[null,"#9",20,2029,"F","A_PER",{"v":0.44999999999999996,"d":"0.45"},{"v":0.38999999999999996,"d":"0.39"},0.6,0.6,85,0,{"$f":"ROUND(Primes!$O$7*V5113,0)","v":1},{"$f":"'BP Financier'!$E$33*(('BP Financier'!$C$19+'BP Financier'!$D$19+'BP Financier'!$E$19)/('BP Financier'!$C$16+'BP Financier'!$C$19+'BP Financier'!$D$16+'BP Financier'!$D$19+'BP Financier'!$E$16+'BP Financier'!$E$19))*V5113","v":{"v":34245.1685593803,"d":"34,245"}},{"v":19206.290015886938,"d":"19,206"},{"$f":"'BP Financier'!$E$44*(('BP Financier'!$C$19+'BP Financier'!$D$19+'BP Financier'!$E$19)/('BP Financier'!$C$16+'BP Financier'!$C$19+'BP Financier'!$D$16+'BP Financier'!$D$19+'BP Financier'!$E$16+'BP Financier'!$E$19+'BP Financier'!$C$22+'BP Financier'!$D$22+'BP Financier'!$E$22))*$V5113*X5113/(1-$W5113)","v":{"v":2444.682484441305,"d":"2,445"}},{"$f":"'BP Financier'!$E$44*(('BP Financier'!$C$19+'BP Financier'!$D$19+'BP Financier'!$E$19)/('BP Financier'!$C$16+'BP Financier'!$C$19+'BP Financier'!$D$16+'BP Financier'!$D$19+'BP Financier'!$E$16+'BP Financier'!$E$19+'BP Financier'!$C$22+'BP Financier'!$D$22+'BP Financier'!$E$22))*$V5113*Y5113/(1-$W5113)","v":{"v":1634.2905006486071,"d":"1,634"}},{"$f":"'BP Financier'!$E$44*(('BP Financier'!$C$19+'BP Financier'!$D$19+'BP Financier'!$E$19)/('BP Financier'!$C$16+'BP Financier'!$C$19+'BP Financier'!$D$16+'BP Financier'!$D$19+'BP Financier'!$E$16+'BP Financier'!$E$19+'BP Financier'!$C$22+'BP Financier'!$D$22+'BP Financier'!$E$22))*$V5113*Z5113/(1-$W5113)","v":{"v":12790.686810861413,"d":"12,791"}},{"$f":"'BP Financier'!$E$44*(('BP Financier'!$C$19+'BP Financier'!$D$19+'BP Financier'!$E$19)/('BP Financier'!$C$16+'BP Financier'!$C$19+'BP Financier'!$D$16+'BP Financier'!$D$19+'BP Financier'!$E$16+'BP Financier'!$E$19+'BP Financier'!$C$22+'BP Financier'!$D$22+'BP Financier'!$E$22))*$V5113*AA5113/(1-$W5113)","v":{"v":1580.2643683957606,"d":"1,580"}},{"$f":"'BP Financier'!$E$44*(('BP Financier'!$C$19+'BP Financier'!$D$19+'BP Financier'!$E$19)/('BP Financier'!$C$16+'BP Financier'!$C$19+'BP Financier'!$D$16+'BP Financier'!$D$19+'BP Financier'!$E$16+'BP Financier'!$E$19+'BP Financier'!$C$22+'BP Financier'!$D$22+'BP Financier'!$E$22))*$V5113*AB5113/(1-$W5113)","v":{"v":756.3658515398511,"d":"756"}},null,{"v":1.6666666666666668E-3,"d":"0.17%"},{"$f":"Actif!$E$28/100","v":{"v":0.28900000000000003,"d":"28.90%"}},{"$f":"Actif!$E$30/100","v":{"v":0.09050000000000001,"d":"9.05%"}},{"$f":"Actif!$E$31/100","v":{"v":0.0605,"d":"6.05%"}},{"$f":"Actif!$E$32/100","v":{"v":0.47350000000000003,"d":"47.35%"}},{"$f":"Actif!$E$33/100","v":{"v":0.0585,"d":"5.85%"}},{"$f":"Actif!$E$29/100","v":{"v":0.027999999999999997,"d":"2.80%"}}]
[null,"#10",21,2026,"H","A_PER",{"v":0.44999999999999996,"d":"0.45"},{"v":0.38999999999999996,"d":"0.39"},0.6,0.6,85,0,{"$f":"ROUND(Primes!$O$7*V5114,0)","v":1},{"$f":"'BP Financier'!$E$33*(('BP Financier'!$C$19+'BP Financier'!$D$19+'BP Financier'!$E$19)/('BP Financier'!$C$16+'BP Financier'!$C$19+'BP Financier'!$D$16+'BP Financier'!$D$19+'BP Financier'!$E$16+'BP Financier'!$E$19))*V5114","v":{"v":34245.1685593803,"d":"34,245"}},{"v":19206.290015886938,"d":"19,206"},{"$f":"'BP Financier'!$E$44*(('BP Financier'!$C$19+'BP Financier'!$D$19+'BP Financier'!$E$19)/('BP Financier'!$C$16+'BP Financier'!$C$19+'BP Financier'!$D$16+'BP Financier'!$D$19+'BP Financier'!$E$16+'BP Financier'!$E$19+'BP Financier'!$C$22+'BP Financier'!$D$22+'BP Financier'!$E$22))*$V5114*X5114/(1-$W5114)","v":{"v":2444.682484441305,"d":"2,445"}},{"$f":"'BP Financier'!$E$44*(('BP Financier'!$C$19+'BP Financier'!$D$19+'BP Financier'!$E$19)/('BP Financier'!$C$16+'BP Financier'!$C$19+'BP Financier'!$D$16+'BP Financier'!$D$19+'BP Financier'!$E$16+'BP Financier'!$E$19+'BP Financier'!$C$22+'BP Financier'!$D$22+'BP Financier'!$E$22))*$V5114*Y5114/(1-$W5114)","v":{"v":1634.2905006486071,"d":"1,634"}},{"$f":"'BP Financier'!$E$44*(('BP Financier'!$C$19+'BP Financier'!$D$19+'BP Financier'!$E$19)/('BP Financier'!$C$16+'BP Financier'!$C$19+'BP Financier'!$D$16+'BP Financier'!$D$19+'BP Financier'!$E$16+'BP Financier'!$E$19+'BP Financier'!$C$22+'BP Financier'!$D$22+'BP Financier'!$E$22))*$V5114*Z5114/(1-$W5114)","v":{"v":12790.686810861413,"d":"12,791"}},{"$f":"'BP Financier'!$E$44*(('BP Financier'!$C$19+'BP Financier'!$D$19+'BP Financier'!$E$19)/('BP Financier'!$C$16+'BP Financier'!$C$19+'BP Financier'!$D$16+'BP Financier'!$D$19+'BP Financier'!$E$16+'BP Financier'!$E$19+'BP Financier'!$C$22+'BP Financier'!$D$22+'BP Financier'!$E$22))*$V5114*AA5114/(1-$W5114)","v":{"v":1580.2643683957606,"d":"1,580"}},{"$f":"'BP Financier'!$E$44*(('BP Financier'!$C$19+'BP Financier'!$D$19+'BP Financier'!$E$19)/('BP Financier'!$C$16+'BP Financier'!$C$19+'BP Financier'!$D$16+'BP Financier'!$D$19+'BP Financier'!$E$16+'BP Financier'!$E$19+'BP Financier'!$C$22+'BP Financier'!$D$22+'BP Financier'!$E$22))*$V5114*AB5114/(1-$W5114)","v":{"v":756.3658515398511,"d":"756"}},null,{"v":1.6666666666666668E-3,"d":"0.17%"},{"$f":"Actif!$E$28/100","v":{"v":0.28900000000000003,"d":"28.90%"}},{"$f":"Actif!$E$30/100","v":{"v":0.09050000000000001,"d":"9.05%"}},{"$f":"Actif!$E$31/100","v":{"v":0.0605,"d":"6.05%"}},{"$f":"Actif!$E$32/100","v":{"v":0.47350000000000003,"d":"47.35%"}},{"$f":"Actif!$E$33/100","v":{"v":0.0585,"d":"5.85%"}},{"$f":"Actif!$E$29/100","v":{"v":0.027999999999999997,"d":"2.80%"}}]
[null,"#11",21,2028,"H","A_PER",{"v":0.44999999999999996,"d":"0.45"},{"v":0.38999999999999996,"d":"0.39"},0.6,0.6,85,0,{"$f":"ROUND(Primes!$O$7*V5115,0)","v":1},{"$f":"'BP Financier'!$E$33*(('BP Financier'!$C$19+'BP Financier'!$D$19+'BP Financier'!$E$19)/('BP Financier'!$C$16+'BP Financier'!$C$19+'BP Financier'!$D$16+'BP Financier'!$D$19+'BP Financier'!$E$16+'BP Financier'!$E$19))*V5115","v":{"v":34245.1685593803,"d":"34,245"}},{"v":19206.290015886938,"d":"19,206"},{"$f":"'BP Financier'!$E$44*(('BP Financier'!$C$19+'BP Financier'!$D$19+'BP Financier'!$E$19)/('BP Financier'!$C$16+'BP Financier'!$C$19+'BP Financier'!$D$16+'BP Financier'!$D$19+'BP Financier'!$E$16+'BP Financier'!$E$19+'BP Financier'!$C$22+'BP Financier'!$D$22+'BP Financier'!$E$22))*$V5115*X5115/(1-$W5115)","v":{"v":2444.682484441305,"d":"2,445"}},{"$f":"'BP Financier'!$E$44*(('BP Financier'!$C$19+'BP Financier'!$D$19+'BP Financier'!$E$19)/('BP Financier'!$C$16+'BP Financier'!$C$19+'BP Financier'!$D$16+'BP Financier'!$D$19+'BP Financier'!$E$16+'BP Financier'!$E$19+'BP Financier'!$C$22+'BP Financier'!$D$22+'BP Financier'!$E$22))*$V5115*Y5115/(1-$W5115)","v":{"v":1634.2905006486071,"d":"1,634"}},{"$f":"'BP Financier'!$E$44*(('BP Financier'!$C$19+'BP Financier'!$D$19+'BP Financier'!$E$19)/('BP Financier'!$C$16+'BP Financier'!$C$19+'BP Financier'!$D$16+'BP Financier'!$D$19+'BP Financier'!$E$16+'BP Financier'!$E$19+'BP Financier'!$C$22+'BP Financier'!$D$22+'BP Financier'!$E$22))*$V5115*Z5115/(1-$W5115)","v":{"v":12790.686810861413,"d":"12,791"}},{"$f":"'BP Financier'!$E$44*(('BP Financier'!$C$19+'BP Financier'!$D$19+'BP Financier'!$E$19)/('BP Financier'!$C$16+'BP Financier'!$C$19+'BP Financier'!$D$16+'BP Financier'!$D$19+'BP Financier'!$E$16+'BP Financier'!$E$19+'BP Financier'!$C$22+'BP Financier'!$D$22+'BP Financier'!$E$22))*$V5115*AA5115/(1-$W5115)","v":{"v":1580.2643683957606,"d":"1,580"}},{"$f":"'BP Financier'!$E$44*(('BP Financier'!$C$19+'BP Financier'!$D$19+'BP Financier'!$E$19)/('BP Financier'!$C$16+'BP Financier'!$C$19+'BP Financier'!$D$16+'BP Financier'!$D$19+'BP Financier'!$E$16+'BP Financier'!$E$19+'BP Financier'!$C$22+'BP Financier'!$D$22+'BP Financier'!$E$22))*$V5115*AB5115/(1-$W5115)","v":{"v":756.3658515398511,"d":"756"}},null,{"v":1.6666666666666668E-3,"d":"0.17%"},{"$f":"Actif!$E$28/100","v":{"v":0.28900000000000003,"d":"28.90%"}},{"$f":"Actif!$E$30/100","v":{"v":0.09050000000000001,"d":"9.05%"}},{"$f":"Actif!$E$31/100","v":{"v":0.0605,"d":"6.05%"}},{"$f":"Actif!$E$32/100","v":{"v":0.47350000000000003,"d":"47.35%"}},{"$f":"Actif!$E$33/100","v":{"v":0.0585,"d":"5.85%"}},{"$f":"Actif!$E$29/100","v":{"v":0.027999999999999997,"d":"2.80%"}}]
[null,"#12",21,2029,"H","A_PER",{"v":0.44999999999999996,"d":"0.45"},{"v":0.38999999999999996,"d":"0.39"},0.6,0.6,85,0,{"$f":"ROUND(Primes!$O$7*V5116,0)","v":1},{"$f":"'BP Financier'!$E$33*(('BP Financier'!$C$19+'BP Financier'!$D$19+'BP Financier'!$E$19)/('BP Financier'!$C$16+'BP Financier'!$C$19+'BP Financier'!$D$16+'BP Financier'!$D$19+'BP Financier'!$E$16+'BP Financier'!$E$19))*V5116","v":{"v":34245.1685593803,"d":"34,245"}},{"v":19206.290015886938,"d":"19,206"},{"$f":"'BP Financier'!$E$44*(('BP Financier'!$C$19+'BP Financier'!$D$19+'BP Financier'!$E$19)/('BP Financier'!$C$16+'BP Financier'!$C$19+'BP Financier'!$D$16+'BP Financier'!$D$19+'BP Financier'!$E$16+'BP Financier'!$E$19+'BP Financier'!$C$22+'BP Financier'!$D$22+'BP Financier'!$E$22))*$V5116*X5116/(1-$W5116)","v":{"v":2444.682484441305,"d":"2,445"}},{"$f":"'BP Financier'!$E$44*(('BP Financier'!$C$19+'BP Financier'!$D$19+'BP Financier'!$E$19)/('BP Financier'!$C$16+'BP Financier'!$C$19+'BP Financier'!$D$16+'BP Financier'!$D$19+'BP Financier'!$E$16+'BP Financier'!$E$19+'BP Financier'!$C$22+'BP Financier'!$D$22+'BP Financier'!$E$22))*$V5116*Y5116/(1-$W5116)","v":{"v":1634.2905006486071,"d":"1,634"}},{"$f":"'BP Financier'!$E$44*(('BP Financier'!$C$19+'BP Financier'!$D$19+'BP Financier'!$E$19)/('BP Financier'!$C$16+'BP Financier'!$C$19+'BP Financier'!$D$16+'BP Financier'!$D$19+'BP Financier'!$E$16+'BP Financier'!$E$19+'BP Financier'!$C$22+'BP Financier'!$D$22+'BP Financier'!$E$22))*$V5116*Z5116/(1-$W5116)","v":{"v":12790.686810861413,"d":"12,791"}},{"$f":"'BP Financier'!$E$44*(('BP Financier'!$C$19+'BP Financier'!$D$19+'BP Financier'!$E$19)/('BP Financier'!$C$16+'BP Financier'!$C$19+'BP Financier'!$D$16+'BP Financier'!$D$19+'BP Financier'!$E$16+'BP Financier'!$E$19+'BP Financier'!$C$22+'BP Financier'!$D$22+'BP Financier'!$E$22))*$V5116*AA5116/(1-$W5116)","v":{"v":1580.2643683957606,"d":"1,580"}},{"$f":"'BP Financier'!$E$44*(('BP Financier'!$C$19+'BP Financier'!$D$19+'BP Financier'!$E$19)/('BP Financier'!$C$16+'BP Financier'!$C$19+'BP Financier'!$D$16+'BP Financier'!$D$19+'BP Financier'!$E$16+'BP Financier'!$E$19+'BP Financier'!$C$22+'BP Financier'!$D$22+'BP Financier'!$E$22))*$V5116*AB5116/(1-$W5116)","v":{"v":756.3658515398511,"d":"756"}},null,{"v":1.6666666666666668E-3,"d":"0.17%"},{"$f":"Actif!$E$28/100","v":{"v":0.28900000000000003,"d":"28.90%"}},{"$f":"Actif!$E$30/100","v":{"v":0.09050000000000001,"d":"9.05%"}},{"$f":"Actif!$E$31/100","v":{"v":0.0605,"d":"6.05%"}},{"$f":"Actif!$E$32/100","v":{"v":0.47350000000000003,"d":"47.35%"}},{"$f":"Actif!$E$33/100","v":{"v":0.0585,"d":"5.85%"}},{"$f":"Actif!$E$29/100","v":{"v":0.027999999999999997,"d":"2.80%"}}]
[null,"#13",22,2026,"H","A_PER",{"v":0.44999999999999996,"d":"0.45"},{"v":0.38999999999999996,"d":"0.39"},0.6,0.6,85,0,{"$f":"ROUND(Primes!$O$7*V5117,0)","v":1},{"$f":"'BP Financier'!$E$33*(('BP Financier'!$C$19+'BP Financier'!$D$19+'BP Financier'!$E$19)/('BP Financier'!$C$16+'BP Financier'!$C$19+'BP Financier'!$D$16+'BP Financier'!$D$19+'BP Financier'!$E$16+'BP Financier'!$E$19))*V5117","v":{"v":34245.1685593803,"d":"34,245"}},{"v":19206.290015886938,"d":"19,206"},{"$f":"'BP Financier'!$E$44*(('BP Financier'!$C$19+'BP Financier'!$D$19+'BP Financier'!$E$19)/('BP Financier'!$C$16+'BP Financier'!$C$19+'BP Financier'!$D$16+'BP Financier'!$D$19+'BP Financier'!$E$16+'BP Financier'!$E$19+'BP Financier'!$C$22+'BP Financier'!$D$22+'BP Financier'!$E$22))*$V5117*X5117/(1-$W5117)","v":{"v":2444.682484441305,"d":"2,445"}},{"$f":"'BP Financier'!$E$44*(('BP Financier'!$C$19+'BP Financier'!$D$19+'BP Financier'!$E$19)/('BP Financier'!$C$16+'BP Financier'!$C$19+'BP Financier'!$D$16+'BP Financier'!$D$19+'BP Financier'!$E$16+'BP Financier'!$E$19+'BP Financier'!$C$22+'BP Financier'!$D$22+'BP Financier'!$E$22))*$V5117*Y5117/(1-$W5117)","v":{"v":1634.2905006486071,"d":"1,634"}},{"$f":"'BP Financier'!$E$44*(('BP Financier'!$C$19+'BP Financier'!$D$19+'BP Financier'!$E$19)/('BP Financier'!$C$16+'BP Financier'!$C$19+'BP Financier'!$D$16+'BP Financier'!$D$19+'BP Financier'!$E$16+'BP Financier'!$E$19+'BP Financier'!$C$22+'BP Financier'!$D$22+'BP Financier'!$E$22))*$V5117*Z5117/(1-$W5117)","v":{"v":12790.686810861413,"d":"12,791"}},{"$f":"'BP Financier'!$E$44*(('BP Financier'!$C$19+'BP Financier'!$D$19+'BP Financier'!$E$19)/('BP Financier'!$C$16+'BP Financier'!$C$19+'BP Financier'!$D$16+'BP Financier'!$D$19+'BP Financier'!$E$16+'BP Financier'!$E$19+'BP Financier'!$C$22+'BP Financier'!$D$22+'BP Financier'!$E$22))*$V5117*AA5117/(1-$W5117)","v":{"v":1580.2643683957606,"d":"1,580"}},{"$f":"'BP Financier'!$E$44*(('BP Financier'!$C$19+'BP Financier'!$D$19+'BP Financier'!$E$19)/('BP Financier'!$C$16+'BP Financier'!$C$19+'BP Financier'!$D$16+'BP Financier'!$D$19+'BP Financier'!$E$16+'BP Financier'!$E$19+'BP Financier'!$C$22+'BP Financier'!$D$22+'BP Financier'!$E$22))*$V5117*AB5117/(1-$W5117)","v":{"v":756.3658515398511,"d":"756"}},null,{"v":1.6666666666666668E-3,"d":"0.17%"},{"$f":"Actif!$E$28/100","v":{"v":0.28900000000000003,"d":"28.90%"}},{"$f":"Actif!$E$30/100","v":{"v":0.09050000000000001,"d":"9.05%"}},{"$f":"Actif!$E$31/100","v":{"v":0.0605,"d":"6.05%"}},{"$f":"Actif!$E$32/100","v":{"v":0.47350000000000003,"d":"47.35%"}},{"$f":"Actif!$E$33/100","v":{"v":0.0585,"d":"5.85%"}},{"$f":"Actif!$E$29/100","v":{"v":0.027999999999999997,"d":"2.80%"}}]
[null,"#14",22,2028,"H","A_PER",{"v":0.44999999999999996,"d":"0.45"},{"v":0.38999999999999996,"d":"0.39"},0.6,0.6,85,0,{"$f":"ROUND(Primes!$O$7*V5118,0)","v":1},{"$f":"'BP Financier'!$E$33*(('BP Financier'!$C$19+'BP Financier'!$D$19+'BP Financier'!$E$19)/('BP Financier'!$C$16+'BP Financier'!$C$19+'BP Financier'!$D$16+'BP Financier'!$D$19+'BP Financier'!$E$16+'BP Financier'!$E$19))*V5118","v":{"v":34245.1685593803,"d":"34,245"}},{"v":19206.290015886938,"d":"19,206"},{"$f":"'BP Financier'!$E$44*(('BP Financier'!$C$19+'BP Financier'!$D$19+'BP Financier'!$E$19)/('BP Financier'!$C$16+'BP Financier'!$C$19+'BP Financier'!$D$16+'BP Financier'!$D$19+'BP Financier'!$E$16+'BP Financier'!$E$19+'BP Financier'!$C$22+'BP Financier'!$D$22+'BP Financier'!$E$22))*$V5118*X5118/(1-$W5118)","v":{"v":2444.682484441305,"d":"2,445"}},{"$f":"'BP Financier'!$E$44*(('BP Financier'!$C$19+'BP Financier'!$D$19+'BP Financier'!$E$19)/('BP Financier'!$C$16+'BP Financier'!$C$19+'BP Financier'!$D$16+'BP Financier'!$D$19+'BP Financier'!$E$16+'BP Financier'!$E$19+'BP Financier'!$C$22+'BP Financier'!$D$22+'BP Financier'!$E$22))*$V5118*Y5118/(1-$W5118)","v":{"v":1634.2905006486071,"d":"1,634"}},{"$f":"'BP Financier'!$E$44*(('BP Financier'!$C$19+'BP Financier'!$D$19+'BP Financier'!$E$19)/('BP Financier'!$C$16+'BP Financier'!$C$19+'BP Financier'!$D$16+'BP Financier'!$D$19+'BP Financier'!$E$16+'BP Financier'!$E$19+'BP Financier'!$C$22+'BP Financier'!$D$22+'BP Financier'!$E$22))*$V5118*Z5118/(1-$W5118)","v":{"v":12790.686810861413,"d":"12,791"}},{"$f":"'BP Financier'!$E$44*(('BP Financier'!$C$19+'BP Financier'!$D$19+'BP Financier'!$E$19)/('BP Financier'!$C$16+'BP Financier'!$C$19+'BP Financier'!$D$16+'BP Financier'!$D$19+'BP Financier'!$E$16+'BP Financier'!$E$19+'BP Financier'!$C$22+'BP Financier'!$D$22+'BP Financier'!$E$22))*$V5118*AA5118/(1-$W5118)","v":{"v":1580.2643683957606,"d":"1,580"}},{"$f":"'BP Financier'!$E$44*(('BP Financier'!$C$19+'BP Financier'!$D$19+'BP Financier'!$E$19)/('BP Financier'!$C$16+'BP Financier'!$C$19+'BP Financier'!$D$16+'BP Financier'!$D$19+'BP Financier'!$E$16+'BP Financier'!$E$19+'BP Financier'!$C$22+'BP Financier'!$D$22+'BP Financier'!$E$22))*$V5118*AB5118/(1-$W5118)","v":{"v":756.3658515398511,"d":"756"}},null,{"v":1.6666666666666668E-3,"d":"0.17%"},{"$f":"Actif!$E$28/100","v":{"v":0.28900000000000003,"d":"28.90%"}},{"$f":"Actif!$E$30/100","v":{"v":0.09050000000000001,"d":"9.05%"}},{"$f":"Actif!$E$31/100","v":{"v":0.0605,"d":"6.05%"}},{"$f":"Actif!$E$32/100","v":{"v":0.47350000000000003,"d":"47.35%"}},{"$f":"Actif!$E$33/100","v":{"v":0.0585,"d":"5.85%"}},{"$f":"Actif!$E$29/100","v":{"v":0.027999999999999997,"d":"2.80%"}}]
[null,"#15",22,2029,"H","A_PER",{"v":0.44999999999999996,"d":"0.45"},{"v":0.38999999999999996,"d":"0.39"},0.6,0.6,85,0,{"$f":"ROUND(Primes!$O$7*V5119,0)","v":1},{"$f":"'BP Financier'!$E$33*(('BP Financier'!$C$19+'BP Financier'!$D$19+'BP Financier'!$E$19)/('BP Financier'!$C$16+'BP Financier'!$C$19+'BP Financier'!$D$16+'BP Financier'!$D$19+'BP Financier'!$E$16+'BP Financier'!$E$19))*V5119","v":{"v":34245.1685593803,"d":"34,245"}},{"v":19206.290015886938,"d":"19,206"},{"$f":"'BP Financier'!$E$44*(('BP Financier'!$C$19+'BP Financier'!$D$19+'BP Financier'!$E$19)/('BP Financier'!$C$16+'BP Financier'!$C$19+'BP Financier'!$D$16+'BP Financier'!$D$19+'BP Financier'!$E$16+'BP Financier'!$E$19+'BP Financier'!$C$22+'BP Financier'!$D$22+'BP Financier'!$E$22))*$V5119*X5119/(1-$W5119)","v":{"v":2444.682484441305,"d":"2,445"}},{"$f":"'BP Financier'!$E$44*(('BP Financier'!$C$19+'BP Financier'!$D$19+'BP Financier'!$E$19)/('BP Financier'!$C$16+'BP Financier'!$C$19+'BP Financier'!$D$16+'BP Financier'!$D$19+'BP Financier'!$E$16+'BP Financier'!$E$19+'BP Financier'!$C$22+'BP Financier'!$D$22+'BP Financier'!$E$22))*$V5119*Y5119/(1-$W5119)","v":{"v":1634.2905006486071,"d":"1,634"}},{"$f":"'BP Financier'!$E$44*(('BP Financier'!$C$19+'BP Financier'!$D$19+'BP Financier'!$E$19)/('BP Financier'!$C$16+'BP Financier'!$C$19+'BP Financier'!$D$16+'BP Financier'!$D$19+'BP Financier'!$E$16+'BP Financier'!$E$19+'BP Financier'!$C$22+'BP Financier'!$D$22+'BP Financier'!$E$22))*$V5119*Z5119/(1-$W5119)","v":{"v":12790.686810861413,"d":"12,791"}},{"$f":"'BP Financier'!$E$44*(('BP Financier'!$C$19+'BP Financier'!$D$19+'BP Financier'!$E$19)/('BP Financier'!$C$16+'BP Financier'!$C$19+'BP Financier'!$D$16+'BP Financier'!$D$19+'BP Financier'!$E$16+'BP Financier'!$E$19+'BP Financier'!$C$22+'BP Financier'!$D$22+'BP Financier'!$E$22))*$V5119*AA5119/(1-$W5119)","v":{"v":1580.2643683957606,"d":"1,580"}},{"$f":"'BP Financier'!$E$44*(('BP Financier'!$C$19+'BP Financier'!$D$19+'BP Financier'!$E$19)/('BP Financier'!$C$16+'BP Financier'!$C$19+'BP Financier'!$D$16+'BP Financier'!$D$19+'BP Financier'!$E$16+'BP Financier'!$E$19+'BP Financier'!$C$22+'BP Financier'!$D$22+'BP Financier'!$E$22))*$V5119*AB5119/(1-$W5119)","v":{"v":756.3658515398511,"d":"756"}},null,{"v":1.6666666666666668E-3,"d":"0.17%"},{"$f":"Actif!$E$28/100","v":{"v":0.28900000000000003,"d":"28.90%"}},{"$f":"Actif!$E$30/100","v":{"v":0.09050000000000001,"d":"9.05%"}},{"$f":"Actif!$E$31/100","v":{"v":0.0605,"d":"6.05%"}},{"$f":"Actif!$E$32/100","v":{"v":0.47350000000000003,"d":"47.35%"}},{"$f":"Actif!$E$33/100","v":{"v":0.0585,"d":"5.85%"}},{"$f":"Actif!$E$29/100","v":{"v":0.027999999999999997,"d":"2.80%"}}]
[null,"#16",23,2026,"F","A_PER",{"v":0.44999999999999996,"d":"0.45"},{"v":0.38999999999999996,"d":"0.39"},0.6,0.6,85,0,{"$f":"ROUND(Primes!$O$7*V5120,0)","v":1},{"$f":"'BP Financier'!$E$33*(('BP Financier'!$C$19+'BP Financier'!$D$19+'BP Financier'!$E$19)/('BP Financier'!$C$16+'BP Financier'!$C$19+'BP Financier'!$D$16+'BP Financier'!$D$19+'BP Financier'!$E$16+'BP Financier'!$E$19))*V5120","v":{"v":34245.1685593803,"d":"34,245"}},{"v":19206.290015886938,"d":"19,206"},{"$f":"'BP Financier'!$E$44*(('BP Financier'!$C$19+'BP Financier'!$D$19+'BP Financier'!$E$19)/('BP Financier'!$C$16+'BP Financier'!$C$19+'BP Financier'!$D$16+'BP Financier'!$D$19+'BP Financier'!$E$16+'BP Financier'!$E$19+'BP Financier'!$C$22+'BP Financier'!$D$22+'BP Financier'!$E$22))*$V5120*X5120/(1-$W5120)","v":{"v":2444.682484441305,"d":"2,445"}},{"$f":"'BP Financier'!$E$44*(('BP Financier'!$C$19+'BP Financier'!$D$19+'BP Financier'!$E$19)/('BP Financier'!$C$16+'BP Financier'!$C$19+'BP Financier'!$D$16+'BP Financier'!$D$19+'BP Financier'!$E$16+'BP Financier'!$E$19+'BP Financier'!$C$22+'BP Financier'!$D$22+'BP Financier'!$E$22))*$V5120*Y5120/(1-$W5120)","v":{"v":1634.2905006486071,"d":"1,634"}},{"$f":"'BP Financier'!$E$44*(('BP Financier'!$C$19+'BP Financier'!$D$19+'BP Financier'!$E$19)/('BP Financier'!$C$16+'BP Financier'!$C$19+'BP Financier'!$D$16+'BP Financier'!$D$19+'BP Financier'!$E$16+'BP Financier'!$E$19+'BP Financier'!$C$22+'BP Financier'!$D$22+'BP Financier'!$E$22))*$V5120*Z5120/(1-$W5120)","v":{"v":12790.686810861413,"d":"12,791"}},{"$f":"'BP Financier'!$E$44*(('BP Financier'!$C$19+'BP Financier'!$D$19+'BP Financier'!$E$19)/('BP Financier'!$C$16+'BP Financier'!$C$19+'BP Financier'!$D$16+'BP Financier'!$D$19+'BP Financier'!$E$16+'BP Financier'!$E$19+'BP Financier'!$C$22+'BP Financier'!$D$22+'BP Financier'!$E$22))*$V5120*AA5120/(1-$W5120)","v":{"v":1580.2643683957606,"d":"1,580"}},{"$f":"'BP Financier'!$E$44*(('BP Financier'!$C$19+'BP Financier'!$D$19+'BP Financier'!$E$19)/('BP Financier'!$C$16+'BP Financier'!$C$19+'BP Financier'!$D$16+'BP Financier'!$D$19+'BP Financier'!$E$16+'BP Financier'!$E$19+'BP Financier'!$C$22+'BP Financier'!$D$22+'BP Financier'!$E$22))*$V5120*AB5120/(1-$W5120)","v":{"v":756.3658515398511,"d":"756"}},null,{"v":1.6666666666666668E-3,"d":"0.17%"},{"$f":"Actif!$E$28/100","v":{"v":0.28900000000000003,"d":"28.90%"}},{"$f":"Actif!$E$30/100","v":{"v":0.09050000000000001,"d":"9.05%"}},{"$f":"Actif!$E$31/100","v":{"v":0.0605,"d":"6.05%"}},{"$f":"Actif!$E$32/100","v":{"v":0.47350000000000003,"d":"47.35%"}},{"$f":"Actif!$E$33/100","v":{"v":0.0585,"d":"5.85%"}},{"$f":"Actif!$E$29/100","v":{"v":0.027999999999999997,"d":"2.80%"}}]
[null,"#17",23,2028,"F","A_PER",{"v":0.44999999999999996,"d":"0.45"},{"v":0.38999999999999996,"d":"0.39"},0.6,0.6,85,0,{"$f":"ROUND(Primes!$O$7*V5121,0)","v":1},{"$f":"'BP Financier'!$E$33*(('BP Financier'!$C$19+'BP Financier'!$D$19+'BP Financier'!$E$19)/('BP Financier'!$C$16+'BP Financier'!$C$19+'BP Financier'!$D$16+'BP Financier'!$D$19+'BP Financier'!$E$16+'BP Financier'!$E$19))*V5121","v":{"v":34245.1685593803,"d":"34,245"}},{"v":19206.290015886938,"d":"19,206"},{"$f":"'BP Financier'!$E$44*(('BP Financier'!$C$19+'BP Financier'!$D$19+'BP Financier'!$E$19)/('BP Financier'!$C$16+'BP Financier'!$C$19+'BP Financier'!$D$16+'BP Financier'!$D$19+'BP Financier'!$E$16+'BP Financier'!$E$19+'BP Financier'!$C$22+'BP Financier'!$D$22+'BP Financier'!$E$22))*$V5121*X5121/(1-$W5121)","v":{"v":2444.682484441305,"d":"2,445"}},{"$f":"'BP Financier'!$E$44*(('BP Financier'!$C$19+'BP Financier'!$D$19+'BP Financier'!$E$19)/('BP Financier'!$C$16+'BP Financier'!$C$19+'BP Financier'!$D$16+'BP Financier'!$D$19+'BP Financier'!$E$16+'BP Financier'!$E$19+'BP Financier'!$C$22+'BP Financier'!$D$22+'BP Financier'!$E$22))*$V5121*Y5121/(1-$W5121)","v":{"v":1634.2905006486071,"d":"1,634"}},{"$f":"'BP Financier'!$E$44*(('BP Financier'!$C$19+'BP Financier'!$D$19+'BP Financier'!$E$19)/('BP Financier'!$C$16+'BP Financier'!$C$19+'BP Financier'!$D$16+'BP Financier'!$D$19+'BP Financier'!$E$16+'BP Financier'!$E$19+'BP Financier'!$C$22+'BP Financier'!$D$22+'BP Financier'!$E$22))*$V5121*Z5121/(1-$W5121)","v":{"v":12790.686810861413,"d":"12,791"}},{"$f":"'BP Financier'!$E$44*(('BP Financier'!$C$19+'BP Financier'!$D$19+'BP Financier'!$E$19)/('BP Financier'!$C$16+'BP Financier'!$C$19+'BP Financier'!$D$16+'BP Financier'!$D$19+'BP Financier'!$E$16+'BP Financier'!$E$19+'BP Financier'!$C$22+'BP Financier'!$D$22+'BP Financier'!$E$22))*$V5121*AA5121/(1-$W5121)","v":{"v":1580.2643683957606,"d":"1,580"}},{"$f":"'BP Financier'!$E$44*(('BP Financier'!$C$19+'BP Financier'!$D$19+'BP Financier'!$E$19)/('BP Financier'!$C$16+'BP Financier'!$C$19+'BP Financier'!$D$16+'BP Financier'!$D$19+'BP Financier'!$E$16+'BP Financier'!$E$19+'BP Financier'!$C$22+'BP Financier'!$D$22+'BP Financier'!$E$22))*$V5121*AB5121/(1-$W5121)","v":{"v":756.3658515398511,"d":"756"}},null,{"v":1.6666666666666668E-3,"d":"0.17%"},{"$f":"Actif!$E$28/100","v":{"v":0.28900000000000003,"d":"28.90%"}},{"$f":"Actif!$E$30/100","v":{"v":0.09050000000000001,"d":"9.05%"}},{"$f":"Actif!$E$31/100","v":{"v":0.0605,"d":"6.05%"}},{"$f":"Actif!$E$32/100","v":{"v":0.47350000000000003,"d":"47.35%"}},{"$f":"Actif!$E$33/100","v":{"v":0.0585,"d":"5.85%"}},{"$f":"Actif!$E$29/100","v":{"v":0.027999999999999997,"d":"2.80%"}}]
[null,"#18",23,2029,"F","A_PER",{"v":0.44999999999999996,"d":"0.45"},{"v":0.38999999999999996,"d":"0.39"},0.6,0.6,85,0,{"$f":"ROUND(Primes!$O$7*V5122,0)","v":1},{"$f":"'BP Financier'!$E$33*(('BP Financier'!$C$19+'BP Financier'!$D$19+'BP Financier'!$E$19)/('BP Financier'!$C$16+'BP Financier'!$C$19+'BP Financier'!$D$16+'BP Financier'!$D$19+'BP Financier'!$E$16+'BP Financier'!$E$19))*V5122","v":{"v":34245.1685593803,"d":"34,245"}},{"v":19206.290015886938,"d":"19,206"},{"$f":"'BP Financier'!$E$44*(('BP Financier'!$C$19+'BP Financier'!$D$19+'BP Financier'!$E$19)/('BP Financier'!$C$16+'BP Financier'!$C$19+'BP Financier'!$D$16+'BP Financier'!$D$19+'BP Financier'!$E$16+'BP Financier'!$E$19+'BP Financier'!$C$22+'BP Financier'!$D$22+'BP Financier'!$E$22))*$V5122*X5122/(1-$W5122)","v":{"v":2444.682484441305,"d":"2,445"}},{"$f":"'BP Financier'!$E$44*(('BP Financier'!$C$19+'BP Financier'!$D$19+'BP Financier'!$E$19)/('BP Financier'!$C$16+'BP Financier'!$C$19+'BP Financier'!$D$16+'BP Financier'!$D$19+'BP Financier'!$E$16+'BP Financier'!$E$19+'BP Financier'!$C$22+'BP Financier'!$D$22+'BP Financier'!$E$22))*$V5122*Y5122/(1-$W5122)","v":{"v":1634.2905006486071,"d":"1,634"}},{"$f":"'BP Financier'!$E$44*(('BP Financier'!$C$19+'BP Financier'!$D$19+'BP Financier'!$E$19)/('BP Financier'!$C$16+'BP Financier'!$C$19+'BP Financier'!$D$16+'BP Financier'!$D$19+'BP Financier'!$E$16+'BP Financier'!$E$19+'BP Financier'!$C$22+'BP Financier'!$D$22+'BP Financier'!$E$22))*$V5122*Z5122/(1-$W5122)","v":{"v":12790.686810861413,"d":"12,791"}},{"$f":"'BP Financier'!$E$44*(('BP Financier'!$C$19+'BP Financier'!$D$19+'BP Financier'!$E$19)/('BP Financier'!$C$16+'BP Financier'!$C$19+'BP Financier'!$D$16+'BP Financier'!$D$19+'BP Financier'!$E$16+'BP Financier'!$E$19+'BP Financier'!$C$22+'BP Financier'!$D$22+'BP Financier'!$E$22))*$V5122*AA5122/(1-$W5122)","v":{"v":1580.2643683957606,"d":"1,580"}},{"$f":"'BP Financier'!$E$44*(('BP Financier'!$C$19+'BP Financier'!$D$19+'BP Financier'!$E$19)/('BP Financier'!$C$16+'BP Financier'!$C$19+'BP Financier'!$D$16+'BP Financier'!$D$19+'BP Financier'!$E$16+'BP Financier'!$E$19+'BP Financier'!$C$22+'BP Financier'!$D$22+'BP Financier'!$E$22))*$V5122*AB5122/(1-$W5122)","v":{"v":756.3658515398511,"d":"756"}},null,{"v":1.6666666666666668E-3,"d":"0.17%"},{"$f":"Actif!$E$28/100","v":{"v":0.28900000000000003,"d":"28.90%"}},{"$f":"Actif!$E$30/100","v":{"v":0.09050000000000001,"d":"9.05%"}},{"$f":"Actif!$E$31/100","v":{"v":0.0605,"d":"6.05%"}},{"$f":"Actif!$E$32/100","v":{"v":0.47350000000000003,"d":"47.35%"}},{"$f":"Actif!$E$33/100","v":{"v":0.0585,"d":"5.85%"}},{"$f":"Actif!$E$29/100","v":{"v":0.027999999999999997,"d":"2.80%"}}]
[null,"#19",24,2026,"H","A_PER",{"v":0.44999999999999996,"d":"0.45"},{"v":0.38999999999999996,"d":"0.39"},0.6,0.6,85,0,{"$f":"ROUND(Primes!$O$7*V5123,0)","v":1},{"$f":"'BP Financier'!$E$33*(('BP Financier'!$C$19+'BP Financier'!$D$19+'BP Financier'!$E$19)/('BP Financier'!$C$16+'BP Financier'!$C$19+'BP Financier'!$D$16+'BP Financier'!$D$19+'BP Financier'!$E$16+'BP Financier'!$E$19))*V5123","v":{"v":34245.1685593803,"d":"34,245"}},{"v":19206.290015886938,"d":"19,206"},{"$f":"'BP Financier'!$E$44*(('BP Financier'!$C$19+'BP Financier'!$D$19+'BP Financier'!$E$19)/('BP Financier'!$C$16+'BP Financier'!$C$19+'BP Financier'!$D$16+'BP Financier'!$D$19+'BP Financier'!$E$16+'BP Financier'!$E$19+'BP Financier'!$C$22+'BP Financier'!$D$22+'BP Financier'!$E$22))*$V5123*X5123/(1-$W5123)","v":{"v":2444.682484441305,"d":"2,445"}},{"$f":"'BP Financier'!$E$44*(('BP Financier'!$C$19+'BP Financier'!$D$19+'BP Financier'!$E$19)/('BP Financier'!$C$16+'BP Financier'!$C$19+'BP Financier'!$D$16+'BP Financier'!$D$19+'BP Financier'!$E$16+'BP Financier'!$E$19+'BP Financier'!$C$22+'BP Financier'!$D$22+'BP Financier'!$E$22))*$V5123*Y5123/(1-$W5123)","v":{"v":1634.2905006486071,"d":"1,634"}},{"$f":"'BP Financier'!$E$44*(('BP Financier'!$C$19+'BP Financier'!$D$19+'BP Financier'!$E$19)/('BP Financier'!$C$16+'BP Financier'!$C$19+'BP Financier'!$D$16+'BP Financier'!$D$19+'BP Financier'!$E$16+'BP Financier'!$E$19+'BP Financier'!$C$22+'BP Financier'!$D$22+'BP Financier'!$E$22))*$V5123*Z5123/(1-$W5123)","v":{"v":12790.686810861413,"d":"12,791"}},{"$f":"'BP Financier'!$E$44*(('BP Financier'!$C$19+'BP Financier'!$D$19+'BP Financier'!$E$19)/('BP Financier'!$C$16+'BP Financier'!$C$19+'BP Financier'!$D$16+'BP Financier'!$D$19+'BP Financier'!$E$16+'BP Financier'!$E$19+'BP Financier'!$C$22+'BP Financier'!$D$22+'BP Financier'!$E$22))*$V5123*AA5123/(1-$W5123)","v":{"v":1580.2643683957606,"d":"1,580"}},{"$f":"'BP Financier'!$E$44*(('BP Financier'!$C$19+'BP Financier'!$D$19+'BP Financier'!$E$19)/('BP Financier'!$C$16+'BP Financier'!$C$19+'BP Financier'!$D$16+'BP Financier'!$D$19+'BP Financier'!$E$16+'BP Financier'!$E$19+'BP Financier'!$C$22+'BP Financier'!$D$22+'BP Financier'!$E$22))*$V5123*AB5123/(1-$W5123)","v":{"v":756.3658515398511,"d":"756"}},null,{"v":1.6666666666666668E-3,"d":"0.17%"},{"$f":"Actif!$E$28/100","v":{"v":0.28900000000000003,"d":"28.90%"}},{"$f":"Actif!$E$30/100","v":{"v":0.09050000000000001,"d":"9.05%"}},{"$f":"Actif!$E$31/100","v":{"v":0.0605,"d":"6.05%"}},{"$f":"Actif!$E$32/100","v":{"v":0.47350000000000003,"d":"47.35%"}},{"$f":"Actif!$E$33/100","v":{"v":0.0585,"d":"5.85%"}},{"$f":"Actif!$E$29/100","v":{"v":0.027999999999999997,"d":"2.80%"}}]
[null,"#20",24,2028,"H","A_PER",{"v":0.44999999999999996,"d":"0.45"},{"v":0.38999999999999996,"d":"0.39"},0.6,0.6,85,0,{"$f":"ROUND(Primes!$O$7*V5124,0)","v":1},{"$f":"'BP Financier'!$E$33*(('BP Financier'!$C$19+'BP Financier'!$D$19+'BP Financier'!$E$19)/('BP Financier'!$C$16+'BP Financier'!$C$19+'BP Financier'!$D$16+'BP Financier'!$D$19+'BP Financier'!$E$16+'BP Financier'!$E$19))*V5124","v":{"v":34245.1685593803,"d":"34,245"}},{"v":19206.290015886938,"d":"19,206"},{"$f":"'BP Financier'!$E$44*(('BP Financier'!$C$19+'BP Financier'!$D$19+'BP Financier'!$E$19)/('BP Financier'!$C$16+'BP Financier'!$C$19+'BP Financier'!$D$16+'BP Financier'!$D$19+'BP Financier'!$E$16+'BP Financier'!$E$19+'BP Financier'!$C$22+'BP Financier'!$D$22+'BP Financier'!$E$22))*$V5124*X5124/(1-$W5124)","v":{"v":2444.682484441305,"d":"2,445"}},{"$f":"'BP Financier'!$E$44*(('BP Financier'!$C$19+'BP Financier'!$D$19+'BP Financier'!$E$19)/('BP Financier'!$C$16+'BP Financier'!$C$19+'BP Financier'!$D$16+'BP Financier'!$D$19+'BP Financier'!$E$16+'BP Financier'!$E$19+'BP Financier'!$C$22+'BP Financier'!$D$22+'BP Financier'!$E$22))*$V5124*Y5124/(1-$W5124)","v":{"v":1634.2905006486071,"d":"1,634"}},{"$f":"'BP Financier'!$E$44*(('BP Financier'!$C$19+'BP Financier'!$D$19+'BP Financier'!$E$19)/('BP Financier'!$C$16+'BP Financier'!$C$19+'BP Financier'!$D$16+'BP Financier'!$D$19+'BP Financier'!$E$16+'BP Financier'!$E$19+'BP Financier'!$C$22+'BP Financier'!$D$22+'BP Financier'!$E$22))*$V5124*Z5124/(1-$W5124)","v":{"v":12790.686810861413,"d":"12,791"}},{"$f":"'BP Financier'!$E$44*(('BP Financier'!$C$19+'BP Financier'!$D$19+'BP Financier'!$E$19)/('BP Financier'!$C$16+'BP Financier'!$C$19+'BP Financier'!$D$16+'BP Financier'!$D$19+'BP Financier'!$E$16+'BP Financier'!$E$19+'BP Financier'!$C$22+'BP Financier'!$D$22+'BP Financier'!$E$22))*$V5124*AA5124/(1-$W5124)","v":{"v":1580.2643683957606,"d":"1,580"}},{"$f":"'BP Financier'!$E$44*(('BP Financier'!$C$19+'BP Financier'!$D$19+'BP Financier'!$E$19)/('BP Financier'!$C$16+'BP Financier'!$C$19+'BP Financier'!$D$16+'BP Financier'!$D$19+'BP Financier'!$E$16+'BP Financier'!$E$19+'BP Financier'!$C$22+'BP Financier'!$D$22+'BP Financier'!$E$22))*$V5124*AB5124/(1-$W5124)","v":{"v":756.3658515398511,"d":"756"}},null,{"v":1.6666666666666668E-3,"d":"0.17%"},{"$f":"Actif!$E$28/100","v":{"v":0.28900000000000003,"d":"28.90%"}},{"$f":"Actif!$E$30/100","v":{"v":0.09050000000000001,"d":"9.05%"}},{"$f":"Actif!$E$31/100","v":{"v":0.0605,"d":"6.05%"}},{"$f":"Actif!$E$32/100","v":{"v":0.47350000000000003,"d":"47.35%"}},{"$f":"Actif!$E$33/100","v":{"v":0.0585,"d":"5.85%"}},{"$f":"Actif!$E$29/100","v":{"v":0.027999999999999997,"d":"2.80%"}}]
[null,"#21",24,2029,"H","A_PER",{"v":0.44999999999999996,"d":"0.45"},{"v":0.38999999999999996,"d":"0.39"},0.6,0.6,85,0,{"$f":"ROUND(Primes!$O$7*V5125,0)","v":1},{"$f":"'BP Financier'!$E$33*(('BP Financier'!$C$19+'BP Financier'!$D$19+'BP Financier'!$E$19)/('BP Financier'!$C$16+'BP Financier'!$C$19+'BP Financier'!$D$16+'BP Financier'!$D$19+'BP Financier'!$E$16+'BP Financier'!$E$19))*V5125","v":{"v":34245.1685593803,"d":"34,245"}},{"v":19206.290015886938,"d":"19,206"},{"$f":"'BP Financier'!$E$44*(('BP Financier'!$C$19+'BP Financier'!$D$19+'BP Financier'!$E$19)/('BP Financier'!$C$16+'BP Financier'!$C$19+'BP Financier'!$D$16+'BP Financier'!$D$19+'BP Financier'!$E$16+'BP Financier'!$E$19+'BP Financier'!$C$22+'BP Financier'!$D$22+'BP Financier'!$E$22))*$V5125*X5125/(1-$W5125)","v":{"v":2444.682484441305,"d":"2,445"}},{"$f":"'BP Financier'!$E$44*(('BP Financier'!$C$19+'BP Financier'!$D$19+'BP Financier'!$E$19)/('BP Financier'!$C$16+'BP Financier'!$C$19+'BP Financier'!$D$16+'BP Financier'!$D$19+'BP Financier'!$E$16+'BP Financier'!$E$19+'BP Financier'!$C$22+'BP Financier'!$D$22+'BP Financier'!$E$22))*$V5125*Y5125/(1-$W5125)","v":{"v":1634.2905006486071,"d":"1,634"}},{"$f":"'BP Financier'!$E$44*(('BP Financier'!$C$19+'BP Financier'!$D$19+'BP Financier'!$E$19)/('BP Financier'!$C$16+'BP Financier'!$C$19+'BP Financier'!$D$16+'BP Financier'!$D$19+'BP Financier'!$E$16+'BP Financier'!$E$19+'BP Financier'!$C$22+'BP Financier'!$D$22+'BP Financier'!$E$22))*$V5125*Z5125/(1-$W5125)","v":{"v":12790.686810861413,"d":"12,791"}},{"$f":"'BP Financier'!$E$44*(('BP Financier'!$C$19+'BP Financier'!$D$19+'BP Financier'!$E$19)/('BP Financier'!$C$16+'BP Financier'!$C$19+'BP Financier'!$D$16+'BP Financier'!$D$19+'BP Financier'!$E$16+'BP Financier'!$E$19+'BP Financier'!$C$22+'BP Financier'!$D$22+'BP Financier'!$E$22))*$V5125*AA5125/(1-$W5125)","v":{"v":1580.2643683957606,"d":"1,580"}},{"$f":"'BP Financier'!$E$44*(('BP Financier'!$C$19+'BP Financier'!$D$19+'BP Financier'!$E$19)/('BP Financier'!$C$16+'BP Financier'!$C$19+'BP Financier'!$D$16+'BP Financier'!$D$19+'BP Financier'!$E$16+'BP Financier'!$E$19+'BP Financier'!$C$22+'BP Financier'!$D$22+'BP Financier'!$E$22))*$V5125*AB5125/(1-$W5125)","v":{"v":756.3658515398511,"d":"756"}},null,{"v":1.6666666666666668E-3,"d":"0.17%"},{"$f":"Actif!$E$28/100","v":{"v":0.28900000000000003,"d":"28.90%"}},{"$f":"Actif!$E$30/100","v":{"v":0.09050000000000001,"d":"9.05%"}},{"$f":"Actif!$E$31/100","v":{"v":0.0605,"d":"6.05%"}},{"$f":"Actif!$E$32/100","v":{"v":0.47350000000000003,"d":"47.35%"}},{"$f":"Actif!$E$33/100","v":{"v":0.0585,"d":"5.85%"}},{"$f":"Actif!$E$29/100","v":{"v":0.027999999999999997,"d":"2.80%"}}]
[null,"#22",25,2026,"H","A_PER",{"v":0.44999999999999996,"d":"0.45"},{"v":0.38999999999999996,"d":"0.39"},0.6,0.6,85,0,{"$f":"ROUND(Primes!$O$7*V5126,0)","v":1},{"$f":"'BP Financier'!$E$33*(('BP Financier'!$C$19+'BP Financier'!$D$19+'BP Financier'!$E$19)/('BP Financier'!$C$16+'BP Financier'!$C$19+'BP Financier'!$D$16+'BP Financier'!$D$19+'BP Financier'!$E$16+'BP Financier'!$E$19))*V5126","v":{"v":34245.1685593803,"d":"34,245"}},{"v":19206.290015886938,"d":"19,206"},{"$f":"'BP Financier'!$E$44*(('BP Financier'!$C$19+'BP Financier'!$D$19+'BP Financier'!$E$19)/('BP Financier'!$C$16+'BP Financier'!$C$19+'BP Financier'!$D$16+'BP Financier'!$D$19+'BP Financier'!$E$16+'BP Financier'!$E$19+'BP Financier'!$C$22+'BP Financier'!$D$22+'BP Financier'!$E$22))*$V5126*X5126/(1-$W5126)","v":{"v":2444.682484441305,"d":"2,445"}},{"$f":"'BP Financier'!$E$44*(('BP Financier'!$C$19+'BP Financier'!$D$19+'BP Financier'!$E$19)/('BP Financier'!$C$16+'BP Financier'!$C$19+'BP Financier'!$D$16+'BP Financier'!$D$19+'BP Financier'!$E$16+'BP Financier'!$E$19+'BP Financier'!$C$22+'BP Financier'!$D$22+'BP Financier'!$E$22))*$V5126*Y5126/(1-$W5126)","v":{"v":1634.2905006486071,"d":"1,634"}},{"$f":"'BP Financier'!$E$44*(('BP Financier'!$C$19+'BP Financier'!$D$19+'BP Financier'!$E$19)/('BP Financier'!$C$16+'BP Financier'!$C$19+'BP Financier'!$D$16+'BP Financier'!$D$19+'BP Financier'!$E$16+'BP Financier'!$E$19+'BP Financier'!$C$22+'BP Financier'!$D$22+'BP Financier'!$E$22))*$V5126*Z5126/(1-$W5126)","v":{"v":12790.686810861413,"d":"12,791"}},{"$f":"'BP Financier'!$E$44*(('BP Financier'!$C$19+'BP Financier'!$D$19+'BP Financier'!$E$19)/('BP Financier'!$C$16+'BP Financier'!$C$19+'BP Financier'!$D$16+'BP Financier'!$D$19+'BP Financier'!$E$16+'BP Financier'!$E$19+'BP Financier'!$C$22+'BP Financier'!$D$22+'BP Financier'!$E$22))*$V5126*AA5126/(1-$W5126)","v":{"v":1580.2643683957606,"d":"1,580"}},{"$f":"'BP Financier'!$E$44*(('BP Financier'!$C$19+'BP Financier'!$D$19+'BP Financier'!$E$19)/('BP Financier'!$C$16+'BP Financier'!$C$19+'BP Financier'!$D$16+'BP Financier'!$D$19+'BP Financier'!$E$16+'BP Financier'!$E$19+'BP Financier'!$C$22+'BP Financier'!$D$22+'BP Financier'!$E$22))*$V5126*AB5126/(1-$W5126)","v":{"v":756.3658515398511,"d":"756"}},null,{"v":1.6666666666666668E-3,"d":"0.17%"},{"$f":"Actif!$E$28/100","v":{"v":0.28900000000000003,"d":"28.90%"}},{"$f":"Actif!$E$30/100","v":{"v":0.09050000000000001,"d":"9.05%"}},{"$f":"Actif!$E$31/100","v":{"v":0.0605,"d":"6.05%"}},{"$f":"Actif!$E$32/100","v":{"v":0.47350000000000003,"d":"47.35%"}},{"$f":"Actif!$E$33/100","v":{"v":0.0585,"d":"5.85%"}},{"$f":"Actif!$E$29/100","v":{"v":0.027999999999999997,"d":"2.80%"}}]
[null,"#23",25,2028,"H","A_PER",{"v":0.44999999999999996,"d":"0.45"},{"v":0.38999999999999996,"d":"0.39"},0.6,0.6,85,0,{"$f":"ROUND(Primes!$O$7*V5127,0)","v":1},{"$f":"'BP Financier'!$E$33*(('BP Financier'!$C$19+'BP Financier'!$D$19+'BP Financier'!$E$19)/('BP Financier'!$C$16+'BP Financier'!$C$19+'BP Financier'!$D$16+'BP Financier'!$D$19+'BP Financier'!$E$16+'BP Financier'!$E$19))*V5127","v":{"v":34245.1685593803,"d":"34,245"}},{"v":19206.290015886938,"d":"19,206"},{"$f":"'BP Financier'!$E$44*(('BP Financier'!$C$19+'BP Financier'!$D$19+'BP Financier'!$E$19)/('BP Financier'!$C$16+'BP Financier'!$C$19+'BP Financier'!$D$16+'BP Financier'!$D$19+'BP Financier'!$E$16+'BP Financier'!$E$19+'BP Financier'!$C$22+'BP Financier'!$D$22+'BP Financier'!$E$22))*$V5127*X5127/(1-$W5127)","v":{"v":2444.682484441305,"d":"2,445"}},{"$f":"'BP Financier'!$E$44*(('BP Financier'!$C$19+'BP Financier'!$D$19+'BP Financier'!$E$19)/('BP Financier'!$C$16+'BP Financier'!$C$19+'BP Financier'!$D$16+'BP Financier'!$D$19+'BP Financier'!$E$16+'BP Financier'!$E$19+'BP Financier'!$C$22+'BP Financier'!$D$22+'BP Financier'!$E$22))*$V5127*Y5127/(1-$W5127)","v":{"v":1634.2905006486071,"d":"1,634"}},{"$f":"'BP Financier'!$E$44*(('BP Financier'!$C$19+'BP Financier'!$D$19+'BP Financier'!$E$19)/('BP Financier'!$C$16+'BP Financier'!$C$19+'BP Financier'!$D$16+'BP Financier'!$D$19+'BP Financier'!$E$16+'BP Financier'!$E$19+'BP Financier'!$C$22+'BP Financier'!$D$22+'BP Financier'!$E$22))*$V5127*Z5127/(1-$W5127)","v":{"v":12790.686810861413,"d":"12,791"}},{"$f":"'BP Financier'!$E$44*(('BP Financier'!$C$19+'BP Financier'!$D$19+'BP Financier'!$E$19)/('BP Financier'!$C$16+'BP Financier'!$C$19+'BP Financier'!$D$16+'BP Financier'!$D$19+'BP Financier'!$E$16+'BP Financier'!$E$19+'BP Financier'!$C$22+'BP Financier'!$D$22+'BP Financier'!$E$22))*$V5127*AA5127/(1-$W5127)","v":{"v":1580.2643683957606,"d":"1,580"}},{"$f":"'BP Financier'!$E$44*(('BP Financier'!$C$19+'BP Financier'!$D$19+'BP Financier'!$E$19)/('BP Financier'!$C$16+'BP Financier'!$C$19+'BP Financier'!$D$16+'BP Financier'!$D$19+'BP Financier'!$E$16+'BP Financier'!$E$19+'BP Financier'!$C$22+'BP Financier'!$D$22+'BP Financier'!$E$22))*$V5127*AB5127/(1-$W5127)","v":{"v":756.3658515398511,"d":"756"}},null,{"v":1.6666666666666668E-3,"d":"0.17%"},{"$f":"Actif!$E$28/100","v":{"v":0.28900000000000003,"d":"28.90%"}},{"$f":"Actif!$E$30/100","v":{"v":0.09050000000000001,"d":"9.05%"}},{"$f":"Actif!$E$31/100","v":{"v":0.0605,"d":"6.05%"}},{"$f":"Actif!$E$32/100","v":{"v":0.47350000000000003,"d":"47.35%"}},{"$f":"Actif!$E$33/100","v":{"v":0.0585,"d":"5.85%"}},{"$f":"Actif!$E$29/100","v":{"v":0.027999999999999997,"d":"2.80%"}}]
[null,"#24",25,2029,"H","A_PER",{"v":0.44999999999999996,"d":"0.45"},{"v":0.38999999999999996,"d":"0.39"},0.6,0.6,85,0,{"$f":"ROUND(Primes!$O$7*V5128,0)","v":1},{"$f":"'BP Financier'!$E$33*(('BP Financier'!$C$19+'BP Financier'!$D$19+'BP Financier'!$E$19)/('BP Financier'!$C$16+'BP Financier'!$C$19+'BP Financier'!$D$16+'BP Financier'!$D$19+'BP Financier'!$E$16+'BP Financier'!$E$19))*V5128","v":{"v":34245.1685593803,"d":"34,245"}},{"v":19206.290015886938,"d":"19,206"},{"$f":"'BP Financier'!$E$44*(('BP Financier'!$C$19+'BP Financier'!$D$19+'BP Financier'!$E$19)/('BP Financier'!$C$16+'BP Financier'!$C$19+'BP Financier'!$D$16+'BP Financier'!$D$19+'BP Financier'!$E$16+'BP Financier'!$E$19+'BP Financier'!$C$22+'BP Financier'!$D$22+'BP Financier'!$E$22))*$V5128*X5128/(1-$W5128)","v":{"v":2444.682484441305,"d":"2,445"}},{"$f":"'BP Financier'!$E$44*(('BP Financier'!$C$19+'BP Financier'!$D$19+'BP Financier'!$E$19)/('BP Financier'!$C$16+'BP Financier'!$C$19+'BP Financier'!$D$16+'BP Financier'!$D$19+'BP Financier'!$E$16+'BP Financier'!$E$19+'BP Financier'!$C$22+'BP Financier'!$D$22+'BP Financier'!$E$22))*$V5128*Y5128/(1-$W5128)","v":{"v":1634.2905006486071,"d":"1,634"}},{"$f":"'BP Financier'!$E$44*(('BP Financier'!$C$19+'BP Financier'!$D$19+'BP Financier'!$E$19)/('BP Financier'!$C$16+'BP Financier'!$C$19+'BP Financier'!$D$16+'BP Financier'!$D$19+'BP Financier'!$E$16+'BP Financier'!$E$19+'BP Financier'!$C$22+'BP Financier'!$D$22+'BP Financier'!$E$22))*$V5128*Z5128/(1-$W5128)","v":{"v":12790.686810861413,"d":"12,791"}},{"$f":"'BP Financier'!$E$44*(('BP Financier'!$C$19+'BP Financier'!$D$19+'BP Financier'!$E$19)/('BP Financier'!$C$16+'BP Financier'!$C$19+'BP Financier'!$D$16+'BP Financier'!$D$19+'BP Financier'!$E$16+'BP Financier'!$E$19+'BP Financier'!$C$22+'BP Financier'!$D$22+'BP Financier'!$E$22))*$V5128*AA5128/(1-$W5128)","v":{"v":1580.2643683957606,"d":"1,580"}},{"$f":"'BP Financier'!$E$44*(('BP Financier'!$C$19+'BP Financier'!$D$19+'BP Financier'!$E$19)/('BP Financier'!$C$16+'BP Financier'!$C$19+'BP Financier'!$D$16+'BP Financier'!$D$19+'BP Financier'!$E$16+'BP Financier'!$E$19+'BP Financier'!$C$22+'BP Financier'!$D$22+'BP Financier'!$E$22))*$V5128*AB5128/(1-$W5128)","v":{"v":756.3658515398511,"d":"756"}},null,{"v":1.6666666666666668E-3,"d":"0.17%"},{"$f":"Actif!$E$28/100","v":{"v":0.28900000000000003,"d":"28.90%"}},{"$f":"Actif!$E$30/100","v":{"v":0.09050000000000001,"d":"9.05%"}},{"$f":"Actif!$E$31/100","v":{"v":0.0605,"d":"6.05%"}},{"$f":"Actif!$E$32/100","v":{"v":0.47350000000000003,"d":"47.35%"}},{"$f":"Actif!$E$33/100","v":{"v":0.0585,"d":"5.85%"}},{"$f":"Actif!$E$29/100","v":{"v":0.027999999999999997,"d":"2.80%"}}]
[null,"#25",26,2026,"F","A_PER",{"v":0.44999999999999996,"d":"0.45"},{"v":0.38999999999999996,"d":"0.39"},0.6,0.6,85,0,{"$f":"ROUND(Primes!$O$7*V5129,0)","v":4},{"$f":"'BP Financier'!$E$33*(('BP Financier'!$C$19+'BP Financier'!$D$19+'BP Financier'!$E$19)/('BP Financier'!$C$16+'BP Financier'!$C$19+'BP Financier'!$D$16+'BP Financier'!$D$19+'BP Financier'!$E$16+'BP Financier'!$E$19))*V5129","v":{"v":102735.5056781409,"d":"102,736"}},{"v":57618.87004766081,"d":"57,619"},{"$f":"'BP Financier'!$E$44*(('BP Financier'!$C$19+'BP Financier'!$D$19+'BP Financier'!$E$19)/('BP Financier'!$C$16+'BP Financier'!$C$19+'BP Financier'!$D$16+'BP Financier'!$D$19+'BP Financier'!$E$16+'BP Financier'!$E$19+'BP Financier'!$C$22+'BP Financier'!$D$22+'BP Financier'!$E$22))*$V5129*X5129/(1-$W5129)","v":{"v":7334.047453323915,"d":"7,334"}},{"$f":"'BP Financier'!$E$44*(('BP Financier'!$C$19+'BP Financier'!$D$19+'BP Financier'!$E$19)/('BP Financier'!$C$16+'BP Financier'!$C$19+'BP Financier'!$D$16+'BP Financier'!$D$19+'BP Financier'!$E$16+'BP Financier'!$E$19+'BP Financier'!$C$22+'BP Financier'!$D$22+'BP Financier'!$E$22))*$V5129*Y5129/(1-$W5129)","v":{"v":4902.8715019458205,"d":"4,903"}},{"$f":"'BP Financier'!$E$44*(('BP Financier'!$C$19+'BP Financier'!$D$19+'BP Financier'!$E$19)/('BP Financier'!$C$16+'BP Financier'!$C$19+'BP Financier'!$D$16+'BP Financier'!$D$19+'BP Financier'!$E$16+'BP Financier'!$E$19+'BP Financier'!$C$22+'BP Financier'!$D$22+'BP Financier'!$E$22))*$V5129*Z5129/(1-$W5129)","v":{"v":38372.060432584236,"d":"38,372"}},{"$f":"'BP Financier'!$E$44*(('BP Financier'!$C$19+'BP Financier'!$D$19+'BP Financier'!$E$19)/('BP Financier'!$C$16+'BP Financier'!$C$19+'BP Financier'!$D$16+'BP Financier'!$D$19+'BP Financier'!$E$16+'BP Financier'!$E$19+'BP Financier'!$C$22+'BP Financier'!$D$22+'BP Financier'!$E$22))*$V5129*AA5129/(1-$W5129)","v":{"v":4740.793105187282,"d":"4,741"}},{"$f":"'BP Financier'!$E$44*(('BP Financier'!$C$19+'BP Financier'!$D$19+'BP Financier'!$E$19)/('BP Financier'!$C$16+'BP Financier'!$C$19+'BP Financier'!$D$16+'BP Financier'!$D$19+'BP Financier'!$E$16+'BP Financier'!$E$19+'BP Financier'!$C$22+'BP Financier'!$D$22+'BP Financier'!$E$22))*$V5129*AB5129/(1-$W5129)","v":{"v":2269.097554619553,"d":"2,269"}},null,{"v":0.005,"d":"0.50%"},{"$f":"Actif!$E$28/100","v":{"v":0.28900000000000003,"d":"28.90%"}},{"$f":"Actif!$E$30/100","v":{"v":0.09050000000000001,"d":"9.05%"}},{"$f":"Actif!$E$31/100","v":{"v":0.0605,"d":"6.05%"}},{"$f":"Actif!$E$32/100","v":{"v":0.47350000000000003,"d":"47.35%"}},{"$f":"Actif!$E$33/100","v":{"v":0.0585,"d":"5.85%"}},{"$f":"Actif!$E$29/100","v":{"v":0.027999999999999997,"d":"2.80%"}}]
[null,"#26",26,2028,"F","A_PER",{"v":0.44999999999999996,"d":"0.45"},{"v":0.38999999999999996,"d":"0.39"},0.6,0.6,85,0,{"$f":"ROUND(Primes!$O$7*V5130,0)","v":4},{"$f":"'BP Financier'!$E$33*(('BP Financier'!$C$19+'BP Financier'!$D$19+'BP Financier'!$E$19)/('BP Financier'!$C$16+'BP Financier'!$C$19+'BP Financier'!$D$16+'BP Financier'!$D$19+'BP Financier'!$E$16+'BP Financier'!$E$19))*V5130","v":{"v":102735.5056781409,"d":"102,736"}},{"v":57618.87004766081,"d":"57,619"},{"$f":"'BP Financier'!$E$44*(('BP Financier'!$C$19+'BP Financier'!$D$19+'BP Financier'!$E$19)/('BP Financier'!$C$16+'BP Financier'!$C$19+'BP Financier'!$D$16+'BP Financier'!$D$19+'BP Financier'!$E$16+'BP Financier'!$E$19+'BP Financier'!$C$22+'BP Financier'!$D$22+'BP Financier'!$E$22))*$V5130*X5130/(1-$W5130)","v":{"v":7334.047453323915,"d":"7,334"}},{"$f":"'BP Financier'!$E$44*(('BP Financier'!$C$19+'BP Financier'!$D$19+'BP Financier'!$E$19)/('BP Financier'!$C$16+'BP Financier'!$C$19+'BP Financier'!$D$16+'BP Financier'!$D$19+'BP Financier'!$E$16+'BP Financier'!$E$19+'BP Financier'!$C$22+'BP Financier'!$D$22+'BP Financier'!$E$22))*$V5130*Y5130/(1-$W5130)","v":{"v":4902.8715019458205,"d":"4,903"}},{"$f":"'BP Financier'!$E$44*(('BP Financier'!$C$19+'BP Financier'!$D$19+'BP Financier'!$E$19)/('BP Financier'!$C$16+'BP Financier'!$C$19+'BP Financier'!$D$16+'BP Financier'!$D$19+'BP Financier'!$E$16+'BP Financier'!$E$19+'BP Financier'!$C$22+'BP Financier'!$D$22+'BP Financier'!$E$22))*$V5130*Z5130/(1-$W5130)","v":{"v":38372.060432584236,"d":"38,372"}},{"$f":"'BP Financier'!$E$44*(('BP Financier'!$C$19+'BP Financier'!$D$19+'BP Financier'!$E$19)/('BP Financier'!$C$16+'BP Financier'!$C$19+'BP Financier'!$D$16+'BP Financier'!$D$19+'BP Financier'!$E$16+'BP Financier'!$E$19+'BP Financier'!$C$22+'BP Financier'!$D$22+'BP Financier'!$E$22))*$V5130*AA5130/(1-$W5130)","v":{"v":4740.793105187282,"d":"4,741"}},{"$f":"'BP Financier'!$E$44*(('BP Financier'!$C$19+'BP Financier'!$D$19+'BP Financier'!$E$19)/('BP Financier'!$C$16+'BP Financier'!$C$19+'BP Financier'!$D$16+'BP Financier'!$D$19+'BP Financier'!$E$16+'BP Financier'!$E$19+'BP Financier'!$C$22+'BP Financier'!$D$22+'BP Financier'!$E$22))*$V5130*AB5130/(1-$W5130)","v":{"v":2269.097554619553,"d":"2,269"}},null,{"v":0.005,"d":"0.50%"},{"$f":"Actif!$E$28/100","v":{"v":0.28900000000000003,"d":"28.90%"}},{"$f":"Actif!$E$30/100","v":{"v":0.09050000000000001,"d":"9.05%"}},{"$f":"Actif!$E$31/100","v":{"v":0.0605,"d":"6.05%"}},{"$f":"Actif!$E$32/100","v":{"v":0.47350000000000003,"d":"47.35%"}},{"$f":"Actif!$E$33/100","v":{"v":0.0585,"d":"5.85%"}},{"$f":"Actif!$E$29/100","v":{"v":0.027999999999999997,"d":"2.80%"}}]
[null,"#27",26,2029,"F","A_PER",{"v":0.44999999999999996,"d":"0.45"},{"v":0.38999999999999996,"d":"0.39"},0.6,0.6,85,0,{"$f":"ROUND(Primes!$O$7*V5131,0)","v":4},{"$f":"'BP Financier'!$E$33*(('BP Financier'!$C$19+'BP Financier'!$D$19+'BP Financier'!$E$19)/('BP Financier'!$C$16+'BP Financier'!$C$19+'BP Financier'!$D$16+'BP Financier'!$D$19+'BP Financier'!$E$16+'BP Financier'!$E$19))*V5131","v":{"v":102735.5056781409,"d":"102,736"}},{"v":57618.87004766081,"d":"57,619"},{"$f":"'BP Financier'!$E$44*(('BP Financier'!$C$19+'BP Financier'!$D$19+'BP Financier'!$E$19)/('BP Financier'!$C$16+'BP Financier'!$C$19+'BP Financier'!$D$16+'BP Financier'!$D$19+'BP Financier'!$E$16+'BP Financier'!$E$19+'BP Financier'!$C$22+'BP Financier'!$D$22+'BP Financier'!$E$22))*$V5131*X5131/(1-$W5131)","v":{"v":7334.047453323915,"d":"7,334"}},{"$f":"'BP Financier'!$E$44*(('BP Financier'!$C$19+'BP Financier'!$D$19+'BP Financier'!$E$19)/('BP Financier'!$C$16+'BP Financier'!$C$19+'BP Financier'!$D$16+'BP Financier'!$D$19+'BP Financier'!$E$16+'BP Financier'!$E$19+'BP Financier'!$C$22+'BP Financier'!$D$22+'BP Financier'!$E$22))*$V5131*Y5131/(1-$W5131)","v":{"v":4902.8715019458205,"d":"4,903"}},{"$f":"'BP Financier'!$E$44*(('BP Financier'!$C$19+'BP Financier'!$D$19+'BP Financier'!$E$19)/('BP Financier'!$C$16+'BP Financier'!$C$19+'BP Financier'!$D$16+'BP Financier'!$D$19+'BP Financier'!$E$16+'BP Financier'!$E$19+'BP Financier'!$C$22+'BP Financier'!$D$22+'BP Financier'!$E$22))*$V5131*Z5131/(1-$W5131)","v":{"v":38372.060432584236,"d":"38,372"}},{"$f":"'BP Financier'!$E$44*(('BP Financier'!$C$19+'BP Financier'!$D$19+'BP Financier'!$E$19)/('BP Financier'!$C$16+'BP Financier'!$C$19+'BP Financier'!$D$16+'BP Financier'!$D$19+'BP Financier'!$E$16+'BP Financier'!$E$19+'BP Financier'!$C$22+'BP Financier'!$D$22+'BP Financier'!$E$22))*$V5131*AA5131/(1-$W5131)","v":{"v":4740.793105187282,"d":"4,741"}},{"$f":"'BP Financier'!$E$44*(('BP Financier'!$C$19+'BP Financier'!$D$19+'BP Financier'!$E$19)/('BP Financier'!$C$16+'BP Financier'!$C$19+'BP Financier'!$D$16+'BP Financier'!$D$19+'BP Financier'!$E$16+'BP Financier'!$E$19+'BP Financier'!$C$22+'BP Financier'!$D$22+'BP Financier'!$E$22))*$V5131*AB5131/(1-$W5131)","v":{"v":2269.097554619553,"d":"2,269"}},null,{"v":0.005,"d":"0.50%"},{"$f":"Actif!$E$28/100","v":{"v":0.28900000000000003,"d":"28.90%"}},{"$f":"Actif!$E$30/100","v":{"v":0.09050000000000001,"d":"9.05%"}},{"$f":"Actif!$E$31/100","v":{"v":0.0605,"d":"6.05%"}},{"$f":"Actif!$E$32/100","v":{"v":0.47350000000000003,"d":"47.35%"}},{"$f":"Actif!$E$33/100","v":{"v":0.0585,"d":"5.85%"}},{"$f":"Actif!$E$29/100","v":{"v":0.027999999999999997,"d":"2.80%"}}]
[null,"#28",27,2026,"H","A_PER",{"v":0.44999999999999996,"d":"0.45"},{"v":0.38999999999999996,"d":"0.39"},0.6,0.6,85,0,{"$f":"ROUND(Primes!$O$7*V5132,0)","v":4},{"$f":"'BP Financier'!$E$33*(('BP Financier'!$C$19+'BP Financier'!$D$19+'BP Financier'!$E$19)/('BP Financier'!$C$16+'BP Financier'!$C$19+'BP Financier'!$D$16+'BP Financier'!$D$19+'BP Financier'!$E$16+'BP Financier'!$E$19))*V5132","v":{"v":102735.5056781409,"d":"102,736"}},{"v":57618.87004766081,"d":"57,619"},{"$f":"'BP Financier'!$E$44*(('BP Financier'!$C$19+'BP Financier'!$D$19+'BP Financier'!$E$19)/('BP Financier'!$C$16+'BP Financier'!$C$19+'BP Financier'!$D$16+'BP Financier'!$D$19+'BP Financier'!$E$16+'BP Financier'!$E$19+'BP Financier'!$C$22+'BP Financier'!$D$22+'BP Financier'!$E$22))*$V5132*X5132/(1-$W5132)","v":{"v":7334.047453323915,"d":"7,334"}},{"$f":"'BP Financier'!$E$44*(('BP Financier'!$C$19+'BP Financier'!$D$19+'BP Financier'!$E$19)/('BP Financier'!$C$16+'BP Financier'!$C$19+'BP Financier'!$D$16+'BP Financier'!$D$19+'BP Financier'!$E$16+'BP Financier'!$E$19+'BP Financier'!$C$22+'BP Financier'!$D$22+'BP Financier'!$E$22))*$V5132*Y5132/(1-$W5132)","v":{"v":4902.8715019458205,"d":"4,903"}},{"$f":"'BP Financier'!$E$44*(('BP Financier'!$C$19+'BP Financier'!$D$19+'BP Financier'!$E$19)/('BP Financier'!$C$16+'BP Financier'!$C$19+'BP Financier'!$D$16+'BP Financier'!$D$19+'BP Financier'!$E$16+'BP Financier'!$E$19+'BP Financier'!$C$22+'BP Financier'!$D$22+'BP Financier'!$E$22))*$V5132*Z5132/(1-$W5132)","v":{"v":38372.060432584236,"d":"38,372"}},{"$f":"'BP Financier'!$E$44*(('BP Financier'!$C$19+'BP Financier'!$D$19+'BP Financier'!$E$19)/('BP Financier'!$C$16+'BP Financier'!$C$19+'BP Financier'!$D$16+'BP Financier'!$D$19+'BP Financier'!$E$16+'BP Financier'!$E$19+'BP Financier'!$C$22+'BP Financier'!$D$22+'BP Financier'!$E$22))*$V5132*AA5132/(1-$W5132)","v":{"v":4740.793105187282,"d":"4,741"}},{"$f":"'BP Financier'!$E$44*(('BP Financier'!$C$19+'BP Financier'!$D$19+'BP Financier'!$E$19)/('BP Financier'!$C$16+'BP Financier'!$C$19+'BP Financier'!$D$16+'BP Financier'!$D$19+'BP Financier'!$E$16+'BP Financier'!$E$19+'BP Financier'!$C$22+'BP Financier'!$D$22+'BP Financier'!$E$22))*$V5132*AB5132/(1-$W5132)","v":{"v":2269.097554619553,"d":"2,269"}},null,{"v":0.005,"d":"0.50%"},{"$f":"Actif!$E$28/100","v":{"v":0.28900000000000003,"d":"28.90%"}},{"$f":"Actif!$E$30/100","v":{"v":0.09050000000000001,"d":"9.05%"}},{"$f":"Actif!$E$31/100","v":{"v":0.0605,"d":"6.05%"}},{"$f":"Actif!$E$32/100","v":{"v":0.47350000000000003,"d":"47.35%"}},{"$f":"Actif!$E$33/100","v":{"v":0.0585,"d":"5.85%"}},{"$f":"Actif!$E$29/100","v":{"v":0.027999999999999997,"d":"2.80%"}}]
[null,"#29",27,2028,"H","A_PER",{"v":0.44999999999999996,"d":"0.45"},{"v":0.38999999999999996,"d":"0.39"},0.6,0.6,85,0,{"$f":"ROUND(Primes!$O$7*V5133,0)","v":4},{"$f":"'BP Financier'!$E$33*(('BP Financier'!$C$19+'BP Financier'!$D$19+'BP Financier'!$E$19)/('BP Financier'!$C$16+'BP Financier'!$C$19+'BP Financier'!$D$16+'BP Financier'!$D$19+'BP Financier'!$E$16+'BP Financier'!$E$19))*V5133","v":{"v":102735.5056781409,"d":"102,736"}},{"v":57618.87004766081,"d":"57,619"},{"$f":"'BP Financier'!$E$44*(('BP Financier'!$C$19+'BP Financier'!$D$19+'BP Financier'!$E$19)/('BP Financier'!$C$16+'BP Financier'!$C$19+'BP Financier'!$D$16+'BP Financier'!$D$19+'BP Financier'!$E$16+'BP Financier'!$E$19+'BP Financier'!$C$22+'BP Financier'!$D$22+'BP Financier'!$E$22))*$V5133*X5133/(1-$W5133)","v":{"v":7334.047453323915,"d":"7,334"}},{"$f":"'BP Financier'!$E$44*(('BP Financier'!$C$19+'BP Financier'!$D$19+'BP Financier'!$E$19)/('BP Financier'!$C$16+'BP Financier'!$C$19+'BP Financier'!$D$16+'BP Financier'!$D$19+'BP Financier'!$E$16+'BP Financier'!$E$19+'BP Financier'!$C$22+'BP Financier'!$D$22+'BP Financier'!$E$22))*$V5133*Y5133/(1-$W5133)","v":{"v":4902.8715019458205,"d":"4,903"}},{"$f":"'BP Financier'!$E$44*(('BP Financier'!$C$19+'BP Financier'!$D$19+'BP Financier'!$E$19)/('BP Financier'!$C$16+'BP Financier'!$C$19+'BP Financier'!$D$16+'BP Financier'!$D$19+'BP Financier'!$E$16+'BP Financier'!$E$19+'BP Financier'!$C$22+'BP Financier'!$D$22+'BP Financier'!$E$22))*$V5133*Z5133/(1-$W5133)","v":{"v":38372.060432584236,"d":"38,372"}},{"$f":"'BP Financier'!$E$44*(('BP Financier'!$C$19+'BP Financier'!$D$19+'BP Financier'!$E$19)/('BP Financier'!$C$16+'BP Financier'!$C$19+'BP Financier'!$D$16+'BP Financier'!$D$19+'BP Financier'!$E$16+'BP Financier'!$E$19+'BP Financier'!$C$22+'BP Financier'!$D$22+'BP Financier'!$E$22))*$V5133*AA5133/(1-$W5133)","v":{"v":4740.793105187282,"d":"4,741"}},{"$f":"'BP Financier'!$E$44*(('BP Financier'!$C$19+'BP Financier'!$D$19+'BP Financier'!$E$19)/('BP Financier'!$C$16+'BP Financier'!$C$19+'BP Financier'!$D$16+'BP Financier'!$D$19+'BP Financier'!$E$16+'BP Financier'!$E$19+'BP Financier'!$C$22+'BP Financier'!$D$22+'BP Financier'!$E$22))*$V5133*AB5133/(1-$W5133)","v":{"v":2269.097554619553,"d":"2,269"}},null,{"v":0.005,"d":"0.50%"},{"$f":"Actif!$E$28/100","v":{"v":0.28900000000000003,"d":"28.90%"}},{"$f":"Actif!$E$30/100","v":{"v":0.09050000000000001,"d":"9.05%"}},{"$f":"Actif!$E$31/100","v":{"v":0.0605,"d":"6.05%"}},{"$f":"Actif!$E$32/100","v":{"v":0.47350000000000003,"d":"47.35%"}},{"$f":"Actif!$E$33/100","v":{"v":0.0585,"d":"5.85%"}},{"$f":"Actif!$E$29/100","v":{"v":0.027999999999999997,"d":"2.80%"}}]
[null,"#30",27,2029,"H","A_PER",{"v":0.44999999999999996,"d":"0.45"},{"v":0.38999999999999996,"d":"0.39"},0.6,0.6,85,0,{"$f":"ROUND(Primes!$O$7*V5134,0)","v":4},{"$f":"'BP Financier'!$E$33*(('BP Financier'!$C$19+'BP Financier'!$D$19+'BP Financier'!$E$19)/('BP Financier'!$C$16+'BP Financier'!$C$19+'BP Financier'!$D$16+'BP Financier'!$D$19+'BP Financier'!$E$16+'BP Financier'!$E$19))*V5134","v":{"v":102735.5056781409,"d":"102,736"}},{"v":57618.87004766081,"d":"57,619"},{"$f":"'BP Financier'!$E$44*(('BP Financier'!$C$19+'BP Financier'!$D$19+'BP Financier'!$E$19)/('BP Financier'!$C$16+'BP Financier'!$C$19+'BP Financier'!$D$16+'BP Financier'!$D$19+'BP Financier'!$E$16+'BP Financier'!$E$19+'BP Financier'!$C$22+'BP Financier'!$D$22+'BP Financier'!$E$22))*$V5134*X5134/(1-$W5134)","v":{"v":7334.047453323915,"d":"7,334"}},{"$f":"'BP Financier'!$E$44*(('BP Financier'!$C$19+'BP Financier'!$D$19+'BP Financier'!$E$19)/('BP Financier'!$C$16+'BP Financier'!$C$19+'BP Financier'!$D$16+'BP Financier'!$D$19+'BP Financier'!$E$16+'BP Financier'!$E$19+'BP Financier'!$C$22+'BP Financier'!$D$22+'BP Financier'!$E$22))*$V5134*Y5134/(1-$W5134)","v":{"v":4902.8715019458205,"d":"4,903"}},{"$f":"'BP Financier'!$E$44*(('BP Financier'!$C$19+'BP Financier'!$D$19+'BP Financier'!$E$19)/('BP Financier'!$C$16+'BP Financier'!$C$19+'BP Financier'!$D$16+'BP Financier'!$D$19+'BP Financier'!$E$16+'BP Financier'!$E$19+'BP Financier'!$C$22+'BP Financier'!$D$22+'BP Financier'!$E$22))*$V5134*Z5134/(1-$W5134)","v":{"v":38372.060432584236,"d":"38,372"}},{"$f":"'BP Financier'!$E$44*(('BP Financier'!$C$19+'BP Financier'!$D$19+'BP Financier'!$E$19)/('BP Financier'!$C$16+'BP Financier'!$C$19+'BP Financier'!$D$16+'BP Financier'!$D$19+'BP Financier'!$E$16+'BP Financier'!$E$19+'BP Financier'!$C$22+'BP Financier'!$D$22+'BP Financier'!$E$22))*$V5134*AA5134/(1-$W5134)","v":{"v":4740.793105187282,"d":"4,741"}},{"$f":"'BP Financier'!$E$44*(('BP Financier'!$C$19+'BP Financier'!$D$19+'BP Financier'!$E$19)/('BP Financier'!$C$16+'BP Financier'!$C$19+'BP Financier'!$D$16+'BP Financier'!$D$19+'BP Financier'!$E$16+'BP Financier'!$E$19+'BP Financier'!$C$22+'BP Financier'!$D$22+'BP Financier'!$E$22))*$V5134*AB5134/(1-$W5134)","v":{"v":2269.097554619553,"d":"2,269"}},null,{"v":0.005,"d":"0.50%"},{"$f":"Actif!$E$28/100","v":{"v":0.28900000000000003,"d":"28.90%"}},{"$f":"Actif!$E$30/100","v":{"v":0.09050000000000001,"d":"9.05%"}},{"$f":"Actif!$E$31/100","v":{"v":0.0605,"d":"6.05%"}},{"$f":"Actif!$E$32/100","v":{"v":0.47350000000000003,"d":"47.35%"}},{"$f":"Actif!$E$33/100","v":{"v":0.0585,"d":"5.85%"}},{"$f":"Actif!$E$29/100","v":{"v":0.027999999999999997,"d":"2.80%"}}]
[null,"#31",28,2026,"H","A_PER",{"v":0.44999999999999996,"d":"0.45"},{"v":0.38999999999999996,"d":"0.39"},0.6,0.6,85,0,{"$f":"ROUND(Primes!$O$7*V5135,0)","v":4},{"$f":"'BP Financier'!$E$33*(('BP Financier'!$C$19+'BP Financier'!$D$19+'BP Financier'!$E$19)/('BP Financier'!$C$16+'BP Financier'!$C$19+'BP Financier'!$D$16+'BP Financier'!$D$19+'BP Financier'!$E$16+'BP Financier'!$E$19))*V5135","v":{"v":102735.5056781409,"d":"102,736"}},{"v":57618.87004766081,"d":"57,619"},{"$f":"'BP Financier'!$E$44*(('BP Financier'!$C$19+'BP Financier'!$D$19+'BP Financier'!$E$19)/('BP Financier'!$C$16+'BP Financier'!$C$19+'BP Financier'!$D$16+'BP Financier'!$D$19+'BP Financier'!$E$16+'BP Financier'!$E$19+'BP Financier'!$C$22+'BP Financier'!$D$22+'BP Financier'!$E$22))*$V5135*X5135/(1-$W5135)","v":{"v":7334.047453323915,"d":"7,334"}},{"$f":"'BP Financier'!$E$44*(('BP Financier'!$C$19+'BP Financier'!$D$19+'BP Financier'!$E$19)/('BP Financier'!$C$16+'BP Financier'!$C$19+'BP Financier'!$D$16+'BP Financier'!$D$19+'BP Financier'!$E$16+'BP Financier'!$E$19+'BP Financier'!$C$22+'BP Financier'!$D$22+'BP Financier'!$E$22))*$V5135*Y5135/(1-$W5135)","v":{"v":4902.8715019458205,"d":"4,903"}},{"$f":"'BP Financier'!$E$44*(('BP Financier'!$C$19+'BP Financier'!$D$19+'BP Financier'!$E$19)/('BP Financier'!$C$16+'BP Financier'!$C$19+'BP Financier'!$D$16+'BP Financier'!$D$19+'BP Financier'!$E$16+'BP Financier'!$E$19+'BP Financier'!$C$22+'BP Financier'!$D$22+'BP Financier'!$E$22))*$V5135*Z5135/(1-$W5135)","v":{"v":38372.060432584236,"d":"38,372"}},{"$f":"'BP Financier'!$E$44*(('BP Financier'!$C$19+'BP Financier'!$D$19+'BP Financier'!$E$19)/('BP Financier'!$C$16+'BP Financier'!$C$19+'BP Financier'!$D$16+'BP Financier'!$D$19+'BP Financier'!$E$16+'BP Financier'!$E$19+'BP Financier'!$C$22+'BP Financier'!$D$22+'BP Financier'!$E$22))*$V5135*AA5135/(1-$W5135)","v":{"v":4740.793105187282,"d":"4,741"}},{"$f":"'BP Financier'!$E$44*(('BP Financier'!$C$19+'BP Financier'!$D$19+'BP Financier'!$E$19)/('BP Financier'!$C$16+'BP Financier'!$C$19+'BP Financier'!$D$16+'BP Financier'!$D$19+'BP Financier'!$E$16+'BP Financier'!$E$19+'BP Financier'!$C$22+'BP Financier'!$D$22+'BP Financier'!$E$22))*$V5135*AB5135/(1-$W5135)","v":{"v":2269.097554619553,"d":"2,269"}},null,{"v":0.005,"d":"0.50%"},{"$f":"Actif!$E$28/100","v":{"v":0.28900000000000003,"d":"28.90%"}},{"$f":"Actif!$E$30/100","v":{"v":0.09050000000000001,"d":"9.05%"}},{"$f":"Actif!$E$31/100","v":{"v":0.0605,"d":"6.05%"}},{"$f":"Actif!$E$32/100","v":{"v":0.47350000000000003,"d":"47.35%"}},{"$f":"Actif!$E$33/100","v":{"v":0.0585,"d":"5.85%"}},{"$f":"Actif!$E$29/100","v":{"v":0.027999999999999997,"d":"2.80%"}}]
[null,"#32",28,2028,"H","A_PER",{"v":0.44999999999999996,"d":"0.45"},{"v":0.38999999999999996,"d":"0.39"},0.6,0.6,85,0,{"$f":"ROUND(Primes!$O$7*V5136,0)","v":4},{"$f":"'BP Financier'!$E$33*(('BP Financier'!$C$19+'BP Financier'!$D$19+'BP Financier'!$E$19)/('BP Financier'!$C$16+'BP Financier'!$C$19+'BP Financier'!$D$16+'BP Financier'!$D$19+'BP Financier'!$E$16+'BP Financier'!$E$19))*V5136","v":{"v":102735.5056781409,"d":"102,736"}},{"v":57618.87004766081,"d":"57,619"},{"$f":"'BP Financier'!$E$44*(('BP Financier'!$C$19+'BP Financier'!$D$19+'BP Financier'!$E$19)/('BP Financier'!$C$16+'BP Financier'!$C$19+'BP Financier'!$D$16+'BP Financier'!$D$19+'BP Financier'!$E$16+'BP Financier'!$E$19+'BP Financier'!$C$22+'BP Financier'!$D$22+'BP Financier'!$E$22))*$V5136*X5136/(1-$W5136)","v":{"v":7334.047453323915,"d":"7,334"}},{"$f":"'BP Financier'!$E$44*(('BP Financier'!$C$19+'BP Financier'!$D$19+'BP Financier'!$E$19)/('BP Financier'!$C$16+'BP Financier'!$C$19+'BP Financier'!$D$16+'BP Financier'!$D$19+'BP Financier'!$E$16+'BP Financier'!$E$19+'BP Financier'!$C$22+'BP Financier'!$D$22+'BP Financier'!$E$22))*$V5136*Y5136/(1-$W5136)","v":{"v":4902.8715019458205,"d":"4,903"}},{"$f":"'BP Financier'!$E$44*(('BP Financier'!$C$19+'BP Financier'!$D$19+'BP Financier'!$E$19)/('BP Financier'!$C$16+'BP Financier'!$C$19+'BP Financier'!$D$16+'BP Financier'!$D$19+'BP Financier'!$E$16+'BP Financier'!$E$19+'BP Financier'!$C$22+'BP Financier'!$D$22+'BP Financier'!$E$22))*$V5136*Z5136/(1-$W5136)","v":{"v":38372.060432584236,"d":"38,372"}},{"$f":"'BP Financier'!$E$44*(('BP Financier'!$C$19+'BP Financier'!$D$19+'BP Financier'!$E$19)/('BP Financier'!$C$16+'BP Financier'!$C$19+'BP Financier'!$D$16+'BP Financier'!$D$19+'BP Financier'!$E$16+'BP Financier'!$E$19+'BP Financier'!$C$22+'BP Financier'!$D$22+'BP Financier'!$E$22))*$V5136*AA5136/(1-$W5136)","v":{"v":4740.793105187282,"d":"4,741"}},{"$f":"'BP Financier'!$E$44*(('BP Financier'!$C$19+'BP Financier'!$D$19+'BP Financier'!$E$19)/('BP Financier'!$C$16+'BP Financier'!$C$19+'BP Financier'!$D$16+'BP Financier'!$D$19+'BP Financier'!$E$16+'BP Financier'!$E$19+'BP Financier'!$C$22+'BP Financier'!$D$22+'BP Financier'!$E$22))*$V5136*AB5136/(1-$W5136)","v":{"v":2269.097554619553,"d":"2,269"}},null,{"v":0.005,"d":"0.50%"},{"$f":"Actif!$E$28/100","v":{"v":0.28900000000000003,"d":"28.90%"}},{"$f":"Actif!$E$30/100","v":{"v":0.09050000000000001,"d":"9.05%"}},{"$f":"Actif!$E$31/100","v":{"v":0.0605,"d":"6.05%"}},{"$f":"Actif!$E$32/100","v":{"v":0.47350000000000003,"d":"47.35%"}},{"$f":"Actif!$E$33/100","v":{"v":0.0585,"d":"5.85%"}},{"$f":"Actif!$E$29/100","v":{"v":0.027999999999999997,"d":"2.80%"}}]
[null,"#33",28,2029,"H","A_PER",{"$f":"frais_gestion_Euro*100","v":{"v":0.44999999999999996,"d":"0.45"}},{"$f":"frais_gestion_UC*100","v":{"v":0.38999999999999996,"d":"0.39"}},{"$f":"frais_distribution_FG*100","v":0.6},{"$f":"frais_distribution_UC*100","v":0.6},85,0,{"$f":"ROUND(Primes!$O$7*V5137,0)","v":4},{"$f":"'BP Financier'!$E$33*(('BP Financier'!$C$19+'BP Financier'!$D$19+'BP Financier'!$E$19)/('BP Financier'!$C$16+'BP Financier'!$C$19+'BP Financier'!$D$16+'BP Financier'!$D$19+'BP Financier'!$E$16+'BP Financier'!$E$19))*V5137","v":{"v":102735.5056781409,"d":"102,736"}},{"v":57618.87004766081,"d":"57,619"},{"$f":"'BP Financier'!$E$44*(('BP Financier'!$C$19+'BP Financier'!$D$19+'BP Financier'!$E$19)/('BP Financier'!$C$16+'BP Financier'!$C$19+'BP Financier'!$D$16+'BP Financier'!$D$19+'BP Financier'!$E$16+'BP Financier'!$E$19+'BP Financier'!$C$22+'BP Financier'!$D$22+'BP Financier'!$E$22))*$V5137*X5137/(1-$W5137)","v":{"v":7334.047453323915,"d":"7,334"}},{"$f":"'BP Financier'!$E$44*(('BP Financier'!$C$19+'BP Financier'!$D$19+'BP Financier'!$E$19)/('BP Financier'!$C$16+'BP Financier'!$C$19+'BP Financier'!$D$16+'BP Financier'!$D$19+'BP Financier'!$E$16+'BP Financier'!$E$19+'BP Financier'!$C$22+'BP Financier'!$D$22+'BP Financier'!$E$22))*$V5137*Y5137/(1-$W5137)","v":{"v":4902.8715019458205,"d":"4,903"}},{"$f":"'BP Financier'!$E$44*(('BP Financier'!$C$19+'BP Financier'!$D$19+'BP Financier'!$E$19)/('BP Financier'!$C$16+'BP Financier'!$C$19+'BP Financier'!$D$16+'BP Financier'!$D$19+'BP Financier'!$E$16+'BP Financier'!$E$19+'BP Financier'!$C$22+'BP Financier'!$D$22+'BP Financier'!$E$22))*$V5137*Z5137/(1-$W5137)","v":{"v":38372.060432584236,"d":"38,372"}},{"$f":"'BP Financier'!$E$44*(('BP Financier'!$C$19+'BP Financier'!$D$19+'BP Financier'!$E$19)/('BP Financier'!$C$16+'BP Financier'!$C$19+'BP Financier'!$D$16+'BP Financier'!$D$19+'BP Financier'!$E$16+'BP Financier'!$E$19+'BP Financier'!$C$22+'BP Financier'!$D$22+'BP Financier'!$E$22))*$V5137*AA5137/(1-$W5137)","v":{"v":4740.793105187282,"d":"4,741"}},{"$f":"'BP Financier'!$E$44*(('BP Financier'!$C$19+'BP Financier'!$D$19+'BP Financier'!$E$19)/('BP Financier'!$C$16+'BP Financier'!$C$19+'BP Financier'!$D$16+'BP Financier'!$D$19+'BP Financier'!$E$16+'BP Financier'!$E$19+'BP Financier'!$C$22+'BP Financier'!$D$22+'BP Financier'!$E$22))*$V5137*AB5137/(1-$W5137)","v":{"v":2269.097554619553,"d":"2,269"}},null,{"v":0.005,"d":"0.50%"},{"$f":"Actif!$E$28/100","v":{"v":0.28900000000000003,"d":"28.90%"}},{"$f":"Actif!$E$30/100","v":{"v":0.09050000000000001,"d":"9.05%"}},{"$f":"Actif!$E$31/100","v":{"v":0.0605,"d":"6.05%"}},{"$f":"Actif!$E$32/100","v":{"v":0.47350000000000003,"d":"47.35%"}},{"$f":"Actif!$E$33/100","v":{"v":0.0585,"d":"5.85%"}},{"$f":"Actif!$E$29/100","v":{"v":0.027999999999999997,"d":"2.80%"}}]
[null,"#34",29,2026,"F","A_PER",{"v":0.44999999999999996,"d":"0.45"},{"v":0.38999999999999996,"d":"0.39"},0.6,0.6,85,0,{"$f":"ROUND(Primes!$O$7*V5138,0)","v":4},{"$f":"'BP Financier'!$E$33*(('BP Financier'!$C$19+'BP Financier'!$D$19+'BP Financier'!$E$19)/('BP Financier'!$C$16+'BP Financier'!$C$19+'BP Financier'!$D$16+'BP Financier'!$D$19+'BP Financier'!$E$16+'BP Financier'!$E$19))*V5138","v":{"v":102735.5056781409,"d":"102,736"}},{"v":57618.87004766081,"d":"57,619"},{"$f":"'BP Financier'!$E$44*(('BP Financier'!$C$19+'BP Financier'!$D$19+'BP Financier'!$E$19)/('BP Financier'!$C$16+'BP Financier'!$C$19+'BP Financier'!$D$16+'BP Financier'!$D$19+'BP Financier'!$E$16+'BP Financier'!$E$19+'BP Financier'!$C$22+'BP Financier'!$D$22+'BP Financier'!$E$22))*$V5138*X5138/(1-$W5138)","v":{"v":7334.047453323915,"d":"7,334"}},{"$f":"'BP Financier'!$E$44*(('BP Financier'!$C$19+'BP Financier'!$D$19+'BP Financier'!$E$19)/('BP Financier'!$C$16+'BP Financier'!$C$19+'BP Financier'!$D$16+'BP Financier'!$D$19+'BP Financier'!$E$16+'BP Financier'!$E$19+'BP Financier'!$C$22+'BP Financier'!$D$22+'BP Financier'!$E$22))*$V5138*Y5138/(1-$W5138)","v":{"v":4902.8715019458205,"d":"4,903"}},{"$f":"'BP Financier'!$E$44*(('BP Financier'!$C$19+'BP Financier'!$D$19+'BP Financier'!$E$19)/('BP Financier'!$C$16+'BP Financier'!$C$19+'BP Financier'!$D$16+'BP Financier'!$D$19+'BP Financier'!$E$16+'BP Financier'!$E$19+'BP Financier'!$C$22+'BP Financier'!$D$22+'BP Financier'!$E$22))*$V5138*Z5138/(1-$W5138)","v":{"v":38372.060432584236,"d":"38,372"}},{"$f":"'BP Financier'!$E$44*(('BP Financier'!$C$19+'BP Financier'!$D$19+'BP Financier'!$E$19)/('BP Financier'!$C$16+'BP Financier'!$C$19+'BP Financier'!$D$16+'BP Financier'!$D$19+'BP Financier'!$E$16+'BP Financier'!$E$19+'BP Financier'!$C$22+'BP Financier'!$D$22+'BP Financier'!$E$22))*$V5138*AA5138/(1-$W5138)","v":{"v":4740.793105187282,"d":"4,741"}},{"$f":"'BP Financier'!$E$44*(('BP Financier'!$C$19+'BP Financier'!$D$19+'BP Financier'!$E$19)/('BP Financier'!$C$16+'BP Financier'!$C$19+'BP Financier'!$D$16+'BP Financier'!$D$19+'BP Financier'!$E$16+'BP Financier'!$E$19+'BP Financier'!$C$22+'BP Financier'!$D$22+'BP Financier'!$E$22))*$V5138*AB5138/(1-$W5138)","v":{"v":2269.097554619553,"d":"2,269"}},null,{"v":0.005,"d":"0.50%"},{"$f":"Actif!$E$28/100","v":{"v":0.28900000000000003,"d":"28.90%"}},{"$f":"Actif!$E$30/100","v":{"v":0.09050000000000001,"d":"9.05%"}},{"$f":"Actif!$E$31/100","v":{"v":0.0605,"d":"6.05%"}},{"$f":"Actif!$E$32/100","v":{"v":0.47350000000000003,"d":"47.35%"}},{"$f":"Actif!$E$33/100","v":{"v":0.0585,"d":"5.85%"}},{"$f":"Actif!$E$29/100","v":{"v":0.027999999999999997,"d":"2.80%"}}]
[null,"#35",29,2028,"F","A_PER",{"v":0.44999999999999996,"d":"0.45"},{"v":0.38999999999999996,"d":"0.39"},0.6,0.6,85,0,{"$f":"ROUND(Primes!$O$7*V5139,0)","v":4},{"$f":"'BP Financier'!$E$33*(('BP Financier'!$C$19+'BP Financier'!$D$19+'BP Financier'!$E$19)/('BP Financier'!$C$16+'BP Financier'!$C$19+'BP Financier'!$D$16+'BP Financier'!$D$19+'BP Financier'!$E$16+'BP Financier'!$E$19))*V5139","v":{"v":102735.5056781409,"d":"102,736"}},{"v":57618.87004766081,"d":"57,619"},{"$f":"'BP Financier'!$E$44*(('BP Financier'!$C$19+'BP Financier'!$D$19+'BP Financier'!$E$19)/('BP Financier'!$C$16+'BP Financier'!$C$19+'BP Financier'!$D$16+'BP Financier'!$D$19+'BP Financier'!$E$16+'BP Financier'!$E$19+'BP Financier'!$C$22+'BP Financier'!$D$22+'BP Financier'!$E$22))*$V5139*X5139/(1-$W5139)","v":{"v":7334.047453323915,"d":"7,334"}},{"$f":"'BP Financier'!$E$44*(('BP Financier'!$C$19+'BP Financier'!$D$19+'BP Financier'!$E$19)/('BP Financier'!$C$16+'BP Financier'!$C$19+'BP Financier'!$D$16+'BP Financier'!$D$19+'BP Financier'!$E$16+'BP Financier'!$E$19+'BP Financier'!$C$22+'BP Financier'!$D$22+'BP Financier'!$E$22))*$V5139*Y5139/(1-$W5139)","v":{"v":4902.8715019458205,"d":"4,903"}},{"$f":"'BP Financier'!$E$44*(('BP Financier'!$C$19+'BP Financier'!$D$19+'BP Financier'!$E$19)/('BP Financier'!$C$16+'BP Financier'!$C$19+'BP Financier'!$D$16+'BP Financier'!$D$19+'BP Financier'!$E$16+'BP Financier'!$E$19+'BP Financier'!$C$22+'BP Financier'!$D$22+'BP Financier'!$E$22))*$V5139*Z5139/(1-$W5139)","v":{"v":38372.060432584236,"d":"38,372"}},{"$f":"'BP Financier'!$E$44*(('BP Financier'!$C$19+'BP Financier'!$D$19+'BP Financier'!$E$19)/('BP Financier'!$C$16+'BP Financier'!$C$19+'BP Financier'!$D$16+'BP Financier'!$D$19+'BP Financier'!$E$16+'BP Financier'!$E$19+'BP Financier'!$C$22+'BP Financier'!$D$22+'BP Financier'!$E$22))*$V5139*AA5139/(1-$W5139)","v":{"v":4740.793105187282,"d":"4,741"}},{"$f":"'BP Financier'!$E$44*(('BP Financier'!$C$19+'BP Financier'!$D$19+'BP Financier'!$E$19)/('BP Financier'!$C$16+'BP Financier'!$C$19+'BP Financier'!$D$16+'BP Financier'!$D$19+'BP Financier'!$E$16+'BP Financier'!$E$19+'BP Financier'!$C$22+'BP Financier'!$D$22+'BP Financier'!$E$22))*$V5139*AB5139/(1-$W5139)","v":{"v":2269.097554619553,"d":"2,269"}},null,{"v":0.005,"d":"0.50%"},{"$f":"Actif!$E$28/100","v":{"v":0.28900000000000003,"d":"28.90%"}},{"$f":"Actif!$E$30/100","v":{"v":0.09050000000000001,"d":"9.05%"}},{"$f":"Actif!$E$31/100","v":{"v":0.0605,"d":"6.05%"}},{"$f":"Actif!$E$32/100","v":{"v":0.47350000000000003,"d":"47.35%"}},{"$f":"Actif!$E$33/100","v":{"v":0.0585,"d":"5.85%"}},{"$f":"Actif!$E$29/100","v":{"v":0.027999999999999997,"d":"2.80%"}}]
[null,"#36",29,2029,"F","A_PER",{"v":0.44999999999999996,"d":"0.45"},{"v":0.38999999999999996,"d":"0.39"},0.6,0.6,85,0,{"$f":"ROUND(Primes!$O$7*V5140,0)","v":4},{"$f":"'BP Financier'!$E$33*(('BP Financier'!$C$19+'BP Financier'!$D$19+'BP Financier'!$E$19)/('BP Financier'!$C$16+'BP Financier'!$C$19+'BP Financier'!$D$16+'BP Financier'!$D$19+'BP Financier'!$E$16+'BP Financier'!$E$19))*V5140","v":{"v":102735.5056781409,"d":"102,736"}},{"v":57618.87004766081,"d":"57,619"},{"$f":"'BP Financier'!$E$44*(('BP Financier'!$C$19+'BP Financier'!$D$19+'BP Financier'!$E$19)/('BP Financier'!$C$16+'BP Financier'!$C$19+'BP Financier'!$D$16+'BP Financier'!$D$19+'BP Financier'!$E$16+'BP Financier'!$E$19+'BP Financier'!$C$22+'BP Financier'!$D$22+'BP Financier'!$E$22))*$V5140*X5140/(1-$W5140)","v":{"v":7334.047453323915,"d":"7,334"}},{"$f":"'BP Financier'!$E$44*(('BP Financier'!$C$19+'BP Financier'!$D$19+'BP Financier'!$E$19)/('BP Financier'!$C$16+'BP Financier'!$C$19+'BP Financier'!$D$16+'BP Financier'!$D$19+'BP Financier'!$E$16+'BP Financier'!$E$19+'BP Financier'!$C$22+'BP Financier'!$D$22+'BP Financier'!$E$22))*$V5140*Y5140/(1-$W5140)","v":{"v":4902.8715019458205,"d":"4,903"}},{"$f":"'BP Financier'!$E$44*(('BP Financier'!$C$19+'BP Financier'!$D$19+'BP Financier'!$E$19)/('BP Financier'!$C$16+'BP Financier'!$C$19+'BP Financier'!$D$16+'BP Financier'!$D$19+'BP Financier'!$E$16+'BP Financier'!$E$19+'BP Financier'!$C$22+'BP Financier'!$D$22+'BP Financier'!$E$22))*$V5140*Z5140/(1-$W5140)","v":{"v":38372.060432584236,"d":"38,372"}},{"$f":"'BP Financier'!$E$44*(('BP Financier'!$C$19+'BP Financier'!$D$19+'BP Financier'!$E$19)/('BP Financier'!$C$16+'BP Financier'!$C$19+'BP Financier'!$D$16+'BP Financier'!$D$19+'BP Financier'!$E$16+'BP Financier'!$E$19+'BP Financier'!$C$22+'BP Financier'!$D$22+'BP Financier'!$E$22))*$V5140*AA5140/(1-$W5140)","v":{"v":4740.793105187282,"d":"4,741"}},{"$f":"'BP Financier'!$E$44*(('BP Financier'!$C$19+'BP Financier'!$D$19+'BP Financier'!$E$19)/('BP Financier'!$C$16+'BP Financier'!$C$19+'BP Financier'!$D$16+'BP Financier'!$D$19+'BP Financier'!$E$16+'BP Financier'!$E$19+'BP Financier'!$C$22+'BP Financier'!$D$22+'BP Financier'!$E$22))*$V5140*AB5140/(1-$W5140)","v":{"v":2269.097554619553,"d":"2,269"}},null,{"v":0.005,"d":"0.50%"},{"$f":"Actif!$E$28/100","v":{"v":0.28900000000000003,"d":"28.90%"}},{"$f":"Actif!$E$30/100","v":{"v":0.09050000000000001,"d":"9.05%"}},{"$f":"Actif!$E$31/100","v":{"v":0.0605,"d":"6.05%"}},{"$f":"Actif!$E$32/100","v":{"v":0.47350000000000003,"d":"47.35%"}},{"$f":"Actif!$E$33/100","v":{"v":0.0585,"d":"5.85%"}},{"$f":"Actif!$E$29/100","v":{"v":0.027999999999999997,"d":"2.80%"}}]
[null,"#37",30,2026,"H","A_PER",{"v":0.44999999999999996,"d":"0.45"},{"v":0.38999999999999996,"d":"0.39"},0.6,0.6,85,0,{"$f":"ROUND(Primes!$O$7*V5141,0)","v":4},{"$f":"'BP Financier'!$E$33*(('BP Financier'!$C$19+'BP Financier'!$D$19+'BP Financier'!$E$19)/('BP Financier'!$C$16+'BP Financier'!$C$19+'BP Financier'!$D$16+'BP Financier'!$D$19+'BP Financier'!$E$16+'BP Financier'!$E$19))*V5141","v":{"v":102735.5056781409,"d":"102,736"}},{"v":57618.87004766081,"d":"57,619"},{"$f":"'BP Financier'!$E$44*(('BP Financier'!$C$19+'BP Financier'!$D$19+'BP Financier'!$E$19)/('BP Financier'!$C$16+'BP Financier'!$C$19+'BP Financier'!$D$16+'BP Financier'!$D$19+'BP Financier'!$E$16+'BP Financier'!$E$19+'BP Financier'!$C$22+'BP Financier'!$D$22+'BP Financier'!$E$22))*$V5141*X5141/(1-$W5141)","v":{"v":7334.047453323915,"d":"7,334"}},{"$f":"'BP Financier'!$E$44*(('BP Financier'!$C$19+'BP Financier'!$D$19+'BP Financier'!$E$19)/('BP Financier'!$C$16+'BP Financier'!$C$19+'BP Financier'!$D$16+'BP Financier'!$D$19+'BP Financier'!$E$16+'BP Financier'!$E$19+'BP Financier'!$C$22+'BP Financier'!$D$22+'BP Financier'!$E$22))*$V5141*Y5141/(1-$W5141)","v":{"v":4902.8715019458205,"d":"4,903"}},{"$f":"'BP Financier'!$E$44*(('BP Financier'!$C$19+'BP Financier'!$D$19+'BP Financier'!$E$19)/('BP Financier'!$C$16+'BP Financier'!$C$19+'BP Financier'!$D$16+'BP Financier'!$D$19+'BP Financier'!$E$16+'BP Financier'!$E$19+'BP Financier'!$C$22+'BP Financier'!$D$22+'BP Financier'!$E$22))*$V5141*Z5141/(1-$W5141)","v":{"v":38372.060432584236,"d":"38,372"}},{"$f":"'BP Financier'!$E$44*(('BP Financier'!$C$19+'BP Financier'!$D$19+'BP Financier'!$E$19)/('BP Financier'!$C$16+'BP Financier'!$C$19+'BP Financier'!$D$16+'BP Financier'!$D$19+'BP Financier'!$E$16+'BP Financier'!$E$19+'BP Financier'!$C$22+'BP Financier'!$D$22+'BP Financier'!$E$22))*$V5141*AA5141/(1-$W5141)","v":{"v":4740.793105187282,"d":"4,741"}},{"$f":"'BP Financier'!$E$44*(('BP Financier'!$C$19+'BP Financier'!$D$19+'BP Financier'!$E$19)/('BP Financier'!$C$16+'BP Financier'!$C$19+'BP Financier'!$D$16+'BP Financier'!$D$19+'BP Financier'!$E$16+'BP Financier'!$E$19+'BP Financier'!$C$22+'BP Financier'!$D$22+'BP Financier'!$E$22))*$V5141*AB5141/(1-$W5141)","v":{"v":2269.097554619553,"d":"2,269"}},null,{"v":0.005,"d":"0.50%"},{"$f":"Actif!$E$28/100","v":{"v":0.28900000000000003,"d":"28.90%"}},{"$f":"Actif!$E$30/100","v":{"v":0.09050000000000001,"d":"9.05%"}},{"$f":"Actif!$E$31/100","v":{"v":0.0605,"d":"6.05%"}},{"$f":"Actif!$E$32/100","v":{"v":0.47350000000000003,"d":"47.35%"}},{"$f":"Actif!$E$33/100","v":{"v":0.0585,"d":"5.85%"}},{"$f":"Actif!$E$29/100","v":{"v":0.027999999999999997,"d":"2.80%"}}]
[null,"#38",30,2028,"H","A_PER",{"v":0.44999999999999996,"d":"0.45"},{"v":0.38999999999999996,"d":"0.39"},0.6,0.6,85,0,{"$f":"ROUND(Primes!$O$7*V5142,0)","v":4},{"$f":"'BP Financier'!$E$33*(('BP Financier'!$C$19+'BP Financier'!$D$19+'BP Financier'!$E$19)/('BP Financier'!$C$16+'BP Financier'!$C$19+'BP Financier'!$D$16+'BP Financier'!$D$19+'BP Financier'!$E$16+'BP Financier'!$E$19))*V5142","v":{"v":102735.5056781409,"d":"102,736"}},{"v":57618.87004766081,"d":"57,619"},{"$f":"'BP Financier'!$E$44*(('BP Financier'!$C$19+'BP Financier'!$D$19+'BP Financier'!$E$19)/('BP Financier'!$C$16+'BP Financier'!$C$19+'BP Financier'!$D$16+'BP Financier'!$D$19+'BP Financier'!$E$16+'BP Financier'!$E$19+'BP Financier'!$C$22+'BP Financier'!$D$22+'BP Financier'!$E$22))*$V5142*X5142/(1-$W5142)","v":{"v":7334.047453323915,"d":"7,334"}},{"$f":"'BP Financier'!$E$44*(('BP Financier'!$C$19+'BP Financier'!$D$19+'BP Financier'!$E$19)/('BP Financier'!$C$16+'BP Financier'!$C$19+'BP Financier'!$D$16+'BP Financier'!$D$19+'BP Financier'!$E$16+'BP Financier'!$E$19+'BP Financier'!$C$22+'BP Financier'!$D$22+'BP Financier'!$E$22))*$V5142*Y5142/(1-$W5142)","v":{"v":4902.8715019458205,"d":"4,903"}},{"$f":"'BP Financier'!$E$44*(('BP Financier'!$C$19+'BP Financier'!$D$19+'BP Financier'!$E$19)/('BP Financier'!$C$16+'BP Financier'!$C$19+'BP Financier'!$D$16+'BP Financier'!$D$19+'BP Financier'!$E$16+'BP Financier'!$E$19+'BP Financier'!$C$22+'BP Financier'!$D$22+'BP Financier'!$E$22))*$V5142*Z5142/(1-$W5142)","v":{"v":38372.060432584236,"d":"38,372"}},{"$f":"'BP Financier'!$E$44*(('BP Financier'!$C$19+'BP Financier'!$D$19+'BP Financier'!$E$19)/('BP Financier'!$C$16+'BP Financier'!$C$19+'BP Financier'!$D$16+'BP Financier'!$D$19+'BP Financier'!$E$16+'BP Financier'!$E$19+'BP Financier'!$C$22+'BP Financier'!$D$22+'BP Financier'!$E$22))*$V5142*AA5142/(1-$W5142)","v":{"v":4740.793105187282,"d":"4,741"}},{"$f":"'BP Financier'!$E$44*(('BP Financier'!$C$19+'BP Financier'!$D$19+'BP Financier'!$E$19)/('BP Financier'!$C$16+'BP Financier'!$C$19+'BP Financier'!$D$16+'BP Financier'!$D$19+'BP Financier'!$E$16+'BP Financier'!$E$19+'BP Financier'!$C$22+'BP Financier'!$D$22+'BP Financier'!$E$22))*$V5142*AB5142/(1-$W5142)","v":{"v":2269.097554619553,"d":"2,269"}},null,{"v":0.005,"d":"0.50%"},{"$f":"Actif!$E$28/100","v":{"v":0.28900000000000003,"d":"28.90%"}},{"$f":"Actif!$E$30/100","v":{"v":0.09050000000000001,"d":"9.05%"}},{"$f":"Actif!$E$31/100","v":{"v":0.0605,"d":"6.05%"}},{"$f":"Actif!$E$32/100","v":{"v":0.47350000000000003,"d":"47.35%"}},{"$f":"Actif!$E$33/100","v":{"v":0.0585,"d":"5.85%"}},{"$f":"Actif!$E$29/100","v":{"v":0.027999999999999997,"d":"2.80%"}}]
[null,"#39",30,2029,"H","A_PER",{"v":0.44999999999999996,"d":"0.45"},{"v":0.38999999999999996,"d":"0.39"},0.6,0.6,85,0,{"$f":"ROUND(Primes!$O$7*V5143,0)","v":4},{"$f":"'BP Financier'!$E$33*(('BP Financier'!$C$19+'BP Financier'!$D$19+'BP Financier'!$E$19)/('BP Financier'!$C$16+'BP Financier'!$C$19+'BP Financier'!$D$16+'BP Financier'!$D$19+'BP Financier'!$E$16+'BP Financier'!$E$19))*V5143","v":{"v":102735.5056781409,"d":"102,736"}},{"v":57618.87004766081,"d":"57,619"},{"$f":"'BP Financier'!$E$44*(('BP Financier'!$C$19+'BP Financier'!$D$19+'BP Financier'!$E$19)/('BP Financier'!$C$16+'BP Financier'!$C$19+'BP Financier'!$D$16+'BP Financier'!$D$19+'BP Financier'!$E$16+'BP Financier'!$E$19+'BP Financier'!$C$22+'BP Financier'!$D$22+'BP Financier'!$E$22))*$V5143*X5143/(1-$W5143)","v":{"v":7334.047453323915,"d":"7,334"}},{"$f":"'BP Financier'!$E$44*(('BP Financier'!$C$19+'BP Financier'!$D$19+'BP Financier'!$E$19)/('BP Financier'!$C$16+'BP Financier'!$C$19+'BP Financier'!$D$16+'BP Financier'!$D$19+'BP Financier'!$E$16+'BP Financier'!$E$19+'BP Financier'!$C$22+'BP Financier'!$D$22+'BP Financier'!$E$22))*$V5143*Y5143/(1-$W5143)","v":{"v":4902.8715019458205,"d":"4,903"}},{"$f":"'BP Financier'!$E$44*(('BP Financier'!$C$19+'BP Financier'!$D$19+'BP Financier'!$E$19)/('BP Financier'!$C$16+'BP Financier'!$C$19+'BP Financier'!$D$16+'BP Financier'!$D$19+'BP Financier'!$E$16+'BP Financier'!$E$19+'BP Financier'!$C$22+'BP Financier'!$D$22+'BP Financier'!$E$22))*$V5143*Z5143/(1-$W5143)","v":{"v":38372.060432584236,"d":"38,372"}},{"$f":"'BP Financier'!$E$44*(('BP Financier'!$C$19+'BP Financier'!$D$19+'BP Financier'!$E$19)/('BP Financier'!$C$16+'BP Financier'!$C$19+'BP Financier'!$D$16+'BP Financier'!$D$19+'BP Financier'!$E$16+'BP Financier'!$E$19+'BP Financier'!$C$22+'BP Financier'!$D$22+'BP Financier'!$E$22))*$V5143*AA5143/(1-$W5143)","v":{"v":4740.793105187282,"d":"4,741"}},{"$f":"'BP Financier'!$E$44*(('BP Financier'!$C$19+'BP Financier'!$D$19+'BP Financier'!$E$19)/('BP Financier'!$C$16+'BP Financier'!$C$19+'BP Financier'!$D$16+'BP Financier'!$D$19+'BP Financier'!$E$16+'BP Financier'!$E$19+'BP Financier'!$C$22+'BP Financier'!$D$22+'BP Financier'!$E$22))*$V5143*AB5143/(1-$W5143)","v":{"v":2269.097554619553,"d":"2,269"}},null,{"v":0.005,"d":"0.50%"},{"$f":"Actif!$E$28/100","v":{"v":0.28900000000000003,"d":"28.90%"}},{"$f":"Actif!$E$30/100","v":{"v":0.09050000000000001,"d":"9.05%"}},{"$f":"Actif!$E$31/100","v":{"v":0.0605,"d":"6.05%"}},{"$f":"Actif!$E$32/100","v":{"v":0.47350000000000003,"d":"47.35%"}},{"$f":"Actif!$E$33/100","v":{"v":0.0585,"d":"5.85%"}},{"$f":"Actif!$E$29/100","v":{"v":0.027999999999999997,"d":"2.80%"}}]
[null,"#40",31,2026,"H","A_PER",{"v":0.44999999999999996,"d":"0.45"},{"v":0.38999999999999996,"d":"0.39"},0.6,0.6,85,0,{"$f":"ROUND(Primes!$O$7*V5144,0)","v":4},{"$f":"'BP Financier'!$E$33*(('BP Financier'!$C$19+'BP Financier'!$D$19+'BP Financier'!$E$19)/('BP Financier'!$C$16+'BP Financier'!$C$19+'BP Financier'!$D$16+'BP Financier'!$D$19+'BP Financier'!$E$16+'BP Financier'!$E$19))*V5144","v":{"v":102735.5056781409,"d":"102,736"}},{"v":57618.87004766081,"d":"57,619"},{"$f":"'BP Financier'!$E$44*(('BP Financier'!$C$19+'BP Financier'!$D$19+'BP Financier'!$E$19)/('BP Financier'!$C$16+'BP Financier'!$C$19+'BP Financier'!$D$16+'BP Financier'!$D$19+'BP Financier'!$E$16+'BP Financier'!$E$19+'BP Financier'!$C$22+'BP Financier'!$D$22+'BP Financier'!$E$22))*$V5144*X5144/(1-$W5144)","v":{"v":7334.047453323915,"d":"7,334"}},{"$f":"'BP Financier'!$E$44*(('BP Financier'!$C$19+'BP Financier'!$D$19+'BP Financier'!$E$19)/('BP Financier'!$C$16+'BP Financier'!$C$19+'BP Financier'!$D$16+'BP Financier'!$D$19+'BP Financier'!$E$16+'BP Financier'!$E$19+'BP Financier'!$C$22+'BP Financier'!$D$22+'BP Financier'!$E$22))*$V5144*Y5144/(1-$W5144)","v":{"v":4902.8715019458205,"d":"4,903"}},{"$f":"'BP Financier'!$E$44*(('BP Financier'!$C$19+'BP Financier'!$D$19+'BP Financier'!$E$19)/('BP Financier'!$C$16+'BP Financier'!$C$19+'BP Financier'!$D$16+'BP Financier'!$D$19+'BP Financier'!$E$16+'BP Financier'!$E$19+'BP Financier'!$C$22+'BP Financier'!$D$22+'BP Financier'!$E$22))*$V5144*Z5144/(1-$W5144)","v":{"v":38372.060432584236,"d":"38,372"}},{"$f":"'BP Financier'!$E$44*(('BP Financier'!$C$19+'BP Financier'!$D$19+'BP Financier'!$E$19)/('BP Financier'!$C$16+'BP Financier'!$C$19+'BP Financier'!$D$16+'BP Financier'!$D$19+'BP Financier'!$E$16+'BP Financier'!$E$19+'BP Financier'!$C$22+'BP Financier'!$D$22+'BP Financier'!$E$22))*$V5144*AA5144/(1-$W5144)","v":{"v":4740.793105187282,"d":"4,741"}},{"$f":"'BP Financier'!$E$44*(('BP Financier'!$C$19+'BP Financier'!$D$19+'BP Financier'!$E$19)/('BP Financier'!$C$16+'BP Financier'!$C$19+'BP Financier'!$D$16+'BP Financier'!$D$19+'BP Financier'!$E$16+'BP Financier'!$E$19+'BP Financier'!$C$22+'BP Financier'!$D$22+'BP Financier'!$E$22))*$V5144*AB5144/(1-$W5144)","v":{"v":2269.097554619553,"d":"2,269"}},null,{"v":0.005,"d":"0.50%"},{"$f":"Actif!$E$28/100","v":{"v":0.28900000000000003,"d":"28.90%"}},{"$f":"Actif!$E$30/100","v":{"v":0.09050000000000001,"d":"9.05%"}},{"$f":"Actif!$E$31/100","v":{"v":0.0605,"d":"6.05%"}},{"$f":"Actif!$E$32/100","v":{"v":0.47350000000000003,"d":"47.35%"}},{"$f":"Actif!$E$33/100","v":{"v":0.0585,"d":"5.85%"}},{"$f":"Actif!$E$29/100","v":{"v":0.027999999999999997,"d":"2.80%"}}]
[null,"#41",31,2028,"H","A_PER",{"v":0.44999999999999996,"d":"0.45"},{"v":0.38999999999999996,"d":"0.39"},0.6,0.6,85,0,{"$f":"ROUND(Primes!$O$7*V5145,0)","v":4},{"$f":"'BP Financier'!$E$33*(('BP Financier'!$C$19+'BP Financier'!$D$19+'BP Financier'!$E$19)/('BP Financier'!$C$16+'BP Financier'!$C$19+'BP Financier'!$D$16+'BP Financier'!$D$19+'BP Financier'!$E$16+'BP Financier'!$E$19))*V5145","v":{"v":102735.5056781409,"d":"102,736"}},{"v":57618.87004766081,"d":"57,619"},{"$f":"'BP Financier'!$E$44*(('BP Financier'!$C$19+'BP Financier'!$D$19+'BP Financier'!$E$19)/('BP Financier'!$C$16+'BP Financier'!$C$19+'BP Financier'!$D$16+'BP Financier'!$D$19+'BP Financier'!$E$16+'BP Financier'!$E$19+'BP Financier'!$C$22+'BP Financier'!$D$22+'BP Financier'!$E$22))*$V5145*X5145/(1-$W5145)","v":{"v":7334.047453323915,"d":"7,334"}},{"$f":"'BP Financier'!$E$44*(('BP Financier'!$C$19+'BP Financier'!$D$19+'BP Financier'!$E$19)/('BP Financier'!$C$16+'BP Financier'!$C$19+'BP Financier'!$D$16+'BP Financier'!$D$19+'BP Financier'!$E$16+'BP Financier'!$E$19+'BP Financier'!$C$22+'BP Financier'!$D$22+'BP Financier'!$E$22))*$V5145*Y5145/(1-$W5145)","v":{"v":4902.8715019458205,"d":"4,903"}},{"$f":"'BP Financier'!$E$44*(('BP Financier'!$C$19+'BP Financier'!$D$19+'BP Financier'!$E$19)/('BP Financier'!$C$16+'BP Financier'!$C$19+'BP Financier'!$D$16+'BP Financier'!$D$19+'BP Financier'!$E$16+'BP Financier'!$E$19+'BP Financier'!$C$22+'BP Financier'!$D$22+'BP Financier'!$E$22))*$V5145*Z5145/(1-$W5145)","v":{"v":38372.060432584236,"d":"38,372"}},{"$f":"'BP Financier'!$E$44*(('BP Financier'!$C$19+'BP Financier'!$D$19+'BP Financier'!$E$19)/('BP Financier'!$C$16+'BP Financier'!$C$19+'BP Financier'!$D$16+'BP Financier'!$D$19+'BP Financier'!$E$16+'BP Financier'!$E$19+'BP Financier'!$C$22+'BP Financier'!$D$22+'BP Financier'!$E$22))*$V5145*AA5145/(1-$W5145)","v":{"v":4740.793105187282,"d":"4,741"}},{"$f":"'BP Financier'!$E$44*(('BP Financier'!$C$19+'BP Financier'!$D$19+'BP Financier'!$E$19)/('BP Financier'!$C$16+'BP Financier'!$C$19+'BP Financier'!$D$16+'BP Financier'!$D$19+'BP Financier'!$E$16+'BP Financier'!$E$19+'BP Financier'!$C$22+'BP Financier'!$D$22+'BP Financier'!$E$22))*$V5145*AB5145/(1-$W5145)","v":{"v":2269.097554619553,"d":"2,269"}},null,{"v":0.005,"d":"0.50%"},{"$f":"Actif!$E$28/100","v":{"v":0.28900000000000003,"d":"28.90%"}},{"$f":"Actif!$E$30/100","v":{"v":0.09050000000000001,"d":"9.05%"}},{"$f":"Actif!$E$31/100","v":{"v":0.0605,"d":"6.05%"}},{"$f":"Actif!$E$32/100","v":{"v":0.47350000000000003,"d":"47.35%"}},{"$f":"Actif!$E$33/100","v":{"v":0.0585,"d":"5.85%"}},{"$f":"Actif!$E$29/100","v":{"v":0.027999999999999997,"d":"2.80%"}}]
[null,"#42",31,2029,"H","A_PER",{"v":0.44999999999999996,"d":"0.45"},{"v":0.38999999999999996,"d":"0.39"},0.6,0.6,85,0,{"$f":"ROUND(Primes!$O$7*V5146,0)","v":4},{"$f":"'BP Financier'!$E$33*(('BP Financier'!$C$19+'BP Financier'!$D$19+'BP Financier'!$E$19)/('BP Financier'!$C$16+'BP Financier'!$C$19+'BP Financier'!$D$16+'BP Financier'!$D$19+'BP Financier'!$E$16+'BP Financier'!$E$19))*V5146","v":{"v":102735.5056781409,"d":"102,736"}},{"v":57618.87004766081,"d":"57,619"},{"$f":"'BP Financier'!$E$44*(('BP Financier'!$C$19+'BP Financier'!$D$19+'BP Financier'!$E$19)/('BP Financier'!$C$16+'BP Financier'!$C$19+'BP Financier'!$D$16+'BP Financier'!$D$19+'BP Financier'!$E$16+'BP Financier'!$E$19+'BP Financier'!$C$22+'BP Financier'!$D$22+'BP Financier'!$E$22))*$V5146*X5146/(1-$W5146)","v":{"v":7334.047453323915,"d":"7,334"}},{"$f":"'BP Financier'!$E$44*(('BP Financier'!$C$19+'BP Financier'!$D$19+'BP Financier'!$E$19)/('BP Financier'!$C$16+'BP Financier'!$C$19+'BP Financier'!$D$16+'BP Financier'!$D$19+'BP Financier'!$E$16+'BP Financier'!$E$19+'BP Financier'!$C$22+'BP Financier'!$D$22+'BP Financier'!$E$22))*$V5146*Y5146/(1-$W5146)","v":{"v":4902.8715019458205,"d":"4,903"}},{"$f":"'BP Financier'!$E$44*(('BP Financier'!$C$19+'BP Financier'!$D$19+'BP Financier'!$E$19)/('BP Financier'!$C$16+'BP Financier'!$C$19+'BP Financier'!$D$16+'BP Financier'!$D$19+'BP Financier'!$E$16+'BP Financier'!$E$19+'BP Financier'!$C$22+'BP Financier'!$D$22+'BP Financier'!$E$22))*$V5146*Z5146/(1-$W5146)","v":{"v":38372.060432584236,"d":"38,372"}},{"$f":"'BP Financier'!$E$44*(('BP Financier'!$C$19+'BP Financier'!$D$19+'BP Financier'!$E$19)/('BP Financier'!$C$16+'BP Financier'!$C$19+'BP Financier'!$D$16+'BP Financier'!$D$19+'BP Financier'!$E$16+'BP Financier'!$E$19+'BP Financier'!$C$22+'BP Financier'!$D$22+'BP Financier'!$E$22))*$V5146*AA5146/(1-$W5146)","v":{"v":4740.793105187282,"d":"4,741"}},{"$f":"'BP Financier'!$E$44*(('BP Financier'!$C$19+'BP Financier'!$D$19+'BP Financier'!$E$19)/('BP Financier'!$C$16+'BP Financier'!$C$19+'BP Financier'!$D$16+'BP Financier'!$D$19+'BP Financier'!$E$16+'BP Financier'!$E$19+'BP Financier'!$C$22+'BP Financier'!$D$22+'BP Financier'!$E$22))*$V5146*AB5146/(1-$W5146)","v":{"v":2269.097554619553,"d":"2,269"}},null,{"v":0.005,"d":"0.50%"},{"$f":"Actif!$E$28/100","v":{"v":0.28900000000000003,"d":"28.90%"}},{"$f":"Actif!$E$30/100","v":{"v":0.09050000000000001,"d":"9.05%"}},{"$f":"Actif!$E$31/100","v":{"v":0.0605,"d":"6.05%"}},{"$f":"Actif!$E$32/100","v":{"v":0.47350000000000003,"d":"47.35%"}},{"$f":"Actif!$E$33/100","v":{"v":0.0585,"d":"5.85%"}},{"$f":"Actif!$E$29/100","v":{"v":0.027999999999999997,"d":"2.80%"}}]
[null,"#43",32,2026,"F","A_PER",{"v":0.44999999999999996,"d":"0.45"},{"v":0.38999999999999996,"d":"0.39"},0.6,0.6,85,0,{"$f":"ROUND(Primes!$O$7*V5147,0)","v":4},{"$f":"'BP Financier'!$E$33*(('BP Financier'!$C$19+'BP Financier'!$D$19+'BP Financier'!$E$19)/('BP Financier'!$C$16+'BP Financier'!$C$19+'BP Financier'!$D$16+'BP Financier'!$D$19+'BP Financier'!$E$16+'BP Financier'!$E$19))*V5147","v":{"v":102735.5056781409,"d":"102,736"}},{"v":57618.87004766081,"d":"57,619"},{"$f":"'BP Financier'!$E$44*(('BP Financier'!$C$19+'BP Financier'!$D$19+'BP Financier'!$E$19)/('BP Financier'!$C$16+'BP Financier'!$C$19+'BP Financier'!$D$16+'BP Financier'!$D$19+'BP Financier'!$E$16+'BP Financier'!$E$19+'BP Financier'!$C$22+'BP Financier'!$D$22+'BP Financier'!$E$22))*$V5147*X5147/(1-$W5147)","v":{"v":7334.047453323915,"d":"7,334"}},{"$f":"'BP Financier'!$E$44*(('BP Financier'!$C$19+'BP Financier'!$D$19+'BP Financier'!$E$19)/('BP Financier'!$C$16+'BP Financier'!$C$19+'BP Financier'!$D$16+'BP Financier'!$D$19+'BP Financier'!$E$16+'BP Financier'!$E$19+'BP Financier'!$C$22+'BP Financier'!$D$22+'BP Financier'!$E$22))*$V5147*Y5147/(1-$W5147)","v":{"v":4902.8715019458205,"d":"4,903"}},{"$f":"'BP Financier'!$E$44*(('BP Financier'!$C$19+'BP Financier'!$D$19+'BP Financier'!$E$19)/('BP Financier'!$C$16+'BP Financier'!$C$19+'BP Financier'!$D$16+'BP Financier'!$D$19+'BP Financier'!$E$16+'BP Financier'!$E$19+'BP Financier'!$C$22+'BP Financier'!$D$22+'BP Financier'!$E$22))*$V5147*Z5147/(1-$W5147)","v":{"v":38372.060432584236,"d":"38,372"}},{"$f":"'BP Financier'!$E$44*(('BP Financier'!$C$19+'BP Financier'!$D$19+'BP Financier'!$E$19)/('BP Financier'!$C$16+'BP Financier'!$C$19+'BP Financier'!$D$16+'BP Financier'!$D$19+'BP Financier'!$E$16+'BP Financier'!$E$19+'BP Financier'!$C$22+'BP Financier'!$D$22+'BP Financier'!$E$22))*$V5147*AA5147/(1-$W5147)","v":{"v":4740.793105187282,"d":"4,741"}},{"$f":"'BP Financier'!$E$44*(('BP Financier'!$C$19+'BP Financier'!$D$19+'BP Financier'!$E$19)/('BP Financier'!$C$16+'BP Financier'!$C$19+'BP Financier'!$D$16+'BP Financier'!$D$19+'BP Financier'!$E$16+'BP Financier'!$E$19+'BP Financier'!$C$22+'BP Financier'!$D$22+'BP Financier'!$E$22))*$V5147*AB5147/(1-$W5147)","v":{"v":2269.097554619553,"d":"2,269"}},null,{"v":0.005,"d":"0.50%"},{"$f":"Actif!$E$28/100","v":{"v":0.28900000000000003,"d":"28.90%"}},{"$f":"Actif!$E$30/100","v":{"v":0.09050000000000001,"d":"9.05%"}},{"$f":"Actif!$E$31/100","v":{"v":0.0605,"d":"6.05%"}},{"$f":"Actif!$E$32/100","v":{"v":0.47350000000000003,"d":"47.35%"}},{"$f":"Actif!$E$33/100","v":{"v":0.0585,"d":"5.85%"}},{"$f":"Actif!$E$29/100","v":{"v":0.027999999999999997,"d":"2.80%"}}]
[null,"#44",32,2028,"F","A_PER",{"v":0.44999999999999996,"d":"0.45"},{"v":0.38999999999999996,"d":"0.39"},0.6,0.6,85,0,{"$f":"ROUND(Primes!$O$7*V5148,0)","v":4},{"$f":"'BP Financier'!$E$33*(('BP Financier'!$C$19+'BP Financier'!$D$19+'BP Financier'!$E$19)/('BP Financier'!$C$16+'BP Financier'!$C$19+'BP Financier'!$D$16+'BP Financier'!$D$19+'BP Financier'!$E$16+'BP Financier'!$E$19))*V5148","v":{"v":102735.5056781409,"d":"102,736"}},{"v":57618.87004766081,"d":"57,619"},{"$f":"'BP Financier'!$E$44*(('BP Financier'!$C$19+'BP Financier'!$D$19+'BP Financier'!$E$19)/('BP Financier'!$C$16+'BP Financier'!$C$19+'BP Financier'!$D$16+'BP Financier'!$D$19+'BP Financier'!$E$16+'BP Financier'!$E$19+'BP Financier'!$C$22+'BP Financier'!$D$22+'BP Financier'!$E$22))*$V5148*X5148/(1-$W5148)","v":{"v":7334.047453323915,"d":"7,334"}},{"$f":"'BP Financier'!$E$44*(('BP Financier'!$C$19+'BP Financier'!$D$19+'BP Financier'!$E$19)/('BP Financier'!$C$16+'BP Financier'!$C$19+'BP Financier'!$D$16+'BP Financier'!$D$19+'BP Financier'!$E$16+'BP Financier'!$E$19+'BP Financier'!$C$22+'BP Financier'!$D$22+'BP Financier'!$E$22))*$V5148*Y5148/(1-$W5148)","v":{"v":4902.8715019458205,"d":"4,903"}},{"$f":"'BP Financier'!$E$44*(('BP Financier'!$C$19+'BP Financier'!$D$19+'BP Financier'!$E$19)/('BP Financier'!$C$16+'BP Financier'!$C$19+'BP Financier'!$D$16+'BP Financier'!$D$19+'BP Financier'!$E$16+'BP Financier'!$E$19+'BP Financier'!$C$22+'BP Financier'!$D$22+'BP Financier'!$E$22))*$V5148*Z5148/(1-$W5148)","v":{"v":38372.060432584236,"d":"38,372"}},{"$f":"'BP Financier'!$E$44*(('BP Financier'!$C$19+'BP Financier'!$D$19+'BP Financier'!$E$19)/('BP Financier'!$C$16+'BP Financier'!$C$19+'BP Financier'!$D$16+'BP Financier'!$D$19+'BP Financier'!$E$16+'BP Financier'!$E$19+'BP Financier'!$C$22+'BP Financier'!$D$22+'BP Financier'!$E$22))*$V5148*AA5148/(1-$W5148)","v":{"v":4740.793105187282,"d":"4,741"}},{"$f":"'BP Financier'!$E$44*(('BP Financier'!$C$19+'BP Financier'!$D$19+'BP Financier'!$E$19)/('BP Financier'!$C$16+'BP Financier'!$C$19+'BP Financier'!$D$16+'BP Financier'!$D$19+'BP Financier'!$E$16+'BP Financier'!$E$19+'BP Financier'!$C$22+'BP Financier'!$D$22+'BP Financier'!$E$22))*$V5148*AB5148/(1-$W5148)","v":{"v":2269.097554619553,"d":"2,269"}},null,{"v":0.005,"d":"0.50%"},{"$f":"Actif!$E$28/100","v":{"v":0.28900000000000003,"d":"28.90%"}},{"$f":"Actif!$E$30/100","v":{"v":0.09050000000000001,"d":"9.05%"}},{"$f":"Actif!$E$31/100","v":{"v":0.0605,"d":"6.05%"}},{"$f":"Actif!$E$32/100","v":{"v":0.47350000000000003,"d":"47.35%"}},{"$f":"Actif!$E$33/100","v":{"v":0.0585,"d":"5.85%"}},{"$f":"Actif!$E$29/100","v":{"v":0.027999999999999997,"d":"2.80%"}}]
[null,"#45",32,2029,"F","A_PER",{"v":0.44999999999999996,"d":"0.45"},{"v":0.38999999999999996,"d":"0.39"},0.6,0.6,85,0,{"$f":"ROUND(Primes!$O$7*V5149,0)","v":4},{"$f":"'BP Financier'!$E$33*(('BP Financier'!$C$19+'BP Financier'!$D$19+'BP Financier'!$E$19)/('BP Financier'!$C$16+'BP Financier'!$C$19+'BP Financier'!$D$16+'BP Financier'!$D$19+'BP Financier'!$E$16+'BP Financier'!$E$19))*V5149","v":{"v":102735.5056781409,"d":"102,736"}},{"v":57618.87004766081,"d":"57,619"},{"$f":"'BP Financier'!$E$44*(('BP Financier'!$C$19+'BP Financier'!$D$19+'BP Financier'!$E$19)/('BP Financier'!$C$16+'BP Financier'!$C$19+'BP Financier'!$D$16+'BP Financier'!$D$19+'BP Financier'!$E$16+'BP Financier'!$E$19+'BP Financier'!$C$22+'BP Financier'!$D$22+'BP Financier'!$E$22))*$V5149*X5149/(1-$W5149)","v":{"v":7334.047453323915,"d":"7,334"}},{"$f":"'BP Financier'!$E$44*(('BP Financier'!$C$19+'BP Financier'!$D$19+'BP Financier'!$E$19)/('BP Financier'!$C$16+'BP Financier'!$C$19+'BP Financier'!$D$16+'BP Financier'!$D$19+'BP Financier'!$E$16+'BP Financier'!$E$19+'BP Financier'!$C$22+'BP Financier'!$D$22+'BP Financier'!$E$22))*$V5149*Y5149/(1-$W5149)","v":{"v":4902.8715019458205,"d":"4,903"}},{"$f":"'BP Financier'!$E$44*(('BP Financier'!$C$19+'BP Financier'!$D$19+'BP Financier'!$E$19)/('BP Financier'!$C$16+'BP Financier'!$C$19+'BP Financier'!$D$16+'BP Financier'!$D$19+'BP Financier'!$E$16+'BP Financier'!$E$19+'BP Financier'!$C$22+'BP Financier'!$D$22+'BP Financier'!$E$22))*$V5149*Z5149/(1-$W5149)","v":{"v":38372.060432584236,"d":"38,372"}},{"$f":"'BP Financier'!$E$44*(('BP Financier'!$C$19+'BP Financier'!$D$19+'BP Financier'!$E$19)/('BP Financier'!$C$16+'BP Financier'!$C$19+'BP Financier'!$D$16+'BP Financier'!$D$19+'BP Financier'!$E$16+'BP Financier'!$E$19+'BP Financier'!$C$22+'BP Financier'!$D$22+'BP Financier'!$E$22))*$V5149*AA5149/(1-$W5149)","v":{"v":4740.793105187282,"d":"4,741"}},{"$f":"'BP Financier'!$E$44*(('BP Financier'!$C$19+'BP Financier'!$D$19+'BP Financier'!$E$19)/('BP Financier'!$C$16+'BP Financier'!$C$19+'BP Financier'!$D$16+'BP Financier'!$D$19+'BP Financier'!$E$16+'BP Financier'!$E$19+'BP Financier'!$C$22+'BP Financier'!$D$22+'BP Financier'!$E$22))*$V5149*AB5149/(1-$W5149)","v":{"v":2269.097554619553,"d":"2,269"}},null,{"v":0.005,"d":"0.50%"},{"$f":"Actif!$E$28/100","v":{"v":0.28900000000000003,"d":"28.90%"}},{"$f":"Actif!$E$30/100","v":{"v":0.09050000000000001,"d":"9.05%"}},{"$f":"Actif!$E$31/100","v":{"v":0.0605,"d":"6.05%"}},{"$f":"Actif!$E$32/100","v":{"v":0.47350000000000003,"d":"47.35%"}},{"$f":"Actif!$E$33/100","v":{"v":0.0585,"d":"5.85%"}},{"$f":"Actif!$E$29/100","v":{"v":0.027999999999999997,"d":"2.80%"}}]
[null,"#46",33,2026,"H","A_PER",{"v":0.44999999999999996,"d":"0.45"},{"v":0.38999999999999996,"d":"0.39"},0.6,0.6,85,0,{"$f":"ROUND(Primes!$O$7*V5150,0)","v":4},{"$f":"'BP Financier'!$E$33*(('BP Financier'!$C$19+'BP Financier'!$D$19+'BP Financier'!$E$19)/('BP Financier'!$C$16+'BP Financier'!$C$19+'BP Financier'!$D$16+'BP Financier'!$D$19+'BP Financier'!$E$16+'BP Financier'!$E$19))*V5150","v":{"v":102735.5056781409,"d":"102,736"}},{"v":57618.87004766081,"d":"57,619"},{"$f":"'BP Financier'!$E$44*(('BP Financier'!$C$19+'BP Financier'!$D$19+'BP Financier'!$E$19)/('BP Financier'!$C$16+'BP Financier'!$C$19+'BP Financier'!$D$16+'BP Financier'!$D$19+'BP Financier'!$E$16+'BP Financier'!$E$19+'BP Financier'!$C$22+'BP Financier'!$D$22+'BP Financier'!$E$22))*$V5150*X5150/(1-$W5150)","v":{"v":7334.047453323915,"d":"7,334"}},{"$f":"'BP Financier'!$E$44*(('BP Financier'!$C$19+'BP Financier'!$D$19+'BP Financier'!$E$19)/('BP Financier'!$C$16+'BP Financier'!$C$19+'BP Financier'!$D$16+'BP Financier'!$D$19+'BP Financier'!$E$16+'BP Financier'!$E$19+'BP Financier'!$C$22+'BP Financier'!$D$22+'BP Financier'!$E$22))*$V5150*Y5150/(1-$W5150)","v":{"v":4902.8715019458205,"d":"4,903"}},{"$f":"'BP Financier'!$E$44*(('BP Financier'!$C$19+'BP Financier'!$D$19+'BP Financier'!$E$19)/('BP Financier'!$C$16+'BP Financier'!$C$19+'BP Financier'!$D$16+'BP Financier'!$D$19+'BP Financier'!$E$16+'BP Financier'!$E$19+'BP Financier'!$C$22+'BP Financier'!$D$22+'BP Financier'!$E$22))*$V5150*Z5150/(1-$W5150)","v":{"v":38372.060432584236,"d":"38,372"}},{"$f":"'BP Financier'!$E$44*(('BP Financier'!$C$19+'BP Financier'!$D$19+'BP Financier'!$E$19)/('BP Financier'!$C$16+'BP Financier'!$C$19+'BP Financier'!$D$16+'BP Financier'!$D$19+'BP Financier'!$E$16+'BP Financier'!$E$19+'BP Financier'!$C$22+'BP Financier'!$D$22+'BP Financier'!$E$22))*$V5150*AA5150/(1-$W5150)","v":{"v":4740.793105187282,"d":"4,741"}},{"$f":"'BP Financier'!$E$44*(('BP Financier'!$C$19+'BP Financier'!$D$19+'BP Financier'!$E$19)/('BP Financier'!$C$16+'BP Financier'!$C$19+'BP Financier'!$D$16+'BP Financier'!$D$19+'BP Financier'!$E$16+'BP Financier'!$E$19+'BP Financier'!$C$22+'BP Financier'!$D$22+'BP Financier'!$E$22))*$V5150*AB5150/(1-$W5150)","v":{"v":2269.097554619553,"d":"2,269"}},null,{"v":0.005,"d":"0.50%"},{"$f":"Actif!$E$28/100","v":{"v":0.28900000000000003,"d":"28.90%"}},{"$f":"Actif!$E$30/100","v":{"v":0.09050000000000001,"d":"9.05%"}},{"$f":"Actif!$E$31/100","v":{"v":0.0605,"d":"6.05%"}},{"$f":"Actif!$E$32/100","v":{"v":0.47350000000000003,"d":"47.35%"}},{"$f":"Actif!$E$33/100","v":{"v":0.0585,"d":"5.85%"}},{"$f":"Actif!$E$29/100","v":{"v":0.027999999999999997,"d":"2.80%"}}]
[null,"#47",33,2028,"H","A_PER",{"v":0.44999999999999996,"d":"0.45"},{"v":0.38999999999999996,"d":"0.39"},0.6,0.6,85,0,{"$f":"ROUND(Primes!$O$7*V5151,0)","v":4},{"$f":"'BP Financier'!$E$33*(('BP Financier'!$C$19+'BP Financier'!$D$19+'BP Financier'!$E$19)/('BP Financier'!$C$16+'BP Financier'!$C$19+'BP Financier'!$D$16+'BP Financier'!$D$19+'BP Financier'!$E$16+'BP Financier'!$E$19))*V5151","v":{"v":102735.5056781409,"d":"102,736"}},{"v":57618.87004766081,"d":"57,619"},{"$f":"'BP Financier'!$E$44*(('BP Financier'!$C$19+'BP Financier'!$D$19+'BP Financier'!$E$19)/('BP Financier'!$C$16+'BP Financier'!$C$19+'BP Financier'!$D$16+'BP Financier'!$D$19+'BP Financier'!$E$16+'BP Financier'!$E$19+'BP Financier'!$C$22+'BP Financier'!$D$22+'BP Financier'!$E$22))*$V5151*X5151/(1-$W5151)","v":{"v":7334.047453323915,"d":"7,334"}},{"$f":"'BP Financier'!$E$44*(('BP Financier'!$C$19+'BP Financier'!$D$19+'BP Financier'!$E$19)/('BP Financier'!$C$16+'BP Financier'!$C$19+'BP Financier'!$D$16+'BP Financier'!$D$19+'BP Financier'!$E$16+'BP Financier'!$E$19+'BP Financier'!$C$22+'BP Financier'!$D$22+'BP Financier'!$E$22))*$V5151*Y5151/(1-$W5151)","v":{"v":4902.8715019458205,"d":"4,903"}},{"$f":"'BP Financier'!$E$44*(('BP Financier'!$C$19+'BP Financier'!$D$19+'BP Financier'!$E$19)/('BP Financier'!$C$16+'BP Financier'!$C$19+'BP Financier'!$D$16+'BP Financier'!$D$19+'BP Financier'!$E$16+'BP Financier'!$E$19+'BP Financier'!$C$22+'BP Financier'!$D$22+'BP Financier'!$E$22))*$V5151*Z5151/(1-$W5151)","v":{"v":38372.060432584236,"d":"38,372"}},{"$f":"'BP Financier'!$E$44*(('BP Financier'!$C$19+'BP Financier'!$D$19+'BP Financier'!$E$19)/('BP Financier'!$C$16+'BP Financier'!$C$19+'BP Financier'!$D$16+'BP Financier'!$D$19+'BP Financier'!$E$16+'BP Financier'!$E$19+'BP Financier'!$C$22+'BP Financier'!$D$22+'BP Financier'!$E$22))*$V5151*AA5151/(1-$W5151)","v":{"v":4740.793105187282,"d":"4,741"}},{"$f":"'BP Financier'!$E$44*(('BP Financier'!$C$19+'BP Financier'!$D$19+'BP Financier'!$E$19)/('BP Financier'!$C$16+'BP Financier'!$C$19+'BP Financier'!$D$16+'BP Financier'!$D$19+'BP Financier'!$E$16+'BP Financier'!$E$19+'BP Financier'!$C$22+'BP Financier'!$D$22+'BP Financier'!$E$22))*$V5151*AB5151/(1-$W5151)","v":{"v":2269.097554619553,"d":"2,269"}},null,{"v":0.005,"d":"0.50%"},{"$f":"Actif!$E$28/100","v":{"v":0.28900000000000003,"d":"28.90%"}},{"$f":"Actif!$E$30/100","v":{"v":0.09050000000000001,"d":"9.05%"}},{"$f":"Actif!$E$31/100","v":{"v":0.0605,"d":"6.05%"}},{"$f":"Actif!$E$32/100","v":{"v":0.47350000000000003,"d":"47.35%"}},{"$f":"Actif!$E$33/100","v":{"v":0.0585,"d":"5.85%"}},{"$f":"Actif!$E$29/100","v":{"v":0.027999999999999997,"d":"2.80%"}}]
[null,"#48",33,2029,"H","A_PER",{"v":0.44999999999999996,"d":"0.45"},{"v":0.38999999999999996,"d":"0.39"},0.6,0.6,85,0,{"$f":"ROUND(Primes!$O$7*V5152,0)","v":4},{"$f":"'BP Financier'!$E$33*(('BP Financier'!$C$19+'BP Financier'!$D$19+'BP Financier'!$E$19)/('BP Financier'!$C$16+'BP Financier'!$C$19+'BP Financier'!$D$16+'BP Financier'!$D$19+'BP Financier'!$E$16+'BP Financier'!$E$19))*V5152","v":{"v":102735.5056781409,"d":"102,736"}},{"v":57618.87004766081,"d":"57,619"},{"$f":"'BP Financier'!$E$44*(('BP Financier'!$C$19+'BP Financier'!$D$19+'BP Financier'!$E$19)/('BP Financier'!$C$16+'BP Financier'!$C$19+'BP Financier'!$D$16+'BP Financier'!$D$19+'BP Financier'!$E$16+'BP Financier'!$E$19+'BP Financier'!$C$22+'BP Financier'!$D$22+'BP Financier'!$E$22))*$V5152*X5152/(1-$W5152)","v":{"v":7334.047453323915,"d":"7,334"}},{"$f":"'BP Financier'!$E$44*(('BP Financier'!$C$19+'BP Financier'!$D$19+'BP Financier'!$E$19)/('BP Financier'!$C$16+'BP Financier'!$C$19+'BP Financier'!$D$16+'BP Financier'!$D$19+'BP Financier'!$E$16+'BP Financier'!$E$19+'BP Financier'!$C$22+'BP Financier'!$D$22+'BP Financier'!$E$22))*$V5152*Y5152/(1-$W5152)","v":{"v":4902.8715019458205,"d":"4,903"}},{"$f":"'BP Financier'!$E$44*(('BP Financier'!$C$19+'BP Financier'!$D$19+'BP Financier'!$E$19)/('BP Financier'!$C$16+'BP Financier'!$C$19+'BP Financier'!$D$16+'BP Financier'!$D$19+'BP Financier'!$E$16+'BP Financier'!$E$19+'BP Financier'!$C$22+'BP Financier'!$D$22+'BP Financier'!$E$22))*$V5152*Z5152/(1-$W5152)","v":{"v":38372.060432584236,"d":"38,372"}},{"$f":"'BP Financier'!$E$44*(('BP Financier'!$C$19+'BP Financier'!$D$19+'BP Financier'!$E$19)/('BP Financier'!$C$16+'BP Financier'!$C$19+'BP Financier'!$D$16+'BP Financier'!$D$19+'BP Financier'!$E$16+'BP Financier'!$E$19+'BP Financier'!$C$22+'BP Financier'!$D$22+'BP Financier'!$E$22))*$V5152*AA5152/(1-$W5152)","v":{"v":4740.793105187282,"d":"4,741"}},{"$f":"'BP Financier'!$E$44*(('BP Financier'!$C$19+'BP Financier'!$D$19+'BP Financier'!$E$19)/('BP Financier'!$C$16+'BP Financier'!$C$19+'BP Financier'!$D$16+'BP Financier'!$D$19+'BP Financier'!$E$16+'BP Financier'!$E$19+'BP Financier'!$C$22+'BP Financier'!$D$22+'BP Financier'!$E$22))*$V5152*AB5152/(1-$W5152)","v":{"v":2269.097554619553,"d":"2,269"}},null,{"v":0.005,"d":"0.50%"},{"$f":"Actif!$E$28/100","v":{"v":0.28900000000000003,"d":"28.90%"}},{"$f":"Actif!$E$30/100","v":{"v":0.09050000000000001,"d":"9.05%"}},{"$f":"Actif!$E$31/100","v":{"v":0.0605,"d":"6.05%"}},{"$f":"Actif!$E$32/100","v":{"v":0.47350000000000003,"d":"47.35%"}},{"$f":"Actif!$E$33/100","v":{"v":0.0585,"d":"5.85%"}},{"$f":"Actif!$E$29/100","v":{"v":0.027999999999999997,"d":"2.80%"}}]
[null,"#49",34,2026,"H","A_PER",{"v":0.44999999999999996,"d":"0.45"},{"v":0.38999999999999996,"d":"0.39"},0.6,0.6,85,0,{"$f":"ROUND(Primes!$O$7*V5153,0)","v":4},{"$f":"'BP Financier'!$E$33*(('BP Financier'!$C$19+'BP Financier'!$D$19+'BP Financier'!$E$19)/('BP Financier'!$C$16+'BP Financier'!$C$19+'BP Financier'!$D$16+'BP Financier'!$D$19+'BP Financier'!$E$16+'BP Financier'!$E$19))*V5153","v":{"v":102735.5056781409,"d":"102,736"}},{"v":57618.87004766081,"d":"57,619"},{"$f":"'BP Financier'!$E$44*(('BP Financier'!$C$19+'BP Financier'!$D$19+'BP Financier'!$E$19)/('BP Financier'!$C$16+'BP Financier'!$C$19+'BP Financier'!$D$16+'BP Financier'!$D$19+'BP Financier'!$E$16+'BP Financier'!$E$19+'BP Financier'!$C$22+'BP Financier'!$D$22+'BP Financier'!$E$22))*$V5153*X5153/(1-$W5153)","v":{"v":7334.047453323915,"d":"7,334"}},{"$f":"'BP Financier'!$E$44*(('BP Financier'!$C$19+'BP Financier'!$D$19+'BP Financier'!$E$19)/('BP Financier'!$C$16+'BP Financier'!$C$19+'BP Financier'!$D$16+'BP Financier'!$D$19+'BP Financier'!$E$16+'BP Financier'!$E$19+'BP Financier'!$C$22+'BP Financier'!$D$22+'BP Financier'!$E$22))*$V5153*Y5153/(1-$W5153)","v":{"v":4902.8715019458205,"d":"4,903"}},{"$f":"'BP Financier'!$E$44*(('BP Financier'!$C$19+'BP Financier'!$D$19+'BP Financier'!$E$19)/('BP Financier'!$C$16+'BP Financier'!$C$19+'BP Financier'!$D$16+'BP Financier'!$D$19+'BP Financier'!$E$16+'BP Financier'!$E$19+'BP Financier'!$C$22+'BP Financier'!$D$22+'BP Financier'!$E$22))*$V5153*Z5153/(1-$W5153)","v":{"v":38372.060432584236,"d":"38,372"}},{"$f":"'BP Financier'!$E$44*(('BP Financier'!$C$19+'BP Financier'!$D$19+'BP Financier'!$E$19)/('BP Financier'!$C$16+'BP Financier'!$C$19+'BP Financier'!$D$16+'BP Financier'!$D$19+'BP Financier'!$E$16+'BP Financier'!$E$19+'BP Financier'!$C$22+'BP Financier'!$D$22+'BP Financier'!$E$22))*$V5153*AA5153/(1-$W5153)","v":{"v":4740.793105187282,"d":"4,741"}},{"$f":"'BP Financier'!$E$44*(('BP Financier'!$C$19+'BP Financier'!$D$19+'BP Financier'!$E$19)/('BP Financier'!$C$16+'BP Financier'!$C$19+'BP Financier'!$D$16+'BP Financier'!$D$19+'BP Financier'!$E$16+'BP Financier'!$E$19+'BP Financier'!$C$22+'BP Financier'!$D$22+'BP Financier'!$E$22))*$V5153*AB5153/(1-$W5153)","v":{"v":2269.097554619553,"d":"2,269"}},null,{"v":0.005,"d":"0.50%"},{"$f":"Actif!$E$28/100","v":{"v":0.28900000000000003,"d":"28.90%"}},{"$f":"Actif!$E$30/100","v":{"v":0.09050000000000001,"d":"9.05%"}},{"$f":"Actif!$E$31/100","v":{"v":0.0605,"d":"6.05%"}},{"$f":"Actif!$E$32/100","v":{"v":0.47350000000000003,"d":"47.35%"}},{"$f":"Actif!$E$33/100","v":{"v":0.0585,"d":"5.85%"}},{"$f":"Actif!$E$29/100","v":{"v":0.027999999999999997,"d":"2.80%"}}]
[null,"#50",34,2028,"H","A_PER",{"v":0.44999999999999996,"d":"0.45"},{"v":0.38999999999999996,"d":"0.39"},0.6,0.6,85,0,{"$f":"ROUND(Primes!$O$7*V5154,0)","v":4},{"$f":"'BP Financier'!$E$33*(('BP Financier'!$C$19+'BP Financier'!$D$19+'BP Financier'!$E$19)/('BP Financier'!$C$16+'BP Financier'!$C$19+'BP Financier'!$D$16+'BP Financier'!$D$19+'BP Financier'!$E$16+'BP Financier'!$E$19))*V5154","v":{"v":102735.5056781409,"d":"102,736"}},{"v":57618.87004766081,"d":"57,619"},{"$f":"'BP Financier'!$E$44*(('BP Financier'!$C$19+'BP Financier'!$D$19+'BP Financier'!$E$19)/('BP Financier'!$C$16+'BP Financier'!$C$19+'BP Financier'!$D$16+'BP Financier'!$D$19+'BP Financier'!$E$16+'BP Financier'!$E$19+'BP Financier'!$C$22+'BP Financier'!$D$22+'BP Financier'!$E$22))*$V5154*X5154/(1-$W5154)","v":{"v":7334.047453323915,"d":"7,334"}},{"$f":"'BP Financier'!$E$44*(('BP Financier'!$C$19+'BP Financier'!$D$19+'BP Financier'!$E$19)/('BP Financier'!$C$16+'BP Financier'!$C$19+'BP Financier'!$D$16+'BP Financier'!$D$19+'BP Financier'!$E$16+'BP Financier'!$E$19+'BP Financier'!$C$22+'BP Financier'!$D$22+'BP Financier'!$E$22))*$V5154*Y5154/(1-$W5154)","v":{"v":4902.8715019458205,"d":"4,903"}},{"$f":"'BP Financier'!$E$44*(('BP Financier'!$C$19+'BP Financier'!$D$19+'BP Financier'!$E$19)/('BP Financier'!$C$16+'BP Financier'!$C$19+'BP Financier'!$D$16+'BP Financier'!$D$19+'BP Financier'!$E$16+'BP Financier'!$E$19+'BP Financier'!$C$22+'BP Financier'!$D$22+'BP Financier'!$E$22))*$V5154*Z5154/(1-$W5154)","v":{"v":38372.060432584236,"d":"38,372"}},{"$f":"'BP Financier'!$E$44*(('BP Financier'!$C$19+'BP Financier'!$D$19+'BP Financier'!$E$19)/('BP Financier'!$C$16+'BP Financier'!$C$19+'BP Financier'!$D$16+'BP Financier'!$D$19+'BP Financier'!$E$16+'BP Financier'!$E$19+'BP Financier'!$C$22+'BP Financier'!$D$22+'BP Financier'!$E$22))*$V5154*AA5154/(1-$W5154)","v":{"v":4740.793105187282,"d":"4,741"}},{"$f":"'BP Financier'!$E$44*(('BP Financier'!$C$19+'BP Financier'!$D$19+'BP Financier'!$E$19)/('BP Financier'!$C$16+'BP Financier'!$C$19+'BP Financier'!$D$16+'BP Financier'!$D$19+'BP Financier'!$E$16+'BP Financier'!$E$19+'BP Financier'!$C$22+'BP Financier'!$D$22+'BP Financier'!$E$22))*$V5154*AB5154/(1-$W5154)","v":{"v":2269.097554619553,"d":"2,269"}},null,{"v":0.005,"d":"0.50%"},{"$f":"Actif!$E$28/100","v":{"v":0.28900000000000003,"d":"28.90%"}},{"$f":"Actif!$E$30/100","v":{"v":0.09050000000000001,"d":"9.05%"}},{"$f":"Actif!$E$31/100","v":{"v":0.0605,"d":"6.05%"}},{"$f":"Actif!$E$32/100","v":{"v":0.47350000000000003,"d":"47.35%"}},{"$f":"Actif!$E$33/100","v":{"v":0.0585,"d":"5.85%"}},{"$f":"Actif!$E$29/100","v":{"v":0.027999999999999997,"d":"2.80%"}}]
[null,"#51",34,2029,"H","A_PER",{"v":0.44999999999999996,"d":"0.45"},{"v":0.38999999999999996,"d":"0.39"},0.6,0.6,85,0,{"$f":"ROUND(Primes!$O$7*V5155,0)","v":4},{"$f":"'BP Financier'!$E$33*(('BP Financier'!$C$19+'BP Financier'!$D$19+'BP Financier'!$E$19)/('BP Financier'!$C$16+'BP Financier'!$C$19+'BP Financier'!$D$16+'BP Financier'!$D$19+'BP Financier'!$E$16+'BP Financier'!$E$19))*V5155","v":{"v":102735.5056781409,"d":"102,736"}},{"v":57618.87004766081,"d":"57,619"},{"$f":"'BP Financier'!$E$44*(('BP Financier'!$C$19+'BP Financier'!$D$19+'BP Financier'!$E$19)/('BP Financier'!$C$16+'BP Financier'!$C$19+'BP Financier'!$D$16+'BP Financier'!$D$19+'BP Financier'!$E$16+'BP Financier'!$E$19+'BP Financier'!$C$22+'BP Financier'!$D$22+'BP Financier'!$E$22))*$V5155*X5155/(1-$W5155)","v":{"v":7334.047453323915,"d":"7,334"}},{"$f":"'BP Financier'!$E$44*(('BP Financier'!$C$19+'BP Financier'!$D$19+'BP Financier'!$E$19)/('BP Financier'!$C$16+'BP Financier'!$C$19+'BP Financier'!$D$16+'BP Financier'!$D$19+'BP Financier'!$E$16+'BP Financier'!$E$19+'BP Financier'!$C$22+'BP Financier'!$D$22+'BP Financier'!$E$22))*$V5155*Y5155/(1-$W5155)","v":{"v":4902.8715019458205,"d":"4,903"}},{"$f":"'BP Financier'!$E$44*(('BP Financier'!$C$19+'BP Financier'!$D$19+'BP Financier'!$E$19)/('BP Financier'!$C$16+'BP Financier'!$C$19+'BP Financier'!$D$16+'BP Financier'!$D$19+'BP Financier'!$E$16+'BP Financier'!$E$19+'BP Financier'!$C$22+'BP Financier'!$D$22+'BP Financier'!$E$22))*$V5155*Z5155/(1-$W5155)","v":{"v":38372.060432584236,"d":"38,372"}},{"$f":"'BP Financier'!$E$44*(('BP Financier'!$C$19+'BP Financier'!$D$19+'BP Financier'!$E$19)/('BP Financier'!$C$16+'BP Financier'!$C$19+'BP Financier'!$D$16+'BP Financier'!$D$19+'BP Financier'!$E$16+'BP Financier'!$E$19+'BP Financier'!$C$22+'BP Financier'!$D$22+'BP Financier'!$E$22))*$V5155*AA5155/(1-$W5155)","v":{"v":4740.793105187282,"d":"4,741"}},{"$f":"'BP Financier'!$E$44*(('BP Financier'!$C$19+'BP Financier'!$D$19+'BP Financier'!$E$19)/('BP Financier'!$C$16+'BP Financier'!$C$19+'BP Financier'!$D$16+'BP Financier'!$D$19+'BP Financier'!$E$16+'BP Financier'!$E$19+'BP Financier'!$C$22+'BP Financier'!$D$22+'BP Financier'!$E$22))*$V5155*AB5155/(1-$W5155)","v":{"v":2269.097554619553,"d":"2,269"}},null,{"v":0.005,"d":"0.50%"},{"$f":"Actif!$E$28/100","v":{"v":0.28900000000000003,"d":"28.90%"}},{"$f":"Actif!$E$30/100","v":{"v":0.09050000000000001,"d":"9.05%"}},{"$f":"Actif!$E$31/100","v":{"v":0.0605,"d":"6.05%"}},{"$f":"Actif!$E$32/100","v":{"v":0.47350000000000003,"d":"47.35%"}},{"$f":"Actif!$E$33/100","v":{"v":0.0585,"d":"5.85%"}},{"$f":"Actif!$E$29/100","v":{"v":0.027999999999999997,"d":"2.80%"}}]
[null,"#52",35,2026,"F","A_PER",{"v":0.44999999999999996,"d":"0.45"},{"v":0.38999999999999996,"d":"0.39"},0.6,0.6,85,0,{"$f":"ROUND(Primes!$O$7*V5156,0)","v":4},{"$f":"'BP Financier'!$E$33*(('BP Financier'!$C$19+'BP Financier'!$D$19+'BP Financier'!$E$19)/('BP Financier'!$C$16+'BP Financier'!$C$19+'BP Financier'!$D$16+'BP Financier'!$D$19+'BP Financier'!$E$16+'BP Financier'!$E$19))*V5156","v":{"v":102735.5056781409,"d":"102,736"}},{"v":57618.87004766081,"d":"57,619"},{"$f":"'BP Financier'!$E$44*(('BP Financier'!$C$19+'BP Financier'!$D$19+'BP Financier'!$E$19)/('BP Financier'!$C$16+'BP Financier'!$C$19+'BP Financier'!$D$16+'BP Financier'!$D$19+'BP Financier'!$E$16+'BP Financier'!$E$19+'BP Financier'!$C$22+'BP Financier'!$D$22+'BP Financier'!$E$22))*$V5156*X5156/(1-$W5156)","v":{"v":7334.047453323915,"d":"7,334"}},{"$f":"'BP Financier'!$E$44*(('BP Financier'!$C$19+'BP Financier'!$D$19+'BP Financier'!$E$19)/('BP Financier'!$C$16+'BP Financier'!$C$19+'BP Financier'!$D$16+'BP Financier'!$D$19+'BP Financier'!$E$16+'BP Financier'!$E$19+'BP Financier'!$C$22+'BP Financier'!$D$22+'BP Financier'!$E$22))*$V5156*Y5156/(1-$W5156)","v":{"v":4902.8715019458205,"d":"4,903"}},{"$f":"'BP Financier'!$E$44*(('BP Financier'!$C$19+'BP Financier'!$D$19+'BP Financier'!$E$19)/('BP Financier'!$C$16+'BP Financier'!$C$19+'BP Financier'!$D$16+'BP Financier'!$D$19+'BP Financier'!$E$16+'BP Financier'!$E$19+'BP Financier'!$C$22+'BP Financier'!$D$22+'BP Financier'!$E$22))*$V5156*Z5156/(1-$W5156)","v":{"v":38372.060432584236,"d":"38,372"}},{"$f":"'BP Financier'!$E$44*(('BP Financier'!$C$19+'BP Financier'!$D$19+'BP Financier'!$E$19)/('BP Financier'!$C$16+'BP Financier'!$C$19+'BP Financier'!$D$16+'BP Financier'!$D$19+'BP Financier'!$E$16+'BP Financier'!$E$19+'BP Financier'!$C$22+'BP Financier'!$D$22+'BP Financier'!$E$22))*$V5156*AA5156/(1-$W5156)","v":{"v":4740.793105187282,"d":"4,741"}},{"$f":"'BP Financier'!$E$44*(('BP Financier'!$C$19+'BP Financier'!$D$19+'BP Financier'!$E$19)/('BP Financier'!$C$16+'BP Financier'!$C$19+'BP Financier'!$D$16+'BP Financier'!$D$19+'BP Financier'!$E$16+'BP Financier'!$E$19+'BP Financier'!$C$22+'BP Financier'!$D$22+'BP Financier'!$E$22))*$V5156*AB5156/(1-$W5156)","v":{"v":2269.097554619553,"d":"2,269"}},null,{"v":0.005,"d":"0.50%"},{"$f":"Actif!$E$28/100","v":{"v":0.28900000000000003,"d":"28.90%"}},{"$f":"Actif!$E$30/100","v":{"v":0.09050000000000001,"d":"9.05%"}},{"$f":"Actif!$E$31/100","v":{"v":0.0605,"d":"6.05%"}},{"$f":"Actif!$E$32/100","v":{"v":0.47350000000000003,"d":"47.35%"}},{"$f":"Actif!$E$33/100","v":{"v":0.0585,"d":"5.85%"}},{"$f":"Actif!$E$29/100","v":{"v":0.027999999999999997,"d":"2.80%"}}]
[null,"#53",35,2028,"F","A_PER",{"v":0.44999999999999996,"d":"0.45"},{"v":0.38999999999999996,"d":"0.39"},0.6,0.6,85,0,{"$f":"ROUND(Primes!$O$7*V5157,0)","v":4},{"$f":"'BP Financier'!$E$33*(('BP Financier'!$C$19+'BP Financier'!$D$19+'BP Financier'!$E$19)/('BP Financier'!$C$16+'BP Financier'!$C$19+'BP Financier'!$D$16+'BP Financier'!$D$19+'BP Financier'!$E$16+'BP Financier'!$E$19))*V5157","v":{"v":102735.5056781409,"d":"102,736"}},{"v":57618.87004766081,"d":"57,619"},{"$f":"'BP Financier'!$E$44*(('BP Financier'!$C$19+'BP Financier'!$D$19+'BP Financier'!$E$19)/('BP Financier'!$C$16+'BP Financier'!$C$19+'BP Financier'!$D$16+'BP Financier'!$D$19+'BP Financier'!$E$16+'BP Financier'!$E$19+'BP Financier'!$C$22+'BP Financier'!$D$22+'BP Financier'!$E$22))*$V5157*X5157/(1-$W5157)","v":{"v":7334.047453323915,"d":"7,334"}},{"$f":"'BP Financier'!$E$44*(('BP Financier'!$C$19+'BP Financier'!$D$19+'BP Financier'!$E$19)/('BP Financier'!$C$16+'BP Financier'!$C$19+'BP Financier'!$D$16+'BP Financier'!$D$19+'BP Financier'!$E$16+'BP Financier'!$E$19+'BP Financier'!$C$22+'BP Financier'!$D$22+'BP Financier'!$E$22))*$V5157*Y5157/(1-$W5157)","v":{"v":4902.8715019458205,"d":"4,903"}},{"$f":"'BP Financier'!$E$44*(('BP Financier'!$C$19+'BP Financier'!$D$19+'BP Financier'!$E$19)/('BP Financier'!$C$16+'BP Financier'!$C$19+'BP Financier'!$D$16+'BP Financier'!$D$19+'BP Financier'!$E$16+'BP Financier'!$E$19+'BP Financier'!$C$22+'BP Financier'!$D$22+'BP Financier'!$E$22))*$V5157*Z5157/(1-$W5157)","v":{"v":38372.060432584236,"d":"38,372"}},{"$f":"'BP Financier'!$E$44*(('BP Financier'!$C$19+'BP Financier'!$D$19+'BP Financier'!$E$19)/('BP Financier'!$C$16+'BP Financier'!$C$19+'BP Financier'!$D$16+'BP Financier'!$D$19+'BP Financier'!$E$16+'BP Financier'!$E$19+'BP Financier'!$C$22+'BP Financier'!$D$22+'BP Financier'!$E$22))*$V5157*AA5157/(1-$W5157)","v":{"v":4740.793105187282,"d":"4,741"}},{"$f":"'BP Financier'!$E$44*(('BP Financier'!$C$19+'BP Financier'!$D$19+'BP Financier'!$E$19)/('BP Financier'!$C$16+'BP Financier'!$C$19+'BP Financier'!$D$16+'BP Financier'!$D$19+'BP Financier'!$E$16+'BP Financier'!$E$19+'BP Financier'!$C$22+'BP Financier'!$D$22+'BP Financier'!$E$22))*$V5157*AB5157/(1-$W5157)","v":{"v":2269.097554619553,"d":"2,269"}},null,{"v":0.005,"d":"0.50%"},{"$f":"Actif!$E$28/100","v":{"v":0.28900000000000003,"d":"28.90%"}},{"$f":"Actif!$E$30/100","v":{"v":0.09050000000000001,"d":"9.05%"}},{"$f":"Actif!$E$31/100","v":{"v":0.0605,"d":"6.05%"}},{"$f":"Actif!$E$32/100","v":{"v":0.47350000000000003,"d":"47.35%"}},{"$f":"Actif!$E$33/100","v":{"v":0.0585,"d":"5.85%"}},{"$f":"Actif!$E$29/100","v":{"v":0.027999999999999997,"d":"2.80%"}}]
[null,"#54",35,2029,"F","A_PER",{"v":0.44999999999999996,"d":"0.45"},{"v":0.38999999999999996,"d":"0.39"},0.6,0.6,85,0,{"$f":"ROUND(Primes!$O$7*V5158,0)","v":4},{"$f":"'BP Financier'!$E$33*(('BP Financier'!$C$19+'BP Financier'!$D$19+'BP Financier'!$E$19)/('BP Financier'!$C$16+'BP Financier'!$C$19+'BP Financier'!$D$16+'BP Financier'!$D$19+'BP Financier'!$E$16+'BP Financier'!$E$19))*V5158","v":{"v":102735.5056781409,"d":"102,736"}},{"v":57618.87004766081,"d":"57,619"},{"$f":"'BP Financier'!$E$44*(('BP Financier'!$C$19+'BP Financier'!$D$19+'BP Financier'!$E$19)/('BP Financier'!$C$16+'BP Financier'!$C$19+'BP Financier'!$D$16+'BP Financier'!$D$19+'BP Financier'!$E$16+'BP Financier'!$E$19+'BP Financier'!$C$22+'BP Financier'!$D$22+'BP Financier'!$E$22))*$V5158*X5158/(1-$W5158)","v":{"v":7334.047453323915,"d":"7,334"}},{"$f":"'BP Financier'!$E$44*(('BP Financier'!$C$19+'BP Financier'!$D$19+'BP Financier'!$E$19)/('BP Financier'!$C$16+'BP Financier'!$C$19+'BP Financier'!$D$16+'BP Financier'!$D$19+'BP Financier'!$E$16+'BP Financier'!$E$19+'BP Financier'!$C$22+'BP Financier'!$D$22+'BP Financier'!$E$22))*$V5158*Y5158/(1-$W5158)","v":{"v":4902.8715019458205,"d":"4,903"}},{"$f":"'BP Financier'!$E$44*(('BP Financier'!$C$19+'BP Financier'!$D$19+'BP Financier'!$E$19)/('BP Financier'!$C$16+'BP Financier'!$C$19+'BP Financier'!$D$16+'BP Financier'!$D$19+'BP Financier'!$E$16+'BP Financier'!$E$19+'BP Financier'!$C$22+'BP Financier'!$D$22+'BP Financier'!$E$22))*$V5158*Z5158/(1-$W5158)","v":{"v":38372.060432584236,"d":"38,372"}},{"$f":"'BP Financier'!$E$44*(('BP Financier'!$C$19+'BP Financier'!$D$19+'BP Financier'!$E$19)/('BP Financier'!$C$16+'BP Financier'!$C$19+'BP Financier'!$D$16+'BP Financier'!$D$19+'BP Financier'!$E$16+'BP Financier'!$E$19+'BP Financier'!$C$22+'BP Financier'!$D$22+'BP Financier'!$E$22))*$V5158*AA5158/(1-$W5158)","v":{"v":4740.793105187282,"d":"4,741"}},{"$f":"'BP Financier'!$E$44*(('BP Financier'!$C$19+'BP Financier'!$D$19+'BP Financier'!$E$19)/('BP Financier'!$C$16+'BP Financier'!$C$19+'BP Financier'!$D$16+'BP Financier'!$D$19+'BP Financier'!$E$16+'BP Financier'!$E$19+'BP Financier'!$C$22+'BP Financier'!$D$22+'BP Financier'!$E$22))*$V5158*AB5158/(1-$W5158)","v":{"v":2269.097554619553,"d":"2,269"}},null,{"v":0.005,"d":"0.50%"},{"$f":"Actif!$E$28/100","v":{"v":0.28900000000000003,"d":"28.90%"}},{"$f":"Actif!$E$30/100","v":{"v":0.09050000000000001,"d":"9.05%"}},{"$f":"Actif!$E$31/100","v":{"v":0.0605,"d":"6.05%"}},{"$f":"Actif!$E$32/100","v":{"v":0.47350000000000003,"d":"47.35%"}},{"$f":"Actif!$E$33/100","v":{"v":0.0585,"d":"5.85%"}},{"$f":"Actif!$E$29/100","v":{"v":0.027999999999999997,"d":"2.80%"}}]
[null,"#55",36,2026,"H","A_PER",{"v":0.44999999999999996,"d":"0.45"},{"v":0.38999999999999996,"d":"0.39"},0.6,0.6,85,0,{"$f":"ROUND(Primes!$O$7*V5159,0)","v":4},{"$f":"'BP Financier'!$E$33*(('BP Financier'!$C$19+'BP Financier'!$D$19+'BP Financier'!$E$19)/('BP Financier'!$C$16+'BP Financier'!$C$19+'BP Financier'!$D$16+'BP Financier'!$D$19+'BP Financier'!$E$16+'BP Financier'!$E$19))*V5159","v":{"v":102735.5056781409,"d":"102,736"}},{"v":57618.87004766081,"d":"57,619"},{"$f":"'BP Financier'!$E$44*(('BP Financier'!$C$19+'BP Financier'!$D$19+'BP Financier'!$E$19)/('BP Financier'!$C$16+'BP Financier'!$C$19+'BP Financier'!$D$16+'BP Financier'!$D$19+'BP Financier'!$E$16+'BP Financier'!$E$19+'BP Financier'!$C$22+'BP Financier'!$D$22+'BP Financier'!$E$22))*$V5159*X5159/(1-$W5159)","v":{"v":7334.047453323915,"d":"7,334"}},{"$f":"'BP Financier'!$E$44*(('BP Financier'!$C$19+'BP Financier'!$D$19+'BP Financier'!$E$19)/('BP Financier'!$C$16+'BP Financier'!$C$19+'BP Financier'!$D$16+'BP Financier'!$D$19+'BP Financier'!$E$16+'BP Financier'!$E$19+'BP Financier'!$C$22+'BP Financier'!$D$22+'BP Financier'!$E$22))*$V5159*Y5159/(1-$W5159)","v":{"v":4902.8715019458205,"d":"4,903"}},{"$f":"'BP Financier'!$E$44*(('BP Financier'!$C$19+'BP Financier'!$D$19+'BP Financier'!$E$19)/('BP Financier'!$C$16+'BP Financier'!$C$19+'BP Financier'!$D$16+'BP Financier'!$D$19+'BP Financier'!$E$16+'BP Financier'!$E$19+'BP Financier'!$C$22+'BP Financier'!$D$22+'BP Financier'!$E$22))*$V5159*Z5159/(1-$W5159)","v":{"v":38372.060432584236,"d":"38,372"}},{"$f":"'BP Financier'!$E$44*(('BP Financier'!$C$19+'BP Financier'!$D$19+'BP Financier'!$E$19)/('BP Financier'!$C$16+'BP Financier'!$C$19+'BP Financier'!$D$16+'BP Financier'!$D$19+'BP Financier'!$E$16+'BP Financier'!$E$19+'BP Financier'!$C$22+'BP Financier'!$D$22+'BP Financier'!$E$22))*$V5159*AA5159/(1-$W5159)","v":{"v":4740.793105187282,"d":"4,741"}},{"$f":"'BP Financier'!$E$44*(('BP Financier'!$C$19+'BP Financier'!$D$19+'BP Financier'!$E$19)/('BP Financier'!$C$16+'BP Financier'!$C$19+'BP Financier'!$D$16+'BP Financier'!$D$19+'BP Financier'!$E$16+'BP Financier'!$E$19+'BP Financier'!$C$22+'BP Financier'!$D$22+'BP Financier'!$E$22))*$V5159*AB5159/(1-$W5159)","v":{"v":2269.097554619553,"d":"2,269"}},null,{"v":0.005,"d":"0.50%"},{"$f":"Actif!$E$28/100","v":{"v":0.28900000000000003,"d":"28.90%"}},{"$f":"Actif!$E$30/100","v":{"v":0.09050000000000001,"d":"9.05%"}},{"$f":"Actif!$E$31/100","v":{"v":0.0605,"d":"6.05%"}},{"$f":"Actif!$E$32/100","v":{"v":0.47350000000000003,"d":"47.35%"}},{"$f":"Actif!$E$33/100","v":{"v":0.0585,"d":"5.85%"}},{"$f":"Actif!$E$29/100","v":{"v":0.027999999999999997,"d":"2.80%"}}]
[null,"#56",36,2028,"H","A_PER",{"v":0.44999999999999996,"d":"0.45"},{"v":0.38999999999999996,"d":"0.39"},0.6,0.6,85,0,{"$f":"ROUND(Primes!$O$7*V5160,0)","v":4},{"$f":"'BP Financier'!$E$33*(('BP Financier'!$C$19+'BP Financier'!$D$19+'BP Financier'!$E$19)/('BP Financier'!$C$16+'BP Financier'!$C$19+'BP Financier'!$D$16+'BP Financier'!$D$19+'BP Financier'!$E$16+'BP Financier'!$E$19))*V5160","v":{"v":102735.5056781409,"d":"102,736"}},{"v":57618.87004766081,"d":"57,619"},{"$f":"'BP Financier'!$E$44*(('BP Financier'!$C$19+'BP Financier'!$D$19+'BP Financier'!$E$19)/('BP Financier'!$C$16+'BP Financier'!$C$19+'BP Financier'!$D$16+'BP Financier'!$D$19+'BP Financier'!$E$16+'BP Financier'!$E$19+'BP Financier'!$C$22+'BP Financier'!$D$22+'BP Financier'!$E$22))*$V5160*X5160/(1-$W5160)","v":{"v":7334.047453323915,"d":"7,334"}},{"$f":"'BP Financier'!$E$44*(('BP Financier'!$C$19+'BP Financier'!$D$19+'BP Financier'!$E$19)/('BP Financier'!$C$16+'BP Financier'!$C$19+'BP Financier'!$D$16+'BP Financier'!$D$19+'BP Financier'!$E$16+'BP Financier'!$E$19+'BP Financier'!$C$22+'BP Financier'!$D$22+'BP Financier'!$E$22))*$V5160*Y5160/(1-$W5160)","v":{"v":4902.8715019458205,"d":"4,903"}},{"$f":"'BP Financier'!$E$44*(('BP Financier'!$C$19+'BP Financier'!$D$19+'BP Financier'!$E$19)/('BP Financier'!$C$16+'BP Financier'!$C$19+'BP Financier'!$D$16+'BP Financier'!$D$19+'BP Financier'!$E$16+'BP Financier'!$E$19+'BP Financier'!$C$22+'BP Financier'!$D$22+'BP Financier'!$E$22))*$V5160*Z5160/(1-$W5160)","v":{"v":38372.060432584236,"d":"38,372"}},{"$f":"'BP Financier'!$E$44*(('BP Financier'!$C$19+'BP Financier'!$D$19+'BP Financier'!$E$19)/('BP Financier'!$C$16+'BP Financier'!$C$19+'BP Financier'!$D$16+'BP Financier'!$D$19+'BP Financier'!$E$16+'BP Financier'!$E$19+'BP Financier'!$C$22+'BP Financier'!$D$22+'BP Financier'!$E$22))*$V5160*AA5160/(1-$W5160)","v":{"v":4740.793105187282,"d":"4,741"}},{"$f":"'BP Financier'!$E$44*(('BP Financier'!$C$19+'BP Financier'!$D$19+'BP Financier'!$E$19)/('BP Financier'!$C$16+'BP Financier'!$C$19+'BP Financier'!$D$16+'BP Financier'!$D$19+'BP Financier'!$E$16+'BP Financier'!$E$19+'BP Financier'!$C$22+'BP Financier'!$D$22+'BP Financier'!$E$22))*$V5160*AB5160/(1-$W5160)","v":{"v":2269.097554619553,"d":"2,269"}},null,{"v":0.005,"d":"0.50%"},{"$f":"Actif!$E$28/100","v":{"v":0.28900000000000003,"d":"28.90%"}},{"$f":"Actif!$E$30/100","v":{"v":0.09050000000000001,"d":"9.05%"}},{"$f":"Actif!$E$31/100","v":{"v":0.0605,"d":"6.05%"}},{"$f":"Actif!$E$32/100","v":{"v":0.47350000000000003,"d":"47.35%"}},{"$f":"Actif!$E$33/100","v":{"v":0.0585,"d":"5.85%"}},{"$f":"Actif!$E$29/100","v":{"v":0.027999999999999997,"d":"2.80%"}}]
[null,"#57",36,2029,"H","A_PER",{"v":0.44999999999999996,"d":"0.45"},{"v":0.38999999999999996,"d":"0.39"},0.6,0.6,85,0,{"$f":"ROUND(Primes!$O$7*V5161,0)","v":4},{"$f":"'BP Financier'!$E$33*(('BP Financier'!$C$19+'BP Financier'!$D$19+'BP Financier'!$E$19)/('BP Financier'!$C$16+'BP Financier'!$C$19+'BP Financier'!$D$16+'BP Financier'!$D$19+'BP Financier'!$E$16+'BP Financier'!$E$19))*V5161","v":{"v":102735.5056781409,"d":"102,736"}},{"v":57618.87004766081,"d":"57,619"},{"$f":"'BP Financier'!$E$44*(('BP Financier'!$C$19+'BP Financier'!$D$19+'BP Financier'!$E$19)/('BP Financier'!$C$16+'BP Financier'!$C$19+'BP Financier'!$D$16+'BP Financier'!$D$19+'BP Financier'!$E$16+'BP Financier'!$E$19+'BP Financier'!$C$22+'BP Financier'!$D$22+'BP Financier'!$E$22))*$V5161*X5161/(1-$W5161)","v":{"v":7334.047453323915,"d":"7,334"}},{"$f":"'BP Financier'!$E$44*(('BP Financier'!$C$19+'BP Financier'!$D$19+'BP Financier'!$E$19)/('BP Financier'!$C$16+'BP Financier'!$C$19+'BP Financier'!$D$16+'BP Financier'!$D$19+'BP Financier'!$E$16+'BP Financier'!$E$19+'BP Financier'!$C$22+'BP Financier'!$D$22+'BP Financier'!$E$22))*$V5161*Y5161/(1-$W5161)","v":{"v":4902.8715019458205,"d":"4,903"}},{"$f":"'BP Financier'!$E$44*(('BP Financier'!$C$19+'BP Financier'!$D$19+'BP Financier'!$E$19)/('BP Financier'!$C$16+'BP Financier'!$C$19+'BP Financier'!$D$16+'BP Financier'!$D$19+'BP Financier'!$E$16+'BP Financier'!$E$19+'BP Financier'!$C$22+'BP Financier'!$D$22+'BP Financier'!$E$22))*$V5161*Z5161/(1-$W5161)","v":{"v":38372.060432584236,"d":"38,372"}},{"$f":"'BP Financier'!$E$44*(('BP Financier'!$C$19+'BP Financier'!$D$19+'BP Financier'!$E$19)/('BP Financier'!$C$16+'BP Financier'!$C$19+'BP Financier'!$D$16+'BP Financier'!$D$19+'BP Financier'!$E$16+'BP Financier'!$E$19+'BP Financier'!$C$22+'BP Financier'!$D$22+'BP Financier'!$E$22))*$V5161*AA5161/(1-$W5161)","v":{"v":4740.793105187282,"d":"4,741"}},{"$f":"'BP Financier'!$E$44*(('BP Financier'!$C$19+'BP Financier'!$D$19+'BP Financier'!$E$19)/('BP Financier'!$C$16+'BP Financier'!$C$19+'BP Financier'!$D$16+'BP Financier'!$D$19+'BP Financier'!$E$16+'BP Financier'!$E$19+'BP Financier'!$C$22+'BP Financier'!$D$22+'BP Financier'!$E$22))*$V5161*AB5161/(1-$W5161)","v":{"v":2269.097554619553,"d":"2,269"}},null,{"v":0.005,"d":"0.50%"},{"$f":"Actif!$E$28/100","v":{"v":0.28900000000000003,"d":"28.90%"}},{"$f":"Actif!$E$30/100","v":{"v":0.09050000000000001,"d":"9.05%"}},{"$f":"Actif!$E$31/100","v":{"v":0.0605,"d":"6.05%"}},{"$f":"Actif!$E$32/100","v":{"v":0.47350000000000003,"d":"47.35%"}},{"$f":"Actif!$E$33/100","v":{"v":0.0585,"d":"5.85%"}},{"$f":"Actif!$E$29/100","v":{"v":0.027999999999999997,"d":"2.80%"}}]
[null,"#58",37,2026,"H","A_PER",{"v":0.44999999999999996,"d":"0.45"},{"v":0.38999999999999996,"d":"0.39"},0.6,0.6,85,0,{"$f":"ROUND(Primes!$O$7*V5162,0)","v":4},{"$f":"'BP Financier'!$E$33*(('BP Financier'!$C$19+'BP Financier'!$D$19+'BP Financier'!$E$19)/('BP Financier'!$C$16+'BP Financier'!$C$19+'BP Financier'!$D$16+'BP Financier'!$D$19+'BP Financier'!$E$16+'BP Financier'!$E$19))*V5162","v":{"v":102735.5056781409,"d":"102,736"}},{"v":57618.87004766081,"d":"57,619"},{"$f":"'BP Financier'!$E$44*(('BP Financier'!$C$19+'BP Financier'!$D$19+'BP Financier'!$E$19)/('BP Financier'!$C$16+'BP Financier'!$C$19+'BP Financier'!$D$16+'BP Financier'!$D$19+'BP Financier'!$E$16+'BP Financier'!$E$19+'BP Financier'!$C$22+'BP Financier'!$D$22+'BP Financier'!$E$22))*$V5162*X5162/(1-$W5162)","v":{"v":7334.047453323915,"d":"7,334"}},{"$f":"'BP Financier'!$E$44*(('BP Financier'!$C$19+'BP Financier'!$D$19+'BP Financier'!$E$19)/('BP Financier'!$C$16+'BP Financier'!$C$19+'BP Financier'!$D$16+'BP Financier'!$D$19+'BP Financier'!$E$16+'BP Financier'!$E$19+'BP Financier'!$C$22+'BP Financier'!$D$22+'BP Financier'!$E$22))*$V5162*Y5162/(1-$W5162)","v":{"v":4902.8715019458205,"d":"4,903"}},{"$f":"'BP Financier'!$E$44*(('BP Financier'!$C$19+'BP Financier'!$D$19+'BP Financier'!$E$19)/('BP Financier'!$C$16+'BP Financier'!$C$19+'BP Financier'!$D$16+'BP Financier'!$D$19+'BP Financier'!$E$16+'BP Financier'!$E$19+'BP Financier'!$C$22+'BP Financier'!$D$22+'BP Financier'!$E$22))*$V5162*Z5162/(1-$W5162)","v":{"v":38372.060432584236,"d":"38,372"}},{"$f":"'BP Financier'!$E$44*(('BP Financier'!$C$19+'BP Financier'!$D$19+'BP Financier'!$E$19)/('BP Financier'!$C$16+'BP Financier'!$C$19+'BP Financier'!$D$16+'BP Financier'!$D$19+'BP Financier'!$E$16+'BP Financier'!$E$19+'BP Financier'!$C$22+'BP Financier'!$D$22+'BP Financier'!$E$22))*$V5162*AA5162/(1-$W5162)","v":{"v":4740.793105187282,"d":"4,741"}},{"$f":"'BP Financier'!$E$44*(('BP Financier'!$C$19+'BP Financier'!$D$19+'BP Financier'!$E$19)/('BP Financier'!$C$16+'BP Financier'!$C$19+'BP Financier'!$D$16+'BP Financier'!$D$19+'BP Financier'!$E$16+'BP Financier'!$E$19+'BP Financier'!$C$22+'BP Financier'!$D$22+'BP Financier'!$E$22))*$V5162*AB5162/(1-$W5162)","v":{"v":2269.097554619553,"d":"2,269"}},null,{"v":0.005,"d":"0.50%"},{"$f":"Actif!$E$28/100","v":{"v":0.28900000000000003,"d":"28.90%"}},{"$f":"Actif!$E$30/100","v":{"v":0.09050000000000001,"d":"9.05%"}},{"$f":"Actif!$E$31/100","v":{"v":0.0605,"d":"6.05%"}},{"$f":"Actif!$E$32/100","v":{"v":0.47350000000000003,"d":"47.35%"}},{"$f":"Actif!$E$33/100","v":{"v":0.0585,"d":"5.85%"}},{"$f":"Actif!$E$29/100","v":{"v":0.027999999999999997,"d":"2.80%"}}]
[null,"#59",37,2028,"H","A_PER",{"v":0.44999999999999996,"d":"0.45"},{"v":0.38999999999999996,"d":"0.39"},0.6,0.6,85,0,{"$f":"ROUND(Primes!$O$7*V5163,0)","v":4},{"$f":"'BP Financier'!$E$33*(('BP Financier'!$C$19+'BP Financier'!$D$19+'BP Financier'!$E$19)/('BP Financier'!$C$16+'BP Financier'!$C$19+'BP Financier'!$D$16+'BP Financier'!$D$19+'BP Financier'!$E$16+'BP Financier'!$E$19))*V5163","v":{"v":102735.5056781409,"d":"102,736"}},{"v":57618.87004766081,"d":"57,619"},{"$f":"'BP Financier'!$E$44*(('BP Financier'!$C$19+'BP Financier'!$D$19+'BP Financier'!$E$19)/('BP Financier'!$C$16+'BP Financier'!$C$19+'BP Financier'!$D$16+'BP Financier'!$D$19+'BP Financier'!$E$16+'BP Financier'!$E$19+'BP Financier'!$C$22+'BP Financier'!$D$22+'BP Financier'!$E$22))*$V5163*X5163/(1-$W5163)","v":{"v":7334.047453323915,"d":"7,334"}},{"$f":"'BP Financier'!$E$44*(('BP Financier'!$C$19+'BP Financier'!$D$19+'BP Financier'!$E$19)/('BP Financier'!$C$16+'BP Financier'!$C$19+'BP Financier'!$D$16+'BP Financier'!$D$19+'BP Financier'!$E$16+'BP Financier'!$E$19+'BP Financier'!$C$22+'BP Financier'!$D$22+'BP Financier'!$E$22))*$V5163*Y5163/(1-$W5163)","v":{"v":4902.8715019458205,"d":"4,903"}},{"$f":"'BP Financier'!$E$44*(('BP Financier'!$C$19+'BP Financier'!$D$19+'BP Financier'!$E$19)/('BP Financier'!$C$16+'BP Financier'!$C$19+'BP Financier'!$D$16+'BP Financier'!$D$19+'BP Financier'!$E$16+'BP Financier'!$E$19+'BP Financier'!$C$22+'BP Financier'!$D$22+'BP Financier'!$E$22))*$V5163*Z5163/(1-$W5163)","v":{"v":38372.060432584236,"d":"38,372"}},{"$f":"'BP Financier'!$E$44*(('BP Financier'!$C$19+'BP Financier'!$D$19+'BP Financier'!$E$19)/('BP Financier'!$C$16+'BP Financier'!$C$19+'BP Financier'!$D$16+'BP Financier'!$D$19+'BP Financier'!$E$16+'BP Financier'!$E$19+'BP Financier'!$C$22+'BP Financier'!$D$22+'BP Financier'!$E$22))*$V5163*AA5163/(1-$W5163)","v":{"v":4740.793105187282,"d":"4,741"}},{"$f":"'BP Financier'!$E$44*(('BP Financier'!$C$19+'BP Financier'!$D$19+'BP Financier'!$E$19)/('BP Financier'!$C$16+'BP Financier'!$C$19+'BP Financier'!$D$16+'BP Financier'!$D$19+'BP Financier'!$E$16+'BP Financier'!$E$19+'BP Financier'!$C$22+'BP Financier'!$D$22+'BP Financier'!$E$22))*$V5163*AB5163/(1-$W5163)","v":{"v":2269.097554619553,"d":"2,269"}},null,{"v":0.005,"d":"0.50%"},{"$f":"Actif!$E$28/100","v":{"v":0.28900000000000003,"d":"28.90%"}},{"$f":"Actif!$E$30/100","v":{"v":0.09050000000000001,"d":"9.05%"}},{"$f":"Actif!$E$31/100","v":{"v":0.0605,"d":"6.05%"}},{"$f":"Actif!$E$32/100","v":{"v":0.47350000000000003,"d":"47.35%"}},{"$f":"Actif!$E$33/100","v":{"v":0.0585,"d":"5.85%"}},{"$f":"Actif!$E$29/100","v":{"v":0.027999999999999997,"d":"2.80%"}}]
[null,"#60",37,2029,"H","A_PER",{"v":0.44999999999999996,"d":"0.45"},{"v":0.38999999999999996,"d":"0.39"},0.6,0.6,85,0,{"$f":"ROUND(Primes!$O$7*V5164,0)","v":4},{"$f":"'BP Financier'!$E$33*(('BP Financier'!$C$19+'BP Financier'!$D$19+'BP Financier'!$E$19)/('BP Financier'!$C$16+'BP Financier'!$C$19+'BP Financier'!$D$16+'BP Financier'!$D$19+'BP Financier'!$E$16+'BP Financier'!$E$19))*V5164","v":{"v":102735.5056781409,"d":"102,736"}},{"v":57618.87004766081,"d":"57,619"},{"$f":"'BP Financier'!$E$44*(('BP Financier'!$C$19+'BP Financier'!$D$19+'BP Financier'!$E$19)/('BP Financier'!$C$16+'BP Financier'!$C$19+'BP Financier'!$D$16+'BP Financier'!$D$19+'BP Financier'!$E$16+'BP Financier'!$E$19+'BP Financier'!$C$22+'BP Financier'!$D$22+'BP Financier'!$E$22))*$V5164*X5164/(1-$W5164)","v":{"v":7334.047453323915,"d":"7,334"}},{"$f":"'BP Financier'!$E$44*(('BP Financier'!$C$19+'BP Financier'!$D$19+'BP Financier'!$E$19)/('BP Financier'!$C$16+'BP Financier'!$C$19+'BP Financier'!$D$16+'BP Financier'!$D$19+'BP Financier'!$E$16+'BP Financier'!$E$19+'BP Financier'!$C$22+'BP Financier'!$D$22+'BP Financier'!$E$22))*$V5164*Y5164/(1-$W5164)","v":{"v":4902.8715019458205,"d":"4,903"}},{"$f":"'BP Financier'!$E$44*(('BP Financier'!$C$19+'BP Financier'!$D$19+'BP Financier'!$E$19)/('BP Financier'!$C$16+'BP Financier'!$C$19+'BP Financier'!$D$16+'BP Financier'!$D$19+'BP Financier'!$E$16+'BP Financier'!$E$19+'BP Financier'!$C$22+'BP Financier'!$D$22+'BP Financier'!$E$22))*$V5164*Z5164/(1-$W5164)","v":{"v":38372.060432584236,"d":"38,372"}},{"$f":"'BP Financier'!$E$44*(('BP Financier'!$C$19+'BP Financier'!$D$19+'BP Financier'!$E$19)/('BP Financier'!$C$16+'BP Financier'!$C$19+'BP Financier'!$D$16+'BP Financier'!$D$19+'BP Financier'!$E$16+'BP Financier'!$E$19+'BP Financier'!$C$22+'BP Financier'!$D$22+'BP Financier'!$E$22))*$V5164*AA5164/(1-$W5164)","v":{"v":4740.793105187282,"d":"4,741"}},{"$f":"'BP Financier'!$E$44*(('BP Financier'!$C$19+'BP Financier'!$D$19+'BP Financier'!$E$19)/('BP Financier'!$C$16+'BP Financier'!$C$19+'BP Financier'!$D$16+'BP Financier'!$D$19+'BP Financier'!$E$16+'BP Financier'!$E$19+'BP Financier'!$C$22+'BP Financier'!$D$22+'BP Financier'!$E$22))*$V5164*AB5164/(1-$W5164)","v":{"v":2269.097554619553,"d":"2,269"}},null,{"v":0.005,"d":"0.50%"},{"$f":"Actif!$E$28/100","v":{"v":0.28900000000000003,"d":"28.90%"}},{"$f":"Actif!$E$30/100","v":{"v":0.09050000000000001,"d":"9.05%"}},{"$f":"Actif!$E$31/100","v":{"v":0.0605,"d":"6.05%"}},{"$f":"Actif!$E$32/100","v":{"v":0.47350000000000003,"d":"47.35%"}},{"$f":"Actif!$E$33/100","v":{"v":0.0585,"d":"5.85%"}},{"$f":"Actif!$E$29/100","v":{"v":0.027999999999999997,"d":"2.80%"}}]
[null,"#61",38,2026,"F","A_PER",{"v":0.44999999999999996,"d":"0.45"},{"v":0.38999999999999996,"d":"0.39"},0.6,0.6,85,0,{"$f":"ROUND(Primes!$O$7*V5165,0)","v":7},{"$f":"'BP Financier'!$E$33*(('BP Financier'!$C$19+'BP Financier'!$D$19+'BP Financier'!$E$19)/('BP Financier'!$C$16+'BP Financier'!$C$19+'BP Financier'!$D$16+'BP Financier'!$D$19+'BP Financier'!$E$16+'BP Financier'!$E$19))*V5165","v":{"v":205471.0113562818,"d":"205,471"}},{"v":115237.74009532161,"d":"115,238"},{"$f":"'BP Financier'!$E$44*(('BP Financier'!$C$19+'BP Financier'!$D$19+'BP Financier'!$E$19)/('BP Financier'!$C$16+'BP Financier'!$C$19+'BP Financier'!$D$16+'BP Financier'!$D$19+'BP Financier'!$E$16+'BP Financier'!$E$19+'BP Financier'!$C$22+'BP Financier'!$D$22+'BP Financier'!$E$22))*$V5165*X5165/(1-$W5165)","v":{"v":14668.09490664783,"d":"14,668"}},{"$f":"'BP Financier'!$E$44*(('BP Financier'!$C$19+'BP Financier'!$D$19+'BP Financier'!$E$19)/('BP Financier'!$C$16+'BP Financier'!$C$19+'BP Financier'!$D$16+'BP Financier'!$D$19+'BP Financier'!$E$16+'BP Financier'!$E$19+'BP Financier'!$C$22+'BP Financier'!$D$22+'BP Financier'!$E$22))*$V5165*Y5165/(1-$W5165)","v":{"v":9805.743003891641,"d":"9,806"}},{"$f":"'BP Financier'!$E$44*(('BP Financier'!$C$19+'BP Financier'!$D$19+'BP Financier'!$E$19)/('BP Financier'!$C$16+'BP Financier'!$C$19+'BP Financier'!$D$16+'BP Financier'!$D$19+'BP Financier'!$E$16+'BP Financier'!$E$19+'BP Financier'!$C$22+'BP Financier'!$D$22+'BP Financier'!$E$22))*$V5165*Z5165/(1-$W5165)","v":{"v":76744.12086516847,"d":"76,744"}},{"$f":"'BP Financier'!$E$44*(('BP Financier'!$C$19+'BP Financier'!$D$19+'BP Financier'!$E$19)/('BP Financier'!$C$16+'BP Financier'!$C$19+'BP Financier'!$D$16+'BP Financier'!$D$19+'BP Financier'!$E$16+'BP Financier'!$E$19+'BP Financier'!$C$22+'BP Financier'!$D$22+'BP Financier'!$E$22))*$V5165*AA5165/(1-$W5165)","v":{"v":9481.586210374564,"d":"9,482"}},{"$f":"'BP Financier'!$E$44*(('BP Financier'!$C$19+'BP Financier'!$D$19+'BP Financier'!$E$19)/('BP Financier'!$C$16+'BP Financier'!$C$19+'BP Financier'!$D$16+'BP Financier'!$D$19+'BP Financier'!$E$16+'BP Financier'!$E$19+'BP Financier'!$C$22+'BP Financier'!$D$22+'BP Financier'!$E$22))*$V5165*AB5165/(1-$W5165)","v":{"v":4538.195109239106,"d":"4,538"}},null,{"v":0.01,"d":"1.00%"},{"$f":"Actif!$E$28/100","v":{"v":0.28900000000000003,"d":"28.90%"}},{"$f":"Actif!$E$30/100","v":{"v":0.09050000000000001,"d":"9.05%"}},{"$f":"Actif!$E$31/100","v":{"v":0.0605,"d":"6.05%"}},{"$f":"Actif!$E$32/100","v":{"v":0.47350000000000003,"d":"47.35%"}},{"$f":"Actif!$E$33/100","v":{"v":0.0585,"d":"5.85%"}},{"$f":"Actif!$E$29/100","v":{"v":0.027999999999999997,"d":"2.80%"}}]
[null,"#62",38,2028,"F","A_PER",{"v":0.44999999999999996,"d":"0.45"},{"v":0.38999999999999996,"d":"0.39"},0.6,0.6,85,0,{"$f":"ROUND(Primes!$O$7*V5166,0)","v":7},{"$f":"'BP Financier'!$E$33*(('BP Financier'!$C$19+'BP Financier'!$D$19+'BP Financier'!$E$19)/('BP Financier'!$C$16+'BP Financier'!$C$19+'BP Financier'!$D$16+'BP Financier'!$D$19+'BP Financier'!$E$16+'BP Financier'!$E$19))*V5166","v":{"v":205471.0113562818,"d":"205,471"}},{"v":115237.74009532161,"d":"115,238"},{"$f":"'BP Financier'!$E$44*(('BP Financier'!$C$19+'BP Financier'!$D$19+'BP Financier'!$E$19)/('BP Financier'!$C$16+'BP Financier'!$C$19+'BP Financier'!$D$16+'BP Financier'!$D$19+'BP Financier'!$E$16+'BP Financier'!$E$19+'BP Financier'!$C$22+'BP Financier'!$D$22+'BP Financier'!$E$22))*$V5166*X5166/(1-$W5166)","v":{"v":14668.09490664783,"d":"14,668"}},{"$f":"'BP Financier'!$E$44*(('BP Financier'!$C$19+'BP Financier'!$D$19+'BP Financier'!$E$19)/('BP Financier'!$C$16+'BP Financier'!$C$19+'BP Financier'!$D$16+'BP Financier'!$D$19+'BP Financier'!$E$16+'BP Financier'!$E$19+'BP Financier'!$C$22+'BP Financier'!$D$22+'BP Financier'!$E$22))*$V5166*Y5166/(1-$W5166)","v":{"v":9805.743003891641,"d":"9,806"}},{"$f":"'BP Financier'!$E$44*(('BP Financier'!$C$19+'BP Financier'!$D$19+'BP Financier'!$E$19)/('BP Financier'!$C$16+'BP Financier'!$C$19+'BP Financier'!$D$16+'BP Financier'!$D$19+'BP Financier'!$E$16+'BP Financier'!$E$19+'BP Financier'!$C$22+'BP Financier'!$D$22+'BP Financier'!$E$22))*$V5166*Z5166/(1-$W5166)","v":{"v":76744.12086516847,"d":"76,744"}},{"$f":"'BP Financier'!$E$44*(('BP Financier'!$C$19+'BP Financier'!$D$19+'BP Financier'!$E$19)/('BP Financier'!$C$16+'BP Financier'!$C$19+'BP Financier'!$D$16+'BP Financier'!$D$19+'BP Financier'!$E$16+'BP Financier'!$E$19+'BP Financier'!$C$22+'BP Financier'!$D$22+'BP Financier'!$E$22))*$V5166*AA5166/(1-$W5166)","v":{"v":9481.586210374564,"d":"9,482"}},{"$f":"'BP Financier'!$E$44*(('BP Financier'!$C$19+'BP Financier'!$D$19+'BP Financier'!$E$19)/('BP Financier'!$C$16+'BP Financier'!$C$19+'BP Financier'!$D$16+'BP Financier'!$D$19+'BP Financier'!$E$16+'BP Financier'!$E$19+'BP Financier'!$C$22+'BP Financier'!$D$22+'BP Financier'!$E$22))*$V5166*AB5166/(1-$W5166)","v":{"v":4538.195109239106,"d":"4,538"}},null,{"v":0.01,"d":"1.00%"},{"$f":"Actif!$E$28/100","v":{"v":0.28900000000000003,"d":"28.90%"}},{"$f":"Actif!$E$30/100","v":{"v":0.09050000000000001,"d":"9.05%"}},{"$f":"Actif!$E$31/100","v":{"v":0.0605,"d":"6.05%"}},{"$f":"Actif!$E$32/100","v":{"v":0.47350000000000003,"d":"47.35%"}},{"$f":"Actif!$E$33/100","v":{"v":0.0585,"d":"5.85%"}},{"$f":"Actif!$E$29/100","v":{"v":0.027999999999999997,"d":"2.80%"}}]
[null,"#63",38,2029,"F","A_PER",{"v":0.44999999999999996,"d":"0.45"},{"v":0.38999999999999996,"d":"0.39"},0.6,0.6,85,0,{"$f":"ROUND(Primes!$O$7*V5167,0)","v":7},{"$f":"'BP Financier'!$E$33*(('BP Financier'!$C$19+'BP Financier'!$D$19+'BP Financier'!$E$19)/('BP Financier'!$C$16+'BP Financier'!$C$19+'BP Financier'!$D$16+'BP Financier'!$D$19+'BP Financier'!$E$16+'BP Financier'!$E$19))*V5167","v":{"v":205471.0113562818,"d":"205,471"}},{"v":115237.74009532161,"d":"115,238"},{"$f":"'BP Financier'!$E$44*(('BP Financier'!$C$19+'BP Financier'!$D$19+'BP Financier'!$E$19)/('BP Financier'!$C$16+'BP Financier'!$C$19+'BP Financier'!$D$16+'BP Financier'!$D$19+'BP Financier'!$E$16+'BP Financier'!$E$19+'BP Financier'!$C$22+'BP Financier'!$D$22+'BP Financier'!$E$22))*$V5167*X5167/(1-$W5167)","v":{"v":14668.09490664783,"d":"14,668"}},{"$f":"'BP Financier'!$E$44*(('BP Financier'!$C$19+'BP Financier'!$D$19+'BP Financier'!$E$19)/('BP Financier'!$C$16+'BP Financier'!$C$19+'BP Financier'!$D$16+'BP Financier'!$D$19+'BP Financier'!$E$16+'BP Financier'!$E$19+'BP Financier'!$C$22+'BP Financier'!$D$22+'BP Financier'!$E$22))*$V5167*Y5167/(1-$W5167)","v":{"v":9805.743003891641,"d":"9,806"}},{"$f":"'BP Financier'!$E$44*(('BP Financier'!$C$19+'BP Financier'!$D$19+'BP Financier'!$E$19)/('BP Financier'!$C$16+'BP Financier'!$C$19+'BP Financier'!$D$16+'BP Financier'!$D$19+'BP Financier'!$E$16+'BP Financier'!$E$19+'BP Financier'!$C$22+'BP Financier'!$D$22+'BP Financier'!$E$22))*$V5167*Z5167/(1-$W5167)","v":{"v":76744.12086516847,"d":"76,744"}},{"$f":"'BP Financier'!$E$44*(('BP Financier'!$C$19+'BP Financier'!$D$19+'BP Financier'!$E$19)/('BP Financier'!$C$16+'BP Financier'!$C$19+'BP Financier'!$D$16+'BP Financier'!$D$19+'BP Financier'!$E$16+'BP Financier'!$E$19+'BP Financier'!$C$22+'BP Financier'!$D$22+'BP Financier'!$E$22))*$V5167*AA5167/(1-$W5167)","v":{"v":9481.586210374564,"d":"9,482"}},{"$f":"'BP Financier'!$E$44*(('BP Financier'!$C$19+'BP Financier'!$D$19+'BP Financier'!$E$19)/('BP Financier'!$C$16+'BP Financier'!$C$19+'BP Financier'!$D$16+'BP Financier'!$D$19+'BP Financier'!$E$16+'BP Financier'!$E$19+'BP Financier'!$C$22+'BP Financier'!$D$22+'BP Financier'!$E$22))*$V5167*AB5167/(1-$W5167)","v":{"v":4538.195109239106,"d":"4,538"}},null,{"v":0.01,"d":"1.00%"},{"$f":"Actif!$E$28/100","v":{"v":0.28900000000000003,"d":"28.90%"}},{"$f":"Actif!$E$30/100","v":{"v":0.09050000000000001,"d":"9.05%"}},{"$f":"Actif!$E$31/100","v":{"v":0.0605,"d":"6.05%"}},{"$f":"Actif!$E$32/100","v":{"v":0.47350000000000003,"d":"47.35%"}},{"$f":"Actif!$E$33/100","v":{"v":0.0585,"d":"5.85%"}},{"$f":"Actif!$E$29/100","v":{"v":0.027999999999999997,"d":"2.80%"}}]
[null,"#64",39,2026,"H","A_PER",{"v":0.44999999999999996,"d":"0.45"},{"v":0.38999999999999996,"d":"0.39"},0.6,0.6,85,0,{"$f":"ROUND(Primes!$O$7*V5168,0)","v":7},{"$f":"'BP Financier'!$E$33*(('BP Financier'!$C$19+'BP Financier'!$D$19+'BP Financier'!$E$19)/('BP Financier'!$C$16+'BP Financier'!$C$19+'BP Financier'!$D$16+'BP Financier'!$D$19+'BP Financier'!$E$16+'BP Financier'!$E$19))*V5168","v":{"v":205471.0113562818,"d":"205,471"}},{"v":115237.74009532161,"d":"115,238"},{"$f":"'BP Financier'!$E$44*(('BP Financier'!$C$19+'BP Financier'!$D$19+'BP Financier'!$E$19)/('BP Financier'!$C$16+'BP Financier'!$C$19+'BP Financier'!$D$16+'BP Financier'!$D$19+'BP Financier'!$E$16+'BP Financier'!$E$19+'BP Financier'!$C$22+'BP Financier'!$D$22+'BP Financier'!$E$22))*$V5168*X5168/(1-$W5168)","v":{"v":14668.09490664783,"d":"14,668"}},{"$f":"'BP Financier'!$E$44*(('BP Financier'!$C$19+'BP Financier'!$D$19+'BP Financier'!$E$19)/('BP Financier'!$C$16+'BP Financier'!$C$19+'BP Financier'!$D$16+'BP Financier'!$D$19+'BP Financier'!$E$16+'BP Financier'!$E$19+'BP Financier'!$C$22+'BP Financier'!$D$22+'BP Financier'!$E$22))*$V5168*Y5168/(1-$W5168)","v":{"v":9805.743003891641,"d":"9,806"}},{"$f":"'BP Financier'!$E$44*(('BP Financier'!$C$19+'BP Financier'!$D$19+'BP Financier'!$E$19)/('BP Financier'!$C$16+'BP Financier'!$C$19+'BP Financier'!$D$16+'BP Financier'!$D$19+'BP Financier'!$E$16+'BP Financier'!$E$19+'BP Financier'!$C$22+'BP Financier'!$D$22+'BP Financier'!$E$22))*$V5168*Z5168/(1-$W5168)","v":{"v":76744.12086516847,"d":"76,744"}},{"$f":"'BP Financier'!$E$44*(('BP Financier'!$C$19+'BP Financier'!$D$19+'BP Financier'!$E$19)/('BP Financier'!$C$16+'BP Financier'!$C$19+'BP Financier'!$D$16+'BP Financier'!$D$19+'BP Financier'!$E$16+'BP Financier'!$E$19+'BP Financier'!$C$22+'BP Financier'!$D$22+'BP Financier'!$E$22))*$V5168*AA5168/(1-$W5168)","v":{"v":9481.586210374564,"d":"9,482"}},{"$f":"'BP Financier'!$E$44*(('BP Financier'!$C$19+'BP Financier'!$D$19+'BP Financier'!$E$19)/('BP Financier'!$C$16+'BP Financier'!$C$19+'BP Financier'!$D$16+'BP Financier'!$D$19+'BP Financier'!$E$16+'BP Financier'!$E$19+'BP Financier'!$C$22+'BP Financier'!$D$22+'BP Financier'!$E$22))*$V5168*AB5168/(1-$W5168)","v":{"v":4538.195109239106,"d":"4,538"}},null,{"v":0.01,"d":"1.00%"},{"$f":"Actif!$E$28/100","v":{"v":0.28900000000000003,"d":"28.90%"}},{"$f":"Actif!$E$30/100","v":{"v":0.09050000000000001,"d":"9.05%"}},{"$f":"Actif!$E$31/100","v":{"v":0.0605,"d":"6.05%"}},{"$f":"Actif!$E$32/100","v":{"v":0.47350000000000003,"d":"47.35%"}},{"$f":"Actif!$E$33/100","v":{"v":0.0585,"d":"5.85%"}},{"$f":"Actif!$E$29/100","v":{"v":0.027999999999999997,"d":"2.80%"}}]
[null,"#65",39,2028,"H","A_PER",{"$f":"frais_gestion_Euro*100","v":{"v":0.44999999999999996,"d":"0.45"}},{"$f":"frais_gestion_UC*100","v":{"v":0.38999999999999996,"d":"0.39"}},{"$f":"frais_distribution_FG*100","v":0.6},{"$f":"frais_distribution_UC*100","v":0.6},85,0,{"$f":"ROUND(Primes!$O$7*V5169,0)","v":7},{"$f":"'BP Financier'!$E$33*(('BP Financier'!$C$19+'BP Financier'!$D$19+'BP Financier'!$E$19)/('BP Financier'!$C$16+'BP Financier'!$C$19+'BP Financier'!$D$16+'BP Financier'!$D$19+'BP Financier'!$E$16+'BP Financier'!$E$19))*V5169","v":{"v":205471.0113562818,"d":"205,471"}},{"v":115237.74009532161,"d":"115,238"},{"$f":"'BP Financier'!$E$44*(('BP Financier'!$C$19+'BP Financier'!$D$19+'BP Financier'!$E$19)/('BP Financier'!$C$16+'BP Financier'!$C$19+'BP Financier'!$D$16+'BP Financier'!$D$19+'BP Financier'!$E$16+'BP Financier'!$E$19+'BP Financier'!$C$22+'BP Financier'!$D$22+'BP Financier'!$E$22))*$V5169*X5169/(1-$W5169)","v":{"v":14668.09490664783,"d":"14,668"}},{"$f":"'BP Financier'!$E$44*(('BP Financier'!$C$19+'BP Financier'!$D$19+'BP Financier'!$E$19)/('BP Financier'!$C$16+'BP Financier'!$C$19+'BP Financier'!$D$16+'BP Financier'!$D$19+'BP Financier'!$E$16+'BP Financier'!$E$19+'BP Financier'!$C$22+'BP Financier'!$D$22+'BP Financier'!$E$22))*$V5169*Y5169/(1-$W5169)","v":{"v":9805.743003891641,"d":"9,806"}},{"$f":"'BP Financier'!$E$44*(('BP Financier'!$C$19+'BP Financier'!$D$19+'BP Financier'!$E$19)/('BP Financier'!$C$16+'BP Financier'!$C$19+'BP Financier'!$D$16+'BP Financier'!$D$19+'BP Financier'!$E$16+'BP Financier'!$E$19+'BP Financier'!$C$22+'BP Financier'!$D$22+'BP Financier'!$E$22))*$V5169*Z5169/(1-$W5169)","v":{"v":76744.12086516847,"d":"76,744"}},{"$f":"'BP Financier'!$E$44*(('BP Financier'!$C$19+'BP Financier'!$D$19+'BP Financier'!$E$19)/('BP Financier'!$C$16+'BP Financier'!$C$19+'BP Financier'!$D$16+'BP Financier'!$D$19+'BP Financier'!$E$16+'BP Financier'!$E$19+'BP Financier'!$C$22+'BP Financier'!$D$22+'BP Financier'!$E$22))*$V5169*AA5169/(1-$W5169)","v":{"v":9481.586210374564,"d":"9,482"}},{"$f":"'BP Financier'!$E$44*(('BP Financier'!$C$19+'BP Financier'!$D$19+'BP Financier'!$E$19)/('BP Financier'!$C$16+'BP Financier'!$C$19+'BP Financier'!$D$16+'BP Financier'!$D$19+'BP Financier'!$E$16+'BP Financier'!$E$19+'BP Financier'!$C$22+'BP Financier'!$D$22+'BP Financier'!$E$22))*$V5169*AB5169/(1-$W5169)","v":{"v":4538.195109239106,"d":"4,538"}},null,{"v":0.01,"d":"1.00%"},{"$f":"Actif!$E$28/100","v":{"v":0.28900000000000003,"d":"28.90%"}},{"$f":"Actif!$E$30/100","v":{"v":0.09050000000000001,"d":"9.05%"}},{"$f":"Actif!$E$31/100","v":{"v":0.0605,"d":"6.05%"}},{"$f":"Actif!$E$32/100","v":{"v":0.47350000000000003,"d":"47.35%"}},{"$f":"Actif!$E$33/100","v":{"v":0.0585,"d":"5.85%"}},{"$f":"Actif!$E$29/100","v":{"v":0.027999999999999997,"d":"2.80%"}}]
[null,"#66",39,2029,"H","A_PER",{"v":0.44999999999999996,"d":"0.45"},{"v":0.38999999999999996,"d":"0.39"},0.6,0.6,85,0,{"$f":"ROUND(Primes!$O$7*V5170,0)","v":7},{"$f":"'BP Financier'!$E$33*(('BP Financier'!$C$19+'BP Financier'!$D$19+'BP Financier'!$E$19)/('BP Financier'!$C$16+'BP Financier'!$C$19+'BP Financier'!$D$16+'BP Financier'!$D$19+'BP Financier'!$E$16+'BP Financier'!$E$19))*V5170","v":{"v":205471.0113562818,"d":"205,471"}},{"$f":"SUM(P5170:T5170)","v":{"v":115237.74009532161,"d":"115,238"}},{"$f":"'BP Financier'!$E$44*(('BP Financier'!$C$19+'BP Financier'!$D$19+'BP Financier'!$E$19)/('BP Financier'!$C$16+'BP Financier'!$C$19+'BP Financier'!$D$16+'BP Financier'!$D$19+'BP Financier'!$E$16+'BP Financier'!$E$19+'BP Financier'!$C$22+'BP Financier'!$D$22+'BP Financier'!$E$22))*$V5170*X5170/(1-$W5170)","v":{"v":14668.09490664783,"d":"14,668"}},{"$f":"'BP Financier'!$E$44*(('BP Financier'!$C$19+'BP Financier'!$D$19+'BP Financier'!$E$19)/('BP Financier'!$C$16+'BP Financier'!$C$19+'BP Financier'!$D$16+'BP Financier'!$D$19+'BP Financier'!$E$16+'BP Financier'!$E$19+'BP Financier'!$C$22+'BP Financier'!$D$22+'BP Financier'!$E$22))*$V5170*Y5170/(1-$W5170)","v":{"v":9805.743003891641,"d":"9,806"}},{"$f":"'BP Financier'!$E$44*(('BP Financier'!$C$19+'BP Financier'!$D$19+'BP Financier'!$E$19)/('BP Financier'!$C$16+'BP Financier'!$C$19+'BP Financier'!$D$16+'BP Financier'!$D$19+'BP Financier'!$E$16+'BP Financier'!$E$19+'BP Financier'!$C$22+'BP Financier'!$D$22+'BP Financier'!$E$22))*$V5170*Z5170/(1-$W5170)","v":{"v":76744.12086516847,"d":"76,744"}},{"$f":"'BP Financier'!$E$44*(('BP Financier'!$C$19+'BP Financier'!$D$19+'BP Financier'!$E$19)/('BP Financier'!$C$16+'BP Financier'!$C$19+'BP Financier'!$D$16+'BP Financier'!$D$19+'BP Financier'!$E$16+'BP Financier'!$E$19+'BP Financier'!$C$22+'BP Financier'!$D$22+'BP Financier'!$E$22))*$V5170*AA5170/(1-$W5170)","v":{"v":9481.586210374564,"d":"9,482"}},{"$f":"'BP Financier'!$E$44*(('BP Financier'!$C$19+'BP Financier'!$D$19+'BP Financier'!$E$19)/('BP Financier'!$C$16+'BP Financier'!$C$19+'BP Financier'!$D$16+'BP Financier'!$D$19+'BP Financier'!$E$16+'BP Financier'!$E$19+'BP Financier'!$C$22+'BP Financier'!$D$22+'BP Financier'!$E$22))*$V5170*AB5170/(1-$W5170)","v":{"v":4538.195109239106,"d":"4,538"}},null,{"v":0.01,"d":"1.00%"},{"$f":"Actif!$E$28/100","v":{"v":0.28900000000000003,"d":"28.90%"}},{"$f":"Actif!$E$30/100","v":{"v":0.09050000000000001,"d":"9.05%"}},{"$f":"Actif!$E$31/100","v":{"v":0.0605,"d":"6.05%"}},{"$f":"Actif!$E$32/100","v":{"v":0.47350000000000003,"d":"47.35%"}},{"$f":"Actif!$E$33/100","v":{"v":0.0585,"d":"5.85%"}},{"$f":"Actif!$E$29/100","v":{"v":0.027999999999999997,"d":"2.80%"}}]
[null,"#67",40,2026,"H","A_PER",{"v":0.44999999999999996,"d":"0.45"},{"v":0.38999999999999996,"d":"0.39"},0.6,0.6,85,0,{"$f":"ROUND(Primes!$O$7*V5171,0)","v":7},{"$f":"'BP Financier'!$E$33*(('BP Financier'!$C$19+'BP Financier'!$D$19+'BP Financier'!$E$19)/('BP Financier'!$C$16+'BP Financier'!$C$19+'BP Financier'!$D$16+'BP Financier'!$D$19+'BP Financier'!$E$16+'BP Financier'!$E$19))*V5171","v":{"v":205471.0113562818,"d":"205,471"}},{"v":115237.74009532161,"d":"115,238"},{"$f":"'BP Financier'!$E$44*(('BP Financier'!$C$19+'BP Financier'!$D$19+'BP Financier'!$E$19)/('BP Financier'!$C$16+'BP Financier'!$C$19+'BP Financier'!$D$16+'BP Financier'!$D$19+'BP Financier'!$E$16+'BP Financier'!$E$19+'BP Financier'!$C$22+'BP Financier'!$D$22+'BP Financier'!$E$22))*$V5171*X5171/(1-$W5171)","v":{"v":14668.09490664783,"d":"14,668"}},{"$f":"'BP Financier'!$E$44*(('BP Financier'!$C$19+'BP Financier'!$D$19+'BP Financier'!$E$19)/('BP Financier'!$C$16+'BP Financier'!$C$19+'BP Financier'!$D$16+'BP Financier'!$D$19+'BP Financier'!$E$16+'BP Financier'!$E$19+'BP Financier'!$C$22+'BP Financier'!$D$22+'BP Financier'!$E$22))*$V5171*Y5171/(1-$W5171)","v":{"v":9805.743003891641,"d":"9,806"}},{"$f":"'BP Financier'!$E$44*(('BP Financier'!$C$19+'BP Financier'!$D$19+'BP Financier'!$E$19)/('BP Financier'!$C$16+'BP Financier'!$C$19+'BP Financier'!$D$16+'BP Financier'!$D$19+'BP Financier'!$E$16+'BP Financier'!$E$19+'BP Financier'!$C$22+'BP Financier'!$D$22+'BP Financier'!$E$22))*$V5171*Z5171/(1-$W5171)","v":{"v":76744.12086516847,"d":"76,744"}},{"$f":"'BP Financier'!$E$44*(('BP Financier'!$C$19+'BP Financier'!$D$19+'BP Financier'!$E$19)/('BP Financier'!$C$16+'BP Financier'!$C$19+'BP Financier'!$D$16+'BP Financier'!$D$19+'BP Financier'!$E$16+'BP Financier'!$E$19+'BP Financier'!$C$22+'BP Financier'!$D$22+'BP Financier'!$E$22))*$V5171*AA5171/(1-$W5171)","v":{"v":9481.586210374564,"d":"9,482"}},{"$f":"'BP Financier'!$E$44*(('BP Financier'!$C$19+'BP Financier'!$D$19+'BP Financier'!$E$19)/('BP Financier'!$C$16+'BP Financier'!$C$19+'BP Financier'!$D$16+'BP Financier'!$D$19+'BP Financier'!$E$16+'BP Financier'!$E$19+'BP Financier'!$C$22+'BP Financier'!$D$22+'BP Financier'!$E$22))*$V5171*AB5171/(1-$W5171)","v":{"v":4538.195109239106,"d":"4,538"}},null,{"v":0.01,"d":"1.00%"},{"$f":"Actif!$E$28/100","v":{"v":0.28900000000000003,"d":"28.90%"}},{"$f":"Actif!$E$30/100","v":{"v":0.09050000000000001,"d":"9.05%"}},{"$f":"Actif!$E$31/100","v":{"v":0.0605,"d":"6.05%"}},{"$f":"Actif!$E$32/100","v":{"v":0.47350000000000003,"d":"47.35%"}},{"$f":"Actif!$E$33/100","v":{"v":0.0585,"d":"5.85%"}},{"$f":"Actif!$E$29/100","v":{"v":0.027999999999999997,"d":"2.80%"}}]
[null,"#68",40,2028,"H","A_PER",{"v":0.44999999999999996,"d":"0.45"},{"v":0.38999999999999996,"d":"0.39"},0.6,0.6,85,0,{"$f":"ROUND(Primes!$O$7*V5172,0)","v":7},{"$f":"'BP Financier'!$E$33*(('BP Financier'!$C$19+'BP Financier'!$D$19+'BP Financier'!$E$19)/('BP Financier'!$C$16+'BP Financier'!$C$19+'BP Financier'!$D$16+'BP Financier'!$D$19+'BP Financier'!$E$16+'BP Financier'!$E$19))*V5172","v":{"v":205471.0113562818,"d":"205,471"}},{"v":115237.74009532161,"d":"115,238"},{"$f":"'BP Financier'!$E$44*(('BP Financier'!$C$19+'BP Financier'!$D$19+'BP Financier'!$E$19)/('BP Financier'!$C$16+'BP Financier'!$C$19+'BP Financier'!$D$16+'BP Financier'!$D$19+'BP Financier'!$E$16+'BP Financier'!$E$19+'BP Financier'!$C$22+'BP Financier'!$D$22+'BP Financier'!$E$22))*$V5172*X5172/(1-$W5172)","v":{"v":14668.09490664783,"d":"14,668"}},{"$f":"'BP Financier'!$E$44*(('BP Financier'!$C$19+'BP Financier'!$D$19+'BP Financier'!$E$19)/('BP Financier'!$C$16+'BP Financier'!$C$19+'BP Financier'!$D$16+'BP Financier'!$D$19+'BP Financier'!$E$16+'BP Financier'!$E$19+'BP Financier'!$C$22+'BP Financier'!$D$22+'BP Financier'!$E$22))*$V5172*Y5172/(1-$W5172)","v":{"v":9805.743003891641,"d":"9,806"}},{"$f":"'BP Financier'!$E$44*(('BP Financier'!$C$19+'BP Financier'!$D$19+'BP Financier'!$E$19)/('BP Financier'!$C$16+'BP Financier'!$C$19+'BP Financier'!$D$16+'BP Financier'!$D$19+'BP Financier'!$E$16+'BP Financier'!$E$19+'BP Financier'!$C$22+'BP Financier'!$D$22+'BP Financier'!$E$22))*$V5172*Z5172/(1-$W5172)","v":{"v":76744.12086516847,"d":"76,744"}},{"$f":"'BP Financier'!$E$44*(('BP Financier'!$C$19+'BP Financier'!$D$19+'BP Financier'!$E$19)/('BP Financier'!$C$16+'BP Financier'!$C$19+'BP Financier'!$D$16+'BP Financier'!$D$19+'BP Financier'!$E$16+'BP Financier'!$E$19+'BP Financier'!$C$22+'BP Financier'!$D$22+'BP Financier'!$E$22))*$V5172*AA5172/(1-$W5172)","v":{"v":9481.586210374564,"d":"9,482"}},{"$f":"'BP Financier'!$E$44*(('BP Financier'!$C$19+'BP Financier'!$D$19+'BP Financier'!$E$19)/('BP Financier'!$C$16+'BP Financier'!$C$19+'BP Financier'!$D$16+'BP Financier'!$D$19+'BP Financier'!$E$16+'BP Financier'!$E$19+'BP Financier'!$C$22+'BP Financier'!$D$22+'BP Financier'!$E$22))*$V5172*AB5172/(1-$W5172)","v":{"v":4538.195109239106,"d":"4,538"}},null,{"v":0.01,"d":"1.00%"},{"$f":"Actif!$E$28/100","v":{"v":0.28900000000000003,"d":"28.90%"}},{"$f":"Actif!$E$30/100","v":{"v":0.09050000000000001,"d":"9.05%"}},{"$f":"Actif!$E$31/100","v":{"v":0.0605,"d":"6.05%"}},{"$f":"Actif!$E$32/100","v":{"v":0.47350000000000003,"d":"47.35%"}},{"$f":"Actif!$E$33/100","v":{"v":0.0585,"d":"5.85%"}},{"$f":"Actif!$E$29/100","v":{"v":0.027999999999999997,"d":"2.80%"}}]
[null,"#69",40,2029,"H","A_PER",{"v":0.44999999999999996,"d":"0.45"},{"v":0.38999999999999996,"d":"0.39"},0.6,0.6,85,0,{"$f":"ROUND(Primes!$O$7*V5173,0)","v":7},{"$f":"'BP Financier'!$E$33*(('BP Financier'!$C$19+'BP Financier'!$D$19+'BP Financier'!$E$19)/('BP Financier'!$C$16+'BP Financier'!$C$19+'BP Financier'!$D$16+'BP Financier'!$D$19+'BP Financier'!$E$16+'BP Financier'!$E$19))*V5173","v":{"v":205471.0113562818,"d":"205,471"}},{"v":115237.74009532161,"d":"115,238"},{"$f":"'BP Financier'!$E$44*(('BP Financier'!$C$19+'BP Financier'!$D$19+'BP Financier'!$E$19)/('BP Financier'!$C$16+'BP Financier'!$C$19+'BP Financier'!$D$16+'BP Financier'!$D$19+'BP Financier'!$E$16+'BP Financier'!$E$19+'BP Financier'!$C$22+'BP Financier'!$D$22+'BP Financier'!$E$22))*$V5173*X5173/(1-$W5173)","v":{"v":14668.09490664783,"d":"14,668"}},{"$f":"'BP Financier'!$E$44*(('BP Financier'!$C$19+'BP Financier'!$D$19+'BP Financier'!$E$19)/('BP Financier'!$C$16+'BP Financier'!$C$19+'BP Financier'!$D$16+'BP Financier'!$D$19+'BP Financier'!$E$16+'BP Financier'!$E$19+'BP Financier'!$C$22+'BP Financier'!$D$22+'BP Financier'!$E$22))*$V5173*Y5173/(1-$W5173)","v":{"v":9805.743003891641,"d":"9,806"}},{"$f":"'BP Financier'!$E$44*(('BP Financier'!$C$19+'BP Financier'!$D$19+'BP Financier'!$E$19)/('BP Financier'!$C$16+'BP Financier'!$C$19+'BP Financier'!$D$16+'BP Financier'!$D$19+'BP Financier'!$E$16+'BP Financier'!$E$19+'BP Financier'!$C$22+'BP Financier'!$D$22+'BP Financier'!$E$22))*$V5173*Z5173/(1-$W5173)","v":{"v":76744.12086516847,"d":"76,744"}},{"$f":"'BP Financier'!$E$44*(('BP Financier'!$C$19+'BP Financier'!$D$19+'BP Financier'!$E$19)/('BP Financier'!$C$16+'BP Financier'!$C$19+'BP Financier'!$D$16+'BP Financier'!$D$19+'BP Financier'!$E$16+'BP Financier'!$E$19+'BP Financier'!$C$22+'BP Financier'!$D$22+'BP Financier'!$E$22))*$V5173*AA5173/(1-$W5173)","v":{"v":9481.586210374564,"d":"9,482"}},{"$f":"'BP Financier'!$E$44*(('BP Financier'!$C$19+'BP Financier'!$D$19+'BP Financier'!$E$19)/('BP Financier'!$C$16+'BP Financier'!$C$19+'BP Financier'!$D$16+'BP Financier'!$D$19+'BP Financier'!$E$16+'BP Financier'!$E$19+'BP Financier'!$C$22+'BP Financier'!$D$22+'BP Financier'!$E$22))*$V5173*AB5173/(1-$W5173)","v":{"v":4538.195109239106,"d":"4,538"}},null,{"v":0.01,"d":"1.00%"},{"$f":"Actif!$E$28/100","v":{"v":0.28900000000000003,"d":"28.90%"}},{"$f":"Actif!$E$30/100","v":{"v":0.09050000000000001,"d":"9.05%"}},{"$f":"Actif!$E$31/100","v":{"v":0.0605,"d":"6.05%"}},{"$f":"Actif!$E$32/100","v":{"v":0.47350000000000003,"d":"47.35%"}},{"$f":"Actif!$E$33/100","v":{"v":0.0585,"d":"5.85%"}},{"$f":"Actif!$E$29/100","v":{"v":0.027999999999999997,"d":"2.80%"}}]
[null,"#70",41,2026,"F","A_PER",{"v":0.44999999999999996,"d":"0.45"},{"v":0.38999999999999996,"d":"0.39"},0.6,0.6,85,0,{"$f":"ROUND(Primes!$O$7*V5174,0)","v":9},{"$f":"'BP Financier'!$E$33*(('BP Financier'!$C$19+'BP Financier'!$D$19+'BP Financier'!$E$19)/('BP Financier'!$C$16+'BP Financier'!$C$19+'BP Financier'!$D$16+'BP Financier'!$D$19+'BP Financier'!$E$16+'BP Financier'!$E$19))*V5174","v":{"v":273961.3484750424,"d":"273,961"}},{"v":153650.3201270955,"d":"153,650"},{"$f":"'BP Financier'!$E$44*(('BP Financier'!$C$19+'BP Financier'!$D$19+'BP Financier'!$E$19)/('BP Financier'!$C$16+'BP Financier'!$C$19+'BP Financier'!$D$16+'BP Financier'!$D$19+'BP Financier'!$E$16+'BP Financier'!$E$19+'BP Financier'!$C$22+'BP Financier'!$D$22+'BP Financier'!$E$22))*$V5174*X5174/(1-$W5174)","v":{"v":19557.45987553044,"d":"19,557"}},{"$f":"'BP Financier'!$E$44*(('BP Financier'!$C$19+'BP Financier'!$D$19+'BP Financier'!$E$19)/('BP Financier'!$C$16+'BP Financier'!$C$19+'BP Financier'!$D$16+'BP Financier'!$D$19+'BP Financier'!$E$16+'BP Financier'!$E$19+'BP Financier'!$C$22+'BP Financier'!$D$22+'BP Financier'!$E$22))*$V5174*Y5174/(1-$W5174)","v":{"v":13074.324005188857,"d":"13,074"}},{"$f":"'BP Financier'!$E$44*(('BP Financier'!$C$19+'BP Financier'!$D$19+'BP Financier'!$E$19)/('BP Financier'!$C$16+'BP Financier'!$C$19+'BP Financier'!$D$16+'BP Financier'!$D$19+'BP Financier'!$E$16+'BP Financier'!$E$19+'BP Financier'!$C$22+'BP Financier'!$D$22+'BP Financier'!$E$22))*$V5174*Z5174/(1-$W5174)","v":{"v":102325.4944868913,"d":"102,325"}},{"$f":"'BP Financier'!$E$44*(('BP Financier'!$C$19+'BP Financier'!$D$19+'BP Financier'!$E$19)/('BP Financier'!$C$16+'BP Financier'!$C$19+'BP Financier'!$D$16+'BP Financier'!$D$19+'BP Financier'!$E$16+'BP Financier'!$E$19+'BP Financier'!$C$22+'BP Financier'!$D$22+'BP Financier'!$E$22))*$V5174*AA5174/(1-$W5174)","v":{"v":12642.114947166085,"d":"12,642"}},{"$f":"'BP Financier'!$E$44*(('BP Financier'!$C$19+'BP Financier'!$D$19+'BP Financier'!$E$19)/('BP Financier'!$C$16+'BP Financier'!$C$19+'BP Financier'!$D$16+'BP Financier'!$D$19+'BP Financier'!$E$16+'BP Financier'!$E$19+'BP Financier'!$C$22+'BP Financier'!$D$22+'BP Financier'!$E$22))*$V5174*AB5174/(1-$W5174)","v":{"v":6050.9268123188085,"d":"6,051"}},null,{"v":0.013333333333333334,"d":"1.33%"},{"$f":"Actif!$E$28/100","v":{"v":0.28900000000000003,"d":"28.90%"}},{"$f":"Actif!$E$30/100","v":{"v":0.09050000000000001,"d":"9.05%"}},{"$f":"Actif!$E$31/100","v":{"v":0.0605,"d":"6.05%"}},{"$f":"Actif!$E$32/100","v":{"v":0.47350000000000003,"d":"47.35%"}},{"$f":"Actif!$E$33/100","v":{"v":0.0585,"d":"5.85%"}},{"$f":"Actif!$E$29/100","v":{"v":0.027999999999999997,"d":"2.80%"}}]
[null,"#71",41,2028,"F","A_PER",{"v":0.44999999999999996,"d":"0.45"},{"v":0.38999999999999996,"d":"0.39"},0.6,0.6,85,0,{"$f":"ROUND(Primes!$O$7*V5175,0)","v":9},{"$f":"'BP Financier'!$E$33*(('BP Financier'!$C$19+'BP Financier'!$D$19+'BP Financier'!$E$19)/('BP Financier'!$C$16+'BP Financier'!$C$19+'BP Financier'!$D$16+'BP Financier'!$D$19+'BP Financier'!$E$16+'BP Financier'!$E$19))*V5175","v":{"v":273961.3484750424,"d":"273,961"}},{"v":153650.3201270955,"d":"153,650"},{"$f":"'BP Financier'!$E$44*(('BP Financier'!$C$19+'BP Financier'!$D$19+'BP Financier'!$E$19)/('BP Financier'!$C$16+'BP Financier'!$C$19+'BP Financier'!$D$16+'BP Financier'!$D$19+'BP Financier'!$E$16+'BP Financier'!$E$19+'BP Financier'!$C$22+'BP Financier'!$D$22+'BP Financier'!$E$22))*$V5175*X5175/(1-$W5175)","v":{"v":19557.45987553044,"d":"19,557"}},{"$f":"'BP Financier'!$E$44*(('BP Financier'!$C$19+'BP Financier'!$D$19+'BP Financier'!$E$19)/('BP Financier'!$C$16+'BP Financier'!$C$19+'BP Financier'!$D$16+'BP Financier'!$D$19+'BP Financier'!$E$16+'BP Financier'!$E$19+'BP Financier'!$C$22+'BP Financier'!$D$22+'BP Financier'!$E$22))*$V5175*Y5175/(1-$W5175)","v":{"v":13074.324005188857,"d":"13,074"}},{"$f":"'BP Financier'!$E$44*(('BP Financier'!$C$19+'BP Financier'!$D$19+'BP Financier'!$E$19)/('BP Financier'!$C$16+'BP Financier'!$C$19+'BP Financier'!$D$16+'BP Financier'!$D$19+'BP Financier'!$E$16+'BP Financier'!$E$19+'BP Financier'!$C$22+'BP Financier'!$D$22+'BP Financier'!$E$22))*$V5175*Z5175/(1-$W5175)","v":{"v":102325.4944868913,"d":"102,325"}},{"$f":"'BP Financier'!$E$44*(('BP Financier'!$C$19+'BP Financier'!$D$19+'BP Financier'!$E$19)/('BP Financier'!$C$16+'BP Financier'!$C$19+'BP Financier'!$D$16+'BP Financier'!$D$19+'BP Financier'!$E$16+'BP Financier'!$E$19+'BP Financier'!$C$22+'BP Financier'!$D$22+'BP Financier'!$E$22))*$V5175*AA5175/(1-$W5175)","v":{"v":12642.114947166085,"d":"12,642"}},{"$f":"'BP Financier'!$E$44*(('BP Financier'!$C$19+'BP Financier'!$D$19+'BP Financier'!$E$19)/('BP Financier'!$C$16+'BP Financier'!$C$19+'BP Financier'!$D$16+'BP Financier'!$D$19+'BP Financier'!$E$16+'BP Financier'!$E$19+'BP Financier'!$C$22+'BP Financier'!$D$22+'BP Financier'!$E$22))*$V5175*AB5175/(1-$W5175)","v":{"v":6050.9268123188085,"d":"6,051"}},null,{"v":0.013333333333333334,"d":"1.33%"},{"$f":"Actif!$E$28/100","v":{"v":0.28900000000000003,"d":"28.90%"}},{"$f":"Actif!$E$30/100","v":{"v":0.09050000000000001,"d":"9.05%"}},{"$f":"Actif!$E$31/100","v":{"v":0.0605,"d":"6.05%"}},{"$f":"Actif!$E$32/100","v":{"v":0.47350000000000003,"d":"47.35%"}},{"$f":"Actif!$E$33/100","v":{"v":0.0585,"d":"5.85%"}},{"$f":"Actif!$E$29/100","v":{"v":0.027999999999999997,"d":"2.80%"}}]
[null,"#72",41,2029,"F","A_PER",{"v":0.44999999999999996,"d":"0.45"},{"v":0.38999999999999996,"d":"0.39"},0.6,0.6,85,0,{"$f":"ROUND(Primes!$O$7*V5176,0)","v":9},{"$f":"'BP Financier'!$E$33*(('BP Financier'!$C$19+'BP Financier'!$D$19+'BP Financier'!$E$19)/('BP Financier'!$C$16+'BP Financier'!$C$19+'BP Financier'!$D$16+'BP Financier'!$D$19+'BP Financier'!$E$16+'BP Financier'!$E$19))*V5176","v":{"v":273961.3484750424,"d":"273,961"}},{"v":153650.3201270955,"d":"153,650"},{"$f":"'BP Financier'!$E$44*(('BP Financier'!$C$19+'BP Financier'!$D$19+'BP Financier'!$E$19)/('BP Financier'!$C$16+'BP Financier'!$C$19+'BP Financier'!$D$16+'BP Financier'!$D$19+'BP Financier'!$E$16+'BP Financier'!$E$19+'BP Financier'!$C$22+'BP Financier'!$D$22+'BP Financier'!$E$22))*$V5176*X5176/(1-$W5176)","v":{"v":19557.45987553044,"d":"19,557"}},{"$f":"'BP Financier'!$E$44*(('BP Financier'!$C$19+'BP Financier'!$D$19+'BP Financier'!$E$19)/('BP Financier'!$C$16+'BP Financier'!$C$19+'BP Financier'!$D$16+'BP Financier'!$D$19+'BP Financier'!$E$16+'BP Financier'!$E$19+'BP Financier'!$C$22+'BP Financier'!$D$22+'BP Financier'!$E$22))*$V5176*Y5176/(1-$W5176)","v":{"v":13074.324005188857,"d":"13,074"}},{"$f":"'BP Financier'!$E$44*(('BP Financier'!$C$19+'BP Financier'!$D$19+'BP Financier'!$E$19)/('BP Financier'!$C$16+'BP Financier'!$C$19+'BP Financier'!$D$16+'BP Financier'!$D$19+'BP Financier'!$E$16+'BP Financier'!$E$19+'BP Financier'!$C$22+'BP Financier'!$D$22+'BP Financier'!$E$22))*$V5176*Z5176/(1-$W5176)","v":{"v":102325.4944868913,"d":"102,325"}},{"$f":"'BP Financier'!$E$44*(('BP Financier'!$C$19+'BP Financier'!$D$19+'BP Financier'!$E$19)/('BP Financier'!$C$16+'BP Financier'!$C$19+'BP Financier'!$D$16+'BP Financier'!$D$19+'BP Financier'!$E$16+'BP Financier'!$E$19+'BP Financier'!$C$22+'BP Financier'!$D$22+'BP Financier'!$E$22))*$V5176*AA5176/(1-$W5176)","v":{"v":12642.114947166085,"d":"12,642"}},{"$f":"'BP Financier'!$E$44*(('BP Financier'!$C$19+'BP Financier'!$D$19+'BP Financier'!$E$19)/('BP Financier'!$C$16+'BP Financier'!$C$19+'BP Financier'!$D$16+'BP Financier'!$D$19+'BP Financier'!$E$16+'BP Financier'!$E$19+'BP Financier'!$C$22+'BP Financier'!$D$22+'BP Financier'!$E$22))*$V5176*AB5176/(1-$W5176)","v":{"v":6050.9268123188085,"d":"6,051"}},null,{"v":0.013333333333333334,"d":"1.33%"},{"$f":"Actif!$E$28/100","v":{"v":0.28900000000000003,"d":"28.90%"}},{"$f":"Actif!$E$30/100","v":{"v":0.09050000000000001,"d":"9.05%"}},{"$f":"Actif!$E$31/100","v":{"v":0.0605,"d":"6.05%"}},{"$f":"Actif!$E$32/100","v":{"v":0.47350000000000003,"d":"47.35%"}},{"$f":"Actif!$E$33/100","v":{"v":0.0585,"d":"5.85%"}},{"$f":"Actif!$E$29/100","v":{"v":0.027999999999999997,"d":"2.80%"}}]
[null,"#73",42,2026,"H","A_PER",{"v":0.44999999999999996,"d":"0.45"},{"v":0.38999999999999996,"d":"0.39"},0.6,0.6,85,0,{"$f":"ROUND(Primes!$O$7*V5177,0)","v":9},{"$f":"'BP Financier'!$E$33*(('BP Financier'!$C$19+'BP Financier'!$D$19+'BP Financier'!$E$19)/('BP Financier'!$C$16+'BP Financier'!$C$19+'BP Financier'!$D$16+'BP Financier'!$D$19+'BP Financier'!$E$16+'BP Financier'!$E$19))*V5177","v":{"v":273961.3484750424,"d":"273,961"}},{"v":153650.3201270955,"d":"153,650"},{"$f":"'BP Financier'!$E$44*(('BP Financier'!$C$19+'BP Financier'!$D$19+'BP Financier'!$E$19)/('BP Financier'!$C$16+'BP Financier'!$C$19+'BP Financier'!$D$16+'BP Financier'!$D$19+'BP Financier'!$E$16+'BP Financier'!$E$19+'BP Financier'!$C$22+'BP Financier'!$D$22+'BP Financier'!$E$22))*$V5177*X5177/(1-$W5177)","v":{"v":19557.45987553044,"d":"19,557"}},{"$f":"'BP Financier'!$E$44*(('BP Financier'!$C$19+'BP Financier'!$D$19+'BP Financier'!$E$19)/('BP Financier'!$C$16+'BP Financier'!$C$19+'BP Financier'!$D$16+'BP Financier'!$D$19+'BP Financier'!$E$16+'BP Financier'!$E$19+'BP Financier'!$C$22+'BP Financier'!$D$22+'BP Financier'!$E$22))*$V5177*Y5177/(1-$W5177)","v":{"v":13074.324005188857,"d":"13,074"}},{"$f":"'BP Financier'!$E$44*(('BP Financier'!$C$19+'BP Financier'!$D$19+'BP Financier'!$E$19)/('BP Financier'!$C$16+'BP Financier'!$C$19+'BP Financier'!$D$16+'BP Financier'!$D$19+'BP Financier'!$E$16+'BP Financier'!$E$19+'BP Financier'!$C$22+'BP Financier'!$D$22+'BP Financier'!$E$22))*$V5177*Z5177/(1-$W5177)","v":{"v":102325.4944868913,"d":"102,325"}},{"$f":"'BP Financier'!$E$44*(('BP Financier'!$C$19+'BP Financier'!$D$19+'BP Financier'!$E$19)/('BP Financier'!$C$16+'BP Financier'!$C$19+'BP Financier'!$D$16+'BP Financier'!$D$19+'BP Financier'!$E$16+'BP Financier'!$E$19+'BP Financier'!$C$22+'BP Financier'!$D$22+'BP Financier'!$E$22))*$V5177*AA5177/(1-$W5177)","v":{"v":12642.114947166085,"d":"12,642"}},{"$f":"'BP Financier'!$E$44*(('BP Financier'!$C$19+'BP Financier'!$D$19+'BP Financier'!$E$19)/('BP Financier'!$C$16+'BP Financier'!$C$19+'BP Financier'!$D$16+'BP Financier'!$D$19+'BP Financier'!$E$16+'BP Financier'!$E$19+'BP Financier'!$C$22+'BP Financier'!$D$22+'BP Financier'!$E$22))*$V5177*AB5177/(1-$W5177)","v":{"v":6050.9268123188085,"d":"6,051"}},null,{"v":0.013333333333333334,"d":"1.33%"},{"$f":"Actif!$E$28/100","v":{"v":0.28900000000000003,"d":"28.90%"}},{"$f":"Actif!$E$30/100","v":{"v":0.09050000000000001,"d":"9.05%"}},{"$f":"Actif!$E$31/100","v":{"v":0.0605,"d":"6.05%"}},{"$f":"Actif!$E$32/100","v":{"v":0.47350000000000003,"d":"47.35%"}},{"$f":"Actif!$E$33/100","v":{"v":0.0585,"d":"5.85%"}},{"$f":"Actif!$E$29/100","v":{"v":0.027999999999999997,"d":"2.80%"}}]
[null,"#74",42,2028,"H","A_PER",{"v":0.44999999999999996,"d":"0.45"},{"v":0.38999999999999996,"d":"0.39"},0.6,0.6,85,0,{"$f":"ROUND(Primes!$O$7*V5178,0)","v":9},{"$f":"'BP Financier'!$E$33*(('BP Financier'!$C$19+'BP Financier'!$D$19+'BP Financier'!$E$19)/('BP Financier'!$C$16+'BP Financier'!$C$19+'BP Financier'!$D$16+'BP Financier'!$D$19+'BP Financier'!$E$16+'BP Financier'!$E$19))*V5178","v":{"v":273961.3484750424,"d":"273,961"}},{"v":153650.3201270955,"d":"153,650"},{"$f":"'BP Financier'!$E$44*(('BP Financier'!$C$19+'BP Financier'!$D$19+'BP Financier'!$E$19)/('BP Financier'!$C$16+'BP Financier'!$C$19+'BP Financier'!$D$16+'BP Financier'!$D$19+'BP Financier'!$E$16+'BP Financier'!$E$19+'BP Financier'!$C$22+'BP Financier'!$D$22+'BP Financier'!$E$22))*$V5178*X5178/(1-$W5178)","v":{"v":19557.45987553044,"d":"19,557"}},{"$f":"'BP Financier'!$E$44*(('BP Financier'!$C$19+'BP Financier'!$D$19+'BP Financier'!$E$19)/('BP Financier'!$C$16+'BP Financier'!$C$19+'BP Financier'!$D$16+'BP Financier'!$D$19+'BP Financier'!$E$16+'BP Financier'!$E$19+'BP Financier'!$C$22+'BP Financier'!$D$22+'BP Financier'!$E$22))*$V5178*Y5178/(1-$W5178)","v":{"v":13074.324005188857,"d":"13,074"}},{"$f":"'BP Financier'!$E$44*(('BP Financier'!$C$19+'BP Financier'!$D$19+'BP Financier'!$E$19)/('BP Financier'!$C$16+'BP Financier'!$C$19+'BP Financier'!$D$16+'BP Financier'!$D$19+'BP Financier'!$E$16+'BP Financier'!$E$19+'BP Financier'!$C$22+'BP Financier'!$D$22+'BP Financier'!$E$22))*$V5178*Z5178/(1-$W5178)","v":{"v":102325.4944868913,"d":"102,325"}},{"$f":"'BP Financier'!$E$44*(('BP Financier'!$C$19+'BP Financier'!$D$19+'BP Financier'!$E$19)/('BP Financier'!$C$16+'BP Financier'!$C$19+'BP Financier'!$D$16+'BP Financier'!$D$19+'BP Financier'!$E$16+'BP Financier'!$E$19+'BP Financier'!$C$22+'BP Financier'!$D$22+'BP Financier'!$E$22))*$V5178*AA5178/(1-$W5178)","v":{"v":12642.114947166085,"d":"12,642"}},{"$f":"'BP Financier'!$E$44*(('BP Financier'!$C$19+'BP Financier'!$D$19+'BP Financier'!$E$19)/('BP Financier'!$C$16+'BP Financier'!$C$19+'BP Financier'!$D$16+'BP Financier'!$D$19+'BP Financier'!$E$16+'BP Financier'!$E$19+'BP Financier'!$C$22+'BP Financier'!$D$22+'BP Financier'!$E$22))*$V5178*AB5178/(1-$W5178)","v":{"v":6050.9268123188085,"d":"6,051"}},null,{"v":0.013333333333333334,"d":"1.33%"},{"$f":"Actif!$E$28/100","v":{"v":0.28900000000000003,"d":"28.90%"}},{"$f":"Actif!$E$30/100","v":{"v":0.09050000000000001,"d":"9.05%"}},{"$f":"Actif!$E$31/100","v":{"v":0.0605,"d":"6.05%"}},{"$f":"Actif!$E$32/100","v":{"v":0.47350000000000003,"d":"47.35%"}},{"$f":"Actif!$E$33/100","v":{"v":0.0585,"d":"5.85%"}},{"$f":"Actif!$E$29/100","v":{"v":0.027999999999999997,"d":"2.80%"}}]
[null,"#75",42,2029,"H","A_PER",{"v":0.44999999999999996,"d":"0.45"},{"v":0.38999999999999996,"d":"0.39"},0.6,0.6,85,0,{"$f":"ROUND(Primes!$O$7*V5179,0)","v":9},{"$f":"'BP Financier'!$E$33*(('BP Financier'!$C$19+'BP Financier'!$D$19+'BP Financier'!$E$19)/('BP Financier'!$C$16+'BP Financier'!$C$19+'BP Financier'!$D$16+'BP Financier'!$D$19+'BP Financier'!$E$16+'BP Financier'!$E$19))*V5179","v":{"v":273961.3484750424,"d":"273,961"}},{"v":153650.3201270955,"d":"153,650"},{"$f":"'BP Financier'!$E$44*(('BP Financier'!$C$19+'BP Financier'!$D$19+'BP Financier'!$E$19)/('BP Financier'!$C$16+'BP Financier'!$C$19+'BP Financier'!$D$16+'BP Financier'!$D$19+'BP Financier'!$E$16+'BP Financier'!$E$19+'BP Financier'!$C$22+'BP Financier'!$D$22+'BP Financier'!$E$22))*$V5179*X5179/(1-$W5179)","v":{"v":19557.45987553044,"d":"19,557"}},{"$f":"'BP Financier'!$E$44*(('BP Financier'!$C$19+'BP Financier'!$D$19+'BP Financier'!$E$19)/('BP Financier'!$C$16+'BP Financier'!$C$19+'BP Financier'!$D$16+'BP Financier'!$D$19+'BP Financier'!$E$16+'BP Financier'!$E$19+'BP Financier'!$C$22+'BP Financier'!$D$22+'BP Financier'!$E$22))*$V5179*Y5179/(1-$W5179)","v":{"v":13074.324005188857,"d":"13,074"}},{"$f":"'BP Financier'!$E$44*(('BP Financier'!$C$19+'BP Financier'!$D$19+'BP Financier'!$E$19)/('BP Financier'!$C$16+'BP Financier'!$C$19+'BP Financier'!$D$16+'BP Financier'!$D$19+'BP Financier'!$E$16+'BP Financier'!$E$19+'BP Financier'!$C$22+'BP Financier'!$D$22+'BP Financier'!$E$22))*$V5179*Z5179/(1-$W5179)","v":{"v":102325.4944868913,"d":"102,325"}},{"$f":"'BP Financier'!$E$44*(('BP Financier'!$C$19+'BP Financier'!$D$19+'BP Financier'!$E$19)/('BP Financier'!$C$16+'BP Financier'!$C$19+'BP Financier'!$D$16+'BP Financier'!$D$19+'BP Financier'!$E$16+'BP Financier'!$E$19+'BP Financier'!$C$22+'BP Financier'!$D$22+'BP Financier'!$E$22))*$V5179*AA5179/(1-$W5179)","v":{"v":12642.114947166085,"d":"12,642"}},{"$f":"'BP Financier'!$E$44*(('BP Financier'!$C$19+'BP Financier'!$D$19+'BP Financier'!$E$19)/('BP Financier'!$C$16+'BP Financier'!$C$19+'BP Financier'!$D$16+'BP Financier'!$D$19+'BP Financier'!$E$16+'BP Financier'!$E$19+'BP Financier'!$C$22+'BP Financier'!$D$22+'BP Financier'!$E$22))*$V5179*AB5179/(1-$W5179)","v":{"v":6050.9268123188085,"d":"6,051"}},null,{"v":0.013333333333333334,"d":"1.33%"},{"$f":"Actif!$E$28/100","v":{"v":0.28900000000000003,"d":"28.90%"}},{"$f":"Actif!$E$30/100","v":{"v":0.09050000000000001,"d":"9.05%"}},{"$f":"Actif!$E$31/100","v":{"v":0.0605,"d":"6.05%"}},{"$f":"Actif!$E$32/100","v":{"v":0.47350000000000003,"d":"47.35%"}},{"$f":"Actif!$E$33/100","v":{"v":0.0585,"d":"5.85%"}},{"$f":"Actif!$E$29/100","v":{"v":0.027999999999999997,"d":"2.80%"}}]
[null,"#76",43,2026,"H","A_PER",{"v":0.44999999999999996,"d":"0.45"},{"v":0.38999999999999996,"d":"0.39"},0.6,0.6,85,0,{"$f":"ROUND(Primes!$O$7*V5180,0)","v":9},{"$f":"'BP Financier'!$E$33*(('BP Financier'!$C$19+'BP Financier'!$D$19+'BP Financier'!$E$19)/('BP Financier'!$C$16+'BP Financier'!$C$19+'BP Financier'!$D$16+'BP Financier'!$D$19+'BP Financier'!$E$16+'BP Financier'!$E$19))*V5180","v":{"v":273961.3484750424,"d":"273,961"}},{"v":153650.3201270955,"d":"153,650"},{"$f":"'BP Financier'!$E$44*(('BP Financier'!$C$19+'BP Financier'!$D$19+'BP Financier'!$E$19)/('BP Financier'!$C$16+'BP Financier'!$C$19+'BP Financier'!$D$16+'BP Financier'!$D$19+'BP Financier'!$E$16+'BP Financier'!$E$19+'BP Financier'!$C$22+'BP Financier'!$D$22+'BP Financier'!$E$22))*$V5180*X5180/(1-$W5180)","v":{"v":19557.45987553044,"d":"19,557"}},{"$f":"'BP Financier'!$E$44*(('BP Financier'!$C$19+'BP Financier'!$D$19+'BP Financier'!$E$19)/('BP Financier'!$C$16+'BP Financier'!$C$19+'BP Financier'!$D$16+'BP Financier'!$D$19+'BP Financier'!$E$16+'BP Financier'!$E$19+'BP Financier'!$C$22+'BP Financier'!$D$22+'BP Financier'!$E$22))*$V5180*Y5180/(1-$W5180)","v":{"v":13074.324005188857,"d":"13,074"}},{"$f":"'BP Financier'!$E$44*(('BP Financier'!$C$19+'BP Financier'!$D$19+'BP Financier'!$E$19)/('BP Financier'!$C$16+'BP Financier'!$C$19+'BP Financier'!$D$16+'BP Financier'!$D$19+'BP Financier'!$E$16+'BP Financier'!$E$19+'BP Financier'!$C$22+'BP Financier'!$D$22+'BP Financier'!$E$22))*$V5180*Z5180/(1-$W5180)","v":{"v":102325.4944868913,"d":"102,325"}},{"$f":"'BP Financier'!$E$44*(('BP Financier'!$C$19+'BP Financier'!$D$19+'BP Financier'!$E$19)/('BP Financier'!$C$16+'BP Financier'!$C$19+'BP Financier'!$D$16+'BP Financier'!$D$19+'BP Financier'!$E$16+'BP Financier'!$E$19+'BP Financier'!$C$22+'BP Financier'!$D$22+'BP Financier'!$E$22))*$V5180*AA5180/(1-$W5180)","v":{"v":12642.114947166085,"d":"12,642"}},{"$f":"'BP Financier'!$E$44*(('BP Financier'!$C$19+'BP Financier'!$D$19+'BP Financier'!$E$19)/('BP Financier'!$C$16+'BP Financier'!$C$19+'BP Financier'!$D$16+'BP Financier'!$D$19+'BP Financier'!$E$16+'BP Financier'!$E$19+'BP Financier'!$C$22+'BP Financier'!$D$22+'BP Financier'!$E$22))*$V5180*AB5180/(1-$W5180)","v":{"v":6050.9268123188085,"d":"6,051"}},null,{"v":0.013333333333333334,"d":"1.33%"},{"$f":"Actif!$E$28/100","v":{"v":0.28900000000000003,"d":"28.90%"}},{"$f":"Actif!$E$30/100","v":{"v":0.09050000000000001,"d":"9.05%"}},{"$f":"Actif!$E$31/100","v":{"v":0.0605,"d":"6.05%"}},{"$f":"Actif!$E$32/100","v":{"v":0.47350000000000003,"d":"47.35%"}},{"$f":"Actif!$E$33/100","v":{"v":0.0585,"d":"5.85%"}},{"$f":"Actif!$E$29/100","v":{"v":0.027999999999999997,"d":"2.80%"}}]
[null,"#77",43,2028,"H","A_PER",{"v":0.44999999999999996,"d":"0.45"},{"v":0.38999999999999996,"d":"0.39"},0.6,0.6,85,0,{"$f":"ROUND(Primes!$O$7*V5181,0)","v":9},{"$f":"'BP Financier'!$E$33*(('BP Financier'!$C$19+'BP Financier'!$D$19+'BP Financier'!$E$19)/('BP Financier'!$C$16+'BP Financier'!$C$19+'BP Financier'!$D$16+'BP Financier'!$D$19+'BP Financier'!$E$16+'BP Financier'!$E$19))*V5181","v":{"v":273961.3484750424,"d":"273,961"}},{"v":153650.3201270955,"d":"153,650"},{"$f":"'BP Financier'!$E$44*(('BP Financier'!$C$19+'BP Financier'!$D$19+'BP Financier'!$E$19)/('BP Financier'!$C$16+'BP Financier'!$C$19+'BP Financier'!$D$16+'BP Financier'!$D$19+'BP Financier'!$E$16+'BP Financier'!$E$19+'BP Financier'!$C$22+'BP Financier'!$D$22+'BP Financier'!$E$22))*$V5181*X5181/(1-$W5181)","v":{"v":19557.45987553044,"d":"19,557"}},{"$f":"'BP Financier'!$E$44*(('BP Financier'!$C$19+'BP Financier'!$D$19+'BP Financier'!$E$19)/('BP Financier'!$C$16+'BP Financier'!$C$19+'BP Financier'!$D$16+'BP Financier'!$D$19+'BP Financier'!$E$16+'BP Financier'!$E$19+'BP Financier'!$C$22+'BP Financier'!$D$22+'BP Financier'!$E$22))*$V5181*Y5181/(1-$W5181)","v":{"v":13074.324005188857,"d":"13,074"}},{"$f":"'BP Financier'!$E$44*(('BP Financier'!$C$19+'BP Financier'!$D$19+'BP Financier'!$E$19)/('BP Financier'!$C$16+'BP Financier'!$C$19+'BP Financier'!$D$16+'BP Financier'!$D$19+'BP Financier'!$E$16+'BP Financier'!$E$19+'BP Financier'!$C$22+'BP Financier'!$D$22+'BP Financier'!$E$22))*$V5181*Z5181/(1-$W5181)","v":{"v":102325.4944868913,"d":"102,325"}},{"$f":"'BP Financier'!$E$44*(('BP Financier'!$C$19+'BP Financier'!$D$19+'BP Financier'!$E$19)/('BP Financier'!$C$16+'BP Financier'!$C$19+'BP Financier'!$D$16+'BP Financier'!$D$19+'BP Financier'!$E$16+'BP Financier'!$E$19+'BP Financier'!$C$22+'BP Financier'!$D$22+'BP Financier'!$E$22))*$V5181*AA5181/(1-$W5181)","v":{"v":12642.114947166085,"d":"12,642"}},{"$f":"'BP Financier'!$E$44*(('BP Financier'!$C$19+'BP Financier'!$D$19+'BP Financier'!$E$19)/('BP Financier'!$C$16+'BP Financier'!$C$19+'BP Financier'!$D$16+'BP Financier'!$D$19+'BP Financier'!$E$16+'BP Financier'!$E$19+'BP Financier'!$C$22+'BP Financier'!$D$22+'BP Financier'!$E$22))*$V5181*AB5181/(1-$W5181)","v":{"v":6050.9268123188085,"d":"6,051"}},null,{"v":0.013333333333333334,"d":"1.33%"},{"$f":"Actif!$E$28/100","v":{"v":0.28900000000000003,"d":"28.90%"}},{"$f":"Actif!$E$30/100","v":{"v":0.09050000000000001,"d":"9.05%"}},{"$f":"Actif!$E$31/100","v":{"v":0.0605,"d":"6.05%"}},{"$f":"Actif!$E$32/100","v":{"v":0.47350000000000003,"d":"47.35%"}},{"$f":"Actif!$E$33/100","v":{"v":0.0585,"d":"5.85%"}},{"$f":"Actif!$E$29/100","v":{"v":0.027999999999999997,"d":"2.80%"}}]
[null,"#78",43,2029,"H","A_PER",{"v":0.44999999999999996,"d":"0.45"},{"v":0.38999999999999996,"d":"0.39"},0.6,0.6,85,0,{"$f":"ROUND(Primes!$O$7*V5182,0)","v":9},{"$f":"'BP Financier'!$E$33*(('BP Financier'!$C$19+'BP Financier'!$D$19+'BP Financier'!$E$19)/('BP Financier'!$C$16+'BP Financier'!$C$19+'BP Financier'!$D$16+'BP Financier'!$D$19+'BP Financier'!$E$16+'BP Financier'!$E$19))*V5182","v":{"v":273961.3484750424,"d":"273,961"}},{"v":153650.3201270955,"d":"153,650"},{"$f":"'BP Financier'!$E$44*(('BP Financier'!$C$19+'BP Financier'!$D$19+'BP Financier'!$E$19)/('BP Financier'!$C$16+'BP Financier'!$C$19+'BP Financier'!$D$16+'BP Financier'!$D$19+'BP Financier'!$E$16+'BP Financier'!$E$19+'BP Financier'!$C$22+'BP Financier'!$D$22+'BP Financier'!$E$22))*$V5182*X5182/(1-$W5182)","v":{"v":19557.45987553044,"d":"19,557"}},{"$f":"'BP Financier'!$E$44*(('BP Financier'!$C$19+'BP Financier'!$D$19+'BP Financier'!$E$19)/('BP Financier'!$C$16+'BP Financier'!$C$19+'BP Financier'!$D$16+'BP Financier'!$D$19+'BP Financier'!$E$16+'BP Financier'!$E$19+'BP Financier'!$C$22+'BP Financier'!$D$22+'BP Financier'!$E$22))*$V5182*Y5182/(1-$W5182)","v":{"v":13074.324005188857,"d":"13,074"}},{"$f":"'BP Financier'!$E$44*(('BP Financier'!$C$19+'BP Financier'!$D$19+'BP Financier'!$E$19)/('BP Financier'!$C$16+'BP Financier'!$C$19+'BP Financier'!$D$16+'BP Financier'!$D$19+'BP Financier'!$E$16+'BP Financier'!$E$19+'BP Financier'!$C$22+'BP Financier'!$D$22+'BP Financier'!$E$22))*$V5182*Z5182/(1-$W5182)","v":{"v":102325.4944868913,"d":"102,325"}},{"$f":"'BP Financier'!$E$44*(('BP Financier'!$C$19+'BP Financier'!$D$19+'BP Financier'!$E$19)/('BP Financier'!$C$16+'BP Financier'!$C$19+'BP Financier'!$D$16+'BP Financier'!$D$19+'BP Financier'!$E$16+'BP Financier'!$E$19+'BP Financier'!$C$22+'BP Financier'!$D$22+'BP Financier'!$E$22))*$V5182*AA5182/(1-$W5182)","v":{"v":12642.114947166085,"d":"12,642"}},{"$f":"'BP Financier'!$E$44*(('BP Financier'!$C$19+'BP Financier'!$D$19+'BP Financier'!$E$19)/('BP Financier'!$C$16+'BP Financier'!$C$19+'BP Financier'!$D$16+'BP Financier'!$D$19+'BP Financier'!$E$16+'BP Financier'!$E$19+'BP Financier'!$C$22+'BP Financier'!$D$22+'BP Financier'!$E$22))*$V5182*AB5182/(1-$W5182)","v":{"v":6050.9268123188085,"d":"6,051"}},null,{"v":0.013333333333333334,"d":"1.33%"},{"$f":"Actif!$E$28/100","v":{"v":0.28900000000000003,"d":"28.90%"}},{"$f":"Actif!$E$30/100","v":{"v":0.09050000000000001,"d":"9.05%"}},{"$f":"Actif!$E$31/100","v":{"v":0.0605,"d":"6.05%"}},{"$f":"Actif!$E$32/100","v":{"v":0.47350000000000003,"d":"47.35%"}},{"$f":"Actif!$E$33/100","v":{"v":0.0585,"d":"5.85%"}},{"$f":"Actif!$E$29/100","v":{"v":0.027999999999999997,"d":"2.80%"}}]
[null,"#79",44,2026,"F","A_PER",{"v":0.44999999999999996,"d":"0.45"},{"v":0.38999999999999996,"d":"0.39"},0.6,0.6,85,0,{"$f":"ROUND(Primes!$O$7*V5183,0)","v":12},{"$f":"'BP Financier'!$E$33*(('BP Financier'!$C$19+'BP Financier'!$D$19+'BP Financier'!$E$19)/('BP Financier'!$C$16+'BP Financier'!$C$19+'BP Financier'!$D$16+'BP Financier'!$D$19+'BP Financier'!$E$16+'BP Financier'!$E$19))*V5183","v":{"v":342451.68559380295,"d":"342,452"}},{"v":192062.90015886934,"d":"192,063"},{"$f":"'BP Financier'!$E$44*(('BP Financier'!$C$19+'BP Financier'!$D$19+'BP Financier'!$E$19)/('BP Financier'!$C$16+'BP Financier'!$C$19+'BP Financier'!$D$16+'BP Financier'!$D$19+'BP Financier'!$E$16+'BP Financier'!$E$19+'BP Financier'!$C$22+'BP Financier'!$D$22+'BP Financier'!$E$22))*$V5183*X5183/(1-$W5183)","v":{"v":24446.824844413044,"d":"24,447"}},{"$f":"'BP Financier'!$E$44*(('BP Financier'!$C$19+'BP Financier'!$D$19+'BP Financier'!$E$19)/('BP Financier'!$C$16+'BP Financier'!$C$19+'BP Financier'!$D$16+'BP Financier'!$D$19+'BP Financier'!$E$16+'BP Financier'!$E$19+'BP Financier'!$C$22+'BP Financier'!$D$22+'BP Financier'!$E$22))*$V5183*Y5183/(1-$W5183)","v":{"v":16342.905006486066,"d":"16,343"}},{"$f":"'BP Financier'!$E$44*(('BP Financier'!$C$19+'BP Financier'!$D$19+'BP Financier'!$E$19)/('BP Financier'!$C$16+'BP Financier'!$C$19+'BP Financier'!$D$16+'BP Financier'!$D$19+'BP Financier'!$E$16+'BP Financier'!$E$19+'BP Financier'!$C$22+'BP Financier'!$D$22+'BP Financier'!$E$22))*$V5183*Z5183/(1-$W5183)","v":{"v":127906.86810861412,"d":"127,907"}},{"$f":"'BP Financier'!$E$44*(('BP Financier'!$C$19+'BP Financier'!$D$19+'BP Financier'!$E$19)/('BP Financier'!$C$16+'BP Financier'!$C$19+'BP Financier'!$D$16+'BP Financier'!$D$19+'BP Financier'!$E$16+'BP Financier'!$E$19+'BP Financier'!$C$22+'BP Financier'!$D$22+'BP Financier'!$E$22))*$V5183*AA5183/(1-$W5183)","v":{"v":15802.643683957604,"d":"15,803"}},{"$f":"'BP Financier'!$E$44*(('BP Financier'!$C$19+'BP Financier'!$D$19+'BP Financier'!$E$19)/('BP Financier'!$C$16+'BP Financier'!$C$19+'BP Financier'!$D$16+'BP Financier'!$D$19+'BP Financier'!$E$16+'BP Financier'!$E$19+'BP Financier'!$C$22+'BP Financier'!$D$22+'BP Financier'!$E$22))*$V5183*AB5183/(1-$W5183)","v":{"v":7563.65851539851,"d":"7,564"}},null,{"v":0.016666666666666666,"d":"1.67%"},{"$f":"Actif!$E$28/100","v":{"v":0.28900000000000003,"d":"28.90%"}},{"$f":"Actif!$E$30/100","v":{"v":0.09050000000000001,"d":"9.05%"}},{"$f":"Actif!$E$31/100","v":{"v":0.0605,"d":"6.05%"}},{"$f":"Actif!$E$32/100","v":{"v":0.47350000000000003,"d":"47.35%"}},{"$f":"Actif!$E$33/100","v":{"v":0.0585,"d":"5.85%"}},{"$f":"Actif!$E$29/100","v":{"v":0.027999999999999997,"d":"2.80%"}}]
[null,"#80",44,2028,"F","A_PER",{"v":0.44999999999999996,"d":"0.45"},{"v":0.38999999999999996,"d":"0.39"},0.6,0.6,85,0,{"$f":"ROUND(Primes!$O$7*V5184,0)","v":12},{"$f":"'BP Financier'!$E$33*(('BP Financier'!$C$19+'BP Financier'!$D$19+'BP Financier'!$E$19)/('BP Financier'!$C$16+'BP Financier'!$C$19+'BP Financier'!$D$16+'BP Financier'!$D$19+'BP Financier'!$E$16+'BP Financier'!$E$19))*V5184","v":{"v":342451.68559380295,"d":"342,452"}},{"v":192062.90015886934,"d":"192,063"},{"$f":"'BP Financier'!$E$44*(('BP Financier'!$C$19+'BP Financier'!$D$19+'BP Financier'!$E$19)/('BP Financier'!$C$16+'BP Financier'!$C$19+'BP Financier'!$D$16+'BP Financier'!$D$19+'BP Financier'!$E$16+'BP Financier'!$E$19+'BP Financier'!$C$22+'BP Financier'!$D$22+'BP Financier'!$E$22))*$V5184*X5184/(1-$W5184)","v":{"v":24446.824844413044,"d":"24,447"}},{"$f":"'BP Financier'!$E$44*(('BP Financier'!$C$19+'BP Financier'!$D$19+'BP Financier'!$E$19)/('BP Financier'!$C$16+'BP Financier'!$C$19+'BP Financier'!$D$16+'BP Financier'!$D$19+'BP Financier'!$E$16+'BP Financier'!$E$19+'BP Financier'!$C$22+'BP Financier'!$D$22+'BP Financier'!$E$22))*$V5184*Y5184/(1-$W5184)","v":{"v":16342.905006486066,"d":"16,343"}},{"$f":"'BP Financier'!$E$44*(('BP Financier'!$C$19+'BP Financier'!$D$19+'BP Financier'!$E$19)/('BP Financier'!$C$16+'BP Financier'!$C$19+'BP Financier'!$D$16+'BP Financier'!$D$19+'BP Financier'!$E$16+'BP Financier'!$E$19+'BP Financier'!$C$22+'BP Financier'!$D$22+'BP Financier'!$E$22))*$V5184*Z5184/(1-$W5184)","v":{"v":127906.86810861412,"d":"127,907"}},{"$f":"'BP Financier'!$E$44*(('BP Financier'!$C$19+'BP Financier'!$D$19+'BP Financier'!$E$19)/('BP Financier'!$C$16+'BP Financier'!$C$19+'BP Financier'!$D$16+'BP Financier'!$D$19+'BP Financier'!$E$16+'BP Financier'!$E$19+'BP Financier'!$C$22+'BP Financier'!$D$22+'BP Financier'!$E$22))*$V5184*AA5184/(1-$W5184)","v":{"v":15802.643683957604,"d":"15,803"}},{"$f":"'BP Financier'!$E$44*(('BP Financier'!$C$19+'BP Financier'!$D$19+'BP Financier'!$E$19)/('BP Financier'!$C$16+'BP Financier'!$C$19+'BP Financier'!$D$16+'BP Financier'!$D$19+'BP Financier'!$E$16+'BP Financier'!$E$19+'BP Financier'!$C$22+'BP Financier'!$D$22+'BP Financier'!$E$22))*$V5184*AB5184/(1-$W5184)","v":{"v":7563.65851539851,"d":"7,564"}},null,{"v":0.016666666666666666,"d":"1.67%"},{"$f":"Actif!$E$28/100","v":{"v":0.28900000000000003,"d":"28.90%"}},{"$f":"Actif!$E$30/100","v":{"v":0.09050000000000001,"d":"9.05%"}},{"$f":"Actif!$E$31/100","v":{"v":0.0605,"d":"6.05%"}},{"$f":"Actif!$E$32/100","v":{"v":0.47350000000000003,"d":"47.35%"}},{"$f":"Actif!$E$33/100","v":{"v":0.0585,"d":"5.85%"}},{"$f":"Actif!$E$29/100","v":{"v":0.027999999999999997,"d":"2.80%"}}]
[null,"#81",44,2029,"F","A_PER",{"v":0.44999999999999996,"d":"0.45"},{"v":0.38999999999999996,"d":"0.39"},0.6,0.6,85,0,{"$f":"ROUND(Primes!$O$7*V5185,0)","v":12},{"$f":"'BP Financier'!$E$33*(('BP Financier'!$C$19+'BP Financier'!$D$19+'BP Financier'!$E$19)/('BP Financier'!$C$16+'BP Financier'!$C$19+'BP Financier'!$D$16+'BP Financier'!$D$19+'BP Financier'!$E$16+'BP Financier'!$E$19))*V5185","v":{"v":342451.68559380295,"d":"342,452"}},{"v":192062.90015886934,"d":"192,063"},{"$f":"'BP Financier'!$E$44*(('BP Financier'!$C$19+'BP Financier'!$D$19+'BP Financier'!$E$19)/('BP Financier'!$C$16+'BP Financier'!$C$19+'BP Financier'!$D$16+'BP Financier'!$D$19+'BP Financier'!$E$16+'BP Financier'!$E$19+'BP Financier'!$C$22+'BP Financier'!$D$22+'BP Financier'!$E$22))*$V5185*X5185/(1-$W5185)","v":{"v":24446.824844413044,"d":"24,447"}},{"$f":"'BP Financier'!$E$44*(('BP Financier'!$C$19+'BP Financier'!$D$19+'BP Financier'!$E$19)/('BP Financier'!$C$16+'BP Financier'!$C$19+'BP Financier'!$D$16+'BP Financier'!$D$19+'BP Financier'!$E$16+'BP Financier'!$E$19+'BP Financier'!$C$22+'BP Financier'!$D$22+'BP Financier'!$E$22))*$V5185*Y5185/(1-$W5185)","v":{"v":16342.905006486066,"d":"16,343"}},{"$f":"'BP Financier'!$E$44*(('BP Financier'!$C$19+'BP Financier'!$D$19+'BP Financier'!$E$19)/('BP Financier'!$C$16+'BP Financier'!$C$19+'BP Financier'!$D$16+'BP Financier'!$D$19+'BP Financier'!$E$16+'BP Financier'!$E$19+'BP Financier'!$C$22+'BP Financier'!$D$22+'BP Financier'!$E$22))*$V5185*Z5185/(1-$W5185)","v":{"v":127906.86810861412,"d":"127,907"}},{"$f":"'BP Financier'!$E$44*(('BP Financier'!$C$19+'BP Financier'!$D$19+'BP Financier'!$E$19)/('BP Financier'!$C$16+'BP Financier'!$C$19+'BP Financier'!$D$16+'BP Financier'!$D$19+'BP Financier'!$E$16+'BP Financier'!$E$19+'BP Financier'!$C$22+'BP Financier'!$D$22+'BP Financier'!$E$22))*$V5185*AA5185/(1-$W5185)","v":{"v":15802.643683957604,"d":"15,803"}},{"$f":"'BP Financier'!$E$44*(('BP Financier'!$C$19+'BP Financier'!$D$19+'BP Financier'!$E$19)/('BP Financier'!$C$16+'BP Financier'!$C$19+'BP Financier'!$D$16+'BP Financier'!$D$19+'BP Financier'!$E$16+'BP Financier'!$E$19+'BP Financier'!$C$22+'BP Financier'!$D$22+'BP Financier'!$E$22))*$V5185*AB5185/(1-$W5185)","v":{"v":7563.65851539851,"d":"7,564"}},null,{"v":0.016666666666666666,"d":"1.67%"},{"$f":"Actif!$E$28/100","v":{"v":0.28900000000000003,"d":"28.90%"}},{"$f":"Actif!$E$30/100","v":{"v":0.09050000000000001,"d":"9.05%"}},{"$f":"Actif!$E$31/100","v":{"v":0.0605,"d":"6.05%"}},{"$f":"Actif!$E$32/100","v":{"v":0.47350000000000003,"d":"47.35%"}},{"$f":"Actif!$E$33/100","v":{"v":0.0585,"d":"5.85%"}},{"$f":"Actif!$E$29/100","v":{"v":0.027999999999999997,"d":"2.80%"}}]
[null,"#82",45,2026,"H","A_PER",{"v":0.44999999999999996,"d":"0.45"},{"v":0.38999999999999996,"d":"0.39"},0.6,0.6,85,0,{"$f":"ROUND(Primes!$O$7*V5186,0)","v":12},{"$f":"'BP Financier'!$E$33*(('BP Financier'!$C$19+'BP Financier'!$D$19+'BP Financier'!$E$19)/('BP Financier'!$C$16+'BP Financier'!$C$19+'BP Financier'!$D$16+'BP Financier'!$D$19+'BP Financier'!$E$16+'BP Financier'!$E$19))*V5186","v":{"v":342451.68559380295,"d":"342,452"}},{"v":192062.90015886934,"d":"192,063"},{"$f":"'BP Financier'!$E$44*(('BP Financier'!$C$19+'BP Financier'!$D$19+'BP Financier'!$E$19)/('BP Financier'!$C$16+'BP Financier'!$C$19+'BP Financier'!$D$16+'BP Financier'!$D$19+'BP Financier'!$E$16+'BP Financier'!$E$19+'BP Financier'!$C$22+'BP Financier'!$D$22+'BP Financier'!$E$22))*$V5186*X5186/(1-$W5186)","v":{"v":24446.824844413044,"d":"24,447"}},{"$f":"'BP Financier'!$E$44*(('BP Financier'!$C$19+'BP Financier'!$D$19+'BP Financier'!$E$19)/('BP Financier'!$C$16+'BP Financier'!$C$19+'BP Financier'!$D$16+'BP Financier'!$D$19+'BP Financier'!$E$16+'BP Financier'!$E$19+'BP Financier'!$C$22+'BP Financier'!$D$22+'BP Financier'!$E$22))*$V5186*Y5186/(1-$W5186)","v":{"v":16342.905006486066,"d":"16,343"}},{"$f":"'BP Financier'!$E$44*(('BP Financier'!$C$19+'BP Financier'!$D$19+'BP Financier'!$E$19)/('BP Financier'!$C$16+'BP Financier'!$C$19+'BP Financier'!$D$16+'BP Financier'!$D$19+'BP Financier'!$E$16+'BP Financier'!$E$19+'BP Financier'!$C$22+'BP Financier'!$D$22+'BP Financier'!$E$22))*$V5186*Z5186/(1-$W5186)","v":{"v":127906.86810861412,"d":"127,907"}},{"$f":"'BP Financier'!$E$44*(('BP Financier'!$C$19+'BP Financier'!$D$19+'BP Financier'!$E$19)/('BP Financier'!$C$16+'BP Financier'!$C$19+'BP Financier'!$D$16+'BP Financier'!$D$19+'BP Financier'!$E$16+'BP Financier'!$E$19+'BP Financier'!$C$22+'BP Financier'!$D$22+'BP Financier'!$E$22))*$V5186*AA5186/(1-$W5186)","v":{"v":15802.643683957604,"d":"15,803"}},{"$f":"'BP Financier'!$E$44*(('BP Financier'!$C$19+'BP Financier'!$D$19+'BP Financier'!$E$19)/('BP Financier'!$C$16+'BP Financier'!$C$19+'BP Financier'!$D$16+'BP Financier'!$D$19+'BP Financier'!$E$16+'BP Financier'!$E$19+'BP Financier'!$C$22+'BP Financier'!$D$22+'BP Financier'!$E$22))*$V5186*AB5186/(1-$W5186)","v":{"v":7563.65851539851,"d":"7,564"}},null,{"v":0.016666666666666666,"d":"1.67%"},{"$f":"Actif!$E$28/100","v":{"v":0.28900000000000003,"d":"28.90%"}},{"$f":"Actif!$E$30/100","v":{"v":0.09050000000000001,"d":"9.05%"}},{"$f":"Actif!$E$31/100","v":{"v":0.0605,"d":"6.05%"}},{"$f":"Actif!$E$32/100","v":{"v":0.47350000000000003,"d":"47.35%"}},{"$f":"Actif!$E$33/100","v":{"v":0.0585,"d":"5.85%"}},{"$f":"Actif!$E$29/100","v":{"v":0.027999999999999997,"d":"2.80%"}}]
[null,"#83",45,2028,"H","A_PER",{"v":0.44999999999999996,"d":"0.45"},{"v":0.38999999999999996,"d":"0.39"},0.6,0.6,85,0,{"$f":"ROUND(Primes!$O$7*V5187,0)","v":12},{"$f":"'BP Financier'!$E$33*(('BP Financier'!$C$19+'BP Financier'!$D$19+'BP Financier'!$E$19)/('BP Financier'!$C$16+'BP Financier'!$C$19+'BP Financier'!$D$16+'BP Financier'!$D$19+'BP Financier'!$E$16+'BP Financier'!$E$19))*V5187","v":{"v":342451.68559380295,"d":"342,452"}},{"v":192062.90015886934,"d":"192,063"},{"$f":"'BP Financier'!$E$44*(('BP Financier'!$C$19+'BP Financier'!$D$19+'BP Financier'!$E$19)/('BP Financier'!$C$16+'BP Financier'!$C$19+'BP Financier'!$D$16+'BP Financier'!$D$19+'BP Financier'!$E$16+'BP Financier'!$E$19+'BP Financier'!$C$22+'BP Financier'!$D$22+'BP Financier'!$E$22))*$V5187*X5187/(1-$W5187)","v":{"v":24446.824844413044,"d":"24,447"}},{"$f":"'BP Financier'!$E$44*(('BP Financier'!$C$19+'BP Financier'!$D$19+'BP Financier'!$E$19)/('BP Financier'!$C$16+'BP Financier'!$C$19+'BP Financier'!$D$16+'BP Financier'!$D$19+'BP Financier'!$E$16+'BP Financier'!$E$19+'BP Financier'!$C$22+'BP Financier'!$D$22+'BP Financier'!$E$22))*$V5187*Y5187/(1-$W5187)","v":{"v":16342.905006486066,"d":"16,343"}},{"$f":"'BP Financier'!$E$44*(('BP Financier'!$C$19+'BP Financier'!$D$19+'BP Financier'!$E$19)/('BP Financier'!$C$16+'BP Financier'!$C$19+'BP Financier'!$D$16+'BP Financier'!$D$19+'BP Financier'!$E$16+'BP Financier'!$E$19+'BP Financier'!$C$22+'BP Financier'!$D$22+'BP Financier'!$E$22))*$V5187*Z5187/(1-$W5187)","v":{"v":127906.86810861412,"d":"127,907"}},{"$f":"'BP Financier'!$E$44*(('BP Financier'!$C$19+'BP Financier'!$D$19+'BP Financier'!$E$19)/('BP Financier'!$C$16+'BP Financier'!$C$19+'BP Financier'!$D$16+'BP Financier'!$D$19+'BP Financier'!$E$16+'BP Financier'!$E$19+'BP Financier'!$C$22+'BP Financier'!$D$22+'BP Financier'!$E$22))*$V5187*AA5187/(1-$W5187)","v":{"v":15802.643683957604,"d":"15,803"}},{"$f":"'BP Financier'!$E$44*(('BP Financier'!$C$19+'BP Financier'!$D$19+'BP Financier'!$E$19)/('BP Financier'!$C$16+'BP Financier'!$C$19+'BP Financier'!$D$16+'BP Financier'!$D$19+'BP Financier'!$E$16+'BP Financier'!$E$19+'BP Financier'!$C$22+'BP Financier'!$D$22+'BP Financier'!$E$22))*$V5187*AB5187/(1-$W5187)","v":{"v":7563.65851539851,"d":"7,564"}},null,{"v":0.016666666666666666,"d":"1.67%"},{"$f":"Actif!$E$28/100","v":{"v":0.28900000000000003,"d":"28.90%"}},{"$f":"Actif!$E$30/100","v":{"v":0.09050000000000001,"d":"9.05%"}},{"$f":"Actif!$E$31/100","v":{"v":0.0605,"d":"6.05%"}},{"$f":"Actif!$E$32/100","v":{"v":0.47350000000000003,"d":"47.35%"}},{"$f":"Actif!$E$33/100","v":{"v":0.0585,"d":"5.85%"}},{"$f":"Actif!$E$29/100","v":{"v":0.027999999999999997,"d":"2.80%"}}]
[null,"#84",45,2029,"H","A_PER",{"v":0.44999999999999996,"d":"0.45"},{"v":0.38999999999999996,"d":"0.39"},0.6,0.6,85,0,{"$f":"ROUND(Primes!$O$7*V5188,0)","v":12},{"$f":"'BP Financier'!$E$33*(('BP Financier'!$C$19+'BP Financier'!$D$19+'BP Financier'!$E$19)/('BP Financier'!$C$16+'BP Financier'!$C$19+'BP Financier'!$D$16+'BP Financier'!$D$19+'BP Financier'!$E$16+'BP Financier'!$E$19))*V5188","v":{"v":342451.68559380295,"d":"342,452"}},{"v":192062.90015886934,"d":"192,063"},{"$f":"'BP Financier'!$E$44*(('BP Financier'!$C$19+'BP Financier'!$D$19+'BP Financier'!$E$19)/('BP Financier'!$C$16+'BP Financier'!$C$19+'BP Financier'!$D$16+'BP Financier'!$D$19+'BP Financier'!$E$16+'BP Financier'!$E$19+'BP Financier'!$C$22+'BP Financier'!$D$22+'BP Financier'!$E$22))*$V5188*X5188/(1-$W5188)","v":{"v":24446.824844413044,"d":"24,447"}},{"$f":"'BP Financier'!$E$44*(('BP Financier'!$C$19+'BP Financier'!$D$19+'BP Financier'!$E$19)/('BP Financier'!$C$16+'BP Financier'!$C$19+'BP Financier'!$D$16+'BP Financier'!$D$19+'BP Financier'!$E$16+'BP Financier'!$E$19+'BP Financier'!$C$22+'BP Financier'!$D$22+'BP Financier'!$E$22))*$V5188*Y5188/(1-$W5188)","v":{"v":16342.905006486066,"d":"16,343"}},{"$f":"'BP Financier'!$E$44*(('BP Financier'!$C$19+'BP Financier'!$D$19+'BP Financier'!$E$19)/('BP Financier'!$C$16+'BP Financier'!$C$19+'BP Financier'!$D$16+'BP Financier'!$D$19+'BP Financier'!$E$16+'BP Financier'!$E$19+'BP Financier'!$C$22+'BP Financier'!$D$22+'BP Financier'!$E$22))*$V5188*Z5188/(1-$W5188)","v":{"v":127906.86810861412,"d":"127,907"}},{"$f":"'BP Financier'!$E$44*(('BP Financier'!$C$19+'BP Financier'!$D$19+'BP Financier'!$E$19)/('BP Financier'!$C$16+'BP Financier'!$C$19+'BP Financier'!$D$16+'BP Financier'!$D$19+'BP Financier'!$E$16+'BP Financier'!$E$19+'BP Financier'!$C$22+'BP Financier'!$D$22+'BP Financier'!$E$22))*$V5188*AA5188/(1-$W5188)","v":{"v":15802.643683957604,"d":"15,803"}},{"$f":"'BP Financier'!$E$44*(('BP Financier'!$C$19+'BP Financier'!$D$19+'BP Financier'!$E$19)/('BP Financier'!$C$16+'BP Financier'!$C$19+'BP Financier'!$D$16+'BP Financier'!$D$19+'BP Financier'!$E$16+'BP Financier'!$E$19+'BP Financier'!$C$22+'BP Financier'!$D$22+'BP Financier'!$E$22))*$V5188*AB5188/(1-$W5188)","v":{"v":7563.65851539851,"d":"7,564"}},null,{"v":0.016666666666666666,"d":"1.67%"},{"$f":"Actif!$E$28/100","v":{"v":0.28900000000000003,"d":"28.90%"}},{"$f":"Actif!$E$30/100","v":{"v":0.09050000000000001,"d":"9.05%"}},{"$f":"Actif!$E$31/100","v":{"v":0.0605,"d":"6.05%"}},{"$f":"Actif!$E$32/100","v":{"v":0.47350000000000003,"d":"47.35%"}},{"$f":"Actif!$E$33/100","v":{"v":0.0585,"d":"5.85%"}},{"$f":"Actif!$E$29/100","v":{"v":0.027999999999999997,"d":"2.80%"}}]
[null,"#85",46,2026,"H","A_PER",{"v":0.44999999999999996,"d":"0.45"},{"v":0.38999999999999996,"d":"0.39"},0.6,0.6,85,0,{"$f":"ROUND(Primes!$O$7*V5189,0)","v":12},{"$f":"'BP Financier'!$E$33*(('BP Financier'!$C$19+'BP Financier'!$D$19+'BP Financier'!$E$19)/('BP Financier'!$C$16+'BP Financier'!$C$19+'BP Financier'!$D$16+'BP Financier'!$D$19+'BP Financier'!$E$16+'BP Financier'!$E$19))*V5189","v":{"v":342451.68559380295,"d":"342,452"}},{"v":192062.90015886934,"d":"192,063"},{"$f":"'BP Financier'!$E$44*(('BP Financier'!$C$19+'BP Financier'!$D$19+'BP Financier'!$E$19)/('BP Financier'!$C$16+'BP Financier'!$C$19+'BP Financier'!$D$16+'BP Financier'!$D$19+'BP Financier'!$E$16+'BP Financier'!$E$19+'BP Financier'!$C$22+'BP Financier'!$D$22+'BP Financier'!$E$22))*$V5189*X5189/(1-$W5189)","v":{"v":24446.824844413044,"d":"24,447"}},{"$f":"'BP Financier'!$E$44*(('BP Financier'!$C$19+'BP Financier'!$D$19+'BP Financier'!$E$19)/('BP Financier'!$C$16+'BP Financier'!$C$19+'BP Financier'!$D$16+'BP Financier'!$D$19+'BP Financier'!$E$16+'BP Financier'!$E$19+'BP Financier'!$C$22+'BP Financier'!$D$22+'BP Financier'!$E$22))*$V5189*Y5189/(1-$W5189)","v":{"v":16342.905006486066,"d":"16,343"}},{"$f":"'BP Financier'!$E$44*(('BP Financier'!$C$19+'BP Financier'!$D$19+'BP Financier'!$E$19)/('BP Financier'!$C$16+'BP Financier'!$C$19+'BP Financier'!$D$16+'BP Financier'!$D$19+'BP Financier'!$E$16+'BP Financier'!$E$19+'BP Financier'!$C$22+'BP Financier'!$D$22+'BP Financier'!$E$22))*$V5189*Z5189/(1-$W5189)","v":{"v":127906.86810861412,"d":"127,907"}},{"$f":"'BP Financier'!$E$44*(('BP Financier'!$C$19+'BP Financier'!$D$19+'BP Financier'!$E$19)/('BP Financier'!$C$16+'BP Financier'!$C$19+'BP Financier'!$D$16+'BP Financier'!$D$19+'BP Financier'!$E$16+'BP Financier'!$E$19+'BP Financier'!$C$22+'BP Financier'!$D$22+'BP Financier'!$E$22))*$V5189*AA5189/(1-$W5189)","v":{"v":15802.643683957604,"d":"15,803"}},{"$f":"'BP Financier'!$E$44*(('BP Financier'!$C$19+'BP Financier'!$D$19+'BP Financier'!$E$19)/('BP Financier'!$C$16+'BP Financier'!$C$19+'BP Financier'!$D$16+'BP Financier'!$D$19+'BP Financier'!$E$16+'BP Financier'!$E$19+'BP Financier'!$C$22+'BP Financier'!$D$22+'BP Financier'!$E$22))*$V5189*AB5189/(1-$W5189)","v":{"v":7563.65851539851,"d":"7,564"}},null,{"v":0.016666666666666666,"d":"1.67%"},{"$f":"Actif!$E$28/100","v":{"v":0.28900000000000003,"d":"28.90%"}},{"$f":"Actif!$E$30/100","v":{"v":0.09050000000000001,"d":"9.05%"}},{"$f":"Actif!$E$31/100","v":{"v":0.0605,"d":"6.05%"}},{"$f":"Actif!$E$32/100","v":{"v":0.47350000000000003,"d":"47.35%"}},{"$f":"Actif!$E$33/100","v":{"v":0.0585,"d":"5.85%"}},{"$f":"Actif!$E$29/100","v":{"v":0.027999999999999997,"d":"2.80%"}}]
[null,"#86",46,2028,"H","A_PER",{"v":0.44999999999999996,"d":"0.45"},{"v":0.38999999999999996,"d":"0.39"},0.6,0.6,85,0,{"$f":"ROUND(Primes!$O$7*V5190,0)","v":12},{"$f":"'BP Financier'!$E$33*(('BP Financier'!$C$19+'BP Financier'!$D$19+'BP Financier'!$E$19)/('BP Financier'!$C$16+'BP Financier'!$C$19+'BP Financier'!$D$16+'BP Financier'!$D$19+'BP Financier'!$E$16+'BP Financier'!$E$19))*V5190","v":{"v":342451.68559380295,"d":"342,452"}},{"v":192062.90015886934,"d":"192,063"},{"$f":"'BP Financier'!$E$44*(('BP Financier'!$C$19+'BP Financier'!$D$19+'BP Financier'!$E$19)/('BP Financier'!$C$16+'BP Financier'!$C$19+'BP Financier'!$D$16+'BP Financier'!$D$19+'BP Financier'!$E$16+'BP Financier'!$E$19+'BP Financier'!$C$22+'BP Financier'!$D$22+'BP Financier'!$E$22))*$V5190*X5190/(1-$W5190)","v":{"v":24446.824844413044,"d":"24,447"}},{"$f":"'BP Financier'!$E$44*(('BP Financier'!$C$19+'BP Financier'!$D$19+'BP Financier'!$E$19)/('BP Financier'!$C$16+'BP Financier'!$C$19+'BP Financier'!$D$16+'BP Financier'!$D$19+'BP Financier'!$E$16+'BP Financier'!$E$19+'BP Financier'!$C$22+'BP Financier'!$D$22+'BP Financier'!$E$22))*$V5190*Y5190/(1-$W5190)","v":{"v":16342.905006486066,"d":"16,343"}},{"$f":"'BP Financier'!$E$44*(('BP Financier'!$C$19+'BP Financier'!$D$19+'BP Financier'!$E$19)/('BP Financier'!$C$16+'BP Financier'!$C$19+'BP Financier'!$D$16+'BP Financier'!$D$19+'BP Financier'!$E$16+'BP Financier'!$E$19+'BP Financier'!$C$22+'BP Financier'!$D$22+'BP Financier'!$E$22))*$V5190*Z5190/(1-$W5190)","v":{"v":127906.86810861412,"d":"127,907"}},{"$f":"'BP Financier'!$E$44*(('BP Financier'!$C$19+'BP Financier'!$D$19+'BP Financier'!$E$19)/('BP Financier'!$C$16+'BP Financier'!$C$19+'BP Financier'!$D$16+'BP Financier'!$D$19+'BP Financier'!$E$16+'BP Financier'!$E$19+'BP Financier'!$C$22+'BP Financier'!$D$22+'BP Financier'!$E$22))*$V5190*AA5190/(1-$W5190)","v":{"v":15802.643683957604,"d":"15,803"}},{"$f":"'BP Financier'!$E$44*(('BP Financier'!$C$19+'BP Financier'!$D$19+'BP Financier'!$E$19)/('BP Financier'!$C$16+'BP Financier'!$C$19+'BP Financier'!$D$16+'BP Financier'!$D$19+'BP Financier'!$E$16+'BP Financier'!$E$19+'BP Financier'!$C$22+'BP Financier'!$D$22+'BP Financier'!$E$22))*$V5190*AB5190/(1-$W5190)","v":{"v":7563.65851539851,"d":"7,564"}},null,{"v":0.016666666666666666,"d":"1.67%"},{"$f":"Actif!$E$28/100","v":{"v":0.28900000000000003,"d":"28.90%"}},{"$f":"Actif!$E$30/100","v":{"v":0.09050000000000001,"d":"9.05%"}},{"$f":"Actif!$E$31/100","v":{"v":0.0605,"d":"6.05%"}},{"$f":"Actif!$E$32/100","v":{"v":0.47350000000000003,"d":"47.35%"}},{"$f":"Actif!$E$33/100","v":{"v":0.0585,"d":"5.85%"}},{"$f":"Actif!$E$29/100","v":{"v":0.027999999999999997,"d":"2.80%"}}]
[null,"#87",46,2029,"H","A_PER",{"v":0.44999999999999996,"d":"0.45"},{"v":0.38999999999999996,"d":"0.39"},0.6,0.6,85,0,{"$f":"ROUND(Primes!$O$7*V5191,0)","v":12},{"$f":"'BP Financier'!$E$33*(('BP Financier'!$C$19+'BP Financier'!$D$19+'BP Financier'!$E$19)/('BP Financier'!$C$16+'BP Financier'!$C$19+'BP Financier'!$D$16+'BP Financier'!$D$19+'BP Financier'!$E$16+'BP Financier'!$E$19))*V5191","v":{"v":342451.68559380295,"d":"342,452"}},{"v":192062.90015886934,"d":"192,063"},{"$f":"'BP Financier'!$E$44*(('BP Financier'!$C$19+'BP Financier'!$D$19+'BP Financier'!$E$19)/('BP Financier'!$C$16+'BP Financier'!$C$19+'BP Financier'!$D$16+'BP Financier'!$D$19+'BP Financier'!$E$16+'BP Financier'!$E$19+'BP Financier'!$C$22+'BP Financier'!$D$22+'BP Financier'!$E$22))*$V5191*X5191/(1-$W5191)","v":{"v":24446.824844413044,"d":"24,447"}},{"$f":"'BP Financier'!$E$44*(('BP Financier'!$C$19+'BP Financier'!$D$19+'BP Financier'!$E$19)/('BP Financier'!$C$16+'BP Financier'!$C$19+'BP Financier'!$D$16+'BP Financier'!$D$19+'BP Financier'!$E$16+'BP Financier'!$E$19+'BP Financier'!$C$22+'BP Financier'!$D$22+'BP Financier'!$E$22))*$V5191*Y5191/(1-$W5191)","v":{"v":16342.905006486066,"d":"16,343"}},{"$f":"'BP Financier'!$E$44*(('BP Financier'!$C$19+'BP Financier'!$D$19+'BP Financier'!$E$19)/('BP Financier'!$C$16+'BP Financier'!$C$19+'BP Financier'!$D$16+'BP Financier'!$D$19+'BP Financier'!$E$16+'BP Financier'!$E$19+'BP Financier'!$C$22+'BP Financier'!$D$22+'BP Financier'!$E$22))*$V5191*Z5191/(1-$W5191)","v":{"v":127906.86810861412,"d":"127,907"}},{"$f":"'BP Financier'!$E$44*(('BP Financier'!$C$19+'BP Financier'!$D$19+'BP Financier'!$E$19)/('BP Financier'!$C$16+'BP Financier'!$C$19+'BP Financier'!$D$16+'BP Financier'!$D$19+'BP Financier'!$E$16+'BP Financier'!$E$19+'BP Financier'!$C$22+'BP Financier'!$D$22+'BP Financier'!$E$22))*$V5191*AA5191/(1-$W5191)","v":{"v":15802.643683957604,"d":"15,803"}},{"$f":"'BP Financier'!$E$44*(('BP Financier'!$C$19+'BP Financier'!$D$19+'BP Financier'!$E$19)/('BP Financier'!$C$16+'BP Financier'!$C$19+'BP Financier'!$D$16+'BP Financier'!$D$19+'BP Financier'!$E$16+'BP Financier'!$E$19+'BP Financier'!$C$22+'BP Financier'!$D$22+'BP Financier'!$E$22))*$V5191*AB5191/(1-$W5191)","v":{"v":7563.65851539851,"d":"7,564"}},null,{"v":0.016666666666666666,"d":"1.67%"},{"$f":"Actif!$E$28/100","v":{"v":0.28900000000000003,"d":"28.90%"}},{"$f":"Actif!$E$30/100","v":{"v":0.09050000000000001,"d":"9.05%"}},{"$f":"Actif!$E$31/100","v":{"v":0.0605,"d":"6.05%"}},{"$f":"Actif!$E$32/100","v":{"v":0.47350000000000003,"d":"47.35%"}},{"$f":"Actif!$E$33/100","v":{"v":0.0585,"d":"5.85%"}},{"$f":"Actif!$E$29/100","v":{"v":0.027999999999999997,"d":"2.80%"}}]
[null,"#88",47,2026,"F","A_PER",{"v":0.44999999999999996,"d":"0.45"},{"v":0.38999999999999996,"d":"0.39"},0.6,0.6,85,0,{"$f":"ROUND(Primes!$O$7*V5192,0)","v":9},{"$f":"'BP Financier'!$E$33*(('BP Financier'!$C$19+'BP Financier'!$D$19+'BP Financier'!$E$19)/('BP Financier'!$C$16+'BP Financier'!$C$19+'BP Financier'!$D$16+'BP Financier'!$D$19+'BP Financier'!$E$16+'BP Financier'!$E$19))*V5192","v":{"v":273961.3484750424,"d":"273,961"}},{"v":153650.3201270955,"d":"153,650"},{"$f":"'BP Financier'!$E$44*(('BP Financier'!$C$19+'BP Financier'!$D$19+'BP Financier'!$E$19)/('BP Financier'!$C$16+'BP Financier'!$C$19+'BP Financier'!$D$16+'BP Financier'!$D$19+'BP Financier'!$E$16+'BP Financier'!$E$19+'BP Financier'!$C$22+'BP Financier'!$D$22+'BP Financier'!$E$22))*$V5192*X5192/(1-$W5192)","v":{"v":19557.45987553044,"d":"19,557"}},{"$f":"'BP Financier'!$E$44*(('BP Financier'!$C$19+'BP Financier'!$D$19+'BP Financier'!$E$19)/('BP Financier'!$C$16+'BP Financier'!$C$19+'BP Financier'!$D$16+'BP Financier'!$D$19+'BP Financier'!$E$16+'BP Financier'!$E$19+'BP Financier'!$C$22+'BP Financier'!$D$22+'BP Financier'!$E$22))*$V5192*Y5192/(1-$W5192)","v":{"v":13074.324005188857,"d":"13,074"}},{"$f":"'BP Financier'!$E$44*(('BP Financier'!$C$19+'BP Financier'!$D$19+'BP Financier'!$E$19)/('BP Financier'!$C$16+'BP Financier'!$C$19+'BP Financier'!$D$16+'BP Financier'!$D$19+'BP Financier'!$E$16+'BP Financier'!$E$19+'BP Financier'!$C$22+'BP Financier'!$D$22+'BP Financier'!$E$22))*$V5192*Z5192/(1-$W5192)","v":{"v":102325.4944868913,"d":"102,325"}},{"$f":"'BP Financier'!$E$44*(('BP Financier'!$C$19+'BP Financier'!$D$19+'BP Financier'!$E$19)/('BP Financier'!$C$16+'BP Financier'!$C$19+'BP Financier'!$D$16+'BP Financier'!$D$19+'BP Financier'!$E$16+'BP Financier'!$E$19+'BP Financier'!$C$22+'BP Financier'!$D$22+'BP Financier'!$E$22))*$V5192*AA5192/(1-$W5192)","v":{"v":12642.114947166085,"d":"12,642"}},{"$f":"'BP Financier'!$E$44*(('BP Financier'!$C$19+'BP Financier'!$D$19+'BP Financier'!$E$19)/('BP Financier'!$C$16+'BP Financier'!$C$19+'BP Financier'!$D$16+'BP Financier'!$D$19+'BP Financier'!$E$16+'BP Financier'!$E$19+'BP Financier'!$C$22+'BP Financier'!$D$22+'BP Financier'!$E$22))*$V5192*AB5192/(1-$W5192)","v":{"v":6050.9268123188085,"d":"6,051"}},null,{"v":0.013333333333333334,"d":"1.33%"},{"$f":"Actif!$E$28/100","v":{"v":0.28900000000000003,"d":"28.90%"}},{"$f":"Actif!$E$30/100","v":{"v":0.09050000000000001,"d":"9.05%"}},{"$f":"Actif!$E$31/100","v":{"v":0.0605,"d":"6.05%"}},{"$f":"Actif!$E$32/100","v":{"v":0.47350000000000003,"d":"47.35%"}},{"$f":"Actif!$E$33/100","v":{"v":0.0585,"d":"5.85%"}},{"$f":"Actif!$E$29/100","v":{"v":0.027999999999999997,"d":"2.80%"}}]
[null,"#89",47,2028,"F","A_PER",{"v":0.44999999999999996,"d":"0.45"},{"v":0.38999999999999996,"d":"0.39"},0.6,0.6,85,0,{"$f":"ROUND(Primes!$O$7*V5193,0)","v":9},{"$f":"'BP Financier'!$E$33*(('BP Financier'!$C$19+'BP Financier'!$D$19+'BP Financier'!$E$19)/('BP Financier'!$C$16+'BP Financier'!$C$19+'BP Financier'!$D$16+'BP Financier'!$D$19+'BP Financier'!$E$16+'BP Financier'!$E$19))*V5193","v":{"v":273961.3484750424,"d":"273,961"}},{"v":153650.3201270955,"d":"153,650"},{"$f":"'BP Financier'!$E$44*(('BP Financier'!$C$19+'BP Financier'!$D$19+'BP Financier'!$E$19)/('BP Financier'!$C$16+'BP Financier'!$C$19+'BP Financier'!$D$16+'BP Financier'!$D$19+'BP Financier'!$E$16+'BP Financier'!$E$19+'BP Financier'!$C$22+'BP Financier'!$D$22+'BP Financier'!$E$22))*$V5193*X5193/(1-$W5193)","v":{"v":19557.45987553044,"d":"19,557"}},{"$f":"'BP Financier'!$E$44*(('BP Financier'!$C$19+'BP Financier'!$D$19+'BP Financier'!$E$19)/('BP Financier'!$C$16+'BP Financier'!$C$19+'BP Financier'!$D$16+'BP Financier'!$D$19+'BP Financier'!$E$16+'BP Financier'!$E$19+'BP Financier'!$C$22+'BP Financier'!$D$22+'BP Financier'!$E$22))*$V5193*Y5193/(1-$W5193)","v":{"v":13074.324005188857,"d":"13,074"}},{"$f":"'BP Financier'!$E$44*(('BP Financier'!$C$19+'BP Financier'!$D$19+'BP Financier'!$E$19)/('BP Financier'!$C$16+'BP Financier'!$C$19+'BP Financier'!$D$16+'BP Financier'!$D$19+'BP Financier'!$E$16+'BP Financier'!$E$19+'BP Financier'!$C$22+'BP Financier'!$D$22+'BP Financier'!$E$22))*$V5193*Z5193/(1-$W5193)","v":{"v":102325.4944868913,"d":"102,325"}},{"$f":"'BP Financier'!$E$44*(('BP Financier'!$C$19+'BP Financier'!$D$19+'BP Financier'!$E$19)/('BP Financier'!$C$16+'BP Financier'!$C$19+'BP Financier'!$D$16+'BP Financier'!$D$19+'BP Financier'!$E$16+'BP Financier'!$E$19+'BP Financier'!$C$22+'BP Financier'!$D$22+'BP Financier'!$E$22))*$V5193*AA5193/(1-$W5193)","v":{"v":12642.114947166085,"d":"12,642"}},{"$f":"'BP Financier'!$E$44*(('BP Financier'!$C$19+'BP Financier'!$D$19+'BP Financier'!$E$19)/('BP Financier'!$C$16+'BP Financier'!$C$19+'BP Financier'!$D$16+'BP Financier'!$D$19+'BP Financier'!$E$16+'BP Financier'!$E$19+'BP Financier'!$C$22+'BP Financier'!$D$22+'BP Financier'!$E$22))*$V5193*AB5193/(1-$W5193)","v":{"v":6050.9268123188085,"d":"6,051"}},null,{"v":0.013333333333333334,"d":"1.33%"},{"$f":"Actif!$E$28/100","v":{"v":0.28900000000000003,"d":"28.90%"}},{"$f":"Actif!$E$30/100","v":{"v":0.09050000000000001,"d":"9.05%"}},{"$f":"Actif!$E$31/100","v":{"v":0.0605,"d":"6.05%"}},{"$f":"Actif!$E$32/100","v":{"v":0.47350000000000003,"d":"47.35%"}},{"$f":"Actif!$E$33/100","v":{"v":0.0585,"d":"5.85%"}},{"$f":"Actif!$E$29/100","v":{"v":0.027999999999999997,"d":"2.80%"}}]
[null,"#90",47,2029,"F","A_PER",{"v":0.44999999999999996,"d":"0.45"},{"v":0.38999999999999996,"d":"0.39"},0.6,0.6,85,0,{"$f":"ROUND(Primes!$O$7*V5194,0)","v":9},{"$f":"'BP Financier'!$E$33*(('BP Financier'!$C$19+'BP Financier'!$D$19+'BP Financier'!$E$19)/('BP Financier'!$C$16+'BP Financier'!$C$19+'BP Financier'!$D$16+'BP Financier'!$D$19+'BP Financier'!$E$16+'BP Financier'!$E$19))*V5194","v":{"v":273961.3484750424,"d":"273,961"}},{"v":153650.3201270955,"d":"153,650"},{"$f":"'BP Financier'!$E$44*(('BP Financier'!$C$19+'BP Financier'!$D$19+'BP Financier'!$E$19)/('BP Financier'!$C$16+'BP Financier'!$C$19+'BP Financier'!$D$16+'BP Financier'!$D$19+'BP Financier'!$E$16+'BP Financier'!$E$19+'BP Financier'!$C$22+'BP Financier'!$D$22+'BP Financier'!$E$22))*$V5194*X5194/(1-$W5194)","v":{"v":19557.45987553044,"d":"19,557"}},{"$f":"'BP Financier'!$E$44*(('BP Financier'!$C$19+'BP Financier'!$D$19+'BP Financier'!$E$19)/('BP Financier'!$C$16+'BP Financier'!$C$19+'BP Financier'!$D$16+'BP Financier'!$D$19+'BP Financier'!$E$16+'BP Financier'!$E$19+'BP Financier'!$C$22+'BP Financier'!$D$22+'BP Financier'!$E$22))*$V5194*Y5194/(1-$W5194)","v":{"v":13074.324005188857,"d":"13,074"}},{"$f":"'BP Financier'!$E$44*(('BP Financier'!$C$19+'BP Financier'!$D$19+'BP Financier'!$E$19)/('BP Financier'!$C$16+'BP Financier'!$C$19+'BP Financier'!$D$16+'BP Financier'!$D$19+'BP Financier'!$E$16+'BP Financier'!$E$19+'BP Financier'!$C$22+'BP Financier'!$D$22+'BP Financier'!$E$22))*$V5194*Z5194/(1-$W5194)","v":{"v":102325.4944868913,"d":"102,325"}},{"$f":"'BP Financier'!$E$44*(('BP Financier'!$C$19+'BP Financier'!$D$19+'BP Financier'!$E$19)/('BP Financier'!$C$16+'BP Financier'!$C$19+'BP Financier'!$D$16+'BP Financier'!$D$19+'BP Financier'!$E$16+'BP Financier'!$E$19+'BP Financier'!$C$22+'BP Financier'!$D$22+'BP Financier'!$E$22))*$V5194*AA5194/(1-$W5194)","v":{"v":12642.114947166085,"d":"12,642"}},{"$f":"'BP Financier'!$E$44*(('BP Financier'!$C$19+'BP Financier'!$D$19+'BP Financier'!$E$19)/('BP Financier'!$C$16+'BP Financier'!$C$19+'BP Financier'!$D$16+'BP Financier'!$D$19+'BP Financier'!$E$16+'BP Financier'!$E$19+'BP Financier'!$C$22+'BP Financier'!$D$22+'BP Financier'!$E$22))*$V5194*AB5194/(1-$W5194)","v":{"v":6050.9268123188085,"d":"6,051"}},null,{"v":0.013333333333333334,"d":"1.33%"},{"$f":"Actif!$E$28/100","v":{"v":0.28900000000000003,"d":"28.90%"}},{"$f":"Actif!$E$30/100","v":{"v":0.09050000000000001,"d":"9.05%"}},{"$f":"Actif!$E$31/100","v":{"v":0.0605,"d":"6.05%"}},{"$f":"Actif!$E$32/100","v":{"v":0.47350000000000003,"d":"47.35%"}},{"$f":"Actif!$E$33/100","v":{"v":0.0585,"d":"5.85%"}},{"$f":"Actif!$E$29/100","v":{"v":0.027999999999999997,"d":"2.80%"}}]
[null,"#91",48,2026,"H","A_PER",{"v":0.44999999999999996,"d":"0.45"},{"v":0.38999999999999996,"d":"0.39"},0.6,0.6,85,0,{"$f":"ROUND(Primes!$O$7*V5195,0)","v":9},{"$f":"'BP Financier'!$E$33*(('BP Financier'!$C$19+'BP Financier'!$D$19+'BP Financier'!$E$19)/('BP Financier'!$C$16+'BP Financier'!$C$19+'BP Financier'!$D$16+'BP Financier'!$D$19+'BP Financier'!$E$16+'BP Financier'!$E$19))*V5195","v":{"v":273961.3484750424,"d":"273,961"}},{"v":153650.3201270955,"d":"153,650"},{"$f":"'BP Financier'!$E$44*(('BP Financier'!$C$19+'BP Financier'!$D$19+'BP Financier'!$E$19)/('BP Financier'!$C$16+'BP Financier'!$C$19+'BP Financier'!$D$16+'BP Financier'!$D$19+'BP Financier'!$E$16+'BP Financier'!$E$19+'BP Financier'!$C$22+'BP Financier'!$D$22+'BP Financier'!$E$22))*$V5195*X5195/(1-$W5195)","v":{"v":19557.45987553044,"d":"19,557"}},{"$f":"'BP Financier'!$E$44*(('BP Financier'!$C$19+'BP Financier'!$D$19+'BP Financier'!$E$19)/('BP Financier'!$C$16+'BP Financier'!$C$19+'BP Financier'!$D$16+'BP Financier'!$D$19+'BP Financier'!$E$16+'BP Financier'!$E$19+'BP Financier'!$C$22+'BP Financier'!$D$22+'BP Financier'!$E$22))*$V5195*Y5195/(1-$W5195)","v":{"v":13074.324005188857,"d":"13,074"}},{"$f":"'BP Financier'!$E$44*(('BP Financier'!$C$19+'BP Financier'!$D$19+'BP Financier'!$E$19)/('BP Financier'!$C$16+'BP Financier'!$C$19+'BP Financier'!$D$16+'BP Financier'!$D$19+'BP Financier'!$E$16+'BP Financier'!$E$19+'BP Financier'!$C$22+'BP Financier'!$D$22+'BP Financier'!$E$22))*$V5195*Z5195/(1-$W5195)","v":{"v":102325.4944868913,"d":"102,325"}},{"$f":"'BP Financier'!$E$44*(('BP Financier'!$C$19+'BP Financier'!$D$19+'BP Financier'!$E$19)/('BP Financier'!$C$16+'BP Financier'!$C$19+'BP Financier'!$D$16+'BP Financier'!$D$19+'BP Financier'!$E$16+'BP Financier'!$E$19+'BP Financier'!$C$22+'BP Financier'!$D$22+'BP Financier'!$E$22))*$V5195*AA5195/(1-$W5195)","v":{"v":12642.114947166085,"d":"12,642"}},{"$f":"'BP Financier'!$E$44*(('BP Financier'!$C$19+'BP Financier'!$D$19+'BP Financier'!$E$19)/('BP Financier'!$C$16+'BP Financier'!$C$19+'BP Financier'!$D$16+'BP Financier'!$D$19+'BP Financier'!$E$16+'BP Financier'!$E$19+'BP Financier'!$C$22+'BP Financier'!$D$22+'BP Financier'!$E$22))*$V5195*AB5195/(1-$W5195)","v":{"v":6050.9268123188085,"d":"6,051"}},null,{"v":0.013333333333333334,"d":"1.33%"},{"$f":"Actif!$E$28/100","v":{"v":0.28900000000000003,"d":"28.90%"}},{"$f":"Actif!$E$30/100","v":{"v":0.09050000000000001,"d":"9.05%"}},{"$f":"Actif!$E$31/100","v":{"v":0.0605,"d":"6.05%"}},{"$f":"Actif!$E$32/100","v":{"v":0.47350000000000003,"d":"47.35%"}},{"$f":"Actif!$E$33/100","v":{"v":0.0585,"d":"5.85%"}},{"$f":"Actif!$E$29/100","v":{"v":0.027999999999999997,"d":"2.80%"}}]
[null,"#92",48,2028,"H","A_PER",{"v":0.44999999999999996,"d":"0.45"},{"v":0.38999999999999996,"d":"0.39"},0.6,0.6,85,0,{"$f":"ROUND(Primes!$O$7*V5196,0)","v":9},{"$f":"'BP Financier'!$E$33*(('BP Financier'!$C$19+'BP Financier'!$D$19+'BP Financier'!$E$19)/('BP Financier'!$C$16+'BP Financier'!$C$19+'BP Financier'!$D$16+'BP Financier'!$D$19+'BP Financier'!$E$16+'BP Financier'!$E$19))*V5196","v":{"v":273961.3484750424,"d":"273,961"}},{"v":153650.3201270955,"d":"153,650"},{"$f":"'BP Financier'!$E$44*(('BP Financier'!$C$19+'BP Financier'!$D$19+'BP Financier'!$E$19)/('BP Financier'!$C$16+'BP Financier'!$C$19+'BP Financier'!$D$16+'BP Financier'!$D$19+'BP Financier'!$E$16+'BP Financier'!$E$19+'BP Financier'!$C$22+'BP Financier'!$D$22+'BP Financier'!$E$22))*$V5196*X5196/(1-$W5196)","v":{"v":19557.45987553044,"d":"19,557"}},{"$f":"'BP Financier'!$E$44*(('BP Financier'!$C$19+'BP Financier'!$D$19+'BP Financier'!$E$19)/('BP Financier'!$C$16+'BP Financier'!$C$19+'BP Financier'!$D$16+'BP Financier'!$D$19+'BP Financier'!$E$16+'BP Financier'!$E$19+'BP Financier'!$C$22+'BP Financier'!$D$22+'BP Financier'!$E$22))*$V5196*Y5196/(1-$W5196)","v":{"v":13074.324005188857,"d":"13,074"}},{"$f":"'BP Financier'!$E$44*(('BP Financier'!$C$19+'BP Financier'!$D$19+'BP Financier'!$E$19)/('BP Financier'!$C$16+'BP Financier'!$C$19+'BP Financier'!$D$16+'BP Financier'!$D$19+'BP Financier'!$E$16+'BP Financier'!$E$19+'BP Financier'!$C$22+'BP Financier'!$D$22+'BP Financier'!$E$22))*$V5196*Z5196/(1-$W5196)","v":{"v":102325.4944868913,"d":"102,325"}},{"$f":"'BP Financier'!$E$44*(('BP Financier'!$C$19+'BP Financier'!$D$19+'BP Financier'!$E$19)/('BP Financier'!$C$16+'BP Financier'!$C$19+'BP Financier'!$D$16+'BP Financier'!$D$19+'BP Financier'!$E$16+'BP Financier'!$E$19+'BP Financier'!$C$22+'BP Financier'!$D$22+'BP Financier'!$E$22))*$V5196*AA5196/(1-$W5196)","v":{"v":12642.114947166085,"d":"12,642"}},{"$f":"'BP Financier'!$E$44*(('BP Financier'!$C$19+'BP Financier'!$D$19+'BP Financier'!$E$19)/('BP Financier'!$C$16+'BP Financier'!$C$19+'BP Financier'!$D$16+'BP Financier'!$D$19+'BP Financier'!$E$16+'BP Financier'!$E$19+'BP Financier'!$C$22+'BP Financier'!$D$22+'BP Financier'!$E$22))*$V5196*AB5196/(1-$W5196)","v":{"v":6050.9268123188085,"d":"6,051"}},null,{"v":0.013333333333333334,"d":"1.33%"},{"$f":"Actif!$E$28/100","v":{"v":0.28900000000000003,"d":"28.90%"}},{"$f":"Actif!$E$30/100","v":{"v":0.09050000000000001,"d":"9.05%"}},{"$f":"Actif!$E$31/100","v":{"v":0.0605,"d":"6.05%"}},{"$f":"Actif!$E$32/100","v":{"v":0.47350000000000003,"d":"47.35%"}},{"$f":"Actif!$E$33/100","v":{"v":0.0585,"d":"5.85%"}},{"$f":"Actif!$E$29/100","v":{"v":0.027999999999999997,"d":"2.80%"}}]
[null,"#93",48,2029,"H","A_PER",{"v":0.44999999999999996,"d":"0.45"},{"v":0.38999999999999996,"d":"0.39"},0.6,0.6,85,0,{"$f":"ROUND(Primes!$O$7*V5197,0)","v":9},{"$f":"'BP Financier'!$E$33*(('BP Financier'!$C$19+'BP Financier'!$D$19+'BP Financier'!$E$19)/('BP Financier'!$C$16+'BP Financier'!$C$19+'BP Financier'!$D$16+'BP Financier'!$D$19+'BP Financier'!$E$16+'BP Financier'!$E$19))*V5197","v":{"v":273961.3484750424,"d":"273,961"}},{"v":153650.3201270955,"d":"153,650"},{"$f":"'BP Financier'!$E$44*(('BP Financier'!$C$19+'BP Financier'!$D$19+'BP Financier'!$E$19)/('BP Financier'!$C$16+'BP Financier'!$C$19+'BP Financier'!$D$16+'BP Financier'!$D$19+'BP Financier'!$E$16+'BP Financier'!$E$19+'BP Financier'!$C$22+'BP Financier'!$D$22+'BP Financier'!$E$22))*$V5197*X5197/(1-$W5197)","v":{"v":19557.45987553044,"d":"19,557"}},{"$f":"'BP Financier'!$E$44*(('BP Financier'!$C$19+'BP Financier'!$D$19+'BP Financier'!$E$19)/('BP Financier'!$C$16+'BP Financier'!$C$19+'BP Financier'!$D$16+'BP Financier'!$D$19+'BP Financier'!$E$16+'BP Financier'!$E$19+'BP Financier'!$C$22+'BP Financier'!$D$22+'BP Financier'!$E$22))*$V5197*Y5197/(1-$W5197)","v":{"v":13074.324005188857,"d":"13,074"}},{"$f":"'BP Financier'!$E$44*(('BP Financier'!$C$19+'BP Financier'!$D$19+'BP Financier'!$E$19)/('BP Financier'!$C$16+'BP Financier'!$C$19+'BP Financier'!$D$16+'BP Financier'!$D$19+'BP Financier'!$E$16+'BP Financier'!$E$19+'BP Financier'!$C$22+'BP Financier'!$D$22+'BP Financier'!$E$22))*$V5197*Z5197/(1-$W5197)","v":{"v":102325.4944868913,"d":"102,325"}},{"$f":"'BP Financier'!$E$44*(('BP Financier'!$C$19+'BP Financier'!$D$19+'BP Financier'!$E$19)/('BP Financier'!$C$16+'BP Financier'!$C$19+'BP Financier'!$D$16+'BP Financier'!$D$19+'BP Financier'!$E$16+'BP Financier'!$E$19+'BP Financier'!$C$22+'BP Financier'!$D$22+'BP Financier'!$E$22))*$V5197*AA5197/(1-$W5197)","v":{"v":12642.114947166085,"d":"12,642"}},{"$f":"'BP Financier'!$E$44*(('BP Financier'!$C$19+'BP Financier'!$D$19+'BP Financier'!$E$19)/('BP Financier'!$C$16+'BP Financier'!$C$19+'BP Financier'!$D$16+'BP Financier'!$D$19+'BP Financier'!$E$16+'BP Financier'!$E$19+'BP Financier'!$C$22+'BP Financier'!$D$22+'BP Financier'!$E$22))*$V5197*AB5197/(1-$W5197)","v":{"v":6050.9268123188085,"d":"6,051"}},null,{"v":0.013333333333333334,"d":"1.33%"},{"$f":"Actif!$E$28/100","v":{"v":0.28900000000000003,"d":"28.90%"}},{"$f":"Actif!$E$30/100","v":{"v":0.09050000000000001,"d":"9.05%"}},{"$f":"Actif!$E$31/100","v":{"v":0.0605,"d":"6.05%"}},{"$f":"Actif!$E$32/100","v":{"v":0.47350000000000003,"d":"47.35%"}},{"$f":"Actif!$E$33/100","v":{"v":0.0585,"d":"5.85%"}},{"$f":"Actif!$E$29/100","v":{"v":0.027999999999999997,"d":"2.80%"}}]
[null,"#94",49,2026,"H","A_PER",{"v":0.44999999999999996,"d":"0.45"},{"v":0.38999999999999996,"d":"0.39"},0.6,0.6,85,0,{"$f":"ROUND(Primes!$O$7*V5198,0)","v":9},{"$f":"'BP Financier'!$E$33*(('BP Financier'!$C$19+'BP Financier'!$D$19+'BP Financier'!$E$19)/('BP Financier'!$C$16+'BP Financier'!$C$19+'BP Financier'!$D$16+'BP Financier'!$D$19+'BP Financier'!$E$16+'BP Financier'!$E$19))*V5198","v":{"v":273961.3484750424,"d":"273,961"}},{"v":153650.3201270955,"d":"153,650"},{"$f":"'BP Financier'!$E$44*(('BP Financier'!$C$19+'BP Financier'!$D$19+'BP Financier'!$E$19)/('BP Financier'!$C$16+'BP Financier'!$C$19+'BP Financier'!$D$16+'BP Financier'!$D$19+'BP Financier'!$E$16+'BP Financier'!$E$19+'BP Financier'!$C$22+'BP Financier'!$D$22+'BP Financier'!$E$22))*$V5198*X5198/(1-$W5198)","v":{"v":19557.45987553044,"d":"19,557"}},{"$f":"'BP Financier'!$E$44*(('BP Financier'!$C$19+'BP Financier'!$D$19+'BP Financier'!$E$19)/('BP Financier'!$C$16+'BP Financier'!$C$19+'BP Financier'!$D$16+'BP Financier'!$D$19+'BP Financier'!$E$16+'BP Financier'!$E$19+'BP Financier'!$C$22+'BP Financier'!$D$22+'BP Financier'!$E$22))*$V5198*Y5198/(1-$W5198)","v":{"v":13074.324005188857,"d":"13,074"}},{"$f":"'BP Financier'!$E$44*(('BP Financier'!$C$19+'BP Financier'!$D$19+'BP Financier'!$E$19)/('BP Financier'!$C$16+'BP Financier'!$C$19+'BP Financier'!$D$16+'BP Financier'!$D$19+'BP Financier'!$E$16+'BP Financier'!$E$19+'BP Financier'!$C$22+'BP Financier'!$D$22+'BP Financier'!$E$22))*$V5198*Z5198/(1-$W5198)","v":{"v":102325.4944868913,"d":"102,325"}},{"$f":"'BP Financier'!$E$44*(('BP Financier'!$C$19+'BP Financier'!$D$19+'BP Financier'!$E$19)/('BP Financier'!$C$16+'BP Financier'!$C$19+'BP Financier'!$D$16+'BP Financier'!$D$19+'BP Financier'!$E$16+'BP Financier'!$E$19+'BP Financier'!$C$22+'BP Financier'!$D$22+'BP Financier'!$E$22))*$V5198*AA5198/(1-$W5198)","v":{"v":12642.114947166085,"d":"12,642"}},{"$f":"'BP Financier'!$E$44*(('BP Financier'!$C$19+'BP Financier'!$D$19+'BP Financier'!$E$19)/('BP Financier'!$C$16+'BP Financier'!$C$19+'BP Financier'!$D$16+'BP Financier'!$D$19+'BP Financier'!$E$16+'BP Financier'!$E$19+'BP Financier'!$C$22+'BP Financier'!$D$22+'BP Financier'!$E$22))*$V5198*AB5198/(1-$W5198)","v":{"v":6050.9268123188085,"d":"6,051"}},null,{"v":0.013333333333333334,"d":"1.33%"},{"$f":"Actif!$E$28/100","v":{"v":0.28900000000000003,"d":"28.90%"}},{"$f":"Actif!$E$30/100","v":{"v":0.09050000000000001,"d":"9.05%"}},{"$f":"Actif!$E$31/100","v":{"v":0.0605,"d":"6.05%"}},{"$f":"Actif!$E$32/100","v":{"v":0.47350000000000003,"d":"47.35%"}},{"$f":"Actif!$E$33/100","v":{"v":0.0585,"d":"5.85%"}},{"$f":"Actif!$E$29/100","v":{"v":0.027999999999999997,"d":"2.80%"}}]
[null,"#95",49,2028,"H","A_PER",{"v":0.44999999999999996,"d":"0.45"},{"v":0.38999999999999996,"d":"0.39"},0.6,0.6,85,0,{"$f":"ROUND(Primes!$O$7*V5199,0)","v":9},{"$f":"'BP Financier'!$E$33*(('BP Financier'!$C$19+'BP Financier'!$D$19+'BP Financier'!$E$19)/('BP Financier'!$C$16+'BP Financier'!$C$19+'BP Financier'!$D$16+'BP Financier'!$D$19+'BP Financier'!$E$16+'BP Financier'!$E$19))*V5199","v":{"v":273961.3484750424,"d":"273,961"}},{"v":153650.3201270955,"d":"153,650"},{"$f":"'BP Financier'!$E$44*(('BP Financier'!$C$19+'BP Financier'!$D$19+'BP Financier'!$E$19)/('BP Financier'!$C$16+'BP Financier'!$C$19+'BP Financier'!$D$16+'BP Financier'!$D$19+'BP Financier'!$E$16+'BP Financier'!$E$19+'BP Financier'!$C$22+'BP Financier'!$D$22+'BP Financier'!$E$22))*$V5199*X5199/(1-$W5199)","v":{"v":19557.45987553044,"d":"19,557"}},{"$f":"'BP Financier'!$E$44*(('BP Financier'!$C$19+'BP Financier'!$D$19+'BP Financier'!$E$19)/('BP Financier'!$C$16+'BP Financier'!$C$19+'BP Financier'!$D$16+'BP Financier'!$D$19+'BP Financier'!$E$16+'BP Financier'!$E$19+'BP Financier'!$C$22+'BP Financier'!$D$22+'BP Financier'!$E$22))*$V5199*Y5199/(1-$W5199)","v":{"v":13074.324005188857,"d":"13,074"}},{"$f":"'BP Financier'!$E$44*(('BP Financier'!$C$19+'BP Financier'!$D$19+'BP Financier'!$E$19)/('BP Financier'!$C$16+'BP Financier'!$C$19+'BP Financier'!$D$16+'BP Financier'!$D$19+'BP Financier'!$E$16+'BP Financier'!$E$19+'BP Financier'!$C$22+'BP Financier'!$D$22+'BP Financier'!$E$22))*$V5199*Z5199/(1-$W5199)","v":{"v":102325.4944868913,"d":"102,325"}},{"$f":"'BP Financier'!$E$44*(('BP Financier'!$C$19+'BP Financier'!$D$19+'BP Financier'!$E$19)/('BP Financier'!$C$16+'BP Financier'!$C$19+'BP Financier'!$D$16+'BP Financier'!$D$19+'BP Financier'!$E$16+'BP Financier'!$E$19+'BP Financier'!$C$22+'BP Financier'!$D$22+'BP Financier'!$E$22))*$V5199*AA5199/(1-$W5199)","v":{"v":12642.114947166085,"d":"12,642"}},{"$f":"'BP Financier'!$E$44*(('BP Financier'!$C$19+'BP Financier'!$D$19+'BP Financier'!$E$19)/('BP Financier'!$C$16+'BP Financier'!$C$19+'BP Financier'!$D$16+'BP Financier'!$D$19+'BP Financier'!$E$16+'BP Financier'!$E$19+'BP Financier'!$C$22+'BP Financier'!$D$22+'BP Financier'!$E$22))*$V5199*AB5199/(1-$W5199)","v":{"v":6050.9268123188085,"d":"6,051"}},null,{"v":0.013333333333333334,"d":"1.33%"},{"$f":"Actif!$E$28/100","v":{"v":0.28900000000000003,"d":"28.90%"}},{"$f":"Actif!$E$30/100","v":{"v":0.09050000000000001,"d":"9.05%"}},{"$f":"Actif!$E$31/100","v":{"v":0.0605,"d":"6.05%"}},{"$f":"Actif!$E$32/100","v":{"v":0.47350000000000003,"d":"47.35%"}},{"$f":"Actif!$E$33/100","v":{"v":0.0585,"d":"5.85%"}},{"$f":"Actif!$E$29/100","v":{"v":0.027999999999999997,"d":"2.80%"}}]
[null,"#96",49,2029,"H","A_PER",{"v":0.44999999999999996,"d":"0.45"},{"v":0.38999999999999996,"d":"0.39"},0.6,0.6,85,0,{"$f":"ROUND(Primes!$O$7*V5200,0)","v":9},{"$f":"'BP Financier'!$E$33*(('BP Financier'!$C$19+'BP Financier'!$D$19+'BP Financier'!$E$19)/('BP Financier'!$C$16+'BP Financier'!$C$19+'BP Financier'!$D$16+'BP Financier'!$D$19+'BP Financier'!$E$16+'BP Financier'!$E$19))*V5200","v":{"v":273961.3484750424,"d":"273,961"}},{"v":153650.3201270955,"d":"153,650"},{"$f":"'BP Financier'!$E$44*(('BP Financier'!$C$19+'BP Financier'!$D$19+'BP Financier'!$E$19)/('BP Financier'!$C$16+'BP Financier'!$C$19+'BP Financier'!$D$16+'BP Financier'!$D$19+'BP Financier'!$E$16+'BP Financier'!$E$19+'BP Financier'!$C$22+'BP Financier'!$D$22+'BP Financier'!$E$22))*$V5200*X5200/(1-$W5200)","v":{"v":19557.45987553044,"d":"19,557"}},{"$f":"'BP Financier'!$E$44*(('BP Financier'!$C$19+'BP Financier'!$D$19+'BP Financier'!$E$19)/('BP Financier'!$C$16+'BP Financier'!$C$19+'BP Financier'!$D$16+'BP Financier'!$D$19+'BP Financier'!$E$16+'BP Financier'!$E$19+'BP Financier'!$C$22+'BP Financier'!$D$22+'BP Financier'!$E$22))*$V5200*Y5200/(1-$W5200)","v":{"v":13074.324005188857,"d":"13,074"}},{"$f":"'BP Financier'!$E$44*(('BP Financier'!$C$19+'BP Financier'!$D$19+'BP Financier'!$E$19)/('BP Financier'!$C$16+'BP Financier'!$C$19+'BP Financier'!$D$16+'BP Financier'!$D$19+'BP Financier'!$E$16+'BP Financier'!$E$19+'BP Financier'!$C$22+'BP Financier'!$D$22+'BP Financier'!$E$22))*$V5200*Z5200/(1-$W5200)","v":{"v":102325.4944868913,"d":"102,325"}},{"$f":"'BP Financier'!$E$44*(('BP Financier'!$C$19+'BP Financier'!$D$19+'BP Financier'!$E$19)/('BP Financier'!$C$16+'BP Financier'!$C$19+'BP Financier'!$D$16+'BP Financier'!$D$19+'BP Financier'!$E$16+'BP Financier'!$E$19+'BP Financier'!$C$22+'BP Financier'!$D$22+'BP Financier'!$E$22))*$V5200*AA5200/(1-$W5200)","v":{"v":12642.114947166085,"d":"12,642"}},{"$f":"'BP Financier'!$E$44*(('BP Financier'!$C$19+'BP Financier'!$D$19+'BP Financier'!$E$19)/('BP Financier'!$C$16+'BP Financier'!$C$19+'BP Financier'!$D$16+'BP Financier'!$D$19+'BP Financier'!$E$16+'BP Financier'!$E$19+'BP Financier'!$C$22+'BP Financier'!$D$22+'BP Financier'!$E$22))*$V5200*AB5200/(1-$W5200)","v":{"v":6050.9268123188085,"d":"6,051"}},null,{"v":0.013333333333333334,"d":"1.33%"},{"$f":"Actif!$E$28/100","v":{"v":0.28900000000000003,"d":"28.90%"}},{"$f":"Actif!$E$30/100","v":{"v":0.09050000000000001,"d":"9.05%"}},{"$f":"Actif!$E$31/100","v":{"v":0.0605,"d":"6.05%"}},{"$f":"Actif!$E$32/100","v":{"v":0.47350000000000003,"d":"47.35%"}},{"$f":"Actif!$E$33/100","v":{"v":0.0585,"d":"5.85%"}},{"$f":"Actif!$E$29/100","v":{"v":0.027999999999999997,"d":"2.80%"}}]
[null,"#97",50,2026,"F","A_PER",{"$f":"frais_gestion_Euro*100","v":{"v":0.44999999999999996,"d":"0.45"}},{"$f":"frais_gestion_UC*100","v":{"v":0.38999999999999996,"d":"0.39"}},{"$f":"frais_distribution_FG*100","v":0.6},{"$f":"frais_distribution_UC*100","v":0.6},85,0,{"$f":"ROUND(Primes!$O$7*V5201,0)","v":9},{"$f":"'BP Financier'!$E$33*(('BP Financier'!$C$19+'BP Financier'!$D$19+'BP Financier'!$E$19)/('BP Financier'!$C$16+'BP Financier'!$C$19+'BP Financier'!$D$16+'BP Financier'!$D$19+'BP Financier'!$E$16+'BP Financier'!$E$19))*V5201","v":{"v":273961.3484750424,"d":"273,961"}},{"v":153650.3201270955,"d":"153,650"},{"$f":"'BP Financier'!$E$44*(('BP Financier'!$C$19+'BP Financier'!$D$19+'BP Financier'!$E$19)/('BP Financier'!$C$16+'BP Financier'!$C$19+'BP Financier'!$D$16+'BP Financier'!$D$19+'BP Financier'!$E$16+'BP Financier'!$E$19+'BP Financier'!$C$22+'BP Financier'!$D$22+'BP Financier'!$E$22))*$V5201*X5201/(1-$W5201)","v":{"v":19557.45987553044,"d":"19,557"}},{"$f":"'BP Financier'!$E$44*(('BP Financier'!$C$19+'BP Financier'!$D$19+'BP Financier'!$E$19)/('BP Financier'!$C$16+'BP Financier'!$C$19+'BP Financier'!$D$16+'BP Financier'!$D$19+'BP Financier'!$E$16+'BP Financier'!$E$19+'BP Financier'!$C$22+'BP Financier'!$D$22+'BP Financier'!$E$22))*$V5201*Y5201/(1-$W5201)","v":{"v":13074.324005188857,"d":"13,074"}},{"$f":"'BP Financier'!$E$44*(('BP Financier'!$C$19+'BP Financier'!$D$19+'BP Financier'!$E$19)/('BP Financier'!$C$16+'BP Financier'!$C$19+'BP Financier'!$D$16+'BP Financier'!$D$19+'BP Financier'!$E$16+'BP Financier'!$E$19+'BP Financier'!$C$22+'BP Financier'!$D$22+'BP Financier'!$E$22))*$V5201*Z5201/(1-$W5201)","v":{"v":102325.4944868913,"d":"102,325"}},{"$f":"'BP Financier'!$E$44*(('BP Financier'!$C$19+'BP Financier'!$D$19+'BP Financier'!$E$19)/('BP Financier'!$C$16+'BP Financier'!$C$19+'BP Financier'!$D$16+'BP Financier'!$D$19+'BP Financier'!$E$16+'BP Financier'!$E$19+'BP Financier'!$C$22+'BP Financier'!$D$22+'BP Financier'!$E$22))*$V5201*AA5201/(1-$W5201)","v":{"v":12642.114947166085,"d":"12,642"}},{"$f":"'BP Financier'!$E$44*(('BP Financier'!$C$19+'BP Financier'!$D$19+'BP Financier'!$E$19)/('BP Financier'!$C$16+'BP Financier'!$C$19+'BP Financier'!$D$16+'BP Financier'!$D$19+'BP Financier'!$E$16+'BP Financier'!$E$19+'BP Financier'!$C$22+'BP Financier'!$D$22+'BP Financier'!$E$22))*$V5201*AB5201/(1-$W5201)","v":{"v":6050.9268123188085,"d":"6,051"}},null,{"v":0.013333333333333334,"d":"1.33%"},{"$f":"Actif!$E$28/100","v":{"v":0.28900000000000003,"d":"28.90%"}},{"$f":"Actif!$E$30/100","v":{"v":0.09050000000000001,"d":"9.05%"}},{"$f":"Actif!$E$31/100","v":{"v":0.0605,"d":"6.05%"}},{"$f":"Actif!$E$32/100","v":{"v":0.47350000000000003,"d":"47.35%"}},{"$f":"Actif!$E$33/100","v":{"v":0.0585,"d":"5.85%"}},{"$f":"Actif!$E$29/100","v":{"v":0.027999999999999997,"d":"2.80%"}}]
[null,"#98",50,2028,"F","A_PER",{"v":0.44999999999999996,"d":"0.45"},{"v":0.38999999999999996,"d":"0.39"},0.6,0.6,85,0,{"$f":"ROUND(Primes!$O$7*V5202,0)","v":9},{"$f":"'BP Financier'!$E$33*(('BP Financier'!$C$19+'BP Financier'!$D$19+'BP Financier'!$E$19)/('BP Financier'!$C$16+'BP Financier'!$C$19+'BP Financier'!$D$16+'BP Financier'!$D$19+'BP Financier'!$E$16+'BP Financier'!$E$19))*V5202","v":{"v":273961.3484750424,"d":"273,961"}},{"v":153650.3201270955,"d":"153,650"},{"$f":"'BP Financier'!$E$44*(('BP Financier'!$C$19+'BP Financier'!$D$19+'BP Financier'!$E$19)/('BP Financier'!$C$16+'BP Financier'!$C$19+'BP Financier'!$D$16+'BP Financier'!$D$19+'BP Financier'!$E$16+'BP Financier'!$E$19+'BP Financier'!$C$22+'BP Financier'!$D$22+'BP Financier'!$E$22))*$V5202*X5202/(1-$W5202)","v":{"v":19557.45987553044,"d":"19,557"}},{"$f":"'BP Financier'!$E$44*(('BP Financier'!$C$19+'BP Financier'!$D$19+'BP Financier'!$E$19)/('BP Financier'!$C$16+'BP Financier'!$C$19+'BP Financier'!$D$16+'BP Financier'!$D$19+'BP Financier'!$E$16+'BP Financier'!$E$19+'BP Financier'!$C$22+'BP Financier'!$D$22+'BP Financier'!$E$22))*$V5202*Y5202/(1-$W5202)","v":{"v":13074.324005188857,"d":"13,074"}},{"$f":"'BP Financier'!$E$44*(('BP Financier'!$C$19+'BP Financier'!$D$19+'BP Financier'!$E$19)/('BP Financier'!$C$16+'BP Financier'!$C$19+'BP Financier'!$D$16+'BP Financier'!$D$19+'BP Financier'!$E$16+'BP Financier'!$E$19+'BP Financier'!$C$22+'BP Financier'!$D$22+'BP Financier'!$E$22))*$V5202*Z5202/(1-$W5202)","v":{"v":102325.4944868913,"d":"102,325"}},{"$f":"'BP Financier'!$E$44*(('BP Financier'!$C$19+'BP Financier'!$D$19+'BP Financier'!$E$19)/('BP Financier'!$C$16+'BP Financier'!$C$19+'BP Financier'!$D$16+'BP Financier'!$D$19+'BP Financier'!$E$16+'BP Financier'!$E$19+'BP Financier'!$C$22+'BP Financier'!$D$22+'BP Financier'!$E$22))*$V5202*AA5202/(1-$W5202)","v":{"v":12642.114947166085,"d":"12,642"}},{"$f":"'BP Financier'!$E$44*(('BP Financier'!$C$19+'BP Financier'!$D$19+'BP Financier'!$E$19)/('BP Financier'!$C$16+'BP Financier'!$C$19+'BP Financier'!$D$16+'BP Financier'!$D$19+'BP Financier'!$E$16+'BP Financier'!$E$19+'BP Financier'!$C$22+'BP Financier'!$D$22+'BP Financier'!$E$22))*$V5202*AB5202/(1-$W5202)","v":{"v":6050.9268123188085,"d":"6,051"}},null,{"v":0.013333333333333334,"d":"1.33%"},{"$f":"Actif!$E$28/100","v":{"v":0.28900000000000003,"d":"28.90%"}},{"$f":"Actif!$E$30/100","v":{"v":0.09050000000000001,"d":"9.05%"}},{"$f":"Actif!$E$31/100","v":{"v":0.0605,"d":"6.05%"}},{"$f":"Actif!$E$32/100","v":{"v":0.47350000000000003,"d":"47.35%"}},{"$f":"Actif!$E$33/100","v":{"v":0.0585,"d":"5.85%"}},{"$f":"Actif!$E$29/100","v":{"v":0.027999999999999997,"d":"2.80%"}}]
[null,"#99",50,2029,"F","A_PER",{"v":0.44999999999999996,"d":"0.45"},{"v":0.38999999999999996,"d":"0.39"},0.6,0.6,85,0,{"$f":"ROUND(Primes!$O$7*V5203,0)","v":9},{"$f":"'BP Financier'!$E$33*(('BP Financier'!$C$19+'BP Financier'!$D$19+'BP Financier'!$E$19)/('BP Financier'!$C$16+'BP Financier'!$C$19+'BP Financier'!$D$16+'BP Financier'!$D$19+'BP Financier'!$E$16+'BP Financier'!$E$19))*V5203","v":{"v":273961.3484750424,"d":"273,961"}},{"v":153650.3201270955,"d":"153,650"},{"$f":"'BP Financier'!$E$44*(('BP Financier'!$C$19+'BP Financier'!$D$19+'BP Financier'!$E$19)/('BP Financier'!$C$16+'BP Financier'!$C$19+'BP Financier'!$D$16+'BP Financier'!$D$19+'BP Financier'!$E$16+'BP Financier'!$E$19+'BP Financier'!$C$22+'BP Financier'!$D$22+'BP Financier'!$E$22))*$V5203*X5203/(1-$W5203)","v":{"v":19557.45987553044,"d":"19,557"}},{"$f":"'BP Financier'!$E$44*(('BP Financier'!$C$19+'BP Financier'!$D$19+'BP Financier'!$E$19)/('BP Financier'!$C$16+'BP Financier'!$C$19+'BP Financier'!$D$16+'BP Financier'!$D$19+'BP Financier'!$E$16+'BP Financier'!$E$19+'BP Financier'!$C$22+'BP Financier'!$D$22+'BP Financier'!$E$22))*$V5203*Y5203/(1-$W5203)","v":{"v":13074.324005188857,"d":"13,074"}},{"$f":"'BP Financier'!$E$44*(('BP Financier'!$C$19+'BP Financier'!$D$19+'BP Financier'!$E$19)/('BP Financier'!$C$16+'BP Financier'!$C$19+'BP Financier'!$D$16+'BP Financier'!$D$19+'BP Financier'!$E$16+'BP Financier'!$E$19+'BP Financier'!$C$22+'BP Financier'!$D$22+'BP Financier'!$E$22))*$V5203*Z5203/(1-$W5203)","v":{"v":102325.4944868913,"d":"102,325"}},{"$f":"'BP Financier'!$E$44*(('BP Financier'!$C$19+'BP Financier'!$D$19+'BP Financier'!$E$19)/('BP Financier'!$C$16+'BP Financier'!$C$19+'BP Financier'!$D$16+'BP Financier'!$D$19+'BP Financier'!$E$16+'BP Financier'!$E$19+'BP Financier'!$C$22+'BP Financier'!$D$22+'BP Financier'!$E$22))*$V5203*AA5203/(1-$W5203)","v":{"v":12642.114947166085,"d":"12,642"}},{"$f":"'BP Financier'!$E$44*(('BP Financier'!$C$19+'BP Financier'!$D$19+'BP Financier'!$E$19)/('BP Financier'!$C$16+'BP Financier'!$C$19+'BP Financier'!$D$16+'BP Financier'!$D$19+'BP Financier'!$E$16+'BP Financier'!$E$19+'BP Financier'!$C$22+'BP Financier'!$D$22+'BP Financier'!$E$22))*$V5203*AB5203/(1-$W5203)","v":{"v":6050.9268123188085,"d":"6,051"}},null,{"v":0.013333333333333334,"d":"1.33%"},{"$f":"Actif!$E$28/100","v":{"v":0.28900000000000003,"d":"28.90%"}},{"$f":"Actif!$E$30/100","v":{"v":0.09050000000000001,"d":"9.05%"}},{"$f":"Actif!$E$31/100","v":{"v":0.0605,"d":"6.05%"}},{"$f":"Actif!$E$32/100","v":{"v":0.47350000000000003,"d":"47.35%"}},{"$f":"Actif!$E$33/100","v":{"v":0.0585,"d":"5.85%"}},{"$f":"Actif!$E$29/100","v":{"v":0.027999999999999997,"d":"2.80%"}}]
[null,"#100",51,2026,"H","A_PER",{"v":0.44999999999999996,"d":"0.45"},{"v":0.38999999999999996,"d":"0.39"},0.6,0.6,85,0,{"$f":"ROUND(Primes!$O$7*V5204,0)","v":9},{"$f":"'BP Financier'!$E$33*(('BP Financier'!$C$19+'BP Financier'!$D$19+'BP Financier'!$E$19)/('BP Financier'!$C$16+'BP Financier'!$C$19+'BP Financier'!$D$16+'BP Financier'!$D$19+'BP Financier'!$E$16+'BP Financier'!$E$19))*V5204","v":{"v":273961.3484750424,"d":"273,961"}},{"v":153650.3201270955,"d":"153,650"},{"$f":"'BP Financier'!$E$44*(('BP Financier'!$C$19+'BP Financier'!$D$19+'BP Financier'!$E$19)/('BP Financier'!$C$16+'BP Financier'!$C$19+'BP Financier'!$D$16+'BP Financier'!$D$19+'BP Financier'!$E$16+'BP Financier'!$E$19+'BP Financier'!$C$22+'BP Financier'!$D$22+'BP Financier'!$E$22))*$V5204*X5204/(1-$W5204)","v":{"v":19557.45987553044,"d":"19,557"}},{"$f":"'BP Financier'!$E$44*(('BP Financier'!$C$19+'BP Financier'!$D$19+'BP Financier'!$E$19)/('BP Financier'!$C$16+'BP Financier'!$C$19+'BP Financier'!$D$16+'BP Financier'!$D$19+'BP Financier'!$E$16+'BP Financier'!$E$19+'BP Financier'!$C$22+'BP Financier'!$D$22+'BP Financier'!$E$22))*$V5204*Y5204/(1-$W5204)","v":{"v":13074.324005188857,"d":"13,074"}},{"$f":"'BP Financier'!$E$44*(('BP Financier'!$C$19+'BP Financier'!$D$19+'BP Financier'!$E$19)/('BP Financier'!$C$16+'BP Financier'!$C$19+'BP Financier'!$D$16+'BP Financier'!$D$19+'BP Financier'!$E$16+'BP Financier'!$E$19+'BP Financier'!$C$22+'BP Financier'!$D$22+'BP Financier'!$E$22))*$V5204*Z5204/(1-$W5204)","v":{"v":102325.4944868913,"d":"102,325"}},{"$f":"'BP Financier'!$E$44*(('BP Financier'!$C$19+'BP Financier'!$D$19+'BP Financier'!$E$19)/('BP Financier'!$C$16+'BP Financier'!$C$19+'BP Financier'!$D$16+'BP Financier'!$D$19+'BP Financier'!$E$16+'BP Financier'!$E$19+'BP Financier'!$C$22+'BP Financier'!$D$22+'BP Financier'!$E$22))*$V5204*AA5204/(1-$W5204)","v":{"v":12642.114947166085,"d":"12,642"}},{"$f":"'BP Financier'!$E$44*(('BP Financier'!$C$19+'BP Financier'!$D$19+'BP Financier'!$E$19)/('BP Financier'!$C$16+'BP Financier'!$C$19+'BP Financier'!$D$16+'BP Financier'!$D$19+'BP Financier'!$E$16+'BP Financier'!$E$19+'BP Financier'!$C$22+'BP Financier'!$D$22+'BP Financier'!$E$22))*$V5204*AB5204/(1-$W5204)","v":{"v":6050.9268123188085,"d":"6,051"}},null,{"v":0.013333333333333334,"d":"1.33%"},{"$f":"Actif!$E$28/100","v":{"v":0.28900000000000003,"d":"28.90%"}},{"$f":"Actif!$E$30/100","v":{"v":0.09050000000000001,"d":"9.05%"}},{"$f":"Actif!$E$31/100","v":{"v":0.0605,"d":"6.05%"}},{"$f":"Actif!$E$32/100","v":{"v":0.47350000000000003,"d":"47.35%"}},{"$f":"Actif!$E$33/100","v":{"v":0.0585,"d":"5.85%"}},{"$f":"Actif!$E$29/100","v":{"v":0.027999999999999997,"d":"2.80%"}}]
[null,"#101",51,2028,"H","A_PER",{"v":0.44999999999999996,"d":"0.45"},{"v":0.38999999999999996,"d":"0.39"},0.6,0.6,85,0,{"$f":"ROUND(Primes!$O$7*V5205,0)","v":9},{"$f":"'BP Financier'!$E$33*(('BP Financier'!$C$19+'BP Financier'!$D$19+'BP Financier'!$E$19)/('BP Financier'!$C$16+'BP Financier'!$C$19+'BP Financier'!$D$16+'BP Financier'!$D$19+'BP Financier'!$E$16+'BP Financier'!$E$19))*V5205","v":{"v":273961.3484750424,"d":"273,961"}},{"v":153650.3201270955,"d":"153,650"},{"$f":"'BP Financier'!$E$44*(('BP Financier'!$C$19+'BP Financier'!$D$19+'BP Financier'!$E$19)/('BP Financier'!$C$16+'BP Financier'!$C$19+'BP Financier'!$D$16+'BP Financier'!$D$19+'BP Financier'!$E$16+'BP Financier'!$E$19+'BP Financier'!$C$22+'BP Financier'!$D$22+'BP Financier'!$E$22))*$V5205*X5205/(1-$W5205)","v":{"v":19557.45987553044,"d":"19,557"}},{"$f":"'BP Financier'!$E$44*(('BP Financier'!$C$19+'BP Financier'!$D$19+'BP Financier'!$E$19)/('BP Financier'!$C$16+'BP Financier'!$C$19+'BP Financier'!$D$16+'BP Financier'!$D$19+'BP Financier'!$E$16+'BP Financier'!$E$19+'BP Financier'!$C$22+'BP Financier'!$D$22+'BP Financier'!$E$22))*$V5205*Y5205/(1-$W5205)","v":{"v":13074.324005188857,"d":"13,074"}},{"$f":"'BP Financier'!$E$44*(('BP Financier'!$C$19+'BP Financier'!$D$19+'BP Financier'!$E$19)/('BP Financier'!$C$16+'BP Financier'!$C$19+'BP Financier'!$D$16+'BP Financier'!$D$19+'BP Financier'!$E$16+'BP Financier'!$E$19+'BP Financier'!$C$22+'BP Financier'!$D$22+'BP Financier'!$E$22))*$V5205*Z5205/(1-$W5205)","v":{"v":102325.4944868913,"d":"102,325"}},{"$f":"'BP Financier'!$E$44*(('BP Financier'!$C$19+'BP Financier'!$D$19+'BP Financier'!$E$19)/('BP Financier'!$C$16+'BP Financier'!$C$19+'BP Financier'!$D$16+'BP Financier'!$D$19+'BP Financier'!$E$16+'BP Financier'!$E$19+'BP Financier'!$C$22+'BP Financier'!$D$22+'BP Financier'!$E$22))*$V5205*AA5205/(1-$W5205)","v":{"v":12642.114947166085,"d":"12,642"}},{"$f":"'BP Financier'!$E$44*(('BP Financier'!$C$19+'BP Financier'!$D$19+'BP Financier'!$E$19)/('BP Financier'!$C$16+'BP Financier'!$C$19+'BP Financier'!$D$16+'BP Financier'!$D$19+'BP Financier'!$E$16+'BP Financier'!$E$19+'BP Financier'!$C$22+'BP Financier'!$D$22+'BP Financier'!$E$22))*$V5205*AB5205/(1-$W5205)","v":{"v":6050.9268123188085,"d":"6,051"}},null,{"v":0.013333333333333334,"d":"1.33%"},{"$f":"Actif!$E$28/100","v":{"v":0.28900000000000003,"d":"28.90%"}},{"$f":"Actif!$E$30/100","v":{"v":0.09050000000000001,"d":"9.05%"}},{"$f":"Actif!$E$31/100","v":{"v":0.0605,"d":"6.05%"}},{"$f":"Actif!$E$32/100","v":{"v":0.47350000000000003,"d":"47.35%"}},{"$f":"Actif!$E$33/100","v":{"v":0.0585,"d":"5.85%"}},{"$f":"Actif!$E$29/100","v":{"v":0.027999999999999997,"d":"2.80%"}}]
[null,"#102",51,2029,"H","A_PER",{"v":0.44999999999999996,"d":"0.45"},{"v":0.38999999999999996,"d":"0.39"},0.6,0.6,85,0,{"$f":"ROUND(Primes!$O$7*V5206,0)","v":9},{"$f":"'BP Financier'!$E$33*(('BP Financier'!$C$19+'BP Financier'!$D$19+'BP Financier'!$E$19)/('BP Financier'!$C$16+'BP Financier'!$C$19+'BP Financier'!$D$16+'BP Financier'!$D$19+'BP Financier'!$E$16+'BP Financier'!$E$19))*V5206","v":{"v":273961.3484750424,"d":"273,961"}},{"v":153650.3201270955,"d":"153,650"},{"$f":"'BP Financier'!$E$44*(('BP Financier'!$C$19+'BP Financier'!$D$19+'BP Financier'!$E$19)/('BP Financier'!$C$16+'BP Financier'!$C$19+'BP Financier'!$D$16+'BP Financier'!$D$19+'BP Financier'!$E$16+'BP Financier'!$E$19+'BP Financier'!$C$22+'BP Financier'!$D$22+'BP Financier'!$E$22))*$V5206*X5206/(1-$W5206)","v":{"v":19557.45987553044,"d":"19,557"}},{"$f":"'BP Financier'!$E$44*(('BP Financier'!$C$19+'BP Financier'!$D$19+'BP Financier'!$E$19)/('BP Financier'!$C$16+'BP Financier'!$C$19+'BP Financier'!$D$16+'BP Financier'!$D$19+'BP Financier'!$E$16+'BP Financier'!$E$19+'BP Financier'!$C$22+'BP Financier'!$D$22+'BP Financier'!$E$22))*$V5206*Y5206/(1-$W5206)","v":{"v":13074.324005188857,"d":"13,074"}},{"$f":"'BP Financier'!$E$44*(('BP Financier'!$C$19+'BP Financier'!$D$19+'BP Financier'!$E$19)/('BP Financier'!$C$16+'BP Financier'!$C$19+'BP Financier'!$D$16+'BP Financier'!$D$19+'BP Financier'!$E$16+'BP Financier'!$E$19+'BP Financier'!$C$22+'BP Financier'!$D$22+'BP Financier'!$E$22))*$V5206*Z5206/(1-$W5206)","v":{"v":102325.4944868913,"d":"102,325"}},{"$f":"'BP Financier'!$E$44*(('BP Financier'!$C$19+'BP Financier'!$D$19+'BP Financier'!$E$19)/('BP Financier'!$C$16+'BP Financier'!$C$19+'BP Financier'!$D$16+'BP Financier'!$D$19+'BP Financier'!$E$16+'BP Financier'!$E$19+'BP Financier'!$C$22+'BP Financier'!$D$22+'BP Financier'!$E$22))*$V5206*AA5206/(1-$W5206)","v":{"v":12642.114947166085,"d":"12,642"}},{"$f":"'BP Financier'!$E$44*(('BP Financier'!$C$19+'BP Financier'!$D$19+'BP Financier'!$E$19)/('BP Financier'!$C$16+'BP Financier'!$C$19+'BP Financier'!$D$16+'BP Financier'!$D$19+'BP Financier'!$E$16+'BP Financier'!$E$19+'BP Financier'!$C$22+'BP Financier'!$D$22+'BP Financier'!$E$22))*$V5206*AB5206/(1-$W5206)","v":{"v":6050.9268123188085,"d":"6,051"}},null,{"v":0.013333333333333334,"d":"1.33%"},{"$f":"Actif!$E$28/100","v":{"v":0.28900000000000003,"d":"28.90%"}},{"$f":"Actif!$E$30/100","v":{"v":0.09050000000000001,"d":"9.05%"}},{"$f":"Actif!$E$31/100","v":{"v":0.0605,"d":"6.05%"}},{"$f":"Actif!$E$32/100","v":{"v":0.47350000000000003,"d":"47.35%"}},{"$f":"Actif!$E$33/100","v":{"v":0.0585,"d":"5.85%"}},{"$f":"Actif!$E$29/100","v":{"v":0.027999999999999997,"d":"2.80%"}}]
[null,"#103",52,2026,"H","A_PER",{"v":0.44999999999999996,"d":"0.45"},{"v":0.38999999999999996,"d":"0.39"},0.6,0.6,85,0,{"$f":"ROUND(Primes!$O$7*V5207,0)","v":9},{"$f":"'BP Financier'!$E$33*(('BP Financier'!$C$19+'BP Financier'!$D$19+'BP Financier'!$E$19)/('BP Financier'!$C$16+'BP Financier'!$C$19+'BP Financier'!$D$16+'BP Financier'!$D$19+'BP Financier'!$E$16+'BP Financier'!$E$19))*V5207","v":{"v":273961.3484750424,"d":"273,961"}},{"v":153650.3201270955,"d":"153,650"},{"$f":"'BP Financier'!$E$44*(('BP Financier'!$C$19+'BP Financier'!$D$19+'BP Financier'!$E$19)/('BP Financier'!$C$16+'BP Financier'!$C$19+'BP Financier'!$D$16+'BP Financier'!$D$19+'BP Financier'!$E$16+'BP Financier'!$E$19+'BP Financier'!$C$22+'BP Financier'!$D$22+'BP Financier'!$E$22))*$V5207*X5207/(1-$W5207)","v":{"v":19557.45987553044,"d":"19,557"}},{"$f":"'BP Financier'!$E$44*(('BP Financier'!$C$19+'BP Financier'!$D$19+'BP Financier'!$E$19)/('BP Financier'!$C$16+'BP Financier'!$C$19+'BP Financier'!$D$16+'BP Financier'!$D$19+'BP Financier'!$E$16+'BP Financier'!$E$19+'BP Financier'!$C$22+'BP Financier'!$D$22+'BP Financier'!$E$22))*$V5207*Y5207/(1-$W5207)","v":{"v":13074.324005188857,"d":"13,074"}},{"$f":"'BP Financier'!$E$44*(('BP Financier'!$C$19+'BP Financier'!$D$19+'BP Financier'!$E$19)/('BP Financier'!$C$16+'BP Financier'!$C$19+'BP Financier'!$D$16+'BP Financier'!$D$19+'BP Financier'!$E$16+'BP Financier'!$E$19+'BP Financier'!$C$22+'BP Financier'!$D$22+'BP Financier'!$E$22))*$V5207*Z5207/(1-$W5207)","v":{"v":102325.4944868913,"d":"102,325"}},{"$f":"'BP Financier'!$E$44*(('BP Financier'!$C$19+'BP Financier'!$D$19+'BP Financier'!$E$19)/('BP Financier'!$C$16+'BP Financier'!$C$19+'BP Financier'!$D$16+'BP Financier'!$D$19+'BP Financier'!$E$16+'BP Financier'!$E$19+'BP Financier'!$C$22+'BP Financier'!$D$22+'BP Financier'!$E$22))*$V5207*AA5207/(1-$W5207)","v":{"v":12642.114947166085,"d":"12,642"}},{"$f":"'BP Financier'!$E$44*(('BP Financier'!$C$19+'BP Financier'!$D$19+'BP Financier'!$E$19)/('BP Financier'!$C$16+'BP Financier'!$C$19+'BP Financier'!$D$16+'BP Financier'!$D$19+'BP Financier'!$E$16+'BP Financier'!$E$19+'BP Financier'!$C$22+'BP Financier'!$D$22+'BP Financier'!$E$22))*$V5207*AB5207/(1-$W5207)","v":{"v":6050.9268123188085,"d":"6,051"}},null,{"v":0.013333333333333334,"d":"1.33%"},{"$f":"Actif!$E$28/100","v":{"v":0.28900000000000003,"d":"28.90%"}},{"$f":"Actif!$E$30/100","v":{"v":0.09050000000000001,"d":"9.05%"}},{"$f":"Actif!$E$31/100","v":{"v":0.0605,"d":"6.05%"}},{"$f":"Actif!$E$32/100","v":{"v":0.47350000000000003,"d":"47.35%"}},{"$f":"Actif!$E$33/100","v":{"v":0.0585,"d":"5.85%"}},{"$f":"Actif!$E$29/100","v":{"v":0.027999999999999997,"d":"2.80%"}}]
[null,"#104",52,2028,"H","A_PER",{"v":0.44999999999999996,"d":"0.45"},{"v":0.38999999999999996,"d":"0.39"},0.6,0.6,85,0,{"$f":"ROUND(Primes!$O$7*V5208,0)","v":9},{"$f":"'BP Financier'!$E$33*(('BP Financier'!$C$19+'BP Financier'!$D$19+'BP Financier'!$E$19)/('BP Financier'!$C$16+'BP Financier'!$C$19+'BP Financier'!$D$16+'BP Financier'!$D$19+'BP Financier'!$E$16+'BP Financier'!$E$19))*V5208","v":{"v":273961.3484750424,"d":"273,961"}},{"v":153650.3201270955,"d":"153,650"},{"$f":"'BP Financier'!$E$44*(('BP Financier'!$C$19+'BP Financier'!$D$19+'BP Financier'!$E$19)/('BP Financier'!$C$16+'BP Financier'!$C$19+'BP Financier'!$D$16+'BP Financier'!$D$19+'BP Financier'!$E$16+'BP Financier'!$E$19+'BP Financier'!$C$22+'BP Financier'!$D$22+'BP Financier'!$E$22))*$V5208*X5208/(1-$W5208)","v":{"v":19557.45987553044,"d":"19,557"}},{"$f":"'BP Financier'!$E$44*(('BP Financier'!$C$19+'BP Financier'!$D$19+'BP Financier'!$E$19)/('BP Financier'!$C$16+'BP Financier'!$C$19+'BP Financier'!$D$16+'BP Financier'!$D$19+'BP Financier'!$E$16+'BP Financier'!$E$19+'BP Financier'!$C$22+'BP Financier'!$D$22+'BP Financier'!$E$22))*$V5208*Y5208/(1-$W5208)","v":{"v":13074.324005188857,"d":"13,074"}},{"$f":"'BP Financier'!$E$44*(('BP Financier'!$C$19+'BP Financier'!$D$19+'BP Financier'!$E$19)/('BP Financier'!$C$16+'BP Financier'!$C$19+'BP Financier'!$D$16+'BP Financier'!$D$19+'BP Financier'!$E$16+'BP Financier'!$E$19+'BP Financier'!$C$22+'BP Financier'!$D$22+'BP Financier'!$E$22))*$V5208*Z5208/(1-$W5208)","v":{"v":102325.4944868913,"d":"102,325"}},{"$f":"'BP Financier'!$E$44*(('BP Financier'!$C$19+'BP Financier'!$D$19+'BP Financier'!$E$19)/('BP Financier'!$C$16+'BP Financier'!$C$19+'BP Financier'!$D$16+'BP Financier'!$D$19+'BP Financier'!$E$16+'BP Financier'!$E$19+'BP Financier'!$C$22+'BP Financier'!$D$22+'BP Financier'!$E$22))*$V5208*AA5208/(1-$W5208)","v":{"v":12642.114947166085,"d":"12,642"}},{"$f":"'BP Financier'!$E$44*(('BP Financier'!$C$19+'BP Financier'!$D$19+'BP Financier'!$E$19)/('BP Financier'!$C$16+'BP Financier'!$C$19+'BP Financier'!$D$16+'BP Financier'!$D$19+'BP Financier'!$E$16+'BP Financier'!$E$19+'BP Financier'!$C$22+'BP Financier'!$D$22+'BP Financier'!$E$22))*$V5208*AB5208/(1-$W5208)","v":{"v":6050.9268123188085,"d":"6,051"}},null,{"v":0.013333333333333334,"d":"1.33%"},{"$f":"Actif!$E$28/100","v":{"v":0.28900000000000003,"d":"28.90%"}},{"$f":"Actif!$E$30/100","v":{"v":0.09050000000000001,"d":"9.05%"}},{"$f":"Actif!$E$31/100","v":{"v":0.0605,"d":"6.05%"}},{"$f":"Actif!$E$32/100","v":{"v":0.47350000000000003,"d":"47.35%"}},{"$f":"Actif!$E$33/100","v":{"v":0.0585,"d":"5.85%"}},{"$f":"Actif!$E$29/100","v":{"v":0.027999999999999997,"d":"2.80%"}}]
[null,"#105",52,2029,"H","A_PER",{"v":0.44999999999999996,"d":"0.45"},{"v":0.38999999999999996,"d":"0.39"},0.6,0.6,85,0,{"$f":"ROUND(Primes!$O$7*V5209,0)","v":9},{"$f":"'BP Financier'!$E$33*(('BP Financier'!$C$19+'BP Financier'!$D$19+'BP Financier'!$E$19)/('BP Financier'!$C$16+'BP Financier'!$C$19+'BP Financier'!$D$16+'BP Financier'!$D$19+'BP Financier'!$E$16+'BP Financier'!$E$19))*V5209","v":{"v":273961.3484750424,"d":"273,961"}},{"v":153650.3201270955,"d":"153,650"},{"$f":"'BP Financier'!$E$44*(('BP Financier'!$C$19+'BP Financier'!$D$19+'BP Financier'!$E$19)/('BP Financier'!$C$16+'BP Financier'!$C$19+'BP Financier'!$D$16+'BP Financier'!$D$19+'BP Financier'!$E$16+'BP Financier'!$E$19+'BP Financier'!$C$22+'BP Financier'!$D$22+'BP Financier'!$E$22))*$V5209*X5209/(1-$W5209)","v":{"v":19557.45987553044,"d":"19,557"}},{"$f":"'BP Financier'!$E$44*(('BP Financier'!$C$19+'BP Financier'!$D$19+'BP Financier'!$E$19)/('BP Financier'!$C$16+'BP Financier'!$C$19+'BP Financier'!$D$16+'BP Financier'!$D$19+'BP Financier'!$E$16+'BP Financier'!$E$19+'BP Financier'!$C$22+'BP Financier'!$D$22+'BP Financier'!$E$22))*$V5209*Y5209/(1-$W5209)","v":{"v":13074.324005188857,"d":"13,074"}},{"$f":"'BP Financier'!$E$44*(('BP Financier'!$C$19+'BP Financier'!$D$19+'BP Financier'!$E$19)/('BP Financier'!$C$16+'BP Financier'!$C$19+'BP Financier'!$D$16+'BP Financier'!$D$19+'BP Financier'!$E$16+'BP Financier'!$E$19+'BP Financier'!$C$22+'BP Financier'!$D$22+'BP Financier'!$E$22))*$V5209*Z5209/(1-$W5209)","v":{"v":102325.4944868913,"d":"102,325"}},{"$f":"'BP Financier'!$E$44*(('BP Financier'!$C$19+'BP Financier'!$D$19+'BP Financier'!$E$19)/('BP Financier'!$C$16+'BP Financier'!$C$19+'BP Financier'!$D$16+'BP Financier'!$D$19+'BP Financier'!$E$16+'BP Financier'!$E$19+'BP Financier'!$C$22+'BP Financier'!$D$22+'BP Financier'!$E$22))*$V5209*AA5209/(1-$W5209)","v":{"v":12642.114947166085,"d":"12,642"}},{"$f":"'BP Financier'!$E$44*(('BP Financier'!$C$19+'BP Financier'!$D$19+'BP Financier'!$E$19)/('BP Financier'!$C$16+'BP Financier'!$C$19+'BP Financier'!$D$16+'BP Financier'!$D$19+'BP Financier'!$E$16+'BP Financier'!$E$19+'BP Financier'!$C$22+'BP Financier'!$D$22+'BP Financier'!$E$22))*$V5209*AB5209/(1-$W5209)","v":{"v":6050.9268123188085,"d":"6,051"}},null,{"v":0.013333333333333334,"d":"1.33%"},{"$f":"Actif!$E$28/100","v":{"v":0.28900000000000003,"d":"28.90%"}},{"$f":"Actif!$E$30/100","v":{"v":0.09050000000000001,"d":"9.05%"}},{"$f":"Actif!$E$31/100","v":{"v":0.0605,"d":"6.05%"}},{"$f":"Actif!$E$32/100","v":{"v":0.47350000000000003,"d":"47.35%"}},{"$f":"Actif!$E$33/100","v":{"v":0.0585,"d":"5.85%"}},{"$f":"Actif!$E$29/100","v":{"v":0.027999999999999997,"d":"2.80%"}}]
[null,"#106",53,2026,"F","A_PER",{"v":0.44999999999999996,"d":"0.45"},{"v":0.38999999999999996,"d":"0.39"},0.6,0.6,85,0,{"$f":"ROUND(Primes!$O$7*V5210,0)","v":9},{"$f":"'BP Financier'!$E$33*(('BP Financier'!$C$19+'BP Financier'!$D$19+'BP Financier'!$E$19)/('BP Financier'!$C$16+'BP Financier'!$C$19+'BP Financier'!$D$16+'BP Financier'!$D$19+'BP Financier'!$E$16+'BP Financier'!$E$19))*V5210","v":{"v":273961.3484750424,"d":"273,961"}},{"v":153650.3201270955,"d":"153,650"},{"$f":"'BP Financier'!$E$44*(('BP Financier'!$C$19+'BP Financier'!$D$19+'BP Financier'!$E$19)/('BP Financier'!$C$16+'BP Financier'!$C$19+'BP Financier'!$D$16+'BP Financier'!$D$19+'BP Financier'!$E$16+'BP Financier'!$E$19+'BP Financier'!$C$22+'BP Financier'!$D$22+'BP Financier'!$E$22))*$V5210*X5210/(1-$W5210)","v":{"v":19557.45987553044,"d":"19,557"}},{"$f":"'BP Financier'!$E$44*(('BP Financier'!$C$19+'BP Financier'!$D$19+'BP Financier'!$E$19)/('BP Financier'!$C$16+'BP Financier'!$C$19+'BP Financier'!$D$16+'BP Financier'!$D$19+'BP Financier'!$E$16+'BP Financier'!$E$19+'BP Financier'!$C$22+'BP Financier'!$D$22+'BP Financier'!$E$22))*$V5210*Y5210/(1-$W5210)","v":{"v":13074.324005188857,"d":"13,074"}},{"$f":"'BP Financier'!$E$44*(('BP Financier'!$C$19+'BP Financier'!$D$19+'BP Financier'!$E$19)/('BP Financier'!$C$16+'BP Financier'!$C$19+'BP Financier'!$D$16+'BP Financier'!$D$19+'BP Financier'!$E$16+'BP Financier'!$E$19+'BP Financier'!$C$22+'BP Financier'!$D$22+'BP Financier'!$E$22))*$V5210*Z5210/(1-$W5210)","v":{"v":102325.4944868913,"d":"102,325"}},{"$f":"'BP Financier'!$E$44*(('BP Financier'!$C$19+'BP Financier'!$D$19+'BP Financier'!$E$19)/('BP Financier'!$C$16+'BP Financier'!$C$19+'BP Financier'!$D$16+'BP Financier'!$D$19+'BP Financier'!$E$16+'BP Financier'!$E$19+'BP Financier'!$C$22+'BP Financier'!$D$22+'BP Financier'!$E$22))*$V5210*AA5210/(1-$W5210)","v":{"v":12642.114947166085,"d":"12,642"}},{"$f":"'BP Financier'!$E$44*(('BP Financier'!$C$19+'BP Financier'!$D$19+'BP Financier'!$E$19)/('BP Financier'!$C$16+'BP Financier'!$C$19+'BP Financier'!$D$16+'BP Financier'!$D$19+'BP Financier'!$E$16+'BP Financier'!$E$19+'BP Financier'!$C$22+'BP Financier'!$D$22+'BP Financier'!$E$22))*$V5210*AB5210/(1-$W5210)","v":{"v":6050.9268123188085,"d":"6,051"}},null,{"v":0.013333333333333334,"d":"1.33%"},{"$f":"Actif!$E$28/100","v":{"v":0.28900000000000003,"d":"28.90%"}},{"$f":"Actif!$E$30/100","v":{"v":0.09050000000000001,"d":"9.05%"}},{"$f":"Actif!$E$31/100","v":{"v":0.0605,"d":"6.05%"}},{"$f":"Actif!$E$32/100","v":{"v":0.47350000000000003,"d":"47.35%"}},{"$f":"Actif!$E$33/100","v":{"v":0.0585,"d":"5.85%"}},{"$f":"Actif!$E$29/100","v":{"v":0.027999999999999997,"d":"2.80%"}}]
[null,"#107",53,2028,"F","A_PER",{"v":0.44999999999999996,"d":"0.45"},{"v":0.38999999999999996,"d":"0.39"},0.6,0.6,85,0,{"$f":"ROUND(Primes!$O$7*V5211,0)","v":9},{"$f":"'BP Financier'!$E$33*(('BP Financier'!$C$19+'BP Financier'!$D$19+'BP Financier'!$E$19)/('BP Financier'!$C$16+'BP Financier'!$C$19+'BP Financier'!$D$16+'BP Financier'!$D$19+'BP Financier'!$E$16+'BP Financier'!$E$19))*V5211","v":{"v":273961.3484750424,"d":"273,961"}},{"v":153650.3201270955,"d":"153,650"},{"$f":"'BP Financier'!$E$44*(('BP Financier'!$C$19+'BP Financier'!$D$19+'BP Financier'!$E$19)/('BP Financier'!$C$16+'BP Financier'!$C$19+'BP Financier'!$D$16+'BP Financier'!$D$19+'BP Financier'!$E$16+'BP Financier'!$E$19+'BP Financier'!$C$22+'BP Financier'!$D$22+'BP Financier'!$E$22))*$V5211*X5211/(1-$W5211)","v":{"v":19557.45987553044,"d":"19,557"}},{"$f":"'BP Financier'!$E$44*(('BP Financier'!$C$19+'BP Financier'!$D$19+'BP Financier'!$E$19)/('BP Financier'!$C$16+'BP Financier'!$C$19+'BP Financier'!$D$16+'BP Financier'!$D$19+'BP Financier'!$E$16+'BP Financier'!$E$19+'BP Financier'!$C$22+'BP Financier'!$D$22+'BP Financier'!$E$22))*$V5211*Y5211/(1-$W5211)","v":{"v":13074.324005188857,"d":"13,074"}},{"$f":"'BP Financier'!$E$44*(('BP Financier'!$C$19+'BP Financier'!$D$19+'BP Financier'!$E$19)/('BP Financier'!$C$16+'BP Financier'!$C$19+'BP Financier'!$D$16+'BP Financier'!$D$19+'BP Financier'!$E$16+'BP Financier'!$E$19+'BP Financier'!$C$22+'BP Financier'!$D$22+'BP Financier'!$E$22))*$V5211*Z5211/(1-$W5211)","v":{"v":102325.4944868913,"d":"102,325"}},{"$f":"'BP Financier'!$E$44*(('BP Financier'!$C$19+'BP Financier'!$D$19+'BP Financier'!$E$19)/('BP Financier'!$C$16+'BP Financier'!$C$19+'BP Financier'!$D$16+'BP Financier'!$D$19+'BP Financier'!$E$16+'BP Financier'!$E$19+'BP Financier'!$C$22+'BP Financier'!$D$22+'BP Financier'!$E$22))*$V5211*AA5211/(1-$W5211)","v":{"v":12642.114947166085,"d":"12,642"}},{"$f":"'BP Financier'!$E$44*(('BP Financier'!$C$19+'BP Financier'!$D$19+'BP Financier'!$E$19)/('BP Financier'!$C$16+'BP Financier'!$C$19+'BP Financier'!$D$16+'BP Financier'!$D$19+'BP Financier'!$E$16+'BP Financier'!$E$19+'BP Financier'!$C$22+'BP Financier'!$D$22+'BP Financier'!$E$22))*$V5211*AB5211/(1-$W5211)","v":{"v":6050.9268123188085,"d":"6,051"}},null,{"v":0.013333333333333334,"d":"1.33%"},{"$f":"Actif!$E$28/100","v":{"v":0.28900000000000003,"d":"28.90%"}},{"$f":"Actif!$E$30/100","v":{"v":0.09050000000000001,"d":"9.05%"}},{"$f":"Actif!$E$31/100","v":{"v":0.0605,"d":"6.05%"}},{"$f":"Actif!$E$32/100","v":{"v":0.47350000000000003,"d":"47.35%"}},{"$f":"Actif!$E$33/100","v":{"v":0.0585,"d":"5.85%"}},{"$f":"Actif!$E$29/100","v":{"v":0.027999999999999997,"d":"2.80%"}}]
[null,"#108",53,2029,"F","A_PER",{"v":0.44999999999999996,"d":"0.45"},{"v":0.38999999999999996,"d":"0.39"},0.6,0.6,85,0,{"$f":"ROUND(Primes!$O$7*V5212,0)","v":9},{"$f":"'BP Financier'!$E$33*(('BP Financier'!$C$19+'BP Financier'!$D$19+'BP Financier'!$E$19)/('BP Financier'!$C$16+'BP Financier'!$C$19+'BP Financier'!$D$16+'BP Financier'!$D$19+'BP Financier'!$E$16+'BP Financier'!$E$19))*V5212","v":{"v":273961.3484750424,"d":"273,961"}},{"v":153650.3201270955,"d":"153,650"},{"$f":"'BP Financier'!$E$44*(('BP Financier'!$C$19+'BP Financier'!$D$19+'BP Financier'!$E$19)/('BP Financier'!$C$16+'BP Financier'!$C$19+'BP Financier'!$D$16+'BP Financier'!$D$19+'BP Financier'!$E$16+'BP Financier'!$E$19+'BP Financier'!$C$22+'BP Financier'!$D$22+'BP Financier'!$E$22))*$V5212*X5212/(1-$W5212)","v":{"v":19557.45987553044,"d":"19,557"}},{"$f":"'BP Financier'!$E$44*(('BP Financier'!$C$19+'BP Financier'!$D$19+'BP Financier'!$E$19)/('BP Financier'!$C$16+'BP Financier'!$C$19+'BP Financier'!$D$16+'BP Financier'!$D$19+'BP Financier'!$E$16+'BP Financier'!$E$19+'BP Financier'!$C$22+'BP Financier'!$D$22+'BP Financier'!$E$22))*$V5212*Y5212/(1-$W5212)","v":{"v":13074.324005188857,"d":"13,074"}},{"$f":"'BP Financier'!$E$44*(('BP Financier'!$C$19+'BP Financier'!$D$19+'BP Financier'!$E$19)/('BP Financier'!$C$16+'BP Financier'!$C$19+'BP Financier'!$D$16+'BP Financier'!$D$19+'BP Financier'!$E$16+'BP Financier'!$E$19+'BP Financier'!$C$22+'BP Financier'!$D$22+'BP Financier'!$E$22))*$V5212*Z5212/(1-$W5212)","v":{"v":102325.4944868913,"d":"102,325"}},{"$f":"'BP Financier'!$E$44*(('BP Financier'!$C$19+'BP Financier'!$D$19+'BP Financier'!$E$19)/('BP Financier'!$C$16+'BP Financier'!$C$19+'BP Financier'!$D$16+'BP Financier'!$D$19+'BP Financier'!$E$16+'BP Financier'!$E$19+'BP Financier'!$C$22+'BP Financier'!$D$22+'BP Financier'!$E$22))*$V5212*AA5212/(1-$W5212)","v":{"v":12642.114947166085,"d":"12,642"}},{"$f":"'BP Financier'!$E$44*(('BP Financier'!$C$19+'BP Financier'!$D$19+'BP Financier'!$E$19)/('BP Financier'!$C$16+'BP Financier'!$C$19+'BP Financier'!$D$16+'BP Financier'!$D$19+'BP Financier'!$E$16+'BP Financier'!$E$19+'BP Financier'!$C$22+'BP Financier'!$D$22+'BP Financier'!$E$22))*$V5212*AB5212/(1-$W5212)","v":{"v":6050.9268123188085,"d":"6,051"}},null,{"v":0.013333333333333334,"d":"1.33%"},{"$f":"Actif!$E$28/100","v":{"v":0.28900000000000003,"d":"28.90%"}},{"$f":"Actif!$E$30/100","v":{"v":0.09050000000000001,"d":"9.05%"}},{"$f":"Actif!$E$31/100","v":{"v":0.0605,"d":"6.05%"}},{"$f":"Actif!$E$32/100","v":{"v":0.47350000000000003,"d":"47.35%"}},{"$f":"Actif!$E$33/100","v":{"v":0.0585,"d":"5.85%"}},{"$f":"Actif!$E$29/100","v":{"v":0.027999999999999997,"d":"2.80%"}}]
[null,"#109",54,2026,"H","A_PER",{"v":0.44999999999999996,"d":"0.45"},{"v":0.38999999999999996,"d":"0.39"},0.6,0.6,85,0,{"$f":"ROUND(Primes!$O$7*V5213,0)","v":9},{"$f":"'BP Financier'!$E$33*(('BP Financier'!$C$19+'BP Financier'!$D$19+'BP Financier'!$E$19)/('BP Financier'!$C$16+'BP Financier'!$C$19+'BP Financier'!$D$16+'BP Financier'!$D$19+'BP Financier'!$E$16+'BP Financier'!$E$19))*V5213","v":{"v":273961.3484750424,"d":"273,961"}},{"v":153650.3201270955,"d":"153,650"},{"$f":"'BP Financier'!$E$44*(('BP Financier'!$C$19+'BP Financier'!$D$19+'BP Financier'!$E$19)/('BP Financier'!$C$16+'BP Financier'!$C$19+'BP Financier'!$D$16+'BP Financier'!$D$19+'BP Financier'!$E$16+'BP Financier'!$E$19+'BP Financier'!$C$22+'BP Financier'!$D$22+'BP Financier'!$E$22))*$V5213*X5213/(1-$W5213)","v":{"v":19557.45987553044,"d":"19,557"}},{"$f":"'BP Financier'!$E$44*(('BP Financier'!$C$19+'BP Financier'!$D$19+'BP Financier'!$E$19)/('BP Financier'!$C$16+'BP Financier'!$C$19+'BP Financier'!$D$16+'BP Financier'!$D$19+'BP Financier'!$E$16+'BP Financier'!$E$19+'BP Financier'!$C$22+'BP Financier'!$D$22+'BP Financier'!$E$22))*$V5213*Y5213/(1-$W5213)","v":{"v":13074.324005188857,"d":"13,074"}},{"$f":"'BP Financier'!$E$44*(('BP Financier'!$C$19+'BP Financier'!$D$19+'BP Financier'!$E$19)/('BP Financier'!$C$16+'BP Financier'!$C$19+'BP Financier'!$D$16+'BP Financier'!$D$19+'BP Financier'!$E$16+'BP Financier'!$E$19+'BP Financier'!$C$22+'BP Financier'!$D$22+'BP Financier'!$E$22))*$V5213*Z5213/(1-$W5213)","v":{"v":102325.4944868913,"d":"102,325"}},{"$f":"'BP Financier'!$E$44*(('BP Financier'!$C$19+'BP Financier'!$D$19+'BP Financier'!$E$19)/('BP Financier'!$C$16+'BP Financier'!$C$19+'BP Financier'!$D$16+'BP Financier'!$D$19+'BP Financier'!$E$16+'BP Financier'!$E$19+'BP Financier'!$C$22+'BP Financier'!$D$22+'BP Financier'!$E$22))*$V5213*AA5213/(1-$W5213)","v":{"v":12642.114947166085,"d":"12,642"}},{"$f":"'BP Financier'!$E$44*(('BP Financier'!$C$19+'BP Financier'!$D$19+'BP Financier'!$E$19)/('BP Financier'!$C$16+'BP Financier'!$C$19+'BP Financier'!$D$16+'BP Financier'!$D$19+'BP Financier'!$E$16+'BP Financier'!$E$19+'BP Financier'!$C$22+'BP Financier'!$D$22+'BP Financier'!$E$22))*$V5213*AB5213/(1-$W5213)","v":{"v":6050.9268123188085,"d":"6,051"}},null,{"v":0.013333333333333334,"d":"1.33%"},{"$f":"Actif!$E$28/100","v":{"v":0.28900000000000003,"d":"28.90%"}},{"$f":"Actif!$E$30/100","v":{"v":0.09050000000000001,"d":"9.05%"}},{"$f":"Actif!$E$31/100","v":{"v":0.0605,"d":"6.05%"}},{"$f":"Actif!$E$32/100","v":{"v":0.47350000000000003,"d":"47.35%"}},{"$f":"Actif!$E$33/100","v":{"v":0.0585,"d":"5.85%"}},{"$f":"Actif!$E$29/100","v":{"v":0.027999999999999997,"d":"2.80%"}}]
[null,"#110",54,2028,"H","A_PER",{"v":0.44999999999999996,"d":"0.45"},{"v":0.38999999999999996,"d":"0.39"},0.6,0.6,85,0,{"$f":"ROUND(Primes!$O$7*V5214,0)","v":9},{"$f":"'BP Financier'!$E$33*(('BP Financier'!$C$19+'BP Financier'!$D$19+'BP Financier'!$E$19)/('BP Financier'!$C$16+'BP Financier'!$C$19+'BP Financier'!$D$16+'BP Financier'!$D$19+'BP Financier'!$E$16+'BP Financier'!$E$19))*V5214","v":{"v":273961.3484750424,"d":"273,961"}},{"v":153650.3201270955,"d":"153,650"},{"$f":"'BP Financier'!$E$44*(('BP Financier'!$C$19+'BP Financier'!$D$19+'BP Financier'!$E$19)/('BP Financier'!$C$16+'BP Financier'!$C$19+'BP Financier'!$D$16+'BP Financier'!$D$19+'BP Financier'!$E$16+'BP Financier'!$E$19+'BP Financier'!$C$22+'BP Financier'!$D$22+'BP Financier'!$E$22))*$V5214*X5214/(1-$W5214)","v":{"v":19557.45987553044,"d":"19,557"}},{"$f":"'BP Financier'!$E$44*(('BP Financier'!$C$19+'BP Financier'!$D$19+'BP Financier'!$E$19)/('BP Financier'!$C$16+'BP Financier'!$C$19+'BP Financier'!$D$16+'BP Financier'!$D$19+'BP Financier'!$E$16+'BP Financier'!$E$19+'BP Financier'!$C$22+'BP Financier'!$D$22+'BP Financier'!$E$22))*$V5214*Y5214/(1-$W5214)","v":{"v":13074.324005188857,"d":"13,074"}},{"$f":"'BP Financier'!$E$44*(('BP Financier'!$C$19+'BP Financier'!$D$19+'BP Financier'!$E$19)/('BP Financier'!$C$16+'BP Financier'!$C$19+'BP Financier'!$D$16+'BP Financier'!$D$19+'BP Financier'!$E$16+'BP Financier'!$E$19+'BP Financier'!$C$22+'BP Financier'!$D$22+'BP Financier'!$E$22))*$V5214*Z5214/(1-$W5214)","v":{"v":102325.4944868913,"d":"102,325"}},{"$f":"'BP Financier'!$E$44*(('BP Financier'!$C$19+'BP Financier'!$D$19+'BP Financier'!$E$19)/('BP Financier'!$C$16+'BP Financier'!$C$19+'BP Financier'!$D$16+'BP Financier'!$D$19+'BP Financier'!$E$16+'BP Financier'!$E$19+'BP Financier'!$C$22+'BP Financier'!$D$22+'BP Financier'!$E$22))*$V5214*AA5214/(1-$W5214)","v":{"v":12642.114947166085,"d":"12,642"}},{"$f":"'BP Financier'!$E$44*(('BP Financier'!$C$19+'BP Financier'!$D$19+'BP Financier'!$E$19)/('BP Financier'!$C$16+'BP Financier'!$C$19+'BP Financier'!$D$16+'BP Financier'!$D$19+'BP Financier'!$E$16+'BP Financier'!$E$19+'BP Financier'!$C$22+'BP Financier'!$D$22+'BP Financier'!$E$22))*$V5214*AB5214/(1-$W5214)","v":{"v":6050.9268123188085,"d":"6,051"}},null,{"v":0.013333333333333334,"d":"1.33%"},{"$f":"Actif!$E$28/100","v":{"v":0.28900000000000003,"d":"28.90%"}},{"$f":"Actif!$E$30/100","v":{"v":0.09050000000000001,"d":"9.05%"}},{"$f":"Actif!$E$31/100","v":{"v":0.0605,"d":"6.05%"}},{"$f":"Actif!$E$32/100","v":{"v":0.47350000000000003,"d":"47.35%"}},{"$f":"Actif!$E$33/100","v":{"v":0.0585,"d":"5.85%"}},{"$f":"Actif!$E$29/100","v":{"v":0.027999999999999997,"d":"2.80%"}}]
[null,"#111",54,2029,"H","A_PER",{"v":0.44999999999999996,"d":"0.45"},{"v":0.38999999999999996,"d":"0.39"},0.6,0.6,85,0,{"$f":"ROUND(Primes!$O$7*V5215,0)","v":9},{"$f":"'BP Financier'!$E$33*(('BP Financier'!$C$19+'BP Financier'!$D$19+'BP Financier'!$E$19)/('BP Financier'!$C$16+'BP Financier'!$C$19+'BP Financier'!$D$16+'BP Financier'!$D$19+'BP Financier'!$E$16+'BP Financier'!$E$19))*V5215","v":{"v":273961.3484750424,"d":"273,961"}},{"v":153650.3201270955,"d":"153,650"},{"$f":"'BP Financier'!$E$44*(('BP Financier'!$C$19+'BP Financier'!$D$19+'BP Financier'!$E$19)/('BP Financier'!$C$16+'BP Financier'!$C$19+'BP Financier'!$D$16+'BP Financier'!$D$19+'BP Financier'!$E$16+'BP Financier'!$E$19+'BP Financier'!$C$22+'BP Financier'!$D$22+'BP Financier'!$E$22))*$V5215*X5215/(1-$W5215)","v":{"v":19557.45987553044,"d":"19,557"}},{"$f":"'BP Financier'!$E$44*(('BP Financier'!$C$19+'BP Financier'!$D$19+'BP Financier'!$E$19)/('BP Financier'!$C$16+'BP Financier'!$C$19+'BP Financier'!$D$16+'BP Financier'!$D$19+'BP Financier'!$E$16+'BP Financier'!$E$19+'BP Financier'!$C$22+'BP Financier'!$D$22+'BP Financier'!$E$22))*$V5215*Y5215/(1-$W5215)","v":{"v":13074.324005188857,"d":"13,074"}},{"$f":"'BP Financier'!$E$44*(('BP Financier'!$C$19+'BP Financier'!$D$19+'BP Financier'!$E$19)/('BP Financier'!$C$16+'BP Financier'!$C$19+'BP Financier'!$D$16+'BP Financier'!$D$19+'BP Financier'!$E$16+'BP Financier'!$E$19+'BP Financier'!$C$22+'BP Financier'!$D$22+'BP Financier'!$E$22))*$V5215*Z5215/(1-$W5215)","v":{"v":102325.4944868913,"d":"102,325"}},{"$f":"'BP Financier'!$E$44*(('BP Financier'!$C$19+'BP Financier'!$D$19+'BP Financier'!$E$19)/('BP Financier'!$C$16+'BP Financier'!$C$19+'BP Financier'!$D$16+'BP Financier'!$D$19+'BP Financier'!$E$16+'BP Financier'!$E$19+'BP Financier'!$C$22+'BP Financier'!$D$22+'BP Financier'!$E$22))*$V5215*AA5215/(1-$W5215)","v":{"v":12642.114947166085,"d":"12,642"}},{"$f":"'BP Financier'!$E$44*(('BP Financier'!$C$19+'BP Financier'!$D$19+'BP Financier'!$E$19)/('BP Financier'!$C$16+'BP Financier'!$C$19+'BP Financier'!$D$16+'BP Financier'!$D$19+'BP Financier'!$E$16+'BP Financier'!$E$19+'BP Financier'!$C$22+'BP Financier'!$D$22+'BP Financier'!$E$22))*$V5215*AB5215/(1-$W5215)","v":{"v":6050.9268123188085,"d":"6,051"}},null,{"v":0.013333333333333334,"d":"1.33%"},{"$f":"Actif!$E$28/100","v":{"v":0.28900000000000003,"d":"28.90%"}},{"$f":"Actif!$E$30/100","v":{"v":0.09050000000000001,"d":"9.05%"}},{"$f":"Actif!$E$31/100","v":{"v":0.0605,"d":"6.05%"}},{"$f":"Actif!$E$32/100","v":{"v":0.47350000000000003,"d":"47.35%"}},{"$f":"Actif!$E$33/100","v":{"v":0.0585,"d":"5.85%"}},{"$f":"Actif!$E$29/100","v":{"v":0.027999999999999997,"d":"2.80%"}}]
[null,"#112",55,2026,"H","A_PER",{"v":0.44999999999999996,"d":"0.45"},{"v":0.38999999999999996,"d":"0.39"},0.6,0.6,85,0,{"$f":"ROUND(Primes!$O$7*V5216,0)","v":9},{"$f":"'BP Financier'!$E$33*(('BP Financier'!$C$19+'BP Financier'!$D$19+'BP Financier'!$E$19)/('BP Financier'!$C$16+'BP Financier'!$C$19+'BP Financier'!$D$16+'BP Financier'!$D$19+'BP Financier'!$E$16+'BP Financier'!$E$19))*V5216","v":{"v":273961.3484750424,"d":"273,961"}},{"v":153650.3201270955,"d":"153,650"},{"$f":"'BP Financier'!$E$44*(('BP Financier'!$C$19+'BP Financier'!$D$19+'BP Financier'!$E$19)/('BP Financier'!$C$16+'BP Financier'!$C$19+'BP Financier'!$D$16+'BP Financier'!$D$19+'BP Financier'!$E$16+'BP Financier'!$E$19+'BP Financier'!$C$22+'BP Financier'!$D$22+'BP Financier'!$E$22))*$V5216*X5216/(1-$W5216)","v":{"v":19557.45987553044,"d":"19,557"}},{"$f":"'BP Financier'!$E$44*(('BP Financier'!$C$19+'BP Financier'!$D$19+'BP Financier'!$E$19)/('BP Financier'!$C$16+'BP Financier'!$C$19+'BP Financier'!$D$16+'BP Financier'!$D$19+'BP Financier'!$E$16+'BP Financier'!$E$19+'BP Financier'!$C$22+'BP Financier'!$D$22+'BP Financier'!$E$22))*$V5216*Y5216/(1-$W5216)","v":{"v":13074.324005188857,"d":"13,074"}},{"$f":"'BP Financier'!$E$44*(('BP Financier'!$C$19+'BP Financier'!$D$19+'BP Financier'!$E$19)/('BP Financier'!$C$16+'BP Financier'!$C$19+'BP Financier'!$D$16+'BP Financier'!$D$19+'BP Financier'!$E$16+'BP Financier'!$E$19+'BP Financier'!$C$22+'BP Financier'!$D$22+'BP Financier'!$E$22))*$V5216*Z5216/(1-$W5216)","v":{"v":102325.4944868913,"d":"102,325"}},{"$f":"'BP Financier'!$E$44*(('BP Financier'!$C$19+'BP Financier'!$D$19+'BP Financier'!$E$19)/('BP Financier'!$C$16+'BP Financier'!$C$19+'BP Financier'!$D$16+'BP Financier'!$D$19+'BP Financier'!$E$16+'BP Financier'!$E$19+'BP Financier'!$C$22+'BP Financier'!$D$22+'BP Financier'!$E$22))*$V5216*AA5216/(1-$W5216)","v":{"v":12642.114947166085,"d":"12,642"}},{"$f":"'BP Financier'!$E$44*(('BP Financier'!$C$19+'BP Financier'!$D$19+'BP Financier'!$E$19)/('BP Financier'!$C$16+'BP Financier'!$C$19+'BP Financier'!$D$16+'BP Financier'!$D$19+'BP Financier'!$E$16+'BP Financier'!$E$19+'BP Financier'!$C$22+'BP Financier'!$D$22+'BP Financier'!$E$22))*$V5216*AB5216/(1-$W5216)","v":{"v":6050.9268123188085,"d":"6,051"}},null,{"v":0.013333333333333334,"d":"1.33%"},{"$f":"Actif!$E$28/100","v":{"v":0.28900000000000003,"d":"28.90%"}},{"$f":"Actif!$E$30/100","v":{"v":0.09050000000000001,"d":"9.05%"}},{"$f":"Actif!$E$31/100","v":{"v":0.0605,"d":"6.05%"}},{"$f":"Actif!$E$32/100","v":{"v":0.47350000000000003,"d":"47.35%"}},{"$f":"Actif!$E$33/100","v":{"v":0.0585,"d":"5.85%"}},{"$f":"Actif!$E$29/100","v":{"v":0.027999999999999997,"d":"2.80%"}}]
[null,"#113",55,2028,"H","A_PER",{"v":0.44999999999999996,"d":"0.45"},{"v":0.38999999999999996,"d":"0.39"},0.6,0.6,85,0,{"$f":"ROUND(Primes!$O$7*V5217,0)","v":9},{"$f":"'BP Financier'!$E$33*(('BP Financier'!$C$19+'BP Financier'!$D$19+'BP Financier'!$E$19)/('BP Financier'!$C$16+'BP Financier'!$C$19+'BP Financier'!$D$16+'BP Financier'!$D$19+'BP Financier'!$E$16+'BP Financier'!$E$19))*V5217","v":{"v":273961.3484750424,"d":"273,961"}},{"v":153650.3201270955,"d":"153,650"},{"$f":"'BP Financier'!$E$44*(('BP Financier'!$C$19+'BP Financier'!$D$19+'BP Financier'!$E$19)/('BP Financier'!$C$16+'BP Financier'!$C$19+'BP Financier'!$D$16+'BP Financier'!$D$19+'BP Financier'!$E$16+'BP Financier'!$E$19+'BP Financier'!$C$22+'BP Financier'!$D$22+'BP Financier'!$E$22))*$V5217*X5217/(1-$W5217)","v":{"v":19557.45987553044,"d":"19,557"}},{"$f":"'BP Financier'!$E$44*(('BP Financier'!$C$19+'BP Financier'!$D$19+'BP Financier'!$E$19)/('BP Financier'!$C$16+'BP Financier'!$C$19+'BP Financier'!$D$16+'BP Financier'!$D$19+'BP Financier'!$E$16+'BP Financier'!$E$19+'BP Financier'!$C$22+'BP Financier'!$D$22+'BP Financier'!$E$22))*$V5217*Y5217/(1-$W5217)","v":{"v":13074.324005188857,"d":"13,074"}},{"$f":"'BP Financier'!$E$44*(('BP Financier'!$C$19+'BP Financier'!$D$19+'BP Financier'!$E$19)/('BP Financier'!$C$16+'BP Financier'!$C$19+'BP Financier'!$D$16+'BP Financier'!$D$19+'BP Financier'!$E$16+'BP Financier'!$E$19+'BP Financier'!$C$22+'BP Financier'!$D$22+'BP Financier'!$E$22))*$V5217*Z5217/(1-$W5217)","v":{"v":102325.4944868913,"d":"102,325"}},{"$f":"'BP Financier'!$E$44*(('BP Financier'!$C$19+'BP Financier'!$D$19+'BP Financier'!$E$19)/('BP Financier'!$C$16+'BP Financier'!$C$19+'BP Financier'!$D$16+'BP Financier'!$D$19+'BP Financier'!$E$16+'BP Financier'!$E$19+'BP Financier'!$C$22+'BP Financier'!$D$22+'BP Financier'!$E$22))*$V5217*AA5217/(1-$W5217)","v":{"v":12642.114947166085,"d":"12,642"}},{"$f":"'BP Financier'!$E$44*(('BP Financier'!$C$19+'BP Financier'!$D$19+'BP Financier'!$E$19)/('BP Financier'!$C$16+'BP Financier'!$C$19+'BP Financier'!$D$16+'BP Financier'!$D$19+'BP Financier'!$E$16+'BP Financier'!$E$19+'BP Financier'!$C$22+'BP Financier'!$D$22+'BP Financier'!$E$22))*$V5217*AB5217/(1-$W5217)","v":{"v":6050.9268123188085,"d":"6,051"}},null,{"v":0.013333333333333334,"d":"1.33%"},{"$f":"Actif!$E$28/100","v":{"v":0.28900000000000003,"d":"28.90%"}},{"$f":"Actif!$E$30/100","v":{"v":0.09050000000000001,"d":"9.05%"}},{"$f":"Actif!$E$31/100","v":{"v":0.0605,"d":"6.05%"}},{"$f":"Actif!$E$32/100","v":{"v":0.47350000000000003,"d":"47.35%"}},{"$f":"Actif!$E$33/100","v":{"v":0.0585,"d":"5.85%"}},{"$f":"Actif!$E$29/100","v":{"v":0.027999999999999997,"d":"2.80%"}}]
[null,"#114",55,2029,"H","A_PER",{"v":0.44999999999999996,"d":"0.45"},{"v":0.38999999999999996,"d":"0.39"},0.6,0.6,85,0,{"$f":"ROUND(Primes!$O$7*V5218,0)","v":9},{"$f":"'BP Financier'!$E$33*(('BP Financier'!$C$19+'BP Financier'!$D$19+'BP Financier'!$E$19)/('BP Financier'!$C$16+'BP Financier'!$C$19+'BP Financier'!$D$16+'BP Financier'!$D$19+'BP Financier'!$E$16+'BP Financier'!$E$19))*V5218","v":{"v":273961.3484750424,"d":"273,961"}},{"v":153650.3201270955,"d":"153,650"},{"$f":"'BP Financier'!$E$44*(('BP Financier'!$C$19+'BP Financier'!$D$19+'BP Financier'!$E$19)/('BP Financier'!$C$16+'BP Financier'!$C$19+'BP Financier'!$D$16+'BP Financier'!$D$19+'BP Financier'!$E$16+'BP Financier'!$E$19+'BP Financier'!$C$22+'BP Financier'!$D$22+'BP Financier'!$E$22))*$V5218*X5218/(1-$W5218)","v":{"v":19557.45987553044,"d":"19,557"}},{"$f":"'BP Financier'!$E$44*(('BP Financier'!$C$19+'BP Financier'!$D$19+'BP Financier'!$E$19)/('BP Financier'!$C$16+'BP Financier'!$C$19+'BP Financier'!$D$16+'BP Financier'!$D$19+'BP Financier'!$E$16+'BP Financier'!$E$19+'BP Financier'!$C$22+'BP Financier'!$D$22+'BP Financier'!$E$22))*$V5218*Y5218/(1-$W5218)","v":{"v":13074.324005188857,"d":"13,074"}},{"$f":"'BP Financier'!$E$44*(('BP Financier'!$C$19+'BP Financier'!$D$19+'BP Financier'!$E$19)/('BP Financier'!$C$16+'BP Financier'!$C$19+'BP Financier'!$D$16+'BP Financier'!$D$19+'BP Financier'!$E$16+'BP Financier'!$E$19+'BP Financier'!$C$22+'BP Financier'!$D$22+'BP Financier'!$E$22))*$V5218*Z5218/(1-$W5218)","v":{"v":102325.4944868913,"d":"102,325"}},{"$f":"'BP Financier'!$E$44*(('BP Financier'!$C$19+'BP Financier'!$D$19+'BP Financier'!$E$19)/('BP Financier'!$C$16+'BP Financier'!$C$19+'BP Financier'!$D$16+'BP Financier'!$D$19+'BP Financier'!$E$16+'BP Financier'!$E$19+'BP Financier'!$C$22+'BP Financier'!$D$22+'BP Financier'!$E$22))*$V5218*AA5218/(1-$W5218)","v":{"v":12642.114947166085,"d":"12,642"}},{"$f":"'BP Financier'!$E$44*(('BP Financier'!$C$19+'BP Financier'!$D$19+'BP Financier'!$E$19)/('BP Financier'!$C$16+'BP Financier'!$C$19+'BP Financier'!$D$16+'BP Financier'!$D$19+'BP Financier'!$E$16+'BP Financier'!$E$19+'BP Financier'!$C$22+'BP Financier'!$D$22+'BP Financier'!$E$22))*$V5218*AB5218/(1-$W5218)","v":{"v":6050.9268123188085,"d":"6,051"}},null,{"v":0.013333333333333334,"d":"1.33%"},{"$f":"Actif!$E$28/100","v":{"v":0.28900000000000003,"d":"28.90%"}},{"$f":"Actif!$E$30/100","v":{"v":0.09050000000000001,"d":"9.05%"}},{"$f":"Actif!$E$31/100","v":{"v":0.0605,"d":"6.05%"}},{"$f":"Actif!$E$32/100","v":{"v":0.47350000000000003,"d":"47.35%"}},{"$f":"Actif!$E$33/100","v":{"v":0.0585,"d":"5.85%"}},{"$f":"Actif!$E$29/100","v":{"v":0.027999999999999997,"d":"2.80%"}}]
[null,"#115",56,2026,"F","A_PER",{"v":0.44999999999999996,"d":"0.45"},{"v":0.38999999999999996,"d":"0.39"},0.6,0.6,85,0,{"$f":"ROUND(Primes!$O$7*V5219,0)","v":5},{"$f":"'BP Financier'!$E$33*(('BP Financier'!$C$19+'BP Financier'!$D$19+'BP Financier'!$E$19)/('BP Financier'!$C$16+'BP Financier'!$C$19+'BP Financier'!$D$16+'BP Financier'!$D$19+'BP Financier'!$E$16+'BP Financier'!$E$19))*V5219","v":{"v":136980.6742375212,"d":"136,981"}},{"v":76825.16006354775,"d":"76,825"},{"$f":"'BP Financier'!$E$44*(('BP Financier'!$C$19+'BP Financier'!$D$19+'BP Financier'!$E$19)/('BP Financier'!$C$16+'BP Financier'!$C$19+'BP Financier'!$D$16+'BP Financier'!$D$19+'BP Financier'!$E$16+'BP Financier'!$E$19+'BP Financier'!$C$22+'BP Financier'!$D$22+'BP Financier'!$E$22))*$V5219*X5219/(1-$W5219)","v":{"v":9778.72993776522,"d":"9,779"}},{"$f":"'BP Financier'!$E$44*(('BP Financier'!$C$19+'BP Financier'!$D$19+'BP Financier'!$E$19)/('BP Financier'!$C$16+'BP Financier'!$C$19+'BP Financier'!$D$16+'BP Financier'!$D$19+'BP Financier'!$E$16+'BP Financier'!$E$19+'BP Financier'!$C$22+'BP Financier'!$D$22+'BP Financier'!$E$22))*$V5219*Y5219/(1-$W5219)","v":{"v":6537.1620025944285,"d":"6,537"}},{"$f":"'BP Financier'!$E$44*(('BP Financier'!$C$19+'BP Financier'!$D$19+'BP Financier'!$E$19)/('BP Financier'!$C$16+'BP Financier'!$C$19+'BP Financier'!$D$16+'BP Financier'!$D$19+'BP Financier'!$E$16+'BP Financier'!$E$19+'BP Financier'!$C$22+'BP Financier'!$D$22+'BP Financier'!$E$22))*$V5219*Z5219/(1-$W5219)","v":{"v":51162.74724344565,"d":"51,163"}},{"$f":"'BP Financier'!$E$44*(('BP Financier'!$C$19+'BP Financier'!$D$19+'BP Financier'!$E$19)/('BP Financier'!$C$16+'BP Financier'!$C$19+'BP Financier'!$D$16+'BP Financier'!$D$19+'BP Financier'!$E$16+'BP Financier'!$E$19+'BP Financier'!$C$22+'BP Financier'!$D$22+'BP Financier'!$E$22))*$V5219*AA5219/(1-$W5219)","v":{"v":6321.057473583042,"d":"6,321"}},{"$f":"'BP Financier'!$E$44*(('BP Financier'!$C$19+'BP Financier'!$D$19+'BP Financier'!$E$19)/('BP Financier'!$C$16+'BP Financier'!$C$19+'BP Financier'!$D$16+'BP Financier'!$D$19+'BP Financier'!$E$16+'BP Financier'!$E$19+'BP Financier'!$C$22+'BP Financier'!$D$22+'BP Financier'!$E$22))*$V5219*AB5219/(1-$W5219)","v":{"v":3025.4634061594043,"d":"3,025"}},null,{"v":0.006666666666666667,"d":"0.67%"},{"$f":"Actif!$E$28/100","v":{"v":0.28900000000000003,"d":"28.90%"}},{"$f":"Actif!$E$30/100","v":{"v":0.09050000000000001,"d":"9.05%"}},{"$f":"Actif!$E$31/100","v":{"v":0.0605,"d":"6.05%"}},{"$f":"Actif!$E$32/100","v":{"v":0.47350000000000003,"d":"47.35%"}},{"$f":"Actif!$E$33/100","v":{"v":0.0585,"d":"5.85%"}},{"$f":"Actif!$E$29/100","v":{"v":0.027999999999999997,"d":"2.80%"}}]
[null,"#116",56,2028,"F","A_PER",{"v":0.44999999999999996,"d":"0.45"},{"v":0.38999999999999996,"d":"0.39"},0.6,0.6,85,0,{"$f":"ROUND(Primes!$O$7*V5220,0)","v":5},{"$f":"'BP Financier'!$E$33*(('BP Financier'!$C$19+'BP Financier'!$D$19+'BP Financier'!$E$19)/('BP Financier'!$C$16+'BP Financier'!$C$19+'BP Financier'!$D$16+'BP Financier'!$D$19+'BP Financier'!$E$16+'BP Financier'!$E$19))*V5220","v":{"v":136980.6742375212,"d":"136,981"}},{"v":76825.16006354775,"d":"76,825"},{"$f":"'BP Financier'!$E$44*(('BP Financier'!$C$19+'BP Financier'!$D$19+'BP Financier'!$E$19)/('BP Financier'!$C$16+'BP Financier'!$C$19+'BP Financier'!$D$16+'BP Financier'!$D$19+'BP Financier'!$E$16+'BP Financier'!$E$19+'BP Financier'!$C$22+'BP Financier'!$D$22+'BP Financier'!$E$22))*$V5220*X5220/(1-$W5220)","v":{"v":9778.72993776522,"d":"9,779"}},{"$f":"'BP Financier'!$E$44*(('BP Financier'!$C$19+'BP Financier'!$D$19+'BP Financier'!$E$19)/('BP Financier'!$C$16+'BP Financier'!$C$19+'BP Financier'!$D$16+'BP Financier'!$D$19+'BP Financier'!$E$16+'BP Financier'!$E$19+'BP Financier'!$C$22+'BP Financier'!$D$22+'BP Financier'!$E$22))*$V5220*Y5220/(1-$W5220)","v":{"v":6537.1620025944285,"d":"6,537"}},{"$f":"'BP Financier'!$E$44*(('BP Financier'!$C$19+'BP Financier'!$D$19+'BP Financier'!$E$19)/('BP Financier'!$C$16+'BP Financier'!$C$19+'BP Financier'!$D$16+'BP Financier'!$D$19+'BP Financier'!$E$16+'BP Financier'!$E$19+'BP Financier'!$C$22+'BP Financier'!$D$22+'BP Financier'!$E$22))*$V5220*Z5220/(1-$W5220)","v":{"v":51162.74724344565,"d":"51,163"}},{"$f":"'BP Financier'!$E$44*(('BP Financier'!$C$19+'BP Financier'!$D$19+'BP Financier'!$E$19)/('BP Financier'!$C$16+'BP Financier'!$C$19+'BP Financier'!$D$16+'BP Financier'!$D$19+'BP Financier'!$E$16+'BP Financier'!$E$19+'BP Financier'!$C$22+'BP Financier'!$D$22+'BP Financier'!$E$22))*$V5220*AA5220/(1-$W5220)","v":{"v":6321.057473583042,"d":"6,321"}},{"$f":"'BP Financier'!$E$44*(('BP Financier'!$C$19+'BP Financier'!$D$19+'BP Financier'!$E$19)/('BP Financier'!$C$16+'BP Financier'!$C$19+'BP Financier'!$D$16+'BP Financier'!$D$19+'BP Financier'!$E$16+'BP Financier'!$E$19+'BP Financier'!$C$22+'BP Financier'!$D$22+'BP Financier'!$E$22))*$V5220*AB5220/(1-$W5220)","v":{"v":3025.4634061594043,"d":"3,025"}},null,{"v":0.006666666666666667,"d":"0.67%"},{"$f":"Actif!$E$28/100","v":{"v":0.28900000000000003,"d":"28.90%"}},{"$f":"Actif!$E$30/100","v":{"v":0.09050000000000001,"d":"9.05%"}},{"$f":"Actif!$E$31/100","v":{"v":0.0605,"d":"6.05%"}},{"$f":"Actif!$E$32/100","v":{"v":0.47350000000000003,"d":"47.35%"}},{"$f":"Actif!$E$33/100","v":{"v":0.0585,"d":"5.85%"}},{"$f":"Actif!$E$29/100","v":{"v":0.027999999999999997,"d":"2.80%"}}]
[null,"#117",56,2029,"F","A_PER",{"v":0.44999999999999996,"d":"0.45"},{"v":0.38999999999999996,"d":"0.39"},0.6,0.6,85,0,{"$f":"ROUND(Primes!$O$7*V5221,0)","v":5},{"$f":"'BP Financier'!$E$33*(('BP Financier'!$C$19+'BP Financier'!$D$19+'BP Financier'!$E$19)/('BP Financier'!$C$16+'BP Financier'!$C$19+'BP Financier'!$D$16+'BP Financier'!$D$19+'BP Financier'!$E$16+'BP Financier'!$E$19))*V5221","v":{"v":136980.6742375212,"d":"136,981"}},{"v":76825.16006354775,"d":"76,825"},{"$f":"'BP Financier'!$E$44*(('BP Financier'!$C$19+'BP Financier'!$D$19+'BP Financier'!$E$19)/('BP Financier'!$C$16+'BP Financier'!$C$19+'BP Financier'!$D$16+'BP Financier'!$D$19+'BP Financier'!$E$16+'BP Financier'!$E$19+'BP Financier'!$C$22+'BP Financier'!$D$22+'BP Financier'!$E$22))*$V5221*X5221/(1-$W5221)","v":{"v":9778.72993776522,"d":"9,779"}},{"$f":"'BP Financier'!$E$44*(('BP Financier'!$C$19+'BP Financier'!$D$19+'BP Financier'!$E$19)/('BP Financier'!$C$16+'BP Financier'!$C$19+'BP Financier'!$D$16+'BP Financier'!$D$19+'BP Financier'!$E$16+'BP Financier'!$E$19+'BP Financier'!$C$22+'BP Financier'!$D$22+'BP Financier'!$E$22))*$V5221*Y5221/(1-$W5221)","v":{"v":6537.1620025944285,"d":"6,537"}},{"$f":"'BP Financier'!$E$44*(('BP Financier'!$C$19+'BP Financier'!$D$19+'BP Financier'!$E$19)/('BP Financier'!$C$16+'BP Financier'!$C$19+'BP Financier'!$D$16+'BP Financier'!$D$19+'BP Financier'!$E$16+'BP Financier'!$E$19+'BP Financier'!$C$22+'BP Financier'!$D$22+'BP Financier'!$E$22))*$V5221*Z5221/(1-$W5221)","v":{"v":51162.74724344565,"d":"51,163"}},{"$f":"'BP Financier'!$E$44*(('BP Financier'!$C$19+'BP Financier'!$D$19+'BP Financier'!$E$19)/('BP Financier'!$C$16+'BP Financier'!$C$19+'BP Financier'!$D$16+'BP Financier'!$D$19+'BP Financier'!$E$16+'BP Financier'!$E$19+'BP Financier'!$C$22+'BP Financier'!$D$22+'BP Financier'!$E$22))*$V5221*AA5221/(1-$W5221)","v":{"v":6321.057473583042,"d":"6,321"}},{"$f":"'BP Financier'!$E$44*(('BP Financier'!$C$19+'BP Financier'!$D$19+'BP Financier'!$E$19)/('BP Financier'!$C$16+'BP Financier'!$C$19+'BP Financier'!$D$16+'BP Financier'!$D$19+'BP Financier'!$E$16+'BP Financier'!$E$19+'BP Financier'!$C$22+'BP Financier'!$D$22+'BP Financier'!$E$22))*$V5221*AB5221/(1-$W5221)","v":{"v":3025.4634061594043,"d":"3,025"}},null,{"v":0.006666666666666667,"d":"0.67%"},{"$f":"Actif!$E$28/100","v":{"v":0.28900000000000003,"d":"28.90%"}},{"$f":"Actif!$E$30/100","v":{"v":0.09050000000000001,"d":"9.05%"}},{"$f":"Actif!$E$31/100","v":{"v":0.0605,"d":"6.05%"}},{"$f":"Actif!$E$32/100","v":{"v":0.47350000000000003,"d":"47.35%"}},{"$f":"Actif!$E$33/100","v":{"v":0.0585,"d":"5.85%"}},{"$f":"Actif!$E$29/100","v":{"v":0.027999999999999997,"d":"2.80%"}}]
[null,"#118",57,2026,"H","A_PER",{"v":0.44999999999999996,"d":"0.45"},{"v":0.38999999999999996,"d":"0.39"},0.6,0.6,85,0,{"$f":"ROUND(Primes!$O$7*V5222,0)","v":2},{"$f":"'BP Financier'!$E$33*(('BP Financier'!$C$19+'BP Financier'!$D$19+'BP Financier'!$E$19)/('BP Financier'!$C$16+'BP Financier'!$C$19+'BP Financier'!$D$16+'BP Financier'!$D$19+'BP Financier'!$E$16+'BP Financier'!$E$19))*V5222","v":{"v":68490.3371187606,"d":"68,490"}},{"v":38412.580031773876,"d":"38,413"},{"$f":"'BP Financier'!$E$44*(('BP Financier'!$C$19+'BP Financier'!$D$19+'BP Financier'!$E$19)/('BP Financier'!$C$16+'BP Financier'!$C$19+'BP Financier'!$D$16+'BP Financier'!$D$19+'BP Financier'!$E$16+'BP Financier'!$E$19+'BP Financier'!$C$22+'BP Financier'!$D$22+'BP Financier'!$E$22))*$V5222*X5222/(1-$W5222)","v":{"v":4889.36496888261,"d":"4,889"}},{"$f":"'BP Financier'!$E$44*(('BP Financier'!$C$19+'BP Financier'!$D$19+'BP Financier'!$E$19)/('BP Financier'!$C$16+'BP Financier'!$C$19+'BP Financier'!$D$16+'BP Financier'!$D$19+'BP Financier'!$E$16+'BP Financier'!$E$19+'BP Financier'!$C$22+'BP Financier'!$D$22+'BP Financier'!$E$22))*$V5222*Y5222/(1-$W5222)","v":{"v":3268.5810012972142,"d":"3,269"}},{"$f":"'BP Financier'!$E$44*(('BP Financier'!$C$19+'BP Financier'!$D$19+'BP Financier'!$E$19)/('BP Financier'!$C$16+'BP Financier'!$C$19+'BP Financier'!$D$16+'BP Financier'!$D$19+'BP Financier'!$E$16+'BP Financier'!$E$19+'BP Financier'!$C$22+'BP Financier'!$D$22+'BP Financier'!$E$22))*$V5222*Z5222/(1-$W5222)","v":{"v":25581.373621722825,"d":"25,581"}},{"$f":"'BP Financier'!$E$44*(('BP Financier'!$C$19+'BP Financier'!$D$19+'BP Financier'!$E$19)/('BP Financier'!$C$16+'BP Financier'!$C$19+'BP Financier'!$D$16+'BP Financier'!$D$19+'BP Financier'!$E$16+'BP Financier'!$E$19+'BP Financier'!$C$22+'BP Financier'!$D$22+'BP Financier'!$E$22))*$V5222*AA5222/(1-$W5222)","v":{"v":3160.528736791521,"d":"3,161"}},{"$f":"'BP Financier'!$E$44*(('BP Financier'!$C$19+'BP Financier'!$D$19+'BP Financier'!$E$19)/('BP Financier'!$C$16+'BP Financier'!$C$19+'BP Financier'!$D$16+'BP Financier'!$D$19+'BP Financier'!$E$16+'BP Financier'!$E$19+'BP Financier'!$C$22+'BP Financier'!$D$22+'BP Financier'!$E$22))*$V5222*AB5222/(1-$W5222)","v":{"v":1512.7317030797021,"d":"1,513"}},null,{"v":3.3333333333333335E-3,"d":"0.33%"},{"$f":"Actif!$E$28/100","v":{"v":0.28900000000000003,"d":"28.90%"}},{"$f":"Actif!$E$30/100","v":{"v":0.09050000000000001,"d":"9.05%"}},{"$f":"Actif!$E$31/100","v":{"v":0.0605,"d":"6.05%"}},{"$f":"Actif!$E$32/100","v":{"v":0.47350000000000003,"d":"47.35%"}},{"$f":"Actif!$E$33/100","v":{"v":0.0585,"d":"5.85%"}},{"$f":"Actif!$E$29/100","v":{"v":0.027999999999999997,"d":"2.80%"}}]
[null,"#119",57,2028,"H","A_PER",{"v":0.44999999999999996,"d":"0.45"},{"v":0.38999999999999996,"d":"0.39"},0.6,0.6,85,0,{"$f":"ROUND(Primes!$O$7*V5223,0)","v":2},{"$f":"'BP Financier'!$E$33*(('BP Financier'!$C$19+'BP Financier'!$D$19+'BP Financier'!$E$19)/('BP Financier'!$C$16+'BP Financier'!$C$19+'BP Financier'!$D$16+'BP Financier'!$D$19+'BP Financier'!$E$16+'BP Financier'!$E$19))*V5223","v":{"v":68490.3371187606,"d":"68,490"}},{"v":38412.580031773876,"d":"38,413"},{"$f":"'BP Financier'!$E$44*(('BP Financier'!$C$19+'BP Financier'!$D$19+'BP Financier'!$E$19)/('BP Financier'!$C$16+'BP Financier'!$C$19+'BP Financier'!$D$16+'BP Financier'!$D$19+'BP Financier'!$E$16+'BP Financier'!$E$19+'BP Financier'!$C$22+'BP Financier'!$D$22+'BP Financier'!$E$22))*$V5223*X5223/(1-$W5223)","v":{"v":4889.36496888261,"d":"4,889"}},{"$f":"'BP Financier'!$E$44*(('BP Financier'!$C$19+'BP Financier'!$D$19+'BP Financier'!$E$19)/('BP Financier'!$C$16+'BP Financier'!$C$19+'BP Financier'!$D$16+'BP Financier'!$D$19+'BP Financier'!$E$16+'BP Financier'!$E$19+'BP Financier'!$C$22+'BP Financier'!$D$22+'BP Financier'!$E$22))*$V5223*Y5223/(1-$W5223)","v":{"v":3268.5810012972142,"d":"3,269"}},{"$f":"'BP Financier'!$E$44*(('BP Financier'!$C$19+'BP Financier'!$D$19+'BP Financier'!$E$19)/('BP Financier'!$C$16+'BP Financier'!$C$19+'BP Financier'!$D$16+'BP Financier'!$D$19+'BP Financier'!$E$16+'BP Financier'!$E$19+'BP Financier'!$C$22+'BP Financier'!$D$22+'BP Financier'!$E$22))*$V5223*Z5223/(1-$W5223)","v":{"v":25581.373621722825,"d":"25,581"}},{"$f":"'BP Financier'!$E$44*(('BP Financier'!$C$19+'BP Financier'!$D$19+'BP Financier'!$E$19)/('BP Financier'!$C$16+'BP Financier'!$C$19+'BP Financier'!$D$16+'BP Financier'!$D$19+'BP Financier'!$E$16+'BP Financier'!$E$19+'BP Financier'!$C$22+'BP Financier'!$D$22+'BP Financier'!$E$22))*$V5223*AA5223/(1-$W5223)","v":{"v":3160.528736791521,"d":"3,161"}},{"$f":"'BP Financier'!$E$44*(('BP Financier'!$C$19+'BP Financier'!$D$19+'BP Financier'!$E$19)/('BP Financier'!$C$16+'BP Financier'!$C$19+'BP Financier'!$D$16+'BP Financier'!$D$19+'BP Financier'!$E$16+'BP Financier'!$E$19+'BP Financier'!$C$22+'BP Financier'!$D$22+'BP Financier'!$E$22))*$V5223*AB5223/(1-$W5223)","v":{"v":1512.7317030797021,"d":"1,513"}},null,{"v":3.3333333333333335E-3,"d":"0.33%"},{"$f":"Actif!$E$28/100","v":{"v":0.28900000000000003,"d":"28.90%"}},{"$f":"Actif!$E$30/100","v":{"v":0.09050000000000001,"d":"9.05%"}},{"$f":"Actif!$E$31/100","v":{"v":0.0605,"d":"6.05%"}},{"$f":"Actif!$E$32/100","v":{"v":0.47350000000000003,"d":"47.35%"}},{"$f":"Actif!$E$33/100","v":{"v":0.0585,"d":"5.85%"}},{"$f":"Actif!$E$29/100","v":{"v":0.027999999999999997,"d":"2.80%"}}]
[null,"#120",57,2029,"H","A_PER",{"v":0.44999999999999996,"d":"0.45"},{"v":0.38999999999999996,"d":"0.39"},0.6,0.6,85,0,{"$f":"ROUND(Primes!$O$7*V5224,0)","v":2},{"$f":"'BP Financier'!$E$33*(('BP Financier'!$C$19+'BP Financier'!$D$19+'BP Financier'!$E$19)/('BP Financier'!$C$16+'BP Financier'!$C$19+'BP Financier'!$D$16+'BP Financier'!$D$19+'BP Financier'!$E$16+'BP Financier'!$E$19))*V5224","v":{"v":68490.3371187606,"d":"68,490"}},{"v":38412.580031773876,"d":"38,413"},{"$f":"'BP Financier'!$E$44*(('BP Financier'!$C$19+'BP Financier'!$D$19+'BP Financier'!$E$19)/('BP Financier'!$C$16+'BP Financier'!$C$19+'BP Financier'!$D$16+'BP Financier'!$D$19+'BP Financier'!$E$16+'BP Financier'!$E$19+'BP Financier'!$C$22+'BP Financier'!$D$22+'BP Financier'!$E$22))*$V5224*X5224/(1-$W5224)","v":{"v":4889.36496888261,"d":"4,889"}},{"$f":"'BP Financier'!$E$44*(('BP Financier'!$C$19+'BP Financier'!$D$19+'BP Financier'!$E$19)/('BP Financier'!$C$16+'BP Financier'!$C$19+'BP Financier'!$D$16+'BP Financier'!$D$19+'BP Financier'!$E$16+'BP Financier'!$E$19+'BP Financier'!$C$22+'BP Financier'!$D$22+'BP Financier'!$E$22))*$V5224*Y5224/(1-$W5224)","v":{"v":3268.5810012972142,"d":"3,269"}},{"$f":"'BP Financier'!$E$44*(('BP Financier'!$C$19+'BP Financier'!$D$19+'BP Financier'!$E$19)/('BP Financier'!$C$16+'BP Financier'!$C$19+'BP Financier'!$D$16+'BP Financier'!$D$19+'BP Financier'!$E$16+'BP Financier'!$E$19+'BP Financier'!$C$22+'BP Financier'!$D$22+'BP Financier'!$E$22))*$V5224*Z5224/(1-$W5224)","v":{"v":25581.373621722825,"d":"25,581"}},{"$f":"'BP Financier'!$E$44*(('BP Financier'!$C$19+'BP Financier'!$D$19+'BP Financier'!$E$19)/('BP Financier'!$C$16+'BP Financier'!$C$19+'BP Financier'!$D$16+'BP Financier'!$D$19+'BP Financier'!$E$16+'BP Financier'!$E$19+'BP Financier'!$C$22+'BP Financier'!$D$22+'BP Financier'!$E$22))*$V5224*AA5224/(1-$W5224)","v":{"v":3160.528736791521,"d":"3,161"}},{"$f":"'BP Financier'!$E$44*(('BP Financier'!$C$19+'BP Financier'!$D$19+'BP Financier'!$E$19)/('BP Financier'!$C$16+'BP Financier'!$C$19+'BP Financier'!$D$16+'BP Financier'!$D$19+'BP Financier'!$E$16+'BP Financier'!$E$19+'BP Financier'!$C$22+'BP Financier'!$D$22+'BP Financier'!$E$22))*$V5224*AB5224/(1-$W5224)","v":{"v":1512.7317030797021,"d":"1,513"}},null,{"v":3.3333333333333335E-3,"d":"0.33%"},{"$f":"Actif!$E$28/100","v":{"v":0.28900000000000003,"d":"28.90%"}},{"$f":"Actif!$E$30/100","v":{"v":0.09050000000000001,"d":"9.05%"}},{"$f":"Actif!$E$31/100","v":{"v":0.0605,"d":"6.05%"}},{"$f":"Actif!$E$32/100","v":{"v":0.47350000000000003,"d":"47.35%"}},{"$f":"Actif!$E$33/100","v":{"v":0.0585,"d":"5.85%"}},{"$f":"Actif!$E$29/100","v":{"v":0.027999999999999997,"d":"2.80%"}}]
[null,"#121",58,2026,"H","A_PER",{"v":0.44999999999999996,"d":"0.45"},{"v":0.38999999999999996,"d":"0.39"},0.6,0.6,85,0,{"$f":"ROUND(Primes!$O$7*V5225,0)","v":2},{"$f":"'BP Financier'!$E$33*(('BP Financier'!$C$19+'BP Financier'!$D$19+'BP Financier'!$E$19)/('BP Financier'!$C$16+'BP Financier'!$C$19+'BP Financier'!$D$16+'BP Financier'!$D$19+'BP Financier'!$E$16+'BP Financier'!$E$19))*V5225","v":{"v":68490.3371187606,"d":"68,490"}},{"v":38412.580031773876,"d":"38,413"},{"$f":"'BP Financier'!$E$44*(('BP Financier'!$C$19+'BP Financier'!$D$19+'BP Financier'!$E$19)/('BP Financier'!$C$16+'BP Financier'!$C$19+'BP Financier'!$D$16+'BP Financier'!$D$19+'BP Financier'!$E$16+'BP Financier'!$E$19+'BP Financier'!$C$22+'BP Financier'!$D$22+'BP Financier'!$E$22))*$V5225*X5225/(1-$W5225)","v":{"v":4889.36496888261,"d":"4,889"}},{"$f":"'BP Financier'!$E$44*(('BP Financier'!$C$19+'BP Financier'!$D$19+'BP Financier'!$E$19)/('BP Financier'!$C$16+'BP Financier'!$C$19+'BP Financier'!$D$16+'BP Financier'!$D$19+'BP Financier'!$E$16+'BP Financier'!$E$19+'BP Financier'!$C$22+'BP Financier'!$D$22+'BP Financier'!$E$22))*$V5225*Y5225/(1-$W5225)","v":{"v":3268.5810012972142,"d":"3,269"}},{"$f":"'BP Financier'!$E$44*(('BP Financier'!$C$19+'BP Financier'!$D$19+'BP Financier'!$E$19)/('BP Financier'!$C$16+'BP Financier'!$C$19+'BP Financier'!$D$16+'BP Financier'!$D$19+'BP Financier'!$E$16+'BP Financier'!$E$19+'BP Financier'!$C$22+'BP Financier'!$D$22+'BP Financier'!$E$22))*$V5225*Z5225/(1-$W5225)","v":{"v":25581.373621722825,"d":"25,581"}},{"$f":"'BP Financier'!$E$44*(('BP Financier'!$C$19+'BP Financier'!$D$19+'BP Financier'!$E$19)/('BP Financier'!$C$16+'BP Financier'!$C$19+'BP Financier'!$D$16+'BP Financier'!$D$19+'BP Financier'!$E$16+'BP Financier'!$E$19+'BP Financier'!$C$22+'BP Financier'!$D$22+'BP Financier'!$E$22))*$V5225*AA5225/(1-$W5225)","v":{"v":3160.528736791521,"d":"3,161"}},{"$f":"'BP Financier'!$E$44*(('BP Financier'!$C$19+'BP Financier'!$D$19+'BP Financier'!$E$19)/('BP Financier'!$C$16+'BP Financier'!$C$19+'BP Financier'!$D$16+'BP Financier'!$D$19+'BP Financier'!$E$16+'BP Financier'!$E$19+'BP Financier'!$C$22+'BP Financier'!$D$22+'BP Financier'!$E$22))*$V5225*AB5225/(1-$W5225)","v":{"v":1512.7317030797021,"d":"1,513"}},null,{"v":3.3333333333333335E-3,"d":"0.33%"},{"$f":"Actif!$E$28/100","v":{"v":0.28900000000000003,"d":"28.90%"}},{"$f":"Actif!$E$30/100","v":{"v":0.09050000000000001,"d":"9.05%"}},{"$f":"Actif!$E$31/100","v":{"v":0.0605,"d":"6.05%"}},{"$f":"Actif!$E$32/100","v":{"v":0.47350000000000003,"d":"47.35%"}},{"$f":"Actif!$E$33/100","v":{"v":0.0585,"d":"5.85%"}},{"$f":"Actif!$E$29/100","v":{"v":0.027999999999999997,"d":"2.80%"}}]
[null,"#122",58,2028,"H","A_PER",{"v":0.44999999999999996,"d":"0.45"},{"v":0.38999999999999996,"d":"0.39"},0.6,0.6,85,0,{"$f":"ROUND(Primes!$O$7*V5226,0)","v":2},{"$f":"'BP Financier'!$E$33*(('BP Financier'!$C$19+'BP Financier'!$D$19+'BP Financier'!$E$19)/('BP Financier'!$C$16+'BP Financier'!$C$19+'BP Financier'!$D$16+'BP Financier'!$D$19+'BP Financier'!$E$16+'BP Financier'!$E$19))*V5226","v":{"v":68490.3371187606,"d":"68,490"}},{"v":38412.580031773876,"d":"38,413"},{"$f":"'BP Financier'!$E$44*(('BP Financier'!$C$19+'BP Financier'!$D$19+'BP Financier'!$E$19)/('BP Financier'!$C$16+'BP Financier'!$C$19+'BP Financier'!$D$16+'BP Financier'!$D$19+'BP Financier'!$E$16+'BP Financier'!$E$19+'BP Financier'!$C$22+'BP Financier'!$D$22+'BP Financier'!$E$22))*$V5226*X5226/(1-$W5226)","v":{"v":4889.36496888261,"d":"4,889"}},{"$f":"'BP Financier'!$E$44*(('BP Financier'!$C$19+'BP Financier'!$D$19+'BP Financier'!$E$19)/('BP Financier'!$C$16+'BP Financier'!$C$19+'BP Financier'!$D$16+'BP Financier'!$D$19+'BP Financier'!$E$16+'BP Financier'!$E$19+'BP Financier'!$C$22+'BP Financier'!$D$22+'BP Financier'!$E$22))*$V5226*Y5226/(1-$W5226)","v":{"v":3268.5810012972142,"d":"3,269"}},{"$f":"'BP Financier'!$E$44*(('BP Financier'!$C$19+'BP Financier'!$D$19+'BP Financier'!$E$19)/('BP Financier'!$C$16+'BP Financier'!$C$19+'BP Financier'!$D$16+'BP Financier'!$D$19+'BP Financier'!$E$16+'BP Financier'!$E$19+'BP Financier'!$C$22+'BP Financier'!$D$22+'BP Financier'!$E$22))*$V5226*Z5226/(1-$W5226)","v":{"v":25581.373621722825,"d":"25,581"}},{"$f":"'BP Financier'!$E$44*(('BP Financier'!$C$19+'BP Financier'!$D$19+'BP Financier'!$E$19)/('BP Financier'!$C$16+'BP Financier'!$C$19+'BP Financier'!$D$16+'BP Financier'!$D$19+'BP Financier'!$E$16+'BP Financier'!$E$19+'BP Financier'!$C$22+'BP Financier'!$D$22+'BP Financier'!$E$22))*$V5226*AA5226/(1-$W5226)","v":{"v":3160.528736791521,"d":"3,161"}},{"$f":"'BP Financier'!$E$44*(('BP Financier'!$C$19+'BP Financier'!$D$19+'BP Financier'!$E$19)/('BP Financier'!$C$16+'BP Financier'!$C$19+'BP Financier'!$D$16+'BP Financier'!$D$19+'BP Financier'!$E$16+'BP Financier'!$E$19+'BP Financier'!$C$22+'BP Financier'!$D$22+'BP Financier'!$E$22))*$V5226*AB5226/(1-$W5226)","v":{"v":1512.7317030797021,"d":"1,513"}},null,{"v":3.3333333333333335E-3,"d":"0.33%"},{"$f":"Actif!$E$28/100","v":{"v":0.28900000000000003,"d":"28.90%"}},{"$f":"Actif!$E$30/100","v":{"v":0.09050000000000001,"d":"9.05%"}},{"$f":"Actif!$E$31/100","v":{"v":0.0605,"d":"6.05%"}},{"$f":"Actif!$E$32/100","v":{"v":0.47350000000000003,"d":"47.35%"}},{"$f":"Actif!$E$33/100","v":{"v":0.0585,"d":"5.85%"}},{"$f":"Actif!$E$29/100","v":{"v":0.027999999999999997,"d":"2.80%"}}]
[null,"#123",58,2029,"H","A_PER",{"v":0.44999999999999996,"d":"0.45"},{"v":0.38999999999999996,"d":"0.39"},0.6,0.6,85,0,{"$f":"ROUND(Primes!$O$7*V5227,0)","v":2},{"$f":"'BP Financier'!$E$33*(('BP Financier'!$C$19+'BP Financier'!$D$19+'BP Financier'!$E$19)/('BP Financier'!$C$16+'BP Financier'!$C$19+'BP Financier'!$D$16+'BP Financier'!$D$19+'BP Financier'!$E$16+'BP Financier'!$E$19))*V5227","v":{"v":68490.3371187606,"d":"68,490"}},{"v":38412.580031773876,"d":"38,413"},{"$f":"'BP Financier'!$E$44*(('BP Financier'!$C$19+'BP Financier'!$D$19+'BP Financier'!$E$19)/('BP Financier'!$C$16+'BP Financier'!$C$19+'BP Financier'!$D$16+'BP Financier'!$D$19+'BP Financier'!$E$16+'BP Financier'!$E$19+'BP Financier'!$C$22+'BP Financier'!$D$22+'BP Financier'!$E$22))*$V5227*X5227/(1-$W5227)","v":{"v":4889.36496888261,"d":"4,889"}},{"$f":"'BP Financier'!$E$44*(('BP Financier'!$C$19+'BP Financier'!$D$19+'BP Financier'!$E$19)/('BP Financier'!$C$16+'BP Financier'!$C$19+'BP Financier'!$D$16+'BP Financier'!$D$19+'BP Financier'!$E$16+'BP Financier'!$E$19+'BP Financier'!$C$22+'BP Financier'!$D$22+'BP Financier'!$E$22))*$V5227*Y5227/(1-$W5227)","v":{"v":3268.5810012972142,"d":"3,269"}},{"$f":"'BP Financier'!$E$44*(('BP Financier'!$C$19+'BP Financier'!$D$19+'BP Financier'!$E$19)/('BP Financier'!$C$16+'BP Financier'!$C$19+'BP Financier'!$D$16+'BP Financier'!$D$19+'BP Financier'!$E$16+'BP Financier'!$E$19+'BP Financier'!$C$22+'BP Financier'!$D$22+'BP Financier'!$E$22))*$V5227*Z5227/(1-$W5227)","v":{"v":25581.373621722825,"d":"25,581"}},{"$f":"'BP Financier'!$E$44*(('BP Financier'!$C$19+'BP Financier'!$D$19+'BP Financier'!$E$19)/('BP Financier'!$C$16+'BP Financier'!$C$19+'BP Financier'!$D$16+'BP Financier'!$D$19+'BP Financier'!$E$16+'BP Financier'!$E$19+'BP Financier'!$C$22+'BP Financier'!$D$22+'BP Financier'!$E$22))*$V5227*AA5227/(1-$W5227)","v":{"v":3160.528736791521,"d":"3,161"}},{"$f":"'BP Financier'!$E$44*(('BP Financier'!$C$19+'BP Financier'!$D$19+'BP Financier'!$E$19)/('BP Financier'!$C$16+'BP Financier'!$C$19+'BP Financier'!$D$16+'BP Financier'!$D$19+'BP Financier'!$E$16+'BP Financier'!$E$19+'BP Financier'!$C$22+'BP Financier'!$D$22+'BP Financier'!$E$22))*$V5227*AB5227/(1-$W5227)","v":{"v":1512.7317030797021,"d":"1,513"}},null,{"v":3.3333333333333335E-3,"d":"0.33%"},{"$f":"Actif!$E$28/100","v":{"v":0.28900000000000003,"d":"28.90%"}},{"$f":"Actif!$E$30/100","v":{"v":0.09050000000000001,"d":"9.05%"}},{"$f":"Actif!$E$31/100","v":{"v":0.0605,"d":"6.05%"}},{"$f":"Actif!$E$32/100","v":{"v":0.47350000000000003,"d":"47.35%"}},{"$f":"Actif!$E$33/100","v":{"v":0.0585,"d":"5.85%"}},{"$f":"Actif!$E$29/100","v":{"v":0.027999999999999997,"d":"2.80%"}}]
[null,"#124",59,2026,"F","A_PER",{"v":0.44999999999999996,"d":"0.45"},{"v":0.38999999999999996,"d":"0.39"},0.6,0.6,85,0,{"$f":"ROUND(Primes!$O$7*V5228,0)","v":2},{"$f":"'BP Financier'!$E$33*(('BP Financier'!$C$19+'BP Financier'!$D$19+'BP Financier'!$E$19)/('BP Financier'!$C$16+'BP Financier'!$C$19+'BP Financier'!$D$16+'BP Financier'!$D$19+'BP Financier'!$E$16+'BP Financier'!$E$19))*V5228","v":{"v":68490.3371187606,"d":"68,490"}},{"v":38412.580031773876,"d":"38,413"},{"$f":"'BP Financier'!$E$44*(('BP Financier'!$C$19+'BP Financier'!$D$19+'BP Financier'!$E$19)/('BP Financier'!$C$16+'BP Financier'!$C$19+'BP Financier'!$D$16+'BP Financier'!$D$19+'BP Financier'!$E$16+'BP Financier'!$E$19+'BP Financier'!$C$22+'BP Financier'!$D$22+'BP Financier'!$E$22))*$V5228*X5228/(1-$W5228)","v":{"v":4889.36496888261,"d":"4,889"}},{"$f":"'BP Financier'!$E$44*(('BP Financier'!$C$19+'BP Financier'!$D$19+'BP Financier'!$E$19)/('BP Financier'!$C$16+'BP Financier'!$C$19+'BP Financier'!$D$16+'BP Financier'!$D$19+'BP Financier'!$E$16+'BP Financier'!$E$19+'BP Financier'!$C$22+'BP Financier'!$D$22+'BP Financier'!$E$22))*$V5228*Y5228/(1-$W5228)","v":{"v":3268.5810012972142,"d":"3,269"}},{"$f":"'BP Financier'!$E$44*(('BP Financier'!$C$19+'BP Financier'!$D$19+'BP Financier'!$E$19)/('BP Financier'!$C$16+'BP Financier'!$C$19+'BP Financier'!$D$16+'BP Financier'!$D$19+'BP Financier'!$E$16+'BP Financier'!$E$19+'BP Financier'!$C$22+'BP Financier'!$D$22+'BP Financier'!$E$22))*$V5228*Z5228/(1-$W5228)","v":{"v":25581.373621722825,"d":"25,581"}},{"$f":"'BP Financier'!$E$44*(('BP Financier'!$C$19+'BP Financier'!$D$19+'BP Financier'!$E$19)/('BP Financier'!$C$16+'BP Financier'!$C$19+'BP Financier'!$D$16+'BP Financier'!$D$19+'BP Financier'!$E$16+'BP Financier'!$E$19+'BP Financier'!$C$22+'BP Financier'!$D$22+'BP Financier'!$E$22))*$V5228*AA5228/(1-$W5228)","v":{"v":3160.528736791521,"d":"3,161"}},{"$f":"'BP Financier'!$E$44*(('BP Financier'!$C$19+'BP Financier'!$D$19+'BP Financier'!$E$19)/('BP Financier'!$C$16+'BP Financier'!$C$19+'BP Financier'!$D$16+'BP Financier'!$D$19+'BP Financier'!$E$16+'BP Financier'!$E$19+'BP Financier'!$C$22+'BP Financier'!$D$22+'BP Financier'!$E$22))*$V5228*AB5228/(1-$W5228)","v":{"v":1512.7317030797021,"d":"1,513"}},null,{"v":3.3333333333333335E-3,"d":"0.33%"},{"$f":"Actif!$E$28/100","v":{"v":0.28900000000000003,"d":"28.90%"}},{"$f":"Actif!$E$30/100","v":{"v":0.09050000000000001,"d":"9.05%"}},{"$f":"Actif!$E$31/100","v":{"v":0.0605,"d":"6.05%"}},{"$f":"Actif!$E$32/100","v":{"v":0.47350000000000003,"d":"47.35%"}},{"$f":"Actif!$E$33/100","v":{"v":0.0585,"d":"5.85%"}},{"$f":"Actif!$E$29/100","v":{"v":0.027999999999999997,"d":"2.80%"}}]
[null,"#125",59,2028,"F","A_PER",{"v":0.44999999999999996,"d":"0.45"},{"v":0.38999999999999996,"d":"0.39"},0.6,0.6,85,0,{"$f":"ROUND(Primes!$O$7*V5229,0)","v":2},{"$f":"'BP Financier'!$E$33*(('BP Financier'!$C$19+'BP Financier'!$D$19+'BP Financier'!$E$19)/('BP Financier'!$C$16+'BP Financier'!$C$19+'BP Financier'!$D$16+'BP Financier'!$D$19+'BP Financier'!$E$16+'BP Financier'!$E$19))*V5229","v":{"v":68490.3371187606,"d":"68,490"}},{"v":38412.580031773876,"d":"38,413"},{"$f":"'BP Financier'!$E$44*(('BP Financier'!$C$19+'BP Financier'!$D$19+'BP Financier'!$E$19)/('BP Financier'!$C$16+'BP Financier'!$C$19+'BP Financier'!$D$16+'BP Financier'!$D$19+'BP Financier'!$E$16+'BP Financier'!$E$19+'BP Financier'!$C$22+'BP Financier'!$D$22+'BP Financier'!$E$22))*$V5229*X5229/(1-$W5229)","v":{"v":4889.36496888261,"d":"4,889"}},{"$f":"'BP Financier'!$E$44*(('BP Financier'!$C$19+'BP Financier'!$D$19+'BP Financier'!$E$19)/('BP Financier'!$C$16+'BP Financier'!$C$19+'BP Financier'!$D$16+'BP Financier'!$D$19+'BP Financier'!$E$16+'BP Financier'!$E$19+'BP Financier'!$C$22+'BP Financier'!$D$22+'BP Financier'!$E$22))*$V5229*Y5229/(1-$W5229)","v":{"v":3268.5810012972142,"d":"3,269"}},{"$f":"'BP Financier'!$E$44*(('BP Financier'!$C$19+'BP Financier'!$D$19+'BP Financier'!$E$19)/('BP Financier'!$C$16+'BP Financier'!$C$19+'BP Financier'!$D$16+'BP Financier'!$D$19+'BP Financier'!$E$16+'BP Financier'!$E$19+'BP Financier'!$C$22+'BP Financier'!$D$22+'BP Financier'!$E$22))*$V5229*Z5229/(1-$W5229)","v":{"v":25581.373621722825,"d":"25,581"}},{"$f":"'BP Financier'!$E$44*(('BP Financier'!$C$19+'BP Financier'!$D$19+'BP Financier'!$E$19)/('BP Financier'!$C$16+'BP Financier'!$C$19+'BP Financier'!$D$16+'BP Financier'!$D$19+'BP Financier'!$E$16+'BP Financier'!$E$19+'BP Financier'!$C$22+'BP Financier'!$D$22+'BP Financier'!$E$22))*$V5229*AA5229/(1-$W5229)","v":{"v":3160.528736791521,"d":"3,161"}},{"$f":"'BP Financier'!$E$44*(('BP Financier'!$C$19+'BP Financier'!$D$19+'BP Financier'!$E$19)/('BP Financier'!$C$16+'BP Financier'!$C$19+'BP Financier'!$D$16+'BP Financier'!$D$19+'BP Financier'!$E$16+'BP Financier'!$E$19+'BP Financier'!$C$22+'BP Financier'!$D$22+'BP Financier'!$E$22))*$V5229*AB5229/(1-$W5229)","v":{"v":1512.7317030797021,"d":"1,513"}},null,{"v":3.3333333333333335E-3,"d":"0.33%"},{"$f":"Actif!$E$28/100","v":{"v":0.28900000000000003,"d":"28.90%"}},{"$f":"Actif!$E$30/100","v":{"v":0.09050000000000001,"d":"9.05%"}},{"$f":"Actif!$E$31/100","v":{"v":0.0605,"d":"6.05%"}},{"$f":"Actif!$E$32/100","v":{"v":0.47350000000000003,"d":"47.35%"}},{"$f":"Actif!$E$33/100","v":{"v":0.0585,"d":"5.85%"}},{"$f":"Actif!$E$29/100","v":{"v":0.027999999999999997,"d":"2.80%"}}]
[null,"#126",59,2029,"F","A_PER",{"v":0.44999999999999996,"d":"0.45"},{"v":0.38999999999999996,"d":"0.39"},0.6,0.6,85,0,{"$f":"ROUND(Primes!$O$7*V5230,0)","v":2},{"$f":"'BP Financier'!$E$33*(('BP Financier'!$C$19+'BP Financier'!$D$19+'BP Financier'!$E$19)/('BP Financier'!$C$16+'BP Financier'!$C$19+'BP Financier'!$D$16+'BP Financier'!$D$19+'BP Financier'!$E$16+'BP Financier'!$E$19))*V5230","v":{"v":68490.3371187606,"d":"68,490"}},{"v":38412.580031773876,"d":"38,413"},{"$f":"'BP Financier'!$E$44*(('BP Financier'!$C$19+'BP Financier'!$D$19+'BP Financier'!$E$19)/('BP Financier'!$C$16+'BP Financier'!$C$19+'BP Financier'!$D$16+'BP Financier'!$D$19+'BP Financier'!$E$16+'BP Financier'!$E$19+'BP Financier'!$C$22+'BP Financier'!$D$22+'BP Financier'!$E$22))*$V5230*X5230/(1-$W5230)","v":{"v":4889.36496888261,"d":"4,889"}},{"$f":"'BP Financier'!$E$44*(('BP Financier'!$C$19+'BP Financier'!$D$19+'BP Financier'!$E$19)/('BP Financier'!$C$16+'BP Financier'!$C$19+'BP Financier'!$D$16+'BP Financier'!$D$19+'BP Financier'!$E$16+'BP Financier'!$E$19+'BP Financier'!$C$22+'BP Financier'!$D$22+'BP Financier'!$E$22))*$V5230*Y5230/(1-$W5230)","v":{"v":3268.5810012972142,"d":"3,269"}},{"$f":"'BP Financier'!$E$44*(('BP Financier'!$C$19+'BP Financier'!$D$19+'BP Financier'!$E$19)/('BP Financier'!$C$16+'BP Financier'!$C$19+'BP Financier'!$D$16+'BP Financier'!$D$19+'BP Financier'!$E$16+'BP Financier'!$E$19+'BP Financier'!$C$22+'BP Financier'!$D$22+'BP Financier'!$E$22))*$V5230*Z5230/(1-$W5230)","v":{"v":25581.373621722825,"d":"25,581"}},{"$f":"'BP Financier'!$E$44*(('BP Financier'!$C$19+'BP Financier'!$D$19+'BP Financier'!$E$19)/('BP Financier'!$C$16+'BP Financier'!$C$19+'BP Financier'!$D$16+'BP Financier'!$D$19+'BP Financier'!$E$16+'BP Financier'!$E$19+'BP Financier'!$C$22+'BP Financier'!$D$22+'BP Financier'!$E$22))*$V5230*AA5230/(1-$W5230)","v":{"v":3160.528736791521,"d":"3,161"}},{"$f":"'BP Financier'!$E$44*(('BP Financier'!$C$19+'BP Financier'!$D$19+'BP Financier'!$E$19)/('BP Financier'!$C$16+'BP Financier'!$C$19+'BP Financier'!$D$16+'BP Financier'!$D$19+'BP Financier'!$E$16+'BP Financier'!$E$19+'BP Financier'!$C$22+'BP Financier'!$D$22+'BP Financier'!$E$22))*$V5230*AB5230/(1-$W5230)","v":{"v":1512.7317030797021,"d":"1,513"}},null,{"v":3.3333333333333335E-3,"d":"0.33%"},{"$f":"Actif!$E$28/100","v":{"v":0.28900000000000003,"d":"28.90%"}},{"$f":"Actif!$E$30/100","v":{"v":0.09050000000000001,"d":"9.05%"}},{"$f":"Actif!$E$31/100","v":{"v":0.0605,"d":"6.05%"}},{"$f":"Actif!$E$32/100","v":{"v":0.47350000000000003,"d":"47.35%"}},{"$f":"Actif!$E$33/100","v":{"v":0.0585,"d":"5.85%"}},{"$f":"Actif!$E$29/100","v":{"v":0.027999999999999997,"d":"2.80%"}}]
[null,"#127",60,2026,"H","A_PER",{"v":0.44999999999999996,"d":"0.45"},{"v":0.38999999999999996,"d":"0.39"},0.6,0.6,85,0,{"$f":"ROUND(Primes!$O$7*V5231,0)","v":2},{"$f":"'BP Financier'!$E$33*(('BP Financier'!$C$19+'BP Financier'!$D$19+'BP Financier'!$E$19)/('BP Financier'!$C$16+'BP Financier'!$C$19+'BP Financier'!$D$16+'BP Financier'!$D$19+'BP Financier'!$E$16+'BP Financier'!$E$19))*V5231","v":{"v":68490.3371187606,"d":"68,490"}},{"v":38412.580031773876,"d":"38,413"},{"$f":"'BP Financier'!$E$44*(('BP Financier'!$C$19+'BP Financier'!$D$19+'BP Financier'!$E$19)/('BP Financier'!$C$16+'BP Financier'!$C$19+'BP Financier'!$D$16+'BP Financier'!$D$19+'BP Financier'!$E$16+'BP Financier'!$E$19+'BP Financier'!$C$22+'BP Financier'!$D$22+'BP Financier'!$E$22))*$V5231*X5231/(1-$W5231)","v":{"v":4889.36496888261,"d":"4,889"}},{"$f":"'BP Financier'!$E$44*(('BP Financier'!$C$19+'BP Financier'!$D$19+'BP Financier'!$E$19)/('BP Financier'!$C$16+'BP Financier'!$C$19+'BP Financier'!$D$16+'BP Financier'!$D$19+'BP Financier'!$E$16+'BP Financier'!$E$19+'BP Financier'!$C$22+'BP Financier'!$D$22+'BP Financier'!$E$22))*$V5231*Y5231/(1-$W5231)","v":{"v":3268.5810012972142,"d":"3,269"}},{"$f":"'BP Financier'!$E$44*(('BP Financier'!$C$19+'BP Financier'!$D$19+'BP Financier'!$E$19)/('BP Financier'!$C$16+'BP Financier'!$C$19+'BP Financier'!$D$16+'BP Financier'!$D$19+'BP Financier'!$E$16+'BP Financier'!$E$19+'BP Financier'!$C$22+'BP Financier'!$D$22+'BP Financier'!$E$22))*$V5231*Z5231/(1-$W5231)","v":{"v":25581.373621722825,"d":"25,581"}},{"$f":"'BP Financier'!$E$44*(('BP Financier'!$C$19+'BP Financier'!$D$19+'BP Financier'!$E$19)/('BP Financier'!$C$16+'BP Financier'!$C$19+'BP Financier'!$D$16+'BP Financier'!$D$19+'BP Financier'!$E$16+'BP Financier'!$E$19+'BP Financier'!$C$22+'BP Financier'!$D$22+'BP Financier'!$E$22))*$V5231*AA5231/(1-$W5231)","v":{"v":3160.528736791521,"d":"3,161"}},{"$f":"'BP Financier'!$E$44*(('BP Financier'!$C$19+'BP Financier'!$D$19+'BP Financier'!$E$19)/('BP Financier'!$C$16+'BP Financier'!$C$19+'BP Financier'!$D$16+'BP Financier'!$D$19+'BP Financier'!$E$16+'BP Financier'!$E$19+'BP Financier'!$C$22+'BP Financier'!$D$22+'BP Financier'!$E$22))*$V5231*AB5231/(1-$W5231)","v":{"v":1512.7317030797021,"d":"1,513"}},null,{"v":3.3333333333333335E-3,"d":"0.33%"},{"$f":"Actif!$E$28/100","v":{"v":0.28900000000000003,"d":"28.90%"}},{"$f":"Actif!$E$30/100","v":{"v":0.09050000000000001,"d":"9.05%"}},{"$f":"Actif!$E$31/100","v":{"v":0.0605,"d":"6.05%"}},{"$f":"Actif!$E$32/100","v":{"v":0.47350000000000003,"d":"47.35%"}},{"$f":"Actif!$E$33/100","v":{"v":0.0585,"d":"5.85%"}},{"$f":"Actif!$E$29/100","v":{"v":0.027999999999999997,"d":"2.80%"}}]
[null,"#128",60,2028,"H","A_PER",{"v":0.44999999999999996,"d":"0.45"},{"v":0.38999999999999996,"d":"0.39"},0.6,0.6,85,0,{"$f":"ROUND(Primes!$O$7*V5232,0)","v":2},{"$f":"'BP Financier'!$E$33*(('BP Financier'!$C$19+'BP Financier'!$D$19+'BP Financier'!$E$19)/('BP Financier'!$C$16+'BP Financier'!$C$19+'BP Financier'!$D$16+'BP Financier'!$D$19+'BP Financier'!$E$16+'BP Financier'!$E$19))*V5232","v":{"v":68490.3371187606,"d":"68,490"}},{"v":38412.580031773876,"d":"38,413"},{"$f":"'BP Financier'!$E$44*(('BP Financier'!$C$19+'BP Financier'!$D$19+'BP Financier'!$E$19)/('BP Financier'!$C$16+'BP Financier'!$C$19+'BP Financier'!$D$16+'BP Financier'!$D$19+'BP Financier'!$E$16+'BP Financier'!$E$19+'BP Financier'!$C$22+'BP Financier'!$D$22+'BP Financier'!$E$22))*$V5232*X5232/(1-$W5232)","v":{"v":4889.36496888261,"d":"4,889"}},{"$f":"'BP Financier'!$E$44*(('BP Financier'!$C$19+'BP Financier'!$D$19+'BP Financier'!$E$19)/('BP Financier'!$C$16+'BP Financier'!$C$19+'BP Financier'!$D$16+'BP Financier'!$D$19+'BP Financier'!$E$16+'BP Financier'!$E$19+'BP Financier'!$C$22+'BP Financier'!$D$22+'BP Financier'!$E$22))*$V5232*Y5232/(1-$W5232)","v":{"v":3268.5810012972142,"d":"3,269"}},{"$f":"'BP Financier'!$E$44*(('BP Financier'!$C$19+'BP Financier'!$D$19+'BP Financier'!$E$19)/('BP Financier'!$C$16+'BP Financier'!$C$19+'BP Financier'!$D$16+'BP Financier'!$D$19+'BP Financier'!$E$16+'BP Financier'!$E$19+'BP Financier'!$C$22+'BP Financier'!$D$22+'BP Financier'!$E$22))*$V5232*Z5232/(1-$W5232)","v":{"v":25581.373621722825,"d":"25,581"}},{"$f":"'BP Financier'!$E$44*(('BP Financier'!$C$19+'BP Financier'!$D$19+'BP Financier'!$E$19)/('BP Financier'!$C$16+'BP Financier'!$C$19+'BP Financier'!$D$16+'BP Financier'!$D$19+'BP Financier'!$E$16+'BP Financier'!$E$19+'BP Financier'!$C$22+'BP Financier'!$D$22+'BP Financier'!$E$22))*$V5232*AA5232/(1-$W5232)","v":{"v":3160.528736791521,"d":"3,161"}},{"$f":"'BP Financier'!$E$44*(('BP Financier'!$C$19+'BP Financier'!$D$19+'BP Financier'!$E$19)/('BP Financier'!$C$16+'BP Financier'!$C$19+'BP Financier'!$D$16+'BP Financier'!$D$19+'BP Financier'!$E$16+'BP Financier'!$E$19+'BP Financier'!$C$22+'BP Financier'!$D$22+'BP Financier'!$E$22))*$V5232*AB5232/(1-$W5232)","v":{"v":1512.7317030797021,"d":"1,513"}},null,{"v":3.3333333333333335E-3,"d":"0.33%"},{"$f":"Actif!$E$28/100","v":{"v":0.28900000000000003,"d":"28.90%"}},{"$f":"Actif!$E$30/100","v":{"v":0.09050000000000001,"d":"9.05%"}},{"$f":"Actif!$E$31/100","v":{"v":0.0605,"d":"6.05%"}},{"$f":"Actif!$E$32/100","v":{"v":0.47350000000000003,"d":"47.35%"}},{"$f":"Actif!$E$33/100","v":{"v":0.0585,"d":"5.85%"}},{"$f":"Actif!$E$29/100","v":{"v":0.027999999999999997,"d":"2.80%"}}]
[null,"#129",60,2029,"H","A_PER",{"v":0.44999999999999996,"d":"0.45"},{"v":0.38999999999999996,"d":"0.39"},0.6,0.6,85,0,{"$f":"ROUND(Primes!$O$7*V5233,0)","v":2},{"$f":"'BP Financier'!$E$33*(('BP Financier'!$C$19+'BP Financier'!$D$19+'BP Financier'!$E$19)/('BP Financier'!$C$16+'BP Financier'!$C$19+'BP Financier'!$D$16+'BP Financier'!$D$19+'BP Financier'!$E$16+'BP Financier'!$E$19))*V5233","v":{"v":68490.3371187606,"d":"68,490"}},{"v":38412.580031773876,"d":"38,413"},{"$f":"'BP Financier'!$E$44*(('BP Financier'!$C$19+'BP Financier'!$D$19+'BP Financier'!$E$19)/('BP Financier'!$C$16+'BP Financier'!$C$19+'BP Financier'!$D$16+'BP Financier'!$D$19+'BP Financier'!$E$16+'BP Financier'!$E$19+'BP Financier'!$C$22+'BP Financier'!$D$22+'BP Financier'!$E$22))*$V5233*X5233/(1-$W5233)","v":{"v":4889.36496888261,"d":"4,889"}},{"$f":"'BP Financier'!$E$44*(('BP Financier'!$C$19+'BP Financier'!$D$19+'BP Financier'!$E$19)/('BP Financier'!$C$16+'BP Financier'!$C$19+'BP Financier'!$D$16+'BP Financier'!$D$19+'BP Financier'!$E$16+'BP Financier'!$E$19+'BP Financier'!$C$22+'BP Financier'!$D$22+'BP Financier'!$E$22))*$V5233*Y5233/(1-$W5233)","v":{"v":3268.5810012972142,"d":"3,269"}},{"$f":"'BP Financier'!$E$44*(('BP Financier'!$C$19+'BP Financier'!$D$19+'BP Financier'!$E$19)/('BP Financier'!$C$16+'BP Financier'!$C$19+'BP Financier'!$D$16+'BP Financier'!$D$19+'BP Financier'!$E$16+'BP Financier'!$E$19+'BP Financier'!$C$22+'BP Financier'!$D$22+'BP Financier'!$E$22))*$V5233*Z5233/(1-$W5233)","v":{"v":25581.373621722825,"d":"25,581"}},{"$f":"'BP Financier'!$E$44*(('BP Financier'!$C$19+'BP Financier'!$D$19+'BP Financier'!$E$19)/('BP Financier'!$C$16+'BP Financier'!$C$19+'BP Financier'!$D$16+'BP Financier'!$D$19+'BP Financier'!$E$16+'BP Financier'!$E$19+'BP Financier'!$C$22+'BP Financier'!$D$22+'BP Financier'!$E$22))*$V5233*AA5233/(1-$W5233)","v":{"v":3160.528736791521,"d":"3,161"}},{"$f":"'BP Financier'!$E$44*(('BP Financier'!$C$19+'BP Financier'!$D$19+'BP Financier'!$E$19)/('BP Financier'!$C$16+'BP Financier'!$C$19+'BP Financier'!$D$16+'BP Financier'!$D$19+'BP Financier'!$E$16+'BP Financier'!$E$19+'BP Financier'!$C$22+'BP Financier'!$D$22+'BP Financier'!$E$22))*$V5233*AB5233/(1-$W5233)","v":{"v":1512.7317030797021,"d":"1,513"}},null,{"v":3.3333333333333335E-3,"d":"0.33%"},{"$f":"Actif!$E$28/100","v":{"v":0.28900000000000003,"d":"28.90%"}},{"$f":"Actif!$E$30/100","v":{"v":0.09050000000000001,"d":"9.05%"}},{"$f":"Actif!$E$31/100","v":{"v":0.0605,"d":"6.05%"}},{"$f":"Actif!$E$32/100","v":{"v":0.47350000000000003,"d":"47.35%"}},{"$f":"Actif!$E$33/100","v":{"v":0.0585,"d":"5.85%"}},{"$f":"Actif!$E$29/100","v":{"v":0.027999999999999997,"d":"2.80%"}}]
[null,"#130",{"$nulls":19},{"v":0,"d":"0.00%"},{"$f":"Actif!$E$28/100","v":{"v":0.28900000000000003,"d":"28.90%"}},{"$f":"Actif!$E$30/100","v":{"v":0.09050000000000001,"d":"9.05%"}},{"$f":"Actif!$E$31/100","v":{"v":0.0605,"d":"6.05%"}},{"$f":"Actif!$E$32/100","v":{"v":0.47350000000000003,"d":"47.35%"}},{"$f":"Actif!$E$33/100","v":{"v":0.0585,"d":"5.85%"}},{"$f":"Actif!$E$29/100","v":{"v":0.027999999999999997,"d":"2.80%"}}]
[null,"#131",{"$nulls":19},{"v":0,"d":"0.00%"},{"$f":"Actif!$E$28/100","v":{"v":0.28900000000000003,"d":"28.90%"}},{"$f":"Actif!$E$30/100","v":{"v":0.09050000000000001,"d":"9.05%"}},{"$f":"Actif!$E$31/100","v":{"v":0.0605,"d":"6.05%"}},{"$f":"Actif!$E$32/100","v":{"v":0.47350000000000003,"d":"47.35%"}},{"$f":"Actif!$E$33/100","v":{"v":0.0585,"d":"5.85%"}},{"$f":"Actif!$E$29/100","v":{"v":0.027999999999999997,"d":"2.80%"}}]
[null,"#132",{"$nulls":19},{"v":0,"d":"0.00%"},{"$f":"Actif!$E$28/100","v":{"v":0.28900000000000003,"d":"28.90%"}},{"$f":"Actif!$E$30/100","v":{"v":0.09050000000000001,"d":"9.05%"}},{"$f":"Actif!$E$31/100","v":{"v":0.0605,"d":"6.05%"}},{"$f":"Actif!$E$32/100","v":{"v":0.47350000000000003,"d":"47.35%"}},{"$f":"Actif!$E$33/100","v":{"v":0.0585,"d":"5.85%"}},{"$f":"Actif!$E$29/100","v":{"v":0.027999999999999997,"d":"2.80%"}}]
[null,"#133",{"$nulls":19},{"v":0,"d":"0.00%"},{"$f":"Actif!$E$28/100","v":{"v":0.28900000000000003,"d":"28.90%"}},{"$f":"Actif!$E$30/100","v":{"v":0.09050000000000001,"d":"9.05%"}},{"$f":"Actif!$E$31/100","v":{"v":0.0605,"d":"6.05%"}},{"$f":"Actif!$E$32/100","v":{"v":0.47350000000000003,"d":"47.35%"}},{"$f":"Actif!$E$33/100","v":{"v":0.0585,"d":"5.85%"}},{"$f":"Actif!$E$29/100","v":{"v":0.027999999999999997,"d":"2.80%"}}]
[null,"#134",{"$nulls":19},{"v":0,"d":"0.00%"},{"$f":"Actif!$E$28/100","v":{"v":0.28900000000000003,"d":"28.90%"}},{"$f":"Actif!$E$30/100","v":{"v":0.09050000000000001,"d":"9.05%"}},{"$f":"Actif!$E$31/100","v":{"v":0.0605,"d":"6.05%"}},{"$f":"Actif!$E$32/100","v":{"v":0.47350000000000003,"d":"47.35%"}},{"$f":"Actif!$E$33/100","v":{"v":0.0585,"d":"5.85%"}},{"$f":"Actif!$E$29/100","v":{"v":0.027999999999999997,"d":"2.80%"}}]
[null,"#135",{"$nulls":19},{"v":0,"d":"0.00%"},{"$f":"Actif!$E$28/100","v":{"v":0.28900000000000003,"d":"28.90%"}},{"$f":"Actif!$E$30/100","v":{"v":0.09050000000000001,"d":"9.05%"}},{"$f":"Actif!$E$31/100","v":{"v":0.0605,"d":"6.05%"}},{"$f":"Actif!$E$32/100","v":{"v":0.47350000000000003,"d":"47.35%"}},{"$f":"Actif!$E$33/100","v":{"v":0.0585,"d":"5.85%"}},{"$f":"Actif!$E$29/100","v":{"v":0.027999999999999997,"d":"2.80%"}}]
[null,"#136",{"$nulls":19},{"v":0,"d":"0.00%"},{"$f":"Actif!$E$28/100","v":{"v":0.28900000000000003,"d":"28.90%"}},{"$f":"Actif!$E$30/100","v":{"v":0.09050000000000001,"d":"9.05%"}},{"$f":"Actif!$E$31/100","v":{"v":0.0605,"d":"6.05%"}},{"$f":"Actif!$E$32/100","v":{"v":0.47350000000000003,"d":"47.35%"}},{"$f":"Actif!$E$33/100","v":{"v":0.0585,"d":"5.85%"}},{"$f":"Actif!$E$29/100","v":{"v":0.027999999999999997,"d":"2.80%"}}]
[null,"#137",{"$nulls":19},{"v":0,"d":"0.00%"},{"$f":"Actif!$E$28/100","v":{"v":0.28900000000000003,"d":"28.90%"}},{"$f":"Actif!$E$30/100","v":{"v":0.09050000000000001,"d":"9.05%"}},{"$f":"Actif!$E$31/100","v":{"v":0.0605,"d":"6.05%"}},{"$f":"Actif!$E$32/100","v":{"v":0.47350000000000003,"d":"47.35%"}},{"$f":"Actif!$E$33/100","v":{"v":0.0585,"d":"5.85%"}},{"$f":"Actif!$E$29/100","v":{"v":0.027999999999999997,"d":"2.80%"}}]
[null,"#138"]
[null,"#139"]
[null,"#140"]
[null,"#141"]
[null,"#142"]
[null,"#143"]
[null,"#144"]
[null,"#145"]
[null,"#146"]
[null,"#147"]
[null,"#148"]
[null,"#149"]
[null,"#150"]
[null,"#151"]
[null,"#152"]
[null,"#153"]
[null,"#154"]
[null,"#155"]
[null,"#156"]
[null,"#157"]
[null,"#158"]
[null,"#159"]
[null,"#160"]
[null,"#161"]
[null,"#162"]
[null,"#163"]
[null,"#164"]
[null,"#165"]
[null,"#166"]
[null,"#167"]
[null,"#168"]
[null,"#169"]
[null,"#170"]
[null,"#171"]
[null,"#172"]
[null,"#173"]
[null,"#174"]
[null,"#175"]
[null,"#176"]
[null,"#177"]
[null,"#178"]
[null,"#179"]
[null,"#180"]
[null,"#181"]
[null,"#182"]
[null,"#183"]
[null,"#184"]
[null,"#185"]
[null,"#186"]
[null,"#187"]
[null,"#188"]
[null,"#189"]
[null,"#190"]
[null,"#191"]
[null,"#192"]
[null,"#193"]
[null,"#194"]
[null,"#195"]
[null,"#196"]
[null,"#197"]
[null,"#198"]
[null,"#199"]
[null,"#200"]
[null,"#201"]
[null,"#202"]
[null,"#203"]
[null,"#204"]
[null,"#205"]
[null,"#206"]
[null,"#207"]
[null,"#208"]
[null,"#209"]
[null,"#210"]
[null,"#211"]
[null,"#212"]
[null,"#213"]
[null,"#214"]
[null,"#215"]
[null,"#216"]
[null,"#217"]
[null,"#218"]
[null,"#219"]
[null,"#220"]
[null,"#221"]
[null,"#222"]
[null,"#223"]
[null,"#224"]
[null,"#225"]
[null,"#226"]
[null,"#227"]
[null,"#228"]
[null,"#229"]
[null,"#230"]
[null,"#231"]
[null,"#232"]
[null,"#233"]
[null,"#234"]
[null,"#235"]
[null,"#236"]
[null,"#237"]
[null,"#238"]
[null,"#239"]
[null,"#240"]
[null,"#241"]
[null,"#242"]
[null,"#243"]
[null,"#244"]
[null,"#245"]
[null,"#246"]
[null,"#247"]
[null,"#248"]
[null,"#249"]
[null,"#250"]
[null,"#251"]
[null,"#252"]
[null,"#253"]
[null,"#254"]
[null,"#255"]
[null,"#256"]
[null,"#257"]
[null,"#258"]
[null,"#259"]
[null,"#260"]
[null,"#261"]
[null,"#262"]
[null,"#263"]
[null,"#264"]
[null,"#265"]
[null,"#266"]
[null,"#267"]
[null,"#268"]
[null,"#269"]
[null,"#270"]
[null,"#271"]
[null,"#272"]
[null,"#273"]
[null,"#274"]
[null,"#275"]
[null,"#276"]
[null,"#277"]
[null,"#278"]
[null,"#279"]
[null,"#280"]
[null,"#281"]
[null,"#282"]
[null,"#283"]
[null,"#284"]
[null,"#285"]
[null,"#286"]
[null,"#287"]
[null,"#288"]
[null,"#289"]
[null,"#290"]
[null,"#291"]
[null,"#292"]
[null,"#293"]
[null,"#294"]
[null,"#295"]
[null,"#296"]
[null,"#297"]
[null,"#298"]
[null,"#299"]
[null,"#300"]
[null,"#301"]
[null,"#302"]
[null,"#303"]
[null,"#304"]
[null,"#305"]
[null,"#306"]
[null,"#307"]
[null,"#308"]
[null,"#309"]
[null,"#310"]
[null,"#311"]
[null,"#312"]
[null,"#313"]
[null,"#314"]
[null,"#315"]
[null,"#316"]
[null,"#317"]
[null,"#318"]
[null,"#319"]
[null,"#320"]
[null,"#321"]
[null,"#322"]
[null,"#323"]
[null,"#324"]
[null,"#325"]
[null,"#326"]
[null,"#327"]
[null,"#328"]
[null,"#329"]
[null,"#330"]
[null,"#331"]
[null,"#332"]
[null,"#333"]
[null,"#334"]
[null,"#335"]
[null,"#336"]
[null,"#337"]
[null,"#338"]
[null,"#339"]
[null,"#340"]
[null,"#341"]
[null,"#342"]
[null,"#343"]
[null,"#344"]
[null,"#345"]
[null,"#346"]
[null,"#347"]
[null,"#348"]
[null,"#349"]
[null,"#350"]
[null,"#351"]
[null,"#352"]
[null,"#353"]
[null,"#354"]
[null,"#355"]
[null,"#356"]
[null,"#357"]
[null,"#358"]
[null,"#359"]
[null,"#360"]
[null,"#361"]
[null,"#362"]
[null,"#363"]
[null,"#364"]
[null,"#365"]
[null,"#366"]
[null,"#367"]
[null,"#368"]
[null,"#369"]
[null,"#370"]
[null,"#371"]
[null,"#372"]
[null,"#373"]
[null,"#374"]
[null,"#375"]
[null,"#376"]
[null,"#377"]
[null,"#378"]
[null,"#379"]
[null,"#380"]
[null,"#381"]
[null,"#382"]
[null,"#383"]
[null,"#384"]
[null,"#385"]
[null,"#386"]
[null,"#387"]
[null,"#388"]
[null,"#389"]
[null,"#390"]
[null,"#391"]
[null,"#392"]
[null,"#393"]
[null,"#394"]
[null,"#395"]
[null,"#396"]
[null,"#397"]
[null,"#398"]
[null,"#399"]
[null,"#400"]
[null,"#401"]
[null,"#402"]
[null,"#403"]
[null,"#404"]
[null,"#405"]
[null,"#406"]
[null,"#407"]
[null,"#408"]
[null,"#409"]
[null,"#410"]
[null,"#411"]
[null,"#412"]
[null,"#413"]
[null,"#414"]
[null,"#415"]
[null,"#416"]
[null,"#417"]
[null,"#418"]
[null,"#419"]
[null,"#420"]
[null,"#421"]
[null,"#422"]
[null,"#423"]
[null,"#424"]
[null,"#425"]
[null,"#426"]
[null,"#427"]
[null,"#428"]
[null,"#429"]
[null,"#430"]
[null,"#431"]
[null,"#432"]
[null,"#433"]
[null,"#434"]
[null,"#435"]
[null,"#436"]
[null,"#437"]
[null,"#438"]
[null,"#439"]
[null,"#440"]
[null,"#441"]
[null,"#442"]
[null,"#443"]
[null,"#444"]
[null,"#445"]
[null,"#446"]
[null,"#447"]
[null,"#448"]
[null,"#449"]
[null,"#450"]
[null,"#451"]
[null,"#452"]
[null,"#453"]
[null,"#454"]
[null,"#455"]
[null,"#456"]
[null,"#457"]
[null,"#458"]
[null,"#459"]
[null,"#460"]
[null,"#461"]
[null,"#462"]
[null,"#463"]
[null,"#464"]
[null,"#465"]
[null,"#466"]
[null,"#467"]
[null,"#468"]
[null,"#469"]
[null,"#470"]
[null,"#471"]
[null,"#472"]
[null,"#473"]
[null,"#474"]
[null,"#475"]
[null,"#476"]
[null,"#477"]
[null,"#478"]
[null,"#479"]
[null,"#480"]
[null,"#481"]
[null,"#482"]
[null,"#483"]
[null,"#484"]
[null,"#485"]
[null,"#486"]
[null,"#487"]
[null,"#488"]
[null,"#489"]
[null,"#490"]
[null,"#491"]
[null,"#492"]
[null,"#493"]
[null,"#494"]
[null,"#495"]
[null,"#496"]
[null,"#497"]
[null,"#498"]
[null,"#499"]
[null,"#500"]
[null,"#501"]
[null,"#502"]
[null,"#503"]
[null,"#504"]
[null,"#505"]
[null,"#506"]
[null,"#507"]
[null,"#508"]
[null,"#509"]
[null,"#510"]
[null,"#511"]
[null,"#512"]
[null,"#513"]
[null,"#514"]
[null,"#515"]
[null,"#516"]
[null,"#517"]
[null,"#518"]
[null,"#519"]
[null,"#520"]
[null,"#521"]
[null,"#522"]
[null,"#523"]
[null,"#524"]
[null,"#525"]
[null,"#526"]
[null,"#527"]
[null,"#528"]
[null,"#529"]
[null,"#530"]
[null,"#531"]
[null,"#532"]
[null,"#533"]
[null,"#534"]
[null,"#535"]
[null,"#536"]
[null,"#537"]
[null,"#538"]
[null,"#539"]
[null,"#540"]
[null,"#541"]
[null,"#542"]
[null,"#543"]
[null,"#544"]
[null,"#545"]
[null,"#546"]
[null,"#547"]
[null,"#548"]
[null,"#549"]
[null,"#550"]
[null,"#551"]
[null,"#552"]
[null,"#553"]
[null,"#554"]
[null,"#555"]
[null,"#556"]
[null,"#557"]
[null,"#558"]
[null,"#559"]
[null,"#560"]
[null,"#561"]
[null,"#562"]
[null,"#563"]
[null,"#564"]
[null,"#565"]
[null,"#566"]
[null,"#567"]
[null,"#568"]
[null,"#569"]
[null,"#570"]
[null,"#571"]
[null,"#572"]
[null,"#573"]
[null,"#574"]
[null,"#575"]
[null,"#576"]
[null,"#577"]
[null,"#578"]
[null,"#579"]
[null,"#580"]
[null,"#581"]
[null,"#582"]
[null,"#583"]
[null,"#584"]
[null,"#585"]
[null,"#586"]
[null,"#587"]
[null,"#588"]
[null,"#589"]
[null,"#590"]
[null,"#591"]
[null,"#592"]
[null,"#593"]
[null,"#594"]
[null,"#595"]
[null,"#596"]
[null,"#597"]
[null,"#598"]
[null,"#599"]
[null,"#600"]
[null,"#601"]
[null,"#602"]
[null,"#603"]
[null,"#604"]
[null,"#605"]
[null,"#606"]
[null,"#607"]
[null,"#608"]
[null,"#609"]
[null,"#610"]
[null,"#611"]
[null,"#612"]
[null,"#613"]
[null,"#614"]
[null,"#615"]
[null,"#616"]
[null,"#617"]
[null,"#618"]
[null,"#619"]
[null,"#620"]
[null,"#621"]
[null,"#622"]
[null,"#623"]
[null,"#624"]
[null,"#625"]
[null,"#626"]
[null,"#627"]
[null,"#628"]
[null,"#629"]
[null,"#630"]
[null,"#631"]
[null,"#632"]
[null,"#633"]
[null,"#634"]
[null,"#635"]
[null,"#636"]
[null,"#637"]
[null,"#638"]
[null,"#639"]
[null,"#640"]
[null,"#641"]
[null,"#642"]
[null,"#643"]
[null,"#644"]
[null,"#645"]
[null,"#646"]
[null,"#647"]
[null,"#648"]
[null,"#649"]
[null,"#650"]
[null,"#651"]
[null,"#652"]
[null,"#653"]
[null,"#654"]
[null,"#655"]
[null,"#656"]
[null,"#657"]
[null,"#658"]
[null,"#659"]
[null,"#660"]
[null,"#661"]
[null,"#662"]
[null,"#663"]
[null,"#664"]
[null,"#665"]
[null,"#666"]
[null,"#667"]
[null,"#668"]
[null,"#669"]
[null,"#670"]
[null,"#671"]
[null,"#672"]
[null,"#673"]
[null,"#674"]
[null,"#675"]
[null,"#676"]
[null,"#677"]
[null,"#678"]
[null,"#679"]
[null,"#680"]
[null,"#681"]
[null,"#682"]
[null,"#683"]
[null,"#684"]
[null,"#685"]
[null,"#686"]
[null,"#687"]
[null,"#688"]
[null,"#689"]
[null,"#690"]
[null,"#691"]
[null,"#692"]
[null,"#693"]
[null,"#694"]
[null,"#695"]
[null,"#696"]
[null,"#697"]
[null,"#698"]
[null,"#699"]
[null,"#700"]
[null,"#701"]
[null,"#702"]
[null,"#703"]
[null,"#704"]
[null,"#705"]
[null,"#706"]
[null,"#707"]
[null,"#708"]
[null,"#709"]
[null,"#710"]
[null,"#711"]
[null,"#712"]
[null,"#713"]
[null,"#714"]
[null,"#715"]
[null,"#716"]
[null,"#717"]
[null,"#718"]
[null,"#719"]
[null,"#720"]
[null,"#721"]
[null,"#722"]
[null,"#723"]
[null,"#724"]
[null,"#725"]
[null,"#726"]
[null,"#727"]
[null,"#728"]
[null,"#729"]
[null,"#730"]
[null,"#731"]
[null,"#732"]
[null,"#733"]
[null,"#734"]
[null,"#735"]
[null,"#736"]
[null,"#737"]
[null,"#738"]
[null,"#739"]
[null,"#740"]
[null,"#741"]
[null,"#742"]
[null,"#743"]
[null,"#744"]
[null,"#745"]
[null,"#746"]
[null,"#747"]
[null,"#748"]
[null,"#749"]
[null,"#750"]
[null,"#751"]
[null,"#752"]
[null,"#753"]
[null,"#754"]
[null,"#755"]
[null,"#756"]
[null,"#757"]
[null,"#758"]
[null,"#759"]
[null,"#760"]
[null,"#761"]
[null,"#762"]
[null,"#763"]
[null,"#764"]
[null,"#765"]
[null,"#766"]
[null,"#767"]
[null,"#768"]
[null,"#769"]
[null,"#770"]
[null,"#771"]
[null,"#772"]
[null,"#773"]
[null,"#774"]
[null,"#775"]
[null,"#776"]
[null,"#777"]
[null,"#778"]
[null,"#779"]
[null,"#780"]
[null,"#781"]
[null,"#782"]
[null,"#783"]
[null,"#784"]
[null,"#785"]
[null,"#786"]
[null,"#787"]
[null,"#788"]
[null,"#789"]
[null,"#790"]
[null,"#791"]
[null,"#792"]
[null,"#793"]
[null,"#794"]
[null,"#795"]
[null,"#796"]
[null,"#797"]
[null,"#798"]
[null,"#799"]
[null,"#800"]
[null,"#801"]
[null,"#802"]
[null,"#803"]
[null,"#804"]
[null,"#805"]
[null,"#806"]
[null,"#807"]
[null,"#808"]
[null,"#809"]
[null,"#810"]
[null,"#811"]
[null,"#812"]
[null,"#813"]
[null,"#814"]
[null,"#815"]
[null,"#816"]
[null,"#817"]
[null,"#818"]
[null,"#819"]
[null,"#820"]
[null,"#821"]
[null,"#822"]
[null,"#823"]
[null,"#824"]
[null,"#825"]
[null,"#826"]
[null,"#827"]
[null,"#828"]
[null,"#829"]
[null,"#830"]
[null,"#831"]
[null,"#832"]
[null,"#833"]
[null,"#834"]
[null,"#835"]
[null,"#836"]
[null,"#837"]
[null,"#838"]
[null,"#839"]
[null,"#840"]
[null,"#841"]
[null,"#842"]
[null,"#843"]
[null,"#844"]
[null,"#845"]
[null,"#846"]
[null,"#847"]
[null,"#848"]
[null,"#849"]
[null,"#850"]
[null,"#851"]
[null,"#852"]
[null,"#853"]
[null,"#854"]
[null,"#855"]
[null,"#856"]
[null,"#857"]
[null,"#858"]
[null,"#859"]
[null,"#860"]
[null,"#861"]
[null,"#862"]
[null,"#863"]
[null,"#864"]
[null,"#865"]
[null,"#866"]
[null,"#867"]
[null,"#868"]
[null,"#869"]
[null,"#870"]
[null,"#871"]
[null,"#872"]
[null,"#873"]
[null,"#874"]
[null,"#875"]
[null,"#876"]
[null,"#877"]
[null,"#878"]
[null,"#879"]
[null,"#880"]
[null,"#881"]
[null,"#882"]
[null,"#883"]
[null,"#884"]
[null,"#885"]
[null,"#886"]
[null,"#887"]
[null,"#888"]
[null,"#889"]
[null,"#890"]
[null,"#891"]
[null,"#892"]
[null,"#893"]
[null,"#894"]
[null,"#895"]
[null,"#896"]
[null,"#897"]
[null,"#898"]
[null,"#899"]
[null,"#900"]
[null,"#901"]
[null,"#902"]
[null,"#903"]
[null,"#904"]
[null,"#905"]
[null,"#906"]
[null,"#907"]
[null,"#908"]
[null,"#909"]
[null,"#910"]
[null,"#911"]
[null,"#912"]
[null,"#913"]
[null,"#914"]
[null,"#915"]
[null,"#916"]
[null,"#917"]
[null,"#918"]
[null,"#919"]
[null,"#920"]
[null,"#921"]
[null,"#922"]
[null,"#923"]
[null,"#924"]
[null,"#925"]
[null,"#926"]
[null,"#927"]
[null,"#928"]
[null,"#929"]
[null,"#930"]
[null,"#931"]
[null,"#932"]
[null,"#933"]
[null,"#934"]
[null,"#935"]
[null,"#936"]
[null,"#937"]
[null,"#938"]
[null,"#939"]
[null,"#940"]
[null,"#941"]
[null,"#942"]
[null,"#943"]
[null,"#944"]
[null,"#945"]
[null,"#946"]
[null,"#947"]
[null,"#948"]
[null,"#949"]
[null,"#950"]
[null,"#951"]
[null,"#952"]
[null,"#953"]
[null,"#954"]
[null,"#955"]
[null,"#956"]
[null,"#957"]
[null,"#958"]
[null,"#959"]
[null,"#960"]
[null,"#961"]
[null,"#962"]
[null,"#963"]
[null,"#964"]
[null,"#965"]
[null,"#966"]
[null,"#967"]
[null,"#968"]
[null,"#969"]
[null,"#970"]
[null,"#971"]
[null,"#972"]
[null,"#973"]
[null,"#974"]
[null,"#975"]
[null,"#976"]
[null,"#977"]
[null,"#978"]
[null,"#979"]
[null,"#980"]
[null,"#981"]
[null,"#982"]
[null,"#983"]
[null,"#984"]
[null,"#985"]
[null,"#986"]
[null,"#987"]
[null,"#988"]
[null,"#989"]
[null,"#990"]
[null,"#991"]
[null,"#992"]
[null,"#993"]
[null,"#994"]
[null,"#995"]
[null,"#996"]
[null,"#997"]
[null,"#998"]
[null,"#999"]
[null,"#1000"]
[]
[null,"AVIE / CAPI","Euro - UC","2030-12-31",{"$nulls":19},"Obligation","Dette Privée","Action","Private Equity","Obligation CT"]
[null,"ID","AGE","SOUSCRIPTION_YR","SEXE","PDT","CHGT_GEST_EURO_PC","CHGT_GEST_UC_PC","COMM_DIST_EURO_PC","COMM_DIST_UC_PC","CLAUSE_PB_PC","TMG_PC","NO_POLS","PM_EURO","PM_UC_TOT","PM_UC_1","PM_UC_2","PM_UC_3","PM_UC_4","PM_UC_5",null,"Pondération","%Euro","%UC1","%UC2","%UC3","%UC4","%UC5"]
[null,"#1",18,2026,"H","A_VIE",{"$f":"frais_gestion_Euro*100","v":{"v":0.44999999999999996,"d":"0.45"}},{"$f":"frais_gestion_UC*100","v":{"v":0.38999999999999996,"d":"0.39"}},{"$f":"frais_distribution_FG*100","v":0.6},{"$f":"frais_distribution_UC*100","v":0.6},85,0,{"$f":"ROUND(Primes!$P$4*V6108,0)","v":12},{"$f":"'BP Financier'!$F$33*(('BP Financier'!$C$16+'BP Financier'!$D$16+'BP Financier'!$E$16+'BP Financier'!$F$16)/('BP Financier'!$C$16+'BP Financier'!$C$19+'BP Financier'!$D$16+'BP Financier'!$D$19+'BP Financier'!$E$16+'BP Financier'!$E$19+'BP Financier'!$F$16+'BP Financier'!$F$19))*V6108","v":{"v":484971.6977773321,"d":"484,972"}},{"$f":"SUM(P6108:T6108)","v":{"v":275109.2797866347,"d":"275,109"}},{"$f":"'BP Financier'!$F$44*(('BP Financier'!$C$16+'BP Financier'!$D$16+'BP Financier'!$E$16+'BP Financier'!$F$16)/('BP Financier'!$C$16+'BP Financier'!$C$19+'BP Financier'!$D$16+'BP Financier'!$D$19+'BP Financier'!$E$16+'BP Financier'!$E$19+'BP Financier'!$C$22+'BP Financier'!$D$22+'BP Financier'!$E$22+'BP Financier'!$F$16+'BP Financier'!$F$19+'BP Financier'!$F$22))*$V6108*X6108/(1-$W6108)","v":{"v":35017.42590814408,"d":"35,017"}},{"$f":"'BP Financier'!$F$44*(('BP Financier'!$C$16+'BP Financier'!$D$16+'BP Financier'!$E$16+'BP Financier'!$F$16)/('BP Financier'!$C$16+'BP Financier'!$C$19+'BP Financier'!$D$16+'BP Financier'!$D$19+'BP Financier'!$E$16+'BP Financier'!$E$19+'BP Financier'!$C$22+'BP Financier'!$D$22+'BP Financier'!$E$22+'BP Financier'!$F$16+'BP Financier'!$F$19+'BP Financier'!$F$22))*$V6108*Y6108/(1-$W6108)","v":{"v":23409.439419256538,"d":"23,409"}},{"$f":"'BP Financier'!$F$44*(('BP Financier'!$C$16+'BP Financier'!$D$16+'BP Financier'!$E$16+'BP Financier'!$F$16)/('BP Financier'!$C$16+'BP Financier'!$C$19+'BP Financier'!$D$16+'BP Financier'!$D$19+'BP Financier'!$E$16+'BP Financier'!$E$19+'BP Financier'!$C$22+'BP Financier'!$D$22+'BP Financier'!$E$22+'BP Financier'!$F$16+'BP Financier'!$F$19+'BP Financier'!$F$22))*$V6108*Z6108/(1-$W6108)","v":{"v":183212.72008294167,"d":"183,213"}},{"$f":"'BP Financier'!$F$44*(('BP Financier'!$C$16+'BP Financier'!$D$16+'BP Financier'!$E$16+'BP Financier'!$F$16)/('BP Financier'!$C$16+'BP Financier'!$C$19+'BP Financier'!$D$16+'BP Financier'!$D$19+'BP Financier'!$E$16+'BP Financier'!$E$19+'BP Financier'!$C$22+'BP Financier'!$D$22+'BP Financier'!$E$22+'BP Financier'!$F$16+'BP Financier'!$F$19+'BP Financier'!$F$22))*$V6108*AA6108/(1-$W6108)","v":{"v":22635.573653330703,"d":"22,636"}},{"$f":"'BP Financier'!$F$44*(('BP Financier'!$C$16+'BP Financier'!$D$16+'BP Financier'!$E$16+'BP Financier'!$F$16)/('BP Financier'!$C$16+'BP Financier'!$C$19+'BP Financier'!$D$16+'BP Financier'!$D$19+'BP Financier'!$E$16+'BP Financier'!$E$19+'BP Financier'!$C$22+'BP Financier'!$D$22+'BP Financier'!$E$22+'BP Financier'!$F$16+'BP Financier'!$F$19+'BP Financier'!$F$22))*$V6108*AB6108/(1-$W6108)","v":{"v":10834.120722961703,"d":"10,834"}},null,{"v":1.25E-3,"d":"0.13%"},{"$f":"Actif!$E$28/100","v":{"v":0.28900000000000003,"d":"28.90%"}},{"$f":"Actif!$E$30/100","v":{"v":0.09050000000000001,"d":"9.05%"}},{"$f":"Actif!$E$31/100","v":{"v":0.0605,"d":"6.05%"}},{"$f":"Actif!$E$32/100","v":{"v":0.47350000000000003,"d":"47.35%"}},{"$f":"Actif!$E$33/100","v":{"v":0.0585,"d":"5.85%"}},{"$f":"Actif!$E$29/100","v":{"v":0.027999999999999997,"d":"2.80%"}}]
[null,"#2",18,2028,"H","A_VIE",{"v":0.44999999999999996,"d":"0.45"},{"v":0.38999999999999996,"d":"0.39"},0.6,0.6,85,0,{"$f":"ROUND(Primes!$P$4*V6109,0)","v":12},{"$f":"'BP Financier'!$F$33*(('BP Financier'!$C$16+'BP Financier'!$D$16+'BP Financier'!$E$16+'BP Financier'!$F$16)/('BP Financier'!$C$16+'BP Financier'!$C$19+'BP Financier'!$D$16+'BP Financier'!$D$19+'BP Financier'!$E$16+'BP Financier'!$E$19+'BP Financier'!$F$16+'BP Financier'!$F$19))*V6109","v":{"v":484971.6977773321,"d":"484,972"}},{"$f":"SUM(P6109:T6109)","v":{"v":275109.2797866347,"d":"275,109"}},{"$f":"'BP Financier'!$F$44*(('BP Financier'!$C$16+'BP Financier'!$D$16+'BP Financier'!$E$16+'BP Financier'!$F$16)/('BP Financier'!$C$16+'BP Financier'!$C$19+'BP Financier'!$D$16+'BP Financier'!$D$19+'BP Financier'!$E$16+'BP Financier'!$E$19+'BP Financier'!$C$22+'BP Financier'!$D$22+'BP Financier'!$E$22+'BP Financier'!$F$16+'BP Financier'!$F$19+'BP Financier'!$F$22))*$V6109*X6109/(1-$W6109)","v":{"v":35017.42590814408,"d":"35,017"}},{"$f":"'BP Financier'!$F$44*(('BP Financier'!$C$16+'BP Financier'!$D$16+'BP Financier'!$E$16+'BP Financier'!$F$16)/('BP Financier'!$C$16+'BP Financier'!$C$19+'BP Financier'!$D$16+'BP Financier'!$D$19+'BP Financier'!$E$16+'BP Financier'!$E$19+'BP Financier'!$C$22+'BP Financier'!$D$22+'BP Financier'!$E$22+'BP Financier'!$F$16+'BP Financier'!$F$19+'BP Financier'!$F$22))*$V6109*Y6109/(1-$W6109)","v":{"v":23409.439419256538,"d":"23,409"}},{"$f":"'BP Financier'!$F$44*(('BP Financier'!$C$16+'BP Financier'!$D$16+'BP Financier'!$E$16+'BP Financier'!$F$16)/('BP Financier'!$C$16+'BP Financier'!$C$19+'BP Financier'!$D$16+'BP Financier'!$D$19+'BP Financier'!$E$16+'BP Financier'!$E$19+'BP Financier'!$C$22+'BP Financier'!$D$22+'BP Financier'!$E$22+'BP Financier'!$F$16+'BP Financier'!$F$19+'BP Financier'!$F$22))*$V6109*Z6109/(1-$W6109)","v":{"v":183212.72008294167,"d":"183,213"}},{"$f":"'BP Financier'!$F$44*(('BP Financier'!$C$16+'BP Financier'!$D$16+'BP Financier'!$E$16+'BP Financier'!$F$16)/('BP Financier'!$C$16+'BP Financier'!$C$19+'BP Financier'!$D$16+'BP Financier'!$D$19+'BP Financier'!$E$16+'BP Financier'!$E$19+'BP Financier'!$C$22+'BP Financier'!$D$22+'BP Financier'!$E$22+'BP Financier'!$F$16+'BP Financier'!$F$19+'BP Financier'!$F$22))*$V6109*AA6109/(1-$W6109)","v":{"v":22635.573653330703,"d":"22,636"}},{"$f":"'BP Financier'!$F$44*(('BP Financier'!$C$16+'BP Financier'!$D$16+'BP Financier'!$E$16+'BP Financier'!$F$16)/('BP Financier'!$C$16+'BP Financier'!$C$19+'BP Financier'!$D$16+'BP Financier'!$D$19+'BP Financier'!$E$16+'BP Financier'!$E$19+'BP Financier'!$C$22+'BP Financier'!$D$22+'BP Financier'!$E$22+'BP Financier'!$F$16+'BP Financier'!$F$19+'BP Financier'!$F$22))*$V6109*AB6109/(1-$W6109)","v":{"v":10834.120722961703,"d":"10,834"}},null,{"v":1.25E-3,"d":"0.13%"},{"$f":"Actif!$E$28/100","v":{"v":0.28900000000000003,"d":"28.90%"}},{"$f":"Actif!$E$30/100","v":{"v":0.09050000000000001,"d":"9.05%"}},{"$f":"Actif!$E$31/100","v":{"v":0.0605,"d":"6.05%"}},{"$f":"Actif!$E$32/100","v":{"v":0.47350000000000003,"d":"47.35%"}},{"$f":"Actif!$E$33/100","v":{"v":0.0585,"d":"5.85%"}},{"$f":"Actif!$E$29/100","v":{"v":0.027999999999999997,"d":"2.80%"}}]
[null,"#3",18,2029,"H","A_VIE",{"v":0.44999999999999996,"d":"0.45"},{"v":0.38999999999999996,"d":"0.39"},0.6,0.6,85,0,{"$f":"ROUND(Primes!$P$4*V6110,0)","v":12},{"$f":"'BP Financier'!$F$33*(('BP Financier'!$C$16+'BP Financier'!$D$16+'BP Financier'!$E$16+'BP Financier'!$F$16)/('BP Financier'!$C$16+'BP Financier'!$C$19+'BP Financier'!$D$16+'BP Financier'!$D$19+'BP Financier'!$E$16+'BP Financier'!$E$19+'BP Financier'!$F$16+'BP Financier'!$F$19))*V6110","v":{"v":484971.6977773321,"d":"484,972"}},{"v":275109.2797866347,"d":"275,109"},{"$f":"'BP Financier'!$F$44*(('BP Financier'!$C$16+'BP Financier'!$D$16+'BP Financier'!$E$16+'BP Financier'!$F$16)/('BP Financier'!$C$16+'BP Financier'!$C$19+'BP Financier'!$D$16+'BP Financier'!$D$19+'BP Financier'!$E$16+'BP Financier'!$E$19+'BP Financier'!$C$22+'BP Financier'!$D$22+'BP Financier'!$E$22+'BP Financier'!$F$16+'BP Financier'!$F$19+'BP Financier'!$F$22))*$V6110*X6110/(1-$W6110)","v":{"v":35017.42590814408,"d":"35,017"}},{"$f":"'BP Financier'!$F$44*(('BP Financier'!$C$16+'BP Financier'!$D$16+'BP Financier'!$E$16+'BP Financier'!$F$16)/('BP Financier'!$C$16+'BP Financier'!$C$19+'BP Financier'!$D$16+'BP Financier'!$D$19+'BP Financier'!$E$16+'BP Financier'!$E$19+'BP Financier'!$C$22+'BP Financier'!$D$22+'BP Financier'!$E$22+'BP Financier'!$F$16+'BP Financier'!$F$19+'BP Financier'!$F$22))*$V6110*Y6110/(1-$W6110)","v":{"v":23409.439419256538,"d":"23,409"}},{"$f":"'BP Financier'!$F$44*(('BP Financier'!$C$16+'BP Financier'!$D$16+'BP Financier'!$E$16+'BP Financier'!$F$16)/('BP Financier'!$C$16+'BP Financier'!$C$19+'BP Financier'!$D$16+'BP Financier'!$D$19+'BP Financier'!$E$16+'BP Financier'!$E$19+'BP Financier'!$C$22+'BP Financier'!$D$22+'BP Financier'!$E$22+'BP Financier'!$F$16+'BP Financier'!$F$19+'BP Financier'!$F$22))*$V6110*Z6110/(1-$W6110)","v":{"v":183212.72008294167,"d":"183,213"}},{"$f":"'BP Financier'!$F$44*(('BP Financier'!$C$16+'BP Financier'!$D$16+'BP Financier'!$E$16+'BP Financier'!$F$16)/('BP Financier'!$C$16+'BP Financier'!$C$19+'BP Financier'!$D$16+'BP Financier'!$D$19+'BP Financier'!$E$16+'BP Financier'!$E$19+'BP Financier'!$C$22+'BP Financier'!$D$22+'BP Financier'!$E$22+'BP Financier'!$F$16+'BP Financier'!$F$19+'BP Financier'!$F$22))*$V6110*AA6110/(1-$W6110)","v":{"v":22635.573653330703,"d":"22,636"}},{"$f":"'BP Financier'!$F$44*(('BP Financier'!$C$16+'BP Financier'!$D$16+'BP Financier'!$E$16+'BP Financier'!$F$16)/('BP Financier'!$C$16+'BP Financier'!$C$19+'BP Financier'!$D$16+'BP Financier'!$D$19+'BP Financier'!$E$16+'BP Financier'!$E$19+'BP Financier'!$C$22+'BP Financier'!$D$22+'BP Financier'!$E$22+'BP Financier'!$F$16+'BP Financier'!$F$19+'BP Financier'!$F$22))*$V6110*AB6110/(1-$W6110)","v":{"v":10834.120722961703,"d":"10,834"}},null,{"v":1.25E-3,"d":"0.13%"},{"$f":"Actif!$E$28/100","v":{"v":0.28900000000000003,"d":"28.90%"}},{"$f":"Actif!$E$30/100","v":{"v":0.09050000000000001,"d":"9.05%"}},{"$f":"Actif!$E$31/100","v":{"v":0.0605,"d":"6.05%"}},{"$f":"Actif!$E$32/100","v":{"v":0.47350000000000003,"d":"47.35%"}},{"$f":"Actif!$E$33/100","v":{"v":0.0585,"d":"5.85%"}},{"$f":"Actif!$E$29/100","v":{"v":0.027999999999999997,"d":"2.80%"}}]
[null,"#4",18,2030,"H","A_VIE",{"v":0.44999999999999996,"d":"0.45"},{"v":0.38999999999999996,"d":"0.39"},0.6,0.6,85,0,{"$f":"ROUND(Primes!$P$4*V6111,0)","v":12},{"$f":"'BP Financier'!$F$33*(('BP Financier'!$C$16+'BP Financier'!$D$16+'BP Financier'!$E$16+'BP Financier'!$F$16)/('BP Financier'!$C$16+'BP Financier'!$C$19+'BP Financier'!$D$16+'BP Financier'!$D$19+'BP Financier'!$E$16+'BP Financier'!$E$19+'BP Financier'!$F$16+'BP Financier'!$F$19))*V6111","v":{"v":484971.6977773321,"d":"484,972"}},{"v":275109.2797866347,"d":"275,109"},{"$f":"'BP Financier'!$F$44*(('BP Financier'!$C$16+'BP Financier'!$D$16+'BP Financier'!$E$16+'BP Financier'!$F$16)/('BP Financier'!$C$16+'BP Financier'!$C$19+'BP Financier'!$D$16+'BP Financier'!$D$19+'BP Financier'!$E$16+'BP Financier'!$E$19+'BP Financier'!$C$22+'BP Financier'!$D$22+'BP Financier'!$E$22+'BP Financier'!$F$16+'BP Financier'!$F$19+'BP Financier'!$F$22))*$V6111*X6111/(1-$W6111)","v":{"v":35017.42590814408,"d":"35,017"}},{"$f":"'BP Financier'!$F$44*(('BP Financier'!$C$16+'BP Financier'!$D$16+'BP Financier'!$E$16+'BP Financier'!$F$16)/('BP Financier'!$C$16+'BP Financier'!$C$19+'BP Financier'!$D$16+'BP Financier'!$D$19+'BP Financier'!$E$16+'BP Financier'!$E$19+'BP Financier'!$C$22+'BP Financier'!$D$22+'BP Financier'!$E$22+'BP Financier'!$F$16+'BP Financier'!$F$19+'BP Financier'!$F$22))*$V6111*Y6111/(1-$W6111)","v":{"v":23409.439419256538,"d":"23,409"}},{"$f":"'BP Financier'!$F$44*(('BP Financier'!$C$16+'BP Financier'!$D$16+'BP Financier'!$E$16+'BP Financier'!$F$16)/('BP Financier'!$C$16+'BP Financier'!$C$19+'BP Financier'!$D$16+'BP Financier'!$D$19+'BP Financier'!$E$16+'BP Financier'!$E$19+'BP Financier'!$C$22+'BP Financier'!$D$22+'BP Financier'!$E$22+'BP Financier'!$F$16+'BP Financier'!$F$19+'BP Financier'!$F$22))*$V6111*Z6111/(1-$W6111)","v":{"v":183212.72008294167,"d":"183,213"}},{"$f":"'BP Financier'!$F$44*(('BP Financier'!$C$16+'BP Financier'!$D$16+'BP Financier'!$E$16+'BP Financier'!$F$16)/('BP Financier'!$C$16+'BP Financier'!$C$19+'BP Financier'!$D$16+'BP Financier'!$D$19+'BP Financier'!$E$16+'BP Financier'!$E$19+'BP Financier'!$C$22+'BP Financier'!$D$22+'BP Financier'!$E$22+'BP Financier'!$F$16+'BP Financier'!$F$19+'BP Financier'!$F$22))*$V6111*AA6111/(1-$W6111)","v":{"v":22635.573653330703,"d":"22,636"}},{"$f":"'BP Financier'!$F$44*(('BP Financier'!$C$16+'BP Financier'!$D$16+'BP Financier'!$E$16+'BP Financier'!$F$16)/('BP Financier'!$C$16+'BP Financier'!$C$19+'BP Financier'!$D$16+'BP Financier'!$D$19+'BP Financier'!$E$16+'BP Financier'!$E$19+'BP Financier'!$C$22+'BP Financier'!$D$22+'BP Financier'!$E$22+'BP Financier'!$F$16+'BP Financier'!$F$19+'BP Financier'!$F$22))*$V6111*AB6111/(1-$W6111)","v":{"v":10834.120722961703,"d":"10,834"}},null,{"v":1.25E-3,"d":"0.13%"},{"$f":"Actif!$E$28/100","v":{"v":0.28900000000000003,"d":"28.90%"}},{"$f":"Actif!$E$30/100","v":{"v":0.09050000000000001,"d":"9.05%"}},{"$f":"Actif!$E$31/100","v":{"v":0.0605,"d":"6.05%"}},{"$f":"Actif!$E$32/100","v":{"v":0.47350000000000003,"d":"47.35%"}},{"$f":"Actif!$E$33/100","v":{"v":0.0585,"d":"5.85%"}},{"$f":"Actif!$E$29/100","v":{"v":0.027999999999999997,"d":"2.80%"}}]
[null,"#5",19,2026,"H","A_VIE",{"v":0.44999999999999996,"d":"0.45"},{"v":0.38999999999999996,"d":"0.39"},0.6,0.6,85,0,{"$f":"ROUND(Primes!$P$4*V6112,0)","v":12},{"$f":"'BP Financier'!$F$33*(('BP Financier'!$C$16+'BP Financier'!$D$16+'BP Financier'!$E$16+'BP Financier'!$F$16)/('BP Financier'!$C$16+'BP Financier'!$C$19+'BP Financier'!$D$16+'BP Financier'!$D$19+'BP Financier'!$E$16+'BP Financier'!$E$19+'BP Financier'!$F$16+'BP Financier'!$F$19))*V6112","v":{"v":484971.6977773321,"d":"484,972"}},{"v":275109.2797866347,"d":"275,109"},{"$f":"'BP Financier'!$F$44*(('BP Financier'!$C$16+'BP Financier'!$D$16+'BP Financier'!$E$16+'BP Financier'!$F$16)/('BP Financier'!$C$16+'BP Financier'!$C$19+'BP Financier'!$D$16+'BP Financier'!$D$19+'BP Financier'!$E$16+'BP Financier'!$E$19+'BP Financier'!$C$22+'BP Financier'!$D$22+'BP Financier'!$E$22+'BP Financier'!$F$16+'BP Financier'!$F$19+'BP Financier'!$F$22))*$V6112*X6112/(1-$W6112)","v":{"v":35017.42590814408,"d":"35,017"}},{"$f":"'BP Financier'!$F$44*(('BP Financier'!$C$16+'BP Financier'!$D$16+'BP Financier'!$E$16+'BP Financier'!$F$16)/('BP Financier'!$C$16+'BP Financier'!$C$19+'BP Financier'!$D$16+'BP Financier'!$D$19+'BP Financier'!$E$16+'BP Financier'!$E$19+'BP Financier'!$C$22+'BP Financier'!$D$22+'BP Financier'!$E$22+'BP Financier'!$F$16+'BP Financier'!$F$19+'BP Financier'!$F$22))*$V6112*Y6112/(1-$W6112)","v":{"v":23409.439419256538,"d":"23,409"}},{"$f":"'BP Financier'!$F$44*(('BP Financier'!$C$16+'BP Financier'!$D$16+'BP Financier'!$E$16+'BP Financier'!$F$16)/('BP Financier'!$C$16+'BP Financier'!$C$19+'BP Financier'!$D$16+'BP Financier'!$D$19+'BP Financier'!$E$16+'BP Financier'!$E$19+'BP Financier'!$C$22+'BP Financier'!$D$22+'BP Financier'!$E$22+'BP Financier'!$F$16+'BP Financier'!$F$19+'BP Financier'!$F$22))*$V6112*Z6112/(1-$W6112)","v":{"v":183212.72008294167,"d":"183,213"}},{"$f":"'BP Financier'!$F$44*(('BP Financier'!$C$16+'BP Financier'!$D$16+'BP Financier'!$E$16+'BP Financier'!$F$16)/('BP Financier'!$C$16+'BP Financier'!$C$19+'BP Financier'!$D$16+'BP Financier'!$D$19+'BP Financier'!$E$16+'BP Financier'!$E$19+'BP Financier'!$C$22+'BP Financier'!$D$22+'BP Financier'!$E$22+'BP Financier'!$F$16+'BP Financier'!$F$19+'BP Financier'!$F$22))*$V6112*AA6112/(1-$W6112)","v":{"v":22635.573653330703,"d":"22,636"}},{"$f":"'BP Financier'!$F$44*(('BP Financier'!$C$16+'BP Financier'!$D$16+'BP Financier'!$E$16+'BP Financier'!$F$16)/('BP Financier'!$C$16+'BP Financier'!$C$19+'BP Financier'!$D$16+'BP Financier'!$D$19+'BP Financier'!$E$16+'BP Financier'!$E$19+'BP Financier'!$C$22+'BP Financier'!$D$22+'BP Financier'!$E$22+'BP Financier'!$F$16+'BP Financier'!$F$19+'BP Financier'!$F$22))*$V6112*AB6112/(1-$W6112)","v":{"v":10834.120722961703,"d":"10,834"}},null,{"v":1.25E-3,"d":"0.13%"},{"$f":"Actif!$E$28/100","v":{"v":0.28900000000000003,"d":"28.90%"}},{"$f":"Actif!$E$30/100","v":{"v":0.09050000000000001,"d":"9.05%"}},{"$f":"Actif!$E$31/100","v":{"v":0.0605,"d":"6.05%"}},{"$f":"Actif!$E$32/100","v":{"v":0.47350000000000003,"d":"47.35%"}},{"$f":"Actif!$E$33/100","v":{"v":0.0585,"d":"5.85%"}},{"$f":"Actif!$E$29/100","v":{"v":0.027999999999999997,"d":"2.80%"}}]
[null,"#6",19,2028,"H","A_VIE",{"v":0.44999999999999996,"d":"0.45"},{"v":0.38999999999999996,"d":"0.39"},0.6,0.6,85,0,{"$f":"ROUND(Primes!$P$4*V6113,0)","v":12},{"$f":"'BP Financier'!$F$33*(('BP Financier'!$C$16+'BP Financier'!$D$16+'BP Financier'!$E$16+'BP Financier'!$F$16)/('BP Financier'!$C$16+'BP Financier'!$C$19+'BP Financier'!$D$16+'BP Financier'!$D$19+'BP Financier'!$E$16+'BP Financier'!$E$19+'BP Financier'!$F$16+'BP Financier'!$F$19))*V6113","v":{"v":484971.6977773321,"d":"484,972"}},{"v":275109.2797866347,"d":"275,109"},{"$f":"'BP Financier'!$F$44*(('BP Financier'!$C$16+'BP Financier'!$D$16+'BP Financier'!$E$16+'BP Financier'!$F$16)/('BP Financier'!$C$16+'BP Financier'!$C$19+'BP Financier'!$D$16+'BP Financier'!$D$19+'BP Financier'!$E$16+'BP Financier'!$E$19+'BP Financier'!$C$22+'BP Financier'!$D$22+'BP Financier'!$E$22+'BP Financier'!$F$16+'BP Financier'!$F$19+'BP Financier'!$F$22))*$V6113*X6113/(1-$W6113)","v":{"v":35017.42590814408,"d":"35,017"}},{"$f":"'BP Financier'!$F$44*(('BP Financier'!$C$16+'BP Financier'!$D$16+'BP Financier'!$E$16+'BP Financier'!$F$16)/('BP Financier'!$C$16+'BP Financier'!$C$19+'BP Financier'!$D$16+'BP Financier'!$D$19+'BP Financier'!$E$16+'BP Financier'!$E$19+'BP Financier'!$C$22+'BP Financier'!$D$22+'BP Financier'!$E$22+'BP Financier'!$F$16+'BP Financier'!$F$19+'BP Financier'!$F$22))*$V6113*Y6113/(1-$W6113)","v":{"v":23409.439419256538,"d":"23,409"}},{"$f":"'BP Financier'!$F$44*(('BP Financier'!$C$16+'BP Financier'!$D$16+'BP Financier'!$E$16+'BP Financier'!$F$16)/('BP Financier'!$C$16+'BP Financier'!$C$19+'BP Financier'!$D$16+'BP Financier'!$D$19+'BP Financier'!$E$16+'BP Financier'!$E$19+'BP Financier'!$C$22+'BP Financier'!$D$22+'BP Financier'!$E$22+'BP Financier'!$F$16+'BP Financier'!$F$19+'BP Financier'!$F$22))*$V6113*Z6113/(1-$W6113)","v":{"v":183212.72008294167,"d":"183,213"}},{"$f":"'BP Financier'!$F$44*(('BP Financier'!$C$16+'BP Financier'!$D$16+'BP Financier'!$E$16+'BP Financier'!$F$16)/('BP Financier'!$C$16+'BP Financier'!$C$19+'BP Financier'!$D$16+'BP Financier'!$D$19+'BP Financier'!$E$16+'BP Financier'!$E$19+'BP Financier'!$C$22+'BP Financier'!$D$22+'BP Financier'!$E$22+'BP Financier'!$F$16+'BP Financier'!$F$19+'BP Financier'!$F$22))*$V6113*AA6113/(1-$W6113)","v":{"v":22635.573653330703,"d":"22,636"}},{"$f":"'BP Financier'!$F$44*(('BP Financier'!$C$16+'BP Financier'!$D$16+'BP Financier'!$E$16+'BP Financier'!$F$16)/('BP Financier'!$C$16+'BP Financier'!$C$19+'BP Financier'!$D$16+'BP Financier'!$D$19+'BP Financier'!$E$16+'BP Financier'!$E$19+'BP Financier'!$C$22+'BP Financier'!$D$22+'BP Financier'!$E$22+'BP Financier'!$F$16+'BP Financier'!$F$19+'BP Financier'!$F$22))*$V6113*AB6113/(1-$W6113)","v":{"v":10834.120722961703,"d":"10,834"}},null,{"v":1.25E-3,"d":"0.13%"},{"$f":"Actif!$E$28/100","v":{"v":0.28900000000000003,"d":"28.90%"}},{"$f":"Actif!$E$30/100","v":{"v":0.09050000000000001,"d":"9.05%"}},{"$f":"Actif!$E$31/100","v":{"v":0.0605,"d":"6.05%"}},{"$f":"Actif!$E$32/100","v":{"v":0.47350000000000003,"d":"47.35%"}},{"$f":"Actif!$E$33/100","v":{"v":0.0585,"d":"5.85%"}},{"$f":"Actif!$E$29/100","v":{"v":0.027999999999999997,"d":"2.80%"}}]
[null,"#7",19,2029,"H","A_VIE",{"v":0.44999999999999996,"d":"0.45"},{"v":0.38999999999999996,"d":"0.39"},0.6,0.6,85,0,{"$f":"ROUND(Primes!$P$4*V6114,0)","v":12},{"$f":"'BP Financier'!$F$33*(('BP Financier'!$C$16+'BP Financier'!$D$16+'BP Financier'!$E$16+'BP Financier'!$F$16)/('BP Financier'!$C$16+'BP Financier'!$C$19+'BP Financier'!$D$16+'BP Financier'!$D$19+'BP Financier'!$E$16+'BP Financier'!$E$19+'BP Financier'!$F$16+'BP Financier'!$F$19))*V6114","v":{"v":484971.6977773321,"d":"484,972"}},{"v":275109.2797866347,"d":"275,109"},{"$f":"'BP Financier'!$F$44*(('BP Financier'!$C$16+'BP Financier'!$D$16+'BP Financier'!$E$16+'BP Financier'!$F$16)/('BP Financier'!$C$16+'BP Financier'!$C$19+'BP Financier'!$D$16+'BP Financier'!$D$19+'BP Financier'!$E$16+'BP Financier'!$E$19+'BP Financier'!$C$22+'BP Financier'!$D$22+'BP Financier'!$E$22+'BP Financier'!$F$16+'BP Financier'!$F$19+'BP Financier'!$F$22))*$V6114*X6114/(1-$W6114)","v":{"v":35017.42590814408,"d":"35,017"}},{"$f":"'BP Financier'!$F$44*(('BP Financier'!$C$16+'BP Financier'!$D$16+'BP Financier'!$E$16+'BP Financier'!$F$16)/('BP Financier'!$C$16+'BP Financier'!$C$19+'BP Financier'!$D$16+'BP Financier'!$D$19+'BP Financier'!$E$16+'BP Financier'!$E$19+'BP Financier'!$C$22+'BP Financier'!$D$22+'BP Financier'!$E$22+'BP Financier'!$F$16+'BP Financier'!$F$19+'BP Financier'!$F$22))*$V6114*Y6114/(1-$W6114)","v":{"v":23409.439419256538,"d":"23,409"}},{"$f":"'BP Financier'!$F$44*(('BP Financier'!$C$16+'BP Financier'!$D$16+'BP Financier'!$E$16+'BP Financier'!$F$16)/('BP Financier'!$C$16+'BP Financier'!$C$19+'BP Financier'!$D$16+'BP Financier'!$D$19+'BP Financier'!$E$16+'BP Financier'!$E$19+'BP Financier'!$C$22+'BP Financier'!$D$22+'BP Financier'!$E$22+'BP Financier'!$F$16+'BP Financier'!$F$19+'BP Financier'!$F$22))*$V6114*Z6114/(1-$W6114)","v":{"v":183212.72008294167,"d":"183,213"}},{"$f":"'BP Financier'!$F$44*(('BP Financier'!$C$16+'BP Financier'!$D$16+'BP Financier'!$E$16+'BP Financier'!$F$16)/('BP Financier'!$C$16+'BP Financier'!$C$19+'BP Financier'!$D$16+'BP Financier'!$D$19+'BP Financier'!$E$16+'BP Financier'!$E$19+'BP Financier'!$C$22+'BP Financier'!$D$22+'BP Financier'!$E$22+'BP Financier'!$F$16+'BP Financier'!$F$19+'BP Financier'!$F$22))*$V6114*AA6114/(1-$W6114)","v":{"v":22635.573653330703,"d":"22,636"}},{"$f":"'BP Financier'!$F$44*(('BP Financier'!$C$16+'BP Financier'!$D$16+'BP Financier'!$E$16+'BP Financier'!$F$16)/('BP Financier'!$C$16+'BP Financier'!$C$19+'BP Financier'!$D$16+'BP Financier'!$D$19+'BP Financier'!$E$16+'BP Financier'!$E$19+'BP Financier'!$C$22+'BP Financier'!$D$22+'BP Financier'!$E$22+'BP Financier'!$F$16+'BP Financier'!$F$19+'BP Financier'!$F$22))*$V6114*AB6114/(1-$W6114)","v":{"v":10834.120722961703,"d":"10,834"}},null,{"v":1.25E-3,"d":"0.13%"},{"$f":"Actif!$E$28/100","v":{"v":0.28900000000000003,"d":"28.90%"}},{"$f":"Actif!$E$30/100","v":{"v":0.09050000000000001,"d":"9.05%"}},{"$f":"Actif!$E$31/100","v":{"v":0.0605,"d":"6.05%"}},{"$f":"Actif!$E$32/100","v":{"v":0.47350000000000003,"d":"47.35%"}},{"$f":"Actif!$E$33/100","v":{"v":0.0585,"d":"5.85%"}},{"$f":"Actif!$E$29/100","v":{"v":0.027999999999999997,"d":"2.80%"}}]
[null,"#8",19,2030,"H","A_VIE",{"v":0.44999999999999996,"d":"0.45"},{"v":0.38999999999999996,"d":"0.39"},0.6,0.6,85,0,{"$f":"ROUND(Primes!$P$4*V6115,0)","v":12},{"$f":"'BP Financier'!$F$33*(('BP Financier'!$C$16+'BP Financier'!$D$16+'BP Financier'!$E$16+'BP Financier'!$F$16)/('BP Financier'!$C$16+'BP Financier'!$C$19+'BP Financier'!$D$16+'BP Financier'!$D$19+'BP Financier'!$E$16+'BP Financier'!$E$19+'BP Financier'!$F$16+'BP Financier'!$F$19))*V6115","v":{"v":484971.6977773321,"d":"484,972"}},{"v":275109.2797866347,"d":"275,109"},{"$f":"'BP Financier'!$F$44*(('BP Financier'!$C$16+'BP Financier'!$D$16+'BP Financier'!$E$16+'BP Financier'!$F$16)/('BP Financier'!$C$16+'BP Financier'!$C$19+'BP Financier'!$D$16+'BP Financier'!$D$19+'BP Financier'!$E$16+'BP Financier'!$E$19+'BP Financier'!$C$22+'BP Financier'!$D$22+'BP Financier'!$E$22+'BP Financier'!$F$16+'BP Financier'!$F$19+'BP Financier'!$F$22))*$V6115*X6115/(1-$W6115)","v":{"v":35017.42590814408,"d":"35,017"}},{"$f":"'BP Financier'!$F$44*(('BP Financier'!$C$16+'BP Financier'!$D$16+'BP Financier'!$E$16+'BP Financier'!$F$16)/('BP Financier'!$C$16+'BP Financier'!$C$19+'BP Financier'!$D$16+'BP Financier'!$D$19+'BP Financier'!$E$16+'BP Financier'!$E$19+'BP Financier'!$C$22+'BP Financier'!$D$22+'BP Financier'!$E$22+'BP Financier'!$F$16+'BP Financier'!$F$19+'BP Financier'!$F$22))*$V6115*Y6115/(1-$W6115)","v":{"v":23409.439419256538,"d":"23,409"}},{"$f":"'BP Financier'!$F$44*(('BP Financier'!$C$16+'BP Financier'!$D$16+'BP Financier'!$E$16+'BP Financier'!$F$16)/('BP Financier'!$C$16+'BP Financier'!$C$19+'BP Financier'!$D$16+'BP Financier'!$D$19+'BP Financier'!$E$16+'BP Financier'!$E$19+'BP Financier'!$C$22+'BP Financier'!$D$22+'BP Financier'!$E$22+'BP Financier'!$F$16+'BP Financier'!$F$19+'BP Financier'!$F$22))*$V6115*Z6115/(1-$W6115)","v":{"v":183212.72008294167,"d":"183,213"}},{"$f":"'BP Financier'!$F$44*(('BP Financier'!$C$16+'BP Financier'!$D$16+'BP Financier'!$E$16+'BP Financier'!$F$16)/('BP Financier'!$C$16+'BP Financier'!$C$19+'BP Financier'!$D$16+'BP Financier'!$D$19+'BP Financier'!$E$16+'BP Financier'!$E$19+'BP Financier'!$C$22+'BP Financier'!$D$22+'BP Financier'!$E$22+'BP Financier'!$F$16+'BP Financier'!$F$19+'BP Financier'!$F$22))*$V6115*AA6115/(1-$W6115)","v":{"v":22635.573653330703,"d":"22,636"}},{"$f":"'BP Financier'!$F$44*(('BP Financier'!$C$16+'BP Financier'!$D$16+'BP Financier'!$E$16+'BP Financier'!$F$16)/('BP Financier'!$C$16+'BP Financier'!$C$19+'BP Financier'!$D$16+'BP Financier'!$D$19+'BP Financier'!$E$16+'BP Financier'!$E$19+'BP Financier'!$C$22+'BP Financier'!$D$22+'BP Financier'!$E$22+'BP Financier'!$F$16+'BP Financier'!$F$19+'BP Financier'!$F$22))*$V6115*AB6115/(1-$W6115)","v":{"v":10834.120722961703,"d":"10,834"}},null,{"v":1.25E-3,"d":"0.13%"},{"$f":"Actif!$E$28/100","v":{"v":0.28900000000000003,"d":"28.90%"}},{"$f":"Actif!$E$30/100","v":{"v":0.09050000000000001,"d":"9.05%"}},{"$f":"Actif!$E$31/100","v":{"v":0.0605,"d":"6.05%"}},{"$f":"Actif!$E$32/100","v":{"v":0.47350000000000003,"d":"47.35%"}},{"$f":"Actif!$E$33/100","v":{"v":0.0585,"d":"5.85%"}},{"$f":"Actif!$E$29/100","v":{"v":0.027999999999999997,"d":"2.80%"}}]
[null,"#9",20,2026,"F","A_VIE",{"v":0.44999999999999996,"d":"0.45"},{"v":0.38999999999999996,"d":"0.39"},0.6,0.6,85,0,{"$f":"ROUND(Primes!$P$4*V6116,0)","v":24},{"$f":"'BP Financier'!$F$33*(('BP Financier'!$C$16+'BP Financier'!$D$16+'BP Financier'!$E$16+'BP Financier'!$F$16)/('BP Financier'!$C$16+'BP Financier'!$C$19+'BP Financier'!$D$16+'BP Financier'!$D$19+'BP Financier'!$E$16+'BP Financier'!$E$19+'BP Financier'!$F$16+'BP Financier'!$F$19))*V6116","v":{"v":969943.3955546642,"d":"969,943"}},{"v":550218.5595732694,"d":"550,219"},{"$f":"'BP Financier'!$F$44*(('BP Financier'!$C$16+'BP Financier'!$D$16+'BP Financier'!$E$16+'BP Financier'!$F$16)/('BP Financier'!$C$16+'BP Financier'!$C$19+'BP Financier'!$D$16+'BP Financier'!$D$19+'BP Financier'!$E$16+'BP Financier'!$E$19+'BP Financier'!$C$22+'BP Financier'!$D$22+'BP Financier'!$E$22+'BP Financier'!$F$16+'BP Financier'!$F$19+'BP Financier'!$F$22))*$V6116*X6116/(1-$W6116)","v":{"v":70034.85181628817,"d":"70,035"}},{"$f":"'BP Financier'!$F$44*(('BP Financier'!$C$16+'BP Financier'!$D$16+'BP Financier'!$E$16+'BP Financier'!$F$16)/('BP Financier'!$C$16+'BP Financier'!$C$19+'BP Financier'!$D$16+'BP Financier'!$D$19+'BP Financier'!$E$16+'BP Financier'!$E$19+'BP Financier'!$C$22+'BP Financier'!$D$22+'BP Financier'!$E$22+'BP Financier'!$F$16+'BP Financier'!$F$19+'BP Financier'!$F$22))*$V6116*Y6116/(1-$W6116)","v":{"v":46818.878838513076,"d":"46,819"}},{"$f":"'BP Financier'!$F$44*(('BP Financier'!$C$16+'BP Financier'!$D$16+'BP Financier'!$E$16+'BP Financier'!$F$16)/('BP Financier'!$C$16+'BP Financier'!$C$19+'BP Financier'!$D$16+'BP Financier'!$D$19+'BP Financier'!$E$16+'BP Financier'!$E$19+'BP Financier'!$C$22+'BP Financier'!$D$22+'BP Financier'!$E$22+'BP Financier'!$F$16+'BP Financier'!$F$19+'BP Financier'!$F$22))*$V6116*Z6116/(1-$W6116)","v":{"v":366425.44016588334,"d":"366,425"}},{"$f":"'BP Financier'!$F$44*(('BP Financier'!$C$16+'BP Financier'!$D$16+'BP Financier'!$E$16+'BP Financier'!$F$16)/('BP Financier'!$C$16+'BP Financier'!$C$19+'BP Financier'!$D$16+'BP Financier'!$D$19+'BP Financier'!$E$16+'BP Financier'!$E$19+'BP Financier'!$C$22+'BP Financier'!$D$22+'BP Financier'!$E$22+'BP Financier'!$F$16+'BP Financier'!$F$19+'BP Financier'!$F$22))*$V6116*AA6116/(1-$W6116)","v":{"v":45271.147306661405,"d":"45,271"}},{"$f":"'BP Financier'!$F$44*(('BP Financier'!$C$16+'BP Financier'!$D$16+'BP Financier'!$E$16+'BP Financier'!$F$16)/('BP Financier'!$C$16+'BP Financier'!$C$19+'BP Financier'!$D$16+'BP Financier'!$D$19+'BP Financier'!$E$16+'BP Financier'!$E$19+'BP Financier'!$C$22+'BP Financier'!$D$22+'BP Financier'!$E$22+'BP Financier'!$F$16+'BP Financier'!$F$19+'BP Financier'!$F$22))*$V6116*AB6116/(1-$W6116)","v":{"v":21668.241445923406,"d":"21,668"}},null,{"v":0.0025,"d":"0.25%"},{"$f":"Actif!$E$28/100","v":{"v":0.28900000000000003,"d":"28.90%"}},{"$f":"Actif!$E$30/100","v":{"v":0.09050000000000001,"d":"9.05%"}},{"$f":"Actif!$E$31/100","v":{"v":0.0605,"d":"6.05%"}},{"$f":"Actif!$E$32/100","v":{"v":0.47350000000000003,"d":"47.35%"}},{"$f":"Actif!$E$33/100","v":{"v":0.0585,"d":"5.85%"}},{"$f":"Actif!$E$29/100","v":{"v":0.027999999999999997,"d":"2.80%"}}]
[null,"#10",20,2028,"F","A_VIE",{"v":0.44999999999999996,"d":"0.45"},{"v":0.38999999999999996,"d":"0.39"},0.6,0.6,85,0,{"$f":"ROUND(Primes!$P$4*V6117,0)","v":24},{"$f":"'BP Financier'!$F$33*(('BP Financier'!$C$16+'BP Financier'!$D$16+'BP Financier'!$E$16+'BP Financier'!$F$16)/('BP Financier'!$C$16+'BP Financier'!$C$19+'BP Financier'!$D$16+'BP Financier'!$D$19+'BP Financier'!$E$16+'BP Financier'!$E$19+'BP Financier'!$F$16+'BP Financier'!$F$19))*V6117","v":{"v":969943.3955546642,"d":"969,943"}},{"v":550218.5595732694,"d":"550,219"},{"$f":"'BP Financier'!$F$44*(('BP Financier'!$C$16+'BP Financier'!$D$16+'BP Financier'!$E$16+'BP Financier'!$F$16)/('BP Financier'!$C$16+'BP Financier'!$C$19+'BP Financier'!$D$16+'BP Financier'!$D$19+'BP Financier'!$E$16+'BP Financier'!$E$19+'BP Financier'!$C$22+'BP Financier'!$D$22+'BP Financier'!$E$22+'BP Financier'!$F$16+'BP Financier'!$F$19+'BP Financier'!$F$22))*$V6117*X6117/(1-$W6117)","v":{"v":70034.85181628817,"d":"70,035"}},{"$f":"'BP Financier'!$F$44*(('BP Financier'!$C$16+'BP Financier'!$D$16+'BP Financier'!$E$16+'BP Financier'!$F$16)/('BP Financier'!$C$16+'BP Financier'!$C$19+'BP Financier'!$D$16+'BP Financier'!$D$19+'BP Financier'!$E$16+'BP Financier'!$E$19+'BP Financier'!$C$22+'BP Financier'!$D$22+'BP Financier'!$E$22+'BP Financier'!$F$16+'BP Financier'!$F$19+'BP Financier'!$F$22))*$V6117*Y6117/(1-$W6117)","v":{"v":46818.878838513076,"d":"46,819"}},{"$f":"'BP Financier'!$F$44*(('BP Financier'!$C$16+'BP Financier'!$D$16+'BP Financier'!$E$16+'BP Financier'!$F$16)/('BP Financier'!$C$16+'BP Financier'!$C$19+'BP Financier'!$D$16+'BP Financier'!$D$19+'BP Financier'!$E$16+'BP Financier'!$E$19+'BP Financier'!$C$22+'BP Financier'!$D$22+'BP Financier'!$E$22+'BP Financier'!$F$16+'BP Financier'!$F$19+'BP Financier'!$F$22))*$V6117*Z6117/(1-$W6117)","v":{"v":366425.44016588334,"d":"366,425"}},{"$f":"'BP Financier'!$F$44*(('BP Financier'!$C$16+'BP Financier'!$D$16+'BP Financier'!$E$16+'BP Financier'!$F$16)/('BP Financier'!$C$16+'BP Financier'!$C$19+'BP Financier'!$D$16+'BP Financier'!$D$19+'BP Financier'!$E$16+'BP Financier'!$E$19+'BP Financier'!$C$22+'BP Financier'!$D$22+'BP Financier'!$E$22+'BP Financier'!$F$16+'BP Financier'!$F$19+'BP Financier'!$F$22))*$V6117*AA6117/(1-$W6117)","v":{"v":45271.147306661405,"d":"45,271"}},{"$f":"'BP Financier'!$F$44*(('BP Financier'!$C$16+'BP Financier'!$D$16+'BP Financier'!$E$16+'BP Financier'!$F$16)/('BP Financier'!$C$16+'BP Financier'!$C$19+'BP Financier'!$D$16+'BP Financier'!$D$19+'BP Financier'!$E$16+'BP Financier'!$E$19+'BP Financier'!$C$22+'BP Financier'!$D$22+'BP Financier'!$E$22+'BP Financier'!$F$16+'BP Financier'!$F$19+'BP Financier'!$F$22))*$V6117*AB6117/(1-$W6117)","v":{"v":21668.241445923406,"d":"21,668"}},null,{"v":0.0025,"d":"0.25%"},{"$f":"Actif!$E$28/100","v":{"v":0.28900000000000003,"d":"28.90%"}},{"$f":"Actif!$E$30/100","v":{"v":0.09050000000000001,"d":"9.05%"}},{"$f":"Actif!$E$31/100","v":{"v":0.0605,"d":"6.05%"}},{"$f":"Actif!$E$32/100","v":{"v":0.47350000000000003,"d":"47.35%"}},{"$f":"Actif!$E$33/100","v":{"v":0.0585,"d":"5.85%"}},{"$f":"Actif!$E$29/100","v":{"v":0.027999999999999997,"d":"2.80%"}}]
[null,"#11",20,2029,"F","A_VIE",{"v":0.44999999999999996,"d":"0.45"},{"v":0.38999999999999996,"d":"0.39"},0.6,0.6,85,0,{"$f":"ROUND(Primes!$P$4*V6118,0)","v":24},{"$f":"'BP Financier'!$F$33*(('BP Financier'!$C$16+'BP Financier'!$D$16+'BP Financier'!$E$16+'BP Financier'!$F$16)/('BP Financier'!$C$16+'BP Financier'!$C$19+'BP Financier'!$D$16+'BP Financier'!$D$19+'BP Financier'!$E$16+'BP Financier'!$E$19+'BP Financier'!$F$16+'BP Financier'!$F$19))*V6118","v":{"v":969943.3955546642,"d":"969,943"}},{"v":550218.5595732694,"d":"550,219"},{"$f":"'BP Financier'!$F$44*(('BP Financier'!$C$16+'BP Financier'!$D$16+'BP Financier'!$E$16+'BP Financier'!$F$16)/('BP Financier'!$C$16+'BP Financier'!$C$19+'BP Financier'!$D$16+'BP Financier'!$D$19+'BP Financier'!$E$16+'BP Financier'!$E$19+'BP Financier'!$C$22+'BP Financier'!$D$22+'BP Financier'!$E$22+'BP Financier'!$F$16+'BP Financier'!$F$19+'BP Financier'!$F$22))*$V6118*X6118/(1-$W6118)","v":{"v":70034.85181628817,"d":"70,035"}},{"$f":"'BP Financier'!$F$44*(('BP Financier'!$C$16+'BP Financier'!$D$16+'BP Financier'!$E$16+'BP Financier'!$F$16)/('BP Financier'!$C$16+'BP Financier'!$C$19+'BP Financier'!$D$16+'BP Financier'!$D$19+'BP Financier'!$E$16+'BP Financier'!$E$19+'BP Financier'!$C$22+'BP Financier'!$D$22+'BP Financier'!$E$22+'BP Financier'!$F$16+'BP Financier'!$F$19+'BP Financier'!$F$22))*$V6118*Y6118/(1-$W6118)","v":{"v":46818.878838513076,"d":"46,819"}},{"$f":"'BP Financier'!$F$44*(('BP Financier'!$C$16+'BP Financier'!$D$16+'BP Financier'!$E$16+'BP Financier'!$F$16)/('BP Financier'!$C$16+'BP Financier'!$C$19+'BP Financier'!$D$16+'BP Financier'!$D$19+'BP Financier'!$E$16+'BP Financier'!$E$19+'BP Financier'!$C$22+'BP Financier'!$D$22+'BP Financier'!$E$22+'BP Financier'!$F$16+'BP Financier'!$F$19+'BP Financier'!$F$22))*$V6118*Z6118/(1-$W6118)","v":{"v":366425.44016588334,"d":"366,425"}},{"$f":"'BP Financier'!$F$44*(('BP Financier'!$C$16+'BP Financier'!$D$16+'BP Financier'!$E$16+'BP Financier'!$F$16)/('BP Financier'!$C$16+'BP Financier'!$C$19+'BP Financier'!$D$16+'BP Financier'!$D$19+'BP Financier'!$E$16+'BP Financier'!$E$19+'BP Financier'!$C$22+'BP Financier'!$D$22+'BP Financier'!$E$22+'BP Financier'!$F$16+'BP Financier'!$F$19+'BP Financier'!$F$22))*$V6118*AA6118/(1-$W6118)","v":{"v":45271.147306661405,"d":"45,271"}},{"$f":"'BP Financier'!$F$44*(('BP Financier'!$C$16+'BP Financier'!$D$16+'BP Financier'!$E$16+'BP Financier'!$F$16)/('BP Financier'!$C$16+'BP Financier'!$C$19+'BP Financier'!$D$16+'BP Financier'!$D$19+'BP Financier'!$E$16+'BP Financier'!$E$19+'BP Financier'!$C$22+'BP Financier'!$D$22+'BP Financier'!$E$22+'BP Financier'!$F$16+'BP Financier'!$F$19+'BP Financier'!$F$22))*$V6118*AB6118/(1-$W6118)","v":{"v":21668.241445923406,"d":"21,668"}},null,{"v":0.0025,"d":"0.25%"},{"$f":"Actif!$E$28/100","v":{"v":0.28900000000000003,"d":"28.90%"}},{"$f":"Actif!$E$30/100","v":{"v":0.09050000000000001,"d":"9.05%"}},{"$f":"Actif!$E$31/100","v":{"v":0.0605,"d":"6.05%"}},{"$f":"Actif!$E$32/100","v":{"v":0.47350000000000003,"d":"47.35%"}},{"$f":"Actif!$E$33/100","v":{"v":0.0585,"d":"5.85%"}},{"$f":"Actif!$E$29/100","v":{"v":0.027999999999999997,"d":"2.80%"}}]
[null,"#12",20,2030,"F","A_VIE",{"v":0.44999999999999996,"d":"0.45"},{"v":0.38999999999999996,"d":"0.39"},0.6,0.6,85,0,{"$f":"ROUND(Primes!$P$4*V6119,0)","v":24},{"$f":"'BP Financier'!$F$33*(('BP Financier'!$C$16+'BP Financier'!$D$16+'BP Financier'!$E$16+'BP Financier'!$F$16)/('BP Financier'!$C$16+'BP Financier'!$C$19+'BP Financier'!$D$16+'BP Financier'!$D$19+'BP Financier'!$E$16+'BP Financier'!$E$19+'BP Financier'!$F$16+'BP Financier'!$F$19))*V6119","v":{"v":969943.3955546642,"d":"969,943"}},{"v":550218.5595732694,"d":"550,219"},{"$f":"'BP Financier'!$F$44*(('BP Financier'!$C$16+'BP Financier'!$D$16+'BP Financier'!$E$16+'BP Financier'!$F$16)/('BP Financier'!$C$16+'BP Financier'!$C$19+'BP Financier'!$D$16+'BP Financier'!$D$19+'BP Financier'!$E$16+'BP Financier'!$E$19+'BP Financier'!$C$22+'BP Financier'!$D$22+'BP Financier'!$E$22+'BP Financier'!$F$16+'BP Financier'!$F$19+'BP Financier'!$F$22))*$V6119*X6119/(1-$W6119)","v":{"v":70034.85181628817,"d":"70,035"}},{"$f":"'BP Financier'!$F$44*(('BP Financier'!$C$16+'BP Financier'!$D$16+'BP Financier'!$E$16+'BP Financier'!$F$16)/('BP Financier'!$C$16+'BP Financier'!$C$19+'BP Financier'!$D$16+'BP Financier'!$D$19+'BP Financier'!$E$16+'BP Financier'!$E$19+'BP Financier'!$C$22+'BP Financier'!$D$22+'BP Financier'!$E$22+'BP Financier'!$F$16+'BP Financier'!$F$19+'BP Financier'!$F$22))*$V6119*Y6119/(1-$W6119)","v":{"v":46818.878838513076,"d":"46,819"}},{"$f":"'BP Financier'!$F$44*(('BP Financier'!$C$16+'BP Financier'!$D$16+'BP Financier'!$E$16+'BP Financier'!$F$16)/('BP Financier'!$C$16+'BP Financier'!$C$19+'BP Financier'!$D$16+'BP Financier'!$D$19+'BP Financier'!$E$16+'BP Financier'!$E$19+'BP Financier'!$C$22+'BP Financier'!$D$22+'BP Financier'!$E$22+'BP Financier'!$F$16+'BP Financier'!$F$19+'BP Financier'!$F$22))*$V6119*Z6119/(1-$W6119)","v":{"v":366425.44016588334,"d":"366,425"}},{"$f":"'BP Financier'!$F$44*(('BP Financier'!$C$16+'BP Financier'!$D$16+'BP Financier'!$E$16+'BP Financier'!$F$16)/('BP Financier'!$C$16+'BP Financier'!$C$19+'BP Financier'!$D$16+'BP Financier'!$D$19+'BP Financier'!$E$16+'BP Financier'!$E$19+'BP Financier'!$C$22+'BP Financier'!$D$22+'BP Financier'!$E$22+'BP Financier'!$F$16+'BP Financier'!$F$19+'BP Financier'!$F$22))*$V6119*AA6119/(1-$W6119)","v":{"v":45271.147306661405,"d":"45,271"}},{"$f":"'BP Financier'!$F$44*(('BP Financier'!$C$16+'BP Financier'!$D$16+'BP Financier'!$E$16+'BP Financier'!$F$16)/('BP Financier'!$C$16+'BP Financier'!$C$19+'BP Financier'!$D$16+'BP Financier'!$D$19+'BP Financier'!$E$16+'BP Financier'!$E$19+'BP Financier'!$C$22+'BP Financier'!$D$22+'BP Financier'!$E$22+'BP Financier'!$F$16+'BP Financier'!$F$19+'BP Financier'!$F$22))*$V6119*AB6119/(1-$W6119)","v":{"v":21668.241445923406,"d":"21,668"}},null,{"v":0.0025,"d":"0.25%"},{"$f":"Actif!$E$28/100","v":{"v":0.28900000000000003,"d":"28.90%"}},{"$f":"Actif!$E$30/100","v":{"v":0.09050000000000001,"d":"9.05%"}},{"$f":"Actif!$E$31/100","v":{"v":0.0605,"d":"6.05%"}},{"$f":"Actif!$E$32/100","v":{"v":0.47350000000000003,"d":"47.35%"}},{"$f":"Actif!$E$33/100","v":{"v":0.0585,"d":"5.85%"}},{"$f":"Actif!$E$29/100","v":{"v":0.027999999999999997,"d":"2.80%"}}]
[null,"#13",21,2026,"H","A_VIE",{"v":0.44999999999999996,"d":"0.45"},{"v":0.38999999999999996,"d":"0.39"},0.6,0.6,85,0,{"$f":"ROUND(Primes!$P$4*V6120,0)","v":24},{"$f":"'BP Financier'!$F$33*(('BP Financier'!$C$16+'BP Financier'!$D$16+'BP Financier'!$E$16+'BP Financier'!$F$16)/('BP Financier'!$C$16+'BP Financier'!$C$19+'BP Financier'!$D$16+'BP Financier'!$D$19+'BP Financier'!$E$16+'BP Financier'!$E$19+'BP Financier'!$F$16+'BP Financier'!$F$19))*V6120","v":{"v":969943.3955546642,"d":"969,943"}},{"v":550218.5595732694,"d":"550,219"},{"$f":"'BP Financier'!$F$44*(('BP Financier'!$C$16+'BP Financier'!$D$16+'BP Financier'!$E$16+'BP Financier'!$F$16)/('BP Financier'!$C$16+'BP Financier'!$C$19+'BP Financier'!$D$16+'BP Financier'!$D$19+'BP Financier'!$E$16+'BP Financier'!$E$19+'BP Financier'!$C$22+'BP Financier'!$D$22+'BP Financier'!$E$22+'BP Financier'!$F$16+'BP Financier'!$F$19+'BP Financier'!$F$22))*$V6120*X6120/(1-$W6120)","v":{"v":70034.85181628817,"d":"70,035"}},{"$f":"'BP Financier'!$F$44*(('BP Financier'!$C$16+'BP Financier'!$D$16+'BP Financier'!$E$16+'BP Financier'!$F$16)/('BP Financier'!$C$16+'BP Financier'!$C$19+'BP Financier'!$D$16+'BP Financier'!$D$19+'BP Financier'!$E$16+'BP Financier'!$E$19+'BP Financier'!$C$22+'BP Financier'!$D$22+'BP Financier'!$E$22+'BP Financier'!$F$16+'BP Financier'!$F$19+'BP Financier'!$F$22))*$V6120*Y6120/(1-$W6120)","v":{"v":46818.878838513076,"d":"46,819"}},{"$f":"'BP Financier'!$F$44*(('BP Financier'!$C$16+'BP Financier'!$D$16+'BP Financier'!$E$16+'BP Financier'!$F$16)/('BP Financier'!$C$16+'BP Financier'!$C$19+'BP Financier'!$D$16+'BP Financier'!$D$19+'BP Financier'!$E$16+'BP Financier'!$E$19+'BP Financier'!$C$22+'BP Financier'!$D$22+'BP Financier'!$E$22+'BP Financier'!$F$16+'BP Financier'!$F$19+'BP Financier'!$F$22))*$V6120*Z6120/(1-$W6120)","v":{"v":366425.44016588334,"d":"366,425"}},{"$f":"'BP Financier'!$F$44*(('BP Financier'!$C$16+'BP Financier'!$D$16+'BP Financier'!$E$16+'BP Financier'!$F$16)/('BP Financier'!$C$16+'BP Financier'!$C$19+'BP Financier'!$D$16+'BP Financier'!$D$19+'BP Financier'!$E$16+'BP Financier'!$E$19+'BP Financier'!$C$22+'BP Financier'!$D$22+'BP Financier'!$E$22+'BP Financier'!$F$16+'BP Financier'!$F$19+'BP Financier'!$F$22))*$V6120*AA6120/(1-$W6120)","v":{"v":45271.147306661405,"d":"45,271"}},{"$f":"'BP Financier'!$F$44*(('BP Financier'!$C$16+'BP Financier'!$D$16+'BP Financier'!$E$16+'BP Financier'!$F$16)/('BP Financier'!$C$16+'BP Financier'!$C$19+'BP Financier'!$D$16+'BP Financier'!$D$19+'BP Financier'!$E$16+'BP Financier'!$E$19+'BP Financier'!$C$22+'BP Financier'!$D$22+'BP Financier'!$E$22+'BP Financier'!$F$16+'BP Financier'!$F$19+'BP Financier'!$F$22))*$V6120*AB6120/(1-$W6120)","v":{"v":21668.241445923406,"d":"21,668"}},null,{"v":0.0025,"d":"0.25%"},{"$f":"Actif!$E$28/100","v":{"v":0.28900000000000003,"d":"28.90%"}},{"$f":"Actif!$E$30/100","v":{"v":0.09050000000000001,"d":"9.05%"}},{"$f":"Actif!$E$31/100","v":{"v":0.0605,"d":"6.05%"}},{"$f":"Actif!$E$32/100","v":{"v":0.47350000000000003,"d":"47.35%"}},{"$f":"Actif!$E$33/100","v":{"v":0.0585,"d":"5.85%"}},{"$f":"Actif!$E$29/100","v":{"v":0.027999999999999997,"d":"2.80%"}}]
[null,"#14",21,2028,"H","A_VIE",{"v":0.44999999999999996,"d":"0.45"},{"v":0.38999999999999996,"d":"0.39"},0.6,0.6,85,0,{"$f":"ROUND(Primes!$P$4*V6121,0)","v":24},{"$f":"'BP Financier'!$F$33*(('BP Financier'!$C$16+'BP Financier'!$D$16+'BP Financier'!$E$16+'BP Financier'!$F$16)/('BP Financier'!$C$16+'BP Financier'!$C$19+'BP Financier'!$D$16+'BP Financier'!$D$19+'BP Financier'!$E$16+'BP Financier'!$E$19+'BP Financier'!$F$16+'BP Financier'!$F$19))*V6121","v":{"v":969943.3955546642,"d":"969,943"}},{"v":550218.5595732694,"d":"550,219"},{"$f":"'BP Financier'!$F$44*(('BP Financier'!$C$16+'BP Financier'!$D$16+'BP Financier'!$E$16+'BP Financier'!$F$16)/('BP Financier'!$C$16+'BP Financier'!$C$19+'BP Financier'!$D$16+'BP Financier'!$D$19+'BP Financier'!$E$16+'BP Financier'!$E$19+'BP Financier'!$C$22+'BP Financier'!$D$22+'BP Financier'!$E$22+'BP Financier'!$F$16+'BP Financier'!$F$19+'BP Financier'!$F$22))*$V6121*X6121/(1-$W6121)","v":{"v":70034.85181628817,"d":"70,035"}},{"$f":"'BP Financier'!$F$44*(('BP Financier'!$C$16+'BP Financier'!$D$16+'BP Financier'!$E$16+'BP Financier'!$F$16)/('BP Financier'!$C$16+'BP Financier'!$C$19+'BP Financier'!$D$16+'BP Financier'!$D$19+'BP Financier'!$E$16+'BP Financier'!$E$19+'BP Financier'!$C$22+'BP Financier'!$D$22+'BP Financier'!$E$22+'BP Financier'!$F$16+'BP Financier'!$F$19+'BP Financier'!$F$22))*$V6121*Y6121/(1-$W6121)","v":{"v":46818.878838513076,"d":"46,819"}},{"$f":"'BP Financier'!$F$44*(('BP Financier'!$C$16+'BP Financier'!$D$16+'BP Financier'!$E$16+'BP Financier'!$F$16)/('BP Financier'!$C$16+'BP Financier'!$C$19+'BP Financier'!$D$16+'BP Financier'!$D$19+'BP Financier'!$E$16+'BP Financier'!$E$19+'BP Financier'!$C$22+'BP Financier'!$D$22+'BP Financier'!$E$22+'BP Financier'!$F$16+'BP Financier'!$F$19+'BP Financier'!$F$22))*$V6121*Z6121/(1-$W6121)","v":{"v":366425.44016588334,"d":"366,425"}},{"$f":"'BP Financier'!$F$44*(('BP Financier'!$C$16+'BP Financier'!$D$16+'BP Financier'!$E$16+'BP Financier'!$F$16)/('BP Financier'!$C$16+'BP Financier'!$C$19+'BP Financier'!$D$16+'BP Financier'!$D$19+'BP Financier'!$E$16+'BP Financier'!$E$19+'BP Financier'!$C$22+'BP Financier'!$D$22+'BP Financier'!$E$22+'BP Financier'!$F$16+'BP Financier'!$F$19+'BP Financier'!$F$22))*$V6121*AA6121/(1-$W6121)","v":{"v":45271.147306661405,"d":"45,271"}},{"$f":"'BP Financier'!$F$44*(('BP Financier'!$C$16+'BP Financier'!$D$16+'BP Financier'!$E$16+'BP Financier'!$F$16)/('BP Financier'!$C$16+'BP Financier'!$C$19+'BP Financier'!$D$16+'BP Financier'!$D$19+'BP Financier'!$E$16+'BP Financier'!$E$19+'BP Financier'!$C$22+'BP Financier'!$D$22+'BP Financier'!$E$22+'BP Financier'!$F$16+'BP Financier'!$F$19+'BP Financier'!$F$22))*$V6121*AB6121/(1-$W6121)","v":{"v":21668.241445923406,"d":"21,668"}},null,{"v":0.0025,"d":"0.25%"},{"$f":"Actif!$E$28/100","v":{"v":0.28900000000000003,"d":"28.90%"}},{"$f":"Actif!$E$30/100","v":{"v":0.09050000000000001,"d":"9.05%"}},{"$f":"Actif!$E$31/100","v":{"v":0.0605,"d":"6.05%"}},{"$f":"Actif!$E$32/100","v":{"v":0.47350000000000003,"d":"47.35%"}},{"$f":"Actif!$E$33/100","v":{"v":0.0585,"d":"5.85%"}},{"$f":"Actif!$E$29/100","v":{"v":0.027999999999999997,"d":"2.80%"}}]
[null,"#15",21,2029,"H","A_VIE",{"v":0.44999999999999996,"d":"0.45"},{"v":0.38999999999999996,"d":"0.39"},0.6,0.6,85,0,{"$f":"ROUND(Primes!$P$4*V6122,0)","v":24},{"$f":"'BP Financier'!$F$33*(('BP Financier'!$C$16+'BP Financier'!$D$16+'BP Financier'!$E$16+'BP Financier'!$F$16)/('BP Financier'!$C$16+'BP Financier'!$C$19+'BP Financier'!$D$16+'BP Financier'!$D$19+'BP Financier'!$E$16+'BP Financier'!$E$19+'BP Financier'!$F$16+'BP Financier'!$F$19))*V6122","v":{"v":969943.3955546642,"d":"969,943"}},{"v":550218.5595732694,"d":"550,219"},{"$f":"'BP Financier'!$F$44*(('BP Financier'!$C$16+'BP Financier'!$D$16+'BP Financier'!$E$16+'BP Financier'!$F$16)/('BP Financier'!$C$16+'BP Financier'!$C$19+'BP Financier'!$D$16+'BP Financier'!$D$19+'BP Financier'!$E$16+'BP Financier'!$E$19+'BP Financier'!$C$22+'BP Financier'!$D$22+'BP Financier'!$E$22+'BP Financier'!$F$16+'BP Financier'!$F$19+'BP Financier'!$F$22))*$V6122*X6122/(1-$W6122)","v":{"v":70034.85181628817,"d":"70,035"}},{"$f":"'BP Financier'!$F$44*(('BP Financier'!$C$16+'BP Financier'!$D$16+'BP Financier'!$E$16+'BP Financier'!$F$16)/('BP Financier'!$C$16+'BP Financier'!$C$19+'BP Financier'!$D$16+'BP Financier'!$D$19+'BP Financier'!$E$16+'BP Financier'!$E$19+'BP Financier'!$C$22+'BP Financier'!$D$22+'BP Financier'!$E$22+'BP Financier'!$F$16+'BP Financier'!$F$19+'BP Financier'!$F$22))*$V6122*Y6122/(1-$W6122)","v":{"v":46818.878838513076,"d":"46,819"}},{"$f":"'BP Financier'!$F$44*(('BP Financier'!$C$16+'BP Financier'!$D$16+'BP Financier'!$E$16+'BP Financier'!$F$16)/('BP Financier'!$C$16+'BP Financier'!$C$19+'BP Financier'!$D$16+'BP Financier'!$D$19+'BP Financier'!$E$16+'BP Financier'!$E$19+'BP Financier'!$C$22+'BP Financier'!$D$22+'BP Financier'!$E$22+'BP Financier'!$F$16+'BP Financier'!$F$19+'BP Financier'!$F$22))*$V6122*Z6122/(1-$W6122)","v":{"v":366425.44016588334,"d":"366,425"}},{"$f":"'BP Financier'!$F$44*(('BP Financier'!$C$16+'BP Financier'!$D$16+'BP Financier'!$E$16+'BP Financier'!$F$16)/('BP Financier'!$C$16+'BP Financier'!$C$19+'BP Financier'!$D$16+'BP Financier'!$D$19+'BP Financier'!$E$16+'BP Financier'!$E$19+'BP Financier'!$C$22+'BP Financier'!$D$22+'BP Financier'!$E$22+'BP Financier'!$F$16+'BP Financier'!$F$19+'BP Financier'!$F$22))*$V6122*AA6122/(1-$W6122)","v":{"v":45271.147306661405,"d":"45,271"}},{"$f":"'BP Financier'!$F$44*(('BP Financier'!$C$16+'BP Financier'!$D$16+'BP Financier'!$E$16+'BP Financier'!$F$16)/('BP Financier'!$C$16+'BP Financier'!$C$19+'BP Financier'!$D$16+'BP Financier'!$D$19+'BP Financier'!$E$16+'BP Financier'!$E$19+'BP Financier'!$C$22+'BP Financier'!$D$22+'BP Financier'!$E$22+'BP Financier'!$F$16+'BP Financier'!$F$19+'BP Financier'!$F$22))*$V6122*AB6122/(1-$W6122)","v":{"v":21668.241445923406,"d":"21,668"}},null,{"v":0.0025,"d":"0.25%"},{"$f":"Actif!$E$28/100","v":{"v":0.28900000000000003,"d":"28.90%"}},{"$f":"Actif!$E$30/100","v":{"v":0.09050000000000001,"d":"9.05%"}},{"$f":"Actif!$E$31/100","v":{"v":0.0605,"d":"6.05%"}},{"$f":"Actif!$E$32/100","v":{"v":0.47350000000000003,"d":"47.35%"}},{"$f":"Actif!$E$33/100","v":{"v":0.0585,"d":"5.85%"}},{"$f":"Actif!$E$29/100","v":{"v":0.027999999999999997,"d":"2.80%"}}]
[null,"#16",21,2030,"H","A_VIE",{"v":0.44999999999999996,"d":"0.45"},{"v":0.38999999999999996,"d":"0.39"},0.6,0.6,85,0,{"$f":"ROUND(Primes!$P$4*V6123,0)","v":24},{"$f":"'BP Financier'!$F$33*(('BP Financier'!$C$16+'BP Financier'!$D$16+'BP Financier'!$E$16+'BP Financier'!$F$16)/('BP Financier'!$C$16+'BP Financier'!$C$19+'BP Financier'!$D$16+'BP Financier'!$D$19+'BP Financier'!$E$16+'BP Financier'!$E$19+'BP Financier'!$F$16+'BP Financier'!$F$19))*V6123","v":{"v":969943.3955546642,"d":"969,943"}},{"v":550218.5595732694,"d":"550,219"},{"$f":"'BP Financier'!$F$44*(('BP Financier'!$C$16+'BP Financier'!$D$16+'BP Financier'!$E$16+'BP Financier'!$F$16)/('BP Financier'!$C$16+'BP Financier'!$C$19+'BP Financier'!$D$16+'BP Financier'!$D$19+'BP Financier'!$E$16+'BP Financier'!$E$19+'BP Financier'!$C$22+'BP Financier'!$D$22+'BP Financier'!$E$22+'BP Financier'!$F$16+'BP Financier'!$F$19+'BP Financier'!$F$22))*$V6123*X6123/(1-$W6123)","v":{"v":70034.85181628817,"d":"70,035"}},{"$f":"'BP Financier'!$F$44*(('BP Financier'!$C$16+'BP Financier'!$D$16+'BP Financier'!$E$16+'BP Financier'!$F$16)/('BP Financier'!$C$16+'BP Financier'!$C$19+'BP Financier'!$D$16+'BP Financier'!$D$19+'BP Financier'!$E$16+'BP Financier'!$E$19+'BP Financier'!$C$22+'BP Financier'!$D$22+'BP Financier'!$E$22+'BP Financier'!$F$16+'BP Financier'!$F$19+'BP Financier'!$F$22))*$V6123*Y6123/(1-$W6123)","v":{"v":46818.878838513076,"d":"46,819"}},{"$f":"'BP Financier'!$F$44*(('BP Financier'!$C$16+'BP Financier'!$D$16+'BP Financier'!$E$16+'BP Financier'!$F$16)/('BP Financier'!$C$16+'BP Financier'!$C$19+'BP Financier'!$D$16+'BP Financier'!$D$19+'BP Financier'!$E$16+'BP Financier'!$E$19+'BP Financier'!$C$22+'BP Financier'!$D$22+'BP Financier'!$E$22+'BP Financier'!$F$16+'BP Financier'!$F$19+'BP Financier'!$F$22))*$V6123*Z6123/(1-$W6123)","v":{"v":366425.44016588334,"d":"366,425"}},{"$f":"'BP Financier'!$F$44*(('BP Financier'!$C$16+'BP Financier'!$D$16+'BP Financier'!$E$16+'BP Financier'!$F$16)/('BP Financier'!$C$16+'BP Financier'!$C$19+'BP Financier'!$D$16+'BP Financier'!$D$19+'BP Financier'!$E$16+'BP Financier'!$E$19+'BP Financier'!$C$22+'BP Financier'!$D$22+'BP Financier'!$E$22+'BP Financier'!$F$16+'BP Financier'!$F$19+'BP Financier'!$F$22))*$V6123*AA6123/(1-$W6123)","v":{"v":45271.147306661405,"d":"45,271"}},{"$f":"'BP Financier'!$F$44*(('BP Financier'!$C$16+'BP Financier'!$D$16+'BP Financier'!$E$16+'BP Financier'!$F$16)/('BP Financier'!$C$16+'BP Financier'!$C$19+'BP Financier'!$D$16+'BP Financier'!$D$19+'BP Financier'!$E$16+'BP Financier'!$E$19+'BP Financier'!$C$22+'BP Financier'!$D$22+'BP Financier'!$E$22+'BP Financier'!$F$16+'BP Financier'!$F$19+'BP Financier'!$F$22))*$V6123*AB6123/(1-$W6123)","v":{"v":21668.241445923406,"d":"21,668"}},null,{"v":0.0025,"d":"0.25%"},{"$f":"Actif!$E$28/100","v":{"v":0.28900000000000003,"d":"28.90%"}},{"$f":"Actif!$E$30/100","v":{"v":0.09050000000000001,"d":"9.05%"}},{"$f":"Actif!$E$31/100","v":{"v":0.0605,"d":"6.05%"}},{"$f":"Actif!$E$32/100","v":{"v":0.47350000000000003,"d":"47.35%"}},{"$f":"Actif!$E$33/100","v":{"v":0.0585,"d":"5.85%"}},{"$f":"Actif!$E$29/100","v":{"v":0.027999999999999997,"d":"2.80%"}}]
[null,"#17",22,2026,"H","A_VIE",{"v":0.44999999999999996,"d":"0.45"},{"v":0.38999999999999996,"d":"0.39"},0.6,0.6,85,0,{"$f":"ROUND(Primes!$P$4*V6124,0)","v":24},{"$f":"'BP Financier'!$F$33*(('BP Financier'!$C$16+'BP Financier'!$D$16+'BP Financier'!$E$16+'BP Financier'!$F$16)/('BP Financier'!$C$16+'BP Financier'!$C$19+'BP Financier'!$D$16+'BP Financier'!$D$19+'BP Financier'!$E$16+'BP Financier'!$E$19+'BP Financier'!$F$16+'BP Financier'!$F$19))*V6124","v":{"v":969943.3955546642,"d":"969,943"}},{"v":550218.5595732694,"d":"550,219"},{"$f":"'BP Financier'!$F$44*(('BP Financier'!$C$16+'BP Financier'!$D$16+'BP Financier'!$E$16+'BP Financier'!$F$16)/('BP Financier'!$C$16+'BP Financier'!$C$19+'BP Financier'!$D$16+'BP Financier'!$D$19+'BP Financier'!$E$16+'BP Financier'!$E$19+'BP Financier'!$C$22+'BP Financier'!$D$22+'BP Financier'!$E$22+'BP Financier'!$F$16+'BP Financier'!$F$19+'BP Financier'!$F$22))*$V6124*X6124/(1-$W6124)","v":{"v":70034.85181628817,"d":"70,035"}},{"$f":"'BP Financier'!$F$44*(('BP Financier'!$C$16+'BP Financier'!$D$16+'BP Financier'!$E$16+'BP Financier'!$F$16)/('BP Financier'!$C$16+'BP Financier'!$C$19+'BP Financier'!$D$16+'BP Financier'!$D$19+'BP Financier'!$E$16+'BP Financier'!$E$19+'BP Financier'!$C$22+'BP Financier'!$D$22+'BP Financier'!$E$22+'BP Financier'!$F$16+'BP Financier'!$F$19+'BP Financier'!$F$22))*$V6124*Y6124/(1-$W6124)","v":{"v":46818.878838513076,"d":"46,819"}},{"$f":"'BP Financier'!$F$44*(('BP Financier'!$C$16+'BP Financier'!$D$16+'BP Financier'!$E$16+'BP Financier'!$F$16)/('BP Financier'!$C$16+'BP Financier'!$C$19+'BP Financier'!$D$16+'BP Financier'!$D$19+'BP Financier'!$E$16+'BP Financier'!$E$19+'BP Financier'!$C$22+'BP Financier'!$D$22+'BP Financier'!$E$22+'BP Financier'!$F$16+'BP Financier'!$F$19+'BP Financier'!$F$22))*$V6124*Z6124/(1-$W6124)","v":{"v":366425.44016588334,"d":"366,425"}},{"$f":"'BP Financier'!$F$44*(('BP Financier'!$C$16+'BP Financier'!$D$16+'BP Financier'!$E$16+'BP Financier'!$F$16)/('BP Financier'!$C$16+'BP Financier'!$C$19+'BP Financier'!$D$16+'BP Financier'!$D$19+'BP Financier'!$E$16+'BP Financier'!$E$19+'BP Financier'!$C$22+'BP Financier'!$D$22+'BP Financier'!$E$22+'BP Financier'!$F$16+'BP Financier'!$F$19+'BP Financier'!$F$22))*$V6124*AA6124/(1-$W6124)","v":{"v":45271.147306661405,"d":"45,271"}},{"$f":"'BP Financier'!$F$44*(('BP Financier'!$C$16+'BP Financier'!$D$16+'BP Financier'!$E$16+'BP Financier'!$F$16)/('BP Financier'!$C$16+'BP Financier'!$C$19+'BP Financier'!$D$16+'BP Financier'!$D$19+'BP Financier'!$E$16+'BP Financier'!$E$19+'BP Financier'!$C$22+'BP Financier'!$D$22+'BP Financier'!$E$22+'BP Financier'!$F$16+'BP Financier'!$F$19+'BP Financier'!$F$22))*$V6124*AB6124/(1-$W6124)","v":{"v":21668.241445923406,"d":"21,668"}},null,{"v":0.0025,"d":"0.25%"},{"$f":"Actif!$E$28/100","v":{"v":0.28900000000000003,"d":"28.90%"}},{"$f":"Actif!$E$30/100","v":{"v":0.09050000000000001,"d":"9.05%"}},{"$f":"Actif!$E$31/100","v":{"v":0.0605,"d":"6.05%"}},{"$f":"Actif!$E$32/100","v":{"v":0.47350000000000003,"d":"47.35%"}},{"$f":"Actif!$E$33/100","v":{"v":0.0585,"d":"5.85%"}},{"$f":"Actif!$E$29/100","v":{"v":0.027999999999999997,"d":"2.80%"}}]
[null,"#18",22,2028,"H","A_VIE",{"v":0.44999999999999996,"d":"0.45"},{"v":0.38999999999999996,"d":"0.39"},0.6,0.6,85,0,{"$f":"ROUND(Primes!$P$4*V6125,0)","v":24},{"$f":"'BP Financier'!$F$33*(('BP Financier'!$C$16+'BP Financier'!$D$16+'BP Financier'!$E$16+'BP Financier'!$F$16)/('BP Financier'!$C$16+'BP Financier'!$C$19+'BP Financier'!$D$16+'BP Financier'!$D$19+'BP Financier'!$E$16+'BP Financier'!$E$19+'BP Financier'!$F$16+'BP Financier'!$F$19))*V6125","v":{"v":969943.3955546642,"d":"969,943"}},{"v":550218.5595732694,"d":"550,219"},{"$f":"'BP Financier'!$F$44*(('BP Financier'!$C$16+'BP Financier'!$D$16+'BP Financier'!$E$16+'BP Financier'!$F$16)/('BP Financier'!$C$16+'BP Financier'!$C$19+'BP Financier'!$D$16+'BP Financier'!$D$19+'BP Financier'!$E$16+'BP Financier'!$E$19+'BP Financier'!$C$22+'BP Financier'!$D$22+'BP Financier'!$E$22+'BP Financier'!$F$16+'BP Financier'!$F$19+'BP Financier'!$F$22))*$V6125*X6125/(1-$W6125)","v":{"v":70034.85181628817,"d":"70,035"}},{"$f":"'BP Financier'!$F$44*(('BP Financier'!$C$16+'BP Financier'!$D$16+'BP Financier'!$E$16+'BP Financier'!$F$16)/('BP Financier'!$C$16+'BP Financier'!$C$19+'BP Financier'!$D$16+'BP Financier'!$D$19+'BP Financier'!$E$16+'BP Financier'!$E$19+'BP Financier'!$C$22+'BP Financier'!$D$22+'BP Financier'!$E$22+'BP Financier'!$F$16+'BP Financier'!$F$19+'BP Financier'!$F$22))*$V6125*Y6125/(1-$W6125)","v":{"v":46818.878838513076,"d":"46,819"}},{"$f":"'BP Financier'!$F$44*(('BP Financier'!$C$16+'BP Financier'!$D$16+'BP Financier'!$E$16+'BP Financier'!$F$16)/('BP Financier'!$C$16+'BP Financier'!$C$19+'BP Financier'!$D$16+'BP Financier'!$D$19+'BP Financier'!$E$16+'BP Financier'!$E$19+'BP Financier'!$C$22+'BP Financier'!$D$22+'BP Financier'!$E$22+'BP Financier'!$F$16+'BP Financier'!$F$19+'BP Financier'!$F$22))*$V6125*Z6125/(1-$W6125)","v":{"v":366425.44016588334,"d":"366,425"}},{"$f":"'BP Financier'!$F$44*(('BP Financier'!$C$16+'BP Financier'!$D$16+'BP Financier'!$E$16+'BP Financier'!$F$16)/('BP Financier'!$C$16+'BP Financier'!$C$19+'BP Financier'!$D$16+'BP Financier'!$D$19+'BP Financier'!$E$16+'BP Financier'!$E$19+'BP Financier'!$C$22+'BP Financier'!$D$22+'BP Financier'!$E$22+'BP Financier'!$F$16+'BP Financier'!$F$19+'BP Financier'!$F$22))*$V6125*AA6125/(1-$W6125)","v":{"v":45271.147306661405,"d":"45,271"}},{"$f":"'BP Financier'!$F$44*(('BP Financier'!$C$16+'BP Financier'!$D$16+'BP Financier'!$E$16+'BP Financier'!$F$16)/('BP Financier'!$C$16+'BP Financier'!$C$19+'BP Financier'!$D$16+'BP Financier'!$D$19+'BP Financier'!$E$16+'BP Financier'!$E$19+'BP Financier'!$C$22+'BP Financier'!$D$22+'BP Financier'!$E$22+'BP Financier'!$F$16+'BP Financier'!$F$19+'BP Financier'!$F$22))*$V6125*AB6125/(1-$W6125)","v":{"v":21668.241445923406,"d":"21,668"}},null,{"v":0.0025,"d":"0.25%"},{"$f":"Actif!$E$28/100","v":{"v":0.28900000000000003,"d":"28.90%"}},{"$f":"Actif!$E$30/100","v":{"v":0.09050000000000001,"d":"9.05%"}},{"$f":"Actif!$E$31/100","v":{"v":0.0605,"d":"6.05%"}},{"$f":"Actif!$E$32/100","v":{"v":0.47350000000000003,"d":"47.35%"}},{"$f":"Actif!$E$33/100","v":{"v":0.0585,"d":"5.85%"}},{"$f":"Actif!$E$29/100","v":{"v":0.027999999999999997,"d":"2.80%"}}]
[null,"#19",22,2029,"H","A_VIE",{"v":0.44999999999999996,"d":"0.45"},{"v":0.38999999999999996,"d":"0.39"},0.6,0.6,85,0,{"$f":"ROUND(Primes!$P$4*V6126,0)","v":24},{"$f":"'BP Financier'!$F$33*(('BP Financier'!$C$16+'BP Financier'!$D$16+'BP Financier'!$E$16+'BP Financier'!$F$16)/('BP Financier'!$C$16+'BP Financier'!$C$19+'BP Financier'!$D$16+'BP Financier'!$D$19+'BP Financier'!$E$16+'BP Financier'!$E$19+'BP Financier'!$F$16+'BP Financier'!$F$19))*V6126","v":{"v":969943.3955546642,"d":"969,943"}},{"v":550218.5595732694,"d":"550,219"},{"$f":"'BP Financier'!$F$44*(('BP Financier'!$C$16+'BP Financier'!$D$16+'BP Financier'!$E$16+'BP Financier'!$F$16)/('BP Financier'!$C$16+'BP Financier'!$C$19+'BP Financier'!$D$16+'BP Financier'!$D$19+'BP Financier'!$E$16+'BP Financier'!$E$19+'BP Financier'!$C$22+'BP Financier'!$D$22+'BP Financier'!$E$22+'BP Financier'!$F$16+'BP Financier'!$F$19+'BP Financier'!$F$22))*$V6126*X6126/(1-$W6126)","v":{"v":70034.85181628817,"d":"70,035"}},{"$f":"'BP Financier'!$F$44*(('BP Financier'!$C$16+'BP Financier'!$D$16+'BP Financier'!$E$16+'BP Financier'!$F$16)/('BP Financier'!$C$16+'BP Financier'!$C$19+'BP Financier'!$D$16+'BP Financier'!$D$19+'BP Financier'!$E$16+'BP Financier'!$E$19+'BP Financier'!$C$22+'BP Financier'!$D$22+'BP Financier'!$E$22+'BP Financier'!$F$16+'BP Financier'!$F$19+'BP Financier'!$F$22))*$V6126*Y6126/(1-$W6126)","v":{"v":46818.878838513076,"d":"46,819"}},{"$f":"'BP Financier'!$F$44*(('BP Financier'!$C$16+'BP Financier'!$D$16+'BP Financier'!$E$16+'BP Financier'!$F$16)/('BP Financier'!$C$16+'BP Financier'!$C$19+'BP Financier'!$D$16+'BP Financier'!$D$19+'BP Financier'!$E$16+'BP Financier'!$E$19+'BP Financier'!$C$22+'BP Financier'!$D$22+'BP Financier'!$E$22+'BP Financier'!$F$16+'BP Financier'!$F$19+'BP Financier'!$F$22))*$V6126*Z6126/(1-$W6126)","v":{"v":366425.44016588334,"d":"366,425"}},{"$f":"'BP Financier'!$F$44*(('BP Financier'!$C$16+'BP Financier'!$D$16+'BP Financier'!$E$16+'BP Financier'!$F$16)/('BP Financier'!$C$16+'BP Financier'!$C$19+'BP Financier'!$D$16+'BP Financier'!$D$19+'BP Financier'!$E$16+'BP Financier'!$E$19+'BP Financier'!$C$22+'BP Financier'!$D$22+'BP Financier'!$E$22+'BP Financier'!$F$16+'BP Financier'!$F$19+'BP Financier'!$F$22))*$V6126*AA6126/(1-$W6126)","v":{"v":45271.147306661405,"d":"45,271"}},{"$f":"'BP Financier'!$F$44*(('BP Financier'!$C$16+'BP Financier'!$D$16+'BP Financier'!$E$16+'BP Financier'!$F$16)/('BP Financier'!$C$16+'BP Financier'!$C$19+'BP Financier'!$D$16+'BP Financier'!$D$19+'BP Financier'!$E$16+'BP Financier'!$E$19+'BP Financier'!$C$22+'BP Financier'!$D$22+'BP Financier'!$E$22+'BP Financier'!$F$16+'BP Financier'!$F$19+'BP Financier'!$F$22))*$V6126*AB6126/(1-$W6126)","v":{"v":21668.241445923406,"d":"21,668"}},null,{"v":0.0025,"d":"0.25%"},{"$f":"Actif!$E$28/100","v":{"v":0.28900000000000003,"d":"28.90%"}},{"$f":"Actif!$E$30/100","v":{"v":0.09050000000000001,"d":"9.05%"}},{"$f":"Actif!$E$31/100","v":{"v":0.0605,"d":"6.05%"}},{"$f":"Actif!$E$32/100","v":{"v":0.47350000000000003,"d":"47.35%"}},{"$f":"Actif!$E$33/100","v":{"v":0.0585,"d":"5.85%"}},{"$f":"Actif!$E$29/100","v":{"v":0.027999999999999997,"d":"2.80%"}}]
[null,"#20",22,2030,"H","A_VIE",{"v":0.44999999999999996,"d":"0.45"},{"v":0.38999999999999996,"d":"0.39"},0.6,0.6,85,0,{"$f":"ROUND(Primes!$P$4*V6127,0)","v":24},{"$f":"'BP Financier'!$F$33*(('BP Financier'!$C$16+'BP Financier'!$D$16+'BP Financier'!$E$16+'BP Financier'!$F$16)/('BP Financier'!$C$16+'BP Financier'!$C$19+'BP Financier'!$D$16+'BP Financier'!$D$19+'BP Financier'!$E$16+'BP Financier'!$E$19+'BP Financier'!$F$16+'BP Financier'!$F$19))*V6127","v":{"v":969943.3955546642,"d":"969,943"}},{"v":550218.5595732694,"d":"550,219"},{"$f":"'BP Financier'!$F$44*(('BP Financier'!$C$16+'BP Financier'!$D$16+'BP Financier'!$E$16+'BP Financier'!$F$16)/('BP Financier'!$C$16+'BP Financier'!$C$19+'BP Financier'!$D$16+'BP Financier'!$D$19+'BP Financier'!$E$16+'BP Financier'!$E$19+'BP Financier'!$C$22+'BP Financier'!$D$22+'BP Financier'!$E$22+'BP Financier'!$F$16+'BP Financier'!$F$19+'BP Financier'!$F$22))*$V6127*X6127/(1-$W6127)","v":{"v":70034.85181628817,"d":"70,035"}},{"$f":"'BP Financier'!$F$44*(('BP Financier'!$C$16+'BP Financier'!$D$16+'BP Financier'!$E$16+'BP Financier'!$F$16)/('BP Financier'!$C$16+'BP Financier'!$C$19+'BP Financier'!$D$16+'BP Financier'!$D$19+'BP Financier'!$E$16+'BP Financier'!$E$19+'BP Financier'!$C$22+'BP Financier'!$D$22+'BP Financier'!$E$22+'BP Financier'!$F$16+'BP Financier'!$F$19+'BP Financier'!$F$22))*$V6127*Y6127/(1-$W6127)","v":{"v":46818.878838513076,"d":"46,819"}},{"$f":"'BP Financier'!$F$44*(('BP Financier'!$C$16+'BP Financier'!$D$16+'BP Financier'!$E$16+'BP Financier'!$F$16)/('BP Financier'!$C$16+'BP Financier'!$C$19+'BP Financier'!$D$16+'BP Financier'!$D$19+'BP Financier'!$E$16+'BP Financier'!$E$19+'BP Financier'!$C$22+'BP Financier'!$D$22+'BP Financier'!$E$22+'BP Financier'!$F$16+'BP Financier'!$F$19+'BP Financier'!$F$22))*$V6127*Z6127/(1-$W6127)","v":{"v":366425.44016588334,"d":"366,425"}},{"$f":"'BP Financier'!$F$44*(('BP Financier'!$C$16+'BP Financier'!$D$16+'BP Financier'!$E$16+'BP Financier'!$F$16)/('BP Financier'!$C$16+'BP Financier'!$C$19+'BP Financier'!$D$16+'BP Financier'!$D$19+'BP Financier'!$E$16+'BP Financier'!$E$19+'BP Financier'!$C$22+'BP Financier'!$D$22+'BP Financier'!$E$22+'BP Financier'!$F$16+'BP Financier'!$F$19+'BP Financier'!$F$22))*$V6127*AA6127/(1-$W6127)","v":{"v":45271.147306661405,"d":"45,271"}},{"$f":"'BP Financier'!$F$44*(('BP Financier'!$C$16+'BP Financier'!$D$16+'BP Financier'!$E$16+'BP Financier'!$F$16)/('BP Financier'!$C$16+'BP Financier'!$C$19+'BP Financier'!$D$16+'BP Financier'!$D$19+'BP Financier'!$E$16+'BP Financier'!$E$19+'BP Financier'!$C$22+'BP Financier'!$D$22+'BP Financier'!$E$22+'BP Financier'!$F$16+'BP Financier'!$F$19+'BP Financier'!$F$22))*$V6127*AB6127/(1-$W6127)","v":{"v":21668.241445923406,"d":"21,668"}},null,{"v":0.0025,"d":"0.25%"},{"$f":"Actif!$E$28/100","v":{"v":0.28900000000000003,"d":"28.90%"}},{"$f":"Actif!$E$30/100","v":{"v":0.09050000000000001,"d":"9.05%"}},{"$f":"Actif!$E$31/100","v":{"v":0.0605,"d":"6.05%"}},{"$f":"Actif!$E$32/100","v":{"v":0.47350000000000003,"d":"47.35%"}},{"$f":"Actif!$E$33/100","v":{"v":0.0585,"d":"5.85%"}},{"$f":"Actif!$E$29/100","v":{"v":0.027999999999999997,"d":"2.80%"}}]
[null,"#21",23,2026,"F","A_VIE",{"v":0.44999999999999996,"d":"0.45"},{"v":0.38999999999999996,"d":"0.39"},0.6,0.6,85,0,{"$f":"ROUND(Primes!$P$4*V6128,0)","v":24},{"$f":"'BP Financier'!$F$33*(('BP Financier'!$C$16+'BP Financier'!$D$16+'BP Financier'!$E$16+'BP Financier'!$F$16)/('BP Financier'!$C$16+'BP Financier'!$C$19+'BP Financier'!$D$16+'BP Financier'!$D$19+'BP Financier'!$E$16+'BP Financier'!$E$19+'BP Financier'!$F$16+'BP Financier'!$F$19))*V6128","v":{"v":969943.3955546642,"d":"969,943"}},{"v":550218.5595732694,"d":"550,219"},{"$f":"'BP Financier'!$F$44*(('BP Financier'!$C$16+'BP Financier'!$D$16+'BP Financier'!$E$16+'BP Financier'!$F$16)/('BP Financier'!$C$16+'BP Financier'!$C$19+'BP Financier'!$D$16+'BP Financier'!$D$19+'BP Financier'!$E$16+'BP Financier'!$E$19+'BP Financier'!$C$22+'BP Financier'!$D$22+'BP Financier'!$E$22+'BP Financier'!$F$16+'BP Financier'!$F$19+'BP Financier'!$F$22))*$V6128*X6128/(1-$W6128)","v":{"v":70034.85181628817,"d":"70,035"}},{"$f":"'BP Financier'!$F$44*(('BP Financier'!$C$16+'BP Financier'!$D$16+'BP Financier'!$E$16+'BP Financier'!$F$16)/('BP Financier'!$C$16+'BP Financier'!$C$19+'BP Financier'!$D$16+'BP Financier'!$D$19+'BP Financier'!$E$16+'BP Financier'!$E$19+'BP Financier'!$C$22+'BP Financier'!$D$22+'BP Financier'!$E$22+'BP Financier'!$F$16+'BP Financier'!$F$19+'BP Financier'!$F$22))*$V6128*Y6128/(1-$W6128)","v":{"v":46818.878838513076,"d":"46,819"}},{"$f":"'BP Financier'!$F$44*(('BP Financier'!$C$16+'BP Financier'!$D$16+'BP Financier'!$E$16+'BP Financier'!$F$16)/('BP Financier'!$C$16+'BP Financier'!$C$19+'BP Financier'!$D$16+'BP Financier'!$D$19+'BP Financier'!$E$16+'BP Financier'!$E$19+'BP Financier'!$C$22+'BP Financier'!$D$22+'BP Financier'!$E$22+'BP Financier'!$F$16+'BP Financier'!$F$19+'BP Financier'!$F$22))*$V6128*Z6128/(1-$W6128)","v":{"v":366425.44016588334,"d":"366,425"}},{"$f":"'BP Financier'!$F$44*(('BP Financier'!$C$16+'BP Financier'!$D$16+'BP Financier'!$E$16+'BP Financier'!$F$16)/('BP Financier'!$C$16+'BP Financier'!$C$19+'BP Financier'!$D$16+'BP Financier'!$D$19+'BP Financier'!$E$16+'BP Financier'!$E$19+'BP Financier'!$C$22+'BP Financier'!$D$22+'BP Financier'!$E$22+'BP Financier'!$F$16+'BP Financier'!$F$19+'BP Financier'!$F$22))*$V6128*AA6128/(1-$W6128)","v":{"v":45271.147306661405,"d":"45,271"}},{"$f":"'BP Financier'!$F$44*(('BP Financier'!$C$16+'BP Financier'!$D$16+'BP Financier'!$E$16+'BP Financier'!$F$16)/('BP Financier'!$C$16+'BP Financier'!$C$19+'BP Financier'!$D$16+'BP Financier'!$D$19+'BP Financier'!$E$16+'BP Financier'!$E$19+'BP Financier'!$C$22+'BP Financier'!$D$22+'BP Financier'!$E$22+'BP Financier'!$F$16+'BP Financier'!$F$19+'BP Financier'!$F$22))*$V6128*AB6128/(1-$W6128)","v":{"v":21668.241445923406,"d":"21,668"}},null,{"v":0.0025,"d":"0.25%"},{"$f":"Actif!$E$28/100","v":{"v":0.28900000000000003,"d":"28.90%"}},{"$f":"Actif!$E$30/100","v":{"v":0.09050000000000001,"d":"9.05%"}},{"$f":"Actif!$E$31/100","v":{"v":0.0605,"d":"6.05%"}},{"$f":"Actif!$E$32/100","v":{"v":0.47350000000000003,"d":"47.35%"}},{"$f":"Actif!$E$33/100","v":{"v":0.0585,"d":"5.85%"}},{"$f":"Actif!$E$29/100","v":{"v":0.027999999999999997,"d":"2.80%"}}]
[null,"#22",23,2028,"F","A_VIE",{"v":0.44999999999999996,"d":"0.45"},{"v":0.38999999999999996,"d":"0.39"},0.6,0.6,85,0,{"$f":"ROUND(Primes!$P$4*V6129,0)","v":24},{"$f":"'BP Financier'!$F$33*(('BP Financier'!$C$16+'BP Financier'!$D$16+'BP Financier'!$E$16+'BP Financier'!$F$16)/('BP Financier'!$C$16+'BP Financier'!$C$19+'BP Financier'!$D$16+'BP Financier'!$D$19+'BP Financier'!$E$16+'BP Financier'!$E$19+'BP Financier'!$F$16+'BP Financier'!$F$19))*V6129","v":{"v":969943.3955546642,"d":"969,943"}},{"v":550218.5595732694,"d":"550,219"},{"$f":"'BP Financier'!$F$44*(('BP Financier'!$C$16+'BP Financier'!$D$16+'BP Financier'!$E$16+'BP Financier'!$F$16)/('BP Financier'!$C$16+'BP Financier'!$C$19+'BP Financier'!$D$16+'BP Financier'!$D$19+'BP Financier'!$E$16+'BP Financier'!$E$19+'BP Financier'!$C$22+'BP Financier'!$D$22+'BP Financier'!$E$22+'BP Financier'!$F$16+'BP Financier'!$F$19+'BP Financier'!$F$22))*$V6129*X6129/(1-$W6129)","v":{"v":70034.85181628817,"d":"70,035"}},{"$f":"'BP Financier'!$F$44*(('BP Financier'!$C$16+'BP Financier'!$D$16+'BP Financier'!$E$16+'BP Financier'!$F$16)/('BP Financier'!$C$16+'BP Financier'!$C$19+'BP Financier'!$D$16+'BP Financier'!$D$19+'BP Financier'!$E$16+'BP Financier'!$E$19+'BP Financier'!$C$22+'BP Financier'!$D$22+'BP Financier'!$E$22+'BP Financier'!$F$16+'BP Financier'!$F$19+'BP Financier'!$F$22))*$V6129*Y6129/(1-$W6129)","v":{"v":46818.878838513076,"d":"46,819"}},{"$f":"'BP Financier'!$F$44*(('BP Financier'!$C$16+'BP Financier'!$D$16+'BP Financier'!$E$16+'BP Financier'!$F$16)/('BP Financier'!$C$16+'BP Financier'!$C$19+'BP Financier'!$D$16+'BP Financier'!$D$19+'BP Financier'!$E$16+'BP Financier'!$E$19+'BP Financier'!$C$22+'BP Financier'!$D$22+'BP Financier'!$E$22+'BP Financier'!$F$16+'BP Financier'!$F$19+'BP Financier'!$F$22))*$V6129*Z6129/(1-$W6129)","v":{"v":366425.44016588334,"d":"366,425"}},{"$f":"'BP Financier'!$F$44*(('BP Financier'!$C$16+'BP Financier'!$D$16+'BP Financier'!$E$16+'BP Financier'!$F$16)/('BP Financier'!$C$16+'BP Financier'!$C$19+'BP Financier'!$D$16+'BP Financier'!$D$19+'BP Financier'!$E$16+'BP Financier'!$E$19+'BP Financier'!$C$22+'BP Financier'!$D$22+'BP Financier'!$E$22+'BP Financier'!$F$16+'BP Financier'!$F$19+'BP Financier'!$F$22))*$V6129*AA6129/(1-$W6129)","v":{"v":45271.147306661405,"d":"45,271"}},{"$f":"'BP Financier'!$F$44*(('BP Financier'!$C$16+'BP Financier'!$D$16+'BP Financier'!$E$16+'BP Financier'!$F$16)/('BP Financier'!$C$16+'BP Financier'!$C$19+'BP Financier'!$D$16+'BP Financier'!$D$19+'BP Financier'!$E$16+'BP Financier'!$E$19+'BP Financier'!$C$22+'BP Financier'!$D$22+'BP Financier'!$E$22+'BP Financier'!$F$16+'BP Financier'!$F$19+'BP Financier'!$F$22))*$V6129*AB6129/(1-$W6129)","v":{"v":21668.241445923406,"d":"21,668"}},null,{"v":0.0025,"d":"0.25%"},{"$f":"Actif!$E$28/100","v":{"v":0.28900000000000003,"d":"28.90%"}},{"$f":"Actif!$E$30/100","v":{"v":0.09050000000000001,"d":"9.05%"}},{"$f":"Actif!$E$31/100","v":{"v":0.0605,"d":"6.05%"}},{"$f":"Actif!$E$32/100","v":{"v":0.47350000000000003,"d":"47.35%"}},{"$f":"Actif!$E$33/100","v":{"v":0.0585,"d":"5.85%"}},{"$f":"Actif!$E$29/100","v":{"v":0.027999999999999997,"d":"2.80%"}}]
[null,"#23",23,2029,"F","A_VIE",{"v":0.44999999999999996,"d":"0.45"},{"v":0.38999999999999996,"d":"0.39"},0.6,0.6,85,0,{"$f":"ROUND(Primes!$P$4*V6130,0)","v":24},{"$f":"'BP Financier'!$F$33*(('BP Financier'!$C$16+'BP Financier'!$D$16+'BP Financier'!$E$16+'BP Financier'!$F$16)/('BP Financier'!$C$16+'BP Financier'!$C$19+'BP Financier'!$D$16+'BP Financier'!$D$19+'BP Financier'!$E$16+'BP Financier'!$E$19+'BP Financier'!$F$16+'BP Financier'!$F$19))*V6130","v":{"v":969943.3955546642,"d":"969,943"}},{"v":550218.5595732694,"d":"550,219"},{"$f":"'BP Financier'!$F$44*(('BP Financier'!$C$16+'BP Financier'!$D$16+'BP Financier'!$E$16+'BP Financier'!$F$16)/('BP Financier'!$C$16+'BP Financier'!$C$19+'BP Financier'!$D$16+'BP Financier'!$D$19+'BP Financier'!$E$16+'BP Financier'!$E$19+'BP Financier'!$C$22+'BP Financier'!$D$22+'BP Financier'!$E$22+'BP Financier'!$F$16+'BP Financier'!$F$19+'BP Financier'!$F$22))*$V6130*X6130/(1-$W6130)","v":{"v":70034.85181628817,"d":"70,035"}},{"$f":"'BP Financier'!$F$44*(('BP Financier'!$C$16+'BP Financier'!$D$16+'BP Financier'!$E$16+'BP Financier'!$F$16)/('BP Financier'!$C$16+'BP Financier'!$C$19+'BP Financier'!$D$16+'BP Financier'!$D$19+'BP Financier'!$E$16+'BP Financier'!$E$19+'BP Financier'!$C$22+'BP Financier'!$D$22+'BP Financier'!$E$22+'BP Financier'!$F$16+'BP Financier'!$F$19+'BP Financier'!$F$22))*$V6130*Y6130/(1-$W6130)","v":{"v":46818.878838513076,"d":"46,819"}},{"$f":"'BP Financier'!$F$44*(('BP Financier'!$C$16+'BP Financier'!$D$16+'BP Financier'!$E$16+'BP Financier'!$F$16)/('BP Financier'!$C$16+'BP Financier'!$C$19+'BP Financier'!$D$16+'BP Financier'!$D$19+'BP Financier'!$E$16+'BP Financier'!$E$19+'BP Financier'!$C$22+'BP Financier'!$D$22+'BP Financier'!$E$22+'BP Financier'!$F$16+'BP Financier'!$F$19+'BP Financier'!$F$22))*$V6130*Z6130/(1-$W6130)","v":{"v":366425.44016588334,"d":"366,425"}},{"$f":"'BP Financier'!$F$44*(('BP Financier'!$C$16+'BP Financier'!$D$16+'BP Financier'!$E$16+'BP Financier'!$F$16)/('BP Financier'!$C$16+'BP Financier'!$C$19+'BP Financier'!$D$16+'BP Financier'!$D$19+'BP Financier'!$E$16+'BP Financier'!$E$19+'BP Financier'!$C$22+'BP Financier'!$D$22+'BP Financier'!$E$22+'BP Financier'!$F$16+'BP Financier'!$F$19+'BP Financier'!$F$22))*$V6130*AA6130/(1-$W6130)","v":{"v":45271.147306661405,"d":"45,271"}},{"$f":"'BP Financier'!$F$44*(('BP Financier'!$C$16+'BP Financier'!$D$16+'BP Financier'!$E$16+'BP Financier'!$F$16)/('BP Financier'!$C$16+'BP Financier'!$C$19+'BP Financier'!$D$16+'BP Financier'!$D$19+'BP Financier'!$E$16+'BP Financier'!$E$19+'BP Financier'!$C$22+'BP Financier'!$D$22+'BP Financier'!$E$22+'BP Financier'!$F$16+'BP Financier'!$F$19+'BP Financier'!$F$22))*$V6130*AB6130/(1-$W6130)","v":{"v":21668.241445923406,"d":"21,668"}},null,{"v":0.0025,"d":"0.25%"},{"$f":"Actif!$E$28/100","v":{"v":0.28900000000000003,"d":"28.90%"}},{"$f":"Actif!$E$30/100","v":{"v":0.09050000000000001,"d":"9.05%"}},{"$f":"Actif!$E$31/100","v":{"v":0.0605,"d":"6.05%"}},{"$f":"Actif!$E$32/100","v":{"v":0.47350000000000003,"d":"47.35%"}},{"$f":"Actif!$E$33/100","v":{"v":0.0585,"d":"5.85%"}},{"$f":"Actif!$E$29/100","v":{"v":0.027999999999999997,"d":"2.80%"}}]
[null,"#24",23,2030,"F","A_VIE",{"v":0.44999999999999996,"d":"0.45"},{"v":0.38999999999999996,"d":"0.39"},0.6,0.6,85,0,{"$f":"ROUND(Primes!$P$4*V6131,0)","v":24},{"$f":"'BP Financier'!$F$33*(('BP Financier'!$C$16+'BP Financier'!$D$16+'BP Financier'!$E$16+'BP Financier'!$F$16)/('BP Financier'!$C$16+'BP Financier'!$C$19+'BP Financier'!$D$16+'BP Financier'!$D$19+'BP Financier'!$E$16+'BP Financier'!$E$19+'BP Financier'!$F$16+'BP Financier'!$F$19))*V6131","v":{"v":969943.3955546642,"d":"969,943"}},{"v":550218.5595732694,"d":"550,219"},{"$f":"'BP Financier'!$F$44*(('BP Financier'!$C$16+'BP Financier'!$D$16+'BP Financier'!$E$16+'BP Financier'!$F$16)/('BP Financier'!$C$16+'BP Financier'!$C$19+'BP Financier'!$D$16+'BP Financier'!$D$19+'BP Financier'!$E$16+'BP Financier'!$E$19+'BP Financier'!$C$22+'BP Financier'!$D$22+'BP Financier'!$E$22+'BP Financier'!$F$16+'BP Financier'!$F$19+'BP Financier'!$F$22))*$V6131*X6131/(1-$W6131)","v":{"v":70034.85181628817,"d":"70,035"}},{"$f":"'BP Financier'!$F$44*(('BP Financier'!$C$16+'BP Financier'!$D$16+'BP Financier'!$E$16+'BP Financier'!$F$16)/('BP Financier'!$C$16+'BP Financier'!$C$19+'BP Financier'!$D$16+'BP Financier'!$D$19+'BP Financier'!$E$16+'BP Financier'!$E$19+'BP Financier'!$C$22+'BP Financier'!$D$22+'BP Financier'!$E$22+'BP Financier'!$F$16+'BP Financier'!$F$19+'BP Financier'!$F$22))*$V6131*Y6131/(1-$W6131)","v":{"v":46818.878838513076,"d":"46,819"}},{"$f":"'BP Financier'!$F$44*(('BP Financier'!$C$16+'BP Financier'!$D$16+'BP Financier'!$E$16+'BP Financier'!$F$16)/('BP Financier'!$C$16+'BP Financier'!$C$19+'BP Financier'!$D$16+'BP Financier'!$D$19+'BP Financier'!$E$16+'BP Financier'!$E$19+'BP Financier'!$C$22+'BP Financier'!$D$22+'BP Financier'!$E$22+'BP Financier'!$F$16+'BP Financier'!$F$19+'BP Financier'!$F$22))*$V6131*Z6131/(1-$W6131)","v":{"v":366425.44016588334,"d":"366,425"}},{"$f":"'BP Financier'!$F$44*(('BP Financier'!$C$16+'BP Financier'!$D$16+'BP Financier'!$E$16+'BP Financier'!$F$16)/('BP Financier'!$C$16+'BP Financier'!$C$19+'BP Financier'!$D$16+'BP Financier'!$D$19+'BP Financier'!$E$16+'BP Financier'!$E$19+'BP Financier'!$C$22+'BP Financier'!$D$22+'BP Financier'!$E$22+'BP Financier'!$F$16+'BP Financier'!$F$19+'BP Financier'!$F$22))*$V6131*AA6131/(1-$W6131)","v":{"v":45271.147306661405,"d":"45,271"}},{"$f":"'BP Financier'!$F$44*(('BP Financier'!$C$16+'BP Financier'!$D$16+'BP Financier'!$E$16+'BP Financier'!$F$16)/('BP Financier'!$C$16+'BP Financier'!$C$19+'BP Financier'!$D$16+'BP Financier'!$D$19+'BP Financier'!$E$16+'BP Financier'!$E$19+'BP Financier'!$C$22+'BP Financier'!$D$22+'BP Financier'!$E$22+'BP Financier'!$F$16+'BP Financier'!$F$19+'BP Financier'!$F$22))*$V6131*AB6131/(1-$W6131)","v":{"v":21668.241445923406,"d":"21,668"}},null,{"v":0.0025,"d":"0.25%"},{"$f":"Actif!$E$28/100","v":{"v":0.28900000000000003,"d":"28.90%"}},{"$f":"Actif!$E$30/100","v":{"v":0.09050000000000001,"d":"9.05%"}},{"$f":"Actif!$E$31/100","v":{"v":0.0605,"d":"6.05%"}},{"$f":"Actif!$E$32/100","v":{"v":0.47350000000000003,"d":"47.35%"}},{"$f":"Actif!$E$33/100","v":{"v":0.0585,"d":"5.85%"}},{"$f":"Actif!$E$29/100","v":{"v":0.027999999999999997,"d":"2.80%"}}]
[null,"#25",24,2026,"H","A_VIE",{"v":0.44999999999999996,"d":"0.45"},{"v":0.38999999999999996,"d":"0.39"},0.6,0.6,85,0,{"$f":"ROUND(Primes!$P$4*V6132,0)","v":24},{"$f":"'BP Financier'!$F$33*(('BP Financier'!$C$16+'BP Financier'!$D$16+'BP Financier'!$E$16+'BP Financier'!$F$16)/('BP Financier'!$C$16+'BP Financier'!$C$19+'BP Financier'!$D$16+'BP Financier'!$D$19+'BP Financier'!$E$16+'BP Financier'!$E$19+'BP Financier'!$F$16+'BP Financier'!$F$19))*V6132","v":{"v":969943.3955546642,"d":"969,943"}},{"v":550218.5595732694,"d":"550,219"},{"$f":"'BP Financier'!$F$44*(('BP Financier'!$C$16+'BP Financier'!$D$16+'BP Financier'!$E$16+'BP Financier'!$F$16)/('BP Financier'!$C$16+'BP Financier'!$C$19+'BP Financier'!$D$16+'BP Financier'!$D$19+'BP Financier'!$E$16+'BP Financier'!$E$19+'BP Financier'!$C$22+'BP Financier'!$D$22+'BP Financier'!$E$22+'BP Financier'!$F$16+'BP Financier'!$F$19+'BP Financier'!$F$22))*$V6132*X6132/(1-$W6132)","v":{"v":70034.85181628817,"d":"70,035"}},{"$f":"'BP Financier'!$F$44*(('BP Financier'!$C$16+'BP Financier'!$D$16+'BP Financier'!$E$16+'BP Financier'!$F$16)/('BP Financier'!$C$16+'BP Financier'!$C$19+'BP Financier'!$D$16+'BP Financier'!$D$19+'BP Financier'!$E$16+'BP Financier'!$E$19+'BP Financier'!$C$22+'BP Financier'!$D$22+'BP Financier'!$E$22+'BP Financier'!$F$16+'BP Financier'!$F$19+'BP Financier'!$F$22))*$V6132*Y6132/(1-$W6132)","v":{"v":46818.878838513076,"d":"46,819"}},{"$f":"'BP Financier'!$F$44*(('BP Financier'!$C$16+'BP Financier'!$D$16+'BP Financier'!$E$16+'BP Financier'!$F$16)/('BP Financier'!$C$16+'BP Financier'!$C$19+'BP Financier'!$D$16+'BP Financier'!$D$19+'BP Financier'!$E$16+'BP Financier'!$E$19+'BP Financier'!$C$22+'BP Financier'!$D$22+'BP Financier'!$E$22+'BP Financier'!$F$16+'BP Financier'!$F$19+'BP Financier'!$F$22))*$V6132*Z6132/(1-$W6132)","v":{"v":366425.44016588334,"d":"366,425"}},{"$f":"'BP Financier'!$F$44*(('BP Financier'!$C$16+'BP Financier'!$D$16+'BP Financier'!$E$16+'BP Financier'!$F$16)/('BP Financier'!$C$16+'BP Financier'!$C$19+'BP Financier'!$D$16+'BP Financier'!$D$19+'BP Financier'!$E$16+'BP Financier'!$E$19+'BP Financier'!$C$22+'BP Financier'!$D$22+'BP Financier'!$E$22+'BP Financier'!$F$16+'BP Financier'!$F$19+'BP Financier'!$F$22))*$V6132*AA6132/(1-$W6132)","v":{"v":45271.147306661405,"d":"45,271"}},{"$f":"'BP Financier'!$F$44*(('BP Financier'!$C$16+'BP Financier'!$D$16+'BP Financier'!$E$16+'BP Financier'!$F$16)/('BP Financier'!$C$16+'BP Financier'!$C$19+'BP Financier'!$D$16+'BP Financier'!$D$19+'BP Financier'!$E$16+'BP Financier'!$E$19+'BP Financier'!$C$22+'BP Financier'!$D$22+'BP Financier'!$E$22+'BP Financier'!$F$16+'BP Financier'!$F$19+'BP Financier'!$F$22))*$V6132*AB6132/(1-$W6132)","v":{"v":21668.241445923406,"d":"21,668"}},null,{"v":0.0025,"d":"0.25%"},{"$f":"Actif!$E$28/100","v":{"v":0.28900000000000003,"d":"28.90%"}},{"$f":"Actif!$E$30/100","v":{"v":0.09050000000000001,"d":"9.05%"}},{"$f":"Actif!$E$31/100","v":{"v":0.0605,"d":"6.05%"}},{"$f":"Actif!$E$32/100","v":{"v":0.47350000000000003,"d":"47.35%"}},{"$f":"Actif!$E$33/100","v":{"v":0.0585,"d":"5.85%"}},{"$f":"Actif!$E$29/100","v":{"v":0.027999999999999997,"d":"2.80%"}}]
[null,"#26",24,2028,"H","A_VIE",{"v":0.44999999999999996,"d":"0.45"},{"v":0.38999999999999996,"d":"0.39"},0.6,0.6,85,0,{"$f":"ROUND(Primes!$P$4*V6133,0)","v":24},{"$f":"'BP Financier'!$F$33*(('BP Financier'!$C$16+'BP Financier'!$D$16+'BP Financier'!$E$16+'BP Financier'!$F$16)/('BP Financier'!$C$16+'BP Financier'!$C$19+'BP Financier'!$D$16+'BP Financier'!$D$19+'BP Financier'!$E$16+'BP Financier'!$E$19+'BP Financier'!$F$16+'BP Financier'!$F$19))*V6133","v":{"v":969943.3955546642,"d":"969,943"}},{"v":550218.5595732694,"d":"550,219"},{"$f":"'BP Financier'!$F$44*(('BP Financier'!$C$16+'BP Financier'!$D$16+'BP Financier'!$E$16+'BP Financier'!$F$16)/('BP Financier'!$C$16+'BP Financier'!$C$19+'BP Financier'!$D$16+'BP Financier'!$D$19+'BP Financier'!$E$16+'BP Financier'!$E$19+'BP Financier'!$C$22+'BP Financier'!$D$22+'BP Financier'!$E$22+'BP Financier'!$F$16+'BP Financier'!$F$19+'BP Financier'!$F$22))*$V6133*X6133/(1-$W6133)","v":{"v":70034.85181628817,"d":"70,035"}},{"$f":"'BP Financier'!$F$44*(('BP Financier'!$C$16+'BP Financier'!$D$16+'BP Financier'!$E$16+'BP Financier'!$F$16)/('BP Financier'!$C$16+'BP Financier'!$C$19+'BP Financier'!$D$16+'BP Financier'!$D$19+'BP Financier'!$E$16+'BP Financier'!$E$19+'BP Financier'!$C$22+'BP Financier'!$D$22+'BP Financier'!$E$22+'BP Financier'!$F$16+'BP Financier'!$F$19+'BP Financier'!$F$22))*$V6133*Y6133/(1-$W6133)","v":{"v":46818.878838513076,"d":"46,819"}},{"$f":"'BP Financier'!$F$44*(('BP Financier'!$C$16+'BP Financier'!$D$16+'BP Financier'!$E$16+'BP Financier'!$F$16)/('BP Financier'!$C$16+'BP Financier'!$C$19+'BP Financier'!$D$16+'BP Financier'!$D$19+'BP Financier'!$E$16+'BP Financier'!$E$19+'BP Financier'!$C$22+'BP Financier'!$D$22+'BP Financier'!$E$22+'BP Financier'!$F$16+'BP Financier'!$F$19+'BP Financier'!$F$22))*$V6133*Z6133/(1-$W6133)","v":{"v":366425.44016588334,"d":"366,425"}},{"$f":"'BP Financier'!$F$44*(('BP Financier'!$C$16+'BP Financier'!$D$16+'BP Financier'!$E$16+'BP Financier'!$F$16)/('BP Financier'!$C$16+'BP Financier'!$C$19+'BP Financier'!$D$16+'BP Financier'!$D$19+'BP Financier'!$E$16+'BP Financier'!$E$19+'BP Financier'!$C$22+'BP Financier'!$D$22+'BP Financier'!$E$22+'BP Financier'!$F$16+'BP Financier'!$F$19+'BP Financier'!$F$22))*$V6133*AA6133/(1-$W6133)","v":{"v":45271.147306661405,"d":"45,271"}},{"$f":"'BP Financier'!$F$44*(('BP Financier'!$C$16+'BP Financier'!$D$16+'BP Financier'!$E$16+'BP Financier'!$F$16)/('BP Financier'!$C$16+'BP Financier'!$C$19+'BP Financier'!$D$16+'BP Financier'!$D$19+'BP Financier'!$E$16+'BP Financier'!$E$19+'BP Financier'!$C$22+'BP Financier'!$D$22+'BP Financier'!$E$22+'BP Financier'!$F$16+'BP Financier'!$F$19+'BP Financier'!$F$22))*$V6133*AB6133/(1-$W6133)","v":{"v":21668.241445923406,"d":"21,668"}},null,{"v":0.0025,"d":"0.25%"},{"$f":"Actif!$E$28/100","v":{"v":0.28900000000000003,"d":"28.90%"}},{"$f":"Actif!$E$30/100","v":{"v":0.09050000000000001,"d":"9.05%"}},{"$f":"Actif!$E$31/100","v":{"v":0.0605,"d":"6.05%"}},{"$f":"Actif!$E$32/100","v":{"v":0.47350000000000003,"d":"47.35%"}},{"$f":"Actif!$E$33/100","v":{"v":0.0585,"d":"5.85%"}},{"$f":"Actif!$E$29/100","v":{"v":0.027999999999999997,"d":"2.80%"}}]
[null,"#27",24,2029,"H","A_VIE",{"v":0.44999999999999996,"d":"0.45"},{"v":0.38999999999999996,"d":"0.39"},0.6,0.6,85,0,{"$f":"ROUND(Primes!$P$4*V6134,0)","v":24},{"$f":"'BP Financier'!$F$33*(('BP Financier'!$C$16+'BP Financier'!$D$16+'BP Financier'!$E$16+'BP Financier'!$F$16)/('BP Financier'!$C$16+'BP Financier'!$C$19+'BP Financier'!$D$16+'BP Financier'!$D$19+'BP Financier'!$E$16+'BP Financier'!$E$19+'BP Financier'!$F$16+'BP Financier'!$F$19))*V6134","v":{"v":969943.3955546642,"d":"969,943"}},{"v":550218.5595732694,"d":"550,219"},{"$f":"'BP Financier'!$F$44*(('BP Financier'!$C$16+'BP Financier'!$D$16+'BP Financier'!$E$16+'BP Financier'!$F$16)/('BP Financier'!$C$16+'BP Financier'!$C$19+'BP Financier'!$D$16+'BP Financier'!$D$19+'BP Financier'!$E$16+'BP Financier'!$E$19+'BP Financier'!$C$22+'BP Financier'!$D$22+'BP Financier'!$E$22+'BP Financier'!$F$16+'BP Financier'!$F$19+'BP Financier'!$F$22))*$V6134*X6134/(1-$W6134)","v":{"v":70034.85181628817,"d":"70,035"}},{"$f":"'BP Financier'!$F$44*(('BP Financier'!$C$16+'BP Financier'!$D$16+'BP Financier'!$E$16+'BP Financier'!$F$16)/('BP Financier'!$C$16+'BP Financier'!$C$19+'BP Financier'!$D$16+'BP Financier'!$D$19+'BP Financier'!$E$16+'BP Financier'!$E$19+'BP Financier'!$C$22+'BP Financier'!$D$22+'BP Financier'!$E$22+'BP Financier'!$F$16+'BP Financier'!$F$19+'BP Financier'!$F$22))*$V6134*Y6134/(1-$W6134)","v":{"v":46818.878838513076,"d":"46,819"}},{"$f":"'BP Financier'!$F$44*(('BP Financier'!$C$16+'BP Financier'!$D$16+'BP Financier'!$E$16+'BP Financier'!$F$16)/('BP Financier'!$C$16+'BP Financier'!$C$19+'BP Financier'!$D$16+'BP Financier'!$D$19+'BP Financier'!$E$16+'BP Financier'!$E$19+'BP Financier'!$C$22+'BP Financier'!$D$22+'BP Financier'!$E$22+'BP Financier'!$F$16+'BP Financier'!$F$19+'BP Financier'!$F$22))*$V6134*Z6134/(1-$W6134)","v":{"v":366425.44016588334,"d":"366,425"}},{"$f":"'BP Financier'!$F$44*(('BP Financier'!$C$16+'BP Financier'!$D$16+'BP Financier'!$E$16+'BP Financier'!$F$16)/('BP Financier'!$C$16+'BP Financier'!$C$19+'BP Financier'!$D$16+'BP Financier'!$D$19+'BP Financier'!$E$16+'BP Financier'!$E$19+'BP Financier'!$C$22+'BP Financier'!$D$22+'BP Financier'!$E$22+'BP Financier'!$F$16+'BP Financier'!$F$19+'BP Financier'!$F$22))*$V6134*AA6134/(1-$W6134)","v":{"v":45271.147306661405,"d":"45,271"}},{"$f":"'BP Financier'!$F$44*(('BP Financier'!$C$16+'BP Financier'!$D$16+'BP Financier'!$E$16+'BP Financier'!$F$16)/('BP Financier'!$C$16+'BP Financier'!$C$19+'BP Financier'!$D$16+'BP Financier'!$D$19+'BP Financier'!$E$16+'BP Financier'!$E$19+'BP Financier'!$C$22+'BP Financier'!$D$22+'BP Financier'!$E$22+'BP Financier'!$F$16+'BP Financier'!$F$19+'BP Financier'!$F$22))*$V6134*AB6134/(1-$W6134)","v":{"v":21668.241445923406,"d":"21,668"}},null,{"v":0.0025,"d":"0.25%"},{"$f":"Actif!$E$28/100","v":{"v":0.28900000000000003,"d":"28.90%"}},{"$f":"Actif!$E$30/100","v":{"v":0.09050000000000001,"d":"9.05%"}},{"$f":"Actif!$E$31/100","v":{"v":0.0605,"d":"6.05%"}},{"$f":"Actif!$E$32/100","v":{"v":0.47350000000000003,"d":"47.35%"}},{"$f":"Actif!$E$33/100","v":{"v":0.0585,"d":"5.85%"}},{"$f":"Actif!$E$29/100","v":{"v":0.027999999999999997,"d":"2.80%"}}]
[null,"#28",24,2030,"H","A_VIE",{"v":0.44999999999999996,"d":"0.45"},{"v":0.38999999999999996,"d":"0.39"},0.6,0.6,85,0,{"$f":"ROUND(Primes!$P$4*V6135,0)","v":24},{"$f":"'BP Financier'!$F$33*(('BP Financier'!$C$16+'BP Financier'!$D$16+'BP Financier'!$E$16+'BP Financier'!$F$16)/('BP Financier'!$C$16+'BP Financier'!$C$19+'BP Financier'!$D$16+'BP Financier'!$D$19+'BP Financier'!$E$16+'BP Financier'!$E$19+'BP Financier'!$F$16+'BP Financier'!$F$19))*V6135","v":{"v":969943.3955546642,"d":"969,943"}},{"v":550218.5595732694,"d":"550,219"},{"$f":"'BP Financier'!$F$44*(('BP Financier'!$C$16+'BP Financier'!$D$16+'BP Financier'!$E$16+'BP Financier'!$F$16)/('BP Financier'!$C$16+'BP Financier'!$C$19+'BP Financier'!$D$16+'BP Financier'!$D$19+'BP Financier'!$E$16+'BP Financier'!$E$19+'BP Financier'!$C$22+'BP Financier'!$D$22+'BP Financier'!$E$22+'BP Financier'!$F$16+'BP Financier'!$F$19+'BP Financier'!$F$22))*$V6135*X6135/(1-$W6135)","v":{"v":70034.85181628817,"d":"70,035"}},{"$f":"'BP Financier'!$F$44*(('BP Financier'!$C$16+'BP Financier'!$D$16+'BP Financier'!$E$16+'BP Financier'!$F$16)/('BP Financier'!$C$16+'BP Financier'!$C$19+'BP Financier'!$D$16+'BP Financier'!$D$19+'BP Financier'!$E$16+'BP Financier'!$E$19+'BP Financier'!$C$22+'BP Financier'!$D$22+'BP Financier'!$E$22+'BP Financier'!$F$16+'BP Financier'!$F$19+'BP Financier'!$F$22))*$V6135*Y6135/(1-$W6135)","v":{"v":46818.878838513076,"d":"46,819"}},{"$f":"'BP Financier'!$F$44*(('BP Financier'!$C$16+'BP Financier'!$D$16+'BP Financier'!$E$16+'BP Financier'!$F$16)/('BP Financier'!$C$16+'BP Financier'!$C$19+'BP Financier'!$D$16+'BP Financier'!$D$19+'BP Financier'!$E$16+'BP Financier'!$E$19+'BP Financier'!$C$22+'BP Financier'!$D$22+'BP Financier'!$E$22+'BP Financier'!$F$16+'BP Financier'!$F$19+'BP Financier'!$F$22))*$V6135*Z6135/(1-$W6135)","v":{"v":366425.44016588334,"d":"366,425"}},{"$f":"'BP Financier'!$F$44*(('BP Financier'!$C$16+'BP Financier'!$D$16+'BP Financier'!$E$16+'BP Financier'!$F$16)/('BP Financier'!$C$16+'BP Financier'!$C$19+'BP Financier'!$D$16+'BP Financier'!$D$19+'BP Financier'!$E$16+'BP Financier'!$E$19+'BP Financier'!$C$22+'BP Financier'!$D$22+'BP Financier'!$E$22+'BP Financier'!$F$16+'BP Financier'!$F$19+'BP Financier'!$F$22))*$V6135*AA6135/(1-$W6135)","v":{"v":45271.147306661405,"d":"45,271"}},{"$f":"'BP Financier'!$F$44*(('BP Financier'!$C$16+'BP Financier'!$D$16+'BP Financier'!$E$16+'BP Financier'!$F$16)/('BP Financier'!$C$16+'BP Financier'!$C$19+'BP Financier'!$D$16+'BP Financier'!$D$19+'BP Financier'!$E$16+'BP Financier'!$E$19+'BP Financier'!$C$22+'BP Financier'!$D$22+'BP Financier'!$E$22+'BP Financier'!$F$16+'BP Financier'!$F$19+'BP Financier'!$F$22))*$V6135*AB6135/(1-$W6135)","v":{"v":21668.241445923406,"d":"21,668"}},null,{"v":0.0025,"d":"0.25%"},{"$f":"Actif!$E$28/100","v":{"v":0.28900000000000003,"d":"28.90%"}},{"$f":"Actif!$E$30/100","v":{"v":0.09050000000000001,"d":"9.05%"}},{"$f":"Actif!$E$31/100","v":{"v":0.0605,"d":"6.05%"}},{"$f":"Actif!$E$32/100","v":{"v":0.47350000000000003,"d":"47.35%"}},{"$f":"Actif!$E$33/100","v":{"v":0.0585,"d":"5.85%"}},{"$f":"Actif!$E$29/100","v":{"v":0.027999999999999997,"d":"2.80%"}}]
[null,"#29",25,2026,"H","A_VIE",{"v":0.44999999999999996,"d":"0.45"},{"v":0.38999999999999996,"d":"0.39"},0.6,0.6,85,0,{"$f":"ROUND(Primes!$P$4*V6136,0)","v":119},{"$f":"'BP Financier'!$F$33*(('BP Financier'!$C$16+'BP Financier'!$D$16+'BP Financier'!$E$16+'BP Financier'!$F$16)/('BP Financier'!$C$16+'BP Financier'!$C$19+'BP Financier'!$D$16+'BP Financier'!$D$19+'BP Financier'!$E$16+'BP Financier'!$E$19+'BP Financier'!$F$16+'BP Financier'!$F$19))*V6136","v":{"v":4849716.977773321,"d":"4,849,717"}},{"v":2751092.797866347,"d":"2,751,093"},{"$f":"'BP Financier'!$F$44*(('BP Financier'!$C$16+'BP Financier'!$D$16+'BP Financier'!$E$16+'BP Financier'!$F$16)/('BP Financier'!$C$16+'BP Financier'!$C$19+'BP Financier'!$D$16+'BP Financier'!$D$19+'BP Financier'!$E$16+'BP Financier'!$E$19+'BP Financier'!$C$22+'BP Financier'!$D$22+'BP Financier'!$E$22+'BP Financier'!$F$16+'BP Financier'!$F$19+'BP Financier'!$F$22))*$V6136*X6136/(1-$W6136)","v":{"v":350174.2590814408,"d":"350,174"}},{"$f":"'BP Financier'!$F$44*(('BP Financier'!$C$16+'BP Financier'!$D$16+'BP Financier'!$E$16+'BP Financier'!$F$16)/('BP Financier'!$C$16+'BP Financier'!$C$19+'BP Financier'!$D$16+'BP Financier'!$D$19+'BP Financier'!$E$16+'BP Financier'!$E$19+'BP Financier'!$C$22+'BP Financier'!$D$22+'BP Financier'!$E$22+'BP Financier'!$F$16+'BP Financier'!$F$19+'BP Financier'!$F$22))*$V6136*Y6136/(1-$W6136)","v":{"v":234094.39419256538,"d":"234,094"}},{"$f":"'BP Financier'!$F$44*(('BP Financier'!$C$16+'BP Financier'!$D$16+'BP Financier'!$E$16+'BP Financier'!$F$16)/('BP Financier'!$C$16+'BP Financier'!$C$19+'BP Financier'!$D$16+'BP Financier'!$D$19+'BP Financier'!$E$16+'BP Financier'!$E$19+'BP Financier'!$C$22+'BP Financier'!$D$22+'BP Financier'!$E$22+'BP Financier'!$F$16+'BP Financier'!$F$19+'BP Financier'!$F$22))*$V6136*Z6136/(1-$W6136)","v":{"v":1832127.2008294167,"d":"1,832,127"}},{"$f":"'BP Financier'!$F$44*(('BP Financier'!$C$16+'BP Financier'!$D$16+'BP Financier'!$E$16+'BP Financier'!$F$16)/('BP Financier'!$C$16+'BP Financier'!$C$19+'BP Financier'!$D$16+'BP Financier'!$D$19+'BP Financier'!$E$16+'BP Financier'!$E$19+'BP Financier'!$C$22+'BP Financier'!$D$22+'BP Financier'!$E$22+'BP Financier'!$F$16+'BP Financier'!$F$19+'BP Financier'!$F$22))*$V6136*AA6136/(1-$W6136)","v":{"v":226355.73653330703,"d":"226,356"}},{"$f":"'BP Financier'!$F$44*(('BP Financier'!$C$16+'BP Financier'!$D$16+'BP Financier'!$E$16+'BP Financier'!$F$16)/('BP Financier'!$C$16+'BP Financier'!$C$19+'BP Financier'!$D$16+'BP Financier'!$D$19+'BP Financier'!$E$16+'BP Financier'!$E$19+'BP Financier'!$C$22+'BP Financier'!$D$22+'BP Financier'!$E$22+'BP Financier'!$F$16+'BP Financier'!$F$19+'BP Financier'!$F$22))*$V6136*AB6136/(1-$W6136)","v":{"v":108341.20722961702,"d":"108,341"}},null,{"v":0.0125,"d":"1.25%"},{"$f":"Actif!$E$28/100","v":{"v":0.28900000000000003,"d":"28.90%"}},{"$f":"Actif!$E$30/100","v":{"v":0.09050000000000001,"d":"9.05%"}},{"$f":"Actif!$E$31/100","v":{"v":0.0605,"d":"6.05%"}},{"$f":"Actif!$E$32/100","v":{"v":0.47350000000000003,"d":"47.35%"}},{"$f":"Actif!$E$33/100","v":{"v":0.0585,"d":"5.85%"}},{"$f":"Actif!$E$29/100","v":{"v":0.027999999999999997,"d":"2.80%"}}]
[null,"#30",25,2028,"H","A_VIE",{"v":0.44999999999999996,"d":"0.45"},{"v":0.38999999999999996,"d":"0.39"},0.6,0.6,85,0,{"$f":"ROUND(Primes!$P$4*V6137,0)","v":119},{"$f":"'BP Financier'!$F$33*(('BP Financier'!$C$16+'BP Financier'!$D$16+'BP Financier'!$E$16+'BP Financier'!$F$16)/('BP Financier'!$C$16+'BP Financier'!$C$19+'BP Financier'!$D$16+'BP Financier'!$D$19+'BP Financier'!$E$16+'BP Financier'!$E$19+'BP Financier'!$F$16+'BP Financier'!$F$19))*V6137","v":{"v":4849716.977773321,"d":"4,849,717"}},{"v":2751092.797866347,"d":"2,751,093"},{"$f":"'BP Financier'!$F$44*(('BP Financier'!$C$16+'BP Financier'!$D$16+'BP Financier'!$E$16+'BP Financier'!$F$16)/('BP Financier'!$C$16+'BP Financier'!$C$19+'BP Financier'!$D$16+'BP Financier'!$D$19+'BP Financier'!$E$16+'BP Financier'!$E$19+'BP Financier'!$C$22+'BP Financier'!$D$22+'BP Financier'!$E$22+'BP Financier'!$F$16+'BP Financier'!$F$19+'BP Financier'!$F$22))*$V6137*X6137/(1-$W6137)","v":{"v":350174.2590814408,"d":"350,174"}},{"$f":"'BP Financier'!$F$44*(('BP Financier'!$C$16+'BP Financier'!$D$16+'BP Financier'!$E$16+'BP Financier'!$F$16)/('BP Financier'!$C$16+'BP Financier'!$C$19+'BP Financier'!$D$16+'BP Financier'!$D$19+'BP Financier'!$E$16+'BP Financier'!$E$19+'BP Financier'!$C$22+'BP Financier'!$D$22+'BP Financier'!$E$22+'BP Financier'!$F$16+'BP Financier'!$F$19+'BP Financier'!$F$22))*$V6137*Y6137/(1-$W6137)","v":{"v":234094.39419256538,"d":"234,094"}},{"$f":"'BP Financier'!$F$44*(('BP Financier'!$C$16+'BP Financier'!$D$16+'BP Financier'!$E$16+'BP Financier'!$F$16)/('BP Financier'!$C$16+'BP Financier'!$C$19+'BP Financier'!$D$16+'BP Financier'!$D$19+'BP Financier'!$E$16+'BP Financier'!$E$19+'BP Financier'!$C$22+'BP Financier'!$D$22+'BP Financier'!$E$22+'BP Financier'!$F$16+'BP Financier'!$F$19+'BP Financier'!$F$22))*$V6137*Z6137/(1-$W6137)","v":{"v":1832127.2008294167,"d":"1,832,127"}},{"$f":"'BP Financier'!$F$44*(('BP Financier'!$C$16+'BP Financier'!$D$16+'BP Financier'!$E$16+'BP Financier'!$F$16)/('BP Financier'!$C$16+'BP Financier'!$C$19+'BP Financier'!$D$16+'BP Financier'!$D$19+'BP Financier'!$E$16+'BP Financier'!$E$19+'BP Financier'!$C$22+'BP Financier'!$D$22+'BP Financier'!$E$22+'BP Financier'!$F$16+'BP Financier'!$F$19+'BP Financier'!$F$22))*$V6137*AA6137/(1-$W6137)","v":{"v":226355.73653330703,"d":"226,356"}},{"$f":"'BP Financier'!$F$44*(('BP Financier'!$C$16+'BP Financier'!$D$16+'BP Financier'!$E$16+'BP Financier'!$F$16)/('BP Financier'!$C$16+'BP Financier'!$C$19+'BP Financier'!$D$16+'BP Financier'!$D$19+'BP Financier'!$E$16+'BP Financier'!$E$19+'BP Financier'!$C$22+'BP Financier'!$D$22+'BP Financier'!$E$22+'BP Financier'!$F$16+'BP Financier'!$F$19+'BP Financier'!$F$22))*$V6137*AB6137/(1-$W6137)","v":{"v":108341.20722961702,"d":"108,341"}},null,{"v":0.0125,"d":"1.25%"},{"$f":"Actif!$E$28/100","v":{"v":0.28900000000000003,"d":"28.90%"}},{"$f":"Actif!$E$30/100","v":{"v":0.09050000000000001,"d":"9.05%"}},{"$f":"Actif!$E$31/100","v":{"v":0.0605,"d":"6.05%"}},{"$f":"Actif!$E$32/100","v":{"v":0.47350000000000003,"d":"47.35%"}},{"$f":"Actif!$E$33/100","v":{"v":0.0585,"d":"5.85%"}},{"$f":"Actif!$E$29/100","v":{"v":0.027999999999999997,"d":"2.80%"}}]
[null,"#31",25,2029,"H","A_VIE",{"v":0.44999999999999996,"d":"0.45"},{"v":0.38999999999999996,"d":"0.39"},0.6,0.6,85,0,{"$f":"ROUND(Primes!$P$4*V6138,0)","v":119},{"$f":"'BP Financier'!$F$33*(('BP Financier'!$C$16+'BP Financier'!$D$16+'BP Financier'!$E$16+'BP Financier'!$F$16)/('BP Financier'!$C$16+'BP Financier'!$C$19+'BP Financier'!$D$16+'BP Financier'!$D$19+'BP Financier'!$E$16+'BP Financier'!$E$19+'BP Financier'!$F$16+'BP Financier'!$F$19))*V6138","v":{"v":4849716.977773321,"d":"4,849,717"}},{"v":2751092.797866347,"d":"2,751,093"},{"$f":"'BP Financier'!$F$44*(('BP Financier'!$C$16+'BP Financier'!$D$16+'BP Financier'!$E$16+'BP Financier'!$F$16)/('BP Financier'!$C$16+'BP Financier'!$C$19+'BP Financier'!$D$16+'BP Financier'!$D$19+'BP Financier'!$E$16+'BP Financier'!$E$19+'BP Financier'!$C$22+'BP Financier'!$D$22+'BP Financier'!$E$22+'BP Financier'!$F$16+'BP Financier'!$F$19+'BP Financier'!$F$22))*$V6138*X6138/(1-$W6138)","v":{"v":350174.2590814408,"d":"350,174"}},{"$f":"'BP Financier'!$F$44*(('BP Financier'!$C$16+'BP Financier'!$D$16+'BP Financier'!$E$16+'BP Financier'!$F$16)/('BP Financier'!$C$16+'BP Financier'!$C$19+'BP Financier'!$D$16+'BP Financier'!$D$19+'BP Financier'!$E$16+'BP Financier'!$E$19+'BP Financier'!$C$22+'BP Financier'!$D$22+'BP Financier'!$E$22+'BP Financier'!$F$16+'BP Financier'!$F$19+'BP Financier'!$F$22))*$V6138*Y6138/(1-$W6138)","v":{"v":234094.39419256538,"d":"234,094"}},{"$f":"'BP Financier'!$F$44*(('BP Financier'!$C$16+'BP Financier'!$D$16+'BP Financier'!$E$16+'BP Financier'!$F$16)/('BP Financier'!$C$16+'BP Financier'!$C$19+'BP Financier'!$D$16+'BP Financier'!$D$19+'BP Financier'!$E$16+'BP Financier'!$E$19+'BP Financier'!$C$22+'BP Financier'!$D$22+'BP Financier'!$E$22+'BP Financier'!$F$16+'BP Financier'!$F$19+'BP Financier'!$F$22))*$V6138*Z6138/(1-$W6138)","v":{"v":1832127.2008294167,"d":"1,832,127"}},{"$f":"'BP Financier'!$F$44*(('BP Financier'!$C$16+'BP Financier'!$D$16+'BP Financier'!$E$16+'BP Financier'!$F$16)/('BP Financier'!$C$16+'BP Financier'!$C$19+'BP Financier'!$D$16+'BP Financier'!$D$19+'BP Financier'!$E$16+'BP Financier'!$E$19+'BP Financier'!$C$22+'BP Financier'!$D$22+'BP Financier'!$E$22+'BP Financier'!$F$16+'BP Financier'!$F$19+'BP Financier'!$F$22))*$V6138*AA6138/(1-$W6138)","v":{"v":226355.73653330703,"d":"226,356"}},{"$f":"'BP Financier'!$F$44*(('BP Financier'!$C$16+'BP Financier'!$D$16+'BP Financier'!$E$16+'BP Financier'!$F$16)/('BP Financier'!$C$16+'BP Financier'!$C$19+'BP Financier'!$D$16+'BP Financier'!$D$19+'BP Financier'!$E$16+'BP Financier'!$E$19+'BP Financier'!$C$22+'BP Financier'!$D$22+'BP Financier'!$E$22+'BP Financier'!$F$16+'BP Financier'!$F$19+'BP Financier'!$F$22))*$V6138*AB6138/(1-$W6138)","v":{"v":108341.20722961702,"d":"108,341"}},null,{"v":0.0125,"d":"1.25%"},{"$f":"Actif!$E$28/100","v":{"v":0.28900000000000003,"d":"28.90%"}},{"$f":"Actif!$E$30/100","v":{"v":0.09050000000000001,"d":"9.05%"}},{"$f":"Actif!$E$31/100","v":{"v":0.0605,"d":"6.05%"}},{"$f":"Actif!$E$32/100","v":{"v":0.47350000000000003,"d":"47.35%"}},{"$f":"Actif!$E$33/100","v":{"v":0.0585,"d":"5.85%"}},{"$f":"Actif!$E$29/100","v":{"v":0.027999999999999997,"d":"2.80%"}}]
[null,"#32",25,2030,"H","A_VIE",{"v":0.44999999999999996,"d":"0.45"},{"v":0.38999999999999996,"d":"0.39"},0.6,0.6,85,0,{"$f":"ROUND(Primes!$P$4*V6139,0)","v":119},{"$f":"'BP Financier'!$F$33*(('BP Financier'!$C$16+'BP Financier'!$D$16+'BP Financier'!$E$16+'BP Financier'!$F$16)/('BP Financier'!$C$16+'BP Financier'!$C$19+'BP Financier'!$D$16+'BP Financier'!$D$19+'BP Financier'!$E$16+'BP Financier'!$E$19+'BP Financier'!$F$16+'BP Financier'!$F$19))*V6139","v":{"v":4849716.977773321,"d":"4,849,717"}},{"v":2751092.797866347,"d":"2,751,093"},{"$f":"'BP Financier'!$F$44*(('BP Financier'!$C$16+'BP Financier'!$D$16+'BP Financier'!$E$16+'BP Financier'!$F$16)/('BP Financier'!$C$16+'BP Financier'!$C$19+'BP Financier'!$D$16+'BP Financier'!$D$19+'BP Financier'!$E$16+'BP Financier'!$E$19+'BP Financier'!$C$22+'BP Financier'!$D$22+'BP Financier'!$E$22+'BP Financier'!$F$16+'BP Financier'!$F$19+'BP Financier'!$F$22))*$V6139*X6139/(1-$W6139)","v":{"v":350174.2590814408,"d":"350,174"}},{"$f":"'BP Financier'!$F$44*(('BP Financier'!$C$16+'BP Financier'!$D$16+'BP Financier'!$E$16+'BP Financier'!$F$16)/('BP Financier'!$C$16+'BP Financier'!$C$19+'BP Financier'!$D$16+'BP Financier'!$D$19+'BP Financier'!$E$16+'BP Financier'!$E$19+'BP Financier'!$C$22+'BP Financier'!$D$22+'BP Financier'!$E$22+'BP Financier'!$F$16+'BP Financier'!$F$19+'BP Financier'!$F$22))*$V6139*Y6139/(1-$W6139)","v":{"v":234094.39419256538,"d":"234,094"}},{"$f":"'BP Financier'!$F$44*(('BP Financier'!$C$16+'BP Financier'!$D$16+'BP Financier'!$E$16+'BP Financier'!$F$16)/('BP Financier'!$C$16+'BP Financier'!$C$19+'BP Financier'!$D$16+'BP Financier'!$D$19+'BP Financier'!$E$16+'BP Financier'!$E$19+'BP Financier'!$C$22+'BP Financier'!$D$22+'BP Financier'!$E$22+'BP Financier'!$F$16+'BP Financier'!$F$19+'BP Financier'!$F$22))*$V6139*Z6139/(1-$W6139)","v":{"v":1832127.2008294167,"d":"1,832,127"}},{"$f":"'BP Financier'!$F$44*(('BP Financier'!$C$16+'BP Financier'!$D$16+'BP Financier'!$E$16+'BP Financier'!$F$16)/('BP Financier'!$C$16+'BP Financier'!$C$19+'BP Financier'!$D$16+'BP Financier'!$D$19+'BP Financier'!$E$16+'BP Financier'!$E$19+'BP Financier'!$C$22+'BP Financier'!$D$22+'BP Financier'!$E$22+'BP Financier'!$F$16+'BP Financier'!$F$19+'BP Financier'!$F$22))*$V6139*AA6139/(1-$W6139)","v":{"v":226355.73653330703,"d":"226,356"}},{"$f":"'BP Financier'!$F$44*(('BP Financier'!$C$16+'BP Financier'!$D$16+'BP Financier'!$E$16+'BP Financier'!$F$16)/('BP Financier'!$C$16+'BP Financier'!$C$19+'BP Financier'!$D$16+'BP Financier'!$D$19+'BP Financier'!$E$16+'BP Financier'!$E$19+'BP Financier'!$C$22+'BP Financier'!$D$22+'BP Financier'!$E$22+'BP Financier'!$F$16+'BP Financier'!$F$19+'BP Financier'!$F$22))*$V6139*AB6139/(1-$W6139)","v":{"v":108341.20722961702,"d":"108,341"}},null,{"v":0.0125,"d":"1.25%"},{"$f":"Actif!$E$28/100","v":{"v":0.28900000000000003,"d":"28.90%"}},{"$f":"Actif!$E$30/100","v":{"v":0.09050000000000001,"d":"9.05%"}},{"$f":"Actif!$E$31/100","v":{"v":0.0605,"d":"6.05%"}},{"$f":"Actif!$E$32/100","v":{"v":0.47350000000000003,"d":"47.35%"}},{"$f":"Actif!$E$33/100","v":{"v":0.0585,"d":"5.85%"}},{"$f":"Actif!$E$29/100","v":{"v":0.027999999999999997,"d":"2.80%"}}]
[null,"#33",26,2026,"F","A_VIE",{"v":0.44999999999999996,"d":"0.45"},{"v":0.38999999999999996,"d":"0.39"},0.6,0.6,85,0,{"$f":"ROUND(Primes!$P$4*V6140,0)","v":71},{"$f":"'BP Financier'!$F$33*(('BP Financier'!$C$16+'BP Financier'!$D$16+'BP Financier'!$E$16+'BP Financier'!$F$16)/('BP Financier'!$C$16+'BP Financier'!$C$19+'BP Financier'!$D$16+'BP Financier'!$D$19+'BP Financier'!$E$16+'BP Financier'!$E$19+'BP Financier'!$F$16+'BP Financier'!$F$19))*V6140","v":{"v":2909830.1866639922,"d":"2,909,830"}},{"v":1650655.678719808,"d":"1,650,656"},{"$f":"'BP Financier'!$F$44*(('BP Financier'!$C$16+'BP Financier'!$D$16+'BP Financier'!$E$16+'BP Financier'!$F$16)/('BP Financier'!$C$16+'BP Financier'!$C$19+'BP Financier'!$D$16+'BP Financier'!$D$19+'BP Financier'!$E$16+'BP Financier'!$E$19+'BP Financier'!$C$22+'BP Financier'!$D$22+'BP Financier'!$E$22+'BP Financier'!$F$16+'BP Financier'!$F$19+'BP Financier'!$F$22))*$V6140*X6140/(1-$W6140)","v":{"v":210104.55544886444,"d":"210,105"}},{"$f":"'BP Financier'!$F$44*(('BP Financier'!$C$16+'BP Financier'!$D$16+'BP Financier'!$E$16+'BP Financier'!$F$16)/('BP Financier'!$C$16+'BP Financier'!$C$19+'BP Financier'!$D$16+'BP Financier'!$D$19+'BP Financier'!$E$16+'BP Financier'!$E$19+'BP Financier'!$C$22+'BP Financier'!$D$22+'BP Financier'!$E$22+'BP Financier'!$F$16+'BP Financier'!$F$19+'BP Financier'!$F$22))*$V6140*Y6140/(1-$W6140)","v":{"v":140456.63651553923,"d":"140,457"}},{"$f":"'BP Financier'!$F$44*(('BP Financier'!$C$16+'BP Financier'!$D$16+'BP Financier'!$E$16+'BP Financier'!$F$16)/('BP Financier'!$C$16+'BP Financier'!$C$19+'BP Financier'!$D$16+'BP Financier'!$D$19+'BP Financier'!$E$16+'BP Financier'!$E$19+'BP Financier'!$C$22+'BP Financier'!$D$22+'BP Financier'!$E$22+'BP Financier'!$F$16+'BP Financier'!$F$19+'BP Financier'!$F$22))*$V6140*Z6140/(1-$W6140)","v":{"v":1099276.32049765,"d":"1,099,276"}},{"$f":"'BP Financier'!$F$44*(('BP Financier'!$C$16+'BP Financier'!$D$16+'BP Financier'!$E$16+'BP Financier'!$F$16)/('BP Financier'!$C$16+'BP Financier'!$C$19+'BP Financier'!$D$16+'BP Financier'!$D$19+'BP Financier'!$E$16+'BP Financier'!$E$19+'BP Financier'!$C$22+'BP Financier'!$D$22+'BP Financier'!$E$22+'BP Financier'!$F$16+'BP Financier'!$F$19+'BP Financier'!$F$22))*$V6140*AA6140/(1-$W6140)","v":{"v":135813.4419199842,"d":"135,813"}},{"$f":"'BP Financier'!$F$44*(('BP Financier'!$C$16+'BP Financier'!$D$16+'BP Financier'!$E$16+'BP Financier'!$F$16)/('BP Financier'!$C$16+'BP Financier'!$C$19+'BP Financier'!$D$16+'BP Financier'!$D$19+'BP Financier'!$E$16+'BP Financier'!$E$19+'BP Financier'!$C$22+'BP Financier'!$D$22+'BP Financier'!$E$22+'BP Financier'!$F$16+'BP Financier'!$F$19+'BP Financier'!$F$22))*$V6140*AB6140/(1-$W6140)","v":{"v":65004.72433777021,"d":"65,005"}},null,{"v":0.0075,"d":"0.75%"},{"$f":"Actif!$E$28/100","v":{"v":0.28900000000000003,"d":"28.90%"}},{"$f":"Actif!$E$30/100","v":{"v":0.09050000000000001,"d":"9.05%"}},{"$f":"Actif!$E$31/100","v":{"v":0.0605,"d":"6.05%"}},{"$f":"Actif!$E$32/100","v":{"v":0.47350000000000003,"d":"47.35%"}},{"$f":"Actif!$E$33/100","v":{"v":0.0585,"d":"5.85%"}},{"$f":"Actif!$E$29/100","v":{"v":0.027999999999999997,"d":"2.80%"}}]
[null,"#34",26,2028,"F","A_VIE",{"v":0.44999999999999996,"d":"0.45"},{"v":0.38999999999999996,"d":"0.39"},0.6,0.6,85,0,{"$f":"ROUND(Primes!$P$4*V6141,0)","v":71},{"$f":"'BP Financier'!$F$33*(('BP Financier'!$C$16+'BP Financier'!$D$16+'BP Financier'!$E$16+'BP Financier'!$F$16)/('BP Financier'!$C$16+'BP Financier'!$C$19+'BP Financier'!$D$16+'BP Financier'!$D$19+'BP Financier'!$E$16+'BP Financier'!$E$19+'BP Financier'!$F$16+'BP Financier'!$F$19))*V6141","v":{"v":2909830.1866639922,"d":"2,909,830"}},{"v":1650655.678719808,"d":"1,650,656"},{"$f":"'BP Financier'!$F$44*(('BP Financier'!$C$16+'BP Financier'!$D$16+'BP Financier'!$E$16+'BP Financier'!$F$16)/('BP Financier'!$C$16+'BP Financier'!$C$19+'BP Financier'!$D$16+'BP Financier'!$D$19+'BP Financier'!$E$16+'BP Financier'!$E$19+'BP Financier'!$C$22+'BP Financier'!$D$22+'BP Financier'!$E$22+'BP Financier'!$F$16+'BP Financier'!$F$19+'BP Financier'!$F$22))*$V6141*X6141/(1-$W6141)","v":{"v":210104.55544886444,"d":"210,105"}},{"$f":"'BP Financier'!$F$44*(('BP Financier'!$C$16+'BP Financier'!$D$16+'BP Financier'!$E$16+'BP Financier'!$F$16)/('BP Financier'!$C$16+'BP Financier'!$C$19+'BP Financier'!$D$16+'BP Financier'!$D$19+'BP Financier'!$E$16+'BP Financier'!$E$19+'BP Financier'!$C$22+'BP Financier'!$D$22+'BP Financier'!$E$22+'BP Financier'!$F$16+'BP Financier'!$F$19+'BP Financier'!$F$22))*$V6141*Y6141/(1-$W6141)","v":{"v":140456.63651553923,"d":"140,457"}},{"$f":"'BP Financier'!$F$44*(('BP Financier'!$C$16+'BP Financier'!$D$16+'BP Financier'!$E$16+'BP Financier'!$F$16)/('BP Financier'!$C$16+'BP Financier'!$C$19+'BP Financier'!$D$16+'BP Financier'!$D$19+'BP Financier'!$E$16+'BP Financier'!$E$19+'BP Financier'!$C$22+'BP Financier'!$D$22+'BP Financier'!$E$22+'BP Financier'!$F$16+'BP Financier'!$F$19+'BP Financier'!$F$22))*$V6141*Z6141/(1-$W6141)","v":{"v":1099276.32049765,"d":"1,099,276"}},{"$f":"'BP Financier'!$F$44*(('BP Financier'!$C$16+'BP Financier'!$D$16+'BP Financier'!$E$16+'BP Financier'!$F$16)/('BP Financier'!$C$16+'BP Financier'!$C$19+'BP Financier'!$D$16+'BP Financier'!$D$19+'BP Financier'!$E$16+'BP Financier'!$E$19+'BP Financier'!$C$22+'BP Financier'!$D$22+'BP Financier'!$E$22+'BP Financier'!$F$16+'BP Financier'!$F$19+'BP Financier'!$F$22))*$V6141*AA6141/(1-$W6141)","v":{"v":135813.4419199842,"d":"135,813"}},{"$f":"'BP Financier'!$F$44*(('BP Financier'!$C$16+'BP Financier'!$D$16+'BP Financier'!$E$16+'BP Financier'!$F$16)/('BP Financier'!$C$16+'BP Financier'!$C$19+'BP Financier'!$D$16+'BP Financier'!$D$19+'BP Financier'!$E$16+'BP Financier'!$E$19+'BP Financier'!$C$22+'BP Financier'!$D$22+'BP Financier'!$E$22+'BP Financier'!$F$16+'BP Financier'!$F$19+'BP Financier'!$F$22))*$V6141*AB6141/(1-$W6141)","v":{"v":65004.72433777021,"d":"65,005"}},null,{"v":0.0075,"d":"0.75%"},{"$f":"Actif!$E$28/100","v":{"v":0.28900000000000003,"d":"28.90%"}},{"$f":"Actif!$E$30/100","v":{"v":0.09050000000000001,"d":"9.05%"}},{"$f":"Actif!$E$31/100","v":{"v":0.0605,"d":"6.05%"}},{"$f":"Actif!$E$32/100","v":{"v":0.47350000000000003,"d":"47.35%"}},{"$f":"Actif!$E$33/100","v":{"v":0.0585,"d":"5.85%"}},{"$f":"Actif!$E$29/100","v":{"v":0.027999999999999997,"d":"2.80%"}}]
[null,"#35",26,2029,"F","A_VIE",{"v":0.44999999999999996,"d":"0.45"},{"v":0.38999999999999996,"d":"0.39"},0.6,0.6,85,0,{"$f":"ROUND(Primes!$P$4*V6142,0)","v":71},{"$f":"'BP Financier'!$F$33*(('BP Financier'!$C$16+'BP Financier'!$D$16+'BP Financier'!$E$16+'BP Financier'!$F$16)/('BP Financier'!$C$16+'BP Financier'!$C$19+'BP Financier'!$D$16+'BP Financier'!$D$19+'BP Financier'!$E$16+'BP Financier'!$E$19+'BP Financier'!$F$16+'BP Financier'!$F$19))*V6142","v":{"v":2909830.1866639922,"d":"2,909,830"}},{"v":1650655.678719808,"d":"1,650,656"},{"$f":"'BP Financier'!$F$44*(('BP Financier'!$C$16+'BP Financier'!$D$16+'BP Financier'!$E$16+'BP Financier'!$F$16)/('BP Financier'!$C$16+'BP Financier'!$C$19+'BP Financier'!$D$16+'BP Financier'!$D$19+'BP Financier'!$E$16+'BP Financier'!$E$19+'BP Financier'!$C$22+'BP Financier'!$D$22+'BP Financier'!$E$22+'BP Financier'!$F$16+'BP Financier'!$F$19+'BP Financier'!$F$22))*$V6142*X6142/(1-$W6142)","v":{"v":210104.55544886444,"d":"210,105"}},{"$f":"'BP Financier'!$F$44*(('BP Financier'!$C$16+'BP Financier'!$D$16+'BP Financier'!$E$16+'BP Financier'!$F$16)/('BP Financier'!$C$16+'BP Financier'!$C$19+'BP Financier'!$D$16+'BP Financier'!$D$19+'BP Financier'!$E$16+'BP Financier'!$E$19+'BP Financier'!$C$22+'BP Financier'!$D$22+'BP Financier'!$E$22+'BP Financier'!$F$16+'BP Financier'!$F$19+'BP Financier'!$F$22))*$V6142*Y6142/(1-$W6142)","v":{"v":140456.63651553923,"d":"140,457"}},{"$f":"'BP Financier'!$F$44*(('BP Financier'!$C$16+'BP Financier'!$D$16+'BP Financier'!$E$16+'BP Financier'!$F$16)/('BP Financier'!$C$16+'BP Financier'!$C$19+'BP Financier'!$D$16+'BP Financier'!$D$19+'BP Financier'!$E$16+'BP Financier'!$E$19+'BP Financier'!$C$22+'BP Financier'!$D$22+'BP Financier'!$E$22+'BP Financier'!$F$16+'BP Financier'!$F$19+'BP Financier'!$F$22))*$V6142*Z6142/(1-$W6142)","v":{"v":1099276.32049765,"d":"1,099,276"}},{"$f":"'BP Financier'!$F$44*(('BP Financier'!$C$16+'BP Financier'!$D$16+'BP Financier'!$E$16+'BP Financier'!$F$16)/('BP Financier'!$C$16+'BP Financier'!$C$19+'BP Financier'!$D$16+'BP Financier'!$D$19+'BP Financier'!$E$16+'BP Financier'!$E$19+'BP Financier'!$C$22+'BP Financier'!$D$22+'BP Financier'!$E$22+'BP Financier'!$F$16+'BP Financier'!$F$19+'BP Financier'!$F$22))*$V6142*AA6142/(1-$W6142)","v":{"v":135813.4419199842,"d":"135,813"}},{"$f":"'BP Financier'!$F$44*(('BP Financier'!$C$16+'BP Financier'!$D$16+'BP Financier'!$E$16+'BP Financier'!$F$16)/('BP Financier'!$C$16+'BP Financier'!$C$19+'BP Financier'!$D$16+'BP Financier'!$D$19+'BP Financier'!$E$16+'BP Financier'!$E$19+'BP Financier'!$C$22+'BP Financier'!$D$22+'BP Financier'!$E$22+'BP Financier'!$F$16+'BP Financier'!$F$19+'BP Financier'!$F$22))*$V6142*AB6142/(1-$W6142)","v":{"v":65004.72433777021,"d":"65,005"}},null,{"v":0.0075,"d":"0.75%"},{"$f":"Actif!$E$28/100","v":{"v":0.28900000000000003,"d":"28.90%"}},{"$f":"Actif!$E$30/100","v":{"v":0.09050000000000001,"d":"9.05%"}},{"$f":"Actif!$E$31/100","v":{"v":0.0605,"d":"6.05%"}},{"$f":"Actif!$E$32/100","v":{"v":0.47350000000000003,"d":"47.35%"}},{"$f":"Actif!$E$33/100","v":{"v":0.0585,"d":"5.85%"}},{"$f":"Actif!$E$29/100","v":{"v":0.027999999999999997,"d":"2.80%"}}]
[null,"#36",26,2030,"F","A_VIE",{"v":0.44999999999999996,"d":"0.45"},{"v":0.38999999999999996,"d":"0.39"},0.6,0.6,85,0,{"$f":"ROUND(Primes!$P$4*V6143,0)","v":71},{"$f":"'BP Financier'!$F$33*(('BP Financier'!$C$16+'BP Financier'!$D$16+'BP Financier'!$E$16+'BP Financier'!$F$16)/('BP Financier'!$C$16+'BP Financier'!$C$19+'BP Financier'!$D$16+'BP Financier'!$D$19+'BP Financier'!$E$16+'BP Financier'!$E$19+'BP Financier'!$F$16+'BP Financier'!$F$19))*V6143","v":{"v":2909830.1866639922,"d":"2,909,830"}},{"v":1650655.678719808,"d":"1,650,656"},{"$f":"'BP Financier'!$F$44*(('BP Financier'!$C$16+'BP Financier'!$D$16+'BP Financier'!$E$16+'BP Financier'!$F$16)/('BP Financier'!$C$16+'BP Financier'!$C$19+'BP Financier'!$D$16+'BP Financier'!$D$19+'BP Financier'!$E$16+'BP Financier'!$E$19+'BP Financier'!$C$22+'BP Financier'!$D$22+'BP Financier'!$E$22+'BP Financier'!$F$16+'BP Financier'!$F$19+'BP Financier'!$F$22))*$V6143*X6143/(1-$W6143)","v":{"v":210104.55544886444,"d":"210,105"}},{"$f":"'BP Financier'!$F$44*(('BP Financier'!$C$16+'BP Financier'!$D$16+'BP Financier'!$E$16+'BP Financier'!$F$16)/('BP Financier'!$C$16+'BP Financier'!$C$19+'BP Financier'!$D$16+'BP Financier'!$D$19+'BP Financier'!$E$16+'BP Financier'!$E$19+'BP Financier'!$C$22+'BP Financier'!$D$22+'BP Financier'!$E$22+'BP Financier'!$F$16+'BP Financier'!$F$19+'BP Financier'!$F$22))*$V6143*Y6143/(1-$W6143)","v":{"v":140456.63651553923,"d":"140,457"}},{"$f":"'BP Financier'!$F$44*(('BP Financier'!$C$16+'BP Financier'!$D$16+'BP Financier'!$E$16+'BP Financier'!$F$16)/('BP Financier'!$C$16+'BP Financier'!$C$19+'BP Financier'!$D$16+'BP Financier'!$D$19+'BP Financier'!$E$16+'BP Financier'!$E$19+'BP Financier'!$C$22+'BP Financier'!$D$22+'BP Financier'!$E$22+'BP Financier'!$F$16+'BP Financier'!$F$19+'BP Financier'!$F$22))*$V6143*Z6143/(1-$W6143)","v":{"v":1099276.32049765,"d":"1,099,276"}},{"$f":"'BP Financier'!$F$44*(('BP Financier'!$C$16+'BP Financier'!$D$16+'BP Financier'!$E$16+'BP Financier'!$F$16)/('BP Financier'!$C$16+'BP Financier'!$C$19+'BP Financier'!$D$16+'BP Financier'!$D$19+'BP Financier'!$E$16+'BP Financier'!$E$19+'BP Financier'!$C$22+'BP Financier'!$D$22+'BP Financier'!$E$22+'BP Financier'!$F$16+'BP Financier'!$F$19+'BP Financier'!$F$22))*$V6143*AA6143/(1-$W6143)","v":{"v":135813.4419199842,"d":"135,813"}},{"$f":"'BP Financier'!$F$44*(('BP Financier'!$C$16+'BP Financier'!$D$16+'BP Financier'!$E$16+'BP Financier'!$F$16)/('BP Financier'!$C$16+'BP Financier'!$C$19+'BP Financier'!$D$16+'BP Financier'!$D$19+'BP Financier'!$E$16+'BP Financier'!$E$19+'BP Financier'!$C$22+'BP Financier'!$D$22+'BP Financier'!$E$22+'BP Financier'!$F$16+'BP Financier'!$F$19+'BP Financier'!$F$22))*$V6143*AB6143/(1-$W6143)","v":{"v":65004.72433777021,"d":"65,005"}},null,{"v":0.0075,"d":"0.75%"},{"$f":"Actif!$E$28/100","v":{"v":0.28900000000000003,"d":"28.90%"}},{"$f":"Actif!$E$30/100","v":{"v":0.09050000000000001,"d":"9.05%"}},{"$f":"Actif!$E$31/100","v":{"v":0.0605,"d":"6.05%"}},{"$f":"Actif!$E$32/100","v":{"v":0.47350000000000003,"d":"47.35%"}},{"$f":"Actif!$E$33/100","v":{"v":0.0585,"d":"5.85%"}},{"$f":"Actif!$E$29/100","v":{"v":0.027999999999999997,"d":"2.80%"}}]
[null,"#37",27,2026,"H","A_VIE",{"v":0.44999999999999996,"d":"0.45"},{"v":0.38999999999999996,"d":"0.39"},0.6,0.6,85,0,{"$f":"ROUND(Primes!$P$4*V6144,0)","v":71},{"$f":"'BP Financier'!$F$33*(('BP Financier'!$C$16+'BP Financier'!$D$16+'BP Financier'!$E$16+'BP Financier'!$F$16)/('BP Financier'!$C$16+'BP Financier'!$C$19+'BP Financier'!$D$16+'BP Financier'!$D$19+'BP Financier'!$E$16+'BP Financier'!$E$19+'BP Financier'!$F$16+'BP Financier'!$F$19))*V6144","v":{"v":2909830.1866639922,"d":"2,909,830"}},{"v":1650655.678719808,"d":"1,650,656"},{"$f":"'BP Financier'!$F$44*(('BP Financier'!$C$16+'BP Financier'!$D$16+'BP Financier'!$E$16+'BP Financier'!$F$16)/('BP Financier'!$C$16+'BP Financier'!$C$19+'BP Financier'!$D$16+'BP Financier'!$D$19+'BP Financier'!$E$16+'BP Financier'!$E$19+'BP Financier'!$C$22+'BP Financier'!$D$22+'BP Financier'!$E$22+'BP Financier'!$F$16+'BP Financier'!$F$19+'BP Financier'!$F$22))*$V6144*X6144/(1-$W6144)","v":{"v":210104.55544886444,"d":"210,105"}},{"$f":"'BP Financier'!$F$44*(('BP Financier'!$C$16+'BP Financier'!$D$16+'BP Financier'!$E$16+'BP Financier'!$F$16)/('BP Financier'!$C$16+'BP Financier'!$C$19+'BP Financier'!$D$16+'BP Financier'!$D$19+'BP Financier'!$E$16+'BP Financier'!$E$19+'BP Financier'!$C$22+'BP Financier'!$D$22+'BP Financier'!$E$22+'BP Financier'!$F$16+'BP Financier'!$F$19+'BP Financier'!$F$22))*$V6144*Y6144/(1-$W6144)","v":{"v":140456.63651553923,"d":"140,457"}},{"$f":"'BP Financier'!$F$44*(('BP Financier'!$C$16+'BP Financier'!$D$16+'BP Financier'!$E$16+'BP Financier'!$F$16)/('BP Financier'!$C$16+'BP Financier'!$C$19+'BP Financier'!$D$16+'BP Financier'!$D$19+'BP Financier'!$E$16+'BP Financier'!$E$19+'BP Financier'!$C$22+'BP Financier'!$D$22+'BP Financier'!$E$22+'BP Financier'!$F$16+'BP Financier'!$F$19+'BP Financier'!$F$22))*$V6144*Z6144/(1-$W6144)","v":{"v":1099276.32049765,"d":"1,099,276"}},{"$f":"'BP Financier'!$F$44*(('BP Financier'!$C$16+'BP Financier'!$D$16+'BP Financier'!$E$16+'BP Financier'!$F$16)/('BP Financier'!$C$16+'BP Financier'!$C$19+'BP Financier'!$D$16+'BP Financier'!$D$19+'BP Financier'!$E$16+'BP Financier'!$E$19+'BP Financier'!$C$22+'BP Financier'!$D$22+'BP Financier'!$E$22+'BP Financier'!$F$16+'BP Financier'!$F$19+'BP Financier'!$F$22))*$V6144*AA6144/(1-$W6144)","v":{"v":135813.4419199842,"d":"135,813"}},{"$f":"'BP Financier'!$F$44*(('BP Financier'!$C$16+'BP Financier'!$D$16+'BP Financier'!$E$16+'BP Financier'!$F$16)/('BP Financier'!$C$16+'BP Financier'!$C$19+'BP Financier'!$D$16+'BP Financier'!$D$19+'BP Financier'!$E$16+'BP Financier'!$E$19+'BP Financier'!$C$22+'BP Financier'!$D$22+'BP Financier'!$E$22+'BP Financier'!$F$16+'BP Financier'!$F$19+'BP Financier'!$F$22))*$V6144*AB6144/(1-$W6144)","v":{"v":65004.72433777021,"d":"65,005"}},null,{"v":0.0075,"d":"0.75%"},{"$f":"Actif!$E$28/100","v":{"v":0.28900000000000003,"d":"28.90%"}},{"$f":"Actif!$E$30/100","v":{"v":0.09050000000000001,"d":"9.05%"}},{"$f":"Actif!$E$31/100","v":{"v":0.0605,"d":"6.05%"}},{"$f":"Actif!$E$32/100","v":{"v":0.47350000000000003,"d":"47.35%"}},{"$f":"Actif!$E$33/100","v":{"v":0.0585,"d":"5.85%"}},{"$f":"Actif!$E$29/100","v":{"v":0.027999999999999997,"d":"2.80%"}}]
[null,"#38",27,2028,"H","A_VIE",{"v":0.44999999999999996,"d":"0.45"},{"v":0.38999999999999996,"d":"0.39"},0.6,0.6,85,0,{"$f":"ROUND(Primes!$P$4*V6145,0)","v":71},{"$f":"'BP Financier'!$F$33*(('BP Financier'!$C$16+'BP Financier'!$D$16+'BP Financier'!$E$16+'BP Financier'!$F$16)/('BP Financier'!$C$16+'BP Financier'!$C$19+'BP Financier'!$D$16+'BP Financier'!$D$19+'BP Financier'!$E$16+'BP Financier'!$E$19+'BP Financier'!$F$16+'BP Financier'!$F$19))*V6145","v":{"v":2909830.1866639922,"d":"2,909,830"}},{"v":1650655.678719808,"d":"1,650,656"},{"$f":"'BP Financier'!$F$44*(('BP Financier'!$C$16+'BP Financier'!$D$16+'BP Financier'!$E$16+'BP Financier'!$F$16)/('BP Financier'!$C$16+'BP Financier'!$C$19+'BP Financier'!$D$16+'BP Financier'!$D$19+'BP Financier'!$E$16+'BP Financier'!$E$19+'BP Financier'!$C$22+'BP Financier'!$D$22+'BP Financier'!$E$22+'BP Financier'!$F$16+'BP Financier'!$F$19+'BP Financier'!$F$22))*$V6145*X6145/(1-$W6145)","v":{"v":210104.55544886444,"d":"210,105"}},{"$f":"'BP Financier'!$F$44*(('BP Financier'!$C$16+'BP Financier'!$D$16+'BP Financier'!$E$16+'BP Financier'!$F$16)/('BP Financier'!$C$16+'BP Financier'!$C$19+'BP Financier'!$D$16+'BP Financier'!$D$19+'BP Financier'!$E$16+'BP Financier'!$E$19+'BP Financier'!$C$22+'BP Financier'!$D$22+'BP Financier'!$E$22+'BP Financier'!$F$16+'BP Financier'!$F$19+'BP Financier'!$F$22))*$V6145*Y6145/(1-$W6145)","v":{"v":140456.63651553923,"d":"140,457"}},{"$f":"'BP Financier'!$F$44*(('BP Financier'!$C$16+'BP Financier'!$D$16+'BP Financier'!$E$16+'BP Financier'!$F$16)/('BP Financier'!$C$16+'BP Financier'!$C$19+'BP Financier'!$D$16+'BP Financier'!$D$19+'BP Financier'!$E$16+'BP Financier'!$E$19+'BP Financier'!$C$22+'BP Financier'!$D$22+'BP Financier'!$E$22+'BP Financier'!$F$16+'BP Financier'!$F$19+'BP Financier'!$F$22))*$V6145*Z6145/(1-$W6145)","v":{"v":1099276.32049765,"d":"1,099,276"}},{"$f":"'BP Financier'!$F$44*(('BP Financier'!$C$16+'BP Financier'!$D$16+'BP Financier'!$E$16+'BP Financier'!$F$16)/('BP Financier'!$C$16+'BP Financier'!$C$19+'BP Financier'!$D$16+'BP Financier'!$D$19+'BP Financier'!$E$16+'BP Financier'!$E$19+'BP Financier'!$C$22+'BP Financier'!$D$22+'BP Financier'!$E$22+'BP Financier'!$F$16+'BP Financier'!$F$19+'BP Financier'!$F$22))*$V6145*AA6145/(1-$W6145)","v":{"v":135813.4419199842,"d":"135,813"}},{"$f":"'BP Financier'!$F$44*(('BP Financier'!$C$16+'BP Financier'!$D$16+'BP Financier'!$E$16+'BP Financier'!$F$16)/('BP Financier'!$C$16+'BP Financier'!$C$19+'BP Financier'!$D$16+'BP Financier'!$D$19+'BP Financier'!$E$16+'BP Financier'!$E$19+'BP Financier'!$C$22+'BP Financier'!$D$22+'BP Financier'!$E$22+'BP Financier'!$F$16+'BP Financier'!$F$19+'BP Financier'!$F$22))*$V6145*AB6145/(1-$W6145)","v":{"v":65004.72433777021,"d":"65,005"}},null,{"v":0.0075,"d":"0.75%"},{"$f":"Actif!$E$28/100","v":{"v":0.28900000000000003,"d":"28.90%"}},{"$f":"Actif!$E$30/100","v":{"v":0.09050000000000001,"d":"9.05%"}},{"$f":"Actif!$E$31/100","v":{"v":0.0605,"d":"6.05%"}},{"$f":"Actif!$E$32/100","v":{"v":0.47350000000000003,"d":"47.35%"}},{"$f":"Actif!$E$33/100","v":{"v":0.0585,"d":"5.85%"}},{"$f":"Actif!$E$29/100","v":{"v":0.027999999999999997,"d":"2.80%"}}]
[null,"#39",27,2029,"H","A_VIE",{"v":0.44999999999999996,"d":"0.45"},{"v":0.38999999999999996,"d":"0.39"},0.6,0.6,85,0,{"$f":"ROUND(Primes!$P$4*V6146,0)","v":71},{"$f":"'BP Financier'!$F$33*(('BP Financier'!$C$16+'BP Financier'!$D$16+'BP Financier'!$E$16+'BP Financier'!$F$16)/('BP Financier'!$C$16+'BP Financier'!$C$19+'BP Financier'!$D$16+'BP Financier'!$D$19+'BP Financier'!$E$16+'BP Financier'!$E$19+'BP Financier'!$F$16+'BP Financier'!$F$19))*V6146","v":{"v":2909830.1866639922,"d":"2,909,830"}},{"v":1650655.678719808,"d":"1,650,656"},{"$f":"'BP Financier'!$F$44*(('BP Financier'!$C$16+'BP Financier'!$D$16+'BP Financier'!$E$16+'BP Financier'!$F$16)/('BP Financier'!$C$16+'BP Financier'!$C$19+'BP Financier'!$D$16+'BP Financier'!$D$19+'BP Financier'!$E$16+'BP Financier'!$E$19+'BP Financier'!$C$22+'BP Financier'!$D$22+'BP Financier'!$E$22+'BP Financier'!$F$16+'BP Financier'!$F$19+'BP Financier'!$F$22))*$V6146*X6146/(1-$W6146)","v":{"v":210104.55544886444,"d":"210,105"}},{"$f":"'BP Financier'!$F$44*(('BP Financier'!$C$16+'BP Financier'!$D$16+'BP Financier'!$E$16+'BP Financier'!$F$16)/('BP Financier'!$C$16+'BP Financier'!$C$19+'BP Financier'!$D$16+'BP Financier'!$D$19+'BP Financier'!$E$16+'BP Financier'!$E$19+'BP Financier'!$C$22+'BP Financier'!$D$22+'BP Financier'!$E$22+'BP Financier'!$F$16+'BP Financier'!$F$19+'BP Financier'!$F$22))*$V6146*Y6146/(1-$W6146)","v":{"v":140456.63651553923,"d":"140,457"}},{"$f":"'BP Financier'!$F$44*(('BP Financier'!$C$16+'BP Financier'!$D$16+'BP Financier'!$E$16+'BP Financier'!$F$16)/('BP Financier'!$C$16+'BP Financier'!$C$19+'BP Financier'!$D$16+'BP Financier'!$D$19+'BP Financier'!$E$16+'BP Financier'!$E$19+'BP Financier'!$C$22+'BP Financier'!$D$22+'BP Financier'!$E$22+'BP Financier'!$F$16+'BP Financier'!$F$19+'BP Financier'!$F$22))*$V6146*Z6146/(1-$W6146)","v":{"v":1099276.32049765,"d":"1,099,276"}},{"$f":"'BP Financier'!$F$44*(('BP Financier'!$C$16+'BP Financier'!$D$16+'BP Financier'!$E$16+'BP Financier'!$F$16)/('BP Financier'!$C$16+'BP Financier'!$C$19+'BP Financier'!$D$16+'BP Financier'!$D$19+'BP Financier'!$E$16+'BP Financier'!$E$19+'BP Financier'!$C$22+'BP Financier'!$D$22+'BP Financier'!$E$22+'BP Financier'!$F$16+'BP Financier'!$F$19+'BP Financier'!$F$22))*$V6146*AA6146/(1-$W6146)","v":{"v":135813.4419199842,"d":"135,813"}},{"$f":"'BP Financier'!$F$44*(('BP Financier'!$C$16+'BP Financier'!$D$16+'BP Financier'!$E$16+'BP Financier'!$F$16)/('BP Financier'!$C$16+'BP Financier'!$C$19+'BP Financier'!$D$16+'BP Financier'!$D$19+'BP Financier'!$E$16+'BP Financier'!$E$19+'BP Financier'!$C$22+'BP Financier'!$D$22+'BP Financier'!$E$22+'BP Financier'!$F$16+'BP Financier'!$F$19+'BP Financier'!$F$22))*$V6146*AB6146/(1-$W6146)","v":{"v":65004.72433777021,"d":"65,005"}},null,{"v":0.0075,"d":"0.75%"},{"$f":"Actif!$E$28/100","v":{"v":0.28900000000000003,"d":"28.90%"}},{"$f":"Actif!$E$30/100","v":{"v":0.09050000000000001,"d":"9.05%"}},{"$f":"Actif!$E$31/100","v":{"v":0.0605,"d":"6.05%"}},{"$f":"Actif!$E$32/100","v":{"v":0.47350000000000003,"d":"47.35%"}},{"$f":"Actif!$E$33/100","v":{"v":0.0585,"d":"5.85%"}},{"$f":"Actif!$E$29/100","v":{"v":0.027999999999999997,"d":"2.80%"}}]
[null,"#40",27,2030,"H","A_VIE",{"v":0.44999999999999996,"d":"0.45"},{"v":0.38999999999999996,"d":"0.39"},0.6,0.6,85,0,{"$f":"ROUND(Primes!$P$4*V6147,0)","v":71},{"$f":"'BP Financier'!$F$33*(('BP Financier'!$C$16+'BP Financier'!$D$16+'BP Financier'!$E$16+'BP Financier'!$F$16)/('BP Financier'!$C$16+'BP Financier'!$C$19+'BP Financier'!$D$16+'BP Financier'!$D$19+'BP Financier'!$E$16+'BP Financier'!$E$19+'BP Financier'!$F$16+'BP Financier'!$F$19))*V6147","v":{"v":2909830.1866639922,"d":"2,909,830"}},{"v":1650655.678719808,"d":"1,650,656"},{"$f":"'BP Financier'!$F$44*(('BP Financier'!$C$16+'BP Financier'!$D$16+'BP Financier'!$E$16+'BP Financier'!$F$16)/('BP Financier'!$C$16+'BP Financier'!$C$19+'BP Financier'!$D$16+'BP Financier'!$D$19+'BP Financier'!$E$16+'BP Financier'!$E$19+'BP Financier'!$C$22+'BP Financier'!$D$22+'BP Financier'!$E$22+'BP Financier'!$F$16+'BP Financier'!$F$19+'BP Financier'!$F$22))*$V6147*X6147/(1-$W6147)","v":{"v":210104.55544886444,"d":"210,105"}},{"$f":"'BP Financier'!$F$44*(('BP Financier'!$C$16+'BP Financier'!$D$16+'BP Financier'!$E$16+'BP Financier'!$F$16)/('BP Financier'!$C$16+'BP Financier'!$C$19+'BP Financier'!$D$16+'BP Financier'!$D$19+'BP Financier'!$E$16+'BP Financier'!$E$19+'BP Financier'!$C$22+'BP Financier'!$D$22+'BP Financier'!$E$22+'BP Financier'!$F$16+'BP Financier'!$F$19+'BP Financier'!$F$22))*$V6147*Y6147/(1-$W6147)","v":{"v":140456.63651553923,"d":"140,457"}},{"$f":"'BP Financier'!$F$44*(('BP Financier'!$C$16+'BP Financier'!$D$16+'BP Financier'!$E$16+'BP Financier'!$F$16)/('BP Financier'!$C$16+'BP Financier'!$C$19+'BP Financier'!$D$16+'BP Financier'!$D$19+'BP Financier'!$E$16+'BP Financier'!$E$19+'BP Financier'!$C$22+'BP Financier'!$D$22+'BP Financier'!$E$22+'BP Financier'!$F$16+'BP Financier'!$F$19+'BP Financier'!$F$22))*$V6147*Z6147/(1-$W6147)","v":{"v":1099276.32049765,"d":"1,099,276"}},{"$f":"'BP Financier'!$F$44*(('BP Financier'!$C$16+'BP Financier'!$D$16+'BP Financier'!$E$16+'BP Financier'!$F$16)/('BP Financier'!$C$16+'BP Financier'!$C$19+'BP Financier'!$D$16+'BP Financier'!$D$19+'BP Financier'!$E$16+'BP Financier'!$E$19+'BP Financier'!$C$22+'BP Financier'!$D$22+'BP Financier'!$E$22+'BP Financier'!$F$16+'BP Financier'!$F$19+'BP Financier'!$F$22))*$V6147*AA6147/(1-$W6147)","v":{"v":135813.4419199842,"d":"135,813"}},{"$f":"'BP Financier'!$F$44*(('BP Financier'!$C$16+'BP Financier'!$D$16+'BP Financier'!$E$16+'BP Financier'!$F$16)/('BP Financier'!$C$16+'BP Financier'!$C$19+'BP Financier'!$D$16+'BP Financier'!$D$19+'BP Financier'!$E$16+'BP Financier'!$E$19+'BP Financier'!$C$22+'BP Financier'!$D$22+'BP Financier'!$E$22+'BP Financier'!$F$16+'BP Financier'!$F$19+'BP Financier'!$F$22))*$V6147*AB6147/(1-$W6147)","v":{"v":65004.72433777021,"d":"65,005"}},null,{"v":0.0075,"d":"0.75%"},{"$f":"Actif!$E$28/100","v":{"v":0.28900000000000003,"d":"28.90%"}},{"$f":"Actif!$E$30/100","v":{"v":0.09050000000000001,"d":"9.05%"}},{"$f":"Actif!$E$31/100","v":{"v":0.0605,"d":"6.05%"}},{"$f":"Actif!$E$32/100","v":{"v":0.47350000000000003,"d":"47.35%"}},{"$f":"Actif!$E$33/100","v":{"v":0.0585,"d":"5.85%"}},{"$f":"Actif!$E$29/100","v":{"v":0.027999999999999997,"d":"2.80%"}}]
[null,"#41",28,2026,"H","A_VIE",{"v":0.44999999999999996,"d":"0.45"},{"v":0.38999999999999996,"d":"0.39"},0.6,0.6,85,0,{"$f":"ROUND(Primes!$P$4*V6148,0)","v":71},{"$f":"'BP Financier'!$F$33*(('BP Financier'!$C$16+'BP Financier'!$D$16+'BP Financier'!$E$16+'BP Financier'!$F$16)/('BP Financier'!$C$16+'BP Financier'!$C$19+'BP Financier'!$D$16+'BP Financier'!$D$19+'BP Financier'!$E$16+'BP Financier'!$E$19+'BP Financier'!$F$16+'BP Financier'!$F$19))*V6148","v":{"v":2909830.1866639922,"d":"2,909,830"}},{"v":1650655.678719808,"d":"1,650,656"},{"$f":"'BP Financier'!$F$44*(('BP Financier'!$C$16+'BP Financier'!$D$16+'BP Financier'!$E$16+'BP Financier'!$F$16)/('BP Financier'!$C$16+'BP Financier'!$C$19+'BP Financier'!$D$16+'BP Financier'!$D$19+'BP Financier'!$E$16+'BP Financier'!$E$19+'BP Financier'!$C$22+'BP Financier'!$D$22+'BP Financier'!$E$22+'BP Financier'!$F$16+'BP Financier'!$F$19+'BP Financier'!$F$22))*$V6148*X6148/(1-$W6148)","v":{"v":210104.55544886444,"d":"210,105"}},{"$f":"'BP Financier'!$F$44*(('BP Financier'!$C$16+'BP Financier'!$D$16+'BP Financier'!$E$16+'BP Financier'!$F$16)/('BP Financier'!$C$16+'BP Financier'!$C$19+'BP Financier'!$D$16+'BP Financier'!$D$19+'BP Financier'!$E$16+'BP Financier'!$E$19+'BP Financier'!$C$22+'BP Financier'!$D$22+'BP Financier'!$E$22+'BP Financier'!$F$16+'BP Financier'!$F$19+'BP Financier'!$F$22))*$V6148*Y6148/(1-$W6148)","v":{"v":140456.63651553923,"d":"140,457"}},{"$f":"'BP Financier'!$F$44*(('BP Financier'!$C$16+'BP Financier'!$D$16+'BP Financier'!$E$16+'BP Financier'!$F$16)/('BP Financier'!$C$16+'BP Financier'!$C$19+'BP Financier'!$D$16+'BP Financier'!$D$19+'BP Financier'!$E$16+'BP Financier'!$E$19+'BP Financier'!$C$22+'BP Financier'!$D$22+'BP Financier'!$E$22+'BP Financier'!$F$16+'BP Financier'!$F$19+'BP Financier'!$F$22))*$V6148*Z6148/(1-$W6148)","v":{"v":1099276.32049765,"d":"1,099,276"}},{"$f":"'BP Financier'!$F$44*(('BP Financier'!$C$16+'BP Financier'!$D$16+'BP Financier'!$E$16+'BP Financier'!$F$16)/('BP Financier'!$C$16+'BP Financier'!$C$19+'BP Financier'!$D$16+'BP Financier'!$D$19+'BP Financier'!$E$16+'BP Financier'!$E$19+'BP Financier'!$C$22+'BP Financier'!$D$22+'BP Financier'!$E$22+'BP Financier'!$F$16+'BP Financier'!$F$19+'BP Financier'!$F$22))*$V6148*AA6148/(1-$W6148)","v":{"v":135813.4419199842,"d":"135,813"}},{"$f":"'BP Financier'!$F$44*(('BP Financier'!$C$16+'BP Financier'!$D$16+'BP Financier'!$E$16+'BP Financier'!$F$16)/('BP Financier'!$C$16+'BP Financier'!$C$19+'BP Financier'!$D$16+'BP Financier'!$D$19+'BP Financier'!$E$16+'BP Financier'!$E$19+'BP Financier'!$C$22+'BP Financier'!$D$22+'BP Financier'!$E$22+'BP Financier'!$F$16+'BP Financier'!$F$19+'BP Financier'!$F$22))*$V6148*AB6148/(1-$W6148)","v":{"v":65004.72433777021,"d":"65,005"}},null,{"v":0.0075,"d":"0.75%"},{"$f":"Actif!$E$28/100","v":{"v":0.28900000000000003,"d":"28.90%"}},{"$f":"Actif!$E$30/100","v":{"v":0.09050000000000001,"d":"9.05%"}},{"$f":"Actif!$E$31/100","v":{"v":0.0605,"d":"6.05%"}},{"$f":"Actif!$E$32/100","v":{"v":0.47350000000000003,"d":"47.35%"}},{"$f":"Actif!$E$33/100","v":{"v":0.0585,"d":"5.85%"}},{"$f":"Actif!$E$29/100","v":{"v":0.027999999999999997,"d":"2.80%"}}]
[null,"#42",28,2028,"H","A_VIE",{"v":0.44999999999999996,"d":"0.45"},{"v":0.38999999999999996,"d":"0.39"},0.6,0.6,85,0,{"$f":"ROUND(Primes!$P$4*V6149,0)","v":71},{"$f":"'BP Financier'!$F$33*(('BP Financier'!$C$16+'BP Financier'!$D$16+'BP Financier'!$E$16+'BP Financier'!$F$16)/('BP Financier'!$C$16+'BP Financier'!$C$19+'BP Financier'!$D$16+'BP Financier'!$D$19+'BP Financier'!$E$16+'BP Financier'!$E$19+'BP Financier'!$F$16+'BP Financier'!$F$19))*V6149","v":{"v":2909830.1866639922,"d":"2,909,830"}},{"v":1650655.678719808,"d":"1,650,656"},{"$f":"'BP Financier'!$F$44*(('BP Financier'!$C$16+'BP Financier'!$D$16+'BP Financier'!$E$16+'BP Financier'!$F$16)/('BP Financier'!$C$16+'BP Financier'!$C$19+'BP Financier'!$D$16+'BP Financier'!$D$19+'BP Financier'!$E$16+'BP Financier'!$E$19+'BP Financier'!$C$22+'BP Financier'!$D$22+'BP Financier'!$E$22+'BP Financier'!$F$16+'BP Financier'!$F$19+'BP Financier'!$F$22))*$V6149*X6149/(1-$W6149)","v":{"v":210104.55544886444,"d":"210,105"}},{"$f":"'BP Financier'!$F$44*(('BP Financier'!$C$16+'BP Financier'!$D$16+'BP Financier'!$E$16+'BP Financier'!$F$16)/('BP Financier'!$C$16+'BP Financier'!$C$19+'BP Financier'!$D$16+'BP Financier'!$D$19+'BP Financier'!$E$16+'BP Financier'!$E$19+'BP Financier'!$C$22+'BP Financier'!$D$22+'BP Financier'!$E$22+'BP Financier'!$F$16+'BP Financier'!$F$19+'BP Financier'!$F$22))*$V6149*Y6149/(1-$W6149)","v":{"v":140456.63651553923,"d":"140,457"}},{"$f":"'BP Financier'!$F$44*(('BP Financier'!$C$16+'BP Financier'!$D$16+'BP Financier'!$E$16+'BP Financier'!$F$16)/('BP Financier'!$C$16+'BP Financier'!$C$19+'BP Financier'!$D$16+'BP Financier'!$D$19+'BP Financier'!$E$16+'BP Financier'!$E$19+'BP Financier'!$C$22+'BP Financier'!$D$22+'BP Financier'!$E$22+'BP Financier'!$F$16+'BP Financier'!$F$19+'BP Financier'!$F$22))*$V6149*Z6149/(1-$W6149)","v":{"v":1099276.32049765,"d":"1,099,276"}},{"$f":"'BP Financier'!$F$44*(('BP Financier'!$C$16+'BP Financier'!$D$16+'BP Financier'!$E$16+'BP Financier'!$F$16)/('BP Financier'!$C$16+'BP Financier'!$C$19+'BP Financier'!$D$16+'BP Financier'!$D$19+'BP Financier'!$E$16+'BP Financier'!$E$19+'BP Financier'!$C$22+'BP Financier'!$D$22+'BP Financier'!$E$22+'BP Financier'!$F$16+'BP Financier'!$F$19+'BP Financier'!$F$22))*$V6149*AA6149/(1-$W6149)","v":{"v":135813.4419199842,"d":"135,813"}},{"$f":"'BP Financier'!$F$44*(('BP Financier'!$C$16+'BP Financier'!$D$16+'BP Financier'!$E$16+'BP Financier'!$F$16)/('BP Financier'!$C$16+'BP Financier'!$C$19+'BP Financier'!$D$16+'BP Financier'!$D$19+'BP Financier'!$E$16+'BP Financier'!$E$19+'BP Financier'!$C$22+'BP Financier'!$D$22+'BP Financier'!$E$22+'BP Financier'!$F$16+'BP Financier'!$F$19+'BP Financier'!$F$22))*$V6149*AB6149/(1-$W6149)","v":{"v":65004.72433777021,"d":"65,005"}},null,{"v":0.0075,"d":"0.75%"},{"$f":"Actif!$E$28/100","v":{"v":0.28900000000000003,"d":"28.90%"}},{"$f":"Actif!$E$30/100","v":{"v":0.09050000000000001,"d":"9.05%"}},{"$f":"Actif!$E$31/100","v":{"v":0.0605,"d":"6.05%"}},{"$f":"Actif!$E$32/100","v":{"v":0.47350000000000003,"d":"47.35%"}},{"$f":"Actif!$E$33/100","v":{"v":0.0585,"d":"5.85%"}},{"$f":"Actif!$E$29/100","v":{"v":0.027999999999999997,"d":"2.80%"}}]
[null,"#43",28,2029,"H","A_VIE",{"v":0.44999999999999996,"d":"0.45"},{"v":0.38999999999999996,"d":"0.39"},0.6,0.6,85,0,{"$f":"ROUND(Primes!$P$4*V6150,0)","v":71},{"$f":"'BP Financier'!$F$33*(('BP Financier'!$C$16+'BP Financier'!$D$16+'BP Financier'!$E$16+'BP Financier'!$F$16)/('BP Financier'!$C$16+'BP Financier'!$C$19+'BP Financier'!$D$16+'BP Financier'!$D$19+'BP Financier'!$E$16+'BP Financier'!$E$19+'BP Financier'!$F$16+'BP Financier'!$F$19))*V6150","v":{"v":2909830.1866639922,"d":"2,909,830"}},{"v":1650655.678719808,"d":"1,650,656"},{"$f":"'BP Financier'!$F$44*(('BP Financier'!$C$16+'BP Financier'!$D$16+'BP Financier'!$E$16+'BP Financier'!$F$16)/('BP Financier'!$C$16+'BP Financier'!$C$19+'BP Financier'!$D$16+'BP Financier'!$D$19+'BP Financier'!$E$16+'BP Financier'!$E$19+'BP Financier'!$C$22+'BP Financier'!$D$22+'BP Financier'!$E$22+'BP Financier'!$F$16+'BP Financier'!$F$19+'BP Financier'!$F$22))*$V6150*X6150/(1-$W6150)","v":{"v":210104.55544886444,"d":"210,105"}},{"$f":"'BP Financier'!$F$44*(('BP Financier'!$C$16+'BP Financier'!$D$16+'BP Financier'!$E$16+'BP Financier'!$F$16)/('BP Financier'!$C$16+'BP Financier'!$C$19+'BP Financier'!$D$16+'BP Financier'!$D$19+'BP Financier'!$E$16+'BP Financier'!$E$19+'BP Financier'!$C$22+'BP Financier'!$D$22+'BP Financier'!$E$22+'BP Financier'!$F$16+'BP Financier'!$F$19+'BP Financier'!$F$22))*$V6150*Y6150/(1-$W6150)","v":{"v":140456.63651553923,"d":"140,457"}},{"$f":"'BP Financier'!$F$44*(('BP Financier'!$C$16+'BP Financier'!$D$16+'BP Financier'!$E$16+'BP Financier'!$F$16)/('BP Financier'!$C$16+'BP Financier'!$C$19+'BP Financier'!$D$16+'BP Financier'!$D$19+'BP Financier'!$E$16+'BP Financier'!$E$19+'BP Financier'!$C$22+'BP Financier'!$D$22+'BP Financier'!$E$22+'BP Financier'!$F$16+'BP Financier'!$F$19+'BP Financier'!$F$22))*$V6150*Z6150/(1-$W6150)","v":{"v":1099276.32049765,"d":"1,099,276"}},{"$f":"'BP Financier'!$F$44*(('BP Financier'!$C$16+'BP Financier'!$D$16+'BP Financier'!$E$16+'BP Financier'!$F$16)/('BP Financier'!$C$16+'BP Financier'!$C$19+'BP Financier'!$D$16+'BP Financier'!$D$19+'BP Financier'!$E$16+'BP Financier'!$E$19+'BP Financier'!$C$22+'BP Financier'!$D$22+'BP Financier'!$E$22+'BP Financier'!$F$16+'BP Financier'!$F$19+'BP Financier'!$F$22))*$V6150*AA6150/(1-$W6150)","v":{"v":135813.4419199842,"d":"135,813"}},{"$f":"'BP Financier'!$F$44*(('BP Financier'!$C$16+'BP Financier'!$D$16+'BP Financier'!$E$16+'BP Financier'!$F$16)/('BP Financier'!$C$16+'BP Financier'!$C$19+'BP Financier'!$D$16+'BP Financier'!$D$19+'BP Financier'!$E$16+'BP Financier'!$E$19+'BP Financier'!$C$22+'BP Financier'!$D$22+'BP Financier'!$E$22+'BP Financier'!$F$16+'BP Financier'!$F$19+'BP Financier'!$F$22))*$V6150*AB6150/(1-$W6150)","v":{"v":65004.72433777021,"d":"65,005"}},null,{"v":0.0075,"d":"0.75%"},{"$f":"Actif!$E$28/100","v":{"v":0.28900000000000003,"d":"28.90%"}},{"$f":"Actif!$E$30/100","v":{"v":0.09050000000000001,"d":"9.05%"}},{"$f":"Actif!$E$31/100","v":{"v":0.0605,"d":"6.05%"}},{"$f":"Actif!$E$32/100","v":{"v":0.47350000000000003,"d":"47.35%"}},{"$f":"Actif!$E$33/100","v":{"v":0.0585,"d":"5.85%"}},{"$f":"Actif!$E$29/100","v":{"v":0.027999999999999997,"d":"2.80%"}}]
[null,"#44",28,2030,"H","A_VIE",{"v":0.44999999999999996,"d":"0.45"},{"v":0.38999999999999996,"d":"0.39"},0.6,0.6,85,0,{"$f":"ROUND(Primes!$P$4*V6151,0)","v":71},{"$f":"'BP Financier'!$F$33*(('BP Financier'!$C$16+'BP Financier'!$D$16+'BP Financier'!$E$16+'BP Financier'!$F$16)/('BP Financier'!$C$16+'BP Financier'!$C$19+'BP Financier'!$D$16+'BP Financier'!$D$19+'BP Financier'!$E$16+'BP Financier'!$E$19+'BP Financier'!$F$16+'BP Financier'!$F$19))*V6151","v":{"v":2909830.1866639922,"d":"2,909,830"}},{"v":1650655.678719808,"d":"1,650,656"},{"$f":"'BP Financier'!$F$44*(('BP Financier'!$C$16+'BP Financier'!$D$16+'BP Financier'!$E$16+'BP Financier'!$F$16)/('BP Financier'!$C$16+'BP Financier'!$C$19+'BP Financier'!$D$16+'BP Financier'!$D$19+'BP Financier'!$E$16+'BP Financier'!$E$19+'BP Financier'!$C$22+'BP Financier'!$D$22+'BP Financier'!$E$22+'BP Financier'!$F$16+'BP Financier'!$F$19+'BP Financier'!$F$22))*$V6151*X6151/(1-$W6151)","v":{"v":210104.55544886444,"d":"210,105"}},{"$f":"'BP Financier'!$F$44*(('BP Financier'!$C$16+'BP Financier'!$D$16+'BP Financier'!$E$16+'BP Financier'!$F$16)/('BP Financier'!$C$16+'BP Financier'!$C$19+'BP Financier'!$D$16+'BP Financier'!$D$19+'BP Financier'!$E$16+'BP Financier'!$E$19+'BP Financier'!$C$22+'BP Financier'!$D$22+'BP Financier'!$E$22+'BP Financier'!$F$16+'BP Financier'!$F$19+'BP Financier'!$F$22))*$V6151*Y6151/(1-$W6151)","v":{"v":140456.63651553923,"d":"140,457"}},{"$f":"'BP Financier'!$F$44*(('BP Financier'!$C$16+'BP Financier'!$D$16+'BP Financier'!$E$16+'BP Financier'!$F$16)/('BP Financier'!$C$16+'BP Financier'!$C$19+'BP Financier'!$D$16+'BP Financier'!$D$19+'BP Financier'!$E$16+'BP Financier'!$E$19+'BP Financier'!$C$22+'BP Financier'!$D$22+'BP Financier'!$E$22+'BP Financier'!$F$16+'BP Financier'!$F$19+'BP Financier'!$F$22))*$V6151*Z6151/(1-$W6151)","v":{"v":1099276.32049765,"d":"1,099,276"}},{"$f":"'BP Financier'!$F$44*(('BP Financier'!$C$16+'BP Financier'!$D$16+'BP Financier'!$E$16+'BP Financier'!$F$16)/('BP Financier'!$C$16+'BP Financier'!$C$19+'BP Financier'!$D$16+'BP Financier'!$D$19+'BP Financier'!$E$16+'BP Financier'!$E$19+'BP Financier'!$C$22+'BP Financier'!$D$22+'BP Financier'!$E$22+'BP Financier'!$F$16+'BP Financier'!$F$19+'BP Financier'!$F$22))*$V6151*AA6151/(1-$W6151)","v":{"v":135813.4419199842,"d":"135,813"}},{"$f":"'BP Financier'!$F$44*(('BP Financier'!$C$16+'BP Financier'!$D$16+'BP Financier'!$E$16+'BP Financier'!$F$16)/('BP Financier'!$C$16+'BP Financier'!$C$19+'BP Financier'!$D$16+'BP Financier'!$D$19+'BP Financier'!$E$16+'BP Financier'!$E$19+'BP Financier'!$C$22+'BP Financier'!$D$22+'BP Financier'!$E$22+'BP Financier'!$F$16+'BP Financier'!$F$19+'BP Financier'!$F$22))*$V6151*AB6151/(1-$W6151)","v":{"v":65004.72433777021,"d":"65,005"}},null,{"v":0.0075,"d":"0.75%"},{"$f":"Actif!$E$28/100","v":{"v":0.28900000000000003,"d":"28.90%"}},{"$f":"Actif!$E$30/100","v":{"v":0.09050000000000001,"d":"9.05%"}},{"$f":"Actif!$E$31/100","v":{"v":0.0605,"d":"6.05%"}},{"$f":"Actif!$E$32/100","v":{"v":0.47350000000000003,"d":"47.35%"}},{"$f":"Actif!$E$33/100","v":{"v":0.0585,"d":"5.85%"}},{"$f":"Actif!$E$29/100","v":{"v":0.027999999999999997,"d":"2.80%"}}]
[null,"#45",29,2026,"F","A_VIE",{"v":0.44999999999999996,"d":"0.45"},{"v":0.38999999999999996,"d":"0.39"},0.6,0.6,85,0,{"$f":"ROUND(Primes!$P$4*V6152,0)","v":71},{"$f":"'BP Financier'!$F$33*(('BP Financier'!$C$16+'BP Financier'!$D$16+'BP Financier'!$E$16+'BP Financier'!$F$16)/('BP Financier'!$C$16+'BP Financier'!$C$19+'BP Financier'!$D$16+'BP Financier'!$D$19+'BP Financier'!$E$16+'BP Financier'!$E$19+'BP Financier'!$F$16+'BP Financier'!$F$19))*V6152","v":{"v":2909830.1866639922,"d":"2,909,830"}},{"v":1650655.678719808,"d":"1,650,656"},{"$f":"'BP Financier'!$F$44*(('BP Financier'!$C$16+'BP Financier'!$D$16+'BP Financier'!$E$16+'BP Financier'!$F$16)/('BP Financier'!$C$16+'BP Financier'!$C$19+'BP Financier'!$D$16+'BP Financier'!$D$19+'BP Financier'!$E$16+'BP Financier'!$E$19+'BP Financier'!$C$22+'BP Financier'!$D$22+'BP Financier'!$E$22+'BP Financier'!$F$16+'BP Financier'!$F$19+'BP Financier'!$F$22))*$V6152*X6152/(1-$W6152)","v":{"v":210104.55544886444,"d":"210,105"}},{"$f":"'BP Financier'!$F$44*(('BP Financier'!$C$16+'BP Financier'!$D$16+'BP Financier'!$E$16+'BP Financier'!$F$16)/('BP Financier'!$C$16+'BP Financier'!$C$19+'BP Financier'!$D$16+'BP Financier'!$D$19+'BP Financier'!$E$16+'BP Financier'!$E$19+'BP Financier'!$C$22+'BP Financier'!$D$22+'BP Financier'!$E$22+'BP Financier'!$F$16+'BP Financier'!$F$19+'BP Financier'!$F$22))*$V6152*Y6152/(1-$W6152)","v":{"v":140456.63651553923,"d":"140,457"}},{"$f":"'BP Financier'!$F$44*(('BP Financier'!$C$16+'BP Financier'!$D$16+'BP Financier'!$E$16+'BP Financier'!$F$16)/('BP Financier'!$C$16+'BP Financier'!$C$19+'BP Financier'!$D$16+'BP Financier'!$D$19+'BP Financier'!$E$16+'BP Financier'!$E$19+'BP Financier'!$C$22+'BP Financier'!$D$22+'BP Financier'!$E$22+'BP Financier'!$F$16+'BP Financier'!$F$19+'BP Financier'!$F$22))*$V6152*Z6152/(1-$W6152)","v":{"v":1099276.32049765,"d":"1,099,276"}},{"$f":"'BP Financier'!$F$44*(('BP Financier'!$C$16+'BP Financier'!$D$16+'BP Financier'!$E$16+'BP Financier'!$F$16)/('BP Financier'!$C$16+'BP Financier'!$C$19+'BP Financier'!$D$16+'BP Financier'!$D$19+'BP Financier'!$E$16+'BP Financier'!$E$19+'BP Financier'!$C$22+'BP Financier'!$D$22+'BP Financier'!$E$22+'BP Financier'!$F$16+'BP Financier'!$F$19+'BP Financier'!$F$22))*$V6152*AA6152/(1-$W6152)","v":{"v":135813.4419199842,"d":"135,813"}},{"$f":"'BP Financier'!$F$44*(('BP Financier'!$C$16+'BP Financier'!$D$16+'BP Financier'!$E$16+'BP Financier'!$F$16)/('BP Financier'!$C$16+'BP Financier'!$C$19+'BP Financier'!$D$16+'BP Financier'!$D$19+'BP Financier'!$E$16+'BP Financier'!$E$19+'BP Financier'!$C$22+'BP Financier'!$D$22+'BP Financier'!$E$22+'BP Financier'!$F$16+'BP Financier'!$F$19+'BP Financier'!$F$22))*$V6152*AB6152/(1-$W6152)","v":{"v":65004.72433777021,"d":"65,005"}},null,{"v":0.0075,"d":"0.75%"},{"$f":"Actif!$E$28/100","v":{"v":0.28900000000000003,"d":"28.90%"}},{"$f":"Actif!$E$30/100","v":{"v":0.09050000000000001,"d":"9.05%"}},{"$f":"Actif!$E$31/100","v":{"v":0.0605,"d":"6.05%"}},{"$f":"Actif!$E$32/100","v":{"v":0.47350000000000003,"d":"47.35%"}},{"$f":"Actif!$E$33/100","v":{"v":0.0585,"d":"5.85%"}},{"$f":"Actif!$E$29/100","v":{"v":0.027999999999999997,"d":"2.80%"}}]
[null,"#46",29,2028,"F","A_VIE",{"v":0.44999999999999996,"d":"0.45"},{"v":0.38999999999999996,"d":"0.39"},0.6,0.6,85,0,{"$f":"ROUND(Primes!$P$4*V6153,0)","v":71},{"$f":"'BP Financier'!$F$33*(('BP Financier'!$C$16+'BP Financier'!$D$16+'BP Financier'!$E$16+'BP Financier'!$F$16)/('BP Financier'!$C$16+'BP Financier'!$C$19+'BP Financier'!$D$16+'BP Financier'!$D$19+'BP Financier'!$E$16+'BP Financier'!$E$19+'BP Financier'!$F$16+'BP Financier'!$F$19))*V6153","v":{"v":2909830.1866639922,"d":"2,909,830"}},{"v":1650655.678719808,"d":"1,650,656"},{"$f":"'BP Financier'!$F$44*(('BP Financier'!$C$16+'BP Financier'!$D$16+'BP Financier'!$E$16+'BP Financier'!$F$16)/('BP Financier'!$C$16+'BP Financier'!$C$19+'BP Financier'!$D$16+'BP Financier'!$D$19+'BP Financier'!$E$16+'BP Financier'!$E$19+'BP Financier'!$C$22+'BP Financier'!$D$22+'BP Financier'!$E$22+'BP Financier'!$F$16+'BP Financier'!$F$19+'BP Financier'!$F$22))*$V6153*X6153/(1-$W6153)","v":{"v":210104.55544886444,"d":"210,105"}},{"$f":"'BP Financier'!$F$44*(('BP Financier'!$C$16+'BP Financier'!$D$16+'BP Financier'!$E$16+'BP Financier'!$F$16)/('BP Financier'!$C$16+'BP Financier'!$C$19+'BP Financier'!$D$16+'BP Financier'!$D$19+'BP Financier'!$E$16+'BP Financier'!$E$19+'BP Financier'!$C$22+'BP Financier'!$D$22+'BP Financier'!$E$22+'BP Financier'!$F$16+'BP Financier'!$F$19+'BP Financier'!$F$22))*$V6153*Y6153/(1-$W6153)","v":{"v":140456.63651553923,"d":"140,457"}},{"$f":"'BP Financier'!$F$44*(('BP Financier'!$C$16+'BP Financier'!$D$16+'BP Financier'!$E$16+'BP Financier'!$F$16)/('BP Financier'!$C$16+'BP Financier'!$C$19+'BP Financier'!$D$16+'BP Financier'!$D$19+'BP Financier'!$E$16+'BP Financier'!$E$19+'BP Financier'!$C$22+'BP Financier'!$D$22+'BP Financier'!$E$22+'BP Financier'!$F$16+'BP Financier'!$F$19+'BP Financier'!$F$22))*$V6153*Z6153/(1-$W6153)","v":{"v":1099276.32049765,"d":"1,099,276"}},{"$f":"'BP Financier'!$F$44*(('BP Financier'!$C$16+'BP Financier'!$D$16+'BP Financier'!$E$16+'BP Financier'!$F$16)/('BP Financier'!$C$16+'BP Financier'!$C$19+'BP Financier'!$D$16+'BP Financier'!$D$19+'BP Financier'!$E$16+'BP Financier'!$E$19+'BP Financier'!$C$22+'BP Financier'!$D$22+'BP Financier'!$E$22+'BP Financier'!$F$16+'BP Financier'!$F$19+'BP Financier'!$F$22))*$V6153*AA6153/(1-$W6153)","v":{"v":135813.4419199842,"d":"135,813"}},{"$f":"'BP Financier'!$F$44*(('BP Financier'!$C$16+'BP Financier'!$D$16+'BP Financier'!$E$16+'BP Financier'!$F$16)/('BP Financier'!$C$16+'BP Financier'!$C$19+'BP Financier'!$D$16+'BP Financier'!$D$19+'BP Financier'!$E$16+'BP Financier'!$E$19+'BP Financier'!$C$22+'BP Financier'!$D$22+'BP Financier'!$E$22+'BP Financier'!$F$16+'BP Financier'!$F$19+'BP Financier'!$F$22))*$V6153*AB6153/(1-$W6153)","v":{"v":65004.72433777021,"d":"65,005"}},null,{"v":0.0075,"d":"0.75%"},{"$f":"Actif!$E$28/100","v":{"v":0.28900000000000003,"d":"28.90%"}},{"$f":"Actif!$E$30/100","v":{"v":0.09050000000000001,"d":"9.05%"}},{"$f":"Actif!$E$31/100","v":{"v":0.0605,"d":"6.05%"}},{"$f":"Actif!$E$32/100","v":{"v":0.47350000000000003,"d":"47.35%"}},{"$f":"Actif!$E$33/100","v":{"v":0.0585,"d":"5.85%"}},{"$f":"Actif!$E$29/100","v":{"v":0.027999999999999997,"d":"2.80%"}}]
[null,"#47",29,2029,"F","A_VIE",{"v":0.44999999999999996,"d":"0.45"},{"v":0.38999999999999996,"d":"0.39"},0.6,0.6,85,0,{"$f":"ROUND(Primes!$P$4*V6154,0)","v":71},{"$f":"'BP Financier'!$F$33*(('BP Financier'!$C$16+'BP Financier'!$D$16+'BP Financier'!$E$16+'BP Financier'!$F$16)/('BP Financier'!$C$16+'BP Financier'!$C$19+'BP Financier'!$D$16+'BP Financier'!$D$19+'BP Financier'!$E$16+'BP Financier'!$E$19+'BP Financier'!$F$16+'BP Financier'!$F$19))*V6154","v":{"v":2909830.1866639922,"d":"2,909,830"}},{"v":1650655.678719808,"d":"1,650,656"},{"$f":"'BP Financier'!$F$44*(('BP Financier'!$C$16+'BP Financier'!$D$16+'BP Financier'!$E$16+'BP Financier'!$F$16)/('BP Financier'!$C$16+'BP Financier'!$C$19+'BP Financier'!$D$16+'BP Financier'!$D$19+'BP Financier'!$E$16+'BP Financier'!$E$19+'BP Financier'!$C$22+'BP Financier'!$D$22+'BP Financier'!$E$22+'BP Financier'!$F$16+'BP Financier'!$F$19+'BP Financier'!$F$22))*$V6154*X6154/(1-$W6154)","v":{"v":210104.55544886444,"d":"210,105"}},{"$f":"'BP Financier'!$F$44*(('BP Financier'!$C$16+'BP Financier'!$D$16+'BP Financier'!$E$16+'BP Financier'!$F$16)/('BP Financier'!$C$16+'BP Financier'!$C$19+'BP Financier'!$D$16+'BP Financier'!$D$19+'BP Financier'!$E$16+'BP Financier'!$E$19+'BP Financier'!$C$22+'BP Financier'!$D$22+'BP Financier'!$E$22+'BP Financier'!$F$16+'BP Financier'!$F$19+'BP Financier'!$F$22))*$V6154*Y6154/(1-$W6154)","v":{"v":140456.63651553923,"d":"140,457"}},{"$f":"'BP Financier'!$F$44*(('BP Financier'!$C$16+'BP Financier'!$D$16+'BP Financier'!$E$16+'BP Financier'!$F$16)/('BP Financier'!$C$16+'BP Financier'!$C$19+'BP Financier'!$D$16+'BP Financier'!$D$19+'BP Financier'!$E$16+'BP Financier'!$E$19+'BP Financier'!$C$22+'BP Financier'!$D$22+'BP Financier'!$E$22+'BP Financier'!$F$16+'BP Financier'!$F$19+'BP Financier'!$F$22))*$V6154*Z6154/(1-$W6154)","v":{"v":1099276.32049765,"d":"1,099,276"}},{"$f":"'BP Financier'!$F$44*(('BP Financier'!$C$16+'BP Financier'!$D$16+'BP Financier'!$E$16+'BP Financier'!$F$16)/('BP Financier'!$C$16+'BP Financier'!$C$19+'BP Financier'!$D$16+'BP Financier'!$D$19+'BP Financier'!$E$16+'BP Financier'!$E$19+'BP Financier'!$C$22+'BP Financier'!$D$22+'BP Financier'!$E$22+'BP Financier'!$F$16+'BP Financier'!$F$19+'BP Financier'!$F$22))*$V6154*AA6154/(1-$W6154)","v":{"v":135813.4419199842,"d":"135,813"}},{"$f":"'BP Financier'!$F$44*(('BP Financier'!$C$16+'BP Financier'!$D$16+'BP Financier'!$E$16+'BP Financier'!$F$16)/('BP Financier'!$C$16+'BP Financier'!$C$19+'BP Financier'!$D$16+'BP Financier'!$D$19+'BP Financier'!$E$16+'BP Financier'!$E$19+'BP Financier'!$C$22+'BP Financier'!$D$22+'BP Financier'!$E$22+'BP Financier'!$F$16+'BP Financier'!$F$19+'BP Financier'!$F$22))*$V6154*AB6154/(1-$W6154)","v":{"v":65004.72433777021,"d":"65,005"}},null,{"v":0.0075,"d":"0.75%"},{"$f":"Actif!$E$28/100","v":{"v":0.28900000000000003,"d":"28.90%"}},{"$f":"Actif!$E$30/100","v":{"v":0.09050000000000001,"d":"9.05%"}},{"$f":"Actif!$E$31/100","v":{"v":0.0605,"d":"6.05%"}},{"$f":"Actif!$E$32/100","v":{"v":0.47350000000000003,"d":"47.35%"}},{"$f":"Actif!$E$33/100","v":{"v":0.0585,"d":"5.85%"}},{"$f":"Actif!$E$29/100","v":{"v":0.027999999999999997,"d":"2.80%"}}]
[null,"#48",29,2030,"F","A_VIE",{"v":0.44999999999999996,"d":"0.45"},{"v":0.38999999999999996,"d":"0.39"},0.6,0.6,85,0,{"$f":"ROUND(Primes!$P$4*V6155,0)","v":71},{"$f":"'BP Financier'!$F$33*(('BP Financier'!$C$16+'BP Financier'!$D$16+'BP Financier'!$E$16+'BP Financier'!$F$16)/('BP Financier'!$C$16+'BP Financier'!$C$19+'BP Financier'!$D$16+'BP Financier'!$D$19+'BP Financier'!$E$16+'BP Financier'!$E$19+'BP Financier'!$F$16+'BP Financier'!$F$19))*V6155","v":{"v":2909830.1866639922,"d":"2,909,830"}},{"v":1650655.678719808,"d":"1,650,656"},{"$f":"'BP Financier'!$F$44*(('BP Financier'!$C$16+'BP Financier'!$D$16+'BP Financier'!$E$16+'BP Financier'!$F$16)/('BP Financier'!$C$16+'BP Financier'!$C$19+'BP Financier'!$D$16+'BP Financier'!$D$19+'BP Financier'!$E$16+'BP Financier'!$E$19+'BP Financier'!$C$22+'BP Financier'!$D$22+'BP Financier'!$E$22+'BP Financier'!$F$16+'BP Financier'!$F$19+'BP Financier'!$F$22))*$V6155*X6155/(1-$W6155)","v":{"v":210104.55544886444,"d":"210,105"}},{"$f":"'BP Financier'!$F$44*(('BP Financier'!$C$16+'BP Financier'!$D$16+'BP Financier'!$E$16+'BP Financier'!$F$16)/('BP Financier'!$C$16+'BP Financier'!$C$19+'BP Financier'!$D$16+'BP Financier'!$D$19+'BP Financier'!$E$16+'BP Financier'!$E$19+'BP Financier'!$C$22+'BP Financier'!$D$22+'BP Financier'!$E$22+'BP Financier'!$F$16+'BP Financier'!$F$19+'BP Financier'!$F$22))*$V6155*Y6155/(1-$W6155)","v":{"v":140456.63651553923,"d":"140,457"}},{"$f":"'BP Financier'!$F$44*(('BP Financier'!$C$16+'BP Financier'!$D$16+'BP Financier'!$E$16+'BP Financier'!$F$16)/('BP Financier'!$C$16+'BP Financier'!$C$19+'BP Financier'!$D$16+'BP Financier'!$D$19+'BP Financier'!$E$16+'BP Financier'!$E$19+'BP Financier'!$C$22+'BP Financier'!$D$22+'BP Financier'!$E$22+'BP Financier'!$F$16+'BP Financier'!$F$19+'BP Financier'!$F$22))*$V6155*Z6155/(1-$W6155)","v":{"v":1099276.32049765,"d":"1,099,276"}},{"$f":"'BP Financier'!$F$44*(('BP Financier'!$C$16+'BP Financier'!$D$16+'BP Financier'!$E$16+'BP Financier'!$F$16)/('BP Financier'!$C$16+'BP Financier'!$C$19+'BP Financier'!$D$16+'BP Financier'!$D$19+'BP Financier'!$E$16+'BP Financier'!$E$19+'BP Financier'!$C$22+'BP Financier'!$D$22+'BP Financier'!$E$22+'BP Financier'!$F$16+'BP Financier'!$F$19+'BP Financier'!$F$22))*$V6155*AA6155/(1-$W6155)","v":{"v":135813.4419199842,"d":"135,813"}},{"$f":"'BP Financier'!$F$44*(('BP Financier'!$C$16+'BP Financier'!$D$16+'BP Financier'!$E$16+'BP Financier'!$F$16)/('BP Financier'!$C$16+'BP Financier'!$C$19+'BP Financier'!$D$16+'BP Financier'!$D$19+'BP Financier'!$E$16+'BP Financier'!$E$19+'BP Financier'!$C$22+'BP Financier'!$D$22+'BP Financier'!$E$22+'BP Financier'!$F$16+'BP Financier'!$F$19+'BP Financier'!$F$22))*$V6155*AB6155/(1-$W6155)","v":{"v":65004.72433777021,"d":"65,005"}},null,{"v":0.0075,"d":"0.75%"},{"$f":"Actif!$E$28/100","v":{"v":0.28900000000000003,"d":"28.90%"}},{"$f":"Actif!$E$30/100","v":{"v":0.09050000000000001,"d":"9.05%"}},{"$f":"Actif!$E$31/100","v":{"v":0.0605,"d":"6.05%"}},{"$f":"Actif!$E$32/100","v":{"v":0.47350000000000003,"d":"47.35%"}},{"$f":"Actif!$E$33/100","v":{"v":0.0585,"d":"5.85%"}},{"$f":"Actif!$E$29/100","v":{"v":0.027999999999999997,"d":"2.80%"}}]
[null,"#49",30,2026,"H","A_VIE",{"v":0.44999999999999996,"d":"0.45"},{"v":0.38999999999999996,"d":"0.39"},0.6,0.6,85,0,{"$f":"ROUND(Primes!$P$4*V6156,0)","v":71},{"$f":"'BP Financier'!$F$33*(('BP Financier'!$C$16+'BP Financier'!$D$16+'BP Financier'!$E$16+'BP Financier'!$F$16)/('BP Financier'!$C$16+'BP Financier'!$C$19+'BP Financier'!$D$16+'BP Financier'!$D$19+'BP Financier'!$E$16+'BP Financier'!$E$19+'BP Financier'!$F$16+'BP Financier'!$F$19))*V6156","v":{"v":2909830.1866639922,"d":"2,909,830"}},{"v":1650655.678719808,"d":"1,650,656"},{"$f":"'BP Financier'!$F$44*(('BP Financier'!$C$16+'BP Financier'!$D$16+'BP Financier'!$E$16+'BP Financier'!$F$16)/('BP Financier'!$C$16+'BP Financier'!$C$19+'BP Financier'!$D$16+'BP Financier'!$D$19+'BP Financier'!$E$16+'BP Financier'!$E$19+'BP Financier'!$C$22+'BP Financier'!$D$22+'BP Financier'!$E$22+'BP Financier'!$F$16+'BP Financier'!$F$19+'BP Financier'!$F$22))*$V6156*X6156/(1-$W6156)","v":{"v":210104.55544886444,"d":"210,105"}},{"$f":"'BP Financier'!$F$44*(('BP Financier'!$C$16+'BP Financier'!$D$16+'BP Financier'!$E$16+'BP Financier'!$F$16)/('BP Financier'!$C$16+'BP Financier'!$C$19+'BP Financier'!$D$16+'BP Financier'!$D$19+'BP Financier'!$E$16+'BP Financier'!$E$19+'BP Financier'!$C$22+'BP Financier'!$D$22+'BP Financier'!$E$22+'BP Financier'!$F$16+'BP Financier'!$F$19+'BP Financier'!$F$22))*$V6156*Y6156/(1-$W6156)","v":{"v":140456.63651553923,"d":"140,457"}},{"$f":"'BP Financier'!$F$44*(('BP Financier'!$C$16+'BP Financier'!$D$16+'BP Financier'!$E$16+'BP Financier'!$F$16)/('BP Financier'!$C$16+'BP Financier'!$C$19+'BP Financier'!$D$16+'BP Financier'!$D$19+'BP Financier'!$E$16+'BP Financier'!$E$19+'BP Financier'!$C$22+'BP Financier'!$D$22+'BP Financier'!$E$22+'BP Financier'!$F$16+'BP Financier'!$F$19+'BP Financier'!$F$22))*$V6156*Z6156/(1-$W6156)","v":{"v":1099276.32049765,"d":"1,099,276"}},{"$f":"'BP Financier'!$F$44*(('BP Financier'!$C$16+'BP Financier'!$D$16+'BP Financier'!$E$16+'BP Financier'!$F$16)/('BP Financier'!$C$16+'BP Financier'!$C$19+'BP Financier'!$D$16+'BP Financier'!$D$19+'BP Financier'!$E$16+'BP Financier'!$E$19+'BP Financier'!$C$22+'BP Financier'!$D$22+'BP Financier'!$E$22+'BP Financier'!$F$16+'BP Financier'!$F$19+'BP Financier'!$F$22))*$V6156*AA6156/(1-$W6156)","v":{"v":135813.4419199842,"d":"135,813"}},{"$f":"'BP Financier'!$F$44*(('BP Financier'!$C$16+'BP Financier'!$D$16+'BP Financier'!$E$16+'BP Financier'!$F$16)/('BP Financier'!$C$16+'BP Financier'!$C$19+'BP Financier'!$D$16+'BP Financier'!$D$19+'BP Financier'!$E$16+'BP Financier'!$E$19+'BP Financier'!$C$22+'BP Financier'!$D$22+'BP Financier'!$E$22+'BP Financier'!$F$16+'BP Financier'!$F$19+'BP Financier'!$F$22))*$V6156*AB6156/(1-$W6156)","v":{"v":65004.72433777021,"d":"65,005"}},null,{"v":0.0075,"d":"0.75%"},{"$f":"Actif!$E$28/100","v":{"v":0.28900000000000003,"d":"28.90%"}},{"$f":"Actif!$E$30/100","v":{"v":0.09050000000000001,"d":"9.05%"}},{"$f":"Actif!$E$31/100","v":{"v":0.0605,"d":"6.05%"}},{"$f":"Actif!$E$32/100","v":{"v":0.47350000000000003,"d":"47.35%"}},{"$f":"Actif!$E$33/100","v":{"v":0.0585,"d":"5.85%"}},{"$f":"Actif!$E$29/100","v":{"v":0.027999999999999997,"d":"2.80%"}}]
[null,"#50",30,2028,"H","A_VIE",{"v":0.44999999999999996,"d":"0.45"},{"v":0.38999999999999996,"d":"0.39"},0.6,0.6,85,0,{"$f":"ROUND(Primes!$P$4*V6157,0)","v":71},{"$f":"'BP Financier'!$F$33*(('BP Financier'!$C$16+'BP Financier'!$D$16+'BP Financier'!$E$16+'BP Financier'!$F$16)/('BP Financier'!$C$16+'BP Financier'!$C$19+'BP Financier'!$D$16+'BP Financier'!$D$19+'BP Financier'!$E$16+'BP Financier'!$E$19+'BP Financier'!$F$16+'BP Financier'!$F$19))*V6157","v":{"v":2909830.1866639922,"d":"2,909,830"}},{"v":1650655.678719808,"d":"1,650,656"},{"$f":"'BP Financier'!$F$44*(('BP Financier'!$C$16+'BP Financier'!$D$16+'BP Financier'!$E$16+'BP Financier'!$F$16)/('BP Financier'!$C$16+'BP Financier'!$C$19+'BP Financier'!$D$16+'BP Financier'!$D$19+'BP Financier'!$E$16+'BP Financier'!$E$19+'BP Financier'!$C$22+'BP Financier'!$D$22+'BP Financier'!$E$22+'BP Financier'!$F$16+'BP Financier'!$F$19+'BP Financier'!$F$22))*$V6157*X6157/(1-$W6157)","v":{"v":210104.55544886444,"d":"210,105"}},{"$f":"'BP Financier'!$F$44*(('BP Financier'!$C$16+'BP Financier'!$D$16+'BP Financier'!$E$16+'BP Financier'!$F$16)/('BP Financier'!$C$16+'BP Financier'!$C$19+'BP Financier'!$D$16+'BP Financier'!$D$19+'BP Financier'!$E$16+'BP Financier'!$E$19+'BP Financier'!$C$22+'BP Financier'!$D$22+'BP Financier'!$E$22+'BP Financier'!$F$16+'BP Financier'!$F$19+'BP Financier'!$F$22))*$V6157*Y6157/(1-$W6157)","v":{"v":140456.63651553923,"d":"140,457"}},{"$f":"'BP Financier'!$F$44*(('BP Financier'!$C$16+'BP Financier'!$D$16+'BP Financier'!$E$16+'BP Financier'!$F$16)/('BP Financier'!$C$16+'BP Financier'!$C$19+'BP Financier'!$D$16+'BP Financier'!$D$19+'BP Financier'!$E$16+'BP Financier'!$E$19+'BP Financier'!$C$22+'BP Financier'!$D$22+'BP Financier'!$E$22+'BP Financier'!$F$16+'BP Financier'!$F$19+'BP Financier'!$F$22))*$V6157*Z6157/(1-$W6157)","v":{"v":1099276.32049765,"d":"1,099,276"}},{"$f":"'BP Financier'!$F$44*(('BP Financier'!$C$16+'BP Financier'!$D$16+'BP Financier'!$E$16+'BP Financier'!$F$16)/('BP Financier'!$C$16+'BP Financier'!$C$19+'BP Financier'!$D$16+'BP Financier'!$D$19+'BP Financier'!$E$16+'BP Financier'!$E$19+'BP Financier'!$C$22+'BP Financier'!$D$22+'BP Financier'!$E$22+'BP Financier'!$F$16+'BP Financier'!$F$19+'BP Financier'!$F$22))*$V6157*AA6157/(1-$W6157)","v":{"v":135813.4419199842,"d":"135,813"}},{"$f":"'BP Financier'!$F$44*(('BP Financier'!$C$16+'BP Financier'!$D$16+'BP Financier'!$E$16+'BP Financier'!$F$16)/('BP Financier'!$C$16+'BP Financier'!$C$19+'BP Financier'!$D$16+'BP Financier'!$D$19+'BP Financier'!$E$16+'BP Financier'!$E$19+'BP Financier'!$C$22+'BP Financier'!$D$22+'BP Financier'!$E$22+'BP Financier'!$F$16+'BP Financier'!$F$19+'BP Financier'!$F$22))*$V6157*AB6157/(1-$W6157)","v":{"v":65004.72433777021,"d":"65,005"}},null,{"v":0.0075,"d":"0.75%"},{"$f":"Actif!$E$28/100","v":{"v":0.28900000000000003,"d":"28.90%"}},{"$f":"Actif!$E$30/100","v":{"v":0.09050000000000001,"d":"9.05%"}},{"$f":"Actif!$E$31/100","v":{"v":0.0605,"d":"6.05%"}},{"$f":"Actif!$E$32/100","v":{"v":0.47350000000000003,"d":"47.35%"}},{"$f":"Actif!$E$33/100","v":{"v":0.0585,"d":"5.85%"}},{"$f":"Actif!$E$29/100","v":{"v":0.027999999999999997,"d":"2.80%"}}]
[null,"#51",30,2029,"H","A_VIE",{"v":0.44999999999999996,"d":"0.45"},{"v":0.38999999999999996,"d":"0.39"},0.6,0.6,85,0,{"$f":"ROUND(Primes!$P$4*V6158,0)","v":71},{"$f":"'BP Financier'!$F$33*(('BP Financier'!$C$16+'BP Financier'!$D$16+'BP Financier'!$E$16+'BP Financier'!$F$16)/('BP Financier'!$C$16+'BP Financier'!$C$19+'BP Financier'!$D$16+'BP Financier'!$D$19+'BP Financier'!$E$16+'BP Financier'!$E$19+'BP Financier'!$F$16+'BP Financier'!$F$19))*V6158","v":{"v":2909830.1866639922,"d":"2,909,830"}},{"v":1650655.678719808,"d":"1,650,656"},{"$f":"'BP Financier'!$F$44*(('BP Financier'!$C$16+'BP Financier'!$D$16+'BP Financier'!$E$16+'BP Financier'!$F$16)/('BP Financier'!$C$16+'BP Financier'!$C$19+'BP Financier'!$D$16+'BP Financier'!$D$19+'BP Financier'!$E$16+'BP Financier'!$E$19+'BP Financier'!$C$22+'BP Financier'!$D$22+'BP Financier'!$E$22+'BP Financier'!$F$16+'BP Financier'!$F$19+'BP Financier'!$F$22))*$V6158*X6158/(1-$W6158)","v":{"v":210104.55544886444,"d":"210,105"}},{"$f":"'BP Financier'!$F$44*(('BP Financier'!$C$16+'BP Financier'!$D$16+'BP Financier'!$E$16+'BP Financier'!$F$16)/('BP Financier'!$C$16+'BP Financier'!$C$19+'BP Financier'!$D$16+'BP Financier'!$D$19+'BP Financier'!$E$16+'BP Financier'!$E$19+'BP Financier'!$C$22+'BP Financier'!$D$22+'BP Financier'!$E$22+'BP Financier'!$F$16+'BP Financier'!$F$19+'BP Financier'!$F$22))*$V6158*Y6158/(1-$W6158)","v":{"v":140456.63651553923,"d":"140,457"}},{"$f":"'BP Financier'!$F$44*(('BP Financier'!$C$16+'BP Financier'!$D$16+'BP Financier'!$E$16+'BP Financier'!$F$16)/('BP Financier'!$C$16+'BP Financier'!$C$19+'BP Financier'!$D$16+'BP Financier'!$D$19+'BP Financier'!$E$16+'BP Financier'!$E$19+'BP Financier'!$C$22+'BP Financier'!$D$22+'BP Financier'!$E$22+'BP Financier'!$F$16+'BP Financier'!$F$19+'BP Financier'!$F$22))*$V6158*Z6158/(1-$W6158)","v":{"v":1099276.32049765,"d":"1,099,276"}},{"$f":"'BP Financier'!$F$44*(('BP Financier'!$C$16+'BP Financier'!$D$16+'BP Financier'!$E$16+'BP Financier'!$F$16)/('BP Financier'!$C$16+'BP Financier'!$C$19+'BP Financier'!$D$16+'BP Financier'!$D$19+'BP Financier'!$E$16+'BP Financier'!$E$19+'BP Financier'!$C$22+'BP Financier'!$D$22+'BP Financier'!$E$22+'BP Financier'!$F$16+'BP Financier'!$F$19+'BP Financier'!$F$22))*$V6158*AA6158/(1-$W6158)","v":{"v":135813.4419199842,"d":"135,813"}},{"$f":"'BP Financier'!$F$44*(('BP Financier'!$C$16+'BP Financier'!$D$16+'BP Financier'!$E$16+'BP Financier'!$F$16)/('BP Financier'!$C$16+'BP Financier'!$C$19+'BP Financier'!$D$16+'BP Financier'!$D$19+'BP Financier'!$E$16+'BP Financier'!$E$19+'BP Financier'!$C$22+'BP Financier'!$D$22+'BP Financier'!$E$22+'BP Financier'!$F$16+'BP Financier'!$F$19+'BP Financier'!$F$22))*$V6158*AB6158/(1-$W6158)","v":{"v":65004.72433777021,"d":"65,005"}},null,{"v":0.0075,"d":"0.75%"},{"$f":"Actif!$E$28/100","v":{"v":0.28900000000000003,"d":"28.90%"}},{"$f":"Actif!$E$30/100","v":{"v":0.09050000000000001,"d":"9.05%"}},{"$f":"Actif!$E$31/100","v":{"v":0.0605,"d":"6.05%"}},{"$f":"Actif!$E$32/100","v":{"v":0.47350000000000003,"d":"47.35%"}},{"$f":"Actif!$E$33/100","v":{"v":0.0585,"d":"5.85%"}},{"$f":"Actif!$E$29/100","v":{"v":0.027999999999999997,"d":"2.80%"}}]
[null,"#52",30,2030,"H","A_VIE",{"v":0.44999999999999996,"d":"0.45"},{"v":0.38999999999999996,"d":"0.39"},0.6,0.6,85,0,{"$f":"ROUND(Primes!$P$4*V6159,0)","v":71},{"$f":"'BP Financier'!$F$33*(('BP Financier'!$C$16+'BP Financier'!$D$16+'BP Financier'!$E$16+'BP Financier'!$F$16)/('BP Financier'!$C$16+'BP Financier'!$C$19+'BP Financier'!$D$16+'BP Financier'!$D$19+'BP Financier'!$E$16+'BP Financier'!$E$19+'BP Financier'!$F$16+'BP Financier'!$F$19))*V6159","v":{"v":2909830.1866639922,"d":"2,909,830"}},{"v":1650655.678719808,"d":"1,650,656"},{"$f":"'BP Financier'!$F$44*(('BP Financier'!$C$16+'BP Financier'!$D$16+'BP Financier'!$E$16+'BP Financier'!$F$16)/('BP Financier'!$C$16+'BP Financier'!$C$19+'BP Financier'!$D$16+'BP Financier'!$D$19+'BP Financier'!$E$16+'BP Financier'!$E$19+'BP Financier'!$C$22+'BP Financier'!$D$22+'BP Financier'!$E$22+'BP Financier'!$F$16+'BP Financier'!$F$19+'BP Financier'!$F$22))*$V6159*X6159/(1-$W6159)","v":{"v":210104.55544886444,"d":"210,105"}},{"$f":"'BP Financier'!$F$44*(('BP Financier'!$C$16+'BP Financier'!$D$16+'BP Financier'!$E$16+'BP Financier'!$F$16)/('BP Financier'!$C$16+'BP Financier'!$C$19+'BP Financier'!$D$16+'BP Financier'!$D$19+'BP Financier'!$E$16+'BP Financier'!$E$19+'BP Financier'!$C$22+'BP Financier'!$D$22+'BP Financier'!$E$22+'BP Financier'!$F$16+'BP Financier'!$F$19+'BP Financier'!$F$22))*$V6159*Y6159/(1-$W6159)","v":{"v":140456.63651553923,"d":"140,457"}},{"$f":"'BP Financier'!$F$44*(('BP Financier'!$C$16+'BP Financier'!$D$16+'BP Financier'!$E$16+'BP Financier'!$F$16)/('BP Financier'!$C$16+'BP Financier'!$C$19+'BP Financier'!$D$16+'BP Financier'!$D$19+'BP Financier'!$E$16+'BP Financier'!$E$19+'BP Financier'!$C$22+'BP Financier'!$D$22+'BP Financier'!$E$22+'BP Financier'!$F$16+'BP Financier'!$F$19+'BP Financier'!$F$22))*$V6159*Z6159/(1-$W6159)","v":{"v":1099276.32049765,"d":"1,099,276"}},{"$f":"'BP Financier'!$F$44*(('BP Financier'!$C$16+'BP Financier'!$D$16+'BP Financier'!$E$16+'BP Financier'!$F$16)/('BP Financier'!$C$16+'BP Financier'!$C$19+'BP Financier'!$D$16+'BP Financier'!$D$19+'BP Financier'!$E$16+'BP Financier'!$E$19+'BP Financier'!$C$22+'BP Financier'!$D$22+'BP Financier'!$E$22+'BP Financier'!$F$16+'BP Financier'!$F$19+'BP Financier'!$F$22))*$V6159*AA6159/(1-$W6159)","v":{"v":135813.4419199842,"d":"135,813"}},{"$f":"'BP Financier'!$F$44*(('BP Financier'!$C$16+'BP Financier'!$D$16+'BP Financier'!$E$16+'BP Financier'!$F$16)/('BP Financier'!$C$16+'BP Financier'!$C$19+'BP Financier'!$D$16+'BP Financier'!$D$19+'BP Financier'!$E$16+'BP Financier'!$E$19+'BP Financier'!$C$22+'BP Financier'!$D$22+'BP Financier'!$E$22+'BP Financier'!$F$16+'BP Financier'!$F$19+'BP Financier'!$F$22))*$V6159*AB6159/(1-$W6159)","v":{"v":65004.72433777021,"d":"65,005"}},null,{"v":0.0075,"d":"0.75%"},{"$f":"Actif!$E$28/100","v":{"v":0.28900000000000003,"d":"28.90%"}},{"$f":"Actif!$E$30/100","v":{"v":0.09050000000000001,"d":"9.05%"}},{"$f":"Actif!$E$31/100","v":{"v":0.0605,"d":"6.05%"}},{"$f":"Actif!$E$32/100","v":{"v":0.47350000000000003,"d":"47.35%"}},{"$f":"Actif!$E$33/100","v":{"v":0.0585,"d":"5.85%"}},{"$f":"Actif!$E$29/100","v":{"v":0.027999999999999997,"d":"2.80%"}}]
[null,"#53",31,2026,"H","A_VIE",{"v":0.44999999999999996,"d":"0.45"},{"v":0.38999999999999996,"d":"0.39"},0.6,0.6,85,0,{"$f":"ROUND(Primes!$P$4*V6160,0)","v":71},{"$f":"'BP Financier'!$F$33*(('BP Financier'!$C$16+'BP Financier'!$D$16+'BP Financier'!$E$16+'BP Financier'!$F$16)/('BP Financier'!$C$16+'BP Financier'!$C$19+'BP Financier'!$D$16+'BP Financier'!$D$19+'BP Financier'!$E$16+'BP Financier'!$E$19+'BP Financier'!$F$16+'BP Financier'!$F$19))*V6160","v":{"v":2909830.1866639922,"d":"2,909,830"}},{"v":1650655.678719808,"d":"1,650,656"},{"$f":"'BP Financier'!$F$44*(('BP Financier'!$C$16+'BP Financier'!$D$16+'BP Financier'!$E$16+'BP Financier'!$F$16)/('BP Financier'!$C$16+'BP Financier'!$C$19+'BP Financier'!$D$16+'BP Financier'!$D$19+'BP Financier'!$E$16+'BP Financier'!$E$19+'BP Financier'!$C$22+'BP Financier'!$D$22+'BP Financier'!$E$22+'BP Financier'!$F$16+'BP Financier'!$F$19+'BP Financier'!$F$22))*$V6160*X6160/(1-$W6160)","v":{"v":210104.55544886444,"d":"210,105"}},{"$f":"'BP Financier'!$F$44*(('BP Financier'!$C$16+'BP Financier'!$D$16+'BP Financier'!$E$16+'BP Financier'!$F$16)/('BP Financier'!$C$16+'BP Financier'!$C$19+'BP Financier'!$D$16+'BP Financier'!$D$19+'BP Financier'!$E$16+'BP Financier'!$E$19+'BP Financier'!$C$22+'BP Financier'!$D$22+'BP Financier'!$E$22+'BP Financier'!$F$16+'BP Financier'!$F$19+'BP Financier'!$F$22))*$V6160*Y6160/(1-$W6160)","v":{"v":140456.63651553923,"d":"140,457"}},{"$f":"'BP Financier'!$F$44*(('BP Financier'!$C$16+'BP Financier'!$D$16+'BP Financier'!$E$16+'BP Financier'!$F$16)/('BP Financier'!$C$16+'BP Financier'!$C$19+'BP Financier'!$D$16+'BP Financier'!$D$19+'BP Financier'!$E$16+'BP Financier'!$E$19+'BP Financier'!$C$22+'BP Financier'!$D$22+'BP Financier'!$E$22+'BP Financier'!$F$16+'BP Financier'!$F$19+'BP Financier'!$F$22))*$V6160*Z6160/(1-$W6160)","v":{"v":1099276.32049765,"d":"1,099,276"}},{"$f":"'BP Financier'!$F$44*(('BP Financier'!$C$16+'BP Financier'!$D$16+'BP Financier'!$E$16+'BP Financier'!$F$16)/('BP Financier'!$C$16+'BP Financier'!$C$19+'BP Financier'!$D$16+'BP Financier'!$D$19+'BP Financier'!$E$16+'BP Financier'!$E$19+'BP Financier'!$C$22+'BP Financier'!$D$22+'BP Financier'!$E$22+'BP Financier'!$F$16+'BP Financier'!$F$19+'BP Financier'!$F$22))*$V6160*AA6160/(1-$W6160)","v":{"v":135813.4419199842,"d":"135,813"}},{"$f":"'BP Financier'!$F$44*(('BP Financier'!$C$16+'BP Financier'!$D$16+'BP Financier'!$E$16+'BP Financier'!$F$16)/('BP Financier'!$C$16+'BP Financier'!$C$19+'BP Financier'!$D$16+'BP Financier'!$D$19+'BP Financier'!$E$16+'BP Financier'!$E$19+'BP Financier'!$C$22+'BP Financier'!$D$22+'BP Financier'!$E$22+'BP Financier'!$F$16+'BP Financier'!$F$19+'BP Financier'!$F$22))*$V6160*AB6160/(1-$W6160)","v":{"v":65004.72433777021,"d":"65,005"}},null,{"v":0.0075,"d":"0.75%"},{"$f":"Actif!$E$28/100","v":{"v":0.28900000000000003,"d":"28.90%"}},{"$f":"Actif!$E$30/100","v":{"v":0.09050000000000001,"d":"9.05%"}},{"$f":"Actif!$E$31/100","v":{"v":0.0605,"d":"6.05%"}},{"$f":"Actif!$E$32/100","v":{"v":0.47350000000000003,"d":"47.35%"}},{"$f":"Actif!$E$33/100","v":{"v":0.0585,"d":"5.85%"}},{"$f":"Actif!$E$29/100","v":{"v":0.027999999999999997,"d":"2.80%"}}]
[null,"#54",31,2028,"H","A_VIE",{"v":0.44999999999999996,"d":"0.45"},{"v":0.38999999999999996,"d":"0.39"},0.6,0.6,85,0,{"$f":"ROUND(Primes!$P$4*V6161,0)","v":71},{"$f":"'BP Financier'!$F$33*(('BP Financier'!$C$16+'BP Financier'!$D$16+'BP Financier'!$E$16+'BP Financier'!$F$16)/('BP Financier'!$C$16+'BP Financier'!$C$19+'BP Financier'!$D$16+'BP Financier'!$D$19+'BP Financier'!$E$16+'BP Financier'!$E$19+'BP Financier'!$F$16+'BP Financier'!$F$19))*V6161","v":{"v":2909830.1866639922,"d":"2,909,830"}},{"v":1650655.678719808,"d":"1,650,656"},{"$f":"'BP Financier'!$F$44*(('BP Financier'!$C$16+'BP Financier'!$D$16+'BP Financier'!$E$16+'BP Financier'!$F$16)/('BP Financier'!$C$16+'BP Financier'!$C$19+'BP Financier'!$D$16+'BP Financier'!$D$19+'BP Financier'!$E$16+'BP Financier'!$E$19+'BP Financier'!$C$22+'BP Financier'!$D$22+'BP Financier'!$E$22+'BP Financier'!$F$16+'BP Financier'!$F$19+'BP Financier'!$F$22))*$V6161*X6161/(1-$W6161)","v":{"v":210104.55544886444,"d":"210,105"}},{"$f":"'BP Financier'!$F$44*(('BP Financier'!$C$16+'BP Financier'!$D$16+'BP Financier'!$E$16+'BP Financier'!$F$16)/('BP Financier'!$C$16+'BP Financier'!$C$19+'BP Financier'!$D$16+'BP Financier'!$D$19+'BP Financier'!$E$16+'BP Financier'!$E$19+'BP Financier'!$C$22+'BP Financier'!$D$22+'BP Financier'!$E$22+'BP Financier'!$F$16+'BP Financier'!$F$19+'BP Financier'!$F$22))*$V6161*Y6161/(1-$W6161)","v":{"v":140456.63651553923,"d":"140,457"}},{"$f":"'BP Financier'!$F$44*(('BP Financier'!$C$16+'BP Financier'!$D$16+'BP Financier'!$E$16+'BP Financier'!$F$16)/('BP Financier'!$C$16+'BP Financier'!$C$19+'BP Financier'!$D$16+'BP Financier'!$D$19+'BP Financier'!$E$16+'BP Financier'!$E$19+'BP Financier'!$C$22+'BP Financier'!$D$22+'BP Financier'!$E$22+'BP Financier'!$F$16+'BP Financier'!$F$19+'BP Financier'!$F$22))*$V6161*Z6161/(1-$W6161)","v":{"v":1099276.32049765,"d":"1,099,276"}},{"$f":"'BP Financier'!$F$44*(('BP Financier'!$C$16+'BP Financier'!$D$16+'BP Financier'!$E$16+'BP Financier'!$F$16)/('BP Financier'!$C$16+'BP Financier'!$C$19+'BP Financier'!$D$16+'BP Financier'!$D$19+'BP Financier'!$E$16+'BP Financier'!$E$19+'BP Financier'!$C$22+'BP Financier'!$D$22+'BP Financier'!$E$22+'BP Financier'!$F$16+'BP Financier'!$F$19+'BP Financier'!$F$22))*$V6161*AA6161/(1-$W6161)","v":{"v":135813.4419199842,"d":"135,813"}},{"$f":"'BP Financier'!$F$44*(('BP Financier'!$C$16+'BP Financier'!$D$16+'BP Financier'!$E$16+'BP Financier'!$F$16)/('BP Financier'!$C$16+'BP Financier'!$C$19+'BP Financier'!$D$16+'BP Financier'!$D$19+'BP Financier'!$E$16+'BP Financier'!$E$19+'BP Financier'!$C$22+'BP Financier'!$D$22+'BP Financier'!$E$22+'BP Financier'!$F$16+'BP Financier'!$F$19+'BP Financier'!$F$22))*$V6161*AB6161/(1-$W6161)","v":{"v":65004.72433777021,"d":"65,005"}},null,{"v":0.0075,"d":"0.75%"},{"$f":"Actif!$E$28/100","v":{"v":0.28900000000000003,"d":"28.90%"}},{"$f":"Actif!$E$30/100","v":{"v":0.09050000000000001,"d":"9.05%"}},{"$f":"Actif!$E$31/100","v":{"v":0.0605,"d":"6.05%"}},{"$f":"Actif!$E$32/100","v":{"v":0.47350000000000003,"d":"47.35%"}},{"$f":"Actif!$E$33/100","v":{"v":0.0585,"d":"5.85%"}},{"$f":"Actif!$E$29/100","v":{"v":0.027999999999999997,"d":"2.80%"}}]
[null,"#55",31,2029,"H","A_VIE",{"v":0.44999999999999996,"d":"0.45"},{"v":0.38999999999999996,"d":"0.39"},0.6,0.6,85,0,{"$f":"ROUND(Primes!$P$4*V6162,0)","v":71},{"$f":"'BP Financier'!$F$33*(('BP Financier'!$C$16+'BP Financier'!$D$16+'BP Financier'!$E$16+'BP Financier'!$F$16)/('BP Financier'!$C$16+'BP Financier'!$C$19+'BP Financier'!$D$16+'BP Financier'!$D$19+'BP Financier'!$E$16+'BP Financier'!$E$19+'BP Financier'!$F$16+'BP Financier'!$F$19))*V6162","v":{"v":2909830.1866639922,"d":"2,909,830"}},{"v":1650655.678719808,"d":"1,650,656"},{"$f":"'BP Financier'!$F$44*(('BP Financier'!$C$16+'BP Financier'!$D$16+'BP Financier'!$E$16+'BP Financier'!$F$16)/('BP Financier'!$C$16+'BP Financier'!$C$19+'BP Financier'!$D$16+'BP Financier'!$D$19+'BP Financier'!$E$16+'BP Financier'!$E$19+'BP Financier'!$C$22+'BP Financier'!$D$22+'BP Financier'!$E$22+'BP Financier'!$F$16+'BP Financier'!$F$19+'BP Financier'!$F$22))*$V6162*X6162/(1-$W6162)","v":{"v":210104.55544886444,"d":"210,105"}},{"$f":"'BP Financier'!$F$44*(('BP Financier'!$C$16+'BP Financier'!$D$16+'BP Financier'!$E$16+'BP Financier'!$F$16)/('BP Financier'!$C$16+'BP Financier'!$C$19+'BP Financier'!$D$16+'BP Financier'!$D$19+'BP Financier'!$E$16+'BP Financier'!$E$19+'BP Financier'!$C$22+'BP Financier'!$D$22+'BP Financier'!$E$22+'BP Financier'!$F$16+'BP Financier'!$F$19+'BP Financier'!$F$22))*$V6162*Y6162/(1-$W6162)","v":{"v":140456.63651553923,"d":"140,457"}},{"$f":"'BP Financier'!$F$44*(('BP Financier'!$C$16+'BP Financier'!$D$16+'BP Financier'!$E$16+'BP Financier'!$F$16)/('BP Financier'!$C$16+'BP Financier'!$C$19+'BP Financier'!$D$16+'BP Financier'!$D$19+'BP Financier'!$E$16+'BP Financier'!$E$19+'BP Financier'!$C$22+'BP Financier'!$D$22+'BP Financier'!$E$22+'BP Financier'!$F$16+'BP Financier'!$F$19+'BP Financier'!$F$22))*$V6162*Z6162/(1-$W6162)","v":{"v":1099276.32049765,"d":"1,099,276"}},{"$f":"'BP Financier'!$F$44*(('BP Financier'!$C$16+'BP Financier'!$D$16+'BP Financier'!$E$16+'BP Financier'!$F$16)/('BP Financier'!$C$16+'BP Financier'!$C$19+'BP Financier'!$D$16+'BP Financier'!$D$19+'BP Financier'!$E$16+'BP Financier'!$E$19+'BP Financier'!$C$22+'BP Financier'!$D$22+'BP Financier'!$E$22+'BP Financier'!$F$16+'BP Financier'!$F$19+'BP Financier'!$F$22))*$V6162*AA6162/(1-$W6162)","v":{"v":135813.4419199842,"d":"135,813"}},{"$f":"'BP Financier'!$F$44*(('BP Financier'!$C$16+'BP Financier'!$D$16+'BP Financier'!$E$16+'BP Financier'!$F$16)/('BP Financier'!$C$16+'BP Financier'!$C$19+'BP Financier'!$D$16+'BP Financier'!$D$19+'BP Financier'!$E$16+'BP Financier'!$E$19+'BP Financier'!$C$22+'BP Financier'!$D$22+'BP Financier'!$E$22+'BP Financier'!$F$16+'BP Financier'!$F$19+'BP Financier'!$F$22))*$V6162*AB6162/(1-$W6162)","v":{"v":65004.72433777021,"d":"65,005"}},null,{"v":0.0075,"d":"0.75%"},{"$f":"Actif!$E$28/100","v":{"v":0.28900000000000003,"d":"28.90%"}},{"$f":"Actif!$E$30/100","v":{"v":0.09050000000000001,"d":"9.05%"}},{"$f":"Actif!$E$31/100","v":{"v":0.0605,"d":"6.05%"}},{"$f":"Actif!$E$32/100","v":{"v":0.47350000000000003,"d":"47.35%"}},{"$f":"Actif!$E$33/100","v":{"v":0.0585,"d":"5.85%"}},{"$f":"Actif!$E$29/100","v":{"v":0.027999999999999997,"d":"2.80%"}}]
[null,"#56",31,2030,"H","A_VIE",{"v":0.44999999999999996,"d":"0.45"},{"v":0.38999999999999996,"d":"0.39"},0.6,0.6,85,0,{"$f":"ROUND(Primes!$P$4*V6163,0)","v":71},{"$f":"'BP Financier'!$F$33*(('BP Financier'!$C$16+'BP Financier'!$D$16+'BP Financier'!$E$16+'BP Financier'!$F$16)/('BP Financier'!$C$16+'BP Financier'!$C$19+'BP Financier'!$D$16+'BP Financier'!$D$19+'BP Financier'!$E$16+'BP Financier'!$E$19+'BP Financier'!$F$16+'BP Financier'!$F$19))*V6163","v":{"v":2909830.1866639922,"d":"2,909,830"}},{"v":1650655.678719808,"d":"1,650,656"},{"$f":"'BP Financier'!$F$44*(('BP Financier'!$C$16+'BP Financier'!$D$16+'BP Financier'!$E$16+'BP Financier'!$F$16)/('BP Financier'!$C$16+'BP Financier'!$C$19+'BP Financier'!$D$16+'BP Financier'!$D$19+'BP Financier'!$E$16+'BP Financier'!$E$19+'BP Financier'!$C$22+'BP Financier'!$D$22+'BP Financier'!$E$22+'BP Financier'!$F$16+'BP Financier'!$F$19+'BP Financier'!$F$22))*$V6163*X6163/(1-$W6163)","v":{"v":210104.55544886444,"d":"210,105"}},{"$f":"'BP Financier'!$F$44*(('BP Financier'!$C$16+'BP Financier'!$D$16+'BP Financier'!$E$16+'BP Financier'!$F$16)/('BP Financier'!$C$16+'BP Financier'!$C$19+'BP Financier'!$D$16+'BP Financier'!$D$19+'BP Financier'!$E$16+'BP Financier'!$E$19+'BP Financier'!$C$22+'BP Financier'!$D$22+'BP Financier'!$E$22+'BP Financier'!$F$16+'BP Financier'!$F$19+'BP Financier'!$F$22))*$V6163*Y6163/(1-$W6163)","v":{"v":140456.63651553923,"d":"140,457"}},{"$f":"'BP Financier'!$F$44*(('BP Financier'!$C$16+'BP Financier'!$D$16+'BP Financier'!$E$16+'BP Financier'!$F$16)/('BP Financier'!$C$16+'BP Financier'!$C$19+'BP Financier'!$D$16+'BP Financier'!$D$19+'BP Financier'!$E$16+'BP Financier'!$E$19+'BP Financier'!$C$22+'BP Financier'!$D$22+'BP Financier'!$E$22+'BP Financier'!$F$16+'BP Financier'!$F$19+'BP Financier'!$F$22))*$V6163*Z6163/(1-$W6163)","v":{"v":1099276.32049765,"d":"1,099,276"}},{"$f":"'BP Financier'!$F$44*(('BP Financier'!$C$16+'BP Financier'!$D$16+'BP Financier'!$E$16+'BP Financier'!$F$16)/('BP Financier'!$C$16+'BP Financier'!$C$19+'BP Financier'!$D$16+'BP Financier'!$D$19+'BP Financier'!$E$16+'BP Financier'!$E$19+'BP Financier'!$C$22+'BP Financier'!$D$22+'BP Financier'!$E$22+'BP Financier'!$F$16+'BP Financier'!$F$19+'BP Financier'!$F$22))*$V6163*AA6163/(1-$W6163)","v":{"v":135813.4419199842,"d":"135,813"}},{"$f":"'BP Financier'!$F$44*(('BP Financier'!$C$16+'BP Financier'!$D$16+'BP Financier'!$E$16+'BP Financier'!$F$16)/('BP Financier'!$C$16+'BP Financier'!$C$19+'BP Financier'!$D$16+'BP Financier'!$D$19+'BP Financier'!$E$16+'BP Financier'!$E$19+'BP Financier'!$C$22+'BP Financier'!$D$22+'BP Financier'!$E$22+'BP Financier'!$F$16+'BP Financier'!$F$19+'BP Financier'!$F$22))*$V6163*AB6163/(1-$W6163)","v":{"v":65004.72433777021,"d":"65,005"}},null,{"v":0.0075,"d":"0.75%"},{"$f":"Actif!$E$28/100","v":{"v":0.28900000000000003,"d":"28.90%"}},{"$f":"Actif!$E$30/100","v":{"v":0.09050000000000001,"d":"9.05%"}},{"$f":"Actif!$E$31/100","v":{"v":0.0605,"d":"6.05%"}},{"$f":"Actif!$E$32/100","v":{"v":0.47350000000000003,"d":"47.35%"}},{"$f":"Actif!$E$33/100","v":{"v":0.0585,"d":"5.85%"}},{"$f":"Actif!$E$29/100","v":{"v":0.027999999999999997,"d":"2.80%"}}]
[null,"#57",32,2026,"F","A_VIE",{"v":0.44999999999999996,"d":"0.45"},{"v":0.38999999999999996,"d":"0.39"},0.6,0.6,85,0,{"$f":"ROUND(Primes!$P$4*V6164,0)","v":71},{"$f":"'BP Financier'!$F$33*(('BP Financier'!$C$16+'BP Financier'!$D$16+'BP Financier'!$E$16+'BP Financier'!$F$16)/('BP Financier'!$C$16+'BP Financier'!$C$19+'BP Financier'!$D$16+'BP Financier'!$D$19+'BP Financier'!$E$16+'BP Financier'!$E$19+'BP Financier'!$F$16+'BP Financier'!$F$19))*V6164","v":{"v":2909830.1866639922,"d":"2,909,830"}},{"v":1650655.678719808,"d":"1,650,656"},{"$f":"'BP Financier'!$F$44*(('BP Financier'!$C$16+'BP Financier'!$D$16+'BP Financier'!$E$16+'BP Financier'!$F$16)/('BP Financier'!$C$16+'BP Financier'!$C$19+'BP Financier'!$D$16+'BP Financier'!$D$19+'BP Financier'!$E$16+'BP Financier'!$E$19+'BP Financier'!$C$22+'BP Financier'!$D$22+'BP Financier'!$E$22+'BP Financier'!$F$16+'BP Financier'!$F$19+'BP Financier'!$F$22))*$V6164*X6164/(1-$W6164)","v":{"v":210104.55544886444,"d":"210,105"}},{"$f":"'BP Financier'!$F$44*(('BP Financier'!$C$16+'BP Financier'!$D$16+'BP Financier'!$E$16+'BP Financier'!$F$16)/('BP Financier'!$C$16+'BP Financier'!$C$19+'BP Financier'!$D$16+'BP Financier'!$D$19+'BP Financier'!$E$16+'BP Financier'!$E$19+'BP Financier'!$C$22+'BP Financier'!$D$22+'BP Financier'!$E$22+'BP Financier'!$F$16+'BP Financier'!$F$19+'BP Financier'!$F$22))*$V6164*Y6164/(1-$W6164)","v":{"v":140456.63651553923,"d":"140,457"}},{"$f":"'BP Financier'!$F$44*(('BP Financier'!$C$16+'BP Financier'!$D$16+'BP Financier'!$E$16+'BP Financier'!$F$16)/('BP Financier'!$C$16+'BP Financier'!$C$19+'BP Financier'!$D$16+'BP Financier'!$D$19+'BP Financier'!$E$16+'BP Financier'!$E$19+'BP Financier'!$C$22+'BP Financier'!$D$22+'BP Financier'!$E$22+'BP Financier'!$F$16+'BP Financier'!$F$19+'BP Financier'!$F$22))*$V6164*Z6164/(1-$W6164)","v":{"v":1099276.32049765,"d":"1,099,276"}},{"$f":"'BP Financier'!$F$44*(('BP Financier'!$C$16+'BP Financier'!$D$16+'BP Financier'!$E$16+'BP Financier'!$F$16)/('BP Financier'!$C$16+'BP Financier'!$C$19+'BP Financier'!$D$16+'BP Financier'!$D$19+'BP Financier'!$E$16+'BP Financier'!$E$19+'BP Financier'!$C$22+'BP Financier'!$D$22+'BP Financier'!$E$22+'BP Financier'!$F$16+'BP Financier'!$F$19+'BP Financier'!$F$22))*$V6164*AA6164/(1-$W6164)","v":{"v":135813.4419199842,"d":"135,813"}},{"$f":"'BP Financier'!$F$44*(('BP Financier'!$C$16+'BP Financier'!$D$16+'BP Financier'!$E$16+'BP Financier'!$F$16)/('BP Financier'!$C$16+'BP Financier'!$C$19+'BP Financier'!$D$16+'BP Financier'!$D$19+'BP Financier'!$E$16+'BP Financier'!$E$19+'BP Financier'!$C$22+'BP Financier'!$D$22+'BP Financier'!$E$22+'BP Financier'!$F$16+'BP Financier'!$F$19+'BP Financier'!$F$22))*$V6164*AB6164/(1-$W6164)","v":{"v":65004.72433777021,"d":"65,005"}},null,{"v":0.0075,"d":"0.75%"},{"$f":"Actif!$E$28/100","v":{"v":0.28900000000000003,"d":"28.90%"}},{"$f":"Actif!$E$30/100","v":{"v":0.09050000000000001,"d":"9.05%"}},{"$f":"Actif!$E$31/100","v":{"v":0.0605,"d":"6.05%"}},{"$f":"Actif!$E$32/100","v":{"v":0.47350000000000003,"d":"47.35%"}},{"$f":"Actif!$E$33/100","v":{"v":0.0585,"d":"5.85%"}},{"$f":"Actif!$E$29/100","v":{"v":0.027999999999999997,"d":"2.80%"}}]
[null,"#58",32,2028,"F","A_VIE",{"v":0.44999999999999996,"d":"0.45"},{"v":0.38999999999999996,"d":"0.39"},0.6,0.6,85,0,{"$f":"ROUND(Primes!$P$4*V6165,0)","v":71},{"$f":"'BP Financier'!$F$33*(('BP Financier'!$C$16+'BP Financier'!$D$16+'BP Financier'!$E$16+'BP Financier'!$F$16)/('BP Financier'!$C$16+'BP Financier'!$C$19+'BP Financier'!$D$16+'BP Financier'!$D$19+'BP Financier'!$E$16+'BP Financier'!$E$19+'BP Financier'!$F$16+'BP Financier'!$F$19))*V6165","v":{"v":2909830.1866639922,"d":"2,909,830"}},{"v":1650655.678719808,"d":"1,650,656"},{"$f":"'BP Financier'!$F$44*(('BP Financier'!$C$16+'BP Financier'!$D$16+'BP Financier'!$E$16+'BP Financier'!$F$16)/('BP Financier'!$C$16+'BP Financier'!$C$19+'BP Financier'!$D$16+'BP Financier'!$D$19+'BP Financier'!$E$16+'BP Financier'!$E$19+'BP Financier'!$C$22+'BP Financier'!$D$22+'BP Financier'!$E$22+'BP Financier'!$F$16+'BP Financier'!$F$19+'BP Financier'!$F$22))*$V6165*X6165/(1-$W6165)","v":{"v":210104.55544886444,"d":"210,105"}},{"$f":"'BP Financier'!$F$44*(('BP Financier'!$C$16+'BP Financier'!$D$16+'BP Financier'!$E$16+'BP Financier'!$F$16)/('BP Financier'!$C$16+'BP Financier'!$C$19+'BP Financier'!$D$16+'BP Financier'!$D$19+'BP Financier'!$E$16+'BP Financier'!$E$19+'BP Financier'!$C$22+'BP Financier'!$D$22+'BP Financier'!$E$22+'BP Financier'!$F$16+'BP Financier'!$F$19+'BP Financier'!$F$22))*$V6165*Y6165/(1-$W6165)","v":{"v":140456.63651553923,"d":"140,457"}},{"$f":"'BP Financier'!$F$44*(('BP Financier'!$C$16+'BP Financier'!$D$16+'BP Financier'!$E$16+'BP Financier'!$F$16)/('BP Financier'!$C$16+'BP Financier'!$C$19+'BP Financier'!$D$16+'BP Financier'!$D$19+'BP Financier'!$E$16+'BP Financier'!$E$19+'BP Financier'!$C$22+'BP Financier'!$D$22+'BP Financier'!$E$22+'BP Financier'!$F$16+'BP Financier'!$F$19+'BP Financier'!$F$22))*$V6165*Z6165/(1-$W6165)","v":{"v":1099276.32049765,"d":"1,099,276"}},{"$f":"'BP Financier'!$F$44*(('BP Financier'!$C$16+'BP Financier'!$D$16+'BP Financier'!$E$16+'BP Financier'!$F$16)/('BP Financier'!$C$16+'BP Financier'!$C$19+'BP Financier'!$D$16+'BP Financier'!$D$19+'BP Financier'!$E$16+'BP Financier'!$E$19+'BP Financier'!$C$22+'BP Financier'!$D$22+'BP Financier'!$E$22+'BP Financier'!$F$16+'BP Financier'!$F$19+'BP Financier'!$F$22))*$V6165*AA6165/(1-$W6165)","v":{"v":135813.4419199842,"d":"135,813"}},{"$f":"'BP Financier'!$F$44*(('BP Financier'!$C$16+'BP Financier'!$D$16+'BP Financier'!$E$16+'BP Financier'!$F$16)/('BP Financier'!$C$16+'BP Financier'!$C$19+'BP Financier'!$D$16+'BP Financier'!$D$19+'BP Financier'!$E$16+'BP Financier'!$E$19+'BP Financier'!$C$22+'BP Financier'!$D$22+'BP Financier'!$E$22+'BP Financier'!$F$16+'BP Financier'!$F$19+'BP Financier'!$F$22))*$V6165*AB6165/(1-$W6165)","v":{"v":65004.72433777021,"d":"65,005"}},null,{"v":0.0075,"d":"0.75%"},{"$f":"Actif!$E$28/100","v":{"v":0.28900000000000003,"d":"28.90%"}},{"$f":"Actif!$E$30/100","v":{"v":0.09050000000000001,"d":"9.05%"}},{"$f":"Actif!$E$31/100","v":{"v":0.0605,"d":"6.05%"}},{"$f":"Actif!$E$32/100","v":{"v":0.47350000000000003,"d":"47.35%"}},{"$f":"Actif!$E$33/100","v":{"v":0.0585,"d":"5.85%"}},{"$f":"Actif!$E$29/100","v":{"v":0.027999999999999997,"d":"2.80%"}}]
[null,"#59",32,2029,"F","A_VIE",{"v":0.44999999999999996,"d":"0.45"},{"v":0.38999999999999996,"d":"0.39"},0.6,0.6,85,0,{"$f":"ROUND(Primes!$P$4*V6166,0)","v":71},{"$f":"'BP Financier'!$F$33*(('BP Financier'!$C$16+'BP Financier'!$D$16+'BP Financier'!$E$16+'BP Financier'!$F$16)/('BP Financier'!$C$16+'BP Financier'!$C$19+'BP Financier'!$D$16+'BP Financier'!$D$19+'BP Financier'!$E$16+'BP Financier'!$E$19+'BP Financier'!$F$16+'BP Financier'!$F$19))*V6166","v":{"v":2909830.1866639922,"d":"2,909,830"}},{"v":1650655.678719808,"d":"1,650,656"},{"$f":"'BP Financier'!$F$44*(('BP Financier'!$C$16+'BP Financier'!$D$16+'BP Financier'!$E$16+'BP Financier'!$F$16)/('BP Financier'!$C$16+'BP Financier'!$C$19+'BP Financier'!$D$16+'BP Financier'!$D$19+'BP Financier'!$E$16+'BP Financier'!$E$19+'BP Financier'!$C$22+'BP Financier'!$D$22+'BP Financier'!$E$22+'BP Financier'!$F$16+'BP Financier'!$F$19+'BP Financier'!$F$22))*$V6166*X6166/(1-$W6166)","v":{"v":210104.55544886444,"d":"210,105"}},{"$f":"'BP Financier'!$F$44*(('BP Financier'!$C$16+'BP Financier'!$D$16+'BP Financier'!$E$16+'BP Financier'!$F$16)/('BP Financier'!$C$16+'BP Financier'!$C$19+'BP Financier'!$D$16+'BP Financier'!$D$19+'BP Financier'!$E$16+'BP Financier'!$E$19+'BP Financier'!$C$22+'BP Financier'!$D$22+'BP Financier'!$E$22+'BP Financier'!$F$16+'BP Financier'!$F$19+'BP Financier'!$F$22))*$V6166*Y6166/(1-$W6166)","v":{"v":140456.63651553923,"d":"140,457"}},{"$f":"'BP Financier'!$F$44*(('BP Financier'!$C$16+'BP Financier'!$D$16+'BP Financier'!$E$16+'BP Financier'!$F$16)/('BP Financier'!$C$16+'BP Financier'!$C$19+'BP Financier'!$D$16+'BP Financier'!$D$19+'BP Financier'!$E$16+'BP Financier'!$E$19+'BP Financier'!$C$22+'BP Financier'!$D$22+'BP Financier'!$E$22+'BP Financier'!$F$16+'BP Financier'!$F$19+'BP Financier'!$F$22))*$V6166*Z6166/(1-$W6166)","v":{"v":1099276.32049765,"d":"1,099,276"}},{"$f":"'BP Financier'!$F$44*(('BP Financier'!$C$16+'BP Financier'!$D$16+'BP Financier'!$E$16+'BP Financier'!$F$16)/('BP Financier'!$C$16+'BP Financier'!$C$19+'BP Financier'!$D$16+'BP Financier'!$D$19+'BP Financier'!$E$16+'BP Financier'!$E$19+'BP Financier'!$C$22+'BP Financier'!$D$22+'BP Financier'!$E$22+'BP Financier'!$F$16+'BP Financier'!$F$19+'BP Financier'!$F$22))*$V6166*AA6166/(1-$W6166)","v":{"v":135813.4419199842,"d":"135,813"}},{"$f":"'BP Financier'!$F$44*(('BP Financier'!$C$16+'BP Financier'!$D$16+'BP Financier'!$E$16+'BP Financier'!$F$16)/('BP Financier'!$C$16+'BP Financier'!$C$19+'BP Financier'!$D$16+'BP Financier'!$D$19+'BP Financier'!$E$16+'BP Financier'!$E$19+'BP Financier'!$C$22+'BP Financier'!$D$22+'BP Financier'!$E$22+'BP Financier'!$F$16+'BP Financier'!$F$19+'BP Financier'!$F$22))*$V6166*AB6166/(1-$W6166)","v":{"v":65004.72433777021,"d":"65,005"}},null,{"v":0.0075,"d":"0.75%"},{"$f":"Actif!$E$28/100","v":{"v":0.28900000000000003,"d":"28.90%"}},{"$f":"Actif!$E$30/100","v":{"v":0.09050000000000001,"d":"9.05%"}},{"$f":"Actif!$E$31/100","v":{"v":0.0605,"d":"6.05%"}},{"$f":"Actif!$E$32/100","v":{"v":0.47350000000000003,"d":"47.35%"}},{"$f":"Actif!$E$33/100","v":{"v":0.0585,"d":"5.85%"}},{"$f":"Actif!$E$29/100","v":{"v":0.027999999999999997,"d":"2.80%"}}]
[null,"#60",32,2030,"F","A_VIE",{"v":0.44999999999999996,"d":"0.45"},{"v":0.38999999999999996,"d":"0.39"},0.6,0.6,85,0,{"$f":"ROUND(Primes!$P$4*V6167,0)","v":71},{"$f":"'BP Financier'!$F$33*(('BP Financier'!$C$16+'BP Financier'!$D$16+'BP Financier'!$E$16+'BP Financier'!$F$16)/('BP Financier'!$C$16+'BP Financier'!$C$19+'BP Financier'!$D$16+'BP Financier'!$D$19+'BP Financier'!$E$16+'BP Financier'!$E$19+'BP Financier'!$F$16+'BP Financier'!$F$19))*V6167","v":{"v":2909830.1866639922,"d":"2,909,830"}},{"v":1650655.678719808,"d":"1,650,656"},{"$f":"'BP Financier'!$F$44*(('BP Financier'!$C$16+'BP Financier'!$D$16+'BP Financier'!$E$16+'BP Financier'!$F$16)/('BP Financier'!$C$16+'BP Financier'!$C$19+'BP Financier'!$D$16+'BP Financier'!$D$19+'BP Financier'!$E$16+'BP Financier'!$E$19+'BP Financier'!$C$22+'BP Financier'!$D$22+'BP Financier'!$E$22+'BP Financier'!$F$16+'BP Financier'!$F$19+'BP Financier'!$F$22))*$V6167*X6167/(1-$W6167)","v":{"v":210104.55544886444,"d":"210,105"}},{"$f":"'BP Financier'!$F$44*(('BP Financier'!$C$16+'BP Financier'!$D$16+'BP Financier'!$E$16+'BP Financier'!$F$16)/('BP Financier'!$C$16+'BP Financier'!$C$19+'BP Financier'!$D$16+'BP Financier'!$D$19+'BP Financier'!$E$16+'BP Financier'!$E$19+'BP Financier'!$C$22+'BP Financier'!$D$22+'BP Financier'!$E$22+'BP Financier'!$F$16+'BP Financier'!$F$19+'BP Financier'!$F$22))*$V6167*Y6167/(1-$W6167)","v":{"v":140456.63651553923,"d":"140,457"}},{"$f":"'BP Financier'!$F$44*(('BP Financier'!$C$16+'BP Financier'!$D$16+'BP Financier'!$E$16+'BP Financier'!$F$16)/('BP Financier'!$C$16+'BP Financier'!$C$19+'BP Financier'!$D$16+'BP Financier'!$D$19+'BP Financier'!$E$16+'BP Financier'!$E$19+'BP Financier'!$C$22+'BP Financier'!$D$22+'BP Financier'!$E$22+'BP Financier'!$F$16+'BP Financier'!$F$19+'BP Financier'!$F$22))*$V6167*Z6167/(1-$W6167)","v":{"v":1099276.32049765,"d":"1,099,276"}},{"$f":"'BP Financier'!$F$44*(('BP Financier'!$C$16+'BP Financier'!$D$16+'BP Financier'!$E$16+'BP Financier'!$F$16)/('BP Financier'!$C$16+'BP Financier'!$C$19+'BP Financier'!$D$16+'BP Financier'!$D$19+'BP Financier'!$E$16+'BP Financier'!$E$19+'BP Financier'!$C$22+'BP Financier'!$D$22+'BP Financier'!$E$22+'BP Financier'!$F$16+'BP Financier'!$F$19+'BP Financier'!$F$22))*$V6167*AA6167/(1-$W6167)","v":{"v":135813.4419199842,"d":"135,813"}},{"$f":"'BP Financier'!$F$44*(('BP Financier'!$C$16+'BP Financier'!$D$16+'BP Financier'!$E$16+'BP Financier'!$F$16)/('BP Financier'!$C$16+'BP Financier'!$C$19+'BP Financier'!$D$16+'BP Financier'!$D$19+'BP Financier'!$E$16+'BP Financier'!$E$19+'BP Financier'!$C$22+'BP Financier'!$D$22+'BP Financier'!$E$22+'BP Financier'!$F$16+'BP Financier'!$F$19+'BP Financier'!$F$22))*$V6167*AB6167/(1-$W6167)","v":{"v":65004.72433777021,"d":"65,005"}},null,{"v":0.0075,"d":"0.75%"},{"$f":"Actif!$E$28/100","v":{"v":0.28900000000000003,"d":"28.90%"}},{"$f":"Actif!$E$30/100","v":{"v":0.09050000000000001,"d":"9.05%"}},{"$f":"Actif!$E$31/100","v":{"v":0.0605,"d":"6.05%"}},{"$f":"Actif!$E$32/100","v":{"v":0.47350000000000003,"d":"47.35%"}},{"$f":"Actif!$E$33/100","v":{"v":0.0585,"d":"5.85%"}},{"$f":"Actif!$E$29/100","v":{"v":0.027999999999999997,"d":"2.80%"}}]
[null,"#61",33,2026,"H","A_VIE",{"v":0.44999999999999996,"d":"0.45"},{"v":0.38999999999999996,"d":"0.39"},0.6,0.6,85,0,{"$f":"ROUND(Primes!$P$4*V6168,0)","v":71},{"$f":"'BP Financier'!$F$33*(('BP Financier'!$C$16+'BP Financier'!$D$16+'BP Financier'!$E$16+'BP Financier'!$F$16)/('BP Financier'!$C$16+'BP Financier'!$C$19+'BP Financier'!$D$16+'BP Financier'!$D$19+'BP Financier'!$E$16+'BP Financier'!$E$19+'BP Financier'!$F$16+'BP Financier'!$F$19))*V6168","v":{"v":2909830.1866639922,"d":"2,909,830"}},{"v":1650655.678719808,"d":"1,650,656"},{"$f":"'BP Financier'!$F$44*(('BP Financier'!$C$16+'BP Financier'!$D$16+'BP Financier'!$E$16+'BP Financier'!$F$16)/('BP Financier'!$C$16+'BP Financier'!$C$19+'BP Financier'!$D$16+'BP Financier'!$D$19+'BP Financier'!$E$16+'BP Financier'!$E$19+'BP Financier'!$C$22+'BP Financier'!$D$22+'BP Financier'!$E$22+'BP Financier'!$F$16+'BP Financier'!$F$19+'BP Financier'!$F$22))*$V6168*X6168/(1-$W6168)","v":{"v":210104.55544886444,"d":"210,105"}},{"$f":"'BP Financier'!$F$44*(('BP Financier'!$C$16+'BP Financier'!$D$16+'BP Financier'!$E$16+'BP Financier'!$F$16)/('BP Financier'!$C$16+'BP Financier'!$C$19+'BP Financier'!$D$16+'BP Financier'!$D$19+'BP Financier'!$E$16+'BP Financier'!$E$19+'BP Financier'!$C$22+'BP Financier'!$D$22+'BP Financier'!$E$22+'BP Financier'!$F$16+'BP Financier'!$F$19+'BP Financier'!$F$22))*$V6168*Y6168/(1-$W6168)","v":{"v":140456.63651553923,"d":"140,457"}},{"$f":"'BP Financier'!$F$44*(('BP Financier'!$C$16+'BP Financier'!$D$16+'BP Financier'!$E$16+'BP Financier'!$F$16)/('BP Financier'!$C$16+'BP Financier'!$C$19+'BP Financier'!$D$16+'BP Financier'!$D$19+'BP Financier'!$E$16+'BP Financier'!$E$19+'BP Financier'!$C$22+'BP Financier'!$D$22+'BP Financier'!$E$22+'BP Financier'!$F$16+'BP Financier'!$F$19+'BP Financier'!$F$22))*$V6168*Z6168/(1-$W6168)","v":{"v":1099276.32049765,"d":"1,099,276"}},{"$f":"'BP Financier'!$F$44*(('BP Financier'!$C$16+'BP Financier'!$D$16+'BP Financier'!$E$16+'BP Financier'!$F$16)/('BP Financier'!$C$16+'BP Financier'!$C$19+'BP Financier'!$D$16+'BP Financier'!$D$19+'BP Financier'!$E$16+'BP Financier'!$E$19+'BP Financier'!$C$22+'BP Financier'!$D$22+'BP Financier'!$E$22+'BP Financier'!$F$16+'BP Financier'!$F$19+'BP Financier'!$F$22))*$V6168*AA6168/(1-$W6168)","v":{"v":135813.4419199842,"d":"135,813"}},{"$f":"'BP Financier'!$F$44*(('BP Financier'!$C$16+'BP Financier'!$D$16+'BP Financier'!$E$16+'BP Financier'!$F$16)/('BP Financier'!$C$16+'BP Financier'!$C$19+'BP Financier'!$D$16+'BP Financier'!$D$19+'BP Financier'!$E$16+'BP Financier'!$E$19+'BP Financier'!$C$22+'BP Financier'!$D$22+'BP Financier'!$E$22+'BP Financier'!$F$16+'BP Financier'!$F$19+'BP Financier'!$F$22))*$V6168*AB6168/(1-$W6168)","v":{"v":65004.72433777021,"d":"65,005"}},null,{"v":0.0075,"d":"0.75%"},{"$f":"Actif!$E$28/100","v":{"v":0.28900000000000003,"d":"28.90%"}},{"$f":"Actif!$E$30/100","v":{"v":0.09050000000000001,"d":"9.05%"}},{"$f":"Actif!$E$31/100","v":{"v":0.0605,"d":"6.05%"}},{"$f":"Actif!$E$32/100","v":{"v":0.47350000000000003,"d":"47.35%"}},{"$f":"Actif!$E$33/100","v":{"v":0.0585,"d":"5.85%"}},{"$f":"Actif!$E$29/100","v":{"v":0.027999999999999997,"d":"2.80%"}}]
[null,"#62",33,2028,"H","A_VIE",{"v":0.44999999999999996,"d":"0.45"},{"v":0.38999999999999996,"d":"0.39"},0.6,0.6,85,0,{"$f":"ROUND(Primes!$P$4*V6169,0)","v":71},{"$f":"'BP Financier'!$F$33*(('BP Financier'!$C$16+'BP Financier'!$D$16+'BP Financier'!$E$16+'BP Financier'!$F$16)/('BP Financier'!$C$16+'BP Financier'!$C$19+'BP Financier'!$D$16+'BP Financier'!$D$19+'BP Financier'!$E$16+'BP Financier'!$E$19+'BP Financier'!$F$16+'BP Financier'!$F$19))*V6169","v":{"v":2909830.1866639922,"d":"2,909,830"}},{"v":1650655.678719808,"d":"1,650,656"},{"$f":"'BP Financier'!$F$44*(('BP Financier'!$C$16+'BP Financier'!$D$16+'BP Financier'!$E$16+'BP Financier'!$F$16)/('BP Financier'!$C$16+'BP Financier'!$C$19+'BP Financier'!$D$16+'BP Financier'!$D$19+'BP Financier'!$E$16+'BP Financier'!$E$19+'BP Financier'!$C$22+'BP Financier'!$D$22+'BP Financier'!$E$22+'BP Financier'!$F$16+'BP Financier'!$F$19+'BP Financier'!$F$22))*$V6169*X6169/(1-$W6169)","v":{"v":210104.55544886444,"d":"210,105"}},{"$f":"'BP Financier'!$F$44*(('BP Financier'!$C$16+'BP Financier'!$D$16+'BP Financier'!$E$16+'BP Financier'!$F$16)/('BP Financier'!$C$16+'BP Financier'!$C$19+'BP Financier'!$D$16+'BP Financier'!$D$19+'BP Financier'!$E$16+'BP Financier'!$E$19+'BP Financier'!$C$22+'BP Financier'!$D$22+'BP Financier'!$E$22+'BP Financier'!$F$16+'BP Financier'!$F$19+'BP Financier'!$F$22))*$V6169*Y6169/(1-$W6169)","v":{"v":140456.63651553923,"d":"140,457"}},{"$f":"'BP Financier'!$F$44*(('BP Financier'!$C$16+'BP Financier'!$D$16+'BP Financier'!$E$16+'BP Financier'!$F$16)/('BP Financier'!$C$16+'BP Financier'!$C$19+'BP Financier'!$D$16+'BP Financier'!$D$19+'BP Financier'!$E$16+'BP Financier'!$E$19+'BP Financier'!$C$22+'BP Financier'!$D$22+'BP Financier'!$E$22+'BP Financier'!$F$16+'BP Financier'!$F$19+'BP Financier'!$F$22))*$V6169*Z6169/(1-$W6169)","v":{"v":1099276.32049765,"d":"1,099,276"}},{"$f":"'BP Financier'!$F$44*(('BP Financier'!$C$16+'BP Financier'!$D$16+'BP Financier'!$E$16+'BP Financier'!$F$16)/('BP Financier'!$C$16+'BP Financier'!$C$19+'BP Financier'!$D$16+'BP Financier'!$D$19+'BP Financier'!$E$16+'BP Financier'!$E$19+'BP Financier'!$C$22+'BP Financier'!$D$22+'BP Financier'!$E$22+'BP Financier'!$F$16+'BP Financier'!$F$19+'BP Financier'!$F$22))*$V6169*AA6169/(1-$W6169)","v":{"v":135813.4419199842,"d":"135,813"}},{"$f":"'BP Financier'!$F$44*(('BP Financier'!$C$16+'BP Financier'!$D$16+'BP Financier'!$E$16+'BP Financier'!$F$16)/('BP Financier'!$C$16+'BP Financier'!$C$19+'BP Financier'!$D$16+'BP Financier'!$D$19+'BP Financier'!$E$16+'BP Financier'!$E$19+'BP Financier'!$C$22+'BP Financier'!$D$22+'BP Financier'!$E$22+'BP Financier'!$F$16+'BP Financier'!$F$19+'BP Financier'!$F$22))*$V6169*AB6169/(1-$W6169)","v":{"v":65004.72433777021,"d":"65,005"}},null,{"v":0.0075,"d":"0.75%"},{"$f":"Actif!$E$28/100","v":{"v":0.28900000000000003,"d":"28.90%"}},{"$f":"Actif!$E$30/100","v":{"v":0.09050000000000001,"d":"9.05%"}},{"$f":"Actif!$E$31/100","v":{"v":0.0605,"d":"6.05%"}},{"$f":"Actif!$E$32/100","v":{"v":0.47350000000000003,"d":"47.35%"}},{"$f":"Actif!$E$33/100","v":{"v":0.0585,"d":"5.85%"}},{"$f":"Actif!$E$29/100","v":{"v":0.027999999999999997,"d":"2.80%"}}]
[null,"#63",33,2029,"H","A_VIE",{"v":0.44999999999999996,"d":"0.45"},{"v":0.38999999999999996,"d":"0.39"},0.6,0.6,85,0,{"$f":"ROUND(Primes!$P$4*V6170,0)","v":71},{"$f":"'BP Financier'!$F$33*(('BP Financier'!$C$16+'BP Financier'!$D$16+'BP Financier'!$E$16+'BP Financier'!$F$16)/('BP Financier'!$C$16+'BP Financier'!$C$19+'BP Financier'!$D$16+'BP Financier'!$D$19+'BP Financier'!$E$16+'BP Financier'!$E$19+'BP Financier'!$F$16+'BP Financier'!$F$19))*V6170","v":{"v":2909830.1866639922,"d":"2,909,830"}},{"v":1650655.678719808,"d":"1,650,656"},{"$f":"'BP Financier'!$F$44*(('BP Financier'!$C$16+'BP Financier'!$D$16+'BP Financier'!$E$16+'BP Financier'!$F$16)/('BP Financier'!$C$16+'BP Financier'!$C$19+'BP Financier'!$D$16+'BP Financier'!$D$19+'BP Financier'!$E$16+'BP Financier'!$E$19+'BP Financier'!$C$22+'BP Financier'!$D$22+'BP Financier'!$E$22+'BP Financier'!$F$16+'BP Financier'!$F$19+'BP Financier'!$F$22))*$V6170*X6170/(1-$W6170)","v":{"v":210104.55544886444,"d":"210,105"}},{"$f":"'BP Financier'!$F$44*(('BP Financier'!$C$16+'BP Financier'!$D$16+'BP Financier'!$E$16+'BP Financier'!$F$16)/('BP Financier'!$C$16+'BP Financier'!$C$19+'BP Financier'!$D$16+'BP Financier'!$D$19+'BP Financier'!$E$16+'BP Financier'!$E$19+'BP Financier'!$C$22+'BP Financier'!$D$22+'BP Financier'!$E$22+'BP Financier'!$F$16+'BP Financier'!$F$19+'BP Financier'!$F$22))*$V6170*Y6170/(1-$W6170)","v":{"v":140456.63651553923,"d":"140,457"}},{"$f":"'BP Financier'!$F$44*(('BP Financier'!$C$16+'BP Financier'!$D$16+'BP Financier'!$E$16+'BP Financier'!$F$16)/('BP Financier'!$C$16+'BP Financier'!$C$19+'BP Financier'!$D$16+'BP Financier'!$D$19+'BP Financier'!$E$16+'BP Financier'!$E$19+'BP Financier'!$C$22+'BP Financier'!$D$22+'BP Financier'!$E$22+'BP Financier'!$F$16+'BP Financier'!$F$19+'BP Financier'!$F$22))*$V6170*Z6170/(1-$W6170)","v":{"v":1099276.32049765,"d":"1,099,276"}},{"$f":"'BP Financier'!$F$44*(('BP Financier'!$C$16+'BP Financier'!$D$16+'BP Financier'!$E$16+'BP Financier'!$F$16)/('BP Financier'!$C$16+'BP Financier'!$C$19+'BP Financier'!$D$16+'BP Financier'!$D$19+'BP Financier'!$E$16+'BP Financier'!$E$19+'BP Financier'!$C$22+'BP Financier'!$D$22+'BP Financier'!$E$22+'BP Financier'!$F$16+'BP Financier'!$F$19+'BP Financier'!$F$22))*$V6170*AA6170/(1-$W6170)","v":{"v":135813.4419199842,"d":"135,813"}},{"$f":"'BP Financier'!$F$44*(('BP Financier'!$C$16+'BP Financier'!$D$16+'BP Financier'!$E$16+'BP Financier'!$F$16)/('BP Financier'!$C$16+'BP Financier'!$C$19+'BP Financier'!$D$16+'BP Financier'!$D$19+'BP Financier'!$E$16+'BP Financier'!$E$19+'BP Financier'!$C$22+'BP Financier'!$D$22+'BP Financier'!$E$22+'BP Financier'!$F$16+'BP Financier'!$F$19+'BP Financier'!$F$22))*$V6170*AB6170/(1-$W6170)","v":{"v":65004.72433777021,"d":"65,005"}},null,{"v":0.0075,"d":"0.75%"},{"$f":"Actif!$E$28/100","v":{"v":0.28900000000000003,"d":"28.90%"}},{"$f":"Actif!$E$30/100","v":{"v":0.09050000000000001,"d":"9.05%"}},{"$f":"Actif!$E$31/100","v":{"v":0.0605,"d":"6.05%"}},{"$f":"Actif!$E$32/100","v":{"v":0.47350000000000003,"d":"47.35%"}},{"$f":"Actif!$E$33/100","v":{"v":0.0585,"d":"5.85%"}},{"$f":"Actif!$E$29/100","v":{"v":0.027999999999999997,"d":"2.80%"}}]
[null,"#64",33,2030,"H","A_VIE",{"v":0.44999999999999996,"d":"0.45"},{"v":0.38999999999999996,"d":"0.39"},0.6,0.6,85,0,{"$f":"ROUND(Primes!$P$4*V6171,0)","v":71},{"$f":"'BP Financier'!$F$33*(('BP Financier'!$C$16+'BP Financier'!$D$16+'BP Financier'!$E$16+'BP Financier'!$F$16)/('BP Financier'!$C$16+'BP Financier'!$C$19+'BP Financier'!$D$16+'BP Financier'!$D$19+'BP Financier'!$E$16+'BP Financier'!$E$19+'BP Financier'!$F$16+'BP Financier'!$F$19))*V6171","v":{"v":2909830.1866639922,"d":"2,909,830"}},{"v":1650655.678719808,"d":"1,650,656"},{"$f":"'BP Financier'!$F$44*(('BP Financier'!$C$16+'BP Financier'!$D$16+'BP Financier'!$E$16+'BP Financier'!$F$16)/('BP Financier'!$C$16+'BP Financier'!$C$19+'BP Financier'!$D$16+'BP Financier'!$D$19+'BP Financier'!$E$16+'BP Financier'!$E$19+'BP Financier'!$C$22+'BP Financier'!$D$22+'BP Financier'!$E$22+'BP Financier'!$F$16+'BP Financier'!$F$19+'BP Financier'!$F$22))*$V6171*X6171/(1-$W6171)","v":{"v":210104.55544886444,"d":"210,105"}},{"$f":"'BP Financier'!$F$44*(('BP Financier'!$C$16+'BP Financier'!$D$16+'BP Financier'!$E$16+'BP Financier'!$F$16)/('BP Financier'!$C$16+'BP Financier'!$C$19+'BP Financier'!$D$16+'BP Financier'!$D$19+'BP Financier'!$E$16+'BP Financier'!$E$19+'BP Financier'!$C$22+'BP Financier'!$D$22+'BP Financier'!$E$22+'BP Financier'!$F$16+'BP Financier'!$F$19+'BP Financier'!$F$22))*$V6171*Y6171/(1-$W6171)","v":{"v":140456.63651553923,"d":"140,457"}},{"$f":"'BP Financier'!$F$44*(('BP Financier'!$C$16+'BP Financier'!$D$16+'BP Financier'!$E$16+'BP Financier'!$F$16)/('BP Financier'!$C$16+'BP Financier'!$C$19+'BP Financier'!$D$16+'BP Financier'!$D$19+'BP Financier'!$E$16+'BP Financier'!$E$19+'BP Financier'!$C$22+'BP Financier'!$D$22+'BP Financier'!$E$22+'BP Financier'!$F$16+'BP Financier'!$F$19+'BP Financier'!$F$22))*$V6171*Z6171/(1-$W6171)","v":{"v":1099276.32049765,"d":"1,099,276"}},{"$f":"'BP Financier'!$F$44*(('BP Financier'!$C$16+'BP Financier'!$D$16+'BP Financier'!$E$16+'BP Financier'!$F$16)/('BP Financier'!$C$16+'BP Financier'!$C$19+'BP Financier'!$D$16+'BP Financier'!$D$19+'BP Financier'!$E$16+'BP Financier'!$E$19+'BP Financier'!$C$22+'BP Financier'!$D$22+'BP Financier'!$E$22+'BP Financier'!$F$16+'BP Financier'!$F$19+'BP Financier'!$F$22))*$V6171*AA6171/(1-$W6171)","v":{"v":135813.4419199842,"d":"135,813"}},{"$f":"'BP Financier'!$F$44*(('BP Financier'!$C$16+'BP Financier'!$D$16+'BP Financier'!$E$16+'BP Financier'!$F$16)/('BP Financier'!$C$16+'BP Financier'!$C$19+'BP Financier'!$D$16+'BP Financier'!$D$19+'BP Financier'!$E$16+'BP Financier'!$E$19+'BP Financier'!$C$22+'BP Financier'!$D$22+'BP Financier'!$E$22+'BP Financier'!$F$16+'BP Financier'!$F$19+'BP Financier'!$F$22))*$V6171*AB6171/(1-$W6171)","v":{"v":65004.72433777021,"d":"65,005"}},null,{"v":0.0075,"d":"0.75%"},{"$f":"Actif!$E$28/100","v":{"v":0.28900000000000003,"d":"28.90%"}},{"$f":"Actif!$E$30/100","v":{"v":0.09050000000000001,"d":"9.05%"}},{"$f":"Actif!$E$31/100","v":{"v":0.0605,"d":"6.05%"}},{"$f":"Actif!$E$32/100","v":{"v":0.47350000000000003,"d":"47.35%"}},{"$f":"Actif!$E$33/100","v":{"v":0.0585,"d":"5.85%"}},{"$f":"Actif!$E$29/100","v":{"v":0.027999999999999997,"d":"2.80%"}}]
[null,"#65",34,2026,"H","A_VIE",{"v":0.44999999999999996,"d":"0.45"},{"v":0.38999999999999996,"d":"0.39"},0.6,0.6,85,0,{"$f":"ROUND(Primes!$P$4*V6172,0)","v":71},{"$f":"'BP Financier'!$F$33*(('BP Financier'!$C$16+'BP Financier'!$D$16+'BP Financier'!$E$16+'BP Financier'!$F$16)/('BP Financier'!$C$16+'BP Financier'!$C$19+'BP Financier'!$D$16+'BP Financier'!$D$19+'BP Financier'!$E$16+'BP Financier'!$E$19+'BP Financier'!$F$16+'BP Financier'!$F$19))*V6172","v":{"v":2909830.1866639922,"d":"2,909,830"}},{"v":1650655.678719808,"d":"1,650,656"},{"$f":"'BP Financier'!$F$44*(('BP Financier'!$C$16+'BP Financier'!$D$16+'BP Financier'!$E$16+'BP Financier'!$F$16)/('BP Financier'!$C$16+'BP Financier'!$C$19+'BP Financier'!$D$16+'BP Financier'!$D$19+'BP Financier'!$E$16+'BP Financier'!$E$19+'BP Financier'!$C$22+'BP Financier'!$D$22+'BP Financier'!$E$22+'BP Financier'!$F$16+'BP Financier'!$F$19+'BP Financier'!$F$22))*$V6172*X6172/(1-$W6172)","v":{"v":210104.55544886444,"d":"210,105"}},{"$f":"'BP Financier'!$F$44*(('BP Financier'!$C$16+'BP Financier'!$D$16+'BP Financier'!$E$16+'BP Financier'!$F$16)/('BP Financier'!$C$16+'BP Financier'!$C$19+'BP Financier'!$D$16+'BP Financier'!$D$19+'BP Financier'!$E$16+'BP Financier'!$E$19+'BP Financier'!$C$22+'BP Financier'!$D$22+'BP Financier'!$E$22+'BP Financier'!$F$16+'BP Financier'!$F$19+'BP Financier'!$F$22))*$V6172*Y6172/(1-$W6172)","v":{"v":140456.63651553923,"d":"140,457"}},{"$f":"'BP Financier'!$F$44*(('BP Financier'!$C$16+'BP Financier'!$D$16+'BP Financier'!$E$16+'BP Financier'!$F$16)/('BP Financier'!$C$16+'BP Financier'!$C$19+'BP Financier'!$D$16+'BP Financier'!$D$19+'BP Financier'!$E$16+'BP Financier'!$E$19+'BP Financier'!$C$22+'BP Financier'!$D$22+'BP Financier'!$E$22+'BP Financier'!$F$16+'BP Financier'!$F$19+'BP Financier'!$F$22))*$V6172*Z6172/(1-$W6172)","v":{"v":1099276.32049765,"d":"1,099,276"}},{"$f":"'BP Financier'!$F$44*(('BP Financier'!$C$16+'BP Financier'!$D$16+'BP Financier'!$E$16+'BP Financier'!$F$16)/('BP Financier'!$C$16+'BP Financier'!$C$19+'BP Financier'!$D$16+'BP Financier'!$D$19+'BP Financier'!$E$16+'BP Financier'!$E$19+'BP Financier'!$C$22+'BP Financier'!$D$22+'BP Financier'!$E$22+'BP Financier'!$F$16+'BP Financier'!$F$19+'BP Financier'!$F$22))*$V6172*AA6172/(1-$W6172)","v":{"v":135813.4419199842,"d":"135,813"}},{"$f":"'BP Financier'!$F$44*(('BP Financier'!$C$16+'BP Financier'!$D$16+'BP Financier'!$E$16+'BP Financier'!$F$16)/('BP Financier'!$C$16+'BP Financier'!$C$19+'BP Financier'!$D$16+'BP Financier'!$D$19+'BP Financier'!$E$16+'BP Financier'!$E$19+'BP Financier'!$C$22+'BP Financier'!$D$22+'BP Financier'!$E$22+'BP Financier'!$F$16+'BP Financier'!$F$19+'BP Financier'!$F$22))*$V6172*AB6172/(1-$W6172)","v":{"v":65004.72433777021,"d":"65,005"}},null,{"v":0.0075,"d":"0.75%"},{"$f":"Actif!$E$28/100","v":{"v":0.28900000000000003,"d":"28.90%"}},{"$f":"Actif!$E$30/100","v":{"v":0.09050000000000001,"d":"9.05%"}},{"$f":"Actif!$E$31/100","v":{"v":0.0605,"d":"6.05%"}},{"$f":"Actif!$E$32/100","v":{"v":0.47350000000000003,"d":"47.35%"}},{"$f":"Actif!$E$33/100","v":{"v":0.0585,"d":"5.85%"}},{"$f":"Actif!$E$29/100","v":{"v":0.027999999999999997,"d":"2.80%"}}]
[null,"#66",34,2028,"H","A_VIE",{"v":0.44999999999999996,"d":"0.45"},{"v":0.38999999999999996,"d":"0.39"},0.6,0.6,85,0,{"$f":"ROUND(Primes!$P$4*V6173,0)","v":71},{"$f":"'BP Financier'!$F$33*(('BP Financier'!$C$16+'BP Financier'!$D$16+'BP Financier'!$E$16+'BP Financier'!$F$16)/('BP Financier'!$C$16+'BP Financier'!$C$19+'BP Financier'!$D$16+'BP Financier'!$D$19+'BP Financier'!$E$16+'BP Financier'!$E$19+'BP Financier'!$F$16+'BP Financier'!$F$19))*V6173","v":{"v":2909830.1866639922,"d":"2,909,830"}},{"v":1650655.678719808,"d":"1,650,656"},{"$f":"'BP Financier'!$F$44*(('BP Financier'!$C$16+'BP Financier'!$D$16+'BP Financier'!$E$16+'BP Financier'!$F$16)/('BP Financier'!$C$16+'BP Financier'!$C$19+'BP Financier'!$D$16+'BP Financier'!$D$19+'BP Financier'!$E$16+'BP Financier'!$E$19+'BP Financier'!$C$22+'BP Financier'!$D$22+'BP Financier'!$E$22+'BP Financier'!$F$16+'BP Financier'!$F$19+'BP Financier'!$F$22))*$V6173*X6173/(1-$W6173)","v":{"v":210104.55544886444,"d":"210,105"}},{"$f":"'BP Financier'!$F$44*(('BP Financier'!$C$16+'BP Financier'!$D$16+'BP Financier'!$E$16+'BP Financier'!$F$16)/('BP Financier'!$C$16+'BP Financier'!$C$19+'BP Financier'!$D$16+'BP Financier'!$D$19+'BP Financier'!$E$16+'BP Financier'!$E$19+'BP Financier'!$C$22+'BP Financier'!$D$22+'BP Financier'!$E$22+'BP Financier'!$F$16+'BP Financier'!$F$19+'BP Financier'!$F$22))*$V6173*Y6173/(1-$W6173)","v":{"v":140456.63651553923,"d":"140,457"}},{"$f":"'BP Financier'!$F$44*(('BP Financier'!$C$16+'BP Financier'!$D$16+'BP Financier'!$E$16+'BP Financier'!$F$16)/('BP Financier'!$C$16+'BP Financier'!$C$19+'BP Financier'!$D$16+'BP Financier'!$D$19+'BP Financier'!$E$16+'BP Financier'!$E$19+'BP Financier'!$C$22+'BP Financier'!$D$22+'BP Financier'!$E$22+'BP Financier'!$F$16+'BP Financier'!$F$19+'BP Financier'!$F$22))*$V6173*Z6173/(1-$W6173)","v":{"v":1099276.32049765,"d":"1,099,276"}},{"$f":"'BP Financier'!$F$44*(('BP Financier'!$C$16+'BP Financier'!$D$16+'BP Financier'!$E$16+'BP Financier'!$F$16)/('BP Financier'!$C$16+'BP Financier'!$C$19+'BP Financier'!$D$16+'BP Financier'!$D$19+'BP Financier'!$E$16+'BP Financier'!$E$19+'BP Financier'!$C$22+'BP Financier'!$D$22+'BP Financier'!$E$22+'BP Financier'!$F$16+'BP Financier'!$F$19+'BP Financier'!$F$22))*$V6173*AA6173/(1-$W6173)","v":{"v":135813.4419199842,"d":"135,813"}},{"$f":"'BP Financier'!$F$44*(('BP Financier'!$C$16+'BP Financier'!$D$16+'BP Financier'!$E$16+'BP Financier'!$F$16)/('BP Financier'!$C$16+'BP Financier'!$C$19+'BP Financier'!$D$16+'BP Financier'!$D$19+'BP Financier'!$E$16+'BP Financier'!$E$19+'BP Financier'!$C$22+'BP Financier'!$D$22+'BP Financier'!$E$22+'BP Financier'!$F$16+'BP Financier'!$F$19+'BP Financier'!$F$22))*$V6173*AB6173/(1-$W6173)","v":{"v":65004.72433777021,"d":"65,005"}},null,{"v":0.0075,"d":"0.75%"},{"$f":"Actif!$E$28/100","v":{"v":0.28900000000000003,"d":"28.90%"}},{"$f":"Actif!$E$30/100","v":{"v":0.09050000000000001,"d":"9.05%"}},{"$f":"Actif!$E$31/100","v":{"v":0.0605,"d":"6.05%"}},{"$f":"Actif!$E$32/100","v":{"v":0.47350000000000003,"d":"47.35%"}},{"$f":"Actif!$E$33/100","v":{"v":0.0585,"d":"5.85%"}},{"$f":"Actif!$E$29/100","v":{"v":0.027999999999999997,"d":"2.80%"}}]
[null,"#67",34,2029,"H","A_VIE",{"v":0.44999999999999996,"d":"0.45"},{"v":0.38999999999999996,"d":"0.39"},0.6,0.6,85,0,{"$f":"ROUND(Primes!$P$4*V6174,0)","v":71},{"$f":"'BP Financier'!$F$33*(('BP Financier'!$C$16+'BP Financier'!$D$16+'BP Financier'!$E$16+'BP Financier'!$F$16)/('BP Financier'!$C$16+'BP Financier'!$C$19+'BP Financier'!$D$16+'BP Financier'!$D$19+'BP Financier'!$E$16+'BP Financier'!$E$19+'BP Financier'!$F$16+'BP Financier'!$F$19))*V6174","v":{"v":2909830.1866639922,"d":"2,909,830"}},{"v":1650655.678719808,"d":"1,650,656"},{"$f":"'BP Financier'!$F$44*(('BP Financier'!$C$16+'BP Financier'!$D$16+'BP Financier'!$E$16+'BP Financier'!$F$16)/('BP Financier'!$C$16+'BP Financier'!$C$19+'BP Financier'!$D$16+'BP Financier'!$D$19+'BP Financier'!$E$16+'BP Financier'!$E$19+'BP Financier'!$C$22+'BP Financier'!$D$22+'BP Financier'!$E$22+'BP Financier'!$F$16+'BP Financier'!$F$19+'BP Financier'!$F$22))*$V6174*X6174/(1-$W6174)","v":{"v":210104.55544886444,"d":"210,105"}},{"$f":"'BP Financier'!$F$44*(('BP Financier'!$C$16+'BP Financier'!$D$16+'BP Financier'!$E$16+'BP Financier'!$F$16)/('BP Financier'!$C$16+'BP Financier'!$C$19+'BP Financier'!$D$16+'BP Financier'!$D$19+'BP Financier'!$E$16+'BP Financier'!$E$19+'BP Financier'!$C$22+'BP Financier'!$D$22+'BP Financier'!$E$22+'BP Financier'!$F$16+'BP Financier'!$F$19+'BP Financier'!$F$22))*$V6174*Y6174/(1-$W6174)","v":{"v":140456.63651553923,"d":"140,457"}},{"$f":"'BP Financier'!$F$44*(('BP Financier'!$C$16+'BP Financier'!$D$16+'BP Financier'!$E$16+'BP Financier'!$F$16)/('BP Financier'!$C$16+'BP Financier'!$C$19+'BP Financier'!$D$16+'BP Financier'!$D$19+'BP Financier'!$E$16+'BP Financier'!$E$19+'BP Financier'!$C$22+'BP Financier'!$D$22+'BP Financier'!$E$22+'BP Financier'!$F$16+'BP Financier'!$F$19+'BP Financier'!$F$22))*$V6174*Z6174/(1-$W6174)","v":{"v":1099276.32049765,"d":"1,099,276"}},{"$f":"'BP Financier'!$F$44*(('BP Financier'!$C$16+'BP Financier'!$D$16+'BP Financier'!$E$16+'BP Financier'!$F$16)/('BP Financier'!$C$16+'BP Financier'!$C$19+'BP Financier'!$D$16+'BP Financier'!$D$19+'BP Financier'!$E$16+'BP Financier'!$E$19+'BP Financier'!$C$22+'BP Financier'!$D$22+'BP Financier'!$E$22+'BP Financier'!$F$16+'BP Financier'!$F$19+'BP Financier'!$F$22))*$V6174*AA6174/(1-$W6174)","v":{"v":135813.4419199842,"d":"135,813"}},{"$f":"'BP Financier'!$F$44*(('BP Financier'!$C$16+'BP Financier'!$D$16+'BP Financier'!$E$16+'BP Financier'!$F$16)/('BP Financier'!$C$16+'BP Financier'!$C$19+'BP Financier'!$D$16+'BP Financier'!$D$19+'BP Financier'!$E$16+'BP Financier'!$E$19+'BP Financier'!$C$22+'BP Financier'!$D$22+'BP Financier'!$E$22+'BP Financier'!$F$16+'BP Financier'!$F$19+'BP Financier'!$F$22))*$V6174*AB6174/(1-$W6174)","v":{"v":65004.72433777021,"d":"65,005"}},null,{"v":0.0075,"d":"0.75%"},{"$f":"Actif!$E$28/100","v":{"v":0.28900000000000003,"d":"28.90%"}},{"$f":"Actif!$E$30/100","v":{"v":0.09050000000000001,"d":"9.05%"}},{"$f":"Actif!$E$31/100","v":{"v":0.0605,"d":"6.05%"}},{"$f":"Actif!$E$32/100","v":{"v":0.47350000000000003,"d":"47.35%"}},{"$f":"Actif!$E$33/100","v":{"v":0.0585,"d":"5.85%"}},{"$f":"Actif!$E$29/100","v":{"v":0.027999999999999997,"d":"2.80%"}}]
[null,"#68",34,2030,"H","A_VIE",{"v":0.44999999999999996,"d":"0.45"},{"v":0.38999999999999996,"d":"0.39"},0.6,0.6,85,0,{"$f":"ROUND(Primes!$P$4*V6175,0)","v":71},{"$f":"'BP Financier'!$F$33*(('BP Financier'!$C$16+'BP Financier'!$D$16+'BP Financier'!$E$16+'BP Financier'!$F$16)/('BP Financier'!$C$16+'BP Financier'!$C$19+'BP Financier'!$D$16+'BP Financier'!$D$19+'BP Financier'!$E$16+'BP Financier'!$E$19+'BP Financier'!$F$16+'BP Financier'!$F$19))*V6175","v":{"v":2909830.1866639922,"d":"2,909,830"}},{"v":1650655.678719808,"d":"1,650,656"},{"$f":"'BP Financier'!$F$44*(('BP Financier'!$C$16+'BP Financier'!$D$16+'BP Financier'!$E$16+'BP Financier'!$F$16)/('BP Financier'!$C$16+'BP Financier'!$C$19+'BP Financier'!$D$16+'BP Financier'!$D$19+'BP Financier'!$E$16+'BP Financier'!$E$19+'BP Financier'!$C$22+'BP Financier'!$D$22+'BP Financier'!$E$22+'BP Financier'!$F$16+'BP Financier'!$F$19+'BP Financier'!$F$22))*$V6175*X6175/(1-$W6175)","v":{"v":210104.55544886444,"d":"210,105"}},{"$f":"'BP Financier'!$F$44*(('BP Financier'!$C$16+'BP Financier'!$D$16+'BP Financier'!$E$16+'BP Financier'!$F$16)/('BP Financier'!$C$16+'BP Financier'!$C$19+'BP Financier'!$D$16+'BP Financier'!$D$19+'BP Financier'!$E$16+'BP Financier'!$E$19+'BP Financier'!$C$22+'BP Financier'!$D$22+'BP Financier'!$E$22+'BP Financier'!$F$16+'BP Financier'!$F$19+'BP Financier'!$F$22))*$V6175*Y6175/(1-$W6175)","v":{"v":140456.63651553923,"d":"140,457"}},{"$f":"'BP Financier'!$F$44*(('BP Financier'!$C$16+'BP Financier'!$D$16+'BP Financier'!$E$16+'BP Financier'!$F$16)/('BP Financier'!$C$16+'BP Financier'!$C$19+'BP Financier'!$D$16+'BP Financier'!$D$19+'BP Financier'!$E$16+'BP Financier'!$E$19+'BP Financier'!$C$22+'BP Financier'!$D$22+'BP Financier'!$E$22+'BP Financier'!$F$16+'BP Financier'!$F$19+'BP Financier'!$F$22))*$V6175*Z6175/(1-$W6175)","v":{"v":1099276.32049765,"d":"1,099,276"}},{"$f":"'BP Financier'!$F$44*(('BP Financier'!$C$16+'BP Financier'!$D$16+'BP Financier'!$E$16+'BP Financier'!$F$16)/('BP Financier'!$C$16+'BP Financier'!$C$19+'BP Financier'!$D$16+'BP Financier'!$D$19+'BP Financier'!$E$16+'BP Financier'!$E$19+'BP Financier'!$C$22+'BP Financier'!$D$22+'BP Financier'!$E$22+'BP Financier'!$F$16+'BP Financier'!$F$19+'BP Financier'!$F$22))*$V6175*AA6175/(1-$W6175)","v":{"v":135813.4419199842,"d":"135,813"}},{"$f":"'BP Financier'!$F$44*(('BP Financier'!$C$16+'BP Financier'!$D$16+'BP Financier'!$E$16+'BP Financier'!$F$16)/('BP Financier'!$C$16+'BP Financier'!$C$19+'BP Financier'!$D$16+'BP Financier'!$D$19+'BP Financier'!$E$16+'BP Financier'!$E$19+'BP Financier'!$C$22+'BP Financier'!$D$22+'BP Financier'!$E$22+'BP Financier'!$F$16+'BP Financier'!$F$19+'BP Financier'!$F$22))*$V6175*AB6175/(1-$W6175)","v":{"v":65004.72433777021,"d":"65,005"}},null,{"v":0.0075,"d":"0.75%"},{"$f":"Actif!$E$28/100","v":{"v":0.28900000000000003,"d":"28.90%"}},{"$f":"Actif!$E$30/100","v":{"v":0.09050000000000001,"d":"9.05%"}},{"$f":"Actif!$E$31/100","v":{"v":0.0605,"d":"6.05%"}},{"$f":"Actif!$E$32/100","v":{"v":0.47350000000000003,"d":"47.35%"}},{"$f":"Actif!$E$33/100","v":{"v":0.0585,"d":"5.85%"}},{"$f":"Actif!$E$29/100","v":{"v":0.027999999999999997,"d":"2.80%"}}]
[null,"#69",35,2026,"F","A_VIE",{"v":0.44999999999999996,"d":"0.45"},{"v":0.38999999999999996,"d":"0.39"},0.6,0.6,85,0,{"$f":"ROUND(Primes!$P$4*V6176,0)","v":71},{"$f":"'BP Financier'!$F$33*(('BP Financier'!$C$16+'BP Financier'!$D$16+'BP Financier'!$E$16+'BP Financier'!$F$16)/('BP Financier'!$C$16+'BP Financier'!$C$19+'BP Financier'!$D$16+'BP Financier'!$D$19+'BP Financier'!$E$16+'BP Financier'!$E$19+'BP Financier'!$F$16+'BP Financier'!$F$19))*V6176","v":{"v":2909830.1866639922,"d":"2,909,830"}},{"v":1650655.678719808,"d":"1,650,656"},{"$f":"'BP Financier'!$F$44*(('BP Financier'!$C$16+'BP Financier'!$D$16+'BP Financier'!$E$16+'BP Financier'!$F$16)/('BP Financier'!$C$16+'BP Financier'!$C$19+'BP Financier'!$D$16+'BP Financier'!$D$19+'BP Financier'!$E$16+'BP Financier'!$E$19+'BP Financier'!$C$22+'BP Financier'!$D$22+'BP Financier'!$E$22+'BP Financier'!$F$16+'BP Financier'!$F$19+'BP Financier'!$F$22))*$V6176*X6176/(1-$W6176)","v":{"v":210104.55544886444,"d":"210,105"}},{"$f":"'BP Financier'!$F$44*(('BP Financier'!$C$16+'BP Financier'!$D$16+'BP Financier'!$E$16+'BP Financier'!$F$16)/('BP Financier'!$C$16+'BP Financier'!$C$19+'BP Financier'!$D$16+'BP Financier'!$D$19+'BP Financier'!$E$16+'BP Financier'!$E$19+'BP Financier'!$C$22+'BP Financier'!$D$22+'BP Financier'!$E$22+'BP Financier'!$F$16+'BP Financier'!$F$19+'BP Financier'!$F$22))*$V6176*Y6176/(1-$W6176)","v":{"v":140456.63651553923,"d":"140,457"}},{"$f":"'BP Financier'!$F$44*(('BP Financier'!$C$16+'BP Financier'!$D$16+'BP Financier'!$E$16+'BP Financier'!$F$16)/('BP Financier'!$C$16+'BP Financier'!$C$19+'BP Financier'!$D$16+'BP Financier'!$D$19+'BP Financier'!$E$16+'BP Financier'!$E$19+'BP Financier'!$C$22+'BP Financier'!$D$22+'BP Financier'!$E$22+'BP Financier'!$F$16+'BP Financier'!$F$19+'BP Financier'!$F$22))*$V6176*Z6176/(1-$W6176)","v":{"v":1099276.32049765,"d":"1,099,276"}},{"$f":"'BP Financier'!$F$44*(('BP Financier'!$C$16+'BP Financier'!$D$16+'BP Financier'!$E$16+'BP Financier'!$F$16)/('BP Financier'!$C$16+'BP Financier'!$C$19+'BP Financier'!$D$16+'BP Financier'!$D$19+'BP Financier'!$E$16+'BP Financier'!$E$19+'BP Financier'!$C$22+'BP Financier'!$D$22+'BP Financier'!$E$22+'BP Financier'!$F$16+'BP Financier'!$F$19+'BP Financier'!$F$22))*$V6176*AA6176/(1-$W6176)","v":{"v":135813.4419199842,"d":"135,813"}},{"$f":"'BP Financier'!$F$44*(('BP Financier'!$C$16+'BP Financier'!$D$16+'BP Financier'!$E$16+'BP Financier'!$F$16)/('BP Financier'!$C$16+'BP Financier'!$C$19+'BP Financier'!$D$16+'BP Financier'!$D$19+'BP Financier'!$E$16+'BP Financier'!$E$19+'BP Financier'!$C$22+'BP Financier'!$D$22+'BP Financier'!$E$22+'BP Financier'!$F$16+'BP Financier'!$F$19+'BP Financier'!$F$22))*$V6176*AB6176/(1-$W6176)","v":{"v":65004.72433777021,"d":"65,005"}},null,{"v":0.0075,"d":"0.75%"},{"$f":"Actif!$E$28/100","v":{"v":0.28900000000000003,"d":"28.90%"}},{"$f":"Actif!$E$30/100","v":{"v":0.09050000000000001,"d":"9.05%"}},{"$f":"Actif!$E$31/100","v":{"v":0.0605,"d":"6.05%"}},{"$f":"Actif!$E$32/100","v":{"v":0.47350000000000003,"d":"47.35%"}},{"$f":"Actif!$E$33/100","v":{"v":0.0585,"d":"5.85%"}},{"$f":"Actif!$E$29/100","v":{"v":0.027999999999999997,"d":"2.80%"}}]
[null,"#70",35,2028,"F","A_VIE",{"v":0.44999999999999996,"d":"0.45"},{"v":0.38999999999999996,"d":"0.39"},0.6,0.6,85,0,{"$f":"ROUND(Primes!$P$4*V6177,0)","v":71},{"$f":"'BP Financier'!$F$33*(('BP Financier'!$C$16+'BP Financier'!$D$16+'BP Financier'!$E$16+'BP Financier'!$F$16)/('BP Financier'!$C$16+'BP Financier'!$C$19+'BP Financier'!$D$16+'BP Financier'!$D$19+'BP Financier'!$E$16+'BP Financier'!$E$19+'BP Financier'!$F$16+'BP Financier'!$F$19))*V6177","v":{"v":2909830.1866639922,"d":"2,909,830"}},{"v":1650655.678719808,"d":"1,650,656"},{"$f":"'BP Financier'!$F$44*(('BP Financier'!$C$16+'BP Financier'!$D$16+'BP Financier'!$E$16+'BP Financier'!$F$16)/('BP Financier'!$C$16+'BP Financier'!$C$19+'BP Financier'!$D$16+'BP Financier'!$D$19+'BP Financier'!$E$16+'BP Financier'!$E$19+'BP Financier'!$C$22+'BP Financier'!$D$22+'BP Financier'!$E$22+'BP Financier'!$F$16+'BP Financier'!$F$19+'BP Financier'!$F$22))*$V6177*X6177/(1-$W6177)","v":{"v":210104.55544886444,"d":"210,105"}},{"$f":"'BP Financier'!$F$44*(('BP Financier'!$C$16+'BP Financier'!$D$16+'BP Financier'!$E$16+'BP Financier'!$F$16)/('BP Financier'!$C$16+'BP Financier'!$C$19+'BP Financier'!$D$16+'BP Financier'!$D$19+'BP Financier'!$E$16+'BP Financier'!$E$19+'BP Financier'!$C$22+'BP Financier'!$D$22+'BP Financier'!$E$22+'BP Financier'!$F$16+'BP Financier'!$F$19+'BP Financier'!$F$22))*$V6177*Y6177/(1-$W6177)","v":{"v":140456.63651553923,"d":"140,457"}},{"$f":"'BP Financier'!$F$44*(('BP Financier'!$C$16+'BP Financier'!$D$16+'BP Financier'!$E$16+'BP Financier'!$F$16)/('BP Financier'!$C$16+'BP Financier'!$C$19+'BP Financier'!$D$16+'BP Financier'!$D$19+'BP Financier'!$E$16+'BP Financier'!$E$19+'BP Financier'!$C$22+'BP Financier'!$D$22+'BP Financier'!$E$22+'BP Financier'!$F$16+'BP Financier'!$F$19+'BP Financier'!$F$22))*$V6177*Z6177/(1-$W6177)","v":{"v":1099276.32049765,"d":"1,099,276"}},{"$f":"'BP Financier'!$F$44*(('BP Financier'!$C$16+'BP Financier'!$D$16+'BP Financier'!$E$16+'BP Financier'!$F$16)/('BP Financier'!$C$16+'BP Financier'!$C$19+'BP Financier'!$D$16+'BP Financier'!$D$19+'BP Financier'!$E$16+'BP Financier'!$E$19+'BP Financier'!$C$22+'BP Financier'!$D$22+'BP Financier'!$E$22+'BP Financier'!$F$16+'BP Financier'!$F$19+'BP Financier'!$F$22))*$V6177*AA6177/(1-$W6177)","v":{"v":135813.4419199842,"d":"135,813"}},{"$f":"'BP Financier'!$F$44*(('BP Financier'!$C$16+'BP Financier'!$D$16+'BP Financier'!$E$16+'BP Financier'!$F$16)/('BP Financier'!$C$16+'BP Financier'!$C$19+'BP Financier'!$D$16+'BP Financier'!$D$19+'BP Financier'!$E$16+'BP Financier'!$E$19+'BP Financier'!$C$22+'BP Financier'!$D$22+'BP Financier'!$E$22+'BP Financier'!$F$16+'BP Financier'!$F$19+'BP Financier'!$F$22))*$V6177*AB6177/(1-$W6177)","v":{"v":65004.72433777021,"d":"65,005"}},null,{"v":0.0075,"d":"0.75%"},{"$f":"Actif!$E$28/100","v":{"v":0.28900000000000003,"d":"28.90%"}},{"$f":"Actif!$E$30/100","v":{"v":0.09050000000000001,"d":"9.05%"}},{"$f":"Actif!$E$31/100","v":{"v":0.0605,"d":"6.05%"}},{"$f":"Actif!$E$32/100","v":{"v":0.47350000000000003,"d":"47.35%"}},{"$f":"Actif!$E$33/100","v":{"v":0.0585,"d":"5.85%"}},{"$f":"Actif!$E$29/100","v":{"v":0.027999999999999997,"d":"2.80%"}}]
[null,"#71",35,2029,"F","A_VIE",{"v":0.44999999999999996,"d":"0.45"},{"v":0.38999999999999996,"d":"0.39"},0.6,0.6,85,0,{"$f":"ROUND(Primes!$P$4*V6178,0)","v":71},{"$f":"'BP Financier'!$F$33*(('BP Financier'!$C$16+'BP Financier'!$D$16+'BP Financier'!$E$16+'BP Financier'!$F$16)/('BP Financier'!$C$16+'BP Financier'!$C$19+'BP Financier'!$D$16+'BP Financier'!$D$19+'BP Financier'!$E$16+'BP Financier'!$E$19+'BP Financier'!$F$16+'BP Financier'!$F$19))*V6178","v":{"v":2909830.1866639922,"d":"2,909,830"}},{"v":1650655.678719808,"d":"1,650,656"},{"$f":"'BP Financier'!$F$44*(('BP Financier'!$C$16+'BP Financier'!$D$16+'BP Financier'!$E$16+'BP Financier'!$F$16)/('BP Financier'!$C$16+'BP Financier'!$C$19+'BP Financier'!$D$16+'BP Financier'!$D$19+'BP Financier'!$E$16+'BP Financier'!$E$19+'BP Financier'!$C$22+'BP Financier'!$D$22+'BP Financier'!$E$22+'BP Financier'!$F$16+'BP Financier'!$F$19+'BP Financier'!$F$22))*$V6178*X6178/(1-$W6178)","v":{"v":210104.55544886444,"d":"210,105"}},{"$f":"'BP Financier'!$F$44*(('BP Financier'!$C$16+'BP Financier'!$D$16+'BP Financier'!$E$16+'BP Financier'!$F$16)/('BP Financier'!$C$16+'BP Financier'!$C$19+'BP Financier'!$D$16+'BP Financier'!$D$19+'BP Financier'!$E$16+'BP Financier'!$E$19+'BP Financier'!$C$22+'BP Financier'!$D$22+'BP Financier'!$E$22+'BP Financier'!$F$16+'BP Financier'!$F$19+'BP Financier'!$F$22))*$V6178*Y6178/(1-$W6178)","v":{"v":140456.63651553923,"d":"140,457"}},{"$f":"'BP Financier'!$F$44*(('BP Financier'!$C$16+'BP Financier'!$D$16+'BP Financier'!$E$16+'BP Financier'!$F$16)/('BP Financier'!$C$16+'BP Financier'!$C$19+'BP Financier'!$D$16+'BP Financier'!$D$19+'BP Financier'!$E$16+'BP Financier'!$E$19+'BP Financier'!$C$22+'BP Financier'!$D$22+'BP Financier'!$E$22+'BP Financier'!$F$16+'BP Financier'!$F$19+'BP Financier'!$F$22))*$V6178*Z6178/(1-$W6178)","v":{"v":1099276.32049765,"d":"1,099,276"}},{"$f":"'BP Financier'!$F$44*(('BP Financier'!$C$16+'BP Financier'!$D$16+'BP Financier'!$E$16+'BP Financier'!$F$16)/('BP Financier'!$C$16+'BP Financier'!$C$19+'BP Financier'!$D$16+'BP Financier'!$D$19+'BP Financier'!$E$16+'BP Financier'!$E$19+'BP Financier'!$C$22+'BP Financier'!$D$22+'BP Financier'!$E$22+'BP Financier'!$F$16+'BP Financier'!$F$19+'BP Financier'!$F$22))*$V6178*AA6178/(1-$W6178)","v":{"v":135813.4419199842,"d":"135,813"}},{"$f":"'BP Financier'!$F$44*(('BP Financier'!$C$16+'BP Financier'!$D$16+'BP Financier'!$E$16+'BP Financier'!$F$16)/('BP Financier'!$C$16+'BP Financier'!$C$19+'BP Financier'!$D$16+'BP Financier'!$D$19+'BP Financier'!$E$16+'BP Financier'!$E$19+'BP Financier'!$C$22+'BP Financier'!$D$22+'BP Financier'!$E$22+'BP Financier'!$F$16+'BP Financier'!$F$19+'BP Financier'!$F$22))*$V6178*AB6178/(1-$W6178)","v":{"v":65004.72433777021,"d":"65,005"}},null,{"v":0.0075,"d":"0.75%"},{"$f":"Actif!$E$28/100","v":{"v":0.28900000000000003,"d":"28.90%"}},{"$f":"Actif!$E$30/100","v":{"v":0.09050000000000001,"d":"9.05%"}},{"$f":"Actif!$E$31/100","v":{"v":0.0605,"d":"6.05%"}},{"$f":"Actif!$E$32/100","v":{"v":0.47350000000000003,"d":"47.35%"}},{"$f":"Actif!$E$33/100","v":{"v":0.0585,"d":"5.85%"}},{"$f":"Actif!$E$29/100","v":{"v":0.027999999999999997,"d":"2.80%"}}]
[null,"#72",35,2030,"F","A_VIE",{"v":0.44999999999999996,"d":"0.45"},{"v":0.38999999999999996,"d":"0.39"},0.6,0.6,85,0,{"$f":"ROUND(Primes!$P$4*V6179,0)","v":71},{"$f":"'BP Financier'!$F$33*(('BP Financier'!$C$16+'BP Financier'!$D$16+'BP Financier'!$E$16+'BP Financier'!$F$16)/('BP Financier'!$C$16+'BP Financier'!$C$19+'BP Financier'!$D$16+'BP Financier'!$D$19+'BP Financier'!$E$16+'BP Financier'!$E$19+'BP Financier'!$F$16+'BP Financier'!$F$19))*V6179","v":{"v":2909830.1866639922,"d":"2,909,830"}},{"v":1650655.678719808,"d":"1,650,656"},{"$f":"'BP Financier'!$F$44*(('BP Financier'!$C$16+'BP Financier'!$D$16+'BP Financier'!$E$16+'BP Financier'!$F$16)/('BP Financier'!$C$16+'BP Financier'!$C$19+'BP Financier'!$D$16+'BP Financier'!$D$19+'BP Financier'!$E$16+'BP Financier'!$E$19+'BP Financier'!$C$22+'BP Financier'!$D$22+'BP Financier'!$E$22+'BP Financier'!$F$16+'BP Financier'!$F$19+'BP Financier'!$F$22))*$V6179*X6179/(1-$W6179)","v":{"v":210104.55544886444,"d":"210,105"}},{"$f":"'BP Financier'!$F$44*(('BP Financier'!$C$16+'BP Financier'!$D$16+'BP Financier'!$E$16+'BP Financier'!$F$16)/('BP Financier'!$C$16+'BP Financier'!$C$19+'BP Financier'!$D$16+'BP Financier'!$D$19+'BP Financier'!$E$16+'BP Financier'!$E$19+'BP Financier'!$C$22+'BP Financier'!$D$22+'BP Financier'!$E$22+'BP Financier'!$F$16+'BP Financier'!$F$19+'BP Financier'!$F$22))*$V6179*Y6179/(1-$W6179)","v":{"v":140456.63651553923,"d":"140,457"}},{"$f":"'BP Financier'!$F$44*(('BP Financier'!$C$16+'BP Financier'!$D$16+'BP Financier'!$E$16+'BP Financier'!$F$16)/('BP Financier'!$C$16+'BP Financier'!$C$19+'BP Financier'!$D$16+'BP Financier'!$D$19+'BP Financier'!$E$16+'BP Financier'!$E$19+'BP Financier'!$C$22+'BP Financier'!$D$22+'BP Financier'!$E$22+'BP Financier'!$F$16+'BP Financier'!$F$19+'BP Financier'!$F$22))*$V6179*Z6179/(1-$W6179)","v":{"v":1099276.32049765,"d":"1,099,276"}},{"$f":"'BP Financier'!$F$44*(('BP Financier'!$C$16+'BP Financier'!$D$16+'BP Financier'!$E$16+'BP Financier'!$F$16)/('BP Financier'!$C$16+'BP Financier'!$C$19+'BP Financier'!$D$16+'BP Financier'!$D$19+'BP Financier'!$E$16+'BP Financier'!$E$19+'BP Financier'!$C$22+'BP Financier'!$D$22+'BP Financier'!$E$22+'BP Financier'!$F$16+'BP Financier'!$F$19+'BP Financier'!$F$22))*$V6179*AA6179/(1-$W6179)","v":{"v":135813.4419199842,"d":"135,813"}},{"$f":"'BP Financier'!$F$44*(('BP Financier'!$C$16+'BP Financier'!$D$16+'BP Financier'!$E$16+'BP Financier'!$F$16)/('BP Financier'!$C$16+'BP Financier'!$C$19+'BP Financier'!$D$16+'BP Financier'!$D$19+'BP Financier'!$E$16+'BP Financier'!$E$19+'BP Financier'!$C$22+'BP Financier'!$D$22+'BP Financier'!$E$22+'BP Financier'!$F$16+'BP Financier'!$F$19+'BP Financier'!$F$22))*$V6179*AB6179/(1-$W6179)","v":{"v":65004.72433777021,"d":"65,005"}},null,{"v":0.0075,"d":"0.75%"},{"$f":"Actif!$E$28/100","v":{"v":0.28900000000000003,"d":"28.90%"}},{"$f":"Actif!$E$30/100","v":{"v":0.09050000000000001,"d":"9.05%"}},{"$f":"Actif!$E$31/100","v":{"v":0.0605,"d":"6.05%"}},{"$f":"Actif!$E$32/100","v":{"v":0.47350000000000003,"d":"47.35%"}},{"$f":"Actif!$E$33/100","v":{"v":0.0585,"d":"5.85%"}},{"$f":"Actif!$E$29/100","v":{"v":0.027999999999999997,"d":"2.80%"}}]
[null,"#73",36,2026,"H","A_VIE",{"v":0.44999999999999996,"d":"0.45"},{"v":0.38999999999999996,"d":"0.39"},0.6,0.6,85,0,{"$f":"ROUND(Primes!$P$4*V6180,0)","v":12},{"$f":"'BP Financier'!$F$33*(('BP Financier'!$C$16+'BP Financier'!$D$16+'BP Financier'!$E$16+'BP Financier'!$F$16)/('BP Financier'!$C$16+'BP Financier'!$C$19+'BP Financier'!$D$16+'BP Financier'!$D$19+'BP Financier'!$E$16+'BP Financier'!$E$19+'BP Financier'!$F$16+'BP Financier'!$F$19))*V6180","v":{"v":484971.6977773321,"d":"484,972"}},{"v":275109.2797866347,"d":"275,109"},{"$f":"'BP Financier'!$F$44*(('BP Financier'!$C$16+'BP Financier'!$D$16+'BP Financier'!$E$16+'BP Financier'!$F$16)/('BP Financier'!$C$16+'BP Financier'!$C$19+'BP Financier'!$D$16+'BP Financier'!$D$19+'BP Financier'!$E$16+'BP Financier'!$E$19+'BP Financier'!$C$22+'BP Financier'!$D$22+'BP Financier'!$E$22+'BP Financier'!$F$16+'BP Financier'!$F$19+'BP Financier'!$F$22))*$V6180*X6180/(1-$W6180)","v":{"v":35017.42590814408,"d":"35,017"}},{"$f":"'BP Financier'!$F$44*(('BP Financier'!$C$16+'BP Financier'!$D$16+'BP Financier'!$E$16+'BP Financier'!$F$16)/('BP Financier'!$C$16+'BP Financier'!$C$19+'BP Financier'!$D$16+'BP Financier'!$D$19+'BP Financier'!$E$16+'BP Financier'!$E$19+'BP Financier'!$C$22+'BP Financier'!$D$22+'BP Financier'!$E$22+'BP Financier'!$F$16+'BP Financier'!$F$19+'BP Financier'!$F$22))*$V6180*Y6180/(1-$W6180)","v":{"v":23409.439419256538,"d":"23,409"}},{"$f":"'BP Financier'!$F$44*(('BP Financier'!$C$16+'BP Financier'!$D$16+'BP Financier'!$E$16+'BP Financier'!$F$16)/('BP Financier'!$C$16+'BP Financier'!$C$19+'BP Financier'!$D$16+'BP Financier'!$D$19+'BP Financier'!$E$16+'BP Financier'!$E$19+'BP Financier'!$C$22+'BP Financier'!$D$22+'BP Financier'!$E$22+'BP Financier'!$F$16+'BP Financier'!$F$19+'BP Financier'!$F$22))*$V6180*Z6180/(1-$W6180)","v":{"v":183212.72008294167,"d":"183,213"}},{"$f":"'BP Financier'!$F$44*(('BP Financier'!$C$16+'BP Financier'!$D$16+'BP Financier'!$E$16+'BP Financier'!$F$16)/('BP Financier'!$C$16+'BP Financier'!$C$19+'BP Financier'!$D$16+'BP Financier'!$D$19+'BP Financier'!$E$16+'BP Financier'!$E$19+'BP Financier'!$C$22+'BP Financier'!$D$22+'BP Financier'!$E$22+'BP Financier'!$F$16+'BP Financier'!$F$19+'BP Financier'!$F$22))*$V6180*AA6180/(1-$W6180)","v":{"v":22635.573653330703,"d":"22,636"}},{"$f":"'BP Financier'!$F$44*(('BP Financier'!$C$16+'BP Financier'!$D$16+'BP Financier'!$E$16+'BP Financier'!$F$16)/('BP Financier'!$C$16+'BP Financier'!$C$19+'BP Financier'!$D$16+'BP Financier'!$D$19+'BP Financier'!$E$16+'BP Financier'!$E$19+'BP Financier'!$C$22+'BP Financier'!$D$22+'BP Financier'!$E$22+'BP Financier'!$F$16+'BP Financier'!$F$19+'BP Financier'!$F$22))*$V6180*AB6180/(1-$W6180)","v":{"v":10834.120722961703,"d":"10,834"}},null,{"v":1.25E-3,"d":"0.13%"},{"$f":"Actif!$E$28/100","v":{"v":0.28900000000000003,"d":"28.90%"}},{"$f":"Actif!$E$30/100","v":{"v":0.09050000000000001,"d":"9.05%"}},{"$f":"Actif!$E$31/100","v":{"v":0.0605,"d":"6.05%"}},{"$f":"Actif!$E$32/100","v":{"v":0.47350000000000003,"d":"47.35%"}},{"$f":"Actif!$E$33/100","v":{"v":0.0585,"d":"5.85%"}},{"$f":"Actif!$E$29/100","v":{"v":0.027999999999999997,"d":"2.80%"}}]
[null,"#74",36,2028,"H","A_VIE",{"v":0.44999999999999996,"d":"0.45"},{"v":0.38999999999999996,"d":"0.39"},0.6,0.6,85,0,{"$f":"ROUND(Primes!$P$4*V6181,0)","v":12},{"$f":"'BP Financier'!$F$33*(('BP Financier'!$C$16+'BP Financier'!$D$16+'BP Financier'!$E$16+'BP Financier'!$F$16)/('BP Financier'!$C$16+'BP Financier'!$C$19+'BP Financier'!$D$16+'BP Financier'!$D$19+'BP Financier'!$E$16+'BP Financier'!$E$19+'BP Financier'!$F$16+'BP Financier'!$F$19))*V6181","v":{"v":484971.6977773321,"d":"484,972"}},{"v":275109.2797866347,"d":"275,109"},{"$f":"'BP Financier'!$F$44*(('BP Financier'!$C$16+'BP Financier'!$D$16+'BP Financier'!$E$16+'BP Financier'!$F$16)/('BP Financier'!$C$16+'BP Financier'!$C$19+'BP Financier'!$D$16+'BP Financier'!$D$19+'BP Financier'!$E$16+'BP Financier'!$E$19+'BP Financier'!$C$22+'BP Financier'!$D$22+'BP Financier'!$E$22+'BP Financier'!$F$16+'BP Financier'!$F$19+'BP Financier'!$F$22))*$V6181*X6181/(1-$W6181)","v":{"v":35017.42590814408,"d":"35,017"}},{"$f":"'BP Financier'!$F$44*(('BP Financier'!$C$16+'BP Financier'!$D$16+'BP Financier'!$E$16+'BP Financier'!$F$16)/('BP Financier'!$C$16+'BP Financier'!$C$19+'BP Financier'!$D$16+'BP Financier'!$D$19+'BP Financier'!$E$16+'BP Financier'!$E$19+'BP Financier'!$C$22+'BP Financier'!$D$22+'BP Financier'!$E$22+'BP Financier'!$F$16+'BP Financier'!$F$19+'BP Financier'!$F$22))*$V6181*Y6181/(1-$W6181)","v":{"v":23409.439419256538,"d":"23,409"}},{"$f":"'BP Financier'!$F$44*(('BP Financier'!$C$16+'BP Financier'!$D$16+'BP Financier'!$E$16+'BP Financier'!$F$16)/('BP Financier'!$C$16+'BP Financier'!$C$19+'BP Financier'!$D$16+'BP Financier'!$D$19+'BP Financier'!$E$16+'BP Financier'!$E$19+'BP Financier'!$C$22+'BP Financier'!$D$22+'BP Financier'!$E$22+'BP Financier'!$F$16+'BP Financier'!$F$19+'BP Financier'!$F$22))*$V6181*Z6181/(1-$W6181)","v":{"v":183212.72008294167,"d":"183,213"}},{"$f":"'BP Financier'!$F$44*(('BP Financier'!$C$16+'BP Financier'!$D$16+'BP Financier'!$E$16+'BP Financier'!$F$16)/('BP Financier'!$C$16+'BP Financier'!$C$19+'BP Financier'!$D$16+'BP Financier'!$D$19+'BP Financier'!$E$16+'BP Financier'!$E$19+'BP Financier'!$C$22+'BP Financier'!$D$22+'BP Financier'!$E$22+'BP Financier'!$F$16+'BP Financier'!$F$19+'BP Financier'!$F$22))*$V6181*AA6181/(1-$W6181)","v":{"v":22635.573653330703,"d":"22,636"}},{"$f":"'BP Financier'!$F$44*(('BP Financier'!$C$16+'BP Financier'!$D$16+'BP Financier'!$E$16+'BP Financier'!$F$16)/('BP Financier'!$C$16+'BP Financier'!$C$19+'BP Financier'!$D$16+'BP Financier'!$D$19+'BP Financier'!$E$16+'BP Financier'!$E$19+'BP Financier'!$C$22+'BP Financier'!$D$22+'BP Financier'!$E$22+'BP Financier'!$F$16+'BP Financier'!$F$19+'BP Financier'!$F$22))*$V6181*AB6181/(1-$W6181)","v":{"v":10834.120722961703,"d":"10,834"}},null,{"v":1.25E-3,"d":"0.13%"},{"$f":"Actif!$E$28/100","v":{"v":0.28900000000000003,"d":"28.90%"}},{"$f":"Actif!$E$30/100","v":{"v":0.09050000000000001,"d":"9.05%"}},{"$f":"Actif!$E$31/100","v":{"v":0.0605,"d":"6.05%"}},{"$f":"Actif!$E$32/100","v":{"v":0.47350000000000003,"d":"47.35%"}},{"$f":"Actif!$E$33/100","v":{"v":0.0585,"d":"5.85%"}},{"$f":"Actif!$E$29/100","v":{"v":0.027999999999999997,"d":"2.80%"}}]
[null,"#75",36,2029,"H","A_VIE",{"v":0.44999999999999996,"d":"0.45"},{"v":0.38999999999999996,"d":"0.39"},0.6,0.6,85,0,{"$f":"ROUND(Primes!$P$4*V6182,0)","v":12},{"$f":"'BP Financier'!$F$33*(('BP Financier'!$C$16+'BP Financier'!$D$16+'BP Financier'!$E$16+'BP Financier'!$F$16)/('BP Financier'!$C$16+'BP Financier'!$C$19+'BP Financier'!$D$16+'BP Financier'!$D$19+'BP Financier'!$E$16+'BP Financier'!$E$19+'BP Financier'!$F$16+'BP Financier'!$F$19))*V6182","v":{"v":484971.6977773321,"d":"484,972"}},{"v":275109.2797866347,"d":"275,109"},{"$f":"'BP Financier'!$F$44*(('BP Financier'!$C$16+'BP Financier'!$D$16+'BP Financier'!$E$16+'BP Financier'!$F$16)/('BP Financier'!$C$16+'BP Financier'!$C$19+'BP Financier'!$D$16+'BP Financier'!$D$19+'BP Financier'!$E$16+'BP Financier'!$E$19+'BP Financier'!$C$22+'BP Financier'!$D$22+'BP Financier'!$E$22+'BP Financier'!$F$16+'BP Financier'!$F$19+'BP Financier'!$F$22))*$V6182*X6182/(1-$W6182)","v":{"v":35017.42590814408,"d":"35,017"}},{"$f":"'BP Financier'!$F$44*(('BP Financier'!$C$16+'BP Financier'!$D$16+'BP Financier'!$E$16+'BP Financier'!$F$16)/('BP Financier'!$C$16+'BP Financier'!$C$19+'BP Financier'!$D$16+'BP Financier'!$D$19+'BP Financier'!$E$16+'BP Financier'!$E$19+'BP Financier'!$C$22+'BP Financier'!$D$22+'BP Financier'!$E$22+'BP Financier'!$F$16+'BP Financier'!$F$19+'BP Financier'!$F$22))*$V6182*Y6182/(1-$W6182)","v":{"v":23409.439419256538,"d":"23,409"}},{"$f":"'BP Financier'!$F$44*(('BP Financier'!$C$16+'BP Financier'!$D$16+'BP Financier'!$E$16+'BP Financier'!$F$16)/('BP Financier'!$C$16+'BP Financier'!$C$19+'BP Financier'!$D$16+'BP Financier'!$D$19+'BP Financier'!$E$16+'BP Financier'!$E$19+'BP Financier'!$C$22+'BP Financier'!$D$22+'BP Financier'!$E$22+'BP Financier'!$F$16+'BP Financier'!$F$19+'BP Financier'!$F$22))*$V6182*Z6182/(1-$W6182)","v":{"v":183212.72008294167,"d":"183,213"}},{"$f":"'BP Financier'!$F$44*(('BP Financier'!$C$16+'BP Financier'!$D$16+'BP Financier'!$E$16+'BP Financier'!$F$16)/('BP Financier'!$C$16+'BP Financier'!$C$19+'BP Financier'!$D$16+'BP Financier'!$D$19+'BP Financier'!$E$16+'BP Financier'!$E$19+'BP Financier'!$C$22+'BP Financier'!$D$22+'BP Financier'!$E$22+'BP Financier'!$F$16+'BP Financier'!$F$19+'BP Financier'!$F$22))*$V6182*AA6182/(1-$W6182)","v":{"v":22635.573653330703,"d":"22,636"}},{"$f":"'BP Financier'!$F$44*(('BP Financier'!$C$16+'BP Financier'!$D$16+'BP Financier'!$E$16+'BP Financier'!$F$16)/('BP Financier'!$C$16+'BP Financier'!$C$19+'BP Financier'!$D$16+'BP Financier'!$D$19+'BP Financier'!$E$16+'BP Financier'!$E$19+'BP Financier'!$C$22+'BP Financier'!$D$22+'BP Financier'!$E$22+'BP Financier'!$F$16+'BP Financier'!$F$19+'BP Financier'!$F$22))*$V6182*AB6182/(1-$W6182)","v":{"v":10834.120722961703,"d":"10,834"}},null,{"v":1.25E-3,"d":"0.13%"},{"$f":"Actif!$E$28/100","v":{"v":0.28900000000000003,"d":"28.90%"}},{"$f":"Actif!$E$30/100","v":{"v":0.09050000000000001,"d":"9.05%"}},{"$f":"Actif!$E$31/100","v":{"v":0.0605,"d":"6.05%"}},{"$f":"Actif!$E$32/100","v":{"v":0.47350000000000003,"d":"47.35%"}},{"$f":"Actif!$E$33/100","v":{"v":0.0585,"d":"5.85%"}},{"$f":"Actif!$E$29/100","v":{"v":0.027999999999999997,"d":"2.80%"}}]
[null,"#76",36,2030,"H","A_VIE",{"v":0.44999999999999996,"d":"0.45"},{"v":0.38999999999999996,"d":"0.39"},0.6,0.6,85,0,{"$f":"ROUND(Primes!$P$4*V6183,0)","v":12},{"$f":"'BP Financier'!$F$33*(('BP Financier'!$C$16+'BP Financier'!$D$16+'BP Financier'!$E$16+'BP Financier'!$F$16)/('BP Financier'!$C$16+'BP Financier'!$C$19+'BP Financier'!$D$16+'BP Financier'!$D$19+'BP Financier'!$E$16+'BP Financier'!$E$19+'BP Financier'!$F$16+'BP Financier'!$F$19))*V6183","v":{"v":484971.6977773321,"d":"484,972"}},{"v":275109.2797866347,"d":"275,109"},{"$f":"'BP Financier'!$F$44*(('BP Financier'!$C$16+'BP Financier'!$D$16+'BP Financier'!$E$16+'BP Financier'!$F$16)/('BP Financier'!$C$16+'BP Financier'!$C$19+'BP Financier'!$D$16+'BP Financier'!$D$19+'BP Financier'!$E$16+'BP Financier'!$E$19+'BP Financier'!$C$22+'BP Financier'!$D$22+'BP Financier'!$E$22+'BP Financier'!$F$16+'BP Financier'!$F$19+'BP Financier'!$F$22))*$V6183*X6183/(1-$W6183)","v":{"v":35017.42590814408,"d":"35,017"}},{"$f":"'BP Financier'!$F$44*(('BP Financier'!$C$16+'BP Financier'!$D$16+'BP Financier'!$E$16+'BP Financier'!$F$16)/('BP Financier'!$C$16+'BP Financier'!$C$19+'BP Financier'!$D$16+'BP Financier'!$D$19+'BP Financier'!$E$16+'BP Financier'!$E$19+'BP Financier'!$C$22+'BP Financier'!$D$22+'BP Financier'!$E$22+'BP Financier'!$F$16+'BP Financier'!$F$19+'BP Financier'!$F$22))*$V6183*Y6183/(1-$W6183)","v":{"v":23409.439419256538,"d":"23,409"}},{"$f":"'BP Financier'!$F$44*(('BP Financier'!$C$16+'BP Financier'!$D$16+'BP Financier'!$E$16+'BP Financier'!$F$16)/('BP Financier'!$C$16+'BP Financier'!$C$19+'BP Financier'!$D$16+'BP Financier'!$D$19+'BP Financier'!$E$16+'BP Financier'!$E$19+'BP Financier'!$C$22+'BP Financier'!$D$22+'BP Financier'!$E$22+'BP Financier'!$F$16+'BP Financier'!$F$19+'BP Financier'!$F$22))*$V6183*Z6183/(1-$W6183)","v":{"v":183212.72008294167,"d":"183,213"}},{"$f":"'BP Financier'!$F$44*(('BP Financier'!$C$16+'BP Financier'!$D$16+'BP Financier'!$E$16+'BP Financier'!$F$16)/('BP Financier'!$C$16+'BP Financier'!$C$19+'BP Financier'!$D$16+'BP Financier'!$D$19+'BP Financier'!$E$16+'BP Financier'!$E$19+'BP Financier'!$C$22+'BP Financier'!$D$22+'BP Financier'!$E$22+'BP Financier'!$F$16+'BP Financier'!$F$19+'BP Financier'!$F$22))*$V6183*AA6183/(1-$W6183)","v":{"v":22635.573653330703,"d":"22,636"}},{"$f":"'BP Financier'!$F$44*(('BP Financier'!$C$16+'BP Financier'!$D$16+'BP Financier'!$E$16+'BP Financier'!$F$16)/('BP Financier'!$C$16+'BP Financier'!$C$19+'BP Financier'!$D$16+'BP Financier'!$D$19+'BP Financier'!$E$16+'BP Financier'!$E$19+'BP Financier'!$C$22+'BP Financier'!$D$22+'BP Financier'!$E$22+'BP Financier'!$F$16+'BP Financier'!$F$19+'BP Financier'!$F$22))*$V6183*AB6183/(1-$W6183)","v":{"v":10834.120722961703,"d":"10,834"}},null,{"v":1.25E-3,"d":"0.13%"},{"$f":"Actif!$E$28/100","v":{"v":0.28900000000000003,"d":"28.90%"}},{"$f":"Actif!$E$30/100","v":{"v":0.09050000000000001,"d":"9.05%"}},{"$f":"Actif!$E$31/100","v":{"v":0.0605,"d":"6.05%"}},{"$f":"Actif!$E$32/100","v":{"v":0.47350000000000003,"d":"47.35%"}},{"$f":"Actif!$E$33/100","v":{"v":0.0585,"d":"5.85%"}},{"$f":"Actif!$E$29/100","v":{"v":0.027999999999999997,"d":"2.80%"}}]
[null,"#77",37,2026,"H","A_VIE",{"v":0.44999999999999996,"d":"0.45"},{"v":0.38999999999999996,"d":"0.39"},0.6,0.6,85,0,{"$f":"ROUND(Primes!$P$4*V6184,0)","v":12},{"$f":"'BP Financier'!$F$33*(('BP Financier'!$C$16+'BP Financier'!$D$16+'BP Financier'!$E$16+'BP Financier'!$F$16)/('BP Financier'!$C$16+'BP Financier'!$C$19+'BP Financier'!$D$16+'BP Financier'!$D$19+'BP Financier'!$E$16+'BP Financier'!$E$19+'BP Financier'!$F$16+'BP Financier'!$F$19))*V6184","v":{"v":484971.6977773321,"d":"484,972"}},{"v":275109.2797866347,"d":"275,109"},{"$f":"'BP Financier'!$F$44*(('BP Financier'!$C$16+'BP Financier'!$D$16+'BP Financier'!$E$16+'BP Financier'!$F$16)/('BP Financier'!$C$16+'BP Financier'!$C$19+'BP Financier'!$D$16+'BP Financier'!$D$19+'BP Financier'!$E$16+'BP Financier'!$E$19+'BP Financier'!$C$22+'BP Financier'!$D$22+'BP Financier'!$E$22+'BP Financier'!$F$16+'BP Financier'!$F$19+'BP Financier'!$F$22))*$V6184*X6184/(1-$W6184)","v":{"v":35017.42590814408,"d":"35,017"}},{"$f":"'BP Financier'!$F$44*(('BP Financier'!$C$16+'BP Financier'!$D$16+'BP Financier'!$E$16+'BP Financier'!$F$16)/('BP Financier'!$C$16+'BP Financier'!$C$19+'BP Financier'!$D$16+'BP Financier'!$D$19+'BP Financier'!$E$16+'BP Financier'!$E$19+'BP Financier'!$C$22+'BP Financier'!$D$22+'BP Financier'!$E$22+'BP Financier'!$F$16+'BP Financier'!$F$19+'BP Financier'!$F$22))*$V6184*Y6184/(1-$W6184)","v":{"v":23409.439419256538,"d":"23,409"}},{"$f":"'BP Financier'!$F$44*(('BP Financier'!$C$16+'BP Financier'!$D$16+'BP Financier'!$E$16+'BP Financier'!$F$16)/('BP Financier'!$C$16+'BP Financier'!$C$19+'BP Financier'!$D$16+'BP Financier'!$D$19+'BP Financier'!$E$16+'BP Financier'!$E$19+'BP Financier'!$C$22+'BP Financier'!$D$22+'BP Financier'!$E$22+'BP Financier'!$F$16+'BP Financier'!$F$19+'BP Financier'!$F$22))*$V6184*Z6184/(1-$W6184)","v":{"v":183212.72008294167,"d":"183,213"}},{"$f":"'BP Financier'!$F$44*(('BP Financier'!$C$16+'BP Financier'!$D$16+'BP Financier'!$E$16+'BP Financier'!$F$16)/('BP Financier'!$C$16+'BP Financier'!$C$19+'BP Financier'!$D$16+'BP Financier'!$D$19+'BP Financier'!$E$16+'BP Financier'!$E$19+'BP Financier'!$C$22+'BP Financier'!$D$22+'BP Financier'!$E$22+'BP Financier'!$F$16+'BP Financier'!$F$19+'BP Financier'!$F$22))*$V6184*AA6184/(1-$W6184)","v":{"v":22635.573653330703,"d":"22,636"}},{"$f":"'BP Financier'!$F$44*(('BP Financier'!$C$16+'BP Financier'!$D$16+'BP Financier'!$E$16+'BP Financier'!$F$16)/('BP Financier'!$C$16+'BP Financier'!$C$19+'BP Financier'!$D$16+'BP Financier'!$D$19+'BP Financier'!$E$16+'BP Financier'!$E$19+'BP Financier'!$C$22+'BP Financier'!$D$22+'BP Financier'!$E$22+'BP Financier'!$F$16+'BP Financier'!$F$19+'BP Financier'!$F$22))*$V6184*AB6184/(1-$W6184)","v":{"v":10834.120722961703,"d":"10,834"}},null,{"v":1.25E-3,"d":"0.13%"},{"$f":"Actif!$E$28/100","v":{"v":0.28900000000000003,"d":"28.90%"}},{"$f":"Actif!$E$30/100","v":{"v":0.09050000000000001,"d":"9.05%"}},{"$f":"Actif!$E$31/100","v":{"v":0.0605,"d":"6.05%"}},{"$f":"Actif!$E$32/100","v":{"v":0.47350000000000003,"d":"47.35%"}},{"$f":"Actif!$E$33/100","v":{"v":0.0585,"d":"5.85%"}},{"$f":"Actif!$E$29/100","v":{"v":0.027999999999999997,"d":"2.80%"}}]
[null,"#78",37,2028,"H","A_VIE",{"v":0.44999999999999996,"d":"0.45"},{"v":0.38999999999999996,"d":"0.39"},0.6,0.6,85,0,{"$f":"ROUND(Primes!$P$4*V6185,0)","v":12},{"$f":"'BP Financier'!$F$33*(('BP Financier'!$C$16+'BP Financier'!$D$16+'BP Financier'!$E$16+'BP Financier'!$F$16)/('BP Financier'!$C$16+'BP Financier'!$C$19+'BP Financier'!$D$16+'BP Financier'!$D$19+'BP Financier'!$E$16+'BP Financier'!$E$19+'BP Financier'!$F$16+'BP Financier'!$F$19))*V6185","v":{"v":484971.6977773321,"d":"484,972"}},{"v":275109.2797866347,"d":"275,109"},{"$f":"'BP Financier'!$F$44*(('BP Financier'!$C$16+'BP Financier'!$D$16+'BP Financier'!$E$16+'BP Financier'!$F$16)/('BP Financier'!$C$16+'BP Financier'!$C$19+'BP Financier'!$D$16+'BP Financier'!$D$19+'BP Financier'!$E$16+'BP Financier'!$E$19+'BP Financier'!$C$22+'BP Financier'!$D$22+'BP Financier'!$E$22+'BP Financier'!$F$16+'BP Financier'!$F$19+'BP Financier'!$F$22))*$V6185*X6185/(1-$W6185)","v":{"v":35017.42590814408,"d":"35,017"}},{"$f":"'BP Financier'!$F$44*(('BP Financier'!$C$16+'BP Financier'!$D$16+'BP Financier'!$E$16+'BP Financier'!$F$16)/('BP Financier'!$C$16+'BP Financier'!$C$19+'BP Financier'!$D$16+'BP Financier'!$D$19+'BP Financier'!$E$16+'BP Financier'!$E$19+'BP Financier'!$C$22+'BP Financier'!$D$22+'BP Financier'!$E$22+'BP Financier'!$F$16+'BP Financier'!$F$19+'BP Financier'!$F$22))*$V6185*Y6185/(1-$W6185)","v":{"v":23409.439419256538,"d":"23,409"}},{"$f":"'BP Financier'!$F$44*(('BP Financier'!$C$16+'BP Financier'!$D$16+'BP Financier'!$E$16+'BP Financier'!$F$16)/('BP Financier'!$C$16+'BP Financier'!$C$19+'BP Financier'!$D$16+'BP Financier'!$D$19+'BP Financier'!$E$16+'BP Financier'!$E$19+'BP Financier'!$C$22+'BP Financier'!$D$22+'BP Financier'!$E$22+'BP Financier'!$F$16+'BP Financier'!$F$19+'BP Financier'!$F$22))*$V6185*Z6185/(1-$W6185)","v":{"v":183212.72008294167,"d":"183,213"}},{"$f":"'BP Financier'!$F$44*(('BP Financier'!$C$16+'BP Financier'!$D$16+'BP Financier'!$E$16+'BP Financier'!$F$16)/('BP Financier'!$C$16+'BP Financier'!$C$19+'BP Financier'!$D$16+'BP Financier'!$D$19+'BP Financier'!$E$16+'BP Financier'!$E$19+'BP Financier'!$C$22+'BP Financier'!$D$22+'BP Financier'!$E$22+'BP Financier'!$F$16+'BP Financier'!$F$19+'BP Financier'!$F$22))*$V6185*AA6185/(1-$W6185)","v":{"v":22635.573653330703,"d":"22,636"}},{"$f":"'BP Financier'!$F$44*(('BP Financier'!$C$16+'BP Financier'!$D$16+'BP Financier'!$E$16+'BP Financier'!$F$16)/('BP Financier'!$C$16+'BP Financier'!$C$19+'BP Financier'!$D$16+'BP Financier'!$D$19+'BP Financier'!$E$16+'BP Financier'!$E$19+'BP Financier'!$C$22+'BP Financier'!$D$22+'BP Financier'!$E$22+'BP Financier'!$F$16+'BP Financier'!$F$19+'BP Financier'!$F$22))*$V6185*AB6185/(1-$W6185)","v":{"v":10834.120722961703,"d":"10,834"}},null,{"v":1.25E-3,"d":"0.13%"},{"$f":"Actif!$E$28/100","v":{"v":0.28900000000000003,"d":"28.90%"}},{"$f":"Actif!$E$30/100","v":{"v":0.09050000000000001,"d":"9.05%"}},{"$f":"Actif!$E$31/100","v":{"v":0.0605,"d":"6.05%"}},{"$f":"Actif!$E$32/100","v":{"v":0.47350000000000003,"d":"47.35%"}},{"$f":"Actif!$E$33/100","v":{"v":0.0585,"d":"5.85%"}},{"$f":"Actif!$E$29/100","v":{"v":0.027999999999999997,"d":"2.80%"}}]
[null,"#79",37,2029,"H","A_VIE",{"v":0.44999999999999996,"d":"0.45"},{"v":0.38999999999999996,"d":"0.39"},0.6,0.6,85,0,{"$f":"ROUND(Primes!$P$4*V6186,0)","v":12},{"$f":"'BP Financier'!$F$33*(('BP Financier'!$C$16+'BP Financier'!$D$16+'BP Financier'!$E$16+'BP Financier'!$F$16)/('BP Financier'!$C$16+'BP Financier'!$C$19+'BP Financier'!$D$16+'BP Financier'!$D$19+'BP Financier'!$E$16+'BP Financier'!$E$19+'BP Financier'!$F$16+'BP Financier'!$F$19))*V6186","v":{"v":484971.6977773321,"d":"484,972"}},{"v":275109.2797866347,"d":"275,109"},{"$f":"'BP Financier'!$F$44*(('BP Financier'!$C$16+'BP Financier'!$D$16+'BP Financier'!$E$16+'BP Financier'!$F$16)/('BP Financier'!$C$16+'BP Financier'!$C$19+'BP Financier'!$D$16+'BP Financier'!$D$19+'BP Financier'!$E$16+'BP Financier'!$E$19+'BP Financier'!$C$22+'BP Financier'!$D$22+'BP Financier'!$E$22+'BP Financier'!$F$16+'BP Financier'!$F$19+'BP Financier'!$F$22))*$V6186*X6186/(1-$W6186)","v":{"v":35017.42590814408,"d":"35,017"}},{"$f":"'BP Financier'!$F$44*(('BP Financier'!$C$16+'BP Financier'!$D$16+'BP Financier'!$E$16+'BP Financier'!$F$16)/('BP Financier'!$C$16+'BP Financier'!$C$19+'BP Financier'!$D$16+'BP Financier'!$D$19+'BP Financier'!$E$16+'BP Financier'!$E$19+'BP Financier'!$C$22+'BP Financier'!$D$22+'BP Financier'!$E$22+'BP Financier'!$F$16+'BP Financier'!$F$19+'BP Financier'!$F$22))*$V6186*Y6186/(1-$W6186)","v":{"v":23409.439419256538,"d":"23,409"}},{"$f":"'BP Financier'!$F$44*(('BP Financier'!$C$16+'BP Financier'!$D$16+'BP Financier'!$E$16+'BP Financier'!$F$16)/('BP Financier'!$C$16+'BP Financier'!$C$19+'BP Financier'!$D$16+'BP Financier'!$D$19+'BP Financier'!$E$16+'BP Financier'!$E$19+'BP Financier'!$C$22+'BP Financier'!$D$22+'BP Financier'!$E$22+'BP Financier'!$F$16+'BP Financier'!$F$19+'BP Financier'!$F$22))*$V6186*Z6186/(1-$W6186)","v":{"v":183212.72008294167,"d":"183,213"}},{"$f":"'BP Financier'!$F$44*(('BP Financier'!$C$16+'BP Financier'!$D$16+'BP Financier'!$E$16+'BP Financier'!$F$16)/('BP Financier'!$C$16+'BP Financier'!$C$19+'BP Financier'!$D$16+'BP Financier'!$D$19+'BP Financier'!$E$16+'BP Financier'!$E$19+'BP Financier'!$C$22+'BP Financier'!$D$22+'BP Financier'!$E$22+'BP Financier'!$F$16+'BP Financier'!$F$19+'BP Financier'!$F$22))*$V6186*AA6186/(1-$W6186)","v":{"v":22635.573653330703,"d":"22,636"}},{"$f":"'BP Financier'!$F$44*(('BP Financier'!$C$16+'BP Financier'!$D$16+'BP Financier'!$E$16+'BP Financier'!$F$16)/('BP Financier'!$C$16+'BP Financier'!$C$19+'BP Financier'!$D$16+'BP Financier'!$D$19+'BP Financier'!$E$16+'BP Financier'!$E$19+'BP Financier'!$C$22+'BP Financier'!$D$22+'BP Financier'!$E$22+'BP Financier'!$F$16+'BP Financier'!$F$19+'BP Financier'!$F$22))*$V6186*AB6186/(1-$W6186)","v":{"v":10834.120722961703,"d":"10,834"}},null,{"v":1.25E-3,"d":"0.13%"},{"$f":"Actif!$E$28/100","v":{"v":0.28900000000000003,"d":"28.90%"}},{"$f":"Actif!$E$30/100","v":{"v":0.09050000000000001,"d":"9.05%"}},{"$f":"Actif!$E$31/100","v":{"v":0.0605,"d":"6.05%"}},{"$f":"Actif!$E$32/100","v":{"v":0.47350000000000003,"d":"47.35%"}},{"$f":"Actif!$E$33/100","v":{"v":0.0585,"d":"5.85%"}},{"$f":"Actif!$E$29/100","v":{"v":0.027999999999999997,"d":"2.80%"}}]
[null,"#80",37,2030,"H","A_VIE",{"v":0.44999999999999996,"d":"0.45"},{"v":0.38999999999999996,"d":"0.39"},0.6,0.6,85,0,{"$f":"ROUND(Primes!$P$4*V6187,0)","v":12},{"$f":"'BP Financier'!$F$33*(('BP Financier'!$C$16+'BP Financier'!$D$16+'BP Financier'!$E$16+'BP Financier'!$F$16)/('BP Financier'!$C$16+'BP Financier'!$C$19+'BP Financier'!$D$16+'BP Financier'!$D$19+'BP Financier'!$E$16+'BP Financier'!$E$19+'BP Financier'!$F$16+'BP Financier'!$F$19))*V6187","v":{"v":484971.6977773321,"d":"484,972"}},{"v":275109.2797866347,"d":"275,109"},{"$f":"'BP Financier'!$F$44*(('BP Financier'!$C$16+'BP Financier'!$D$16+'BP Financier'!$E$16+'BP Financier'!$F$16)/('BP Financier'!$C$16+'BP Financier'!$C$19+'BP Financier'!$D$16+'BP Financier'!$D$19+'BP Financier'!$E$16+'BP Financier'!$E$19+'BP Financier'!$C$22+'BP Financier'!$D$22+'BP Financier'!$E$22+'BP Financier'!$F$16+'BP Financier'!$F$19+'BP Financier'!$F$22))*$V6187*X6187/(1-$W6187)","v":{"v":35017.42590814408,"d":"35,017"}},{"$f":"'BP Financier'!$F$44*(('BP Financier'!$C$16+'BP Financier'!$D$16+'BP Financier'!$E$16+'BP Financier'!$F$16)/('BP Financier'!$C$16+'BP Financier'!$C$19+'BP Financier'!$D$16+'BP Financier'!$D$19+'BP Financier'!$E$16+'BP Financier'!$E$19+'BP Financier'!$C$22+'BP Financier'!$D$22+'BP Financier'!$E$22+'BP Financier'!$F$16+'BP Financier'!$F$19+'BP Financier'!$F$22))*$V6187*Y6187/(1-$W6187)","v":{"v":23409.439419256538,"d":"23,409"}},{"$f":"'BP Financier'!$F$44*(('BP Financier'!$C$16+'BP Financier'!$D$16+'BP Financier'!$E$16+'BP Financier'!$F$16)/('BP Financier'!$C$16+'BP Financier'!$C$19+'BP Financier'!$D$16+'BP Financier'!$D$19+'BP Financier'!$E$16+'BP Financier'!$E$19+'BP Financier'!$C$22+'BP Financier'!$D$22+'BP Financier'!$E$22+'BP Financier'!$F$16+'BP Financier'!$F$19+'BP Financier'!$F$22))*$V6187*Z6187/(1-$W6187)","v":{"v":183212.72008294167,"d":"183,213"}},{"$f":"'BP Financier'!$F$44*(('BP Financier'!$C$16+'BP Financier'!$D$16+'BP Financier'!$E$16+'BP Financier'!$F$16)/('BP Financier'!$C$16+'BP Financier'!$C$19+'BP Financier'!$D$16+'BP Financier'!$D$19+'BP Financier'!$E$16+'BP Financier'!$E$19+'BP Financier'!$C$22+'BP Financier'!$D$22+'BP Financier'!$E$22+'BP Financier'!$F$16+'BP Financier'!$F$19+'BP Financier'!$F$22))*$V6187*AA6187/(1-$W6187)","v":{"v":22635.573653330703,"d":"22,636"}},{"$f":"'BP Financier'!$F$44*(('BP Financier'!$C$16+'BP Financier'!$D$16+'BP Financier'!$E$16+'BP Financier'!$F$16)/('BP Financier'!$C$16+'BP Financier'!$C$19+'BP Financier'!$D$16+'BP Financier'!$D$19+'BP Financier'!$E$16+'BP Financier'!$E$19+'BP Financier'!$C$22+'BP Financier'!$D$22+'BP Financier'!$E$22+'BP Financier'!$F$16+'BP Financier'!$F$19+'BP Financier'!$F$22))*$V6187*AB6187/(1-$W6187)","v":{"v":10834.120722961703,"d":"10,834"}},null,{"v":1.25E-3,"d":"0.13%"},{"$f":"Actif!$E$28/100","v":{"v":0.28900000000000003,"d":"28.90%"}},{"$f":"Actif!$E$30/100","v":{"v":0.09050000000000001,"d":"9.05%"}},{"$f":"Actif!$E$31/100","v":{"v":0.0605,"d":"6.05%"}},{"$f":"Actif!$E$32/100","v":{"v":0.47350000000000003,"d":"47.35%"}},{"$f":"Actif!$E$33/100","v":{"v":0.0585,"d":"5.85%"}},{"$f":"Actif!$E$29/100","v":{"v":0.027999999999999997,"d":"2.80%"}}]
[null,"#81",38,2026,"F","A_VIE",{"v":0.44999999999999996,"d":"0.45"},{"v":0.38999999999999996,"d":"0.39"},0.6,0.6,85,0,{"$f":"ROUND(Primes!$P$4*V6188,0)","v":12},{"$f":"'BP Financier'!$F$33*(('BP Financier'!$C$16+'BP Financier'!$D$16+'BP Financier'!$E$16+'BP Financier'!$F$16)/('BP Financier'!$C$16+'BP Financier'!$C$19+'BP Financier'!$D$16+'BP Financier'!$D$19+'BP Financier'!$E$16+'BP Financier'!$E$19+'BP Financier'!$F$16+'BP Financier'!$F$19))*V6188","v":{"v":484971.6977773321,"d":"484,972"}},{"v":275109.2797866347,"d":"275,109"},{"$f":"'BP Financier'!$F$44*(('BP Financier'!$C$16+'BP Financier'!$D$16+'BP Financier'!$E$16+'BP Financier'!$F$16)/('BP Financier'!$C$16+'BP Financier'!$C$19+'BP Financier'!$D$16+'BP Financier'!$D$19+'BP Financier'!$E$16+'BP Financier'!$E$19+'BP Financier'!$C$22+'BP Financier'!$D$22+'BP Financier'!$E$22+'BP Financier'!$F$16+'BP Financier'!$F$19+'BP Financier'!$F$22))*$V6188*X6188/(1-$W6188)","v":{"v":35017.42590814408,"d":"35,017"}},{"$f":"'BP Financier'!$F$44*(('BP Financier'!$C$16+'BP Financier'!$D$16+'BP Financier'!$E$16+'BP Financier'!$F$16)/('BP Financier'!$C$16+'BP Financier'!$C$19+'BP Financier'!$D$16+'BP Financier'!$D$19+'BP Financier'!$E$16+'BP Financier'!$E$19+'BP Financier'!$C$22+'BP Financier'!$D$22+'BP Financier'!$E$22+'BP Financier'!$F$16+'BP Financier'!$F$19+'BP Financier'!$F$22))*$V6188*Y6188/(1-$W6188)","v":{"v":23409.439419256538,"d":"23,409"}},{"$f":"'BP Financier'!$F$44*(('BP Financier'!$C$16+'BP Financier'!$D$16+'BP Financier'!$E$16+'BP Financier'!$F$16)/('BP Financier'!$C$16+'BP Financier'!$C$19+'BP Financier'!$D$16+'BP Financier'!$D$19+'BP Financier'!$E$16+'BP Financier'!$E$19+'BP Financier'!$C$22+'BP Financier'!$D$22+'BP Financier'!$E$22+'BP Financier'!$F$16+'BP Financier'!$F$19+'BP Financier'!$F$22))*$V6188*Z6188/(1-$W6188)","v":{"v":183212.72008294167,"d":"183,213"}},{"$f":"'BP Financier'!$F$44*(('BP Financier'!$C$16+'BP Financier'!$D$16+'BP Financier'!$E$16+'BP Financier'!$F$16)/('BP Financier'!$C$16+'BP Financier'!$C$19+'BP Financier'!$D$16+'BP Financier'!$D$19+'BP Financier'!$E$16+'BP Financier'!$E$19+'BP Financier'!$C$22+'BP Financier'!$D$22+'BP Financier'!$E$22+'BP Financier'!$F$16+'BP Financier'!$F$19+'BP Financier'!$F$22))*$V6188*AA6188/(1-$W6188)","v":{"v":22635.573653330703,"d":"22,636"}},{"$f":"'BP Financier'!$F$44*(('BP Financier'!$C$16+'BP Financier'!$D$16+'BP Financier'!$E$16+'BP Financier'!$F$16)/('BP Financier'!$C$16+'BP Financier'!$C$19+'BP Financier'!$D$16+'BP Financier'!$D$19+'BP Financier'!$E$16+'BP Financier'!$E$19+'BP Financier'!$C$22+'BP Financier'!$D$22+'BP Financier'!$E$22+'BP Financier'!$F$16+'BP Financier'!$F$19+'BP Financier'!$F$22))*$V6188*AB6188/(1-$W6188)","v":{"v":10834.120722961703,"d":"10,834"}},null,{"v":1.25E-3,"d":"0.13%"},{"$f":"Actif!$E$28/100","v":{"v":0.28900000000000003,"d":"28.90%"}},{"$f":"Actif!$E$30/100","v":{"v":0.09050000000000001,"d":"9.05%"}},{"$f":"Actif!$E$31/100","v":{"v":0.0605,"d":"6.05%"}},{"$f":"Actif!$E$32/100","v":{"v":0.47350000000000003,"d":"47.35%"}},{"$f":"Actif!$E$33/100","v":{"v":0.0585,"d":"5.85%"}},{"$f":"Actif!$E$29/100","v":{"v":0.027999999999999997,"d":"2.80%"}}]
[null,"#82",38,2028,"F","A_VIE",{"v":0.44999999999999996,"d":"0.45"},{"v":0.38999999999999996,"d":"0.39"},0.6,0.6,85,0,{"$f":"ROUND(Primes!$P$4*V6189,0)","v":12},{"$f":"'BP Financier'!$F$33*(('BP Financier'!$C$16+'BP Financier'!$D$16+'BP Financier'!$E$16+'BP Financier'!$F$16)/('BP Financier'!$C$16+'BP Financier'!$C$19+'BP Financier'!$D$16+'BP Financier'!$D$19+'BP Financier'!$E$16+'BP Financier'!$E$19+'BP Financier'!$F$16+'BP Financier'!$F$19))*V6189","v":{"v":484971.6977773321,"d":"484,972"}},{"v":275109.2797866347,"d":"275,109"},{"$f":"'BP Financier'!$F$44*(('BP Financier'!$C$16+'BP Financier'!$D$16+'BP Financier'!$E$16+'BP Financier'!$F$16)/('BP Financier'!$C$16+'BP Financier'!$C$19+'BP Financier'!$D$16+'BP Financier'!$D$19+'BP Financier'!$E$16+'BP Financier'!$E$19+'BP Financier'!$C$22+'BP Financier'!$D$22+'BP Financier'!$E$22+'BP Financier'!$F$16+'BP Financier'!$F$19+'BP Financier'!$F$22))*$V6189*X6189/(1-$W6189)","v":{"v":35017.42590814408,"d":"35,017"}},{"$f":"'BP Financier'!$F$44*(('BP Financier'!$C$16+'BP Financier'!$D$16+'BP Financier'!$E$16+'BP Financier'!$F$16)/('BP Financier'!$C$16+'BP Financier'!$C$19+'BP Financier'!$D$16+'BP Financier'!$D$19+'BP Financier'!$E$16+'BP Financier'!$E$19+'BP Financier'!$C$22+'BP Financier'!$D$22+'BP Financier'!$E$22+'BP Financier'!$F$16+'BP Financier'!$F$19+'BP Financier'!$F$22))*$V6189*Y6189/(1-$W6189)","v":{"v":23409.439419256538,"d":"23,409"}},{"$f":"'BP Financier'!$F$44*(('BP Financier'!$C$16+'BP Financier'!$D$16+'BP Financier'!$E$16+'BP Financier'!$F$16)/('BP Financier'!$C$16+'BP Financier'!$C$19+'BP Financier'!$D$16+'BP Financier'!$D$19+'BP Financier'!$E$16+'BP Financier'!$E$19+'BP Financier'!$C$22+'BP Financier'!$D$22+'BP Financier'!$E$22+'BP Financier'!$F$16+'BP Financier'!$F$19+'BP Financier'!$F$22))*$V6189*Z6189/(1-$W6189)","v":{"v":183212.72008294167,"d":"183,213"}},{"$f":"'BP Financier'!$F$44*(('BP Financier'!$C$16+'BP Financier'!$D$16+'BP Financier'!$E$16+'BP Financier'!$F$16)/('BP Financier'!$C$16+'BP Financier'!$C$19+'BP Financier'!$D$16+'BP Financier'!$D$19+'BP Financier'!$E$16+'BP Financier'!$E$19+'BP Financier'!$C$22+'BP Financier'!$D$22+'BP Financier'!$E$22+'BP Financier'!$F$16+'BP Financier'!$F$19+'BP Financier'!$F$22))*$V6189*AA6189/(1-$W6189)","v":{"v":22635.573653330703,"d":"22,636"}},{"$f":"'BP Financier'!$F$44*(('BP Financier'!$C$16+'BP Financier'!$D$16+'BP Financier'!$E$16+'BP Financier'!$F$16)/('BP Financier'!$C$16+'BP Financier'!$C$19+'BP Financier'!$D$16+'BP Financier'!$D$19+'BP Financier'!$E$16+'BP Financier'!$E$19+'BP Financier'!$C$22+'BP Financier'!$D$22+'BP Financier'!$E$22+'BP Financier'!$F$16+'BP Financier'!$F$19+'BP Financier'!$F$22))*$V6189*AB6189/(1-$W6189)","v":{"v":10834.120722961703,"d":"10,834"}},null,{"v":1.25E-3,"d":"0.13%"},{"$f":"Actif!$E$28/100","v":{"v":0.28900000000000003,"d":"28.90%"}},{"$f":"Actif!$E$30/100","v":{"v":0.09050000000000001,"d":"9.05%"}},{"$f":"Actif!$E$31/100","v":{"v":0.0605,"d":"6.05%"}},{"$f":"Actif!$E$32/100","v":{"v":0.47350000000000003,"d":"47.35%"}},{"$f":"Actif!$E$33/100","v":{"v":0.0585,"d":"5.85%"}},{"$f":"Actif!$E$29/100","v":{"v":0.027999999999999997,"d":"2.80%"}}]
[null,"#83",38,2029,"F","A_VIE",{"v":0.44999999999999996,"d":"0.45"},{"v":0.38999999999999996,"d":"0.39"},0.6,0.6,85,0,{"$f":"ROUND(Primes!$P$4*V6190,0)","v":12},{"$f":"'BP Financier'!$F$33*(('BP Financier'!$C$16+'BP Financier'!$D$16+'BP Financier'!$E$16+'BP Financier'!$F$16)/('BP Financier'!$C$16+'BP Financier'!$C$19+'BP Financier'!$D$16+'BP Financier'!$D$19+'BP Financier'!$E$16+'BP Financier'!$E$19+'BP Financier'!$F$16+'BP Financier'!$F$19))*V6190","v":{"v":484971.6977773321,"d":"484,972"}},{"v":275109.2797866347,"d":"275,109"},{"$f":"'BP Financier'!$F$44*(('BP Financier'!$C$16+'BP Financier'!$D$16+'BP Financier'!$E$16+'BP Financier'!$F$16)/('BP Financier'!$C$16+'BP Financier'!$C$19+'BP Financier'!$D$16+'BP Financier'!$D$19+'BP Financier'!$E$16+'BP Financier'!$E$19+'BP Financier'!$C$22+'BP Financier'!$D$22+'BP Financier'!$E$22+'BP Financier'!$F$16+'BP Financier'!$F$19+'BP Financier'!$F$22))*$V6190*X6190/(1-$W6190)","v":{"v":35017.42590814408,"d":"35,017"}},{"$f":"'BP Financier'!$F$44*(('BP Financier'!$C$16+'BP Financier'!$D$16+'BP Financier'!$E$16+'BP Financier'!$F$16)/('BP Financier'!$C$16+'BP Financier'!$C$19+'BP Financier'!$D$16+'BP Financier'!$D$19+'BP Financier'!$E$16+'BP Financier'!$E$19+'BP Financier'!$C$22+'BP Financier'!$D$22+'BP Financier'!$E$22+'BP Financier'!$F$16+'BP Financier'!$F$19+'BP Financier'!$F$22))*$V6190*Y6190/(1-$W6190)","v":{"v":23409.439419256538,"d":"23,409"}},{"$f":"'BP Financier'!$F$44*(('BP Financier'!$C$16+'BP Financier'!$D$16+'BP Financier'!$E$16+'BP Financier'!$F$16)/('BP Financier'!$C$16+'BP Financier'!$C$19+'BP Financier'!$D$16+'BP Financier'!$D$19+'BP Financier'!$E$16+'BP Financier'!$E$19+'BP Financier'!$C$22+'BP Financier'!$D$22+'BP Financier'!$E$22+'BP Financier'!$F$16+'BP Financier'!$F$19+'BP Financier'!$F$22))*$V6190*Z6190/(1-$W6190)","v":{"v":183212.72008294167,"d":"183,213"}},{"$f":"'BP Financier'!$F$44*(('BP Financier'!$C$16+'BP Financier'!$D$16+'BP Financier'!$E$16+'BP Financier'!$F$16)/('BP Financier'!$C$16+'BP Financier'!$C$19+'BP Financier'!$D$16+'BP Financier'!$D$19+'BP Financier'!$E$16+'BP Financier'!$E$19+'BP Financier'!$C$22+'BP Financier'!$D$22+'BP Financier'!$E$22+'BP Financier'!$F$16+'BP Financier'!$F$19+'BP Financier'!$F$22))*$V6190*AA6190/(1-$W6190)","v":{"v":22635.573653330703,"d":"22,636"}},{"$f":"'BP Financier'!$F$44*(('BP Financier'!$C$16+'BP Financier'!$D$16+'BP Financier'!$E$16+'BP Financier'!$F$16)/('BP Financier'!$C$16+'BP Financier'!$C$19+'BP Financier'!$D$16+'BP Financier'!$D$19+'BP Financier'!$E$16+'BP Financier'!$E$19+'BP Financier'!$C$22+'BP Financier'!$D$22+'BP Financier'!$E$22+'BP Financier'!$F$16+'BP Financier'!$F$19+'BP Financier'!$F$22))*$V6190*AB6190/(1-$W6190)","v":{"v":10834.120722961703,"d":"10,834"}},null,{"v":1.25E-3,"d":"0.13%"},{"$f":"Actif!$E$28/100","v":{"v":0.28900000000000003,"d":"28.90%"}},{"$f":"Actif!$E$30/100","v":{"v":0.09050000000000001,"d":"9.05%"}},{"$f":"Actif!$E$31/100","v":{"v":0.0605,"d":"6.05%"}},{"$f":"Actif!$E$32/100","v":{"v":0.47350000000000003,"d":"47.35%"}},{"$f":"Actif!$E$33/100","v":{"v":0.0585,"d":"5.85%"}},{"$f":"Actif!$E$29/100","v":{"v":0.027999999999999997,"d":"2.80%"}}]
[null,"#84",38,2030,"F","A_VIE",{"v":0.44999999999999996,"d":"0.45"},{"v":0.38999999999999996,"d":"0.39"},0.6,0.6,85,0,{"$f":"ROUND(Primes!$P$4*V6191,0)","v":12},{"$f":"'BP Financier'!$F$33*(('BP Financier'!$C$16+'BP Financier'!$D$16+'BP Financier'!$E$16+'BP Financier'!$F$16)/('BP Financier'!$C$16+'BP Financier'!$C$19+'BP Financier'!$D$16+'BP Financier'!$D$19+'BP Financier'!$E$16+'BP Financier'!$E$19+'BP Financier'!$F$16+'BP Financier'!$F$19))*V6191","v":{"v":484971.6977773321,"d":"484,972"}},{"v":275109.2797866347,"d":"275,109"},{"$f":"'BP Financier'!$F$44*(('BP Financier'!$C$16+'BP Financier'!$D$16+'BP Financier'!$E$16+'BP Financier'!$F$16)/('BP Financier'!$C$16+'BP Financier'!$C$19+'BP Financier'!$D$16+'BP Financier'!$D$19+'BP Financier'!$E$16+'BP Financier'!$E$19+'BP Financier'!$C$22+'BP Financier'!$D$22+'BP Financier'!$E$22+'BP Financier'!$F$16+'BP Financier'!$F$19+'BP Financier'!$F$22))*$V6191*X6191/(1-$W6191)","v":{"v":35017.42590814408,"d":"35,017"}},{"$f":"'BP Financier'!$F$44*(('BP Financier'!$C$16+'BP Financier'!$D$16+'BP Financier'!$E$16+'BP Financier'!$F$16)/('BP Financier'!$C$16+'BP Financier'!$C$19+'BP Financier'!$D$16+'BP Financier'!$D$19+'BP Financier'!$E$16+'BP Financier'!$E$19+'BP Financier'!$C$22+'BP Financier'!$D$22+'BP Financier'!$E$22+'BP Financier'!$F$16+'BP Financier'!$F$19+'BP Financier'!$F$22))*$V6191*Y6191/(1-$W6191)","v":{"v":23409.439419256538,"d":"23,409"}},{"$f":"'BP Financier'!$F$44*(('BP Financier'!$C$16+'BP Financier'!$D$16+'BP Financier'!$E$16+'BP Financier'!$F$16)/('BP Financier'!$C$16+'BP Financier'!$C$19+'BP Financier'!$D$16+'BP Financier'!$D$19+'BP Financier'!$E$16+'BP Financier'!$E$19+'BP Financier'!$C$22+'BP Financier'!$D$22+'BP Financier'!$E$22+'BP Financier'!$F$16+'BP Financier'!$F$19+'BP Financier'!$F$22))*$V6191*Z6191/(1-$W6191)","v":{"v":183212.72008294167,"d":"183,213"}},{"$f":"'BP Financier'!$F$44*(('BP Financier'!$C$16+'BP Financier'!$D$16+'BP Financier'!$E$16+'BP Financier'!$F$16)/('BP Financier'!$C$16+'BP Financier'!$C$19+'BP Financier'!$D$16+'BP Financier'!$D$19+'BP Financier'!$E$16+'BP Financier'!$E$19+'BP Financier'!$C$22+'BP Financier'!$D$22+'BP Financier'!$E$22+'BP Financier'!$F$16+'BP Financier'!$F$19+'BP Financier'!$F$22))*$V6191*AA6191/(1-$W6191)","v":{"v":22635.573653330703,"d":"22,636"}},{"$f":"'BP Financier'!$F$44*(('BP Financier'!$C$16+'BP Financier'!$D$16+'BP Financier'!$E$16+'BP Financier'!$F$16)/('BP Financier'!$C$16+'BP Financier'!$C$19+'BP Financier'!$D$16+'BP Financier'!$D$19+'BP Financier'!$E$16+'BP Financier'!$E$19+'BP Financier'!$C$22+'BP Financier'!$D$22+'BP Financier'!$E$22+'BP Financier'!$F$16+'BP Financier'!$F$19+'BP Financier'!$F$22))*$V6191*AB6191/(1-$W6191)","v":{"v":10834.120722961703,"d":"10,834"}},null,{"v":1.25E-3,"d":"0.13%"},{"$f":"Actif!$E$28/100","v":{"v":0.28900000000000003,"d":"28.90%"}},{"$f":"Actif!$E$30/100","v":{"v":0.09050000000000001,"d":"9.05%"}},{"$f":"Actif!$E$31/100","v":{"v":0.0605,"d":"6.05%"}},{"$f":"Actif!$E$32/100","v":{"v":0.47350000000000003,"d":"47.35%"}},{"$f":"Actif!$E$33/100","v":{"v":0.0585,"d":"5.85%"}},{"$f":"Actif!$E$29/100","v":{"v":0.027999999999999997,"d":"2.80%"}}]
[null,"#85",39,2026,"H","A_VIE",{"v":0.44999999999999996,"d":"0.45"},{"v":0.38999999999999996,"d":"0.39"},0.6,0.6,85,0,{"$f":"ROUND(Primes!$P$4*V6192,0)","v":12},{"$f":"'BP Financier'!$F$33*(('BP Financier'!$C$16+'BP Financier'!$D$16+'BP Financier'!$E$16+'BP Financier'!$F$16)/('BP Financier'!$C$16+'BP Financier'!$C$19+'BP Financier'!$D$16+'BP Financier'!$D$19+'BP Financier'!$E$16+'BP Financier'!$E$19+'BP Financier'!$F$16+'BP Financier'!$F$19))*V6192","v":{"v":484971.6977773321,"d":"484,972"}},{"v":275109.2797866347,"d":"275,109"},{"$f":"'BP Financier'!$F$44*(('BP Financier'!$C$16+'BP Financier'!$D$16+'BP Financier'!$E$16+'BP Financier'!$F$16)/('BP Financier'!$C$16+'BP Financier'!$C$19+'BP Financier'!$D$16+'BP Financier'!$D$19+'BP Financier'!$E$16+'BP Financier'!$E$19+'BP Financier'!$C$22+'BP Financier'!$D$22+'BP Financier'!$E$22+'BP Financier'!$F$16+'BP Financier'!$F$19+'BP Financier'!$F$22))*$V6192*X6192/(1-$W6192)","v":{"v":35017.42590814408,"d":"35,017"}},{"$f":"'BP Financier'!$F$44*(('BP Financier'!$C$16+'BP Financier'!$D$16+'BP Financier'!$E$16+'BP Financier'!$F$16)/('BP Financier'!$C$16+'BP Financier'!$C$19+'BP Financier'!$D$16+'BP Financier'!$D$19+'BP Financier'!$E$16+'BP Financier'!$E$19+'BP Financier'!$C$22+'BP Financier'!$D$22+'BP Financier'!$E$22+'BP Financier'!$F$16+'BP Financier'!$F$19+'BP Financier'!$F$22))*$V6192*Y6192/(1-$W6192)","v":{"v":23409.439419256538,"d":"23,409"}},{"$f":"'BP Financier'!$F$44*(('BP Financier'!$C$16+'BP Financier'!$D$16+'BP Financier'!$E$16+'BP Financier'!$F$16)/('BP Financier'!$C$16+'BP Financier'!$C$19+'BP Financier'!$D$16+'BP Financier'!$D$19+'BP Financier'!$E$16+'BP Financier'!$E$19+'BP Financier'!$C$22+'BP Financier'!$D$22+'BP Financier'!$E$22+'BP Financier'!$F$16+'BP Financier'!$F$19+'BP Financier'!$F$22))*$V6192*Z6192/(1-$W6192)","v":{"v":183212.72008294167,"d":"183,213"}},{"$f":"'BP Financier'!$F$44*(('BP Financier'!$C$16+'BP Financier'!$D$16+'BP Financier'!$E$16+'BP Financier'!$F$16)/('BP Financier'!$C$16+'BP Financier'!$C$19+'BP Financier'!$D$16+'BP Financier'!$D$19+'BP Financier'!$E$16+'BP Financier'!$E$19+'BP Financier'!$C$22+'BP Financier'!$D$22+'BP Financier'!$E$22+'BP Financier'!$F$16+'BP Financier'!$F$19+'BP Financier'!$F$22))*$V6192*AA6192/(1-$W6192)","v":{"v":22635.573653330703,"d":"22,636"}},{"$f":"'BP Financier'!$F$44*(('BP Financier'!$C$16+'BP Financier'!$D$16+'BP Financier'!$E$16+'BP Financier'!$F$16)/('BP Financier'!$C$16+'BP Financier'!$C$19+'BP Financier'!$D$16+'BP Financier'!$D$19+'BP Financier'!$E$16+'BP Financier'!$E$19+'BP Financier'!$C$22+'BP Financier'!$D$22+'BP Financier'!$E$22+'BP Financier'!$F$16+'BP Financier'!$F$19+'BP Financier'!$F$22))*$V6192*AB6192/(1-$W6192)","v":{"v":10834.120722961703,"d":"10,834"}},null,{"v":1.25E-3,"d":"0.13%"},{"$f":"Actif!$E$28/100","v":{"v":0.28900000000000003,"d":"28.90%"}},{"$f":"Actif!$E$30/100","v":{"v":0.09050000000000001,"d":"9.05%"}},{"$f":"Actif!$E$31/100","v":{"v":0.0605,"d":"6.05%"}},{"$f":"Actif!$E$32/100","v":{"v":0.47350000000000003,"d":"47.35%"}},{"$f":"Actif!$E$33/100","v":{"v":0.0585,"d":"5.85%"}},{"$f":"Actif!$E$29/100","v":{"v":0.027999999999999997,"d":"2.80%"}}]
[null,"#86",39,2028,"H","A_VIE",{"$f":"frais_gestion_Euro*100","v":{"v":0.44999999999999996,"d":"0.45"}},{"$f":"frais_gestion_UC*100","v":{"v":0.38999999999999996,"d":"0.39"}},{"$f":"frais_distribution_FG*100","v":0.6},{"$f":"frais_distribution_UC*100","v":0.6},85,0,{"$f":"ROUND(Primes!$P$4*V6193,0)","v":12},{"$f":"'BP Financier'!$F$33*(('BP Financier'!$C$16+'BP Financier'!$D$16+'BP Financier'!$E$16+'BP Financier'!$F$16)/('BP Financier'!$C$16+'BP Financier'!$C$19+'BP Financier'!$D$16+'BP Financier'!$D$19+'BP Financier'!$E$16+'BP Financier'!$E$19+'BP Financier'!$F$16+'BP Financier'!$F$19))*V6193","v":{"v":484971.6977773321,"d":"484,972"}},{"v":275109.2797866347,"d":"275,109"},{"$f":"'BP Financier'!$F$44*(('BP Financier'!$C$16+'BP Financier'!$D$16+'BP Financier'!$E$16+'BP Financier'!$F$16)/('BP Financier'!$C$16+'BP Financier'!$C$19+'BP Financier'!$D$16+'BP Financier'!$D$19+'BP Financier'!$E$16+'BP Financier'!$E$19+'BP Financier'!$C$22+'BP Financier'!$D$22+'BP Financier'!$E$22+'BP Financier'!$F$16+'BP Financier'!$F$19+'BP Financier'!$F$22))*$V6193*X6193/(1-$W6193)","v":{"v":35017.42590814408,"d":"35,017"}},{"$f":"'BP Financier'!$F$44*(('BP Financier'!$C$16+'BP Financier'!$D$16+'BP Financier'!$E$16+'BP Financier'!$F$16)/('BP Financier'!$C$16+'BP Financier'!$C$19+'BP Financier'!$D$16+'BP Financier'!$D$19+'BP Financier'!$E$16+'BP Financier'!$E$19+'BP Financier'!$C$22+'BP Financier'!$D$22+'BP Financier'!$E$22+'BP Financier'!$F$16+'BP Financier'!$F$19+'BP Financier'!$F$22))*$V6193*Y6193/(1-$W6193)","v":{"v":23409.439419256538,"d":"23,409"}},{"$f":"'BP Financier'!$F$44*(('BP Financier'!$C$16+'BP Financier'!$D$16+'BP Financier'!$E$16+'BP Financier'!$F$16)/('BP Financier'!$C$16+'BP Financier'!$C$19+'BP Financier'!$D$16+'BP Financier'!$D$19+'BP Financier'!$E$16+'BP Financier'!$E$19+'BP Financier'!$C$22+'BP Financier'!$D$22+'BP Financier'!$E$22+'BP Financier'!$F$16+'BP Financier'!$F$19+'BP Financier'!$F$22))*$V6193*Z6193/(1-$W6193)","v":{"v":183212.72008294167,"d":"183,213"}},{"$f":"'BP Financier'!$F$44*(('BP Financier'!$C$16+'BP Financier'!$D$16+'BP Financier'!$E$16+'BP Financier'!$F$16)/('BP Financier'!$C$16+'BP Financier'!$C$19+'BP Financier'!$D$16+'BP Financier'!$D$19+'BP Financier'!$E$16+'BP Financier'!$E$19+'BP Financier'!$C$22+'BP Financier'!$D$22+'BP Financier'!$E$22+'BP Financier'!$F$16+'BP Financier'!$F$19+'BP Financier'!$F$22))*$V6193*AA6193/(1-$W6193)","v":{"v":22635.573653330703,"d":"22,636"}},{"$f":"'BP Financier'!$F$44*(('BP Financier'!$C$16+'BP Financier'!$D$16+'BP Financier'!$E$16+'BP Financier'!$F$16)/('BP Financier'!$C$16+'BP Financier'!$C$19+'BP Financier'!$D$16+'BP Financier'!$D$19+'BP Financier'!$E$16+'BP Financier'!$E$19+'BP Financier'!$C$22+'BP Financier'!$D$22+'BP Financier'!$E$22+'BP Financier'!$F$16+'BP Financier'!$F$19+'BP Financier'!$F$22))*$V6193*AB6193/(1-$W6193)","v":{"v":10834.120722961703,"d":"10,834"}},null,{"v":1.25E-3,"d":"0.13%"},{"$f":"Actif!$E$28/100","v":{"v":0.28900000000000003,"d":"28.90%"}},{"$f":"Actif!$E$30/100","v":{"v":0.09050000000000001,"d":"9.05%"}},{"$f":"Actif!$E$31/100","v":{"v":0.0605,"d":"6.05%"}},{"$f":"Actif!$E$32/100","v":{"v":0.47350000000000003,"d":"47.35%"}},{"$f":"Actif!$E$33/100","v":{"v":0.0585,"d":"5.85%"}},{"$f":"Actif!$E$29/100","v":{"v":0.027999999999999997,"d":"2.80%"}}]
[null,"#87",39,2029,"H","A_VIE",{"v":0.44999999999999996,"d":"0.45"},{"v":0.38999999999999996,"d":"0.39"},0.6,0.6,85,0,{"$f":"ROUND(Primes!$P$4*V6194,0)","v":12},{"$f":"'BP Financier'!$F$33*(('BP Financier'!$C$16+'BP Financier'!$D$16+'BP Financier'!$E$16+'BP Financier'!$F$16)/('BP Financier'!$C$16+'BP Financier'!$C$19+'BP Financier'!$D$16+'BP Financier'!$D$19+'BP Financier'!$E$16+'BP Financier'!$E$19+'BP Financier'!$F$16+'BP Financier'!$F$19))*V6194","v":{"v":484971.6977773321,"d":"484,972"}},{"$f":"SUM(P6194:T6194)","v":{"v":275109.2797866347,"d":"275,109"}},{"$f":"'BP Financier'!$F$44*(('BP Financier'!$C$16+'BP Financier'!$D$16+'BP Financier'!$E$16+'BP Financier'!$F$16)/('BP Financier'!$C$16+'BP Financier'!$C$19+'BP Financier'!$D$16+'BP Financier'!$D$19+'BP Financier'!$E$16+'BP Financier'!$E$19+'BP Financier'!$C$22+'BP Financier'!$D$22+'BP Financier'!$E$22+'BP Financier'!$F$16+'BP Financier'!$F$19+'BP Financier'!$F$22))*$V6194*X6194/(1-$W6194)","v":{"v":35017.42590814408,"d":"35,017"}},{"$f":"'BP Financier'!$F$44*(('BP Financier'!$C$16+'BP Financier'!$D$16+'BP Financier'!$E$16+'BP Financier'!$F$16)/('BP Financier'!$C$16+'BP Financier'!$C$19+'BP Financier'!$D$16+'BP Financier'!$D$19+'BP Financier'!$E$16+'BP Financier'!$E$19+'BP Financier'!$C$22+'BP Financier'!$D$22+'BP Financier'!$E$22+'BP Financier'!$F$16+'BP Financier'!$F$19+'BP Financier'!$F$22))*$V6194*Y6194/(1-$W6194)","v":{"v":23409.439419256538,"d":"23,409"}},{"$f":"'BP Financier'!$F$44*(('BP Financier'!$C$16+'BP Financier'!$D$16+'BP Financier'!$E$16+'BP Financier'!$F$16)/('BP Financier'!$C$16+'BP Financier'!$C$19+'BP Financier'!$D$16+'BP Financier'!$D$19+'BP Financier'!$E$16+'BP Financier'!$E$19+'BP Financier'!$C$22+'BP Financier'!$D$22+'BP Financier'!$E$22+'BP Financier'!$F$16+'BP Financier'!$F$19+'BP Financier'!$F$22))*$V6194*Z6194/(1-$W6194)","v":{"v":183212.72008294167,"d":"183,213"}},{"$f":"'BP Financier'!$F$44*(('BP Financier'!$C$16+'BP Financier'!$D$16+'BP Financier'!$E$16+'BP Financier'!$F$16)/('BP Financier'!$C$16+'BP Financier'!$C$19+'BP Financier'!$D$16+'BP Financier'!$D$19+'BP Financier'!$E$16+'BP Financier'!$E$19+'BP Financier'!$C$22+'BP Financier'!$D$22+'BP Financier'!$E$22+'BP Financier'!$F$16+'BP Financier'!$F$19+'BP Financier'!$F$22))*$V6194*AA6194/(1-$W6194)","v":{"v":22635.573653330703,"d":"22,636"}},{"$f":"'BP Financier'!$F$44*(('BP Financier'!$C$16+'BP Financier'!$D$16+'BP Financier'!$E$16+'BP Financier'!$F$16)/('BP Financier'!$C$16+'BP Financier'!$C$19+'BP Financier'!$D$16+'BP Financier'!$D$19+'BP Financier'!$E$16+'BP Financier'!$E$19+'BP Financier'!$C$22+'BP Financier'!$D$22+'BP Financier'!$E$22+'BP Financier'!$F$16+'BP Financier'!$F$19+'BP Financier'!$F$22))*$V6194*AB6194/(1-$W6194)","v":{"v":10834.120722961703,"d":"10,834"}},null,{"v":1.25E-3,"d":"0.13%"},{"$f":"Actif!$E$28/100","v":{"v":0.28900000000000003,"d":"28.90%"}},{"$f":"Actif!$E$30/100","v":{"v":0.09050000000000001,"d":"9.05%"}},{"$f":"Actif!$E$31/100","v":{"v":0.0605,"d":"6.05%"}},{"$f":"Actif!$E$32/100","v":{"v":0.47350000000000003,"d":"47.35%"}},{"$f":"Actif!$E$33/100","v":{"v":0.0585,"d":"5.85%"}},{"$f":"Actif!$E$29/100","v":{"v":0.027999999999999997,"d":"2.80%"}}]
[null,"#88",39,2030,"H","A_VIE",{"v":0.44999999999999996,"d":"0.45"},{"v":0.38999999999999996,"d":"0.39"},0.6,0.6,85,0,{"$f":"ROUND(Primes!$P$4*V6195,0)","v":12},{"$f":"'BP Financier'!$F$33*(('BP Financier'!$C$16+'BP Financier'!$D$16+'BP Financier'!$E$16+'BP Financier'!$F$16)/('BP Financier'!$C$16+'BP Financier'!$C$19+'BP Financier'!$D$16+'BP Financier'!$D$19+'BP Financier'!$E$16+'BP Financier'!$E$19+'BP Financier'!$F$16+'BP Financier'!$F$19))*V6195","v":{"v":484971.6977773321,"d":"484,972"}},{"v":275109.2797866347,"d":"275,109"},{"$f":"'BP Financier'!$F$44*(('BP Financier'!$C$16+'BP Financier'!$D$16+'BP Financier'!$E$16+'BP Financier'!$F$16)/('BP Financier'!$C$16+'BP Financier'!$C$19+'BP Financier'!$D$16+'BP Financier'!$D$19+'BP Financier'!$E$16+'BP Financier'!$E$19+'BP Financier'!$C$22+'BP Financier'!$D$22+'BP Financier'!$E$22+'BP Financier'!$F$16+'BP Financier'!$F$19+'BP Financier'!$F$22))*$V6195*X6195/(1-$W6195)","v":{"v":35017.42590814408,"d":"35,017"}},{"$f":"'BP Financier'!$F$44*(('BP Financier'!$C$16+'BP Financier'!$D$16+'BP Financier'!$E$16+'BP Financier'!$F$16)/('BP Financier'!$C$16+'BP Financier'!$C$19+'BP Financier'!$D$16+'BP Financier'!$D$19+'BP Financier'!$E$16+'BP Financier'!$E$19+'BP Financier'!$C$22+'BP Financier'!$D$22+'BP Financier'!$E$22+'BP Financier'!$F$16+'BP Financier'!$F$19+'BP Financier'!$F$22))*$V6195*Y6195/(1-$W6195)","v":{"v":23409.439419256538,"d":"23,409"}},{"$f":"'BP Financier'!$F$44*(('BP Financier'!$C$16+'BP Financier'!$D$16+'BP Financier'!$E$16+'BP Financier'!$F$16)/('BP Financier'!$C$16+'BP Financier'!$C$19+'BP Financier'!$D$16+'BP Financier'!$D$19+'BP Financier'!$E$16+'BP Financier'!$E$19+'BP Financier'!$C$22+'BP Financier'!$D$22+'BP Financier'!$E$22+'BP Financier'!$F$16+'BP Financier'!$F$19+'BP Financier'!$F$22))*$V6195*Z6195/(1-$W6195)","v":{"v":183212.72008294167,"d":"183,213"}},{"$f":"'BP Financier'!$F$44*(('BP Financier'!$C$16+'BP Financier'!$D$16+'BP Financier'!$E$16+'BP Financier'!$F$16)/('BP Financier'!$C$16+'BP Financier'!$C$19+'BP Financier'!$D$16+'BP Financier'!$D$19+'BP Financier'!$E$16+'BP Financier'!$E$19+'BP Financier'!$C$22+'BP Financier'!$D$22+'BP Financier'!$E$22+'BP Financier'!$F$16+'BP Financier'!$F$19+'BP Financier'!$F$22))*$V6195*AA6195/(1-$W6195)","v":{"v":22635.573653330703,"d":"22,636"}},{"$f":"'BP Financier'!$F$44*(('BP Financier'!$C$16+'BP Financier'!$D$16+'BP Financier'!$E$16+'BP Financier'!$F$16)/('BP Financier'!$C$16+'BP Financier'!$C$19+'BP Financier'!$D$16+'BP Financier'!$D$19+'BP Financier'!$E$16+'BP Financier'!$E$19+'BP Financier'!$C$22+'BP Financier'!$D$22+'BP Financier'!$E$22+'BP Financier'!$F$16+'BP Financier'!$F$19+'BP Financier'!$F$22))*$V6195*AB6195/(1-$W6195)","v":{"v":10834.120722961703,"d":"10,834"}},null,{"v":1.25E-3,"d":"0.13%"},{"$f":"Actif!$E$28/100","v":{"v":0.28900000000000003,"d":"28.90%"}},{"$f":"Actif!$E$30/100","v":{"v":0.09050000000000001,"d":"9.05%"}},{"$f":"Actif!$E$31/100","v":{"v":0.0605,"d":"6.05%"}},{"$f":"Actif!$E$32/100","v":{"v":0.47350000000000003,"d":"47.35%"}},{"$f":"Actif!$E$33/100","v":{"v":0.0585,"d":"5.85%"}},{"$f":"Actif!$E$29/100","v":{"v":0.027999999999999997,"d":"2.80%"}}]
[null,"#89",40,2026,"H","A_VIE",{"v":0.44999999999999996,"d":"0.45"},{"v":0.38999999999999996,"d":"0.39"},0.6,0.6,85,0,{"$f":"ROUND(Primes!$P$4*V6196,0)","v":12},{"$f":"'BP Financier'!$F$33*(('BP Financier'!$C$16+'BP Financier'!$D$16+'BP Financier'!$E$16+'BP Financier'!$F$16)/('BP Financier'!$C$16+'BP Financier'!$C$19+'BP Financier'!$D$16+'BP Financier'!$D$19+'BP Financier'!$E$16+'BP Financier'!$E$19+'BP Financier'!$F$16+'BP Financier'!$F$19))*V6196","v":{"v":484971.6977773321,"d":"484,972"}},{"v":275109.2797866347,"d":"275,109"},{"$f":"'BP Financier'!$F$44*(('BP Financier'!$C$16+'BP Financier'!$D$16+'BP Financier'!$E$16+'BP Financier'!$F$16)/('BP Financier'!$C$16+'BP Financier'!$C$19+'BP Financier'!$D$16+'BP Financier'!$D$19+'BP Financier'!$E$16+'BP Financier'!$E$19+'BP Financier'!$C$22+'BP Financier'!$D$22+'BP Financier'!$E$22+'BP Financier'!$F$16+'BP Financier'!$F$19+'BP Financier'!$F$22))*$V6196*X6196/(1-$W6196)","v":{"v":35017.42590814408,"d":"35,017"}},{"$f":"'BP Financier'!$F$44*(('BP Financier'!$C$16+'BP Financier'!$D$16+'BP Financier'!$E$16+'BP Financier'!$F$16)/('BP Financier'!$C$16+'BP Financier'!$C$19+'BP Financier'!$D$16+'BP Financier'!$D$19+'BP Financier'!$E$16+'BP Financier'!$E$19+'BP Financier'!$C$22+'BP Financier'!$D$22+'BP Financier'!$E$22+'BP Financier'!$F$16+'BP Financier'!$F$19+'BP Financier'!$F$22))*$V6196*Y6196/(1-$W6196)","v":{"v":23409.439419256538,"d":"23,409"}},{"$f":"'BP Financier'!$F$44*(('BP Financier'!$C$16+'BP Financier'!$D$16+'BP Financier'!$E$16+'BP Financier'!$F$16)/('BP Financier'!$C$16+'BP Financier'!$C$19+'BP Financier'!$D$16+'BP Financier'!$D$19+'BP Financier'!$E$16+'BP Financier'!$E$19+'BP Financier'!$C$22+'BP Financier'!$D$22+'BP Financier'!$E$22+'BP Financier'!$F$16+'BP Financier'!$F$19+'BP Financier'!$F$22))*$V6196*Z6196/(1-$W6196)","v":{"v":183212.72008294167,"d":"183,213"}},{"$f":"'BP Financier'!$F$44*(('BP Financier'!$C$16+'BP Financier'!$D$16+'BP Financier'!$E$16+'BP Financier'!$F$16)/('BP Financier'!$C$16+'BP Financier'!$C$19+'BP Financier'!$D$16+'BP Financier'!$D$19+'BP Financier'!$E$16+'BP Financier'!$E$19+'BP Financier'!$C$22+'BP Financier'!$D$22+'BP Financier'!$E$22+'BP Financier'!$F$16+'BP Financier'!$F$19+'BP Financier'!$F$22))*$V6196*AA6196/(1-$W6196)","v":{"v":22635.573653330703,"d":"22,636"}},{"$f":"'BP Financier'!$F$44*(('BP Financier'!$C$16+'BP Financier'!$D$16+'BP Financier'!$E$16+'BP Financier'!$F$16)/('BP Financier'!$C$16+'BP Financier'!$C$19+'BP Financier'!$D$16+'BP Financier'!$D$19+'BP Financier'!$E$16+'BP Financier'!$E$19+'BP Financier'!$C$22+'BP Financier'!$D$22+'BP Financier'!$E$22+'BP Financier'!$F$16+'BP Financier'!$F$19+'BP Financier'!$F$22))*$V6196*AB6196/(1-$W6196)","v":{"v":10834.120722961703,"d":"10,834"}},null,{"v":1.25E-3,"d":"0.13%"},{"$f":"Actif!$E$28/100","v":{"v":0.28900000000000003,"d":"28.90%"}},{"$f":"Actif!$E$30/100","v":{"v":0.09050000000000001,"d":"9.05%"}},{"$f":"Actif!$E$31/100","v":{"v":0.0605,"d":"6.05%"}},{"$f":"Actif!$E$32/100","v":{"v":0.47350000000000003,"d":"47.35%"}},{"$f":"Actif!$E$33/100","v":{"v":0.0585,"d":"5.85%"}},{"$f":"Actif!$E$29/100","v":{"v":0.027999999999999997,"d":"2.80%"}}]
[null,"#90",40,2028,"H","A_VIE",{"v":0.44999999999999996,"d":"0.45"},{"v":0.38999999999999996,"d":"0.39"},0.6,0.6,85,0,{"$f":"ROUND(Primes!$P$4*V6197,0)","v":12},{"$f":"'BP Financier'!$F$33*(('BP Financier'!$C$16+'BP Financier'!$D$16+'BP Financier'!$E$16+'BP Financier'!$F$16)/('BP Financier'!$C$16+'BP Financier'!$C$19+'BP Financier'!$D$16+'BP Financier'!$D$19+'BP Financier'!$E$16+'BP Financier'!$E$19+'BP Financier'!$F$16+'BP Financier'!$F$19))*V6197","v":{"v":484971.6977773321,"d":"484,972"}},{"v":275109.2797866347,"d":"275,109"},{"$f":"'BP Financier'!$F$44*(('BP Financier'!$C$16+'BP Financier'!$D$16+'BP Financier'!$E$16+'BP Financier'!$F$16)/('BP Financier'!$C$16+'BP Financier'!$C$19+'BP Financier'!$D$16+'BP Financier'!$D$19+'BP Financier'!$E$16+'BP Financier'!$E$19+'BP Financier'!$C$22+'BP Financier'!$D$22+'BP Financier'!$E$22+'BP Financier'!$F$16+'BP Financier'!$F$19+'BP Financier'!$F$22))*$V6197*X6197/(1-$W6197)","v":{"v":35017.42590814408,"d":"35,017"}},{"$f":"'BP Financier'!$F$44*(('BP Financier'!$C$16+'BP Financier'!$D$16+'BP Financier'!$E$16+'BP Financier'!$F$16)/('BP Financier'!$C$16+'BP Financier'!$C$19+'BP Financier'!$D$16+'BP Financier'!$D$19+'BP Financier'!$E$16+'BP Financier'!$E$19+'BP Financier'!$C$22+'BP Financier'!$D$22+'BP Financier'!$E$22+'BP Financier'!$F$16+'BP Financier'!$F$19+'BP Financier'!$F$22))*$V6197*Y6197/(1-$W6197)","v":{"v":23409.439419256538,"d":"23,409"}},{"$f":"'BP Financier'!$F$44*(('BP Financier'!$C$16+'BP Financier'!$D$16+'BP Financier'!$E$16+'BP Financier'!$F$16)/('BP Financier'!$C$16+'BP Financier'!$C$19+'BP Financier'!$D$16+'BP Financier'!$D$19+'BP Financier'!$E$16+'BP Financier'!$E$19+'BP Financier'!$C$22+'BP Financier'!$D$22+'BP Financier'!$E$22+'BP Financier'!$F$16+'BP Financier'!$F$19+'BP Financier'!$F$22))*$V6197*Z6197/(1-$W6197)","v":{"v":183212.72008294167,"d":"183,213"}},{"$f":"'BP Financier'!$F$44*(('BP Financier'!$C$16+'BP Financier'!$D$16+'BP Financier'!$E$16+'BP Financier'!$F$16)/('BP Financier'!$C$16+'BP Financier'!$C$19+'BP Financier'!$D$16+'BP Financier'!$D$19+'BP Financier'!$E$16+'BP Financier'!$E$19+'BP Financier'!$C$22+'BP Financier'!$D$22+'BP Financier'!$E$22+'BP Financier'!$F$16+'BP Financier'!$F$19+'BP Financier'!$F$22))*$V6197*AA6197/(1-$W6197)","v":{"v":22635.573653330703,"d":"22,636"}},{"$f":"'BP Financier'!$F$44*(('BP Financier'!$C$16+'BP Financier'!$D$16+'BP Financier'!$E$16+'BP Financier'!$F$16)/('BP Financier'!$C$16+'BP Financier'!$C$19+'BP Financier'!$D$16+'BP Financier'!$D$19+'BP Financier'!$E$16+'BP Financier'!$E$19+'BP Financier'!$C$22+'BP Financier'!$D$22+'BP Financier'!$E$22+'BP Financier'!$F$16+'BP Financier'!$F$19+'BP Financier'!$F$22))*$V6197*AB6197/(1-$W6197)","v":{"v":10834.120722961703,"d":"10,834"}},null,{"v":1.25E-3,"d":"0.13%"},{"$f":"Actif!$E$28/100","v":{"v":0.28900000000000003,"d":"28.90%"}},{"$f":"Actif!$E$30/100","v":{"v":0.09050000000000001,"d":"9.05%"}},{"$f":"Actif!$E$31/100","v":{"v":0.0605,"d":"6.05%"}},{"$f":"Actif!$E$32/100","v":{"v":0.47350000000000003,"d":"47.35%"}},{"$f":"Actif!$E$33/100","v":{"v":0.0585,"d":"5.85%"}},{"$f":"Actif!$E$29/100","v":{"v":0.027999999999999997,"d":"2.80%"}}]
[null,"#91",40,2029,"H","A_VIE",{"v":0.44999999999999996,"d":"0.45"},{"v":0.38999999999999996,"d":"0.39"},0.6,0.6,85,0,{"$f":"ROUND(Primes!$P$4*V6198,0)","v":12},{"$f":"'BP Financier'!$F$33*(('BP Financier'!$C$16+'BP Financier'!$D$16+'BP Financier'!$E$16+'BP Financier'!$F$16)/('BP Financier'!$C$16+'BP Financier'!$C$19+'BP Financier'!$D$16+'BP Financier'!$D$19+'BP Financier'!$E$16+'BP Financier'!$E$19+'BP Financier'!$F$16+'BP Financier'!$F$19))*V6198","v":{"v":484971.6977773321,"d":"484,972"}},{"v":275109.2797866347,"d":"275,109"},{"$f":"'BP Financier'!$F$44*(('BP Financier'!$C$16+'BP Financier'!$D$16+'BP Financier'!$E$16+'BP Financier'!$F$16)/('BP Financier'!$C$16+'BP Financier'!$C$19+'BP Financier'!$D$16+'BP Financier'!$D$19+'BP Financier'!$E$16+'BP Financier'!$E$19+'BP Financier'!$C$22+'BP Financier'!$D$22+'BP Financier'!$E$22+'BP Financier'!$F$16+'BP Financier'!$F$19+'BP Financier'!$F$22))*$V6198*X6198/(1-$W6198)","v":{"v":35017.42590814408,"d":"35,017"}},{"$f":"'BP Financier'!$F$44*(('BP Financier'!$C$16+'BP Financier'!$D$16+'BP Financier'!$E$16+'BP Financier'!$F$16)/('BP Financier'!$C$16+'BP Financier'!$C$19+'BP Financier'!$D$16+'BP Financier'!$D$19+'BP Financier'!$E$16+'BP Financier'!$E$19+'BP Financier'!$C$22+'BP Financier'!$D$22+'BP Financier'!$E$22+'BP Financier'!$F$16+'BP Financier'!$F$19+'BP Financier'!$F$22))*$V6198*Y6198/(1-$W6198)","v":{"v":23409.439419256538,"d":"23,409"}},{"$f":"'BP Financier'!$F$44*(('BP Financier'!$C$16+'BP Financier'!$D$16+'BP Financier'!$E$16+'BP Financier'!$F$16)/('BP Financier'!$C$16+'BP Financier'!$C$19+'BP Financier'!$D$16+'BP Financier'!$D$19+'BP Financier'!$E$16+'BP Financier'!$E$19+'BP Financier'!$C$22+'BP Financier'!$D$22+'BP Financier'!$E$22+'BP Financier'!$F$16+'BP Financier'!$F$19+'BP Financier'!$F$22))*$V6198*Z6198/(1-$W6198)","v":{"v":183212.72008294167,"d":"183,213"}},{"$f":"'BP Financier'!$F$44*(('BP Financier'!$C$16+'BP Financier'!$D$16+'BP Financier'!$E$16+'BP Financier'!$F$16)/('BP Financier'!$C$16+'BP Financier'!$C$19+'BP Financier'!$D$16+'BP Financier'!$D$19+'BP Financier'!$E$16+'BP Financier'!$E$19+'BP Financier'!$C$22+'BP Financier'!$D$22+'BP Financier'!$E$22+'BP Financier'!$F$16+'BP Financier'!$F$19+'BP Financier'!$F$22))*$V6198*AA6198/(1-$W6198)","v":{"v":22635.573653330703,"d":"22,636"}},{"$f":"'BP Financier'!$F$44*(('BP Financier'!$C$16+'BP Financier'!$D$16+'BP Financier'!$E$16+'BP Financier'!$F$16)/('BP Financier'!$C$16+'BP Financier'!$C$19+'BP Financier'!$D$16+'BP Financier'!$D$19+'BP Financier'!$E$16+'BP Financier'!$E$19+'BP Financier'!$C$22+'BP Financier'!$D$22+'BP Financier'!$E$22+'BP Financier'!$F$16+'BP Financier'!$F$19+'BP Financier'!$F$22))*$V6198*AB6198/(1-$W6198)","v":{"v":10834.120722961703,"d":"10,834"}},null,{"v":1.25E-3,"d":"0.13%"},{"$f":"Actif!$E$28/100","v":{"v":0.28900000000000003,"d":"28.90%"}},{"$f":"Actif!$E$30/100","v":{"v":0.09050000000000001,"d":"9.05%"}},{"$f":"Actif!$E$31/100","v":{"v":0.0605,"d":"6.05%"}},{"$f":"Actif!$E$32/100","v":{"v":0.47350000000000003,"d":"47.35%"}},{"$f":"Actif!$E$33/100","v":{"v":0.0585,"d":"5.85%"}},{"$f":"Actif!$E$29/100","v":{"v":0.027999999999999997,"d":"2.80%"}}]
[null,"#92",40,2030,"H","A_VIE",{"v":0.44999999999999996,"d":"0.45"},{"v":0.38999999999999996,"d":"0.39"},0.6,0.6,85,0,{"$f":"ROUND(Primes!$P$4*V6199,0)","v":12},{"$f":"'BP Financier'!$F$33*(('BP Financier'!$C$16+'BP Financier'!$D$16+'BP Financier'!$E$16+'BP Financier'!$F$16)/('BP Financier'!$C$16+'BP Financier'!$C$19+'BP Financier'!$D$16+'BP Financier'!$D$19+'BP Financier'!$E$16+'BP Financier'!$E$19+'BP Financier'!$F$16+'BP Financier'!$F$19))*V6199","v":{"v":484971.6977773321,"d":"484,972"}},{"v":275109.2797866347,"d":"275,109"},{"$f":"'BP Financier'!$F$44*(('BP Financier'!$C$16+'BP Financier'!$D$16+'BP Financier'!$E$16+'BP Financier'!$F$16)/('BP Financier'!$C$16+'BP Financier'!$C$19+'BP Financier'!$D$16+'BP Financier'!$D$19+'BP Financier'!$E$16+'BP Financier'!$E$19+'BP Financier'!$C$22+'BP Financier'!$D$22+'BP Financier'!$E$22+'BP Financier'!$F$16+'BP Financier'!$F$19+'BP Financier'!$F$22))*$V6199*X6199/(1-$W6199)","v":{"v":35017.42590814408,"d":"35,017"}},{"$f":"'BP Financier'!$F$44*(('BP Financier'!$C$16+'BP Financier'!$D$16+'BP Financier'!$E$16+'BP Financier'!$F$16)/('BP Financier'!$C$16+'BP Financier'!$C$19+'BP Financier'!$D$16+'BP Financier'!$D$19+'BP Financier'!$E$16+'BP Financier'!$E$19+'BP Financier'!$C$22+'BP Financier'!$D$22+'BP Financier'!$E$22+'BP Financier'!$F$16+'BP Financier'!$F$19+'BP Financier'!$F$22))*$V6199*Y6199/(1-$W6199)","v":{"v":23409.439419256538,"d":"23,409"}},{"$f":"'BP Financier'!$F$44*(('BP Financier'!$C$16+'BP Financier'!$D$16+'BP Financier'!$E$16+'BP Financier'!$F$16)/('BP Financier'!$C$16+'BP Financier'!$C$19+'BP Financier'!$D$16+'BP Financier'!$D$19+'BP Financier'!$E$16+'BP Financier'!$E$19+'BP Financier'!$C$22+'BP Financier'!$D$22+'BP Financier'!$E$22+'BP Financier'!$F$16+'BP Financier'!$F$19+'BP Financier'!$F$22))*$V6199*Z6199/(1-$W6199)","v":{"v":183212.72008294167,"d":"183,213"}},{"$f":"'BP Financier'!$F$44*(('BP Financier'!$C$16+'BP Financier'!$D$16+'BP Financier'!$E$16+'BP Financier'!$F$16)/('BP Financier'!$C$16+'BP Financier'!$C$19+'BP Financier'!$D$16+'BP Financier'!$D$19+'BP Financier'!$E$16+'BP Financier'!$E$19+'BP Financier'!$C$22+'BP Financier'!$D$22+'BP Financier'!$E$22+'BP Financier'!$F$16+'BP Financier'!$F$19+'BP Financier'!$F$22))*$V6199*AA6199/(1-$W6199)","v":{"v":22635.573653330703,"d":"22,636"}},{"$f":"'BP Financier'!$F$44*(('BP Financier'!$C$16+'BP Financier'!$D$16+'BP Financier'!$E$16+'BP Financier'!$F$16)/('BP Financier'!$C$16+'BP Financier'!$C$19+'BP Financier'!$D$16+'BP Financier'!$D$19+'BP Financier'!$E$16+'BP Financier'!$E$19+'BP Financier'!$C$22+'BP Financier'!$D$22+'BP Financier'!$E$22+'BP Financier'!$F$16+'BP Financier'!$F$19+'BP Financier'!$F$22))*$V6199*AB6199/(1-$W6199)","v":{"v":10834.120722961703,"d":"10,834"}},null,{"v":1.25E-3,"d":"0.13%"},{"$f":"Actif!$E$28/100","v":{"v":0.28900000000000003,"d":"28.90%"}},{"$f":"Actif!$E$30/100","v":{"v":0.09050000000000001,"d":"9.05%"}},{"$f":"Actif!$E$31/100","v":{"v":0.0605,"d":"6.05%"}},{"$f":"Actif!$E$32/100","v":{"v":0.47350000000000003,"d":"47.35%"}},{"$f":"Actif!$E$33/100","v":{"v":0.0585,"d":"5.85%"}},{"$f":"Actif!$E$29/100","v":{"v":0.027999999999999997,"d":"2.80%"}}]
[null,"#93",41,2026,"F","A_VIE",{"v":0.44999999999999996,"d":"0.45"},{"v":0.38999999999999996,"d":"0.39"},0.6,0.6,85,0,{"$f":"ROUND(Primes!$P$4*V6200,0)","v":12},{"$f":"'BP Financier'!$F$33*(('BP Financier'!$C$16+'BP Financier'!$D$16+'BP Financier'!$E$16+'BP Financier'!$F$16)/('BP Financier'!$C$16+'BP Financier'!$C$19+'BP Financier'!$D$16+'BP Financier'!$D$19+'BP Financier'!$E$16+'BP Financier'!$E$19+'BP Financier'!$F$16+'BP Financier'!$F$19))*V6200","v":{"v":484971.6977773321,"d":"484,972"}},{"v":275109.2797866347,"d":"275,109"},{"$f":"'BP Financier'!$F$44*(('BP Financier'!$C$16+'BP Financier'!$D$16+'BP Financier'!$E$16+'BP Financier'!$F$16)/('BP Financier'!$C$16+'BP Financier'!$C$19+'BP Financier'!$D$16+'BP Financier'!$D$19+'BP Financier'!$E$16+'BP Financier'!$E$19+'BP Financier'!$C$22+'BP Financier'!$D$22+'BP Financier'!$E$22+'BP Financier'!$F$16+'BP Financier'!$F$19+'BP Financier'!$F$22))*$V6200*X6200/(1-$W6200)","v":{"v":35017.42590814408,"d":"35,017"}},{"$f":"'BP Financier'!$F$44*(('BP Financier'!$C$16+'BP Financier'!$D$16+'BP Financier'!$E$16+'BP Financier'!$F$16)/('BP Financier'!$C$16+'BP Financier'!$C$19+'BP Financier'!$D$16+'BP Financier'!$D$19+'BP Financier'!$E$16+'BP Financier'!$E$19+'BP Financier'!$C$22+'BP Financier'!$D$22+'BP Financier'!$E$22+'BP Financier'!$F$16+'BP Financier'!$F$19+'BP Financier'!$F$22))*$V6200*Y6200/(1-$W6200)","v":{"v":23409.439419256538,"d":"23,409"}},{"$f":"'BP Financier'!$F$44*(('BP Financier'!$C$16+'BP Financier'!$D$16+'BP Financier'!$E$16+'BP Financier'!$F$16)/('BP Financier'!$C$16+'BP Financier'!$C$19+'BP Financier'!$D$16+'BP Financier'!$D$19+'BP Financier'!$E$16+'BP Financier'!$E$19+'BP Financier'!$C$22+'BP Financier'!$D$22+'BP Financier'!$E$22+'BP Financier'!$F$16+'BP Financier'!$F$19+'BP Financier'!$F$22))*$V6200*Z6200/(1-$W6200)","v":{"v":183212.72008294167,"d":"183,213"}},{"$f":"'BP Financier'!$F$44*(('BP Financier'!$C$16+'BP Financier'!$D$16+'BP Financier'!$E$16+'BP Financier'!$F$16)/('BP Financier'!$C$16+'BP Financier'!$C$19+'BP Financier'!$D$16+'BP Financier'!$D$19+'BP Financier'!$E$16+'BP Financier'!$E$19+'BP Financier'!$C$22+'BP Financier'!$D$22+'BP Financier'!$E$22+'BP Financier'!$F$16+'BP Financier'!$F$19+'BP Financier'!$F$22))*$V6200*AA6200/(1-$W6200)","v":{"v":22635.573653330703,"d":"22,636"}},{"$f":"'BP Financier'!$F$44*(('BP Financier'!$C$16+'BP Financier'!$D$16+'BP Financier'!$E$16+'BP Financier'!$F$16)/('BP Financier'!$C$16+'BP Financier'!$C$19+'BP Financier'!$D$16+'BP Financier'!$D$19+'BP Financier'!$E$16+'BP Financier'!$E$19+'BP Financier'!$C$22+'BP Financier'!$D$22+'BP Financier'!$E$22+'BP Financier'!$F$16+'BP Financier'!$F$19+'BP Financier'!$F$22))*$V6200*AB6200/(1-$W6200)","v":{"v":10834.120722961703,"d":"10,834"}},null,{"v":1.25E-3,"d":"0.13%"},{"$f":"Actif!$E$28/100","v":{"v":0.28900000000000003,"d":"28.90%"}},{"$f":"Actif!$E$30/100","v":{"v":0.09050000000000001,"d":"9.05%"}},{"$f":"Actif!$E$31/100","v":{"v":0.0605,"d":"6.05%"}},{"$f":"Actif!$E$32/100","v":{"v":0.47350000000000003,"d":"47.35%"}},{"$f":"Actif!$E$33/100","v":{"v":0.0585,"d":"5.85%"}},{"$f":"Actif!$E$29/100","v":{"v":0.027999999999999997,"d":"2.80%"}}]
[null,"#94",41,2028,"F","A_VIE",{"v":0.44999999999999996,"d":"0.45"},{"v":0.38999999999999996,"d":"0.39"},0.6,0.6,85,0,{"$f":"ROUND(Primes!$P$4*V6201,0)","v":12},{"$f":"'BP Financier'!$F$33*(('BP Financier'!$C$16+'BP Financier'!$D$16+'BP Financier'!$E$16+'BP Financier'!$F$16)/('BP Financier'!$C$16+'BP Financier'!$C$19+'BP Financier'!$D$16+'BP Financier'!$D$19+'BP Financier'!$E$16+'BP Financier'!$E$19+'BP Financier'!$F$16+'BP Financier'!$F$19))*V6201","v":{"v":484971.6977773321,"d":"484,972"}},{"v":275109.2797866347,"d":"275,109"},{"$f":"'BP Financier'!$F$44*(('BP Financier'!$C$16+'BP Financier'!$D$16+'BP Financier'!$E$16+'BP Financier'!$F$16)/('BP Financier'!$C$16+'BP Financier'!$C$19+'BP Financier'!$D$16+'BP Financier'!$D$19+'BP Financier'!$E$16+'BP Financier'!$E$19+'BP Financier'!$C$22+'BP Financier'!$D$22+'BP Financier'!$E$22+'BP Financier'!$F$16+'BP Financier'!$F$19+'BP Financier'!$F$22))*$V6201*X6201/(1-$W6201)","v":{"v":35017.42590814408,"d":"35,017"}},{"$f":"'BP Financier'!$F$44*(('BP Financier'!$C$16+'BP Financier'!$D$16+'BP Financier'!$E$16+'BP Financier'!$F$16)/('BP Financier'!$C$16+'BP Financier'!$C$19+'BP Financier'!$D$16+'BP Financier'!$D$19+'BP Financier'!$E$16+'BP Financier'!$E$19+'BP Financier'!$C$22+'BP Financier'!$D$22+'BP Financier'!$E$22+'BP Financier'!$F$16+'BP Financier'!$F$19+'BP Financier'!$F$22))*$V6201*Y6201/(1-$W6201)","v":{"v":23409.439419256538,"d":"23,409"}},{"$f":"'BP Financier'!$F$44*(('BP Financier'!$C$16+'BP Financier'!$D$16+'BP Financier'!$E$16+'BP Financier'!$F$16)/('BP Financier'!$C$16+'BP Financier'!$C$19+'BP Financier'!$D$16+'BP Financier'!$D$19+'BP Financier'!$E$16+'BP Financier'!$E$19+'BP Financier'!$C$22+'BP Financier'!$D$22+'BP Financier'!$E$22+'BP Financier'!$F$16+'BP Financier'!$F$19+'BP Financier'!$F$22))*$V6201*Z6201/(1-$W6201)","v":{"v":183212.72008294167,"d":"183,213"}},{"$f":"'BP Financier'!$F$44*(('BP Financier'!$C$16+'BP Financier'!$D$16+'BP Financier'!$E$16+'BP Financier'!$F$16)/('BP Financier'!$C$16+'BP Financier'!$C$19+'BP Financier'!$D$16+'BP Financier'!$D$19+'BP Financier'!$E$16+'BP Financier'!$E$19+'BP Financier'!$C$22+'BP Financier'!$D$22+'BP Financier'!$E$22+'BP Financier'!$F$16+'BP Financier'!$F$19+'BP Financier'!$F$22))*$V6201*AA6201/(1-$W6201)","v":{"v":22635.573653330703,"d":"22,636"}},{"$f":"'BP Financier'!$F$44*(('BP Financier'!$C$16+'BP Financier'!$D$16+'BP Financier'!$E$16+'BP Financier'!$F$16)/('BP Financier'!$C$16+'BP Financier'!$C$19+'BP Financier'!$D$16+'BP Financier'!$D$19+'BP Financier'!$E$16+'BP Financier'!$E$19+'BP Financier'!$C$22+'BP Financier'!$D$22+'BP Financier'!$E$22+'BP Financier'!$F$16+'BP Financier'!$F$19+'BP Financier'!$F$22))*$V6201*AB6201/(1-$W6201)","v":{"v":10834.120722961703,"d":"10,834"}},null,{"v":1.25E-3,"d":"0.13%"},{"$f":"Actif!$E$28/100","v":{"v":0.28900000000000003,"d":"28.90%"}},{"$f":"Actif!$E$30/100","v":{"v":0.09050000000000001,"d":"9.05%"}},{"$f":"Actif!$E$31/100","v":{"v":0.0605,"d":"6.05%"}},{"$f":"Actif!$E$32/100","v":{"v":0.47350000000000003,"d":"47.35%"}},{"$f":"Actif!$E$33/100","v":{"v":0.0585,"d":"5.85%"}},{"$f":"Actif!$E$29/100","v":{"v":0.027999999999999997,"d":"2.80%"}}]
[null,"#95",41,2029,"F","A_VIE",{"v":0.44999999999999996,"d":"0.45"},{"v":0.38999999999999996,"d":"0.39"},0.6,0.6,85,0,{"$f":"ROUND(Primes!$P$4*V6202,0)","v":12},{"$f":"'BP Financier'!$F$33*(('BP Financier'!$C$16+'BP Financier'!$D$16+'BP Financier'!$E$16+'BP Financier'!$F$16)/('BP Financier'!$C$16+'BP Financier'!$C$19+'BP Financier'!$D$16+'BP Financier'!$D$19+'BP Financier'!$E$16+'BP Financier'!$E$19+'BP Financier'!$F$16+'BP Financier'!$F$19))*V6202","v":{"v":484971.6977773321,"d":"484,972"}},{"v":275109.2797866347,"d":"275,109"},{"$f":"'BP Financier'!$F$44*(('BP Financier'!$C$16+'BP Financier'!$D$16+'BP Financier'!$E$16+'BP Financier'!$F$16)/('BP Financier'!$C$16+'BP Financier'!$C$19+'BP Financier'!$D$16+'BP Financier'!$D$19+'BP Financier'!$E$16+'BP Financier'!$E$19+'BP Financier'!$C$22+'BP Financier'!$D$22+'BP Financier'!$E$22+'BP Financier'!$F$16+'BP Financier'!$F$19+'BP Financier'!$F$22))*$V6202*X6202/(1-$W6202)","v":{"v":35017.42590814408,"d":"35,017"}},{"$f":"'BP Financier'!$F$44*(('BP Financier'!$C$16+'BP Financier'!$D$16+'BP Financier'!$E$16+'BP Financier'!$F$16)/('BP Financier'!$C$16+'BP Financier'!$C$19+'BP Financier'!$D$16+'BP Financier'!$D$19+'BP Financier'!$E$16+'BP Financier'!$E$19+'BP Financier'!$C$22+'BP Financier'!$D$22+'BP Financier'!$E$22+'BP Financier'!$F$16+'BP Financier'!$F$19+'BP Financier'!$F$22))*$V6202*Y6202/(1-$W6202)","v":{"v":23409.439419256538,"d":"23,409"}},{"$f":"'BP Financier'!$F$44*(('BP Financier'!$C$16+'BP Financier'!$D$16+'BP Financier'!$E$16+'BP Financier'!$F$16)/('BP Financier'!$C$16+'BP Financier'!$C$19+'BP Financier'!$D$16+'BP Financier'!$D$19+'BP Financier'!$E$16+'BP Financier'!$E$19+'BP Financier'!$C$22+'BP Financier'!$D$22+'BP Financier'!$E$22+'BP Financier'!$F$16+'BP Financier'!$F$19+'BP Financier'!$F$22))*$V6202*Z6202/(1-$W6202)","v":{"v":183212.72008294167,"d":"183,213"}},{"$f":"'BP Financier'!$F$44*(('BP Financier'!$C$16+'BP Financier'!$D$16+'BP Financier'!$E$16+'BP Financier'!$F$16)/('BP Financier'!$C$16+'BP Financier'!$C$19+'BP Financier'!$D$16+'BP Financier'!$D$19+'BP Financier'!$E$16+'BP Financier'!$E$19+'BP Financier'!$C$22+'BP Financier'!$D$22+'BP Financier'!$E$22+'BP Financier'!$F$16+'BP Financier'!$F$19+'BP Financier'!$F$22))*$V6202*AA6202/(1-$W6202)","v":{"v":22635.573653330703,"d":"22,636"}},{"$f":"'BP Financier'!$F$44*(('BP Financier'!$C$16+'BP Financier'!$D$16+'BP Financier'!$E$16+'BP Financier'!$F$16)/('BP Financier'!$C$16+'BP Financier'!$C$19+'BP Financier'!$D$16+'BP Financier'!$D$19+'BP Financier'!$E$16+'BP Financier'!$E$19+'BP Financier'!$C$22+'BP Financier'!$D$22+'BP Financier'!$E$22+'BP Financier'!$F$16+'BP Financier'!$F$19+'BP Financier'!$F$22))*$V6202*AB6202/(1-$W6202)","v":{"v":10834.120722961703,"d":"10,834"}},null,{"v":1.25E-3,"d":"0.13%"},{"$f":"Actif!$E$28/100","v":{"v":0.28900000000000003,"d":"28.90%"}},{"$f":"Actif!$E$30/100","v":{"v":0.09050000000000001,"d":"9.05%"}},{"$f":"Actif!$E$31/100","v":{"v":0.0605,"d":"6.05%"}},{"$f":"Actif!$E$32/100","v":{"v":0.47350000000000003,"d":"47.35%"}},{"$f":"Actif!$E$33/100","v":{"v":0.0585,"d":"5.85%"}},{"$f":"Actif!$E$29/100","v":{"v":0.027999999999999997,"d":"2.80%"}}]
[null,"#96",41,2030,"F","A_VIE",{"v":0.44999999999999996,"d":"0.45"},{"v":0.38999999999999996,"d":"0.39"},0.6,0.6,85,0,{"$f":"ROUND(Primes!$P$4*V6203,0)","v":12},{"$f":"'BP Financier'!$F$33*(('BP Financier'!$C$16+'BP Financier'!$D$16+'BP Financier'!$E$16+'BP Financier'!$F$16)/('BP Financier'!$C$16+'BP Financier'!$C$19+'BP Financier'!$D$16+'BP Financier'!$D$19+'BP Financier'!$E$16+'BP Financier'!$E$19+'BP Financier'!$F$16+'BP Financier'!$F$19))*V6203","v":{"v":484971.6977773321,"d":"484,972"}},{"v":275109.2797866347,"d":"275,109"},{"$f":"'BP Financier'!$F$44*(('BP Financier'!$C$16+'BP Financier'!$D$16+'BP Financier'!$E$16+'BP Financier'!$F$16)/('BP Financier'!$C$16+'BP Financier'!$C$19+'BP Financier'!$D$16+'BP Financier'!$D$19+'BP Financier'!$E$16+'BP Financier'!$E$19+'BP Financier'!$C$22+'BP Financier'!$D$22+'BP Financier'!$E$22+'BP Financier'!$F$16+'BP Financier'!$F$19+'BP Financier'!$F$22))*$V6203*X6203/(1-$W6203)","v":{"v":35017.42590814408,"d":"35,017"}},{"$f":"'BP Financier'!$F$44*(('BP Financier'!$C$16+'BP Financier'!$D$16+'BP Financier'!$E$16+'BP Financier'!$F$16)/('BP Financier'!$C$16+'BP Financier'!$C$19+'BP Financier'!$D$16+'BP Financier'!$D$19+'BP Financier'!$E$16+'BP Financier'!$E$19+'BP Financier'!$C$22+'BP Financier'!$D$22+'BP Financier'!$E$22+'BP Financier'!$F$16+'BP Financier'!$F$19+'BP Financier'!$F$22))*$V6203*Y6203/(1-$W6203)","v":{"v":23409.439419256538,"d":"23,409"}},{"$f":"'BP Financier'!$F$44*(('BP Financier'!$C$16+'BP Financier'!$D$16+'BP Financier'!$E$16+'BP Financier'!$F$16)/('BP Financier'!$C$16+'BP Financier'!$C$19+'BP Financier'!$D$16+'BP Financier'!$D$19+'BP Financier'!$E$16+'BP Financier'!$E$19+'BP Financier'!$C$22+'BP Financier'!$D$22+'BP Financier'!$E$22+'BP Financier'!$F$16+'BP Financier'!$F$19+'BP Financier'!$F$22))*$V6203*Z6203/(1-$W6203)","v":{"v":183212.72008294167,"d":"183,213"}},{"$f":"'BP Financier'!$F$44*(('BP Financier'!$C$16+'BP Financier'!$D$16+'BP Financier'!$E$16+'BP Financier'!$F$16)/('BP Financier'!$C$16+'BP Financier'!$C$19+'BP Financier'!$D$16+'BP Financier'!$D$19+'BP Financier'!$E$16+'BP Financier'!$E$19+'BP Financier'!$C$22+'BP Financier'!$D$22+'BP Financier'!$E$22+'BP Financier'!$F$16+'BP Financier'!$F$19+'BP Financier'!$F$22))*$V6203*AA6203/(1-$W6203)","v":{"v":22635.573653330703,"d":"22,636"}},{"$f":"'BP Financier'!$F$44*(('BP Financier'!$C$16+'BP Financier'!$D$16+'BP Financier'!$E$16+'BP Financier'!$F$16)/('BP Financier'!$C$16+'BP Financier'!$C$19+'BP Financier'!$D$16+'BP Financier'!$D$19+'BP Financier'!$E$16+'BP Financier'!$E$19+'BP Financier'!$C$22+'BP Financier'!$D$22+'BP Financier'!$E$22+'BP Financier'!$F$16+'BP Financier'!$F$19+'BP Financier'!$F$22))*$V6203*AB6203/(1-$W6203)","v":{"v":10834.120722961703,"d":"10,834"}},null,{"v":1.25E-3,"d":"0.13%"},{"$f":"Actif!$E$28/100","v":{"v":0.28900000000000003,"d":"28.90%"}},{"$f":"Actif!$E$30/100","v":{"v":0.09050000000000001,"d":"9.05%"}},{"$f":"Actif!$E$31/100","v":{"v":0.0605,"d":"6.05%"}},{"$f":"Actif!$E$32/100","v":{"v":0.47350000000000003,"d":"47.35%"}},{"$f":"Actif!$E$33/100","v":{"v":0.0585,"d":"5.85%"}},{"$f":"Actif!$E$29/100","v":{"v":0.027999999999999997,"d":"2.80%"}}]
[null,"#97",42,2026,"H","A_VIE",{"v":0.44999999999999996,"d":"0.45"},{"v":0.38999999999999996,"d":"0.39"},0.6,0.6,85,0,{"$f":"ROUND(Primes!$P$4*V6204,0)","v":12},{"$f":"'BP Financier'!$F$33*(('BP Financier'!$C$16+'BP Financier'!$D$16+'BP Financier'!$E$16+'BP Financier'!$F$16)/('BP Financier'!$C$16+'BP Financier'!$C$19+'BP Financier'!$D$16+'BP Financier'!$D$19+'BP Financier'!$E$16+'BP Financier'!$E$19+'BP Financier'!$F$16+'BP Financier'!$F$19))*V6204","v":{"v":484971.6977773321,"d":"484,972"}},{"v":275109.2797866347,"d":"275,109"},{"$f":"'BP Financier'!$F$44*(('BP Financier'!$C$16+'BP Financier'!$D$16+'BP Financier'!$E$16+'BP Financier'!$F$16)/('BP Financier'!$C$16+'BP Financier'!$C$19+'BP Financier'!$D$16+'BP Financier'!$D$19+'BP Financier'!$E$16+'BP Financier'!$E$19+'BP Financier'!$C$22+'BP Financier'!$D$22+'BP Financier'!$E$22+'BP Financier'!$F$16+'BP Financier'!$F$19+'BP Financier'!$F$22))*$V6204*X6204/(1-$W6204)","v":{"v":35017.42590814408,"d":"35,017"}},{"$f":"'BP Financier'!$F$44*(('BP Financier'!$C$16+'BP Financier'!$D$16+'BP Financier'!$E$16+'BP Financier'!$F$16)/('BP Financier'!$C$16+'BP Financier'!$C$19+'BP Financier'!$D$16+'BP Financier'!$D$19+'BP Financier'!$E$16+'BP Financier'!$E$19+'BP Financier'!$C$22+'BP Financier'!$D$22+'BP Financier'!$E$22+'BP Financier'!$F$16+'BP Financier'!$F$19+'BP Financier'!$F$22))*$V6204*Y6204/(1-$W6204)","v":{"v":23409.439419256538,"d":"23,409"}},{"$f":"'BP Financier'!$F$44*(('BP Financier'!$C$16+'BP Financier'!$D$16+'BP Financier'!$E$16+'BP Financier'!$F$16)/('BP Financier'!$C$16+'BP Financier'!$C$19+'BP Financier'!$D$16+'BP Financier'!$D$19+'BP Financier'!$E$16+'BP Financier'!$E$19+'BP Financier'!$C$22+'BP Financier'!$D$22+'BP Financier'!$E$22+'BP Financier'!$F$16+'BP Financier'!$F$19+'BP Financier'!$F$22))*$V6204*Z6204/(1-$W6204)","v":{"v":183212.72008294167,"d":"183,213"}},{"$f":"'BP Financier'!$F$44*(('BP Financier'!$C$16+'BP Financier'!$D$16+'BP Financier'!$E$16+'BP Financier'!$F$16)/('BP Financier'!$C$16+'BP Financier'!$C$19+'BP Financier'!$D$16+'BP Financier'!$D$19+'BP Financier'!$E$16+'BP Financier'!$E$19+'BP Financier'!$C$22+'BP Financier'!$D$22+'BP Financier'!$E$22+'BP Financier'!$F$16+'BP Financier'!$F$19+'BP Financier'!$F$22))*$V6204*AA6204/(1-$W6204)","v":{"v":22635.573653330703,"d":"22,636"}},{"$f":"'BP Financier'!$F$44*(('BP Financier'!$C$16+'BP Financier'!$D$16+'BP Financier'!$E$16+'BP Financier'!$F$16)/('BP Financier'!$C$16+'BP Financier'!$C$19+'BP Financier'!$D$16+'BP Financier'!$D$19+'BP Financier'!$E$16+'BP Financier'!$E$19+'BP Financier'!$C$22+'BP Financier'!$D$22+'BP Financier'!$E$22+'BP Financier'!$F$16+'BP Financier'!$F$19+'BP Financier'!$F$22))*$V6204*AB6204/(1-$W6204)","v":{"v":10834.120722961703,"d":"10,834"}},null,{"v":1.25E-3,"d":"0.13%"},{"$f":"Actif!$E$28/100","v":{"v":0.28900000000000003,"d":"28.90%"}},{"$f":"Actif!$E$30/100","v":{"v":0.09050000000000001,"d":"9.05%"}},{"$f":"Actif!$E$31/100","v":{"v":0.0605,"d":"6.05%"}},{"$f":"Actif!$E$32/100","v":{"v":0.47350000000000003,"d":"47.35%"}},{"$f":"Actif!$E$33/100","v":{"v":0.0585,"d":"5.85%"}},{"$f":"Actif!$E$29/100","v":{"v":0.027999999999999997,"d":"2.80%"}}]
[null,"#98",42,2028,"H","A_VIE",{"v":0.44999999999999996,"d":"0.45"},{"v":0.38999999999999996,"d":"0.39"},0.6,0.6,85,0,{"$f":"ROUND(Primes!$P$4*V6205,0)","v":12},{"$f":"'BP Financier'!$F$33*(('BP Financier'!$C$16+'BP Financier'!$D$16+'BP Financier'!$E$16+'BP Financier'!$F$16)/('BP Financier'!$C$16+'BP Financier'!$C$19+'BP Financier'!$D$16+'BP Financier'!$D$19+'BP Financier'!$E$16+'BP Financier'!$E$19+'BP Financier'!$F$16+'BP Financier'!$F$19))*V6205","v":{"v":484971.6977773321,"d":"484,972"}},{"v":275109.2797866347,"d":"275,109"},{"$f":"'BP Financier'!$F$44*(('BP Financier'!$C$16+'BP Financier'!$D$16+'BP Financier'!$E$16+'BP Financier'!$F$16)/('BP Financier'!$C$16+'BP Financier'!$C$19+'BP Financier'!$D$16+'BP Financier'!$D$19+'BP Financier'!$E$16+'BP Financier'!$E$19+'BP Financier'!$C$22+'BP Financier'!$D$22+'BP Financier'!$E$22+'BP Financier'!$F$16+'BP Financier'!$F$19+'BP Financier'!$F$22))*$V6205*X6205/(1-$W6205)","v":{"v":35017.42590814408,"d":"35,017"}},{"$f":"'BP Financier'!$F$44*(('BP Financier'!$C$16+'BP Financier'!$D$16+'BP Financier'!$E$16+'BP Financier'!$F$16)/('BP Financier'!$C$16+'BP Financier'!$C$19+'BP Financier'!$D$16+'BP Financier'!$D$19+'BP Financier'!$E$16+'BP Financier'!$E$19+'BP Financier'!$C$22+'BP Financier'!$D$22+'BP Financier'!$E$22+'BP Financier'!$F$16+'BP Financier'!$F$19+'BP Financier'!$F$22))*$V6205*Y6205/(1-$W6205)","v":{"v":23409.439419256538,"d":"23,409"}},{"$f":"'BP Financier'!$F$44*(('BP Financier'!$C$16+'BP Financier'!$D$16+'BP Financier'!$E$16+'BP Financier'!$F$16)/('BP Financier'!$C$16+'BP Financier'!$C$19+'BP Financier'!$D$16+'BP Financier'!$D$19+'BP Financier'!$E$16+'BP Financier'!$E$19+'BP Financier'!$C$22+'BP Financier'!$D$22+'BP Financier'!$E$22+'BP Financier'!$F$16+'BP Financier'!$F$19+'BP Financier'!$F$22))*$V6205*Z6205/(1-$W6205)","v":{"v":183212.72008294167,"d":"183,213"}},{"$f":"'BP Financier'!$F$44*(('BP Financier'!$C$16+'BP Financier'!$D$16+'BP Financier'!$E$16+'BP Financier'!$F$16)/('BP Financier'!$C$16+'BP Financier'!$C$19+'BP Financier'!$D$16+'BP Financier'!$D$19+'BP Financier'!$E$16+'BP Financier'!$E$19+'BP Financier'!$C$22+'BP Financier'!$D$22+'BP Financier'!$E$22+'BP Financier'!$F$16+'BP Financier'!$F$19+'BP Financier'!$F$22))*$V6205*AA6205/(1-$W6205)","v":{"v":22635.573653330703,"d":"22,636"}},{"$f":"'BP Financier'!$F$44*(('BP Financier'!$C$16+'BP Financier'!$D$16+'BP Financier'!$E$16+'BP Financier'!$F$16)/('BP Financier'!$C$16+'BP Financier'!$C$19+'BP Financier'!$D$16+'BP Financier'!$D$19+'BP Financier'!$E$16+'BP Financier'!$E$19+'BP Financier'!$C$22+'BP Financier'!$D$22+'BP Financier'!$E$22+'BP Financier'!$F$16+'BP Financier'!$F$19+'BP Financier'!$F$22))*$V6205*AB6205/(1-$W6205)","v":{"v":10834.120722961703,"d":"10,834"}},null,{"v":1.25E-3,"d":"0.13%"},{"$f":"Actif!$E$28/100","v":{"v":0.28900000000000003,"d":"28.90%"}},{"$f":"Actif!$E$30/100","v":{"v":0.09050000000000001,"d":"9.05%"}},{"$f":"Actif!$E$31/100","v":{"v":0.0605,"d":"6.05%"}},{"$f":"Actif!$E$32/100","v":{"v":0.47350000000000003,"d":"47.35%"}},{"$f":"Actif!$E$33/100","v":{"v":0.0585,"d":"5.85%"}},{"$f":"Actif!$E$29/100","v":{"v":0.027999999999999997,"d":"2.80%"}}]
[null,"#99",42,2029,"H","A_VIE",{"v":0.44999999999999996,"d":"0.45"},{"v":0.38999999999999996,"d":"0.39"},0.6,0.6,85,0,{"$f":"ROUND(Primes!$P$4*V6206,0)","v":12},{"$f":"'BP Financier'!$F$33*(('BP Financier'!$C$16+'BP Financier'!$D$16+'BP Financier'!$E$16+'BP Financier'!$F$16)/('BP Financier'!$C$16+'BP Financier'!$C$19+'BP Financier'!$D$16+'BP Financier'!$D$19+'BP Financier'!$E$16+'BP Financier'!$E$19+'BP Financier'!$F$16+'BP Financier'!$F$19))*V6206","v":{"v":484971.6977773321,"d":"484,972"}},{"v":275109.2797866347,"d":"275,109"},{"$f":"'BP Financier'!$F$44*(('BP Financier'!$C$16+'BP Financier'!$D$16+'BP Financier'!$E$16+'BP Financier'!$F$16)/('BP Financier'!$C$16+'BP Financier'!$C$19+'BP Financier'!$D$16+'BP Financier'!$D$19+'BP Financier'!$E$16+'BP Financier'!$E$19+'BP Financier'!$C$22+'BP Financier'!$D$22+'BP Financier'!$E$22+'BP Financier'!$F$16+'BP Financier'!$F$19+'BP Financier'!$F$22))*$V6206*X6206/(1-$W6206)","v":{"v":35017.42590814408,"d":"35,017"}},{"$f":"'BP Financier'!$F$44*(('BP Financier'!$C$16+'BP Financier'!$D$16+'BP Financier'!$E$16+'BP Financier'!$F$16)/('BP Financier'!$C$16+'BP Financier'!$C$19+'BP Financier'!$D$16+'BP Financier'!$D$19+'BP Financier'!$E$16+'BP Financier'!$E$19+'BP Financier'!$C$22+'BP Financier'!$D$22+'BP Financier'!$E$22+'BP Financier'!$F$16+'BP Financier'!$F$19+'BP Financier'!$F$22))*$V6206*Y6206/(1-$W6206)","v":{"v":23409.439419256538,"d":"23,409"}},{"$f":"'BP Financier'!$F$44*(('BP Financier'!$C$16+'BP Financier'!$D$16+'BP Financier'!$E$16+'BP Financier'!$F$16)/('BP Financier'!$C$16+'BP Financier'!$C$19+'BP Financier'!$D$16+'BP Financier'!$D$19+'BP Financier'!$E$16+'BP Financier'!$E$19+'BP Financier'!$C$22+'BP Financier'!$D$22+'BP Financier'!$E$22+'BP Financier'!$F$16+'BP Financier'!$F$19+'BP Financier'!$F$22))*$V6206*Z6206/(1-$W6206)","v":{"v":183212.72008294167,"d":"183,213"}},{"$f":"'BP Financier'!$F$44*(('BP Financier'!$C$16+'BP Financier'!$D$16+'BP Financier'!$E$16+'BP Financier'!$F$16)/('BP Financier'!$C$16+'BP Financier'!$C$19+'BP Financier'!$D$16+'BP Financier'!$D$19+'BP Financier'!$E$16+'BP Financier'!$E$19+'BP Financier'!$C$22+'BP Financier'!$D$22+'BP Financier'!$E$22+'BP Financier'!$F$16+'BP Financier'!$F$19+'BP Financier'!$F$22))*$V6206*AA6206/(1-$W6206)","v":{"v":22635.573653330703,"d":"22,636"}},{"$f":"'BP Financier'!$F$44*(('BP Financier'!$C$16+'BP Financier'!$D$16+'BP Financier'!$E$16+'BP Financier'!$F$16)/('BP Financier'!$C$16+'BP Financier'!$C$19+'BP Financier'!$D$16+'BP Financier'!$D$19+'BP Financier'!$E$16+'BP Financier'!$E$19+'BP Financier'!$C$22+'BP Financier'!$D$22+'BP Financier'!$E$22+'BP Financier'!$F$16+'BP Financier'!$F$19+'BP Financier'!$F$22))*$V6206*AB6206/(1-$W6206)","v":{"v":10834.120722961703,"d":"10,834"}},null,{"v":1.25E-3,"d":"0.13%"},{"$f":"Actif!$E$28/100","v":{"v":0.28900000000000003,"d":"28.90%"}},{"$f":"Actif!$E$30/100","v":{"v":0.09050000000000001,"d":"9.05%"}},{"$f":"Actif!$E$31/100","v":{"v":0.0605,"d":"6.05%"}},{"$f":"Actif!$E$32/100","v":{"v":0.47350000000000003,"d":"47.35%"}},{"$f":"Actif!$E$33/100","v":{"v":0.0585,"d":"5.85%"}},{"$f":"Actif!$E$29/100","v":{"v":0.027999999999999997,"d":"2.80%"}}]
[null,"#100",42,2030,"H","A_VIE",{"v":0.44999999999999996,"d":"0.45"},{"v":0.38999999999999996,"d":"0.39"},0.6,0.6,85,0,{"$f":"ROUND(Primes!$P$4*V6207,0)","v":12},{"$f":"'BP Financier'!$F$33*(('BP Financier'!$C$16+'BP Financier'!$D$16+'BP Financier'!$E$16+'BP Financier'!$F$16)/('BP Financier'!$C$16+'BP Financier'!$C$19+'BP Financier'!$D$16+'BP Financier'!$D$19+'BP Financier'!$E$16+'BP Financier'!$E$19+'BP Financier'!$F$16+'BP Financier'!$F$19))*V6207","v":{"v":484971.6977773321,"d":"484,972"}},{"v":275109.2797866347,"d":"275,109"},{"$f":"'BP Financier'!$F$44*(('BP Financier'!$C$16+'BP Financier'!$D$16+'BP Financier'!$E$16+'BP Financier'!$F$16)/('BP Financier'!$C$16+'BP Financier'!$C$19+'BP Financier'!$D$16+'BP Financier'!$D$19+'BP Financier'!$E$16+'BP Financier'!$E$19+'BP Financier'!$C$22+'BP Financier'!$D$22+'BP Financier'!$E$22+'BP Financier'!$F$16+'BP Financier'!$F$19+'BP Financier'!$F$22))*$V6207*X6207/(1-$W6207)","v":{"v":35017.42590814408,"d":"35,017"}},{"$f":"'BP Financier'!$F$44*(('BP Financier'!$C$16+'BP Financier'!$D$16+'BP Financier'!$E$16+'BP Financier'!$F$16)/('BP Financier'!$C$16+'BP Financier'!$C$19+'BP Financier'!$D$16+'BP Financier'!$D$19+'BP Financier'!$E$16+'BP Financier'!$E$19+'BP Financier'!$C$22+'BP Financier'!$D$22+'BP Financier'!$E$22+'BP Financier'!$F$16+'BP Financier'!$F$19+'BP Financier'!$F$22))*$V6207*Y6207/(1-$W6207)","v":{"v":23409.439419256538,"d":"23,409"}},{"$f":"'BP Financier'!$F$44*(('BP Financier'!$C$16+'BP Financier'!$D$16+'BP Financier'!$E$16+'BP Financier'!$F$16)/('BP Financier'!$C$16+'BP Financier'!$C$19+'BP Financier'!$D$16+'BP Financier'!$D$19+'BP Financier'!$E$16+'BP Financier'!$E$19+'BP Financier'!$C$22+'BP Financier'!$D$22+'BP Financier'!$E$22+'BP Financier'!$F$16+'BP Financier'!$F$19+'BP Financier'!$F$22))*$V6207*Z6207/(1-$W6207)","v":{"v":183212.72008294167,"d":"183,213"}},{"$f":"'BP Financier'!$F$44*(('BP Financier'!$C$16+'BP Financier'!$D$16+'BP Financier'!$E$16+'BP Financier'!$F$16)/('BP Financier'!$C$16+'BP Financier'!$C$19+'BP Financier'!$D$16+'BP Financier'!$D$19+'BP Financier'!$E$16+'BP Financier'!$E$19+'BP Financier'!$C$22+'BP Financier'!$D$22+'BP Financier'!$E$22+'BP Financier'!$F$16+'BP Financier'!$F$19+'BP Financier'!$F$22))*$V6207*AA6207/(1-$W6207)","v":{"v":22635.573653330703,"d":"22,636"}},{"$f":"'BP Financier'!$F$44*(('BP Financier'!$C$16+'BP Financier'!$D$16+'BP Financier'!$E$16+'BP Financier'!$F$16)/('BP Financier'!$C$16+'BP Financier'!$C$19+'BP Financier'!$D$16+'BP Financier'!$D$19+'BP Financier'!$E$16+'BP Financier'!$E$19+'BP Financier'!$C$22+'BP Financier'!$D$22+'BP Financier'!$E$22+'BP Financier'!$F$16+'BP Financier'!$F$19+'BP Financier'!$F$22))*$V6207*AB6207/(1-$W6207)","v":{"v":10834.120722961703,"d":"10,834"}},null,{"v":1.25E-3,"d":"0.13%"},{"$f":"Actif!$E$28/100","v":{"v":0.28900000000000003,"d":"28.90%"}},{"$f":"Actif!$E$30/100","v":{"v":0.09050000000000001,"d":"9.05%"}},{"$f":"Actif!$E$31/100","v":{"v":0.0605,"d":"6.05%"}},{"$f":"Actif!$E$32/100","v":{"v":0.47350000000000003,"d":"47.35%"}},{"$f":"Actif!$E$33/100","v":{"v":0.0585,"d":"5.85%"}},{"$f":"Actif!$E$29/100","v":{"v":0.027999999999999997,"d":"2.80%"}}]
[null,"#101",43,2026,"H","A_VIE",{"v":0.44999999999999996,"d":"0.45"},{"v":0.38999999999999996,"d":"0.39"},0.6,0.6,85,0,{"$f":"ROUND(Primes!$P$4*V6208,0)","v":12},{"$f":"'BP Financier'!$F$33*(('BP Financier'!$C$16+'BP Financier'!$D$16+'BP Financier'!$E$16+'BP Financier'!$F$16)/('BP Financier'!$C$16+'BP Financier'!$C$19+'BP Financier'!$D$16+'BP Financier'!$D$19+'BP Financier'!$E$16+'BP Financier'!$E$19+'BP Financier'!$F$16+'BP Financier'!$F$19))*V6208","v":{"v":484971.6977773321,"d":"484,972"}},{"v":275109.2797866347,"d":"275,109"},{"$f":"'BP Financier'!$F$44*(('BP Financier'!$C$16+'BP Financier'!$D$16+'BP Financier'!$E$16+'BP Financier'!$F$16)/('BP Financier'!$C$16+'BP Financier'!$C$19+'BP Financier'!$D$16+'BP Financier'!$D$19+'BP Financier'!$E$16+'BP Financier'!$E$19+'BP Financier'!$C$22+'BP Financier'!$D$22+'BP Financier'!$E$22+'BP Financier'!$F$16+'BP Financier'!$F$19+'BP Financier'!$F$22))*$V6208*X6208/(1-$W6208)","v":{"v":35017.42590814408,"d":"35,017"}},{"$f":"'BP Financier'!$F$44*(('BP Financier'!$C$16+'BP Financier'!$D$16+'BP Financier'!$E$16+'BP Financier'!$F$16)/('BP Financier'!$C$16+'BP Financier'!$C$19+'BP Financier'!$D$16+'BP Financier'!$D$19+'BP Financier'!$E$16+'BP Financier'!$E$19+'BP Financier'!$C$22+'BP Financier'!$D$22+'BP Financier'!$E$22+'BP Financier'!$F$16+'BP Financier'!$F$19+'BP Financier'!$F$22))*$V6208*Y6208/(1-$W6208)","v":{"v":23409.439419256538,"d":"23,409"}},{"$f":"'BP Financier'!$F$44*(('BP Financier'!$C$16+'BP Financier'!$D$16+'BP Financier'!$E$16+'BP Financier'!$F$16)/('BP Financier'!$C$16+'BP Financier'!$C$19+'BP Financier'!$D$16+'BP Financier'!$D$19+'BP Financier'!$E$16+'BP Financier'!$E$19+'BP Financier'!$C$22+'BP Financier'!$D$22+'BP Financier'!$E$22+'BP Financier'!$F$16+'BP Financier'!$F$19+'BP Financier'!$F$22))*$V6208*Z6208/(1-$W6208)","v":{"v":183212.72008294167,"d":"183,213"}},{"$f":"'BP Financier'!$F$44*(('BP Financier'!$C$16+'BP Financier'!$D$16+'BP Financier'!$E$16+'BP Financier'!$F$16)/('BP Financier'!$C$16+'BP Financier'!$C$19+'BP Financier'!$D$16+'BP Financier'!$D$19+'BP Financier'!$E$16+'BP Financier'!$E$19+'BP Financier'!$C$22+'BP Financier'!$D$22+'BP Financier'!$E$22+'BP Financier'!$F$16+'BP Financier'!$F$19+'BP Financier'!$F$22))*$V6208*AA6208/(1-$W6208)","v":{"v":22635.573653330703,"d":"22,636"}},{"$f":"'BP Financier'!$F$44*(('BP Financier'!$C$16+'BP Financier'!$D$16+'BP Financier'!$E$16+'BP Financier'!$F$16)/('BP Financier'!$C$16+'BP Financier'!$C$19+'BP Financier'!$D$16+'BP Financier'!$D$19+'BP Financier'!$E$16+'BP Financier'!$E$19+'BP Financier'!$C$22+'BP Financier'!$D$22+'BP Financier'!$E$22+'BP Financier'!$F$16+'BP Financier'!$F$19+'BP Financier'!$F$22))*$V6208*AB6208/(1-$W6208)","v":{"v":10834.120722961703,"d":"10,834"}},null,{"v":1.25E-3,"d":"0.13%"},{"$f":"Actif!$E$28/100","v":{"v":0.28900000000000003,"d":"28.90%"}},{"$f":"Actif!$E$30/100","v":{"v":0.09050000000000001,"d":"9.05%"}},{"$f":"Actif!$E$31/100","v":{"v":0.0605,"d":"6.05%"}},{"$f":"Actif!$E$32/100","v":{"v":0.47350000000000003,"d":"47.35%"}},{"$f":"Actif!$E$33/100","v":{"v":0.0585,"d":"5.85%"}},{"$f":"Actif!$E$29/100","v":{"v":0.027999999999999997,"d":"2.80%"}}]
[null,"#102",43,2028,"H","A_VIE",{"v":0.44999999999999996,"d":"0.45"},{"v":0.38999999999999996,"d":"0.39"},0.6,0.6,85,0,{"$f":"ROUND(Primes!$P$4*V6209,0)","v":12},{"$f":"'BP Financier'!$F$33*(('BP Financier'!$C$16+'BP Financier'!$D$16+'BP Financier'!$E$16+'BP Financier'!$F$16)/('BP Financier'!$C$16+'BP Financier'!$C$19+'BP Financier'!$D$16+'BP Financier'!$D$19+'BP Financier'!$E$16+'BP Financier'!$E$19+'BP Financier'!$F$16+'BP Financier'!$F$19))*V6209","v":{"v":484971.6977773321,"d":"484,972"}},{"v":275109.2797866347,"d":"275,109"},{"$f":"'BP Financier'!$F$44*(('BP Financier'!$C$16+'BP Financier'!$D$16+'BP Financier'!$E$16+'BP Financier'!$F$16)/('BP Financier'!$C$16+'BP Financier'!$C$19+'BP Financier'!$D$16+'BP Financier'!$D$19+'BP Financier'!$E$16+'BP Financier'!$E$19+'BP Financier'!$C$22+'BP Financier'!$D$22+'BP Financier'!$E$22+'BP Financier'!$F$16+'BP Financier'!$F$19+'BP Financier'!$F$22))*$V6209*X6209/(1-$W6209)","v":{"v":35017.42590814408,"d":"35,017"}},{"$f":"'BP Financier'!$F$44*(('BP Financier'!$C$16+'BP Financier'!$D$16+'BP Financier'!$E$16+'BP Financier'!$F$16)/('BP Financier'!$C$16+'BP Financier'!$C$19+'BP Financier'!$D$16+'BP Financier'!$D$19+'BP Financier'!$E$16+'BP Financier'!$E$19+'BP Financier'!$C$22+'BP Financier'!$D$22+'BP Financier'!$E$22+'BP Financier'!$F$16+'BP Financier'!$F$19+'BP Financier'!$F$22))*$V6209*Y6209/(1-$W6209)","v":{"v":23409.439419256538,"d":"23,409"}},{"$f":"'BP Financier'!$F$44*(('BP Financier'!$C$16+'BP Financier'!$D$16+'BP Financier'!$E$16+'BP Financier'!$F$16)/('BP Financier'!$C$16+'BP Financier'!$C$19+'BP Financier'!$D$16+'BP Financier'!$D$19+'BP Financier'!$E$16+'BP Financier'!$E$19+'BP Financier'!$C$22+'BP Financier'!$D$22+'BP Financier'!$E$22+'BP Financier'!$F$16+'BP Financier'!$F$19+'BP Financier'!$F$22))*$V6209*Z6209/(1-$W6209)","v":{"v":183212.72008294167,"d":"183,213"}},{"$f":"'BP Financier'!$F$44*(('BP Financier'!$C$16+'BP Financier'!$D$16+'BP Financier'!$E$16+'BP Financier'!$F$16)/('BP Financier'!$C$16+'BP Financier'!$C$19+'BP Financier'!$D$16+'BP Financier'!$D$19+'BP Financier'!$E$16+'BP Financier'!$E$19+'BP Financier'!$C$22+'BP Financier'!$D$22+'BP Financier'!$E$22+'BP Financier'!$F$16+'BP Financier'!$F$19+'BP Financier'!$F$22))*$V6209*AA6209/(1-$W6209)","v":{"v":22635.573653330703,"d":"22,636"}},{"$f":"'BP Financier'!$F$44*(('BP Financier'!$C$16+'BP Financier'!$D$16+'BP Financier'!$E$16+'BP Financier'!$F$16)/('BP Financier'!$C$16+'BP Financier'!$C$19+'BP Financier'!$D$16+'BP Financier'!$D$19+'BP Financier'!$E$16+'BP Financier'!$E$19+'BP Financier'!$C$22+'BP Financier'!$D$22+'BP Financier'!$E$22+'BP Financier'!$F$16+'BP Financier'!$F$19+'BP Financier'!$F$22))*$V6209*AB6209/(1-$W6209)","v":{"v":10834.120722961703,"d":"10,834"}},null,{"v":1.25E-3,"d":"0.13%"},{"$f":"Actif!$E$28/100","v":{"v":0.28900000000000003,"d":"28.90%"}},{"$f":"Actif!$E$30/100","v":{"v":0.09050000000000001,"d":"9.05%"}},{"$f":"Actif!$E$31/100","v":{"v":0.0605,"d":"6.05%"}},{"$f":"Actif!$E$32/100","v":{"v":0.47350000000000003,"d":"47.35%"}},{"$f":"Actif!$E$33/100","v":{"v":0.0585,"d":"5.85%"}},{"$f":"Actif!$E$29/100","v":{"v":0.027999999999999997,"d":"2.80%"}}]
[null,"#103",43,2029,"H","A_VIE",{"v":0.44999999999999996,"d":"0.45"},{"v":0.38999999999999996,"d":"0.39"},0.6,0.6,85,0,{"$f":"ROUND(Primes!$P$4*V6210,0)","v":12},{"$f":"'BP Financier'!$F$33*(('BP Financier'!$C$16+'BP Financier'!$D$16+'BP Financier'!$E$16+'BP Financier'!$F$16)/('BP Financier'!$C$16+'BP Financier'!$C$19+'BP Financier'!$D$16+'BP Financier'!$D$19+'BP Financier'!$E$16+'BP Financier'!$E$19+'BP Financier'!$F$16+'BP Financier'!$F$19))*V6210","v":{"v":484971.6977773321,"d":"484,972"}},{"v":275109.2797866347,"d":"275,109"},{"$f":"'BP Financier'!$F$44*(('BP Financier'!$C$16+'BP Financier'!$D$16+'BP Financier'!$E$16+'BP Financier'!$F$16)/('BP Financier'!$C$16+'BP Financier'!$C$19+'BP Financier'!$D$16+'BP Financier'!$D$19+'BP Financier'!$E$16+'BP Financier'!$E$19+'BP Financier'!$C$22+'BP Financier'!$D$22+'BP Financier'!$E$22+'BP Financier'!$F$16+'BP Financier'!$F$19+'BP Financier'!$F$22))*$V6210*X6210/(1-$W6210)","v":{"v":35017.42590814408,"d":"35,017"}},{"$f":"'BP Financier'!$F$44*(('BP Financier'!$C$16+'BP Financier'!$D$16+'BP Financier'!$E$16+'BP Financier'!$F$16)/('BP Financier'!$C$16+'BP Financier'!$C$19+'BP Financier'!$D$16+'BP Financier'!$D$19+'BP Financier'!$E$16+'BP Financier'!$E$19+'BP Financier'!$C$22+'BP Financier'!$D$22+'BP Financier'!$E$22+'BP Financier'!$F$16+'BP Financier'!$F$19+'BP Financier'!$F$22))*$V6210*Y6210/(1-$W6210)","v":{"v":23409.439419256538,"d":"23,409"}},{"$f":"'BP Financier'!$F$44*(('BP Financier'!$C$16+'BP Financier'!$D$16+'BP Financier'!$E$16+'BP Financier'!$F$16)/('BP Financier'!$C$16+'BP Financier'!$C$19+'BP Financier'!$D$16+'BP Financier'!$D$19+'BP Financier'!$E$16+'BP Financier'!$E$19+'BP Financier'!$C$22+'BP Financier'!$D$22+'BP Financier'!$E$22+'BP Financier'!$F$16+'BP Financier'!$F$19+'BP Financier'!$F$22))*$V6210*Z6210/(1-$W6210)","v":{"v":183212.72008294167,"d":"183,213"}},{"$f":"'BP Financier'!$F$44*(('BP Financier'!$C$16+'BP Financier'!$D$16+'BP Financier'!$E$16+'BP Financier'!$F$16)/('BP Financier'!$C$16+'BP Financier'!$C$19+'BP Financier'!$D$16+'BP Financier'!$D$19+'BP Financier'!$E$16+'BP Financier'!$E$19+'BP Financier'!$C$22+'BP Financier'!$D$22+'BP Financier'!$E$22+'BP Financier'!$F$16+'BP Financier'!$F$19+'BP Financier'!$F$22))*$V6210*AA6210/(1-$W6210)","v":{"v":22635.573653330703,"d":"22,636"}},{"$f":"'BP Financier'!$F$44*(('BP Financier'!$C$16+'BP Financier'!$D$16+'BP Financier'!$E$16+'BP Financier'!$F$16)/('BP Financier'!$C$16+'BP Financier'!$C$19+'BP Financier'!$D$16+'BP Financier'!$D$19+'BP Financier'!$E$16+'BP Financier'!$E$19+'BP Financier'!$C$22+'BP Financier'!$D$22+'BP Financier'!$E$22+'BP Financier'!$F$16+'BP Financier'!$F$19+'BP Financier'!$F$22))*$V6210*AB6210/(1-$W6210)","v":{"v":10834.120722961703,"d":"10,834"}},null,{"v":1.25E-3,"d":"0.13%"},{"$f":"Actif!$E$28/100","v":{"v":0.28900000000000003,"d":"28.90%"}},{"$f":"Actif!$E$30/100","v":{"v":0.09050000000000001,"d":"9.05%"}},{"$f":"Actif!$E$31/100","v":{"v":0.0605,"d":"6.05%"}},{"$f":"Actif!$E$32/100","v":{"v":0.47350000000000003,"d":"47.35%"}},{"$f":"Actif!$E$33/100","v":{"v":0.0585,"d":"5.85%"}},{"$f":"Actif!$E$29/100","v":{"v":0.027999999999999997,"d":"2.80%"}}]
[null,"#104",43,2030,"H","A_VIE",{"v":0.44999999999999996,"d":"0.45"},{"v":0.38999999999999996,"d":"0.39"},0.6,0.6,85,0,{"$f":"ROUND(Primes!$P$4*V6211,0)","v":12},{"$f":"'BP Financier'!$F$33*(('BP Financier'!$C$16+'BP Financier'!$D$16+'BP Financier'!$E$16+'BP Financier'!$F$16)/('BP Financier'!$C$16+'BP Financier'!$C$19+'BP Financier'!$D$16+'BP Financier'!$D$19+'BP Financier'!$E$16+'BP Financier'!$E$19+'BP Financier'!$F$16+'BP Financier'!$F$19))*V6211","v":{"v":484971.6977773321,"d":"484,972"}},{"v":275109.2797866347,"d":"275,109"},{"$f":"'BP Financier'!$F$44*(('BP Financier'!$C$16+'BP Financier'!$D$16+'BP Financier'!$E$16+'BP Financier'!$F$16)/('BP Financier'!$C$16+'BP Financier'!$C$19+'BP Financier'!$D$16+'BP Financier'!$D$19+'BP Financier'!$E$16+'BP Financier'!$E$19+'BP Financier'!$C$22+'BP Financier'!$D$22+'BP Financier'!$E$22+'BP Financier'!$F$16+'BP Financier'!$F$19+'BP Financier'!$F$22))*$V6211*X6211/(1-$W6211)","v":{"v":35017.42590814408,"d":"35,017"}},{"$f":"'BP Financier'!$F$44*(('BP Financier'!$C$16+'BP Financier'!$D$16+'BP Financier'!$E$16+'BP Financier'!$F$16)/('BP Financier'!$C$16+'BP Financier'!$C$19+'BP Financier'!$D$16+'BP Financier'!$D$19+'BP Financier'!$E$16+'BP Financier'!$E$19+'BP Financier'!$C$22+'BP Financier'!$D$22+'BP Financier'!$E$22+'BP Financier'!$F$16+'BP Financier'!$F$19+'BP Financier'!$F$22))*$V6211*Y6211/(1-$W6211)","v":{"v":23409.439419256538,"d":"23,409"}},{"$f":"'BP Financier'!$F$44*(('BP Financier'!$C$16+'BP Financier'!$D$16+'BP Financier'!$E$16+'BP Financier'!$F$16)/('BP Financier'!$C$16+'BP Financier'!$C$19+'BP Financier'!$D$16+'BP Financier'!$D$19+'BP Financier'!$E$16+'BP Financier'!$E$19+'BP Financier'!$C$22+'BP Financier'!$D$22+'BP Financier'!$E$22+'BP Financier'!$F$16+'BP Financier'!$F$19+'BP Financier'!$F$22))*$V6211*Z6211/(1-$W6211)","v":{"v":183212.72008294167,"d":"183,213"}},{"$f":"'BP Financier'!$F$44*(('BP Financier'!$C$16+'BP Financier'!$D$16+'BP Financier'!$E$16+'BP Financier'!$F$16)/('BP Financier'!$C$16+'BP Financier'!$C$19+'BP Financier'!$D$16+'BP Financier'!$D$19+'BP Financier'!$E$16+'BP Financier'!$E$19+'BP Financier'!$C$22+'BP Financier'!$D$22+'BP Financier'!$E$22+'BP Financier'!$F$16+'BP Financier'!$F$19+'BP Financier'!$F$22))*$V6211*AA6211/(1-$W6211)","v":{"v":22635.573653330703,"d":"22,636"}},{"$f":"'BP Financier'!$F$44*(('BP Financier'!$C$16+'BP Financier'!$D$16+'BP Financier'!$E$16+'BP Financier'!$F$16)/('BP Financier'!$C$16+'BP Financier'!$C$19+'BP Financier'!$D$16+'BP Financier'!$D$19+'BP Financier'!$E$16+'BP Financier'!$E$19+'BP Financier'!$C$22+'BP Financier'!$D$22+'BP Financier'!$E$22+'BP Financier'!$F$16+'BP Financier'!$F$19+'BP Financier'!$F$22))*$V6211*AB6211/(1-$W6211)","v":{"v":10834.120722961703,"d":"10,834"}},null,{"v":1.25E-3,"d":"0.13%"},{"$f":"Actif!$E$28/100","v":{"v":0.28900000000000003,"d":"28.90%"}},{"$f":"Actif!$E$30/100","v":{"v":0.09050000000000001,"d":"9.05%"}},{"$f":"Actif!$E$31/100","v":{"v":0.0605,"d":"6.05%"}},{"$f":"Actif!$E$32/100","v":{"v":0.47350000000000003,"d":"47.35%"}},{"$f":"Actif!$E$33/100","v":{"v":0.0585,"d":"5.85%"}},{"$f":"Actif!$E$29/100","v":{"v":0.027999999999999997,"d":"2.80%"}}]
[null,"#105",44,2026,"F","A_VIE",{"v":0.44999999999999996,"d":"0.45"},{"v":0.38999999999999996,"d":"0.39"},0.6,0.6,85,0,{"$f":"ROUND(Primes!$P$4*V6212,0)","v":12},{"$f":"'BP Financier'!$F$33*(('BP Financier'!$C$16+'BP Financier'!$D$16+'BP Financier'!$E$16+'BP Financier'!$F$16)/('BP Financier'!$C$16+'BP Financier'!$C$19+'BP Financier'!$D$16+'BP Financier'!$D$19+'BP Financier'!$E$16+'BP Financier'!$E$19+'BP Financier'!$F$16+'BP Financier'!$F$19))*V6212","v":{"v":484971.6977773321,"d":"484,972"}},{"v":275109.2797866347,"d":"275,109"},{"$f":"'BP Financier'!$F$44*(('BP Financier'!$C$16+'BP Financier'!$D$16+'BP Financier'!$E$16+'BP Financier'!$F$16)/('BP Financier'!$C$16+'BP Financier'!$C$19+'BP Financier'!$D$16+'BP Financier'!$D$19+'BP Financier'!$E$16+'BP Financier'!$E$19+'BP Financier'!$C$22+'BP Financier'!$D$22+'BP Financier'!$E$22+'BP Financier'!$F$16+'BP Financier'!$F$19+'BP Financier'!$F$22))*$V6212*X6212/(1-$W6212)","v":{"v":35017.42590814408,"d":"35,017"}},{"$f":"'BP Financier'!$F$44*(('BP Financier'!$C$16+'BP Financier'!$D$16+'BP Financier'!$E$16+'BP Financier'!$F$16)/('BP Financier'!$C$16+'BP Financier'!$C$19+'BP Financier'!$D$16+'BP Financier'!$D$19+'BP Financier'!$E$16+'BP Financier'!$E$19+'BP Financier'!$C$22+'BP Financier'!$D$22+'BP Financier'!$E$22+'BP Financier'!$F$16+'BP Financier'!$F$19+'BP Financier'!$F$22))*$V6212*Y6212/(1-$W6212)","v":{"v":23409.439419256538,"d":"23,409"}},{"$f":"'BP Financier'!$F$44*(('BP Financier'!$C$16+'BP Financier'!$D$16+'BP Financier'!$E$16+'BP Financier'!$F$16)/('BP Financier'!$C$16+'BP Financier'!$C$19+'BP Financier'!$D$16+'BP Financier'!$D$19+'BP Financier'!$E$16+'BP Financier'!$E$19+'BP Financier'!$C$22+'BP Financier'!$D$22+'BP Financier'!$E$22+'BP Financier'!$F$16+'BP Financier'!$F$19+'BP Financier'!$F$22))*$V6212*Z6212/(1-$W6212)","v":{"v":183212.72008294167,"d":"183,213"}},{"$f":"'BP Financier'!$F$44*(('BP Financier'!$C$16+'BP Financier'!$D$16+'BP Financier'!$E$16+'BP Financier'!$F$16)/('BP Financier'!$C$16+'BP Financier'!$C$19+'BP Financier'!$D$16+'BP Financier'!$D$19+'BP Financier'!$E$16+'BP Financier'!$E$19+'BP Financier'!$C$22+'BP Financier'!$D$22+'BP Financier'!$E$22+'BP Financier'!$F$16+'BP Financier'!$F$19+'BP Financier'!$F$22))*$V6212*AA6212/(1-$W6212)","v":{"v":22635.573653330703,"d":"22,636"}},{"$f":"'BP Financier'!$F$44*(('BP Financier'!$C$16+'BP Financier'!$D$16+'BP Financier'!$E$16+'BP Financier'!$F$16)/('BP Financier'!$C$16+'BP Financier'!$C$19+'BP Financier'!$D$16+'BP Financier'!$D$19+'BP Financier'!$E$16+'BP Financier'!$E$19+'BP Financier'!$C$22+'BP Financier'!$D$22+'BP Financier'!$E$22+'BP Financier'!$F$16+'BP Financier'!$F$19+'BP Financier'!$F$22))*$V6212*AB6212/(1-$W6212)","v":{"v":10834.120722961703,"d":"10,834"}},null,{"v":1.25E-3,"d":"0.13%"},{"$f":"Actif!$E$28/100","v":{"v":0.28900000000000003,"d":"28.90%"}},{"$f":"Actif!$E$30/100","v":{"v":0.09050000000000001,"d":"9.05%"}},{"$f":"Actif!$E$31/100","v":{"v":0.0605,"d":"6.05%"}},{"$f":"Actif!$E$32/100","v":{"v":0.47350000000000003,"d":"47.35%"}},{"$f":"Actif!$E$33/100","v":{"v":0.0585,"d":"5.85%"}},{"$f":"Actif!$E$29/100","v":{"v":0.027999999999999997,"d":"2.80%"}}]
[null,"#106",44,2028,"F","A_VIE",{"v":0.44999999999999996,"d":"0.45"},{"v":0.38999999999999996,"d":"0.39"},0.6,0.6,85,0,{"$f":"ROUND(Primes!$P$4*V6213,0)","v":12},{"$f":"'BP Financier'!$F$33*(('BP Financier'!$C$16+'BP Financier'!$D$16+'BP Financier'!$E$16+'BP Financier'!$F$16)/('BP Financier'!$C$16+'BP Financier'!$C$19+'BP Financier'!$D$16+'BP Financier'!$D$19+'BP Financier'!$E$16+'BP Financier'!$E$19+'BP Financier'!$F$16+'BP Financier'!$F$19))*V6213","v":{"v":484971.6977773321,"d":"484,972"}},{"v":275109.2797866347,"d":"275,109"},{"$f":"'BP Financier'!$F$44*(('BP Financier'!$C$16+'BP Financier'!$D$16+'BP Financier'!$E$16+'BP Financier'!$F$16)/('BP Financier'!$C$16+'BP Financier'!$C$19+'BP Financier'!$D$16+'BP Financier'!$D$19+'BP Financier'!$E$16+'BP Financier'!$E$19+'BP Financier'!$C$22+'BP Financier'!$D$22+'BP Financier'!$E$22+'BP Financier'!$F$16+'BP Financier'!$F$19+'BP Financier'!$F$22))*$V6213*X6213/(1-$W6213)","v":{"v":35017.42590814408,"d":"35,017"}},{"$f":"'BP Financier'!$F$44*(('BP Financier'!$C$16+'BP Financier'!$D$16+'BP Financier'!$E$16+'BP Financier'!$F$16)/('BP Financier'!$C$16+'BP Financier'!$C$19+'BP Financier'!$D$16+'BP Financier'!$D$19+'BP Financier'!$E$16+'BP Financier'!$E$19+'BP Financier'!$C$22+'BP Financier'!$D$22+'BP Financier'!$E$22+'BP Financier'!$F$16+'BP Financier'!$F$19+'BP Financier'!$F$22))*$V6213*Y6213/(1-$W6213)","v":{"v":23409.439419256538,"d":"23,409"}},{"$f":"'BP Financier'!$F$44*(('BP Financier'!$C$16+'BP Financier'!$D$16+'BP Financier'!$E$16+'BP Financier'!$F$16)/('BP Financier'!$C$16+'BP Financier'!$C$19+'BP Financier'!$D$16+'BP Financier'!$D$19+'BP Financier'!$E$16+'BP Financier'!$E$19+'BP Financier'!$C$22+'BP Financier'!$D$22+'BP Financier'!$E$22+'BP Financier'!$F$16+'BP Financier'!$F$19+'BP Financier'!$F$22))*$V6213*Z6213/(1-$W6213)","v":{"v":183212.72008294167,"d":"183,213"}},{"$f":"'BP Financier'!$F$44*(('BP Financier'!$C$16+'BP Financier'!$D$16+'BP Financier'!$E$16+'BP Financier'!$F$16)/('BP Financier'!$C$16+'BP Financier'!$C$19+'BP Financier'!$D$16+'BP Financier'!$D$19+'BP Financier'!$E$16+'BP Financier'!$E$19+'BP Financier'!$C$22+'BP Financier'!$D$22+'BP Financier'!$E$22+'BP Financier'!$F$16+'BP Financier'!$F$19+'BP Financier'!$F$22))*$V6213*AA6213/(1-$W6213)","v":{"v":22635.573653330703,"d":"22,636"}},{"$f":"'BP Financier'!$F$44*(('BP Financier'!$C$16+'BP Financier'!$D$16+'BP Financier'!$E$16+'BP Financier'!$F$16)/('BP Financier'!$C$16+'BP Financier'!$C$19+'BP Financier'!$D$16+'BP Financier'!$D$19+'BP Financier'!$E$16+'BP Financier'!$E$19+'BP Financier'!$C$22+'BP Financier'!$D$22+'BP Financier'!$E$22+'BP Financier'!$F$16+'BP Financier'!$F$19+'BP Financier'!$F$22))*$V6213*AB6213/(1-$W6213)","v":{"v":10834.120722961703,"d":"10,834"}},null,{"v":1.25E-3,"d":"0.13%"},{"$f":"Actif!$E$28/100","v":{"v":0.28900000000000003,"d":"28.90%"}},{"$f":"Actif!$E$30/100","v":{"v":0.09050000000000001,"d":"9.05%"}},{"$f":"Actif!$E$31/100","v":{"v":0.0605,"d":"6.05%"}},{"$f":"Actif!$E$32/100","v":{"v":0.47350000000000003,"d":"47.35%"}},{"$f":"Actif!$E$33/100","v":{"v":0.0585,"d":"5.85%"}},{"$f":"Actif!$E$29/100","v":{"v":0.027999999999999997,"d":"2.80%"}}]
[null,"#107",44,2029,"F","A_VIE",{"v":0.44999999999999996,"d":"0.45"},{"v":0.38999999999999996,"d":"0.39"},0.6,0.6,85,0,{"$f":"ROUND(Primes!$P$4*V6214,0)","v":12},{"$f":"'BP Financier'!$F$33*(('BP Financier'!$C$16+'BP Financier'!$D$16+'BP Financier'!$E$16+'BP Financier'!$F$16)/('BP Financier'!$C$16+'BP Financier'!$C$19+'BP Financier'!$D$16+'BP Financier'!$D$19+'BP Financier'!$E$16+'BP Financier'!$E$19+'BP Financier'!$F$16+'BP Financier'!$F$19))*V6214","v":{"v":484971.6977773321,"d":"484,972"}},{"v":275109.2797866347,"d":"275,109"},{"$f":"'BP Financier'!$F$44*(('BP Financier'!$C$16+'BP Financier'!$D$16+'BP Financier'!$E$16+'BP Financier'!$F$16)/('BP Financier'!$C$16+'BP Financier'!$C$19+'BP Financier'!$D$16+'BP Financier'!$D$19+'BP Financier'!$E$16+'BP Financier'!$E$19+'BP Financier'!$C$22+'BP Financier'!$D$22+'BP Financier'!$E$22+'BP Financier'!$F$16+'BP Financier'!$F$19+'BP Financier'!$F$22))*$V6214*X6214/(1-$W6214)","v":{"v":35017.42590814408,"d":"35,017"}},{"$f":"'BP Financier'!$F$44*(('BP Financier'!$C$16+'BP Financier'!$D$16+'BP Financier'!$E$16+'BP Financier'!$F$16)/('BP Financier'!$C$16+'BP Financier'!$C$19+'BP Financier'!$D$16+'BP Financier'!$D$19+'BP Financier'!$E$16+'BP Financier'!$E$19+'BP Financier'!$C$22+'BP Financier'!$D$22+'BP Financier'!$E$22+'BP Financier'!$F$16+'BP Financier'!$F$19+'BP Financier'!$F$22))*$V6214*Y6214/(1-$W6214)","v":{"v":23409.439419256538,"d":"23,409"}},{"$f":"'BP Financier'!$F$44*(('BP Financier'!$C$16+'BP Financier'!$D$16+'BP Financier'!$E$16+'BP Financier'!$F$16)/('BP Financier'!$C$16+'BP Financier'!$C$19+'BP Financier'!$D$16+'BP Financier'!$D$19+'BP Financier'!$E$16+'BP Financier'!$E$19+'BP Financier'!$C$22+'BP Financier'!$D$22+'BP Financier'!$E$22+'BP Financier'!$F$16+'BP Financier'!$F$19+'BP Financier'!$F$22))*$V6214*Z6214/(1-$W6214)","v":{"v":183212.72008294167,"d":"183,213"}},{"$f":"'BP Financier'!$F$44*(('BP Financier'!$C$16+'BP Financier'!$D$16+'BP Financier'!$E$16+'BP Financier'!$F$16)/('BP Financier'!$C$16+'BP Financier'!$C$19+'BP Financier'!$D$16+'BP Financier'!$D$19+'BP Financier'!$E$16+'BP Financier'!$E$19+'BP Financier'!$C$22+'BP Financier'!$D$22+'BP Financier'!$E$22+'BP Financier'!$F$16+'BP Financier'!$F$19+'BP Financier'!$F$22))*$V6214*AA6214/(1-$W6214)","v":{"v":22635.573653330703,"d":"22,636"}},{"$f":"'BP Financier'!$F$44*(('BP Financier'!$C$16+'BP Financier'!$D$16+'BP Financier'!$E$16+'BP Financier'!$F$16)/('BP Financier'!$C$16+'BP Financier'!$C$19+'BP Financier'!$D$16+'BP Financier'!$D$19+'BP Financier'!$E$16+'BP Financier'!$E$19+'BP Financier'!$C$22+'BP Financier'!$D$22+'BP Financier'!$E$22+'BP Financier'!$F$16+'BP Financier'!$F$19+'BP Financier'!$F$22))*$V6214*AB6214/(1-$W6214)","v":{"v":10834.120722961703,"d":"10,834"}},null,{"v":1.25E-3,"d":"0.13%"},{"$f":"Actif!$E$28/100","v":{"v":0.28900000000000003,"d":"28.90%"}},{"$f":"Actif!$E$30/100","v":{"v":0.09050000000000001,"d":"9.05%"}},{"$f":"Actif!$E$31/100","v":{"v":0.0605,"d":"6.05%"}},{"$f":"Actif!$E$32/100","v":{"v":0.47350000000000003,"d":"47.35%"}},{"$f":"Actif!$E$33/100","v":{"v":0.0585,"d":"5.85%"}},{"$f":"Actif!$E$29/100","v":{"v":0.027999999999999997,"d":"2.80%"}}]
[null,"#108",44,2030,"F","A_VIE",{"v":0.44999999999999996,"d":"0.45"},{"v":0.38999999999999996,"d":"0.39"},0.6,0.6,85,0,{"$f":"ROUND(Primes!$P$4*V6215,0)","v":12},{"$f":"'BP Financier'!$F$33*(('BP Financier'!$C$16+'BP Financier'!$D$16+'BP Financier'!$E$16+'BP Financier'!$F$16)/('BP Financier'!$C$16+'BP Financier'!$C$19+'BP Financier'!$D$16+'BP Financier'!$D$19+'BP Financier'!$E$16+'BP Financier'!$E$19+'BP Financier'!$F$16+'BP Financier'!$F$19))*V6215","v":{"v":484971.6977773321,"d":"484,972"}},{"v":275109.2797866347,"d":"275,109"},{"$f":"'BP Financier'!$F$44*(('BP Financier'!$C$16+'BP Financier'!$D$16+'BP Financier'!$E$16+'BP Financier'!$F$16)/('BP Financier'!$C$16+'BP Financier'!$C$19+'BP Financier'!$D$16+'BP Financier'!$D$19+'BP Financier'!$E$16+'BP Financier'!$E$19+'BP Financier'!$C$22+'BP Financier'!$D$22+'BP Financier'!$E$22+'BP Financier'!$F$16+'BP Financier'!$F$19+'BP Financier'!$F$22))*$V6215*X6215/(1-$W6215)","v":{"v":35017.42590814408,"d":"35,017"}},{"$f":"'BP Financier'!$F$44*(('BP Financier'!$C$16+'BP Financier'!$D$16+'BP Financier'!$E$16+'BP Financier'!$F$16)/('BP Financier'!$C$16+'BP Financier'!$C$19+'BP Financier'!$D$16+'BP Financier'!$D$19+'BP Financier'!$E$16+'BP Financier'!$E$19+'BP Financier'!$C$22+'BP Financier'!$D$22+'BP Financier'!$E$22+'BP Financier'!$F$16+'BP Financier'!$F$19+'BP Financier'!$F$22))*$V6215*Y6215/(1-$W6215)","v":{"v":23409.439419256538,"d":"23,409"}},{"$f":"'BP Financier'!$F$44*(('BP Financier'!$C$16+'BP Financier'!$D$16+'BP Financier'!$E$16+'BP Financier'!$F$16)/('BP Financier'!$C$16+'BP Financier'!$C$19+'BP Financier'!$D$16+'BP Financier'!$D$19+'BP Financier'!$E$16+'BP Financier'!$E$19+'BP Financier'!$C$22+'BP Financier'!$D$22+'BP Financier'!$E$22+'BP Financier'!$F$16+'BP Financier'!$F$19+'BP Financier'!$F$22))*$V6215*Z6215/(1-$W6215)","v":{"v":183212.72008294167,"d":"183,213"}},{"$f":"'BP Financier'!$F$44*(('BP Financier'!$C$16+'BP Financier'!$D$16+'BP Financier'!$E$16+'BP Financier'!$F$16)/('BP Financier'!$C$16+'BP Financier'!$C$19+'BP Financier'!$D$16+'BP Financier'!$D$19+'BP Financier'!$E$16+'BP Financier'!$E$19+'BP Financier'!$C$22+'BP Financier'!$D$22+'BP Financier'!$E$22+'BP Financier'!$F$16+'BP Financier'!$F$19+'BP Financier'!$F$22))*$V6215*AA6215/(1-$W6215)","v":{"v":22635.573653330703,"d":"22,636"}},{"$f":"'BP Financier'!$F$44*(('BP Financier'!$C$16+'BP Financier'!$D$16+'BP Financier'!$E$16+'BP Financier'!$F$16)/('BP Financier'!$C$16+'BP Financier'!$C$19+'BP Financier'!$D$16+'BP Financier'!$D$19+'BP Financier'!$E$16+'BP Financier'!$E$19+'BP Financier'!$C$22+'BP Financier'!$D$22+'BP Financier'!$E$22+'BP Financier'!$F$16+'BP Financier'!$F$19+'BP Financier'!$F$22))*$V6215*AB6215/(1-$W6215)","v":{"v":10834.120722961703,"d":"10,834"}},null,{"v":1.25E-3,"d":"0.13%"},{"$f":"Actif!$E$28/100","v":{"v":0.28900000000000003,"d":"28.90%"}},{"$f":"Actif!$E$30/100","v":{"v":0.09050000000000001,"d":"9.05%"}},{"$f":"Actif!$E$31/100","v":{"v":0.0605,"d":"6.05%"}},{"$f":"Actif!$E$32/100","v":{"v":0.47350000000000003,"d":"47.35%"}},{"$f":"Actif!$E$33/100","v":{"v":0.0585,"d":"5.85%"}},{"$f":"Actif!$E$29/100","v":{"v":0.027999999999999997,"d":"2.80%"}}]
[null,"#109",45,2026,"H","A_VIE",{"v":0.44999999999999996,"d":"0.45"},{"v":0.38999999999999996,"d":"0.39"},0.6,0.6,85,0,{"$f":"ROUND(Primes!$P$4*V6216,0)","v":12},{"$f":"'BP Financier'!$F$33*(('BP Financier'!$C$16+'BP Financier'!$D$16+'BP Financier'!$E$16+'BP Financier'!$F$16)/('BP Financier'!$C$16+'BP Financier'!$C$19+'BP Financier'!$D$16+'BP Financier'!$D$19+'BP Financier'!$E$16+'BP Financier'!$E$19+'BP Financier'!$F$16+'BP Financier'!$F$19))*V6216","v":{"v":484971.6977773321,"d":"484,972"}},{"v":275109.2797866347,"d":"275,109"},{"$f":"'BP Financier'!$F$44*(('BP Financier'!$C$16+'BP Financier'!$D$16+'BP Financier'!$E$16+'BP Financier'!$F$16)/('BP Financier'!$C$16+'BP Financier'!$C$19+'BP Financier'!$D$16+'BP Financier'!$D$19+'BP Financier'!$E$16+'BP Financier'!$E$19+'BP Financier'!$C$22+'BP Financier'!$D$22+'BP Financier'!$E$22+'BP Financier'!$F$16+'BP Financier'!$F$19+'BP Financier'!$F$22))*$V6216*X6216/(1-$W6216)","v":{"v":35017.42590814408,"d":"35,017"}},{"$f":"'BP Financier'!$F$44*(('BP Financier'!$C$16+'BP Financier'!$D$16+'BP Financier'!$E$16+'BP Financier'!$F$16)/('BP Financier'!$C$16+'BP Financier'!$C$19+'BP Financier'!$D$16+'BP Financier'!$D$19+'BP Financier'!$E$16+'BP Financier'!$E$19+'BP Financier'!$C$22+'BP Financier'!$D$22+'BP Financier'!$E$22+'BP Financier'!$F$16+'BP Financier'!$F$19+'BP Financier'!$F$22))*$V6216*Y6216/(1-$W6216)","v":{"v":23409.439419256538,"d":"23,409"}},{"$f":"'BP Financier'!$F$44*(('BP Financier'!$C$16+'BP Financier'!$D$16+'BP Financier'!$E$16+'BP Financier'!$F$16)/('BP Financier'!$C$16+'BP Financier'!$C$19+'BP Financier'!$D$16+'BP Financier'!$D$19+'BP Financier'!$E$16+'BP Financier'!$E$19+'BP Financier'!$C$22+'BP Financier'!$D$22+'BP Financier'!$E$22+'BP Financier'!$F$16+'BP Financier'!$F$19+'BP Financier'!$F$22))*$V6216*Z6216/(1-$W6216)","v":{"v":183212.72008294167,"d":"183,213"}},{"$f":"'BP Financier'!$F$44*(('BP Financier'!$C$16+'BP Financier'!$D$16+'BP Financier'!$E$16+'BP Financier'!$F$16)/('BP Financier'!$C$16+'BP Financier'!$C$19+'BP Financier'!$D$16+'BP Financier'!$D$19+'BP Financier'!$E$16+'BP Financier'!$E$19+'BP Financier'!$C$22+'BP Financier'!$D$22+'BP Financier'!$E$22+'BP Financier'!$F$16+'BP Financier'!$F$19+'BP Financier'!$F$22))*$V6216*AA6216/(1-$W6216)","v":{"v":22635.573653330703,"d":"22,636"}},{"$f":"'BP Financier'!$F$44*(('BP Financier'!$C$16+'BP Financier'!$D$16+'BP Financier'!$E$16+'BP Financier'!$F$16)/('BP Financier'!$C$16+'BP Financier'!$C$19+'BP Financier'!$D$16+'BP Financier'!$D$19+'BP Financier'!$E$16+'BP Financier'!$E$19+'BP Financier'!$C$22+'BP Financier'!$D$22+'BP Financier'!$E$22+'BP Financier'!$F$16+'BP Financier'!$F$19+'BP Financier'!$F$22))*$V6216*AB6216/(1-$W6216)","v":{"v":10834.120722961703,"d":"10,834"}},null,{"v":1.25E-3,"d":"0.13%"},{"$f":"Actif!$E$28/100","v":{"v":0.28900000000000003,"d":"28.90%"}},{"$f":"Actif!$E$30/100","v":{"v":0.09050000000000001,"d":"9.05%"}},{"$f":"Actif!$E$31/100","v":{"v":0.0605,"d":"6.05%"}},{"$f":"Actif!$E$32/100","v":{"v":0.47350000000000003,"d":"47.35%"}},{"$f":"Actif!$E$33/100","v":{"v":0.0585,"d":"5.85%"}},{"$f":"Actif!$E$29/100","v":{"v":0.027999999999999997,"d":"2.80%"}}]
[null,"#110",45,2028,"H","A_VIE",{"v":0.44999999999999996,"d":"0.45"},{"v":0.38999999999999996,"d":"0.39"},0.6,0.6,85,0,{"$f":"ROUND(Primes!$P$4*V6217,0)","v":12},{"$f":"'BP Financier'!$F$33*(('BP Financier'!$C$16+'BP Financier'!$D$16+'BP Financier'!$E$16+'BP Financier'!$F$16)/('BP Financier'!$C$16+'BP Financier'!$C$19+'BP Financier'!$D$16+'BP Financier'!$D$19+'BP Financier'!$E$16+'BP Financier'!$E$19+'BP Financier'!$F$16+'BP Financier'!$F$19))*V6217","v":{"v":484971.6977773321,"d":"484,972"}},{"v":275109.2797866347,"d":"275,109"},{"$f":"'BP Financier'!$F$44*(('BP Financier'!$C$16+'BP Financier'!$D$16+'BP Financier'!$E$16+'BP Financier'!$F$16)/('BP Financier'!$C$16+'BP Financier'!$C$19+'BP Financier'!$D$16+'BP Financier'!$D$19+'BP Financier'!$E$16+'BP Financier'!$E$19+'BP Financier'!$C$22+'BP Financier'!$D$22+'BP Financier'!$E$22+'BP Financier'!$F$16+'BP Financier'!$F$19+'BP Financier'!$F$22))*$V6217*X6217/(1-$W6217)","v":{"v":35017.42590814408,"d":"35,017"}},{"$f":"'BP Financier'!$F$44*(('BP Financier'!$C$16+'BP Financier'!$D$16+'BP Financier'!$E$16+'BP Financier'!$F$16)/('BP Financier'!$C$16+'BP Financier'!$C$19+'BP Financier'!$D$16+'BP Financier'!$D$19+'BP Financier'!$E$16+'BP Financier'!$E$19+'BP Financier'!$C$22+'BP Financier'!$D$22+'BP Financier'!$E$22+'BP Financier'!$F$16+'BP Financier'!$F$19+'BP Financier'!$F$22))*$V6217*Y6217/(1-$W6217)","v":{"v":23409.439419256538,"d":"23,409"}},{"$f":"'BP Financier'!$F$44*(('BP Financier'!$C$16+'BP Financier'!$D$16+'BP Financier'!$E$16+'BP Financier'!$F$16)/('BP Financier'!$C$16+'BP Financier'!$C$19+'BP Financier'!$D$16+'BP Financier'!$D$19+'BP Financier'!$E$16+'BP Financier'!$E$19+'BP Financier'!$C$22+'BP Financier'!$D$22+'BP Financier'!$E$22+'BP Financier'!$F$16+'BP Financier'!$F$19+'BP Financier'!$F$22))*$V6217*Z6217/(1-$W6217)","v":{"v":183212.72008294167,"d":"183,213"}},{"$f":"'BP Financier'!$F$44*(('BP Financier'!$C$16+'BP Financier'!$D$16+'BP Financier'!$E$16+'BP Financier'!$F$16)/('BP Financier'!$C$16+'BP Financier'!$C$19+'BP Financier'!$D$16+'BP Financier'!$D$19+'BP Financier'!$E$16+'BP Financier'!$E$19+'BP Financier'!$C$22+'BP Financier'!$D$22+'BP Financier'!$E$22+'BP Financier'!$F$16+'BP Financier'!$F$19+'BP Financier'!$F$22))*$V6217*AA6217/(1-$W6217)","v":{"v":22635.573653330703,"d":"22,636"}},{"$f":"'BP Financier'!$F$44*(('BP Financier'!$C$16+'BP Financier'!$D$16+'BP Financier'!$E$16+'BP Financier'!$F$16)/('BP Financier'!$C$16+'BP Financier'!$C$19+'BP Financier'!$D$16+'BP Financier'!$D$19+'BP Financier'!$E$16+'BP Financier'!$E$19+'BP Financier'!$C$22+'BP Financier'!$D$22+'BP Financier'!$E$22+'BP Financier'!$F$16+'BP Financier'!$F$19+'BP Financier'!$F$22))*$V6217*AB6217/(1-$W6217)","v":{"v":10834.120722961703,"d":"10,834"}},null,{"v":1.25E-3,"d":"0.13%"},{"$f":"Actif!$E$28/100","v":{"v":0.28900000000000003,"d":"28.90%"}},{"$f":"Actif!$E$30/100","v":{"v":0.09050000000000001,"d":"9.05%"}},{"$f":"Actif!$E$31/100","v":{"v":0.0605,"d":"6.05%"}},{"$f":"Actif!$E$32/100","v":{"v":0.47350000000000003,"d":"47.35%"}},{"$f":"Actif!$E$33/100","v":{"v":0.0585,"d":"5.85%"}},{"$f":"Actif!$E$29/100","v":{"v":0.027999999999999997,"d":"2.80%"}}]
[null,"#111",45,2029,"H","A_VIE",{"v":0.44999999999999996,"d":"0.45"},{"v":0.38999999999999996,"d":"0.39"},0.6,0.6,85,0,{"$f":"ROUND(Primes!$P$4*V6218,0)","v":12},{"$f":"'BP Financier'!$F$33*(('BP Financier'!$C$16+'BP Financier'!$D$16+'BP Financier'!$E$16+'BP Financier'!$F$16)/('BP Financier'!$C$16+'BP Financier'!$C$19+'BP Financier'!$D$16+'BP Financier'!$D$19+'BP Financier'!$E$16+'BP Financier'!$E$19+'BP Financier'!$F$16+'BP Financier'!$F$19))*V6218","v":{"v":484971.6977773321,"d":"484,972"}},{"v":275109.2797866347,"d":"275,109"},{"$f":"'BP Financier'!$F$44*(('BP Financier'!$C$16+'BP Financier'!$D$16+'BP Financier'!$E$16+'BP Financier'!$F$16)/('BP Financier'!$C$16+'BP Financier'!$C$19+'BP Financier'!$D$16+'BP Financier'!$D$19+'BP Financier'!$E$16+'BP Financier'!$E$19+'BP Financier'!$C$22+'BP Financier'!$D$22+'BP Financier'!$E$22+'BP Financier'!$F$16+'BP Financier'!$F$19+'BP Financier'!$F$22))*$V6218*X6218/(1-$W6218)","v":{"v":35017.42590814408,"d":"35,017"}},{"$f":"'BP Financier'!$F$44*(('BP Financier'!$C$16+'BP Financier'!$D$16+'BP Financier'!$E$16+'BP Financier'!$F$16)/('BP Financier'!$C$16+'BP Financier'!$C$19+'BP Financier'!$D$16+'BP Financier'!$D$19+'BP Financier'!$E$16+'BP Financier'!$E$19+'BP Financier'!$C$22+'BP Financier'!$D$22+'BP Financier'!$E$22+'BP Financier'!$F$16+'BP Financier'!$F$19+'BP Financier'!$F$22))*$V6218*Y6218/(1-$W6218)","v":{"v":23409.439419256538,"d":"23,409"}},{"$f":"'BP Financier'!$F$44*(('BP Financier'!$C$16+'BP Financier'!$D$16+'BP Financier'!$E$16+'BP Financier'!$F$16)/('BP Financier'!$C$16+'BP Financier'!$C$19+'BP Financier'!$D$16+'BP Financier'!$D$19+'BP Financier'!$E$16+'BP Financier'!$E$19+'BP Financier'!$C$22+'BP Financier'!$D$22+'BP Financier'!$E$22+'BP Financier'!$F$16+'BP Financier'!$F$19+'BP Financier'!$F$22))*$V6218*Z6218/(1-$W6218)","v":{"v":183212.72008294167,"d":"183,213"}},{"$f":"'BP Financier'!$F$44*(('BP Financier'!$C$16+'BP Financier'!$D$16+'BP Financier'!$E$16+'BP Financier'!$F$16)/('BP Financier'!$C$16+'BP Financier'!$C$19+'BP Financier'!$D$16+'BP Financier'!$D$19+'BP Financier'!$E$16+'BP Financier'!$E$19+'BP Financier'!$C$22+'BP Financier'!$D$22+'BP Financier'!$E$22+'BP Financier'!$F$16+'BP Financier'!$F$19+'BP Financier'!$F$22))*$V6218*AA6218/(1-$W6218)","v":{"v":22635.573653330703,"d":"22,636"}},{"$f":"'BP Financier'!$F$44*(('BP Financier'!$C$16+'BP Financier'!$D$16+'BP Financier'!$E$16+'BP Financier'!$F$16)/('BP Financier'!$C$16+'BP Financier'!$C$19+'BP Financier'!$D$16+'BP Financier'!$D$19+'BP Financier'!$E$16+'BP Financier'!$E$19+'BP Financier'!$C$22+'BP Financier'!$D$22+'BP Financier'!$E$22+'BP Financier'!$F$16+'BP Financier'!$F$19+'BP Financier'!$F$22))*$V6218*AB6218/(1-$W6218)","v":{"v":10834.120722961703,"d":"10,834"}},null,{"v":1.25E-3,"d":"0.13%"},{"$f":"Actif!$E$28/100","v":{"v":0.28900000000000003,"d":"28.90%"}},{"$f":"Actif!$E$30/100","v":{"v":0.09050000000000001,"d":"9.05%"}},{"$f":"Actif!$E$31/100","v":{"v":0.0605,"d":"6.05%"}},{"$f":"Actif!$E$32/100","v":{"v":0.47350000000000003,"d":"47.35%"}},{"$f":"Actif!$E$33/100","v":{"v":0.0585,"d":"5.85%"}},{"$f":"Actif!$E$29/100","v":{"v":0.027999999999999997,"d":"2.80%"}}]
[null,"#112",45,2030,"H","A_VIE",{"v":0.44999999999999996,"d":"0.45"},{"v":0.38999999999999996,"d":"0.39"},0.6,0.6,85,0,{"$f":"ROUND(Primes!$P$4*V6219,0)","v":12},{"$f":"'BP Financier'!$F$33*(('BP Financier'!$C$16+'BP Financier'!$D$16+'BP Financier'!$E$16+'BP Financier'!$F$16)/('BP Financier'!$C$16+'BP Financier'!$C$19+'BP Financier'!$D$16+'BP Financier'!$D$19+'BP Financier'!$E$16+'BP Financier'!$E$19+'BP Financier'!$F$16+'BP Financier'!$F$19))*V6219","v":{"v":484971.6977773321,"d":"484,972"}},{"v":275109.2797866347,"d":"275,109"},{"$f":"'BP Financier'!$F$44*(('BP Financier'!$C$16+'BP Financier'!$D$16+'BP Financier'!$E$16+'BP Financier'!$F$16)/('BP Financier'!$C$16+'BP Financier'!$C$19+'BP Financier'!$D$16+'BP Financier'!$D$19+'BP Financier'!$E$16+'BP Financier'!$E$19+'BP Financier'!$C$22+'BP Financier'!$D$22+'BP Financier'!$E$22+'BP Financier'!$F$16+'BP Financier'!$F$19+'BP Financier'!$F$22))*$V6219*X6219/(1-$W6219)","v":{"v":35017.42590814408,"d":"35,017"}},{"$f":"'BP Financier'!$F$44*(('BP Financier'!$C$16+'BP Financier'!$D$16+'BP Financier'!$E$16+'BP Financier'!$F$16)/('BP Financier'!$C$16+'BP Financier'!$C$19+'BP Financier'!$D$16+'BP Financier'!$D$19+'BP Financier'!$E$16+'BP Financier'!$E$19+'BP Financier'!$C$22+'BP Financier'!$D$22+'BP Financier'!$E$22+'BP Financier'!$F$16+'BP Financier'!$F$19+'BP Financier'!$F$22))*$V6219*Y6219/(1-$W6219)","v":{"v":23409.439419256538,"d":"23,409"}},{"$f":"'BP Financier'!$F$44*(('BP Financier'!$C$16+'BP Financier'!$D$16+'BP Financier'!$E$16+'BP Financier'!$F$16)/('BP Financier'!$C$16+'BP Financier'!$C$19+'BP Financier'!$D$16+'BP Financier'!$D$19+'BP Financier'!$E$16+'BP Financier'!$E$19+'BP Financier'!$C$22+'BP Financier'!$D$22+'BP Financier'!$E$22+'BP Financier'!$F$16+'BP Financier'!$F$19+'BP Financier'!$F$22))*$V6219*Z6219/(1-$W6219)","v":{"v":183212.72008294167,"d":"183,213"}},{"$f":"'BP Financier'!$F$44*(('BP Financier'!$C$16+'BP Financier'!$D$16+'BP Financier'!$E$16+'BP Financier'!$F$16)/('BP Financier'!$C$16+'BP Financier'!$C$19+'BP Financier'!$D$16+'BP Financier'!$D$19+'BP Financier'!$E$16+'BP Financier'!$E$19+'BP Financier'!$C$22+'BP Financier'!$D$22+'BP Financier'!$E$22+'BP Financier'!$F$16+'BP Financier'!$F$19+'BP Financier'!$F$22))*$V6219*AA6219/(1-$W6219)","v":{"v":22635.573653330703,"d":"22,636"}},{"$f":"'BP Financier'!$F$44*(('BP Financier'!$C$16+'BP Financier'!$D$16+'BP Financier'!$E$16+'BP Financier'!$F$16)/('BP Financier'!$C$16+'BP Financier'!$C$19+'BP Financier'!$D$16+'BP Financier'!$D$19+'BP Financier'!$E$16+'BP Financier'!$E$19+'BP Financier'!$C$22+'BP Financier'!$D$22+'BP Financier'!$E$22+'BP Financier'!$F$16+'BP Financier'!$F$19+'BP Financier'!$F$22))*$V6219*AB6219/(1-$W6219)","v":{"v":10834.120722961703,"d":"10,834"}},null,{"v":1.25E-3,"d":"0.13%"},{"$f":"Actif!$E$28/100","v":{"v":0.28900000000000003,"d":"28.90%"}},{"$f":"Actif!$E$30/100","v":{"v":0.09050000000000001,"d":"9.05%"}},{"$f":"Actif!$E$31/100","v":{"v":0.0605,"d":"6.05%"}},{"$f":"Actif!$E$32/100","v":{"v":0.47350000000000003,"d":"47.35%"}},{"$f":"Actif!$E$33/100","v":{"v":0.0585,"d":"5.85%"}},{"$f":"Actif!$E$29/100","v":{"v":0.027999999999999997,"d":"2.80%"}}]
[null,"#113",46,2026,"H","A_VIE",{"v":0.44999999999999996,"d":"0.45"},{"v":0.38999999999999996,"d":"0.39"},0.6,0.6,85,0,{"$f":"ROUND(Primes!$P$4*V6220,0)","v":12},{"$f":"'BP Financier'!$F$33*(('BP Financier'!$C$16+'BP Financier'!$D$16+'BP Financier'!$E$16+'BP Financier'!$F$16)/('BP Financier'!$C$16+'BP Financier'!$C$19+'BP Financier'!$D$16+'BP Financier'!$D$19+'BP Financier'!$E$16+'BP Financier'!$E$19+'BP Financier'!$F$16+'BP Financier'!$F$19))*V6220","v":{"v":484971.6977773321,"d":"484,972"}},{"v":275109.2797866347,"d":"275,109"},{"$f":"'BP Financier'!$F$44*(('BP Financier'!$C$16+'BP Financier'!$D$16+'BP Financier'!$E$16+'BP Financier'!$F$16)/('BP Financier'!$C$16+'BP Financier'!$C$19+'BP Financier'!$D$16+'BP Financier'!$D$19+'BP Financier'!$E$16+'BP Financier'!$E$19+'BP Financier'!$C$22+'BP Financier'!$D$22+'BP Financier'!$E$22+'BP Financier'!$F$16+'BP Financier'!$F$19+'BP Financier'!$F$22))*$V6220*X6220/(1-$W6220)","v":{"v":35017.42590814408,"d":"35,017"}},{"$f":"'BP Financier'!$F$44*(('BP Financier'!$C$16+'BP Financier'!$D$16+'BP Financier'!$E$16+'BP Financier'!$F$16)/('BP Financier'!$C$16+'BP Financier'!$C$19+'BP Financier'!$D$16+'BP Financier'!$D$19+'BP Financier'!$E$16+'BP Financier'!$E$19+'BP Financier'!$C$22+'BP Financier'!$D$22+'BP Financier'!$E$22+'BP Financier'!$F$16+'BP Financier'!$F$19+'BP Financier'!$F$22))*$V6220*Y6220/(1-$W6220)","v":{"v":23409.439419256538,"d":"23,409"}},{"$f":"'BP Financier'!$F$44*(('BP Financier'!$C$16+'BP Financier'!$D$16+'BP Financier'!$E$16+'BP Financier'!$F$16)/('BP Financier'!$C$16+'BP Financier'!$C$19+'BP Financier'!$D$16+'BP Financier'!$D$19+'BP Financier'!$E$16+'BP Financier'!$E$19+'BP Financier'!$C$22+'BP Financier'!$D$22+'BP Financier'!$E$22+'BP Financier'!$F$16+'BP Financier'!$F$19+'BP Financier'!$F$22))*$V6220*Z6220/(1-$W6220)","v":{"v":183212.72008294167,"d":"183,213"}},{"$f":"'BP Financier'!$F$44*(('BP Financier'!$C$16+'BP Financier'!$D$16+'BP Financier'!$E$16+'BP Financier'!$F$16)/('BP Financier'!$C$16+'BP Financier'!$C$19+'BP Financier'!$D$16+'BP Financier'!$D$19+'BP Financier'!$E$16+'BP Financier'!$E$19+'BP Financier'!$C$22+'BP Financier'!$D$22+'BP Financier'!$E$22+'BP Financier'!$F$16+'BP Financier'!$F$19+'BP Financier'!$F$22))*$V6220*AA6220/(1-$W6220)","v":{"v":22635.573653330703,"d":"22,636"}},{"$f":"'BP Financier'!$F$44*(('BP Financier'!$C$16+'BP Financier'!$D$16+'BP Financier'!$E$16+'BP Financier'!$F$16)/('BP Financier'!$C$16+'BP Financier'!$C$19+'BP Financier'!$D$16+'BP Financier'!$D$19+'BP Financier'!$E$16+'BP Financier'!$E$19+'BP Financier'!$C$22+'BP Financier'!$D$22+'BP Financier'!$E$22+'BP Financier'!$F$16+'BP Financier'!$F$19+'BP Financier'!$F$22))*$V6220*AB6220/(1-$W6220)","v":{"v":10834.120722961703,"d":"10,834"}},null,{"v":1.25E-3,"d":"0.13%"},{"$f":"Actif!$E$28/100","v":{"v":0.28900000000000003,"d":"28.90%"}},{"$f":"Actif!$E$30/100","v":{"v":0.09050000000000001,"d":"9.05%"}},{"$f":"Actif!$E$31/100","v":{"v":0.0605,"d":"6.05%"}},{"$f":"Actif!$E$32/100","v":{"v":0.47350000000000003,"d":"47.35%"}},{"$f":"Actif!$E$33/100","v":{"v":0.0585,"d":"5.85%"}},{"$f":"Actif!$E$29/100","v":{"v":0.027999999999999997,"d":"2.80%"}}]
[null,"#114",46,2028,"H","A_VIE",{"v":0.44999999999999996,"d":"0.45"},{"v":0.38999999999999996,"d":"0.39"},0.6,0.6,85,0,{"$f":"ROUND(Primes!$P$4*V6221,0)","v":12},{"$f":"'BP Financier'!$F$33*(('BP Financier'!$C$16+'BP Financier'!$D$16+'BP Financier'!$E$16+'BP Financier'!$F$16)/('BP Financier'!$C$16+'BP Financier'!$C$19+'BP Financier'!$D$16+'BP Financier'!$D$19+'BP Financier'!$E$16+'BP Financier'!$E$19+'BP Financier'!$F$16+'BP Financier'!$F$19))*V6221","v":{"v":484971.6977773321,"d":"484,972"}},{"v":275109.2797866347,"d":"275,109"},{"$f":"'BP Financier'!$F$44*(('BP Financier'!$C$16+'BP Financier'!$D$16+'BP Financier'!$E$16+'BP Financier'!$F$16)/('BP Financier'!$C$16+'BP Financier'!$C$19+'BP Financier'!$D$16+'BP Financier'!$D$19+'BP Financier'!$E$16+'BP Financier'!$E$19+'BP Financier'!$C$22+'BP Financier'!$D$22+'BP Financier'!$E$22+'BP Financier'!$F$16+'BP Financier'!$F$19+'BP Financier'!$F$22))*$V6221*X6221/(1-$W6221)","v":{"v":35017.42590814408,"d":"35,017"}},{"$f":"'BP Financier'!$F$44*(('BP Financier'!$C$16+'BP Financier'!$D$16+'BP Financier'!$E$16+'BP Financier'!$F$16)/('BP Financier'!$C$16+'BP Financier'!$C$19+'BP Financier'!$D$16+'BP Financier'!$D$19+'BP Financier'!$E$16+'BP Financier'!$E$19+'BP Financier'!$C$22+'BP Financier'!$D$22+'BP Financier'!$E$22+'BP Financier'!$F$16+'BP Financier'!$F$19+'BP Financier'!$F$22))*$V6221*Y6221/(1-$W6221)","v":{"v":23409.439419256538,"d":"23,409"}},{"$f":"'BP Financier'!$F$44*(('BP Financier'!$C$16+'BP Financier'!$D$16+'BP Financier'!$E$16+'BP Financier'!$F$16)/('BP Financier'!$C$16+'BP Financier'!$C$19+'BP Financier'!$D$16+'BP Financier'!$D$19+'BP Financier'!$E$16+'BP Financier'!$E$19+'BP Financier'!$C$22+'BP Financier'!$D$22+'BP Financier'!$E$22+'BP Financier'!$F$16+'BP Financier'!$F$19+'BP Financier'!$F$22))*$V6221*Z6221/(1-$W6221)","v":{"v":183212.72008294167,"d":"183,213"}},{"$f":"'BP Financier'!$F$44*(('BP Financier'!$C$16+'BP Financier'!$D$16+'BP Financier'!$E$16+'BP Financier'!$F$16)/('BP Financier'!$C$16+'BP Financier'!$C$19+'BP Financier'!$D$16+'BP Financier'!$D$19+'BP Financier'!$E$16+'BP Financier'!$E$19+'BP Financier'!$C$22+'BP Financier'!$D$22+'BP Financier'!$E$22+'BP Financier'!$F$16+'BP Financier'!$F$19+'BP Financier'!$F$22))*$V6221*AA6221/(1-$W6221)","v":{"v":22635.573653330703,"d":"22,636"}},{"$f":"'BP Financier'!$F$44*(('BP Financier'!$C$16+'BP Financier'!$D$16+'BP Financier'!$E$16+'BP Financier'!$F$16)/('BP Financier'!$C$16+'BP Financier'!$C$19+'BP Financier'!$D$16+'BP Financier'!$D$19+'BP Financier'!$E$16+'BP Financier'!$E$19+'BP Financier'!$C$22+'BP Financier'!$D$22+'BP Financier'!$E$22+'BP Financier'!$F$16+'BP Financier'!$F$19+'BP Financier'!$F$22))*$V6221*AB6221/(1-$W6221)","v":{"v":10834.120722961703,"d":"10,834"}},null,{"v":1.25E-3,"d":"0.13%"},{"$f":"Actif!$E$28/100","v":{"v":0.28900000000000003,"d":"28.90%"}},{"$f":"Actif!$E$30/100","v":{"v":0.09050000000000001,"d":"9.05%"}},{"$f":"Actif!$E$31/100","v":{"v":0.0605,"d":"6.05%"}},{"$f":"Actif!$E$32/100","v":{"v":0.47350000000000003,"d":"47.35%"}},{"$f":"Actif!$E$33/100","v":{"v":0.0585,"d":"5.85%"}},{"$f":"Actif!$E$29/100","v":{"v":0.027999999999999997,"d":"2.80%"}}]
[null,"#115",46,2029,"H","A_VIE",{"v":0.44999999999999996,"d":"0.45"},{"v":0.38999999999999996,"d":"0.39"},0.6,0.6,85,0,{"$f":"ROUND(Primes!$P$4*V6222,0)","v":12},{"$f":"'BP Financier'!$F$33*(('BP Financier'!$C$16+'BP Financier'!$D$16+'BP Financier'!$E$16+'BP Financier'!$F$16)/('BP Financier'!$C$16+'BP Financier'!$C$19+'BP Financier'!$D$16+'BP Financier'!$D$19+'BP Financier'!$E$16+'BP Financier'!$E$19+'BP Financier'!$F$16+'BP Financier'!$F$19))*V6222","v":{"v":484971.6977773321,"d":"484,972"}},{"v":275109.2797866347,"d":"275,109"},{"$f":"'BP Financier'!$F$44*(('BP Financier'!$C$16+'BP Financier'!$D$16+'BP Financier'!$E$16+'BP Financier'!$F$16)/('BP Financier'!$C$16+'BP Financier'!$C$19+'BP Financier'!$D$16+'BP Financier'!$D$19+'BP Financier'!$E$16+'BP Financier'!$E$19+'BP Financier'!$C$22+'BP Financier'!$D$22+'BP Financier'!$E$22+'BP Financier'!$F$16+'BP Financier'!$F$19+'BP Financier'!$F$22))*$V6222*X6222/(1-$W6222)","v":{"v":35017.42590814408,"d":"35,017"}},{"$f":"'BP Financier'!$F$44*(('BP Financier'!$C$16+'BP Financier'!$D$16+'BP Financier'!$E$16+'BP Financier'!$F$16)/('BP Financier'!$C$16+'BP Financier'!$C$19+'BP Financier'!$D$16+'BP Financier'!$D$19+'BP Financier'!$E$16+'BP Financier'!$E$19+'BP Financier'!$C$22+'BP Financier'!$D$22+'BP Financier'!$E$22+'BP Financier'!$F$16+'BP Financier'!$F$19+'BP Financier'!$F$22))*$V6222*Y6222/(1-$W6222)","v":{"v":23409.439419256538,"d":"23,409"}},{"$f":"'BP Financier'!$F$44*(('BP Financier'!$C$16+'BP Financier'!$D$16+'BP Financier'!$E$16+'BP Financier'!$F$16)/('BP Financier'!$C$16+'BP Financier'!$C$19+'BP Financier'!$D$16+'BP Financier'!$D$19+'BP Financier'!$E$16+'BP Financier'!$E$19+'BP Financier'!$C$22+'BP Financier'!$D$22+'BP Financier'!$E$22+'BP Financier'!$F$16+'BP Financier'!$F$19+'BP Financier'!$F$22))*$V6222*Z6222/(1-$W6222)","v":{"v":183212.72008294167,"d":"183,213"}},{"$f":"'BP Financier'!$F$44*(('BP Financier'!$C$16+'BP Financier'!$D$16+'BP Financier'!$E$16+'BP Financier'!$F$16)/('BP Financier'!$C$16+'BP Financier'!$C$19+'BP Financier'!$D$16+'BP Financier'!$D$19+'BP Financier'!$E$16+'BP Financier'!$E$19+'BP Financier'!$C$22+'BP Financier'!$D$22+'BP Financier'!$E$22+'BP Financier'!$F$16+'BP Financier'!$F$19+'BP Financier'!$F$22))*$V6222*AA6222/(1-$W6222)","v":{"v":22635.573653330703,"d":"22,636"}},{"$f":"'BP Financier'!$F$44*(('BP Financier'!$C$16+'BP Financier'!$D$16+'BP Financier'!$E$16+'BP Financier'!$F$16)/('BP Financier'!$C$16+'BP Financier'!$C$19+'BP Financier'!$D$16+'BP Financier'!$D$19+'BP Financier'!$E$16+'BP Financier'!$E$19+'BP Financier'!$C$22+'BP Financier'!$D$22+'BP Financier'!$E$22+'BP Financier'!$F$16+'BP Financier'!$F$19+'BP Financier'!$F$22))*$V6222*AB6222/(1-$W6222)","v":{"v":10834.120722961703,"d":"10,834"}},null,{"v":1.25E-3,"d":"0.13%"},{"$f":"Actif!$E$28/100","v":{"v":0.28900000000000003,"d":"28.90%"}},{"$f":"Actif!$E$30/100","v":{"v":0.09050000000000001,"d":"9.05%"}},{"$f":"Actif!$E$31/100","v":{"v":0.0605,"d":"6.05%"}},{"$f":"Actif!$E$32/100","v":{"v":0.47350000000000003,"d":"47.35%"}},{"$f":"Actif!$E$33/100","v":{"v":0.0585,"d":"5.85%"}},{"$f":"Actif!$E$29/100","v":{"v":0.027999999999999997,"d":"2.80%"}}]
[null,"#116",46,2030,"H","A_VIE",{"v":0.44999999999999996,"d":"0.45"},{"v":0.38999999999999996,"d":"0.39"},0.6,0.6,85,0,{"$f":"ROUND(Primes!$P$4*V6223,0)","v":12},{"$f":"'BP Financier'!$F$33*(('BP Financier'!$C$16+'BP Financier'!$D$16+'BP Financier'!$E$16+'BP Financier'!$F$16)/('BP Financier'!$C$16+'BP Financier'!$C$19+'BP Financier'!$D$16+'BP Financier'!$D$19+'BP Financier'!$E$16+'BP Financier'!$E$19+'BP Financier'!$F$16+'BP Financier'!$F$19))*V6223","v":{"v":484971.6977773321,"d":"484,972"}},{"v":275109.2797866347,"d":"275,109"},{"$f":"'BP Financier'!$F$44*(('BP Financier'!$C$16+'BP Financier'!$D$16+'BP Financier'!$E$16+'BP Financier'!$F$16)/('BP Financier'!$C$16+'BP Financier'!$C$19+'BP Financier'!$D$16+'BP Financier'!$D$19+'BP Financier'!$E$16+'BP Financier'!$E$19+'BP Financier'!$C$22+'BP Financier'!$D$22+'BP Financier'!$E$22+'BP Financier'!$F$16+'BP Financier'!$F$19+'BP Financier'!$F$22))*$V6223*X6223/(1-$W6223)","v":{"v":35017.42590814408,"d":"35,017"}},{"$f":"'BP Financier'!$F$44*(('BP Financier'!$C$16+'BP Financier'!$D$16+'BP Financier'!$E$16+'BP Financier'!$F$16)/('BP Financier'!$C$16+'BP Financier'!$C$19+'BP Financier'!$D$16+'BP Financier'!$D$19+'BP Financier'!$E$16+'BP Financier'!$E$19+'BP Financier'!$C$22+'BP Financier'!$D$22+'BP Financier'!$E$22+'BP Financier'!$F$16+'BP Financier'!$F$19+'BP Financier'!$F$22))*$V6223*Y6223/(1-$W6223)","v":{"v":23409.439419256538,"d":"23,409"}},{"$f":"'BP Financier'!$F$44*(('BP Financier'!$C$16+'BP Financier'!$D$16+'BP Financier'!$E$16+'BP Financier'!$F$16)/('BP Financier'!$C$16+'BP Financier'!$C$19+'BP Financier'!$D$16+'BP Financier'!$D$19+'BP Financier'!$E$16+'BP Financier'!$E$19+'BP Financier'!$C$22+'BP Financier'!$D$22+'BP Financier'!$E$22+'BP Financier'!$F$16+'BP Financier'!$F$19+'BP Financier'!$F$22))*$V6223*Z6223/(1-$W6223)","v":{"v":183212.72008294167,"d":"183,213"}},{"$f":"'BP Financier'!$F$44*(('BP Financier'!$C$16+'BP Financier'!$D$16+'BP Financier'!$E$16+'BP Financier'!$F$16)/('BP Financier'!$C$16+'BP Financier'!$C$19+'BP Financier'!$D$16+'BP Financier'!$D$19+'BP Financier'!$E$16+'BP Financier'!$E$19+'BP Financier'!$C$22+'BP Financier'!$D$22+'BP Financier'!$E$22+'BP Financier'!$F$16+'BP Financier'!$F$19+'BP Financier'!$F$22))*$V6223*AA6223/(1-$W6223)","v":{"v":22635.573653330703,"d":"22,636"}},{"$f":"'BP Financier'!$F$44*(('BP Financier'!$C$16+'BP Financier'!$D$16+'BP Financier'!$E$16+'BP Financier'!$F$16)/('BP Financier'!$C$16+'BP Financier'!$C$19+'BP Financier'!$D$16+'BP Financier'!$D$19+'BP Financier'!$E$16+'BP Financier'!$E$19+'BP Financier'!$C$22+'BP Financier'!$D$22+'BP Financier'!$E$22+'BP Financier'!$F$16+'BP Financier'!$F$19+'BP Financier'!$F$22))*$V6223*AB6223/(1-$W6223)","v":{"v":10834.120722961703,"d":"10,834"}},null,{"v":1.25E-3,"d":"0.13%"},{"$f":"Actif!$E$28/100","v":{"v":0.28900000000000003,"d":"28.90%"}},{"$f":"Actif!$E$30/100","v":{"v":0.09050000000000001,"d":"9.05%"}},{"$f":"Actif!$E$31/100","v":{"v":0.0605,"d":"6.05%"}},{"$f":"Actif!$E$32/100","v":{"v":0.47350000000000003,"d":"47.35%"}},{"$f":"Actif!$E$33/100","v":{"v":0.0585,"d":"5.85%"}},{"$f":"Actif!$E$29/100","v":{"v":0.027999999999999997,"d":"2.80%"}}]
[null,"#117",47,2026,"F","A_VIE",{"v":0.44999999999999996,"d":"0.45"},{"v":0.38999999999999996,"d":"0.39"},0.6,0.6,85,0,{"$f":"ROUND(Primes!$P$4*V6224,0)","v":12},{"$f":"'BP Financier'!$F$33*(('BP Financier'!$C$16+'BP Financier'!$D$16+'BP Financier'!$E$16+'BP Financier'!$F$16)/('BP Financier'!$C$16+'BP Financier'!$C$19+'BP Financier'!$D$16+'BP Financier'!$D$19+'BP Financier'!$E$16+'BP Financier'!$E$19+'BP Financier'!$F$16+'BP Financier'!$F$19))*V6224","v":{"v":484971.6977773321,"d":"484,972"}},{"v":275109.2797866347,"d":"275,109"},{"$f":"'BP Financier'!$F$44*(('BP Financier'!$C$16+'BP Financier'!$D$16+'BP Financier'!$E$16+'BP Financier'!$F$16)/('BP Financier'!$C$16+'BP Financier'!$C$19+'BP Financier'!$D$16+'BP Financier'!$D$19+'BP Financier'!$E$16+'BP Financier'!$E$19+'BP Financier'!$C$22+'BP Financier'!$D$22+'BP Financier'!$E$22+'BP Financier'!$F$16+'BP Financier'!$F$19+'BP Financier'!$F$22))*$V6224*X6224/(1-$W6224)","v":{"v":35017.42590814408,"d":"35,017"}},{"$f":"'BP Financier'!$F$44*(('BP Financier'!$C$16+'BP Financier'!$D$16+'BP Financier'!$E$16+'BP Financier'!$F$16)/('BP Financier'!$C$16+'BP Financier'!$C$19+'BP Financier'!$D$16+'BP Financier'!$D$19+'BP Financier'!$E$16+'BP Financier'!$E$19+'BP Financier'!$C$22+'BP Financier'!$D$22+'BP Financier'!$E$22+'BP Financier'!$F$16+'BP Financier'!$F$19+'BP Financier'!$F$22))*$V6224*Y6224/(1-$W6224)","v":{"v":23409.439419256538,"d":"23,409"}},{"$f":"'BP Financier'!$F$44*(('BP Financier'!$C$16+'BP Financier'!$D$16+'BP Financier'!$E$16+'BP Financier'!$F$16)/('BP Financier'!$C$16+'BP Financier'!$C$19+'BP Financier'!$D$16+'BP Financier'!$D$19+'BP Financier'!$E$16+'BP Financier'!$E$19+'BP Financier'!$C$22+'BP Financier'!$D$22+'BP Financier'!$E$22+'BP Financier'!$F$16+'BP Financier'!$F$19+'BP Financier'!$F$22))*$V6224*Z6224/(1-$W6224)","v":{"v":183212.72008294167,"d":"183,213"}},{"$f":"'BP Financier'!$F$44*(('BP Financier'!$C$16+'BP Financier'!$D$16+'BP Financier'!$E$16+'BP Financier'!$F$16)/('BP Financier'!$C$16+'BP Financier'!$C$19+'BP Financier'!$D$16+'BP Financier'!$D$19+'BP Financier'!$E$16+'BP Financier'!$E$19+'BP Financier'!$C$22+'BP Financier'!$D$22+'BP Financier'!$E$22+'BP Financier'!$F$16+'BP Financier'!$F$19+'BP Financier'!$F$22))*$V6224*AA6224/(1-$W6224)","v":{"v":22635.573653330703,"d":"22,636"}},{"$f":"'BP Financier'!$F$44*(('BP Financier'!$C$16+'BP Financier'!$D$16+'BP Financier'!$E$16+'BP Financier'!$F$16)/('BP Financier'!$C$16+'BP Financier'!$C$19+'BP Financier'!$D$16+'BP Financier'!$D$19+'BP Financier'!$E$16+'BP Financier'!$E$19+'BP Financier'!$C$22+'BP Financier'!$D$22+'BP Financier'!$E$22+'BP Financier'!$F$16+'BP Financier'!$F$19+'BP Financier'!$F$22))*$V6224*AB6224/(1-$W6224)","v":{"v":10834.120722961703,"d":"10,834"}},null,{"v":1.25E-3,"d":"0.13%"},{"$f":"Actif!$E$28/100","v":{"v":0.28900000000000003,"d":"28.90%"}},{"$f":"Actif!$E$30/100","v":{"v":0.09050000000000001,"d":"9.05%"}},{"$f":"Actif!$E$31/100","v":{"v":0.0605,"d":"6.05%"}},{"$f":"Actif!$E$32/100","v":{"v":0.47350000000000003,"d":"47.35%"}},{"$f":"Actif!$E$33/100","v":{"v":0.0585,"d":"5.85%"}},{"$f":"Actif!$E$29/100","v":{"v":0.027999999999999997,"d":"2.80%"}}]
[null,"#118",47,2028,"F","A_VIE",{"v":0.44999999999999996,"d":"0.45"},{"v":0.38999999999999996,"d":"0.39"},0.6,0.6,85,0,{"$f":"ROUND(Primes!$P$4*V6225,0)","v":12},{"$f":"'BP Financier'!$F$33*(('BP Financier'!$C$16+'BP Financier'!$D$16+'BP Financier'!$E$16+'BP Financier'!$F$16)/('BP Financier'!$C$16+'BP Financier'!$C$19+'BP Financier'!$D$16+'BP Financier'!$D$19+'BP Financier'!$E$16+'BP Financier'!$E$19+'BP Financier'!$F$16+'BP Financier'!$F$19))*V6225","v":{"v":484971.6977773321,"d":"484,972"}},{"v":275109.2797866347,"d":"275,109"},{"$f":"'BP Financier'!$F$44*(('BP Financier'!$C$16+'BP Financier'!$D$16+'BP Financier'!$E$16+'BP Financier'!$F$16)/('BP Financier'!$C$16+'BP Financier'!$C$19+'BP Financier'!$D$16+'BP Financier'!$D$19+'BP Financier'!$E$16+'BP Financier'!$E$19+'BP Financier'!$C$22+'BP Financier'!$D$22+'BP Financier'!$E$22+'BP Financier'!$F$16+'BP Financier'!$F$19+'BP Financier'!$F$22))*$V6225*X6225/(1-$W6225)","v":{"v":35017.42590814408,"d":"35,017"}},{"$f":"'BP Financier'!$F$44*(('BP Financier'!$C$16+'BP Financier'!$D$16+'BP Financier'!$E$16+'BP Financier'!$F$16)/('BP Financier'!$C$16+'BP Financier'!$C$19+'BP Financier'!$D$16+'BP Financier'!$D$19+'BP Financier'!$E$16+'BP Financier'!$E$19+'BP Financier'!$C$22+'BP Financier'!$D$22+'BP Financier'!$E$22+'BP Financier'!$F$16+'BP Financier'!$F$19+'BP Financier'!$F$22))*$V6225*Y6225/(1-$W6225)","v":{"v":23409.439419256538,"d":"23,409"}},{"$f":"'BP Financier'!$F$44*(('BP Financier'!$C$16+'BP Financier'!$D$16+'BP Financier'!$E$16+'BP Financier'!$F$16)/('BP Financier'!$C$16+'BP Financier'!$C$19+'BP Financier'!$D$16+'BP Financier'!$D$19+'BP Financier'!$E$16+'BP Financier'!$E$19+'BP Financier'!$C$22+'BP Financier'!$D$22+'BP Financier'!$E$22+'BP Financier'!$F$16+'BP Financier'!$F$19+'BP Financier'!$F$22))*$V6225*Z6225/(1-$W6225)","v":{"v":183212.72008294167,"d":"183,213"}},{"$f":"'BP Financier'!$F$44*(('BP Financier'!$C$16+'BP Financier'!$D$16+'BP Financier'!$E$16+'BP Financier'!$F$16)/('BP Financier'!$C$16+'BP Financier'!$C$19+'BP Financier'!$D$16+'BP Financier'!$D$19+'BP Financier'!$E$16+'BP Financier'!$E$19+'BP Financier'!$C$22+'BP Financier'!$D$22+'BP Financier'!$E$22+'BP Financier'!$F$16+'BP Financier'!$F$19+'BP Financier'!$F$22))*$V6225*AA6225/(1-$W6225)","v":{"v":22635.573653330703,"d":"22,636"}},{"$f":"'BP Financier'!$F$44*(('BP Financier'!$C$16+'BP Financier'!$D$16+'BP Financier'!$E$16+'BP Financier'!$F$16)/('BP Financier'!$C$16+'BP Financier'!$C$19+'BP Financier'!$D$16+'BP Financier'!$D$19+'BP Financier'!$E$16+'BP Financier'!$E$19+'BP Financier'!$C$22+'BP Financier'!$D$22+'BP Financier'!$E$22+'BP Financier'!$F$16+'BP Financier'!$F$19+'BP Financier'!$F$22))*$V6225*AB6225/(1-$W6225)","v":{"v":10834.120722961703,"d":"10,834"}},null,{"v":1.25E-3,"d":"0.13%"},{"$f":"Actif!$E$28/100","v":{"v":0.28900000000000003,"d":"28.90%"}},{"$f":"Actif!$E$30/100","v":{"v":0.09050000000000001,"d":"9.05%"}},{"$f":"Actif!$E$31/100","v":{"v":0.0605,"d":"6.05%"}},{"$f":"Actif!$E$32/100","v":{"v":0.47350000000000003,"d":"47.35%"}},{"$f":"Actif!$E$33/100","v":{"v":0.0585,"d":"5.85%"}},{"$f":"Actif!$E$29/100","v":{"v":0.027999999999999997,"d":"2.80%"}}]
[null,"#119",47,2029,"F","A_VIE",{"v":0.44999999999999996,"d":"0.45"},{"v":0.38999999999999996,"d":"0.39"},0.6,0.6,85,0,{"$f":"ROUND(Primes!$P$4*V6226,0)","v":12},{"$f":"'BP Financier'!$F$33*(('BP Financier'!$C$16+'BP Financier'!$D$16+'BP Financier'!$E$16+'BP Financier'!$F$16)/('BP Financier'!$C$16+'BP Financier'!$C$19+'BP Financier'!$D$16+'BP Financier'!$D$19+'BP Financier'!$E$16+'BP Financier'!$E$19+'BP Financier'!$F$16+'BP Financier'!$F$19))*V6226","v":{"v":484971.6977773321,"d":"484,972"}},{"v":275109.2797866347,"d":"275,109"},{"$f":"'BP Financier'!$F$44*(('BP Financier'!$C$16+'BP Financier'!$D$16+'BP Financier'!$E$16+'BP Financier'!$F$16)/('BP Financier'!$C$16+'BP Financier'!$C$19+'BP Financier'!$D$16+'BP Financier'!$D$19+'BP Financier'!$E$16+'BP Financier'!$E$19+'BP Financier'!$C$22+'BP Financier'!$D$22+'BP Financier'!$E$22+'BP Financier'!$F$16+'BP Financier'!$F$19+'BP Financier'!$F$22))*$V6226*X6226/(1-$W6226)","v":{"v":35017.42590814408,"d":"35,017"}},{"$f":"'BP Financier'!$F$44*(('BP Financier'!$C$16+'BP Financier'!$D$16+'BP Financier'!$E$16+'BP Financier'!$F$16)/('BP Financier'!$C$16+'BP Financier'!$C$19+'BP Financier'!$D$16+'BP Financier'!$D$19+'BP Financier'!$E$16+'BP Financier'!$E$19+'BP Financier'!$C$22+'BP Financier'!$D$22+'BP Financier'!$E$22+'BP Financier'!$F$16+'BP Financier'!$F$19+'BP Financier'!$F$22))*$V6226*Y6226/(1-$W6226)","v":{"v":23409.439419256538,"d":"23,409"}},{"$f":"'BP Financier'!$F$44*(('BP Financier'!$C$16+'BP Financier'!$D$16+'BP Financier'!$E$16+'BP Financier'!$F$16)/('BP Financier'!$C$16+'BP Financier'!$C$19+'BP Financier'!$D$16+'BP Financier'!$D$19+'BP Financier'!$E$16+'BP Financier'!$E$19+'BP Financier'!$C$22+'BP Financier'!$D$22+'BP Financier'!$E$22+'BP Financier'!$F$16+'BP Financier'!$F$19+'BP Financier'!$F$22))*$V6226*Z6226/(1-$W6226)","v":{"v":183212.72008294167,"d":"183,213"}},{"$f":"'BP Financier'!$F$44*(('BP Financier'!$C$16+'BP Financier'!$D$16+'BP Financier'!$E$16+'BP Financier'!$F$16)/('BP Financier'!$C$16+'BP Financier'!$C$19+'BP Financier'!$D$16+'BP Financier'!$D$19+'BP Financier'!$E$16+'BP Financier'!$E$19+'BP Financier'!$C$22+'BP Financier'!$D$22+'BP Financier'!$E$22+'BP Financier'!$F$16+'BP Financier'!$F$19+'BP Financier'!$F$22))*$V6226*AA6226/(1-$W6226)","v":{"v":22635.573653330703,"d":"22,636"}},{"$f":"'BP Financier'!$F$44*(('BP Financier'!$C$16+'BP Financier'!$D$16+'BP Financier'!$E$16+'BP Financier'!$F$16)/('BP Financier'!$C$16+'BP Financier'!$C$19+'BP Financier'!$D$16+'BP Financier'!$D$19+'BP Financier'!$E$16+'BP Financier'!$E$19+'BP Financier'!$C$22+'BP Financier'!$D$22+'BP Financier'!$E$22+'BP Financier'!$F$16+'BP Financier'!$F$19+'BP Financier'!$F$22))*$V6226*AB6226/(1-$W6226)","v":{"v":10834.120722961703,"d":"10,834"}},null,{"v":1.25E-3,"d":"0.13%"},{"$f":"Actif!$E$28/100","v":{"v":0.28900000000000003,"d":"28.90%"}},{"$f":"Actif!$E$30/100","v":{"v":0.09050000000000001,"d":"9.05%"}},{"$f":"Actif!$E$31/100","v":{"v":0.0605,"d":"6.05%"}},{"$f":"Actif!$E$32/100","v":{"v":0.47350000000000003,"d":"47.35%"}},{"$f":"Actif!$E$33/100","v":{"v":0.0585,"d":"5.85%"}},{"$f":"Actif!$E$29/100","v":{"v":0.027999999999999997,"d":"2.80%"}}]
[null,"#120",47,2030,"F","A_VIE",{"v":0.44999999999999996,"d":"0.45"},{"v":0.38999999999999996,"d":"0.39"},0.6,0.6,85,0,{"$f":"ROUND(Primes!$P$4*V6227,0)","v":12},{"$f":"'BP Financier'!$F$33*(('BP Financier'!$C$16+'BP Financier'!$D$16+'BP Financier'!$E$16+'BP Financier'!$F$16)/('BP Financier'!$C$16+'BP Financier'!$C$19+'BP Financier'!$D$16+'BP Financier'!$D$19+'BP Financier'!$E$16+'BP Financier'!$E$19+'BP Financier'!$F$16+'BP Financier'!$F$19))*V6227","v":{"v":484971.6977773321,"d":"484,972"}},{"v":275109.2797866347,"d":"275,109"},{"$f":"'BP Financier'!$F$44*(('BP Financier'!$C$16+'BP Financier'!$D$16+'BP Financier'!$E$16+'BP Financier'!$F$16)/('BP Financier'!$C$16+'BP Financier'!$C$19+'BP Financier'!$D$16+'BP Financier'!$D$19+'BP Financier'!$E$16+'BP Financier'!$E$19+'BP Financier'!$C$22+'BP Financier'!$D$22+'BP Financier'!$E$22+'BP Financier'!$F$16+'BP Financier'!$F$19+'BP Financier'!$F$22))*$V6227*X6227/(1-$W6227)","v":{"v":35017.42590814408,"d":"35,017"}},{"$f":"'BP Financier'!$F$44*(('BP Financier'!$C$16+'BP Financier'!$D$16+'BP Financier'!$E$16+'BP Financier'!$F$16)/('BP Financier'!$C$16+'BP Financier'!$C$19+'BP Financier'!$D$16+'BP Financier'!$D$19+'BP Financier'!$E$16+'BP Financier'!$E$19+'BP Financier'!$C$22+'BP Financier'!$D$22+'BP Financier'!$E$22+'BP Financier'!$F$16+'BP Financier'!$F$19+'BP Financier'!$F$22))*$V6227*Y6227/(1-$W6227)","v":{"v":23409.439419256538,"d":"23,409"}},{"$f":"'BP Financier'!$F$44*(('BP Financier'!$C$16+'BP Financier'!$D$16+'BP Financier'!$E$16+'BP Financier'!$F$16)/('BP Financier'!$C$16+'BP Financier'!$C$19+'BP Financier'!$D$16+'BP Financier'!$D$19+'BP Financier'!$E$16+'BP Financier'!$E$19+'BP Financier'!$C$22+'BP Financier'!$D$22+'BP Financier'!$E$22+'BP Financier'!$F$16+'BP Financier'!$F$19+'BP Financier'!$F$22))*$V6227*Z6227/(1-$W6227)","v":{"v":183212.72008294167,"d":"183,213"}},{"$f":"'BP Financier'!$F$44*(('BP Financier'!$C$16+'BP Financier'!$D$16+'BP Financier'!$E$16+'BP Financier'!$F$16)/('BP Financier'!$C$16+'BP Financier'!$C$19+'BP Financier'!$D$16+'BP Financier'!$D$19+'BP Financier'!$E$16+'BP Financier'!$E$19+'BP Financier'!$C$22+'BP Financier'!$D$22+'BP Financier'!$E$22+'BP Financier'!$F$16+'BP Financier'!$F$19+'BP Financier'!$F$22))*$V6227*AA6227/(1-$W6227)","v":{"v":22635.573653330703,"d":"22,636"}},{"$f":"'BP Financier'!$F$44*(('BP Financier'!$C$16+'BP Financier'!$D$16+'BP Financier'!$E$16+'BP Financier'!$F$16)/('BP Financier'!$C$16+'BP Financier'!$C$19+'BP Financier'!$D$16+'BP Financier'!$D$19+'BP Financier'!$E$16+'BP Financier'!$E$19+'BP Financier'!$C$22+'BP Financier'!$D$22+'BP Financier'!$E$22+'BP Financier'!$F$16+'BP Financier'!$F$19+'BP Financier'!$F$22))*$V6227*AB6227/(1-$W6227)","v":{"v":10834.120722961703,"d":"10,834"}},null,{"v":1.25E-3,"d":"0.13%"},{"$f":"Actif!$E$28/100","v":{"v":0.28900000000000003,"d":"28.90%"}},{"$f":"Actif!$E$30/100","v":{"v":0.09050000000000001,"d":"9.05%"}},{"$f":"Actif!$E$31/100","v":{"v":0.0605,"d":"6.05%"}},{"$f":"Actif!$E$32/100","v":{"v":0.47350000000000003,"d":"47.35%"}},{"$f":"Actif!$E$33/100","v":{"v":0.0585,"d":"5.85%"}},{"$f":"Actif!$E$29/100","v":{"v":0.027999999999999997,"d":"2.80%"}}]
[null,"#121",48,2026,"H","A_VIE",{"v":0.44999999999999996,"d":"0.45"},{"v":0.38999999999999996,"d":"0.39"},0.6,0.6,85,0,{"$f":"ROUND(Primes!$P$4*V6228,0)","v":12},{"$f":"'BP Financier'!$F$33*(('BP Financier'!$C$16+'BP Financier'!$D$16+'BP Financier'!$E$16+'BP Financier'!$F$16)/('BP Financier'!$C$16+'BP Financier'!$C$19+'BP Financier'!$D$16+'BP Financier'!$D$19+'BP Financier'!$E$16+'BP Financier'!$E$19+'BP Financier'!$F$16+'BP Financier'!$F$19))*V6228","v":{"v":484971.6977773321,"d":"484,972"}},{"v":275109.2797866347,"d":"275,109"},{"$f":"'BP Financier'!$F$44*(('BP Financier'!$C$16+'BP Financier'!$D$16+'BP Financier'!$E$16+'BP Financier'!$F$16)/('BP Financier'!$C$16+'BP Financier'!$C$19+'BP Financier'!$D$16+'BP Financier'!$D$19+'BP Financier'!$E$16+'BP Financier'!$E$19+'BP Financier'!$C$22+'BP Financier'!$D$22+'BP Financier'!$E$22+'BP Financier'!$F$16+'BP Financier'!$F$19+'BP Financier'!$F$22))*$V6228*X6228/(1-$W6228)","v":{"v":35017.42590814408,"d":"35,017"}},{"$f":"'BP Financier'!$F$44*(('BP Financier'!$C$16+'BP Financier'!$D$16+'BP Financier'!$E$16+'BP Financier'!$F$16)/('BP Financier'!$C$16+'BP Financier'!$C$19+'BP Financier'!$D$16+'BP Financier'!$D$19+'BP Financier'!$E$16+'BP Financier'!$E$19+'BP Financier'!$C$22+'BP Financier'!$D$22+'BP Financier'!$E$22+'BP Financier'!$F$16+'BP Financier'!$F$19+'BP Financier'!$F$22))*$V6228*Y6228/(1-$W6228)","v":{"v":23409.439419256538,"d":"23,409"}},{"$f":"'BP Financier'!$F$44*(('BP Financier'!$C$16+'BP Financier'!$D$16+'BP Financier'!$E$16+'BP Financier'!$F$16)/('BP Financier'!$C$16+'BP Financier'!$C$19+'BP Financier'!$D$16+'BP Financier'!$D$19+'BP Financier'!$E$16+'BP Financier'!$E$19+'BP Financier'!$C$22+'BP Financier'!$D$22+'BP Financier'!$E$22+'BP Financier'!$F$16+'BP Financier'!$F$19+'BP Financier'!$F$22))*$V6228*Z6228/(1-$W6228)","v":{"v":183212.72008294167,"d":"183,213"}},{"$f":"'BP Financier'!$F$44*(('BP Financier'!$C$16+'BP Financier'!$D$16+'BP Financier'!$E$16+'BP Financier'!$F$16)/('BP Financier'!$C$16+'BP Financier'!$C$19+'BP Financier'!$D$16+'BP Financier'!$D$19+'BP Financier'!$E$16+'BP Financier'!$E$19+'BP Financier'!$C$22+'BP Financier'!$D$22+'BP Financier'!$E$22+'BP Financier'!$F$16+'BP Financier'!$F$19+'BP Financier'!$F$22))*$V6228*AA6228/(1-$W6228)","v":{"v":22635.573653330703,"d":"22,636"}},{"$f":"'BP Financier'!$F$44*(('BP Financier'!$C$16+'BP Financier'!$D$16+'BP Financier'!$E$16+'BP Financier'!$F$16)/('BP Financier'!$C$16+'BP Financier'!$C$19+'BP Financier'!$D$16+'BP Financier'!$D$19+'BP Financier'!$E$16+'BP Financier'!$E$19+'BP Financier'!$C$22+'BP Financier'!$D$22+'BP Financier'!$E$22+'BP Financier'!$F$16+'BP Financier'!$F$19+'BP Financier'!$F$22))*$V6228*AB6228/(1-$W6228)","v":{"v":10834.120722961703,"d":"10,834"}},null,{"v":1.25E-3,"d":"0.13%"},{"$f":"Actif!$E$28/100","v":{"v":0.28900000000000003,"d":"28.90%"}},{"$f":"Actif!$E$30/100","v":{"v":0.09050000000000001,"d":"9.05%"}},{"$f":"Actif!$E$31/100","v":{"v":0.0605,"d":"6.05%"}},{"$f":"Actif!$E$32/100","v":{"v":0.47350000000000003,"d":"47.35%"}},{"$f":"Actif!$E$33/100","v":{"v":0.0585,"d":"5.85%"}},{"$f":"Actif!$E$29/100","v":{"v":0.027999999999999997,"d":"2.80%"}}]
[null,"#122",48,2028,"H","A_VIE",{"v":0.44999999999999996,"d":"0.45"},{"v":0.38999999999999996,"d":"0.39"},0.6,0.6,85,0,{"$f":"ROUND(Primes!$P$4*V6229,0)","v":12},{"$f":"'BP Financier'!$F$33*(('BP Financier'!$C$16+'BP Financier'!$D$16+'BP Financier'!$E$16+'BP Financier'!$F$16)/('BP Financier'!$C$16+'BP Financier'!$C$19+'BP Financier'!$D$16+'BP Financier'!$D$19+'BP Financier'!$E$16+'BP Financier'!$E$19+'BP Financier'!$F$16+'BP Financier'!$F$19))*V6229","v":{"v":484971.6977773321,"d":"484,972"}},{"v":275109.2797866347,"d":"275,109"},{"$f":"'BP Financier'!$F$44*(('BP Financier'!$C$16+'BP Financier'!$D$16+'BP Financier'!$E$16+'BP Financier'!$F$16)/('BP Financier'!$C$16+'BP Financier'!$C$19+'BP Financier'!$D$16+'BP Financier'!$D$19+'BP Financier'!$E$16+'BP Financier'!$E$19+'BP Financier'!$C$22+'BP Financier'!$D$22+'BP Financier'!$E$22+'BP Financier'!$F$16+'BP Financier'!$F$19+'BP Financier'!$F$22))*$V6229*X6229/(1-$W6229)","v":{"v":35017.42590814408,"d":"35,017"}},{"$f":"'BP Financier'!$F$44*(('BP Financier'!$C$16+'BP Financier'!$D$16+'BP Financier'!$E$16+'BP Financier'!$F$16)/('BP Financier'!$C$16+'BP Financier'!$C$19+'BP Financier'!$D$16+'BP Financier'!$D$19+'BP Financier'!$E$16+'BP Financier'!$E$19+'BP Financier'!$C$22+'BP Financier'!$D$22+'BP Financier'!$E$22+'BP Financier'!$F$16+'BP Financier'!$F$19+'BP Financier'!$F$22))*$V6229*Y6229/(1-$W6229)","v":{"v":23409.439419256538,"d":"23,409"}},{"$f":"'BP Financier'!$F$44*(('BP Financier'!$C$16+'BP Financier'!$D$16+'BP Financier'!$E$16+'BP Financier'!$F$16)/('BP Financier'!$C$16+'BP Financier'!$C$19+'BP Financier'!$D$16+'BP Financier'!$D$19+'BP Financier'!$E$16+'BP Financier'!$E$19+'BP Financier'!$C$22+'BP Financier'!$D$22+'BP Financier'!$E$22+'BP Financier'!$F$16+'BP Financier'!$F$19+'BP Financier'!$F$22))*$V6229*Z6229/(1-$W6229)","v":{"v":183212.72008294167,"d":"183,213"}},{"$f":"'BP Financier'!$F$44*(('BP Financier'!$C$16+'BP Financier'!$D$16+'BP Financier'!$E$16+'BP Financier'!$F$16)/('BP Financier'!$C$16+'BP Financier'!$C$19+'BP Financier'!$D$16+'BP Financier'!$D$19+'BP Financier'!$E$16+'BP Financier'!$E$19+'BP Financier'!$C$22+'BP Financier'!$D$22+'BP Financier'!$E$22+'BP Financier'!$F$16+'BP Financier'!$F$19+'BP Financier'!$F$22))*$V6229*AA6229/(1-$W6229)","v":{"v":22635.573653330703,"d":"22,636"}},{"$f":"'BP Financier'!$F$44*(('BP Financier'!$C$16+'BP Financier'!$D$16+'BP Financier'!$E$16+'BP Financier'!$F$16)/('BP Financier'!$C$16+'BP Financier'!$C$19+'BP Financier'!$D$16+'BP Financier'!$D$19+'BP Financier'!$E$16+'BP Financier'!$E$19+'BP Financier'!$C$22+'BP Financier'!$D$22+'BP Financier'!$E$22+'BP Financier'!$F$16+'BP Financier'!$F$19+'BP Financier'!$F$22))*$V6229*AB6229/(1-$W6229)","v":{"v":10834.120722961703,"d":"10,834"}},null,{"v":1.25E-3,"d":"0.13%"},{"$f":"Actif!$E$28/100","v":{"v":0.28900000000000003,"d":"28.90%"}},{"$f":"Actif!$E$30/100","v":{"v":0.09050000000000001,"d":"9.05%"}},{"$f":"Actif!$E$31/100","v":{"v":0.0605,"d":"6.05%"}},{"$f":"Actif!$E$32/100","v":{"v":0.47350000000000003,"d":"47.35%"}},{"$f":"Actif!$E$33/100","v":{"v":0.0585,"d":"5.85%"}},{"$f":"Actif!$E$29/100","v":{"v":0.027999999999999997,"d":"2.80%"}}]
[null,"#123",48,2029,"H","A_VIE",{"v":0.44999999999999996,"d":"0.45"},{"v":0.38999999999999996,"d":"0.39"},0.6,0.6,85,0,{"$f":"ROUND(Primes!$P$4*V6230,0)","v":12},{"$f":"'BP Financier'!$F$33*(('BP Financier'!$C$16+'BP Financier'!$D$16+'BP Financier'!$E$16+'BP Financier'!$F$16)/('BP Financier'!$C$16+'BP Financier'!$C$19+'BP Financier'!$D$16+'BP Financier'!$D$19+'BP Financier'!$E$16+'BP Financier'!$E$19+'BP Financier'!$F$16+'BP Financier'!$F$19))*V6230","v":{"v":484971.6977773321,"d":"484,972"}},{"v":275109.2797866347,"d":"275,109"},{"$f":"'BP Financier'!$F$44*(('BP Financier'!$C$16+'BP Financier'!$D$16+'BP Financier'!$E$16+'BP Financier'!$F$16)/('BP Financier'!$C$16+'BP Financier'!$C$19+'BP Financier'!$D$16+'BP Financier'!$D$19+'BP Financier'!$E$16+'BP Financier'!$E$19+'BP Financier'!$C$22+'BP Financier'!$D$22+'BP Financier'!$E$22+'BP Financier'!$F$16+'BP Financier'!$F$19+'BP Financier'!$F$22))*$V6230*X6230/(1-$W6230)","v":{"v":35017.42590814408,"d":"35,017"}},{"$f":"'BP Financier'!$F$44*(('BP Financier'!$C$16+'BP Financier'!$D$16+'BP Financier'!$E$16+'BP Financier'!$F$16)/('BP Financier'!$C$16+'BP Financier'!$C$19+'BP Financier'!$D$16+'BP Financier'!$D$19+'BP Financier'!$E$16+'BP Financier'!$E$19+'BP Financier'!$C$22+'BP Financier'!$D$22+'BP Financier'!$E$22+'BP Financier'!$F$16+'BP Financier'!$F$19+'BP Financier'!$F$22))*$V6230*Y6230/(1-$W6230)","v":{"v":23409.439419256538,"d":"23,409"}},{"$f":"'BP Financier'!$F$44*(('BP Financier'!$C$16+'BP Financier'!$D$16+'BP Financier'!$E$16+'BP Financier'!$F$16)/('BP Financier'!$C$16+'BP Financier'!$C$19+'BP Financier'!$D$16+'BP Financier'!$D$19+'BP Financier'!$E$16+'BP Financier'!$E$19+'BP Financier'!$C$22+'BP Financier'!$D$22+'BP Financier'!$E$22+'BP Financier'!$F$16+'BP Financier'!$F$19+'BP Financier'!$F$22))*$V6230*Z6230/(1-$W6230)","v":{"v":183212.72008294167,"d":"183,213"}},{"$f":"'BP Financier'!$F$44*(('BP Financier'!$C$16+'BP Financier'!$D$16+'BP Financier'!$E$16+'BP Financier'!$F$16)/('BP Financier'!$C$16+'BP Financier'!$C$19+'BP Financier'!$D$16+'BP Financier'!$D$19+'BP Financier'!$E$16+'BP Financier'!$E$19+'BP Financier'!$C$22+'BP Financier'!$D$22+'BP Financier'!$E$22+'BP Financier'!$F$16+'BP Financier'!$F$19+'BP Financier'!$F$22))*$V6230*AA6230/(1-$W6230)","v":{"v":22635.573653330703,"d":"22,636"}},{"$f":"'BP Financier'!$F$44*(('BP Financier'!$C$16+'BP Financier'!$D$16+'BP Financier'!$E$16+'BP Financier'!$F$16)/('BP Financier'!$C$16+'BP Financier'!$C$19+'BP Financier'!$D$16+'BP Financier'!$D$19+'BP Financier'!$E$16+'BP Financier'!$E$19+'BP Financier'!$C$22+'BP Financier'!$D$22+'BP Financier'!$E$22+'BP Financier'!$F$16+'BP Financier'!$F$19+'BP Financier'!$F$22))*$V6230*AB6230/(1-$W6230)","v":{"v":10834.120722961703,"d":"10,834"}},null,{"v":1.25E-3,"d":"0.13%"},{"$f":"Actif!$E$28/100","v":{"v":0.28900000000000003,"d":"28.90%"}},{"$f":"Actif!$E$30/100","v":{"v":0.09050000000000001,"d":"9.05%"}},{"$f":"Actif!$E$31/100","v":{"v":0.0605,"d":"6.05%"}},{"$f":"Actif!$E$32/100","v":{"v":0.47350000000000003,"d":"47.35%"}},{"$f":"Actif!$E$33/100","v":{"v":0.0585,"d":"5.85%"}},{"$f":"Actif!$E$29/100","v":{"v":0.027999999999999997,"d":"2.80%"}}]
[null,"#124",48,2030,"H","A_VIE",{"v":0.44999999999999996,"d":"0.45"},{"v":0.38999999999999996,"d":"0.39"},0.6,0.6,85,0,{"$f":"ROUND(Primes!$P$4*V6231,0)","v":12},{"$f":"'BP Financier'!$F$33*(('BP Financier'!$C$16+'BP Financier'!$D$16+'BP Financier'!$E$16+'BP Financier'!$F$16)/('BP Financier'!$C$16+'BP Financier'!$C$19+'BP Financier'!$D$16+'BP Financier'!$D$19+'BP Financier'!$E$16+'BP Financier'!$E$19+'BP Financier'!$F$16+'BP Financier'!$F$19))*V6231","v":{"v":484971.6977773321,"d":"484,972"}},{"v":275109.2797866347,"d":"275,109"},{"$f":"'BP Financier'!$F$44*(('BP Financier'!$C$16+'BP Financier'!$D$16+'BP Financier'!$E$16+'BP Financier'!$F$16)/('BP Financier'!$C$16+'BP Financier'!$C$19+'BP Financier'!$D$16+'BP Financier'!$D$19+'BP Financier'!$E$16+'BP Financier'!$E$19+'BP Financier'!$C$22+'BP Financier'!$D$22+'BP Financier'!$E$22+'BP Financier'!$F$16+'BP Financier'!$F$19+'BP Financier'!$F$22))*$V6231*X6231/(1-$W6231)","v":{"v":35017.42590814408,"d":"35,017"}},{"$f":"'BP Financier'!$F$44*(('BP Financier'!$C$16+'BP Financier'!$D$16+'BP Financier'!$E$16+'BP Financier'!$F$16)/('BP Financier'!$C$16+'BP Financier'!$C$19+'BP Financier'!$D$16+'BP Financier'!$D$19+'BP Financier'!$E$16+'BP Financier'!$E$19+'BP Financier'!$C$22+'BP Financier'!$D$22+'BP Financier'!$E$22+'BP Financier'!$F$16+'BP Financier'!$F$19+'BP Financier'!$F$22))*$V6231*Y6231/(1-$W6231)","v":{"v":23409.439419256538,"d":"23,409"}},{"$f":"'BP Financier'!$F$44*(('BP Financier'!$C$16+'BP Financier'!$D$16+'BP Financier'!$E$16+'BP Financier'!$F$16)/('BP Financier'!$C$16+'BP Financier'!$C$19+'BP Financier'!$D$16+'BP Financier'!$D$19+'BP Financier'!$E$16+'BP Financier'!$E$19+'BP Financier'!$C$22+'BP Financier'!$D$22+'BP Financier'!$E$22+'BP Financier'!$F$16+'BP Financier'!$F$19+'BP Financier'!$F$22))*$V6231*Z6231/(1-$W6231)","v":{"v":183212.72008294167,"d":"183,213"}},{"$f":"'BP Financier'!$F$44*(('BP Financier'!$C$16+'BP Financier'!$D$16+'BP Financier'!$E$16+'BP Financier'!$F$16)/('BP Financier'!$C$16+'BP Financier'!$C$19+'BP Financier'!$D$16+'BP Financier'!$D$19+'BP Financier'!$E$16+'BP Financier'!$E$19+'BP Financier'!$C$22+'BP Financier'!$D$22+'BP Financier'!$E$22+'BP Financier'!$F$16+'BP Financier'!$F$19+'BP Financier'!$F$22))*$V6231*AA6231/(1-$W6231)","v":{"v":22635.573653330703,"d":"22,636"}},{"$f":"'BP Financier'!$F$44*(('BP Financier'!$C$16+'BP Financier'!$D$16+'BP Financier'!$E$16+'BP Financier'!$F$16)/('BP Financier'!$C$16+'BP Financier'!$C$19+'BP Financier'!$D$16+'BP Financier'!$D$19+'BP Financier'!$E$16+'BP Financier'!$E$19+'BP Financier'!$C$22+'BP Financier'!$D$22+'BP Financier'!$E$22+'BP Financier'!$F$16+'BP Financier'!$F$19+'BP Financier'!$F$22))*$V6231*AB6231/(1-$W6231)","v":{"v":10834.120722961703,"d":"10,834"}},null,{"v":1.25E-3,"d":"0.13%"},{"$f":"Actif!$E$28/100","v":{"v":0.28900000000000003,"d":"28.90%"}},{"$f":"Actif!$E$30/100","v":{"v":0.09050000000000001,"d":"9.05%"}},{"$f":"Actif!$E$31/100","v":{"v":0.0605,"d":"6.05%"}},{"$f":"Actif!$E$32/100","v":{"v":0.47350000000000003,"d":"47.35%"}},{"$f":"Actif!$E$33/100","v":{"v":0.0585,"d":"5.85%"}},{"$f":"Actif!$E$29/100","v":{"v":0.027999999999999997,"d":"2.80%"}}]
[null,"#125",49,2026,"H","A_VIE",{"v":0.44999999999999996,"d":"0.45"},{"v":0.38999999999999996,"d":"0.39"},0.6,0.6,85,0,{"$f":"ROUND(Primes!$P$4*V6232,0)","v":12},{"$f":"'BP Financier'!$F$33*(('BP Financier'!$C$16+'BP Financier'!$D$16+'BP Financier'!$E$16+'BP Financier'!$F$16)/('BP Financier'!$C$16+'BP Financier'!$C$19+'BP Financier'!$D$16+'BP Financier'!$D$19+'BP Financier'!$E$16+'BP Financier'!$E$19+'BP Financier'!$F$16+'BP Financier'!$F$19))*V6232","v":{"v":484971.6977773321,"d":"484,972"}},{"v":275109.2797866347,"d":"275,109"},{"$f":"'BP Financier'!$F$44*(('BP Financier'!$C$16+'BP Financier'!$D$16+'BP Financier'!$E$16+'BP Financier'!$F$16)/('BP Financier'!$C$16+'BP Financier'!$C$19+'BP Financier'!$D$16+'BP Financier'!$D$19+'BP Financier'!$E$16+'BP Financier'!$E$19+'BP Financier'!$C$22+'BP Financier'!$D$22+'BP Financier'!$E$22+'BP Financier'!$F$16+'BP Financier'!$F$19+'BP Financier'!$F$22))*$V6232*X6232/(1-$W6232)","v":{"v":35017.42590814408,"d":"35,017"}},{"$f":"'BP Financier'!$F$44*(('BP Financier'!$C$16+'BP Financier'!$D$16+'BP Financier'!$E$16+'BP Financier'!$F$16)/('BP Financier'!$C$16+'BP Financier'!$C$19+'BP Financier'!$D$16+'BP Financier'!$D$19+'BP Financier'!$E$16+'BP Financier'!$E$19+'BP Financier'!$C$22+'BP Financier'!$D$22+'BP Financier'!$E$22+'BP Financier'!$F$16+'BP Financier'!$F$19+'BP Financier'!$F$22))*$V6232*Y6232/(1-$W6232)","v":{"v":23409.439419256538,"d":"23,409"}},{"$f":"'BP Financier'!$F$44*(('BP Financier'!$C$16+'BP Financier'!$D$16+'BP Financier'!$E$16+'BP Financier'!$F$16)/('BP Financier'!$C$16+'BP Financier'!$C$19+'BP Financier'!$D$16+'BP Financier'!$D$19+'BP Financier'!$E$16+'BP Financier'!$E$19+'BP Financier'!$C$22+'BP Financier'!$D$22+'BP Financier'!$E$22+'BP Financier'!$F$16+'BP Financier'!$F$19+'BP Financier'!$F$22))*$V6232*Z6232/(1-$W6232)","v":{"v":183212.72008294167,"d":"183,213"}},{"$f":"'BP Financier'!$F$44*(('BP Financier'!$C$16+'BP Financier'!$D$16+'BP Financier'!$E$16+'BP Financier'!$F$16)/('BP Financier'!$C$16+'BP Financier'!$C$19+'BP Financier'!$D$16+'BP Financier'!$D$19+'BP Financier'!$E$16+'BP Financier'!$E$19+'BP Financier'!$C$22+'BP Financier'!$D$22+'BP Financier'!$E$22+'BP Financier'!$F$16+'BP Financier'!$F$19+'BP Financier'!$F$22))*$V6232*AA6232/(1-$W6232)","v":{"v":22635.573653330703,"d":"22,636"}},{"$f":"'BP Financier'!$F$44*(('BP Financier'!$C$16+'BP Financier'!$D$16+'BP Financier'!$E$16+'BP Financier'!$F$16)/('BP Financier'!$C$16+'BP Financier'!$C$19+'BP Financier'!$D$16+'BP Financier'!$D$19+'BP Financier'!$E$16+'BP Financier'!$E$19+'BP Financier'!$C$22+'BP Financier'!$D$22+'BP Financier'!$E$22+'BP Financier'!$F$16+'BP Financier'!$F$19+'BP Financier'!$F$22))*$V6232*AB6232/(1-$W6232)","v":{"v":10834.120722961703,"d":"10,834"}},null,{"v":1.25E-3,"d":"0.13%"},{"$f":"Actif!$E$28/100","v":{"v":0.28900000000000003,"d":"28.90%"}},{"$f":"Actif!$E$30/100","v":{"v":0.09050000000000001,"d":"9.05%"}},{"$f":"Actif!$E$31/100","v":{"v":0.0605,"d":"6.05%"}},{"$f":"Actif!$E$32/100","v":{"v":0.47350000000000003,"d":"47.35%"}},{"$f":"Actif!$E$33/100","v":{"v":0.0585,"d":"5.85%"}},{"$f":"Actif!$E$29/100","v":{"v":0.027999999999999997,"d":"2.80%"}}]
[null,"#126",49,2028,"H","A_VIE",{"v":0.44999999999999996,"d":"0.45"},{"v":0.38999999999999996,"d":"0.39"},0.6,0.6,85,0,{"$f":"ROUND(Primes!$P$4*V6233,0)","v":12},{"$f":"'BP Financier'!$F$33*(('BP Financier'!$C$16+'BP Financier'!$D$16+'BP Financier'!$E$16+'BP Financier'!$F$16)/('BP Financier'!$C$16+'BP Financier'!$C$19+'BP Financier'!$D$16+'BP Financier'!$D$19+'BP Financier'!$E$16+'BP Financier'!$E$19+'BP Financier'!$F$16+'BP Financier'!$F$19))*V6233","v":{"v":484971.6977773321,"d":"484,972"}},{"v":275109.2797866347,"d":"275,109"},{"$f":"'BP Financier'!$F$44*(('BP Financier'!$C$16+'BP Financier'!$D$16+'BP Financier'!$E$16+'BP Financier'!$F$16)/('BP Financier'!$C$16+'BP Financier'!$C$19+'BP Financier'!$D$16+'BP Financier'!$D$19+'BP Financier'!$E$16+'BP Financier'!$E$19+'BP Financier'!$C$22+'BP Financier'!$D$22+'BP Financier'!$E$22+'BP Financier'!$F$16+'BP Financier'!$F$19+'BP Financier'!$F$22))*$V6233*X6233/(1-$W6233)","v":{"v":35017.42590814408,"d":"35,017"}},{"$f":"'BP Financier'!$F$44*(('BP Financier'!$C$16+'BP Financier'!$D$16+'BP Financier'!$E$16+'BP Financier'!$F$16)/('BP Financier'!$C$16+'BP Financier'!$C$19+'BP Financier'!$D$16+'BP Financier'!$D$19+'BP Financier'!$E$16+'BP Financier'!$E$19+'BP Financier'!$C$22+'BP Financier'!$D$22+'BP Financier'!$E$22+'BP Financier'!$F$16+'BP Financier'!$F$19+'BP Financier'!$F$22))*$V6233*Y6233/(1-$W6233)","v":{"v":23409.439419256538,"d":"23,409"}},{"$f":"'BP Financier'!$F$44*(('BP Financier'!$C$16+'BP Financier'!$D$16+'BP Financier'!$E$16+'BP Financier'!$F$16)/('BP Financier'!$C$16+'BP Financier'!$C$19+'BP Financier'!$D$16+'BP Financier'!$D$19+'BP Financier'!$E$16+'BP Financier'!$E$19+'BP Financier'!$C$22+'BP Financier'!$D$22+'BP Financier'!$E$22+'BP Financier'!$F$16+'BP Financier'!$F$19+'BP Financier'!$F$22))*$V6233*Z6233/(1-$W6233)","v":{"v":183212.72008294167,"d":"183,213"}},{"$f":"'BP Financier'!$F$44*(('BP Financier'!$C$16+'BP Financier'!$D$16+'BP Financier'!$E$16+'BP Financier'!$F$16)/('BP Financier'!$C$16+'BP Financier'!$C$19+'BP Financier'!$D$16+'BP Financier'!$D$19+'BP Financier'!$E$16+'BP Financier'!$E$19+'BP Financier'!$C$22+'BP Financier'!$D$22+'BP Financier'!$E$22+'BP Financier'!$F$16+'BP Financier'!$F$19+'BP Financier'!$F$22))*$V6233*AA6233/(1-$W6233)","v":{"v":22635.573653330703,"d":"22,636"}},{"$f":"'BP Financier'!$F$44*(('BP Financier'!$C$16+'BP Financier'!$D$16+'BP Financier'!$E$16+'BP Financier'!$F$16)/('BP Financier'!$C$16+'BP Financier'!$C$19+'BP Financier'!$D$16+'BP Financier'!$D$19+'BP Financier'!$E$16+'BP Financier'!$E$19+'BP Financier'!$C$22+'BP Financier'!$D$22+'BP Financier'!$E$22+'BP Financier'!$F$16+'BP Financier'!$F$19+'BP Financier'!$F$22))*$V6233*AB6233/(1-$W6233)","v":{"v":10834.120722961703,"d":"10,834"}},null,{"v":1.25E-3,"d":"0.13%"},{"$f":"Actif!$E$28/100","v":{"v":0.28900000000000003,"d":"28.90%"}},{"$f":"Actif!$E$30/100","v":{"v":0.09050000000000001,"d":"9.05%"}},{"$f":"Actif!$E$31/100","v":{"v":0.0605,"d":"6.05%"}},{"$f":"Actif!$E$32/100","v":{"v":0.47350000000000003,"d":"47.35%"}},{"$f":"Actif!$E$33/100","v":{"v":0.0585,"d":"5.85%"}},{"$f":"Actif!$E$29/100","v":{"v":0.027999999999999997,"d":"2.80%"}}]
[null,"#127",49,2029,"H","A_VIE",{"v":0.44999999999999996,"d":"0.45"},{"v":0.38999999999999996,"d":"0.39"},0.6,0.6,85,0,{"$f":"ROUND(Primes!$P$4*V6234,0)","v":12},{"$f":"'BP Financier'!$F$33*(('BP Financier'!$C$16+'BP Financier'!$D$16+'BP Financier'!$E$16+'BP Financier'!$F$16)/('BP Financier'!$C$16+'BP Financier'!$C$19+'BP Financier'!$D$16+'BP Financier'!$D$19+'BP Financier'!$E$16+'BP Financier'!$E$19+'BP Financier'!$F$16+'BP Financier'!$F$19))*V6234","v":{"v":484971.6977773321,"d":"484,972"}},{"v":275109.2797866347,"d":"275,109"},{"$f":"'BP Financier'!$F$44*(('BP Financier'!$C$16+'BP Financier'!$D$16+'BP Financier'!$E$16+'BP Financier'!$F$16)/('BP Financier'!$C$16+'BP Financier'!$C$19+'BP Financier'!$D$16+'BP Financier'!$D$19+'BP Financier'!$E$16+'BP Financier'!$E$19+'BP Financier'!$C$22+'BP Financier'!$D$22+'BP Financier'!$E$22+'BP Financier'!$F$16+'BP Financier'!$F$19+'BP Financier'!$F$22))*$V6234*X6234/(1-$W6234)","v":{"v":35017.42590814408,"d":"35,017"}},{"$f":"'BP Financier'!$F$44*(('BP Financier'!$C$16+'BP Financier'!$D$16+'BP Financier'!$E$16+'BP Financier'!$F$16)/('BP Financier'!$C$16+'BP Financier'!$C$19+'BP Financier'!$D$16+'BP Financier'!$D$19+'BP Financier'!$E$16+'BP Financier'!$E$19+'BP Financier'!$C$22+'BP Financier'!$D$22+'BP Financier'!$E$22+'BP Financier'!$F$16+'BP Financier'!$F$19+'BP Financier'!$F$22))*$V6234*Y6234/(1-$W6234)","v":{"v":23409.439419256538,"d":"23,409"}},{"$f":"'BP Financier'!$F$44*(('BP Financier'!$C$16+'BP Financier'!$D$16+'BP Financier'!$E$16+'BP Financier'!$F$16)/('BP Financier'!$C$16+'BP Financier'!$C$19+'BP Financier'!$D$16+'BP Financier'!$D$19+'BP Financier'!$E$16+'BP Financier'!$E$19+'BP Financier'!$C$22+'BP Financier'!$D$22+'BP Financier'!$E$22+'BP Financier'!$F$16+'BP Financier'!$F$19+'BP Financier'!$F$22))*$V6234*Z6234/(1-$W6234)","v":{"v":183212.72008294167,"d":"183,213"}},{"$f":"'BP Financier'!$F$44*(('BP Financier'!$C$16+'BP Financier'!$D$16+'BP Financier'!$E$16+'BP Financier'!$F$16)/('BP Financier'!$C$16+'BP Financier'!$C$19+'BP Financier'!$D$16+'BP Financier'!$D$19+'BP Financier'!$E$16+'BP Financier'!$E$19+'BP Financier'!$C$22+'BP Financier'!$D$22+'BP Financier'!$E$22+'BP Financier'!$F$16+'BP Financier'!$F$19+'BP Financier'!$F$22))*$V6234*AA6234/(1-$W6234)","v":{"v":22635.573653330703,"d":"22,636"}},{"$f":"'BP Financier'!$F$44*(('BP Financier'!$C$16+'BP Financier'!$D$16+'BP Financier'!$E$16+'BP Financier'!$F$16)/('BP Financier'!$C$16+'BP Financier'!$C$19+'BP Financier'!$D$16+'BP Financier'!$D$19+'BP Financier'!$E$16+'BP Financier'!$E$19+'BP Financier'!$C$22+'BP Financier'!$D$22+'BP Financier'!$E$22+'BP Financier'!$F$16+'BP Financier'!$F$19+'BP Financier'!$F$22))*$V6234*AB6234/(1-$W6234)","v":{"v":10834.120722961703,"d":"10,834"}},null,{"v":1.25E-3,"d":"0.13%"},{"$f":"Actif!$E$28/100","v":{"v":0.28900000000000003,"d":"28.90%"}},{"$f":"Actif!$E$30/100","v":{"v":0.09050000000000001,"d":"9.05%"}},{"$f":"Actif!$E$31/100","v":{"v":0.0605,"d":"6.05%"}},{"$f":"Actif!$E$32/100","v":{"v":0.47350000000000003,"d":"47.35%"}},{"$f":"Actif!$E$33/100","v":{"v":0.0585,"d":"5.85%"}},{"$f":"Actif!$E$29/100","v":{"v":0.027999999999999997,"d":"2.80%"}}]
[null,"#128",49,2030,"H","A_VIE",{"v":0.44999999999999996,"d":"0.45"},{"v":0.38999999999999996,"d":"0.39"},0.6,0.6,85,0,{"$f":"ROUND(Primes!$P$4*V6235,0)","v":12},{"$f":"'BP Financier'!$F$33*(('BP Financier'!$C$16+'BP Financier'!$D$16+'BP Financier'!$E$16+'BP Financier'!$F$16)/('BP Financier'!$C$16+'BP Financier'!$C$19+'BP Financier'!$D$16+'BP Financier'!$D$19+'BP Financier'!$E$16+'BP Financier'!$E$19+'BP Financier'!$F$16+'BP Financier'!$F$19))*V6235","v":{"v":484971.6977773321,"d":"484,972"}},{"v":275109.2797866347,"d":"275,109"},{"$f":"'BP Financier'!$F$44*(('BP Financier'!$C$16+'BP Financier'!$D$16+'BP Financier'!$E$16+'BP Financier'!$F$16)/('BP Financier'!$C$16+'BP Financier'!$C$19+'BP Financier'!$D$16+'BP Financier'!$D$19+'BP Financier'!$E$16+'BP Financier'!$E$19+'BP Financier'!$C$22+'BP Financier'!$D$22+'BP Financier'!$E$22+'BP Financier'!$F$16+'BP Financier'!$F$19+'BP Financier'!$F$22))*$V6235*X6235/(1-$W6235)","v":{"v":35017.42590814408,"d":"35,017"}},{"$f":"'BP Financier'!$F$44*(('BP Financier'!$C$16+'BP Financier'!$D$16+'BP Financier'!$E$16+'BP Financier'!$F$16)/('BP Financier'!$C$16+'BP Financier'!$C$19+'BP Financier'!$D$16+'BP Financier'!$D$19+'BP Financier'!$E$16+'BP Financier'!$E$19+'BP Financier'!$C$22+'BP Financier'!$D$22+'BP Financier'!$E$22+'BP Financier'!$F$16+'BP Financier'!$F$19+'BP Financier'!$F$22))*$V6235*Y6235/(1-$W6235)","v":{"v":23409.439419256538,"d":"23,409"}},{"$f":"'BP Financier'!$F$44*(('BP Financier'!$C$16+'BP Financier'!$D$16+'BP Financier'!$E$16+'BP Financier'!$F$16)/('BP Financier'!$C$16+'BP Financier'!$C$19+'BP Financier'!$D$16+'BP Financier'!$D$19+'BP Financier'!$E$16+'BP Financier'!$E$19+'BP Financier'!$C$22+'BP Financier'!$D$22+'BP Financier'!$E$22+'BP Financier'!$F$16+'BP Financier'!$F$19+'BP Financier'!$F$22))*$V6235*Z6235/(1-$W6235)","v":{"v":183212.72008294167,"d":"183,213"}},{"$f":"'BP Financier'!$F$44*(('BP Financier'!$C$16+'BP Financier'!$D$16+'BP Financier'!$E$16+'BP Financier'!$F$16)/('BP Financier'!$C$16+'BP Financier'!$C$19+'BP Financier'!$D$16+'BP Financier'!$D$19+'BP Financier'!$E$16+'BP Financier'!$E$19+'BP Financier'!$C$22+'BP Financier'!$D$22+'BP Financier'!$E$22+'BP Financier'!$F$16+'BP Financier'!$F$19+'BP Financier'!$F$22))*$V6235*AA6235/(1-$W6235)","v":{"v":22635.573653330703,"d":"22,636"}},{"$f":"'BP Financier'!$F$44*(('BP Financier'!$C$16+'BP Financier'!$D$16+'BP Financier'!$E$16+'BP Financier'!$F$16)/('BP Financier'!$C$16+'BP Financier'!$C$19+'BP Financier'!$D$16+'BP Financier'!$D$19+'BP Financier'!$E$16+'BP Financier'!$E$19+'BP Financier'!$C$22+'BP Financier'!$D$22+'BP Financier'!$E$22+'BP Financier'!$F$16+'BP Financier'!$F$19+'BP Financier'!$F$22))*$V6235*AB6235/(1-$W6235)","v":{"v":10834.120722961703,"d":"10,834"}},null,{"v":1.25E-3,"d":"0.13%"},{"$f":"Actif!$E$28/100","v":{"v":0.28900000000000003,"d":"28.90%"}},{"$f":"Actif!$E$30/100","v":{"v":0.09050000000000001,"d":"9.05%"}},{"$f":"Actif!$E$31/100","v":{"v":0.0605,"d":"6.05%"}},{"$f":"Actif!$E$32/100","v":{"v":0.47350000000000003,"d":"47.35%"}},{"$f":"Actif!$E$33/100","v":{"v":0.0585,"d":"5.85%"}},{"$f":"Actif!$E$29/100","v":{"v":0.027999999999999997,"d":"2.80%"}}]
[null,"#129",50,2026,"F","A_VIE",{"v":0.44999999999999996,"d":"0.45"},{"v":0.38999999999999996,"d":"0.39"},0.6,0.6,85,0,{"$f":"ROUND(Primes!$P$4*V6236,0)","v":71},{"$f":"'BP Financier'!$F$33*(('BP Financier'!$C$16+'BP Financier'!$D$16+'BP Financier'!$E$16+'BP Financier'!$F$16)/('BP Financier'!$C$16+'BP Financier'!$C$19+'BP Financier'!$D$16+'BP Financier'!$D$19+'BP Financier'!$E$16+'BP Financier'!$E$19+'BP Financier'!$F$16+'BP Financier'!$F$19))*V6236","v":{"v":2909830.1866639922,"d":"2,909,830"}},{"v":1650655.678719808,"d":"1,650,656"},{"$f":"'BP Financier'!$F$44*(('BP Financier'!$C$16+'BP Financier'!$D$16+'BP Financier'!$E$16+'BP Financier'!$F$16)/('BP Financier'!$C$16+'BP Financier'!$C$19+'BP Financier'!$D$16+'BP Financier'!$D$19+'BP Financier'!$E$16+'BP Financier'!$E$19+'BP Financier'!$C$22+'BP Financier'!$D$22+'BP Financier'!$E$22+'BP Financier'!$F$16+'BP Financier'!$F$19+'BP Financier'!$F$22))*$V6236*X6236/(1-$W6236)","v":{"v":210104.55544886444,"d":"210,105"}},{"$f":"'BP Financier'!$F$44*(('BP Financier'!$C$16+'BP Financier'!$D$16+'BP Financier'!$E$16+'BP Financier'!$F$16)/('BP Financier'!$C$16+'BP Financier'!$C$19+'BP Financier'!$D$16+'BP Financier'!$D$19+'BP Financier'!$E$16+'BP Financier'!$E$19+'BP Financier'!$C$22+'BP Financier'!$D$22+'BP Financier'!$E$22+'BP Financier'!$F$16+'BP Financier'!$F$19+'BP Financier'!$F$22))*$V6236*Y6236/(1-$W6236)","v":{"v":140456.63651553923,"d":"140,457"}},{"$f":"'BP Financier'!$F$44*(('BP Financier'!$C$16+'BP Financier'!$D$16+'BP Financier'!$E$16+'BP Financier'!$F$16)/('BP Financier'!$C$16+'BP Financier'!$C$19+'BP Financier'!$D$16+'BP Financier'!$D$19+'BP Financier'!$E$16+'BP Financier'!$E$19+'BP Financier'!$C$22+'BP Financier'!$D$22+'BP Financier'!$E$22+'BP Financier'!$F$16+'BP Financier'!$F$19+'BP Financier'!$F$22))*$V6236*Z6236/(1-$W6236)","v":{"v":1099276.32049765,"d":"1,099,276"}},{"$f":"'BP Financier'!$F$44*(('BP Financier'!$C$16+'BP Financier'!$D$16+'BP Financier'!$E$16+'BP Financier'!$F$16)/('BP Financier'!$C$16+'BP Financier'!$C$19+'BP Financier'!$D$16+'BP Financier'!$D$19+'BP Financier'!$E$16+'BP Financier'!$E$19+'BP Financier'!$C$22+'BP Financier'!$D$22+'BP Financier'!$E$22+'BP Financier'!$F$16+'BP Financier'!$F$19+'BP Financier'!$F$22))*$V6236*AA6236/(1-$W6236)","v":{"v":135813.4419199842,"d":"135,813"}},{"$f":"'BP Financier'!$F$44*(('BP Financier'!$C$16+'BP Financier'!$D$16+'BP Financier'!$E$16+'BP Financier'!$F$16)/('BP Financier'!$C$16+'BP Financier'!$C$19+'BP Financier'!$D$16+'BP Financier'!$D$19+'BP Financier'!$E$16+'BP Financier'!$E$19+'BP Financier'!$C$22+'BP Financier'!$D$22+'BP Financier'!$E$22+'BP Financier'!$F$16+'BP Financier'!$F$19+'BP Financier'!$F$22))*$V6236*AB6236/(1-$W6236)","v":{"v":65004.72433777021,"d":"65,005"}},null,{"v":0.0075,"d":"0.75%"},{"$f":"Actif!$E$28/100","v":{"v":0.28900000000000003,"d":"28.90%"}},{"$f":"Actif!$E$30/100","v":{"v":0.09050000000000001,"d":"9.05%"}},{"$f":"Actif!$E$31/100","v":{"v":0.0605,"d":"6.05%"}},{"$f":"Actif!$E$32/100","v":{"v":0.47350000000000003,"d":"47.35%"}},{"$f":"Actif!$E$33/100","v":{"v":0.0585,"d":"5.85%"}},{"$f":"Actif!$E$29/100","v":{"v":0.027999999999999997,"d":"2.80%"}}]
[null,"#130",50,2028,"F","A_VIE",{"v":0.44999999999999996,"d":"0.45"},{"v":0.38999999999999996,"d":"0.39"},0.6,0.6,85,0,{"$f":"ROUND(Primes!$P$4*V6237,0)","v":71},{"$f":"'BP Financier'!$F$33*(('BP Financier'!$C$16+'BP Financier'!$D$16+'BP Financier'!$E$16+'BP Financier'!$F$16)/('BP Financier'!$C$16+'BP Financier'!$C$19+'BP Financier'!$D$16+'BP Financier'!$D$19+'BP Financier'!$E$16+'BP Financier'!$E$19+'BP Financier'!$F$16+'BP Financier'!$F$19))*V6237","v":{"v":2909830.1866639922,"d":"2,909,830"}},{"v":1650655.678719808,"d":"1,650,656"},{"$f":"'BP Financier'!$F$44*(('BP Financier'!$C$16+'BP Financier'!$D$16+'BP Financier'!$E$16+'BP Financier'!$F$16)/('BP Financier'!$C$16+'BP Financier'!$C$19+'BP Financier'!$D$16+'BP Financier'!$D$19+'BP Financier'!$E$16+'BP Financier'!$E$19+'BP Financier'!$C$22+'BP Financier'!$D$22+'BP Financier'!$E$22+'BP Financier'!$F$16+'BP Financier'!$F$19+'BP Financier'!$F$22))*$V6237*X6237/(1-$W6237)","v":{"v":210104.55544886444,"d":"210,105"}},{"$f":"'BP Financier'!$F$44*(('BP Financier'!$C$16+'BP Financier'!$D$16+'BP Financier'!$E$16+'BP Financier'!$F$16)/('BP Financier'!$C$16+'BP Financier'!$C$19+'BP Financier'!$D$16+'BP Financier'!$D$19+'BP Financier'!$E$16+'BP Financier'!$E$19+'BP Financier'!$C$22+'BP Financier'!$D$22+'BP Financier'!$E$22+'BP Financier'!$F$16+'BP Financier'!$F$19+'BP Financier'!$F$22))*$V6237*Y6237/(1-$W6237)","v":{"v":140456.63651553923,"d":"140,457"}},{"$f":"'BP Financier'!$F$44*(('BP Financier'!$C$16+'BP Financier'!$D$16+'BP Financier'!$E$16+'BP Financier'!$F$16)/('BP Financier'!$C$16+'BP Financier'!$C$19+'BP Financier'!$D$16+'BP Financier'!$D$19+'BP Financier'!$E$16+'BP Financier'!$E$19+'BP Financier'!$C$22+'BP Financier'!$D$22+'BP Financier'!$E$22+'BP Financier'!$F$16+'BP Financier'!$F$19+'BP Financier'!$F$22))*$V6237*Z6237/(1-$W6237)","v":{"v":1099276.32049765,"d":"1,099,276"}},{"$f":"'BP Financier'!$F$44*(('BP Financier'!$C$16+'BP Financier'!$D$16+'BP Financier'!$E$16+'BP Financier'!$F$16)/('BP Financier'!$C$16+'BP Financier'!$C$19+'BP Financier'!$D$16+'BP Financier'!$D$19+'BP Financier'!$E$16+'BP Financier'!$E$19+'BP Financier'!$C$22+'BP Financier'!$D$22+'BP Financier'!$E$22+'BP Financier'!$F$16+'BP Financier'!$F$19+'BP Financier'!$F$22))*$V6237*AA6237/(1-$W6237)","v":{"v":135813.4419199842,"d":"135,813"}},{"$f":"'BP Financier'!$F$44*(('BP Financier'!$C$16+'BP Financier'!$D$16+'BP Financier'!$E$16+'BP Financier'!$F$16)/('BP Financier'!$C$16+'BP Financier'!$C$19+'BP Financier'!$D$16+'BP Financier'!$D$19+'BP Financier'!$E$16+'BP Financier'!$E$19+'BP Financier'!$C$22+'BP Financier'!$D$22+'BP Financier'!$E$22+'BP Financier'!$F$16+'BP Financier'!$F$19+'BP Financier'!$F$22))*$V6237*AB6237/(1-$W6237)","v":{"v":65004.72433777021,"d":"65,005"}},null,{"v":0.0075,"d":"0.75%"},{"$f":"Actif!$E$28/100","v":{"v":0.28900000000000003,"d":"28.90%"}},{"$f":"Actif!$E$30/100","v":{"v":0.09050000000000001,"d":"9.05%"}},{"$f":"Actif!$E$31/100","v":{"v":0.0605,"d":"6.05%"}},{"$f":"Actif!$E$32/100","v":{"v":0.47350000000000003,"d":"47.35%"}},{"$f":"Actif!$E$33/100","v":{"v":0.0585,"d":"5.85%"}},{"$f":"Actif!$E$29/100","v":{"v":0.027999999999999997,"d":"2.80%"}}]
[null,"#131",50,2029,"F","A_VIE",{"v":0.44999999999999996,"d":"0.45"},{"v":0.38999999999999996,"d":"0.39"},0.6,0.6,85,0,{"$f":"ROUND(Primes!$P$4*V6238,0)","v":71},{"$f":"'BP Financier'!$F$33*(('BP Financier'!$C$16+'BP Financier'!$D$16+'BP Financier'!$E$16+'BP Financier'!$F$16)/('BP Financier'!$C$16+'BP Financier'!$C$19+'BP Financier'!$D$16+'BP Financier'!$D$19+'BP Financier'!$E$16+'BP Financier'!$E$19+'BP Financier'!$F$16+'BP Financier'!$F$19))*V6238","v":{"v":2909830.1866639922,"d":"2,909,830"}},{"v":1650655.678719808,"d":"1,650,656"},{"$f":"'BP Financier'!$F$44*(('BP Financier'!$C$16+'BP Financier'!$D$16+'BP Financier'!$E$16+'BP Financier'!$F$16)/('BP Financier'!$C$16+'BP Financier'!$C$19+'BP Financier'!$D$16+'BP Financier'!$D$19+'BP Financier'!$E$16+'BP Financier'!$E$19+'BP Financier'!$C$22+'BP Financier'!$D$22+'BP Financier'!$E$22+'BP Financier'!$F$16+'BP Financier'!$F$19+'BP Financier'!$F$22))*$V6238*X6238/(1-$W6238)","v":{"v":210104.55544886444,"d":"210,105"}},{"$f":"'BP Financier'!$F$44*(('BP Financier'!$C$16+'BP Financier'!$D$16+'BP Financier'!$E$16+'BP Financier'!$F$16)/('BP Financier'!$C$16+'BP Financier'!$C$19+'BP Financier'!$D$16+'BP Financier'!$D$19+'BP Financier'!$E$16+'BP Financier'!$E$19+'BP Financier'!$C$22+'BP Financier'!$D$22+'BP Financier'!$E$22+'BP Financier'!$F$16+'BP Financier'!$F$19+'BP Financier'!$F$22))*$V6238*Y6238/(1-$W6238)","v":{"v":140456.63651553923,"d":"140,457"}},{"$f":"'BP Financier'!$F$44*(('BP Financier'!$C$16+'BP Financier'!$D$16+'BP Financier'!$E$16+'BP Financier'!$F$16)/('BP Financier'!$C$16+'BP Financier'!$C$19+'BP Financier'!$D$16+'BP Financier'!$D$19+'BP Financier'!$E$16+'BP Financier'!$E$19+'BP Financier'!$C$22+'BP Financier'!$D$22+'BP Financier'!$E$22+'BP Financier'!$F$16+'BP Financier'!$F$19+'BP Financier'!$F$22))*$V6238*Z6238/(1-$W6238)","v":{"v":1099276.32049765,"d":"1,099,276"}},{"$f":"'BP Financier'!$F$44*(('BP Financier'!$C$16+'BP Financier'!$D$16+'BP Financier'!$E$16+'BP Financier'!$F$16)/('BP Financier'!$C$16+'BP Financier'!$C$19+'BP Financier'!$D$16+'BP Financier'!$D$19+'BP Financier'!$E$16+'BP Financier'!$E$19+'BP Financier'!$C$22+'BP Financier'!$D$22+'BP Financier'!$E$22+'BP Financier'!$F$16+'BP Financier'!$F$19+'BP Financier'!$F$22))*$V6238*AA6238/(1-$W6238)","v":{"v":135813.4419199842,"d":"135,813"}},{"$f":"'BP Financier'!$F$44*(('BP Financier'!$C$16+'BP Financier'!$D$16+'BP Financier'!$E$16+'BP Financier'!$F$16)/('BP Financier'!$C$16+'BP Financier'!$C$19+'BP Financier'!$D$16+'BP Financier'!$D$19+'BP Financier'!$E$16+'BP Financier'!$E$19+'BP Financier'!$C$22+'BP Financier'!$D$22+'BP Financier'!$E$22+'BP Financier'!$F$16+'BP Financier'!$F$19+'BP Financier'!$F$22))*$V6238*AB6238/(1-$W6238)","v":{"v":65004.72433777021,"d":"65,005"}},null,{"v":0.0075,"d":"0.75%"},{"$f":"Actif!$E$28/100","v":{"v":0.28900000000000003,"d":"28.90%"}},{"$f":"Actif!$E$30/100","v":{"v":0.09050000000000001,"d":"9.05%"}},{"$f":"Actif!$E$31/100","v":{"v":0.0605,"d":"6.05%"}},{"$f":"Actif!$E$32/100","v":{"v":0.47350000000000003,"d":"47.35%"}},{"$f":"Actif!$E$33/100","v":{"v":0.0585,"d":"5.85%"}},{"$f":"Actif!$E$29/100","v":{"v":0.027999999999999997,"d":"2.80%"}}]
[null,"#132",50,2030,"F","A_VIE",{"v":0.44999999999999996,"d":"0.45"},{"v":0.38999999999999996,"d":"0.39"},0.6,0.6,85,0,{"$f":"ROUND(Primes!$P$4*V6239,0)","v":71},{"$f":"'BP Financier'!$F$33*(('BP Financier'!$C$16+'BP Financier'!$D$16+'BP Financier'!$E$16+'BP Financier'!$F$16)/('BP Financier'!$C$16+'BP Financier'!$C$19+'BP Financier'!$D$16+'BP Financier'!$D$19+'BP Financier'!$E$16+'BP Financier'!$E$19+'BP Financier'!$F$16+'BP Financier'!$F$19))*V6239","v":{"v":2909830.1866639922,"d":"2,909,830"}},{"v":1650655.678719808,"d":"1,650,656"},{"$f":"'BP Financier'!$F$44*(('BP Financier'!$C$16+'BP Financier'!$D$16+'BP Financier'!$E$16+'BP Financier'!$F$16)/('BP Financier'!$C$16+'BP Financier'!$C$19+'BP Financier'!$D$16+'BP Financier'!$D$19+'BP Financier'!$E$16+'BP Financier'!$E$19+'BP Financier'!$C$22+'BP Financier'!$D$22+'BP Financier'!$E$22+'BP Financier'!$F$16+'BP Financier'!$F$19+'BP Financier'!$F$22))*$V6239*X6239/(1-$W6239)","v":{"v":210104.55544886444,"d":"210,105"}},{"$f":"'BP Financier'!$F$44*(('BP Financier'!$C$16+'BP Financier'!$D$16+'BP Financier'!$E$16+'BP Financier'!$F$16)/('BP Financier'!$C$16+'BP Financier'!$C$19+'BP Financier'!$D$16+'BP Financier'!$D$19+'BP Financier'!$E$16+'BP Financier'!$E$19+'BP Financier'!$C$22+'BP Financier'!$D$22+'BP Financier'!$E$22+'BP Financier'!$F$16+'BP Financier'!$F$19+'BP Financier'!$F$22))*$V6239*Y6239/(1-$W6239)","v":{"v":140456.63651553923,"d":"140,457"}},{"$f":"'BP Financier'!$F$44*(('BP Financier'!$C$16+'BP Financier'!$D$16+'BP Financier'!$E$16+'BP Financier'!$F$16)/('BP Financier'!$C$16+'BP Financier'!$C$19+'BP Financier'!$D$16+'BP Financier'!$D$19+'BP Financier'!$E$16+'BP Financier'!$E$19+'BP Financier'!$C$22+'BP Financier'!$D$22+'BP Financier'!$E$22+'BP Financier'!$F$16+'BP Financier'!$F$19+'BP Financier'!$F$22))*$V6239*Z6239/(1-$W6239)","v":{"v":1099276.32049765,"d":"1,099,276"}},{"$f":"'BP Financier'!$F$44*(('BP Financier'!$C$16+'BP Financier'!$D$16+'BP Financier'!$E$16+'BP Financier'!$F$16)/('BP Financier'!$C$16+'BP Financier'!$C$19+'BP Financier'!$D$16+'BP Financier'!$D$19+'BP Financier'!$E$16+'BP Financier'!$E$19+'BP Financier'!$C$22+'BP Financier'!$D$22+'BP Financier'!$E$22+'BP Financier'!$F$16+'BP Financier'!$F$19+'BP Financier'!$F$22))*$V6239*AA6239/(1-$W6239)","v":{"v":135813.4419199842,"d":"135,813"}},{"$f":"'BP Financier'!$F$44*(('BP Financier'!$C$16+'BP Financier'!$D$16+'BP Financier'!$E$16+'BP Financier'!$F$16)/('BP Financier'!$C$16+'BP Financier'!$C$19+'BP Financier'!$D$16+'BP Financier'!$D$19+'BP Financier'!$E$16+'BP Financier'!$E$19+'BP Financier'!$C$22+'BP Financier'!$D$22+'BP Financier'!$E$22+'BP Financier'!$F$16+'BP Financier'!$F$19+'BP Financier'!$F$22))*$V6239*AB6239/(1-$W6239)","v":{"v":65004.72433777021,"d":"65,005"}},null,{"v":0.0075,"d":"0.75%"},{"$f":"Actif!$E$28/100","v":{"v":0.28900000000000003,"d":"28.90%"}},{"$f":"Actif!$E$30/100","v":{"v":0.09050000000000001,"d":"9.05%"}},{"$f":"Actif!$E$31/100","v":{"v":0.0605,"d":"6.05%"}},{"$f":"Actif!$E$32/100","v":{"v":0.47350000000000003,"d":"47.35%"}},{"$f":"Actif!$E$33/100","v":{"v":0.0585,"d":"5.85%"}},{"$f":"Actif!$E$29/100","v":{"v":0.027999999999999997,"d":"2.80%"}}]
[null,"#133",51,2026,"H","A_VIE",{"v":0.44999999999999996,"d":"0.45"},{"v":0.38999999999999996,"d":"0.39"},0.6,0.6,85,0,{"$f":"ROUND(Primes!$P$4*V6240,0)","v":71},{"$f":"'BP Financier'!$F$33*(('BP Financier'!$C$16+'BP Financier'!$D$16+'BP Financier'!$E$16+'BP Financier'!$F$16)/('BP Financier'!$C$16+'BP Financier'!$C$19+'BP Financier'!$D$16+'BP Financier'!$D$19+'BP Financier'!$E$16+'BP Financier'!$E$19+'BP Financier'!$F$16+'BP Financier'!$F$19))*V6240","v":{"v":2909830.1866639922,"d":"2,909,830"}},{"v":1650655.678719808,"d":"1,650,656"},{"$f":"'BP Financier'!$F$44*(('BP Financier'!$C$16+'BP Financier'!$D$16+'BP Financier'!$E$16+'BP Financier'!$F$16)/('BP Financier'!$C$16+'BP Financier'!$C$19+'BP Financier'!$D$16+'BP Financier'!$D$19+'BP Financier'!$E$16+'BP Financier'!$E$19+'BP Financier'!$C$22+'BP Financier'!$D$22+'BP Financier'!$E$22+'BP Financier'!$F$16+'BP Financier'!$F$19+'BP Financier'!$F$22))*$V6240*X6240/(1-$W6240)","v":{"v":210104.55544886444,"d":"210,105"}},{"$f":"'BP Financier'!$F$44*(('BP Financier'!$C$16+'BP Financier'!$D$16+'BP Financier'!$E$16+'BP Financier'!$F$16)/('BP Financier'!$C$16+'BP Financier'!$C$19+'BP Financier'!$D$16+'BP Financier'!$D$19+'BP Financier'!$E$16+'BP Financier'!$E$19+'BP Financier'!$C$22+'BP Financier'!$D$22+'BP Financier'!$E$22+'BP Financier'!$F$16+'BP Financier'!$F$19+'BP Financier'!$F$22))*$V6240*Y6240/(1-$W6240)","v":{"v":140456.63651553923,"d":"140,457"}},{"$f":"'BP Financier'!$F$44*(('BP Financier'!$C$16+'BP Financier'!$D$16+'BP Financier'!$E$16+'BP Financier'!$F$16)/('BP Financier'!$C$16+'BP Financier'!$C$19+'BP Financier'!$D$16+'BP Financier'!$D$19+'BP Financier'!$E$16+'BP Financier'!$E$19+'BP Financier'!$C$22+'BP Financier'!$D$22+'BP Financier'!$E$22+'BP Financier'!$F$16+'BP Financier'!$F$19+'BP Financier'!$F$22))*$V6240*Z6240/(1-$W6240)","v":{"v":1099276.32049765,"d":"1,099,276"}},{"$f":"'BP Financier'!$F$44*(('BP Financier'!$C$16+'BP Financier'!$D$16+'BP Financier'!$E$16+'BP Financier'!$F$16)/('BP Financier'!$C$16+'BP Financier'!$C$19+'BP Financier'!$D$16+'BP Financier'!$D$19+'BP Financier'!$E$16+'BP Financier'!$E$19+'BP Financier'!$C$22+'BP Financier'!$D$22+'BP Financier'!$E$22+'BP Financier'!$F$16+'BP Financier'!$F$19+'BP Financier'!$F$22))*$V6240*AA6240/(1-$W6240)","v":{"v":135813.4419199842,"d":"135,813"}},{"$f":"'BP Financier'!$F$44*(('BP Financier'!$C$16+'BP Financier'!$D$16+'BP Financier'!$E$16+'BP Financier'!$F$16)/('BP Financier'!$C$16+'BP Financier'!$C$19+'BP Financier'!$D$16+'BP Financier'!$D$19+'BP Financier'!$E$16+'BP Financier'!$E$19+'BP Financier'!$C$22+'BP Financier'!$D$22+'BP Financier'!$E$22+'BP Financier'!$F$16+'BP Financier'!$F$19+'BP Financier'!$F$22))*$V6240*AB6240/(1-$W6240)","v":{"v":65004.72433777021,"d":"65,005"}},null,{"v":0.0075,"d":"0.75%"},{"$f":"Actif!$E$28/100","v":{"v":0.28900000000000003,"d":"28.90%"}},{"$f":"Actif!$E$30/100","v":{"v":0.09050000000000001,"d":"9.05%"}},{"$f":"Actif!$E$31/100","v":{"v":0.0605,"d":"6.05%"}},{"$f":"Actif!$E$32/100","v":{"v":0.47350000000000003,"d":"47.35%"}},{"$f":"Actif!$E$33/100","v":{"v":0.0585,"d":"5.85%"}},{"$f":"Actif!$E$29/100","v":{"v":0.027999999999999997,"d":"2.80%"}}]
[null,"#134",51,2028,"H","A_VIE",{"v":0.44999999999999996,"d":"0.45"},{"v":0.38999999999999996,"d":"0.39"},0.6,0.6,85,0,{"$f":"ROUND(Primes!$P$4*V6241,0)","v":71},{"$f":"'BP Financier'!$F$33*(('BP Financier'!$C$16+'BP Financier'!$D$16+'BP Financier'!$E$16+'BP Financier'!$F$16)/('BP Financier'!$C$16+'BP Financier'!$C$19+'BP Financier'!$D$16+'BP Financier'!$D$19+'BP Financier'!$E$16+'BP Financier'!$E$19+'BP Financier'!$F$16+'BP Financier'!$F$19))*V6241","v":{"v":2909830.1866639922,"d":"2,909,830"}},{"v":1650655.678719808,"d":"1,650,656"},{"$f":"'BP Financier'!$F$44*(('BP Financier'!$C$16+'BP Financier'!$D$16+'BP Financier'!$E$16+'BP Financier'!$F$16)/('BP Financier'!$C$16+'BP Financier'!$C$19+'BP Financier'!$D$16+'BP Financier'!$D$19+'BP Financier'!$E$16+'BP Financier'!$E$19+'BP Financier'!$C$22+'BP Financier'!$D$22+'BP Financier'!$E$22+'BP Financier'!$F$16+'BP Financier'!$F$19+'BP Financier'!$F$22))*$V6241*X6241/(1-$W6241)","v":{"v":210104.55544886444,"d":"210,105"}},{"$f":"'BP Financier'!$F$44*(('BP Financier'!$C$16+'BP Financier'!$D$16+'BP Financier'!$E$16+'BP Financier'!$F$16)/('BP Financier'!$C$16+'BP Financier'!$C$19+'BP Financier'!$D$16+'BP Financier'!$D$19+'BP Financier'!$E$16+'BP Financier'!$E$19+'BP Financier'!$C$22+'BP Financier'!$D$22+'BP Financier'!$E$22+'BP Financier'!$F$16+'BP Financier'!$F$19+'BP Financier'!$F$22))*$V6241*Y6241/(1-$W6241)","v":{"v":140456.63651553923,"d":"140,457"}},{"$f":"'BP Financier'!$F$44*(('BP Financier'!$C$16+'BP Financier'!$D$16+'BP Financier'!$E$16+'BP Financier'!$F$16)/('BP Financier'!$C$16+'BP Financier'!$C$19+'BP Financier'!$D$16+'BP Financier'!$D$19+'BP Financier'!$E$16+'BP Financier'!$E$19+'BP Financier'!$C$22+'BP Financier'!$D$22+'BP Financier'!$E$22+'BP Financier'!$F$16+'BP Financier'!$F$19+'BP Financier'!$F$22))*$V6241*Z6241/(1-$W6241)","v":{"v":1099276.32049765,"d":"1,099,276"}},{"$f":"'BP Financier'!$F$44*(('BP Financier'!$C$16+'BP Financier'!$D$16+'BP Financier'!$E$16+'BP Financier'!$F$16)/('BP Financier'!$C$16+'BP Financier'!$C$19+'BP Financier'!$D$16+'BP Financier'!$D$19+'BP Financier'!$E$16+'BP Financier'!$E$19+'BP Financier'!$C$22+'BP Financier'!$D$22+'BP Financier'!$E$22+'BP Financier'!$F$16+'BP Financier'!$F$19+'BP Financier'!$F$22))*$V6241*AA6241/(1-$W6241)","v":{"v":135813.4419199842,"d":"135,813"}},{"$f":"'BP Financier'!$F$44*(('BP Financier'!$C$16+'BP Financier'!$D$16+'BP Financier'!$E$16+'BP Financier'!$F$16)/('BP Financier'!$C$16+'BP Financier'!$C$19+'BP Financier'!$D$16+'BP Financier'!$D$19+'BP Financier'!$E$16+'BP Financier'!$E$19+'BP Financier'!$C$22+'BP Financier'!$D$22+'BP Financier'!$E$22+'BP Financier'!$F$16+'BP Financier'!$F$19+'BP Financier'!$F$22))*$V6241*AB6241/(1-$W6241)","v":{"v":65004.72433777021,"d":"65,005"}},null,{"v":0.0075,"d":"0.75%"},{"$f":"Actif!$E$28/100","v":{"v":0.28900000000000003,"d":"28.90%"}},{"$f":"Actif!$E$30/100","v":{"v":0.09050000000000001,"d":"9.05%"}},{"$f":"Actif!$E$31/100","v":{"v":0.0605,"d":"6.05%"}},{"$f":"Actif!$E$32/100","v":{"v":0.47350000000000003,"d":"47.35%"}},{"$f":"Actif!$E$33/100","v":{"v":0.0585,"d":"5.85%"}},{"$f":"Actif!$E$29/100","v":{"v":0.027999999999999997,"d":"2.80%"}}]
[null,"#135",51,2029,"H","A_VIE",{"v":0.44999999999999996,"d":"0.45"},{"v":0.38999999999999996,"d":"0.39"},0.6,0.6,85,0,{"$f":"ROUND(Primes!$P$4*V6242,0)","v":71},{"$f":"'BP Financier'!$F$33*(('BP Financier'!$C$16+'BP Financier'!$D$16+'BP Financier'!$E$16+'BP Financier'!$F$16)/('BP Financier'!$C$16+'BP Financier'!$C$19+'BP Financier'!$D$16+'BP Financier'!$D$19+'BP Financier'!$E$16+'BP Financier'!$E$19+'BP Financier'!$F$16+'BP Financier'!$F$19))*V6242","v":{"v":2909830.1866639922,"d":"2,909,830"}},{"v":1650655.678719808,"d":"1,650,656"},{"$f":"'BP Financier'!$F$44*(('BP Financier'!$C$16+'BP Financier'!$D$16+'BP Financier'!$E$16+'BP Financier'!$F$16)/('BP Financier'!$C$16+'BP Financier'!$C$19+'BP Financier'!$D$16+'BP Financier'!$D$19+'BP Financier'!$E$16+'BP Financier'!$E$19+'BP Financier'!$C$22+'BP Financier'!$D$22+'BP Financier'!$E$22+'BP Financier'!$F$16+'BP Financier'!$F$19+'BP Financier'!$F$22))*$V6242*X6242/(1-$W6242)","v":{"v":210104.55544886444,"d":"210,105"}},{"$f":"'BP Financier'!$F$44*(('BP Financier'!$C$16+'BP Financier'!$D$16+'BP Financier'!$E$16+'BP Financier'!$F$16)/('BP Financier'!$C$16+'BP Financier'!$C$19+'BP Financier'!$D$16+'BP Financier'!$D$19+'BP Financier'!$E$16+'BP Financier'!$E$19+'BP Financier'!$C$22+'BP Financier'!$D$22+'BP Financier'!$E$22+'BP Financier'!$F$16+'BP Financier'!$F$19+'BP Financier'!$F$22))*$V6242*Y6242/(1-$W6242)","v":{"v":140456.63651553923,"d":"140,457"}},{"$f":"'BP Financier'!$F$44*(('BP Financier'!$C$16+'BP Financier'!$D$16+'BP Financier'!$E$16+'BP Financier'!$F$16)/('BP Financier'!$C$16+'BP Financier'!$C$19+'BP Financier'!$D$16+'BP Financier'!$D$19+'BP Financier'!$E$16+'BP Financier'!$E$19+'BP Financier'!$C$22+'BP Financier'!$D$22+'BP Financier'!$E$22+'BP Financier'!$F$16+'BP Financier'!$F$19+'BP Financier'!$F$22))*$V6242*Z6242/(1-$W6242)","v":{"v":1099276.32049765,"d":"1,099,276"}},{"$f":"'BP Financier'!$F$44*(('BP Financier'!$C$16+'BP Financier'!$D$16+'BP Financier'!$E$16+'BP Financier'!$F$16)/('BP Financier'!$C$16+'BP Financier'!$C$19+'BP Financier'!$D$16+'BP Financier'!$D$19+'BP Financier'!$E$16+'BP Financier'!$E$19+'BP Financier'!$C$22+'BP Financier'!$D$22+'BP Financier'!$E$22+'BP Financier'!$F$16+'BP Financier'!$F$19+'BP Financier'!$F$22))*$V6242*AA6242/(1-$W6242)","v":{"v":135813.4419199842,"d":"135,813"}},{"$f":"'BP Financier'!$F$44*(('BP Financier'!$C$16+'BP Financier'!$D$16+'BP Financier'!$E$16+'BP Financier'!$F$16)/('BP Financier'!$C$16+'BP Financier'!$C$19+'BP Financier'!$D$16+'BP Financier'!$D$19+'BP Financier'!$E$16+'BP Financier'!$E$19+'BP Financier'!$C$22+'BP Financier'!$D$22+'BP Financier'!$E$22+'BP Financier'!$F$16+'BP Financier'!$F$19+'BP Financier'!$F$22))*$V6242*AB6242/(1-$W6242)","v":{"v":65004.72433777021,"d":"65,005"}},null,{"v":0.0075,"d":"0.75%"},{"$f":"Actif!$E$28/100","v":{"v":0.28900000000000003,"d":"28.90%"}},{"$f":"Actif!$E$30/100","v":{"v":0.09050000000000001,"d":"9.05%"}},{"$f":"Actif!$E$31/100","v":{"v":0.0605,"d":"6.05%"}},{"$f":"Actif!$E$32/100","v":{"v":0.47350000000000003,"d":"47.35%"}},{"$f":"Actif!$E$33/100","v":{"v":0.0585,"d":"5.85%"}},{"$f":"Actif!$E$29/100","v":{"v":0.027999999999999997,"d":"2.80%"}}]
[null,"#136",51,2030,"H","A_VIE",{"v":0.44999999999999996,"d":"0.45"},{"v":0.38999999999999996,"d":"0.39"},0.6,0.6,85,0,{"$f":"ROUND(Primes!$P$4*V6243,0)","v":71},{"$f":"'BP Financier'!$F$33*(('BP Financier'!$C$16+'BP Financier'!$D$16+'BP Financier'!$E$16+'BP Financier'!$F$16)/('BP Financier'!$C$16+'BP Financier'!$C$19+'BP Financier'!$D$16+'BP Financier'!$D$19+'BP Financier'!$E$16+'BP Financier'!$E$19+'BP Financier'!$F$16+'BP Financier'!$F$19))*V6243","v":{"v":2909830.1866639922,"d":"2,909,830"}},{"v":1650655.678719808,"d":"1,650,656"},{"$f":"'BP Financier'!$F$44*(('BP Financier'!$C$16+'BP Financier'!$D$16+'BP Financier'!$E$16+'BP Financier'!$F$16)/('BP Financier'!$C$16+'BP Financier'!$C$19+'BP Financier'!$D$16+'BP Financier'!$D$19+'BP Financier'!$E$16+'BP Financier'!$E$19+'BP Financier'!$C$22+'BP Financier'!$D$22+'BP Financier'!$E$22+'BP Financier'!$F$16+'BP Financier'!$F$19+'BP Financier'!$F$22))*$V6243*X6243/(1-$W6243)","v":{"v":210104.55544886444,"d":"210,105"}},{"$f":"'BP Financier'!$F$44*(('BP Financier'!$C$16+'BP Financier'!$D$16+'BP Financier'!$E$16+'BP Financier'!$F$16)/('BP Financier'!$C$16+'BP Financier'!$C$19+'BP Financier'!$D$16+'BP Financier'!$D$19+'BP Financier'!$E$16+'BP Financier'!$E$19+'BP Financier'!$C$22+'BP Financier'!$D$22+'BP Financier'!$E$22+'BP Financier'!$F$16+'BP Financier'!$F$19+'BP Financier'!$F$22))*$V6243*Y6243/(1-$W6243)","v":{"v":140456.63651553923,"d":"140,457"}},{"$f":"'BP Financier'!$F$44*(('BP Financier'!$C$16+'BP Financier'!$D$16+'BP Financier'!$E$16+'BP Financier'!$F$16)/('BP Financier'!$C$16+'BP Financier'!$C$19+'BP Financier'!$D$16+'BP Financier'!$D$19+'BP Financier'!$E$16+'BP Financier'!$E$19+'BP Financier'!$C$22+'BP Financier'!$D$22+'BP Financier'!$E$22+'BP Financier'!$F$16+'BP Financier'!$F$19+'BP Financier'!$F$22))*$V6243*Z6243/(1-$W6243)","v":{"v":1099276.32049765,"d":"1,099,276"}},{"$f":"'BP Financier'!$F$44*(('BP Financier'!$C$16+'BP Financier'!$D$16+'BP Financier'!$E$16+'BP Financier'!$F$16)/('BP Financier'!$C$16+'BP Financier'!$C$19+'BP Financier'!$D$16+'BP Financier'!$D$19+'BP Financier'!$E$16+'BP Financier'!$E$19+'BP Financier'!$C$22+'BP Financier'!$D$22+'BP Financier'!$E$22+'BP Financier'!$F$16+'BP Financier'!$F$19+'BP Financier'!$F$22))*$V6243*AA6243/(1-$W6243)","v":{"v":135813.4419199842,"d":"135,813"}},{"$f":"'BP Financier'!$F$44*(('BP Financier'!$C$16+'BP Financier'!$D$16+'BP Financier'!$E$16+'BP Financier'!$F$16)/('BP Financier'!$C$16+'BP Financier'!$C$19+'BP Financier'!$D$16+'BP Financier'!$D$19+'BP Financier'!$E$16+'BP Financier'!$E$19+'BP Financier'!$C$22+'BP Financier'!$D$22+'BP Financier'!$E$22+'BP Financier'!$F$16+'BP Financier'!$F$19+'BP Financier'!$F$22))*$V6243*AB6243/(1-$W6243)","v":{"v":65004.72433777021,"d":"65,005"}},null,{"v":0.0075,"d":"0.75%"},{"$f":"Actif!$E$28/100","v":{"v":0.28900000000000003,"d":"28.90%"}},{"$f":"Actif!$E$30/100","v":{"v":0.09050000000000001,"d":"9.05%"}},{"$f":"Actif!$E$31/100","v":{"v":0.0605,"d":"6.05%"}},{"$f":"Actif!$E$32/100","v":{"v":0.47350000000000003,"d":"47.35%"}},{"$f":"Actif!$E$33/100","v":{"v":0.0585,"d":"5.85%"}},{"$f":"Actif!$E$29/100","v":{"v":0.027999999999999997,"d":"2.80%"}}]
[null,"#137",52,2026,"H","A_VIE",{"v":0.44999999999999996,"d":"0.45"},{"v":0.38999999999999996,"d":"0.39"},0.6,0.6,85,0,{"$f":"ROUND(Primes!$P$4*V6244,0)","v":71},{"$f":"'BP Financier'!$F$33*(('BP Financier'!$C$16+'BP Financier'!$D$16+'BP Financier'!$E$16+'BP Financier'!$F$16)/('BP Financier'!$C$16+'BP Financier'!$C$19+'BP Financier'!$D$16+'BP Financier'!$D$19+'BP Financier'!$E$16+'BP Financier'!$E$19+'BP Financier'!$F$16+'BP Financier'!$F$19))*V6244","v":{"v":2909830.1866639922,"d":"2,909,830"}},{"v":1650655.678719808,"d":"1,650,656"},{"$f":"'BP Financier'!$F$44*(('BP Financier'!$C$16+'BP Financier'!$D$16+'BP Financier'!$E$16+'BP Financier'!$F$16)/('BP Financier'!$C$16+'BP Financier'!$C$19+'BP Financier'!$D$16+'BP Financier'!$D$19+'BP Financier'!$E$16+'BP Financier'!$E$19+'BP Financier'!$C$22+'BP Financier'!$D$22+'BP Financier'!$E$22+'BP Financier'!$F$16+'BP Financier'!$F$19+'BP Financier'!$F$22))*$V6244*X6244/(1-$W6244)","v":{"v":210104.55544886444,"d":"210,105"}},{"$f":"'BP Financier'!$F$44*(('BP Financier'!$C$16+'BP Financier'!$D$16+'BP Financier'!$E$16+'BP Financier'!$F$16)/('BP Financier'!$C$16+'BP Financier'!$C$19+'BP Financier'!$D$16+'BP Financier'!$D$19+'BP Financier'!$E$16+'BP Financier'!$E$19+'BP Financier'!$C$22+'BP Financier'!$D$22+'BP Financier'!$E$22+'BP Financier'!$F$16+'BP Financier'!$F$19+'BP Financier'!$F$22))*$V6244*Y6244/(1-$W6244)","v":{"v":140456.63651553923,"d":"140,457"}},{"$f":"'BP Financier'!$F$44*(('BP Financier'!$C$16+'BP Financier'!$D$16+'BP Financier'!$E$16+'BP Financier'!$F$16)/('BP Financier'!$C$16+'BP Financier'!$C$19+'BP Financier'!$D$16+'BP Financier'!$D$19+'BP Financier'!$E$16+'BP Financier'!$E$19+'BP Financier'!$C$22+'BP Financier'!$D$22+'BP Financier'!$E$22+'BP Financier'!$F$16+'BP Financier'!$F$19+'BP Financier'!$F$22))*$V6244*Z6244/(1-$W6244)","v":{"v":1099276.32049765,"d":"1,099,276"}},{"$f":"'BP Financier'!$F$44*(('BP Financier'!$C$16+'BP Financier'!$D$16+'BP Financier'!$E$16+'BP Financier'!$F$16)/('BP Financier'!$C$16+'BP Financier'!$C$19+'BP Financier'!$D$16+'BP Financier'!$D$19+'BP Financier'!$E$16+'BP Financier'!$E$19+'BP Financier'!$C$22+'BP Financier'!$D$22+'BP Financier'!$E$22+'BP Financier'!$F$16+'BP Financier'!$F$19+'BP Financier'!$F$22))*$V6244*AA6244/(1-$W6244)","v":{"v":135813.4419199842,"d":"135,813"}},{"$f":"'BP Financier'!$F$44*(('BP Financier'!$C$16+'BP Financier'!$D$16+'BP Financier'!$E$16+'BP Financier'!$F$16)/('BP Financier'!$C$16+'BP Financier'!$C$19+'BP Financier'!$D$16+'BP Financier'!$D$19+'BP Financier'!$E$16+'BP Financier'!$E$19+'BP Financier'!$C$22+'BP Financier'!$D$22+'BP Financier'!$E$22+'BP Financier'!$F$16+'BP Financier'!$F$19+'BP Financier'!$F$22))*$V6244*AB6244/(1-$W6244)","v":{"v":65004.72433777021,"d":"65,005"}},null,{"v":0.0075,"d":"0.75%"},{"$f":"Actif!$E$28/100","v":{"v":0.28900000000000003,"d":"28.90%"}},{"$f":"Actif!$E$30/100","v":{"v":0.09050000000000001,"d":"9.05%"}},{"$f":"Actif!$E$31/100","v":{"v":0.0605,"d":"6.05%"}},{"$f":"Actif!$E$32/100","v":{"v":0.47350000000000003,"d":"47.35%"}},{"$f":"Actif!$E$33/100","v":{"v":0.0585,"d":"5.85%"}},{"$f":"Actif!$E$29/100","v":{"v":0.027999999999999997,"d":"2.80%"}}]
[null,"#138",52,2028,"H","A_VIE",{"v":0.44999999999999996,"d":"0.45"},{"v":0.38999999999999996,"d":"0.39"},0.6,0.6,85,0,{"$f":"ROUND(Primes!$P$4*V6245,0)","v":71},{"$f":"'BP Financier'!$F$33*(('BP Financier'!$C$16+'BP Financier'!$D$16+'BP Financier'!$E$16+'BP Financier'!$F$16)/('BP Financier'!$C$16+'BP Financier'!$C$19+'BP Financier'!$D$16+'BP Financier'!$D$19+'BP Financier'!$E$16+'BP Financier'!$E$19+'BP Financier'!$F$16+'BP Financier'!$F$19))*V6245","v":{"v":2909830.1866639922,"d":"2,909,830"}},{"v":1650655.678719808,"d":"1,650,656"},{"$f":"'BP Financier'!$F$44*(('BP Financier'!$C$16+'BP Financier'!$D$16+'BP Financier'!$E$16+'BP Financier'!$F$16)/('BP Financier'!$C$16+'BP Financier'!$C$19+'BP Financier'!$D$16+'BP Financier'!$D$19+'BP Financier'!$E$16+'BP Financier'!$E$19+'BP Financier'!$C$22+'BP Financier'!$D$22+'BP Financier'!$E$22+'BP Financier'!$F$16+'BP Financier'!$F$19+'BP Financier'!$F$22))*$V6245*X6245/(1-$W6245)","v":{"v":210104.55544886444,"d":"210,105"}},{"$f":"'BP Financier'!$F$44*(('BP Financier'!$C$16+'BP Financier'!$D$16+'BP Financier'!$E$16+'BP Financier'!$F$16)/('BP Financier'!$C$16+'BP Financier'!$C$19+'BP Financier'!$D$16+'BP Financier'!$D$19+'BP Financier'!$E$16+'BP Financier'!$E$19+'BP Financier'!$C$22+'BP Financier'!$D$22+'BP Financier'!$E$22+'BP Financier'!$F$16+'BP Financier'!$F$19+'BP Financier'!$F$22))*$V6245*Y6245/(1-$W6245)","v":{"v":140456.63651553923,"d":"140,457"}},{"$f":"'BP Financier'!$F$44*(('BP Financier'!$C$16+'BP Financier'!$D$16+'BP Financier'!$E$16+'BP Financier'!$F$16)/('BP Financier'!$C$16+'BP Financier'!$C$19+'BP Financier'!$D$16+'BP Financier'!$D$19+'BP Financier'!$E$16+'BP Financier'!$E$19+'BP Financier'!$C$22+'BP Financier'!$D$22+'BP Financier'!$E$22+'BP Financier'!$F$16+'BP Financier'!$F$19+'BP Financier'!$F$22))*$V6245*Z6245/(1-$W6245)","v":{"v":1099276.32049765,"d":"1,099,276"}},{"$f":"'BP Financier'!$F$44*(('BP Financier'!$C$16+'BP Financier'!$D$16+'BP Financier'!$E$16+'BP Financier'!$F$16)/('BP Financier'!$C$16+'BP Financier'!$C$19+'BP Financier'!$D$16+'BP Financier'!$D$19+'BP Financier'!$E$16+'BP Financier'!$E$19+'BP Financier'!$C$22+'BP Financier'!$D$22+'BP Financier'!$E$22+'BP Financier'!$F$16+'BP Financier'!$F$19+'BP Financier'!$F$22))*$V6245*AA6245/(1-$W6245)","v":{"v":135813.4419199842,"d":"135,813"}},{"$f":"'BP Financier'!$F$44*(('BP Financier'!$C$16+'BP Financier'!$D$16+'BP Financier'!$E$16+'BP Financier'!$F$16)/('BP Financier'!$C$16+'BP Financier'!$C$19+'BP Financier'!$D$16+'BP Financier'!$D$19+'BP Financier'!$E$16+'BP Financier'!$E$19+'BP Financier'!$C$22+'BP Financier'!$D$22+'BP Financier'!$E$22+'BP Financier'!$F$16+'BP Financier'!$F$19+'BP Financier'!$F$22))*$V6245*AB6245/(1-$W6245)","v":{"v":65004.72433777021,"d":"65,005"}},null,{"v":0.0075,"d":"0.75%"},{"$f":"Actif!$E$28/100","v":{"v":0.28900000000000003,"d":"28.90%"}},{"$f":"Actif!$E$30/100","v":{"v":0.09050000000000001,"d":"9.05%"}},{"$f":"Actif!$E$31/100","v":{"v":0.0605,"d":"6.05%"}},{"$f":"Actif!$E$32/100","v":{"v":0.47350000000000003,"d":"47.35%"}},{"$f":"Actif!$E$33/100","v":{"v":0.0585,"d":"5.85%"}},{"$f":"Actif!$E$29/100","v":{"v":0.027999999999999997,"d":"2.80%"}}]
[null,"#139",52,2029,"H","A_VIE",{"v":0.44999999999999996,"d":"0.45"},{"v":0.38999999999999996,"d":"0.39"},0.6,0.6,85,0,{"$f":"ROUND(Primes!$P$4*V6246,0)","v":71},{"$f":"'BP Financier'!$F$33*(('BP Financier'!$C$16+'BP Financier'!$D$16+'BP Financier'!$E$16+'BP Financier'!$F$16)/('BP Financier'!$C$16+'BP Financier'!$C$19+'BP Financier'!$D$16+'BP Financier'!$D$19+'BP Financier'!$E$16+'BP Financier'!$E$19+'BP Financier'!$F$16+'BP Financier'!$F$19))*V6246","v":{"v":2909830.1866639922,"d":"2,909,830"}},{"v":1650655.678719808,"d":"1,650,656"},{"$f":"'BP Financier'!$F$44*(('BP Financier'!$C$16+'BP Financier'!$D$16+'BP Financier'!$E$16+'BP Financier'!$F$16)/('BP Financier'!$C$16+'BP Financier'!$C$19+'BP Financier'!$D$16+'BP Financier'!$D$19+'BP Financier'!$E$16+'BP Financier'!$E$19+'BP Financier'!$C$22+'BP Financier'!$D$22+'BP Financier'!$E$22+'BP Financier'!$F$16+'BP Financier'!$F$19+'BP Financier'!$F$22))*$V6246*X6246/(1-$W6246)","v":{"v":210104.55544886444,"d":"210,105"}},{"$f":"'BP Financier'!$F$44*(('BP Financier'!$C$16+'BP Financier'!$D$16+'BP Financier'!$E$16+'BP Financier'!$F$16)/('BP Financier'!$C$16+'BP Financier'!$C$19+'BP Financier'!$D$16+'BP Financier'!$D$19+'BP Financier'!$E$16+'BP Financier'!$E$19+'BP Financier'!$C$22+'BP Financier'!$D$22+'BP Financier'!$E$22+'BP Financier'!$F$16+'BP Financier'!$F$19+'BP Financier'!$F$22))*$V6246*Y6246/(1-$W6246)","v":{"v":140456.63651553923,"d":"140,457"}},{"$f":"'BP Financier'!$F$44*(('BP Financier'!$C$16+'BP Financier'!$D$16+'BP Financier'!$E$16+'BP Financier'!$F$16)/('BP Financier'!$C$16+'BP Financier'!$C$19+'BP Financier'!$D$16+'BP Financier'!$D$19+'BP Financier'!$E$16+'BP Financier'!$E$19+'BP Financier'!$C$22+'BP Financier'!$D$22+'BP Financier'!$E$22+'BP Financier'!$F$16+'BP Financier'!$F$19+'BP Financier'!$F$22))*$V6246*Z6246/(1-$W6246)","v":{"v":1099276.32049765,"d":"1,099,276"}},{"$f":"'BP Financier'!$F$44*(('BP Financier'!$C$16+'BP Financier'!$D$16+'BP Financier'!$E$16+'BP Financier'!$F$16)/('BP Financier'!$C$16+'BP Financier'!$C$19+'BP Financier'!$D$16+'BP Financier'!$D$19+'BP Financier'!$E$16+'BP Financier'!$E$19+'BP Financier'!$C$22+'BP Financier'!$D$22+'BP Financier'!$E$22+'BP Financier'!$F$16+'BP Financier'!$F$19+'BP Financier'!$F$22))*$V6246*AA6246/(1-$W6246)","v":{"v":135813.4419199842,"d":"135,813"}},{"$f":"'BP Financier'!$F$44*(('BP Financier'!$C$16+'BP Financier'!$D$16+'BP Financier'!$E$16+'BP Financier'!$F$16)/('BP Financier'!$C$16+'BP Financier'!$C$19+'BP Financier'!$D$16+'BP Financier'!$D$19+'BP Financier'!$E$16+'BP Financier'!$E$19+'BP Financier'!$C$22+'BP Financier'!$D$22+'BP Financier'!$E$22+'BP Financier'!$F$16+'BP Financier'!$F$19+'BP Financier'!$F$22))*$V6246*AB6246/(1-$W6246)","v":{"v":65004.72433777021,"d":"65,005"}},null,{"v":0.0075,"d":"0.75%"},{"$f":"Actif!$E$28/100","v":{"v":0.28900000000000003,"d":"28.90%"}},{"$f":"Actif!$E$30/100","v":{"v":0.09050000000000001,"d":"9.05%"}},{"$f":"Actif!$E$31/100","v":{"v":0.0605,"d":"6.05%"}},{"$f":"Actif!$E$32/100","v":{"v":0.47350000000000003,"d":"47.35%"}},{"$f":"Actif!$E$33/100","v":{"v":0.0585,"d":"5.85%"}},{"$f":"Actif!$E$29/100","v":{"v":0.027999999999999997,"d":"2.80%"}}]
[null,"#140",52,2030,"H","A_VIE",{"v":0.44999999999999996,"d":"0.45"},{"v":0.38999999999999996,"d":"0.39"},0.6,0.6,85,0,{"$f":"ROUND(Primes!$P$4*V6247,0)","v":71},{"$f":"'BP Financier'!$F$33*(('BP Financier'!$C$16+'BP Financier'!$D$16+'BP Financier'!$E$16+'BP Financier'!$F$16)/('BP Financier'!$C$16+'BP Financier'!$C$19+'BP Financier'!$D$16+'BP Financier'!$D$19+'BP Financier'!$E$16+'BP Financier'!$E$19+'BP Financier'!$F$16+'BP Financier'!$F$19))*V6247","v":{"v":2909830.1866639922,"d":"2,909,830"}},{"v":1650655.678719808,"d":"1,650,656"},{"$f":"'BP Financier'!$F$44*(('BP Financier'!$C$16+'BP Financier'!$D$16+'BP Financier'!$E$16+'BP Financier'!$F$16)/('BP Financier'!$C$16+'BP Financier'!$C$19+'BP Financier'!$D$16+'BP Financier'!$D$19+'BP Financier'!$E$16+'BP Financier'!$E$19+'BP Financier'!$C$22+'BP Financier'!$D$22+'BP Financier'!$E$22+'BP Financier'!$F$16+'BP Financier'!$F$19+'BP Financier'!$F$22))*$V6247*X6247/(1-$W6247)","v":{"v":210104.55544886444,"d":"210,105"}},{"$f":"'BP Financier'!$F$44*(('BP Financier'!$C$16+'BP Financier'!$D$16+'BP Financier'!$E$16+'BP Financier'!$F$16)/('BP Financier'!$C$16+'BP Financier'!$C$19+'BP Financier'!$D$16+'BP Financier'!$D$19+'BP Financier'!$E$16+'BP Financier'!$E$19+'BP Financier'!$C$22+'BP Financier'!$D$22+'BP Financier'!$E$22+'BP Financier'!$F$16+'BP Financier'!$F$19+'BP Financier'!$F$22))*$V6247*Y6247/(1-$W6247)","v":{"v":140456.63651553923,"d":"140,457"}},{"$f":"'BP Financier'!$F$44*(('BP Financier'!$C$16+'BP Financier'!$D$16+'BP Financier'!$E$16+'BP Financier'!$F$16)/('BP Financier'!$C$16+'BP Financier'!$C$19+'BP Financier'!$D$16+'BP Financier'!$D$19+'BP Financier'!$E$16+'BP Financier'!$E$19+'BP Financier'!$C$22+'BP Financier'!$D$22+'BP Financier'!$E$22+'BP Financier'!$F$16+'BP Financier'!$F$19+'BP Financier'!$F$22))*$V6247*Z6247/(1-$W6247)","v":{"v":1099276.32049765,"d":"1,099,276"}},{"$f":"'BP Financier'!$F$44*(('BP Financier'!$C$16+'BP Financier'!$D$16+'BP Financier'!$E$16+'BP Financier'!$F$16)/('BP Financier'!$C$16+'BP Financier'!$C$19+'BP Financier'!$D$16+'BP Financier'!$D$19+'BP Financier'!$E$16+'BP Financier'!$E$19+'BP Financier'!$C$22+'BP Financier'!$D$22+'BP Financier'!$E$22+'BP Financier'!$F$16+'BP Financier'!$F$19+'BP Financier'!$F$22))*$V6247*AA6247/(1-$W6247)","v":{"v":135813.4419199842,"d":"135,813"}},{"$f":"'BP Financier'!$F$44*(('BP Financier'!$C$16+'BP Financier'!$D$16+'BP Financier'!$E$16+'BP Financier'!$F$16)/('BP Financier'!$C$16+'BP Financier'!$C$19+'BP Financier'!$D$16+'BP Financier'!$D$19+'BP Financier'!$E$16+'BP Financier'!$E$19+'BP Financier'!$C$22+'BP Financier'!$D$22+'BP Financier'!$E$22+'BP Financier'!$F$16+'BP Financier'!$F$19+'BP Financier'!$F$22))*$V6247*AB6247/(1-$W6247)","v":{"v":65004.72433777021,"d":"65,005"}},null,{"v":0.0075,"d":"0.75%"},{"$f":"Actif!$E$28/100","v":{"v":0.28900000000000003,"d":"28.90%"}},{"$f":"Actif!$E$30/100","v":{"v":0.09050000000000001,"d":"9.05%"}},{"$f":"Actif!$E$31/100","v":{"v":0.0605,"d":"6.05%"}},{"$f":"Actif!$E$32/100","v":{"v":0.47350000000000003,"d":"47.35%"}},{"$f":"Actif!$E$33/100","v":{"v":0.0585,"d":"5.85%"}},{"$f":"Actif!$E$29/100","v":{"v":0.027999999999999997,"d":"2.80%"}}]
[null,"#141",53,2026,"F","A_VIE",{"v":0.44999999999999996,"d":"0.45"},{"v":0.38999999999999996,"d":"0.39"},0.6,0.6,85,0,{"$f":"ROUND(Primes!$P$4*V6248,0)","v":71},{"$f":"'BP Financier'!$F$33*(('BP Financier'!$C$16+'BP Financier'!$D$16+'BP Financier'!$E$16+'BP Financier'!$F$16)/('BP Financier'!$C$16+'BP Financier'!$C$19+'BP Financier'!$D$16+'BP Financier'!$D$19+'BP Financier'!$E$16+'BP Financier'!$E$19+'BP Financier'!$F$16+'BP Financier'!$F$19))*V6248","v":{"v":2909830.1866639922,"d":"2,909,830"}},{"v":1650655.678719808,"d":"1,650,656"},{"$f":"'BP Financier'!$F$44*(('BP Financier'!$C$16+'BP Financier'!$D$16+'BP Financier'!$E$16+'BP Financier'!$F$16)/('BP Financier'!$C$16+'BP Financier'!$C$19+'BP Financier'!$D$16+'BP Financier'!$D$19+'BP Financier'!$E$16+'BP Financier'!$E$19+'BP Financier'!$C$22+'BP Financier'!$D$22+'BP Financier'!$E$22+'BP Financier'!$F$16+'BP Financier'!$F$19+'BP Financier'!$F$22))*$V6248*X6248/(1-$W6248)","v":{"v":210104.55544886444,"d":"210,105"}},{"$f":"'BP Financier'!$F$44*(('BP Financier'!$C$16+'BP Financier'!$D$16+'BP Financier'!$E$16+'BP Financier'!$F$16)/('BP Financier'!$C$16+'BP Financier'!$C$19+'BP Financier'!$D$16+'BP Financier'!$D$19+'BP Financier'!$E$16+'BP Financier'!$E$19+'BP Financier'!$C$22+'BP Financier'!$D$22+'BP Financier'!$E$22+'BP Financier'!$F$16+'BP Financier'!$F$19+'BP Financier'!$F$22))*$V6248*Y6248/(1-$W6248)","v":{"v":140456.63651553923,"d":"140,457"}},{"$f":"'BP Financier'!$F$44*(('BP Financier'!$C$16+'BP Financier'!$D$16+'BP Financier'!$E$16+'BP Financier'!$F$16)/('BP Financier'!$C$16+'BP Financier'!$C$19+'BP Financier'!$D$16+'BP Financier'!$D$19+'BP Financier'!$E$16+'BP Financier'!$E$19+'BP Financier'!$C$22+'BP Financier'!$D$22+'BP Financier'!$E$22+'BP Financier'!$F$16+'BP Financier'!$F$19+'BP Financier'!$F$22))*$V6248*Z6248/(1-$W6248)","v":{"v":1099276.32049765,"d":"1,099,276"}},{"$f":"'BP Financier'!$F$44*(('BP Financier'!$C$16+'BP Financier'!$D$16+'BP Financier'!$E$16+'BP Financier'!$F$16)/('BP Financier'!$C$16+'BP Financier'!$C$19+'BP Financier'!$D$16+'BP Financier'!$D$19+'BP Financier'!$E$16+'BP Financier'!$E$19+'BP Financier'!$C$22+'BP Financier'!$D$22+'BP Financier'!$E$22+'BP Financier'!$F$16+'BP Financier'!$F$19+'BP Financier'!$F$22))*$V6248*AA6248/(1-$W6248)","v":{"v":135813.4419199842,"d":"135,813"}},{"$f":"'BP Financier'!$F$44*(('BP Financier'!$C$16+'BP Financier'!$D$16+'BP Financier'!$E$16+'BP Financier'!$F$16)/('BP Financier'!$C$16+'BP Financier'!$C$19+'BP Financier'!$D$16+'BP Financier'!$D$19+'BP Financier'!$E$16+'BP Financier'!$E$19+'BP Financier'!$C$22+'BP Financier'!$D$22+'BP Financier'!$E$22+'BP Financier'!$F$16+'BP Financier'!$F$19+'BP Financier'!$F$22))*$V6248*AB6248/(1-$W6248)","v":{"v":65004.72433777021,"d":"65,005"}},null,{"v":0.0075,"d":"0.75%"},{"$f":"Actif!$E$28/100","v":{"v":0.28900000000000003,"d":"28.90%"}},{"$f":"Actif!$E$30/100","v":{"v":0.09050000000000001,"d":"9.05%"}},{"$f":"Actif!$E$31/100","v":{"v":0.0605,"d":"6.05%"}},{"$f":"Actif!$E$32/100","v":{"v":0.47350000000000003,"d":"47.35%"}},{"$f":"Actif!$E$33/100","v":{"v":0.0585,"d":"5.85%"}},{"$f":"Actif!$E$29/100","v":{"v":0.027999999999999997,"d":"2.80%"}}]
[null,"#142",53,2028,"F","A_VIE",{"v":0.44999999999999996,"d":"0.45"},{"v":0.38999999999999996,"d":"0.39"},0.6,0.6,85,0,{"$f":"ROUND(Primes!$P$4*V6249,0)","v":71},{"$f":"'BP Financier'!$F$33*(('BP Financier'!$C$16+'BP Financier'!$D$16+'BP Financier'!$E$16+'BP Financier'!$F$16)/('BP Financier'!$C$16+'BP Financier'!$C$19+'BP Financier'!$D$16+'BP Financier'!$D$19+'BP Financier'!$E$16+'BP Financier'!$E$19+'BP Financier'!$F$16+'BP Financier'!$F$19))*V6249","v":{"v":2909830.1866639922,"d":"2,909,830"}},{"v":1650655.678719808,"d":"1,650,656"},{"$f":"'BP Financier'!$F$44*(('BP Financier'!$C$16+'BP Financier'!$D$16+'BP Financier'!$E$16+'BP Financier'!$F$16)/('BP Financier'!$C$16+'BP Financier'!$C$19+'BP Financier'!$D$16+'BP Financier'!$D$19+'BP Financier'!$E$16+'BP Financier'!$E$19+'BP Financier'!$C$22+'BP Financier'!$D$22+'BP Financier'!$E$22+'BP Financier'!$F$16+'BP Financier'!$F$19+'BP Financier'!$F$22))*$V6249*X6249/(1-$W6249)","v":{"v":210104.55544886444,"d":"210,105"}},{"$f":"'BP Financier'!$F$44*(('BP Financier'!$C$16+'BP Financier'!$D$16+'BP Financier'!$E$16+'BP Financier'!$F$16)/('BP Financier'!$C$16+'BP Financier'!$C$19+'BP Financier'!$D$16+'BP Financier'!$D$19+'BP Financier'!$E$16+'BP Financier'!$E$19+'BP Financier'!$C$22+'BP Financier'!$D$22+'BP Financier'!$E$22+'BP Financier'!$F$16+'BP Financier'!$F$19+'BP Financier'!$F$22))*$V6249*Y6249/(1-$W6249)","v":{"v":140456.63651553923,"d":"140,457"}},{"$f":"'BP Financier'!$F$44*(('BP Financier'!$C$16+'BP Financier'!$D$16+'BP Financier'!$E$16+'BP Financier'!$F$16)/('BP Financier'!$C$16+'BP Financier'!$C$19+'BP Financier'!$D$16+'BP Financier'!$D$19+'BP Financier'!$E$16+'BP Financier'!$E$19+'BP Financier'!$C$22+'BP Financier'!$D$22+'BP Financier'!$E$22+'BP Financier'!$F$16+'BP Financier'!$F$19+'BP Financier'!$F$22))*$V6249*Z6249/(1-$W6249)","v":{"v":1099276.32049765,"d":"1,099,276"}},{"$f":"'BP Financier'!$F$44*(('BP Financier'!$C$16+'BP Financier'!$D$16+'BP Financier'!$E$16+'BP Financier'!$F$16)/('BP Financier'!$C$16+'BP Financier'!$C$19+'BP Financier'!$D$16+'BP Financier'!$D$19+'BP Financier'!$E$16+'BP Financier'!$E$19+'BP Financier'!$C$22+'BP Financier'!$D$22+'BP Financier'!$E$22+'BP Financier'!$F$16+'BP Financier'!$F$19+'BP Financier'!$F$22))*$V6249*AA6249/(1-$W6249)","v":{"v":135813.4419199842,"d":"135,813"}},{"$f":"'BP Financier'!$F$44*(('BP Financier'!$C$16+'BP Financier'!$D$16+'BP Financier'!$E$16+'BP Financier'!$F$16)/('BP Financier'!$C$16+'BP Financier'!$C$19+'BP Financier'!$D$16+'BP Financier'!$D$19+'BP Financier'!$E$16+'BP Financier'!$E$19+'BP Financier'!$C$22+'BP Financier'!$D$22+'BP Financier'!$E$22+'BP Financier'!$F$16+'BP Financier'!$F$19+'BP Financier'!$F$22))*$V6249*AB6249/(1-$W6249)","v":{"v":65004.72433777021,"d":"65,005"}},null,{"v":0.0075,"d":"0.75%"},{"$f":"Actif!$E$28/100","v":{"v":0.28900000000000003,"d":"28.90%"}},{"$f":"Actif!$E$30/100","v":{"v":0.09050000000000001,"d":"9.05%"}},{"$f":"Actif!$E$31/100","v":{"v":0.0605,"d":"6.05%"}},{"$f":"Actif!$E$32/100","v":{"v":0.47350000000000003,"d":"47.35%"}},{"$f":"Actif!$E$33/100","v":{"v":0.0585,"d":"5.85%"}},{"$f":"Actif!$E$29/100","v":{"v":0.027999999999999997,"d":"2.80%"}}]
[null,"#143",53,2029,"F","A_VIE",{"v":0.44999999999999996,"d":"0.45"},{"v":0.38999999999999996,"d":"0.39"},0.6,0.6,85,0,{"$f":"ROUND(Primes!$P$4*V6250,0)","v":71},{"$f":"'BP Financier'!$F$33*(('BP Financier'!$C$16+'BP Financier'!$D$16+'BP Financier'!$E$16+'BP Financier'!$F$16)/('BP Financier'!$C$16+'BP Financier'!$C$19+'BP Financier'!$D$16+'BP Financier'!$D$19+'BP Financier'!$E$16+'BP Financier'!$E$19+'BP Financier'!$F$16+'BP Financier'!$F$19))*V6250","v":{"v":2909830.1866639922,"d":"2,909,830"}},{"v":1650655.678719808,"d":"1,650,656"},{"$f":"'BP Financier'!$F$44*(('BP Financier'!$C$16+'BP Financier'!$D$16+'BP Financier'!$E$16+'BP Financier'!$F$16)/('BP Financier'!$C$16+'BP Financier'!$C$19+'BP Financier'!$D$16+'BP Financier'!$D$19+'BP Financier'!$E$16+'BP Financier'!$E$19+'BP Financier'!$C$22+'BP Financier'!$D$22+'BP Financier'!$E$22+'BP Financier'!$F$16+'BP Financier'!$F$19+'BP Financier'!$F$22))*$V6250*X6250/(1-$W6250)","v":{"v":210104.55544886444,"d":"210,105"}},{"$f":"'BP Financier'!$F$44*(('BP Financier'!$C$16+'BP Financier'!$D$16+'BP Financier'!$E$16+'BP Financier'!$F$16)/('BP Financier'!$C$16+'BP Financier'!$C$19+'BP Financier'!$D$16+'BP Financier'!$D$19+'BP Financier'!$E$16+'BP Financier'!$E$19+'BP Financier'!$C$22+'BP Financier'!$D$22+'BP Financier'!$E$22+'BP Financier'!$F$16+'BP Financier'!$F$19+'BP Financier'!$F$22))*$V6250*Y6250/(1-$W6250)","v":{"v":140456.63651553923,"d":"140,457"}},{"$f":"'BP Financier'!$F$44*(('BP Financier'!$C$16+'BP Financier'!$D$16+'BP Financier'!$E$16+'BP Financier'!$F$16)/('BP Financier'!$C$16+'BP Financier'!$C$19+'BP Financier'!$D$16+'BP Financier'!$D$19+'BP Financier'!$E$16+'BP Financier'!$E$19+'BP Financier'!$C$22+'BP Financier'!$D$22+'BP Financier'!$E$22+'BP Financier'!$F$16+'BP Financier'!$F$19+'BP Financier'!$F$22))*$V6250*Z6250/(1-$W6250)","v":{"v":1099276.32049765,"d":"1,099,276"}},{"$f":"'BP Financier'!$F$44*(('BP Financier'!$C$16+'BP Financier'!$D$16+'BP Financier'!$E$16+'BP Financier'!$F$16)/('BP Financier'!$C$16+'BP Financier'!$C$19+'BP Financier'!$D$16+'BP Financier'!$D$19+'BP Financier'!$E$16+'BP Financier'!$E$19+'BP Financier'!$C$22+'BP Financier'!$D$22+'BP Financier'!$E$22+'BP Financier'!$F$16+'BP Financier'!$F$19+'BP Financier'!$F$22))*$V6250*AA6250/(1-$W6250)","v":{"v":135813.4419199842,"d":"135,813"}},{"$f":"'BP Financier'!$F$44*(('BP Financier'!$C$16+'BP Financier'!$D$16+'BP Financier'!$E$16+'BP Financier'!$F$16)/('BP Financier'!$C$16+'BP Financier'!$C$19+'BP Financier'!$D$16+'BP Financier'!$D$19+'BP Financier'!$E$16+'BP Financier'!$E$19+'BP Financier'!$C$22+'BP Financier'!$D$22+'BP Financier'!$E$22+'BP Financier'!$F$16+'BP Financier'!$F$19+'BP Financier'!$F$22))*$V6250*AB6250/(1-$W6250)","v":{"v":65004.72433777021,"d":"65,005"}},null,{"v":0.0075,"d":"0.75%"},{"$f":"Actif!$E$28/100","v":{"v":0.28900000000000003,"d":"28.90%"}},{"$f":"Actif!$E$30/100","v":{"v":0.09050000000000001,"d":"9.05%"}},{"$f":"Actif!$E$31/100","v":{"v":0.0605,"d":"6.05%"}},{"$f":"Actif!$E$32/100","v":{"v":0.47350000000000003,"d":"47.35%"}},{"$f":"Actif!$E$33/100","v":{"v":0.0585,"d":"5.85%"}},{"$f":"Actif!$E$29/100","v":{"v":0.027999999999999997,"d":"2.80%"}}]
[null,"#144",53,2030,"F","A_VIE",{"v":0.44999999999999996,"d":"0.45"},{"v":0.38999999999999996,"d":"0.39"},0.6,0.6,85,0,{"$f":"ROUND(Primes!$P$4*V6251,0)","v":71},{"$f":"'BP Financier'!$F$33*(('BP Financier'!$C$16+'BP Financier'!$D$16+'BP Financier'!$E$16+'BP Financier'!$F$16)/('BP Financier'!$C$16+'BP Financier'!$C$19+'BP Financier'!$D$16+'BP Financier'!$D$19+'BP Financier'!$E$16+'BP Financier'!$E$19+'BP Financier'!$F$16+'BP Financier'!$F$19))*V6251","v":{"v":2909830.1866639922,"d":"2,909,830"}},{"v":1650655.678719808,"d":"1,650,656"},{"$f":"'BP Financier'!$F$44*(('BP Financier'!$C$16+'BP Financier'!$D$16+'BP Financier'!$E$16+'BP Financier'!$F$16)/('BP Financier'!$C$16+'BP Financier'!$C$19+'BP Financier'!$D$16+'BP Financier'!$D$19+'BP Financier'!$E$16+'BP Financier'!$E$19+'BP Financier'!$C$22+'BP Financier'!$D$22+'BP Financier'!$E$22+'BP Financier'!$F$16+'BP Financier'!$F$19+'BP Financier'!$F$22))*$V6251*X6251/(1-$W6251)","v":{"v":210104.55544886444,"d":"210,105"}},{"$f":"'BP Financier'!$F$44*(('BP Financier'!$C$16+'BP Financier'!$D$16+'BP Financier'!$E$16+'BP Financier'!$F$16)/('BP Financier'!$C$16+'BP Financier'!$C$19+'BP Financier'!$D$16+'BP Financier'!$D$19+'BP Financier'!$E$16+'BP Financier'!$E$19+'BP Financier'!$C$22+'BP Financier'!$D$22+'BP Financier'!$E$22+'BP Financier'!$F$16+'BP Financier'!$F$19+'BP Financier'!$F$22))*$V6251*Y6251/(1-$W6251)","v":{"v":140456.63651553923,"d":"140,457"}},{"$f":"'BP Financier'!$F$44*(('BP Financier'!$C$16+'BP Financier'!$D$16+'BP Financier'!$E$16+'BP Financier'!$F$16)/('BP Financier'!$C$16+'BP Financier'!$C$19+'BP Financier'!$D$16+'BP Financier'!$D$19+'BP Financier'!$E$16+'BP Financier'!$E$19+'BP Financier'!$C$22+'BP Financier'!$D$22+'BP Financier'!$E$22+'BP Financier'!$F$16+'BP Financier'!$F$19+'BP Financier'!$F$22))*$V6251*Z6251/(1-$W6251)","v":{"v":1099276.32049765,"d":"1,099,276"}},{"$f":"'BP Financier'!$F$44*(('BP Financier'!$C$16+'BP Financier'!$D$16+'BP Financier'!$E$16+'BP Financier'!$F$16)/('BP Financier'!$C$16+'BP Financier'!$C$19+'BP Financier'!$D$16+'BP Financier'!$D$19+'BP Financier'!$E$16+'BP Financier'!$E$19+'BP Financier'!$C$22+'BP Financier'!$D$22+'BP Financier'!$E$22+'BP Financier'!$F$16+'BP Financier'!$F$19+'BP Financier'!$F$22))*$V6251*AA6251/(1-$W6251)","v":{"v":135813.4419199842,"d":"135,813"}},{"$f":"'BP Financier'!$F$44*(('BP Financier'!$C$16+'BP Financier'!$D$16+'BP Financier'!$E$16+'BP Financier'!$F$16)/('BP Financier'!$C$16+'BP Financier'!$C$19+'BP Financier'!$D$16+'BP Financier'!$D$19+'BP Financier'!$E$16+'BP Financier'!$E$19+'BP Financier'!$C$22+'BP Financier'!$D$22+'BP Financier'!$E$22+'BP Financier'!$F$16+'BP Financier'!$F$19+'BP Financier'!$F$22))*$V6251*AB6251/(1-$W6251)","v":{"v":65004.72433777021,"d":"65,005"}},null,{"v":0.0075,"d":"0.75%"},{"$f":"Actif!$E$28/100","v":{"v":0.28900000000000003,"d":"28.90%"}},{"$f":"Actif!$E$30/100","v":{"v":0.09050000000000001,"d":"9.05%"}},{"$f":"Actif!$E$31/100","v":{"v":0.0605,"d":"6.05%"}},{"$f":"Actif!$E$32/100","v":{"v":0.47350000000000003,"d":"47.35%"}},{"$f":"Actif!$E$33/100","v":{"v":0.0585,"d":"5.85%"}},{"$f":"Actif!$E$29/100","v":{"v":0.027999999999999997,"d":"2.80%"}}]
[null,"#145",54,2026,"H","A_VIE",{"v":0.44999999999999996,"d":"0.45"},{"v":0.38999999999999996,"d":"0.39"},0.6,0.6,85,0,{"$f":"ROUND(Primes!$P$4*V6252,0)","v":71},{"$f":"'BP Financier'!$F$33*(('BP Financier'!$C$16+'BP Financier'!$D$16+'BP Financier'!$E$16+'BP Financier'!$F$16)/('BP Financier'!$C$16+'BP Financier'!$C$19+'BP Financier'!$D$16+'BP Financier'!$D$19+'BP Financier'!$E$16+'BP Financier'!$E$19+'BP Financier'!$F$16+'BP Financier'!$F$19))*V6252","v":{"v":2909830.1866639922,"d":"2,909,830"}},{"v":1650655.678719808,"d":"1,650,656"},{"$f":"'BP Financier'!$F$44*(('BP Financier'!$C$16+'BP Financier'!$D$16+'BP Financier'!$E$16+'BP Financier'!$F$16)/('BP Financier'!$C$16+'BP Financier'!$C$19+'BP Financier'!$D$16+'BP Financier'!$D$19+'BP Financier'!$E$16+'BP Financier'!$E$19+'BP Financier'!$C$22+'BP Financier'!$D$22+'BP Financier'!$E$22+'BP Financier'!$F$16+'BP Financier'!$F$19+'BP Financier'!$F$22))*$V6252*X6252/(1-$W6252)","v":{"v":210104.55544886444,"d":"210,105"}},{"$f":"'BP Financier'!$F$44*(('BP Financier'!$C$16+'BP Financier'!$D$16+'BP Financier'!$E$16+'BP Financier'!$F$16)/('BP Financier'!$C$16+'BP Financier'!$C$19+'BP Financier'!$D$16+'BP Financier'!$D$19+'BP Financier'!$E$16+'BP Financier'!$E$19+'BP Financier'!$C$22+'BP Financier'!$D$22+'BP Financier'!$E$22+'BP Financier'!$F$16+'BP Financier'!$F$19+'BP Financier'!$F$22))*$V6252*Y6252/(1-$W6252)","v":{"v":140456.63651553923,"d":"140,457"}},{"$f":"'BP Financier'!$F$44*(('BP Financier'!$C$16+'BP Financier'!$D$16+'BP Financier'!$E$16+'BP Financier'!$F$16)/('BP Financier'!$C$16+'BP Financier'!$C$19+'BP Financier'!$D$16+'BP Financier'!$D$19+'BP Financier'!$E$16+'BP Financier'!$E$19+'BP Financier'!$C$22+'BP Financier'!$D$22+'BP Financier'!$E$22+'BP Financier'!$F$16+'BP Financier'!$F$19+'BP Financier'!$F$22))*$V6252*Z6252/(1-$W6252)","v":{"v":1099276.32049765,"d":"1,099,276"}},{"$f":"'BP Financier'!$F$44*(('BP Financier'!$C$16+'BP Financier'!$D$16+'BP Financier'!$E$16+'BP Financier'!$F$16)/('BP Financier'!$C$16+'BP Financier'!$C$19+'BP Financier'!$D$16+'BP Financier'!$D$19+'BP Financier'!$E$16+'BP Financier'!$E$19+'BP Financier'!$C$22+'BP Financier'!$D$22+'BP Financier'!$E$22+'BP Financier'!$F$16+'BP Financier'!$F$19+'BP Financier'!$F$22))*$V6252*AA6252/(1-$W6252)","v":{"v":135813.4419199842,"d":"135,813"}},{"$f":"'BP Financier'!$F$44*(('BP Financier'!$C$16+'BP Financier'!$D$16+'BP Financier'!$E$16+'BP Financier'!$F$16)/('BP Financier'!$C$16+'BP Financier'!$C$19+'BP Financier'!$D$16+'BP Financier'!$D$19+'BP Financier'!$E$16+'BP Financier'!$E$19+'BP Financier'!$C$22+'BP Financier'!$D$22+'BP Financier'!$E$22+'BP Financier'!$F$16+'BP Financier'!$F$19+'BP Financier'!$F$22))*$V6252*AB6252/(1-$W6252)","v":{"v":65004.72433777021,"d":"65,005"}},null,{"v":0.0075,"d":"0.75%"},{"$f":"Actif!$E$28/100","v":{"v":0.28900000000000003,"d":"28.90%"}},{"$f":"Actif!$E$30/100","v":{"v":0.09050000000000001,"d":"9.05%"}},{"$f":"Actif!$E$31/100","v":{"v":0.0605,"d":"6.05%"}},{"$f":"Actif!$E$32/100","v":{"v":0.47350000000000003,"d":"47.35%"}},{"$f":"Actif!$E$33/100","v":{"v":0.0585,"d":"5.85%"}},{"$f":"Actif!$E$29/100","v":{"v":0.027999999999999997,"d":"2.80%"}}]
[null,"#146",54,2028,"H","A_VIE",{"v":0.44999999999999996,"d":"0.45"},{"v":0.38999999999999996,"d":"0.39"},0.6,0.6,85,0,{"$f":"ROUND(Primes!$P$4*V6253,0)","v":71},{"$f":"'BP Financier'!$F$33*(('BP Financier'!$C$16+'BP Financier'!$D$16+'BP Financier'!$E$16+'BP Financier'!$F$16)/('BP Financier'!$C$16+'BP Financier'!$C$19+'BP Financier'!$D$16+'BP Financier'!$D$19+'BP Financier'!$E$16+'BP Financier'!$E$19+'BP Financier'!$F$16+'BP Financier'!$F$19))*V6253","v":{"v":2909830.1866639922,"d":"2,909,830"}},{"v":1650655.678719808,"d":"1,650,656"},{"$f":"'BP Financier'!$F$44*(('BP Financier'!$C$16+'BP Financier'!$D$16+'BP Financier'!$E$16+'BP Financier'!$F$16)/('BP Financier'!$C$16+'BP Financier'!$C$19+'BP Financier'!$D$16+'BP Financier'!$D$19+'BP Financier'!$E$16+'BP Financier'!$E$19+'BP Financier'!$C$22+'BP Financier'!$D$22+'BP Financier'!$E$22+'BP Financier'!$F$16+'BP Financier'!$F$19+'BP Financier'!$F$22))*$V6253*X6253/(1-$W6253)","v":{"v":210104.55544886444,"d":"210,105"}},{"$f":"'BP Financier'!$F$44*(('BP Financier'!$C$16+'BP Financier'!$D$16+'BP Financier'!$E$16+'BP Financier'!$F$16)/('BP Financier'!$C$16+'BP Financier'!$C$19+'BP Financier'!$D$16+'BP Financier'!$D$19+'BP Financier'!$E$16+'BP Financier'!$E$19+'BP Financier'!$C$22+'BP Financier'!$D$22+'BP Financier'!$E$22+'BP Financier'!$F$16+'BP Financier'!$F$19+'BP Financier'!$F$22))*$V6253*Y6253/(1-$W6253)","v":{"v":140456.63651553923,"d":"140,457"}},{"$f":"'BP Financier'!$F$44*(('BP Financier'!$C$16+'BP Financier'!$D$16+'BP Financier'!$E$16+'BP Financier'!$F$16)/('BP Financier'!$C$16+'BP Financier'!$C$19+'BP Financier'!$D$16+'BP Financier'!$D$19+'BP Financier'!$E$16+'BP Financier'!$E$19+'BP Financier'!$C$22+'BP Financier'!$D$22+'BP Financier'!$E$22+'BP Financier'!$F$16+'BP Financier'!$F$19+'BP Financier'!$F$22))*$V6253*Z6253/(1-$W6253)","v":{"v":1099276.32049765,"d":"1,099,276"}},{"$f":"'BP Financier'!$F$44*(('BP Financier'!$C$16+'BP Financier'!$D$16+'BP Financier'!$E$16+'BP Financier'!$F$16)/('BP Financier'!$C$16+'BP Financier'!$C$19+'BP Financier'!$D$16+'BP Financier'!$D$19+'BP Financier'!$E$16+'BP Financier'!$E$19+'BP Financier'!$C$22+'BP Financier'!$D$22+'BP Financier'!$E$22+'BP Financier'!$F$16+'BP Financier'!$F$19+'BP Financier'!$F$22))*$V6253*AA6253/(1-$W6253)","v":{"v":135813.4419199842,"d":"135,813"}},{"$f":"'BP Financier'!$F$44*(('BP Financier'!$C$16+'BP Financier'!$D$16+'BP Financier'!$E$16+'BP Financier'!$F$16)/('BP Financier'!$C$16+'BP Financier'!$C$19+'BP Financier'!$D$16+'BP Financier'!$D$19+'BP Financier'!$E$16+'BP Financier'!$E$19+'BP Financier'!$C$22+'BP Financier'!$D$22+'BP Financier'!$E$22+'BP Financier'!$F$16+'BP Financier'!$F$19+'BP Financier'!$F$22))*$V6253*AB6253/(1-$W6253)","v":{"v":65004.72433777021,"d":"65,005"}},null,{"v":0.0075,"d":"0.75%"},{"$f":"Actif!$E$28/100","v":{"v":0.28900000000000003,"d":"28.90%"}},{"$f":"Actif!$E$30/100","v":{"v":0.09050000000000001,"d":"9.05%"}},{"$f":"Actif!$E$31/100","v":{"v":0.0605,"d":"6.05%"}},{"$f":"Actif!$E$32/100","v":{"v":0.47350000000000003,"d":"47.35%"}},{"$f":"Actif!$E$33/100","v":{"v":0.0585,"d":"5.85%"}},{"$f":"Actif!$E$29/100","v":{"v":0.027999999999999997,"d":"2.80%"}}]
[null,"#147",54,2029,"H","A_VIE",{"v":0.44999999999999996,"d":"0.45"},{"v":0.38999999999999996,"d":"0.39"},0.6,0.6,85,0,{"$f":"ROUND(Primes!$P$4*V6254,0)","v":71},{"$f":"'BP Financier'!$F$33*(('BP Financier'!$C$16+'BP Financier'!$D$16+'BP Financier'!$E$16+'BP Financier'!$F$16)/('BP Financier'!$C$16+'BP Financier'!$C$19+'BP Financier'!$D$16+'BP Financier'!$D$19+'BP Financier'!$E$16+'BP Financier'!$E$19+'BP Financier'!$F$16+'BP Financier'!$F$19))*V6254","v":{"v":2909830.1866639922,"d":"2,909,830"}},{"v":1650655.678719808,"d":"1,650,656"},{"$f":"'BP Financier'!$F$44*(('BP Financier'!$C$16+'BP Financier'!$D$16+'BP Financier'!$E$16+'BP Financier'!$F$16)/('BP Financier'!$C$16+'BP Financier'!$C$19+'BP Financier'!$D$16+'BP Financier'!$D$19+'BP Financier'!$E$16+'BP Financier'!$E$19+'BP Financier'!$C$22+'BP Financier'!$D$22+'BP Financier'!$E$22+'BP Financier'!$F$16+'BP Financier'!$F$19+'BP Financier'!$F$22))*$V6254*X6254/(1-$W6254)","v":{"v":210104.55544886444,"d":"210,105"}},{"$f":"'BP Financier'!$F$44*(('BP Financier'!$C$16+'BP Financier'!$D$16+'BP Financier'!$E$16+'BP Financier'!$F$16)/('BP Financier'!$C$16+'BP Financier'!$C$19+'BP Financier'!$D$16+'BP Financier'!$D$19+'BP Financier'!$E$16+'BP Financier'!$E$19+'BP Financier'!$C$22+'BP Financier'!$D$22+'BP Financier'!$E$22+'BP Financier'!$F$16+'BP Financier'!$F$19+'BP Financier'!$F$22))*$V6254*Y6254/(1-$W6254)","v":{"v":140456.63651553923,"d":"140,457"}},{"$f":"'BP Financier'!$F$44*(('BP Financier'!$C$16+'BP Financier'!$D$16+'BP Financier'!$E$16+'BP Financier'!$F$16)/('BP Financier'!$C$16+'BP Financier'!$C$19+'BP Financier'!$D$16+'BP Financier'!$D$19+'BP Financier'!$E$16+'BP Financier'!$E$19+'BP Financier'!$C$22+'BP Financier'!$D$22+'BP Financier'!$E$22+'BP Financier'!$F$16+'BP Financier'!$F$19+'BP Financier'!$F$22))*$V6254*Z6254/(1-$W6254)","v":{"v":1099276.32049765,"d":"1,099,276"}},{"$f":"'BP Financier'!$F$44*(('BP Financier'!$C$16+'BP Financier'!$D$16+'BP Financier'!$E$16+'BP Financier'!$F$16)/('BP Financier'!$C$16+'BP Financier'!$C$19+'BP Financier'!$D$16+'BP Financier'!$D$19+'BP Financier'!$E$16+'BP Financier'!$E$19+'BP Financier'!$C$22+'BP Financier'!$D$22+'BP Financier'!$E$22+'BP Financier'!$F$16+'BP Financier'!$F$19+'BP Financier'!$F$22))*$V6254*AA6254/(1-$W6254)","v":{"v":135813.4419199842,"d":"135,813"}},{"$f":"'BP Financier'!$F$44*(('BP Financier'!$C$16+'BP Financier'!$D$16+'BP Financier'!$E$16+'BP Financier'!$F$16)/('BP Financier'!$C$16+'BP Financier'!$C$19+'BP Financier'!$D$16+'BP Financier'!$D$19+'BP Financier'!$E$16+'BP Financier'!$E$19+'BP Financier'!$C$22+'BP Financier'!$D$22+'BP Financier'!$E$22+'BP Financier'!$F$16+'BP Financier'!$F$19+'BP Financier'!$F$22))*$V6254*AB6254/(1-$W6254)","v":{"v":65004.72433777021,"d":"65,005"}},null,{"v":0.0075,"d":"0.75%"},{"$f":"Actif!$E$28/100","v":{"v":0.28900000000000003,"d":"28.90%"}},{"$f":"Actif!$E$30/100","v":{"v":0.09050000000000001,"d":"9.05%"}},{"$f":"Actif!$E$31/100","v":{"v":0.0605,"d":"6.05%"}},{"$f":"Actif!$E$32/100","v":{"v":0.47350000000000003,"d":"47.35%"}},{"$f":"Actif!$E$33/100","v":{"v":0.0585,"d":"5.85%"}},{"$f":"Actif!$E$29/100","v":{"v":0.027999999999999997,"d":"2.80%"}}]
[null,"#148",54,2030,"H","A_VIE",{"v":0.44999999999999996,"d":"0.45"},{"v":0.38999999999999996,"d":"0.39"},0.6,0.6,85,0,{"$f":"ROUND(Primes!$P$4*V6255,0)","v":71},{"$f":"'BP Financier'!$F$33*(('BP Financier'!$C$16+'BP Financier'!$D$16+'BP Financier'!$E$16+'BP Financier'!$F$16)/('BP Financier'!$C$16+'BP Financier'!$C$19+'BP Financier'!$D$16+'BP Financier'!$D$19+'BP Financier'!$E$16+'BP Financier'!$E$19+'BP Financier'!$F$16+'BP Financier'!$F$19))*V6255","v":{"v":2909830.1866639922,"d":"2,909,830"}},{"v":1650655.678719808,"d":"1,650,656"},{"$f":"'BP Financier'!$F$44*(('BP Financier'!$C$16+'BP Financier'!$D$16+'BP Financier'!$E$16+'BP Financier'!$F$16)/('BP Financier'!$C$16+'BP Financier'!$C$19+'BP Financier'!$D$16+'BP Financier'!$D$19+'BP Financier'!$E$16+'BP Financier'!$E$19+'BP Financier'!$C$22+'BP Financier'!$D$22+'BP Financier'!$E$22+'BP Financier'!$F$16+'BP Financier'!$F$19+'BP Financier'!$F$22))*$V6255*X6255/(1-$W6255)","v":{"v":210104.55544886444,"d":"210,105"}},{"$f":"'BP Financier'!$F$44*(('BP Financier'!$C$16+'BP Financier'!$D$16+'BP Financier'!$E$16+'BP Financier'!$F$16)/('BP Financier'!$C$16+'BP Financier'!$C$19+'BP Financier'!$D$16+'BP Financier'!$D$19+'BP Financier'!$E$16+'BP Financier'!$E$19+'BP Financier'!$C$22+'BP Financier'!$D$22+'BP Financier'!$E$22+'BP Financier'!$F$16+'BP Financier'!$F$19+'BP Financier'!$F$22))*$V6255*Y6255/(1-$W6255)","v":{"v":140456.63651553923,"d":"140,457"}},{"$f":"'BP Financier'!$F$44*(('BP Financier'!$C$16+'BP Financier'!$D$16+'BP Financier'!$E$16+'BP Financier'!$F$16)/('BP Financier'!$C$16+'BP Financier'!$C$19+'BP Financier'!$D$16+'BP Financier'!$D$19+'BP Financier'!$E$16+'BP Financier'!$E$19+'BP Financier'!$C$22+'BP Financier'!$D$22+'BP Financier'!$E$22+'BP Financier'!$F$16+'BP Financier'!$F$19+'BP Financier'!$F$22))*$V6255*Z6255/(1-$W6255)","v":{"v":1099276.32049765,"d":"1,099,276"}},{"$f":"'BP Financier'!$F$44*(('BP Financier'!$C$16+'BP Financier'!$D$16+'BP Financier'!$E$16+'BP Financier'!$F$16)/('BP Financier'!$C$16+'BP Financier'!$C$19+'BP Financier'!$D$16+'BP Financier'!$D$19+'BP Financier'!$E$16+'BP Financier'!$E$19+'BP Financier'!$C$22+'BP Financier'!$D$22+'BP Financier'!$E$22+'BP Financier'!$F$16+'BP Financier'!$F$19+'BP Financier'!$F$22))*$V6255*AA6255/(1-$W6255)","v":{"v":135813.4419199842,"d":"135,813"}},{"$f":"'BP Financier'!$F$44*(('BP Financier'!$C$16+'BP Financier'!$D$16+'BP Financier'!$E$16+'BP Financier'!$F$16)/('BP Financier'!$C$16+'BP Financier'!$C$19+'BP Financier'!$D$16+'BP Financier'!$D$19+'BP Financier'!$E$16+'BP Financier'!$E$19+'BP Financier'!$C$22+'BP Financier'!$D$22+'BP Financier'!$E$22+'BP Financier'!$F$16+'BP Financier'!$F$19+'BP Financier'!$F$22))*$V6255*AB6255/(1-$W6255)","v":{"v":65004.72433777021,"d":"65,005"}},null,{"v":0.0075,"d":"0.75%"},{"$f":"Actif!$E$28/100","v":{"v":0.28900000000000003,"d":"28.90%"}},{"$f":"Actif!$E$30/100","v":{"v":0.09050000000000001,"d":"9.05%"}},{"$f":"Actif!$E$31/100","v":{"v":0.0605,"d":"6.05%"}},{"$f":"Actif!$E$32/100","v":{"v":0.47350000000000003,"d":"47.35%"}},{"$f":"Actif!$E$33/100","v":{"v":0.0585,"d":"5.85%"}},{"$f":"Actif!$E$29/100","v":{"v":0.027999999999999997,"d":"2.80%"}}]
[null,"#149",55,2026,"H","A_VIE",{"v":0.44999999999999996,"d":"0.45"},{"v":0.38999999999999996,"d":"0.39"},0.6,0.6,85,0,{"$f":"ROUND(Primes!$P$4*V6256,0)","v":71},{"$f":"'BP Financier'!$F$33*(('BP Financier'!$C$16+'BP Financier'!$D$16+'BP Financier'!$E$16+'BP Financier'!$F$16)/('BP Financier'!$C$16+'BP Financier'!$C$19+'BP Financier'!$D$16+'BP Financier'!$D$19+'BP Financier'!$E$16+'BP Financier'!$E$19+'BP Financier'!$F$16+'BP Financier'!$F$19))*V6256","v":{"v":2909830.1866639922,"d":"2,909,830"}},{"v":1650655.678719808,"d":"1,650,656"},{"$f":"'BP Financier'!$F$44*(('BP Financier'!$C$16+'BP Financier'!$D$16+'BP Financier'!$E$16+'BP Financier'!$F$16)/('BP Financier'!$C$16+'BP Financier'!$C$19+'BP Financier'!$D$16+'BP Financier'!$D$19+'BP Financier'!$E$16+'BP Financier'!$E$19+'BP Financier'!$C$22+'BP Financier'!$D$22+'BP Financier'!$E$22+'BP Financier'!$F$16+'BP Financier'!$F$19+'BP Financier'!$F$22))*$V6256*X6256/(1-$W6256)","v":{"v":210104.55544886444,"d":"210,105"}},{"$f":"'BP Financier'!$F$44*(('BP Financier'!$C$16+'BP Financier'!$D$16+'BP Financier'!$E$16+'BP Financier'!$F$16)/('BP Financier'!$C$16+'BP Financier'!$C$19+'BP Financier'!$D$16+'BP Financier'!$D$19+'BP Financier'!$E$16+'BP Financier'!$E$19+'BP Financier'!$C$22+'BP Financier'!$D$22+'BP Financier'!$E$22+'BP Financier'!$F$16+'BP Financier'!$F$19+'BP Financier'!$F$22))*$V6256*Y6256/(1-$W6256)","v":{"v":140456.63651553923,"d":"140,457"}},{"$f":"'BP Financier'!$F$44*(('BP Financier'!$C$16+'BP Financier'!$D$16+'BP Financier'!$E$16+'BP Financier'!$F$16)/('BP Financier'!$C$16+'BP Financier'!$C$19+'BP Financier'!$D$16+'BP Financier'!$D$19+'BP Financier'!$E$16+'BP Financier'!$E$19+'BP Financier'!$C$22+'BP Financier'!$D$22+'BP Financier'!$E$22+'BP Financier'!$F$16+'BP Financier'!$F$19+'BP Financier'!$F$22))*$V6256*Z6256/(1-$W6256)","v":{"v":1099276.32049765,"d":"1,099,276"}},{"$f":"'BP Financier'!$F$44*(('BP Financier'!$C$16+'BP Financier'!$D$16+'BP Financier'!$E$16+'BP Financier'!$F$16)/('BP Financier'!$C$16+'BP Financier'!$C$19+'BP Financier'!$D$16+'BP Financier'!$D$19+'BP Financier'!$E$16+'BP Financier'!$E$19+'BP Financier'!$C$22+'BP Financier'!$D$22+'BP Financier'!$E$22+'BP Financier'!$F$16+'BP Financier'!$F$19+'BP Financier'!$F$22))*$V6256*AA6256/(1-$W6256)","v":{"v":135813.4419199842,"d":"135,813"}},{"$f":"'BP Financier'!$F$44*(('BP Financier'!$C$16+'BP Financier'!$D$16+'BP Financier'!$E$16+'BP Financier'!$F$16)/('BP Financier'!$C$16+'BP Financier'!$C$19+'BP Financier'!$D$16+'BP Financier'!$D$19+'BP Financier'!$E$16+'BP Financier'!$E$19+'BP Financier'!$C$22+'BP Financier'!$D$22+'BP Financier'!$E$22+'BP Financier'!$F$16+'BP Financier'!$F$19+'BP Financier'!$F$22))*$V6256*AB6256/(1-$W6256)","v":{"v":65004.72433777021,"d":"65,005"}},null,{"v":0.0075,"d":"0.75%"},{"$f":"Actif!$E$28/100","v":{"v":0.28900000000000003,"d":"28.90%"}},{"$f":"Actif!$E$30/100","v":{"v":0.09050000000000001,"d":"9.05%"}},{"$f":"Actif!$E$31/100","v":{"v":0.0605,"d":"6.05%"}},{"$f":"Actif!$E$32/100","v":{"v":0.47350000000000003,"d":"47.35%"}},{"$f":"Actif!$E$33/100","v":{"v":0.0585,"d":"5.85%"}},{"$f":"Actif!$E$29/100","v":{"v":0.027999999999999997,"d":"2.80%"}}]
[null,"#150",55,2028,"H","A_VIE",{"v":0.44999999999999996,"d":"0.45"},{"v":0.38999999999999996,"d":"0.39"},0.6,0.6,85,0,{"$f":"ROUND(Primes!$P$4*V6257,0)","v":71},{"$f":"'BP Financier'!$F$33*(('BP Financier'!$C$16+'BP Financier'!$D$16+'BP Financier'!$E$16+'BP Financier'!$F$16)/('BP Financier'!$C$16+'BP Financier'!$C$19+'BP Financier'!$D$16+'BP Financier'!$D$19+'BP Financier'!$E$16+'BP Financier'!$E$19+'BP Financier'!$F$16+'BP Financier'!$F$19))*V6257","v":{"v":2909830.1866639922,"d":"2,909,830"}},{"v":1650655.678719808,"d":"1,650,656"},{"$f":"'BP Financier'!$F$44*(('BP Financier'!$C$16+'BP Financier'!$D$16+'BP Financier'!$E$16+'BP Financier'!$F$16)/('BP Financier'!$C$16+'BP Financier'!$C$19+'BP Financier'!$D$16+'BP Financier'!$D$19+'BP Financier'!$E$16+'BP Financier'!$E$19+'BP Financier'!$C$22+'BP Financier'!$D$22+'BP Financier'!$E$22+'BP Financier'!$F$16+'BP Financier'!$F$19+'BP Financier'!$F$22))*$V6257*X6257/(1-$W6257)","v":{"v":210104.55544886444,"d":"210,105"}},{"$f":"'BP Financier'!$F$44*(('BP Financier'!$C$16+'BP Financier'!$D$16+'BP Financier'!$E$16+'BP Financier'!$F$16)/('BP Financier'!$C$16+'BP Financier'!$C$19+'BP Financier'!$D$16+'BP Financier'!$D$19+'BP Financier'!$E$16+'BP Financier'!$E$19+'BP Financier'!$C$22+'BP Financier'!$D$22+'BP Financier'!$E$22+'BP Financier'!$F$16+'BP Financier'!$F$19+'BP Financier'!$F$22))*$V6257*Y6257/(1-$W6257)","v":{"v":140456.63651553923,"d":"140,457"}},{"$f":"'BP Financier'!$F$44*(('BP Financier'!$C$16+'BP Financier'!$D$16+'BP Financier'!$E$16+'BP Financier'!$F$16)/('BP Financier'!$C$16+'BP Financier'!$C$19+'BP Financier'!$D$16+'BP Financier'!$D$19+'BP Financier'!$E$16+'BP Financier'!$E$19+'BP Financier'!$C$22+'BP Financier'!$D$22+'BP Financier'!$E$22+'BP Financier'!$F$16+'BP Financier'!$F$19+'BP Financier'!$F$22))*$V6257*Z6257/(1-$W6257)","v":{"v":1099276.32049765,"d":"1,099,276"}},{"$f":"'BP Financier'!$F$44*(('BP Financier'!$C$16+'BP Financier'!$D$16+'BP Financier'!$E$16+'BP Financier'!$F$16)/('BP Financier'!$C$16+'BP Financier'!$C$19+'BP Financier'!$D$16+'BP Financier'!$D$19+'BP Financier'!$E$16+'BP Financier'!$E$19+'BP Financier'!$C$22+'BP Financier'!$D$22+'BP Financier'!$E$22+'BP Financier'!$F$16+'BP Financier'!$F$19+'BP Financier'!$F$22))*$V6257*AA6257/(1-$W6257)","v":{"v":135813.4419199842,"d":"135,813"}},{"$f":"'BP Financier'!$F$44*(('BP Financier'!$C$16+'BP Financier'!$D$16+'BP Financier'!$E$16+'BP Financier'!$F$16)/('BP Financier'!$C$16+'BP Financier'!$C$19+'BP Financier'!$D$16+'BP Financier'!$D$19+'BP Financier'!$E$16+'BP Financier'!$E$19+'BP Financier'!$C$22+'BP Financier'!$D$22+'BP Financier'!$E$22+'BP Financier'!$F$16+'BP Financier'!$F$19+'BP Financier'!$F$22))*$V6257*AB6257/(1-$W6257)","v":{"v":65004.72433777021,"d":"65,005"}},null,{"v":0.0075,"d":"0.75%"},{"$f":"Actif!$E$28/100","v":{"v":0.28900000000000003,"d":"28.90%"}},{"$f":"Actif!$E$30/100","v":{"v":0.09050000000000001,"d":"9.05%"}},{"$f":"Actif!$E$31/100","v":{"v":0.0605,"d":"6.05%"}},{"$f":"Actif!$E$32/100","v":{"v":0.47350000000000003,"d":"47.35%"}},{"$f":"Actif!$E$33/100","v":{"v":0.0585,"d":"5.85%"}},{"$f":"Actif!$E$29/100","v":{"v":0.027999999999999997,"d":"2.80%"}}]
[null,"#151",55,2029,"H","A_VIE",{"v":0.44999999999999996,"d":"0.45"},{"v":0.38999999999999996,"d":"0.39"},0.6,0.6,85,0,{"$f":"ROUND(Primes!$P$4*V6258,0)","v":71},{"$f":"'BP Financier'!$F$33*(('BP Financier'!$C$16+'BP Financier'!$D$16+'BP Financier'!$E$16+'BP Financier'!$F$16)/('BP Financier'!$C$16+'BP Financier'!$C$19+'BP Financier'!$D$16+'BP Financier'!$D$19+'BP Financier'!$E$16+'BP Financier'!$E$19+'BP Financier'!$F$16+'BP Financier'!$F$19))*V6258","v":{"v":2909830.1866639922,"d":"2,909,830"}},{"v":1650655.678719808,"d":"1,650,656"},{"$f":"'BP Financier'!$F$44*(('BP Financier'!$C$16+'BP Financier'!$D$16+'BP Financier'!$E$16+'BP Financier'!$F$16)/('BP Financier'!$C$16+'BP Financier'!$C$19+'BP Financier'!$D$16+'BP Financier'!$D$19+'BP Financier'!$E$16+'BP Financier'!$E$19+'BP Financier'!$C$22+'BP Financier'!$D$22+'BP Financier'!$E$22+'BP Financier'!$F$16+'BP Financier'!$F$19+'BP Financier'!$F$22))*$V6258*X6258/(1-$W6258)","v":{"v":210104.55544886444,"d":"210,105"}},{"$f":"'BP Financier'!$F$44*(('BP Financier'!$C$16+'BP Financier'!$D$16+'BP Financier'!$E$16+'BP Financier'!$F$16)/('BP Financier'!$C$16+'BP Financier'!$C$19+'BP Financier'!$D$16+'BP Financier'!$D$19+'BP Financier'!$E$16+'BP Financier'!$E$19+'BP Financier'!$C$22+'BP Financier'!$D$22+'BP Financier'!$E$22+'BP Financier'!$F$16+'BP Financier'!$F$19+'BP Financier'!$F$22))*$V6258*Y6258/(1-$W6258)","v":{"v":140456.63651553923,"d":"140,457"}},{"$f":"'BP Financier'!$F$44*(('BP Financier'!$C$16+'BP Financier'!$D$16+'BP Financier'!$E$16+'BP Financier'!$F$16)/('BP Financier'!$C$16+'BP Financier'!$C$19+'BP Financier'!$D$16+'BP Financier'!$D$19+'BP Financier'!$E$16+'BP Financier'!$E$19+'BP Financier'!$C$22+'BP Financier'!$D$22+'BP Financier'!$E$22+'BP Financier'!$F$16+'BP Financier'!$F$19+'BP Financier'!$F$22))*$V6258*Z6258/(1-$W6258)","v":{"v":1099276.32049765,"d":"1,099,276"}},{"$f":"'BP Financier'!$F$44*(('BP Financier'!$C$16+'BP Financier'!$D$16+'BP Financier'!$E$16+'BP Financier'!$F$16)/('BP Financier'!$C$16+'BP Financier'!$C$19+'BP Financier'!$D$16+'BP Financier'!$D$19+'BP Financier'!$E$16+'BP Financier'!$E$19+'BP Financier'!$C$22+'BP Financier'!$D$22+'BP Financier'!$E$22+'BP Financier'!$F$16+'BP Financier'!$F$19+'BP Financier'!$F$22))*$V6258*AA6258/(1-$W6258)","v":{"v":135813.4419199842,"d":"135,813"}},{"$f":"'BP Financier'!$F$44*(('BP Financier'!$C$16+'BP Financier'!$D$16+'BP Financier'!$E$16+'BP Financier'!$F$16)/('BP Financier'!$C$16+'BP Financier'!$C$19+'BP Financier'!$D$16+'BP Financier'!$D$19+'BP Financier'!$E$16+'BP Financier'!$E$19+'BP Financier'!$C$22+'BP Financier'!$D$22+'BP Financier'!$E$22+'BP Financier'!$F$16+'BP Financier'!$F$19+'BP Financier'!$F$22))*$V6258*AB6258/(1-$W6258)","v":{"v":65004.72433777021,"d":"65,005"}},null,{"v":0.0075,"d":"0.75%"},{"$f":"Actif!$E$28/100","v":{"v":0.28900000000000003,"d":"28.90%"}},{"$f":"Actif!$E$30/100","v":{"v":0.09050000000000001,"d":"9.05%"}},{"$f":"Actif!$E$31/100","v":{"v":0.0605,"d":"6.05%"}},{"$f":"Actif!$E$32/100","v":{"v":0.47350000000000003,"d":"47.35%"}},{"$f":"Actif!$E$33/100","v":{"v":0.0585,"d":"5.85%"}},{"$f":"Actif!$E$29/100","v":{"v":0.027999999999999997,"d":"2.80%"}}]
[null,"#152",55,2030,"H","A_VIE",{"v":0.44999999999999996,"d":"0.45"},{"v":0.38999999999999996,"d":"0.39"},0.6,0.6,85,0,{"$f":"ROUND(Primes!$P$4*V6259,0)","v":71},{"$f":"'BP Financier'!$F$33*(('BP Financier'!$C$16+'BP Financier'!$D$16+'BP Financier'!$E$16+'BP Financier'!$F$16)/('BP Financier'!$C$16+'BP Financier'!$C$19+'BP Financier'!$D$16+'BP Financier'!$D$19+'BP Financier'!$E$16+'BP Financier'!$E$19+'BP Financier'!$F$16+'BP Financier'!$F$19))*V6259","v":{"v":2909830.1866639922,"d":"2,909,830"}},{"v":1650655.678719808,"d":"1,650,656"},{"$f":"'BP Financier'!$F$44*(('BP Financier'!$C$16+'BP Financier'!$D$16+'BP Financier'!$E$16+'BP Financier'!$F$16)/('BP Financier'!$C$16+'BP Financier'!$C$19+'BP Financier'!$D$16+'BP Financier'!$D$19+'BP Financier'!$E$16+'BP Financier'!$E$19+'BP Financier'!$C$22+'BP Financier'!$D$22+'BP Financier'!$E$22+'BP Financier'!$F$16+'BP Financier'!$F$19+'BP Financier'!$F$22))*$V6259*X6259/(1-$W6259)","v":{"v":210104.55544886444,"d":"210,105"}},{"$f":"'BP Financier'!$F$44*(('BP Financier'!$C$16+'BP Financier'!$D$16+'BP Financier'!$E$16+'BP Financier'!$F$16)/('BP Financier'!$C$16+'BP Financier'!$C$19+'BP Financier'!$D$16+'BP Financier'!$D$19+'BP Financier'!$E$16+'BP Financier'!$E$19+'BP Financier'!$C$22+'BP Financier'!$D$22+'BP Financier'!$E$22+'BP Financier'!$F$16+'BP Financier'!$F$19+'BP Financier'!$F$22))*$V6259*Y6259/(1-$W6259)","v":{"v":140456.63651553923,"d":"140,457"}},{"$f":"'BP Financier'!$F$44*(('BP Financier'!$C$16+'BP Financier'!$D$16+'BP Financier'!$E$16+'BP Financier'!$F$16)/('BP Financier'!$C$16+'BP Financier'!$C$19+'BP Financier'!$D$16+'BP Financier'!$D$19+'BP Financier'!$E$16+'BP Financier'!$E$19+'BP Financier'!$C$22+'BP Financier'!$D$22+'BP Financier'!$E$22+'BP Financier'!$F$16+'BP Financier'!$F$19+'BP Financier'!$F$22))*$V6259*Z6259/(1-$W6259)","v":{"v":1099276.32049765,"d":"1,099,276"}},{"$f":"'BP Financier'!$F$44*(('BP Financier'!$C$16+'BP Financier'!$D$16+'BP Financier'!$E$16+'BP Financier'!$F$16)/('BP Financier'!$C$16+'BP Financier'!$C$19+'BP Financier'!$D$16+'BP Financier'!$D$19+'BP Financier'!$E$16+'BP Financier'!$E$19+'BP Financier'!$C$22+'BP Financier'!$D$22+'BP Financier'!$E$22+'BP Financier'!$F$16+'BP Financier'!$F$19+'BP Financier'!$F$22))*$V6259*AA6259/(1-$W6259)","v":{"v":135813.4419199842,"d":"135,813"}},{"$f":"'BP Financier'!$F$44*(('BP Financier'!$C$16+'BP Financier'!$D$16+'BP Financier'!$E$16+'BP Financier'!$F$16)/('BP Financier'!$C$16+'BP Financier'!$C$19+'BP Financier'!$D$16+'BP Financier'!$D$19+'BP Financier'!$E$16+'BP Financier'!$E$19+'BP Financier'!$C$22+'BP Financier'!$D$22+'BP Financier'!$E$22+'BP Financier'!$F$16+'BP Financier'!$F$19+'BP Financier'!$F$22))*$V6259*AB6259/(1-$W6259)","v":{"v":65004.72433777021,"d":"65,005"}},null,{"v":0.0075,"d":"0.75%"},{"$f":"Actif!$E$28/100","v":{"v":0.28900000000000003,"d":"28.90%"}},{"$f":"Actif!$E$30/100","v":{"v":0.09050000000000001,"d":"9.05%"}},{"$f":"Actif!$E$31/100","v":{"v":0.0605,"d":"6.05%"}},{"$f":"Actif!$E$32/100","v":{"v":0.47350000000000003,"d":"47.35%"}},{"$f":"Actif!$E$33/100","v":{"v":0.0585,"d":"5.85%"}},{"$f":"Actif!$E$29/100","v":{"v":0.027999999999999997,"d":"2.80%"}}]
[null,"#153",56,2026,"F","A_VIE",{"v":0.44999999999999996,"d":"0.45"},{"v":0.38999999999999996,"d":"0.39"},0.6,0.6,85,0,{"$f":"ROUND(Primes!$P$4*V6260,0)","v":71},{"$f":"'BP Financier'!$F$33*(('BP Financier'!$C$16+'BP Financier'!$D$16+'BP Financier'!$E$16+'BP Financier'!$F$16)/('BP Financier'!$C$16+'BP Financier'!$C$19+'BP Financier'!$D$16+'BP Financier'!$D$19+'BP Financier'!$E$16+'BP Financier'!$E$19+'BP Financier'!$F$16+'BP Financier'!$F$19))*V6260","v":{"v":2909830.1866639922,"d":"2,909,830"}},{"v":1650655.678719808,"d":"1,650,656"},{"$f":"'BP Financier'!$F$44*(('BP Financier'!$C$16+'BP Financier'!$D$16+'BP Financier'!$E$16+'BP Financier'!$F$16)/('BP Financier'!$C$16+'BP Financier'!$C$19+'BP Financier'!$D$16+'BP Financier'!$D$19+'BP Financier'!$E$16+'BP Financier'!$E$19+'BP Financier'!$C$22+'BP Financier'!$D$22+'BP Financier'!$E$22+'BP Financier'!$F$16+'BP Financier'!$F$19+'BP Financier'!$F$22))*$V6260*X6260/(1-$W6260)","v":{"v":210104.55544886444,"d":"210,105"}},{"$f":"'BP Financier'!$F$44*(('BP Financier'!$C$16+'BP Financier'!$D$16+'BP Financier'!$E$16+'BP Financier'!$F$16)/('BP Financier'!$C$16+'BP Financier'!$C$19+'BP Financier'!$D$16+'BP Financier'!$D$19+'BP Financier'!$E$16+'BP Financier'!$E$19+'BP Financier'!$C$22+'BP Financier'!$D$22+'BP Financier'!$E$22+'BP Financier'!$F$16+'BP Financier'!$F$19+'BP Financier'!$F$22))*$V6260*Y6260/(1-$W6260)","v":{"v":140456.63651553923,"d":"140,457"}},{"$f":"'BP Financier'!$F$44*(('BP Financier'!$C$16+'BP Financier'!$D$16+'BP Financier'!$E$16+'BP Financier'!$F$16)/('BP Financier'!$C$16+'BP Financier'!$C$19+'BP Financier'!$D$16+'BP Financier'!$D$19+'BP Financier'!$E$16+'BP Financier'!$E$19+'BP Financier'!$C$22+'BP Financier'!$D$22+'BP Financier'!$E$22+'BP Financier'!$F$16+'BP Financier'!$F$19+'BP Financier'!$F$22))*$V6260*Z6260/(1-$W6260)","v":{"v":1099276.32049765,"d":"1,099,276"}},{"$f":"'BP Financier'!$F$44*(('BP Financier'!$C$16+'BP Financier'!$D$16+'BP Financier'!$E$16+'BP Financier'!$F$16)/('BP Financier'!$C$16+'BP Financier'!$C$19+'BP Financier'!$D$16+'BP Financier'!$D$19+'BP Financier'!$E$16+'BP Financier'!$E$19+'BP Financier'!$C$22+'BP Financier'!$D$22+'BP Financier'!$E$22+'BP Financier'!$F$16+'BP Financier'!$F$19+'BP Financier'!$F$22))*$V6260*AA6260/(1-$W6260)","v":{"v":135813.4419199842,"d":"135,813"}},{"$f":"'BP Financier'!$F$44*(('BP Financier'!$C$16+'BP Financier'!$D$16+'BP Financier'!$E$16+'BP Financier'!$F$16)/('BP Financier'!$C$16+'BP Financier'!$C$19+'BP Financier'!$D$16+'BP Financier'!$D$19+'BP Financier'!$E$16+'BP Financier'!$E$19+'BP Financier'!$C$22+'BP Financier'!$D$22+'BP Financier'!$E$22+'BP Financier'!$F$16+'BP Financier'!$F$19+'BP Financier'!$F$22))*$V6260*AB6260/(1-$W6260)","v":{"v":65004.72433777021,"d":"65,005"}},null,{"v":0.0075,"d":"0.75%"},{"$f":"Actif!$E$28/100","v":{"v":0.28900000000000003,"d":"28.90%"}},{"$f":"Actif!$E$30/100","v":{"v":0.09050000000000001,"d":"9.05%"}},{"$f":"Actif!$E$31/100","v":{"v":0.0605,"d":"6.05%"}},{"$f":"Actif!$E$32/100","v":{"v":0.47350000000000003,"d":"47.35%"}},{"$f":"Actif!$E$33/100","v":{"v":0.0585,"d":"5.85%"}},{"$f":"Actif!$E$29/100","v":{"v":0.027999999999999997,"d":"2.80%"}}]
[null,"#154",56,2028,"F","A_VIE",{"v":0.44999999999999996,"d":"0.45"},{"v":0.38999999999999996,"d":"0.39"},0.6,0.6,85,0,{"$f":"ROUND(Primes!$P$4*V6261,0)","v":71},{"$f":"'BP Financier'!$F$33*(('BP Financier'!$C$16+'BP Financier'!$D$16+'BP Financier'!$E$16+'BP Financier'!$F$16)/('BP Financier'!$C$16+'BP Financier'!$C$19+'BP Financier'!$D$16+'BP Financier'!$D$19+'BP Financier'!$E$16+'BP Financier'!$E$19+'BP Financier'!$F$16+'BP Financier'!$F$19))*V6261","v":{"v":2909830.1866639922,"d":"2,909,830"}},{"v":1650655.678719808,"d":"1,650,656"},{"$f":"'BP Financier'!$F$44*(('BP Financier'!$C$16+'BP Financier'!$D$16+'BP Financier'!$E$16+'BP Financier'!$F$16)/('BP Financier'!$C$16+'BP Financier'!$C$19+'BP Financier'!$D$16+'BP Financier'!$D$19+'BP Financier'!$E$16+'BP Financier'!$E$19+'BP Financier'!$C$22+'BP Financier'!$D$22+'BP Financier'!$E$22+'BP Financier'!$F$16+'BP Financier'!$F$19+'BP Financier'!$F$22))*$V6261*X6261/(1-$W6261)","v":{"v":210104.55544886444,"d":"210,105"}},{"$f":"'BP Financier'!$F$44*(('BP Financier'!$C$16+'BP Financier'!$D$16+'BP Financier'!$E$16+'BP Financier'!$F$16)/('BP Financier'!$C$16+'BP Financier'!$C$19+'BP Financier'!$D$16+'BP Financier'!$D$19+'BP Financier'!$E$16+'BP Financier'!$E$19+'BP Financier'!$C$22+'BP Financier'!$D$22+'BP Financier'!$E$22+'BP Financier'!$F$16+'BP Financier'!$F$19+'BP Financier'!$F$22))*$V6261*Y6261/(1-$W6261)","v":{"v":140456.63651553923,"d":"140,457"}},{"$f":"'BP Financier'!$F$44*(('BP Financier'!$C$16+'BP Financier'!$D$16+'BP Financier'!$E$16+'BP Financier'!$F$16)/('BP Financier'!$C$16+'BP Financier'!$C$19+'BP Financier'!$D$16+'BP Financier'!$D$19+'BP Financier'!$E$16+'BP Financier'!$E$19+'BP Financier'!$C$22+'BP Financier'!$D$22+'BP Financier'!$E$22+'BP Financier'!$F$16+'BP Financier'!$F$19+'BP Financier'!$F$22))*$V6261*Z6261/(1-$W6261)","v":{"v":1099276.32049765,"d":"1,099,276"}},{"$f":"'BP Financier'!$F$44*(('BP Financier'!$C$16+'BP Financier'!$D$16+'BP Financier'!$E$16+'BP Financier'!$F$16)/('BP Financier'!$C$16+'BP Financier'!$C$19+'BP Financier'!$D$16+'BP Financier'!$D$19+'BP Financier'!$E$16+'BP Financier'!$E$19+'BP Financier'!$C$22+'BP Financier'!$D$22+'BP Financier'!$E$22+'BP Financier'!$F$16+'BP Financier'!$F$19+'BP Financier'!$F$22))*$V6261*AA6261/(1-$W6261)","v":{"v":135813.4419199842,"d":"135,813"}},{"$f":"'BP Financier'!$F$44*(('BP Financier'!$C$16+'BP Financier'!$D$16+'BP Financier'!$E$16+'BP Financier'!$F$16)/('BP Financier'!$C$16+'BP Financier'!$C$19+'BP Financier'!$D$16+'BP Financier'!$D$19+'BP Financier'!$E$16+'BP Financier'!$E$19+'BP Financier'!$C$22+'BP Financier'!$D$22+'BP Financier'!$E$22+'BP Financier'!$F$16+'BP Financier'!$F$19+'BP Financier'!$F$22))*$V6261*AB6261/(1-$W6261)","v":{"v":65004.72433777021,"d":"65,005"}},null,{"v":0.0075,"d":"0.75%"},{"$f":"Actif!$E$28/100","v":{"v":0.28900000000000003,"d":"28.90%"}},{"$f":"Actif!$E$30/100","v":{"v":0.09050000000000001,"d":"9.05%"}},{"$f":"Actif!$E$31/100","v":{"v":0.0605,"d":"6.05%"}},{"$f":"Actif!$E$32/100","v":{"v":0.47350000000000003,"d":"47.35%"}},{"$f":"Actif!$E$33/100","v":{"v":0.0585,"d":"5.85%"}},{"$f":"Actif!$E$29/100","v":{"v":0.027999999999999997,"d":"2.80%"}}]
[null,"#155",56,2029,"F","A_VIE",{"v":0.44999999999999996,"d":"0.45"},{"v":0.38999999999999996,"d":"0.39"},0.6,0.6,85,0,{"$f":"ROUND(Primes!$P$4*V6262,0)","v":71},{"$f":"'BP Financier'!$F$33*(('BP Financier'!$C$16+'BP Financier'!$D$16+'BP Financier'!$E$16+'BP Financier'!$F$16)/('BP Financier'!$C$16+'BP Financier'!$C$19+'BP Financier'!$D$16+'BP Financier'!$D$19+'BP Financier'!$E$16+'BP Financier'!$E$19+'BP Financier'!$F$16+'BP Financier'!$F$19))*V6262","v":{"v":2909830.1866639922,"d":"2,909,830"}},{"v":1650655.678719808,"d":"1,650,656"},{"$f":"'BP Financier'!$F$44*(('BP Financier'!$C$16+'BP Financier'!$D$16+'BP Financier'!$E$16+'BP Financier'!$F$16)/('BP Financier'!$C$16+'BP Financier'!$C$19+'BP Financier'!$D$16+'BP Financier'!$D$19+'BP Financier'!$E$16+'BP Financier'!$E$19+'BP Financier'!$C$22+'BP Financier'!$D$22+'BP Financier'!$E$22+'BP Financier'!$F$16+'BP Financier'!$F$19+'BP Financier'!$F$22))*$V6262*X6262/(1-$W6262)","v":{"v":210104.55544886444,"d":"210,105"}},{"$f":"'BP Financier'!$F$44*(('BP Financier'!$C$16+'BP Financier'!$D$16+'BP Financier'!$E$16+'BP Financier'!$F$16)/('BP Financier'!$C$16+'BP Financier'!$C$19+'BP Financier'!$D$16+'BP Financier'!$D$19+'BP Financier'!$E$16+'BP Financier'!$E$19+'BP Financier'!$C$22+'BP Financier'!$D$22+'BP Financier'!$E$22+'BP Financier'!$F$16+'BP Financier'!$F$19+'BP Financier'!$F$22))*$V6262*Y6262/(1-$W6262)","v":{"v":140456.63651553923,"d":"140,457"}},{"$f":"'BP Financier'!$F$44*(('BP Financier'!$C$16+'BP Financier'!$D$16+'BP Financier'!$E$16+'BP Financier'!$F$16)/('BP Financier'!$C$16+'BP Financier'!$C$19+'BP Financier'!$D$16+'BP Financier'!$D$19+'BP Financier'!$E$16+'BP Financier'!$E$19+'BP Financier'!$C$22+'BP Financier'!$D$22+'BP Financier'!$E$22+'BP Financier'!$F$16+'BP Financier'!$F$19+'BP Financier'!$F$22))*$V6262*Z6262/(1-$W6262)","v":{"v":1099276.32049765,"d":"1,099,276"}},{"$f":"'BP Financier'!$F$44*(('BP Financier'!$C$16+'BP Financier'!$D$16+'BP Financier'!$E$16+'BP Financier'!$F$16)/('BP Financier'!$C$16+'BP Financier'!$C$19+'BP Financier'!$D$16+'BP Financier'!$D$19+'BP Financier'!$E$16+'BP Financier'!$E$19+'BP Financier'!$C$22+'BP Financier'!$D$22+'BP Financier'!$E$22+'BP Financier'!$F$16+'BP Financier'!$F$19+'BP Financier'!$F$22))*$V6262*AA6262/(1-$W6262)","v":{"v":135813.4419199842,"d":"135,813"}},{"$f":"'BP Financier'!$F$44*(('BP Financier'!$C$16+'BP Financier'!$D$16+'BP Financier'!$E$16+'BP Financier'!$F$16)/('BP Financier'!$C$16+'BP Financier'!$C$19+'BP Financier'!$D$16+'BP Financier'!$D$19+'BP Financier'!$E$16+'BP Financier'!$E$19+'BP Financier'!$C$22+'BP Financier'!$D$22+'BP Financier'!$E$22+'BP Financier'!$F$16+'BP Financier'!$F$19+'BP Financier'!$F$22))*$V6262*AB6262/(1-$W6262)","v":{"v":65004.72433777021,"d":"65,005"}},null,{"v":0.0075,"d":"0.75%"},{"$f":"Actif!$E$28/100","v":{"v":0.28900000000000003,"d":"28.90%"}},{"$f":"Actif!$E$30/100","v":{"v":0.09050000000000001,"d":"9.05%"}},{"$f":"Actif!$E$31/100","v":{"v":0.0605,"d":"6.05%"}},{"$f":"Actif!$E$32/100","v":{"v":0.47350000000000003,"d":"47.35%"}},{"$f":"Actif!$E$33/100","v":{"v":0.0585,"d":"5.85%"}},{"$f":"Actif!$E$29/100","v":{"v":0.027999999999999997,"d":"2.80%"}}]
[null,"#156",56,2030,"F","A_VIE",{"v":0.44999999999999996,"d":"0.45"},{"v":0.38999999999999996,"d":"0.39"},0.6,0.6,85,0,{"$f":"ROUND(Primes!$P$4*V6263,0)","v":71},{"$f":"'BP Financier'!$F$33*(('BP Financier'!$C$16+'BP Financier'!$D$16+'BP Financier'!$E$16+'BP Financier'!$F$16)/('BP Financier'!$C$16+'BP Financier'!$C$19+'BP Financier'!$D$16+'BP Financier'!$D$19+'BP Financier'!$E$16+'BP Financier'!$E$19+'BP Financier'!$F$16+'BP Financier'!$F$19))*V6263","v":{"v":2909830.1866639922,"d":"2,909,830"}},{"v":1650655.678719808,"d":"1,650,656"},{"$f":"'BP Financier'!$F$44*(('BP Financier'!$C$16+'BP Financier'!$D$16+'BP Financier'!$E$16+'BP Financier'!$F$16)/('BP Financier'!$C$16+'BP Financier'!$C$19+'BP Financier'!$D$16+'BP Financier'!$D$19+'BP Financier'!$E$16+'BP Financier'!$E$19+'BP Financier'!$C$22+'BP Financier'!$D$22+'BP Financier'!$E$22+'BP Financier'!$F$16+'BP Financier'!$F$19+'BP Financier'!$F$22))*$V6263*X6263/(1-$W6263)","v":{"v":210104.55544886444,"d":"210,105"}},{"$f":"'BP Financier'!$F$44*(('BP Financier'!$C$16+'BP Financier'!$D$16+'BP Financier'!$E$16+'BP Financier'!$F$16)/('BP Financier'!$C$16+'BP Financier'!$C$19+'BP Financier'!$D$16+'BP Financier'!$D$19+'BP Financier'!$E$16+'BP Financier'!$E$19+'BP Financier'!$C$22+'BP Financier'!$D$22+'BP Financier'!$E$22+'BP Financier'!$F$16+'BP Financier'!$F$19+'BP Financier'!$F$22))*$V6263*Y6263/(1-$W6263)","v":{"v":140456.63651553923,"d":"140,457"}},{"$f":"'BP Financier'!$F$44*(('BP Financier'!$C$16+'BP Financier'!$D$16+'BP Financier'!$E$16+'BP Financier'!$F$16)/('BP Financier'!$C$16+'BP Financier'!$C$19+'BP Financier'!$D$16+'BP Financier'!$D$19+'BP Financier'!$E$16+'BP Financier'!$E$19+'BP Financier'!$C$22+'BP Financier'!$D$22+'BP Financier'!$E$22+'BP Financier'!$F$16+'BP Financier'!$F$19+'BP Financier'!$F$22))*$V6263*Z6263/(1-$W6263)","v":{"v":1099276.32049765,"d":"1,099,276"}},{"$f":"'BP Financier'!$F$44*(('BP Financier'!$C$16+'BP Financier'!$D$16+'BP Financier'!$E$16+'BP Financier'!$F$16)/('BP Financier'!$C$16+'BP Financier'!$C$19+'BP Financier'!$D$16+'BP Financier'!$D$19+'BP Financier'!$E$16+'BP Financier'!$E$19+'BP Financier'!$C$22+'BP Financier'!$D$22+'BP Financier'!$E$22+'BP Financier'!$F$16+'BP Financier'!$F$19+'BP Financier'!$F$22))*$V6263*AA6263/(1-$W6263)","v":{"v":135813.4419199842,"d":"135,813"}},{"$f":"'BP Financier'!$F$44*(('BP Financier'!$C$16+'BP Financier'!$D$16+'BP Financier'!$E$16+'BP Financier'!$F$16)/('BP Financier'!$C$16+'BP Financier'!$C$19+'BP Financier'!$D$16+'BP Financier'!$D$19+'BP Financier'!$E$16+'BP Financier'!$E$19+'BP Financier'!$C$22+'BP Financier'!$D$22+'BP Financier'!$E$22+'BP Financier'!$F$16+'BP Financier'!$F$19+'BP Financier'!$F$22))*$V6263*AB6263/(1-$W6263)","v":{"v":65004.72433777021,"d":"65,005"}},null,{"v":0.0075,"d":"0.75%"},{"$f":"Actif!$E$28/100","v":{"v":0.28900000000000003,"d":"28.90%"}},{"$f":"Actif!$E$30/100","v":{"v":0.09050000000000001,"d":"9.05%"}},{"$f":"Actif!$E$31/100","v":{"v":0.0605,"d":"6.05%"}},{"$f":"Actif!$E$32/100","v":{"v":0.47350000000000003,"d":"47.35%"}},{"$f":"Actif!$E$33/100","v":{"v":0.0585,"d":"5.85%"}},{"$f":"Actif!$E$29/100","v":{"v":0.027999999999999997,"d":"2.80%"}}]
[null,"#157",57,2026,"H","A_VIE",{"v":0.44999999999999996,"d":"0.45"},{"v":0.38999999999999996,"d":"0.39"},0.6,0.6,85,0,{"$f":"ROUND(Primes!$P$4*V6264,0)","v":71},{"$f":"'BP Financier'!$F$33*(('BP Financier'!$C$16+'BP Financier'!$D$16+'BP Financier'!$E$16+'BP Financier'!$F$16)/('BP Financier'!$C$16+'BP Financier'!$C$19+'BP Financier'!$D$16+'BP Financier'!$D$19+'BP Financier'!$E$16+'BP Financier'!$E$19+'BP Financier'!$F$16+'BP Financier'!$F$19))*V6264","v":{"v":2909830.1866639922,"d":"2,909,830"}},{"v":1650655.678719808,"d":"1,650,656"},{"$f":"'BP Financier'!$F$44*(('BP Financier'!$C$16+'BP Financier'!$D$16+'BP Financier'!$E$16+'BP Financier'!$F$16)/('BP Financier'!$C$16+'BP Financier'!$C$19+'BP Financier'!$D$16+'BP Financier'!$D$19+'BP Financier'!$E$16+'BP Financier'!$E$19+'BP Financier'!$C$22+'BP Financier'!$D$22+'BP Financier'!$E$22+'BP Financier'!$F$16+'BP Financier'!$F$19+'BP Financier'!$F$22))*$V6264*X6264/(1-$W6264)","v":{"v":210104.55544886444,"d":"210,105"}},{"$f":"'BP Financier'!$F$44*(('BP Financier'!$C$16+'BP Financier'!$D$16+'BP Financier'!$E$16+'BP Financier'!$F$16)/('BP Financier'!$C$16+'BP Financier'!$C$19+'BP Financier'!$D$16+'BP Financier'!$D$19+'BP Financier'!$E$16+'BP Financier'!$E$19+'BP Financier'!$C$22+'BP Financier'!$D$22+'BP Financier'!$E$22+'BP Financier'!$F$16+'BP Financier'!$F$19+'BP Financier'!$F$22))*$V6264*Y6264/(1-$W6264)","v":{"v":140456.63651553923,"d":"140,457"}},{"$f":"'BP Financier'!$F$44*(('BP Financier'!$C$16+'BP Financier'!$D$16+'BP Financier'!$E$16+'BP Financier'!$F$16)/('BP Financier'!$C$16+'BP Financier'!$C$19+'BP Financier'!$D$16+'BP Financier'!$D$19+'BP Financier'!$E$16+'BP Financier'!$E$19+'BP Financier'!$C$22+'BP Financier'!$D$22+'BP Financier'!$E$22+'BP Financier'!$F$16+'BP Financier'!$F$19+'BP Financier'!$F$22))*$V6264*Z6264/(1-$W6264)","v":{"v":1099276.32049765,"d":"1,099,276"}},{"$f":"'BP Financier'!$F$44*(('BP Financier'!$C$16+'BP Financier'!$D$16+'BP Financier'!$E$16+'BP Financier'!$F$16)/('BP Financier'!$C$16+'BP Financier'!$C$19+'BP Financier'!$D$16+'BP Financier'!$D$19+'BP Financier'!$E$16+'BP Financier'!$E$19+'BP Financier'!$C$22+'BP Financier'!$D$22+'BP Financier'!$E$22+'BP Financier'!$F$16+'BP Financier'!$F$19+'BP Financier'!$F$22))*$V6264*AA6264/(1-$W6264)","v":{"v":135813.4419199842,"d":"135,813"}},{"$f":"'BP Financier'!$F$44*(('BP Financier'!$C$16+'BP Financier'!$D$16+'BP Financier'!$E$16+'BP Financier'!$F$16)/('BP Financier'!$C$16+'BP Financier'!$C$19+'BP Financier'!$D$16+'BP Financier'!$D$19+'BP Financier'!$E$16+'BP Financier'!$E$19+'BP Financier'!$C$22+'BP Financier'!$D$22+'BP Financier'!$E$22+'BP Financier'!$F$16+'BP Financier'!$F$19+'BP Financier'!$F$22))*$V6264*AB6264/(1-$W6264)","v":{"v":65004.72433777021,"d":"65,005"}},null,{"v":0.0075,"d":"0.75%"},{"$f":"Actif!$E$28/100","v":{"v":0.28900000000000003,"d":"28.90%"}},{"$f":"Actif!$E$30/100","v":{"v":0.09050000000000001,"d":"9.05%"}},{"$f":"Actif!$E$31/100","v":{"v":0.0605,"d":"6.05%"}},{"$f":"Actif!$E$32/100","v":{"v":0.47350000000000003,"d":"47.35%"}},{"$f":"Actif!$E$33/100","v":{"v":0.0585,"d":"5.85%"}},{"$f":"Actif!$E$29/100","v":{"v":0.027999999999999997,"d":"2.80%"}}]
[null,"#158",57,2028,"H","A_VIE",{"v":0.44999999999999996,"d":"0.45"},{"v":0.38999999999999996,"d":"0.39"},0.6,0.6,85,0,{"$f":"ROUND(Primes!$P$4*V6265,0)","v":71},{"$f":"'BP Financier'!$F$33*(('BP Financier'!$C$16+'BP Financier'!$D$16+'BP Financier'!$E$16+'BP Financier'!$F$16)/('BP Financier'!$C$16+'BP Financier'!$C$19+'BP Financier'!$D$16+'BP Financier'!$D$19+'BP Financier'!$E$16+'BP Financier'!$E$19+'BP Financier'!$F$16+'BP Financier'!$F$19))*V6265","v":{"v":2909830.1866639922,"d":"2,909,830"}},{"v":1650655.678719808,"d":"1,650,656"},{"$f":"'BP Financier'!$F$44*(('BP Financier'!$C$16+'BP Financier'!$D$16+'BP Financier'!$E$16+'BP Financier'!$F$16)/('BP Financier'!$C$16+'BP Financier'!$C$19+'BP Financier'!$D$16+'BP Financier'!$D$19+'BP Financier'!$E$16+'BP Financier'!$E$19+'BP Financier'!$C$22+'BP Financier'!$D$22+'BP Financier'!$E$22+'BP Financier'!$F$16+'BP Financier'!$F$19+'BP Financier'!$F$22))*$V6265*X6265/(1-$W6265)","v":{"v":210104.55544886444,"d":"210,105"}},{"$f":"'BP Financier'!$F$44*(('BP Financier'!$C$16+'BP Financier'!$D$16+'BP Financier'!$E$16+'BP Financier'!$F$16)/('BP Financier'!$C$16+'BP Financier'!$C$19+'BP Financier'!$D$16+'BP Financier'!$D$19+'BP Financier'!$E$16+'BP Financier'!$E$19+'BP Financier'!$C$22+'BP Financier'!$D$22+'BP Financier'!$E$22+'BP Financier'!$F$16+'BP Financier'!$F$19+'BP Financier'!$F$22))*$V6265*Y6265/(1-$W6265)","v":{"v":140456.63651553923,"d":"140,457"}},{"$f":"'BP Financier'!$F$44*(('BP Financier'!$C$16+'BP Financier'!$D$16+'BP Financier'!$E$16+'BP Financier'!$F$16)/('BP Financier'!$C$16+'BP Financier'!$C$19+'BP Financier'!$D$16+'BP Financier'!$D$19+'BP Financier'!$E$16+'BP Financier'!$E$19+'BP Financier'!$C$22+'BP Financier'!$D$22+'BP Financier'!$E$22+'BP Financier'!$F$16+'BP Financier'!$F$19+'BP Financier'!$F$22))*$V6265*Z6265/(1-$W6265)","v":{"v":1099276.32049765,"d":"1,099,276"}},{"$f":"'BP Financier'!$F$44*(('BP Financier'!$C$16+'BP Financier'!$D$16+'BP Financier'!$E$16+'BP Financier'!$F$16)/('BP Financier'!$C$16+'BP Financier'!$C$19+'BP Financier'!$D$16+'BP Financier'!$D$19+'BP Financier'!$E$16+'BP Financier'!$E$19+'BP Financier'!$C$22+'BP Financier'!$D$22+'BP Financier'!$E$22+'BP Financier'!$F$16+'BP Financier'!$F$19+'BP Financier'!$F$22))*$V6265*AA6265/(1-$W6265)","v":{"v":135813.4419199842,"d":"135,813"}},{"$f":"'BP Financier'!$F$44*(('BP Financier'!$C$16+'BP Financier'!$D$16+'BP Financier'!$E$16+'BP Financier'!$F$16)/('BP Financier'!$C$16+'BP Financier'!$C$19+'BP Financier'!$D$16+'BP Financier'!$D$19+'BP Financier'!$E$16+'BP Financier'!$E$19+'BP Financier'!$C$22+'BP Financier'!$D$22+'BP Financier'!$E$22+'BP Financier'!$F$16+'BP Financier'!$F$19+'BP Financier'!$F$22))*$V6265*AB6265/(1-$W6265)","v":{"v":65004.72433777021,"d":"65,005"}},null,{"v":0.0075,"d":"0.75%"},{"$f":"Actif!$E$28/100","v":{"v":0.28900000000000003,"d":"28.90%"}},{"$f":"Actif!$E$30/100","v":{"v":0.09050000000000001,"d":"9.05%"}},{"$f":"Actif!$E$31/100","v":{"v":0.0605,"d":"6.05%"}},{"$f":"Actif!$E$32/100","v":{"v":0.47350000000000003,"d":"47.35%"}},{"$f":"Actif!$E$33/100","v":{"v":0.0585,"d":"5.85%"}},{"$f":"Actif!$E$29/100","v":{"v":0.027999999999999997,"d":"2.80%"}}]
[null,"#159",57,2029,"H","A_VIE",{"v":0.44999999999999996,"d":"0.45"},{"v":0.38999999999999996,"d":"0.39"},0.6,0.6,85,0,{"$f":"ROUND(Primes!$P$4*V6266,0)","v":71},{"$f":"'BP Financier'!$F$33*(('BP Financier'!$C$16+'BP Financier'!$D$16+'BP Financier'!$E$16+'BP Financier'!$F$16)/('BP Financier'!$C$16+'BP Financier'!$C$19+'BP Financier'!$D$16+'BP Financier'!$D$19+'BP Financier'!$E$16+'BP Financier'!$E$19+'BP Financier'!$F$16+'BP Financier'!$F$19))*V6266","v":{"v":2909830.1866639922,"d":"2,909,830"}},{"v":1650655.678719808,"d":"1,650,656"},{"$f":"'BP Financier'!$F$44*(('BP Financier'!$C$16+'BP Financier'!$D$16+'BP Financier'!$E$16+'BP Financier'!$F$16)/('BP Financier'!$C$16+'BP Financier'!$C$19+'BP Financier'!$D$16+'BP Financier'!$D$19+'BP Financier'!$E$16+'BP Financier'!$E$19+'BP Financier'!$C$22+'BP Financier'!$D$22+'BP Financier'!$E$22+'BP Financier'!$F$16+'BP Financier'!$F$19+'BP Financier'!$F$22))*$V6266*X6266/(1-$W6266)","v":{"v":210104.55544886444,"d":"210,105"}},{"$f":"'BP Financier'!$F$44*(('BP Financier'!$C$16+'BP Financier'!$D$16+'BP Financier'!$E$16+'BP Financier'!$F$16)/('BP Financier'!$C$16+'BP Financier'!$C$19+'BP Financier'!$D$16+'BP Financier'!$D$19+'BP Financier'!$E$16+'BP Financier'!$E$19+'BP Financier'!$C$22+'BP Financier'!$D$22+'BP Financier'!$E$22+'BP Financier'!$F$16+'BP Financier'!$F$19+'BP Financier'!$F$22))*$V6266*Y6266/(1-$W6266)","v":{"v":140456.63651553923,"d":"140,457"}},{"$f":"'BP Financier'!$F$44*(('BP Financier'!$C$16+'BP Financier'!$D$16+'BP Financier'!$E$16+'BP Financier'!$F$16)/('BP Financier'!$C$16+'BP Financier'!$C$19+'BP Financier'!$D$16+'BP Financier'!$D$19+'BP Financier'!$E$16+'BP Financier'!$E$19+'BP Financier'!$C$22+'BP Financier'!$D$22+'BP Financier'!$E$22+'BP Financier'!$F$16+'BP Financier'!$F$19+'BP Financier'!$F$22))*$V6266*Z6266/(1-$W6266)","v":{"v":1099276.32049765,"d":"1,099,276"}},{"$f":"'BP Financier'!$F$44*(('BP Financier'!$C$16+'BP Financier'!$D$16+'BP Financier'!$E$16+'BP Financier'!$F$16)/('BP Financier'!$C$16+'BP Financier'!$C$19+'BP Financier'!$D$16+'BP Financier'!$D$19+'BP Financier'!$E$16+'BP Financier'!$E$19+'BP Financier'!$C$22+'BP Financier'!$D$22+'BP Financier'!$E$22+'BP Financier'!$F$16+'BP Financier'!$F$19+'BP Financier'!$F$22))*$V6266*AA6266/(1-$W6266)","v":{"v":135813.4419199842,"d":"135,813"}},{"$f":"'BP Financier'!$F$44*(('BP Financier'!$C$16+'BP Financier'!$D$16+'BP Financier'!$E$16+'BP Financier'!$F$16)/('BP Financier'!$C$16+'BP Financier'!$C$19+'BP Financier'!$D$16+'BP Financier'!$D$19+'BP Financier'!$E$16+'BP Financier'!$E$19+'BP Financier'!$C$22+'BP Financier'!$D$22+'BP Financier'!$E$22+'BP Financier'!$F$16+'BP Financier'!$F$19+'BP Financier'!$F$22))*$V6266*AB6266/(1-$W6266)","v":{"v":65004.72433777021,"d":"65,005"}},null,{"v":0.0075,"d":"0.75%"},{"$f":"Actif!$E$28/100","v":{"v":0.28900000000000003,"d":"28.90%"}},{"$f":"Actif!$E$30/100","v":{"v":0.09050000000000001,"d":"9.05%"}},{"$f":"Actif!$E$31/100","v":{"v":0.0605,"d":"6.05%"}},{"$f":"Actif!$E$32/100","v":{"v":0.47350000000000003,"d":"47.35%"}},{"$f":"Actif!$E$33/100","v":{"v":0.0585,"d":"5.85%"}},{"$f":"Actif!$E$29/100","v":{"v":0.027999999999999997,"d":"2.80%"}}]
[null,"#160",57,2030,"H","A_VIE",{"v":0.44999999999999996,"d":"0.45"},{"v":0.38999999999999996,"d":"0.39"},0.6,0.6,85,0,{"$f":"ROUND(Primes!$P$4*V6267,0)","v":71},{"$f":"'BP Financier'!$F$33*(('BP Financier'!$C$16+'BP Financier'!$D$16+'BP Financier'!$E$16+'BP Financier'!$F$16)/('BP Financier'!$C$16+'BP Financier'!$C$19+'BP Financier'!$D$16+'BP Financier'!$D$19+'BP Financier'!$E$16+'BP Financier'!$E$19+'BP Financier'!$F$16+'BP Financier'!$F$19))*V6267","v":{"v":2909830.1866639922,"d":"2,909,830"}},{"v":1650655.678719808,"d":"1,650,656"},{"$f":"'BP Financier'!$F$44*(('BP Financier'!$C$16+'BP Financier'!$D$16+'BP Financier'!$E$16+'BP Financier'!$F$16)/('BP Financier'!$C$16+'BP Financier'!$C$19+'BP Financier'!$D$16+'BP Financier'!$D$19+'BP Financier'!$E$16+'BP Financier'!$E$19+'BP Financier'!$C$22+'BP Financier'!$D$22+'BP Financier'!$E$22+'BP Financier'!$F$16+'BP Financier'!$F$19+'BP Financier'!$F$22))*$V6267*X6267/(1-$W6267)","v":{"v":210104.55544886444,"d":"210,105"}},{"$f":"'BP Financier'!$F$44*(('BP Financier'!$C$16+'BP Financier'!$D$16+'BP Financier'!$E$16+'BP Financier'!$F$16)/('BP Financier'!$C$16+'BP Financier'!$C$19+'BP Financier'!$D$16+'BP Financier'!$D$19+'BP Financier'!$E$16+'BP Financier'!$E$19+'BP Financier'!$C$22+'BP Financier'!$D$22+'BP Financier'!$E$22+'BP Financier'!$F$16+'BP Financier'!$F$19+'BP Financier'!$F$22))*$V6267*Y6267/(1-$W6267)","v":{"v":140456.63651553923,"d":"140,457"}},{"$f":"'BP Financier'!$F$44*(('BP Financier'!$C$16+'BP Financier'!$D$16+'BP Financier'!$E$16+'BP Financier'!$F$16)/('BP Financier'!$C$16+'BP Financier'!$C$19+'BP Financier'!$D$16+'BP Financier'!$D$19+'BP Financier'!$E$16+'BP Financier'!$E$19+'BP Financier'!$C$22+'BP Financier'!$D$22+'BP Financier'!$E$22+'BP Financier'!$F$16+'BP Financier'!$F$19+'BP Financier'!$F$22))*$V6267*Z6267/(1-$W6267)","v":{"v":1099276.32049765,"d":"1,099,276"}},{"$f":"'BP Financier'!$F$44*(('BP Financier'!$C$16+'BP Financier'!$D$16+'BP Financier'!$E$16+'BP Financier'!$F$16)/('BP Financier'!$C$16+'BP Financier'!$C$19+'BP Financier'!$D$16+'BP Financier'!$D$19+'BP Financier'!$E$16+'BP Financier'!$E$19+'BP Financier'!$C$22+'BP Financier'!$D$22+'BP Financier'!$E$22+'BP Financier'!$F$16+'BP Financier'!$F$19+'BP Financier'!$F$22))*$V6267*AA6267/(1-$W6267)","v":{"v":135813.4419199842,"d":"135,813"}},{"$f":"'BP Financier'!$F$44*(('BP Financier'!$C$16+'BP Financier'!$D$16+'BP Financier'!$E$16+'BP Financier'!$F$16)/('BP Financier'!$C$16+'BP Financier'!$C$19+'BP Financier'!$D$16+'BP Financier'!$D$19+'BP Financier'!$E$16+'BP Financier'!$E$19+'BP Financier'!$C$22+'BP Financier'!$D$22+'BP Financier'!$E$22+'BP Financier'!$F$16+'BP Financier'!$F$19+'BP Financier'!$F$22))*$V6267*AB6267/(1-$W6267)","v":{"v":65004.72433777021,"d":"65,005"}},null,{"v":0.0075,"d":"0.75%"},{"$f":"Actif!$E$28/100","v":{"v":0.28900000000000003,"d":"28.90%"}},{"$f":"Actif!$E$30/100","v":{"v":0.09050000000000001,"d":"9.05%"}},{"$f":"Actif!$E$31/100","v":{"v":0.0605,"d":"6.05%"}},{"$f":"Actif!$E$32/100","v":{"v":0.47350000000000003,"d":"47.35%"}},{"$f":"Actif!$E$33/100","v":{"v":0.0585,"d":"5.85%"}},{"$f":"Actif!$E$29/100","v":{"v":0.027999999999999997,"d":"2.80%"}}]
[null,"#161",58,2026,"H","A_VIE",{"v":0.44999999999999996,"d":"0.45"},{"v":0.38999999999999996,"d":"0.39"},0.6,0.6,85,0,{"$f":"ROUND(Primes!$P$4*V6268,0)","v":71},{"$f":"'BP Financier'!$F$33*(('BP Financier'!$C$16+'BP Financier'!$D$16+'BP Financier'!$E$16+'BP Financier'!$F$16)/('BP Financier'!$C$16+'BP Financier'!$C$19+'BP Financier'!$D$16+'BP Financier'!$D$19+'BP Financier'!$E$16+'BP Financier'!$E$19+'BP Financier'!$F$16+'BP Financier'!$F$19))*V6268","v":{"v":2909830.1866639922,"d":"2,909,830"}},{"v":1650655.678719808,"d":"1,650,656"},{"$f":"'BP Financier'!$F$44*(('BP Financier'!$C$16+'BP Financier'!$D$16+'BP Financier'!$E$16+'BP Financier'!$F$16)/('BP Financier'!$C$16+'BP Financier'!$C$19+'BP Financier'!$D$16+'BP Financier'!$D$19+'BP Financier'!$E$16+'BP Financier'!$E$19+'BP Financier'!$C$22+'BP Financier'!$D$22+'BP Financier'!$E$22+'BP Financier'!$F$16+'BP Financier'!$F$19+'BP Financier'!$F$22))*$V6268*X6268/(1-$W6268)","v":{"v":210104.55544886444,"d":"210,105"}},{"$f":"'BP Financier'!$F$44*(('BP Financier'!$C$16+'BP Financier'!$D$16+'BP Financier'!$E$16+'BP Financier'!$F$16)/('BP Financier'!$C$16+'BP Financier'!$C$19+'BP Financier'!$D$16+'BP Financier'!$D$19+'BP Financier'!$E$16+'BP Financier'!$E$19+'BP Financier'!$C$22+'BP Financier'!$D$22+'BP Financier'!$E$22+'BP Financier'!$F$16+'BP Financier'!$F$19+'BP Financier'!$F$22))*$V6268*Y6268/(1-$W6268)","v":{"v":140456.63651553923,"d":"140,457"}},{"$f":"'BP Financier'!$F$44*(('BP Financier'!$C$16+'BP Financier'!$D$16+'BP Financier'!$E$16+'BP Financier'!$F$16)/('BP Financier'!$C$16+'BP Financier'!$C$19+'BP Financier'!$D$16+'BP Financier'!$D$19+'BP Financier'!$E$16+'BP Financier'!$E$19+'BP Financier'!$C$22+'BP Financier'!$D$22+'BP Financier'!$E$22+'BP Financier'!$F$16+'BP Financier'!$F$19+'BP Financier'!$F$22))*$V6268*Z6268/(1-$W6268)","v":{"v":1099276.32049765,"d":"1,099,276"}},{"$f":"'BP Financier'!$F$44*(('BP Financier'!$C$16+'BP Financier'!$D$16+'BP Financier'!$E$16+'BP Financier'!$F$16)/('BP Financier'!$C$16+'BP Financier'!$C$19+'BP Financier'!$D$16+'BP Financier'!$D$19+'BP Financier'!$E$16+'BP Financier'!$E$19+'BP Financier'!$C$22+'BP Financier'!$D$22+'BP Financier'!$E$22+'BP Financier'!$F$16+'BP Financier'!$F$19+'BP Financier'!$F$22))*$V6268*AA6268/(1-$W6268)","v":{"v":135813.4419199842,"d":"135,813"}},{"$f":"'BP Financier'!$F$44*(('BP Financier'!$C$16+'BP Financier'!$D$16+'BP Financier'!$E$16+'BP Financier'!$F$16)/('BP Financier'!$C$16+'BP Financier'!$C$19+'BP Financier'!$D$16+'BP Financier'!$D$19+'BP Financier'!$E$16+'BP Financier'!$E$19+'BP Financier'!$C$22+'BP Financier'!$D$22+'BP Financier'!$E$22+'BP Financier'!$F$16+'BP Financier'!$F$19+'BP Financier'!$F$22))*$V6268*AB6268/(1-$W6268)","v":{"v":65004.72433777021,"d":"65,005"}},null,{"v":0.0075,"d":"0.75%"},{"$f":"Actif!$E$28/100","v":{"v":0.28900000000000003,"d":"28.90%"}},{"$f":"Actif!$E$30/100","v":{"v":0.09050000000000001,"d":"9.05%"}},{"$f":"Actif!$E$31/100","v":{"v":0.0605,"d":"6.05%"}},{"$f":"Actif!$E$32/100","v":{"v":0.47350000000000003,"d":"47.35%"}},{"$f":"Actif!$E$33/100","v":{"v":0.0585,"d":"5.85%"}},{"$f":"Actif!$E$29/100","v":{"v":0.027999999999999997,"d":"2.80%"}}]
[null,"#162",58,2028,"H","A_VIE",{"v":0.44999999999999996,"d":"0.45"},{"v":0.38999999999999996,"d":"0.39"},0.6,0.6,85,0,{"$f":"ROUND(Primes!$P$4*V6269,0)","v":71},{"$f":"'BP Financier'!$F$33*(('BP Financier'!$C$16+'BP Financier'!$D$16+'BP Financier'!$E$16+'BP Financier'!$F$16)/('BP Financier'!$C$16+'BP Financier'!$C$19+'BP Financier'!$D$16+'BP Financier'!$D$19+'BP Financier'!$E$16+'BP Financier'!$E$19+'BP Financier'!$F$16+'BP Financier'!$F$19))*V6269","v":{"v":2909830.1866639922,"d":"2,909,830"}},{"v":1650655.678719808,"d":"1,650,656"},{"$f":"'BP Financier'!$F$44*(('BP Financier'!$C$16+'BP Financier'!$D$16+'BP Financier'!$E$16+'BP Financier'!$F$16)/('BP Financier'!$C$16+'BP Financier'!$C$19+'BP Financier'!$D$16+'BP Financier'!$D$19+'BP Financier'!$E$16+'BP Financier'!$E$19+'BP Financier'!$C$22+'BP Financier'!$D$22+'BP Financier'!$E$22+'BP Financier'!$F$16+'BP Financier'!$F$19+'BP Financier'!$F$22))*$V6269*X6269/(1-$W6269)","v":{"v":210104.55544886444,"d":"210,105"}},{"$f":"'BP Financier'!$F$44*(('BP Financier'!$C$16+'BP Financier'!$D$16+'BP Financier'!$E$16+'BP Financier'!$F$16)/('BP Financier'!$C$16+'BP Financier'!$C$19+'BP Financier'!$D$16+'BP Financier'!$D$19+'BP Financier'!$E$16+'BP Financier'!$E$19+'BP Financier'!$C$22+'BP Financier'!$D$22+'BP Financier'!$E$22+'BP Financier'!$F$16+'BP Financier'!$F$19+'BP Financier'!$F$22))*$V6269*Y6269/(1-$W6269)","v":{"v":140456.63651553923,"d":"140,457"}},{"$f":"'BP Financier'!$F$44*(('BP Financier'!$C$16+'BP Financier'!$D$16+'BP Financier'!$E$16+'BP Financier'!$F$16)/('BP Financier'!$C$16+'BP Financier'!$C$19+'BP Financier'!$D$16+'BP Financier'!$D$19+'BP Financier'!$E$16+'BP Financier'!$E$19+'BP Financier'!$C$22+'BP Financier'!$D$22+'BP Financier'!$E$22+'BP Financier'!$F$16+'BP Financier'!$F$19+'BP Financier'!$F$22))*$V6269*Z6269/(1-$W6269)","v":{"v":1099276.32049765,"d":"1,099,276"}},{"$f":"'BP Financier'!$F$44*(('BP Financier'!$C$16+'BP Financier'!$D$16+'BP Financier'!$E$16+'BP Financier'!$F$16)/('BP Financier'!$C$16+'BP Financier'!$C$19+'BP Financier'!$D$16+'BP Financier'!$D$19+'BP Financier'!$E$16+'BP Financier'!$E$19+'BP Financier'!$C$22+'BP Financier'!$D$22+'BP Financier'!$E$22+'BP Financier'!$F$16+'BP Financier'!$F$19+'BP Financier'!$F$22))*$V6269*AA6269/(1-$W6269)","v":{"v":135813.4419199842,"d":"135,813"}},{"$f":"'BP Financier'!$F$44*(('BP Financier'!$C$16+'BP Financier'!$D$16+'BP Financier'!$E$16+'BP Financier'!$F$16)/('BP Financier'!$C$16+'BP Financier'!$C$19+'BP Financier'!$D$16+'BP Financier'!$D$19+'BP Financier'!$E$16+'BP Financier'!$E$19+'BP Financier'!$C$22+'BP Financier'!$D$22+'BP Financier'!$E$22+'BP Financier'!$F$16+'BP Financier'!$F$19+'BP Financier'!$F$22))*$V6269*AB6269/(1-$W6269)","v":{"v":65004.72433777021,"d":"65,005"}},null,{"v":0.0075,"d":"0.75%"},{"$f":"Actif!$E$28/100","v":{"v":0.28900000000000003,"d":"28.90%"}},{"$f":"Actif!$E$30/100","v":{"v":0.09050000000000001,"d":"9.05%"}},{"$f":"Actif!$E$31/100","v":{"v":0.0605,"d":"6.05%"}},{"$f":"Actif!$E$32/100","v":{"v":0.47350000000000003,"d":"47.35%"}},{"$f":"Actif!$E$33/100","v":{"v":0.0585,"d":"5.85%"}},{"$f":"Actif!$E$29/100","v":{"v":0.027999999999999997,"d":"2.80%"}}]
[null,"#163",58,2029,"H","A_VIE",{"v":0.44999999999999996,"d":"0.45"},{"v":0.38999999999999996,"d":"0.39"},0.6,0.6,85,0,{"$f":"ROUND(Primes!$P$4*V6270,0)","v":71},{"$f":"'BP Financier'!$F$33*(('BP Financier'!$C$16+'BP Financier'!$D$16+'BP Financier'!$E$16+'BP Financier'!$F$16)/('BP Financier'!$C$16+'BP Financier'!$C$19+'BP Financier'!$D$16+'BP Financier'!$D$19+'BP Financier'!$E$16+'BP Financier'!$E$19+'BP Financier'!$F$16+'BP Financier'!$F$19))*V6270","v":{"v":2909830.1866639922,"d":"2,909,830"}},{"v":1650655.678719808,"d":"1,650,656"},{"$f":"'BP Financier'!$F$44*(('BP Financier'!$C$16+'BP Financier'!$D$16+'BP Financier'!$E$16+'BP Financier'!$F$16)/('BP Financier'!$C$16+'BP Financier'!$C$19+'BP Financier'!$D$16+'BP Financier'!$D$19+'BP Financier'!$E$16+'BP Financier'!$E$19+'BP Financier'!$C$22+'BP Financier'!$D$22+'BP Financier'!$E$22+'BP Financier'!$F$16+'BP Financier'!$F$19+'BP Financier'!$F$22))*$V6270*X6270/(1-$W6270)","v":{"v":210104.55544886444,"d":"210,105"}},{"$f":"'BP Financier'!$F$44*(('BP Financier'!$C$16+'BP Financier'!$D$16+'BP Financier'!$E$16+'BP Financier'!$F$16)/('BP Financier'!$C$16+'BP Financier'!$C$19+'BP Financier'!$D$16+'BP Financier'!$D$19+'BP Financier'!$E$16+'BP Financier'!$E$19+'BP Financier'!$C$22+'BP Financier'!$D$22+'BP Financier'!$E$22+'BP Financier'!$F$16+'BP Financier'!$F$19+'BP Financier'!$F$22))*$V6270*Y6270/(1-$W6270)","v":{"v":140456.63651553923,"d":"140,457"}},{"$f":"'BP Financier'!$F$44*(('BP Financier'!$C$16+'BP Financier'!$D$16+'BP Financier'!$E$16+'BP Financier'!$F$16)/('BP Financier'!$C$16+'BP Financier'!$C$19+'BP Financier'!$D$16+'BP Financier'!$D$19+'BP Financier'!$E$16+'BP Financier'!$E$19+'BP Financier'!$C$22+'BP Financier'!$D$22+'BP Financier'!$E$22+'BP Financier'!$F$16+'BP Financier'!$F$19+'BP Financier'!$F$22))*$V6270*Z6270/(1-$W6270)","v":{"v":1099276.32049765,"d":"1,099,276"}},{"$f":"'BP Financier'!$F$44*(('BP Financier'!$C$16+'BP Financier'!$D$16+'BP Financier'!$E$16+'BP Financier'!$F$16)/('BP Financier'!$C$16+'BP Financier'!$C$19+'BP Financier'!$D$16+'BP Financier'!$D$19+'BP Financier'!$E$16+'BP Financier'!$E$19+'BP Financier'!$C$22+'BP Financier'!$D$22+'BP Financier'!$E$22+'BP Financier'!$F$16+'BP Financier'!$F$19+'BP Financier'!$F$22))*$V6270*AA6270/(1-$W6270)","v":{"v":135813.4419199842,"d":"135,813"}},{"$f":"'BP Financier'!$F$44*(('BP Financier'!$C$16+'BP Financier'!$D$16+'BP Financier'!$E$16+'BP Financier'!$F$16)/('BP Financier'!$C$16+'BP Financier'!$C$19+'BP Financier'!$D$16+'BP Financier'!$D$19+'BP Financier'!$E$16+'BP Financier'!$E$19+'BP Financier'!$C$22+'BP Financier'!$D$22+'BP Financier'!$E$22+'BP Financier'!$F$16+'BP Financier'!$F$19+'BP Financier'!$F$22))*$V6270*AB6270/(1-$W6270)","v":{"v":65004.72433777021,"d":"65,005"}},null,{"v":0.0075,"d":"0.75%"},{"$f":"Actif!$E$28/100","v":{"v":0.28900000000000003,"d":"28.90%"}},{"$f":"Actif!$E$30/100","v":{"v":0.09050000000000001,"d":"9.05%"}},{"$f":"Actif!$E$31/100","v":{"v":0.0605,"d":"6.05%"}},{"$f":"Actif!$E$32/100","v":{"v":0.47350000000000003,"d":"47.35%"}},{"$f":"Actif!$E$33/100","v":{"v":0.0585,"d":"5.85%"}},{"$f":"Actif!$E$29/100","v":{"v":0.027999999999999997,"d":"2.80%"}}]
[null,"#164",58,2030,"H","A_VIE",{"v":0.44999999999999996,"d":"0.45"},{"v":0.38999999999999996,"d":"0.39"},0.6,0.6,85,0,{"$f":"ROUND(Primes!$P$4*V6271,0)","v":71},{"$f":"'BP Financier'!$F$33*(('BP Financier'!$C$16+'BP Financier'!$D$16+'BP Financier'!$E$16+'BP Financier'!$F$16)/('BP Financier'!$C$16+'BP Financier'!$C$19+'BP Financier'!$D$16+'BP Financier'!$D$19+'BP Financier'!$E$16+'BP Financier'!$E$19+'BP Financier'!$F$16+'BP Financier'!$F$19))*V6271","v":{"v":2909830.1866639922,"d":"2,909,830"}},{"v":1650655.678719808,"d":"1,650,656"},{"$f":"'BP Financier'!$F$44*(('BP Financier'!$C$16+'BP Financier'!$D$16+'BP Financier'!$E$16+'BP Financier'!$F$16)/('BP Financier'!$C$16+'BP Financier'!$C$19+'BP Financier'!$D$16+'BP Financier'!$D$19+'BP Financier'!$E$16+'BP Financier'!$E$19+'BP Financier'!$C$22+'BP Financier'!$D$22+'BP Financier'!$E$22+'BP Financier'!$F$16+'BP Financier'!$F$19+'BP Financier'!$F$22))*$V6271*X6271/(1-$W6271)","v":{"v":210104.55544886444,"d":"210,105"}},{"$f":"'BP Financier'!$F$44*(('BP Financier'!$C$16+'BP Financier'!$D$16+'BP Financier'!$E$16+'BP Financier'!$F$16)/('BP Financier'!$C$16+'BP Financier'!$C$19+'BP Financier'!$D$16+'BP Financier'!$D$19+'BP Financier'!$E$16+'BP Financier'!$E$19+'BP Financier'!$C$22+'BP Financier'!$D$22+'BP Financier'!$E$22+'BP Financier'!$F$16+'BP Financier'!$F$19+'BP Financier'!$F$22))*$V6271*Y6271/(1-$W6271)","v":{"v":140456.63651553923,"d":"140,457"}},{"$f":"'BP Financier'!$F$44*(('BP Financier'!$C$16+'BP Financier'!$D$16+'BP Financier'!$E$16+'BP Financier'!$F$16)/('BP Financier'!$C$16+'BP Financier'!$C$19+'BP Financier'!$D$16+'BP Financier'!$D$19+'BP Financier'!$E$16+'BP Financier'!$E$19+'BP Financier'!$C$22+'BP Financier'!$D$22+'BP Financier'!$E$22+'BP Financier'!$F$16+'BP Financier'!$F$19+'BP Financier'!$F$22))*$V6271*Z6271/(1-$W6271)","v":{"v":1099276.32049765,"d":"1,099,276"}},{"$f":"'BP Financier'!$F$44*(('BP Financier'!$C$16+'BP Financier'!$D$16+'BP Financier'!$E$16+'BP Financier'!$F$16)/('BP Financier'!$C$16+'BP Financier'!$C$19+'BP Financier'!$D$16+'BP Financier'!$D$19+'BP Financier'!$E$16+'BP Financier'!$E$19+'BP Financier'!$C$22+'BP Financier'!$D$22+'BP Financier'!$E$22+'BP Financier'!$F$16+'BP Financier'!$F$19+'BP Financier'!$F$22))*$V6271*AA6271/(1-$W6271)","v":{"v":135813.4419199842,"d":"135,813"}},{"$f":"'BP Financier'!$F$44*(('BP Financier'!$C$16+'BP Financier'!$D$16+'BP Financier'!$E$16+'BP Financier'!$F$16)/('BP Financier'!$C$16+'BP Financier'!$C$19+'BP Financier'!$D$16+'BP Financier'!$D$19+'BP Financier'!$E$16+'BP Financier'!$E$19+'BP Financier'!$C$22+'BP Financier'!$D$22+'BP Financier'!$E$22+'BP Financier'!$F$16+'BP Financier'!$F$19+'BP Financier'!$F$22))*$V6271*AB6271/(1-$W6271)","v":{"v":65004.72433777021,"d":"65,005"}},null,{"v":0.0075,"d":"0.75%"},{"$f":"Actif!$E$28/100","v":{"v":0.28900000000000003,"d":"28.90%"}},{"$f":"Actif!$E$30/100","v":{"v":0.09050000000000001,"d":"9.05%"}},{"$f":"Actif!$E$31/100","v":{"v":0.0605,"d":"6.05%"}},{"$f":"Actif!$E$32/100","v":{"v":0.47350000000000003,"d":"47.35%"}},{"$f":"Actif!$E$33/100","v":{"v":0.0585,"d":"5.85%"}},{"$f":"Actif!$E$29/100","v":{"v":0.027999999999999997,"d":"2.80%"}}]
[null,"#165",59,2026,"F","A_VIE",{"v":0.44999999999999996,"d":"0.45"},{"v":0.38999999999999996,"d":"0.39"},0.6,0.6,85,0,{"$f":"ROUND(Primes!$P$4*V6272,0)","v":71},{"$f":"'BP Financier'!$F$33*(('BP Financier'!$C$16+'BP Financier'!$D$16+'BP Financier'!$E$16+'BP Financier'!$F$16)/('BP Financier'!$C$16+'BP Financier'!$C$19+'BP Financier'!$D$16+'BP Financier'!$D$19+'BP Financier'!$E$16+'BP Financier'!$E$19+'BP Financier'!$F$16+'BP Financier'!$F$19))*V6272","v":{"v":2909830.1866639922,"d":"2,909,830"}},{"v":1650655.678719808,"d":"1,650,656"},{"$f":"'BP Financier'!$F$44*(('BP Financier'!$C$16+'BP Financier'!$D$16+'BP Financier'!$E$16+'BP Financier'!$F$16)/('BP Financier'!$C$16+'BP Financier'!$C$19+'BP Financier'!$D$16+'BP Financier'!$D$19+'BP Financier'!$E$16+'BP Financier'!$E$19+'BP Financier'!$C$22+'BP Financier'!$D$22+'BP Financier'!$E$22+'BP Financier'!$F$16+'BP Financier'!$F$19+'BP Financier'!$F$22))*$V6272*X6272/(1-$W6272)","v":{"v":210104.55544886444,"d":"210,105"}},{"$f":"'BP Financier'!$F$44*(('BP Financier'!$C$16+'BP Financier'!$D$16+'BP Financier'!$E$16+'BP Financier'!$F$16)/('BP Financier'!$C$16+'BP Financier'!$C$19+'BP Financier'!$D$16+'BP Financier'!$D$19+'BP Financier'!$E$16+'BP Financier'!$E$19+'BP Financier'!$C$22+'BP Financier'!$D$22+'BP Financier'!$E$22+'BP Financier'!$F$16+'BP Financier'!$F$19+'BP Financier'!$F$22))*$V6272*Y6272/(1-$W6272)","v":{"v":140456.63651553923,"d":"140,457"}},{"$f":"'BP Financier'!$F$44*(('BP Financier'!$C$16+'BP Financier'!$D$16+'BP Financier'!$E$16+'BP Financier'!$F$16)/('BP Financier'!$C$16+'BP Financier'!$C$19+'BP Financier'!$D$16+'BP Financier'!$D$19+'BP Financier'!$E$16+'BP Financier'!$E$19+'BP Financier'!$C$22+'BP Financier'!$D$22+'BP Financier'!$E$22+'BP Financier'!$F$16+'BP Financier'!$F$19+'BP Financier'!$F$22))*$V6272*Z6272/(1-$W6272)","v":{"v":1099276.32049765,"d":"1,099,276"}},{"$f":"'BP Financier'!$F$44*(('BP Financier'!$C$16+'BP Financier'!$D$16+'BP Financier'!$E$16+'BP Financier'!$F$16)/('BP Financier'!$C$16+'BP Financier'!$C$19+'BP Financier'!$D$16+'BP Financier'!$D$19+'BP Financier'!$E$16+'BP Financier'!$E$19+'BP Financier'!$C$22+'BP Financier'!$D$22+'BP Financier'!$E$22+'BP Financier'!$F$16+'BP Financier'!$F$19+'BP Financier'!$F$22))*$V6272*AA6272/(1-$W6272)","v":{"v":135813.4419199842,"d":"135,813"}},{"$f":"'BP Financier'!$F$44*(('BP Financier'!$C$16+'BP Financier'!$D$16+'BP Financier'!$E$16+'BP Financier'!$F$16)/('BP Financier'!$C$16+'BP Financier'!$C$19+'BP Financier'!$D$16+'BP Financier'!$D$19+'BP Financier'!$E$16+'BP Financier'!$E$19+'BP Financier'!$C$22+'BP Financier'!$D$22+'BP Financier'!$E$22+'BP Financier'!$F$16+'BP Financier'!$F$19+'BP Financier'!$F$22))*$V6272*AB6272/(1-$W6272)","v":{"v":65004.72433777021,"d":"65,005"}},null,{"v":0.0075,"d":"0.75%"},{"$f":"Actif!$E$28/100","v":{"v":0.28900000000000003,"d":"28.90%"}},{"$f":"Actif!$E$30/100","v":{"v":0.09050000000000001,"d":"9.05%"}},{"$f":"Actif!$E$31/100","v":{"v":0.0605,"d":"6.05%"}},{"$f":"Actif!$E$32/100","v":{"v":0.47350000000000003,"d":"47.35%"}},{"$f":"Actif!$E$33/100","v":{"v":0.0585,"d":"5.85%"}},{"$f":"Actif!$E$29/100","v":{"v":0.027999999999999997,"d":"2.80%"}}]
[null,"#166",59,2028,"F","A_VIE",{"v":0.44999999999999996,"d":"0.45"},{"v":0.38999999999999996,"d":"0.39"},0.6,0.6,85,0,{"$f":"ROUND(Primes!$P$4*V6273,0)","v":71},{"$f":"'BP Financier'!$F$33*(('BP Financier'!$C$16+'BP Financier'!$D$16+'BP Financier'!$E$16+'BP Financier'!$F$16)/('BP Financier'!$C$16+'BP Financier'!$C$19+'BP Financier'!$D$16+'BP Financier'!$D$19+'BP Financier'!$E$16+'BP Financier'!$E$19+'BP Financier'!$F$16+'BP Financier'!$F$19))*V6273","v":{"v":2909830.1866639922,"d":"2,909,830"}},{"v":1650655.678719808,"d":"1,650,656"},{"$f":"'BP Financier'!$F$44*(('BP Financier'!$C$16+'BP Financier'!$D$16+'BP Financier'!$E$16+'BP Financier'!$F$16)/('BP Financier'!$C$16+'BP Financier'!$C$19+'BP Financier'!$D$16+'BP Financier'!$D$19+'BP Financier'!$E$16+'BP Financier'!$E$19+'BP Financier'!$C$22+'BP Financier'!$D$22+'BP Financier'!$E$22+'BP Financier'!$F$16+'BP Financier'!$F$19+'BP Financier'!$F$22))*$V6273*X6273/(1-$W6273)","v":{"v":210104.55544886444,"d":"210,105"}},{"$f":"'BP Financier'!$F$44*(('BP Financier'!$C$16+'BP Financier'!$D$16+'BP Financier'!$E$16+'BP Financier'!$F$16)/('BP Financier'!$C$16+'BP Financier'!$C$19+'BP Financier'!$D$16+'BP Financier'!$D$19+'BP Financier'!$E$16+'BP Financier'!$E$19+'BP Financier'!$C$22+'BP Financier'!$D$22+'BP Financier'!$E$22+'BP Financier'!$F$16+'BP Financier'!$F$19+'BP Financier'!$F$22))*$V6273*Y6273/(1-$W6273)","v":{"v":140456.63651553923,"d":"140,457"}},{"$f":"'BP Financier'!$F$44*(('BP Financier'!$C$16+'BP Financier'!$D$16+'BP Financier'!$E$16+'BP Financier'!$F$16)/('BP Financier'!$C$16+'BP Financier'!$C$19+'BP Financier'!$D$16+'BP Financier'!$D$19+'BP Financier'!$E$16+'BP Financier'!$E$19+'BP Financier'!$C$22+'BP Financier'!$D$22+'BP Financier'!$E$22+'BP Financier'!$F$16+'BP Financier'!$F$19+'BP Financier'!$F$22))*$V6273*Z6273/(1-$W6273)","v":{"v":1099276.32049765,"d":"1,099,276"}},{"$f":"'BP Financier'!$F$44*(('BP Financier'!$C$16+'BP Financier'!$D$16+'BP Financier'!$E$16+'BP Financier'!$F$16)/('BP Financier'!$C$16+'BP Financier'!$C$19+'BP Financier'!$D$16+'BP Financier'!$D$19+'BP Financier'!$E$16+'BP Financier'!$E$19+'BP Financier'!$C$22+'BP Financier'!$D$22+'BP Financier'!$E$22+'BP Financier'!$F$16+'BP Financier'!$F$19+'BP Financier'!$F$22))*$V6273*AA6273/(1-$W6273)","v":{"v":135813.4419199842,"d":"135,813"}},{"$f":"'BP Financier'!$F$44*(('BP Financier'!$C$16+'BP Financier'!$D$16+'BP Financier'!$E$16+'BP Financier'!$F$16)/('BP Financier'!$C$16+'BP Financier'!$C$19+'BP Financier'!$D$16+'BP Financier'!$D$19+'BP Financier'!$E$16+'BP Financier'!$E$19+'BP Financier'!$C$22+'BP Financier'!$D$22+'BP Financier'!$E$22+'BP Financier'!$F$16+'BP Financier'!$F$19+'BP Financier'!$F$22))*$V6273*AB6273/(1-$W6273)","v":{"v":65004.72433777021,"d":"65,005"}},null,{"v":0.0075,"d":"0.75%"},{"$f":"Actif!$E$28/100","v":{"v":0.28900000000000003,"d":"28.90%"}},{"$f":"Actif!$E$30/100","v":{"v":0.09050000000000001,"d":"9.05%"}},{"$f":"Actif!$E$31/100","v":{"v":0.0605,"d":"6.05%"}},{"$f":"Actif!$E$32/100","v":{"v":0.47350000000000003,"d":"47.35%"}},{"$f":"Actif!$E$33/100","v":{"v":0.0585,"d":"5.85%"}},{"$f":"Actif!$E$29/100","v":{"v":0.027999999999999997,"d":"2.80%"}}]
[null,"#167",59,2029,"F","A_VIE",{"v":0.44999999999999996,"d":"0.45"},{"v":0.38999999999999996,"d":"0.39"},0.6,0.6,85,0,{"$f":"ROUND(Primes!$P$4*V6274,0)","v":71},{"$f":"'BP Financier'!$F$33*(('BP Financier'!$C$16+'BP Financier'!$D$16+'BP Financier'!$E$16+'BP Financier'!$F$16)/('BP Financier'!$C$16+'BP Financier'!$C$19+'BP Financier'!$D$16+'BP Financier'!$D$19+'BP Financier'!$E$16+'BP Financier'!$E$19+'BP Financier'!$F$16+'BP Financier'!$F$19))*V6274","v":{"v":2909830.1866639922,"d":"2,909,830"}},{"v":1650655.678719808,"d":"1,650,656"},{"$f":"'BP Financier'!$F$44*(('BP Financier'!$C$16+'BP Financier'!$D$16+'BP Financier'!$E$16+'BP Financier'!$F$16)/('BP Financier'!$C$16+'BP Financier'!$C$19+'BP Financier'!$D$16+'BP Financier'!$D$19+'BP Financier'!$E$16+'BP Financier'!$E$19+'BP Financier'!$C$22+'BP Financier'!$D$22+'BP Financier'!$E$22+'BP Financier'!$F$16+'BP Financier'!$F$19+'BP Financier'!$F$22))*$V6274*X6274/(1-$W6274)","v":{"v":210104.55544886444,"d":"210,105"}},{"$f":"'BP Financier'!$F$44*(('BP Financier'!$C$16+'BP Financier'!$D$16+'BP Financier'!$E$16+'BP Financier'!$F$16)/('BP Financier'!$C$16+'BP Financier'!$C$19+'BP Financier'!$D$16+'BP Financier'!$D$19+'BP Financier'!$E$16+'BP Financier'!$E$19+'BP Financier'!$C$22+'BP Financier'!$D$22+'BP Financier'!$E$22+'BP Financier'!$F$16+'BP Financier'!$F$19+'BP Financier'!$F$22))*$V6274*Y6274/(1-$W6274)","v":{"v":140456.63651553923,"d":"140,457"}},{"$f":"'BP Financier'!$F$44*(('BP Financier'!$C$16+'BP Financier'!$D$16+'BP Financier'!$E$16+'BP Financier'!$F$16)/('BP Financier'!$C$16+'BP Financier'!$C$19+'BP Financier'!$D$16+'BP Financier'!$D$19+'BP Financier'!$E$16+'BP Financier'!$E$19+'BP Financier'!$C$22+'BP Financier'!$D$22+'BP Financier'!$E$22+'BP Financier'!$F$16+'BP Financier'!$F$19+'BP Financier'!$F$22))*$V6274*Z6274/(1-$W6274)","v":{"v":1099276.32049765,"d":"1,099,276"}},{"$f":"'BP Financier'!$F$44*(('BP Financier'!$C$16+'BP Financier'!$D$16+'BP Financier'!$E$16+'BP Financier'!$F$16)/('BP Financier'!$C$16+'BP Financier'!$C$19+'BP Financier'!$D$16+'BP Financier'!$D$19+'BP Financier'!$E$16+'BP Financier'!$E$19+'BP Financier'!$C$22+'BP Financier'!$D$22+'BP Financier'!$E$22+'BP Financier'!$F$16+'BP Financier'!$F$19+'BP Financier'!$F$22))*$V6274*AA6274/(1-$W6274)","v":{"v":135813.4419199842,"d":"135,813"}},{"$f":"'BP Financier'!$F$44*(('BP Financier'!$C$16+'BP Financier'!$D$16+'BP Financier'!$E$16+'BP Financier'!$F$16)/('BP Financier'!$C$16+'BP Financier'!$C$19+'BP Financier'!$D$16+'BP Financier'!$D$19+'BP Financier'!$E$16+'BP Financier'!$E$19+'BP Financier'!$C$22+'BP Financier'!$D$22+'BP Financier'!$E$22+'BP Financier'!$F$16+'BP Financier'!$F$19+'BP Financier'!$F$22))*$V6274*AB6274/(1-$W6274)","v":{"v":65004.72433777021,"d":"65,005"}},null,{"v":0.0075,"d":"0.75%"},{"$f":"Actif!$E$28/100","v":{"v":0.28900000000000003,"d":"28.90%"}},{"$f":"Actif!$E$30/100","v":{"v":0.09050000000000001,"d":"9.05%"}},{"$f":"Actif!$E$31/100","v":{"v":0.0605,"d":"6.05%"}},{"$f":"Actif!$E$32/100","v":{"v":0.47350000000000003,"d":"47.35%"}},{"$f":"Actif!$E$33/100","v":{"v":0.0585,"d":"5.85%"}},{"$f":"Actif!$E$29/100","v":{"v":0.027999999999999997,"d":"2.80%"}}]
[null,"#168",59,2030,"F","A_VIE",{"v":0.44999999999999996,"d":"0.45"},{"v":0.38999999999999996,"d":"0.39"},0.6,0.6,85,0,{"$f":"ROUND(Primes!$P$4*V6275,0)","v":71},{"$f":"'BP Financier'!$F$33*(('BP Financier'!$C$16+'BP Financier'!$D$16+'BP Financier'!$E$16+'BP Financier'!$F$16)/('BP Financier'!$C$16+'BP Financier'!$C$19+'BP Financier'!$D$16+'BP Financier'!$D$19+'BP Financier'!$E$16+'BP Financier'!$E$19+'BP Financier'!$F$16+'BP Financier'!$F$19))*V6275","v":{"v":2909830.1866639922,"d":"2,909,830"}},{"v":1650655.678719808,"d":"1,650,656"},{"$f":"'BP Financier'!$F$44*(('BP Financier'!$C$16+'BP Financier'!$D$16+'BP Financier'!$E$16+'BP Financier'!$F$16)/('BP Financier'!$C$16+'BP Financier'!$C$19+'BP Financier'!$D$16+'BP Financier'!$D$19+'BP Financier'!$E$16+'BP Financier'!$E$19+'BP Financier'!$C$22+'BP Financier'!$D$22+'BP Financier'!$E$22+'BP Financier'!$F$16+'BP Financier'!$F$19+'BP Financier'!$F$22))*$V6275*X6275/(1-$W6275)","v":{"v":210104.55544886444,"d":"210,105"}},{"$f":"'BP Financier'!$F$44*(('BP Financier'!$C$16+'BP Financier'!$D$16+'BP Financier'!$E$16+'BP Financier'!$F$16)/('BP Financier'!$C$16+'BP Financier'!$C$19+'BP Financier'!$D$16+'BP Financier'!$D$19+'BP Financier'!$E$16+'BP Financier'!$E$19+'BP Financier'!$C$22+'BP Financier'!$D$22+'BP Financier'!$E$22+'BP Financier'!$F$16+'BP Financier'!$F$19+'BP Financier'!$F$22))*$V6275*Y6275/(1-$W6275)","v":{"v":140456.63651553923,"d":"140,457"}},{"$f":"'BP Financier'!$F$44*(('BP Financier'!$C$16+'BP Financier'!$D$16+'BP Financier'!$E$16+'BP Financier'!$F$16)/('BP Financier'!$C$16+'BP Financier'!$C$19+'BP Financier'!$D$16+'BP Financier'!$D$19+'BP Financier'!$E$16+'BP Financier'!$E$19+'BP Financier'!$C$22+'BP Financier'!$D$22+'BP Financier'!$E$22+'BP Financier'!$F$16+'BP Financier'!$F$19+'BP Financier'!$F$22))*$V6275*Z6275/(1-$W6275)","v":{"v":1099276.32049765,"d":"1,099,276"}},{"$f":"'BP Financier'!$F$44*(('BP Financier'!$C$16+'BP Financier'!$D$16+'BP Financier'!$E$16+'BP Financier'!$F$16)/('BP Financier'!$C$16+'BP Financier'!$C$19+'BP Financier'!$D$16+'BP Financier'!$D$19+'BP Financier'!$E$16+'BP Financier'!$E$19+'BP Financier'!$C$22+'BP Financier'!$D$22+'BP Financier'!$E$22+'BP Financier'!$F$16+'BP Financier'!$F$19+'BP Financier'!$F$22))*$V6275*AA6275/(1-$W6275)","v":{"v":135813.4419199842,"d":"135,813"}},{"$f":"'BP Financier'!$F$44*(('BP Financier'!$C$16+'BP Financier'!$D$16+'BP Financier'!$E$16+'BP Financier'!$F$16)/('BP Financier'!$C$16+'BP Financier'!$C$19+'BP Financier'!$D$16+'BP Financier'!$D$19+'BP Financier'!$E$16+'BP Financier'!$E$19+'BP Financier'!$C$22+'BP Financier'!$D$22+'BP Financier'!$E$22+'BP Financier'!$F$16+'BP Financier'!$F$19+'BP Financier'!$F$22))*$V6275*AB6275/(1-$W6275)","v":{"v":65004.72433777021,"d":"65,005"}},null,{"v":0.0075,"d":"0.75%"},{"$f":"Actif!$E$28/100","v":{"v":0.28900000000000003,"d":"28.90%"}},{"$f":"Actif!$E$30/100","v":{"v":0.09050000000000001,"d":"9.05%"}},{"$f":"Actif!$E$31/100","v":{"v":0.0605,"d":"6.05%"}},{"$f":"Actif!$E$32/100","v":{"v":0.47350000000000003,"d":"47.35%"}},{"$f":"Actif!$E$33/100","v":{"v":0.0585,"d":"5.85%"}},{"$f":"Actif!$E$29/100","v":{"v":0.027999999999999997,"d":"2.80%"}}]
[null,"#169",60,2026,"H","A_VIE",{"v":0.44999999999999996,"d":"0.45"},{"v":0.38999999999999996,"d":"0.39"},0.6,0.6,85,0,{"$f":"ROUND(Primes!$P$4*V6276,0)","v":119},{"$f":"'BP Financier'!$F$33*(('BP Financier'!$C$16+'BP Financier'!$D$16+'BP Financier'!$E$16+'BP Financier'!$F$16)/('BP Financier'!$C$16+'BP Financier'!$C$19+'BP Financier'!$D$16+'BP Financier'!$D$19+'BP Financier'!$E$16+'BP Financier'!$E$19+'BP Financier'!$F$16+'BP Financier'!$F$19))*V6276","v":{"v":4849716.977773321,"d":"4,849,717"}},{"v":2751092.797866347,"d":"2,751,093"},{"$f":"'BP Financier'!$F$44*(('BP Financier'!$C$16+'BP Financier'!$D$16+'BP Financier'!$E$16+'BP Financier'!$F$16)/('BP Financier'!$C$16+'BP Financier'!$C$19+'BP Financier'!$D$16+'BP Financier'!$D$19+'BP Financier'!$E$16+'BP Financier'!$E$19+'BP Financier'!$C$22+'BP Financier'!$D$22+'BP Financier'!$E$22+'BP Financier'!$F$16+'BP Financier'!$F$19+'BP Financier'!$F$22))*$V6276*X6276/(1-$W6276)","v":{"v":350174.2590814408,"d":"350,174"}},{"$f":"'BP Financier'!$F$44*(('BP Financier'!$C$16+'BP Financier'!$D$16+'BP Financier'!$E$16+'BP Financier'!$F$16)/('BP Financier'!$C$16+'BP Financier'!$C$19+'BP Financier'!$D$16+'BP Financier'!$D$19+'BP Financier'!$E$16+'BP Financier'!$E$19+'BP Financier'!$C$22+'BP Financier'!$D$22+'BP Financier'!$E$22+'BP Financier'!$F$16+'BP Financier'!$F$19+'BP Financier'!$F$22))*$V6276*Y6276/(1-$W6276)","v":{"v":234094.39419256538,"d":"234,094"}},{"$f":"'BP Financier'!$F$44*(('BP Financier'!$C$16+'BP Financier'!$D$16+'BP Financier'!$E$16+'BP Financier'!$F$16)/('BP Financier'!$C$16+'BP Financier'!$C$19+'BP Financier'!$D$16+'BP Financier'!$D$19+'BP Financier'!$E$16+'BP Financier'!$E$19+'BP Financier'!$C$22+'BP Financier'!$D$22+'BP Financier'!$E$22+'BP Financier'!$F$16+'BP Financier'!$F$19+'BP Financier'!$F$22))*$V6276*Z6276/(1-$W6276)","v":{"v":1832127.2008294167,"d":"1,832,127"}},{"$f":"'BP Financier'!$F$44*(('BP Financier'!$C$16+'BP Financier'!$D$16+'BP Financier'!$E$16+'BP Financier'!$F$16)/('BP Financier'!$C$16+'BP Financier'!$C$19+'BP Financier'!$D$16+'BP Financier'!$D$19+'BP Financier'!$E$16+'BP Financier'!$E$19+'BP Financier'!$C$22+'BP Financier'!$D$22+'BP Financier'!$E$22+'BP Financier'!$F$16+'BP Financier'!$F$19+'BP Financier'!$F$22))*$V6276*AA6276/(1-$W6276)","v":{"v":226355.73653330703,"d":"226,356"}},{"$f":"'BP Financier'!$F$44*(('BP Financier'!$C$16+'BP Financier'!$D$16+'BP Financier'!$E$16+'BP Financier'!$F$16)/('BP Financier'!$C$16+'BP Financier'!$C$19+'BP Financier'!$D$16+'BP Financier'!$D$19+'BP Financier'!$E$16+'BP Financier'!$E$19+'BP Financier'!$C$22+'BP Financier'!$D$22+'BP Financier'!$E$22+'BP Financier'!$F$16+'BP Financier'!$F$19+'BP Financier'!$F$22))*$V6276*AB6276/(1-$W6276)","v":{"v":108341.20722961702,"d":"108,341"}},null,{"v":0.0125,"d":"1.25%"},{"$f":"Actif!$E$28/100","v":{"v":0.28900000000000003,"d":"28.90%"}},{"$f":"Actif!$E$30/100","v":{"v":0.09050000000000001,"d":"9.05%"}},{"$f":"Actif!$E$31/100","v":{"v":0.0605,"d":"6.05%"}},{"$f":"Actif!$E$32/100","v":{"v":0.47350000000000003,"d":"47.35%"}},{"$f":"Actif!$E$33/100","v":{"v":0.0585,"d":"5.85%"}},{"$f":"Actif!$E$29/100","v":{"v":0.027999999999999997,"d":"2.80%"}}]
[null,"#170",60,2028,"H","A_VIE",{"v":0.44999999999999996,"d":"0.45"},{"v":0.38999999999999996,"d":"0.39"},0.6,0.6,85,0,{"$f":"ROUND(Primes!$P$4*V6277,0)","v":119},{"$f":"'BP Financier'!$F$33*(('BP Financier'!$C$16+'BP Financier'!$D$16+'BP Financier'!$E$16+'BP Financier'!$F$16)/('BP Financier'!$C$16+'BP Financier'!$C$19+'BP Financier'!$D$16+'BP Financier'!$D$19+'BP Financier'!$E$16+'BP Financier'!$E$19+'BP Financier'!$F$16+'BP Financier'!$F$19))*V6277","v":{"v":4849716.977773321,"d":"4,849,717"}},{"v":2751092.797866347,"d":"2,751,093"},{"$f":"'BP Financier'!$F$44*(('BP Financier'!$C$16+'BP Financier'!$D$16+'BP Financier'!$E$16+'BP Financier'!$F$16)/('BP Financier'!$C$16+'BP Financier'!$C$19+'BP Financier'!$D$16+'BP Financier'!$D$19+'BP Financier'!$E$16+'BP Financier'!$E$19+'BP Financier'!$C$22+'BP Financier'!$D$22+'BP Financier'!$E$22+'BP Financier'!$F$16+'BP Financier'!$F$19+'BP Financier'!$F$22))*$V6277*X6277/(1-$W6277)","v":{"v":350174.2590814408,"d":"350,174"}},{"$f":"'BP Financier'!$F$44*(('BP Financier'!$C$16+'BP Financier'!$D$16+'BP Financier'!$E$16+'BP Financier'!$F$16)/('BP Financier'!$C$16+'BP Financier'!$C$19+'BP Financier'!$D$16+'BP Financier'!$D$19+'BP Financier'!$E$16+'BP Financier'!$E$19+'BP Financier'!$C$22+'BP Financier'!$D$22+'BP Financier'!$E$22+'BP Financier'!$F$16+'BP Financier'!$F$19+'BP Financier'!$F$22))*$V6277*Y6277/(1-$W6277)","v":{"v":234094.39419256538,"d":"234,094"}},{"$f":"'BP Financier'!$F$44*(('BP Financier'!$C$16+'BP Financier'!$D$16+'BP Financier'!$E$16+'BP Financier'!$F$16)/('BP Financier'!$C$16+'BP Financier'!$C$19+'BP Financier'!$D$16+'BP Financier'!$D$19+'BP Financier'!$E$16+'BP Financier'!$E$19+'BP Financier'!$C$22+'BP Financier'!$D$22+'BP Financier'!$E$22+'BP Financier'!$F$16+'BP Financier'!$F$19+'BP Financier'!$F$22))*$V6277*Z6277/(1-$W6277)","v":{"v":1832127.2008294167,"d":"1,832,127"}},{"$f":"'BP Financier'!$F$44*(('BP Financier'!$C$16+'BP Financier'!$D$16+'BP Financier'!$E$16+'BP Financier'!$F$16)/('BP Financier'!$C$16+'BP Financier'!$C$19+'BP Financier'!$D$16+'BP Financier'!$D$19+'BP Financier'!$E$16+'BP Financier'!$E$19+'BP Financier'!$C$22+'BP Financier'!$D$22+'BP Financier'!$E$22+'BP Financier'!$F$16+'BP Financier'!$F$19+'BP Financier'!$F$22))*$V6277*AA6277/(1-$W6277)","v":{"v":226355.73653330703,"d":"226,356"}},{"$f":"'BP Financier'!$F$44*(('BP Financier'!$C$16+'BP Financier'!$D$16+'BP Financier'!$E$16+'BP Financier'!$F$16)/('BP Financier'!$C$16+'BP Financier'!$C$19+'BP Financier'!$D$16+'BP Financier'!$D$19+'BP Financier'!$E$16+'BP Financier'!$E$19+'BP Financier'!$C$22+'BP Financier'!$D$22+'BP Financier'!$E$22+'BP Financier'!$F$16+'BP Financier'!$F$19+'BP Financier'!$F$22))*$V6277*AB6277/(1-$W6277)","v":{"v":108341.20722961702,"d":"108,341"}},null,{"v":0.0125,"d":"1.25%"},{"$f":"Actif!$E$28/100","v":{"v":0.28900000000000003,"d":"28.90%"}},{"$f":"Actif!$E$30/100","v":{"v":0.09050000000000001,"d":"9.05%"}},{"$f":"Actif!$E$31/100","v":{"v":0.0605,"d":"6.05%"}},{"$f":"Actif!$E$32/100","v":{"v":0.47350000000000003,"d":"47.35%"}},{"$f":"Actif!$E$33/100","v":{"v":0.0585,"d":"5.85%"}},{"$f":"Actif!$E$29/100","v":{"v":0.027999999999999997,"d":"2.80%"}}]
[null,"#171",60,2029,"H","A_VIE",{"$f":"frais_gestion_Euro*100","v":{"v":0.44999999999999996,"d":"0.45"}},{"$f":"frais_gestion_UC*100","v":{"v":0.38999999999999996,"d":"0.39"}},{"$f":"frais_distribution_FG*100","v":0.6},{"$f":"frais_distribution_UC*100","v":0.6},85,0,{"$f":"ROUND(Primes!$P$4*V6278,0)","v":119},{"$f":"'BP Financier'!$F$33*(('BP Financier'!$C$16+'BP Financier'!$D$16+'BP Financier'!$E$16+'BP Financier'!$F$16)/('BP Financier'!$C$16+'BP Financier'!$C$19+'BP Financier'!$D$16+'BP Financier'!$D$19+'BP Financier'!$E$16+'BP Financier'!$E$19+'BP Financier'!$F$16+'BP Financier'!$F$19))*V6278","v":{"v":4849716.977773321,"d":"4,849,717"}},{"v":2751092.797866347,"d":"2,751,093"},{"$f":"'BP Financier'!$F$44*(('BP Financier'!$C$16+'BP Financier'!$D$16+'BP Financier'!$E$16+'BP Financier'!$F$16)/('BP Financier'!$C$16+'BP Financier'!$C$19+'BP Financier'!$D$16+'BP Financier'!$D$19+'BP Financier'!$E$16+'BP Financier'!$E$19+'BP Financier'!$C$22+'BP Financier'!$D$22+'BP Financier'!$E$22+'BP Financier'!$F$16+'BP Financier'!$F$19+'BP Financier'!$F$22))*$V6278*X6278/(1-$W6278)","v":{"v":350174.2590814408,"d":"350,174"}},{"$f":"'BP Financier'!$F$44*(('BP Financier'!$C$16+'BP Financier'!$D$16+'BP Financier'!$E$16+'BP Financier'!$F$16)/('BP Financier'!$C$16+'BP Financier'!$C$19+'BP Financier'!$D$16+'BP Financier'!$D$19+'BP Financier'!$E$16+'BP Financier'!$E$19+'BP Financier'!$C$22+'BP Financier'!$D$22+'BP Financier'!$E$22+'BP Financier'!$F$16+'BP Financier'!$F$19+'BP Financier'!$F$22))*$V6278*Y6278/(1-$W6278)","v":{"v":234094.39419256538,"d":"234,094"}},{"$f":"'BP Financier'!$F$44*(('BP Financier'!$C$16+'BP Financier'!$D$16+'BP Financier'!$E$16+'BP Financier'!$F$16)/('BP Financier'!$C$16+'BP Financier'!$C$19+'BP Financier'!$D$16+'BP Financier'!$D$19+'BP Financier'!$E$16+'BP Financier'!$E$19+'BP Financier'!$C$22+'BP Financier'!$D$22+'BP Financier'!$E$22+'BP Financier'!$F$16+'BP Financier'!$F$19+'BP Financier'!$F$22))*$V6278*Z6278/(1-$W6278)","v":{"v":1832127.2008294167,"d":"1,832,127"}},{"$f":"'BP Financier'!$F$44*(('BP Financier'!$C$16+'BP Financier'!$D$16+'BP Financier'!$E$16+'BP Financier'!$F$16)/('BP Financier'!$C$16+'BP Financier'!$C$19+'BP Financier'!$D$16+'BP Financier'!$D$19+'BP Financier'!$E$16+'BP Financier'!$E$19+'BP Financier'!$C$22+'BP Financier'!$D$22+'BP Financier'!$E$22+'BP Financier'!$F$16+'BP Financier'!$F$19+'BP Financier'!$F$22))*$V6278*AA6278/(1-$W6278)","v":{"v":226355.73653330703,"d":"226,356"}},{"$f":"'BP Financier'!$F$44*(('BP Financier'!$C$16+'BP Financier'!$D$16+'BP Financier'!$E$16+'BP Financier'!$F$16)/('BP Financier'!$C$16+'BP Financier'!$C$19+'BP Financier'!$D$16+'BP Financier'!$D$19+'BP Financier'!$E$16+'BP Financier'!$E$19+'BP Financier'!$C$22+'BP Financier'!$D$22+'BP Financier'!$E$22+'BP Financier'!$F$16+'BP Financier'!$F$19+'BP Financier'!$F$22))*$V6278*AB6278/(1-$W6278)","v":{"v":108341.20722961702,"d":"108,341"}},null,{"v":0.0125,"d":"1.25%"},{"$f":"Actif!$E$28/100","v":{"v":0.28900000000000003,"d":"28.90%"}},{"$f":"Actif!$E$30/100","v":{"v":0.09050000000000001,"d":"9.05%"}},{"$f":"Actif!$E$31/100","v":{"v":0.0605,"d":"6.05%"}},{"$f":"Actif!$E$32/100","v":{"v":0.47350000000000003,"d":"47.35%"}},{"$f":"Actif!$E$33/100","v":{"v":0.0585,"d":"5.85%"}},{"$f":"Actif!$E$29/100","v":{"v":0.027999999999999997,"d":"2.80%"}}]
[null,"#172",60,2030,"H","A_VIE",{"v":0.44999999999999996,"d":"0.45"},{"v":0.38999999999999996,"d":"0.39"},0.6,0.6,85,0,{"$f":"ROUND(Primes!$P$4*V6279,0)","v":119},{"$f":"'BP Financier'!$F$33*(('BP Financier'!$C$16+'BP Financier'!$D$16+'BP Financier'!$E$16+'BP Financier'!$F$16)/('BP Financier'!$C$16+'BP Financier'!$C$19+'BP Financier'!$D$16+'BP Financier'!$D$19+'BP Financier'!$E$16+'BP Financier'!$E$19+'BP Financier'!$F$16+'BP Financier'!$F$19))*V6279","v":{"v":4849716.977773321,"d":"4,849,717"}},{"$f":"SUM(P6279:T6279)","v":{"v":2751092.797866347,"d":"2,751,093"}},{"$f":"'BP Financier'!$F$44*(('BP Financier'!$C$16+'BP Financier'!$D$16+'BP Financier'!$E$16+'BP Financier'!$F$16)/('BP Financier'!$C$16+'BP Financier'!$C$19+'BP Financier'!$D$16+'BP Financier'!$D$19+'BP Financier'!$E$16+'BP Financier'!$E$19+'BP Financier'!$C$22+'BP Financier'!$D$22+'BP Financier'!$E$22+'BP Financier'!$F$16+'BP Financier'!$F$19+'BP Financier'!$F$22))*$V6279*X6279/(1-$W6279)","v":{"v":350174.2590814408,"d":"350,174"}},{"$f":"'BP Financier'!$F$44*(('BP Financier'!$C$16+'BP Financier'!$D$16+'BP Financier'!$E$16+'BP Financier'!$F$16)/('BP Financier'!$C$16+'BP Financier'!$C$19+'BP Financier'!$D$16+'BP Financier'!$D$19+'BP Financier'!$E$16+'BP Financier'!$E$19+'BP Financier'!$C$22+'BP Financier'!$D$22+'BP Financier'!$E$22+'BP Financier'!$F$16+'BP Financier'!$F$19+'BP Financier'!$F$22))*$V6279*Y6279/(1-$W6279)","v":{"v":234094.39419256538,"d":"234,094"}},{"$f":"'BP Financier'!$F$44*(('BP Financier'!$C$16+'BP Financier'!$D$16+'BP Financier'!$E$16+'BP Financier'!$F$16)/('BP Financier'!$C$16+'BP Financier'!$C$19+'BP Financier'!$D$16+'BP Financier'!$D$19+'BP Financier'!$E$16+'BP Financier'!$E$19+'BP Financier'!$C$22+'BP Financier'!$D$22+'BP Financier'!$E$22+'BP Financier'!$F$16+'BP Financier'!$F$19+'BP Financier'!$F$22))*$V6279*Z6279/(1-$W6279)","v":{"v":1832127.2008294167,"d":"1,832,127"}},{"$f":"'BP Financier'!$F$44*(('BP Financier'!$C$16+'BP Financier'!$D$16+'BP Financier'!$E$16+'BP Financier'!$F$16)/('BP Financier'!$C$16+'BP Financier'!$C$19+'BP Financier'!$D$16+'BP Financier'!$D$19+'BP Financier'!$E$16+'BP Financier'!$E$19+'BP Financier'!$C$22+'BP Financier'!$D$22+'BP Financier'!$E$22+'BP Financier'!$F$16+'BP Financier'!$F$19+'BP Financier'!$F$22))*$V6279*AA6279/(1-$W6279)","v":{"v":226355.73653330703,"d":"226,356"}},{"$f":"'BP Financier'!$F$44*(('BP Financier'!$C$16+'BP Financier'!$D$16+'BP Financier'!$E$16+'BP Financier'!$F$16)/('BP Financier'!$C$16+'BP Financier'!$C$19+'BP Financier'!$D$16+'BP Financier'!$D$19+'BP Financier'!$E$16+'BP Financier'!$E$19+'BP Financier'!$C$22+'BP Financier'!$D$22+'BP Financier'!$E$22+'BP Financier'!$F$16+'BP Financier'!$F$19+'BP Financier'!$F$22))*$V6279*AB6279/(1-$W6279)","v":{"v":108341.20722961702,"d":"108,341"}},null,{"v":0.0125,"d":"1.25%"},{"$f":"Actif!$E$28/100","v":{"v":0.28900000000000003,"d":"28.90%"}},{"$f":"Actif!$E$30/100","v":{"v":0.09050000000000001,"d":"9.05%"}},{"$f":"Actif!$E$31/100","v":{"v":0.0605,"d":"6.05%"}},{"$f":"Actif!$E$32/100","v":{"v":0.47350000000000003,"d":"47.35%"}},{"$f":"Actif!$E$33/100","v":{"v":0.0585,"d":"5.85%"}},{"$f":"Actif!$E$29/100","v":{"v":0.027999999999999997,"d":"2.80%"}}]
[null,"#173",61,2026,"H","A_VIE",{"v":0.44999999999999996,"d":"0.45"},{"v":0.38999999999999996,"d":"0.39"},0.6,0.6,85,0,{"$f":"ROUND(Primes!$P$4*V6280,0)","v":71},{"$f":"'BP Financier'!$F$33*(('BP Financier'!$C$16+'BP Financier'!$D$16+'BP Financier'!$E$16+'BP Financier'!$F$16)/('BP Financier'!$C$16+'BP Financier'!$C$19+'BP Financier'!$D$16+'BP Financier'!$D$19+'BP Financier'!$E$16+'BP Financier'!$E$19+'BP Financier'!$F$16+'BP Financier'!$F$19))*V6280","v":{"v":2909830.1866639922,"d":"2,909,830"}},{"v":1650655.678719808,"d":"1,650,656"},{"$f":"'BP Financier'!$F$44*(('BP Financier'!$C$16+'BP Financier'!$D$16+'BP Financier'!$E$16+'BP Financier'!$F$16)/('BP Financier'!$C$16+'BP Financier'!$C$19+'BP Financier'!$D$16+'BP Financier'!$D$19+'BP Financier'!$E$16+'BP Financier'!$E$19+'BP Financier'!$C$22+'BP Financier'!$D$22+'BP Financier'!$E$22+'BP Financier'!$F$16+'BP Financier'!$F$19+'BP Financier'!$F$22))*$V6280*X6280/(1-$W6280)","v":{"v":210104.55544886444,"d":"210,105"}},{"$f":"'BP Financier'!$F$44*(('BP Financier'!$C$16+'BP Financier'!$D$16+'BP Financier'!$E$16+'BP Financier'!$F$16)/('BP Financier'!$C$16+'BP Financier'!$C$19+'BP Financier'!$D$16+'BP Financier'!$D$19+'BP Financier'!$E$16+'BP Financier'!$E$19+'BP Financier'!$C$22+'BP Financier'!$D$22+'BP Financier'!$E$22+'BP Financier'!$F$16+'BP Financier'!$F$19+'BP Financier'!$F$22))*$V6280*Y6280/(1-$W6280)","v":{"v":140456.63651553923,"d":"140,457"}},{"$f":"'BP Financier'!$F$44*(('BP Financier'!$C$16+'BP Financier'!$D$16+'BP Financier'!$E$16+'BP Financier'!$F$16)/('BP Financier'!$C$16+'BP Financier'!$C$19+'BP Financier'!$D$16+'BP Financier'!$D$19+'BP Financier'!$E$16+'BP Financier'!$E$19+'BP Financier'!$C$22+'BP Financier'!$D$22+'BP Financier'!$E$22+'BP Financier'!$F$16+'BP Financier'!$F$19+'BP Financier'!$F$22))*$V6280*Z6280/(1-$W6280)","v":{"v":1099276.32049765,"d":"1,099,276"}},{"$f":"'BP Financier'!$F$44*(('BP Financier'!$C$16+'BP Financier'!$D$16+'BP Financier'!$E$16+'BP Financier'!$F$16)/('BP Financier'!$C$16+'BP Financier'!$C$19+'BP Financier'!$D$16+'BP Financier'!$D$19+'BP Financier'!$E$16+'BP Financier'!$E$19+'BP Financier'!$C$22+'BP Financier'!$D$22+'BP Financier'!$E$22+'BP Financier'!$F$16+'BP Financier'!$F$19+'BP Financier'!$F$22))*$V6280*AA6280/(1-$W6280)","v":{"v":135813.4419199842,"d":"135,813"}},{"$f":"'BP Financier'!$F$44*(('BP Financier'!$C$16+'BP Financier'!$D$16+'BP Financier'!$E$16+'BP Financier'!$F$16)/('BP Financier'!$C$16+'BP Financier'!$C$19+'BP Financier'!$D$16+'BP Financier'!$D$19+'BP Financier'!$E$16+'BP Financier'!$E$19+'BP Financier'!$C$22+'BP Financier'!$D$22+'BP Financier'!$E$22+'BP Financier'!$F$16+'BP Financier'!$F$19+'BP Financier'!$F$22))*$V6280*AB6280/(1-$W6280)","v":{"v":65004.72433777021,"d":"65,005"}},null,{"v":0.0075,"d":"0.75%"},{"$f":"Actif!$E$28/100","v":{"v":0.28900000000000003,"d":"28.90%"}},{"$f":"Actif!$E$30/100","v":{"v":0.09050000000000001,"d":"9.05%"}},{"$f":"Actif!$E$31/100","v":{"v":0.0605,"d":"6.05%"}},{"$f":"Actif!$E$32/100","v":{"v":0.47350000000000003,"d":"47.35%"}},{"$f":"Actif!$E$33/100","v":{"v":0.0585,"d":"5.85%"}},{"$f":"Actif!$E$29/100","v":{"v":0.027999999999999997,"d":"2.80%"}}]
[null,"#174",61,2028,"H","A_VIE",{"v":0.44999999999999996,"d":"0.45"},{"v":0.38999999999999996,"d":"0.39"},0.6,0.6,85,0,{"$f":"ROUND(Primes!$P$4*V6281,0)","v":71},{"$f":"'BP Financier'!$F$33*(('BP Financier'!$C$16+'BP Financier'!$D$16+'BP Financier'!$E$16+'BP Financier'!$F$16)/('BP Financier'!$C$16+'BP Financier'!$C$19+'BP Financier'!$D$16+'BP Financier'!$D$19+'BP Financier'!$E$16+'BP Financier'!$E$19+'BP Financier'!$F$16+'BP Financier'!$F$19))*V6281","v":{"v":2909830.1866639922,"d":"2,909,830"}},{"v":1650655.678719808,"d":"1,650,656"},{"$f":"'BP Financier'!$F$44*(('BP Financier'!$C$16+'BP Financier'!$D$16+'BP Financier'!$E$16+'BP Financier'!$F$16)/('BP Financier'!$C$16+'BP Financier'!$C$19+'BP Financier'!$D$16+'BP Financier'!$D$19+'BP Financier'!$E$16+'BP Financier'!$E$19+'BP Financier'!$C$22+'BP Financier'!$D$22+'BP Financier'!$E$22+'BP Financier'!$F$16+'BP Financier'!$F$19+'BP Financier'!$F$22))*$V6281*X6281/(1-$W6281)","v":{"v":210104.55544886444,"d":"210,105"}},{"$f":"'BP Financier'!$F$44*(('BP Financier'!$C$16+'BP Financier'!$D$16+'BP Financier'!$E$16+'BP Financier'!$F$16)/('BP Financier'!$C$16+'BP Financier'!$C$19+'BP Financier'!$D$16+'BP Financier'!$D$19+'BP Financier'!$E$16+'BP Financier'!$E$19+'BP Financier'!$C$22+'BP Financier'!$D$22+'BP Financier'!$E$22+'BP Financier'!$F$16+'BP Financier'!$F$19+'BP Financier'!$F$22))*$V6281*Y6281/(1-$W6281)","v":{"v":140456.63651553923,"d":"140,457"}},{"$f":"'BP Financier'!$F$44*(('BP Financier'!$C$16+'BP Financier'!$D$16+'BP Financier'!$E$16+'BP Financier'!$F$16)/('BP Financier'!$C$16+'BP Financier'!$C$19+'BP Financier'!$D$16+'BP Financier'!$D$19+'BP Financier'!$E$16+'BP Financier'!$E$19+'BP Financier'!$C$22+'BP Financier'!$D$22+'BP Financier'!$E$22+'BP Financier'!$F$16+'BP Financier'!$F$19+'BP Financier'!$F$22))*$V6281*Z6281/(1-$W6281)","v":{"v":1099276.32049765,"d":"1,099,276"}},{"$f":"'BP Financier'!$F$44*(('BP Financier'!$C$16+'BP Financier'!$D$16+'BP Financier'!$E$16+'BP Financier'!$F$16)/('BP Financier'!$C$16+'BP Financier'!$C$19+'BP Financier'!$D$16+'BP Financier'!$D$19+'BP Financier'!$E$16+'BP Financier'!$E$19+'BP Financier'!$C$22+'BP Financier'!$D$22+'BP Financier'!$E$22+'BP Financier'!$F$16+'BP Financier'!$F$19+'BP Financier'!$F$22))*$V6281*AA6281/(1-$W6281)","v":{"v":135813.4419199842,"d":"135,813"}},{"$f":"'BP Financier'!$F$44*(('BP Financier'!$C$16+'BP Financier'!$D$16+'BP Financier'!$E$16+'BP Financier'!$F$16)/('BP Financier'!$C$16+'BP Financier'!$C$19+'BP Financier'!$D$16+'BP Financier'!$D$19+'BP Financier'!$E$16+'BP Financier'!$E$19+'BP Financier'!$C$22+'BP Financier'!$D$22+'BP Financier'!$E$22+'BP Financier'!$F$16+'BP Financier'!$F$19+'BP Financier'!$F$22))*$V6281*AB6281/(1-$W6281)","v":{"v":65004.72433777021,"d":"65,005"}},null,{"v":0.0075,"d":"0.75%"},{"$f":"Actif!$E$28/100","v":{"v":0.28900000000000003,"d":"28.90%"}},{"$f":"Actif!$E$30/100","v":{"v":0.09050000000000001,"d":"9.05%"}},{"$f":"Actif!$E$31/100","v":{"v":0.0605,"d":"6.05%"}},{"$f":"Actif!$E$32/100","v":{"v":0.47350000000000003,"d":"47.35%"}},{"$f":"Actif!$E$33/100","v":{"v":0.0585,"d":"5.85%"}},{"$f":"Actif!$E$29/100","v":{"v":0.027999999999999997,"d":"2.80%"}}]
[null,"#175",61,2029,"H","A_VIE",{"v":0.44999999999999996,"d":"0.45"},{"v":0.38999999999999996,"d":"0.39"},0.6,0.6,85,0,{"$f":"ROUND(Primes!$P$4*V6282,0)","v":71},{"$f":"'BP Financier'!$F$33*(('BP Financier'!$C$16+'BP Financier'!$D$16+'BP Financier'!$E$16+'BP Financier'!$F$16)/('BP Financier'!$C$16+'BP Financier'!$C$19+'BP Financier'!$D$16+'BP Financier'!$D$19+'BP Financier'!$E$16+'BP Financier'!$E$19+'BP Financier'!$F$16+'BP Financier'!$F$19))*V6282","v":{"v":2909830.1866639922,"d":"2,909,830"}},{"v":1650655.678719808,"d":"1,650,656"},{"$f":"'BP Financier'!$F$44*(('BP Financier'!$C$16+'BP Financier'!$D$16+'BP Financier'!$E$16+'BP Financier'!$F$16)/('BP Financier'!$C$16+'BP Financier'!$C$19+'BP Financier'!$D$16+'BP Financier'!$D$19+'BP Financier'!$E$16+'BP Financier'!$E$19+'BP Financier'!$C$22+'BP Financier'!$D$22+'BP Financier'!$E$22+'BP Financier'!$F$16+'BP Financier'!$F$19+'BP Financier'!$F$22))*$V6282*X6282/(1-$W6282)","v":{"v":210104.55544886444,"d":"210,105"}},{"$f":"'BP Financier'!$F$44*(('BP Financier'!$C$16+'BP Financier'!$D$16+'BP Financier'!$E$16+'BP Financier'!$F$16)/('BP Financier'!$C$16+'BP Financier'!$C$19+'BP Financier'!$D$16+'BP Financier'!$D$19+'BP Financier'!$E$16+'BP Financier'!$E$19+'BP Financier'!$C$22+'BP Financier'!$D$22+'BP Financier'!$E$22+'BP Financier'!$F$16+'BP Financier'!$F$19+'BP Financier'!$F$22))*$V6282*Y6282/(1-$W6282)","v":{"v":140456.63651553923,"d":"140,457"}},{"$f":"'BP Financier'!$F$44*(('BP Financier'!$C$16+'BP Financier'!$D$16+'BP Financier'!$E$16+'BP Financier'!$F$16)/('BP Financier'!$C$16+'BP Financier'!$C$19+'BP Financier'!$D$16+'BP Financier'!$D$19+'BP Financier'!$E$16+'BP Financier'!$E$19+'BP Financier'!$C$22+'BP Financier'!$D$22+'BP Financier'!$E$22+'BP Financier'!$F$16+'BP Financier'!$F$19+'BP Financier'!$F$22))*$V6282*Z6282/(1-$W6282)","v":{"v":1099276.32049765,"d":"1,099,276"}},{"$f":"'BP Financier'!$F$44*(('BP Financier'!$C$16+'BP Financier'!$D$16+'BP Financier'!$E$16+'BP Financier'!$F$16)/('BP Financier'!$C$16+'BP Financier'!$C$19+'BP Financier'!$D$16+'BP Financier'!$D$19+'BP Financier'!$E$16+'BP Financier'!$E$19+'BP Financier'!$C$22+'BP Financier'!$D$22+'BP Financier'!$E$22+'BP Financier'!$F$16+'BP Financier'!$F$19+'BP Financier'!$F$22))*$V6282*AA6282/(1-$W6282)","v":{"v":135813.4419199842,"d":"135,813"}},{"$f":"'BP Financier'!$F$44*(('BP Financier'!$C$16+'BP Financier'!$D$16+'BP Financier'!$E$16+'BP Financier'!$F$16)/('BP Financier'!$C$16+'BP Financier'!$C$19+'BP Financier'!$D$16+'BP Financier'!$D$19+'BP Financier'!$E$16+'BP Financier'!$E$19+'BP Financier'!$C$22+'BP Financier'!$D$22+'BP Financier'!$E$22+'BP Financier'!$F$16+'BP Financier'!$F$19+'BP Financier'!$F$22))*$V6282*AB6282/(1-$W6282)","v":{"v":65004.72433777021,"d":"65,005"}},null,{"v":0.0075,"d":"0.75%"},{"$f":"Actif!$E$28/100","v":{"v":0.28900000000000003,"d":"28.90%"}},{"$f":"Actif!$E$30/100","v":{"v":0.09050000000000001,"d":"9.05%"}},{"$f":"Actif!$E$31/100","v":{"v":0.0605,"d":"6.05%"}},{"$f":"Actif!$E$32/100","v":{"v":0.47350000000000003,"d":"47.35%"}},{"$f":"Actif!$E$33/100","v":{"v":0.0585,"d":"5.85%"}},{"$f":"Actif!$E$29/100","v":{"v":0.027999999999999997,"d":"2.80%"}}]
[null,"#176",61,2030,"H","A_VIE",{"v":0.44999999999999996,"d":"0.45"},{"v":0.38999999999999996,"d":"0.39"},0.6,0.6,85,0,{"$f":"ROUND(Primes!$P$4*V6283,0)","v":71},{"$f":"'BP Financier'!$F$33*(('BP Financier'!$C$16+'BP Financier'!$D$16+'BP Financier'!$E$16+'BP Financier'!$F$16)/('BP Financier'!$C$16+'BP Financier'!$C$19+'BP Financier'!$D$16+'BP Financier'!$D$19+'BP Financier'!$E$16+'BP Financier'!$E$19+'BP Financier'!$F$16+'BP Financier'!$F$19))*V6283","v":{"v":2909830.1866639922,"d":"2,909,830"}},{"v":1650655.678719808,"d":"1,650,656"},{"$f":"'BP Financier'!$F$44*(('BP Financier'!$C$16+'BP Financier'!$D$16+'BP Financier'!$E$16+'BP Financier'!$F$16)/('BP Financier'!$C$16+'BP Financier'!$C$19+'BP Financier'!$D$16+'BP Financier'!$D$19+'BP Financier'!$E$16+'BP Financier'!$E$19+'BP Financier'!$C$22+'BP Financier'!$D$22+'BP Financier'!$E$22+'BP Financier'!$F$16+'BP Financier'!$F$19+'BP Financier'!$F$22))*$V6283*X6283/(1-$W6283)","v":{"v":210104.55544886444,"d":"210,105"}},{"$f":"'BP Financier'!$F$44*(('BP Financier'!$C$16+'BP Financier'!$D$16+'BP Financier'!$E$16+'BP Financier'!$F$16)/('BP Financier'!$C$16+'BP Financier'!$C$19+'BP Financier'!$D$16+'BP Financier'!$D$19+'BP Financier'!$E$16+'BP Financier'!$E$19+'BP Financier'!$C$22+'BP Financier'!$D$22+'BP Financier'!$E$22+'BP Financier'!$F$16+'BP Financier'!$F$19+'BP Financier'!$F$22))*$V6283*Y6283/(1-$W6283)","v":{"v":140456.63651553923,"d":"140,457"}},{"$f":"'BP Financier'!$F$44*(('BP Financier'!$C$16+'BP Financier'!$D$16+'BP Financier'!$E$16+'BP Financier'!$F$16)/('BP Financier'!$C$16+'BP Financier'!$C$19+'BP Financier'!$D$16+'BP Financier'!$D$19+'BP Financier'!$E$16+'BP Financier'!$E$19+'BP Financier'!$C$22+'BP Financier'!$D$22+'BP Financier'!$E$22+'BP Financier'!$F$16+'BP Financier'!$F$19+'BP Financier'!$F$22))*$V6283*Z6283/(1-$W6283)","v":{"v":1099276.32049765,"d":"1,099,276"}},{"$f":"'BP Financier'!$F$44*(('BP Financier'!$C$16+'BP Financier'!$D$16+'BP Financier'!$E$16+'BP Financier'!$F$16)/('BP Financier'!$C$16+'BP Financier'!$C$19+'BP Financier'!$D$16+'BP Financier'!$D$19+'BP Financier'!$E$16+'BP Financier'!$E$19+'BP Financier'!$C$22+'BP Financier'!$D$22+'BP Financier'!$E$22+'BP Financier'!$F$16+'BP Financier'!$F$19+'BP Financier'!$F$22))*$V6283*AA6283/(1-$W6283)","v":{"v":135813.4419199842,"d":"135,813"}},{"$f":"'BP Financier'!$F$44*(('BP Financier'!$C$16+'BP Financier'!$D$16+'BP Financier'!$E$16+'BP Financier'!$F$16)/('BP Financier'!$C$16+'BP Financier'!$C$19+'BP Financier'!$D$16+'BP Financier'!$D$19+'BP Financier'!$E$16+'BP Financier'!$E$19+'BP Financier'!$C$22+'BP Financier'!$D$22+'BP Financier'!$E$22+'BP Financier'!$F$16+'BP Financier'!$F$19+'BP Financier'!$F$22))*$V6283*AB6283/(1-$W6283)","v":{"v":65004.72433777021,"d":"65,005"}},null,{"v":0.0075,"d":"0.75%"},{"$f":"Actif!$E$28/100","v":{"v":0.28900000000000003,"d":"28.90%"}},{"$f":"Actif!$E$30/100","v":{"v":0.09050000000000001,"d":"9.05%"}},{"$f":"Actif!$E$31/100","v":{"v":0.0605,"d":"6.05%"}},{"$f":"Actif!$E$32/100","v":{"v":0.47350000000000003,"d":"47.35%"}},{"$f":"Actif!$E$33/100","v":{"v":0.0585,"d":"5.85%"}},{"$f":"Actif!$E$29/100","v":{"v":0.027999999999999997,"d":"2.80%"}}]
[null,"#177",62,2026,"F","A_VIE",{"v":0.44999999999999996,"d":"0.45"},{"v":0.38999999999999996,"d":"0.39"},0.6,0.6,85,0,{"$f":"ROUND(Primes!$P$4*V6284,0)","v":71},{"$f":"'BP Financier'!$F$33*(('BP Financier'!$C$16+'BP Financier'!$D$16+'BP Financier'!$E$16+'BP Financier'!$F$16)/('BP Financier'!$C$16+'BP Financier'!$C$19+'BP Financier'!$D$16+'BP Financier'!$D$19+'BP Financier'!$E$16+'BP Financier'!$E$19+'BP Financier'!$F$16+'BP Financier'!$F$19))*V6284","v":{"v":2909830.1866639922,"d":"2,909,830"}},{"v":1650655.678719808,"d":"1,650,656"},{"$f":"'BP Financier'!$F$44*(('BP Financier'!$C$16+'BP Financier'!$D$16+'BP Financier'!$E$16+'BP Financier'!$F$16)/('BP Financier'!$C$16+'BP Financier'!$C$19+'BP Financier'!$D$16+'BP Financier'!$D$19+'BP Financier'!$E$16+'BP Financier'!$E$19+'BP Financier'!$C$22+'BP Financier'!$D$22+'BP Financier'!$E$22+'BP Financier'!$F$16+'BP Financier'!$F$19+'BP Financier'!$F$22))*$V6284*X6284/(1-$W6284)","v":{"v":210104.55544886444,"d":"210,105"}},{"$f":"'BP Financier'!$F$44*(('BP Financier'!$C$16+'BP Financier'!$D$16+'BP Financier'!$E$16+'BP Financier'!$F$16)/('BP Financier'!$C$16+'BP Financier'!$C$19+'BP Financier'!$D$16+'BP Financier'!$D$19+'BP Financier'!$E$16+'BP Financier'!$E$19+'BP Financier'!$C$22+'BP Financier'!$D$22+'BP Financier'!$E$22+'BP Financier'!$F$16+'BP Financier'!$F$19+'BP Financier'!$F$22))*$V6284*Y6284/(1-$W6284)","v":{"v":140456.63651553923,"d":"140,457"}},{"$f":"'BP Financier'!$F$44*(('BP Financier'!$C$16+'BP Financier'!$D$16+'BP Financier'!$E$16+'BP Financier'!$F$16)/('BP Financier'!$C$16+'BP Financier'!$C$19+'BP Financier'!$D$16+'BP Financier'!$D$19+'BP Financier'!$E$16+'BP Financier'!$E$19+'BP Financier'!$C$22+'BP Financier'!$D$22+'BP Financier'!$E$22+'BP Financier'!$F$16+'BP Financier'!$F$19+'BP Financier'!$F$22))*$V6284*Z6284/(1-$W6284)","v":{"v":1099276.32049765,"d":"1,099,276"}},{"$f":"'BP Financier'!$F$44*(('BP Financier'!$C$16+'BP Financier'!$D$16+'BP Financier'!$E$16+'BP Financier'!$F$16)/('BP Financier'!$C$16+'BP Financier'!$C$19+'BP Financier'!$D$16+'BP Financier'!$D$19+'BP Financier'!$E$16+'BP Financier'!$E$19+'BP Financier'!$C$22+'BP Financier'!$D$22+'BP Financier'!$E$22+'BP Financier'!$F$16+'BP Financier'!$F$19+'BP Financier'!$F$22))*$V6284*AA6284/(1-$W6284)","v":{"v":135813.4419199842,"d":"135,813"}},{"$f":"'BP Financier'!$F$44*(('BP Financier'!$C$16+'BP Financier'!$D$16+'BP Financier'!$E$16+'BP Financier'!$F$16)/('BP Financier'!$C$16+'BP Financier'!$C$19+'BP Financier'!$D$16+'BP Financier'!$D$19+'BP Financier'!$E$16+'BP Financier'!$E$19+'BP Financier'!$C$22+'BP Financier'!$D$22+'BP Financier'!$E$22+'BP Financier'!$F$16+'BP Financier'!$F$19+'BP Financier'!$F$22))*$V6284*AB6284/(1-$W6284)","v":{"v":65004.72433777021,"d":"65,005"}},null,{"v":0.0075,"d":"0.75%"},{"$f":"Actif!$E$28/100","v":{"v":0.28900000000000003,"d":"28.90%"}},{"$f":"Actif!$E$30/100","v":{"v":0.09050000000000001,"d":"9.05%"}},{"$f":"Actif!$E$31/100","v":{"v":0.0605,"d":"6.05%"}},{"$f":"Actif!$E$32/100","v":{"v":0.47350000000000003,"d":"47.35%"}},{"$f":"Actif!$E$33/100","v":{"v":0.0585,"d":"5.85%"}},{"$f":"Actif!$E$29/100","v":{"v":0.027999999999999997,"d":"2.80%"}}]
[null,"#178",62,2028,"F","A_VIE",{"v":0.44999999999999996,"d":"0.45"},{"v":0.38999999999999996,"d":"0.39"},0.6,0.6,85,0,{"$f":"ROUND(Primes!$P$4*V6285,0)","v":71},{"$f":"'BP Financier'!$F$33*(('BP Financier'!$C$16+'BP Financier'!$D$16+'BP Financier'!$E$16+'BP Financier'!$F$16)/('BP Financier'!$C$16+'BP Financier'!$C$19+'BP Financier'!$D$16+'BP Financier'!$D$19+'BP Financier'!$E$16+'BP Financier'!$E$19+'BP Financier'!$F$16+'BP Financier'!$F$19))*V6285","v":{"v":2909830.1866639922,"d":"2,909,830"}},{"v":1650655.678719808,"d":"1,650,656"},{"$f":"'BP Financier'!$F$44*(('BP Financier'!$C$16+'BP Financier'!$D$16+'BP Financier'!$E$16+'BP Financier'!$F$16)/('BP Financier'!$C$16+'BP Financier'!$C$19+'BP Financier'!$D$16+'BP Financier'!$D$19+'BP Financier'!$E$16+'BP Financier'!$E$19+'BP Financier'!$C$22+'BP Financier'!$D$22+'BP Financier'!$E$22+'BP Financier'!$F$16+'BP Financier'!$F$19+'BP Financier'!$F$22))*$V6285*X6285/(1-$W6285)","v":{"v":210104.55544886444,"d":"210,105"}},{"$f":"'BP Financier'!$F$44*(('BP Financier'!$C$16+'BP Financier'!$D$16+'BP Financier'!$E$16+'BP Financier'!$F$16)/('BP Financier'!$C$16+'BP Financier'!$C$19+'BP Financier'!$D$16+'BP Financier'!$D$19+'BP Financier'!$E$16+'BP Financier'!$E$19+'BP Financier'!$C$22+'BP Financier'!$D$22+'BP Financier'!$E$22+'BP Financier'!$F$16+'BP Financier'!$F$19+'BP Financier'!$F$22))*$V6285*Y6285/(1-$W6285)","v":{"v":140456.63651553923,"d":"140,457"}},{"$f":"'BP Financier'!$F$44*(('BP Financier'!$C$16+'BP Financier'!$D$16+'BP Financier'!$E$16+'BP Financier'!$F$16)/('BP Financier'!$C$16+'BP Financier'!$C$19+'BP Financier'!$D$16+'BP Financier'!$D$19+'BP Financier'!$E$16+'BP Financier'!$E$19+'BP Financier'!$C$22+'BP Financier'!$D$22+'BP Financier'!$E$22+'BP Financier'!$F$16+'BP Financier'!$F$19+'BP Financier'!$F$22))*$V6285*Z6285/(1-$W6285)","v":{"v":1099276.32049765,"d":"1,099,276"}},{"$f":"'BP Financier'!$F$44*(('BP Financier'!$C$16+'BP Financier'!$D$16+'BP Financier'!$E$16+'BP Financier'!$F$16)/('BP Financier'!$C$16+'BP Financier'!$C$19+'BP Financier'!$D$16+'BP Financier'!$D$19+'BP Financier'!$E$16+'BP Financier'!$E$19+'BP Financier'!$C$22+'BP Financier'!$D$22+'BP Financier'!$E$22+'BP Financier'!$F$16+'BP Financier'!$F$19+'BP Financier'!$F$22))*$V6285*AA6285/(1-$W6285)","v":{"v":135813.4419199842,"d":"135,813"}},{"$f":"'BP Financier'!$F$44*(('BP Financier'!$C$16+'BP Financier'!$D$16+'BP Financier'!$E$16+'BP Financier'!$F$16)/('BP Financier'!$C$16+'BP Financier'!$C$19+'BP Financier'!$D$16+'BP Financier'!$D$19+'BP Financier'!$E$16+'BP Financier'!$E$19+'BP Financier'!$C$22+'BP Financier'!$D$22+'BP Financier'!$E$22+'BP Financier'!$F$16+'BP Financier'!$F$19+'BP Financier'!$F$22))*$V6285*AB6285/(1-$W6285)","v":{"v":65004.72433777021,"d":"65,005"}},null,{"v":0.0075,"d":"0.75%"},{"$f":"Actif!$E$28/100","v":{"v":0.28900000000000003,"d":"28.90%"}},{"$f":"Actif!$E$30/100","v":{"v":0.09050000000000001,"d":"9.05%"}},{"$f":"Actif!$E$31/100","v":{"v":0.0605,"d":"6.05%"}},{"$f":"Actif!$E$32/100","v":{"v":0.47350000000000003,"d":"47.35%"}},{"$f":"Actif!$E$33/100","v":{"v":0.0585,"d":"5.85%"}},{"$f":"Actif!$E$29/100","v":{"v":0.027999999999999997,"d":"2.80%"}}]
[null,"#179",62,2029,"F","A_VIE",{"v":0.44999999999999996,"d":"0.45"},{"v":0.38999999999999996,"d":"0.39"},0.6,0.6,85,0,{"$f":"ROUND(Primes!$P$4*V6286,0)","v":71},{"$f":"'BP Financier'!$F$33*(('BP Financier'!$C$16+'BP Financier'!$D$16+'BP Financier'!$E$16+'BP Financier'!$F$16)/('BP Financier'!$C$16+'BP Financier'!$C$19+'BP Financier'!$D$16+'BP Financier'!$D$19+'BP Financier'!$E$16+'BP Financier'!$E$19+'BP Financier'!$F$16+'BP Financier'!$F$19))*V6286","v":{"v":2909830.1866639922,"d":"2,909,830"}},{"v":1650655.678719808,"d":"1,650,656"},{"$f":"'BP Financier'!$F$44*(('BP Financier'!$C$16+'BP Financier'!$D$16+'BP Financier'!$E$16+'BP Financier'!$F$16)/('BP Financier'!$C$16+'BP Financier'!$C$19+'BP Financier'!$D$16+'BP Financier'!$D$19+'BP Financier'!$E$16+'BP Financier'!$E$19+'BP Financier'!$C$22+'BP Financier'!$D$22+'BP Financier'!$E$22+'BP Financier'!$F$16+'BP Financier'!$F$19+'BP Financier'!$F$22))*$V6286*X6286/(1-$W6286)","v":{"v":210104.55544886444,"d":"210,105"}},{"$f":"'BP Financier'!$F$44*(('BP Financier'!$C$16+'BP Financier'!$D$16+'BP Financier'!$E$16+'BP Financier'!$F$16)/('BP Financier'!$C$16+'BP Financier'!$C$19+'BP Financier'!$D$16+'BP Financier'!$D$19+'BP Financier'!$E$16+'BP Financier'!$E$19+'BP Financier'!$C$22+'BP Financier'!$D$22+'BP Financier'!$E$22+'BP Financier'!$F$16+'BP Financier'!$F$19+'BP Financier'!$F$22))*$V6286*Y6286/(1-$W6286)","v":{"v":140456.63651553923,"d":"140,457"}},{"$f":"'BP Financier'!$F$44*(('BP Financier'!$C$16+'BP Financier'!$D$16+'BP Financier'!$E$16+'BP Financier'!$F$16)/('BP Financier'!$C$16+'BP Financier'!$C$19+'BP Financier'!$D$16+'BP Financier'!$D$19+'BP Financier'!$E$16+'BP Financier'!$E$19+'BP Financier'!$C$22+'BP Financier'!$D$22+'BP Financier'!$E$22+'BP Financier'!$F$16+'BP Financier'!$F$19+'BP Financier'!$F$22))*$V6286*Z6286/(1-$W6286)","v":{"v":1099276.32049765,"d":"1,099,276"}},{"$f":"'BP Financier'!$F$44*(('BP Financier'!$C$16+'BP Financier'!$D$16+'BP Financier'!$E$16+'BP Financier'!$F$16)/('BP Financier'!$C$16+'BP Financier'!$C$19+'BP Financier'!$D$16+'BP Financier'!$D$19+'BP Financier'!$E$16+'BP Financier'!$E$19+'BP Financier'!$C$22+'BP Financier'!$D$22+'BP Financier'!$E$22+'BP Financier'!$F$16+'BP Financier'!$F$19+'BP Financier'!$F$22))*$V6286*AA6286/(1-$W6286)","v":{"v":135813.4419199842,"d":"135,813"}},{"$f":"'BP Financier'!$F$44*(('BP Financier'!$C$16+'BP Financier'!$D$16+'BP Financier'!$E$16+'BP Financier'!$F$16)/('BP Financier'!$C$16+'BP Financier'!$C$19+'BP Financier'!$D$16+'BP Financier'!$D$19+'BP Financier'!$E$16+'BP Financier'!$E$19+'BP Financier'!$C$22+'BP Financier'!$D$22+'BP Financier'!$E$22+'BP Financier'!$F$16+'BP Financier'!$F$19+'BP Financier'!$F$22))*$V6286*AB6286/(1-$W6286)","v":{"v":65004.72433777021,"d":"65,005"}},null,{"v":0.0075,"d":"0.75%"},{"$f":"Actif!$E$28/100","v":{"v":0.28900000000000003,"d":"28.90%"}},{"$f":"Actif!$E$30/100","v":{"v":0.09050000000000001,"d":"9.05%"}},{"$f":"Actif!$E$31/100","v":{"v":0.0605,"d":"6.05%"}},{"$f":"Actif!$E$32/100","v":{"v":0.47350000000000003,"d":"47.35%"}},{"$f":"Actif!$E$33/100","v":{"v":0.0585,"d":"5.85%"}},{"$f":"Actif!$E$29/100","v":{"v":0.027999999999999997,"d":"2.80%"}}]
[null,"#180",62,2030,"F","A_VIE",{"v":0.44999999999999996,"d":"0.45"},{"v":0.38999999999999996,"d":"0.39"},0.6,0.6,85,0,{"$f":"ROUND(Primes!$P$4*V6287,0)","v":71},{"$f":"'BP Financier'!$F$33*(('BP Financier'!$C$16+'BP Financier'!$D$16+'BP Financier'!$E$16+'BP Financier'!$F$16)/('BP Financier'!$C$16+'BP Financier'!$C$19+'BP Financier'!$D$16+'BP Financier'!$D$19+'BP Financier'!$E$16+'BP Financier'!$E$19+'BP Financier'!$F$16+'BP Financier'!$F$19))*V6287","v":{"v":2909830.1866639922,"d":"2,909,830"}},{"v":1650655.678719808,"d":"1,650,656"},{"$f":"'BP Financier'!$F$44*(('BP Financier'!$C$16+'BP Financier'!$D$16+'BP Financier'!$E$16+'BP Financier'!$F$16)/('BP Financier'!$C$16+'BP Financier'!$C$19+'BP Financier'!$D$16+'BP Financier'!$D$19+'BP Financier'!$E$16+'BP Financier'!$E$19+'BP Financier'!$C$22+'BP Financier'!$D$22+'BP Financier'!$E$22+'BP Financier'!$F$16+'BP Financier'!$F$19+'BP Financier'!$F$22))*$V6287*X6287/(1-$W6287)","v":{"v":210104.55544886444,"d":"210,105"}},{"$f":"'BP Financier'!$F$44*(('BP Financier'!$C$16+'BP Financier'!$D$16+'BP Financier'!$E$16+'BP Financier'!$F$16)/('BP Financier'!$C$16+'BP Financier'!$C$19+'BP Financier'!$D$16+'BP Financier'!$D$19+'BP Financier'!$E$16+'BP Financier'!$E$19+'BP Financier'!$C$22+'BP Financier'!$D$22+'BP Financier'!$E$22+'BP Financier'!$F$16+'BP Financier'!$F$19+'BP Financier'!$F$22))*$V6287*Y6287/(1-$W6287)","v":{"v":140456.63651553923,"d":"140,457"}},{"$f":"'BP Financier'!$F$44*(('BP Financier'!$C$16+'BP Financier'!$D$16+'BP Financier'!$E$16+'BP Financier'!$F$16)/('BP Financier'!$C$16+'BP Financier'!$C$19+'BP Financier'!$D$16+'BP Financier'!$D$19+'BP Financier'!$E$16+'BP Financier'!$E$19+'BP Financier'!$C$22+'BP Financier'!$D$22+'BP Financier'!$E$22+'BP Financier'!$F$16+'BP Financier'!$F$19+'BP Financier'!$F$22))*$V6287*Z6287/(1-$W6287)","v":{"v":1099276.32049765,"d":"1,099,276"}},{"$f":"'BP Financier'!$F$44*(('BP Financier'!$C$16+'BP Financier'!$D$16+'BP Financier'!$E$16+'BP Financier'!$F$16)/('BP Financier'!$C$16+'BP Financier'!$C$19+'BP Financier'!$D$16+'BP Financier'!$D$19+'BP Financier'!$E$16+'BP Financier'!$E$19+'BP Financier'!$C$22+'BP Financier'!$D$22+'BP Financier'!$E$22+'BP Financier'!$F$16+'BP Financier'!$F$19+'BP Financier'!$F$22))*$V6287*AA6287/(1-$W6287)","v":{"v":135813.4419199842,"d":"135,813"}},{"$f":"'BP Financier'!$F$44*(('BP Financier'!$C$16+'BP Financier'!$D$16+'BP Financier'!$E$16+'BP Financier'!$F$16)/('BP Financier'!$C$16+'BP Financier'!$C$19+'BP Financier'!$D$16+'BP Financier'!$D$19+'BP Financier'!$E$16+'BP Financier'!$E$19+'BP Financier'!$C$22+'BP Financier'!$D$22+'BP Financier'!$E$22+'BP Financier'!$F$16+'BP Financier'!$F$19+'BP Financier'!$F$22))*$V6287*AB6287/(1-$W6287)","v":{"v":65004.72433777021,"d":"65,005"}},null,{"v":0.0075,"d":"0.75%"},{"$f":"Actif!$E$28/100","v":{"v":0.28900000000000003,"d":"28.90%"}},{"$f":"Actif!$E$30/100","v":{"v":0.09050000000000001,"d":"9.05%"}},{"$f":"Actif!$E$31/100","v":{"v":0.0605,"d":"6.05%"}},{"$f":"Actif!$E$32/100","v":{"v":0.47350000000000003,"d":"47.35%"}},{"$f":"Actif!$E$33/100","v":{"v":0.0585,"d":"5.85%"}},{"$f":"Actif!$E$29/100","v":{"v":0.027999999999999997,"d":"2.80%"}}]
[null,"#181",63,2026,"H","A_VIE",{"v":0.44999999999999996,"d":"0.45"},{"v":0.38999999999999996,"d":"0.39"},0.6,0.6,85,0,{"$f":"ROUND(Primes!$P$4*V6288,0)","v":71},{"$f":"'BP Financier'!$F$33*(('BP Financier'!$C$16+'BP Financier'!$D$16+'BP Financier'!$E$16+'BP Financier'!$F$16)/('BP Financier'!$C$16+'BP Financier'!$C$19+'BP Financier'!$D$16+'BP Financier'!$D$19+'BP Financier'!$E$16+'BP Financier'!$E$19+'BP Financier'!$F$16+'BP Financier'!$F$19))*V6288","v":{"v":2909830.1866639922,"d":"2,909,830"}},{"v":1650655.678719808,"d":"1,650,656"},{"$f":"'BP Financier'!$F$44*(('BP Financier'!$C$16+'BP Financier'!$D$16+'BP Financier'!$E$16+'BP Financier'!$F$16)/('BP Financier'!$C$16+'BP Financier'!$C$19+'BP Financier'!$D$16+'BP Financier'!$D$19+'BP Financier'!$E$16+'BP Financier'!$E$19+'BP Financier'!$C$22+'BP Financier'!$D$22+'BP Financier'!$E$22+'BP Financier'!$F$16+'BP Financier'!$F$19+'BP Financier'!$F$22))*$V6288*X6288/(1-$W6288)","v":{"v":210104.55544886444,"d":"210,105"}},{"$f":"'BP Financier'!$F$44*(('BP Financier'!$C$16+'BP Financier'!$D$16+'BP Financier'!$E$16+'BP Financier'!$F$16)/('BP Financier'!$C$16+'BP Financier'!$C$19+'BP Financier'!$D$16+'BP Financier'!$D$19+'BP Financier'!$E$16+'BP Financier'!$E$19+'BP Financier'!$C$22+'BP Financier'!$D$22+'BP Financier'!$E$22+'BP Financier'!$F$16+'BP Financier'!$F$19+'BP Financier'!$F$22))*$V6288*Y6288/(1-$W6288)","v":{"v":140456.63651553923,"d":"140,457"}},{"$f":"'BP Financier'!$F$44*(('BP Financier'!$C$16+'BP Financier'!$D$16+'BP Financier'!$E$16+'BP Financier'!$F$16)/('BP Financier'!$C$16+'BP Financier'!$C$19+'BP Financier'!$D$16+'BP Financier'!$D$19+'BP Financier'!$E$16+'BP Financier'!$E$19+'BP Financier'!$C$22+'BP Financier'!$D$22+'BP Financier'!$E$22+'BP Financier'!$F$16+'BP Financier'!$F$19+'BP Financier'!$F$22))*$V6288*Z6288/(1-$W6288)","v":{"v":1099276.32049765,"d":"1,099,276"}},{"$f":"'BP Financier'!$F$44*(('BP Financier'!$C$16+'BP Financier'!$D$16+'BP Financier'!$E$16+'BP Financier'!$F$16)/('BP Financier'!$C$16+'BP Financier'!$C$19+'BP Financier'!$D$16+'BP Financier'!$D$19+'BP Financier'!$E$16+'BP Financier'!$E$19+'BP Financier'!$C$22+'BP Financier'!$D$22+'BP Financier'!$E$22+'BP Financier'!$F$16+'BP Financier'!$F$19+'BP Financier'!$F$22))*$V6288*AA6288/(1-$W6288)","v":{"v":135813.4419199842,"d":"135,813"}},{"$f":"'BP Financier'!$F$44*(('BP Financier'!$C$16+'BP Financier'!$D$16+'BP Financier'!$E$16+'BP Financier'!$F$16)/('BP Financier'!$C$16+'BP Financier'!$C$19+'BP Financier'!$D$16+'BP Financier'!$D$19+'BP Financier'!$E$16+'BP Financier'!$E$19+'BP Financier'!$C$22+'BP Financier'!$D$22+'BP Financier'!$E$22+'BP Financier'!$F$16+'BP Financier'!$F$19+'BP Financier'!$F$22))*$V6288*AB6288/(1-$W6288)","v":{"v":65004.72433777021,"d":"65,005"}},null,{"v":0.0075,"d":"0.75%"},{"$f":"Actif!$E$28/100","v":{"v":0.28900000000000003,"d":"28.90%"}},{"$f":"Actif!$E$30/100","v":{"v":0.09050000000000001,"d":"9.05%"}},{"$f":"Actif!$E$31/100","v":{"v":0.0605,"d":"6.05%"}},{"$f":"Actif!$E$32/100","v":{"v":0.47350000000000003,"d":"47.35%"}},{"$f":"Actif!$E$33/100","v":{"v":0.0585,"d":"5.85%"}},{"$f":"Actif!$E$29/100","v":{"v":0.027999999999999997,"d":"2.80%"}}]
[null,"#182",63,2028,"H","A_VIE",{"v":0.44999999999999996,"d":"0.45"},{"v":0.38999999999999996,"d":"0.39"},0.6,0.6,85,0,{"$f":"ROUND(Primes!$P$4*V6289,0)","v":71},{"$f":"'BP Financier'!$F$33*(('BP Financier'!$C$16+'BP Financier'!$D$16+'BP Financier'!$E$16+'BP Financier'!$F$16)/('BP Financier'!$C$16+'BP Financier'!$C$19+'BP Financier'!$D$16+'BP Financier'!$D$19+'BP Financier'!$E$16+'BP Financier'!$E$19+'BP Financier'!$F$16+'BP Financier'!$F$19))*V6289","v":{"v":2909830.1866639922,"d":"2,909,830"}},{"v":1650655.678719808,"d":"1,650,656"},{"$f":"'BP Financier'!$F$44*(('BP Financier'!$C$16+'BP Financier'!$D$16+'BP Financier'!$E$16+'BP Financier'!$F$16)/('BP Financier'!$C$16+'BP Financier'!$C$19+'BP Financier'!$D$16+'BP Financier'!$D$19+'BP Financier'!$E$16+'BP Financier'!$E$19+'BP Financier'!$C$22+'BP Financier'!$D$22+'BP Financier'!$E$22+'BP Financier'!$F$16+'BP Financier'!$F$19+'BP Financier'!$F$22))*$V6289*X6289/(1-$W6289)","v":{"v":210104.55544886444,"d":"210,105"}},{"$f":"'BP Financier'!$F$44*(('BP Financier'!$C$16+'BP Financier'!$D$16+'BP Financier'!$E$16+'BP Financier'!$F$16)/('BP Financier'!$C$16+'BP Financier'!$C$19+'BP Financier'!$D$16+'BP Financier'!$D$19+'BP Financier'!$E$16+'BP Financier'!$E$19+'BP Financier'!$C$22+'BP Financier'!$D$22+'BP Financier'!$E$22+'BP Financier'!$F$16+'BP Financier'!$F$19+'BP Financier'!$F$22))*$V6289*Y6289/(1-$W6289)","v":{"v":140456.63651553923,"d":"140,457"}},{"$f":"'BP Financier'!$F$44*(('BP Financier'!$C$16+'BP Financier'!$D$16+'BP Financier'!$E$16+'BP Financier'!$F$16)/('BP Financier'!$C$16+'BP Financier'!$C$19+'BP Financier'!$D$16+'BP Financier'!$D$19+'BP Financier'!$E$16+'BP Financier'!$E$19+'BP Financier'!$C$22+'BP Financier'!$D$22+'BP Financier'!$E$22+'BP Financier'!$F$16+'BP Financier'!$F$19+'BP Financier'!$F$22))*$V6289*Z6289/(1-$W6289)","v":{"v":1099276.32049765,"d":"1,099,276"}},{"$f":"'BP Financier'!$F$44*(('BP Financier'!$C$16+'BP Financier'!$D$16+'BP Financier'!$E$16+'BP Financier'!$F$16)/('BP Financier'!$C$16+'BP Financier'!$C$19+'BP Financier'!$D$16+'BP Financier'!$D$19+'BP Financier'!$E$16+'BP Financier'!$E$19+'BP Financier'!$C$22+'BP Financier'!$D$22+'BP Financier'!$E$22+'BP Financier'!$F$16+'BP Financier'!$F$19+'BP Financier'!$F$22))*$V6289*AA6289/(1-$W6289)","v":{"v":135813.4419199842,"d":"135,813"}},{"$f":"'BP Financier'!$F$44*(('BP Financier'!$C$16+'BP Financier'!$D$16+'BP Financier'!$E$16+'BP Financier'!$F$16)/('BP Financier'!$C$16+'BP Financier'!$C$19+'BP Financier'!$D$16+'BP Financier'!$D$19+'BP Financier'!$E$16+'BP Financier'!$E$19+'BP Financier'!$C$22+'BP Financier'!$D$22+'BP Financier'!$E$22+'BP Financier'!$F$16+'BP Financier'!$F$19+'BP Financier'!$F$22))*$V6289*AB6289/(1-$W6289)","v":{"v":65004.72433777021,"d":"65,005"}},null,{"v":0.0075,"d":"0.75%"},{"$f":"Actif!$E$28/100","v":{"v":0.28900000000000003,"d":"28.90%"}},{"$f":"Actif!$E$30/100","v":{"v":0.09050000000000001,"d":"9.05%"}},{"$f":"Actif!$E$31/100","v":{"v":0.0605,"d":"6.05%"}},{"$f":"Actif!$E$32/100","v":{"v":0.47350000000000003,"d":"47.35%"}},{"$f":"Actif!$E$33/100","v":{"v":0.0585,"d":"5.85%"}},{"$f":"Actif!$E$29/100","v":{"v":0.027999999999999997,"d":"2.80%"}}]
[null,"#183",63,2029,"H","A_VIE",{"v":0.44999999999999996,"d":"0.45"},{"v":0.38999999999999996,"d":"0.39"},0.6,0.6,85,0,{"$f":"ROUND(Primes!$P$4*V6290,0)","v":71},{"$f":"'BP Financier'!$F$33*(('BP Financier'!$C$16+'BP Financier'!$D$16+'BP Financier'!$E$16+'BP Financier'!$F$16)/('BP Financier'!$C$16+'BP Financier'!$C$19+'BP Financier'!$D$16+'BP Financier'!$D$19+'BP Financier'!$E$16+'BP Financier'!$E$19+'BP Financier'!$F$16+'BP Financier'!$F$19))*V6290","v":{"v":2909830.1866639922,"d":"2,909,830"}},{"v":1650655.678719808,"d":"1,650,656"},{"$f":"'BP Financier'!$F$44*(('BP Financier'!$C$16+'BP Financier'!$D$16+'BP Financier'!$E$16+'BP Financier'!$F$16)/('BP Financier'!$C$16+'BP Financier'!$C$19+'BP Financier'!$D$16+'BP Financier'!$D$19+'BP Financier'!$E$16+'BP Financier'!$E$19+'BP Financier'!$C$22+'BP Financier'!$D$22+'BP Financier'!$E$22+'BP Financier'!$F$16+'BP Financier'!$F$19+'BP Financier'!$F$22))*$V6290*X6290/(1-$W6290)","v":{"v":210104.55544886444,"d":"210,105"}},{"$f":"'BP Financier'!$F$44*(('BP Financier'!$C$16+'BP Financier'!$D$16+'BP Financier'!$E$16+'BP Financier'!$F$16)/('BP Financier'!$C$16+'BP Financier'!$C$19+'BP Financier'!$D$16+'BP Financier'!$D$19+'BP Financier'!$E$16+'BP Financier'!$E$19+'BP Financier'!$C$22+'BP Financier'!$D$22+'BP Financier'!$E$22+'BP Financier'!$F$16+'BP Financier'!$F$19+'BP Financier'!$F$22))*$V6290*Y6290/(1-$W6290)","v":{"v":140456.63651553923,"d":"140,457"}},{"$f":"'BP Financier'!$F$44*(('BP Financier'!$C$16+'BP Financier'!$D$16+'BP Financier'!$E$16+'BP Financier'!$F$16)/('BP Financier'!$C$16+'BP Financier'!$C$19+'BP Financier'!$D$16+'BP Financier'!$D$19+'BP Financier'!$E$16+'BP Financier'!$E$19+'BP Financier'!$C$22+'BP Financier'!$D$22+'BP Financier'!$E$22+'BP Financier'!$F$16+'BP Financier'!$F$19+'BP Financier'!$F$22))*$V6290*Z6290/(1-$W6290)","v":{"v":1099276.32049765,"d":"1,099,276"}},{"$f":"'BP Financier'!$F$44*(('BP Financier'!$C$16+'BP Financier'!$D$16+'BP Financier'!$E$16+'BP Financier'!$F$16)/('BP Financier'!$C$16+'BP Financier'!$C$19+'BP Financier'!$D$16+'BP Financier'!$D$19+'BP Financier'!$E$16+'BP Financier'!$E$19+'BP Financier'!$C$22+'BP Financier'!$D$22+'BP Financier'!$E$22+'BP Financier'!$F$16+'BP Financier'!$F$19+'BP Financier'!$F$22))*$V6290*AA6290/(1-$W6290)","v":{"v":135813.4419199842,"d":"135,813"}},{"$f":"'BP Financier'!$F$44*(('BP Financier'!$C$16+'BP Financier'!$D$16+'BP Financier'!$E$16+'BP Financier'!$F$16)/('BP Financier'!$C$16+'BP Financier'!$C$19+'BP Financier'!$D$16+'BP Financier'!$D$19+'BP Financier'!$E$16+'BP Financier'!$E$19+'BP Financier'!$C$22+'BP Financier'!$D$22+'BP Financier'!$E$22+'BP Financier'!$F$16+'BP Financier'!$F$19+'BP Financier'!$F$22))*$V6290*AB6290/(1-$W6290)","v":{"v":65004.72433777021,"d":"65,005"}},null,{"v":0.0075,"d":"0.75%"},{"$f":"Actif!$E$28/100","v":{"v":0.28900000000000003,"d":"28.90%"}},{"$f":"Actif!$E$30/100","v":{"v":0.09050000000000001,"d":"9.05%"}},{"$f":"Actif!$E$31/100","v":{"v":0.0605,"d":"6.05%"}},{"$f":"Actif!$E$32/100","v":{"v":0.47350000000000003,"d":"47.35%"}},{"$f":"Actif!$E$33/100","v":{"v":0.0585,"d":"5.85%"}},{"$f":"Actif!$E$29/100","v":{"v":0.027999999999999997,"d":"2.80%"}}]
[null,"#184",63,2030,"H","A_VIE",{"v":0.44999999999999996,"d":"0.45"},{"v":0.38999999999999996,"d":"0.39"},0.6,0.6,85,0,{"$f":"ROUND(Primes!$P$4*V6291,0)","v":71},{"$f":"'BP Financier'!$F$33*(('BP Financier'!$C$16+'BP Financier'!$D$16+'BP Financier'!$E$16+'BP Financier'!$F$16)/('BP Financier'!$C$16+'BP Financier'!$C$19+'BP Financier'!$D$16+'BP Financier'!$D$19+'BP Financier'!$E$16+'BP Financier'!$E$19+'BP Financier'!$F$16+'BP Financier'!$F$19))*V6291","v":{"v":2909830.1866639922,"d":"2,909,830"}},{"v":1650655.678719808,"d":"1,650,656"},{"$f":"'BP Financier'!$F$44*(('BP Financier'!$C$16+'BP Financier'!$D$16+'BP Financier'!$E$16+'BP Financier'!$F$16)/('BP Financier'!$C$16+'BP Financier'!$C$19+'BP Financier'!$D$16+'BP Financier'!$D$19+'BP Financier'!$E$16+'BP Financier'!$E$19+'BP Financier'!$C$22+'BP Financier'!$D$22+'BP Financier'!$E$22+'BP Financier'!$F$16+'BP Financier'!$F$19+'BP Financier'!$F$22))*$V6291*X6291/(1-$W6291)","v":{"v":210104.55544886444,"d":"210,105"}},{"$f":"'BP Financier'!$F$44*(('BP Financier'!$C$16+'BP Financier'!$D$16+'BP Financier'!$E$16+'BP Financier'!$F$16)/('BP Financier'!$C$16+'BP Financier'!$C$19+'BP Financier'!$D$16+'BP Financier'!$D$19+'BP Financier'!$E$16+'BP Financier'!$E$19+'BP Financier'!$C$22+'BP Financier'!$D$22+'BP Financier'!$E$22+'BP Financier'!$F$16+'BP Financier'!$F$19+'BP Financier'!$F$22))*$V6291*Y6291/(1-$W6291)","v":{"v":140456.63651553923,"d":"140,457"}},{"$f":"'BP Financier'!$F$44*(('BP Financier'!$C$16+'BP Financier'!$D$16+'BP Financier'!$E$16+'BP Financier'!$F$16)/('BP Financier'!$C$16+'BP Financier'!$C$19+'BP Financier'!$D$16+'BP Financier'!$D$19+'BP Financier'!$E$16+'BP Financier'!$E$19+'BP Financier'!$C$22+'BP Financier'!$D$22+'BP Financier'!$E$22+'BP Financier'!$F$16+'BP Financier'!$F$19+'BP Financier'!$F$22))*$V6291*Z6291/(1-$W6291)","v":{"v":1099276.32049765,"d":"1,099,276"}},{"$f":"'BP Financier'!$F$44*(('BP Financier'!$C$16+'BP Financier'!$D$16+'BP Financier'!$E$16+'BP Financier'!$F$16)/('BP Financier'!$C$16+'BP Financier'!$C$19+'BP Financier'!$D$16+'BP Financier'!$D$19+'BP Financier'!$E$16+'BP Financier'!$E$19+'BP Financier'!$C$22+'BP Financier'!$D$22+'BP Financier'!$E$22+'BP Financier'!$F$16+'BP Financier'!$F$19+'BP Financier'!$F$22))*$V6291*AA6291/(1-$W6291)","v":{"v":135813.4419199842,"d":"135,813"}},{"$f":"'BP Financier'!$F$44*(('BP Financier'!$C$16+'BP Financier'!$D$16+'BP Financier'!$E$16+'BP Financier'!$F$16)/('BP Financier'!$C$16+'BP Financier'!$C$19+'BP Financier'!$D$16+'BP Financier'!$D$19+'BP Financier'!$E$16+'BP Financier'!$E$19+'BP Financier'!$C$22+'BP Financier'!$D$22+'BP Financier'!$E$22+'BP Financier'!$F$16+'BP Financier'!$F$19+'BP Financier'!$F$22))*$V6291*AB6291/(1-$W6291)","v":{"v":65004.72433777021,"d":"65,005"}},null,{"v":0.0075,"d":"0.75%"},{"$f":"Actif!$E$28/100","v":{"v":0.28900000000000003,"d":"28.90%"}},{"$f":"Actif!$E$30/100","v":{"v":0.09050000000000001,"d":"9.05%"}},{"$f":"Actif!$E$31/100","v":{"v":0.0605,"d":"6.05%"}},{"$f":"Actif!$E$32/100","v":{"v":0.47350000000000003,"d":"47.35%"}},{"$f":"Actif!$E$33/100","v":{"v":0.0585,"d":"5.85%"}},{"$f":"Actif!$E$29/100","v":{"v":0.027999999999999997,"d":"2.80%"}}]
[null,"#185",64,2026,"H","A_VIE",{"v":0.44999999999999996,"d":"0.45"},{"v":0.38999999999999996,"d":"0.39"},0.6,0.6,85,0,{"$f":"ROUND(Primes!$P$4*V6292,0)","v":71},{"$f":"'BP Financier'!$F$33*(('BP Financier'!$C$16+'BP Financier'!$D$16+'BP Financier'!$E$16+'BP Financier'!$F$16)/('BP Financier'!$C$16+'BP Financier'!$C$19+'BP Financier'!$D$16+'BP Financier'!$D$19+'BP Financier'!$E$16+'BP Financier'!$E$19+'BP Financier'!$F$16+'BP Financier'!$F$19))*V6292","v":{"v":2909830.1866639922,"d":"2,909,830"}},{"v":1650655.678719808,"d":"1,650,656"},{"$f":"'BP Financier'!$F$44*(('BP Financier'!$C$16+'BP Financier'!$D$16+'BP Financier'!$E$16+'BP Financier'!$F$16)/('BP Financier'!$C$16+'BP Financier'!$C$19+'BP Financier'!$D$16+'BP Financier'!$D$19+'BP Financier'!$E$16+'BP Financier'!$E$19+'BP Financier'!$C$22+'BP Financier'!$D$22+'BP Financier'!$E$22+'BP Financier'!$F$16+'BP Financier'!$F$19+'BP Financier'!$F$22))*$V6292*X6292/(1-$W6292)","v":{"v":210104.55544886444,"d":"210,105"}},{"$f":"'BP Financier'!$F$44*(('BP Financier'!$C$16+'BP Financier'!$D$16+'BP Financier'!$E$16+'BP Financier'!$F$16)/('BP Financier'!$C$16+'BP Financier'!$C$19+'BP Financier'!$D$16+'BP Financier'!$D$19+'BP Financier'!$E$16+'BP Financier'!$E$19+'BP Financier'!$C$22+'BP Financier'!$D$22+'BP Financier'!$E$22+'BP Financier'!$F$16+'BP Financier'!$F$19+'BP Financier'!$F$22))*$V6292*Y6292/(1-$W6292)","v":{"v":140456.63651553923,"d":"140,457"}},{"$f":"'BP Financier'!$F$44*(('BP Financier'!$C$16+'BP Financier'!$D$16+'BP Financier'!$E$16+'BP Financier'!$F$16)/('BP Financier'!$C$16+'BP Financier'!$C$19+'BP Financier'!$D$16+'BP Financier'!$D$19+'BP Financier'!$E$16+'BP Financier'!$E$19+'BP Financier'!$C$22+'BP Financier'!$D$22+'BP Financier'!$E$22+'BP Financier'!$F$16+'BP Financier'!$F$19+'BP Financier'!$F$22))*$V6292*Z6292/(1-$W6292)","v":{"v":1099276.32049765,"d":"1,099,276"}},{"$f":"'BP Financier'!$F$44*(('BP Financier'!$C$16+'BP Financier'!$D$16+'BP Financier'!$E$16+'BP Financier'!$F$16)/('BP Financier'!$C$16+'BP Financier'!$C$19+'BP Financier'!$D$16+'BP Financier'!$D$19+'BP Financier'!$E$16+'BP Financier'!$E$19+'BP Financier'!$C$22+'BP Financier'!$D$22+'BP Financier'!$E$22+'BP Financier'!$F$16+'BP Financier'!$F$19+'BP Financier'!$F$22))*$V6292*AA6292/(1-$W6292)","v":{"v":135813.4419199842,"d":"135,813"}},{"$f":"'BP Financier'!$F$44*(('BP Financier'!$C$16+'BP Financier'!$D$16+'BP Financier'!$E$16+'BP Financier'!$F$16)/('BP Financier'!$C$16+'BP Financier'!$C$19+'BP Financier'!$D$16+'BP Financier'!$D$19+'BP Financier'!$E$16+'BP Financier'!$E$19+'BP Financier'!$C$22+'BP Financier'!$D$22+'BP Financier'!$E$22+'BP Financier'!$F$16+'BP Financier'!$F$19+'BP Financier'!$F$22))*$V6292*AB6292/(1-$W6292)","v":{"v":65004.72433777021,"d":"65,005"}},null,{"v":0.0075,"d":"0.75%"},{"$f":"Actif!$E$28/100","v":{"v":0.28900000000000003,"d":"28.90%"}},{"$f":"Actif!$E$30/100","v":{"v":0.09050000000000001,"d":"9.05%"}},{"$f":"Actif!$E$31/100","v":{"v":0.0605,"d":"6.05%"}},{"$f":"Actif!$E$32/100","v":{"v":0.47350000000000003,"d":"47.35%"}},{"$f":"Actif!$E$33/100","v":{"v":0.0585,"d":"5.85%"}},{"$f":"Actif!$E$29/100","v":{"v":0.027999999999999997,"d":"2.80%"}}]
[null,"#186",64,2028,"H","A_VIE",{"v":0.44999999999999996,"d":"0.45"},{"v":0.38999999999999996,"d":"0.39"},0.6,0.6,85,0,{"$f":"ROUND(Primes!$P$4*V6293,0)","v":71},{"$f":"'BP Financier'!$F$33*(('BP Financier'!$C$16+'BP Financier'!$D$16+'BP Financier'!$E$16+'BP Financier'!$F$16)/('BP Financier'!$C$16+'BP Financier'!$C$19+'BP Financier'!$D$16+'BP Financier'!$D$19+'BP Financier'!$E$16+'BP Financier'!$E$19+'BP Financier'!$F$16+'BP Financier'!$F$19))*V6293","v":{"v":2909830.1866639922,"d":"2,909,830"}},{"v":1650655.678719808,"d":"1,650,656"},{"$f":"'BP Financier'!$F$44*(('BP Financier'!$C$16+'BP Financier'!$D$16+'BP Financier'!$E$16+'BP Financier'!$F$16)/('BP Financier'!$C$16+'BP Financier'!$C$19+'BP Financier'!$D$16+'BP Financier'!$D$19+'BP Financier'!$E$16+'BP Financier'!$E$19+'BP Financier'!$C$22+'BP Financier'!$D$22+'BP Financier'!$E$22+'BP Financier'!$F$16+'BP Financier'!$F$19+'BP Financier'!$F$22))*$V6293*X6293/(1-$W6293)","v":{"v":210104.55544886444,"d":"210,105"}},{"$f":"'BP Financier'!$F$44*(('BP Financier'!$C$16+'BP Financier'!$D$16+'BP Financier'!$E$16+'BP Financier'!$F$16)/('BP Financier'!$C$16+'BP Financier'!$C$19+'BP Financier'!$D$16+'BP Financier'!$D$19+'BP Financier'!$E$16+'BP Financier'!$E$19+'BP Financier'!$C$22+'BP Financier'!$D$22+'BP Financier'!$E$22+'BP Financier'!$F$16+'BP Financier'!$F$19+'BP Financier'!$F$22))*$V6293*Y6293/(1-$W6293)","v":{"v":140456.63651553923,"d":"140,457"}},{"$f":"'BP Financier'!$F$44*(('BP Financier'!$C$16+'BP Financier'!$D$16+'BP Financier'!$E$16+'BP Financier'!$F$16)/('BP Financier'!$C$16+'BP Financier'!$C$19+'BP Financier'!$D$16+'BP Financier'!$D$19+'BP Financier'!$E$16+'BP Financier'!$E$19+'BP Financier'!$C$22+'BP Financier'!$D$22+'BP Financier'!$E$22+'BP Financier'!$F$16+'BP Financier'!$F$19+'BP Financier'!$F$22))*$V6293*Z6293/(1-$W6293)","v":{"v":1099276.32049765,"d":"1,099,276"}},{"$f":"'BP Financier'!$F$44*(('BP Financier'!$C$16+'BP Financier'!$D$16+'BP Financier'!$E$16+'BP Financier'!$F$16)/('BP Financier'!$C$16+'BP Financier'!$C$19+'BP Financier'!$D$16+'BP Financier'!$D$19+'BP Financier'!$E$16+'BP Financier'!$E$19+'BP Financier'!$C$22+'BP Financier'!$D$22+'BP Financier'!$E$22+'BP Financier'!$F$16+'BP Financier'!$F$19+'BP Financier'!$F$22))*$V6293*AA6293/(1-$W6293)","v":{"v":135813.4419199842,"d":"135,813"}},{"$f":"'BP Financier'!$F$44*(('BP Financier'!$C$16+'BP Financier'!$D$16+'BP Financier'!$E$16+'BP Financier'!$F$16)/('BP Financier'!$C$16+'BP Financier'!$C$19+'BP Financier'!$D$16+'BP Financier'!$D$19+'BP Financier'!$E$16+'BP Financier'!$E$19+'BP Financier'!$C$22+'BP Financier'!$D$22+'BP Financier'!$E$22+'BP Financier'!$F$16+'BP Financier'!$F$19+'BP Financier'!$F$22))*$V6293*AB6293/(1-$W6293)","v":{"v":65004.72433777021,"d":"65,005"}},null,{"v":0.0075,"d":"0.75%"},{"$f":"Actif!$E$28/100","v":{"v":0.28900000000000003,"d":"28.90%"}},{"$f":"Actif!$E$30/100","v":{"v":0.09050000000000001,"d":"9.05%"}},{"$f":"Actif!$E$31/100","v":{"v":0.0605,"d":"6.05%"}},{"$f":"Actif!$E$32/100","v":{"v":0.47350000000000003,"d":"47.35%"}},{"$f":"Actif!$E$33/100","v":{"v":0.0585,"d":"5.85%"}},{"$f":"Actif!$E$29/100","v":{"v":0.027999999999999997,"d":"2.80%"}}]
[null,"#187",64,2029,"H","A_VIE",{"v":0.44999999999999996,"d":"0.45"},{"v":0.38999999999999996,"d":"0.39"},0.6,0.6,85,0,{"$f":"ROUND(Primes!$P$4*V6294,0)","v":71},{"$f":"'BP Financier'!$F$33*(('BP Financier'!$C$16+'BP Financier'!$D$16+'BP Financier'!$E$16+'BP Financier'!$F$16)/('BP Financier'!$C$16+'BP Financier'!$C$19+'BP Financier'!$D$16+'BP Financier'!$D$19+'BP Financier'!$E$16+'BP Financier'!$E$19+'BP Financier'!$F$16+'BP Financier'!$F$19))*V6294","v":{"v":2909830.1866639922,"d":"2,909,830"}},{"v":1650655.678719808,"d":"1,650,656"},{"$f":"'BP Financier'!$F$44*(('BP Financier'!$C$16+'BP Financier'!$D$16+'BP Financier'!$E$16+'BP Financier'!$F$16)/('BP Financier'!$C$16+'BP Financier'!$C$19+'BP Financier'!$D$16+'BP Financier'!$D$19+'BP Financier'!$E$16+'BP Financier'!$E$19+'BP Financier'!$C$22+'BP Financier'!$D$22+'BP Financier'!$E$22+'BP Financier'!$F$16+'BP Financier'!$F$19+'BP Financier'!$F$22))*$V6294*X6294/(1-$W6294)","v":{"v":210104.55544886444,"d":"210,105"}},{"$f":"'BP Financier'!$F$44*(('BP Financier'!$C$16+'BP Financier'!$D$16+'BP Financier'!$E$16+'BP Financier'!$F$16)/('BP Financier'!$C$16+'BP Financier'!$C$19+'BP Financier'!$D$16+'BP Financier'!$D$19+'BP Financier'!$E$16+'BP Financier'!$E$19+'BP Financier'!$C$22+'BP Financier'!$D$22+'BP Financier'!$E$22+'BP Financier'!$F$16+'BP Financier'!$F$19+'BP Financier'!$F$22))*$V6294*Y6294/(1-$W6294)","v":{"v":140456.63651553923,"d":"140,457"}},{"$f":"'BP Financier'!$F$44*(('BP Financier'!$C$16+'BP Financier'!$D$16+'BP Financier'!$E$16+'BP Financier'!$F$16)/('BP Financier'!$C$16+'BP Financier'!$C$19+'BP Financier'!$D$16+'BP Financier'!$D$19+'BP Financier'!$E$16+'BP Financier'!$E$19+'BP Financier'!$C$22+'BP Financier'!$D$22+'BP Financier'!$E$22+'BP Financier'!$F$16+'BP Financier'!$F$19+'BP Financier'!$F$22))*$V6294*Z6294/(1-$W6294)","v":{"v":1099276.32049765,"d":"1,099,276"}},{"$f":"'BP Financier'!$F$44*(('BP Financier'!$C$16+'BP Financier'!$D$16+'BP Financier'!$E$16+'BP Financier'!$F$16)/('BP Financier'!$C$16+'BP Financier'!$C$19+'BP Financier'!$D$16+'BP Financier'!$D$19+'BP Financier'!$E$16+'BP Financier'!$E$19+'BP Financier'!$C$22+'BP Financier'!$D$22+'BP Financier'!$E$22+'BP Financier'!$F$16+'BP Financier'!$F$19+'BP Financier'!$F$22))*$V6294*AA6294/(1-$W6294)","v":{"v":135813.4419199842,"d":"135,813"}},{"$f":"'BP Financier'!$F$44*(('BP Financier'!$C$16+'BP Financier'!$D$16+'BP Financier'!$E$16+'BP Financier'!$F$16)/('BP Financier'!$C$16+'BP Financier'!$C$19+'BP Financier'!$D$16+'BP Financier'!$D$19+'BP Financier'!$E$16+'BP Financier'!$E$19+'BP Financier'!$C$22+'BP Financier'!$D$22+'BP Financier'!$E$22+'BP Financier'!$F$16+'BP Financier'!$F$19+'BP Financier'!$F$22))*$V6294*AB6294/(1-$W6294)","v":{"v":65004.72433777021,"d":"65,005"}},null,{"v":0.0075,"d":"0.75%"},{"$f":"Actif!$E$28/100","v":{"v":0.28900000000000003,"d":"28.90%"}},{"$f":"Actif!$E$30/100","v":{"v":0.09050000000000001,"d":"9.05%"}},{"$f":"Actif!$E$31/100","v":{"v":0.0605,"d":"6.05%"}},{"$f":"Actif!$E$32/100","v":{"v":0.47350000000000003,"d":"47.35%"}},{"$f":"Actif!$E$33/100","v":{"v":0.0585,"d":"5.85%"}},{"$f":"Actif!$E$29/100","v":{"v":0.027999999999999997,"d":"2.80%"}}]
[null,"#188",64,2030,"H","A_VIE",{"v":0.44999999999999996,"d":"0.45"},{"v":0.38999999999999996,"d":"0.39"},0.6,0.6,85,0,{"$f":"ROUND(Primes!$P$4*V6295,0)","v":71},{"$f":"'BP Financier'!$F$33*(('BP Financier'!$C$16+'BP Financier'!$D$16+'BP Financier'!$E$16+'BP Financier'!$F$16)/('BP Financier'!$C$16+'BP Financier'!$C$19+'BP Financier'!$D$16+'BP Financier'!$D$19+'BP Financier'!$E$16+'BP Financier'!$E$19+'BP Financier'!$F$16+'BP Financier'!$F$19))*V6295","v":{"v":2909830.1866639922,"d":"2,909,830"}},{"v":1650655.678719808,"d":"1,650,656"},{"$f":"'BP Financier'!$F$44*(('BP Financier'!$C$16+'BP Financier'!$D$16+'BP Financier'!$E$16+'BP Financier'!$F$16)/('BP Financier'!$C$16+'BP Financier'!$C$19+'BP Financier'!$D$16+'BP Financier'!$D$19+'BP Financier'!$E$16+'BP Financier'!$E$19+'BP Financier'!$C$22+'BP Financier'!$D$22+'BP Financier'!$E$22+'BP Financier'!$F$16+'BP Financier'!$F$19+'BP Financier'!$F$22))*$V6295*X6295/(1-$W6295)","v":{"v":210104.55544886444,"d":"210,105"}},{"$f":"'BP Financier'!$F$44*(('BP Financier'!$C$16+'BP Financier'!$D$16+'BP Financier'!$E$16+'BP Financier'!$F$16)/('BP Financier'!$C$16+'BP Financier'!$C$19+'BP Financier'!$D$16+'BP Financier'!$D$19+'BP Financier'!$E$16+'BP Financier'!$E$19+'BP Financier'!$C$22+'BP Financier'!$D$22+'BP Financier'!$E$22+'BP Financier'!$F$16+'BP Financier'!$F$19+'BP Financier'!$F$22))*$V6295*Y6295/(1-$W6295)","v":{"v":140456.63651553923,"d":"140,457"}},{"$f":"'BP Financier'!$F$44*(('BP Financier'!$C$16+'BP Financier'!$D$16+'BP Financier'!$E$16+'BP Financier'!$F$16)/('BP Financier'!$C$16+'BP Financier'!$C$19+'BP Financier'!$D$16+'BP Financier'!$D$19+'BP Financier'!$E$16+'BP Financier'!$E$19+'BP Financier'!$C$22+'BP Financier'!$D$22+'BP Financier'!$E$22+'BP Financier'!$F$16+'BP Financier'!$F$19+'BP Financier'!$F$22))*$V6295*Z6295/(1-$W6295)","v":{"v":1099276.32049765,"d":"1,099,276"}},{"$f":"'BP Financier'!$F$44*(('BP Financier'!$C$16+'BP Financier'!$D$16+'BP Financier'!$E$16+'BP Financier'!$F$16)/('BP Financier'!$C$16+'BP Financier'!$C$19+'BP Financier'!$D$16+'BP Financier'!$D$19+'BP Financier'!$E$16+'BP Financier'!$E$19+'BP Financier'!$C$22+'BP Financier'!$D$22+'BP Financier'!$E$22+'BP Financier'!$F$16+'BP Financier'!$F$19+'BP Financier'!$F$22))*$V6295*AA6295/(1-$W6295)","v":{"v":135813.4419199842,"d":"135,813"}},{"$f":"'BP Financier'!$F$44*(('BP Financier'!$C$16+'BP Financier'!$D$16+'BP Financier'!$E$16+'BP Financier'!$F$16)/('BP Financier'!$C$16+'BP Financier'!$C$19+'BP Financier'!$D$16+'BP Financier'!$D$19+'BP Financier'!$E$16+'BP Financier'!$E$19+'BP Financier'!$C$22+'BP Financier'!$D$22+'BP Financier'!$E$22+'BP Financier'!$F$16+'BP Financier'!$F$19+'BP Financier'!$F$22))*$V6295*AB6295/(1-$W6295)","v":{"v":65004.72433777021,"d":"65,005"}},null,{"v":0.0075,"d":"0.75%"},{"$f":"Actif!$E$28/100","v":{"v":0.28900000000000003,"d":"28.90%"}},{"$f":"Actif!$E$30/100","v":{"v":0.09050000000000001,"d":"9.05%"}},{"$f":"Actif!$E$31/100","v":{"v":0.0605,"d":"6.05%"}},{"$f":"Actif!$E$32/100","v":{"v":0.47350000000000003,"d":"47.35%"}},{"$f":"Actif!$E$33/100","v":{"v":0.0585,"d":"5.85%"}},{"$f":"Actif!$E$29/100","v":{"v":0.027999999999999997,"d":"2.80%"}}]
[null,"#189",65,2026,"F","A_VIE",{"v":0.44999999999999996,"d":"0.45"},{"v":0.38999999999999996,"d":"0.39"},0.6,0.6,85,0,{"$f":"ROUND(Primes!$P$4*V6296,0)","v":71},{"$f":"'BP Financier'!$F$33*(('BP Financier'!$C$16+'BP Financier'!$D$16+'BP Financier'!$E$16+'BP Financier'!$F$16)/('BP Financier'!$C$16+'BP Financier'!$C$19+'BP Financier'!$D$16+'BP Financier'!$D$19+'BP Financier'!$E$16+'BP Financier'!$E$19+'BP Financier'!$F$16+'BP Financier'!$F$19))*V6296","v":{"v":2909830.1866639922,"d":"2,909,830"}},{"v":1650655.678719808,"d":"1,650,656"},{"$f":"'BP Financier'!$F$44*(('BP Financier'!$C$16+'BP Financier'!$D$16+'BP Financier'!$E$16+'BP Financier'!$F$16)/('BP Financier'!$C$16+'BP Financier'!$C$19+'BP Financier'!$D$16+'BP Financier'!$D$19+'BP Financier'!$E$16+'BP Financier'!$E$19+'BP Financier'!$C$22+'BP Financier'!$D$22+'BP Financier'!$E$22+'BP Financier'!$F$16+'BP Financier'!$F$19+'BP Financier'!$F$22))*$V6296*X6296/(1-$W6296)","v":{"v":210104.55544886444,"d":"210,105"}},{"$f":"'BP Financier'!$F$44*(('BP Financier'!$C$16+'BP Financier'!$D$16+'BP Financier'!$E$16+'BP Financier'!$F$16)/('BP Financier'!$C$16+'BP Financier'!$C$19+'BP Financier'!$D$16+'BP Financier'!$D$19+'BP Financier'!$E$16+'BP Financier'!$E$19+'BP Financier'!$C$22+'BP Financier'!$D$22+'BP Financier'!$E$22+'BP Financier'!$F$16+'BP Financier'!$F$19+'BP Financier'!$F$22))*$V6296*Y6296/(1-$W6296)","v":{"v":140456.63651553923,"d":"140,457"}},{"$f":"'BP Financier'!$F$44*(('BP Financier'!$C$16+'BP Financier'!$D$16+'BP Financier'!$E$16+'BP Financier'!$F$16)/('BP Financier'!$C$16+'BP Financier'!$C$19+'BP Financier'!$D$16+'BP Financier'!$D$19+'BP Financier'!$E$16+'BP Financier'!$E$19+'BP Financier'!$C$22+'BP Financier'!$D$22+'BP Financier'!$E$22+'BP Financier'!$F$16+'BP Financier'!$F$19+'BP Financier'!$F$22))*$V6296*Z6296/(1-$W6296)","v":{"v":1099276.32049765,"d":"1,099,276"}},{"$f":"'BP Financier'!$F$44*(('BP Financier'!$C$16+'BP Financier'!$D$16+'BP Financier'!$E$16+'BP Financier'!$F$16)/('BP Financier'!$C$16+'BP Financier'!$C$19+'BP Financier'!$D$16+'BP Financier'!$D$19+'BP Financier'!$E$16+'BP Financier'!$E$19+'BP Financier'!$C$22+'BP Financier'!$D$22+'BP Financier'!$E$22+'BP Financier'!$F$16+'BP Financier'!$F$19+'BP Financier'!$F$22))*$V6296*AA6296/(1-$W6296)","v":{"v":135813.4419199842,"d":"135,813"}},{"$f":"'BP Financier'!$F$44*(('BP Financier'!$C$16+'BP Financier'!$D$16+'BP Financier'!$E$16+'BP Financier'!$F$16)/('BP Financier'!$C$16+'BP Financier'!$C$19+'BP Financier'!$D$16+'BP Financier'!$D$19+'BP Financier'!$E$16+'BP Financier'!$E$19+'BP Financier'!$C$22+'BP Financier'!$D$22+'BP Financier'!$E$22+'BP Financier'!$F$16+'BP Financier'!$F$19+'BP Financier'!$F$22))*$V6296*AB6296/(1-$W6296)","v":{"v":65004.72433777021,"d":"65,005"}},null,{"v":0.0075,"d":"0.75%"},{"$f":"Actif!$E$28/100","v":{"v":0.28900000000000003,"d":"28.90%"}},{"$f":"Actif!$E$30/100","v":{"v":0.09050000000000001,"d":"9.05%"}},{"$f":"Actif!$E$31/100","v":{"v":0.0605,"d":"6.05%"}},{"$f":"Actif!$E$32/100","v":{"v":0.47350000000000003,"d":"47.35%"}},{"$f":"Actif!$E$33/100","v":{"v":0.0585,"d":"5.85%"}},{"$f":"Actif!$E$29/100","v":{"v":0.027999999999999997,"d":"2.80%"}}]
[null,"#190",65,2028,"F","A_VIE",{"v":0.44999999999999996,"d":"0.45"},{"v":0.38999999999999996,"d":"0.39"},0.6,0.6,85,0,{"$f":"ROUND(Primes!$P$4*V6297,0)","v":71},{"$f":"'BP Financier'!$F$33*(('BP Financier'!$C$16+'BP Financier'!$D$16+'BP Financier'!$E$16+'BP Financier'!$F$16)/('BP Financier'!$C$16+'BP Financier'!$C$19+'BP Financier'!$D$16+'BP Financier'!$D$19+'BP Financier'!$E$16+'BP Financier'!$E$19+'BP Financier'!$F$16+'BP Financier'!$F$19))*V6297","v":{"v":2909830.1866639922,"d":"2,909,830"}},{"v":1650655.678719808,"d":"1,650,656"},{"$f":"'BP Financier'!$F$44*(('BP Financier'!$C$16+'BP Financier'!$D$16+'BP Financier'!$E$16+'BP Financier'!$F$16)/('BP Financier'!$C$16+'BP Financier'!$C$19+'BP Financier'!$D$16+'BP Financier'!$D$19+'BP Financier'!$E$16+'BP Financier'!$E$19+'BP Financier'!$C$22+'BP Financier'!$D$22+'BP Financier'!$E$22+'BP Financier'!$F$16+'BP Financier'!$F$19+'BP Financier'!$F$22))*$V6297*X6297/(1-$W6297)","v":{"v":210104.55544886444,"d":"210,105"}},{"$f":"'BP Financier'!$F$44*(('BP Financier'!$C$16+'BP Financier'!$D$16+'BP Financier'!$E$16+'BP Financier'!$F$16)/('BP Financier'!$C$16+'BP Financier'!$C$19+'BP Financier'!$D$16+'BP Financier'!$D$19+'BP Financier'!$E$16+'BP Financier'!$E$19+'BP Financier'!$C$22+'BP Financier'!$D$22+'BP Financier'!$E$22+'BP Financier'!$F$16+'BP Financier'!$F$19+'BP Financier'!$F$22))*$V6297*Y6297/(1-$W6297)","v":{"v":140456.63651553923,"d":"140,457"}},{"$f":"'BP Financier'!$F$44*(('BP Financier'!$C$16+'BP Financier'!$D$16+'BP Financier'!$E$16+'BP Financier'!$F$16)/('BP Financier'!$C$16+'BP Financier'!$C$19+'BP Financier'!$D$16+'BP Financier'!$D$19+'BP Financier'!$E$16+'BP Financier'!$E$19+'BP Financier'!$C$22+'BP Financier'!$D$22+'BP Financier'!$E$22+'BP Financier'!$F$16+'BP Financier'!$F$19+'BP Financier'!$F$22))*$V6297*Z6297/(1-$W6297)","v":{"v":1099276.32049765,"d":"1,099,276"}},{"$f":"'BP Financier'!$F$44*(('BP Financier'!$C$16+'BP Financier'!$D$16+'BP Financier'!$E$16+'BP Financier'!$F$16)/('BP Financier'!$C$16+'BP Financier'!$C$19+'BP Financier'!$D$16+'BP Financier'!$D$19+'BP Financier'!$E$16+'BP Financier'!$E$19+'BP Financier'!$C$22+'BP Financier'!$D$22+'BP Financier'!$E$22+'BP Financier'!$F$16+'BP Financier'!$F$19+'BP Financier'!$F$22))*$V6297*AA6297/(1-$W6297)","v":{"v":135813.4419199842,"d":"135,813"}},{"$f":"'BP Financier'!$F$44*(('BP Financier'!$C$16+'BP Financier'!$D$16+'BP Financier'!$E$16+'BP Financier'!$F$16)/('BP Financier'!$C$16+'BP Financier'!$C$19+'BP Financier'!$D$16+'BP Financier'!$D$19+'BP Financier'!$E$16+'BP Financier'!$E$19+'BP Financier'!$C$22+'BP Financier'!$D$22+'BP Financier'!$E$22+'BP Financier'!$F$16+'BP Financier'!$F$19+'BP Financier'!$F$22))*$V6297*AB6297/(1-$W6297)","v":{"v":65004.72433777021,"d":"65,005"}},null,{"v":0.0075,"d":"0.75%"},{"$f":"Actif!$E$28/100","v":{"v":0.28900000000000003,"d":"28.90%"}},{"$f":"Actif!$E$30/100","v":{"v":0.09050000000000001,"d":"9.05%"}},{"$f":"Actif!$E$31/100","v":{"v":0.0605,"d":"6.05%"}},{"$f":"Actif!$E$32/100","v":{"v":0.47350000000000003,"d":"47.35%"}},{"$f":"Actif!$E$33/100","v":{"v":0.0585,"d":"5.85%"}},{"$f":"Actif!$E$29/100","v":{"v":0.027999999999999997,"d":"2.80%"}}]
[null,"#191",65,2029,"F","A_VIE",{"v":0.44999999999999996,"d":"0.45"},{"v":0.38999999999999996,"d":"0.39"},0.6,0.6,85,0,{"$f":"ROUND(Primes!$P$4*V6298,0)","v":71},{"$f":"'BP Financier'!$F$33*(('BP Financier'!$C$16+'BP Financier'!$D$16+'BP Financier'!$E$16+'BP Financier'!$F$16)/('BP Financier'!$C$16+'BP Financier'!$C$19+'BP Financier'!$D$16+'BP Financier'!$D$19+'BP Financier'!$E$16+'BP Financier'!$E$19+'BP Financier'!$F$16+'BP Financier'!$F$19))*V6298","v":{"v":2909830.1866639922,"d":"2,909,830"}},{"v":1650655.678719808,"d":"1,650,656"},{"$f":"'BP Financier'!$F$44*(('BP Financier'!$C$16+'BP Financier'!$D$16+'BP Financier'!$E$16+'BP Financier'!$F$16)/('BP Financier'!$C$16+'BP Financier'!$C$19+'BP Financier'!$D$16+'BP Financier'!$D$19+'BP Financier'!$E$16+'BP Financier'!$E$19+'BP Financier'!$C$22+'BP Financier'!$D$22+'BP Financier'!$E$22+'BP Financier'!$F$16+'BP Financier'!$F$19+'BP Financier'!$F$22))*$V6298*X6298/(1-$W6298)","v":{"v":210104.55544886444,"d":"210,105"}},{"$f":"'BP Financier'!$F$44*(('BP Financier'!$C$16+'BP Financier'!$D$16+'BP Financier'!$E$16+'BP Financier'!$F$16)/('BP Financier'!$C$16+'BP Financier'!$C$19+'BP Financier'!$D$16+'BP Financier'!$D$19+'BP Financier'!$E$16+'BP Financier'!$E$19+'BP Financier'!$C$22+'BP Financier'!$D$22+'BP Financier'!$E$22+'BP Financier'!$F$16+'BP Financier'!$F$19+'BP Financier'!$F$22))*$V6298*Y6298/(1-$W6298)","v":{"v":140456.63651553923,"d":"140,457"}},{"$f":"'BP Financier'!$F$44*(('BP Financier'!$C$16+'BP Financier'!$D$16+'BP Financier'!$E$16+'BP Financier'!$F$16)/('BP Financier'!$C$16+'BP Financier'!$C$19+'BP Financier'!$D$16+'BP Financier'!$D$19+'BP Financier'!$E$16+'BP Financier'!$E$19+'BP Financier'!$C$22+'BP Financier'!$D$22+'BP Financier'!$E$22+'BP Financier'!$F$16+'BP Financier'!$F$19+'BP Financier'!$F$22))*$V6298*Z6298/(1-$W6298)","v":{"v":1099276.32049765,"d":"1,099,276"}},{"$f":"'BP Financier'!$F$44*(('BP Financier'!$C$16+'BP Financier'!$D$16+'BP Financier'!$E$16+'BP Financier'!$F$16)/('BP Financier'!$C$16+'BP Financier'!$C$19+'BP Financier'!$D$16+'BP Financier'!$D$19+'BP Financier'!$E$16+'BP Financier'!$E$19+'BP Financier'!$C$22+'BP Financier'!$D$22+'BP Financier'!$E$22+'BP Financier'!$F$16+'BP Financier'!$F$19+'BP Financier'!$F$22))*$V6298*AA6298/(1-$W6298)","v":{"v":135813.4419199842,"d":"135,813"}},{"$f":"'BP Financier'!$F$44*(('BP Financier'!$C$16+'BP Financier'!$D$16+'BP Financier'!$E$16+'BP Financier'!$F$16)/('BP Financier'!$C$16+'BP Financier'!$C$19+'BP Financier'!$D$16+'BP Financier'!$D$19+'BP Financier'!$E$16+'BP Financier'!$E$19+'BP Financier'!$C$22+'BP Financier'!$D$22+'BP Financier'!$E$22+'BP Financier'!$F$16+'BP Financier'!$F$19+'BP Financier'!$F$22))*$V6298*AB6298/(1-$W6298)","v":{"v":65004.72433777021,"d":"65,005"}},null,{"v":0.0075,"d":"0.75%"},{"$f":"Actif!$E$28/100","v":{"v":0.28900000000000003,"d":"28.90%"}},{"$f":"Actif!$E$30/100","v":{"v":0.09050000000000001,"d":"9.05%"}},{"$f":"Actif!$E$31/100","v":{"v":0.0605,"d":"6.05%"}},{"$f":"Actif!$E$32/100","v":{"v":0.47350000000000003,"d":"47.35%"}},{"$f":"Actif!$E$33/100","v":{"v":0.0585,"d":"5.85%"}},{"$f":"Actif!$E$29/100","v":{"v":0.027999999999999997,"d":"2.80%"}}]
[null,"#192",65,2030,"F","A_VIE",{"v":0.44999999999999996,"d":"0.45"},{"v":0.38999999999999996,"d":"0.39"},0.6,0.6,85,0,{"$f":"ROUND(Primes!$P$4*V6299,0)","v":71},{"$f":"'BP Financier'!$F$33*(('BP Financier'!$C$16+'BP Financier'!$D$16+'BP Financier'!$E$16+'BP Financier'!$F$16)/('BP Financier'!$C$16+'BP Financier'!$C$19+'BP Financier'!$D$16+'BP Financier'!$D$19+'BP Financier'!$E$16+'BP Financier'!$E$19+'BP Financier'!$F$16+'BP Financier'!$F$19))*V6299","v":{"v":2909830.1866639922,"d":"2,909,830"}},{"v":1650655.678719808,"d":"1,650,656"},{"$f":"'BP Financier'!$F$44*(('BP Financier'!$C$16+'BP Financier'!$D$16+'BP Financier'!$E$16+'BP Financier'!$F$16)/('BP Financier'!$C$16+'BP Financier'!$C$19+'BP Financier'!$D$16+'BP Financier'!$D$19+'BP Financier'!$E$16+'BP Financier'!$E$19+'BP Financier'!$C$22+'BP Financier'!$D$22+'BP Financier'!$E$22+'BP Financier'!$F$16+'BP Financier'!$F$19+'BP Financier'!$F$22))*$V6299*X6299/(1-$W6299)","v":{"v":210104.55544886444,"d":"210,105"}},{"$f":"'BP Financier'!$F$44*(('BP Financier'!$C$16+'BP Financier'!$D$16+'BP Financier'!$E$16+'BP Financier'!$F$16)/('BP Financier'!$C$16+'BP Financier'!$C$19+'BP Financier'!$D$16+'BP Financier'!$D$19+'BP Financier'!$E$16+'BP Financier'!$E$19+'BP Financier'!$C$22+'BP Financier'!$D$22+'BP Financier'!$E$22+'BP Financier'!$F$16+'BP Financier'!$F$19+'BP Financier'!$F$22))*$V6299*Y6299/(1-$W6299)","v":{"v":140456.63651553923,"d":"140,457"}},{"$f":"'BP Financier'!$F$44*(('BP Financier'!$C$16+'BP Financier'!$D$16+'BP Financier'!$E$16+'BP Financier'!$F$16)/('BP Financier'!$C$16+'BP Financier'!$C$19+'BP Financier'!$D$16+'BP Financier'!$D$19+'BP Financier'!$E$16+'BP Financier'!$E$19+'BP Financier'!$C$22+'BP Financier'!$D$22+'BP Financier'!$E$22+'BP Financier'!$F$16+'BP Financier'!$F$19+'BP Financier'!$F$22))*$V6299*Z6299/(1-$W6299)","v":{"v":1099276.32049765,"d":"1,099,276"}},{"$f":"'BP Financier'!$F$44*(('BP Financier'!$C$16+'BP Financier'!$D$16+'BP Financier'!$E$16+'BP Financier'!$F$16)/('BP Financier'!$C$16+'BP Financier'!$C$19+'BP Financier'!$D$16+'BP Financier'!$D$19+'BP Financier'!$E$16+'BP Financier'!$E$19+'BP Financier'!$C$22+'BP Financier'!$D$22+'BP Financier'!$E$22+'BP Financier'!$F$16+'BP Financier'!$F$19+'BP Financier'!$F$22))*$V6299*AA6299/(1-$W6299)","v":{"v":135813.4419199842,"d":"135,813"}},{"$f":"'BP Financier'!$F$44*(('BP Financier'!$C$16+'BP Financier'!$D$16+'BP Financier'!$E$16+'BP Financier'!$F$16)/('BP Financier'!$C$16+'BP Financier'!$C$19+'BP Financier'!$D$16+'BP Financier'!$D$19+'BP Financier'!$E$16+'BP Financier'!$E$19+'BP Financier'!$C$22+'BP Financier'!$D$22+'BP Financier'!$E$22+'BP Financier'!$F$16+'BP Financier'!$F$19+'BP Financier'!$F$22))*$V6299*AB6299/(1-$W6299)","v":{"v":65004.72433777021,"d":"65,005"}},null,{"v":0.0075,"d":"0.75%"},{"$f":"Actif!$E$28/100","v":{"v":0.28900000000000003,"d":"28.90%"}},{"$f":"Actif!$E$30/100","v":{"v":0.09050000000000001,"d":"9.05%"}},{"$f":"Actif!$E$31/100","v":{"v":0.0605,"d":"6.05%"}},{"$f":"Actif!$E$32/100","v":{"v":0.47350000000000003,"d":"47.35%"}},{"$f":"Actif!$E$33/100","v":{"v":0.0585,"d":"5.85%"}},{"$f":"Actif!$E$29/100","v":{"v":0.027999999999999997,"d":"2.80%"}}]
[null,"#193",70,2026,"H","A_VIE",{"v":0.44999999999999996,"d":"0.45"},{"v":0.38999999999999996,"d":"0.39"},0.6,0.6,85,0,{"$f":"ROUND(Primes!$P$4*V6300,0)","v":12},{"$f":"'BP Financier'!$F$33*(('BP Financier'!$C$16+'BP Financier'!$D$16+'BP Financier'!$E$16+'BP Financier'!$F$16)/('BP Financier'!$C$16+'BP Financier'!$C$19+'BP Financier'!$D$16+'BP Financier'!$D$19+'BP Financier'!$E$16+'BP Financier'!$E$19+'BP Financier'!$F$16+'BP Financier'!$F$19))*V6300","v":{"v":484971.6977773321,"d":"484,972"}},{"v":275109.2797866347,"d":"275,109"},{"$f":"'BP Financier'!$F$44*(('BP Financier'!$C$16+'BP Financier'!$D$16+'BP Financier'!$E$16+'BP Financier'!$F$16)/('BP Financier'!$C$16+'BP Financier'!$C$19+'BP Financier'!$D$16+'BP Financier'!$D$19+'BP Financier'!$E$16+'BP Financier'!$E$19+'BP Financier'!$C$22+'BP Financier'!$D$22+'BP Financier'!$E$22+'BP Financier'!$F$16+'BP Financier'!$F$19+'BP Financier'!$F$22))*$V6300*X6300/(1-$W6300)","v":{"v":35017.42590814408,"d":"35,017"}},{"$f":"'BP Financier'!$F$44*(('BP Financier'!$C$16+'BP Financier'!$D$16+'BP Financier'!$E$16+'BP Financier'!$F$16)/('BP Financier'!$C$16+'BP Financier'!$C$19+'BP Financier'!$D$16+'BP Financier'!$D$19+'BP Financier'!$E$16+'BP Financier'!$E$19+'BP Financier'!$C$22+'BP Financier'!$D$22+'BP Financier'!$E$22+'BP Financier'!$F$16+'BP Financier'!$F$19+'BP Financier'!$F$22))*$V6300*Y6300/(1-$W6300)","v":{"v":23409.439419256538,"d":"23,409"}},{"$f":"'BP Financier'!$F$44*(('BP Financier'!$C$16+'BP Financier'!$D$16+'BP Financier'!$E$16+'BP Financier'!$F$16)/('BP Financier'!$C$16+'BP Financier'!$C$19+'BP Financier'!$D$16+'BP Financier'!$D$19+'BP Financier'!$E$16+'BP Financier'!$E$19+'BP Financier'!$C$22+'BP Financier'!$D$22+'BP Financier'!$E$22+'BP Financier'!$F$16+'BP Financier'!$F$19+'BP Financier'!$F$22))*$V6300*Z6300/(1-$W6300)","v":{"v":183212.72008294167,"d":"183,213"}},{"$f":"'BP Financier'!$F$44*(('BP Financier'!$C$16+'BP Financier'!$D$16+'BP Financier'!$E$16+'BP Financier'!$F$16)/('BP Financier'!$C$16+'BP Financier'!$C$19+'BP Financier'!$D$16+'BP Financier'!$D$19+'BP Financier'!$E$16+'BP Financier'!$E$19+'BP Financier'!$C$22+'BP Financier'!$D$22+'BP Financier'!$E$22+'BP Financier'!$F$16+'BP Financier'!$F$19+'BP Financier'!$F$22))*$V6300*AA6300/(1-$W6300)","v":{"v":22635.573653330703,"d":"22,636"}},{"$f":"'BP Financier'!$F$44*(('BP Financier'!$C$16+'BP Financier'!$D$16+'BP Financier'!$E$16+'BP Financier'!$F$16)/('BP Financier'!$C$16+'BP Financier'!$C$19+'BP Financier'!$D$16+'BP Financier'!$D$19+'BP Financier'!$E$16+'BP Financier'!$E$19+'BP Financier'!$C$22+'BP Financier'!$D$22+'BP Financier'!$E$22+'BP Financier'!$F$16+'BP Financier'!$F$19+'BP Financier'!$F$22))*$V6300*AB6300/(1-$W6300)","v":{"v":10834.120722961703,"d":"10,834"}},null,{"v":1.25E-3,"d":"0.13%"},{"$f":"Actif!$E$28/100","v":{"v":0.28900000000000003,"d":"28.90%"}},{"$f":"Actif!$E$30/100","v":{"v":0.09050000000000001,"d":"9.05%"}},{"$f":"Actif!$E$31/100","v":{"v":0.0605,"d":"6.05%"}},{"$f":"Actif!$E$32/100","v":{"v":0.47350000000000003,"d":"47.35%"}},{"$f":"Actif!$E$33/100","v":{"v":0.0585,"d":"5.85%"}},{"$f":"Actif!$E$29/100","v":{"v":0.027999999999999997,"d":"2.80%"}}]
[null,"#194",70,2028,"H","A_VIE",{"v":0.44999999999999996,"d":"0.45"},{"v":0.38999999999999996,"d":"0.39"},0.6,0.6,85,0,{"$f":"ROUND(Primes!$P$4*V6301,0)","v":12},{"$f":"'BP Financier'!$F$33*(('BP Financier'!$C$16+'BP Financier'!$D$16+'BP Financier'!$E$16+'BP Financier'!$F$16)/('BP Financier'!$C$16+'BP Financier'!$C$19+'BP Financier'!$D$16+'BP Financier'!$D$19+'BP Financier'!$E$16+'BP Financier'!$E$19+'BP Financier'!$F$16+'BP Financier'!$F$19))*V6301","v":{"v":484971.6977773321,"d":"484,972"}},{"v":275109.2797866347,"d":"275,109"},{"$f":"'BP Financier'!$F$44*(('BP Financier'!$C$16+'BP Financier'!$D$16+'BP Financier'!$E$16+'BP Financier'!$F$16)/('BP Financier'!$C$16+'BP Financier'!$C$19+'BP Financier'!$D$16+'BP Financier'!$D$19+'BP Financier'!$E$16+'BP Financier'!$E$19+'BP Financier'!$C$22+'BP Financier'!$D$22+'BP Financier'!$E$22+'BP Financier'!$F$16+'BP Financier'!$F$19+'BP Financier'!$F$22))*$V6301*X6301/(1-$W6301)","v":{"v":35017.42590814408,"d":"35,017"}},{"$f":"'BP Financier'!$F$44*(('BP Financier'!$C$16+'BP Financier'!$D$16+'BP Financier'!$E$16+'BP Financier'!$F$16)/('BP Financier'!$C$16+'BP Financier'!$C$19+'BP Financier'!$D$16+'BP Financier'!$D$19+'BP Financier'!$E$16+'BP Financier'!$E$19+'BP Financier'!$C$22+'BP Financier'!$D$22+'BP Financier'!$E$22+'BP Financier'!$F$16+'BP Financier'!$F$19+'BP Financier'!$F$22))*$V6301*Y6301/(1-$W6301)","v":{"v":23409.439419256538,"d":"23,409"}},{"$f":"'BP Financier'!$F$44*(('BP Financier'!$C$16+'BP Financier'!$D$16+'BP Financier'!$E$16+'BP Financier'!$F$16)/('BP Financier'!$C$16+'BP Financier'!$C$19+'BP Financier'!$D$16+'BP Financier'!$D$19+'BP Financier'!$E$16+'BP Financier'!$E$19+'BP Financier'!$C$22+'BP Financier'!$D$22+'BP Financier'!$E$22+'BP Financier'!$F$16+'BP Financier'!$F$19+'BP Financier'!$F$22))*$V6301*Z6301/(1-$W6301)","v":{"v":183212.72008294167,"d":"183,213"}},{"$f":"'BP Financier'!$F$44*(('BP Financier'!$C$16+'BP Financier'!$D$16+'BP Financier'!$E$16+'BP Financier'!$F$16)/('BP Financier'!$C$16+'BP Financier'!$C$19+'BP Financier'!$D$16+'BP Financier'!$D$19+'BP Financier'!$E$16+'BP Financier'!$E$19+'BP Financier'!$C$22+'BP Financier'!$D$22+'BP Financier'!$E$22+'BP Financier'!$F$16+'BP Financier'!$F$19+'BP Financier'!$F$22))*$V6301*AA6301/(1-$W6301)","v":{"v":22635.573653330703,"d":"22,636"}},{"$f":"'BP Financier'!$F$44*(('BP Financier'!$C$16+'BP Financier'!$D$16+'BP Financier'!$E$16+'BP Financier'!$F$16)/('BP Financier'!$C$16+'BP Financier'!$C$19+'BP Financier'!$D$16+'BP Financier'!$D$19+'BP Financier'!$E$16+'BP Financier'!$E$19+'BP Financier'!$C$22+'BP Financier'!$D$22+'BP Financier'!$E$22+'BP Financier'!$F$16+'BP Financier'!$F$19+'BP Financier'!$F$22))*$V6301*AB6301/(1-$W6301)","v":{"v":10834.120722961703,"d":"10,834"}},null,{"v":1.25E-3,"d":"0.13%"},{"$f":"Actif!$E$28/100","v":{"v":0.28900000000000003,"d":"28.90%"}},{"$f":"Actif!$E$30/100","v":{"v":0.09050000000000001,"d":"9.05%"}},{"$f":"Actif!$E$31/100","v":{"v":0.0605,"d":"6.05%"}},{"$f":"Actif!$E$32/100","v":{"v":0.47350000000000003,"d":"47.35%"}},{"$f":"Actif!$E$33/100","v":{"v":0.0585,"d":"5.85%"}},{"$f":"Actif!$E$29/100","v":{"v":0.027999999999999997,"d":"2.80%"}}]
[null,"#195",70,2029,"H","A_VIE",{"v":0.44999999999999996,"d":"0.45"},{"v":0.38999999999999996,"d":"0.39"},0.6,0.6,85,0,{"$f":"ROUND(Primes!$P$4*V6302,0)","v":12},{"$f":"'BP Financier'!$F$33*(('BP Financier'!$C$16+'BP Financier'!$D$16+'BP Financier'!$E$16+'BP Financier'!$F$16)/('BP Financier'!$C$16+'BP Financier'!$C$19+'BP Financier'!$D$16+'BP Financier'!$D$19+'BP Financier'!$E$16+'BP Financier'!$E$19+'BP Financier'!$F$16+'BP Financier'!$F$19))*V6302","v":{"v":484971.6977773321,"d":"484,972"}},{"v":275109.2797866347,"d":"275,109"},{"$f":"'BP Financier'!$F$44*(('BP Financier'!$C$16+'BP Financier'!$D$16+'BP Financier'!$E$16+'BP Financier'!$F$16)/('BP Financier'!$C$16+'BP Financier'!$C$19+'BP Financier'!$D$16+'BP Financier'!$D$19+'BP Financier'!$E$16+'BP Financier'!$E$19+'BP Financier'!$C$22+'BP Financier'!$D$22+'BP Financier'!$E$22+'BP Financier'!$F$16+'BP Financier'!$F$19+'BP Financier'!$F$22))*$V6302*X6302/(1-$W6302)","v":{"v":35017.42590814408,"d":"35,017"}},{"$f":"'BP Financier'!$F$44*(('BP Financier'!$C$16+'BP Financier'!$D$16+'BP Financier'!$E$16+'BP Financier'!$F$16)/('BP Financier'!$C$16+'BP Financier'!$C$19+'BP Financier'!$D$16+'BP Financier'!$D$19+'BP Financier'!$E$16+'BP Financier'!$E$19+'BP Financier'!$C$22+'BP Financier'!$D$22+'BP Financier'!$E$22+'BP Financier'!$F$16+'BP Financier'!$F$19+'BP Financier'!$F$22))*$V6302*Y6302/(1-$W6302)","v":{"v":23409.439419256538,"d":"23,409"}},{"$f":"'BP Financier'!$F$44*(('BP Financier'!$C$16+'BP Financier'!$D$16+'BP Financier'!$E$16+'BP Financier'!$F$16)/('BP Financier'!$C$16+'BP Financier'!$C$19+'BP Financier'!$D$16+'BP Financier'!$D$19+'BP Financier'!$E$16+'BP Financier'!$E$19+'BP Financier'!$C$22+'BP Financier'!$D$22+'BP Financier'!$E$22+'BP Financier'!$F$16+'BP Financier'!$F$19+'BP Financier'!$F$22))*$V6302*Z6302/(1-$W6302)","v":{"v":183212.72008294167,"d":"183,213"}},{"$f":"'BP Financier'!$F$44*(('BP Financier'!$C$16+'BP Financier'!$D$16+'BP Financier'!$E$16+'BP Financier'!$F$16)/('BP Financier'!$C$16+'BP Financier'!$C$19+'BP Financier'!$D$16+'BP Financier'!$D$19+'BP Financier'!$E$16+'BP Financier'!$E$19+'BP Financier'!$C$22+'BP Financier'!$D$22+'BP Financier'!$E$22+'BP Financier'!$F$16+'BP Financier'!$F$19+'BP Financier'!$F$22))*$V6302*AA6302/(1-$W6302)","v":{"v":22635.573653330703,"d":"22,636"}},{"$f":"'BP Financier'!$F$44*(('BP Financier'!$C$16+'BP Financier'!$D$16+'BP Financier'!$E$16+'BP Financier'!$F$16)/('BP Financier'!$C$16+'BP Financier'!$C$19+'BP Financier'!$D$16+'BP Financier'!$D$19+'BP Financier'!$E$16+'BP Financier'!$E$19+'BP Financier'!$C$22+'BP Financier'!$D$22+'BP Financier'!$E$22+'BP Financier'!$F$16+'BP Financier'!$F$19+'BP Financier'!$F$22))*$V6302*AB6302/(1-$W6302)","v":{"v":10834.120722961703,"d":"10,834"}},null,{"v":1.25E-3,"d":"0.13%"},{"$f":"Actif!$E$28/100","v":{"v":0.28900000000000003,"d":"28.90%"}},{"$f":"Actif!$E$30/100","v":{"v":0.09050000000000001,"d":"9.05%"}},{"$f":"Actif!$E$31/100","v":{"v":0.0605,"d":"6.05%"}},{"$f":"Actif!$E$32/100","v":{"v":0.47350000000000003,"d":"47.35%"}},{"$f":"Actif!$E$33/100","v":{"v":0.0585,"d":"5.85%"}},{"$f":"Actif!$E$29/100","v":{"v":0.027999999999999997,"d":"2.80%"}}]
[null,"#196",70,2030,"H","A_VIE",{"v":0.44999999999999996,"d":"0.45"},{"v":0.38999999999999996,"d":"0.39"},0.6,0.6,85,0,{"$f":"ROUND(Primes!$P$4*V6303,0)","v":12},{"$f":"'BP Financier'!$F$33*(('BP Financier'!$C$16+'BP Financier'!$D$16+'BP Financier'!$E$16+'BP Financier'!$F$16)/('BP Financier'!$C$16+'BP Financier'!$C$19+'BP Financier'!$D$16+'BP Financier'!$D$19+'BP Financier'!$E$16+'BP Financier'!$E$19+'BP Financier'!$F$16+'BP Financier'!$F$19))*V6303","v":{"v":484971.6977773321,"d":"484,972"}},{"v":275109.2797866347,"d":"275,109"},{"$f":"'BP Financier'!$F$44*(('BP Financier'!$C$16+'BP Financier'!$D$16+'BP Financier'!$E$16+'BP Financier'!$F$16)/('BP Financier'!$C$16+'BP Financier'!$C$19+'BP Financier'!$D$16+'BP Financier'!$D$19+'BP Financier'!$E$16+'BP Financier'!$E$19+'BP Financier'!$C$22+'BP Financier'!$D$22+'BP Financier'!$E$22+'BP Financier'!$F$16+'BP Financier'!$F$19+'BP Financier'!$F$22))*$V6303*X6303/(1-$W6303)","v":{"v":35017.42590814408,"d":"35,017"}},{"$f":"'BP Financier'!$F$44*(('BP Financier'!$C$16+'BP Financier'!$D$16+'BP Financier'!$E$16+'BP Financier'!$F$16)/('BP Financier'!$C$16+'BP Financier'!$C$19+'BP Financier'!$D$16+'BP Financier'!$D$19+'BP Financier'!$E$16+'BP Financier'!$E$19+'BP Financier'!$C$22+'BP Financier'!$D$22+'BP Financier'!$E$22+'BP Financier'!$F$16+'BP Financier'!$F$19+'BP Financier'!$F$22))*$V6303*Y6303/(1-$W6303)","v":{"v":23409.439419256538,"d":"23,409"}},{"$f":"'BP Financier'!$F$44*(('BP Financier'!$C$16+'BP Financier'!$D$16+'BP Financier'!$E$16+'BP Financier'!$F$16)/('BP Financier'!$C$16+'BP Financier'!$C$19+'BP Financier'!$D$16+'BP Financier'!$D$19+'BP Financier'!$E$16+'BP Financier'!$E$19+'BP Financier'!$C$22+'BP Financier'!$D$22+'BP Financier'!$E$22+'BP Financier'!$F$16+'BP Financier'!$F$19+'BP Financier'!$F$22))*$V6303*Z6303/(1-$W6303)","v":{"v":183212.72008294167,"d":"183,213"}},{"$f":"'BP Financier'!$F$44*(('BP Financier'!$C$16+'BP Financier'!$D$16+'BP Financier'!$E$16+'BP Financier'!$F$16)/('BP Financier'!$C$16+'BP Financier'!$C$19+'BP Financier'!$D$16+'BP Financier'!$D$19+'BP Financier'!$E$16+'BP Financier'!$E$19+'BP Financier'!$C$22+'BP Financier'!$D$22+'BP Financier'!$E$22+'BP Financier'!$F$16+'BP Financier'!$F$19+'BP Financier'!$F$22))*$V6303*AA6303/(1-$W6303)","v":{"v":22635.573653330703,"d":"22,636"}},{"$f":"'BP Financier'!$F$44*(('BP Financier'!$C$16+'BP Financier'!$D$16+'BP Financier'!$E$16+'BP Financier'!$F$16)/('BP Financier'!$C$16+'BP Financier'!$C$19+'BP Financier'!$D$16+'BP Financier'!$D$19+'BP Financier'!$E$16+'BP Financier'!$E$19+'BP Financier'!$C$22+'BP Financier'!$D$22+'BP Financier'!$E$22+'BP Financier'!$F$16+'BP Financier'!$F$19+'BP Financier'!$F$22))*$V6303*AB6303/(1-$W6303)","v":{"v":10834.120722961703,"d":"10,834"}},null,{"v":1.25E-3,"d":"0.13%"},{"$f":"Actif!$E$28/100","v":{"v":0.28900000000000003,"d":"28.90%"}},{"$f":"Actif!$E$30/100","v":{"v":0.09050000000000001,"d":"9.05%"}},{"$f":"Actif!$E$31/100","v":{"v":0.0605,"d":"6.05%"}},{"$f":"Actif!$E$32/100","v":{"v":0.47350000000000003,"d":"47.35%"}},{"$f":"Actif!$E$33/100","v":{"v":0.0585,"d":"5.85%"}},{"$f":"Actif!$E$29/100","v":{"v":0.027999999999999997,"d":"2.80%"}}]
[null,"#197",75,2026,"H","A_VIE",{"v":0.44999999999999996,"d":"0.45"},{"v":0.38999999999999996,"d":"0.39"},0.6,0.6,85,0,{"$f":"ROUND(Primes!$P$4*V6304,0)","v":12},{"$f":"'BP Financier'!$F$33*(('BP Financier'!$C$16+'BP Financier'!$D$16+'BP Financier'!$E$16+'BP Financier'!$F$16)/('BP Financier'!$C$16+'BP Financier'!$C$19+'BP Financier'!$D$16+'BP Financier'!$D$19+'BP Financier'!$E$16+'BP Financier'!$E$19+'BP Financier'!$F$16+'BP Financier'!$F$19))*V6304","v":{"v":484971.6977773321,"d":"484,972"}},{"v":275109.2797866347,"d":"275,109"},{"$f":"'BP Financier'!$F$44*(('BP Financier'!$C$16+'BP Financier'!$D$16+'BP Financier'!$E$16+'BP Financier'!$F$16)/('BP Financier'!$C$16+'BP Financier'!$C$19+'BP Financier'!$D$16+'BP Financier'!$D$19+'BP Financier'!$E$16+'BP Financier'!$E$19+'BP Financier'!$C$22+'BP Financier'!$D$22+'BP Financier'!$E$22+'BP Financier'!$F$16+'BP Financier'!$F$19+'BP Financier'!$F$22))*$V6304*X6304/(1-$W6304)","v":{"v":35017.42590814408,"d":"35,017"}},{"$f":"'BP Financier'!$F$44*(('BP Financier'!$C$16+'BP Financier'!$D$16+'BP Financier'!$E$16+'BP Financier'!$F$16)/('BP Financier'!$C$16+'BP Financier'!$C$19+'BP Financier'!$D$16+'BP Financier'!$D$19+'BP Financier'!$E$16+'BP Financier'!$E$19+'BP Financier'!$C$22+'BP Financier'!$D$22+'BP Financier'!$E$22+'BP Financier'!$F$16+'BP Financier'!$F$19+'BP Financier'!$F$22))*$V6304*Y6304/(1-$W6304)","v":{"v":23409.439419256538,"d":"23,409"}},{"$f":"'BP Financier'!$F$44*(('BP Financier'!$C$16+'BP Financier'!$D$16+'BP Financier'!$E$16+'BP Financier'!$F$16)/('BP Financier'!$C$16+'BP Financier'!$C$19+'BP Financier'!$D$16+'BP Financier'!$D$19+'BP Financier'!$E$16+'BP Financier'!$E$19+'BP Financier'!$C$22+'BP Financier'!$D$22+'BP Financier'!$E$22+'BP Financier'!$F$16+'BP Financier'!$F$19+'BP Financier'!$F$22))*$V6304*Z6304/(1-$W6304)","v":{"v":183212.72008294167,"d":"183,213"}},{"$f":"'BP Financier'!$F$44*(('BP Financier'!$C$16+'BP Financier'!$D$16+'BP Financier'!$E$16+'BP Financier'!$F$16)/('BP Financier'!$C$16+'BP Financier'!$C$19+'BP Financier'!$D$16+'BP Financier'!$D$19+'BP Financier'!$E$16+'BP Financier'!$E$19+'BP Financier'!$C$22+'BP Financier'!$D$22+'BP Financier'!$E$22+'BP Financier'!$F$16+'BP Financier'!$F$19+'BP Financier'!$F$22))*$V6304*AA6304/(1-$W6304)","v":{"v":22635.573653330703,"d":"22,636"}},{"$f":"'BP Financier'!$F$44*(('BP Financier'!$C$16+'BP Financier'!$D$16+'BP Financier'!$E$16+'BP Financier'!$F$16)/('BP Financier'!$C$16+'BP Financier'!$C$19+'BP Financier'!$D$16+'BP Financier'!$D$19+'BP Financier'!$E$16+'BP Financier'!$E$19+'BP Financier'!$C$22+'BP Financier'!$D$22+'BP Financier'!$E$22+'BP Financier'!$F$16+'BP Financier'!$F$19+'BP Financier'!$F$22))*$V6304*AB6304/(1-$W6304)","v":{"v":10834.120722961703,"d":"10,834"}},null,{"v":1.25E-3,"d":"0.13%"},{"$f":"Actif!$E$28/100","v":{"v":0.28900000000000003,"d":"28.90%"}},{"$f":"Actif!$E$30/100","v":{"v":0.09050000000000001,"d":"9.05%"}},{"$f":"Actif!$E$31/100","v":{"v":0.0605,"d":"6.05%"}},{"$f":"Actif!$E$32/100","v":{"v":0.47350000000000003,"d":"47.35%"}},{"$f":"Actif!$E$33/100","v":{"v":0.0585,"d":"5.85%"}},{"$f":"Actif!$E$29/100","v":{"v":0.027999999999999997,"d":"2.80%"}}]
[null,"#198",75,2028,"H","A_VIE",{"v":0.44999999999999996,"d":"0.45"},{"v":0.38999999999999996,"d":"0.39"},0.6,0.6,85,0,{"$f":"ROUND(Primes!$P$4*V6305,0)","v":12},{"$f":"'BP Financier'!$F$33*(('BP Financier'!$C$16+'BP Financier'!$D$16+'BP Financier'!$E$16+'BP Financier'!$F$16)/('BP Financier'!$C$16+'BP Financier'!$C$19+'BP Financier'!$D$16+'BP Financier'!$D$19+'BP Financier'!$E$16+'BP Financier'!$E$19+'BP Financier'!$F$16+'BP Financier'!$F$19))*V6305","v":{"v":484971.6977773321,"d":"484,972"}},{"v":275109.2797866347,"d":"275,109"},{"$f":"'BP Financier'!$F$44*(('BP Financier'!$C$16+'BP Financier'!$D$16+'BP Financier'!$E$16+'BP Financier'!$F$16)/('BP Financier'!$C$16+'BP Financier'!$C$19+'BP Financier'!$D$16+'BP Financier'!$D$19+'BP Financier'!$E$16+'BP Financier'!$E$19+'BP Financier'!$C$22+'BP Financier'!$D$22+'BP Financier'!$E$22+'BP Financier'!$F$16+'BP Financier'!$F$19+'BP Financier'!$F$22))*$V6305*X6305/(1-$W6305)","v":{"v":35017.42590814408,"d":"35,017"}},{"$f":"'BP Financier'!$F$44*(('BP Financier'!$C$16+'BP Financier'!$D$16+'BP Financier'!$E$16+'BP Financier'!$F$16)/('BP Financier'!$C$16+'BP Financier'!$C$19+'BP Financier'!$D$16+'BP Financier'!$D$19+'BP Financier'!$E$16+'BP Financier'!$E$19+'BP Financier'!$C$22+'BP Financier'!$D$22+'BP Financier'!$E$22+'BP Financier'!$F$16+'BP Financier'!$F$19+'BP Financier'!$F$22))*$V6305*Y6305/(1-$W6305)","v":{"v":23409.439419256538,"d":"23,409"}},{"$f":"'BP Financier'!$F$44*(('BP Financier'!$C$16+'BP Financier'!$D$16+'BP Financier'!$E$16+'BP Financier'!$F$16)/('BP Financier'!$C$16+'BP Financier'!$C$19+'BP Financier'!$D$16+'BP Financier'!$D$19+'BP Financier'!$E$16+'BP Financier'!$E$19+'BP Financier'!$C$22+'BP Financier'!$D$22+'BP Financier'!$E$22+'BP Financier'!$F$16+'BP Financier'!$F$19+'BP Financier'!$F$22))*$V6305*Z6305/(1-$W6305)","v":{"v":183212.72008294167,"d":"183,213"}},{"$f":"'BP Financier'!$F$44*(('BP Financier'!$C$16+'BP Financier'!$D$16+'BP Financier'!$E$16+'BP Financier'!$F$16)/('BP Financier'!$C$16+'BP Financier'!$C$19+'BP Financier'!$D$16+'BP Financier'!$D$19+'BP Financier'!$E$16+'BP Financier'!$E$19+'BP Financier'!$C$22+'BP Financier'!$D$22+'BP Financier'!$E$22+'BP Financier'!$F$16+'BP Financier'!$F$19+'BP Financier'!$F$22))*$V6305*AA6305/(1-$W6305)","v":{"v":22635.573653330703,"d":"22,636"}},{"$f":"'BP Financier'!$F$44*(('BP Financier'!$C$16+'BP Financier'!$D$16+'BP Financier'!$E$16+'BP Financier'!$F$16)/('BP Financier'!$C$16+'BP Financier'!$C$19+'BP Financier'!$D$16+'BP Financier'!$D$19+'BP Financier'!$E$16+'BP Financier'!$E$19+'BP Financier'!$C$22+'BP Financier'!$D$22+'BP Financier'!$E$22+'BP Financier'!$F$16+'BP Financier'!$F$19+'BP Financier'!$F$22))*$V6305*AB6305/(1-$W6305)","v":{"v":10834.120722961703,"d":"10,834"}},null,{"v":1.25E-3,"d":"0.13%"},{"$f":"Actif!$E$28/100","v":{"v":0.28900000000000003,"d":"28.90%"}},{"$f":"Actif!$E$30/100","v":{"v":0.09050000000000001,"d":"9.05%"}},{"$f":"Actif!$E$31/100","v":{"v":0.0605,"d":"6.05%"}},{"$f":"Actif!$E$32/100","v":{"v":0.47350000000000003,"d":"47.35%"}},{"$f":"Actif!$E$33/100","v":{"v":0.0585,"d":"5.85%"}},{"$f":"Actif!$E$29/100","v":{"v":0.027999999999999997,"d":"2.80%"}}]
[null,"#199",75,2029,"H","A_VIE",{"v":0.44999999999999996,"d":"0.45"},{"v":0.38999999999999996,"d":"0.39"},0.6,0.6,85,0,{"$f":"ROUND(Primes!$P$4*V6306,0)","v":12},{"$f":"'BP Financier'!$F$33*(('BP Financier'!$C$16+'BP Financier'!$D$16+'BP Financier'!$E$16+'BP Financier'!$F$16)/('BP Financier'!$C$16+'BP Financier'!$C$19+'BP Financier'!$D$16+'BP Financier'!$D$19+'BP Financier'!$E$16+'BP Financier'!$E$19+'BP Financier'!$F$16+'BP Financier'!$F$19))*V6306","v":{"v":484971.6977773321,"d":"484,972"}},{"v":275109.2797866347,"d":"275,109"},{"$f":"'BP Financier'!$F$44*(('BP Financier'!$C$16+'BP Financier'!$D$16+'BP Financier'!$E$16+'BP Financier'!$F$16)/('BP Financier'!$C$16+'BP Financier'!$C$19+'BP Financier'!$D$16+'BP Financier'!$D$19+'BP Financier'!$E$16+'BP Financier'!$E$19+'BP Financier'!$C$22+'BP Financier'!$D$22+'BP Financier'!$E$22+'BP Financier'!$F$16+'BP Financier'!$F$19+'BP Financier'!$F$22))*$V6306*X6306/(1-$W6306)","v":{"v":35017.42590814408,"d":"35,017"}},{"$f":"'BP Financier'!$F$44*(('BP Financier'!$C$16+'BP Financier'!$D$16+'BP Financier'!$E$16+'BP Financier'!$F$16)/('BP Financier'!$C$16+'BP Financier'!$C$19+'BP Financier'!$D$16+'BP Financier'!$D$19+'BP Financier'!$E$16+'BP Financier'!$E$19+'BP Financier'!$C$22+'BP Financier'!$D$22+'BP Financier'!$E$22+'BP Financier'!$F$16+'BP Financier'!$F$19+'BP Financier'!$F$22))*$V6306*Y6306/(1-$W6306)","v":{"v":23409.439419256538,"d":"23,409"}},{"$f":"'BP Financier'!$F$44*(('BP Financier'!$C$16+'BP Financier'!$D$16+'BP Financier'!$E$16+'BP Financier'!$F$16)/('BP Financier'!$C$16+'BP Financier'!$C$19+'BP Financier'!$D$16+'BP Financier'!$D$19+'BP Financier'!$E$16+'BP Financier'!$E$19+'BP Financier'!$C$22+'BP Financier'!$D$22+'BP Financier'!$E$22+'BP Financier'!$F$16+'BP Financier'!$F$19+'BP Financier'!$F$22))*$V6306*Z6306/(1-$W6306)","v":{"v":183212.72008294167,"d":"183,213"}},{"$f":"'BP Financier'!$F$44*(('BP Financier'!$C$16+'BP Financier'!$D$16+'BP Financier'!$E$16+'BP Financier'!$F$16)/('BP Financier'!$C$16+'BP Financier'!$C$19+'BP Financier'!$D$16+'BP Financier'!$D$19+'BP Financier'!$E$16+'BP Financier'!$E$19+'BP Financier'!$C$22+'BP Financier'!$D$22+'BP Financier'!$E$22+'BP Financier'!$F$16+'BP Financier'!$F$19+'BP Financier'!$F$22))*$V6306*AA6306/(1-$W6306)","v":{"v":22635.573653330703,"d":"22,636"}},{"$f":"'BP Financier'!$F$44*(('BP Financier'!$C$16+'BP Financier'!$D$16+'BP Financier'!$E$16+'BP Financier'!$F$16)/('BP Financier'!$C$16+'BP Financier'!$C$19+'BP Financier'!$D$16+'BP Financier'!$D$19+'BP Financier'!$E$16+'BP Financier'!$E$19+'BP Financier'!$C$22+'BP Financier'!$D$22+'BP Financier'!$E$22+'BP Financier'!$F$16+'BP Financier'!$F$19+'BP Financier'!$F$22))*$V6306*AB6306/(1-$W6306)","v":{"v":10834.120722961703,"d":"10,834"}},null,{"v":1.25E-3,"d":"0.13%"},{"$f":"Actif!$E$28/100","v":{"v":0.28900000000000003,"d":"28.90%"}},{"$f":"Actif!$E$30/100","v":{"v":0.09050000000000001,"d":"9.05%"}},{"$f":"Actif!$E$31/100","v":{"v":0.0605,"d":"6.05%"}},{"$f":"Actif!$E$32/100","v":{"v":0.47350000000000003,"d":"47.35%"}},{"$f":"Actif!$E$33/100","v":{"v":0.0585,"d":"5.85%"}},{"$f":"Actif!$E$29/100","v":{"v":0.027999999999999997,"d":"2.80%"}}]
[null,"#200",75,2030,"H","A_VIE",{"v":0.44999999999999996,"d":"0.45"},{"v":0.38999999999999996,"d":"0.39"},0.6,0.6,85,0,{"$f":"ROUND(Primes!$P$4*V6307,0)","v":12},{"$f":"'BP Financier'!$F$33*(('BP Financier'!$C$16+'BP Financier'!$D$16+'BP Financier'!$E$16+'BP Financier'!$F$16)/('BP Financier'!$C$16+'BP Financier'!$C$19+'BP Financier'!$D$16+'BP Financier'!$D$19+'BP Financier'!$E$16+'BP Financier'!$E$19+'BP Financier'!$F$16+'BP Financier'!$F$19))*V6307","v":{"v":484971.6977773321,"d":"484,972"}},{"v":275109.2797866347,"d":"275,109"},{"$f":"'BP Financier'!$F$44*(('BP Financier'!$C$16+'BP Financier'!$D$16+'BP Financier'!$E$16+'BP Financier'!$F$16)/('BP Financier'!$C$16+'BP Financier'!$C$19+'BP Financier'!$D$16+'BP Financier'!$D$19+'BP Financier'!$E$16+'BP Financier'!$E$19+'BP Financier'!$C$22+'BP Financier'!$D$22+'BP Financier'!$E$22+'BP Financier'!$F$16+'BP Financier'!$F$19+'BP Financier'!$F$22))*$V6307*X6307/(1-$W6307)","v":{"v":35017.42590814408,"d":"35,017"}},{"$f":"'BP Financier'!$F$44*(('BP Financier'!$C$16+'BP Financier'!$D$16+'BP Financier'!$E$16+'BP Financier'!$F$16)/('BP Financier'!$C$16+'BP Financier'!$C$19+'BP Financier'!$D$16+'BP Financier'!$D$19+'BP Financier'!$E$16+'BP Financier'!$E$19+'BP Financier'!$C$22+'BP Financier'!$D$22+'BP Financier'!$E$22+'BP Financier'!$F$16+'BP Financier'!$F$19+'BP Financier'!$F$22))*$V6307*Y6307/(1-$W6307)","v":{"v":23409.439419256538,"d":"23,409"}},{"$f":"'BP Financier'!$F$44*(('BP Financier'!$C$16+'BP Financier'!$D$16+'BP Financier'!$E$16+'BP Financier'!$F$16)/('BP Financier'!$C$16+'BP Financier'!$C$19+'BP Financier'!$D$16+'BP Financier'!$D$19+'BP Financier'!$E$16+'BP Financier'!$E$19+'BP Financier'!$C$22+'BP Financier'!$D$22+'BP Financier'!$E$22+'BP Financier'!$F$16+'BP Financier'!$F$19+'BP Financier'!$F$22))*$V6307*Z6307/(1-$W6307)","v":{"v":183212.72008294167,"d":"183,213"}},{"$f":"'BP Financier'!$F$44*(('BP Financier'!$C$16+'BP Financier'!$D$16+'BP Financier'!$E$16+'BP Financier'!$F$16)/('BP Financier'!$C$16+'BP Financier'!$C$19+'BP Financier'!$D$16+'BP Financier'!$D$19+'BP Financier'!$E$16+'BP Financier'!$E$19+'BP Financier'!$C$22+'BP Financier'!$D$22+'BP Financier'!$E$22+'BP Financier'!$F$16+'BP Financier'!$F$19+'BP Financier'!$F$22))*$V6307*AA6307/(1-$W6307)","v":{"v":22635.573653330703,"d":"22,636"}},{"$f":"'BP Financier'!$F$44*(('BP Financier'!$C$16+'BP Financier'!$D$16+'BP Financier'!$E$16+'BP Financier'!$F$16)/('BP Financier'!$C$16+'BP Financier'!$C$19+'BP Financier'!$D$16+'BP Financier'!$D$19+'BP Financier'!$E$16+'BP Financier'!$E$19+'BP Financier'!$C$22+'BP Financier'!$D$22+'BP Financier'!$E$22+'BP Financier'!$F$16+'BP Financier'!$F$19+'BP Financier'!$F$22))*$V6307*AB6307/(1-$W6307)","v":{"v":10834.120722961703,"d":"10,834"}},null,{"v":1.25E-3,"d":"0.13%"},{"$f":"Actif!$E$28/100","v":{"v":0.28900000000000003,"d":"28.90%"}},{"$f":"Actif!$E$30/100","v":{"v":0.09050000000000001,"d":"9.05%"}},{"$f":"Actif!$E$31/100","v":{"v":0.0605,"d":"6.05%"}},{"$f":"Actif!$E$32/100","v":{"v":0.47350000000000003,"d":"47.35%"}},{"$f":"Actif!$E$33/100","v":{"v":0.0585,"d":"5.85%"}},{"$f":"Actif!$E$29/100","v":{"v":0.027999999999999997,"d":"2.80%"}}]
[null,"#201",80,2026,"F","A_VIE",{"v":0.44999999999999996,"d":"0.45"},{"v":0.38999999999999996,"d":"0.39"},0.6,0.6,85,0,{"$f":"ROUND(Primes!$P$4*V6308,0)","v":12},{"$f":"'BP Financier'!$F$33*(('BP Financier'!$C$16+'BP Financier'!$D$16+'BP Financier'!$E$16+'BP Financier'!$F$16)/('BP Financier'!$C$16+'BP Financier'!$C$19+'BP Financier'!$D$16+'BP Financier'!$D$19+'BP Financier'!$E$16+'BP Financier'!$E$19+'BP Financier'!$F$16+'BP Financier'!$F$19))*V6308","v":{"v":484971.6977773321,"d":"484,972"}},{"v":275109.2797866347,"d":"275,109"},{"$f":"'BP Financier'!$F$44*(('BP Financier'!$C$16+'BP Financier'!$D$16+'BP Financier'!$E$16+'BP Financier'!$F$16)/('BP Financier'!$C$16+'BP Financier'!$C$19+'BP Financier'!$D$16+'BP Financier'!$D$19+'BP Financier'!$E$16+'BP Financier'!$E$19+'BP Financier'!$C$22+'BP Financier'!$D$22+'BP Financier'!$E$22+'BP Financier'!$F$16+'BP Financier'!$F$19+'BP Financier'!$F$22))*$V6308*X6308/(1-$W6308)","v":{"v":35017.42590814408,"d":"35,017"}},{"$f":"'BP Financier'!$F$44*(('BP Financier'!$C$16+'BP Financier'!$D$16+'BP Financier'!$E$16+'BP Financier'!$F$16)/('BP Financier'!$C$16+'BP Financier'!$C$19+'BP Financier'!$D$16+'BP Financier'!$D$19+'BP Financier'!$E$16+'BP Financier'!$E$19+'BP Financier'!$C$22+'BP Financier'!$D$22+'BP Financier'!$E$22+'BP Financier'!$F$16+'BP Financier'!$F$19+'BP Financier'!$F$22))*$V6308*Y6308/(1-$W6308)","v":{"v":23409.439419256538,"d":"23,409"}},{"$f":"'BP Financier'!$F$44*(('BP Financier'!$C$16+'BP Financier'!$D$16+'BP Financier'!$E$16+'BP Financier'!$F$16)/('BP Financier'!$C$16+'BP Financier'!$C$19+'BP Financier'!$D$16+'BP Financier'!$D$19+'BP Financier'!$E$16+'BP Financier'!$E$19+'BP Financier'!$C$22+'BP Financier'!$D$22+'BP Financier'!$E$22+'BP Financier'!$F$16+'BP Financier'!$F$19+'BP Financier'!$F$22))*$V6308*Z6308/(1-$W6308)","v":{"v":183212.72008294167,"d":"183,213"}},{"$f":"'BP Financier'!$F$44*(('BP Financier'!$C$16+'BP Financier'!$D$16+'BP Financier'!$E$16+'BP Financier'!$F$16)/('BP Financier'!$C$16+'BP Financier'!$C$19+'BP Financier'!$D$16+'BP Financier'!$D$19+'BP Financier'!$E$16+'BP Financier'!$E$19+'BP Financier'!$C$22+'BP Financier'!$D$22+'BP Financier'!$E$22+'BP Financier'!$F$16+'BP Financier'!$F$19+'BP Financier'!$F$22))*$V6308*AA6308/(1-$W6308)","v":{"v":22635.573653330703,"d":"22,636"}},{"$f":"'BP Financier'!$F$44*(('BP Financier'!$C$16+'BP Financier'!$D$16+'BP Financier'!$E$16+'BP Financier'!$F$16)/('BP Financier'!$C$16+'BP Financier'!$C$19+'BP Financier'!$D$16+'BP Financier'!$D$19+'BP Financier'!$E$16+'BP Financier'!$E$19+'BP Financier'!$C$22+'BP Financier'!$D$22+'BP Financier'!$E$22+'BP Financier'!$F$16+'BP Financier'!$F$19+'BP Financier'!$F$22))*$V6308*AB6308/(1-$W6308)","v":{"v":10834.120722961703,"d":"10,834"}},null,{"v":1.25E-3,"d":"0.13%"},{"$f":"Actif!$E$28/100","v":{"v":0.28900000000000003,"d":"28.90%"}},{"$f":"Actif!$E$30/100","v":{"v":0.09050000000000001,"d":"9.05%"}},{"$f":"Actif!$E$31/100","v":{"v":0.0605,"d":"6.05%"}},{"$f":"Actif!$E$32/100","v":{"v":0.47350000000000003,"d":"47.35%"}},{"$f":"Actif!$E$33/100","v":{"v":0.0585,"d":"5.85%"}},{"$f":"Actif!$E$29/100","v":{"v":0.027999999999999997,"d":"2.80%"}}]
[null,"#202",80,2028,"F","A_VIE",{"v":0.44999999999999996,"d":"0.45"},{"v":0.38999999999999996,"d":"0.39"},0.6,0.6,85,0,{"$f":"ROUND(Primes!$P$4*V6309,0)","v":12},{"$f":"'BP Financier'!$F$33*(('BP Financier'!$C$16+'BP Financier'!$D$16+'BP Financier'!$E$16+'BP Financier'!$F$16)/('BP Financier'!$C$16+'BP Financier'!$C$19+'BP Financier'!$D$16+'BP Financier'!$D$19+'BP Financier'!$E$16+'BP Financier'!$E$19+'BP Financier'!$F$16+'BP Financier'!$F$19))*V6309","v":{"v":484971.6977773321,"d":"484,972"}},{"v":275109.2797866347,"d":"275,109"},{"$f":"'BP Financier'!$F$44*(('BP Financier'!$C$16+'BP Financier'!$D$16+'BP Financier'!$E$16+'BP Financier'!$F$16)/('BP Financier'!$C$16+'BP Financier'!$C$19+'BP Financier'!$D$16+'BP Financier'!$D$19+'BP Financier'!$E$16+'BP Financier'!$E$19+'BP Financier'!$C$22+'BP Financier'!$D$22+'BP Financier'!$E$22+'BP Financier'!$F$16+'BP Financier'!$F$19+'BP Financier'!$F$22))*$V6309*X6309/(1-$W6309)","v":{"v":35017.42590814408,"d":"35,017"}},{"$f":"'BP Financier'!$F$44*(('BP Financier'!$C$16+'BP Financier'!$D$16+'BP Financier'!$E$16+'BP Financier'!$F$16)/('BP Financier'!$C$16+'BP Financier'!$C$19+'BP Financier'!$D$16+'BP Financier'!$D$19+'BP Financier'!$E$16+'BP Financier'!$E$19+'BP Financier'!$C$22+'BP Financier'!$D$22+'BP Financier'!$E$22+'BP Financier'!$F$16+'BP Financier'!$F$19+'BP Financier'!$F$22))*$V6309*Y6309/(1-$W6309)","v":{"v":23409.439419256538,"d":"23,409"}},{"$f":"'BP Financier'!$F$44*(('BP Financier'!$C$16+'BP Financier'!$D$16+'BP Financier'!$E$16+'BP Financier'!$F$16)/('BP Financier'!$C$16+'BP Financier'!$C$19+'BP Financier'!$D$16+'BP Financier'!$D$19+'BP Financier'!$E$16+'BP Financier'!$E$19+'BP Financier'!$C$22+'BP Financier'!$D$22+'BP Financier'!$E$22+'BP Financier'!$F$16+'BP Financier'!$F$19+'BP Financier'!$F$22))*$V6309*Z6309/(1-$W6309)","v":{"v":183212.72008294167,"d":"183,213"}},{"$f":"'BP Financier'!$F$44*(('BP Financier'!$C$16+'BP Financier'!$D$16+'BP Financier'!$E$16+'BP Financier'!$F$16)/('BP Financier'!$C$16+'BP Financier'!$C$19+'BP Financier'!$D$16+'BP Financier'!$D$19+'BP Financier'!$E$16+'BP Financier'!$E$19+'BP Financier'!$C$22+'BP Financier'!$D$22+'BP Financier'!$E$22+'BP Financier'!$F$16+'BP Financier'!$F$19+'BP Financier'!$F$22))*$V6309*AA6309/(1-$W6309)","v":{"v":22635.573653330703,"d":"22,636"}},{"$f":"'BP Financier'!$F$44*(('BP Financier'!$C$16+'BP Financier'!$D$16+'BP Financier'!$E$16+'BP Financier'!$F$16)/('BP Financier'!$C$16+'BP Financier'!$C$19+'BP Financier'!$D$16+'BP Financier'!$D$19+'BP Financier'!$E$16+'BP Financier'!$E$19+'BP Financier'!$C$22+'BP Financier'!$D$22+'BP Financier'!$E$22+'BP Financier'!$F$16+'BP Financier'!$F$19+'BP Financier'!$F$22))*$V6309*AB6309/(1-$W6309)","v":{"v":10834.120722961703,"d":"10,834"}},null,{"v":1.25E-3,"d":"0.13%"},{"$f":"Actif!$E$28/100","v":{"v":0.28900000000000003,"d":"28.90%"}},{"$f":"Actif!$E$30/100","v":{"v":0.09050000000000001,"d":"9.05%"}},{"$f":"Actif!$E$31/100","v":{"v":0.0605,"d":"6.05%"}},{"$f":"Actif!$E$32/100","v":{"v":0.47350000000000003,"d":"47.35%"}},{"$f":"Actif!$E$33/100","v":{"v":0.0585,"d":"5.85%"}},{"$f":"Actif!$E$29/100","v":{"v":0.027999999999999997,"d":"2.80%"}}]
[null,"#203",80,2029,"F","A_VIE",{"v":0.44999999999999996,"d":"0.45"},{"v":0.38999999999999996,"d":"0.39"},0.6,0.6,85,0,{"$f":"ROUND(Primes!$P$4*V6310,0)","v":12},{"$f":"'BP Financier'!$F$33*(('BP Financier'!$C$16+'BP Financier'!$D$16+'BP Financier'!$E$16+'BP Financier'!$F$16)/('BP Financier'!$C$16+'BP Financier'!$C$19+'BP Financier'!$D$16+'BP Financier'!$D$19+'BP Financier'!$E$16+'BP Financier'!$E$19+'BP Financier'!$F$16+'BP Financier'!$F$19))*V6310","v":{"v":484971.6977773321,"d":"484,972"}},{"v":275109.2797866347,"d":"275,109"},{"$f":"'BP Financier'!$F$44*(('BP Financier'!$C$16+'BP Financier'!$D$16+'BP Financier'!$E$16+'BP Financier'!$F$16)/('BP Financier'!$C$16+'BP Financier'!$C$19+'BP Financier'!$D$16+'BP Financier'!$D$19+'BP Financier'!$E$16+'BP Financier'!$E$19+'BP Financier'!$C$22+'BP Financier'!$D$22+'BP Financier'!$E$22+'BP Financier'!$F$16+'BP Financier'!$F$19+'BP Financier'!$F$22))*$V6310*X6310/(1-$W6310)","v":{"v":35017.42590814408,"d":"35,017"}},{"$f":"'BP Financier'!$F$44*(('BP Financier'!$C$16+'BP Financier'!$D$16+'BP Financier'!$E$16+'BP Financier'!$F$16)/('BP Financier'!$C$16+'BP Financier'!$C$19+'BP Financier'!$D$16+'BP Financier'!$D$19+'BP Financier'!$E$16+'BP Financier'!$E$19+'BP Financier'!$C$22+'BP Financier'!$D$22+'BP Financier'!$E$22+'BP Financier'!$F$16+'BP Financier'!$F$19+'BP Financier'!$F$22))*$V6310*Y6310/(1-$W6310)","v":{"v":23409.439419256538,"d":"23,409"}},{"$f":"'BP Financier'!$F$44*(('BP Financier'!$C$16+'BP Financier'!$D$16+'BP Financier'!$E$16+'BP Financier'!$F$16)/('BP Financier'!$C$16+'BP Financier'!$C$19+'BP Financier'!$D$16+'BP Financier'!$D$19+'BP Financier'!$E$16+'BP Financier'!$E$19+'BP Financier'!$C$22+'BP Financier'!$D$22+'BP Financier'!$E$22+'BP Financier'!$F$16+'BP Financier'!$F$19+'BP Financier'!$F$22))*$V6310*Z6310/(1-$W6310)","v":{"v":183212.72008294167,"d":"183,213"}},{"$f":"'BP Financier'!$F$44*(('BP Financier'!$C$16+'BP Financier'!$D$16+'BP Financier'!$E$16+'BP Financier'!$F$16)/('BP Financier'!$C$16+'BP Financier'!$C$19+'BP Financier'!$D$16+'BP Financier'!$D$19+'BP Financier'!$E$16+'BP Financier'!$E$19+'BP Financier'!$C$22+'BP Financier'!$D$22+'BP Financier'!$E$22+'BP Financier'!$F$16+'BP Financier'!$F$19+'BP Financier'!$F$22))*$V6310*AA6310/(1-$W6310)","v":{"v":22635.573653330703,"d":"22,636"}},{"$f":"'BP Financier'!$F$44*(('BP Financier'!$C$16+'BP Financier'!$D$16+'BP Financier'!$E$16+'BP Financier'!$F$16)/('BP Financier'!$C$16+'BP Financier'!$C$19+'BP Financier'!$D$16+'BP Financier'!$D$19+'BP Financier'!$E$16+'BP Financier'!$E$19+'BP Financier'!$C$22+'BP Financier'!$D$22+'BP Financier'!$E$22+'BP Financier'!$F$16+'BP Financier'!$F$19+'BP Financier'!$F$22))*$V6310*AB6310/(1-$W6310)","v":{"v":10834.120722961703,"d":"10,834"}},null,{"v":1.25E-3,"d":"0.13%"},{"$f":"Actif!$E$28/100","v":{"v":0.28900000000000003,"d":"28.90%"}},{"$f":"Actif!$E$30/100","v":{"v":0.09050000000000001,"d":"9.05%"}},{"$f":"Actif!$E$31/100","v":{"v":0.0605,"d":"6.05%"}},{"$f":"Actif!$E$32/100","v":{"v":0.47350000000000003,"d":"47.35%"}},{"$f":"Actif!$E$33/100","v":{"v":0.0585,"d":"5.85%"}},{"$f":"Actif!$E$29/100","v":{"v":0.027999999999999997,"d":"2.80%"}}]
[null,"#204",80,2030,"F","A_VIE",{"v":0.44999999999999996,"d":"0.45"},{"v":0.38999999999999996,"d":"0.39"},0.6,0.6,85,0,{"$f":"ROUND(Primes!$P$4*V6311,0)","v":12},{"$f":"'BP Financier'!$F$33*(('BP Financier'!$C$16+'BP Financier'!$D$16+'BP Financier'!$E$16+'BP Financier'!$F$16)/('BP Financier'!$C$16+'BP Financier'!$C$19+'BP Financier'!$D$16+'BP Financier'!$D$19+'BP Financier'!$E$16+'BP Financier'!$E$19+'BP Financier'!$F$16+'BP Financier'!$F$19))*V6311","v":{"v":484971.6977773321,"d":"484,972"}},{"v":275109.2797866347,"d":"275,109"},{"$f":"'BP Financier'!$F$44*(('BP Financier'!$C$16+'BP Financier'!$D$16+'BP Financier'!$E$16+'BP Financier'!$F$16)/('BP Financier'!$C$16+'BP Financier'!$C$19+'BP Financier'!$D$16+'BP Financier'!$D$19+'BP Financier'!$E$16+'BP Financier'!$E$19+'BP Financier'!$C$22+'BP Financier'!$D$22+'BP Financier'!$E$22+'BP Financier'!$F$16+'BP Financier'!$F$19+'BP Financier'!$F$22))*$V6311*X6311/(1-$W6311)","v":{"v":35017.42590814408,"d":"35,017"}},{"$f":"'BP Financier'!$F$44*(('BP Financier'!$C$16+'BP Financier'!$D$16+'BP Financier'!$E$16+'BP Financier'!$F$16)/('BP Financier'!$C$16+'BP Financier'!$C$19+'BP Financier'!$D$16+'BP Financier'!$D$19+'BP Financier'!$E$16+'BP Financier'!$E$19+'BP Financier'!$C$22+'BP Financier'!$D$22+'BP Financier'!$E$22+'BP Financier'!$F$16+'BP Financier'!$F$19+'BP Financier'!$F$22))*$V6311*Y6311/(1-$W6311)","v":{"v":23409.439419256538,"d":"23,409"}},{"$f":"'BP Financier'!$F$44*(('BP Financier'!$C$16+'BP Financier'!$D$16+'BP Financier'!$E$16+'BP Financier'!$F$16)/('BP Financier'!$C$16+'BP Financier'!$C$19+'BP Financier'!$D$16+'BP Financier'!$D$19+'BP Financier'!$E$16+'BP Financier'!$E$19+'BP Financier'!$C$22+'BP Financier'!$D$22+'BP Financier'!$E$22+'BP Financier'!$F$16+'BP Financier'!$F$19+'BP Financier'!$F$22))*$V6311*Z6311/(1-$W6311)","v":{"v":183212.72008294167,"d":"183,213"}},{"$f":"'BP Financier'!$F$44*(('BP Financier'!$C$16+'BP Financier'!$D$16+'BP Financier'!$E$16+'BP Financier'!$F$16)/('BP Financier'!$C$16+'BP Financier'!$C$19+'BP Financier'!$D$16+'BP Financier'!$D$19+'BP Financier'!$E$16+'BP Financier'!$E$19+'BP Financier'!$C$22+'BP Financier'!$D$22+'BP Financier'!$E$22+'BP Financier'!$F$16+'BP Financier'!$F$19+'BP Financier'!$F$22))*$V6311*AA6311/(1-$W6311)","v":{"v":22635.573653330703,"d":"22,636"}},{"$f":"'BP Financier'!$F$44*(('BP Financier'!$C$16+'BP Financier'!$D$16+'BP Financier'!$E$16+'BP Financier'!$F$16)/('BP Financier'!$C$16+'BP Financier'!$C$19+'BP Financier'!$D$16+'BP Financier'!$D$19+'BP Financier'!$E$16+'BP Financier'!$E$19+'BP Financier'!$C$22+'BP Financier'!$D$22+'BP Financier'!$E$22+'BP Financier'!$F$16+'BP Financier'!$F$19+'BP Financier'!$F$22))*$V6311*AB6311/(1-$W6311)","v":{"v":10834.120722961703,"d":"10,834"}},null,{"v":1.25E-3,"d":"0.13%"},{"$f":"Actif!$E$28/100","v":{"v":0.28900000000000003,"d":"28.90%"}},{"$f":"Actif!$E$30/100","v":{"v":0.09050000000000001,"d":"9.05%"}},{"$f":"Actif!$E$31/100","v":{"v":0.0605,"d":"6.05%"}},{"$f":"Actif!$E$32/100","v":{"v":0.47350000000000003,"d":"47.35%"}},{"$f":"Actif!$E$33/100","v":{"v":0.0585,"d":"5.85%"}},{"$f":"Actif!$E$29/100","v":{"v":0.027999999999999997,"d":"2.80%"}}]
[null,"#205",85,2026,"H","A_VIE",{"v":0.44999999999999996,"d":"0.45"},{"v":0.38999999999999996,"d":"0.39"},0.6,0.6,85,0,{"$f":"ROUND(Primes!$P$4*V6312,0)","v":6},{"$f":"'BP Financier'!$F$33*(('BP Financier'!$C$16+'BP Financier'!$D$16+'BP Financier'!$E$16+'BP Financier'!$F$16)/('BP Financier'!$C$16+'BP Financier'!$C$19+'BP Financier'!$D$16+'BP Financier'!$D$19+'BP Financier'!$E$16+'BP Financier'!$E$19+'BP Financier'!$F$16+'BP Financier'!$F$19))*V6312","v":{"v":242485.84888866605,"d":"242,486"}},{"v":137554.63989331736,"d":"137,555"},{"$f":"'BP Financier'!$F$44*(('BP Financier'!$C$16+'BP Financier'!$D$16+'BP Financier'!$E$16+'BP Financier'!$F$16)/('BP Financier'!$C$16+'BP Financier'!$C$19+'BP Financier'!$D$16+'BP Financier'!$D$19+'BP Financier'!$E$16+'BP Financier'!$E$19+'BP Financier'!$C$22+'BP Financier'!$D$22+'BP Financier'!$E$22+'BP Financier'!$F$16+'BP Financier'!$F$19+'BP Financier'!$F$22))*$V6312*X6312/(1-$W6312)","v":{"v":17508.71295407204,"d":"17,509"}},{"$f":"'BP Financier'!$F$44*(('BP Financier'!$C$16+'BP Financier'!$D$16+'BP Financier'!$E$16+'BP Financier'!$F$16)/('BP Financier'!$C$16+'BP Financier'!$C$19+'BP Financier'!$D$16+'BP Financier'!$D$19+'BP Financier'!$E$16+'BP Financier'!$E$19+'BP Financier'!$C$22+'BP Financier'!$D$22+'BP Financier'!$E$22+'BP Financier'!$F$16+'BP Financier'!$F$19+'BP Financier'!$F$22))*$V6312*Y6312/(1-$W6312)","v":{"v":11704.719709628269,"d":"11,705"}},{"$f":"'BP Financier'!$F$44*(('BP Financier'!$C$16+'BP Financier'!$D$16+'BP Financier'!$E$16+'BP Financier'!$F$16)/('BP Financier'!$C$16+'BP Financier'!$C$19+'BP Financier'!$D$16+'BP Financier'!$D$19+'BP Financier'!$E$16+'BP Financier'!$E$19+'BP Financier'!$C$22+'BP Financier'!$D$22+'BP Financier'!$E$22+'BP Financier'!$F$16+'BP Financier'!$F$19+'BP Financier'!$F$22))*$V6312*Z6312/(1-$W6312)","v":{"v":91606.36004147083,"d":"91,606"}},{"$f":"'BP Financier'!$F$44*(('BP Financier'!$C$16+'BP Financier'!$D$16+'BP Financier'!$E$16+'BP Financier'!$F$16)/('BP Financier'!$C$16+'BP Financier'!$C$19+'BP Financier'!$D$16+'BP Financier'!$D$19+'BP Financier'!$E$16+'BP Financier'!$E$19+'BP Financier'!$C$22+'BP Financier'!$D$22+'BP Financier'!$E$22+'BP Financier'!$F$16+'BP Financier'!$F$19+'BP Financier'!$F$22))*$V6312*AA6312/(1-$W6312)","v":{"v":11317.786826665351,"d":"11,318"}},{"$f":"'BP Financier'!$F$44*(('BP Financier'!$C$16+'BP Financier'!$D$16+'BP Financier'!$E$16+'BP Financier'!$F$16)/('BP Financier'!$C$16+'BP Financier'!$C$19+'BP Financier'!$D$16+'BP Financier'!$D$19+'BP Financier'!$E$16+'BP Financier'!$E$19+'BP Financier'!$C$22+'BP Financier'!$D$22+'BP Financier'!$E$22+'BP Financier'!$F$16+'BP Financier'!$F$19+'BP Financier'!$F$22))*$V6312*AB6312/(1-$W6312)","v":{"v":5417.0603614808515,"d":"5,417"}},null,{"v":0.000625,"d":"0.06%"},{"$f":"Actif!$E$28/100","v":{"v":0.28900000000000003,"d":"28.90%"}},{"$f":"Actif!$E$30/100","v":{"v":0.09050000000000001,"d":"9.05%"}},{"$f":"Actif!$E$31/100","v":{"v":0.0605,"d":"6.05%"}},{"$f":"Actif!$E$32/100","v":{"v":0.47350000000000003,"d":"47.35%"}},{"$f":"Actif!$E$33/100","v":{"v":0.0585,"d":"5.85%"}},{"$f":"Actif!$E$29/100","v":{"v":0.027999999999999997,"d":"2.80%"}}]
[null,"#206",85,2028,"H","A_VIE",{"v":0.44999999999999996,"d":"0.45"},{"v":0.38999999999999996,"d":"0.39"},0.6,0.6,85,0,{"$f":"ROUND(Primes!$P$4*V6313,0)","v":6},{"$f":"'BP Financier'!$F$33*(('BP Financier'!$C$16+'BP Financier'!$D$16+'BP Financier'!$E$16+'BP Financier'!$F$16)/('BP Financier'!$C$16+'BP Financier'!$C$19+'BP Financier'!$D$16+'BP Financier'!$D$19+'BP Financier'!$E$16+'BP Financier'!$E$19+'BP Financier'!$F$16+'BP Financier'!$F$19))*V6313","v":{"v":242485.84888866605,"d":"242,486"}},{"v":137554.63989331736,"d":"137,555"},{"$f":"'BP Financier'!$F$44*(('BP Financier'!$C$16+'BP Financier'!$D$16+'BP Financier'!$E$16+'BP Financier'!$F$16)/('BP Financier'!$C$16+'BP Financier'!$C$19+'BP Financier'!$D$16+'BP Financier'!$D$19+'BP Financier'!$E$16+'BP Financier'!$E$19+'BP Financier'!$C$22+'BP Financier'!$D$22+'BP Financier'!$E$22+'BP Financier'!$F$16+'BP Financier'!$F$19+'BP Financier'!$F$22))*$V6313*X6313/(1-$W6313)","v":{"v":17508.71295407204,"d":"17,509"}},{"$f":"'BP Financier'!$F$44*(('BP Financier'!$C$16+'BP Financier'!$D$16+'BP Financier'!$E$16+'BP Financier'!$F$16)/('BP Financier'!$C$16+'BP Financier'!$C$19+'BP Financier'!$D$16+'BP Financier'!$D$19+'BP Financier'!$E$16+'BP Financier'!$E$19+'BP Financier'!$C$22+'BP Financier'!$D$22+'BP Financier'!$E$22+'BP Financier'!$F$16+'BP Financier'!$F$19+'BP Financier'!$F$22))*$V6313*Y6313/(1-$W6313)","v":{"v":11704.719709628269,"d":"11,705"}},{"$f":"'BP Financier'!$F$44*(('BP Financier'!$C$16+'BP Financier'!$D$16+'BP Financier'!$E$16+'BP Financier'!$F$16)/('BP Financier'!$C$16+'BP Financier'!$C$19+'BP Financier'!$D$16+'BP Financier'!$D$19+'BP Financier'!$E$16+'BP Financier'!$E$19+'BP Financier'!$C$22+'BP Financier'!$D$22+'BP Financier'!$E$22+'BP Financier'!$F$16+'BP Financier'!$F$19+'BP Financier'!$F$22))*$V6313*Z6313/(1-$W6313)","v":{"v":91606.36004147083,"d":"91,606"}},{"$f":"'BP Financier'!$F$44*(('BP Financier'!$C$16+'BP Financier'!$D$16+'BP Financier'!$E$16+'BP Financier'!$F$16)/('BP Financier'!$C$16+'BP Financier'!$C$19+'BP Financier'!$D$16+'BP Financier'!$D$19+'BP Financier'!$E$16+'BP Financier'!$E$19+'BP Financier'!$C$22+'BP Financier'!$D$22+'BP Financier'!$E$22+'BP Financier'!$F$16+'BP Financier'!$F$19+'BP Financier'!$F$22))*$V6313*AA6313/(1-$W6313)","v":{"v":11317.786826665351,"d":"11,318"}},{"$f":"'BP Financier'!$F$44*(('BP Financier'!$C$16+'BP Financier'!$D$16+'BP Financier'!$E$16+'BP Financier'!$F$16)/('BP Financier'!$C$16+'BP Financier'!$C$19+'BP Financier'!$D$16+'BP Financier'!$D$19+'BP Financier'!$E$16+'BP Financier'!$E$19+'BP Financier'!$C$22+'BP Financier'!$D$22+'BP Financier'!$E$22+'BP Financier'!$F$16+'BP Financier'!$F$19+'BP Financier'!$F$22))*$V6313*AB6313/(1-$W6313)","v":{"v":5417.0603614808515,"d":"5,417"}},null,{"v":0.000625,"d":"0.06%"},{"$f":"Actif!$E$28/100","v":{"v":0.28900000000000003,"d":"28.90%"}},{"$f":"Actif!$E$30/100","v":{"v":0.09050000000000001,"d":"9.05%"}},{"$f":"Actif!$E$31/100","v":{"v":0.0605,"d":"6.05%"}},{"$f":"Actif!$E$32/100","v":{"v":0.47350000000000003,"d":"47.35%"}},{"$f":"Actif!$E$33/100","v":{"v":0.0585,"d":"5.85%"}},{"$f":"Actif!$E$29/100","v":{"v":0.027999999999999997,"d":"2.80%"}}]
[null,"#207",85,2029,"H","A_VIE",{"v":0.44999999999999996,"d":"0.45"},{"v":0.38999999999999996,"d":"0.39"},0.6,0.6,85,0,{"$f":"ROUND(Primes!$P$4*V6314,0)","v":6},{"$f":"'BP Financier'!$F$33*(('BP Financier'!$C$16+'BP Financier'!$D$16+'BP Financier'!$E$16+'BP Financier'!$F$16)/('BP Financier'!$C$16+'BP Financier'!$C$19+'BP Financier'!$D$16+'BP Financier'!$D$19+'BP Financier'!$E$16+'BP Financier'!$E$19+'BP Financier'!$F$16+'BP Financier'!$F$19))*V6314","v":{"v":242485.84888866605,"d":"242,486"}},{"v":137554.63989331736,"d":"137,555"},{"$f":"'BP Financier'!$F$44*(('BP Financier'!$C$16+'BP Financier'!$D$16+'BP Financier'!$E$16+'BP Financier'!$F$16)/('BP Financier'!$C$16+'BP Financier'!$C$19+'BP Financier'!$D$16+'BP Financier'!$D$19+'BP Financier'!$E$16+'BP Financier'!$E$19+'BP Financier'!$C$22+'BP Financier'!$D$22+'BP Financier'!$E$22+'BP Financier'!$F$16+'BP Financier'!$F$19+'BP Financier'!$F$22))*$V6314*X6314/(1-$W6314)","v":{"v":17508.71295407204,"d":"17,509"}},{"$f":"'BP Financier'!$F$44*(('BP Financier'!$C$16+'BP Financier'!$D$16+'BP Financier'!$E$16+'BP Financier'!$F$16)/('BP Financier'!$C$16+'BP Financier'!$C$19+'BP Financier'!$D$16+'BP Financier'!$D$19+'BP Financier'!$E$16+'BP Financier'!$E$19+'BP Financier'!$C$22+'BP Financier'!$D$22+'BP Financier'!$E$22+'BP Financier'!$F$16+'BP Financier'!$F$19+'BP Financier'!$F$22))*$V6314*Y6314/(1-$W6314)","v":{"v":11704.719709628269,"d":"11,705"}},{"$f":"'BP Financier'!$F$44*(('BP Financier'!$C$16+'BP Financier'!$D$16+'BP Financier'!$E$16+'BP Financier'!$F$16)/('BP Financier'!$C$16+'BP Financier'!$C$19+'BP Financier'!$D$16+'BP Financier'!$D$19+'BP Financier'!$E$16+'BP Financier'!$E$19+'BP Financier'!$C$22+'BP Financier'!$D$22+'BP Financier'!$E$22+'BP Financier'!$F$16+'BP Financier'!$F$19+'BP Financier'!$F$22))*$V6314*Z6314/(1-$W6314)","v":{"v":91606.36004147083,"d":"91,606"}},{"$f":"'BP Financier'!$F$44*(('BP Financier'!$C$16+'BP Financier'!$D$16+'BP Financier'!$E$16+'BP Financier'!$F$16)/('BP Financier'!$C$16+'BP Financier'!$C$19+'BP Financier'!$D$16+'BP Financier'!$D$19+'BP Financier'!$E$16+'BP Financier'!$E$19+'BP Financier'!$C$22+'BP Financier'!$D$22+'BP Financier'!$E$22+'BP Financier'!$F$16+'BP Financier'!$F$19+'BP Financier'!$F$22))*$V6314*AA6314/(1-$W6314)","v":{"v":11317.786826665351,"d":"11,318"}},{"$f":"'BP Financier'!$F$44*(('BP Financier'!$C$16+'BP Financier'!$D$16+'BP Financier'!$E$16+'BP Financier'!$F$16)/('BP Financier'!$C$16+'BP Financier'!$C$19+'BP Financier'!$D$16+'BP Financier'!$D$19+'BP Financier'!$E$16+'BP Financier'!$E$19+'BP Financier'!$C$22+'BP Financier'!$D$22+'BP Financier'!$E$22+'BP Financier'!$F$16+'BP Financier'!$F$19+'BP Financier'!$F$22))*$V6314*AB6314/(1-$W6314)","v":{"v":5417.0603614808515,"d":"5,417"}},null,{"v":0.000625,"d":"0.06%"},{"$f":"Actif!$E$28/100","v":{"v":0.28900000000000003,"d":"28.90%"}},{"$f":"Actif!$E$30/100","v":{"v":0.09050000000000001,"d":"9.05%"}},{"$f":"Actif!$E$31/100","v":{"v":0.0605,"d":"6.05%"}},{"$f":"Actif!$E$32/100","v":{"v":0.47350000000000003,"d":"47.35%"}},{"$f":"Actif!$E$33/100","v":{"v":0.0585,"d":"5.85%"}},{"$f":"Actif!$E$29/100","v":{"v":0.027999999999999997,"d":"2.80%"}}]
[null,"#208",85,2030,"H","A_VIE",{"v":0.44999999999999996,"d":"0.45"},{"v":0.38999999999999996,"d":"0.39"},0.6,0.6,85,0,{"$f":"ROUND(Primes!$P$4*V6315,0)","v":6},{"$f":"'BP Financier'!$F$33*(('BP Financier'!$C$16+'BP Financier'!$D$16+'BP Financier'!$E$16+'BP Financier'!$F$16)/('BP Financier'!$C$16+'BP Financier'!$C$19+'BP Financier'!$D$16+'BP Financier'!$D$19+'BP Financier'!$E$16+'BP Financier'!$E$19+'BP Financier'!$F$16+'BP Financier'!$F$19))*V6315","v":{"v":242485.84888866605,"d":"242,486"}},{"v":137554.63989331736,"d":"137,555"},{"$f":"'BP Financier'!$F$44*(('BP Financier'!$C$16+'BP Financier'!$D$16+'BP Financier'!$E$16+'BP Financier'!$F$16)/('BP Financier'!$C$16+'BP Financier'!$C$19+'BP Financier'!$D$16+'BP Financier'!$D$19+'BP Financier'!$E$16+'BP Financier'!$E$19+'BP Financier'!$C$22+'BP Financier'!$D$22+'BP Financier'!$E$22+'BP Financier'!$F$16+'BP Financier'!$F$19+'BP Financier'!$F$22))*$V6315*X6315/(1-$W6315)","v":{"v":17508.71295407204,"d":"17,509"}},{"$f":"'BP Financier'!$F$44*(('BP Financier'!$C$16+'BP Financier'!$D$16+'BP Financier'!$E$16+'BP Financier'!$F$16)/('BP Financier'!$C$16+'BP Financier'!$C$19+'BP Financier'!$D$16+'BP Financier'!$D$19+'BP Financier'!$E$16+'BP Financier'!$E$19+'BP Financier'!$C$22+'BP Financier'!$D$22+'BP Financier'!$E$22+'BP Financier'!$F$16+'BP Financier'!$F$19+'BP Financier'!$F$22))*$V6315*Y6315/(1-$W6315)","v":{"v":11704.719709628269,"d":"11,705"}},{"$f":"'BP Financier'!$F$44*(('BP Financier'!$C$16+'BP Financier'!$D$16+'BP Financier'!$E$16+'BP Financier'!$F$16)/('BP Financier'!$C$16+'BP Financier'!$C$19+'BP Financier'!$D$16+'BP Financier'!$D$19+'BP Financier'!$E$16+'BP Financier'!$E$19+'BP Financier'!$C$22+'BP Financier'!$D$22+'BP Financier'!$E$22+'BP Financier'!$F$16+'BP Financier'!$F$19+'BP Financier'!$F$22))*$V6315*Z6315/(1-$W6315)","v":{"v":91606.36004147083,"d":"91,606"}},{"$f":"'BP Financier'!$F$44*(('BP Financier'!$C$16+'BP Financier'!$D$16+'BP Financier'!$E$16+'BP Financier'!$F$16)/('BP Financier'!$C$16+'BP Financier'!$C$19+'BP Financier'!$D$16+'BP Financier'!$D$19+'BP Financier'!$E$16+'BP Financier'!$E$19+'BP Financier'!$C$22+'BP Financier'!$D$22+'BP Financier'!$E$22+'BP Financier'!$F$16+'BP Financier'!$F$19+'BP Financier'!$F$22))*$V6315*AA6315/(1-$W6315)","v":{"v":11317.786826665351,"d":"11,318"}},{"$f":"'BP Financier'!$F$44*(('BP Financier'!$C$16+'BP Financier'!$D$16+'BP Financier'!$E$16+'BP Financier'!$F$16)/('BP Financier'!$C$16+'BP Financier'!$C$19+'BP Financier'!$D$16+'BP Financier'!$D$19+'BP Financier'!$E$16+'BP Financier'!$E$19+'BP Financier'!$C$22+'BP Financier'!$D$22+'BP Financier'!$E$22+'BP Financier'!$F$16+'BP Financier'!$F$19+'BP Financier'!$F$22))*$V6315*AB6315/(1-$W6315)","v":{"v":5417.0603614808515,"d":"5,417"}},null,{"v":0.000625,"d":"0.06%"},{"$f":"Actif!$E$28/100","v":{"v":0.28900000000000003,"d":"28.90%"}},{"$f":"Actif!$E$30/100","v":{"v":0.09050000000000001,"d":"9.05%"}},{"$f":"Actif!$E$31/100","v":{"v":0.0605,"d":"6.05%"}},{"$f":"Actif!$E$32/100","v":{"v":0.47350000000000003,"d":"47.35%"}},{"$f":"Actif!$E$33/100","v":{"v":0.0585,"d":"5.85%"}},{"$f":"Actif!$E$29/100","v":{"v":0.027999999999999997,"d":"2.80%"}}]
[null,"#209",90,2026,"H","A_VIE",{"v":0.44999999999999996,"d":"0.45"},{"v":0.38999999999999996,"d":"0.39"},0.6,0.6,85,0,{"$f":"ROUND(Primes!$P$4*V6316,0)","v":6},{"$f":"'BP Financier'!$F$33*(('BP Financier'!$C$16+'BP Financier'!$D$16+'BP Financier'!$E$16+'BP Financier'!$F$16)/('BP Financier'!$C$16+'BP Financier'!$C$19+'BP Financier'!$D$16+'BP Financier'!$D$19+'BP Financier'!$E$16+'BP Financier'!$E$19+'BP Financier'!$F$16+'BP Financier'!$F$19))*V6316","v":{"v":242485.84888866605,"d":"242,486"}},{"v":137554.63989331736,"d":"137,555"},{"$f":"'BP Financier'!$F$44*(('BP Financier'!$C$16+'BP Financier'!$D$16+'BP Financier'!$E$16+'BP Financier'!$F$16)/('BP Financier'!$C$16+'BP Financier'!$C$19+'BP Financier'!$D$16+'BP Financier'!$D$19+'BP Financier'!$E$16+'BP Financier'!$E$19+'BP Financier'!$C$22+'BP Financier'!$D$22+'BP Financier'!$E$22+'BP Financier'!$F$16+'BP Financier'!$F$19+'BP Financier'!$F$22))*$V6316*X6316/(1-$W6316)","v":{"v":17508.71295407204,"d":"17,509"}},{"$f":"'BP Financier'!$F$44*(('BP Financier'!$C$16+'BP Financier'!$D$16+'BP Financier'!$E$16+'BP Financier'!$F$16)/('BP Financier'!$C$16+'BP Financier'!$C$19+'BP Financier'!$D$16+'BP Financier'!$D$19+'BP Financier'!$E$16+'BP Financier'!$E$19+'BP Financier'!$C$22+'BP Financier'!$D$22+'BP Financier'!$E$22+'BP Financier'!$F$16+'BP Financier'!$F$19+'BP Financier'!$F$22))*$V6316*Y6316/(1-$W6316)","v":{"v":11704.719709628269,"d":"11,705"}},{"$f":"'BP Financier'!$F$44*(('BP Financier'!$C$16+'BP Financier'!$D$16+'BP Financier'!$E$16+'BP Financier'!$F$16)/('BP Financier'!$C$16+'BP Financier'!$C$19+'BP Financier'!$D$16+'BP Financier'!$D$19+'BP Financier'!$E$16+'BP Financier'!$E$19+'BP Financier'!$C$22+'BP Financier'!$D$22+'BP Financier'!$E$22+'BP Financier'!$F$16+'BP Financier'!$F$19+'BP Financier'!$F$22))*$V6316*Z6316/(1-$W6316)","v":{"v":91606.36004147083,"d":"91,606"}},{"$f":"'BP Financier'!$F$44*(('BP Financier'!$C$16+'BP Financier'!$D$16+'BP Financier'!$E$16+'BP Financier'!$F$16)/('BP Financier'!$C$16+'BP Financier'!$C$19+'BP Financier'!$D$16+'BP Financier'!$D$19+'BP Financier'!$E$16+'BP Financier'!$E$19+'BP Financier'!$C$22+'BP Financier'!$D$22+'BP Financier'!$E$22+'BP Financier'!$F$16+'BP Financier'!$F$19+'BP Financier'!$F$22))*$V6316*AA6316/(1-$W6316)","v":{"v":11317.786826665351,"d":"11,318"}},{"$f":"'BP Financier'!$F$44*(('BP Financier'!$C$16+'BP Financier'!$D$16+'BP Financier'!$E$16+'BP Financier'!$F$16)/('BP Financier'!$C$16+'BP Financier'!$C$19+'BP Financier'!$D$16+'BP Financier'!$D$19+'BP Financier'!$E$16+'BP Financier'!$E$19+'BP Financier'!$C$22+'BP Financier'!$D$22+'BP Financier'!$E$22+'BP Financier'!$F$16+'BP Financier'!$F$19+'BP Financier'!$F$22))*$V6316*AB6316/(1-$W6316)","v":{"v":5417.0603614808515,"d":"5,417"}},null,{"v":0.000625,"d":"0.06%"},{"$f":"Actif!$E$28/100","v":{"v":0.28900000000000003,"d":"28.90%"}},{"$f":"Actif!$E$30/100","v":{"v":0.09050000000000001,"d":"9.05%"}},{"$f":"Actif!$E$31/100","v":{"v":0.0605,"d":"6.05%"}},{"$f":"Actif!$E$32/100","v":{"v":0.47350000000000003,"d":"47.35%"}},{"$f":"Actif!$E$33/100","v":{"v":0.0585,"d":"5.85%"}},{"$f":"Actif!$E$29/100","v":{"v":0.027999999999999997,"d":"2.80%"}}]
[null,"#210",90,2028,"H","A_VIE",{"v":0.44999999999999996,"d":"0.45"},{"v":0.38999999999999996,"d":"0.39"},0.6,0.6,85,0,{"$f":"ROUND(Primes!$P$4*V6317,0)","v":6},{"$f":"'BP Financier'!$F$33*(('BP Financier'!$C$16+'BP Financier'!$D$16+'BP Financier'!$E$16+'BP Financier'!$F$16)/('BP Financier'!$C$16+'BP Financier'!$C$19+'BP Financier'!$D$16+'BP Financier'!$D$19+'BP Financier'!$E$16+'BP Financier'!$E$19+'BP Financier'!$F$16+'BP Financier'!$F$19))*V6317","v":{"v":242485.84888866605,"d":"242,486"}},{"v":137554.63989331736,"d":"137,555"},{"$f":"'BP Financier'!$F$44*(('BP Financier'!$C$16+'BP Financier'!$D$16+'BP Financier'!$E$16+'BP Financier'!$F$16)/('BP Financier'!$C$16+'BP Financier'!$C$19+'BP Financier'!$D$16+'BP Financier'!$D$19+'BP Financier'!$E$16+'BP Financier'!$E$19+'BP Financier'!$C$22+'BP Financier'!$D$22+'BP Financier'!$E$22+'BP Financier'!$F$16+'BP Financier'!$F$19+'BP Financier'!$F$22))*$V6317*X6317/(1-$W6317)","v":{"v":17508.71295407204,"d":"17,509"}},{"$f":"'BP Financier'!$F$44*(('BP Financier'!$C$16+'BP Financier'!$D$16+'BP Financier'!$E$16+'BP Financier'!$F$16)/('BP Financier'!$C$16+'BP Financier'!$C$19+'BP Financier'!$D$16+'BP Financier'!$D$19+'BP Financier'!$E$16+'BP Financier'!$E$19+'BP Financier'!$C$22+'BP Financier'!$D$22+'BP Financier'!$E$22+'BP Financier'!$F$16+'BP Financier'!$F$19+'BP Financier'!$F$22))*$V6317*Y6317/(1-$W6317)","v":{"v":11704.719709628269,"d":"11,705"}},{"$f":"'BP Financier'!$F$44*(('BP Financier'!$C$16+'BP Financier'!$D$16+'BP Financier'!$E$16+'BP Financier'!$F$16)/('BP Financier'!$C$16+'BP Financier'!$C$19+'BP Financier'!$D$16+'BP Financier'!$D$19+'BP Financier'!$E$16+'BP Financier'!$E$19+'BP Financier'!$C$22+'BP Financier'!$D$22+'BP Financier'!$E$22+'BP Financier'!$F$16+'BP Financier'!$F$19+'BP Financier'!$F$22))*$V6317*Z6317/(1-$W6317)","v":{"v":91606.36004147083,"d":"91,606"}},{"$f":"'BP Financier'!$F$44*(('BP Financier'!$C$16+'BP Financier'!$D$16+'BP Financier'!$E$16+'BP Financier'!$F$16)/('BP Financier'!$C$16+'BP Financier'!$C$19+'BP Financier'!$D$16+'BP Financier'!$D$19+'BP Financier'!$E$16+'BP Financier'!$E$19+'BP Financier'!$C$22+'BP Financier'!$D$22+'BP Financier'!$E$22+'BP Financier'!$F$16+'BP Financier'!$F$19+'BP Financier'!$F$22))*$V6317*AA6317/(1-$W6317)","v":{"v":11317.786826665351,"d":"11,318"}},{"$f":"'BP Financier'!$F$44*(('BP Financier'!$C$16+'BP Financier'!$D$16+'BP Financier'!$E$16+'BP Financier'!$F$16)/('BP Financier'!$C$16+'BP Financier'!$C$19+'BP Financier'!$D$16+'BP Financier'!$D$19+'BP Financier'!$E$16+'BP Financier'!$E$19+'BP Financier'!$C$22+'BP Financier'!$D$22+'BP Financier'!$E$22+'BP Financier'!$F$16+'BP Financier'!$F$19+'BP Financier'!$F$22))*$V6317*AB6317/(1-$W6317)","v":{"v":5417.0603614808515,"d":"5,417"}},null,{"v":0.000625,"d":"0.06%"},{"$f":"Actif!$E$28/100","v":{"v":0.28900000000000003,"d":"28.90%"}},{"$f":"Actif!$E$30/100","v":{"v":0.09050000000000001,"d":"9.05%"}},{"$f":"Actif!$E$31/100","v":{"v":0.0605,"d":"6.05%"}},{"$f":"Actif!$E$32/100","v":{"v":0.47350000000000003,"d":"47.35%"}},{"$f":"Actif!$E$33/100","v":{"v":0.0585,"d":"5.85%"}},{"$f":"Actif!$E$29/100","v":{"v":0.027999999999999997,"d":"2.80%"}}]
[null,"#211",90,2029,"H","A_VIE",{"v":0.44999999999999996,"d":"0.45"},{"v":0.38999999999999996,"d":"0.39"},0.6,0.6,85,0,{"$f":"ROUND(Primes!$P$4*V6318,0)","v":6},{"$f":"'BP Financier'!$F$33*(('BP Financier'!$C$16+'BP Financier'!$D$16+'BP Financier'!$E$16+'BP Financier'!$F$16)/('BP Financier'!$C$16+'BP Financier'!$C$19+'BP Financier'!$D$16+'BP Financier'!$D$19+'BP Financier'!$E$16+'BP Financier'!$E$19+'BP Financier'!$F$16+'BP Financier'!$F$19))*V6318","v":{"v":242485.84888866605,"d":"242,486"}},{"v":137554.63989331736,"d":"137,555"},{"$f":"'BP Financier'!$F$44*(('BP Financier'!$C$16+'BP Financier'!$D$16+'BP Financier'!$E$16+'BP Financier'!$F$16)/('BP Financier'!$C$16+'BP Financier'!$C$19+'BP Financier'!$D$16+'BP Financier'!$D$19+'BP Financier'!$E$16+'BP Financier'!$E$19+'BP Financier'!$C$22+'BP Financier'!$D$22+'BP Financier'!$E$22+'BP Financier'!$F$16+'BP Financier'!$F$19+'BP Financier'!$F$22))*$V6318*X6318/(1-$W6318)","v":{"v":17508.71295407204,"d":"17,509"}},{"$f":"'BP Financier'!$F$44*(('BP Financier'!$C$16+'BP Financier'!$D$16+'BP Financier'!$E$16+'BP Financier'!$F$16)/('BP Financier'!$C$16+'BP Financier'!$C$19+'BP Financier'!$D$16+'BP Financier'!$D$19+'BP Financier'!$E$16+'BP Financier'!$E$19+'BP Financier'!$C$22+'BP Financier'!$D$22+'BP Financier'!$E$22+'BP Financier'!$F$16+'BP Financier'!$F$19+'BP Financier'!$F$22))*$V6318*Y6318/(1-$W6318)","v":{"v":11704.719709628269,"d":"11,705"}},{"$f":"'BP Financier'!$F$44*(('BP Financier'!$C$16+'BP Financier'!$D$16+'BP Financier'!$E$16+'BP Financier'!$F$16)/('BP Financier'!$C$16+'BP Financier'!$C$19+'BP Financier'!$D$16+'BP Financier'!$D$19+'BP Financier'!$E$16+'BP Financier'!$E$19+'BP Financier'!$C$22+'BP Financier'!$D$22+'BP Financier'!$E$22+'BP Financier'!$F$16+'BP Financier'!$F$19+'BP Financier'!$F$22))*$V6318*Z6318/(1-$W6318)","v":{"v":91606.36004147083,"d":"91,606"}},{"$f":"'BP Financier'!$F$44*(('BP Financier'!$C$16+'BP Financier'!$D$16+'BP Financier'!$E$16+'BP Financier'!$F$16)/('BP Financier'!$C$16+'BP Financier'!$C$19+'BP Financier'!$D$16+'BP Financier'!$D$19+'BP Financier'!$E$16+'BP Financier'!$E$19+'BP Financier'!$C$22+'BP Financier'!$D$22+'BP Financier'!$E$22+'BP Financier'!$F$16+'BP Financier'!$F$19+'BP Financier'!$F$22))*$V6318*AA6318/(1-$W6318)","v":{"v":11317.786826665351,"d":"11,318"}},{"$f":"'BP Financier'!$F$44*(('BP Financier'!$C$16+'BP Financier'!$D$16+'BP Financier'!$E$16+'BP Financier'!$F$16)/('BP Financier'!$C$16+'BP Financier'!$C$19+'BP Financier'!$D$16+'BP Financier'!$D$19+'BP Financier'!$E$16+'BP Financier'!$E$19+'BP Financier'!$C$22+'BP Financier'!$D$22+'BP Financier'!$E$22+'BP Financier'!$F$16+'BP Financier'!$F$19+'BP Financier'!$F$22))*$V6318*AB6318/(1-$W6318)","v":{"v":5417.0603614808515,"d":"5,417"}},null,{"v":0.000625,"d":"0.06%"},{"$f":"Actif!$E$28/100","v":{"v":0.28900000000000003,"d":"28.90%"}},{"$f":"Actif!$E$30/100","v":{"v":0.09050000000000001,"d":"9.05%"}},{"$f":"Actif!$E$31/100","v":{"v":0.0605,"d":"6.05%"}},{"$f":"Actif!$E$32/100","v":{"v":0.47350000000000003,"d":"47.35%"}},{"$f":"Actif!$E$33/100","v":{"v":0.0585,"d":"5.85%"}},{"$f":"Actif!$E$29/100","v":{"v":0.027999999999999997,"d":"2.80%"}}]
[null,"#212",90,2030,"H","A_VIE",{"v":0.44999999999999996,"d":"0.45"},{"v":0.38999999999999996,"d":"0.39"},0.6,0.6,85,0,{"$f":"ROUND(Primes!$P$4*V6319,0)","v":6},{"$f":"'BP Financier'!$F$33*(('BP Financier'!$C$16+'BP Financier'!$D$16+'BP Financier'!$E$16+'BP Financier'!$F$16)/('BP Financier'!$C$16+'BP Financier'!$C$19+'BP Financier'!$D$16+'BP Financier'!$D$19+'BP Financier'!$E$16+'BP Financier'!$E$19+'BP Financier'!$F$16+'BP Financier'!$F$19))*V6319","v":{"v":242485.84888866605,"d":"242,486"}},{"v":137554.63989331736,"d":"137,555"},{"$f":"'BP Financier'!$F$44*(('BP Financier'!$C$16+'BP Financier'!$D$16+'BP Financier'!$E$16+'BP Financier'!$F$16)/('BP Financier'!$C$16+'BP Financier'!$C$19+'BP Financier'!$D$16+'BP Financier'!$D$19+'BP Financier'!$E$16+'BP Financier'!$E$19+'BP Financier'!$C$22+'BP Financier'!$D$22+'BP Financier'!$E$22+'BP Financier'!$F$16+'BP Financier'!$F$19+'BP Financier'!$F$22))*$V6319*X6319/(1-$W6319)","v":{"v":17508.71295407204,"d":"17,509"}},{"$f":"'BP Financier'!$F$44*(('BP Financier'!$C$16+'BP Financier'!$D$16+'BP Financier'!$E$16+'BP Financier'!$F$16)/('BP Financier'!$C$16+'BP Financier'!$C$19+'BP Financier'!$D$16+'BP Financier'!$D$19+'BP Financier'!$E$16+'BP Financier'!$E$19+'BP Financier'!$C$22+'BP Financier'!$D$22+'BP Financier'!$E$22+'BP Financier'!$F$16+'BP Financier'!$F$19+'BP Financier'!$F$22))*$V6319*Y6319/(1-$W6319)","v":{"v":11704.719709628269,"d":"11,705"}},{"$f":"'BP Financier'!$F$44*(('BP Financier'!$C$16+'BP Financier'!$D$16+'BP Financier'!$E$16+'BP Financier'!$F$16)/('BP Financier'!$C$16+'BP Financier'!$C$19+'BP Financier'!$D$16+'BP Financier'!$D$19+'BP Financier'!$E$16+'BP Financier'!$E$19+'BP Financier'!$C$22+'BP Financier'!$D$22+'BP Financier'!$E$22+'BP Financier'!$F$16+'BP Financier'!$F$19+'BP Financier'!$F$22))*$V6319*Z6319/(1-$W6319)","v":{"v":91606.36004147083,"d":"91,606"}},{"$f":"'BP Financier'!$F$44*(('BP Financier'!$C$16+'BP Financier'!$D$16+'BP Financier'!$E$16+'BP Financier'!$F$16)/('BP Financier'!$C$16+'BP Financier'!$C$19+'BP Financier'!$D$16+'BP Financier'!$D$19+'BP Financier'!$E$16+'BP Financier'!$E$19+'BP Financier'!$C$22+'BP Financier'!$D$22+'BP Financier'!$E$22+'BP Financier'!$F$16+'BP Financier'!$F$19+'BP Financier'!$F$22))*$V6319*AA6319/(1-$W6319)","v":{"v":11317.786826665351,"d":"11,318"}},{"$f":"'BP Financier'!$F$44*(('BP Financier'!$C$16+'BP Financier'!$D$16+'BP Financier'!$E$16+'BP Financier'!$F$16)/('BP Financier'!$C$16+'BP Financier'!$C$19+'BP Financier'!$D$16+'BP Financier'!$D$19+'BP Financier'!$E$16+'BP Financier'!$E$19+'BP Financier'!$C$22+'BP Financier'!$D$22+'BP Financier'!$E$22+'BP Financier'!$F$16+'BP Financier'!$F$19+'BP Financier'!$F$22))*$V6319*AB6319/(1-$W6319)","v":{"v":5417.0603614808515,"d":"5,417"}},null,{"v":0.000625,"d":"0.06%"},{"$f":"Actif!$E$28/100","v":{"v":0.28900000000000003,"d":"28.90%"}},{"$f":"Actif!$E$30/100","v":{"v":0.09050000000000001,"d":"9.05%"}},{"$f":"Actif!$E$31/100","v":{"v":0.0605,"d":"6.05%"}},{"$f":"Actif!$E$32/100","v":{"v":0.47350000000000003,"d":"47.35%"}},{"$f":"Actif!$E$33/100","v":{"v":0.0585,"d":"5.85%"}},{"$f":"Actif!$E$29/100","v":{"v":0.027999999999999997,"d":"2.80%"}}]
[null,"#213",18,2026,"H","A_CAPI",{"v":0.44999999999999996,"d":"0.45"},{"v":0.38999999999999996,"d":"0.39"},0.6,0.6,85,0,{"$f":"ROUND(Primes!$P$10*V6320,2)","v":0.11},0,{"$f":"SUM(P6320:T6320)","v":{"v":2463.7273070673587,"d":"2,464"}},{"$f":"'BP Financier'!$F$44*(('BP Financier'!$C$22+'BP Financier'!$D$22+'BP Financier'!$E$22+'BP Financier'!$F$22)/('BP Financier'!$C$16+'BP Financier'!$C$19+'BP Financier'!$D$16+'BP Financier'!$D$19+'BP Financier'!$E$16+'BP Financier'!$E$19+'BP Financier'!$C$22+'BP Financier'!$D$22+'BP Financier'!$E$22+'BP Financier'!$F$22+'BP Financier'!$F$16+'BP Financier'!$F$19))*$V6320*X6320/(1-$W6320)","v":{"v":313.5967950627229,"d":"314"}},{"$f":"'BP Financier'!$F$44*(('BP Financier'!$C$22+'BP Financier'!$D$22+'BP Financier'!$E$22+'BP Financier'!$F$22)/('BP Financier'!$C$16+'BP Financier'!$C$19+'BP Financier'!$D$16+'BP Financier'!$D$19+'BP Financier'!$E$16+'BP Financier'!$E$19+'BP Financier'!$C$22+'BP Financier'!$D$22+'BP Financier'!$E$22+'BP Financier'!$F$22+'BP Financier'!$F$16+'BP Financier'!$F$19))*$V6320*Y6320/(1-$W6320)","v":{"v":209.64205636789757,"d":"210"}},{"$f":"'BP Financier'!$F$44*(('BP Financier'!$C$22+'BP Financier'!$D$22+'BP Financier'!$E$22+'BP Financier'!$F$22)/('BP Financier'!$C$16+'BP Financier'!$C$19+'BP Financier'!$D$16+'BP Financier'!$D$19+'BP Financier'!$E$16+'BP Financier'!$E$19+'BP Financier'!$C$22+'BP Financier'!$D$22+'BP Financier'!$E$22+'BP Financier'!$F$22+'BP Financier'!$F$16+'BP Financier'!$F$19))*$V6320*Z6320/(1-$W6320)","v":{"v":1640.7522923999918,"d":"1,641"}},{"$f":"'BP Financier'!$F$44*(('BP Financier'!$C$22+'BP Financier'!$D$22+'BP Financier'!$E$22+'BP Financier'!$F$22)/('BP Financier'!$C$16+'BP Financier'!$C$19+'BP Financier'!$D$16+'BP Financier'!$D$19+'BP Financier'!$E$16+'BP Financier'!$E$19+'BP Financier'!$C$22+'BP Financier'!$D$22+'BP Financier'!$E$22+'BP Financier'!$F$22+'BP Financier'!$F$16+'BP Financier'!$F$19))*$V6320*AA6320/(1-$W6320)","v":{"v":202.71174045490923,"d":"203"}},{"$f":"'BP Financier'!$F$44*(('BP Financier'!$C$22+'BP Financier'!$D$22+'BP Financier'!$E$22+'BP Financier'!$F$22)/('BP Financier'!$C$16+'BP Financier'!$C$19+'BP Financier'!$D$16+'BP Financier'!$D$19+'BP Financier'!$E$16+'BP Financier'!$E$19+'BP Financier'!$C$22+'BP Financier'!$D$22+'BP Financier'!$E$22+'BP Financier'!$F$22+'BP Financier'!$F$16+'BP Financier'!$F$19))*$V6320*AB6320/(1-$W6320)","v":{"v":97.02442278183689,"d":"97"}},null,{"v":1.25E-3,"d":"0.13%"},{"$f":"Actif!$E$28/100","v":{"v":0.28900000000000003,"d":"28.90%"}},{"$f":"Actif!$E$30/100","v":{"v":0.09050000000000001,"d":"9.05%"}},{"$f":"Actif!$E$31/100","v":{"v":0.0605,"d":"6.05%"}},{"$f":"Actif!$E$32/100","v":{"v":0.47350000000000003,"d":"47.35%"}},{"$f":"Actif!$E$33/100","v":{"v":0.0585,"d":"5.85%"}},{"$f":"Actif!$E$29/100","v":{"v":0.027999999999999997,"d":"2.80%"}}]
[null,"#214",18,2028,"H","A_CAPI",{"v":0.44999999999999996,"d":"0.45"},{"v":0.38999999999999996,"d":"0.39"},0.6,0.6,85,0,{"$f":"ROUND(Primes!$P$10*V6321,2)","v":0.11},0,{"$f":"SUM(P6321:T6321)","v":{"v":2463.7273070673587,"d":"2,464"}},{"$f":"'BP Financier'!$F$44*(('BP Financier'!$C$22+'BP Financier'!$D$22+'BP Financier'!$E$22+'BP Financier'!$F$22)/('BP Financier'!$C$16+'BP Financier'!$C$19+'BP Financier'!$D$16+'BP Financier'!$D$19+'BP Financier'!$E$16+'BP Financier'!$E$19+'BP Financier'!$C$22+'BP Financier'!$D$22+'BP Financier'!$E$22+'BP Financier'!$F$22+'BP Financier'!$F$16+'BP Financier'!$F$19))*$V6321*X6321/(1-$W6321)","v":{"v":313.5967950627229,"d":"314"}},{"$f":"'BP Financier'!$F$44*(('BP Financier'!$C$22+'BP Financier'!$D$22+'BP Financier'!$E$22+'BP Financier'!$F$22)/('BP Financier'!$C$16+'BP Financier'!$C$19+'BP Financier'!$D$16+'BP Financier'!$D$19+'BP Financier'!$E$16+'BP Financier'!$E$19+'BP Financier'!$C$22+'BP Financier'!$D$22+'BP Financier'!$E$22+'BP Financier'!$F$22+'BP Financier'!$F$16+'BP Financier'!$F$19))*$V6321*Y6321/(1-$W6321)","v":{"v":209.64205636789757,"d":"210"}},{"$f":"'BP Financier'!$F$44*(('BP Financier'!$C$22+'BP Financier'!$D$22+'BP Financier'!$E$22+'BP Financier'!$F$22)/('BP Financier'!$C$16+'BP Financier'!$C$19+'BP Financier'!$D$16+'BP Financier'!$D$19+'BP Financier'!$E$16+'BP Financier'!$E$19+'BP Financier'!$C$22+'BP Financier'!$D$22+'BP Financier'!$E$22+'BP Financier'!$F$22+'BP Financier'!$F$16+'BP Financier'!$F$19))*$V6321*Z6321/(1-$W6321)","v":{"v":1640.7522923999918,"d":"1,641"}},{"$f":"'BP Financier'!$F$44*(('BP Financier'!$C$22+'BP Financier'!$D$22+'BP Financier'!$E$22+'BP Financier'!$F$22)/('BP Financier'!$C$16+'BP Financier'!$C$19+'BP Financier'!$D$16+'BP Financier'!$D$19+'BP Financier'!$E$16+'BP Financier'!$E$19+'BP Financier'!$C$22+'BP Financier'!$D$22+'BP Financier'!$E$22+'BP Financier'!$F$22+'BP Financier'!$F$16+'BP Financier'!$F$19))*$V6321*AA6321/(1-$W6321)","v":{"v":202.71174045490923,"d":"203"}},{"$f":"'BP Financier'!$F$44*(('BP Financier'!$C$22+'BP Financier'!$D$22+'BP Financier'!$E$22+'BP Financier'!$F$22)/('BP Financier'!$C$16+'BP Financier'!$C$19+'BP Financier'!$D$16+'BP Financier'!$D$19+'BP Financier'!$E$16+'BP Financier'!$E$19+'BP Financier'!$C$22+'BP Financier'!$D$22+'BP Financier'!$E$22+'BP Financier'!$F$22+'BP Financier'!$F$16+'BP Financier'!$F$19))*$V6321*AB6321/(1-$W6321)","v":{"v":97.02442278183689,"d":"97"}},null,{"v":1.25E-3,"d":"0.13%"},{"$f":"Actif!$E$28/100","v":{"v":0.28900000000000003,"d":"28.90%"}},{"$f":"Actif!$E$30/100","v":{"v":0.09050000000000001,"d":"9.05%"}},{"$f":"Actif!$E$31/100","v":{"v":0.0605,"d":"6.05%"}},{"$f":"Actif!$E$32/100","v":{"v":0.47350000000000003,"d":"47.35%"}},{"$f":"Actif!$E$33/100","v":{"v":0.0585,"d":"5.85%"}},{"$f":"Actif!$E$29/100","v":{"v":0.027999999999999997,"d":"2.80%"}}]
[null,"#215",18,2029,"H","A_CAPI",{"v":0.44999999999999996,"d":"0.45"},{"v":0.38999999999999996,"d":"0.39"},0.6,0.6,85,0,{"$f":"ROUND(Primes!$P$10*V6322,2)","v":0.11},0,{"v":2463.7273070673587,"d":"2,464"},{"$f":"'BP Financier'!$F$44*(('BP Financier'!$C$22+'BP Financier'!$D$22+'BP Financier'!$E$22+'BP Financier'!$F$22)/('BP Financier'!$C$16+'BP Financier'!$C$19+'BP Financier'!$D$16+'BP Financier'!$D$19+'BP Financier'!$E$16+'BP Financier'!$E$19+'BP Financier'!$C$22+'BP Financier'!$D$22+'BP Financier'!$E$22+'BP Financier'!$F$22+'BP Financier'!$F$16+'BP Financier'!$F$19))*$V6322*X6322/(1-$W6322)","v":{"v":313.5967950627229,"d":"314"}},{"$f":"'BP Financier'!$F$44*(('BP Financier'!$C$22+'BP Financier'!$D$22+'BP Financier'!$E$22+'BP Financier'!$F$22)/('BP Financier'!$C$16+'BP Financier'!$C$19+'BP Financier'!$D$16+'BP Financier'!$D$19+'BP Financier'!$E$16+'BP Financier'!$E$19+'BP Financier'!$C$22+'BP Financier'!$D$22+'BP Financier'!$E$22+'BP Financier'!$F$22+'BP Financier'!$F$16+'BP Financier'!$F$19))*$V6322*Y6322/(1-$W6322)","v":{"v":209.64205636789757,"d":"210"}},{"$f":"'BP Financier'!$F$44*(('BP Financier'!$C$22+'BP Financier'!$D$22+'BP Financier'!$E$22+'BP Financier'!$F$22)/('BP Financier'!$C$16+'BP Financier'!$C$19+'BP Financier'!$D$16+'BP Financier'!$D$19+'BP Financier'!$E$16+'BP Financier'!$E$19+'BP Financier'!$C$22+'BP Financier'!$D$22+'BP Financier'!$E$22+'BP Financier'!$F$22+'BP Financier'!$F$16+'BP Financier'!$F$19))*$V6322*Z6322/(1-$W6322)","v":{"v":1640.7522923999918,"d":"1,641"}},{"$f":"'BP Financier'!$F$44*(('BP Financier'!$C$22+'BP Financier'!$D$22+'BP Financier'!$E$22+'BP Financier'!$F$22)/('BP Financier'!$C$16+'BP Financier'!$C$19+'BP Financier'!$D$16+'BP Financier'!$D$19+'BP Financier'!$E$16+'BP Financier'!$E$19+'BP Financier'!$C$22+'BP Financier'!$D$22+'BP Financier'!$E$22+'BP Financier'!$F$22+'BP Financier'!$F$16+'BP Financier'!$F$19))*$V6322*AA6322/(1-$W6322)","v":{"v":202.71174045490923,"d":"203"}},{"$f":"'BP Financier'!$F$44*(('BP Financier'!$C$22+'BP Financier'!$D$22+'BP Financier'!$E$22+'BP Financier'!$F$22)/('BP Financier'!$C$16+'BP Financier'!$C$19+'BP Financier'!$D$16+'BP Financier'!$D$19+'BP Financier'!$E$16+'BP Financier'!$E$19+'BP Financier'!$C$22+'BP Financier'!$D$22+'BP Financier'!$E$22+'BP Financier'!$F$22+'BP Financier'!$F$16+'BP Financier'!$F$19))*$V6322*AB6322/(1-$W6322)","v":{"v":97.02442278183689,"d":"97"}},null,{"v":1.25E-3,"d":"0.13%"},{"$f":"Actif!$E$28/100","v":{"v":0.28900000000000003,"d":"28.90%"}},{"$f":"Actif!$E$30/100","v":{"v":0.09050000000000001,"d":"9.05%"}},{"$f":"Actif!$E$31/100","v":{"v":0.0605,"d":"6.05%"}},{"$f":"Actif!$E$32/100","v":{"v":0.47350000000000003,"d":"47.35%"}},{"$f":"Actif!$E$33/100","v":{"v":0.0585,"d":"5.85%"}},{"$f":"Actif!$E$29/100","v":{"v":0.027999999999999997,"d":"2.80%"}}]
[null,"#216",18,2030,"H","A_CAPI",{"v":0.44999999999999996,"d":"0.45"},{"v":0.38999999999999996,"d":"0.39"},0.6,0.6,85,0,{"$f":"ROUND(Primes!$P$10*V6323,2)","v":0.11},0,{"v":2463.7273070673587,"d":"2,464"},{"$f":"'BP Financier'!$F$44*(('BP Financier'!$C$22+'BP Financier'!$D$22+'BP Financier'!$E$22+'BP Financier'!$F$22)/('BP Financier'!$C$16+'BP Financier'!$C$19+'BP Financier'!$D$16+'BP Financier'!$D$19+'BP Financier'!$E$16+'BP Financier'!$E$19+'BP Financier'!$C$22+'BP Financier'!$D$22+'BP Financier'!$E$22+'BP Financier'!$F$22+'BP Financier'!$F$16+'BP Financier'!$F$19))*$V6323*X6323/(1-$W6323)","v":{"v":313.5967950627229,"d":"314"}},{"$f":"'BP Financier'!$F$44*(('BP Financier'!$C$22+'BP Financier'!$D$22+'BP Financier'!$E$22+'BP Financier'!$F$22)/('BP Financier'!$C$16+'BP Financier'!$C$19+'BP Financier'!$D$16+'BP Financier'!$D$19+'BP Financier'!$E$16+'BP Financier'!$E$19+'BP Financier'!$C$22+'BP Financier'!$D$22+'BP Financier'!$E$22+'BP Financier'!$F$22+'BP Financier'!$F$16+'BP Financier'!$F$19))*$V6323*Y6323/(1-$W6323)","v":{"v":209.64205636789757,"d":"210"}},{"$f":"'BP Financier'!$F$44*(('BP Financier'!$C$22+'BP Financier'!$D$22+'BP Financier'!$E$22+'BP Financier'!$F$22)/('BP Financier'!$C$16+'BP Financier'!$C$19+'BP Financier'!$D$16+'BP Financier'!$D$19+'BP Financier'!$E$16+'BP Financier'!$E$19+'BP Financier'!$C$22+'BP Financier'!$D$22+'BP Financier'!$E$22+'BP Financier'!$F$22+'BP Financier'!$F$16+'BP Financier'!$F$19))*$V6323*Z6323/(1-$W6323)","v":{"v":1640.7522923999918,"d":"1,641"}},{"$f":"'BP Financier'!$F$44*(('BP Financier'!$C$22+'BP Financier'!$D$22+'BP Financier'!$E$22+'BP Financier'!$F$22)/('BP Financier'!$C$16+'BP Financier'!$C$19+'BP Financier'!$D$16+'BP Financier'!$D$19+'BP Financier'!$E$16+'BP Financier'!$E$19+'BP Financier'!$C$22+'BP Financier'!$D$22+'BP Financier'!$E$22+'BP Financier'!$F$22+'BP Financier'!$F$16+'BP Financier'!$F$19))*$V6323*AA6323/(1-$W6323)","v":{"v":202.71174045490923,"d":"203"}},{"$f":"'BP Financier'!$F$44*(('BP Financier'!$C$22+'BP Financier'!$D$22+'BP Financier'!$E$22+'BP Financier'!$F$22)/('BP Financier'!$C$16+'BP Financier'!$C$19+'BP Financier'!$D$16+'BP Financier'!$D$19+'BP Financier'!$E$16+'BP Financier'!$E$19+'BP Financier'!$C$22+'BP Financier'!$D$22+'BP Financier'!$E$22+'BP Financier'!$F$22+'BP Financier'!$F$16+'BP Financier'!$F$19))*$V6323*AB6323/(1-$W6323)","v":{"v":97.02442278183689,"d":"97"}},null,{"v":1.25E-3,"d":"0.13%"},{"$f":"Actif!$E$28/100","v":{"v":0.28900000000000003,"d":"28.90%"}},{"$f":"Actif!$E$30/100","v":{"v":0.09050000000000001,"d":"9.05%"}},{"$f":"Actif!$E$31/100","v":{"v":0.0605,"d":"6.05%"}},{"$f":"Actif!$E$32/100","v":{"v":0.47350000000000003,"d":"47.35%"}},{"$f":"Actif!$E$33/100","v":{"v":0.0585,"d":"5.85%"}},{"$f":"Actif!$E$29/100","v":{"v":0.027999999999999997,"d":"2.80%"}}]
[null,"#217",19,2026,"H","A_CAPI",{"v":0.44999999999999996,"d":"0.45"},{"v":0.38999999999999996,"d":"0.39"},0.6,0.6,85,0,{"$f":"ROUND(Primes!$P$10*V6324,2)","v":0.11},0,{"v":2463.7273070673587,"d":"2,464"},{"$f":"'BP Financier'!$F$44*(('BP Financier'!$C$22+'BP Financier'!$D$22+'BP Financier'!$E$22+'BP Financier'!$F$22)/('BP Financier'!$C$16+'BP Financier'!$C$19+'BP Financier'!$D$16+'BP Financier'!$D$19+'BP Financier'!$E$16+'BP Financier'!$E$19+'BP Financier'!$C$22+'BP Financier'!$D$22+'BP Financier'!$E$22+'BP Financier'!$F$22+'BP Financier'!$F$16+'BP Financier'!$F$19))*$V6324*X6324/(1-$W6324)","v":{"v":313.5967950627229,"d":"314"}},{"$f":"'BP Financier'!$F$44*(('BP Financier'!$C$22+'BP Financier'!$D$22+'BP Financier'!$E$22+'BP Financier'!$F$22)/('BP Financier'!$C$16+'BP Financier'!$C$19+'BP Financier'!$D$16+'BP Financier'!$D$19+'BP Financier'!$E$16+'BP Financier'!$E$19+'BP Financier'!$C$22+'BP Financier'!$D$22+'BP Financier'!$E$22+'BP Financier'!$F$22+'BP Financier'!$F$16+'BP Financier'!$F$19))*$V6324*Y6324/(1-$W6324)","v":{"v":209.64205636789757,"d":"210"}},{"$f":"'BP Financier'!$F$44*(('BP Financier'!$C$22+'BP Financier'!$D$22+'BP Financier'!$E$22+'BP Financier'!$F$22)/('BP Financier'!$C$16+'BP Financier'!$C$19+'BP Financier'!$D$16+'BP Financier'!$D$19+'BP Financier'!$E$16+'BP Financier'!$E$19+'BP Financier'!$C$22+'BP Financier'!$D$22+'BP Financier'!$E$22+'BP Financier'!$F$22+'BP Financier'!$F$16+'BP Financier'!$F$19))*$V6324*Z6324/(1-$W6324)","v":{"v":1640.7522923999918,"d":"1,641"}},{"$f":"'BP Financier'!$F$44*(('BP Financier'!$C$22+'BP Financier'!$D$22+'BP Financier'!$E$22+'BP Financier'!$F$22)/('BP Financier'!$C$16+'BP Financier'!$C$19+'BP Financier'!$D$16+'BP Financier'!$D$19+'BP Financier'!$E$16+'BP Financier'!$E$19+'BP Financier'!$C$22+'BP Financier'!$D$22+'BP Financier'!$E$22+'BP Financier'!$F$22+'BP Financier'!$F$16+'BP Financier'!$F$19))*$V6324*AA6324/(1-$W6324)","v":{"v":202.71174045490923,"d":"203"}},{"$f":"'BP Financier'!$F$44*(('BP Financier'!$C$22+'BP Financier'!$D$22+'BP Financier'!$E$22+'BP Financier'!$F$22)/('BP Financier'!$C$16+'BP Financier'!$C$19+'BP Financier'!$D$16+'BP Financier'!$D$19+'BP Financier'!$E$16+'BP Financier'!$E$19+'BP Financier'!$C$22+'BP Financier'!$D$22+'BP Financier'!$E$22+'BP Financier'!$F$22+'BP Financier'!$F$16+'BP Financier'!$F$19))*$V6324*AB6324/(1-$W6324)","v":{"v":97.02442278183689,"d":"97"}},null,{"v":1.25E-3,"d":"0.13%"},{"$f":"Actif!$E$28/100","v":{"v":0.28900000000000003,"d":"28.90%"}},{"$f":"Actif!$E$30/100","v":{"v":0.09050000000000001,"d":"9.05%"}},{"$f":"Actif!$E$31/100","v":{"v":0.0605,"d":"6.05%"}},{"$f":"Actif!$E$32/100","v":{"v":0.47350000000000003,"d":"47.35%"}},{"$f":"Actif!$E$33/100","v":{"v":0.0585,"d":"5.85%"}},{"$f":"Actif!$E$29/100","v":{"v":0.027999999999999997,"d":"2.80%"}}]
[null,"#218",19,2028,"H","A_CAPI",{"v":0.44999999999999996,"d":"0.45"},{"v":0.38999999999999996,"d":"0.39"},0.6,0.6,85,0,{"$f":"ROUND(Primes!$P$10*V6325,2)","v":0.11},0,{"v":2463.7273070673587,"d":"2,464"},{"$f":"'BP Financier'!$F$44*(('BP Financier'!$C$22+'BP Financier'!$D$22+'BP Financier'!$E$22+'BP Financier'!$F$22)/('BP Financier'!$C$16+'BP Financier'!$C$19+'BP Financier'!$D$16+'BP Financier'!$D$19+'BP Financier'!$E$16+'BP Financier'!$E$19+'BP Financier'!$C$22+'BP Financier'!$D$22+'BP Financier'!$E$22+'BP Financier'!$F$22+'BP Financier'!$F$16+'BP Financier'!$F$19))*$V6325*X6325/(1-$W6325)","v":{"v":313.5967950627229,"d":"314"}},{"$f":"'BP Financier'!$F$44*(('BP Financier'!$C$22+'BP Financier'!$D$22+'BP Financier'!$E$22+'BP Financier'!$F$22)/('BP Financier'!$C$16+'BP Financier'!$C$19+'BP Financier'!$D$16+'BP Financier'!$D$19+'BP Financier'!$E$16+'BP Financier'!$E$19+'BP Financier'!$C$22+'BP Financier'!$D$22+'BP Financier'!$E$22+'BP Financier'!$F$22+'BP Financier'!$F$16+'BP Financier'!$F$19))*$V6325*Y6325/(1-$W6325)","v":{"v":209.64205636789757,"d":"210"}},{"$f":"'BP Financier'!$F$44*(('BP Financier'!$C$22+'BP Financier'!$D$22+'BP Financier'!$E$22+'BP Financier'!$F$22)/('BP Financier'!$C$16+'BP Financier'!$C$19+'BP Financier'!$D$16+'BP Financier'!$D$19+'BP Financier'!$E$16+'BP Financier'!$E$19+'BP Financier'!$C$22+'BP Financier'!$D$22+'BP Financier'!$E$22+'BP Financier'!$F$22+'BP Financier'!$F$16+'BP Financier'!$F$19))*$V6325*Z6325/(1-$W6325)","v":{"v":1640.7522923999918,"d":"1,641"}},{"$f":"'BP Financier'!$F$44*(('BP Financier'!$C$22+'BP Financier'!$D$22+'BP Financier'!$E$22+'BP Financier'!$F$22)/('BP Financier'!$C$16+'BP Financier'!$C$19+'BP Financier'!$D$16+'BP Financier'!$D$19+'BP Financier'!$E$16+'BP Financier'!$E$19+'BP Financier'!$C$22+'BP Financier'!$D$22+'BP Financier'!$E$22+'BP Financier'!$F$22+'BP Financier'!$F$16+'BP Financier'!$F$19))*$V6325*AA6325/(1-$W6325)","v":{"v":202.71174045490923,"d":"203"}},{"$f":"'BP Financier'!$F$44*(('BP Financier'!$C$22+'BP Financier'!$D$22+'BP Financier'!$E$22+'BP Financier'!$F$22)/('BP Financier'!$C$16+'BP Financier'!$C$19+'BP Financier'!$D$16+'BP Financier'!$D$19+'BP Financier'!$E$16+'BP Financier'!$E$19+'BP Financier'!$C$22+'BP Financier'!$D$22+'BP Financier'!$E$22+'BP Financier'!$F$22+'BP Financier'!$F$16+'BP Financier'!$F$19))*$V6325*AB6325/(1-$W6325)","v":{"v":97.02442278183689,"d":"97"}},null,{"v":1.25E-3,"d":"0.13%"},{"$f":"Actif!$E$28/100","v":{"v":0.28900000000000003,"d":"28.90%"}},{"$f":"Actif!$E$30/100","v":{"v":0.09050000000000001,"d":"9.05%"}},{"$f":"Actif!$E$31/100","v":{"v":0.0605,"d":"6.05%"}},{"$f":"Actif!$E$32/100","v":{"v":0.47350000000000003,"d":"47.35%"}},{"$f":"Actif!$E$33/100","v":{"v":0.0585,"d":"5.85%"}},{"$f":"Actif!$E$29/100","v":{"v":0.027999999999999997,"d":"2.80%"}}]
[null,"#219",19,2029,"H","A_CAPI",{"v":0.44999999999999996,"d":"0.45"},{"v":0.38999999999999996,"d":"0.39"},0.6,0.6,85,0,{"$f":"ROUND(Primes!$P$10*V6326,2)","v":0.11},0,{"v":2463.7273070673587,"d":"2,464"},{"$f":"'BP Financier'!$F$44*(('BP Financier'!$C$22+'BP Financier'!$D$22+'BP Financier'!$E$22+'BP Financier'!$F$22)/('BP Financier'!$C$16+'BP Financier'!$C$19+'BP Financier'!$D$16+'BP Financier'!$D$19+'BP Financier'!$E$16+'BP Financier'!$E$19+'BP Financier'!$C$22+'BP Financier'!$D$22+'BP Financier'!$E$22+'BP Financier'!$F$22+'BP Financier'!$F$16+'BP Financier'!$F$19))*$V6326*X6326/(1-$W6326)","v":{"v":313.5967950627229,"d":"314"}},{"$f":"'BP Financier'!$F$44*(('BP Financier'!$C$22+'BP Financier'!$D$22+'BP Financier'!$E$22+'BP Financier'!$F$22)/('BP Financier'!$C$16+'BP Financier'!$C$19+'BP Financier'!$D$16+'BP Financier'!$D$19+'BP Financier'!$E$16+'BP Financier'!$E$19+'BP Financier'!$C$22+'BP Financier'!$D$22+'BP Financier'!$E$22+'BP Financier'!$F$22+'BP Financier'!$F$16+'BP Financier'!$F$19))*$V6326*Y6326/(1-$W6326)","v":{"v":209.64205636789757,"d":"210"}},{"$f":"'BP Financier'!$F$44*(('BP Financier'!$C$22+'BP Financier'!$D$22+'BP Financier'!$E$22+'BP Financier'!$F$22)/('BP Financier'!$C$16+'BP Financier'!$C$19+'BP Financier'!$D$16+'BP Financier'!$D$19+'BP Financier'!$E$16+'BP Financier'!$E$19+'BP Financier'!$C$22+'BP Financier'!$D$22+'BP Financier'!$E$22+'BP Financier'!$F$22+'BP Financier'!$F$16+'BP Financier'!$F$19))*$V6326*Z6326/(1-$W6326)","v":{"v":1640.7522923999918,"d":"1,641"}},{"$f":"'BP Financier'!$F$44*(('BP Financier'!$C$22+'BP Financier'!$D$22+'BP Financier'!$E$22+'BP Financier'!$F$22)/('BP Financier'!$C$16+'BP Financier'!$C$19+'BP Financier'!$D$16+'BP Financier'!$D$19+'BP Financier'!$E$16+'BP Financier'!$E$19+'BP Financier'!$C$22+'BP Financier'!$D$22+'BP Financier'!$E$22+'BP Financier'!$F$22+'BP Financier'!$F$16+'BP Financier'!$F$19))*$V6326*AA6326/(1-$W6326)","v":{"v":202.71174045490923,"d":"203"}},{"$f":"'BP Financier'!$F$44*(('BP Financier'!$C$22+'BP Financier'!$D$22+'BP Financier'!$E$22+'BP Financier'!$F$22)/('BP Financier'!$C$16+'BP Financier'!$C$19+'BP Financier'!$D$16+'BP Financier'!$D$19+'BP Financier'!$E$16+'BP Financier'!$E$19+'BP Financier'!$C$22+'BP Financier'!$D$22+'BP Financier'!$E$22+'BP Financier'!$F$22+'BP Financier'!$F$16+'BP Financier'!$F$19))*$V6326*AB6326/(1-$W6326)","v":{"v":97.02442278183689,"d":"97"}},null,{"v":1.25E-3,"d":"0.13%"},{"$f":"Actif!$E$28/100","v":{"v":0.28900000000000003,"d":"28.90%"}},{"$f":"Actif!$E$30/100","v":{"v":0.09050000000000001,"d":"9.05%"}},{"$f":"Actif!$E$31/100","v":{"v":0.0605,"d":"6.05%"}},{"$f":"Actif!$E$32/100","v":{"v":0.47350000000000003,"d":"47.35%"}},{"$f":"Actif!$E$33/100","v":{"v":0.0585,"d":"5.85%"}},{"$f":"Actif!$E$29/100","v":{"v":0.027999999999999997,"d":"2.80%"}}]
[null,"#220",19,2030,"H","A_CAPI",{"v":0.44999999999999996,"d":"0.45"},{"v":0.38999999999999996,"d":"0.39"},0.6,0.6,85,0,{"$f":"ROUND(Primes!$P$10*V6327,2)","v":0.11},0,{"v":2463.7273070673587,"d":"2,464"},{"$f":"'BP Financier'!$F$44*(('BP Financier'!$C$22+'BP Financier'!$D$22+'BP Financier'!$E$22+'BP Financier'!$F$22)/('BP Financier'!$C$16+'BP Financier'!$C$19+'BP Financier'!$D$16+'BP Financier'!$D$19+'BP Financier'!$E$16+'BP Financier'!$E$19+'BP Financier'!$C$22+'BP Financier'!$D$22+'BP Financier'!$E$22+'BP Financier'!$F$22+'BP Financier'!$F$16+'BP Financier'!$F$19))*$V6327*X6327/(1-$W6327)","v":{"v":313.5967950627229,"d":"314"}},{"$f":"'BP Financier'!$F$44*(('BP Financier'!$C$22+'BP Financier'!$D$22+'BP Financier'!$E$22+'BP Financier'!$F$22)/('BP Financier'!$C$16+'BP Financier'!$C$19+'BP Financier'!$D$16+'BP Financier'!$D$19+'BP Financier'!$E$16+'BP Financier'!$E$19+'BP Financier'!$C$22+'BP Financier'!$D$22+'BP Financier'!$E$22+'BP Financier'!$F$22+'BP Financier'!$F$16+'BP Financier'!$F$19))*$V6327*Y6327/(1-$W6327)","v":{"v":209.64205636789757,"d":"210"}},{"$f":"'BP Financier'!$F$44*(('BP Financier'!$C$22+'BP Financier'!$D$22+'BP Financier'!$E$22+'BP Financier'!$F$22)/('BP Financier'!$C$16+'BP Financier'!$C$19+'BP Financier'!$D$16+'BP Financier'!$D$19+'BP Financier'!$E$16+'BP Financier'!$E$19+'BP Financier'!$C$22+'BP Financier'!$D$22+'BP Financier'!$E$22+'BP Financier'!$F$22+'BP Financier'!$F$16+'BP Financier'!$F$19))*$V6327*Z6327/(1-$W6327)","v":{"v":1640.7522923999918,"d":"1,641"}},{"$f":"'BP Financier'!$F$44*(('BP Financier'!$C$22+'BP Financier'!$D$22+'BP Financier'!$E$22+'BP Financier'!$F$22)/('BP Financier'!$C$16+'BP Financier'!$C$19+'BP Financier'!$D$16+'BP Financier'!$D$19+'BP Financier'!$E$16+'BP Financier'!$E$19+'BP Financier'!$C$22+'BP Financier'!$D$22+'BP Financier'!$E$22+'BP Financier'!$F$22+'BP Financier'!$F$16+'BP Financier'!$F$19))*$V6327*AA6327/(1-$W6327)","v":{"v":202.71174045490923,"d":"203"}},{"$f":"'BP Financier'!$F$44*(('BP Financier'!$C$22+'BP Financier'!$D$22+'BP Financier'!$E$22+'BP Financier'!$F$22)/('BP Financier'!$C$16+'BP Financier'!$C$19+'BP Financier'!$D$16+'BP Financier'!$D$19+'BP Financier'!$E$16+'BP Financier'!$E$19+'BP Financier'!$C$22+'BP Financier'!$D$22+'BP Financier'!$E$22+'BP Financier'!$F$22+'BP Financier'!$F$16+'BP Financier'!$F$19))*$V6327*AB6327/(1-$W6327)","v":{"v":97.02442278183689,"d":"97"}},null,{"v":1.25E-3,"d":"0.13%"},{"$f":"Actif!$E$28/100","v":{"v":0.28900000000000003,"d":"28.90%"}},{"$f":"Actif!$E$30/100","v":{"v":0.09050000000000001,"d":"9.05%"}},{"$f":"Actif!$E$31/100","v":{"v":0.0605,"d":"6.05%"}},{"$f":"Actif!$E$32/100","v":{"v":0.47350000000000003,"d":"47.35%"}},{"$f":"Actif!$E$33/100","v":{"v":0.0585,"d":"5.85%"}},{"$f":"Actif!$E$29/100","v":{"v":0.027999999999999997,"d":"2.80%"}}]
[null,"#221",20,2026,"F","A_CAPI",{"v":0.44999999999999996,"d":"0.45"},{"v":0.38999999999999996,"d":"0.39"},0.6,0.6,85,0,{"$f":"ROUND(Primes!$P$10*V6328,2)","v":0.23},0,{"v":4927.454614134717,"d":"4,927"},{"$f":"'BP Financier'!$F$44*(('BP Financier'!$C$22+'BP Financier'!$D$22+'BP Financier'!$E$22+'BP Financier'!$F$22)/('BP Financier'!$C$16+'BP Financier'!$C$19+'BP Financier'!$D$16+'BP Financier'!$D$19+'BP Financier'!$E$16+'BP Financier'!$E$19+'BP Financier'!$C$22+'BP Financier'!$D$22+'BP Financier'!$E$22+'BP Financier'!$F$22+'BP Financier'!$F$16+'BP Financier'!$F$19))*$V6328*X6328/(1-$W6328)","v":{"v":627.1935901254458,"d":"627"}},{"$f":"'BP Financier'!$F$44*(('BP Financier'!$C$22+'BP Financier'!$D$22+'BP Financier'!$E$22+'BP Financier'!$F$22)/('BP Financier'!$C$16+'BP Financier'!$C$19+'BP Financier'!$D$16+'BP Financier'!$D$19+'BP Financier'!$E$16+'BP Financier'!$E$19+'BP Financier'!$C$22+'BP Financier'!$D$22+'BP Financier'!$E$22+'BP Financier'!$F$22+'BP Financier'!$F$16+'BP Financier'!$F$19))*$V6328*Y6328/(1-$W6328)","v":{"v":419.28411273579513,"d":"419"}},{"$f":"'BP Financier'!$F$44*(('BP Financier'!$C$22+'BP Financier'!$D$22+'BP Financier'!$E$22+'BP Financier'!$F$22)/('BP Financier'!$C$16+'BP Financier'!$C$19+'BP Financier'!$D$16+'BP Financier'!$D$19+'BP Financier'!$E$16+'BP Financier'!$E$19+'BP Financier'!$C$22+'BP Financier'!$D$22+'BP Financier'!$E$22+'BP Financier'!$F$22+'BP Financier'!$F$16+'BP Financier'!$F$19))*$V6328*Z6328/(1-$W6328)","v":{"v":3281.5045847999836,"d":"3,282"}},{"$f":"'BP Financier'!$F$44*(('BP Financier'!$C$22+'BP Financier'!$D$22+'BP Financier'!$E$22+'BP Financier'!$F$22)/('BP Financier'!$C$16+'BP Financier'!$C$19+'BP Financier'!$D$16+'BP Financier'!$D$19+'BP Financier'!$E$16+'BP Financier'!$E$19+'BP Financier'!$C$22+'BP Financier'!$D$22+'BP Financier'!$E$22+'BP Financier'!$F$22+'BP Financier'!$F$16+'BP Financier'!$F$19))*$V6328*AA6328/(1-$W6328)","v":{"v":405.42348090981847,"d":"405"}},{"$f":"'BP Financier'!$F$44*(('BP Financier'!$C$22+'BP Financier'!$D$22+'BP Financier'!$E$22+'BP Financier'!$F$22)/('BP Financier'!$C$16+'BP Financier'!$C$19+'BP Financier'!$D$16+'BP Financier'!$D$19+'BP Financier'!$E$16+'BP Financier'!$E$19+'BP Financier'!$C$22+'BP Financier'!$D$22+'BP Financier'!$E$22+'BP Financier'!$F$22+'BP Financier'!$F$16+'BP Financier'!$F$19))*$V6328*AB6328/(1-$W6328)","v":{"v":194.04884556367378,"d":"194"}},null,{"v":0.0025,"d":"0.25%"},{"$f":"Actif!$E$28/100","v":{"v":0.28900000000000003,"d":"28.90%"}},{"$f":"Actif!$E$30/100","v":{"v":0.09050000000000001,"d":"9.05%"}},{"$f":"Actif!$E$31/100","v":{"v":0.0605,"d":"6.05%"}},{"$f":"Actif!$E$32/100","v":{"v":0.47350000000000003,"d":"47.35%"}},{"$f":"Actif!$E$33/100","v":{"v":0.0585,"d":"5.85%"}},{"$f":"Actif!$E$29/100","v":{"v":0.027999999999999997,"d":"2.80%"}}]
[null,"#222",20,2028,"F","A_CAPI",{"v":0.44999999999999996,"d":"0.45"},{"v":0.38999999999999996,"d":"0.39"},0.6,0.6,85,0,{"$f":"ROUND(Primes!$P$10*V6329,2)","v":0.23},0,{"v":4927.454614134717,"d":"4,927"},{"$f":"'BP Financier'!$F$44*(('BP Financier'!$C$22+'BP Financier'!$D$22+'BP Financier'!$E$22+'BP Financier'!$F$22)/('BP Financier'!$C$16+'BP Financier'!$C$19+'BP Financier'!$D$16+'BP Financier'!$D$19+'BP Financier'!$E$16+'BP Financier'!$E$19+'BP Financier'!$C$22+'BP Financier'!$D$22+'BP Financier'!$E$22+'BP Financier'!$F$22+'BP Financier'!$F$16+'BP Financier'!$F$19))*$V6329*X6329/(1-$W6329)","v":{"v":627.1935901254458,"d":"627"}},{"$f":"'BP Financier'!$F$44*(('BP Financier'!$C$22+'BP Financier'!$D$22+'BP Financier'!$E$22+'BP Financier'!$F$22)/('BP Financier'!$C$16+'BP Financier'!$C$19+'BP Financier'!$D$16+'BP Financier'!$D$19+'BP Financier'!$E$16+'BP Financier'!$E$19+'BP Financier'!$C$22+'BP Financier'!$D$22+'BP Financier'!$E$22+'BP Financier'!$F$22+'BP Financier'!$F$16+'BP Financier'!$F$19))*$V6329*Y6329/(1-$W6329)","v":{"v":419.28411273579513,"d":"419"}},{"$f":"'BP Financier'!$F$44*(('BP Financier'!$C$22+'BP Financier'!$D$22+'BP Financier'!$E$22+'BP Financier'!$F$22)/('BP Financier'!$C$16+'BP Financier'!$C$19+'BP Financier'!$D$16+'BP Financier'!$D$19+'BP Financier'!$E$16+'BP Financier'!$E$19+'BP Financier'!$C$22+'BP Financier'!$D$22+'BP Financier'!$E$22+'BP Financier'!$F$22+'BP Financier'!$F$16+'BP Financier'!$F$19))*$V6329*Z6329/(1-$W6329)","v":{"v":3281.5045847999836,"d":"3,282"}},{"$f":"'BP Financier'!$F$44*(('BP Financier'!$C$22+'BP Financier'!$D$22+'BP Financier'!$E$22+'BP Financier'!$F$22)/('BP Financier'!$C$16+'BP Financier'!$C$19+'BP Financier'!$D$16+'BP Financier'!$D$19+'BP Financier'!$E$16+'BP Financier'!$E$19+'BP Financier'!$C$22+'BP Financier'!$D$22+'BP Financier'!$E$22+'BP Financier'!$F$22+'BP Financier'!$F$16+'BP Financier'!$F$19))*$V6329*AA6329/(1-$W6329)","v":{"v":405.42348090981847,"d":"405"}},{"$f":"'BP Financier'!$F$44*(('BP Financier'!$C$22+'BP Financier'!$D$22+'BP Financier'!$E$22+'BP Financier'!$F$22)/('BP Financier'!$C$16+'BP Financier'!$C$19+'BP Financier'!$D$16+'BP Financier'!$D$19+'BP Financier'!$E$16+'BP Financier'!$E$19+'BP Financier'!$C$22+'BP Financier'!$D$22+'BP Financier'!$E$22+'BP Financier'!$F$22+'BP Financier'!$F$16+'BP Financier'!$F$19))*$V6329*AB6329/(1-$W6329)","v":{"v":194.04884556367378,"d":"194"}},null,{"v":0.0025,"d":"0.25%"},{"$f":"Actif!$E$28/100","v":{"v":0.28900000000000003,"d":"28.90%"}},{"$f":"Actif!$E$30/100","v":{"v":0.09050000000000001,"d":"9.05%"}},{"$f":"Actif!$E$31/100","v":{"v":0.0605,"d":"6.05%"}},{"$f":"Actif!$E$32/100","v":{"v":0.47350000000000003,"d":"47.35%"}},{"$f":"Actif!$E$33/100","v":{"v":0.0585,"d":"5.85%"}},{"$f":"Actif!$E$29/100","v":{"v":0.027999999999999997,"d":"2.80%"}}]
[null,"#223",20,2029,"F","A_CAPI",{"v":0.44999999999999996,"d":"0.45"},{"v":0.38999999999999996,"d":"0.39"},0.6,0.6,85,0,{"$f":"ROUND(Primes!$P$10*V6330,2)","v":0.23},0,{"v":4927.454614134717,"d":"4,927"},{"$f":"'BP Financier'!$F$44*(('BP Financier'!$C$22+'BP Financier'!$D$22+'BP Financier'!$E$22+'BP Financier'!$F$22)/('BP Financier'!$C$16+'BP Financier'!$C$19+'BP Financier'!$D$16+'BP Financier'!$D$19+'BP Financier'!$E$16+'BP Financier'!$E$19+'BP Financier'!$C$22+'BP Financier'!$D$22+'BP Financier'!$E$22+'BP Financier'!$F$22+'BP Financier'!$F$16+'BP Financier'!$F$19))*$V6330*X6330/(1-$W6330)","v":{"v":627.1935901254458,"d":"627"}},{"$f":"'BP Financier'!$F$44*(('BP Financier'!$C$22+'BP Financier'!$D$22+'BP Financier'!$E$22+'BP Financier'!$F$22)/('BP Financier'!$C$16+'BP Financier'!$C$19+'BP Financier'!$D$16+'BP Financier'!$D$19+'BP Financier'!$E$16+'BP Financier'!$E$19+'BP Financier'!$C$22+'BP Financier'!$D$22+'BP Financier'!$E$22+'BP Financier'!$F$22+'BP Financier'!$F$16+'BP Financier'!$F$19))*$V6330*Y6330/(1-$W6330)","v":{"v":419.28411273579513,"d":"419"}},{"$f":"'BP Financier'!$F$44*(('BP Financier'!$C$22+'BP Financier'!$D$22+'BP Financier'!$E$22+'BP Financier'!$F$22)/('BP Financier'!$C$16+'BP Financier'!$C$19+'BP Financier'!$D$16+'BP Financier'!$D$19+'BP Financier'!$E$16+'BP Financier'!$E$19+'BP Financier'!$C$22+'BP Financier'!$D$22+'BP Financier'!$E$22+'BP Financier'!$F$22+'BP Financier'!$F$16+'BP Financier'!$F$19))*$V6330*Z6330/(1-$W6330)","v":{"v":3281.5045847999836,"d":"3,282"}},{"$f":"'BP Financier'!$F$44*(('BP Financier'!$C$22+'BP Financier'!$D$22+'BP Financier'!$E$22+'BP Financier'!$F$22)/('BP Financier'!$C$16+'BP Financier'!$C$19+'BP Financier'!$D$16+'BP Financier'!$D$19+'BP Financier'!$E$16+'BP Financier'!$E$19+'BP Financier'!$C$22+'BP Financier'!$D$22+'BP Financier'!$E$22+'BP Financier'!$F$22+'BP Financier'!$F$16+'BP Financier'!$F$19))*$V6330*AA6330/(1-$W6330)","v":{"v":405.42348090981847,"d":"405"}},{"$f":"'BP Financier'!$F$44*(('BP Financier'!$C$22+'BP Financier'!$D$22+'BP Financier'!$E$22+'BP Financier'!$F$22)/('BP Financier'!$C$16+'BP Financier'!$C$19+'BP Financier'!$D$16+'BP Financier'!$D$19+'BP Financier'!$E$16+'BP Financier'!$E$19+'BP Financier'!$C$22+'BP Financier'!$D$22+'BP Financier'!$E$22+'BP Financier'!$F$22+'BP Financier'!$F$16+'BP Financier'!$F$19))*$V6330*AB6330/(1-$W6330)","v":{"v":194.04884556367378,"d":"194"}},null,{"v":0.0025,"d":"0.25%"},{"$f":"Actif!$E$28/100","v":{"v":0.28900000000000003,"d":"28.90%"}},{"$f":"Actif!$E$30/100","v":{"v":0.09050000000000001,"d":"9.05%"}},{"$f":"Actif!$E$31/100","v":{"v":0.0605,"d":"6.05%"}},{"$f":"Actif!$E$32/100","v":{"v":0.47350000000000003,"d":"47.35%"}},{"$f":"Actif!$E$33/100","v":{"v":0.0585,"d":"5.85%"}},{"$f":"Actif!$E$29/100","v":{"v":0.027999999999999997,"d":"2.80%"}}]
[null,"#224",20,2030,"F","A_CAPI",{"v":0.44999999999999996,"d":"0.45"},{"v":0.38999999999999996,"d":"0.39"},0.6,0.6,85,0,{"$f":"ROUND(Primes!$P$10*V6331,2)","v":0.23},0,{"v":4927.454614134717,"d":"4,927"},{"$f":"'BP Financier'!$F$44*(('BP Financier'!$C$22+'BP Financier'!$D$22+'BP Financier'!$E$22+'BP Financier'!$F$22)/('BP Financier'!$C$16+'BP Financier'!$C$19+'BP Financier'!$D$16+'BP Financier'!$D$19+'BP Financier'!$E$16+'BP Financier'!$E$19+'BP Financier'!$C$22+'BP Financier'!$D$22+'BP Financier'!$E$22+'BP Financier'!$F$22+'BP Financier'!$F$16+'BP Financier'!$F$19))*$V6331*X6331/(1-$W6331)","v":{"v":627.1935901254458,"d":"627"}},{"$f":"'BP Financier'!$F$44*(('BP Financier'!$C$22+'BP Financier'!$D$22+'BP Financier'!$E$22+'BP Financier'!$F$22)/('BP Financier'!$C$16+'BP Financier'!$C$19+'BP Financier'!$D$16+'BP Financier'!$D$19+'BP Financier'!$E$16+'BP Financier'!$E$19+'BP Financier'!$C$22+'BP Financier'!$D$22+'BP Financier'!$E$22+'BP Financier'!$F$22+'BP Financier'!$F$16+'BP Financier'!$F$19))*$V6331*Y6331/(1-$W6331)","v":{"v":419.28411273579513,"d":"419"}},{"$f":"'BP Financier'!$F$44*(('BP Financier'!$C$22+'BP Financier'!$D$22+'BP Financier'!$E$22+'BP Financier'!$F$22)/('BP Financier'!$C$16+'BP Financier'!$C$19+'BP Financier'!$D$16+'BP Financier'!$D$19+'BP Financier'!$E$16+'BP Financier'!$E$19+'BP Financier'!$C$22+'BP Financier'!$D$22+'BP Financier'!$E$22+'BP Financier'!$F$22+'BP Financier'!$F$16+'BP Financier'!$F$19))*$V6331*Z6331/(1-$W6331)","v":{"v":3281.5045847999836,"d":"3,282"}},{"$f":"'BP Financier'!$F$44*(('BP Financier'!$C$22+'BP Financier'!$D$22+'BP Financier'!$E$22+'BP Financier'!$F$22)/('BP Financier'!$C$16+'BP Financier'!$C$19+'BP Financier'!$D$16+'BP Financier'!$D$19+'BP Financier'!$E$16+'BP Financier'!$E$19+'BP Financier'!$C$22+'BP Financier'!$D$22+'BP Financier'!$E$22+'BP Financier'!$F$22+'BP Financier'!$F$16+'BP Financier'!$F$19))*$V6331*AA6331/(1-$W6331)","v":{"v":405.42348090981847,"d":"405"}},{"$f":"'BP Financier'!$F$44*(('BP Financier'!$C$22+'BP Financier'!$D$22+'BP Financier'!$E$22+'BP Financier'!$F$22)/('BP Financier'!$C$16+'BP Financier'!$C$19+'BP Financier'!$D$16+'BP Financier'!$D$19+'BP Financier'!$E$16+'BP Financier'!$E$19+'BP Financier'!$C$22+'BP Financier'!$D$22+'BP Financier'!$E$22+'BP Financier'!$F$22+'BP Financier'!$F$16+'BP Financier'!$F$19))*$V6331*AB6331/(1-$W6331)","v":{"v":194.04884556367378,"d":"194"}},null,{"v":0.0025,"d":"0.25%"},{"$f":"Actif!$E$28/100","v":{"v":0.28900000000000003,"d":"28.90%"}},{"$f":"Actif!$E$30/100","v":{"v":0.09050000000000001,"d":"9.05%"}},{"$f":"Actif!$E$31/100","v":{"v":0.0605,"d":"6.05%"}},{"$f":"Actif!$E$32/100","v":{"v":0.47350000000000003,"d":"47.35%"}},{"$f":"Actif!$E$33/100","v":{"v":0.0585,"d":"5.85%"}},{"$f":"Actif!$E$29/100","v":{"v":0.027999999999999997,"d":"2.80%"}}]
[null,"#225",21,2026,"H","A_CAPI",{"v":0.44999999999999996,"d":"0.45"},{"v":0.38999999999999996,"d":"0.39"},0.6,0.6,85,0,{"$f":"ROUND(Primes!$P$10*V6332,2)","v":0.23},0,{"v":4927.454614134717,"d":"4,927"},{"$f":"'BP Financier'!$F$44*(('BP Financier'!$C$22+'BP Financier'!$D$22+'BP Financier'!$E$22+'BP Financier'!$F$22)/('BP Financier'!$C$16+'BP Financier'!$C$19+'BP Financier'!$D$16+'BP Financier'!$D$19+'BP Financier'!$E$16+'BP Financier'!$E$19+'BP Financier'!$C$22+'BP Financier'!$D$22+'BP Financier'!$E$22+'BP Financier'!$F$22+'BP Financier'!$F$16+'BP Financier'!$F$19))*$V6332*X6332/(1-$W6332)","v":{"v":627.1935901254458,"d":"627"}},{"$f":"'BP Financier'!$F$44*(('BP Financier'!$C$22+'BP Financier'!$D$22+'BP Financier'!$E$22+'BP Financier'!$F$22)/('BP Financier'!$C$16+'BP Financier'!$C$19+'BP Financier'!$D$16+'BP Financier'!$D$19+'BP Financier'!$E$16+'BP Financier'!$E$19+'BP Financier'!$C$22+'BP Financier'!$D$22+'BP Financier'!$E$22+'BP Financier'!$F$22+'BP Financier'!$F$16+'BP Financier'!$F$19))*$V6332*Y6332/(1-$W6332)","v":{"v":419.28411273579513,"d":"419"}},{"$f":"'BP Financier'!$F$44*(('BP Financier'!$C$22+'BP Financier'!$D$22+'BP Financier'!$E$22+'BP Financier'!$F$22)/('BP Financier'!$C$16+'BP Financier'!$C$19+'BP Financier'!$D$16+'BP Financier'!$D$19+'BP Financier'!$E$16+'BP Financier'!$E$19+'BP Financier'!$C$22+'BP Financier'!$D$22+'BP Financier'!$E$22+'BP Financier'!$F$22+'BP Financier'!$F$16+'BP Financier'!$F$19))*$V6332*Z6332/(1-$W6332)","v":{"v":3281.5045847999836,"d":"3,282"}},{"$f":"'BP Financier'!$F$44*(('BP Financier'!$C$22+'BP Financier'!$D$22+'BP Financier'!$E$22+'BP Financier'!$F$22)/('BP Financier'!$C$16+'BP Financier'!$C$19+'BP Financier'!$D$16+'BP Financier'!$D$19+'BP Financier'!$E$16+'BP Financier'!$E$19+'BP Financier'!$C$22+'BP Financier'!$D$22+'BP Financier'!$E$22+'BP Financier'!$F$22+'BP Financier'!$F$16+'BP Financier'!$F$19))*$V6332*AA6332/(1-$W6332)","v":{"v":405.42348090981847,"d":"405"}},{"$f":"'BP Financier'!$F$44*(('BP Financier'!$C$22+'BP Financier'!$D$22+'BP Financier'!$E$22+'BP Financier'!$F$22)/('BP Financier'!$C$16+'BP Financier'!$C$19+'BP Financier'!$D$16+'BP Financier'!$D$19+'BP Financier'!$E$16+'BP Financier'!$E$19+'BP Financier'!$C$22+'BP Financier'!$D$22+'BP Financier'!$E$22+'BP Financier'!$F$22+'BP Financier'!$F$16+'BP Financier'!$F$19))*$V6332*AB6332/(1-$W6332)","v":{"v":194.04884556367378,"d":"194"}},null,{"v":0.0025,"d":"0.25%"},{"$f":"Actif!$E$28/100","v":{"v":0.28900000000000003,"d":"28.90%"}},{"$f":"Actif!$E$30/100","v":{"v":0.09050000000000001,"d":"9.05%"}},{"$f":"Actif!$E$31/100","v":{"v":0.0605,"d":"6.05%"}},{"$f":"Actif!$E$32/100","v":{"v":0.47350000000000003,"d":"47.35%"}},{"$f":"Actif!$E$33/100","v":{"v":0.0585,"d":"5.85%"}},{"$f":"Actif!$E$29/100","v":{"v":0.027999999999999997,"d":"2.80%"}}]
[null,"#226",21,2028,"H","A_CAPI",{"v":0.44999999999999996,"d":"0.45"},{"v":0.38999999999999996,"d":"0.39"},0.6,0.6,85,0,{"$f":"ROUND(Primes!$P$10*V6333,2)","v":0.23},0,{"v":4927.454614134717,"d":"4,927"},{"$f":"'BP Financier'!$F$44*(('BP Financier'!$C$22+'BP Financier'!$D$22+'BP Financier'!$E$22+'BP Financier'!$F$22)/('BP Financier'!$C$16+'BP Financier'!$C$19+'BP Financier'!$D$16+'BP Financier'!$D$19+'BP Financier'!$E$16+'BP Financier'!$E$19+'BP Financier'!$C$22+'BP Financier'!$D$22+'BP Financier'!$E$22+'BP Financier'!$F$22+'BP Financier'!$F$16+'BP Financier'!$F$19))*$V6333*X6333/(1-$W6333)","v":{"v":627.1935901254458,"d":"627"}},{"$f":"'BP Financier'!$F$44*(('BP Financier'!$C$22+'BP Financier'!$D$22+'BP Financier'!$E$22+'BP Financier'!$F$22)/('BP Financier'!$C$16+'BP Financier'!$C$19+'BP Financier'!$D$16+'BP Financier'!$D$19+'BP Financier'!$E$16+'BP Financier'!$E$19+'BP Financier'!$C$22+'BP Financier'!$D$22+'BP Financier'!$E$22+'BP Financier'!$F$22+'BP Financier'!$F$16+'BP Financier'!$F$19))*$V6333*Y6333/(1-$W6333)","v":{"v":419.28411273579513,"d":"419"}},{"$f":"'BP Financier'!$F$44*(('BP Financier'!$C$22+'BP Financier'!$D$22+'BP Financier'!$E$22+'BP Financier'!$F$22)/('BP Financier'!$C$16+'BP Financier'!$C$19+'BP Financier'!$D$16+'BP Financier'!$D$19+'BP Financier'!$E$16+'BP Financier'!$E$19+'BP Financier'!$C$22+'BP Financier'!$D$22+'BP Financier'!$E$22+'BP Financier'!$F$22+'BP Financier'!$F$16+'BP Financier'!$F$19))*$V6333*Z6333/(1-$W6333)","v":{"v":3281.5045847999836,"d":"3,282"}},{"$f":"'BP Financier'!$F$44*(('BP Financier'!$C$22+'BP Financier'!$D$22+'BP Financier'!$E$22+'BP Financier'!$F$22)/('BP Financier'!$C$16+'BP Financier'!$C$19+'BP Financier'!$D$16+'BP Financier'!$D$19+'BP Financier'!$E$16+'BP Financier'!$E$19+'BP Financier'!$C$22+'BP Financier'!$D$22+'BP Financier'!$E$22+'BP Financier'!$F$22+'BP Financier'!$F$16+'BP Financier'!$F$19))*$V6333*AA6333/(1-$W6333)","v":{"v":405.42348090981847,"d":"405"}},{"$f":"'BP Financier'!$F$44*(('BP Financier'!$C$22+'BP Financier'!$D$22+'BP Financier'!$E$22+'BP Financier'!$F$22)/('BP Financier'!$C$16+'BP Financier'!$C$19+'BP Financier'!$D$16+'BP Financier'!$D$19+'BP Financier'!$E$16+'BP Financier'!$E$19+'BP Financier'!$C$22+'BP Financier'!$D$22+'BP Financier'!$E$22+'BP Financier'!$F$22+'BP Financier'!$F$16+'BP Financier'!$F$19))*$V6333*AB6333/(1-$W6333)","v":{"v":194.04884556367378,"d":"194"}},null,{"v":0.0025,"d":"0.25%"},{"$f":"Actif!$E$28/100","v":{"v":0.28900000000000003,"d":"28.90%"}},{"$f":"Actif!$E$30/100","v":{"v":0.09050000000000001,"d":"9.05%"}},{"$f":"Actif!$E$31/100","v":{"v":0.0605,"d":"6.05%"}},{"$f":"Actif!$E$32/100","v":{"v":0.47350000000000003,"d":"47.35%"}},{"$f":"Actif!$E$33/100","v":{"v":0.0585,"d":"5.85%"}},{"$f":"Actif!$E$29/100","v":{"v":0.027999999999999997,"d":"2.80%"}}]
[null,"#227",21,2029,"H","A_CAPI",{"v":0.44999999999999996,"d":"0.45"},{"v":0.38999999999999996,"d":"0.39"},0.6,0.6,85,0,{"$f":"ROUND(Primes!$P$10*V6334,2)","v":0.23},0,{"v":4927.454614134717,"d":"4,927"},{"$f":"'BP Financier'!$F$44*(('BP Financier'!$C$22+'BP Financier'!$D$22+'BP Financier'!$E$22+'BP Financier'!$F$22)/('BP Financier'!$C$16+'BP Financier'!$C$19+'BP Financier'!$D$16+'BP Financier'!$D$19+'BP Financier'!$E$16+'BP Financier'!$E$19+'BP Financier'!$C$22+'BP Financier'!$D$22+'BP Financier'!$E$22+'BP Financier'!$F$22+'BP Financier'!$F$16+'BP Financier'!$F$19))*$V6334*X6334/(1-$W6334)","v":{"v":627.1935901254458,"d":"627"}},{"$f":"'BP Financier'!$F$44*(('BP Financier'!$C$22+'BP Financier'!$D$22+'BP Financier'!$E$22+'BP Financier'!$F$22)/('BP Financier'!$C$16+'BP Financier'!$C$19+'BP Financier'!$D$16+'BP Financier'!$D$19+'BP Financier'!$E$16+'BP Financier'!$E$19+'BP Financier'!$C$22+'BP Financier'!$D$22+'BP Financier'!$E$22+'BP Financier'!$F$22+'BP Financier'!$F$16+'BP Financier'!$F$19))*$V6334*Y6334/(1-$W6334)","v":{"v":419.28411273579513,"d":"419"}},{"$f":"'BP Financier'!$F$44*(('BP Financier'!$C$22+'BP Financier'!$D$22+'BP Financier'!$E$22+'BP Financier'!$F$22)/('BP Financier'!$C$16+'BP Financier'!$C$19+'BP Financier'!$D$16+'BP Financier'!$D$19+'BP Financier'!$E$16+'BP Financier'!$E$19+'BP Financier'!$C$22+'BP Financier'!$D$22+'BP Financier'!$E$22+'BP Financier'!$F$22+'BP Financier'!$F$16+'BP Financier'!$F$19))*$V6334*Z6334/(1-$W6334)","v":{"v":3281.5045847999836,"d":"3,282"}},{"$f":"'BP Financier'!$F$44*(('BP Financier'!$C$22+'BP Financier'!$D$22+'BP Financier'!$E$22+'BP Financier'!$F$22)/('BP Financier'!$C$16+'BP Financier'!$C$19+'BP Financier'!$D$16+'BP Financier'!$D$19+'BP Financier'!$E$16+'BP Financier'!$E$19+'BP Financier'!$C$22+'BP Financier'!$D$22+'BP Financier'!$E$22+'BP Financier'!$F$22+'BP Financier'!$F$16+'BP Financier'!$F$19))*$V6334*AA6334/(1-$W6334)","v":{"v":405.42348090981847,"d":"405"}},{"$f":"'BP Financier'!$F$44*(('BP Financier'!$C$22+'BP Financier'!$D$22+'BP Financier'!$E$22+'BP Financier'!$F$22)/('BP Financier'!$C$16+'BP Financier'!$C$19+'BP Financier'!$D$16+'BP Financier'!$D$19+'BP Financier'!$E$16+'BP Financier'!$E$19+'BP Financier'!$C$22+'BP Financier'!$D$22+'BP Financier'!$E$22+'BP Financier'!$F$22+'BP Financier'!$F$16+'BP Financier'!$F$19))*$V6334*AB6334/(1-$W6334)","v":{"v":194.04884556367378,"d":"194"}},null,{"v":0.0025,"d":"0.25%"},{"$f":"Actif!$E$28/100","v":{"v":0.28900000000000003,"d":"28.90%"}},{"$f":"Actif!$E$30/100","v":{"v":0.09050000000000001,"d":"9.05%"}},{"$f":"Actif!$E$31/100","v":{"v":0.0605,"d":"6.05%"}},{"$f":"Actif!$E$32/100","v":{"v":0.47350000000000003,"d":"47.35%"}},{"$f":"Actif!$E$33/100","v":{"v":0.0585,"d":"5.85%"}},{"$f":"Actif!$E$29/100","v":{"v":0.027999999999999997,"d":"2.80%"}}]
[null,"#228",21,2030,"H","A_CAPI",{"v":0.44999999999999996,"d":"0.45"},{"v":0.38999999999999996,"d":"0.39"},0.6,0.6,85,0,{"$f":"ROUND(Primes!$P$10*V6335,2)","v":0.23},0,{"v":4927.454614134717,"d":"4,927"},{"$f":"'BP Financier'!$F$44*(('BP Financier'!$C$22+'BP Financier'!$D$22+'BP Financier'!$E$22+'BP Financier'!$F$22)/('BP Financier'!$C$16+'BP Financier'!$C$19+'BP Financier'!$D$16+'BP Financier'!$D$19+'BP Financier'!$E$16+'BP Financier'!$E$19+'BP Financier'!$C$22+'BP Financier'!$D$22+'BP Financier'!$E$22+'BP Financier'!$F$22+'BP Financier'!$F$16+'BP Financier'!$F$19))*$V6335*X6335/(1-$W6335)","v":{"v":627.1935901254458,"d":"627"}},{"$f":"'BP Financier'!$F$44*(('BP Financier'!$C$22+'BP Financier'!$D$22+'BP Financier'!$E$22+'BP Financier'!$F$22)/('BP Financier'!$C$16+'BP Financier'!$C$19+'BP Financier'!$D$16+'BP Financier'!$D$19+'BP Financier'!$E$16+'BP Financier'!$E$19+'BP Financier'!$C$22+'BP Financier'!$D$22+'BP Financier'!$E$22+'BP Financier'!$F$22+'BP Financier'!$F$16+'BP Financier'!$F$19))*$V6335*Y6335/(1-$W6335)","v":{"v":419.28411273579513,"d":"419"}},{"$f":"'BP Financier'!$F$44*(('BP Financier'!$C$22+'BP Financier'!$D$22+'BP Financier'!$E$22+'BP Financier'!$F$22)/('BP Financier'!$C$16+'BP Financier'!$C$19+'BP Financier'!$D$16+'BP Financier'!$D$19+'BP Financier'!$E$16+'BP Financier'!$E$19+'BP Financier'!$C$22+'BP Financier'!$D$22+'BP Financier'!$E$22+'BP Financier'!$F$22+'BP Financier'!$F$16+'BP Financier'!$F$19))*$V6335*Z6335/(1-$W6335)","v":{"v":3281.5045847999836,"d":"3,282"}},{"$f":"'BP Financier'!$F$44*(('BP Financier'!$C$22+'BP Financier'!$D$22+'BP Financier'!$E$22+'BP Financier'!$F$22)/('BP Financier'!$C$16+'BP Financier'!$C$19+'BP Financier'!$D$16+'BP Financier'!$D$19+'BP Financier'!$E$16+'BP Financier'!$E$19+'BP Financier'!$C$22+'BP Financier'!$D$22+'BP Financier'!$E$22+'BP Financier'!$F$22+'BP Financier'!$F$16+'BP Financier'!$F$19))*$V6335*AA6335/(1-$W6335)","v":{"v":405.42348090981847,"d":"405"}},{"$f":"'BP Financier'!$F$44*(('BP Financier'!$C$22+'BP Financier'!$D$22+'BP Financier'!$E$22+'BP Financier'!$F$22)/('BP Financier'!$C$16+'BP Financier'!$C$19+'BP Financier'!$D$16+'BP Financier'!$D$19+'BP Financier'!$E$16+'BP Financier'!$E$19+'BP Financier'!$C$22+'BP Financier'!$D$22+'BP Financier'!$E$22+'BP Financier'!$F$22+'BP Financier'!$F$16+'BP Financier'!$F$19))*$V6335*AB6335/(1-$W6335)","v":{"v":194.04884556367378,"d":"194"}},null,{"v":0.0025,"d":"0.25%"},{"$f":"Actif!$E$28/100","v":{"v":0.28900000000000003,"d":"28.90%"}},{"$f":"Actif!$E$30/100","v":{"v":0.09050000000000001,"d":"9.05%"}},{"$f":"Actif!$E$31/100","v":{"v":0.0605,"d":"6.05%"}},{"$f":"Actif!$E$32/100","v":{"v":0.47350000000000003,"d":"47.35%"}},{"$f":"Actif!$E$33/100","v":{"v":0.0585,"d":"5.85%"}},{"$f":"Actif!$E$29/100","v":{"v":0.027999999999999997,"d":"2.80%"}}]
[null,"#229",22,2026,"H","A_CAPI",{"v":0.44999999999999996,"d":"0.45"},{"v":0.38999999999999996,"d":"0.39"},0.6,0.6,85,0,{"$f":"ROUND(Primes!$P$10*V6336,2)","v":0.23},0,{"v":4927.454614134717,"d":"4,927"},{"$f":"'BP Financier'!$F$44*(('BP Financier'!$C$22+'BP Financier'!$D$22+'BP Financier'!$E$22+'BP Financier'!$F$22)/('BP Financier'!$C$16+'BP Financier'!$C$19+'BP Financier'!$D$16+'BP Financier'!$D$19+'BP Financier'!$E$16+'BP Financier'!$E$19+'BP Financier'!$C$22+'BP Financier'!$D$22+'BP Financier'!$E$22+'BP Financier'!$F$22+'BP Financier'!$F$16+'BP Financier'!$F$19))*$V6336*X6336/(1-$W6336)","v":{"v":627.1935901254458,"d":"627"}},{"$f":"'BP Financier'!$F$44*(('BP Financier'!$C$22+'BP Financier'!$D$22+'BP Financier'!$E$22+'BP Financier'!$F$22)/('BP Financier'!$C$16+'BP Financier'!$C$19+'BP Financier'!$D$16+'BP Financier'!$D$19+'BP Financier'!$E$16+'BP Financier'!$E$19+'BP Financier'!$C$22+'BP Financier'!$D$22+'BP Financier'!$E$22+'BP Financier'!$F$22+'BP Financier'!$F$16+'BP Financier'!$F$19))*$V6336*Y6336/(1-$W6336)","v":{"v":419.28411273579513,"d":"419"}},{"$f":"'BP Financier'!$F$44*(('BP Financier'!$C$22+'BP Financier'!$D$22+'BP Financier'!$E$22+'BP Financier'!$F$22)/('BP Financier'!$C$16+'BP Financier'!$C$19+'BP Financier'!$D$16+'BP Financier'!$D$19+'BP Financier'!$E$16+'BP Financier'!$E$19+'BP Financier'!$C$22+'BP Financier'!$D$22+'BP Financier'!$E$22+'BP Financier'!$F$22+'BP Financier'!$F$16+'BP Financier'!$F$19))*$V6336*Z6336/(1-$W6336)","v":{"v":3281.5045847999836,"d":"3,282"}},{"$f":"'BP Financier'!$F$44*(('BP Financier'!$C$22+'BP Financier'!$D$22+'BP Financier'!$E$22+'BP Financier'!$F$22)/('BP Financier'!$C$16+'BP Financier'!$C$19+'BP Financier'!$D$16+'BP Financier'!$D$19+'BP Financier'!$E$16+'BP Financier'!$E$19+'BP Financier'!$C$22+'BP Financier'!$D$22+'BP Financier'!$E$22+'BP Financier'!$F$22+'BP Financier'!$F$16+'BP Financier'!$F$19))*$V6336*AA6336/(1-$W6336)","v":{"v":405.42348090981847,"d":"405"}},{"$f":"'BP Financier'!$F$44*(('BP Financier'!$C$22+'BP Financier'!$D$22+'BP Financier'!$E$22+'BP Financier'!$F$22)/('BP Financier'!$C$16+'BP Financier'!$C$19+'BP Financier'!$D$16+'BP Financier'!$D$19+'BP Financier'!$E$16+'BP Financier'!$E$19+'BP Financier'!$C$22+'BP Financier'!$D$22+'BP Financier'!$E$22+'BP Financier'!$F$22+'BP Financier'!$F$16+'BP Financier'!$F$19))*$V6336*AB6336/(1-$W6336)","v":{"v":194.04884556367378,"d":"194"}},null,{"v":0.0025,"d":"0.25%"},{"$f":"Actif!$E$28/100","v":{"v":0.28900000000000003,"d":"28.90%"}},{"$f":"Actif!$E$30/100","v":{"v":0.09050000000000001,"d":"9.05%"}},{"$f":"Actif!$E$31/100","v":{"v":0.0605,"d":"6.05%"}},{"$f":"Actif!$E$32/100","v":{"v":0.47350000000000003,"d":"47.35%"}},{"$f":"Actif!$E$33/100","v":{"v":0.0585,"d":"5.85%"}},{"$f":"Actif!$E$29/100","v":{"v":0.027999999999999997,"d":"2.80%"}}]
[null,"#230",22,2028,"H","A_CAPI",{"v":0.44999999999999996,"d":"0.45"},{"v":0.38999999999999996,"d":"0.39"},0.6,0.6,85,0,{"$f":"ROUND(Primes!$P$10*V6337,2)","v":0.23},0,{"v":4927.454614134717,"d":"4,927"},{"$f":"'BP Financier'!$F$44*(('BP Financier'!$C$22+'BP Financier'!$D$22+'BP Financier'!$E$22+'BP Financier'!$F$22)/('BP Financier'!$C$16+'BP Financier'!$C$19+'BP Financier'!$D$16+'BP Financier'!$D$19+'BP Financier'!$E$16+'BP Financier'!$E$19+'BP Financier'!$C$22+'BP Financier'!$D$22+'BP Financier'!$E$22+'BP Financier'!$F$22+'BP Financier'!$F$16+'BP Financier'!$F$19))*$V6337*X6337/(1-$W6337)","v":{"v":627.1935901254458,"d":"627"}},{"$f":"'BP Financier'!$F$44*(('BP Financier'!$C$22+'BP Financier'!$D$22+'BP Financier'!$E$22+'BP Financier'!$F$22)/('BP Financier'!$C$16+'BP Financier'!$C$19+'BP Financier'!$D$16+'BP Financier'!$D$19+'BP Financier'!$E$16+'BP Financier'!$E$19+'BP Financier'!$C$22+'BP Financier'!$D$22+'BP Financier'!$E$22+'BP Financier'!$F$22+'BP Financier'!$F$16+'BP Financier'!$F$19))*$V6337*Y6337/(1-$W6337)","v":{"v":419.28411273579513,"d":"419"}},{"$f":"'BP Financier'!$F$44*(('BP Financier'!$C$22+'BP Financier'!$D$22+'BP Financier'!$E$22+'BP Financier'!$F$22)/('BP Financier'!$C$16+'BP Financier'!$C$19+'BP Financier'!$D$16+'BP Financier'!$D$19+'BP Financier'!$E$16+'BP Financier'!$E$19+'BP Financier'!$C$22+'BP Financier'!$D$22+'BP Financier'!$E$22+'BP Financier'!$F$22+'BP Financier'!$F$16+'BP Financier'!$F$19))*$V6337*Z6337/(1-$W6337)","v":{"v":3281.5045847999836,"d":"3,282"}},{"$f":"'BP Financier'!$F$44*(('BP Financier'!$C$22+'BP Financier'!$D$22+'BP Financier'!$E$22+'BP Financier'!$F$22)/('BP Financier'!$C$16+'BP Financier'!$C$19+'BP Financier'!$D$16+'BP Financier'!$D$19+'BP Financier'!$E$16+'BP Financier'!$E$19+'BP Financier'!$C$22+'BP Financier'!$D$22+'BP Financier'!$E$22+'BP Financier'!$F$22+'BP Financier'!$F$16+'BP Financier'!$F$19))*$V6337*AA6337/(1-$W6337)","v":{"v":405.42348090981847,"d":"405"}},{"$f":"'BP Financier'!$F$44*(('BP Financier'!$C$22+'BP Financier'!$D$22+'BP Financier'!$E$22+'BP Financier'!$F$22)/('BP Financier'!$C$16+'BP Financier'!$C$19+'BP Financier'!$D$16+'BP Financier'!$D$19+'BP Financier'!$E$16+'BP Financier'!$E$19+'BP Financier'!$C$22+'BP Financier'!$D$22+'BP Financier'!$E$22+'BP Financier'!$F$22+'BP Financier'!$F$16+'BP Financier'!$F$19))*$V6337*AB6337/(1-$W6337)","v":{"v":194.04884556367378,"d":"194"}},null,{"v":0.0025,"d":"0.25%"},{"$f":"Actif!$E$28/100","v":{"v":0.28900000000000003,"d":"28.90%"}},{"$f":"Actif!$E$30/100","v":{"v":0.09050000000000001,"d":"9.05%"}},{"$f":"Actif!$E$31/100","v":{"v":0.0605,"d":"6.05%"}},{"$f":"Actif!$E$32/100","v":{"v":0.47350000000000003,"d":"47.35%"}},{"$f":"Actif!$E$33/100","v":{"v":0.0585,"d":"5.85%"}},{"$f":"Actif!$E$29/100","v":{"v":0.027999999999999997,"d":"2.80%"}}]
[null,"#231",22,2029,"H","A_CAPI",{"v":0.44999999999999996,"d":"0.45"},{"v":0.38999999999999996,"d":"0.39"},0.6,0.6,85,0,{"$f":"ROUND(Primes!$P$10*V6338,2)","v":0.23},0,{"v":4927.454614134717,"d":"4,927"},{"$f":"'BP Financier'!$F$44*(('BP Financier'!$C$22+'BP Financier'!$D$22+'BP Financier'!$E$22+'BP Financier'!$F$22)/('BP Financier'!$C$16+'BP Financier'!$C$19+'BP Financier'!$D$16+'BP Financier'!$D$19+'BP Financier'!$E$16+'BP Financier'!$E$19+'BP Financier'!$C$22+'BP Financier'!$D$22+'BP Financier'!$E$22+'BP Financier'!$F$22+'BP Financier'!$F$16+'BP Financier'!$F$19))*$V6338*X6338/(1-$W6338)","v":{"v":627.1935901254458,"d":"627"}},{"$f":"'BP Financier'!$F$44*(('BP Financier'!$C$22+'BP Financier'!$D$22+'BP Financier'!$E$22+'BP Financier'!$F$22)/('BP Financier'!$C$16+'BP Financier'!$C$19+'BP Financier'!$D$16+'BP Financier'!$D$19+'BP Financier'!$E$16+'BP Financier'!$E$19+'BP Financier'!$C$22+'BP Financier'!$D$22+'BP Financier'!$E$22+'BP Financier'!$F$22+'BP Financier'!$F$16+'BP Financier'!$F$19))*$V6338*Y6338/(1-$W6338)","v":{"v":419.28411273579513,"d":"419"}},{"$f":"'BP Financier'!$F$44*(('BP Financier'!$C$22+'BP Financier'!$D$22+'BP Financier'!$E$22+'BP Financier'!$F$22)/('BP Financier'!$C$16+'BP Financier'!$C$19+'BP Financier'!$D$16+'BP Financier'!$D$19+'BP Financier'!$E$16+'BP Financier'!$E$19+'BP Financier'!$C$22+'BP Financier'!$D$22+'BP Financier'!$E$22+'BP Financier'!$F$22+'BP Financier'!$F$16+'BP Financier'!$F$19))*$V6338*Z6338/(1-$W6338)","v":{"v":3281.5045847999836,"d":"3,282"}},{"$f":"'BP Financier'!$F$44*(('BP Financier'!$C$22+'BP Financier'!$D$22+'BP Financier'!$E$22+'BP Financier'!$F$22)/('BP Financier'!$C$16+'BP Financier'!$C$19+'BP Financier'!$D$16+'BP Financier'!$D$19+'BP Financier'!$E$16+'BP Financier'!$E$19+'BP Financier'!$C$22+'BP Financier'!$D$22+'BP Financier'!$E$22+'BP Financier'!$F$22+'BP Financier'!$F$16+'BP Financier'!$F$19))*$V6338*AA6338/(1-$W6338)","v":{"v":405.42348090981847,"d":"405"}},{"$f":"'BP Financier'!$F$44*(('BP Financier'!$C$22+'BP Financier'!$D$22+'BP Financier'!$E$22+'BP Financier'!$F$22)/('BP Financier'!$C$16+'BP Financier'!$C$19+'BP Financier'!$D$16+'BP Financier'!$D$19+'BP Financier'!$E$16+'BP Financier'!$E$19+'BP Financier'!$C$22+'BP Financier'!$D$22+'BP Financier'!$E$22+'BP Financier'!$F$22+'BP Financier'!$F$16+'BP Financier'!$F$19))*$V6338*AB6338/(1-$W6338)","v":{"v":194.04884556367378,"d":"194"}},null,{"v":0.0025,"d":"0.25%"},{"$f":"Actif!$E$28/100","v":{"v":0.28900000000000003,"d":"28.90%"}},{"$f":"Actif!$E$30/100","v":{"v":0.09050000000000001,"d":"9.05%"}},{"$f":"Actif!$E$31/100","v":{"v":0.0605,"d":"6.05%"}},{"$f":"Actif!$E$32/100","v":{"v":0.47350000000000003,"d":"47.35%"}},{"$f":"Actif!$E$33/100","v":{"v":0.0585,"d":"5.85%"}},{"$f":"Actif!$E$29/100","v":{"v":0.027999999999999997,"d":"2.80%"}}]
[null,"#232",22,2030,"H","A_CAPI",{"v":0.44999999999999996,"d":"0.45"},{"v":0.38999999999999996,"d":"0.39"},0.6,0.6,85,0,{"$f":"ROUND(Primes!$P$10*V6339,2)","v":0.23},0,{"v":4927.454614134717,"d":"4,927"},{"$f":"'BP Financier'!$F$44*(('BP Financier'!$C$22+'BP Financier'!$D$22+'BP Financier'!$E$22+'BP Financier'!$F$22)/('BP Financier'!$C$16+'BP Financier'!$C$19+'BP Financier'!$D$16+'BP Financier'!$D$19+'BP Financier'!$E$16+'BP Financier'!$E$19+'BP Financier'!$C$22+'BP Financier'!$D$22+'BP Financier'!$E$22+'BP Financier'!$F$22+'BP Financier'!$F$16+'BP Financier'!$F$19))*$V6339*X6339/(1-$W6339)","v":{"v":627.1935901254458,"d":"627"}},{"$f":"'BP Financier'!$F$44*(('BP Financier'!$C$22+'BP Financier'!$D$22+'BP Financier'!$E$22+'BP Financier'!$F$22)/('BP Financier'!$C$16+'BP Financier'!$C$19+'BP Financier'!$D$16+'BP Financier'!$D$19+'BP Financier'!$E$16+'BP Financier'!$E$19+'BP Financier'!$C$22+'BP Financier'!$D$22+'BP Financier'!$E$22+'BP Financier'!$F$22+'BP Financier'!$F$16+'BP Financier'!$F$19))*$V6339*Y6339/(1-$W6339)","v":{"v":419.28411273579513,"d":"419"}},{"$f":"'BP Financier'!$F$44*(('BP Financier'!$C$22+'BP Financier'!$D$22+'BP Financier'!$E$22+'BP Financier'!$F$22)/('BP Financier'!$C$16+'BP Financier'!$C$19+'BP Financier'!$D$16+'BP Financier'!$D$19+'BP Financier'!$E$16+'BP Financier'!$E$19+'BP Financier'!$C$22+'BP Financier'!$D$22+'BP Financier'!$E$22+'BP Financier'!$F$22+'BP Financier'!$F$16+'BP Financier'!$F$19))*$V6339*Z6339/(1-$W6339)","v":{"v":3281.5045847999836,"d":"3,282"}},{"$f":"'BP Financier'!$F$44*(('BP Financier'!$C$22+'BP Financier'!$D$22+'BP Financier'!$E$22+'BP Financier'!$F$22)/('BP Financier'!$C$16+'BP Financier'!$C$19+'BP Financier'!$D$16+'BP Financier'!$D$19+'BP Financier'!$E$16+'BP Financier'!$E$19+'BP Financier'!$C$22+'BP Financier'!$D$22+'BP Financier'!$E$22+'BP Financier'!$F$22+'BP Financier'!$F$16+'BP Financier'!$F$19))*$V6339*AA6339/(1-$W6339)","v":{"v":405.42348090981847,"d":"405"}},{"$f":"'BP Financier'!$F$44*(('BP Financier'!$C$22+'BP Financier'!$D$22+'BP Financier'!$E$22+'BP Financier'!$F$22)/('BP Financier'!$C$16+'BP Financier'!$C$19+'BP Financier'!$D$16+'BP Financier'!$D$19+'BP Financier'!$E$16+'BP Financier'!$E$19+'BP Financier'!$C$22+'BP Financier'!$D$22+'BP Financier'!$E$22+'BP Financier'!$F$22+'BP Financier'!$F$16+'BP Financier'!$F$19))*$V6339*AB6339/(1-$W6339)","v":{"v":194.04884556367378,"d":"194"}},null,{"v":0.0025,"d":"0.25%"},{"$f":"Actif!$E$28/100","v":{"v":0.28900000000000003,"d":"28.90%"}},{"$f":"Actif!$E$30/100","v":{"v":0.09050000000000001,"d":"9.05%"}},{"$f":"Actif!$E$31/100","v":{"v":0.0605,"d":"6.05%"}},{"$f":"Actif!$E$32/100","v":{"v":0.47350000000000003,"d":"47.35%"}},{"$f":"Actif!$E$33/100","v":{"v":0.0585,"d":"5.85%"}},{"$f":"Actif!$E$29/100","v":{"v":0.027999999999999997,"d":"2.80%"}}]
[null,"#233",23,2026,"F","A_CAPI",{"v":0.44999999999999996,"d":"0.45"},{"v":0.38999999999999996,"d":"0.39"},0.6,0.6,85,0,{"$f":"ROUND(Primes!$P$10*V6340,2)","v":0.23},0,{"v":4927.454614134717,"d":"4,927"},{"$f":"'BP Financier'!$F$44*(('BP Financier'!$C$22+'BP Financier'!$D$22+'BP Financier'!$E$22+'BP Financier'!$F$22)/('BP Financier'!$C$16+'BP Financier'!$C$19+'BP Financier'!$D$16+'BP Financier'!$D$19+'BP Financier'!$E$16+'BP Financier'!$E$19+'BP Financier'!$C$22+'BP Financier'!$D$22+'BP Financier'!$E$22+'BP Financier'!$F$22+'BP Financier'!$F$16+'BP Financier'!$F$19))*$V6340*X6340/(1-$W6340)","v":{"v":627.1935901254458,"d":"627"}},{"$f":"'BP Financier'!$F$44*(('BP Financier'!$C$22+'BP Financier'!$D$22+'BP Financier'!$E$22+'BP Financier'!$F$22)/('BP Financier'!$C$16+'BP Financier'!$C$19+'BP Financier'!$D$16+'BP Financier'!$D$19+'BP Financier'!$E$16+'BP Financier'!$E$19+'BP Financier'!$C$22+'BP Financier'!$D$22+'BP Financier'!$E$22+'BP Financier'!$F$22+'BP Financier'!$F$16+'BP Financier'!$F$19))*$V6340*Y6340/(1-$W6340)","v":{"v":419.28411273579513,"d":"419"}},{"$f":"'BP Financier'!$F$44*(('BP Financier'!$C$22+'BP Financier'!$D$22+'BP Financier'!$E$22+'BP Financier'!$F$22)/('BP Financier'!$C$16+'BP Financier'!$C$19+'BP Financier'!$D$16+'BP Financier'!$D$19+'BP Financier'!$E$16+'BP Financier'!$E$19+'BP Financier'!$C$22+'BP Financier'!$D$22+'BP Financier'!$E$22+'BP Financier'!$F$22+'BP Financier'!$F$16+'BP Financier'!$F$19))*$V6340*Z6340/(1-$W6340)","v":{"v":3281.5045847999836,"d":"3,282"}},{"$f":"'BP Financier'!$F$44*(('BP Financier'!$C$22+'BP Financier'!$D$22+'BP Financier'!$E$22+'BP Financier'!$F$22)/('BP Financier'!$C$16+'BP Financier'!$C$19+'BP Financier'!$D$16+'BP Financier'!$D$19+'BP Financier'!$E$16+'BP Financier'!$E$19+'BP Financier'!$C$22+'BP Financier'!$D$22+'BP Financier'!$E$22+'BP Financier'!$F$22+'BP Financier'!$F$16+'BP Financier'!$F$19))*$V6340*AA6340/(1-$W6340)","v":{"v":405.42348090981847,"d":"405"}},{"$f":"'BP Financier'!$F$44*(('BP Financier'!$C$22+'BP Financier'!$D$22+'BP Financier'!$E$22+'BP Financier'!$F$22)/('BP Financier'!$C$16+'BP Financier'!$C$19+'BP Financier'!$D$16+'BP Financier'!$D$19+'BP Financier'!$E$16+'BP Financier'!$E$19+'BP Financier'!$C$22+'BP Financier'!$D$22+'BP Financier'!$E$22+'BP Financier'!$F$22+'BP Financier'!$F$16+'BP Financier'!$F$19))*$V6340*AB6340/(1-$W6340)","v":{"v":194.04884556367378,"d":"194"}},null,{"v":0.0025,"d":"0.25%"},{"$f":"Actif!$E$28/100","v":{"v":0.28900000000000003,"d":"28.90%"}},{"$f":"Actif!$E$30/100","v":{"v":0.09050000000000001,"d":"9.05%"}},{"$f":"Actif!$E$31/100","v":{"v":0.0605,"d":"6.05%"}},{"$f":"Actif!$E$32/100","v":{"v":0.47350000000000003,"d":"47.35%"}},{"$f":"Actif!$E$33/100","v":{"v":0.0585,"d":"5.85%"}},{"$f":"Actif!$E$29/100","v":{"v":0.027999999999999997,"d":"2.80%"}}]
[null,"#234",23,2028,"F","A_CAPI",{"v":0.44999999999999996,"d":"0.45"},{"v":0.38999999999999996,"d":"0.39"},0.6,0.6,85,0,{"$f":"ROUND(Primes!$P$10*V6341,2)","v":0.23},0,{"v":4927.454614134717,"d":"4,927"},{"$f":"'BP Financier'!$F$44*(('BP Financier'!$C$22+'BP Financier'!$D$22+'BP Financier'!$E$22+'BP Financier'!$F$22)/('BP Financier'!$C$16+'BP Financier'!$C$19+'BP Financier'!$D$16+'BP Financier'!$D$19+'BP Financier'!$E$16+'BP Financier'!$E$19+'BP Financier'!$C$22+'BP Financier'!$D$22+'BP Financier'!$E$22+'BP Financier'!$F$22+'BP Financier'!$F$16+'BP Financier'!$F$19))*$V6341*X6341/(1-$W6341)","v":{"v":627.1935901254458,"d":"627"}},{"$f":"'BP Financier'!$F$44*(('BP Financier'!$C$22+'BP Financier'!$D$22+'BP Financier'!$E$22+'BP Financier'!$F$22)/('BP Financier'!$C$16+'BP Financier'!$C$19+'BP Financier'!$D$16+'BP Financier'!$D$19+'BP Financier'!$E$16+'BP Financier'!$E$19+'BP Financier'!$C$22+'BP Financier'!$D$22+'BP Financier'!$E$22+'BP Financier'!$F$22+'BP Financier'!$F$16+'BP Financier'!$F$19))*$V6341*Y6341/(1-$W6341)","v":{"v":419.28411273579513,"d":"419"}},{"$f":"'BP Financier'!$F$44*(('BP Financier'!$C$22+'BP Financier'!$D$22+'BP Financier'!$E$22+'BP Financier'!$F$22)/('BP Financier'!$C$16+'BP Financier'!$C$19+'BP Financier'!$D$16+'BP Financier'!$D$19+'BP Financier'!$E$16+'BP Financier'!$E$19+'BP Financier'!$C$22+'BP Financier'!$D$22+'BP Financier'!$E$22+'BP Financier'!$F$22+'BP Financier'!$F$16+'BP Financier'!$F$19))*$V6341*Z6341/(1-$W6341)","v":{"v":3281.5045847999836,"d":"3,282"}},{"$f":"'BP Financier'!$F$44*(('BP Financier'!$C$22+'BP Financier'!$D$22+'BP Financier'!$E$22+'BP Financier'!$F$22)/('BP Financier'!$C$16+'BP Financier'!$C$19+'BP Financier'!$D$16+'BP Financier'!$D$19+'BP Financier'!$E$16+'BP Financier'!$E$19+'BP Financier'!$C$22+'BP Financier'!$D$22+'BP Financier'!$E$22+'BP Financier'!$F$22+'BP Financier'!$F$16+'BP Financier'!$F$19))*$V6341*AA6341/(1-$W6341)","v":{"v":405.42348090981847,"d":"405"}},{"$f":"'BP Financier'!$F$44*(('BP Financier'!$C$22+'BP Financier'!$D$22+'BP Financier'!$E$22+'BP Financier'!$F$22)/('BP Financier'!$C$16+'BP Financier'!$C$19+'BP Financier'!$D$16+'BP Financier'!$D$19+'BP Financier'!$E$16+'BP Financier'!$E$19+'BP Financier'!$C$22+'BP Financier'!$D$22+'BP Financier'!$E$22+'BP Financier'!$F$22+'BP Financier'!$F$16+'BP Financier'!$F$19))*$V6341*AB6341/(1-$W6341)","v":{"v":194.04884556367378,"d":"194"}},null,{"v":0.0025,"d":"0.25%"},{"$f":"Actif!$E$28/100","v":{"v":0.28900000000000003,"d":"28.90%"}},{"$f":"Actif!$E$30/100","v":{"v":0.09050000000000001,"d":"9.05%"}},{"$f":"Actif!$E$31/100","v":{"v":0.0605,"d":"6.05%"}},{"$f":"Actif!$E$32/100","v":{"v":0.47350000000000003,"d":"47.35%"}},{"$f":"Actif!$E$33/100","v":{"v":0.0585,"d":"5.85%"}},{"$f":"Actif!$E$29/100","v":{"v":0.027999999999999997,"d":"2.80%"}}]
[null,"#235",23,2029,"F","A_CAPI",{"v":0.44999999999999996,"d":"0.45"},{"v":0.38999999999999996,"d":"0.39"},0.6,0.6,85,0,{"$f":"ROUND(Primes!$P$10*V6342,2)","v":0.23},0,{"v":4927.454614134717,"d":"4,927"},{"$f":"'BP Financier'!$F$44*(('BP Financier'!$C$22+'BP Financier'!$D$22+'BP Financier'!$E$22+'BP Financier'!$F$22)/('BP Financier'!$C$16+'BP Financier'!$C$19+'BP Financier'!$D$16+'BP Financier'!$D$19+'BP Financier'!$E$16+'BP Financier'!$E$19+'BP Financier'!$C$22+'BP Financier'!$D$22+'BP Financier'!$E$22+'BP Financier'!$F$22+'BP Financier'!$F$16+'BP Financier'!$F$19))*$V6342*X6342/(1-$W6342)","v":{"v":627.1935901254458,"d":"627"}},{"$f":"'BP Financier'!$F$44*(('BP Financier'!$C$22+'BP Financier'!$D$22+'BP Financier'!$E$22+'BP Financier'!$F$22)/('BP Financier'!$C$16+'BP Financier'!$C$19+'BP Financier'!$D$16+'BP Financier'!$D$19+'BP Financier'!$E$16+'BP Financier'!$E$19+'BP Financier'!$C$22+'BP Financier'!$D$22+'BP Financier'!$E$22+'BP Financier'!$F$22+'BP Financier'!$F$16+'BP Financier'!$F$19))*$V6342*Y6342/(1-$W6342)","v":{"v":419.28411273579513,"d":"419"}},{"$f":"'BP Financier'!$F$44*(('BP Financier'!$C$22+'BP Financier'!$D$22+'BP Financier'!$E$22+'BP Financier'!$F$22)/('BP Financier'!$C$16+'BP Financier'!$C$19+'BP Financier'!$D$16+'BP Financier'!$D$19+'BP Financier'!$E$16+'BP Financier'!$E$19+'BP Financier'!$C$22+'BP Financier'!$D$22+'BP Financier'!$E$22+'BP Financier'!$F$22+'BP Financier'!$F$16+'BP Financier'!$F$19))*$V6342*Z6342/(1-$W6342)","v":{"v":3281.5045847999836,"d":"3,282"}},{"$f":"'BP Financier'!$F$44*(('BP Financier'!$C$22+'BP Financier'!$D$22+'BP Financier'!$E$22+'BP Financier'!$F$22)/('BP Financier'!$C$16+'BP Financier'!$C$19+'BP Financier'!$D$16+'BP Financier'!$D$19+'BP Financier'!$E$16+'BP Financier'!$E$19+'BP Financier'!$C$22+'BP Financier'!$D$22+'BP Financier'!$E$22+'BP Financier'!$F$22+'BP Financier'!$F$16+'BP Financier'!$F$19))*$V6342*AA6342/(1-$W6342)","v":{"v":405.42348090981847,"d":"405"}},{"$f":"'BP Financier'!$F$44*(('BP Financier'!$C$22+'BP Financier'!$D$22+'BP Financier'!$E$22+'BP Financier'!$F$22)/('BP Financier'!$C$16+'BP Financier'!$C$19+'BP Financier'!$D$16+'BP Financier'!$D$19+'BP Financier'!$E$16+'BP Financier'!$E$19+'BP Financier'!$C$22+'BP Financier'!$D$22+'BP Financier'!$E$22+'BP Financier'!$F$22+'BP Financier'!$F$16+'BP Financier'!$F$19))*$V6342*AB6342/(1-$W6342)","v":{"v":194.04884556367378,"d":"194"}},null,{"v":0.0025,"d":"0.25%"},{"$f":"Actif!$E$28/100","v":{"v":0.28900000000000003,"d":"28.90%"}},{"$f":"Actif!$E$30/100","v":{"v":0.09050000000000001,"d":"9.05%"}},{"$f":"Actif!$E$31/100","v":{"v":0.0605,"d":"6.05%"}},{"$f":"Actif!$E$32/100","v":{"v":0.47350000000000003,"d":"47.35%"}},{"$f":"Actif!$E$33/100","v":{"v":0.0585,"d":"5.85%"}},{"$f":"Actif!$E$29/100","v":{"v":0.027999999999999997,"d":"2.80%"}}]
[null,"#236",23,2030,"F","A_CAPI",{"v":0.44999999999999996,"d":"0.45"},{"v":0.38999999999999996,"d":"0.39"},0.6,0.6,85,0,{"$f":"ROUND(Primes!$P$10*V6343,2)","v":0.23},0,{"v":4927.454614134717,"d":"4,927"},{"$f":"'BP Financier'!$F$44*(('BP Financier'!$C$22+'BP Financier'!$D$22+'BP Financier'!$E$22+'BP Financier'!$F$22)/('BP Financier'!$C$16+'BP Financier'!$C$19+'BP Financier'!$D$16+'BP Financier'!$D$19+'BP Financier'!$E$16+'BP Financier'!$E$19+'BP Financier'!$C$22+'BP Financier'!$D$22+'BP Financier'!$E$22+'BP Financier'!$F$22+'BP Financier'!$F$16+'BP Financier'!$F$19))*$V6343*X6343/(1-$W6343)","v":{"v":627.1935901254458,"d":"627"}},{"$f":"'BP Financier'!$F$44*(('BP Financier'!$C$22+'BP Financier'!$D$22+'BP Financier'!$E$22+'BP Financier'!$F$22)/('BP Financier'!$C$16+'BP Financier'!$C$19+'BP Financier'!$D$16+'BP Financier'!$D$19+'BP Financier'!$E$16+'BP Financier'!$E$19+'BP Financier'!$C$22+'BP Financier'!$D$22+'BP Financier'!$E$22+'BP Financier'!$F$22+'BP Financier'!$F$16+'BP Financier'!$F$19))*$V6343*Y6343/(1-$W6343)","v":{"v":419.28411273579513,"d":"419"}},{"$f":"'BP Financier'!$F$44*(('BP Financier'!$C$22+'BP Financier'!$D$22+'BP Financier'!$E$22+'BP Financier'!$F$22)/('BP Financier'!$C$16+'BP Financier'!$C$19+'BP Financier'!$D$16+'BP Financier'!$D$19+'BP Financier'!$E$16+'BP Financier'!$E$19+'BP Financier'!$C$22+'BP Financier'!$D$22+'BP Financier'!$E$22+'BP Financier'!$F$22+'BP Financier'!$F$16+'BP Financier'!$F$19))*$V6343*Z6343/(1-$W6343)","v":{"v":3281.5045847999836,"d":"3,282"}},{"$f":"'BP Financier'!$F$44*(('BP Financier'!$C$22+'BP Financier'!$D$22+'BP Financier'!$E$22+'BP Financier'!$F$22)/('BP Financier'!$C$16+'BP Financier'!$C$19+'BP Financier'!$D$16+'BP Financier'!$D$19+'BP Financier'!$E$16+'BP Financier'!$E$19+'BP Financier'!$C$22+'BP Financier'!$D$22+'BP Financier'!$E$22+'BP Financier'!$F$22+'BP Financier'!$F$16+'BP Financier'!$F$19))*$V6343*AA6343/(1-$W6343)","v":{"v":405.42348090981847,"d":"405"}},{"$f":"'BP Financier'!$F$44*(('BP Financier'!$C$22+'BP Financier'!$D$22+'BP Financier'!$E$22+'BP Financier'!$F$22)/('BP Financier'!$C$16+'BP Financier'!$C$19+'BP Financier'!$D$16+'BP Financier'!$D$19+'BP Financier'!$E$16+'BP Financier'!$E$19+'BP Financier'!$C$22+'BP Financier'!$D$22+'BP Financier'!$E$22+'BP Financier'!$F$22+'BP Financier'!$F$16+'BP Financier'!$F$19))*$V6343*AB6343/(1-$W6343)","v":{"v":194.04884556367378,"d":"194"}},null,{"v":0.0025,"d":"0.25%"},{"$f":"Actif!$E$28/100","v":{"v":0.28900000000000003,"d":"28.90%"}},{"$f":"Actif!$E$30/100","v":{"v":0.09050000000000001,"d":"9.05%"}},{"$f":"Actif!$E$31/100","v":{"v":0.0605,"d":"6.05%"}},{"$f":"Actif!$E$32/100","v":{"v":0.47350000000000003,"d":"47.35%"}},{"$f":"Actif!$E$33/100","v":{"v":0.0585,"d":"5.85%"}},{"$f":"Actif!$E$29/100","v":{"v":0.027999999999999997,"d":"2.80%"}}]
[null,"#237",24,2026,"H","A_CAPI",{"v":0.44999999999999996,"d":"0.45"},{"v":0.38999999999999996,"d":"0.39"},0.6,0.6,85,0,{"$f":"ROUND(Primes!$P$10*V6344,2)","v":0.23},0,{"v":4927.454614134717,"d":"4,927"},{"$f":"'BP Financier'!$F$44*(('BP Financier'!$C$22+'BP Financier'!$D$22+'BP Financier'!$E$22+'BP Financier'!$F$22)/('BP Financier'!$C$16+'BP Financier'!$C$19+'BP Financier'!$D$16+'BP Financier'!$D$19+'BP Financier'!$E$16+'BP Financier'!$E$19+'BP Financier'!$C$22+'BP Financier'!$D$22+'BP Financier'!$E$22+'BP Financier'!$F$22+'BP Financier'!$F$16+'BP Financier'!$F$19))*$V6344*X6344/(1-$W6344)","v":{"v":627.1935901254458,"d":"627"}},{"$f":"'BP Financier'!$F$44*(('BP Financier'!$C$22+'BP Financier'!$D$22+'BP Financier'!$E$22+'BP Financier'!$F$22)/('BP Financier'!$C$16+'BP Financier'!$C$19+'BP Financier'!$D$16+'BP Financier'!$D$19+'BP Financier'!$E$16+'BP Financier'!$E$19+'BP Financier'!$C$22+'BP Financier'!$D$22+'BP Financier'!$E$22+'BP Financier'!$F$22+'BP Financier'!$F$16+'BP Financier'!$F$19))*$V6344*Y6344/(1-$W6344)","v":{"v":419.28411273579513,"d":"419"}},{"$f":"'BP Financier'!$F$44*(('BP Financier'!$C$22+'BP Financier'!$D$22+'BP Financier'!$E$22+'BP Financier'!$F$22)/('BP Financier'!$C$16+'BP Financier'!$C$19+'BP Financier'!$D$16+'BP Financier'!$D$19+'BP Financier'!$E$16+'BP Financier'!$E$19+'BP Financier'!$C$22+'BP Financier'!$D$22+'BP Financier'!$E$22+'BP Financier'!$F$22+'BP Financier'!$F$16+'BP Financier'!$F$19))*$V6344*Z6344/(1-$W6344)","v":{"v":3281.5045847999836,"d":"3,282"}},{"$f":"'BP Financier'!$F$44*(('BP Financier'!$C$22+'BP Financier'!$D$22+'BP Financier'!$E$22+'BP Financier'!$F$22)/('BP Financier'!$C$16+'BP Financier'!$C$19+'BP Financier'!$D$16+'BP Financier'!$D$19+'BP Financier'!$E$16+'BP Financier'!$E$19+'BP Financier'!$C$22+'BP Financier'!$D$22+'BP Financier'!$E$22+'BP Financier'!$F$22+'BP Financier'!$F$16+'BP Financier'!$F$19))*$V6344*AA6344/(1-$W6344)","v":{"v":405.42348090981847,"d":"405"}},{"$f":"'BP Financier'!$F$44*(('BP Financier'!$C$22+'BP Financier'!$D$22+'BP Financier'!$E$22+'BP Financier'!$F$22)/('BP Financier'!$C$16+'BP Financier'!$C$19+'BP Financier'!$D$16+'BP Financier'!$D$19+'BP Financier'!$E$16+'BP Financier'!$E$19+'BP Financier'!$C$22+'BP Financier'!$D$22+'BP Financier'!$E$22+'BP Financier'!$F$22+'BP Financier'!$F$16+'BP Financier'!$F$19))*$V6344*AB6344/(1-$W6344)","v":{"v":194.04884556367378,"d":"194"}},null,{"v":0.0025,"d":"0.25%"},{"$f":"Actif!$E$28/100","v":{"v":0.28900000000000003,"d":"28.90%"}},{"$f":"Actif!$E$30/100","v":{"v":0.09050000000000001,"d":"9.05%"}},{"$f":"Actif!$E$31/100","v":{"v":0.0605,"d":"6.05%"}},{"$f":"Actif!$E$32/100","v":{"v":0.47350000000000003,"d":"47.35%"}},{"$f":"Actif!$E$33/100","v":{"v":0.0585,"d":"5.85%"}},{"$f":"Actif!$E$29/100","v":{"v":0.027999999999999997,"d":"2.80%"}}]
[null,"#238",24,2028,"H","A_CAPI",{"v":0.44999999999999996,"d":"0.45"},{"v":0.38999999999999996,"d":"0.39"},0.6,0.6,85,0,{"$f":"ROUND(Primes!$P$10*V6345,2)","v":0.23},0,{"v":4927.454614134717,"d":"4,927"},{"$f":"'BP Financier'!$F$44*(('BP Financier'!$C$22+'BP Financier'!$D$22+'BP Financier'!$E$22+'BP Financier'!$F$22)/('BP Financier'!$C$16+'BP Financier'!$C$19+'BP Financier'!$D$16+'BP Financier'!$D$19+'BP Financier'!$E$16+'BP Financier'!$E$19+'BP Financier'!$C$22+'BP Financier'!$D$22+'BP Financier'!$E$22+'BP Financier'!$F$22+'BP Financier'!$F$16+'BP Financier'!$F$19))*$V6345*X6345/(1-$W6345)","v":{"v":627.1935901254458,"d":"627"}},{"$f":"'BP Financier'!$F$44*(('BP Financier'!$C$22+'BP Financier'!$D$22+'BP Financier'!$E$22+'BP Financier'!$F$22)/('BP Financier'!$C$16+'BP Financier'!$C$19+'BP Financier'!$D$16+'BP Financier'!$D$19+'BP Financier'!$E$16+'BP Financier'!$E$19+'BP Financier'!$C$22+'BP Financier'!$D$22+'BP Financier'!$E$22+'BP Financier'!$F$22+'BP Financier'!$F$16+'BP Financier'!$F$19))*$V6345*Y6345/(1-$W6345)","v":{"v":419.28411273579513,"d":"419"}},{"$f":"'BP Financier'!$F$44*(('BP Financier'!$C$22+'BP Financier'!$D$22+'BP Financier'!$E$22+'BP Financier'!$F$22)/('BP Financier'!$C$16+'BP Financier'!$C$19+'BP Financier'!$D$16+'BP Financier'!$D$19+'BP Financier'!$E$16+'BP Financier'!$E$19+'BP Financier'!$C$22+'BP Financier'!$D$22+'BP Financier'!$E$22+'BP Financier'!$F$22+'BP Financier'!$F$16+'BP Financier'!$F$19))*$V6345*Z6345/(1-$W6345)","v":{"v":3281.5045847999836,"d":"3,282"}},{"$f":"'BP Financier'!$F$44*(('BP Financier'!$C$22+'BP Financier'!$D$22+'BP Financier'!$E$22+'BP Financier'!$F$22)/('BP Financier'!$C$16+'BP Financier'!$C$19+'BP Financier'!$D$16+'BP Financier'!$D$19+'BP Financier'!$E$16+'BP Financier'!$E$19+'BP Financier'!$C$22+'BP Financier'!$D$22+'BP Financier'!$E$22+'BP Financier'!$F$22+'BP Financier'!$F$16+'BP Financier'!$F$19))*$V6345*AA6345/(1-$W6345)","v":{"v":405.42348090981847,"d":"405"}},{"$f":"'BP Financier'!$F$44*(('BP Financier'!$C$22+'BP Financier'!$D$22+'BP Financier'!$E$22+'BP Financier'!$F$22)/('BP Financier'!$C$16+'BP Financier'!$C$19+'BP Financier'!$D$16+'BP Financier'!$D$19+'BP Financier'!$E$16+'BP Financier'!$E$19+'BP Financier'!$C$22+'BP Financier'!$D$22+'BP Financier'!$E$22+'BP Financier'!$F$22+'BP Financier'!$F$16+'BP Financier'!$F$19))*$V6345*AB6345/(1-$W6345)","v":{"v":194.04884556367378,"d":"194"}},null,{"v":0.0025,"d":"0.25%"},{"$f":"Actif!$E$28/100","v":{"v":0.28900000000000003,"d":"28.90%"}},{"$f":"Actif!$E$30/100","v":{"v":0.09050000000000001,"d":"9.05%"}},{"$f":"Actif!$E$31/100","v":{"v":0.0605,"d":"6.05%"}},{"$f":"Actif!$E$32/100","v":{"v":0.47350000000000003,"d":"47.35%"}},{"$f":"Actif!$E$33/100","v":{"v":0.0585,"d":"5.85%"}},{"$f":"Actif!$E$29/100","v":{"v":0.027999999999999997,"d":"2.80%"}}]
[null,"#239",24,2029,"H","A_CAPI",{"v":0.44999999999999996,"d":"0.45"},{"v":0.38999999999999996,"d":"0.39"},0.6,0.6,85,0,{"$f":"ROUND(Primes!$P$10*V6346,2)","v":0.23},0,{"v":4927.454614134717,"d":"4,927"},{"$f":"'BP Financier'!$F$44*(('BP Financier'!$C$22+'BP Financier'!$D$22+'BP Financier'!$E$22+'BP Financier'!$F$22)/('BP Financier'!$C$16+'BP Financier'!$C$19+'BP Financier'!$D$16+'BP Financier'!$D$19+'BP Financier'!$E$16+'BP Financier'!$E$19+'BP Financier'!$C$22+'BP Financier'!$D$22+'BP Financier'!$E$22+'BP Financier'!$F$22+'BP Financier'!$F$16+'BP Financier'!$F$19))*$V6346*X6346/(1-$W6346)","v":{"v":627.1935901254458,"d":"627"}},{"$f":"'BP Financier'!$F$44*(('BP Financier'!$C$22+'BP Financier'!$D$22+'BP Financier'!$E$22+'BP Financier'!$F$22)/('BP Financier'!$C$16+'BP Financier'!$C$19+'BP Financier'!$D$16+'BP Financier'!$D$19+'BP Financier'!$E$16+'BP Financier'!$E$19+'BP Financier'!$C$22+'BP Financier'!$D$22+'BP Financier'!$E$22+'BP Financier'!$F$22+'BP Financier'!$F$16+'BP Financier'!$F$19))*$V6346*Y6346/(1-$W6346)","v":{"v":419.28411273579513,"d":"419"}},{"$f":"'BP Financier'!$F$44*(('BP Financier'!$C$22+'BP Financier'!$D$22+'BP Financier'!$E$22+'BP Financier'!$F$22)/('BP Financier'!$C$16+'BP Financier'!$C$19+'BP Financier'!$D$16+'BP Financier'!$D$19+'BP Financier'!$E$16+'BP Financier'!$E$19+'BP Financier'!$C$22+'BP Financier'!$D$22+'BP Financier'!$E$22+'BP Financier'!$F$22+'BP Financier'!$F$16+'BP Financier'!$F$19))*$V6346*Z6346/(1-$W6346)","v":{"v":3281.5045847999836,"d":"3,282"}},{"$f":"'BP Financier'!$F$44*(('BP Financier'!$C$22+'BP Financier'!$D$22+'BP Financier'!$E$22+'BP Financier'!$F$22)/('BP Financier'!$C$16+'BP Financier'!$C$19+'BP Financier'!$D$16+'BP Financier'!$D$19+'BP Financier'!$E$16+'BP Financier'!$E$19+'BP Financier'!$C$22+'BP Financier'!$D$22+'BP Financier'!$E$22+'BP Financier'!$F$22+'BP Financier'!$F$16+'BP Financier'!$F$19))*$V6346*AA6346/(1-$W6346)","v":{"v":405.42348090981847,"d":"405"}},{"$f":"'BP Financier'!$F$44*(('BP Financier'!$C$22+'BP Financier'!$D$22+'BP Financier'!$E$22+'BP Financier'!$F$22)/('BP Financier'!$C$16+'BP Financier'!$C$19+'BP Financier'!$D$16+'BP Financier'!$D$19+'BP Financier'!$E$16+'BP Financier'!$E$19+'BP Financier'!$C$22+'BP Financier'!$D$22+'BP Financier'!$E$22+'BP Financier'!$F$22+'BP Financier'!$F$16+'BP Financier'!$F$19))*$V6346*AB6346/(1-$W6346)","v":{"v":194.04884556367378,"d":"194"}},null,{"v":0.0025,"d":"0.25%"},{"$f":"Actif!$E$28/100","v":{"v":0.28900000000000003,"d":"28.90%"}},{"$f":"Actif!$E$30/100","v":{"v":0.09050000000000001,"d":"9.05%"}},{"$f":"Actif!$E$31/100","v":{"v":0.0605,"d":"6.05%"}},{"$f":"Actif!$E$32/100","v":{"v":0.47350000000000003,"d":"47.35%"}},{"$f":"Actif!$E$33/100","v":{"v":0.0585,"d":"5.85%"}},{"$f":"Actif!$E$29/100","v":{"v":0.027999999999999997,"d":"2.80%"}}]
[null,"#240",24,2030,"H","A_CAPI",{"v":0.44999999999999996,"d":"0.45"},{"v":0.38999999999999996,"d":"0.39"},0.6,0.6,85,0,{"$f":"ROUND(Primes!$P$10*V6347,2)","v":0.23},0,{"v":4927.454614134717,"d":"4,927"},{"$f":"'BP Financier'!$F$44*(('BP Financier'!$C$22+'BP Financier'!$D$22+'BP Financier'!$E$22+'BP Financier'!$F$22)/('BP Financier'!$C$16+'BP Financier'!$C$19+'BP Financier'!$D$16+'BP Financier'!$D$19+'BP Financier'!$E$16+'BP Financier'!$E$19+'BP Financier'!$C$22+'BP Financier'!$D$22+'BP Financier'!$E$22+'BP Financier'!$F$22+'BP Financier'!$F$16+'BP Financier'!$F$19))*$V6347*X6347/(1-$W6347)","v":{"v":627.1935901254458,"d":"627"}},{"$f":"'BP Financier'!$F$44*(('BP Financier'!$C$22+'BP Financier'!$D$22+'BP Financier'!$E$22+'BP Financier'!$F$22)/('BP Financier'!$C$16+'BP Financier'!$C$19+'BP Financier'!$D$16+'BP Financier'!$D$19+'BP Financier'!$E$16+'BP Financier'!$E$19+'BP Financier'!$C$22+'BP Financier'!$D$22+'BP Financier'!$E$22+'BP Financier'!$F$22+'BP Financier'!$F$16+'BP Financier'!$F$19))*$V6347*Y6347/(1-$W6347)","v":{"v":419.28411273579513,"d":"419"}},{"$f":"'BP Financier'!$F$44*(('BP Financier'!$C$22+'BP Financier'!$D$22+'BP Financier'!$E$22+'BP Financier'!$F$22)/('BP Financier'!$C$16+'BP Financier'!$C$19+'BP Financier'!$D$16+'BP Financier'!$D$19+'BP Financier'!$E$16+'BP Financier'!$E$19+'BP Financier'!$C$22+'BP Financier'!$D$22+'BP Financier'!$E$22+'BP Financier'!$F$22+'BP Financier'!$F$16+'BP Financier'!$F$19))*$V6347*Z6347/(1-$W6347)","v":{"v":3281.5045847999836,"d":"3,282"}},{"$f":"'BP Financier'!$F$44*(('BP Financier'!$C$22+'BP Financier'!$D$22+'BP Financier'!$E$22+'BP Financier'!$F$22)/('BP Financier'!$C$16+'BP Financier'!$C$19+'BP Financier'!$D$16+'BP Financier'!$D$19+'BP Financier'!$E$16+'BP Financier'!$E$19+'BP Financier'!$C$22+'BP Financier'!$D$22+'BP Financier'!$E$22+'BP Financier'!$F$22+'BP Financier'!$F$16+'BP Financier'!$F$19))*$V6347*AA6347/(1-$W6347)","v":{"v":405.42348090981847,"d":"405"}},{"$f":"'BP Financier'!$F$44*(('BP Financier'!$C$22+'BP Financier'!$D$22+'BP Financier'!$E$22+'BP Financier'!$F$22)/('BP Financier'!$C$16+'BP Financier'!$C$19+'BP Financier'!$D$16+'BP Financier'!$D$19+'BP Financier'!$E$16+'BP Financier'!$E$19+'BP Financier'!$C$22+'BP Financier'!$D$22+'BP Financier'!$E$22+'BP Financier'!$F$22+'BP Financier'!$F$16+'BP Financier'!$F$19))*$V6347*AB6347/(1-$W6347)","v":{"v":194.04884556367378,"d":"194"}},null,{"v":0.0025,"d":"0.25%"},{"$f":"Actif!$E$28/100","v":{"v":0.28900000000000003,"d":"28.90%"}},{"$f":"Actif!$E$30/100","v":{"v":0.09050000000000001,"d":"9.05%"}},{"$f":"Actif!$E$31/100","v":{"v":0.0605,"d":"6.05%"}},{"$f":"Actif!$E$32/100","v":{"v":0.47350000000000003,"d":"47.35%"}},{"$f":"Actif!$E$33/100","v":{"v":0.0585,"d":"5.85%"}},{"$f":"Actif!$E$29/100","v":{"v":0.027999999999999997,"d":"2.80%"}}]
[null,"#241",25,2026,"H","A_CAPI",{"v":0.44999999999999996,"d":"0.45"},{"v":0.38999999999999996,"d":"0.39"},0.6,0.6,85,0,{"$f":"ROUND(Primes!$P$10*V6348,2)","v":1.13},0,{"v":24637.273070673586,"d":"24,637"},{"$f":"'BP Financier'!$F$44*(('BP Financier'!$C$22+'BP Financier'!$D$22+'BP Financier'!$E$22+'BP Financier'!$F$22)/('BP Financier'!$C$16+'BP Financier'!$C$19+'BP Financier'!$D$16+'BP Financier'!$D$19+'BP Financier'!$E$16+'BP Financier'!$E$19+'BP Financier'!$C$22+'BP Financier'!$D$22+'BP Financier'!$E$22+'BP Financier'!$F$22+'BP Financier'!$F$16+'BP Financier'!$F$19))*$V6348*X6348/(1-$W6348)","v":{"v":3135.967950627229,"d":"3,136"}},{"$f":"'BP Financier'!$F$44*(('BP Financier'!$C$22+'BP Financier'!$D$22+'BP Financier'!$E$22+'BP Financier'!$F$22)/('BP Financier'!$C$16+'BP Financier'!$C$19+'BP Financier'!$D$16+'BP Financier'!$D$19+'BP Financier'!$E$16+'BP Financier'!$E$19+'BP Financier'!$C$22+'BP Financier'!$D$22+'BP Financier'!$E$22+'BP Financier'!$F$22+'BP Financier'!$F$16+'BP Financier'!$F$19))*$V6348*Y6348/(1-$W6348)","v":{"v":2096.420563678976,"d":"2,096"}},{"$f":"'BP Financier'!$F$44*(('BP Financier'!$C$22+'BP Financier'!$D$22+'BP Financier'!$E$22+'BP Financier'!$F$22)/('BP Financier'!$C$16+'BP Financier'!$C$19+'BP Financier'!$D$16+'BP Financier'!$D$19+'BP Financier'!$E$16+'BP Financier'!$E$19+'BP Financier'!$C$22+'BP Financier'!$D$22+'BP Financier'!$E$22+'BP Financier'!$F$22+'BP Financier'!$F$16+'BP Financier'!$F$19))*$V6348*Z6348/(1-$W6348)","v":{"v":16407.52292399992,"d":"16,408"}},{"$f":"'BP Financier'!$F$44*(('BP Financier'!$C$22+'BP Financier'!$D$22+'BP Financier'!$E$22+'BP Financier'!$F$22)/('BP Financier'!$C$16+'BP Financier'!$C$19+'BP Financier'!$D$16+'BP Financier'!$D$19+'BP Financier'!$E$16+'BP Financier'!$E$19+'BP Financier'!$C$22+'BP Financier'!$D$22+'BP Financier'!$E$22+'BP Financier'!$F$22+'BP Financier'!$F$16+'BP Financier'!$F$19))*$V6348*AA6348/(1-$W6348)","v":{"v":2027.1174045490925,"d":"2,027"}},{"$f":"'BP Financier'!$F$44*(('BP Financier'!$C$22+'BP Financier'!$D$22+'BP Financier'!$E$22+'BP Financier'!$F$22)/('BP Financier'!$C$16+'BP Financier'!$C$19+'BP Financier'!$D$16+'BP Financier'!$D$19+'BP Financier'!$E$16+'BP Financier'!$E$19+'BP Financier'!$C$22+'BP Financier'!$D$22+'BP Financier'!$E$22+'BP Financier'!$F$22+'BP Financier'!$F$16+'BP Financier'!$F$19))*$V6348*AB6348/(1-$W6348)","v":{"v":970.2442278183689,"d":"970"}},null,{"v":0.0125,"d":"1.25%"},{"$f":"Actif!$E$28/100","v":{"v":0.28900000000000003,"d":"28.90%"}},{"$f":"Actif!$E$30/100","v":{"v":0.09050000000000001,"d":"9.05%"}},{"$f":"Actif!$E$31/100","v":{"v":0.0605,"d":"6.05%"}},{"$f":"Actif!$E$32/100","v":{"v":0.47350000000000003,"d":"47.35%"}},{"$f":"Actif!$E$33/100","v":{"v":0.0585,"d":"5.85%"}},{"$f":"Actif!$E$29/100","v":{"v":0.027999999999999997,"d":"2.80%"}}]
[null,"#242",25,2028,"H","A_CAPI",{"v":0.44999999999999996,"d":"0.45"},{"v":0.38999999999999996,"d":"0.39"},0.6,0.6,85,0,{"$f":"ROUND(Primes!$P$10*V6349,2)","v":1.13},0,{"v":24637.273070673586,"d":"24,637"},{"$f":"'BP Financier'!$F$44*(('BP Financier'!$C$22+'BP Financier'!$D$22+'BP Financier'!$E$22+'BP Financier'!$F$22)/('BP Financier'!$C$16+'BP Financier'!$C$19+'BP Financier'!$D$16+'BP Financier'!$D$19+'BP Financier'!$E$16+'BP Financier'!$E$19+'BP Financier'!$C$22+'BP Financier'!$D$22+'BP Financier'!$E$22+'BP Financier'!$F$22+'BP Financier'!$F$16+'BP Financier'!$F$19))*$V6349*X6349/(1-$W6349)","v":{"v":3135.967950627229,"d":"3,136"}},{"$f":"'BP Financier'!$F$44*(('BP Financier'!$C$22+'BP Financier'!$D$22+'BP Financier'!$E$22+'BP Financier'!$F$22)/('BP Financier'!$C$16+'BP Financier'!$C$19+'BP Financier'!$D$16+'BP Financier'!$D$19+'BP Financier'!$E$16+'BP Financier'!$E$19+'BP Financier'!$C$22+'BP Financier'!$D$22+'BP Financier'!$E$22+'BP Financier'!$F$22+'BP Financier'!$F$16+'BP Financier'!$F$19))*$V6349*Y6349/(1-$W6349)","v":{"v":2096.420563678976,"d":"2,096"}},{"$f":"'BP Financier'!$F$44*(('BP Financier'!$C$22+'BP Financier'!$D$22+'BP Financier'!$E$22+'BP Financier'!$F$22)/('BP Financier'!$C$16+'BP Financier'!$C$19+'BP Financier'!$D$16+'BP Financier'!$D$19+'BP Financier'!$E$16+'BP Financier'!$E$19+'BP Financier'!$C$22+'BP Financier'!$D$22+'BP Financier'!$E$22+'BP Financier'!$F$22+'BP Financier'!$F$16+'BP Financier'!$F$19))*$V6349*Z6349/(1-$W6349)","v":{"v":16407.52292399992,"d":"16,408"}},{"$f":"'BP Financier'!$F$44*(('BP Financier'!$C$22+'BP Financier'!$D$22+'BP Financier'!$E$22+'BP Financier'!$F$22)/('BP Financier'!$C$16+'BP Financier'!$C$19+'BP Financier'!$D$16+'BP Financier'!$D$19+'BP Financier'!$E$16+'BP Financier'!$E$19+'BP Financier'!$C$22+'BP Financier'!$D$22+'BP Financier'!$E$22+'BP Financier'!$F$22+'BP Financier'!$F$16+'BP Financier'!$F$19))*$V6349*AA6349/(1-$W6349)","v":{"v":2027.1174045490925,"d":"2,027"}},{"$f":"'BP Financier'!$F$44*(('BP Financier'!$C$22+'BP Financier'!$D$22+'BP Financier'!$E$22+'BP Financier'!$F$22)/('BP Financier'!$C$16+'BP Financier'!$C$19+'BP Financier'!$D$16+'BP Financier'!$D$19+'BP Financier'!$E$16+'BP Financier'!$E$19+'BP Financier'!$C$22+'BP Financier'!$D$22+'BP Financier'!$E$22+'BP Financier'!$F$22+'BP Financier'!$F$16+'BP Financier'!$F$19))*$V6349*AB6349/(1-$W6349)","v":{"v":970.2442278183689,"d":"970"}},null,{"v":0.0125,"d":"1.25%"},{"$f":"Actif!$E$28/100","v":{"v":0.28900000000000003,"d":"28.90%"}},{"$f":"Actif!$E$30/100","v":{"v":0.09050000000000001,"d":"9.05%"}},{"$f":"Actif!$E$31/100","v":{"v":0.0605,"d":"6.05%"}},{"$f":"Actif!$E$32/100","v":{"v":0.47350000000000003,"d":"47.35%"}},{"$f":"Actif!$E$33/100","v":{"v":0.0585,"d":"5.85%"}},{"$f":"Actif!$E$29/100","v":{"v":0.027999999999999997,"d":"2.80%"}}]
[null,"#243",25,2029,"H","A_CAPI",{"v":0.44999999999999996,"d":"0.45"},{"v":0.38999999999999996,"d":"0.39"},0.6,0.6,85,0,{"$f":"ROUND(Primes!$P$10*V6350,2)","v":1.13},0,{"v":24637.273070673586,"d":"24,637"},{"$f":"'BP Financier'!$F$44*(('BP Financier'!$C$22+'BP Financier'!$D$22+'BP Financier'!$E$22+'BP Financier'!$F$22)/('BP Financier'!$C$16+'BP Financier'!$C$19+'BP Financier'!$D$16+'BP Financier'!$D$19+'BP Financier'!$E$16+'BP Financier'!$E$19+'BP Financier'!$C$22+'BP Financier'!$D$22+'BP Financier'!$E$22+'BP Financier'!$F$22+'BP Financier'!$F$16+'BP Financier'!$F$19))*$V6350*X6350/(1-$W6350)","v":{"v":3135.967950627229,"d":"3,136"}},{"$f":"'BP Financier'!$F$44*(('BP Financier'!$C$22+'BP Financier'!$D$22+'BP Financier'!$E$22+'BP Financier'!$F$22)/('BP Financier'!$C$16+'BP Financier'!$C$19+'BP Financier'!$D$16+'BP Financier'!$D$19+'BP Financier'!$E$16+'BP Financier'!$E$19+'BP Financier'!$C$22+'BP Financier'!$D$22+'BP Financier'!$E$22+'BP Financier'!$F$22+'BP Financier'!$F$16+'BP Financier'!$F$19))*$V6350*Y6350/(1-$W6350)","v":{"v":2096.420563678976,"d":"2,096"}},{"$f":"'BP Financier'!$F$44*(('BP Financier'!$C$22+'BP Financier'!$D$22+'BP Financier'!$E$22+'BP Financier'!$F$22)/('BP Financier'!$C$16+'BP Financier'!$C$19+'BP Financier'!$D$16+'BP Financier'!$D$19+'BP Financier'!$E$16+'BP Financier'!$E$19+'BP Financier'!$C$22+'BP Financier'!$D$22+'BP Financier'!$E$22+'BP Financier'!$F$22+'BP Financier'!$F$16+'BP Financier'!$F$19))*$V6350*Z6350/(1-$W6350)","v":{"v":16407.52292399992,"d":"16,408"}},{"$f":"'BP Financier'!$F$44*(('BP Financier'!$C$22+'BP Financier'!$D$22+'BP Financier'!$E$22+'BP Financier'!$F$22)/('BP Financier'!$C$16+'BP Financier'!$C$19+'BP Financier'!$D$16+'BP Financier'!$D$19+'BP Financier'!$E$16+'BP Financier'!$E$19+'BP Financier'!$C$22+'BP Financier'!$D$22+'BP Financier'!$E$22+'BP Financier'!$F$22+'BP Financier'!$F$16+'BP Financier'!$F$19))*$V6350*AA6350/(1-$W6350)","v":{"v":2027.1174045490925,"d":"2,027"}},{"$f":"'BP Financier'!$F$44*(('BP Financier'!$C$22+'BP Financier'!$D$22+'BP Financier'!$E$22+'BP Financier'!$F$22)/('BP Financier'!$C$16+'BP Financier'!$C$19+'BP Financier'!$D$16+'BP Financier'!$D$19+'BP Financier'!$E$16+'BP Financier'!$E$19+'BP Financier'!$C$22+'BP Financier'!$D$22+'BP Financier'!$E$22+'BP Financier'!$F$22+'BP Financier'!$F$16+'BP Financier'!$F$19))*$V6350*AB6350/(1-$W6350)","v":{"v":970.2442278183689,"d":"970"}},null,{"v":0.0125,"d":"1.25%"},{"$f":"Actif!$E$28/100","v":{"v":0.28900000000000003,"d":"28.90%"}},{"$f":"Actif!$E$30/100","v":{"v":0.09050000000000001,"d":"9.05%"}},{"$f":"Actif!$E$31/100","v":{"v":0.0605,"d":"6.05%"}},{"$f":"Actif!$E$32/100","v":{"v":0.47350000000000003,"d":"47.35%"}},{"$f":"Actif!$E$33/100","v":{"v":0.0585,"d":"5.85%"}},{"$f":"Actif!$E$29/100","v":{"v":0.027999999999999997,"d":"2.80%"}}]
[null,"#244",25,2030,"H","A_CAPI",{"v":0.44999999999999996,"d":"0.45"},{"v":0.38999999999999996,"d":"0.39"},0.6,0.6,85,0,{"$f":"ROUND(Primes!$P$10*V6351,2)","v":1.13},0,{"v":24637.273070673586,"d":"24,637"},{"$f":"'BP Financier'!$F$44*(('BP Financier'!$C$22+'BP Financier'!$D$22+'BP Financier'!$E$22+'BP Financier'!$F$22)/('BP Financier'!$C$16+'BP Financier'!$C$19+'BP Financier'!$D$16+'BP Financier'!$D$19+'BP Financier'!$E$16+'BP Financier'!$E$19+'BP Financier'!$C$22+'BP Financier'!$D$22+'BP Financier'!$E$22+'BP Financier'!$F$22+'BP Financier'!$F$16+'BP Financier'!$F$19))*$V6351*X6351/(1-$W6351)","v":{"v":3135.967950627229,"d":"3,136"}},{"$f":"'BP Financier'!$F$44*(('BP Financier'!$C$22+'BP Financier'!$D$22+'BP Financier'!$E$22+'BP Financier'!$F$22)/('BP Financier'!$C$16+'BP Financier'!$C$19+'BP Financier'!$D$16+'BP Financier'!$D$19+'BP Financier'!$E$16+'BP Financier'!$E$19+'BP Financier'!$C$22+'BP Financier'!$D$22+'BP Financier'!$E$22+'BP Financier'!$F$22+'BP Financier'!$F$16+'BP Financier'!$F$19))*$V6351*Y6351/(1-$W6351)","v":{"v":2096.420563678976,"d":"2,096"}},{"$f":"'BP Financier'!$F$44*(('BP Financier'!$C$22+'BP Financier'!$D$22+'BP Financier'!$E$22+'BP Financier'!$F$22)/('BP Financier'!$C$16+'BP Financier'!$C$19+'BP Financier'!$D$16+'BP Financier'!$D$19+'BP Financier'!$E$16+'BP Financier'!$E$19+'BP Financier'!$C$22+'BP Financier'!$D$22+'BP Financier'!$E$22+'BP Financier'!$F$22+'BP Financier'!$F$16+'BP Financier'!$F$19))*$V6351*Z6351/(1-$W6351)","v":{"v":16407.52292399992,"d":"16,408"}},{"$f":"'BP Financier'!$F$44*(('BP Financier'!$C$22+'BP Financier'!$D$22+'BP Financier'!$E$22+'BP Financier'!$F$22)/('BP Financier'!$C$16+'BP Financier'!$C$19+'BP Financier'!$D$16+'BP Financier'!$D$19+'BP Financier'!$E$16+'BP Financier'!$E$19+'BP Financier'!$C$22+'BP Financier'!$D$22+'BP Financier'!$E$22+'BP Financier'!$F$22+'BP Financier'!$F$16+'BP Financier'!$F$19))*$V6351*AA6351/(1-$W6351)","v":{"v":2027.1174045490925,"d":"2,027"}},{"$f":"'BP Financier'!$F$44*(('BP Financier'!$C$22+'BP Financier'!$D$22+'BP Financier'!$E$22+'BP Financier'!$F$22)/('BP Financier'!$C$16+'BP Financier'!$C$19+'BP Financier'!$D$16+'BP Financier'!$D$19+'BP Financier'!$E$16+'BP Financier'!$E$19+'BP Financier'!$C$22+'BP Financier'!$D$22+'BP Financier'!$E$22+'BP Financier'!$F$22+'BP Financier'!$F$16+'BP Financier'!$F$19))*$V6351*AB6351/(1-$W6351)","v":{"v":970.2442278183689,"d":"970"}},null,{"v":0.0125,"d":"1.25%"},{"$f":"Actif!$E$28/100","v":{"v":0.28900000000000003,"d":"28.90%"}},{"$f":"Actif!$E$30/100","v":{"v":0.09050000000000001,"d":"9.05%"}},{"$f":"Actif!$E$31/100","v":{"v":0.0605,"d":"6.05%"}},{"$f":"Actif!$E$32/100","v":{"v":0.47350000000000003,"d":"47.35%"}},{"$f":"Actif!$E$33/100","v":{"v":0.0585,"d":"5.85%"}},{"$f":"Actif!$E$29/100","v":{"v":0.027999999999999997,"d":"2.80%"}}]
[null,"#245",26,2026,"F","A_CAPI",{"v":0.44999999999999996,"d":"0.45"},{"v":0.38999999999999996,"d":"0.39"},0.6,0.6,85,0,{"$f":"ROUND(Primes!$P$10*V6352,2)","v":0.68},0,{"v":14782.363842404151,"d":"14,782"},{"$f":"'BP Financier'!$F$44*(('BP Financier'!$C$22+'BP Financier'!$D$22+'BP Financier'!$E$22+'BP Financier'!$F$22)/('BP Financier'!$C$16+'BP Financier'!$C$19+'BP Financier'!$D$16+'BP Financier'!$D$19+'BP Financier'!$E$16+'BP Financier'!$E$19+'BP Financier'!$C$22+'BP Financier'!$D$22+'BP Financier'!$E$22+'BP Financier'!$F$22+'BP Financier'!$F$16+'BP Financier'!$F$19))*$V6352*X6352/(1-$W6352)","v":{"v":1881.5807703763371,"d":"1,882"}},{"$f":"'BP Financier'!$F$44*(('BP Financier'!$C$22+'BP Financier'!$D$22+'BP Financier'!$E$22+'BP Financier'!$F$22)/('BP Financier'!$C$16+'BP Financier'!$C$19+'BP Financier'!$D$16+'BP Financier'!$D$19+'BP Financier'!$E$16+'BP Financier'!$E$19+'BP Financier'!$C$22+'BP Financier'!$D$22+'BP Financier'!$E$22+'BP Financier'!$F$22+'BP Financier'!$F$16+'BP Financier'!$F$19))*$V6352*Y6352/(1-$W6352)","v":{"v":1257.8523382073854,"d":"1,258"}},{"$f":"'BP Financier'!$F$44*(('BP Financier'!$C$22+'BP Financier'!$D$22+'BP Financier'!$E$22+'BP Financier'!$F$22)/('BP Financier'!$C$16+'BP Financier'!$C$19+'BP Financier'!$D$16+'BP Financier'!$D$19+'BP Financier'!$E$16+'BP Financier'!$E$19+'BP Financier'!$C$22+'BP Financier'!$D$22+'BP Financier'!$E$22+'BP Financier'!$F$22+'BP Financier'!$F$16+'BP Financier'!$F$19))*$V6352*Z6352/(1-$W6352)","v":{"v":9844.513754399952,"d":"9,845"}},{"$f":"'BP Financier'!$F$44*(('BP Financier'!$C$22+'BP Financier'!$D$22+'BP Financier'!$E$22+'BP Financier'!$F$22)/('BP Financier'!$C$16+'BP Financier'!$C$19+'BP Financier'!$D$16+'BP Financier'!$D$19+'BP Financier'!$E$16+'BP Financier'!$E$19+'BP Financier'!$C$22+'BP Financier'!$D$22+'BP Financier'!$E$22+'BP Financier'!$F$22+'BP Financier'!$F$16+'BP Financier'!$F$19))*$V6352*AA6352/(1-$W6352)","v":{"v":1216.2704427294555,"d":"1,216"}},{"$f":"'BP Financier'!$F$44*(('BP Financier'!$C$22+'BP Financier'!$D$22+'BP Financier'!$E$22+'BP Financier'!$F$22)/('BP Financier'!$C$16+'BP Financier'!$C$19+'BP Financier'!$D$16+'BP Financier'!$D$19+'BP Financier'!$E$16+'BP Financier'!$E$19+'BP Financier'!$C$22+'BP Financier'!$D$22+'BP Financier'!$E$22+'BP Financier'!$F$22+'BP Financier'!$F$16+'BP Financier'!$F$19))*$V6352*AB6352/(1-$W6352)","v":{"v":582.1465366910213,"d":"582"}},null,{"v":0.0075,"d":"0.75%"},{"$f":"Actif!$E$28/100","v":{"v":0.28900000000000003,"d":"28.90%"}},{"$f":"Actif!$E$30/100","v":{"v":0.09050000000000001,"d":"9.05%"}},{"$f":"Actif!$E$31/100","v":{"v":0.0605,"d":"6.05%"}},{"$f":"Actif!$E$32/100","v":{"v":0.47350000000000003,"d":"47.35%"}},{"$f":"Actif!$E$33/100","v":{"v":0.0585,"d":"5.85%"}},{"$f":"Actif!$E$29/100","v":{"v":0.027999999999999997,"d":"2.80%"}}]
[null,"#246",26,2028,"F","A_CAPI",{"v":0.44999999999999996,"d":"0.45"},{"v":0.38999999999999996,"d":"0.39"},0.6,0.6,85,0,{"$f":"ROUND(Primes!$P$10*V6353,2)","v":0.68},0,{"v":14782.363842404151,"d":"14,782"},{"$f":"'BP Financier'!$F$44*(('BP Financier'!$C$22+'BP Financier'!$D$22+'BP Financier'!$E$22+'BP Financier'!$F$22)/('BP Financier'!$C$16+'BP Financier'!$C$19+'BP Financier'!$D$16+'BP Financier'!$D$19+'BP Financier'!$E$16+'BP Financier'!$E$19+'BP Financier'!$C$22+'BP Financier'!$D$22+'BP Financier'!$E$22+'BP Financier'!$F$22+'BP Financier'!$F$16+'BP Financier'!$F$19))*$V6353*X6353/(1-$W6353)","v":{"v":1881.5807703763371,"d":"1,882"}},{"$f":"'BP Financier'!$F$44*(('BP Financier'!$C$22+'BP Financier'!$D$22+'BP Financier'!$E$22+'BP Financier'!$F$22)/('BP Financier'!$C$16+'BP Financier'!$C$19+'BP Financier'!$D$16+'BP Financier'!$D$19+'BP Financier'!$E$16+'BP Financier'!$E$19+'BP Financier'!$C$22+'BP Financier'!$D$22+'BP Financier'!$E$22+'BP Financier'!$F$22+'BP Financier'!$F$16+'BP Financier'!$F$19))*$V6353*Y6353/(1-$W6353)","v":{"v":1257.8523382073854,"d":"1,258"}},{"$f":"'BP Financier'!$F$44*(('BP Financier'!$C$22+'BP Financier'!$D$22+'BP Financier'!$E$22+'BP Financier'!$F$22)/('BP Financier'!$C$16+'BP Financier'!$C$19+'BP Financier'!$D$16+'BP Financier'!$D$19+'BP Financier'!$E$16+'BP Financier'!$E$19+'BP Financier'!$C$22+'BP Financier'!$D$22+'BP Financier'!$E$22+'BP Financier'!$F$22+'BP Financier'!$F$16+'BP Financier'!$F$19))*$V6353*Z6353/(1-$W6353)","v":{"v":9844.513754399952,"d":"9,845"}},{"$f":"'BP Financier'!$F$44*(('BP Financier'!$C$22+'BP Financier'!$D$22+'BP Financier'!$E$22+'BP Financier'!$F$22)/('BP Financier'!$C$16+'BP Financier'!$C$19+'BP Financier'!$D$16+'BP Financier'!$D$19+'BP Financier'!$E$16+'BP Financier'!$E$19+'BP Financier'!$C$22+'BP Financier'!$D$22+'BP Financier'!$E$22+'BP Financier'!$F$22+'BP Financier'!$F$16+'BP Financier'!$F$19))*$V6353*AA6353/(1-$W6353)","v":{"v":1216.2704427294555,"d":"1,216"}},{"$f":"'BP Financier'!$F$44*(('BP Financier'!$C$22+'BP Financier'!$D$22+'BP Financier'!$E$22+'BP Financier'!$F$22)/('BP Financier'!$C$16+'BP Financier'!$C$19+'BP Financier'!$D$16+'BP Financier'!$D$19+'BP Financier'!$E$16+'BP Financier'!$E$19+'BP Financier'!$C$22+'BP Financier'!$D$22+'BP Financier'!$E$22+'BP Financier'!$F$22+'BP Financier'!$F$16+'BP Financier'!$F$19))*$V6353*AB6353/(1-$W6353)","v":{"v":582.1465366910213,"d":"582"}},null,{"v":0.0075,"d":"0.75%"},{"$f":"Actif!$E$28/100","v":{"v":0.28900000000000003,"d":"28.90%"}},{"$f":"Actif!$E$30/100","v":{"v":0.09050000000000001,"d":"9.05%"}},{"$f":"Actif!$E$31/100","v":{"v":0.0605,"d":"6.05%"}},{"$f":"Actif!$E$32/100","v":{"v":0.47350000000000003,"d":"47.35%"}},{"$f":"Actif!$E$33/100","v":{"v":0.0585,"d":"5.85%"}},{"$f":"Actif!$E$29/100","v":{"v":0.027999999999999997,"d":"2.80%"}}]
[null,"#247",26,2029,"F","A_CAPI",{"v":0.44999999999999996,"d":"0.45"},{"v":0.38999999999999996,"d":"0.39"},0.6,0.6,85,0,{"$f":"ROUND(Primes!$P$10*V6354,2)","v":0.68},0,{"v":14782.363842404151,"d":"14,782"},{"$f":"'BP Financier'!$F$44*(('BP Financier'!$C$22+'BP Financier'!$D$22+'BP Financier'!$E$22+'BP Financier'!$F$22)/('BP Financier'!$C$16+'BP Financier'!$C$19+'BP Financier'!$D$16+'BP Financier'!$D$19+'BP Financier'!$E$16+'BP Financier'!$E$19+'BP Financier'!$C$22+'BP Financier'!$D$22+'BP Financier'!$E$22+'BP Financier'!$F$22+'BP Financier'!$F$16+'BP Financier'!$F$19))*$V6354*X6354/(1-$W6354)","v":{"v":1881.5807703763371,"d":"1,882"}},{"$f":"'BP Financier'!$F$44*(('BP Financier'!$C$22+'BP Financier'!$D$22+'BP Financier'!$E$22+'BP Financier'!$F$22)/('BP Financier'!$C$16+'BP Financier'!$C$19+'BP Financier'!$D$16+'BP Financier'!$D$19+'BP Financier'!$E$16+'BP Financier'!$E$19+'BP Financier'!$C$22+'BP Financier'!$D$22+'BP Financier'!$E$22+'BP Financier'!$F$22+'BP Financier'!$F$16+'BP Financier'!$F$19))*$V6354*Y6354/(1-$W6354)","v":{"v":1257.8523382073854,"d":"1,258"}},{"$f":"'BP Financier'!$F$44*(('BP Financier'!$C$22+'BP Financier'!$D$22+'BP Financier'!$E$22+'BP Financier'!$F$22)/('BP Financier'!$C$16+'BP Financier'!$C$19+'BP Financier'!$D$16+'BP Financier'!$D$19+'BP Financier'!$E$16+'BP Financier'!$E$19+'BP Financier'!$C$22+'BP Financier'!$D$22+'BP Financier'!$E$22+'BP Financier'!$F$22+'BP Financier'!$F$16+'BP Financier'!$F$19))*$V6354*Z6354/(1-$W6354)","v":{"v":9844.513754399952,"d":"9,845"}},{"$f":"'BP Financier'!$F$44*(('BP Financier'!$C$22+'BP Financier'!$D$22+'BP Financier'!$E$22+'BP Financier'!$F$22)/('BP Financier'!$C$16+'BP Financier'!$C$19+'BP Financier'!$D$16+'BP Financier'!$D$19+'BP Financier'!$E$16+'BP Financier'!$E$19+'BP Financier'!$C$22+'BP Financier'!$D$22+'BP Financier'!$E$22+'BP Financier'!$F$22+'BP Financier'!$F$16+'BP Financier'!$F$19))*$V6354*AA6354/(1-$W6354)","v":{"v":1216.2704427294555,"d":"1,216"}},{"$f":"'BP Financier'!$F$44*(('BP Financier'!$C$22+'BP Financier'!$D$22+'BP Financier'!$E$22+'BP Financier'!$F$22)/('BP Financier'!$C$16+'BP Financier'!$C$19+'BP Financier'!$D$16+'BP Financier'!$D$19+'BP Financier'!$E$16+'BP Financier'!$E$19+'BP Financier'!$C$22+'BP Financier'!$D$22+'BP Financier'!$E$22+'BP Financier'!$F$22+'BP Financier'!$F$16+'BP Financier'!$F$19))*$V6354*AB6354/(1-$W6354)","v":{"v":582.1465366910213,"d":"582"}},null,{"v":0.0075,"d":"0.75%"},{"$f":"Actif!$E$28/100","v":{"v":0.28900000000000003,"d":"28.90%"}},{"$f":"Actif!$E$30/100","v":{"v":0.09050000000000001,"d":"9.05%"}},{"$f":"Actif!$E$31/100","v":{"v":0.0605,"d":"6.05%"}},{"$f":"Actif!$E$32/100","v":{"v":0.47350000000000003,"d":"47.35%"}},{"$f":"Actif!$E$33/100","v":{"v":0.0585,"d":"5.85%"}},{"$f":"Actif!$E$29/100","v":{"v":0.027999999999999997,"d":"2.80%"}}]
[null,"#248",26,2030,"F","A_CAPI",{"v":0.44999999999999996,"d":"0.45"},{"v":0.38999999999999996,"d":"0.39"},0.6,0.6,85,0,{"$f":"ROUND(Primes!$P$10*V6355,2)","v":0.68},0,{"v":14782.363842404151,"d":"14,782"},{"$f":"'BP Financier'!$F$44*(('BP Financier'!$C$22+'BP Financier'!$D$22+'BP Financier'!$E$22+'BP Financier'!$F$22)/('BP Financier'!$C$16+'BP Financier'!$C$19+'BP Financier'!$D$16+'BP Financier'!$D$19+'BP Financier'!$E$16+'BP Financier'!$E$19+'BP Financier'!$C$22+'BP Financier'!$D$22+'BP Financier'!$E$22+'BP Financier'!$F$22+'BP Financier'!$F$16+'BP Financier'!$F$19))*$V6355*X6355/(1-$W6355)","v":{"v":1881.5807703763371,"d":"1,882"}},{"$f":"'BP Financier'!$F$44*(('BP Financier'!$C$22+'BP Financier'!$D$22+'BP Financier'!$E$22+'BP Financier'!$F$22)/('BP Financier'!$C$16+'BP Financier'!$C$19+'BP Financier'!$D$16+'BP Financier'!$D$19+'BP Financier'!$E$16+'BP Financier'!$E$19+'BP Financier'!$C$22+'BP Financier'!$D$22+'BP Financier'!$E$22+'BP Financier'!$F$22+'BP Financier'!$F$16+'BP Financier'!$F$19))*$V6355*Y6355/(1-$W6355)","v":{"v":1257.8523382073854,"d":"1,258"}},{"$f":"'BP Financier'!$F$44*(('BP Financier'!$C$22+'BP Financier'!$D$22+'BP Financier'!$E$22+'BP Financier'!$F$22)/('BP Financier'!$C$16+'BP Financier'!$C$19+'BP Financier'!$D$16+'BP Financier'!$D$19+'BP Financier'!$E$16+'BP Financier'!$E$19+'BP Financier'!$C$22+'BP Financier'!$D$22+'BP Financier'!$E$22+'BP Financier'!$F$22+'BP Financier'!$F$16+'BP Financier'!$F$19))*$V6355*Z6355/(1-$W6355)","v":{"v":9844.513754399952,"d":"9,845"}},{"$f":"'BP Financier'!$F$44*(('BP Financier'!$C$22+'BP Financier'!$D$22+'BP Financier'!$E$22+'BP Financier'!$F$22)/('BP Financier'!$C$16+'BP Financier'!$C$19+'BP Financier'!$D$16+'BP Financier'!$D$19+'BP Financier'!$E$16+'BP Financier'!$E$19+'BP Financier'!$C$22+'BP Financier'!$D$22+'BP Financier'!$E$22+'BP Financier'!$F$22+'BP Financier'!$F$16+'BP Financier'!$F$19))*$V6355*AA6355/(1-$W6355)","v":{"v":1216.2704427294555,"d":"1,216"}},{"$f":"'BP Financier'!$F$44*(('BP Financier'!$C$22+'BP Financier'!$D$22+'BP Financier'!$E$22+'BP Financier'!$F$22)/('BP Financier'!$C$16+'BP Financier'!$C$19+'BP Financier'!$D$16+'BP Financier'!$D$19+'BP Financier'!$E$16+'BP Financier'!$E$19+'BP Financier'!$C$22+'BP Financier'!$D$22+'BP Financier'!$E$22+'BP Financier'!$F$22+'BP Financier'!$F$16+'BP Financier'!$F$19))*$V6355*AB6355/(1-$W6355)","v":{"v":582.1465366910213,"d":"582"}},null,{"v":0.0075,"d":"0.75%"},{"$f":"Actif!$E$28/100","v":{"v":0.28900000000000003,"d":"28.90%"}},{"$f":"Actif!$E$30/100","v":{"v":0.09050000000000001,"d":"9.05%"}},{"$f":"Actif!$E$31/100","v":{"v":0.0605,"d":"6.05%"}},{"$f":"Actif!$E$32/100","v":{"v":0.47350000000000003,"d":"47.35%"}},{"$f":"Actif!$E$33/100","v":{"v":0.0585,"d":"5.85%"}},{"$f":"Actif!$E$29/100","v":{"v":0.027999999999999997,"d":"2.80%"}}]
[null,"#249",27,2026,"H","A_CAPI",{"v":0.44999999999999996,"d":"0.45"},{"v":0.38999999999999996,"d":"0.39"},0.6,0.6,85,0,{"$f":"ROUND(Primes!$P$10*V6356,2)","v":0.68},0,{"v":14782.363842404151,"d":"14,782"},{"$f":"'BP Financier'!$F$44*(('BP Financier'!$C$22+'BP Financier'!$D$22+'BP Financier'!$E$22+'BP Financier'!$F$22)/('BP Financier'!$C$16+'BP Financier'!$C$19+'BP Financier'!$D$16+'BP Financier'!$D$19+'BP Financier'!$E$16+'BP Financier'!$E$19+'BP Financier'!$C$22+'BP Financier'!$D$22+'BP Financier'!$E$22+'BP Financier'!$F$22+'BP Financier'!$F$16+'BP Financier'!$F$19))*$V6356*X6356/(1-$W6356)","v":{"v":1881.5807703763371,"d":"1,882"}},{"$f":"'BP Financier'!$F$44*(('BP Financier'!$C$22+'BP Financier'!$D$22+'BP Financier'!$E$22+'BP Financier'!$F$22)/('BP Financier'!$C$16+'BP Financier'!$C$19+'BP Financier'!$D$16+'BP Financier'!$D$19+'BP Financier'!$E$16+'BP Financier'!$E$19+'BP Financier'!$C$22+'BP Financier'!$D$22+'BP Financier'!$E$22+'BP Financier'!$F$22+'BP Financier'!$F$16+'BP Financier'!$F$19))*$V6356*Y6356/(1-$W6356)","v":{"v":1257.8523382073854,"d":"1,258"}},{"$f":"'BP Financier'!$F$44*(('BP Financier'!$C$22+'BP Financier'!$D$22+'BP Financier'!$E$22+'BP Financier'!$F$22)/('BP Financier'!$C$16+'BP Financier'!$C$19+'BP Financier'!$D$16+'BP Financier'!$D$19+'BP Financier'!$E$16+'BP Financier'!$E$19+'BP Financier'!$C$22+'BP Financier'!$D$22+'BP Financier'!$E$22+'BP Financier'!$F$22+'BP Financier'!$F$16+'BP Financier'!$F$19))*$V6356*Z6356/(1-$W6356)","v":{"v":9844.513754399952,"d":"9,845"}},{"$f":"'BP Financier'!$F$44*(('BP Financier'!$C$22+'BP Financier'!$D$22+'BP Financier'!$E$22+'BP Financier'!$F$22)/('BP Financier'!$C$16+'BP Financier'!$C$19+'BP Financier'!$D$16+'BP Financier'!$D$19+'BP Financier'!$E$16+'BP Financier'!$E$19+'BP Financier'!$C$22+'BP Financier'!$D$22+'BP Financier'!$E$22+'BP Financier'!$F$22+'BP Financier'!$F$16+'BP Financier'!$F$19))*$V6356*AA6356/(1-$W6356)","v":{"v":1216.2704427294555,"d":"1,216"}},{"$f":"'BP Financier'!$F$44*(('BP Financier'!$C$22+'BP Financier'!$D$22+'BP Financier'!$E$22+'BP Financier'!$F$22)/('BP Financier'!$C$16+'BP Financier'!$C$19+'BP Financier'!$D$16+'BP Financier'!$D$19+'BP Financier'!$E$16+'BP Financier'!$E$19+'BP Financier'!$C$22+'BP Financier'!$D$22+'BP Financier'!$E$22+'BP Financier'!$F$22+'BP Financier'!$F$16+'BP Financier'!$F$19))*$V6356*AB6356/(1-$W6356)","v":{"v":582.1465366910213,"d":"582"}},null,{"v":0.0075,"d":"0.75%"},{"$f":"Actif!$E$28/100","v":{"v":0.28900000000000003,"d":"28.90%"}},{"$f":"Actif!$E$30/100","v":{"v":0.09050000000000001,"d":"9.05%"}},{"$f":"Actif!$E$31/100","v":{"v":0.0605,"d":"6.05%"}},{"$f":"Actif!$E$32/100","v":{"v":0.47350000000000003,"d":"47.35%"}},{"$f":"Actif!$E$33/100","v":{"v":0.0585,"d":"5.85%"}},{"$f":"Actif!$E$29/100","v":{"v":0.027999999999999997,"d":"2.80%"}}]
[null,"#250",27,2028,"H","A_CAPI",{"v":0.44999999999999996,"d":"0.45"},{"v":0.38999999999999996,"d":"0.39"},0.6,0.6,85,0,{"$f":"ROUND(Primes!$P$10*V6357,2)","v":0.68},0,{"v":14782.363842404151,"d":"14,782"},{"$f":"'BP Financier'!$F$44*(('BP Financier'!$C$22+'BP Financier'!$D$22+'BP Financier'!$E$22+'BP Financier'!$F$22)/('BP Financier'!$C$16+'BP Financier'!$C$19+'BP Financier'!$D$16+'BP Financier'!$D$19+'BP Financier'!$E$16+'BP Financier'!$E$19+'BP Financier'!$C$22+'BP Financier'!$D$22+'BP Financier'!$E$22+'BP Financier'!$F$22+'BP Financier'!$F$16+'BP Financier'!$F$19))*$V6357*X6357/(1-$W6357)","v":{"v":1881.5807703763371,"d":"1,882"}},{"$f":"'BP Financier'!$F$44*(('BP Financier'!$C$22+'BP Financier'!$D$22+'BP Financier'!$E$22+'BP Financier'!$F$22)/('BP Financier'!$C$16+'BP Financier'!$C$19+'BP Financier'!$D$16+'BP Financier'!$D$19+'BP Financier'!$E$16+'BP Financier'!$E$19+'BP Financier'!$C$22+'BP Financier'!$D$22+'BP Financier'!$E$22+'BP Financier'!$F$22+'BP Financier'!$F$16+'BP Financier'!$F$19))*$V6357*Y6357/(1-$W6357)","v":{"v":1257.8523382073854,"d":"1,258"}},{"$f":"'BP Financier'!$F$44*(('BP Financier'!$C$22+'BP Financier'!$D$22+'BP Financier'!$E$22+'BP Financier'!$F$22)/('BP Financier'!$C$16+'BP Financier'!$C$19+'BP Financier'!$D$16+'BP Financier'!$D$19+'BP Financier'!$E$16+'BP Financier'!$E$19+'BP Financier'!$C$22+'BP Financier'!$D$22+'BP Financier'!$E$22+'BP Financier'!$F$22+'BP Financier'!$F$16+'BP Financier'!$F$19))*$V6357*Z6357/(1-$W6357)","v":{"v":9844.513754399952,"d":"9,845"}},{"$f":"'BP Financier'!$F$44*(('BP Financier'!$C$22+'BP Financier'!$D$22+'BP Financier'!$E$22+'BP Financier'!$F$22)/('BP Financier'!$C$16+'BP Financier'!$C$19+'BP Financier'!$D$16+'BP Financier'!$D$19+'BP Financier'!$E$16+'BP Financier'!$E$19+'BP Financier'!$C$22+'BP Financier'!$D$22+'BP Financier'!$E$22+'BP Financier'!$F$22+'BP Financier'!$F$16+'BP Financier'!$F$19))*$V6357*AA6357/(1-$W6357)","v":{"v":1216.2704427294555,"d":"1,216"}},{"$f":"'BP Financier'!$F$44*(('BP Financier'!$C$22+'BP Financier'!$D$22+'BP Financier'!$E$22+'BP Financier'!$F$22)/('BP Financier'!$C$16+'BP Financier'!$C$19+'BP Financier'!$D$16+'BP Financier'!$D$19+'BP Financier'!$E$16+'BP Financier'!$E$19+'BP Financier'!$C$22+'BP Financier'!$D$22+'BP Financier'!$E$22+'BP Financier'!$F$22+'BP Financier'!$F$16+'BP Financier'!$F$19))*$V6357*AB6357/(1-$W6357)","v":{"v":582.1465366910213,"d":"582"}},null,{"v":0.0075,"d":"0.75%"},{"$f":"Actif!$E$28/100","v":{"v":0.28900000000000003,"d":"28.90%"}},{"$f":"Actif!$E$30/100","v":{"v":0.09050000000000001,"d":"9.05%"}},{"$f":"Actif!$E$31/100","v":{"v":0.0605,"d":"6.05%"}},{"$f":"Actif!$E$32/100","v":{"v":0.47350000000000003,"d":"47.35%"}},{"$f":"Actif!$E$33/100","v":{"v":0.0585,"d":"5.85%"}},{"$f":"Actif!$E$29/100","v":{"v":0.027999999999999997,"d":"2.80%"}}]
[null,"#251",27,2029,"H","A_CAPI",{"v":0.44999999999999996,"d":"0.45"},{"v":0.38999999999999996,"d":"0.39"},0.6,0.6,85,0,{"$f":"ROUND(Primes!$P$10*V6358,2)","v":0.68},0,{"v":14782.363842404151,"d":"14,782"},{"$f":"'BP Financier'!$F$44*(('BP Financier'!$C$22+'BP Financier'!$D$22+'BP Financier'!$E$22+'BP Financier'!$F$22)/('BP Financier'!$C$16+'BP Financier'!$C$19+'BP Financier'!$D$16+'BP Financier'!$D$19+'BP Financier'!$E$16+'BP Financier'!$E$19+'BP Financier'!$C$22+'BP Financier'!$D$22+'BP Financier'!$E$22+'BP Financier'!$F$22+'BP Financier'!$F$16+'BP Financier'!$F$19))*$V6358*X6358/(1-$W6358)","v":{"v":1881.5807703763371,"d":"1,882"}},{"$f":"'BP Financier'!$F$44*(('BP Financier'!$C$22+'BP Financier'!$D$22+'BP Financier'!$E$22+'BP Financier'!$F$22)/('BP Financier'!$C$16+'BP Financier'!$C$19+'BP Financier'!$D$16+'BP Financier'!$D$19+'BP Financier'!$E$16+'BP Financier'!$E$19+'BP Financier'!$C$22+'BP Financier'!$D$22+'BP Financier'!$E$22+'BP Financier'!$F$22+'BP Financier'!$F$16+'BP Financier'!$F$19))*$V6358*Y6358/(1-$W6358)","v":{"v":1257.8523382073854,"d":"1,258"}},{"$f":"'BP Financier'!$F$44*(('BP Financier'!$C$22+'BP Financier'!$D$22+'BP Financier'!$E$22+'BP Financier'!$F$22)/('BP Financier'!$C$16+'BP Financier'!$C$19+'BP Financier'!$D$16+'BP Financier'!$D$19+'BP Financier'!$E$16+'BP Financier'!$E$19+'BP Financier'!$C$22+'BP Financier'!$D$22+'BP Financier'!$E$22+'BP Financier'!$F$22+'BP Financier'!$F$16+'BP Financier'!$F$19))*$V6358*Z6358/(1-$W6358)","v":{"v":9844.513754399952,"d":"9,845"}},{"$f":"'BP Financier'!$F$44*(('BP Financier'!$C$22+'BP Financier'!$D$22+'BP Financier'!$E$22+'BP Financier'!$F$22)/('BP Financier'!$C$16+'BP Financier'!$C$19+'BP Financier'!$D$16+'BP Financier'!$D$19+'BP Financier'!$E$16+'BP Financier'!$E$19+'BP Financier'!$C$22+'BP Financier'!$D$22+'BP Financier'!$E$22+'BP Financier'!$F$22+'BP Financier'!$F$16+'BP Financier'!$F$19))*$V6358*AA6358/(1-$W6358)","v":{"v":1216.2704427294555,"d":"1,216"}},{"$f":"'BP Financier'!$F$44*(('BP Financier'!$C$22+'BP Financier'!$D$22+'BP Financier'!$E$22+'BP Financier'!$F$22)/('BP Financier'!$C$16+'BP Financier'!$C$19+'BP Financier'!$D$16+'BP Financier'!$D$19+'BP Financier'!$E$16+'BP Financier'!$E$19+'BP Financier'!$C$22+'BP Financier'!$D$22+'BP Financier'!$E$22+'BP Financier'!$F$22+'BP Financier'!$F$16+'BP Financier'!$F$19))*$V6358*AB6358/(1-$W6358)","v":{"v":582.1465366910213,"d":"582"}},null,{"v":0.0075,"d":"0.75%"},{"$f":"Actif!$E$28/100","v":{"v":0.28900000000000003,"d":"28.90%"}},{"$f":"Actif!$E$30/100","v":{"v":0.09050000000000001,"d":"9.05%"}},{"$f":"Actif!$E$31/100","v":{"v":0.0605,"d":"6.05%"}},{"$f":"Actif!$E$32/100","v":{"v":0.47350000000000003,"d":"47.35%"}},{"$f":"Actif!$E$33/100","v":{"v":0.0585,"d":"5.85%"}},{"$f":"Actif!$E$29/100","v":{"v":0.027999999999999997,"d":"2.80%"}}]
[null,"#252",27,2030,"H","A_CAPI",{"v":0.44999999999999996,"d":"0.45"},{"v":0.38999999999999996,"d":"0.39"},0.6,0.6,85,0,{"$f":"ROUND(Primes!$P$10*V6359,2)","v":0.68},0,{"v":14782.363842404151,"d":"14,782"},{"$f":"'BP Financier'!$F$44*(('BP Financier'!$C$22+'BP Financier'!$D$22+'BP Financier'!$E$22+'BP Financier'!$F$22)/('BP Financier'!$C$16+'BP Financier'!$C$19+'BP Financier'!$D$16+'BP Financier'!$D$19+'BP Financier'!$E$16+'BP Financier'!$E$19+'BP Financier'!$C$22+'BP Financier'!$D$22+'BP Financier'!$E$22+'BP Financier'!$F$22+'BP Financier'!$F$16+'BP Financier'!$F$19))*$V6359*X6359/(1-$W6359)","v":{"v":1881.5807703763371,"d":"1,882"}},{"$f":"'BP Financier'!$F$44*(('BP Financier'!$C$22+'BP Financier'!$D$22+'BP Financier'!$E$22+'BP Financier'!$F$22)/('BP Financier'!$C$16+'BP Financier'!$C$19+'BP Financier'!$D$16+'BP Financier'!$D$19+'BP Financier'!$E$16+'BP Financier'!$E$19+'BP Financier'!$C$22+'BP Financier'!$D$22+'BP Financier'!$E$22+'BP Financier'!$F$22+'BP Financier'!$F$16+'BP Financier'!$F$19))*$V6359*Y6359/(1-$W6359)","v":{"v":1257.8523382073854,"d":"1,258"}},{"$f":"'BP Financier'!$F$44*(('BP Financier'!$C$22+'BP Financier'!$D$22+'BP Financier'!$E$22+'BP Financier'!$F$22)/('BP Financier'!$C$16+'BP Financier'!$C$19+'BP Financier'!$D$16+'BP Financier'!$D$19+'BP Financier'!$E$16+'BP Financier'!$E$19+'BP Financier'!$C$22+'BP Financier'!$D$22+'BP Financier'!$E$22+'BP Financier'!$F$22+'BP Financier'!$F$16+'BP Financier'!$F$19))*$V6359*Z6359/(1-$W6359)","v":{"v":9844.513754399952,"d":"9,845"}},{"$f":"'BP Financier'!$F$44*(('BP Financier'!$C$22+'BP Financier'!$D$22+'BP Financier'!$E$22+'BP Financier'!$F$22)/('BP Financier'!$C$16+'BP Financier'!$C$19+'BP Financier'!$D$16+'BP Financier'!$D$19+'BP Financier'!$E$16+'BP Financier'!$E$19+'BP Financier'!$C$22+'BP Financier'!$D$22+'BP Financier'!$E$22+'BP Financier'!$F$22+'BP Financier'!$F$16+'BP Financier'!$F$19))*$V6359*AA6359/(1-$W6359)","v":{"v":1216.2704427294555,"d":"1,216"}},{"$f":"'BP Financier'!$F$44*(('BP Financier'!$C$22+'BP Financier'!$D$22+'BP Financier'!$E$22+'BP Financier'!$F$22)/('BP Financier'!$C$16+'BP Financier'!$C$19+'BP Financier'!$D$16+'BP Financier'!$D$19+'BP Financier'!$E$16+'BP Financier'!$E$19+'BP Financier'!$C$22+'BP Financier'!$D$22+'BP Financier'!$E$22+'BP Financier'!$F$22+'BP Financier'!$F$16+'BP Financier'!$F$19))*$V6359*AB6359/(1-$W6359)","v":{"v":582.1465366910213,"d":"582"}},null,{"v":0.0075,"d":"0.75%"},{"$f":"Actif!$E$28/100","v":{"v":0.28900000000000003,"d":"28.90%"}},{"$f":"Actif!$E$30/100","v":{"v":0.09050000000000001,"d":"9.05%"}},{"$f":"Actif!$E$31/100","v":{"v":0.0605,"d":"6.05%"}},{"$f":"Actif!$E$32/100","v":{"v":0.47350000000000003,"d":"47.35%"}},{"$f":"Actif!$E$33/100","v":{"v":0.0585,"d":"5.85%"}},{"$f":"Actif!$E$29/100","v":{"v":0.027999999999999997,"d":"2.80%"}}]
[null,"#253",28,2026,"H","A_CAPI",{"v":0.44999999999999996,"d":"0.45"},{"v":0.38999999999999996,"d":"0.39"},0.6,0.6,85,0,{"$f":"ROUND(Primes!$P$10*V6360,2)","v":0.68},0,{"v":14782.363842404151,"d":"14,782"},{"$f":"'BP Financier'!$F$44*(('BP Financier'!$C$22+'BP Financier'!$D$22+'BP Financier'!$E$22+'BP Financier'!$F$22)/('BP Financier'!$C$16+'BP Financier'!$C$19+'BP Financier'!$D$16+'BP Financier'!$D$19+'BP Financier'!$E$16+'BP Financier'!$E$19+'BP Financier'!$C$22+'BP Financier'!$D$22+'BP Financier'!$E$22+'BP Financier'!$F$22+'BP Financier'!$F$16+'BP Financier'!$F$19))*$V6360*X6360/(1-$W6360)","v":{"v":1881.5807703763371,"d":"1,882"}},{"$f":"'BP Financier'!$F$44*(('BP Financier'!$C$22+'BP Financier'!$D$22+'BP Financier'!$E$22+'BP Financier'!$F$22)/('BP Financier'!$C$16+'BP Financier'!$C$19+'BP Financier'!$D$16+'BP Financier'!$D$19+'BP Financier'!$E$16+'BP Financier'!$E$19+'BP Financier'!$C$22+'BP Financier'!$D$22+'BP Financier'!$E$22+'BP Financier'!$F$22+'BP Financier'!$F$16+'BP Financier'!$F$19))*$V6360*Y6360/(1-$W6360)","v":{"v":1257.8523382073854,"d":"1,258"}},{"$f":"'BP Financier'!$F$44*(('BP Financier'!$C$22+'BP Financier'!$D$22+'BP Financier'!$E$22+'BP Financier'!$F$22)/('BP Financier'!$C$16+'BP Financier'!$C$19+'BP Financier'!$D$16+'BP Financier'!$D$19+'BP Financier'!$E$16+'BP Financier'!$E$19+'BP Financier'!$C$22+'BP Financier'!$D$22+'BP Financier'!$E$22+'BP Financier'!$F$22+'BP Financier'!$F$16+'BP Financier'!$F$19))*$V6360*Z6360/(1-$W6360)","v":{"v":9844.513754399952,"d":"9,845"}},{"$f":"'BP Financier'!$F$44*(('BP Financier'!$C$22+'BP Financier'!$D$22+'BP Financier'!$E$22+'BP Financier'!$F$22)/('BP Financier'!$C$16+'BP Financier'!$C$19+'BP Financier'!$D$16+'BP Financier'!$D$19+'BP Financier'!$E$16+'BP Financier'!$E$19+'BP Financier'!$C$22+'BP Financier'!$D$22+'BP Financier'!$E$22+'BP Financier'!$F$22+'BP Financier'!$F$16+'BP Financier'!$F$19))*$V6360*AA6360/(1-$W6360)","v":{"v":1216.2704427294555,"d":"1,216"}},{"$f":"'BP Financier'!$F$44*(('BP Financier'!$C$22+'BP Financier'!$D$22+'BP Financier'!$E$22+'BP Financier'!$F$22)/('BP Financier'!$C$16+'BP Financier'!$C$19+'BP Financier'!$D$16+'BP Financier'!$D$19+'BP Financier'!$E$16+'BP Financier'!$E$19+'BP Financier'!$C$22+'BP Financier'!$D$22+'BP Financier'!$E$22+'BP Financier'!$F$22+'BP Financier'!$F$16+'BP Financier'!$F$19))*$V6360*AB6360/(1-$W6360)","v":{"v":582.1465366910213,"d":"582"}},null,{"v":0.0075,"d":"0.75%"},{"$f":"Actif!$E$28/100","v":{"v":0.28900000000000003,"d":"28.90%"}},{"$f":"Actif!$E$30/100","v":{"v":0.09050000000000001,"d":"9.05%"}},{"$f":"Actif!$E$31/100","v":{"v":0.0605,"d":"6.05%"}},{"$f":"Actif!$E$32/100","v":{"v":0.47350000000000003,"d":"47.35%"}},{"$f":"Actif!$E$33/100","v":{"v":0.0585,"d":"5.85%"}},{"$f":"Actif!$E$29/100","v":{"v":0.027999999999999997,"d":"2.80%"}}]
[null,"#254",28,2028,"H","A_CAPI",{"v":0.44999999999999996,"d":"0.45"},{"v":0.38999999999999996,"d":"0.39"},0.6,0.6,85,0,{"$f":"ROUND(Primes!$P$10*V6361,2)","v":0.68},0,{"v":14782.363842404151,"d":"14,782"},{"$f":"'BP Financier'!$F$44*(('BP Financier'!$C$22+'BP Financier'!$D$22+'BP Financier'!$E$22+'BP Financier'!$F$22)/('BP Financier'!$C$16+'BP Financier'!$C$19+'BP Financier'!$D$16+'BP Financier'!$D$19+'BP Financier'!$E$16+'BP Financier'!$E$19+'BP Financier'!$C$22+'BP Financier'!$D$22+'BP Financier'!$E$22+'BP Financier'!$F$22+'BP Financier'!$F$16+'BP Financier'!$F$19))*$V6361*X6361/(1-$W6361)","v":{"v":1881.5807703763371,"d":"1,882"}},{"$f":"'BP Financier'!$F$44*(('BP Financier'!$C$22+'BP Financier'!$D$22+'BP Financier'!$E$22+'BP Financier'!$F$22)/('BP Financier'!$C$16+'BP Financier'!$C$19+'BP Financier'!$D$16+'BP Financier'!$D$19+'BP Financier'!$E$16+'BP Financier'!$E$19+'BP Financier'!$C$22+'BP Financier'!$D$22+'BP Financier'!$E$22+'BP Financier'!$F$22+'BP Financier'!$F$16+'BP Financier'!$F$19))*$V6361*Y6361/(1-$W6361)","v":{"v":1257.8523382073854,"d":"1,258"}},{"$f":"'BP Financier'!$F$44*(('BP Financier'!$C$22+'BP Financier'!$D$22+'BP Financier'!$E$22+'BP Financier'!$F$22)/('BP Financier'!$C$16+'BP Financier'!$C$19+'BP Financier'!$D$16+'BP Financier'!$D$19+'BP Financier'!$E$16+'BP Financier'!$E$19+'BP Financier'!$C$22+'BP Financier'!$D$22+'BP Financier'!$E$22+'BP Financier'!$F$22+'BP Financier'!$F$16+'BP Financier'!$F$19))*$V6361*Z6361/(1-$W6361)","v":{"v":9844.513754399952,"d":"9,845"}},{"$f":"'BP Financier'!$F$44*(('BP Financier'!$C$22+'BP Financier'!$D$22+'BP Financier'!$E$22+'BP Financier'!$F$22)/('BP Financier'!$C$16+'BP Financier'!$C$19+'BP Financier'!$D$16+'BP Financier'!$D$19+'BP Financier'!$E$16+'BP Financier'!$E$19+'BP Financier'!$C$22+'BP Financier'!$D$22+'BP Financier'!$E$22+'BP Financier'!$F$22+'BP Financier'!$F$16+'BP Financier'!$F$19))*$V6361*AA6361/(1-$W6361)","v":{"v":1216.2704427294555,"d":"1,216"}},{"$f":"'BP Financier'!$F$44*(('BP Financier'!$C$22+'BP Financier'!$D$22+'BP Financier'!$E$22+'BP Financier'!$F$22)/('BP Financier'!$C$16+'BP Financier'!$C$19+'BP Financier'!$D$16+'BP Financier'!$D$19+'BP Financier'!$E$16+'BP Financier'!$E$19+'BP Financier'!$C$22+'BP Financier'!$D$22+'BP Financier'!$E$22+'BP Financier'!$F$22+'BP Financier'!$F$16+'BP Financier'!$F$19))*$V6361*AB6361/(1-$W6361)","v":{"v":582.1465366910213,"d":"582"}},null,{"v":0.0075,"d":"0.75%"},{"$f":"Actif!$E$28/100","v":{"v":0.28900000000000003,"d":"28.90%"}},{"$f":"Actif!$E$30/100","v":{"v":0.09050000000000001,"d":"9.05%"}},{"$f":"Actif!$E$31/100","v":{"v":0.0605,"d":"6.05%"}},{"$f":"Actif!$E$32/100","v":{"v":0.47350000000000003,"d":"47.35%"}},{"$f":"Actif!$E$33/100","v":{"v":0.0585,"d":"5.85%"}},{"$f":"Actif!$E$29/100","v":{"v":0.027999999999999997,"d":"2.80%"}}]
[null,"#255",28,2029,"H","A_CAPI",{"v":0.44999999999999996,"d":"0.45"},{"v":0.38999999999999996,"d":"0.39"},0.6,0.6,85,0,{"$f":"ROUND(Primes!$P$10*V6362,2)","v":0.68},0,{"v":14782.363842404151,"d":"14,782"},{"$f":"'BP Financier'!$F$44*(('BP Financier'!$C$22+'BP Financier'!$D$22+'BP Financier'!$E$22+'BP Financier'!$F$22)/('BP Financier'!$C$16+'BP Financier'!$C$19+'BP Financier'!$D$16+'BP Financier'!$D$19+'BP Financier'!$E$16+'BP Financier'!$E$19+'BP Financier'!$C$22+'BP Financier'!$D$22+'BP Financier'!$E$22+'BP Financier'!$F$22+'BP Financier'!$F$16+'BP Financier'!$F$19))*$V6362*X6362/(1-$W6362)","v":{"v":1881.5807703763371,"d":"1,882"}},{"$f":"'BP Financier'!$F$44*(('BP Financier'!$C$22+'BP Financier'!$D$22+'BP Financier'!$E$22+'BP Financier'!$F$22)/('BP Financier'!$C$16+'BP Financier'!$C$19+'BP Financier'!$D$16+'BP Financier'!$D$19+'BP Financier'!$E$16+'BP Financier'!$E$19+'BP Financier'!$C$22+'BP Financier'!$D$22+'BP Financier'!$E$22+'BP Financier'!$F$22+'BP Financier'!$F$16+'BP Financier'!$F$19))*$V6362*Y6362/(1-$W6362)","v":{"v":1257.8523382073854,"d":"1,258"}},{"$f":"'BP Financier'!$F$44*(('BP Financier'!$C$22+'BP Financier'!$D$22+'BP Financier'!$E$22+'BP Financier'!$F$22)/('BP Financier'!$C$16+'BP Financier'!$C$19+'BP Financier'!$D$16+'BP Financier'!$D$19+'BP Financier'!$E$16+'BP Financier'!$E$19+'BP Financier'!$C$22+'BP Financier'!$D$22+'BP Financier'!$E$22+'BP Financier'!$F$22+'BP Financier'!$F$16+'BP Financier'!$F$19))*$V6362*Z6362/(1-$W6362)","v":{"v":9844.513754399952,"d":"9,845"}},{"$f":"'BP Financier'!$F$44*(('BP Financier'!$C$22+'BP Financier'!$D$22+'BP Financier'!$E$22+'BP Financier'!$F$22)/('BP Financier'!$C$16+'BP Financier'!$C$19+'BP Financier'!$D$16+'BP Financier'!$D$19+'BP Financier'!$E$16+'BP Financier'!$E$19+'BP Financier'!$C$22+'BP Financier'!$D$22+'BP Financier'!$E$22+'BP Financier'!$F$22+'BP Financier'!$F$16+'BP Financier'!$F$19))*$V6362*AA6362/(1-$W6362)","v":{"v":1216.2704427294555,"d":"1,216"}},{"$f":"'BP Financier'!$F$44*(('BP Financier'!$C$22+'BP Financier'!$D$22+'BP Financier'!$E$22+'BP Financier'!$F$22)/('BP Financier'!$C$16+'BP Financier'!$C$19+'BP Financier'!$D$16+'BP Financier'!$D$19+'BP Financier'!$E$16+'BP Financier'!$E$19+'BP Financier'!$C$22+'BP Financier'!$D$22+'BP Financier'!$E$22+'BP Financier'!$F$22+'BP Financier'!$F$16+'BP Financier'!$F$19))*$V6362*AB6362/(1-$W6362)","v":{"v":582.1465366910213,"d":"582"}},null,{"v":0.0075,"d":"0.75%"},{"$f":"Actif!$E$28/100","v":{"v":0.28900000000000003,"d":"28.90%"}},{"$f":"Actif!$E$30/100","v":{"v":0.09050000000000001,"d":"9.05%"}},{"$f":"Actif!$E$31/100","v":{"v":0.0605,"d":"6.05%"}},{"$f":"Actif!$E$32/100","v":{"v":0.47350000000000003,"d":"47.35%"}},{"$f":"Actif!$E$33/100","v":{"v":0.0585,"d":"5.85%"}},{"$f":"Actif!$E$29/100","v":{"v":0.027999999999999997,"d":"2.80%"}}]
[null,"#256",28,2030,"H","A_CAPI",{"v":0.44999999999999996,"d":"0.45"},{"v":0.38999999999999996,"d":"0.39"},0.6,0.6,85,0,{"$f":"ROUND(Primes!$P$10*V6363,2)","v":0.68},0,{"v":14782.363842404151,"d":"14,782"},{"$f":"'BP Financier'!$F$44*(('BP Financier'!$C$22+'BP Financier'!$D$22+'BP Financier'!$E$22+'BP Financier'!$F$22)/('BP Financier'!$C$16+'BP Financier'!$C$19+'BP Financier'!$D$16+'BP Financier'!$D$19+'BP Financier'!$E$16+'BP Financier'!$E$19+'BP Financier'!$C$22+'BP Financier'!$D$22+'BP Financier'!$E$22+'BP Financier'!$F$22+'BP Financier'!$F$16+'BP Financier'!$F$19))*$V6363*X6363/(1-$W6363)","v":{"v":1881.5807703763371,"d":"1,882"}},{"$f":"'BP Financier'!$F$44*(('BP Financier'!$C$22+'BP Financier'!$D$22+'BP Financier'!$E$22+'BP Financier'!$F$22)/('BP Financier'!$C$16+'BP Financier'!$C$19+'BP Financier'!$D$16+'BP Financier'!$D$19+'BP Financier'!$E$16+'BP Financier'!$E$19+'BP Financier'!$C$22+'BP Financier'!$D$22+'BP Financier'!$E$22+'BP Financier'!$F$22+'BP Financier'!$F$16+'BP Financier'!$F$19))*$V6363*Y6363/(1-$W6363)","v":{"v":1257.8523382073854,"d":"1,258"}},{"$f":"'BP Financier'!$F$44*(('BP Financier'!$C$22+'BP Financier'!$D$22+'BP Financier'!$E$22+'BP Financier'!$F$22)/('BP Financier'!$C$16+'BP Financier'!$C$19+'BP Financier'!$D$16+'BP Financier'!$D$19+'BP Financier'!$E$16+'BP Financier'!$E$19+'BP Financier'!$C$22+'BP Financier'!$D$22+'BP Financier'!$E$22+'BP Financier'!$F$22+'BP Financier'!$F$16+'BP Financier'!$F$19))*$V6363*Z6363/(1-$W6363)","v":{"v":9844.513754399952,"d":"9,845"}},{"$f":"'BP Financier'!$F$44*(('BP Financier'!$C$22+'BP Financier'!$D$22+'BP Financier'!$E$22+'BP Financier'!$F$22)/('BP Financier'!$C$16+'BP Financier'!$C$19+'BP Financier'!$D$16+'BP Financier'!$D$19+'BP Financier'!$E$16+'BP Financier'!$E$19+'BP Financier'!$C$22+'BP Financier'!$D$22+'BP Financier'!$E$22+'BP Financier'!$F$22+'BP Financier'!$F$16+'BP Financier'!$F$19))*$V6363*AA6363/(1-$W6363)","v":{"v":1216.2704427294555,"d":"1,216"}},{"$f":"'BP Financier'!$F$44*(('BP Financier'!$C$22+'BP Financier'!$D$22+'BP Financier'!$E$22+'BP Financier'!$F$22)/('BP Financier'!$C$16+'BP Financier'!$C$19+'BP Financier'!$D$16+'BP Financier'!$D$19+'BP Financier'!$E$16+'BP Financier'!$E$19+'BP Financier'!$C$22+'BP Financier'!$D$22+'BP Financier'!$E$22+'BP Financier'!$F$22+'BP Financier'!$F$16+'BP Financier'!$F$19))*$V6363*AB6363/(1-$W6363)","v":{"v":582.1465366910213,"d":"582"}},null,{"v":0.0075,"d":"0.75%"},{"$f":"Actif!$E$28/100","v":{"v":0.28900000000000003,"d":"28.90%"}},{"$f":"Actif!$E$30/100","v":{"v":0.09050000000000001,"d":"9.05%"}},{"$f":"Actif!$E$31/100","v":{"v":0.0605,"d":"6.05%"}},{"$f":"Actif!$E$32/100","v":{"v":0.47350000000000003,"d":"47.35%"}},{"$f":"Actif!$E$33/100","v":{"v":0.0585,"d":"5.85%"}},{"$f":"Actif!$E$29/100","v":{"v":0.027999999999999997,"d":"2.80%"}}]
[null,"#257",29,2026,"F","A_CAPI",{"$f":"frais_gestion_Euro*100","v":{"v":0.44999999999999996,"d":"0.45"}},{"$f":"frais_gestion_UC*100","v":{"v":0.38999999999999996,"d":"0.39"}},{"$f":"frais_distribution_FG*100","v":0.6},{"$f":"frais_distribution_UC*100","v":0.6},85,0,{"$f":"ROUND(Primes!$P$10*V6364,2)","v":0.68},0,{"v":14782.363842404151,"d":"14,782"},{"$f":"'BP Financier'!$F$44*(('BP Financier'!$C$22+'BP Financier'!$D$22+'BP Financier'!$E$22+'BP Financier'!$F$22)/('BP Financier'!$C$16+'BP Financier'!$C$19+'BP Financier'!$D$16+'BP Financier'!$D$19+'BP Financier'!$E$16+'BP Financier'!$E$19+'BP Financier'!$C$22+'BP Financier'!$D$22+'BP Financier'!$E$22+'BP Financier'!$F$22+'BP Financier'!$F$16+'BP Financier'!$F$19))*$V6364*X6364/(1-$W6364)","v":{"v":1881.5807703763371,"d":"1,882"}},{"$f":"'BP Financier'!$F$44*(('BP Financier'!$C$22+'BP Financier'!$D$22+'BP Financier'!$E$22+'BP Financier'!$F$22)/('BP Financier'!$C$16+'BP Financier'!$C$19+'BP Financier'!$D$16+'BP Financier'!$D$19+'BP Financier'!$E$16+'BP Financier'!$E$19+'BP Financier'!$C$22+'BP Financier'!$D$22+'BP Financier'!$E$22+'BP Financier'!$F$22+'BP Financier'!$F$16+'BP Financier'!$F$19))*$V6364*Y6364/(1-$W6364)","v":{"v":1257.8523382073854,"d":"1,258"}},{"$f":"'BP Financier'!$F$44*(('BP Financier'!$C$22+'BP Financier'!$D$22+'BP Financier'!$E$22+'BP Financier'!$F$22)/('BP Financier'!$C$16+'BP Financier'!$C$19+'BP Financier'!$D$16+'BP Financier'!$D$19+'BP Financier'!$E$16+'BP Financier'!$E$19+'BP Financier'!$C$22+'BP Financier'!$D$22+'BP Financier'!$E$22+'BP Financier'!$F$22+'BP Financier'!$F$16+'BP Financier'!$F$19))*$V6364*Z6364/(1-$W6364)","v":{"v":9844.513754399952,"d":"9,845"}},{"$f":"'BP Financier'!$F$44*(('BP Financier'!$C$22+'BP Financier'!$D$22+'BP Financier'!$E$22+'BP Financier'!$F$22)/('BP Financier'!$C$16+'BP Financier'!$C$19+'BP Financier'!$D$16+'BP Financier'!$D$19+'BP Financier'!$E$16+'BP Financier'!$E$19+'BP Financier'!$C$22+'BP Financier'!$D$22+'BP Financier'!$E$22+'BP Financier'!$F$22+'BP Financier'!$F$16+'BP Financier'!$F$19))*$V6364*AA6364/(1-$W6364)","v":{"v":1216.2704427294555,"d":"1,216"}},{"$f":"'BP Financier'!$F$44*(('BP Financier'!$C$22+'BP Financier'!$D$22+'BP Financier'!$E$22+'BP Financier'!$F$22)/('BP Financier'!$C$16+'BP Financier'!$C$19+'BP Financier'!$D$16+'BP Financier'!$D$19+'BP Financier'!$E$16+'BP Financier'!$E$19+'BP Financier'!$C$22+'BP Financier'!$D$22+'BP Financier'!$E$22+'BP Financier'!$F$22+'BP Financier'!$F$16+'BP Financier'!$F$19))*$V6364*AB6364/(1-$W6364)","v":{"v":582.1465366910213,"d":"582"}},null,{"v":0.0075,"d":"0.75%"},{"$f":"Actif!$E$28/100","v":{"v":0.28900000000000003,"d":"28.90%"}},{"$f":"Actif!$E$30/100","v":{"v":0.09050000000000001,"d":"9.05%"}},{"$f":"Actif!$E$31/100","v":{"v":0.0605,"d":"6.05%"}},{"$f":"Actif!$E$32/100","v":{"v":0.47350000000000003,"d":"47.35%"}},{"$f":"Actif!$E$33/100","v":{"v":0.0585,"d":"5.85%"}},{"$f":"Actif!$E$29/100","v":{"v":0.027999999999999997,"d":"2.80%"}}]
[null,"#258",29,2028,"F","A_CAPI",{"v":0.44999999999999996,"d":"0.45"},{"v":0.38999999999999996,"d":"0.39"},0.6,0.6,85,0,{"$f":"ROUND(Primes!$P$10*V6365,2)","v":0.68},0,{"v":14782.363842404151,"d":"14,782"},{"$f":"'BP Financier'!$F$44*(('BP Financier'!$C$22+'BP Financier'!$D$22+'BP Financier'!$E$22+'BP Financier'!$F$22)/('BP Financier'!$C$16+'BP Financier'!$C$19+'BP Financier'!$D$16+'BP Financier'!$D$19+'BP Financier'!$E$16+'BP Financier'!$E$19+'BP Financier'!$C$22+'BP Financier'!$D$22+'BP Financier'!$E$22+'BP Financier'!$F$22+'BP Financier'!$F$16+'BP Financier'!$F$19))*$V6365*X6365/(1-$W6365)","v":{"v":1881.5807703763371,"d":"1,882"}},{"$f":"'BP Financier'!$F$44*(('BP Financier'!$C$22+'BP Financier'!$D$22+'BP Financier'!$E$22+'BP Financier'!$F$22)/('BP Financier'!$C$16+'BP Financier'!$C$19+'BP Financier'!$D$16+'BP Financier'!$D$19+'BP Financier'!$E$16+'BP Financier'!$E$19+'BP Financier'!$C$22+'BP Financier'!$D$22+'BP Financier'!$E$22+'BP Financier'!$F$22+'BP Financier'!$F$16+'BP Financier'!$F$19))*$V6365*Y6365/(1-$W6365)","v":{"v":1257.8523382073854,"d":"1,258"}},{"$f":"'BP Financier'!$F$44*(('BP Financier'!$C$22+'BP Financier'!$D$22+'BP Financier'!$E$22+'BP Financier'!$F$22)/('BP Financier'!$C$16+'BP Financier'!$C$19+'BP Financier'!$D$16+'BP Financier'!$D$19+'BP Financier'!$E$16+'BP Financier'!$E$19+'BP Financier'!$C$22+'BP Financier'!$D$22+'BP Financier'!$E$22+'BP Financier'!$F$22+'BP Financier'!$F$16+'BP Financier'!$F$19))*$V6365*Z6365/(1-$W6365)","v":{"v":9844.513754399952,"d":"9,845"}},{"$f":"'BP Financier'!$F$44*(('BP Financier'!$C$22+'BP Financier'!$D$22+'BP Financier'!$E$22+'BP Financier'!$F$22)/('BP Financier'!$C$16+'BP Financier'!$C$19+'BP Financier'!$D$16+'BP Financier'!$D$19+'BP Financier'!$E$16+'BP Financier'!$E$19+'BP Financier'!$C$22+'BP Financier'!$D$22+'BP Financier'!$E$22+'BP Financier'!$F$22+'BP Financier'!$F$16+'BP Financier'!$F$19))*$V6365*AA6365/(1-$W6365)","v":{"v":1216.2704427294555,"d":"1,216"}},{"$f":"'BP Financier'!$F$44*(('BP Financier'!$C$22+'BP Financier'!$D$22+'BP Financier'!$E$22+'BP Financier'!$F$22)/('BP Financier'!$C$16+'BP Financier'!$C$19+'BP Financier'!$D$16+'BP Financier'!$D$19+'BP Financier'!$E$16+'BP Financier'!$E$19+'BP Financier'!$C$22+'BP Financier'!$D$22+'BP Financier'!$E$22+'BP Financier'!$F$22+'BP Financier'!$F$16+'BP Financier'!$F$19))*$V6365*AB6365/(1-$W6365)","v":{"v":582.1465366910213,"d":"582"}},null,{"v":0.0075,"d":"0.75%"},{"$f":"Actif!$E$28/100","v":{"v":0.28900000000000003,"d":"28.90%"}},{"$f":"Actif!$E$30/100","v":{"v":0.09050000000000001,"d":"9.05%"}},{"$f":"Actif!$E$31/100","v":{"v":0.0605,"d":"6.05%"}},{"$f":"Actif!$E$32/100","v":{"v":0.47350000000000003,"d":"47.35%"}},{"$f":"Actif!$E$33/100","v":{"v":0.0585,"d":"5.85%"}},{"$f":"Actif!$E$29/100","v":{"v":0.027999999999999997,"d":"2.80%"}}]
[null,"#259",29,2029,"F","A_CAPI",{"v":0.44999999999999996,"d":"0.45"},{"v":0.38999999999999996,"d":"0.39"},0.6,0.6,85,0,{"$f":"ROUND(Primes!$P$10*V6366,2)","v":0.68},0,{"v":14782.363842404151,"d":"14,782"},{"$f":"'BP Financier'!$F$44*(('BP Financier'!$C$22+'BP Financier'!$D$22+'BP Financier'!$E$22+'BP Financier'!$F$22)/('BP Financier'!$C$16+'BP Financier'!$C$19+'BP Financier'!$D$16+'BP Financier'!$D$19+'BP Financier'!$E$16+'BP Financier'!$E$19+'BP Financier'!$C$22+'BP Financier'!$D$22+'BP Financier'!$E$22+'BP Financier'!$F$22+'BP Financier'!$F$16+'BP Financier'!$F$19))*$V6366*X6366/(1-$W6366)","v":{"v":1881.5807703763371,"d":"1,882"}},{"$f":"'BP Financier'!$F$44*(('BP Financier'!$C$22+'BP Financier'!$D$22+'BP Financier'!$E$22+'BP Financier'!$F$22)/('BP Financier'!$C$16+'BP Financier'!$C$19+'BP Financier'!$D$16+'BP Financier'!$D$19+'BP Financier'!$E$16+'BP Financier'!$E$19+'BP Financier'!$C$22+'BP Financier'!$D$22+'BP Financier'!$E$22+'BP Financier'!$F$22+'BP Financier'!$F$16+'BP Financier'!$F$19))*$V6366*Y6366/(1-$W6366)","v":{"v":1257.8523382073854,"d":"1,258"}},{"$f":"'BP Financier'!$F$44*(('BP Financier'!$C$22+'BP Financier'!$D$22+'BP Financier'!$E$22+'BP Financier'!$F$22)/('BP Financier'!$C$16+'BP Financier'!$C$19+'BP Financier'!$D$16+'BP Financier'!$D$19+'BP Financier'!$E$16+'BP Financier'!$E$19+'BP Financier'!$C$22+'BP Financier'!$D$22+'BP Financier'!$E$22+'BP Financier'!$F$22+'BP Financier'!$F$16+'BP Financier'!$F$19))*$V6366*Z6366/(1-$W6366)","v":{"v":9844.513754399952,"d":"9,845"}},{"$f":"'BP Financier'!$F$44*(('BP Financier'!$C$22+'BP Financier'!$D$22+'BP Financier'!$E$22+'BP Financier'!$F$22)/('BP Financier'!$C$16+'BP Financier'!$C$19+'BP Financier'!$D$16+'BP Financier'!$D$19+'BP Financier'!$E$16+'BP Financier'!$E$19+'BP Financier'!$C$22+'BP Financier'!$D$22+'BP Financier'!$E$22+'BP Financier'!$F$22+'BP Financier'!$F$16+'BP Financier'!$F$19))*$V6366*AA6366/(1-$W6366)","v":{"v":1216.2704427294555,"d":"1,216"}},{"$f":"'BP Financier'!$F$44*(('BP Financier'!$C$22+'BP Financier'!$D$22+'BP Financier'!$E$22+'BP Financier'!$F$22)/('BP Financier'!$C$16+'BP Financier'!$C$19+'BP Financier'!$D$16+'BP Financier'!$D$19+'BP Financier'!$E$16+'BP Financier'!$E$19+'BP Financier'!$C$22+'BP Financier'!$D$22+'BP Financier'!$E$22+'BP Financier'!$F$22+'BP Financier'!$F$16+'BP Financier'!$F$19))*$V6366*AB6366/(1-$W6366)","v":{"v":582.1465366910213,"d":"582"}},null,{"v":0.0075,"d":"0.75%"},{"$f":"Actif!$E$28/100","v":{"v":0.28900000000000003,"d":"28.90%"}},{"$f":"Actif!$E$30/100","v":{"v":0.09050000000000001,"d":"9.05%"}},{"$f":"Actif!$E$31/100","v":{"v":0.0605,"d":"6.05%"}},{"$f":"Actif!$E$32/100","v":{"v":0.47350000000000003,"d":"47.35%"}},{"$f":"Actif!$E$33/100","v":{"v":0.0585,"d":"5.85%"}},{"$f":"Actif!$E$29/100","v":{"v":0.027999999999999997,"d":"2.80%"}}]
[null,"#260",29,2030,"F","A_CAPI",{"v":0.44999999999999996,"d":"0.45"},{"v":0.38999999999999996,"d":"0.39"},0.6,0.6,85,0,{"$f":"ROUND(Primes!$P$10*V6367,2)","v":0.68},0,{"v":14782.363842404151,"d":"14,782"},{"$f":"'BP Financier'!$F$44*(('BP Financier'!$C$22+'BP Financier'!$D$22+'BP Financier'!$E$22+'BP Financier'!$F$22)/('BP Financier'!$C$16+'BP Financier'!$C$19+'BP Financier'!$D$16+'BP Financier'!$D$19+'BP Financier'!$E$16+'BP Financier'!$E$19+'BP Financier'!$C$22+'BP Financier'!$D$22+'BP Financier'!$E$22+'BP Financier'!$F$22+'BP Financier'!$F$16+'BP Financier'!$F$19))*$V6367*X6367/(1-$W6367)","v":{"v":1881.5807703763371,"d":"1,882"}},{"$f":"'BP Financier'!$F$44*(('BP Financier'!$C$22+'BP Financier'!$D$22+'BP Financier'!$E$22+'BP Financier'!$F$22)/('BP Financier'!$C$16+'BP Financier'!$C$19+'BP Financier'!$D$16+'BP Financier'!$D$19+'BP Financier'!$E$16+'BP Financier'!$E$19+'BP Financier'!$C$22+'BP Financier'!$D$22+'BP Financier'!$E$22+'BP Financier'!$F$22+'BP Financier'!$F$16+'BP Financier'!$F$19))*$V6367*Y6367/(1-$W6367)","v":{"v":1257.8523382073854,"d":"1,258"}},{"$f":"'BP Financier'!$F$44*(('BP Financier'!$C$22+'BP Financier'!$D$22+'BP Financier'!$E$22+'BP Financier'!$F$22)/('BP Financier'!$C$16+'BP Financier'!$C$19+'BP Financier'!$D$16+'BP Financier'!$D$19+'BP Financier'!$E$16+'BP Financier'!$E$19+'BP Financier'!$C$22+'BP Financier'!$D$22+'BP Financier'!$E$22+'BP Financier'!$F$22+'BP Financier'!$F$16+'BP Financier'!$F$19))*$V6367*Z6367/(1-$W6367)","v":{"v":9844.513754399952,"d":"9,845"}},{"$f":"'BP Financier'!$F$44*(('BP Financier'!$C$22+'BP Financier'!$D$22+'BP Financier'!$E$22+'BP Financier'!$F$22)/('BP Financier'!$C$16+'BP Financier'!$C$19+'BP Financier'!$D$16+'BP Financier'!$D$19+'BP Financier'!$E$16+'BP Financier'!$E$19+'BP Financier'!$C$22+'BP Financier'!$D$22+'BP Financier'!$E$22+'BP Financier'!$F$22+'BP Financier'!$F$16+'BP Financier'!$F$19))*$V6367*AA6367/(1-$W6367)","v":{"v":1216.2704427294555,"d":"1,216"}},{"$f":"'BP Financier'!$F$44*(('BP Financier'!$C$22+'BP Financier'!$D$22+'BP Financier'!$E$22+'BP Financier'!$F$22)/('BP Financier'!$C$16+'BP Financier'!$C$19+'BP Financier'!$D$16+'BP Financier'!$D$19+'BP Financier'!$E$16+'BP Financier'!$E$19+'BP Financier'!$C$22+'BP Financier'!$D$22+'BP Financier'!$E$22+'BP Financier'!$F$22+'BP Financier'!$F$16+'BP Financier'!$F$19))*$V6367*AB6367/(1-$W6367)","v":{"v":582.1465366910213,"d":"582"}},null,{"v":0.0075,"d":"0.75%"},{"$f":"Actif!$E$28/100","v":{"v":0.28900000000000003,"d":"28.90%"}},{"$f":"Actif!$E$30/100","v":{"v":0.09050000000000001,"d":"9.05%"}},{"$f":"Actif!$E$31/100","v":{"v":0.0605,"d":"6.05%"}},{"$f":"Actif!$E$32/100","v":{"v":0.47350000000000003,"d":"47.35%"}},{"$f":"Actif!$E$33/100","v":{"v":0.0585,"d":"5.85%"}},{"$f":"Actif!$E$29/100","v":{"v":0.027999999999999997,"d":"2.80%"}}]
[null,"#261",30,2026,"H","A_CAPI",{"v":0.44999999999999996,"d":"0.45"},{"v":0.38999999999999996,"d":"0.39"},0.6,0.6,85,0,{"$f":"ROUND(Primes!$P$10*V6368,2)","v":0.68},0,{"v":14782.363842404151,"d":"14,782"},{"$f":"'BP Financier'!$F$44*(('BP Financier'!$C$22+'BP Financier'!$D$22+'BP Financier'!$E$22+'BP Financier'!$F$22)/('BP Financier'!$C$16+'BP Financier'!$C$19+'BP Financier'!$D$16+'BP Financier'!$D$19+'BP Financier'!$E$16+'BP Financier'!$E$19+'BP Financier'!$C$22+'BP Financier'!$D$22+'BP Financier'!$E$22+'BP Financier'!$F$22+'BP Financier'!$F$16+'BP Financier'!$F$19))*$V6368*X6368/(1-$W6368)","v":{"v":1881.5807703763371,"d":"1,882"}},{"$f":"'BP Financier'!$F$44*(('BP Financier'!$C$22+'BP Financier'!$D$22+'BP Financier'!$E$22+'BP Financier'!$F$22)/('BP Financier'!$C$16+'BP Financier'!$C$19+'BP Financier'!$D$16+'BP Financier'!$D$19+'BP Financier'!$E$16+'BP Financier'!$E$19+'BP Financier'!$C$22+'BP Financier'!$D$22+'BP Financier'!$E$22+'BP Financier'!$F$22+'BP Financier'!$F$16+'BP Financier'!$F$19))*$V6368*Y6368/(1-$W6368)","v":{"v":1257.8523382073854,"d":"1,258"}},{"$f":"'BP Financier'!$F$44*(('BP Financier'!$C$22+'BP Financier'!$D$22+'BP Financier'!$E$22+'BP Financier'!$F$22)/('BP Financier'!$C$16+'BP Financier'!$C$19+'BP Financier'!$D$16+'BP Financier'!$D$19+'BP Financier'!$E$16+'BP Financier'!$E$19+'BP Financier'!$C$22+'BP Financier'!$D$22+'BP Financier'!$E$22+'BP Financier'!$F$22+'BP Financier'!$F$16+'BP Financier'!$F$19))*$V6368*Z6368/(1-$W6368)","v":{"v":9844.513754399952,"d":"9,845"}},{"$f":"'BP Financier'!$F$44*(('BP Financier'!$C$22+'BP Financier'!$D$22+'BP Financier'!$E$22+'BP Financier'!$F$22)/('BP Financier'!$C$16+'BP Financier'!$C$19+'BP Financier'!$D$16+'BP Financier'!$D$19+'BP Financier'!$E$16+'BP Financier'!$E$19+'BP Financier'!$C$22+'BP Financier'!$D$22+'BP Financier'!$E$22+'BP Financier'!$F$22+'BP Financier'!$F$16+'BP Financier'!$F$19))*$V6368*AA6368/(1-$W6368)","v":{"v":1216.2704427294555,"d":"1,216"}},{"$f":"'BP Financier'!$F$44*(('BP Financier'!$C$22+'BP Financier'!$D$22+'BP Financier'!$E$22+'BP Financier'!$F$22)/('BP Financier'!$C$16+'BP Financier'!$C$19+'BP Financier'!$D$16+'BP Financier'!$D$19+'BP Financier'!$E$16+'BP Financier'!$E$19+'BP Financier'!$C$22+'BP Financier'!$D$22+'BP Financier'!$E$22+'BP Financier'!$F$22+'BP Financier'!$F$16+'BP Financier'!$F$19))*$V6368*AB6368/(1-$W6368)","v":{"v":582.1465366910213,"d":"582"}},null,{"v":0.0075,"d":"0.75%"},{"$f":"Actif!$E$28/100","v":{"v":0.28900000000000003,"d":"28.90%"}},{"$f":"Actif!$E$30/100","v":{"v":0.09050000000000001,"d":"9.05%"}},{"$f":"Actif!$E$31/100","v":{"v":0.0605,"d":"6.05%"}},{"$f":"Actif!$E$32/100","v":{"v":0.47350000000000003,"d":"47.35%"}},{"$f":"Actif!$E$33/100","v":{"v":0.0585,"d":"5.85%"}},{"$f":"Actif!$E$29/100","v":{"v":0.027999999999999997,"d":"2.80%"}}]
[null,"#262",30,2028,"H","A_CAPI",{"v":0.44999999999999996,"d":"0.45"},{"v":0.38999999999999996,"d":"0.39"},0.6,0.6,85,0,{"$f":"ROUND(Primes!$P$10*V6369,2)","v":0.68},0,{"v":14782.363842404151,"d":"14,782"},{"$f":"'BP Financier'!$F$44*(('BP Financier'!$C$22+'BP Financier'!$D$22+'BP Financier'!$E$22+'BP Financier'!$F$22)/('BP Financier'!$C$16+'BP Financier'!$C$19+'BP Financier'!$D$16+'BP Financier'!$D$19+'BP Financier'!$E$16+'BP Financier'!$E$19+'BP Financier'!$C$22+'BP Financier'!$D$22+'BP Financier'!$E$22+'BP Financier'!$F$22+'BP Financier'!$F$16+'BP Financier'!$F$19))*$V6369*X6369/(1-$W6369)","v":{"v":1881.5807703763371,"d":"1,882"}},{"$f":"'BP Financier'!$F$44*(('BP Financier'!$C$22+'BP Financier'!$D$22+'BP Financier'!$E$22+'BP Financier'!$F$22)/('BP Financier'!$C$16+'BP Financier'!$C$19+'BP Financier'!$D$16+'BP Financier'!$D$19+'BP Financier'!$E$16+'BP Financier'!$E$19+'BP Financier'!$C$22+'BP Financier'!$D$22+'BP Financier'!$E$22+'BP Financier'!$F$22+'BP Financier'!$F$16+'BP Financier'!$F$19))*$V6369*Y6369/(1-$W6369)","v":{"v":1257.8523382073854,"d":"1,258"}},{"$f":"'BP Financier'!$F$44*(('BP Financier'!$C$22+'BP Financier'!$D$22+'BP Financier'!$E$22+'BP Financier'!$F$22)/('BP Financier'!$C$16+'BP Financier'!$C$19+'BP Financier'!$D$16+'BP Financier'!$D$19+'BP Financier'!$E$16+'BP Financier'!$E$19+'BP Financier'!$C$22+'BP Financier'!$D$22+'BP Financier'!$E$22+'BP Financier'!$F$22+'BP Financier'!$F$16+'BP Financier'!$F$19))*$V6369*Z6369/(1-$W6369)","v":{"v":9844.513754399952,"d":"9,845"}},{"$f":"'BP Financier'!$F$44*(('BP Financier'!$C$22+'BP Financier'!$D$22+'BP Financier'!$E$22+'BP Financier'!$F$22)/('BP Financier'!$C$16+'BP Financier'!$C$19+'BP Financier'!$D$16+'BP Financier'!$D$19+'BP Financier'!$E$16+'BP Financier'!$E$19+'BP Financier'!$C$22+'BP Financier'!$D$22+'BP Financier'!$E$22+'BP Financier'!$F$22+'BP Financier'!$F$16+'BP Financier'!$F$19))*$V6369*AA6369/(1-$W6369)","v":{"v":1216.2704427294555,"d":"1,216"}},{"$f":"'BP Financier'!$F$44*(('BP Financier'!$C$22+'BP Financier'!$D$22+'BP Financier'!$E$22+'BP Financier'!$F$22)/('BP Financier'!$C$16+'BP Financier'!$C$19+'BP Financier'!$D$16+'BP Financier'!$D$19+'BP Financier'!$E$16+'BP Financier'!$E$19+'BP Financier'!$C$22+'BP Financier'!$D$22+'BP Financier'!$E$22+'BP Financier'!$F$22+'BP Financier'!$F$16+'BP Financier'!$F$19))*$V6369*AB6369/(1-$W6369)","v":{"v":582.1465366910213,"d":"582"}},null,{"v":0.0075,"d":"0.75%"},{"$f":"Actif!$E$28/100","v":{"v":0.28900000000000003,"d":"28.90%"}},{"$f":"Actif!$E$30/100","v":{"v":0.09050000000000001,"d":"9.05%"}},{"$f":"Actif!$E$31/100","v":{"v":0.0605,"d":"6.05%"}},{"$f":"Actif!$E$32/100","v":{"v":0.47350000000000003,"d":"47.35%"}},{"$f":"Actif!$E$33/100","v":{"v":0.0585,"d":"5.85%"}},{"$f":"Actif!$E$29/100","v":{"v":0.027999999999999997,"d":"2.80%"}}]
[null,"#263",30,2029,"H","A_CAPI",{"v":0.44999999999999996,"d":"0.45"},{"v":0.38999999999999996,"d":"0.39"},0.6,0.6,85,0,{"$f":"ROUND(Primes!$P$10*V6370,2)","v":0.68},0,{"v":14782.363842404151,"d":"14,782"},{"$f":"'BP Financier'!$F$44*(('BP Financier'!$C$22+'BP Financier'!$D$22+'BP Financier'!$E$22+'BP Financier'!$F$22)/('BP Financier'!$C$16+'BP Financier'!$C$19+'BP Financier'!$D$16+'BP Financier'!$D$19+'BP Financier'!$E$16+'BP Financier'!$E$19+'BP Financier'!$C$22+'BP Financier'!$D$22+'BP Financier'!$E$22+'BP Financier'!$F$22+'BP Financier'!$F$16+'BP Financier'!$F$19))*$V6370*X6370/(1-$W6370)","v":{"v":1881.5807703763371,"d":"1,882"}},{"$f":"'BP Financier'!$F$44*(('BP Financier'!$C$22+'BP Financier'!$D$22+'BP Financier'!$E$22+'BP Financier'!$F$22)/('BP Financier'!$C$16+'BP Financier'!$C$19+'BP Financier'!$D$16+'BP Financier'!$D$19+'BP Financier'!$E$16+'BP Financier'!$E$19+'BP Financier'!$C$22+'BP Financier'!$D$22+'BP Financier'!$E$22+'BP Financier'!$F$22+'BP Financier'!$F$16+'BP Financier'!$F$19))*$V6370*Y6370/(1-$W6370)","v":{"v":1257.8523382073854,"d":"1,258"}},{"$f":"'BP Financier'!$F$44*(('BP Financier'!$C$22+'BP Financier'!$D$22+'BP Financier'!$E$22+'BP Financier'!$F$22)/('BP Financier'!$C$16+'BP Financier'!$C$19+'BP Financier'!$D$16+'BP Financier'!$D$19+'BP Financier'!$E$16+'BP Financier'!$E$19+'BP Financier'!$C$22+'BP Financier'!$D$22+'BP Financier'!$E$22+'BP Financier'!$F$22+'BP Financier'!$F$16+'BP Financier'!$F$19))*$V6370*Z6370/(1-$W6370)","v":{"v":9844.513754399952,"d":"9,845"}},{"$f":"'BP Financier'!$F$44*(('BP Financier'!$C$22+'BP Financier'!$D$22+'BP Financier'!$E$22+'BP Financier'!$F$22)/('BP Financier'!$C$16+'BP Financier'!$C$19+'BP Financier'!$D$16+'BP Financier'!$D$19+'BP Financier'!$E$16+'BP Financier'!$E$19+'BP Financier'!$C$22+'BP Financier'!$D$22+'BP Financier'!$E$22+'BP Financier'!$F$22+'BP Financier'!$F$16+'BP Financier'!$F$19))*$V6370*AA6370/(1-$W6370)","v":{"v":1216.2704427294555,"d":"1,216"}},{"$f":"'BP Financier'!$F$44*(('BP Financier'!$C$22+'BP Financier'!$D$22+'BP Financier'!$E$22+'BP Financier'!$F$22)/('BP Financier'!$C$16+'BP Financier'!$C$19+'BP Financier'!$D$16+'BP Financier'!$D$19+'BP Financier'!$E$16+'BP Financier'!$E$19+'BP Financier'!$C$22+'BP Financier'!$D$22+'BP Financier'!$E$22+'BP Financier'!$F$22+'BP Financier'!$F$16+'BP Financier'!$F$19))*$V6370*AB6370/(1-$W6370)","v":{"v":582.1465366910213,"d":"582"}},null,{"v":0.0075,"d":"0.75%"},{"$f":"Actif!$E$28/100","v":{"v":0.28900000000000003,"d":"28.90%"}},{"$f":"Actif!$E$30/100","v":{"v":0.09050000000000001,"d":"9.05%"}},{"$f":"Actif!$E$31/100","v":{"v":0.0605,"d":"6.05%"}},{"$f":"Actif!$E$32/100","v":{"v":0.47350000000000003,"d":"47.35%"}},{"$f":"Actif!$E$33/100","v":{"v":0.0585,"d":"5.85%"}},{"$f":"Actif!$E$29/100","v":{"v":0.027999999999999997,"d":"2.80%"}}]
[null,"#264",30,2030,"H","A_CAPI",{"v":0.44999999999999996,"d":"0.45"},{"v":0.38999999999999996,"d":"0.39"},0.6,0.6,85,0,{"$f":"ROUND(Primes!$P$10*V6371,2)","v":0.68},0,{"v":14782.363842404151,"d":"14,782"},{"$f":"'BP Financier'!$F$44*(('BP Financier'!$C$22+'BP Financier'!$D$22+'BP Financier'!$E$22+'BP Financier'!$F$22)/('BP Financier'!$C$16+'BP Financier'!$C$19+'BP Financier'!$D$16+'BP Financier'!$D$19+'BP Financier'!$E$16+'BP Financier'!$E$19+'BP Financier'!$C$22+'BP Financier'!$D$22+'BP Financier'!$E$22+'BP Financier'!$F$22+'BP Financier'!$F$16+'BP Financier'!$F$19))*$V6371*X6371/(1-$W6371)","v":{"v":1881.5807703763371,"d":"1,882"}},{"$f":"'BP Financier'!$F$44*(('BP Financier'!$C$22+'BP Financier'!$D$22+'BP Financier'!$E$22+'BP Financier'!$F$22)/('BP Financier'!$C$16+'BP Financier'!$C$19+'BP Financier'!$D$16+'BP Financier'!$D$19+'BP Financier'!$E$16+'BP Financier'!$E$19+'BP Financier'!$C$22+'BP Financier'!$D$22+'BP Financier'!$E$22+'BP Financier'!$F$22+'BP Financier'!$F$16+'BP Financier'!$F$19))*$V6371*Y6371/(1-$W6371)","v":{"v":1257.8523382073854,"d":"1,258"}},{"$f":"'BP Financier'!$F$44*(('BP Financier'!$C$22+'BP Financier'!$D$22+'BP Financier'!$E$22+'BP Financier'!$F$22)/('BP Financier'!$C$16+'BP Financier'!$C$19+'BP Financier'!$D$16+'BP Financier'!$D$19+'BP Financier'!$E$16+'BP Financier'!$E$19+'BP Financier'!$C$22+'BP Financier'!$D$22+'BP Financier'!$E$22+'BP Financier'!$F$22+'BP Financier'!$F$16+'BP Financier'!$F$19))*$V6371*Z6371/(1-$W6371)","v":{"v":9844.513754399952,"d":"9,845"}},{"$f":"'BP Financier'!$F$44*(('BP Financier'!$C$22+'BP Financier'!$D$22+'BP Financier'!$E$22+'BP Financier'!$F$22)/('BP Financier'!$C$16+'BP Financier'!$C$19+'BP Financier'!$D$16+'BP Financier'!$D$19+'BP Financier'!$E$16+'BP Financier'!$E$19+'BP Financier'!$C$22+'BP Financier'!$D$22+'BP Financier'!$E$22+'BP Financier'!$F$22+'BP Financier'!$F$16+'BP Financier'!$F$19))*$V6371*AA6371/(1-$W6371)","v":{"v":1216.2704427294555,"d":"1,216"}},{"$f":"'BP Financier'!$F$44*(('BP Financier'!$C$22+'BP Financier'!$D$22+'BP Financier'!$E$22+'BP Financier'!$F$22)/('BP Financier'!$C$16+'BP Financier'!$C$19+'BP Financier'!$D$16+'BP Financier'!$D$19+'BP Financier'!$E$16+'BP Financier'!$E$19+'BP Financier'!$C$22+'BP Financier'!$D$22+'BP Financier'!$E$22+'BP Financier'!$F$22+'BP Financier'!$F$16+'BP Financier'!$F$19))*$V6371*AB6371/(1-$W6371)","v":{"v":582.1465366910213,"d":"582"}},null,{"v":0.0075,"d":"0.75%"},{"$f":"Actif!$E$28/100","v":{"v":0.28900000000000003,"d":"28.90%"}},{"$f":"Actif!$E$30/100","v":{"v":0.09050000000000001,"d":"9.05%"}},{"$f":"Actif!$E$31/100","v":{"v":0.0605,"d":"6.05%"}},{"$f":"Actif!$E$32/100","v":{"v":0.47350000000000003,"d":"47.35%"}},{"$f":"Actif!$E$33/100","v":{"v":0.0585,"d":"5.85%"}},{"$f":"Actif!$E$29/100","v":{"v":0.027999999999999997,"d":"2.80%"}}]
[null,"#265",31,2026,"H","A_CAPI",{"v":0.44999999999999996,"d":"0.45"},{"v":0.38999999999999996,"d":"0.39"},0.6,0.6,85,0,{"$f":"ROUND(Primes!$P$10*V6372,2)","v":0.68},0,{"v":14782.363842404151,"d":"14,782"},{"$f":"'BP Financier'!$F$44*(('BP Financier'!$C$22+'BP Financier'!$D$22+'BP Financier'!$E$22+'BP Financier'!$F$22)/('BP Financier'!$C$16+'BP Financier'!$C$19+'BP Financier'!$D$16+'BP Financier'!$D$19+'BP Financier'!$E$16+'BP Financier'!$E$19+'BP Financier'!$C$22+'BP Financier'!$D$22+'BP Financier'!$E$22+'BP Financier'!$F$22+'BP Financier'!$F$16+'BP Financier'!$F$19))*$V6372*X6372/(1-$W6372)","v":{"v":1881.5807703763371,"d":"1,882"}},{"$f":"'BP Financier'!$F$44*(('BP Financier'!$C$22+'BP Financier'!$D$22+'BP Financier'!$E$22+'BP Financier'!$F$22)/('BP Financier'!$C$16+'BP Financier'!$C$19+'BP Financier'!$D$16+'BP Financier'!$D$19+'BP Financier'!$E$16+'BP Financier'!$E$19+'BP Financier'!$C$22+'BP Financier'!$D$22+'BP Financier'!$E$22+'BP Financier'!$F$22+'BP Financier'!$F$16+'BP Financier'!$F$19))*$V6372*Y6372/(1-$W6372)","v":{"v":1257.8523382073854,"d":"1,258"}},{"$f":"'BP Financier'!$F$44*(('BP Financier'!$C$22+'BP Financier'!$D$22+'BP Financier'!$E$22+'BP Financier'!$F$22)/('BP Financier'!$C$16+'BP Financier'!$C$19+'BP Financier'!$D$16+'BP Financier'!$D$19+'BP Financier'!$E$16+'BP Financier'!$E$19+'BP Financier'!$C$22+'BP Financier'!$D$22+'BP Financier'!$E$22+'BP Financier'!$F$22+'BP Financier'!$F$16+'BP Financier'!$F$19))*$V6372*Z6372/(1-$W6372)","v":{"v":9844.513754399952,"d":"9,845"}},{"$f":"'BP Financier'!$F$44*(('BP Financier'!$C$22+'BP Financier'!$D$22+'BP Financier'!$E$22+'BP Financier'!$F$22)/('BP Financier'!$C$16+'BP Financier'!$C$19+'BP Financier'!$D$16+'BP Financier'!$D$19+'BP Financier'!$E$16+'BP Financier'!$E$19+'BP Financier'!$C$22+'BP Financier'!$D$22+'BP Financier'!$E$22+'BP Financier'!$F$22+'BP Financier'!$F$16+'BP Financier'!$F$19))*$V6372*AA6372/(1-$W6372)","v":{"v":1216.2704427294555,"d":"1,216"}},{"$f":"'BP Financier'!$F$44*(('BP Financier'!$C$22+'BP Financier'!$D$22+'BP Financier'!$E$22+'BP Financier'!$F$22)/('BP Financier'!$C$16+'BP Financier'!$C$19+'BP Financier'!$D$16+'BP Financier'!$D$19+'BP Financier'!$E$16+'BP Financier'!$E$19+'BP Financier'!$C$22+'BP Financier'!$D$22+'BP Financier'!$E$22+'BP Financier'!$F$22+'BP Financier'!$F$16+'BP Financier'!$F$19))*$V6372*AB6372/(1-$W6372)","v":{"v":582.1465366910213,"d":"582"}},null,{"v":0.0075,"d":"0.75%"},{"$f":"Actif!$E$28/100","v":{"v":0.28900000000000003,"d":"28.90%"}},{"$f":"Actif!$E$30/100","v":{"v":0.09050000000000001,"d":"9.05%"}},{"$f":"Actif!$E$31/100","v":{"v":0.0605,"d":"6.05%"}},{"$f":"Actif!$E$32/100","v":{"v":0.47350000000000003,"d":"47.35%"}},{"$f":"Actif!$E$33/100","v":{"v":0.0585,"d":"5.85%"}},{"$f":"Actif!$E$29/100","v":{"v":0.027999999999999997,"d":"2.80%"}}]
[null,"#266",31,2028,"H","A_CAPI",{"v":0.44999999999999996,"d":"0.45"},{"v":0.38999999999999996,"d":"0.39"},0.6,0.6,85,0,{"$f":"ROUND(Primes!$P$10*V6373,2)","v":0.68},0,{"v":14782.363842404151,"d":"14,782"},{"$f":"'BP Financier'!$F$44*(('BP Financier'!$C$22+'BP Financier'!$D$22+'BP Financier'!$E$22+'BP Financier'!$F$22)/('BP Financier'!$C$16+'BP Financier'!$C$19+'BP Financier'!$D$16+'BP Financier'!$D$19+'BP Financier'!$E$16+'BP Financier'!$E$19+'BP Financier'!$C$22+'BP Financier'!$D$22+'BP Financier'!$E$22+'BP Financier'!$F$22+'BP Financier'!$F$16+'BP Financier'!$F$19))*$V6373*X6373/(1-$W6373)","v":{"v":1881.5807703763371,"d":"1,882"}},{"$f":"'BP Financier'!$F$44*(('BP Financier'!$C$22+'BP Financier'!$D$22+'BP Financier'!$E$22+'BP Financier'!$F$22)/('BP Financier'!$C$16+'BP Financier'!$C$19+'BP Financier'!$D$16+'BP Financier'!$D$19+'BP Financier'!$E$16+'BP Financier'!$E$19+'BP Financier'!$C$22+'BP Financier'!$D$22+'BP Financier'!$E$22+'BP Financier'!$F$22+'BP Financier'!$F$16+'BP Financier'!$F$19))*$V6373*Y6373/(1-$W6373)","v":{"v":1257.8523382073854,"d":"1,258"}},{"$f":"'BP Financier'!$F$44*(('BP Financier'!$C$22+'BP Financier'!$D$22+'BP Financier'!$E$22+'BP Financier'!$F$22)/('BP Financier'!$C$16+'BP Financier'!$C$19+'BP Financier'!$D$16+'BP Financier'!$D$19+'BP Financier'!$E$16+'BP Financier'!$E$19+'BP Financier'!$C$22+'BP Financier'!$D$22+'BP Financier'!$E$22+'BP Financier'!$F$22+'BP Financier'!$F$16+'BP Financier'!$F$19))*$V6373*Z6373/(1-$W6373)","v":{"v":9844.513754399952,"d":"9,845"}},{"$f":"'BP Financier'!$F$44*(('BP Financier'!$C$22+'BP Financier'!$D$22+'BP Financier'!$E$22+'BP Financier'!$F$22)/('BP Financier'!$C$16+'BP Financier'!$C$19+'BP Financier'!$D$16+'BP Financier'!$D$19+'BP Financier'!$E$16+'BP Financier'!$E$19+'BP Financier'!$C$22+'BP Financier'!$D$22+'BP Financier'!$E$22+'BP Financier'!$F$22+'BP Financier'!$F$16+'BP Financier'!$F$19))*$V6373*AA6373/(1-$W6373)","v":{"v":1216.2704427294555,"d":"1,216"}},{"$f":"'BP Financier'!$F$44*(('BP Financier'!$C$22+'BP Financier'!$D$22+'BP Financier'!$E$22+'BP Financier'!$F$22)/('BP Financier'!$C$16+'BP Financier'!$C$19+'BP Financier'!$D$16+'BP Financier'!$D$19+'BP Financier'!$E$16+'BP Financier'!$E$19+'BP Financier'!$C$22+'BP Financier'!$D$22+'BP Financier'!$E$22+'BP Financier'!$F$22+'BP Financier'!$F$16+'BP Financier'!$F$19))*$V6373*AB6373/(1-$W6373)","v":{"v":582.1465366910213,"d":"582"}},null,{"v":0.0075,"d":"0.75%"},{"$f":"Actif!$E$28/100","v":{"v":0.28900000000000003,"d":"28.90%"}},{"$f":"Actif!$E$30/100","v":{"v":0.09050000000000001,"d":"9.05%"}},{"$f":"Actif!$E$31/100","v":{"v":0.0605,"d":"6.05%"}},{"$f":"Actif!$E$32/100","v":{"v":0.47350000000000003,"d":"47.35%"}},{"$f":"Actif!$E$33/100","v":{"v":0.0585,"d":"5.85%"}},{"$f":"Actif!$E$29/100","v":{"v":0.027999999999999997,"d":"2.80%"}}]
[null,"#267",31,2029,"H","A_CAPI",{"v":0.44999999999999996,"d":"0.45"},{"v":0.38999999999999996,"d":"0.39"},0.6,0.6,85,0,{"$f":"ROUND(Primes!$P$10*V6374,2)","v":0.68},0,{"v":14782.363842404151,"d":"14,782"},{"$f":"'BP Financier'!$F$44*(('BP Financier'!$C$22+'BP Financier'!$D$22+'BP Financier'!$E$22+'BP Financier'!$F$22)/('BP Financier'!$C$16+'BP Financier'!$C$19+'BP Financier'!$D$16+'BP Financier'!$D$19+'BP Financier'!$E$16+'BP Financier'!$E$19+'BP Financier'!$C$22+'BP Financier'!$D$22+'BP Financier'!$E$22+'BP Financier'!$F$22+'BP Financier'!$F$16+'BP Financier'!$F$19))*$V6374*X6374/(1-$W6374)","v":{"v":1881.5807703763371,"d":"1,882"}},{"$f":"'BP Financier'!$F$44*(('BP Financier'!$C$22+'BP Financier'!$D$22+'BP Financier'!$E$22+'BP Financier'!$F$22)/('BP Financier'!$C$16+'BP Financier'!$C$19+'BP Financier'!$D$16+'BP Financier'!$D$19+'BP Financier'!$E$16+'BP Financier'!$E$19+'BP Financier'!$C$22+'BP Financier'!$D$22+'BP Financier'!$E$22+'BP Financier'!$F$22+'BP Financier'!$F$16+'BP Financier'!$F$19))*$V6374*Y6374/(1-$W6374)","v":{"v":1257.8523382073854,"d":"1,258"}},{"$f":"'BP Financier'!$F$44*(('BP Financier'!$C$22+'BP Financier'!$D$22+'BP Financier'!$E$22+'BP Financier'!$F$22)/('BP Financier'!$C$16+'BP Financier'!$C$19+'BP Financier'!$D$16+'BP Financier'!$D$19+'BP Financier'!$E$16+'BP Financier'!$E$19+'BP Financier'!$C$22+'BP Financier'!$D$22+'BP Financier'!$E$22+'BP Financier'!$F$22+'BP Financier'!$F$16+'BP Financier'!$F$19))*$V6374*Z6374/(1-$W6374)","v":{"v":9844.513754399952,"d":"9,845"}},{"$f":"'BP Financier'!$F$44*(('BP Financier'!$C$22+'BP Financier'!$D$22+'BP Financier'!$E$22+'BP Financier'!$F$22)/('BP Financier'!$C$16+'BP Financier'!$C$19+'BP Financier'!$D$16+'BP Financier'!$D$19+'BP Financier'!$E$16+'BP Financier'!$E$19+'BP Financier'!$C$22+'BP Financier'!$D$22+'BP Financier'!$E$22+'BP Financier'!$F$22+'BP Financier'!$F$16+'BP Financier'!$F$19))*$V6374*AA6374/(1-$W6374)","v":{"v":1216.2704427294555,"d":"1,216"}},{"$f":"'BP Financier'!$F$44*(('BP Financier'!$C$22+'BP Financier'!$D$22+'BP Financier'!$E$22+'BP Financier'!$F$22)/('BP Financier'!$C$16+'BP Financier'!$C$19+'BP Financier'!$D$16+'BP Financier'!$D$19+'BP Financier'!$E$16+'BP Financier'!$E$19+'BP Financier'!$C$22+'BP Financier'!$D$22+'BP Financier'!$E$22+'BP Financier'!$F$22+'BP Financier'!$F$16+'BP Financier'!$F$19))*$V6374*AB6374/(1-$W6374)","v":{"v":582.1465366910213,"d":"582"}},null,{"v":0.0075,"d":"0.75%"},{"$f":"Actif!$E$28/100","v":{"v":0.28900000000000003,"d":"28.90%"}},{"$f":"Actif!$E$30/100","v":{"v":0.09050000000000001,"d":"9.05%"}},{"$f":"Actif!$E$31/100","v":{"v":0.0605,"d":"6.05%"}},{"$f":"Actif!$E$32/100","v":{"v":0.47350000000000003,"d":"47.35%"}},{"$f":"Actif!$E$33/100","v":{"v":0.0585,"d":"5.85%"}},{"$f":"Actif!$E$29/100","v":{"v":0.027999999999999997,"d":"2.80%"}}]
[null,"#268",31,2030,"H","A_CAPI",{"v":0.44999999999999996,"d":"0.45"},{"v":0.38999999999999996,"d":"0.39"},0.6,0.6,85,0,{"$f":"ROUND(Primes!$P$10*V6375,2)","v":0.68},0,{"v":14782.363842404151,"d":"14,782"},{"$f":"'BP Financier'!$F$44*(('BP Financier'!$C$22+'BP Financier'!$D$22+'BP Financier'!$E$22+'BP Financier'!$F$22)/('BP Financier'!$C$16+'BP Financier'!$C$19+'BP Financier'!$D$16+'BP Financier'!$D$19+'BP Financier'!$E$16+'BP Financier'!$E$19+'BP Financier'!$C$22+'BP Financier'!$D$22+'BP Financier'!$E$22+'BP Financier'!$F$22+'BP Financier'!$F$16+'BP Financier'!$F$19))*$V6375*X6375/(1-$W6375)","v":{"v":1881.5807703763371,"d":"1,882"}},{"$f":"'BP Financier'!$F$44*(('BP Financier'!$C$22+'BP Financier'!$D$22+'BP Financier'!$E$22+'BP Financier'!$F$22)/('BP Financier'!$C$16+'BP Financier'!$C$19+'BP Financier'!$D$16+'BP Financier'!$D$19+'BP Financier'!$E$16+'BP Financier'!$E$19+'BP Financier'!$C$22+'BP Financier'!$D$22+'BP Financier'!$E$22+'BP Financier'!$F$22+'BP Financier'!$F$16+'BP Financier'!$F$19))*$V6375*Y6375/(1-$W6375)","v":{"v":1257.8523382073854,"d":"1,258"}},{"$f":"'BP Financier'!$F$44*(('BP Financier'!$C$22+'BP Financier'!$D$22+'BP Financier'!$E$22+'BP Financier'!$F$22)/('BP Financier'!$C$16+'BP Financier'!$C$19+'BP Financier'!$D$16+'BP Financier'!$D$19+'BP Financier'!$E$16+'BP Financier'!$E$19+'BP Financier'!$C$22+'BP Financier'!$D$22+'BP Financier'!$E$22+'BP Financier'!$F$22+'BP Financier'!$F$16+'BP Financier'!$F$19))*$V6375*Z6375/(1-$W6375)","v":{"v":9844.513754399952,"d":"9,845"}},{"$f":"'BP Financier'!$F$44*(('BP Financier'!$C$22+'BP Financier'!$D$22+'BP Financier'!$E$22+'BP Financier'!$F$22)/('BP Financier'!$C$16+'BP Financier'!$C$19+'BP Financier'!$D$16+'BP Financier'!$D$19+'BP Financier'!$E$16+'BP Financier'!$E$19+'BP Financier'!$C$22+'BP Financier'!$D$22+'BP Financier'!$E$22+'BP Financier'!$F$22+'BP Financier'!$F$16+'BP Financier'!$F$19))*$V6375*AA6375/(1-$W6375)","v":{"v":1216.2704427294555,"d":"1,216"}},{"$f":"'BP Financier'!$F$44*(('BP Financier'!$C$22+'BP Financier'!$D$22+'BP Financier'!$E$22+'BP Financier'!$F$22)/('BP Financier'!$C$16+'BP Financier'!$C$19+'BP Financier'!$D$16+'BP Financier'!$D$19+'BP Financier'!$E$16+'BP Financier'!$E$19+'BP Financier'!$C$22+'BP Financier'!$D$22+'BP Financier'!$E$22+'BP Financier'!$F$22+'BP Financier'!$F$16+'BP Financier'!$F$19))*$V6375*AB6375/(1-$W6375)","v":{"v":582.1465366910213,"d":"582"}},null,{"v":0.0075,"d":"0.75%"},{"$f":"Actif!$E$28/100","v":{"v":0.28900000000000003,"d":"28.90%"}},{"$f":"Actif!$E$30/100","v":{"v":0.09050000000000001,"d":"9.05%"}},{"$f":"Actif!$E$31/100","v":{"v":0.0605,"d":"6.05%"}},{"$f":"Actif!$E$32/100","v":{"v":0.47350000000000003,"d":"47.35%"}},{"$f":"Actif!$E$33/100","v":{"v":0.0585,"d":"5.85%"}},{"$f":"Actif!$E$29/100","v":{"v":0.027999999999999997,"d":"2.80%"}}]
[null,"#269",32,2026,"F","A_CAPI",{"v":0.44999999999999996,"d":"0.45"},{"v":0.38999999999999996,"d":"0.39"},0.6,0.6,85,0,{"$f":"ROUND(Primes!$P$10*V6376,2)","v":0.68},0,{"v":14782.363842404151,"d":"14,782"},{"$f":"'BP Financier'!$F$44*(('BP Financier'!$C$22+'BP Financier'!$D$22+'BP Financier'!$E$22+'BP Financier'!$F$22)/('BP Financier'!$C$16+'BP Financier'!$C$19+'BP Financier'!$D$16+'BP Financier'!$D$19+'BP Financier'!$E$16+'BP Financier'!$E$19+'BP Financier'!$C$22+'BP Financier'!$D$22+'BP Financier'!$E$22+'BP Financier'!$F$22+'BP Financier'!$F$16+'BP Financier'!$F$19))*$V6376*X6376/(1-$W6376)","v":{"v":1881.5807703763371,"d":"1,882"}},{"$f":"'BP Financier'!$F$44*(('BP Financier'!$C$22+'BP Financier'!$D$22+'BP Financier'!$E$22+'BP Financier'!$F$22)/('BP Financier'!$C$16+'BP Financier'!$C$19+'BP Financier'!$D$16+'BP Financier'!$D$19+'BP Financier'!$E$16+'BP Financier'!$E$19+'BP Financier'!$C$22+'BP Financier'!$D$22+'BP Financier'!$E$22+'BP Financier'!$F$22+'BP Financier'!$F$16+'BP Financier'!$F$19))*$V6376*Y6376/(1-$W6376)","v":{"v":1257.8523382073854,"d":"1,258"}},{"$f":"'BP Financier'!$F$44*(('BP Financier'!$C$22+'BP Financier'!$D$22+'BP Financier'!$E$22+'BP Financier'!$F$22)/('BP Financier'!$C$16+'BP Financier'!$C$19+'BP Financier'!$D$16+'BP Financier'!$D$19+'BP Financier'!$E$16+'BP Financier'!$E$19+'BP Financier'!$C$22+'BP Financier'!$D$22+'BP Financier'!$E$22+'BP Financier'!$F$22+'BP Financier'!$F$16+'BP Financier'!$F$19))*$V6376*Z6376/(1-$W6376)","v":{"v":9844.513754399952,"d":"9,845"}},{"$f":"'BP Financier'!$F$44*(('BP Financier'!$C$22+'BP Financier'!$D$22+'BP Financier'!$E$22+'BP Financier'!$F$22)/('BP Financier'!$C$16+'BP Financier'!$C$19+'BP Financier'!$D$16+'BP Financier'!$D$19+'BP Financier'!$E$16+'BP Financier'!$E$19+'BP Financier'!$C$22+'BP Financier'!$D$22+'BP Financier'!$E$22+'BP Financier'!$F$22+'BP Financier'!$F$16+'BP Financier'!$F$19))*$V6376*AA6376/(1-$W6376)","v":{"v":1216.2704427294555,"d":"1,216"}},{"$f":"'BP Financier'!$F$44*(('BP Financier'!$C$22+'BP Financier'!$D$22+'BP Financier'!$E$22+'BP Financier'!$F$22)/('BP Financier'!$C$16+'BP Financier'!$C$19+'BP Financier'!$D$16+'BP Financier'!$D$19+'BP Financier'!$E$16+'BP Financier'!$E$19+'BP Financier'!$C$22+'BP Financier'!$D$22+'BP Financier'!$E$22+'BP Financier'!$F$22+'BP Financier'!$F$16+'BP Financier'!$F$19))*$V6376*AB6376/(1-$W6376)","v":{"v":582.1465366910213,"d":"582"}},null,{"v":0.0075,"d":"0.75%"},{"$f":"Actif!$E$28/100","v":{"v":0.28900000000000003,"d":"28.90%"}},{"$f":"Actif!$E$30/100","v":{"v":0.09050000000000001,"d":"9.05%"}},{"$f":"Actif!$E$31/100","v":{"v":0.0605,"d":"6.05%"}},{"$f":"Actif!$E$32/100","v":{"v":0.47350000000000003,"d":"47.35%"}},{"$f":"Actif!$E$33/100","v":{"v":0.0585,"d":"5.85%"}},{"$f":"Actif!$E$29/100","v":{"v":0.027999999999999997,"d":"2.80%"}}]
[null,"#270",32,2028,"F","A_CAPI",{"v":0.44999999999999996,"d":"0.45"},{"v":0.38999999999999996,"d":"0.39"},0.6,0.6,85,0,{"$f":"ROUND(Primes!$P$10*V6377,2)","v":0.68},0,{"v":14782.363842404151,"d":"14,782"},{"$f":"'BP Financier'!$F$44*(('BP Financier'!$C$22+'BP Financier'!$D$22+'BP Financier'!$E$22+'BP Financier'!$F$22)/('BP Financier'!$C$16+'BP Financier'!$C$19+'BP Financier'!$D$16+'BP Financier'!$D$19+'BP Financier'!$E$16+'BP Financier'!$E$19+'BP Financier'!$C$22+'BP Financier'!$D$22+'BP Financier'!$E$22+'BP Financier'!$F$22+'BP Financier'!$F$16+'BP Financier'!$F$19))*$V6377*X6377/(1-$W6377)","v":{"v":1881.5807703763371,"d":"1,882"}},{"$f":"'BP Financier'!$F$44*(('BP Financier'!$C$22+'BP Financier'!$D$22+'BP Financier'!$E$22+'BP Financier'!$F$22)/('BP Financier'!$C$16+'BP Financier'!$C$19+'BP Financier'!$D$16+'BP Financier'!$D$19+'BP Financier'!$E$16+'BP Financier'!$E$19+'BP Financier'!$C$22+'BP Financier'!$D$22+'BP Financier'!$E$22+'BP Financier'!$F$22+'BP Financier'!$F$16+'BP Financier'!$F$19))*$V6377*Y6377/(1-$W6377)","v":{"v":1257.8523382073854,"d":"1,258"}},{"$f":"'BP Financier'!$F$44*(('BP Financier'!$C$22+'BP Financier'!$D$22+'BP Financier'!$E$22+'BP Financier'!$F$22)/('BP Financier'!$C$16+'BP Financier'!$C$19+'BP Financier'!$D$16+'BP Financier'!$D$19+'BP Financier'!$E$16+'BP Financier'!$E$19+'BP Financier'!$C$22+'BP Financier'!$D$22+'BP Financier'!$E$22+'BP Financier'!$F$22+'BP Financier'!$F$16+'BP Financier'!$F$19))*$V6377*Z6377/(1-$W6377)","v":{"v":9844.513754399952,"d":"9,845"}},{"$f":"'BP Financier'!$F$44*(('BP Financier'!$C$22+'BP Financier'!$D$22+'BP Financier'!$E$22+'BP Financier'!$F$22)/('BP Financier'!$C$16+'BP Financier'!$C$19+'BP Financier'!$D$16+'BP Financier'!$D$19+'BP Financier'!$E$16+'BP Financier'!$E$19+'BP Financier'!$C$22+'BP Financier'!$D$22+'BP Financier'!$E$22+'BP Financier'!$F$22+'BP Financier'!$F$16+'BP Financier'!$F$19))*$V6377*AA6377/(1-$W6377)","v":{"v":1216.2704427294555,"d":"1,216"}},{"$f":"'BP Financier'!$F$44*(('BP Financier'!$C$22+'BP Financier'!$D$22+'BP Financier'!$E$22+'BP Financier'!$F$22)/('BP Financier'!$C$16+'BP Financier'!$C$19+'BP Financier'!$D$16+'BP Financier'!$D$19+'BP Financier'!$E$16+'BP Financier'!$E$19+'BP Financier'!$C$22+'BP Financier'!$D$22+'BP Financier'!$E$22+'BP Financier'!$F$22+'BP Financier'!$F$16+'BP Financier'!$F$19))*$V6377*AB6377/(1-$W6377)","v":{"v":582.1465366910213,"d":"582"}},null,{"v":0.0075,"d":"0.75%"},{"$f":"Actif!$E$28/100","v":{"v":0.28900000000000003,"d":"28.90%"}},{"$f":"Actif!$E$30/100","v":{"v":0.09050000000000001,"d":"9.05%"}},{"$f":"Actif!$E$31/100","v":{"v":0.0605,"d":"6.05%"}},{"$f":"Actif!$E$32/100","v":{"v":0.47350000000000003,"d":"47.35%"}},{"$f":"Actif!$E$33/100","v":{"v":0.0585,"d":"5.85%"}},{"$f":"Actif!$E$29/100","v":{"v":0.027999999999999997,"d":"2.80%"}}]
[null,"#271",32,2029,"F","A_CAPI",{"v":0.44999999999999996,"d":"0.45"},{"v":0.38999999999999996,"d":"0.39"},0.6,0.6,85,0,{"$f":"ROUND(Primes!$P$10*V6378,2)","v":0.68},0,{"v":14782.363842404151,"d":"14,782"},{"$f":"'BP Financier'!$F$44*(('BP Financier'!$C$22+'BP Financier'!$D$22+'BP Financier'!$E$22+'BP Financier'!$F$22)/('BP Financier'!$C$16+'BP Financier'!$C$19+'BP Financier'!$D$16+'BP Financier'!$D$19+'BP Financier'!$E$16+'BP Financier'!$E$19+'BP Financier'!$C$22+'BP Financier'!$D$22+'BP Financier'!$E$22+'BP Financier'!$F$22+'BP Financier'!$F$16+'BP Financier'!$F$19))*$V6378*X6378/(1-$W6378)","v":{"v":1881.5807703763371,"d":"1,882"}},{"$f":"'BP Financier'!$F$44*(('BP Financier'!$C$22+'BP Financier'!$D$22+'BP Financier'!$E$22+'BP Financier'!$F$22)/('BP Financier'!$C$16+'BP Financier'!$C$19+'BP Financier'!$D$16+'BP Financier'!$D$19+'BP Financier'!$E$16+'BP Financier'!$E$19+'BP Financier'!$C$22+'BP Financier'!$D$22+'BP Financier'!$E$22+'BP Financier'!$F$22+'BP Financier'!$F$16+'BP Financier'!$F$19))*$V6378*Y6378/(1-$W6378)","v":{"v":1257.8523382073854,"d":"1,258"}},{"$f":"'BP Financier'!$F$44*(('BP Financier'!$C$22+'BP Financier'!$D$22+'BP Financier'!$E$22+'BP Financier'!$F$22)/('BP Financier'!$C$16+'BP Financier'!$C$19+'BP Financier'!$D$16+'BP Financier'!$D$19+'BP Financier'!$E$16+'BP Financier'!$E$19+'BP Financier'!$C$22+'BP Financier'!$D$22+'BP Financier'!$E$22+'BP Financier'!$F$22+'BP Financier'!$F$16+'BP Financier'!$F$19))*$V6378*Z6378/(1-$W6378)","v":{"v":9844.513754399952,"d":"9,845"}},{"$f":"'BP Financier'!$F$44*(('BP Financier'!$C$22+'BP Financier'!$D$22+'BP Financier'!$E$22+'BP Financier'!$F$22)/('BP Financier'!$C$16+'BP Financier'!$C$19+'BP Financier'!$D$16+'BP Financier'!$D$19+'BP Financier'!$E$16+'BP Financier'!$E$19+'BP Financier'!$C$22+'BP Financier'!$D$22+'BP Financier'!$E$22+'BP Financier'!$F$22+'BP Financier'!$F$16+'BP Financier'!$F$19))*$V6378*AA6378/(1-$W6378)","v":{"v":1216.2704427294555,"d":"1,216"}},{"$f":"'BP Financier'!$F$44*(('BP Financier'!$C$22+'BP Financier'!$D$22+'BP Financier'!$E$22+'BP Financier'!$F$22)/('BP Financier'!$C$16+'BP Financier'!$C$19+'BP Financier'!$D$16+'BP Financier'!$D$19+'BP Financier'!$E$16+'BP Financier'!$E$19+'BP Financier'!$C$22+'BP Financier'!$D$22+'BP Financier'!$E$22+'BP Financier'!$F$22+'BP Financier'!$F$16+'BP Financier'!$F$19))*$V6378*AB6378/(1-$W6378)","v":{"v":582.1465366910213,"d":"582"}},null,{"v":0.0075,"d":"0.75%"},{"$f":"Actif!$E$28/100","v":{"v":0.28900000000000003,"d":"28.90%"}},{"$f":"Actif!$E$30/100","v":{"v":0.09050000000000001,"d":"9.05%"}},{"$f":"Actif!$E$31/100","v":{"v":0.0605,"d":"6.05%"}},{"$f":"Actif!$E$32/100","v":{"v":0.47350000000000003,"d":"47.35%"}},{"$f":"Actif!$E$33/100","v":{"v":0.0585,"d":"5.85%"}},{"$f":"Actif!$E$29/100","v":{"v":0.027999999999999997,"d":"2.80%"}}]
[null,"#272",32,2030,"F","A_CAPI",{"v":0.44999999999999996,"d":"0.45"},{"v":0.38999999999999996,"d":"0.39"},0.6,0.6,85,0,{"$f":"ROUND(Primes!$P$10*V6379,2)","v":0.68},0,{"v":14782.363842404151,"d":"14,782"},{"$f":"'BP Financier'!$F$44*(('BP Financier'!$C$22+'BP Financier'!$D$22+'BP Financier'!$E$22+'BP Financier'!$F$22)/('BP Financier'!$C$16+'BP Financier'!$C$19+'BP Financier'!$D$16+'BP Financier'!$D$19+'BP Financier'!$E$16+'BP Financier'!$E$19+'BP Financier'!$C$22+'BP Financier'!$D$22+'BP Financier'!$E$22+'BP Financier'!$F$22+'BP Financier'!$F$16+'BP Financier'!$F$19))*$V6379*X6379/(1-$W6379)","v":{"v":1881.5807703763371,"d":"1,882"}},{"$f":"'BP Financier'!$F$44*(('BP Financier'!$C$22+'BP Financier'!$D$22+'BP Financier'!$E$22+'BP Financier'!$F$22)/('BP Financier'!$C$16+'BP Financier'!$C$19+'BP Financier'!$D$16+'BP Financier'!$D$19+'BP Financier'!$E$16+'BP Financier'!$E$19+'BP Financier'!$C$22+'BP Financier'!$D$22+'BP Financier'!$E$22+'BP Financier'!$F$22+'BP Financier'!$F$16+'BP Financier'!$F$19))*$V6379*Y6379/(1-$W6379)","v":{"v":1257.8523382073854,"d":"1,258"}},{"$f":"'BP Financier'!$F$44*(('BP Financier'!$C$22+'BP Financier'!$D$22+'BP Financier'!$E$22+'BP Financier'!$F$22)/('BP Financier'!$C$16+'BP Financier'!$C$19+'BP Financier'!$D$16+'BP Financier'!$D$19+'BP Financier'!$E$16+'BP Financier'!$E$19+'BP Financier'!$C$22+'BP Financier'!$D$22+'BP Financier'!$E$22+'BP Financier'!$F$22+'BP Financier'!$F$16+'BP Financier'!$F$19))*$V6379*Z6379/(1-$W6379)","v":{"v":9844.513754399952,"d":"9,845"}},{"$f":"'BP Financier'!$F$44*(('BP Financier'!$C$22+'BP Financier'!$D$22+'BP Financier'!$E$22+'BP Financier'!$F$22)/('BP Financier'!$C$16+'BP Financier'!$C$19+'BP Financier'!$D$16+'BP Financier'!$D$19+'BP Financier'!$E$16+'BP Financier'!$E$19+'BP Financier'!$C$22+'BP Financier'!$D$22+'BP Financier'!$E$22+'BP Financier'!$F$22+'BP Financier'!$F$16+'BP Financier'!$F$19))*$V6379*AA6379/(1-$W6379)","v":{"v":1216.2704427294555,"d":"1,216"}},{"$f":"'BP Financier'!$F$44*(('BP Financier'!$C$22+'BP Financier'!$D$22+'BP Financier'!$E$22+'BP Financier'!$F$22)/('BP Financier'!$C$16+'BP Financier'!$C$19+'BP Financier'!$D$16+'BP Financier'!$D$19+'BP Financier'!$E$16+'BP Financier'!$E$19+'BP Financier'!$C$22+'BP Financier'!$D$22+'BP Financier'!$E$22+'BP Financier'!$F$22+'BP Financier'!$F$16+'BP Financier'!$F$19))*$V6379*AB6379/(1-$W6379)","v":{"v":582.1465366910213,"d":"582"}},null,{"v":0.0075,"d":"0.75%"},{"$f":"Actif!$E$28/100","v":{"v":0.28900000000000003,"d":"28.90%"}},{"$f":"Actif!$E$30/100","v":{"v":0.09050000000000001,"d":"9.05%"}},{"$f":"Actif!$E$31/100","v":{"v":0.0605,"d":"6.05%"}},{"$f":"Actif!$E$32/100","v":{"v":0.47350000000000003,"d":"47.35%"}},{"$f":"Actif!$E$33/100","v":{"v":0.0585,"d":"5.85%"}},{"$f":"Actif!$E$29/100","v":{"v":0.027999999999999997,"d":"2.80%"}}]
[null,"#273",33,2026,"H","A_CAPI",{"v":0.44999999999999996,"d":"0.45"},{"v":0.38999999999999996,"d":"0.39"},0.6,0.6,85,0,{"$f":"ROUND(Primes!$P$10*V6380,2)","v":0.68},0,{"v":14782.363842404151,"d":"14,782"},{"$f":"'BP Financier'!$F$44*(('BP Financier'!$C$22+'BP Financier'!$D$22+'BP Financier'!$E$22+'BP Financier'!$F$22)/('BP Financier'!$C$16+'BP Financier'!$C$19+'BP Financier'!$D$16+'BP Financier'!$D$19+'BP Financier'!$E$16+'BP Financier'!$E$19+'BP Financier'!$C$22+'BP Financier'!$D$22+'BP Financier'!$E$22+'BP Financier'!$F$22+'BP Financier'!$F$16+'BP Financier'!$F$19))*$V6380*X6380/(1-$W6380)","v":{"v":1881.5807703763371,"d":"1,882"}},{"$f":"'BP Financier'!$F$44*(('BP Financier'!$C$22+'BP Financier'!$D$22+'BP Financier'!$E$22+'BP Financier'!$F$22)/('BP Financier'!$C$16+'BP Financier'!$C$19+'BP Financier'!$D$16+'BP Financier'!$D$19+'BP Financier'!$E$16+'BP Financier'!$E$19+'BP Financier'!$C$22+'BP Financier'!$D$22+'BP Financier'!$E$22+'BP Financier'!$F$22+'BP Financier'!$F$16+'BP Financier'!$F$19))*$V6380*Y6380/(1-$W6380)","v":{"v":1257.8523382073854,"d":"1,258"}},{"$f":"'BP Financier'!$F$44*(('BP Financier'!$C$22+'BP Financier'!$D$22+'BP Financier'!$E$22+'BP Financier'!$F$22)/('BP Financier'!$C$16+'BP Financier'!$C$19+'BP Financier'!$D$16+'BP Financier'!$D$19+'BP Financier'!$E$16+'BP Financier'!$E$19+'BP Financier'!$C$22+'BP Financier'!$D$22+'BP Financier'!$E$22+'BP Financier'!$F$22+'BP Financier'!$F$16+'BP Financier'!$F$19))*$V6380*Z6380/(1-$W6380)","v":{"v":9844.513754399952,"d":"9,845"}},{"$f":"'BP Financier'!$F$44*(('BP Financier'!$C$22+'BP Financier'!$D$22+'BP Financier'!$E$22+'BP Financier'!$F$22)/('BP Financier'!$C$16+'BP Financier'!$C$19+'BP Financier'!$D$16+'BP Financier'!$D$19+'BP Financier'!$E$16+'BP Financier'!$E$19+'BP Financier'!$C$22+'BP Financier'!$D$22+'BP Financier'!$E$22+'BP Financier'!$F$22+'BP Financier'!$F$16+'BP Financier'!$F$19))*$V6380*AA6380/(1-$W6380)","v":{"v":1216.2704427294555,"d":"1,216"}},{"$f":"'BP Financier'!$F$44*(('BP Financier'!$C$22+'BP Financier'!$D$22+'BP Financier'!$E$22+'BP Financier'!$F$22)/('BP Financier'!$C$16+'BP Financier'!$C$19+'BP Financier'!$D$16+'BP Financier'!$D$19+'BP Financier'!$E$16+'BP Financier'!$E$19+'BP Financier'!$C$22+'BP Financier'!$D$22+'BP Financier'!$E$22+'BP Financier'!$F$22+'BP Financier'!$F$16+'BP Financier'!$F$19))*$V6380*AB6380/(1-$W6380)","v":{"v":582.1465366910213,"d":"582"}},null,{"v":0.0075,"d":"0.75%"},{"$f":"Actif!$E$28/100","v":{"v":0.28900000000000003,"d":"28.90%"}},{"$f":"Actif!$E$30/100","v":{"v":0.09050000000000001,"d":"9.05%"}},{"$f":"Actif!$E$31/100","v":{"v":0.0605,"d":"6.05%"}},{"$f":"Actif!$E$32/100","v":{"v":0.47350000000000003,"d":"47.35%"}},{"$f":"Actif!$E$33/100","v":{"v":0.0585,"d":"5.85%"}},{"$f":"Actif!$E$29/100","v":{"v":0.027999999999999997,"d":"2.80%"}}]
[null,"#274",33,2028,"H","A_CAPI",{"v":0.44999999999999996,"d":"0.45"},{"v":0.38999999999999996,"d":"0.39"},0.6,0.6,85,0,{"$f":"ROUND(Primes!$P$10*V6381,2)","v":0.68},0,{"v":14782.363842404151,"d":"14,782"},{"$f":"'BP Financier'!$F$44*(('BP Financier'!$C$22+'BP Financier'!$D$22+'BP Financier'!$E$22+'BP Financier'!$F$22)/('BP Financier'!$C$16+'BP Financier'!$C$19+'BP Financier'!$D$16+'BP Financier'!$D$19+'BP Financier'!$E$16+'BP Financier'!$E$19+'BP Financier'!$C$22+'BP Financier'!$D$22+'BP Financier'!$E$22+'BP Financier'!$F$22+'BP Financier'!$F$16+'BP Financier'!$F$19))*$V6381*X6381/(1-$W6381)","v":{"v":1881.5807703763371,"d":"1,882"}},{"$f":"'BP Financier'!$F$44*(('BP Financier'!$C$22+'BP Financier'!$D$22+'BP Financier'!$E$22+'BP Financier'!$F$22)/('BP Financier'!$C$16+'BP Financier'!$C$19+'BP Financier'!$D$16+'BP Financier'!$D$19+'BP Financier'!$E$16+'BP Financier'!$E$19+'BP Financier'!$C$22+'BP Financier'!$D$22+'BP Financier'!$E$22+'BP Financier'!$F$22+'BP Financier'!$F$16+'BP Financier'!$F$19))*$V6381*Y6381/(1-$W6381)","v":{"v":1257.8523382073854,"d":"1,258"}},{"$f":"'BP Financier'!$F$44*(('BP Financier'!$C$22+'BP Financier'!$D$22+'BP Financier'!$E$22+'BP Financier'!$F$22)/('BP Financier'!$C$16+'BP Financier'!$C$19+'BP Financier'!$D$16+'BP Financier'!$D$19+'BP Financier'!$E$16+'BP Financier'!$E$19+'BP Financier'!$C$22+'BP Financier'!$D$22+'BP Financier'!$E$22+'BP Financier'!$F$22+'BP Financier'!$F$16+'BP Financier'!$F$19))*$V6381*Z6381/(1-$W6381)","v":{"v":9844.513754399952,"d":"9,845"}},{"$f":"'BP Financier'!$F$44*(('BP Financier'!$C$22+'BP Financier'!$D$22+'BP Financier'!$E$22+'BP Financier'!$F$22)/('BP Financier'!$C$16+'BP Financier'!$C$19+'BP Financier'!$D$16+'BP Financier'!$D$19+'BP Financier'!$E$16+'BP Financier'!$E$19+'BP Financier'!$C$22+'BP Financier'!$D$22+'BP Financier'!$E$22+'BP Financier'!$F$22+'BP Financier'!$F$16+'BP Financier'!$F$19))*$V6381*AA6381/(1-$W6381)","v":{"v":1216.2704427294555,"d":"1,216"}},{"$f":"'BP Financier'!$F$44*(('BP Financier'!$C$22+'BP Financier'!$D$22+'BP Financier'!$E$22+'BP Financier'!$F$22)/('BP Financier'!$C$16+'BP Financier'!$C$19+'BP Financier'!$D$16+'BP Financier'!$D$19+'BP Financier'!$E$16+'BP Financier'!$E$19+'BP Financier'!$C$22+'BP Financier'!$D$22+'BP Financier'!$E$22+'BP Financier'!$F$22+'BP Financier'!$F$16+'BP Financier'!$F$19))*$V6381*AB6381/(1-$W6381)","v":{"v":582.1465366910213,"d":"582"}},null,{"v":0.0075,"d":"0.75%"},{"$f":"Actif!$E$28/100","v":{"v":0.28900000000000003,"d":"28.90%"}},{"$f":"Actif!$E$30/100","v":{"v":0.09050000000000001,"d":"9.05%"}},{"$f":"Actif!$E$31/100","v":{"v":0.0605,"d":"6.05%"}},{"$f":"Actif!$E$32/100","v":{"v":0.47350000000000003,"d":"47.35%"}},{"$f":"Actif!$E$33/100","v":{"v":0.0585,"d":"5.85%"}},{"$f":"Actif!$E$29/100","v":{"v":0.027999999999999997,"d":"2.80%"}}]
[null,"#275",33,2029,"H","A_CAPI",{"v":0.44999999999999996,"d":"0.45"},{"v":0.38999999999999996,"d":"0.39"},0.6,0.6,85,0,{"$f":"ROUND(Primes!$P$10*V6382,2)","v":0.68},0,{"v":14782.363842404151,"d":"14,782"},{"$f":"'BP Financier'!$F$44*(('BP Financier'!$C$22+'BP Financier'!$D$22+'BP Financier'!$E$22+'BP Financier'!$F$22)/('BP Financier'!$C$16+'BP Financier'!$C$19+'BP Financier'!$D$16+'BP Financier'!$D$19+'BP Financier'!$E$16+'BP Financier'!$E$19+'BP Financier'!$C$22+'BP Financier'!$D$22+'BP Financier'!$E$22+'BP Financier'!$F$22+'BP Financier'!$F$16+'BP Financier'!$F$19))*$V6382*X6382/(1-$W6382)","v":{"v":1881.5807703763371,"d":"1,882"}},{"$f":"'BP Financier'!$F$44*(('BP Financier'!$C$22+'BP Financier'!$D$22+'BP Financier'!$E$22+'BP Financier'!$F$22)/('BP Financier'!$C$16+'BP Financier'!$C$19+'BP Financier'!$D$16+'BP Financier'!$D$19+'BP Financier'!$E$16+'BP Financier'!$E$19+'BP Financier'!$C$22+'BP Financier'!$D$22+'BP Financier'!$E$22+'BP Financier'!$F$22+'BP Financier'!$F$16+'BP Financier'!$F$19))*$V6382*Y6382/(1-$W6382)","v":{"v":1257.8523382073854,"d":"1,258"}},{"$f":"'BP Financier'!$F$44*(('BP Financier'!$C$22+'BP Financier'!$D$22+'BP Financier'!$E$22+'BP Financier'!$F$22)/('BP Financier'!$C$16+'BP Financier'!$C$19+'BP Financier'!$D$16+'BP Financier'!$D$19+'BP Financier'!$E$16+'BP Financier'!$E$19+'BP Financier'!$C$22+'BP Financier'!$D$22+'BP Financier'!$E$22+'BP Financier'!$F$22+'BP Financier'!$F$16+'BP Financier'!$F$19))*$V6382*Z6382/(1-$W6382)","v":{"v":9844.513754399952,"d":"9,845"}},{"$f":"'BP Financier'!$F$44*(('BP Financier'!$C$22+'BP Financier'!$D$22+'BP Financier'!$E$22+'BP Financier'!$F$22)/('BP Financier'!$C$16+'BP Financier'!$C$19+'BP Financier'!$D$16+'BP Financier'!$D$19+'BP Financier'!$E$16+'BP Financier'!$E$19+'BP Financier'!$C$22+'BP Financier'!$D$22+'BP Financier'!$E$22+'BP Financier'!$F$22+'BP Financier'!$F$16+'BP Financier'!$F$19))*$V6382*AA6382/(1-$W6382)","v":{"v":1216.2704427294555,"d":"1,216"}},{"$f":"'BP Financier'!$F$44*(('BP Financier'!$C$22+'BP Financier'!$D$22+'BP Financier'!$E$22+'BP Financier'!$F$22)/('BP Financier'!$C$16+'BP Financier'!$C$19+'BP Financier'!$D$16+'BP Financier'!$D$19+'BP Financier'!$E$16+'BP Financier'!$E$19+'BP Financier'!$C$22+'BP Financier'!$D$22+'BP Financier'!$E$22+'BP Financier'!$F$22+'BP Financier'!$F$16+'BP Financier'!$F$19))*$V6382*AB6382/(1-$W6382)","v":{"v":582.1465366910213,"d":"582"}},null,{"v":0.0075,"d":"0.75%"},{"$f":"Actif!$E$28/100","v":{"v":0.28900000000000003,"d":"28.90%"}},{"$f":"Actif!$E$30/100","v":{"v":0.09050000000000001,"d":"9.05%"}},{"$f":"Actif!$E$31/100","v":{"v":0.0605,"d":"6.05%"}},{"$f":"Actif!$E$32/100","v":{"v":0.47350000000000003,"d":"47.35%"}},{"$f":"Actif!$E$33/100","v":{"v":0.0585,"d":"5.85%"}},{"$f":"Actif!$E$29/100","v":{"v":0.027999999999999997,"d":"2.80%"}}]
[null,"#276",33,2030,"H","A_CAPI",{"v":0.44999999999999996,"d":"0.45"},{"v":0.38999999999999996,"d":"0.39"},0.6,0.6,85,0,{"$f":"ROUND(Primes!$P$10*V6383,2)","v":0.68},0,{"v":14782.363842404151,"d":"14,782"},{"$f":"'BP Financier'!$F$44*(('BP Financier'!$C$22+'BP Financier'!$D$22+'BP Financier'!$E$22+'BP Financier'!$F$22)/('BP Financier'!$C$16+'BP Financier'!$C$19+'BP Financier'!$D$16+'BP Financier'!$D$19+'BP Financier'!$E$16+'BP Financier'!$E$19+'BP Financier'!$C$22+'BP Financier'!$D$22+'BP Financier'!$E$22+'BP Financier'!$F$22+'BP Financier'!$F$16+'BP Financier'!$F$19))*$V6383*X6383/(1-$W6383)","v":{"v":1881.5807703763371,"d":"1,882"}},{"$f":"'BP Financier'!$F$44*(('BP Financier'!$C$22+'BP Financier'!$D$22+'BP Financier'!$E$22+'BP Financier'!$F$22)/('BP Financier'!$C$16+'BP Financier'!$C$19+'BP Financier'!$D$16+'BP Financier'!$D$19+'BP Financier'!$E$16+'BP Financier'!$E$19+'BP Financier'!$C$22+'BP Financier'!$D$22+'BP Financier'!$E$22+'BP Financier'!$F$22+'BP Financier'!$F$16+'BP Financier'!$F$19))*$V6383*Y6383/(1-$W6383)","v":{"v":1257.8523382073854,"d":"1,258"}},{"$f":"'BP Financier'!$F$44*(('BP Financier'!$C$22+'BP Financier'!$D$22+'BP Financier'!$E$22+'BP Financier'!$F$22)/('BP Financier'!$C$16+'BP Financier'!$C$19+'BP Financier'!$D$16+'BP Financier'!$D$19+'BP Financier'!$E$16+'BP Financier'!$E$19+'BP Financier'!$C$22+'BP Financier'!$D$22+'BP Financier'!$E$22+'BP Financier'!$F$22+'BP Financier'!$F$16+'BP Financier'!$F$19))*$V6383*Z6383/(1-$W6383)","v":{"v":9844.513754399952,"d":"9,845"}},{"$f":"'BP Financier'!$F$44*(('BP Financier'!$C$22+'BP Financier'!$D$22+'BP Financier'!$E$22+'BP Financier'!$F$22)/('BP Financier'!$C$16+'BP Financier'!$C$19+'BP Financier'!$D$16+'BP Financier'!$D$19+'BP Financier'!$E$16+'BP Financier'!$E$19+'BP Financier'!$C$22+'BP Financier'!$D$22+'BP Financier'!$E$22+'BP Financier'!$F$22+'BP Financier'!$F$16+'BP Financier'!$F$19))*$V6383*AA6383/(1-$W6383)","v":{"v":1216.2704427294555,"d":"1,216"}},{"$f":"'BP Financier'!$F$44*(('BP Financier'!$C$22+'BP Financier'!$D$22+'BP Financier'!$E$22+'BP Financier'!$F$22)/('BP Financier'!$C$16+'BP Financier'!$C$19+'BP Financier'!$D$16+'BP Financier'!$D$19+'BP Financier'!$E$16+'BP Financier'!$E$19+'BP Financier'!$C$22+'BP Financier'!$D$22+'BP Financier'!$E$22+'BP Financier'!$F$22+'BP Financier'!$F$16+'BP Financier'!$F$19))*$V6383*AB6383/(1-$W6383)","v":{"v":582.1465366910213,"d":"582"}},null,{"v":0.0075,"d":"0.75%"},{"$f":"Actif!$E$28/100","v":{"v":0.28900000000000003,"d":"28.90%"}},{"$f":"Actif!$E$30/100","v":{"v":0.09050000000000001,"d":"9.05%"}},{"$f":"Actif!$E$31/100","v":{"v":0.0605,"d":"6.05%"}},{"$f":"Actif!$E$32/100","v":{"v":0.47350000000000003,"d":"47.35%"}},{"$f":"Actif!$E$33/100","v":{"v":0.0585,"d":"5.85%"}},{"$f":"Actif!$E$29/100","v":{"v":0.027999999999999997,"d":"2.80%"}}]
[null,"#277",34,2026,"H","A_CAPI",{"v":0.44999999999999996,"d":"0.45"},{"v":0.38999999999999996,"d":"0.39"},0.6,0.6,85,0,{"$f":"ROUND(Primes!$P$10*V6384,2)","v":0.68},0,{"v":14782.363842404151,"d":"14,782"},{"$f":"'BP Financier'!$F$44*(('BP Financier'!$C$22+'BP Financier'!$D$22+'BP Financier'!$E$22+'BP Financier'!$F$22)/('BP Financier'!$C$16+'BP Financier'!$C$19+'BP Financier'!$D$16+'BP Financier'!$D$19+'BP Financier'!$E$16+'BP Financier'!$E$19+'BP Financier'!$C$22+'BP Financier'!$D$22+'BP Financier'!$E$22+'BP Financier'!$F$22+'BP Financier'!$F$16+'BP Financier'!$F$19))*$V6384*X6384/(1-$W6384)","v":{"v":1881.5807703763371,"d":"1,882"}},{"$f":"'BP Financier'!$F$44*(('BP Financier'!$C$22+'BP Financier'!$D$22+'BP Financier'!$E$22+'BP Financier'!$F$22)/('BP Financier'!$C$16+'BP Financier'!$C$19+'BP Financier'!$D$16+'BP Financier'!$D$19+'BP Financier'!$E$16+'BP Financier'!$E$19+'BP Financier'!$C$22+'BP Financier'!$D$22+'BP Financier'!$E$22+'BP Financier'!$F$22+'BP Financier'!$F$16+'BP Financier'!$F$19))*$V6384*Y6384/(1-$W6384)","v":{"v":1257.8523382073854,"d":"1,258"}},{"$f":"'BP Financier'!$F$44*(('BP Financier'!$C$22+'BP Financier'!$D$22+'BP Financier'!$E$22+'BP Financier'!$F$22)/('BP Financier'!$C$16+'BP Financier'!$C$19+'BP Financier'!$D$16+'BP Financier'!$D$19+'BP Financier'!$E$16+'BP Financier'!$E$19+'BP Financier'!$C$22+'BP Financier'!$D$22+'BP Financier'!$E$22+'BP Financier'!$F$22+'BP Financier'!$F$16+'BP Financier'!$F$19))*$V6384*Z6384/(1-$W6384)","v":{"v":9844.513754399952,"d":"9,845"}},{"$f":"'BP Financier'!$F$44*(('BP Financier'!$C$22+'BP Financier'!$D$22+'BP Financier'!$E$22+'BP Financier'!$F$22)/('BP Financier'!$C$16+'BP Financier'!$C$19+'BP Financier'!$D$16+'BP Financier'!$D$19+'BP Financier'!$E$16+'BP Financier'!$E$19+'BP Financier'!$C$22+'BP Financier'!$D$22+'BP Financier'!$E$22+'BP Financier'!$F$22+'BP Financier'!$F$16+'BP Financier'!$F$19))*$V6384*AA6384/(1-$W6384)","v":{"v":1216.2704427294555,"d":"1,216"}},{"$f":"'BP Financier'!$F$44*(('BP Financier'!$C$22+'BP Financier'!$D$22+'BP Financier'!$E$22+'BP Financier'!$F$22)/('BP Financier'!$C$16+'BP Financier'!$C$19+'BP Financier'!$D$16+'BP Financier'!$D$19+'BP Financier'!$E$16+'BP Financier'!$E$19+'BP Financier'!$C$22+'BP Financier'!$D$22+'BP Financier'!$E$22+'BP Financier'!$F$22+'BP Financier'!$F$16+'BP Financier'!$F$19))*$V6384*AB6384/(1-$W6384)","v":{"v":582.1465366910213,"d":"582"}},null,{"v":0.0075,"d":"0.75%"},{"$f":"Actif!$E$28/100","v":{"v":0.28900000000000003,"d":"28.90%"}},{"$f":"Actif!$E$30/100","v":{"v":0.09050000000000001,"d":"9.05%"}},{"$f":"Actif!$E$31/100","v":{"v":0.0605,"d":"6.05%"}},{"$f":"Actif!$E$32/100","v":{"v":0.47350000000000003,"d":"47.35%"}},{"$f":"Actif!$E$33/100","v":{"v":0.0585,"d":"5.85%"}},{"$f":"Actif!$E$29/100","v":{"v":0.027999999999999997,"d":"2.80%"}}]
[null,"#278",34,2028,"H","A_CAPI",{"v":0.44999999999999996,"d":"0.45"},{"v":0.38999999999999996,"d":"0.39"},0.6,0.6,85,0,{"$f":"ROUND(Primes!$P$10*V6385,2)","v":0.68},0,{"v":14782.363842404151,"d":"14,782"},{"$f":"'BP Financier'!$F$44*(('BP Financier'!$C$22+'BP Financier'!$D$22+'BP Financier'!$E$22+'BP Financier'!$F$22)/('BP Financier'!$C$16+'BP Financier'!$C$19+'BP Financier'!$D$16+'BP Financier'!$D$19+'BP Financier'!$E$16+'BP Financier'!$E$19+'BP Financier'!$C$22+'BP Financier'!$D$22+'BP Financier'!$E$22+'BP Financier'!$F$22+'BP Financier'!$F$16+'BP Financier'!$F$19))*$V6385*X6385/(1-$W6385)","v":{"v":1881.5807703763371,"d":"1,882"}},{"$f":"'BP Financier'!$F$44*(('BP Financier'!$C$22+'BP Financier'!$D$22+'BP Financier'!$E$22+'BP Financier'!$F$22)/('BP Financier'!$C$16+'BP Financier'!$C$19+'BP Financier'!$D$16+'BP Financier'!$D$19+'BP Financier'!$E$16+'BP Financier'!$E$19+'BP Financier'!$C$22+'BP Financier'!$D$22+'BP Financier'!$E$22+'BP Financier'!$F$22+'BP Financier'!$F$16+'BP Financier'!$F$19))*$V6385*Y6385/(1-$W6385)","v":{"v":1257.8523382073854,"d":"1,258"}},{"$f":"'BP Financier'!$F$44*(('BP Financier'!$C$22+'BP Financier'!$D$22+'BP Financier'!$E$22+'BP Financier'!$F$22)/('BP Financier'!$C$16+'BP Financier'!$C$19+'BP Financier'!$D$16+'BP Financier'!$D$19+'BP Financier'!$E$16+'BP Financier'!$E$19+'BP Financier'!$C$22+'BP Financier'!$D$22+'BP Financier'!$E$22+'BP Financier'!$F$22+'BP Financier'!$F$16+'BP Financier'!$F$19))*$V6385*Z6385/(1-$W6385)","v":{"v":9844.513754399952,"d":"9,845"}},{"$f":"'BP Financier'!$F$44*(('BP Financier'!$C$22+'BP Financier'!$D$22+'BP Financier'!$E$22+'BP Financier'!$F$22)/('BP Financier'!$C$16+'BP Financier'!$C$19+'BP Financier'!$D$16+'BP Financier'!$D$19+'BP Financier'!$E$16+'BP Financier'!$E$19+'BP Financier'!$C$22+'BP Financier'!$D$22+'BP Financier'!$E$22+'BP Financier'!$F$22+'BP Financier'!$F$16+'BP Financier'!$F$19))*$V6385*AA6385/(1-$W6385)","v":{"v":1216.2704427294555,"d":"1,216"}},{"$f":"'BP Financier'!$F$44*(('BP Financier'!$C$22+'BP Financier'!$D$22+'BP Financier'!$E$22+'BP Financier'!$F$22)/('BP Financier'!$C$16+'BP Financier'!$C$19+'BP Financier'!$D$16+'BP Financier'!$D$19+'BP Financier'!$E$16+'BP Financier'!$E$19+'BP Financier'!$C$22+'BP Financier'!$D$22+'BP Financier'!$E$22+'BP Financier'!$F$22+'BP Financier'!$F$16+'BP Financier'!$F$19))*$V6385*AB6385/(1-$W6385)","v":{"v":582.1465366910213,"d":"582"}},null,{"v":0.0075,"d":"0.75%"},{"$f":"Actif!$E$28/100","v":{"v":0.28900000000000003,"d":"28.90%"}},{"$f":"Actif!$E$30/100","v":{"v":0.09050000000000001,"d":"9.05%"}},{"$f":"Actif!$E$31/100","v":{"v":0.0605,"d":"6.05%"}},{"$f":"Actif!$E$32/100","v":{"v":0.47350000000000003,"d":"47.35%"}},{"$f":"Actif!$E$33/100","v":{"v":0.0585,"d":"5.85%"}},{"$f":"Actif!$E$29/100","v":{"v":0.027999999999999997,"d":"2.80%"}}]
[null,"#279",34,2029,"H","A_CAPI",{"v":0.44999999999999996,"d":"0.45"},{"v":0.38999999999999996,"d":"0.39"},0.6,0.6,85,0,{"$f":"ROUND(Primes!$P$10*V6386,2)","v":0.68},0,{"v":14782.363842404151,"d":"14,782"},{"$f":"'BP Financier'!$F$44*(('BP Financier'!$C$22+'BP Financier'!$D$22+'BP Financier'!$E$22+'BP Financier'!$F$22)/('BP Financier'!$C$16+'BP Financier'!$C$19+'BP Financier'!$D$16+'BP Financier'!$D$19+'BP Financier'!$E$16+'BP Financier'!$E$19+'BP Financier'!$C$22+'BP Financier'!$D$22+'BP Financier'!$E$22+'BP Financier'!$F$22+'BP Financier'!$F$16+'BP Financier'!$F$19))*$V6386*X6386/(1-$W6386)","v":{"v":1881.5807703763371,"d":"1,882"}},{"$f":"'BP Financier'!$F$44*(('BP Financier'!$C$22+'BP Financier'!$D$22+'BP Financier'!$E$22+'BP Financier'!$F$22)/('BP Financier'!$C$16+'BP Financier'!$C$19+'BP Financier'!$D$16+'BP Financier'!$D$19+'BP Financier'!$E$16+'BP Financier'!$E$19+'BP Financier'!$C$22+'BP Financier'!$D$22+'BP Financier'!$E$22+'BP Financier'!$F$22+'BP Financier'!$F$16+'BP Financier'!$F$19))*$V6386*Y6386/(1-$W6386)","v":{"v":1257.8523382073854,"d":"1,258"}},{"$f":"'BP Financier'!$F$44*(('BP Financier'!$C$22+'BP Financier'!$D$22+'BP Financier'!$E$22+'BP Financier'!$F$22)/('BP Financier'!$C$16+'BP Financier'!$C$19+'BP Financier'!$D$16+'BP Financier'!$D$19+'BP Financier'!$E$16+'BP Financier'!$E$19+'BP Financier'!$C$22+'BP Financier'!$D$22+'BP Financier'!$E$22+'BP Financier'!$F$22+'BP Financier'!$F$16+'BP Financier'!$F$19))*$V6386*Z6386/(1-$W6386)","v":{"v":9844.513754399952,"d":"9,845"}},{"$f":"'BP Financier'!$F$44*(('BP Financier'!$C$22+'BP Financier'!$D$22+'BP Financier'!$E$22+'BP Financier'!$F$22)/('BP Financier'!$C$16+'BP Financier'!$C$19+'BP Financier'!$D$16+'BP Financier'!$D$19+'BP Financier'!$E$16+'BP Financier'!$E$19+'BP Financier'!$C$22+'BP Financier'!$D$22+'BP Financier'!$E$22+'BP Financier'!$F$22+'BP Financier'!$F$16+'BP Financier'!$F$19))*$V6386*AA6386/(1-$W6386)","v":{"v":1216.2704427294555,"d":"1,216"}},{"$f":"'BP Financier'!$F$44*(('BP Financier'!$C$22+'BP Financier'!$D$22+'BP Financier'!$E$22+'BP Financier'!$F$22)/('BP Financier'!$C$16+'BP Financier'!$C$19+'BP Financier'!$D$16+'BP Financier'!$D$19+'BP Financier'!$E$16+'BP Financier'!$E$19+'BP Financier'!$C$22+'BP Financier'!$D$22+'BP Financier'!$E$22+'BP Financier'!$F$22+'BP Financier'!$F$16+'BP Financier'!$F$19))*$V6386*AB6386/(1-$W6386)","v":{"v":582.1465366910213,"d":"582"}},null,{"v":0.0075,"d":"0.75%"},{"$f":"Actif!$E$28/100","v":{"v":0.28900000000000003,"d":"28.90%"}},{"$f":"Actif!$E$30/100","v":{"v":0.09050000000000001,"d":"9.05%"}},{"$f":"Actif!$E$31/100","v":{"v":0.0605,"d":"6.05%"}},{"$f":"Actif!$E$32/100","v":{"v":0.47350000000000003,"d":"47.35%"}},{"$f":"Actif!$E$33/100","v":{"v":0.0585,"d":"5.85%"}},{"$f":"Actif!$E$29/100","v":{"v":0.027999999999999997,"d":"2.80%"}}]
[null,"#280",34,2030,"H","A_CAPI",{"v":0.44999999999999996,"d":"0.45"},{"v":0.38999999999999996,"d":"0.39"},0.6,0.6,85,0,{"$f":"ROUND(Primes!$P$10*V6387,2)","v":0.68},0,{"v":14782.363842404151,"d":"14,782"},{"$f":"'BP Financier'!$F$44*(('BP Financier'!$C$22+'BP Financier'!$D$22+'BP Financier'!$E$22+'BP Financier'!$F$22)/('BP Financier'!$C$16+'BP Financier'!$C$19+'BP Financier'!$D$16+'BP Financier'!$D$19+'BP Financier'!$E$16+'BP Financier'!$E$19+'BP Financier'!$C$22+'BP Financier'!$D$22+'BP Financier'!$E$22+'BP Financier'!$F$22+'BP Financier'!$F$16+'BP Financier'!$F$19))*$V6387*X6387/(1-$W6387)","v":{"v":1881.5807703763371,"d":"1,882"}},{"$f":"'BP Financier'!$F$44*(('BP Financier'!$C$22+'BP Financier'!$D$22+'BP Financier'!$E$22+'BP Financier'!$F$22)/('BP Financier'!$C$16+'BP Financier'!$C$19+'BP Financier'!$D$16+'BP Financier'!$D$19+'BP Financier'!$E$16+'BP Financier'!$E$19+'BP Financier'!$C$22+'BP Financier'!$D$22+'BP Financier'!$E$22+'BP Financier'!$F$22+'BP Financier'!$F$16+'BP Financier'!$F$19))*$V6387*Y6387/(1-$W6387)","v":{"v":1257.8523382073854,"d":"1,258"}},{"$f":"'BP Financier'!$F$44*(('BP Financier'!$C$22+'BP Financier'!$D$22+'BP Financier'!$E$22+'BP Financier'!$F$22)/('BP Financier'!$C$16+'BP Financier'!$C$19+'BP Financier'!$D$16+'BP Financier'!$D$19+'BP Financier'!$E$16+'BP Financier'!$E$19+'BP Financier'!$C$22+'BP Financier'!$D$22+'BP Financier'!$E$22+'BP Financier'!$F$22+'BP Financier'!$F$16+'BP Financier'!$F$19))*$V6387*Z6387/(1-$W6387)","v":{"v":9844.513754399952,"d":"9,845"}},{"$f":"'BP Financier'!$F$44*(('BP Financier'!$C$22+'BP Financier'!$D$22+'BP Financier'!$E$22+'BP Financier'!$F$22)/('BP Financier'!$C$16+'BP Financier'!$C$19+'BP Financier'!$D$16+'BP Financier'!$D$19+'BP Financier'!$E$16+'BP Financier'!$E$19+'BP Financier'!$C$22+'BP Financier'!$D$22+'BP Financier'!$E$22+'BP Financier'!$F$22+'BP Financier'!$F$16+'BP Financier'!$F$19))*$V6387*AA6387/(1-$W6387)","v":{"v":1216.2704427294555,"d":"1,216"}},{"$f":"'BP Financier'!$F$44*(('BP Financier'!$C$22+'BP Financier'!$D$22+'BP Financier'!$E$22+'BP Financier'!$F$22)/('BP Financier'!$C$16+'BP Financier'!$C$19+'BP Financier'!$D$16+'BP Financier'!$D$19+'BP Financier'!$E$16+'BP Financier'!$E$19+'BP Financier'!$C$22+'BP Financier'!$D$22+'BP Financier'!$E$22+'BP Financier'!$F$22+'BP Financier'!$F$16+'BP Financier'!$F$19))*$V6387*AB6387/(1-$W6387)","v":{"v":582.1465366910213,"d":"582"}},null,{"v":0.0075,"d":"0.75%"},{"$f":"Actif!$E$28/100","v":{"v":0.28900000000000003,"d":"28.90%"}},{"$f":"Actif!$E$30/100","v":{"v":0.09050000000000001,"d":"9.05%"}},{"$f":"Actif!$E$31/100","v":{"v":0.0605,"d":"6.05%"}},{"$f":"Actif!$E$32/100","v":{"v":0.47350000000000003,"d":"47.35%"}},{"$f":"Actif!$E$33/100","v":{"v":0.0585,"d":"5.85%"}},{"$f":"Actif!$E$29/100","v":{"v":0.027999999999999997,"d":"2.80%"}}]
[null,"#281",35,2026,"F","A_CAPI",{"v":0.44999999999999996,"d":"0.45"},{"v":0.38999999999999996,"d":"0.39"},0.6,0.6,85,0,{"$f":"ROUND(Primes!$P$10*V6388,2)","v":0.68},0,{"v":14782.363842404151,"d":"14,782"},{"$f":"'BP Financier'!$F$44*(('BP Financier'!$C$22+'BP Financier'!$D$22+'BP Financier'!$E$22+'BP Financier'!$F$22)/('BP Financier'!$C$16+'BP Financier'!$C$19+'BP Financier'!$D$16+'BP Financier'!$D$19+'BP Financier'!$E$16+'BP Financier'!$E$19+'BP Financier'!$C$22+'BP Financier'!$D$22+'BP Financier'!$E$22+'BP Financier'!$F$22+'BP Financier'!$F$16+'BP Financier'!$F$19))*$V6388*X6388/(1-$W6388)","v":{"v":1881.5807703763371,"d":"1,882"}},{"$f":"'BP Financier'!$F$44*(('BP Financier'!$C$22+'BP Financier'!$D$22+'BP Financier'!$E$22+'BP Financier'!$F$22)/('BP Financier'!$C$16+'BP Financier'!$C$19+'BP Financier'!$D$16+'BP Financier'!$D$19+'BP Financier'!$E$16+'BP Financier'!$E$19+'BP Financier'!$C$22+'BP Financier'!$D$22+'BP Financier'!$E$22+'BP Financier'!$F$22+'BP Financier'!$F$16+'BP Financier'!$F$19))*$V6388*Y6388/(1-$W6388)","v":{"v":1257.8523382073854,"d":"1,258"}},{"$f":"'BP Financier'!$F$44*(('BP Financier'!$C$22+'BP Financier'!$D$22+'BP Financier'!$E$22+'BP Financier'!$F$22)/('BP Financier'!$C$16+'BP Financier'!$C$19+'BP Financier'!$D$16+'BP Financier'!$D$19+'BP Financier'!$E$16+'BP Financier'!$E$19+'BP Financier'!$C$22+'BP Financier'!$D$22+'BP Financier'!$E$22+'BP Financier'!$F$22+'BP Financier'!$F$16+'BP Financier'!$F$19))*$V6388*Z6388/(1-$W6388)","v":{"v":9844.513754399952,"d":"9,845"}},{"$f":"'BP Financier'!$F$44*(('BP Financier'!$C$22+'BP Financier'!$D$22+'BP Financier'!$E$22+'BP Financier'!$F$22)/('BP Financier'!$C$16+'BP Financier'!$C$19+'BP Financier'!$D$16+'BP Financier'!$D$19+'BP Financier'!$E$16+'BP Financier'!$E$19+'BP Financier'!$C$22+'BP Financier'!$D$22+'BP Financier'!$E$22+'BP Financier'!$F$22+'BP Financier'!$F$16+'BP Financier'!$F$19))*$V6388*AA6388/(1-$W6388)","v":{"v":1216.2704427294555,"d":"1,216"}},{"$f":"'BP Financier'!$F$44*(('BP Financier'!$C$22+'BP Financier'!$D$22+'BP Financier'!$E$22+'BP Financier'!$F$22)/('BP Financier'!$C$16+'BP Financier'!$C$19+'BP Financier'!$D$16+'BP Financier'!$D$19+'BP Financier'!$E$16+'BP Financier'!$E$19+'BP Financier'!$C$22+'BP Financier'!$D$22+'BP Financier'!$E$22+'BP Financier'!$F$22+'BP Financier'!$F$16+'BP Financier'!$F$19))*$V6388*AB6388/(1-$W6388)","v":{"v":582.1465366910213,"d":"582"}},null,{"v":0.0075,"d":"0.75%"},{"$f":"Actif!$E$28/100","v":{"v":0.28900000000000003,"d":"28.90%"}},{"$f":"Actif!$E$30/100","v":{"v":0.09050000000000001,"d":"9.05%"}},{"$f":"Actif!$E$31/100","v":{"v":0.0605,"d":"6.05%"}},{"$f":"Actif!$E$32/100","v":{"v":0.47350000000000003,"d":"47.35%"}},{"$f":"Actif!$E$33/100","v":{"v":0.0585,"d":"5.85%"}},{"$f":"Actif!$E$29/100","v":{"v":0.027999999999999997,"d":"2.80%"}}]
[null,"#282",35,2028,"F","A_CAPI",{"v":0.44999999999999996,"d":"0.45"},{"v":0.38999999999999996,"d":"0.39"},0.6,0.6,85,0,{"$f":"ROUND(Primes!$P$10*V6389,2)","v":0.68},0,{"v":14782.363842404151,"d":"14,782"},{"$f":"'BP Financier'!$F$44*(('BP Financier'!$C$22+'BP Financier'!$D$22+'BP Financier'!$E$22+'BP Financier'!$F$22)/('BP Financier'!$C$16+'BP Financier'!$C$19+'BP Financier'!$D$16+'BP Financier'!$D$19+'BP Financier'!$E$16+'BP Financier'!$E$19+'BP Financier'!$C$22+'BP Financier'!$D$22+'BP Financier'!$E$22+'BP Financier'!$F$22+'BP Financier'!$F$16+'BP Financier'!$F$19))*$V6389*X6389/(1-$W6389)","v":{"v":1881.5807703763371,"d":"1,882"}},{"$f":"'BP Financier'!$F$44*(('BP Financier'!$C$22+'BP Financier'!$D$22+'BP Financier'!$E$22+'BP Financier'!$F$22)/('BP Financier'!$C$16+'BP Financier'!$C$19+'BP Financier'!$D$16+'BP Financier'!$D$19+'BP Financier'!$E$16+'BP Financier'!$E$19+'BP Financier'!$C$22+'BP Financier'!$D$22+'BP Financier'!$E$22+'BP Financier'!$F$22+'BP Financier'!$F$16+'BP Financier'!$F$19))*$V6389*Y6389/(1-$W6389)","v":{"v":1257.8523382073854,"d":"1,258"}},{"$f":"'BP Financier'!$F$44*(('BP Financier'!$C$22+'BP Financier'!$D$22+'BP Financier'!$E$22+'BP Financier'!$F$22)/('BP Financier'!$C$16+'BP Financier'!$C$19+'BP Financier'!$D$16+'BP Financier'!$D$19+'BP Financier'!$E$16+'BP Financier'!$E$19+'BP Financier'!$C$22+'BP Financier'!$D$22+'BP Financier'!$E$22+'BP Financier'!$F$22+'BP Financier'!$F$16+'BP Financier'!$F$19))*$V6389*Z6389/(1-$W6389)","v":{"v":9844.513754399952,"d":"9,845"}},{"$f":"'BP Financier'!$F$44*(('BP Financier'!$C$22+'BP Financier'!$D$22+'BP Financier'!$E$22+'BP Financier'!$F$22)/('BP Financier'!$C$16+'BP Financier'!$C$19+'BP Financier'!$D$16+'BP Financier'!$D$19+'BP Financier'!$E$16+'BP Financier'!$E$19+'BP Financier'!$C$22+'BP Financier'!$D$22+'BP Financier'!$E$22+'BP Financier'!$F$22+'BP Financier'!$F$16+'BP Financier'!$F$19))*$V6389*AA6389/(1-$W6389)","v":{"v":1216.2704427294555,"d":"1,216"}},{"$f":"'BP Financier'!$F$44*(('BP Financier'!$C$22+'BP Financier'!$D$22+'BP Financier'!$E$22+'BP Financier'!$F$22)/('BP Financier'!$C$16+'BP Financier'!$C$19+'BP Financier'!$D$16+'BP Financier'!$D$19+'BP Financier'!$E$16+'BP Financier'!$E$19+'BP Financier'!$C$22+'BP Financier'!$D$22+'BP Financier'!$E$22+'BP Financier'!$F$22+'BP Financier'!$F$16+'BP Financier'!$F$19))*$V6389*AB6389/(1-$W6389)","v":{"v":582.1465366910213,"d":"582"}},null,{"v":0.0075,"d":"0.75%"},{"$f":"Actif!$E$28/100","v":{"v":0.28900000000000003,"d":"28.90%"}},{"$f":"Actif!$E$30/100","v":{"v":0.09050000000000001,"d":"9.05%"}},{"$f":"Actif!$E$31/100","v":{"v":0.0605,"d":"6.05%"}},{"$f":"Actif!$E$32/100","v":{"v":0.47350000000000003,"d":"47.35%"}},{"$f":"Actif!$E$33/100","v":{"v":0.0585,"d":"5.85%"}},{"$f":"Actif!$E$29/100","v":{"v":0.027999999999999997,"d":"2.80%"}}]
[null,"#283",35,2029,"F","A_CAPI",{"v":0.44999999999999996,"d":"0.45"},{"v":0.38999999999999996,"d":"0.39"},0.6,0.6,85,0,{"$f":"ROUND(Primes!$P$10*V6390,2)","v":0.68},0,{"v":14782.363842404151,"d":"14,782"},{"$f":"'BP Financier'!$F$44*(('BP Financier'!$C$22+'BP Financier'!$D$22+'BP Financier'!$E$22+'BP Financier'!$F$22)/('BP Financier'!$C$16+'BP Financier'!$C$19+'BP Financier'!$D$16+'BP Financier'!$D$19+'BP Financier'!$E$16+'BP Financier'!$E$19+'BP Financier'!$C$22+'BP Financier'!$D$22+'BP Financier'!$E$22+'BP Financier'!$F$22+'BP Financier'!$F$16+'BP Financier'!$F$19))*$V6390*X6390/(1-$W6390)","v":{"v":1881.5807703763371,"d":"1,882"}},{"$f":"'BP Financier'!$F$44*(('BP Financier'!$C$22+'BP Financier'!$D$22+'BP Financier'!$E$22+'BP Financier'!$F$22)/('BP Financier'!$C$16+'BP Financier'!$C$19+'BP Financier'!$D$16+'BP Financier'!$D$19+'BP Financier'!$E$16+'BP Financier'!$E$19+'BP Financier'!$C$22+'BP Financier'!$D$22+'BP Financier'!$E$22+'BP Financier'!$F$22+'BP Financier'!$F$16+'BP Financier'!$F$19))*$V6390*Y6390/(1-$W6390)","v":{"v":1257.8523382073854,"d":"1,258"}},{"$f":"'BP Financier'!$F$44*(('BP Financier'!$C$22+'BP Financier'!$D$22+'BP Financier'!$E$22+'BP Financier'!$F$22)/('BP Financier'!$C$16+'BP Financier'!$C$19+'BP Financier'!$D$16+'BP Financier'!$D$19+'BP Financier'!$E$16+'BP Financier'!$E$19+'BP Financier'!$C$22+'BP Financier'!$D$22+'BP Financier'!$E$22+'BP Financier'!$F$22+'BP Financier'!$F$16+'BP Financier'!$F$19))*$V6390*Z6390/(1-$W6390)","v":{"v":9844.513754399952,"d":"9,845"}},{"$f":"'BP Financier'!$F$44*(('BP Financier'!$C$22+'BP Financier'!$D$22+'BP Financier'!$E$22+'BP Financier'!$F$22)/('BP Financier'!$C$16+'BP Financier'!$C$19+'BP Financier'!$D$16+'BP Financier'!$D$19+'BP Financier'!$E$16+'BP Financier'!$E$19+'BP Financier'!$C$22+'BP Financier'!$D$22+'BP Financier'!$E$22+'BP Financier'!$F$22+'BP Financier'!$F$16+'BP Financier'!$F$19))*$V6390*AA6390/(1-$W6390)","v":{"v":1216.2704427294555,"d":"1,216"}},{"$f":"'BP Financier'!$F$44*(('BP Financier'!$C$22+'BP Financier'!$D$22+'BP Financier'!$E$22+'BP Financier'!$F$22)/('BP Financier'!$C$16+'BP Financier'!$C$19+'BP Financier'!$D$16+'BP Financier'!$D$19+'BP Financier'!$E$16+'BP Financier'!$E$19+'BP Financier'!$C$22+'BP Financier'!$D$22+'BP Financier'!$E$22+'BP Financier'!$F$22+'BP Financier'!$F$16+'BP Financier'!$F$19))*$V6390*AB6390/(1-$W6390)","v":{"v":582.1465366910213,"d":"582"}},null,{"v":0.0075,"d":"0.75%"},{"$f":"Actif!$E$28/100","v":{"v":0.28900000000000003,"d":"28.90%"}},{"$f":"Actif!$E$30/100","v":{"v":0.09050000000000001,"d":"9.05%"}},{"$f":"Actif!$E$31/100","v":{"v":0.0605,"d":"6.05%"}},{"$f":"Actif!$E$32/100","v":{"v":0.47350000000000003,"d":"47.35%"}},{"$f":"Actif!$E$33/100","v":{"v":0.0585,"d":"5.85%"}},{"$f":"Actif!$E$29/100","v":{"v":0.027999999999999997,"d":"2.80%"}}]
[null,"#284",35,2030,"F","A_CAPI",{"v":0.44999999999999996,"d":"0.45"},{"v":0.38999999999999996,"d":"0.39"},0.6,0.6,85,0,{"$f":"ROUND(Primes!$P$10*V6391,2)","v":0.68},0,{"v":14782.363842404151,"d":"14,782"},{"$f":"'BP Financier'!$F$44*(('BP Financier'!$C$22+'BP Financier'!$D$22+'BP Financier'!$E$22+'BP Financier'!$F$22)/('BP Financier'!$C$16+'BP Financier'!$C$19+'BP Financier'!$D$16+'BP Financier'!$D$19+'BP Financier'!$E$16+'BP Financier'!$E$19+'BP Financier'!$C$22+'BP Financier'!$D$22+'BP Financier'!$E$22+'BP Financier'!$F$22+'BP Financier'!$F$16+'BP Financier'!$F$19))*$V6391*X6391/(1-$W6391)","v":{"v":1881.5807703763371,"d":"1,882"}},{"$f":"'BP Financier'!$F$44*(('BP Financier'!$C$22+'BP Financier'!$D$22+'BP Financier'!$E$22+'BP Financier'!$F$22)/('BP Financier'!$C$16+'BP Financier'!$C$19+'BP Financier'!$D$16+'BP Financier'!$D$19+'BP Financier'!$E$16+'BP Financier'!$E$19+'BP Financier'!$C$22+'BP Financier'!$D$22+'BP Financier'!$E$22+'BP Financier'!$F$22+'BP Financier'!$F$16+'BP Financier'!$F$19))*$V6391*Y6391/(1-$W6391)","v":{"v":1257.8523382073854,"d":"1,258"}},{"$f":"'BP Financier'!$F$44*(('BP Financier'!$C$22+'BP Financier'!$D$22+'BP Financier'!$E$22+'BP Financier'!$F$22)/('BP Financier'!$C$16+'BP Financier'!$C$19+'BP Financier'!$D$16+'BP Financier'!$D$19+'BP Financier'!$E$16+'BP Financier'!$E$19+'BP Financier'!$C$22+'BP Financier'!$D$22+'BP Financier'!$E$22+'BP Financier'!$F$22+'BP Financier'!$F$16+'BP Financier'!$F$19))*$V6391*Z6391/(1-$W6391)","v":{"v":9844.513754399952,"d":"9,845"}},{"$f":"'BP Financier'!$F$44*(('BP Financier'!$C$22+'BP Financier'!$D$22+'BP Financier'!$E$22+'BP Financier'!$F$22)/('BP Financier'!$C$16+'BP Financier'!$C$19+'BP Financier'!$D$16+'BP Financier'!$D$19+'BP Financier'!$E$16+'BP Financier'!$E$19+'BP Financier'!$C$22+'BP Financier'!$D$22+'BP Financier'!$E$22+'BP Financier'!$F$22+'BP Financier'!$F$16+'BP Financier'!$F$19))*$V6391*AA6391/(1-$W6391)","v":{"v":1216.2704427294555,"d":"1,216"}},{"$f":"'BP Financier'!$F$44*(('BP Financier'!$C$22+'BP Financier'!$D$22+'BP Financier'!$E$22+'BP Financier'!$F$22)/('BP Financier'!$C$16+'BP Financier'!$C$19+'BP Financier'!$D$16+'BP Financier'!$D$19+'BP Financier'!$E$16+'BP Financier'!$E$19+'BP Financier'!$C$22+'BP Financier'!$D$22+'BP Financier'!$E$22+'BP Financier'!$F$22+'BP Financier'!$F$16+'BP Financier'!$F$19))*$V6391*AB6391/(1-$W6391)","v":{"v":582.1465366910213,"d":"582"}},null,{"v":0.0075,"d":"0.75%"},{"$f":"Actif!$E$28/100","v":{"v":0.28900000000000003,"d":"28.90%"}},{"$f":"Actif!$E$30/100","v":{"v":0.09050000000000001,"d":"9.05%"}},{"$f":"Actif!$E$31/100","v":{"v":0.0605,"d":"6.05%"}},{"$f":"Actif!$E$32/100","v":{"v":0.47350000000000003,"d":"47.35%"}},{"$f":"Actif!$E$33/100","v":{"v":0.0585,"d":"5.85%"}},{"$f":"Actif!$E$29/100","v":{"v":0.027999999999999997,"d":"2.80%"}}]
[null,"#285",36,2026,"H","A_CAPI",{"v":0.44999999999999996,"d":"0.45"},{"v":0.38999999999999996,"d":"0.39"},0.6,0.6,85,0,{"$f":"ROUND(Primes!$P$10*V6392,2)","v":0.11},0,{"v":2463.7273070673587,"d":"2,464"},{"$f":"'BP Financier'!$F$44*(('BP Financier'!$C$22+'BP Financier'!$D$22+'BP Financier'!$E$22+'BP Financier'!$F$22)/('BP Financier'!$C$16+'BP Financier'!$C$19+'BP Financier'!$D$16+'BP Financier'!$D$19+'BP Financier'!$E$16+'BP Financier'!$E$19+'BP Financier'!$C$22+'BP Financier'!$D$22+'BP Financier'!$E$22+'BP Financier'!$F$22+'BP Financier'!$F$16+'BP Financier'!$F$19))*$V6392*X6392/(1-$W6392)","v":{"v":313.5967950627229,"d":"314"}},{"$f":"'BP Financier'!$F$44*(('BP Financier'!$C$22+'BP Financier'!$D$22+'BP Financier'!$E$22+'BP Financier'!$F$22)/('BP Financier'!$C$16+'BP Financier'!$C$19+'BP Financier'!$D$16+'BP Financier'!$D$19+'BP Financier'!$E$16+'BP Financier'!$E$19+'BP Financier'!$C$22+'BP Financier'!$D$22+'BP Financier'!$E$22+'BP Financier'!$F$22+'BP Financier'!$F$16+'BP Financier'!$F$19))*$V6392*Y6392/(1-$W6392)","v":{"v":209.64205636789757,"d":"210"}},{"$f":"'BP Financier'!$F$44*(('BP Financier'!$C$22+'BP Financier'!$D$22+'BP Financier'!$E$22+'BP Financier'!$F$22)/('BP Financier'!$C$16+'BP Financier'!$C$19+'BP Financier'!$D$16+'BP Financier'!$D$19+'BP Financier'!$E$16+'BP Financier'!$E$19+'BP Financier'!$C$22+'BP Financier'!$D$22+'BP Financier'!$E$22+'BP Financier'!$F$22+'BP Financier'!$F$16+'BP Financier'!$F$19))*$V6392*Z6392/(1-$W6392)","v":{"v":1640.7522923999918,"d":"1,641"}},{"$f":"'BP Financier'!$F$44*(('BP Financier'!$C$22+'BP Financier'!$D$22+'BP Financier'!$E$22+'BP Financier'!$F$22)/('BP Financier'!$C$16+'BP Financier'!$C$19+'BP Financier'!$D$16+'BP Financier'!$D$19+'BP Financier'!$E$16+'BP Financier'!$E$19+'BP Financier'!$C$22+'BP Financier'!$D$22+'BP Financier'!$E$22+'BP Financier'!$F$22+'BP Financier'!$F$16+'BP Financier'!$F$19))*$V6392*AA6392/(1-$W6392)","v":{"v":202.71174045490923,"d":"203"}},{"$f":"'BP Financier'!$F$44*(('BP Financier'!$C$22+'BP Financier'!$D$22+'BP Financier'!$E$22+'BP Financier'!$F$22)/('BP Financier'!$C$16+'BP Financier'!$C$19+'BP Financier'!$D$16+'BP Financier'!$D$19+'BP Financier'!$E$16+'BP Financier'!$E$19+'BP Financier'!$C$22+'BP Financier'!$D$22+'BP Financier'!$E$22+'BP Financier'!$F$22+'BP Financier'!$F$16+'BP Financier'!$F$19))*$V6392*AB6392/(1-$W6392)","v":{"v":97.02442278183689,"d":"97"}},null,{"v":1.25E-3,"d":"0.13%"},{"$f":"Actif!$E$28/100","v":{"v":0.28900000000000003,"d":"28.90%"}},{"$f":"Actif!$E$30/100","v":{"v":0.09050000000000001,"d":"9.05%"}},{"$f":"Actif!$E$31/100","v":{"v":0.0605,"d":"6.05%"}},{"$f":"Actif!$E$32/100","v":{"v":0.47350000000000003,"d":"47.35%"}},{"$f":"Actif!$E$33/100","v":{"v":0.0585,"d":"5.85%"}},{"$f":"Actif!$E$29/100","v":{"v":0.027999999999999997,"d":"2.80%"}}]
[null,"#286",36,2028,"H","A_CAPI",{"v":0.44999999999999996,"d":"0.45"},{"v":0.38999999999999996,"d":"0.39"},0.6,0.6,85,0,{"$f":"ROUND(Primes!$P$10*V6393,2)","v":0.11},0,{"v":2463.7273070673587,"d":"2,464"},{"$f":"'BP Financier'!$F$44*(('BP Financier'!$C$22+'BP Financier'!$D$22+'BP Financier'!$E$22+'BP Financier'!$F$22)/('BP Financier'!$C$16+'BP Financier'!$C$19+'BP Financier'!$D$16+'BP Financier'!$D$19+'BP Financier'!$E$16+'BP Financier'!$E$19+'BP Financier'!$C$22+'BP Financier'!$D$22+'BP Financier'!$E$22+'BP Financier'!$F$22+'BP Financier'!$F$16+'BP Financier'!$F$19))*$V6393*X6393/(1-$W6393)","v":{"v":313.5967950627229,"d":"314"}},{"$f":"'BP Financier'!$F$44*(('BP Financier'!$C$22+'BP Financier'!$D$22+'BP Financier'!$E$22+'BP Financier'!$F$22)/('BP Financier'!$C$16+'BP Financier'!$C$19+'BP Financier'!$D$16+'BP Financier'!$D$19+'BP Financier'!$E$16+'BP Financier'!$E$19+'BP Financier'!$C$22+'BP Financier'!$D$22+'BP Financier'!$E$22+'BP Financier'!$F$22+'BP Financier'!$F$16+'BP Financier'!$F$19))*$V6393*Y6393/(1-$W6393)","v":{"v":209.64205636789757,"d":"210"}},{"$f":"'BP Financier'!$F$44*(('BP Financier'!$C$22+'BP Financier'!$D$22+'BP Financier'!$E$22+'BP Financier'!$F$22)/('BP Financier'!$C$16+'BP Financier'!$C$19+'BP Financier'!$D$16+'BP Financier'!$D$19+'BP Financier'!$E$16+'BP Financier'!$E$19+'BP Financier'!$C$22+'BP Financier'!$D$22+'BP Financier'!$E$22+'BP Financier'!$F$22+'BP Financier'!$F$16+'BP Financier'!$F$19))*$V6393*Z6393/(1-$W6393)","v":{"v":1640.7522923999918,"d":"1,641"}},{"$f":"'BP Financier'!$F$44*(('BP Financier'!$C$22+'BP Financier'!$D$22+'BP Financier'!$E$22+'BP Financier'!$F$22)/('BP Financier'!$C$16+'BP Financier'!$C$19+'BP Financier'!$D$16+'BP Financier'!$D$19+'BP Financier'!$E$16+'BP Financier'!$E$19+'BP Financier'!$C$22+'BP Financier'!$D$22+'BP Financier'!$E$22+'BP Financier'!$F$22+'BP Financier'!$F$16+'BP Financier'!$F$19))*$V6393*AA6393/(1-$W6393)","v":{"v":202.71174045490923,"d":"203"}},{"$f":"'BP Financier'!$F$44*(('BP Financier'!$C$22+'BP Financier'!$D$22+'BP Financier'!$E$22+'BP Financier'!$F$22)/('BP Financier'!$C$16+'BP Financier'!$C$19+'BP Financier'!$D$16+'BP Financier'!$D$19+'BP Financier'!$E$16+'BP Financier'!$E$19+'BP Financier'!$C$22+'BP Financier'!$D$22+'BP Financier'!$E$22+'BP Financier'!$F$22+'BP Financier'!$F$16+'BP Financier'!$F$19))*$V6393*AB6393/(1-$W6393)","v":{"v":97.02442278183689,"d":"97"}},null,{"v":1.25E-3,"d":"0.13%"},{"$f":"Actif!$E$28/100","v":{"v":0.28900000000000003,"d":"28.90%"}},{"$f":"Actif!$E$30/100","v":{"v":0.09050000000000001,"d":"9.05%"}},{"$f":"Actif!$E$31/100","v":{"v":0.0605,"d":"6.05%"}},{"$f":"Actif!$E$32/100","v":{"v":0.47350000000000003,"d":"47.35%"}},{"$f":"Actif!$E$33/100","v":{"v":0.0585,"d":"5.85%"}},{"$f":"Actif!$E$29/100","v":{"v":0.027999999999999997,"d":"2.80%"}}]
[null,"#287",36,2029,"H","A_CAPI",{"v":0.44999999999999996,"d":"0.45"},{"v":0.38999999999999996,"d":"0.39"},0.6,0.6,85,0,{"$f":"ROUND(Primes!$P$10*V6394,2)","v":0.11},0,{"v":2463.7273070673587,"d":"2,464"},{"$f":"'BP Financier'!$F$44*(('BP Financier'!$C$22+'BP Financier'!$D$22+'BP Financier'!$E$22+'BP Financier'!$F$22)/('BP Financier'!$C$16+'BP Financier'!$C$19+'BP Financier'!$D$16+'BP Financier'!$D$19+'BP Financier'!$E$16+'BP Financier'!$E$19+'BP Financier'!$C$22+'BP Financier'!$D$22+'BP Financier'!$E$22+'BP Financier'!$F$22+'BP Financier'!$F$16+'BP Financier'!$F$19))*$V6394*X6394/(1-$W6394)","v":{"v":313.5967950627229,"d":"314"}},{"$f":"'BP Financier'!$F$44*(('BP Financier'!$C$22+'BP Financier'!$D$22+'BP Financier'!$E$22+'BP Financier'!$F$22)/('BP Financier'!$C$16+'BP Financier'!$C$19+'BP Financier'!$D$16+'BP Financier'!$D$19+'BP Financier'!$E$16+'BP Financier'!$E$19+'BP Financier'!$C$22+'BP Financier'!$D$22+'BP Financier'!$E$22+'BP Financier'!$F$22+'BP Financier'!$F$16+'BP Financier'!$F$19))*$V6394*Y6394/(1-$W6394)","v":{"v":209.64205636789757,"d":"210"}},{"$f":"'BP Financier'!$F$44*(('BP Financier'!$C$22+'BP Financier'!$D$22+'BP Financier'!$E$22+'BP Financier'!$F$22)/('BP Financier'!$C$16+'BP Financier'!$C$19+'BP Financier'!$D$16+'BP Financier'!$D$19+'BP Financier'!$E$16+'BP Financier'!$E$19+'BP Financier'!$C$22+'BP Financier'!$D$22+'BP Financier'!$E$22+'BP Financier'!$F$22+'BP Financier'!$F$16+'BP Financier'!$F$19))*$V6394*Z6394/(1-$W6394)","v":{"v":1640.7522923999918,"d":"1,641"}},{"$f":"'BP Financier'!$F$44*(('BP Financier'!$C$22+'BP Financier'!$D$22+'BP Financier'!$E$22+'BP Financier'!$F$22)/('BP Financier'!$C$16+'BP Financier'!$C$19+'BP Financier'!$D$16+'BP Financier'!$D$19+'BP Financier'!$E$16+'BP Financier'!$E$19+'BP Financier'!$C$22+'BP Financier'!$D$22+'BP Financier'!$E$22+'BP Financier'!$F$22+'BP Financier'!$F$16+'BP Financier'!$F$19))*$V6394*AA6394/(1-$W6394)","v":{"v":202.71174045490923,"d":"203"}},{"$f":"'BP Financier'!$F$44*(('BP Financier'!$C$22+'BP Financier'!$D$22+'BP Financier'!$E$22+'BP Financier'!$F$22)/('BP Financier'!$C$16+'BP Financier'!$C$19+'BP Financier'!$D$16+'BP Financier'!$D$19+'BP Financier'!$E$16+'BP Financier'!$E$19+'BP Financier'!$C$22+'BP Financier'!$D$22+'BP Financier'!$E$22+'BP Financier'!$F$22+'BP Financier'!$F$16+'BP Financier'!$F$19))*$V6394*AB6394/(1-$W6394)","v":{"v":97.02442278183689,"d":"97"}},null,{"v":1.25E-3,"d":"0.13%"},{"$f":"Actif!$E$28/100","v":{"v":0.28900000000000003,"d":"28.90%"}},{"$f":"Actif!$E$30/100","v":{"v":0.09050000000000001,"d":"9.05%"}},{"$f":"Actif!$E$31/100","v":{"v":0.0605,"d":"6.05%"}},{"$f":"Actif!$E$32/100","v":{"v":0.47350000000000003,"d":"47.35%"}},{"$f":"Actif!$E$33/100","v":{"v":0.0585,"d":"5.85%"}},{"$f":"Actif!$E$29/100","v":{"v":0.027999999999999997,"d":"2.80%"}}]
[null,"#288",36,2030,"H","A_CAPI",{"v":0.44999999999999996,"d":"0.45"},{"v":0.38999999999999996,"d":"0.39"},0.6,0.6,85,0,{"$f":"ROUND(Primes!$P$10*V6395,2)","v":0.11},0,{"v":2463.7273070673587,"d":"2,464"},{"$f":"'BP Financier'!$F$44*(('BP Financier'!$C$22+'BP Financier'!$D$22+'BP Financier'!$E$22+'BP Financier'!$F$22)/('BP Financier'!$C$16+'BP Financier'!$C$19+'BP Financier'!$D$16+'BP Financier'!$D$19+'BP Financier'!$E$16+'BP Financier'!$E$19+'BP Financier'!$C$22+'BP Financier'!$D$22+'BP Financier'!$E$22+'BP Financier'!$F$22+'BP Financier'!$F$16+'BP Financier'!$F$19))*$V6395*X6395/(1-$W6395)","v":{"v":313.5967950627229,"d":"314"}},{"$f":"'BP Financier'!$F$44*(('BP Financier'!$C$22+'BP Financier'!$D$22+'BP Financier'!$E$22+'BP Financier'!$F$22)/('BP Financier'!$C$16+'BP Financier'!$C$19+'BP Financier'!$D$16+'BP Financier'!$D$19+'BP Financier'!$E$16+'BP Financier'!$E$19+'BP Financier'!$C$22+'BP Financier'!$D$22+'BP Financier'!$E$22+'BP Financier'!$F$22+'BP Financier'!$F$16+'BP Financier'!$F$19))*$V6395*Y6395/(1-$W6395)","v":{"v":209.64205636789757,"d":"210"}},{"$f":"'BP Financier'!$F$44*(('BP Financier'!$C$22+'BP Financier'!$D$22+'BP Financier'!$E$22+'BP Financier'!$F$22)/('BP Financier'!$C$16+'BP Financier'!$C$19+'BP Financier'!$D$16+'BP Financier'!$D$19+'BP Financier'!$E$16+'BP Financier'!$E$19+'BP Financier'!$C$22+'BP Financier'!$D$22+'BP Financier'!$E$22+'BP Financier'!$F$22+'BP Financier'!$F$16+'BP Financier'!$F$19))*$V6395*Z6395/(1-$W6395)","v":{"v":1640.7522923999918,"d":"1,641"}},{"$f":"'BP Financier'!$F$44*(('BP Financier'!$C$22+'BP Financier'!$D$22+'BP Financier'!$E$22+'BP Financier'!$F$22)/('BP Financier'!$C$16+'BP Financier'!$C$19+'BP Financier'!$D$16+'BP Financier'!$D$19+'BP Financier'!$E$16+'BP Financier'!$E$19+'BP Financier'!$C$22+'BP Financier'!$D$22+'BP Financier'!$E$22+'BP Financier'!$F$22+'BP Financier'!$F$16+'BP Financier'!$F$19))*$V6395*AA6395/(1-$W6395)","v":{"v":202.71174045490923,"d":"203"}},{"$f":"'BP Financier'!$F$44*(('BP Financier'!$C$22+'BP Financier'!$D$22+'BP Financier'!$E$22+'BP Financier'!$F$22)/('BP Financier'!$C$16+'BP Financier'!$C$19+'BP Financier'!$D$16+'BP Financier'!$D$19+'BP Financier'!$E$16+'BP Financier'!$E$19+'BP Financier'!$C$22+'BP Financier'!$D$22+'BP Financier'!$E$22+'BP Financier'!$F$22+'BP Financier'!$F$16+'BP Financier'!$F$19))*$V6395*AB6395/(1-$W6395)","v":{"v":97.02442278183689,"d":"97"}},null,{"v":1.25E-3,"d":"0.13%"},{"$f":"Actif!$E$28/100","v":{"v":0.28900000000000003,"d":"28.90%"}},{"$f":"Actif!$E$30/100","v":{"v":0.09050000000000001,"d":"9.05%"}},{"$f":"Actif!$E$31/100","v":{"v":0.0605,"d":"6.05%"}},{"$f":"Actif!$E$32/100","v":{"v":0.47350000000000003,"d":"47.35%"}},{"$f":"Actif!$E$33/100","v":{"v":0.0585,"d":"5.85%"}},{"$f":"Actif!$E$29/100","v":{"v":0.027999999999999997,"d":"2.80%"}}]
[null,"#289",37,2026,"H","A_CAPI",{"v":0.44999999999999996,"d":"0.45"},{"v":0.38999999999999996,"d":"0.39"},0.6,0.6,85,0,{"$f":"ROUND(Primes!$P$10*V6396,2)","v":0.11},0,{"v":2463.7273070673587,"d":"2,464"},{"$f":"'BP Financier'!$F$44*(('BP Financier'!$C$22+'BP Financier'!$D$22+'BP Financier'!$E$22+'BP Financier'!$F$22)/('BP Financier'!$C$16+'BP Financier'!$C$19+'BP Financier'!$D$16+'BP Financier'!$D$19+'BP Financier'!$E$16+'BP Financier'!$E$19+'BP Financier'!$C$22+'BP Financier'!$D$22+'BP Financier'!$E$22+'BP Financier'!$F$22+'BP Financier'!$F$16+'BP Financier'!$F$19))*$V6396*X6396/(1-$W6396)","v":{"v":313.5967950627229,"d":"314"}},{"$f":"'BP Financier'!$F$44*(('BP Financier'!$C$22+'BP Financier'!$D$22+'BP Financier'!$E$22+'BP Financier'!$F$22)/('BP Financier'!$C$16+'BP Financier'!$C$19+'BP Financier'!$D$16+'BP Financier'!$D$19+'BP Financier'!$E$16+'BP Financier'!$E$19+'BP Financier'!$C$22+'BP Financier'!$D$22+'BP Financier'!$E$22+'BP Financier'!$F$22+'BP Financier'!$F$16+'BP Financier'!$F$19))*$V6396*Y6396/(1-$W6396)","v":{"v":209.64205636789757,"d":"210"}},{"$f":"'BP Financier'!$F$44*(('BP Financier'!$C$22+'BP Financier'!$D$22+'BP Financier'!$E$22+'BP Financier'!$F$22)/('BP Financier'!$C$16+'BP Financier'!$C$19+'BP Financier'!$D$16+'BP Financier'!$D$19+'BP Financier'!$E$16+'BP Financier'!$E$19+'BP Financier'!$C$22+'BP Financier'!$D$22+'BP Financier'!$E$22+'BP Financier'!$F$22+'BP Financier'!$F$16+'BP Financier'!$F$19))*$V6396*Z6396/(1-$W6396)","v":{"v":1640.7522923999918,"d":"1,641"}},{"$f":"'BP Financier'!$F$44*(('BP Financier'!$C$22+'BP Financier'!$D$22+'BP Financier'!$E$22+'BP Financier'!$F$22)/('BP Financier'!$C$16+'BP Financier'!$C$19+'BP Financier'!$D$16+'BP Financier'!$D$19+'BP Financier'!$E$16+'BP Financier'!$E$19+'BP Financier'!$C$22+'BP Financier'!$D$22+'BP Financier'!$E$22+'BP Financier'!$F$22+'BP Financier'!$F$16+'BP Financier'!$F$19))*$V6396*AA6396/(1-$W6396)","v":{"v":202.71174045490923,"d":"203"}},{"$f":"'BP Financier'!$F$44*(('BP Financier'!$C$22+'BP Financier'!$D$22+'BP Financier'!$E$22+'BP Financier'!$F$22)/('BP Financier'!$C$16+'BP Financier'!$C$19+'BP Financier'!$D$16+'BP Financier'!$D$19+'BP Financier'!$E$16+'BP Financier'!$E$19+'BP Financier'!$C$22+'BP Financier'!$D$22+'BP Financier'!$E$22+'BP Financier'!$F$22+'BP Financier'!$F$16+'BP Financier'!$F$19))*$V6396*AB6396/(1-$W6396)","v":{"v":97.02442278183689,"d":"97"}},null,{"v":1.25E-3,"d":"0.13%"},{"$f":"Actif!$E$28/100","v":{"v":0.28900000000000003,"d":"28.90%"}},{"$f":"Actif!$E$30/100","v":{"v":0.09050000000000001,"d":"9.05%"}},{"$f":"Actif!$E$31/100","v":{"v":0.0605,"d":"6.05%"}},{"$f":"Actif!$E$32/100","v":{"v":0.47350000000000003,"d":"47.35%"}},{"$f":"Actif!$E$33/100","v":{"v":0.0585,"d":"5.85%"}},{"$f":"Actif!$E$29/100","v":{"v":0.027999999999999997,"d":"2.80%"}}]
[null,"#290",37,2028,"H","A_CAPI",{"v":0.44999999999999996,"d":"0.45"},{"v":0.38999999999999996,"d":"0.39"},0.6,0.6,85,0,{"$f":"ROUND(Primes!$P$10*V6397,2)","v":0.11},0,{"v":2463.7273070673587,"d":"2,464"},{"$f":"'BP Financier'!$F$44*(('BP Financier'!$C$22+'BP Financier'!$D$22+'BP Financier'!$E$22+'BP Financier'!$F$22)/('BP Financier'!$C$16+'BP Financier'!$C$19+'BP Financier'!$D$16+'BP Financier'!$D$19+'BP Financier'!$E$16+'BP Financier'!$E$19+'BP Financier'!$C$22+'BP Financier'!$D$22+'BP Financier'!$E$22+'BP Financier'!$F$22+'BP Financier'!$F$16+'BP Financier'!$F$19))*$V6397*X6397/(1-$W6397)","v":{"v":313.5967950627229,"d":"314"}},{"$f":"'BP Financier'!$F$44*(('BP Financier'!$C$22+'BP Financier'!$D$22+'BP Financier'!$E$22+'BP Financier'!$F$22)/('BP Financier'!$C$16+'BP Financier'!$C$19+'BP Financier'!$D$16+'BP Financier'!$D$19+'BP Financier'!$E$16+'BP Financier'!$E$19+'BP Financier'!$C$22+'BP Financier'!$D$22+'BP Financier'!$E$22+'BP Financier'!$F$22+'BP Financier'!$F$16+'BP Financier'!$F$19))*$V6397*Y6397/(1-$W6397)","v":{"v":209.64205636789757,"d":"210"}},{"$f":"'BP Financier'!$F$44*(('BP Financier'!$C$22+'BP Financier'!$D$22+'BP Financier'!$E$22+'BP Financier'!$F$22)/('BP Financier'!$C$16+'BP Financier'!$C$19+'BP Financier'!$D$16+'BP Financier'!$D$19+'BP Financier'!$E$16+'BP Financier'!$E$19+'BP Financier'!$C$22+'BP Financier'!$D$22+'BP Financier'!$E$22+'BP Financier'!$F$22+'BP Financier'!$F$16+'BP Financier'!$F$19))*$V6397*Z6397/(1-$W6397)","v":{"v":1640.7522923999918,"d":"1,641"}},{"$f":"'BP Financier'!$F$44*(('BP Financier'!$C$22+'BP Financier'!$D$22+'BP Financier'!$E$22+'BP Financier'!$F$22)/('BP Financier'!$C$16+'BP Financier'!$C$19+'BP Financier'!$D$16+'BP Financier'!$D$19+'BP Financier'!$E$16+'BP Financier'!$E$19+'BP Financier'!$C$22+'BP Financier'!$D$22+'BP Financier'!$E$22+'BP Financier'!$F$22+'BP Financier'!$F$16+'BP Financier'!$F$19))*$V6397*AA6397/(1-$W6397)","v":{"v":202.71174045490923,"d":"203"}},{"$f":"'BP Financier'!$F$44*(('BP Financier'!$C$22+'BP Financier'!$D$22+'BP Financier'!$E$22+'BP Financier'!$F$22)/('BP Financier'!$C$16+'BP Financier'!$C$19+'BP Financier'!$D$16+'BP Financier'!$D$19+'BP Financier'!$E$16+'BP Financier'!$E$19+'BP Financier'!$C$22+'BP Financier'!$D$22+'BP Financier'!$E$22+'BP Financier'!$F$22+'BP Financier'!$F$16+'BP Financier'!$F$19))*$V6397*AB6397/(1-$W6397)","v":{"v":97.02442278183689,"d":"97"}},null,{"v":1.25E-3,"d":"0.13%"},{"$f":"Actif!$E$28/100","v":{"v":0.28900000000000003,"d":"28.90%"}},{"$f":"Actif!$E$30/100","v":{"v":0.09050000000000001,"d":"9.05%"}},{"$f":"Actif!$E$31/100","v":{"v":0.0605,"d":"6.05%"}},{"$f":"Actif!$E$32/100","v":{"v":0.47350000000000003,"d":"47.35%"}},{"$f":"Actif!$E$33/100","v":{"v":0.0585,"d":"5.85%"}},{"$f":"Actif!$E$29/100","v":{"v":0.027999999999999997,"d":"2.80%"}}]
[null,"#291",37,2029,"H","A_CAPI",{"v":0.44999999999999996,"d":"0.45"},{"v":0.38999999999999996,"d":"0.39"},0.6,0.6,85,0,{"$f":"ROUND(Primes!$P$10*V6398,2)","v":0.11},0,{"v":2463.7273070673587,"d":"2,464"},{"$f":"'BP Financier'!$F$44*(('BP Financier'!$C$22+'BP Financier'!$D$22+'BP Financier'!$E$22+'BP Financier'!$F$22)/('BP Financier'!$C$16+'BP Financier'!$C$19+'BP Financier'!$D$16+'BP Financier'!$D$19+'BP Financier'!$E$16+'BP Financier'!$E$19+'BP Financier'!$C$22+'BP Financier'!$D$22+'BP Financier'!$E$22+'BP Financier'!$F$22+'BP Financier'!$F$16+'BP Financier'!$F$19))*$V6398*X6398/(1-$W6398)","v":{"v":313.5967950627229,"d":"314"}},{"$f":"'BP Financier'!$F$44*(('BP Financier'!$C$22+'BP Financier'!$D$22+'BP Financier'!$E$22+'BP Financier'!$F$22)/('BP Financier'!$C$16+'BP Financier'!$C$19+'BP Financier'!$D$16+'BP Financier'!$D$19+'BP Financier'!$E$16+'BP Financier'!$E$19+'BP Financier'!$C$22+'BP Financier'!$D$22+'BP Financier'!$E$22+'BP Financier'!$F$22+'BP Financier'!$F$16+'BP Financier'!$F$19))*$V6398*Y6398/(1-$W6398)","v":{"v":209.64205636789757,"d":"210"}},{"$f":"'BP Financier'!$F$44*(('BP Financier'!$C$22+'BP Financier'!$D$22+'BP Financier'!$E$22+'BP Financier'!$F$22)/('BP Financier'!$C$16+'BP Financier'!$C$19+'BP Financier'!$D$16+'BP Financier'!$D$19+'BP Financier'!$E$16+'BP Financier'!$E$19+'BP Financier'!$C$22+'BP Financier'!$D$22+'BP Financier'!$E$22+'BP Financier'!$F$22+'BP Financier'!$F$16+'BP Financier'!$F$19))*$V6398*Z6398/(1-$W6398)","v":{"v":1640.7522923999918,"d":"1,641"}},{"$f":"'BP Financier'!$F$44*(('BP Financier'!$C$22+'BP Financier'!$D$22+'BP Financier'!$E$22+'BP Financier'!$F$22)/('BP Financier'!$C$16+'BP Financier'!$C$19+'BP Financier'!$D$16+'BP Financier'!$D$19+'BP Financier'!$E$16+'BP Financier'!$E$19+'BP Financier'!$C$22+'BP Financier'!$D$22+'BP Financier'!$E$22+'BP Financier'!$F$22+'BP Financier'!$F$16+'BP Financier'!$F$19))*$V6398*AA6398/(1-$W6398)","v":{"v":202.71174045490923,"d":"203"}},{"$f":"'BP Financier'!$F$44*(('BP Financier'!$C$22+'BP Financier'!$D$22+'BP Financier'!$E$22+'BP Financier'!$F$22)/('BP Financier'!$C$16+'BP Financier'!$C$19+'BP Financier'!$D$16+'BP Financier'!$D$19+'BP Financier'!$E$16+'BP Financier'!$E$19+'BP Financier'!$C$22+'BP Financier'!$D$22+'BP Financier'!$E$22+'BP Financier'!$F$22+'BP Financier'!$F$16+'BP Financier'!$F$19))*$V6398*AB6398/(1-$W6398)","v":{"v":97.02442278183689,"d":"97"}},null,{"v":1.25E-3,"d":"0.13%"},{"$f":"Actif!$E$28/100","v":{"v":0.28900000000000003,"d":"28.90%"}},{"$f":"Actif!$E$30/100","v":{"v":0.09050000000000001,"d":"9.05%"}},{"$f":"Actif!$E$31/100","v":{"v":0.0605,"d":"6.05%"}},{"$f":"Actif!$E$32/100","v":{"v":0.47350000000000003,"d":"47.35%"}},{"$f":"Actif!$E$33/100","v":{"v":0.0585,"d":"5.85%"}},{"$f":"Actif!$E$29/100","v":{"v":0.027999999999999997,"d":"2.80%"}}]
[null,"#292",37,2030,"H","A_CAPI",{"v":0.44999999999999996,"d":"0.45"},{"v":0.38999999999999996,"d":"0.39"},0.6,0.6,85,0,{"$f":"ROUND(Primes!$P$10*V6399,2)","v":0.11},0,{"v":2463.7273070673587,"d":"2,464"},{"$f":"'BP Financier'!$F$44*(('BP Financier'!$C$22+'BP Financier'!$D$22+'BP Financier'!$E$22+'BP Financier'!$F$22)/('BP Financier'!$C$16+'BP Financier'!$C$19+'BP Financier'!$D$16+'BP Financier'!$D$19+'BP Financier'!$E$16+'BP Financier'!$E$19+'BP Financier'!$C$22+'BP Financier'!$D$22+'BP Financier'!$E$22+'BP Financier'!$F$22+'BP Financier'!$F$16+'BP Financier'!$F$19))*$V6399*X6399/(1-$W6399)","v":{"v":313.5967950627229,"d":"314"}},{"$f":"'BP Financier'!$F$44*(('BP Financier'!$C$22+'BP Financier'!$D$22+'BP Financier'!$E$22+'BP Financier'!$F$22)/('BP Financier'!$C$16+'BP Financier'!$C$19+'BP Financier'!$D$16+'BP Financier'!$D$19+'BP Financier'!$E$16+'BP Financier'!$E$19+'BP Financier'!$C$22+'BP Financier'!$D$22+'BP Financier'!$E$22+'BP Financier'!$F$22+'BP Financier'!$F$16+'BP Financier'!$F$19))*$V6399*Y6399/(1-$W6399)","v":{"v":209.64205636789757,"d":"210"}},{"$f":"'BP Financier'!$F$44*(('BP Financier'!$C$22+'BP Financier'!$D$22+'BP Financier'!$E$22+'BP Financier'!$F$22)/('BP Financier'!$C$16+'BP Financier'!$C$19+'BP Financier'!$D$16+'BP Financier'!$D$19+'BP Financier'!$E$16+'BP Financier'!$E$19+'BP Financier'!$C$22+'BP Financier'!$D$22+'BP Financier'!$E$22+'BP Financier'!$F$22+'BP Financier'!$F$16+'BP Financier'!$F$19))*$V6399*Z6399/(1-$W6399)","v":{"v":1640.7522923999918,"d":"1,641"}},{"$f":"'BP Financier'!$F$44*(('BP Financier'!$C$22+'BP Financier'!$D$22+'BP Financier'!$E$22+'BP Financier'!$F$22)/('BP Financier'!$C$16+'BP Financier'!$C$19+'BP Financier'!$D$16+'BP Financier'!$D$19+'BP Financier'!$E$16+'BP Financier'!$E$19+'BP Financier'!$C$22+'BP Financier'!$D$22+'BP Financier'!$E$22+'BP Financier'!$F$22+'BP Financier'!$F$16+'BP Financier'!$F$19))*$V6399*AA6399/(1-$W6399)","v":{"v":202.71174045490923,"d":"203"}},{"$f":"'BP Financier'!$F$44*(('BP Financier'!$C$22+'BP Financier'!$D$22+'BP Financier'!$E$22+'BP Financier'!$F$22)/('BP Financier'!$C$16+'BP Financier'!$C$19+'BP Financier'!$D$16+'BP Financier'!$D$19+'BP Financier'!$E$16+'BP Financier'!$E$19+'BP Financier'!$C$22+'BP Financier'!$D$22+'BP Financier'!$E$22+'BP Financier'!$F$22+'BP Financier'!$F$16+'BP Financier'!$F$19))*$V6399*AB6399/(1-$W6399)","v":{"v":97.02442278183689,"d":"97"}},null,{"v":1.25E-3,"d":"0.13%"},{"$f":"Actif!$E$28/100","v":{"v":0.28900000000000003,"d":"28.90%"}},{"$f":"Actif!$E$30/100","v":{"v":0.09050000000000001,"d":"9.05%"}},{"$f":"Actif!$E$31/100","v":{"v":0.0605,"d":"6.05%"}},{"$f":"Actif!$E$32/100","v":{"v":0.47350000000000003,"d":"47.35%"}},{"$f":"Actif!$E$33/100","v":{"v":0.0585,"d":"5.85%"}},{"$f":"Actif!$E$29/100","v":{"v":0.027999999999999997,"d":"2.80%"}}]
[null,"#293",38,2026,"F","A_CAPI",{"v":0.44999999999999996,"d":"0.45"},{"v":0.38999999999999996,"d":"0.39"},0.6,0.6,85,0,{"$f":"ROUND(Primes!$P$10*V6400,2)","v":0.11},0,{"v":2463.7273070673587,"d":"2,464"},{"$f":"'BP Financier'!$F$44*(('BP Financier'!$C$22+'BP Financier'!$D$22+'BP Financier'!$E$22+'BP Financier'!$F$22)/('BP Financier'!$C$16+'BP Financier'!$C$19+'BP Financier'!$D$16+'BP Financier'!$D$19+'BP Financier'!$E$16+'BP Financier'!$E$19+'BP Financier'!$C$22+'BP Financier'!$D$22+'BP Financier'!$E$22+'BP Financier'!$F$22+'BP Financier'!$F$16+'BP Financier'!$F$19))*$V6400*X6400/(1-$W6400)","v":{"v":313.5967950627229,"d":"314"}},{"$f":"'BP Financier'!$F$44*(('BP Financier'!$C$22+'BP Financier'!$D$22+'BP Financier'!$E$22+'BP Financier'!$F$22)/('BP Financier'!$C$16+'BP Financier'!$C$19+'BP Financier'!$D$16+'BP Financier'!$D$19+'BP Financier'!$E$16+'BP Financier'!$E$19+'BP Financier'!$C$22+'BP Financier'!$D$22+'BP Financier'!$E$22+'BP Financier'!$F$22+'BP Financier'!$F$16+'BP Financier'!$F$19))*$V6400*Y6400/(1-$W6400)","v":{"v":209.64205636789757,"d":"210"}},{"$f":"'BP Financier'!$F$44*(('BP Financier'!$C$22+'BP Financier'!$D$22+'BP Financier'!$E$22+'BP Financier'!$F$22)/('BP Financier'!$C$16+'BP Financier'!$C$19+'BP Financier'!$D$16+'BP Financier'!$D$19+'BP Financier'!$E$16+'BP Financier'!$E$19+'BP Financier'!$C$22+'BP Financier'!$D$22+'BP Financier'!$E$22+'BP Financier'!$F$22+'BP Financier'!$F$16+'BP Financier'!$F$19))*$V6400*Z6400/(1-$W6400)","v":{"v":1640.7522923999918,"d":"1,641"}},{"$f":"'BP Financier'!$F$44*(('BP Financier'!$C$22+'BP Financier'!$D$22+'BP Financier'!$E$22+'BP Financier'!$F$22)/('BP Financier'!$C$16+'BP Financier'!$C$19+'BP Financier'!$D$16+'BP Financier'!$D$19+'BP Financier'!$E$16+'BP Financier'!$E$19+'BP Financier'!$C$22+'BP Financier'!$D$22+'BP Financier'!$E$22+'BP Financier'!$F$22+'BP Financier'!$F$16+'BP Financier'!$F$19))*$V6400*AA6400/(1-$W6400)","v":{"v":202.71174045490923,"d":"203"}},{"$f":"'BP Financier'!$F$44*(('BP Financier'!$C$22+'BP Financier'!$D$22+'BP Financier'!$E$22+'BP Financier'!$F$22)/('BP Financier'!$C$16+'BP Financier'!$C$19+'BP Financier'!$D$16+'BP Financier'!$D$19+'BP Financier'!$E$16+'BP Financier'!$E$19+'BP Financier'!$C$22+'BP Financier'!$D$22+'BP Financier'!$E$22+'BP Financier'!$F$22+'BP Financier'!$F$16+'BP Financier'!$F$19))*$V6400*AB6400/(1-$W6400)","v":{"v":97.02442278183689,"d":"97"}},null,{"v":1.25E-3,"d":"0.13%"},{"$f":"Actif!$E$28/100","v":{"v":0.28900000000000003,"d":"28.90%"}},{"$f":"Actif!$E$30/100","v":{"v":0.09050000000000001,"d":"9.05%"}},{"$f":"Actif!$E$31/100","v":{"v":0.0605,"d":"6.05%"}},{"$f":"Actif!$E$32/100","v":{"v":0.47350000000000003,"d":"47.35%"}},{"$f":"Actif!$E$33/100","v":{"v":0.0585,"d":"5.85%"}},{"$f":"Actif!$E$29/100","v":{"v":0.027999999999999997,"d":"2.80%"}}]
[null,"#294",38,2028,"F","A_CAPI",{"v":0.44999999999999996,"d":"0.45"},{"v":0.38999999999999996,"d":"0.39"},0.6,0.6,85,0,{"$f":"ROUND(Primes!$P$10*V6401,2)","v":0.11},0,{"v":2463.7273070673587,"d":"2,464"},{"$f":"'BP Financier'!$F$44*(('BP Financier'!$C$22+'BP Financier'!$D$22+'BP Financier'!$E$22+'BP Financier'!$F$22)/('BP Financier'!$C$16+'BP Financier'!$C$19+'BP Financier'!$D$16+'BP Financier'!$D$19+'BP Financier'!$E$16+'BP Financier'!$E$19+'BP Financier'!$C$22+'BP Financier'!$D$22+'BP Financier'!$E$22+'BP Financier'!$F$22+'BP Financier'!$F$16+'BP Financier'!$F$19))*$V6401*X6401/(1-$W6401)","v":{"v":313.5967950627229,"d":"314"}},{"$f":"'BP Financier'!$F$44*(('BP Financier'!$C$22+'BP Financier'!$D$22+'BP Financier'!$E$22+'BP Financier'!$F$22)/('BP Financier'!$C$16+'BP Financier'!$C$19+'BP Financier'!$D$16+'BP Financier'!$D$19+'BP Financier'!$E$16+'BP Financier'!$E$19+'BP Financier'!$C$22+'BP Financier'!$D$22+'BP Financier'!$E$22+'BP Financier'!$F$22+'BP Financier'!$F$16+'BP Financier'!$F$19))*$V6401*Y6401/(1-$W6401)","v":{"v":209.64205636789757,"d":"210"}},{"$f":"'BP Financier'!$F$44*(('BP Financier'!$C$22+'BP Financier'!$D$22+'BP Financier'!$E$22+'BP Financier'!$F$22)/('BP Financier'!$C$16+'BP Financier'!$C$19+'BP Financier'!$D$16+'BP Financier'!$D$19+'BP Financier'!$E$16+'BP Financier'!$E$19+'BP Financier'!$C$22+'BP Financier'!$D$22+'BP Financier'!$E$22+'BP Financier'!$F$22+'BP Financier'!$F$16+'BP Financier'!$F$19))*$V6401*Z6401/(1-$W6401)","v":{"v":1640.7522923999918,"d":"1,641"}},{"$f":"'BP Financier'!$F$44*(('BP Financier'!$C$22+'BP Financier'!$D$22+'BP Financier'!$E$22+'BP Financier'!$F$22)/('BP Financier'!$C$16+'BP Financier'!$C$19+'BP Financier'!$D$16+'BP Financier'!$D$19+'BP Financier'!$E$16+'BP Financier'!$E$19+'BP Financier'!$C$22+'BP Financier'!$D$22+'BP Financier'!$E$22+'BP Financier'!$F$22+'BP Financier'!$F$16+'BP Financier'!$F$19))*$V6401*AA6401/(1-$W6401)","v":{"v":202.71174045490923,"d":"203"}},{"$f":"'BP Financier'!$F$44*(('BP Financier'!$C$22+'BP Financier'!$D$22+'BP Financier'!$E$22+'BP Financier'!$F$22)/('BP Financier'!$C$16+'BP Financier'!$C$19+'BP Financier'!$D$16+'BP Financier'!$D$19+'BP Financier'!$E$16+'BP Financier'!$E$19+'BP Financier'!$C$22+'BP Financier'!$D$22+'BP Financier'!$E$22+'BP Financier'!$F$22+'BP Financier'!$F$16+'BP Financier'!$F$19))*$V6401*AB6401/(1-$W6401)","v":{"v":97.02442278183689,"d":"97"}},null,{"v":1.25E-3,"d":"0.13%"},{"$f":"Actif!$E$28/100","v":{"v":0.28900000000000003,"d":"28.90%"}},{"$f":"Actif!$E$30/100","v":{"v":0.09050000000000001,"d":"9.05%"}},{"$f":"Actif!$E$31/100","v":{"v":0.0605,"d":"6.05%"}},{"$f":"Actif!$E$32/100","v":{"v":0.47350000000000003,"d":"47.35%"}},{"$f":"Actif!$E$33/100","v":{"v":0.0585,"d":"5.85%"}},{"$f":"Actif!$E$29/100","v":{"v":0.027999999999999997,"d":"2.80%"}}]
[null,"#295",38,2029,"F","A_CAPI",{"v":0.44999999999999996,"d":"0.45"},{"v":0.38999999999999996,"d":"0.39"},0.6,0.6,85,0,{"$f":"ROUND(Primes!$P$10*V6402,2)","v":0.11},0,{"v":2463.7273070673587,"d":"2,464"},{"$f":"'BP Financier'!$F$44*(('BP Financier'!$C$22+'BP Financier'!$D$22+'BP Financier'!$E$22+'BP Financier'!$F$22)/('BP Financier'!$C$16+'BP Financier'!$C$19+'BP Financier'!$D$16+'BP Financier'!$D$19+'BP Financier'!$E$16+'BP Financier'!$E$19+'BP Financier'!$C$22+'BP Financier'!$D$22+'BP Financier'!$E$22+'BP Financier'!$F$22+'BP Financier'!$F$16+'BP Financier'!$F$19))*$V6402*X6402/(1-$W6402)","v":{"v":313.5967950627229,"d":"314"}},{"$f":"'BP Financier'!$F$44*(('BP Financier'!$C$22+'BP Financier'!$D$22+'BP Financier'!$E$22+'BP Financier'!$F$22)/('BP Financier'!$C$16+'BP Financier'!$C$19+'BP Financier'!$D$16+'BP Financier'!$D$19+'BP Financier'!$E$16+'BP Financier'!$E$19+'BP Financier'!$C$22+'BP Financier'!$D$22+'BP Financier'!$E$22+'BP Financier'!$F$22+'BP Financier'!$F$16+'BP Financier'!$F$19))*$V6402*Y6402/(1-$W6402)","v":{"v":209.64205636789757,"d":"210"}},{"$f":"'BP Financier'!$F$44*(('BP Financier'!$C$22+'BP Financier'!$D$22+'BP Financier'!$E$22+'BP Financier'!$F$22)/('BP Financier'!$C$16+'BP Financier'!$C$19+'BP Financier'!$D$16+'BP Financier'!$D$19+'BP Financier'!$E$16+'BP Financier'!$E$19+'BP Financier'!$C$22+'BP Financier'!$D$22+'BP Financier'!$E$22+'BP Financier'!$F$22+'BP Financier'!$F$16+'BP Financier'!$F$19))*$V6402*Z6402/(1-$W6402)","v":{"v":1640.7522923999918,"d":"1,641"}},{"$f":"'BP Financier'!$F$44*(('BP Financier'!$C$22+'BP Financier'!$D$22+'BP Financier'!$E$22+'BP Financier'!$F$22)/('BP Financier'!$C$16+'BP Financier'!$C$19+'BP Financier'!$D$16+'BP Financier'!$D$19+'BP Financier'!$E$16+'BP Financier'!$E$19+'BP Financier'!$C$22+'BP Financier'!$D$22+'BP Financier'!$E$22+'BP Financier'!$F$22+'BP Financier'!$F$16+'BP Financier'!$F$19))*$V6402*AA6402/(1-$W6402)","v":{"v":202.71174045490923,"d":"203"}},{"$f":"'BP Financier'!$F$44*(('BP Financier'!$C$22+'BP Financier'!$D$22+'BP Financier'!$E$22+'BP Financier'!$F$22)/('BP Financier'!$C$16+'BP Financier'!$C$19+'BP Financier'!$D$16+'BP Financier'!$D$19+'BP Financier'!$E$16+'BP Financier'!$E$19+'BP Financier'!$C$22+'BP Financier'!$D$22+'BP Financier'!$E$22+'BP Financier'!$F$22+'BP Financier'!$F$16+'BP Financier'!$F$19))*$V6402*AB6402/(1-$W6402)","v":{"v":97.02442278183689,"d":"97"}},null,{"v":1.25E-3,"d":"0.13%"},{"$f":"Actif!$E$28/100","v":{"v":0.28900000000000003,"d":"28.90%"}},{"$f":"Actif!$E$30/100","v":{"v":0.09050000000000001,"d":"9.05%"}},{"$f":"Actif!$E$31/100","v":{"v":0.0605,"d":"6.05%"}},{"$f":"Actif!$E$32/100","v":{"v":0.47350000000000003,"d":"47.35%"}},{"$f":"Actif!$E$33/100","v":{"v":0.0585,"d":"5.85%"}},{"$f":"Actif!$E$29/100","v":{"v":0.027999999999999997,"d":"2.80%"}}]
[null,"#296",38,2030,"F","A_CAPI",{"v":0.44999999999999996,"d":"0.45"},{"v":0.38999999999999996,"d":"0.39"},0.6,0.6,85,0,{"$f":"ROUND(Primes!$P$10*V6403,2)","v":0.11},0,{"v":2463.7273070673587,"d":"2,464"},{"$f":"'BP Financier'!$F$44*(('BP Financier'!$C$22+'BP Financier'!$D$22+'BP Financier'!$E$22+'BP Financier'!$F$22)/('BP Financier'!$C$16+'BP Financier'!$C$19+'BP Financier'!$D$16+'BP Financier'!$D$19+'BP Financier'!$E$16+'BP Financier'!$E$19+'BP Financier'!$C$22+'BP Financier'!$D$22+'BP Financier'!$E$22+'BP Financier'!$F$22+'BP Financier'!$F$16+'BP Financier'!$F$19))*$V6403*X6403/(1-$W6403)","v":{"v":313.5967950627229,"d":"314"}},{"$f":"'BP Financier'!$F$44*(('BP Financier'!$C$22+'BP Financier'!$D$22+'BP Financier'!$E$22+'BP Financier'!$F$22)/('BP Financier'!$C$16+'BP Financier'!$C$19+'BP Financier'!$D$16+'BP Financier'!$D$19+'BP Financier'!$E$16+'BP Financier'!$E$19+'BP Financier'!$C$22+'BP Financier'!$D$22+'BP Financier'!$E$22+'BP Financier'!$F$22+'BP Financier'!$F$16+'BP Financier'!$F$19))*$V6403*Y6403/(1-$W6403)","v":{"v":209.64205636789757,"d":"210"}},{"$f":"'BP Financier'!$F$44*(('BP Financier'!$C$22+'BP Financier'!$D$22+'BP Financier'!$E$22+'BP Financier'!$F$22)/('BP Financier'!$C$16+'BP Financier'!$C$19+'BP Financier'!$D$16+'BP Financier'!$D$19+'BP Financier'!$E$16+'BP Financier'!$E$19+'BP Financier'!$C$22+'BP Financier'!$D$22+'BP Financier'!$E$22+'BP Financier'!$F$22+'BP Financier'!$F$16+'BP Financier'!$F$19))*$V6403*Z6403/(1-$W6403)","v":{"v":1640.7522923999918,"d":"1,641"}},{"$f":"'BP Financier'!$F$44*(('BP Financier'!$C$22+'BP Financier'!$D$22+'BP Financier'!$E$22+'BP Financier'!$F$22)/('BP Financier'!$C$16+'BP Financier'!$C$19+'BP Financier'!$D$16+'BP Financier'!$D$19+'BP Financier'!$E$16+'BP Financier'!$E$19+'BP Financier'!$C$22+'BP Financier'!$D$22+'BP Financier'!$E$22+'BP Financier'!$F$22+'BP Financier'!$F$16+'BP Financier'!$F$19))*$V6403*AA6403/(1-$W6403)","v":{"v":202.71174045490923,"d":"203"}},{"$f":"'BP Financier'!$F$44*(('BP Financier'!$C$22+'BP Financier'!$D$22+'BP Financier'!$E$22+'BP Financier'!$F$22)/('BP Financier'!$C$16+'BP Financier'!$C$19+'BP Financier'!$D$16+'BP Financier'!$D$19+'BP Financier'!$E$16+'BP Financier'!$E$19+'BP Financier'!$C$22+'BP Financier'!$D$22+'BP Financier'!$E$22+'BP Financier'!$F$22+'BP Financier'!$F$16+'BP Financier'!$F$19))*$V6403*AB6403/(1-$W6403)","v":{"v":97.02442278183689,"d":"97"}},null,{"v":1.25E-3,"d":"0.13%"},{"$f":"Actif!$E$28/100","v":{"v":0.28900000000000003,"d":"28.90%"}},{"$f":"Actif!$E$30/100","v":{"v":0.09050000000000001,"d":"9.05%"}},{"$f":"Actif!$E$31/100","v":{"v":0.0605,"d":"6.05%"}},{"$f":"Actif!$E$32/100","v":{"v":0.47350000000000003,"d":"47.35%"}},{"$f":"Actif!$E$33/100","v":{"v":0.0585,"d":"5.85%"}},{"$f":"Actif!$E$29/100","v":{"v":0.027999999999999997,"d":"2.80%"}}]
[null,"#297",39,2026,"H","A_CAPI",{"v":0.44999999999999996,"d":"0.45"},{"v":0.38999999999999996,"d":"0.39"},0.6,0.6,85,0,{"$f":"ROUND(Primes!$P$10*V6404,2)","v":0.11},0,{"v":2463.7273070673587,"d":"2,464"},{"$f":"'BP Financier'!$F$44*(('BP Financier'!$C$22+'BP Financier'!$D$22+'BP Financier'!$E$22+'BP Financier'!$F$22)/('BP Financier'!$C$16+'BP Financier'!$C$19+'BP Financier'!$D$16+'BP Financier'!$D$19+'BP Financier'!$E$16+'BP Financier'!$E$19+'BP Financier'!$C$22+'BP Financier'!$D$22+'BP Financier'!$E$22+'BP Financier'!$F$22+'BP Financier'!$F$16+'BP Financier'!$F$19))*$V6404*X6404/(1-$W6404)","v":{"v":313.5967950627229,"d":"314"}},{"$f":"'BP Financier'!$F$44*(('BP Financier'!$C$22+'BP Financier'!$D$22+'BP Financier'!$E$22+'BP Financier'!$F$22)/('BP Financier'!$C$16+'BP Financier'!$C$19+'BP Financier'!$D$16+'BP Financier'!$D$19+'BP Financier'!$E$16+'BP Financier'!$E$19+'BP Financier'!$C$22+'BP Financier'!$D$22+'BP Financier'!$E$22+'BP Financier'!$F$22+'BP Financier'!$F$16+'BP Financier'!$F$19))*$V6404*Y6404/(1-$W6404)","v":{"v":209.64205636789757,"d":"210"}},{"$f":"'BP Financier'!$F$44*(('BP Financier'!$C$22+'BP Financier'!$D$22+'BP Financier'!$E$22+'BP Financier'!$F$22)/('BP Financier'!$C$16+'BP Financier'!$C$19+'BP Financier'!$D$16+'BP Financier'!$D$19+'BP Financier'!$E$16+'BP Financier'!$E$19+'BP Financier'!$C$22+'BP Financier'!$D$22+'BP Financier'!$E$22+'BP Financier'!$F$22+'BP Financier'!$F$16+'BP Financier'!$F$19))*$V6404*Z6404/(1-$W6404)","v":{"v":1640.7522923999918,"d":"1,641"}},{"$f":"'BP Financier'!$F$44*(('BP Financier'!$C$22+'BP Financier'!$D$22+'BP Financier'!$E$22+'BP Financier'!$F$22)/('BP Financier'!$C$16+'BP Financier'!$C$19+'BP Financier'!$D$16+'BP Financier'!$D$19+'BP Financier'!$E$16+'BP Financier'!$E$19+'BP Financier'!$C$22+'BP Financier'!$D$22+'BP Financier'!$E$22+'BP Financier'!$F$22+'BP Financier'!$F$16+'BP Financier'!$F$19))*$V6404*AA6404/(1-$W6404)","v":{"v":202.71174045490923,"d":"203"}},{"$f":"'BP Financier'!$F$44*(('BP Financier'!$C$22+'BP Financier'!$D$22+'BP Financier'!$E$22+'BP Financier'!$F$22)/('BP Financier'!$C$16+'BP Financier'!$C$19+'BP Financier'!$D$16+'BP Financier'!$D$19+'BP Financier'!$E$16+'BP Financier'!$E$19+'BP Financier'!$C$22+'BP Financier'!$D$22+'BP Financier'!$E$22+'BP Financier'!$F$22+'BP Financier'!$F$16+'BP Financier'!$F$19))*$V6404*AB6404/(1-$W6404)","v":{"v":97.02442278183689,"d":"97"}},null,{"v":1.25E-3,"d":"0.13%"},{"$f":"Actif!$E$28/100","v":{"v":0.28900000000000003,"d":"28.90%"}},{"$f":"Actif!$E$30/100","v":{"v":0.09050000000000001,"d":"9.05%"}},{"$f":"Actif!$E$31/100","v":{"v":0.0605,"d":"6.05%"}},{"$f":"Actif!$E$32/100","v":{"v":0.47350000000000003,"d":"47.35%"}},{"$f":"Actif!$E$33/100","v":{"v":0.0585,"d":"5.85%"}},{"$f":"Actif!$E$29/100","v":{"v":0.027999999999999997,"d":"2.80%"}}]
[null,"#298",39,2028,"H","A_CAPI",{"v":0.44999999999999996,"d":"0.45"},{"v":0.38999999999999996,"d":"0.39"},0.6,0.6,85,0,{"$f":"ROUND(Primes!$P$10*V6405,2)","v":0.11},0,{"v":2463.7273070673587,"d":"2,464"},{"$f":"'BP Financier'!$F$44*(('BP Financier'!$C$22+'BP Financier'!$D$22+'BP Financier'!$E$22+'BP Financier'!$F$22)/('BP Financier'!$C$16+'BP Financier'!$C$19+'BP Financier'!$D$16+'BP Financier'!$D$19+'BP Financier'!$E$16+'BP Financier'!$E$19+'BP Financier'!$C$22+'BP Financier'!$D$22+'BP Financier'!$E$22+'BP Financier'!$F$22+'BP Financier'!$F$16+'BP Financier'!$F$19))*$V6405*X6405/(1-$W6405)","v":{"v":313.5967950627229,"d":"314"}},{"$f":"'BP Financier'!$F$44*(('BP Financier'!$C$22+'BP Financier'!$D$22+'BP Financier'!$E$22+'BP Financier'!$F$22)/('BP Financier'!$C$16+'BP Financier'!$C$19+'BP Financier'!$D$16+'BP Financier'!$D$19+'BP Financier'!$E$16+'BP Financier'!$E$19+'BP Financier'!$C$22+'BP Financier'!$D$22+'BP Financier'!$E$22+'BP Financier'!$F$22+'BP Financier'!$F$16+'BP Financier'!$F$19))*$V6405*Y6405/(1-$W6405)","v":{"v":209.64205636789757,"d":"210"}},{"$f":"'BP Financier'!$F$44*(('BP Financier'!$C$22+'BP Financier'!$D$22+'BP Financier'!$E$22+'BP Financier'!$F$22)/('BP Financier'!$C$16+'BP Financier'!$C$19+'BP Financier'!$D$16+'BP Financier'!$D$19+'BP Financier'!$E$16+'BP Financier'!$E$19+'BP Financier'!$C$22+'BP Financier'!$D$22+'BP Financier'!$E$22+'BP Financier'!$F$22+'BP Financier'!$F$16+'BP Financier'!$F$19))*$V6405*Z6405/(1-$W6405)","v":{"v":1640.7522923999918,"d":"1,641"}},{"$f":"'BP Financier'!$F$44*(('BP Financier'!$C$22+'BP Financier'!$D$22+'BP Financier'!$E$22+'BP Financier'!$F$22)/('BP Financier'!$C$16+'BP Financier'!$C$19+'BP Financier'!$D$16+'BP Financier'!$D$19+'BP Financier'!$E$16+'BP Financier'!$E$19+'BP Financier'!$C$22+'BP Financier'!$D$22+'BP Financier'!$E$22+'BP Financier'!$F$22+'BP Financier'!$F$16+'BP Financier'!$F$19))*$V6405*AA6405/(1-$W6405)","v":{"v":202.71174045490923,"d":"203"}},{"$f":"'BP Financier'!$F$44*(('BP Financier'!$C$22+'BP Financier'!$D$22+'BP Financier'!$E$22+'BP Financier'!$F$22)/('BP Financier'!$C$16+'BP Financier'!$C$19+'BP Financier'!$D$16+'BP Financier'!$D$19+'BP Financier'!$E$16+'BP Financier'!$E$19+'BP Financier'!$C$22+'BP Financier'!$D$22+'BP Financier'!$E$22+'BP Financier'!$F$22+'BP Financier'!$F$16+'BP Financier'!$F$19))*$V6405*AB6405/(1-$W6405)","v":{"v":97.02442278183689,"d":"97"}},null,{"v":1.25E-3,"d":"0.13%"},{"$f":"Actif!$E$28/100","v":{"v":0.28900000000000003,"d":"28.90%"}},{"$f":"Actif!$E$30/100","v":{"v":0.09050000000000001,"d":"9.05%"}},{"$f":"Actif!$E$31/100","v":{"v":0.0605,"d":"6.05%"}},{"$f":"Actif!$E$32/100","v":{"v":0.47350000000000003,"d":"47.35%"}},{"$f":"Actif!$E$33/100","v":{"v":0.0585,"d":"5.85%"}},{"$f":"Actif!$E$29/100","v":{"v":0.027999999999999997,"d":"2.80%"}}]
[null,"#299",39,2029,"H","A_CAPI",{"v":0.44999999999999996,"d":"0.45"},{"v":0.38999999999999996,"d":"0.39"},0.6,0.6,85,0,{"$f":"ROUND(Primes!$P$10*V6406,2)","v":0.11},0,{"$f":"SUM(P6406:T6406)","v":{"v":2463.7273070673587,"d":"2,464"}},{"$f":"'BP Financier'!$F$44*(('BP Financier'!$C$22+'BP Financier'!$D$22+'BP Financier'!$E$22+'BP Financier'!$F$22)/('BP Financier'!$C$16+'BP Financier'!$C$19+'BP Financier'!$D$16+'BP Financier'!$D$19+'BP Financier'!$E$16+'BP Financier'!$E$19+'BP Financier'!$C$22+'BP Financier'!$D$22+'BP Financier'!$E$22+'BP Financier'!$F$22+'BP Financier'!$F$16+'BP Financier'!$F$19))*$V6406*X6406/(1-$W6406)","v":{"v":313.5967950627229,"d":"314"}},{"$f":"'BP Financier'!$F$44*(('BP Financier'!$C$22+'BP Financier'!$D$22+'BP Financier'!$E$22+'BP Financier'!$F$22)/('BP Financier'!$C$16+'BP Financier'!$C$19+'BP Financier'!$D$16+'BP Financier'!$D$19+'BP Financier'!$E$16+'BP Financier'!$E$19+'BP Financier'!$C$22+'BP Financier'!$D$22+'BP Financier'!$E$22+'BP Financier'!$F$22+'BP Financier'!$F$16+'BP Financier'!$F$19))*$V6406*Y6406/(1-$W6406)","v":{"v":209.64205636789757,"d":"210"}},{"$f":"'BP Financier'!$F$44*(('BP Financier'!$C$22+'BP Financier'!$D$22+'BP Financier'!$E$22+'BP Financier'!$F$22)/('BP Financier'!$C$16+'BP Financier'!$C$19+'BP Financier'!$D$16+'BP Financier'!$D$19+'BP Financier'!$E$16+'BP Financier'!$E$19+'BP Financier'!$C$22+'BP Financier'!$D$22+'BP Financier'!$E$22+'BP Financier'!$F$22+'BP Financier'!$F$16+'BP Financier'!$F$19))*$V6406*Z6406/(1-$W6406)","v":{"v":1640.7522923999918,"d":"1,641"}},{"$f":"'BP Financier'!$F$44*(('BP Financier'!$C$22+'BP Financier'!$D$22+'BP Financier'!$E$22+'BP Financier'!$F$22)/('BP Financier'!$C$16+'BP Financier'!$C$19+'BP Financier'!$D$16+'BP Financier'!$D$19+'BP Financier'!$E$16+'BP Financier'!$E$19+'BP Financier'!$C$22+'BP Financier'!$D$22+'BP Financier'!$E$22+'BP Financier'!$F$22+'BP Financier'!$F$16+'BP Financier'!$F$19))*$V6406*AA6406/(1-$W6406)","v":{"v":202.71174045490923,"d":"203"}},{"$f":"'BP Financier'!$F$44*(('BP Financier'!$C$22+'BP Financier'!$D$22+'BP Financier'!$E$22+'BP Financier'!$F$22)/('BP Financier'!$C$16+'BP Financier'!$C$19+'BP Financier'!$D$16+'BP Financier'!$D$19+'BP Financier'!$E$16+'BP Financier'!$E$19+'BP Financier'!$C$22+'BP Financier'!$D$22+'BP Financier'!$E$22+'BP Financier'!$F$22+'BP Financier'!$F$16+'BP Financier'!$F$19))*$V6406*AB6406/(1-$W6406)","v":{"v":97.02442278183689,"d":"97"}},null,{"v":1.25E-3,"d":"0.13%"},{"$f":"Actif!$E$28/100","v":{"v":0.28900000000000003,"d":"28.90%"}},{"$f":"Actif!$E$30/100","v":{"v":0.09050000000000001,"d":"9.05%"}},{"$f":"Actif!$E$31/100","v":{"v":0.0605,"d":"6.05%"}},{"$f":"Actif!$E$32/100","v":{"v":0.47350000000000003,"d":"47.35%"}},{"$f":"Actif!$E$33/100","v":{"v":0.0585,"d":"5.85%"}},{"$f":"Actif!$E$29/100","v":{"v":0.027999999999999997,"d":"2.80%"}}]
[null,"#300",39,2030,"H","A_CAPI",{"v":0.44999999999999996,"d":"0.45"},{"v":0.38999999999999996,"d":"0.39"},0.6,0.6,85,0,{"$f":"ROUND(Primes!$P$10*V6407,2)","v":0.11},0,{"v":2463.7273070673587,"d":"2,464"},{"$f":"'BP Financier'!$F$44*(('BP Financier'!$C$22+'BP Financier'!$D$22+'BP Financier'!$E$22+'BP Financier'!$F$22)/('BP Financier'!$C$16+'BP Financier'!$C$19+'BP Financier'!$D$16+'BP Financier'!$D$19+'BP Financier'!$E$16+'BP Financier'!$E$19+'BP Financier'!$C$22+'BP Financier'!$D$22+'BP Financier'!$E$22+'BP Financier'!$F$22+'BP Financier'!$F$16+'BP Financier'!$F$19))*$V6407*X6407/(1-$W6407)","v":{"v":313.5967950627229,"d":"314"}},{"$f":"'BP Financier'!$F$44*(('BP Financier'!$C$22+'BP Financier'!$D$22+'BP Financier'!$E$22+'BP Financier'!$F$22)/('BP Financier'!$C$16+'BP Financier'!$C$19+'BP Financier'!$D$16+'BP Financier'!$D$19+'BP Financier'!$E$16+'BP Financier'!$E$19+'BP Financier'!$C$22+'BP Financier'!$D$22+'BP Financier'!$E$22+'BP Financier'!$F$22+'BP Financier'!$F$16+'BP Financier'!$F$19))*$V6407*Y6407/(1-$W6407)","v":{"v":209.64205636789757,"d":"210"}},{"$f":"'BP Financier'!$F$44*(('BP Financier'!$C$22+'BP Financier'!$D$22+'BP Financier'!$E$22+'BP Financier'!$F$22)/('BP Financier'!$C$16+'BP Financier'!$C$19+'BP Financier'!$D$16+'BP Financier'!$D$19+'BP Financier'!$E$16+'BP Financier'!$E$19+'BP Financier'!$C$22+'BP Financier'!$D$22+'BP Financier'!$E$22+'BP Financier'!$F$22+'BP Financier'!$F$16+'BP Financier'!$F$19))*$V6407*Z6407/(1-$W6407)","v":{"v":1640.7522923999918,"d":"1,641"}},{"$f":"'BP Financier'!$F$44*(('BP Financier'!$C$22+'BP Financier'!$D$22+'BP Financier'!$E$22+'BP Financier'!$F$22)/('BP Financier'!$C$16+'BP Financier'!$C$19+'BP Financier'!$D$16+'BP Financier'!$D$19+'BP Financier'!$E$16+'BP Financier'!$E$19+'BP Financier'!$C$22+'BP Financier'!$D$22+'BP Financier'!$E$22+'BP Financier'!$F$22+'BP Financier'!$F$16+'BP Financier'!$F$19))*$V6407*AA6407/(1-$W6407)","v":{"v":202.71174045490923,"d":"203"}},{"$f":"'BP Financier'!$F$44*(('BP Financier'!$C$22+'BP Financier'!$D$22+'BP Financier'!$E$22+'BP Financier'!$F$22)/('BP Financier'!$C$16+'BP Financier'!$C$19+'BP Financier'!$D$16+'BP Financier'!$D$19+'BP Financier'!$E$16+'BP Financier'!$E$19+'BP Financier'!$C$22+'BP Financier'!$D$22+'BP Financier'!$E$22+'BP Financier'!$F$22+'BP Financier'!$F$16+'BP Financier'!$F$19))*$V6407*AB6407/(1-$W6407)","v":{"v":97.02442278183689,"d":"97"}},null,{"v":1.25E-3,"d":"0.13%"},{"$f":"Actif!$E$28/100","v":{"v":0.28900000000000003,"d":"28.90%"}},{"$f":"Actif!$E$30/100","v":{"v":0.09050000000000001,"d":"9.05%"}},{"$f":"Actif!$E$31/100","v":{"v":0.0605,"d":"6.05%"}},{"$f":"Actif!$E$32/100","v":{"v":0.47350000000000003,"d":"47.35%"}},{"$f":"Actif!$E$33/100","v":{"v":0.0585,"d":"5.85%"}},{"$f":"Actif!$E$29/100","v":{"v":0.027999999999999997,"d":"2.80%"}}]
[null,"#301",40,2026,"H","A_CAPI",{"v":0.44999999999999996,"d":"0.45"},{"v":0.38999999999999996,"d":"0.39"},0.6,0.6,85,0,{"$f":"ROUND(Primes!$P$10*V6408,2)","v":0.11},0,{"v":2463.7273070673587,"d":"2,464"},{"$f":"'BP Financier'!$F$44*(('BP Financier'!$C$22+'BP Financier'!$D$22+'BP Financier'!$E$22+'BP Financier'!$F$22)/('BP Financier'!$C$16+'BP Financier'!$C$19+'BP Financier'!$D$16+'BP Financier'!$D$19+'BP Financier'!$E$16+'BP Financier'!$E$19+'BP Financier'!$C$22+'BP Financier'!$D$22+'BP Financier'!$E$22+'BP Financier'!$F$22+'BP Financier'!$F$16+'BP Financier'!$F$19))*$V6408*X6408/(1-$W6408)","v":{"v":313.5967950627229,"d":"314"}},{"$f":"'BP Financier'!$F$44*(('BP Financier'!$C$22+'BP Financier'!$D$22+'BP Financier'!$E$22+'BP Financier'!$F$22)/('BP Financier'!$C$16+'BP Financier'!$C$19+'BP Financier'!$D$16+'BP Financier'!$D$19+'BP Financier'!$E$16+'BP Financier'!$E$19+'BP Financier'!$C$22+'BP Financier'!$D$22+'BP Financier'!$E$22+'BP Financier'!$F$22+'BP Financier'!$F$16+'BP Financier'!$F$19))*$V6408*Y6408/(1-$W6408)","v":{"v":209.64205636789757,"d":"210"}},{"$f":"'BP Financier'!$F$44*(('BP Financier'!$C$22+'BP Financier'!$D$22+'BP Financier'!$E$22+'BP Financier'!$F$22)/('BP Financier'!$C$16+'BP Financier'!$C$19+'BP Financier'!$D$16+'BP Financier'!$D$19+'BP Financier'!$E$16+'BP Financier'!$E$19+'BP Financier'!$C$22+'BP Financier'!$D$22+'BP Financier'!$E$22+'BP Financier'!$F$22+'BP Financier'!$F$16+'BP Financier'!$F$19))*$V6408*Z6408/(1-$W6408)","v":{"v":1640.7522923999918,"d":"1,641"}},{"$f":"'BP Financier'!$F$44*(('BP Financier'!$C$22+'BP Financier'!$D$22+'BP Financier'!$E$22+'BP Financier'!$F$22)/('BP Financier'!$C$16+'BP Financier'!$C$19+'BP Financier'!$D$16+'BP Financier'!$D$19+'BP Financier'!$E$16+'BP Financier'!$E$19+'BP Financier'!$C$22+'BP Financier'!$D$22+'BP Financier'!$E$22+'BP Financier'!$F$22+'BP Financier'!$F$16+'BP Financier'!$F$19))*$V6408*AA6408/(1-$W6408)","v":{"v":202.71174045490923,"d":"203"}},{"$f":"'BP Financier'!$F$44*(('BP Financier'!$C$22+'BP Financier'!$D$22+'BP Financier'!$E$22+'BP Financier'!$F$22)/('BP Financier'!$C$16+'BP Financier'!$C$19+'BP Financier'!$D$16+'BP Financier'!$D$19+'BP Financier'!$E$16+'BP Financier'!$E$19+'BP Financier'!$C$22+'BP Financier'!$D$22+'BP Financier'!$E$22+'BP Financier'!$F$22+'BP Financier'!$F$16+'BP Financier'!$F$19))*$V6408*AB6408/(1-$W6408)","v":{"v":97.02442278183689,"d":"97"}},null,{"v":1.25E-3,"d":"0.13%"},{"$f":"Actif!$E$28/100","v":{"v":0.28900000000000003,"d":"28.90%"}},{"$f":"Actif!$E$30/100","v":{"v":0.09050000000000001,"d":"9.05%"}},{"$f":"Actif!$E$31/100","v":{"v":0.0605,"d":"6.05%"}},{"$f":"Actif!$E$32/100","v":{"v":0.47350000000000003,"d":"47.35%"}},{"$f":"Actif!$E$33/100","v":{"v":0.0585,"d":"5.85%"}},{"$f":"Actif!$E$29/100","v":{"v":0.027999999999999997,"d":"2.80%"}}]
[null,"#302",40,2028,"H","A_CAPI",{"v":0.44999999999999996,"d":"0.45"},{"v":0.38999999999999996,"d":"0.39"},0.6,0.6,85,0,{"$f":"ROUND(Primes!$P$10*V6409,2)","v":0.11},0,{"v":2463.7273070673587,"d":"2,464"},{"$f":"'BP Financier'!$F$44*(('BP Financier'!$C$22+'BP Financier'!$D$22+'BP Financier'!$E$22+'BP Financier'!$F$22)/('BP Financier'!$C$16+'BP Financier'!$C$19+'BP Financier'!$D$16+'BP Financier'!$D$19+'BP Financier'!$E$16+'BP Financier'!$E$19+'BP Financier'!$C$22+'BP Financier'!$D$22+'BP Financier'!$E$22+'BP Financier'!$F$22+'BP Financier'!$F$16+'BP Financier'!$F$19))*$V6409*X6409/(1-$W6409)","v":{"v":313.5967950627229,"d":"314"}},{"$f":"'BP Financier'!$F$44*(('BP Financier'!$C$22+'BP Financier'!$D$22+'BP Financier'!$E$22+'BP Financier'!$F$22)/('BP Financier'!$C$16+'BP Financier'!$C$19+'BP Financier'!$D$16+'BP Financier'!$D$19+'BP Financier'!$E$16+'BP Financier'!$E$19+'BP Financier'!$C$22+'BP Financier'!$D$22+'BP Financier'!$E$22+'BP Financier'!$F$22+'BP Financier'!$F$16+'BP Financier'!$F$19))*$V6409*Y6409/(1-$W6409)","v":{"v":209.64205636789757,"d":"210"}},{"$f":"'BP Financier'!$F$44*(('BP Financier'!$C$22+'BP Financier'!$D$22+'BP Financier'!$E$22+'BP Financier'!$F$22)/('BP Financier'!$C$16+'BP Financier'!$C$19+'BP Financier'!$D$16+'BP Financier'!$D$19+'BP Financier'!$E$16+'BP Financier'!$E$19+'BP Financier'!$C$22+'BP Financier'!$D$22+'BP Financier'!$E$22+'BP Financier'!$F$22+'BP Financier'!$F$16+'BP Financier'!$F$19))*$V6409*Z6409/(1-$W6409)","v":{"v":1640.7522923999918,"d":"1,641"}},{"$f":"'BP Financier'!$F$44*(('BP Financier'!$C$22+'BP Financier'!$D$22+'BP Financier'!$E$22+'BP Financier'!$F$22)/('BP Financier'!$C$16+'BP Financier'!$C$19+'BP Financier'!$D$16+'BP Financier'!$D$19+'BP Financier'!$E$16+'BP Financier'!$E$19+'BP Financier'!$C$22+'BP Financier'!$D$22+'BP Financier'!$E$22+'BP Financier'!$F$22+'BP Financier'!$F$16+'BP Financier'!$F$19))*$V6409*AA6409/(1-$W6409)","v":{"v":202.71174045490923,"d":"203"}},{"$f":"'BP Financier'!$F$44*(('BP Financier'!$C$22+'BP Financier'!$D$22+'BP Financier'!$E$22+'BP Financier'!$F$22)/('BP Financier'!$C$16+'BP Financier'!$C$19+'BP Financier'!$D$16+'BP Financier'!$D$19+'BP Financier'!$E$16+'BP Financier'!$E$19+'BP Financier'!$C$22+'BP Financier'!$D$22+'BP Financier'!$E$22+'BP Financier'!$F$22+'BP Financier'!$F$16+'BP Financier'!$F$19))*$V6409*AB6409/(1-$W6409)","v":{"v":97.02442278183689,"d":"97"}},null,{"v":1.25E-3,"d":"0.13%"},{"$f":"Actif!$E$28/100","v":{"v":0.28900000000000003,"d":"28.90%"}},{"$f":"Actif!$E$30/100","v":{"v":0.09050000000000001,"d":"9.05%"}},{"$f":"Actif!$E$31/100","v":{"v":0.0605,"d":"6.05%"}},{"$f":"Actif!$E$32/100","v":{"v":0.47350000000000003,"d":"47.35%"}},{"$f":"Actif!$E$33/100","v":{"v":0.0585,"d":"5.85%"}},{"$f":"Actif!$E$29/100","v":{"v":0.027999999999999997,"d":"2.80%"}}]
[null,"#303",40,2029,"H","A_CAPI",{"v":0.44999999999999996,"d":"0.45"},{"v":0.38999999999999996,"d":"0.39"},0.6,0.6,85,0,{"$f":"ROUND(Primes!$P$10*V6410,2)","v":0.11},0,{"v":2463.7273070673587,"d":"2,464"},{"$f":"'BP Financier'!$F$44*(('BP Financier'!$C$22+'BP Financier'!$D$22+'BP Financier'!$E$22+'BP Financier'!$F$22)/('BP Financier'!$C$16+'BP Financier'!$C$19+'BP Financier'!$D$16+'BP Financier'!$D$19+'BP Financier'!$E$16+'BP Financier'!$E$19+'BP Financier'!$C$22+'BP Financier'!$D$22+'BP Financier'!$E$22+'BP Financier'!$F$22+'BP Financier'!$F$16+'BP Financier'!$F$19))*$V6410*X6410/(1-$W6410)","v":{"v":313.5967950627229,"d":"314"}},{"$f":"'BP Financier'!$F$44*(('BP Financier'!$C$22+'BP Financier'!$D$22+'BP Financier'!$E$22+'BP Financier'!$F$22)/('BP Financier'!$C$16+'BP Financier'!$C$19+'BP Financier'!$D$16+'BP Financier'!$D$19+'BP Financier'!$E$16+'BP Financier'!$E$19+'BP Financier'!$C$22+'BP Financier'!$D$22+'BP Financier'!$E$22+'BP Financier'!$F$22+'BP Financier'!$F$16+'BP Financier'!$F$19))*$V6410*Y6410/(1-$W6410)","v":{"v":209.64205636789757,"d":"210"}},{"$f":"'BP Financier'!$F$44*(('BP Financier'!$C$22+'BP Financier'!$D$22+'BP Financier'!$E$22+'BP Financier'!$F$22)/('BP Financier'!$C$16+'BP Financier'!$C$19+'BP Financier'!$D$16+'BP Financier'!$D$19+'BP Financier'!$E$16+'BP Financier'!$E$19+'BP Financier'!$C$22+'BP Financier'!$D$22+'BP Financier'!$E$22+'BP Financier'!$F$22+'BP Financier'!$F$16+'BP Financier'!$F$19))*$V6410*Z6410/(1-$W6410)","v":{"v":1640.7522923999918,"d":"1,641"}},{"$f":"'BP Financier'!$F$44*(('BP Financier'!$C$22+'BP Financier'!$D$22+'BP Financier'!$E$22+'BP Financier'!$F$22)/('BP Financier'!$C$16+'BP Financier'!$C$19+'BP Financier'!$D$16+'BP Financier'!$D$19+'BP Financier'!$E$16+'BP Financier'!$E$19+'BP Financier'!$C$22+'BP Financier'!$D$22+'BP Financier'!$E$22+'BP Financier'!$F$22+'BP Financier'!$F$16+'BP Financier'!$F$19))*$V6410*AA6410/(1-$W6410)","v":{"v":202.71174045490923,"d":"203"}},{"$f":"'BP Financier'!$F$44*(('BP Financier'!$C$22+'BP Financier'!$D$22+'BP Financier'!$E$22+'BP Financier'!$F$22)/('BP Financier'!$C$16+'BP Financier'!$C$19+'BP Financier'!$D$16+'BP Financier'!$D$19+'BP Financier'!$E$16+'BP Financier'!$E$19+'BP Financier'!$C$22+'BP Financier'!$D$22+'BP Financier'!$E$22+'BP Financier'!$F$22+'BP Financier'!$F$16+'BP Financier'!$F$19))*$V6410*AB6410/(1-$W6410)","v":{"v":97.02442278183689,"d":"97"}},null,{"v":1.25E-3,"d":"0.13%"},{"$f":"Actif!$E$28/100","v":{"v":0.28900000000000003,"d":"28.90%"}},{"$f":"Actif!$E$30/100","v":{"v":0.09050000000000001,"d":"9.05%"}},{"$f":"Actif!$E$31/100","v":{"v":0.0605,"d":"6.05%"}},{"$f":"Actif!$E$32/100","v":{"v":0.47350000000000003,"d":"47.35%"}},{"$f":"Actif!$E$33/100","v":{"v":0.0585,"d":"5.85%"}},{"$f":"Actif!$E$29/100","v":{"v":0.027999999999999997,"d":"2.80%"}}]
[null,"#304",40,2030,"H","A_CAPI",{"v":0.44999999999999996,"d":"0.45"},{"v":0.38999999999999996,"d":"0.39"},0.6,0.6,85,0,{"$f":"ROUND(Primes!$P$10*V6411,2)","v":0.11},0,{"v":2463.7273070673587,"d":"2,464"},{"$f":"'BP Financier'!$F$44*(('BP Financier'!$C$22+'BP Financier'!$D$22+'BP Financier'!$E$22+'BP Financier'!$F$22)/('BP Financier'!$C$16+'BP Financier'!$C$19+'BP Financier'!$D$16+'BP Financier'!$D$19+'BP Financier'!$E$16+'BP Financier'!$E$19+'BP Financier'!$C$22+'BP Financier'!$D$22+'BP Financier'!$E$22+'BP Financier'!$F$22+'BP Financier'!$F$16+'BP Financier'!$F$19))*$V6411*X6411/(1-$W6411)","v":{"v":313.5967950627229,"d":"314"}},{"$f":"'BP Financier'!$F$44*(('BP Financier'!$C$22+'BP Financier'!$D$22+'BP Financier'!$E$22+'BP Financier'!$F$22)/('BP Financier'!$C$16+'BP Financier'!$C$19+'BP Financier'!$D$16+'BP Financier'!$D$19+'BP Financier'!$E$16+'BP Financier'!$E$19+'BP Financier'!$C$22+'BP Financier'!$D$22+'BP Financier'!$E$22+'BP Financier'!$F$22+'BP Financier'!$F$16+'BP Financier'!$F$19))*$V6411*Y6411/(1-$W6411)","v":{"v":209.64205636789757,"d":"210"}},{"$f":"'BP Financier'!$F$44*(('BP Financier'!$C$22+'BP Financier'!$D$22+'BP Financier'!$E$22+'BP Financier'!$F$22)/('BP Financier'!$C$16+'BP Financier'!$C$19+'BP Financier'!$D$16+'BP Financier'!$D$19+'BP Financier'!$E$16+'BP Financier'!$E$19+'BP Financier'!$C$22+'BP Financier'!$D$22+'BP Financier'!$E$22+'BP Financier'!$F$22+'BP Financier'!$F$16+'BP Financier'!$F$19))*$V6411*Z6411/(1-$W6411)","v":{"v":1640.7522923999918,"d":"1,641"}},{"$f":"'BP Financier'!$F$44*(('BP Financier'!$C$22+'BP Financier'!$D$22+'BP Financier'!$E$22+'BP Financier'!$F$22)/('BP Financier'!$C$16+'BP Financier'!$C$19+'BP Financier'!$D$16+'BP Financier'!$D$19+'BP Financier'!$E$16+'BP Financier'!$E$19+'BP Financier'!$C$22+'BP Financier'!$D$22+'BP Financier'!$E$22+'BP Financier'!$F$22+'BP Financier'!$F$16+'BP Financier'!$F$19))*$V6411*AA6411/(1-$W6411)","v":{"v":202.71174045490923,"d":"203"}},{"$f":"'BP Financier'!$F$44*(('BP Financier'!$C$22+'BP Financier'!$D$22+'BP Financier'!$E$22+'BP Financier'!$F$22)/('BP Financier'!$C$16+'BP Financier'!$C$19+'BP Financier'!$D$16+'BP Financier'!$D$19+'BP Financier'!$E$16+'BP Financier'!$E$19+'BP Financier'!$C$22+'BP Financier'!$D$22+'BP Financier'!$E$22+'BP Financier'!$F$22+'BP Financier'!$F$16+'BP Financier'!$F$19))*$V6411*AB6411/(1-$W6411)","v":{"v":97.02442278183689,"d":"97"}},null,{"v":1.25E-3,"d":"0.13%"},{"$f":"Actif!$E$28/100","v":{"v":0.28900000000000003,"d":"28.90%"}},{"$f":"Actif!$E$30/100","v":{"v":0.09050000000000001,"d":"9.05%"}},{"$f":"Actif!$E$31/100","v":{"v":0.0605,"d":"6.05%"}},{"$f":"Actif!$E$32/100","v":{"v":0.47350000000000003,"d":"47.35%"}},{"$f":"Actif!$E$33/100","v":{"v":0.0585,"d":"5.85%"}},{"$f":"Actif!$E$29/100","v":{"v":0.027999999999999997,"d":"2.80%"}}]
[null,"#305",41,2026,"F","A_CAPI",{"v":0.44999999999999996,"d":"0.45"},{"v":0.38999999999999996,"d":"0.39"},0.6,0.6,85,0,{"$f":"ROUND(Primes!$P$10*V6412,2)","v":0.11},0,{"v":2463.7273070673587,"d":"2,464"},{"$f":"'BP Financier'!$F$44*(('BP Financier'!$C$22+'BP Financier'!$D$22+'BP Financier'!$E$22+'BP Financier'!$F$22)/('BP Financier'!$C$16+'BP Financier'!$C$19+'BP Financier'!$D$16+'BP Financier'!$D$19+'BP Financier'!$E$16+'BP Financier'!$E$19+'BP Financier'!$C$22+'BP Financier'!$D$22+'BP Financier'!$E$22+'BP Financier'!$F$22+'BP Financier'!$F$16+'BP Financier'!$F$19))*$V6412*X6412/(1-$W6412)","v":{"v":313.5967950627229,"d":"314"}},{"$f":"'BP Financier'!$F$44*(('BP Financier'!$C$22+'BP Financier'!$D$22+'BP Financier'!$E$22+'BP Financier'!$F$22)/('BP Financier'!$C$16+'BP Financier'!$C$19+'BP Financier'!$D$16+'BP Financier'!$D$19+'BP Financier'!$E$16+'BP Financier'!$E$19+'BP Financier'!$C$22+'BP Financier'!$D$22+'BP Financier'!$E$22+'BP Financier'!$F$22+'BP Financier'!$F$16+'BP Financier'!$F$19))*$V6412*Y6412/(1-$W6412)","v":{"v":209.64205636789757,"d":"210"}},{"$f":"'BP Financier'!$F$44*(('BP Financier'!$C$22+'BP Financier'!$D$22+'BP Financier'!$E$22+'BP Financier'!$F$22)/('BP Financier'!$C$16+'BP Financier'!$C$19+'BP Financier'!$D$16+'BP Financier'!$D$19+'BP Financier'!$E$16+'BP Financier'!$E$19+'BP Financier'!$C$22+'BP Financier'!$D$22+'BP Financier'!$E$22+'BP Financier'!$F$22+'BP Financier'!$F$16+'BP Financier'!$F$19))*$V6412*Z6412/(1-$W6412)","v":{"v":1640.7522923999918,"d":"1,641"}},{"$f":"'BP Financier'!$F$44*(('BP Financier'!$C$22+'BP Financier'!$D$22+'BP Financier'!$E$22+'BP Financier'!$F$22)/('BP Financier'!$C$16+'BP Financier'!$C$19+'BP Financier'!$D$16+'BP Financier'!$D$19+'BP Financier'!$E$16+'BP Financier'!$E$19+'BP Financier'!$C$22+'BP Financier'!$D$22+'BP Financier'!$E$22+'BP Financier'!$F$22+'BP Financier'!$F$16+'BP Financier'!$F$19))*$V6412*AA6412/(1-$W6412)","v":{"v":202.71174045490923,"d":"203"}},{"$f":"'BP Financier'!$F$44*(('BP Financier'!$C$22+'BP Financier'!$D$22+'BP Financier'!$E$22+'BP Financier'!$F$22)/('BP Financier'!$C$16+'BP Financier'!$C$19+'BP Financier'!$D$16+'BP Financier'!$D$19+'BP Financier'!$E$16+'BP Financier'!$E$19+'BP Financier'!$C$22+'BP Financier'!$D$22+'BP Financier'!$E$22+'BP Financier'!$F$22+'BP Financier'!$F$16+'BP Financier'!$F$19))*$V6412*AB6412/(1-$W6412)","v":{"v":97.02442278183689,"d":"97"}},null,{"v":1.25E-3,"d":"0.13%"},{"$f":"Actif!$E$28/100","v":{"v":0.28900000000000003,"d":"28.90%"}},{"$f":"Actif!$E$30/100","v":{"v":0.09050000000000001,"d":"9.05%"}},{"$f":"Actif!$E$31/100","v":{"v":0.0605,"d":"6.05%"}},{"$f":"Actif!$E$32/100","v":{"v":0.47350000000000003,"d":"47.35%"}},{"$f":"Actif!$E$33/100","v":{"v":0.0585,"d":"5.85%"}},{"$f":"Actif!$E$29/100","v":{"v":0.027999999999999997,"d":"2.80%"}}]
[null,"#306",41,2028,"F","A_CAPI",{"v":0.44999999999999996,"d":"0.45"},{"v":0.38999999999999996,"d":"0.39"},0.6,0.6,85,0,{"$f":"ROUND(Primes!$P$10*V6413,2)","v":0.11},0,{"v":2463.7273070673587,"d":"2,464"},{"$f":"'BP Financier'!$F$44*(('BP Financier'!$C$22+'BP Financier'!$D$22+'BP Financier'!$E$22+'BP Financier'!$F$22)/('BP Financier'!$C$16+'BP Financier'!$C$19+'BP Financier'!$D$16+'BP Financier'!$D$19+'BP Financier'!$E$16+'BP Financier'!$E$19+'BP Financier'!$C$22+'BP Financier'!$D$22+'BP Financier'!$E$22+'BP Financier'!$F$22+'BP Financier'!$F$16+'BP Financier'!$F$19))*$V6413*X6413/(1-$W6413)","v":{"v":313.5967950627229,"d":"314"}},{"$f":"'BP Financier'!$F$44*(('BP Financier'!$C$22+'BP Financier'!$D$22+'BP Financier'!$E$22+'BP Financier'!$F$22)/('BP Financier'!$C$16+'BP Financier'!$C$19+'BP Financier'!$D$16+'BP Financier'!$D$19+'BP Financier'!$E$16+'BP Financier'!$E$19+'BP Financier'!$C$22+'BP Financier'!$D$22+'BP Financier'!$E$22+'BP Financier'!$F$22+'BP Financier'!$F$16+'BP Financier'!$F$19))*$V6413*Y6413/(1-$W6413)","v":{"v":209.64205636789757,"d":"210"}},{"$f":"'BP Financier'!$F$44*(('BP Financier'!$C$22+'BP Financier'!$D$22+'BP Financier'!$E$22+'BP Financier'!$F$22)/('BP Financier'!$C$16+'BP Financier'!$C$19+'BP Financier'!$D$16+'BP Financier'!$D$19+'BP Financier'!$E$16+'BP Financier'!$E$19+'BP Financier'!$C$22+'BP Financier'!$D$22+'BP Financier'!$E$22+'BP Financier'!$F$22+'BP Financier'!$F$16+'BP Financier'!$F$19))*$V6413*Z6413/(1-$W6413)","v":{"v":1640.7522923999918,"d":"1,641"}},{"$f":"'BP Financier'!$F$44*(('BP Financier'!$C$22+'BP Financier'!$D$22+'BP Financier'!$E$22+'BP Financier'!$F$22)/('BP Financier'!$C$16+'BP Financier'!$C$19+'BP Financier'!$D$16+'BP Financier'!$D$19+'BP Financier'!$E$16+'BP Financier'!$E$19+'BP Financier'!$C$22+'BP Financier'!$D$22+'BP Financier'!$E$22+'BP Financier'!$F$22+'BP Financier'!$F$16+'BP Financier'!$F$19))*$V6413*AA6413/(1-$W6413)","v":{"v":202.71174045490923,"d":"203"}},{"$f":"'BP Financier'!$F$44*(('BP Financier'!$C$22+'BP Financier'!$D$22+'BP Financier'!$E$22+'BP Financier'!$F$22)/('BP Financier'!$C$16+'BP Financier'!$C$19+'BP Financier'!$D$16+'BP Financier'!$D$19+'BP Financier'!$E$16+'BP Financier'!$E$19+'BP Financier'!$C$22+'BP Financier'!$D$22+'BP Financier'!$E$22+'BP Financier'!$F$22+'BP Financier'!$F$16+'BP Financier'!$F$19))*$V6413*AB6413/(1-$W6413)","v":{"v":97.02442278183689,"d":"97"}},null,{"v":1.25E-3,"d":"0.13%"},{"$f":"Actif!$E$28/100","v":{"v":0.28900000000000003,"d":"28.90%"}},{"$f":"Actif!$E$30/100","v":{"v":0.09050000000000001,"d":"9.05%"}},{"$f":"Actif!$E$31/100","v":{"v":0.0605,"d":"6.05%"}},{"$f":"Actif!$E$32/100","v":{"v":0.47350000000000003,"d":"47.35%"}},{"$f":"Actif!$E$33/100","v":{"v":0.0585,"d":"5.85%"}},{"$f":"Actif!$E$29/100","v":{"v":0.027999999999999997,"d":"2.80%"}}]
[null,"#307",41,2029,"F","A_CAPI",{"v":0.44999999999999996,"d":"0.45"},{"v":0.38999999999999996,"d":"0.39"},0.6,0.6,85,0,{"$f":"ROUND(Primes!$P$10*V6414,2)","v":0.11},0,{"v":2463.7273070673587,"d":"2,464"},{"$f":"'BP Financier'!$F$44*(('BP Financier'!$C$22+'BP Financier'!$D$22+'BP Financier'!$E$22+'BP Financier'!$F$22)/('BP Financier'!$C$16+'BP Financier'!$C$19+'BP Financier'!$D$16+'BP Financier'!$D$19+'BP Financier'!$E$16+'BP Financier'!$E$19+'BP Financier'!$C$22+'BP Financier'!$D$22+'BP Financier'!$E$22+'BP Financier'!$F$22+'BP Financier'!$F$16+'BP Financier'!$F$19))*$V6414*X6414/(1-$W6414)","v":{"v":313.5967950627229,"d":"314"}},{"$f":"'BP Financier'!$F$44*(('BP Financier'!$C$22+'BP Financier'!$D$22+'BP Financier'!$E$22+'BP Financier'!$F$22)/('BP Financier'!$C$16+'BP Financier'!$C$19+'BP Financier'!$D$16+'BP Financier'!$D$19+'BP Financier'!$E$16+'BP Financier'!$E$19+'BP Financier'!$C$22+'BP Financier'!$D$22+'BP Financier'!$E$22+'BP Financier'!$F$22+'BP Financier'!$F$16+'BP Financier'!$F$19))*$V6414*Y6414/(1-$W6414)","v":{"v":209.64205636789757,"d":"210"}},{"$f":"'BP Financier'!$F$44*(('BP Financier'!$C$22+'BP Financier'!$D$22+'BP Financier'!$E$22+'BP Financier'!$F$22)/('BP Financier'!$C$16+'BP Financier'!$C$19+'BP Financier'!$D$16+'BP Financier'!$D$19+'BP Financier'!$E$16+'BP Financier'!$E$19+'BP Financier'!$C$22+'BP Financier'!$D$22+'BP Financier'!$E$22+'BP Financier'!$F$22+'BP Financier'!$F$16+'BP Financier'!$F$19))*$V6414*Z6414/(1-$W6414)","v":{"v":1640.7522923999918,"d":"1,641"}},{"$f":"'BP Financier'!$F$44*(('BP Financier'!$C$22+'BP Financier'!$D$22+'BP Financier'!$E$22+'BP Financier'!$F$22)/('BP Financier'!$C$16+'BP Financier'!$C$19+'BP Financier'!$D$16+'BP Financier'!$D$19+'BP Financier'!$E$16+'BP Financier'!$E$19+'BP Financier'!$C$22+'BP Financier'!$D$22+'BP Financier'!$E$22+'BP Financier'!$F$22+'BP Financier'!$F$16+'BP Financier'!$F$19))*$V6414*AA6414/(1-$W6414)","v":{"v":202.71174045490923,"d":"203"}},{"$f":"'BP Financier'!$F$44*(('BP Financier'!$C$22+'BP Financier'!$D$22+'BP Financier'!$E$22+'BP Financier'!$F$22)/('BP Financier'!$C$16+'BP Financier'!$C$19+'BP Financier'!$D$16+'BP Financier'!$D$19+'BP Financier'!$E$16+'BP Financier'!$E$19+'BP Financier'!$C$22+'BP Financier'!$D$22+'BP Financier'!$E$22+'BP Financier'!$F$22+'BP Financier'!$F$16+'BP Financier'!$F$19))*$V6414*AB6414/(1-$W6414)","v":{"v":97.02442278183689,"d":"97"}},null,{"v":1.25E-3,"d":"0.13%"},{"$f":"Actif!$E$28/100","v":{"v":0.28900000000000003,"d":"28.90%"}},{"$f":"Actif!$E$30/100","v":{"v":0.09050000000000001,"d":"9.05%"}},{"$f":"Actif!$E$31/100","v":{"v":0.0605,"d":"6.05%"}},{"$f":"Actif!$E$32/100","v":{"v":0.47350000000000003,"d":"47.35%"}},{"$f":"Actif!$E$33/100","v":{"v":0.0585,"d":"5.85%"}},{"$f":"Actif!$E$29/100","v":{"v":0.027999999999999997,"d":"2.80%"}}]
[null,"#308",41,2030,"F","A_CAPI",{"v":0.44999999999999996,"d":"0.45"},{"v":0.38999999999999996,"d":"0.39"},0.6,0.6,85,0,{"$f":"ROUND(Primes!$P$10*V6415,2)","v":0.11},0,{"v":2463.7273070673587,"d":"2,464"},{"$f":"'BP Financier'!$F$44*(('BP Financier'!$C$22+'BP Financier'!$D$22+'BP Financier'!$E$22+'BP Financier'!$F$22)/('BP Financier'!$C$16+'BP Financier'!$C$19+'BP Financier'!$D$16+'BP Financier'!$D$19+'BP Financier'!$E$16+'BP Financier'!$E$19+'BP Financier'!$C$22+'BP Financier'!$D$22+'BP Financier'!$E$22+'BP Financier'!$F$22+'BP Financier'!$F$16+'BP Financier'!$F$19))*$V6415*X6415/(1-$W6415)","v":{"v":313.5967950627229,"d":"314"}},{"$f":"'BP Financier'!$F$44*(('BP Financier'!$C$22+'BP Financier'!$D$22+'BP Financier'!$E$22+'BP Financier'!$F$22)/('BP Financier'!$C$16+'BP Financier'!$C$19+'BP Financier'!$D$16+'BP Financier'!$D$19+'BP Financier'!$E$16+'BP Financier'!$E$19+'BP Financier'!$C$22+'BP Financier'!$D$22+'BP Financier'!$E$22+'BP Financier'!$F$22+'BP Financier'!$F$16+'BP Financier'!$F$19))*$V6415*Y6415/(1-$W6415)","v":{"v":209.64205636789757,"d":"210"}},{"$f":"'BP Financier'!$F$44*(('BP Financier'!$C$22+'BP Financier'!$D$22+'BP Financier'!$E$22+'BP Financier'!$F$22)/('BP Financier'!$C$16+'BP Financier'!$C$19+'BP Financier'!$D$16+'BP Financier'!$D$19+'BP Financier'!$E$16+'BP Financier'!$E$19+'BP Financier'!$C$22+'BP Financier'!$D$22+'BP Financier'!$E$22+'BP Financier'!$F$22+'BP Financier'!$F$16+'BP Financier'!$F$19))*$V6415*Z6415/(1-$W6415)","v":{"v":1640.7522923999918,"d":"1,641"}},{"$f":"'BP Financier'!$F$44*(('BP Financier'!$C$22+'BP Financier'!$D$22+'BP Financier'!$E$22+'BP Financier'!$F$22)/('BP Financier'!$C$16+'BP Financier'!$C$19+'BP Financier'!$D$16+'BP Financier'!$D$19+'BP Financier'!$E$16+'BP Financier'!$E$19+'BP Financier'!$C$22+'BP Financier'!$D$22+'BP Financier'!$E$22+'BP Financier'!$F$22+'BP Financier'!$F$16+'BP Financier'!$F$19))*$V6415*AA6415/(1-$W6415)","v":{"v":202.71174045490923,"d":"203"}},{"$f":"'BP Financier'!$F$44*(('BP Financier'!$C$22+'BP Financier'!$D$22+'BP Financier'!$E$22+'BP Financier'!$F$22)/('BP Financier'!$C$16+'BP Financier'!$C$19+'BP Financier'!$D$16+'BP Financier'!$D$19+'BP Financier'!$E$16+'BP Financier'!$E$19+'BP Financier'!$C$22+'BP Financier'!$D$22+'BP Financier'!$E$22+'BP Financier'!$F$22+'BP Financier'!$F$16+'BP Financier'!$F$19))*$V6415*AB6415/(1-$W6415)","v":{"v":97.02442278183689,"d":"97"}},null,{"v":1.25E-3,"d":"0.13%"},{"$f":"Actif!$E$28/100","v":{"v":0.28900000000000003,"d":"28.90%"}},{"$f":"Actif!$E$30/100","v":{"v":0.09050000000000001,"d":"9.05%"}},{"$f":"Actif!$E$31/100","v":{"v":0.0605,"d":"6.05%"}},{"$f":"Actif!$E$32/100","v":{"v":0.47350000000000003,"d":"47.35%"}},{"$f":"Actif!$E$33/100","v":{"v":0.0585,"d":"5.85%"}},{"$f":"Actif!$E$29/100","v":{"v":0.027999999999999997,"d":"2.80%"}}]
[null,"#309",42,2026,"H","A_CAPI",{"v":0.44999999999999996,"d":"0.45"},{"v":0.38999999999999996,"d":"0.39"},0.6,0.6,85,0,{"$f":"ROUND(Primes!$P$10*V6416,2)","v":0.11},0,{"v":2463.7273070673587,"d":"2,464"},{"$f":"'BP Financier'!$F$44*(('BP Financier'!$C$22+'BP Financier'!$D$22+'BP Financier'!$E$22+'BP Financier'!$F$22)/('BP Financier'!$C$16+'BP Financier'!$C$19+'BP Financier'!$D$16+'BP Financier'!$D$19+'BP Financier'!$E$16+'BP Financier'!$E$19+'BP Financier'!$C$22+'BP Financier'!$D$22+'BP Financier'!$E$22+'BP Financier'!$F$22+'BP Financier'!$F$16+'BP Financier'!$F$19))*$V6416*X6416/(1-$W6416)","v":{"v":313.5967950627229,"d":"314"}},{"$f":"'BP Financier'!$F$44*(('BP Financier'!$C$22+'BP Financier'!$D$22+'BP Financier'!$E$22+'BP Financier'!$F$22)/('BP Financier'!$C$16+'BP Financier'!$C$19+'BP Financier'!$D$16+'BP Financier'!$D$19+'BP Financier'!$E$16+'BP Financier'!$E$19+'BP Financier'!$C$22+'BP Financier'!$D$22+'BP Financier'!$E$22+'BP Financier'!$F$22+'BP Financier'!$F$16+'BP Financier'!$F$19))*$V6416*Y6416/(1-$W6416)","v":{"v":209.64205636789757,"d":"210"}},{"$f":"'BP Financier'!$F$44*(('BP Financier'!$C$22+'BP Financier'!$D$22+'BP Financier'!$E$22+'BP Financier'!$F$22)/('BP Financier'!$C$16+'BP Financier'!$C$19+'BP Financier'!$D$16+'BP Financier'!$D$19+'BP Financier'!$E$16+'BP Financier'!$E$19+'BP Financier'!$C$22+'BP Financier'!$D$22+'BP Financier'!$E$22+'BP Financier'!$F$22+'BP Financier'!$F$16+'BP Financier'!$F$19))*$V6416*Z6416/(1-$W6416)","v":{"v":1640.7522923999918,"d":"1,641"}},{"$f":"'BP Financier'!$F$44*(('BP Financier'!$C$22+'BP Financier'!$D$22+'BP Financier'!$E$22+'BP Financier'!$F$22)/('BP Financier'!$C$16+'BP Financier'!$C$19+'BP Financier'!$D$16+'BP Financier'!$D$19+'BP Financier'!$E$16+'BP Financier'!$E$19+'BP Financier'!$C$22+'BP Financier'!$D$22+'BP Financier'!$E$22+'BP Financier'!$F$22+'BP Financier'!$F$16+'BP Financier'!$F$19))*$V6416*AA6416/(1-$W6416)","v":{"v":202.71174045490923,"d":"203"}},{"$f":"'BP Financier'!$F$44*(('BP Financier'!$C$22+'BP Financier'!$D$22+'BP Financier'!$E$22+'BP Financier'!$F$22)/('BP Financier'!$C$16+'BP Financier'!$C$19+'BP Financier'!$D$16+'BP Financier'!$D$19+'BP Financier'!$E$16+'BP Financier'!$E$19+'BP Financier'!$C$22+'BP Financier'!$D$22+'BP Financier'!$E$22+'BP Financier'!$F$22+'BP Financier'!$F$16+'BP Financier'!$F$19))*$V6416*AB6416/(1-$W6416)","v":{"v":97.02442278183689,"d":"97"}},null,{"v":1.25E-3,"d":"0.13%"},{"$f":"Actif!$E$28/100","v":{"v":0.28900000000000003,"d":"28.90%"}},{"$f":"Actif!$E$30/100","v":{"v":0.09050000000000001,"d":"9.05%"}},{"$f":"Actif!$E$31/100","v":{"v":0.0605,"d":"6.05%"}},{"$f":"Actif!$E$32/100","v":{"v":0.47350000000000003,"d":"47.35%"}},{"$f":"Actif!$E$33/100","v":{"v":0.0585,"d":"5.85%"}},{"$f":"Actif!$E$29/100","v":{"v":0.027999999999999997,"d":"2.80%"}}]
[null,"#310",42,2028,"H","A_CAPI",{"v":0.44999999999999996,"d":"0.45"},{"v":0.38999999999999996,"d":"0.39"},0.6,0.6,85,0,{"$f":"ROUND(Primes!$P$10*V6417,2)","v":0.11},0,{"v":2463.7273070673587,"d":"2,464"},{"$f":"'BP Financier'!$F$44*(('BP Financier'!$C$22+'BP Financier'!$D$22+'BP Financier'!$E$22+'BP Financier'!$F$22)/('BP Financier'!$C$16+'BP Financier'!$C$19+'BP Financier'!$D$16+'BP Financier'!$D$19+'BP Financier'!$E$16+'BP Financier'!$E$19+'BP Financier'!$C$22+'BP Financier'!$D$22+'BP Financier'!$E$22+'BP Financier'!$F$22+'BP Financier'!$F$16+'BP Financier'!$F$19))*$V6417*X6417/(1-$W6417)","v":{"v":313.5967950627229,"d":"314"}},{"$f":"'BP Financier'!$F$44*(('BP Financier'!$C$22+'BP Financier'!$D$22+'BP Financier'!$E$22+'BP Financier'!$F$22)/('BP Financier'!$C$16+'BP Financier'!$C$19+'BP Financier'!$D$16+'BP Financier'!$D$19+'BP Financier'!$E$16+'BP Financier'!$E$19+'BP Financier'!$C$22+'BP Financier'!$D$22+'BP Financier'!$E$22+'BP Financier'!$F$22+'BP Financier'!$F$16+'BP Financier'!$F$19))*$V6417*Y6417/(1-$W6417)","v":{"v":209.64205636789757,"d":"210"}},{"$f":"'BP Financier'!$F$44*(('BP Financier'!$C$22+'BP Financier'!$D$22+'BP Financier'!$E$22+'BP Financier'!$F$22)/('BP Financier'!$C$16+'BP Financier'!$C$19+'BP Financier'!$D$16+'BP Financier'!$D$19+'BP Financier'!$E$16+'BP Financier'!$E$19+'BP Financier'!$C$22+'BP Financier'!$D$22+'BP Financier'!$E$22+'BP Financier'!$F$22+'BP Financier'!$F$16+'BP Financier'!$F$19))*$V6417*Z6417/(1-$W6417)","v":{"v":1640.7522923999918,"d":"1,641"}},{"$f":"'BP Financier'!$F$44*(('BP Financier'!$C$22+'BP Financier'!$D$22+'BP Financier'!$E$22+'BP Financier'!$F$22)/('BP Financier'!$C$16+'BP Financier'!$C$19+'BP Financier'!$D$16+'BP Financier'!$D$19+'BP Financier'!$E$16+'BP Financier'!$E$19+'BP Financier'!$C$22+'BP Financier'!$D$22+'BP Financier'!$E$22+'BP Financier'!$F$22+'BP Financier'!$F$16+'BP Financier'!$F$19))*$V6417*AA6417/(1-$W6417)","v":{"v":202.71174045490923,"d":"203"}},{"$f":"'BP Financier'!$F$44*(('BP Financier'!$C$22+'BP Financier'!$D$22+'BP Financier'!$E$22+'BP Financier'!$F$22)/('BP Financier'!$C$16+'BP Financier'!$C$19+'BP Financier'!$D$16+'BP Financier'!$D$19+'BP Financier'!$E$16+'BP Financier'!$E$19+'BP Financier'!$C$22+'BP Financier'!$D$22+'BP Financier'!$E$22+'BP Financier'!$F$22+'BP Financier'!$F$16+'BP Financier'!$F$19))*$V6417*AB6417/(1-$W6417)","v":{"v":97.02442278183689,"d":"97"}},null,{"v":1.25E-3,"d":"0.13%"},{"$f":"Actif!$E$28/100","v":{"v":0.28900000000000003,"d":"28.90%"}},{"$f":"Actif!$E$30/100","v":{"v":0.09050000000000001,"d":"9.05%"}},{"$f":"Actif!$E$31/100","v":{"v":0.0605,"d":"6.05%"}},{"$f":"Actif!$E$32/100","v":{"v":0.47350000000000003,"d":"47.35%"}},{"$f":"Actif!$E$33/100","v":{"v":0.0585,"d":"5.85%"}},{"$f":"Actif!$E$29/100","v":{"v":0.027999999999999997,"d":"2.80%"}}]
[null,"#311",42,2029,"H","A_CAPI",{"v":0.44999999999999996,"d":"0.45"},{"v":0.38999999999999996,"d":"0.39"},0.6,0.6,85,0,{"$f":"ROUND(Primes!$P$10*V6418,2)","v":0.11},0,{"v":2463.7273070673587,"d":"2,464"},{"$f":"'BP Financier'!$F$44*(('BP Financier'!$C$22+'BP Financier'!$D$22+'BP Financier'!$E$22+'BP Financier'!$F$22)/('BP Financier'!$C$16+'BP Financier'!$C$19+'BP Financier'!$D$16+'BP Financier'!$D$19+'BP Financier'!$E$16+'BP Financier'!$E$19+'BP Financier'!$C$22+'BP Financier'!$D$22+'BP Financier'!$E$22+'BP Financier'!$F$22+'BP Financier'!$F$16+'BP Financier'!$F$19))*$V6418*X6418/(1-$W6418)","v":{"v":313.5967950627229,"d":"314"}},{"$f":"'BP Financier'!$F$44*(('BP Financier'!$C$22+'BP Financier'!$D$22+'BP Financier'!$E$22+'BP Financier'!$F$22)/('BP Financier'!$C$16+'BP Financier'!$C$19+'BP Financier'!$D$16+'BP Financier'!$D$19+'BP Financier'!$E$16+'BP Financier'!$E$19+'BP Financier'!$C$22+'BP Financier'!$D$22+'BP Financier'!$E$22+'BP Financier'!$F$22+'BP Financier'!$F$16+'BP Financier'!$F$19))*$V6418*Y6418/(1-$W6418)","v":{"v":209.64205636789757,"d":"210"}},{"$f":"'BP Financier'!$F$44*(('BP Financier'!$C$22+'BP Financier'!$D$22+'BP Financier'!$E$22+'BP Financier'!$F$22)/('BP Financier'!$C$16+'BP Financier'!$C$19+'BP Financier'!$D$16+'BP Financier'!$D$19+'BP Financier'!$E$16+'BP Financier'!$E$19+'BP Financier'!$C$22+'BP Financier'!$D$22+'BP Financier'!$E$22+'BP Financier'!$F$22+'BP Financier'!$F$16+'BP Financier'!$F$19))*$V6418*Z6418/(1-$W6418)","v":{"v":1640.7522923999918,"d":"1,641"}},{"$f":"'BP Financier'!$F$44*(('BP Financier'!$C$22+'BP Financier'!$D$22+'BP Financier'!$E$22+'BP Financier'!$F$22)/('BP Financier'!$C$16+'BP Financier'!$C$19+'BP Financier'!$D$16+'BP Financier'!$D$19+'BP Financier'!$E$16+'BP Financier'!$E$19+'BP Financier'!$C$22+'BP Financier'!$D$22+'BP Financier'!$E$22+'BP Financier'!$F$22+'BP Financier'!$F$16+'BP Financier'!$F$19))*$V6418*AA6418/(1-$W6418)","v":{"v":202.71174045490923,"d":"203"}},{"$f":"'BP Financier'!$F$44*(('BP Financier'!$C$22+'BP Financier'!$D$22+'BP Financier'!$E$22+'BP Financier'!$F$22)/('BP Financier'!$C$16+'BP Financier'!$C$19+'BP Financier'!$D$16+'BP Financier'!$D$19+'BP Financier'!$E$16+'BP Financier'!$E$19+'BP Financier'!$C$22+'BP Financier'!$D$22+'BP Financier'!$E$22+'BP Financier'!$F$22+'BP Financier'!$F$16+'BP Financier'!$F$19))*$V6418*AB6418/(1-$W6418)","v":{"v":97.02442278183689,"d":"97"}},null,{"v":1.25E-3,"d":"0.13%"},{"$f":"Actif!$E$28/100","v":{"v":0.28900000000000003,"d":"28.90%"}},{"$f":"Actif!$E$30/100","v":{"v":0.09050000000000001,"d":"9.05%"}},{"$f":"Actif!$E$31/100","v":{"v":0.0605,"d":"6.05%"}},{"$f":"Actif!$E$32/100","v":{"v":0.47350000000000003,"d":"47.35%"}},{"$f":"Actif!$E$33/100","v":{"v":0.0585,"d":"5.85%"}},{"$f":"Actif!$E$29/100","v":{"v":0.027999999999999997,"d":"2.80%"}}]
[null,"#312",42,2030,"H","A_CAPI",{"v":0.44999999999999996,"d":"0.45"},{"v":0.38999999999999996,"d":"0.39"},0.6,0.6,85,0,{"$f":"ROUND(Primes!$P$10*V6419,2)","v":0.11},0,{"v":2463.7273070673587,"d":"2,464"},{"$f":"'BP Financier'!$F$44*(('BP Financier'!$C$22+'BP Financier'!$D$22+'BP Financier'!$E$22+'BP Financier'!$F$22)/('BP Financier'!$C$16+'BP Financier'!$C$19+'BP Financier'!$D$16+'BP Financier'!$D$19+'BP Financier'!$E$16+'BP Financier'!$E$19+'BP Financier'!$C$22+'BP Financier'!$D$22+'BP Financier'!$E$22+'BP Financier'!$F$22+'BP Financier'!$F$16+'BP Financier'!$F$19))*$V6419*X6419/(1-$W6419)","v":{"v":313.5967950627229,"d":"314"}},{"$f":"'BP Financier'!$F$44*(('BP Financier'!$C$22+'BP Financier'!$D$22+'BP Financier'!$E$22+'BP Financier'!$F$22)/('BP Financier'!$C$16+'BP Financier'!$C$19+'BP Financier'!$D$16+'BP Financier'!$D$19+'BP Financier'!$E$16+'BP Financier'!$E$19+'BP Financier'!$C$22+'BP Financier'!$D$22+'BP Financier'!$E$22+'BP Financier'!$F$22+'BP Financier'!$F$16+'BP Financier'!$F$19))*$V6419*Y6419/(1-$W6419)","v":{"v":209.64205636789757,"d":"210"}},{"$f":"'BP Financier'!$F$44*(('BP Financier'!$C$22+'BP Financier'!$D$22+'BP Financier'!$E$22+'BP Financier'!$F$22)/('BP Financier'!$C$16+'BP Financier'!$C$19+'BP Financier'!$D$16+'BP Financier'!$D$19+'BP Financier'!$E$16+'BP Financier'!$E$19+'BP Financier'!$C$22+'BP Financier'!$D$22+'BP Financier'!$E$22+'BP Financier'!$F$22+'BP Financier'!$F$16+'BP Financier'!$F$19))*$V6419*Z6419/(1-$W6419)","v":{"v":1640.7522923999918,"d":"1,641"}},{"$f":"'BP Financier'!$F$44*(('BP Financier'!$C$22+'BP Financier'!$D$22+'BP Financier'!$E$22+'BP Financier'!$F$22)/('BP Financier'!$C$16+'BP Financier'!$C$19+'BP Financier'!$D$16+'BP Financier'!$D$19+'BP Financier'!$E$16+'BP Financier'!$E$19+'BP Financier'!$C$22+'BP Financier'!$D$22+'BP Financier'!$E$22+'BP Financier'!$F$22+'BP Financier'!$F$16+'BP Financier'!$F$19))*$V6419*AA6419/(1-$W6419)","v":{"v":202.71174045490923,"d":"203"}},{"$f":"'BP Financier'!$F$44*(('BP Financier'!$C$22+'BP Financier'!$D$22+'BP Financier'!$E$22+'BP Financier'!$F$22)/('BP Financier'!$C$16+'BP Financier'!$C$19+'BP Financier'!$D$16+'BP Financier'!$D$19+'BP Financier'!$E$16+'BP Financier'!$E$19+'BP Financier'!$C$22+'BP Financier'!$D$22+'BP Financier'!$E$22+'BP Financier'!$F$22+'BP Financier'!$F$16+'BP Financier'!$F$19))*$V6419*AB6419/(1-$W6419)","v":{"v":97.02442278183689,"d":"97"}},null,{"v":1.25E-3,"d":"0.13%"},{"$f":"Actif!$E$28/100","v":{"v":0.28900000000000003,"d":"28.90%"}},{"$f":"Actif!$E$30/100","v":{"v":0.09050000000000001,"d":"9.05%"}},{"$f":"Actif!$E$31/100","v":{"v":0.0605,"d":"6.05%"}},{"$f":"Actif!$E$32/100","v":{"v":0.47350000000000003,"d":"47.35%"}},{"$f":"Actif!$E$33/100","v":{"v":0.0585,"d":"5.85%"}},{"$f":"Actif!$E$29/100","v":{"v":0.027999999999999997,"d":"2.80%"}}]
[null,"#313",43,2026,"H","A_CAPI",{"v":0.44999999999999996,"d":"0.45"},{"v":0.38999999999999996,"d":"0.39"},0.6,0.6,85,0,{"$f":"ROUND(Primes!$P$10*V6420,2)","v":0.11},0,{"v":2463.7273070673587,"d":"2,464"},{"$f":"'BP Financier'!$F$44*(('BP Financier'!$C$22+'BP Financier'!$D$22+'BP Financier'!$E$22+'BP Financier'!$F$22)/('BP Financier'!$C$16+'BP Financier'!$C$19+'BP Financier'!$D$16+'BP Financier'!$D$19+'BP Financier'!$E$16+'BP Financier'!$E$19+'BP Financier'!$C$22+'BP Financier'!$D$22+'BP Financier'!$E$22+'BP Financier'!$F$22+'BP Financier'!$F$16+'BP Financier'!$F$19))*$V6420*X6420/(1-$W6420)","v":{"v":313.5967950627229,"d":"314"}},{"$f":"'BP Financier'!$F$44*(('BP Financier'!$C$22+'BP Financier'!$D$22+'BP Financier'!$E$22+'BP Financier'!$F$22)/('BP Financier'!$C$16+'BP Financier'!$C$19+'BP Financier'!$D$16+'BP Financier'!$D$19+'BP Financier'!$E$16+'BP Financier'!$E$19+'BP Financier'!$C$22+'BP Financier'!$D$22+'BP Financier'!$E$22+'BP Financier'!$F$22+'BP Financier'!$F$16+'BP Financier'!$F$19))*$V6420*Y6420/(1-$W6420)","v":{"v":209.64205636789757,"d":"210"}},{"$f":"'BP Financier'!$F$44*(('BP Financier'!$C$22+'BP Financier'!$D$22+'BP Financier'!$E$22+'BP Financier'!$F$22)/('BP Financier'!$C$16+'BP Financier'!$C$19+'BP Financier'!$D$16+'BP Financier'!$D$19+'BP Financier'!$E$16+'BP Financier'!$E$19+'BP Financier'!$C$22+'BP Financier'!$D$22+'BP Financier'!$E$22+'BP Financier'!$F$22+'BP Financier'!$F$16+'BP Financier'!$F$19))*$V6420*Z6420/(1-$W6420)","v":{"v":1640.7522923999918,"d":"1,641"}},{"$f":"'BP Financier'!$F$44*(('BP Financier'!$C$22+'BP Financier'!$D$22+'BP Financier'!$E$22+'BP Financier'!$F$22)/('BP Financier'!$C$16+'BP Financier'!$C$19+'BP Financier'!$D$16+'BP Financier'!$D$19+'BP Financier'!$E$16+'BP Financier'!$E$19+'BP Financier'!$C$22+'BP Financier'!$D$22+'BP Financier'!$E$22+'BP Financier'!$F$22+'BP Financier'!$F$16+'BP Financier'!$F$19))*$V6420*AA6420/(1-$W6420)","v":{"v":202.71174045490923,"d":"203"}},{"$f":"'BP Financier'!$F$44*(('BP Financier'!$C$22+'BP Financier'!$D$22+'BP Financier'!$E$22+'BP Financier'!$F$22)/('BP Financier'!$C$16+'BP Financier'!$C$19+'BP Financier'!$D$16+'BP Financier'!$D$19+'BP Financier'!$E$16+'BP Financier'!$E$19+'BP Financier'!$C$22+'BP Financier'!$D$22+'BP Financier'!$E$22+'BP Financier'!$F$22+'BP Financier'!$F$16+'BP Financier'!$F$19))*$V6420*AB6420/(1-$W6420)","v":{"v":97.02442278183689,"d":"97"}},null,{"v":1.25E-3,"d":"0.13%"},{"$f":"Actif!$E$28/100","v":{"v":0.28900000000000003,"d":"28.90%"}},{"$f":"Actif!$E$30/100","v":{"v":0.09050000000000001,"d":"9.05%"}},{"$f":"Actif!$E$31/100","v":{"v":0.0605,"d":"6.05%"}},{"$f":"Actif!$E$32/100","v":{"v":0.47350000000000003,"d":"47.35%"}},{"$f":"Actif!$E$33/100","v":{"v":0.0585,"d":"5.85%"}},{"$f":"Actif!$E$29/100","v":{"v":0.027999999999999997,"d":"2.80%"}}]
[null,"#314",43,2028,"H","A_CAPI",{"v":0.44999999999999996,"d":"0.45"},{"v":0.38999999999999996,"d":"0.39"},0.6,0.6,85,0,{"$f":"ROUND(Primes!$P$10*V6421,2)","v":0.11},0,{"v":2463.7273070673587,"d":"2,464"},{"$f":"'BP Financier'!$F$44*(('BP Financier'!$C$22+'BP Financier'!$D$22+'BP Financier'!$E$22+'BP Financier'!$F$22)/('BP Financier'!$C$16+'BP Financier'!$C$19+'BP Financier'!$D$16+'BP Financier'!$D$19+'BP Financier'!$E$16+'BP Financier'!$E$19+'BP Financier'!$C$22+'BP Financier'!$D$22+'BP Financier'!$E$22+'BP Financier'!$F$22+'BP Financier'!$F$16+'BP Financier'!$F$19))*$V6421*X6421/(1-$W6421)","v":{"v":313.5967950627229,"d":"314"}},{"$f":"'BP Financier'!$F$44*(('BP Financier'!$C$22+'BP Financier'!$D$22+'BP Financier'!$E$22+'BP Financier'!$F$22)/('BP Financier'!$C$16+'BP Financier'!$C$19+'BP Financier'!$D$16+'BP Financier'!$D$19+'BP Financier'!$E$16+'BP Financier'!$E$19+'BP Financier'!$C$22+'BP Financier'!$D$22+'BP Financier'!$E$22+'BP Financier'!$F$22+'BP Financier'!$F$16+'BP Financier'!$F$19))*$V6421*Y6421/(1-$W6421)","v":{"v":209.64205636789757,"d":"210"}},{"$f":"'BP Financier'!$F$44*(('BP Financier'!$C$22+'BP Financier'!$D$22+'BP Financier'!$E$22+'BP Financier'!$F$22)/('BP Financier'!$C$16+'BP Financier'!$C$19+'BP Financier'!$D$16+'BP Financier'!$D$19+'BP Financier'!$E$16+'BP Financier'!$E$19+'BP Financier'!$C$22+'BP Financier'!$D$22+'BP Financier'!$E$22+'BP Financier'!$F$22+'BP Financier'!$F$16+'BP Financier'!$F$19))*$V6421*Z6421/(1-$W6421)","v":{"v":1640.7522923999918,"d":"1,641"}},{"$f":"'BP Financier'!$F$44*(('BP Financier'!$C$22+'BP Financier'!$D$22+'BP Financier'!$E$22+'BP Financier'!$F$22)/('BP Financier'!$C$16+'BP Financier'!$C$19+'BP Financier'!$D$16+'BP Financier'!$D$19+'BP Financier'!$E$16+'BP Financier'!$E$19+'BP Financier'!$C$22+'BP Financier'!$D$22+'BP Financier'!$E$22+'BP Financier'!$F$22+'BP Financier'!$F$16+'BP Financier'!$F$19))*$V6421*AA6421/(1-$W6421)","v":{"v":202.71174045490923,"d":"203"}},{"$f":"'BP Financier'!$F$44*(('BP Financier'!$C$22+'BP Financier'!$D$22+'BP Financier'!$E$22+'BP Financier'!$F$22)/('BP Financier'!$C$16+'BP Financier'!$C$19+'BP Financier'!$D$16+'BP Financier'!$D$19+'BP Financier'!$E$16+'BP Financier'!$E$19+'BP Financier'!$C$22+'BP Financier'!$D$22+'BP Financier'!$E$22+'BP Financier'!$F$22+'BP Financier'!$F$16+'BP Financier'!$F$19))*$V6421*AB6421/(1-$W6421)","v":{"v":97.02442278183689,"d":"97"}},null,{"v":1.25E-3,"d":"0.13%"},{"$f":"Actif!$E$28/100","v":{"v":0.28900000000000003,"d":"28.90%"}},{"$f":"Actif!$E$30/100","v":{"v":0.09050000000000001,"d":"9.05%"}},{"$f":"Actif!$E$31/100","v":{"v":0.0605,"d":"6.05%"}},{"$f":"Actif!$E$32/100","v":{"v":0.47350000000000003,"d":"47.35%"}},{"$f":"Actif!$E$33/100","v":{"v":0.0585,"d":"5.85%"}},{"$f":"Actif!$E$29/100","v":{"v":0.027999999999999997,"d":"2.80%"}}]
[null,"#315",43,2029,"H","A_CAPI",{"v":0.44999999999999996,"d":"0.45"},{"v":0.38999999999999996,"d":"0.39"},0.6,0.6,85,0,{"$f":"ROUND(Primes!$P$10*V6422,2)","v":0.11},0,{"v":2463.7273070673587,"d":"2,464"},{"$f":"'BP Financier'!$F$44*(('BP Financier'!$C$22+'BP Financier'!$D$22+'BP Financier'!$E$22+'BP Financier'!$F$22)/('BP Financier'!$C$16+'BP Financier'!$C$19+'BP Financier'!$D$16+'BP Financier'!$D$19+'BP Financier'!$E$16+'BP Financier'!$E$19+'BP Financier'!$C$22+'BP Financier'!$D$22+'BP Financier'!$E$22+'BP Financier'!$F$22+'BP Financier'!$F$16+'BP Financier'!$F$19))*$V6422*X6422/(1-$W6422)","v":{"v":313.5967950627229,"d":"314"}},{"$f":"'BP Financier'!$F$44*(('BP Financier'!$C$22+'BP Financier'!$D$22+'BP Financier'!$E$22+'BP Financier'!$F$22)/('BP Financier'!$C$16+'BP Financier'!$C$19+'BP Financier'!$D$16+'BP Financier'!$D$19+'BP Financier'!$E$16+'BP Financier'!$E$19+'BP Financier'!$C$22+'BP Financier'!$D$22+'BP Financier'!$E$22+'BP Financier'!$F$22+'BP Financier'!$F$16+'BP Financier'!$F$19))*$V6422*Y6422/(1-$W6422)","v":{"v":209.64205636789757,"d":"210"}},{"$f":"'BP Financier'!$F$44*(('BP Financier'!$C$22+'BP Financier'!$D$22+'BP Financier'!$E$22+'BP Financier'!$F$22)/('BP Financier'!$C$16+'BP Financier'!$C$19+'BP Financier'!$D$16+'BP Financier'!$D$19+'BP Financier'!$E$16+'BP Financier'!$E$19+'BP Financier'!$C$22+'BP Financier'!$D$22+'BP Financier'!$E$22+'BP Financier'!$F$22+'BP Financier'!$F$16+'BP Financier'!$F$19))*$V6422*Z6422/(1-$W6422)","v":{"v":1640.7522923999918,"d":"1,641"}},{"$f":"'BP Financier'!$F$44*(('BP Financier'!$C$22+'BP Financier'!$D$22+'BP Financier'!$E$22+'BP Financier'!$F$22)/('BP Financier'!$C$16+'BP Financier'!$C$19+'BP Financier'!$D$16+'BP Financier'!$D$19+'BP Financier'!$E$16+'BP Financier'!$E$19+'BP Financier'!$C$22+'BP Financier'!$D$22+'BP Financier'!$E$22+'BP Financier'!$F$22+'BP Financier'!$F$16+'BP Financier'!$F$19))*$V6422*AA6422/(1-$W6422)","v":{"v":202.71174045490923,"d":"203"}},{"$f":"'BP Financier'!$F$44*(('BP Financier'!$C$22+'BP Financier'!$D$22+'BP Financier'!$E$22+'BP Financier'!$F$22)/('BP Financier'!$C$16+'BP Financier'!$C$19+'BP Financier'!$D$16+'BP Financier'!$D$19+'BP Financier'!$E$16+'BP Financier'!$E$19+'BP Financier'!$C$22+'BP Financier'!$D$22+'BP Financier'!$E$22+'BP Financier'!$F$22+'BP Financier'!$F$16+'BP Financier'!$F$19))*$V6422*AB6422/(1-$W6422)","v":{"v":97.02442278183689,"d":"97"}},null,{"v":1.25E-3,"d":"0.13%"},{"$f":"Actif!$E$28/100","v":{"v":0.28900000000000003,"d":"28.90%"}},{"$f":"Actif!$E$30/100","v":{"v":0.09050000000000001,"d":"9.05%"}},{"$f":"Actif!$E$31/100","v":{"v":0.0605,"d":"6.05%"}},{"$f":"Actif!$E$32/100","v":{"v":0.47350000000000003,"d":"47.35%"}},{"$f":"Actif!$E$33/100","v":{"v":0.0585,"d":"5.85%"}},{"$f":"Actif!$E$29/100","v":{"v":0.027999999999999997,"d":"2.80%"}}]
[null,"#316",43,2030,"H","A_CAPI",{"v":0.44999999999999996,"d":"0.45"},{"v":0.38999999999999996,"d":"0.39"},0.6,0.6,85,0,{"$f":"ROUND(Primes!$P$10*V6423,2)","v":0.11},0,{"v":2463.7273070673587,"d":"2,464"},{"$f":"'BP Financier'!$F$44*(('BP Financier'!$C$22+'BP Financier'!$D$22+'BP Financier'!$E$22+'BP Financier'!$F$22)/('BP Financier'!$C$16+'BP Financier'!$C$19+'BP Financier'!$D$16+'BP Financier'!$D$19+'BP Financier'!$E$16+'BP Financier'!$E$19+'BP Financier'!$C$22+'BP Financier'!$D$22+'BP Financier'!$E$22+'BP Financier'!$F$22+'BP Financier'!$F$16+'BP Financier'!$F$19))*$V6423*X6423/(1-$W6423)","v":{"v":313.5967950627229,"d":"314"}},{"$f":"'BP Financier'!$F$44*(('BP Financier'!$C$22+'BP Financier'!$D$22+'BP Financier'!$E$22+'BP Financier'!$F$22)/('BP Financier'!$C$16+'BP Financier'!$C$19+'BP Financier'!$D$16+'BP Financier'!$D$19+'BP Financier'!$E$16+'BP Financier'!$E$19+'BP Financier'!$C$22+'BP Financier'!$D$22+'BP Financier'!$E$22+'BP Financier'!$F$22+'BP Financier'!$F$16+'BP Financier'!$F$19))*$V6423*Y6423/(1-$W6423)","v":{"v":209.64205636789757,"d":"210"}},{"$f":"'BP Financier'!$F$44*(('BP Financier'!$C$22+'BP Financier'!$D$22+'BP Financier'!$E$22+'BP Financier'!$F$22)/('BP Financier'!$C$16+'BP Financier'!$C$19+'BP Financier'!$D$16+'BP Financier'!$D$19+'BP Financier'!$E$16+'BP Financier'!$E$19+'BP Financier'!$C$22+'BP Financier'!$D$22+'BP Financier'!$E$22+'BP Financier'!$F$22+'BP Financier'!$F$16+'BP Financier'!$F$19))*$V6423*Z6423/(1-$W6423)","v":{"v":1640.7522923999918,"d":"1,641"}},{"$f":"'BP Financier'!$F$44*(('BP Financier'!$C$22+'BP Financier'!$D$22+'BP Financier'!$E$22+'BP Financier'!$F$22)/('BP Financier'!$C$16+'BP Financier'!$C$19+'BP Financier'!$D$16+'BP Financier'!$D$19+'BP Financier'!$E$16+'BP Financier'!$E$19+'BP Financier'!$C$22+'BP Financier'!$D$22+'BP Financier'!$E$22+'BP Financier'!$F$22+'BP Financier'!$F$16+'BP Financier'!$F$19))*$V6423*AA6423/(1-$W6423)","v":{"v":202.71174045490923,"d":"203"}},{"$f":"'BP Financier'!$F$44*(('BP Financier'!$C$22+'BP Financier'!$D$22+'BP Financier'!$E$22+'BP Financier'!$F$22)/('BP Financier'!$C$16+'BP Financier'!$C$19+'BP Financier'!$D$16+'BP Financier'!$D$19+'BP Financier'!$E$16+'BP Financier'!$E$19+'BP Financier'!$C$22+'BP Financier'!$D$22+'BP Financier'!$E$22+'BP Financier'!$F$22+'BP Financier'!$F$16+'BP Financier'!$F$19))*$V6423*AB6423/(1-$W6423)","v":{"v":97.02442278183689,"d":"97"}},null,{"v":1.25E-3,"d":"0.13%"},{"$f":"Actif!$E$28/100","v":{"v":0.28900000000000003,"d":"28.90%"}},{"$f":"Actif!$E$30/100","v":{"v":0.09050000000000001,"d":"9.05%"}},{"$f":"Actif!$E$31/100","v":{"v":0.0605,"d":"6.05%"}},{"$f":"Actif!$E$32/100","v":{"v":0.47350000000000003,"d":"47.35%"}},{"$f":"Actif!$E$33/100","v":{"v":0.0585,"d":"5.85%"}},{"$f":"Actif!$E$29/100","v":{"v":0.027999999999999997,"d":"2.80%"}}]
[null,"#317",44,2026,"F","A_CAPI",{"v":0.44999999999999996,"d":"0.45"},{"v":0.38999999999999996,"d":"0.39"},0.6,0.6,85,0,{"$f":"ROUND(Primes!$P$10*V6424,2)","v":0.11},0,{"v":2463.7273070673587,"d":"2,464"},{"$f":"'BP Financier'!$F$44*(('BP Financier'!$C$22+'BP Financier'!$D$22+'BP Financier'!$E$22+'BP Financier'!$F$22)/('BP Financier'!$C$16+'BP Financier'!$C$19+'BP Financier'!$D$16+'BP Financier'!$D$19+'BP Financier'!$E$16+'BP Financier'!$E$19+'BP Financier'!$C$22+'BP Financier'!$D$22+'BP Financier'!$E$22+'BP Financier'!$F$22+'BP Financier'!$F$16+'BP Financier'!$F$19))*$V6424*X6424/(1-$W6424)","v":{"v":313.5967950627229,"d":"314"}},{"$f":"'BP Financier'!$F$44*(('BP Financier'!$C$22+'BP Financier'!$D$22+'BP Financier'!$E$22+'BP Financier'!$F$22)/('BP Financier'!$C$16+'BP Financier'!$C$19+'BP Financier'!$D$16+'BP Financier'!$D$19+'BP Financier'!$E$16+'BP Financier'!$E$19+'BP Financier'!$C$22+'BP Financier'!$D$22+'BP Financier'!$E$22+'BP Financier'!$F$22+'BP Financier'!$F$16+'BP Financier'!$F$19))*$V6424*Y6424/(1-$W6424)","v":{"v":209.64205636789757,"d":"210"}},{"$f":"'BP Financier'!$F$44*(('BP Financier'!$C$22+'BP Financier'!$D$22+'BP Financier'!$E$22+'BP Financier'!$F$22)/('BP Financier'!$C$16+'BP Financier'!$C$19+'BP Financier'!$D$16+'BP Financier'!$D$19+'BP Financier'!$E$16+'BP Financier'!$E$19+'BP Financier'!$C$22+'BP Financier'!$D$22+'BP Financier'!$E$22+'BP Financier'!$F$22+'BP Financier'!$F$16+'BP Financier'!$F$19))*$V6424*Z6424/(1-$W6424)","v":{"v":1640.7522923999918,"d":"1,641"}},{"$f":"'BP Financier'!$F$44*(('BP Financier'!$C$22+'BP Financier'!$D$22+'BP Financier'!$E$22+'BP Financier'!$F$22)/('BP Financier'!$C$16+'BP Financier'!$C$19+'BP Financier'!$D$16+'BP Financier'!$D$19+'BP Financier'!$E$16+'BP Financier'!$E$19+'BP Financier'!$C$22+'BP Financier'!$D$22+'BP Financier'!$E$22+'BP Financier'!$F$22+'BP Financier'!$F$16+'BP Financier'!$F$19))*$V6424*AA6424/(1-$W6424)","v":{"v":202.71174045490923,"d":"203"}},{"$f":"'BP Financier'!$F$44*(('BP Financier'!$C$22+'BP Financier'!$D$22+'BP Financier'!$E$22+'BP Financier'!$F$22)/('BP Financier'!$C$16+'BP Financier'!$C$19+'BP Financier'!$D$16+'BP Financier'!$D$19+'BP Financier'!$E$16+'BP Financier'!$E$19+'BP Financier'!$C$22+'BP Financier'!$D$22+'BP Financier'!$E$22+'BP Financier'!$F$22+'BP Financier'!$F$16+'BP Financier'!$F$19))*$V6424*AB6424/(1-$W6424)","v":{"v":97.02442278183689,"d":"97"}},null,{"v":1.25E-3,"d":"0.13%"},{"$f":"Actif!$E$28/100","v":{"v":0.28900000000000003,"d":"28.90%"}},{"$f":"Actif!$E$30/100","v":{"v":0.09050000000000001,"d":"9.05%"}},{"$f":"Actif!$E$31/100","v":{"v":0.0605,"d":"6.05%"}},{"$f":"Actif!$E$32/100","v":{"v":0.47350000000000003,"d":"47.35%"}},{"$f":"Actif!$E$33/100","v":{"v":0.0585,"d":"5.85%"}},{"$f":"Actif!$E$29/100","v":{"v":0.027999999999999997,"d":"2.80%"}}]
[null,"#318",44,2028,"F","A_CAPI",{"v":0.44999999999999996,"d":"0.45"},{"v":0.38999999999999996,"d":"0.39"},0.6,0.6,85,0,{"$f":"ROUND(Primes!$P$10*V6425,2)","v":0.11},0,{"v":2463.7273070673587,"d":"2,464"},{"$f":"'BP Financier'!$F$44*(('BP Financier'!$C$22+'BP Financier'!$D$22+'BP Financier'!$E$22+'BP Financier'!$F$22)/('BP Financier'!$C$16+'BP Financier'!$C$19+'BP Financier'!$D$16+'BP Financier'!$D$19+'BP Financier'!$E$16+'BP Financier'!$E$19+'BP Financier'!$C$22+'BP Financier'!$D$22+'BP Financier'!$E$22+'BP Financier'!$F$22+'BP Financier'!$F$16+'BP Financier'!$F$19))*$V6425*X6425/(1-$W6425)","v":{"v":313.5967950627229,"d":"314"}},{"$f":"'BP Financier'!$F$44*(('BP Financier'!$C$22+'BP Financier'!$D$22+'BP Financier'!$E$22+'BP Financier'!$F$22)/('BP Financier'!$C$16+'BP Financier'!$C$19+'BP Financier'!$D$16+'BP Financier'!$D$19+'BP Financier'!$E$16+'BP Financier'!$E$19+'BP Financier'!$C$22+'BP Financier'!$D$22+'BP Financier'!$E$22+'BP Financier'!$F$22+'BP Financier'!$F$16+'BP Financier'!$F$19))*$V6425*Y6425/(1-$W6425)","v":{"v":209.64205636789757,"d":"210"}},{"$f":"'BP Financier'!$F$44*(('BP Financier'!$C$22+'BP Financier'!$D$22+'BP Financier'!$E$22+'BP Financier'!$F$22)/('BP Financier'!$C$16+'BP Financier'!$C$19+'BP Financier'!$D$16+'BP Financier'!$D$19+'BP Financier'!$E$16+'BP Financier'!$E$19+'BP Financier'!$C$22+'BP Financier'!$D$22+'BP Financier'!$E$22+'BP Financier'!$F$22+'BP Financier'!$F$16+'BP Financier'!$F$19))*$V6425*Z6425/(1-$W6425)","v":{"v":1640.7522923999918,"d":"1,641"}},{"$f":"'BP Financier'!$F$44*(('BP Financier'!$C$22+'BP Financier'!$D$22+'BP Financier'!$E$22+'BP Financier'!$F$22)/('BP Financier'!$C$16+'BP Financier'!$C$19+'BP Financier'!$D$16+'BP Financier'!$D$19+'BP Financier'!$E$16+'BP Financier'!$E$19+'BP Financier'!$C$22+'BP Financier'!$D$22+'BP Financier'!$E$22+'BP Financier'!$F$22+'BP Financier'!$F$16+'BP Financier'!$F$19))*$V6425*AA6425/(1-$W6425)","v":{"v":202.71174045490923,"d":"203"}},{"$f":"'BP Financier'!$F$44*(('BP Financier'!$C$22+'BP Financier'!$D$22+'BP Financier'!$E$22+'BP Financier'!$F$22)/('BP Financier'!$C$16+'BP Financier'!$C$19+'BP Financier'!$D$16+'BP Financier'!$D$19+'BP Financier'!$E$16+'BP Financier'!$E$19+'BP Financier'!$C$22+'BP Financier'!$D$22+'BP Financier'!$E$22+'BP Financier'!$F$22+'BP Financier'!$F$16+'BP Financier'!$F$19))*$V6425*AB6425/(1-$W6425)","v":{"v":97.02442278183689,"d":"97"}},null,{"v":1.25E-3,"d":"0.13%"},{"$f":"Actif!$E$28/100","v":{"v":0.28900000000000003,"d":"28.90%"}},{"$f":"Actif!$E$30/100","v":{"v":0.09050000000000001,"d":"9.05%"}},{"$f":"Actif!$E$31/100","v":{"v":0.0605,"d":"6.05%"}},{"$f":"Actif!$E$32/100","v":{"v":0.47350000000000003,"d":"47.35%"}},{"$f":"Actif!$E$33/100","v":{"v":0.0585,"d":"5.85%"}},{"$f":"Actif!$E$29/100","v":{"v":0.027999999999999997,"d":"2.80%"}}]
[null,"#319",44,2029,"F","A_CAPI",{"v":0.44999999999999996,"d":"0.45"},{"v":0.38999999999999996,"d":"0.39"},0.6,0.6,85,0,{"$f":"ROUND(Primes!$P$10*V6426,2)","v":0.11},0,{"v":2463.7273070673587,"d":"2,464"},{"$f":"'BP Financier'!$F$44*(('BP Financier'!$C$22+'BP Financier'!$D$22+'BP Financier'!$E$22+'BP Financier'!$F$22)/('BP Financier'!$C$16+'BP Financier'!$C$19+'BP Financier'!$D$16+'BP Financier'!$D$19+'BP Financier'!$E$16+'BP Financier'!$E$19+'BP Financier'!$C$22+'BP Financier'!$D$22+'BP Financier'!$E$22+'BP Financier'!$F$22+'BP Financier'!$F$16+'BP Financier'!$F$19))*$V6426*X6426/(1-$W6426)","v":{"v":313.5967950627229,"d":"314"}},{"$f":"'BP Financier'!$F$44*(('BP Financier'!$C$22+'BP Financier'!$D$22+'BP Financier'!$E$22+'BP Financier'!$F$22)/('BP Financier'!$C$16+'BP Financier'!$C$19+'BP Financier'!$D$16+'BP Financier'!$D$19+'BP Financier'!$E$16+'BP Financier'!$E$19+'BP Financier'!$C$22+'BP Financier'!$D$22+'BP Financier'!$E$22+'BP Financier'!$F$22+'BP Financier'!$F$16+'BP Financier'!$F$19))*$V6426*Y6426/(1-$W6426)","v":{"v":209.64205636789757,"d":"210"}},{"$f":"'BP Financier'!$F$44*(('BP Financier'!$C$22+'BP Financier'!$D$22+'BP Financier'!$E$22+'BP Financier'!$F$22)/('BP Financier'!$C$16+'BP Financier'!$C$19+'BP Financier'!$D$16+'BP Financier'!$D$19+'BP Financier'!$E$16+'BP Financier'!$E$19+'BP Financier'!$C$22+'BP Financier'!$D$22+'BP Financier'!$E$22+'BP Financier'!$F$22+'BP Financier'!$F$16+'BP Financier'!$F$19))*$V6426*Z6426/(1-$W6426)","v":{"v":1640.7522923999918,"d":"1,641"}},{"$f":"'BP Financier'!$F$44*(('BP Financier'!$C$22+'BP Financier'!$D$22+'BP Financier'!$E$22+'BP Financier'!$F$22)/('BP Financier'!$C$16+'BP Financier'!$C$19+'BP Financier'!$D$16+'BP Financier'!$D$19+'BP Financier'!$E$16+'BP Financier'!$E$19+'BP Financier'!$C$22+'BP Financier'!$D$22+'BP Financier'!$E$22+'BP Financier'!$F$22+'BP Financier'!$F$16+'BP Financier'!$F$19))*$V6426*AA6426/(1-$W6426)","v":{"v":202.71174045490923,"d":"203"}},{"$f":"'BP Financier'!$F$44*(('BP Financier'!$C$22+'BP Financier'!$D$22+'BP Financier'!$E$22+'BP Financier'!$F$22)/('BP Financier'!$C$16+'BP Financier'!$C$19+'BP Financier'!$D$16+'BP Financier'!$D$19+'BP Financier'!$E$16+'BP Financier'!$E$19+'BP Financier'!$C$22+'BP Financier'!$D$22+'BP Financier'!$E$22+'BP Financier'!$F$22+'BP Financier'!$F$16+'BP Financier'!$F$19))*$V6426*AB6426/(1-$W6426)","v":{"v":97.02442278183689,"d":"97"}},null,{"v":1.25E-3,"d":"0.13%"},{"$f":"Actif!$E$28/100","v":{"v":0.28900000000000003,"d":"28.90%"}},{"$f":"Actif!$E$30/100","v":{"v":0.09050000000000001,"d":"9.05%"}},{"$f":"Actif!$E$31/100","v":{"v":0.0605,"d":"6.05%"}},{"$f":"Actif!$E$32/100","v":{"v":0.47350000000000003,"d":"47.35%"}},{"$f":"Actif!$E$33/100","v":{"v":0.0585,"d":"5.85%"}},{"$f":"Actif!$E$29/100","v":{"v":0.027999999999999997,"d":"2.80%"}}]
[null,"#320",44,2030,"F","A_CAPI",{"v":0.44999999999999996,"d":"0.45"},{"v":0.38999999999999996,"d":"0.39"},0.6,0.6,85,0,{"$f":"ROUND(Primes!$P$10*V6427,2)","v":0.11},0,{"v":2463.7273070673587,"d":"2,464"},{"$f":"'BP Financier'!$F$44*(('BP Financier'!$C$22+'BP Financier'!$D$22+'BP Financier'!$E$22+'BP Financier'!$F$22)/('BP Financier'!$C$16+'BP Financier'!$C$19+'BP Financier'!$D$16+'BP Financier'!$D$19+'BP Financier'!$E$16+'BP Financier'!$E$19+'BP Financier'!$C$22+'BP Financier'!$D$22+'BP Financier'!$E$22+'BP Financier'!$F$22+'BP Financier'!$F$16+'BP Financier'!$F$19))*$V6427*X6427/(1-$W6427)","v":{"v":313.5967950627229,"d":"314"}},{"$f":"'BP Financier'!$F$44*(('BP Financier'!$C$22+'BP Financier'!$D$22+'BP Financier'!$E$22+'BP Financier'!$F$22)/('BP Financier'!$C$16+'BP Financier'!$C$19+'BP Financier'!$D$16+'BP Financier'!$D$19+'BP Financier'!$E$16+'BP Financier'!$E$19+'BP Financier'!$C$22+'BP Financier'!$D$22+'BP Financier'!$E$22+'BP Financier'!$F$22+'BP Financier'!$F$16+'BP Financier'!$F$19))*$V6427*Y6427/(1-$W6427)","v":{"v":209.64205636789757,"d":"210"}},{"$f":"'BP Financier'!$F$44*(('BP Financier'!$C$22+'BP Financier'!$D$22+'BP Financier'!$E$22+'BP Financier'!$F$22)/('BP Financier'!$C$16+'BP Financier'!$C$19+'BP Financier'!$D$16+'BP Financier'!$D$19+'BP Financier'!$E$16+'BP Financier'!$E$19+'BP Financier'!$C$22+'BP Financier'!$D$22+'BP Financier'!$E$22+'BP Financier'!$F$22+'BP Financier'!$F$16+'BP Financier'!$F$19))*$V6427*Z6427/(1-$W6427)","v":{"v":1640.7522923999918,"d":"1,641"}},{"$f":"'BP Financier'!$F$44*(('BP Financier'!$C$22+'BP Financier'!$D$22+'BP Financier'!$E$22+'BP Financier'!$F$22)/('BP Financier'!$C$16+'BP Financier'!$C$19+'BP Financier'!$D$16+'BP Financier'!$D$19+'BP Financier'!$E$16+'BP Financier'!$E$19+'BP Financier'!$C$22+'BP Financier'!$D$22+'BP Financier'!$E$22+'BP Financier'!$F$22+'BP Financier'!$F$16+'BP Financier'!$F$19))*$V6427*AA6427/(1-$W6427)","v":{"v":202.71174045490923,"d":"203"}},{"$f":"'BP Financier'!$F$44*(('BP Financier'!$C$22+'BP Financier'!$D$22+'BP Financier'!$E$22+'BP Financier'!$F$22)/('BP Financier'!$C$16+'BP Financier'!$C$19+'BP Financier'!$D$16+'BP Financier'!$D$19+'BP Financier'!$E$16+'BP Financier'!$E$19+'BP Financier'!$C$22+'BP Financier'!$D$22+'BP Financier'!$E$22+'BP Financier'!$F$22+'BP Financier'!$F$16+'BP Financier'!$F$19))*$V6427*AB6427/(1-$W6427)","v":{"v":97.02442278183689,"d":"97"}},null,{"v":1.25E-3,"d":"0.13%"},{"$f":"Actif!$E$28/100","v":{"v":0.28900000000000003,"d":"28.90%"}},{"$f":"Actif!$E$30/100","v":{"v":0.09050000000000001,"d":"9.05%"}},{"$f":"Actif!$E$31/100","v":{"v":0.0605,"d":"6.05%"}},{"$f":"Actif!$E$32/100","v":{"v":0.47350000000000003,"d":"47.35%"}},{"$f":"Actif!$E$33/100","v":{"v":0.0585,"d":"5.85%"}},{"$f":"Actif!$E$29/100","v":{"v":0.027999999999999997,"d":"2.80%"}}]
[null,"#321",45,2026,"H","A_CAPI",{"v":0.44999999999999996,"d":"0.45"},{"v":0.38999999999999996,"d":"0.39"},0.6,0.6,85,0,{"$f":"ROUND(Primes!$P$10*V6428,2)","v":0.11},0,{"v":2463.7273070673587,"d":"2,464"},{"$f":"'BP Financier'!$F$44*(('BP Financier'!$C$22+'BP Financier'!$D$22+'BP Financier'!$E$22+'BP Financier'!$F$22)/('BP Financier'!$C$16+'BP Financier'!$C$19+'BP Financier'!$D$16+'BP Financier'!$D$19+'BP Financier'!$E$16+'BP Financier'!$E$19+'BP Financier'!$C$22+'BP Financier'!$D$22+'BP Financier'!$E$22+'BP Financier'!$F$22+'BP Financier'!$F$16+'BP Financier'!$F$19))*$V6428*X6428/(1-$W6428)","v":{"v":313.5967950627229,"d":"314"}},{"$f":"'BP Financier'!$F$44*(('BP Financier'!$C$22+'BP Financier'!$D$22+'BP Financier'!$E$22+'BP Financier'!$F$22)/('BP Financier'!$C$16+'BP Financier'!$C$19+'BP Financier'!$D$16+'BP Financier'!$D$19+'BP Financier'!$E$16+'BP Financier'!$E$19+'BP Financier'!$C$22+'BP Financier'!$D$22+'BP Financier'!$E$22+'BP Financier'!$F$22+'BP Financier'!$F$16+'BP Financier'!$F$19))*$V6428*Y6428/(1-$W6428)","v":{"v":209.64205636789757,"d":"210"}},{"$f":"'BP Financier'!$F$44*(('BP Financier'!$C$22+'BP Financier'!$D$22+'BP Financier'!$E$22+'BP Financier'!$F$22)/('BP Financier'!$C$16+'BP Financier'!$C$19+'BP Financier'!$D$16+'BP Financier'!$D$19+'BP Financier'!$E$16+'BP Financier'!$E$19+'BP Financier'!$C$22+'BP Financier'!$D$22+'BP Financier'!$E$22+'BP Financier'!$F$22+'BP Financier'!$F$16+'BP Financier'!$F$19))*$V6428*Z6428/(1-$W6428)","v":{"v":1640.7522923999918,"d":"1,641"}},{"$f":"'BP Financier'!$F$44*(('BP Financier'!$C$22+'BP Financier'!$D$22+'BP Financier'!$E$22+'BP Financier'!$F$22)/('BP Financier'!$C$16+'BP Financier'!$C$19+'BP Financier'!$D$16+'BP Financier'!$D$19+'BP Financier'!$E$16+'BP Financier'!$E$19+'BP Financier'!$C$22+'BP Financier'!$D$22+'BP Financier'!$E$22+'BP Financier'!$F$22+'BP Financier'!$F$16+'BP Financier'!$F$19))*$V6428*AA6428/(1-$W6428)","v":{"v":202.71174045490923,"d":"203"}},{"$f":"'BP Financier'!$F$44*(('BP Financier'!$C$22+'BP Financier'!$D$22+'BP Financier'!$E$22+'BP Financier'!$F$22)/('BP Financier'!$C$16+'BP Financier'!$C$19+'BP Financier'!$D$16+'BP Financier'!$D$19+'BP Financier'!$E$16+'BP Financier'!$E$19+'BP Financier'!$C$22+'BP Financier'!$D$22+'BP Financier'!$E$22+'BP Financier'!$F$22+'BP Financier'!$F$16+'BP Financier'!$F$19))*$V6428*AB6428/(1-$W6428)","v":{"v":97.02442278183689,"d":"97"}},null,{"v":1.25E-3,"d":"0.13%"},{"$f":"Actif!$E$28/100","v":{"v":0.28900000000000003,"d":"28.90%"}},{"$f":"Actif!$E$30/100","v":{"v":0.09050000000000001,"d":"9.05%"}},{"$f":"Actif!$E$31/100","v":{"v":0.0605,"d":"6.05%"}},{"$f":"Actif!$E$32/100","v":{"v":0.47350000000000003,"d":"47.35%"}},{"$f":"Actif!$E$33/100","v":{"v":0.0585,"d":"5.85%"}},{"$f":"Actif!$E$29/100","v":{"v":0.027999999999999997,"d":"2.80%"}}]
[null,"#322",45,2028,"H","A_CAPI",{"v":0.44999999999999996,"d":"0.45"},{"v":0.38999999999999996,"d":"0.39"},0.6,0.6,85,0,{"$f":"ROUND(Primes!$P$10*V6429,2)","v":0.11},0,{"v":2463.7273070673587,"d":"2,464"},{"$f":"'BP Financier'!$F$44*(('BP Financier'!$C$22+'BP Financier'!$D$22+'BP Financier'!$E$22+'BP Financier'!$F$22)/('BP Financier'!$C$16+'BP Financier'!$C$19+'BP Financier'!$D$16+'BP Financier'!$D$19+'BP Financier'!$E$16+'BP Financier'!$E$19+'BP Financier'!$C$22+'BP Financier'!$D$22+'BP Financier'!$E$22+'BP Financier'!$F$22+'BP Financier'!$F$16+'BP Financier'!$F$19))*$V6429*X6429/(1-$W6429)","v":{"v":313.5967950627229,"d":"314"}},{"$f":"'BP Financier'!$F$44*(('BP Financier'!$C$22+'BP Financier'!$D$22+'BP Financier'!$E$22+'BP Financier'!$F$22)/('BP Financier'!$C$16+'BP Financier'!$C$19+'BP Financier'!$D$16+'BP Financier'!$D$19+'BP Financier'!$E$16+'BP Financier'!$E$19+'BP Financier'!$C$22+'BP Financier'!$D$22+'BP Financier'!$E$22+'BP Financier'!$F$22+'BP Financier'!$F$16+'BP Financier'!$F$19))*$V6429*Y6429/(1-$W6429)","v":{"v":209.64205636789757,"d":"210"}},{"$f":"'BP Financier'!$F$44*(('BP Financier'!$C$22+'BP Financier'!$D$22+'BP Financier'!$E$22+'BP Financier'!$F$22)/('BP Financier'!$C$16+'BP Financier'!$C$19+'BP Financier'!$D$16+'BP Financier'!$D$19+'BP Financier'!$E$16+'BP Financier'!$E$19+'BP Financier'!$C$22+'BP Financier'!$D$22+'BP Financier'!$E$22+'BP Financier'!$F$22+'BP Financier'!$F$16+'BP Financier'!$F$19))*$V6429*Z6429/(1-$W6429)","v":{"v":1640.7522923999918,"d":"1,641"}},{"$f":"'BP Financier'!$F$44*(('BP Financier'!$C$22+'BP Financier'!$D$22+'BP Financier'!$E$22+'BP Financier'!$F$22)/('BP Financier'!$C$16+'BP Financier'!$C$19+'BP Financier'!$D$16+'BP Financier'!$D$19+'BP Financier'!$E$16+'BP Financier'!$E$19+'BP Financier'!$C$22+'BP Financier'!$D$22+'BP Financier'!$E$22+'BP Financier'!$F$22+'BP Financier'!$F$16+'BP Financier'!$F$19))*$V6429*AA6429/(1-$W6429)","v":{"v":202.71174045490923,"d":"203"}},{"$f":"'BP Financier'!$F$44*(('BP Financier'!$C$22+'BP Financier'!$D$22+'BP Financier'!$E$22+'BP Financier'!$F$22)/('BP Financier'!$C$16+'BP Financier'!$C$19+'BP Financier'!$D$16+'BP Financier'!$D$19+'BP Financier'!$E$16+'BP Financier'!$E$19+'BP Financier'!$C$22+'BP Financier'!$D$22+'BP Financier'!$E$22+'BP Financier'!$F$22+'BP Financier'!$F$16+'BP Financier'!$F$19))*$V6429*AB6429/(1-$W6429)","v":{"v":97.02442278183689,"d":"97"}},null,{"v":1.25E-3,"d":"0.13%"},{"$f":"Actif!$E$28/100","v":{"v":0.28900000000000003,"d":"28.90%"}},{"$f":"Actif!$E$30/100","v":{"v":0.09050000000000001,"d":"9.05%"}},{"$f":"Actif!$E$31/100","v":{"v":0.0605,"d":"6.05%"}},{"$f":"Actif!$E$32/100","v":{"v":0.47350000000000003,"d":"47.35%"}},{"$f":"Actif!$E$33/100","v":{"v":0.0585,"d":"5.85%"}},{"$f":"Actif!$E$29/100","v":{"v":0.027999999999999997,"d":"2.80%"}}]
[null,"#323",45,2029,"H","A_CAPI",{"v":0.44999999999999996,"d":"0.45"},{"v":0.38999999999999996,"d":"0.39"},0.6,0.6,85,0,{"$f":"ROUND(Primes!$P$10*V6430,2)","v":0.11},0,{"v":2463.7273070673587,"d":"2,464"},{"$f":"'BP Financier'!$F$44*(('BP Financier'!$C$22+'BP Financier'!$D$22+'BP Financier'!$E$22+'BP Financier'!$F$22)/('BP Financier'!$C$16+'BP Financier'!$C$19+'BP Financier'!$D$16+'BP Financier'!$D$19+'BP Financier'!$E$16+'BP Financier'!$E$19+'BP Financier'!$C$22+'BP Financier'!$D$22+'BP Financier'!$E$22+'BP Financier'!$F$22+'BP Financier'!$F$16+'BP Financier'!$F$19))*$V6430*X6430/(1-$W6430)","v":{"v":313.5967950627229,"d":"314"}},{"$f":"'BP Financier'!$F$44*(('BP Financier'!$C$22+'BP Financier'!$D$22+'BP Financier'!$E$22+'BP Financier'!$F$22)/('BP Financier'!$C$16+'BP Financier'!$C$19+'BP Financier'!$D$16+'BP Financier'!$D$19+'BP Financier'!$E$16+'BP Financier'!$E$19+'BP Financier'!$C$22+'BP Financier'!$D$22+'BP Financier'!$E$22+'BP Financier'!$F$22+'BP Financier'!$F$16+'BP Financier'!$F$19))*$V6430*Y6430/(1-$W6430)","v":{"v":209.64205636789757,"d":"210"}},{"$f":"'BP Financier'!$F$44*(('BP Financier'!$C$22+'BP Financier'!$D$22+'BP Financier'!$E$22+'BP Financier'!$F$22)/('BP Financier'!$C$16+'BP Financier'!$C$19+'BP Financier'!$D$16+'BP Financier'!$D$19+'BP Financier'!$E$16+'BP Financier'!$E$19+'BP Financier'!$C$22+'BP Financier'!$D$22+'BP Financier'!$E$22+'BP Financier'!$F$22+'BP Financier'!$F$16+'BP Financier'!$F$19))*$V6430*Z6430/(1-$W6430)","v":{"v":1640.7522923999918,"d":"1,641"}},{"$f":"'BP Financier'!$F$44*(('BP Financier'!$C$22+'BP Financier'!$D$22+'BP Financier'!$E$22+'BP Financier'!$F$22)/('BP Financier'!$C$16+'BP Financier'!$C$19+'BP Financier'!$D$16+'BP Financier'!$D$19+'BP Financier'!$E$16+'BP Financier'!$E$19+'BP Financier'!$C$22+'BP Financier'!$D$22+'BP Financier'!$E$22+'BP Financier'!$F$22+'BP Financier'!$F$16+'BP Financier'!$F$19))*$V6430*AA6430/(1-$W6430)","v":{"v":202.71174045490923,"d":"203"}},{"$f":"'BP Financier'!$F$44*(('BP Financier'!$C$22+'BP Financier'!$D$22+'BP Financier'!$E$22+'BP Financier'!$F$22)/('BP Financier'!$C$16+'BP Financier'!$C$19+'BP Financier'!$D$16+'BP Financier'!$D$19+'BP Financier'!$E$16+'BP Financier'!$E$19+'BP Financier'!$C$22+'BP Financier'!$D$22+'BP Financier'!$E$22+'BP Financier'!$F$22+'BP Financier'!$F$16+'BP Financier'!$F$19))*$V6430*AB6430/(1-$W6430)","v":{"v":97.02442278183689,"d":"97"}},null,{"v":1.25E-3,"d":"0.13%"},{"$f":"Actif!$E$28/100","v":{"v":0.28900000000000003,"d":"28.90%"}},{"$f":"Actif!$E$30/100","v":{"v":0.09050000000000001,"d":"9.05%"}},{"$f":"Actif!$E$31/100","v":{"v":0.0605,"d":"6.05%"}},{"$f":"Actif!$E$32/100","v":{"v":0.47350000000000003,"d":"47.35%"}},{"$f":"Actif!$E$33/100","v":{"v":0.0585,"d":"5.85%"}},{"$f":"Actif!$E$29/100","v":{"v":0.027999999999999997,"d":"2.80%"}}]
[null,"#324",45,2030,"H","A_CAPI",{"v":0.44999999999999996,"d":"0.45"},{"v":0.38999999999999996,"d":"0.39"},0.6,0.6,85,0,{"$f":"ROUND(Primes!$P$10*V6431,2)","v":0.11},0,{"v":2463.7273070673587,"d":"2,464"},{"$f":"'BP Financier'!$F$44*(('BP Financier'!$C$22+'BP Financier'!$D$22+'BP Financier'!$E$22+'BP Financier'!$F$22)/('BP Financier'!$C$16+'BP Financier'!$C$19+'BP Financier'!$D$16+'BP Financier'!$D$19+'BP Financier'!$E$16+'BP Financier'!$E$19+'BP Financier'!$C$22+'BP Financier'!$D$22+'BP Financier'!$E$22+'BP Financier'!$F$22+'BP Financier'!$F$16+'BP Financier'!$F$19))*$V6431*X6431/(1-$W6431)","v":{"v":313.5967950627229,"d":"314"}},{"$f":"'BP Financier'!$F$44*(('BP Financier'!$C$22+'BP Financier'!$D$22+'BP Financier'!$E$22+'BP Financier'!$F$22)/('BP Financier'!$C$16+'BP Financier'!$C$19+'BP Financier'!$D$16+'BP Financier'!$D$19+'BP Financier'!$E$16+'BP Financier'!$E$19+'BP Financier'!$C$22+'BP Financier'!$D$22+'BP Financier'!$E$22+'BP Financier'!$F$22+'BP Financier'!$F$16+'BP Financier'!$F$19))*$V6431*Y6431/(1-$W6431)","v":{"v":209.64205636789757,"d":"210"}},{"$f":"'BP Financier'!$F$44*(('BP Financier'!$C$22+'BP Financier'!$D$22+'BP Financier'!$E$22+'BP Financier'!$F$22)/('BP Financier'!$C$16+'BP Financier'!$C$19+'BP Financier'!$D$16+'BP Financier'!$D$19+'BP Financier'!$E$16+'BP Financier'!$E$19+'BP Financier'!$C$22+'BP Financier'!$D$22+'BP Financier'!$E$22+'BP Financier'!$F$22+'BP Financier'!$F$16+'BP Financier'!$F$19))*$V6431*Z6431/(1-$W6431)","v":{"v":1640.7522923999918,"d":"1,641"}},{"$f":"'BP Financier'!$F$44*(('BP Financier'!$C$22+'BP Financier'!$D$22+'BP Financier'!$E$22+'BP Financier'!$F$22)/('BP Financier'!$C$16+'BP Financier'!$C$19+'BP Financier'!$D$16+'BP Financier'!$D$19+'BP Financier'!$E$16+'BP Financier'!$E$19+'BP Financier'!$C$22+'BP Financier'!$D$22+'BP Financier'!$E$22+'BP Financier'!$F$22+'BP Financier'!$F$16+'BP Financier'!$F$19))*$V6431*AA6431/(1-$W6431)","v":{"v":202.71174045490923,"d":"203"}},{"$f":"'BP Financier'!$F$44*(('BP Financier'!$C$22+'BP Financier'!$D$22+'BP Financier'!$E$22+'BP Financier'!$F$22)/('BP Financier'!$C$16+'BP Financier'!$C$19+'BP Financier'!$D$16+'BP Financier'!$D$19+'BP Financier'!$E$16+'BP Financier'!$E$19+'BP Financier'!$C$22+'BP Financier'!$D$22+'BP Financier'!$E$22+'BP Financier'!$F$22+'BP Financier'!$F$16+'BP Financier'!$F$19))*$V6431*AB6431/(1-$W6431)","v":{"v":97.02442278183689,"d":"97"}},null,{"v":1.25E-3,"d":"0.13%"},{"$f":"Actif!$E$28/100","v":{"v":0.28900000000000003,"d":"28.90%"}},{"$f":"Actif!$E$30/100","v":{"v":0.09050000000000001,"d":"9.05%"}},{"$f":"Actif!$E$31/100","v":{"v":0.0605,"d":"6.05%"}},{"$f":"Actif!$E$32/100","v":{"v":0.47350000000000003,"d":"47.35%"}},{"$f":"Actif!$E$33/100","v":{"v":0.0585,"d":"5.85%"}},{"$f":"Actif!$E$29/100","v":{"v":0.027999999999999997,"d":"2.80%"}}]
[null,"#325",46,2026,"H","A_CAPI",{"v":0.44999999999999996,"d":"0.45"},{"v":0.38999999999999996,"d":"0.39"},0.6,0.6,85,0,{"$f":"ROUND(Primes!$P$10*V6432,2)","v":0.11},0,{"v":2463.7273070673587,"d":"2,464"},{"$f":"'BP Financier'!$F$44*(('BP Financier'!$C$22+'BP Financier'!$D$22+'BP Financier'!$E$22+'BP Financier'!$F$22)/('BP Financier'!$C$16+'BP Financier'!$C$19+'BP Financier'!$D$16+'BP Financier'!$D$19+'BP Financier'!$E$16+'BP Financier'!$E$19+'BP Financier'!$C$22+'BP Financier'!$D$22+'BP Financier'!$E$22+'BP Financier'!$F$22+'BP Financier'!$F$16+'BP Financier'!$F$19))*$V6432*X6432/(1-$W6432)","v":{"v":313.5967950627229,"d":"314"}},{"$f":"'BP Financier'!$F$44*(('BP Financier'!$C$22+'BP Financier'!$D$22+'BP Financier'!$E$22+'BP Financier'!$F$22)/('BP Financier'!$C$16+'BP Financier'!$C$19+'BP Financier'!$D$16+'BP Financier'!$D$19+'BP Financier'!$E$16+'BP Financier'!$E$19+'BP Financier'!$C$22+'BP Financier'!$D$22+'BP Financier'!$E$22+'BP Financier'!$F$22+'BP Financier'!$F$16+'BP Financier'!$F$19))*$V6432*Y6432/(1-$W6432)","v":{"v":209.64205636789757,"d":"210"}},{"$f":"'BP Financier'!$F$44*(('BP Financier'!$C$22+'BP Financier'!$D$22+'BP Financier'!$E$22+'BP Financier'!$F$22)/('BP Financier'!$C$16+'BP Financier'!$C$19+'BP Financier'!$D$16+'BP Financier'!$D$19+'BP Financier'!$E$16+'BP Financier'!$E$19+'BP Financier'!$C$22+'BP Financier'!$D$22+'BP Financier'!$E$22+'BP Financier'!$F$22+'BP Financier'!$F$16+'BP Financier'!$F$19))*$V6432*Z6432/(1-$W6432)","v":{"v":1640.7522923999918,"d":"1,641"}},{"$f":"'BP Financier'!$F$44*(('BP Financier'!$C$22+'BP Financier'!$D$22+'BP Financier'!$E$22+'BP Financier'!$F$22)/('BP Financier'!$C$16+'BP Financier'!$C$19+'BP Financier'!$D$16+'BP Financier'!$D$19+'BP Financier'!$E$16+'BP Financier'!$E$19+'BP Financier'!$C$22+'BP Financier'!$D$22+'BP Financier'!$E$22+'BP Financier'!$F$22+'BP Financier'!$F$16+'BP Financier'!$F$19))*$V6432*AA6432/(1-$W6432)","v":{"v":202.71174045490923,"d":"203"}},{"$f":"'BP Financier'!$F$44*(('BP Financier'!$C$22+'BP Financier'!$D$22+'BP Financier'!$E$22+'BP Financier'!$F$22)/('BP Financier'!$C$16+'BP Financier'!$C$19+'BP Financier'!$D$16+'BP Financier'!$D$19+'BP Financier'!$E$16+'BP Financier'!$E$19+'BP Financier'!$C$22+'BP Financier'!$D$22+'BP Financier'!$E$22+'BP Financier'!$F$22+'BP Financier'!$F$16+'BP Financier'!$F$19))*$V6432*AB6432/(1-$W6432)","v":{"v":97.02442278183689,"d":"97"}},null,{"v":1.25E-3,"d":"0.13%"},{"$f":"Actif!$E$28/100","v":{"v":0.28900000000000003,"d":"28.90%"}},{"$f":"Actif!$E$30/100","v":{"v":0.09050000000000001,"d":"9.05%"}},{"$f":"Actif!$E$31/100","v":{"v":0.0605,"d":"6.05%"}},{"$f":"Actif!$E$32/100","v":{"v":0.47350000000000003,"d":"47.35%"}},{"$f":"Actif!$E$33/100","v":{"v":0.0585,"d":"5.85%"}},{"$f":"Actif!$E$29/100","v":{"v":0.027999999999999997,"d":"2.80%"}}]
[null,"#326",46,2028,"H","A_CAPI",{"v":0.44999999999999996,"d":"0.45"},{"v":0.38999999999999996,"d":"0.39"},0.6,0.6,85,0,{"$f":"ROUND(Primes!$P$10*V6433,2)","v":0.11},0,{"v":2463.7273070673587,"d":"2,464"},{"$f":"'BP Financier'!$F$44*(('BP Financier'!$C$22+'BP Financier'!$D$22+'BP Financier'!$E$22+'BP Financier'!$F$22)/('BP Financier'!$C$16+'BP Financier'!$C$19+'BP Financier'!$D$16+'BP Financier'!$D$19+'BP Financier'!$E$16+'BP Financier'!$E$19+'BP Financier'!$C$22+'BP Financier'!$D$22+'BP Financier'!$E$22+'BP Financier'!$F$22+'BP Financier'!$F$16+'BP Financier'!$F$19))*$V6433*X6433/(1-$W6433)","v":{"v":313.5967950627229,"d":"314"}},{"$f":"'BP Financier'!$F$44*(('BP Financier'!$C$22+'BP Financier'!$D$22+'BP Financier'!$E$22+'BP Financier'!$F$22)/('BP Financier'!$C$16+'BP Financier'!$C$19+'BP Financier'!$D$16+'BP Financier'!$D$19+'BP Financier'!$E$16+'BP Financier'!$E$19+'BP Financier'!$C$22+'BP Financier'!$D$22+'BP Financier'!$E$22+'BP Financier'!$F$22+'BP Financier'!$F$16+'BP Financier'!$F$19))*$V6433*Y6433/(1-$W6433)","v":{"v":209.64205636789757,"d":"210"}},{"$f":"'BP Financier'!$F$44*(('BP Financier'!$C$22+'BP Financier'!$D$22+'BP Financier'!$E$22+'BP Financier'!$F$22)/('BP Financier'!$C$16+'BP Financier'!$C$19+'BP Financier'!$D$16+'BP Financier'!$D$19+'BP Financier'!$E$16+'BP Financier'!$E$19+'BP Financier'!$C$22+'BP Financier'!$D$22+'BP Financier'!$E$22+'BP Financier'!$F$22+'BP Financier'!$F$16+'BP Financier'!$F$19))*$V6433*Z6433/(1-$W6433)","v":{"v":1640.7522923999918,"d":"1,641"}},{"$f":"'BP Financier'!$F$44*(('BP Financier'!$C$22+'BP Financier'!$D$22+'BP Financier'!$E$22+'BP Financier'!$F$22)/('BP Financier'!$C$16+'BP Financier'!$C$19+'BP Financier'!$D$16+'BP Financier'!$D$19+'BP Financier'!$E$16+'BP Financier'!$E$19+'BP Financier'!$C$22+'BP Financier'!$D$22+'BP Financier'!$E$22+'BP Financier'!$F$22+'BP Financier'!$F$16+'BP Financier'!$F$19))*$V6433*AA6433/(1-$W6433)","v":{"v":202.71174045490923,"d":"203"}},{"$f":"'BP Financier'!$F$44*(('BP Financier'!$C$22+'BP Financier'!$D$22+'BP Financier'!$E$22+'BP Financier'!$F$22)/('BP Financier'!$C$16+'BP Financier'!$C$19+'BP Financier'!$D$16+'BP Financier'!$D$19+'BP Financier'!$E$16+'BP Financier'!$E$19+'BP Financier'!$C$22+'BP Financier'!$D$22+'BP Financier'!$E$22+'BP Financier'!$F$22+'BP Financier'!$F$16+'BP Financier'!$F$19))*$V6433*AB6433/(1-$W6433)","v":{"v":97.02442278183689,"d":"97"}},null,{"v":1.25E-3,"d":"0.13%"},{"$f":"Actif!$E$28/100","v":{"v":0.28900000000000003,"d":"28.90%"}},{"$f":"Actif!$E$30/100","v":{"v":0.09050000000000001,"d":"9.05%"}},{"$f":"Actif!$E$31/100","v":{"v":0.0605,"d":"6.05%"}},{"$f":"Actif!$E$32/100","v":{"v":0.47350000000000003,"d":"47.35%"}},{"$f":"Actif!$E$33/100","v":{"v":0.0585,"d":"5.85%"}},{"$f":"Actif!$E$29/100","v":{"v":0.027999999999999997,"d":"2.80%"}}]
[null,"#327",46,2029,"H","A_CAPI",{"v":0.44999999999999996,"d":"0.45"},{"v":0.38999999999999996,"d":"0.39"},0.6,0.6,85,0,{"$f":"ROUND(Primes!$P$10*V6434,2)","v":0.11},0,{"v":2463.7273070673587,"d":"2,464"},{"$f":"'BP Financier'!$F$44*(('BP Financier'!$C$22+'BP Financier'!$D$22+'BP Financier'!$E$22+'BP Financier'!$F$22)/('BP Financier'!$C$16+'BP Financier'!$C$19+'BP Financier'!$D$16+'BP Financier'!$D$19+'BP Financier'!$E$16+'BP Financier'!$E$19+'BP Financier'!$C$22+'BP Financier'!$D$22+'BP Financier'!$E$22+'BP Financier'!$F$22+'BP Financier'!$F$16+'BP Financier'!$F$19))*$V6434*X6434/(1-$W6434)","v":{"v":313.5967950627229,"d":"314"}},{"$f":"'BP Financier'!$F$44*(('BP Financier'!$C$22+'BP Financier'!$D$22+'BP Financier'!$E$22+'BP Financier'!$F$22)/('BP Financier'!$C$16+'BP Financier'!$C$19+'BP Financier'!$D$16+'BP Financier'!$D$19+'BP Financier'!$E$16+'BP Financier'!$E$19+'BP Financier'!$C$22+'BP Financier'!$D$22+'BP Financier'!$E$22+'BP Financier'!$F$22+'BP Financier'!$F$16+'BP Financier'!$F$19))*$V6434*Y6434/(1-$W6434)","v":{"v":209.64205636789757,"d":"210"}},{"$f":"'BP Financier'!$F$44*(('BP Financier'!$C$22+'BP Financier'!$D$22+'BP Financier'!$E$22+'BP Financier'!$F$22)/('BP Financier'!$C$16+'BP Financier'!$C$19+'BP Financier'!$D$16+'BP Financier'!$D$19+'BP Financier'!$E$16+'BP Financier'!$E$19+'BP Financier'!$C$22+'BP Financier'!$D$22+'BP Financier'!$E$22+'BP Financier'!$F$22+'BP Financier'!$F$16+'BP Financier'!$F$19))*$V6434*Z6434/(1-$W6434)","v":{"v":1640.7522923999918,"d":"1,641"}},{"$f":"'BP Financier'!$F$44*(('BP Financier'!$C$22+'BP Financier'!$D$22+'BP Financier'!$E$22+'BP Financier'!$F$22)/('BP Financier'!$C$16+'BP Financier'!$C$19+'BP Financier'!$D$16+'BP Financier'!$D$19+'BP Financier'!$E$16+'BP Financier'!$E$19+'BP Financier'!$C$22+'BP Financier'!$D$22+'BP Financier'!$E$22+'BP Financier'!$F$22+'BP Financier'!$F$16+'BP Financier'!$F$19))*$V6434*AA6434/(1-$W6434)","v":{"v":202.71174045490923,"d":"203"}},{"$f":"'BP Financier'!$F$44*(('BP Financier'!$C$22+'BP Financier'!$D$22+'BP Financier'!$E$22+'BP Financier'!$F$22)/('BP Financier'!$C$16+'BP Financier'!$C$19+'BP Financier'!$D$16+'BP Financier'!$D$19+'BP Financier'!$E$16+'BP Financier'!$E$19+'BP Financier'!$C$22+'BP Financier'!$D$22+'BP Financier'!$E$22+'BP Financier'!$F$22+'BP Financier'!$F$16+'BP Financier'!$F$19))*$V6434*AB6434/(1-$W6434)","v":{"v":97.02442278183689,"d":"97"}},null,{"v":1.25E-3,"d":"0.13%"},{"$f":"Actif!$E$28/100","v":{"v":0.28900000000000003,"d":"28.90%"}},{"$f":"Actif!$E$30/100","v":{"v":0.09050000000000001,"d":"9.05%"}},{"$f":"Actif!$E$31/100","v":{"v":0.0605,"d":"6.05%"}},{"$f":"Actif!$E$32/100","v":{"v":0.47350000000000003,"d":"47.35%"}},{"$f":"Actif!$E$33/100","v":{"v":0.0585,"d":"5.85%"}},{"$f":"Actif!$E$29/100","v":{"v":0.027999999999999997,"d":"2.80%"}}]
[null,"#328",46,2030,"H","A_CAPI",{"v":0.44999999999999996,"d":"0.45"},{"v":0.38999999999999996,"d":"0.39"},0.6,0.6,85,0,{"$f":"ROUND(Primes!$P$10*V6435,2)","v":0.11},0,{"v":2463.7273070673587,"d":"2,464"},{"$f":"'BP Financier'!$F$44*(('BP Financier'!$C$22+'BP Financier'!$D$22+'BP Financier'!$E$22+'BP Financier'!$F$22)/('BP Financier'!$C$16+'BP Financier'!$C$19+'BP Financier'!$D$16+'BP Financier'!$D$19+'BP Financier'!$E$16+'BP Financier'!$E$19+'BP Financier'!$C$22+'BP Financier'!$D$22+'BP Financier'!$E$22+'BP Financier'!$F$22+'BP Financier'!$F$16+'BP Financier'!$F$19))*$V6435*X6435/(1-$W6435)","v":{"v":313.5967950627229,"d":"314"}},{"$f":"'BP Financier'!$F$44*(('BP Financier'!$C$22+'BP Financier'!$D$22+'BP Financier'!$E$22+'BP Financier'!$F$22)/('BP Financier'!$C$16+'BP Financier'!$C$19+'BP Financier'!$D$16+'BP Financier'!$D$19+'BP Financier'!$E$16+'BP Financier'!$E$19+'BP Financier'!$C$22+'BP Financier'!$D$22+'BP Financier'!$E$22+'BP Financier'!$F$22+'BP Financier'!$F$16+'BP Financier'!$F$19))*$V6435*Y6435/(1-$W6435)","v":{"v":209.64205636789757,"d":"210"}},{"$f":"'BP Financier'!$F$44*(('BP Financier'!$C$22+'BP Financier'!$D$22+'BP Financier'!$E$22+'BP Financier'!$F$22)/('BP Financier'!$C$16+'BP Financier'!$C$19+'BP Financier'!$D$16+'BP Financier'!$D$19+'BP Financier'!$E$16+'BP Financier'!$E$19+'BP Financier'!$C$22+'BP Financier'!$D$22+'BP Financier'!$E$22+'BP Financier'!$F$22+'BP Financier'!$F$16+'BP Financier'!$F$19))*$V6435*Z6435/(1-$W6435)","v":{"v":1640.7522923999918,"d":"1,641"}},{"$f":"'BP Financier'!$F$44*(('BP Financier'!$C$22+'BP Financier'!$D$22+'BP Financier'!$E$22+'BP Financier'!$F$22)/('BP Financier'!$C$16+'BP Financier'!$C$19+'BP Financier'!$D$16+'BP Financier'!$D$19+'BP Financier'!$E$16+'BP Financier'!$E$19+'BP Financier'!$C$22+'BP Financier'!$D$22+'BP Financier'!$E$22+'BP Financier'!$F$22+'BP Financier'!$F$16+'BP Financier'!$F$19))*$V6435*AA6435/(1-$W6435)","v":{"v":202.71174045490923,"d":"203"}},{"$f":"'BP Financier'!$F$44*(('BP Financier'!$C$22+'BP Financier'!$D$22+'BP Financier'!$E$22+'BP Financier'!$F$22)/('BP Financier'!$C$16+'BP Financier'!$C$19+'BP Financier'!$D$16+'BP Financier'!$D$19+'BP Financier'!$E$16+'BP Financier'!$E$19+'BP Financier'!$C$22+'BP Financier'!$D$22+'BP Financier'!$E$22+'BP Financier'!$F$22+'BP Financier'!$F$16+'BP Financier'!$F$19))*$V6435*AB6435/(1-$W6435)","v":{"v":97.02442278183689,"d":"97"}},null,{"v":1.25E-3,"d":"0.13%"},{"$f":"Actif!$E$28/100","v":{"v":0.28900000000000003,"d":"28.90%"}},{"$f":"Actif!$E$30/100","v":{"v":0.09050000000000001,"d":"9.05%"}},{"$f":"Actif!$E$31/100","v":{"v":0.0605,"d":"6.05%"}},{"$f":"Actif!$E$32/100","v":{"v":0.47350000000000003,"d":"47.35%"}},{"$f":"Actif!$E$33/100","v":{"v":0.0585,"d":"5.85%"}},{"$f":"Actif!$E$29/100","v":{"v":0.027999999999999997,"d":"2.80%"}}]
[null,"#329",47,2026,"F","A_CAPI",{"v":0.44999999999999996,"d":"0.45"},{"v":0.38999999999999996,"d":"0.39"},0.6,0.6,85,0,{"$f":"ROUND(Primes!$P$10*V6436,2)","v":0.11},0,{"v":2463.7273070673587,"d":"2,464"},{"$f":"'BP Financier'!$F$44*(('BP Financier'!$C$22+'BP Financier'!$D$22+'BP Financier'!$E$22+'BP Financier'!$F$22)/('BP Financier'!$C$16+'BP Financier'!$C$19+'BP Financier'!$D$16+'BP Financier'!$D$19+'BP Financier'!$E$16+'BP Financier'!$E$19+'BP Financier'!$C$22+'BP Financier'!$D$22+'BP Financier'!$E$22+'BP Financier'!$F$22+'BP Financier'!$F$16+'BP Financier'!$F$19))*$V6436*X6436/(1-$W6436)","v":{"v":313.5967950627229,"d":"314"}},{"$f":"'BP Financier'!$F$44*(('BP Financier'!$C$22+'BP Financier'!$D$22+'BP Financier'!$E$22+'BP Financier'!$F$22)/('BP Financier'!$C$16+'BP Financier'!$C$19+'BP Financier'!$D$16+'BP Financier'!$D$19+'BP Financier'!$E$16+'BP Financier'!$E$19+'BP Financier'!$C$22+'BP Financier'!$D$22+'BP Financier'!$E$22+'BP Financier'!$F$22+'BP Financier'!$F$16+'BP Financier'!$F$19))*$V6436*Y6436/(1-$W6436)","v":{"v":209.64205636789757,"d":"210"}},{"$f":"'BP Financier'!$F$44*(('BP Financier'!$C$22+'BP Financier'!$D$22+'BP Financier'!$E$22+'BP Financier'!$F$22)/('BP Financier'!$C$16+'BP Financier'!$C$19+'BP Financier'!$D$16+'BP Financier'!$D$19+'BP Financier'!$E$16+'BP Financier'!$E$19+'BP Financier'!$C$22+'BP Financier'!$D$22+'BP Financier'!$E$22+'BP Financier'!$F$22+'BP Financier'!$F$16+'BP Financier'!$F$19))*$V6436*Z6436/(1-$W6436)","v":{"v":1640.7522923999918,"d":"1,641"}},{"$f":"'BP Financier'!$F$44*(('BP Financier'!$C$22+'BP Financier'!$D$22+'BP Financier'!$E$22+'BP Financier'!$F$22)/('BP Financier'!$C$16+'BP Financier'!$C$19+'BP Financier'!$D$16+'BP Financier'!$D$19+'BP Financier'!$E$16+'BP Financier'!$E$19+'BP Financier'!$C$22+'BP Financier'!$D$22+'BP Financier'!$E$22+'BP Financier'!$F$22+'BP Financier'!$F$16+'BP Financier'!$F$19))*$V6436*AA6436/(1-$W6436)","v":{"v":202.71174045490923,"d":"203"}},{"$f":"'BP Financier'!$F$44*(('BP Financier'!$C$22+'BP Financier'!$D$22+'BP Financier'!$E$22+'BP Financier'!$F$22)/('BP Financier'!$C$16+'BP Financier'!$C$19+'BP Financier'!$D$16+'BP Financier'!$D$19+'BP Financier'!$E$16+'BP Financier'!$E$19+'BP Financier'!$C$22+'BP Financier'!$D$22+'BP Financier'!$E$22+'BP Financier'!$F$22+'BP Financier'!$F$16+'BP Financier'!$F$19))*$V6436*AB6436/(1-$W6436)","v":{"v":97.02442278183689,"d":"97"}},null,{"v":1.25E-3,"d":"0.13%"},{"$f":"Actif!$E$28/100","v":{"v":0.28900000000000003,"d":"28.90%"}},{"$f":"Actif!$E$30/100","v":{"v":0.09050000000000001,"d":"9.05%"}},{"$f":"Actif!$E$31/100","v":{"v":0.0605,"d":"6.05%"}},{"$f":"Actif!$E$32/100","v":{"v":0.47350000000000003,"d":"47.35%"}},{"$f":"Actif!$E$33/100","v":{"v":0.0585,"d":"5.85%"}},{"$f":"Actif!$E$29/100","v":{"v":0.027999999999999997,"d":"2.80%"}}]
[null,"#330",47,2028,"F","A_CAPI",{"v":0.44999999999999996,"d":"0.45"},{"v":0.38999999999999996,"d":"0.39"},0.6,0.6,85,0,{"$f":"ROUND(Primes!$P$10*V6437,2)","v":0.11},0,{"v":2463.7273070673587,"d":"2,464"},{"$f":"'BP Financier'!$F$44*(('BP Financier'!$C$22+'BP Financier'!$D$22+'BP Financier'!$E$22+'BP Financier'!$F$22)/('BP Financier'!$C$16+'BP Financier'!$C$19+'BP Financier'!$D$16+'BP Financier'!$D$19+'BP Financier'!$E$16+'BP Financier'!$E$19+'BP Financier'!$C$22+'BP Financier'!$D$22+'BP Financier'!$E$22+'BP Financier'!$F$22+'BP Financier'!$F$16+'BP Financier'!$F$19))*$V6437*X6437/(1-$W6437)","v":{"v":313.5967950627229,"d":"314"}},{"$f":"'BP Financier'!$F$44*(('BP Financier'!$C$22+'BP Financier'!$D$22+'BP Financier'!$E$22+'BP Financier'!$F$22)/('BP Financier'!$C$16+'BP Financier'!$C$19+'BP Financier'!$D$16+'BP Financier'!$D$19+'BP Financier'!$E$16+'BP Financier'!$E$19+'BP Financier'!$C$22+'BP Financier'!$D$22+'BP Financier'!$E$22+'BP Financier'!$F$22+'BP Financier'!$F$16+'BP Financier'!$F$19))*$V6437*Y6437/(1-$W6437)","v":{"v":209.64205636789757,"d":"210"}},{"$f":"'BP Financier'!$F$44*(('BP Financier'!$C$22+'BP Financier'!$D$22+'BP Financier'!$E$22+'BP Financier'!$F$22)/('BP Financier'!$C$16+'BP Financier'!$C$19+'BP Financier'!$D$16+'BP Financier'!$D$19+'BP Financier'!$E$16+'BP Financier'!$E$19+'BP Financier'!$C$22+'BP Financier'!$D$22+'BP Financier'!$E$22+'BP Financier'!$F$22+'BP Financier'!$F$16+'BP Financier'!$F$19))*$V6437*Z6437/(1-$W6437)","v":{"v":1640.7522923999918,"d":"1,641"}},{"$f":"'BP Financier'!$F$44*(('BP Financier'!$C$22+'BP Financier'!$D$22+'BP Financier'!$E$22+'BP Financier'!$F$22)/('BP Financier'!$C$16+'BP Financier'!$C$19+'BP Financier'!$D$16+'BP Financier'!$D$19+'BP Financier'!$E$16+'BP Financier'!$E$19+'BP Financier'!$C$22+'BP Financier'!$D$22+'BP Financier'!$E$22+'BP Financier'!$F$22+'BP Financier'!$F$16+'BP Financier'!$F$19))*$V6437*AA6437/(1-$W6437)","v":{"v":202.71174045490923,"d":"203"}},{"$f":"'BP Financier'!$F$44*(('BP Financier'!$C$22+'BP Financier'!$D$22+'BP Financier'!$E$22+'BP Financier'!$F$22)/('BP Financier'!$C$16+'BP Financier'!$C$19+'BP Financier'!$D$16+'BP Financier'!$D$19+'BP Financier'!$E$16+'BP Financier'!$E$19+'BP Financier'!$C$22+'BP Financier'!$D$22+'BP Financier'!$E$22+'BP Financier'!$F$22+'BP Financier'!$F$16+'BP Financier'!$F$19))*$V6437*AB6437/(1-$W6437)","v":{"v":97.02442278183689,"d":"97"}},null,{"v":1.25E-3,"d":"0.13%"},{"$f":"Actif!$E$28/100","v":{"v":0.28900000000000003,"d":"28.90%"}},{"$f":"Actif!$E$30/100","v":{"v":0.09050000000000001,"d":"9.05%"}},{"$f":"Actif!$E$31/100","v":{"v":0.0605,"d":"6.05%"}},{"$f":"Actif!$E$32/100","v":{"v":0.47350000000000003,"d":"47.35%"}},{"$f":"Actif!$E$33/100","v":{"v":0.0585,"d":"5.85%"}},{"$f":"Actif!$E$29/100","v":{"v":0.027999999999999997,"d":"2.80%"}}]
[null,"#331",47,2029,"F","A_CAPI",{"v":0.44999999999999996,"d":"0.45"},{"v":0.38999999999999996,"d":"0.39"},0.6,0.6,85,0,{"$f":"ROUND(Primes!$P$10*V6438,2)","v":0.11},0,{"v":2463.7273070673587,"d":"2,464"},{"$f":"'BP Financier'!$F$44*(('BP Financier'!$C$22+'BP Financier'!$D$22+'BP Financier'!$E$22+'BP Financier'!$F$22)/('BP Financier'!$C$16+'BP Financier'!$C$19+'BP Financier'!$D$16+'BP Financier'!$D$19+'BP Financier'!$E$16+'BP Financier'!$E$19+'BP Financier'!$C$22+'BP Financier'!$D$22+'BP Financier'!$E$22+'BP Financier'!$F$22+'BP Financier'!$F$16+'BP Financier'!$F$19))*$V6438*X6438/(1-$W6438)","v":{"v":313.5967950627229,"d":"314"}},{"$f":"'BP Financier'!$F$44*(('BP Financier'!$C$22+'BP Financier'!$D$22+'BP Financier'!$E$22+'BP Financier'!$F$22)/('BP Financier'!$C$16+'BP Financier'!$C$19+'BP Financier'!$D$16+'BP Financier'!$D$19+'BP Financier'!$E$16+'BP Financier'!$E$19+'BP Financier'!$C$22+'BP Financier'!$D$22+'BP Financier'!$E$22+'BP Financier'!$F$22+'BP Financier'!$F$16+'BP Financier'!$F$19))*$V6438*Y6438/(1-$W6438)","v":{"v":209.64205636789757,"d":"210"}},{"$f":"'BP Financier'!$F$44*(('BP Financier'!$C$22+'BP Financier'!$D$22+'BP Financier'!$E$22+'BP Financier'!$F$22)/('BP Financier'!$C$16+'BP Financier'!$C$19+'BP Financier'!$D$16+'BP Financier'!$D$19+'BP Financier'!$E$16+'BP Financier'!$E$19+'BP Financier'!$C$22+'BP Financier'!$D$22+'BP Financier'!$E$22+'BP Financier'!$F$22+'BP Financier'!$F$16+'BP Financier'!$F$19))*$V6438*Z6438/(1-$W6438)","v":{"v":1640.7522923999918,"d":"1,641"}},{"$f":"'BP Financier'!$F$44*(('BP Financier'!$C$22+'BP Financier'!$D$22+'BP Financier'!$E$22+'BP Financier'!$F$22)/('BP Financier'!$C$16+'BP Financier'!$C$19+'BP Financier'!$D$16+'BP Financier'!$D$19+'BP Financier'!$E$16+'BP Financier'!$E$19+'BP Financier'!$C$22+'BP Financier'!$D$22+'BP Financier'!$E$22+'BP Financier'!$F$22+'BP Financier'!$F$16+'BP Financier'!$F$19))*$V6438*AA6438/(1-$W6438)","v":{"v":202.71174045490923,"d":"203"}},{"$f":"'BP Financier'!$F$44*(('BP Financier'!$C$22+'BP Financier'!$D$22+'BP Financier'!$E$22+'BP Financier'!$F$22)/('BP Financier'!$C$16+'BP Financier'!$C$19+'BP Financier'!$D$16+'BP Financier'!$D$19+'BP Financier'!$E$16+'BP Financier'!$E$19+'BP Financier'!$C$22+'BP Financier'!$D$22+'BP Financier'!$E$22+'BP Financier'!$F$22+'BP Financier'!$F$16+'BP Financier'!$F$19))*$V6438*AB6438/(1-$W6438)","v":{"v":97.02442278183689,"d":"97"}},null,{"v":1.25E-3,"d":"0.13%"},{"$f":"Actif!$E$28/100","v":{"v":0.28900000000000003,"d":"28.90%"}},{"$f":"Actif!$E$30/100","v":{"v":0.09050000000000001,"d":"9.05%"}},{"$f":"Actif!$E$31/100","v":{"v":0.0605,"d":"6.05%"}},{"$f":"Actif!$E$32/100","v":{"v":0.47350000000000003,"d":"47.35%"}},{"$f":"Actif!$E$33/100","v":{"v":0.0585,"d":"5.85%"}},{"$f":"Actif!$E$29/100","v":{"v":0.027999999999999997,"d":"2.80%"}}]
[null,"#332",47,2030,"F","A_CAPI",{"v":0.44999999999999996,"d":"0.45"},{"v":0.38999999999999996,"d":"0.39"},0.6,0.6,85,0,{"$f":"ROUND(Primes!$P$10*V6439,2)","v":0.11},0,{"v":2463.7273070673587,"d":"2,464"},{"$f":"'BP Financier'!$F$44*(('BP Financier'!$C$22+'BP Financier'!$D$22+'BP Financier'!$E$22+'BP Financier'!$F$22)/('BP Financier'!$C$16+'BP Financier'!$C$19+'BP Financier'!$D$16+'BP Financier'!$D$19+'BP Financier'!$E$16+'BP Financier'!$E$19+'BP Financier'!$C$22+'BP Financier'!$D$22+'BP Financier'!$E$22+'BP Financier'!$F$22+'BP Financier'!$F$16+'BP Financier'!$F$19))*$V6439*X6439/(1-$W6439)","v":{"v":313.5967950627229,"d":"314"}},{"$f":"'BP Financier'!$F$44*(('BP Financier'!$C$22+'BP Financier'!$D$22+'BP Financier'!$E$22+'BP Financier'!$F$22)/('BP Financier'!$C$16+'BP Financier'!$C$19+'BP Financier'!$D$16+'BP Financier'!$D$19+'BP Financier'!$E$16+'BP Financier'!$E$19+'BP Financier'!$C$22+'BP Financier'!$D$22+'BP Financier'!$E$22+'BP Financier'!$F$22+'BP Financier'!$F$16+'BP Financier'!$F$19))*$V6439*Y6439/(1-$W6439)","v":{"v":209.64205636789757,"d":"210"}},{"$f":"'BP Financier'!$F$44*(('BP Financier'!$C$22+'BP Financier'!$D$22+'BP Financier'!$E$22+'BP Financier'!$F$22)/('BP Financier'!$C$16+'BP Financier'!$C$19+'BP Financier'!$D$16+'BP Financier'!$D$19+'BP Financier'!$E$16+'BP Financier'!$E$19+'BP Financier'!$C$22+'BP Financier'!$D$22+'BP Financier'!$E$22+'BP Financier'!$F$22+'BP Financier'!$F$16+'BP Financier'!$F$19))*$V6439*Z6439/(1-$W6439)","v":{"v":1640.7522923999918,"d":"1,641"}},{"$f":"'BP Financier'!$F$44*(('BP Financier'!$C$22+'BP Financier'!$D$22+'BP Financier'!$E$22+'BP Financier'!$F$22)/('BP Financier'!$C$16+'BP Financier'!$C$19+'BP Financier'!$D$16+'BP Financier'!$D$19+'BP Financier'!$E$16+'BP Financier'!$E$19+'BP Financier'!$C$22+'BP Financier'!$D$22+'BP Financier'!$E$22+'BP Financier'!$F$22+'BP Financier'!$F$16+'BP Financier'!$F$19))*$V6439*AA6439/(1-$W6439)","v":{"v":202.71174045490923,"d":"203"}},{"$f":"'BP Financier'!$F$44*(('BP Financier'!$C$22+'BP Financier'!$D$22+'BP Financier'!$E$22+'BP Financier'!$F$22)/('BP Financier'!$C$16+'BP Financier'!$C$19+'BP Financier'!$D$16+'BP Financier'!$D$19+'BP Financier'!$E$16+'BP Financier'!$E$19+'BP Financier'!$C$22+'BP Financier'!$D$22+'BP Financier'!$E$22+'BP Financier'!$F$22+'BP Financier'!$F$16+'BP Financier'!$F$19))*$V6439*AB6439/(1-$W6439)","v":{"v":97.02442278183689,"d":"97"}},null,{"v":1.25E-3,"d":"0.13%"},{"$f":"Actif!$E$28/100","v":{"v":0.28900000000000003,"d":"28.90%"}},{"$f":"Actif!$E$30/100","v":{"v":0.09050000000000001,"d":"9.05%"}},{"$f":"Actif!$E$31/100","v":{"v":0.0605,"d":"6.05%"}},{"$f":"Actif!$E$32/100","v":{"v":0.47350000000000003,"d":"47.35%"}},{"$f":"Actif!$E$33/100","v":{"v":0.0585,"d":"5.85%"}},{"$f":"Actif!$E$29/100","v":{"v":0.027999999999999997,"d":"2.80%"}}]
[null,"#333",48,2026,"H","A_CAPI",{"v":0.44999999999999996,"d":"0.45"},{"v":0.38999999999999996,"d":"0.39"},0.6,0.6,85,0,{"$f":"ROUND(Primes!$P$10*V6440,2)","v":0.11},0,{"v":2463.7273070673587,"d":"2,464"},{"$f":"'BP Financier'!$F$44*(('BP Financier'!$C$22+'BP Financier'!$D$22+'BP Financier'!$E$22+'BP Financier'!$F$22)/('BP Financier'!$C$16+'BP Financier'!$C$19+'BP Financier'!$D$16+'BP Financier'!$D$19+'BP Financier'!$E$16+'BP Financier'!$E$19+'BP Financier'!$C$22+'BP Financier'!$D$22+'BP Financier'!$E$22+'BP Financier'!$F$22+'BP Financier'!$F$16+'BP Financier'!$F$19))*$V6440*X6440/(1-$W6440)","v":{"v":313.5967950627229,"d":"314"}},{"$f":"'BP Financier'!$F$44*(('BP Financier'!$C$22+'BP Financier'!$D$22+'BP Financier'!$E$22+'BP Financier'!$F$22)/('BP Financier'!$C$16+'BP Financier'!$C$19+'BP Financier'!$D$16+'BP Financier'!$D$19+'BP Financier'!$E$16+'BP Financier'!$E$19+'BP Financier'!$C$22+'BP Financier'!$D$22+'BP Financier'!$E$22+'BP Financier'!$F$22+'BP Financier'!$F$16+'BP Financier'!$F$19))*$V6440*Y6440/(1-$W6440)","v":{"v":209.64205636789757,"d":"210"}},{"$f":"'BP Financier'!$F$44*(('BP Financier'!$C$22+'BP Financier'!$D$22+'BP Financier'!$E$22+'BP Financier'!$F$22)/('BP Financier'!$C$16+'BP Financier'!$C$19+'BP Financier'!$D$16+'BP Financier'!$D$19+'BP Financier'!$E$16+'BP Financier'!$E$19+'BP Financier'!$C$22+'BP Financier'!$D$22+'BP Financier'!$E$22+'BP Financier'!$F$22+'BP Financier'!$F$16+'BP Financier'!$F$19))*$V6440*Z6440/(1-$W6440)","v":{"v":1640.7522923999918,"d":"1,641"}},{"$f":"'BP Financier'!$F$44*(('BP Financier'!$C$22+'BP Financier'!$D$22+'BP Financier'!$E$22+'BP Financier'!$F$22)/('BP Financier'!$C$16+'BP Financier'!$C$19+'BP Financier'!$D$16+'BP Financier'!$D$19+'BP Financier'!$E$16+'BP Financier'!$E$19+'BP Financier'!$C$22+'BP Financier'!$D$22+'BP Financier'!$E$22+'BP Financier'!$F$22+'BP Financier'!$F$16+'BP Financier'!$F$19))*$V6440*AA6440/(1-$W6440)","v":{"v":202.71174045490923,"d":"203"}},{"$f":"'BP Financier'!$F$44*(('BP Financier'!$C$22+'BP Financier'!$D$22+'BP Financier'!$E$22+'BP Financier'!$F$22)/('BP Financier'!$C$16+'BP Financier'!$C$19+'BP Financier'!$D$16+'BP Financier'!$D$19+'BP Financier'!$E$16+'BP Financier'!$E$19+'BP Financier'!$C$22+'BP Financier'!$D$22+'BP Financier'!$E$22+'BP Financier'!$F$22+'BP Financier'!$F$16+'BP Financier'!$F$19))*$V6440*AB6440/(1-$W6440)","v":{"v":97.02442278183689,"d":"97"}},null,{"v":1.25E-3,"d":"0.13%"},{"$f":"Actif!$E$28/100","v":{"v":0.28900000000000003,"d":"28.90%"}},{"$f":"Actif!$E$30/100","v":{"v":0.09050000000000001,"d":"9.05%"}},{"$f":"Actif!$E$31/100","v":{"v":0.0605,"d":"6.05%"}},{"$f":"Actif!$E$32/100","v":{"v":0.47350000000000003,"d":"47.35%"}},{"$f":"Actif!$E$33/100","v":{"v":0.0585,"d":"5.85%"}},{"$f":"Actif!$E$29/100","v":{"v":0.027999999999999997,"d":"2.80%"}}]
[null,"#334",48,2028,"H","A_CAPI",{"v":0.44999999999999996,"d":"0.45"},{"v":0.38999999999999996,"d":"0.39"},0.6,0.6,85,0,{"$f":"ROUND(Primes!$P$10*V6441,2)","v":0.11},0,{"v":2463.7273070673587,"d":"2,464"},{"$f":"'BP Financier'!$F$44*(('BP Financier'!$C$22+'BP Financier'!$D$22+'BP Financier'!$E$22+'BP Financier'!$F$22)/('BP Financier'!$C$16+'BP Financier'!$C$19+'BP Financier'!$D$16+'BP Financier'!$D$19+'BP Financier'!$E$16+'BP Financier'!$E$19+'BP Financier'!$C$22+'BP Financier'!$D$22+'BP Financier'!$E$22+'BP Financier'!$F$22+'BP Financier'!$F$16+'BP Financier'!$F$19))*$V6441*X6441/(1-$W6441)","v":{"v":313.5967950627229,"d":"314"}},{"$f":"'BP Financier'!$F$44*(('BP Financier'!$C$22+'BP Financier'!$D$22+'BP Financier'!$E$22+'BP Financier'!$F$22)/('BP Financier'!$C$16+'BP Financier'!$C$19+'BP Financier'!$D$16+'BP Financier'!$D$19+'BP Financier'!$E$16+'BP Financier'!$E$19+'BP Financier'!$C$22+'BP Financier'!$D$22+'BP Financier'!$E$22+'BP Financier'!$F$22+'BP Financier'!$F$16+'BP Financier'!$F$19))*$V6441*Y6441/(1-$W6441)","v":{"v":209.64205636789757,"d":"210"}},{"$f":"'BP Financier'!$F$44*(('BP Financier'!$C$22+'BP Financier'!$D$22+'BP Financier'!$E$22+'BP Financier'!$F$22)/('BP Financier'!$C$16+'BP Financier'!$C$19+'BP Financier'!$D$16+'BP Financier'!$D$19+'BP Financier'!$E$16+'BP Financier'!$E$19+'BP Financier'!$C$22+'BP Financier'!$D$22+'BP Financier'!$E$22+'BP Financier'!$F$22+'BP Financier'!$F$16+'BP Financier'!$F$19))*$V6441*Z6441/(1-$W6441)","v":{"v":1640.7522923999918,"d":"1,641"}},{"$f":"'BP Financier'!$F$44*(('BP Financier'!$C$22+'BP Financier'!$D$22+'BP Financier'!$E$22+'BP Financier'!$F$22)/('BP Financier'!$C$16+'BP Financier'!$C$19+'BP Financier'!$D$16+'BP Financier'!$D$19+'BP Financier'!$E$16+'BP Financier'!$E$19+'BP Financier'!$C$22+'BP Financier'!$D$22+'BP Financier'!$E$22+'BP Financier'!$F$22+'BP Financier'!$F$16+'BP Financier'!$F$19))*$V6441*AA6441/(1-$W6441)","v":{"v":202.71174045490923,"d":"203"}},{"$f":"'BP Financier'!$F$44*(('BP Financier'!$C$22+'BP Financier'!$D$22+'BP Financier'!$E$22+'BP Financier'!$F$22)/('BP Financier'!$C$16+'BP Financier'!$C$19+'BP Financier'!$D$16+'BP Financier'!$D$19+'BP Financier'!$E$16+'BP Financier'!$E$19+'BP Financier'!$C$22+'BP Financier'!$D$22+'BP Financier'!$E$22+'BP Financier'!$F$22+'BP Financier'!$F$16+'BP Financier'!$F$19))*$V6441*AB6441/(1-$W6441)","v":{"v":97.02442278183689,"d":"97"}},null,{"v":1.25E-3,"d":"0.13%"},{"$f":"Actif!$E$28/100","v":{"v":0.28900000000000003,"d":"28.90%"}},{"$f":"Actif!$E$30/100","v":{"v":0.09050000000000001,"d":"9.05%"}},{"$f":"Actif!$E$31/100","v":{"v":0.0605,"d":"6.05%"}},{"$f":"Actif!$E$32/100","v":{"v":0.47350000000000003,"d":"47.35%"}},{"$f":"Actif!$E$33/100","v":{"v":0.0585,"d":"5.85%"}},{"$f":"Actif!$E$29/100","v":{"v":0.027999999999999997,"d":"2.80%"}}]
[null,"#335",48,2029,"H","A_CAPI",{"v":0.44999999999999996,"d":"0.45"},{"v":0.38999999999999996,"d":"0.39"},0.6,0.6,85,0,{"$f":"ROUND(Primes!$P$10*V6442,2)","v":0.11},0,{"v":2463.7273070673587,"d":"2,464"},{"$f":"'BP Financier'!$F$44*(('BP Financier'!$C$22+'BP Financier'!$D$22+'BP Financier'!$E$22+'BP Financier'!$F$22)/('BP Financier'!$C$16+'BP Financier'!$C$19+'BP Financier'!$D$16+'BP Financier'!$D$19+'BP Financier'!$E$16+'BP Financier'!$E$19+'BP Financier'!$C$22+'BP Financier'!$D$22+'BP Financier'!$E$22+'BP Financier'!$F$22+'BP Financier'!$F$16+'BP Financier'!$F$19))*$V6442*X6442/(1-$W6442)","v":{"v":313.5967950627229,"d":"314"}},{"$f":"'BP Financier'!$F$44*(('BP Financier'!$C$22+'BP Financier'!$D$22+'BP Financier'!$E$22+'BP Financier'!$F$22)/('BP Financier'!$C$16+'BP Financier'!$C$19+'BP Financier'!$D$16+'BP Financier'!$D$19+'BP Financier'!$E$16+'BP Financier'!$E$19+'BP Financier'!$C$22+'BP Financier'!$D$22+'BP Financier'!$E$22+'BP Financier'!$F$22+'BP Financier'!$F$16+'BP Financier'!$F$19))*$V6442*Y6442/(1-$W6442)","v":{"v":209.64205636789757,"d":"210"}},{"$f":"'BP Financier'!$F$44*(('BP Financier'!$C$22+'BP Financier'!$D$22+'BP Financier'!$E$22+'BP Financier'!$F$22)/('BP Financier'!$C$16+'BP Financier'!$C$19+'BP Financier'!$D$16+'BP Financier'!$D$19+'BP Financier'!$E$16+'BP Financier'!$E$19+'BP Financier'!$C$22+'BP Financier'!$D$22+'BP Financier'!$E$22+'BP Financier'!$F$22+'BP Financier'!$F$16+'BP Financier'!$F$19))*$V6442*Z6442/(1-$W6442)","v":{"v":1640.7522923999918,"d":"1,641"}},{"$f":"'BP Financier'!$F$44*(('BP Financier'!$C$22+'BP Financier'!$D$22+'BP Financier'!$E$22+'BP Financier'!$F$22)/('BP Financier'!$C$16+'BP Financier'!$C$19+'BP Financier'!$D$16+'BP Financier'!$D$19+'BP Financier'!$E$16+'BP Financier'!$E$19+'BP Financier'!$C$22+'BP Financier'!$D$22+'BP Financier'!$E$22+'BP Financier'!$F$22+'BP Financier'!$F$16+'BP Financier'!$F$19))*$V6442*AA6442/(1-$W6442)","v":{"v":202.71174045490923,"d":"203"}},{"$f":"'BP Financier'!$F$44*(('BP Financier'!$C$22+'BP Financier'!$D$22+'BP Financier'!$E$22+'BP Financier'!$F$22)/('BP Financier'!$C$16+'BP Financier'!$C$19+'BP Financier'!$D$16+'BP Financier'!$D$19+'BP Financier'!$E$16+'BP Financier'!$E$19+'BP Financier'!$C$22+'BP Financier'!$D$22+'BP Financier'!$E$22+'BP Financier'!$F$22+'BP Financier'!$F$16+'BP Financier'!$F$19))*$V6442*AB6442/(1-$W6442)","v":{"v":97.02442278183689,"d":"97"}},null,{"v":1.25E-3,"d":"0.13%"},{"$f":"Actif!$E$28/100","v":{"v":0.28900000000000003,"d":"28.90%"}},{"$f":"Actif!$E$30/100","v":{"v":0.09050000000000001,"d":"9.05%"}},{"$f":"Actif!$E$31/100","v":{"v":0.0605,"d":"6.05%"}},{"$f":"Actif!$E$32/100","v":{"v":0.47350000000000003,"d":"47.35%"}},{"$f":"Actif!$E$33/100","v":{"v":0.0585,"d":"5.85%"}},{"$f":"Actif!$E$29/100","v":{"v":0.027999999999999997,"d":"2.80%"}}]
[null,"#336",48,2030,"H","A_CAPI",{"v":0.44999999999999996,"d":"0.45"},{"v":0.38999999999999996,"d":"0.39"},0.6,0.6,85,0,{"$f":"ROUND(Primes!$P$10*V6443,2)","v":0.11},0,{"v":2463.7273070673587,"d":"2,464"},{"$f":"'BP Financier'!$F$44*(('BP Financier'!$C$22+'BP Financier'!$D$22+'BP Financier'!$E$22+'BP Financier'!$F$22)/('BP Financier'!$C$16+'BP Financier'!$C$19+'BP Financier'!$D$16+'BP Financier'!$D$19+'BP Financier'!$E$16+'BP Financier'!$E$19+'BP Financier'!$C$22+'BP Financier'!$D$22+'BP Financier'!$E$22+'BP Financier'!$F$22+'BP Financier'!$F$16+'BP Financier'!$F$19))*$V6443*X6443/(1-$W6443)","v":{"v":313.5967950627229,"d":"314"}},{"$f":"'BP Financier'!$F$44*(('BP Financier'!$C$22+'BP Financier'!$D$22+'BP Financier'!$E$22+'BP Financier'!$F$22)/('BP Financier'!$C$16+'BP Financier'!$C$19+'BP Financier'!$D$16+'BP Financier'!$D$19+'BP Financier'!$E$16+'BP Financier'!$E$19+'BP Financier'!$C$22+'BP Financier'!$D$22+'BP Financier'!$E$22+'BP Financier'!$F$22+'BP Financier'!$F$16+'BP Financier'!$F$19))*$V6443*Y6443/(1-$W6443)","v":{"v":209.64205636789757,"d":"210"}},{"$f":"'BP Financier'!$F$44*(('BP Financier'!$C$22+'BP Financier'!$D$22+'BP Financier'!$E$22+'BP Financier'!$F$22)/('BP Financier'!$C$16+'BP Financier'!$C$19+'BP Financier'!$D$16+'BP Financier'!$D$19+'BP Financier'!$E$16+'BP Financier'!$E$19+'BP Financier'!$C$22+'BP Financier'!$D$22+'BP Financier'!$E$22+'BP Financier'!$F$22+'BP Financier'!$F$16+'BP Financier'!$F$19))*$V6443*Z6443/(1-$W6443)","v":{"v":1640.7522923999918,"d":"1,641"}},{"$f":"'BP Financier'!$F$44*(('BP Financier'!$C$22+'BP Financier'!$D$22+'BP Financier'!$E$22+'BP Financier'!$F$22)/('BP Financier'!$C$16+'BP Financier'!$C$19+'BP Financier'!$D$16+'BP Financier'!$D$19+'BP Financier'!$E$16+'BP Financier'!$E$19+'BP Financier'!$C$22+'BP Financier'!$D$22+'BP Financier'!$E$22+'BP Financier'!$F$22+'BP Financier'!$F$16+'BP Financier'!$F$19))*$V6443*AA6443/(1-$W6443)","v":{"v":202.71174045490923,"d":"203"}},{"$f":"'BP Financier'!$F$44*(('BP Financier'!$C$22+'BP Financier'!$D$22+'BP Financier'!$E$22+'BP Financier'!$F$22)/('BP Financier'!$C$16+'BP Financier'!$C$19+'BP Financier'!$D$16+'BP Financier'!$D$19+'BP Financier'!$E$16+'BP Financier'!$E$19+'BP Financier'!$C$22+'BP Financier'!$D$22+'BP Financier'!$E$22+'BP Financier'!$F$22+'BP Financier'!$F$16+'BP Financier'!$F$19))*$V6443*AB6443/(1-$W6443)","v":{"v":97.02442278183689,"d":"97"}},null,{"v":1.25E-3,"d":"0.13%"},{"$f":"Actif!$E$28/100","v":{"v":0.28900000000000003,"d":"28.90%"}},{"$f":"Actif!$E$30/100","v":{"v":0.09050000000000001,"d":"9.05%"}},{"$f":"Actif!$E$31/100","v":{"v":0.0605,"d":"6.05%"}},{"$f":"Actif!$E$32/100","v":{"v":0.47350000000000003,"d":"47.35%"}},{"$f":"Actif!$E$33/100","v":{"v":0.0585,"d":"5.85%"}},{"$f":"Actif!$E$29/100","v":{"v":0.027999999999999997,"d":"2.80%"}}]
[null,"#337",49,2026,"H","A_CAPI",{"v":0.44999999999999996,"d":"0.45"},{"v":0.38999999999999996,"d":"0.39"},0.6,0.6,85,0,{"$f":"ROUND(Primes!$P$10*V6444,2)","v":0.11},0,{"v":2463.7273070673587,"d":"2,464"},{"$f":"'BP Financier'!$F$44*(('BP Financier'!$C$22+'BP Financier'!$D$22+'BP Financier'!$E$22+'BP Financier'!$F$22)/('BP Financier'!$C$16+'BP Financier'!$C$19+'BP Financier'!$D$16+'BP Financier'!$D$19+'BP Financier'!$E$16+'BP Financier'!$E$19+'BP Financier'!$C$22+'BP Financier'!$D$22+'BP Financier'!$E$22+'BP Financier'!$F$22+'BP Financier'!$F$16+'BP Financier'!$F$19))*$V6444*X6444/(1-$W6444)","v":{"v":313.5967950627229,"d":"314"}},{"$f":"'BP Financier'!$F$44*(('BP Financier'!$C$22+'BP Financier'!$D$22+'BP Financier'!$E$22+'BP Financier'!$F$22)/('BP Financier'!$C$16+'BP Financier'!$C$19+'BP Financier'!$D$16+'BP Financier'!$D$19+'BP Financier'!$E$16+'BP Financier'!$E$19+'BP Financier'!$C$22+'BP Financier'!$D$22+'BP Financier'!$E$22+'BP Financier'!$F$22+'BP Financier'!$F$16+'BP Financier'!$F$19))*$V6444*Y6444/(1-$W6444)","v":{"v":209.64205636789757,"d":"210"}},{"$f":"'BP Financier'!$F$44*(('BP Financier'!$C$22+'BP Financier'!$D$22+'BP Financier'!$E$22+'BP Financier'!$F$22)/('BP Financier'!$C$16+'BP Financier'!$C$19+'BP Financier'!$D$16+'BP Financier'!$D$19+'BP Financier'!$E$16+'BP Financier'!$E$19+'BP Financier'!$C$22+'BP Financier'!$D$22+'BP Financier'!$E$22+'BP Financier'!$F$22+'BP Financier'!$F$16+'BP Financier'!$F$19))*$V6444*Z6444/(1-$W6444)","v":{"v":1640.7522923999918,"d":"1,641"}},{"$f":"'BP Financier'!$F$44*(('BP Financier'!$C$22+'BP Financier'!$D$22+'BP Financier'!$E$22+'BP Financier'!$F$22)/('BP Financier'!$C$16+'BP Financier'!$C$19+'BP Financier'!$D$16+'BP Financier'!$D$19+'BP Financier'!$E$16+'BP Financier'!$E$19+'BP Financier'!$C$22+'BP Financier'!$D$22+'BP Financier'!$E$22+'BP Financier'!$F$22+'BP Financier'!$F$16+'BP Financier'!$F$19))*$V6444*AA6444/(1-$W6444)","v":{"v":202.71174045490923,"d":"203"}},{"$f":"'BP Financier'!$F$44*(('BP Financier'!$C$22+'BP Financier'!$D$22+'BP Financier'!$E$22+'BP Financier'!$F$22)/('BP Financier'!$C$16+'BP Financier'!$C$19+'BP Financier'!$D$16+'BP Financier'!$D$19+'BP Financier'!$E$16+'BP Financier'!$E$19+'BP Financier'!$C$22+'BP Financier'!$D$22+'BP Financier'!$E$22+'BP Financier'!$F$22+'BP Financier'!$F$16+'BP Financier'!$F$19))*$V6444*AB6444/(1-$W6444)","v":{"v":97.02442278183689,"d":"97"}},null,{"v":1.25E-3,"d":"0.13%"},{"$f":"Actif!$E$28/100","v":{"v":0.28900000000000003,"d":"28.90%"}},{"$f":"Actif!$E$30/100","v":{"v":0.09050000000000001,"d":"9.05%"}},{"$f":"Actif!$E$31/100","v":{"v":0.0605,"d":"6.05%"}},{"$f":"Actif!$E$32/100","v":{"v":0.47350000000000003,"d":"47.35%"}},{"$f":"Actif!$E$33/100","v":{"v":0.0585,"d":"5.85%"}},{"$f":"Actif!$E$29/100","v":{"v":0.027999999999999997,"d":"2.80%"}}]
[null,"#338",49,2028,"H","A_CAPI",{"v":0.44999999999999996,"d":"0.45"},{"v":0.38999999999999996,"d":"0.39"},0.6,0.6,85,0,{"$f":"ROUND(Primes!$P$10*V6445,2)","v":0.11},0,{"v":2463.7273070673587,"d":"2,464"},{"$f":"'BP Financier'!$F$44*(('BP Financier'!$C$22+'BP Financier'!$D$22+'BP Financier'!$E$22+'BP Financier'!$F$22)/('BP Financier'!$C$16+'BP Financier'!$C$19+'BP Financier'!$D$16+'BP Financier'!$D$19+'BP Financier'!$E$16+'BP Financier'!$E$19+'BP Financier'!$C$22+'BP Financier'!$D$22+'BP Financier'!$E$22+'BP Financier'!$F$22+'BP Financier'!$F$16+'BP Financier'!$F$19))*$V6445*X6445/(1-$W6445)","v":{"v":313.5967950627229,"d":"314"}},{"$f":"'BP Financier'!$F$44*(('BP Financier'!$C$22+'BP Financier'!$D$22+'BP Financier'!$E$22+'BP Financier'!$F$22)/('BP Financier'!$C$16+'BP Financier'!$C$19+'BP Financier'!$D$16+'BP Financier'!$D$19+'BP Financier'!$E$16+'BP Financier'!$E$19+'BP Financier'!$C$22+'BP Financier'!$D$22+'BP Financier'!$E$22+'BP Financier'!$F$22+'BP Financier'!$F$16+'BP Financier'!$F$19))*$V6445*Y6445/(1-$W6445)","v":{"v":209.64205636789757,"d":"210"}},{"$f":"'BP Financier'!$F$44*(('BP Financier'!$C$22+'BP Financier'!$D$22+'BP Financier'!$E$22+'BP Financier'!$F$22)/('BP Financier'!$C$16+'BP Financier'!$C$19+'BP Financier'!$D$16+'BP Financier'!$D$19+'BP Financier'!$E$16+'BP Financier'!$E$19+'BP Financier'!$C$22+'BP Financier'!$D$22+'BP Financier'!$E$22+'BP Financier'!$F$22+'BP Financier'!$F$16+'BP Financier'!$F$19))*$V6445*Z6445/(1-$W6445)","v":{"v":1640.7522923999918,"d":"1,641"}},{"$f":"'BP Financier'!$F$44*(('BP Financier'!$C$22+'BP Financier'!$D$22+'BP Financier'!$E$22+'BP Financier'!$F$22)/('BP Financier'!$C$16+'BP Financier'!$C$19+'BP Financier'!$D$16+'BP Financier'!$D$19+'BP Financier'!$E$16+'BP Financier'!$E$19+'BP Financier'!$C$22+'BP Financier'!$D$22+'BP Financier'!$E$22+'BP Financier'!$F$22+'BP Financier'!$F$16+'BP Financier'!$F$19))*$V6445*AA6445/(1-$W6445)","v":{"v":202.71174045490923,"d":"203"}},{"$f":"'BP Financier'!$F$44*(('BP Financier'!$C$22+'BP Financier'!$D$22+'BP Financier'!$E$22+'BP Financier'!$F$22)/('BP Financier'!$C$16+'BP Financier'!$C$19+'BP Financier'!$D$16+'BP Financier'!$D$19+'BP Financier'!$E$16+'BP Financier'!$E$19+'BP Financier'!$C$22+'BP Financier'!$D$22+'BP Financier'!$E$22+'BP Financier'!$F$22+'BP Financier'!$F$16+'BP Financier'!$F$19))*$V6445*AB6445/(1-$W6445)","v":{"v":97.02442278183689,"d":"97"}},null,{"v":1.25E-3,"d":"0.13%"},{"$f":"Actif!$E$28/100","v":{"v":0.28900000000000003,"d":"28.90%"}},{"$f":"Actif!$E$30/100","v":{"v":0.09050000000000001,"d":"9.05%"}},{"$f":"Actif!$E$31/100","v":{"v":0.0605,"d":"6.05%"}},{"$f":"Actif!$E$32/100","v":{"v":0.47350000000000003,"d":"47.35%"}},{"$f":"Actif!$E$33/100","v":{"v":0.0585,"d":"5.85%"}},{"$f":"Actif!$E$29/100","v":{"v":0.027999999999999997,"d":"2.80%"}}]
[null,"#339",49,2029,"H","A_CAPI",{"v":0.44999999999999996,"d":"0.45"},{"v":0.38999999999999996,"d":"0.39"},0.6,0.6,85,0,{"$f":"ROUND(Primes!$P$10*V6446,2)","v":0.11},0,{"v":2463.7273070673587,"d":"2,464"},{"$f":"'BP Financier'!$F$44*(('BP Financier'!$C$22+'BP Financier'!$D$22+'BP Financier'!$E$22+'BP Financier'!$F$22)/('BP Financier'!$C$16+'BP Financier'!$C$19+'BP Financier'!$D$16+'BP Financier'!$D$19+'BP Financier'!$E$16+'BP Financier'!$E$19+'BP Financier'!$C$22+'BP Financier'!$D$22+'BP Financier'!$E$22+'BP Financier'!$F$22+'BP Financier'!$F$16+'BP Financier'!$F$19))*$V6446*X6446/(1-$W6446)","v":{"v":313.5967950627229,"d":"314"}},{"$f":"'BP Financier'!$F$44*(('BP Financier'!$C$22+'BP Financier'!$D$22+'BP Financier'!$E$22+'BP Financier'!$F$22)/('BP Financier'!$C$16+'BP Financier'!$C$19+'BP Financier'!$D$16+'BP Financier'!$D$19+'BP Financier'!$E$16+'BP Financier'!$E$19+'BP Financier'!$C$22+'BP Financier'!$D$22+'BP Financier'!$E$22+'BP Financier'!$F$22+'BP Financier'!$F$16+'BP Financier'!$F$19))*$V6446*Y6446/(1-$W6446)","v":{"v":209.64205636789757,"d":"210"}},{"$f":"'BP Financier'!$F$44*(('BP Financier'!$C$22+'BP Financier'!$D$22+'BP Financier'!$E$22+'BP Financier'!$F$22)/('BP Financier'!$C$16+'BP Financier'!$C$19+'BP Financier'!$D$16+'BP Financier'!$D$19+'BP Financier'!$E$16+'BP Financier'!$E$19+'BP Financier'!$C$22+'BP Financier'!$D$22+'BP Financier'!$E$22+'BP Financier'!$F$22+'BP Financier'!$F$16+'BP Financier'!$F$19))*$V6446*Z6446/(1-$W6446)","v":{"v":1640.7522923999918,"d":"1,641"}},{"$f":"'BP Financier'!$F$44*(('BP Financier'!$C$22+'BP Financier'!$D$22+'BP Financier'!$E$22+'BP Financier'!$F$22)/('BP Financier'!$C$16+'BP Financier'!$C$19+'BP Financier'!$D$16+'BP Financier'!$D$19+'BP Financier'!$E$16+'BP Financier'!$E$19+'BP Financier'!$C$22+'BP Financier'!$D$22+'BP Financier'!$E$22+'BP Financier'!$F$22+'BP Financier'!$F$16+'BP Financier'!$F$19))*$V6446*AA6446/(1-$W6446)","v":{"v":202.71174045490923,"d":"203"}},{"$f":"'BP Financier'!$F$44*(('BP Financier'!$C$22+'BP Financier'!$D$22+'BP Financier'!$E$22+'BP Financier'!$F$22)/('BP Financier'!$C$16+'BP Financier'!$C$19+'BP Financier'!$D$16+'BP Financier'!$D$19+'BP Financier'!$E$16+'BP Financier'!$E$19+'BP Financier'!$C$22+'BP Financier'!$D$22+'BP Financier'!$E$22+'BP Financier'!$F$22+'BP Financier'!$F$16+'BP Financier'!$F$19))*$V6446*AB6446/(1-$W6446)","v":{"v":97.02442278183689,"d":"97"}},null,{"v":1.25E-3,"d":"0.13%"},{"$f":"Actif!$E$28/100","v":{"v":0.28900000000000003,"d":"28.90%"}},{"$f":"Actif!$E$30/100","v":{"v":0.09050000000000001,"d":"9.05%"}},{"$f":"Actif!$E$31/100","v":{"v":0.0605,"d":"6.05%"}},{"$f":"Actif!$E$32/100","v":{"v":0.47350000000000003,"d":"47.35%"}},{"$f":"Actif!$E$33/100","v":{"v":0.0585,"d":"5.85%"}},{"$f":"Actif!$E$29/100","v":{"v":0.027999999999999997,"d":"2.80%"}}]
[null,"#340",49,2030,"H","A_CAPI",{"v":0.44999999999999996,"d":"0.45"},{"v":0.38999999999999996,"d":"0.39"},0.6,0.6,85,0,{"$f":"ROUND(Primes!$P$10*V6447,2)","v":0.11},0,{"v":2463.7273070673587,"d":"2,464"},{"$f":"'BP Financier'!$F$44*(('BP Financier'!$C$22+'BP Financier'!$D$22+'BP Financier'!$E$22+'BP Financier'!$F$22)/('BP Financier'!$C$16+'BP Financier'!$C$19+'BP Financier'!$D$16+'BP Financier'!$D$19+'BP Financier'!$E$16+'BP Financier'!$E$19+'BP Financier'!$C$22+'BP Financier'!$D$22+'BP Financier'!$E$22+'BP Financier'!$F$22+'BP Financier'!$F$16+'BP Financier'!$F$19))*$V6447*X6447/(1-$W6447)","v":{"v":313.5967950627229,"d":"314"}},{"$f":"'BP Financier'!$F$44*(('BP Financier'!$C$22+'BP Financier'!$D$22+'BP Financier'!$E$22+'BP Financier'!$F$22)/('BP Financier'!$C$16+'BP Financier'!$C$19+'BP Financier'!$D$16+'BP Financier'!$D$19+'BP Financier'!$E$16+'BP Financier'!$E$19+'BP Financier'!$C$22+'BP Financier'!$D$22+'BP Financier'!$E$22+'BP Financier'!$F$22+'BP Financier'!$F$16+'BP Financier'!$F$19))*$V6447*Y6447/(1-$W6447)","v":{"v":209.64205636789757,"d":"210"}},{"$f":"'BP Financier'!$F$44*(('BP Financier'!$C$22+'BP Financier'!$D$22+'BP Financier'!$E$22+'BP Financier'!$F$22)/('BP Financier'!$C$16+'BP Financier'!$C$19+'BP Financier'!$D$16+'BP Financier'!$D$19+'BP Financier'!$E$16+'BP Financier'!$E$19+'BP Financier'!$C$22+'BP Financier'!$D$22+'BP Financier'!$E$22+'BP Financier'!$F$22+'BP Financier'!$F$16+'BP Financier'!$F$19))*$V6447*Z6447/(1-$W6447)","v":{"v":1640.7522923999918,"d":"1,641"}},{"$f":"'BP Financier'!$F$44*(('BP Financier'!$C$22+'BP Financier'!$D$22+'BP Financier'!$E$22+'BP Financier'!$F$22)/('BP Financier'!$C$16+'BP Financier'!$C$19+'BP Financier'!$D$16+'BP Financier'!$D$19+'BP Financier'!$E$16+'BP Financier'!$E$19+'BP Financier'!$C$22+'BP Financier'!$D$22+'BP Financier'!$E$22+'BP Financier'!$F$22+'BP Financier'!$F$16+'BP Financier'!$F$19))*$V6447*AA6447/(1-$W6447)","v":{"v":202.71174045490923,"d":"203"}},{"$f":"'BP Financier'!$F$44*(('BP Financier'!$C$22+'BP Financier'!$D$22+'BP Financier'!$E$22+'BP Financier'!$F$22)/('BP Financier'!$C$16+'BP Financier'!$C$19+'BP Financier'!$D$16+'BP Financier'!$D$19+'BP Financier'!$E$16+'BP Financier'!$E$19+'BP Financier'!$C$22+'BP Financier'!$D$22+'BP Financier'!$E$22+'BP Financier'!$F$22+'BP Financier'!$F$16+'BP Financier'!$F$19))*$V6447*AB6447/(1-$W6447)","v":{"v":97.02442278183689,"d":"97"}},null,{"v":1.25E-3,"d":"0.13%"},{"$f":"Actif!$E$28/100","v":{"v":0.28900000000000003,"d":"28.90%"}},{"$f":"Actif!$E$30/100","v":{"v":0.09050000000000001,"d":"9.05%"}},{"$f":"Actif!$E$31/100","v":{"v":0.0605,"d":"6.05%"}},{"$f":"Actif!$E$32/100","v":{"v":0.47350000000000003,"d":"47.35%"}},{"$f":"Actif!$E$33/100","v":{"v":0.0585,"d":"5.85%"}},{"$f":"Actif!$E$29/100","v":{"v":0.027999999999999997,"d":"2.80%"}}]
[null,"#341",50,2026,"F","A_CAPI",{"v":0.44999999999999996,"d":"0.45"},{"v":0.38999999999999996,"d":"0.39"},0.6,0.6,85,0,{"$f":"ROUND(Primes!$P$10*V6448,2)","v":0.68},0,{"v":14782.363842404151,"d":"14,782"},{"$f":"'BP Financier'!$F$44*(('BP Financier'!$C$22+'BP Financier'!$D$22+'BP Financier'!$E$22+'BP Financier'!$F$22)/('BP Financier'!$C$16+'BP Financier'!$C$19+'BP Financier'!$D$16+'BP Financier'!$D$19+'BP Financier'!$E$16+'BP Financier'!$E$19+'BP Financier'!$C$22+'BP Financier'!$D$22+'BP Financier'!$E$22+'BP Financier'!$F$22+'BP Financier'!$F$16+'BP Financier'!$F$19))*$V6448*X6448/(1-$W6448)","v":{"v":1881.5807703763371,"d":"1,882"}},{"$f":"'BP Financier'!$F$44*(('BP Financier'!$C$22+'BP Financier'!$D$22+'BP Financier'!$E$22+'BP Financier'!$F$22)/('BP Financier'!$C$16+'BP Financier'!$C$19+'BP Financier'!$D$16+'BP Financier'!$D$19+'BP Financier'!$E$16+'BP Financier'!$E$19+'BP Financier'!$C$22+'BP Financier'!$D$22+'BP Financier'!$E$22+'BP Financier'!$F$22+'BP Financier'!$F$16+'BP Financier'!$F$19))*$V6448*Y6448/(1-$W6448)","v":{"v":1257.8523382073854,"d":"1,258"}},{"$f":"'BP Financier'!$F$44*(('BP Financier'!$C$22+'BP Financier'!$D$22+'BP Financier'!$E$22+'BP Financier'!$F$22)/('BP Financier'!$C$16+'BP Financier'!$C$19+'BP Financier'!$D$16+'BP Financier'!$D$19+'BP Financier'!$E$16+'BP Financier'!$E$19+'BP Financier'!$C$22+'BP Financier'!$D$22+'BP Financier'!$E$22+'BP Financier'!$F$22+'BP Financier'!$F$16+'BP Financier'!$F$19))*$V6448*Z6448/(1-$W6448)","v":{"v":9844.513754399952,"d":"9,845"}},{"$f":"'BP Financier'!$F$44*(('BP Financier'!$C$22+'BP Financier'!$D$22+'BP Financier'!$E$22+'BP Financier'!$F$22)/('BP Financier'!$C$16+'BP Financier'!$C$19+'BP Financier'!$D$16+'BP Financier'!$D$19+'BP Financier'!$E$16+'BP Financier'!$E$19+'BP Financier'!$C$22+'BP Financier'!$D$22+'BP Financier'!$E$22+'BP Financier'!$F$22+'BP Financier'!$F$16+'BP Financier'!$F$19))*$V6448*AA6448/(1-$W6448)","v":{"v":1216.2704427294555,"d":"1,216"}},{"$f":"'BP Financier'!$F$44*(('BP Financier'!$C$22+'BP Financier'!$D$22+'BP Financier'!$E$22+'BP Financier'!$F$22)/('BP Financier'!$C$16+'BP Financier'!$C$19+'BP Financier'!$D$16+'BP Financier'!$D$19+'BP Financier'!$E$16+'BP Financier'!$E$19+'BP Financier'!$C$22+'BP Financier'!$D$22+'BP Financier'!$E$22+'BP Financier'!$F$22+'BP Financier'!$F$16+'BP Financier'!$F$19))*$V6448*AB6448/(1-$W6448)","v":{"v":582.1465366910213,"d":"582"}},null,{"v":0.0075,"d":"0.75%"},{"$f":"Actif!$E$28/100","v":{"v":0.28900000000000003,"d":"28.90%"}},{"$f":"Actif!$E$30/100","v":{"v":0.09050000000000001,"d":"9.05%"}},{"$f":"Actif!$E$31/100","v":{"v":0.0605,"d":"6.05%"}},{"$f":"Actif!$E$32/100","v":{"v":0.47350000000000003,"d":"47.35%"}},{"$f":"Actif!$E$33/100","v":{"v":0.0585,"d":"5.85%"}},{"$f":"Actif!$E$29/100","v":{"v":0.027999999999999997,"d":"2.80%"}}]
[null,"#342",50,2028,"F","A_CAPI",{"$f":"frais_gestion_Euro*100","v":{"v":0.44999999999999996,"d":"0.45"}},{"$f":"frais_gestion_UC*100","v":{"v":0.38999999999999996,"d":"0.39"}},{"$f":"frais_distribution_FG*100","v":0.6},{"$f":"frais_distribution_UC*100","v":0.6},85,0,{"$f":"ROUND(Primes!$P$10*V6449,2)","v":0.68},0,{"v":14782.363842404151,"d":"14,782"},{"$f":"'BP Financier'!$F$44*(('BP Financier'!$C$22+'BP Financier'!$D$22+'BP Financier'!$E$22+'BP Financier'!$F$22)/('BP Financier'!$C$16+'BP Financier'!$C$19+'BP Financier'!$D$16+'BP Financier'!$D$19+'BP Financier'!$E$16+'BP Financier'!$E$19+'BP Financier'!$C$22+'BP Financier'!$D$22+'BP Financier'!$E$22+'BP Financier'!$F$22+'BP Financier'!$F$16+'BP Financier'!$F$19))*$V6449*X6449/(1-$W6449)","v":{"v":1881.5807703763371,"d":"1,882"}},{"$f":"'BP Financier'!$F$44*(('BP Financier'!$C$22+'BP Financier'!$D$22+'BP Financier'!$E$22+'BP Financier'!$F$22)/('BP Financier'!$C$16+'BP Financier'!$C$19+'BP Financier'!$D$16+'BP Financier'!$D$19+'BP Financier'!$E$16+'BP Financier'!$E$19+'BP Financier'!$C$22+'BP Financier'!$D$22+'BP Financier'!$E$22+'BP Financier'!$F$22+'BP Financier'!$F$16+'BP Financier'!$F$19))*$V6449*Y6449/(1-$W6449)","v":{"v":1257.8523382073854,"d":"1,258"}},{"$f":"'BP Financier'!$F$44*(('BP Financier'!$C$22+'BP Financier'!$D$22+'BP Financier'!$E$22+'BP Financier'!$F$22)/('BP Financier'!$C$16+'BP Financier'!$C$19+'BP Financier'!$D$16+'BP Financier'!$D$19+'BP Financier'!$E$16+'BP Financier'!$E$19+'BP Financier'!$C$22+'BP Financier'!$D$22+'BP Financier'!$E$22+'BP Financier'!$F$22+'BP Financier'!$F$16+'BP Financier'!$F$19))*$V6449*Z6449/(1-$W6449)","v":{"v":9844.513754399952,"d":"9,845"}},{"$f":"'BP Financier'!$F$44*(('BP Financier'!$C$22+'BP Financier'!$D$22+'BP Financier'!$E$22+'BP Financier'!$F$22)/('BP Financier'!$C$16+'BP Financier'!$C$19+'BP Financier'!$D$16+'BP Financier'!$D$19+'BP Financier'!$E$16+'BP Financier'!$E$19+'BP Financier'!$C$22+'BP Financier'!$D$22+'BP Financier'!$E$22+'BP Financier'!$F$22+'BP Financier'!$F$16+'BP Financier'!$F$19))*$V6449*AA6449/(1-$W6449)","v":{"v":1216.2704427294555,"d":"1,216"}},{"$f":"'BP Financier'!$F$44*(('BP Financier'!$C$22+'BP Financier'!$D$22+'BP Financier'!$E$22+'BP Financier'!$F$22)/('BP Financier'!$C$16+'BP Financier'!$C$19+'BP Financier'!$D$16+'BP Financier'!$D$19+'BP Financier'!$E$16+'BP Financier'!$E$19+'BP Financier'!$C$22+'BP Financier'!$D$22+'BP Financier'!$E$22+'BP Financier'!$F$22+'BP Financier'!$F$16+'BP Financier'!$F$19))*$V6449*AB6449/(1-$W6449)","v":{"v":582.1465366910213,"d":"582"}},null,{"v":0.0075,"d":"0.75%"},{"$f":"Actif!$E$28/100","v":{"v":0.28900000000000003,"d":"28.90%"}},{"$f":"Actif!$E$30/100","v":{"v":0.09050000000000001,"d":"9.05%"}},{"$f":"Actif!$E$31/100","v":{"v":0.0605,"d":"6.05%"}},{"$f":"Actif!$E$32/100","v":{"v":0.47350000000000003,"d":"47.35%"}},{"$f":"Actif!$E$33/100","v":{"v":0.0585,"d":"5.85%"}},{"$f":"Actif!$E$29/100","v":{"v":0.027999999999999997,"d":"2.80%"}}]
[null,"#343",50,2029,"F","A_CAPI",{"v":0.44999999999999996,"d":"0.45"},{"v":0.38999999999999996,"d":"0.39"},0.6,0.6,85,0,{"$f":"ROUND(Primes!$P$10*V6450,2)","v":0.68},0,{"v":14782.363842404151,"d":"14,782"},{"$f":"'BP Financier'!$F$44*(('BP Financier'!$C$22+'BP Financier'!$D$22+'BP Financier'!$E$22+'BP Financier'!$F$22)/('BP Financier'!$C$16+'BP Financier'!$C$19+'BP Financier'!$D$16+'BP Financier'!$D$19+'BP Financier'!$E$16+'BP Financier'!$E$19+'BP Financier'!$C$22+'BP Financier'!$D$22+'BP Financier'!$E$22+'BP Financier'!$F$22+'BP Financier'!$F$16+'BP Financier'!$F$19))*$V6450*X6450/(1-$W6450)","v":{"v":1881.5807703763371,"d":"1,882"}},{"$f":"'BP Financier'!$F$44*(('BP Financier'!$C$22+'BP Financier'!$D$22+'BP Financier'!$E$22+'BP Financier'!$F$22)/('BP Financier'!$C$16+'BP Financier'!$C$19+'BP Financier'!$D$16+'BP Financier'!$D$19+'BP Financier'!$E$16+'BP Financier'!$E$19+'BP Financier'!$C$22+'BP Financier'!$D$22+'BP Financier'!$E$22+'BP Financier'!$F$22+'BP Financier'!$F$16+'BP Financier'!$F$19))*$V6450*Y6450/(1-$W6450)","v":{"v":1257.8523382073854,"d":"1,258"}},{"$f":"'BP Financier'!$F$44*(('BP Financier'!$C$22+'BP Financier'!$D$22+'BP Financier'!$E$22+'BP Financier'!$F$22)/('BP Financier'!$C$16+'BP Financier'!$C$19+'BP Financier'!$D$16+'BP Financier'!$D$19+'BP Financier'!$E$16+'BP Financier'!$E$19+'BP Financier'!$C$22+'BP Financier'!$D$22+'BP Financier'!$E$22+'BP Financier'!$F$22+'BP Financier'!$F$16+'BP Financier'!$F$19))*$V6450*Z6450/(1-$W6450)","v":{"v":9844.513754399952,"d":"9,845"}},{"$f":"'BP Financier'!$F$44*(('BP Financier'!$C$22+'BP Financier'!$D$22+'BP Financier'!$E$22+'BP Financier'!$F$22)/('BP Financier'!$C$16+'BP Financier'!$C$19+'BP Financier'!$D$16+'BP Financier'!$D$19+'BP Financier'!$E$16+'BP Financier'!$E$19+'BP Financier'!$C$22+'BP Financier'!$D$22+'BP Financier'!$E$22+'BP Financier'!$F$22+'BP Financier'!$F$16+'BP Financier'!$F$19))*$V6450*AA6450/(1-$W6450)","v":{"v":1216.2704427294555,"d":"1,216"}},{"$f":"'BP Financier'!$F$44*(('BP Financier'!$C$22+'BP Financier'!$D$22+'BP Financier'!$E$22+'BP Financier'!$F$22)/('BP Financier'!$C$16+'BP Financier'!$C$19+'BP Financier'!$D$16+'BP Financier'!$D$19+'BP Financier'!$E$16+'BP Financier'!$E$19+'BP Financier'!$C$22+'BP Financier'!$D$22+'BP Financier'!$E$22+'BP Financier'!$F$22+'BP Financier'!$F$16+'BP Financier'!$F$19))*$V6450*AB6450/(1-$W6450)","v":{"v":582.1465366910213,"d":"582"}},null,{"v":0.0075,"d":"0.75%"},{"$f":"Actif!$E$28/100","v":{"v":0.28900000000000003,"d":"28.90%"}},{"$f":"Actif!$E$30/100","v":{"v":0.09050000000000001,"d":"9.05%"}},{"$f":"Actif!$E$31/100","v":{"v":0.0605,"d":"6.05%"}},{"$f":"Actif!$E$32/100","v":{"v":0.47350000000000003,"d":"47.35%"}},{"$f":"Actif!$E$33/100","v":{"v":0.0585,"d":"5.85%"}},{"$f":"Actif!$E$29/100","v":{"v":0.027999999999999997,"d":"2.80%"}}]
[null,"#344",50,2030,"F","A_CAPI",{"v":0.44999999999999996,"d":"0.45"},{"v":0.38999999999999996,"d":"0.39"},0.6,0.6,85,0,{"$f":"ROUND(Primes!$P$10*V6451,2)","v":0.68},0,{"v":14782.363842404151,"d":"14,782"},{"$f":"'BP Financier'!$F$44*(('BP Financier'!$C$22+'BP Financier'!$D$22+'BP Financier'!$E$22+'BP Financier'!$F$22)/('BP Financier'!$C$16+'BP Financier'!$C$19+'BP Financier'!$D$16+'BP Financier'!$D$19+'BP Financier'!$E$16+'BP Financier'!$E$19+'BP Financier'!$C$22+'BP Financier'!$D$22+'BP Financier'!$E$22+'BP Financier'!$F$22+'BP Financier'!$F$16+'BP Financier'!$F$19))*$V6451*X6451/(1-$W6451)","v":{"v":1881.5807703763371,"d":"1,882"}},{"$f":"'BP Financier'!$F$44*(('BP Financier'!$C$22+'BP Financier'!$D$22+'BP Financier'!$E$22+'BP Financier'!$F$22)/('BP Financier'!$C$16+'BP Financier'!$C$19+'BP Financier'!$D$16+'BP Financier'!$D$19+'BP Financier'!$E$16+'BP Financier'!$E$19+'BP Financier'!$C$22+'BP Financier'!$D$22+'BP Financier'!$E$22+'BP Financier'!$F$22+'BP Financier'!$F$16+'BP Financier'!$F$19))*$V6451*Y6451/(1-$W6451)","v":{"v":1257.8523382073854,"d":"1,258"}},{"$f":"'BP Financier'!$F$44*(('BP Financier'!$C$22+'BP Financier'!$D$22+'BP Financier'!$E$22+'BP Financier'!$F$22)/('BP Financier'!$C$16+'BP Financier'!$C$19+'BP Financier'!$D$16+'BP Financier'!$D$19+'BP Financier'!$E$16+'BP Financier'!$E$19+'BP Financier'!$C$22+'BP Financier'!$D$22+'BP Financier'!$E$22+'BP Financier'!$F$22+'BP Financier'!$F$16+'BP Financier'!$F$19))*$V6451*Z6451/(1-$W6451)","v":{"v":9844.513754399952,"d":"9,845"}},{"$f":"'BP Financier'!$F$44*(('BP Financier'!$C$22+'BP Financier'!$D$22+'BP Financier'!$E$22+'BP Financier'!$F$22)/('BP Financier'!$C$16+'BP Financier'!$C$19+'BP Financier'!$D$16+'BP Financier'!$D$19+'BP Financier'!$E$16+'BP Financier'!$E$19+'BP Financier'!$C$22+'BP Financier'!$D$22+'BP Financier'!$E$22+'BP Financier'!$F$22+'BP Financier'!$F$16+'BP Financier'!$F$19))*$V6451*AA6451/(1-$W6451)","v":{"v":1216.2704427294555,"d":"1,216"}},{"$f":"'BP Financier'!$F$44*(('BP Financier'!$C$22+'BP Financier'!$D$22+'BP Financier'!$E$22+'BP Financier'!$F$22)/('BP Financier'!$C$16+'BP Financier'!$C$19+'BP Financier'!$D$16+'BP Financier'!$D$19+'BP Financier'!$E$16+'BP Financier'!$E$19+'BP Financier'!$C$22+'BP Financier'!$D$22+'BP Financier'!$E$22+'BP Financier'!$F$22+'BP Financier'!$F$16+'BP Financier'!$F$19))*$V6451*AB6451/(1-$W6451)","v":{"v":582.1465366910213,"d":"582"}},null,{"v":0.0075,"d":"0.75%"},{"$f":"Actif!$E$28/100","v":{"v":0.28900000000000003,"d":"28.90%"}},{"$f":"Actif!$E$30/100","v":{"v":0.09050000000000001,"d":"9.05%"}},{"$f":"Actif!$E$31/100","v":{"v":0.0605,"d":"6.05%"}},{"$f":"Actif!$E$32/100","v":{"v":0.47350000000000003,"d":"47.35%"}},{"$f":"Actif!$E$33/100","v":{"v":0.0585,"d":"5.85%"}},{"$f":"Actif!$E$29/100","v":{"v":0.027999999999999997,"d":"2.80%"}}]
[null,"#345",51,2026,"H","A_CAPI",{"v":0.44999999999999996,"d":"0.45"},{"v":0.38999999999999996,"d":"0.39"},0.6,0.6,85,0,{"$f":"ROUND(Primes!$P$10*V6452,2)","v":0.68},0,{"v":14782.363842404151,"d":"14,782"},{"$f":"'BP Financier'!$F$44*(('BP Financier'!$C$22+'BP Financier'!$D$22+'BP Financier'!$E$22+'BP Financier'!$F$22)/('BP Financier'!$C$16+'BP Financier'!$C$19+'BP Financier'!$D$16+'BP Financier'!$D$19+'BP Financier'!$E$16+'BP Financier'!$E$19+'BP Financier'!$C$22+'BP Financier'!$D$22+'BP Financier'!$E$22+'BP Financier'!$F$22+'BP Financier'!$F$16+'BP Financier'!$F$19))*$V6452*X6452/(1-$W6452)","v":{"v":1881.5807703763371,"d":"1,882"}},{"$f":"'BP Financier'!$F$44*(('BP Financier'!$C$22+'BP Financier'!$D$22+'BP Financier'!$E$22+'BP Financier'!$F$22)/('BP Financier'!$C$16+'BP Financier'!$C$19+'BP Financier'!$D$16+'BP Financier'!$D$19+'BP Financier'!$E$16+'BP Financier'!$E$19+'BP Financier'!$C$22+'BP Financier'!$D$22+'BP Financier'!$E$22+'BP Financier'!$F$22+'BP Financier'!$F$16+'BP Financier'!$F$19))*$V6452*Y6452/(1-$W6452)","v":{"v":1257.8523382073854,"d":"1,258"}},{"$f":"'BP Financier'!$F$44*(('BP Financier'!$C$22+'BP Financier'!$D$22+'BP Financier'!$E$22+'BP Financier'!$F$22)/('BP Financier'!$C$16+'BP Financier'!$C$19+'BP Financier'!$D$16+'BP Financier'!$D$19+'BP Financier'!$E$16+'BP Financier'!$E$19+'BP Financier'!$C$22+'BP Financier'!$D$22+'BP Financier'!$E$22+'BP Financier'!$F$22+'BP Financier'!$F$16+'BP Financier'!$F$19))*$V6452*Z6452/(1-$W6452)","v":{"v":9844.513754399952,"d":"9,845"}},{"$f":"'BP Financier'!$F$44*(('BP Financier'!$C$22+'BP Financier'!$D$22+'BP Financier'!$E$22+'BP Financier'!$F$22)/('BP Financier'!$C$16+'BP Financier'!$C$19+'BP Financier'!$D$16+'BP Financier'!$D$19+'BP Financier'!$E$16+'BP Financier'!$E$19+'BP Financier'!$C$22+'BP Financier'!$D$22+'BP Financier'!$E$22+'BP Financier'!$F$22+'BP Financier'!$F$16+'BP Financier'!$F$19))*$V6452*AA6452/(1-$W6452)","v":{"v":1216.2704427294555,"d":"1,216"}},{"$f":"'BP Financier'!$F$44*(('BP Financier'!$C$22+'BP Financier'!$D$22+'BP Financier'!$E$22+'BP Financier'!$F$22)/('BP Financier'!$C$16+'BP Financier'!$C$19+'BP Financier'!$D$16+'BP Financier'!$D$19+'BP Financier'!$E$16+'BP Financier'!$E$19+'BP Financier'!$C$22+'BP Financier'!$D$22+'BP Financier'!$E$22+'BP Financier'!$F$22+'BP Financier'!$F$16+'BP Financier'!$F$19))*$V6452*AB6452/(1-$W6452)","v":{"v":582.1465366910213,"d":"582"}},null,{"v":0.0075,"d":"0.75%"},{"$f":"Actif!$E$28/100","v":{"v":0.28900000000000003,"d":"28.90%"}},{"$f":"Actif!$E$30/100","v":{"v":0.09050000000000001,"d":"9.05%"}},{"$f":"Actif!$E$31/100","v":{"v":0.0605,"d":"6.05%"}},{"$f":"Actif!$E$32/100","v":{"v":0.47350000000000003,"d":"47.35%"}},{"$f":"Actif!$E$33/100","v":{"v":0.0585,"d":"5.85%"}},{"$f":"Actif!$E$29/100","v":{"v":0.027999999999999997,"d":"2.80%"}}]
[null,"#346",51,2028,"H","A_CAPI",{"v":0.44999999999999996,"d":"0.45"},{"v":0.38999999999999996,"d":"0.39"},0.6,0.6,85,0,{"$f":"ROUND(Primes!$P$10*V6453,2)","v":0.68},0,{"v":14782.363842404151,"d":"14,782"},{"$f":"'BP Financier'!$F$44*(('BP Financier'!$C$22+'BP Financier'!$D$22+'BP Financier'!$E$22+'BP Financier'!$F$22)/('BP Financier'!$C$16+'BP Financier'!$C$19+'BP Financier'!$D$16+'BP Financier'!$D$19+'BP Financier'!$E$16+'BP Financier'!$E$19+'BP Financier'!$C$22+'BP Financier'!$D$22+'BP Financier'!$E$22+'BP Financier'!$F$22+'BP Financier'!$F$16+'BP Financier'!$F$19))*$V6453*X6453/(1-$W6453)","v":{"v":1881.5807703763371,"d":"1,882"}},{"$f":"'BP Financier'!$F$44*(('BP Financier'!$C$22+'BP Financier'!$D$22+'BP Financier'!$E$22+'BP Financier'!$F$22)/('BP Financier'!$C$16+'BP Financier'!$C$19+'BP Financier'!$D$16+'BP Financier'!$D$19+'BP Financier'!$E$16+'BP Financier'!$E$19+'BP Financier'!$C$22+'BP Financier'!$D$22+'BP Financier'!$E$22+'BP Financier'!$F$22+'BP Financier'!$F$16+'BP Financier'!$F$19))*$V6453*Y6453/(1-$W6453)","v":{"v":1257.8523382073854,"d":"1,258"}},{"$f":"'BP Financier'!$F$44*(('BP Financier'!$C$22+'BP Financier'!$D$22+'BP Financier'!$E$22+'BP Financier'!$F$22)/('BP Financier'!$C$16+'BP Financier'!$C$19+'BP Financier'!$D$16+'BP Financier'!$D$19+'BP Financier'!$E$16+'BP Financier'!$E$19+'BP Financier'!$C$22+'BP Financier'!$D$22+'BP Financier'!$E$22+'BP Financier'!$F$22+'BP Financier'!$F$16+'BP Financier'!$F$19))*$V6453*Z6453/(1-$W6453)","v":{"v":9844.513754399952,"d":"9,845"}},{"$f":"'BP Financier'!$F$44*(('BP Financier'!$C$22+'BP Financier'!$D$22+'BP Financier'!$E$22+'BP Financier'!$F$22)/('BP Financier'!$C$16+'BP Financier'!$C$19+'BP Financier'!$D$16+'BP Financier'!$D$19+'BP Financier'!$E$16+'BP Financier'!$E$19+'BP Financier'!$C$22+'BP Financier'!$D$22+'BP Financier'!$E$22+'BP Financier'!$F$22+'BP Financier'!$F$16+'BP Financier'!$F$19))*$V6453*AA6453/(1-$W6453)","v":{"v":1216.2704427294555,"d":"1,216"}},{"$f":"'BP Financier'!$F$44*(('BP Financier'!$C$22+'BP Financier'!$D$22+'BP Financier'!$E$22+'BP Financier'!$F$22)/('BP Financier'!$C$16+'BP Financier'!$C$19+'BP Financier'!$D$16+'BP Financier'!$D$19+'BP Financier'!$E$16+'BP Financier'!$E$19+'BP Financier'!$C$22+'BP Financier'!$D$22+'BP Financier'!$E$22+'BP Financier'!$F$22+'BP Financier'!$F$16+'BP Financier'!$F$19))*$V6453*AB6453/(1-$W6453)","v":{"v":582.1465366910213,"d":"582"}},null,{"v":0.0075,"d":"0.75%"},{"$f":"Actif!$E$28/100","v":{"v":0.28900000000000003,"d":"28.90%"}},{"$f":"Actif!$E$30/100","v":{"v":0.09050000000000001,"d":"9.05%"}},{"$f":"Actif!$E$31/100","v":{"v":0.0605,"d":"6.05%"}},{"$f":"Actif!$E$32/100","v":{"v":0.47350000000000003,"d":"47.35%"}},{"$f":"Actif!$E$33/100","v":{"v":0.0585,"d":"5.85%"}},{"$f":"Actif!$E$29/100","v":{"v":0.027999999999999997,"d":"2.80%"}}]
[null,"#347",51,2029,"H","A_CAPI",{"v":0.44999999999999996,"d":"0.45"},{"v":0.38999999999999996,"d":"0.39"},0.6,0.6,85,0,{"$f":"ROUND(Primes!$P$10*V6454,2)","v":0.68},0,{"v":14782.363842404151,"d":"14,782"},{"$f":"'BP Financier'!$F$44*(('BP Financier'!$C$22+'BP Financier'!$D$22+'BP Financier'!$E$22+'BP Financier'!$F$22)/('BP Financier'!$C$16+'BP Financier'!$C$19+'BP Financier'!$D$16+'BP Financier'!$D$19+'BP Financier'!$E$16+'BP Financier'!$E$19+'BP Financier'!$C$22+'BP Financier'!$D$22+'BP Financier'!$E$22+'BP Financier'!$F$22+'BP Financier'!$F$16+'BP Financier'!$F$19))*$V6454*X6454/(1-$W6454)","v":{"v":1881.5807703763371,"d":"1,882"}},{"$f":"'BP Financier'!$F$44*(('BP Financier'!$C$22+'BP Financier'!$D$22+'BP Financier'!$E$22+'BP Financier'!$F$22)/('BP Financier'!$C$16+'BP Financier'!$C$19+'BP Financier'!$D$16+'BP Financier'!$D$19+'BP Financier'!$E$16+'BP Financier'!$E$19+'BP Financier'!$C$22+'BP Financier'!$D$22+'BP Financier'!$E$22+'BP Financier'!$F$22+'BP Financier'!$F$16+'BP Financier'!$F$19))*$V6454*Y6454/(1-$W6454)","v":{"v":1257.8523382073854,"d":"1,258"}},{"$f":"'BP Financier'!$F$44*(('BP Financier'!$C$22+'BP Financier'!$D$22+'BP Financier'!$E$22+'BP Financier'!$F$22)/('BP Financier'!$C$16+'BP Financier'!$C$19+'BP Financier'!$D$16+'BP Financier'!$D$19+'BP Financier'!$E$16+'BP Financier'!$E$19+'BP Financier'!$C$22+'BP Financier'!$D$22+'BP Financier'!$E$22+'BP Financier'!$F$22+'BP Financier'!$F$16+'BP Financier'!$F$19))*$V6454*Z6454/(1-$W6454)","v":{"v":9844.513754399952,"d":"9,845"}},{"$f":"'BP Financier'!$F$44*(('BP Financier'!$C$22+'BP Financier'!$D$22+'BP Financier'!$E$22+'BP Financier'!$F$22)/('BP Financier'!$C$16+'BP Financier'!$C$19+'BP Financier'!$D$16+'BP Financier'!$D$19+'BP Financier'!$E$16+'BP Financier'!$E$19+'BP Financier'!$C$22+'BP Financier'!$D$22+'BP Financier'!$E$22+'BP Financier'!$F$22+'BP Financier'!$F$16+'BP Financier'!$F$19))*$V6454*AA6454/(1-$W6454)","v":{"v":1216.2704427294555,"d":"1,216"}},{"$f":"'BP Financier'!$F$44*(('BP Financier'!$C$22+'BP Financier'!$D$22+'BP Financier'!$E$22+'BP Financier'!$F$22)/('BP Financier'!$C$16+'BP Financier'!$C$19+'BP Financier'!$D$16+'BP Financier'!$D$19+'BP Financier'!$E$16+'BP Financier'!$E$19+'BP Financier'!$C$22+'BP Financier'!$D$22+'BP Financier'!$E$22+'BP Financier'!$F$22+'BP Financier'!$F$16+'BP Financier'!$F$19))*$V6454*AB6454/(1-$W6454)","v":{"v":582.1465366910213,"d":"582"}},null,{"v":0.0075,"d":"0.75%"},{"$f":"Actif!$E$28/100","v":{"v":0.28900000000000003,"d":"28.90%"}},{"$f":"Actif!$E$30/100","v":{"v":0.09050000000000001,"d":"9.05%"}},{"$f":"Actif!$E$31/100","v":{"v":0.0605,"d":"6.05%"}},{"$f":"Actif!$E$32/100","v":{"v":0.47350000000000003,"d":"47.35%"}},{"$f":"Actif!$E$33/100","v":{"v":0.0585,"d":"5.85%"}},{"$f":"Actif!$E$29/100","v":{"v":0.027999999999999997,"d":"2.80%"}}]
[null,"#348",51,2030,"H","A_CAPI",{"v":0.44999999999999996,"d":"0.45"},{"v":0.38999999999999996,"d":"0.39"},0.6,0.6,85,0,{"$f":"ROUND(Primes!$P$10*V6455,2)","v":0.68},0,{"v":14782.363842404151,"d":"14,782"},{"$f":"'BP Financier'!$F$44*(('BP Financier'!$C$22+'BP Financier'!$D$22+'BP Financier'!$E$22+'BP Financier'!$F$22)/('BP Financier'!$C$16+'BP Financier'!$C$19+'BP Financier'!$D$16+'BP Financier'!$D$19+'BP Financier'!$E$16+'BP Financier'!$E$19+'BP Financier'!$C$22+'BP Financier'!$D$22+'BP Financier'!$E$22+'BP Financier'!$F$22+'BP Financier'!$F$16+'BP Financier'!$F$19))*$V6455*X6455/(1-$W6455)","v":{"v":1881.5807703763371,"d":"1,882"}},{"$f":"'BP Financier'!$F$44*(('BP Financier'!$C$22+'BP Financier'!$D$22+'BP Financier'!$E$22+'BP Financier'!$F$22)/('BP Financier'!$C$16+'BP Financier'!$C$19+'BP Financier'!$D$16+'BP Financier'!$D$19+'BP Financier'!$E$16+'BP Financier'!$E$19+'BP Financier'!$C$22+'BP Financier'!$D$22+'BP Financier'!$E$22+'BP Financier'!$F$22+'BP Financier'!$F$16+'BP Financier'!$F$19))*$V6455*Y6455/(1-$W6455)","v":{"v":1257.8523382073854,"d":"1,258"}},{"$f":"'BP Financier'!$F$44*(('BP Financier'!$C$22+'BP Financier'!$D$22+'BP Financier'!$E$22+'BP Financier'!$F$22)/('BP Financier'!$C$16+'BP Financier'!$C$19+'BP Financier'!$D$16+'BP Financier'!$D$19+'BP Financier'!$E$16+'BP Financier'!$E$19+'BP Financier'!$C$22+'BP Financier'!$D$22+'BP Financier'!$E$22+'BP Financier'!$F$22+'BP Financier'!$F$16+'BP Financier'!$F$19))*$V6455*Z6455/(1-$W6455)","v":{"v":9844.513754399952,"d":"9,845"}},{"$f":"'BP Financier'!$F$44*(('BP Financier'!$C$22+'BP Financier'!$D$22+'BP Financier'!$E$22+'BP Financier'!$F$22)/('BP Financier'!$C$16+'BP Financier'!$C$19+'BP Financier'!$D$16+'BP Financier'!$D$19+'BP Financier'!$E$16+'BP Financier'!$E$19+'BP Financier'!$C$22+'BP Financier'!$D$22+'BP Financier'!$E$22+'BP Financier'!$F$22+'BP Financier'!$F$16+'BP Financier'!$F$19))*$V6455*AA6455/(1-$W6455)","v":{"v":1216.2704427294555,"d":"1,216"}},{"$f":"'BP Financier'!$F$44*(('BP Financier'!$C$22+'BP Financier'!$D$22+'BP Financier'!$E$22+'BP Financier'!$F$22)/('BP Financier'!$C$16+'BP Financier'!$C$19+'BP Financier'!$D$16+'BP Financier'!$D$19+'BP Financier'!$E$16+'BP Financier'!$E$19+'BP Financier'!$C$22+'BP Financier'!$D$22+'BP Financier'!$E$22+'BP Financier'!$F$22+'BP Financier'!$F$16+'BP Financier'!$F$19))*$V6455*AB6455/(1-$W6455)","v":{"v":582.1465366910213,"d":"582"}},null,{"v":0.0075,"d":"0.75%"},{"$f":"Actif!$E$28/100","v":{"v":0.28900000000000003,"d":"28.90%"}},{"$f":"Actif!$E$30/100","v":{"v":0.09050000000000001,"d":"9.05%"}},{"$f":"Actif!$E$31/100","v":{"v":0.0605,"d":"6.05%"}},{"$f":"Actif!$E$32/100","v":{"v":0.47350000000000003,"d":"47.35%"}},{"$f":"Actif!$E$33/100","v":{"v":0.0585,"d":"5.85%"}},{"$f":"Actif!$E$29/100","v":{"v":0.027999999999999997,"d":"2.80%"}}]
[null,"#349",52,2026,"H","A_CAPI",{"v":0.44999999999999996,"d":"0.45"},{"v":0.38999999999999996,"d":"0.39"},0.6,0.6,85,0,{"$f":"ROUND(Primes!$P$10*V6456,2)","v":0.68},0,{"v":14782.363842404151,"d":"14,782"},{"$f":"'BP Financier'!$F$44*(('BP Financier'!$C$22+'BP Financier'!$D$22+'BP Financier'!$E$22+'BP Financier'!$F$22)/('BP Financier'!$C$16+'BP Financier'!$C$19+'BP Financier'!$D$16+'BP Financier'!$D$19+'BP Financier'!$E$16+'BP Financier'!$E$19+'BP Financier'!$C$22+'BP Financier'!$D$22+'BP Financier'!$E$22+'BP Financier'!$F$22+'BP Financier'!$F$16+'BP Financier'!$F$19))*$V6456*X6456/(1-$W6456)","v":{"v":1881.5807703763371,"d":"1,882"}},{"$f":"'BP Financier'!$F$44*(('BP Financier'!$C$22+'BP Financier'!$D$22+'BP Financier'!$E$22+'BP Financier'!$F$22)/('BP Financier'!$C$16+'BP Financier'!$C$19+'BP Financier'!$D$16+'BP Financier'!$D$19+'BP Financier'!$E$16+'BP Financier'!$E$19+'BP Financier'!$C$22+'BP Financier'!$D$22+'BP Financier'!$E$22+'BP Financier'!$F$22+'BP Financier'!$F$16+'BP Financier'!$F$19))*$V6456*Y6456/(1-$W6456)","v":{"v":1257.8523382073854,"d":"1,258"}},{"$f":"'BP Financier'!$F$44*(('BP Financier'!$C$22+'BP Financier'!$D$22+'BP Financier'!$E$22+'BP Financier'!$F$22)/('BP Financier'!$C$16+'BP Financier'!$C$19+'BP Financier'!$D$16+'BP Financier'!$D$19+'BP Financier'!$E$16+'BP Financier'!$E$19+'BP Financier'!$C$22+'BP Financier'!$D$22+'BP Financier'!$E$22+'BP Financier'!$F$22+'BP Financier'!$F$16+'BP Financier'!$F$19))*$V6456*Z6456/(1-$W6456)","v":{"v":9844.513754399952,"d":"9,845"}},{"$f":"'BP Financier'!$F$44*(('BP Financier'!$C$22+'BP Financier'!$D$22+'BP Financier'!$E$22+'BP Financier'!$F$22)/('BP Financier'!$C$16+'BP Financier'!$C$19+'BP Financier'!$D$16+'BP Financier'!$D$19+'BP Financier'!$E$16+'BP Financier'!$E$19+'BP Financier'!$C$22+'BP Financier'!$D$22+'BP Financier'!$E$22+'BP Financier'!$F$22+'BP Financier'!$F$16+'BP Financier'!$F$19))*$V6456*AA6456/(1-$W6456)","v":{"v":1216.2704427294555,"d":"1,216"}},{"$f":"'BP Financier'!$F$44*(('BP Financier'!$C$22+'BP Financier'!$D$22+'BP Financier'!$E$22+'BP Financier'!$F$22)/('BP Financier'!$C$16+'BP Financier'!$C$19+'BP Financier'!$D$16+'BP Financier'!$D$19+'BP Financier'!$E$16+'BP Financier'!$E$19+'BP Financier'!$C$22+'BP Financier'!$D$22+'BP Financier'!$E$22+'BP Financier'!$F$22+'BP Financier'!$F$16+'BP Financier'!$F$19))*$V6456*AB6456/(1-$W6456)","v":{"v":582.1465366910213,"d":"582"}},null,{"v":0.0075,"d":"0.75%"},{"$f":"Actif!$E$28/100","v":{"v":0.28900000000000003,"d":"28.90%"}},{"$f":"Actif!$E$30/100","v":{"v":0.09050000000000001,"d":"9.05%"}},{"$f":"Actif!$E$31/100","v":{"v":0.0605,"d":"6.05%"}},{"$f":"Actif!$E$32/100","v":{"v":0.47350000000000003,"d":"47.35%"}},{"$f":"Actif!$E$33/100","v":{"v":0.0585,"d":"5.85%"}},{"$f":"Actif!$E$29/100","v":{"v":0.027999999999999997,"d":"2.80%"}}]
[null,"#350",52,2028,"H","A_CAPI",{"v":0.44999999999999996,"d":"0.45"},{"v":0.38999999999999996,"d":"0.39"},0.6,0.6,85,0,{"$f":"ROUND(Primes!$P$10*V6457,2)","v":0.68},0,{"v":14782.363842404151,"d":"14,782"},{"$f":"'BP Financier'!$F$44*(('BP Financier'!$C$22+'BP Financier'!$D$22+'BP Financier'!$E$22+'BP Financier'!$F$22)/('BP Financier'!$C$16+'BP Financier'!$C$19+'BP Financier'!$D$16+'BP Financier'!$D$19+'BP Financier'!$E$16+'BP Financier'!$E$19+'BP Financier'!$C$22+'BP Financier'!$D$22+'BP Financier'!$E$22+'BP Financier'!$F$22+'BP Financier'!$F$16+'BP Financier'!$F$19))*$V6457*X6457/(1-$W6457)","v":{"v":1881.5807703763371,"d":"1,882"}},{"$f":"'BP Financier'!$F$44*(('BP Financier'!$C$22+'BP Financier'!$D$22+'BP Financier'!$E$22+'BP Financier'!$F$22)/('BP Financier'!$C$16+'BP Financier'!$C$19+'BP Financier'!$D$16+'BP Financier'!$D$19+'BP Financier'!$E$16+'BP Financier'!$E$19+'BP Financier'!$C$22+'BP Financier'!$D$22+'BP Financier'!$E$22+'BP Financier'!$F$22+'BP Financier'!$F$16+'BP Financier'!$F$19))*$V6457*Y6457/(1-$W6457)","v":{"v":1257.8523382073854,"d":"1,258"}},{"$f":"'BP Financier'!$F$44*(('BP Financier'!$C$22+'BP Financier'!$D$22+'BP Financier'!$E$22+'BP Financier'!$F$22)/('BP Financier'!$C$16+'BP Financier'!$C$19+'BP Financier'!$D$16+'BP Financier'!$D$19+'BP Financier'!$E$16+'BP Financier'!$E$19+'BP Financier'!$C$22+'BP Financier'!$D$22+'BP Financier'!$E$22+'BP Financier'!$F$22+'BP Financier'!$F$16+'BP Financier'!$F$19))*$V6457*Z6457/(1-$W6457)","v":{"v":9844.513754399952,"d":"9,845"}},{"$f":"'BP Financier'!$F$44*(('BP Financier'!$C$22+'BP Financier'!$D$22+'BP Financier'!$E$22+'BP Financier'!$F$22)/('BP Financier'!$C$16+'BP Financier'!$C$19+'BP Financier'!$D$16+'BP Financier'!$D$19+'BP Financier'!$E$16+'BP Financier'!$E$19+'BP Financier'!$C$22+'BP Financier'!$D$22+'BP Financier'!$E$22+'BP Financier'!$F$22+'BP Financier'!$F$16+'BP Financier'!$F$19))*$V6457*AA6457/(1-$W6457)","v":{"v":1216.2704427294555,"d":"1,216"}},{"$f":"'BP Financier'!$F$44*(('BP Financier'!$C$22+'BP Financier'!$D$22+'BP Financier'!$E$22+'BP Financier'!$F$22)/('BP Financier'!$C$16+'BP Financier'!$C$19+'BP Financier'!$D$16+'BP Financier'!$D$19+'BP Financier'!$E$16+'BP Financier'!$E$19+'BP Financier'!$C$22+'BP Financier'!$D$22+'BP Financier'!$E$22+'BP Financier'!$F$22+'BP Financier'!$F$16+'BP Financier'!$F$19))*$V6457*AB6457/(1-$W6457)","v":{"v":582.1465366910213,"d":"582"}},null,{"v":0.0075,"d":"0.75%"},{"$f":"Actif!$E$28/100","v":{"v":0.28900000000000003,"d":"28.90%"}},{"$f":"Actif!$E$30/100","v":{"v":0.09050000000000001,"d":"9.05%"}},{"$f":"Actif!$E$31/100","v":{"v":0.0605,"d":"6.05%"}},{"$f":"Actif!$E$32/100","v":{"v":0.47350000000000003,"d":"47.35%"}},{"$f":"Actif!$E$33/100","v":{"v":0.0585,"d":"5.85%"}},{"$f":"Actif!$E$29/100","v":{"v":0.027999999999999997,"d":"2.80%"}}]
[null,"#351",52,2029,"H","A_CAPI",{"v":0.44999999999999996,"d":"0.45"},{"v":0.38999999999999996,"d":"0.39"},0.6,0.6,85,0,{"$f":"ROUND(Primes!$P$10*V6458,2)","v":0.68},0,{"v":14782.363842404151,"d":"14,782"},{"$f":"'BP Financier'!$F$44*(('BP Financier'!$C$22+'BP Financier'!$D$22+'BP Financier'!$E$22+'BP Financier'!$F$22)/('BP Financier'!$C$16+'BP Financier'!$C$19+'BP Financier'!$D$16+'BP Financier'!$D$19+'BP Financier'!$E$16+'BP Financier'!$E$19+'BP Financier'!$C$22+'BP Financier'!$D$22+'BP Financier'!$E$22+'BP Financier'!$F$22+'BP Financier'!$F$16+'BP Financier'!$F$19))*$V6458*X6458/(1-$W6458)","v":{"v":1881.5807703763371,"d":"1,882"}},{"$f":"'BP Financier'!$F$44*(('BP Financier'!$C$22+'BP Financier'!$D$22+'BP Financier'!$E$22+'BP Financier'!$F$22)/('BP Financier'!$C$16+'BP Financier'!$C$19+'BP Financier'!$D$16+'BP Financier'!$D$19+'BP Financier'!$E$16+'BP Financier'!$E$19+'BP Financier'!$C$22+'BP Financier'!$D$22+'BP Financier'!$E$22+'BP Financier'!$F$22+'BP Financier'!$F$16+'BP Financier'!$F$19))*$V6458*Y6458/(1-$W6458)","v":{"v":1257.8523382073854,"d":"1,258"}},{"$f":"'BP Financier'!$F$44*(('BP Financier'!$C$22+'BP Financier'!$D$22+'BP Financier'!$E$22+'BP Financier'!$F$22)/('BP Financier'!$C$16+'BP Financier'!$C$19+'BP Financier'!$D$16+'BP Financier'!$D$19+'BP Financier'!$E$16+'BP Financier'!$E$19+'BP Financier'!$C$22+'BP Financier'!$D$22+'BP Financier'!$E$22+'BP Financier'!$F$22+'BP Financier'!$F$16+'BP Financier'!$F$19))*$V6458*Z6458/(1-$W6458)","v":{"v":9844.513754399952,"d":"9,845"}},{"$f":"'BP Financier'!$F$44*(('BP Financier'!$C$22+'BP Financier'!$D$22+'BP Financier'!$E$22+'BP Financier'!$F$22)/('BP Financier'!$C$16+'BP Financier'!$C$19+'BP Financier'!$D$16+'BP Financier'!$D$19+'BP Financier'!$E$16+'BP Financier'!$E$19+'BP Financier'!$C$22+'BP Financier'!$D$22+'BP Financier'!$E$22+'BP Financier'!$F$22+'BP Financier'!$F$16+'BP Financier'!$F$19))*$V6458*AA6458/(1-$W6458)","v":{"v":1216.2704427294555,"d":"1,216"}},{"$f":"'BP Financier'!$F$44*(('BP Financier'!$C$22+'BP Financier'!$D$22+'BP Financier'!$E$22+'BP Financier'!$F$22)/('BP Financier'!$C$16+'BP Financier'!$C$19+'BP Financier'!$D$16+'BP Financier'!$D$19+'BP Financier'!$E$16+'BP Financier'!$E$19+'BP Financier'!$C$22+'BP Financier'!$D$22+'BP Financier'!$E$22+'BP Financier'!$F$22+'BP Financier'!$F$16+'BP Financier'!$F$19))*$V6458*AB6458/(1-$W6458)","v":{"v":582.1465366910213,"d":"582"}},null,{"v":0.0075,"d":"0.75%"},{"$f":"Actif!$E$28/100","v":{"v":0.28900000000000003,"d":"28.90%"}},{"$f":"Actif!$E$30/100","v":{"v":0.09050000000000001,"d":"9.05%"}},{"$f":"Actif!$E$31/100","v":{"v":0.0605,"d":"6.05%"}},{"$f":"Actif!$E$32/100","v":{"v":0.47350000000000003,"d":"47.35%"}},{"$f":"Actif!$E$33/100","v":{"v":0.0585,"d":"5.85%"}},{"$f":"Actif!$E$29/100","v":{"v":0.027999999999999997,"d":"2.80%"}}]
[null,"#352",52,2030,"H","A_CAPI",{"v":0.44999999999999996,"d":"0.45"},{"v":0.38999999999999996,"d":"0.39"},0.6,0.6,85,0,{"$f":"ROUND(Primes!$P$10*V6459,2)","v":0.68},0,{"v":14782.363842404151,"d":"14,782"},{"$f":"'BP Financier'!$F$44*(('BP Financier'!$C$22+'BP Financier'!$D$22+'BP Financier'!$E$22+'BP Financier'!$F$22)/('BP Financier'!$C$16+'BP Financier'!$C$19+'BP Financier'!$D$16+'BP Financier'!$D$19+'BP Financier'!$E$16+'BP Financier'!$E$19+'BP Financier'!$C$22+'BP Financier'!$D$22+'BP Financier'!$E$22+'BP Financier'!$F$22+'BP Financier'!$F$16+'BP Financier'!$F$19))*$V6459*X6459/(1-$W6459)","v":{"v":1881.5807703763371,"d":"1,882"}},{"$f":"'BP Financier'!$F$44*(('BP Financier'!$C$22+'BP Financier'!$D$22+'BP Financier'!$E$22+'BP Financier'!$F$22)/('BP Financier'!$C$16+'BP Financier'!$C$19+'BP Financier'!$D$16+'BP Financier'!$D$19+'BP Financier'!$E$16+'BP Financier'!$E$19+'BP Financier'!$C$22+'BP Financier'!$D$22+'BP Financier'!$E$22+'BP Financier'!$F$22+'BP Financier'!$F$16+'BP Financier'!$F$19))*$V6459*Y6459/(1-$W6459)","v":{"v":1257.8523382073854,"d":"1,258"}},{"$f":"'BP Financier'!$F$44*(('BP Financier'!$C$22+'BP Financier'!$D$22+'BP Financier'!$E$22+'BP Financier'!$F$22)/('BP Financier'!$C$16+'BP Financier'!$C$19+'BP Financier'!$D$16+'BP Financier'!$D$19+'BP Financier'!$E$16+'BP Financier'!$E$19+'BP Financier'!$C$22+'BP Financier'!$D$22+'BP Financier'!$E$22+'BP Financier'!$F$22+'BP Financier'!$F$16+'BP Financier'!$F$19))*$V6459*Z6459/(1-$W6459)","v":{"v":9844.513754399952,"d":"9,845"}},{"$f":"'BP Financier'!$F$44*(('BP Financier'!$C$22+'BP Financier'!$D$22+'BP Financier'!$E$22+'BP Financier'!$F$22)/('BP Financier'!$C$16+'BP Financier'!$C$19+'BP Financier'!$D$16+'BP Financier'!$D$19+'BP Financier'!$E$16+'BP Financier'!$E$19+'BP Financier'!$C$22+'BP Financier'!$D$22+'BP Financier'!$E$22+'BP Financier'!$F$22+'BP Financier'!$F$16+'BP Financier'!$F$19))*$V6459*AA6459/(1-$W6459)","v":{"v":1216.2704427294555,"d":"1,216"}},{"$f":"'BP Financier'!$F$44*(('BP Financier'!$C$22+'BP Financier'!$D$22+'BP Financier'!$E$22+'BP Financier'!$F$22)/('BP Financier'!$C$16+'BP Financier'!$C$19+'BP Financier'!$D$16+'BP Financier'!$D$19+'BP Financier'!$E$16+'BP Financier'!$E$19+'BP Financier'!$C$22+'BP Financier'!$D$22+'BP Financier'!$E$22+'BP Financier'!$F$22+'BP Financier'!$F$16+'BP Financier'!$F$19))*$V6459*AB6459/(1-$W6459)","v":{"v":582.1465366910213,"d":"582"}},null,{"v":0.0075,"d":"0.75%"},{"$f":"Actif!$E$28/100","v":{"v":0.28900000000000003,"d":"28.90%"}},{"$f":"Actif!$E$30/100","v":{"v":0.09050000000000001,"d":"9.05%"}},{"$f":"Actif!$E$31/100","v":{"v":0.0605,"d":"6.05%"}},{"$f":"Actif!$E$32/100","v":{"v":0.47350000000000003,"d":"47.35%"}},{"$f":"Actif!$E$33/100","v":{"v":0.0585,"d":"5.85%"}},{"$f":"Actif!$E$29/100","v":{"v":0.027999999999999997,"d":"2.80%"}}]
[null,"#353",53,2026,"F","A_CAPI",{"v":0.44999999999999996,"d":"0.45"},{"v":0.38999999999999996,"d":"0.39"},0.6,0.6,85,0,{"$f":"ROUND(Primes!$P$10*V6460,2)","v":0.68},0,{"v":14782.363842404151,"d":"14,782"},{"$f":"'BP Financier'!$F$44*(('BP Financier'!$C$22+'BP Financier'!$D$22+'BP Financier'!$E$22+'BP Financier'!$F$22)/('BP Financier'!$C$16+'BP Financier'!$C$19+'BP Financier'!$D$16+'BP Financier'!$D$19+'BP Financier'!$E$16+'BP Financier'!$E$19+'BP Financier'!$C$22+'BP Financier'!$D$22+'BP Financier'!$E$22+'BP Financier'!$F$22+'BP Financier'!$F$16+'BP Financier'!$F$19))*$V6460*X6460/(1-$W6460)","v":{"v":1881.5807703763371,"d":"1,882"}},{"$f":"'BP Financier'!$F$44*(('BP Financier'!$C$22+'BP Financier'!$D$22+'BP Financier'!$E$22+'BP Financier'!$F$22)/('BP Financier'!$C$16+'BP Financier'!$C$19+'BP Financier'!$D$16+'BP Financier'!$D$19+'BP Financier'!$E$16+'BP Financier'!$E$19+'BP Financier'!$C$22+'BP Financier'!$D$22+'BP Financier'!$E$22+'BP Financier'!$F$22+'BP Financier'!$F$16+'BP Financier'!$F$19))*$V6460*Y6460/(1-$W6460)","v":{"v":1257.8523382073854,"d":"1,258"}},{"$f":"'BP Financier'!$F$44*(('BP Financier'!$C$22+'BP Financier'!$D$22+'BP Financier'!$E$22+'BP Financier'!$F$22)/('BP Financier'!$C$16+'BP Financier'!$C$19+'BP Financier'!$D$16+'BP Financier'!$D$19+'BP Financier'!$E$16+'BP Financier'!$E$19+'BP Financier'!$C$22+'BP Financier'!$D$22+'BP Financier'!$E$22+'BP Financier'!$F$22+'BP Financier'!$F$16+'BP Financier'!$F$19))*$V6460*Z6460/(1-$W6460)","v":{"v":9844.513754399952,"d":"9,845"}},{"$f":"'BP Financier'!$F$44*(('BP Financier'!$C$22+'BP Financier'!$D$22+'BP Financier'!$E$22+'BP Financier'!$F$22)/('BP Financier'!$C$16+'BP Financier'!$C$19+'BP Financier'!$D$16+'BP Financier'!$D$19+'BP Financier'!$E$16+'BP Financier'!$E$19+'BP Financier'!$C$22+'BP Financier'!$D$22+'BP Financier'!$E$22+'BP Financier'!$F$22+'BP Financier'!$F$16+'BP Financier'!$F$19))*$V6460*AA6460/(1-$W6460)","v":{"v":1216.2704427294555,"d":"1,216"}},{"$f":"'BP Financier'!$F$44*(('BP Financier'!$C$22+'BP Financier'!$D$22+'BP Financier'!$E$22+'BP Financier'!$F$22)/('BP Financier'!$C$16+'BP Financier'!$C$19+'BP Financier'!$D$16+'BP Financier'!$D$19+'BP Financier'!$E$16+'BP Financier'!$E$19+'BP Financier'!$C$22+'BP Financier'!$D$22+'BP Financier'!$E$22+'BP Financier'!$F$22+'BP Financier'!$F$16+'BP Financier'!$F$19))*$V6460*AB6460/(1-$W6460)","v":{"v":582.1465366910213,"d":"582"}},null,{"v":0.0075,"d":"0.75%"},{"$f":"Actif!$E$28/100","v":{"v":0.28900000000000003,"d":"28.90%"}},{"$f":"Actif!$E$30/100","v":{"v":0.09050000000000001,"d":"9.05%"}},{"$f":"Actif!$E$31/100","v":{"v":0.0605,"d":"6.05%"}},{"$f":"Actif!$E$32/100","v":{"v":0.47350000000000003,"d":"47.35%"}},{"$f":"Actif!$E$33/100","v":{"v":0.0585,"d":"5.85%"}},{"$f":"Actif!$E$29/100","v":{"v":0.027999999999999997,"d":"2.80%"}}]
[null,"#354",53,2028,"F","A_CAPI",{"v":0.44999999999999996,"d":"0.45"},{"v":0.38999999999999996,"d":"0.39"},0.6,0.6,85,0,{"$f":"ROUND(Primes!$P$10*V6461,2)","v":0.68},0,{"v":14782.363842404151,"d":"14,782"},{"$f":"'BP Financier'!$F$44*(('BP Financier'!$C$22+'BP Financier'!$D$22+'BP Financier'!$E$22+'BP Financier'!$F$22)/('BP Financier'!$C$16+'BP Financier'!$C$19+'BP Financier'!$D$16+'BP Financier'!$D$19+'BP Financier'!$E$16+'BP Financier'!$E$19+'BP Financier'!$C$22+'BP Financier'!$D$22+'BP Financier'!$E$22+'BP Financier'!$F$22+'BP Financier'!$F$16+'BP Financier'!$F$19))*$V6461*X6461/(1-$W6461)","v":{"v":1881.5807703763371,"d":"1,882"}},{"$f":"'BP Financier'!$F$44*(('BP Financier'!$C$22+'BP Financier'!$D$22+'BP Financier'!$E$22+'BP Financier'!$F$22)/('BP Financier'!$C$16+'BP Financier'!$C$19+'BP Financier'!$D$16+'BP Financier'!$D$19+'BP Financier'!$E$16+'BP Financier'!$E$19+'BP Financier'!$C$22+'BP Financier'!$D$22+'BP Financier'!$E$22+'BP Financier'!$F$22+'BP Financier'!$F$16+'BP Financier'!$F$19))*$V6461*Y6461/(1-$W6461)","v":{"v":1257.8523382073854,"d":"1,258"}},{"$f":"'BP Financier'!$F$44*(('BP Financier'!$C$22+'BP Financier'!$D$22+'BP Financier'!$E$22+'BP Financier'!$F$22)/('BP Financier'!$C$16+'BP Financier'!$C$19+'BP Financier'!$D$16+'BP Financier'!$D$19+'BP Financier'!$E$16+'BP Financier'!$E$19+'BP Financier'!$C$22+'BP Financier'!$D$22+'BP Financier'!$E$22+'BP Financier'!$F$22+'BP Financier'!$F$16+'BP Financier'!$F$19))*$V6461*Z6461/(1-$W6461)","v":{"v":9844.513754399952,"d":"9,845"}},{"$f":"'BP Financier'!$F$44*(('BP Financier'!$C$22+'BP Financier'!$D$22+'BP Financier'!$E$22+'BP Financier'!$F$22)/('BP Financier'!$C$16+'BP Financier'!$C$19+'BP Financier'!$D$16+'BP Financier'!$D$19+'BP Financier'!$E$16+'BP Financier'!$E$19+'BP Financier'!$C$22+'BP Financier'!$D$22+'BP Financier'!$E$22+'BP Financier'!$F$22+'BP Financier'!$F$16+'BP Financier'!$F$19))*$V6461*AA6461/(1-$W6461)","v":{"v":1216.2704427294555,"d":"1,216"}},{"$f":"'BP Financier'!$F$44*(('BP Financier'!$C$22+'BP Financier'!$D$22+'BP Financier'!$E$22+'BP Financier'!$F$22)/('BP Financier'!$C$16+'BP Financier'!$C$19+'BP Financier'!$D$16+'BP Financier'!$D$19+'BP Financier'!$E$16+'BP Financier'!$E$19+'BP Financier'!$C$22+'BP Financier'!$D$22+'BP Financier'!$E$22+'BP Financier'!$F$22+'BP Financier'!$F$16+'BP Financier'!$F$19))*$V6461*AB6461/(1-$W6461)","v":{"v":582.1465366910213,"d":"582"}},null,{"v":0.0075,"d":"0.75%"},{"$f":"Actif!$E$28/100","v":{"v":0.28900000000000003,"d":"28.90%"}},{"$f":"Actif!$E$30/100","v":{"v":0.09050000000000001,"d":"9.05%"}},{"$f":"Actif!$E$31/100","v":{"v":0.0605,"d":"6.05%"}},{"$f":"Actif!$E$32/100","v":{"v":0.47350000000000003,"d":"47.35%"}},{"$f":"Actif!$E$33/100","v":{"v":0.0585,"d":"5.85%"}},{"$f":"Actif!$E$29/100","v":{"v":0.027999999999999997,"d":"2.80%"}}]
[null,"#355",53,2029,"F","A_CAPI",{"v":0.44999999999999996,"d":"0.45"},{"v":0.38999999999999996,"d":"0.39"},0.6,0.6,85,0,{"$f":"ROUND(Primes!$P$10*V6462,2)","v":0.68},0,{"v":14782.363842404151,"d":"14,782"},{"$f":"'BP Financier'!$F$44*(('BP Financier'!$C$22+'BP Financier'!$D$22+'BP Financier'!$E$22+'BP Financier'!$F$22)/('BP Financier'!$C$16+'BP Financier'!$C$19+'BP Financier'!$D$16+'BP Financier'!$D$19+'BP Financier'!$E$16+'BP Financier'!$E$19+'BP Financier'!$C$22+'BP Financier'!$D$22+'BP Financier'!$E$22+'BP Financier'!$F$22+'BP Financier'!$F$16+'BP Financier'!$F$19))*$V6462*X6462/(1-$W6462)","v":{"v":1881.5807703763371,"d":"1,882"}},{"$f":"'BP Financier'!$F$44*(('BP Financier'!$C$22+'BP Financier'!$D$22+'BP Financier'!$E$22+'BP Financier'!$F$22)/('BP Financier'!$C$16+'BP Financier'!$C$19+'BP Financier'!$D$16+'BP Financier'!$D$19+'BP Financier'!$E$16+'BP Financier'!$E$19+'BP Financier'!$C$22+'BP Financier'!$D$22+'BP Financier'!$E$22+'BP Financier'!$F$22+'BP Financier'!$F$16+'BP Financier'!$F$19))*$V6462*Y6462/(1-$W6462)","v":{"v":1257.8523382073854,"d":"1,258"}},{"$f":"'BP Financier'!$F$44*(('BP Financier'!$C$22+'BP Financier'!$D$22+'BP Financier'!$E$22+'BP Financier'!$F$22)/('BP Financier'!$C$16+'BP Financier'!$C$19+'BP Financier'!$D$16+'BP Financier'!$D$19+'BP Financier'!$E$16+'BP Financier'!$E$19+'BP Financier'!$C$22+'BP Financier'!$D$22+'BP Financier'!$E$22+'BP Financier'!$F$22+'BP Financier'!$F$16+'BP Financier'!$F$19))*$V6462*Z6462/(1-$W6462)","v":{"v":9844.513754399952,"d":"9,845"}},{"$f":"'BP Financier'!$F$44*(('BP Financier'!$C$22+'BP Financier'!$D$22+'BP Financier'!$E$22+'BP Financier'!$F$22)/('BP Financier'!$C$16+'BP Financier'!$C$19+'BP Financier'!$D$16+'BP Financier'!$D$19+'BP Financier'!$E$16+'BP Financier'!$E$19+'BP Financier'!$C$22+'BP Financier'!$D$22+'BP Financier'!$E$22+'BP Financier'!$F$22+'BP Financier'!$F$16+'BP Financier'!$F$19))*$V6462*AA6462/(1-$W6462)","v":{"v":1216.2704427294555,"d":"1,216"}},{"$f":"'BP Financier'!$F$44*(('BP Financier'!$C$22+'BP Financier'!$D$22+'BP Financier'!$E$22+'BP Financier'!$F$22)/('BP Financier'!$C$16+'BP Financier'!$C$19+'BP Financier'!$D$16+'BP Financier'!$D$19+'BP Financier'!$E$16+'BP Financier'!$E$19+'BP Financier'!$C$22+'BP Financier'!$D$22+'BP Financier'!$E$22+'BP Financier'!$F$22+'BP Financier'!$F$16+'BP Financier'!$F$19))*$V6462*AB6462/(1-$W6462)","v":{"v":582.1465366910213,"d":"582"}},null,{"v":0.0075,"d":"0.75%"},{"$f":"Actif!$E$28/100","v":{"v":0.28900000000000003,"d":"28.90%"}},{"$f":"Actif!$E$30/100","v":{"v":0.09050000000000001,"d":"9.05%"}},{"$f":"Actif!$E$31/100","v":{"v":0.0605,"d":"6.05%"}},{"$f":"Actif!$E$32/100","v":{"v":0.47350000000000003,"d":"47.35%"}},{"$f":"Actif!$E$33/100","v":{"v":0.0585,"d":"5.85%"}},{"$f":"Actif!$E$29/100","v":{"v":0.027999999999999997,"d":"2.80%"}}]
[null,"#356",53,2030,"F","A_CAPI",{"v":0.44999999999999996,"d":"0.45"},{"v":0.38999999999999996,"d":"0.39"},0.6,0.6,85,0,{"$f":"ROUND(Primes!$P$10*V6463,2)","v":0.68},0,{"v":14782.363842404151,"d":"14,782"},{"$f":"'BP Financier'!$F$44*(('BP Financier'!$C$22+'BP Financier'!$D$22+'BP Financier'!$E$22+'BP Financier'!$F$22)/('BP Financier'!$C$16+'BP Financier'!$C$19+'BP Financier'!$D$16+'BP Financier'!$D$19+'BP Financier'!$E$16+'BP Financier'!$E$19+'BP Financier'!$C$22+'BP Financier'!$D$22+'BP Financier'!$E$22+'BP Financier'!$F$22+'BP Financier'!$F$16+'BP Financier'!$F$19))*$V6463*X6463/(1-$W6463)","v":{"v":1881.5807703763371,"d":"1,882"}},{"$f":"'BP Financier'!$F$44*(('BP Financier'!$C$22+'BP Financier'!$D$22+'BP Financier'!$E$22+'BP Financier'!$F$22)/('BP Financier'!$C$16+'BP Financier'!$C$19+'BP Financier'!$D$16+'BP Financier'!$D$19+'BP Financier'!$E$16+'BP Financier'!$E$19+'BP Financier'!$C$22+'BP Financier'!$D$22+'BP Financier'!$E$22+'BP Financier'!$F$22+'BP Financier'!$F$16+'BP Financier'!$F$19))*$V6463*Y6463/(1-$W6463)","v":{"v":1257.8523382073854,"d":"1,258"}},{"$f":"'BP Financier'!$F$44*(('BP Financier'!$C$22+'BP Financier'!$D$22+'BP Financier'!$E$22+'BP Financier'!$F$22)/('BP Financier'!$C$16+'BP Financier'!$C$19+'BP Financier'!$D$16+'BP Financier'!$D$19+'BP Financier'!$E$16+'BP Financier'!$E$19+'BP Financier'!$C$22+'BP Financier'!$D$22+'BP Financier'!$E$22+'BP Financier'!$F$22+'BP Financier'!$F$16+'BP Financier'!$F$19))*$V6463*Z6463/(1-$W6463)","v":{"v":9844.513754399952,"d":"9,845"}},{"$f":"'BP Financier'!$F$44*(('BP Financier'!$C$22+'BP Financier'!$D$22+'BP Financier'!$E$22+'BP Financier'!$F$22)/('BP Financier'!$C$16+'BP Financier'!$C$19+'BP Financier'!$D$16+'BP Financier'!$D$19+'BP Financier'!$E$16+'BP Financier'!$E$19+'BP Financier'!$C$22+'BP Financier'!$D$22+'BP Financier'!$E$22+'BP Financier'!$F$22+'BP Financier'!$F$16+'BP Financier'!$F$19))*$V6463*AA6463/(1-$W6463)","v":{"v":1216.2704427294555,"d":"1,216"}},{"$f":"'BP Financier'!$F$44*(('BP Financier'!$C$22+'BP Financier'!$D$22+'BP Financier'!$E$22+'BP Financier'!$F$22)/('BP Financier'!$C$16+'BP Financier'!$C$19+'BP Financier'!$D$16+'BP Financier'!$D$19+'BP Financier'!$E$16+'BP Financier'!$E$19+'BP Financier'!$C$22+'BP Financier'!$D$22+'BP Financier'!$E$22+'BP Financier'!$F$22+'BP Financier'!$F$16+'BP Financier'!$F$19))*$V6463*AB6463/(1-$W6463)","v":{"v":582.1465366910213,"d":"582"}},null,{"v":0.0075,"d":"0.75%"},{"$f":"Actif!$E$28/100","v":{"v":0.28900000000000003,"d":"28.90%"}},{"$f":"Actif!$E$30/100","v":{"v":0.09050000000000001,"d":"9.05%"}},{"$f":"Actif!$E$31/100","v":{"v":0.0605,"d":"6.05%"}},{"$f":"Actif!$E$32/100","v":{"v":0.47350000000000003,"d":"47.35%"}},{"$f":"Actif!$E$33/100","v":{"v":0.0585,"d":"5.85%"}},{"$f":"Actif!$E$29/100","v":{"v":0.027999999999999997,"d":"2.80%"}}]
[null,"#357",54,2026,"H","A_CAPI",{"v":0.44999999999999996,"d":"0.45"},{"v":0.38999999999999996,"d":"0.39"},0.6,0.6,85,0,{"$f":"ROUND(Primes!$P$10*V6464,2)","v":0.68},0,{"v":14782.363842404151,"d":"14,782"},{"$f":"'BP Financier'!$F$44*(('BP Financier'!$C$22+'BP Financier'!$D$22+'BP Financier'!$E$22+'BP Financier'!$F$22)/('BP Financier'!$C$16+'BP Financier'!$C$19+'BP Financier'!$D$16+'BP Financier'!$D$19+'BP Financier'!$E$16+'BP Financier'!$E$19+'BP Financier'!$C$22+'BP Financier'!$D$22+'BP Financier'!$E$22+'BP Financier'!$F$22+'BP Financier'!$F$16+'BP Financier'!$F$19))*$V6464*X6464/(1-$W6464)","v":{"v":1881.5807703763371,"d":"1,882"}},{"$f":"'BP Financier'!$F$44*(('BP Financier'!$C$22+'BP Financier'!$D$22+'BP Financier'!$E$22+'BP Financier'!$F$22)/('BP Financier'!$C$16+'BP Financier'!$C$19+'BP Financier'!$D$16+'BP Financier'!$D$19+'BP Financier'!$E$16+'BP Financier'!$E$19+'BP Financier'!$C$22+'BP Financier'!$D$22+'BP Financier'!$E$22+'BP Financier'!$F$22+'BP Financier'!$F$16+'BP Financier'!$F$19))*$V6464*Y6464/(1-$W6464)","v":{"v":1257.8523382073854,"d":"1,258"}},{"$f":"'BP Financier'!$F$44*(('BP Financier'!$C$22+'BP Financier'!$D$22+'BP Financier'!$E$22+'BP Financier'!$F$22)/('BP Financier'!$C$16+'BP Financier'!$C$19+'BP Financier'!$D$16+'BP Financier'!$D$19+'BP Financier'!$E$16+'BP Financier'!$E$19+'BP Financier'!$C$22+'BP Financier'!$D$22+'BP Financier'!$E$22+'BP Financier'!$F$22+'BP Financier'!$F$16+'BP Financier'!$F$19))*$V6464*Z6464/(1-$W6464)","v":{"v":9844.513754399952,"d":"9,845"}},{"$f":"'BP Financier'!$F$44*(('BP Financier'!$C$22+'BP Financier'!$D$22+'BP Financier'!$E$22+'BP Financier'!$F$22)/('BP Financier'!$C$16+'BP Financier'!$C$19+'BP Financier'!$D$16+'BP Financier'!$D$19+'BP Financier'!$E$16+'BP Financier'!$E$19+'BP Financier'!$C$22+'BP Financier'!$D$22+'BP Financier'!$E$22+'BP Financier'!$F$22+'BP Financier'!$F$16+'BP Financier'!$F$19))*$V6464*AA6464/(1-$W6464)","v":{"v":1216.2704427294555,"d":"1,216"}},{"$f":"'BP Financier'!$F$44*(('BP Financier'!$C$22+'BP Financier'!$D$22+'BP Financier'!$E$22+'BP Financier'!$F$22)/('BP Financier'!$C$16+'BP Financier'!$C$19+'BP Financier'!$D$16+'BP Financier'!$D$19+'BP Financier'!$E$16+'BP Financier'!$E$19+'BP Financier'!$C$22+'BP Financier'!$D$22+'BP Financier'!$E$22+'BP Financier'!$F$22+'BP Financier'!$F$16+'BP Financier'!$F$19))*$V6464*AB6464/(1-$W6464)","v":{"v":582.1465366910213,"d":"582"}},null,{"v":0.0075,"d":"0.75%"},{"$f":"Actif!$E$28/100","v":{"v":0.28900000000000003,"d":"28.90%"}},{"$f":"Actif!$E$30/100","v":{"v":0.09050000000000001,"d":"9.05%"}},{"$f":"Actif!$E$31/100","v":{"v":0.0605,"d":"6.05%"}},{"$f":"Actif!$E$32/100","v":{"v":0.47350000000000003,"d":"47.35%"}},{"$f":"Actif!$E$33/100","v":{"v":0.0585,"d":"5.85%"}},{"$f":"Actif!$E$29/100","v":{"v":0.027999999999999997,"d":"2.80%"}}]
[null,"#358",54,2028,"H","A_CAPI",{"v":0.44999999999999996,"d":"0.45"},{"v":0.38999999999999996,"d":"0.39"},0.6,0.6,85,0,{"$f":"ROUND(Primes!$P$10*V6465,2)","v":0.68},0,{"v":14782.363842404151,"d":"14,782"},{"$f":"'BP Financier'!$F$44*(('BP Financier'!$C$22+'BP Financier'!$D$22+'BP Financier'!$E$22+'BP Financier'!$F$22)/('BP Financier'!$C$16+'BP Financier'!$C$19+'BP Financier'!$D$16+'BP Financier'!$D$19+'BP Financier'!$E$16+'BP Financier'!$E$19+'BP Financier'!$C$22+'BP Financier'!$D$22+'BP Financier'!$E$22+'BP Financier'!$F$22+'BP Financier'!$F$16+'BP Financier'!$F$19))*$V6465*X6465/(1-$W6465)","v":{"v":1881.5807703763371,"d":"1,882"}},{"$f":"'BP Financier'!$F$44*(('BP Financier'!$C$22+'BP Financier'!$D$22+'BP Financier'!$E$22+'BP Financier'!$F$22)/('BP Financier'!$C$16+'BP Financier'!$C$19+'BP Financier'!$D$16+'BP Financier'!$D$19+'BP Financier'!$E$16+'BP Financier'!$E$19+'BP Financier'!$C$22+'BP Financier'!$D$22+'BP Financier'!$E$22+'BP Financier'!$F$22+'BP Financier'!$F$16+'BP Financier'!$F$19))*$V6465*Y6465/(1-$W6465)","v":{"v":1257.8523382073854,"d":"1,258"}},{"$f":"'BP Financier'!$F$44*(('BP Financier'!$C$22+'BP Financier'!$D$22+'BP Financier'!$E$22+'BP Financier'!$F$22)/('BP Financier'!$C$16+'BP Financier'!$C$19+'BP Financier'!$D$16+'BP Financier'!$D$19+'BP Financier'!$E$16+'BP Financier'!$E$19+'BP Financier'!$C$22+'BP Financier'!$D$22+'BP Financier'!$E$22+'BP Financier'!$F$22+'BP Financier'!$F$16+'BP Financier'!$F$19))*$V6465*Z6465/(1-$W6465)","v":{"v":9844.513754399952,"d":"9,845"}},{"$f":"'BP Financier'!$F$44*(('BP Financier'!$C$22+'BP Financier'!$D$22+'BP Financier'!$E$22+'BP Financier'!$F$22)/('BP Financier'!$C$16+'BP Financier'!$C$19+'BP Financier'!$D$16+'BP Financier'!$D$19+'BP Financier'!$E$16+'BP Financier'!$E$19+'BP Financier'!$C$22+'BP Financier'!$D$22+'BP Financier'!$E$22+'BP Financier'!$F$22+'BP Financier'!$F$16+'BP Financier'!$F$19))*$V6465*AA6465/(1-$W6465)","v":{"v":1216.2704427294555,"d":"1,216"}},{"$f":"'BP Financier'!$F$44*(('BP Financier'!$C$22+'BP Financier'!$D$22+'BP Financier'!$E$22+'BP Financier'!$F$22)/('BP Financier'!$C$16+'BP Financier'!$C$19+'BP Financier'!$D$16+'BP Financier'!$D$19+'BP Financier'!$E$16+'BP Financier'!$E$19+'BP Financier'!$C$22+'BP Financier'!$D$22+'BP Financier'!$E$22+'BP Financier'!$F$22+'BP Financier'!$F$16+'BP Financier'!$F$19))*$V6465*AB6465/(1-$W6465)","v":{"v":582.1465366910213,"d":"582"}},null,{"v":0.0075,"d":"0.75%"},{"$f":"Actif!$E$28/100","v":{"v":0.28900000000000003,"d":"28.90%"}},{"$f":"Actif!$E$30/100","v":{"v":0.09050000000000001,"d":"9.05%"}},{"$f":"Actif!$E$31/100","v":{"v":0.0605,"d":"6.05%"}},{"$f":"Actif!$E$32/100","v":{"v":0.47350000000000003,"d":"47.35%"}},{"$f":"Actif!$E$33/100","v":{"v":0.0585,"d":"5.85%"}},{"$f":"Actif!$E$29/100","v":{"v":0.027999999999999997,"d":"2.80%"}}]
[null,"#359",54,2029,"H","A_CAPI",{"v":0.44999999999999996,"d":"0.45"},{"v":0.38999999999999996,"d":"0.39"},0.6,0.6,85,0,{"$f":"ROUND(Primes!$P$10*V6466,2)","v":0.68},0,{"v":14782.363842404151,"d":"14,782"},{"$f":"'BP Financier'!$F$44*(('BP Financier'!$C$22+'BP Financier'!$D$22+'BP Financier'!$E$22+'BP Financier'!$F$22)/('BP Financier'!$C$16+'BP Financier'!$C$19+'BP Financier'!$D$16+'BP Financier'!$D$19+'BP Financier'!$E$16+'BP Financier'!$E$19+'BP Financier'!$C$22+'BP Financier'!$D$22+'BP Financier'!$E$22+'BP Financier'!$F$22+'BP Financier'!$F$16+'BP Financier'!$F$19))*$V6466*X6466/(1-$W6466)","v":{"v":1881.5807703763371,"d":"1,882"}},{"$f":"'BP Financier'!$F$44*(('BP Financier'!$C$22+'BP Financier'!$D$22+'BP Financier'!$E$22+'BP Financier'!$F$22)/('BP Financier'!$C$16+'BP Financier'!$C$19+'BP Financier'!$D$16+'BP Financier'!$D$19+'BP Financier'!$E$16+'BP Financier'!$E$19+'BP Financier'!$C$22+'BP Financier'!$D$22+'BP Financier'!$E$22+'BP Financier'!$F$22+'BP Financier'!$F$16+'BP Financier'!$F$19))*$V6466*Y6466/(1-$W6466)","v":{"v":1257.8523382073854,"d":"1,258"}},{"$f":"'BP Financier'!$F$44*(('BP Financier'!$C$22+'BP Financier'!$D$22+'BP Financier'!$E$22+'BP Financier'!$F$22)/('BP Financier'!$C$16+'BP Financier'!$C$19+'BP Financier'!$D$16+'BP Financier'!$D$19+'BP Financier'!$E$16+'BP Financier'!$E$19+'BP Financier'!$C$22+'BP Financier'!$D$22+'BP Financier'!$E$22+'BP Financier'!$F$22+'BP Financier'!$F$16+'BP Financier'!$F$19))*$V6466*Z6466/(1-$W6466)","v":{"v":9844.513754399952,"d":"9,845"}},{"$f":"'BP Financier'!$F$44*(('BP Financier'!$C$22+'BP Financier'!$D$22+'BP Financier'!$E$22+'BP Financier'!$F$22)/('BP Financier'!$C$16+'BP Financier'!$C$19+'BP Financier'!$D$16+'BP Financier'!$D$19+'BP Financier'!$E$16+'BP Financier'!$E$19+'BP Financier'!$C$22+'BP Financier'!$D$22+'BP Financier'!$E$22+'BP Financier'!$F$22+'BP Financier'!$F$16+'BP Financier'!$F$19))*$V6466*AA6466/(1-$W6466)","v":{"v":1216.2704427294555,"d":"1,216"}},{"$f":"'BP Financier'!$F$44*(('BP Financier'!$C$22+'BP Financier'!$D$22+'BP Financier'!$E$22+'BP Financier'!$F$22)/('BP Financier'!$C$16+'BP Financier'!$C$19+'BP Financier'!$D$16+'BP Financier'!$D$19+'BP Financier'!$E$16+'BP Financier'!$E$19+'BP Financier'!$C$22+'BP Financier'!$D$22+'BP Financier'!$E$22+'BP Financier'!$F$22+'BP Financier'!$F$16+'BP Financier'!$F$19))*$V6466*AB6466/(1-$W6466)","v":{"v":582.1465366910213,"d":"582"}},null,{"v":0.0075,"d":"0.75%"},{"$f":"Actif!$E$28/100","v":{"v":0.28900000000000003,"d":"28.90%"}},{"$f":"Actif!$E$30/100","v":{"v":0.09050000000000001,"d":"9.05%"}},{"$f":"Actif!$E$31/100","v":{"v":0.0605,"d":"6.05%"}},{"$f":"Actif!$E$32/100","v":{"v":0.47350000000000003,"d":"47.35%"}},{"$f":"Actif!$E$33/100","v":{"v":0.0585,"d":"5.85%"}},{"$f":"Actif!$E$29/100","v":{"v":0.027999999999999997,"d":"2.80%"}}]
[null,"#360",54,2030,"H","A_CAPI",{"v":0.44999999999999996,"d":"0.45"},{"v":0.38999999999999996,"d":"0.39"},0.6,0.6,85,0,{"$f":"ROUND(Primes!$P$10*V6467,2)","v":0.68},0,{"v":14782.363842404151,"d":"14,782"},{"$f":"'BP Financier'!$F$44*(('BP Financier'!$C$22+'BP Financier'!$D$22+'BP Financier'!$E$22+'BP Financier'!$F$22)/('BP Financier'!$C$16+'BP Financier'!$C$19+'BP Financier'!$D$16+'BP Financier'!$D$19+'BP Financier'!$E$16+'BP Financier'!$E$19+'BP Financier'!$C$22+'BP Financier'!$D$22+'BP Financier'!$E$22+'BP Financier'!$F$22+'BP Financier'!$F$16+'BP Financier'!$F$19))*$V6467*X6467/(1-$W6467)","v":{"v":1881.5807703763371,"d":"1,882"}},{"$f":"'BP Financier'!$F$44*(('BP Financier'!$C$22+'BP Financier'!$D$22+'BP Financier'!$E$22+'BP Financier'!$F$22)/('BP Financier'!$C$16+'BP Financier'!$C$19+'BP Financier'!$D$16+'BP Financier'!$D$19+'BP Financier'!$E$16+'BP Financier'!$E$19+'BP Financier'!$C$22+'BP Financier'!$D$22+'BP Financier'!$E$22+'BP Financier'!$F$22+'BP Financier'!$F$16+'BP Financier'!$F$19))*$V6467*Y6467/(1-$W6467)","v":{"v":1257.8523382073854,"d":"1,258"}},{"$f":"'BP Financier'!$F$44*(('BP Financier'!$C$22+'BP Financier'!$D$22+'BP Financier'!$E$22+'BP Financier'!$F$22)/('BP Financier'!$C$16+'BP Financier'!$C$19+'BP Financier'!$D$16+'BP Financier'!$D$19+'BP Financier'!$E$16+'BP Financier'!$E$19+'BP Financier'!$C$22+'BP Financier'!$D$22+'BP Financier'!$E$22+'BP Financier'!$F$22+'BP Financier'!$F$16+'BP Financier'!$F$19))*$V6467*Z6467/(1-$W6467)","v":{"v":9844.513754399952,"d":"9,845"}},{"$f":"'BP Financier'!$F$44*(('BP Financier'!$C$22+'BP Financier'!$D$22+'BP Financier'!$E$22+'BP Financier'!$F$22)/('BP Financier'!$C$16+'BP Financier'!$C$19+'BP Financier'!$D$16+'BP Financier'!$D$19+'BP Financier'!$E$16+'BP Financier'!$E$19+'BP Financier'!$C$22+'BP Financier'!$D$22+'BP Financier'!$E$22+'BP Financier'!$F$22+'BP Financier'!$F$16+'BP Financier'!$F$19))*$V6467*AA6467/(1-$W6467)","v":{"v":1216.2704427294555,"d":"1,216"}},{"$f":"'BP Financier'!$F$44*(('BP Financier'!$C$22+'BP Financier'!$D$22+'BP Financier'!$E$22+'BP Financier'!$F$22)/('BP Financier'!$C$16+'BP Financier'!$C$19+'BP Financier'!$D$16+'BP Financier'!$D$19+'BP Financier'!$E$16+'BP Financier'!$E$19+'BP Financier'!$C$22+'BP Financier'!$D$22+'BP Financier'!$E$22+'BP Financier'!$F$22+'BP Financier'!$F$16+'BP Financier'!$F$19))*$V6467*AB6467/(1-$W6467)","v":{"v":582.1465366910213,"d":"582"}},null,{"v":0.0075,"d":"0.75%"},{"$f":"Actif!$E$28/100","v":{"v":0.28900000000000003,"d":"28.90%"}},{"$f":"Actif!$E$30/100","v":{"v":0.09050000000000001,"d":"9.05%"}},{"$f":"Actif!$E$31/100","v":{"v":0.0605,"d":"6.05%"}},{"$f":"Actif!$E$32/100","v":{"v":0.47350000000000003,"d":"47.35%"}},{"$f":"Actif!$E$33/100","v":{"v":0.0585,"d":"5.85%"}},{"$f":"Actif!$E$29/100","v":{"v":0.027999999999999997,"d":"2.80%"}}]
[null,"#361",55,2026,"H","A_CAPI",{"v":0.44999999999999996,"d":"0.45"},{"v":0.38999999999999996,"d":"0.39"},0.6,0.6,85,0,{"$f":"ROUND(Primes!$P$10*V6468,2)","v":0.68},0,{"v":14782.363842404151,"d":"14,782"},{"$f":"'BP Financier'!$F$44*(('BP Financier'!$C$22+'BP Financier'!$D$22+'BP Financier'!$E$22+'BP Financier'!$F$22)/('BP Financier'!$C$16+'BP Financier'!$C$19+'BP Financier'!$D$16+'BP Financier'!$D$19+'BP Financier'!$E$16+'BP Financier'!$E$19+'BP Financier'!$C$22+'BP Financier'!$D$22+'BP Financier'!$E$22+'BP Financier'!$F$22+'BP Financier'!$F$16+'BP Financier'!$F$19))*$V6468*X6468/(1-$W6468)","v":{"v":1881.5807703763371,"d":"1,882"}},{"$f":"'BP Financier'!$F$44*(('BP Financier'!$C$22+'BP Financier'!$D$22+'BP Financier'!$E$22+'BP Financier'!$F$22)/('BP Financier'!$C$16+'BP Financier'!$C$19+'BP Financier'!$D$16+'BP Financier'!$D$19+'BP Financier'!$E$16+'BP Financier'!$E$19+'BP Financier'!$C$22+'BP Financier'!$D$22+'BP Financier'!$E$22+'BP Financier'!$F$22+'BP Financier'!$F$16+'BP Financier'!$F$19))*$V6468*Y6468/(1-$W6468)","v":{"v":1257.8523382073854,"d":"1,258"}},{"$f":"'BP Financier'!$F$44*(('BP Financier'!$C$22+'BP Financier'!$D$22+'BP Financier'!$E$22+'BP Financier'!$F$22)/('BP Financier'!$C$16+'BP Financier'!$C$19+'BP Financier'!$D$16+'BP Financier'!$D$19+'BP Financier'!$E$16+'BP Financier'!$E$19+'BP Financier'!$C$22+'BP Financier'!$D$22+'BP Financier'!$E$22+'BP Financier'!$F$22+'BP Financier'!$F$16+'BP Financier'!$F$19))*$V6468*Z6468/(1-$W6468)","v":{"v":9844.513754399952,"d":"9,845"}},{"$f":"'BP Financier'!$F$44*(('BP Financier'!$C$22+'BP Financier'!$D$22+'BP Financier'!$E$22+'BP Financier'!$F$22)/('BP Financier'!$C$16+'BP Financier'!$C$19+'BP Financier'!$D$16+'BP Financier'!$D$19+'BP Financier'!$E$16+'BP Financier'!$E$19+'BP Financier'!$C$22+'BP Financier'!$D$22+'BP Financier'!$E$22+'BP Financier'!$F$22+'BP Financier'!$F$16+'BP Financier'!$F$19))*$V6468*AA6468/(1-$W6468)","v":{"v":1216.2704427294555,"d":"1,216"}},{"$f":"'BP Financier'!$F$44*(('BP Financier'!$C$22+'BP Financier'!$D$22+'BP Financier'!$E$22+'BP Financier'!$F$22)/('BP Financier'!$C$16+'BP Financier'!$C$19+'BP Financier'!$D$16+'BP Financier'!$D$19+'BP Financier'!$E$16+'BP Financier'!$E$19+'BP Financier'!$C$22+'BP Financier'!$D$22+'BP Financier'!$E$22+'BP Financier'!$F$22+'BP Financier'!$F$16+'BP Financier'!$F$19))*$V6468*AB6468/(1-$W6468)","v":{"v":582.1465366910213,"d":"582"}},null,{"v":0.0075,"d":"0.75%"},{"$f":"Actif!$E$28/100","v":{"v":0.28900000000000003,"d":"28.90%"}},{"$f":"Actif!$E$30/100","v":{"v":0.09050000000000001,"d":"9.05%"}},{"$f":"Actif!$E$31/100","v":{"v":0.0605,"d":"6.05%"}},{"$f":"Actif!$E$32/100","v":{"v":0.47350000000000003,"d":"47.35%"}},{"$f":"Actif!$E$33/100","v":{"v":0.0585,"d":"5.85%"}},{"$f":"Actif!$E$29/100","v":{"v":0.027999999999999997,"d":"2.80%"}}]
[null,"#362",55,2028,"H","A_CAPI",{"v":0.44999999999999996,"d":"0.45"},{"v":0.38999999999999996,"d":"0.39"},0.6,0.6,85,0,{"$f":"ROUND(Primes!$P$10*V6469,2)","v":0.68},0,{"v":14782.363842404151,"d":"14,782"},{"$f":"'BP Financier'!$F$44*(('BP Financier'!$C$22+'BP Financier'!$D$22+'BP Financier'!$E$22+'BP Financier'!$F$22)/('BP Financier'!$C$16+'BP Financier'!$C$19+'BP Financier'!$D$16+'BP Financier'!$D$19+'BP Financier'!$E$16+'BP Financier'!$E$19+'BP Financier'!$C$22+'BP Financier'!$D$22+'BP Financier'!$E$22+'BP Financier'!$F$22+'BP Financier'!$F$16+'BP Financier'!$F$19))*$V6469*X6469/(1-$W6469)","v":{"v":1881.5807703763371,"d":"1,882"}},{"$f":"'BP Financier'!$F$44*(('BP Financier'!$C$22+'BP Financier'!$D$22+'BP Financier'!$E$22+'BP Financier'!$F$22)/('BP Financier'!$C$16+'BP Financier'!$C$19+'BP Financier'!$D$16+'BP Financier'!$D$19+'BP Financier'!$E$16+'BP Financier'!$E$19+'BP Financier'!$C$22+'BP Financier'!$D$22+'BP Financier'!$E$22+'BP Financier'!$F$22+'BP Financier'!$F$16+'BP Financier'!$F$19))*$V6469*Y6469/(1-$W6469)","v":{"v":1257.8523382073854,"d":"1,258"}},{"$f":"'BP Financier'!$F$44*(('BP Financier'!$C$22+'BP Financier'!$D$22+'BP Financier'!$E$22+'BP Financier'!$F$22)/('BP Financier'!$C$16+'BP Financier'!$C$19+'BP Financier'!$D$16+'BP Financier'!$D$19+'BP Financier'!$E$16+'BP Financier'!$E$19+'BP Financier'!$C$22+'BP Financier'!$D$22+'BP Financier'!$E$22+'BP Financier'!$F$22+'BP Financier'!$F$16+'BP Financier'!$F$19))*$V6469*Z6469/(1-$W6469)","v":{"v":9844.513754399952,"d":"9,845"}},{"$f":"'BP Financier'!$F$44*(('BP Financier'!$C$22+'BP Financier'!$D$22+'BP Financier'!$E$22+'BP Financier'!$F$22)/('BP Financier'!$C$16+'BP Financier'!$C$19+'BP Financier'!$D$16+'BP Financier'!$D$19+'BP Financier'!$E$16+'BP Financier'!$E$19+'BP Financier'!$C$22+'BP Financier'!$D$22+'BP Financier'!$E$22+'BP Financier'!$F$22+'BP Financier'!$F$16+'BP Financier'!$F$19))*$V6469*AA6469/(1-$W6469)","v":{"v":1216.2704427294555,"d":"1,216"}},{"$f":"'BP Financier'!$F$44*(('BP Financier'!$C$22+'BP Financier'!$D$22+'BP Financier'!$E$22+'BP Financier'!$F$22)/('BP Financier'!$C$16+'BP Financier'!$C$19+'BP Financier'!$D$16+'BP Financier'!$D$19+'BP Financier'!$E$16+'BP Financier'!$E$19+'BP Financier'!$C$22+'BP Financier'!$D$22+'BP Financier'!$E$22+'BP Financier'!$F$22+'BP Financier'!$F$16+'BP Financier'!$F$19))*$V6469*AB6469/(1-$W6469)","v":{"v":582.1465366910213,"d":"582"}},null,{"v":0.0075,"d":"0.75%"},{"$f":"Actif!$E$28/100","v":{"v":0.28900000000000003,"d":"28.90%"}},{"$f":"Actif!$E$30/100","v":{"v":0.09050000000000001,"d":"9.05%"}},{"$f":"Actif!$E$31/100","v":{"v":0.0605,"d":"6.05%"}},{"$f":"Actif!$E$32/100","v":{"v":0.47350000000000003,"d":"47.35%"}},{"$f":"Actif!$E$33/100","v":{"v":0.0585,"d":"5.85%"}},{"$f":"Actif!$E$29/100","v":{"v":0.027999999999999997,"d":"2.80%"}}]
[null,"#363",55,2029,"H","A_CAPI",{"v":0.44999999999999996,"d":"0.45"},{"v":0.38999999999999996,"d":"0.39"},0.6,0.6,85,0,{"$f":"ROUND(Primes!$P$10*V6470,2)","v":0.68},0,{"v":14782.363842404151,"d":"14,782"},{"$f":"'BP Financier'!$F$44*(('BP Financier'!$C$22+'BP Financier'!$D$22+'BP Financier'!$E$22+'BP Financier'!$F$22)/('BP Financier'!$C$16+'BP Financier'!$C$19+'BP Financier'!$D$16+'BP Financier'!$D$19+'BP Financier'!$E$16+'BP Financier'!$E$19+'BP Financier'!$C$22+'BP Financier'!$D$22+'BP Financier'!$E$22+'BP Financier'!$F$22+'BP Financier'!$F$16+'BP Financier'!$F$19))*$V6470*X6470/(1-$W6470)","v":{"v":1881.5807703763371,"d":"1,882"}},{"$f":"'BP Financier'!$F$44*(('BP Financier'!$C$22+'BP Financier'!$D$22+'BP Financier'!$E$22+'BP Financier'!$F$22)/('BP Financier'!$C$16+'BP Financier'!$C$19+'BP Financier'!$D$16+'BP Financier'!$D$19+'BP Financier'!$E$16+'BP Financier'!$E$19+'BP Financier'!$C$22+'BP Financier'!$D$22+'BP Financier'!$E$22+'BP Financier'!$F$22+'BP Financier'!$F$16+'BP Financier'!$F$19))*$V6470*Y6470/(1-$W6470)","v":{"v":1257.8523382073854,"d":"1,258"}},{"$f":"'BP Financier'!$F$44*(('BP Financier'!$C$22+'BP Financier'!$D$22+'BP Financier'!$E$22+'BP Financier'!$F$22)/('BP Financier'!$C$16+'BP Financier'!$C$19+'BP Financier'!$D$16+'BP Financier'!$D$19+'BP Financier'!$E$16+'BP Financier'!$E$19+'BP Financier'!$C$22+'BP Financier'!$D$22+'BP Financier'!$E$22+'BP Financier'!$F$22+'BP Financier'!$F$16+'BP Financier'!$F$19))*$V6470*Z6470/(1-$W6470)","v":{"v":9844.513754399952,"d":"9,845"}},{"$f":"'BP Financier'!$F$44*(('BP Financier'!$C$22+'BP Financier'!$D$22+'BP Financier'!$E$22+'BP Financier'!$F$22)/('BP Financier'!$C$16+'BP Financier'!$C$19+'BP Financier'!$D$16+'BP Financier'!$D$19+'BP Financier'!$E$16+'BP Financier'!$E$19+'BP Financier'!$C$22+'BP Financier'!$D$22+'BP Financier'!$E$22+'BP Financier'!$F$22+'BP Financier'!$F$16+'BP Financier'!$F$19))*$V6470*AA6470/(1-$W6470)","v":{"v":1216.2704427294555,"d":"1,216"}},{"$f":"'BP Financier'!$F$44*(('BP Financier'!$C$22+'BP Financier'!$D$22+'BP Financier'!$E$22+'BP Financier'!$F$22)/('BP Financier'!$C$16+'BP Financier'!$C$19+'BP Financier'!$D$16+'BP Financier'!$D$19+'BP Financier'!$E$16+'BP Financier'!$E$19+'BP Financier'!$C$22+'BP Financier'!$D$22+'BP Financier'!$E$22+'BP Financier'!$F$22+'BP Financier'!$F$16+'BP Financier'!$F$19))*$V6470*AB6470/(1-$W6470)","v":{"v":582.1465366910213,"d":"582"}},null,{"v":0.0075,"d":"0.75%"},{"$f":"Actif!$E$28/100","v":{"v":0.28900000000000003,"d":"28.90%"}},{"$f":"Actif!$E$30/100","v":{"v":0.09050000000000001,"d":"9.05%"}},{"$f":"Actif!$E$31/100","v":{"v":0.0605,"d":"6.05%"}},{"$f":"Actif!$E$32/100","v":{"v":0.47350000000000003,"d":"47.35%"}},{"$f":"Actif!$E$33/100","v":{"v":0.0585,"d":"5.85%"}},{"$f":"Actif!$E$29/100","v":{"v":0.027999999999999997,"d":"2.80%"}}]
[null,"#364",55,2030,"H","A_CAPI",{"v":0.44999999999999996,"d":"0.45"},{"v":0.38999999999999996,"d":"0.39"},0.6,0.6,85,0,{"$f":"ROUND(Primes!$P$10*V6471,2)","v":0.68},0,{"v":14782.363842404151,"d":"14,782"},{"$f":"'BP Financier'!$F$44*(('BP Financier'!$C$22+'BP Financier'!$D$22+'BP Financier'!$E$22+'BP Financier'!$F$22)/('BP Financier'!$C$16+'BP Financier'!$C$19+'BP Financier'!$D$16+'BP Financier'!$D$19+'BP Financier'!$E$16+'BP Financier'!$E$19+'BP Financier'!$C$22+'BP Financier'!$D$22+'BP Financier'!$E$22+'BP Financier'!$F$22+'BP Financier'!$F$16+'BP Financier'!$F$19))*$V6471*X6471/(1-$W6471)","v":{"v":1881.5807703763371,"d":"1,882"}},{"$f":"'BP Financier'!$F$44*(('BP Financier'!$C$22+'BP Financier'!$D$22+'BP Financier'!$E$22+'BP Financier'!$F$22)/('BP Financier'!$C$16+'BP Financier'!$C$19+'BP Financier'!$D$16+'BP Financier'!$D$19+'BP Financier'!$E$16+'BP Financier'!$E$19+'BP Financier'!$C$22+'BP Financier'!$D$22+'BP Financier'!$E$22+'BP Financier'!$F$22+'BP Financier'!$F$16+'BP Financier'!$F$19))*$V6471*Y6471/(1-$W6471)","v":{"v":1257.8523382073854,"d":"1,258"}},{"$f":"'BP Financier'!$F$44*(('BP Financier'!$C$22+'BP Financier'!$D$22+'BP Financier'!$E$22+'BP Financier'!$F$22)/('BP Financier'!$C$16+'BP Financier'!$C$19+'BP Financier'!$D$16+'BP Financier'!$D$19+'BP Financier'!$E$16+'BP Financier'!$E$19+'BP Financier'!$C$22+'BP Financier'!$D$22+'BP Financier'!$E$22+'BP Financier'!$F$22+'BP Financier'!$F$16+'BP Financier'!$F$19))*$V6471*Z6471/(1-$W6471)","v":{"v":9844.513754399952,"d":"9,845"}},{"$f":"'BP Financier'!$F$44*(('BP Financier'!$C$22+'BP Financier'!$D$22+'BP Financier'!$E$22+'BP Financier'!$F$22)/('BP Financier'!$C$16+'BP Financier'!$C$19+'BP Financier'!$D$16+'BP Financier'!$D$19+'BP Financier'!$E$16+'BP Financier'!$E$19+'BP Financier'!$C$22+'BP Financier'!$D$22+'BP Financier'!$E$22+'BP Financier'!$F$22+'BP Financier'!$F$16+'BP Financier'!$F$19))*$V6471*AA6471/(1-$W6471)","v":{"v":1216.2704427294555,"d":"1,216"}},{"$f":"'BP Financier'!$F$44*(('BP Financier'!$C$22+'BP Financier'!$D$22+'BP Financier'!$E$22+'BP Financier'!$F$22)/('BP Financier'!$C$16+'BP Financier'!$C$19+'BP Financier'!$D$16+'BP Financier'!$D$19+'BP Financier'!$E$16+'BP Financier'!$E$19+'BP Financier'!$C$22+'BP Financier'!$D$22+'BP Financier'!$E$22+'BP Financier'!$F$22+'BP Financier'!$F$16+'BP Financier'!$F$19))*$V6471*AB6471/(1-$W6471)","v":{"v":582.1465366910213,"d":"582"}},null,{"v":0.0075,"d":"0.75%"},{"$f":"Actif!$E$28/100","v":{"v":0.28900000000000003,"d":"28.90%"}},{"$f":"Actif!$E$30/100","v":{"v":0.09050000000000001,"d":"9.05%"}},{"$f":"Actif!$E$31/100","v":{"v":0.0605,"d":"6.05%"}},{"$f":"Actif!$E$32/100","v":{"v":0.47350000000000003,"d":"47.35%"}},{"$f":"Actif!$E$33/100","v":{"v":0.0585,"d":"5.85%"}},{"$f":"Actif!$E$29/100","v":{"v":0.027999999999999997,"d":"2.80%"}}]
[null,"#365",56,2026,"F","A_CAPI",{"v":0.44999999999999996,"d":"0.45"},{"v":0.38999999999999996,"d":"0.39"},0.6,0.6,85,0,{"$f":"ROUND(Primes!$P$10*V6472,2)","v":0.68},0,{"v":14782.363842404151,"d":"14,782"},{"$f":"'BP Financier'!$F$44*(('BP Financier'!$C$22+'BP Financier'!$D$22+'BP Financier'!$E$22+'BP Financier'!$F$22)/('BP Financier'!$C$16+'BP Financier'!$C$19+'BP Financier'!$D$16+'BP Financier'!$D$19+'BP Financier'!$E$16+'BP Financier'!$E$19+'BP Financier'!$C$22+'BP Financier'!$D$22+'BP Financier'!$E$22+'BP Financier'!$F$22+'BP Financier'!$F$16+'BP Financier'!$F$19))*$V6472*X6472/(1-$W6472)","v":{"v":1881.5807703763371,"d":"1,882"}},{"$f":"'BP Financier'!$F$44*(('BP Financier'!$C$22+'BP Financier'!$D$22+'BP Financier'!$E$22+'BP Financier'!$F$22)/('BP Financier'!$C$16+'BP Financier'!$C$19+'BP Financier'!$D$16+'BP Financier'!$D$19+'BP Financier'!$E$16+'BP Financier'!$E$19+'BP Financier'!$C$22+'BP Financier'!$D$22+'BP Financier'!$E$22+'BP Financier'!$F$22+'BP Financier'!$F$16+'BP Financier'!$F$19))*$V6472*Y6472/(1-$W6472)","v":{"v":1257.8523382073854,"d":"1,258"}},{"$f":"'BP Financier'!$F$44*(('BP Financier'!$C$22+'BP Financier'!$D$22+'BP Financier'!$E$22+'BP Financier'!$F$22)/('BP Financier'!$C$16+'BP Financier'!$C$19+'BP Financier'!$D$16+'BP Financier'!$D$19+'BP Financier'!$E$16+'BP Financier'!$E$19+'BP Financier'!$C$22+'BP Financier'!$D$22+'BP Financier'!$E$22+'BP Financier'!$F$22+'BP Financier'!$F$16+'BP Financier'!$F$19))*$V6472*Z6472/(1-$W6472)","v":{"v":9844.513754399952,"d":"9,845"}},{"$f":"'BP Financier'!$F$44*(('BP Financier'!$C$22+'BP Financier'!$D$22+'BP Financier'!$E$22+'BP Financier'!$F$22)/('BP Financier'!$C$16+'BP Financier'!$C$19+'BP Financier'!$D$16+'BP Financier'!$D$19+'BP Financier'!$E$16+'BP Financier'!$E$19+'BP Financier'!$C$22+'BP Financier'!$D$22+'BP Financier'!$E$22+'BP Financier'!$F$22+'BP Financier'!$F$16+'BP Financier'!$F$19))*$V6472*AA6472/(1-$W6472)","v":{"v":1216.2704427294555,"d":"1,216"}},{"$f":"'BP Financier'!$F$44*(('BP Financier'!$C$22+'BP Financier'!$D$22+'BP Financier'!$E$22+'BP Financier'!$F$22)/('BP Financier'!$C$16+'BP Financier'!$C$19+'BP Financier'!$D$16+'BP Financier'!$D$19+'BP Financier'!$E$16+'BP Financier'!$E$19+'BP Financier'!$C$22+'BP Financier'!$D$22+'BP Financier'!$E$22+'BP Financier'!$F$22+'BP Financier'!$F$16+'BP Financier'!$F$19))*$V6472*AB6472/(1-$W6472)","v":{"v":582.1465366910213,"d":"582"}},null,{"v":0.0075,"d":"0.75%"},{"$f":"Actif!$E$28/100","v":{"v":0.28900000000000003,"d":"28.90%"}},{"$f":"Actif!$E$30/100","v":{"v":0.09050000000000001,"d":"9.05%"}},{"$f":"Actif!$E$31/100","v":{"v":0.0605,"d":"6.05%"}},{"$f":"Actif!$E$32/100","v":{"v":0.47350000000000003,"d":"47.35%"}},{"$f":"Actif!$E$33/100","v":{"v":0.0585,"d":"5.85%"}},{"$f":"Actif!$E$29/100","v":{"v":0.027999999999999997,"d":"2.80%"}}]
[null,"#366",56,2028,"F","A_CAPI",{"v":0.44999999999999996,"d":"0.45"},{"v":0.38999999999999996,"d":"0.39"},0.6,0.6,85,0,{"$f":"ROUND(Primes!$P$10*V6473,2)","v":0.68},0,{"v":14782.363842404151,"d":"14,782"},{"$f":"'BP Financier'!$F$44*(('BP Financier'!$C$22+'BP Financier'!$D$22+'BP Financier'!$E$22+'BP Financier'!$F$22)/('BP Financier'!$C$16+'BP Financier'!$C$19+'BP Financier'!$D$16+'BP Financier'!$D$19+'BP Financier'!$E$16+'BP Financier'!$E$19+'BP Financier'!$C$22+'BP Financier'!$D$22+'BP Financier'!$E$22+'BP Financier'!$F$22+'BP Financier'!$F$16+'BP Financier'!$F$19))*$V6473*X6473/(1-$W6473)","v":{"v":1881.5807703763371,"d":"1,882"}},{"$f":"'BP Financier'!$F$44*(('BP Financier'!$C$22+'BP Financier'!$D$22+'BP Financier'!$E$22+'BP Financier'!$F$22)/('BP Financier'!$C$16+'BP Financier'!$C$19+'BP Financier'!$D$16+'BP Financier'!$D$19+'BP Financier'!$E$16+'BP Financier'!$E$19+'BP Financier'!$C$22+'BP Financier'!$D$22+'BP Financier'!$E$22+'BP Financier'!$F$22+'BP Financier'!$F$16+'BP Financier'!$F$19))*$V6473*Y6473/(1-$W6473)","v":{"v":1257.8523382073854,"d":"1,258"}},{"$f":"'BP Financier'!$F$44*(('BP Financier'!$C$22+'BP Financier'!$D$22+'BP Financier'!$E$22+'BP Financier'!$F$22)/('BP Financier'!$C$16+'BP Financier'!$C$19+'BP Financier'!$D$16+'BP Financier'!$D$19+'BP Financier'!$E$16+'BP Financier'!$E$19+'BP Financier'!$C$22+'BP Financier'!$D$22+'BP Financier'!$E$22+'BP Financier'!$F$22+'BP Financier'!$F$16+'BP Financier'!$F$19))*$V6473*Z6473/(1-$W6473)","v":{"v":9844.513754399952,"d":"9,845"}},{"$f":"'BP Financier'!$F$44*(('BP Financier'!$C$22+'BP Financier'!$D$22+'BP Financier'!$E$22+'BP Financier'!$F$22)/('BP Financier'!$C$16+'BP Financier'!$C$19+'BP Financier'!$D$16+'BP Financier'!$D$19+'BP Financier'!$E$16+'BP Financier'!$E$19+'BP Financier'!$C$22+'BP Financier'!$D$22+'BP Financier'!$E$22+'BP Financier'!$F$22+'BP Financier'!$F$16+'BP Financier'!$F$19))*$V6473*AA6473/(1-$W6473)","v":{"v":1216.2704427294555,"d":"1,216"}},{"$f":"'BP Financier'!$F$44*(('BP Financier'!$C$22+'BP Financier'!$D$22+'BP Financier'!$E$22+'BP Financier'!$F$22)/('BP Financier'!$C$16+'BP Financier'!$C$19+'BP Financier'!$D$16+'BP Financier'!$D$19+'BP Financier'!$E$16+'BP Financier'!$E$19+'BP Financier'!$C$22+'BP Financier'!$D$22+'BP Financier'!$E$22+'BP Financier'!$F$22+'BP Financier'!$F$16+'BP Financier'!$F$19))*$V6473*AB6473/(1-$W6473)","v":{"v":582.1465366910213,"d":"582"}},null,{"v":0.0075,"d":"0.75%"},{"$f":"Actif!$E$28/100","v":{"v":0.28900000000000003,"d":"28.90%"}},{"$f":"Actif!$E$30/100","v":{"v":0.09050000000000001,"d":"9.05%"}},{"$f":"Actif!$E$31/100","v":{"v":0.0605,"d":"6.05%"}},{"$f":"Actif!$E$32/100","v":{"v":0.47350000000000003,"d":"47.35%"}},{"$f":"Actif!$E$33/100","v":{"v":0.0585,"d":"5.85%"}},{"$f":"Actif!$E$29/100","v":{"v":0.027999999999999997,"d":"2.80%"}}]
[null,"#367",56,2029,"F","A_CAPI",{"v":0.44999999999999996,"d":"0.45"},{"v":0.38999999999999996,"d":"0.39"},0.6,0.6,85,0,{"$f":"ROUND(Primes!$P$10*V6474,2)","v":0.68},0,{"v":14782.363842404151,"d":"14,782"},{"$f":"'BP Financier'!$F$44*(('BP Financier'!$C$22+'BP Financier'!$D$22+'BP Financier'!$E$22+'BP Financier'!$F$22)/('BP Financier'!$C$16+'BP Financier'!$C$19+'BP Financier'!$D$16+'BP Financier'!$D$19+'BP Financier'!$E$16+'BP Financier'!$E$19+'BP Financier'!$C$22+'BP Financier'!$D$22+'BP Financier'!$E$22+'BP Financier'!$F$22+'BP Financier'!$F$16+'BP Financier'!$F$19))*$V6474*X6474/(1-$W6474)","v":{"v":1881.5807703763371,"d":"1,882"}},{"$f":"'BP Financier'!$F$44*(('BP Financier'!$C$22+'BP Financier'!$D$22+'BP Financier'!$E$22+'BP Financier'!$F$22)/('BP Financier'!$C$16+'BP Financier'!$C$19+'BP Financier'!$D$16+'BP Financier'!$D$19+'BP Financier'!$E$16+'BP Financier'!$E$19+'BP Financier'!$C$22+'BP Financier'!$D$22+'BP Financier'!$E$22+'BP Financier'!$F$22+'BP Financier'!$F$16+'BP Financier'!$F$19))*$V6474*Y6474/(1-$W6474)","v":{"v":1257.8523382073854,"d":"1,258"}},{"$f":"'BP Financier'!$F$44*(('BP Financier'!$C$22+'BP Financier'!$D$22+'BP Financier'!$E$22+'BP Financier'!$F$22)/('BP Financier'!$C$16+'BP Financier'!$C$19+'BP Financier'!$D$16+'BP Financier'!$D$19+'BP Financier'!$E$16+'BP Financier'!$E$19+'BP Financier'!$C$22+'BP Financier'!$D$22+'BP Financier'!$E$22+'BP Financier'!$F$22+'BP Financier'!$F$16+'BP Financier'!$F$19))*$V6474*Z6474/(1-$W6474)","v":{"v":9844.513754399952,"d":"9,845"}},{"$f":"'BP Financier'!$F$44*(('BP Financier'!$C$22+'BP Financier'!$D$22+'BP Financier'!$E$22+'BP Financier'!$F$22)/('BP Financier'!$C$16+'BP Financier'!$C$19+'BP Financier'!$D$16+'BP Financier'!$D$19+'BP Financier'!$E$16+'BP Financier'!$E$19+'BP Financier'!$C$22+'BP Financier'!$D$22+'BP Financier'!$E$22+'BP Financier'!$F$22+'BP Financier'!$F$16+'BP Financier'!$F$19))*$V6474*AA6474/(1-$W6474)","v":{"v":1216.2704427294555,"d":"1,216"}},{"$f":"'BP Financier'!$F$44*(('BP Financier'!$C$22+'BP Financier'!$D$22+'BP Financier'!$E$22+'BP Financier'!$F$22)/('BP Financier'!$C$16+'BP Financier'!$C$19+'BP Financier'!$D$16+'BP Financier'!$D$19+'BP Financier'!$E$16+'BP Financier'!$E$19+'BP Financier'!$C$22+'BP Financier'!$D$22+'BP Financier'!$E$22+'BP Financier'!$F$22+'BP Financier'!$F$16+'BP Financier'!$F$19))*$V6474*AB6474/(1-$W6474)","v":{"v":582.1465366910213,"d":"582"}},null,{"v":0.0075,"d":"0.75%"},{"$f":"Actif!$E$28/100","v":{"v":0.28900000000000003,"d":"28.90%"}},{"$f":"Actif!$E$30/100","v":{"v":0.09050000000000001,"d":"9.05%"}},{"$f":"Actif!$E$31/100","v":{"v":0.0605,"d":"6.05%"}},{"$f":"Actif!$E$32/100","v":{"v":0.47350000000000003,"d":"47.35%"}},{"$f":"Actif!$E$33/100","v":{"v":0.0585,"d":"5.85%"}},{"$f":"Actif!$E$29/100","v":{"v":0.027999999999999997,"d":"2.80%"}}]
[null,"#368",56,2030,"F","A_CAPI",{"v":0.44999999999999996,"d":"0.45"},{"v":0.38999999999999996,"d":"0.39"},0.6,0.6,85,0,{"$f":"ROUND(Primes!$P$10*V6475,2)","v":0.68},0,{"v":14782.363842404151,"d":"14,782"},{"$f":"'BP Financier'!$F$44*(('BP Financier'!$C$22+'BP Financier'!$D$22+'BP Financier'!$E$22+'BP Financier'!$F$22)/('BP Financier'!$C$16+'BP Financier'!$C$19+'BP Financier'!$D$16+'BP Financier'!$D$19+'BP Financier'!$E$16+'BP Financier'!$E$19+'BP Financier'!$C$22+'BP Financier'!$D$22+'BP Financier'!$E$22+'BP Financier'!$F$22+'BP Financier'!$F$16+'BP Financier'!$F$19))*$V6475*X6475/(1-$W6475)","v":{"v":1881.5807703763371,"d":"1,882"}},{"$f":"'BP Financier'!$F$44*(('BP Financier'!$C$22+'BP Financier'!$D$22+'BP Financier'!$E$22+'BP Financier'!$F$22)/('BP Financier'!$C$16+'BP Financier'!$C$19+'BP Financier'!$D$16+'BP Financier'!$D$19+'BP Financier'!$E$16+'BP Financier'!$E$19+'BP Financier'!$C$22+'BP Financier'!$D$22+'BP Financier'!$E$22+'BP Financier'!$F$22+'BP Financier'!$F$16+'BP Financier'!$F$19))*$V6475*Y6475/(1-$W6475)","v":{"v":1257.8523382073854,"d":"1,258"}},{"$f":"'BP Financier'!$F$44*(('BP Financier'!$C$22+'BP Financier'!$D$22+'BP Financier'!$E$22+'BP Financier'!$F$22)/('BP Financier'!$C$16+'BP Financier'!$C$19+'BP Financier'!$D$16+'BP Financier'!$D$19+'BP Financier'!$E$16+'BP Financier'!$E$19+'BP Financier'!$C$22+'BP Financier'!$D$22+'BP Financier'!$E$22+'BP Financier'!$F$22+'BP Financier'!$F$16+'BP Financier'!$F$19))*$V6475*Z6475/(1-$W6475)","v":{"v":9844.513754399952,"d":"9,845"}},{"$f":"'BP Financier'!$F$44*(('BP Financier'!$C$22+'BP Financier'!$D$22+'BP Financier'!$E$22+'BP Financier'!$F$22)/('BP Financier'!$C$16+'BP Financier'!$C$19+'BP Financier'!$D$16+'BP Financier'!$D$19+'BP Financier'!$E$16+'BP Financier'!$E$19+'BP Financier'!$C$22+'BP Financier'!$D$22+'BP Financier'!$E$22+'BP Financier'!$F$22+'BP Financier'!$F$16+'BP Financier'!$F$19))*$V6475*AA6475/(1-$W6475)","v":{"v":1216.2704427294555,"d":"1,216"}},{"$f":"'BP Financier'!$F$44*(('BP Financier'!$C$22+'BP Financier'!$D$22+'BP Financier'!$E$22+'BP Financier'!$F$22)/('BP Financier'!$C$16+'BP Financier'!$C$19+'BP Financier'!$D$16+'BP Financier'!$D$19+'BP Financier'!$E$16+'BP Financier'!$E$19+'BP Financier'!$C$22+'BP Financier'!$D$22+'BP Financier'!$E$22+'BP Financier'!$F$22+'BP Financier'!$F$16+'BP Financier'!$F$19))*$V6475*AB6475/(1-$W6475)","v":{"v":582.1465366910213,"d":"582"}},null,{"v":0.0075,"d":"0.75%"},{"$f":"Actif!$E$28/100","v":{"v":0.28900000000000003,"d":"28.90%"}},{"$f":"Actif!$E$30/100","v":{"v":0.09050000000000001,"d":"9.05%"}},{"$f":"Actif!$E$31/100","v":{"v":0.0605,"d":"6.05%"}},{"$f":"Actif!$E$32/100","v":{"v":0.47350000000000003,"d":"47.35%"}},{"$f":"Actif!$E$33/100","v":{"v":0.0585,"d":"5.85%"}},{"$f":"Actif!$E$29/100","v":{"v":0.027999999999999997,"d":"2.80%"}}]
[null,"#369",57,2026,"H","A_CAPI",{"v":0.44999999999999996,"d":"0.45"},{"v":0.38999999999999996,"d":"0.39"},0.6,0.6,85,0,{"$f":"ROUND(Primes!$P$10*V6476,2)","v":0.68},0,{"v":14782.363842404151,"d":"14,782"},{"$f":"'BP Financier'!$F$44*(('BP Financier'!$C$22+'BP Financier'!$D$22+'BP Financier'!$E$22+'BP Financier'!$F$22)/('BP Financier'!$C$16+'BP Financier'!$C$19+'BP Financier'!$D$16+'BP Financier'!$D$19+'BP Financier'!$E$16+'BP Financier'!$E$19+'BP Financier'!$C$22+'BP Financier'!$D$22+'BP Financier'!$E$22+'BP Financier'!$F$22+'BP Financier'!$F$16+'BP Financier'!$F$19))*$V6476*X6476/(1-$W6476)","v":{"v":1881.5807703763371,"d":"1,882"}},{"$f":"'BP Financier'!$F$44*(('BP Financier'!$C$22+'BP Financier'!$D$22+'BP Financier'!$E$22+'BP Financier'!$F$22)/('BP Financier'!$C$16+'BP Financier'!$C$19+'BP Financier'!$D$16+'BP Financier'!$D$19+'BP Financier'!$E$16+'BP Financier'!$E$19+'BP Financier'!$C$22+'BP Financier'!$D$22+'BP Financier'!$E$22+'BP Financier'!$F$22+'BP Financier'!$F$16+'BP Financier'!$F$19))*$V6476*Y6476/(1-$W6476)","v":{"v":1257.8523382073854,"d":"1,258"}},{"$f":"'BP Financier'!$F$44*(('BP Financier'!$C$22+'BP Financier'!$D$22+'BP Financier'!$E$22+'BP Financier'!$F$22)/('BP Financier'!$C$16+'BP Financier'!$C$19+'BP Financier'!$D$16+'BP Financier'!$D$19+'BP Financier'!$E$16+'BP Financier'!$E$19+'BP Financier'!$C$22+'BP Financier'!$D$22+'BP Financier'!$E$22+'BP Financier'!$F$22+'BP Financier'!$F$16+'BP Financier'!$F$19))*$V6476*Z6476/(1-$W6476)","v":{"v":9844.513754399952,"d":"9,845"}},{"$f":"'BP Financier'!$F$44*(('BP Financier'!$C$22+'BP Financier'!$D$22+'BP Financier'!$E$22+'BP Financier'!$F$22)/('BP Financier'!$C$16+'BP Financier'!$C$19+'BP Financier'!$D$16+'BP Financier'!$D$19+'BP Financier'!$E$16+'BP Financier'!$E$19+'BP Financier'!$C$22+'BP Financier'!$D$22+'BP Financier'!$E$22+'BP Financier'!$F$22+'BP Financier'!$F$16+'BP Financier'!$F$19))*$V6476*AA6476/(1-$W6476)","v":{"v":1216.2704427294555,"d":"1,216"}},{"$f":"'BP Financier'!$F$44*(('BP Financier'!$C$22+'BP Financier'!$D$22+'BP Financier'!$E$22+'BP Financier'!$F$22)/('BP Financier'!$C$16+'BP Financier'!$C$19+'BP Financier'!$D$16+'BP Financier'!$D$19+'BP Financier'!$E$16+'BP Financier'!$E$19+'BP Financier'!$C$22+'BP Financier'!$D$22+'BP Financier'!$E$22+'BP Financier'!$F$22+'BP Financier'!$F$16+'BP Financier'!$F$19))*$V6476*AB6476/(1-$W6476)","v":{"v":582.1465366910213,"d":"582"}},null,{"v":0.0075,"d":"0.75%"},{"$f":"Actif!$E$28/100","v":{"v":0.28900000000000003,"d":"28.90%"}},{"$f":"Actif!$E$30/100","v":{"v":0.09050000000000001,"d":"9.05%"}},{"$f":"Actif!$E$31/100","v":{"v":0.0605,"d":"6.05%"}},{"$f":"Actif!$E$32/100","v":{"v":0.47350000000000003,"d":"47.35%"}},{"$f":"Actif!$E$33/100","v":{"v":0.0585,"d":"5.85%"}},{"$f":"Actif!$E$29/100","v":{"v":0.027999999999999997,"d":"2.80%"}}]
[null,"#370",57,2028,"H","A_CAPI",{"v":0.44999999999999996,"d":"0.45"},{"v":0.38999999999999996,"d":"0.39"},0.6,0.6,85,0,{"$f":"ROUND(Primes!$P$10*V6477,2)","v":0.68},0,{"v":14782.363842404151,"d":"14,782"},{"$f":"'BP Financier'!$F$44*(('BP Financier'!$C$22+'BP Financier'!$D$22+'BP Financier'!$E$22+'BP Financier'!$F$22)/('BP Financier'!$C$16+'BP Financier'!$C$19+'BP Financier'!$D$16+'BP Financier'!$D$19+'BP Financier'!$E$16+'BP Financier'!$E$19+'BP Financier'!$C$22+'BP Financier'!$D$22+'BP Financier'!$E$22+'BP Financier'!$F$22+'BP Financier'!$F$16+'BP Financier'!$F$19))*$V6477*X6477/(1-$W6477)","v":{"v":1881.5807703763371,"d":"1,882"}},{"$f":"'BP Financier'!$F$44*(('BP Financier'!$C$22+'BP Financier'!$D$22+'BP Financier'!$E$22+'BP Financier'!$F$22)/('BP Financier'!$C$16+'BP Financier'!$C$19+'BP Financier'!$D$16+'BP Financier'!$D$19+'BP Financier'!$E$16+'BP Financier'!$E$19+'BP Financier'!$C$22+'BP Financier'!$D$22+'BP Financier'!$E$22+'BP Financier'!$F$22+'BP Financier'!$F$16+'BP Financier'!$F$19))*$V6477*Y6477/(1-$W6477)","v":{"v":1257.8523382073854,"d":"1,258"}},{"$f":"'BP Financier'!$F$44*(('BP Financier'!$C$22+'BP Financier'!$D$22+'BP Financier'!$E$22+'BP Financier'!$F$22)/('BP Financier'!$C$16+'BP Financier'!$C$19+'BP Financier'!$D$16+'BP Financier'!$D$19+'BP Financier'!$E$16+'BP Financier'!$E$19+'BP Financier'!$C$22+'BP Financier'!$D$22+'BP Financier'!$E$22+'BP Financier'!$F$22+'BP Financier'!$F$16+'BP Financier'!$F$19))*$V6477*Z6477/(1-$W6477)","v":{"v":9844.513754399952,"d":"9,845"}},{"$f":"'BP Financier'!$F$44*(('BP Financier'!$C$22+'BP Financier'!$D$22+'BP Financier'!$E$22+'BP Financier'!$F$22)/('BP Financier'!$C$16+'BP Financier'!$C$19+'BP Financier'!$D$16+'BP Financier'!$D$19+'BP Financier'!$E$16+'BP Financier'!$E$19+'BP Financier'!$C$22+'BP Financier'!$D$22+'BP Financier'!$E$22+'BP Financier'!$F$22+'BP Financier'!$F$16+'BP Financier'!$F$19))*$V6477*AA6477/(1-$W6477)","v":{"v":1216.2704427294555,"d":"1,216"}},{"$f":"'BP Financier'!$F$44*(('BP Financier'!$C$22+'BP Financier'!$D$22+'BP Financier'!$E$22+'BP Financier'!$F$22)/('BP Financier'!$C$16+'BP Financier'!$C$19+'BP Financier'!$D$16+'BP Financier'!$D$19+'BP Financier'!$E$16+'BP Financier'!$E$19+'BP Financier'!$C$22+'BP Financier'!$D$22+'BP Financier'!$E$22+'BP Financier'!$F$22+'BP Financier'!$F$16+'BP Financier'!$F$19))*$V6477*AB6477/(1-$W6477)","v":{"v":582.1465366910213,"d":"582"}},null,{"v":0.0075,"d":"0.75%"},{"$f":"Actif!$E$28/100","v":{"v":0.28900000000000003,"d":"28.90%"}},{"$f":"Actif!$E$30/100","v":{"v":0.09050000000000001,"d":"9.05%"}},{"$f":"Actif!$E$31/100","v":{"v":0.0605,"d":"6.05%"}},{"$f":"Actif!$E$32/100","v":{"v":0.47350000000000003,"d":"47.35%"}},{"$f":"Actif!$E$33/100","v":{"v":0.0585,"d":"5.85%"}},{"$f":"Actif!$E$29/100","v":{"v":0.027999999999999997,"d":"2.80%"}}]
[null,"#371",57,2029,"H","A_CAPI",{"v":0.44999999999999996,"d":"0.45"},{"v":0.38999999999999996,"d":"0.39"},0.6,0.6,85,0,{"$f":"ROUND(Primes!$P$10*V6478,2)","v":0.68},0,{"v":14782.363842404151,"d":"14,782"},{"$f":"'BP Financier'!$F$44*(('BP Financier'!$C$22+'BP Financier'!$D$22+'BP Financier'!$E$22+'BP Financier'!$F$22)/('BP Financier'!$C$16+'BP Financier'!$C$19+'BP Financier'!$D$16+'BP Financier'!$D$19+'BP Financier'!$E$16+'BP Financier'!$E$19+'BP Financier'!$C$22+'BP Financier'!$D$22+'BP Financier'!$E$22+'BP Financier'!$F$22+'BP Financier'!$F$16+'BP Financier'!$F$19))*$V6478*X6478/(1-$W6478)","v":{"v":1881.5807703763371,"d":"1,882"}},{"$f":"'BP Financier'!$F$44*(('BP Financier'!$C$22+'BP Financier'!$D$22+'BP Financier'!$E$22+'BP Financier'!$F$22)/('BP Financier'!$C$16+'BP Financier'!$C$19+'BP Financier'!$D$16+'BP Financier'!$D$19+'BP Financier'!$E$16+'BP Financier'!$E$19+'BP Financier'!$C$22+'BP Financier'!$D$22+'BP Financier'!$E$22+'BP Financier'!$F$22+'BP Financier'!$F$16+'BP Financier'!$F$19))*$V6478*Y6478/(1-$W6478)","v":{"v":1257.8523382073854,"d":"1,258"}},{"$f":"'BP Financier'!$F$44*(('BP Financier'!$C$22+'BP Financier'!$D$22+'BP Financier'!$E$22+'BP Financier'!$F$22)/('BP Financier'!$C$16+'BP Financier'!$C$19+'BP Financier'!$D$16+'BP Financier'!$D$19+'BP Financier'!$E$16+'BP Financier'!$E$19+'BP Financier'!$C$22+'BP Financier'!$D$22+'BP Financier'!$E$22+'BP Financier'!$F$22+'BP Financier'!$F$16+'BP Financier'!$F$19))*$V6478*Z6478/(1-$W6478)","v":{"v":9844.513754399952,"d":"9,845"}},{"$f":"'BP Financier'!$F$44*(('BP Financier'!$C$22+'BP Financier'!$D$22+'BP Financier'!$E$22+'BP Financier'!$F$22)/('BP Financier'!$C$16+'BP Financier'!$C$19+'BP Financier'!$D$16+'BP Financier'!$D$19+'BP Financier'!$E$16+'BP Financier'!$E$19+'BP Financier'!$C$22+'BP Financier'!$D$22+'BP Financier'!$E$22+'BP Financier'!$F$22+'BP Financier'!$F$16+'BP Financier'!$F$19))*$V6478*AA6478/(1-$W6478)","v":{"v":1216.2704427294555,"d":"1,216"}},{"$f":"'BP Financier'!$F$44*(('BP Financier'!$C$22+'BP Financier'!$D$22+'BP Financier'!$E$22+'BP Financier'!$F$22)/('BP Financier'!$C$16+'BP Financier'!$C$19+'BP Financier'!$D$16+'BP Financier'!$D$19+'BP Financier'!$E$16+'BP Financier'!$E$19+'BP Financier'!$C$22+'BP Financier'!$D$22+'BP Financier'!$E$22+'BP Financier'!$F$22+'BP Financier'!$F$16+'BP Financier'!$F$19))*$V6478*AB6478/(1-$W6478)","v":{"v":582.1465366910213,"d":"582"}},null,{"v":0.0075,"d":"0.75%"},{"$f":"Actif!$E$28/100","v":{"v":0.28900000000000003,"d":"28.90%"}},{"$f":"Actif!$E$30/100","v":{"v":0.09050000000000001,"d":"9.05%"}},{"$f":"Actif!$E$31/100","v":{"v":0.0605,"d":"6.05%"}},{"$f":"Actif!$E$32/100","v":{"v":0.47350000000000003,"d":"47.35%"}},{"$f":"Actif!$E$33/100","v":{"v":0.0585,"d":"5.85%"}},{"$f":"Actif!$E$29/100","v":{"v":0.027999999999999997,"d":"2.80%"}}]
[null,"#372",57,2030,"H","A_CAPI",{"v":0.44999999999999996,"d":"0.45"},{"v":0.38999999999999996,"d":"0.39"},0.6,0.6,85,0,{"$f":"ROUND(Primes!$P$10*V6479,2)","v":0.68},0,{"v":14782.363842404151,"d":"14,782"},{"$f":"'BP Financier'!$F$44*(('BP Financier'!$C$22+'BP Financier'!$D$22+'BP Financier'!$E$22+'BP Financier'!$F$22)/('BP Financier'!$C$16+'BP Financier'!$C$19+'BP Financier'!$D$16+'BP Financier'!$D$19+'BP Financier'!$E$16+'BP Financier'!$E$19+'BP Financier'!$C$22+'BP Financier'!$D$22+'BP Financier'!$E$22+'BP Financier'!$F$22+'BP Financier'!$F$16+'BP Financier'!$F$19))*$V6479*X6479/(1-$W6479)","v":{"v":1881.5807703763371,"d":"1,882"}},{"$f":"'BP Financier'!$F$44*(('BP Financier'!$C$22+'BP Financier'!$D$22+'BP Financier'!$E$22+'BP Financier'!$F$22)/('BP Financier'!$C$16+'BP Financier'!$C$19+'BP Financier'!$D$16+'BP Financier'!$D$19+'BP Financier'!$E$16+'BP Financier'!$E$19+'BP Financier'!$C$22+'BP Financier'!$D$22+'BP Financier'!$E$22+'BP Financier'!$F$22+'BP Financier'!$F$16+'BP Financier'!$F$19))*$V6479*Y6479/(1-$W6479)","v":{"v":1257.8523382073854,"d":"1,258"}},{"$f":"'BP Financier'!$F$44*(('BP Financier'!$C$22+'BP Financier'!$D$22+'BP Financier'!$E$22+'BP Financier'!$F$22)/('BP Financier'!$C$16+'BP Financier'!$C$19+'BP Financier'!$D$16+'BP Financier'!$D$19+'BP Financier'!$E$16+'BP Financier'!$E$19+'BP Financier'!$C$22+'BP Financier'!$D$22+'BP Financier'!$E$22+'BP Financier'!$F$22+'BP Financier'!$F$16+'BP Financier'!$F$19))*$V6479*Z6479/(1-$W6479)","v":{"v":9844.513754399952,"d":"9,845"}},{"$f":"'BP Financier'!$F$44*(('BP Financier'!$C$22+'BP Financier'!$D$22+'BP Financier'!$E$22+'BP Financier'!$F$22)/('BP Financier'!$C$16+'BP Financier'!$C$19+'BP Financier'!$D$16+'BP Financier'!$D$19+'BP Financier'!$E$16+'BP Financier'!$E$19+'BP Financier'!$C$22+'BP Financier'!$D$22+'BP Financier'!$E$22+'BP Financier'!$F$22+'BP Financier'!$F$16+'BP Financier'!$F$19))*$V6479*AA6479/(1-$W6479)","v":{"v":1216.2704427294555,"d":"1,216"}},{"$f":"'BP Financier'!$F$44*(('BP Financier'!$C$22+'BP Financier'!$D$22+'BP Financier'!$E$22+'BP Financier'!$F$22)/('BP Financier'!$C$16+'BP Financier'!$C$19+'BP Financier'!$D$16+'BP Financier'!$D$19+'BP Financier'!$E$16+'BP Financier'!$E$19+'BP Financier'!$C$22+'BP Financier'!$D$22+'BP Financier'!$E$22+'BP Financier'!$F$22+'BP Financier'!$F$16+'BP Financier'!$F$19))*$V6479*AB6479/(1-$W6479)","v":{"v":582.1465366910213,"d":"582"}},null,{"v":0.0075,"d":"0.75%"},{"$f":"Actif!$E$28/100","v":{"v":0.28900000000000003,"d":"28.90%"}},{"$f":"Actif!$E$30/100","v":{"v":0.09050000000000001,"d":"9.05%"}},{"$f":"Actif!$E$31/100","v":{"v":0.0605,"d":"6.05%"}},{"$f":"Actif!$E$32/100","v":{"v":0.47350000000000003,"d":"47.35%"}},{"$f":"Actif!$E$33/100","v":{"v":0.0585,"d":"5.85%"}},{"$f":"Actif!$E$29/100","v":{"v":0.027999999999999997,"d":"2.80%"}}]
[null,"#373",58,2026,"H","A_CAPI",{"v":0.44999999999999996,"d":"0.45"},{"v":0.38999999999999996,"d":"0.39"},0.6,0.6,85,0,{"$f":"ROUND(Primes!$P$10*V6480,2)","v":0.68},0,{"v":14782.363842404151,"d":"14,782"},{"$f":"'BP Financier'!$F$44*(('BP Financier'!$C$22+'BP Financier'!$D$22+'BP Financier'!$E$22+'BP Financier'!$F$22)/('BP Financier'!$C$16+'BP Financier'!$C$19+'BP Financier'!$D$16+'BP Financier'!$D$19+'BP Financier'!$E$16+'BP Financier'!$E$19+'BP Financier'!$C$22+'BP Financier'!$D$22+'BP Financier'!$E$22+'BP Financier'!$F$22+'BP Financier'!$F$16+'BP Financier'!$F$19))*$V6480*X6480/(1-$W6480)","v":{"v":1881.5807703763371,"d":"1,882"}},{"$f":"'BP Financier'!$F$44*(('BP Financier'!$C$22+'BP Financier'!$D$22+'BP Financier'!$E$22+'BP Financier'!$F$22)/('BP Financier'!$C$16+'BP Financier'!$C$19+'BP Financier'!$D$16+'BP Financier'!$D$19+'BP Financier'!$E$16+'BP Financier'!$E$19+'BP Financier'!$C$22+'BP Financier'!$D$22+'BP Financier'!$E$22+'BP Financier'!$F$22+'BP Financier'!$F$16+'BP Financier'!$F$19))*$V6480*Y6480/(1-$W6480)","v":{"v":1257.8523382073854,"d":"1,258"}},{"$f":"'BP Financier'!$F$44*(('BP Financier'!$C$22+'BP Financier'!$D$22+'BP Financier'!$E$22+'BP Financier'!$F$22)/('BP Financier'!$C$16+'BP Financier'!$C$19+'BP Financier'!$D$16+'BP Financier'!$D$19+'BP Financier'!$E$16+'BP Financier'!$E$19+'BP Financier'!$C$22+'BP Financier'!$D$22+'BP Financier'!$E$22+'BP Financier'!$F$22+'BP Financier'!$F$16+'BP Financier'!$F$19))*$V6480*Z6480/(1-$W6480)","v":{"v":9844.513754399952,"d":"9,845"}},{"$f":"'BP Financier'!$F$44*(('BP Financier'!$C$22+'BP Financier'!$D$22+'BP Financier'!$E$22+'BP Financier'!$F$22)/('BP Financier'!$C$16+'BP Financier'!$C$19+'BP Financier'!$D$16+'BP Financier'!$D$19+'BP Financier'!$E$16+'BP Financier'!$E$19+'BP Financier'!$C$22+'BP Financier'!$D$22+'BP Financier'!$E$22+'BP Financier'!$F$22+'BP Financier'!$F$16+'BP Financier'!$F$19))*$V6480*AA6480/(1-$W6480)","v":{"v":1216.2704427294555,"d":"1,216"}},{"$f":"'BP Financier'!$F$44*(('BP Financier'!$C$22+'BP Financier'!$D$22+'BP Financier'!$E$22+'BP Financier'!$F$22)/('BP Financier'!$C$16+'BP Financier'!$C$19+'BP Financier'!$D$16+'BP Financier'!$D$19+'BP Financier'!$E$16+'BP Financier'!$E$19+'BP Financier'!$C$22+'BP Financier'!$D$22+'BP Financier'!$E$22+'BP Financier'!$F$22+'BP Financier'!$F$16+'BP Financier'!$F$19))*$V6480*AB6480/(1-$W6480)","v":{"v":582.1465366910213,"d":"582"}},null,{"v":0.0075,"d":"0.75%"},{"$f":"Actif!$E$28/100","v":{"v":0.28900000000000003,"d":"28.90%"}},{"$f":"Actif!$E$30/100","v":{"v":0.09050000000000001,"d":"9.05%"}},{"$f":"Actif!$E$31/100","v":{"v":0.0605,"d":"6.05%"}},{"$f":"Actif!$E$32/100","v":{"v":0.47350000000000003,"d":"47.35%"}},{"$f":"Actif!$E$33/100","v":{"v":0.0585,"d":"5.85%"}},{"$f":"Actif!$E$29/100","v":{"v":0.027999999999999997,"d":"2.80%"}}]
[null,"#374",58,2028,"H","A_CAPI",{"v":0.44999999999999996,"d":"0.45"},{"v":0.38999999999999996,"d":"0.39"},0.6,0.6,85,0,{"$f":"ROUND(Primes!$P$10*V6481,2)","v":0.68},0,{"v":14782.363842404151,"d":"14,782"},{"$f":"'BP Financier'!$F$44*(('BP Financier'!$C$22+'BP Financier'!$D$22+'BP Financier'!$E$22+'BP Financier'!$F$22)/('BP Financier'!$C$16+'BP Financier'!$C$19+'BP Financier'!$D$16+'BP Financier'!$D$19+'BP Financier'!$E$16+'BP Financier'!$E$19+'BP Financier'!$C$22+'BP Financier'!$D$22+'BP Financier'!$E$22+'BP Financier'!$F$22+'BP Financier'!$F$16+'BP Financier'!$F$19))*$V6481*X6481/(1-$W6481)","v":{"v":1881.5807703763371,"d":"1,882"}},{"$f":"'BP Financier'!$F$44*(('BP Financier'!$C$22+'BP Financier'!$D$22+'BP Financier'!$E$22+'BP Financier'!$F$22)/('BP Financier'!$C$16+'BP Financier'!$C$19+'BP Financier'!$D$16+'BP Financier'!$D$19+'BP Financier'!$E$16+'BP Financier'!$E$19+'BP Financier'!$C$22+'BP Financier'!$D$22+'BP Financier'!$E$22+'BP Financier'!$F$22+'BP Financier'!$F$16+'BP Financier'!$F$19))*$V6481*Y6481/(1-$W6481)","v":{"v":1257.8523382073854,"d":"1,258"}},{"$f":"'BP Financier'!$F$44*(('BP Financier'!$C$22+'BP Financier'!$D$22+'BP Financier'!$E$22+'BP Financier'!$F$22)/('BP Financier'!$C$16+'BP Financier'!$C$19+'BP Financier'!$D$16+'BP Financier'!$D$19+'BP Financier'!$E$16+'BP Financier'!$E$19+'BP Financier'!$C$22+'BP Financier'!$D$22+'BP Financier'!$E$22+'BP Financier'!$F$22+'BP Financier'!$F$16+'BP Financier'!$F$19))*$V6481*Z6481/(1-$W6481)","v":{"v":9844.513754399952,"d":"9,845"}},{"$f":"'BP Financier'!$F$44*(('BP Financier'!$C$22+'BP Financier'!$D$22+'BP Financier'!$E$22+'BP Financier'!$F$22)/('BP Financier'!$C$16+'BP Financier'!$C$19+'BP Financier'!$D$16+'BP Financier'!$D$19+'BP Financier'!$E$16+'BP Financier'!$E$19+'BP Financier'!$C$22+'BP Financier'!$D$22+'BP Financier'!$E$22+'BP Financier'!$F$22+'BP Financier'!$F$16+'BP Financier'!$F$19))*$V6481*AA6481/(1-$W6481)","v":{"v":1216.2704427294555,"d":"1,216"}},{"$f":"'BP Financier'!$F$44*(('BP Financier'!$C$22+'BP Financier'!$D$22+'BP Financier'!$E$22+'BP Financier'!$F$22)/('BP Financier'!$C$16+'BP Financier'!$C$19+'BP Financier'!$D$16+'BP Financier'!$D$19+'BP Financier'!$E$16+'BP Financier'!$E$19+'BP Financier'!$C$22+'BP Financier'!$D$22+'BP Financier'!$E$22+'BP Financier'!$F$22+'BP Financier'!$F$16+'BP Financier'!$F$19))*$V6481*AB6481/(1-$W6481)","v":{"v":582.1465366910213,"d":"582"}},null,{"v":0.0075,"d":"0.75%"},{"$f":"Actif!$E$28/100","v":{"v":0.28900000000000003,"d":"28.90%"}},{"$f":"Actif!$E$30/100","v":{"v":0.09050000000000001,"d":"9.05%"}},{"$f":"Actif!$E$31/100","v":{"v":0.0605,"d":"6.05%"}},{"$f":"Actif!$E$32/100","v":{"v":0.47350000000000003,"d":"47.35%"}},{"$f":"Actif!$E$33/100","v":{"v":0.0585,"d":"5.85%"}},{"$f":"Actif!$E$29/100","v":{"v":0.027999999999999997,"d":"2.80%"}}]
[null,"#375",58,2029,"H","A_CAPI",{"v":0.44999999999999996,"d":"0.45"},{"v":0.38999999999999996,"d":"0.39"},0.6,0.6,85,0,{"$f":"ROUND(Primes!$P$10*V6482,2)","v":0.68},0,{"v":14782.363842404151,"d":"14,782"},{"$f":"'BP Financier'!$F$44*(('BP Financier'!$C$22+'BP Financier'!$D$22+'BP Financier'!$E$22+'BP Financier'!$F$22)/('BP Financier'!$C$16+'BP Financier'!$C$19+'BP Financier'!$D$16+'BP Financier'!$D$19+'BP Financier'!$E$16+'BP Financier'!$E$19+'BP Financier'!$C$22+'BP Financier'!$D$22+'BP Financier'!$E$22+'BP Financier'!$F$22+'BP Financier'!$F$16+'BP Financier'!$F$19))*$V6482*X6482/(1-$W6482)","v":{"v":1881.5807703763371,"d":"1,882"}},{"$f":"'BP Financier'!$F$44*(('BP Financier'!$C$22+'BP Financier'!$D$22+'BP Financier'!$E$22+'BP Financier'!$F$22)/('BP Financier'!$C$16+'BP Financier'!$C$19+'BP Financier'!$D$16+'BP Financier'!$D$19+'BP Financier'!$E$16+'BP Financier'!$E$19+'BP Financier'!$C$22+'BP Financier'!$D$22+'BP Financier'!$E$22+'BP Financier'!$F$22+'BP Financier'!$F$16+'BP Financier'!$F$19))*$V6482*Y6482/(1-$W6482)","v":{"v":1257.8523382073854,"d":"1,258"}},{"$f":"'BP Financier'!$F$44*(('BP Financier'!$C$22+'BP Financier'!$D$22+'BP Financier'!$E$22+'BP Financier'!$F$22)/('BP Financier'!$C$16+'BP Financier'!$C$19+'BP Financier'!$D$16+'BP Financier'!$D$19+'BP Financier'!$E$16+'BP Financier'!$E$19+'BP Financier'!$C$22+'BP Financier'!$D$22+'BP Financier'!$E$22+'BP Financier'!$F$22+'BP Financier'!$F$16+'BP Financier'!$F$19))*$V6482*Z6482/(1-$W6482)","v":{"v":9844.513754399952,"d":"9,845"}},{"$f":"'BP Financier'!$F$44*(('BP Financier'!$C$22+'BP Financier'!$D$22+'BP Financier'!$E$22+'BP Financier'!$F$22)/('BP Financier'!$C$16+'BP Financier'!$C$19+'BP Financier'!$D$16+'BP Financier'!$D$19+'BP Financier'!$E$16+'BP Financier'!$E$19+'BP Financier'!$C$22+'BP Financier'!$D$22+'BP Financier'!$E$22+'BP Financier'!$F$22+'BP Financier'!$F$16+'BP Financier'!$F$19))*$V6482*AA6482/(1-$W6482)","v":{"v":1216.2704427294555,"d":"1,216"}},{"$f":"'BP Financier'!$F$44*(('BP Financier'!$C$22+'BP Financier'!$D$22+'BP Financier'!$E$22+'BP Financier'!$F$22)/('BP Financier'!$C$16+'BP Financier'!$C$19+'BP Financier'!$D$16+'BP Financier'!$D$19+'BP Financier'!$E$16+'BP Financier'!$E$19+'BP Financier'!$C$22+'BP Financier'!$D$22+'BP Financier'!$E$22+'BP Financier'!$F$22+'BP Financier'!$F$16+'BP Financier'!$F$19))*$V6482*AB6482/(1-$W6482)","v":{"v":582.1465366910213,"d":"582"}},null,{"v":0.0075,"d":"0.75%"},{"$f":"Actif!$E$28/100","v":{"v":0.28900000000000003,"d":"28.90%"}},{"$f":"Actif!$E$30/100","v":{"v":0.09050000000000001,"d":"9.05%"}},{"$f":"Actif!$E$31/100","v":{"v":0.0605,"d":"6.05%"}},{"$f":"Actif!$E$32/100","v":{"v":0.47350000000000003,"d":"47.35%"}},{"$f":"Actif!$E$33/100","v":{"v":0.0585,"d":"5.85%"}},{"$f":"Actif!$E$29/100","v":{"v":0.027999999999999997,"d":"2.80%"}}]
[null,"#376",58,2030,"H","A_CAPI",{"v":0.44999999999999996,"d":"0.45"},{"v":0.38999999999999996,"d":"0.39"},0.6,0.6,85,0,{"$f":"ROUND(Primes!$P$10*V6483,2)","v":0.68},0,{"v":14782.363842404151,"d":"14,782"},{"$f":"'BP Financier'!$F$44*(('BP Financier'!$C$22+'BP Financier'!$D$22+'BP Financier'!$E$22+'BP Financier'!$F$22)/('BP Financier'!$C$16+'BP Financier'!$C$19+'BP Financier'!$D$16+'BP Financier'!$D$19+'BP Financier'!$E$16+'BP Financier'!$E$19+'BP Financier'!$C$22+'BP Financier'!$D$22+'BP Financier'!$E$22+'BP Financier'!$F$22+'BP Financier'!$F$16+'BP Financier'!$F$19))*$V6483*X6483/(1-$W6483)","v":{"v":1881.5807703763371,"d":"1,882"}},{"$f":"'BP Financier'!$F$44*(('BP Financier'!$C$22+'BP Financier'!$D$22+'BP Financier'!$E$22+'BP Financier'!$F$22)/('BP Financier'!$C$16+'BP Financier'!$C$19+'BP Financier'!$D$16+'BP Financier'!$D$19+'BP Financier'!$E$16+'BP Financier'!$E$19+'BP Financier'!$C$22+'BP Financier'!$D$22+'BP Financier'!$E$22+'BP Financier'!$F$22+'BP Financier'!$F$16+'BP Financier'!$F$19))*$V6483*Y6483/(1-$W6483)","v":{"v":1257.8523382073854,"d":"1,258"}},{"$f":"'BP Financier'!$F$44*(('BP Financier'!$C$22+'BP Financier'!$D$22+'BP Financier'!$E$22+'BP Financier'!$F$22)/('BP Financier'!$C$16+'BP Financier'!$C$19+'BP Financier'!$D$16+'BP Financier'!$D$19+'BP Financier'!$E$16+'BP Financier'!$E$19+'BP Financier'!$C$22+'BP Financier'!$D$22+'BP Financier'!$E$22+'BP Financier'!$F$22+'BP Financier'!$F$16+'BP Financier'!$F$19))*$V6483*Z6483/(1-$W6483)","v":{"v":9844.513754399952,"d":"9,845"}},{"$f":"'BP Financier'!$F$44*(('BP Financier'!$C$22+'BP Financier'!$D$22+'BP Financier'!$E$22+'BP Financier'!$F$22)/('BP Financier'!$C$16+'BP Financier'!$C$19+'BP Financier'!$D$16+'BP Financier'!$D$19+'BP Financier'!$E$16+'BP Financier'!$E$19+'BP Financier'!$C$22+'BP Financier'!$D$22+'BP Financier'!$E$22+'BP Financier'!$F$22+'BP Financier'!$F$16+'BP Financier'!$F$19))*$V6483*AA6483/(1-$W6483)","v":{"v":1216.2704427294555,"d":"1,216"}},{"$f":"'BP Financier'!$F$44*(('BP Financier'!$C$22+'BP Financier'!$D$22+'BP Financier'!$E$22+'BP Financier'!$F$22)/('BP Financier'!$C$16+'BP Financier'!$C$19+'BP Financier'!$D$16+'BP Financier'!$D$19+'BP Financier'!$E$16+'BP Financier'!$E$19+'BP Financier'!$C$22+'BP Financier'!$D$22+'BP Financier'!$E$22+'BP Financier'!$F$22+'BP Financier'!$F$16+'BP Financier'!$F$19))*$V6483*AB6483/(1-$W6483)","v":{"v":582.1465366910213,"d":"582"}},null,{"v":0.0075,"d":"0.75%"},{"$f":"Actif!$E$28/100","v":{"v":0.28900000000000003,"d":"28.90%"}},{"$f":"Actif!$E$30/100","v":{"v":0.09050000000000001,"d":"9.05%"}},{"$f":"Actif!$E$31/100","v":{"v":0.0605,"d":"6.05%"}},{"$f":"Actif!$E$32/100","v":{"v":0.47350000000000003,"d":"47.35%"}},{"$f":"Actif!$E$33/100","v":{"v":0.0585,"d":"5.85%"}},{"$f":"Actif!$E$29/100","v":{"v":0.027999999999999997,"d":"2.80%"}}]
[null,"#377",59,2026,"F","A_CAPI",{"v":0.44999999999999996,"d":"0.45"},{"v":0.38999999999999996,"d":"0.39"},0.6,0.6,85,0,{"$f":"ROUND(Primes!$P$10*V6484,2)","v":0.68},0,{"v":14782.363842404151,"d":"14,782"},{"$f":"'BP Financier'!$F$44*(('BP Financier'!$C$22+'BP Financier'!$D$22+'BP Financier'!$E$22+'BP Financier'!$F$22)/('BP Financier'!$C$16+'BP Financier'!$C$19+'BP Financier'!$D$16+'BP Financier'!$D$19+'BP Financier'!$E$16+'BP Financier'!$E$19+'BP Financier'!$C$22+'BP Financier'!$D$22+'BP Financier'!$E$22+'BP Financier'!$F$22+'BP Financier'!$F$16+'BP Financier'!$F$19))*$V6484*X6484/(1-$W6484)","v":{"v":1881.5807703763371,"d":"1,882"}},{"$f":"'BP Financier'!$F$44*(('BP Financier'!$C$22+'BP Financier'!$D$22+'BP Financier'!$E$22+'BP Financier'!$F$22)/('BP Financier'!$C$16+'BP Financier'!$C$19+'BP Financier'!$D$16+'BP Financier'!$D$19+'BP Financier'!$E$16+'BP Financier'!$E$19+'BP Financier'!$C$22+'BP Financier'!$D$22+'BP Financier'!$E$22+'BP Financier'!$F$22+'BP Financier'!$F$16+'BP Financier'!$F$19))*$V6484*Y6484/(1-$W6484)","v":{"v":1257.8523382073854,"d":"1,258"}},{"$f":"'BP Financier'!$F$44*(('BP Financier'!$C$22+'BP Financier'!$D$22+'BP Financier'!$E$22+'BP Financier'!$F$22)/('BP Financier'!$C$16+'BP Financier'!$C$19+'BP Financier'!$D$16+'BP Financier'!$D$19+'BP Financier'!$E$16+'BP Financier'!$E$19+'BP Financier'!$C$22+'BP Financier'!$D$22+'BP Financier'!$E$22+'BP Financier'!$F$22+'BP Financier'!$F$16+'BP Financier'!$F$19))*$V6484*Z6484/(1-$W6484)","v":{"v":9844.513754399952,"d":"9,845"}},{"$f":"'BP Financier'!$F$44*(('BP Financier'!$C$22+'BP Financier'!$D$22+'BP Financier'!$E$22+'BP Financier'!$F$22)/('BP Financier'!$C$16+'BP Financier'!$C$19+'BP Financier'!$D$16+'BP Financier'!$D$19+'BP Financier'!$E$16+'BP Financier'!$E$19+'BP Financier'!$C$22+'BP Financier'!$D$22+'BP Financier'!$E$22+'BP Financier'!$F$22+'BP Financier'!$F$16+'BP Financier'!$F$19))*$V6484*AA6484/(1-$W6484)","v":{"v":1216.2704427294555,"d":"1,216"}},{"$f":"'BP Financier'!$F$44*(('BP Financier'!$C$22+'BP Financier'!$D$22+'BP Financier'!$E$22+'BP Financier'!$F$22)/('BP Financier'!$C$16+'BP Financier'!$C$19+'BP Financier'!$D$16+'BP Financier'!$D$19+'BP Financier'!$E$16+'BP Financier'!$E$19+'BP Financier'!$C$22+'BP Financier'!$D$22+'BP Financier'!$E$22+'BP Financier'!$F$22+'BP Financier'!$F$16+'BP Financier'!$F$19))*$V6484*AB6484/(1-$W6484)","v":{"v":582.1465366910213,"d":"582"}},null,{"v":0.0075,"d":"0.75%"},{"$f":"Actif!$E$28/100","v":{"v":0.28900000000000003,"d":"28.90%"}},{"$f":"Actif!$E$30/100","v":{"v":0.09050000000000001,"d":"9.05%"}},{"$f":"Actif!$E$31/100","v":{"v":0.0605,"d":"6.05%"}},{"$f":"Actif!$E$32/100","v":{"v":0.47350000000000003,"d":"47.35%"}},{"$f":"Actif!$E$33/100","v":{"v":0.0585,"d":"5.85%"}},{"$f":"Actif!$E$29/100","v":{"v":0.027999999999999997,"d":"2.80%"}}]
[null,"#378",59,2028,"F","A_CAPI",{"v":0.44999999999999996,"d":"0.45"},{"v":0.38999999999999996,"d":"0.39"},0.6,0.6,85,0,{"$f":"ROUND(Primes!$P$10*V6485,2)","v":0.68},0,{"v":14782.363842404151,"d":"14,782"},{"$f":"'BP Financier'!$F$44*(('BP Financier'!$C$22+'BP Financier'!$D$22+'BP Financier'!$E$22+'BP Financier'!$F$22)/('BP Financier'!$C$16+'BP Financier'!$C$19+'BP Financier'!$D$16+'BP Financier'!$D$19+'BP Financier'!$E$16+'BP Financier'!$E$19+'BP Financier'!$C$22+'BP Financier'!$D$22+'BP Financier'!$E$22+'BP Financier'!$F$22+'BP Financier'!$F$16+'BP Financier'!$F$19))*$V6485*X6485/(1-$W6485)","v":{"v":1881.5807703763371,"d":"1,882"}},{"$f":"'BP Financier'!$F$44*(('BP Financier'!$C$22+'BP Financier'!$D$22+'BP Financier'!$E$22+'BP Financier'!$F$22)/('BP Financier'!$C$16+'BP Financier'!$C$19+'BP Financier'!$D$16+'BP Financier'!$D$19+'BP Financier'!$E$16+'BP Financier'!$E$19+'BP Financier'!$C$22+'BP Financier'!$D$22+'BP Financier'!$E$22+'BP Financier'!$F$22+'BP Financier'!$F$16+'BP Financier'!$F$19))*$V6485*Y6485/(1-$W6485)","v":{"v":1257.8523382073854,"d":"1,258"}},{"$f":"'BP Financier'!$F$44*(('BP Financier'!$C$22+'BP Financier'!$D$22+'BP Financier'!$E$22+'BP Financier'!$F$22)/('BP Financier'!$C$16+'BP Financier'!$C$19+'BP Financier'!$D$16+'BP Financier'!$D$19+'BP Financier'!$E$16+'BP Financier'!$E$19+'BP Financier'!$C$22+'BP Financier'!$D$22+'BP Financier'!$E$22+'BP Financier'!$F$22+'BP Financier'!$F$16+'BP Financier'!$F$19))*$V6485*Z6485/(1-$W6485)","v":{"v":9844.513754399952,"d":"9,845"}},{"$f":"'BP Financier'!$F$44*(('BP Financier'!$C$22+'BP Financier'!$D$22+'BP Financier'!$E$22+'BP Financier'!$F$22)/('BP Financier'!$C$16+'BP Financier'!$C$19+'BP Financier'!$D$16+'BP Financier'!$D$19+'BP Financier'!$E$16+'BP Financier'!$E$19+'BP Financier'!$C$22+'BP Financier'!$D$22+'BP Financier'!$E$22+'BP Financier'!$F$22+'BP Financier'!$F$16+'BP Financier'!$F$19))*$V6485*AA6485/(1-$W6485)","v":{"v":1216.2704427294555,"d":"1,216"}},{"$f":"'BP Financier'!$F$44*(('BP Financier'!$C$22+'BP Financier'!$D$22+'BP Financier'!$E$22+'BP Financier'!$F$22)/('BP Financier'!$C$16+'BP Financier'!$C$19+'BP Financier'!$D$16+'BP Financier'!$D$19+'BP Financier'!$E$16+'BP Financier'!$E$19+'BP Financier'!$C$22+'BP Financier'!$D$22+'BP Financier'!$E$22+'BP Financier'!$F$22+'BP Financier'!$F$16+'BP Financier'!$F$19))*$V6485*AB6485/(1-$W6485)","v":{"v":582.1465366910213,"d":"582"}},null,{"v":0.0075,"d":"0.75%"},{"$f":"Actif!$E$28/100","v":{"v":0.28900000000000003,"d":"28.90%"}},{"$f":"Actif!$E$30/100","v":{"v":0.09050000000000001,"d":"9.05%"}},{"$f":"Actif!$E$31/100","v":{"v":0.0605,"d":"6.05%"}},{"$f":"Actif!$E$32/100","v":{"v":0.47350000000000003,"d":"47.35%"}},{"$f":"Actif!$E$33/100","v":{"v":0.0585,"d":"5.85%"}},{"$f":"Actif!$E$29/100","v":{"v":0.027999999999999997,"d":"2.80%"}}]
[null,"#379",59,2029,"F","A_CAPI",{"v":0.44999999999999996,"d":"0.45"},{"v":0.38999999999999996,"d":"0.39"},0.6,0.6,85,0,{"$f":"ROUND(Primes!$P$10*V6486,2)","v":0.68},0,{"v":14782.363842404151,"d":"14,782"},{"$f":"'BP Financier'!$F$44*(('BP Financier'!$C$22+'BP Financier'!$D$22+'BP Financier'!$E$22+'BP Financier'!$F$22)/('BP Financier'!$C$16+'BP Financier'!$C$19+'BP Financier'!$D$16+'BP Financier'!$D$19+'BP Financier'!$E$16+'BP Financier'!$E$19+'BP Financier'!$C$22+'BP Financier'!$D$22+'BP Financier'!$E$22+'BP Financier'!$F$22+'BP Financier'!$F$16+'BP Financier'!$F$19))*$V6486*X6486/(1-$W6486)","v":{"v":1881.5807703763371,"d":"1,882"}},{"$f":"'BP Financier'!$F$44*(('BP Financier'!$C$22+'BP Financier'!$D$22+'BP Financier'!$E$22+'BP Financier'!$F$22)/('BP Financier'!$C$16+'BP Financier'!$C$19+'BP Financier'!$D$16+'BP Financier'!$D$19+'BP Financier'!$E$16+'BP Financier'!$E$19+'BP Financier'!$C$22+'BP Financier'!$D$22+'BP Financier'!$E$22+'BP Financier'!$F$22+'BP Financier'!$F$16+'BP Financier'!$F$19))*$V6486*Y6486/(1-$W6486)","v":{"v":1257.8523382073854,"d":"1,258"}},{"$f":"'BP Financier'!$F$44*(('BP Financier'!$C$22+'BP Financier'!$D$22+'BP Financier'!$E$22+'BP Financier'!$F$22)/('BP Financier'!$C$16+'BP Financier'!$C$19+'BP Financier'!$D$16+'BP Financier'!$D$19+'BP Financier'!$E$16+'BP Financier'!$E$19+'BP Financier'!$C$22+'BP Financier'!$D$22+'BP Financier'!$E$22+'BP Financier'!$F$22+'BP Financier'!$F$16+'BP Financier'!$F$19))*$V6486*Z6486/(1-$W6486)","v":{"v":9844.513754399952,"d":"9,845"}},{"$f":"'BP Financier'!$F$44*(('BP Financier'!$C$22+'BP Financier'!$D$22+'BP Financier'!$E$22+'BP Financier'!$F$22)/('BP Financier'!$C$16+'BP Financier'!$C$19+'BP Financier'!$D$16+'BP Financier'!$D$19+'BP Financier'!$E$16+'BP Financier'!$E$19+'BP Financier'!$C$22+'BP Financier'!$D$22+'BP Financier'!$E$22+'BP Financier'!$F$22+'BP Financier'!$F$16+'BP Financier'!$F$19))*$V6486*AA6486/(1-$W6486)","v":{"v":1216.2704427294555,"d":"1,216"}},{"$f":"'BP Financier'!$F$44*(('BP Financier'!$C$22+'BP Financier'!$D$22+'BP Financier'!$E$22+'BP Financier'!$F$22)/('BP Financier'!$C$16+'BP Financier'!$C$19+'BP Financier'!$D$16+'BP Financier'!$D$19+'BP Financier'!$E$16+'BP Financier'!$E$19+'BP Financier'!$C$22+'BP Financier'!$D$22+'BP Financier'!$E$22+'BP Financier'!$F$22+'BP Financier'!$F$16+'BP Financier'!$F$19))*$V6486*AB6486/(1-$W6486)","v":{"v":582.1465366910213,"d":"582"}},null,{"v":0.0075,"d":"0.75%"},{"$f":"Actif!$E$28/100","v":{"v":0.28900000000000003,"d":"28.90%"}},{"$f":"Actif!$E$30/100","v":{"v":0.09050000000000001,"d":"9.05%"}},{"$f":"Actif!$E$31/100","v":{"v":0.0605,"d":"6.05%"}},{"$f":"Actif!$E$32/100","v":{"v":0.47350000000000003,"d":"47.35%"}},{"$f":"Actif!$E$33/100","v":{"v":0.0585,"d":"5.85%"}},{"$f":"Actif!$E$29/100","v":{"v":0.027999999999999997,"d":"2.80%"}}]
[null,"#380",59,2030,"F","A_CAPI",{"v":0.44999999999999996,"d":"0.45"},{"v":0.38999999999999996,"d":"0.39"},0.6,0.6,85,0,{"$f":"ROUND(Primes!$P$10*V6487,2)","v":0.68},0,{"v":14782.363842404151,"d":"14,782"},{"$f":"'BP Financier'!$F$44*(('BP Financier'!$C$22+'BP Financier'!$D$22+'BP Financier'!$E$22+'BP Financier'!$F$22)/('BP Financier'!$C$16+'BP Financier'!$C$19+'BP Financier'!$D$16+'BP Financier'!$D$19+'BP Financier'!$E$16+'BP Financier'!$E$19+'BP Financier'!$C$22+'BP Financier'!$D$22+'BP Financier'!$E$22+'BP Financier'!$F$22+'BP Financier'!$F$16+'BP Financier'!$F$19))*$V6487*X6487/(1-$W6487)","v":{"v":1881.5807703763371,"d":"1,882"}},{"$f":"'BP Financier'!$F$44*(('BP Financier'!$C$22+'BP Financier'!$D$22+'BP Financier'!$E$22+'BP Financier'!$F$22)/('BP Financier'!$C$16+'BP Financier'!$C$19+'BP Financier'!$D$16+'BP Financier'!$D$19+'BP Financier'!$E$16+'BP Financier'!$E$19+'BP Financier'!$C$22+'BP Financier'!$D$22+'BP Financier'!$E$22+'BP Financier'!$F$22+'BP Financier'!$F$16+'BP Financier'!$F$19))*$V6487*Y6487/(1-$W6487)","v":{"v":1257.8523382073854,"d":"1,258"}},{"$f":"'BP Financier'!$F$44*(('BP Financier'!$C$22+'BP Financier'!$D$22+'BP Financier'!$E$22+'BP Financier'!$F$22)/('BP Financier'!$C$16+'BP Financier'!$C$19+'BP Financier'!$D$16+'BP Financier'!$D$19+'BP Financier'!$E$16+'BP Financier'!$E$19+'BP Financier'!$C$22+'BP Financier'!$D$22+'BP Financier'!$E$22+'BP Financier'!$F$22+'BP Financier'!$F$16+'BP Financier'!$F$19))*$V6487*Z6487/(1-$W6487)","v":{"v":9844.513754399952,"d":"9,845"}},{"$f":"'BP Financier'!$F$44*(('BP Financier'!$C$22+'BP Financier'!$D$22+'BP Financier'!$E$22+'BP Financier'!$F$22)/('BP Financier'!$C$16+'BP Financier'!$C$19+'BP Financier'!$D$16+'BP Financier'!$D$19+'BP Financier'!$E$16+'BP Financier'!$E$19+'BP Financier'!$C$22+'BP Financier'!$D$22+'BP Financier'!$E$22+'BP Financier'!$F$22+'BP Financier'!$F$16+'BP Financier'!$F$19))*$V6487*AA6487/(1-$W6487)","v":{"v":1216.2704427294555,"d":"1,216"}},{"$f":"'BP Financier'!$F$44*(('BP Financier'!$C$22+'BP Financier'!$D$22+'BP Financier'!$E$22+'BP Financier'!$F$22)/('BP Financier'!$C$16+'BP Financier'!$C$19+'BP Financier'!$D$16+'BP Financier'!$D$19+'BP Financier'!$E$16+'BP Financier'!$E$19+'BP Financier'!$C$22+'BP Financier'!$D$22+'BP Financier'!$E$22+'BP Financier'!$F$22+'BP Financier'!$F$16+'BP Financier'!$F$19))*$V6487*AB6487/(1-$W6487)","v":{"v":582.1465366910213,"d":"582"}},null,{"v":0.0075,"d":"0.75%"},{"$f":"Actif!$E$28/100","v":{"v":0.28900000000000003,"d":"28.90%"}},{"$f":"Actif!$E$30/100","v":{"v":0.09050000000000001,"d":"9.05%"}},{"$f":"Actif!$E$31/100","v":{"v":0.0605,"d":"6.05%"}},{"$f":"Actif!$E$32/100","v":{"v":0.47350000000000003,"d":"47.35%"}},{"$f":"Actif!$E$33/100","v":{"v":0.0585,"d":"5.85%"}},{"$f":"Actif!$E$29/100","v":{"v":0.027999999999999997,"d":"2.80%"}}]
[null,"#381",60,2026,"H","A_CAPI",{"v":0.44999999999999996,"d":"0.45"},{"v":0.38999999999999996,"d":"0.39"},0.6,0.6,85,0,{"$f":"ROUND(Primes!$P$10*V6488,2)","v":1.13},0,{"v":24637.273070673586,"d":"24,637"},{"$f":"'BP Financier'!$F$44*(('BP Financier'!$C$22+'BP Financier'!$D$22+'BP Financier'!$E$22+'BP Financier'!$F$22)/('BP Financier'!$C$16+'BP Financier'!$C$19+'BP Financier'!$D$16+'BP Financier'!$D$19+'BP Financier'!$E$16+'BP Financier'!$E$19+'BP Financier'!$C$22+'BP Financier'!$D$22+'BP Financier'!$E$22+'BP Financier'!$F$22+'BP Financier'!$F$16+'BP Financier'!$F$19))*$V6488*X6488/(1-$W6488)","v":{"v":3135.967950627229,"d":"3,136"}},{"$f":"'BP Financier'!$F$44*(('BP Financier'!$C$22+'BP Financier'!$D$22+'BP Financier'!$E$22+'BP Financier'!$F$22)/('BP Financier'!$C$16+'BP Financier'!$C$19+'BP Financier'!$D$16+'BP Financier'!$D$19+'BP Financier'!$E$16+'BP Financier'!$E$19+'BP Financier'!$C$22+'BP Financier'!$D$22+'BP Financier'!$E$22+'BP Financier'!$F$22+'BP Financier'!$F$16+'BP Financier'!$F$19))*$V6488*Y6488/(1-$W6488)","v":{"v":2096.420563678976,"d":"2,096"}},{"$f":"'BP Financier'!$F$44*(('BP Financier'!$C$22+'BP Financier'!$D$22+'BP Financier'!$E$22+'BP Financier'!$F$22)/('BP Financier'!$C$16+'BP Financier'!$C$19+'BP Financier'!$D$16+'BP Financier'!$D$19+'BP Financier'!$E$16+'BP Financier'!$E$19+'BP Financier'!$C$22+'BP Financier'!$D$22+'BP Financier'!$E$22+'BP Financier'!$F$22+'BP Financier'!$F$16+'BP Financier'!$F$19))*$V6488*Z6488/(1-$W6488)","v":{"v":16407.52292399992,"d":"16,408"}},{"$f":"'BP Financier'!$F$44*(('BP Financier'!$C$22+'BP Financier'!$D$22+'BP Financier'!$E$22+'BP Financier'!$F$22)/('BP Financier'!$C$16+'BP Financier'!$C$19+'BP Financier'!$D$16+'BP Financier'!$D$19+'BP Financier'!$E$16+'BP Financier'!$E$19+'BP Financier'!$C$22+'BP Financier'!$D$22+'BP Financier'!$E$22+'BP Financier'!$F$22+'BP Financier'!$F$16+'BP Financier'!$F$19))*$V6488*AA6488/(1-$W6488)","v":{"v":2027.1174045490925,"d":"2,027"}},{"$f":"'BP Financier'!$F$44*(('BP Financier'!$C$22+'BP Financier'!$D$22+'BP Financier'!$E$22+'BP Financier'!$F$22)/('BP Financier'!$C$16+'BP Financier'!$C$19+'BP Financier'!$D$16+'BP Financier'!$D$19+'BP Financier'!$E$16+'BP Financier'!$E$19+'BP Financier'!$C$22+'BP Financier'!$D$22+'BP Financier'!$E$22+'BP Financier'!$F$22+'BP Financier'!$F$16+'BP Financier'!$F$19))*$V6488*AB6488/(1-$W6488)","v":{"v":970.2442278183689,"d":"970"}},null,{"v":0.0125,"d":"1.25%"},{"$f":"Actif!$E$28/100","v":{"v":0.28900000000000003,"d":"28.90%"}},{"$f":"Actif!$E$30/100","v":{"v":0.09050000000000001,"d":"9.05%"}},{"$f":"Actif!$E$31/100","v":{"v":0.0605,"d":"6.05%"}},{"$f":"Actif!$E$32/100","v":{"v":0.47350000000000003,"d":"47.35%"}},{"$f":"Actif!$E$33/100","v":{"v":0.0585,"d":"5.85%"}},{"$f":"Actif!$E$29/100","v":{"v":0.027999999999999997,"d":"2.80%"}}]
[null,"#382",60,2028,"H","A_CAPI",{"v":0.44999999999999996,"d":"0.45"},{"v":0.38999999999999996,"d":"0.39"},0.6,0.6,85,0,{"$f":"ROUND(Primes!$P$10*V6489,2)","v":1.13},0,{"v":24637.273070673586,"d":"24,637"},{"$f":"'BP Financier'!$F$44*(('BP Financier'!$C$22+'BP Financier'!$D$22+'BP Financier'!$E$22+'BP Financier'!$F$22)/('BP Financier'!$C$16+'BP Financier'!$C$19+'BP Financier'!$D$16+'BP Financier'!$D$19+'BP Financier'!$E$16+'BP Financier'!$E$19+'BP Financier'!$C$22+'BP Financier'!$D$22+'BP Financier'!$E$22+'BP Financier'!$F$22+'BP Financier'!$F$16+'BP Financier'!$F$19))*$V6489*X6489/(1-$W6489)","v":{"v":3135.967950627229,"d":"3,136"}},{"$f":"'BP Financier'!$F$44*(('BP Financier'!$C$22+'BP Financier'!$D$22+'BP Financier'!$E$22+'BP Financier'!$F$22)/('BP Financier'!$C$16+'BP Financier'!$C$19+'BP Financier'!$D$16+'BP Financier'!$D$19+'BP Financier'!$E$16+'BP Financier'!$E$19+'BP Financier'!$C$22+'BP Financier'!$D$22+'BP Financier'!$E$22+'BP Financier'!$F$22+'BP Financier'!$F$16+'BP Financier'!$F$19))*$V6489*Y6489/(1-$W6489)","v":{"v":2096.420563678976,"d":"2,096"}},{"$f":"'BP Financier'!$F$44*(('BP Financier'!$C$22+'BP Financier'!$D$22+'BP Financier'!$E$22+'BP Financier'!$F$22)/('BP Financier'!$C$16+'BP Financier'!$C$19+'BP Financier'!$D$16+'BP Financier'!$D$19+'BP Financier'!$E$16+'BP Financier'!$E$19+'BP Financier'!$C$22+'BP Financier'!$D$22+'BP Financier'!$E$22+'BP Financier'!$F$22+'BP Financier'!$F$16+'BP Financier'!$F$19))*$V6489*Z6489/(1-$W6489)","v":{"v":16407.52292399992,"d":"16,408"}},{"$f":"'BP Financier'!$F$44*(('BP Financier'!$C$22+'BP Financier'!$D$22+'BP Financier'!$E$22+'BP Financier'!$F$22)/('BP Financier'!$C$16+'BP Financier'!$C$19+'BP Financier'!$D$16+'BP Financier'!$D$19+'BP Financier'!$E$16+'BP Financier'!$E$19+'BP Financier'!$C$22+'BP Financier'!$D$22+'BP Financier'!$E$22+'BP Financier'!$F$22+'BP Financier'!$F$16+'BP Financier'!$F$19))*$V6489*AA6489/(1-$W6489)","v":{"v":2027.1174045490925,"d":"2,027"}},{"$f":"'BP Financier'!$F$44*(('BP Financier'!$C$22+'BP Financier'!$D$22+'BP Financier'!$E$22+'BP Financier'!$F$22)/('BP Financier'!$C$16+'BP Financier'!$C$19+'BP Financier'!$D$16+'BP Financier'!$D$19+'BP Financier'!$E$16+'BP Financier'!$E$19+'BP Financier'!$C$22+'BP Financier'!$D$22+'BP Financier'!$E$22+'BP Financier'!$F$22+'BP Financier'!$F$16+'BP Financier'!$F$19))*$V6489*AB6489/(1-$W6489)","v":{"v":970.2442278183689,"d":"970"}},null,{"v":0.0125,"d":"1.25%"},{"$f":"Actif!$E$28/100","v":{"v":0.28900000000000003,"d":"28.90%"}},{"$f":"Actif!$E$30/100","v":{"v":0.09050000000000001,"d":"9.05%"}},{"$f":"Actif!$E$31/100","v":{"v":0.0605,"d":"6.05%"}},{"$f":"Actif!$E$32/100","v":{"v":0.47350000000000003,"d":"47.35%"}},{"$f":"Actif!$E$33/100","v":{"v":0.0585,"d":"5.85%"}},{"$f":"Actif!$E$29/100","v":{"v":0.027999999999999997,"d":"2.80%"}}]
[null,"#383",60,2029,"H","A_CAPI",{"v":0.44999999999999996,"d":"0.45"},{"v":0.38999999999999996,"d":"0.39"},0.6,0.6,85,0,{"$f":"ROUND(Primes!$P$10*V6490,2)","v":1.13},0,{"v":24637.273070673586,"d":"24,637"},{"$f":"'BP Financier'!$F$44*(('BP Financier'!$C$22+'BP Financier'!$D$22+'BP Financier'!$E$22+'BP Financier'!$F$22)/('BP Financier'!$C$16+'BP Financier'!$C$19+'BP Financier'!$D$16+'BP Financier'!$D$19+'BP Financier'!$E$16+'BP Financier'!$E$19+'BP Financier'!$C$22+'BP Financier'!$D$22+'BP Financier'!$E$22+'BP Financier'!$F$22+'BP Financier'!$F$16+'BP Financier'!$F$19))*$V6490*X6490/(1-$W6490)","v":{"v":3135.967950627229,"d":"3,136"}},{"$f":"'BP Financier'!$F$44*(('BP Financier'!$C$22+'BP Financier'!$D$22+'BP Financier'!$E$22+'BP Financier'!$F$22)/('BP Financier'!$C$16+'BP Financier'!$C$19+'BP Financier'!$D$16+'BP Financier'!$D$19+'BP Financier'!$E$16+'BP Financier'!$E$19+'BP Financier'!$C$22+'BP Financier'!$D$22+'BP Financier'!$E$22+'BP Financier'!$F$22+'BP Financier'!$F$16+'BP Financier'!$F$19))*$V6490*Y6490/(1-$W6490)","v":{"v":2096.420563678976,"d":"2,096"}},{"$f":"'BP Financier'!$F$44*(('BP Financier'!$C$22+'BP Financier'!$D$22+'BP Financier'!$E$22+'BP Financier'!$F$22)/('BP Financier'!$C$16+'BP Financier'!$C$19+'BP Financier'!$D$16+'BP Financier'!$D$19+'BP Financier'!$E$16+'BP Financier'!$E$19+'BP Financier'!$C$22+'BP Financier'!$D$22+'BP Financier'!$E$22+'BP Financier'!$F$22+'BP Financier'!$F$16+'BP Financier'!$F$19))*$V6490*Z6490/(1-$W6490)","v":{"v":16407.52292399992,"d":"16,408"}},{"$f":"'BP Financier'!$F$44*(('BP Financier'!$C$22+'BP Financier'!$D$22+'BP Financier'!$E$22+'BP Financier'!$F$22)/('BP Financier'!$C$16+'BP Financier'!$C$19+'BP Financier'!$D$16+'BP Financier'!$D$19+'BP Financier'!$E$16+'BP Financier'!$E$19+'BP Financier'!$C$22+'BP Financier'!$D$22+'BP Financier'!$E$22+'BP Financier'!$F$22+'BP Financier'!$F$16+'BP Financier'!$F$19))*$V6490*AA6490/(1-$W6490)","v":{"v":2027.1174045490925,"d":"2,027"}},{"$f":"'BP Financier'!$F$44*(('BP Financier'!$C$22+'BP Financier'!$D$22+'BP Financier'!$E$22+'BP Financier'!$F$22)/('BP Financier'!$C$16+'BP Financier'!$C$19+'BP Financier'!$D$16+'BP Financier'!$D$19+'BP Financier'!$E$16+'BP Financier'!$E$19+'BP Financier'!$C$22+'BP Financier'!$D$22+'BP Financier'!$E$22+'BP Financier'!$F$22+'BP Financier'!$F$16+'BP Financier'!$F$19))*$V6490*AB6490/(1-$W6490)","v":{"v":970.2442278183689,"d":"970"}},null,{"v":0.0125,"d":"1.25%"},{"$f":"Actif!$E$28/100","v":{"v":0.28900000000000003,"d":"28.90%"}},{"$f":"Actif!$E$30/100","v":{"v":0.09050000000000001,"d":"9.05%"}},{"$f":"Actif!$E$31/100","v":{"v":0.0605,"d":"6.05%"}},{"$f":"Actif!$E$32/100","v":{"v":0.47350000000000003,"d":"47.35%"}},{"$f":"Actif!$E$33/100","v":{"v":0.0585,"d":"5.85%"}},{"$f":"Actif!$E$29/100","v":{"v":0.027999999999999997,"d":"2.80%"}}]
[null,"#384",60,2030,"H","A_CAPI",{"v":0.44999999999999996,"d":"0.45"},{"v":0.38999999999999996,"d":"0.39"},0.6,0.6,85,0,{"$f":"ROUND(Primes!$P$10*V6491,2)","v":1.13},0,{"$f":"SUM(P6491:T6491)","v":{"v":24637.273070673586,"d":"24,637"}},{"$f":"'BP Financier'!$F$44*(('BP Financier'!$C$22+'BP Financier'!$D$22+'BP Financier'!$E$22+'BP Financier'!$F$22)/('BP Financier'!$C$16+'BP Financier'!$C$19+'BP Financier'!$D$16+'BP Financier'!$D$19+'BP Financier'!$E$16+'BP Financier'!$E$19+'BP Financier'!$C$22+'BP Financier'!$D$22+'BP Financier'!$E$22+'BP Financier'!$F$22+'BP Financier'!$F$16+'BP Financier'!$F$19))*$V6491*X6491/(1-$W6491)","v":{"v":3135.967950627229,"d":"3,136"}},{"$f":"'BP Financier'!$F$44*(('BP Financier'!$C$22+'BP Financier'!$D$22+'BP Financier'!$E$22+'BP Financier'!$F$22)/('BP Financier'!$C$16+'BP Financier'!$C$19+'BP Financier'!$D$16+'BP Financier'!$D$19+'BP Financier'!$E$16+'BP Financier'!$E$19+'BP Financier'!$C$22+'BP Financier'!$D$22+'BP Financier'!$E$22+'BP Financier'!$F$22+'BP Financier'!$F$16+'BP Financier'!$F$19))*$V6491*Y6491/(1-$W6491)","v":{"v":2096.420563678976,"d":"2,096"}},{"$f":"'BP Financier'!$F$44*(('BP Financier'!$C$22+'BP Financier'!$D$22+'BP Financier'!$E$22+'BP Financier'!$F$22)/('BP Financier'!$C$16+'BP Financier'!$C$19+'BP Financier'!$D$16+'BP Financier'!$D$19+'BP Financier'!$E$16+'BP Financier'!$E$19+'BP Financier'!$C$22+'BP Financier'!$D$22+'BP Financier'!$E$22+'BP Financier'!$F$22+'BP Financier'!$F$16+'BP Financier'!$F$19))*$V6491*Z6491/(1-$W6491)","v":{"v":16407.52292399992,"d":"16,408"}},{"$f":"'BP Financier'!$F$44*(('BP Financier'!$C$22+'BP Financier'!$D$22+'BP Financier'!$E$22+'BP Financier'!$F$22)/('BP Financier'!$C$16+'BP Financier'!$C$19+'BP Financier'!$D$16+'BP Financier'!$D$19+'BP Financier'!$E$16+'BP Financier'!$E$19+'BP Financier'!$C$22+'BP Financier'!$D$22+'BP Financier'!$E$22+'BP Financier'!$F$22+'BP Financier'!$F$16+'BP Financier'!$F$19))*$V6491*AA6491/(1-$W6491)","v":{"v":2027.1174045490925,"d":"2,027"}},{"$f":"'BP Financier'!$F$44*(('BP Financier'!$C$22+'BP Financier'!$D$22+'BP Financier'!$E$22+'BP Financier'!$F$22)/('BP Financier'!$C$16+'BP Financier'!$C$19+'BP Financier'!$D$16+'BP Financier'!$D$19+'BP Financier'!$E$16+'BP Financier'!$E$19+'BP Financier'!$C$22+'BP Financier'!$D$22+'BP Financier'!$E$22+'BP Financier'!$F$22+'BP Financier'!$F$16+'BP Financier'!$F$19))*$V6491*AB6491/(1-$W6491)","v":{"v":970.2442278183689,"d":"970"}},null,{"v":0.0125,"d":"1.25%"},{"$f":"Actif!$E$28/100","v":{"v":0.28900000000000003,"d":"28.90%"}},{"$f":"Actif!$E$30/100","v":{"v":0.09050000000000001,"d":"9.05%"}},{"$f":"Actif!$E$31/100","v":{"v":0.0605,"d":"6.05%"}},{"$f":"Actif!$E$32/100","v":{"v":0.47350000000000003,"d":"47.35%"}},{"$f":"Actif!$E$33/100","v":{"v":0.0585,"d":"5.85%"}},{"$f":"Actif!$E$29/100","v":{"v":0.027999999999999997,"d":"2.80%"}}]
[null,"#385",61,2026,"H","A_CAPI",{"v":0.44999999999999996,"d":"0.45"},{"v":0.38999999999999996,"d":"0.39"},0.6,0.6,85,0,{"$f":"ROUND(Primes!$P$10*V6492,2)","v":0.68},0,{"v":14782.363842404151,"d":"14,782"},{"$f":"'BP Financier'!$F$44*(('BP Financier'!$C$22+'BP Financier'!$D$22+'BP Financier'!$E$22+'BP Financier'!$F$22)/('BP Financier'!$C$16+'BP Financier'!$C$19+'BP Financier'!$D$16+'BP Financier'!$D$19+'BP Financier'!$E$16+'BP Financier'!$E$19+'BP Financier'!$C$22+'BP Financier'!$D$22+'BP Financier'!$E$22+'BP Financier'!$F$22+'BP Financier'!$F$16+'BP Financier'!$F$19))*$V6492*X6492/(1-$W6492)","v":{"v":1881.5807703763371,"d":"1,882"}},{"$f":"'BP Financier'!$F$44*(('BP Financier'!$C$22+'BP Financier'!$D$22+'BP Financier'!$E$22+'BP Financier'!$F$22)/('BP Financier'!$C$16+'BP Financier'!$C$19+'BP Financier'!$D$16+'BP Financier'!$D$19+'BP Financier'!$E$16+'BP Financier'!$E$19+'BP Financier'!$C$22+'BP Financier'!$D$22+'BP Financier'!$E$22+'BP Financier'!$F$22+'BP Financier'!$F$16+'BP Financier'!$F$19))*$V6492*Y6492/(1-$W6492)","v":{"v":1257.8523382073854,"d":"1,258"}},{"$f":"'BP Financier'!$F$44*(('BP Financier'!$C$22+'BP Financier'!$D$22+'BP Financier'!$E$22+'BP Financier'!$F$22)/('BP Financier'!$C$16+'BP Financier'!$C$19+'BP Financier'!$D$16+'BP Financier'!$D$19+'BP Financier'!$E$16+'BP Financier'!$E$19+'BP Financier'!$C$22+'BP Financier'!$D$22+'BP Financier'!$E$22+'BP Financier'!$F$22+'BP Financier'!$F$16+'BP Financier'!$F$19))*$V6492*Z6492/(1-$W6492)","v":{"v":9844.513754399952,"d":"9,845"}},{"$f":"'BP Financier'!$F$44*(('BP Financier'!$C$22+'BP Financier'!$D$22+'BP Financier'!$E$22+'BP Financier'!$F$22)/('BP Financier'!$C$16+'BP Financier'!$C$19+'BP Financier'!$D$16+'BP Financier'!$D$19+'BP Financier'!$E$16+'BP Financier'!$E$19+'BP Financier'!$C$22+'BP Financier'!$D$22+'BP Financier'!$E$22+'BP Financier'!$F$22+'BP Financier'!$F$16+'BP Financier'!$F$19))*$V6492*AA6492/(1-$W6492)","v":{"v":1216.2704427294555,"d":"1,216"}},{"$f":"'BP Financier'!$F$44*(('BP Financier'!$C$22+'BP Financier'!$D$22+'BP Financier'!$E$22+'BP Financier'!$F$22)/('BP Financier'!$C$16+'BP Financier'!$C$19+'BP Financier'!$D$16+'BP Financier'!$D$19+'BP Financier'!$E$16+'BP Financier'!$E$19+'BP Financier'!$C$22+'BP Financier'!$D$22+'BP Financier'!$E$22+'BP Financier'!$F$22+'BP Financier'!$F$16+'BP Financier'!$F$19))*$V6492*AB6492/(1-$W6492)","v":{"v":582.1465366910213,"d":"582"}},null,{"v":0.0075,"d":"0.75%"},{"$f":"Actif!$E$28/100","v":{"v":0.28900000000000003,"d":"28.90%"}},{"$f":"Actif!$E$30/100","v":{"v":0.09050000000000001,"d":"9.05%"}},{"$f":"Actif!$E$31/100","v":{"v":0.0605,"d":"6.05%"}},{"$f":"Actif!$E$32/100","v":{"v":0.47350000000000003,"d":"47.35%"}},{"$f":"Actif!$E$33/100","v":{"v":0.0585,"d":"5.85%"}},{"$f":"Actif!$E$29/100","v":{"v":0.027999999999999997,"d":"2.80%"}}]
[null,"#386",61,2028,"H","A_CAPI",{"v":0.44999999999999996,"d":"0.45"},{"v":0.38999999999999996,"d":"0.39"},0.6,0.6,85,0,{"$f":"ROUND(Primes!$P$10*V6493,2)","v":0.68},0,{"v":14782.363842404151,"d":"14,782"},{"$f":"'BP Financier'!$F$44*(('BP Financier'!$C$22+'BP Financier'!$D$22+'BP Financier'!$E$22+'BP Financier'!$F$22)/('BP Financier'!$C$16+'BP Financier'!$C$19+'BP Financier'!$D$16+'BP Financier'!$D$19+'BP Financier'!$E$16+'BP Financier'!$E$19+'BP Financier'!$C$22+'BP Financier'!$D$22+'BP Financier'!$E$22+'BP Financier'!$F$22+'BP Financier'!$F$16+'BP Financier'!$F$19))*$V6493*X6493/(1-$W6493)","v":{"v":1881.5807703763371,"d":"1,882"}},{"$f":"'BP Financier'!$F$44*(('BP Financier'!$C$22+'BP Financier'!$D$22+'BP Financier'!$E$22+'BP Financier'!$F$22)/('BP Financier'!$C$16+'BP Financier'!$C$19+'BP Financier'!$D$16+'BP Financier'!$D$19+'BP Financier'!$E$16+'BP Financier'!$E$19+'BP Financier'!$C$22+'BP Financier'!$D$22+'BP Financier'!$E$22+'BP Financier'!$F$22+'BP Financier'!$F$16+'BP Financier'!$F$19))*$V6493*Y6493/(1-$W6493)","v":{"v":1257.8523382073854,"d":"1,258"}},{"$f":"'BP Financier'!$F$44*(('BP Financier'!$C$22+'BP Financier'!$D$22+'BP Financier'!$E$22+'BP Financier'!$F$22)/('BP Financier'!$C$16+'BP Financier'!$C$19+'BP Financier'!$D$16+'BP Financier'!$D$19+'BP Financier'!$E$16+'BP Financier'!$E$19+'BP Financier'!$C$22+'BP Financier'!$D$22+'BP Financier'!$E$22+'BP Financier'!$F$22+'BP Financier'!$F$16+'BP Financier'!$F$19))*$V6493*Z6493/(1-$W6493)","v":{"v":9844.513754399952,"d":"9,845"}},{"$f":"'BP Financier'!$F$44*(('BP Financier'!$C$22+'BP Financier'!$D$22+'BP Financier'!$E$22+'BP Financier'!$F$22)/('BP Financier'!$C$16+'BP Financier'!$C$19+'BP Financier'!$D$16+'BP Financier'!$D$19+'BP Financier'!$E$16+'BP Financier'!$E$19+'BP Financier'!$C$22+'BP Financier'!$D$22+'BP Financier'!$E$22+'BP Financier'!$F$22+'BP Financier'!$F$16+'BP Financier'!$F$19))*$V6493*AA6493/(1-$W6493)","v":{"v":1216.2704427294555,"d":"1,216"}},{"$f":"'BP Financier'!$F$44*(('BP Financier'!$C$22+'BP Financier'!$D$22+'BP Financier'!$E$22+'BP Financier'!$F$22)/('BP Financier'!$C$16+'BP Financier'!$C$19+'BP Financier'!$D$16+'BP Financier'!$D$19+'BP Financier'!$E$16+'BP Financier'!$E$19+'BP Financier'!$C$22+'BP Financier'!$D$22+'BP Financier'!$E$22+'BP Financier'!$F$22+'BP Financier'!$F$16+'BP Financier'!$F$19))*$V6493*AB6493/(1-$W6493)","v":{"v":582.1465366910213,"d":"582"}},null,{"v":0.0075,"d":"0.75%"},{"$f":"Actif!$E$28/100","v":{"v":0.28900000000000003,"d":"28.90%"}},{"$f":"Actif!$E$30/100","v":{"v":0.09050000000000001,"d":"9.05%"}},{"$f":"Actif!$E$31/100","v":{"v":0.0605,"d":"6.05%"}},{"$f":"Actif!$E$32/100","v":{"v":0.47350000000000003,"d":"47.35%"}},{"$f":"Actif!$E$33/100","v":{"v":0.0585,"d":"5.85%"}},{"$f":"Actif!$E$29/100","v":{"v":0.027999999999999997,"d":"2.80%"}}]
[null,"#387",61,2029,"H","A_CAPI",{"v":0.44999999999999996,"d":"0.45"},{"v":0.38999999999999996,"d":"0.39"},0.6,0.6,85,0,{"$f":"ROUND(Primes!$P$10*V6494,2)","v":0.68},0,{"v":14782.363842404151,"d":"14,782"},{"$f":"'BP Financier'!$F$44*(('BP Financier'!$C$22+'BP Financier'!$D$22+'BP Financier'!$E$22+'BP Financier'!$F$22)/('BP Financier'!$C$16+'BP Financier'!$C$19+'BP Financier'!$D$16+'BP Financier'!$D$19+'BP Financier'!$E$16+'BP Financier'!$E$19+'BP Financier'!$C$22+'BP Financier'!$D$22+'BP Financier'!$E$22+'BP Financier'!$F$22+'BP Financier'!$F$16+'BP Financier'!$F$19))*$V6494*X6494/(1-$W6494)","v":{"v":1881.5807703763371,"d":"1,882"}},{"$f":"'BP Financier'!$F$44*(('BP Financier'!$C$22+'BP Financier'!$D$22+'BP Financier'!$E$22+'BP Financier'!$F$22)/('BP Financier'!$C$16+'BP Financier'!$C$19+'BP Financier'!$D$16+'BP Financier'!$D$19+'BP Financier'!$E$16+'BP Financier'!$E$19+'BP Financier'!$C$22+'BP Financier'!$D$22+'BP Financier'!$E$22+'BP Financier'!$F$22+'BP Financier'!$F$16+'BP Financier'!$F$19))*$V6494*Y6494/(1-$W6494)","v":{"v":1257.8523382073854,"d":"1,258"}},{"$f":"'BP Financier'!$F$44*(('BP Financier'!$C$22+'BP Financier'!$D$22+'BP Financier'!$E$22+'BP Financier'!$F$22)/('BP Financier'!$C$16+'BP Financier'!$C$19+'BP Financier'!$D$16+'BP Financier'!$D$19+'BP Financier'!$E$16+'BP Financier'!$E$19+'BP Financier'!$C$22+'BP Financier'!$D$22+'BP Financier'!$E$22+'BP Financier'!$F$22+'BP Financier'!$F$16+'BP Financier'!$F$19))*$V6494*Z6494/(1-$W6494)","v":{"v":9844.513754399952,"d":"9,845"}},{"$f":"'BP Financier'!$F$44*(('BP Financier'!$C$22+'BP Financier'!$D$22+'BP Financier'!$E$22+'BP Financier'!$F$22)/('BP Financier'!$C$16+'BP Financier'!$C$19+'BP Financier'!$D$16+'BP Financier'!$D$19+'BP Financier'!$E$16+'BP Financier'!$E$19+'BP Financier'!$C$22+'BP Financier'!$D$22+'BP Financier'!$E$22+'BP Financier'!$F$22+'BP Financier'!$F$16+'BP Financier'!$F$19))*$V6494*AA6494/(1-$W6494)","v":{"v":1216.2704427294555,"d":"1,216"}},{"$f":"'BP Financier'!$F$44*(('BP Financier'!$C$22+'BP Financier'!$D$22+'BP Financier'!$E$22+'BP Financier'!$F$22)/('BP Financier'!$C$16+'BP Financier'!$C$19+'BP Financier'!$D$16+'BP Financier'!$D$19+'BP Financier'!$E$16+'BP Financier'!$E$19+'BP Financier'!$C$22+'BP Financier'!$D$22+'BP Financier'!$E$22+'BP Financier'!$F$22+'BP Financier'!$F$16+'BP Financier'!$F$19))*$V6494*AB6494/(1-$W6494)","v":{"v":582.1465366910213,"d":"582"}},null,{"v":0.0075,"d":"0.75%"},{"$f":"Actif!$E$28/100","v":{"v":0.28900000000000003,"d":"28.90%"}},{"$f":"Actif!$E$30/100","v":{"v":0.09050000000000001,"d":"9.05%"}},{"$f":"Actif!$E$31/100","v":{"v":0.0605,"d":"6.05%"}},{"$f":"Actif!$E$32/100","v":{"v":0.47350000000000003,"d":"47.35%"}},{"$f":"Actif!$E$33/100","v":{"v":0.0585,"d":"5.85%"}},{"$f":"Actif!$E$29/100","v":{"v":0.027999999999999997,"d":"2.80%"}}]
[null,"#388",61,2030,"H","A_CAPI",{"v":0.44999999999999996,"d":"0.45"},{"v":0.38999999999999996,"d":"0.39"},0.6,0.6,85,0,{"$f":"ROUND(Primes!$P$10*V6495,2)","v":0.68},0,{"v":14782.363842404151,"d":"14,782"},{"$f":"'BP Financier'!$F$44*(('BP Financier'!$C$22+'BP Financier'!$D$22+'BP Financier'!$E$22+'BP Financier'!$F$22)/('BP Financier'!$C$16+'BP Financier'!$C$19+'BP Financier'!$D$16+'BP Financier'!$D$19+'BP Financier'!$E$16+'BP Financier'!$E$19+'BP Financier'!$C$22+'BP Financier'!$D$22+'BP Financier'!$E$22+'BP Financier'!$F$22+'BP Financier'!$F$16+'BP Financier'!$F$19))*$V6495*X6495/(1-$W6495)","v":{"v":1881.5807703763371,"d":"1,882"}},{"$f":"'BP Financier'!$F$44*(('BP Financier'!$C$22+'BP Financier'!$D$22+'BP Financier'!$E$22+'BP Financier'!$F$22)/('BP Financier'!$C$16+'BP Financier'!$C$19+'BP Financier'!$D$16+'BP Financier'!$D$19+'BP Financier'!$E$16+'BP Financier'!$E$19+'BP Financier'!$C$22+'BP Financier'!$D$22+'BP Financier'!$E$22+'BP Financier'!$F$22+'BP Financier'!$F$16+'BP Financier'!$F$19))*$V6495*Y6495/(1-$W6495)","v":{"v":1257.8523382073854,"d":"1,258"}},{"$f":"'BP Financier'!$F$44*(('BP Financier'!$C$22+'BP Financier'!$D$22+'BP Financier'!$E$22+'BP Financier'!$F$22)/('BP Financier'!$C$16+'BP Financier'!$C$19+'BP Financier'!$D$16+'BP Financier'!$D$19+'BP Financier'!$E$16+'BP Financier'!$E$19+'BP Financier'!$C$22+'BP Financier'!$D$22+'BP Financier'!$E$22+'BP Financier'!$F$22+'BP Financier'!$F$16+'BP Financier'!$F$19))*$V6495*Z6495/(1-$W6495)","v":{"v":9844.513754399952,"d":"9,845"}},{"$f":"'BP Financier'!$F$44*(('BP Financier'!$C$22+'BP Financier'!$D$22+'BP Financier'!$E$22+'BP Financier'!$F$22)/('BP Financier'!$C$16+'BP Financier'!$C$19+'BP Financier'!$D$16+'BP Financier'!$D$19+'BP Financier'!$E$16+'BP Financier'!$E$19+'BP Financier'!$C$22+'BP Financier'!$D$22+'BP Financier'!$E$22+'BP Financier'!$F$22+'BP Financier'!$F$16+'BP Financier'!$F$19))*$V6495*AA6495/(1-$W6495)","v":{"v":1216.2704427294555,"d":"1,216"}},{"$f":"'BP Financier'!$F$44*(('BP Financier'!$C$22+'BP Financier'!$D$22+'BP Financier'!$E$22+'BP Financier'!$F$22)/('BP Financier'!$C$16+'BP Financier'!$C$19+'BP Financier'!$D$16+'BP Financier'!$D$19+'BP Financier'!$E$16+'BP Financier'!$E$19+'BP Financier'!$C$22+'BP Financier'!$D$22+'BP Financier'!$E$22+'BP Financier'!$F$22+'BP Financier'!$F$16+'BP Financier'!$F$19))*$V6495*AB6495/(1-$W6495)","v":{"v":582.1465366910213,"d":"582"}},null,{"v":0.0075,"d":"0.75%"},{"$f":"Actif!$E$28/100","v":{"v":0.28900000000000003,"d":"28.90%"}},{"$f":"Actif!$E$30/100","v":{"v":0.09050000000000001,"d":"9.05%"}},{"$f":"Actif!$E$31/100","v":{"v":0.0605,"d":"6.05%"}},{"$f":"Actif!$E$32/100","v":{"v":0.47350000000000003,"d":"47.35%"}},{"$f":"Actif!$E$33/100","v":{"v":0.0585,"d":"5.85%"}},{"$f":"Actif!$E$29/100","v":{"v":0.027999999999999997,"d":"2.80%"}}]
[null,"#389",62,2026,"F","A_CAPI",{"v":0.44999999999999996,"d":"0.45"},{"v":0.38999999999999996,"d":"0.39"},0.6,0.6,85,0,{"$f":"ROUND(Primes!$P$10*V6496,2)","v":0.68},0,{"v":14782.363842404151,"d":"14,782"},{"$f":"'BP Financier'!$F$44*(('BP Financier'!$C$22+'BP Financier'!$D$22+'BP Financier'!$E$22+'BP Financier'!$F$22)/('BP Financier'!$C$16+'BP Financier'!$C$19+'BP Financier'!$D$16+'BP Financier'!$D$19+'BP Financier'!$E$16+'BP Financier'!$E$19+'BP Financier'!$C$22+'BP Financier'!$D$22+'BP Financier'!$E$22+'BP Financier'!$F$22+'BP Financier'!$F$16+'BP Financier'!$F$19))*$V6496*X6496/(1-$W6496)","v":{"v":1881.5807703763371,"d":"1,882"}},{"$f":"'BP Financier'!$F$44*(('BP Financier'!$C$22+'BP Financier'!$D$22+'BP Financier'!$E$22+'BP Financier'!$F$22)/('BP Financier'!$C$16+'BP Financier'!$C$19+'BP Financier'!$D$16+'BP Financier'!$D$19+'BP Financier'!$E$16+'BP Financier'!$E$19+'BP Financier'!$C$22+'BP Financier'!$D$22+'BP Financier'!$E$22+'BP Financier'!$F$22+'BP Financier'!$F$16+'BP Financier'!$F$19))*$V6496*Y6496/(1-$W6496)","v":{"v":1257.8523382073854,"d":"1,258"}},{"$f":"'BP Financier'!$F$44*(('BP Financier'!$C$22+'BP Financier'!$D$22+'BP Financier'!$E$22+'BP Financier'!$F$22)/('BP Financier'!$C$16+'BP Financier'!$C$19+'BP Financier'!$D$16+'BP Financier'!$D$19+'BP Financier'!$E$16+'BP Financier'!$E$19+'BP Financier'!$C$22+'BP Financier'!$D$22+'BP Financier'!$E$22+'BP Financier'!$F$22+'BP Financier'!$F$16+'BP Financier'!$F$19))*$V6496*Z6496/(1-$W6496)","v":{"v":9844.513754399952,"d":"9,845"}},{"$f":"'BP Financier'!$F$44*(('BP Financier'!$C$22+'BP Financier'!$D$22+'BP Financier'!$E$22+'BP Financier'!$F$22)/('BP Financier'!$C$16+'BP Financier'!$C$19+'BP Financier'!$D$16+'BP Financier'!$D$19+'BP Financier'!$E$16+'BP Financier'!$E$19+'BP Financier'!$C$22+'BP Financier'!$D$22+'BP Financier'!$E$22+'BP Financier'!$F$22+'BP Financier'!$F$16+'BP Financier'!$F$19))*$V6496*AA6496/(1-$W6496)","v":{"v":1216.2704427294555,"d":"1,216"}},{"$f":"'BP Financier'!$F$44*(('BP Financier'!$C$22+'BP Financier'!$D$22+'BP Financier'!$E$22+'BP Financier'!$F$22)/('BP Financier'!$C$16+'BP Financier'!$C$19+'BP Financier'!$D$16+'BP Financier'!$D$19+'BP Financier'!$E$16+'BP Financier'!$E$19+'BP Financier'!$C$22+'BP Financier'!$D$22+'BP Financier'!$E$22+'BP Financier'!$F$22+'BP Financier'!$F$16+'BP Financier'!$F$19))*$V6496*AB6496/(1-$W6496)","v":{"v":582.1465366910213,"d":"582"}},null,{"v":0.0075,"d":"0.75%"},{"$f":"Actif!$E$28/100","v":{"v":0.28900000000000003,"d":"28.90%"}},{"$f":"Actif!$E$30/100","v":{"v":0.09050000000000001,"d":"9.05%"}},{"$f":"Actif!$E$31/100","v":{"v":0.0605,"d":"6.05%"}},{"$f":"Actif!$E$32/100","v":{"v":0.47350000000000003,"d":"47.35%"}},{"$f":"Actif!$E$33/100","v":{"v":0.0585,"d":"5.85%"}},{"$f":"Actif!$E$29/100","v":{"v":0.027999999999999997,"d":"2.80%"}}]
[null,"#390",62,2028,"F","A_CAPI",{"v":0.44999999999999996,"d":"0.45"},{"v":0.38999999999999996,"d":"0.39"},0.6,0.6,85,0,{"$f":"ROUND(Primes!$P$10*V6497,2)","v":0.68},0,{"v":14782.363842404151,"d":"14,782"},{"$f":"'BP Financier'!$F$44*(('BP Financier'!$C$22+'BP Financier'!$D$22+'BP Financier'!$E$22+'BP Financier'!$F$22)/('BP Financier'!$C$16+'BP Financier'!$C$19+'BP Financier'!$D$16+'BP Financier'!$D$19+'BP Financier'!$E$16+'BP Financier'!$E$19+'BP Financier'!$C$22+'BP Financier'!$D$22+'BP Financier'!$E$22+'BP Financier'!$F$22+'BP Financier'!$F$16+'BP Financier'!$F$19))*$V6497*X6497/(1-$W6497)","v":{"v":1881.5807703763371,"d":"1,882"}},{"$f":"'BP Financier'!$F$44*(('BP Financier'!$C$22+'BP Financier'!$D$22+'BP Financier'!$E$22+'BP Financier'!$F$22)/('BP Financier'!$C$16+'BP Financier'!$C$19+'BP Financier'!$D$16+'BP Financier'!$D$19+'BP Financier'!$E$16+'BP Financier'!$E$19+'BP Financier'!$C$22+'BP Financier'!$D$22+'BP Financier'!$E$22+'BP Financier'!$F$22+'BP Financier'!$F$16+'BP Financier'!$F$19))*$V6497*Y6497/(1-$W6497)","v":{"v":1257.8523382073854,"d":"1,258"}},{"$f":"'BP Financier'!$F$44*(('BP Financier'!$C$22+'BP Financier'!$D$22+'BP Financier'!$E$22+'BP Financier'!$F$22)/('BP Financier'!$C$16+'BP Financier'!$C$19+'BP Financier'!$D$16+'BP Financier'!$D$19+'BP Financier'!$E$16+'BP Financier'!$E$19+'BP Financier'!$C$22+'BP Financier'!$D$22+'BP Financier'!$E$22+'BP Financier'!$F$22+'BP Financier'!$F$16+'BP Financier'!$F$19))*$V6497*Z6497/(1-$W6497)","v":{"v":9844.513754399952,"d":"9,845"}},{"$f":"'BP Financier'!$F$44*(('BP Financier'!$C$22+'BP Financier'!$D$22+'BP Financier'!$E$22+'BP Financier'!$F$22)/('BP Financier'!$C$16+'BP Financier'!$C$19+'BP Financier'!$D$16+'BP Financier'!$D$19+'BP Financier'!$E$16+'BP Financier'!$E$19+'BP Financier'!$C$22+'BP Financier'!$D$22+'BP Financier'!$E$22+'BP Financier'!$F$22+'BP Financier'!$F$16+'BP Financier'!$F$19))*$V6497*AA6497/(1-$W6497)","v":{"v":1216.2704427294555,"d":"1,216"}},{"$f":"'BP Financier'!$F$44*(('BP Financier'!$C$22+'BP Financier'!$D$22+'BP Financier'!$E$22+'BP Financier'!$F$22)/('BP Financier'!$C$16+'BP Financier'!$C$19+'BP Financier'!$D$16+'BP Financier'!$D$19+'BP Financier'!$E$16+'BP Financier'!$E$19+'BP Financier'!$C$22+'BP Financier'!$D$22+'BP Financier'!$E$22+'BP Financier'!$F$22+'BP Financier'!$F$16+'BP Financier'!$F$19))*$V6497*AB6497/(1-$W6497)","v":{"v":582.1465366910213,"d":"582"}},null,{"v":0.0075,"d":"0.75%"},{"$f":"Actif!$E$28/100","v":{"v":0.28900000000000003,"d":"28.90%"}},{"$f":"Actif!$E$30/100","v":{"v":0.09050000000000001,"d":"9.05%"}},{"$f":"Actif!$E$31/100","v":{"v":0.0605,"d":"6.05%"}},{"$f":"Actif!$E$32/100","v":{"v":0.47350000000000003,"d":"47.35%"}},{"$f":"Actif!$E$33/100","v":{"v":0.0585,"d":"5.85%"}},{"$f":"Actif!$E$29/100","v":{"v":0.027999999999999997,"d":"2.80%"}}]
[null,"#391",62,2029,"F","A_CAPI",{"v":0.44999999999999996,"d":"0.45"},{"v":0.38999999999999996,"d":"0.39"},0.6,0.6,85,0,{"$f":"ROUND(Primes!$P$10*V6498,2)","v":0.68},0,{"v":14782.363842404151,"d":"14,782"},{"$f":"'BP Financier'!$F$44*(('BP Financier'!$C$22+'BP Financier'!$D$22+'BP Financier'!$E$22+'BP Financier'!$F$22)/('BP Financier'!$C$16+'BP Financier'!$C$19+'BP Financier'!$D$16+'BP Financier'!$D$19+'BP Financier'!$E$16+'BP Financier'!$E$19+'BP Financier'!$C$22+'BP Financier'!$D$22+'BP Financier'!$E$22+'BP Financier'!$F$22+'BP Financier'!$F$16+'BP Financier'!$F$19))*$V6498*X6498/(1-$W6498)","v":{"v":1881.5807703763371,"d":"1,882"}},{"$f":"'BP Financier'!$F$44*(('BP Financier'!$C$22+'BP Financier'!$D$22+'BP Financier'!$E$22+'BP Financier'!$F$22)/('BP Financier'!$C$16+'BP Financier'!$C$19+'BP Financier'!$D$16+'BP Financier'!$D$19+'BP Financier'!$E$16+'BP Financier'!$E$19+'BP Financier'!$C$22+'BP Financier'!$D$22+'BP Financier'!$E$22+'BP Financier'!$F$22+'BP Financier'!$F$16+'BP Financier'!$F$19))*$V6498*Y6498/(1-$W6498)","v":{"v":1257.8523382073854,"d":"1,258"}},{"$f":"'BP Financier'!$F$44*(('BP Financier'!$C$22+'BP Financier'!$D$22+'BP Financier'!$E$22+'BP Financier'!$F$22)/('BP Financier'!$C$16+'BP Financier'!$C$19+'BP Financier'!$D$16+'BP Financier'!$D$19+'BP Financier'!$E$16+'BP Financier'!$E$19+'BP Financier'!$C$22+'BP Financier'!$D$22+'BP Financier'!$E$22+'BP Financier'!$F$22+'BP Financier'!$F$16+'BP Financier'!$F$19))*$V6498*Z6498/(1-$W6498)","v":{"v":9844.513754399952,"d":"9,845"}},{"$f":"'BP Financier'!$F$44*(('BP Financier'!$C$22+'BP Financier'!$D$22+'BP Financier'!$E$22+'BP Financier'!$F$22)/('BP Financier'!$C$16+'BP Financier'!$C$19+'BP Financier'!$D$16+'BP Financier'!$D$19+'BP Financier'!$E$16+'BP Financier'!$E$19+'BP Financier'!$C$22+'BP Financier'!$D$22+'BP Financier'!$E$22+'BP Financier'!$F$22+'BP Financier'!$F$16+'BP Financier'!$F$19))*$V6498*AA6498/(1-$W6498)","v":{"v":1216.2704427294555,"d":"1,216"}},{"$f":"'BP Financier'!$F$44*(('BP Financier'!$C$22+'BP Financier'!$D$22+'BP Financier'!$E$22+'BP Financier'!$F$22)/('BP Financier'!$C$16+'BP Financier'!$C$19+'BP Financier'!$D$16+'BP Financier'!$D$19+'BP Financier'!$E$16+'BP Financier'!$E$19+'BP Financier'!$C$22+'BP Financier'!$D$22+'BP Financier'!$E$22+'BP Financier'!$F$22+'BP Financier'!$F$16+'BP Financier'!$F$19))*$V6498*AB6498/(1-$W6498)","v":{"v":582.1465366910213,"d":"582"}},null,{"v":0.0075,"d":"0.75%"},{"$f":"Actif!$E$28/100","v":{"v":0.28900000000000003,"d":"28.90%"}},{"$f":"Actif!$E$30/100","v":{"v":0.09050000000000001,"d":"9.05%"}},{"$f":"Actif!$E$31/100","v":{"v":0.0605,"d":"6.05%"}},{"$f":"Actif!$E$32/100","v":{"v":0.47350000000000003,"d":"47.35%"}},{"$f":"Actif!$E$33/100","v":{"v":0.0585,"d":"5.85%"}},{"$f":"Actif!$E$29/100","v":{"v":0.027999999999999997,"d":"2.80%"}}]
[null,"#392",62,2030,"F","A_CAPI",{"v":0.44999999999999996,"d":"0.45"},{"v":0.38999999999999996,"d":"0.39"},0.6,0.6,85,0,{"$f":"ROUND(Primes!$P$10*V6499,2)","v":0.68},0,{"v":14782.363842404151,"d":"14,782"},{"$f":"'BP Financier'!$F$44*(('BP Financier'!$C$22+'BP Financier'!$D$22+'BP Financier'!$E$22+'BP Financier'!$F$22)/('BP Financier'!$C$16+'BP Financier'!$C$19+'BP Financier'!$D$16+'BP Financier'!$D$19+'BP Financier'!$E$16+'BP Financier'!$E$19+'BP Financier'!$C$22+'BP Financier'!$D$22+'BP Financier'!$E$22+'BP Financier'!$F$22+'BP Financier'!$F$16+'BP Financier'!$F$19))*$V6499*X6499/(1-$W6499)","v":{"v":1881.5807703763371,"d":"1,882"}},{"$f":"'BP Financier'!$F$44*(('BP Financier'!$C$22+'BP Financier'!$D$22+'BP Financier'!$E$22+'BP Financier'!$F$22)/('BP Financier'!$C$16+'BP Financier'!$C$19+'BP Financier'!$D$16+'BP Financier'!$D$19+'BP Financier'!$E$16+'BP Financier'!$E$19+'BP Financier'!$C$22+'BP Financier'!$D$22+'BP Financier'!$E$22+'BP Financier'!$F$22+'BP Financier'!$F$16+'BP Financier'!$F$19))*$V6499*Y6499/(1-$W6499)","v":{"v":1257.8523382073854,"d":"1,258"}},{"$f":"'BP Financier'!$F$44*(('BP Financier'!$C$22+'BP Financier'!$D$22+'BP Financier'!$E$22+'BP Financier'!$F$22)/('BP Financier'!$C$16+'BP Financier'!$C$19+'BP Financier'!$D$16+'BP Financier'!$D$19+'BP Financier'!$E$16+'BP Financier'!$E$19+'BP Financier'!$C$22+'BP Financier'!$D$22+'BP Financier'!$E$22+'BP Financier'!$F$22+'BP Financier'!$F$16+'BP Financier'!$F$19))*$V6499*Z6499/(1-$W6499)","v":{"v":9844.513754399952,"d":"9,845"}},{"$f":"'BP Financier'!$F$44*(('BP Financier'!$C$22+'BP Financier'!$D$22+'BP Financier'!$E$22+'BP Financier'!$F$22)/('BP Financier'!$C$16+'BP Financier'!$C$19+'BP Financier'!$D$16+'BP Financier'!$D$19+'BP Financier'!$E$16+'BP Financier'!$E$19+'BP Financier'!$C$22+'BP Financier'!$D$22+'BP Financier'!$E$22+'BP Financier'!$F$22+'BP Financier'!$F$16+'BP Financier'!$F$19))*$V6499*AA6499/(1-$W6499)","v":{"v":1216.2704427294555,"d":"1,216"}},{"$f":"'BP Financier'!$F$44*(('BP Financier'!$C$22+'BP Financier'!$D$22+'BP Financier'!$E$22+'BP Financier'!$F$22)/('BP Financier'!$C$16+'BP Financier'!$C$19+'BP Financier'!$D$16+'BP Financier'!$D$19+'BP Financier'!$E$16+'BP Financier'!$E$19+'BP Financier'!$C$22+'BP Financier'!$D$22+'BP Financier'!$E$22+'BP Financier'!$F$22+'BP Financier'!$F$16+'BP Financier'!$F$19))*$V6499*AB6499/(1-$W6499)","v":{"v":582.1465366910213,"d":"582"}},null,{"v":0.0075,"d":"0.75%"},{"$f":"Actif!$E$28/100","v":{"v":0.28900000000000003,"d":"28.90%"}},{"$f":"Actif!$E$30/100","v":{"v":0.09050000000000001,"d":"9.05%"}},{"$f":"Actif!$E$31/100","v":{"v":0.0605,"d":"6.05%"}},{"$f":"Actif!$E$32/100","v":{"v":0.47350000000000003,"d":"47.35%"}},{"$f":"Actif!$E$33/100","v":{"v":0.0585,"d":"5.85%"}},{"$f":"Actif!$E$29/100","v":{"v":0.027999999999999997,"d":"2.80%"}}]
[null,"#393",63,2026,"H","A_CAPI",{"v":0.44999999999999996,"d":"0.45"},{"v":0.38999999999999996,"d":"0.39"},0.6,0.6,85,0,{"$f":"ROUND(Primes!$P$10*V6500,2)","v":0.68},0,{"v":14782.363842404151,"d":"14,782"},{"$f":"'BP Financier'!$F$44*(('BP Financier'!$C$22+'BP Financier'!$D$22+'BP Financier'!$E$22+'BP Financier'!$F$22)/('BP Financier'!$C$16+'BP Financier'!$C$19+'BP Financier'!$D$16+'BP Financier'!$D$19+'BP Financier'!$E$16+'BP Financier'!$E$19+'BP Financier'!$C$22+'BP Financier'!$D$22+'BP Financier'!$E$22+'BP Financier'!$F$22+'BP Financier'!$F$16+'BP Financier'!$F$19))*$V6500*X6500/(1-$W6500)","v":{"v":1881.5807703763371,"d":"1,882"}},{"$f":"'BP Financier'!$F$44*(('BP Financier'!$C$22+'BP Financier'!$D$22+'BP Financier'!$E$22+'BP Financier'!$F$22)/('BP Financier'!$C$16+'BP Financier'!$C$19+'BP Financier'!$D$16+'BP Financier'!$D$19+'BP Financier'!$E$16+'BP Financier'!$E$19+'BP Financier'!$C$22+'BP Financier'!$D$22+'BP Financier'!$E$22+'BP Financier'!$F$22+'BP Financier'!$F$16+'BP Financier'!$F$19))*$V6500*Y6500/(1-$W6500)","v":{"v":1257.8523382073854,"d":"1,258"}},{"$f":"'BP Financier'!$F$44*(('BP Financier'!$C$22+'BP Financier'!$D$22+'BP Financier'!$E$22+'BP Financier'!$F$22)/('BP Financier'!$C$16+'BP Financier'!$C$19+'BP Financier'!$D$16+'BP Financier'!$D$19+'BP Financier'!$E$16+'BP Financier'!$E$19+'BP Financier'!$C$22+'BP Financier'!$D$22+'BP Financier'!$E$22+'BP Financier'!$F$22+'BP Financier'!$F$16+'BP Financier'!$F$19))*$V6500*Z6500/(1-$W6500)","v":{"v":9844.513754399952,"d":"9,845"}},{"$f":"'BP Financier'!$F$44*(('BP Financier'!$C$22+'BP Financier'!$D$22+'BP Financier'!$E$22+'BP Financier'!$F$22)/('BP Financier'!$C$16+'BP Financier'!$C$19+'BP Financier'!$D$16+'BP Financier'!$D$19+'BP Financier'!$E$16+'BP Financier'!$E$19+'BP Financier'!$C$22+'BP Financier'!$D$22+'BP Financier'!$E$22+'BP Financier'!$F$22+'BP Financier'!$F$16+'BP Financier'!$F$19))*$V6500*AA6500/(1-$W6500)","v":{"v":1216.2704427294555,"d":"1,216"}},{"$f":"'BP Financier'!$F$44*(('BP Financier'!$C$22+'BP Financier'!$D$22+'BP Financier'!$E$22+'BP Financier'!$F$22)/('BP Financier'!$C$16+'BP Financier'!$C$19+'BP Financier'!$D$16+'BP Financier'!$D$19+'BP Financier'!$E$16+'BP Financier'!$E$19+'BP Financier'!$C$22+'BP Financier'!$D$22+'BP Financier'!$E$22+'BP Financier'!$F$22+'BP Financier'!$F$16+'BP Financier'!$F$19))*$V6500*AB6500/(1-$W6500)","v":{"v":582.1465366910213,"d":"582"}},null,{"v":0.0075,"d":"0.75%"},{"$f":"Actif!$E$28/100","v":{"v":0.28900000000000003,"d":"28.90%"}},{"$f":"Actif!$E$30/100","v":{"v":0.09050000000000001,"d":"9.05%"}},{"$f":"Actif!$E$31/100","v":{"v":0.0605,"d":"6.05%"}},{"$f":"Actif!$E$32/100","v":{"v":0.47350000000000003,"d":"47.35%"}},{"$f":"Actif!$E$33/100","v":{"v":0.0585,"d":"5.85%"}},{"$f":"Actif!$E$29/100","v":{"v":0.027999999999999997,"d":"2.80%"}}]
[null,"#394",63,2028,"H","A_CAPI",{"v":0.44999999999999996,"d":"0.45"},{"v":0.38999999999999996,"d":"0.39"},0.6,0.6,85,0,{"$f":"ROUND(Primes!$P$10*V6501,2)","v":0.68},0,{"v":14782.363842404151,"d":"14,782"},{"$f":"'BP Financier'!$F$44*(('BP Financier'!$C$22+'BP Financier'!$D$22+'BP Financier'!$E$22+'BP Financier'!$F$22)/('BP Financier'!$C$16+'BP Financier'!$C$19+'BP Financier'!$D$16+'BP Financier'!$D$19+'BP Financier'!$E$16+'BP Financier'!$E$19+'BP Financier'!$C$22+'BP Financier'!$D$22+'BP Financier'!$E$22+'BP Financier'!$F$22+'BP Financier'!$F$16+'BP Financier'!$F$19))*$V6501*X6501/(1-$W6501)","v":{"v":1881.5807703763371,"d":"1,882"}},{"$f":"'BP Financier'!$F$44*(('BP Financier'!$C$22+'BP Financier'!$D$22+'BP Financier'!$E$22+'BP Financier'!$F$22)/('BP Financier'!$C$16+'BP Financier'!$C$19+'BP Financier'!$D$16+'BP Financier'!$D$19+'BP Financier'!$E$16+'BP Financier'!$E$19+'BP Financier'!$C$22+'BP Financier'!$D$22+'BP Financier'!$E$22+'BP Financier'!$F$22+'BP Financier'!$F$16+'BP Financier'!$F$19))*$V6501*Y6501/(1-$W6501)","v":{"v":1257.8523382073854,"d":"1,258"}},{"$f":"'BP Financier'!$F$44*(('BP Financier'!$C$22+'BP Financier'!$D$22+'BP Financier'!$E$22+'BP Financier'!$F$22)/('BP Financier'!$C$16+'BP Financier'!$C$19+'BP Financier'!$D$16+'BP Financier'!$D$19+'BP Financier'!$E$16+'BP Financier'!$E$19+'BP Financier'!$C$22+'BP Financier'!$D$22+'BP Financier'!$E$22+'BP Financier'!$F$22+'BP Financier'!$F$16+'BP Financier'!$F$19))*$V6501*Z6501/(1-$W6501)","v":{"v":9844.513754399952,"d":"9,845"}},{"$f":"'BP Financier'!$F$44*(('BP Financier'!$C$22+'BP Financier'!$D$22+'BP Financier'!$E$22+'BP Financier'!$F$22)/('BP Financier'!$C$16+'BP Financier'!$C$19+'BP Financier'!$D$16+'BP Financier'!$D$19+'BP Financier'!$E$16+'BP Financier'!$E$19+'BP Financier'!$C$22+'BP Financier'!$D$22+'BP Financier'!$E$22+'BP Financier'!$F$22+'BP Financier'!$F$16+'BP Financier'!$F$19))*$V6501*AA6501/(1-$W6501)","v":{"v":1216.2704427294555,"d":"1,216"}},{"$f":"'BP Financier'!$F$44*(('BP Financier'!$C$22+'BP Financier'!$D$22+'BP Financier'!$E$22+'BP Financier'!$F$22)/('BP Financier'!$C$16+'BP Financier'!$C$19+'BP Financier'!$D$16+'BP Financier'!$D$19+'BP Financier'!$E$16+'BP Financier'!$E$19+'BP Financier'!$C$22+'BP Financier'!$D$22+'BP Financier'!$E$22+'BP Financier'!$F$22+'BP Financier'!$F$16+'BP Financier'!$F$19))*$V6501*AB6501/(1-$W6501)","v":{"v":582.1465366910213,"d":"582"}},null,{"v":0.0075,"d":"0.75%"},{"$f":"Actif!$E$28/100","v":{"v":0.28900000000000003,"d":"28.90%"}},{"$f":"Actif!$E$30/100","v":{"v":0.09050000000000001,"d":"9.05%"}},{"$f":"Actif!$E$31/100","v":{"v":0.0605,"d":"6.05%"}},{"$f":"Actif!$E$32/100","v":{"v":0.47350000000000003,"d":"47.35%"}},{"$f":"Actif!$E$33/100","v":{"v":0.0585,"d":"5.85%"}},{"$f":"Actif!$E$29/100","v":{"v":0.027999999999999997,"d":"2.80%"}}]
[null,"#395",63,2029,"H","A_CAPI",{"v":0.44999999999999996,"d":"0.45"},{"v":0.38999999999999996,"d":"0.39"},0.6,0.6,85,0,{"$f":"ROUND(Primes!$P$10*V6502,2)","v":0.68},0,{"v":14782.363842404151,"d":"14,782"},{"$f":"'BP Financier'!$F$44*(('BP Financier'!$C$22+'BP Financier'!$D$22+'BP Financier'!$E$22+'BP Financier'!$F$22)/('BP Financier'!$C$16+'BP Financier'!$C$19+'BP Financier'!$D$16+'BP Financier'!$D$19+'BP Financier'!$E$16+'BP Financier'!$E$19+'BP Financier'!$C$22+'BP Financier'!$D$22+'BP Financier'!$E$22+'BP Financier'!$F$22+'BP Financier'!$F$16+'BP Financier'!$F$19))*$V6502*X6502/(1-$W6502)","v":{"v":1881.5807703763371,"d":"1,882"}},{"$f":"'BP Financier'!$F$44*(('BP Financier'!$C$22+'BP Financier'!$D$22+'BP Financier'!$E$22+'BP Financier'!$F$22)/('BP Financier'!$C$16+'BP Financier'!$C$19+'BP Financier'!$D$16+'BP Financier'!$D$19+'BP Financier'!$E$16+'BP Financier'!$E$19+'BP Financier'!$C$22+'BP Financier'!$D$22+'BP Financier'!$E$22+'BP Financier'!$F$22+'BP Financier'!$F$16+'BP Financier'!$F$19))*$V6502*Y6502/(1-$W6502)","v":{"v":1257.8523382073854,"d":"1,258"}},{"$f":"'BP Financier'!$F$44*(('BP Financier'!$C$22+'BP Financier'!$D$22+'BP Financier'!$E$22+'BP Financier'!$F$22)/('BP Financier'!$C$16+'BP Financier'!$C$19+'BP Financier'!$D$16+'BP Financier'!$D$19+'BP Financier'!$E$16+'BP Financier'!$E$19+'BP Financier'!$C$22+'BP Financier'!$D$22+'BP Financier'!$E$22+'BP Financier'!$F$22+'BP Financier'!$F$16+'BP Financier'!$F$19))*$V6502*Z6502/(1-$W6502)","v":{"v":9844.513754399952,"d":"9,845"}},{"$f":"'BP Financier'!$F$44*(('BP Financier'!$C$22+'BP Financier'!$D$22+'BP Financier'!$E$22+'BP Financier'!$F$22)/('BP Financier'!$C$16+'BP Financier'!$C$19+'BP Financier'!$D$16+'BP Financier'!$D$19+'BP Financier'!$E$16+'BP Financier'!$E$19+'BP Financier'!$C$22+'BP Financier'!$D$22+'BP Financier'!$E$22+'BP Financier'!$F$22+'BP Financier'!$F$16+'BP Financier'!$F$19))*$V6502*AA6502/(1-$W6502)","v":{"v":1216.2704427294555,"d":"1,216"}},{"$f":"'BP Financier'!$F$44*(('BP Financier'!$C$22+'BP Financier'!$D$22+'BP Financier'!$E$22+'BP Financier'!$F$22)/('BP Financier'!$C$16+'BP Financier'!$C$19+'BP Financier'!$D$16+'BP Financier'!$D$19+'BP Financier'!$E$16+'BP Financier'!$E$19+'BP Financier'!$C$22+'BP Financier'!$D$22+'BP Financier'!$E$22+'BP Financier'!$F$22+'BP Financier'!$F$16+'BP Financier'!$F$19))*$V6502*AB6502/(1-$W6502)","v":{"v":582.1465366910213,"d":"582"}},null,{"v":0.0075,"d":"0.75%"},{"$f":"Actif!$E$28/100","v":{"v":0.28900000000000003,"d":"28.90%"}},{"$f":"Actif!$E$30/100","v":{"v":0.09050000000000001,"d":"9.05%"}},{"$f":"Actif!$E$31/100","v":{"v":0.0605,"d":"6.05%"}},{"$f":"Actif!$E$32/100","v":{"v":0.47350000000000003,"d":"47.35%"}},{"$f":"Actif!$E$33/100","v":{"v":0.0585,"d":"5.85%"}},{"$f":"Actif!$E$29/100","v":{"v":0.027999999999999997,"d":"2.80%"}}]
[null,"#396",63,2030,"H","A_CAPI",{"v":0.44999999999999996,"d":"0.45"},{"v":0.38999999999999996,"d":"0.39"},0.6,0.6,85,0,{"$f":"ROUND(Primes!$P$10*V6503,2)","v":0.68},0,{"v":14782.363842404151,"d":"14,782"},{"$f":"'BP Financier'!$F$44*(('BP Financier'!$C$22+'BP Financier'!$D$22+'BP Financier'!$E$22+'BP Financier'!$F$22)/('BP Financier'!$C$16+'BP Financier'!$C$19+'BP Financier'!$D$16+'BP Financier'!$D$19+'BP Financier'!$E$16+'BP Financier'!$E$19+'BP Financier'!$C$22+'BP Financier'!$D$22+'BP Financier'!$E$22+'BP Financier'!$F$22+'BP Financier'!$F$16+'BP Financier'!$F$19))*$V6503*X6503/(1-$W6503)","v":{"v":1881.5807703763371,"d":"1,882"}},{"$f":"'BP Financier'!$F$44*(('BP Financier'!$C$22+'BP Financier'!$D$22+'BP Financier'!$E$22+'BP Financier'!$F$22)/('BP Financier'!$C$16+'BP Financier'!$C$19+'BP Financier'!$D$16+'BP Financier'!$D$19+'BP Financier'!$E$16+'BP Financier'!$E$19+'BP Financier'!$C$22+'BP Financier'!$D$22+'BP Financier'!$E$22+'BP Financier'!$F$22+'BP Financier'!$F$16+'BP Financier'!$F$19))*$V6503*Y6503/(1-$W6503)","v":{"v":1257.8523382073854,"d":"1,258"}},{"$f":"'BP Financier'!$F$44*(('BP Financier'!$C$22+'BP Financier'!$D$22+'BP Financier'!$E$22+'BP Financier'!$F$22)/('BP Financier'!$C$16+'BP Financier'!$C$19+'BP Financier'!$D$16+'BP Financier'!$D$19+'BP Financier'!$E$16+'BP Financier'!$E$19+'BP Financier'!$C$22+'BP Financier'!$D$22+'BP Financier'!$E$22+'BP Financier'!$F$22+'BP Financier'!$F$16+'BP Financier'!$F$19))*$V6503*Z6503/(1-$W6503)","v":{"v":9844.513754399952,"d":"9,845"}},{"$f":"'BP Financier'!$F$44*(('BP Financier'!$C$22+'BP Financier'!$D$22+'BP Financier'!$E$22+'BP Financier'!$F$22)/('BP Financier'!$C$16+'BP Financier'!$C$19+'BP Financier'!$D$16+'BP Financier'!$D$19+'BP Financier'!$E$16+'BP Financier'!$E$19+'BP Financier'!$C$22+'BP Financier'!$D$22+'BP Financier'!$E$22+'BP Financier'!$F$22+'BP Financier'!$F$16+'BP Financier'!$F$19))*$V6503*AA6503/(1-$W6503)","v":{"v":1216.2704427294555,"d":"1,216"}},{"$f":"'BP Financier'!$F$44*(('BP Financier'!$C$22+'BP Financier'!$D$22+'BP Financier'!$E$22+'BP Financier'!$F$22)/('BP Financier'!$C$16+'BP Financier'!$C$19+'BP Financier'!$D$16+'BP Financier'!$D$19+'BP Financier'!$E$16+'BP Financier'!$E$19+'BP Financier'!$C$22+'BP Financier'!$D$22+'BP Financier'!$E$22+'BP Financier'!$F$22+'BP Financier'!$F$16+'BP Financier'!$F$19))*$V6503*AB6503/(1-$W6503)","v":{"v":582.1465366910213,"d":"582"}},null,{"v":0.0075,"d":"0.75%"},{"$f":"Actif!$E$28/100","v":{"v":0.28900000000000003,"d":"28.90%"}},{"$f":"Actif!$E$30/100","v":{"v":0.09050000000000001,"d":"9.05%"}},{"$f":"Actif!$E$31/100","v":{"v":0.0605,"d":"6.05%"}},{"$f":"Actif!$E$32/100","v":{"v":0.47350000000000003,"d":"47.35%"}},{"$f":"Actif!$E$33/100","v":{"v":0.0585,"d":"5.85%"}},{"$f":"Actif!$E$29/100","v":{"v":0.027999999999999997,"d":"2.80%"}}]
[null,"#397",64,2026,"H","A_CAPI",{"v":0.44999999999999996,"d":"0.45"},{"v":0.38999999999999996,"d":"0.39"},0.6,0.6,85,0,{"$f":"ROUND(Primes!$P$10*V6504,2)","v":0.68},0,{"v":14782.363842404151,"d":"14,782"},{"$f":"'BP Financier'!$F$44*(('BP Financier'!$C$22+'BP Financier'!$D$22+'BP Financier'!$E$22+'BP Financier'!$F$22)/('BP Financier'!$C$16+'BP Financier'!$C$19+'BP Financier'!$D$16+'BP Financier'!$D$19+'BP Financier'!$E$16+'BP Financier'!$E$19+'BP Financier'!$C$22+'BP Financier'!$D$22+'BP Financier'!$E$22+'BP Financier'!$F$22+'BP Financier'!$F$16+'BP Financier'!$F$19))*$V6504*X6504/(1-$W6504)","v":{"v":1881.5807703763371,"d":"1,882"}},{"$f":"'BP Financier'!$F$44*(('BP Financier'!$C$22+'BP Financier'!$D$22+'BP Financier'!$E$22+'BP Financier'!$F$22)/('BP Financier'!$C$16+'BP Financier'!$C$19+'BP Financier'!$D$16+'BP Financier'!$D$19+'BP Financier'!$E$16+'BP Financier'!$E$19+'BP Financier'!$C$22+'BP Financier'!$D$22+'BP Financier'!$E$22+'BP Financier'!$F$22+'BP Financier'!$F$16+'BP Financier'!$F$19))*$V6504*Y6504/(1-$W6504)","v":{"v":1257.8523382073854,"d":"1,258"}},{"$f":"'BP Financier'!$F$44*(('BP Financier'!$C$22+'BP Financier'!$D$22+'BP Financier'!$E$22+'BP Financier'!$F$22)/('BP Financier'!$C$16+'BP Financier'!$C$19+'BP Financier'!$D$16+'BP Financier'!$D$19+'BP Financier'!$E$16+'BP Financier'!$E$19+'BP Financier'!$C$22+'BP Financier'!$D$22+'BP Financier'!$E$22+'BP Financier'!$F$22+'BP Financier'!$F$16+'BP Financier'!$F$19))*$V6504*Z6504/(1-$W6504)","v":{"v":9844.513754399952,"d":"9,845"}},{"$f":"'BP Financier'!$F$44*(('BP Financier'!$C$22+'BP Financier'!$D$22+'BP Financier'!$E$22+'BP Financier'!$F$22)/('BP Financier'!$C$16+'BP Financier'!$C$19+'BP Financier'!$D$16+'BP Financier'!$D$19+'BP Financier'!$E$16+'BP Financier'!$E$19+'BP Financier'!$C$22+'BP Financier'!$D$22+'BP Financier'!$E$22+'BP Financier'!$F$22+'BP Financier'!$F$16+'BP Financier'!$F$19))*$V6504*AA6504/(1-$W6504)","v":{"v":1216.2704427294555,"d":"1,216"}},{"$f":"'BP Financier'!$F$44*(('BP Financier'!$C$22+'BP Financier'!$D$22+'BP Financier'!$E$22+'BP Financier'!$F$22)/('BP Financier'!$C$16+'BP Financier'!$C$19+'BP Financier'!$D$16+'BP Financier'!$D$19+'BP Financier'!$E$16+'BP Financier'!$E$19+'BP Financier'!$C$22+'BP Financier'!$D$22+'BP Financier'!$E$22+'BP Financier'!$F$22+'BP Financier'!$F$16+'BP Financier'!$F$19))*$V6504*AB6504/(1-$W6504)","v":{"v":582.1465366910213,"d":"582"}},null,{"v":0.0075,"d":"0.75%"},{"$f":"Actif!$E$28/100","v":{"v":0.28900000000000003,"d":"28.90%"}},{"$f":"Actif!$E$30/100","v":{"v":0.09050000000000001,"d":"9.05%"}},{"$f":"Actif!$E$31/100","v":{"v":0.0605,"d":"6.05%"}},{"$f":"Actif!$E$32/100","v":{"v":0.47350000000000003,"d":"47.35%"}},{"$f":"Actif!$E$33/100","v":{"v":0.0585,"d":"5.85%"}},{"$f":"Actif!$E$29/100","v":{"v":0.027999999999999997,"d":"2.80%"}}]
[null,"#398",64,2028,"H","A_CAPI",{"v":0.44999999999999996,"d":"0.45"},{"v":0.38999999999999996,"d":"0.39"},0.6,0.6,85,0,{"$f":"ROUND(Primes!$P$10*V6505,2)","v":0.68},0,{"v":14782.363842404151,"d":"14,782"},{"$f":"'BP Financier'!$F$44*(('BP Financier'!$C$22+'BP Financier'!$D$22+'BP Financier'!$E$22+'BP Financier'!$F$22)/('BP Financier'!$C$16+'BP Financier'!$C$19+'BP Financier'!$D$16+'BP Financier'!$D$19+'BP Financier'!$E$16+'BP Financier'!$E$19+'BP Financier'!$C$22+'BP Financier'!$D$22+'BP Financier'!$E$22+'BP Financier'!$F$22+'BP Financier'!$F$16+'BP Financier'!$F$19))*$V6505*X6505/(1-$W6505)","v":{"v":1881.5807703763371,"d":"1,882"}},{"$f":"'BP Financier'!$F$44*(('BP Financier'!$C$22+'BP Financier'!$D$22+'BP Financier'!$E$22+'BP Financier'!$F$22)/('BP Financier'!$C$16+'BP Financier'!$C$19+'BP Financier'!$D$16+'BP Financier'!$D$19+'BP Financier'!$E$16+'BP Financier'!$E$19+'BP Financier'!$C$22+'BP Financier'!$D$22+'BP Financier'!$E$22+'BP Financier'!$F$22+'BP Financier'!$F$16+'BP Financier'!$F$19))*$V6505*Y6505/(1-$W6505)","v":{"v":1257.8523382073854,"d":"1,258"}},{"$f":"'BP Financier'!$F$44*(('BP Financier'!$C$22+'BP Financier'!$D$22+'BP Financier'!$E$22+'BP Financier'!$F$22)/('BP Financier'!$C$16+'BP Financier'!$C$19+'BP Financier'!$D$16+'BP Financier'!$D$19+'BP Financier'!$E$16+'BP Financier'!$E$19+'BP Financier'!$C$22+'BP Financier'!$D$22+'BP Financier'!$E$22+'BP Financier'!$F$22+'BP Financier'!$F$16+'BP Financier'!$F$19))*$V6505*Z6505/(1-$W6505)","v":{"v":9844.513754399952,"d":"9,845"}},{"$f":"'BP Financier'!$F$44*(('BP Financier'!$C$22+'BP Financier'!$D$22+'BP Financier'!$E$22+'BP Financier'!$F$22)/('BP Financier'!$C$16+'BP Financier'!$C$19+'BP Financier'!$D$16+'BP Financier'!$D$19+'BP Financier'!$E$16+'BP Financier'!$E$19+'BP Financier'!$C$22+'BP Financier'!$D$22+'BP Financier'!$E$22+'BP Financier'!$F$22+'BP Financier'!$F$16+'BP Financier'!$F$19))*$V6505*AA6505/(1-$W6505)","v":{"v":1216.2704427294555,"d":"1,216"}},{"$f":"'BP Financier'!$F$44*(('BP Financier'!$C$22+'BP Financier'!$D$22+'BP Financier'!$E$22+'BP Financier'!$F$22)/('BP Financier'!$C$16+'BP Financier'!$C$19+'BP Financier'!$D$16+'BP Financier'!$D$19+'BP Financier'!$E$16+'BP Financier'!$E$19+'BP Financier'!$C$22+'BP Financier'!$D$22+'BP Financier'!$E$22+'BP Financier'!$F$22+'BP Financier'!$F$16+'BP Financier'!$F$19))*$V6505*AB6505/(1-$W6505)","v":{"v":582.1465366910213,"d":"582"}},null,{"v":0.0075,"d":"0.75%"},{"$f":"Actif!$E$28/100","v":{"v":0.28900000000000003,"d":"28.90%"}},{"$f":"Actif!$E$30/100","v":{"v":0.09050000000000001,"d":"9.05%"}},{"$f":"Actif!$E$31/100","v":{"v":0.0605,"d":"6.05%"}},{"$f":"Actif!$E$32/100","v":{"v":0.47350000000000003,"d":"47.35%"}},{"$f":"Actif!$E$33/100","v":{"v":0.0585,"d":"5.85%"}},{"$f":"Actif!$E$29/100","v":{"v":0.027999999999999997,"d":"2.80%"}}]
[null,"#399",64,2029,"H","A_CAPI",{"v":0.44999999999999996,"d":"0.45"},{"v":0.38999999999999996,"d":"0.39"},0.6,0.6,85,0,{"$f":"ROUND(Primes!$P$10*V6506,2)","v":0.68},0,{"v":14782.363842404151,"d":"14,782"},{"$f":"'BP Financier'!$F$44*(('BP Financier'!$C$22+'BP Financier'!$D$22+'BP Financier'!$E$22+'BP Financier'!$F$22)/('BP Financier'!$C$16+'BP Financier'!$C$19+'BP Financier'!$D$16+'BP Financier'!$D$19+'BP Financier'!$E$16+'BP Financier'!$E$19+'BP Financier'!$C$22+'BP Financier'!$D$22+'BP Financier'!$E$22+'BP Financier'!$F$22+'BP Financier'!$F$16+'BP Financier'!$F$19))*$V6506*X6506/(1-$W6506)","v":{"v":1881.5807703763371,"d":"1,882"}},{"$f":"'BP Financier'!$F$44*(('BP Financier'!$C$22+'BP Financier'!$D$22+'BP Financier'!$E$22+'BP Financier'!$F$22)/('BP Financier'!$C$16+'BP Financier'!$C$19+'BP Financier'!$D$16+'BP Financier'!$D$19+'BP Financier'!$E$16+'BP Financier'!$E$19+'BP Financier'!$C$22+'BP Financier'!$D$22+'BP Financier'!$E$22+'BP Financier'!$F$22+'BP Financier'!$F$16+'BP Financier'!$F$19))*$V6506*Y6506/(1-$W6506)","v":{"v":1257.8523382073854,"d":"1,258"}},{"$f":"'BP Financier'!$F$44*(('BP Financier'!$C$22+'BP Financier'!$D$22+'BP Financier'!$E$22+'BP Financier'!$F$22)/('BP Financier'!$C$16+'BP Financier'!$C$19+'BP Financier'!$D$16+'BP Financier'!$D$19+'BP Financier'!$E$16+'BP Financier'!$E$19+'BP Financier'!$C$22+'BP Financier'!$D$22+'BP Financier'!$E$22+'BP Financier'!$F$22+'BP Financier'!$F$16+'BP Financier'!$F$19))*$V6506*Z6506/(1-$W6506)","v":{"v":9844.513754399952,"d":"9,845"}},{"$f":"'BP Financier'!$F$44*(('BP Financier'!$C$22+'BP Financier'!$D$22+'BP Financier'!$E$22+'BP Financier'!$F$22)/('BP Financier'!$C$16+'BP Financier'!$C$19+'BP Financier'!$D$16+'BP Financier'!$D$19+'BP Financier'!$E$16+'BP Financier'!$E$19+'BP Financier'!$C$22+'BP Financier'!$D$22+'BP Financier'!$E$22+'BP Financier'!$F$22+'BP Financier'!$F$16+'BP Financier'!$F$19))*$V6506*AA6506/(1-$W6506)","v":{"v":1216.2704427294555,"d":"1,216"}},{"$f":"'BP Financier'!$F$44*(('BP Financier'!$C$22+'BP Financier'!$D$22+'BP Financier'!$E$22+'BP Financier'!$F$22)/('BP Financier'!$C$16+'BP Financier'!$C$19+'BP Financier'!$D$16+'BP Financier'!$D$19+'BP Financier'!$E$16+'BP Financier'!$E$19+'BP Financier'!$C$22+'BP Financier'!$D$22+'BP Financier'!$E$22+'BP Financier'!$F$22+'BP Financier'!$F$16+'BP Financier'!$F$19))*$V6506*AB6506/(1-$W6506)","v":{"v":582.1465366910213,"d":"582"}},null,{"v":0.0075,"d":"0.75%"},{"$f":"Actif!$E$28/100","v":{"v":0.28900000000000003,"d":"28.90%"}},{"$f":"Actif!$E$30/100","v":{"v":0.09050000000000001,"d":"9.05%"}},{"$f":"Actif!$E$31/100","v":{"v":0.0605,"d":"6.05%"}},{"$f":"Actif!$E$32/100","v":{"v":0.47350000000000003,"d":"47.35%"}},{"$f":"Actif!$E$33/100","v":{"v":0.0585,"d":"5.85%"}},{"$f":"Actif!$E$29/100","v":{"v":0.027999999999999997,"d":"2.80%"}}]
[null,"#400",64,2030,"H","A_CAPI",{"v":0.44999999999999996,"d":"0.45"},{"v":0.38999999999999996,"d":"0.39"},0.6,0.6,85,0,{"$f":"ROUND(Primes!$P$10*V6507,2)","v":0.68},0,{"v":14782.363842404151,"d":"14,782"},{"$f":"'BP Financier'!$F$44*(('BP Financier'!$C$22+'BP Financier'!$D$22+'BP Financier'!$E$22+'BP Financier'!$F$22)/('BP Financier'!$C$16+'BP Financier'!$C$19+'BP Financier'!$D$16+'BP Financier'!$D$19+'BP Financier'!$E$16+'BP Financier'!$E$19+'BP Financier'!$C$22+'BP Financier'!$D$22+'BP Financier'!$E$22+'BP Financier'!$F$22+'BP Financier'!$F$16+'BP Financier'!$F$19))*$V6507*X6507/(1-$W6507)","v":{"v":1881.5807703763371,"d":"1,882"}},{"$f":"'BP Financier'!$F$44*(('BP Financier'!$C$22+'BP Financier'!$D$22+'BP Financier'!$E$22+'BP Financier'!$F$22)/('BP Financier'!$C$16+'BP Financier'!$C$19+'BP Financier'!$D$16+'BP Financier'!$D$19+'BP Financier'!$E$16+'BP Financier'!$E$19+'BP Financier'!$C$22+'BP Financier'!$D$22+'BP Financier'!$E$22+'BP Financier'!$F$22+'BP Financier'!$F$16+'BP Financier'!$F$19))*$V6507*Y6507/(1-$W6507)","v":{"v":1257.8523382073854,"d":"1,258"}},{"$f":"'BP Financier'!$F$44*(('BP Financier'!$C$22+'BP Financier'!$D$22+'BP Financier'!$E$22+'BP Financier'!$F$22)/('BP Financier'!$C$16+'BP Financier'!$C$19+'BP Financier'!$D$16+'BP Financier'!$D$19+'BP Financier'!$E$16+'BP Financier'!$E$19+'BP Financier'!$C$22+'BP Financier'!$D$22+'BP Financier'!$E$22+'BP Financier'!$F$22+'BP Financier'!$F$16+'BP Financier'!$F$19))*$V6507*Z6507/(1-$W6507)","v":{"v":9844.513754399952,"d":"9,845"}},{"$f":"'BP Financier'!$F$44*(('BP Financier'!$C$22+'BP Financier'!$D$22+'BP Financier'!$E$22+'BP Financier'!$F$22)/('BP Financier'!$C$16+'BP Financier'!$C$19+'BP Financier'!$D$16+'BP Financier'!$D$19+'BP Financier'!$E$16+'BP Financier'!$E$19+'BP Financier'!$C$22+'BP Financier'!$D$22+'BP Financier'!$E$22+'BP Financier'!$F$22+'BP Financier'!$F$16+'BP Financier'!$F$19))*$V6507*AA6507/(1-$W6507)","v":{"v":1216.2704427294555,"d":"1,216"}},{"$f":"'BP Financier'!$F$44*(('BP Financier'!$C$22+'BP Financier'!$D$22+'BP Financier'!$E$22+'BP Financier'!$F$22)/('BP Financier'!$C$16+'BP Financier'!$C$19+'BP Financier'!$D$16+'BP Financier'!$D$19+'BP Financier'!$E$16+'BP Financier'!$E$19+'BP Financier'!$C$22+'BP Financier'!$D$22+'BP Financier'!$E$22+'BP Financier'!$F$22+'BP Financier'!$F$16+'BP Financier'!$F$19))*$V6507*AB6507/(1-$W6507)","v":{"v":582.1465366910213,"d":"582"}},null,{"v":0.0075,"d":"0.75%"},{"$f":"Actif!$E$28/100","v":{"v":0.28900000000000003,"d":"28.90%"}},{"$f":"Actif!$E$30/100","v":{"v":0.09050000000000001,"d":"9.05%"}},{"$f":"Actif!$E$31/100","v":{"v":0.0605,"d":"6.05%"}},{"$f":"Actif!$E$32/100","v":{"v":0.47350000000000003,"d":"47.35%"}},{"$f":"Actif!$E$33/100","v":{"v":0.0585,"d":"5.85%"}},{"$f":"Actif!$E$29/100","v":{"v":0.027999999999999997,"d":"2.80%"}}]
[null,"#401",65,2026,"F","A_CAPI",{"v":0.44999999999999996,"d":"0.45"},{"v":0.38999999999999996,"d":"0.39"},0.6,0.6,85,0,{"$f":"ROUND(Primes!$P$10*V6508,2)","v":0.68},0,{"v":14782.363842404151,"d":"14,782"},{"$f":"'BP Financier'!$F$44*(('BP Financier'!$C$22+'BP Financier'!$D$22+'BP Financier'!$E$22+'BP Financier'!$F$22)/('BP Financier'!$C$16+'BP Financier'!$C$19+'BP Financier'!$D$16+'BP Financier'!$D$19+'BP Financier'!$E$16+'BP Financier'!$E$19+'BP Financier'!$C$22+'BP Financier'!$D$22+'BP Financier'!$E$22+'BP Financier'!$F$22+'BP Financier'!$F$16+'BP Financier'!$F$19))*$V6508*X6508/(1-$W6508)","v":{"v":1881.5807703763371,"d":"1,882"}},{"$f":"'BP Financier'!$F$44*(('BP Financier'!$C$22+'BP Financier'!$D$22+'BP Financier'!$E$22+'BP Financier'!$F$22)/('BP Financier'!$C$16+'BP Financier'!$C$19+'BP Financier'!$D$16+'BP Financier'!$D$19+'BP Financier'!$E$16+'BP Financier'!$E$19+'BP Financier'!$C$22+'BP Financier'!$D$22+'BP Financier'!$E$22+'BP Financier'!$F$22+'BP Financier'!$F$16+'BP Financier'!$F$19))*$V6508*Y6508/(1-$W6508)","v":{"v":1257.8523382073854,"d":"1,258"}},{"$f":"'BP Financier'!$F$44*(('BP Financier'!$C$22+'BP Financier'!$D$22+'BP Financier'!$E$22+'BP Financier'!$F$22)/('BP Financier'!$C$16+'BP Financier'!$C$19+'BP Financier'!$D$16+'BP Financier'!$D$19+'BP Financier'!$E$16+'BP Financier'!$E$19+'BP Financier'!$C$22+'BP Financier'!$D$22+'BP Financier'!$E$22+'BP Financier'!$F$22+'BP Financier'!$F$16+'BP Financier'!$F$19))*$V6508*Z6508/(1-$W6508)","v":{"v":9844.513754399952,"d":"9,845"}},{"$f":"'BP Financier'!$F$44*(('BP Financier'!$C$22+'BP Financier'!$D$22+'BP Financier'!$E$22+'BP Financier'!$F$22)/('BP Financier'!$C$16+'BP Financier'!$C$19+'BP Financier'!$D$16+'BP Financier'!$D$19+'BP Financier'!$E$16+'BP Financier'!$E$19+'BP Financier'!$C$22+'BP Financier'!$D$22+'BP Financier'!$E$22+'BP Financier'!$F$22+'BP Financier'!$F$16+'BP Financier'!$F$19))*$V6508*AA6508/(1-$W6508)","v":{"v":1216.2704427294555,"d":"1,216"}},{"$f":"'BP Financier'!$F$44*(('BP Financier'!$C$22+'BP Financier'!$D$22+'BP Financier'!$E$22+'BP Financier'!$F$22)/('BP Financier'!$C$16+'BP Financier'!$C$19+'BP Financier'!$D$16+'BP Financier'!$D$19+'BP Financier'!$E$16+'BP Financier'!$E$19+'BP Financier'!$C$22+'BP Financier'!$D$22+'BP Financier'!$E$22+'BP Financier'!$F$22+'BP Financier'!$F$16+'BP Financier'!$F$19))*$V6508*AB6508/(1-$W6508)","v":{"v":582.1465366910213,"d":"582"}},null,{"v":0.0075,"d":"0.75%"},{"$f":"Actif!$E$28/100","v":{"v":0.28900000000000003,"d":"28.90%"}},{"$f":"Actif!$E$30/100","v":{"v":0.09050000000000001,"d":"9.05%"}},{"$f":"Actif!$E$31/100","v":{"v":0.0605,"d":"6.05%"}},{"$f":"Actif!$E$32/100","v":{"v":0.47350000000000003,"d":"47.35%"}},{"$f":"Actif!$E$33/100","v":{"v":0.0585,"d":"5.85%"}},{"$f":"Actif!$E$29/100","v":{"v":0.027999999999999997,"d":"2.80%"}}]
[null,"#402",65,2028,"F","A_CAPI",{"v":0.44999999999999996,"d":"0.45"},{"v":0.38999999999999996,"d":"0.39"},0.6,0.6,85,0,{"$f":"ROUND(Primes!$P$10*V6509,2)","v":0.68},0,{"v":14782.363842404151,"d":"14,782"},{"$f":"'BP Financier'!$F$44*(('BP Financier'!$C$22+'BP Financier'!$D$22+'BP Financier'!$E$22+'BP Financier'!$F$22)/('BP Financier'!$C$16+'BP Financier'!$C$19+'BP Financier'!$D$16+'BP Financier'!$D$19+'BP Financier'!$E$16+'BP Financier'!$E$19+'BP Financier'!$C$22+'BP Financier'!$D$22+'BP Financier'!$E$22+'BP Financier'!$F$22+'BP Financier'!$F$16+'BP Financier'!$F$19))*$V6509*X6509/(1-$W6509)","v":{"v":1881.5807703763371,"d":"1,882"}},{"$f":"'BP Financier'!$F$44*(('BP Financier'!$C$22+'BP Financier'!$D$22+'BP Financier'!$E$22+'BP Financier'!$F$22)/('BP Financier'!$C$16+'BP Financier'!$C$19+'BP Financier'!$D$16+'BP Financier'!$D$19+'BP Financier'!$E$16+'BP Financier'!$E$19+'BP Financier'!$C$22+'BP Financier'!$D$22+'BP Financier'!$E$22+'BP Financier'!$F$22+'BP Financier'!$F$16+'BP Financier'!$F$19))*$V6509*Y6509/(1-$W6509)","v":{"v":1257.8523382073854,"d":"1,258"}},{"$f":"'BP Financier'!$F$44*(('BP Financier'!$C$22+'BP Financier'!$D$22+'BP Financier'!$E$22+'BP Financier'!$F$22)/('BP Financier'!$C$16+'BP Financier'!$C$19+'BP Financier'!$D$16+'BP Financier'!$D$19+'BP Financier'!$E$16+'BP Financier'!$E$19+'BP Financier'!$C$22+'BP Financier'!$D$22+'BP Financier'!$E$22+'BP Financier'!$F$22+'BP Financier'!$F$16+'BP Financier'!$F$19))*$V6509*Z6509/(1-$W6509)","v":{"v":9844.513754399952,"d":"9,845"}},{"$f":"'BP Financier'!$F$44*(('BP Financier'!$C$22+'BP Financier'!$D$22+'BP Financier'!$E$22+'BP Financier'!$F$22)/('BP Financier'!$C$16+'BP Financier'!$C$19+'BP Financier'!$D$16+'BP Financier'!$D$19+'BP Financier'!$E$16+'BP Financier'!$E$19+'BP Financier'!$C$22+'BP Financier'!$D$22+'BP Financier'!$E$22+'BP Financier'!$F$22+'BP Financier'!$F$16+'BP Financier'!$F$19))*$V6509*AA6509/(1-$W6509)","v":{"v":1216.2704427294555,"d":"1,216"}},{"$f":"'BP Financier'!$F$44*(('BP Financier'!$C$22+'BP Financier'!$D$22+'BP Financier'!$E$22+'BP Financier'!$F$22)/('BP Financier'!$C$16+'BP Financier'!$C$19+'BP Financier'!$D$16+'BP Financier'!$D$19+'BP Financier'!$E$16+'BP Financier'!$E$19+'BP Financier'!$C$22+'BP Financier'!$D$22+'BP Financier'!$E$22+'BP Financier'!$F$22+'BP Financier'!$F$16+'BP Financier'!$F$19))*$V6509*AB6509/(1-$W6509)","v":{"v":582.1465366910213,"d":"582"}},null,{"v":0.0075,"d":"0.75%"},{"$f":"Actif!$E$28/100","v":{"v":0.28900000000000003,"d":"28.90%"}},{"$f":"Actif!$E$30/100","v":{"v":0.09050000000000001,"d":"9.05%"}},{"$f":"Actif!$E$31/100","v":{"v":0.0605,"d":"6.05%"}},{"$f":"Actif!$E$32/100","v":{"v":0.47350000000000003,"d":"47.35%"}},{"$f":"Actif!$E$33/100","v":{"v":0.0585,"d":"5.85%"}},{"$f":"Actif!$E$29/100","v":{"v":0.027999999999999997,"d":"2.80%"}}]
[null,"#403",65,2029,"F","A_CAPI",{"v":0.44999999999999996,"d":"0.45"},{"v":0.38999999999999996,"d":"0.39"},0.6,0.6,85,0,{"$f":"ROUND(Primes!$P$10*V6510,2)","v":0.68},0,{"v":14782.363842404151,"d":"14,782"},{"$f":"'BP Financier'!$F$44*(('BP Financier'!$C$22+'BP Financier'!$D$22+'BP Financier'!$E$22+'BP Financier'!$F$22)/('BP Financier'!$C$16+'BP Financier'!$C$19+'BP Financier'!$D$16+'BP Financier'!$D$19+'BP Financier'!$E$16+'BP Financier'!$E$19+'BP Financier'!$C$22+'BP Financier'!$D$22+'BP Financier'!$E$22+'BP Financier'!$F$22+'BP Financier'!$F$16+'BP Financier'!$F$19))*$V6510*X6510/(1-$W6510)","v":{"v":1881.5807703763371,"d":"1,882"}},{"$f":"'BP Financier'!$F$44*(('BP Financier'!$C$22+'BP Financier'!$D$22+'BP Financier'!$E$22+'BP Financier'!$F$22)/('BP Financier'!$C$16+'BP Financier'!$C$19+'BP Financier'!$D$16+'BP Financier'!$D$19+'BP Financier'!$E$16+'BP Financier'!$E$19+'BP Financier'!$C$22+'BP Financier'!$D$22+'BP Financier'!$E$22+'BP Financier'!$F$22+'BP Financier'!$F$16+'BP Financier'!$F$19))*$V6510*Y6510/(1-$W6510)","v":{"v":1257.8523382073854,"d":"1,258"}},{"$f":"'BP Financier'!$F$44*(('BP Financier'!$C$22+'BP Financier'!$D$22+'BP Financier'!$E$22+'BP Financier'!$F$22)/('BP Financier'!$C$16+'BP Financier'!$C$19+'BP Financier'!$D$16+'BP Financier'!$D$19+'BP Financier'!$E$16+'BP Financier'!$E$19+'BP Financier'!$C$22+'BP Financier'!$D$22+'BP Financier'!$E$22+'BP Financier'!$F$22+'BP Financier'!$F$16+'BP Financier'!$F$19))*$V6510*Z6510/(1-$W6510)","v":{"v":9844.513754399952,"d":"9,845"}},{"$f":"'BP Financier'!$F$44*(('BP Financier'!$C$22+'BP Financier'!$D$22+'BP Financier'!$E$22+'BP Financier'!$F$22)/('BP Financier'!$C$16+'BP Financier'!$C$19+'BP Financier'!$D$16+'BP Financier'!$D$19+'BP Financier'!$E$16+'BP Financier'!$E$19+'BP Financier'!$C$22+'BP Financier'!$D$22+'BP Financier'!$E$22+'BP Financier'!$F$22+'BP Financier'!$F$16+'BP Financier'!$F$19))*$V6510*AA6510/(1-$W6510)","v":{"v":1216.2704427294555,"d":"1,216"}},{"$f":"'BP Financier'!$F$44*(('BP Financier'!$C$22+'BP Financier'!$D$22+'BP Financier'!$E$22+'BP Financier'!$F$22)/('BP Financier'!$C$16+'BP Financier'!$C$19+'BP Financier'!$D$16+'BP Financier'!$D$19+'BP Financier'!$E$16+'BP Financier'!$E$19+'BP Financier'!$C$22+'BP Financier'!$D$22+'BP Financier'!$E$22+'BP Financier'!$F$22+'BP Financier'!$F$16+'BP Financier'!$F$19))*$V6510*AB6510/(1-$W6510)","v":{"v":582.1465366910213,"d":"582"}},null,{"v":0.0075,"d":"0.75%"},{"$f":"Actif!$E$28/100","v":{"v":0.28900000000000003,"d":"28.90%"}},{"$f":"Actif!$E$30/100","v":{"v":0.09050000000000001,"d":"9.05%"}},{"$f":"Actif!$E$31/100","v":{"v":0.0605,"d":"6.05%"}},{"$f":"Actif!$E$32/100","v":{"v":0.47350000000000003,"d":"47.35%"}},{"$f":"Actif!$E$33/100","v":{"v":0.0585,"d":"5.85%"}},{"$f":"Actif!$E$29/100","v":{"v":0.027999999999999997,"d":"2.80%"}}]
[null,"#404",65,2030,"F","A_CAPI",{"v":0.44999999999999996,"d":"0.45"},{"v":0.38999999999999996,"d":"0.39"},0.6,0.6,85,0,{"$f":"ROUND(Primes!$P$10*V6511,2)","v":0.68},0,{"v":14782.363842404151,"d":"14,782"},{"$f":"'BP Financier'!$F$44*(('BP Financier'!$C$22+'BP Financier'!$D$22+'BP Financier'!$E$22+'BP Financier'!$F$22)/('BP Financier'!$C$16+'BP Financier'!$C$19+'BP Financier'!$D$16+'BP Financier'!$D$19+'BP Financier'!$E$16+'BP Financier'!$E$19+'BP Financier'!$C$22+'BP Financier'!$D$22+'BP Financier'!$E$22+'BP Financier'!$F$22+'BP Financier'!$F$16+'BP Financier'!$F$19))*$V6511*X6511/(1-$W6511)","v":{"v":1881.5807703763371,"d":"1,882"}},{"$f":"'BP Financier'!$F$44*(('BP Financier'!$C$22+'BP Financier'!$D$22+'BP Financier'!$E$22+'BP Financier'!$F$22)/('BP Financier'!$C$16+'BP Financier'!$C$19+'BP Financier'!$D$16+'BP Financier'!$D$19+'BP Financier'!$E$16+'BP Financier'!$E$19+'BP Financier'!$C$22+'BP Financier'!$D$22+'BP Financier'!$E$22+'BP Financier'!$F$22+'BP Financier'!$F$16+'BP Financier'!$F$19))*$V6511*Y6511/(1-$W6511)","v":{"v":1257.8523382073854,"d":"1,258"}},{"$f":"'BP Financier'!$F$44*(('BP Financier'!$C$22+'BP Financier'!$D$22+'BP Financier'!$E$22+'BP Financier'!$F$22)/('BP Financier'!$C$16+'BP Financier'!$C$19+'BP Financier'!$D$16+'BP Financier'!$D$19+'BP Financier'!$E$16+'BP Financier'!$E$19+'BP Financier'!$C$22+'BP Financier'!$D$22+'BP Financier'!$E$22+'BP Financier'!$F$22+'BP Financier'!$F$16+'BP Financier'!$F$19))*$V6511*Z6511/(1-$W6511)","v":{"v":9844.513754399952,"d":"9,845"}},{"$f":"'BP Financier'!$F$44*(('BP Financier'!$C$22+'BP Financier'!$D$22+'BP Financier'!$E$22+'BP Financier'!$F$22)/('BP Financier'!$C$16+'BP Financier'!$C$19+'BP Financier'!$D$16+'BP Financier'!$D$19+'BP Financier'!$E$16+'BP Financier'!$E$19+'BP Financier'!$C$22+'BP Financier'!$D$22+'BP Financier'!$E$22+'BP Financier'!$F$22+'BP Financier'!$F$16+'BP Financier'!$F$19))*$V6511*AA6511/(1-$W6511)","v":{"v":1216.2704427294555,"d":"1,216"}},{"$f":"'BP Financier'!$F$44*(('BP Financier'!$C$22+'BP Financier'!$D$22+'BP Financier'!$E$22+'BP Financier'!$F$22)/('BP Financier'!$C$16+'BP Financier'!$C$19+'BP Financier'!$D$16+'BP Financier'!$D$19+'BP Financier'!$E$16+'BP Financier'!$E$19+'BP Financier'!$C$22+'BP Financier'!$D$22+'BP Financier'!$E$22+'BP Financier'!$F$22+'BP Financier'!$F$16+'BP Financier'!$F$19))*$V6511*AB6511/(1-$W6511)","v":{"v":582.1465366910213,"d":"582"}},null,{"v":0.0075,"d":"0.75%"},{"$f":"Actif!$E$28/100","v":{"v":0.28900000000000003,"d":"28.90%"}},{"$f":"Actif!$E$30/100","v":{"v":0.09050000000000001,"d":"9.05%"}},{"$f":"Actif!$E$31/100","v":{"v":0.0605,"d":"6.05%"}},{"$f":"Actif!$E$32/100","v":{"v":0.47350000000000003,"d":"47.35%"}},{"$f":"Actif!$E$33/100","v":{"v":0.0585,"d":"5.85%"}},{"$f":"Actif!$E$29/100","v":{"v":0.027999999999999997,"d":"2.80%"}}]
[null,"#405",70,2026,"H","A_CAPI",{"v":0.44999999999999996,"d":"0.45"},{"v":0.38999999999999996,"d":"0.39"},0.6,0.6,85,0,{"$f":"ROUND(Primes!$P$10*V6512,2)","v":0.11},0,{"v":2463.7273070673587,"d":"2,464"},{"$f":"'BP Financier'!$F$44*(('BP Financier'!$C$22+'BP Financier'!$D$22+'BP Financier'!$E$22+'BP Financier'!$F$22)/('BP Financier'!$C$16+'BP Financier'!$C$19+'BP Financier'!$D$16+'BP Financier'!$D$19+'BP Financier'!$E$16+'BP Financier'!$E$19+'BP Financier'!$C$22+'BP Financier'!$D$22+'BP Financier'!$E$22+'BP Financier'!$F$22+'BP Financier'!$F$16+'BP Financier'!$F$19))*$V6512*X6512/(1-$W6512)","v":{"v":313.5967950627229,"d":"314"}},{"$f":"'BP Financier'!$F$44*(('BP Financier'!$C$22+'BP Financier'!$D$22+'BP Financier'!$E$22+'BP Financier'!$F$22)/('BP Financier'!$C$16+'BP Financier'!$C$19+'BP Financier'!$D$16+'BP Financier'!$D$19+'BP Financier'!$E$16+'BP Financier'!$E$19+'BP Financier'!$C$22+'BP Financier'!$D$22+'BP Financier'!$E$22+'BP Financier'!$F$22+'BP Financier'!$F$16+'BP Financier'!$F$19))*$V6512*Y6512/(1-$W6512)","v":{"v":209.64205636789757,"d":"210"}},{"$f":"'BP Financier'!$F$44*(('BP Financier'!$C$22+'BP Financier'!$D$22+'BP Financier'!$E$22+'BP Financier'!$F$22)/('BP Financier'!$C$16+'BP Financier'!$C$19+'BP Financier'!$D$16+'BP Financier'!$D$19+'BP Financier'!$E$16+'BP Financier'!$E$19+'BP Financier'!$C$22+'BP Financier'!$D$22+'BP Financier'!$E$22+'BP Financier'!$F$22+'BP Financier'!$F$16+'BP Financier'!$F$19))*$V6512*Z6512/(1-$W6512)","v":{"v":1640.7522923999918,"d":"1,641"}},{"$f":"'BP Financier'!$F$44*(('BP Financier'!$C$22+'BP Financier'!$D$22+'BP Financier'!$E$22+'BP Financier'!$F$22)/('BP Financier'!$C$16+'BP Financier'!$C$19+'BP Financier'!$D$16+'BP Financier'!$D$19+'BP Financier'!$E$16+'BP Financier'!$E$19+'BP Financier'!$C$22+'BP Financier'!$D$22+'BP Financier'!$E$22+'BP Financier'!$F$22+'BP Financier'!$F$16+'BP Financier'!$F$19))*$V6512*AA6512/(1-$W6512)","v":{"v":202.71174045490923,"d":"203"}},{"$f":"'BP Financier'!$F$44*(('BP Financier'!$C$22+'BP Financier'!$D$22+'BP Financier'!$E$22+'BP Financier'!$F$22)/('BP Financier'!$C$16+'BP Financier'!$C$19+'BP Financier'!$D$16+'BP Financier'!$D$19+'BP Financier'!$E$16+'BP Financier'!$E$19+'BP Financier'!$C$22+'BP Financier'!$D$22+'BP Financier'!$E$22+'BP Financier'!$F$22+'BP Financier'!$F$16+'BP Financier'!$F$19))*$V6512*AB6512/(1-$W6512)","v":{"v":97.02442278183689,"d":"97"}},null,{"v":1.25E-3,"d":"0.13%"},{"$f":"Actif!$E$28/100","v":{"v":0.28900000000000003,"d":"28.90%"}},{"$f":"Actif!$E$30/100","v":{"v":0.09050000000000001,"d":"9.05%"}},{"$f":"Actif!$E$31/100","v":{"v":0.0605,"d":"6.05%"}},{"$f":"Actif!$E$32/100","v":{"v":0.47350000000000003,"d":"47.35%"}},{"$f":"Actif!$E$33/100","v":{"v":0.0585,"d":"5.85%"}},{"$f":"Actif!$E$29/100","v":{"v":0.027999999999999997,"d":"2.80%"}}]
[null,"#406",70,2028,"H","A_CAPI",{"v":0.44999999999999996,"d":"0.45"},{"v":0.38999999999999996,"d":"0.39"},0.6,0.6,85,0,{"$f":"ROUND(Primes!$P$10*V6513,2)","v":0.11},0,{"v":2463.7273070673587,"d":"2,464"},{"$f":"'BP Financier'!$F$44*(('BP Financier'!$C$22+'BP Financier'!$D$22+'BP Financier'!$E$22+'BP Financier'!$F$22)/('BP Financier'!$C$16+'BP Financier'!$C$19+'BP Financier'!$D$16+'BP Financier'!$D$19+'BP Financier'!$E$16+'BP Financier'!$E$19+'BP Financier'!$C$22+'BP Financier'!$D$22+'BP Financier'!$E$22+'BP Financier'!$F$22+'BP Financier'!$F$16+'BP Financier'!$F$19))*$V6513*X6513/(1-$W6513)","v":{"v":313.5967950627229,"d":"314"}},{"$f":"'BP Financier'!$F$44*(('BP Financier'!$C$22+'BP Financier'!$D$22+'BP Financier'!$E$22+'BP Financier'!$F$22)/('BP Financier'!$C$16+'BP Financier'!$C$19+'BP Financier'!$D$16+'BP Financier'!$D$19+'BP Financier'!$E$16+'BP Financier'!$E$19+'BP Financier'!$C$22+'BP Financier'!$D$22+'BP Financier'!$E$22+'BP Financier'!$F$22+'BP Financier'!$F$16+'BP Financier'!$F$19))*$V6513*Y6513/(1-$W6513)","v":{"v":209.64205636789757,"d":"210"}},{"$f":"'BP Financier'!$F$44*(('BP Financier'!$C$22+'BP Financier'!$D$22+'BP Financier'!$E$22+'BP Financier'!$F$22)/('BP Financier'!$C$16+'BP Financier'!$C$19+'BP Financier'!$D$16+'BP Financier'!$D$19+'BP Financier'!$E$16+'BP Financier'!$E$19+'BP Financier'!$C$22+'BP Financier'!$D$22+'BP Financier'!$E$22+'BP Financier'!$F$22+'BP Financier'!$F$16+'BP Financier'!$F$19))*$V6513*Z6513/(1-$W6513)","v":{"v":1640.7522923999918,"d":"1,641"}},{"$f":"'BP Financier'!$F$44*(('BP Financier'!$C$22+'BP Financier'!$D$22+'BP Financier'!$E$22+'BP Financier'!$F$22)/('BP Financier'!$C$16+'BP Financier'!$C$19+'BP Financier'!$D$16+'BP Financier'!$D$19+'BP Financier'!$E$16+'BP Financier'!$E$19+'BP Financier'!$C$22+'BP Financier'!$D$22+'BP Financier'!$E$22+'BP Financier'!$F$22+'BP Financier'!$F$16+'BP Financier'!$F$19))*$V6513*AA6513/(1-$W6513)","v":{"v":202.71174045490923,"d":"203"}},{"$f":"'BP Financier'!$F$44*(('BP Financier'!$C$22+'BP Financier'!$D$22+'BP Financier'!$E$22+'BP Financier'!$F$22)/('BP Financier'!$C$16+'BP Financier'!$C$19+'BP Financier'!$D$16+'BP Financier'!$D$19+'BP Financier'!$E$16+'BP Financier'!$E$19+'BP Financier'!$C$22+'BP Financier'!$D$22+'BP Financier'!$E$22+'BP Financier'!$F$22+'BP Financier'!$F$16+'BP Financier'!$F$19))*$V6513*AB6513/(1-$W6513)","v":{"v":97.02442278183689,"d":"97"}},null,{"v":1.25E-3,"d":"0.13%"},{"$f":"Actif!$E$28/100","v":{"v":0.28900000000000003,"d":"28.90%"}},{"$f":"Actif!$E$30/100","v":{"v":0.09050000000000001,"d":"9.05%"}},{"$f":"Actif!$E$31/100","v":{"v":0.0605,"d":"6.05%"}},{"$f":"Actif!$E$32/100","v":{"v":0.47350000000000003,"d":"47.35%"}},{"$f":"Actif!$E$33/100","v":{"v":0.0585,"d":"5.85%"}},{"$f":"Actif!$E$29/100","v":{"v":0.027999999999999997,"d":"2.80%"}}]
[null,"#407",70,2029,"H","A_CAPI",{"v":0.44999999999999996,"d":"0.45"},{"v":0.38999999999999996,"d":"0.39"},0.6,0.6,85,0,{"$f":"ROUND(Primes!$P$10*V6514,2)","v":0.11},0,{"v":2463.7273070673587,"d":"2,464"},{"$f":"'BP Financier'!$F$44*(('BP Financier'!$C$22+'BP Financier'!$D$22+'BP Financier'!$E$22+'BP Financier'!$F$22)/('BP Financier'!$C$16+'BP Financier'!$C$19+'BP Financier'!$D$16+'BP Financier'!$D$19+'BP Financier'!$E$16+'BP Financier'!$E$19+'BP Financier'!$C$22+'BP Financier'!$D$22+'BP Financier'!$E$22+'BP Financier'!$F$22+'BP Financier'!$F$16+'BP Financier'!$F$19))*$V6514*X6514/(1-$W6514)","v":{"v":313.5967950627229,"d":"314"}},{"$f":"'BP Financier'!$F$44*(('BP Financier'!$C$22+'BP Financier'!$D$22+'BP Financier'!$E$22+'BP Financier'!$F$22)/('BP Financier'!$C$16+'BP Financier'!$C$19+'BP Financier'!$D$16+'BP Financier'!$D$19+'BP Financier'!$E$16+'BP Financier'!$E$19+'BP Financier'!$C$22+'BP Financier'!$D$22+'BP Financier'!$E$22+'BP Financier'!$F$22+'BP Financier'!$F$16+'BP Financier'!$F$19))*$V6514*Y6514/(1-$W6514)","v":{"v":209.64205636789757,"d":"210"}},{"$f":"'BP Financier'!$F$44*(('BP Financier'!$C$22+'BP Financier'!$D$22+'BP Financier'!$E$22+'BP Financier'!$F$22)/('BP Financier'!$C$16+'BP Financier'!$C$19+'BP Financier'!$D$16+'BP Financier'!$D$19+'BP Financier'!$E$16+'BP Financier'!$E$19+'BP Financier'!$C$22+'BP Financier'!$D$22+'BP Financier'!$E$22+'BP Financier'!$F$22+'BP Financier'!$F$16+'BP Financier'!$F$19))*$V6514*Z6514/(1-$W6514)","v":{"v":1640.7522923999918,"d":"1,641"}},{"$f":"'BP Financier'!$F$44*(('BP Financier'!$C$22+'BP Financier'!$D$22+'BP Financier'!$E$22+'BP Financier'!$F$22)/('BP Financier'!$C$16+'BP Financier'!$C$19+'BP Financier'!$D$16+'BP Financier'!$D$19+'BP Financier'!$E$16+'BP Financier'!$E$19+'BP Financier'!$C$22+'BP Financier'!$D$22+'BP Financier'!$E$22+'BP Financier'!$F$22+'BP Financier'!$F$16+'BP Financier'!$F$19))*$V6514*AA6514/(1-$W6514)","v":{"v":202.71174045490923,"d":"203"}},{"$f":"'BP Financier'!$F$44*(('BP Financier'!$C$22+'BP Financier'!$D$22+'BP Financier'!$E$22+'BP Financier'!$F$22)/('BP Financier'!$C$16+'BP Financier'!$C$19+'BP Financier'!$D$16+'BP Financier'!$D$19+'BP Financier'!$E$16+'BP Financier'!$E$19+'BP Financier'!$C$22+'BP Financier'!$D$22+'BP Financier'!$E$22+'BP Financier'!$F$22+'BP Financier'!$F$16+'BP Financier'!$F$19))*$V6514*AB6514/(1-$W6514)","v":{"v":97.02442278183689,"d":"97"}},null,{"v":1.25E-3,"d":"0.13%"},{"$f":"Actif!$E$28/100","v":{"v":0.28900000000000003,"d":"28.90%"}},{"$f":"Actif!$E$30/100","v":{"v":0.09050000000000001,"d":"9.05%"}},{"$f":"Actif!$E$31/100","v":{"v":0.0605,"d":"6.05%"}},{"$f":"Actif!$E$32/100","v":{"v":0.47350000000000003,"d":"47.35%"}},{"$f":"Actif!$E$33/100","v":{"v":0.0585,"d":"5.85%"}},{"$f":"Actif!$E$29/100","v":{"v":0.027999999999999997,"d":"2.80%"}}]
[null,"#408",70,2030,"H","A_CAPI",{"v":0.44999999999999996,"d":"0.45"},{"v":0.38999999999999996,"d":"0.39"},0.6,0.6,85,0,{"$f":"ROUND(Primes!$P$10*V6515,2)","v":0.11},0,{"v":2463.7273070673587,"d":"2,464"},{"$f":"'BP Financier'!$F$44*(('BP Financier'!$C$22+'BP Financier'!$D$22+'BP Financier'!$E$22+'BP Financier'!$F$22)/('BP Financier'!$C$16+'BP Financier'!$C$19+'BP Financier'!$D$16+'BP Financier'!$D$19+'BP Financier'!$E$16+'BP Financier'!$E$19+'BP Financier'!$C$22+'BP Financier'!$D$22+'BP Financier'!$E$22+'BP Financier'!$F$22+'BP Financier'!$F$16+'BP Financier'!$F$19))*$V6515*X6515/(1-$W6515)","v":{"v":313.5967950627229,"d":"314"}},{"$f":"'BP Financier'!$F$44*(('BP Financier'!$C$22+'BP Financier'!$D$22+'BP Financier'!$E$22+'BP Financier'!$F$22)/('BP Financier'!$C$16+'BP Financier'!$C$19+'BP Financier'!$D$16+'BP Financier'!$D$19+'BP Financier'!$E$16+'BP Financier'!$E$19+'BP Financier'!$C$22+'BP Financier'!$D$22+'BP Financier'!$E$22+'BP Financier'!$F$22+'BP Financier'!$F$16+'BP Financier'!$F$19))*$V6515*Y6515/(1-$W6515)","v":{"v":209.64205636789757,"d":"210"}},{"$f":"'BP Financier'!$F$44*(('BP Financier'!$C$22+'BP Financier'!$D$22+'BP Financier'!$E$22+'BP Financier'!$F$22)/('BP Financier'!$C$16+'BP Financier'!$C$19+'BP Financier'!$D$16+'BP Financier'!$D$19+'BP Financier'!$E$16+'BP Financier'!$E$19+'BP Financier'!$C$22+'BP Financier'!$D$22+'BP Financier'!$E$22+'BP Financier'!$F$22+'BP Financier'!$F$16+'BP Financier'!$F$19))*$V6515*Z6515/(1-$W6515)","v":{"v":1640.7522923999918,"d":"1,641"}},{"$f":"'BP Financier'!$F$44*(('BP Financier'!$C$22+'BP Financier'!$D$22+'BP Financier'!$E$22+'BP Financier'!$F$22)/('BP Financier'!$C$16+'BP Financier'!$C$19+'BP Financier'!$D$16+'BP Financier'!$D$19+'BP Financier'!$E$16+'BP Financier'!$E$19+'BP Financier'!$C$22+'BP Financier'!$D$22+'BP Financier'!$E$22+'BP Financier'!$F$22+'BP Financier'!$F$16+'BP Financier'!$F$19))*$V6515*AA6515/(1-$W6515)","v":{"v":202.71174045490923,"d":"203"}},{"$f":"'BP Financier'!$F$44*(('BP Financier'!$C$22+'BP Financier'!$D$22+'BP Financier'!$E$22+'BP Financier'!$F$22)/('BP Financier'!$C$16+'BP Financier'!$C$19+'BP Financier'!$D$16+'BP Financier'!$D$19+'BP Financier'!$E$16+'BP Financier'!$E$19+'BP Financier'!$C$22+'BP Financier'!$D$22+'BP Financier'!$E$22+'BP Financier'!$F$22+'BP Financier'!$F$16+'BP Financier'!$F$19))*$V6515*AB6515/(1-$W6515)","v":{"v":97.02442278183689,"d":"97"}},null,{"v":1.25E-3,"d":"0.13%"},{"$f":"Actif!$E$28/100","v":{"v":0.28900000000000003,"d":"28.90%"}},{"$f":"Actif!$E$30/100","v":{"v":0.09050000000000001,"d":"9.05%"}},{"$f":"Actif!$E$31/100","v":{"v":0.0605,"d":"6.05%"}},{"$f":"Actif!$E$32/100","v":{"v":0.47350000000000003,"d":"47.35%"}},{"$f":"Actif!$E$33/100","v":{"v":0.0585,"d":"5.85%"}},{"$f":"Actif!$E$29/100","v":{"v":0.027999999999999997,"d":"2.80%"}}]
[null,"#409",75,2026,"H","A_CAPI",{"v":0.44999999999999996,"d":"0.45"},{"v":0.38999999999999996,"d":"0.39"},0.6,0.6,85,0,{"$f":"ROUND(Primes!$P$10*V6516,2)","v":0.11},0,{"v":2463.7273070673587,"d":"2,464"},{"$f":"'BP Financier'!$F$44*(('BP Financier'!$C$22+'BP Financier'!$D$22+'BP Financier'!$E$22+'BP Financier'!$F$22)/('BP Financier'!$C$16+'BP Financier'!$C$19+'BP Financier'!$D$16+'BP Financier'!$D$19+'BP Financier'!$E$16+'BP Financier'!$E$19+'BP Financier'!$C$22+'BP Financier'!$D$22+'BP Financier'!$E$22+'BP Financier'!$F$22+'BP Financier'!$F$16+'BP Financier'!$F$19))*$V6516*X6516/(1-$W6516)","v":{"v":313.5967950627229,"d":"314"}},{"$f":"'BP Financier'!$F$44*(('BP Financier'!$C$22+'BP Financier'!$D$22+'BP Financier'!$E$22+'BP Financier'!$F$22)/('BP Financier'!$C$16+'BP Financier'!$C$19+'BP Financier'!$D$16+'BP Financier'!$D$19+'BP Financier'!$E$16+'BP Financier'!$E$19+'BP Financier'!$C$22+'BP Financier'!$D$22+'BP Financier'!$E$22+'BP Financier'!$F$22+'BP Financier'!$F$16+'BP Financier'!$F$19))*$V6516*Y6516/(1-$W6516)","v":{"v":209.64205636789757,"d":"210"}},{"$f":"'BP Financier'!$F$44*(('BP Financier'!$C$22+'BP Financier'!$D$22+'BP Financier'!$E$22+'BP Financier'!$F$22)/('BP Financier'!$C$16+'BP Financier'!$C$19+'BP Financier'!$D$16+'BP Financier'!$D$19+'BP Financier'!$E$16+'BP Financier'!$E$19+'BP Financier'!$C$22+'BP Financier'!$D$22+'BP Financier'!$E$22+'BP Financier'!$F$22+'BP Financier'!$F$16+'BP Financier'!$F$19))*$V6516*Z6516/(1-$W6516)","v":{"v":1640.7522923999918,"d":"1,641"}},{"$f":"'BP Financier'!$F$44*(('BP Financier'!$C$22+'BP Financier'!$D$22+'BP Financier'!$E$22+'BP Financier'!$F$22)/('BP Financier'!$C$16+'BP Financier'!$C$19+'BP Financier'!$D$16+'BP Financier'!$D$19+'BP Financier'!$E$16+'BP Financier'!$E$19+'BP Financier'!$C$22+'BP Financier'!$D$22+'BP Financier'!$E$22+'BP Financier'!$F$22+'BP Financier'!$F$16+'BP Financier'!$F$19))*$V6516*AA6516/(1-$W6516)","v":{"v":202.71174045490923,"d":"203"}},{"$f":"'BP Financier'!$F$44*(('BP Financier'!$C$22+'BP Financier'!$D$22+'BP Financier'!$E$22+'BP Financier'!$F$22)/('BP Financier'!$C$16+'BP Financier'!$C$19+'BP Financier'!$D$16+'BP Financier'!$D$19+'BP Financier'!$E$16+'BP Financier'!$E$19+'BP Financier'!$C$22+'BP Financier'!$D$22+'BP Financier'!$E$22+'BP Financier'!$F$22+'BP Financier'!$F$16+'BP Financier'!$F$19))*$V6516*AB6516/(1-$W6516)","v":{"v":97.02442278183689,"d":"97"}},null,{"v":1.25E-3,"d":"0.13%"},{"$f":"Actif!$E$28/100","v":{"v":0.28900000000000003,"d":"28.90%"}},{"$f":"Actif!$E$30/100","v":{"v":0.09050000000000001,"d":"9.05%"}},{"$f":"Actif!$E$31/100","v":{"v":0.0605,"d":"6.05%"}},{"$f":"Actif!$E$32/100","v":{"v":0.47350000000000003,"d":"47.35%"}},{"$f":"Actif!$E$33/100","v":{"v":0.0585,"d":"5.85%"}},{"$f":"Actif!$E$29/100","v":{"v":0.027999999999999997,"d":"2.80%"}}]
[null,"#410",75,2028,"H","A_CAPI",{"v":0.44999999999999996,"d":"0.45"},{"v":0.38999999999999996,"d":"0.39"},0.6,0.6,85,0,{"$f":"ROUND(Primes!$P$10*V6517,2)","v":0.11},0,{"v":2463.7273070673587,"d":"2,464"},{"$f":"'BP Financier'!$F$44*(('BP Financier'!$C$22+'BP Financier'!$D$22+'BP Financier'!$E$22+'BP Financier'!$F$22)/('BP Financier'!$C$16+'BP Financier'!$C$19+'BP Financier'!$D$16+'BP Financier'!$D$19+'BP Financier'!$E$16+'BP Financier'!$E$19+'BP Financier'!$C$22+'BP Financier'!$D$22+'BP Financier'!$E$22+'BP Financier'!$F$22+'BP Financier'!$F$16+'BP Financier'!$F$19))*$V6517*X6517/(1-$W6517)","v":{"v":313.5967950627229,"d":"314"}},{"$f":"'BP Financier'!$F$44*(('BP Financier'!$C$22+'BP Financier'!$D$22+'BP Financier'!$E$22+'BP Financier'!$F$22)/('BP Financier'!$C$16+'BP Financier'!$C$19+'BP Financier'!$D$16+'BP Financier'!$D$19+'BP Financier'!$E$16+'BP Financier'!$E$19+'BP Financier'!$C$22+'BP Financier'!$D$22+'BP Financier'!$E$22+'BP Financier'!$F$22+'BP Financier'!$F$16+'BP Financier'!$F$19))*$V6517*Y6517/(1-$W6517)","v":{"v":209.64205636789757,"d":"210"}},{"$f":"'BP Financier'!$F$44*(('BP Financier'!$C$22+'BP Financier'!$D$22+'BP Financier'!$E$22+'BP Financier'!$F$22)/('BP Financier'!$C$16+'BP Financier'!$C$19+'BP Financier'!$D$16+'BP Financier'!$D$19+'BP Financier'!$E$16+'BP Financier'!$E$19+'BP Financier'!$C$22+'BP Financier'!$D$22+'BP Financier'!$E$22+'BP Financier'!$F$22+'BP Financier'!$F$16+'BP Financier'!$F$19))*$V6517*Z6517/(1-$W6517)","v":{"v":1640.7522923999918,"d":"1,641"}},{"$f":"'BP Financier'!$F$44*(('BP Financier'!$C$22+'BP Financier'!$D$22+'BP Financier'!$E$22+'BP Financier'!$F$22)/('BP Financier'!$C$16+'BP Financier'!$C$19+'BP Financier'!$D$16+'BP Financier'!$D$19+'BP Financier'!$E$16+'BP Financier'!$E$19+'BP Financier'!$C$22+'BP Financier'!$D$22+'BP Financier'!$E$22+'BP Financier'!$F$22+'BP Financier'!$F$16+'BP Financier'!$F$19))*$V6517*AA6517/(1-$W6517)","v":{"v":202.71174045490923,"d":"203"}},{"$f":"'BP Financier'!$F$44*(('BP Financier'!$C$22+'BP Financier'!$D$22+'BP Financier'!$E$22+'BP Financier'!$F$22)/('BP Financier'!$C$16+'BP Financier'!$C$19+'BP Financier'!$D$16+'BP Financier'!$D$19+'BP Financier'!$E$16+'BP Financier'!$E$19+'BP Financier'!$C$22+'BP Financier'!$D$22+'BP Financier'!$E$22+'BP Financier'!$F$22+'BP Financier'!$F$16+'BP Financier'!$F$19))*$V6517*AB6517/(1-$W6517)","v":{"v":97.02442278183689,"d":"97"}},null,{"v":1.25E-3,"d":"0.13%"},{"$f":"Actif!$E$28/100","v":{"v":0.28900000000000003,"d":"28.90%"}},{"$f":"Actif!$E$30/100","v":{"v":0.09050000000000001,"d":"9.05%"}},{"$f":"Actif!$E$31/100","v":{"v":0.0605,"d":"6.05%"}},{"$f":"Actif!$E$32/100","v":{"v":0.47350000000000003,"d":"47.35%"}},{"$f":"Actif!$E$33/100","v":{"v":0.0585,"d":"5.85%"}},{"$f":"Actif!$E$29/100","v":{"v":0.027999999999999997,"d":"2.80%"}}]
[null,"#411",75,2029,"H","A_CAPI",{"v":0.44999999999999996,"d":"0.45"},{"v":0.38999999999999996,"d":"0.39"},0.6,0.6,85,0,{"$f":"ROUND(Primes!$P$10*V6518,2)","v":0.11},0,{"v":2463.7273070673587,"d":"2,464"},{"$f":"'BP Financier'!$F$44*(('BP Financier'!$C$22+'BP Financier'!$D$22+'BP Financier'!$E$22+'BP Financier'!$F$22)/('BP Financier'!$C$16+'BP Financier'!$C$19+'BP Financier'!$D$16+'BP Financier'!$D$19+'BP Financier'!$E$16+'BP Financier'!$E$19+'BP Financier'!$C$22+'BP Financier'!$D$22+'BP Financier'!$E$22+'BP Financier'!$F$22+'BP Financier'!$F$16+'BP Financier'!$F$19))*$V6518*X6518/(1-$W6518)","v":{"v":313.5967950627229,"d":"314"}},{"$f":"'BP Financier'!$F$44*(('BP Financier'!$C$22+'BP Financier'!$D$22+'BP Financier'!$E$22+'BP Financier'!$F$22)/('BP Financier'!$C$16+'BP Financier'!$C$19+'BP Financier'!$D$16+'BP Financier'!$D$19+'BP Financier'!$E$16+'BP Financier'!$E$19+'BP Financier'!$C$22+'BP Financier'!$D$22+'BP Financier'!$E$22+'BP Financier'!$F$22+'BP Financier'!$F$16+'BP Financier'!$F$19))*$V6518*Y6518/(1-$W6518)","v":{"v":209.64205636789757,"d":"210"}},{"$f":"'BP Financier'!$F$44*(('BP Financier'!$C$22+'BP Financier'!$D$22+'BP Financier'!$E$22+'BP Financier'!$F$22)/('BP Financier'!$C$16+'BP Financier'!$C$19+'BP Financier'!$D$16+'BP Financier'!$D$19+'BP Financier'!$E$16+'BP Financier'!$E$19+'BP Financier'!$C$22+'BP Financier'!$D$22+'BP Financier'!$E$22+'BP Financier'!$F$22+'BP Financier'!$F$16+'BP Financier'!$F$19))*$V6518*Z6518/(1-$W6518)","v":{"v":1640.7522923999918,"d":"1,641"}},{"$f":"'BP Financier'!$F$44*(('BP Financier'!$C$22+'BP Financier'!$D$22+'BP Financier'!$E$22+'BP Financier'!$F$22)/('BP Financier'!$C$16+'BP Financier'!$C$19+'BP Financier'!$D$16+'BP Financier'!$D$19+'BP Financier'!$E$16+'BP Financier'!$E$19+'BP Financier'!$C$22+'BP Financier'!$D$22+'BP Financier'!$E$22+'BP Financier'!$F$22+'BP Financier'!$F$16+'BP Financier'!$F$19))*$V6518*AA6518/(1-$W6518)","v":{"v":202.71174045490923,"d":"203"}},{"$f":"'BP Financier'!$F$44*(('BP Financier'!$C$22+'BP Financier'!$D$22+'BP Financier'!$E$22+'BP Financier'!$F$22)/('BP Financier'!$C$16+'BP Financier'!$C$19+'BP Financier'!$D$16+'BP Financier'!$D$19+'BP Financier'!$E$16+'BP Financier'!$E$19+'BP Financier'!$C$22+'BP Financier'!$D$22+'BP Financier'!$E$22+'BP Financier'!$F$22+'BP Financier'!$F$16+'BP Financier'!$F$19))*$V6518*AB6518/(1-$W6518)","v":{"v":97.02442278183689,"d":"97"}},null,{"v":1.25E-3,"d":"0.13%"},{"$f":"Actif!$E$28/100","v":{"v":0.28900000000000003,"d":"28.90%"}},{"$f":"Actif!$E$30/100","v":{"v":0.09050000000000001,"d":"9.05%"}},{"$f":"Actif!$E$31/100","v":{"v":0.0605,"d":"6.05%"}},{"$f":"Actif!$E$32/100","v":{"v":0.47350000000000003,"d":"47.35%"}},{"$f":"Actif!$E$33/100","v":{"v":0.0585,"d":"5.85%"}},{"$f":"Actif!$E$29/100","v":{"v":0.027999999999999997,"d":"2.80%"}}]
[null,"#412",75,2030,"H","A_CAPI",{"v":0.44999999999999996,"d":"0.45"},{"v":0.38999999999999996,"d":"0.39"},0.6,0.6,85,0,{"$f":"ROUND(Primes!$P$10*V6519,2)","v":0.11},0,{"v":2463.7273070673587,"d":"2,464"},{"$f":"'BP Financier'!$F$44*(('BP Financier'!$C$22+'BP Financier'!$D$22+'BP Financier'!$E$22+'BP Financier'!$F$22)/('BP Financier'!$C$16+'BP Financier'!$C$19+'BP Financier'!$D$16+'BP Financier'!$D$19+'BP Financier'!$E$16+'BP Financier'!$E$19+'BP Financier'!$C$22+'BP Financier'!$D$22+'BP Financier'!$E$22+'BP Financier'!$F$22+'BP Financier'!$F$16+'BP Financier'!$F$19))*$V6519*X6519/(1-$W6519)","v":{"v":313.5967950627229,"d":"314"}},{"$f":"'BP Financier'!$F$44*(('BP Financier'!$C$22+'BP Financier'!$D$22+'BP Financier'!$E$22+'BP Financier'!$F$22)/('BP Financier'!$C$16+'BP Financier'!$C$19+'BP Financier'!$D$16+'BP Financier'!$D$19+'BP Financier'!$E$16+'BP Financier'!$E$19+'BP Financier'!$C$22+'BP Financier'!$D$22+'BP Financier'!$E$22+'BP Financier'!$F$22+'BP Financier'!$F$16+'BP Financier'!$F$19))*$V6519*Y6519/(1-$W6519)","v":{"v":209.64205636789757,"d":"210"}},{"$f":"'BP Financier'!$F$44*(('BP Financier'!$C$22+'BP Financier'!$D$22+'BP Financier'!$E$22+'BP Financier'!$F$22)/('BP Financier'!$C$16+'BP Financier'!$C$19+'BP Financier'!$D$16+'BP Financier'!$D$19+'BP Financier'!$E$16+'BP Financier'!$E$19+'BP Financier'!$C$22+'BP Financier'!$D$22+'BP Financier'!$E$22+'BP Financier'!$F$22+'BP Financier'!$F$16+'BP Financier'!$F$19))*$V6519*Z6519/(1-$W6519)","v":{"v":1640.7522923999918,"d":"1,641"}},{"$f":"'BP Financier'!$F$44*(('BP Financier'!$C$22+'BP Financier'!$D$22+'BP Financier'!$E$22+'BP Financier'!$F$22)/('BP Financier'!$C$16+'BP Financier'!$C$19+'BP Financier'!$D$16+'BP Financier'!$D$19+'BP Financier'!$E$16+'BP Financier'!$E$19+'BP Financier'!$C$22+'BP Financier'!$D$22+'BP Financier'!$E$22+'BP Financier'!$F$22+'BP Financier'!$F$16+'BP Financier'!$F$19))*$V6519*AA6519/(1-$W6519)","v":{"v":202.71174045490923,"d":"203"}},{"$f":"'BP Financier'!$F$44*(('BP Financier'!$C$22+'BP Financier'!$D$22+'BP Financier'!$E$22+'BP Financier'!$F$22)/('BP Financier'!$C$16+'BP Financier'!$C$19+'BP Financier'!$D$16+'BP Financier'!$D$19+'BP Financier'!$E$16+'BP Financier'!$E$19+'BP Financier'!$C$22+'BP Financier'!$D$22+'BP Financier'!$E$22+'BP Financier'!$F$22+'BP Financier'!$F$16+'BP Financier'!$F$19))*$V6519*AB6519/(1-$W6519)","v":{"v":97.02442278183689,"d":"97"}},null,{"v":1.25E-3,"d":"0.13%"},{"$f":"Actif!$E$28/100","v":{"v":0.28900000000000003,"d":"28.90%"}},{"$f":"Actif!$E$30/100","v":{"v":0.09050000000000001,"d":"9.05%"}},{"$f":"Actif!$E$31/100","v":{"v":0.0605,"d":"6.05%"}},{"$f":"Actif!$E$32/100","v":{"v":0.47350000000000003,"d":"47.35%"}},{"$f":"Actif!$E$33/100","v":{"v":0.0585,"d":"5.85%"}},{"$f":"Actif!$E$29/100","v":{"v":0.027999999999999997,"d":"2.80%"}}]
[null,"#413",80,2026,"F","A_CAPI",{"v":0.44999999999999996,"d":"0.45"},{"v":0.38999999999999996,"d":"0.39"},0.6,0.6,85,0,{"$f":"ROUND(Primes!$P$10*V6520,2)","v":0.11},0,{"v":2463.7273070673587,"d":"2,464"},{"$f":"'BP Financier'!$F$44*(('BP Financier'!$C$22+'BP Financier'!$D$22+'BP Financier'!$E$22+'BP Financier'!$F$22)/('BP Financier'!$C$16+'BP Financier'!$C$19+'BP Financier'!$D$16+'BP Financier'!$D$19+'BP Financier'!$E$16+'BP Financier'!$E$19+'BP Financier'!$C$22+'BP Financier'!$D$22+'BP Financier'!$E$22+'BP Financier'!$F$22+'BP Financier'!$F$16+'BP Financier'!$F$19))*$V6520*X6520/(1-$W6520)","v":{"v":313.5967950627229,"d":"314"}},{"$f":"'BP Financier'!$F$44*(('BP Financier'!$C$22+'BP Financier'!$D$22+'BP Financier'!$E$22+'BP Financier'!$F$22)/('BP Financier'!$C$16+'BP Financier'!$C$19+'BP Financier'!$D$16+'BP Financier'!$D$19+'BP Financier'!$E$16+'BP Financier'!$E$19+'BP Financier'!$C$22+'BP Financier'!$D$22+'BP Financier'!$E$22+'BP Financier'!$F$22+'BP Financier'!$F$16+'BP Financier'!$F$19))*$V6520*Y6520/(1-$W6520)","v":{"v":209.64205636789757,"d":"210"}},{"$f":"'BP Financier'!$F$44*(('BP Financier'!$C$22+'BP Financier'!$D$22+'BP Financier'!$E$22+'BP Financier'!$F$22)/('BP Financier'!$C$16+'BP Financier'!$C$19+'BP Financier'!$D$16+'BP Financier'!$D$19+'BP Financier'!$E$16+'BP Financier'!$E$19+'BP Financier'!$C$22+'BP Financier'!$D$22+'BP Financier'!$E$22+'BP Financier'!$F$22+'BP Financier'!$F$16+'BP Financier'!$F$19))*$V6520*Z6520/(1-$W6520)","v":{"v":1640.7522923999918,"d":"1,641"}},{"$f":"'BP Financier'!$F$44*(('BP Financier'!$C$22+'BP Financier'!$D$22+'BP Financier'!$E$22+'BP Financier'!$F$22)/('BP Financier'!$C$16+'BP Financier'!$C$19+'BP Financier'!$D$16+'BP Financier'!$D$19+'BP Financier'!$E$16+'BP Financier'!$E$19+'BP Financier'!$C$22+'BP Financier'!$D$22+'BP Financier'!$E$22+'BP Financier'!$F$22+'BP Financier'!$F$16+'BP Financier'!$F$19))*$V6520*AA6520/(1-$W6520)","v":{"v":202.71174045490923,"d":"203"}},{"$f":"'BP Financier'!$F$44*(('BP Financier'!$C$22+'BP Financier'!$D$22+'BP Financier'!$E$22+'BP Financier'!$F$22)/('BP Financier'!$C$16+'BP Financier'!$C$19+'BP Financier'!$D$16+'BP Financier'!$D$19+'BP Financier'!$E$16+'BP Financier'!$E$19+'BP Financier'!$C$22+'BP Financier'!$D$22+'BP Financier'!$E$22+'BP Financier'!$F$22+'BP Financier'!$F$16+'BP Financier'!$F$19))*$V6520*AB6520/(1-$W6520)","v":{"v":97.02442278183689,"d":"97"}},null,{"v":1.25E-3,"d":"0.13%"},{"$f":"Actif!$E$28/100","v":{"v":0.28900000000000003,"d":"28.90%"}},{"$f":"Actif!$E$30/100","v":{"v":0.09050000000000001,"d":"9.05%"}},{"$f":"Actif!$E$31/100","v":{"v":0.0605,"d":"6.05%"}},{"$f":"Actif!$E$32/100","v":{"v":0.47350000000000003,"d":"47.35%"}},{"$f":"Actif!$E$33/100","v":{"v":0.0585,"d":"5.85%"}},{"$f":"Actif!$E$29/100","v":{"v":0.027999999999999997,"d":"2.80%"}}]
[null,"#414",80,2028,"F","A_CAPI",{"v":0.44999999999999996,"d":"0.45"},{"v":0.38999999999999996,"d":"0.39"},0.6,0.6,85,0,{"$f":"ROUND(Primes!$P$10*V6521,2)","v":0.11},0,{"v":2463.7273070673587,"d":"2,464"},{"$f":"'BP Financier'!$F$44*(('BP Financier'!$C$22+'BP Financier'!$D$22+'BP Financier'!$E$22+'BP Financier'!$F$22)/('BP Financier'!$C$16+'BP Financier'!$C$19+'BP Financier'!$D$16+'BP Financier'!$D$19+'BP Financier'!$E$16+'BP Financier'!$E$19+'BP Financier'!$C$22+'BP Financier'!$D$22+'BP Financier'!$E$22+'BP Financier'!$F$22+'BP Financier'!$F$16+'BP Financier'!$F$19))*$V6521*X6521/(1-$W6521)","v":{"v":313.5967950627229,"d":"314"}},{"$f":"'BP Financier'!$F$44*(('BP Financier'!$C$22+'BP Financier'!$D$22+'BP Financier'!$E$22+'BP Financier'!$F$22)/('BP Financier'!$C$16+'BP Financier'!$C$19+'BP Financier'!$D$16+'BP Financier'!$D$19+'BP Financier'!$E$16+'BP Financier'!$E$19+'BP Financier'!$C$22+'BP Financier'!$D$22+'BP Financier'!$E$22+'BP Financier'!$F$22+'BP Financier'!$F$16+'BP Financier'!$F$19))*$V6521*Y6521/(1-$W6521)","v":{"v":209.64205636789757,"d":"210"}},{"$f":"'BP Financier'!$F$44*(('BP Financier'!$C$22+'BP Financier'!$D$22+'BP Financier'!$E$22+'BP Financier'!$F$22)/('BP Financier'!$C$16+'BP Financier'!$C$19+'BP Financier'!$D$16+'BP Financier'!$D$19+'BP Financier'!$E$16+'BP Financier'!$E$19+'BP Financier'!$C$22+'BP Financier'!$D$22+'BP Financier'!$E$22+'BP Financier'!$F$22+'BP Financier'!$F$16+'BP Financier'!$F$19))*$V6521*Z6521/(1-$W6521)","v":{"v":1640.7522923999918,"d":"1,641"}},{"$f":"'BP Financier'!$F$44*(('BP Financier'!$C$22+'BP Financier'!$D$22+'BP Financier'!$E$22+'BP Financier'!$F$22)/('BP Financier'!$C$16+'BP Financier'!$C$19+'BP Financier'!$D$16+'BP Financier'!$D$19+'BP Financier'!$E$16+'BP Financier'!$E$19+'BP Financier'!$C$22+'BP Financier'!$D$22+'BP Financier'!$E$22+'BP Financier'!$F$22+'BP Financier'!$F$16+'BP Financier'!$F$19))*$V6521*AA6521/(1-$W6521)","v":{"v":202.71174045490923,"d":"203"}},{"$f":"'BP Financier'!$F$44*(('BP Financier'!$C$22+'BP Financier'!$D$22+'BP Financier'!$E$22+'BP Financier'!$F$22)/('BP Financier'!$C$16+'BP Financier'!$C$19+'BP Financier'!$D$16+'BP Financier'!$D$19+'BP Financier'!$E$16+'BP Financier'!$E$19+'BP Financier'!$C$22+'BP Financier'!$D$22+'BP Financier'!$E$22+'BP Financier'!$F$22+'BP Financier'!$F$16+'BP Financier'!$F$19))*$V6521*AB6521/(1-$W6521)","v":{"v":97.02442278183689,"d":"97"}},null,{"v":1.25E-3,"d":"0.13%"},{"$f":"Actif!$E$28/100","v":{"v":0.28900000000000003,"d":"28.90%"}},{"$f":"Actif!$E$30/100","v":{"v":0.09050000000000001,"d":"9.05%"}},{"$f":"Actif!$E$31/100","v":{"v":0.0605,"d":"6.05%"}},{"$f":"Actif!$E$32/100","v":{"v":0.47350000000000003,"d":"47.35%"}},{"$f":"Actif!$E$33/100","v":{"v":0.0585,"d":"5.85%"}},{"$f":"Actif!$E$29/100","v":{"v":0.027999999999999997,"d":"2.80%"}}]
[null,"#415",80,2029,"F","A_CAPI",{"v":0.44999999999999996,"d":"0.45"},{"v":0.38999999999999996,"d":"0.39"},0.6,0.6,85,0,{"$f":"ROUND(Primes!$P$10*V6522,2)","v":0.11},0,{"v":2463.7273070673587,"d":"2,464"},{"$f":"'BP Financier'!$F$44*(('BP Financier'!$C$22+'BP Financier'!$D$22+'BP Financier'!$E$22+'BP Financier'!$F$22)/('BP Financier'!$C$16+'BP Financier'!$C$19+'BP Financier'!$D$16+'BP Financier'!$D$19+'BP Financier'!$E$16+'BP Financier'!$E$19+'BP Financier'!$C$22+'BP Financier'!$D$22+'BP Financier'!$E$22+'BP Financier'!$F$22+'BP Financier'!$F$16+'BP Financier'!$F$19))*$V6522*X6522/(1-$W6522)","v":{"v":313.5967950627229,"d":"314"}},{"$f":"'BP Financier'!$F$44*(('BP Financier'!$C$22+'BP Financier'!$D$22+'BP Financier'!$E$22+'BP Financier'!$F$22)/('BP Financier'!$C$16+'BP Financier'!$C$19+'BP Financier'!$D$16+'BP Financier'!$D$19+'BP Financier'!$E$16+'BP Financier'!$E$19+'BP Financier'!$C$22+'BP Financier'!$D$22+'BP Financier'!$E$22+'BP Financier'!$F$22+'BP Financier'!$F$16+'BP Financier'!$F$19))*$V6522*Y6522/(1-$W6522)","v":{"v":209.64205636789757,"d":"210"}},{"$f":"'BP Financier'!$F$44*(('BP Financier'!$C$22+'BP Financier'!$D$22+'BP Financier'!$E$22+'BP Financier'!$F$22)/('BP Financier'!$C$16+'BP Financier'!$C$19+'BP Financier'!$D$16+'BP Financier'!$D$19+'BP Financier'!$E$16+'BP Financier'!$E$19+'BP Financier'!$C$22+'BP Financier'!$D$22+'BP Financier'!$E$22+'BP Financier'!$F$22+'BP Financier'!$F$16+'BP Financier'!$F$19))*$V6522*Z6522/(1-$W6522)","v":{"v":1640.7522923999918,"d":"1,641"}},{"$f":"'BP Financier'!$F$44*(('BP Financier'!$C$22+'BP Financier'!$D$22+'BP Financier'!$E$22+'BP Financier'!$F$22)/('BP Financier'!$C$16+'BP Financier'!$C$19+'BP Financier'!$D$16+'BP Financier'!$D$19+'BP Financier'!$E$16+'BP Financier'!$E$19+'BP Financier'!$C$22+'BP Financier'!$D$22+'BP Financier'!$E$22+'BP Financier'!$F$22+'BP Financier'!$F$16+'BP Financier'!$F$19))*$V6522*AA6522/(1-$W6522)","v":{"v":202.71174045490923,"d":"203"}},{"$f":"'BP Financier'!$F$44*(('BP Financier'!$C$22+'BP Financier'!$D$22+'BP Financier'!$E$22+'BP Financier'!$F$22)/('BP Financier'!$C$16+'BP Financier'!$C$19+'BP Financier'!$D$16+'BP Financier'!$D$19+'BP Financier'!$E$16+'BP Financier'!$E$19+'BP Financier'!$C$22+'BP Financier'!$D$22+'BP Financier'!$E$22+'BP Financier'!$F$22+'BP Financier'!$F$16+'BP Financier'!$F$19))*$V6522*AB6522/(1-$W6522)","v":{"v":97.02442278183689,"d":"97"}},null,{"v":1.25E-3,"d":"0.13%"},{"$f":"Actif!$E$28/100","v":{"v":0.28900000000000003,"d":"28.90%"}},{"$f":"Actif!$E$30/100","v":{"v":0.09050000000000001,"d":"9.05%"}},{"$f":"Actif!$E$31/100","v":{"v":0.0605,"d":"6.05%"}},{"$f":"Actif!$E$32/100","v":{"v":0.47350000000000003,"d":"47.35%"}},{"$f":"Actif!$E$33/100","v":{"v":0.0585,"d":"5.85%"}},{"$f":"Actif!$E$29/100","v":{"v":0.027999999999999997,"d":"2.80%"}}]
[null,"#416",80,2030,"F","A_CAPI",{"v":0.44999999999999996,"d":"0.45"},{"v":0.38999999999999996,"d":"0.39"},0.6,0.6,85,0,{"$f":"ROUND(Primes!$P$10*V6523,2)","v":0.11},0,{"v":2463.7273070673587,"d":"2,464"},{"$f":"'BP Financier'!$F$44*(('BP Financier'!$C$22+'BP Financier'!$D$22+'BP Financier'!$E$22+'BP Financier'!$F$22)/('BP Financier'!$C$16+'BP Financier'!$C$19+'BP Financier'!$D$16+'BP Financier'!$D$19+'BP Financier'!$E$16+'BP Financier'!$E$19+'BP Financier'!$C$22+'BP Financier'!$D$22+'BP Financier'!$E$22+'BP Financier'!$F$22+'BP Financier'!$F$16+'BP Financier'!$F$19))*$V6523*X6523/(1-$W6523)","v":{"v":313.5967950627229,"d":"314"}},{"$f":"'BP Financier'!$F$44*(('BP Financier'!$C$22+'BP Financier'!$D$22+'BP Financier'!$E$22+'BP Financier'!$F$22)/('BP Financier'!$C$16+'BP Financier'!$C$19+'BP Financier'!$D$16+'BP Financier'!$D$19+'BP Financier'!$E$16+'BP Financier'!$E$19+'BP Financier'!$C$22+'BP Financier'!$D$22+'BP Financier'!$E$22+'BP Financier'!$F$22+'BP Financier'!$F$16+'BP Financier'!$F$19))*$V6523*Y6523/(1-$W6523)","v":{"v":209.64205636789757,"d":"210"}},{"$f":"'BP Financier'!$F$44*(('BP Financier'!$C$22+'BP Financier'!$D$22+'BP Financier'!$E$22+'BP Financier'!$F$22)/('BP Financier'!$C$16+'BP Financier'!$C$19+'BP Financier'!$D$16+'BP Financier'!$D$19+'BP Financier'!$E$16+'BP Financier'!$E$19+'BP Financier'!$C$22+'BP Financier'!$D$22+'BP Financier'!$E$22+'BP Financier'!$F$22+'BP Financier'!$F$16+'BP Financier'!$F$19))*$V6523*Z6523/(1-$W6523)","v":{"v":1640.7522923999918,"d":"1,641"}},{"$f":"'BP Financier'!$F$44*(('BP Financier'!$C$22+'BP Financier'!$D$22+'BP Financier'!$E$22+'BP Financier'!$F$22)/('BP Financier'!$C$16+'BP Financier'!$C$19+'BP Financier'!$D$16+'BP Financier'!$D$19+'BP Financier'!$E$16+'BP Financier'!$E$19+'BP Financier'!$C$22+'BP Financier'!$D$22+'BP Financier'!$E$22+'BP Financier'!$F$22+'BP Financier'!$F$16+'BP Financier'!$F$19))*$V6523*AA6523/(1-$W6523)","v":{"v":202.71174045490923,"d":"203"}},{"$f":"'BP Financier'!$F$44*(('BP Financier'!$C$22+'BP Financier'!$D$22+'BP Financier'!$E$22+'BP Financier'!$F$22)/('BP Financier'!$C$16+'BP Financier'!$C$19+'BP Financier'!$D$16+'BP Financier'!$D$19+'BP Financier'!$E$16+'BP Financier'!$E$19+'BP Financier'!$C$22+'BP Financier'!$D$22+'BP Financier'!$E$22+'BP Financier'!$F$22+'BP Financier'!$F$16+'BP Financier'!$F$19))*$V6523*AB6523/(1-$W6523)","v":{"v":97.02442278183689,"d":"97"}},null,{"v":1.25E-3,"d":"0.13%"},{"$f":"Actif!$E$28/100","v":{"v":0.28900000000000003,"d":"28.90%"}},{"$f":"Actif!$E$30/100","v":{"v":0.09050000000000001,"d":"9.05%"}},{"$f":"Actif!$E$31/100","v":{"v":0.0605,"d":"6.05%"}},{"$f":"Actif!$E$32/100","v":{"v":0.47350000000000003,"d":"47.35%"}},{"$f":"Actif!$E$33/100","v":{"v":0.0585,"d":"5.85%"}},{"$f":"Actif!$E$29/100","v":{"v":0.027999999999999997,"d":"2.80%"}}]
[null,"#417",85,2026,"H","A_CAPI",{"v":0.44999999999999996,"d":"0.45"},{"v":0.38999999999999996,"d":"0.39"},0.6,0.6,85,0,{"$f":"ROUND(Primes!$P$10*V6524,2)","v":0.06},0,{"v":1231.8636535336793,"d":"1,232"},{"$f":"'BP Financier'!$F$44*(('BP Financier'!$C$22+'BP Financier'!$D$22+'BP Financier'!$E$22+'BP Financier'!$F$22)/('BP Financier'!$C$16+'BP Financier'!$C$19+'BP Financier'!$D$16+'BP Financier'!$D$19+'BP Financier'!$E$16+'BP Financier'!$E$19+'BP Financier'!$C$22+'BP Financier'!$D$22+'BP Financier'!$E$22+'BP Financier'!$F$22+'BP Financier'!$F$16+'BP Financier'!$F$19))*$V6524*X6524/(1-$W6524)","v":{"v":156.79839753136145,"d":"157"}},{"$f":"'BP Financier'!$F$44*(('BP Financier'!$C$22+'BP Financier'!$D$22+'BP Financier'!$E$22+'BP Financier'!$F$22)/('BP Financier'!$C$16+'BP Financier'!$C$19+'BP Financier'!$D$16+'BP Financier'!$D$19+'BP Financier'!$E$16+'BP Financier'!$E$19+'BP Financier'!$C$22+'BP Financier'!$D$22+'BP Financier'!$E$22+'BP Financier'!$F$22+'BP Financier'!$F$16+'BP Financier'!$F$19))*$V6524*Y6524/(1-$W6524)","v":{"v":104.82102818394878,"d":"105"}},{"$f":"'BP Financier'!$F$44*(('BP Financier'!$C$22+'BP Financier'!$D$22+'BP Financier'!$E$22+'BP Financier'!$F$22)/('BP Financier'!$C$16+'BP Financier'!$C$19+'BP Financier'!$D$16+'BP Financier'!$D$19+'BP Financier'!$E$16+'BP Financier'!$E$19+'BP Financier'!$C$22+'BP Financier'!$D$22+'BP Financier'!$E$22+'BP Financier'!$F$22+'BP Financier'!$F$16+'BP Financier'!$F$19))*$V6524*Z6524/(1-$W6524)","v":{"v":820.3761461999959,"d":"820"}},{"$f":"'BP Financier'!$F$44*(('BP Financier'!$C$22+'BP Financier'!$D$22+'BP Financier'!$E$22+'BP Financier'!$F$22)/('BP Financier'!$C$16+'BP Financier'!$C$19+'BP Financier'!$D$16+'BP Financier'!$D$19+'BP Financier'!$E$16+'BP Financier'!$E$19+'BP Financier'!$C$22+'BP Financier'!$D$22+'BP Financier'!$E$22+'BP Financier'!$F$22+'BP Financier'!$F$16+'BP Financier'!$F$19))*$V6524*AA6524/(1-$W6524)","v":{"v":101.35587022745462,"d":"101"}},{"$f":"'BP Financier'!$F$44*(('BP Financier'!$C$22+'BP Financier'!$D$22+'BP Financier'!$E$22+'BP Financier'!$F$22)/('BP Financier'!$C$16+'BP Financier'!$C$19+'BP Financier'!$D$16+'BP Financier'!$D$19+'BP Financier'!$E$16+'BP Financier'!$E$19+'BP Financier'!$C$22+'BP Financier'!$D$22+'BP Financier'!$E$22+'BP Financier'!$F$22+'BP Financier'!$F$16+'BP Financier'!$F$19))*$V6524*AB6524/(1-$W6524)","v":{"v":48.512211390918445,"d":"49"}},null,{"v":0.000625,"d":"0.06%"},{"$f":"Actif!$E$28/100","v":{"v":0.28900000000000003,"d":"28.90%"}},{"$f":"Actif!$E$30/100","v":{"v":0.09050000000000001,"d":"9.05%"}},{"$f":"Actif!$E$31/100","v":{"v":0.0605,"d":"6.05%"}},{"$f":"Actif!$E$32/100","v":{"v":0.47350000000000003,"d":"47.35%"}},{"$f":"Actif!$E$33/100","v":{"v":0.0585,"d":"5.85%"}},{"$f":"Actif!$E$29/100","v":{"v":0.027999999999999997,"d":"2.80%"}}]
[null,"#418",85,2028,"H","A_CAPI",{"v":0.44999999999999996,"d":"0.45"},{"v":0.38999999999999996,"d":"0.39"},0.6,0.6,85,0,{"$f":"ROUND(Primes!$P$10*V6525,2)","v":0.06},0,{"v":1231.8636535336793,"d":"1,232"},{"$f":"'BP Financier'!$F$44*(('BP Financier'!$C$22+'BP Financier'!$D$22+'BP Financier'!$E$22+'BP Financier'!$F$22)/('BP Financier'!$C$16+'BP Financier'!$C$19+'BP Financier'!$D$16+'BP Financier'!$D$19+'BP Financier'!$E$16+'BP Financier'!$E$19+'BP Financier'!$C$22+'BP Financier'!$D$22+'BP Financier'!$E$22+'BP Financier'!$F$22+'BP Financier'!$F$16+'BP Financier'!$F$19))*$V6525*X6525/(1-$W6525)","v":{"v":156.79839753136145,"d":"157"}},{"$f":"'BP Financier'!$F$44*(('BP Financier'!$C$22+'BP Financier'!$D$22+'BP Financier'!$E$22+'BP Financier'!$F$22)/('BP Financier'!$C$16+'BP Financier'!$C$19+'BP Financier'!$D$16+'BP Financier'!$D$19+'BP Financier'!$E$16+'BP Financier'!$E$19+'BP Financier'!$C$22+'BP Financier'!$D$22+'BP Financier'!$E$22+'BP Financier'!$F$22+'BP Financier'!$F$16+'BP Financier'!$F$19))*$V6525*Y6525/(1-$W6525)","v":{"v":104.82102818394878,"d":"105"}},{"$f":"'BP Financier'!$F$44*(('BP Financier'!$C$22+'BP Financier'!$D$22+'BP Financier'!$E$22+'BP Financier'!$F$22)/('BP Financier'!$C$16+'BP Financier'!$C$19+'BP Financier'!$D$16+'BP Financier'!$D$19+'BP Financier'!$E$16+'BP Financier'!$E$19+'BP Financier'!$C$22+'BP Financier'!$D$22+'BP Financier'!$E$22+'BP Financier'!$F$22+'BP Financier'!$F$16+'BP Financier'!$F$19))*$V6525*Z6525/(1-$W6525)","v":{"v":820.3761461999959,"d":"820"}},{"$f":"'BP Financier'!$F$44*(('BP Financier'!$C$22+'BP Financier'!$D$22+'BP Financier'!$E$22+'BP Financier'!$F$22)/('BP Financier'!$C$16+'BP Financier'!$C$19+'BP Financier'!$D$16+'BP Financier'!$D$19+'BP Financier'!$E$16+'BP Financier'!$E$19+'BP Financier'!$C$22+'BP Financier'!$D$22+'BP Financier'!$E$22+'BP Financier'!$F$22+'BP Financier'!$F$16+'BP Financier'!$F$19))*$V6525*AA6525/(1-$W6525)","v":{"v":101.35587022745462,"d":"101"}},{"$f":"'BP Financier'!$F$44*(('BP Financier'!$C$22+'BP Financier'!$D$22+'BP Financier'!$E$22+'BP Financier'!$F$22)/('BP Financier'!$C$16+'BP Financier'!$C$19+'BP Financier'!$D$16+'BP Financier'!$D$19+'BP Financier'!$E$16+'BP Financier'!$E$19+'BP Financier'!$C$22+'BP Financier'!$D$22+'BP Financier'!$E$22+'BP Financier'!$F$22+'BP Financier'!$F$16+'BP Financier'!$F$19))*$V6525*AB6525/(1-$W6525)","v":{"v":48.512211390918445,"d":"49"}},null,{"v":0.000625,"d":"0.06%"},{"$f":"Actif!$E$28/100","v":{"v":0.28900000000000003,"d":"28.90%"}},{"$f":"Actif!$E$30/100","v":{"v":0.09050000000000001,"d":"9.05%"}},{"$f":"Actif!$E$31/100","v":{"v":0.0605,"d":"6.05%"}},{"$f":"Actif!$E$32/100","v":{"v":0.47350000000000003,"d":"47.35%"}},{"$f":"Actif!$E$33/100","v":{"v":0.0585,"d":"5.85%"}},{"$f":"Actif!$E$29/100","v":{"v":0.027999999999999997,"d":"2.80%"}}]
[null,"#419",85,2029,"H","A_CAPI",{"v":0.44999999999999996,"d":"0.45"},{"v":0.38999999999999996,"d":"0.39"},0.6,0.6,85,0,{"$f":"ROUND(Primes!$P$10*V6526,2)","v":0.06},0,{"v":1231.8636535336793,"d":"1,232"},{"$f":"'BP Financier'!$F$44*(('BP Financier'!$C$22+'BP Financier'!$D$22+'BP Financier'!$E$22+'BP Financier'!$F$22)/('BP Financier'!$C$16+'BP Financier'!$C$19+'BP Financier'!$D$16+'BP Financier'!$D$19+'BP Financier'!$E$16+'BP Financier'!$E$19+'BP Financier'!$C$22+'BP Financier'!$D$22+'BP Financier'!$E$22+'BP Financier'!$F$22+'BP Financier'!$F$16+'BP Financier'!$F$19))*$V6526*X6526/(1-$W6526)","v":{"v":156.79839753136145,"d":"157"}},{"$f":"'BP Financier'!$F$44*(('BP Financier'!$C$22+'BP Financier'!$D$22+'BP Financier'!$E$22+'BP Financier'!$F$22)/('BP Financier'!$C$16+'BP Financier'!$C$19+'BP Financier'!$D$16+'BP Financier'!$D$19+'BP Financier'!$E$16+'BP Financier'!$E$19+'BP Financier'!$C$22+'BP Financier'!$D$22+'BP Financier'!$E$22+'BP Financier'!$F$22+'BP Financier'!$F$16+'BP Financier'!$F$19))*$V6526*Y6526/(1-$W6526)","v":{"v":104.82102818394878,"d":"105"}},{"$f":"'BP Financier'!$F$44*(('BP Financier'!$C$22+'BP Financier'!$D$22+'BP Financier'!$E$22+'BP Financier'!$F$22)/('BP Financier'!$C$16+'BP Financier'!$C$19+'BP Financier'!$D$16+'BP Financier'!$D$19+'BP Financier'!$E$16+'BP Financier'!$E$19+'BP Financier'!$C$22+'BP Financier'!$D$22+'BP Financier'!$E$22+'BP Financier'!$F$22+'BP Financier'!$F$16+'BP Financier'!$F$19))*$V6526*Z6526/(1-$W6526)","v":{"v":820.3761461999959,"d":"820"}},{"$f":"'BP Financier'!$F$44*(('BP Financier'!$C$22+'BP Financier'!$D$22+'BP Financier'!$E$22+'BP Financier'!$F$22)/('BP Financier'!$C$16+'BP Financier'!$C$19+'BP Financier'!$D$16+'BP Financier'!$D$19+'BP Financier'!$E$16+'BP Financier'!$E$19+'BP Financier'!$C$22+'BP Financier'!$D$22+'BP Financier'!$E$22+'BP Financier'!$F$22+'BP Financier'!$F$16+'BP Financier'!$F$19))*$V6526*AA6526/(1-$W6526)","v":{"v":101.35587022745462,"d":"101"}},{"$f":"'BP Financier'!$F$44*(('BP Financier'!$C$22+'BP Financier'!$D$22+'BP Financier'!$E$22+'BP Financier'!$F$22)/('BP Financier'!$C$16+'BP Financier'!$C$19+'BP Financier'!$D$16+'BP Financier'!$D$19+'BP Financier'!$E$16+'BP Financier'!$E$19+'BP Financier'!$C$22+'BP Financier'!$D$22+'BP Financier'!$E$22+'BP Financier'!$F$22+'BP Financier'!$F$16+'BP Financier'!$F$19))*$V6526*AB6526/(1-$W6526)","v":{"v":48.512211390918445,"d":"49"}},null,{"v":0.000625,"d":"0.06%"},{"$f":"Actif!$E$28/100","v":{"v":0.28900000000000003,"d":"28.90%"}},{"$f":"Actif!$E$30/100","v":{"v":0.09050000000000001,"d":"9.05%"}},{"$f":"Actif!$E$31/100","v":{"v":0.0605,"d":"6.05%"}},{"$f":"Actif!$E$32/100","v":{"v":0.47350000000000003,"d":"47.35%"}},{"$f":"Actif!$E$33/100","v":{"v":0.0585,"d":"5.85%"}},{"$f":"Actif!$E$29/100","v":{"v":0.027999999999999997,"d":"2.80%"}}]
[null,"#420",85,2030,"H","A_CAPI",{"v":0.44999999999999996,"d":"0.45"},{"v":0.38999999999999996,"d":"0.39"},0.6,0.6,85,0,{"$f":"ROUND(Primes!$P$10*V6527,2)","v":0.06},0,{"v":1231.8636535336793,"d":"1,232"},{"$f":"'BP Financier'!$F$44*(('BP Financier'!$C$22+'BP Financier'!$D$22+'BP Financier'!$E$22+'BP Financier'!$F$22)/('BP Financier'!$C$16+'BP Financier'!$C$19+'BP Financier'!$D$16+'BP Financier'!$D$19+'BP Financier'!$E$16+'BP Financier'!$E$19+'BP Financier'!$C$22+'BP Financier'!$D$22+'BP Financier'!$E$22+'BP Financier'!$F$22+'BP Financier'!$F$16+'BP Financier'!$F$19))*$V6527*X6527/(1-$W6527)","v":{"v":156.79839753136145,"d":"157"}},{"$f":"'BP Financier'!$F$44*(('BP Financier'!$C$22+'BP Financier'!$D$22+'BP Financier'!$E$22+'BP Financier'!$F$22)/('BP Financier'!$C$16+'BP Financier'!$C$19+'BP Financier'!$D$16+'BP Financier'!$D$19+'BP Financier'!$E$16+'BP Financier'!$E$19+'BP Financier'!$C$22+'BP Financier'!$D$22+'BP Financier'!$E$22+'BP Financier'!$F$22+'BP Financier'!$F$16+'BP Financier'!$F$19))*$V6527*Y6527/(1-$W6527)","v":{"v":104.82102818394878,"d":"105"}},{"$f":"'BP Financier'!$F$44*(('BP Financier'!$C$22+'BP Financier'!$D$22+'BP Financier'!$E$22+'BP Financier'!$F$22)/('BP Financier'!$C$16+'BP Financier'!$C$19+'BP Financier'!$D$16+'BP Financier'!$D$19+'BP Financier'!$E$16+'BP Financier'!$E$19+'BP Financier'!$C$22+'BP Financier'!$D$22+'BP Financier'!$E$22+'BP Financier'!$F$22+'BP Financier'!$F$16+'BP Financier'!$F$19))*$V6527*Z6527/(1-$W6527)","v":{"v":820.3761461999959,"d":"820"}},{"$f":"'BP Financier'!$F$44*(('BP Financier'!$C$22+'BP Financier'!$D$22+'BP Financier'!$E$22+'BP Financier'!$F$22)/('BP Financier'!$C$16+'BP Financier'!$C$19+'BP Financier'!$D$16+'BP Financier'!$D$19+'BP Financier'!$E$16+'BP Financier'!$E$19+'BP Financier'!$C$22+'BP Financier'!$D$22+'BP Financier'!$E$22+'BP Financier'!$F$22+'BP Financier'!$F$16+'BP Financier'!$F$19))*$V6527*AA6527/(1-$W6527)","v":{"v":101.35587022745462,"d":"101"}},{"$f":"'BP Financier'!$F$44*(('BP Financier'!$C$22+'BP Financier'!$D$22+'BP Financier'!$E$22+'BP Financier'!$F$22)/('BP Financier'!$C$16+'BP Financier'!$C$19+'BP Financier'!$D$16+'BP Financier'!$D$19+'BP Financier'!$E$16+'BP Financier'!$E$19+'BP Financier'!$C$22+'BP Financier'!$D$22+'BP Financier'!$E$22+'BP Financier'!$F$22+'BP Financier'!$F$16+'BP Financier'!$F$19))*$V6527*AB6527/(1-$W6527)","v":{"v":48.512211390918445,"d":"49"}},null,{"v":0.000625,"d":"0.06%"},{"$f":"Actif!$E$28/100","v":{"v":0.28900000000000003,"d":"28.90%"}},{"$f":"Actif!$E$30/100","v":{"v":0.09050000000000001,"d":"9.05%"}},{"$f":"Actif!$E$31/100","v":{"v":0.0605,"d":"6.05%"}},{"$f":"Actif!$E$32/100","v":{"v":0.47350000000000003,"d":"47.35%"}},{"$f":"Actif!$E$33/100","v":{"v":0.0585,"d":"5.85%"}},{"$f":"Actif!$E$29/100","v":{"v":0.027999999999999997,"d":"2.80%"}}]
[null,"#421",90,2026,"H","A_CAPI",{"v":0.44999999999999996,"d":"0.45"},{"v":0.38999999999999996,"d":"0.39"},0.6,0.6,85,0,{"$f":"ROUND(Primes!$P$10*V6528,2)","v":0.06},0,{"v":1231.8636535336793,"d":"1,232"},{"$f":"'BP Financier'!$F$44*(('BP Financier'!$C$22+'BP Financier'!$D$22+'BP Financier'!$E$22+'BP Financier'!$F$22)/('BP Financier'!$C$16+'BP Financier'!$C$19+'BP Financier'!$D$16+'BP Financier'!$D$19+'BP Financier'!$E$16+'BP Financier'!$E$19+'BP Financier'!$C$22+'BP Financier'!$D$22+'BP Financier'!$E$22+'BP Financier'!$F$22+'BP Financier'!$F$16+'BP Financier'!$F$19))*$V6528*X6528/(1-$W6528)","v":{"v":156.79839753136145,"d":"157"}},{"$f":"'BP Financier'!$F$44*(('BP Financier'!$C$22+'BP Financier'!$D$22+'BP Financier'!$E$22+'BP Financier'!$F$22)/('BP Financier'!$C$16+'BP Financier'!$C$19+'BP Financier'!$D$16+'BP Financier'!$D$19+'BP Financier'!$E$16+'BP Financier'!$E$19+'BP Financier'!$C$22+'BP Financier'!$D$22+'BP Financier'!$E$22+'BP Financier'!$F$22+'BP Financier'!$F$16+'BP Financier'!$F$19))*$V6528*Y6528/(1-$W6528)","v":{"v":104.82102818394878,"d":"105"}},{"$f":"'BP Financier'!$F$44*(('BP Financier'!$C$22+'BP Financier'!$D$22+'BP Financier'!$E$22+'BP Financier'!$F$22)/('BP Financier'!$C$16+'BP Financier'!$C$19+'BP Financier'!$D$16+'BP Financier'!$D$19+'BP Financier'!$E$16+'BP Financier'!$E$19+'BP Financier'!$C$22+'BP Financier'!$D$22+'BP Financier'!$E$22+'BP Financier'!$F$22+'BP Financier'!$F$16+'BP Financier'!$F$19))*$V6528*Z6528/(1-$W6528)","v":{"v":820.3761461999959,"d":"820"}},{"$f":"'BP Financier'!$F$44*(('BP Financier'!$C$22+'BP Financier'!$D$22+'BP Financier'!$E$22+'BP Financier'!$F$22)/('BP Financier'!$C$16+'BP Financier'!$C$19+'BP Financier'!$D$16+'BP Financier'!$D$19+'BP Financier'!$E$16+'BP Financier'!$E$19+'BP Financier'!$C$22+'BP Financier'!$D$22+'BP Financier'!$E$22+'BP Financier'!$F$22+'BP Financier'!$F$16+'BP Financier'!$F$19))*$V6528*AA6528/(1-$W6528)","v":{"v":101.35587022745462,"d":"101"}},{"$f":"'BP Financier'!$F$44*(('BP Financier'!$C$22+'BP Financier'!$D$22+'BP Financier'!$E$22+'BP Financier'!$F$22)/('BP Financier'!$C$16+'BP Financier'!$C$19+'BP Financier'!$D$16+'BP Financier'!$D$19+'BP Financier'!$E$16+'BP Financier'!$E$19+'BP Financier'!$C$22+'BP Financier'!$D$22+'BP Financier'!$E$22+'BP Financier'!$F$22+'BP Financier'!$F$16+'BP Financier'!$F$19))*$V6528*AB6528/(1-$W6528)","v":{"v":48.512211390918445,"d":"49"}},null,{"v":0.000625,"d":"0.06%"},{"$f":"Actif!$E$28/100","v":{"v":0.28900000000000003,"d":"28.90%"}},{"$f":"Actif!$E$30/100","v":{"v":0.09050000000000001,"d":"9.05%"}},{"$f":"Actif!$E$31/100","v":{"v":0.0605,"d":"6.05%"}},{"$f":"Actif!$E$32/100","v":{"v":0.47350000000000003,"d":"47.35%"}},{"$f":"Actif!$E$33/100","v":{"v":0.0585,"d":"5.85%"}},{"$f":"Actif!$E$29/100","v":{"v":0.027999999999999997,"d":"2.80%"}}]
[null,"#422",90,2028,"H","A_CAPI",{"v":0.44999999999999996,"d":"0.45"},{"v":0.38999999999999996,"d":"0.39"},0.6,0.6,85,0,{"$f":"ROUND(Primes!$P$10*V6529,2)","v":0.06},0,{"v":1231.8636535336793,"d":"1,232"},{"$f":"'BP Financier'!$F$44*(('BP Financier'!$C$22+'BP Financier'!$D$22+'BP Financier'!$E$22+'BP Financier'!$F$22)/('BP Financier'!$C$16+'BP Financier'!$C$19+'BP Financier'!$D$16+'BP Financier'!$D$19+'BP Financier'!$E$16+'BP Financier'!$E$19+'BP Financier'!$C$22+'BP Financier'!$D$22+'BP Financier'!$E$22+'BP Financier'!$F$22+'BP Financier'!$F$16+'BP Financier'!$F$19))*$V6529*X6529/(1-$W6529)","v":{"v":156.79839753136145,"d":"157"}},{"$f":"'BP Financier'!$F$44*(('BP Financier'!$C$22+'BP Financier'!$D$22+'BP Financier'!$E$22+'BP Financier'!$F$22)/('BP Financier'!$C$16+'BP Financier'!$C$19+'BP Financier'!$D$16+'BP Financier'!$D$19+'BP Financier'!$E$16+'BP Financier'!$E$19+'BP Financier'!$C$22+'BP Financier'!$D$22+'BP Financier'!$E$22+'BP Financier'!$F$22+'BP Financier'!$F$16+'BP Financier'!$F$19))*$V6529*Y6529/(1-$W6529)","v":{"v":104.82102818394878,"d":"105"}},{"$f":"'BP Financier'!$F$44*(('BP Financier'!$C$22+'BP Financier'!$D$22+'BP Financier'!$E$22+'BP Financier'!$F$22)/('BP Financier'!$C$16+'BP Financier'!$C$19+'BP Financier'!$D$16+'BP Financier'!$D$19+'BP Financier'!$E$16+'BP Financier'!$E$19+'BP Financier'!$C$22+'BP Financier'!$D$22+'BP Financier'!$E$22+'BP Financier'!$F$22+'BP Financier'!$F$16+'BP Financier'!$F$19))*$V6529*Z6529/(1-$W6529)","v":{"v":820.3761461999959,"d":"820"}},{"$f":"'BP Financier'!$F$44*(('BP Financier'!$C$22+'BP Financier'!$D$22+'BP Financier'!$E$22+'BP Financier'!$F$22)/('BP Financier'!$C$16+'BP Financier'!$C$19+'BP Financier'!$D$16+'BP Financier'!$D$19+'BP Financier'!$E$16+'BP Financier'!$E$19+'BP Financier'!$C$22+'BP Financier'!$D$22+'BP Financier'!$E$22+'BP Financier'!$F$22+'BP Financier'!$F$16+'BP Financier'!$F$19))*$V6529*AA6529/(1-$W6529)","v":{"v":101.35587022745462,"d":"101"}},{"$f":"'BP Financier'!$F$44*(('BP Financier'!$C$22+'BP Financier'!$D$22+'BP Financier'!$E$22+'BP Financier'!$F$22)/('BP Financier'!$C$16+'BP Financier'!$C$19+'BP Financier'!$D$16+'BP Financier'!$D$19+'BP Financier'!$E$16+'BP Financier'!$E$19+'BP Financier'!$C$22+'BP Financier'!$D$22+'BP Financier'!$E$22+'BP Financier'!$F$22+'BP Financier'!$F$16+'BP Financier'!$F$19))*$V6529*AB6529/(1-$W6529)","v":{"v":48.512211390918445,"d":"49"}},null,{"v":0.000625,"d":"0.06%"},{"$f":"Actif!$E$28/100","v":{"v":0.28900000000000003,"d":"28.90%"}},{"$f":"Actif!$E$30/100","v":{"v":0.09050000000000001,"d":"9.05%"}},{"$f":"Actif!$E$31/100","v":{"v":0.0605,"d":"6.05%"}},{"$f":"Actif!$E$32/100","v":{"v":0.47350000000000003,"d":"47.35%"}},{"$f":"Actif!$E$33/100","v":{"v":0.0585,"d":"5.85%"}},{"$f":"Actif!$E$29/100","v":{"v":0.027999999999999997,"d":"2.80%"}}]
[null,"#423",90,2029,"H","A_CAPI",{"v":0.44999999999999996,"d":"0.45"},{"v":0.38999999999999996,"d":"0.39"},0.6,0.6,85,0,{"$f":"ROUND(Primes!$P$10*V6530,2)","v":0.06},0,{"v":1231.8636535336793,"d":"1,232"},{"$f":"'BP Financier'!$F$44*(('BP Financier'!$C$22+'BP Financier'!$D$22+'BP Financier'!$E$22+'BP Financier'!$F$22)/('BP Financier'!$C$16+'BP Financier'!$C$19+'BP Financier'!$D$16+'BP Financier'!$D$19+'BP Financier'!$E$16+'BP Financier'!$E$19+'BP Financier'!$C$22+'BP Financier'!$D$22+'BP Financier'!$E$22+'BP Financier'!$F$22+'BP Financier'!$F$16+'BP Financier'!$F$19))*$V6530*X6530/(1-$W6530)","v":{"v":156.79839753136145,"d":"157"}},{"$f":"'BP Financier'!$F$44*(('BP Financier'!$C$22+'BP Financier'!$D$22+'BP Financier'!$E$22+'BP Financier'!$F$22)/('BP Financier'!$C$16+'BP Financier'!$C$19+'BP Financier'!$D$16+'BP Financier'!$D$19+'BP Financier'!$E$16+'BP Financier'!$E$19+'BP Financier'!$C$22+'BP Financier'!$D$22+'BP Financier'!$E$22+'BP Financier'!$F$22+'BP Financier'!$F$16+'BP Financier'!$F$19))*$V6530*Y6530/(1-$W6530)","v":{"v":104.82102818394878,"d":"105"}},{"$f":"'BP Financier'!$F$44*(('BP Financier'!$C$22+'BP Financier'!$D$22+'BP Financier'!$E$22+'BP Financier'!$F$22)/('BP Financier'!$C$16+'BP Financier'!$C$19+'BP Financier'!$D$16+'BP Financier'!$D$19+'BP Financier'!$E$16+'BP Financier'!$E$19+'BP Financier'!$C$22+'BP Financier'!$D$22+'BP Financier'!$E$22+'BP Financier'!$F$22+'BP Financier'!$F$16+'BP Financier'!$F$19))*$V6530*Z6530/(1-$W6530)","v":{"v":820.3761461999959,"d":"820"}},{"$f":"'BP Financier'!$F$44*(('BP Financier'!$C$22+'BP Financier'!$D$22+'BP Financier'!$E$22+'BP Financier'!$F$22)/('BP Financier'!$C$16+'BP Financier'!$C$19+'BP Financier'!$D$16+'BP Financier'!$D$19+'BP Financier'!$E$16+'BP Financier'!$E$19+'BP Financier'!$C$22+'BP Financier'!$D$22+'BP Financier'!$E$22+'BP Financier'!$F$22+'BP Financier'!$F$16+'BP Financier'!$F$19))*$V6530*AA6530/(1-$W6530)","v":{"v":101.35587022745462,"d":"101"}},{"$f":"'BP Financier'!$F$44*(('BP Financier'!$C$22+'BP Financier'!$D$22+'BP Financier'!$E$22+'BP Financier'!$F$22)/('BP Financier'!$C$16+'BP Financier'!$C$19+'BP Financier'!$D$16+'BP Financier'!$D$19+'BP Financier'!$E$16+'BP Financier'!$E$19+'BP Financier'!$C$22+'BP Financier'!$D$22+'BP Financier'!$E$22+'BP Financier'!$F$22+'BP Financier'!$F$16+'BP Financier'!$F$19))*$V6530*AB6530/(1-$W6530)","v":{"v":48.512211390918445,"d":"49"}},null,{"v":0.000625,"d":"0.06%"},{"$f":"Actif!$E$28/100","v":{"v":0.28900000000000003,"d":"28.90%"}},{"$f":"Actif!$E$30/100","v":{"v":0.09050000000000001,"d":"9.05%"}},{"$f":"Actif!$E$31/100","v":{"v":0.0605,"d":"6.05%"}},{"$f":"Actif!$E$32/100","v":{"v":0.47350000000000003,"d":"47.35%"}},{"$f":"Actif!$E$33/100","v":{"v":0.0585,"d":"5.85%"}},{"$f":"Actif!$E$29/100","v":{"v":0.027999999999999997,"d":"2.80%"}}]
[null,"#424",90,2030,"H","A_CAPI",{"v":0.44999999999999996,"d":"0.45"},{"v":0.38999999999999996,"d":"0.39"},0.6,0.6,85,0,{"$f":"ROUND(Primes!$P$10*V6531,2)","v":0.06},0,{"v":1231.8636535336793,"d":"1,232"},{"$f":"'BP Financier'!$F$44*(('BP Financier'!$C$22+'BP Financier'!$D$22+'BP Financier'!$E$22+'BP Financier'!$F$22)/('BP Financier'!$C$16+'BP Financier'!$C$19+'BP Financier'!$D$16+'BP Financier'!$D$19+'BP Financier'!$E$16+'BP Financier'!$E$19+'BP Financier'!$C$22+'BP Financier'!$D$22+'BP Financier'!$E$22+'BP Financier'!$F$22+'BP Financier'!$F$16+'BP Financier'!$F$19))*$V6531*X6531/(1-$W6531)","v":{"v":156.79839753136145,"d":"157"}},{"$f":"'BP Financier'!$F$44*(('BP Financier'!$C$22+'BP Financier'!$D$22+'BP Financier'!$E$22+'BP Financier'!$F$22)/('BP Financier'!$C$16+'BP Financier'!$C$19+'BP Financier'!$D$16+'BP Financier'!$D$19+'BP Financier'!$E$16+'BP Financier'!$E$19+'BP Financier'!$C$22+'BP Financier'!$D$22+'BP Financier'!$E$22+'BP Financier'!$F$22+'BP Financier'!$F$16+'BP Financier'!$F$19))*$V6531*Y6531/(1-$W6531)","v":{"v":104.82102818394878,"d":"105"}},{"$f":"'BP Financier'!$F$44*(('BP Financier'!$C$22+'BP Financier'!$D$22+'BP Financier'!$E$22+'BP Financier'!$F$22)/('BP Financier'!$C$16+'BP Financier'!$C$19+'BP Financier'!$D$16+'BP Financier'!$D$19+'BP Financier'!$E$16+'BP Financier'!$E$19+'BP Financier'!$C$22+'BP Financier'!$D$22+'BP Financier'!$E$22+'BP Financier'!$F$22+'BP Financier'!$F$16+'BP Financier'!$F$19))*$V6531*Z6531/(1-$W6531)","v":{"v":820.3761461999959,"d":"820"}},{"$f":"'BP Financier'!$F$44*(('BP Financier'!$C$22+'BP Financier'!$D$22+'BP Financier'!$E$22+'BP Financier'!$F$22)/('BP Financier'!$C$16+'BP Financier'!$C$19+'BP Financier'!$D$16+'BP Financier'!$D$19+'BP Financier'!$E$16+'BP Financier'!$E$19+'BP Financier'!$C$22+'BP Financier'!$D$22+'BP Financier'!$E$22+'BP Financier'!$F$22+'BP Financier'!$F$16+'BP Financier'!$F$19))*$V6531*AA6531/(1-$W6531)","v":{"v":101.35587022745462,"d":"101"}},{"$f":"'BP Financier'!$F$44*(('BP Financier'!$C$22+'BP Financier'!$D$22+'BP Financier'!$E$22+'BP Financier'!$F$22)/('BP Financier'!$C$16+'BP Financier'!$C$19+'BP Financier'!$D$16+'BP Financier'!$D$19+'BP Financier'!$E$16+'BP Financier'!$E$19+'BP Financier'!$C$22+'BP Financier'!$D$22+'BP Financier'!$E$22+'BP Financier'!$F$22+'BP Financier'!$F$16+'BP Financier'!$F$19))*$V6531*AB6531/(1-$W6531)","v":{"v":48.512211390918445,"d":"49"}},null,{"v":0.000625,"d":"0.06%"},{"$f":"Actif!$E$28/100","v":{"v":0.28900000000000003,"d":"28.90%"}},{"$f":"Actif!$E$30/100","v":{"v":0.09050000000000001,"d":"9.05%"}},{"$f":"Actif!$E$31/100","v":{"v":0.0605,"d":"6.05%"}},{"$f":"Actif!$E$32/100","v":{"v":0.47350000000000003,"d":"47.35%"}},{"$f":"Actif!$E$33/100","v":{"v":0.0585,"d":"5.85%"}},{"$f":"Actif!$E$29/100","v":{"v":0.027999999999999997,"d":"2.80%"}}]
[null,"#425"]
[null,"#426"]
[null,"#427"]
[null,"#428"]
[null,"#429"]
[null,"#430"]
[null,"#431"]
[null,"#432"]
[null,"#433"]
[null,"#434"]
[null,"#435"]
[null,"#436"]
[null,"#437"]
[null,"#438"]
[null,"#439"]
[null,"#440"]
[null,"#441"]
[null,"#442"]
[null,"#443"]
[null,"#444"]
[null,"#445"]
[null,"#446"]
[null,"#447"]
[null,"#448"]
[null,"#449"]
[null,"#450"]
[null,"#451"]
[null,"#452"]
[null,"#453"]
[null,"#454"]
[null,"#455"]
[null,"#456"]
[null,"#457"]
[null,"#458"]
[null,"#459"]
[null,"#460"]
[null,"#461"]
[null,"#462"]
[null,"#463"]
[null,"#464"]
[null,"#465"]
[null,"#466"]
[null,"#467"]
[null,"#468"]
[null,"#469"]
[null,"#470"]
[null,"#471"]
[null,"#472"]
[null,"#473"]
[null,"#474"]
[null,"#475"]
[null,"#476"]
[null,"#477"]
[null,"#478"]
[null,"#479"]
[null,"#480"]
[null,"#481"]
[null,"#482"]
[null,"#483"]
[null,"#484"]
[null,"#485"]
[null,"#486"]
[null,"#487"]
[null,"#488"]
[null,"#489"]
[null,"#490"]
[null,"#491"]
[null,"#492"]
[null,"#493"]
[null,"#494"]
[null,"#495"]
[null,"#496"]
[null,"#497"]
[null,"#498"]
[null,"#499"]
[null,"#500"]
[null,"#501"]
[null,"#502"]
[null,"#503"]
[null,"#504"]
[null,"#505"]
[null,"#506"]
[null,"#507"]
[null,"#508"]
[null,"#509"]
[null,"#510"]
[null,"#511"]
[null,"#512"]
[null,"#513"]
[null,"#514"]
[null,"#515"]
[null,"#516"]
[null,"#517"]
[null,"#518"]
[null,"#519"]
[null,"#520"]
[null,"#521"]
[null,"#522"]
[null,"#523"]
[null,"#524"]
[null,"#525"]
[null,"#526"]
[null,"#527"]
[null,"#528"]
[null,"#529"]
[null,"#530"]
[null,"#531"]
[null,"#532"]
[null,"#533"]
[null,"#534"]
[null,"#535"]
[null,"#536"]
[null,"#537"]
[null,"#538"]
[null,"#539"]
[null,"#540"]
[null,"#541"]
[null,"#542"]
[null,"#543"]
[null,"#544"]
[null,"#545"]
[null,"#546"]
[null,"#547"]
[null,"#548"]
[null,"#549"]
[null,"#550"]
[null,"#551"]
[null,"#552"]
[null,"#553"]
[null,"#554"]
[null,"#555"]
[null,"#556"]
[null,"#557"]
[null,"#558"]
[null,"#559"]
[null,"#560"]
[null,"#561"]
[null,"#562"]
[null,"#563"]
[null,"#564"]
[null,"#565"]
[null,"#566"]
[null,"#567"]
[null,"#568"]
[null,"#569"]
[null,"#570"]
[null,"#571"]
[null,"#572"]
[null,"#573"]
[null,"#574"]
[null,"#575"]
[null,"#576"]
[null,"#577"]
[null,"#578"]
[null,"#579"]
[null,"#580"]
[null,"#581"]
[null,"#582"]
[null,"#583"]
[null,"#584"]
[null,"#585"]
[null,"#586"]
[null,"#587"]
[null,"#588"]
[null,"#589"]
[null,"#590"]
[null,"#591"]
[null,"#592"]
[null,"#593"]
[null,"#594"]
[null,"#595"]
[null,"#596"]
[null,"#597"]
[null,"#598"]
[null,"#599"]
[null,"#600"]
[null,"#601"]
[null,"#602"]
[null,"#603"]
[null,"#604"]
[null,"#605"]
[null,"#606"]
[null,"#607"]
[null,"#608"]
[null,"#609"]
[null,"#610"]
[null,"#611"]
[null,"#612"]
[null,"#613"]
[null,"#614"]
[null,"#615"]
[null,"#616"]
[null,"#617"]
[null,"#618"]
[null,"#619"]
[null,"#620"]
[null,"#621"]
[null,"#622"]
[null,"#623"]
[null,"#624"]
[null,"#625"]
[null,"#626"]
[null,"#627"]
[null,"#628"]
[null,"#629"]
[null,"#630"]
[null,"#631"]
[null,"#632"]
[null,"#633"]
[null,"#634"]
[null,"#635"]
[null,"#636"]
[null,"#637"]
[null,"#638"]
[null,"#639"]
[null,"#640"]
[null,"#641"]
[null,"#642"]
[null,"#643"]
[null,"#644"]
[null,"#645"]
[null,"#646"]
[null,"#647"]
[null,"#648"]
[null,"#649"]
[null,"#650"]
[null,"#651"]
[null,"#652"]
[null,"#653"]
[null,"#654"]
[null,"#655"]
[null,"#656"]
[null,"#657"]
[null,"#658"]
[null,"#659"]
[null,"#660"]
[null,"#661"]
[null,"#662"]
[null,"#663"]
[null,"#664"]
[null,"#665"]
[null,"#666"]
[null,"#667"]
[null,"#668"]
[null,"#669"]
[null,"#670"]
[null,"#671"]
[null,"#672"]
[null,"#673"]
[null,"#674"]
[null,"#675"]
[null,"#676"]
[null,"#677"]
[null,"#678"]
[null,"#679"]
[null,"#680"]
[null,"#681"]
[null,"#682"]
[null,"#683"]
[null,"#684"]
[null,"#685"]
[null,"#686"]
[null,"#687"]
[null,"#688"]
[null,"#689"]
[null,"#690"]
[null,"#691"]
[null,"#692"]
[null,"#693"]
[null,"#694"]
[null,"#695"]
[null,"#696"]
[null,"#697"]
[null,"#698"]
[null,"#699"]
[null,"#700"]
[null,"#701"]
[null,"#702"]
[null,"#703"]
[null,"#704"]
[null,"#705"]
[null,"#706"]
[null,"#707"]
[null,"#708"]
[null,"#709"]
[null,"#710"]
[null,"#711"]
[null,"#712"]
[null,"#713"]
[null,"#714"]
[null,"#715"]
[null,"#716"]
[null,"#717"]
[null,"#718"]
[null,"#719"]
[null,"#720"]
[null,"#721"]
[null,"#722"]
[null,"#723"]
[null,"#724"]
[null,"#725"]
[null,"#726"]
[null,"#727"]
[null,"#728"]
[null,"#729"]
[null,"#730"]
[null,"#731"]
[null,"#732"]
[null,"#733"]
[null,"#734"]
[null,"#735"]
[null,"#736"]
[null,"#737"]
[null,"#738"]
[null,"#739"]
[null,"#740"]
[null,"#741"]
[null,"#742"]
[null,"#743"]
[null,"#744"]
[null,"#745"]
[null,"#746"]
[null,"#747"]
[null,"#748"]
[null,"#749"]
[null,"#750"]
[null,"#751"]
[null,"#752"]
[null,"#753"]
[null,"#754"]
[null,"#755"]
[null,"#756"]
[null,"#757"]
[null,"#758"]
[null,"#759"]
[null,"#760"]
[null,"#761"]
[null,"#762"]
[null,"#763"]
[null,"#764"]
[null,"#765"]
[null,"#766"]
[null,"#767"]
[null,"#768"]
[null,"#769"]
[null,"#770"]
[null,"#771"]
[null,"#772"]
[null,"#773"]
[null,"#774"]
[null,"#775"]
[null,"#776"]
[null,"#777"]
[null,"#778"]
[null,"#779"]
[null,"#780"]
[null,"#781"]
[null,"#782"]
[null,"#783"]
[null,"#784"]
[null,"#785"]
[null,"#786"]
[null,"#787"]
[null,"#788"]
[null,"#789"]
[null,"#790"]
[null,"#791"]
[null,"#792"]
[null,"#793"]
[null,"#794"]
[null,"#795"]
[null,"#796"]
[null,"#797"]
[null,"#798"]
[null,"#799"]
[null,"#800"]
[null,"#801"]
[null,"#802"]
[null,"#803"]
[null,"#804"]
[null,"#805"]
[null,"#806"]
[null,"#807"]
[null,"#808"]
[null,"#809"]
[null,"#810"]
[null,"#811"]
[null,"#812"]
[null,"#813"]
[null,"#814"]
[null,"#815"]
[null,"#816"]
[null,"#817"]
[null,"#818"]
[null,"#819"]
[null,"#820"]
[null,"#821"]
[null,"#822"]
[null,"#823"]
[null,"#824"]
[null,"#825"]
[null,"#826"]
[null,"#827"]
[null,"#828"]
[null,"#829"]
[null,"#830"]
[null,"#831"]
[null,"#832"]
[null,"#833"]
[null,"#834"]
[null,"#835"]
[null,"#836"]
[null,"#837"]
[null,"#838"]
[null,"#839"]
[null,"#840"]
[null,"#841"]
[null,"#842"]
[null,"#843"]
[null,"#844"]
[null,"#845"]
[null,"#846"]
[null,"#847"]
[null,"#848"]
[null,"#849"]
[null,"#850"]
[null,"#851"]
[null,"#852"]
[null,"#853"]
[null,"#854"]
[null,"#855"]
[null,"#856"]
[null,"#857"]
[null,"#858"]
[null,"#859"]
[null,"#860"]
[null,"#861"]
[null,"#862"]
[null,"#863"]
[null,"#864"]
[null,"#865"]
[null,"#866"]
[null,"#867"]
[null,"#868"]
[null,"#869"]
[null,"#870"]
[null,"#871"]
[null,"#872"]
[null,"#873"]
[null,"#874"]
[null,"#875"]
[null,"#876"]
[null,"#877"]
[null,"#878"]
[null,"#879"]
[null,"#880"]
[null,"#881"]
[null,"#882"]
[null,"#883"]
[null,"#884"]
[null,"#885"]
[null,"#886"]
[null,"#887"]
[null,"#888"]
[null,"#889"]
[null,"#890"]
[null,"#891"]
[null,"#892"]
[null,"#893"]
[null,"#894"]
[null,"#895"]
[null,"#896"]
[null,"#897"]
[null,"#898"]
[null,"#899"]
[null,"#900"]
[null,"#901"]
[null,"#902"]
[null,"#903"]
[null,"#904"]
[null,"#905"]
[null,"#906"]
[null,"#907"]
[null,"#908"]
[null,"#909"]
[null,"#910"]
[null,"#911"]
[null,"#912"]
[null,"#913"]
[null,"#914"]
[null,"#915"]
[null,"#916"]
[null,"#917"]
[null,"#918"]
[null,"#919"]
[null,"#920"]
[null,"#921"]
[null,"#922"]
[null,"#923"]
[null,"#924"]
[null,"#925"]
[null,"#926"]
[null,"#927"]
[null,"#928"]
[null,"#929"]
[null,"#930"]
[null,"#931"]
[null,"#932"]
[null,"#933"]
[null,"#934"]
[null,"#935"]
[null,"#936"]
[null,"#937"]
[null,"#938"]
[null,"#939"]
[null,"#940"]
[null,"#941"]
[null,"#942"]
[null,"#943"]
[null,"#944"]
[null,"#945"]
[null,"#946"]
[null,"#947"]
[null,"#948"]
[null,"#949"]
[null,"#950"]
[null,"#951"]
[null,"#952"]
[null,"#953"]
[null,"#954"]
[null,"#955"]
[null,"#956"]
[null,"#957"]
[null,"#958"]
[null,"#959"]
[null,"#960"]
[null,"#961"]
[null,"#962"]
[null,"#963"]
[null,"#964"]
[null,"#965"]
[null,"#966"]
[null,"#967"]
[null,"#968"]
[null,"#969"]
[null,"#970"]
[null,"#971"]
[null,"#972"]
[null,"#973"]
[null,"#974"]
[null,"#975"]
[null,"#976"]
[null,"#977"]
[null,"#978"]
[null,"#979"]
[null,"#980"]
[null,"#981"]
[null,"#982"]
[null,"#983"]
[null,"#984"]
[null,"#985"]
[null,"#986"]
[null,"#987"]
[null,"#988"]
[null,"#989"]
[null,"#990"]
[null,"#991"]
[null,"#992"]
[null,"#993"]
[null,"#994"]
[null,"#995"]
[null,"#996"]
[null,"#997"]
[null,"#998"]
[null,"#999"]
[null,"#1000"]
[]
[null,"PER","Euro - UC","2030-12-31",{"$nulls":19},"Obligation","Dette Privée","Action","Private Equity","Obligation CT"]
[null,"ID","AGE","SOUSCRIPTION_YR","SEXE","PDT","CHGT_GEST_EURO_PC","CHGT_GEST_UC_PC","COMM_DIST_EURO_PC","COMM_DIST_UC_PC","CLAUSE_PB_PC","TMG_PC","NO_POLS","PM_EURO","PM_UC_TOT","PM_UC_1","PM_UC_2","PM_UC_3","PM_UC_4","PM_UC_5",null,"Pondération","%Euro","%UC1","%UC2","%UC3","%UC4","%UC5"]
[null,"#1",18,2026,"H","A_PER",{"$f":"frais_gestion_Euro*100","v":{"v":0.44999999999999996,"d":"0.45"}},{"$f":"frais_gestion_UC*100","v":{"v":0.38999999999999996,"d":"0.39"}},{"$f":"frais_distribution_FG*100","v":0.6},{"$f":"frais_distribution_UC*100","v":0.6},85,0,{"$f":"ROUND(Primes!$P$7*V7111,0)","v":1},{"$f":"'BP Financier'!$F$33*(('BP Financier'!$C$19+'BP Financier'!$D$19+'BP Financier'!$E$19+'BP Financier'!$F$19)/('BP Financier'!$C$16+'BP Financier'!$C$19+'BP Financier'!$D$16+'BP Financier'!$D$19+'BP Financier'!$E$16+'BP Financier'!$E$19+'BP Financier'!$F$16+'BP Financier'!$F$19))*V7111","v":{"v":45412.220092908035,"d":"45,412"}},{"$f":"SUM(P7111:T7111)","v":{"v":25760.932484369845,"d":"25,761"}},{"$f":"'BP Financier'!$F$44*(('BP Financier'!$C$19+'BP Financier'!$D$19+'BP Financier'!$E$19+'BP Financier'!$F$19)/('BP Financier'!$C$16+'BP Financier'!$C$19+'BP Financier'!$D$16+'BP Financier'!$D$19+'BP Financier'!$E$16+'BP Financier'!$E$19+'BP Financier'!$C$22+'BP Financier'!$D$22+'BP Financier'!$E$22+'BP Financier'!$F$22+'BP Financier'!$F$19+'BP Financier'!$F$16))*$V7111*X7111/(1-$W7111)","v":{"v":3278.993515942998,"d":"3,279"}},{"$f":"'BP Financier'!$F$44*(('BP Financier'!$C$19+'BP Financier'!$D$19+'BP Financier'!$E$19+'BP Financier'!$F$19)/('BP Financier'!$C$16+'BP Financier'!$C$19+'BP Financier'!$D$16+'BP Financier'!$D$19+'BP Financier'!$E$16+'BP Financier'!$E$19+'BP Financier'!$C$22+'BP Financier'!$D$22+'BP Financier'!$E$22+'BP Financier'!$F$22+'BP Financier'!$F$19+'BP Financier'!$F$16))*$V7111*Y7111/(1-$W7111)","v":{"v":2192.0343393873077,"d":"2,192"}},{"$f":"'BP Financier'!$F$44*(('BP Financier'!$C$19+'BP Financier'!$D$19+'BP Financier'!$E$19+'BP Financier'!$F$19)/('BP Financier'!$C$16+'BP Financier'!$C$19+'BP Financier'!$D$16+'BP Financier'!$D$19+'BP Financier'!$E$16+'BP Financier'!$E$19+'BP Financier'!$C$22+'BP Financier'!$D$22+'BP Financier'!$E$22+'BP Financier'!$F$22+'BP Financier'!$F$19+'BP Financier'!$F$16))*$V7111*Z7111/(1-$W7111)","v":{"v":17155.839003303972,"d":"17,156"}},{"$f":"'BP Financier'!$F$44*(('BP Financier'!$C$19+'BP Financier'!$D$19+'BP Financier'!$E$19+'BP Financier'!$F$19)/('BP Financier'!$C$16+'BP Financier'!$C$19+'BP Financier'!$D$16+'BP Financier'!$D$19+'BP Financier'!$E$16+'BP Financier'!$E$19+'BP Financier'!$C$22+'BP Financier'!$D$22+'BP Financier'!$E$22+'BP Financier'!$F$22+'BP Financier'!$F$19+'BP Financier'!$F$16))*$V7111*AA7111/(1-$W7111)","v":{"v":2119.570394283595,"d":"2,120"}},{"$f":"'BP Financier'!$F$44*(('BP Financier'!$C$19+'BP Financier'!$D$19+'BP Financier'!$E$19+'BP Financier'!$F$19)/('BP Financier'!$C$16+'BP Financier'!$C$19+'BP Financier'!$D$16+'BP Financier'!$D$19+'BP Financier'!$E$16+'BP Financier'!$E$19+'BP Financier'!$C$22+'BP Financier'!$D$22+'BP Financier'!$E$22+'BP Financier'!$F$22+'BP Financier'!$F$19+'BP Financier'!$F$16))*$V7111*AB7111/(1-$W7111)","v":{"v":1014.4952314519769,"d":"1,014"}},null,{"v":1.25E-3,"d":"0.13%"},{"$f":"Actif!$E$28/100","v":{"v":0.28900000000000003,"d":"28.90%"}},{"$f":"Actif!$E$30/100","v":{"v":0.09050000000000001,"d":"9.05%"}},{"$f":"Actif!$E$31/100","v":{"v":0.0605,"d":"6.05%"}},{"$f":"Actif!$E$32/100","v":{"v":0.47350000000000003,"d":"47.35%"}},{"$f":"Actif!$E$33/100","v":{"v":0.0585,"d":"5.85%"}},{"$f":"Actif!$E$29/100","v":{"v":0.027999999999999997,"d":"2.80%"}}]
[null,"#2",18,2028,"H","A_PER",{"v":0.44999999999999996,"d":"0.45"},{"v":0.38999999999999996,"d":"0.39"},0.6,0.6,85,0,{"$f":"ROUND(Primes!$P$7*V7112,0)","v":1},{"$f":"'BP Financier'!$F$33*(('BP Financier'!$C$19+'BP Financier'!$D$19+'BP Financier'!$E$19+'BP Financier'!$F$19)/('BP Financier'!$C$16+'BP Financier'!$C$19+'BP Financier'!$D$16+'BP Financier'!$D$19+'BP Financier'!$E$16+'BP Financier'!$E$19+'BP Financier'!$F$16+'BP Financier'!$F$19))*V7112","v":{"v":45412.220092908035,"d":"45,412"}},{"$f":"SUM(P7112:T7112)","v":{"v":25760.932484369845,"d":"25,761"}},{"$f":"'BP Financier'!$F$44*(('BP Financier'!$C$19+'BP Financier'!$D$19+'BP Financier'!$E$19+'BP Financier'!$F$19)/('BP Financier'!$C$16+'BP Financier'!$C$19+'BP Financier'!$D$16+'BP Financier'!$D$19+'BP Financier'!$E$16+'BP Financier'!$E$19+'BP Financier'!$C$22+'BP Financier'!$D$22+'BP Financier'!$E$22+'BP Financier'!$F$22+'BP Financier'!$F$19+'BP Financier'!$F$16))*$V7112*X7112/(1-$W7112)","v":{"v":3278.993515942998,"d":"3,279"}},{"$f":"'BP Financier'!$F$44*(('BP Financier'!$C$19+'BP Financier'!$D$19+'BP Financier'!$E$19+'BP Financier'!$F$19)/('BP Financier'!$C$16+'BP Financier'!$C$19+'BP Financier'!$D$16+'BP Financier'!$D$19+'BP Financier'!$E$16+'BP Financier'!$E$19+'BP Financier'!$C$22+'BP Financier'!$D$22+'BP Financier'!$E$22+'BP Financier'!$F$22+'BP Financier'!$F$19+'BP Financier'!$F$16))*$V7112*Y7112/(1-$W7112)","v":{"v":2192.0343393873077,"d":"2,192"}},{"$f":"'BP Financier'!$F$44*(('BP Financier'!$C$19+'BP Financier'!$D$19+'BP Financier'!$E$19+'BP Financier'!$F$19)/('BP Financier'!$C$16+'BP Financier'!$C$19+'BP Financier'!$D$16+'BP Financier'!$D$19+'BP Financier'!$E$16+'BP Financier'!$E$19+'BP Financier'!$C$22+'BP Financier'!$D$22+'BP Financier'!$E$22+'BP Financier'!$F$22+'BP Financier'!$F$19+'BP Financier'!$F$16))*$V7112*Z7112/(1-$W7112)","v":{"v":17155.839003303972,"d":"17,156"}},{"$f":"'BP Financier'!$F$44*(('BP Financier'!$C$19+'BP Financier'!$D$19+'BP Financier'!$E$19+'BP Financier'!$F$19)/('BP Financier'!$C$16+'BP Financier'!$C$19+'BP Financier'!$D$16+'BP Financier'!$D$19+'BP Financier'!$E$16+'BP Financier'!$E$19+'BP Financier'!$C$22+'BP Financier'!$D$22+'BP Financier'!$E$22+'BP Financier'!$F$22+'BP Financier'!$F$19+'BP Financier'!$F$16))*$V7112*AA7112/(1-$W7112)","v":{"v":2119.570394283595,"d":"2,120"}},{"$f":"'BP Financier'!$F$44*(('BP Financier'!$C$19+'BP Financier'!$D$19+'BP Financier'!$E$19+'BP Financier'!$F$19)/('BP Financier'!$C$16+'BP Financier'!$C$19+'BP Financier'!$D$16+'BP Financier'!$D$19+'BP Financier'!$E$16+'BP Financier'!$E$19+'BP Financier'!$C$22+'BP Financier'!$D$22+'BP Financier'!$E$22+'BP Financier'!$F$22+'BP Financier'!$F$19+'BP Financier'!$F$16))*$V7112*AB7112/(1-$W7112)","v":{"v":1014.4952314519769,"d":"1,014"}},null,{"v":1.25E-3,"d":"0.13%"},{"$f":"Actif!$E$28/100","v":{"v":0.28900000000000003,"d":"28.90%"}},{"$f":"Actif!$E$30/100","v":{"v":0.09050000000000001,"d":"9.05%"}},{"$f":"Actif!$E$31/100","v":{"v":0.0605,"d":"6.05%"}},{"$f":"Actif!$E$32/100","v":{"v":0.47350000000000003,"d":"47.35%"}},{"$f":"Actif!$E$33/100","v":{"v":0.0585,"d":"5.85%"}},{"$f":"Actif!$E$29/100","v":{"v":0.027999999999999997,"d":"2.80%"}}]
[null,"#3",18,2029,"H","A_PER",{"v":0.44999999999999996,"d":"0.45"},{"v":0.38999999999999996,"d":"0.39"},0.6,0.6,85,0,{"$f":"ROUND(Primes!$P$7*V7113,0)","v":1},{"$f":"'BP Financier'!$F$33*(('BP Financier'!$C$19+'BP Financier'!$D$19+'BP Financier'!$E$19+'BP Financier'!$F$19)/('BP Financier'!$C$16+'BP Financier'!$C$19+'BP Financier'!$D$16+'BP Financier'!$D$19+'BP Financier'!$E$16+'BP Financier'!$E$19+'BP Financier'!$F$16+'BP Financier'!$F$19))*V7113","v":{"v":45412.220092908035,"d":"45,412"}},{"v":25760.932484369845,"d":"25,761"},{"$f":"'BP Financier'!$F$44*(('BP Financier'!$C$19+'BP Financier'!$D$19+'BP Financier'!$E$19+'BP Financier'!$F$19)/('BP Financier'!$C$16+'BP Financier'!$C$19+'BP Financier'!$D$16+'BP Financier'!$D$19+'BP Financier'!$E$16+'BP Financier'!$E$19+'BP Financier'!$C$22+'BP Financier'!$D$22+'BP Financier'!$E$22+'BP Financier'!$F$22+'BP Financier'!$F$19+'BP Financier'!$F$16))*$V7113*X7113/(1-$W7113)","v":{"v":3278.993515942998,"d":"3,279"}},{"$f":"'BP Financier'!$F$44*(('BP Financier'!$C$19+'BP Financier'!$D$19+'BP Financier'!$E$19+'BP Financier'!$F$19)/('BP Financier'!$C$16+'BP Financier'!$C$19+'BP Financier'!$D$16+'BP Financier'!$D$19+'BP Financier'!$E$16+'BP Financier'!$E$19+'BP Financier'!$C$22+'BP Financier'!$D$22+'BP Financier'!$E$22+'BP Financier'!$F$22+'BP Financier'!$F$19+'BP Financier'!$F$16))*$V7113*Y7113/(1-$W7113)","v":{"v":2192.0343393873077,"d":"2,192"}},{"$f":"'BP Financier'!$F$44*(('BP Financier'!$C$19+'BP Financier'!$D$19+'BP Financier'!$E$19+'BP Financier'!$F$19)/('BP Financier'!$C$16+'BP Financier'!$C$19+'BP Financier'!$D$16+'BP Financier'!$D$19+'BP Financier'!$E$16+'BP Financier'!$E$19+'BP Financier'!$C$22+'BP Financier'!$D$22+'BP Financier'!$E$22+'BP Financier'!$F$22+'BP Financier'!$F$19+'BP Financier'!$F$16))*$V7113*Z7113/(1-$W7113)","v":{"v":17155.839003303972,"d":"17,156"}},{"$f":"'BP Financier'!$F$44*(('BP Financier'!$C$19+'BP Financier'!$D$19+'BP Financier'!$E$19+'BP Financier'!$F$19)/('BP Financier'!$C$16+'BP Financier'!$C$19+'BP Financier'!$D$16+'BP Financier'!$D$19+'BP Financier'!$E$16+'BP Financier'!$E$19+'BP Financier'!$C$22+'BP Financier'!$D$22+'BP Financier'!$E$22+'BP Financier'!$F$22+'BP Financier'!$F$19+'BP Financier'!$F$16))*$V7113*AA7113/(1-$W7113)","v":{"v":2119.570394283595,"d":"2,120"}},{"$f":"'BP Financier'!$F$44*(('BP Financier'!$C$19+'BP Financier'!$D$19+'BP Financier'!$E$19+'BP Financier'!$F$19)/('BP Financier'!$C$16+'BP Financier'!$C$19+'BP Financier'!$D$16+'BP Financier'!$D$19+'BP Financier'!$E$16+'BP Financier'!$E$19+'BP Financier'!$C$22+'BP Financier'!$D$22+'BP Financier'!$E$22+'BP Financier'!$F$22+'BP Financier'!$F$19+'BP Financier'!$F$16))*$V7113*AB7113/(1-$W7113)","v":{"v":1014.4952314519769,"d":"1,014"}},null,{"v":1.25E-3,"d":"0.13%"},{"$f":"Actif!$E$28/100","v":{"v":0.28900000000000003,"d":"28.90%"}},{"$f":"Actif!$E$30/100","v":{"v":0.09050000000000001,"d":"9.05%"}},{"$f":"Actif!$E$31/100","v":{"v":0.0605,"d":"6.05%"}},{"$f":"Actif!$E$32/100","v":{"v":0.47350000000000003,"d":"47.35%"}},{"$f":"Actif!$E$33/100","v":{"v":0.0585,"d":"5.85%"}},{"$f":"Actif!$E$29/100","v":{"v":0.027999999999999997,"d":"2.80%"}}]
[null,"#4",18,2030,"H","A_PER",{"v":0.44999999999999996,"d":"0.45"},{"v":0.38999999999999996,"d":"0.39"},0.6,0.6,85,0,{"$f":"ROUND(Primes!$P$7*V7114,0)","v":1},{"$f":"'BP Financier'!$F$33*(('BP Financier'!$C$19+'BP Financier'!$D$19+'BP Financier'!$E$19+'BP Financier'!$F$19)/('BP Financier'!$C$16+'BP Financier'!$C$19+'BP Financier'!$D$16+'BP Financier'!$D$19+'BP Financier'!$E$16+'BP Financier'!$E$19+'BP Financier'!$F$16+'BP Financier'!$F$19))*V7114","v":{"v":45412.220092908035,"d":"45,412"}},{"v":25760.932484369845,"d":"25,761"},{"$f":"'BP Financier'!$F$44*(('BP Financier'!$C$19+'BP Financier'!$D$19+'BP Financier'!$E$19+'BP Financier'!$F$19)/('BP Financier'!$C$16+'BP Financier'!$C$19+'BP Financier'!$D$16+'BP Financier'!$D$19+'BP Financier'!$E$16+'BP Financier'!$E$19+'BP Financier'!$C$22+'BP Financier'!$D$22+'BP Financier'!$E$22+'BP Financier'!$F$22+'BP Financier'!$F$19+'BP Financier'!$F$16))*$V7114*X7114/(1-$W7114)","v":{"v":3278.993515942998,"d":"3,279"}},{"$f":"'BP Financier'!$F$44*(('BP Financier'!$C$19+'BP Financier'!$D$19+'BP Financier'!$E$19+'BP Financier'!$F$19)/('BP Financier'!$C$16+'BP Financier'!$C$19+'BP Financier'!$D$16+'BP Financier'!$D$19+'BP Financier'!$E$16+'BP Financier'!$E$19+'BP Financier'!$C$22+'BP Financier'!$D$22+'BP Financier'!$E$22+'BP Financier'!$F$22+'BP Financier'!$F$19+'BP Financier'!$F$16))*$V7114*Y7114/(1-$W7114)","v":{"v":2192.0343393873077,"d":"2,192"}},{"$f":"'BP Financier'!$F$44*(('BP Financier'!$C$19+'BP Financier'!$D$19+'BP Financier'!$E$19+'BP Financier'!$F$19)/('BP Financier'!$C$16+'BP Financier'!$C$19+'BP Financier'!$D$16+'BP Financier'!$D$19+'BP Financier'!$E$16+'BP Financier'!$E$19+'BP Financier'!$C$22+'BP Financier'!$D$22+'BP Financier'!$E$22+'BP Financier'!$F$22+'BP Financier'!$F$19+'BP Financier'!$F$16))*$V7114*Z7114/(1-$W7114)","v":{"v":17155.839003303972,"d":"17,156"}},{"$f":"'BP Financier'!$F$44*(('BP Financier'!$C$19+'BP Financier'!$D$19+'BP Financier'!$E$19+'BP Financier'!$F$19)/('BP Financier'!$C$16+'BP Financier'!$C$19+'BP Financier'!$D$16+'BP Financier'!$D$19+'BP Financier'!$E$16+'BP Financier'!$E$19+'BP Financier'!$C$22+'BP Financier'!$D$22+'BP Financier'!$E$22+'BP Financier'!$F$22+'BP Financier'!$F$19+'BP Financier'!$F$16))*$V7114*AA7114/(1-$W7114)","v":{"v":2119.570394283595,"d":"2,120"}},{"$f":"'BP Financier'!$F$44*(('BP Financier'!$C$19+'BP Financier'!$D$19+'BP Financier'!$E$19+'BP Financier'!$F$19)/('BP Financier'!$C$16+'BP Financier'!$C$19+'BP Financier'!$D$16+'BP Financier'!$D$19+'BP Financier'!$E$16+'BP Financier'!$E$19+'BP Financier'!$C$22+'BP Financier'!$D$22+'BP Financier'!$E$22+'BP Financier'!$F$22+'BP Financier'!$F$19+'BP Financier'!$F$16))*$V7114*AB7114/(1-$W7114)","v":{"v":1014.4952314519769,"d":"1,014"}},null,{"v":1.25E-3,"d":"0.13%"},{"$f":"Actif!$E$28/100","v":{"v":0.28900000000000003,"d":"28.90%"}},{"$f":"Actif!$E$30/100","v":{"v":0.09050000000000001,"d":"9.05%"}},{"$f":"Actif!$E$31/100","v":{"v":0.0605,"d":"6.05%"}},{"$f":"Actif!$E$32/100","v":{"v":0.47350000000000003,"d":"47.35%"}},{"$f":"Actif!$E$33/100","v":{"v":0.0585,"d":"5.85%"}},{"$f":"Actif!$E$29/100","v":{"v":0.027999999999999997,"d":"2.80%"}}]
[null,"#5",19,2026,"H","A_PER",{"v":0.44999999999999996,"d":"0.45"},{"v":0.38999999999999996,"d":"0.39"},0.6,0.6,85,0,{"$f":"ROUND(Primes!$P$7*V7115,0)","v":1},{"$f":"'BP Financier'!$F$33*(('BP Financier'!$C$19+'BP Financier'!$D$19+'BP Financier'!$E$19+'BP Financier'!$F$19)/('BP Financier'!$C$16+'BP Financier'!$C$19+'BP Financier'!$D$16+'BP Financier'!$D$19+'BP Financier'!$E$16+'BP Financier'!$E$19+'BP Financier'!$F$16+'BP Financier'!$F$19))*V7115","v":{"v":45412.220092908035,"d":"45,412"}},{"v":25760.932484369845,"d":"25,761"},{"$f":"'BP Financier'!$F$44*(('BP Financier'!$C$19+'BP Financier'!$D$19+'BP Financier'!$E$19+'BP Financier'!$F$19)/('BP Financier'!$C$16+'BP Financier'!$C$19+'BP Financier'!$D$16+'BP Financier'!$D$19+'BP Financier'!$E$16+'BP Financier'!$E$19+'BP Financier'!$C$22+'BP Financier'!$D$22+'BP Financier'!$E$22+'BP Financier'!$F$22+'BP Financier'!$F$19+'BP Financier'!$F$16))*$V7115*X7115/(1-$W7115)","v":{"v":3278.993515942998,"d":"3,279"}},{"$f":"'BP Financier'!$F$44*(('BP Financier'!$C$19+'BP Financier'!$D$19+'BP Financier'!$E$19+'BP Financier'!$F$19)/('BP Financier'!$C$16+'BP Financier'!$C$19+'BP Financier'!$D$16+'BP Financier'!$D$19+'BP Financier'!$E$16+'BP Financier'!$E$19+'BP Financier'!$C$22+'BP Financier'!$D$22+'BP Financier'!$E$22+'BP Financier'!$F$22+'BP Financier'!$F$19+'BP Financier'!$F$16))*$V7115*Y7115/(1-$W7115)","v":{"v":2192.0343393873077,"d":"2,192"}},{"$f":"'BP Financier'!$F$44*(('BP Financier'!$C$19+'BP Financier'!$D$19+'BP Financier'!$E$19+'BP Financier'!$F$19)/('BP Financier'!$C$16+'BP Financier'!$C$19+'BP Financier'!$D$16+'BP Financier'!$D$19+'BP Financier'!$E$16+'BP Financier'!$E$19+'BP Financier'!$C$22+'BP Financier'!$D$22+'BP Financier'!$E$22+'BP Financier'!$F$22+'BP Financier'!$F$19+'BP Financier'!$F$16))*$V7115*Z7115/(1-$W7115)","v":{"v":17155.839003303972,"d":"17,156"}},{"$f":"'BP Financier'!$F$44*(('BP Financier'!$C$19+'BP Financier'!$D$19+'BP Financier'!$E$19+'BP Financier'!$F$19)/('BP Financier'!$C$16+'BP Financier'!$C$19+'BP Financier'!$D$16+'BP Financier'!$D$19+'BP Financier'!$E$16+'BP Financier'!$E$19+'BP Financier'!$C$22+'BP Financier'!$D$22+'BP Financier'!$E$22+'BP Financier'!$F$22+'BP Financier'!$F$19+'BP Financier'!$F$16))*$V7115*AA7115/(1-$W7115)","v":{"v":2119.570394283595,"d":"2,120"}},{"$f":"'BP Financier'!$F$44*(('BP Financier'!$C$19+'BP Financier'!$D$19+'BP Financier'!$E$19+'BP Financier'!$F$19)/('BP Financier'!$C$16+'BP Financier'!$C$19+'BP Financier'!$D$16+'BP Financier'!$D$19+'BP Financier'!$E$16+'BP Financier'!$E$19+'BP Financier'!$C$22+'BP Financier'!$D$22+'BP Financier'!$E$22+'BP Financier'!$F$22+'BP Financier'!$F$19+'BP Financier'!$F$16))*$V7115*AB7115/(1-$W7115)","v":{"v":1014.4952314519769,"d":"1,014"}},null,{"v":1.25E-3,"d":"0.13%"},{"$f":"Actif!$E$28/100","v":{"v":0.28900000000000003,"d":"28.90%"}},{"$f":"Actif!$E$30/100","v":{"v":0.09050000000000001,"d":"9.05%"}},{"$f":"Actif!$E$31/100","v":{"v":0.0605,"d":"6.05%"}},{"$f":"Actif!$E$32/100","v":{"v":0.47350000000000003,"d":"47.35%"}},{"$f":"Actif!$E$33/100","v":{"v":0.0585,"d":"5.85%"}},{"$f":"Actif!$E$29/100","v":{"v":0.027999999999999997,"d":"2.80%"}}]
[null,"#6",19,2028,"H","A_PER",{"v":0.44999999999999996,"d":"0.45"},{"v":0.38999999999999996,"d":"0.39"},0.6,0.6,85,0,{"$f":"ROUND(Primes!$P$7*V7116,0)","v":1},{"$f":"'BP Financier'!$F$33*(('BP Financier'!$C$19+'BP Financier'!$D$19+'BP Financier'!$E$19+'BP Financier'!$F$19)/('BP Financier'!$C$16+'BP Financier'!$C$19+'BP Financier'!$D$16+'BP Financier'!$D$19+'BP Financier'!$E$16+'BP Financier'!$E$19+'BP Financier'!$F$16+'BP Financier'!$F$19))*V7116","v":{"v":45412.220092908035,"d":"45,412"}},{"v":25760.932484369845,"d":"25,761"},{"$f":"'BP Financier'!$F$44*(('BP Financier'!$C$19+'BP Financier'!$D$19+'BP Financier'!$E$19+'BP Financier'!$F$19)/('BP Financier'!$C$16+'BP Financier'!$C$19+'BP Financier'!$D$16+'BP Financier'!$D$19+'BP Financier'!$E$16+'BP Financier'!$E$19+'BP Financier'!$C$22+'BP Financier'!$D$22+'BP Financier'!$E$22+'BP Financier'!$F$22+'BP Financier'!$F$19+'BP Financier'!$F$16))*$V7116*X7116/(1-$W7116)","v":{"v":3278.993515942998,"d":"3,279"}},{"$f":"'BP Financier'!$F$44*(('BP Financier'!$C$19+'BP Financier'!$D$19+'BP Financier'!$E$19+'BP Financier'!$F$19)/('BP Financier'!$C$16+'BP Financier'!$C$19+'BP Financier'!$D$16+'BP Financier'!$D$19+'BP Financier'!$E$16+'BP Financier'!$E$19+'BP Financier'!$C$22+'BP Financier'!$D$22+'BP Financier'!$E$22+'BP Financier'!$F$22+'BP Financier'!$F$19+'BP Financier'!$F$16))*$V7116*Y7116/(1-$W7116)","v":{"v":2192.0343393873077,"d":"2,192"}},{"$f":"'BP Financier'!$F$44*(('BP Financier'!$C$19+'BP Financier'!$D$19+'BP Financier'!$E$19+'BP Financier'!$F$19)/('BP Financier'!$C$16+'BP Financier'!$C$19+'BP Financier'!$D$16+'BP Financier'!$D$19+'BP Financier'!$E$16+'BP Financier'!$E$19+'BP Financier'!$C$22+'BP Financier'!$D$22+'BP Financier'!$E$22+'BP Financier'!$F$22+'BP Financier'!$F$19+'BP Financier'!$F$16))*$V7116*Z7116/(1-$W7116)","v":{"v":17155.839003303972,"d":"17,156"}},{"$f":"'BP Financier'!$F$44*(('BP Financier'!$C$19+'BP Financier'!$D$19+'BP Financier'!$E$19+'BP Financier'!$F$19)/('BP Financier'!$C$16+'BP Financier'!$C$19+'BP Financier'!$D$16+'BP Financier'!$D$19+'BP Financier'!$E$16+'BP Financier'!$E$19+'BP Financier'!$C$22+'BP Financier'!$D$22+'BP Financier'!$E$22+'BP Financier'!$F$22+'BP Financier'!$F$19+'BP Financier'!$F$16))*$V7116*AA7116/(1-$W7116)","v":{"v":2119.570394283595,"d":"2,120"}},{"$f":"'BP Financier'!$F$44*(('BP Financier'!$C$19+'BP Financier'!$D$19+'BP Financier'!$E$19+'BP Financier'!$F$19)/('BP Financier'!$C$16+'BP Financier'!$C$19+'BP Financier'!$D$16+'BP Financier'!$D$19+'BP Financier'!$E$16+'BP Financier'!$E$19+'BP Financier'!$C$22+'BP Financier'!$D$22+'BP Financier'!$E$22+'BP Financier'!$F$22+'BP Financier'!$F$19+'BP Financier'!$F$16))*$V7116*AB7116/(1-$W7116)","v":{"v":1014.4952314519769,"d":"1,014"}},null,{"v":1.25E-3,"d":"0.13%"},{"$f":"Actif!$E$28/100","v":{"v":0.28900000000000003,"d":"28.90%"}},{"$f":"Actif!$E$30/100","v":{"v":0.09050000000000001,"d":"9.05%"}},{"$f":"Actif!$E$31/100","v":{"v":0.0605,"d":"6.05%"}},{"$f":"Actif!$E$32/100","v":{"v":0.47350000000000003,"d":"47.35%"}},{"$f":"Actif!$E$33/100","v":{"v":0.0585,"d":"5.85%"}},{"$f":"Actif!$E$29/100","v":{"v":0.027999999999999997,"d":"2.80%"}}]
[null,"#7",19,2029,"H","A_PER",{"v":0.44999999999999996,"d":"0.45"},{"v":0.38999999999999996,"d":"0.39"},0.6,0.6,85,0,{"$f":"ROUND(Primes!$P$7*V7117,0)","v":1},{"$f":"'BP Financier'!$F$33*(('BP Financier'!$C$19+'BP Financier'!$D$19+'BP Financier'!$E$19+'BP Financier'!$F$19)/('BP Financier'!$C$16+'BP Financier'!$C$19+'BP Financier'!$D$16+'BP Financier'!$D$19+'BP Financier'!$E$16+'BP Financier'!$E$19+'BP Financier'!$F$16+'BP Financier'!$F$19))*V7117","v":{"v":45412.220092908035,"d":"45,412"}},{"v":25760.932484369845,"d":"25,761"},{"$f":"'BP Financier'!$F$44*(('BP Financier'!$C$19+'BP Financier'!$D$19+'BP Financier'!$E$19+'BP Financier'!$F$19)/('BP Financier'!$C$16+'BP Financier'!$C$19+'BP Financier'!$D$16+'BP Financier'!$D$19+'BP Financier'!$E$16+'BP Financier'!$E$19+'BP Financier'!$C$22+'BP Financier'!$D$22+'BP Financier'!$E$22+'BP Financier'!$F$22+'BP Financier'!$F$19+'BP Financier'!$F$16))*$V7117*X7117/(1-$W7117)","v":{"v":3278.993515942998,"d":"3,279"}},{"$f":"'BP Financier'!$F$44*(('BP Financier'!$C$19+'BP Financier'!$D$19+'BP Financier'!$E$19+'BP Financier'!$F$19)/('BP Financier'!$C$16+'BP Financier'!$C$19+'BP Financier'!$D$16+'BP Financier'!$D$19+'BP Financier'!$E$16+'BP Financier'!$E$19+'BP Financier'!$C$22+'BP Financier'!$D$22+'BP Financier'!$E$22+'BP Financier'!$F$22+'BP Financier'!$F$19+'BP Financier'!$F$16))*$V7117*Y7117/(1-$W7117)","v":{"v":2192.0343393873077,"d":"2,192"}},{"$f":"'BP Financier'!$F$44*(('BP Financier'!$C$19+'BP Financier'!$D$19+'BP Financier'!$E$19+'BP Financier'!$F$19)/('BP Financier'!$C$16+'BP Financier'!$C$19+'BP Financier'!$D$16+'BP Financier'!$D$19+'BP Financier'!$E$16+'BP Financier'!$E$19+'BP Financier'!$C$22+'BP Financier'!$D$22+'BP Financier'!$E$22+'BP Financier'!$F$22+'BP Financier'!$F$19+'BP Financier'!$F$16))*$V7117*Z7117/(1-$W7117)","v":{"v":17155.839003303972,"d":"17,156"}},{"$f":"'BP Financier'!$F$44*(('BP Financier'!$C$19+'BP Financier'!$D$19+'BP Financier'!$E$19+'BP Financier'!$F$19)/('BP Financier'!$C$16+'BP Financier'!$C$19+'BP Financier'!$D$16+'BP Financier'!$D$19+'BP Financier'!$E$16+'BP Financier'!$E$19+'BP Financier'!$C$22+'BP Financier'!$D$22+'BP Financier'!$E$22+'BP Financier'!$F$22+'BP Financier'!$F$19+'BP Financier'!$F$16))*$V7117*AA7117/(1-$W7117)","v":{"v":2119.570394283595,"d":"2,120"}},{"$f":"'BP Financier'!$F$44*(('BP Financier'!$C$19+'BP Financier'!$D$19+'BP Financier'!$E$19+'BP Financier'!$F$19)/('BP Financier'!$C$16+'BP Financier'!$C$19+'BP Financier'!$D$16+'BP Financier'!$D$19+'BP Financier'!$E$16+'BP Financier'!$E$19+'BP Financier'!$C$22+'BP Financier'!$D$22+'BP Financier'!$E$22+'BP Financier'!$F$22+'BP Financier'!$F$19+'BP Financier'!$F$16))*$V7117*AB7117/(1-$W7117)","v":{"v":1014.4952314519769,"d":"1,014"}},null,{"v":1.25E-3,"d":"0.13%"},{"$f":"Actif!$E$28/100","v":{"v":0.28900000000000003,"d":"28.90%"}},{"$f":"Actif!$E$30/100","v":{"v":0.09050000000000001,"d":"9.05%"}},{"$f":"Actif!$E$31/100","v":{"v":0.0605,"d":"6.05%"}},{"$f":"Actif!$E$32/100","v":{"v":0.47350000000000003,"d":"47.35%"}},{"$f":"Actif!$E$33/100","v":{"v":0.0585,"d":"5.85%"}},{"$f":"Actif!$E$29/100","v":{"v":0.027999999999999997,"d":"2.80%"}}]
[null,"#8",19,2030,"H","A_PER",{"v":0.44999999999999996,"d":"0.45"},{"v":0.38999999999999996,"d":"0.39"},0.6,0.6,85,0,{"$f":"ROUND(Primes!$P$7*V7118,0)","v":1},{"$f":"'BP Financier'!$F$33*(('BP Financier'!$C$19+'BP Financier'!$D$19+'BP Financier'!$E$19+'BP Financier'!$F$19)/('BP Financier'!$C$16+'BP Financier'!$C$19+'BP Financier'!$D$16+'BP Financier'!$D$19+'BP Financier'!$E$16+'BP Financier'!$E$19+'BP Financier'!$F$16+'BP Financier'!$F$19))*V7118","v":{"v":45412.220092908035,"d":"45,412"}},{"v":25760.932484369845,"d":"25,761"},{"$f":"'BP Financier'!$F$44*(('BP Financier'!$C$19+'BP Financier'!$D$19+'BP Financier'!$E$19+'BP Financier'!$F$19)/('BP Financier'!$C$16+'BP Financier'!$C$19+'BP Financier'!$D$16+'BP Financier'!$D$19+'BP Financier'!$E$16+'BP Financier'!$E$19+'BP Financier'!$C$22+'BP Financier'!$D$22+'BP Financier'!$E$22+'BP Financier'!$F$22+'BP Financier'!$F$19+'BP Financier'!$F$16))*$V7118*X7118/(1-$W7118)","v":{"v":3278.993515942998,"d":"3,279"}},{"$f":"'BP Financier'!$F$44*(('BP Financier'!$C$19+'BP Financier'!$D$19+'BP Financier'!$E$19+'BP Financier'!$F$19)/('BP Financier'!$C$16+'BP Financier'!$C$19+'BP Financier'!$D$16+'BP Financier'!$D$19+'BP Financier'!$E$16+'BP Financier'!$E$19+'BP Financier'!$C$22+'BP Financier'!$D$22+'BP Financier'!$E$22+'BP Financier'!$F$22+'BP Financier'!$F$19+'BP Financier'!$F$16))*$V7118*Y7118/(1-$W7118)","v":{"v":2192.0343393873077,"d":"2,192"}},{"$f":"'BP Financier'!$F$44*(('BP Financier'!$C$19+'BP Financier'!$D$19+'BP Financier'!$E$19+'BP Financier'!$F$19)/('BP Financier'!$C$16+'BP Financier'!$C$19+'BP Financier'!$D$16+'BP Financier'!$D$19+'BP Financier'!$E$16+'BP Financier'!$E$19+'BP Financier'!$C$22+'BP Financier'!$D$22+'BP Financier'!$E$22+'BP Financier'!$F$22+'BP Financier'!$F$19+'BP Financier'!$F$16))*$V7118*Z7118/(1-$W7118)","v":{"v":17155.839003303972,"d":"17,156"}},{"$f":"'BP Financier'!$F$44*(('BP Financier'!$C$19+'BP Financier'!$D$19+'BP Financier'!$E$19+'BP Financier'!$F$19)/('BP Financier'!$C$16+'BP Financier'!$C$19+'BP Financier'!$D$16+'BP Financier'!$D$19+'BP Financier'!$E$16+'BP Financier'!$E$19+'BP Financier'!$C$22+'BP Financier'!$D$22+'BP Financier'!$E$22+'BP Financier'!$F$22+'BP Financier'!$F$19+'BP Financier'!$F$16))*$V7118*AA7118/(1-$W7118)","v":{"v":2119.570394283595,"d":"2,120"}},{"$f":"'BP Financier'!$F$44*(('BP Financier'!$C$19+'BP Financier'!$D$19+'BP Financier'!$E$19+'BP Financier'!$F$19)/('BP Financier'!$C$16+'BP Financier'!$C$19+'BP Financier'!$D$16+'BP Financier'!$D$19+'BP Financier'!$E$16+'BP Financier'!$E$19+'BP Financier'!$C$22+'BP Financier'!$D$22+'BP Financier'!$E$22+'BP Financier'!$F$22+'BP Financier'!$F$19+'BP Financier'!$F$16))*$V7118*AB7118/(1-$W7118)","v":{"v":1014.4952314519769,"d":"1,014"}},null,{"v":1.25E-3,"d":"0.13%"},{"$f":"Actif!$E$28/100","v":{"v":0.28900000000000003,"d":"28.90%"}},{"$f":"Actif!$E$30/100","v":{"v":0.09050000000000001,"d":"9.05%"}},{"$f":"Actif!$E$31/100","v":{"v":0.0605,"d":"6.05%"}},{"$f":"Actif!$E$32/100","v":{"v":0.47350000000000003,"d":"47.35%"}},{"$f":"Actif!$E$33/100","v":{"v":0.0585,"d":"5.85%"}},{"$f":"Actif!$E$29/100","v":{"v":0.027999999999999997,"d":"2.80%"}}]
[null,"#9",20,2026,"F","A_PER",{"v":0.44999999999999996,"d":"0.45"},{"v":0.38999999999999996,"d":"0.39"},0.6,0.6,85,0,{"$f":"ROUND(Primes!$P$7*V7119,0)","v":1},{"$f":"'BP Financier'!$F$33*(('BP Financier'!$C$19+'BP Financier'!$D$19+'BP Financier'!$E$19+'BP Financier'!$F$19)/('BP Financier'!$C$16+'BP Financier'!$C$19+'BP Financier'!$D$16+'BP Financier'!$D$19+'BP Financier'!$E$16+'BP Financier'!$E$19+'BP Financier'!$F$16+'BP Financier'!$F$19))*V7119","v":{"v":45412.220092908035,"d":"45,412"}},{"v":25760.932484369845,"d":"25,761"},{"$f":"'BP Financier'!$F$44*(('BP Financier'!$C$19+'BP Financier'!$D$19+'BP Financier'!$E$19+'BP Financier'!$F$19)/('BP Financier'!$C$16+'BP Financier'!$C$19+'BP Financier'!$D$16+'BP Financier'!$D$19+'BP Financier'!$E$16+'BP Financier'!$E$19+'BP Financier'!$C$22+'BP Financier'!$D$22+'BP Financier'!$E$22+'BP Financier'!$F$22+'BP Financier'!$F$19+'BP Financier'!$F$16))*$V7119*X7119/(1-$W7119)","v":{"v":3278.993515942998,"d":"3,279"}},{"$f":"'BP Financier'!$F$44*(('BP Financier'!$C$19+'BP Financier'!$D$19+'BP Financier'!$E$19+'BP Financier'!$F$19)/('BP Financier'!$C$16+'BP Financier'!$C$19+'BP Financier'!$D$16+'BP Financier'!$D$19+'BP Financier'!$E$16+'BP Financier'!$E$19+'BP Financier'!$C$22+'BP Financier'!$D$22+'BP Financier'!$E$22+'BP Financier'!$F$22+'BP Financier'!$F$19+'BP Financier'!$F$16))*$V7119*Y7119/(1-$W7119)","v":{"v":2192.0343393873077,"d":"2,192"}},{"$f":"'BP Financier'!$F$44*(('BP Financier'!$C$19+'BP Financier'!$D$19+'BP Financier'!$E$19+'BP Financier'!$F$19)/('BP Financier'!$C$16+'BP Financier'!$C$19+'BP Financier'!$D$16+'BP Financier'!$D$19+'BP Financier'!$E$16+'BP Financier'!$E$19+'BP Financier'!$C$22+'BP Financier'!$D$22+'BP Financier'!$E$22+'BP Financier'!$F$22+'BP Financier'!$F$19+'BP Financier'!$F$16))*$V7119*Z7119/(1-$W7119)","v":{"v":17155.839003303972,"d":"17,156"}},{"$f":"'BP Financier'!$F$44*(('BP Financier'!$C$19+'BP Financier'!$D$19+'BP Financier'!$E$19+'BP Financier'!$F$19)/('BP Financier'!$C$16+'BP Financier'!$C$19+'BP Financier'!$D$16+'BP Financier'!$D$19+'BP Financier'!$E$16+'BP Financier'!$E$19+'BP Financier'!$C$22+'BP Financier'!$D$22+'BP Financier'!$E$22+'BP Financier'!$F$22+'BP Financier'!$F$19+'BP Financier'!$F$16))*$V7119*AA7119/(1-$W7119)","v":{"v":2119.570394283595,"d":"2,120"}},{"$f":"'BP Financier'!$F$44*(('BP Financier'!$C$19+'BP Financier'!$D$19+'BP Financier'!$E$19+'BP Financier'!$F$19)/('BP Financier'!$C$16+'BP Financier'!$C$19+'BP Financier'!$D$16+'BP Financier'!$D$19+'BP Financier'!$E$16+'BP Financier'!$E$19+'BP Financier'!$C$22+'BP Financier'!$D$22+'BP Financier'!$E$22+'BP Financier'!$F$22+'BP Financier'!$F$19+'BP Financier'!$F$16))*$V7119*AB7119/(1-$W7119)","v":{"v":1014.4952314519769,"d":"1,014"}},null,{"v":1.25E-3,"d":"0.13%"},{"$f":"Actif!$E$28/100","v":{"v":0.28900000000000003,"d":"28.90%"}},{"$f":"Actif!$E$30/100","v":{"v":0.09050000000000001,"d":"9.05%"}},{"$f":"Actif!$E$31/100","v":{"v":0.0605,"d":"6.05%"}},{"$f":"Actif!$E$32/100","v":{"v":0.47350000000000003,"d":"47.35%"}},{"$f":"Actif!$E$33/100","v":{"v":0.0585,"d":"5.85%"}},{"$f":"Actif!$E$29/100","v":{"v":0.027999999999999997,"d":"2.80%"}}]
[null,"#10",20,2028,"F","A_PER",{"v":0.44999999999999996,"d":"0.45"},{"v":0.38999999999999996,"d":"0.39"},0.6,0.6,85,0,{"$f":"ROUND(Primes!$P$7*V7120,0)","v":1},{"$f":"'BP Financier'!$F$33*(('BP Financier'!$C$19+'BP Financier'!$D$19+'BP Financier'!$E$19+'BP Financier'!$F$19)/('BP Financier'!$C$16+'BP Financier'!$C$19+'BP Financier'!$D$16+'BP Financier'!$D$19+'BP Financier'!$E$16+'BP Financier'!$E$19+'BP Financier'!$F$16+'BP Financier'!$F$19))*V7120","v":{"v":45412.220092908035,"d":"45,412"}},{"v":25760.932484369845,"d":"25,761"},{"$f":"'BP Financier'!$F$44*(('BP Financier'!$C$19+'BP Financier'!$D$19+'BP Financier'!$E$19+'BP Financier'!$F$19)/('BP Financier'!$C$16+'BP Financier'!$C$19+'BP Financier'!$D$16+'BP Financier'!$D$19+'BP Financier'!$E$16+'BP Financier'!$E$19+'BP Financier'!$C$22+'BP Financier'!$D$22+'BP Financier'!$E$22+'BP Financier'!$F$22+'BP Financier'!$F$19+'BP Financier'!$F$16))*$V7120*X7120/(1-$W7120)","v":{"v":3278.993515942998,"d":"3,279"}},{"$f":"'BP Financier'!$F$44*(('BP Financier'!$C$19+'BP Financier'!$D$19+'BP Financier'!$E$19+'BP Financier'!$F$19)/('BP Financier'!$C$16+'BP Financier'!$C$19+'BP Financier'!$D$16+'BP Financier'!$D$19+'BP Financier'!$E$16+'BP Financier'!$E$19+'BP Financier'!$C$22+'BP Financier'!$D$22+'BP Financier'!$E$22+'BP Financier'!$F$22+'BP Financier'!$F$19+'BP Financier'!$F$16))*$V7120*Y7120/(1-$W7120)","v":{"v":2192.0343393873077,"d":"2,192"}},{"$f":"'BP Financier'!$F$44*(('BP Financier'!$C$19+'BP Financier'!$D$19+'BP Financier'!$E$19+'BP Financier'!$F$19)/('BP Financier'!$C$16+'BP Financier'!$C$19+'BP Financier'!$D$16+'BP Financier'!$D$19+'BP Financier'!$E$16+'BP Financier'!$E$19+'BP Financier'!$C$22+'BP Financier'!$D$22+'BP Financier'!$E$22+'BP Financier'!$F$22+'BP Financier'!$F$19+'BP Financier'!$F$16))*$V7120*Z7120/(1-$W7120)","v":{"v":17155.839003303972,"d":"17,156"}},{"$f":"'BP Financier'!$F$44*(('BP Financier'!$C$19+'BP Financier'!$D$19+'BP Financier'!$E$19+'BP Financier'!$F$19)/('BP Financier'!$C$16+'BP Financier'!$C$19+'BP Financier'!$D$16+'BP Financier'!$D$19+'BP Financier'!$E$16+'BP Financier'!$E$19+'BP Financier'!$C$22+'BP Financier'!$D$22+'BP Financier'!$E$22+'BP Financier'!$F$22+'BP Financier'!$F$19+'BP Financier'!$F$16))*$V7120*AA7120/(1-$W7120)","v":{"v":2119.570394283595,"d":"2,120"}},{"$f":"'BP Financier'!$F$44*(('BP Financier'!$C$19+'BP Financier'!$D$19+'BP Financier'!$E$19+'BP Financier'!$F$19)/('BP Financier'!$C$16+'BP Financier'!$C$19+'BP Financier'!$D$16+'BP Financier'!$D$19+'BP Financier'!$E$16+'BP Financier'!$E$19+'BP Financier'!$C$22+'BP Financier'!$D$22+'BP Financier'!$E$22+'BP Financier'!$F$22+'BP Financier'!$F$19+'BP Financier'!$F$16))*$V7120*AB7120/(1-$W7120)","v":{"v":1014.4952314519769,"d":"1,014"}},null,{"v":1.25E-3,"d":"0.13%"},{"$f":"Actif!$E$28/100","v":{"v":0.28900000000000003,"d":"28.90%"}},{"$f":"Actif!$E$30/100","v":{"v":0.09050000000000001,"d":"9.05%"}},{"$f":"Actif!$E$31/100","v":{"v":0.0605,"d":"6.05%"}},{"$f":"Actif!$E$32/100","v":{"v":0.47350000000000003,"d":"47.35%"}},{"$f":"Actif!$E$33/100","v":{"v":0.0585,"d":"5.85%"}},{"$f":"Actif!$E$29/100","v":{"v":0.027999999999999997,"d":"2.80%"}}]
[null,"#11",20,2029,"F","A_PER",{"v":0.44999999999999996,"d":"0.45"},{"v":0.38999999999999996,"d":"0.39"},0.6,0.6,85,0,{"$f":"ROUND(Primes!$P$7*V7121,0)","v":1},{"$f":"'BP Financier'!$F$33*(('BP Financier'!$C$19+'BP Financier'!$D$19+'BP Financier'!$E$19+'BP Financier'!$F$19)/('BP Financier'!$C$16+'BP Financier'!$C$19+'BP Financier'!$D$16+'BP Financier'!$D$19+'BP Financier'!$E$16+'BP Financier'!$E$19+'BP Financier'!$F$16+'BP Financier'!$F$19))*V7121","v":{"v":45412.220092908035,"d":"45,412"}},{"v":25760.932484369845,"d":"25,761"},{"$f":"'BP Financier'!$F$44*(('BP Financier'!$C$19+'BP Financier'!$D$19+'BP Financier'!$E$19+'BP Financier'!$F$19)/('BP Financier'!$C$16+'BP Financier'!$C$19+'BP Financier'!$D$16+'BP Financier'!$D$19+'BP Financier'!$E$16+'BP Financier'!$E$19+'BP Financier'!$C$22+'BP Financier'!$D$22+'BP Financier'!$E$22+'BP Financier'!$F$22+'BP Financier'!$F$19+'BP Financier'!$F$16))*$V7121*X7121/(1-$W7121)","v":{"v":3278.993515942998,"d":"3,279"}},{"$f":"'BP Financier'!$F$44*(('BP Financier'!$C$19+'BP Financier'!$D$19+'BP Financier'!$E$19+'BP Financier'!$F$19)/('BP Financier'!$C$16+'BP Financier'!$C$19+'BP Financier'!$D$16+'BP Financier'!$D$19+'BP Financier'!$E$16+'BP Financier'!$E$19+'BP Financier'!$C$22+'BP Financier'!$D$22+'BP Financier'!$E$22+'BP Financier'!$F$22+'BP Financier'!$F$19+'BP Financier'!$F$16))*$V7121*Y7121/(1-$W7121)","v":{"v":2192.0343393873077,"d":"2,192"}},{"$f":"'BP Financier'!$F$44*(('BP Financier'!$C$19+'BP Financier'!$D$19+'BP Financier'!$E$19+'BP Financier'!$F$19)/('BP Financier'!$C$16+'BP Financier'!$C$19+'BP Financier'!$D$16+'BP Financier'!$D$19+'BP Financier'!$E$16+'BP Financier'!$E$19+'BP Financier'!$C$22+'BP Financier'!$D$22+'BP Financier'!$E$22+'BP Financier'!$F$22+'BP Financier'!$F$19+'BP Financier'!$F$16))*$V7121*Z7121/(1-$W7121)","v":{"v":17155.839003303972,"d":"17,156"}},{"$f":"'BP Financier'!$F$44*(('BP Financier'!$C$19+'BP Financier'!$D$19+'BP Financier'!$E$19+'BP Financier'!$F$19)/('BP Financier'!$C$16+'BP Financier'!$C$19+'BP Financier'!$D$16+'BP Financier'!$D$19+'BP Financier'!$E$16+'BP Financier'!$E$19+'BP Financier'!$C$22+'BP Financier'!$D$22+'BP Financier'!$E$22+'BP Financier'!$F$22+'BP Financier'!$F$19+'BP Financier'!$F$16))*$V7121*AA7121/(1-$W7121)","v":{"v":2119.570394283595,"d":"2,120"}},{"$f":"'BP Financier'!$F$44*(('BP Financier'!$C$19+'BP Financier'!$D$19+'BP Financier'!$E$19+'BP Financier'!$F$19)/('BP Financier'!$C$16+'BP Financier'!$C$19+'BP Financier'!$D$16+'BP Financier'!$D$19+'BP Financier'!$E$16+'BP Financier'!$E$19+'BP Financier'!$C$22+'BP Financier'!$D$22+'BP Financier'!$E$22+'BP Financier'!$F$22+'BP Financier'!$F$19+'BP Financier'!$F$16))*$V7121*AB7121/(1-$W7121)","v":{"v":1014.4952314519769,"d":"1,014"}},null,{"v":1.25E-3,"d":"0.13%"},{"$f":"Actif!$E$28/100","v":{"v":0.28900000000000003,"d":"28.90%"}},{"$f":"Actif!$E$30/100","v":{"v":0.09050000000000001,"d":"9.05%"}},{"$f":"Actif!$E$31/100","v":{"v":0.0605,"d":"6.05%"}},{"$f":"Actif!$E$32/100","v":{"v":0.47350000000000003,"d":"47.35%"}},{"$f":"Actif!$E$33/100","v":{"v":0.0585,"d":"5.85%"}},{"$f":"Actif!$E$29/100","v":{"v":0.027999999999999997,"d":"2.80%"}}]
[null,"#12",20,2030,"F","A_PER",{"v":0.44999999999999996,"d":"0.45"},{"v":0.38999999999999996,"d":"0.39"},0.6,0.6,85,0,{"$f":"ROUND(Primes!$P$7*V7122,0)","v":1},{"$f":"'BP Financier'!$F$33*(('BP Financier'!$C$19+'BP Financier'!$D$19+'BP Financier'!$E$19+'BP Financier'!$F$19)/('BP Financier'!$C$16+'BP Financier'!$C$19+'BP Financier'!$D$16+'BP Financier'!$D$19+'BP Financier'!$E$16+'BP Financier'!$E$19+'BP Financier'!$F$16+'BP Financier'!$F$19))*V7122","v":{"v":45412.220092908035,"d":"45,412"}},{"v":25760.932484369845,"d":"25,761"},{"$f":"'BP Financier'!$F$44*(('BP Financier'!$C$19+'BP Financier'!$D$19+'BP Financier'!$E$19+'BP Financier'!$F$19)/('BP Financier'!$C$16+'BP Financier'!$C$19+'BP Financier'!$D$16+'BP Financier'!$D$19+'BP Financier'!$E$16+'BP Financier'!$E$19+'BP Financier'!$C$22+'BP Financier'!$D$22+'BP Financier'!$E$22+'BP Financier'!$F$22+'BP Financier'!$F$19+'BP Financier'!$F$16))*$V7122*X7122/(1-$W7122)","v":{"v":3278.993515942998,"d":"3,279"}},{"$f":"'BP Financier'!$F$44*(('BP Financier'!$C$19+'BP Financier'!$D$19+'BP Financier'!$E$19+'BP Financier'!$F$19)/('BP Financier'!$C$16+'BP Financier'!$C$19+'BP Financier'!$D$16+'BP Financier'!$D$19+'BP Financier'!$E$16+'BP Financier'!$E$19+'BP Financier'!$C$22+'BP Financier'!$D$22+'BP Financier'!$E$22+'BP Financier'!$F$22+'BP Financier'!$F$19+'BP Financier'!$F$16))*$V7122*Y7122/(1-$W7122)","v":{"v":2192.0343393873077,"d":"2,192"}},{"$f":"'BP Financier'!$F$44*(('BP Financier'!$C$19+'BP Financier'!$D$19+'BP Financier'!$E$19+'BP Financier'!$F$19)/('BP Financier'!$C$16+'BP Financier'!$C$19+'BP Financier'!$D$16+'BP Financier'!$D$19+'BP Financier'!$E$16+'BP Financier'!$E$19+'BP Financier'!$C$22+'BP Financier'!$D$22+'BP Financier'!$E$22+'BP Financier'!$F$22+'BP Financier'!$F$19+'BP Financier'!$F$16))*$V7122*Z7122/(1-$W7122)","v":{"v":17155.839003303972,"d":"17,156"}},{"$f":"'BP Financier'!$F$44*(('BP Financier'!$C$19+'BP Financier'!$D$19+'BP Financier'!$E$19+'BP Financier'!$F$19)/('BP Financier'!$C$16+'BP Financier'!$C$19+'BP Financier'!$D$16+'BP Financier'!$D$19+'BP Financier'!$E$16+'BP Financier'!$E$19+'BP Financier'!$C$22+'BP Financier'!$D$22+'BP Financier'!$E$22+'BP Financier'!$F$22+'BP Financier'!$F$19+'BP Financier'!$F$16))*$V7122*AA7122/(1-$W7122)","v":{"v":2119.570394283595,"d":"2,120"}},{"$f":"'BP Financier'!$F$44*(('BP Financier'!$C$19+'BP Financier'!$D$19+'BP Financier'!$E$19+'BP Financier'!$F$19)/('BP Financier'!$C$16+'BP Financier'!$C$19+'BP Financier'!$D$16+'BP Financier'!$D$19+'BP Financier'!$E$16+'BP Financier'!$E$19+'BP Financier'!$C$22+'BP Financier'!$D$22+'BP Financier'!$E$22+'BP Financier'!$F$22+'BP Financier'!$F$19+'BP Financier'!$F$16))*$V7122*AB7122/(1-$W7122)","v":{"v":1014.4952314519769,"d":"1,014"}},null,{"v":1.25E-3,"d":"0.13%"},{"$f":"Actif!$E$28/100","v":{"v":0.28900000000000003,"d":"28.90%"}},{"$f":"Actif!$E$30/100","v":{"v":0.09050000000000001,"d":"9.05%"}},{"$f":"Actif!$E$31/100","v":{"v":0.0605,"d":"6.05%"}},{"$f":"Actif!$E$32/100","v":{"v":0.47350000000000003,"d":"47.35%"}},{"$f":"Actif!$E$33/100","v":{"v":0.0585,"d":"5.85%"}},{"$f":"Actif!$E$29/100","v":{"v":0.027999999999999997,"d":"2.80%"}}]
[null,"#13",21,2026,"H","A_PER",{"v":0.44999999999999996,"d":"0.45"},{"v":0.38999999999999996,"d":"0.39"},0.6,0.6,85,0,{"$f":"ROUND(Primes!$P$7*V7123,0)","v":1},{"$f":"'BP Financier'!$F$33*(('BP Financier'!$C$19+'BP Financier'!$D$19+'BP Financier'!$E$19+'BP Financier'!$F$19)/('BP Financier'!$C$16+'BP Financier'!$C$19+'BP Financier'!$D$16+'BP Financier'!$D$19+'BP Financier'!$E$16+'BP Financier'!$E$19+'BP Financier'!$F$16+'BP Financier'!$F$19))*V7123","v":{"v":45412.220092908035,"d":"45,412"}},{"v":25760.932484369845,"d":"25,761"},{"$f":"'BP Financier'!$F$44*(('BP Financier'!$C$19+'BP Financier'!$D$19+'BP Financier'!$E$19+'BP Financier'!$F$19)/('BP Financier'!$C$16+'BP Financier'!$C$19+'BP Financier'!$D$16+'BP Financier'!$D$19+'BP Financier'!$E$16+'BP Financier'!$E$19+'BP Financier'!$C$22+'BP Financier'!$D$22+'BP Financier'!$E$22+'BP Financier'!$F$22+'BP Financier'!$F$19+'BP Financier'!$F$16))*$V7123*X7123/(1-$W7123)","v":{"v":3278.993515942998,"d":"3,279"}},{"$f":"'BP Financier'!$F$44*(('BP Financier'!$C$19+'BP Financier'!$D$19+'BP Financier'!$E$19+'BP Financier'!$F$19)/('BP Financier'!$C$16+'BP Financier'!$C$19+'BP Financier'!$D$16+'BP Financier'!$D$19+'BP Financier'!$E$16+'BP Financier'!$E$19+'BP Financier'!$C$22+'BP Financier'!$D$22+'BP Financier'!$E$22+'BP Financier'!$F$22+'BP Financier'!$F$19+'BP Financier'!$F$16))*$V7123*Y7123/(1-$W7123)","v":{"v":2192.0343393873077,"d":"2,192"}},{"$f":"'BP Financier'!$F$44*(('BP Financier'!$C$19+'BP Financier'!$D$19+'BP Financier'!$E$19+'BP Financier'!$F$19)/('BP Financier'!$C$16+'BP Financier'!$C$19+'BP Financier'!$D$16+'BP Financier'!$D$19+'BP Financier'!$E$16+'BP Financier'!$E$19+'BP Financier'!$C$22+'BP Financier'!$D$22+'BP Financier'!$E$22+'BP Financier'!$F$22+'BP Financier'!$F$19+'BP Financier'!$F$16))*$V7123*Z7123/(1-$W7123)","v":{"v":17155.839003303972,"d":"17,156"}},{"$f":"'BP Financier'!$F$44*(('BP Financier'!$C$19+'BP Financier'!$D$19+'BP Financier'!$E$19+'BP Financier'!$F$19)/('BP Financier'!$C$16+'BP Financier'!$C$19+'BP Financier'!$D$16+'BP Financier'!$D$19+'BP Financier'!$E$16+'BP Financier'!$E$19+'BP Financier'!$C$22+'BP Financier'!$D$22+'BP Financier'!$E$22+'BP Financier'!$F$22+'BP Financier'!$F$19+'BP Financier'!$F$16))*$V7123*AA7123/(1-$W7123)","v":{"v":2119.570394283595,"d":"2,120"}},{"$f":"'BP Financier'!$F$44*(('BP Financier'!$C$19+'BP Financier'!$D$19+'BP Financier'!$E$19+'BP Financier'!$F$19)/('BP Financier'!$C$16+'BP Financier'!$C$19+'BP Financier'!$D$16+'BP Financier'!$D$19+'BP Financier'!$E$16+'BP Financier'!$E$19+'BP Financier'!$C$22+'BP Financier'!$D$22+'BP Financier'!$E$22+'BP Financier'!$F$22+'BP Financier'!$F$19+'BP Financier'!$F$16))*$V7123*AB7123/(1-$W7123)","v":{"v":1014.4952314519769,"d":"1,014"}},null,{"v":1.25E-3,"d":"0.13%"},{"$f":"Actif!$E$28/100","v":{"v":0.28900000000000003,"d":"28.90%"}},{"$f":"Actif!$E$30/100","v":{"v":0.09050000000000001,"d":"9.05%"}},{"$f":"Actif!$E$31/100","v":{"v":0.0605,"d":"6.05%"}},{"$f":"Actif!$E$32/100","v":{"v":0.47350000000000003,"d":"47.35%"}},{"$f":"Actif!$E$33/100","v":{"v":0.0585,"d":"5.85%"}},{"$f":"Actif!$E$29/100","v":{"v":0.027999999999999997,"d":"2.80%"}}]
[null,"#14",21,2028,"H","A_PER",{"v":0.44999999999999996,"d":"0.45"},{"v":0.38999999999999996,"d":"0.39"},0.6,0.6,85,0,{"$f":"ROUND(Primes!$P$7*V7124,0)","v":1},{"$f":"'BP Financier'!$F$33*(('BP Financier'!$C$19+'BP Financier'!$D$19+'BP Financier'!$E$19+'BP Financier'!$F$19)/('BP Financier'!$C$16+'BP Financier'!$C$19+'BP Financier'!$D$16+'BP Financier'!$D$19+'BP Financier'!$E$16+'BP Financier'!$E$19+'BP Financier'!$F$16+'BP Financier'!$F$19))*V7124","v":{"v":45412.220092908035,"d":"45,412"}},{"v":25760.932484369845,"d":"25,761"},{"$f":"'BP Financier'!$F$44*(('BP Financier'!$C$19+'BP Financier'!$D$19+'BP Financier'!$E$19+'BP Financier'!$F$19)/('BP Financier'!$C$16+'BP Financier'!$C$19+'BP Financier'!$D$16+'BP Financier'!$D$19+'BP Financier'!$E$16+'BP Financier'!$E$19+'BP Financier'!$C$22+'BP Financier'!$D$22+'BP Financier'!$E$22+'BP Financier'!$F$22+'BP Financier'!$F$19+'BP Financier'!$F$16))*$V7124*X7124/(1-$W7124)","v":{"v":3278.993515942998,"d":"3,279"}},{"$f":"'BP Financier'!$F$44*(('BP Financier'!$C$19+'BP Financier'!$D$19+'BP Financier'!$E$19+'BP Financier'!$F$19)/('BP Financier'!$C$16+'BP Financier'!$C$19+'BP Financier'!$D$16+'BP Financier'!$D$19+'BP Financier'!$E$16+'BP Financier'!$E$19+'BP Financier'!$C$22+'BP Financier'!$D$22+'BP Financier'!$E$22+'BP Financier'!$F$22+'BP Financier'!$F$19+'BP Financier'!$F$16))*$V7124*Y7124/(1-$W7124)","v":{"v":2192.0343393873077,"d":"2,192"}},{"$f":"'BP Financier'!$F$44*(('BP Financier'!$C$19+'BP Financier'!$D$19+'BP Financier'!$E$19+'BP Financier'!$F$19)/('BP Financier'!$C$16+'BP Financier'!$C$19+'BP Financier'!$D$16+'BP Financier'!$D$19+'BP Financier'!$E$16+'BP Financier'!$E$19+'BP Financier'!$C$22+'BP Financier'!$D$22+'BP Financier'!$E$22+'BP Financier'!$F$22+'BP Financier'!$F$19+'BP Financier'!$F$16))*$V7124*Z7124/(1-$W7124)","v":{"v":17155.839003303972,"d":"17,156"}},{"$f":"'BP Financier'!$F$44*(('BP Financier'!$C$19+'BP Financier'!$D$19+'BP Financier'!$E$19+'BP Financier'!$F$19)/('BP Financier'!$C$16+'BP Financier'!$C$19+'BP Financier'!$D$16+'BP Financier'!$D$19+'BP Financier'!$E$16+'BP Financier'!$E$19+'BP Financier'!$C$22+'BP Financier'!$D$22+'BP Financier'!$E$22+'BP Financier'!$F$22+'BP Financier'!$F$19+'BP Financier'!$F$16))*$V7124*AA7124/(1-$W7124)","v":{"v":2119.570394283595,"d":"2,120"}},{"$f":"'BP Financier'!$F$44*(('BP Financier'!$C$19+'BP Financier'!$D$19+'BP Financier'!$E$19+'BP Financier'!$F$19)/('BP Financier'!$C$16+'BP Financier'!$C$19+'BP Financier'!$D$16+'BP Financier'!$D$19+'BP Financier'!$E$16+'BP Financier'!$E$19+'BP Financier'!$C$22+'BP Financier'!$D$22+'BP Financier'!$E$22+'BP Financier'!$F$22+'BP Financier'!$F$19+'BP Financier'!$F$16))*$V7124*AB7124/(1-$W7124)","v":{"v":1014.4952314519769,"d":"1,014"}},null,{"v":1.25E-3,"d":"0.13%"},{"$f":"Actif!$E$28/100","v":{"v":0.28900000000000003,"d":"28.90%"}},{"$f":"Actif!$E$30/100","v":{"v":0.09050000000000001,"d":"9.05%"}},{"$f":"Actif!$E$31/100","v":{"v":0.0605,"d":"6.05%"}},{"$f":"Actif!$E$32/100","v":{"v":0.47350000000000003,"d":"47.35%"}},{"$f":"Actif!$E$33/100","v":{"v":0.0585,"d":"5.85%"}},{"$f":"Actif!$E$29/100","v":{"v":0.027999999999999997,"d":"2.80%"}}]
[null,"#15",21,2029,"H","A_PER",{"v":0.44999999999999996,"d":"0.45"},{"v":0.38999999999999996,"d":"0.39"},0.6,0.6,85,0,{"$f":"ROUND(Primes!$P$7*V7125,0)","v":1},{"$f":"'BP Financier'!$F$33*(('BP Financier'!$C$19+'BP Financier'!$D$19+'BP Financier'!$E$19+'BP Financier'!$F$19)/('BP Financier'!$C$16+'BP Financier'!$C$19+'BP Financier'!$D$16+'BP Financier'!$D$19+'BP Financier'!$E$16+'BP Financier'!$E$19+'BP Financier'!$F$16+'BP Financier'!$F$19))*V7125","v":{"v":45412.220092908035,"d":"45,412"}},{"v":25760.932484369845,"d":"25,761"},{"$f":"'BP Financier'!$F$44*(('BP Financier'!$C$19+'BP Financier'!$D$19+'BP Financier'!$E$19+'BP Financier'!$F$19)/('BP Financier'!$C$16+'BP Financier'!$C$19+'BP Financier'!$D$16+'BP Financier'!$D$19+'BP Financier'!$E$16+'BP Financier'!$E$19+'BP Financier'!$C$22+'BP Financier'!$D$22+'BP Financier'!$E$22+'BP Financier'!$F$22+'BP Financier'!$F$19+'BP Financier'!$F$16))*$V7125*X7125/(1-$W7125)","v":{"v":3278.993515942998,"d":"3,279"}},{"$f":"'BP Financier'!$F$44*(('BP Financier'!$C$19+'BP Financier'!$D$19+'BP Financier'!$E$19+'BP Financier'!$F$19)/('BP Financier'!$C$16+'BP Financier'!$C$19+'BP Financier'!$D$16+'BP Financier'!$D$19+'BP Financier'!$E$16+'BP Financier'!$E$19+'BP Financier'!$C$22+'BP Financier'!$D$22+'BP Financier'!$E$22+'BP Financier'!$F$22+'BP Financier'!$F$19+'BP Financier'!$F$16))*$V7125*Y7125/(1-$W7125)","v":{"v":2192.0343393873077,"d":"2,192"}},{"$f":"'BP Financier'!$F$44*(('BP Financier'!$C$19+'BP Financier'!$D$19+'BP Financier'!$E$19+'BP Financier'!$F$19)/('BP Financier'!$C$16+'BP Financier'!$C$19+'BP Financier'!$D$16+'BP Financier'!$D$19+'BP Financier'!$E$16+'BP Financier'!$E$19+'BP Financier'!$C$22+'BP Financier'!$D$22+'BP Financier'!$E$22+'BP Financier'!$F$22+'BP Financier'!$F$19+'BP Financier'!$F$16))*$V7125*Z7125/(1-$W7125)","v":{"v":17155.839003303972,"d":"17,156"}},{"$f":"'BP Financier'!$F$44*(('BP Financier'!$C$19+'BP Financier'!$D$19+'BP Financier'!$E$19+'BP Financier'!$F$19)/('BP Financier'!$C$16+'BP Financier'!$C$19+'BP Financier'!$D$16+'BP Financier'!$D$19+'BP Financier'!$E$16+'BP Financier'!$E$19+'BP Financier'!$C$22+'BP Financier'!$D$22+'BP Financier'!$E$22+'BP Financier'!$F$22+'BP Financier'!$F$19+'BP Financier'!$F$16))*$V7125*AA7125/(1-$W7125)","v":{"v":2119.570394283595,"d":"2,120"}},{"$f":"'BP Financier'!$F$44*(('BP Financier'!$C$19+'BP Financier'!$D$19+'BP Financier'!$E$19+'BP Financier'!$F$19)/('BP Financier'!$C$16+'BP Financier'!$C$19+'BP Financier'!$D$16+'BP Financier'!$D$19+'BP Financier'!$E$16+'BP Financier'!$E$19+'BP Financier'!$C$22+'BP Financier'!$D$22+'BP Financier'!$E$22+'BP Financier'!$F$22+'BP Financier'!$F$19+'BP Financier'!$F$16))*$V7125*AB7125/(1-$W7125)","v":{"v":1014.4952314519769,"d":"1,014"}},null,{"v":1.25E-3,"d":"0.13%"},{"$f":"Actif!$E$28/100","v":{"v":0.28900000000000003,"d":"28.90%"}},{"$f":"Actif!$E$30/100","v":{"v":0.09050000000000001,"d":"9.05%"}},{"$f":"Actif!$E$31/100","v":{"v":0.0605,"d":"6.05%"}},{"$f":"Actif!$E$32/100","v":{"v":0.47350000000000003,"d":"47.35%"}},{"$f":"Actif!$E$33/100","v":{"v":0.0585,"d":"5.85%"}},{"$f":"Actif!$E$29/100","v":{"v":0.027999999999999997,"d":"2.80%"}}]
[null,"#16",21,2030,"H","A_PER",{"v":0.44999999999999996,"d":"0.45"},{"v":0.38999999999999996,"d":"0.39"},0.6,0.6,85,0,{"$f":"ROUND(Primes!$P$7*V7126,0)","v":1},{"$f":"'BP Financier'!$F$33*(('BP Financier'!$C$19+'BP Financier'!$D$19+'BP Financier'!$E$19+'BP Financier'!$F$19)/('BP Financier'!$C$16+'BP Financier'!$C$19+'BP Financier'!$D$16+'BP Financier'!$D$19+'BP Financier'!$E$16+'BP Financier'!$E$19+'BP Financier'!$F$16+'BP Financier'!$F$19))*V7126","v":{"v":45412.220092908035,"d":"45,412"}},{"v":25760.932484369845,"d":"25,761"},{"$f":"'BP Financier'!$F$44*(('BP Financier'!$C$19+'BP Financier'!$D$19+'BP Financier'!$E$19+'BP Financier'!$F$19)/('BP Financier'!$C$16+'BP Financier'!$C$19+'BP Financier'!$D$16+'BP Financier'!$D$19+'BP Financier'!$E$16+'BP Financier'!$E$19+'BP Financier'!$C$22+'BP Financier'!$D$22+'BP Financier'!$E$22+'BP Financier'!$F$22+'BP Financier'!$F$19+'BP Financier'!$F$16))*$V7126*X7126/(1-$W7126)","v":{"v":3278.993515942998,"d":"3,279"}},{"$f":"'BP Financier'!$F$44*(('BP Financier'!$C$19+'BP Financier'!$D$19+'BP Financier'!$E$19+'BP Financier'!$F$19)/('BP Financier'!$C$16+'BP Financier'!$C$19+'BP Financier'!$D$16+'BP Financier'!$D$19+'BP Financier'!$E$16+'BP Financier'!$E$19+'BP Financier'!$C$22+'BP Financier'!$D$22+'BP Financier'!$E$22+'BP Financier'!$F$22+'BP Financier'!$F$19+'BP Financier'!$F$16))*$V7126*Y7126/(1-$W7126)","v":{"v":2192.0343393873077,"d":"2,192"}},{"$f":"'BP Financier'!$F$44*(('BP Financier'!$C$19+'BP Financier'!$D$19+'BP Financier'!$E$19+'BP Financier'!$F$19)/('BP Financier'!$C$16+'BP Financier'!$C$19+'BP Financier'!$D$16+'BP Financier'!$D$19+'BP Financier'!$E$16+'BP Financier'!$E$19+'BP Financier'!$C$22+'BP Financier'!$D$22+'BP Financier'!$E$22+'BP Financier'!$F$22+'BP Financier'!$F$19+'BP Financier'!$F$16))*$V7126*Z7126/(1-$W7126)","v":{"v":17155.839003303972,"d":"17,156"}},{"$f":"'BP Financier'!$F$44*(('BP Financier'!$C$19+'BP Financier'!$D$19+'BP Financier'!$E$19+'BP Financier'!$F$19)/('BP Financier'!$C$16+'BP Financier'!$C$19+'BP Financier'!$D$16+'BP Financier'!$D$19+'BP Financier'!$E$16+'BP Financier'!$E$19+'BP Financier'!$C$22+'BP Financier'!$D$22+'BP Financier'!$E$22+'BP Financier'!$F$22+'BP Financier'!$F$19+'BP Financier'!$F$16))*$V7126*AA7126/(1-$W7126)","v":{"v":2119.570394283595,"d":"2,120"}},{"$f":"'BP Financier'!$F$44*(('BP Financier'!$C$19+'BP Financier'!$D$19+'BP Financier'!$E$19+'BP Financier'!$F$19)/('BP Financier'!$C$16+'BP Financier'!$C$19+'BP Financier'!$D$16+'BP Financier'!$D$19+'BP Financier'!$E$16+'BP Financier'!$E$19+'BP Financier'!$C$22+'BP Financier'!$D$22+'BP Financier'!$E$22+'BP Financier'!$F$22+'BP Financier'!$F$19+'BP Financier'!$F$16))*$V7126*AB7126/(1-$W7126)","v":{"v":1014.4952314519769,"d":"1,014"}},null,{"v":1.25E-3,"d":"0.13%"},{"$f":"Actif!$E$28/100","v":{"v":0.28900000000000003,"d":"28.90%"}},{"$f":"Actif!$E$30/100","v":{"v":0.09050000000000001,"d":"9.05%"}},{"$f":"Actif!$E$31/100","v":{"v":0.0605,"d":"6.05%"}},{"$f":"Actif!$E$32/100","v":{"v":0.47350000000000003,"d":"47.35%"}},{"$f":"Actif!$E$33/100","v":{"v":0.0585,"d":"5.85%"}},{"$f":"Actif!$E$29/100","v":{"v":0.027999999999999997,"d":"2.80%"}}]
[null,"#17",22,2026,"H","A_PER",{"v":0.44999999999999996,"d":"0.45"},{"v":0.38999999999999996,"d":"0.39"},0.6,0.6,85,0,{"$f":"ROUND(Primes!$P$7*V7127,0)","v":1},{"$f":"'BP Financier'!$F$33*(('BP Financier'!$C$19+'BP Financier'!$D$19+'BP Financier'!$E$19+'BP Financier'!$F$19)/('BP Financier'!$C$16+'BP Financier'!$C$19+'BP Financier'!$D$16+'BP Financier'!$D$19+'BP Financier'!$E$16+'BP Financier'!$E$19+'BP Financier'!$F$16+'BP Financier'!$F$19))*V7127","v":{"v":45412.220092908035,"d":"45,412"}},{"v":25760.932484369845,"d":"25,761"},{"$f":"'BP Financier'!$F$44*(('BP Financier'!$C$19+'BP Financier'!$D$19+'BP Financier'!$E$19+'BP Financier'!$F$19)/('BP Financier'!$C$16+'BP Financier'!$C$19+'BP Financier'!$D$16+'BP Financier'!$D$19+'BP Financier'!$E$16+'BP Financier'!$E$19+'BP Financier'!$C$22+'BP Financier'!$D$22+'BP Financier'!$E$22+'BP Financier'!$F$22+'BP Financier'!$F$19+'BP Financier'!$F$16))*$V7127*X7127/(1-$W7127)","v":{"v":3278.993515942998,"d":"3,279"}},{"$f":"'BP Financier'!$F$44*(('BP Financier'!$C$19+'BP Financier'!$D$19+'BP Financier'!$E$19+'BP Financier'!$F$19)/('BP Financier'!$C$16+'BP Financier'!$C$19+'BP Financier'!$D$16+'BP Financier'!$D$19+'BP Financier'!$E$16+'BP Financier'!$E$19+'BP Financier'!$C$22+'BP Financier'!$D$22+'BP Financier'!$E$22+'BP Financier'!$F$22+'BP Financier'!$F$19+'BP Financier'!$F$16))*$V7127*Y7127/(1-$W7127)","v":{"v":2192.0343393873077,"d":"2,192"}},{"$f":"'BP Financier'!$F$44*(('BP Financier'!$C$19+'BP Financier'!$D$19+'BP Financier'!$E$19+'BP Financier'!$F$19)/('BP Financier'!$C$16+'BP Financier'!$C$19+'BP Financier'!$D$16+'BP Financier'!$D$19+'BP Financier'!$E$16+'BP Financier'!$E$19+'BP Financier'!$C$22+'BP Financier'!$D$22+'BP Financier'!$E$22+'BP Financier'!$F$22+'BP Financier'!$F$19+'BP Financier'!$F$16))*$V7127*Z7127/(1-$W7127)","v":{"v":17155.839003303972,"d":"17,156"}},{"$f":"'BP Financier'!$F$44*(('BP Financier'!$C$19+'BP Financier'!$D$19+'BP Financier'!$E$19+'BP Financier'!$F$19)/('BP Financier'!$C$16+'BP Financier'!$C$19+'BP Financier'!$D$16+'BP Financier'!$D$19+'BP Financier'!$E$16+'BP Financier'!$E$19+'BP Financier'!$C$22+'BP Financier'!$D$22+'BP Financier'!$E$22+'BP Financier'!$F$22+'BP Financier'!$F$19+'BP Financier'!$F$16))*$V7127*AA7127/(1-$W7127)","v":{"v":2119.570394283595,"d":"2,120"}},{"$f":"'BP Financier'!$F$44*(('BP Financier'!$C$19+'BP Financier'!$D$19+'BP Financier'!$E$19+'BP Financier'!$F$19)/('BP Financier'!$C$16+'BP Financier'!$C$19+'BP Financier'!$D$16+'BP Financier'!$D$19+'BP Financier'!$E$16+'BP Financier'!$E$19+'BP Financier'!$C$22+'BP Financier'!$D$22+'BP Financier'!$E$22+'BP Financier'!$F$22+'BP Financier'!$F$19+'BP Financier'!$F$16))*$V7127*AB7127/(1-$W7127)","v":{"v":1014.4952314519769,"d":"1,014"}},null,{"v":1.25E-3,"d":"0.13%"},{"$f":"Actif!$E$28/100","v":{"v":0.28900000000000003,"d":"28.90%"}},{"$f":"Actif!$E$30/100","v":{"v":0.09050000000000001,"d":"9.05%"}},{"$f":"Actif!$E$31/100","v":{"v":0.0605,"d":"6.05%"}},{"$f":"Actif!$E$32/100","v":{"v":0.47350000000000003,"d":"47.35%"}},{"$f":"Actif!$E$33/100","v":{"v":0.0585,"d":"5.85%"}},{"$f":"Actif!$E$29/100","v":{"v":0.027999999999999997,"d":"2.80%"}}]
[null,"#18",22,2028,"H","A_PER",{"v":0.44999999999999996,"d":"0.45"},{"v":0.38999999999999996,"d":"0.39"},0.6,0.6,85,0,{"$f":"ROUND(Primes!$P$7*V7128,0)","v":1},{"$f":"'BP Financier'!$F$33*(('BP Financier'!$C$19+'BP Financier'!$D$19+'BP Financier'!$E$19+'BP Financier'!$F$19)/('BP Financier'!$C$16+'BP Financier'!$C$19+'BP Financier'!$D$16+'BP Financier'!$D$19+'BP Financier'!$E$16+'BP Financier'!$E$19+'BP Financier'!$F$16+'BP Financier'!$F$19))*V7128","v":{"v":45412.220092908035,"d":"45,412"}},{"v":25760.932484369845,"d":"25,761"},{"$f":"'BP Financier'!$F$44*(('BP Financier'!$C$19+'BP Financier'!$D$19+'BP Financier'!$E$19+'BP Financier'!$F$19)/('BP Financier'!$C$16+'BP Financier'!$C$19+'BP Financier'!$D$16+'BP Financier'!$D$19+'BP Financier'!$E$16+'BP Financier'!$E$19+'BP Financier'!$C$22+'BP Financier'!$D$22+'BP Financier'!$E$22+'BP Financier'!$F$22+'BP Financier'!$F$19+'BP Financier'!$F$16))*$V7128*X7128/(1-$W7128)","v":{"v":3278.993515942998,"d":"3,279"}},{"$f":"'BP Financier'!$F$44*(('BP Financier'!$C$19+'BP Financier'!$D$19+'BP Financier'!$E$19+'BP Financier'!$F$19)/('BP Financier'!$C$16+'BP Financier'!$C$19+'BP Financier'!$D$16+'BP Financier'!$D$19+'BP Financier'!$E$16+'BP Financier'!$E$19+'BP Financier'!$C$22+'BP Financier'!$D$22+'BP Financier'!$E$22+'BP Financier'!$F$22+'BP Financier'!$F$19+'BP Financier'!$F$16))*$V7128*Y7128/(1-$W7128)","v":{"v":2192.0343393873077,"d":"2,192"}},{"$f":"'BP Financier'!$F$44*(('BP Financier'!$C$19+'BP Financier'!$D$19+'BP Financier'!$E$19+'BP Financier'!$F$19)/('BP Financier'!$C$16+'BP Financier'!$C$19+'BP Financier'!$D$16+'BP Financier'!$D$19+'BP Financier'!$E$16+'BP Financier'!$E$19+'BP Financier'!$C$22+'BP Financier'!$D$22+'BP Financier'!$E$22+'BP Financier'!$F$22+'BP Financier'!$F$19+'BP Financier'!$F$16))*$V7128*Z7128/(1-$W7128)","v":{"v":17155.839003303972,"d":"17,156"}},{"$f":"'BP Financier'!$F$44*(('BP Financier'!$C$19+'BP Financier'!$D$19+'BP Financier'!$E$19+'BP Financier'!$F$19)/('BP Financier'!$C$16+'BP Financier'!$C$19+'BP Financier'!$D$16+'BP Financier'!$D$19+'BP Financier'!$E$16+'BP Financier'!$E$19+'BP Financier'!$C$22+'BP Financier'!$D$22+'BP Financier'!$E$22+'BP Financier'!$F$22+'BP Financier'!$F$19+'BP Financier'!$F$16))*$V7128*AA7128/(1-$W7128)","v":{"v":2119.570394283595,"d":"2,120"}},{"$f":"'BP Financier'!$F$44*(('BP Financier'!$C$19+'BP Financier'!$D$19+'BP Financier'!$E$19+'BP Financier'!$F$19)/('BP Financier'!$C$16+'BP Financier'!$C$19+'BP Financier'!$D$16+'BP Financier'!$D$19+'BP Financier'!$E$16+'BP Financier'!$E$19+'BP Financier'!$C$22+'BP Financier'!$D$22+'BP Financier'!$E$22+'BP Financier'!$F$22+'BP Financier'!$F$19+'BP Financier'!$F$16))*$V7128*AB7128/(1-$W7128)","v":{"v":1014.4952314519769,"d":"1,014"}},null,{"v":1.25E-3,"d":"0.13%"},{"$f":"Actif!$E$28/100","v":{"v":0.28900000000000003,"d":"28.90%"}},{"$f":"Actif!$E$30/100","v":{"v":0.09050000000000001,"d":"9.05%"}},{"$f":"Actif!$E$31/100","v":{"v":0.0605,"d":"6.05%"}},{"$f":"Actif!$E$32/100","v":{"v":0.47350000000000003,"d":"47.35%"}},{"$f":"Actif!$E$33/100","v":{"v":0.0585,"d":"5.85%"}},{"$f":"Actif!$E$29/100","v":{"v":0.027999999999999997,"d":"2.80%"}}]
[null,"#19",22,2029,"H","A_PER",{"v":0.44999999999999996,"d":"0.45"},{"v":0.38999999999999996,"d":"0.39"},0.6,0.6,85,0,{"$f":"ROUND(Primes!$P$7*V7129,0)","v":1},{"$f":"'BP Financier'!$F$33*(('BP Financier'!$C$19+'BP Financier'!$D$19+'BP Financier'!$E$19+'BP Financier'!$F$19)/('BP Financier'!$C$16+'BP Financier'!$C$19+'BP Financier'!$D$16+'BP Financier'!$D$19+'BP Financier'!$E$16+'BP Financier'!$E$19+'BP Financier'!$F$16+'BP Financier'!$F$19))*V7129","v":{"v":45412.220092908035,"d":"45,412"}},{"v":25760.932484369845,"d":"25,761"},{"$f":"'BP Financier'!$F$44*(('BP Financier'!$C$19+'BP Financier'!$D$19+'BP Financier'!$E$19+'BP Financier'!$F$19)/('BP Financier'!$C$16+'BP Financier'!$C$19+'BP Financier'!$D$16+'BP Financier'!$D$19+'BP Financier'!$E$16+'BP Financier'!$E$19+'BP Financier'!$C$22+'BP Financier'!$D$22+'BP Financier'!$E$22+'BP Financier'!$F$22+'BP Financier'!$F$19+'BP Financier'!$F$16))*$V7129*X7129/(1-$W7129)","v":{"v":3278.993515942998,"d":"3,279"}},{"$f":"'BP Financier'!$F$44*(('BP Financier'!$C$19+'BP Financier'!$D$19+'BP Financier'!$E$19+'BP Financier'!$F$19)/('BP Financier'!$C$16+'BP Financier'!$C$19+'BP Financier'!$D$16+'BP Financier'!$D$19+'BP Financier'!$E$16+'BP Financier'!$E$19+'BP Financier'!$C$22+'BP Financier'!$D$22+'BP Financier'!$E$22+'BP Financier'!$F$22+'BP Financier'!$F$19+'BP Financier'!$F$16))*$V7129*Y7129/(1-$W7129)","v":{"v":2192.0343393873077,"d":"2,192"}},{"$f":"'BP Financier'!$F$44*(('BP Financier'!$C$19+'BP Financier'!$D$19+'BP Financier'!$E$19+'BP Financier'!$F$19)/('BP Financier'!$C$16+'BP Financier'!$C$19+'BP Financier'!$D$16+'BP Financier'!$D$19+'BP Financier'!$E$16+'BP Financier'!$E$19+'BP Financier'!$C$22+'BP Financier'!$D$22+'BP Financier'!$E$22+'BP Financier'!$F$22+'BP Financier'!$F$19+'BP Financier'!$F$16))*$V7129*Z7129/(1-$W7129)","v":{"v":17155.839003303972,"d":"17,156"}},{"$f":"'BP Financier'!$F$44*(('BP Financier'!$C$19+'BP Financier'!$D$19+'BP Financier'!$E$19+'BP Financier'!$F$19)/('BP Financier'!$C$16+'BP Financier'!$C$19+'BP Financier'!$D$16+'BP Financier'!$D$19+'BP Financier'!$E$16+'BP Financier'!$E$19+'BP Financier'!$C$22+'BP Financier'!$D$22+'BP Financier'!$E$22+'BP Financier'!$F$22+'BP Financier'!$F$19+'BP Financier'!$F$16))*$V7129*AA7129/(1-$W7129)","v":{"v":2119.570394283595,"d":"2,120"}},{"$f":"'BP Financier'!$F$44*(('BP Financier'!$C$19+'BP Financier'!$D$19+'BP Financier'!$E$19+'BP Financier'!$F$19)/('BP Financier'!$C$16+'BP Financier'!$C$19+'BP Financier'!$D$16+'BP Financier'!$D$19+'BP Financier'!$E$16+'BP Financier'!$E$19+'BP Financier'!$C$22+'BP Financier'!$D$22+'BP Financier'!$E$22+'BP Financier'!$F$22+'BP Financier'!$F$19+'BP Financier'!$F$16))*$V7129*AB7129/(1-$W7129)","v":{"v":1014.4952314519769,"d":"1,014"}},null,{"v":1.25E-3,"d":"0.13%"},{"$f":"Actif!$E$28/100","v":{"v":0.28900000000000003,"d":"28.90%"}},{"$f":"Actif!$E$30/100","v":{"v":0.09050000000000001,"d":"9.05%"}},{"$f":"Actif!$E$31/100","v":{"v":0.0605,"d":"6.05%"}},{"$f":"Actif!$E$32/100","v":{"v":0.47350000000000003,"d":"47.35%"}},{"$f":"Actif!$E$33/100","v":{"v":0.0585,"d":"5.85%"}},{"$f":"Actif!$E$29/100","v":{"v":0.027999999999999997,"d":"2.80%"}}]
[null,"#20",22,2030,"H","A_PER",{"v":0.44999999999999996,"d":"0.45"},{"v":0.38999999999999996,"d":"0.39"},0.6,0.6,85,0,{"$f":"ROUND(Primes!$P$7*V7130,0)","v":1},{"$f":"'BP Financier'!$F$33*(('BP Financier'!$C$19+'BP Financier'!$D$19+'BP Financier'!$E$19+'BP Financier'!$F$19)/('BP Financier'!$C$16+'BP Financier'!$C$19+'BP Financier'!$D$16+'BP Financier'!$D$19+'BP Financier'!$E$16+'BP Financier'!$E$19+'BP Financier'!$F$16+'BP Financier'!$F$19))*V7130","v":{"v":45412.220092908035,"d":"45,412"}},{"v":25760.932484369845,"d":"25,761"},{"$f":"'BP Financier'!$F$44*(('BP Financier'!$C$19+'BP Financier'!$D$19+'BP Financier'!$E$19+'BP Financier'!$F$19)/('BP Financier'!$C$16+'BP Financier'!$C$19+'BP Financier'!$D$16+'BP Financier'!$D$19+'BP Financier'!$E$16+'BP Financier'!$E$19+'BP Financier'!$C$22+'BP Financier'!$D$22+'BP Financier'!$E$22+'BP Financier'!$F$22+'BP Financier'!$F$19+'BP Financier'!$F$16))*$V7130*X7130/(1-$W7130)","v":{"v":3278.993515942998,"d":"3,279"}},{"$f":"'BP Financier'!$F$44*(('BP Financier'!$C$19+'BP Financier'!$D$19+'BP Financier'!$E$19+'BP Financier'!$F$19)/('BP Financier'!$C$16+'BP Financier'!$C$19+'BP Financier'!$D$16+'BP Financier'!$D$19+'BP Financier'!$E$16+'BP Financier'!$E$19+'BP Financier'!$C$22+'BP Financier'!$D$22+'BP Financier'!$E$22+'BP Financier'!$F$22+'BP Financier'!$F$19+'BP Financier'!$F$16))*$V7130*Y7130/(1-$W7130)","v":{"v":2192.0343393873077,"d":"2,192"}},{"$f":"'BP Financier'!$F$44*(('BP Financier'!$C$19+'BP Financier'!$D$19+'BP Financier'!$E$19+'BP Financier'!$F$19)/('BP Financier'!$C$16+'BP Financier'!$C$19+'BP Financier'!$D$16+'BP Financier'!$D$19+'BP Financier'!$E$16+'BP Financier'!$E$19+'BP Financier'!$C$22+'BP Financier'!$D$22+'BP Financier'!$E$22+'BP Financier'!$F$22+'BP Financier'!$F$19+'BP Financier'!$F$16))*$V7130*Z7130/(1-$W7130)","v":{"v":17155.839003303972,"d":"17,156"}},{"$f":"'BP Financier'!$F$44*(('BP Financier'!$C$19+'BP Financier'!$D$19+'BP Financier'!$E$19+'BP Financier'!$F$19)/('BP Financier'!$C$16+'BP Financier'!$C$19+'BP Financier'!$D$16+'BP Financier'!$D$19+'BP Financier'!$E$16+'BP Financier'!$E$19+'BP Financier'!$C$22+'BP Financier'!$D$22+'BP Financier'!$E$22+'BP Financier'!$F$22+'BP Financier'!$F$19+'BP Financier'!$F$16))*$V7130*AA7130/(1-$W7130)","v":{"v":2119.570394283595,"d":"2,120"}},{"$f":"'BP Financier'!$F$44*(('BP Financier'!$C$19+'BP Financier'!$D$19+'BP Financier'!$E$19+'BP Financier'!$F$19)/('BP Financier'!$C$16+'BP Financier'!$C$19+'BP Financier'!$D$16+'BP Financier'!$D$19+'BP Financier'!$E$16+'BP Financier'!$E$19+'BP Financier'!$C$22+'BP Financier'!$D$22+'BP Financier'!$E$22+'BP Financier'!$F$22+'BP Financier'!$F$19+'BP Financier'!$F$16))*$V7130*AB7130/(1-$W7130)","v":{"v":1014.4952314519769,"d":"1,014"}},null,{"v":1.25E-3,"d":"0.13%"},{"$f":"Actif!$E$28/100","v":{"v":0.28900000000000003,"d":"28.90%"}},{"$f":"Actif!$E$30/100","v":{"v":0.09050000000000001,"d":"9.05%"}},{"$f":"Actif!$E$31/100","v":{"v":0.0605,"d":"6.05%"}},{"$f":"Actif!$E$32/100","v":{"v":0.47350000000000003,"d":"47.35%"}},{"$f":"Actif!$E$33/100","v":{"v":0.0585,"d":"5.85%"}},{"$f":"Actif!$E$29/100","v":{"v":0.027999999999999997,"d":"2.80%"}}]
[null,"#21",23,2026,"F","A_PER",{"v":0.44999999999999996,"d":"0.45"},{"v":0.38999999999999996,"d":"0.39"},0.6,0.6,85,0,{"$f":"ROUND(Primes!$P$7*V7131,0)","v":1},{"$f":"'BP Financier'!$F$33*(('BP Financier'!$C$19+'BP Financier'!$D$19+'BP Financier'!$E$19+'BP Financier'!$F$19)/('BP Financier'!$C$16+'BP Financier'!$C$19+'BP Financier'!$D$16+'BP Financier'!$D$19+'BP Financier'!$E$16+'BP Financier'!$E$19+'BP Financier'!$F$16+'BP Financier'!$F$19))*V7131","v":{"v":45412.220092908035,"d":"45,412"}},{"v":25760.932484369845,"d":"25,761"},{"$f":"'BP Financier'!$F$44*(('BP Financier'!$C$19+'BP Financier'!$D$19+'BP Financier'!$E$19+'BP Financier'!$F$19)/('BP Financier'!$C$16+'BP Financier'!$C$19+'BP Financier'!$D$16+'BP Financier'!$D$19+'BP Financier'!$E$16+'BP Financier'!$E$19+'BP Financier'!$C$22+'BP Financier'!$D$22+'BP Financier'!$E$22+'BP Financier'!$F$22+'BP Financier'!$F$19+'BP Financier'!$F$16))*$V7131*X7131/(1-$W7131)","v":{"v":3278.993515942998,"d":"3,279"}},{"$f":"'BP Financier'!$F$44*(('BP Financier'!$C$19+'BP Financier'!$D$19+'BP Financier'!$E$19+'BP Financier'!$F$19)/('BP Financier'!$C$16+'BP Financier'!$C$19+'BP Financier'!$D$16+'BP Financier'!$D$19+'BP Financier'!$E$16+'BP Financier'!$E$19+'BP Financier'!$C$22+'BP Financier'!$D$22+'BP Financier'!$E$22+'BP Financier'!$F$22+'BP Financier'!$F$19+'BP Financier'!$F$16))*$V7131*Y7131/(1-$W7131)","v":{"v":2192.0343393873077,"d":"2,192"}},{"$f":"'BP Financier'!$F$44*(('BP Financier'!$C$19+'BP Financier'!$D$19+'BP Financier'!$E$19+'BP Financier'!$F$19)/('BP Financier'!$C$16+'BP Financier'!$C$19+'BP Financier'!$D$16+'BP Financier'!$D$19+'BP Financier'!$E$16+'BP Financier'!$E$19+'BP Financier'!$C$22+'BP Financier'!$D$22+'BP Financier'!$E$22+'BP Financier'!$F$22+'BP Financier'!$F$19+'BP Financier'!$F$16))*$V7131*Z7131/(1-$W7131)","v":{"v":17155.839003303972,"d":"17,156"}},{"$f":"'BP Financier'!$F$44*(('BP Financier'!$C$19+'BP Financier'!$D$19+'BP Financier'!$E$19+'BP Financier'!$F$19)/('BP Financier'!$C$16+'BP Financier'!$C$19+'BP Financier'!$D$16+'BP Financier'!$D$19+'BP Financier'!$E$16+'BP Financier'!$E$19+'BP Financier'!$C$22+'BP Financier'!$D$22+'BP Financier'!$E$22+'BP Financier'!$F$22+'BP Financier'!$F$19+'BP Financier'!$F$16))*$V7131*AA7131/(1-$W7131)","v":{"v":2119.570394283595,"d":"2,120"}},{"$f":"'BP Financier'!$F$44*(('BP Financier'!$C$19+'BP Financier'!$D$19+'BP Financier'!$E$19+'BP Financier'!$F$19)/('BP Financier'!$C$16+'BP Financier'!$C$19+'BP Financier'!$D$16+'BP Financier'!$D$19+'BP Financier'!$E$16+'BP Financier'!$E$19+'BP Financier'!$C$22+'BP Financier'!$D$22+'BP Financier'!$E$22+'BP Financier'!$F$22+'BP Financier'!$F$19+'BP Financier'!$F$16))*$V7131*AB7131/(1-$W7131)","v":{"v":1014.4952314519769,"d":"1,014"}},null,{"v":1.25E-3,"d":"0.13%"},{"$f":"Actif!$E$28/100","v":{"v":0.28900000000000003,"d":"28.90%"}},{"$f":"Actif!$E$30/100","v":{"v":0.09050000000000001,"d":"9.05%"}},{"$f":"Actif!$E$31/100","v":{"v":0.0605,"d":"6.05%"}},{"$f":"Actif!$E$32/100","v":{"v":0.47350000000000003,"d":"47.35%"}},{"$f":"Actif!$E$33/100","v":{"v":0.0585,"d":"5.85%"}},{"$f":"Actif!$E$29/100","v":{"v":0.027999999999999997,"d":"2.80%"}}]
[null,"#22",23,2028,"F","A_PER",{"v":0.44999999999999996,"d":"0.45"},{"v":0.38999999999999996,"d":"0.39"},0.6,0.6,85,0,{"$f":"ROUND(Primes!$P$7*V7132,0)","v":1},{"$f":"'BP Financier'!$F$33*(('BP Financier'!$C$19+'BP Financier'!$D$19+'BP Financier'!$E$19+'BP Financier'!$F$19)/('BP Financier'!$C$16+'BP Financier'!$C$19+'BP Financier'!$D$16+'BP Financier'!$D$19+'BP Financier'!$E$16+'BP Financier'!$E$19+'BP Financier'!$F$16+'BP Financier'!$F$19))*V7132","v":{"v":45412.220092908035,"d":"45,412"}},{"v":25760.932484369845,"d":"25,761"},{"$f":"'BP Financier'!$F$44*(('BP Financier'!$C$19+'BP Financier'!$D$19+'BP Financier'!$E$19+'BP Financier'!$F$19)/('BP Financier'!$C$16+'BP Financier'!$C$19+'BP Financier'!$D$16+'BP Financier'!$D$19+'BP Financier'!$E$16+'BP Financier'!$E$19+'BP Financier'!$C$22+'BP Financier'!$D$22+'BP Financier'!$E$22+'BP Financier'!$F$22+'BP Financier'!$F$19+'BP Financier'!$F$16))*$V7132*X7132/(1-$W7132)","v":{"v":3278.993515942998,"d":"3,279"}},{"$f":"'BP Financier'!$F$44*(('BP Financier'!$C$19+'BP Financier'!$D$19+'BP Financier'!$E$19+'BP Financier'!$F$19)/('BP Financier'!$C$16+'BP Financier'!$C$19+'BP Financier'!$D$16+'BP Financier'!$D$19+'BP Financier'!$E$16+'BP Financier'!$E$19+'BP Financier'!$C$22+'BP Financier'!$D$22+'BP Financier'!$E$22+'BP Financier'!$F$22+'BP Financier'!$F$19+'BP Financier'!$F$16))*$V7132*Y7132/(1-$W7132)","v":{"v":2192.0343393873077,"d":"2,192"}},{"$f":"'BP Financier'!$F$44*(('BP Financier'!$C$19+'BP Financier'!$D$19+'BP Financier'!$E$19+'BP Financier'!$F$19)/('BP Financier'!$C$16+'BP Financier'!$C$19+'BP Financier'!$D$16+'BP Financier'!$D$19+'BP Financier'!$E$16+'BP Financier'!$E$19+'BP Financier'!$C$22+'BP Financier'!$D$22+'BP Financier'!$E$22+'BP Financier'!$F$22+'BP Financier'!$F$19+'BP Financier'!$F$16))*$V7132*Z7132/(1-$W7132)","v":{"v":17155.839003303972,"d":"17,156"}},{"$f":"'BP Financier'!$F$44*(('BP Financier'!$C$19+'BP Financier'!$D$19+'BP Financier'!$E$19+'BP Financier'!$F$19)/('BP Financier'!$C$16+'BP Financier'!$C$19+'BP Financier'!$D$16+'BP Financier'!$D$19+'BP Financier'!$E$16+'BP Financier'!$E$19+'BP Financier'!$C$22+'BP Financier'!$D$22+'BP Financier'!$E$22+'BP Financier'!$F$22+'BP Financier'!$F$19+'BP Financier'!$F$16))*$V7132*AA7132/(1-$W7132)","v":{"v":2119.570394283595,"d":"2,120"}},{"$f":"'BP Financier'!$F$44*(('BP Financier'!$C$19+'BP Financier'!$D$19+'BP Financier'!$E$19+'BP Financier'!$F$19)/('BP Financier'!$C$16+'BP Financier'!$C$19+'BP Financier'!$D$16+'BP Financier'!$D$19+'BP Financier'!$E$16+'BP Financier'!$E$19+'BP Financier'!$C$22+'BP Financier'!$D$22+'BP Financier'!$E$22+'BP Financier'!$F$22+'BP Financier'!$F$19+'BP Financier'!$F$16))*$V7132*AB7132/(1-$W7132)","v":{"v":1014.4952314519769,"d":"1,014"}},null,{"v":1.25E-3,"d":"0.13%"},{"$f":"Actif!$E$28/100","v":{"v":0.28900000000000003,"d":"28.90%"}},{"$f":"Actif!$E$30/100","v":{"v":0.09050000000000001,"d":"9.05%"}},{"$f":"Actif!$E$31/100","v":{"v":0.0605,"d":"6.05%"}},{"$f":"Actif!$E$32/100","v":{"v":0.47350000000000003,"d":"47.35%"}},{"$f":"Actif!$E$33/100","v":{"v":0.0585,"d":"5.85%"}},{"$f":"Actif!$E$29/100","v":{"v":0.027999999999999997,"d":"2.80%"}}]
[null,"#23",23,2029,"F","A_PER",{"v":0.44999999999999996,"d":"0.45"},{"v":0.38999999999999996,"d":"0.39"},0.6,0.6,85,0,{"$f":"ROUND(Primes!$P$7*V7133,0)","v":1},{"$f":"'BP Financier'!$F$33*(('BP Financier'!$C$19+'BP Financier'!$D$19+'BP Financier'!$E$19+'BP Financier'!$F$19)/('BP Financier'!$C$16+'BP Financier'!$C$19+'BP Financier'!$D$16+'BP Financier'!$D$19+'BP Financier'!$E$16+'BP Financier'!$E$19+'BP Financier'!$F$16+'BP Financier'!$F$19))*V7133","v":{"v":45412.220092908035,"d":"45,412"}},{"v":25760.932484369845,"d":"25,761"},{"$f":"'BP Financier'!$F$44*(('BP Financier'!$C$19+'BP Financier'!$D$19+'BP Financier'!$E$19+'BP Financier'!$F$19)/('BP Financier'!$C$16+'BP Financier'!$C$19+'BP Financier'!$D$16+'BP Financier'!$D$19+'BP Financier'!$E$16+'BP Financier'!$E$19+'BP Financier'!$C$22+'BP Financier'!$D$22+'BP Financier'!$E$22+'BP Financier'!$F$22+'BP Financier'!$F$19+'BP Financier'!$F$16))*$V7133*X7133/(1-$W7133)","v":{"v":3278.993515942998,"d":"3,279"}},{"$f":"'BP Financier'!$F$44*(('BP Financier'!$C$19+'BP Financier'!$D$19+'BP Financier'!$E$19+'BP Financier'!$F$19)/('BP Financier'!$C$16+'BP Financier'!$C$19+'BP Financier'!$D$16+'BP Financier'!$D$19+'BP Financier'!$E$16+'BP Financier'!$E$19+'BP Financier'!$C$22+'BP Financier'!$D$22+'BP Financier'!$E$22+'BP Financier'!$F$22+'BP Financier'!$F$19+'BP Financier'!$F$16))*$V7133*Y7133/(1-$W7133)","v":{"v":2192.0343393873077,"d":"2,192"}},{"$f":"'BP Financier'!$F$44*(('BP Financier'!$C$19+'BP Financier'!$D$19+'BP Financier'!$E$19+'BP Financier'!$F$19)/('BP Financier'!$C$16+'BP Financier'!$C$19+'BP Financier'!$D$16+'BP Financier'!$D$19+'BP Financier'!$E$16+'BP Financier'!$E$19+'BP Financier'!$C$22+'BP Financier'!$D$22+'BP Financier'!$E$22+'BP Financier'!$F$22+'BP Financier'!$F$19+'BP Financier'!$F$16))*$V7133*Z7133/(1-$W7133)","v":{"v":17155.839003303972,"d":"17,156"}},{"$f":"'BP Financier'!$F$44*(('BP Financier'!$C$19+'BP Financier'!$D$19+'BP Financier'!$E$19+'BP Financier'!$F$19)/('BP Financier'!$C$16+'BP Financier'!$C$19+'BP Financier'!$D$16+'BP Financier'!$D$19+'BP Financier'!$E$16+'BP Financier'!$E$19+'BP Financier'!$C$22+'BP Financier'!$D$22+'BP Financier'!$E$22+'BP Financier'!$F$22+'BP Financier'!$F$19+'BP Financier'!$F$16))*$V7133*AA7133/(1-$W7133)","v":{"v":2119.570394283595,"d":"2,120"}},{"$f":"'BP Financier'!$F$44*(('BP Financier'!$C$19+'BP Financier'!$D$19+'BP Financier'!$E$19+'BP Financier'!$F$19)/('BP Financier'!$C$16+'BP Financier'!$C$19+'BP Financier'!$D$16+'BP Financier'!$D$19+'BP Financier'!$E$16+'BP Financier'!$E$19+'BP Financier'!$C$22+'BP Financier'!$D$22+'BP Financier'!$E$22+'BP Financier'!$F$22+'BP Financier'!$F$19+'BP Financier'!$F$16))*$V7133*AB7133/(1-$W7133)","v":{"v":1014.4952314519769,"d":"1,014"}},null,{"v":1.25E-3,"d":"0.13%"},{"$f":"Actif!$E$28/100","v":{"v":0.28900000000000003,"d":"28.90%"}},{"$f":"Actif!$E$30/100","v":{"v":0.09050000000000001,"d":"9.05%"}},{"$f":"Actif!$E$31/100","v":{"v":0.0605,"d":"6.05%"}},{"$f":"Actif!$E$32/100","v":{"v":0.47350000000000003,"d":"47.35%"}},{"$f":"Actif!$E$33/100","v":{"v":0.0585,"d":"5.85%"}},{"$f":"Actif!$E$29/100","v":{"v":0.027999999999999997,"d":"2.80%"}}]
[null,"#24",23,2030,"F","A_PER",{"v":0.44999999999999996,"d":"0.45"},{"v":0.38999999999999996,"d":"0.39"},0.6,0.6,85,0,{"$f":"ROUND(Primes!$P$7*V7134,0)","v":1},{"$f":"'BP Financier'!$F$33*(('BP Financier'!$C$19+'BP Financier'!$D$19+'BP Financier'!$E$19+'BP Financier'!$F$19)/('BP Financier'!$C$16+'BP Financier'!$C$19+'BP Financier'!$D$16+'BP Financier'!$D$19+'BP Financier'!$E$16+'BP Financier'!$E$19+'BP Financier'!$F$16+'BP Financier'!$F$19))*V7134","v":{"v":45412.220092908035,"d":"45,412"}},{"v":25760.932484369845,"d":"25,761"},{"$f":"'BP Financier'!$F$44*(('BP Financier'!$C$19+'BP Financier'!$D$19+'BP Financier'!$E$19+'BP Financier'!$F$19)/('BP Financier'!$C$16+'BP Financier'!$C$19+'BP Financier'!$D$16+'BP Financier'!$D$19+'BP Financier'!$E$16+'BP Financier'!$E$19+'BP Financier'!$C$22+'BP Financier'!$D$22+'BP Financier'!$E$22+'BP Financier'!$F$22+'BP Financier'!$F$19+'BP Financier'!$F$16))*$V7134*X7134/(1-$W7134)","v":{"v":3278.993515942998,"d":"3,279"}},{"$f":"'BP Financier'!$F$44*(('BP Financier'!$C$19+'BP Financier'!$D$19+'BP Financier'!$E$19+'BP Financier'!$F$19)/('BP Financier'!$C$16+'BP Financier'!$C$19+'BP Financier'!$D$16+'BP Financier'!$D$19+'BP Financier'!$E$16+'BP Financier'!$E$19+'BP Financier'!$C$22+'BP Financier'!$D$22+'BP Financier'!$E$22+'BP Financier'!$F$22+'BP Financier'!$F$19+'BP Financier'!$F$16))*$V7134*Y7134/(1-$W7134)","v":{"v":2192.0343393873077,"d":"2,192"}},{"$f":"'BP Financier'!$F$44*(('BP Financier'!$C$19+'BP Financier'!$D$19+'BP Financier'!$E$19+'BP Financier'!$F$19)/('BP Financier'!$C$16+'BP Financier'!$C$19+'BP Financier'!$D$16+'BP Financier'!$D$19+'BP Financier'!$E$16+'BP Financier'!$E$19+'BP Financier'!$C$22+'BP Financier'!$D$22+'BP Financier'!$E$22+'BP Financier'!$F$22+'BP Financier'!$F$19+'BP Financier'!$F$16))*$V7134*Z7134/(1-$W7134)","v":{"v":17155.839003303972,"d":"17,156"}},{"$f":"'BP Financier'!$F$44*(('BP Financier'!$C$19+'BP Financier'!$D$19+'BP Financier'!$E$19+'BP Financier'!$F$19)/('BP Financier'!$C$16+'BP Financier'!$C$19+'BP Financier'!$D$16+'BP Financier'!$D$19+'BP Financier'!$E$16+'BP Financier'!$E$19+'BP Financier'!$C$22+'BP Financier'!$D$22+'BP Financier'!$E$22+'BP Financier'!$F$22+'BP Financier'!$F$19+'BP Financier'!$F$16))*$V7134*AA7134/(1-$W7134)","v":{"v":2119.570394283595,"d":"2,120"}},{"$f":"'BP Financier'!$F$44*(('BP Financier'!$C$19+'BP Financier'!$D$19+'BP Financier'!$E$19+'BP Financier'!$F$19)/('BP Financier'!$C$16+'BP Financier'!$C$19+'BP Financier'!$D$16+'BP Financier'!$D$19+'BP Financier'!$E$16+'BP Financier'!$E$19+'BP Financier'!$C$22+'BP Financier'!$D$22+'BP Financier'!$E$22+'BP Financier'!$F$22+'BP Financier'!$F$19+'BP Financier'!$F$16))*$V7134*AB7134/(1-$W7134)","v":{"v":1014.4952314519769,"d":"1,014"}},null,{"v":1.25E-3,"d":"0.13%"},{"$f":"Actif!$E$28/100","v":{"v":0.28900000000000003,"d":"28.90%"}},{"$f":"Actif!$E$30/100","v":{"v":0.09050000000000001,"d":"9.05%"}},{"$f":"Actif!$E$31/100","v":{"v":0.0605,"d":"6.05%"}},{"$f":"Actif!$E$32/100","v":{"v":0.47350000000000003,"d":"47.35%"}},{"$f":"Actif!$E$33/100","v":{"v":0.0585,"d":"5.85%"}},{"$f":"Actif!$E$29/100","v":{"v":0.027999999999999997,"d":"2.80%"}}]
[null,"#25",24,2026,"H","A_PER",{"v":0.44999999999999996,"d":"0.45"},{"v":0.38999999999999996,"d":"0.39"},0.6,0.6,85,0,{"$f":"ROUND(Primes!$P$7*V7135,0)","v":1},{"$f":"'BP Financier'!$F$33*(('BP Financier'!$C$19+'BP Financier'!$D$19+'BP Financier'!$E$19+'BP Financier'!$F$19)/('BP Financier'!$C$16+'BP Financier'!$C$19+'BP Financier'!$D$16+'BP Financier'!$D$19+'BP Financier'!$E$16+'BP Financier'!$E$19+'BP Financier'!$F$16+'BP Financier'!$F$19))*V7135","v":{"v":45412.220092908035,"d":"45,412"}},{"v":25760.932484369845,"d":"25,761"},{"$f":"'BP Financier'!$F$44*(('BP Financier'!$C$19+'BP Financier'!$D$19+'BP Financier'!$E$19+'BP Financier'!$F$19)/('BP Financier'!$C$16+'BP Financier'!$C$19+'BP Financier'!$D$16+'BP Financier'!$D$19+'BP Financier'!$E$16+'BP Financier'!$E$19+'BP Financier'!$C$22+'BP Financier'!$D$22+'BP Financier'!$E$22+'BP Financier'!$F$22+'BP Financier'!$F$19+'BP Financier'!$F$16))*$V7135*X7135/(1-$W7135)","v":{"v":3278.993515942998,"d":"3,279"}},{"$f":"'BP Financier'!$F$44*(('BP Financier'!$C$19+'BP Financier'!$D$19+'BP Financier'!$E$19+'BP Financier'!$F$19)/('BP Financier'!$C$16+'BP Financier'!$C$19+'BP Financier'!$D$16+'BP Financier'!$D$19+'BP Financier'!$E$16+'BP Financier'!$E$19+'BP Financier'!$C$22+'BP Financier'!$D$22+'BP Financier'!$E$22+'BP Financier'!$F$22+'BP Financier'!$F$19+'BP Financier'!$F$16))*$V7135*Y7135/(1-$W7135)","v":{"v":2192.0343393873077,"d":"2,192"}},{"$f":"'BP Financier'!$F$44*(('BP Financier'!$C$19+'BP Financier'!$D$19+'BP Financier'!$E$19+'BP Financier'!$F$19)/('BP Financier'!$C$16+'BP Financier'!$C$19+'BP Financier'!$D$16+'BP Financier'!$D$19+'BP Financier'!$E$16+'BP Financier'!$E$19+'BP Financier'!$C$22+'BP Financier'!$D$22+'BP Financier'!$E$22+'BP Financier'!$F$22+'BP Financier'!$F$19+'BP Financier'!$F$16))*$V7135*Z7135/(1-$W7135)","v":{"v":17155.839003303972,"d":"17,156"}},{"$f":"'BP Financier'!$F$44*(('BP Financier'!$C$19+'BP Financier'!$D$19+'BP Financier'!$E$19+'BP Financier'!$F$19)/('BP Financier'!$C$16+'BP Financier'!$C$19+'BP Financier'!$D$16+'BP Financier'!$D$19+'BP Financier'!$E$16+'BP Financier'!$E$19+'BP Financier'!$C$22+'BP Financier'!$D$22+'BP Financier'!$E$22+'BP Financier'!$F$22+'BP Financier'!$F$19+'BP Financier'!$F$16))*$V7135*AA7135/(1-$W7135)","v":{"v":2119.570394283595,"d":"2,120"}},{"$f":"'BP Financier'!$F$44*(('BP Financier'!$C$19+'BP Financier'!$D$19+'BP Financier'!$E$19+'BP Financier'!$F$19)/('BP Financier'!$C$16+'BP Financier'!$C$19+'BP Financier'!$D$16+'BP Financier'!$D$19+'BP Financier'!$E$16+'BP Financier'!$E$19+'BP Financier'!$C$22+'BP Financier'!$D$22+'BP Financier'!$E$22+'BP Financier'!$F$22+'BP Financier'!$F$19+'BP Financier'!$F$16))*$V7135*AB7135/(1-$W7135)","v":{"v":1014.4952314519769,"d":"1,014"}},null,{"v":1.25E-3,"d":"0.13%"},{"$f":"Actif!$E$28/100","v":{"v":0.28900000000000003,"d":"28.90%"}},{"$f":"Actif!$E$30/100","v":{"v":0.09050000000000001,"d":"9.05%"}},{"$f":"Actif!$E$31/100","v":{"v":0.0605,"d":"6.05%"}},{"$f":"Actif!$E$32/100","v":{"v":0.47350000000000003,"d":"47.35%"}},{"$f":"Actif!$E$33/100","v":{"v":0.0585,"d":"5.85%"}},{"$f":"Actif!$E$29/100","v":{"v":0.027999999999999997,"d":"2.80%"}}]
[null,"#26",24,2028,"H","A_PER",{"v":0.44999999999999996,"d":"0.45"},{"v":0.38999999999999996,"d":"0.39"},0.6,0.6,85,0,{"$f":"ROUND(Primes!$P$7*V7136,0)","v":1},{"$f":"'BP Financier'!$F$33*(('BP Financier'!$C$19+'BP Financier'!$D$19+'BP Financier'!$E$19+'BP Financier'!$F$19)/('BP Financier'!$C$16+'BP Financier'!$C$19+'BP Financier'!$D$16+'BP Financier'!$D$19+'BP Financier'!$E$16+'BP Financier'!$E$19+'BP Financier'!$F$16+'BP Financier'!$F$19))*V7136","v":{"v":45412.220092908035,"d":"45,412"}},{"v":25760.932484369845,"d":"25,761"},{"$f":"'BP Financier'!$F$44*(('BP Financier'!$C$19+'BP Financier'!$D$19+'BP Financier'!$E$19+'BP Financier'!$F$19)/('BP Financier'!$C$16+'BP Financier'!$C$19+'BP Financier'!$D$16+'BP Financier'!$D$19+'BP Financier'!$E$16+'BP Financier'!$E$19+'BP Financier'!$C$22+'BP Financier'!$D$22+'BP Financier'!$E$22+'BP Financier'!$F$22+'BP Financier'!$F$19+'BP Financier'!$F$16))*$V7136*X7136/(1-$W7136)","v":{"v":3278.993515942998,"d":"3,279"}},{"$f":"'BP Financier'!$F$44*(('BP Financier'!$C$19+'BP Financier'!$D$19+'BP Financier'!$E$19+'BP Financier'!$F$19)/('BP Financier'!$C$16+'BP Financier'!$C$19+'BP Financier'!$D$16+'BP Financier'!$D$19+'BP Financier'!$E$16+'BP Financier'!$E$19+'BP Financier'!$C$22+'BP Financier'!$D$22+'BP Financier'!$E$22+'BP Financier'!$F$22+'BP Financier'!$F$19+'BP Financier'!$F$16))*$V7136*Y7136/(1-$W7136)","v":{"v":2192.0343393873077,"d":"2,192"}},{"$f":"'BP Financier'!$F$44*(('BP Financier'!$C$19+'BP Financier'!$D$19+'BP Financier'!$E$19+'BP Financier'!$F$19)/('BP Financier'!$C$16+'BP Financier'!$C$19+'BP Financier'!$D$16+'BP Financier'!$D$19+'BP Financier'!$E$16+'BP Financier'!$E$19+'BP Financier'!$C$22+'BP Financier'!$D$22+'BP Financier'!$E$22+'BP Financier'!$F$22+'BP Financier'!$F$19+'BP Financier'!$F$16))*$V7136*Z7136/(1-$W7136)","v":{"v":17155.839003303972,"d":"17,156"}},{"$f":"'BP Financier'!$F$44*(('BP Financier'!$C$19+'BP Financier'!$D$19+'BP Financier'!$E$19+'BP Financier'!$F$19)/('BP Financier'!$C$16+'BP Financier'!$C$19+'BP Financier'!$D$16+'BP Financier'!$D$19+'BP Financier'!$E$16+'BP Financier'!$E$19+'BP Financier'!$C$22+'BP Financier'!$D$22+'BP Financier'!$E$22+'BP Financier'!$F$22+'BP Financier'!$F$19+'BP Financier'!$F$16))*$V7136*AA7136/(1-$W7136)","v":{"v":2119.570394283595,"d":"2,120"}},{"$f":"'BP Financier'!$F$44*(('BP Financier'!$C$19+'BP Financier'!$D$19+'BP Financier'!$E$19+'BP Financier'!$F$19)/('BP Financier'!$C$16+'BP Financier'!$C$19+'BP Financier'!$D$16+'BP Financier'!$D$19+'BP Financier'!$E$16+'BP Financier'!$E$19+'BP Financier'!$C$22+'BP Financier'!$D$22+'BP Financier'!$E$22+'BP Financier'!$F$22+'BP Financier'!$F$19+'BP Financier'!$F$16))*$V7136*AB7136/(1-$W7136)","v":{"v":1014.4952314519769,"d":"1,014"}},null,{"v":1.25E-3,"d":"0.13%"},{"$f":"Actif!$E$28/100","v":{"v":0.28900000000000003,"d":"28.90%"}},{"$f":"Actif!$E$30/100","v":{"v":0.09050000000000001,"d":"9.05%"}},{"$f":"Actif!$E$31/100","v":{"v":0.0605,"d":"6.05%"}},{"$f":"Actif!$E$32/100","v":{"v":0.47350000000000003,"d":"47.35%"}},{"$f":"Actif!$E$33/100","v":{"v":0.0585,"d":"5.85%"}},{"$f":"Actif!$E$29/100","v":{"v":0.027999999999999997,"d":"2.80%"}}]
[null,"#27",24,2029,"H","A_PER",{"v":0.44999999999999996,"d":"0.45"},{"v":0.38999999999999996,"d":"0.39"},0.6,0.6,85,0,{"$f":"ROUND(Primes!$P$7*V7137,0)","v":1},{"$f":"'BP Financier'!$F$33*(('BP Financier'!$C$19+'BP Financier'!$D$19+'BP Financier'!$E$19+'BP Financier'!$F$19)/('BP Financier'!$C$16+'BP Financier'!$C$19+'BP Financier'!$D$16+'BP Financier'!$D$19+'BP Financier'!$E$16+'BP Financier'!$E$19+'BP Financier'!$F$16+'BP Financier'!$F$19))*V7137","v":{"v":45412.220092908035,"d":"45,412"}},{"v":25760.932484369845,"d":"25,761"},{"$f":"'BP Financier'!$F$44*(('BP Financier'!$C$19+'BP Financier'!$D$19+'BP Financier'!$E$19+'BP Financier'!$F$19)/('BP Financier'!$C$16+'BP Financier'!$C$19+'BP Financier'!$D$16+'BP Financier'!$D$19+'BP Financier'!$E$16+'BP Financier'!$E$19+'BP Financier'!$C$22+'BP Financier'!$D$22+'BP Financier'!$E$22+'BP Financier'!$F$22+'BP Financier'!$F$19+'BP Financier'!$F$16))*$V7137*X7137/(1-$W7137)","v":{"v":3278.993515942998,"d":"3,279"}},{"$f":"'BP Financier'!$F$44*(('BP Financier'!$C$19+'BP Financier'!$D$19+'BP Financier'!$E$19+'BP Financier'!$F$19)/('BP Financier'!$C$16+'BP Financier'!$C$19+'BP Financier'!$D$16+'BP Financier'!$D$19+'BP Financier'!$E$16+'BP Financier'!$E$19+'BP Financier'!$C$22+'BP Financier'!$D$22+'BP Financier'!$E$22+'BP Financier'!$F$22+'BP Financier'!$F$19+'BP Financier'!$F$16))*$V7137*Y7137/(1-$W7137)","v":{"v":2192.0343393873077,"d":"2,192"}},{"$f":"'BP Financier'!$F$44*(('BP Financier'!$C$19+'BP Financier'!$D$19+'BP Financier'!$E$19+'BP Financier'!$F$19)/('BP Financier'!$C$16+'BP Financier'!$C$19+'BP Financier'!$D$16+'BP Financier'!$D$19+'BP Financier'!$E$16+'BP Financier'!$E$19+'BP Financier'!$C$22+'BP Financier'!$D$22+'BP Financier'!$E$22+'BP Financier'!$F$22+'BP Financier'!$F$19+'BP Financier'!$F$16))*$V7137*Z7137/(1-$W7137)","v":{"v":17155.839003303972,"d":"17,156"}},{"$f":"'BP Financier'!$F$44*(('BP Financier'!$C$19+'BP Financier'!$D$19+'BP Financier'!$E$19+'BP Financier'!$F$19)/('BP Financier'!$C$16+'BP Financier'!$C$19+'BP Financier'!$D$16+'BP Financier'!$D$19+'BP Financier'!$E$16+'BP Financier'!$E$19+'BP Financier'!$C$22+'BP Financier'!$D$22+'BP Financier'!$E$22+'BP Financier'!$F$22+'BP Financier'!$F$19+'BP Financier'!$F$16))*$V7137*AA7137/(1-$W7137)","v":{"v":2119.570394283595,"d":"2,120"}},{"$f":"'BP Financier'!$F$44*(('BP Financier'!$C$19+'BP Financier'!$D$19+'BP Financier'!$E$19+'BP Financier'!$F$19)/('BP Financier'!$C$16+'BP Financier'!$C$19+'BP Financier'!$D$16+'BP Financier'!$D$19+'BP Financier'!$E$16+'BP Financier'!$E$19+'BP Financier'!$C$22+'BP Financier'!$D$22+'BP Financier'!$E$22+'BP Financier'!$F$22+'BP Financier'!$F$19+'BP Financier'!$F$16))*$V7137*AB7137/(1-$W7137)","v":{"v":1014.4952314519769,"d":"1,014"}},null,{"v":1.25E-3,"d":"0.13%"},{"$f":"Actif!$E$28/100","v":{"v":0.28900000000000003,"d":"28.90%"}},{"$f":"Actif!$E$30/100","v":{"v":0.09050000000000001,"d":"9.05%"}},{"$f":"Actif!$E$31/100","v":{"v":0.0605,"d":"6.05%"}},{"$f":"Actif!$E$32/100","v":{"v":0.47350000000000003,"d":"47.35%"}},{"$f":"Actif!$E$33/100","v":{"v":0.0585,"d":"5.85%"}},{"$f":"Actif!$E$29/100","v":{"v":0.027999999999999997,"d":"2.80%"}}]
[null,"#28",24,2030,"H","A_PER",{"v":0.44999999999999996,"d":"0.45"},{"v":0.38999999999999996,"d":"0.39"},0.6,0.6,85,0,{"$f":"ROUND(Primes!$P$7*V7138,0)","v":1},{"$f":"'BP Financier'!$F$33*(('BP Financier'!$C$19+'BP Financier'!$D$19+'BP Financier'!$E$19+'BP Financier'!$F$19)/('BP Financier'!$C$16+'BP Financier'!$C$19+'BP Financier'!$D$16+'BP Financier'!$D$19+'BP Financier'!$E$16+'BP Financier'!$E$19+'BP Financier'!$F$16+'BP Financier'!$F$19))*V7138","v":{"v":45412.220092908035,"d":"45,412"}},{"v":25760.932484369845,"d":"25,761"},{"$f":"'BP Financier'!$F$44*(('BP Financier'!$C$19+'BP Financier'!$D$19+'BP Financier'!$E$19+'BP Financier'!$F$19)/('BP Financier'!$C$16+'BP Financier'!$C$19+'BP Financier'!$D$16+'BP Financier'!$D$19+'BP Financier'!$E$16+'BP Financier'!$E$19+'BP Financier'!$C$22+'BP Financier'!$D$22+'BP Financier'!$E$22+'BP Financier'!$F$22+'BP Financier'!$F$19+'BP Financier'!$F$16))*$V7138*X7138/(1-$W7138)","v":{"v":3278.993515942998,"d":"3,279"}},{"$f":"'BP Financier'!$F$44*(('BP Financier'!$C$19+'BP Financier'!$D$19+'BP Financier'!$E$19+'BP Financier'!$F$19)/('BP Financier'!$C$16+'BP Financier'!$C$19+'BP Financier'!$D$16+'BP Financier'!$D$19+'BP Financier'!$E$16+'BP Financier'!$E$19+'BP Financier'!$C$22+'BP Financier'!$D$22+'BP Financier'!$E$22+'BP Financier'!$F$22+'BP Financier'!$F$19+'BP Financier'!$F$16))*$V7138*Y7138/(1-$W7138)","v":{"v":2192.0343393873077,"d":"2,192"}},{"$f":"'BP Financier'!$F$44*(('BP Financier'!$C$19+'BP Financier'!$D$19+'BP Financier'!$E$19+'BP Financier'!$F$19)/('BP Financier'!$C$16+'BP Financier'!$C$19+'BP Financier'!$D$16+'BP Financier'!$D$19+'BP Financier'!$E$16+'BP Financier'!$E$19+'BP Financier'!$C$22+'BP Financier'!$D$22+'BP Financier'!$E$22+'BP Financier'!$F$22+'BP Financier'!$F$19+'BP Financier'!$F$16))*$V7138*Z7138/(1-$W7138)","v":{"v":17155.839003303972,"d":"17,156"}},{"$f":"'BP Financier'!$F$44*(('BP Financier'!$C$19+'BP Financier'!$D$19+'BP Financier'!$E$19+'BP Financier'!$F$19)/('BP Financier'!$C$16+'BP Financier'!$C$19+'BP Financier'!$D$16+'BP Financier'!$D$19+'BP Financier'!$E$16+'BP Financier'!$E$19+'BP Financier'!$C$22+'BP Financier'!$D$22+'BP Financier'!$E$22+'BP Financier'!$F$22+'BP Financier'!$F$19+'BP Financier'!$F$16))*$V7138*AA7138/(1-$W7138)","v":{"v":2119.570394283595,"d":"2,120"}},{"$f":"'BP Financier'!$F$44*(('BP Financier'!$C$19+'BP Financier'!$D$19+'BP Financier'!$E$19+'BP Financier'!$F$19)/('BP Financier'!$C$16+'BP Financier'!$C$19+'BP Financier'!$D$16+'BP Financier'!$D$19+'BP Financier'!$E$16+'BP Financier'!$E$19+'BP Financier'!$C$22+'BP Financier'!$D$22+'BP Financier'!$E$22+'BP Financier'!$F$22+'BP Financier'!$F$19+'BP Financier'!$F$16))*$V7138*AB7138/(1-$W7138)","v":{"v":1014.4952314519769,"d":"1,014"}},null,{"v":1.25E-3,"d":"0.13%"},{"$f":"Actif!$E$28/100","v":{"v":0.28900000000000003,"d":"28.90%"}},{"$f":"Actif!$E$30/100","v":{"v":0.09050000000000001,"d":"9.05%"}},{"$f":"Actif!$E$31/100","v":{"v":0.0605,"d":"6.05%"}},{"$f":"Actif!$E$32/100","v":{"v":0.47350000000000003,"d":"47.35%"}},{"$f":"Actif!$E$33/100","v":{"v":0.0585,"d":"5.85%"}},{"$f":"Actif!$E$29/100","v":{"v":0.027999999999999997,"d":"2.80%"}}]
[null,"#29",25,2026,"H","A_PER",{"v":0.44999999999999996,"d":"0.45"},{"v":0.38999999999999996,"d":"0.39"},0.6,0.6,85,0,{"$f":"ROUND(Primes!$P$7*V7139,0)","v":1},{"$f":"'BP Financier'!$F$33*(('BP Financier'!$C$19+'BP Financier'!$D$19+'BP Financier'!$E$19+'BP Financier'!$F$19)/('BP Financier'!$C$16+'BP Financier'!$C$19+'BP Financier'!$D$16+'BP Financier'!$D$19+'BP Financier'!$E$16+'BP Financier'!$E$19+'BP Financier'!$F$16+'BP Financier'!$F$19))*V7139","v":{"v":45412.220092908035,"d":"45,412"}},{"v":25760.932484369845,"d":"25,761"},{"$f":"'BP Financier'!$F$44*(('BP Financier'!$C$19+'BP Financier'!$D$19+'BP Financier'!$E$19+'BP Financier'!$F$19)/('BP Financier'!$C$16+'BP Financier'!$C$19+'BP Financier'!$D$16+'BP Financier'!$D$19+'BP Financier'!$E$16+'BP Financier'!$E$19+'BP Financier'!$C$22+'BP Financier'!$D$22+'BP Financier'!$E$22+'BP Financier'!$F$22+'BP Financier'!$F$19+'BP Financier'!$F$16))*$V7139*X7139/(1-$W7139)","v":{"v":3278.993515942998,"d":"3,279"}},{"$f":"'BP Financier'!$F$44*(('BP Financier'!$C$19+'BP Financier'!$D$19+'BP Financier'!$E$19+'BP Financier'!$F$19)/('BP Financier'!$C$16+'BP Financier'!$C$19+'BP Financier'!$D$16+'BP Financier'!$D$19+'BP Financier'!$E$16+'BP Financier'!$E$19+'BP Financier'!$C$22+'BP Financier'!$D$22+'BP Financier'!$E$22+'BP Financier'!$F$22+'BP Financier'!$F$19+'BP Financier'!$F$16))*$V7139*Y7139/(1-$W7139)","v":{"v":2192.0343393873077,"d":"2,192"}},{"$f":"'BP Financier'!$F$44*(('BP Financier'!$C$19+'BP Financier'!$D$19+'BP Financier'!$E$19+'BP Financier'!$F$19)/('BP Financier'!$C$16+'BP Financier'!$C$19+'BP Financier'!$D$16+'BP Financier'!$D$19+'BP Financier'!$E$16+'BP Financier'!$E$19+'BP Financier'!$C$22+'BP Financier'!$D$22+'BP Financier'!$E$22+'BP Financier'!$F$22+'BP Financier'!$F$19+'BP Financier'!$F$16))*$V7139*Z7139/(1-$W7139)","v":{"v":17155.839003303972,"d":"17,156"}},{"$f":"'BP Financier'!$F$44*(('BP Financier'!$C$19+'BP Financier'!$D$19+'BP Financier'!$E$19+'BP Financier'!$F$19)/('BP Financier'!$C$16+'BP Financier'!$C$19+'BP Financier'!$D$16+'BP Financier'!$D$19+'BP Financier'!$E$16+'BP Financier'!$E$19+'BP Financier'!$C$22+'BP Financier'!$D$22+'BP Financier'!$E$22+'BP Financier'!$F$22+'BP Financier'!$F$19+'BP Financier'!$F$16))*$V7139*AA7139/(1-$W7139)","v":{"v":2119.570394283595,"d":"2,120"}},{"$f":"'BP Financier'!$F$44*(('BP Financier'!$C$19+'BP Financier'!$D$19+'BP Financier'!$E$19+'BP Financier'!$F$19)/('BP Financier'!$C$16+'BP Financier'!$C$19+'BP Financier'!$D$16+'BP Financier'!$D$19+'BP Financier'!$E$16+'BP Financier'!$E$19+'BP Financier'!$C$22+'BP Financier'!$D$22+'BP Financier'!$E$22+'BP Financier'!$F$22+'BP Financier'!$F$19+'BP Financier'!$F$16))*$V7139*AB7139/(1-$W7139)","v":{"v":1014.4952314519769,"d":"1,014"}},null,{"v":1.25E-3,"d":"0.13%"},{"$f":"Actif!$E$28/100","v":{"v":0.28900000000000003,"d":"28.90%"}},{"$f":"Actif!$E$30/100","v":{"v":0.09050000000000001,"d":"9.05%"}},{"$f":"Actif!$E$31/100","v":{"v":0.0605,"d":"6.05%"}},{"$f":"Actif!$E$32/100","v":{"v":0.47350000000000003,"d":"47.35%"}},{"$f":"Actif!$E$33/100","v":{"v":0.0585,"d":"5.85%"}},{"$f":"Actif!$E$29/100","v":{"v":0.027999999999999997,"d":"2.80%"}}]
[null,"#30",25,2028,"H","A_PER",{"v":0.44999999999999996,"d":"0.45"},{"v":0.38999999999999996,"d":"0.39"},0.6,0.6,85,0,{"$f":"ROUND(Primes!$P$7*V7140,0)","v":1},{"$f":"'BP Financier'!$F$33*(('BP Financier'!$C$19+'BP Financier'!$D$19+'BP Financier'!$E$19+'BP Financier'!$F$19)/('BP Financier'!$C$16+'BP Financier'!$C$19+'BP Financier'!$D$16+'BP Financier'!$D$19+'BP Financier'!$E$16+'BP Financier'!$E$19+'BP Financier'!$F$16+'BP Financier'!$F$19))*V7140","v":{"v":45412.220092908035,"d":"45,412"}},{"v":25760.932484369845,"d":"25,761"},{"$f":"'BP Financier'!$F$44*(('BP Financier'!$C$19+'BP Financier'!$D$19+'BP Financier'!$E$19+'BP Financier'!$F$19)/('BP Financier'!$C$16+'BP Financier'!$C$19+'BP Financier'!$D$16+'BP Financier'!$D$19+'BP Financier'!$E$16+'BP Financier'!$E$19+'BP Financier'!$C$22+'BP Financier'!$D$22+'BP Financier'!$E$22+'BP Financier'!$F$22+'BP Financier'!$F$19+'BP Financier'!$F$16))*$V7140*X7140/(1-$W7140)","v":{"v":3278.993515942998,"d":"3,279"}},{"$f":"'BP Financier'!$F$44*(('BP Financier'!$C$19+'BP Financier'!$D$19+'BP Financier'!$E$19+'BP Financier'!$F$19)/('BP Financier'!$C$16+'BP Financier'!$C$19+'BP Financier'!$D$16+'BP Financier'!$D$19+'BP Financier'!$E$16+'BP Financier'!$E$19+'BP Financier'!$C$22+'BP Financier'!$D$22+'BP Financier'!$E$22+'BP Financier'!$F$22+'BP Financier'!$F$19+'BP Financier'!$F$16))*$V7140*Y7140/(1-$W7140)","v":{"v":2192.0343393873077,"d":"2,192"}},{"$f":"'BP Financier'!$F$44*(('BP Financier'!$C$19+'BP Financier'!$D$19+'BP Financier'!$E$19+'BP Financier'!$F$19)/('BP Financier'!$C$16+'BP Financier'!$C$19+'BP Financier'!$D$16+'BP Financier'!$D$19+'BP Financier'!$E$16+'BP Financier'!$E$19+'BP Financier'!$C$22+'BP Financier'!$D$22+'BP Financier'!$E$22+'BP Financier'!$F$22+'BP Financier'!$F$19+'BP Financier'!$F$16))*$V7140*Z7140/(1-$W7140)","v":{"v":17155.839003303972,"d":"17,156"}},{"$f":"'BP Financier'!$F$44*(('BP Financier'!$C$19+'BP Financier'!$D$19+'BP Financier'!$E$19+'BP Financier'!$F$19)/('BP Financier'!$C$16+'BP Financier'!$C$19+'BP Financier'!$D$16+'BP Financier'!$D$19+'BP Financier'!$E$16+'BP Financier'!$E$19+'BP Financier'!$C$22+'BP Financier'!$D$22+'BP Financier'!$E$22+'BP Financier'!$F$22+'BP Financier'!$F$19+'BP Financier'!$F$16))*$V7140*AA7140/(1-$W7140)","v":{"v":2119.570394283595,"d":"2,120"}},{"$f":"'BP Financier'!$F$44*(('BP Financier'!$C$19+'BP Financier'!$D$19+'BP Financier'!$E$19+'BP Financier'!$F$19)/('BP Financier'!$C$16+'BP Financier'!$C$19+'BP Financier'!$D$16+'BP Financier'!$D$19+'BP Financier'!$E$16+'BP Financier'!$E$19+'BP Financier'!$C$22+'BP Financier'!$D$22+'BP Financier'!$E$22+'BP Financier'!$F$22+'BP Financier'!$F$19+'BP Financier'!$F$16))*$V7140*AB7140/(1-$W7140)","v":{"v":1014.4952314519769,"d":"1,014"}},null,{"v":1.25E-3,"d":"0.13%"},{"$f":"Actif!$E$28/100","v":{"v":0.28900000000000003,"d":"28.90%"}},{"$f":"Actif!$E$30/100","v":{"v":0.09050000000000001,"d":"9.05%"}},{"$f":"Actif!$E$31/100","v":{"v":0.0605,"d":"6.05%"}},{"$f":"Actif!$E$32/100","v":{"v":0.47350000000000003,"d":"47.35%"}},{"$f":"Actif!$E$33/100","v":{"v":0.0585,"d":"5.85%"}},{"$f":"Actif!$E$29/100","v":{"v":0.027999999999999997,"d":"2.80%"}}]
[null,"#31",25,2029,"H","A_PER",{"v":0.44999999999999996,"d":"0.45"},{"v":0.38999999999999996,"d":"0.39"},0.6,0.6,85,0,{"$f":"ROUND(Primes!$P$7*V7141,0)","v":1},{"$f":"'BP Financier'!$F$33*(('BP Financier'!$C$19+'BP Financier'!$D$19+'BP Financier'!$E$19+'BP Financier'!$F$19)/('BP Financier'!$C$16+'BP Financier'!$C$19+'BP Financier'!$D$16+'BP Financier'!$D$19+'BP Financier'!$E$16+'BP Financier'!$E$19+'BP Financier'!$F$16+'BP Financier'!$F$19))*V7141","v":{"v":45412.220092908035,"d":"45,412"}},{"v":25760.932484369845,"d":"25,761"},{"$f":"'BP Financier'!$F$44*(('BP Financier'!$C$19+'BP Financier'!$D$19+'BP Financier'!$E$19+'BP Financier'!$F$19)/('BP Financier'!$C$16+'BP Financier'!$C$19+'BP Financier'!$D$16+'BP Financier'!$D$19+'BP Financier'!$E$16+'BP Financier'!$E$19+'BP Financier'!$C$22+'BP Financier'!$D$22+'BP Financier'!$E$22+'BP Financier'!$F$22+'BP Financier'!$F$19+'BP Financier'!$F$16))*$V7141*X7141/(1-$W7141)","v":{"v":3278.993515942998,"d":"3,279"}},{"$f":"'BP Financier'!$F$44*(('BP Financier'!$C$19+'BP Financier'!$D$19+'BP Financier'!$E$19+'BP Financier'!$F$19)/('BP Financier'!$C$16+'BP Financier'!$C$19+'BP Financier'!$D$16+'BP Financier'!$D$19+'BP Financier'!$E$16+'BP Financier'!$E$19+'BP Financier'!$C$22+'BP Financier'!$D$22+'BP Financier'!$E$22+'BP Financier'!$F$22+'BP Financier'!$F$19+'BP Financier'!$F$16))*$V7141*Y7141/(1-$W7141)","v":{"v":2192.0343393873077,"d":"2,192"}},{"$f":"'BP Financier'!$F$44*(('BP Financier'!$C$19+'BP Financier'!$D$19+'BP Financier'!$E$19+'BP Financier'!$F$19)/('BP Financier'!$C$16+'BP Financier'!$C$19+'BP Financier'!$D$16+'BP Financier'!$D$19+'BP Financier'!$E$16+'BP Financier'!$E$19+'BP Financier'!$C$22+'BP Financier'!$D$22+'BP Financier'!$E$22+'BP Financier'!$F$22+'BP Financier'!$F$19+'BP Financier'!$F$16))*$V7141*Z7141/(1-$W7141)","v":{"v":17155.839003303972,"d":"17,156"}},{"$f":"'BP Financier'!$F$44*(('BP Financier'!$C$19+'BP Financier'!$D$19+'BP Financier'!$E$19+'BP Financier'!$F$19)/('BP Financier'!$C$16+'BP Financier'!$C$19+'BP Financier'!$D$16+'BP Financier'!$D$19+'BP Financier'!$E$16+'BP Financier'!$E$19+'BP Financier'!$C$22+'BP Financier'!$D$22+'BP Financier'!$E$22+'BP Financier'!$F$22+'BP Financier'!$F$19+'BP Financier'!$F$16))*$V7141*AA7141/(1-$W7141)","v":{"v":2119.570394283595,"d":"2,120"}},{"$f":"'BP Financier'!$F$44*(('BP Financier'!$C$19+'BP Financier'!$D$19+'BP Financier'!$E$19+'BP Financier'!$F$19)/('BP Financier'!$C$16+'BP Financier'!$C$19+'BP Financier'!$D$16+'BP Financier'!$D$19+'BP Financier'!$E$16+'BP Financier'!$E$19+'BP Financier'!$C$22+'BP Financier'!$D$22+'BP Financier'!$E$22+'BP Financier'!$F$22+'BP Financier'!$F$19+'BP Financier'!$F$16))*$V7141*AB7141/(1-$W7141)","v":{"v":1014.4952314519769,"d":"1,014"}},null,{"v":1.25E-3,"d":"0.13%"},{"$f":"Actif!$E$28/100","v":{"v":0.28900000000000003,"d":"28.90%"}},{"$f":"Actif!$E$30/100","v":{"v":0.09050000000000001,"d":"9.05%"}},{"$f":"Actif!$E$31/100","v":{"v":0.0605,"d":"6.05%"}},{"$f":"Actif!$E$32/100","v":{"v":0.47350000000000003,"d":"47.35%"}},{"$f":"Actif!$E$33/100","v":{"v":0.0585,"d":"5.85%"}},{"$f":"Actif!$E$29/100","v":{"v":0.027999999999999997,"d":"2.80%"}}]
[null,"#32",25,2030,"H","A_PER",{"v":0.44999999999999996,"d":"0.45"},{"v":0.38999999999999996,"d":"0.39"},0.6,0.6,85,0,{"$f":"ROUND(Primes!$P$7*V7142,0)","v":1},{"$f":"'BP Financier'!$F$33*(('BP Financier'!$C$19+'BP Financier'!$D$19+'BP Financier'!$E$19+'BP Financier'!$F$19)/('BP Financier'!$C$16+'BP Financier'!$C$19+'BP Financier'!$D$16+'BP Financier'!$D$19+'BP Financier'!$E$16+'BP Financier'!$E$19+'BP Financier'!$F$16+'BP Financier'!$F$19))*V7142","v":{"v":45412.220092908035,"d":"45,412"}},{"v":25760.932484369845,"d":"25,761"},{"$f":"'BP Financier'!$F$44*(('BP Financier'!$C$19+'BP Financier'!$D$19+'BP Financier'!$E$19+'BP Financier'!$F$19)/('BP Financier'!$C$16+'BP Financier'!$C$19+'BP Financier'!$D$16+'BP Financier'!$D$19+'BP Financier'!$E$16+'BP Financier'!$E$19+'BP Financier'!$C$22+'BP Financier'!$D$22+'BP Financier'!$E$22+'BP Financier'!$F$22+'BP Financier'!$F$19+'BP Financier'!$F$16))*$V7142*X7142/(1-$W7142)","v":{"v":3278.993515942998,"d":"3,279"}},{"$f":"'BP Financier'!$F$44*(('BP Financier'!$C$19+'BP Financier'!$D$19+'BP Financier'!$E$19+'BP Financier'!$F$19)/('BP Financier'!$C$16+'BP Financier'!$C$19+'BP Financier'!$D$16+'BP Financier'!$D$19+'BP Financier'!$E$16+'BP Financier'!$E$19+'BP Financier'!$C$22+'BP Financier'!$D$22+'BP Financier'!$E$22+'BP Financier'!$F$22+'BP Financier'!$F$19+'BP Financier'!$F$16))*$V7142*Y7142/(1-$W7142)","v":{"v":2192.0343393873077,"d":"2,192"}},{"$f":"'BP Financier'!$F$44*(('BP Financier'!$C$19+'BP Financier'!$D$19+'BP Financier'!$E$19+'BP Financier'!$F$19)/('BP Financier'!$C$16+'BP Financier'!$C$19+'BP Financier'!$D$16+'BP Financier'!$D$19+'BP Financier'!$E$16+'BP Financier'!$E$19+'BP Financier'!$C$22+'BP Financier'!$D$22+'BP Financier'!$E$22+'BP Financier'!$F$22+'BP Financier'!$F$19+'BP Financier'!$F$16))*$V7142*Z7142/(1-$W7142)","v":{"v":17155.839003303972,"d":"17,156"}},{"$f":"'BP Financier'!$F$44*(('BP Financier'!$C$19+'BP Financier'!$D$19+'BP Financier'!$E$19+'BP Financier'!$F$19)/('BP Financier'!$C$16+'BP Financier'!$C$19+'BP Financier'!$D$16+'BP Financier'!$D$19+'BP Financier'!$E$16+'BP Financier'!$E$19+'BP Financier'!$C$22+'BP Financier'!$D$22+'BP Financier'!$E$22+'BP Financier'!$F$22+'BP Financier'!$F$19+'BP Financier'!$F$16))*$V7142*AA7142/(1-$W7142)","v":{"v":2119.570394283595,"d":"2,120"}},{"$f":"'BP Financier'!$F$44*(('BP Financier'!$C$19+'BP Financier'!$D$19+'BP Financier'!$E$19+'BP Financier'!$F$19)/('BP Financier'!$C$16+'BP Financier'!$C$19+'BP Financier'!$D$16+'BP Financier'!$D$19+'BP Financier'!$E$16+'BP Financier'!$E$19+'BP Financier'!$C$22+'BP Financier'!$D$22+'BP Financier'!$E$22+'BP Financier'!$F$22+'BP Financier'!$F$19+'BP Financier'!$F$16))*$V7142*AB7142/(1-$W7142)","v":{"v":1014.4952314519769,"d":"1,014"}},null,{"v":1.25E-3,"d":"0.13%"},{"$f":"Actif!$E$28/100","v":{"v":0.28900000000000003,"d":"28.90%"}},{"$f":"Actif!$E$30/100","v":{"v":0.09050000000000001,"d":"9.05%"}},{"$f":"Actif!$E$31/100","v":{"v":0.0605,"d":"6.05%"}},{"$f":"Actif!$E$32/100","v":{"v":0.47350000000000003,"d":"47.35%"}},{"$f":"Actif!$E$33/100","v":{"v":0.0585,"d":"5.85%"}},{"$f":"Actif!$E$29/100","v":{"v":0.027999999999999997,"d":"2.80%"}}]
[null,"#33",26,2026,"F","A_PER",{"v":0.44999999999999996,"d":"0.45"},{"v":0.38999999999999996,"d":"0.39"},0.6,0.6,85,0,{"$f":"ROUND(Primes!$P$7*V7143,0)","v":4},{"$f":"'BP Financier'!$F$33*(('BP Financier'!$C$19+'BP Financier'!$D$19+'BP Financier'!$E$19+'BP Financier'!$F$19)/('BP Financier'!$C$16+'BP Financier'!$C$19+'BP Financier'!$D$16+'BP Financier'!$D$19+'BP Financier'!$E$16+'BP Financier'!$E$19+'BP Financier'!$F$16+'BP Financier'!$F$19))*V7143","v":{"v":136236.6602787241,"d":"136,237"}},{"v":77282.79745310954,"d":"77,283"},{"$f":"'BP Financier'!$F$44*(('BP Financier'!$C$19+'BP Financier'!$D$19+'BP Financier'!$E$19+'BP Financier'!$F$19)/('BP Financier'!$C$16+'BP Financier'!$C$19+'BP Financier'!$D$16+'BP Financier'!$D$19+'BP Financier'!$E$16+'BP Financier'!$E$19+'BP Financier'!$C$22+'BP Financier'!$D$22+'BP Financier'!$E$22+'BP Financier'!$F$22+'BP Financier'!$F$19+'BP Financier'!$F$16))*$V7143*X7143/(1-$W7143)","v":{"v":9836.980547828993,"d":"9,837"}},{"$f":"'BP Financier'!$F$44*(('BP Financier'!$C$19+'BP Financier'!$D$19+'BP Financier'!$E$19+'BP Financier'!$F$19)/('BP Financier'!$C$16+'BP Financier'!$C$19+'BP Financier'!$D$16+'BP Financier'!$D$19+'BP Financier'!$E$16+'BP Financier'!$E$19+'BP Financier'!$C$22+'BP Financier'!$D$22+'BP Financier'!$E$22+'BP Financier'!$F$22+'BP Financier'!$F$19+'BP Financier'!$F$16))*$V7143*Y7143/(1-$W7143)","v":{"v":6576.103018161923,"d":"6,576"}},{"$f":"'BP Financier'!$F$44*(('BP Financier'!$C$19+'BP Financier'!$D$19+'BP Financier'!$E$19+'BP Financier'!$F$19)/('BP Financier'!$C$16+'BP Financier'!$C$19+'BP Financier'!$D$16+'BP Financier'!$D$19+'BP Financier'!$E$16+'BP Financier'!$E$19+'BP Financier'!$C$22+'BP Financier'!$D$22+'BP Financier'!$E$22+'BP Financier'!$F$22+'BP Financier'!$F$19+'BP Financier'!$F$16))*$V7143*Z7143/(1-$W7143)","v":{"v":51467.51700991191,"d":"51,468"}},{"$f":"'BP Financier'!$F$44*(('BP Financier'!$C$19+'BP Financier'!$D$19+'BP Financier'!$E$19+'BP Financier'!$F$19)/('BP Financier'!$C$16+'BP Financier'!$C$19+'BP Financier'!$D$16+'BP Financier'!$D$19+'BP Financier'!$E$16+'BP Financier'!$E$19+'BP Financier'!$C$22+'BP Financier'!$D$22+'BP Financier'!$E$22+'BP Financier'!$F$22+'BP Financier'!$F$19+'BP Financier'!$F$16))*$V7143*AA7143/(1-$W7143)","v":{"v":6358.711182850786,"d":"6,359"}},{"$f":"'BP Financier'!$F$44*(('BP Financier'!$C$19+'BP Financier'!$D$19+'BP Financier'!$E$19+'BP Financier'!$F$19)/('BP Financier'!$C$16+'BP Financier'!$C$19+'BP Financier'!$D$16+'BP Financier'!$D$19+'BP Financier'!$E$16+'BP Financier'!$E$19+'BP Financier'!$C$22+'BP Financier'!$D$22+'BP Financier'!$E$22+'BP Financier'!$F$22+'BP Financier'!$F$19+'BP Financier'!$F$16))*$V7143*AB7143/(1-$W7143)","v":{"v":3043.485694355931,"d":"3,043"}},null,{"v":0.00375,"d":"0.38%"},{"$f":"Actif!$E$28/100","v":{"v":0.28900000000000003,"d":"28.90%"}},{"$f":"Actif!$E$30/100","v":{"v":0.09050000000000001,"d":"9.05%"}},{"$f":"Actif!$E$31/100","v":{"v":0.0605,"d":"6.05%"}},{"$f":"Actif!$E$32/100","v":{"v":0.47350000000000003,"d":"47.35%"}},{"$f":"Actif!$E$33/100","v":{"v":0.0585,"d":"5.85%"}},{"$f":"Actif!$E$29/100","v":{"v":0.027999999999999997,"d":"2.80%"}}]
[null,"#34",26,2028,"F","A_PER",{"v":0.44999999999999996,"d":"0.45"},{"v":0.38999999999999996,"d":"0.39"},0.6,0.6,85,0,{"$f":"ROUND(Primes!$P$7*V7144,0)","v":4},{"$f":"'BP Financier'!$F$33*(('BP Financier'!$C$19+'BP Financier'!$D$19+'BP Financier'!$E$19+'BP Financier'!$F$19)/('BP Financier'!$C$16+'BP Financier'!$C$19+'BP Financier'!$D$16+'BP Financier'!$D$19+'BP Financier'!$E$16+'BP Financier'!$E$19+'BP Financier'!$F$16+'BP Financier'!$F$19))*V7144","v":{"v":136236.6602787241,"d":"136,237"}},{"v":77282.79745310954,"d":"77,283"},{"$f":"'BP Financier'!$F$44*(('BP Financier'!$C$19+'BP Financier'!$D$19+'BP Financier'!$E$19+'BP Financier'!$F$19)/('BP Financier'!$C$16+'BP Financier'!$C$19+'BP Financier'!$D$16+'BP Financier'!$D$19+'BP Financier'!$E$16+'BP Financier'!$E$19+'BP Financier'!$C$22+'BP Financier'!$D$22+'BP Financier'!$E$22+'BP Financier'!$F$22+'BP Financier'!$F$19+'BP Financier'!$F$16))*$V7144*X7144/(1-$W7144)","v":{"v":9836.980547828993,"d":"9,837"}},{"$f":"'BP Financier'!$F$44*(('BP Financier'!$C$19+'BP Financier'!$D$19+'BP Financier'!$E$19+'BP Financier'!$F$19)/('BP Financier'!$C$16+'BP Financier'!$C$19+'BP Financier'!$D$16+'BP Financier'!$D$19+'BP Financier'!$E$16+'BP Financier'!$E$19+'BP Financier'!$C$22+'BP Financier'!$D$22+'BP Financier'!$E$22+'BP Financier'!$F$22+'BP Financier'!$F$19+'BP Financier'!$F$16))*$V7144*Y7144/(1-$W7144)","v":{"v":6576.103018161923,"d":"6,576"}},{"$f":"'BP Financier'!$F$44*(('BP Financier'!$C$19+'BP Financier'!$D$19+'BP Financier'!$E$19+'BP Financier'!$F$19)/('BP Financier'!$C$16+'BP Financier'!$C$19+'BP Financier'!$D$16+'BP Financier'!$D$19+'BP Financier'!$E$16+'BP Financier'!$E$19+'BP Financier'!$C$22+'BP Financier'!$D$22+'BP Financier'!$E$22+'BP Financier'!$F$22+'BP Financier'!$F$19+'BP Financier'!$F$16))*$V7144*Z7144/(1-$W7144)","v":{"v":51467.51700991191,"d":"51,468"}},{"$f":"'BP Financier'!$F$44*(('BP Financier'!$C$19+'BP Financier'!$D$19+'BP Financier'!$E$19+'BP Financier'!$F$19)/('BP Financier'!$C$16+'BP Financier'!$C$19+'BP Financier'!$D$16+'BP Financier'!$D$19+'BP Financier'!$E$16+'BP Financier'!$E$19+'BP Financier'!$C$22+'BP Financier'!$D$22+'BP Financier'!$E$22+'BP Financier'!$F$22+'BP Financier'!$F$19+'BP Financier'!$F$16))*$V7144*AA7144/(1-$W7144)","v":{"v":6358.711182850786,"d":"6,359"}},{"$f":"'BP Financier'!$F$44*(('BP Financier'!$C$19+'BP Financier'!$D$19+'BP Financier'!$E$19+'BP Financier'!$F$19)/('BP Financier'!$C$16+'BP Financier'!$C$19+'BP Financier'!$D$16+'BP Financier'!$D$19+'BP Financier'!$E$16+'BP Financier'!$E$19+'BP Financier'!$C$22+'BP Financier'!$D$22+'BP Financier'!$E$22+'BP Financier'!$F$22+'BP Financier'!$F$19+'BP Financier'!$F$16))*$V7144*AB7144/(1-$W7144)","v":{"v":3043.485694355931,"d":"3,043"}},null,{"v":0.00375,"d":"0.38%"},{"$f":"Actif!$E$28/100","v":{"v":0.28900000000000003,"d":"28.90%"}},{"$f":"Actif!$E$30/100","v":{"v":0.09050000000000001,"d":"9.05%"}},{"$f":"Actif!$E$31/100","v":{"v":0.0605,"d":"6.05%"}},{"$f":"Actif!$E$32/100","v":{"v":0.47350000000000003,"d":"47.35%"}},{"$f":"Actif!$E$33/100","v":{"v":0.0585,"d":"5.85%"}},{"$f":"Actif!$E$29/100","v":{"v":0.027999999999999997,"d":"2.80%"}}]
[null,"#35",26,2029,"F","A_PER",{"v":0.44999999999999996,"d":"0.45"},{"v":0.38999999999999996,"d":"0.39"},0.6,0.6,85,0,{"$f":"ROUND(Primes!$P$7*V7145,0)","v":4},{"$f":"'BP Financier'!$F$33*(('BP Financier'!$C$19+'BP Financier'!$D$19+'BP Financier'!$E$19+'BP Financier'!$F$19)/('BP Financier'!$C$16+'BP Financier'!$C$19+'BP Financier'!$D$16+'BP Financier'!$D$19+'BP Financier'!$E$16+'BP Financier'!$E$19+'BP Financier'!$F$16+'BP Financier'!$F$19))*V7145","v":{"v":136236.6602787241,"d":"136,237"}},{"v":77282.79745310954,"d":"77,283"},{"$f":"'BP Financier'!$F$44*(('BP Financier'!$C$19+'BP Financier'!$D$19+'BP Financier'!$E$19+'BP Financier'!$F$19)/('BP Financier'!$C$16+'BP Financier'!$C$19+'BP Financier'!$D$16+'BP Financier'!$D$19+'BP Financier'!$E$16+'BP Financier'!$E$19+'BP Financier'!$C$22+'BP Financier'!$D$22+'BP Financier'!$E$22+'BP Financier'!$F$22+'BP Financier'!$F$19+'BP Financier'!$F$16))*$V7145*X7145/(1-$W7145)","v":{"v":9836.980547828993,"d":"9,837"}},{"$f":"'BP Financier'!$F$44*(('BP Financier'!$C$19+'BP Financier'!$D$19+'BP Financier'!$E$19+'BP Financier'!$F$19)/('BP Financier'!$C$16+'BP Financier'!$C$19+'BP Financier'!$D$16+'BP Financier'!$D$19+'BP Financier'!$E$16+'BP Financier'!$E$19+'BP Financier'!$C$22+'BP Financier'!$D$22+'BP Financier'!$E$22+'BP Financier'!$F$22+'BP Financier'!$F$19+'BP Financier'!$F$16))*$V7145*Y7145/(1-$W7145)","v":{"v":6576.103018161923,"d":"6,576"}},{"$f":"'BP Financier'!$F$44*(('BP Financier'!$C$19+'BP Financier'!$D$19+'BP Financier'!$E$19+'BP Financier'!$F$19)/('BP Financier'!$C$16+'BP Financier'!$C$19+'BP Financier'!$D$16+'BP Financier'!$D$19+'BP Financier'!$E$16+'BP Financier'!$E$19+'BP Financier'!$C$22+'BP Financier'!$D$22+'BP Financier'!$E$22+'BP Financier'!$F$22+'BP Financier'!$F$19+'BP Financier'!$F$16))*$V7145*Z7145/(1-$W7145)","v":{"v":51467.51700991191,"d":"51,468"}},{"$f":"'BP Financier'!$F$44*(('BP Financier'!$C$19+'BP Financier'!$D$19+'BP Financier'!$E$19+'BP Financier'!$F$19)/('BP Financier'!$C$16+'BP Financier'!$C$19+'BP Financier'!$D$16+'BP Financier'!$D$19+'BP Financier'!$E$16+'BP Financier'!$E$19+'BP Financier'!$C$22+'BP Financier'!$D$22+'BP Financier'!$E$22+'BP Financier'!$F$22+'BP Financier'!$F$19+'BP Financier'!$F$16))*$V7145*AA7145/(1-$W7145)","v":{"v":6358.711182850786,"d":"6,359"}},{"$f":"'BP Financier'!$F$44*(('BP Financier'!$C$19+'BP Financier'!$D$19+'BP Financier'!$E$19+'BP Financier'!$F$19)/('BP Financier'!$C$16+'BP Financier'!$C$19+'BP Financier'!$D$16+'BP Financier'!$D$19+'BP Financier'!$E$16+'BP Financier'!$E$19+'BP Financier'!$C$22+'BP Financier'!$D$22+'BP Financier'!$E$22+'BP Financier'!$F$22+'BP Financier'!$F$19+'BP Financier'!$F$16))*$V7145*AB7145/(1-$W7145)","v":{"v":3043.485694355931,"d":"3,043"}},null,{"v":0.00375,"d":"0.38%"},{"$f":"Actif!$E$28/100","v":{"v":0.28900000000000003,"d":"28.90%"}},{"$f":"Actif!$E$30/100","v":{"v":0.09050000000000001,"d":"9.05%"}},{"$f":"Actif!$E$31/100","v":{"v":0.0605,"d":"6.05%"}},{"$f":"Actif!$E$32/100","v":{"v":0.47350000000000003,"d":"47.35%"}},{"$f":"Actif!$E$33/100","v":{"v":0.0585,"d":"5.85%"}},{"$f":"Actif!$E$29/100","v":{"v":0.027999999999999997,"d":"2.80%"}}]
[null,"#36",26,2030,"F","A_PER",{"v":0.44999999999999996,"d":"0.45"},{"v":0.38999999999999996,"d":"0.39"},0.6,0.6,85,0,{"$f":"ROUND(Primes!$P$7*V7146,0)","v":4},{"$f":"'BP Financier'!$F$33*(('BP Financier'!$C$19+'BP Financier'!$D$19+'BP Financier'!$E$19+'BP Financier'!$F$19)/('BP Financier'!$C$16+'BP Financier'!$C$19+'BP Financier'!$D$16+'BP Financier'!$D$19+'BP Financier'!$E$16+'BP Financier'!$E$19+'BP Financier'!$F$16+'BP Financier'!$F$19))*V7146","v":{"v":136236.6602787241,"d":"136,237"}},{"v":77282.79745310954,"d":"77,283"},{"$f":"'BP Financier'!$F$44*(('BP Financier'!$C$19+'BP Financier'!$D$19+'BP Financier'!$E$19+'BP Financier'!$F$19)/('BP Financier'!$C$16+'BP Financier'!$C$19+'BP Financier'!$D$16+'BP Financier'!$D$19+'BP Financier'!$E$16+'BP Financier'!$E$19+'BP Financier'!$C$22+'BP Financier'!$D$22+'BP Financier'!$E$22+'BP Financier'!$F$22+'BP Financier'!$F$19+'BP Financier'!$F$16))*$V7146*X7146/(1-$W7146)","v":{"v":9836.980547828993,"d":"9,837"}},{"$f":"'BP Financier'!$F$44*(('BP Financier'!$C$19+'BP Financier'!$D$19+'BP Financier'!$E$19+'BP Financier'!$F$19)/('BP Financier'!$C$16+'BP Financier'!$C$19+'BP Financier'!$D$16+'BP Financier'!$D$19+'BP Financier'!$E$16+'BP Financier'!$E$19+'BP Financier'!$C$22+'BP Financier'!$D$22+'BP Financier'!$E$22+'BP Financier'!$F$22+'BP Financier'!$F$19+'BP Financier'!$F$16))*$V7146*Y7146/(1-$W7146)","v":{"v":6576.103018161923,"d":"6,576"}},{"$f":"'BP Financier'!$F$44*(('BP Financier'!$C$19+'BP Financier'!$D$19+'BP Financier'!$E$19+'BP Financier'!$F$19)/('BP Financier'!$C$16+'BP Financier'!$C$19+'BP Financier'!$D$16+'BP Financier'!$D$19+'BP Financier'!$E$16+'BP Financier'!$E$19+'BP Financier'!$C$22+'BP Financier'!$D$22+'BP Financier'!$E$22+'BP Financier'!$F$22+'BP Financier'!$F$19+'BP Financier'!$F$16))*$V7146*Z7146/(1-$W7146)","v":{"v":51467.51700991191,"d":"51,468"}},{"$f":"'BP Financier'!$F$44*(('BP Financier'!$C$19+'BP Financier'!$D$19+'BP Financier'!$E$19+'BP Financier'!$F$19)/('BP Financier'!$C$16+'BP Financier'!$C$19+'BP Financier'!$D$16+'BP Financier'!$D$19+'BP Financier'!$E$16+'BP Financier'!$E$19+'BP Financier'!$C$22+'BP Financier'!$D$22+'BP Financier'!$E$22+'BP Financier'!$F$22+'BP Financier'!$F$19+'BP Financier'!$F$16))*$V7146*AA7146/(1-$W7146)","v":{"v":6358.711182850786,"d":"6,359"}},{"$f":"'BP Financier'!$F$44*(('BP Financier'!$C$19+'BP Financier'!$D$19+'BP Financier'!$E$19+'BP Financier'!$F$19)/('BP Financier'!$C$16+'BP Financier'!$C$19+'BP Financier'!$D$16+'BP Financier'!$D$19+'BP Financier'!$E$16+'BP Financier'!$E$19+'BP Financier'!$C$22+'BP Financier'!$D$22+'BP Financier'!$E$22+'BP Financier'!$F$22+'BP Financier'!$F$19+'BP Financier'!$F$16))*$V7146*AB7146/(1-$W7146)","v":{"v":3043.485694355931,"d":"3,043"}},null,{"v":0.00375,"d":"0.38%"},{"$f":"Actif!$E$28/100","v":{"v":0.28900000000000003,"d":"28.90%"}},{"$f":"Actif!$E$30/100","v":{"v":0.09050000000000001,"d":"9.05%"}},{"$f":"Actif!$E$31/100","v":{"v":0.0605,"d":"6.05%"}},{"$f":"Actif!$E$32/100","v":{"v":0.47350000000000003,"d":"47.35%"}},{"$f":"Actif!$E$33/100","v":{"v":0.0585,"d":"5.85%"}},{"$f":"Actif!$E$29/100","v":{"v":0.027999999999999997,"d":"2.80%"}}]
[null,"#37",27,2026,"H","A_PER",{"v":0.44999999999999996,"d":"0.45"},{"v":0.38999999999999996,"d":"0.39"},0.6,0.6,85,0,{"$f":"ROUND(Primes!$P$7*V7147,0)","v":4},{"$f":"'BP Financier'!$F$33*(('BP Financier'!$C$19+'BP Financier'!$D$19+'BP Financier'!$E$19+'BP Financier'!$F$19)/('BP Financier'!$C$16+'BP Financier'!$C$19+'BP Financier'!$D$16+'BP Financier'!$D$19+'BP Financier'!$E$16+'BP Financier'!$E$19+'BP Financier'!$F$16+'BP Financier'!$F$19))*V7147","v":{"v":136236.6602787241,"d":"136,237"}},{"v":77282.79745310954,"d":"77,283"},{"$f":"'BP Financier'!$F$44*(('BP Financier'!$C$19+'BP Financier'!$D$19+'BP Financier'!$E$19+'BP Financier'!$F$19)/('BP Financier'!$C$16+'BP Financier'!$C$19+'BP Financier'!$D$16+'BP Financier'!$D$19+'BP Financier'!$E$16+'BP Financier'!$E$19+'BP Financier'!$C$22+'BP Financier'!$D$22+'BP Financier'!$E$22+'BP Financier'!$F$22+'BP Financier'!$F$19+'BP Financier'!$F$16))*$V7147*X7147/(1-$W7147)","v":{"v":9836.980547828993,"d":"9,837"}},{"$f":"'BP Financier'!$F$44*(('BP Financier'!$C$19+'BP Financier'!$D$19+'BP Financier'!$E$19+'BP Financier'!$F$19)/('BP Financier'!$C$16+'BP Financier'!$C$19+'BP Financier'!$D$16+'BP Financier'!$D$19+'BP Financier'!$E$16+'BP Financier'!$E$19+'BP Financier'!$C$22+'BP Financier'!$D$22+'BP Financier'!$E$22+'BP Financier'!$F$22+'BP Financier'!$F$19+'BP Financier'!$F$16))*$V7147*Y7147/(1-$W7147)","v":{"v":6576.103018161923,"d":"6,576"}},{"$f":"'BP Financier'!$F$44*(('BP Financier'!$C$19+'BP Financier'!$D$19+'BP Financier'!$E$19+'BP Financier'!$F$19)/('BP Financier'!$C$16+'BP Financier'!$C$19+'BP Financier'!$D$16+'BP Financier'!$D$19+'BP Financier'!$E$16+'BP Financier'!$E$19+'BP Financier'!$C$22+'BP Financier'!$D$22+'BP Financier'!$E$22+'BP Financier'!$F$22+'BP Financier'!$F$19+'BP Financier'!$F$16))*$V7147*Z7147/(1-$W7147)","v":{"v":51467.51700991191,"d":"51,468"}},{"$f":"'BP Financier'!$F$44*(('BP Financier'!$C$19+'BP Financier'!$D$19+'BP Financier'!$E$19+'BP Financier'!$F$19)/('BP Financier'!$C$16+'BP Financier'!$C$19+'BP Financier'!$D$16+'BP Financier'!$D$19+'BP Financier'!$E$16+'BP Financier'!$E$19+'BP Financier'!$C$22+'BP Financier'!$D$22+'BP Financier'!$E$22+'BP Financier'!$F$22+'BP Financier'!$F$19+'BP Financier'!$F$16))*$V7147*AA7147/(1-$W7147)","v":{"v":6358.711182850786,"d":"6,359"}},{"$f":"'BP Financier'!$F$44*(('BP Financier'!$C$19+'BP Financier'!$D$19+'BP Financier'!$E$19+'BP Financier'!$F$19)/('BP Financier'!$C$16+'BP Financier'!$C$19+'BP Financier'!$D$16+'BP Financier'!$D$19+'BP Financier'!$E$16+'BP Financier'!$E$19+'BP Financier'!$C$22+'BP Financier'!$D$22+'BP Financier'!$E$22+'BP Financier'!$F$22+'BP Financier'!$F$19+'BP Financier'!$F$16))*$V7147*AB7147/(1-$W7147)","v":{"v":3043.485694355931,"d":"3,043"}},null,{"v":0.00375,"d":"0.38%"},{"$f":"Actif!$E$28/100","v":{"v":0.28900000000000003,"d":"28.90%"}},{"$f":"Actif!$E$30/100","v":{"v":0.09050000000000001,"d":"9.05%"}},{"$f":"Actif!$E$31/100","v":{"v":0.0605,"d":"6.05%"}},{"$f":"Actif!$E$32/100","v":{"v":0.47350000000000003,"d":"47.35%"}},{"$f":"Actif!$E$33/100","v":{"v":0.0585,"d":"5.85%"}},{"$f":"Actif!$E$29/100","v":{"v":0.027999999999999997,"d":"2.80%"}}]
[null,"#38",27,2028,"H","A_PER",{"v":0.44999999999999996,"d":"0.45"},{"v":0.38999999999999996,"d":"0.39"},0.6,0.6,85,0,{"$f":"ROUND(Primes!$P$7*V7148,0)","v":4},{"$f":"'BP Financier'!$F$33*(('BP Financier'!$C$19+'BP Financier'!$D$19+'BP Financier'!$E$19+'BP Financier'!$F$19)/('BP Financier'!$C$16+'BP Financier'!$C$19+'BP Financier'!$D$16+'BP Financier'!$D$19+'BP Financier'!$E$16+'BP Financier'!$E$19+'BP Financier'!$F$16+'BP Financier'!$F$19))*V7148","v":{"v":136236.6602787241,"d":"136,237"}},{"v":77282.79745310954,"d":"77,283"},{"$f":"'BP Financier'!$F$44*(('BP Financier'!$C$19+'BP Financier'!$D$19+'BP Financier'!$E$19+'BP Financier'!$F$19)/('BP Financier'!$C$16+'BP Financier'!$C$19+'BP Financier'!$D$16+'BP Financier'!$D$19+'BP Financier'!$E$16+'BP Financier'!$E$19+'BP Financier'!$C$22+'BP Financier'!$D$22+'BP Financier'!$E$22+'BP Financier'!$F$22+'BP Financier'!$F$19+'BP Financier'!$F$16))*$V7148*X7148/(1-$W7148)","v":{"v":9836.980547828993,"d":"9,837"}},{"$f":"'BP Financier'!$F$44*(('BP Financier'!$C$19+'BP Financier'!$D$19+'BP Financier'!$E$19+'BP Financier'!$F$19)/('BP Financier'!$C$16+'BP Financier'!$C$19+'BP Financier'!$D$16+'BP Financier'!$D$19+'BP Financier'!$E$16+'BP Financier'!$E$19+'BP Financier'!$C$22+'BP Financier'!$D$22+'BP Financier'!$E$22+'BP Financier'!$F$22+'BP Financier'!$F$19+'BP Financier'!$F$16))*$V7148*Y7148/(1-$W7148)","v":{"v":6576.103018161923,"d":"6,576"}},{"$f":"'BP Financier'!$F$44*(('BP Financier'!$C$19+'BP Financier'!$D$19+'BP Financier'!$E$19+'BP Financier'!$F$19)/('BP Financier'!$C$16+'BP Financier'!$C$19+'BP Financier'!$D$16+'BP Financier'!$D$19+'BP Financier'!$E$16+'BP Financier'!$E$19+'BP Financier'!$C$22+'BP Financier'!$D$22+'BP Financier'!$E$22+'BP Financier'!$F$22+'BP Financier'!$F$19+'BP Financier'!$F$16))*$V7148*Z7148/(1-$W7148)","v":{"v":51467.51700991191,"d":"51,468"}},{"$f":"'BP Financier'!$F$44*(('BP Financier'!$C$19+'BP Financier'!$D$19+'BP Financier'!$E$19+'BP Financier'!$F$19)/('BP Financier'!$C$16+'BP Financier'!$C$19+'BP Financier'!$D$16+'BP Financier'!$D$19+'BP Financier'!$E$16+'BP Financier'!$E$19+'BP Financier'!$C$22+'BP Financier'!$D$22+'BP Financier'!$E$22+'BP Financier'!$F$22+'BP Financier'!$F$19+'BP Financier'!$F$16))*$V7148*AA7148/(1-$W7148)","v":{"v":6358.711182850786,"d":"6,359"}},{"$f":"'BP Financier'!$F$44*(('BP Financier'!$C$19+'BP Financier'!$D$19+'BP Financier'!$E$19+'BP Financier'!$F$19)/('BP Financier'!$C$16+'BP Financier'!$C$19+'BP Financier'!$D$16+'BP Financier'!$D$19+'BP Financier'!$E$16+'BP Financier'!$E$19+'BP Financier'!$C$22+'BP Financier'!$D$22+'BP Financier'!$E$22+'BP Financier'!$F$22+'BP Financier'!$F$19+'BP Financier'!$F$16))*$V7148*AB7148/(1-$W7148)","v":{"v":3043.485694355931,"d":"3,043"}},null,{"v":0.00375,"d":"0.38%"},{"$f":"Actif!$E$28/100","v":{"v":0.28900000000000003,"d":"28.90%"}},{"$f":"Actif!$E$30/100","v":{"v":0.09050000000000001,"d":"9.05%"}},{"$f":"Actif!$E$31/100","v":{"v":0.0605,"d":"6.05%"}},{"$f":"Actif!$E$32/100","v":{"v":0.47350000000000003,"d":"47.35%"}},{"$f":"Actif!$E$33/100","v":{"v":0.0585,"d":"5.85%"}},{"$f":"Actif!$E$29/100","v":{"v":0.027999999999999997,"d":"2.80%"}}]
[null,"#39",27,2029,"H","A_PER",{"v":0.44999999999999996,"d":"0.45"},{"v":0.38999999999999996,"d":"0.39"},0.6,0.6,85,0,{"$f":"ROUND(Primes!$P$7*V7149,0)","v":4},{"$f":"'BP Financier'!$F$33*(('BP Financier'!$C$19+'BP Financier'!$D$19+'BP Financier'!$E$19+'BP Financier'!$F$19)/('BP Financier'!$C$16+'BP Financier'!$C$19+'BP Financier'!$D$16+'BP Financier'!$D$19+'BP Financier'!$E$16+'BP Financier'!$E$19+'BP Financier'!$F$16+'BP Financier'!$F$19))*V7149","v":{"v":136236.6602787241,"d":"136,237"}},{"v":77282.79745310954,"d":"77,283"},{"$f":"'BP Financier'!$F$44*(('BP Financier'!$C$19+'BP Financier'!$D$19+'BP Financier'!$E$19+'BP Financier'!$F$19)/('BP Financier'!$C$16+'BP Financier'!$C$19+'BP Financier'!$D$16+'BP Financier'!$D$19+'BP Financier'!$E$16+'BP Financier'!$E$19+'BP Financier'!$C$22+'BP Financier'!$D$22+'BP Financier'!$E$22+'BP Financier'!$F$22+'BP Financier'!$F$19+'BP Financier'!$F$16))*$V7149*X7149/(1-$W7149)","v":{"v":9836.980547828993,"d":"9,837"}},{"$f":"'BP Financier'!$F$44*(('BP Financier'!$C$19+'BP Financier'!$D$19+'BP Financier'!$E$19+'BP Financier'!$F$19)/('BP Financier'!$C$16+'BP Financier'!$C$19+'BP Financier'!$D$16+'BP Financier'!$D$19+'BP Financier'!$E$16+'BP Financier'!$E$19+'BP Financier'!$C$22+'BP Financier'!$D$22+'BP Financier'!$E$22+'BP Financier'!$F$22+'BP Financier'!$F$19+'BP Financier'!$F$16))*$V7149*Y7149/(1-$W7149)","v":{"v":6576.103018161923,"d":"6,576"}},{"$f":"'BP Financier'!$F$44*(('BP Financier'!$C$19+'BP Financier'!$D$19+'BP Financier'!$E$19+'BP Financier'!$F$19)/('BP Financier'!$C$16+'BP Financier'!$C$19+'BP Financier'!$D$16+'BP Financier'!$D$19+'BP Financier'!$E$16+'BP Financier'!$E$19+'BP Financier'!$C$22+'BP Financier'!$D$22+'BP Financier'!$E$22+'BP Financier'!$F$22+'BP Financier'!$F$19+'BP Financier'!$F$16))*$V7149*Z7149/(1-$W7149)","v":{"v":51467.51700991191,"d":"51,468"}},{"$f":"'BP Financier'!$F$44*(('BP Financier'!$C$19+'BP Financier'!$D$19+'BP Financier'!$E$19+'BP Financier'!$F$19)/('BP Financier'!$C$16+'BP Financier'!$C$19+'BP Financier'!$D$16+'BP Financier'!$D$19+'BP Financier'!$E$16+'BP Financier'!$E$19+'BP Financier'!$C$22+'BP Financier'!$D$22+'BP Financier'!$E$22+'BP Financier'!$F$22+'BP Financier'!$F$19+'BP Financier'!$F$16))*$V7149*AA7149/(1-$W7149)","v":{"v":6358.711182850786,"d":"6,359"}},{"$f":"'BP Financier'!$F$44*(('BP Financier'!$C$19+'BP Financier'!$D$19+'BP Financier'!$E$19+'BP Financier'!$F$19)/('BP Financier'!$C$16+'BP Financier'!$C$19+'BP Financier'!$D$16+'BP Financier'!$D$19+'BP Financier'!$E$16+'BP Financier'!$E$19+'BP Financier'!$C$22+'BP Financier'!$D$22+'BP Financier'!$E$22+'BP Financier'!$F$22+'BP Financier'!$F$19+'BP Financier'!$F$16))*$V7149*AB7149/(1-$W7149)","v":{"v":3043.485694355931,"d":"3,043"}},null,{"v":0.00375,"d":"0.38%"},{"$f":"Actif!$E$28/100","v":{"v":0.28900000000000003,"d":"28.90%"}},{"$f":"Actif!$E$30/100","v":{"v":0.09050000000000001,"d":"9.05%"}},{"$f":"Actif!$E$31/100","v":{"v":0.0605,"d":"6.05%"}},{"$f":"Actif!$E$32/100","v":{"v":0.47350000000000003,"d":"47.35%"}},{"$f":"Actif!$E$33/100","v":{"v":0.0585,"d":"5.85%"}},{"$f":"Actif!$E$29/100","v":{"v":0.027999999999999997,"d":"2.80%"}}]
[null,"#40",27,2030,"H","A_PER",{"v":0.44999999999999996,"d":"0.45"},{"v":0.38999999999999996,"d":"0.39"},0.6,0.6,85,0,{"$f":"ROUND(Primes!$P$7*V7150,0)","v":4},{"$f":"'BP Financier'!$F$33*(('BP Financier'!$C$19+'BP Financier'!$D$19+'BP Financier'!$E$19+'BP Financier'!$F$19)/('BP Financier'!$C$16+'BP Financier'!$C$19+'BP Financier'!$D$16+'BP Financier'!$D$19+'BP Financier'!$E$16+'BP Financier'!$E$19+'BP Financier'!$F$16+'BP Financier'!$F$19))*V7150","v":{"v":136236.6602787241,"d":"136,237"}},{"v":77282.79745310954,"d":"77,283"},{"$f":"'BP Financier'!$F$44*(('BP Financier'!$C$19+'BP Financier'!$D$19+'BP Financier'!$E$19+'BP Financier'!$F$19)/('BP Financier'!$C$16+'BP Financier'!$C$19+'BP Financier'!$D$16+'BP Financier'!$D$19+'BP Financier'!$E$16+'BP Financier'!$E$19+'BP Financier'!$C$22+'BP Financier'!$D$22+'BP Financier'!$E$22+'BP Financier'!$F$22+'BP Financier'!$F$19+'BP Financier'!$F$16))*$V7150*X7150/(1-$W7150)","v":{"v":9836.980547828993,"d":"9,837"}},{"$f":"'BP Financier'!$F$44*(('BP Financier'!$C$19+'BP Financier'!$D$19+'BP Financier'!$E$19+'BP Financier'!$F$19)/('BP Financier'!$C$16+'BP Financier'!$C$19+'BP Financier'!$D$16+'BP Financier'!$D$19+'BP Financier'!$E$16+'BP Financier'!$E$19+'BP Financier'!$C$22+'BP Financier'!$D$22+'BP Financier'!$E$22+'BP Financier'!$F$22+'BP Financier'!$F$19+'BP Financier'!$F$16))*$V7150*Y7150/(1-$W7150)","v":{"v":6576.103018161923,"d":"6,576"}},{"$f":"'BP Financier'!$F$44*(('BP Financier'!$C$19+'BP Financier'!$D$19+'BP Financier'!$E$19+'BP Financier'!$F$19)/('BP Financier'!$C$16+'BP Financier'!$C$19+'BP Financier'!$D$16+'BP Financier'!$D$19+'BP Financier'!$E$16+'BP Financier'!$E$19+'BP Financier'!$C$22+'BP Financier'!$D$22+'BP Financier'!$E$22+'BP Financier'!$F$22+'BP Financier'!$F$19+'BP Financier'!$F$16))*$V7150*Z7150/(1-$W7150)","v":{"v":51467.51700991191,"d":"51,468"}},{"$f":"'BP Financier'!$F$44*(('BP Financier'!$C$19+'BP Financier'!$D$19+'BP Financier'!$E$19+'BP Financier'!$F$19)/('BP Financier'!$C$16+'BP Financier'!$C$19+'BP Financier'!$D$16+'BP Financier'!$D$19+'BP Financier'!$E$16+'BP Financier'!$E$19+'BP Financier'!$C$22+'BP Financier'!$D$22+'BP Financier'!$E$22+'BP Financier'!$F$22+'BP Financier'!$F$19+'BP Financier'!$F$16))*$V7150*AA7150/(1-$W7150)","v":{"v":6358.711182850786,"d":"6,359"}},{"$f":"'BP Financier'!$F$44*(('BP Financier'!$C$19+'BP Financier'!$D$19+'BP Financier'!$E$19+'BP Financier'!$F$19)/('BP Financier'!$C$16+'BP Financier'!$C$19+'BP Financier'!$D$16+'BP Financier'!$D$19+'BP Financier'!$E$16+'BP Financier'!$E$19+'BP Financier'!$C$22+'BP Financier'!$D$22+'BP Financier'!$E$22+'BP Financier'!$F$22+'BP Financier'!$F$19+'BP Financier'!$F$16))*$V7150*AB7150/(1-$W7150)","v":{"v":3043.485694355931,"d":"3,043"}},null,{"v":0.00375,"d":"0.38%"},{"$f":"Actif!$E$28/100","v":{"v":0.28900000000000003,"d":"28.90%"}},{"$f":"Actif!$E$30/100","v":{"v":0.09050000000000001,"d":"9.05%"}},{"$f":"Actif!$E$31/100","v":{"v":0.0605,"d":"6.05%"}},{"$f":"Actif!$E$32/100","v":{"v":0.47350000000000003,"d":"47.35%"}},{"$f":"Actif!$E$33/100","v":{"v":0.0585,"d":"5.85%"}},{"$f":"Actif!$E$29/100","v":{"v":0.027999999999999997,"d":"2.80%"}}]
[null,"#41",28,2026,"H","A_PER",{"v":0.44999999999999996,"d":"0.45"},{"v":0.38999999999999996,"d":"0.39"},0.6,0.6,85,0,{"$f":"ROUND(Primes!$P$7*V7151,0)","v":4},{"$f":"'BP Financier'!$F$33*(('BP Financier'!$C$19+'BP Financier'!$D$19+'BP Financier'!$E$19+'BP Financier'!$F$19)/('BP Financier'!$C$16+'BP Financier'!$C$19+'BP Financier'!$D$16+'BP Financier'!$D$19+'BP Financier'!$E$16+'BP Financier'!$E$19+'BP Financier'!$F$16+'BP Financier'!$F$19))*V7151","v":{"v":136236.6602787241,"d":"136,237"}},{"v":77282.79745310954,"d":"77,283"},{"$f":"'BP Financier'!$F$44*(('BP Financier'!$C$19+'BP Financier'!$D$19+'BP Financier'!$E$19+'BP Financier'!$F$19)/('BP Financier'!$C$16+'BP Financier'!$C$19+'BP Financier'!$D$16+'BP Financier'!$D$19+'BP Financier'!$E$16+'BP Financier'!$E$19+'BP Financier'!$C$22+'BP Financier'!$D$22+'BP Financier'!$E$22+'BP Financier'!$F$22+'BP Financier'!$F$19+'BP Financier'!$F$16))*$V7151*X7151/(1-$W7151)","v":{"v":9836.980547828993,"d":"9,837"}},{"$f":"'BP Financier'!$F$44*(('BP Financier'!$C$19+'BP Financier'!$D$19+'BP Financier'!$E$19+'BP Financier'!$F$19)/('BP Financier'!$C$16+'BP Financier'!$C$19+'BP Financier'!$D$16+'BP Financier'!$D$19+'BP Financier'!$E$16+'BP Financier'!$E$19+'BP Financier'!$C$22+'BP Financier'!$D$22+'BP Financier'!$E$22+'BP Financier'!$F$22+'BP Financier'!$F$19+'BP Financier'!$F$16))*$V7151*Y7151/(1-$W7151)","v":{"v":6576.103018161923,"d":"6,576"}},{"$f":"'BP Financier'!$F$44*(('BP Financier'!$C$19+'BP Financier'!$D$19+'BP Financier'!$E$19+'BP Financier'!$F$19)/('BP Financier'!$C$16+'BP Financier'!$C$19+'BP Financier'!$D$16+'BP Financier'!$D$19+'BP Financier'!$E$16+'BP Financier'!$E$19+'BP Financier'!$C$22+'BP Financier'!$D$22+'BP Financier'!$E$22+'BP Financier'!$F$22+'BP Financier'!$F$19+'BP Financier'!$F$16))*$V7151*Z7151/(1-$W7151)","v":{"v":51467.51700991191,"d":"51,468"}},{"$f":"'BP Financier'!$F$44*(('BP Financier'!$C$19+'BP Financier'!$D$19+'BP Financier'!$E$19+'BP Financier'!$F$19)/('BP Financier'!$C$16+'BP Financier'!$C$19+'BP Financier'!$D$16+'BP Financier'!$D$19+'BP Financier'!$E$16+'BP Financier'!$E$19+'BP Financier'!$C$22+'BP Financier'!$D$22+'BP Financier'!$E$22+'BP Financier'!$F$22+'BP Financier'!$F$19+'BP Financier'!$F$16))*$V7151*AA7151/(1-$W7151)","v":{"v":6358.711182850786,"d":"6,359"}},{"$f":"'BP Financier'!$F$44*(('BP Financier'!$C$19+'BP Financier'!$D$19+'BP Financier'!$E$19+'BP Financier'!$F$19)/('BP Financier'!$C$16+'BP Financier'!$C$19+'BP Financier'!$D$16+'BP Financier'!$D$19+'BP Financier'!$E$16+'BP Financier'!$E$19+'BP Financier'!$C$22+'BP Financier'!$D$22+'BP Financier'!$E$22+'BP Financier'!$F$22+'BP Financier'!$F$19+'BP Financier'!$F$16))*$V7151*AB7151/(1-$W7151)","v":{"v":3043.485694355931,"d":"3,043"}},null,{"v":0.00375,"d":"0.38%"},{"$f":"Actif!$E$28/100","v":{"v":0.28900000000000003,"d":"28.90%"}},{"$f":"Actif!$E$30/100","v":{"v":0.09050000000000001,"d":"9.05%"}},{"$f":"Actif!$E$31/100","v":{"v":0.0605,"d":"6.05%"}},{"$f":"Actif!$E$32/100","v":{"v":0.47350000000000003,"d":"47.35%"}},{"$f":"Actif!$E$33/100","v":{"v":0.0585,"d":"5.85%"}},{"$f":"Actif!$E$29/100","v":{"v":0.027999999999999997,"d":"2.80%"}}]
[null,"#42",28,2028,"H","A_PER",{"v":0.44999999999999996,"d":"0.45"},{"v":0.38999999999999996,"d":"0.39"},0.6,0.6,85,0,{"$f":"ROUND(Primes!$P$7*V7152,0)","v":4},{"$f":"'BP Financier'!$F$33*(('BP Financier'!$C$19+'BP Financier'!$D$19+'BP Financier'!$E$19+'BP Financier'!$F$19)/('BP Financier'!$C$16+'BP Financier'!$C$19+'BP Financier'!$D$16+'BP Financier'!$D$19+'BP Financier'!$E$16+'BP Financier'!$E$19+'BP Financier'!$F$16+'BP Financier'!$F$19))*V7152","v":{"v":136236.6602787241,"d":"136,237"}},{"v":77282.79745310954,"d":"77,283"},{"$f":"'BP Financier'!$F$44*(('BP Financier'!$C$19+'BP Financier'!$D$19+'BP Financier'!$E$19+'BP Financier'!$F$19)/('BP Financier'!$C$16+'BP Financier'!$C$19+'BP Financier'!$D$16+'BP Financier'!$D$19+'BP Financier'!$E$16+'BP Financier'!$E$19+'BP Financier'!$C$22+'BP Financier'!$D$22+'BP Financier'!$E$22+'BP Financier'!$F$22+'BP Financier'!$F$19+'BP Financier'!$F$16))*$V7152*X7152/(1-$W7152)","v":{"v":9836.980547828993,"d":"9,837"}},{"$f":"'BP Financier'!$F$44*(('BP Financier'!$C$19+'BP Financier'!$D$19+'BP Financier'!$E$19+'BP Financier'!$F$19)/('BP Financier'!$C$16+'BP Financier'!$C$19+'BP Financier'!$D$16+'BP Financier'!$D$19+'BP Financier'!$E$16+'BP Financier'!$E$19+'BP Financier'!$C$22+'BP Financier'!$D$22+'BP Financier'!$E$22+'BP Financier'!$F$22+'BP Financier'!$F$19+'BP Financier'!$F$16))*$V7152*Y7152/(1-$W7152)","v":{"v":6576.103018161923,"d":"6,576"}},{"$f":"'BP Financier'!$F$44*(('BP Financier'!$C$19+'BP Financier'!$D$19+'BP Financier'!$E$19+'BP Financier'!$F$19)/('BP Financier'!$C$16+'BP Financier'!$C$19+'BP Financier'!$D$16+'BP Financier'!$D$19+'BP Financier'!$E$16+'BP Financier'!$E$19+'BP Financier'!$C$22+'BP Financier'!$D$22+'BP Financier'!$E$22+'BP Financier'!$F$22+'BP Financier'!$F$19+'BP Financier'!$F$16))*$V7152*Z7152/(1-$W7152)","v":{"v":51467.51700991191,"d":"51,468"}},{"$f":"'BP Financier'!$F$44*(('BP Financier'!$C$19+'BP Financier'!$D$19+'BP Financier'!$E$19+'BP Financier'!$F$19)/('BP Financier'!$C$16+'BP Financier'!$C$19+'BP Financier'!$D$16+'BP Financier'!$D$19+'BP Financier'!$E$16+'BP Financier'!$E$19+'BP Financier'!$C$22+'BP Financier'!$D$22+'BP Financier'!$E$22+'BP Financier'!$F$22+'BP Financier'!$F$19+'BP Financier'!$F$16))*$V7152*AA7152/(1-$W7152)","v":{"v":6358.711182850786,"d":"6,359"}},{"$f":"'BP Financier'!$F$44*(('BP Financier'!$C$19+'BP Financier'!$D$19+'BP Financier'!$E$19+'BP Financier'!$F$19)/('BP Financier'!$C$16+'BP Financier'!$C$19+'BP Financier'!$D$16+'BP Financier'!$D$19+'BP Financier'!$E$16+'BP Financier'!$E$19+'BP Financier'!$C$22+'BP Financier'!$D$22+'BP Financier'!$E$22+'BP Financier'!$F$22+'BP Financier'!$F$19+'BP Financier'!$F$16))*$V7152*AB7152/(1-$W7152)","v":{"v":3043.485694355931,"d":"3,043"}},null,{"v":0.00375,"d":"0.38%"},{"$f":"Actif!$E$28/100","v":{"v":0.28900000000000003,"d":"28.90%"}},{"$f":"Actif!$E$30/100","v":{"v":0.09050000000000001,"d":"9.05%"}},{"$f":"Actif!$E$31/100","v":{"v":0.0605,"d":"6.05%"}},{"$f":"Actif!$E$32/100","v":{"v":0.47350000000000003,"d":"47.35%"}},{"$f":"Actif!$E$33/100","v":{"v":0.0585,"d":"5.85%"}},{"$f":"Actif!$E$29/100","v":{"v":0.027999999999999997,"d":"2.80%"}}]
[null,"#43",28,2029,"H","A_PER",{"v":0.44999999999999996,"d":"0.45"},{"v":0.38999999999999996,"d":"0.39"},0.6,0.6,85,0,{"$f":"ROUND(Primes!$P$7*V7153,0)","v":4},{"$f":"'BP Financier'!$F$33*(('BP Financier'!$C$19+'BP Financier'!$D$19+'BP Financier'!$E$19+'BP Financier'!$F$19)/('BP Financier'!$C$16+'BP Financier'!$C$19+'BP Financier'!$D$16+'BP Financier'!$D$19+'BP Financier'!$E$16+'BP Financier'!$E$19+'BP Financier'!$F$16+'BP Financier'!$F$19))*V7153","v":{"v":136236.6602787241,"d":"136,237"}},{"v":77282.79745310954,"d":"77,283"},{"$f":"'BP Financier'!$F$44*(('BP Financier'!$C$19+'BP Financier'!$D$19+'BP Financier'!$E$19+'BP Financier'!$F$19)/('BP Financier'!$C$16+'BP Financier'!$C$19+'BP Financier'!$D$16+'BP Financier'!$D$19+'BP Financier'!$E$16+'BP Financier'!$E$19+'BP Financier'!$C$22+'BP Financier'!$D$22+'BP Financier'!$E$22+'BP Financier'!$F$22+'BP Financier'!$F$19+'BP Financier'!$F$16))*$V7153*X7153/(1-$W7153)","v":{"v":9836.980547828993,"d":"9,837"}},{"$f":"'BP Financier'!$F$44*(('BP Financier'!$C$19+'BP Financier'!$D$19+'BP Financier'!$E$19+'BP Financier'!$F$19)/('BP Financier'!$C$16+'BP Financier'!$C$19+'BP Financier'!$D$16+'BP Financier'!$D$19+'BP Financier'!$E$16+'BP Financier'!$E$19+'BP Financier'!$C$22+'BP Financier'!$D$22+'BP Financier'!$E$22+'BP Financier'!$F$22+'BP Financier'!$F$19+'BP Financier'!$F$16))*$V7153*Y7153/(1-$W7153)","v":{"v":6576.103018161923,"d":"6,576"}},{"$f":"'BP Financier'!$F$44*(('BP Financier'!$C$19+'BP Financier'!$D$19+'BP Financier'!$E$19+'BP Financier'!$F$19)/('BP Financier'!$C$16+'BP Financier'!$C$19+'BP Financier'!$D$16+'BP Financier'!$D$19+'BP Financier'!$E$16+'BP Financier'!$E$19+'BP Financier'!$C$22+'BP Financier'!$D$22+'BP Financier'!$E$22+'BP Financier'!$F$22+'BP Financier'!$F$19+'BP Financier'!$F$16))*$V7153*Z7153/(1-$W7153)","v":{"v":51467.51700991191,"d":"51,468"}},{"$f":"'BP Financier'!$F$44*(('BP Financier'!$C$19+'BP Financier'!$D$19+'BP Financier'!$E$19+'BP Financier'!$F$19)/('BP Financier'!$C$16+'BP Financier'!$C$19+'BP Financier'!$D$16+'BP Financier'!$D$19+'BP Financier'!$E$16+'BP Financier'!$E$19+'BP Financier'!$C$22+'BP Financier'!$D$22+'BP Financier'!$E$22+'BP Financier'!$F$22+'BP Financier'!$F$19+'BP Financier'!$F$16))*$V7153*AA7153/(1-$W7153)","v":{"v":6358.711182850786,"d":"6,359"}},{"$f":"'BP Financier'!$F$44*(('BP Financier'!$C$19+'BP Financier'!$D$19+'BP Financier'!$E$19+'BP Financier'!$F$19)/('BP Financier'!$C$16+'BP Financier'!$C$19+'BP Financier'!$D$16+'BP Financier'!$D$19+'BP Financier'!$E$16+'BP Financier'!$E$19+'BP Financier'!$C$22+'BP Financier'!$D$22+'BP Financier'!$E$22+'BP Financier'!$F$22+'BP Financier'!$F$19+'BP Financier'!$F$16))*$V7153*AB7153/(1-$W7153)","v":{"v":3043.485694355931,"d":"3,043"}},null,{"v":0.00375,"d":"0.38%"},{"$f":"Actif!$E$28/100","v":{"v":0.28900000000000003,"d":"28.90%"}},{"$f":"Actif!$E$30/100","v":{"v":0.09050000000000001,"d":"9.05%"}},{"$f":"Actif!$E$31/100","v":{"v":0.0605,"d":"6.05%"}},{"$f":"Actif!$E$32/100","v":{"v":0.47350000000000003,"d":"47.35%"}},{"$f":"Actif!$E$33/100","v":{"v":0.0585,"d":"5.85%"}},{"$f":"Actif!$E$29/100","v":{"v":0.027999999999999997,"d":"2.80%"}}]
[null,"#44",28,2030,"H","A_PER",{"v":0.44999999999999996,"d":"0.45"},{"v":0.38999999999999996,"d":"0.39"},0.6,0.6,85,0,{"$f":"ROUND(Primes!$P$7*V7154,0)","v":4},{"$f":"'BP Financier'!$F$33*(('BP Financier'!$C$19+'BP Financier'!$D$19+'BP Financier'!$E$19+'BP Financier'!$F$19)/('BP Financier'!$C$16+'BP Financier'!$C$19+'BP Financier'!$D$16+'BP Financier'!$D$19+'BP Financier'!$E$16+'BP Financier'!$E$19+'BP Financier'!$F$16+'BP Financier'!$F$19))*V7154","v":{"v":136236.6602787241,"d":"136,237"}},{"v":77282.79745310954,"d":"77,283"},{"$f":"'BP Financier'!$F$44*(('BP Financier'!$C$19+'BP Financier'!$D$19+'BP Financier'!$E$19+'BP Financier'!$F$19)/('BP Financier'!$C$16+'BP Financier'!$C$19+'BP Financier'!$D$16+'BP Financier'!$D$19+'BP Financier'!$E$16+'BP Financier'!$E$19+'BP Financier'!$C$22+'BP Financier'!$D$22+'BP Financier'!$E$22+'BP Financier'!$F$22+'BP Financier'!$F$19+'BP Financier'!$F$16))*$V7154*X7154/(1-$W7154)","v":{"v":9836.980547828993,"d":"9,837"}},{"$f":"'BP Financier'!$F$44*(('BP Financier'!$C$19+'BP Financier'!$D$19+'BP Financier'!$E$19+'BP Financier'!$F$19)/('BP Financier'!$C$16+'BP Financier'!$C$19+'BP Financier'!$D$16+'BP Financier'!$D$19+'BP Financier'!$E$16+'BP Financier'!$E$19+'BP Financier'!$C$22+'BP Financier'!$D$22+'BP Financier'!$E$22+'BP Financier'!$F$22+'BP Financier'!$F$19+'BP Financier'!$F$16))*$V7154*Y7154/(1-$W7154)","v":{"v":6576.103018161923,"d":"6,576"}},{"$f":"'BP Financier'!$F$44*(('BP Financier'!$C$19+'BP Financier'!$D$19+'BP Financier'!$E$19+'BP Financier'!$F$19)/('BP Financier'!$C$16+'BP Financier'!$C$19+'BP Financier'!$D$16+'BP Financier'!$D$19+'BP Financier'!$E$16+'BP Financier'!$E$19+'BP Financier'!$C$22+'BP Financier'!$D$22+'BP Financier'!$E$22+'BP Financier'!$F$22+'BP Financier'!$F$19+'BP Financier'!$F$16))*$V7154*Z7154/(1-$W7154)","v":{"v":51467.51700991191,"d":"51,468"}},{"$f":"'BP Financier'!$F$44*(('BP Financier'!$C$19+'BP Financier'!$D$19+'BP Financier'!$E$19+'BP Financier'!$F$19)/('BP Financier'!$C$16+'BP Financier'!$C$19+'BP Financier'!$D$16+'BP Financier'!$D$19+'BP Financier'!$E$16+'BP Financier'!$E$19+'BP Financier'!$C$22+'BP Financier'!$D$22+'BP Financier'!$E$22+'BP Financier'!$F$22+'BP Financier'!$F$19+'BP Financier'!$F$16))*$V7154*AA7154/(1-$W7154)","v":{"v":6358.711182850786,"d":"6,359"}},{"$f":"'BP Financier'!$F$44*(('BP Financier'!$C$19+'BP Financier'!$D$19+'BP Financier'!$E$19+'BP Financier'!$F$19)/('BP Financier'!$C$16+'BP Financier'!$C$19+'BP Financier'!$D$16+'BP Financier'!$D$19+'BP Financier'!$E$16+'BP Financier'!$E$19+'BP Financier'!$C$22+'BP Financier'!$D$22+'BP Financier'!$E$22+'BP Financier'!$F$22+'BP Financier'!$F$19+'BP Financier'!$F$16))*$V7154*AB7154/(1-$W7154)","v":{"v":3043.485694355931,"d":"3,043"}},null,{"v":0.00375,"d":"0.38%"},{"$f":"Actif!$E$28/100","v":{"v":0.28900000000000003,"d":"28.90%"}},{"$f":"Actif!$E$30/100","v":{"v":0.09050000000000001,"d":"9.05%"}},{"$f":"Actif!$E$31/100","v":{"v":0.0605,"d":"6.05%"}},{"$f":"Actif!$E$32/100","v":{"v":0.47350000000000003,"d":"47.35%"}},{"$f":"Actif!$E$33/100","v":{"v":0.0585,"d":"5.85%"}},{"$f":"Actif!$E$29/100","v":{"v":0.027999999999999997,"d":"2.80%"}}]
[null,"#45",29,2026,"F","A_PER",{"v":0.44999999999999996,"d":"0.45"},{"v":0.38999999999999996,"d":"0.39"},0.6,0.6,85,0,{"$f":"ROUND(Primes!$P$7*V7155,0)","v":4},{"$f":"'BP Financier'!$F$33*(('BP Financier'!$C$19+'BP Financier'!$D$19+'BP Financier'!$E$19+'BP Financier'!$F$19)/('BP Financier'!$C$16+'BP Financier'!$C$19+'BP Financier'!$D$16+'BP Financier'!$D$19+'BP Financier'!$E$16+'BP Financier'!$E$19+'BP Financier'!$F$16+'BP Financier'!$F$19))*V7155","v":{"v":136236.6602787241,"d":"136,237"}},{"v":77282.79745310954,"d":"77,283"},{"$f":"'BP Financier'!$F$44*(('BP Financier'!$C$19+'BP Financier'!$D$19+'BP Financier'!$E$19+'BP Financier'!$F$19)/('BP Financier'!$C$16+'BP Financier'!$C$19+'BP Financier'!$D$16+'BP Financier'!$D$19+'BP Financier'!$E$16+'BP Financier'!$E$19+'BP Financier'!$C$22+'BP Financier'!$D$22+'BP Financier'!$E$22+'BP Financier'!$F$22+'BP Financier'!$F$19+'BP Financier'!$F$16))*$V7155*X7155/(1-$W7155)","v":{"v":9836.980547828993,"d":"9,837"}},{"$f":"'BP Financier'!$F$44*(('BP Financier'!$C$19+'BP Financier'!$D$19+'BP Financier'!$E$19+'BP Financier'!$F$19)/('BP Financier'!$C$16+'BP Financier'!$C$19+'BP Financier'!$D$16+'BP Financier'!$D$19+'BP Financier'!$E$16+'BP Financier'!$E$19+'BP Financier'!$C$22+'BP Financier'!$D$22+'BP Financier'!$E$22+'BP Financier'!$F$22+'BP Financier'!$F$19+'BP Financier'!$F$16))*$V7155*Y7155/(1-$W7155)","v":{"v":6576.103018161923,"d":"6,576"}},{"$f":"'BP Financier'!$F$44*(('BP Financier'!$C$19+'BP Financier'!$D$19+'BP Financier'!$E$19+'BP Financier'!$F$19)/('BP Financier'!$C$16+'BP Financier'!$C$19+'BP Financier'!$D$16+'BP Financier'!$D$19+'BP Financier'!$E$16+'BP Financier'!$E$19+'BP Financier'!$C$22+'BP Financier'!$D$22+'BP Financier'!$E$22+'BP Financier'!$F$22+'BP Financier'!$F$19+'BP Financier'!$F$16))*$V7155*Z7155/(1-$W7155)","v":{"v":51467.51700991191,"d":"51,468"}},{"$f":"'BP Financier'!$F$44*(('BP Financier'!$C$19+'BP Financier'!$D$19+'BP Financier'!$E$19+'BP Financier'!$F$19)/('BP Financier'!$C$16+'BP Financier'!$C$19+'BP Financier'!$D$16+'BP Financier'!$D$19+'BP Financier'!$E$16+'BP Financier'!$E$19+'BP Financier'!$C$22+'BP Financier'!$D$22+'BP Financier'!$E$22+'BP Financier'!$F$22+'BP Financier'!$F$19+'BP Financier'!$F$16))*$V7155*AA7155/(1-$W7155)","v":{"v":6358.711182850786,"d":"6,359"}},{"$f":"'BP Financier'!$F$44*(('BP Financier'!$C$19+'BP Financier'!$D$19+'BP Financier'!$E$19+'BP Financier'!$F$19)/('BP Financier'!$C$16+'BP Financier'!$C$19+'BP Financier'!$D$16+'BP Financier'!$D$19+'BP Financier'!$E$16+'BP Financier'!$E$19+'BP Financier'!$C$22+'BP Financier'!$D$22+'BP Financier'!$E$22+'BP Financier'!$F$22+'BP Financier'!$F$19+'BP Financier'!$F$16))*$V7155*AB7155/(1-$W7155)","v":{"v":3043.485694355931,"d":"3,043"}},null,{"v":0.00375,"d":"0.38%"},{"$f":"Actif!$E$28/100","v":{"v":0.28900000000000003,"d":"28.90%"}},{"$f":"Actif!$E$30/100","v":{"v":0.09050000000000001,"d":"9.05%"}},{"$f":"Actif!$E$31/100","v":{"v":0.0605,"d":"6.05%"}},{"$f":"Actif!$E$32/100","v":{"v":0.47350000000000003,"d":"47.35%"}},{"$f":"Actif!$E$33/100","v":{"v":0.0585,"d":"5.85%"}},{"$f":"Actif!$E$29/100","v":{"v":0.027999999999999997,"d":"2.80%"}}]
[null,"#46",29,2028,"F","A_PER",{"v":0.44999999999999996,"d":"0.45"},{"v":0.38999999999999996,"d":"0.39"},0.6,0.6,85,0,{"$f":"ROUND(Primes!$P$7*V7156,0)","v":4},{"$f":"'BP Financier'!$F$33*(('BP Financier'!$C$19+'BP Financier'!$D$19+'BP Financier'!$E$19+'BP Financier'!$F$19)/('BP Financier'!$C$16+'BP Financier'!$C$19+'BP Financier'!$D$16+'BP Financier'!$D$19+'BP Financier'!$E$16+'BP Financier'!$E$19+'BP Financier'!$F$16+'BP Financier'!$F$19))*V7156","v":{"v":136236.6602787241,"d":"136,237"}},{"v":77282.79745310954,"d":"77,283"},{"$f":"'BP Financier'!$F$44*(('BP Financier'!$C$19+'BP Financier'!$D$19+'BP Financier'!$E$19+'BP Financier'!$F$19)/('BP Financier'!$C$16+'BP Financier'!$C$19+'BP Financier'!$D$16+'BP Financier'!$D$19+'BP Financier'!$E$16+'BP Financier'!$E$19+'BP Financier'!$C$22+'BP Financier'!$D$22+'BP Financier'!$E$22+'BP Financier'!$F$22+'BP Financier'!$F$19+'BP Financier'!$F$16))*$V7156*X7156/(1-$W7156)","v":{"v":9836.980547828993,"d":"9,837"}},{"$f":"'BP Financier'!$F$44*(('BP Financier'!$C$19+'BP Financier'!$D$19+'BP Financier'!$E$19+'BP Financier'!$F$19)/('BP Financier'!$C$16+'BP Financier'!$C$19+'BP Financier'!$D$16+'BP Financier'!$D$19+'BP Financier'!$E$16+'BP Financier'!$E$19+'BP Financier'!$C$22+'BP Financier'!$D$22+'BP Financier'!$E$22+'BP Financier'!$F$22+'BP Financier'!$F$19+'BP Financier'!$F$16))*$V7156*Y7156/(1-$W7156)","v":{"v":6576.103018161923,"d":"6,576"}},{"$f":"'BP Financier'!$F$44*(('BP Financier'!$C$19+'BP Financier'!$D$19+'BP Financier'!$E$19+'BP Financier'!$F$19)/('BP Financier'!$C$16+'BP Financier'!$C$19+'BP Financier'!$D$16+'BP Financier'!$D$19+'BP Financier'!$E$16+'BP Financier'!$E$19+'BP Financier'!$C$22+'BP Financier'!$D$22+'BP Financier'!$E$22+'BP Financier'!$F$22+'BP Financier'!$F$19+'BP Financier'!$F$16))*$V7156*Z7156/(1-$W7156)","v":{"v":51467.51700991191,"d":"51,468"}},{"$f":"'BP Financier'!$F$44*(('BP Financier'!$C$19+'BP Financier'!$D$19+'BP Financier'!$E$19+'BP Financier'!$F$19)/('BP Financier'!$C$16+'BP Financier'!$C$19+'BP Financier'!$D$16+'BP Financier'!$D$19+'BP Financier'!$E$16+'BP Financier'!$E$19+'BP Financier'!$C$22+'BP Financier'!$D$22+'BP Financier'!$E$22+'BP Financier'!$F$22+'BP Financier'!$F$19+'BP Financier'!$F$16))*$V7156*AA7156/(1-$W7156)","v":{"v":6358.711182850786,"d":"6,359"}},{"$f":"'BP Financier'!$F$44*(('BP Financier'!$C$19+'BP Financier'!$D$19+'BP Financier'!$E$19+'BP Financier'!$F$19)/('BP Financier'!$C$16+'BP Financier'!$C$19+'BP Financier'!$D$16+'BP Financier'!$D$19+'BP Financier'!$E$16+'BP Financier'!$E$19+'BP Financier'!$C$22+'BP Financier'!$D$22+'BP Financier'!$E$22+'BP Financier'!$F$22+'BP Financier'!$F$19+'BP Financier'!$F$16))*$V7156*AB7156/(1-$W7156)","v":{"v":3043.485694355931,"d":"3,043"}},null,{"v":0.00375,"d":"0.38%"},{"$f":"Actif!$E$28/100","v":{"v":0.28900000000000003,"d":"28.90%"}},{"$f":"Actif!$E$30/100","v":{"v":0.09050000000000001,"d":"9.05%"}},{"$f":"Actif!$E$31/100","v":{"v":0.0605,"d":"6.05%"}},{"$f":"Actif!$E$32/100","v":{"v":0.47350000000000003,"d":"47.35%"}},{"$f":"Actif!$E$33/100","v":{"v":0.0585,"d":"5.85%"}},{"$f":"Actif!$E$29/100","v":{"v":0.027999999999999997,"d":"2.80%"}}]
[null,"#47",29,2029,"F","A_PER",{"v":0.44999999999999996,"d":"0.45"},{"v":0.38999999999999996,"d":"0.39"},0.6,0.6,85,0,{"$f":"ROUND(Primes!$P$7*V7157,0)","v":4},{"$f":"'BP Financier'!$F$33*(('BP Financier'!$C$19+'BP Financier'!$D$19+'BP Financier'!$E$19+'BP Financier'!$F$19)/('BP Financier'!$C$16+'BP Financier'!$C$19+'BP Financier'!$D$16+'BP Financier'!$D$19+'BP Financier'!$E$16+'BP Financier'!$E$19+'BP Financier'!$F$16+'BP Financier'!$F$19))*V7157","v":{"v":136236.6602787241,"d":"136,237"}},{"v":77282.79745310954,"d":"77,283"},{"$f":"'BP Financier'!$F$44*(('BP Financier'!$C$19+'BP Financier'!$D$19+'BP Financier'!$E$19+'BP Financier'!$F$19)/('BP Financier'!$C$16+'BP Financier'!$C$19+'BP Financier'!$D$16+'BP Financier'!$D$19+'BP Financier'!$E$16+'BP Financier'!$E$19+'BP Financier'!$C$22+'BP Financier'!$D$22+'BP Financier'!$E$22+'BP Financier'!$F$22+'BP Financier'!$F$19+'BP Financier'!$F$16))*$V7157*X7157/(1-$W7157)","v":{"v":9836.980547828993,"d":"9,837"}},{"$f":"'BP Financier'!$F$44*(('BP Financier'!$C$19+'BP Financier'!$D$19+'BP Financier'!$E$19+'BP Financier'!$F$19)/('BP Financier'!$C$16+'BP Financier'!$C$19+'BP Financier'!$D$16+'BP Financier'!$D$19+'BP Financier'!$E$16+'BP Financier'!$E$19+'BP Financier'!$C$22+'BP Financier'!$D$22+'BP Financier'!$E$22+'BP Financier'!$F$22+'BP Financier'!$F$19+'BP Financier'!$F$16))*$V7157*Y7157/(1-$W7157)","v":{"v":6576.103018161923,"d":"6,576"}},{"$f":"'BP Financier'!$F$44*(('BP Financier'!$C$19+'BP Financier'!$D$19+'BP Financier'!$E$19+'BP Financier'!$F$19)/('BP Financier'!$C$16+'BP Financier'!$C$19+'BP Financier'!$D$16+'BP Financier'!$D$19+'BP Financier'!$E$16+'BP Financier'!$E$19+'BP Financier'!$C$22+'BP Financier'!$D$22+'BP Financier'!$E$22+'BP Financier'!$F$22+'BP Financier'!$F$19+'BP Financier'!$F$16))*$V7157*Z7157/(1-$W7157)","v":{"v":51467.51700991191,"d":"51,468"}},{"$f":"'BP Financier'!$F$44*(('BP Financier'!$C$19+'BP Financier'!$D$19+'BP Financier'!$E$19+'BP Financier'!$F$19)/('BP Financier'!$C$16+'BP Financier'!$C$19+'BP Financier'!$D$16+'BP Financier'!$D$19+'BP Financier'!$E$16+'BP Financier'!$E$19+'BP Financier'!$C$22+'BP Financier'!$D$22+'BP Financier'!$E$22+'BP Financier'!$F$22+'BP Financier'!$F$19+'BP Financier'!$F$16))*$V7157*AA7157/(1-$W7157)","v":{"v":6358.711182850786,"d":"6,359"}},{"$f":"'BP Financier'!$F$44*(('BP Financier'!$C$19+'BP Financier'!$D$19+'BP Financier'!$E$19+'BP Financier'!$F$19)/('BP Financier'!$C$16+'BP Financier'!$C$19+'BP Financier'!$D$16+'BP Financier'!$D$19+'BP Financier'!$E$16+'BP Financier'!$E$19+'BP Financier'!$C$22+'BP Financier'!$D$22+'BP Financier'!$E$22+'BP Financier'!$F$22+'BP Financier'!$F$19+'BP Financier'!$F$16))*$V7157*AB7157/(1-$W7157)","v":{"v":3043.485694355931,"d":"3,043"}},null,{"v":0.00375,"d":"0.38%"},{"$f":"Actif!$E$28/100","v":{"v":0.28900000000000003,"d":"28.90%"}},{"$f":"Actif!$E$30/100","v":{"v":0.09050000000000001,"d":"9.05%"}},{"$f":"Actif!$E$31/100","v":{"v":0.0605,"d":"6.05%"}},{"$f":"Actif!$E$32/100","v":{"v":0.47350000000000003,"d":"47.35%"}},{"$f":"Actif!$E$33/100","v":{"v":0.0585,"d":"5.85%"}},{"$f":"Actif!$E$29/100","v":{"v":0.027999999999999997,"d":"2.80%"}}]
[null,"#48",29,2030,"F","A_PER",{"v":0.44999999999999996,"d":"0.45"},{"v":0.38999999999999996,"d":"0.39"},0.6,0.6,85,0,{"$f":"ROUND(Primes!$P$7*V7158,0)","v":4},{"$f":"'BP Financier'!$F$33*(('BP Financier'!$C$19+'BP Financier'!$D$19+'BP Financier'!$E$19+'BP Financier'!$F$19)/('BP Financier'!$C$16+'BP Financier'!$C$19+'BP Financier'!$D$16+'BP Financier'!$D$19+'BP Financier'!$E$16+'BP Financier'!$E$19+'BP Financier'!$F$16+'BP Financier'!$F$19))*V7158","v":{"v":136236.6602787241,"d":"136,237"}},{"v":77282.79745310954,"d":"77,283"},{"$f":"'BP Financier'!$F$44*(('BP Financier'!$C$19+'BP Financier'!$D$19+'BP Financier'!$E$19+'BP Financier'!$F$19)/('BP Financier'!$C$16+'BP Financier'!$C$19+'BP Financier'!$D$16+'BP Financier'!$D$19+'BP Financier'!$E$16+'BP Financier'!$E$19+'BP Financier'!$C$22+'BP Financier'!$D$22+'BP Financier'!$E$22+'BP Financier'!$F$22+'BP Financier'!$F$19+'BP Financier'!$F$16))*$V7158*X7158/(1-$W7158)","v":{"v":9836.980547828993,"d":"9,837"}},{"$f":"'BP Financier'!$F$44*(('BP Financier'!$C$19+'BP Financier'!$D$19+'BP Financier'!$E$19+'BP Financier'!$F$19)/('BP Financier'!$C$16+'BP Financier'!$C$19+'BP Financier'!$D$16+'BP Financier'!$D$19+'BP Financier'!$E$16+'BP Financier'!$E$19+'BP Financier'!$C$22+'BP Financier'!$D$22+'BP Financier'!$E$22+'BP Financier'!$F$22+'BP Financier'!$F$19+'BP Financier'!$F$16))*$V7158*Y7158/(1-$W7158)","v":{"v":6576.103018161923,"d":"6,576"}},{"$f":"'BP Financier'!$F$44*(('BP Financier'!$C$19+'BP Financier'!$D$19+'BP Financier'!$E$19+'BP Financier'!$F$19)/('BP Financier'!$C$16+'BP Financier'!$C$19+'BP Financier'!$D$16+'BP Financier'!$D$19+'BP Financier'!$E$16+'BP Financier'!$E$19+'BP Financier'!$C$22+'BP Financier'!$D$22+'BP Financier'!$E$22+'BP Financier'!$F$22+'BP Financier'!$F$19+'BP Financier'!$F$16))*$V7158*Z7158/(1-$W7158)","v":{"v":51467.51700991191,"d":"51,468"}},{"$f":"'BP Financier'!$F$44*(('BP Financier'!$C$19+'BP Financier'!$D$19+'BP Financier'!$E$19+'BP Financier'!$F$19)/('BP Financier'!$C$16+'BP Financier'!$C$19+'BP Financier'!$D$16+'BP Financier'!$D$19+'BP Financier'!$E$16+'BP Financier'!$E$19+'BP Financier'!$C$22+'BP Financier'!$D$22+'BP Financier'!$E$22+'BP Financier'!$F$22+'BP Financier'!$F$19+'BP Financier'!$F$16))*$V7158*AA7158/(1-$W7158)","v":{"v":6358.711182850786,"d":"6,359"}},{"$f":"'BP Financier'!$F$44*(('BP Financier'!$C$19+'BP Financier'!$D$19+'BP Financier'!$E$19+'BP Financier'!$F$19)/('BP Financier'!$C$16+'BP Financier'!$C$19+'BP Financier'!$D$16+'BP Financier'!$D$19+'BP Financier'!$E$16+'BP Financier'!$E$19+'BP Financier'!$C$22+'BP Financier'!$D$22+'BP Financier'!$E$22+'BP Financier'!$F$22+'BP Financier'!$F$19+'BP Financier'!$F$16))*$V7158*AB7158/(1-$W7158)","v":{"v":3043.485694355931,"d":"3,043"}},null,{"v":0.00375,"d":"0.38%"},{"$f":"Actif!$E$28/100","v":{"v":0.28900000000000003,"d":"28.90%"}},{"$f":"Actif!$E$30/100","v":{"v":0.09050000000000001,"d":"9.05%"}},{"$f":"Actif!$E$31/100","v":{"v":0.0605,"d":"6.05%"}},{"$f":"Actif!$E$32/100","v":{"v":0.47350000000000003,"d":"47.35%"}},{"$f":"Actif!$E$33/100","v":{"v":0.0585,"d":"5.85%"}},{"$f":"Actif!$E$29/100","v":{"v":0.027999999999999997,"d":"2.80%"}}]
[null,"#49",30,2026,"H","A_PER",{"v":0.44999999999999996,"d":"0.45"},{"v":0.38999999999999996,"d":"0.39"},0.6,0.6,85,0,{"$f":"ROUND(Primes!$P$7*V7159,0)","v":4},{"$f":"'BP Financier'!$F$33*(('BP Financier'!$C$19+'BP Financier'!$D$19+'BP Financier'!$E$19+'BP Financier'!$F$19)/('BP Financier'!$C$16+'BP Financier'!$C$19+'BP Financier'!$D$16+'BP Financier'!$D$19+'BP Financier'!$E$16+'BP Financier'!$E$19+'BP Financier'!$F$16+'BP Financier'!$F$19))*V7159","v":{"v":136236.6602787241,"d":"136,237"}},{"v":77282.79745310954,"d":"77,283"},{"$f":"'BP Financier'!$F$44*(('BP Financier'!$C$19+'BP Financier'!$D$19+'BP Financier'!$E$19+'BP Financier'!$F$19)/('BP Financier'!$C$16+'BP Financier'!$C$19+'BP Financier'!$D$16+'BP Financier'!$D$19+'BP Financier'!$E$16+'BP Financier'!$E$19+'BP Financier'!$C$22+'BP Financier'!$D$22+'BP Financier'!$E$22+'BP Financier'!$F$22+'BP Financier'!$F$19+'BP Financier'!$F$16))*$V7159*X7159/(1-$W7159)","v":{"v":9836.980547828993,"d":"9,837"}},{"$f":"'BP Financier'!$F$44*(('BP Financier'!$C$19+'BP Financier'!$D$19+'BP Financier'!$E$19+'BP Financier'!$F$19)/('BP Financier'!$C$16+'BP Financier'!$C$19+'BP Financier'!$D$16+'BP Financier'!$D$19+'BP Financier'!$E$16+'BP Financier'!$E$19+'BP Financier'!$C$22+'BP Financier'!$D$22+'BP Financier'!$E$22+'BP Financier'!$F$22+'BP Financier'!$F$19+'BP Financier'!$F$16))*$V7159*Y7159/(1-$W7159)","v":{"v":6576.103018161923,"d":"6,576"}},{"$f":"'BP Financier'!$F$44*(('BP Financier'!$C$19+'BP Financier'!$D$19+'BP Financier'!$E$19+'BP Financier'!$F$19)/('BP Financier'!$C$16+'BP Financier'!$C$19+'BP Financier'!$D$16+'BP Financier'!$D$19+'BP Financier'!$E$16+'BP Financier'!$E$19+'BP Financier'!$C$22+'BP Financier'!$D$22+'BP Financier'!$E$22+'BP Financier'!$F$22+'BP Financier'!$F$19+'BP Financier'!$F$16))*$V7159*Z7159/(1-$W7159)","v":{"v":51467.51700991191,"d":"51,468"}},{"$f":"'BP Financier'!$F$44*(('BP Financier'!$C$19+'BP Financier'!$D$19+'BP Financier'!$E$19+'BP Financier'!$F$19)/('BP Financier'!$C$16+'BP Financier'!$C$19+'BP Financier'!$D$16+'BP Financier'!$D$19+'BP Financier'!$E$16+'BP Financier'!$E$19+'BP Financier'!$C$22+'BP Financier'!$D$22+'BP Financier'!$E$22+'BP Financier'!$F$22+'BP Financier'!$F$19+'BP Financier'!$F$16))*$V7159*AA7159/(1-$W7159)","v":{"v":6358.711182850786,"d":"6,359"}},{"$f":"'BP Financier'!$F$44*(('BP Financier'!$C$19+'BP Financier'!$D$19+'BP Financier'!$E$19+'BP Financier'!$F$19)/('BP Financier'!$C$16+'BP Financier'!$C$19+'BP Financier'!$D$16+'BP Financier'!$D$19+'BP Financier'!$E$16+'BP Financier'!$E$19+'BP Financier'!$C$22+'BP Financier'!$D$22+'BP Financier'!$E$22+'BP Financier'!$F$22+'BP Financier'!$F$19+'BP Financier'!$F$16))*$V7159*AB7159/(1-$W7159)","v":{"v":3043.485694355931,"d":"3,043"}},null,{"v":0.00375,"d":"0.38%"},{"$f":"Actif!$E$28/100","v":{"v":0.28900000000000003,"d":"28.90%"}},{"$f":"Actif!$E$30/100","v":{"v":0.09050000000000001,"d":"9.05%"}},{"$f":"Actif!$E$31/100","v":{"v":0.0605,"d":"6.05%"}},{"$f":"Actif!$E$32/100","v":{"v":0.47350000000000003,"d":"47.35%"}},{"$f":"Actif!$E$33/100","v":{"v":0.0585,"d":"5.85%"}},{"$f":"Actif!$E$29/100","v":{"v":0.027999999999999997,"d":"2.80%"}}]
[null,"#50",30,2028,"H","A_PER",{"v":0.44999999999999996,"d":"0.45"},{"v":0.38999999999999996,"d":"0.39"},0.6,0.6,85,0,{"$f":"ROUND(Primes!$P$7*V7160,0)","v":4},{"$f":"'BP Financier'!$F$33*(('BP Financier'!$C$19+'BP Financier'!$D$19+'BP Financier'!$E$19+'BP Financier'!$F$19)/('BP Financier'!$C$16+'BP Financier'!$C$19+'BP Financier'!$D$16+'BP Financier'!$D$19+'BP Financier'!$E$16+'BP Financier'!$E$19+'BP Financier'!$F$16+'BP Financier'!$F$19))*V7160","v":{"v":136236.6602787241,"d":"136,237"}},{"v":77282.79745310954,"d":"77,283"},{"$f":"'BP Financier'!$F$44*(('BP Financier'!$C$19+'BP Financier'!$D$19+'BP Financier'!$E$19+'BP Financier'!$F$19)/('BP Financier'!$C$16+'BP Financier'!$C$19+'BP Financier'!$D$16+'BP Financier'!$D$19+'BP Financier'!$E$16+'BP Financier'!$E$19+'BP Financier'!$C$22+'BP Financier'!$D$22+'BP Financier'!$E$22+'BP Financier'!$F$22+'BP Financier'!$F$19+'BP Financier'!$F$16))*$V7160*X7160/(1-$W7160)","v":{"v":9836.980547828993,"d":"9,837"}},{"$f":"'BP Financier'!$F$44*(('BP Financier'!$C$19+'BP Financier'!$D$19+'BP Financier'!$E$19+'BP Financier'!$F$19)/('BP Financier'!$C$16+'BP Financier'!$C$19+'BP Financier'!$D$16+'BP Financier'!$D$19+'BP Financier'!$E$16+'BP Financier'!$E$19+'BP Financier'!$C$22+'BP Financier'!$D$22+'BP Financier'!$E$22+'BP Financier'!$F$22+'BP Financier'!$F$19+'BP Financier'!$F$16))*$V7160*Y7160/(1-$W7160)","v":{"v":6576.103018161923,"d":"6,576"}},{"$f":"'BP Financier'!$F$44*(('BP Financier'!$C$19+'BP Financier'!$D$19+'BP Financier'!$E$19+'BP Financier'!$F$19)/('BP Financier'!$C$16+'BP Financier'!$C$19+'BP Financier'!$D$16+'BP Financier'!$D$19+'BP Financier'!$E$16+'BP Financier'!$E$19+'BP Financier'!$C$22+'BP Financier'!$D$22+'BP Financier'!$E$22+'BP Financier'!$F$22+'BP Financier'!$F$19+'BP Financier'!$F$16))*$V7160*Z7160/(1-$W7160)","v":{"v":51467.51700991191,"d":"51,468"}},{"$f":"'BP Financier'!$F$44*(('BP Financier'!$C$19+'BP Financier'!$D$19+'BP Financier'!$E$19+'BP Financier'!$F$19)/('BP Financier'!$C$16+'BP Financier'!$C$19+'BP Financier'!$D$16+'BP Financier'!$D$19+'BP Financier'!$E$16+'BP Financier'!$E$19+'BP Financier'!$C$22+'BP Financier'!$D$22+'BP Financier'!$E$22+'BP Financier'!$F$22+'BP Financier'!$F$19+'BP Financier'!$F$16))*$V7160*AA7160/(1-$W7160)","v":{"v":6358.711182850786,"d":"6,359"}},{"$f":"'BP Financier'!$F$44*(('BP Financier'!$C$19+'BP Financier'!$D$19+'BP Financier'!$E$19+'BP Financier'!$F$19)/('BP Financier'!$C$16+'BP Financier'!$C$19+'BP Financier'!$D$16+'BP Financier'!$D$19+'BP Financier'!$E$16+'BP Financier'!$E$19+'BP Financier'!$C$22+'BP Financier'!$D$22+'BP Financier'!$E$22+'BP Financier'!$F$22+'BP Financier'!$F$19+'BP Financier'!$F$16))*$V7160*AB7160/(1-$W7160)","v":{"v":3043.485694355931,"d":"3,043"}},null,{"v":0.00375,"d":"0.38%"},{"$f":"Actif!$E$28/100","v":{"v":0.28900000000000003,"d":"28.90%"}},{"$f":"Actif!$E$30/100","v":{"v":0.09050000000000001,"d":"9.05%"}},{"$f":"Actif!$E$31/100","v":{"v":0.0605,"d":"6.05%"}},{"$f":"Actif!$E$32/100","v":{"v":0.47350000000000003,"d":"47.35%"}},{"$f":"Actif!$E$33/100","v":{"v":0.0585,"d":"5.85%"}},{"$f":"Actif!$E$29/100","v":{"v":0.027999999999999997,"d":"2.80%"}}]
[null,"#51",30,2029,"H","A_PER",{"v":0.44999999999999996,"d":"0.45"},{"v":0.38999999999999996,"d":"0.39"},0.6,0.6,85,0,{"$f":"ROUND(Primes!$P$7*V7161,0)","v":4},{"$f":"'BP Financier'!$F$33*(('BP Financier'!$C$19+'BP Financier'!$D$19+'BP Financier'!$E$19+'BP Financier'!$F$19)/('BP Financier'!$C$16+'BP Financier'!$C$19+'BP Financier'!$D$16+'BP Financier'!$D$19+'BP Financier'!$E$16+'BP Financier'!$E$19+'BP Financier'!$F$16+'BP Financier'!$F$19))*V7161","v":{"v":136236.6602787241,"d":"136,237"}},{"v":77282.79745310954,"d":"77,283"},{"$f":"'BP Financier'!$F$44*(('BP Financier'!$C$19+'BP Financier'!$D$19+'BP Financier'!$E$19+'BP Financier'!$F$19)/('BP Financier'!$C$16+'BP Financier'!$C$19+'BP Financier'!$D$16+'BP Financier'!$D$19+'BP Financier'!$E$16+'BP Financier'!$E$19+'BP Financier'!$C$22+'BP Financier'!$D$22+'BP Financier'!$E$22+'BP Financier'!$F$22+'BP Financier'!$F$19+'BP Financier'!$F$16))*$V7161*X7161/(1-$W7161)","v":{"v":9836.980547828993,"d":"9,837"}},{"$f":"'BP Financier'!$F$44*(('BP Financier'!$C$19+'BP Financier'!$D$19+'BP Financier'!$E$19+'BP Financier'!$F$19)/('BP Financier'!$C$16+'BP Financier'!$C$19+'BP Financier'!$D$16+'BP Financier'!$D$19+'BP Financier'!$E$16+'BP Financier'!$E$19+'BP Financier'!$C$22+'BP Financier'!$D$22+'BP Financier'!$E$22+'BP Financier'!$F$22+'BP Financier'!$F$19+'BP Financier'!$F$16))*$V7161*Y7161/(1-$W7161)","v":{"v":6576.103018161923,"d":"6,576"}},{"$f":"'BP Financier'!$F$44*(('BP Financier'!$C$19+'BP Financier'!$D$19+'BP Financier'!$E$19+'BP Financier'!$F$19)/('BP Financier'!$C$16+'BP Financier'!$C$19+'BP Financier'!$D$16+'BP Financier'!$D$19+'BP Financier'!$E$16+'BP Financier'!$E$19+'BP Financier'!$C$22+'BP Financier'!$D$22+'BP Financier'!$E$22+'BP Financier'!$F$22+'BP Financier'!$F$19+'BP Financier'!$F$16))*$V7161*Z7161/(1-$W7161)","v":{"v":51467.51700991191,"d":"51,468"}},{"$f":"'BP Financier'!$F$44*(('BP Financier'!$C$19+'BP Financier'!$D$19+'BP Financier'!$E$19+'BP Financier'!$F$19)/('BP Financier'!$C$16+'BP Financier'!$C$19+'BP Financier'!$D$16+'BP Financier'!$D$19+'BP Financier'!$E$16+'BP Financier'!$E$19+'BP Financier'!$C$22+'BP Financier'!$D$22+'BP Financier'!$E$22+'BP Financier'!$F$22+'BP Financier'!$F$19+'BP Financier'!$F$16))*$V7161*AA7161/(1-$W7161)","v":{"v":6358.711182850786,"d":"6,359"}},{"$f":"'BP Financier'!$F$44*(('BP Financier'!$C$19+'BP Financier'!$D$19+'BP Financier'!$E$19+'BP Financier'!$F$19)/('BP Financier'!$C$16+'BP Financier'!$C$19+'BP Financier'!$D$16+'BP Financier'!$D$19+'BP Financier'!$E$16+'BP Financier'!$E$19+'BP Financier'!$C$22+'BP Financier'!$D$22+'BP Financier'!$E$22+'BP Financier'!$F$22+'BP Financier'!$F$19+'BP Financier'!$F$16))*$V7161*AB7161/(1-$W7161)","v":{"v":3043.485694355931,"d":"3,043"}},null,{"v":0.00375,"d":"0.38%"},{"$f":"Actif!$E$28/100","v":{"v":0.28900000000000003,"d":"28.90%"}},{"$f":"Actif!$E$30/100","v":{"v":0.09050000000000001,"d":"9.05%"}},{"$f":"Actif!$E$31/100","v":{"v":0.0605,"d":"6.05%"}},{"$f":"Actif!$E$32/100","v":{"v":0.47350000000000003,"d":"47.35%"}},{"$f":"Actif!$E$33/100","v":{"v":0.0585,"d":"5.85%"}},{"$f":"Actif!$E$29/100","v":{"v":0.027999999999999997,"d":"2.80%"}}]
[null,"#52",30,2030,"H","A_PER",{"v":0.44999999999999996,"d":"0.45"},{"v":0.38999999999999996,"d":"0.39"},0.6,0.6,85,0,{"$f":"ROUND(Primes!$P$7*V7162,0)","v":4},{"$f":"'BP Financier'!$F$33*(('BP Financier'!$C$19+'BP Financier'!$D$19+'BP Financier'!$E$19+'BP Financier'!$F$19)/('BP Financier'!$C$16+'BP Financier'!$C$19+'BP Financier'!$D$16+'BP Financier'!$D$19+'BP Financier'!$E$16+'BP Financier'!$E$19+'BP Financier'!$F$16+'BP Financier'!$F$19))*V7162","v":{"v":136236.6602787241,"d":"136,237"}},{"v":77282.79745310954,"d":"77,283"},{"$f":"'BP Financier'!$F$44*(('BP Financier'!$C$19+'BP Financier'!$D$19+'BP Financier'!$E$19+'BP Financier'!$F$19)/('BP Financier'!$C$16+'BP Financier'!$C$19+'BP Financier'!$D$16+'BP Financier'!$D$19+'BP Financier'!$E$16+'BP Financier'!$E$19+'BP Financier'!$C$22+'BP Financier'!$D$22+'BP Financier'!$E$22+'BP Financier'!$F$22+'BP Financier'!$F$19+'BP Financier'!$F$16))*$V7162*X7162/(1-$W7162)","v":{"v":9836.980547828993,"d":"9,837"}},{"$f":"'BP Financier'!$F$44*(('BP Financier'!$C$19+'BP Financier'!$D$19+'BP Financier'!$E$19+'BP Financier'!$F$19)/('BP Financier'!$C$16+'BP Financier'!$C$19+'BP Financier'!$D$16+'BP Financier'!$D$19+'BP Financier'!$E$16+'BP Financier'!$E$19+'BP Financier'!$C$22+'BP Financier'!$D$22+'BP Financier'!$E$22+'BP Financier'!$F$22+'BP Financier'!$F$19+'BP Financier'!$F$16))*$V7162*Y7162/(1-$W7162)","v":{"v":6576.103018161923,"d":"6,576"}},{"$f":"'BP Financier'!$F$44*(('BP Financier'!$C$19+'BP Financier'!$D$19+'BP Financier'!$E$19+'BP Financier'!$F$19)/('BP Financier'!$C$16+'BP Financier'!$C$19+'BP Financier'!$D$16+'BP Financier'!$D$19+'BP Financier'!$E$16+'BP Financier'!$E$19+'BP Financier'!$C$22+'BP Financier'!$D$22+'BP Financier'!$E$22+'BP Financier'!$F$22+'BP Financier'!$F$19+'BP Financier'!$F$16))*$V7162*Z7162/(1-$W7162)","v":{"v":51467.51700991191,"d":"51,468"}},{"$f":"'BP Financier'!$F$44*(('BP Financier'!$C$19+'BP Financier'!$D$19+'BP Financier'!$E$19+'BP Financier'!$F$19)/('BP Financier'!$C$16+'BP Financier'!$C$19+'BP Financier'!$D$16+'BP Financier'!$D$19+'BP Financier'!$E$16+'BP Financier'!$E$19+'BP Financier'!$C$22+'BP Financier'!$D$22+'BP Financier'!$E$22+'BP Financier'!$F$22+'BP Financier'!$F$19+'BP Financier'!$F$16))*$V7162*AA7162/(1-$W7162)","v":{"v":6358.711182850786,"d":"6,359"}},{"$f":"'BP Financier'!$F$44*(('BP Financier'!$C$19+'BP Financier'!$D$19+'BP Financier'!$E$19+'BP Financier'!$F$19)/('BP Financier'!$C$16+'BP Financier'!$C$19+'BP Financier'!$D$16+'BP Financier'!$D$19+'BP Financier'!$E$16+'BP Financier'!$E$19+'BP Financier'!$C$22+'BP Financier'!$D$22+'BP Financier'!$E$22+'BP Financier'!$F$22+'BP Financier'!$F$19+'BP Financier'!$F$16))*$V7162*AB7162/(1-$W7162)","v":{"v":3043.485694355931,"d":"3,043"}},null,{"v":0.00375,"d":"0.38%"},{"$f":"Actif!$E$28/100","v":{"v":0.28900000000000003,"d":"28.90%"}},{"$f":"Actif!$E$30/100","v":{"v":0.09050000000000001,"d":"9.05%"}},{"$f":"Actif!$E$31/100","v":{"v":0.0605,"d":"6.05%"}},{"$f":"Actif!$E$32/100","v":{"v":0.47350000000000003,"d":"47.35%"}},{"$f":"Actif!$E$33/100","v":{"v":0.0585,"d":"5.85%"}},{"$f":"Actif!$E$29/100","v":{"v":0.027999999999999997,"d":"2.80%"}}]
[null,"#53",31,2026,"H","A_PER",{"v":0.44999999999999996,"d":"0.45"},{"v":0.38999999999999996,"d":"0.39"},0.6,0.6,85,0,{"$f":"ROUND(Primes!$P$7*V7163,0)","v":4},{"$f":"'BP Financier'!$F$33*(('BP Financier'!$C$19+'BP Financier'!$D$19+'BP Financier'!$E$19+'BP Financier'!$F$19)/('BP Financier'!$C$16+'BP Financier'!$C$19+'BP Financier'!$D$16+'BP Financier'!$D$19+'BP Financier'!$E$16+'BP Financier'!$E$19+'BP Financier'!$F$16+'BP Financier'!$F$19))*V7163","v":{"v":136236.6602787241,"d":"136,237"}},{"v":77282.79745310954,"d":"77,283"},{"$f":"'BP Financier'!$F$44*(('BP Financier'!$C$19+'BP Financier'!$D$19+'BP Financier'!$E$19+'BP Financier'!$F$19)/('BP Financier'!$C$16+'BP Financier'!$C$19+'BP Financier'!$D$16+'BP Financier'!$D$19+'BP Financier'!$E$16+'BP Financier'!$E$19+'BP Financier'!$C$22+'BP Financier'!$D$22+'BP Financier'!$E$22+'BP Financier'!$F$22+'BP Financier'!$F$19+'BP Financier'!$F$16))*$V7163*X7163/(1-$W7163)","v":{"v":9836.980547828993,"d":"9,837"}},{"$f":"'BP Financier'!$F$44*(('BP Financier'!$C$19+'BP Financier'!$D$19+'BP Financier'!$E$19+'BP Financier'!$F$19)/('BP Financier'!$C$16+'BP Financier'!$C$19+'BP Financier'!$D$16+'BP Financier'!$D$19+'BP Financier'!$E$16+'BP Financier'!$E$19+'BP Financier'!$C$22+'BP Financier'!$D$22+'BP Financier'!$E$22+'BP Financier'!$F$22+'BP Financier'!$F$19+'BP Financier'!$F$16))*$V7163*Y7163/(1-$W7163)","v":{"v":6576.103018161923,"d":"6,576"}},{"$f":"'BP Financier'!$F$44*(('BP Financier'!$C$19+'BP Financier'!$D$19+'BP Financier'!$E$19+'BP Financier'!$F$19)/('BP Financier'!$C$16+'BP Financier'!$C$19+'BP Financier'!$D$16+'BP Financier'!$D$19+'BP Financier'!$E$16+'BP Financier'!$E$19+'BP Financier'!$C$22+'BP Financier'!$D$22+'BP Financier'!$E$22+'BP Financier'!$F$22+'BP Financier'!$F$19+'BP Financier'!$F$16))*$V7163*Z7163/(1-$W7163)","v":{"v":51467.51700991191,"d":"51,468"}},{"$f":"'BP Financier'!$F$44*(('BP Financier'!$C$19+'BP Financier'!$D$19+'BP Financier'!$E$19+'BP Financier'!$F$19)/('BP Financier'!$C$16+'BP Financier'!$C$19+'BP Financier'!$D$16+'BP Financier'!$D$19+'BP Financier'!$E$16+'BP Financier'!$E$19+'BP Financier'!$C$22+'BP Financier'!$D$22+'BP Financier'!$E$22+'BP Financier'!$F$22+'BP Financier'!$F$19+'BP Financier'!$F$16))*$V7163*AA7163/(1-$W7163)","v":{"v":6358.711182850786,"d":"6,359"}},{"$f":"'BP Financier'!$F$44*(('BP Financier'!$C$19+'BP Financier'!$D$19+'BP Financier'!$E$19+'BP Financier'!$F$19)/('BP Financier'!$C$16+'BP Financier'!$C$19+'BP Financier'!$D$16+'BP Financier'!$D$19+'BP Financier'!$E$16+'BP Financier'!$E$19+'BP Financier'!$C$22+'BP Financier'!$D$22+'BP Financier'!$E$22+'BP Financier'!$F$22+'BP Financier'!$F$19+'BP Financier'!$F$16))*$V7163*AB7163/(1-$W7163)","v":{"v":3043.485694355931,"d":"3,043"}},null,{"v":0.00375,"d":"0.38%"},{"$f":"Actif!$E$28/100","v":{"v":0.28900000000000003,"d":"28.90%"}},{"$f":"Actif!$E$30/100","v":{"v":0.09050000000000001,"d":"9.05%"}},{"$f":"Actif!$E$31/100","v":{"v":0.0605,"d":"6.05%"}},{"$f":"Actif!$E$32/100","v":{"v":0.47350000000000003,"d":"47.35%"}},{"$f":"Actif!$E$33/100","v":{"v":0.0585,"d":"5.85%"}},{"$f":"Actif!$E$29/100","v":{"v":0.027999999999999997,"d":"2.80%"}}]
[null,"#54",31,2028,"H","A_PER",{"v":0.44999999999999996,"d":"0.45"},{"v":0.38999999999999996,"d":"0.39"},0.6,0.6,85,0,{"$f":"ROUND(Primes!$P$7*V7164,0)","v":4},{"$f":"'BP Financier'!$F$33*(('BP Financier'!$C$19+'BP Financier'!$D$19+'BP Financier'!$E$19+'BP Financier'!$F$19)/('BP Financier'!$C$16+'BP Financier'!$C$19+'BP Financier'!$D$16+'BP Financier'!$D$19+'BP Financier'!$E$16+'BP Financier'!$E$19+'BP Financier'!$F$16+'BP Financier'!$F$19))*V7164","v":{"v":136236.6602787241,"d":"136,237"}},{"v":77282.79745310954,"d":"77,283"},{"$f":"'BP Financier'!$F$44*(('BP Financier'!$C$19+'BP Financier'!$D$19+'BP Financier'!$E$19+'BP Financier'!$F$19)/('BP Financier'!$C$16+'BP Financier'!$C$19+'BP Financier'!$D$16+'BP Financier'!$D$19+'BP Financier'!$E$16+'BP Financier'!$E$19+'BP Financier'!$C$22+'BP Financier'!$D$22+'BP Financier'!$E$22+'BP Financier'!$F$22+'BP Financier'!$F$19+'BP Financier'!$F$16))*$V7164*X7164/(1-$W7164)","v":{"v":9836.980547828993,"d":"9,837"}},{"$f":"'BP Financier'!$F$44*(('BP Financier'!$C$19+'BP Financier'!$D$19+'BP Financier'!$E$19+'BP Financier'!$F$19)/('BP Financier'!$C$16+'BP Financier'!$C$19+'BP Financier'!$D$16+'BP Financier'!$D$19+'BP Financier'!$E$16+'BP Financier'!$E$19+'BP Financier'!$C$22+'BP Financier'!$D$22+'BP Financier'!$E$22+'BP Financier'!$F$22+'BP Financier'!$F$19+'BP Financier'!$F$16))*$V7164*Y7164/(1-$W7164)","v":{"v":6576.103018161923,"d":"6,576"}},{"$f":"'BP Financier'!$F$44*(('BP Financier'!$C$19+'BP Financier'!$D$19+'BP Financier'!$E$19+'BP Financier'!$F$19)/('BP Financier'!$C$16+'BP Financier'!$C$19+'BP Financier'!$D$16+'BP Financier'!$D$19+'BP Financier'!$E$16+'BP Financier'!$E$19+'BP Financier'!$C$22+'BP Financier'!$D$22+'BP Financier'!$E$22+'BP Financier'!$F$22+'BP Financier'!$F$19+'BP Financier'!$F$16))*$V7164*Z7164/(1-$W7164)","v":{"v":51467.51700991191,"d":"51,468"}},{"$f":"'BP Financier'!$F$44*(('BP Financier'!$C$19+'BP Financier'!$D$19+'BP Financier'!$E$19+'BP Financier'!$F$19)/('BP Financier'!$C$16+'BP Financier'!$C$19+'BP Financier'!$D$16+'BP Financier'!$D$19+'BP Financier'!$E$16+'BP Financier'!$E$19+'BP Financier'!$C$22+'BP Financier'!$D$22+'BP Financier'!$E$22+'BP Financier'!$F$22+'BP Financier'!$F$19+'BP Financier'!$F$16))*$V7164*AA7164/(1-$W7164)","v":{"v":6358.711182850786,"d":"6,359"}},{"$f":"'BP Financier'!$F$44*(('BP Financier'!$C$19+'BP Financier'!$D$19+'BP Financier'!$E$19+'BP Financier'!$F$19)/('BP Financier'!$C$16+'BP Financier'!$C$19+'BP Financier'!$D$16+'BP Financier'!$D$19+'BP Financier'!$E$16+'BP Financier'!$E$19+'BP Financier'!$C$22+'BP Financier'!$D$22+'BP Financier'!$E$22+'BP Financier'!$F$22+'BP Financier'!$F$19+'BP Financier'!$F$16))*$V7164*AB7164/(1-$W7164)","v":{"v":3043.485694355931,"d":"3,043"}},null,{"v":0.00375,"d":"0.38%"},{"$f":"Actif!$E$28/100","v":{"v":0.28900000000000003,"d":"28.90%"}},{"$f":"Actif!$E$30/100","v":{"v":0.09050000000000001,"d":"9.05%"}},{"$f":"Actif!$E$31/100","v":{"v":0.0605,"d":"6.05%"}},{"$f":"Actif!$E$32/100","v":{"v":0.47350000000000003,"d":"47.35%"}},{"$f":"Actif!$E$33/100","v":{"v":0.0585,"d":"5.85%"}},{"$f":"Actif!$E$29/100","v":{"v":0.027999999999999997,"d":"2.80%"}}]
[null,"#55",31,2029,"H","A_PER",{"v":0.44999999999999996,"d":"0.45"},{"v":0.38999999999999996,"d":"0.39"},0.6,0.6,85,0,{"$f":"ROUND(Primes!$P$7*V7165,0)","v":4},{"$f":"'BP Financier'!$F$33*(('BP Financier'!$C$19+'BP Financier'!$D$19+'BP Financier'!$E$19+'BP Financier'!$F$19)/('BP Financier'!$C$16+'BP Financier'!$C$19+'BP Financier'!$D$16+'BP Financier'!$D$19+'BP Financier'!$E$16+'BP Financier'!$E$19+'BP Financier'!$F$16+'BP Financier'!$F$19))*V7165","v":{"v":136236.6602787241,"d":"136,237"}},{"v":77282.79745310954,"d":"77,283"},{"$f":"'BP Financier'!$F$44*(('BP Financier'!$C$19+'BP Financier'!$D$19+'BP Financier'!$E$19+'BP Financier'!$F$19)/('BP Financier'!$C$16+'BP Financier'!$C$19+'BP Financier'!$D$16+'BP Financier'!$D$19+'BP Financier'!$E$16+'BP Financier'!$E$19+'BP Financier'!$C$22+'BP Financier'!$D$22+'BP Financier'!$E$22+'BP Financier'!$F$22+'BP Financier'!$F$19+'BP Financier'!$F$16))*$V7165*X7165/(1-$W7165)","v":{"v":9836.980547828993,"d":"9,837"}},{"$f":"'BP Financier'!$F$44*(('BP Financier'!$C$19+'BP Financier'!$D$19+'BP Financier'!$E$19+'BP Financier'!$F$19)/('BP Financier'!$C$16+'BP Financier'!$C$19+'BP Financier'!$D$16+'BP Financier'!$D$19+'BP Financier'!$E$16+'BP Financier'!$E$19+'BP Financier'!$C$22+'BP Financier'!$D$22+'BP Financier'!$E$22+'BP Financier'!$F$22+'BP Financier'!$F$19+'BP Financier'!$F$16))*$V7165*Y7165/(1-$W7165)","v":{"v":6576.103018161923,"d":"6,576"}},{"$f":"'BP Financier'!$F$44*(('BP Financier'!$C$19+'BP Financier'!$D$19+'BP Financier'!$E$19+'BP Financier'!$F$19)/('BP Financier'!$C$16+'BP Financier'!$C$19+'BP Financier'!$D$16+'BP Financier'!$D$19+'BP Financier'!$E$16+'BP Financier'!$E$19+'BP Financier'!$C$22+'BP Financier'!$D$22+'BP Financier'!$E$22+'BP Financier'!$F$22+'BP Financier'!$F$19+'BP Financier'!$F$16))*$V7165*Z7165/(1-$W7165)","v":{"v":51467.51700991191,"d":"51,468"}},{"$f":"'BP Financier'!$F$44*(('BP Financier'!$C$19+'BP Financier'!$D$19+'BP Financier'!$E$19+'BP Financier'!$F$19)/('BP Financier'!$C$16+'BP Financier'!$C$19+'BP Financier'!$D$16+'BP Financier'!$D$19+'BP Financier'!$E$16+'BP Financier'!$E$19+'BP Financier'!$C$22+'BP Financier'!$D$22+'BP Financier'!$E$22+'BP Financier'!$F$22+'BP Financier'!$F$19+'BP Financier'!$F$16))*$V7165*AA7165/(1-$W7165)","v":{"v":6358.711182850786,"d":"6,359"}},{"$f":"'BP Financier'!$F$44*(('BP Financier'!$C$19+'BP Financier'!$D$19+'BP Financier'!$E$19+'BP Financier'!$F$19)/('BP Financier'!$C$16+'BP Financier'!$C$19+'BP Financier'!$D$16+'BP Financier'!$D$19+'BP Financier'!$E$16+'BP Financier'!$E$19+'BP Financier'!$C$22+'BP Financier'!$D$22+'BP Financier'!$E$22+'BP Financier'!$F$22+'BP Financier'!$F$19+'BP Financier'!$F$16))*$V7165*AB7165/(1-$W7165)","v":{"v":3043.485694355931,"d":"3,043"}},null,{"v":0.00375,"d":"0.38%"},{"$f":"Actif!$E$28/100","v":{"v":0.28900000000000003,"d":"28.90%"}},{"$f":"Actif!$E$30/100","v":{"v":0.09050000000000001,"d":"9.05%"}},{"$f":"Actif!$E$31/100","v":{"v":0.0605,"d":"6.05%"}},{"$f":"Actif!$E$32/100","v":{"v":0.47350000000000003,"d":"47.35%"}},{"$f":"Actif!$E$33/100","v":{"v":0.0585,"d":"5.85%"}},{"$f":"Actif!$E$29/100","v":{"v":0.027999999999999997,"d":"2.80%"}}]
[null,"#56",31,2030,"H","A_PER",{"v":0.44999999999999996,"d":"0.45"},{"v":0.38999999999999996,"d":"0.39"},0.6,0.6,85,0,{"$f":"ROUND(Primes!$P$7*V7166,0)","v":4},{"$f":"'BP Financier'!$F$33*(('BP Financier'!$C$19+'BP Financier'!$D$19+'BP Financier'!$E$19+'BP Financier'!$F$19)/('BP Financier'!$C$16+'BP Financier'!$C$19+'BP Financier'!$D$16+'BP Financier'!$D$19+'BP Financier'!$E$16+'BP Financier'!$E$19+'BP Financier'!$F$16+'BP Financier'!$F$19))*V7166","v":{"v":136236.6602787241,"d":"136,237"}},{"v":77282.79745310954,"d":"77,283"},{"$f":"'BP Financier'!$F$44*(('BP Financier'!$C$19+'BP Financier'!$D$19+'BP Financier'!$E$19+'BP Financier'!$F$19)/('BP Financier'!$C$16+'BP Financier'!$C$19+'BP Financier'!$D$16+'BP Financier'!$D$19+'BP Financier'!$E$16+'BP Financier'!$E$19+'BP Financier'!$C$22+'BP Financier'!$D$22+'BP Financier'!$E$22+'BP Financier'!$F$22+'BP Financier'!$F$19+'BP Financier'!$F$16))*$V7166*X7166/(1-$W7166)","v":{"v":9836.980547828993,"d":"9,837"}},{"$f":"'BP Financier'!$F$44*(('BP Financier'!$C$19+'BP Financier'!$D$19+'BP Financier'!$E$19+'BP Financier'!$F$19)/('BP Financier'!$C$16+'BP Financier'!$C$19+'BP Financier'!$D$16+'BP Financier'!$D$19+'BP Financier'!$E$16+'BP Financier'!$E$19+'BP Financier'!$C$22+'BP Financier'!$D$22+'BP Financier'!$E$22+'BP Financier'!$F$22+'BP Financier'!$F$19+'BP Financier'!$F$16))*$V7166*Y7166/(1-$W7166)","v":{"v":6576.103018161923,"d":"6,576"}},{"$f":"'BP Financier'!$F$44*(('BP Financier'!$C$19+'BP Financier'!$D$19+'BP Financier'!$E$19+'BP Financier'!$F$19)/('BP Financier'!$C$16+'BP Financier'!$C$19+'BP Financier'!$D$16+'BP Financier'!$D$19+'BP Financier'!$E$16+'BP Financier'!$E$19+'BP Financier'!$C$22+'BP Financier'!$D$22+'BP Financier'!$E$22+'BP Financier'!$F$22+'BP Financier'!$F$19+'BP Financier'!$F$16))*$V7166*Z7166/(1-$W7166)","v":{"v":51467.51700991191,"d":"51,468"}},{"$f":"'BP Financier'!$F$44*(('BP Financier'!$C$19+'BP Financier'!$D$19+'BP Financier'!$E$19+'BP Financier'!$F$19)/('BP Financier'!$C$16+'BP Financier'!$C$19+'BP Financier'!$D$16+'BP Financier'!$D$19+'BP Financier'!$E$16+'BP Financier'!$E$19+'BP Financier'!$C$22+'BP Financier'!$D$22+'BP Financier'!$E$22+'BP Financier'!$F$22+'BP Financier'!$F$19+'BP Financier'!$F$16))*$V7166*AA7166/(1-$W7166)","v":{"v":6358.711182850786,"d":"6,359"}},{"$f":"'BP Financier'!$F$44*(('BP Financier'!$C$19+'BP Financier'!$D$19+'BP Financier'!$E$19+'BP Financier'!$F$19)/('BP Financier'!$C$16+'BP Financier'!$C$19+'BP Financier'!$D$16+'BP Financier'!$D$19+'BP Financier'!$E$16+'BP Financier'!$E$19+'BP Financier'!$C$22+'BP Financier'!$D$22+'BP Financier'!$E$22+'BP Financier'!$F$22+'BP Financier'!$F$19+'BP Financier'!$F$16))*$V7166*AB7166/(1-$W7166)","v":{"v":3043.485694355931,"d":"3,043"}},null,{"v":0.00375,"d":"0.38%"},{"$f":"Actif!$E$28/100","v":{"v":0.28900000000000003,"d":"28.90%"}},{"$f":"Actif!$E$30/100","v":{"v":0.09050000000000001,"d":"9.05%"}},{"$f":"Actif!$E$31/100","v":{"v":0.0605,"d":"6.05%"}},{"$f":"Actif!$E$32/100","v":{"v":0.47350000000000003,"d":"47.35%"}},{"$f":"Actif!$E$33/100","v":{"v":0.0585,"d":"5.85%"}},{"$f":"Actif!$E$29/100","v":{"v":0.027999999999999997,"d":"2.80%"}}]
[null,"#57",32,2026,"F","A_PER",{"v":0.44999999999999996,"d":"0.45"},{"v":0.38999999999999996,"d":"0.39"},0.6,0.6,85,0,{"$f":"ROUND(Primes!$P$7*V7167,0)","v":4},{"$f":"'BP Financier'!$F$33*(('BP Financier'!$C$19+'BP Financier'!$D$19+'BP Financier'!$E$19+'BP Financier'!$F$19)/('BP Financier'!$C$16+'BP Financier'!$C$19+'BP Financier'!$D$16+'BP Financier'!$D$19+'BP Financier'!$E$16+'BP Financier'!$E$19+'BP Financier'!$F$16+'BP Financier'!$F$19))*V7167","v":{"v":136236.6602787241,"d":"136,237"}},{"v":77282.79745310954,"d":"77,283"},{"$f":"'BP Financier'!$F$44*(('BP Financier'!$C$19+'BP Financier'!$D$19+'BP Financier'!$E$19+'BP Financier'!$F$19)/('BP Financier'!$C$16+'BP Financier'!$C$19+'BP Financier'!$D$16+'BP Financier'!$D$19+'BP Financier'!$E$16+'BP Financier'!$E$19+'BP Financier'!$C$22+'BP Financier'!$D$22+'BP Financier'!$E$22+'BP Financier'!$F$22+'BP Financier'!$F$19+'BP Financier'!$F$16))*$V7167*X7167/(1-$W7167)","v":{"v":9836.980547828993,"d":"9,837"}},{"$f":"'BP Financier'!$F$44*(('BP Financier'!$C$19+'BP Financier'!$D$19+'BP Financier'!$E$19+'BP Financier'!$F$19)/('BP Financier'!$C$16+'BP Financier'!$C$19+'BP Financier'!$D$16+'BP Financier'!$D$19+'BP Financier'!$E$16+'BP Financier'!$E$19+'BP Financier'!$C$22+'BP Financier'!$D$22+'BP Financier'!$E$22+'BP Financier'!$F$22+'BP Financier'!$F$19+'BP Financier'!$F$16))*$V7167*Y7167/(1-$W7167)","v":{"v":6576.103018161923,"d":"6,576"}},{"$f":"'BP Financier'!$F$44*(('BP Financier'!$C$19+'BP Financier'!$D$19+'BP Financier'!$E$19+'BP Financier'!$F$19)/('BP Financier'!$C$16+'BP Financier'!$C$19+'BP Financier'!$D$16+'BP Financier'!$D$19+'BP Financier'!$E$16+'BP Financier'!$E$19+'BP Financier'!$C$22+'BP Financier'!$D$22+'BP Financier'!$E$22+'BP Financier'!$F$22+'BP Financier'!$F$19+'BP Financier'!$F$16))*$V7167*Z7167/(1-$W7167)","v":{"v":51467.51700991191,"d":"51,468"}},{"$f":"'BP Financier'!$F$44*(('BP Financier'!$C$19+'BP Financier'!$D$19+'BP Financier'!$E$19+'BP Financier'!$F$19)/('BP Financier'!$C$16+'BP Financier'!$C$19+'BP Financier'!$D$16+'BP Financier'!$D$19+'BP Financier'!$E$16+'BP Financier'!$E$19+'BP Financier'!$C$22+'BP Financier'!$D$22+'BP Financier'!$E$22+'BP Financier'!$F$22+'BP Financier'!$F$19+'BP Financier'!$F$16))*$V7167*AA7167/(1-$W7167)","v":{"v":6358.711182850786,"d":"6,359"}},{"$f":"'BP Financier'!$F$44*(('BP Financier'!$C$19+'BP Financier'!$D$19+'BP Financier'!$E$19+'BP Financier'!$F$19)/('BP Financier'!$C$16+'BP Financier'!$C$19+'BP Financier'!$D$16+'BP Financier'!$D$19+'BP Financier'!$E$16+'BP Financier'!$E$19+'BP Financier'!$C$22+'BP Financier'!$D$22+'BP Financier'!$E$22+'BP Financier'!$F$22+'BP Financier'!$F$19+'BP Financier'!$F$16))*$V7167*AB7167/(1-$W7167)","v":{"v":3043.485694355931,"d":"3,043"}},null,{"v":0.00375,"d":"0.38%"},{"$f":"Actif!$E$28/100","v":{"v":0.28900000000000003,"d":"28.90%"}},{"$f":"Actif!$E$30/100","v":{"v":0.09050000000000001,"d":"9.05%"}},{"$f":"Actif!$E$31/100","v":{"v":0.0605,"d":"6.05%"}},{"$f":"Actif!$E$32/100","v":{"v":0.47350000000000003,"d":"47.35%"}},{"$f":"Actif!$E$33/100","v":{"v":0.0585,"d":"5.85%"}},{"$f":"Actif!$E$29/100","v":{"v":0.027999999999999997,"d":"2.80%"}}]
[null,"#58",32,2028,"F","A_PER",{"v":0.44999999999999996,"d":"0.45"},{"v":0.38999999999999996,"d":"0.39"},0.6,0.6,85,0,{"$f":"ROUND(Primes!$P$7*V7168,0)","v":4},{"$f":"'BP Financier'!$F$33*(('BP Financier'!$C$19+'BP Financier'!$D$19+'BP Financier'!$E$19+'BP Financier'!$F$19)/('BP Financier'!$C$16+'BP Financier'!$C$19+'BP Financier'!$D$16+'BP Financier'!$D$19+'BP Financier'!$E$16+'BP Financier'!$E$19+'BP Financier'!$F$16+'BP Financier'!$F$19))*V7168","v":{"v":136236.6602787241,"d":"136,237"}},{"v":77282.79745310954,"d":"77,283"},{"$f":"'BP Financier'!$F$44*(('BP Financier'!$C$19+'BP Financier'!$D$19+'BP Financier'!$E$19+'BP Financier'!$F$19)/('BP Financier'!$C$16+'BP Financier'!$C$19+'BP Financier'!$D$16+'BP Financier'!$D$19+'BP Financier'!$E$16+'BP Financier'!$E$19+'BP Financier'!$C$22+'BP Financier'!$D$22+'BP Financier'!$E$22+'BP Financier'!$F$22+'BP Financier'!$F$19+'BP Financier'!$F$16))*$V7168*X7168/(1-$W7168)","v":{"v":9836.980547828993,"d":"9,837"}},{"$f":"'BP Financier'!$F$44*(('BP Financier'!$C$19+'BP Financier'!$D$19+'BP Financier'!$E$19+'BP Financier'!$F$19)/('BP Financier'!$C$16+'BP Financier'!$C$19+'BP Financier'!$D$16+'BP Financier'!$D$19+'BP Financier'!$E$16+'BP Financier'!$E$19+'BP Financier'!$C$22+'BP Financier'!$D$22+'BP Financier'!$E$22+'BP Financier'!$F$22+'BP Financier'!$F$19+'BP Financier'!$F$16))*$V7168*Y7168/(1-$W7168)","v":{"v":6576.103018161923,"d":"6,576"}},{"$f":"'BP Financier'!$F$44*(('BP Financier'!$C$19+'BP Financier'!$D$19+'BP Financier'!$E$19+'BP Financier'!$F$19)/('BP Financier'!$C$16+'BP Financier'!$C$19+'BP Financier'!$D$16+'BP Financier'!$D$19+'BP Financier'!$E$16+'BP Financier'!$E$19+'BP Financier'!$C$22+'BP Financier'!$D$22+'BP Financier'!$E$22+'BP Financier'!$F$22+'BP Financier'!$F$19+'BP Financier'!$F$16))*$V7168*Z7168/(1-$W7168)","v":{"v":51467.51700991191,"d":"51,468"}},{"$f":"'BP Financier'!$F$44*(('BP Financier'!$C$19+'BP Financier'!$D$19+'BP Financier'!$E$19+'BP Financier'!$F$19)/('BP Financier'!$C$16+'BP Financier'!$C$19+'BP Financier'!$D$16+'BP Financier'!$D$19+'BP Financier'!$E$16+'BP Financier'!$E$19+'BP Financier'!$C$22+'BP Financier'!$D$22+'BP Financier'!$E$22+'BP Financier'!$F$22+'BP Financier'!$F$19+'BP Financier'!$F$16))*$V7168*AA7168/(1-$W7168)","v":{"v":6358.711182850786,"d":"6,359"}},{"$f":"'BP Financier'!$F$44*(('BP Financier'!$C$19+'BP Financier'!$D$19+'BP Financier'!$E$19+'BP Financier'!$F$19)/('BP Financier'!$C$16+'BP Financier'!$C$19+'BP Financier'!$D$16+'BP Financier'!$D$19+'BP Financier'!$E$16+'BP Financier'!$E$19+'BP Financier'!$C$22+'BP Financier'!$D$22+'BP Financier'!$E$22+'BP Financier'!$F$22+'BP Financier'!$F$19+'BP Financier'!$F$16))*$V7168*AB7168/(1-$W7168)","v":{"v":3043.485694355931,"d":"3,043"}},null,{"v":0.00375,"d":"0.38%"},{"$f":"Actif!$E$28/100","v":{"v":0.28900000000000003,"d":"28.90%"}},{"$f":"Actif!$E$30/100","v":{"v":0.09050000000000001,"d":"9.05%"}},{"$f":"Actif!$E$31/100","v":{"v":0.0605,"d":"6.05%"}},{"$f":"Actif!$E$32/100","v":{"v":0.47350000000000003,"d":"47.35%"}},{"$f":"Actif!$E$33/100","v":{"v":0.0585,"d":"5.85%"}},{"$f":"Actif!$E$29/100","v":{"v":0.027999999999999997,"d":"2.80%"}}]
[null,"#59",32,2029,"F","A_PER",{"v":0.44999999999999996,"d":"0.45"},{"v":0.38999999999999996,"d":"0.39"},0.6,0.6,85,0,{"$f":"ROUND(Primes!$P$7*V7169,0)","v":4},{"$f":"'BP Financier'!$F$33*(('BP Financier'!$C$19+'BP Financier'!$D$19+'BP Financier'!$E$19+'BP Financier'!$F$19)/('BP Financier'!$C$16+'BP Financier'!$C$19+'BP Financier'!$D$16+'BP Financier'!$D$19+'BP Financier'!$E$16+'BP Financier'!$E$19+'BP Financier'!$F$16+'BP Financier'!$F$19))*V7169","v":{"v":136236.6602787241,"d":"136,237"}},{"v":77282.79745310954,"d":"77,283"},{"$f":"'BP Financier'!$F$44*(('BP Financier'!$C$19+'BP Financier'!$D$19+'BP Financier'!$E$19+'BP Financier'!$F$19)/('BP Financier'!$C$16+'BP Financier'!$C$19+'BP Financier'!$D$16+'BP Financier'!$D$19+'BP Financier'!$E$16+'BP Financier'!$E$19+'BP Financier'!$C$22+'BP Financier'!$D$22+'BP Financier'!$E$22+'BP Financier'!$F$22+'BP Financier'!$F$19+'BP Financier'!$F$16))*$V7169*X7169/(1-$W7169)","v":{"v":9836.980547828993,"d":"9,837"}},{"$f":"'BP Financier'!$F$44*(('BP Financier'!$C$19+'BP Financier'!$D$19+'BP Financier'!$E$19+'BP Financier'!$F$19)/('BP Financier'!$C$16+'BP Financier'!$C$19+'BP Financier'!$D$16+'BP Financier'!$D$19+'BP Financier'!$E$16+'BP Financier'!$E$19+'BP Financier'!$C$22+'BP Financier'!$D$22+'BP Financier'!$E$22+'BP Financier'!$F$22+'BP Financier'!$F$19+'BP Financier'!$F$16))*$V7169*Y7169/(1-$W7169)","v":{"v":6576.103018161923,"d":"6,576"}},{"$f":"'BP Financier'!$F$44*(('BP Financier'!$C$19+'BP Financier'!$D$19+'BP Financier'!$E$19+'BP Financier'!$F$19)/('BP Financier'!$C$16+'BP Financier'!$C$19+'BP Financier'!$D$16+'BP Financier'!$D$19+'BP Financier'!$E$16+'BP Financier'!$E$19+'BP Financier'!$C$22+'BP Financier'!$D$22+'BP Financier'!$E$22+'BP Financier'!$F$22+'BP Financier'!$F$19+'BP Financier'!$F$16))*$V7169*Z7169/(1-$W7169)","v":{"v":51467.51700991191,"d":"51,468"}},{"$f":"'BP Financier'!$F$44*(('BP Financier'!$C$19+'BP Financier'!$D$19+'BP Financier'!$E$19+'BP Financier'!$F$19)/('BP Financier'!$C$16+'BP Financier'!$C$19+'BP Financier'!$D$16+'BP Financier'!$D$19+'BP Financier'!$E$16+'BP Financier'!$E$19+'BP Financier'!$C$22+'BP Financier'!$D$22+'BP Financier'!$E$22+'BP Financier'!$F$22+'BP Financier'!$F$19+'BP Financier'!$F$16))*$V7169*AA7169/(1-$W7169)","v":{"v":6358.711182850786,"d":"6,359"}},{"$f":"'BP Financier'!$F$44*(('BP Financier'!$C$19+'BP Financier'!$D$19+'BP Financier'!$E$19+'BP Financier'!$F$19)/('BP Financier'!$C$16+'BP Financier'!$C$19+'BP Financier'!$D$16+'BP Financier'!$D$19+'BP Financier'!$E$16+'BP Financier'!$E$19+'BP Financier'!$C$22+'BP Financier'!$D$22+'BP Financier'!$E$22+'BP Financier'!$F$22+'BP Financier'!$F$19+'BP Financier'!$F$16))*$V7169*AB7169/(1-$W7169)","v":{"v":3043.485694355931,"d":"3,043"}},null,{"v":0.00375,"d":"0.38%"},{"$f":"Actif!$E$28/100","v":{"v":0.28900000000000003,"d":"28.90%"}},{"$f":"Actif!$E$30/100","v":{"v":0.09050000000000001,"d":"9.05%"}},{"$f":"Actif!$E$31/100","v":{"v":0.0605,"d":"6.05%"}},{"$f":"Actif!$E$32/100","v":{"v":0.47350000000000003,"d":"47.35%"}},{"$f":"Actif!$E$33/100","v":{"v":0.0585,"d":"5.85%"}},{"$f":"Actif!$E$29/100","v":{"v":0.027999999999999997,"d":"2.80%"}}]
[null,"#60",32,2030,"F","A_PER",{"v":0.44999999999999996,"d":"0.45"},{"v":0.38999999999999996,"d":"0.39"},0.6,0.6,85,0,{"$f":"ROUND(Primes!$P$7*V7170,0)","v":4},{"$f":"'BP Financier'!$F$33*(('BP Financier'!$C$19+'BP Financier'!$D$19+'BP Financier'!$E$19+'BP Financier'!$F$19)/('BP Financier'!$C$16+'BP Financier'!$C$19+'BP Financier'!$D$16+'BP Financier'!$D$19+'BP Financier'!$E$16+'BP Financier'!$E$19+'BP Financier'!$F$16+'BP Financier'!$F$19))*V7170","v":{"v":136236.6602787241,"d":"136,237"}},{"v":77282.79745310954,"d":"77,283"},{"$f":"'BP Financier'!$F$44*(('BP Financier'!$C$19+'BP Financier'!$D$19+'BP Financier'!$E$19+'BP Financier'!$F$19)/('BP Financier'!$C$16+'BP Financier'!$C$19+'BP Financier'!$D$16+'BP Financier'!$D$19+'BP Financier'!$E$16+'BP Financier'!$E$19+'BP Financier'!$C$22+'BP Financier'!$D$22+'BP Financier'!$E$22+'BP Financier'!$F$22+'BP Financier'!$F$19+'BP Financier'!$F$16))*$V7170*X7170/(1-$W7170)","v":{"v":9836.980547828993,"d":"9,837"}},{"$f":"'BP Financier'!$F$44*(('BP Financier'!$C$19+'BP Financier'!$D$19+'BP Financier'!$E$19+'BP Financier'!$F$19)/('BP Financier'!$C$16+'BP Financier'!$C$19+'BP Financier'!$D$16+'BP Financier'!$D$19+'BP Financier'!$E$16+'BP Financier'!$E$19+'BP Financier'!$C$22+'BP Financier'!$D$22+'BP Financier'!$E$22+'BP Financier'!$F$22+'BP Financier'!$F$19+'BP Financier'!$F$16))*$V7170*Y7170/(1-$W7170)","v":{"v":6576.103018161923,"d":"6,576"}},{"$f":"'BP Financier'!$F$44*(('BP Financier'!$C$19+'BP Financier'!$D$19+'BP Financier'!$E$19+'BP Financier'!$F$19)/('BP Financier'!$C$16+'BP Financier'!$C$19+'BP Financier'!$D$16+'BP Financier'!$D$19+'BP Financier'!$E$16+'BP Financier'!$E$19+'BP Financier'!$C$22+'BP Financier'!$D$22+'BP Financier'!$E$22+'BP Financier'!$F$22+'BP Financier'!$F$19+'BP Financier'!$F$16))*$V7170*Z7170/(1-$W7170)","v":{"v":51467.51700991191,"d":"51,468"}},{"$f":"'BP Financier'!$F$44*(('BP Financier'!$C$19+'BP Financier'!$D$19+'BP Financier'!$E$19+'BP Financier'!$F$19)/('BP Financier'!$C$16+'BP Financier'!$C$19+'BP Financier'!$D$16+'BP Financier'!$D$19+'BP Financier'!$E$16+'BP Financier'!$E$19+'BP Financier'!$C$22+'BP Financier'!$D$22+'BP Financier'!$E$22+'BP Financier'!$F$22+'BP Financier'!$F$19+'BP Financier'!$F$16))*$V7170*AA7170/(1-$W7170)","v":{"v":6358.711182850786,"d":"6,359"}},{"$f":"'BP Financier'!$F$44*(('BP Financier'!$C$19+'BP Financier'!$D$19+'BP Financier'!$E$19+'BP Financier'!$F$19)/('BP Financier'!$C$16+'BP Financier'!$C$19+'BP Financier'!$D$16+'BP Financier'!$D$19+'BP Financier'!$E$16+'BP Financier'!$E$19+'BP Financier'!$C$22+'BP Financier'!$D$22+'BP Financier'!$E$22+'BP Financier'!$F$22+'BP Financier'!$F$19+'BP Financier'!$F$16))*$V7170*AB7170/(1-$W7170)","v":{"v":3043.485694355931,"d":"3,043"}},null,{"v":0.00375,"d":"0.38%"},{"$f":"Actif!$E$28/100","v":{"v":0.28900000000000003,"d":"28.90%"}},{"$f":"Actif!$E$30/100","v":{"v":0.09050000000000001,"d":"9.05%"}},{"$f":"Actif!$E$31/100","v":{"v":0.0605,"d":"6.05%"}},{"$f":"Actif!$E$32/100","v":{"v":0.47350000000000003,"d":"47.35%"}},{"$f":"Actif!$E$33/100","v":{"v":0.0585,"d":"5.85%"}},{"$f":"Actif!$E$29/100","v":{"v":0.027999999999999997,"d":"2.80%"}}]
[null,"#61",33,2026,"H","A_PER",{"v":0.44999999999999996,"d":"0.45"},{"v":0.38999999999999996,"d":"0.39"},0.6,0.6,85,0,{"$f":"ROUND(Primes!$P$7*V7171,0)","v":4},{"$f":"'BP Financier'!$F$33*(('BP Financier'!$C$19+'BP Financier'!$D$19+'BP Financier'!$E$19+'BP Financier'!$F$19)/('BP Financier'!$C$16+'BP Financier'!$C$19+'BP Financier'!$D$16+'BP Financier'!$D$19+'BP Financier'!$E$16+'BP Financier'!$E$19+'BP Financier'!$F$16+'BP Financier'!$F$19))*V7171","v":{"v":136236.6602787241,"d":"136,237"}},{"v":77282.79745310954,"d":"77,283"},{"$f":"'BP Financier'!$F$44*(('BP Financier'!$C$19+'BP Financier'!$D$19+'BP Financier'!$E$19+'BP Financier'!$F$19)/('BP Financier'!$C$16+'BP Financier'!$C$19+'BP Financier'!$D$16+'BP Financier'!$D$19+'BP Financier'!$E$16+'BP Financier'!$E$19+'BP Financier'!$C$22+'BP Financier'!$D$22+'BP Financier'!$E$22+'BP Financier'!$F$22+'BP Financier'!$F$19+'BP Financier'!$F$16))*$V7171*X7171/(1-$W7171)","v":{"v":9836.980547828993,"d":"9,837"}},{"$f":"'BP Financier'!$F$44*(('BP Financier'!$C$19+'BP Financier'!$D$19+'BP Financier'!$E$19+'BP Financier'!$F$19)/('BP Financier'!$C$16+'BP Financier'!$C$19+'BP Financier'!$D$16+'BP Financier'!$D$19+'BP Financier'!$E$16+'BP Financier'!$E$19+'BP Financier'!$C$22+'BP Financier'!$D$22+'BP Financier'!$E$22+'BP Financier'!$F$22+'BP Financier'!$F$19+'BP Financier'!$F$16))*$V7171*Y7171/(1-$W7171)","v":{"v":6576.103018161923,"d":"6,576"}},{"$f":"'BP Financier'!$F$44*(('BP Financier'!$C$19+'BP Financier'!$D$19+'BP Financier'!$E$19+'BP Financier'!$F$19)/('BP Financier'!$C$16+'BP Financier'!$C$19+'BP Financier'!$D$16+'BP Financier'!$D$19+'BP Financier'!$E$16+'BP Financier'!$E$19+'BP Financier'!$C$22+'BP Financier'!$D$22+'BP Financier'!$E$22+'BP Financier'!$F$22+'BP Financier'!$F$19+'BP Financier'!$F$16))*$V7171*Z7171/(1-$W7171)","v":{"v":51467.51700991191,"d":"51,468"}},{"$f":"'BP Financier'!$F$44*(('BP Financier'!$C$19+'BP Financier'!$D$19+'BP Financier'!$E$19+'BP Financier'!$F$19)/('BP Financier'!$C$16+'BP Financier'!$C$19+'BP Financier'!$D$16+'BP Financier'!$D$19+'BP Financier'!$E$16+'BP Financier'!$E$19+'BP Financier'!$C$22+'BP Financier'!$D$22+'BP Financier'!$E$22+'BP Financier'!$F$22+'BP Financier'!$F$19+'BP Financier'!$F$16))*$V7171*AA7171/(1-$W7171)","v":{"v":6358.711182850786,"d":"6,359"}},{"$f":"'BP Financier'!$F$44*(('BP Financier'!$C$19+'BP Financier'!$D$19+'BP Financier'!$E$19+'BP Financier'!$F$19)/('BP Financier'!$C$16+'BP Financier'!$C$19+'BP Financier'!$D$16+'BP Financier'!$D$19+'BP Financier'!$E$16+'BP Financier'!$E$19+'BP Financier'!$C$22+'BP Financier'!$D$22+'BP Financier'!$E$22+'BP Financier'!$F$22+'BP Financier'!$F$19+'BP Financier'!$F$16))*$V7171*AB7171/(1-$W7171)","v":{"v":3043.485694355931,"d":"3,043"}},null,{"v":0.00375,"d":"0.38%"},{"$f":"Actif!$E$28/100","v":{"v":0.28900000000000003,"d":"28.90%"}},{"$f":"Actif!$E$30/100","v":{"v":0.09050000000000001,"d":"9.05%"}},{"$f":"Actif!$E$31/100","v":{"v":0.0605,"d":"6.05%"}},{"$f":"Actif!$E$32/100","v":{"v":0.47350000000000003,"d":"47.35%"}},{"$f":"Actif!$E$33/100","v":{"v":0.0585,"d":"5.85%"}},{"$f":"Actif!$E$29/100","v":{"v":0.027999999999999997,"d":"2.80%"}}]
[null,"#62",33,2028,"H","A_PER",{"v":0.44999999999999996,"d":"0.45"},{"v":0.38999999999999996,"d":"0.39"},0.6,0.6,85,0,{"$f":"ROUND(Primes!$P$7*V7172,0)","v":4},{"$f":"'BP Financier'!$F$33*(('BP Financier'!$C$19+'BP Financier'!$D$19+'BP Financier'!$E$19+'BP Financier'!$F$19)/('BP Financier'!$C$16+'BP Financier'!$C$19+'BP Financier'!$D$16+'BP Financier'!$D$19+'BP Financier'!$E$16+'BP Financier'!$E$19+'BP Financier'!$F$16+'BP Financier'!$F$19))*V7172","v":{"v":136236.6602787241,"d":"136,237"}},{"v":77282.79745310954,"d":"77,283"},{"$f":"'BP Financier'!$F$44*(('BP Financier'!$C$19+'BP Financier'!$D$19+'BP Financier'!$E$19+'BP Financier'!$F$19)/('BP Financier'!$C$16+'BP Financier'!$C$19+'BP Financier'!$D$16+'BP Financier'!$D$19+'BP Financier'!$E$16+'BP Financier'!$E$19+'BP Financier'!$C$22+'BP Financier'!$D$22+'BP Financier'!$E$22+'BP Financier'!$F$22+'BP Financier'!$F$19+'BP Financier'!$F$16))*$V7172*X7172/(1-$W7172)","v":{"v":9836.980547828993,"d":"9,837"}},{"$f":"'BP Financier'!$F$44*(('BP Financier'!$C$19+'BP Financier'!$D$19+'BP Financier'!$E$19+'BP Financier'!$F$19)/('BP Financier'!$C$16+'BP Financier'!$C$19+'BP Financier'!$D$16+'BP Financier'!$D$19+'BP Financier'!$E$16+'BP Financier'!$E$19+'BP Financier'!$C$22+'BP Financier'!$D$22+'BP Financier'!$E$22+'BP Financier'!$F$22+'BP Financier'!$F$19+'BP Financier'!$F$16))*$V7172*Y7172/(1-$W7172)","v":{"v":6576.103018161923,"d":"6,576"}},{"$f":"'BP Financier'!$F$44*(('BP Financier'!$C$19+'BP Financier'!$D$19+'BP Financier'!$E$19+'BP Financier'!$F$19)/('BP Financier'!$C$16+'BP Financier'!$C$19+'BP Financier'!$D$16+'BP Financier'!$D$19+'BP Financier'!$E$16+'BP Financier'!$E$19+'BP Financier'!$C$22+'BP Financier'!$D$22+'BP Financier'!$E$22+'BP Financier'!$F$22+'BP Financier'!$F$19+'BP Financier'!$F$16))*$V7172*Z7172/(1-$W7172)","v":{"v":51467.51700991191,"d":"51,468"}},{"$f":"'BP Financier'!$F$44*(('BP Financier'!$C$19+'BP Financier'!$D$19+'BP Financier'!$E$19+'BP Financier'!$F$19)/('BP Financier'!$C$16+'BP Financier'!$C$19+'BP Financier'!$D$16+'BP Financier'!$D$19+'BP Financier'!$E$16+'BP Financier'!$E$19+'BP Financier'!$C$22+'BP Financier'!$D$22+'BP Financier'!$E$22+'BP Financier'!$F$22+'BP Financier'!$F$19+'BP Financier'!$F$16))*$V7172*AA7172/(1-$W7172)","v":{"v":6358.711182850786,"d":"6,359"}},{"$f":"'BP Financier'!$F$44*(('BP Financier'!$C$19+'BP Financier'!$D$19+'BP Financier'!$E$19+'BP Financier'!$F$19)/('BP Financier'!$C$16+'BP Financier'!$C$19+'BP Financier'!$D$16+'BP Financier'!$D$19+'BP Financier'!$E$16+'BP Financier'!$E$19+'BP Financier'!$C$22+'BP Financier'!$D$22+'BP Financier'!$E$22+'BP Financier'!$F$22+'BP Financier'!$F$19+'BP Financier'!$F$16))*$V7172*AB7172/(1-$W7172)","v":{"v":3043.485694355931,"d":"3,043"}},null,{"v":0.00375,"d":"0.38%"},{"$f":"Actif!$E$28/100","v":{"v":0.28900000000000003,"d":"28.90%"}},{"$f":"Actif!$E$30/100","v":{"v":0.09050000000000001,"d":"9.05%"}},{"$f":"Actif!$E$31/100","v":{"v":0.0605,"d":"6.05%"}},{"$f":"Actif!$E$32/100","v":{"v":0.47350000000000003,"d":"47.35%"}},{"$f":"Actif!$E$33/100","v":{"v":0.0585,"d":"5.85%"}},{"$f":"Actif!$E$29/100","v":{"v":0.027999999999999997,"d":"2.80%"}}]
[null,"#63",33,2029,"H","A_PER",{"v":0.44999999999999996,"d":"0.45"},{"v":0.38999999999999996,"d":"0.39"},0.6,0.6,85,0,{"$f":"ROUND(Primes!$P$7*V7173,0)","v":4},{"$f":"'BP Financier'!$F$33*(('BP Financier'!$C$19+'BP Financier'!$D$19+'BP Financier'!$E$19+'BP Financier'!$F$19)/('BP Financier'!$C$16+'BP Financier'!$C$19+'BP Financier'!$D$16+'BP Financier'!$D$19+'BP Financier'!$E$16+'BP Financier'!$E$19+'BP Financier'!$F$16+'BP Financier'!$F$19))*V7173","v":{"v":136236.6602787241,"d":"136,237"}},{"v":77282.79745310954,"d":"77,283"},{"$f":"'BP Financier'!$F$44*(('BP Financier'!$C$19+'BP Financier'!$D$19+'BP Financier'!$E$19+'BP Financier'!$F$19)/('BP Financier'!$C$16+'BP Financier'!$C$19+'BP Financier'!$D$16+'BP Financier'!$D$19+'BP Financier'!$E$16+'BP Financier'!$E$19+'BP Financier'!$C$22+'BP Financier'!$D$22+'BP Financier'!$E$22+'BP Financier'!$F$22+'BP Financier'!$F$19+'BP Financier'!$F$16))*$V7173*X7173/(1-$W7173)","v":{"v":9836.980547828993,"d":"9,837"}},{"$f":"'BP Financier'!$F$44*(('BP Financier'!$C$19+'BP Financier'!$D$19+'BP Financier'!$E$19+'BP Financier'!$F$19)/('BP Financier'!$C$16+'BP Financier'!$C$19+'BP Financier'!$D$16+'BP Financier'!$D$19+'BP Financier'!$E$16+'BP Financier'!$E$19+'BP Financier'!$C$22+'BP Financier'!$D$22+'BP Financier'!$E$22+'BP Financier'!$F$22+'BP Financier'!$F$19+'BP Financier'!$F$16))*$V7173*Y7173/(1-$W7173)","v":{"v":6576.103018161923,"d":"6,576"}},{"$f":"'BP Financier'!$F$44*(('BP Financier'!$C$19+'BP Financier'!$D$19+'BP Financier'!$E$19+'BP Financier'!$F$19)/('BP Financier'!$C$16+'BP Financier'!$C$19+'BP Financier'!$D$16+'BP Financier'!$D$19+'BP Financier'!$E$16+'BP Financier'!$E$19+'BP Financier'!$C$22+'BP Financier'!$D$22+'BP Financier'!$E$22+'BP Financier'!$F$22+'BP Financier'!$F$19+'BP Financier'!$F$16))*$V7173*Z7173/(1-$W7173)","v":{"v":51467.51700991191,"d":"51,468"}},{"$f":"'BP Financier'!$F$44*(('BP Financier'!$C$19+'BP Financier'!$D$19+'BP Financier'!$E$19+'BP Financier'!$F$19)/('BP Financier'!$C$16+'BP Financier'!$C$19+'BP Financier'!$D$16+'BP Financier'!$D$19+'BP Financier'!$E$16+'BP Financier'!$E$19+'BP Financier'!$C$22+'BP Financier'!$D$22+'BP Financier'!$E$22+'BP Financier'!$F$22+'BP Financier'!$F$19+'BP Financier'!$F$16))*$V7173*AA7173/(1-$W7173)","v":{"v":6358.711182850786,"d":"6,359"}},{"$f":"'BP Financier'!$F$44*(('BP Financier'!$C$19+'BP Financier'!$D$19+'BP Financier'!$E$19+'BP Financier'!$F$19)/('BP Financier'!$C$16+'BP Financier'!$C$19+'BP Financier'!$D$16+'BP Financier'!$D$19+'BP Financier'!$E$16+'BP Financier'!$E$19+'BP Financier'!$C$22+'BP Financier'!$D$22+'BP Financier'!$E$22+'BP Financier'!$F$22+'BP Financier'!$F$19+'BP Financier'!$F$16))*$V7173*AB7173/(1-$W7173)","v":{"v":3043.485694355931,"d":"3,043"}},null,{"v":0.00375,"d":"0.38%"},{"$f":"Actif!$E$28/100","v":{"v":0.28900000000000003,"d":"28.90%"}},{"$f":"Actif!$E$30/100","v":{"v":0.09050000000000001,"d":"9.05%"}},{"$f":"Actif!$E$31/100","v":{"v":0.0605,"d":"6.05%"}},{"$f":"Actif!$E$32/100","v":{"v":0.47350000000000003,"d":"47.35%"}},{"$f":"Actif!$E$33/100","v":{"v":0.0585,"d":"5.85%"}},{"$f":"Actif!$E$29/100","v":{"v":0.027999999999999997,"d":"2.80%"}}]
[null,"#64",33,2030,"H","A_PER",{"v":0.44999999999999996,"d":"0.45"},{"v":0.38999999999999996,"d":"0.39"},0.6,0.6,85,0,{"$f":"ROUND(Primes!$P$7*V7174,0)","v":4},{"$f":"'BP Financier'!$F$33*(('BP Financier'!$C$19+'BP Financier'!$D$19+'BP Financier'!$E$19+'BP Financier'!$F$19)/('BP Financier'!$C$16+'BP Financier'!$C$19+'BP Financier'!$D$16+'BP Financier'!$D$19+'BP Financier'!$E$16+'BP Financier'!$E$19+'BP Financier'!$F$16+'BP Financier'!$F$19))*V7174","v":{"v":136236.6602787241,"d":"136,237"}},{"v":77282.79745310954,"d":"77,283"},{"$f":"'BP Financier'!$F$44*(('BP Financier'!$C$19+'BP Financier'!$D$19+'BP Financier'!$E$19+'BP Financier'!$F$19)/('BP Financier'!$C$16+'BP Financier'!$C$19+'BP Financier'!$D$16+'BP Financier'!$D$19+'BP Financier'!$E$16+'BP Financier'!$E$19+'BP Financier'!$C$22+'BP Financier'!$D$22+'BP Financier'!$E$22+'BP Financier'!$F$22+'BP Financier'!$F$19+'BP Financier'!$F$16))*$V7174*X7174/(1-$W7174)","v":{"v":9836.980547828993,"d":"9,837"}},{"$f":"'BP Financier'!$F$44*(('BP Financier'!$C$19+'BP Financier'!$D$19+'BP Financier'!$E$19+'BP Financier'!$F$19)/('BP Financier'!$C$16+'BP Financier'!$C$19+'BP Financier'!$D$16+'BP Financier'!$D$19+'BP Financier'!$E$16+'BP Financier'!$E$19+'BP Financier'!$C$22+'BP Financier'!$D$22+'BP Financier'!$E$22+'BP Financier'!$F$22+'BP Financier'!$F$19+'BP Financier'!$F$16))*$V7174*Y7174/(1-$W7174)","v":{"v":6576.103018161923,"d":"6,576"}},{"$f":"'BP Financier'!$F$44*(('BP Financier'!$C$19+'BP Financier'!$D$19+'BP Financier'!$E$19+'BP Financier'!$F$19)/('BP Financier'!$C$16+'BP Financier'!$C$19+'BP Financier'!$D$16+'BP Financier'!$D$19+'BP Financier'!$E$16+'BP Financier'!$E$19+'BP Financier'!$C$22+'BP Financier'!$D$22+'BP Financier'!$E$22+'BP Financier'!$F$22+'BP Financier'!$F$19+'BP Financier'!$F$16))*$V7174*Z7174/(1-$W7174)","v":{"v":51467.51700991191,"d":"51,468"}},{"$f":"'BP Financier'!$F$44*(('BP Financier'!$C$19+'BP Financier'!$D$19+'BP Financier'!$E$19+'BP Financier'!$F$19)/('BP Financier'!$C$16+'BP Financier'!$C$19+'BP Financier'!$D$16+'BP Financier'!$D$19+'BP Financier'!$E$16+'BP Financier'!$E$19+'BP Financier'!$C$22+'BP Financier'!$D$22+'BP Financier'!$E$22+'BP Financier'!$F$22+'BP Financier'!$F$19+'BP Financier'!$F$16))*$V7174*AA7174/(1-$W7174)","v":{"v":6358.711182850786,"d":"6,359"}},{"$f":"'BP Financier'!$F$44*(('BP Financier'!$C$19+'BP Financier'!$D$19+'BP Financier'!$E$19+'BP Financier'!$F$19)/('BP Financier'!$C$16+'BP Financier'!$C$19+'BP Financier'!$D$16+'BP Financier'!$D$19+'BP Financier'!$E$16+'BP Financier'!$E$19+'BP Financier'!$C$22+'BP Financier'!$D$22+'BP Financier'!$E$22+'BP Financier'!$F$22+'BP Financier'!$F$19+'BP Financier'!$F$16))*$V7174*AB7174/(1-$W7174)","v":{"v":3043.485694355931,"d":"3,043"}},null,{"v":0.00375,"d":"0.38%"},{"$f":"Actif!$E$28/100","v":{"v":0.28900000000000003,"d":"28.90%"}},{"$f":"Actif!$E$30/100","v":{"v":0.09050000000000001,"d":"9.05%"}},{"$f":"Actif!$E$31/100","v":{"v":0.0605,"d":"6.05%"}},{"$f":"Actif!$E$32/100","v":{"v":0.47350000000000003,"d":"47.35%"}},{"$f":"Actif!$E$33/100","v":{"v":0.0585,"d":"5.85%"}},{"$f":"Actif!$E$29/100","v":{"v":0.027999999999999997,"d":"2.80%"}}]
[null,"#65",34,2026,"H","A_PER",{"v":0.44999999999999996,"d":"0.45"},{"v":0.38999999999999996,"d":"0.39"},0.6,0.6,85,0,{"$f":"ROUND(Primes!$P$7*V7175,0)","v":4},{"$f":"'BP Financier'!$F$33*(('BP Financier'!$C$19+'BP Financier'!$D$19+'BP Financier'!$E$19+'BP Financier'!$F$19)/('BP Financier'!$C$16+'BP Financier'!$C$19+'BP Financier'!$D$16+'BP Financier'!$D$19+'BP Financier'!$E$16+'BP Financier'!$E$19+'BP Financier'!$F$16+'BP Financier'!$F$19))*V7175","v":{"v":136236.6602787241,"d":"136,237"}},{"v":77282.79745310954,"d":"77,283"},{"$f":"'BP Financier'!$F$44*(('BP Financier'!$C$19+'BP Financier'!$D$19+'BP Financier'!$E$19+'BP Financier'!$F$19)/('BP Financier'!$C$16+'BP Financier'!$C$19+'BP Financier'!$D$16+'BP Financier'!$D$19+'BP Financier'!$E$16+'BP Financier'!$E$19+'BP Financier'!$C$22+'BP Financier'!$D$22+'BP Financier'!$E$22+'BP Financier'!$F$22+'BP Financier'!$F$19+'BP Financier'!$F$16))*$V7175*X7175/(1-$W7175)","v":{"v":9836.980547828993,"d":"9,837"}},{"$f":"'BP Financier'!$F$44*(('BP Financier'!$C$19+'BP Financier'!$D$19+'BP Financier'!$E$19+'BP Financier'!$F$19)/('BP Financier'!$C$16+'BP Financier'!$C$19+'BP Financier'!$D$16+'BP Financier'!$D$19+'BP Financier'!$E$16+'BP Financier'!$E$19+'BP Financier'!$C$22+'BP Financier'!$D$22+'BP Financier'!$E$22+'BP Financier'!$F$22+'BP Financier'!$F$19+'BP Financier'!$F$16))*$V7175*Y7175/(1-$W7175)","v":{"v":6576.103018161923,"d":"6,576"}},{"$f":"'BP Financier'!$F$44*(('BP Financier'!$C$19+'BP Financier'!$D$19+'BP Financier'!$E$19+'BP Financier'!$F$19)/('BP Financier'!$C$16+'BP Financier'!$C$19+'BP Financier'!$D$16+'BP Financier'!$D$19+'BP Financier'!$E$16+'BP Financier'!$E$19+'BP Financier'!$C$22+'BP Financier'!$D$22+'BP Financier'!$E$22+'BP Financier'!$F$22+'BP Financier'!$F$19+'BP Financier'!$F$16))*$V7175*Z7175/(1-$W7175)","v":{"v":51467.51700991191,"d":"51,468"}},{"$f":"'BP Financier'!$F$44*(('BP Financier'!$C$19+'BP Financier'!$D$19+'BP Financier'!$E$19+'BP Financier'!$F$19)/('BP Financier'!$C$16+'BP Financier'!$C$19+'BP Financier'!$D$16+'BP Financier'!$D$19+'BP Financier'!$E$16+'BP Financier'!$E$19+'BP Financier'!$C$22+'BP Financier'!$D$22+'BP Financier'!$E$22+'BP Financier'!$F$22+'BP Financier'!$F$19+'BP Financier'!$F$16))*$V7175*AA7175/(1-$W7175)","v":{"v":6358.711182850786,"d":"6,359"}},{"$f":"'BP Financier'!$F$44*(('BP Financier'!$C$19+'BP Financier'!$D$19+'BP Financier'!$E$19+'BP Financier'!$F$19)/('BP Financier'!$C$16+'BP Financier'!$C$19+'BP Financier'!$D$16+'BP Financier'!$D$19+'BP Financier'!$E$16+'BP Financier'!$E$19+'BP Financier'!$C$22+'BP Financier'!$D$22+'BP Financier'!$E$22+'BP Financier'!$F$22+'BP Financier'!$F$19+'BP Financier'!$F$16))*$V7175*AB7175/(1-$W7175)","v":{"v":3043.485694355931,"d":"3,043"}},null,{"v":0.00375,"d":"0.38%"},{"$f":"Actif!$E$28/100","v":{"v":0.28900000000000003,"d":"28.90%"}},{"$f":"Actif!$E$30/100","v":{"v":0.09050000000000001,"d":"9.05%"}},{"$f":"Actif!$E$31/100","v":{"v":0.0605,"d":"6.05%"}},{"$f":"Actif!$E$32/100","v":{"v":0.47350000000000003,"d":"47.35%"}},{"$f":"Actif!$E$33/100","v":{"v":0.0585,"d":"5.85%"}},{"$f":"Actif!$E$29/100","v":{"v":0.027999999999999997,"d":"2.80%"}}]
[null,"#66",34,2028,"H","A_PER",{"v":0.44999999999999996,"d":"0.45"},{"v":0.38999999999999996,"d":"0.39"},0.6,0.6,85,0,{"$f":"ROUND(Primes!$P$7*V7176,0)","v":4},{"$f":"'BP Financier'!$F$33*(('BP Financier'!$C$19+'BP Financier'!$D$19+'BP Financier'!$E$19+'BP Financier'!$F$19)/('BP Financier'!$C$16+'BP Financier'!$C$19+'BP Financier'!$D$16+'BP Financier'!$D$19+'BP Financier'!$E$16+'BP Financier'!$E$19+'BP Financier'!$F$16+'BP Financier'!$F$19))*V7176","v":{"v":136236.6602787241,"d":"136,237"}},{"$f":"SUM(P7176:T7176)","v":{"v":77282.79745310954,"d":"77,283"}},{"$f":"'BP Financier'!$F$44*(('BP Financier'!$C$19+'BP Financier'!$D$19+'BP Financier'!$E$19+'BP Financier'!$F$19)/('BP Financier'!$C$16+'BP Financier'!$C$19+'BP Financier'!$D$16+'BP Financier'!$D$19+'BP Financier'!$E$16+'BP Financier'!$E$19+'BP Financier'!$C$22+'BP Financier'!$D$22+'BP Financier'!$E$22+'BP Financier'!$F$22+'BP Financier'!$F$19+'BP Financier'!$F$16))*$V7176*X7176/(1-$W7176)","v":{"v":9836.980547828993,"d":"9,837"}},{"$f":"'BP Financier'!$F$44*(('BP Financier'!$C$19+'BP Financier'!$D$19+'BP Financier'!$E$19+'BP Financier'!$F$19)/('BP Financier'!$C$16+'BP Financier'!$C$19+'BP Financier'!$D$16+'BP Financier'!$D$19+'BP Financier'!$E$16+'BP Financier'!$E$19+'BP Financier'!$C$22+'BP Financier'!$D$22+'BP Financier'!$E$22+'BP Financier'!$F$22+'BP Financier'!$F$19+'BP Financier'!$F$16))*$V7176*Y7176/(1-$W7176)","v":{"v":6576.103018161923,"d":"6,576"}},{"$f":"'BP Financier'!$F$44*(('BP Financier'!$C$19+'BP Financier'!$D$19+'BP Financier'!$E$19+'BP Financier'!$F$19)/('BP Financier'!$C$16+'BP Financier'!$C$19+'BP Financier'!$D$16+'BP Financier'!$D$19+'BP Financier'!$E$16+'BP Financier'!$E$19+'BP Financier'!$C$22+'BP Financier'!$D$22+'BP Financier'!$E$22+'BP Financier'!$F$22+'BP Financier'!$F$19+'BP Financier'!$F$16))*$V7176*Z7176/(1-$W7176)","v":{"v":51467.51700991191,"d":"51,468"}},{"$f":"'BP Financier'!$F$44*(('BP Financier'!$C$19+'BP Financier'!$D$19+'BP Financier'!$E$19+'BP Financier'!$F$19)/('BP Financier'!$C$16+'BP Financier'!$C$19+'BP Financier'!$D$16+'BP Financier'!$D$19+'BP Financier'!$E$16+'BP Financier'!$E$19+'BP Financier'!$C$22+'BP Financier'!$D$22+'BP Financier'!$E$22+'BP Financier'!$F$22+'BP Financier'!$F$19+'BP Financier'!$F$16))*$V7176*AA7176/(1-$W7176)","v":{"v":6358.711182850786,"d":"6,359"}},{"$f":"'BP Financier'!$F$44*(('BP Financier'!$C$19+'BP Financier'!$D$19+'BP Financier'!$E$19+'BP Financier'!$F$19)/('BP Financier'!$C$16+'BP Financier'!$C$19+'BP Financier'!$D$16+'BP Financier'!$D$19+'BP Financier'!$E$16+'BP Financier'!$E$19+'BP Financier'!$C$22+'BP Financier'!$D$22+'BP Financier'!$E$22+'BP Financier'!$F$22+'BP Financier'!$F$19+'BP Financier'!$F$16))*$V7176*AB7176/(1-$W7176)","v":{"v":3043.485694355931,"d":"3,043"}},null,{"v":0.00375,"d":"0.38%"},{"$f":"Actif!$E$28/100","v":{"v":0.28900000000000003,"d":"28.90%"}},{"$f":"Actif!$E$30/100","v":{"v":0.09050000000000001,"d":"9.05%"}},{"$f":"Actif!$E$31/100","v":{"v":0.0605,"d":"6.05%"}},{"$f":"Actif!$E$32/100","v":{"v":0.47350000000000003,"d":"47.35%"}},{"$f":"Actif!$E$33/100","v":{"v":0.0585,"d":"5.85%"}},{"$f":"Actif!$E$29/100","v":{"v":0.027999999999999997,"d":"2.80%"}}]
[null,"#67",34,2029,"H","A_PER",{"v":0.44999999999999996,"d":"0.45"},{"v":0.38999999999999996,"d":"0.39"},0.6,0.6,85,0,{"$f":"ROUND(Primes!$P$7*V7177,0)","v":4},{"$f":"'BP Financier'!$F$33*(('BP Financier'!$C$19+'BP Financier'!$D$19+'BP Financier'!$E$19+'BP Financier'!$F$19)/('BP Financier'!$C$16+'BP Financier'!$C$19+'BP Financier'!$D$16+'BP Financier'!$D$19+'BP Financier'!$E$16+'BP Financier'!$E$19+'BP Financier'!$F$16+'BP Financier'!$F$19))*V7177","v":{"v":136236.6602787241,"d":"136,237"}},{"v":77282.79745310954,"d":"77,283"},{"$f":"'BP Financier'!$F$44*(('BP Financier'!$C$19+'BP Financier'!$D$19+'BP Financier'!$E$19+'BP Financier'!$F$19)/('BP Financier'!$C$16+'BP Financier'!$C$19+'BP Financier'!$D$16+'BP Financier'!$D$19+'BP Financier'!$E$16+'BP Financier'!$E$19+'BP Financier'!$C$22+'BP Financier'!$D$22+'BP Financier'!$E$22+'BP Financier'!$F$22+'BP Financier'!$F$19+'BP Financier'!$F$16))*$V7177*X7177/(1-$W7177)","v":{"v":9836.980547828993,"d":"9,837"}},{"$f":"'BP Financier'!$F$44*(('BP Financier'!$C$19+'BP Financier'!$D$19+'BP Financier'!$E$19+'BP Financier'!$F$19)/('BP Financier'!$C$16+'BP Financier'!$C$19+'BP Financier'!$D$16+'BP Financier'!$D$19+'BP Financier'!$E$16+'BP Financier'!$E$19+'BP Financier'!$C$22+'BP Financier'!$D$22+'BP Financier'!$E$22+'BP Financier'!$F$22+'BP Financier'!$F$19+'BP Financier'!$F$16))*$V7177*Y7177/(1-$W7177)","v":{"v":6576.103018161923,"d":"6,576"}},{"$f":"'BP Financier'!$F$44*(('BP Financier'!$C$19+'BP Financier'!$D$19+'BP Financier'!$E$19+'BP Financier'!$F$19)/('BP Financier'!$C$16+'BP Financier'!$C$19+'BP Financier'!$D$16+'BP Financier'!$D$19+'BP Financier'!$E$16+'BP Financier'!$E$19+'BP Financier'!$C$22+'BP Financier'!$D$22+'BP Financier'!$E$22+'BP Financier'!$F$22+'BP Financier'!$F$19+'BP Financier'!$F$16))*$V7177*Z7177/(1-$W7177)","v":{"v":51467.51700991191,"d":"51,468"}},{"$f":"'BP Financier'!$F$44*(('BP Financier'!$C$19+'BP Financier'!$D$19+'BP Financier'!$E$19+'BP Financier'!$F$19)/('BP Financier'!$C$16+'BP Financier'!$C$19+'BP Financier'!$D$16+'BP Financier'!$D$19+'BP Financier'!$E$16+'BP Financier'!$E$19+'BP Financier'!$C$22+'BP Financier'!$D$22+'BP Financier'!$E$22+'BP Financier'!$F$22+'BP Financier'!$F$19+'BP Financier'!$F$16))*$V7177*AA7177/(1-$W7177)","v":{"v":6358.711182850786,"d":"6,359"}},{"$f":"'BP Financier'!$F$44*(('BP Financier'!$C$19+'BP Financier'!$D$19+'BP Financier'!$E$19+'BP Financier'!$F$19)/('BP Financier'!$C$16+'BP Financier'!$C$19+'BP Financier'!$D$16+'BP Financier'!$D$19+'BP Financier'!$E$16+'BP Financier'!$E$19+'BP Financier'!$C$22+'BP Financier'!$D$22+'BP Financier'!$E$22+'BP Financier'!$F$22+'BP Financier'!$F$19+'BP Financier'!$F$16))*$V7177*AB7177/(1-$W7177)","v":{"v":3043.485694355931,"d":"3,043"}},null,{"v":0.00375,"d":"0.38%"},{"$f":"Actif!$E$28/100","v":{"v":0.28900000000000003,"d":"28.90%"}},{"$f":"Actif!$E$30/100","v":{"v":0.09050000000000001,"d":"9.05%"}},{"$f":"Actif!$E$31/100","v":{"v":0.0605,"d":"6.05%"}},{"$f":"Actif!$E$32/100","v":{"v":0.47350000000000003,"d":"47.35%"}},{"$f":"Actif!$E$33/100","v":{"v":0.0585,"d":"5.85%"}},{"$f":"Actif!$E$29/100","v":{"v":0.027999999999999997,"d":"2.80%"}}]
[null,"#68",34,2030,"H","A_PER",{"v":0.44999999999999996,"d":"0.45"},{"v":0.38999999999999996,"d":"0.39"},0.6,0.6,85,0,{"$f":"ROUND(Primes!$P$7*V7178,0)","v":4},{"$f":"'BP Financier'!$F$33*(('BP Financier'!$C$19+'BP Financier'!$D$19+'BP Financier'!$E$19+'BP Financier'!$F$19)/('BP Financier'!$C$16+'BP Financier'!$C$19+'BP Financier'!$D$16+'BP Financier'!$D$19+'BP Financier'!$E$16+'BP Financier'!$E$19+'BP Financier'!$F$16+'BP Financier'!$F$19))*V7178","v":{"v":136236.6602787241,"d":"136,237"}},{"v":77282.79745310954,"d":"77,283"},{"$f":"'BP Financier'!$F$44*(('BP Financier'!$C$19+'BP Financier'!$D$19+'BP Financier'!$E$19+'BP Financier'!$F$19)/('BP Financier'!$C$16+'BP Financier'!$C$19+'BP Financier'!$D$16+'BP Financier'!$D$19+'BP Financier'!$E$16+'BP Financier'!$E$19+'BP Financier'!$C$22+'BP Financier'!$D$22+'BP Financier'!$E$22+'BP Financier'!$F$22+'BP Financier'!$F$19+'BP Financier'!$F$16))*$V7178*X7178/(1-$W7178)","v":{"v":9836.980547828993,"d":"9,837"}},{"$f":"'BP Financier'!$F$44*(('BP Financier'!$C$19+'BP Financier'!$D$19+'BP Financier'!$E$19+'BP Financier'!$F$19)/('BP Financier'!$C$16+'BP Financier'!$C$19+'BP Financier'!$D$16+'BP Financier'!$D$19+'BP Financier'!$E$16+'BP Financier'!$E$19+'BP Financier'!$C$22+'BP Financier'!$D$22+'BP Financier'!$E$22+'BP Financier'!$F$22+'BP Financier'!$F$19+'BP Financier'!$F$16))*$V7178*Y7178/(1-$W7178)","v":{"v":6576.103018161923,"d":"6,576"}},{"$f":"'BP Financier'!$F$44*(('BP Financier'!$C$19+'BP Financier'!$D$19+'BP Financier'!$E$19+'BP Financier'!$F$19)/('BP Financier'!$C$16+'BP Financier'!$C$19+'BP Financier'!$D$16+'BP Financier'!$D$19+'BP Financier'!$E$16+'BP Financier'!$E$19+'BP Financier'!$C$22+'BP Financier'!$D$22+'BP Financier'!$E$22+'BP Financier'!$F$22+'BP Financier'!$F$19+'BP Financier'!$F$16))*$V7178*Z7178/(1-$W7178)","v":{"v":51467.51700991191,"d":"51,468"}},{"$f":"'BP Financier'!$F$44*(('BP Financier'!$C$19+'BP Financier'!$D$19+'BP Financier'!$E$19+'BP Financier'!$F$19)/('BP Financier'!$C$16+'BP Financier'!$C$19+'BP Financier'!$D$16+'BP Financier'!$D$19+'BP Financier'!$E$16+'BP Financier'!$E$19+'BP Financier'!$C$22+'BP Financier'!$D$22+'BP Financier'!$E$22+'BP Financier'!$F$22+'BP Financier'!$F$19+'BP Financier'!$F$16))*$V7178*AA7178/(1-$W7178)","v":{"v":6358.711182850786,"d":"6,359"}},{"$f":"'BP Financier'!$F$44*(('BP Financier'!$C$19+'BP Financier'!$D$19+'BP Financier'!$E$19+'BP Financier'!$F$19)/('BP Financier'!$C$16+'BP Financier'!$C$19+'BP Financier'!$D$16+'BP Financier'!$D$19+'BP Financier'!$E$16+'BP Financier'!$E$19+'BP Financier'!$C$22+'BP Financier'!$D$22+'BP Financier'!$E$22+'BP Financier'!$F$22+'BP Financier'!$F$19+'BP Financier'!$F$16))*$V7178*AB7178/(1-$W7178)","v":{"v":3043.485694355931,"d":"3,043"}},null,{"v":0.00375,"d":"0.38%"},{"$f":"Actif!$E$28/100","v":{"v":0.28900000000000003,"d":"28.90%"}},{"$f":"Actif!$E$30/100","v":{"v":0.09050000000000001,"d":"9.05%"}},{"$f":"Actif!$E$31/100","v":{"v":0.0605,"d":"6.05%"}},{"$f":"Actif!$E$32/100","v":{"v":0.47350000000000003,"d":"47.35%"}},{"$f":"Actif!$E$33/100","v":{"v":0.0585,"d":"5.85%"}},{"$f":"Actif!$E$29/100","v":{"v":0.027999999999999997,"d":"2.80%"}}]
[null,"#69",35,2026,"F","A_PER",{"v":0.44999999999999996,"d":"0.45"},{"v":0.38999999999999996,"d":"0.39"},0.6,0.6,85,0,{"$f":"ROUND(Primes!$P$7*V7179,0)","v":4},{"$f":"'BP Financier'!$F$33*(('BP Financier'!$C$19+'BP Financier'!$D$19+'BP Financier'!$E$19+'BP Financier'!$F$19)/('BP Financier'!$C$16+'BP Financier'!$C$19+'BP Financier'!$D$16+'BP Financier'!$D$19+'BP Financier'!$E$16+'BP Financier'!$E$19+'BP Financier'!$F$16+'BP Financier'!$F$19))*V7179","v":{"v":136236.6602787241,"d":"136,237"}},{"v":77282.79745310954,"d":"77,283"},{"$f":"'BP Financier'!$F$44*(('BP Financier'!$C$19+'BP Financier'!$D$19+'BP Financier'!$E$19+'BP Financier'!$F$19)/('BP Financier'!$C$16+'BP Financier'!$C$19+'BP Financier'!$D$16+'BP Financier'!$D$19+'BP Financier'!$E$16+'BP Financier'!$E$19+'BP Financier'!$C$22+'BP Financier'!$D$22+'BP Financier'!$E$22+'BP Financier'!$F$22+'BP Financier'!$F$19+'BP Financier'!$F$16))*$V7179*X7179/(1-$W7179)","v":{"v":9836.980547828993,"d":"9,837"}},{"$f":"'BP Financier'!$F$44*(('BP Financier'!$C$19+'BP Financier'!$D$19+'BP Financier'!$E$19+'BP Financier'!$F$19)/('BP Financier'!$C$16+'BP Financier'!$C$19+'BP Financier'!$D$16+'BP Financier'!$D$19+'BP Financier'!$E$16+'BP Financier'!$E$19+'BP Financier'!$C$22+'BP Financier'!$D$22+'BP Financier'!$E$22+'BP Financier'!$F$22+'BP Financier'!$F$19+'BP Financier'!$F$16))*$V7179*Y7179/(1-$W7179)","v":{"v":6576.103018161923,"d":"6,576"}},{"$f":"'BP Financier'!$F$44*(('BP Financier'!$C$19+'BP Financier'!$D$19+'BP Financier'!$E$19+'BP Financier'!$F$19)/('BP Financier'!$C$16+'BP Financier'!$C$19+'BP Financier'!$D$16+'BP Financier'!$D$19+'BP Financier'!$E$16+'BP Financier'!$E$19+'BP Financier'!$C$22+'BP Financier'!$D$22+'BP Financier'!$E$22+'BP Financier'!$F$22+'BP Financier'!$F$19+'BP Financier'!$F$16))*$V7179*Z7179/(1-$W7179)","v":{"v":51467.51700991191,"d":"51,468"}},{"$f":"'BP Financier'!$F$44*(('BP Financier'!$C$19+'BP Financier'!$D$19+'BP Financier'!$E$19+'BP Financier'!$F$19)/('BP Financier'!$C$16+'BP Financier'!$C$19+'BP Financier'!$D$16+'BP Financier'!$D$19+'BP Financier'!$E$16+'BP Financier'!$E$19+'BP Financier'!$C$22+'BP Financier'!$D$22+'BP Financier'!$E$22+'BP Financier'!$F$22+'BP Financier'!$F$19+'BP Financier'!$F$16))*$V7179*AA7179/(1-$W7179)","v":{"v":6358.711182850786,"d":"6,359"}},{"$f":"'BP Financier'!$F$44*(('BP Financier'!$C$19+'BP Financier'!$D$19+'BP Financier'!$E$19+'BP Financier'!$F$19)/('BP Financier'!$C$16+'BP Financier'!$C$19+'BP Financier'!$D$16+'BP Financier'!$D$19+'BP Financier'!$E$16+'BP Financier'!$E$19+'BP Financier'!$C$22+'BP Financier'!$D$22+'BP Financier'!$E$22+'BP Financier'!$F$22+'BP Financier'!$F$19+'BP Financier'!$F$16))*$V7179*AB7179/(1-$W7179)","v":{"v":3043.485694355931,"d":"3,043"}},null,{"v":0.00375,"d":"0.38%"},{"$f":"Actif!$E$28/100","v":{"v":0.28900000000000003,"d":"28.90%"}},{"$f":"Actif!$E$30/100","v":{"v":0.09050000000000001,"d":"9.05%"}},{"$f":"Actif!$E$31/100","v":{"v":0.0605,"d":"6.05%"}},{"$f":"Actif!$E$32/100","v":{"v":0.47350000000000003,"d":"47.35%"}},{"$f":"Actif!$E$33/100","v":{"v":0.0585,"d":"5.85%"}},{"$f":"Actif!$E$29/100","v":{"v":0.027999999999999997,"d":"2.80%"}}]
[null,"#70",35,2028,"F","A_PER",{"v":0.44999999999999996,"d":"0.45"},{"v":0.38999999999999996,"d":"0.39"},0.6,0.6,85,0,{"$f":"ROUND(Primes!$P$7*V7180,0)","v":4},{"$f":"'BP Financier'!$F$33*(('BP Financier'!$C$19+'BP Financier'!$D$19+'BP Financier'!$E$19+'BP Financier'!$F$19)/('BP Financier'!$C$16+'BP Financier'!$C$19+'BP Financier'!$D$16+'BP Financier'!$D$19+'BP Financier'!$E$16+'BP Financier'!$E$19+'BP Financier'!$F$16+'BP Financier'!$F$19))*V7180","v":{"v":136236.6602787241,"d":"136,237"}},{"v":77282.79745310954,"d":"77,283"},{"$f":"'BP Financier'!$F$44*(('BP Financier'!$C$19+'BP Financier'!$D$19+'BP Financier'!$E$19+'BP Financier'!$F$19)/('BP Financier'!$C$16+'BP Financier'!$C$19+'BP Financier'!$D$16+'BP Financier'!$D$19+'BP Financier'!$E$16+'BP Financier'!$E$19+'BP Financier'!$C$22+'BP Financier'!$D$22+'BP Financier'!$E$22+'BP Financier'!$F$22+'BP Financier'!$F$19+'BP Financier'!$F$16))*$V7180*X7180/(1-$W7180)","v":{"v":9836.980547828993,"d":"9,837"}},{"$f":"'BP Financier'!$F$44*(('BP Financier'!$C$19+'BP Financier'!$D$19+'BP Financier'!$E$19+'BP Financier'!$F$19)/('BP Financier'!$C$16+'BP Financier'!$C$19+'BP Financier'!$D$16+'BP Financier'!$D$19+'BP Financier'!$E$16+'BP Financier'!$E$19+'BP Financier'!$C$22+'BP Financier'!$D$22+'BP Financier'!$E$22+'BP Financier'!$F$22+'BP Financier'!$F$19+'BP Financier'!$F$16))*$V7180*Y7180/(1-$W7180)","v":{"v":6576.103018161923,"d":"6,576"}},{"$f":"'BP Financier'!$F$44*(('BP Financier'!$C$19+'BP Financier'!$D$19+'BP Financier'!$E$19+'BP Financier'!$F$19)/('BP Financier'!$C$16+'BP Financier'!$C$19+'BP Financier'!$D$16+'BP Financier'!$D$19+'BP Financier'!$E$16+'BP Financier'!$E$19+'BP Financier'!$C$22+'BP Financier'!$D$22+'BP Financier'!$E$22+'BP Financier'!$F$22+'BP Financier'!$F$19+'BP Financier'!$F$16))*$V7180*Z7180/(1-$W7180)","v":{"v":51467.51700991191,"d":"51,468"}},{"$f":"'BP Financier'!$F$44*(('BP Financier'!$C$19+'BP Financier'!$D$19+'BP Financier'!$E$19+'BP Financier'!$F$19)/('BP Financier'!$C$16+'BP Financier'!$C$19+'BP Financier'!$D$16+'BP Financier'!$D$19+'BP Financier'!$E$16+'BP Financier'!$E$19+'BP Financier'!$C$22+'BP Financier'!$D$22+'BP Financier'!$E$22+'BP Financier'!$F$22+'BP Financier'!$F$19+'BP Financier'!$F$16))*$V7180*AA7180/(1-$W7180)","v":{"v":6358.711182850786,"d":"6,359"}},{"$f":"'BP Financier'!$F$44*(('BP Financier'!$C$19+'BP Financier'!$D$19+'BP Financier'!$E$19+'BP Financier'!$F$19)/('BP Financier'!$C$16+'BP Financier'!$C$19+'BP Financier'!$D$16+'BP Financier'!$D$19+'BP Financier'!$E$16+'BP Financier'!$E$19+'BP Financier'!$C$22+'BP Financier'!$D$22+'BP Financier'!$E$22+'BP Financier'!$F$22+'BP Financier'!$F$19+'BP Financier'!$F$16))*$V7180*AB7180/(1-$W7180)","v":{"v":3043.485694355931,"d":"3,043"}},null,{"v":0.00375,"d":"0.38%"},{"$f":"Actif!$E$28/100","v":{"v":0.28900000000000003,"d":"28.90%"}},{"$f":"Actif!$E$30/100","v":{"v":0.09050000000000001,"d":"9.05%"}},{"$f":"Actif!$E$31/100","v":{"v":0.0605,"d":"6.05%"}},{"$f":"Actif!$E$32/100","v":{"v":0.47350000000000003,"d":"47.35%"}},{"$f":"Actif!$E$33/100","v":{"v":0.0585,"d":"5.85%"}},{"$f":"Actif!$E$29/100","v":{"v":0.027999999999999997,"d":"2.80%"}}]
[null,"#71",35,2029,"F","A_PER",{"v":0.44999999999999996,"d":"0.45"},{"v":0.38999999999999996,"d":"0.39"},0.6,0.6,85,0,{"$f":"ROUND(Primes!$P$7*V7181,0)","v":4},{"$f":"'BP Financier'!$F$33*(('BP Financier'!$C$19+'BP Financier'!$D$19+'BP Financier'!$E$19+'BP Financier'!$F$19)/('BP Financier'!$C$16+'BP Financier'!$C$19+'BP Financier'!$D$16+'BP Financier'!$D$19+'BP Financier'!$E$16+'BP Financier'!$E$19+'BP Financier'!$F$16+'BP Financier'!$F$19))*V7181","v":{"v":136236.6602787241,"d":"136,237"}},{"v":77282.79745310954,"d":"77,283"},{"$f":"'BP Financier'!$F$44*(('BP Financier'!$C$19+'BP Financier'!$D$19+'BP Financier'!$E$19+'BP Financier'!$F$19)/('BP Financier'!$C$16+'BP Financier'!$C$19+'BP Financier'!$D$16+'BP Financier'!$D$19+'BP Financier'!$E$16+'BP Financier'!$E$19+'BP Financier'!$C$22+'BP Financier'!$D$22+'BP Financier'!$E$22+'BP Financier'!$F$22+'BP Financier'!$F$19+'BP Financier'!$F$16))*$V7181*X7181/(1-$W7181)","v":{"v":9836.980547828993,"d":"9,837"}},{"$f":"'BP Financier'!$F$44*(('BP Financier'!$C$19+'BP Financier'!$D$19+'BP Financier'!$E$19+'BP Financier'!$F$19)/('BP Financier'!$C$16+'BP Financier'!$C$19+'BP Financier'!$D$16+'BP Financier'!$D$19+'BP Financier'!$E$16+'BP Financier'!$E$19+'BP Financier'!$C$22+'BP Financier'!$D$22+'BP Financier'!$E$22+'BP Financier'!$F$22+'BP Financier'!$F$19+'BP Financier'!$F$16))*$V7181*Y7181/(1-$W7181)","v":{"v":6576.103018161923,"d":"6,576"}},{"$f":"'BP Financier'!$F$44*(('BP Financier'!$C$19+'BP Financier'!$D$19+'BP Financier'!$E$19+'BP Financier'!$F$19)/('BP Financier'!$C$16+'BP Financier'!$C$19+'BP Financier'!$D$16+'BP Financier'!$D$19+'BP Financier'!$E$16+'BP Financier'!$E$19+'BP Financier'!$C$22+'BP Financier'!$D$22+'BP Financier'!$E$22+'BP Financier'!$F$22+'BP Financier'!$F$19+'BP Financier'!$F$16))*$V7181*Z7181/(1-$W7181)","v":{"v":51467.51700991191,"d":"51,468"}},{"$f":"'BP Financier'!$F$44*(('BP Financier'!$C$19+'BP Financier'!$D$19+'BP Financier'!$E$19+'BP Financier'!$F$19)/('BP Financier'!$C$16+'BP Financier'!$C$19+'BP Financier'!$D$16+'BP Financier'!$D$19+'BP Financier'!$E$16+'BP Financier'!$E$19+'BP Financier'!$C$22+'BP Financier'!$D$22+'BP Financier'!$E$22+'BP Financier'!$F$22+'BP Financier'!$F$19+'BP Financier'!$F$16))*$V7181*AA7181/(1-$W7181)","v":{"v":6358.711182850786,"d":"6,359"}},{"$f":"'BP Financier'!$F$44*(('BP Financier'!$C$19+'BP Financier'!$D$19+'BP Financier'!$E$19+'BP Financier'!$F$19)/('BP Financier'!$C$16+'BP Financier'!$C$19+'BP Financier'!$D$16+'BP Financier'!$D$19+'BP Financier'!$E$16+'BP Financier'!$E$19+'BP Financier'!$C$22+'BP Financier'!$D$22+'BP Financier'!$E$22+'BP Financier'!$F$22+'BP Financier'!$F$19+'BP Financier'!$F$16))*$V7181*AB7181/(1-$W7181)","v":{"v":3043.485694355931,"d":"3,043"}},null,{"v":0.00375,"d":"0.38%"},{"$f":"Actif!$E$28/100","v":{"v":0.28900000000000003,"d":"28.90%"}},{"$f":"Actif!$E$30/100","v":{"v":0.09050000000000001,"d":"9.05%"}},{"$f":"Actif!$E$31/100","v":{"v":0.0605,"d":"6.05%"}},{"$f":"Actif!$E$32/100","v":{"v":0.47350000000000003,"d":"47.35%"}},{"$f":"Actif!$E$33/100","v":{"v":0.0585,"d":"5.85%"}},{"$f":"Actif!$E$29/100","v":{"v":0.027999999999999997,"d":"2.80%"}}]
[null,"#72",35,2030,"F","A_PER",{"v":0.44999999999999996,"d":"0.45"},{"v":0.38999999999999996,"d":"0.39"},0.6,0.6,85,0,{"$f":"ROUND(Primes!$P$7*V7182,0)","v":4},{"$f":"'BP Financier'!$F$33*(('BP Financier'!$C$19+'BP Financier'!$D$19+'BP Financier'!$E$19+'BP Financier'!$F$19)/('BP Financier'!$C$16+'BP Financier'!$C$19+'BP Financier'!$D$16+'BP Financier'!$D$19+'BP Financier'!$E$16+'BP Financier'!$E$19+'BP Financier'!$F$16+'BP Financier'!$F$19))*V7182","v":{"v":136236.6602787241,"d":"136,237"}},{"v":77282.79745310954,"d":"77,283"},{"$f":"'BP Financier'!$F$44*(('BP Financier'!$C$19+'BP Financier'!$D$19+'BP Financier'!$E$19+'BP Financier'!$F$19)/('BP Financier'!$C$16+'BP Financier'!$C$19+'BP Financier'!$D$16+'BP Financier'!$D$19+'BP Financier'!$E$16+'BP Financier'!$E$19+'BP Financier'!$C$22+'BP Financier'!$D$22+'BP Financier'!$E$22+'BP Financier'!$F$22+'BP Financier'!$F$19+'BP Financier'!$F$16))*$V7182*X7182/(1-$W7182)","v":{"v":9836.980547828993,"d":"9,837"}},{"$f":"'BP Financier'!$F$44*(('BP Financier'!$C$19+'BP Financier'!$D$19+'BP Financier'!$E$19+'BP Financier'!$F$19)/('BP Financier'!$C$16+'BP Financier'!$C$19+'BP Financier'!$D$16+'BP Financier'!$D$19+'BP Financier'!$E$16+'BP Financier'!$E$19+'BP Financier'!$C$22+'BP Financier'!$D$22+'BP Financier'!$E$22+'BP Financier'!$F$22+'BP Financier'!$F$19+'BP Financier'!$F$16))*$V7182*Y7182/(1-$W7182)","v":{"v":6576.103018161923,"d":"6,576"}},{"$f":"'BP Financier'!$F$44*(('BP Financier'!$C$19+'BP Financier'!$D$19+'BP Financier'!$E$19+'BP Financier'!$F$19)/('BP Financier'!$C$16+'BP Financier'!$C$19+'BP Financier'!$D$16+'BP Financier'!$D$19+'BP Financier'!$E$16+'BP Financier'!$E$19+'BP Financier'!$C$22+'BP Financier'!$D$22+'BP Financier'!$E$22+'BP Financier'!$F$22+'BP Financier'!$F$19+'BP Financier'!$F$16))*$V7182*Z7182/(1-$W7182)","v":{"v":51467.51700991191,"d":"51,468"}},{"$f":"'BP Financier'!$F$44*(('BP Financier'!$C$19+'BP Financier'!$D$19+'BP Financier'!$E$19+'BP Financier'!$F$19)/('BP Financier'!$C$16+'BP Financier'!$C$19+'BP Financier'!$D$16+'BP Financier'!$D$19+'BP Financier'!$E$16+'BP Financier'!$E$19+'BP Financier'!$C$22+'BP Financier'!$D$22+'BP Financier'!$E$22+'BP Financier'!$F$22+'BP Financier'!$F$19+'BP Financier'!$F$16))*$V7182*AA7182/(1-$W7182)","v":{"v":6358.711182850786,"d":"6,359"}},{"$f":"'BP Financier'!$F$44*(('BP Financier'!$C$19+'BP Financier'!$D$19+'BP Financier'!$E$19+'BP Financier'!$F$19)/('BP Financier'!$C$16+'BP Financier'!$C$19+'BP Financier'!$D$16+'BP Financier'!$D$19+'BP Financier'!$E$16+'BP Financier'!$E$19+'BP Financier'!$C$22+'BP Financier'!$D$22+'BP Financier'!$E$22+'BP Financier'!$F$22+'BP Financier'!$F$19+'BP Financier'!$F$16))*$V7182*AB7182/(1-$W7182)","v":{"v":3043.485694355931,"d":"3,043"}},null,{"v":0.00375,"d":"0.38%"},{"$f":"Actif!$E$28/100","v":{"v":0.28900000000000003,"d":"28.90%"}},{"$f":"Actif!$E$30/100","v":{"v":0.09050000000000001,"d":"9.05%"}},{"$f":"Actif!$E$31/100","v":{"v":0.0605,"d":"6.05%"}},{"$f":"Actif!$E$32/100","v":{"v":0.47350000000000003,"d":"47.35%"}},{"$f":"Actif!$E$33/100","v":{"v":0.0585,"d":"5.85%"}},{"$f":"Actif!$E$29/100","v":{"v":0.027999999999999997,"d":"2.80%"}}]
[null,"#73",36,2026,"H","A_PER",{"v":0.44999999999999996,"d":"0.45"},{"v":0.38999999999999996,"d":"0.39"},0.6,0.6,85,0,{"$f":"ROUND(Primes!$P$7*V7183,0)","v":4},{"$f":"'BP Financier'!$F$33*(('BP Financier'!$C$19+'BP Financier'!$D$19+'BP Financier'!$E$19+'BP Financier'!$F$19)/('BP Financier'!$C$16+'BP Financier'!$C$19+'BP Financier'!$D$16+'BP Financier'!$D$19+'BP Financier'!$E$16+'BP Financier'!$E$19+'BP Financier'!$F$16+'BP Financier'!$F$19))*V7183","v":{"v":136236.6602787241,"d":"136,237"}},{"v":77282.79745310954,"d":"77,283"},{"$f":"'BP Financier'!$F$44*(('BP Financier'!$C$19+'BP Financier'!$D$19+'BP Financier'!$E$19+'BP Financier'!$F$19)/('BP Financier'!$C$16+'BP Financier'!$C$19+'BP Financier'!$D$16+'BP Financier'!$D$19+'BP Financier'!$E$16+'BP Financier'!$E$19+'BP Financier'!$C$22+'BP Financier'!$D$22+'BP Financier'!$E$22+'BP Financier'!$F$22+'BP Financier'!$F$19+'BP Financier'!$F$16))*$V7183*X7183/(1-$W7183)","v":{"v":9836.980547828993,"d":"9,837"}},{"$f":"'BP Financier'!$F$44*(('BP Financier'!$C$19+'BP Financier'!$D$19+'BP Financier'!$E$19+'BP Financier'!$F$19)/('BP Financier'!$C$16+'BP Financier'!$C$19+'BP Financier'!$D$16+'BP Financier'!$D$19+'BP Financier'!$E$16+'BP Financier'!$E$19+'BP Financier'!$C$22+'BP Financier'!$D$22+'BP Financier'!$E$22+'BP Financier'!$F$22+'BP Financier'!$F$19+'BP Financier'!$F$16))*$V7183*Y7183/(1-$W7183)","v":{"v":6576.103018161923,"d":"6,576"}},{"$f":"'BP Financier'!$F$44*(('BP Financier'!$C$19+'BP Financier'!$D$19+'BP Financier'!$E$19+'BP Financier'!$F$19)/('BP Financier'!$C$16+'BP Financier'!$C$19+'BP Financier'!$D$16+'BP Financier'!$D$19+'BP Financier'!$E$16+'BP Financier'!$E$19+'BP Financier'!$C$22+'BP Financier'!$D$22+'BP Financier'!$E$22+'BP Financier'!$F$22+'BP Financier'!$F$19+'BP Financier'!$F$16))*$V7183*Z7183/(1-$W7183)","v":{"v":51467.51700991191,"d":"51,468"}},{"$f":"'BP Financier'!$F$44*(('BP Financier'!$C$19+'BP Financier'!$D$19+'BP Financier'!$E$19+'BP Financier'!$F$19)/('BP Financier'!$C$16+'BP Financier'!$C$19+'BP Financier'!$D$16+'BP Financier'!$D$19+'BP Financier'!$E$16+'BP Financier'!$E$19+'BP Financier'!$C$22+'BP Financier'!$D$22+'BP Financier'!$E$22+'BP Financier'!$F$22+'BP Financier'!$F$19+'BP Financier'!$F$16))*$V7183*AA7183/(1-$W7183)","v":{"v":6358.711182850786,"d":"6,359"}},{"$f":"'BP Financier'!$F$44*(('BP Financier'!$C$19+'BP Financier'!$D$19+'BP Financier'!$E$19+'BP Financier'!$F$19)/('BP Financier'!$C$16+'BP Financier'!$C$19+'BP Financier'!$D$16+'BP Financier'!$D$19+'BP Financier'!$E$16+'BP Financier'!$E$19+'BP Financier'!$C$22+'BP Financier'!$D$22+'BP Financier'!$E$22+'BP Financier'!$F$22+'BP Financier'!$F$19+'BP Financier'!$F$16))*$V7183*AB7183/(1-$W7183)","v":{"v":3043.485694355931,"d":"3,043"}},null,{"v":0.00375,"d":"0.38%"},{"$f":"Actif!$E$28/100","v":{"v":0.28900000000000003,"d":"28.90%"}},{"$f":"Actif!$E$30/100","v":{"v":0.09050000000000001,"d":"9.05%"}},{"$f":"Actif!$E$31/100","v":{"v":0.0605,"d":"6.05%"}},{"$f":"Actif!$E$32/100","v":{"v":0.47350000000000003,"d":"47.35%"}},{"$f":"Actif!$E$33/100","v":{"v":0.0585,"d":"5.85%"}},{"$f":"Actif!$E$29/100","v":{"v":0.027999999999999997,"d":"2.80%"}}]
[null,"#74",36,2028,"H","A_PER",{"v":0.44999999999999996,"d":"0.45"},{"v":0.38999999999999996,"d":"0.39"},0.6,0.6,85,0,{"$f":"ROUND(Primes!$P$7*V7184,0)","v":4},{"$f":"'BP Financier'!$F$33*(('BP Financier'!$C$19+'BP Financier'!$D$19+'BP Financier'!$E$19+'BP Financier'!$F$19)/('BP Financier'!$C$16+'BP Financier'!$C$19+'BP Financier'!$D$16+'BP Financier'!$D$19+'BP Financier'!$E$16+'BP Financier'!$E$19+'BP Financier'!$F$16+'BP Financier'!$F$19))*V7184","v":{"v":136236.6602787241,"d":"136,237"}},{"v":77282.79745310954,"d":"77,283"},{"$f":"'BP Financier'!$F$44*(('BP Financier'!$C$19+'BP Financier'!$D$19+'BP Financier'!$E$19+'BP Financier'!$F$19)/('BP Financier'!$C$16+'BP Financier'!$C$19+'BP Financier'!$D$16+'BP Financier'!$D$19+'BP Financier'!$E$16+'BP Financier'!$E$19+'BP Financier'!$C$22+'BP Financier'!$D$22+'BP Financier'!$E$22+'BP Financier'!$F$22+'BP Financier'!$F$19+'BP Financier'!$F$16))*$V7184*X7184/(1-$W7184)","v":{"v":9836.980547828993,"d":"9,837"}},{"$f":"'BP Financier'!$F$44*(('BP Financier'!$C$19+'BP Financier'!$D$19+'BP Financier'!$E$19+'BP Financier'!$F$19)/('BP Financier'!$C$16+'BP Financier'!$C$19+'BP Financier'!$D$16+'BP Financier'!$D$19+'BP Financier'!$E$16+'BP Financier'!$E$19+'BP Financier'!$C$22+'BP Financier'!$D$22+'BP Financier'!$E$22+'BP Financier'!$F$22+'BP Financier'!$F$19+'BP Financier'!$F$16))*$V7184*Y7184/(1-$W7184)","v":{"v":6576.103018161923,"d":"6,576"}},{"$f":"'BP Financier'!$F$44*(('BP Financier'!$C$19+'BP Financier'!$D$19+'BP Financier'!$E$19+'BP Financier'!$F$19)/('BP Financier'!$C$16+'BP Financier'!$C$19+'BP Financier'!$D$16+'BP Financier'!$D$19+'BP Financier'!$E$16+'BP Financier'!$E$19+'BP Financier'!$C$22+'BP Financier'!$D$22+'BP Financier'!$E$22+'BP Financier'!$F$22+'BP Financier'!$F$19+'BP Financier'!$F$16))*$V7184*Z7184/(1-$W7184)","v":{"v":51467.51700991191,"d":"51,468"}},{"$f":"'BP Financier'!$F$44*(('BP Financier'!$C$19+'BP Financier'!$D$19+'BP Financier'!$E$19+'BP Financier'!$F$19)/('BP Financier'!$C$16+'BP Financier'!$C$19+'BP Financier'!$D$16+'BP Financier'!$D$19+'BP Financier'!$E$16+'BP Financier'!$E$19+'BP Financier'!$C$22+'BP Financier'!$D$22+'BP Financier'!$E$22+'BP Financier'!$F$22+'BP Financier'!$F$19+'BP Financier'!$F$16))*$V7184*AA7184/(1-$W7184)","v":{"v":6358.711182850786,"d":"6,359"}},{"$f":"'BP Financier'!$F$44*(('BP Financier'!$C$19+'BP Financier'!$D$19+'BP Financier'!$E$19+'BP Financier'!$F$19)/('BP Financier'!$C$16+'BP Financier'!$C$19+'BP Financier'!$D$16+'BP Financier'!$D$19+'BP Financier'!$E$16+'BP Financier'!$E$19+'BP Financier'!$C$22+'BP Financier'!$D$22+'BP Financier'!$E$22+'BP Financier'!$F$22+'BP Financier'!$F$19+'BP Financier'!$F$16))*$V7184*AB7184/(1-$W7184)","v":{"v":3043.485694355931,"d":"3,043"}},null,{"v":0.00375,"d":"0.38%"},{"$f":"Actif!$E$28/100","v":{"v":0.28900000000000003,"d":"28.90%"}},{"$f":"Actif!$E$30/100","v":{"v":0.09050000000000001,"d":"9.05%"}},{"$f":"Actif!$E$31/100","v":{"v":0.0605,"d":"6.05%"}},{"$f":"Actif!$E$32/100","v":{"v":0.47350000000000003,"d":"47.35%"}},{"$f":"Actif!$E$33/100","v":{"v":0.0585,"d":"5.85%"}},{"$f":"Actif!$E$29/100","v":{"v":0.027999999999999997,"d":"2.80%"}}]
[null,"#75",36,2029,"H","A_PER",{"v":0.44999999999999996,"d":"0.45"},{"v":0.38999999999999996,"d":"0.39"},0.6,0.6,85,0,{"$f":"ROUND(Primes!$P$7*V7185,0)","v":4},{"$f":"'BP Financier'!$F$33*(('BP Financier'!$C$19+'BP Financier'!$D$19+'BP Financier'!$E$19+'BP Financier'!$F$19)/('BP Financier'!$C$16+'BP Financier'!$C$19+'BP Financier'!$D$16+'BP Financier'!$D$19+'BP Financier'!$E$16+'BP Financier'!$E$19+'BP Financier'!$F$16+'BP Financier'!$F$19))*V7185","v":{"v":136236.6602787241,"d":"136,237"}},{"v":77282.79745310954,"d":"77,283"},{"$f":"'BP Financier'!$F$44*(('BP Financier'!$C$19+'BP Financier'!$D$19+'BP Financier'!$E$19+'BP Financier'!$F$19)/('BP Financier'!$C$16+'BP Financier'!$C$19+'BP Financier'!$D$16+'BP Financier'!$D$19+'BP Financier'!$E$16+'BP Financier'!$E$19+'BP Financier'!$C$22+'BP Financier'!$D$22+'BP Financier'!$E$22+'BP Financier'!$F$22+'BP Financier'!$F$19+'BP Financier'!$F$16))*$V7185*X7185/(1-$W7185)","v":{"v":9836.980547828993,"d":"9,837"}},{"$f":"'BP Financier'!$F$44*(('BP Financier'!$C$19+'BP Financier'!$D$19+'BP Financier'!$E$19+'BP Financier'!$F$19)/('BP Financier'!$C$16+'BP Financier'!$C$19+'BP Financier'!$D$16+'BP Financier'!$D$19+'BP Financier'!$E$16+'BP Financier'!$E$19+'BP Financier'!$C$22+'BP Financier'!$D$22+'BP Financier'!$E$22+'BP Financier'!$F$22+'BP Financier'!$F$19+'BP Financier'!$F$16))*$V7185*Y7185/(1-$W7185)","v":{"v":6576.103018161923,"d":"6,576"}},{"$f":"'BP Financier'!$F$44*(('BP Financier'!$C$19+'BP Financier'!$D$19+'BP Financier'!$E$19+'BP Financier'!$F$19)/('BP Financier'!$C$16+'BP Financier'!$C$19+'BP Financier'!$D$16+'BP Financier'!$D$19+'BP Financier'!$E$16+'BP Financier'!$E$19+'BP Financier'!$C$22+'BP Financier'!$D$22+'BP Financier'!$E$22+'BP Financier'!$F$22+'BP Financier'!$F$19+'BP Financier'!$F$16))*$V7185*Z7185/(1-$W7185)","v":{"v":51467.51700991191,"d":"51,468"}},{"$f":"'BP Financier'!$F$44*(('BP Financier'!$C$19+'BP Financier'!$D$19+'BP Financier'!$E$19+'BP Financier'!$F$19)/('BP Financier'!$C$16+'BP Financier'!$C$19+'BP Financier'!$D$16+'BP Financier'!$D$19+'BP Financier'!$E$16+'BP Financier'!$E$19+'BP Financier'!$C$22+'BP Financier'!$D$22+'BP Financier'!$E$22+'BP Financier'!$F$22+'BP Financier'!$F$19+'BP Financier'!$F$16))*$V7185*AA7185/(1-$W7185)","v":{"v":6358.711182850786,"d":"6,359"}},{"$f":"'BP Financier'!$F$44*(('BP Financier'!$C$19+'BP Financier'!$D$19+'BP Financier'!$E$19+'BP Financier'!$F$19)/('BP Financier'!$C$16+'BP Financier'!$C$19+'BP Financier'!$D$16+'BP Financier'!$D$19+'BP Financier'!$E$16+'BP Financier'!$E$19+'BP Financier'!$C$22+'BP Financier'!$D$22+'BP Financier'!$E$22+'BP Financier'!$F$22+'BP Financier'!$F$19+'BP Financier'!$F$16))*$V7185*AB7185/(1-$W7185)","v":{"v":3043.485694355931,"d":"3,043"}},null,{"v":0.00375,"d":"0.38%"},{"$f":"Actif!$E$28/100","v":{"v":0.28900000000000003,"d":"28.90%"}},{"$f":"Actif!$E$30/100","v":{"v":0.09050000000000001,"d":"9.05%"}},{"$f":"Actif!$E$31/100","v":{"v":0.0605,"d":"6.05%"}},{"$f":"Actif!$E$32/100","v":{"v":0.47350000000000003,"d":"47.35%"}},{"$f":"Actif!$E$33/100","v":{"v":0.0585,"d":"5.85%"}},{"$f":"Actif!$E$29/100","v":{"v":0.027999999999999997,"d":"2.80%"}}]
[null,"#76",36,2030,"H","A_PER",{"v":0.44999999999999996,"d":"0.45"},{"v":0.38999999999999996,"d":"0.39"},0.6,0.6,85,0,{"$f":"ROUND(Primes!$P$7*V7186,0)","v":4},{"$f":"'BP Financier'!$F$33*(('BP Financier'!$C$19+'BP Financier'!$D$19+'BP Financier'!$E$19+'BP Financier'!$F$19)/('BP Financier'!$C$16+'BP Financier'!$C$19+'BP Financier'!$D$16+'BP Financier'!$D$19+'BP Financier'!$E$16+'BP Financier'!$E$19+'BP Financier'!$F$16+'BP Financier'!$F$19))*V7186","v":{"v":136236.6602787241,"d":"136,237"}},{"v":77282.79745310954,"d":"77,283"},{"$f":"'BP Financier'!$F$44*(('BP Financier'!$C$19+'BP Financier'!$D$19+'BP Financier'!$E$19+'BP Financier'!$F$19)/('BP Financier'!$C$16+'BP Financier'!$C$19+'BP Financier'!$D$16+'BP Financier'!$D$19+'BP Financier'!$E$16+'BP Financier'!$E$19+'BP Financier'!$C$22+'BP Financier'!$D$22+'BP Financier'!$E$22+'BP Financier'!$F$22+'BP Financier'!$F$19+'BP Financier'!$F$16))*$V7186*X7186/(1-$W7186)","v":{"v":9836.980547828993,"d":"9,837"}},{"$f":"'BP Financier'!$F$44*(('BP Financier'!$C$19+'BP Financier'!$D$19+'BP Financier'!$E$19+'BP Financier'!$F$19)/('BP Financier'!$C$16+'BP Financier'!$C$19+'BP Financier'!$D$16+'BP Financier'!$D$19+'BP Financier'!$E$16+'BP Financier'!$E$19+'BP Financier'!$C$22+'BP Financier'!$D$22+'BP Financier'!$E$22+'BP Financier'!$F$22+'BP Financier'!$F$19+'BP Financier'!$F$16))*$V7186*Y7186/(1-$W7186)","v":{"v":6576.103018161923,"d":"6,576"}},{"$f":"'BP Financier'!$F$44*(('BP Financier'!$C$19+'BP Financier'!$D$19+'BP Financier'!$E$19+'BP Financier'!$F$19)/('BP Financier'!$C$16+'BP Financier'!$C$19+'BP Financier'!$D$16+'BP Financier'!$D$19+'BP Financier'!$E$16+'BP Financier'!$E$19+'BP Financier'!$C$22+'BP Financier'!$D$22+'BP Financier'!$E$22+'BP Financier'!$F$22+'BP Financier'!$F$19+'BP Financier'!$F$16))*$V7186*Z7186/(1-$W7186)","v":{"v":51467.51700991191,"d":"51,468"}},{"$f":"'BP Financier'!$F$44*(('BP Financier'!$C$19+'BP Financier'!$D$19+'BP Financier'!$E$19+'BP Financier'!$F$19)/('BP Financier'!$C$16+'BP Financier'!$C$19+'BP Financier'!$D$16+'BP Financier'!$D$19+'BP Financier'!$E$16+'BP Financier'!$E$19+'BP Financier'!$C$22+'BP Financier'!$D$22+'BP Financier'!$E$22+'BP Financier'!$F$22+'BP Financier'!$F$19+'BP Financier'!$F$16))*$V7186*AA7186/(1-$W7186)","v":{"v":6358.711182850786,"d":"6,359"}},{"$f":"'BP Financier'!$F$44*(('BP Financier'!$C$19+'BP Financier'!$D$19+'BP Financier'!$E$19+'BP Financier'!$F$19)/('BP Financier'!$C$16+'BP Financier'!$C$19+'BP Financier'!$D$16+'BP Financier'!$D$19+'BP Financier'!$E$16+'BP Financier'!$E$19+'BP Financier'!$C$22+'BP Financier'!$D$22+'BP Financier'!$E$22+'BP Financier'!$F$22+'BP Financier'!$F$19+'BP Financier'!$F$16))*$V7186*AB7186/(1-$W7186)","v":{"v":3043.485694355931,"d":"3,043"}},null,{"v":0.00375,"d":"0.38%"},{"$f":"Actif!$E$28/100","v":{"v":0.28900000000000003,"d":"28.90%"}},{"$f":"Actif!$E$30/100","v":{"v":0.09050000000000001,"d":"9.05%"}},{"$f":"Actif!$E$31/100","v":{"v":0.0605,"d":"6.05%"}},{"$f":"Actif!$E$32/100","v":{"v":0.47350000000000003,"d":"47.35%"}},{"$f":"Actif!$E$33/100","v":{"v":0.0585,"d":"5.85%"}},{"$f":"Actif!$E$29/100","v":{"v":0.027999999999999997,"d":"2.80%"}}]
[null,"#77",37,2026,"H","A_PER",{"v":0.44999999999999996,"d":"0.45"},{"v":0.38999999999999996,"d":"0.39"},0.6,0.6,85,0,{"$f":"ROUND(Primes!$P$7*V7187,0)","v":4},{"$f":"'BP Financier'!$F$33*(('BP Financier'!$C$19+'BP Financier'!$D$19+'BP Financier'!$E$19+'BP Financier'!$F$19)/('BP Financier'!$C$16+'BP Financier'!$C$19+'BP Financier'!$D$16+'BP Financier'!$D$19+'BP Financier'!$E$16+'BP Financier'!$E$19+'BP Financier'!$F$16+'BP Financier'!$F$19))*V7187","v":{"v":136236.6602787241,"d":"136,237"}},{"v":77282.79745310954,"d":"77,283"},{"$f":"'BP Financier'!$F$44*(('BP Financier'!$C$19+'BP Financier'!$D$19+'BP Financier'!$E$19+'BP Financier'!$F$19)/('BP Financier'!$C$16+'BP Financier'!$C$19+'BP Financier'!$D$16+'BP Financier'!$D$19+'BP Financier'!$E$16+'BP Financier'!$E$19+'BP Financier'!$C$22+'BP Financier'!$D$22+'BP Financier'!$E$22+'BP Financier'!$F$22+'BP Financier'!$F$19+'BP Financier'!$F$16))*$V7187*X7187/(1-$W7187)","v":{"v":9836.980547828993,"d":"9,837"}},{"$f":"'BP Financier'!$F$44*(('BP Financier'!$C$19+'BP Financier'!$D$19+'BP Financier'!$E$19+'BP Financier'!$F$19)/('BP Financier'!$C$16+'BP Financier'!$C$19+'BP Financier'!$D$16+'BP Financier'!$D$19+'BP Financier'!$E$16+'BP Financier'!$E$19+'BP Financier'!$C$22+'BP Financier'!$D$22+'BP Financier'!$E$22+'BP Financier'!$F$22+'BP Financier'!$F$19+'BP Financier'!$F$16))*$V7187*Y7187/(1-$W7187)","v":{"v":6576.103018161923,"d":"6,576"}},{"$f":"'BP Financier'!$F$44*(('BP Financier'!$C$19+'BP Financier'!$D$19+'BP Financier'!$E$19+'BP Financier'!$F$19)/('BP Financier'!$C$16+'BP Financier'!$C$19+'BP Financier'!$D$16+'BP Financier'!$D$19+'BP Financier'!$E$16+'BP Financier'!$E$19+'BP Financier'!$C$22+'BP Financier'!$D$22+'BP Financier'!$E$22+'BP Financier'!$F$22+'BP Financier'!$F$19+'BP Financier'!$F$16))*$V7187*Z7187/(1-$W7187)","v":{"v":51467.51700991191,"d":"51,468"}},{"$f":"'BP Financier'!$F$44*(('BP Financier'!$C$19+'BP Financier'!$D$19+'BP Financier'!$E$19+'BP Financier'!$F$19)/('BP Financier'!$C$16+'BP Financier'!$C$19+'BP Financier'!$D$16+'BP Financier'!$D$19+'BP Financier'!$E$16+'BP Financier'!$E$19+'BP Financier'!$C$22+'BP Financier'!$D$22+'BP Financier'!$E$22+'BP Financier'!$F$22+'BP Financier'!$F$19+'BP Financier'!$F$16))*$V7187*AA7187/(1-$W7187)","v":{"v":6358.711182850786,"d":"6,359"}},{"$f":"'BP Financier'!$F$44*(('BP Financier'!$C$19+'BP Financier'!$D$19+'BP Financier'!$E$19+'BP Financier'!$F$19)/('BP Financier'!$C$16+'BP Financier'!$C$19+'BP Financier'!$D$16+'BP Financier'!$D$19+'BP Financier'!$E$16+'BP Financier'!$E$19+'BP Financier'!$C$22+'BP Financier'!$D$22+'BP Financier'!$E$22+'BP Financier'!$F$22+'BP Financier'!$F$19+'BP Financier'!$F$16))*$V7187*AB7187/(1-$W7187)","v":{"v":3043.485694355931,"d":"3,043"}},null,{"v":0.00375,"d":"0.38%"},{"$f":"Actif!$E$28/100","v":{"v":0.28900000000000003,"d":"28.90%"}},{"$f":"Actif!$E$30/100","v":{"v":0.09050000000000001,"d":"9.05%"}},{"$f":"Actif!$E$31/100","v":{"v":0.0605,"d":"6.05%"}},{"$f":"Actif!$E$32/100","v":{"v":0.47350000000000003,"d":"47.35%"}},{"$f":"Actif!$E$33/100","v":{"v":0.0585,"d":"5.85%"}},{"$f":"Actif!$E$29/100","v":{"v":0.027999999999999997,"d":"2.80%"}}]
[null,"#78",37,2028,"H","A_PER",{"v":0.44999999999999996,"d":"0.45"},{"v":0.38999999999999996,"d":"0.39"},0.6,0.6,85,0,{"$f":"ROUND(Primes!$P$7*V7188,0)","v":4},{"$f":"'BP Financier'!$F$33*(('BP Financier'!$C$19+'BP Financier'!$D$19+'BP Financier'!$E$19+'BP Financier'!$F$19)/('BP Financier'!$C$16+'BP Financier'!$C$19+'BP Financier'!$D$16+'BP Financier'!$D$19+'BP Financier'!$E$16+'BP Financier'!$E$19+'BP Financier'!$F$16+'BP Financier'!$F$19))*V7188","v":{"v":136236.6602787241,"d":"136,237"}},{"v":77282.79745310954,"d":"77,283"},{"$f":"'BP Financier'!$F$44*(('BP Financier'!$C$19+'BP Financier'!$D$19+'BP Financier'!$E$19+'BP Financier'!$F$19)/('BP Financier'!$C$16+'BP Financier'!$C$19+'BP Financier'!$D$16+'BP Financier'!$D$19+'BP Financier'!$E$16+'BP Financier'!$E$19+'BP Financier'!$C$22+'BP Financier'!$D$22+'BP Financier'!$E$22+'BP Financier'!$F$22+'BP Financier'!$F$19+'BP Financier'!$F$16))*$V7188*X7188/(1-$W7188)","v":{"v":9836.980547828993,"d":"9,837"}},{"$f":"'BP Financier'!$F$44*(('BP Financier'!$C$19+'BP Financier'!$D$19+'BP Financier'!$E$19+'BP Financier'!$F$19)/('BP Financier'!$C$16+'BP Financier'!$C$19+'BP Financier'!$D$16+'BP Financier'!$D$19+'BP Financier'!$E$16+'BP Financier'!$E$19+'BP Financier'!$C$22+'BP Financier'!$D$22+'BP Financier'!$E$22+'BP Financier'!$F$22+'BP Financier'!$F$19+'BP Financier'!$F$16))*$V7188*Y7188/(1-$W7188)","v":{"v":6576.103018161923,"d":"6,576"}},{"$f":"'BP Financier'!$F$44*(('BP Financier'!$C$19+'BP Financier'!$D$19+'BP Financier'!$E$19+'BP Financier'!$F$19)/('BP Financier'!$C$16+'BP Financier'!$C$19+'BP Financier'!$D$16+'BP Financier'!$D$19+'BP Financier'!$E$16+'BP Financier'!$E$19+'BP Financier'!$C$22+'BP Financier'!$D$22+'BP Financier'!$E$22+'BP Financier'!$F$22+'BP Financier'!$F$19+'BP Financier'!$F$16))*$V7188*Z7188/(1-$W7188)","v":{"v":51467.51700991191,"d":"51,468"}},{"$f":"'BP Financier'!$F$44*(('BP Financier'!$C$19+'BP Financier'!$D$19+'BP Financier'!$E$19+'BP Financier'!$F$19)/('BP Financier'!$C$16+'BP Financier'!$C$19+'BP Financier'!$D$16+'BP Financier'!$D$19+'BP Financier'!$E$16+'BP Financier'!$E$19+'BP Financier'!$C$22+'BP Financier'!$D$22+'BP Financier'!$E$22+'BP Financier'!$F$22+'BP Financier'!$F$19+'BP Financier'!$F$16))*$V7188*AA7188/(1-$W7188)","v":{"v":6358.711182850786,"d":"6,359"}},{"$f":"'BP Financier'!$F$44*(('BP Financier'!$C$19+'BP Financier'!$D$19+'BP Financier'!$E$19+'BP Financier'!$F$19)/('BP Financier'!$C$16+'BP Financier'!$C$19+'BP Financier'!$D$16+'BP Financier'!$D$19+'BP Financier'!$E$16+'BP Financier'!$E$19+'BP Financier'!$C$22+'BP Financier'!$D$22+'BP Financier'!$E$22+'BP Financier'!$F$22+'BP Financier'!$F$19+'BP Financier'!$F$16))*$V7188*AB7188/(1-$W7188)","v":{"v":3043.485694355931,"d":"3,043"}},null,{"v":0.00375,"d":"0.38%"},{"$f":"Actif!$E$28/100","v":{"v":0.28900000000000003,"d":"28.90%"}},{"$f":"Actif!$E$30/100","v":{"v":0.09050000000000001,"d":"9.05%"}},{"$f":"Actif!$E$31/100","v":{"v":0.0605,"d":"6.05%"}},{"$f":"Actif!$E$32/100","v":{"v":0.47350000000000003,"d":"47.35%"}},{"$f":"Actif!$E$33/100","v":{"v":0.0585,"d":"5.85%"}},{"$f":"Actif!$E$29/100","v":{"v":0.027999999999999997,"d":"2.80%"}}]
[null,"#79",37,2029,"H","A_PER",{"v":0.44999999999999996,"d":"0.45"},{"v":0.38999999999999996,"d":"0.39"},0.6,0.6,85,0,{"$f":"ROUND(Primes!$P$7*V7189,0)","v":4},{"$f":"'BP Financier'!$F$33*(('BP Financier'!$C$19+'BP Financier'!$D$19+'BP Financier'!$E$19+'BP Financier'!$F$19)/('BP Financier'!$C$16+'BP Financier'!$C$19+'BP Financier'!$D$16+'BP Financier'!$D$19+'BP Financier'!$E$16+'BP Financier'!$E$19+'BP Financier'!$F$16+'BP Financier'!$F$19))*V7189","v":{"v":136236.6602787241,"d":"136,237"}},{"v":77282.79745310954,"d":"77,283"},{"$f":"'BP Financier'!$F$44*(('BP Financier'!$C$19+'BP Financier'!$D$19+'BP Financier'!$E$19+'BP Financier'!$F$19)/('BP Financier'!$C$16+'BP Financier'!$C$19+'BP Financier'!$D$16+'BP Financier'!$D$19+'BP Financier'!$E$16+'BP Financier'!$E$19+'BP Financier'!$C$22+'BP Financier'!$D$22+'BP Financier'!$E$22+'BP Financier'!$F$22+'BP Financier'!$F$19+'BP Financier'!$F$16))*$V7189*X7189/(1-$W7189)","v":{"v":9836.980547828993,"d":"9,837"}},{"$f":"'BP Financier'!$F$44*(('BP Financier'!$C$19+'BP Financier'!$D$19+'BP Financier'!$E$19+'BP Financier'!$F$19)/('BP Financier'!$C$16+'BP Financier'!$C$19+'BP Financier'!$D$16+'BP Financier'!$D$19+'BP Financier'!$E$16+'BP Financier'!$E$19+'BP Financier'!$C$22+'BP Financier'!$D$22+'BP Financier'!$E$22+'BP Financier'!$F$22+'BP Financier'!$F$19+'BP Financier'!$F$16))*$V7189*Y7189/(1-$W7189)","v":{"v":6576.103018161923,"d":"6,576"}},{"$f":"'BP Financier'!$F$44*(('BP Financier'!$C$19+'BP Financier'!$D$19+'BP Financier'!$E$19+'BP Financier'!$F$19)/('BP Financier'!$C$16+'BP Financier'!$C$19+'BP Financier'!$D$16+'BP Financier'!$D$19+'BP Financier'!$E$16+'BP Financier'!$E$19+'BP Financier'!$C$22+'BP Financier'!$D$22+'BP Financier'!$E$22+'BP Financier'!$F$22+'BP Financier'!$F$19+'BP Financier'!$F$16))*$V7189*Z7189/(1-$W7189)","v":{"v":51467.51700991191,"d":"51,468"}},{"$f":"'BP Financier'!$F$44*(('BP Financier'!$C$19+'BP Financier'!$D$19+'BP Financier'!$E$19+'BP Financier'!$F$19)/('BP Financier'!$C$16+'BP Financier'!$C$19+'BP Financier'!$D$16+'BP Financier'!$D$19+'BP Financier'!$E$16+'BP Financier'!$E$19+'BP Financier'!$C$22+'BP Financier'!$D$22+'BP Financier'!$E$22+'BP Financier'!$F$22+'BP Financier'!$F$19+'BP Financier'!$F$16))*$V7189*AA7189/(1-$W7189)","v":{"v":6358.711182850786,"d":"6,359"}},{"$f":"'BP Financier'!$F$44*(('BP Financier'!$C$19+'BP Financier'!$D$19+'BP Financier'!$E$19+'BP Financier'!$F$19)/('BP Financier'!$C$16+'BP Financier'!$C$19+'BP Financier'!$D$16+'BP Financier'!$D$19+'BP Financier'!$E$16+'BP Financier'!$E$19+'BP Financier'!$C$22+'BP Financier'!$D$22+'BP Financier'!$E$22+'BP Financier'!$F$22+'BP Financier'!$F$19+'BP Financier'!$F$16))*$V7189*AB7189/(1-$W7189)","v":{"v":3043.485694355931,"d":"3,043"}},null,{"v":0.00375,"d":"0.38%"},{"$f":"Actif!$E$28/100","v":{"v":0.28900000000000003,"d":"28.90%"}},{"$f":"Actif!$E$30/100","v":{"v":0.09050000000000001,"d":"9.05%"}},{"$f":"Actif!$E$31/100","v":{"v":0.0605,"d":"6.05%"}},{"$f":"Actif!$E$32/100","v":{"v":0.47350000000000003,"d":"47.35%"}},{"$f":"Actif!$E$33/100","v":{"v":0.0585,"d":"5.85%"}},{"$f":"Actif!$E$29/100","v":{"v":0.027999999999999997,"d":"2.80%"}}]
[null,"#80",37,2030,"H","A_PER",{"v":0.44999999999999996,"d":"0.45"},{"v":0.38999999999999996,"d":"0.39"},0.6,0.6,85,0,{"$f":"ROUND(Primes!$P$7*V7190,0)","v":4},{"$f":"'BP Financier'!$F$33*(('BP Financier'!$C$19+'BP Financier'!$D$19+'BP Financier'!$E$19+'BP Financier'!$F$19)/('BP Financier'!$C$16+'BP Financier'!$C$19+'BP Financier'!$D$16+'BP Financier'!$D$19+'BP Financier'!$E$16+'BP Financier'!$E$19+'BP Financier'!$F$16+'BP Financier'!$F$19))*V7190","v":{"v":136236.6602787241,"d":"136,237"}},{"v":77282.79745310954,"d":"77,283"},{"$f":"'BP Financier'!$F$44*(('BP Financier'!$C$19+'BP Financier'!$D$19+'BP Financier'!$E$19+'BP Financier'!$F$19)/('BP Financier'!$C$16+'BP Financier'!$C$19+'BP Financier'!$D$16+'BP Financier'!$D$19+'BP Financier'!$E$16+'BP Financier'!$E$19+'BP Financier'!$C$22+'BP Financier'!$D$22+'BP Financier'!$E$22+'BP Financier'!$F$22+'BP Financier'!$F$19+'BP Financier'!$F$16))*$V7190*X7190/(1-$W7190)","v":{"v":9836.980547828993,"d":"9,837"}},{"$f":"'BP Financier'!$F$44*(('BP Financier'!$C$19+'BP Financier'!$D$19+'BP Financier'!$E$19+'BP Financier'!$F$19)/('BP Financier'!$C$16+'BP Financier'!$C$19+'BP Financier'!$D$16+'BP Financier'!$D$19+'BP Financier'!$E$16+'BP Financier'!$E$19+'BP Financier'!$C$22+'BP Financier'!$D$22+'BP Financier'!$E$22+'BP Financier'!$F$22+'BP Financier'!$F$19+'BP Financier'!$F$16))*$V7190*Y7190/(1-$W7190)","v":{"v":6576.103018161923,"d":"6,576"}},{"$f":"'BP Financier'!$F$44*(('BP Financier'!$C$19+'BP Financier'!$D$19+'BP Financier'!$E$19+'BP Financier'!$F$19)/('BP Financier'!$C$16+'BP Financier'!$C$19+'BP Financier'!$D$16+'BP Financier'!$D$19+'BP Financier'!$E$16+'BP Financier'!$E$19+'BP Financier'!$C$22+'BP Financier'!$D$22+'BP Financier'!$E$22+'BP Financier'!$F$22+'BP Financier'!$F$19+'BP Financier'!$F$16))*$V7190*Z7190/(1-$W7190)","v":{"v":51467.51700991191,"d":"51,468"}},{"$f":"'BP Financier'!$F$44*(('BP Financier'!$C$19+'BP Financier'!$D$19+'BP Financier'!$E$19+'BP Financier'!$F$19)/('BP Financier'!$C$16+'BP Financier'!$C$19+'BP Financier'!$D$16+'BP Financier'!$D$19+'BP Financier'!$E$16+'BP Financier'!$E$19+'BP Financier'!$C$22+'BP Financier'!$D$22+'BP Financier'!$E$22+'BP Financier'!$F$22+'BP Financier'!$F$19+'BP Financier'!$F$16))*$V7190*AA7190/(1-$W7190)","v":{"v":6358.711182850786,"d":"6,359"}},{"$f":"'BP Financier'!$F$44*(('BP Financier'!$C$19+'BP Financier'!$D$19+'BP Financier'!$E$19+'BP Financier'!$F$19)/('BP Financier'!$C$16+'BP Financier'!$C$19+'BP Financier'!$D$16+'BP Financier'!$D$19+'BP Financier'!$E$16+'BP Financier'!$E$19+'BP Financier'!$C$22+'BP Financier'!$D$22+'BP Financier'!$E$22+'BP Financier'!$F$22+'BP Financier'!$F$19+'BP Financier'!$F$16))*$V7190*AB7190/(1-$W7190)","v":{"v":3043.485694355931,"d":"3,043"}},null,{"v":0.00375,"d":"0.38%"},{"$f":"Actif!$E$28/100","v":{"v":0.28900000000000003,"d":"28.90%"}},{"$f":"Actif!$E$30/100","v":{"v":0.09050000000000001,"d":"9.05%"}},{"$f":"Actif!$E$31/100","v":{"v":0.0605,"d":"6.05%"}},{"$f":"Actif!$E$32/100","v":{"v":0.47350000000000003,"d":"47.35%"}},{"$f":"Actif!$E$33/100","v":{"v":0.0585,"d":"5.85%"}},{"$f":"Actif!$E$29/100","v":{"v":0.027999999999999997,"d":"2.80%"}}]
[null,"#81",38,2026,"F","A_PER",{"v":0.44999999999999996,"d":"0.45"},{"v":0.38999999999999996,"d":"0.39"},0.6,0.6,85,0,{"$f":"ROUND(Primes!$P$7*V7191,0)","v":8},{"$f":"'BP Financier'!$F$33*(('BP Financier'!$C$19+'BP Financier'!$D$19+'BP Financier'!$E$19+'BP Financier'!$F$19)/('BP Financier'!$C$16+'BP Financier'!$C$19+'BP Financier'!$D$16+'BP Financier'!$D$19+'BP Financier'!$E$16+'BP Financier'!$E$19+'BP Financier'!$F$16+'BP Financier'!$F$19))*V7191","v":{"v":272473.3205574482,"d":"272,473"}},{"v":154565.59490621908,"d":"154,566"},{"$f":"'BP Financier'!$F$44*(('BP Financier'!$C$19+'BP Financier'!$D$19+'BP Financier'!$E$19+'BP Financier'!$F$19)/('BP Financier'!$C$16+'BP Financier'!$C$19+'BP Financier'!$D$16+'BP Financier'!$D$19+'BP Financier'!$E$16+'BP Financier'!$E$19+'BP Financier'!$C$22+'BP Financier'!$D$22+'BP Financier'!$E$22+'BP Financier'!$F$22+'BP Financier'!$F$19+'BP Financier'!$F$16))*$V7191*X7191/(1-$W7191)","v":{"v":19673.961095657985,"d":"19,674"}},{"$f":"'BP Financier'!$F$44*(('BP Financier'!$C$19+'BP Financier'!$D$19+'BP Financier'!$E$19+'BP Financier'!$F$19)/('BP Financier'!$C$16+'BP Financier'!$C$19+'BP Financier'!$D$16+'BP Financier'!$D$19+'BP Financier'!$E$16+'BP Financier'!$E$19+'BP Financier'!$C$22+'BP Financier'!$D$22+'BP Financier'!$E$22+'BP Financier'!$F$22+'BP Financier'!$F$19+'BP Financier'!$F$16))*$V7191*Y7191/(1-$W7191)","v":{"v":13152.206036323845,"d":"13,152"}},{"$f":"'BP Financier'!$F$44*(('BP Financier'!$C$19+'BP Financier'!$D$19+'BP Financier'!$E$19+'BP Financier'!$F$19)/('BP Financier'!$C$16+'BP Financier'!$C$19+'BP Financier'!$D$16+'BP Financier'!$D$19+'BP Financier'!$E$16+'BP Financier'!$E$19+'BP Financier'!$C$22+'BP Financier'!$D$22+'BP Financier'!$E$22+'BP Financier'!$F$22+'BP Financier'!$F$19+'BP Financier'!$F$16))*$V7191*Z7191/(1-$W7191)","v":{"v":102935.03401982383,"d":"102,935"}},{"$f":"'BP Financier'!$F$44*(('BP Financier'!$C$19+'BP Financier'!$D$19+'BP Financier'!$E$19+'BP Financier'!$F$19)/('BP Financier'!$C$16+'BP Financier'!$C$19+'BP Financier'!$D$16+'BP Financier'!$D$19+'BP Financier'!$E$16+'BP Financier'!$E$19+'BP Financier'!$C$22+'BP Financier'!$D$22+'BP Financier'!$E$22+'BP Financier'!$F$22+'BP Financier'!$F$19+'BP Financier'!$F$16))*$V7191*AA7191/(1-$W7191)","v":{"v":12717.422365701572,"d":"12,717"}},{"$f":"'BP Financier'!$F$44*(('BP Financier'!$C$19+'BP Financier'!$D$19+'BP Financier'!$E$19+'BP Financier'!$F$19)/('BP Financier'!$C$16+'BP Financier'!$C$19+'BP Financier'!$D$16+'BP Financier'!$D$19+'BP Financier'!$E$16+'BP Financier'!$E$19+'BP Financier'!$C$22+'BP Financier'!$D$22+'BP Financier'!$E$22+'BP Financier'!$F$22+'BP Financier'!$F$19+'BP Financier'!$F$16))*$V7191*AB7191/(1-$W7191)","v":{"v":6086.971388711862,"d":"6,087"}},null,{"v":0.0075,"d":"0.75%"},{"$f":"Actif!$E$28/100","v":{"v":0.28900000000000003,"d":"28.90%"}},{"$f":"Actif!$E$30/100","v":{"v":0.09050000000000001,"d":"9.05%"}},{"$f":"Actif!$E$31/100","v":{"v":0.0605,"d":"6.05%"}},{"$f":"Actif!$E$32/100","v":{"v":0.47350000000000003,"d":"47.35%"}},{"$f":"Actif!$E$33/100","v":{"v":0.0585,"d":"5.85%"}},{"$f":"Actif!$E$29/100","v":{"v":0.027999999999999997,"d":"2.80%"}}]
[null,"#82",38,2028,"F","A_PER",{"v":0.44999999999999996,"d":"0.45"},{"v":0.38999999999999996,"d":"0.39"},0.6,0.6,85,0,{"$f":"ROUND(Primes!$P$7*V7192,0)","v":8},{"$f":"'BP Financier'!$F$33*(('BP Financier'!$C$19+'BP Financier'!$D$19+'BP Financier'!$E$19+'BP Financier'!$F$19)/('BP Financier'!$C$16+'BP Financier'!$C$19+'BP Financier'!$D$16+'BP Financier'!$D$19+'BP Financier'!$E$16+'BP Financier'!$E$19+'BP Financier'!$F$16+'BP Financier'!$F$19))*V7192","v":{"v":272473.3205574482,"d":"272,473"}},{"v":154565.59490621908,"d":"154,566"},{"$f":"'BP Financier'!$F$44*(('BP Financier'!$C$19+'BP Financier'!$D$19+'BP Financier'!$E$19+'BP Financier'!$F$19)/('BP Financier'!$C$16+'BP Financier'!$C$19+'BP Financier'!$D$16+'BP Financier'!$D$19+'BP Financier'!$E$16+'BP Financier'!$E$19+'BP Financier'!$C$22+'BP Financier'!$D$22+'BP Financier'!$E$22+'BP Financier'!$F$22+'BP Financier'!$F$19+'BP Financier'!$F$16))*$V7192*X7192/(1-$W7192)","v":{"v":19673.961095657985,"d":"19,674"}},{"$f":"'BP Financier'!$F$44*(('BP Financier'!$C$19+'BP Financier'!$D$19+'BP Financier'!$E$19+'BP Financier'!$F$19)/('BP Financier'!$C$16+'BP Financier'!$C$19+'BP Financier'!$D$16+'BP Financier'!$D$19+'BP Financier'!$E$16+'BP Financier'!$E$19+'BP Financier'!$C$22+'BP Financier'!$D$22+'BP Financier'!$E$22+'BP Financier'!$F$22+'BP Financier'!$F$19+'BP Financier'!$F$16))*$V7192*Y7192/(1-$W7192)","v":{"v":13152.206036323845,"d":"13,152"}},{"$f":"'BP Financier'!$F$44*(('BP Financier'!$C$19+'BP Financier'!$D$19+'BP Financier'!$E$19+'BP Financier'!$F$19)/('BP Financier'!$C$16+'BP Financier'!$C$19+'BP Financier'!$D$16+'BP Financier'!$D$19+'BP Financier'!$E$16+'BP Financier'!$E$19+'BP Financier'!$C$22+'BP Financier'!$D$22+'BP Financier'!$E$22+'BP Financier'!$F$22+'BP Financier'!$F$19+'BP Financier'!$F$16))*$V7192*Z7192/(1-$W7192)","v":{"v":102935.03401982383,"d":"102,935"}},{"$f":"'BP Financier'!$F$44*(('BP Financier'!$C$19+'BP Financier'!$D$19+'BP Financier'!$E$19+'BP Financier'!$F$19)/('BP Financier'!$C$16+'BP Financier'!$C$19+'BP Financier'!$D$16+'BP Financier'!$D$19+'BP Financier'!$E$16+'BP Financier'!$E$19+'BP Financier'!$C$22+'BP Financier'!$D$22+'BP Financier'!$E$22+'BP Financier'!$F$22+'BP Financier'!$F$19+'BP Financier'!$F$16))*$V7192*AA7192/(1-$W7192)","v":{"v":12717.422365701572,"d":"12,717"}},{"$f":"'BP Financier'!$F$44*(('BP Financier'!$C$19+'BP Financier'!$D$19+'BP Financier'!$E$19+'BP Financier'!$F$19)/('BP Financier'!$C$16+'BP Financier'!$C$19+'BP Financier'!$D$16+'BP Financier'!$D$19+'BP Financier'!$E$16+'BP Financier'!$E$19+'BP Financier'!$C$22+'BP Financier'!$D$22+'BP Financier'!$E$22+'BP Financier'!$F$22+'BP Financier'!$F$19+'BP Financier'!$F$16))*$V7192*AB7192/(1-$W7192)","v":{"v":6086.971388711862,"d":"6,087"}},null,{"v":0.0075,"d":"0.75%"},{"$f":"Actif!$E$28/100","v":{"v":0.28900000000000003,"d":"28.90%"}},{"$f":"Actif!$E$30/100","v":{"v":0.09050000000000001,"d":"9.05%"}},{"$f":"Actif!$E$31/100","v":{"v":0.0605,"d":"6.05%"}},{"$f":"Actif!$E$32/100","v":{"v":0.47350000000000003,"d":"47.35%"}},{"$f":"Actif!$E$33/100","v":{"v":0.0585,"d":"5.85%"}},{"$f":"Actif!$E$29/100","v":{"v":0.027999999999999997,"d":"2.80%"}}]
[null,"#83",38,2029,"F","A_PER",{"v":0.44999999999999996,"d":"0.45"},{"v":0.38999999999999996,"d":"0.39"},0.6,0.6,85,0,{"$f":"ROUND(Primes!$P$7*V7193,0)","v":8},{"$f":"'BP Financier'!$F$33*(('BP Financier'!$C$19+'BP Financier'!$D$19+'BP Financier'!$E$19+'BP Financier'!$F$19)/('BP Financier'!$C$16+'BP Financier'!$C$19+'BP Financier'!$D$16+'BP Financier'!$D$19+'BP Financier'!$E$16+'BP Financier'!$E$19+'BP Financier'!$F$16+'BP Financier'!$F$19))*V7193","v":{"v":272473.3205574482,"d":"272,473"}},{"v":154565.59490621908,"d":"154,566"},{"$f":"'BP Financier'!$F$44*(('BP Financier'!$C$19+'BP Financier'!$D$19+'BP Financier'!$E$19+'BP Financier'!$F$19)/('BP Financier'!$C$16+'BP Financier'!$C$19+'BP Financier'!$D$16+'BP Financier'!$D$19+'BP Financier'!$E$16+'BP Financier'!$E$19+'BP Financier'!$C$22+'BP Financier'!$D$22+'BP Financier'!$E$22+'BP Financier'!$F$22+'BP Financier'!$F$19+'BP Financier'!$F$16))*$V7193*X7193/(1-$W7193)","v":{"v":19673.961095657985,"d":"19,674"}},{"$f":"'BP Financier'!$F$44*(('BP Financier'!$C$19+'BP Financier'!$D$19+'BP Financier'!$E$19+'BP Financier'!$F$19)/('BP Financier'!$C$16+'BP Financier'!$C$19+'BP Financier'!$D$16+'BP Financier'!$D$19+'BP Financier'!$E$16+'BP Financier'!$E$19+'BP Financier'!$C$22+'BP Financier'!$D$22+'BP Financier'!$E$22+'BP Financier'!$F$22+'BP Financier'!$F$19+'BP Financier'!$F$16))*$V7193*Y7193/(1-$W7193)","v":{"v":13152.206036323845,"d":"13,152"}},{"$f":"'BP Financier'!$F$44*(('BP Financier'!$C$19+'BP Financier'!$D$19+'BP Financier'!$E$19+'BP Financier'!$F$19)/('BP Financier'!$C$16+'BP Financier'!$C$19+'BP Financier'!$D$16+'BP Financier'!$D$19+'BP Financier'!$E$16+'BP Financier'!$E$19+'BP Financier'!$C$22+'BP Financier'!$D$22+'BP Financier'!$E$22+'BP Financier'!$F$22+'BP Financier'!$F$19+'BP Financier'!$F$16))*$V7193*Z7193/(1-$W7193)","v":{"v":102935.03401982383,"d":"102,935"}},{"$f":"'BP Financier'!$F$44*(('BP Financier'!$C$19+'BP Financier'!$D$19+'BP Financier'!$E$19+'BP Financier'!$F$19)/('BP Financier'!$C$16+'BP Financier'!$C$19+'BP Financier'!$D$16+'BP Financier'!$D$19+'BP Financier'!$E$16+'BP Financier'!$E$19+'BP Financier'!$C$22+'BP Financier'!$D$22+'BP Financier'!$E$22+'BP Financier'!$F$22+'BP Financier'!$F$19+'BP Financier'!$F$16))*$V7193*AA7193/(1-$W7193)","v":{"v":12717.422365701572,"d":"12,717"}},{"$f":"'BP Financier'!$F$44*(('BP Financier'!$C$19+'BP Financier'!$D$19+'BP Financier'!$E$19+'BP Financier'!$F$19)/('BP Financier'!$C$16+'BP Financier'!$C$19+'BP Financier'!$D$16+'BP Financier'!$D$19+'BP Financier'!$E$16+'BP Financier'!$E$19+'BP Financier'!$C$22+'BP Financier'!$D$22+'BP Financier'!$E$22+'BP Financier'!$F$22+'BP Financier'!$F$19+'BP Financier'!$F$16))*$V7193*AB7193/(1-$W7193)","v":{"v":6086.971388711862,"d":"6,087"}},null,{"v":0.0075,"d":"0.75%"},{"$f":"Actif!$E$28/100","v":{"v":0.28900000000000003,"d":"28.90%"}},{"$f":"Actif!$E$30/100","v":{"v":0.09050000000000001,"d":"9.05%"}},{"$f":"Actif!$E$31/100","v":{"v":0.0605,"d":"6.05%"}},{"$f":"Actif!$E$32/100","v":{"v":0.47350000000000003,"d":"47.35%"}},{"$f":"Actif!$E$33/100","v":{"v":0.0585,"d":"5.85%"}},{"$f":"Actif!$E$29/100","v":{"v":0.027999999999999997,"d":"2.80%"}}]
[null,"#84",38,2030,"F","A_PER",{"v":0.44999999999999996,"d":"0.45"},{"v":0.38999999999999996,"d":"0.39"},0.6,0.6,85,0,{"$f":"ROUND(Primes!$P$7*V7194,0)","v":8},{"$f":"'BP Financier'!$F$33*(('BP Financier'!$C$19+'BP Financier'!$D$19+'BP Financier'!$E$19+'BP Financier'!$F$19)/('BP Financier'!$C$16+'BP Financier'!$C$19+'BP Financier'!$D$16+'BP Financier'!$D$19+'BP Financier'!$E$16+'BP Financier'!$E$19+'BP Financier'!$F$16+'BP Financier'!$F$19))*V7194","v":{"v":272473.3205574482,"d":"272,473"}},{"v":154565.59490621908,"d":"154,566"},{"$f":"'BP Financier'!$F$44*(('BP Financier'!$C$19+'BP Financier'!$D$19+'BP Financier'!$E$19+'BP Financier'!$F$19)/('BP Financier'!$C$16+'BP Financier'!$C$19+'BP Financier'!$D$16+'BP Financier'!$D$19+'BP Financier'!$E$16+'BP Financier'!$E$19+'BP Financier'!$C$22+'BP Financier'!$D$22+'BP Financier'!$E$22+'BP Financier'!$F$22+'BP Financier'!$F$19+'BP Financier'!$F$16))*$V7194*X7194/(1-$W7194)","v":{"v":19673.961095657985,"d":"19,674"}},{"$f":"'BP Financier'!$F$44*(('BP Financier'!$C$19+'BP Financier'!$D$19+'BP Financier'!$E$19+'BP Financier'!$F$19)/('BP Financier'!$C$16+'BP Financier'!$C$19+'BP Financier'!$D$16+'BP Financier'!$D$19+'BP Financier'!$E$16+'BP Financier'!$E$19+'BP Financier'!$C$22+'BP Financier'!$D$22+'BP Financier'!$E$22+'BP Financier'!$F$22+'BP Financier'!$F$19+'BP Financier'!$F$16))*$V7194*Y7194/(1-$W7194)","v":{"v":13152.206036323845,"d":"13,152"}},{"$f":"'BP Financier'!$F$44*(('BP Financier'!$C$19+'BP Financier'!$D$19+'BP Financier'!$E$19+'BP Financier'!$F$19)/('BP Financier'!$C$16+'BP Financier'!$C$19+'BP Financier'!$D$16+'BP Financier'!$D$19+'BP Financier'!$E$16+'BP Financier'!$E$19+'BP Financier'!$C$22+'BP Financier'!$D$22+'BP Financier'!$E$22+'BP Financier'!$F$22+'BP Financier'!$F$19+'BP Financier'!$F$16))*$V7194*Z7194/(1-$W7194)","v":{"v":102935.03401982383,"d":"102,935"}},{"$f":"'BP Financier'!$F$44*(('BP Financier'!$C$19+'BP Financier'!$D$19+'BP Financier'!$E$19+'BP Financier'!$F$19)/('BP Financier'!$C$16+'BP Financier'!$C$19+'BP Financier'!$D$16+'BP Financier'!$D$19+'BP Financier'!$E$16+'BP Financier'!$E$19+'BP Financier'!$C$22+'BP Financier'!$D$22+'BP Financier'!$E$22+'BP Financier'!$F$22+'BP Financier'!$F$19+'BP Financier'!$F$16))*$V7194*AA7194/(1-$W7194)","v":{"v":12717.422365701572,"d":"12,717"}},{"$f":"'BP Financier'!$F$44*(('BP Financier'!$C$19+'BP Financier'!$D$19+'BP Financier'!$E$19+'BP Financier'!$F$19)/('BP Financier'!$C$16+'BP Financier'!$C$19+'BP Financier'!$D$16+'BP Financier'!$D$19+'BP Financier'!$E$16+'BP Financier'!$E$19+'BP Financier'!$C$22+'BP Financier'!$D$22+'BP Financier'!$E$22+'BP Financier'!$F$22+'BP Financier'!$F$19+'BP Financier'!$F$16))*$V7194*AB7194/(1-$W7194)","v":{"v":6086.971388711862,"d":"6,087"}},null,{"v":0.0075,"d":"0.75%"},{"$f":"Actif!$E$28/100","v":{"v":0.28900000000000003,"d":"28.90%"}},{"$f":"Actif!$E$30/100","v":{"v":0.09050000000000001,"d":"9.05%"}},{"$f":"Actif!$E$31/100","v":{"v":0.0605,"d":"6.05%"}},{"$f":"Actif!$E$32/100","v":{"v":0.47350000000000003,"d":"47.35%"}},{"$f":"Actif!$E$33/100","v":{"v":0.0585,"d":"5.85%"}},{"$f":"Actif!$E$29/100","v":{"v":0.027999999999999997,"d":"2.80%"}}]
[null,"#85",39,2026,"H","A_PER",{"v":0.44999999999999996,"d":"0.45"},{"v":0.38999999999999996,"d":"0.39"},0.6,0.6,85,0,{"$f":"ROUND(Primes!$P$7*V7195,0)","v":8},{"$f":"'BP Financier'!$F$33*(('BP Financier'!$C$19+'BP Financier'!$D$19+'BP Financier'!$E$19+'BP Financier'!$F$19)/('BP Financier'!$C$16+'BP Financier'!$C$19+'BP Financier'!$D$16+'BP Financier'!$D$19+'BP Financier'!$E$16+'BP Financier'!$E$19+'BP Financier'!$F$16+'BP Financier'!$F$19))*V7195","v":{"v":272473.3205574482,"d":"272,473"}},{"v":154565.59490621908,"d":"154,566"},{"$f":"'BP Financier'!$F$44*(('BP Financier'!$C$19+'BP Financier'!$D$19+'BP Financier'!$E$19+'BP Financier'!$F$19)/('BP Financier'!$C$16+'BP Financier'!$C$19+'BP Financier'!$D$16+'BP Financier'!$D$19+'BP Financier'!$E$16+'BP Financier'!$E$19+'BP Financier'!$C$22+'BP Financier'!$D$22+'BP Financier'!$E$22+'BP Financier'!$F$22+'BP Financier'!$F$19+'BP Financier'!$F$16))*$V7195*X7195/(1-$W7195)","v":{"v":19673.961095657985,"d":"19,674"}},{"$f":"'BP Financier'!$F$44*(('BP Financier'!$C$19+'BP Financier'!$D$19+'BP Financier'!$E$19+'BP Financier'!$F$19)/('BP Financier'!$C$16+'BP Financier'!$C$19+'BP Financier'!$D$16+'BP Financier'!$D$19+'BP Financier'!$E$16+'BP Financier'!$E$19+'BP Financier'!$C$22+'BP Financier'!$D$22+'BP Financier'!$E$22+'BP Financier'!$F$22+'BP Financier'!$F$19+'BP Financier'!$F$16))*$V7195*Y7195/(1-$W7195)","v":{"v":13152.206036323845,"d":"13,152"}},{"$f":"'BP Financier'!$F$44*(('BP Financier'!$C$19+'BP Financier'!$D$19+'BP Financier'!$E$19+'BP Financier'!$F$19)/('BP Financier'!$C$16+'BP Financier'!$C$19+'BP Financier'!$D$16+'BP Financier'!$D$19+'BP Financier'!$E$16+'BP Financier'!$E$19+'BP Financier'!$C$22+'BP Financier'!$D$22+'BP Financier'!$E$22+'BP Financier'!$F$22+'BP Financier'!$F$19+'BP Financier'!$F$16))*$V7195*Z7195/(1-$W7195)","v":{"v":102935.03401982383,"d":"102,935"}},{"$f":"'BP Financier'!$F$44*(('BP Financier'!$C$19+'BP Financier'!$D$19+'BP Financier'!$E$19+'BP Financier'!$F$19)/('BP Financier'!$C$16+'BP Financier'!$C$19+'BP Financier'!$D$16+'BP Financier'!$D$19+'BP Financier'!$E$16+'BP Financier'!$E$19+'BP Financier'!$C$22+'BP Financier'!$D$22+'BP Financier'!$E$22+'BP Financier'!$F$22+'BP Financier'!$F$19+'BP Financier'!$F$16))*$V7195*AA7195/(1-$W7195)","v":{"v":12717.422365701572,"d":"12,717"}},{"$f":"'BP Financier'!$F$44*(('BP Financier'!$C$19+'BP Financier'!$D$19+'BP Financier'!$E$19+'BP Financier'!$F$19)/('BP Financier'!$C$16+'BP Financier'!$C$19+'BP Financier'!$D$16+'BP Financier'!$D$19+'BP Financier'!$E$16+'BP Financier'!$E$19+'BP Financier'!$C$22+'BP Financier'!$D$22+'BP Financier'!$E$22+'BP Financier'!$F$22+'BP Financier'!$F$19+'BP Financier'!$F$16))*$V7195*AB7195/(1-$W7195)","v":{"v":6086.971388711862,"d":"6,087"}},null,{"v":0.0075,"d":"0.75%"},{"$f":"Actif!$E$28/100","v":{"v":0.28900000000000003,"d":"28.90%"}},{"$f":"Actif!$E$30/100","v":{"v":0.09050000000000001,"d":"9.05%"}},{"$f":"Actif!$E$31/100","v":{"v":0.0605,"d":"6.05%"}},{"$f":"Actif!$E$32/100","v":{"v":0.47350000000000003,"d":"47.35%"}},{"$f":"Actif!$E$33/100","v":{"v":0.0585,"d":"5.85%"}},{"$f":"Actif!$E$29/100","v":{"v":0.027999999999999997,"d":"2.80%"}}]
[null,"#86",39,2028,"H","A_PER",{"$f":"frais_gestion_Euro*100","v":{"v":0.44999999999999996,"d":"0.45"}},{"$f":"frais_gestion_UC*100","v":{"v":0.38999999999999996,"d":"0.39"}},{"$f":"frais_distribution_FG*100","v":0.6},{"$f":"frais_distribution_UC*100","v":0.6},85,0,{"$f":"ROUND(Primes!$P$7*V7196,0)","v":8},{"$f":"'BP Financier'!$F$33*(('BP Financier'!$C$19+'BP Financier'!$D$19+'BP Financier'!$E$19+'BP Financier'!$F$19)/('BP Financier'!$C$16+'BP Financier'!$C$19+'BP Financier'!$D$16+'BP Financier'!$D$19+'BP Financier'!$E$16+'BP Financier'!$E$19+'BP Financier'!$F$16+'BP Financier'!$F$19))*V7196","v":{"v":272473.3205574482,"d":"272,473"}},{"v":154565.59490621908,"d":"154,566"},{"$f":"'BP Financier'!$F$44*(('BP Financier'!$C$19+'BP Financier'!$D$19+'BP Financier'!$E$19+'BP Financier'!$F$19)/('BP Financier'!$C$16+'BP Financier'!$C$19+'BP Financier'!$D$16+'BP Financier'!$D$19+'BP Financier'!$E$16+'BP Financier'!$E$19+'BP Financier'!$C$22+'BP Financier'!$D$22+'BP Financier'!$E$22+'BP Financier'!$F$22+'BP Financier'!$F$19+'BP Financier'!$F$16))*$V7196*X7196/(1-$W7196)","v":{"v":19673.961095657985,"d":"19,674"}},{"$f":"'BP Financier'!$F$44*(('BP Financier'!$C$19+'BP Financier'!$D$19+'BP Financier'!$E$19+'BP Financier'!$F$19)/('BP Financier'!$C$16+'BP Financier'!$C$19+'BP Financier'!$D$16+'BP Financier'!$D$19+'BP Financier'!$E$16+'BP Financier'!$E$19+'BP Financier'!$C$22+'BP Financier'!$D$22+'BP Financier'!$E$22+'BP Financier'!$F$22+'BP Financier'!$F$19+'BP Financier'!$F$16))*$V7196*Y7196/(1-$W7196)","v":{"v":13152.206036323845,"d":"13,152"}},{"$f":"'BP Financier'!$F$44*(('BP Financier'!$C$19+'BP Financier'!$D$19+'BP Financier'!$E$19+'BP Financier'!$F$19)/('BP Financier'!$C$16+'BP Financier'!$C$19+'BP Financier'!$D$16+'BP Financier'!$D$19+'BP Financier'!$E$16+'BP Financier'!$E$19+'BP Financier'!$C$22+'BP Financier'!$D$22+'BP Financier'!$E$22+'BP Financier'!$F$22+'BP Financier'!$F$19+'BP Financier'!$F$16))*$V7196*Z7196/(1-$W7196)","v":{"v":102935.03401982383,"d":"102,935"}},{"$f":"'BP Financier'!$F$44*(('BP Financier'!$C$19+'BP Financier'!$D$19+'BP Financier'!$E$19+'BP Financier'!$F$19)/('BP Financier'!$C$16+'BP Financier'!$C$19+'BP Financier'!$D$16+'BP Financier'!$D$19+'BP Financier'!$E$16+'BP Financier'!$E$19+'BP Financier'!$C$22+'BP Financier'!$D$22+'BP Financier'!$E$22+'BP Financier'!$F$22+'BP Financier'!$F$19+'BP Financier'!$F$16))*$V7196*AA7196/(1-$W7196)","v":{"v":12717.422365701572,"d":"12,717"}},{"$f":"'BP Financier'!$F$44*(('BP Financier'!$C$19+'BP Financier'!$D$19+'BP Financier'!$E$19+'BP Financier'!$F$19)/('BP Financier'!$C$16+'BP Financier'!$C$19+'BP Financier'!$D$16+'BP Financier'!$D$19+'BP Financier'!$E$16+'BP Financier'!$E$19+'BP Financier'!$C$22+'BP Financier'!$D$22+'BP Financier'!$E$22+'BP Financier'!$F$22+'BP Financier'!$F$19+'BP Financier'!$F$16))*$V7196*AB7196/(1-$W7196)","v":{"v":6086.971388711862,"d":"6,087"}},null,{"v":0.0075,"d":"0.75%"},{"$f":"Actif!$E$28/100","v":{"v":0.28900000000000003,"d":"28.90%"}},{"$f":"Actif!$E$30/100","v":{"v":0.09050000000000001,"d":"9.05%"}},{"$f":"Actif!$E$31/100","v":{"v":0.0605,"d":"6.05%"}},{"$f":"Actif!$E$32/100","v":{"v":0.47350000000000003,"d":"47.35%"}},{"$f":"Actif!$E$33/100","v":{"v":0.0585,"d":"5.85%"}},{"$f":"Actif!$E$29/100","v":{"v":0.027999999999999997,"d":"2.80%"}}]
[null,"#87",39,2029,"H","A_PER",{"v":0.44999999999999996,"d":"0.45"},{"v":0.38999999999999996,"d":"0.39"},0.6,0.6,85,0,{"$f":"ROUND(Primes!$P$7*V7197,0)","v":8},{"$f":"'BP Financier'!$F$33*(('BP Financier'!$C$19+'BP Financier'!$D$19+'BP Financier'!$E$19+'BP Financier'!$F$19)/('BP Financier'!$C$16+'BP Financier'!$C$19+'BP Financier'!$D$16+'BP Financier'!$D$19+'BP Financier'!$E$16+'BP Financier'!$E$19+'BP Financier'!$F$16+'BP Financier'!$F$19))*V7197","v":{"v":272473.3205574482,"d":"272,473"}},{"v":154565.59490621908,"d":"154,566"},{"$f":"'BP Financier'!$F$44*(('BP Financier'!$C$19+'BP Financier'!$D$19+'BP Financier'!$E$19+'BP Financier'!$F$19)/('BP Financier'!$C$16+'BP Financier'!$C$19+'BP Financier'!$D$16+'BP Financier'!$D$19+'BP Financier'!$E$16+'BP Financier'!$E$19+'BP Financier'!$C$22+'BP Financier'!$D$22+'BP Financier'!$E$22+'BP Financier'!$F$22+'BP Financier'!$F$19+'BP Financier'!$F$16))*$V7197*X7197/(1-$W7197)","v":{"v":19673.961095657985,"d":"19,674"}},{"$f":"'BP Financier'!$F$44*(('BP Financier'!$C$19+'BP Financier'!$D$19+'BP Financier'!$E$19+'BP Financier'!$F$19)/('BP Financier'!$C$16+'BP Financier'!$C$19+'BP Financier'!$D$16+'BP Financier'!$D$19+'BP Financier'!$E$16+'BP Financier'!$E$19+'BP Financier'!$C$22+'BP Financier'!$D$22+'BP Financier'!$E$22+'BP Financier'!$F$22+'BP Financier'!$F$19+'BP Financier'!$F$16))*$V7197*Y7197/(1-$W7197)","v":{"v":13152.206036323845,"d":"13,152"}},{"$f":"'BP Financier'!$F$44*(('BP Financier'!$C$19+'BP Financier'!$D$19+'BP Financier'!$E$19+'BP Financier'!$F$19)/('BP Financier'!$C$16+'BP Financier'!$C$19+'BP Financier'!$D$16+'BP Financier'!$D$19+'BP Financier'!$E$16+'BP Financier'!$E$19+'BP Financier'!$C$22+'BP Financier'!$D$22+'BP Financier'!$E$22+'BP Financier'!$F$22+'BP Financier'!$F$19+'BP Financier'!$F$16))*$V7197*Z7197/(1-$W7197)","v":{"v":102935.03401982383,"d":"102,935"}},{"$f":"'BP Financier'!$F$44*(('BP Financier'!$C$19+'BP Financier'!$D$19+'BP Financier'!$E$19+'BP Financier'!$F$19)/('BP Financier'!$C$16+'BP Financier'!$C$19+'BP Financier'!$D$16+'BP Financier'!$D$19+'BP Financier'!$E$16+'BP Financier'!$E$19+'BP Financier'!$C$22+'BP Financier'!$D$22+'BP Financier'!$E$22+'BP Financier'!$F$22+'BP Financier'!$F$19+'BP Financier'!$F$16))*$V7197*AA7197/(1-$W7197)","v":{"v":12717.422365701572,"d":"12,717"}},{"$f":"'BP Financier'!$F$44*(('BP Financier'!$C$19+'BP Financier'!$D$19+'BP Financier'!$E$19+'BP Financier'!$F$19)/('BP Financier'!$C$16+'BP Financier'!$C$19+'BP Financier'!$D$16+'BP Financier'!$D$19+'BP Financier'!$E$16+'BP Financier'!$E$19+'BP Financier'!$C$22+'BP Financier'!$D$22+'BP Financier'!$E$22+'BP Financier'!$F$22+'BP Financier'!$F$19+'BP Financier'!$F$16))*$V7197*AB7197/(1-$W7197)","v":{"v":6086.971388711862,"d":"6,087"}},null,{"v":0.0075,"d":"0.75%"},{"$f":"Actif!$E$28/100","v":{"v":0.28900000000000003,"d":"28.90%"}},{"$f":"Actif!$E$30/100","v":{"v":0.09050000000000001,"d":"9.05%"}},{"$f":"Actif!$E$31/100","v":{"v":0.0605,"d":"6.05%"}},{"$f":"Actif!$E$32/100","v":{"v":0.47350000000000003,"d":"47.35%"}},{"$f":"Actif!$E$33/100","v":{"v":0.0585,"d":"5.85%"}},{"$f":"Actif!$E$29/100","v":{"v":0.027999999999999997,"d":"2.80%"}}]
[null,"#88",39,2030,"H","A_PER",{"v":0.44999999999999996,"d":"0.45"},{"v":0.38999999999999996,"d":"0.39"},0.6,0.6,85,0,{"$f":"ROUND(Primes!$P$7*V7198,0)","v":8},{"$f":"'BP Financier'!$F$33*(('BP Financier'!$C$19+'BP Financier'!$D$19+'BP Financier'!$E$19+'BP Financier'!$F$19)/('BP Financier'!$C$16+'BP Financier'!$C$19+'BP Financier'!$D$16+'BP Financier'!$D$19+'BP Financier'!$E$16+'BP Financier'!$E$19+'BP Financier'!$F$16+'BP Financier'!$F$19))*V7198","v":{"v":272473.3205574482,"d":"272,473"}},{"v":154565.59490621908,"d":"154,566"},{"$f":"'BP Financier'!$F$44*(('BP Financier'!$C$19+'BP Financier'!$D$19+'BP Financier'!$E$19+'BP Financier'!$F$19)/('BP Financier'!$C$16+'BP Financier'!$C$19+'BP Financier'!$D$16+'BP Financier'!$D$19+'BP Financier'!$E$16+'BP Financier'!$E$19+'BP Financier'!$C$22+'BP Financier'!$D$22+'BP Financier'!$E$22+'BP Financier'!$F$22+'BP Financier'!$F$19+'BP Financier'!$F$16))*$V7198*X7198/(1-$W7198)","v":{"v":19673.961095657985,"d":"19,674"}},{"$f":"'BP Financier'!$F$44*(('BP Financier'!$C$19+'BP Financier'!$D$19+'BP Financier'!$E$19+'BP Financier'!$F$19)/('BP Financier'!$C$16+'BP Financier'!$C$19+'BP Financier'!$D$16+'BP Financier'!$D$19+'BP Financier'!$E$16+'BP Financier'!$E$19+'BP Financier'!$C$22+'BP Financier'!$D$22+'BP Financier'!$E$22+'BP Financier'!$F$22+'BP Financier'!$F$19+'BP Financier'!$F$16))*$V7198*Y7198/(1-$W7198)","v":{"v":13152.206036323845,"d":"13,152"}},{"$f":"'BP Financier'!$F$44*(('BP Financier'!$C$19+'BP Financier'!$D$19+'BP Financier'!$E$19+'BP Financier'!$F$19)/('BP Financier'!$C$16+'BP Financier'!$C$19+'BP Financier'!$D$16+'BP Financier'!$D$19+'BP Financier'!$E$16+'BP Financier'!$E$19+'BP Financier'!$C$22+'BP Financier'!$D$22+'BP Financier'!$E$22+'BP Financier'!$F$22+'BP Financier'!$F$19+'BP Financier'!$F$16))*$V7198*Z7198/(1-$W7198)","v":{"v":102935.03401982383,"d":"102,935"}},{"$f":"'BP Financier'!$F$44*(('BP Financier'!$C$19+'BP Financier'!$D$19+'BP Financier'!$E$19+'BP Financier'!$F$19)/('BP Financier'!$C$16+'BP Financier'!$C$19+'BP Financier'!$D$16+'BP Financier'!$D$19+'BP Financier'!$E$16+'BP Financier'!$E$19+'BP Financier'!$C$22+'BP Financier'!$D$22+'BP Financier'!$E$22+'BP Financier'!$F$22+'BP Financier'!$F$19+'BP Financier'!$F$16))*$V7198*AA7198/(1-$W7198)","v":{"v":12717.422365701572,"d":"12,717"}},{"$f":"'BP Financier'!$F$44*(('BP Financier'!$C$19+'BP Financier'!$D$19+'BP Financier'!$E$19+'BP Financier'!$F$19)/('BP Financier'!$C$16+'BP Financier'!$C$19+'BP Financier'!$D$16+'BP Financier'!$D$19+'BP Financier'!$E$16+'BP Financier'!$E$19+'BP Financier'!$C$22+'BP Financier'!$D$22+'BP Financier'!$E$22+'BP Financier'!$F$22+'BP Financier'!$F$19+'BP Financier'!$F$16))*$V7198*AB7198/(1-$W7198)","v":{"v":6086.971388711862,"d":"6,087"}},null,{"v":0.0075,"d":"0.75%"},{"$f":"Actif!$E$28/100","v":{"v":0.28900000000000003,"d":"28.90%"}},{"$f":"Actif!$E$30/100","v":{"v":0.09050000000000001,"d":"9.05%"}},{"$f":"Actif!$E$31/100","v":{"v":0.0605,"d":"6.05%"}},{"$f":"Actif!$E$32/100","v":{"v":0.47350000000000003,"d":"47.35%"}},{"$f":"Actif!$E$33/100","v":{"v":0.0585,"d":"5.85%"}},{"$f":"Actif!$E$29/100","v":{"v":0.027999999999999997,"d":"2.80%"}}]
[null,"#89",40,2026,"H","A_PER",{"v":0.44999999999999996,"d":"0.45"},{"v":0.38999999999999996,"d":"0.39"},0.6,0.6,85,0,{"$f":"ROUND(Primes!$P$7*V7199,0)","v":8},{"$f":"'BP Financier'!$F$33*(('BP Financier'!$C$19+'BP Financier'!$D$19+'BP Financier'!$E$19+'BP Financier'!$F$19)/('BP Financier'!$C$16+'BP Financier'!$C$19+'BP Financier'!$D$16+'BP Financier'!$D$19+'BP Financier'!$E$16+'BP Financier'!$E$19+'BP Financier'!$F$16+'BP Financier'!$F$19))*V7199","v":{"v":272473.3205574482,"d":"272,473"}},{"v":154565.59490621908,"d":"154,566"},{"$f":"'BP Financier'!$F$44*(('BP Financier'!$C$19+'BP Financier'!$D$19+'BP Financier'!$E$19+'BP Financier'!$F$19)/('BP Financier'!$C$16+'BP Financier'!$C$19+'BP Financier'!$D$16+'BP Financier'!$D$19+'BP Financier'!$E$16+'BP Financier'!$E$19+'BP Financier'!$C$22+'BP Financier'!$D$22+'BP Financier'!$E$22+'BP Financier'!$F$22+'BP Financier'!$F$19+'BP Financier'!$F$16))*$V7199*X7199/(1-$W7199)","v":{"v":19673.961095657985,"d":"19,674"}},{"$f":"'BP Financier'!$F$44*(('BP Financier'!$C$19+'BP Financier'!$D$19+'BP Financier'!$E$19+'BP Financier'!$F$19)/('BP Financier'!$C$16+'BP Financier'!$C$19+'BP Financier'!$D$16+'BP Financier'!$D$19+'BP Financier'!$E$16+'BP Financier'!$E$19+'BP Financier'!$C$22+'BP Financier'!$D$22+'BP Financier'!$E$22+'BP Financier'!$F$22+'BP Financier'!$F$19+'BP Financier'!$F$16))*$V7199*Y7199/(1-$W7199)","v":{"v":13152.206036323845,"d":"13,152"}},{"$f":"'BP Financier'!$F$44*(('BP Financier'!$C$19+'BP Financier'!$D$19+'BP Financier'!$E$19+'BP Financier'!$F$19)/('BP Financier'!$C$16+'BP Financier'!$C$19+'BP Financier'!$D$16+'BP Financier'!$D$19+'BP Financier'!$E$16+'BP Financier'!$E$19+'BP Financier'!$C$22+'BP Financier'!$D$22+'BP Financier'!$E$22+'BP Financier'!$F$22+'BP Financier'!$F$19+'BP Financier'!$F$16))*$V7199*Z7199/(1-$W7199)","v":{"v":102935.03401982383,"d":"102,935"}},{"$f":"'BP Financier'!$F$44*(('BP Financier'!$C$19+'BP Financier'!$D$19+'BP Financier'!$E$19+'BP Financier'!$F$19)/('BP Financier'!$C$16+'BP Financier'!$C$19+'BP Financier'!$D$16+'BP Financier'!$D$19+'BP Financier'!$E$16+'BP Financier'!$E$19+'BP Financier'!$C$22+'BP Financier'!$D$22+'BP Financier'!$E$22+'BP Financier'!$F$22+'BP Financier'!$F$19+'BP Financier'!$F$16))*$V7199*AA7199/(1-$W7199)","v":{"v":12717.422365701572,"d":"12,717"}},{"$f":"'BP Financier'!$F$44*(('BP Financier'!$C$19+'BP Financier'!$D$19+'BP Financier'!$E$19+'BP Financier'!$F$19)/('BP Financier'!$C$16+'BP Financier'!$C$19+'BP Financier'!$D$16+'BP Financier'!$D$19+'BP Financier'!$E$16+'BP Financier'!$E$19+'BP Financier'!$C$22+'BP Financier'!$D$22+'BP Financier'!$E$22+'BP Financier'!$F$22+'BP Financier'!$F$19+'BP Financier'!$F$16))*$V7199*AB7199/(1-$W7199)","v":{"v":6086.971388711862,"d":"6,087"}},null,{"v":0.0075,"d":"0.75%"},{"$f":"Actif!$E$28/100","v":{"v":0.28900000000000003,"d":"28.90%"}},{"$f":"Actif!$E$30/100","v":{"v":0.09050000000000001,"d":"9.05%"}},{"$f":"Actif!$E$31/100","v":{"v":0.0605,"d":"6.05%"}},{"$f":"Actif!$E$32/100","v":{"v":0.47350000000000003,"d":"47.35%"}},{"$f":"Actif!$E$33/100","v":{"v":0.0585,"d":"5.85%"}},{"$f":"Actif!$E$29/100","v":{"v":0.027999999999999997,"d":"2.80%"}}]
[null,"#90",40,2028,"H","A_PER",{"v":0.44999999999999996,"d":"0.45"},{"v":0.38999999999999996,"d":"0.39"},0.6,0.6,85,0,{"$f":"ROUND(Primes!$P$7*V7200,0)","v":8},{"$f":"'BP Financier'!$F$33*(('BP Financier'!$C$19+'BP Financier'!$D$19+'BP Financier'!$E$19+'BP Financier'!$F$19)/('BP Financier'!$C$16+'BP Financier'!$C$19+'BP Financier'!$D$16+'BP Financier'!$D$19+'BP Financier'!$E$16+'BP Financier'!$E$19+'BP Financier'!$F$16+'BP Financier'!$F$19))*V7200","v":{"v":272473.3205574482,"d":"272,473"}},{"v":154565.59490621908,"d":"154,566"},{"$f":"'BP Financier'!$F$44*(('BP Financier'!$C$19+'BP Financier'!$D$19+'BP Financier'!$E$19+'BP Financier'!$F$19)/('BP Financier'!$C$16+'BP Financier'!$C$19+'BP Financier'!$D$16+'BP Financier'!$D$19+'BP Financier'!$E$16+'BP Financier'!$E$19+'BP Financier'!$C$22+'BP Financier'!$D$22+'BP Financier'!$E$22+'BP Financier'!$F$22+'BP Financier'!$F$19+'BP Financier'!$F$16))*$V7200*X7200/(1-$W7200)","v":{"v":19673.961095657985,"d":"19,674"}},{"$f":"'BP Financier'!$F$44*(('BP Financier'!$C$19+'BP Financier'!$D$19+'BP Financier'!$E$19+'BP Financier'!$F$19)/('BP Financier'!$C$16+'BP Financier'!$C$19+'BP Financier'!$D$16+'BP Financier'!$D$19+'BP Financier'!$E$16+'BP Financier'!$E$19+'BP Financier'!$C$22+'BP Financier'!$D$22+'BP Financier'!$E$22+'BP Financier'!$F$22+'BP Financier'!$F$19+'BP Financier'!$F$16))*$V7200*Y7200/(1-$W7200)","v":{"v":13152.206036323845,"d":"13,152"}},{"$f":"'BP Financier'!$F$44*(('BP Financier'!$C$19+'BP Financier'!$D$19+'BP Financier'!$E$19+'BP Financier'!$F$19)/('BP Financier'!$C$16+'BP Financier'!$C$19+'BP Financier'!$D$16+'BP Financier'!$D$19+'BP Financier'!$E$16+'BP Financier'!$E$19+'BP Financier'!$C$22+'BP Financier'!$D$22+'BP Financier'!$E$22+'BP Financier'!$F$22+'BP Financier'!$F$19+'BP Financier'!$F$16))*$V7200*Z7200/(1-$W7200)","v":{"v":102935.03401982383,"d":"102,935"}},{"$f":"'BP Financier'!$F$44*(('BP Financier'!$C$19+'BP Financier'!$D$19+'BP Financier'!$E$19+'BP Financier'!$F$19)/('BP Financier'!$C$16+'BP Financier'!$C$19+'BP Financier'!$D$16+'BP Financier'!$D$19+'BP Financier'!$E$16+'BP Financier'!$E$19+'BP Financier'!$C$22+'BP Financier'!$D$22+'BP Financier'!$E$22+'BP Financier'!$F$22+'BP Financier'!$F$19+'BP Financier'!$F$16))*$V7200*AA7200/(1-$W7200)","v":{"v":12717.422365701572,"d":"12,717"}},{"$f":"'BP Financier'!$F$44*(('BP Financier'!$C$19+'BP Financier'!$D$19+'BP Financier'!$E$19+'BP Financier'!$F$19)/('BP Financier'!$C$16+'BP Financier'!$C$19+'BP Financier'!$D$16+'BP Financier'!$D$19+'BP Financier'!$E$16+'BP Financier'!$E$19+'BP Financier'!$C$22+'BP Financier'!$D$22+'BP Financier'!$E$22+'BP Financier'!$F$22+'BP Financier'!$F$19+'BP Financier'!$F$16))*$V7200*AB7200/(1-$W7200)","v":{"v":6086.971388711862,"d":"6,087"}},null,{"v":0.0075,"d":"0.75%"},{"$f":"Actif!$E$28/100","v":{"v":0.28900000000000003,"d":"28.90%"}},{"$f":"Actif!$E$30/100","v":{"v":0.09050000000000001,"d":"9.05%"}},{"$f":"Actif!$E$31/100","v":{"v":0.0605,"d":"6.05%"}},{"$f":"Actif!$E$32/100","v":{"v":0.47350000000000003,"d":"47.35%"}},{"$f":"Actif!$E$33/100","v":{"v":0.0585,"d":"5.85%"}},{"$f":"Actif!$E$29/100","v":{"v":0.027999999999999997,"d":"2.80%"}}]
[null,"#91",40,2029,"H","A_PER",{"v":0.44999999999999996,"d":"0.45"},{"v":0.38999999999999996,"d":"0.39"},0.6,0.6,85,0,{"$f":"ROUND(Primes!$P$7*V7201,0)","v":8},{"$f":"'BP Financier'!$F$33*(('BP Financier'!$C$19+'BP Financier'!$D$19+'BP Financier'!$E$19+'BP Financier'!$F$19)/('BP Financier'!$C$16+'BP Financier'!$C$19+'BP Financier'!$D$16+'BP Financier'!$D$19+'BP Financier'!$E$16+'BP Financier'!$E$19+'BP Financier'!$F$16+'BP Financier'!$F$19))*V7201","v":{"v":272473.3205574482,"d":"272,473"}},{"v":154565.59490621908,"d":"154,566"},{"$f":"'BP Financier'!$F$44*(('BP Financier'!$C$19+'BP Financier'!$D$19+'BP Financier'!$E$19+'BP Financier'!$F$19)/('BP Financier'!$C$16+'BP Financier'!$C$19+'BP Financier'!$D$16+'BP Financier'!$D$19+'BP Financier'!$E$16+'BP Financier'!$E$19+'BP Financier'!$C$22+'BP Financier'!$D$22+'BP Financier'!$E$22+'BP Financier'!$F$22+'BP Financier'!$F$19+'BP Financier'!$F$16))*$V7201*X7201/(1-$W7201)","v":{"v":19673.961095657985,"d":"19,674"}},{"$f":"'BP Financier'!$F$44*(('BP Financier'!$C$19+'BP Financier'!$D$19+'BP Financier'!$E$19+'BP Financier'!$F$19)/('BP Financier'!$C$16+'BP Financier'!$C$19+'BP Financier'!$D$16+'BP Financier'!$D$19+'BP Financier'!$E$16+'BP Financier'!$E$19+'BP Financier'!$C$22+'BP Financier'!$D$22+'BP Financier'!$E$22+'BP Financier'!$F$22+'BP Financier'!$F$19+'BP Financier'!$F$16))*$V7201*Y7201/(1-$W7201)","v":{"v":13152.206036323845,"d":"13,152"}},{"$f":"'BP Financier'!$F$44*(('BP Financier'!$C$19+'BP Financier'!$D$19+'BP Financier'!$E$19+'BP Financier'!$F$19)/('BP Financier'!$C$16+'BP Financier'!$C$19+'BP Financier'!$D$16+'BP Financier'!$D$19+'BP Financier'!$E$16+'BP Financier'!$E$19+'BP Financier'!$C$22+'BP Financier'!$D$22+'BP Financier'!$E$22+'BP Financier'!$F$22+'BP Financier'!$F$19+'BP Financier'!$F$16))*$V7201*Z7201/(1-$W7201)","v":{"v":102935.03401982383,"d":"102,935"}},{"$f":"'BP Financier'!$F$44*(('BP Financier'!$C$19+'BP Financier'!$D$19+'BP Financier'!$E$19+'BP Financier'!$F$19)/('BP Financier'!$C$16+'BP Financier'!$C$19+'BP Financier'!$D$16+'BP Financier'!$D$19+'BP Financier'!$E$16+'BP Financier'!$E$19+'BP Financier'!$C$22+'BP Financier'!$D$22+'BP Financier'!$E$22+'BP Financier'!$F$22+'BP Financier'!$F$19+'BP Financier'!$F$16))*$V7201*AA7201/(1-$W7201)","v":{"v":12717.422365701572,"d":"12,717"}},{"$f":"'BP Financier'!$F$44*(('BP Financier'!$C$19+'BP Financier'!$D$19+'BP Financier'!$E$19+'BP Financier'!$F$19)/('BP Financier'!$C$16+'BP Financier'!$C$19+'BP Financier'!$D$16+'BP Financier'!$D$19+'BP Financier'!$E$16+'BP Financier'!$E$19+'BP Financier'!$C$22+'BP Financier'!$D$22+'BP Financier'!$E$22+'BP Financier'!$F$22+'BP Financier'!$F$19+'BP Financier'!$F$16))*$V7201*AB7201/(1-$W7201)","v":{"v":6086.971388711862,"d":"6,087"}},null,{"v":0.0075,"d":"0.75%"},{"$f":"Actif!$E$28/100","v":{"v":0.28900000000000003,"d":"28.90%"}},{"$f":"Actif!$E$30/100","v":{"v":0.09050000000000001,"d":"9.05%"}},{"$f":"Actif!$E$31/100","v":{"v":0.0605,"d":"6.05%"}},{"$f":"Actif!$E$32/100","v":{"v":0.47350000000000003,"d":"47.35%"}},{"$f":"Actif!$E$33/100","v":{"v":0.0585,"d":"5.85%"}},{"$f":"Actif!$E$29/100","v":{"v":0.027999999999999997,"d":"2.80%"}}]
[null,"#92",40,2030,"H","A_PER",{"v":0.44999999999999996,"d":"0.45"},{"v":0.38999999999999996,"d":"0.39"},0.6,0.6,85,0,{"$f":"ROUND(Primes!$P$7*V7202,0)","v":8},{"$f":"'BP Financier'!$F$33*(('BP Financier'!$C$19+'BP Financier'!$D$19+'BP Financier'!$E$19+'BP Financier'!$F$19)/('BP Financier'!$C$16+'BP Financier'!$C$19+'BP Financier'!$D$16+'BP Financier'!$D$19+'BP Financier'!$E$16+'BP Financier'!$E$19+'BP Financier'!$F$16+'BP Financier'!$F$19))*V7202","v":{"v":272473.3205574482,"d":"272,473"}},{"v":154565.59490621908,"d":"154,566"},{"$f":"'BP Financier'!$F$44*(('BP Financier'!$C$19+'BP Financier'!$D$19+'BP Financier'!$E$19+'BP Financier'!$F$19)/('BP Financier'!$C$16+'BP Financier'!$C$19+'BP Financier'!$D$16+'BP Financier'!$D$19+'BP Financier'!$E$16+'BP Financier'!$E$19+'BP Financier'!$C$22+'BP Financier'!$D$22+'BP Financier'!$E$22+'BP Financier'!$F$22+'BP Financier'!$F$19+'BP Financier'!$F$16))*$V7202*X7202/(1-$W7202)","v":{"v":19673.961095657985,"d":"19,674"}},{"$f":"'BP Financier'!$F$44*(('BP Financier'!$C$19+'BP Financier'!$D$19+'BP Financier'!$E$19+'BP Financier'!$F$19)/('BP Financier'!$C$16+'BP Financier'!$C$19+'BP Financier'!$D$16+'BP Financier'!$D$19+'BP Financier'!$E$16+'BP Financier'!$E$19+'BP Financier'!$C$22+'BP Financier'!$D$22+'BP Financier'!$E$22+'BP Financier'!$F$22+'BP Financier'!$F$19+'BP Financier'!$F$16))*$V7202*Y7202/(1-$W7202)","v":{"v":13152.206036323845,"d":"13,152"}},{"$f":"'BP Financier'!$F$44*(('BP Financier'!$C$19+'BP Financier'!$D$19+'BP Financier'!$E$19+'BP Financier'!$F$19)/('BP Financier'!$C$16+'BP Financier'!$C$19+'BP Financier'!$D$16+'BP Financier'!$D$19+'BP Financier'!$E$16+'BP Financier'!$E$19+'BP Financier'!$C$22+'BP Financier'!$D$22+'BP Financier'!$E$22+'BP Financier'!$F$22+'BP Financier'!$F$19+'BP Financier'!$F$16))*$V7202*Z7202/(1-$W7202)","v":{"v":102935.03401982383,"d":"102,935"}},{"$f":"'BP Financier'!$F$44*(('BP Financier'!$C$19+'BP Financier'!$D$19+'BP Financier'!$E$19+'BP Financier'!$F$19)/('BP Financier'!$C$16+'BP Financier'!$C$19+'BP Financier'!$D$16+'BP Financier'!$D$19+'BP Financier'!$E$16+'BP Financier'!$E$19+'BP Financier'!$C$22+'BP Financier'!$D$22+'BP Financier'!$E$22+'BP Financier'!$F$22+'BP Financier'!$F$19+'BP Financier'!$F$16))*$V7202*AA7202/(1-$W7202)","v":{"v":12717.422365701572,"d":"12,717"}},{"$f":"'BP Financier'!$F$44*(('BP Financier'!$C$19+'BP Financier'!$D$19+'BP Financier'!$E$19+'BP Financier'!$F$19)/('BP Financier'!$C$16+'BP Financier'!$C$19+'BP Financier'!$D$16+'BP Financier'!$D$19+'BP Financier'!$E$16+'BP Financier'!$E$19+'BP Financier'!$C$22+'BP Financier'!$D$22+'BP Financier'!$E$22+'BP Financier'!$F$22+'BP Financier'!$F$19+'BP Financier'!$F$16))*$V7202*AB7202/(1-$W7202)","v":{"v":6086.971388711862,"d":"6,087"}},null,{"v":0.0075,"d":"0.75%"},{"$f":"Actif!$E$28/100","v":{"v":0.28900000000000003,"d":"28.90%"}},{"$f":"Actif!$E$30/100","v":{"v":0.09050000000000001,"d":"9.05%"}},{"$f":"Actif!$E$31/100","v":{"v":0.0605,"d":"6.05%"}},{"$f":"Actif!$E$32/100","v":{"v":0.47350000000000003,"d":"47.35%"}},{"$f":"Actif!$E$33/100","v":{"v":0.0585,"d":"5.85%"}},{"$f":"Actif!$E$29/100","v":{"v":0.027999999999999997,"d":"2.80%"}}]
[null,"#93",41,2026,"F","A_PER",{"v":0.44999999999999996,"d":"0.45"},{"v":0.38999999999999996,"d":"0.39"},0.6,0.6,85,0,{"$f":"ROUND(Primes!$P$7*V7203,0)","v":10},{"$f":"'BP Financier'!$F$33*(('BP Financier'!$C$19+'BP Financier'!$D$19+'BP Financier'!$E$19+'BP Financier'!$F$19)/('BP Financier'!$C$16+'BP Financier'!$C$19+'BP Financier'!$D$16+'BP Financier'!$D$19+'BP Financier'!$E$16+'BP Financier'!$E$19+'BP Financier'!$F$16+'BP Financier'!$F$19))*V7203","v":{"v":363297.7607432643,"d":"363,298"}},{"v":206087.45987495876,"d":"206,087"},{"$f":"'BP Financier'!$F$44*(('BP Financier'!$C$19+'BP Financier'!$D$19+'BP Financier'!$E$19+'BP Financier'!$F$19)/('BP Financier'!$C$16+'BP Financier'!$C$19+'BP Financier'!$D$16+'BP Financier'!$D$19+'BP Financier'!$E$16+'BP Financier'!$E$19+'BP Financier'!$C$22+'BP Financier'!$D$22+'BP Financier'!$E$22+'BP Financier'!$F$22+'BP Financier'!$F$19+'BP Financier'!$F$16))*$V7203*X7203/(1-$W7203)","v":{"v":26231.948127543983,"d":"26,232"}},{"$f":"'BP Financier'!$F$44*(('BP Financier'!$C$19+'BP Financier'!$D$19+'BP Financier'!$E$19+'BP Financier'!$F$19)/('BP Financier'!$C$16+'BP Financier'!$C$19+'BP Financier'!$D$16+'BP Financier'!$D$19+'BP Financier'!$E$16+'BP Financier'!$E$19+'BP Financier'!$C$22+'BP Financier'!$D$22+'BP Financier'!$E$22+'BP Financier'!$F$22+'BP Financier'!$F$19+'BP Financier'!$F$16))*$V7203*Y7203/(1-$W7203)","v":{"v":17536.27471509846,"d":"17,536"}},{"$f":"'BP Financier'!$F$44*(('BP Financier'!$C$19+'BP Financier'!$D$19+'BP Financier'!$E$19+'BP Financier'!$F$19)/('BP Financier'!$C$16+'BP Financier'!$C$19+'BP Financier'!$D$16+'BP Financier'!$D$19+'BP Financier'!$E$16+'BP Financier'!$E$19+'BP Financier'!$C$22+'BP Financier'!$D$22+'BP Financier'!$E$22+'BP Financier'!$F$22+'BP Financier'!$F$19+'BP Financier'!$F$16))*$V7203*Z7203/(1-$W7203)","v":{"v":137246.71202643178,"d":"137,247"}},{"$f":"'BP Financier'!$F$44*(('BP Financier'!$C$19+'BP Financier'!$D$19+'BP Financier'!$E$19+'BP Financier'!$F$19)/('BP Financier'!$C$16+'BP Financier'!$C$19+'BP Financier'!$D$16+'BP Financier'!$D$19+'BP Financier'!$E$16+'BP Financier'!$E$19+'BP Financier'!$C$22+'BP Financier'!$D$22+'BP Financier'!$E$22+'BP Financier'!$F$22+'BP Financier'!$F$19+'BP Financier'!$F$16))*$V7203*AA7203/(1-$W7203)","v":{"v":16956.56315426876,"d":"16,957"}},{"$f":"'BP Financier'!$F$44*(('BP Financier'!$C$19+'BP Financier'!$D$19+'BP Financier'!$E$19+'BP Financier'!$F$19)/('BP Financier'!$C$16+'BP Financier'!$C$19+'BP Financier'!$D$16+'BP Financier'!$D$19+'BP Financier'!$E$16+'BP Financier'!$E$19+'BP Financier'!$C$22+'BP Financier'!$D$22+'BP Financier'!$E$22+'BP Financier'!$F$22+'BP Financier'!$F$19+'BP Financier'!$F$16))*$V7203*AB7203/(1-$W7203)","v":{"v":8115.961851615815,"d":"8,116"}},null,{"v":0.01,"d":"1.00%"},{"$f":"Actif!$E$28/100","v":{"v":0.28900000000000003,"d":"28.90%"}},{"$f":"Actif!$E$30/100","v":{"v":0.09050000000000001,"d":"9.05%"}},{"$f":"Actif!$E$31/100","v":{"v":0.0605,"d":"6.05%"}},{"$f":"Actif!$E$32/100","v":{"v":0.47350000000000003,"d":"47.35%"}},{"$f":"Actif!$E$33/100","v":{"v":0.0585,"d":"5.85%"}},{"$f":"Actif!$E$29/100","v":{"v":0.027999999999999997,"d":"2.80%"}}]
[null,"#94",41,2028,"F","A_PER",{"v":0.44999999999999996,"d":"0.45"},{"v":0.38999999999999996,"d":"0.39"},0.6,0.6,85,0,{"$f":"ROUND(Primes!$P$7*V7204,0)","v":10},{"$f":"'BP Financier'!$F$33*(('BP Financier'!$C$19+'BP Financier'!$D$19+'BP Financier'!$E$19+'BP Financier'!$F$19)/('BP Financier'!$C$16+'BP Financier'!$C$19+'BP Financier'!$D$16+'BP Financier'!$D$19+'BP Financier'!$E$16+'BP Financier'!$E$19+'BP Financier'!$F$16+'BP Financier'!$F$19))*V7204","v":{"v":363297.7607432643,"d":"363,298"}},{"v":206087.45987495876,"d":"206,087"},{"$f":"'BP Financier'!$F$44*(('BP Financier'!$C$19+'BP Financier'!$D$19+'BP Financier'!$E$19+'BP Financier'!$F$19)/('BP Financier'!$C$16+'BP Financier'!$C$19+'BP Financier'!$D$16+'BP Financier'!$D$19+'BP Financier'!$E$16+'BP Financier'!$E$19+'BP Financier'!$C$22+'BP Financier'!$D$22+'BP Financier'!$E$22+'BP Financier'!$F$22+'BP Financier'!$F$19+'BP Financier'!$F$16))*$V7204*X7204/(1-$W7204)","v":{"v":26231.948127543983,"d":"26,232"}},{"$f":"'BP Financier'!$F$44*(('BP Financier'!$C$19+'BP Financier'!$D$19+'BP Financier'!$E$19+'BP Financier'!$F$19)/('BP Financier'!$C$16+'BP Financier'!$C$19+'BP Financier'!$D$16+'BP Financier'!$D$19+'BP Financier'!$E$16+'BP Financier'!$E$19+'BP Financier'!$C$22+'BP Financier'!$D$22+'BP Financier'!$E$22+'BP Financier'!$F$22+'BP Financier'!$F$19+'BP Financier'!$F$16))*$V7204*Y7204/(1-$W7204)","v":{"v":17536.27471509846,"d":"17,536"}},{"$f":"'BP Financier'!$F$44*(('BP Financier'!$C$19+'BP Financier'!$D$19+'BP Financier'!$E$19+'BP Financier'!$F$19)/('BP Financier'!$C$16+'BP Financier'!$C$19+'BP Financier'!$D$16+'BP Financier'!$D$19+'BP Financier'!$E$16+'BP Financier'!$E$19+'BP Financier'!$C$22+'BP Financier'!$D$22+'BP Financier'!$E$22+'BP Financier'!$F$22+'BP Financier'!$F$19+'BP Financier'!$F$16))*$V7204*Z7204/(1-$W7204)","v":{"v":137246.71202643178,"d":"137,247"}},{"$f":"'BP Financier'!$F$44*(('BP Financier'!$C$19+'BP Financier'!$D$19+'BP Financier'!$E$19+'BP Financier'!$F$19)/('BP Financier'!$C$16+'BP Financier'!$C$19+'BP Financier'!$D$16+'BP Financier'!$D$19+'BP Financier'!$E$16+'BP Financier'!$E$19+'BP Financier'!$C$22+'BP Financier'!$D$22+'BP Financier'!$E$22+'BP Financier'!$F$22+'BP Financier'!$F$19+'BP Financier'!$F$16))*$V7204*AA7204/(1-$W7204)","v":{"v":16956.56315426876,"d":"16,957"}},{"$f":"'BP Financier'!$F$44*(('BP Financier'!$C$19+'BP Financier'!$D$19+'BP Financier'!$E$19+'BP Financier'!$F$19)/('BP Financier'!$C$16+'BP Financier'!$C$19+'BP Financier'!$D$16+'BP Financier'!$D$19+'BP Financier'!$E$16+'BP Financier'!$E$19+'BP Financier'!$C$22+'BP Financier'!$D$22+'BP Financier'!$E$22+'BP Financier'!$F$22+'BP Financier'!$F$19+'BP Financier'!$F$16))*$V7204*AB7204/(1-$W7204)","v":{"v":8115.961851615815,"d":"8,116"}},null,{"v":0.01,"d":"1.00%"},{"$f":"Actif!$E$28/100","v":{"v":0.28900000000000003,"d":"28.90%"}},{"$f":"Actif!$E$30/100","v":{"v":0.09050000000000001,"d":"9.05%"}},{"$f":"Actif!$E$31/100","v":{"v":0.0605,"d":"6.05%"}},{"$f":"Actif!$E$32/100","v":{"v":0.47350000000000003,"d":"47.35%"}},{"$f":"Actif!$E$33/100","v":{"v":0.0585,"d":"5.85%"}},{"$f":"Actif!$E$29/100","v":{"v":0.027999999999999997,"d":"2.80%"}}]
[null,"#95",41,2029,"F","A_PER",{"v":0.44999999999999996,"d":"0.45"},{"v":0.38999999999999996,"d":"0.39"},0.6,0.6,85,0,{"$f":"ROUND(Primes!$P$7*V7205,0)","v":10},{"$f":"'BP Financier'!$F$33*(('BP Financier'!$C$19+'BP Financier'!$D$19+'BP Financier'!$E$19+'BP Financier'!$F$19)/('BP Financier'!$C$16+'BP Financier'!$C$19+'BP Financier'!$D$16+'BP Financier'!$D$19+'BP Financier'!$E$16+'BP Financier'!$E$19+'BP Financier'!$F$16+'BP Financier'!$F$19))*V7205","v":{"v":363297.7607432643,"d":"363,298"}},{"v":206087.45987495876,"d":"206,087"},{"$f":"'BP Financier'!$F$44*(('BP Financier'!$C$19+'BP Financier'!$D$19+'BP Financier'!$E$19+'BP Financier'!$F$19)/('BP Financier'!$C$16+'BP Financier'!$C$19+'BP Financier'!$D$16+'BP Financier'!$D$19+'BP Financier'!$E$16+'BP Financier'!$E$19+'BP Financier'!$C$22+'BP Financier'!$D$22+'BP Financier'!$E$22+'BP Financier'!$F$22+'BP Financier'!$F$19+'BP Financier'!$F$16))*$V7205*X7205/(1-$W7205)","v":{"v":26231.948127543983,"d":"26,232"}},{"$f":"'BP Financier'!$F$44*(('BP Financier'!$C$19+'BP Financier'!$D$19+'BP Financier'!$E$19+'BP Financier'!$F$19)/('BP Financier'!$C$16+'BP Financier'!$C$19+'BP Financier'!$D$16+'BP Financier'!$D$19+'BP Financier'!$E$16+'BP Financier'!$E$19+'BP Financier'!$C$22+'BP Financier'!$D$22+'BP Financier'!$E$22+'BP Financier'!$F$22+'BP Financier'!$F$19+'BP Financier'!$F$16))*$V7205*Y7205/(1-$W7205)","v":{"v":17536.27471509846,"d":"17,536"}},{"$f":"'BP Financier'!$F$44*(('BP Financier'!$C$19+'BP Financier'!$D$19+'BP Financier'!$E$19+'BP Financier'!$F$19)/('BP Financier'!$C$16+'BP Financier'!$C$19+'BP Financier'!$D$16+'BP Financier'!$D$19+'BP Financier'!$E$16+'BP Financier'!$E$19+'BP Financier'!$C$22+'BP Financier'!$D$22+'BP Financier'!$E$22+'BP Financier'!$F$22+'BP Financier'!$F$19+'BP Financier'!$F$16))*$V7205*Z7205/(1-$W7205)","v":{"v":137246.71202643178,"d":"137,247"}},{"$f":"'BP Financier'!$F$44*(('BP Financier'!$C$19+'BP Financier'!$D$19+'BP Financier'!$E$19+'BP Financier'!$F$19)/('BP Financier'!$C$16+'BP Financier'!$C$19+'BP Financier'!$D$16+'BP Financier'!$D$19+'BP Financier'!$E$16+'BP Financier'!$E$19+'BP Financier'!$C$22+'BP Financier'!$D$22+'BP Financier'!$E$22+'BP Financier'!$F$22+'BP Financier'!$F$19+'BP Financier'!$F$16))*$V7205*AA7205/(1-$W7205)","v":{"v":16956.56315426876,"d":"16,957"}},{"$f":"'BP Financier'!$F$44*(('BP Financier'!$C$19+'BP Financier'!$D$19+'BP Financier'!$E$19+'BP Financier'!$F$19)/('BP Financier'!$C$16+'BP Financier'!$C$19+'BP Financier'!$D$16+'BP Financier'!$D$19+'BP Financier'!$E$16+'BP Financier'!$E$19+'BP Financier'!$C$22+'BP Financier'!$D$22+'BP Financier'!$E$22+'BP Financier'!$F$22+'BP Financier'!$F$19+'BP Financier'!$F$16))*$V7205*AB7205/(1-$W7205)","v":{"v":8115.961851615815,"d":"8,116"}},null,{"v":0.01,"d":"1.00%"},{"$f":"Actif!$E$28/100","v":{"v":0.28900000000000003,"d":"28.90%"}},{"$f":"Actif!$E$30/100","v":{"v":0.09050000000000001,"d":"9.05%"}},{"$f":"Actif!$E$31/100","v":{"v":0.0605,"d":"6.05%"}},{"$f":"Actif!$E$32/100","v":{"v":0.47350000000000003,"d":"47.35%"}},{"$f":"Actif!$E$33/100","v":{"v":0.0585,"d":"5.85%"}},{"$f":"Actif!$E$29/100","v":{"v":0.027999999999999997,"d":"2.80%"}}]
[null,"#96",41,2030,"F","A_PER",{"v":0.44999999999999996,"d":"0.45"},{"v":0.38999999999999996,"d":"0.39"},0.6,0.6,85,0,{"$f":"ROUND(Primes!$P$7*V7206,0)","v":10},{"$f":"'BP Financier'!$F$33*(('BP Financier'!$C$19+'BP Financier'!$D$19+'BP Financier'!$E$19+'BP Financier'!$F$19)/('BP Financier'!$C$16+'BP Financier'!$C$19+'BP Financier'!$D$16+'BP Financier'!$D$19+'BP Financier'!$E$16+'BP Financier'!$E$19+'BP Financier'!$F$16+'BP Financier'!$F$19))*V7206","v":{"v":363297.7607432643,"d":"363,298"}},{"v":206087.45987495876,"d":"206,087"},{"$f":"'BP Financier'!$F$44*(('BP Financier'!$C$19+'BP Financier'!$D$19+'BP Financier'!$E$19+'BP Financier'!$F$19)/('BP Financier'!$C$16+'BP Financier'!$C$19+'BP Financier'!$D$16+'BP Financier'!$D$19+'BP Financier'!$E$16+'BP Financier'!$E$19+'BP Financier'!$C$22+'BP Financier'!$D$22+'BP Financier'!$E$22+'BP Financier'!$F$22+'BP Financier'!$F$19+'BP Financier'!$F$16))*$V7206*X7206/(1-$W7206)","v":{"v":26231.948127543983,"d":"26,232"}},{"$f":"'BP Financier'!$F$44*(('BP Financier'!$C$19+'BP Financier'!$D$19+'BP Financier'!$E$19+'BP Financier'!$F$19)/('BP Financier'!$C$16+'BP Financier'!$C$19+'BP Financier'!$D$16+'BP Financier'!$D$19+'BP Financier'!$E$16+'BP Financier'!$E$19+'BP Financier'!$C$22+'BP Financier'!$D$22+'BP Financier'!$E$22+'BP Financier'!$F$22+'BP Financier'!$F$19+'BP Financier'!$F$16))*$V7206*Y7206/(1-$W7206)","v":{"v":17536.27471509846,"d":"17,536"}},{"$f":"'BP Financier'!$F$44*(('BP Financier'!$C$19+'BP Financier'!$D$19+'BP Financier'!$E$19+'BP Financier'!$F$19)/('BP Financier'!$C$16+'BP Financier'!$C$19+'BP Financier'!$D$16+'BP Financier'!$D$19+'BP Financier'!$E$16+'BP Financier'!$E$19+'BP Financier'!$C$22+'BP Financier'!$D$22+'BP Financier'!$E$22+'BP Financier'!$F$22+'BP Financier'!$F$19+'BP Financier'!$F$16))*$V7206*Z7206/(1-$W7206)","v":{"v":137246.71202643178,"d":"137,247"}},{"$f":"'BP Financier'!$F$44*(('BP Financier'!$C$19+'BP Financier'!$D$19+'BP Financier'!$E$19+'BP Financier'!$F$19)/('BP Financier'!$C$16+'BP Financier'!$C$19+'BP Financier'!$D$16+'BP Financier'!$D$19+'BP Financier'!$E$16+'BP Financier'!$E$19+'BP Financier'!$C$22+'BP Financier'!$D$22+'BP Financier'!$E$22+'BP Financier'!$F$22+'BP Financier'!$F$19+'BP Financier'!$F$16))*$V7206*AA7206/(1-$W7206)","v":{"v":16956.56315426876,"d":"16,957"}},{"$f":"'BP Financier'!$F$44*(('BP Financier'!$C$19+'BP Financier'!$D$19+'BP Financier'!$E$19+'BP Financier'!$F$19)/('BP Financier'!$C$16+'BP Financier'!$C$19+'BP Financier'!$D$16+'BP Financier'!$D$19+'BP Financier'!$E$16+'BP Financier'!$E$19+'BP Financier'!$C$22+'BP Financier'!$D$22+'BP Financier'!$E$22+'BP Financier'!$F$22+'BP Financier'!$F$19+'BP Financier'!$F$16))*$V7206*AB7206/(1-$W7206)","v":{"v":8115.961851615815,"d":"8,116"}},null,{"v":0.01,"d":"1.00%"},{"$f":"Actif!$E$28/100","v":{"v":0.28900000000000003,"d":"28.90%"}},{"$f":"Actif!$E$30/100","v":{"v":0.09050000000000001,"d":"9.05%"}},{"$f":"Actif!$E$31/100","v":{"v":0.0605,"d":"6.05%"}},{"$f":"Actif!$E$32/100","v":{"v":0.47350000000000003,"d":"47.35%"}},{"$f":"Actif!$E$33/100","v":{"v":0.0585,"d":"5.85%"}},{"$f":"Actif!$E$29/100","v":{"v":0.027999999999999997,"d":"2.80%"}}]
[null,"#97",42,2026,"H","A_PER",{"v":0.44999999999999996,"d":"0.45"},{"v":0.38999999999999996,"d":"0.39"},0.6,0.6,85,0,{"$f":"ROUND(Primes!$P$7*V7207,0)","v":10},{"$f":"'BP Financier'!$F$33*(('BP Financier'!$C$19+'BP Financier'!$D$19+'BP Financier'!$E$19+'BP Financier'!$F$19)/('BP Financier'!$C$16+'BP Financier'!$C$19+'BP Financier'!$D$16+'BP Financier'!$D$19+'BP Financier'!$E$16+'BP Financier'!$E$19+'BP Financier'!$F$16+'BP Financier'!$F$19))*V7207","v":{"v":363297.7607432643,"d":"363,298"}},{"v":206087.45987495876,"d":"206,087"},{"$f":"'BP Financier'!$F$44*(('BP Financier'!$C$19+'BP Financier'!$D$19+'BP Financier'!$E$19+'BP Financier'!$F$19)/('BP Financier'!$C$16+'BP Financier'!$C$19+'BP Financier'!$D$16+'BP Financier'!$D$19+'BP Financier'!$E$16+'BP Financier'!$E$19+'BP Financier'!$C$22+'BP Financier'!$D$22+'BP Financier'!$E$22+'BP Financier'!$F$22+'BP Financier'!$F$19+'BP Financier'!$F$16))*$V7207*X7207/(1-$W7207)","v":{"v":26231.948127543983,"d":"26,232"}},{"$f":"'BP Financier'!$F$44*(('BP Financier'!$C$19+'BP Financier'!$D$19+'BP Financier'!$E$19+'BP Financier'!$F$19)/('BP Financier'!$C$16+'BP Financier'!$C$19+'BP Financier'!$D$16+'BP Financier'!$D$19+'BP Financier'!$E$16+'BP Financier'!$E$19+'BP Financier'!$C$22+'BP Financier'!$D$22+'BP Financier'!$E$22+'BP Financier'!$F$22+'BP Financier'!$F$19+'BP Financier'!$F$16))*$V7207*Y7207/(1-$W7207)","v":{"v":17536.27471509846,"d":"17,536"}},{"$f":"'BP Financier'!$F$44*(('BP Financier'!$C$19+'BP Financier'!$D$19+'BP Financier'!$E$19+'BP Financier'!$F$19)/('BP Financier'!$C$16+'BP Financier'!$C$19+'BP Financier'!$D$16+'BP Financier'!$D$19+'BP Financier'!$E$16+'BP Financier'!$E$19+'BP Financier'!$C$22+'BP Financier'!$D$22+'BP Financier'!$E$22+'BP Financier'!$F$22+'BP Financier'!$F$19+'BP Financier'!$F$16))*$V7207*Z7207/(1-$W7207)","v":{"v":137246.71202643178,"d":"137,247"}},{"$f":"'BP Financier'!$F$44*(('BP Financier'!$C$19+'BP Financier'!$D$19+'BP Financier'!$E$19+'BP Financier'!$F$19)/('BP Financier'!$C$16+'BP Financier'!$C$19+'BP Financier'!$D$16+'BP Financier'!$D$19+'BP Financier'!$E$16+'BP Financier'!$E$19+'BP Financier'!$C$22+'BP Financier'!$D$22+'BP Financier'!$E$22+'BP Financier'!$F$22+'BP Financier'!$F$19+'BP Financier'!$F$16))*$V7207*AA7207/(1-$W7207)","v":{"v":16956.56315426876,"d":"16,957"}},{"$f":"'BP Financier'!$F$44*(('BP Financier'!$C$19+'BP Financier'!$D$19+'BP Financier'!$E$19+'BP Financier'!$F$19)/('BP Financier'!$C$16+'BP Financier'!$C$19+'BP Financier'!$D$16+'BP Financier'!$D$19+'BP Financier'!$E$16+'BP Financier'!$E$19+'BP Financier'!$C$22+'BP Financier'!$D$22+'BP Financier'!$E$22+'BP Financier'!$F$22+'BP Financier'!$F$19+'BP Financier'!$F$16))*$V7207*AB7207/(1-$W7207)","v":{"v":8115.961851615815,"d":"8,116"}},null,{"v":0.01,"d":"1.00%"},{"$f":"Actif!$E$28/100","v":{"v":0.28900000000000003,"d":"28.90%"}},{"$f":"Actif!$E$30/100","v":{"v":0.09050000000000001,"d":"9.05%"}},{"$f":"Actif!$E$31/100","v":{"v":0.0605,"d":"6.05%"}},{"$f":"Actif!$E$32/100","v":{"v":0.47350000000000003,"d":"47.35%"}},{"$f":"Actif!$E$33/100","v":{"v":0.0585,"d":"5.85%"}},{"$f":"Actif!$E$29/100","v":{"v":0.027999999999999997,"d":"2.80%"}}]
[null,"#98",42,2028,"H","A_PER",{"v":0.44999999999999996,"d":"0.45"},{"v":0.38999999999999996,"d":"0.39"},0.6,0.6,85,0,{"$f":"ROUND(Primes!$P$7*V7208,0)","v":10},{"$f":"'BP Financier'!$F$33*(('BP Financier'!$C$19+'BP Financier'!$D$19+'BP Financier'!$E$19+'BP Financier'!$F$19)/('BP Financier'!$C$16+'BP Financier'!$C$19+'BP Financier'!$D$16+'BP Financier'!$D$19+'BP Financier'!$E$16+'BP Financier'!$E$19+'BP Financier'!$F$16+'BP Financier'!$F$19))*V7208","v":{"v":363297.7607432643,"d":"363,298"}},{"v":206087.45987495876,"d":"206,087"},{"$f":"'BP Financier'!$F$44*(('BP Financier'!$C$19+'BP Financier'!$D$19+'BP Financier'!$E$19+'BP Financier'!$F$19)/('BP Financier'!$C$16+'BP Financier'!$C$19+'BP Financier'!$D$16+'BP Financier'!$D$19+'BP Financier'!$E$16+'BP Financier'!$E$19+'BP Financier'!$C$22+'BP Financier'!$D$22+'BP Financier'!$E$22+'BP Financier'!$F$22+'BP Financier'!$F$19+'BP Financier'!$F$16))*$V7208*X7208/(1-$W7208)","v":{"v":26231.948127543983,"d":"26,232"}},{"$f":"'BP Financier'!$F$44*(('BP Financier'!$C$19+'BP Financier'!$D$19+'BP Financier'!$E$19+'BP Financier'!$F$19)/('BP Financier'!$C$16+'BP Financier'!$C$19+'BP Financier'!$D$16+'BP Financier'!$D$19+'BP Financier'!$E$16+'BP Financier'!$E$19+'BP Financier'!$C$22+'BP Financier'!$D$22+'BP Financier'!$E$22+'BP Financier'!$F$22+'BP Financier'!$F$19+'BP Financier'!$F$16))*$V7208*Y7208/(1-$W7208)","v":{"v":17536.27471509846,"d":"17,536"}},{"$f":"'BP Financier'!$F$44*(('BP Financier'!$C$19+'BP Financier'!$D$19+'BP Financier'!$E$19+'BP Financier'!$F$19)/('BP Financier'!$C$16+'BP Financier'!$C$19+'BP Financier'!$D$16+'BP Financier'!$D$19+'BP Financier'!$E$16+'BP Financier'!$E$19+'BP Financier'!$C$22+'BP Financier'!$D$22+'BP Financier'!$E$22+'BP Financier'!$F$22+'BP Financier'!$F$19+'BP Financier'!$F$16))*$V7208*Z7208/(1-$W7208)","v":{"v":137246.71202643178,"d":"137,247"}},{"$f":"'BP Financier'!$F$44*(('BP Financier'!$C$19+'BP Financier'!$D$19+'BP Financier'!$E$19+'BP Financier'!$F$19)/('BP Financier'!$C$16+'BP Financier'!$C$19+'BP Financier'!$D$16+'BP Financier'!$D$19+'BP Financier'!$E$16+'BP Financier'!$E$19+'BP Financier'!$C$22+'BP Financier'!$D$22+'BP Financier'!$E$22+'BP Financier'!$F$22+'BP Financier'!$F$19+'BP Financier'!$F$16))*$V7208*AA7208/(1-$W7208)","v":{"v":16956.56315426876,"d":"16,957"}},{"$f":"'BP Financier'!$F$44*(('BP Financier'!$C$19+'BP Financier'!$D$19+'BP Financier'!$E$19+'BP Financier'!$F$19)/('BP Financier'!$C$16+'BP Financier'!$C$19+'BP Financier'!$D$16+'BP Financier'!$D$19+'BP Financier'!$E$16+'BP Financier'!$E$19+'BP Financier'!$C$22+'BP Financier'!$D$22+'BP Financier'!$E$22+'BP Financier'!$F$22+'BP Financier'!$F$19+'BP Financier'!$F$16))*$V7208*AB7208/(1-$W7208)","v":{"v":8115.961851615815,"d":"8,116"}},null,{"v":0.01,"d":"1.00%"},{"$f":"Actif!$E$28/100","v":{"v":0.28900000000000003,"d":"28.90%"}},{"$f":"Actif!$E$30/100","v":{"v":0.09050000000000001,"d":"9.05%"}},{"$f":"Actif!$E$31/100","v":{"v":0.0605,"d":"6.05%"}},{"$f":"Actif!$E$32/100","v":{"v":0.47350000000000003,"d":"47.35%"}},{"$f":"Actif!$E$33/100","v":{"v":0.0585,"d":"5.85%"}},{"$f":"Actif!$E$29/100","v":{"v":0.027999999999999997,"d":"2.80%"}}]
[null,"#99",42,2029,"H","A_PER",{"v":0.44999999999999996,"d":"0.45"},{"v":0.38999999999999996,"d":"0.39"},0.6,0.6,85,0,{"$f":"ROUND(Primes!$P$7*V7209,0)","v":10},{"$f":"'BP Financier'!$F$33*(('BP Financier'!$C$19+'BP Financier'!$D$19+'BP Financier'!$E$19+'BP Financier'!$F$19)/('BP Financier'!$C$16+'BP Financier'!$C$19+'BP Financier'!$D$16+'BP Financier'!$D$19+'BP Financier'!$E$16+'BP Financier'!$E$19+'BP Financier'!$F$16+'BP Financier'!$F$19))*V7209","v":{"v":363297.7607432643,"d":"363,298"}},{"v":206087.45987495876,"d":"206,087"},{"$f":"'BP Financier'!$F$44*(('BP Financier'!$C$19+'BP Financier'!$D$19+'BP Financier'!$E$19+'BP Financier'!$F$19)/('BP Financier'!$C$16+'BP Financier'!$C$19+'BP Financier'!$D$16+'BP Financier'!$D$19+'BP Financier'!$E$16+'BP Financier'!$E$19+'BP Financier'!$C$22+'BP Financier'!$D$22+'BP Financier'!$E$22+'BP Financier'!$F$22+'BP Financier'!$F$19+'BP Financier'!$F$16))*$V7209*X7209/(1-$W7209)","v":{"v":26231.948127543983,"d":"26,232"}},{"$f":"'BP Financier'!$F$44*(('BP Financier'!$C$19+'BP Financier'!$D$19+'BP Financier'!$E$19+'BP Financier'!$F$19)/('BP Financier'!$C$16+'BP Financier'!$C$19+'BP Financier'!$D$16+'BP Financier'!$D$19+'BP Financier'!$E$16+'BP Financier'!$E$19+'BP Financier'!$C$22+'BP Financier'!$D$22+'BP Financier'!$E$22+'BP Financier'!$F$22+'BP Financier'!$F$19+'BP Financier'!$F$16))*$V7209*Y7209/(1-$W7209)","v":{"v":17536.27471509846,"d":"17,536"}},{"$f":"'BP Financier'!$F$44*(('BP Financier'!$C$19+'BP Financier'!$D$19+'BP Financier'!$E$19+'BP Financier'!$F$19)/('BP Financier'!$C$16+'BP Financier'!$C$19+'BP Financier'!$D$16+'BP Financier'!$D$19+'BP Financier'!$E$16+'BP Financier'!$E$19+'BP Financier'!$C$22+'BP Financier'!$D$22+'BP Financier'!$E$22+'BP Financier'!$F$22+'BP Financier'!$F$19+'BP Financier'!$F$16))*$V7209*Z7209/(1-$W7209)","v":{"v":137246.71202643178,"d":"137,247"}},{"$f":"'BP Financier'!$F$44*(('BP Financier'!$C$19+'BP Financier'!$D$19+'BP Financier'!$E$19+'BP Financier'!$F$19)/('BP Financier'!$C$16+'BP Financier'!$C$19+'BP Financier'!$D$16+'BP Financier'!$D$19+'BP Financier'!$E$16+'BP Financier'!$E$19+'BP Financier'!$C$22+'BP Financier'!$D$22+'BP Financier'!$E$22+'BP Financier'!$F$22+'BP Financier'!$F$19+'BP Financier'!$F$16))*$V7209*AA7209/(1-$W7209)","v":{"v":16956.56315426876,"d":"16,957"}},{"$f":"'BP Financier'!$F$44*(('BP Financier'!$C$19+'BP Financier'!$D$19+'BP Financier'!$E$19+'BP Financier'!$F$19)/('BP Financier'!$C$16+'BP Financier'!$C$19+'BP Financier'!$D$16+'BP Financier'!$D$19+'BP Financier'!$E$16+'BP Financier'!$E$19+'BP Financier'!$C$22+'BP Financier'!$D$22+'BP Financier'!$E$22+'BP Financier'!$F$22+'BP Financier'!$F$19+'BP Financier'!$F$16))*$V7209*AB7209/(1-$W7209)","v":{"v":8115.961851615815,"d":"8,116"}},null,{"v":0.01,"d":"1.00%"},{"$f":"Actif!$E$28/100","v":{"v":0.28900000000000003,"d":"28.90%"}},{"$f":"Actif!$E$30/100","v":{"v":0.09050000000000001,"d":"9.05%"}},{"$f":"Actif!$E$31/100","v":{"v":0.0605,"d":"6.05%"}},{"$f":"Actif!$E$32/100","v":{"v":0.47350000000000003,"d":"47.35%"}},{"$f":"Actif!$E$33/100","v":{"v":0.0585,"d":"5.85%"}},{"$f":"Actif!$E$29/100","v":{"v":0.027999999999999997,"d":"2.80%"}}]
[null,"#100",42,2030,"H","A_PER",{"v":0.44999999999999996,"d":"0.45"},{"v":0.38999999999999996,"d":"0.39"},0.6,0.6,85,0,{"$f":"ROUND(Primes!$P$7*V7210,0)","v":10},{"$f":"'BP Financier'!$F$33*(('BP Financier'!$C$19+'BP Financier'!$D$19+'BP Financier'!$E$19+'BP Financier'!$F$19)/('BP Financier'!$C$16+'BP Financier'!$C$19+'BP Financier'!$D$16+'BP Financier'!$D$19+'BP Financier'!$E$16+'BP Financier'!$E$19+'BP Financier'!$F$16+'BP Financier'!$F$19))*V7210","v":{"v":363297.7607432643,"d":"363,298"}},{"v":206087.45987495876,"d":"206,087"},{"$f":"'BP Financier'!$F$44*(('BP Financier'!$C$19+'BP Financier'!$D$19+'BP Financier'!$E$19+'BP Financier'!$F$19)/('BP Financier'!$C$16+'BP Financier'!$C$19+'BP Financier'!$D$16+'BP Financier'!$D$19+'BP Financier'!$E$16+'BP Financier'!$E$19+'BP Financier'!$C$22+'BP Financier'!$D$22+'BP Financier'!$E$22+'BP Financier'!$F$22+'BP Financier'!$F$19+'BP Financier'!$F$16))*$V7210*X7210/(1-$W7210)","v":{"v":26231.948127543983,"d":"26,232"}},{"$f":"'BP Financier'!$F$44*(('BP Financier'!$C$19+'BP Financier'!$D$19+'BP Financier'!$E$19+'BP Financier'!$F$19)/('BP Financier'!$C$16+'BP Financier'!$C$19+'BP Financier'!$D$16+'BP Financier'!$D$19+'BP Financier'!$E$16+'BP Financier'!$E$19+'BP Financier'!$C$22+'BP Financier'!$D$22+'BP Financier'!$E$22+'BP Financier'!$F$22+'BP Financier'!$F$19+'BP Financier'!$F$16))*$V7210*Y7210/(1-$W7210)","v":{"v":17536.27471509846,"d":"17,536"}},{"$f":"'BP Financier'!$F$44*(('BP Financier'!$C$19+'BP Financier'!$D$19+'BP Financier'!$E$19+'BP Financier'!$F$19)/('BP Financier'!$C$16+'BP Financier'!$C$19+'BP Financier'!$D$16+'BP Financier'!$D$19+'BP Financier'!$E$16+'BP Financier'!$E$19+'BP Financier'!$C$22+'BP Financier'!$D$22+'BP Financier'!$E$22+'BP Financier'!$F$22+'BP Financier'!$F$19+'BP Financier'!$F$16))*$V7210*Z7210/(1-$W7210)","v":{"v":137246.71202643178,"d":"137,247"}},{"$f":"'BP Financier'!$F$44*(('BP Financier'!$C$19+'BP Financier'!$D$19+'BP Financier'!$E$19+'BP Financier'!$F$19)/('BP Financier'!$C$16+'BP Financier'!$C$19+'BP Financier'!$D$16+'BP Financier'!$D$19+'BP Financier'!$E$16+'BP Financier'!$E$19+'BP Financier'!$C$22+'BP Financier'!$D$22+'BP Financier'!$E$22+'BP Financier'!$F$22+'BP Financier'!$F$19+'BP Financier'!$F$16))*$V7210*AA7210/(1-$W7210)","v":{"v":16956.56315426876,"d":"16,957"}},{"$f":"'BP Financier'!$F$44*(('BP Financier'!$C$19+'BP Financier'!$D$19+'BP Financier'!$E$19+'BP Financier'!$F$19)/('BP Financier'!$C$16+'BP Financier'!$C$19+'BP Financier'!$D$16+'BP Financier'!$D$19+'BP Financier'!$E$16+'BP Financier'!$E$19+'BP Financier'!$C$22+'BP Financier'!$D$22+'BP Financier'!$E$22+'BP Financier'!$F$22+'BP Financier'!$F$19+'BP Financier'!$F$16))*$V7210*AB7210/(1-$W7210)","v":{"v":8115.961851615815,"d":"8,116"}},null,{"v":0.01,"d":"1.00%"},{"$f":"Actif!$E$28/100","v":{"v":0.28900000000000003,"d":"28.90%"}},{"$f":"Actif!$E$30/100","v":{"v":0.09050000000000001,"d":"9.05%"}},{"$f":"Actif!$E$31/100","v":{"v":0.0605,"d":"6.05%"}},{"$f":"Actif!$E$32/100","v":{"v":0.47350000000000003,"d":"47.35%"}},{"$f":"Actif!$E$33/100","v":{"v":0.0585,"d":"5.85%"}},{"$f":"Actif!$E$29/100","v":{"v":0.027999999999999997,"d":"2.80%"}}]
[null,"#101",43,2026,"H","A_PER",{"v":0.44999999999999996,"d":"0.45"},{"v":0.38999999999999996,"d":"0.39"},0.6,0.6,85,0,{"$f":"ROUND(Primes!$P$7*V7211,0)","v":10},{"$f":"'BP Financier'!$F$33*(('BP Financier'!$C$19+'BP Financier'!$D$19+'BP Financier'!$E$19+'BP Financier'!$F$19)/('BP Financier'!$C$16+'BP Financier'!$C$19+'BP Financier'!$D$16+'BP Financier'!$D$19+'BP Financier'!$E$16+'BP Financier'!$E$19+'BP Financier'!$F$16+'BP Financier'!$F$19))*V7211","v":{"v":363297.7607432643,"d":"363,298"}},{"v":206087.45987495876,"d":"206,087"},{"$f":"'BP Financier'!$F$44*(('BP Financier'!$C$19+'BP Financier'!$D$19+'BP Financier'!$E$19+'BP Financier'!$F$19)/('BP Financier'!$C$16+'BP Financier'!$C$19+'BP Financier'!$D$16+'BP Financier'!$D$19+'BP Financier'!$E$16+'BP Financier'!$E$19+'BP Financier'!$C$22+'BP Financier'!$D$22+'BP Financier'!$E$22+'BP Financier'!$F$22+'BP Financier'!$F$19+'BP Financier'!$F$16))*$V7211*X7211/(1-$W7211)","v":{"v":26231.948127543983,"d":"26,232"}},{"$f":"'BP Financier'!$F$44*(('BP Financier'!$C$19+'BP Financier'!$D$19+'BP Financier'!$E$19+'BP Financier'!$F$19)/('BP Financier'!$C$16+'BP Financier'!$C$19+'BP Financier'!$D$16+'BP Financier'!$D$19+'BP Financier'!$E$16+'BP Financier'!$E$19+'BP Financier'!$C$22+'BP Financier'!$D$22+'BP Financier'!$E$22+'BP Financier'!$F$22+'BP Financier'!$F$19+'BP Financier'!$F$16))*$V7211*Y7211/(1-$W7211)","v":{"v":17536.27471509846,"d":"17,536"}},{"$f":"'BP Financier'!$F$44*(('BP Financier'!$C$19+'BP Financier'!$D$19+'BP Financier'!$E$19+'BP Financier'!$F$19)/('BP Financier'!$C$16+'BP Financier'!$C$19+'BP Financier'!$D$16+'BP Financier'!$D$19+'BP Financier'!$E$16+'BP Financier'!$E$19+'BP Financier'!$C$22+'BP Financier'!$D$22+'BP Financier'!$E$22+'BP Financier'!$F$22+'BP Financier'!$F$19+'BP Financier'!$F$16))*$V7211*Z7211/(1-$W7211)","v":{"v":137246.71202643178,"d":"137,247"}},{"$f":"'BP Financier'!$F$44*(('BP Financier'!$C$19+'BP Financier'!$D$19+'BP Financier'!$E$19+'BP Financier'!$F$19)/('BP Financier'!$C$16+'BP Financier'!$C$19+'BP Financier'!$D$16+'BP Financier'!$D$19+'BP Financier'!$E$16+'BP Financier'!$E$19+'BP Financier'!$C$22+'BP Financier'!$D$22+'BP Financier'!$E$22+'BP Financier'!$F$22+'BP Financier'!$F$19+'BP Financier'!$F$16))*$V7211*AA7211/(1-$W7211)","v":{"v":16956.56315426876,"d":"16,957"}},{"$f":"'BP Financier'!$F$44*(('BP Financier'!$C$19+'BP Financier'!$D$19+'BP Financier'!$E$19+'BP Financier'!$F$19)/('BP Financier'!$C$16+'BP Financier'!$C$19+'BP Financier'!$D$16+'BP Financier'!$D$19+'BP Financier'!$E$16+'BP Financier'!$E$19+'BP Financier'!$C$22+'BP Financier'!$D$22+'BP Financier'!$E$22+'BP Financier'!$F$22+'BP Financier'!$F$19+'BP Financier'!$F$16))*$V7211*AB7211/(1-$W7211)","v":{"v":8115.961851615815,"d":"8,116"}},null,{"v":0.01,"d":"1.00%"},{"$f":"Actif!$E$28/100","v":{"v":0.28900000000000003,"d":"28.90%"}},{"$f":"Actif!$E$30/100","v":{"v":0.09050000000000001,"d":"9.05%"}},{"$f":"Actif!$E$31/100","v":{"v":0.0605,"d":"6.05%"}},{"$f":"Actif!$E$32/100","v":{"v":0.47350000000000003,"d":"47.35%"}},{"$f":"Actif!$E$33/100","v":{"v":0.0585,"d":"5.85%"}},{"$f":"Actif!$E$29/100","v":{"v":0.027999999999999997,"d":"2.80%"}}]
[null,"#102",43,2028,"H","A_PER",{"v":0.44999999999999996,"d":"0.45"},{"v":0.38999999999999996,"d":"0.39"},0.6,0.6,85,0,{"$f":"ROUND(Primes!$P$7*V7212,0)","v":10},{"$f":"'BP Financier'!$F$33*(('BP Financier'!$C$19+'BP Financier'!$D$19+'BP Financier'!$E$19+'BP Financier'!$F$19)/('BP Financier'!$C$16+'BP Financier'!$C$19+'BP Financier'!$D$16+'BP Financier'!$D$19+'BP Financier'!$E$16+'BP Financier'!$E$19+'BP Financier'!$F$16+'BP Financier'!$F$19))*V7212","v":{"v":363297.7607432643,"d":"363,298"}},{"v":206087.45987495876,"d":"206,087"},{"$f":"'BP Financier'!$F$44*(('BP Financier'!$C$19+'BP Financier'!$D$19+'BP Financier'!$E$19+'BP Financier'!$F$19)/('BP Financier'!$C$16+'BP Financier'!$C$19+'BP Financier'!$D$16+'BP Financier'!$D$19+'BP Financier'!$E$16+'BP Financier'!$E$19+'BP Financier'!$C$22+'BP Financier'!$D$22+'BP Financier'!$E$22+'BP Financier'!$F$22+'BP Financier'!$F$19+'BP Financier'!$F$16))*$V7212*X7212/(1-$W7212)","v":{"v":26231.948127543983,"d":"26,232"}},{"$f":"'BP Financier'!$F$44*(('BP Financier'!$C$19+'BP Financier'!$D$19+'BP Financier'!$E$19+'BP Financier'!$F$19)/('BP Financier'!$C$16+'BP Financier'!$C$19+'BP Financier'!$D$16+'BP Financier'!$D$19+'BP Financier'!$E$16+'BP Financier'!$E$19+'BP Financier'!$C$22+'BP Financier'!$D$22+'BP Financier'!$E$22+'BP Financier'!$F$22+'BP Financier'!$F$19+'BP Financier'!$F$16))*$V7212*Y7212/(1-$W7212)","v":{"v":17536.27471509846,"d":"17,536"}},{"$f":"'BP Financier'!$F$44*(('BP Financier'!$C$19+'BP Financier'!$D$19+'BP Financier'!$E$19+'BP Financier'!$F$19)/('BP Financier'!$C$16+'BP Financier'!$C$19+'BP Financier'!$D$16+'BP Financier'!$D$19+'BP Financier'!$E$16+'BP Financier'!$E$19+'BP Financier'!$C$22+'BP Financier'!$D$22+'BP Financier'!$E$22+'BP Financier'!$F$22+'BP Financier'!$F$19+'BP Financier'!$F$16))*$V7212*Z7212/(1-$W7212)","v":{"v":137246.71202643178,"d":"137,247"}},{"$f":"'BP Financier'!$F$44*(('BP Financier'!$C$19+'BP Financier'!$D$19+'BP Financier'!$E$19+'BP Financier'!$F$19)/('BP Financier'!$C$16+'BP Financier'!$C$19+'BP Financier'!$D$16+'BP Financier'!$D$19+'BP Financier'!$E$16+'BP Financier'!$E$19+'BP Financier'!$C$22+'BP Financier'!$D$22+'BP Financier'!$E$22+'BP Financier'!$F$22+'BP Financier'!$F$19+'BP Financier'!$F$16))*$V7212*AA7212/(1-$W7212)","v":{"v":16956.56315426876,"d":"16,957"}},{"$f":"'BP Financier'!$F$44*(('BP Financier'!$C$19+'BP Financier'!$D$19+'BP Financier'!$E$19+'BP Financier'!$F$19)/('BP Financier'!$C$16+'BP Financier'!$C$19+'BP Financier'!$D$16+'BP Financier'!$D$19+'BP Financier'!$E$16+'BP Financier'!$E$19+'BP Financier'!$C$22+'BP Financier'!$D$22+'BP Financier'!$E$22+'BP Financier'!$F$22+'BP Financier'!$F$19+'BP Financier'!$F$16))*$V7212*AB7212/(1-$W7212)","v":{"v":8115.961851615815,"d":"8,116"}},null,{"v":0.01,"d":"1.00%"},{"$f":"Actif!$E$28/100","v":{"v":0.28900000000000003,"d":"28.90%"}},{"$f":"Actif!$E$30/100","v":{"v":0.09050000000000001,"d":"9.05%"}},{"$f":"Actif!$E$31/100","v":{"v":0.0605,"d":"6.05%"}},{"$f":"Actif!$E$32/100","v":{"v":0.47350000000000003,"d":"47.35%"}},{"$f":"Actif!$E$33/100","v":{"v":0.0585,"d":"5.85%"}},{"$f":"Actif!$E$29/100","v":{"v":0.027999999999999997,"d":"2.80%"}}]
[null,"#103",43,2029,"H","A_PER",{"v":0.44999999999999996,"d":"0.45"},{"v":0.38999999999999996,"d":"0.39"},0.6,0.6,85,0,{"$f":"ROUND(Primes!$P$7*V7213,0)","v":10},{"$f":"'BP Financier'!$F$33*(('BP Financier'!$C$19+'BP Financier'!$D$19+'BP Financier'!$E$19+'BP Financier'!$F$19)/('BP Financier'!$C$16+'BP Financier'!$C$19+'BP Financier'!$D$16+'BP Financier'!$D$19+'BP Financier'!$E$16+'BP Financier'!$E$19+'BP Financier'!$F$16+'BP Financier'!$F$19))*V7213","v":{"v":363297.7607432643,"d":"363,298"}},{"v":206087.45987495876,"d":"206,087"},{"$f":"'BP Financier'!$F$44*(('BP Financier'!$C$19+'BP Financier'!$D$19+'BP Financier'!$E$19+'BP Financier'!$F$19)/('BP Financier'!$C$16+'BP Financier'!$C$19+'BP Financier'!$D$16+'BP Financier'!$D$19+'BP Financier'!$E$16+'BP Financier'!$E$19+'BP Financier'!$C$22+'BP Financier'!$D$22+'BP Financier'!$E$22+'BP Financier'!$F$22+'BP Financier'!$F$19+'BP Financier'!$F$16))*$V7213*X7213/(1-$W7213)","v":{"v":26231.948127543983,"d":"26,232"}},{"$f":"'BP Financier'!$F$44*(('BP Financier'!$C$19+'BP Financier'!$D$19+'BP Financier'!$E$19+'BP Financier'!$F$19)/('BP Financier'!$C$16+'BP Financier'!$C$19+'BP Financier'!$D$16+'BP Financier'!$D$19+'BP Financier'!$E$16+'BP Financier'!$E$19+'BP Financier'!$C$22+'BP Financier'!$D$22+'BP Financier'!$E$22+'BP Financier'!$F$22+'BP Financier'!$F$19+'BP Financier'!$F$16))*$V7213*Y7213/(1-$W7213)","v":{"v":17536.27471509846,"d":"17,536"}},{"$f":"'BP Financier'!$F$44*(('BP Financier'!$C$19+'BP Financier'!$D$19+'BP Financier'!$E$19+'BP Financier'!$F$19)/('BP Financier'!$C$16+'BP Financier'!$C$19+'BP Financier'!$D$16+'BP Financier'!$D$19+'BP Financier'!$E$16+'BP Financier'!$E$19+'BP Financier'!$C$22+'BP Financier'!$D$22+'BP Financier'!$E$22+'BP Financier'!$F$22+'BP Financier'!$F$19+'BP Financier'!$F$16))*$V7213*Z7213/(1-$W7213)","v":{"v":137246.71202643178,"d":"137,247"}},{"$f":"'BP Financier'!$F$44*(('BP Financier'!$C$19+'BP Financier'!$D$19+'BP Financier'!$E$19+'BP Financier'!$F$19)/('BP Financier'!$C$16+'BP Financier'!$C$19+'BP Financier'!$D$16+'BP Financier'!$D$19+'BP Financier'!$E$16+'BP Financier'!$E$19+'BP Financier'!$C$22+'BP Financier'!$D$22+'BP Financier'!$E$22+'BP Financier'!$F$22+'BP Financier'!$F$19+'BP Financier'!$F$16))*$V7213*AA7213/(1-$W7213)","v":{"v":16956.56315426876,"d":"16,957"}},{"$f":"'BP Financier'!$F$44*(('BP Financier'!$C$19+'BP Financier'!$D$19+'BP Financier'!$E$19+'BP Financier'!$F$19)/('BP Financier'!$C$16+'BP Financier'!$C$19+'BP Financier'!$D$16+'BP Financier'!$D$19+'BP Financier'!$E$16+'BP Financier'!$E$19+'BP Financier'!$C$22+'BP Financier'!$D$22+'BP Financier'!$E$22+'BP Financier'!$F$22+'BP Financier'!$F$19+'BP Financier'!$F$16))*$V7213*AB7213/(1-$W7213)","v":{"v":8115.961851615815,"d":"8,116"}},null,{"v":0.01,"d":"1.00%"},{"$f":"Actif!$E$28/100","v":{"v":0.28900000000000003,"d":"28.90%"}},{"$f":"Actif!$E$30/100","v":{"v":0.09050000000000001,"d":"9.05%"}},{"$f":"Actif!$E$31/100","v":{"v":0.0605,"d":"6.05%"}},{"$f":"Actif!$E$32/100","v":{"v":0.47350000000000003,"d":"47.35%"}},{"$f":"Actif!$E$33/100","v":{"v":0.0585,"d":"5.85%"}},{"$f":"Actif!$E$29/100","v":{"v":0.027999999999999997,"d":"2.80%"}}]
[null,"#104",43,2030,"H","A_PER",{"v":0.44999999999999996,"d":"0.45"},{"v":0.38999999999999996,"d":"0.39"},0.6,0.6,85,0,{"$f":"ROUND(Primes!$P$7*V7214,0)","v":10},{"$f":"'BP Financier'!$F$33*(('BP Financier'!$C$19+'BP Financier'!$D$19+'BP Financier'!$E$19+'BP Financier'!$F$19)/('BP Financier'!$C$16+'BP Financier'!$C$19+'BP Financier'!$D$16+'BP Financier'!$D$19+'BP Financier'!$E$16+'BP Financier'!$E$19+'BP Financier'!$F$16+'BP Financier'!$F$19))*V7214","v":{"v":363297.7607432643,"d":"363,298"}},{"v":206087.45987495876,"d":"206,087"},{"$f":"'BP Financier'!$F$44*(('BP Financier'!$C$19+'BP Financier'!$D$19+'BP Financier'!$E$19+'BP Financier'!$F$19)/('BP Financier'!$C$16+'BP Financier'!$C$19+'BP Financier'!$D$16+'BP Financier'!$D$19+'BP Financier'!$E$16+'BP Financier'!$E$19+'BP Financier'!$C$22+'BP Financier'!$D$22+'BP Financier'!$E$22+'BP Financier'!$F$22+'BP Financier'!$F$19+'BP Financier'!$F$16))*$V7214*X7214/(1-$W7214)","v":{"v":26231.948127543983,"d":"26,232"}},{"$f":"'BP Financier'!$F$44*(('BP Financier'!$C$19+'BP Financier'!$D$19+'BP Financier'!$E$19+'BP Financier'!$F$19)/('BP Financier'!$C$16+'BP Financier'!$C$19+'BP Financier'!$D$16+'BP Financier'!$D$19+'BP Financier'!$E$16+'BP Financier'!$E$19+'BP Financier'!$C$22+'BP Financier'!$D$22+'BP Financier'!$E$22+'BP Financier'!$F$22+'BP Financier'!$F$19+'BP Financier'!$F$16))*$V7214*Y7214/(1-$W7214)","v":{"v":17536.27471509846,"d":"17,536"}},{"$f":"'BP Financier'!$F$44*(('BP Financier'!$C$19+'BP Financier'!$D$19+'BP Financier'!$E$19+'BP Financier'!$F$19)/('BP Financier'!$C$16+'BP Financier'!$C$19+'BP Financier'!$D$16+'BP Financier'!$D$19+'BP Financier'!$E$16+'BP Financier'!$E$19+'BP Financier'!$C$22+'BP Financier'!$D$22+'BP Financier'!$E$22+'BP Financier'!$F$22+'BP Financier'!$F$19+'BP Financier'!$F$16))*$V7214*Z7214/(1-$W7214)","v":{"v":137246.71202643178,"d":"137,247"}},{"$f":"'BP Financier'!$F$44*(('BP Financier'!$C$19+'BP Financier'!$D$19+'BP Financier'!$E$19+'BP Financier'!$F$19)/('BP Financier'!$C$16+'BP Financier'!$C$19+'BP Financier'!$D$16+'BP Financier'!$D$19+'BP Financier'!$E$16+'BP Financier'!$E$19+'BP Financier'!$C$22+'BP Financier'!$D$22+'BP Financier'!$E$22+'BP Financier'!$F$22+'BP Financier'!$F$19+'BP Financier'!$F$16))*$V7214*AA7214/(1-$W7214)","v":{"v":16956.56315426876,"d":"16,957"}},{"$f":"'BP Financier'!$F$44*(('BP Financier'!$C$19+'BP Financier'!$D$19+'BP Financier'!$E$19+'BP Financier'!$F$19)/('BP Financier'!$C$16+'BP Financier'!$C$19+'BP Financier'!$D$16+'BP Financier'!$D$19+'BP Financier'!$E$16+'BP Financier'!$E$19+'BP Financier'!$C$22+'BP Financier'!$D$22+'BP Financier'!$E$22+'BP Financier'!$F$22+'BP Financier'!$F$19+'BP Financier'!$F$16))*$V7214*AB7214/(1-$W7214)","v":{"v":8115.961851615815,"d":"8,116"}},null,{"v":0.01,"d":"1.00%"},{"$f":"Actif!$E$28/100","v":{"v":0.28900000000000003,"d":"28.90%"}},{"$f":"Actif!$E$30/100","v":{"v":0.09050000000000001,"d":"9.05%"}},{"$f":"Actif!$E$31/100","v":{"v":0.0605,"d":"6.05%"}},{"$f":"Actif!$E$32/100","v":{"v":0.47350000000000003,"d":"47.35%"}},{"$f":"Actif!$E$33/100","v":{"v":0.0585,"d":"5.85%"}},{"$f":"Actif!$E$29/100","v":{"v":0.027999999999999997,"d":"2.80%"}}]
[null,"#105",44,2026,"F","A_PER",{"v":0.44999999999999996,"d":"0.45"},{"v":0.38999999999999996,"d":"0.39"},0.6,0.6,85,0,{"$f":"ROUND(Primes!$P$7*V7215,0)","v":13},{"$f":"'BP Financier'!$F$33*(('BP Financier'!$C$19+'BP Financier'!$D$19+'BP Financier'!$E$19+'BP Financier'!$F$19)/('BP Financier'!$C$16+'BP Financier'!$C$19+'BP Financier'!$D$16+'BP Financier'!$D$19+'BP Financier'!$E$16+'BP Financier'!$E$19+'BP Financier'!$F$16+'BP Financier'!$F$19))*V7215","v":{"v":454122.20092908037,"d":"454,122"}},{"v":257609.32484369847,"d":"257,609"},{"$f":"'BP Financier'!$F$44*(('BP Financier'!$C$19+'BP Financier'!$D$19+'BP Financier'!$E$19+'BP Financier'!$F$19)/('BP Financier'!$C$16+'BP Financier'!$C$19+'BP Financier'!$D$16+'BP Financier'!$D$19+'BP Financier'!$E$16+'BP Financier'!$E$19+'BP Financier'!$C$22+'BP Financier'!$D$22+'BP Financier'!$E$22+'BP Financier'!$F$22+'BP Financier'!$F$19+'BP Financier'!$F$16))*$V7215*X7215/(1-$W7215)","v":{"v":32789.93515942998,"d":"32,790"}},{"$f":"'BP Financier'!$F$44*(('BP Financier'!$C$19+'BP Financier'!$D$19+'BP Financier'!$E$19+'BP Financier'!$F$19)/('BP Financier'!$C$16+'BP Financier'!$C$19+'BP Financier'!$D$16+'BP Financier'!$D$19+'BP Financier'!$E$16+'BP Financier'!$E$19+'BP Financier'!$C$22+'BP Financier'!$D$22+'BP Financier'!$E$22+'BP Financier'!$F$22+'BP Financier'!$F$19+'BP Financier'!$F$16))*$V7215*Y7215/(1-$W7215)","v":{"v":21920.343393873078,"d":"21,920"}},{"$f":"'BP Financier'!$F$44*(('BP Financier'!$C$19+'BP Financier'!$D$19+'BP Financier'!$E$19+'BP Financier'!$F$19)/('BP Financier'!$C$16+'BP Financier'!$C$19+'BP Financier'!$D$16+'BP Financier'!$D$19+'BP Financier'!$E$16+'BP Financier'!$E$19+'BP Financier'!$C$22+'BP Financier'!$D$22+'BP Financier'!$E$22+'BP Financier'!$F$22+'BP Financier'!$F$19+'BP Financier'!$F$16))*$V7215*Z7215/(1-$W7215)","v":{"v":171558.39003303973,"d":"171,558"}},{"$f":"'BP Financier'!$F$44*(('BP Financier'!$C$19+'BP Financier'!$D$19+'BP Financier'!$E$19+'BP Financier'!$F$19)/('BP Financier'!$C$16+'BP Financier'!$C$19+'BP Financier'!$D$16+'BP Financier'!$D$19+'BP Financier'!$E$16+'BP Financier'!$E$19+'BP Financier'!$C$22+'BP Financier'!$D$22+'BP Financier'!$E$22+'BP Financier'!$F$22+'BP Financier'!$F$19+'BP Financier'!$F$16))*$V7215*AA7215/(1-$W7215)","v":{"v":21195.703942835953,"d":"21,196"}},{"$f":"'BP Financier'!$F$44*(('BP Financier'!$C$19+'BP Financier'!$D$19+'BP Financier'!$E$19+'BP Financier'!$F$19)/('BP Financier'!$C$16+'BP Financier'!$C$19+'BP Financier'!$D$16+'BP Financier'!$D$19+'BP Financier'!$E$16+'BP Financier'!$E$19+'BP Financier'!$C$22+'BP Financier'!$D$22+'BP Financier'!$E$22+'BP Financier'!$F$22+'BP Financier'!$F$19+'BP Financier'!$F$16))*$V7215*AB7215/(1-$W7215)","v":{"v":10144.95231451977,"d":"10,145"}},null,{"v":0.0125,"d":"1.25%"},{"$f":"Actif!$E$28/100","v":{"v":0.28900000000000003,"d":"28.90%"}},{"$f":"Actif!$E$30/100","v":{"v":0.09050000000000001,"d":"9.05%"}},{"$f":"Actif!$E$31/100","v":{"v":0.0605,"d":"6.05%"}},{"$f":"Actif!$E$32/100","v":{"v":0.47350000000000003,"d":"47.35%"}},{"$f":"Actif!$E$33/100","v":{"v":0.0585,"d":"5.85%"}},{"$f":"Actif!$E$29/100","v":{"v":0.027999999999999997,"d":"2.80%"}}]
[null,"#106",44,2028,"F","A_PER",{"v":0.44999999999999996,"d":"0.45"},{"v":0.38999999999999996,"d":"0.39"},0.6,0.6,85,0,{"$f":"ROUND(Primes!$P$7*V7216,0)","v":13},{"$f":"'BP Financier'!$F$33*(('BP Financier'!$C$19+'BP Financier'!$D$19+'BP Financier'!$E$19+'BP Financier'!$F$19)/('BP Financier'!$C$16+'BP Financier'!$C$19+'BP Financier'!$D$16+'BP Financier'!$D$19+'BP Financier'!$E$16+'BP Financier'!$E$19+'BP Financier'!$F$16+'BP Financier'!$F$19))*V7216","v":{"v":454122.20092908037,"d":"454,122"}},{"v":257609.32484369847,"d":"257,609"},{"$f":"'BP Financier'!$F$44*(('BP Financier'!$C$19+'BP Financier'!$D$19+'BP Financier'!$E$19+'BP Financier'!$F$19)/('BP Financier'!$C$16+'BP Financier'!$C$19+'BP Financier'!$D$16+'BP Financier'!$D$19+'BP Financier'!$E$16+'BP Financier'!$E$19+'BP Financier'!$C$22+'BP Financier'!$D$22+'BP Financier'!$E$22+'BP Financier'!$F$22+'BP Financier'!$F$19+'BP Financier'!$F$16))*$V7216*X7216/(1-$W7216)","v":{"v":32789.93515942998,"d":"32,790"}},{"$f":"'BP Financier'!$F$44*(('BP Financier'!$C$19+'BP Financier'!$D$19+'BP Financier'!$E$19+'BP Financier'!$F$19)/('BP Financier'!$C$16+'BP Financier'!$C$19+'BP Financier'!$D$16+'BP Financier'!$D$19+'BP Financier'!$E$16+'BP Financier'!$E$19+'BP Financier'!$C$22+'BP Financier'!$D$22+'BP Financier'!$E$22+'BP Financier'!$F$22+'BP Financier'!$F$19+'BP Financier'!$F$16))*$V7216*Y7216/(1-$W7216)","v":{"v":21920.343393873078,"d":"21,920"}},{"$f":"'BP Financier'!$F$44*(('BP Financier'!$C$19+'BP Financier'!$D$19+'BP Financier'!$E$19+'BP Financier'!$F$19)/('BP Financier'!$C$16+'BP Financier'!$C$19+'BP Financier'!$D$16+'BP Financier'!$D$19+'BP Financier'!$E$16+'BP Financier'!$E$19+'BP Financier'!$C$22+'BP Financier'!$D$22+'BP Financier'!$E$22+'BP Financier'!$F$22+'BP Financier'!$F$19+'BP Financier'!$F$16))*$V7216*Z7216/(1-$W7216)","v":{"v":171558.39003303973,"d":"171,558"}},{"$f":"'BP Financier'!$F$44*(('BP Financier'!$C$19+'BP Financier'!$D$19+'BP Financier'!$E$19+'BP Financier'!$F$19)/('BP Financier'!$C$16+'BP Financier'!$C$19+'BP Financier'!$D$16+'BP Financier'!$D$19+'BP Financier'!$E$16+'BP Financier'!$E$19+'BP Financier'!$C$22+'BP Financier'!$D$22+'BP Financier'!$E$22+'BP Financier'!$F$22+'BP Financier'!$F$19+'BP Financier'!$F$16))*$V7216*AA7216/(1-$W7216)","v":{"v":21195.703942835953,"d":"21,196"}},{"$f":"'BP Financier'!$F$44*(('BP Financier'!$C$19+'BP Financier'!$D$19+'BP Financier'!$E$19+'BP Financier'!$F$19)/('BP Financier'!$C$16+'BP Financier'!$C$19+'BP Financier'!$D$16+'BP Financier'!$D$19+'BP Financier'!$E$16+'BP Financier'!$E$19+'BP Financier'!$C$22+'BP Financier'!$D$22+'BP Financier'!$E$22+'BP Financier'!$F$22+'BP Financier'!$F$19+'BP Financier'!$F$16))*$V7216*AB7216/(1-$W7216)","v":{"v":10144.95231451977,"d":"10,145"}},null,{"v":0.0125,"d":"1.25%"},{"$f":"Actif!$E$28/100","v":{"v":0.28900000000000003,"d":"28.90%"}},{"$f":"Actif!$E$30/100","v":{"v":0.09050000000000001,"d":"9.05%"}},{"$f":"Actif!$E$31/100","v":{"v":0.0605,"d":"6.05%"}},{"$f":"Actif!$E$32/100","v":{"v":0.47350000000000003,"d":"47.35%"}},{"$f":"Actif!$E$33/100","v":{"v":0.0585,"d":"5.85%"}},{"$f":"Actif!$E$29/100","v":{"v":0.027999999999999997,"d":"2.80%"}}]
[null,"#107",44,2029,"F","A_PER",{"v":0.44999999999999996,"d":"0.45"},{"v":0.38999999999999996,"d":"0.39"},0.6,0.6,85,0,{"$f":"ROUND(Primes!$P$7*V7217,0)","v":13},{"$f":"'BP Financier'!$F$33*(('BP Financier'!$C$19+'BP Financier'!$D$19+'BP Financier'!$E$19+'BP Financier'!$F$19)/('BP Financier'!$C$16+'BP Financier'!$C$19+'BP Financier'!$D$16+'BP Financier'!$D$19+'BP Financier'!$E$16+'BP Financier'!$E$19+'BP Financier'!$F$16+'BP Financier'!$F$19))*V7217","v":{"v":454122.20092908037,"d":"454,122"}},{"v":257609.32484369847,"d":"257,609"},{"$f":"'BP Financier'!$F$44*(('BP Financier'!$C$19+'BP Financier'!$D$19+'BP Financier'!$E$19+'BP Financier'!$F$19)/('BP Financier'!$C$16+'BP Financier'!$C$19+'BP Financier'!$D$16+'BP Financier'!$D$19+'BP Financier'!$E$16+'BP Financier'!$E$19+'BP Financier'!$C$22+'BP Financier'!$D$22+'BP Financier'!$E$22+'BP Financier'!$F$22+'BP Financier'!$F$19+'BP Financier'!$F$16))*$V7217*X7217/(1-$W7217)","v":{"v":32789.93515942998,"d":"32,790"}},{"$f":"'BP Financier'!$F$44*(('BP Financier'!$C$19+'BP Financier'!$D$19+'BP Financier'!$E$19+'BP Financier'!$F$19)/('BP Financier'!$C$16+'BP Financier'!$C$19+'BP Financier'!$D$16+'BP Financier'!$D$19+'BP Financier'!$E$16+'BP Financier'!$E$19+'BP Financier'!$C$22+'BP Financier'!$D$22+'BP Financier'!$E$22+'BP Financier'!$F$22+'BP Financier'!$F$19+'BP Financier'!$F$16))*$V7217*Y7217/(1-$W7217)","v":{"v":21920.343393873078,"d":"21,920"}},{"$f":"'BP Financier'!$F$44*(('BP Financier'!$C$19+'BP Financier'!$D$19+'BP Financier'!$E$19+'BP Financier'!$F$19)/('BP Financier'!$C$16+'BP Financier'!$C$19+'BP Financier'!$D$16+'BP Financier'!$D$19+'BP Financier'!$E$16+'BP Financier'!$E$19+'BP Financier'!$C$22+'BP Financier'!$D$22+'BP Financier'!$E$22+'BP Financier'!$F$22+'BP Financier'!$F$19+'BP Financier'!$F$16))*$V7217*Z7217/(1-$W7217)","v":{"v":171558.39003303973,"d":"171,558"}},{"$f":"'BP Financier'!$F$44*(('BP Financier'!$C$19+'BP Financier'!$D$19+'BP Financier'!$E$19+'BP Financier'!$F$19)/('BP Financier'!$C$16+'BP Financier'!$C$19+'BP Financier'!$D$16+'BP Financier'!$D$19+'BP Financier'!$E$16+'BP Financier'!$E$19+'BP Financier'!$C$22+'BP Financier'!$D$22+'BP Financier'!$E$22+'BP Financier'!$F$22+'BP Financier'!$F$19+'BP Financier'!$F$16))*$V7217*AA7217/(1-$W7217)","v":{"v":21195.703942835953,"d":"21,196"}},{"$f":"'BP Financier'!$F$44*(('BP Financier'!$C$19+'BP Financier'!$D$19+'BP Financier'!$E$19+'BP Financier'!$F$19)/('BP Financier'!$C$16+'BP Financier'!$C$19+'BP Financier'!$D$16+'BP Financier'!$D$19+'BP Financier'!$E$16+'BP Financier'!$E$19+'BP Financier'!$C$22+'BP Financier'!$D$22+'BP Financier'!$E$22+'BP Financier'!$F$22+'BP Financier'!$F$19+'BP Financier'!$F$16))*$V7217*AB7217/(1-$W7217)","v":{"v":10144.95231451977,"d":"10,145"}},null,{"v":0.0125,"d":"1.25%"},{"$f":"Actif!$E$28/100","v":{"v":0.28900000000000003,"d":"28.90%"}},{"$f":"Actif!$E$30/100","v":{"v":0.09050000000000001,"d":"9.05%"}},{"$f":"Actif!$E$31/100","v":{"v":0.0605,"d":"6.05%"}},{"$f":"Actif!$E$32/100","v":{"v":0.47350000000000003,"d":"47.35%"}},{"$f":"Actif!$E$33/100","v":{"v":0.0585,"d":"5.85%"}},{"$f":"Actif!$E$29/100","v":{"v":0.027999999999999997,"d":"2.80%"}}]
[null,"#108",44,2030,"F","A_PER",{"v":0.44999999999999996,"d":"0.45"},{"v":0.38999999999999996,"d":"0.39"},0.6,0.6,85,0,{"$f":"ROUND(Primes!$P$7*V7218,0)","v":13},{"$f":"'BP Financier'!$F$33*(('BP Financier'!$C$19+'BP Financier'!$D$19+'BP Financier'!$E$19+'BP Financier'!$F$19)/('BP Financier'!$C$16+'BP Financier'!$C$19+'BP Financier'!$D$16+'BP Financier'!$D$19+'BP Financier'!$E$16+'BP Financier'!$E$19+'BP Financier'!$F$16+'BP Financier'!$F$19))*V7218","v":{"v":454122.20092908037,"d":"454,122"}},{"v":257609.32484369847,"d":"257,609"},{"$f":"'BP Financier'!$F$44*(('BP Financier'!$C$19+'BP Financier'!$D$19+'BP Financier'!$E$19+'BP Financier'!$F$19)/('BP Financier'!$C$16+'BP Financier'!$C$19+'BP Financier'!$D$16+'BP Financier'!$D$19+'BP Financier'!$E$16+'BP Financier'!$E$19+'BP Financier'!$C$22+'BP Financier'!$D$22+'BP Financier'!$E$22+'BP Financier'!$F$22+'BP Financier'!$F$19+'BP Financier'!$F$16))*$V7218*X7218/(1-$W7218)","v":{"v":32789.93515942998,"d":"32,790"}},{"$f":"'BP Financier'!$F$44*(('BP Financier'!$C$19+'BP Financier'!$D$19+'BP Financier'!$E$19+'BP Financier'!$F$19)/('BP Financier'!$C$16+'BP Financier'!$C$19+'BP Financier'!$D$16+'BP Financier'!$D$19+'BP Financier'!$E$16+'BP Financier'!$E$19+'BP Financier'!$C$22+'BP Financier'!$D$22+'BP Financier'!$E$22+'BP Financier'!$F$22+'BP Financier'!$F$19+'BP Financier'!$F$16))*$V7218*Y7218/(1-$W7218)","v":{"v":21920.343393873078,"d":"21,920"}},{"$f":"'BP Financier'!$F$44*(('BP Financier'!$C$19+'BP Financier'!$D$19+'BP Financier'!$E$19+'BP Financier'!$F$19)/('BP Financier'!$C$16+'BP Financier'!$C$19+'BP Financier'!$D$16+'BP Financier'!$D$19+'BP Financier'!$E$16+'BP Financier'!$E$19+'BP Financier'!$C$22+'BP Financier'!$D$22+'BP Financier'!$E$22+'BP Financier'!$F$22+'BP Financier'!$F$19+'BP Financier'!$F$16))*$V7218*Z7218/(1-$W7218)","v":{"v":171558.39003303973,"d":"171,558"}},{"$f":"'BP Financier'!$F$44*(('BP Financier'!$C$19+'BP Financier'!$D$19+'BP Financier'!$E$19+'BP Financier'!$F$19)/('BP Financier'!$C$16+'BP Financier'!$C$19+'BP Financier'!$D$16+'BP Financier'!$D$19+'BP Financier'!$E$16+'BP Financier'!$E$19+'BP Financier'!$C$22+'BP Financier'!$D$22+'BP Financier'!$E$22+'BP Financier'!$F$22+'BP Financier'!$F$19+'BP Financier'!$F$16))*$V7218*AA7218/(1-$W7218)","v":{"v":21195.703942835953,"d":"21,196"}},{"$f":"'BP Financier'!$F$44*(('BP Financier'!$C$19+'BP Financier'!$D$19+'BP Financier'!$E$19+'BP Financier'!$F$19)/('BP Financier'!$C$16+'BP Financier'!$C$19+'BP Financier'!$D$16+'BP Financier'!$D$19+'BP Financier'!$E$16+'BP Financier'!$E$19+'BP Financier'!$C$22+'BP Financier'!$D$22+'BP Financier'!$E$22+'BP Financier'!$F$22+'BP Financier'!$F$19+'BP Financier'!$F$16))*$V7218*AB7218/(1-$W7218)","v":{"v":10144.95231451977,"d":"10,145"}},null,{"v":0.0125,"d":"1.25%"},{"$f":"Actif!$E$28/100","v":{"v":0.28900000000000003,"d":"28.90%"}},{"$f":"Actif!$E$30/100","v":{"v":0.09050000000000001,"d":"9.05%"}},{"$f":"Actif!$E$31/100","v":{"v":0.0605,"d":"6.05%"}},{"$f":"Actif!$E$32/100","v":{"v":0.47350000000000003,"d":"47.35%"}},{"$f":"Actif!$E$33/100","v":{"v":0.0585,"d":"5.85%"}},{"$f":"Actif!$E$29/100","v":{"v":0.027999999999999997,"d":"2.80%"}}]
[null,"#109",45,2026,"H","A_PER",{"v":0.44999999999999996,"d":"0.45"},{"v":0.38999999999999996,"d":"0.39"},0.6,0.6,85,0,{"$f":"ROUND(Primes!$P$7*V7219,0)","v":13},{"$f":"'BP Financier'!$F$33*(('BP Financier'!$C$19+'BP Financier'!$D$19+'BP Financier'!$E$19+'BP Financier'!$F$19)/('BP Financier'!$C$16+'BP Financier'!$C$19+'BP Financier'!$D$16+'BP Financier'!$D$19+'BP Financier'!$E$16+'BP Financier'!$E$19+'BP Financier'!$F$16+'BP Financier'!$F$19))*V7219","v":{"v":454122.20092908037,"d":"454,122"}},{"v":257609.32484369847,"d":"257,609"},{"$f":"'BP Financier'!$F$44*(('BP Financier'!$C$19+'BP Financier'!$D$19+'BP Financier'!$E$19+'BP Financier'!$F$19)/('BP Financier'!$C$16+'BP Financier'!$C$19+'BP Financier'!$D$16+'BP Financier'!$D$19+'BP Financier'!$E$16+'BP Financier'!$E$19+'BP Financier'!$C$22+'BP Financier'!$D$22+'BP Financier'!$E$22+'BP Financier'!$F$22+'BP Financier'!$F$19+'BP Financier'!$F$16))*$V7219*X7219/(1-$W7219)","v":{"v":32789.93515942998,"d":"32,790"}},{"$f":"'BP Financier'!$F$44*(('BP Financier'!$C$19+'BP Financier'!$D$19+'BP Financier'!$E$19+'BP Financier'!$F$19)/('BP Financier'!$C$16+'BP Financier'!$C$19+'BP Financier'!$D$16+'BP Financier'!$D$19+'BP Financier'!$E$16+'BP Financier'!$E$19+'BP Financier'!$C$22+'BP Financier'!$D$22+'BP Financier'!$E$22+'BP Financier'!$F$22+'BP Financier'!$F$19+'BP Financier'!$F$16))*$V7219*Y7219/(1-$W7219)","v":{"v":21920.343393873078,"d":"21,920"}},{"$f":"'BP Financier'!$F$44*(('BP Financier'!$C$19+'BP Financier'!$D$19+'BP Financier'!$E$19+'BP Financier'!$F$19)/('BP Financier'!$C$16+'BP Financier'!$C$19+'BP Financier'!$D$16+'BP Financier'!$D$19+'BP Financier'!$E$16+'BP Financier'!$E$19+'BP Financier'!$C$22+'BP Financier'!$D$22+'BP Financier'!$E$22+'BP Financier'!$F$22+'BP Financier'!$F$19+'BP Financier'!$F$16))*$V7219*Z7219/(1-$W7219)","v":{"v":171558.39003303973,"d":"171,558"}},{"$f":"'BP Financier'!$F$44*(('BP Financier'!$C$19+'BP Financier'!$D$19+'BP Financier'!$E$19+'BP Financier'!$F$19)/('BP Financier'!$C$16+'BP Financier'!$C$19+'BP Financier'!$D$16+'BP Financier'!$D$19+'BP Financier'!$E$16+'BP Financier'!$E$19+'BP Financier'!$C$22+'BP Financier'!$D$22+'BP Financier'!$E$22+'BP Financier'!$F$22+'BP Financier'!$F$19+'BP Financier'!$F$16))*$V7219*AA7219/(1-$W7219)","v":{"v":21195.703942835953,"d":"21,196"}},{"$f":"'BP Financier'!$F$44*(('BP Financier'!$C$19+'BP Financier'!$D$19+'BP Financier'!$E$19+'BP Financier'!$F$19)/('BP Financier'!$C$16+'BP Financier'!$C$19+'BP Financier'!$D$16+'BP Financier'!$D$19+'BP Financier'!$E$16+'BP Financier'!$E$19+'BP Financier'!$C$22+'BP Financier'!$D$22+'BP Financier'!$E$22+'BP Financier'!$F$22+'BP Financier'!$F$19+'BP Financier'!$F$16))*$V7219*AB7219/(1-$W7219)","v":{"v":10144.95231451977,"d":"10,145"}},null,{"v":0.0125,"d":"1.25%"},{"$f":"Actif!$E$28/100","v":{"v":0.28900000000000003,"d":"28.90%"}},{"$f":"Actif!$E$30/100","v":{"v":0.09050000000000001,"d":"9.05%"}},{"$f":"Actif!$E$31/100","v":{"v":0.0605,"d":"6.05%"}},{"$f":"Actif!$E$32/100","v":{"v":0.47350000000000003,"d":"47.35%"}},{"$f":"Actif!$E$33/100","v":{"v":0.0585,"d":"5.85%"}},{"$f":"Actif!$E$29/100","v":{"v":0.027999999999999997,"d":"2.80%"}}]
[null,"#110",45,2028,"H","A_PER",{"v":0.44999999999999996,"d":"0.45"},{"v":0.38999999999999996,"d":"0.39"},0.6,0.6,85,0,{"$f":"ROUND(Primes!$P$7*V7220,0)","v":13},{"$f":"'BP Financier'!$F$33*(('BP Financier'!$C$19+'BP Financier'!$D$19+'BP Financier'!$E$19+'BP Financier'!$F$19)/('BP Financier'!$C$16+'BP Financier'!$C$19+'BP Financier'!$D$16+'BP Financier'!$D$19+'BP Financier'!$E$16+'BP Financier'!$E$19+'BP Financier'!$F$16+'BP Financier'!$F$19))*V7220","v":{"v":454122.20092908037,"d":"454,122"}},{"v":257609.32484369847,"d":"257,609"},{"$f":"'BP Financier'!$F$44*(('BP Financier'!$C$19+'BP Financier'!$D$19+'BP Financier'!$E$19+'BP Financier'!$F$19)/('BP Financier'!$C$16+'BP Financier'!$C$19+'BP Financier'!$D$16+'BP Financier'!$D$19+'BP Financier'!$E$16+'BP Financier'!$E$19+'BP Financier'!$C$22+'BP Financier'!$D$22+'BP Financier'!$E$22+'BP Financier'!$F$22+'BP Financier'!$F$19+'BP Financier'!$F$16))*$V7220*X7220/(1-$W7220)","v":{"v":32789.93515942998,"d":"32,790"}},{"$f":"'BP Financier'!$F$44*(('BP Financier'!$C$19+'BP Financier'!$D$19+'BP Financier'!$E$19+'BP Financier'!$F$19)/('BP Financier'!$C$16+'BP Financier'!$C$19+'BP Financier'!$D$16+'BP Financier'!$D$19+'BP Financier'!$E$16+'BP Financier'!$E$19+'BP Financier'!$C$22+'BP Financier'!$D$22+'BP Financier'!$E$22+'BP Financier'!$F$22+'BP Financier'!$F$19+'BP Financier'!$F$16))*$V7220*Y7220/(1-$W7220)","v":{"v":21920.343393873078,"d":"21,920"}},{"$f":"'BP Financier'!$F$44*(('BP Financier'!$C$19+'BP Financier'!$D$19+'BP Financier'!$E$19+'BP Financier'!$F$19)/('BP Financier'!$C$16+'BP Financier'!$C$19+'BP Financier'!$D$16+'BP Financier'!$D$19+'BP Financier'!$E$16+'BP Financier'!$E$19+'BP Financier'!$C$22+'BP Financier'!$D$22+'BP Financier'!$E$22+'BP Financier'!$F$22+'BP Financier'!$F$19+'BP Financier'!$F$16))*$V7220*Z7220/(1-$W7220)","v":{"v":171558.39003303973,"d":"171,558"}},{"$f":"'BP Financier'!$F$44*(('BP Financier'!$C$19+'BP Financier'!$D$19+'BP Financier'!$E$19+'BP Financier'!$F$19)/('BP Financier'!$C$16+'BP Financier'!$C$19+'BP Financier'!$D$16+'BP Financier'!$D$19+'BP Financier'!$E$16+'BP Financier'!$E$19+'BP Financier'!$C$22+'BP Financier'!$D$22+'BP Financier'!$E$22+'BP Financier'!$F$22+'BP Financier'!$F$19+'BP Financier'!$F$16))*$V7220*AA7220/(1-$W7220)","v":{"v":21195.703942835953,"d":"21,196"}},{"$f":"'BP Financier'!$F$44*(('BP Financier'!$C$19+'BP Financier'!$D$19+'BP Financier'!$E$19+'BP Financier'!$F$19)/('BP Financier'!$C$16+'BP Financier'!$C$19+'BP Financier'!$D$16+'BP Financier'!$D$19+'BP Financier'!$E$16+'BP Financier'!$E$19+'BP Financier'!$C$22+'BP Financier'!$D$22+'BP Financier'!$E$22+'BP Financier'!$F$22+'BP Financier'!$F$19+'BP Financier'!$F$16))*$V7220*AB7220/(1-$W7220)","v":{"v":10144.95231451977,"d":"10,145"}},null,{"v":0.0125,"d":"1.25%"},{"$f":"Actif!$E$28/100","v":{"v":0.28900000000000003,"d":"28.90%"}},{"$f":"Actif!$E$30/100","v":{"v":0.09050000000000001,"d":"9.05%"}},{"$f":"Actif!$E$31/100","v":{"v":0.0605,"d":"6.05%"}},{"$f":"Actif!$E$32/100","v":{"v":0.47350000000000003,"d":"47.35%"}},{"$f":"Actif!$E$33/100","v":{"v":0.0585,"d":"5.85%"}},{"$f":"Actif!$E$29/100","v":{"v":0.027999999999999997,"d":"2.80%"}}]
[null,"#111",45,2029,"H","A_PER",{"v":0.44999999999999996,"d":"0.45"},{"v":0.38999999999999996,"d":"0.39"},0.6,0.6,85,0,{"$f":"ROUND(Primes!$P$7*V7221,0)","v":13},{"$f":"'BP Financier'!$F$33*(('BP Financier'!$C$19+'BP Financier'!$D$19+'BP Financier'!$E$19+'BP Financier'!$F$19)/('BP Financier'!$C$16+'BP Financier'!$C$19+'BP Financier'!$D$16+'BP Financier'!$D$19+'BP Financier'!$E$16+'BP Financier'!$E$19+'BP Financier'!$F$16+'BP Financier'!$F$19))*V7221","v":{"v":454122.20092908037,"d":"454,122"}},{"v":257609.32484369847,"d":"257,609"},{"$f":"'BP Financier'!$F$44*(('BP Financier'!$C$19+'BP Financier'!$D$19+'BP Financier'!$E$19+'BP Financier'!$F$19)/('BP Financier'!$C$16+'BP Financier'!$C$19+'BP Financier'!$D$16+'BP Financier'!$D$19+'BP Financier'!$E$16+'BP Financier'!$E$19+'BP Financier'!$C$22+'BP Financier'!$D$22+'BP Financier'!$E$22+'BP Financier'!$F$22+'BP Financier'!$F$19+'BP Financier'!$F$16))*$V7221*X7221/(1-$W7221)","v":{"v":32789.93515942998,"d":"32,790"}},{"$f":"'BP Financier'!$F$44*(('BP Financier'!$C$19+'BP Financier'!$D$19+'BP Financier'!$E$19+'BP Financier'!$F$19)/('BP Financier'!$C$16+'BP Financier'!$C$19+'BP Financier'!$D$16+'BP Financier'!$D$19+'BP Financier'!$E$16+'BP Financier'!$E$19+'BP Financier'!$C$22+'BP Financier'!$D$22+'BP Financier'!$E$22+'BP Financier'!$F$22+'BP Financier'!$F$19+'BP Financier'!$F$16))*$V7221*Y7221/(1-$W7221)","v":{"v":21920.343393873078,"d":"21,920"}},{"$f":"'BP Financier'!$F$44*(('BP Financier'!$C$19+'BP Financier'!$D$19+'BP Financier'!$E$19+'BP Financier'!$F$19)/('BP Financier'!$C$16+'BP Financier'!$C$19+'BP Financier'!$D$16+'BP Financier'!$D$19+'BP Financier'!$E$16+'BP Financier'!$E$19+'BP Financier'!$C$22+'BP Financier'!$D$22+'BP Financier'!$E$22+'BP Financier'!$F$22+'BP Financier'!$F$19+'BP Financier'!$F$16))*$V7221*Z7221/(1-$W7221)","v":{"v":171558.39003303973,"d":"171,558"}},{"$f":"'BP Financier'!$F$44*(('BP Financier'!$C$19+'BP Financier'!$D$19+'BP Financier'!$E$19+'BP Financier'!$F$19)/('BP Financier'!$C$16+'BP Financier'!$C$19+'BP Financier'!$D$16+'BP Financier'!$D$19+'BP Financier'!$E$16+'BP Financier'!$E$19+'BP Financier'!$C$22+'BP Financier'!$D$22+'BP Financier'!$E$22+'BP Financier'!$F$22+'BP Financier'!$F$19+'BP Financier'!$F$16))*$V7221*AA7221/(1-$W7221)","v":{"v":21195.703942835953,"d":"21,196"}},{"$f":"'BP Financier'!$F$44*(('BP Financier'!$C$19+'BP Financier'!$D$19+'BP Financier'!$E$19+'BP Financier'!$F$19)/('BP Financier'!$C$16+'BP Financier'!$C$19+'BP Financier'!$D$16+'BP Financier'!$D$19+'BP Financier'!$E$16+'BP Financier'!$E$19+'BP Financier'!$C$22+'BP Financier'!$D$22+'BP Financier'!$E$22+'BP Financier'!$F$22+'BP Financier'!$F$19+'BP Financier'!$F$16))*$V7221*AB7221/(1-$W7221)","v":{"v":10144.95231451977,"d":"10,145"}},null,{"v":0.0125,"d":"1.25%"},{"$f":"Actif!$E$28/100","v":{"v":0.28900000000000003,"d":"28.90%"}},{"$f":"Actif!$E$30/100","v":{"v":0.09050000000000001,"d":"9.05%"}},{"$f":"Actif!$E$31/100","v":{"v":0.0605,"d":"6.05%"}},{"$f":"Actif!$E$32/100","v":{"v":0.47350000000000003,"d":"47.35%"}},{"$f":"Actif!$E$33/100","v":{"v":0.0585,"d":"5.85%"}},{"$f":"Actif!$E$29/100","v":{"v":0.027999999999999997,"d":"2.80%"}}]
[null,"#112",45,2030,"H","A_PER",{"v":0.44999999999999996,"d":"0.45"},{"v":0.38999999999999996,"d":"0.39"},0.6,0.6,85,0,{"$f":"ROUND(Primes!$P$7*V7222,0)","v":13},{"$f":"'BP Financier'!$F$33*(('BP Financier'!$C$19+'BP Financier'!$D$19+'BP Financier'!$E$19+'BP Financier'!$F$19)/('BP Financier'!$C$16+'BP Financier'!$C$19+'BP Financier'!$D$16+'BP Financier'!$D$19+'BP Financier'!$E$16+'BP Financier'!$E$19+'BP Financier'!$F$16+'BP Financier'!$F$19))*V7222","v":{"v":454122.20092908037,"d":"454,122"}},{"v":257609.32484369847,"d":"257,609"},{"$f":"'BP Financier'!$F$44*(('BP Financier'!$C$19+'BP Financier'!$D$19+'BP Financier'!$E$19+'BP Financier'!$F$19)/('BP Financier'!$C$16+'BP Financier'!$C$19+'BP Financier'!$D$16+'BP Financier'!$D$19+'BP Financier'!$E$16+'BP Financier'!$E$19+'BP Financier'!$C$22+'BP Financier'!$D$22+'BP Financier'!$E$22+'BP Financier'!$F$22+'BP Financier'!$F$19+'BP Financier'!$F$16))*$V7222*X7222/(1-$W7222)","v":{"v":32789.93515942998,"d":"32,790"}},{"$f":"'BP Financier'!$F$44*(('BP Financier'!$C$19+'BP Financier'!$D$19+'BP Financier'!$E$19+'BP Financier'!$F$19)/('BP Financier'!$C$16+'BP Financier'!$C$19+'BP Financier'!$D$16+'BP Financier'!$D$19+'BP Financier'!$E$16+'BP Financier'!$E$19+'BP Financier'!$C$22+'BP Financier'!$D$22+'BP Financier'!$E$22+'BP Financier'!$F$22+'BP Financier'!$F$19+'BP Financier'!$F$16))*$V7222*Y7222/(1-$W7222)","v":{"v":21920.343393873078,"d":"21,920"}},{"$f":"'BP Financier'!$F$44*(('BP Financier'!$C$19+'BP Financier'!$D$19+'BP Financier'!$E$19+'BP Financier'!$F$19)/('BP Financier'!$C$16+'BP Financier'!$C$19+'BP Financier'!$D$16+'BP Financier'!$D$19+'BP Financier'!$E$16+'BP Financier'!$E$19+'BP Financier'!$C$22+'BP Financier'!$D$22+'BP Financier'!$E$22+'BP Financier'!$F$22+'BP Financier'!$F$19+'BP Financier'!$F$16))*$V7222*Z7222/(1-$W7222)","v":{"v":171558.39003303973,"d":"171,558"}},{"$f":"'BP Financier'!$F$44*(('BP Financier'!$C$19+'BP Financier'!$D$19+'BP Financier'!$E$19+'BP Financier'!$F$19)/('BP Financier'!$C$16+'BP Financier'!$C$19+'BP Financier'!$D$16+'BP Financier'!$D$19+'BP Financier'!$E$16+'BP Financier'!$E$19+'BP Financier'!$C$22+'BP Financier'!$D$22+'BP Financier'!$E$22+'BP Financier'!$F$22+'BP Financier'!$F$19+'BP Financier'!$F$16))*$V7222*AA7222/(1-$W7222)","v":{"v":21195.703942835953,"d":"21,196"}},{"$f":"'BP Financier'!$F$44*(('BP Financier'!$C$19+'BP Financier'!$D$19+'BP Financier'!$E$19+'BP Financier'!$F$19)/('BP Financier'!$C$16+'BP Financier'!$C$19+'BP Financier'!$D$16+'BP Financier'!$D$19+'BP Financier'!$E$16+'BP Financier'!$E$19+'BP Financier'!$C$22+'BP Financier'!$D$22+'BP Financier'!$E$22+'BP Financier'!$F$22+'BP Financier'!$F$19+'BP Financier'!$F$16))*$V7222*AB7222/(1-$W7222)","v":{"v":10144.95231451977,"d":"10,145"}},null,{"v":0.0125,"d":"1.25%"},{"$f":"Actif!$E$28/100","v":{"v":0.28900000000000003,"d":"28.90%"}},{"$f":"Actif!$E$30/100","v":{"v":0.09050000000000001,"d":"9.05%"}},{"$f":"Actif!$E$31/100","v":{"v":0.0605,"d":"6.05%"}},{"$f":"Actif!$E$32/100","v":{"v":0.47350000000000003,"d":"47.35%"}},{"$f":"Actif!$E$33/100","v":{"v":0.0585,"d":"5.85%"}},{"$f":"Actif!$E$29/100","v":{"v":0.027999999999999997,"d":"2.80%"}}]
[null,"#113",46,2026,"H","A_PER",{"v":0.44999999999999996,"d":"0.45"},{"v":0.38999999999999996,"d":"0.39"},0.6,0.6,85,0,{"$f":"ROUND(Primes!$P$7*V7223,0)","v":13},{"$f":"'BP Financier'!$F$33*(('BP Financier'!$C$19+'BP Financier'!$D$19+'BP Financier'!$E$19+'BP Financier'!$F$19)/('BP Financier'!$C$16+'BP Financier'!$C$19+'BP Financier'!$D$16+'BP Financier'!$D$19+'BP Financier'!$E$16+'BP Financier'!$E$19+'BP Financier'!$F$16+'BP Financier'!$F$19))*V7223","v":{"v":454122.20092908037,"d":"454,122"}},{"v":257609.32484369847,"d":"257,609"},{"$f":"'BP Financier'!$F$44*(('BP Financier'!$C$19+'BP Financier'!$D$19+'BP Financier'!$E$19+'BP Financier'!$F$19)/('BP Financier'!$C$16+'BP Financier'!$C$19+'BP Financier'!$D$16+'BP Financier'!$D$19+'BP Financier'!$E$16+'BP Financier'!$E$19+'BP Financier'!$C$22+'BP Financier'!$D$22+'BP Financier'!$E$22+'BP Financier'!$F$22+'BP Financier'!$F$19+'BP Financier'!$F$16))*$V7223*X7223/(1-$W7223)","v":{"v":32789.93515942998,"d":"32,790"}},{"$f":"'BP Financier'!$F$44*(('BP Financier'!$C$19+'BP Financier'!$D$19+'BP Financier'!$E$19+'BP Financier'!$F$19)/('BP Financier'!$C$16+'BP Financier'!$C$19+'BP Financier'!$D$16+'BP Financier'!$D$19+'BP Financier'!$E$16+'BP Financier'!$E$19+'BP Financier'!$C$22+'BP Financier'!$D$22+'BP Financier'!$E$22+'BP Financier'!$F$22+'BP Financier'!$F$19+'BP Financier'!$F$16))*$V7223*Y7223/(1-$W7223)","v":{"v":21920.343393873078,"d":"21,920"}},{"$f":"'BP Financier'!$F$44*(('BP Financier'!$C$19+'BP Financier'!$D$19+'BP Financier'!$E$19+'BP Financier'!$F$19)/('BP Financier'!$C$16+'BP Financier'!$C$19+'BP Financier'!$D$16+'BP Financier'!$D$19+'BP Financier'!$E$16+'BP Financier'!$E$19+'BP Financier'!$C$22+'BP Financier'!$D$22+'BP Financier'!$E$22+'BP Financier'!$F$22+'BP Financier'!$F$19+'BP Financier'!$F$16))*$V7223*Z7223/(1-$W7223)","v":{"v":171558.39003303973,"d":"171,558"}},{"$f":"'BP Financier'!$F$44*(('BP Financier'!$C$19+'BP Financier'!$D$19+'BP Financier'!$E$19+'BP Financier'!$F$19)/('BP Financier'!$C$16+'BP Financier'!$C$19+'BP Financier'!$D$16+'BP Financier'!$D$19+'BP Financier'!$E$16+'BP Financier'!$E$19+'BP Financier'!$C$22+'BP Financier'!$D$22+'BP Financier'!$E$22+'BP Financier'!$F$22+'BP Financier'!$F$19+'BP Financier'!$F$16))*$V7223*AA7223/(1-$W7223)","v":{"v":21195.703942835953,"d":"21,196"}},{"$f":"'BP Financier'!$F$44*(('BP Financier'!$C$19+'BP Financier'!$D$19+'BP Financier'!$E$19+'BP Financier'!$F$19)/('BP Financier'!$C$16+'BP Financier'!$C$19+'BP Financier'!$D$16+'BP Financier'!$D$19+'BP Financier'!$E$16+'BP Financier'!$E$19+'BP Financier'!$C$22+'BP Financier'!$D$22+'BP Financier'!$E$22+'BP Financier'!$F$22+'BP Financier'!$F$19+'BP Financier'!$F$16))*$V7223*AB7223/(1-$W7223)","v":{"v":10144.95231451977,"d":"10,145"}},null,{"v":0.0125,"d":"1.25%"},{"$f":"Actif!$E$28/100","v":{"v":0.28900000000000003,"d":"28.90%"}},{"$f":"Actif!$E$30/100","v":{"v":0.09050000000000001,"d":"9.05%"}},{"$f":"Actif!$E$31/100","v":{"v":0.0605,"d":"6.05%"}},{"$f":"Actif!$E$32/100","v":{"v":0.47350000000000003,"d":"47.35%"}},{"$f":"Actif!$E$33/100","v":{"v":0.0585,"d":"5.85%"}},{"$f":"Actif!$E$29/100","v":{"v":0.027999999999999997,"d":"2.80%"}}]
[null,"#114",46,2028,"H","A_PER",{"v":0.44999999999999996,"d":"0.45"},{"v":0.38999999999999996,"d":"0.39"},0.6,0.6,85,0,{"$f":"ROUND(Primes!$P$7*V7224,0)","v":13},{"$f":"'BP Financier'!$F$33*(('BP Financier'!$C$19+'BP Financier'!$D$19+'BP Financier'!$E$19+'BP Financier'!$F$19)/('BP Financier'!$C$16+'BP Financier'!$C$19+'BP Financier'!$D$16+'BP Financier'!$D$19+'BP Financier'!$E$16+'BP Financier'!$E$19+'BP Financier'!$F$16+'BP Financier'!$F$19))*V7224","v":{"v":454122.20092908037,"d":"454,122"}},{"v":257609.32484369847,"d":"257,609"},{"$f":"'BP Financier'!$F$44*(('BP Financier'!$C$19+'BP Financier'!$D$19+'BP Financier'!$E$19+'BP Financier'!$F$19)/('BP Financier'!$C$16+'BP Financier'!$C$19+'BP Financier'!$D$16+'BP Financier'!$D$19+'BP Financier'!$E$16+'BP Financier'!$E$19+'BP Financier'!$C$22+'BP Financier'!$D$22+'BP Financier'!$E$22+'BP Financier'!$F$22+'BP Financier'!$F$19+'BP Financier'!$F$16))*$V7224*X7224/(1-$W7224)","v":{"v":32789.93515942998,"d":"32,790"}},{"$f":"'BP Financier'!$F$44*(('BP Financier'!$C$19+'BP Financier'!$D$19+'BP Financier'!$E$19+'BP Financier'!$F$19)/('BP Financier'!$C$16+'BP Financier'!$C$19+'BP Financier'!$D$16+'BP Financier'!$D$19+'BP Financier'!$E$16+'BP Financier'!$E$19+'BP Financier'!$C$22+'BP Financier'!$D$22+'BP Financier'!$E$22+'BP Financier'!$F$22+'BP Financier'!$F$19+'BP Financier'!$F$16))*$V7224*Y7224/(1-$W7224)","v":{"v":21920.343393873078,"d":"21,920"}},{"$f":"'BP Financier'!$F$44*(('BP Financier'!$C$19+'BP Financier'!$D$19+'BP Financier'!$E$19+'BP Financier'!$F$19)/('BP Financier'!$C$16+'BP Financier'!$C$19+'BP Financier'!$D$16+'BP Financier'!$D$19+'BP Financier'!$E$16+'BP Financier'!$E$19+'BP Financier'!$C$22+'BP Financier'!$D$22+'BP Financier'!$E$22+'BP Financier'!$F$22+'BP Financier'!$F$19+'BP Financier'!$F$16))*$V7224*Z7224/(1-$W7224)","v":{"v":171558.39003303973,"d":"171,558"}},{"$f":"'BP Financier'!$F$44*(('BP Financier'!$C$19+'BP Financier'!$D$19+'BP Financier'!$E$19+'BP Financier'!$F$19)/('BP Financier'!$C$16+'BP Financier'!$C$19+'BP Financier'!$D$16+'BP Financier'!$D$19+'BP Financier'!$E$16+'BP Financier'!$E$19+'BP Financier'!$C$22+'BP Financier'!$D$22+'BP Financier'!$E$22+'BP Financier'!$F$22+'BP Financier'!$F$19+'BP Financier'!$F$16))*$V7224*AA7224/(1-$W7224)","v":{"v":21195.703942835953,"d":"21,196"}},{"$f":"'BP Financier'!$F$44*(('BP Financier'!$C$19+'BP Financier'!$D$19+'BP Financier'!$E$19+'BP Financier'!$F$19)/('BP Financier'!$C$16+'BP Financier'!$C$19+'BP Financier'!$D$16+'BP Financier'!$D$19+'BP Financier'!$E$16+'BP Financier'!$E$19+'BP Financier'!$C$22+'BP Financier'!$D$22+'BP Financier'!$E$22+'BP Financier'!$F$22+'BP Financier'!$F$19+'BP Financier'!$F$16))*$V7224*AB7224/(1-$W7224)","v":{"v":10144.95231451977,"d":"10,145"}},null,{"v":0.0125,"d":"1.25%"},{"$f":"Actif!$E$28/100","v":{"v":0.28900000000000003,"d":"28.90%"}},{"$f":"Actif!$E$30/100","v":{"v":0.09050000000000001,"d":"9.05%"}},{"$f":"Actif!$E$31/100","v":{"v":0.0605,"d":"6.05%"}},{"$f":"Actif!$E$32/100","v":{"v":0.47350000000000003,"d":"47.35%"}},{"$f":"Actif!$E$33/100","v":{"v":0.0585,"d":"5.85%"}},{"$f":"Actif!$E$29/100","v":{"v":0.027999999999999997,"d":"2.80%"}}]
[null,"#115",46,2029,"H","A_PER",{"v":0.44999999999999996,"d":"0.45"},{"v":0.38999999999999996,"d":"0.39"},0.6,0.6,85,0,{"$f":"ROUND(Primes!$P$7*V7225,0)","v":13},{"$f":"'BP Financier'!$F$33*(('BP Financier'!$C$19+'BP Financier'!$D$19+'BP Financier'!$E$19+'BP Financier'!$F$19)/('BP Financier'!$C$16+'BP Financier'!$C$19+'BP Financier'!$D$16+'BP Financier'!$D$19+'BP Financier'!$E$16+'BP Financier'!$E$19+'BP Financier'!$F$16+'BP Financier'!$F$19))*V7225","v":{"v":454122.20092908037,"d":"454,122"}},{"v":257609.32484369847,"d":"257,609"},{"$f":"'BP Financier'!$F$44*(('BP Financier'!$C$19+'BP Financier'!$D$19+'BP Financier'!$E$19+'BP Financier'!$F$19)/('BP Financier'!$C$16+'BP Financier'!$C$19+'BP Financier'!$D$16+'BP Financier'!$D$19+'BP Financier'!$E$16+'BP Financier'!$E$19+'BP Financier'!$C$22+'BP Financier'!$D$22+'BP Financier'!$E$22+'BP Financier'!$F$22+'BP Financier'!$F$19+'BP Financier'!$F$16))*$V7225*X7225/(1-$W7225)","v":{"v":32789.93515942998,"d":"32,790"}},{"$f":"'BP Financier'!$F$44*(('BP Financier'!$C$19+'BP Financier'!$D$19+'BP Financier'!$E$19+'BP Financier'!$F$19)/('BP Financier'!$C$16+'BP Financier'!$C$19+'BP Financier'!$D$16+'BP Financier'!$D$19+'BP Financier'!$E$16+'BP Financier'!$E$19+'BP Financier'!$C$22+'BP Financier'!$D$22+'BP Financier'!$E$22+'BP Financier'!$F$22+'BP Financier'!$F$19+'BP Financier'!$F$16))*$V7225*Y7225/(1-$W7225)","v":{"v":21920.343393873078,"d":"21,920"}},{"$f":"'BP Financier'!$F$44*(('BP Financier'!$C$19+'BP Financier'!$D$19+'BP Financier'!$E$19+'BP Financier'!$F$19)/('BP Financier'!$C$16+'BP Financier'!$C$19+'BP Financier'!$D$16+'BP Financier'!$D$19+'BP Financier'!$E$16+'BP Financier'!$E$19+'BP Financier'!$C$22+'BP Financier'!$D$22+'BP Financier'!$E$22+'BP Financier'!$F$22+'BP Financier'!$F$19+'BP Financier'!$F$16))*$V7225*Z7225/(1-$W7225)","v":{"v":171558.39003303973,"d":"171,558"}},{"$f":"'BP Financier'!$F$44*(('BP Financier'!$C$19+'BP Financier'!$D$19+'BP Financier'!$E$19+'BP Financier'!$F$19)/('BP Financier'!$C$16+'BP Financier'!$C$19+'BP Financier'!$D$16+'BP Financier'!$D$19+'BP Financier'!$E$16+'BP Financier'!$E$19+'BP Financier'!$C$22+'BP Financier'!$D$22+'BP Financier'!$E$22+'BP Financier'!$F$22+'BP Financier'!$F$19+'BP Financier'!$F$16))*$V7225*AA7225/(1-$W7225)","v":{"v":21195.703942835953,"d":"21,196"}},{"$f":"'BP Financier'!$F$44*(('BP Financier'!$C$19+'BP Financier'!$D$19+'BP Financier'!$E$19+'BP Financier'!$F$19)/('BP Financier'!$C$16+'BP Financier'!$C$19+'BP Financier'!$D$16+'BP Financier'!$D$19+'BP Financier'!$E$16+'BP Financier'!$E$19+'BP Financier'!$C$22+'BP Financier'!$D$22+'BP Financier'!$E$22+'BP Financier'!$F$22+'BP Financier'!$F$19+'BP Financier'!$F$16))*$V7225*AB7225/(1-$W7225)","v":{"v":10144.95231451977,"d":"10,145"}},null,{"v":0.0125,"d":"1.25%"},{"$f":"Actif!$E$28/100","v":{"v":0.28900000000000003,"d":"28.90%"}},{"$f":"Actif!$E$30/100","v":{"v":0.09050000000000001,"d":"9.05%"}},{"$f":"Actif!$E$31/100","v":{"v":0.0605,"d":"6.05%"}},{"$f":"Actif!$E$32/100","v":{"v":0.47350000000000003,"d":"47.35%"}},{"$f":"Actif!$E$33/100","v":{"v":0.0585,"d":"5.85%"}},{"$f":"Actif!$E$29/100","v":{"v":0.027999999999999997,"d":"2.80%"}}]
[null,"#116",46,2030,"H","A_PER",{"v":0.44999999999999996,"d":"0.45"},{"v":0.38999999999999996,"d":"0.39"},0.6,0.6,85,0,{"$f":"ROUND(Primes!$P$7*V7226,0)","v":13},{"$f":"'BP Financier'!$F$33*(('BP Financier'!$C$19+'BP Financier'!$D$19+'BP Financier'!$E$19+'BP Financier'!$F$19)/('BP Financier'!$C$16+'BP Financier'!$C$19+'BP Financier'!$D$16+'BP Financier'!$D$19+'BP Financier'!$E$16+'BP Financier'!$E$19+'BP Financier'!$F$16+'BP Financier'!$F$19))*V7226","v":{"v":454122.20092908037,"d":"454,122"}},{"v":257609.32484369847,"d":"257,609"},{"$f":"'BP Financier'!$F$44*(('BP Financier'!$C$19+'BP Financier'!$D$19+'BP Financier'!$E$19+'BP Financier'!$F$19)/('BP Financier'!$C$16+'BP Financier'!$C$19+'BP Financier'!$D$16+'BP Financier'!$D$19+'BP Financier'!$E$16+'BP Financier'!$E$19+'BP Financier'!$C$22+'BP Financier'!$D$22+'BP Financier'!$E$22+'BP Financier'!$F$22+'BP Financier'!$F$19+'BP Financier'!$F$16))*$V7226*X7226/(1-$W7226)","v":{"v":32789.93515942998,"d":"32,790"}},{"$f":"'BP Financier'!$F$44*(('BP Financier'!$C$19+'BP Financier'!$D$19+'BP Financier'!$E$19+'BP Financier'!$F$19)/('BP Financier'!$C$16+'BP Financier'!$C$19+'BP Financier'!$D$16+'BP Financier'!$D$19+'BP Financier'!$E$16+'BP Financier'!$E$19+'BP Financier'!$C$22+'BP Financier'!$D$22+'BP Financier'!$E$22+'BP Financier'!$F$22+'BP Financier'!$F$19+'BP Financier'!$F$16))*$V7226*Y7226/(1-$W7226)","v":{"v":21920.343393873078,"d":"21,920"}},{"$f":"'BP Financier'!$F$44*(('BP Financier'!$C$19+'BP Financier'!$D$19+'BP Financier'!$E$19+'BP Financier'!$F$19)/('BP Financier'!$C$16+'BP Financier'!$C$19+'BP Financier'!$D$16+'BP Financier'!$D$19+'BP Financier'!$E$16+'BP Financier'!$E$19+'BP Financier'!$C$22+'BP Financier'!$D$22+'BP Financier'!$E$22+'BP Financier'!$F$22+'BP Financier'!$F$19+'BP Financier'!$F$16))*$V7226*Z7226/(1-$W7226)","v":{"v":171558.39003303973,"d":"171,558"}},{"$f":"'BP Financier'!$F$44*(('BP Financier'!$C$19+'BP Financier'!$D$19+'BP Financier'!$E$19+'BP Financier'!$F$19)/('BP Financier'!$C$16+'BP Financier'!$C$19+'BP Financier'!$D$16+'BP Financier'!$D$19+'BP Financier'!$E$16+'BP Financier'!$E$19+'BP Financier'!$C$22+'BP Financier'!$D$22+'BP Financier'!$E$22+'BP Financier'!$F$22+'BP Financier'!$F$19+'BP Financier'!$F$16))*$V7226*AA7226/(1-$W7226)","v":{"v":21195.703942835953,"d":"21,196"}},{"$f":"'BP Financier'!$F$44*(('BP Financier'!$C$19+'BP Financier'!$D$19+'BP Financier'!$E$19+'BP Financier'!$F$19)/('BP Financier'!$C$16+'BP Financier'!$C$19+'BP Financier'!$D$16+'BP Financier'!$D$19+'BP Financier'!$E$16+'BP Financier'!$E$19+'BP Financier'!$C$22+'BP Financier'!$D$22+'BP Financier'!$E$22+'BP Financier'!$F$22+'BP Financier'!$F$19+'BP Financier'!$F$16))*$V7226*AB7226/(1-$W7226)","v":{"v":10144.95231451977,"d":"10,145"}},null,{"v":0.0125,"d":"1.25%"},{"$f":"Actif!$E$28/100","v":{"v":0.28900000000000003,"d":"28.90%"}},{"$f":"Actif!$E$30/100","v":{"v":0.09050000000000001,"d":"9.05%"}},{"$f":"Actif!$E$31/100","v":{"v":0.0605,"d":"6.05%"}},{"$f":"Actif!$E$32/100","v":{"v":0.47350000000000003,"d":"47.35%"}},{"$f":"Actif!$E$33/100","v":{"v":0.0585,"d":"5.85%"}},{"$f":"Actif!$E$29/100","v":{"v":0.027999999999999997,"d":"2.80%"}}]
[null,"#117",47,2026,"F","A_PER",{"v":0.44999999999999996,"d":"0.45"},{"v":0.38999999999999996,"d":"0.39"},0.6,0.6,85,0,{"$f":"ROUND(Primes!$P$7*V7227,0)","v":10},{"$f":"'BP Financier'!$F$33*(('BP Financier'!$C$19+'BP Financier'!$D$19+'BP Financier'!$E$19+'BP Financier'!$F$19)/('BP Financier'!$C$16+'BP Financier'!$C$19+'BP Financier'!$D$16+'BP Financier'!$D$19+'BP Financier'!$E$16+'BP Financier'!$E$19+'BP Financier'!$F$16+'BP Financier'!$F$19))*V7227","v":{"v":363297.7607432643,"d":"363,298"}},{"v":206087.45987495876,"d":"206,087"},{"$f":"'BP Financier'!$F$44*(('BP Financier'!$C$19+'BP Financier'!$D$19+'BP Financier'!$E$19+'BP Financier'!$F$19)/('BP Financier'!$C$16+'BP Financier'!$C$19+'BP Financier'!$D$16+'BP Financier'!$D$19+'BP Financier'!$E$16+'BP Financier'!$E$19+'BP Financier'!$C$22+'BP Financier'!$D$22+'BP Financier'!$E$22+'BP Financier'!$F$22+'BP Financier'!$F$19+'BP Financier'!$F$16))*$V7227*X7227/(1-$W7227)","v":{"v":26231.948127543983,"d":"26,232"}},{"$f":"'BP Financier'!$F$44*(('BP Financier'!$C$19+'BP Financier'!$D$19+'BP Financier'!$E$19+'BP Financier'!$F$19)/('BP Financier'!$C$16+'BP Financier'!$C$19+'BP Financier'!$D$16+'BP Financier'!$D$19+'BP Financier'!$E$16+'BP Financier'!$E$19+'BP Financier'!$C$22+'BP Financier'!$D$22+'BP Financier'!$E$22+'BP Financier'!$F$22+'BP Financier'!$F$19+'BP Financier'!$F$16))*$V7227*Y7227/(1-$W7227)","v":{"v":17536.27471509846,"d":"17,536"}},{"$f":"'BP Financier'!$F$44*(('BP Financier'!$C$19+'BP Financier'!$D$19+'BP Financier'!$E$19+'BP Financier'!$F$19)/('BP Financier'!$C$16+'BP Financier'!$C$19+'BP Financier'!$D$16+'BP Financier'!$D$19+'BP Financier'!$E$16+'BP Financier'!$E$19+'BP Financier'!$C$22+'BP Financier'!$D$22+'BP Financier'!$E$22+'BP Financier'!$F$22+'BP Financier'!$F$19+'BP Financier'!$F$16))*$V7227*Z7227/(1-$W7227)","v":{"v":137246.71202643178,"d":"137,247"}},{"$f":"'BP Financier'!$F$44*(('BP Financier'!$C$19+'BP Financier'!$D$19+'BP Financier'!$E$19+'BP Financier'!$F$19)/('BP Financier'!$C$16+'BP Financier'!$C$19+'BP Financier'!$D$16+'BP Financier'!$D$19+'BP Financier'!$E$16+'BP Financier'!$E$19+'BP Financier'!$C$22+'BP Financier'!$D$22+'BP Financier'!$E$22+'BP Financier'!$F$22+'BP Financier'!$F$19+'BP Financier'!$F$16))*$V7227*AA7227/(1-$W7227)","v":{"v":16956.56315426876,"d":"16,957"}},{"$f":"'BP Financier'!$F$44*(('BP Financier'!$C$19+'BP Financier'!$D$19+'BP Financier'!$E$19+'BP Financier'!$F$19)/('BP Financier'!$C$16+'BP Financier'!$C$19+'BP Financier'!$D$16+'BP Financier'!$D$19+'BP Financier'!$E$16+'BP Financier'!$E$19+'BP Financier'!$C$22+'BP Financier'!$D$22+'BP Financier'!$E$22+'BP Financier'!$F$22+'BP Financier'!$F$19+'BP Financier'!$F$16))*$V7227*AB7227/(1-$W7227)","v":{"v":8115.961851615815,"d":"8,116"}},null,{"v":0.01,"d":"1.00%"},{"$f":"Actif!$E$28/100","v":{"v":0.28900000000000003,"d":"28.90%"}},{"$f":"Actif!$E$30/100","v":{"v":0.09050000000000001,"d":"9.05%"}},{"$f":"Actif!$E$31/100","v":{"v":0.0605,"d":"6.05%"}},{"$f":"Actif!$E$32/100","v":{"v":0.47350000000000003,"d":"47.35%"}},{"$f":"Actif!$E$33/100","v":{"v":0.0585,"d":"5.85%"}},{"$f":"Actif!$E$29/100","v":{"v":0.027999999999999997,"d":"2.80%"}}]
[null,"#118",47,2028,"F","A_PER",{"v":0.44999999999999996,"d":"0.45"},{"v":0.38999999999999996,"d":"0.39"},0.6,0.6,85,0,{"$f":"ROUND(Primes!$P$7*V7228,0)","v":10},{"$f":"'BP Financier'!$F$33*(('BP Financier'!$C$19+'BP Financier'!$D$19+'BP Financier'!$E$19+'BP Financier'!$F$19)/('BP Financier'!$C$16+'BP Financier'!$C$19+'BP Financier'!$D$16+'BP Financier'!$D$19+'BP Financier'!$E$16+'BP Financier'!$E$19+'BP Financier'!$F$16+'BP Financier'!$F$19))*V7228","v":{"v":363297.7607432643,"d":"363,298"}},{"v":206087.45987495876,"d":"206,087"},{"$f":"'BP Financier'!$F$44*(('BP Financier'!$C$19+'BP Financier'!$D$19+'BP Financier'!$E$19+'BP Financier'!$F$19)/('BP Financier'!$C$16+'BP Financier'!$C$19+'BP Financier'!$D$16+'BP Financier'!$D$19+'BP Financier'!$E$16+'BP Financier'!$E$19+'BP Financier'!$C$22+'BP Financier'!$D$22+'BP Financier'!$E$22+'BP Financier'!$F$22+'BP Financier'!$F$19+'BP Financier'!$F$16))*$V7228*X7228/(1-$W7228)","v":{"v":26231.948127543983,"d":"26,232"}},{"$f":"'BP Financier'!$F$44*(('BP Financier'!$C$19+'BP Financier'!$D$19+'BP Financier'!$E$19+'BP Financier'!$F$19)/('BP Financier'!$C$16+'BP Financier'!$C$19+'BP Financier'!$D$16+'BP Financier'!$D$19+'BP Financier'!$E$16+'BP Financier'!$E$19+'BP Financier'!$C$22+'BP Financier'!$D$22+'BP Financier'!$E$22+'BP Financier'!$F$22+'BP Financier'!$F$19+'BP Financier'!$F$16))*$V7228*Y7228/(1-$W7228)","v":{"v":17536.27471509846,"d":"17,536"}},{"$f":"'BP Financier'!$F$44*(('BP Financier'!$C$19+'BP Financier'!$D$19+'BP Financier'!$E$19+'BP Financier'!$F$19)/('BP Financier'!$C$16+'BP Financier'!$C$19+'BP Financier'!$D$16+'BP Financier'!$D$19+'BP Financier'!$E$16+'BP Financier'!$E$19+'BP Financier'!$C$22+'BP Financier'!$D$22+'BP Financier'!$E$22+'BP Financier'!$F$22+'BP Financier'!$F$19+'BP Financier'!$F$16))*$V7228*Z7228/(1-$W7228)","v":{"v":137246.71202643178,"d":"137,247"}},{"$f":"'BP Financier'!$F$44*(('BP Financier'!$C$19+'BP Financier'!$D$19+'BP Financier'!$E$19+'BP Financier'!$F$19)/('BP Financier'!$C$16+'BP Financier'!$C$19+'BP Financier'!$D$16+'BP Financier'!$D$19+'BP Financier'!$E$16+'BP Financier'!$E$19+'BP Financier'!$C$22+'BP Financier'!$D$22+'BP Financier'!$E$22+'BP Financier'!$F$22+'BP Financier'!$F$19+'BP Financier'!$F$16))*$V7228*AA7228/(1-$W7228)","v":{"v":16956.56315426876,"d":"16,957"}},{"$f":"'BP Financier'!$F$44*(('BP Financier'!$C$19+'BP Financier'!$D$19+'BP Financier'!$E$19+'BP Financier'!$F$19)/('BP Financier'!$C$16+'BP Financier'!$C$19+'BP Financier'!$D$16+'BP Financier'!$D$19+'BP Financier'!$E$16+'BP Financier'!$E$19+'BP Financier'!$C$22+'BP Financier'!$D$22+'BP Financier'!$E$22+'BP Financier'!$F$22+'BP Financier'!$F$19+'BP Financier'!$F$16))*$V7228*AB7228/(1-$W7228)","v":{"v":8115.961851615815,"d":"8,116"}},null,{"v":0.01,"d":"1.00%"},{"$f":"Actif!$E$28/100","v":{"v":0.28900000000000003,"d":"28.90%"}},{"$f":"Actif!$E$30/100","v":{"v":0.09050000000000001,"d":"9.05%"}},{"$f":"Actif!$E$31/100","v":{"v":0.0605,"d":"6.05%"}},{"$f":"Actif!$E$32/100","v":{"v":0.47350000000000003,"d":"47.35%"}},{"$f":"Actif!$E$33/100","v":{"v":0.0585,"d":"5.85%"}},{"$f":"Actif!$E$29/100","v":{"v":0.027999999999999997,"d":"2.80%"}}]
[null,"#119",47,2029,"F","A_PER",{"v":0.44999999999999996,"d":"0.45"},{"v":0.38999999999999996,"d":"0.39"},0.6,0.6,85,0,{"$f":"ROUND(Primes!$P$7*V7229,0)","v":10},{"$f":"'BP Financier'!$F$33*(('BP Financier'!$C$19+'BP Financier'!$D$19+'BP Financier'!$E$19+'BP Financier'!$F$19)/('BP Financier'!$C$16+'BP Financier'!$C$19+'BP Financier'!$D$16+'BP Financier'!$D$19+'BP Financier'!$E$16+'BP Financier'!$E$19+'BP Financier'!$F$16+'BP Financier'!$F$19))*V7229","v":{"v":363297.7607432643,"d":"363,298"}},{"v":206087.45987495876,"d":"206,087"},{"$f":"'BP Financier'!$F$44*(('BP Financier'!$C$19+'BP Financier'!$D$19+'BP Financier'!$E$19+'BP Financier'!$F$19)/('BP Financier'!$C$16+'BP Financier'!$C$19+'BP Financier'!$D$16+'BP Financier'!$D$19+'BP Financier'!$E$16+'BP Financier'!$E$19+'BP Financier'!$C$22+'BP Financier'!$D$22+'BP Financier'!$E$22+'BP Financier'!$F$22+'BP Financier'!$F$19+'BP Financier'!$F$16))*$V7229*X7229/(1-$W7229)","v":{"v":26231.948127543983,"d":"26,232"}},{"$f":"'BP Financier'!$F$44*(('BP Financier'!$C$19+'BP Financier'!$D$19+'BP Financier'!$E$19+'BP Financier'!$F$19)/('BP Financier'!$C$16+'BP Financier'!$C$19+'BP Financier'!$D$16+'BP Financier'!$D$19+'BP Financier'!$E$16+'BP Financier'!$E$19+'BP Financier'!$C$22+'BP Financier'!$D$22+'BP Financier'!$E$22+'BP Financier'!$F$22+'BP Financier'!$F$19+'BP Financier'!$F$16))*$V7229*Y7229/(1-$W7229)","v":{"v":17536.27471509846,"d":"17,536"}},{"$f":"'BP Financier'!$F$44*(('BP Financier'!$C$19+'BP Financier'!$D$19+'BP Financier'!$E$19+'BP Financier'!$F$19)/('BP Financier'!$C$16+'BP Financier'!$C$19+'BP Financier'!$D$16+'BP Financier'!$D$19+'BP Financier'!$E$16+'BP Financier'!$E$19+'BP Financier'!$C$22+'BP Financier'!$D$22+'BP Financier'!$E$22+'BP Financier'!$F$22+'BP Financier'!$F$19+'BP Financier'!$F$16))*$V7229*Z7229/(1-$W7229)","v":{"v":137246.71202643178,"d":"137,247"}},{"$f":"'BP Financier'!$F$44*(('BP Financier'!$C$19+'BP Financier'!$D$19+'BP Financier'!$E$19+'BP Financier'!$F$19)/('BP Financier'!$C$16+'BP Financier'!$C$19+'BP Financier'!$D$16+'BP Financier'!$D$19+'BP Financier'!$E$16+'BP Financier'!$E$19+'BP Financier'!$C$22+'BP Financier'!$D$22+'BP Financier'!$E$22+'BP Financier'!$F$22+'BP Financier'!$F$19+'BP Financier'!$F$16))*$V7229*AA7229/(1-$W7229)","v":{"v":16956.56315426876,"d":"16,957"}},{"$f":"'BP Financier'!$F$44*(('BP Financier'!$C$19+'BP Financier'!$D$19+'BP Financier'!$E$19+'BP Financier'!$F$19)/('BP Financier'!$C$16+'BP Financier'!$C$19+'BP Financier'!$D$16+'BP Financier'!$D$19+'BP Financier'!$E$16+'BP Financier'!$E$19+'BP Financier'!$C$22+'BP Financier'!$D$22+'BP Financier'!$E$22+'BP Financier'!$F$22+'BP Financier'!$F$19+'BP Financier'!$F$16))*$V7229*AB7229/(1-$W7229)","v":{"v":8115.961851615815,"d":"8,116"}},null,{"v":0.01,"d":"1.00%"},{"$f":"Actif!$E$28/100","v":{"v":0.28900000000000003,"d":"28.90%"}},{"$f":"Actif!$E$30/100","v":{"v":0.09050000000000001,"d":"9.05%"}},{"$f":"Actif!$E$31/100","v":{"v":0.0605,"d":"6.05%"}},{"$f":"Actif!$E$32/100","v":{"v":0.47350000000000003,"d":"47.35%"}},{"$f":"Actif!$E$33/100","v":{"v":0.0585,"d":"5.85%"}},{"$f":"Actif!$E$29/100","v":{"v":0.027999999999999997,"d":"2.80%"}}]
[null,"#120",47,2030,"F","A_PER",{"v":0.44999999999999996,"d":"0.45"},{"v":0.38999999999999996,"d":"0.39"},0.6,0.6,85,0,{"$f":"ROUND(Primes!$P$7*V7230,0)","v":10},{"$f":"'BP Financier'!$F$33*(('BP Financier'!$C$19+'BP Financier'!$D$19+'BP Financier'!$E$19+'BP Financier'!$F$19)/('BP Financier'!$C$16+'BP Financier'!$C$19+'BP Financier'!$D$16+'BP Financier'!$D$19+'BP Financier'!$E$16+'BP Financier'!$E$19+'BP Financier'!$F$16+'BP Financier'!$F$19))*V7230","v":{"v":363297.7607432643,"d":"363,298"}},{"v":206087.45987495876,"d":"206,087"},{"$f":"'BP Financier'!$F$44*(('BP Financier'!$C$19+'BP Financier'!$D$19+'BP Financier'!$E$19+'BP Financier'!$F$19)/('BP Financier'!$C$16+'BP Financier'!$C$19+'BP Financier'!$D$16+'BP Financier'!$D$19+'BP Financier'!$E$16+'BP Financier'!$E$19+'BP Financier'!$C$22+'BP Financier'!$D$22+'BP Financier'!$E$22+'BP Financier'!$F$22+'BP Financier'!$F$19+'BP Financier'!$F$16))*$V7230*X7230/(1-$W7230)","v":{"v":26231.948127543983,"d":"26,232"}},{"$f":"'BP Financier'!$F$44*(('BP Financier'!$C$19+'BP Financier'!$D$19+'BP Financier'!$E$19+'BP Financier'!$F$19)/('BP Financier'!$C$16+'BP Financier'!$C$19+'BP Financier'!$D$16+'BP Financier'!$D$19+'BP Financier'!$E$16+'BP Financier'!$E$19+'BP Financier'!$C$22+'BP Financier'!$D$22+'BP Financier'!$E$22+'BP Financier'!$F$22+'BP Financier'!$F$19+'BP Financier'!$F$16))*$V7230*Y7230/(1-$W7230)","v":{"v":17536.27471509846,"d":"17,536"}},{"$f":"'BP Financier'!$F$44*(('BP Financier'!$C$19+'BP Financier'!$D$19+'BP Financier'!$E$19+'BP Financier'!$F$19)/('BP Financier'!$C$16+'BP Financier'!$C$19+'BP Financier'!$D$16+'BP Financier'!$D$19+'BP Financier'!$E$16+'BP Financier'!$E$19+'BP Financier'!$C$22+'BP Financier'!$D$22+'BP Financier'!$E$22+'BP Financier'!$F$22+'BP Financier'!$F$19+'BP Financier'!$F$16))*$V7230*Z7230/(1-$W7230)","v":{"v":137246.71202643178,"d":"137,247"}},{"$f":"'BP Financier'!$F$44*(('BP Financier'!$C$19+'BP Financier'!$D$19+'BP Financier'!$E$19+'BP Financier'!$F$19)/('BP Financier'!$C$16+'BP Financier'!$C$19+'BP Financier'!$D$16+'BP Financier'!$D$19+'BP Financier'!$E$16+'BP Financier'!$E$19+'BP Financier'!$C$22+'BP Financier'!$D$22+'BP Financier'!$E$22+'BP Financier'!$F$22+'BP Financier'!$F$19+'BP Financier'!$F$16))*$V7230*AA7230/(1-$W7230)","v":{"v":16956.56315426876,"d":"16,957"}},{"$f":"'BP Financier'!$F$44*(('BP Financier'!$C$19+'BP Financier'!$D$19+'BP Financier'!$E$19+'BP Financier'!$F$19)/('BP Financier'!$C$16+'BP Financier'!$C$19+'BP Financier'!$D$16+'BP Financier'!$D$19+'BP Financier'!$E$16+'BP Financier'!$E$19+'BP Financier'!$C$22+'BP Financier'!$D$22+'BP Financier'!$E$22+'BP Financier'!$F$22+'BP Financier'!$F$19+'BP Financier'!$F$16))*$V7230*AB7230/(1-$W7230)","v":{"v":8115.961851615815,"d":"8,116"}},null,{"v":0.01,"d":"1.00%"},{"$f":"Actif!$E$28/100","v":{"v":0.28900000000000003,"d":"28.90%"}},{"$f":"Actif!$E$30/100","v":{"v":0.09050000000000001,"d":"9.05%"}},{"$f":"Actif!$E$31/100","v":{"v":0.0605,"d":"6.05%"}},{"$f":"Actif!$E$32/100","v":{"v":0.47350000000000003,"d":"47.35%"}},{"$f":"Actif!$E$33/100","v":{"v":0.0585,"d":"5.85%"}},{"$f":"Actif!$E$29/100","v":{"v":0.027999999999999997,"d":"2.80%"}}]
[null,"#121",48,2026,"H","A_PER",{"v":0.44999999999999996,"d":"0.45"},{"v":0.38999999999999996,"d":"0.39"},0.6,0.6,85,0,{"$f":"ROUND(Primes!$P$7*V7231,0)","v":10},{"$f":"'BP Financier'!$F$33*(('BP Financier'!$C$19+'BP Financier'!$D$19+'BP Financier'!$E$19+'BP Financier'!$F$19)/('BP Financier'!$C$16+'BP Financier'!$C$19+'BP Financier'!$D$16+'BP Financier'!$D$19+'BP Financier'!$E$16+'BP Financier'!$E$19+'BP Financier'!$F$16+'BP Financier'!$F$19))*V7231","v":{"v":363297.7607432643,"d":"363,298"}},{"v":206087.45987495876,"d":"206,087"},{"$f":"'BP Financier'!$F$44*(('BP Financier'!$C$19+'BP Financier'!$D$19+'BP Financier'!$E$19+'BP Financier'!$F$19)/('BP Financier'!$C$16+'BP Financier'!$C$19+'BP Financier'!$D$16+'BP Financier'!$D$19+'BP Financier'!$E$16+'BP Financier'!$E$19+'BP Financier'!$C$22+'BP Financier'!$D$22+'BP Financier'!$E$22+'BP Financier'!$F$22+'BP Financier'!$F$19+'BP Financier'!$F$16))*$V7231*X7231/(1-$W7231)","v":{"v":26231.948127543983,"d":"26,232"}},{"$f":"'BP Financier'!$F$44*(('BP Financier'!$C$19+'BP Financier'!$D$19+'BP Financier'!$E$19+'BP Financier'!$F$19)/('BP Financier'!$C$16+'BP Financier'!$C$19+'BP Financier'!$D$16+'BP Financier'!$D$19+'BP Financier'!$E$16+'BP Financier'!$E$19+'BP Financier'!$C$22+'BP Financier'!$D$22+'BP Financier'!$E$22+'BP Financier'!$F$22+'BP Financier'!$F$19+'BP Financier'!$F$16))*$V7231*Y7231/(1-$W7231)","v":{"v":17536.27471509846,"d":"17,536"}},{"$f":"'BP Financier'!$F$44*(('BP Financier'!$C$19+'BP Financier'!$D$19+'BP Financier'!$E$19+'BP Financier'!$F$19)/('BP Financier'!$C$16+'BP Financier'!$C$19+'BP Financier'!$D$16+'BP Financier'!$D$19+'BP Financier'!$E$16+'BP Financier'!$E$19+'BP Financier'!$C$22+'BP Financier'!$D$22+'BP Financier'!$E$22+'BP Financier'!$F$22+'BP Financier'!$F$19+'BP Financier'!$F$16))*$V7231*Z7231/(1-$W7231)","v":{"v":137246.71202643178,"d":"137,247"}},{"$f":"'BP Financier'!$F$44*(('BP Financier'!$C$19+'BP Financier'!$D$19+'BP Financier'!$E$19+'BP Financier'!$F$19)/('BP Financier'!$C$16+'BP Financier'!$C$19+'BP Financier'!$D$16+'BP Financier'!$D$19+'BP Financier'!$E$16+'BP Financier'!$E$19+'BP Financier'!$C$22+'BP Financier'!$D$22+'BP Financier'!$E$22+'BP Financier'!$F$22+'BP Financier'!$F$19+'BP Financier'!$F$16))*$V7231*AA7231/(1-$W7231)","v":{"v":16956.56315426876,"d":"16,957"}},{"$f":"'BP Financier'!$F$44*(('BP Financier'!$C$19+'BP Financier'!$D$19+'BP Financier'!$E$19+'BP Financier'!$F$19)/('BP Financier'!$C$16+'BP Financier'!$C$19+'BP Financier'!$D$16+'BP Financier'!$D$19+'BP Financier'!$E$16+'BP Financier'!$E$19+'BP Financier'!$C$22+'BP Financier'!$D$22+'BP Financier'!$E$22+'BP Financier'!$F$22+'BP Financier'!$F$19+'BP Financier'!$F$16))*$V7231*AB7231/(1-$W7231)","v":{"v":8115.961851615815,"d":"8,116"}},null,{"v":0.01,"d":"1.00%"},{"$f":"Actif!$E$28/100","v":{"v":0.28900000000000003,"d":"28.90%"}},{"$f":"Actif!$E$30/100","v":{"v":0.09050000000000001,"d":"9.05%"}},{"$f":"Actif!$E$31/100","v":{"v":0.0605,"d":"6.05%"}},{"$f":"Actif!$E$32/100","v":{"v":0.47350000000000003,"d":"47.35%"}},{"$f":"Actif!$E$33/100","v":{"v":0.0585,"d":"5.85%"}},{"$f":"Actif!$E$29/100","v":{"v":0.027999999999999997,"d":"2.80%"}}]
[null,"#122",48,2028,"H","A_PER",{"v":0.44999999999999996,"d":"0.45"},{"v":0.38999999999999996,"d":"0.39"},0.6,0.6,85,0,{"$f":"ROUND(Primes!$P$7*V7232,0)","v":10},{"$f":"'BP Financier'!$F$33*(('BP Financier'!$C$19+'BP Financier'!$D$19+'BP Financier'!$E$19+'BP Financier'!$F$19)/('BP Financier'!$C$16+'BP Financier'!$C$19+'BP Financier'!$D$16+'BP Financier'!$D$19+'BP Financier'!$E$16+'BP Financier'!$E$19+'BP Financier'!$F$16+'BP Financier'!$F$19))*V7232","v":{"v":363297.7607432643,"d":"363,298"}},{"v":206087.45987495876,"d":"206,087"},{"$f":"'BP Financier'!$F$44*(('BP Financier'!$C$19+'BP Financier'!$D$19+'BP Financier'!$E$19+'BP Financier'!$F$19)/('BP Financier'!$C$16+'BP Financier'!$C$19+'BP Financier'!$D$16+'BP Financier'!$D$19+'BP Financier'!$E$16+'BP Financier'!$E$19+'BP Financier'!$C$22+'BP Financier'!$D$22+'BP Financier'!$E$22+'BP Financier'!$F$22+'BP Financier'!$F$19+'BP Financier'!$F$16))*$V7232*X7232/(1-$W7232)","v":{"v":26231.948127543983,"d":"26,232"}},{"$f":"'BP Financier'!$F$44*(('BP Financier'!$C$19+'BP Financier'!$D$19+'BP Financier'!$E$19+'BP Financier'!$F$19)/('BP Financier'!$C$16+'BP Financier'!$C$19+'BP Financier'!$D$16+'BP Financier'!$D$19+'BP Financier'!$E$16+'BP Financier'!$E$19+'BP Financier'!$C$22+'BP Financier'!$D$22+'BP Financier'!$E$22+'BP Financier'!$F$22+'BP Financier'!$F$19+'BP Financier'!$F$16))*$V7232*Y7232/(1-$W7232)","v":{"v":17536.27471509846,"d":"17,536"}},{"$f":"'BP Financier'!$F$44*(('BP Financier'!$C$19+'BP Financier'!$D$19+'BP Financier'!$E$19+'BP Financier'!$F$19)/('BP Financier'!$C$16+'BP Financier'!$C$19+'BP Financier'!$D$16+'BP Financier'!$D$19+'BP Financier'!$E$16+'BP Financier'!$E$19+'BP Financier'!$C$22+'BP Financier'!$D$22+'BP Financier'!$E$22+'BP Financier'!$F$22+'BP Financier'!$F$19+'BP Financier'!$F$16))*$V7232*Z7232/(1-$W7232)","v":{"v":137246.71202643178,"d":"137,247"}},{"$f":"'BP Financier'!$F$44*(('BP Financier'!$C$19+'BP Financier'!$D$19+'BP Financier'!$E$19+'BP Financier'!$F$19)/('BP Financier'!$C$16+'BP Financier'!$C$19+'BP Financier'!$D$16+'BP Financier'!$D$19+'BP Financier'!$E$16+'BP Financier'!$E$19+'BP Financier'!$C$22+'BP Financier'!$D$22+'BP Financier'!$E$22+'BP Financier'!$F$22+'BP Financier'!$F$19+'BP Financier'!$F$16))*$V7232*AA7232/(1-$W7232)","v":{"v":16956.56315426876,"d":"16,957"}},{"$f":"'BP Financier'!$F$44*(('BP Financier'!$C$19+'BP Financier'!$D$19+'BP Financier'!$E$19+'BP Financier'!$F$19)/('BP Financier'!$C$16+'BP Financier'!$C$19+'BP Financier'!$D$16+'BP Financier'!$D$19+'BP Financier'!$E$16+'BP Financier'!$E$19+'BP Financier'!$C$22+'BP Financier'!$D$22+'BP Financier'!$E$22+'BP Financier'!$F$22+'BP Financier'!$F$19+'BP Financier'!$F$16))*$V7232*AB7232/(1-$W7232)","v":{"v":8115.961851615815,"d":"8,116"}},null,{"v":0.01,"d":"1.00%"},{"$f":"Actif!$E$28/100","v":{"v":0.28900000000000003,"d":"28.90%"}},{"$f":"Actif!$E$30/100","v":{"v":0.09050000000000001,"d":"9.05%"}},{"$f":"Actif!$E$31/100","v":{"v":0.0605,"d":"6.05%"}},{"$f":"Actif!$E$32/100","v":{"v":0.47350000000000003,"d":"47.35%"}},{"$f":"Actif!$E$33/100","v":{"v":0.0585,"d":"5.85%"}},{"$f":"Actif!$E$29/100","v":{"v":0.027999999999999997,"d":"2.80%"}}]
[null,"#123",48,2029,"H","A_PER",{"v":0.44999999999999996,"d":"0.45"},{"v":0.38999999999999996,"d":"0.39"},0.6,0.6,85,0,{"$f":"ROUND(Primes!$P$7*V7233,0)","v":10},{"$f":"'BP Financier'!$F$33*(('BP Financier'!$C$19+'BP Financier'!$D$19+'BP Financier'!$E$19+'BP Financier'!$F$19)/('BP Financier'!$C$16+'BP Financier'!$C$19+'BP Financier'!$D$16+'BP Financier'!$D$19+'BP Financier'!$E$16+'BP Financier'!$E$19+'BP Financier'!$F$16+'BP Financier'!$F$19))*V7233","v":{"v":363297.7607432643,"d":"363,298"}},{"v":206087.45987495876,"d":"206,087"},{"$f":"'BP Financier'!$F$44*(('BP Financier'!$C$19+'BP Financier'!$D$19+'BP Financier'!$E$19+'BP Financier'!$F$19)/('BP Financier'!$C$16+'BP Financier'!$C$19+'BP Financier'!$D$16+'BP Financier'!$D$19+'BP Financier'!$E$16+'BP Financier'!$E$19+'BP Financier'!$C$22+'BP Financier'!$D$22+'BP Financier'!$E$22+'BP Financier'!$F$22+'BP Financier'!$F$19+'BP Financier'!$F$16))*$V7233*X7233/(1-$W7233)","v":{"v":26231.948127543983,"d":"26,232"}},{"$f":"'BP Financier'!$F$44*(('BP Financier'!$C$19+'BP Financier'!$D$19+'BP Financier'!$E$19+'BP Financier'!$F$19)/('BP Financier'!$C$16+'BP Financier'!$C$19+'BP Financier'!$D$16+'BP Financier'!$D$19+'BP Financier'!$E$16+'BP Financier'!$E$19+'BP Financier'!$C$22+'BP Financier'!$D$22+'BP Financier'!$E$22+'BP Financier'!$F$22+'BP Financier'!$F$19+'BP Financier'!$F$16))*$V7233*Y7233/(1-$W7233)","v":{"v":17536.27471509846,"d":"17,536"}},{"$f":"'BP Financier'!$F$44*(('BP Financier'!$C$19+'BP Financier'!$D$19+'BP Financier'!$E$19+'BP Financier'!$F$19)/('BP Financier'!$C$16+'BP Financier'!$C$19+'BP Financier'!$D$16+'BP Financier'!$D$19+'BP Financier'!$E$16+'BP Financier'!$E$19+'BP Financier'!$C$22+'BP Financier'!$D$22+'BP Financier'!$E$22+'BP Financier'!$F$22+'BP Financier'!$F$19+'BP Financier'!$F$16))*$V7233*Z7233/(1-$W7233)","v":{"v":137246.71202643178,"d":"137,247"}},{"$f":"'BP Financier'!$F$44*(('BP Financier'!$C$19+'BP Financier'!$D$19+'BP Financier'!$E$19+'BP Financier'!$F$19)/('BP Financier'!$C$16+'BP Financier'!$C$19+'BP Financier'!$D$16+'BP Financier'!$D$19+'BP Financier'!$E$16+'BP Financier'!$E$19+'BP Financier'!$C$22+'BP Financier'!$D$22+'BP Financier'!$E$22+'BP Financier'!$F$22+'BP Financier'!$F$19+'BP Financier'!$F$16))*$V7233*AA7233/(1-$W7233)","v":{"v":16956.56315426876,"d":"16,957"}},{"$f":"'BP Financier'!$F$44*(('BP Financier'!$C$19+'BP Financier'!$D$19+'BP Financier'!$E$19+'BP Financier'!$F$19)/('BP Financier'!$C$16+'BP Financier'!$C$19+'BP Financier'!$D$16+'BP Financier'!$D$19+'BP Financier'!$E$16+'BP Financier'!$E$19+'BP Financier'!$C$22+'BP Financier'!$D$22+'BP Financier'!$E$22+'BP Financier'!$F$22+'BP Financier'!$F$19+'BP Financier'!$F$16))*$V7233*AB7233/(1-$W7233)","v":{"v":8115.961851615815,"d":"8,116"}},null,{"v":0.01,"d":"1.00%"},{"$f":"Actif!$E$28/100","v":{"v":0.28900000000000003,"d":"28.90%"}},{"$f":"Actif!$E$30/100","v":{"v":0.09050000000000001,"d":"9.05%"}},{"$f":"Actif!$E$31/100","v":{"v":0.0605,"d":"6.05%"}},{"$f":"Actif!$E$32/100","v":{"v":0.47350000000000003,"d":"47.35%"}},{"$f":"Actif!$E$33/100","v":{"v":0.0585,"d":"5.85%"}},{"$f":"Actif!$E$29/100","v":{"v":0.027999999999999997,"d":"2.80%"}}]
[null,"#124",48,2030,"H","A_PER",{"v":0.44999999999999996,"d":"0.45"},{"v":0.38999999999999996,"d":"0.39"},0.6,0.6,85,0,{"$f":"ROUND(Primes!$P$7*V7234,0)","v":10},{"$f":"'BP Financier'!$F$33*(('BP Financier'!$C$19+'BP Financier'!$D$19+'BP Financier'!$E$19+'BP Financier'!$F$19)/('BP Financier'!$C$16+'BP Financier'!$C$19+'BP Financier'!$D$16+'BP Financier'!$D$19+'BP Financier'!$E$16+'BP Financier'!$E$19+'BP Financier'!$F$16+'BP Financier'!$F$19))*V7234","v":{"v":363297.7607432643,"d":"363,298"}},{"v":206087.45987495876,"d":"206,087"},{"$f":"'BP Financier'!$F$44*(('BP Financier'!$C$19+'BP Financier'!$D$19+'BP Financier'!$E$19+'BP Financier'!$F$19)/('BP Financier'!$C$16+'BP Financier'!$C$19+'BP Financier'!$D$16+'BP Financier'!$D$19+'BP Financier'!$E$16+'BP Financier'!$E$19+'BP Financier'!$C$22+'BP Financier'!$D$22+'BP Financier'!$E$22+'BP Financier'!$F$22+'BP Financier'!$F$19+'BP Financier'!$F$16))*$V7234*X7234/(1-$W7234)","v":{"v":26231.948127543983,"d":"26,232"}},{"$f":"'BP Financier'!$F$44*(('BP Financier'!$C$19+'BP Financier'!$D$19+'BP Financier'!$E$19+'BP Financier'!$F$19)/('BP Financier'!$C$16+'BP Financier'!$C$19+'BP Financier'!$D$16+'BP Financier'!$D$19+'BP Financier'!$E$16+'BP Financier'!$E$19+'BP Financier'!$C$22+'BP Financier'!$D$22+'BP Financier'!$E$22+'BP Financier'!$F$22+'BP Financier'!$F$19+'BP Financier'!$F$16))*$V7234*Y7234/(1-$W7234)","v":{"v":17536.27471509846,"d":"17,536"}},{"$f":"'BP Financier'!$F$44*(('BP Financier'!$C$19+'BP Financier'!$D$19+'BP Financier'!$E$19+'BP Financier'!$F$19)/('BP Financier'!$C$16+'BP Financier'!$C$19+'BP Financier'!$D$16+'BP Financier'!$D$19+'BP Financier'!$E$16+'BP Financier'!$E$19+'BP Financier'!$C$22+'BP Financier'!$D$22+'BP Financier'!$E$22+'BP Financier'!$F$22+'BP Financier'!$F$19+'BP Financier'!$F$16))*$V7234*Z7234/(1-$W7234)","v":{"v":137246.71202643178,"d":"137,247"}},{"$f":"'BP Financier'!$F$44*(('BP Financier'!$C$19+'BP Financier'!$D$19+'BP Financier'!$E$19+'BP Financier'!$F$19)/('BP Financier'!$C$16+'BP Financier'!$C$19+'BP Financier'!$D$16+'BP Financier'!$D$19+'BP Financier'!$E$16+'BP Financier'!$E$19+'BP Financier'!$C$22+'BP Financier'!$D$22+'BP Financier'!$E$22+'BP Financier'!$F$22+'BP Financier'!$F$19+'BP Financier'!$F$16))*$V7234*AA7234/(1-$W7234)","v":{"v":16956.56315426876,"d":"16,957"}},{"$f":"'BP Financier'!$F$44*(('BP Financier'!$C$19+'BP Financier'!$D$19+'BP Financier'!$E$19+'BP Financier'!$F$19)/('BP Financier'!$C$16+'BP Financier'!$C$19+'BP Financier'!$D$16+'BP Financier'!$D$19+'BP Financier'!$E$16+'BP Financier'!$E$19+'BP Financier'!$C$22+'BP Financier'!$D$22+'BP Financier'!$E$22+'BP Financier'!$F$22+'BP Financier'!$F$19+'BP Financier'!$F$16))*$V7234*AB7234/(1-$W7234)","v":{"v":8115.961851615815,"d":"8,116"}},null,{"v":0.01,"d":"1.00%"},{"$f":"Actif!$E$28/100","v":{"v":0.28900000000000003,"d":"28.90%"}},{"$f":"Actif!$E$30/100","v":{"v":0.09050000000000001,"d":"9.05%"}},{"$f":"Actif!$E$31/100","v":{"v":0.0605,"d":"6.05%"}},{"$f":"Actif!$E$32/100","v":{"v":0.47350000000000003,"d":"47.35%"}},{"$f":"Actif!$E$33/100","v":{"v":0.0585,"d":"5.85%"}},{"$f":"Actif!$E$29/100","v":{"v":0.027999999999999997,"d":"2.80%"}}]
[null,"#125",49,2026,"H","A_PER",{"v":0.44999999999999996,"d":"0.45"},{"v":0.38999999999999996,"d":"0.39"},0.6,0.6,85,0,{"$f":"ROUND(Primes!$P$7*V7235,0)","v":10},{"$f":"'BP Financier'!$F$33*(('BP Financier'!$C$19+'BP Financier'!$D$19+'BP Financier'!$E$19+'BP Financier'!$F$19)/('BP Financier'!$C$16+'BP Financier'!$C$19+'BP Financier'!$D$16+'BP Financier'!$D$19+'BP Financier'!$E$16+'BP Financier'!$E$19+'BP Financier'!$F$16+'BP Financier'!$F$19))*V7235","v":{"v":363297.7607432643,"d":"363,298"}},{"v":206087.45987495876,"d":"206,087"},{"$f":"'BP Financier'!$F$44*(('BP Financier'!$C$19+'BP Financier'!$D$19+'BP Financier'!$E$19+'BP Financier'!$F$19)/('BP Financier'!$C$16+'BP Financier'!$C$19+'BP Financier'!$D$16+'BP Financier'!$D$19+'BP Financier'!$E$16+'BP Financier'!$E$19+'BP Financier'!$C$22+'BP Financier'!$D$22+'BP Financier'!$E$22+'BP Financier'!$F$22+'BP Financier'!$F$19+'BP Financier'!$F$16))*$V7235*X7235/(1-$W7235)","v":{"v":26231.948127543983,"d":"26,232"}},{"$f":"'BP Financier'!$F$44*(('BP Financier'!$C$19+'BP Financier'!$D$19+'BP Financier'!$E$19+'BP Financier'!$F$19)/('BP Financier'!$C$16+'BP Financier'!$C$19+'BP Financier'!$D$16+'BP Financier'!$D$19+'BP Financier'!$E$16+'BP Financier'!$E$19+'BP Financier'!$C$22+'BP Financier'!$D$22+'BP Financier'!$E$22+'BP Financier'!$F$22+'BP Financier'!$F$19+'BP Financier'!$F$16))*$V7235*Y7235/(1-$W7235)","v":{"v":17536.27471509846,"d":"17,536"}},{"$f":"'BP Financier'!$F$44*(('BP Financier'!$C$19+'BP Financier'!$D$19+'BP Financier'!$E$19+'BP Financier'!$F$19)/('BP Financier'!$C$16+'BP Financier'!$C$19+'BP Financier'!$D$16+'BP Financier'!$D$19+'BP Financier'!$E$16+'BP Financier'!$E$19+'BP Financier'!$C$22+'BP Financier'!$D$22+'BP Financier'!$E$22+'BP Financier'!$F$22+'BP Financier'!$F$19+'BP Financier'!$F$16))*$V7235*Z7235/(1-$W7235)","v":{"v":137246.71202643178,"d":"137,247"}},{"$f":"'BP Financier'!$F$44*(('BP Financier'!$C$19+'BP Financier'!$D$19+'BP Financier'!$E$19+'BP Financier'!$F$19)/('BP Financier'!$C$16+'BP Financier'!$C$19+'BP Financier'!$D$16+'BP Financier'!$D$19+'BP Financier'!$E$16+'BP Financier'!$E$19+'BP Financier'!$C$22+'BP Financier'!$D$22+'BP Financier'!$E$22+'BP Financier'!$F$22+'BP Financier'!$F$19+'BP Financier'!$F$16))*$V7235*AA7235/(1-$W7235)","v":{"v":16956.56315426876,"d":"16,957"}},{"$f":"'BP Financier'!$F$44*(('BP Financier'!$C$19+'BP Financier'!$D$19+'BP Financier'!$E$19+'BP Financier'!$F$19)/('BP Financier'!$C$16+'BP Financier'!$C$19+'BP Financier'!$D$16+'BP Financier'!$D$19+'BP Financier'!$E$16+'BP Financier'!$E$19+'BP Financier'!$C$22+'BP Financier'!$D$22+'BP Financier'!$E$22+'BP Financier'!$F$22+'BP Financier'!$F$19+'BP Financier'!$F$16))*$V7235*AB7235/(1-$W7235)","v":{"v":8115.961851615815,"d":"8,116"}},null,{"v":0.01,"d":"1.00%"},{"$f":"Actif!$E$28/100","v":{"v":0.28900000000000003,"d":"28.90%"}},{"$f":"Actif!$E$30/100","v":{"v":0.09050000000000001,"d":"9.05%"}},{"$f":"Actif!$E$31/100","v":{"v":0.0605,"d":"6.05%"}},{"$f":"Actif!$E$32/100","v":{"v":0.47350000000000003,"d":"47.35%"}},{"$f":"Actif!$E$33/100","v":{"v":0.0585,"d":"5.85%"}},{"$f":"Actif!$E$29/100","v":{"v":0.027999999999999997,"d":"2.80%"}}]
[null,"#126",49,2028,"H","A_PER",{"v":0.44999999999999996,"d":"0.45"},{"v":0.38999999999999996,"d":"0.39"},0.6,0.6,85,0,{"$f":"ROUND(Primes!$P$7*V7236,0)","v":10},{"$f":"'BP Financier'!$F$33*(('BP Financier'!$C$19+'BP Financier'!$D$19+'BP Financier'!$E$19+'BP Financier'!$F$19)/('BP Financier'!$C$16+'BP Financier'!$C$19+'BP Financier'!$D$16+'BP Financier'!$D$19+'BP Financier'!$E$16+'BP Financier'!$E$19+'BP Financier'!$F$16+'BP Financier'!$F$19))*V7236","v":{"v":363297.7607432643,"d":"363,298"}},{"v":206087.45987495876,"d":"206,087"},{"$f":"'BP Financier'!$F$44*(('BP Financier'!$C$19+'BP Financier'!$D$19+'BP Financier'!$E$19+'BP Financier'!$F$19)/('BP Financier'!$C$16+'BP Financier'!$C$19+'BP Financier'!$D$16+'BP Financier'!$D$19+'BP Financier'!$E$16+'BP Financier'!$E$19+'BP Financier'!$C$22+'BP Financier'!$D$22+'BP Financier'!$E$22+'BP Financier'!$F$22+'BP Financier'!$F$19+'BP Financier'!$F$16))*$V7236*X7236/(1-$W7236)","v":{"v":26231.948127543983,"d":"26,232"}},{"$f":"'BP Financier'!$F$44*(('BP Financier'!$C$19+'BP Financier'!$D$19+'BP Financier'!$E$19+'BP Financier'!$F$19)/('BP Financier'!$C$16+'BP Financier'!$C$19+'BP Financier'!$D$16+'BP Financier'!$D$19+'BP Financier'!$E$16+'BP Financier'!$E$19+'BP Financier'!$C$22+'BP Financier'!$D$22+'BP Financier'!$E$22+'BP Financier'!$F$22+'BP Financier'!$F$19+'BP Financier'!$F$16))*$V7236*Y7236/(1-$W7236)","v":{"v":17536.27471509846,"d":"17,536"}},{"$f":"'BP Financier'!$F$44*(('BP Financier'!$C$19+'BP Financier'!$D$19+'BP Financier'!$E$19+'BP Financier'!$F$19)/('BP Financier'!$C$16+'BP Financier'!$C$19+'BP Financier'!$D$16+'BP Financier'!$D$19+'BP Financier'!$E$16+'BP Financier'!$E$19+'BP Financier'!$C$22+'BP Financier'!$D$22+'BP Financier'!$E$22+'BP Financier'!$F$22+'BP Financier'!$F$19+'BP Financier'!$F$16))*$V7236*Z7236/(1-$W7236)","v":{"v":137246.71202643178,"d":"137,247"}},{"$f":"'BP Financier'!$F$44*(('BP Financier'!$C$19+'BP Financier'!$D$19+'BP Financier'!$E$19+'BP Financier'!$F$19)/('BP Financier'!$C$16+'BP Financier'!$C$19+'BP Financier'!$D$16+'BP Financier'!$D$19+'BP Financier'!$E$16+'BP Financier'!$E$19+'BP Financier'!$C$22+'BP Financier'!$D$22+'BP Financier'!$E$22+'BP Financier'!$F$22+'BP Financier'!$F$19+'BP Financier'!$F$16))*$V7236*AA7236/(1-$W7236)","v":{"v":16956.56315426876,"d":"16,957"}},{"$f":"'BP Financier'!$F$44*(('BP Financier'!$C$19+'BP Financier'!$D$19+'BP Financier'!$E$19+'BP Financier'!$F$19)/('BP Financier'!$C$16+'BP Financier'!$C$19+'BP Financier'!$D$16+'BP Financier'!$D$19+'BP Financier'!$E$16+'BP Financier'!$E$19+'BP Financier'!$C$22+'BP Financier'!$D$22+'BP Financier'!$E$22+'BP Financier'!$F$22+'BP Financier'!$F$19+'BP Financier'!$F$16))*$V7236*AB7236/(1-$W7236)","v":{"v":8115.961851615815,"d":"8,116"}},null,{"v":0.01,"d":"1.00%"},{"$f":"Actif!$E$28/100","v":{"v":0.28900000000000003,"d":"28.90%"}},{"$f":"Actif!$E$30/100","v":{"v":0.09050000000000001,"d":"9.05%"}},{"$f":"Actif!$E$31/100","v":{"v":0.0605,"d":"6.05%"}},{"$f":"Actif!$E$32/100","v":{"v":0.47350000000000003,"d":"47.35%"}},{"$f":"Actif!$E$33/100","v":{"v":0.0585,"d":"5.85%"}},{"$f":"Actif!$E$29/100","v":{"v":0.027999999999999997,"d":"2.80%"}}]
[null,"#127",49,2029,"H","A_PER",{"v":0.44999999999999996,"d":"0.45"},{"v":0.38999999999999996,"d":"0.39"},0.6,0.6,85,0,{"$f":"ROUND(Primes!$P$7*V7237,0)","v":10},{"$f":"'BP Financier'!$F$33*(('BP Financier'!$C$19+'BP Financier'!$D$19+'BP Financier'!$E$19+'BP Financier'!$F$19)/('BP Financier'!$C$16+'BP Financier'!$C$19+'BP Financier'!$D$16+'BP Financier'!$D$19+'BP Financier'!$E$16+'BP Financier'!$E$19+'BP Financier'!$F$16+'BP Financier'!$F$19))*V7237","v":{"v":363297.7607432643,"d":"363,298"}},{"v":206087.45987495876,"d":"206,087"},{"$f":"'BP Financier'!$F$44*(('BP Financier'!$C$19+'BP Financier'!$D$19+'BP Financier'!$E$19+'BP Financier'!$F$19)/('BP Financier'!$C$16+'BP Financier'!$C$19+'BP Financier'!$D$16+'BP Financier'!$D$19+'BP Financier'!$E$16+'BP Financier'!$E$19+'BP Financier'!$C$22+'BP Financier'!$D$22+'BP Financier'!$E$22+'BP Financier'!$F$22+'BP Financier'!$F$19+'BP Financier'!$F$16))*$V7237*X7237/(1-$W7237)","v":{"v":26231.948127543983,"d":"26,232"}},{"$f":"'BP Financier'!$F$44*(('BP Financier'!$C$19+'BP Financier'!$D$19+'BP Financier'!$E$19+'BP Financier'!$F$19)/('BP Financier'!$C$16+'BP Financier'!$C$19+'BP Financier'!$D$16+'BP Financier'!$D$19+'BP Financier'!$E$16+'BP Financier'!$E$19+'BP Financier'!$C$22+'BP Financier'!$D$22+'BP Financier'!$E$22+'BP Financier'!$F$22+'BP Financier'!$F$19+'BP Financier'!$F$16))*$V7237*Y7237/(1-$W7237)","v":{"v":17536.27471509846,"d":"17,536"}},{"$f":"'BP Financier'!$F$44*(('BP Financier'!$C$19+'BP Financier'!$D$19+'BP Financier'!$E$19+'BP Financier'!$F$19)/('BP Financier'!$C$16+'BP Financier'!$C$19+'BP Financier'!$D$16+'BP Financier'!$D$19+'BP Financier'!$E$16+'BP Financier'!$E$19+'BP Financier'!$C$22+'BP Financier'!$D$22+'BP Financier'!$E$22+'BP Financier'!$F$22+'BP Financier'!$F$19+'BP Financier'!$F$16))*$V7237*Z7237/(1-$W7237)","v":{"v":137246.71202643178,"d":"137,247"}},{"$f":"'BP Financier'!$F$44*(('BP Financier'!$C$19+'BP Financier'!$D$19+'BP Financier'!$E$19+'BP Financier'!$F$19)/('BP Financier'!$C$16+'BP Financier'!$C$19+'BP Financier'!$D$16+'BP Financier'!$D$19+'BP Financier'!$E$16+'BP Financier'!$E$19+'BP Financier'!$C$22+'BP Financier'!$D$22+'BP Financier'!$E$22+'BP Financier'!$F$22+'BP Financier'!$F$19+'BP Financier'!$F$16))*$V7237*AA7237/(1-$W7237)","v":{"v":16956.56315426876,"d":"16,957"}},{"$f":"'BP Financier'!$F$44*(('BP Financier'!$C$19+'BP Financier'!$D$19+'BP Financier'!$E$19+'BP Financier'!$F$19)/('BP Financier'!$C$16+'BP Financier'!$C$19+'BP Financier'!$D$16+'BP Financier'!$D$19+'BP Financier'!$E$16+'BP Financier'!$E$19+'BP Financier'!$C$22+'BP Financier'!$D$22+'BP Financier'!$E$22+'BP Financier'!$F$22+'BP Financier'!$F$19+'BP Financier'!$F$16))*$V7237*AB7237/(1-$W7237)","v":{"v":8115.961851615815,"d":"8,116"}},null,{"v":0.01,"d":"1.00%"},{"$f":"Actif!$E$28/100","v":{"v":0.28900000000000003,"d":"28.90%"}},{"$f":"Actif!$E$30/100","v":{"v":0.09050000000000001,"d":"9.05%"}},{"$f":"Actif!$E$31/100","v":{"v":0.0605,"d":"6.05%"}},{"$f":"Actif!$E$32/100","v":{"v":0.47350000000000003,"d":"47.35%"}},{"$f":"Actif!$E$33/100","v":{"v":0.0585,"d":"5.85%"}},{"$f":"Actif!$E$29/100","v":{"v":0.027999999999999997,"d":"2.80%"}}]
[null,"#128",49,2030,"H","A_PER",{"v":0.44999999999999996,"d":"0.45"},{"v":0.38999999999999996,"d":"0.39"},0.6,0.6,85,0,{"$f":"ROUND(Primes!$P$7*V7238,0)","v":10},{"$f":"'BP Financier'!$F$33*(('BP Financier'!$C$19+'BP Financier'!$D$19+'BP Financier'!$E$19+'BP Financier'!$F$19)/('BP Financier'!$C$16+'BP Financier'!$C$19+'BP Financier'!$D$16+'BP Financier'!$D$19+'BP Financier'!$E$16+'BP Financier'!$E$19+'BP Financier'!$F$16+'BP Financier'!$F$19))*V7238","v":{"v":363297.7607432643,"d":"363,298"}},{"v":206087.45987495876,"d":"206,087"},{"$f":"'BP Financier'!$F$44*(('BP Financier'!$C$19+'BP Financier'!$D$19+'BP Financier'!$E$19+'BP Financier'!$F$19)/('BP Financier'!$C$16+'BP Financier'!$C$19+'BP Financier'!$D$16+'BP Financier'!$D$19+'BP Financier'!$E$16+'BP Financier'!$E$19+'BP Financier'!$C$22+'BP Financier'!$D$22+'BP Financier'!$E$22+'BP Financier'!$F$22+'BP Financier'!$F$19+'BP Financier'!$F$16))*$V7238*X7238/(1-$W7238)","v":{"v":26231.948127543983,"d":"26,232"}},{"$f":"'BP Financier'!$F$44*(('BP Financier'!$C$19+'BP Financier'!$D$19+'BP Financier'!$E$19+'BP Financier'!$F$19)/('BP Financier'!$C$16+'BP Financier'!$C$19+'BP Financier'!$D$16+'BP Financier'!$D$19+'BP Financier'!$E$16+'BP Financier'!$E$19+'BP Financier'!$C$22+'BP Financier'!$D$22+'BP Financier'!$E$22+'BP Financier'!$F$22+'BP Financier'!$F$19+'BP Financier'!$F$16))*$V7238*Y7238/(1-$W7238)","v":{"v":17536.27471509846,"d":"17,536"}},{"$f":"'BP Financier'!$F$44*(('BP Financier'!$C$19+'BP Financier'!$D$19+'BP Financier'!$E$19+'BP Financier'!$F$19)/('BP Financier'!$C$16+'BP Financier'!$C$19+'BP Financier'!$D$16+'BP Financier'!$D$19+'BP Financier'!$E$16+'BP Financier'!$E$19+'BP Financier'!$C$22+'BP Financier'!$D$22+'BP Financier'!$E$22+'BP Financier'!$F$22+'BP Financier'!$F$19+'BP Financier'!$F$16))*$V7238*Z7238/(1-$W7238)","v":{"v":137246.71202643178,"d":"137,247"}},{"$f":"'BP Financier'!$F$44*(('BP Financier'!$C$19+'BP Financier'!$D$19+'BP Financier'!$E$19+'BP Financier'!$F$19)/('BP Financier'!$C$16+'BP Financier'!$C$19+'BP Financier'!$D$16+'BP Financier'!$D$19+'BP Financier'!$E$16+'BP Financier'!$E$19+'BP Financier'!$C$22+'BP Financier'!$D$22+'BP Financier'!$E$22+'BP Financier'!$F$22+'BP Financier'!$F$19+'BP Financier'!$F$16))*$V7238*AA7238/(1-$W7238)","v":{"v":16956.56315426876,"d":"16,957"}},{"$f":"'BP Financier'!$F$44*(('BP Financier'!$C$19+'BP Financier'!$D$19+'BP Financier'!$E$19+'BP Financier'!$F$19)/('BP Financier'!$C$16+'BP Financier'!$C$19+'BP Financier'!$D$16+'BP Financier'!$D$19+'BP Financier'!$E$16+'BP Financier'!$E$19+'BP Financier'!$C$22+'BP Financier'!$D$22+'BP Financier'!$E$22+'BP Financier'!$F$22+'BP Financier'!$F$19+'BP Financier'!$F$16))*$V7238*AB7238/(1-$W7238)","v":{"v":8115.961851615815,"d":"8,116"}},null,{"v":0.01,"d":"1.00%"},{"$f":"Actif!$E$28/100","v":{"v":0.28900000000000003,"d":"28.90%"}},{"$f":"Actif!$E$30/100","v":{"v":0.09050000000000001,"d":"9.05%"}},{"$f":"Actif!$E$31/100","v":{"v":0.0605,"d":"6.05%"}},{"$f":"Actif!$E$32/100","v":{"v":0.47350000000000003,"d":"47.35%"}},{"$f":"Actif!$E$33/100","v":{"v":0.0585,"d":"5.85%"}},{"$f":"Actif!$E$29/100","v":{"v":0.027999999999999997,"d":"2.80%"}}]
[null,"#129",50,2026,"F","A_PER",{"v":0.44999999999999996,"d":"0.45"},{"v":0.38999999999999996,"d":"0.39"},0.6,0.6,85,0,{"$f":"ROUND(Primes!$P$7*V7239,0)","v":10},{"$f":"'BP Financier'!$F$33*(('BP Financier'!$C$19+'BP Financier'!$D$19+'BP Financier'!$E$19+'BP Financier'!$F$19)/('BP Financier'!$C$16+'BP Financier'!$C$19+'BP Financier'!$D$16+'BP Financier'!$D$19+'BP Financier'!$E$16+'BP Financier'!$E$19+'BP Financier'!$F$16+'BP Financier'!$F$19))*V7239","v":{"v":363297.7607432643,"d":"363,298"}},{"v":206087.45987495876,"d":"206,087"},{"$f":"'BP Financier'!$F$44*(('BP Financier'!$C$19+'BP Financier'!$D$19+'BP Financier'!$E$19+'BP Financier'!$F$19)/('BP Financier'!$C$16+'BP Financier'!$C$19+'BP Financier'!$D$16+'BP Financier'!$D$19+'BP Financier'!$E$16+'BP Financier'!$E$19+'BP Financier'!$C$22+'BP Financier'!$D$22+'BP Financier'!$E$22+'BP Financier'!$F$22+'BP Financier'!$F$19+'BP Financier'!$F$16))*$V7239*X7239/(1-$W7239)","v":{"v":26231.948127543983,"d":"26,232"}},{"$f":"'BP Financier'!$F$44*(('BP Financier'!$C$19+'BP Financier'!$D$19+'BP Financier'!$E$19+'BP Financier'!$F$19)/('BP Financier'!$C$16+'BP Financier'!$C$19+'BP Financier'!$D$16+'BP Financier'!$D$19+'BP Financier'!$E$16+'BP Financier'!$E$19+'BP Financier'!$C$22+'BP Financier'!$D$22+'BP Financier'!$E$22+'BP Financier'!$F$22+'BP Financier'!$F$19+'BP Financier'!$F$16))*$V7239*Y7239/(1-$W7239)","v":{"v":17536.27471509846,"d":"17,536"}},{"$f":"'BP Financier'!$F$44*(('BP Financier'!$C$19+'BP Financier'!$D$19+'BP Financier'!$E$19+'BP Financier'!$F$19)/('BP Financier'!$C$16+'BP Financier'!$C$19+'BP Financier'!$D$16+'BP Financier'!$D$19+'BP Financier'!$E$16+'BP Financier'!$E$19+'BP Financier'!$C$22+'BP Financier'!$D$22+'BP Financier'!$E$22+'BP Financier'!$F$22+'BP Financier'!$F$19+'BP Financier'!$F$16))*$V7239*Z7239/(1-$W7239)","v":{"v":137246.71202643178,"d":"137,247"}},{"$f":"'BP Financier'!$F$44*(('BP Financier'!$C$19+'BP Financier'!$D$19+'BP Financier'!$E$19+'BP Financier'!$F$19)/('BP Financier'!$C$16+'BP Financier'!$C$19+'BP Financier'!$D$16+'BP Financier'!$D$19+'BP Financier'!$E$16+'BP Financier'!$E$19+'BP Financier'!$C$22+'BP Financier'!$D$22+'BP Financier'!$E$22+'BP Financier'!$F$22+'BP Financier'!$F$19+'BP Financier'!$F$16))*$V7239*AA7239/(1-$W7239)","v":{"v":16956.56315426876,"d":"16,957"}},{"$f":"'BP Financier'!$F$44*(('BP Financier'!$C$19+'BP Financier'!$D$19+'BP Financier'!$E$19+'BP Financier'!$F$19)/('BP Financier'!$C$16+'BP Financier'!$C$19+'BP Financier'!$D$16+'BP Financier'!$D$19+'BP Financier'!$E$16+'BP Financier'!$E$19+'BP Financier'!$C$22+'BP Financier'!$D$22+'BP Financier'!$E$22+'BP Financier'!$F$22+'BP Financier'!$F$19+'BP Financier'!$F$16))*$V7239*AB7239/(1-$W7239)","v":{"v":8115.961851615815,"d":"8,116"}},null,{"v":0.01,"d":"1.00%"},{"$f":"Actif!$E$28/100","v":{"v":0.28900000000000003,"d":"28.90%"}},{"$f":"Actif!$E$30/100","v":{"v":0.09050000000000001,"d":"9.05%"}},{"$f":"Actif!$E$31/100","v":{"v":0.0605,"d":"6.05%"}},{"$f":"Actif!$E$32/100","v":{"v":0.47350000000000003,"d":"47.35%"}},{"$f":"Actif!$E$33/100","v":{"v":0.0585,"d":"5.85%"}},{"$f":"Actif!$E$29/100","v":{"v":0.027999999999999997,"d":"2.80%"}}]
[null,"#130",50,2028,"F","A_PER",{"v":0.44999999999999996,"d":"0.45"},{"v":0.38999999999999996,"d":"0.39"},0.6,0.6,85,0,{"$f":"ROUND(Primes!$P$7*V7240,0)","v":10},{"$f":"'BP Financier'!$F$33*(('BP Financier'!$C$19+'BP Financier'!$D$19+'BP Financier'!$E$19+'BP Financier'!$F$19)/('BP Financier'!$C$16+'BP Financier'!$C$19+'BP Financier'!$D$16+'BP Financier'!$D$19+'BP Financier'!$E$16+'BP Financier'!$E$19+'BP Financier'!$F$16+'BP Financier'!$F$19))*V7240","v":{"v":363297.7607432643,"d":"363,298"}},{"$f":"SUM(P7240:T7240)","v":{"v":206087.45987495876,"d":"206,087"}},{"$f":"'BP Financier'!$F$44*(('BP Financier'!$C$19+'BP Financier'!$D$19+'BP Financier'!$E$19+'BP Financier'!$F$19)/('BP Financier'!$C$16+'BP Financier'!$C$19+'BP Financier'!$D$16+'BP Financier'!$D$19+'BP Financier'!$E$16+'BP Financier'!$E$19+'BP Financier'!$C$22+'BP Financier'!$D$22+'BP Financier'!$E$22+'BP Financier'!$F$22+'BP Financier'!$F$19+'BP Financier'!$F$16))*$V7240*X7240/(1-$W7240)","v":{"v":26231.948127543983,"d":"26,232"}},{"$f":"'BP Financier'!$F$44*(('BP Financier'!$C$19+'BP Financier'!$D$19+'BP Financier'!$E$19+'BP Financier'!$F$19)/('BP Financier'!$C$16+'BP Financier'!$C$19+'BP Financier'!$D$16+'BP Financier'!$D$19+'BP Financier'!$E$16+'BP Financier'!$E$19+'BP Financier'!$C$22+'BP Financier'!$D$22+'BP Financier'!$E$22+'BP Financier'!$F$22+'BP Financier'!$F$19+'BP Financier'!$F$16))*$V7240*Y7240/(1-$W7240)","v":{"v":17536.27471509846,"d":"17,536"}},{"$f":"'BP Financier'!$F$44*(('BP Financier'!$C$19+'BP Financier'!$D$19+'BP Financier'!$E$19+'BP Financier'!$F$19)/('BP Financier'!$C$16+'BP Financier'!$C$19+'BP Financier'!$D$16+'BP Financier'!$D$19+'BP Financier'!$E$16+'BP Financier'!$E$19+'BP Financier'!$C$22+'BP Financier'!$D$22+'BP Financier'!$E$22+'BP Financier'!$F$22+'BP Financier'!$F$19+'BP Financier'!$F$16))*$V7240*Z7240/(1-$W7240)","v":{"v":137246.71202643178,"d":"137,247"}},{"$f":"'BP Financier'!$F$44*(('BP Financier'!$C$19+'BP Financier'!$D$19+'BP Financier'!$E$19+'BP Financier'!$F$19)/('BP Financier'!$C$16+'BP Financier'!$C$19+'BP Financier'!$D$16+'BP Financier'!$D$19+'BP Financier'!$E$16+'BP Financier'!$E$19+'BP Financier'!$C$22+'BP Financier'!$D$22+'BP Financier'!$E$22+'BP Financier'!$F$22+'BP Financier'!$F$19+'BP Financier'!$F$16))*$V7240*AA7240/(1-$W7240)","v":{"v":16956.56315426876,"d":"16,957"}},{"$f":"'BP Financier'!$F$44*(('BP Financier'!$C$19+'BP Financier'!$D$19+'BP Financier'!$E$19+'BP Financier'!$F$19)/('BP Financier'!$C$16+'BP Financier'!$C$19+'BP Financier'!$D$16+'BP Financier'!$D$19+'BP Financier'!$E$16+'BP Financier'!$E$19+'BP Financier'!$C$22+'BP Financier'!$D$22+'BP Financier'!$E$22+'BP Financier'!$F$22+'BP Financier'!$F$19+'BP Financier'!$F$16))*$V7240*AB7240/(1-$W7240)","v":{"v":8115.961851615815,"d":"8,116"}},null,{"v":0.01,"d":"1.00%"},{"$f":"Actif!$E$28/100","v":{"v":0.28900000000000003,"d":"28.90%"}},{"$f":"Actif!$E$30/100","v":{"v":0.09050000000000001,"d":"9.05%"}},{"$f":"Actif!$E$31/100","v":{"v":0.0605,"d":"6.05%"}},{"$f":"Actif!$E$32/100","v":{"v":0.47350000000000003,"d":"47.35%"}},{"$f":"Actif!$E$33/100","v":{"v":0.0585,"d":"5.85%"}},{"$f":"Actif!$E$29/100","v":{"v":0.027999999999999997,"d":"2.80%"}}]
[null,"#131",50,2029,"F","A_PER",{"v":0.44999999999999996,"d":"0.45"},{"v":0.38999999999999996,"d":"0.39"},0.6,0.6,85,0,{"$f":"ROUND(Primes!$P$7*V7241,0)","v":10},{"$f":"'BP Financier'!$F$33*(('BP Financier'!$C$19+'BP Financier'!$D$19+'BP Financier'!$E$19+'BP Financier'!$F$19)/('BP Financier'!$C$16+'BP Financier'!$C$19+'BP Financier'!$D$16+'BP Financier'!$D$19+'BP Financier'!$E$16+'BP Financier'!$E$19+'BP Financier'!$F$16+'BP Financier'!$F$19))*V7241","v":{"v":363297.7607432643,"d":"363,298"}},{"v":206087.45987495876,"d":"206,087"},{"$f":"'BP Financier'!$F$44*(('BP Financier'!$C$19+'BP Financier'!$D$19+'BP Financier'!$E$19+'BP Financier'!$F$19)/('BP Financier'!$C$16+'BP Financier'!$C$19+'BP Financier'!$D$16+'BP Financier'!$D$19+'BP Financier'!$E$16+'BP Financier'!$E$19+'BP Financier'!$C$22+'BP Financier'!$D$22+'BP Financier'!$E$22+'BP Financier'!$F$22+'BP Financier'!$F$19+'BP Financier'!$F$16))*$V7241*X7241/(1-$W7241)","v":{"v":26231.948127543983,"d":"26,232"}},{"$f":"'BP Financier'!$F$44*(('BP Financier'!$C$19+'BP Financier'!$D$19+'BP Financier'!$E$19+'BP Financier'!$F$19)/('BP Financier'!$C$16+'BP Financier'!$C$19+'BP Financier'!$D$16+'BP Financier'!$D$19+'BP Financier'!$E$16+'BP Financier'!$E$19+'BP Financier'!$C$22+'BP Financier'!$D$22+'BP Financier'!$E$22+'BP Financier'!$F$22+'BP Financier'!$F$19+'BP Financier'!$F$16))*$V7241*Y7241/(1-$W7241)","v":{"v":17536.27471509846,"d":"17,536"}},{"$f":"'BP Financier'!$F$44*(('BP Financier'!$C$19+'BP Financier'!$D$19+'BP Financier'!$E$19+'BP Financier'!$F$19)/('BP Financier'!$C$16+'BP Financier'!$C$19+'BP Financier'!$D$16+'BP Financier'!$D$19+'BP Financier'!$E$16+'BP Financier'!$E$19+'BP Financier'!$C$22+'BP Financier'!$D$22+'BP Financier'!$E$22+'BP Financier'!$F$22+'BP Financier'!$F$19+'BP Financier'!$F$16))*$V7241*Z7241/(1-$W7241)","v":{"v":137246.71202643178,"d":"137,247"}},{"$f":"'BP Financier'!$F$44*(('BP Financier'!$C$19+'BP Financier'!$D$19+'BP Financier'!$E$19+'BP Financier'!$F$19)/('BP Financier'!$C$16+'BP Financier'!$C$19+'BP Financier'!$D$16+'BP Financier'!$D$19+'BP Financier'!$E$16+'BP Financier'!$E$19+'BP Financier'!$C$22+'BP Financier'!$D$22+'BP Financier'!$E$22+'BP Financier'!$F$22+'BP Financier'!$F$19+'BP Financier'!$F$16))*$V7241*AA7241/(1-$W7241)","v":{"v":16956.56315426876,"d":"16,957"}},{"$f":"'BP Financier'!$F$44*(('BP Financier'!$C$19+'BP Financier'!$D$19+'BP Financier'!$E$19+'BP Financier'!$F$19)/('BP Financier'!$C$16+'BP Financier'!$C$19+'BP Financier'!$D$16+'BP Financier'!$D$19+'BP Financier'!$E$16+'BP Financier'!$E$19+'BP Financier'!$C$22+'BP Financier'!$D$22+'BP Financier'!$E$22+'BP Financier'!$F$22+'BP Financier'!$F$19+'BP Financier'!$F$16))*$V7241*AB7241/(1-$W7241)","v":{"v":8115.961851615815,"d":"8,116"}},null,{"v":0.01,"d":"1.00%"},{"$f":"Actif!$E$28/100","v":{"v":0.28900000000000003,"d":"28.90%"}},{"$f":"Actif!$E$30/100","v":{"v":0.09050000000000001,"d":"9.05%"}},{"$f":"Actif!$E$31/100","v":{"v":0.0605,"d":"6.05%"}},{"$f":"Actif!$E$32/100","v":{"v":0.47350000000000003,"d":"47.35%"}},{"$f":"Actif!$E$33/100","v":{"v":0.0585,"d":"5.85%"}},{"$f":"Actif!$E$29/100","v":{"v":0.027999999999999997,"d":"2.80%"}}]
[null,"#132",50,2030,"F","A_PER",{"v":0.44999999999999996,"d":"0.45"},{"v":0.38999999999999996,"d":"0.39"},0.6,0.6,85,0,{"$f":"ROUND(Primes!$P$7*V7242,0)","v":10},{"$f":"'BP Financier'!$F$33*(('BP Financier'!$C$19+'BP Financier'!$D$19+'BP Financier'!$E$19+'BP Financier'!$F$19)/('BP Financier'!$C$16+'BP Financier'!$C$19+'BP Financier'!$D$16+'BP Financier'!$D$19+'BP Financier'!$E$16+'BP Financier'!$E$19+'BP Financier'!$F$16+'BP Financier'!$F$19))*V7242","v":{"v":363297.7607432643,"d":"363,298"}},{"v":206087.45987495876,"d":"206,087"},{"$f":"'BP Financier'!$F$44*(('BP Financier'!$C$19+'BP Financier'!$D$19+'BP Financier'!$E$19+'BP Financier'!$F$19)/('BP Financier'!$C$16+'BP Financier'!$C$19+'BP Financier'!$D$16+'BP Financier'!$D$19+'BP Financier'!$E$16+'BP Financier'!$E$19+'BP Financier'!$C$22+'BP Financier'!$D$22+'BP Financier'!$E$22+'BP Financier'!$F$22+'BP Financier'!$F$19+'BP Financier'!$F$16))*$V7242*X7242/(1-$W7242)","v":{"v":26231.948127543983,"d":"26,232"}},{"$f":"'BP Financier'!$F$44*(('BP Financier'!$C$19+'BP Financier'!$D$19+'BP Financier'!$E$19+'BP Financier'!$F$19)/('BP Financier'!$C$16+'BP Financier'!$C$19+'BP Financier'!$D$16+'BP Financier'!$D$19+'BP Financier'!$E$16+'BP Financier'!$E$19+'BP Financier'!$C$22+'BP Financier'!$D$22+'BP Financier'!$E$22+'BP Financier'!$F$22+'BP Financier'!$F$19+'BP Financier'!$F$16))*$V7242*Y7242/(1-$W7242)","v":{"v":17536.27471509846,"d":"17,536"}},{"$f":"'BP Financier'!$F$44*(('BP Financier'!$C$19+'BP Financier'!$D$19+'BP Financier'!$E$19+'BP Financier'!$F$19)/('BP Financier'!$C$16+'BP Financier'!$C$19+'BP Financier'!$D$16+'BP Financier'!$D$19+'BP Financier'!$E$16+'BP Financier'!$E$19+'BP Financier'!$C$22+'BP Financier'!$D$22+'BP Financier'!$E$22+'BP Financier'!$F$22+'BP Financier'!$F$19+'BP Financier'!$F$16))*$V7242*Z7242/(1-$W7242)","v":{"v":137246.71202643178,"d":"137,247"}},{"$f":"'BP Financier'!$F$44*(('BP Financier'!$C$19+'BP Financier'!$D$19+'BP Financier'!$E$19+'BP Financier'!$F$19)/('BP Financier'!$C$16+'BP Financier'!$C$19+'BP Financier'!$D$16+'BP Financier'!$D$19+'BP Financier'!$E$16+'BP Financier'!$E$19+'BP Financier'!$C$22+'BP Financier'!$D$22+'BP Financier'!$E$22+'BP Financier'!$F$22+'BP Financier'!$F$19+'BP Financier'!$F$16))*$V7242*AA7242/(1-$W7242)","v":{"v":16956.56315426876,"d":"16,957"}},{"$f":"'BP Financier'!$F$44*(('BP Financier'!$C$19+'BP Financier'!$D$19+'BP Financier'!$E$19+'BP Financier'!$F$19)/('BP Financier'!$C$16+'BP Financier'!$C$19+'BP Financier'!$D$16+'BP Financier'!$D$19+'BP Financier'!$E$16+'BP Financier'!$E$19+'BP Financier'!$C$22+'BP Financier'!$D$22+'BP Financier'!$E$22+'BP Financier'!$F$22+'BP Financier'!$F$19+'BP Financier'!$F$16))*$V7242*AB7242/(1-$W7242)","v":{"v":8115.961851615815,"d":"8,116"}},null,{"v":0.01,"d":"1.00%"},{"$f":"Actif!$E$28/100","v":{"v":0.28900000000000003,"d":"28.90%"}},{"$f":"Actif!$E$30/100","v":{"v":0.09050000000000001,"d":"9.05%"}},{"$f":"Actif!$E$31/100","v":{"v":0.0605,"d":"6.05%"}},{"$f":"Actif!$E$32/100","v":{"v":0.47350000000000003,"d":"47.35%"}},{"$f":"Actif!$E$33/100","v":{"v":0.0585,"d":"5.85%"}},{"$f":"Actif!$E$29/100","v":{"v":0.027999999999999997,"d":"2.80%"}}]
[null,"#133",51,2026,"H","A_PER",{"v":0.44999999999999996,"d":"0.45"},{"v":0.38999999999999996,"d":"0.39"},0.6,0.6,85,0,{"$f":"ROUND(Primes!$P$7*V7243,0)","v":10},{"$f":"'BP Financier'!$F$33*(('BP Financier'!$C$19+'BP Financier'!$D$19+'BP Financier'!$E$19+'BP Financier'!$F$19)/('BP Financier'!$C$16+'BP Financier'!$C$19+'BP Financier'!$D$16+'BP Financier'!$D$19+'BP Financier'!$E$16+'BP Financier'!$E$19+'BP Financier'!$F$16+'BP Financier'!$F$19))*V7243","v":{"v":363297.7607432643,"d":"363,298"}},{"v":206087.45987495876,"d":"206,087"},{"$f":"'BP Financier'!$F$44*(('BP Financier'!$C$19+'BP Financier'!$D$19+'BP Financier'!$E$19+'BP Financier'!$F$19)/('BP Financier'!$C$16+'BP Financier'!$C$19+'BP Financier'!$D$16+'BP Financier'!$D$19+'BP Financier'!$E$16+'BP Financier'!$E$19+'BP Financier'!$C$22+'BP Financier'!$D$22+'BP Financier'!$E$22+'BP Financier'!$F$22+'BP Financier'!$F$19+'BP Financier'!$F$16))*$V7243*X7243/(1-$W7243)","v":{"v":26231.948127543983,"d":"26,232"}},{"$f":"'BP Financier'!$F$44*(('BP Financier'!$C$19+'BP Financier'!$D$19+'BP Financier'!$E$19+'BP Financier'!$F$19)/('BP Financier'!$C$16+'BP Financier'!$C$19+'BP Financier'!$D$16+'BP Financier'!$D$19+'BP Financier'!$E$16+'BP Financier'!$E$19+'BP Financier'!$C$22+'BP Financier'!$D$22+'BP Financier'!$E$22+'BP Financier'!$F$22+'BP Financier'!$F$19+'BP Financier'!$F$16))*$V7243*Y7243/(1-$W7243)","v":{"v":17536.27471509846,"d":"17,536"}},{"$f":"'BP Financier'!$F$44*(('BP Financier'!$C$19+'BP Financier'!$D$19+'BP Financier'!$E$19+'BP Financier'!$F$19)/('BP Financier'!$C$16+'BP Financier'!$C$19+'BP Financier'!$D$16+'BP Financier'!$D$19+'BP Financier'!$E$16+'BP Financier'!$E$19+'BP Financier'!$C$22+'BP Financier'!$D$22+'BP Financier'!$E$22+'BP Financier'!$F$22+'BP Financier'!$F$19+'BP Financier'!$F$16))*$V7243*Z7243/(1-$W7243)","v":{"v":137246.71202643178,"d":"137,247"}},{"$f":"'BP Financier'!$F$44*(('BP Financier'!$C$19+'BP Financier'!$D$19+'BP Financier'!$E$19+'BP Financier'!$F$19)/('BP Financier'!$C$16+'BP Financier'!$C$19+'BP Financier'!$D$16+'BP Financier'!$D$19+'BP Financier'!$E$16+'BP Financier'!$E$19+'BP Financier'!$C$22+'BP Financier'!$D$22+'BP Financier'!$E$22+'BP Financier'!$F$22+'BP Financier'!$F$19+'BP Financier'!$F$16))*$V7243*AA7243/(1-$W7243)","v":{"v":16956.56315426876,"d":"16,957"}},{"$f":"'BP Financier'!$F$44*(('BP Financier'!$C$19+'BP Financier'!$D$19+'BP Financier'!$E$19+'BP Financier'!$F$19)/('BP Financier'!$C$16+'BP Financier'!$C$19+'BP Financier'!$D$16+'BP Financier'!$D$19+'BP Financier'!$E$16+'BP Financier'!$E$19+'BP Financier'!$C$22+'BP Financier'!$D$22+'BP Financier'!$E$22+'BP Financier'!$F$22+'BP Financier'!$F$19+'BP Financier'!$F$16))*$V7243*AB7243/(1-$W7243)","v":{"v":8115.961851615815,"d":"8,116"}},null,{"v":0.01,"d":"1.00%"},{"$f":"Actif!$E$28/100","v":{"v":0.28900000000000003,"d":"28.90%"}},{"$f":"Actif!$E$30/100","v":{"v":0.09050000000000001,"d":"9.05%"}},{"$f":"Actif!$E$31/100","v":{"v":0.0605,"d":"6.05%"}},{"$f":"Actif!$E$32/100","v":{"v":0.47350000000000003,"d":"47.35%"}},{"$f":"Actif!$E$33/100","v":{"v":0.0585,"d":"5.85%"}},{"$f":"Actif!$E$29/100","v":{"v":0.027999999999999997,"d":"2.80%"}}]
[null,"#134",51,2028,"H","A_PER",{"v":0.44999999999999996,"d":"0.45"},{"v":0.38999999999999996,"d":"0.39"},0.6,0.6,85,0,{"$f":"ROUND(Primes!$P$7*V7244,0)","v":10},{"$f":"'BP Financier'!$F$33*(('BP Financier'!$C$19+'BP Financier'!$D$19+'BP Financier'!$E$19+'BP Financier'!$F$19)/('BP Financier'!$C$16+'BP Financier'!$C$19+'BP Financier'!$D$16+'BP Financier'!$D$19+'BP Financier'!$E$16+'BP Financier'!$E$19+'BP Financier'!$F$16+'BP Financier'!$F$19))*V7244","v":{"v":363297.7607432643,"d":"363,298"}},{"v":206087.45987495876,"d":"206,087"},{"$f":"'BP Financier'!$F$44*(('BP Financier'!$C$19+'BP Financier'!$D$19+'BP Financier'!$E$19+'BP Financier'!$F$19)/('BP Financier'!$C$16+'BP Financier'!$C$19+'BP Financier'!$D$16+'BP Financier'!$D$19+'BP Financier'!$E$16+'BP Financier'!$E$19+'BP Financier'!$C$22+'BP Financier'!$D$22+'BP Financier'!$E$22+'BP Financier'!$F$22+'BP Financier'!$F$19+'BP Financier'!$F$16))*$V7244*X7244/(1-$W7244)","v":{"v":26231.948127543983,"d":"26,232"}},{"$f":"'BP Financier'!$F$44*(('BP Financier'!$C$19+'BP Financier'!$D$19+'BP Financier'!$E$19+'BP Financier'!$F$19)/('BP Financier'!$C$16+'BP Financier'!$C$19+'BP Financier'!$D$16+'BP Financier'!$D$19+'BP Financier'!$E$16+'BP Financier'!$E$19+'BP Financier'!$C$22+'BP Financier'!$D$22+'BP Financier'!$E$22+'BP Financier'!$F$22+'BP Financier'!$F$19+'BP Financier'!$F$16))*$V7244*Y7244/(1-$W7244)","v":{"v":17536.27471509846,"d":"17,536"}},{"$f":"'BP Financier'!$F$44*(('BP Financier'!$C$19+'BP Financier'!$D$19+'BP Financier'!$E$19+'BP Financier'!$F$19)/('BP Financier'!$C$16+'BP Financier'!$C$19+'BP Financier'!$D$16+'BP Financier'!$D$19+'BP Financier'!$E$16+'BP Financier'!$E$19+'BP Financier'!$C$22+'BP Financier'!$D$22+'BP Financier'!$E$22+'BP Financier'!$F$22+'BP Financier'!$F$19+'BP Financier'!$F$16))*$V7244*Z7244/(1-$W7244)","v":{"v":137246.71202643178,"d":"137,247"}},{"$f":"'BP Financier'!$F$44*(('BP Financier'!$C$19+'BP Financier'!$D$19+'BP Financier'!$E$19+'BP Financier'!$F$19)/('BP Financier'!$C$16+'BP Financier'!$C$19+'BP Financier'!$D$16+'BP Financier'!$D$19+'BP Financier'!$E$16+'BP Financier'!$E$19+'BP Financier'!$C$22+'BP Financier'!$D$22+'BP Financier'!$E$22+'BP Financier'!$F$22+'BP Financier'!$F$19+'BP Financier'!$F$16))*$V7244*AA7244/(1-$W7244)","v":{"v":16956.56315426876,"d":"16,957"}},{"$f":"'BP Financier'!$F$44*(('BP Financier'!$C$19+'BP Financier'!$D$19+'BP Financier'!$E$19+'BP Financier'!$F$19)/('BP Financier'!$C$16+'BP Financier'!$C$19+'BP Financier'!$D$16+'BP Financier'!$D$19+'BP Financier'!$E$16+'BP Financier'!$E$19+'BP Financier'!$C$22+'BP Financier'!$D$22+'BP Financier'!$E$22+'BP Financier'!$F$22+'BP Financier'!$F$19+'BP Financier'!$F$16))*$V7244*AB7244/(1-$W7244)","v":{"v":8115.961851615815,"d":"8,116"}},null,{"v":0.01,"d":"1.00%"},{"$f":"Actif!$E$28/100","v":{"v":0.28900000000000003,"d":"28.90%"}},{"$f":"Actif!$E$30/100","v":{"v":0.09050000000000001,"d":"9.05%"}},{"$f":"Actif!$E$31/100","v":{"v":0.0605,"d":"6.05%"}},{"$f":"Actif!$E$32/100","v":{"v":0.47350000000000003,"d":"47.35%"}},{"$f":"Actif!$E$33/100","v":{"v":0.0585,"d":"5.85%"}},{"$f":"Actif!$E$29/100","v":{"v":0.027999999999999997,"d":"2.80%"}}]
[null,"#135",51,2029,"H","A_PER",{"v":0.44999999999999996,"d":"0.45"},{"v":0.38999999999999996,"d":"0.39"},0.6,0.6,85,0,{"$f":"ROUND(Primes!$P$7*V7245,0)","v":10},{"$f":"'BP Financier'!$F$33*(('BP Financier'!$C$19+'BP Financier'!$D$19+'BP Financier'!$E$19+'BP Financier'!$F$19)/('BP Financier'!$C$16+'BP Financier'!$C$19+'BP Financier'!$D$16+'BP Financier'!$D$19+'BP Financier'!$E$16+'BP Financier'!$E$19+'BP Financier'!$F$16+'BP Financier'!$F$19))*V7245","v":{"v":363297.7607432643,"d":"363,298"}},{"v":206087.45987495876,"d":"206,087"},{"$f":"'BP Financier'!$F$44*(('BP Financier'!$C$19+'BP Financier'!$D$19+'BP Financier'!$E$19+'BP Financier'!$F$19)/('BP Financier'!$C$16+'BP Financier'!$C$19+'BP Financier'!$D$16+'BP Financier'!$D$19+'BP Financier'!$E$16+'BP Financier'!$E$19+'BP Financier'!$C$22+'BP Financier'!$D$22+'BP Financier'!$E$22+'BP Financier'!$F$22+'BP Financier'!$F$19+'BP Financier'!$F$16))*$V7245*X7245/(1-$W7245)","v":{"v":26231.948127543983,"d":"26,232"}},{"$f":"'BP Financier'!$F$44*(('BP Financier'!$C$19+'BP Financier'!$D$19+'BP Financier'!$E$19+'BP Financier'!$F$19)/('BP Financier'!$C$16+'BP Financier'!$C$19+'BP Financier'!$D$16+'BP Financier'!$D$19+'BP Financier'!$E$16+'BP Financier'!$E$19+'BP Financier'!$C$22+'BP Financier'!$D$22+'BP Financier'!$E$22+'BP Financier'!$F$22+'BP Financier'!$F$19+'BP Financier'!$F$16))*$V7245*Y7245/(1-$W7245)","v":{"v":17536.27471509846,"d":"17,536"}},{"$f":"'BP Financier'!$F$44*(('BP Financier'!$C$19+'BP Financier'!$D$19+'BP Financier'!$E$19+'BP Financier'!$F$19)/('BP Financier'!$C$16+'BP Financier'!$C$19+'BP Financier'!$D$16+'BP Financier'!$D$19+'BP Financier'!$E$16+'BP Financier'!$E$19+'BP Financier'!$C$22+'BP Financier'!$D$22+'BP Financier'!$E$22+'BP Financier'!$F$22+'BP Financier'!$F$19+'BP Financier'!$F$16))*$V7245*Z7245/(1-$W7245)","v":{"v":137246.71202643178,"d":"137,247"}},{"$f":"'BP Financier'!$F$44*(('BP Financier'!$C$19+'BP Financier'!$D$19+'BP Financier'!$E$19+'BP Financier'!$F$19)/('BP Financier'!$C$16+'BP Financier'!$C$19+'BP Financier'!$D$16+'BP Financier'!$D$19+'BP Financier'!$E$16+'BP Financier'!$E$19+'BP Financier'!$C$22+'BP Financier'!$D$22+'BP Financier'!$E$22+'BP Financier'!$F$22+'BP Financier'!$F$19+'BP Financier'!$F$16))*$V7245*AA7245/(1-$W7245)","v":{"v":16956.56315426876,"d":"16,957"}},{"$f":"'BP Financier'!$F$44*(('BP Financier'!$C$19+'BP Financier'!$D$19+'BP Financier'!$E$19+'BP Financier'!$F$19)/('BP Financier'!$C$16+'BP Financier'!$C$19+'BP Financier'!$D$16+'BP Financier'!$D$19+'BP Financier'!$E$16+'BP Financier'!$E$19+'BP Financier'!$C$22+'BP Financier'!$D$22+'BP Financier'!$E$22+'BP Financier'!$F$22+'BP Financier'!$F$19+'BP Financier'!$F$16))*$V7245*AB7245/(1-$W7245)","v":{"v":8115.961851615815,"d":"8,116"}},null,{"v":0.01,"d":"1.00%"},{"$f":"Actif!$E$28/100","v":{"v":0.28900000000000003,"d":"28.90%"}},{"$f":"Actif!$E$30/100","v":{"v":0.09050000000000001,"d":"9.05%"}},{"$f":"Actif!$E$31/100","v":{"v":0.0605,"d":"6.05%"}},{"$f":"Actif!$E$32/100","v":{"v":0.47350000000000003,"d":"47.35%"}},{"$f":"Actif!$E$33/100","v":{"v":0.0585,"d":"5.85%"}},{"$f":"Actif!$E$29/100","v":{"v":0.027999999999999997,"d":"2.80%"}}]
[null,"#136",51,2030,"H","A_PER",{"v":0.44999999999999996,"d":"0.45"},{"v":0.38999999999999996,"d":"0.39"},0.6,0.6,85,0,{"$f":"ROUND(Primes!$P$7*V7246,0)","v":10},{"$f":"'BP Financier'!$F$33*(('BP Financier'!$C$19+'BP Financier'!$D$19+'BP Financier'!$E$19+'BP Financier'!$F$19)/('BP Financier'!$C$16+'BP Financier'!$C$19+'BP Financier'!$D$16+'BP Financier'!$D$19+'BP Financier'!$E$16+'BP Financier'!$E$19+'BP Financier'!$F$16+'BP Financier'!$F$19))*V7246","v":{"v":363297.7607432643,"d":"363,298"}},{"v":206087.45987495876,"d":"206,087"},{"$f":"'BP Financier'!$F$44*(('BP Financier'!$C$19+'BP Financier'!$D$19+'BP Financier'!$E$19+'BP Financier'!$F$19)/('BP Financier'!$C$16+'BP Financier'!$C$19+'BP Financier'!$D$16+'BP Financier'!$D$19+'BP Financier'!$E$16+'BP Financier'!$E$19+'BP Financier'!$C$22+'BP Financier'!$D$22+'BP Financier'!$E$22+'BP Financier'!$F$22+'BP Financier'!$F$19+'BP Financier'!$F$16))*$V7246*X7246/(1-$W7246)","v":{"v":26231.948127543983,"d":"26,232"}},{"$f":"'BP Financier'!$F$44*(('BP Financier'!$C$19+'BP Financier'!$D$19+'BP Financier'!$E$19+'BP Financier'!$F$19)/('BP Financier'!$C$16+'BP Financier'!$C$19+'BP Financier'!$D$16+'BP Financier'!$D$19+'BP Financier'!$E$16+'BP Financier'!$E$19+'BP Financier'!$C$22+'BP Financier'!$D$22+'BP Financier'!$E$22+'BP Financier'!$F$22+'BP Financier'!$F$19+'BP Financier'!$F$16))*$V7246*Y7246/(1-$W7246)","v":{"v":17536.27471509846,"d":"17,536"}},{"$f":"'BP Financier'!$F$44*(('BP Financier'!$C$19+'BP Financier'!$D$19+'BP Financier'!$E$19+'BP Financier'!$F$19)/('BP Financier'!$C$16+'BP Financier'!$C$19+'BP Financier'!$D$16+'BP Financier'!$D$19+'BP Financier'!$E$16+'BP Financier'!$E$19+'BP Financier'!$C$22+'BP Financier'!$D$22+'BP Financier'!$E$22+'BP Financier'!$F$22+'BP Financier'!$F$19+'BP Financier'!$F$16))*$V7246*Z7246/(1-$W7246)","v":{"v":137246.71202643178,"d":"137,247"}},{"$f":"'BP Financier'!$F$44*(('BP Financier'!$C$19+'BP Financier'!$D$19+'BP Financier'!$E$19+'BP Financier'!$F$19)/('BP Financier'!$C$16+'BP Financier'!$C$19+'BP Financier'!$D$16+'BP Financier'!$D$19+'BP Financier'!$E$16+'BP Financier'!$E$19+'BP Financier'!$C$22+'BP Financier'!$D$22+'BP Financier'!$E$22+'BP Financier'!$F$22+'BP Financier'!$F$19+'BP Financier'!$F$16))*$V7246*AA7246/(1-$W7246)","v":{"v":16956.56315426876,"d":"16,957"}},{"$f":"'BP Financier'!$F$44*(('BP Financier'!$C$19+'BP Financier'!$D$19+'BP Financier'!$E$19+'BP Financier'!$F$19)/('BP Financier'!$C$16+'BP Financier'!$C$19+'BP Financier'!$D$16+'BP Financier'!$D$19+'BP Financier'!$E$16+'BP Financier'!$E$19+'BP Financier'!$C$22+'BP Financier'!$D$22+'BP Financier'!$E$22+'BP Financier'!$F$22+'BP Financier'!$F$19+'BP Financier'!$F$16))*$V7246*AB7246/(1-$W7246)","v":{"v":8115.961851615815,"d":"8,116"}},null,{"v":0.01,"d":"1.00%"},{"$f":"Actif!$E$28/100","v":{"v":0.28900000000000003,"d":"28.90%"}},{"$f":"Actif!$E$30/100","v":{"v":0.09050000000000001,"d":"9.05%"}},{"$f":"Actif!$E$31/100","v":{"v":0.0605,"d":"6.05%"}},{"$f":"Actif!$E$32/100","v":{"v":0.47350000000000003,"d":"47.35%"}},{"$f":"Actif!$E$33/100","v":{"v":0.0585,"d":"5.85%"}},{"$f":"Actif!$E$29/100","v":{"v":0.027999999999999997,"d":"2.80%"}}]
[null,"#137",52,2026,"H","A_PER",{"v":0.44999999999999996,"d":"0.45"},{"v":0.38999999999999996,"d":"0.39"},0.6,0.6,85,0,{"$f":"ROUND(Primes!$P$7*V7247,0)","v":10},{"$f":"'BP Financier'!$F$33*(('BP Financier'!$C$19+'BP Financier'!$D$19+'BP Financier'!$E$19+'BP Financier'!$F$19)/('BP Financier'!$C$16+'BP Financier'!$C$19+'BP Financier'!$D$16+'BP Financier'!$D$19+'BP Financier'!$E$16+'BP Financier'!$E$19+'BP Financier'!$F$16+'BP Financier'!$F$19))*V7247","v":{"v":363297.7607432643,"d":"363,298"}},{"v":206087.45987495876,"d":"206,087"},{"$f":"'BP Financier'!$F$44*(('BP Financier'!$C$19+'BP Financier'!$D$19+'BP Financier'!$E$19+'BP Financier'!$F$19)/('BP Financier'!$C$16+'BP Financier'!$C$19+'BP Financier'!$D$16+'BP Financier'!$D$19+'BP Financier'!$E$16+'BP Financier'!$E$19+'BP Financier'!$C$22+'BP Financier'!$D$22+'BP Financier'!$E$22+'BP Financier'!$F$22+'BP Financier'!$F$19+'BP Financier'!$F$16))*$V7247*X7247/(1-$W7247)","v":{"v":26231.948127543983,"d":"26,232"}},{"$f":"'BP Financier'!$F$44*(('BP Financier'!$C$19+'BP Financier'!$D$19+'BP Financier'!$E$19+'BP Financier'!$F$19)/('BP Financier'!$C$16+'BP Financier'!$C$19+'BP Financier'!$D$16+'BP Financier'!$D$19+'BP Financier'!$E$16+'BP Financier'!$E$19+'BP Financier'!$C$22+'BP Financier'!$D$22+'BP Financier'!$E$22+'BP Financier'!$F$22+'BP Financier'!$F$19+'BP Financier'!$F$16))*$V7247*Y7247/(1-$W7247)","v":{"v":17536.27471509846,"d":"17,536"}},{"$f":"'BP Financier'!$F$44*(('BP Financier'!$C$19+'BP Financier'!$D$19+'BP Financier'!$E$19+'BP Financier'!$F$19)/('BP Financier'!$C$16+'BP Financier'!$C$19+'BP Financier'!$D$16+'BP Financier'!$D$19+'BP Financier'!$E$16+'BP Financier'!$E$19+'BP Financier'!$C$22+'BP Financier'!$D$22+'BP Financier'!$E$22+'BP Financier'!$F$22+'BP Financier'!$F$19+'BP Financier'!$F$16))*$V7247*Z7247/(1-$W7247)","v":{"v":137246.71202643178,"d":"137,247"}},{"$f":"'BP Financier'!$F$44*(('BP Financier'!$C$19+'BP Financier'!$D$19+'BP Financier'!$E$19+'BP Financier'!$F$19)/('BP Financier'!$C$16+'BP Financier'!$C$19+'BP Financier'!$D$16+'BP Financier'!$D$19+'BP Financier'!$E$16+'BP Financier'!$E$19+'BP Financier'!$C$22+'BP Financier'!$D$22+'BP Financier'!$E$22+'BP Financier'!$F$22+'BP Financier'!$F$19+'BP Financier'!$F$16))*$V7247*AA7247/(1-$W7247)","v":{"v":16956.56315426876,"d":"16,957"}},{"$f":"'BP Financier'!$F$44*(('BP Financier'!$C$19+'BP Financier'!$D$19+'BP Financier'!$E$19+'BP Financier'!$F$19)/('BP Financier'!$C$16+'BP Financier'!$C$19+'BP Financier'!$D$16+'BP Financier'!$D$19+'BP Financier'!$E$16+'BP Financier'!$E$19+'BP Financier'!$C$22+'BP Financier'!$D$22+'BP Financier'!$E$22+'BP Financier'!$F$22+'BP Financier'!$F$19+'BP Financier'!$F$16))*$V7247*AB7247/(1-$W7247)","v":{"v":8115.961851615815,"d":"8,116"}},null,{"v":0.01,"d":"1.00%"},{"$f":"Actif!$E$28/100","v":{"v":0.28900000000000003,"d":"28.90%"}},{"$f":"Actif!$E$30/100","v":{"v":0.09050000000000001,"d":"9.05%"}},{"$f":"Actif!$E$31/100","v":{"v":0.0605,"d":"6.05%"}},{"$f":"Actif!$E$32/100","v":{"v":0.47350000000000003,"d":"47.35%"}},{"$f":"Actif!$E$33/100","v":{"v":0.0585,"d":"5.85%"}},{"$f":"Actif!$E$29/100","v":{"v":0.027999999999999997,"d":"2.80%"}}]
[null,"#138",52,2028,"H","A_PER",{"v":0.44999999999999996,"d":"0.45"},{"v":0.38999999999999996,"d":"0.39"},0.6,0.6,85,0,{"$f":"ROUND(Primes!$P$7*V7248,0)","v":10},{"$f":"'BP Financier'!$F$33*(('BP Financier'!$C$19+'BP Financier'!$D$19+'BP Financier'!$E$19+'BP Financier'!$F$19)/('BP Financier'!$C$16+'BP Financier'!$C$19+'BP Financier'!$D$16+'BP Financier'!$D$19+'BP Financier'!$E$16+'BP Financier'!$E$19+'BP Financier'!$F$16+'BP Financier'!$F$19))*V7248","v":{"v":363297.7607432643,"d":"363,298"}},{"v":206087.45987495876,"d":"206,087"},{"$f":"'BP Financier'!$F$44*(('BP Financier'!$C$19+'BP Financier'!$D$19+'BP Financier'!$E$19+'BP Financier'!$F$19)/('BP Financier'!$C$16+'BP Financier'!$C$19+'BP Financier'!$D$16+'BP Financier'!$D$19+'BP Financier'!$E$16+'BP Financier'!$E$19+'BP Financier'!$C$22+'BP Financier'!$D$22+'BP Financier'!$E$22+'BP Financier'!$F$22+'BP Financier'!$F$19+'BP Financier'!$F$16))*$V7248*X7248/(1-$W7248)","v":{"v":26231.948127543983,"d":"26,232"}},{"$f":"'BP Financier'!$F$44*(('BP Financier'!$C$19+'BP Financier'!$D$19+'BP Financier'!$E$19+'BP Financier'!$F$19)/('BP Financier'!$C$16+'BP Financier'!$C$19+'BP Financier'!$D$16+'BP Financier'!$D$19+'BP Financier'!$E$16+'BP Financier'!$E$19+'BP Financier'!$C$22+'BP Financier'!$D$22+'BP Financier'!$E$22+'BP Financier'!$F$22+'BP Financier'!$F$19+'BP Financier'!$F$16))*$V7248*Y7248/(1-$W7248)","v":{"v":17536.27471509846,"d":"17,536"}},{"$f":"'BP Financier'!$F$44*(('BP Financier'!$C$19+'BP Financier'!$D$19+'BP Financier'!$E$19+'BP Financier'!$F$19)/('BP Financier'!$C$16+'BP Financier'!$C$19+'BP Financier'!$D$16+'BP Financier'!$D$19+'BP Financier'!$E$16+'BP Financier'!$E$19+'BP Financier'!$C$22+'BP Financier'!$D$22+'BP Financier'!$E$22+'BP Financier'!$F$22+'BP Financier'!$F$19+'BP Financier'!$F$16))*$V7248*Z7248/(1-$W7248)","v":{"v":137246.71202643178,"d":"137,247"}},{"$f":"'BP Financier'!$F$44*(('BP Financier'!$C$19+'BP Financier'!$D$19+'BP Financier'!$E$19+'BP Financier'!$F$19)/('BP Financier'!$C$16+'BP Financier'!$C$19+'BP Financier'!$D$16+'BP Financier'!$D$19+'BP Financier'!$E$16+'BP Financier'!$E$19+'BP Financier'!$C$22+'BP Financier'!$D$22+'BP Financier'!$E$22+'BP Financier'!$F$22+'BP Financier'!$F$19+'BP Financier'!$F$16))*$V7248*AA7248/(1-$W7248)","v":{"v":16956.56315426876,"d":"16,957"}},{"$f":"'BP Financier'!$F$44*(('BP Financier'!$C$19+'BP Financier'!$D$19+'BP Financier'!$E$19+'BP Financier'!$F$19)/('BP Financier'!$C$16+'BP Financier'!$C$19+'BP Financier'!$D$16+'BP Financier'!$D$19+'BP Financier'!$E$16+'BP Financier'!$E$19+'BP Financier'!$C$22+'BP Financier'!$D$22+'BP Financier'!$E$22+'BP Financier'!$F$22+'BP Financier'!$F$19+'BP Financier'!$F$16))*$V7248*AB7248/(1-$W7248)","v":{"v":8115.961851615815,"d":"8,116"}},null,{"v":0.01,"d":"1.00%"},{"$f":"Actif!$E$28/100","v":{"v":0.28900000000000003,"d":"28.90%"}},{"$f":"Actif!$E$30/100","v":{"v":0.09050000000000001,"d":"9.05%"}},{"$f":"Actif!$E$31/100","v":{"v":0.0605,"d":"6.05%"}},{"$f":"Actif!$E$32/100","v":{"v":0.47350000000000003,"d":"47.35%"}},{"$f":"Actif!$E$33/100","v":{"v":0.0585,"d":"5.85%"}},{"$f":"Actif!$E$29/100","v":{"v":0.027999999999999997,"d":"2.80%"}}]
[null,"#139",52,2029,"H","A_PER",{"v":0.44999999999999996,"d":"0.45"},{"v":0.38999999999999996,"d":"0.39"},0.6,0.6,85,0,{"$f":"ROUND(Primes!$P$7*V7249,0)","v":10},{"$f":"'BP Financier'!$F$33*(('BP Financier'!$C$19+'BP Financier'!$D$19+'BP Financier'!$E$19+'BP Financier'!$F$19)/('BP Financier'!$C$16+'BP Financier'!$C$19+'BP Financier'!$D$16+'BP Financier'!$D$19+'BP Financier'!$E$16+'BP Financier'!$E$19+'BP Financier'!$F$16+'BP Financier'!$F$19))*V7249","v":{"v":363297.7607432643,"d":"363,298"}},{"v":206087.45987495876,"d":"206,087"},{"$f":"'BP Financier'!$F$44*(('BP Financier'!$C$19+'BP Financier'!$D$19+'BP Financier'!$E$19+'BP Financier'!$F$19)/('BP Financier'!$C$16+'BP Financier'!$C$19+'BP Financier'!$D$16+'BP Financier'!$D$19+'BP Financier'!$E$16+'BP Financier'!$E$19+'BP Financier'!$C$22+'BP Financier'!$D$22+'BP Financier'!$E$22+'BP Financier'!$F$22+'BP Financier'!$F$19+'BP Financier'!$F$16))*$V7249*X7249/(1-$W7249)","v":{"v":26231.948127543983,"d":"26,232"}},{"$f":"'BP Financier'!$F$44*(('BP Financier'!$C$19+'BP Financier'!$D$19+'BP Financier'!$E$19+'BP Financier'!$F$19)/('BP Financier'!$C$16+'BP Financier'!$C$19+'BP Financier'!$D$16+'BP Financier'!$D$19+'BP Financier'!$E$16+'BP Financier'!$E$19+'BP Financier'!$C$22+'BP Financier'!$D$22+'BP Financier'!$E$22+'BP Financier'!$F$22+'BP Financier'!$F$19+'BP Financier'!$F$16))*$V7249*Y7249/(1-$W7249)","v":{"v":17536.27471509846,"d":"17,536"}},{"$f":"'BP Financier'!$F$44*(('BP Financier'!$C$19+'BP Financier'!$D$19+'BP Financier'!$E$19+'BP Financier'!$F$19)/('BP Financier'!$C$16+'BP Financier'!$C$19+'BP Financier'!$D$16+'BP Financier'!$D$19+'BP Financier'!$E$16+'BP Financier'!$E$19+'BP Financier'!$C$22+'BP Financier'!$D$22+'BP Financier'!$E$22+'BP Financier'!$F$22+'BP Financier'!$F$19+'BP Financier'!$F$16))*$V7249*Z7249/(1-$W7249)","v":{"v":137246.71202643178,"d":"137,247"}},{"$f":"'BP Financier'!$F$44*(('BP Financier'!$C$19+'BP Financier'!$D$19+'BP Financier'!$E$19+'BP Financier'!$F$19)/('BP Financier'!$C$16+'BP Financier'!$C$19+'BP Financier'!$D$16+'BP Financier'!$D$19+'BP Financier'!$E$16+'BP Financier'!$E$19+'BP Financier'!$C$22+'BP Financier'!$D$22+'BP Financier'!$E$22+'BP Financier'!$F$22+'BP Financier'!$F$19+'BP Financier'!$F$16))*$V7249*AA7249/(1-$W7249)","v":{"v":16956.56315426876,"d":"16,957"}},{"$f":"'BP Financier'!$F$44*(('BP Financier'!$C$19+'BP Financier'!$D$19+'BP Financier'!$E$19+'BP Financier'!$F$19)/('BP Financier'!$C$16+'BP Financier'!$C$19+'BP Financier'!$D$16+'BP Financier'!$D$19+'BP Financier'!$E$16+'BP Financier'!$E$19+'BP Financier'!$C$22+'BP Financier'!$D$22+'BP Financier'!$E$22+'BP Financier'!$F$22+'BP Financier'!$F$19+'BP Financier'!$F$16))*$V7249*AB7249/(1-$W7249)","v":{"v":8115.961851615815,"d":"8,116"}},null,{"v":0.01,"d":"1.00%"},{"$f":"Actif!$E$28/100","v":{"v":0.28900000000000003,"d":"28.90%"}},{"$f":"Actif!$E$30/100","v":{"v":0.09050000000000001,"d":"9.05%"}},{"$f":"Actif!$E$31/100","v":{"v":0.0605,"d":"6.05%"}},{"$f":"Actif!$E$32/100","v":{"v":0.47350000000000003,"d":"47.35%"}},{"$f":"Actif!$E$33/100","v":{"v":0.0585,"d":"5.85%"}},{"$f":"Actif!$E$29/100","v":{"v":0.027999999999999997,"d":"2.80%"}}]
[null,"#140",52,2030,"H","A_PER",{"v":0.44999999999999996,"d":"0.45"},{"v":0.38999999999999996,"d":"0.39"},0.6,0.6,85,0,{"$f":"ROUND(Primes!$P$7*V7250,0)","v":10},{"$f":"'BP Financier'!$F$33*(('BP Financier'!$C$19+'BP Financier'!$D$19+'BP Financier'!$E$19+'BP Financier'!$F$19)/('BP Financier'!$C$16+'BP Financier'!$C$19+'BP Financier'!$D$16+'BP Financier'!$D$19+'BP Financier'!$E$16+'BP Financier'!$E$19+'BP Financier'!$F$16+'BP Financier'!$F$19))*V7250","v":{"v":363297.7607432643,"d":"363,298"}},{"v":206087.45987495876,"d":"206,087"},{"$f":"'BP Financier'!$F$44*(('BP Financier'!$C$19+'BP Financier'!$D$19+'BP Financier'!$E$19+'BP Financier'!$F$19)/('BP Financier'!$C$16+'BP Financier'!$C$19+'BP Financier'!$D$16+'BP Financier'!$D$19+'BP Financier'!$E$16+'BP Financier'!$E$19+'BP Financier'!$C$22+'BP Financier'!$D$22+'BP Financier'!$E$22+'BP Financier'!$F$22+'BP Financier'!$F$19+'BP Financier'!$F$16))*$V7250*X7250/(1-$W7250)","v":{"v":26231.948127543983,"d":"26,232"}},{"$f":"'BP Financier'!$F$44*(('BP Financier'!$C$19+'BP Financier'!$D$19+'BP Financier'!$E$19+'BP Financier'!$F$19)/('BP Financier'!$C$16+'BP Financier'!$C$19+'BP Financier'!$D$16+'BP Financier'!$D$19+'BP Financier'!$E$16+'BP Financier'!$E$19+'BP Financier'!$C$22+'BP Financier'!$D$22+'BP Financier'!$E$22+'BP Financier'!$F$22+'BP Financier'!$F$19+'BP Financier'!$F$16))*$V7250*Y7250/(1-$W7250)","v":{"v":17536.27471509846,"d":"17,536"}},{"$f":"'BP Financier'!$F$44*(('BP Financier'!$C$19+'BP Financier'!$D$19+'BP Financier'!$E$19+'BP Financier'!$F$19)/('BP Financier'!$C$16+'BP Financier'!$C$19+'BP Financier'!$D$16+'BP Financier'!$D$19+'BP Financier'!$E$16+'BP Financier'!$E$19+'BP Financier'!$C$22+'BP Financier'!$D$22+'BP Financier'!$E$22+'BP Financier'!$F$22+'BP Financier'!$F$19+'BP Financier'!$F$16))*$V7250*Z7250/(1-$W7250)","v":{"v":137246.71202643178,"d":"137,247"}},{"$f":"'BP Financier'!$F$44*(('BP Financier'!$C$19+'BP Financier'!$D$19+'BP Financier'!$E$19+'BP Financier'!$F$19)/('BP Financier'!$C$16+'BP Financier'!$C$19+'BP Financier'!$D$16+'BP Financier'!$D$19+'BP Financier'!$E$16+'BP Financier'!$E$19+'BP Financier'!$C$22+'BP Financier'!$D$22+'BP Financier'!$E$22+'BP Financier'!$F$22+'BP Financier'!$F$19+'BP Financier'!$F$16))*$V7250*AA7250/(1-$W7250)","v":{"v":16956.56315426876,"d":"16,957"}},{"$f":"'BP Financier'!$F$44*(('BP Financier'!$C$19+'BP Financier'!$D$19+'BP Financier'!$E$19+'BP Financier'!$F$19)/('BP Financier'!$C$16+'BP Financier'!$C$19+'BP Financier'!$D$16+'BP Financier'!$D$19+'BP Financier'!$E$16+'BP Financier'!$E$19+'BP Financier'!$C$22+'BP Financier'!$D$22+'BP Financier'!$E$22+'BP Financier'!$F$22+'BP Financier'!$F$19+'BP Financier'!$F$16))*$V7250*AB7250/(1-$W7250)","v":{"v":8115.961851615815,"d":"8,116"}},null,{"v":0.01,"d":"1.00%"},{"$f":"Actif!$E$28/100","v":{"v":0.28900000000000003,"d":"28.90%"}},{"$f":"Actif!$E$30/100","v":{"v":0.09050000000000001,"d":"9.05%"}},{"$f":"Actif!$E$31/100","v":{"v":0.0605,"d":"6.05%"}},{"$f":"Actif!$E$32/100","v":{"v":0.47350000000000003,"d":"47.35%"}},{"$f":"Actif!$E$33/100","v":{"v":0.0585,"d":"5.85%"}},{"$f":"Actif!$E$29/100","v":{"v":0.027999999999999997,"d":"2.80%"}}]
[null,"#141",53,2026,"F","A_PER",{"v":0.44999999999999996,"d":"0.45"},{"v":0.38999999999999996,"d":"0.39"},0.6,0.6,85,0,{"$f":"ROUND(Primes!$P$7*V7251,0)","v":10},{"$f":"'BP Financier'!$F$33*(('BP Financier'!$C$19+'BP Financier'!$D$19+'BP Financier'!$E$19+'BP Financier'!$F$19)/('BP Financier'!$C$16+'BP Financier'!$C$19+'BP Financier'!$D$16+'BP Financier'!$D$19+'BP Financier'!$E$16+'BP Financier'!$E$19+'BP Financier'!$F$16+'BP Financier'!$F$19))*V7251","v":{"v":363297.7607432643,"d":"363,298"}},{"v":206087.45987495876,"d":"206,087"},{"$f":"'BP Financier'!$F$44*(('BP Financier'!$C$19+'BP Financier'!$D$19+'BP Financier'!$E$19+'BP Financier'!$F$19)/('BP Financier'!$C$16+'BP Financier'!$C$19+'BP Financier'!$D$16+'BP Financier'!$D$19+'BP Financier'!$E$16+'BP Financier'!$E$19+'BP Financier'!$C$22+'BP Financier'!$D$22+'BP Financier'!$E$22+'BP Financier'!$F$22+'BP Financier'!$F$19+'BP Financier'!$F$16))*$V7251*X7251/(1-$W7251)","v":{"v":26231.948127543983,"d":"26,232"}},{"$f":"'BP Financier'!$F$44*(('BP Financier'!$C$19+'BP Financier'!$D$19+'BP Financier'!$E$19+'BP Financier'!$F$19)/('BP Financier'!$C$16+'BP Financier'!$C$19+'BP Financier'!$D$16+'BP Financier'!$D$19+'BP Financier'!$E$16+'BP Financier'!$E$19+'BP Financier'!$C$22+'BP Financier'!$D$22+'BP Financier'!$E$22+'BP Financier'!$F$22+'BP Financier'!$F$19+'BP Financier'!$F$16))*$V7251*Y7251/(1-$W7251)","v":{"v":17536.27471509846,"d":"17,536"}},{"$f":"'BP Financier'!$F$44*(('BP Financier'!$C$19+'BP Financier'!$D$19+'BP Financier'!$E$19+'BP Financier'!$F$19)/('BP Financier'!$C$16+'BP Financier'!$C$19+'BP Financier'!$D$16+'BP Financier'!$D$19+'BP Financier'!$E$16+'BP Financier'!$E$19+'BP Financier'!$C$22+'BP Financier'!$D$22+'BP Financier'!$E$22+'BP Financier'!$F$22+'BP Financier'!$F$19+'BP Financier'!$F$16))*$V7251*Z7251/(1-$W7251)","v":{"v":137246.71202643178,"d":"137,247"}},{"$f":"'BP Financier'!$F$44*(('BP Financier'!$C$19+'BP Financier'!$D$19+'BP Financier'!$E$19+'BP Financier'!$F$19)/('BP Financier'!$C$16+'BP Financier'!$C$19+'BP Financier'!$D$16+'BP Financier'!$D$19+'BP Financier'!$E$16+'BP Financier'!$E$19+'BP Financier'!$C$22+'BP Financier'!$D$22+'BP Financier'!$E$22+'BP Financier'!$F$22+'BP Financier'!$F$19+'BP Financier'!$F$16))*$V7251*AA7251/(1-$W7251)","v":{"v":16956.56315426876,"d":"16,957"}},{"$f":"'BP Financier'!$F$44*(('BP Financier'!$C$19+'BP Financier'!$D$19+'BP Financier'!$E$19+'BP Financier'!$F$19)/('BP Financier'!$C$16+'BP Financier'!$C$19+'BP Financier'!$D$16+'BP Financier'!$D$19+'BP Financier'!$E$16+'BP Financier'!$E$19+'BP Financier'!$C$22+'BP Financier'!$D$22+'BP Financier'!$E$22+'BP Financier'!$F$22+'BP Financier'!$F$19+'BP Financier'!$F$16))*$V7251*AB7251/(1-$W7251)","v":{"v":8115.961851615815,"d":"8,116"}},null,{"v":0.01,"d":"1.00%"},{"$f":"Actif!$E$28/100","v":{"v":0.28900000000000003,"d":"28.90%"}},{"$f":"Actif!$E$30/100","v":{"v":0.09050000000000001,"d":"9.05%"}},{"$f":"Actif!$E$31/100","v":{"v":0.0605,"d":"6.05%"}},{"$f":"Actif!$E$32/100","v":{"v":0.47350000000000003,"d":"47.35%"}},{"$f":"Actif!$E$33/100","v":{"v":0.0585,"d":"5.85%"}},{"$f":"Actif!$E$29/100","v":{"v":0.027999999999999997,"d":"2.80%"}}]
[null,"#142",53,2028,"F","A_PER",{"v":0.44999999999999996,"d":"0.45"},{"v":0.38999999999999996,"d":"0.39"},0.6,0.6,85,0,{"$f":"ROUND(Primes!$P$7*V7252,0)","v":10},{"$f":"'BP Financier'!$F$33*(('BP Financier'!$C$19+'BP Financier'!$D$19+'BP Financier'!$E$19+'BP Financier'!$F$19)/('BP Financier'!$C$16+'BP Financier'!$C$19+'BP Financier'!$D$16+'BP Financier'!$D$19+'BP Financier'!$E$16+'BP Financier'!$E$19+'BP Financier'!$F$16+'BP Financier'!$F$19))*V7252","v":{"v":363297.7607432643,"d":"363,298"}},{"v":206087.45987495876,"d":"206,087"},{"$f":"'BP Financier'!$F$44*(('BP Financier'!$C$19+'BP Financier'!$D$19+'BP Financier'!$E$19+'BP Financier'!$F$19)/('BP Financier'!$C$16+'BP Financier'!$C$19+'BP Financier'!$D$16+'BP Financier'!$D$19+'BP Financier'!$E$16+'BP Financier'!$E$19+'BP Financier'!$C$22+'BP Financier'!$D$22+'BP Financier'!$E$22+'BP Financier'!$F$22+'BP Financier'!$F$19+'BP Financier'!$F$16))*$V7252*X7252/(1-$W7252)","v":{"v":26231.948127543983,"d":"26,232"}},{"$f":"'BP Financier'!$F$44*(('BP Financier'!$C$19+'BP Financier'!$D$19+'BP Financier'!$E$19+'BP Financier'!$F$19)/('BP Financier'!$C$16+'BP Financier'!$C$19+'BP Financier'!$D$16+'BP Financier'!$D$19+'BP Financier'!$E$16+'BP Financier'!$E$19+'BP Financier'!$C$22+'BP Financier'!$D$22+'BP Financier'!$E$22+'BP Financier'!$F$22+'BP Financier'!$F$19+'BP Financier'!$F$16))*$V7252*Y7252/(1-$W7252)","v":{"v":17536.27471509846,"d":"17,536"}},{"$f":"'BP Financier'!$F$44*(('BP Financier'!$C$19+'BP Financier'!$D$19+'BP Financier'!$E$19+'BP Financier'!$F$19)/('BP Financier'!$C$16+'BP Financier'!$C$19+'BP Financier'!$D$16+'BP Financier'!$D$19+'BP Financier'!$E$16+'BP Financier'!$E$19+'BP Financier'!$C$22+'BP Financier'!$D$22+'BP Financier'!$E$22+'BP Financier'!$F$22+'BP Financier'!$F$19+'BP Financier'!$F$16))*$V7252*Z7252/(1-$W7252)","v":{"v":137246.71202643178,"d":"137,247"}},{"$f":"'BP Financier'!$F$44*(('BP Financier'!$C$19+'BP Financier'!$D$19+'BP Financier'!$E$19+'BP Financier'!$F$19)/('BP Financier'!$C$16+'BP Financier'!$C$19+'BP Financier'!$D$16+'BP Financier'!$D$19+'BP Financier'!$E$16+'BP Financier'!$E$19+'BP Financier'!$C$22+'BP Financier'!$D$22+'BP Financier'!$E$22+'BP Financier'!$F$22+'BP Financier'!$F$19+'BP Financier'!$F$16))*$V7252*AA7252/(1-$W7252)","v":{"v":16956.56315426876,"d":"16,957"}},{"$f":"'BP Financier'!$F$44*(('BP Financier'!$C$19+'BP Financier'!$D$19+'BP Financier'!$E$19+'BP Financier'!$F$19)/('BP Financier'!$C$16+'BP Financier'!$C$19+'BP Financier'!$D$16+'BP Financier'!$D$19+'BP Financier'!$E$16+'BP Financier'!$E$19+'BP Financier'!$C$22+'BP Financier'!$D$22+'BP Financier'!$E$22+'BP Financier'!$F$22+'BP Financier'!$F$19+'BP Financier'!$F$16))*$V7252*AB7252/(1-$W7252)","v":{"v":8115.961851615815,"d":"8,116"}},null,{"v":0.01,"d":"1.00%"},{"$f":"Actif!$E$28/100","v":{"v":0.28900000000000003,"d":"28.90%"}},{"$f":"Actif!$E$30/100","v":{"v":0.09050000000000001,"d":"9.05%"}},{"$f":"Actif!$E$31/100","v":{"v":0.0605,"d":"6.05%"}},{"$f":"Actif!$E$32/100","v":{"v":0.47350000000000003,"d":"47.35%"}},{"$f":"Actif!$E$33/100","v":{"v":0.0585,"d":"5.85%"}},{"$f":"Actif!$E$29/100","v":{"v":0.027999999999999997,"d":"2.80%"}}]
[null,"#143",53,2029,"F","A_PER",{"v":0.44999999999999996,"d":"0.45"},{"v":0.38999999999999996,"d":"0.39"},0.6,0.6,85,0,{"$f":"ROUND(Primes!$P$7*V7253,0)","v":10},{"$f":"'BP Financier'!$F$33*(('BP Financier'!$C$19+'BP Financier'!$D$19+'BP Financier'!$E$19+'BP Financier'!$F$19)/('BP Financier'!$C$16+'BP Financier'!$C$19+'BP Financier'!$D$16+'BP Financier'!$D$19+'BP Financier'!$E$16+'BP Financier'!$E$19+'BP Financier'!$F$16+'BP Financier'!$F$19))*V7253","v":{"v":363297.7607432643,"d":"363,298"}},{"v":206087.45987495876,"d":"206,087"},{"$f":"'BP Financier'!$F$44*(('BP Financier'!$C$19+'BP Financier'!$D$19+'BP Financier'!$E$19+'BP Financier'!$F$19)/('BP Financier'!$C$16+'BP Financier'!$C$19+'BP Financier'!$D$16+'BP Financier'!$D$19+'BP Financier'!$E$16+'BP Financier'!$E$19+'BP Financier'!$C$22+'BP Financier'!$D$22+'BP Financier'!$E$22+'BP Financier'!$F$22+'BP Financier'!$F$19+'BP Financier'!$F$16))*$V7253*X7253/(1-$W7253)","v":{"v":26231.948127543983,"d":"26,232"}},{"$f":"'BP Financier'!$F$44*(('BP Financier'!$C$19+'BP Financier'!$D$19+'BP Financier'!$E$19+'BP Financier'!$F$19)/('BP Financier'!$C$16+'BP Financier'!$C$19+'BP Financier'!$D$16+'BP Financier'!$D$19+'BP Financier'!$E$16+'BP Financier'!$E$19+'BP Financier'!$C$22+'BP Financier'!$D$22+'BP Financier'!$E$22+'BP Financier'!$F$22+'BP Financier'!$F$19+'BP Financier'!$F$16))*$V7253*Y7253/(1-$W7253)","v":{"v":17536.27471509846,"d":"17,536"}},{"$f":"'BP Financier'!$F$44*(('BP Financier'!$C$19+'BP Financier'!$D$19+'BP Financier'!$E$19+'BP Financier'!$F$19)/('BP Financier'!$C$16+'BP Financier'!$C$19+'BP Financier'!$D$16+'BP Financier'!$D$19+'BP Financier'!$E$16+'BP Financier'!$E$19+'BP Financier'!$C$22+'BP Financier'!$D$22+'BP Financier'!$E$22+'BP Financier'!$F$22+'BP Financier'!$F$19+'BP Financier'!$F$16))*$V7253*Z7253/(1-$W7253)","v":{"v":137246.71202643178,"d":"137,247"}},{"$f":"'BP Financier'!$F$44*(('BP Financier'!$C$19+'BP Financier'!$D$19+'BP Financier'!$E$19+'BP Financier'!$F$19)/('BP Financier'!$C$16+'BP Financier'!$C$19+'BP Financier'!$D$16+'BP Financier'!$D$19+'BP Financier'!$E$16+'BP Financier'!$E$19+'BP Financier'!$C$22+'BP Financier'!$D$22+'BP Financier'!$E$22+'BP Financier'!$F$22+'BP Financier'!$F$19+'BP Financier'!$F$16))*$V7253*AA7253/(1-$W7253)","v":{"v":16956.56315426876,"d":"16,957"}},{"$f":"'BP Financier'!$F$44*(('BP Financier'!$C$19+'BP Financier'!$D$19+'BP Financier'!$E$19+'BP Financier'!$F$19)/('BP Financier'!$C$16+'BP Financier'!$C$19+'BP Financier'!$D$16+'BP Financier'!$D$19+'BP Financier'!$E$16+'BP Financier'!$E$19+'BP Financier'!$C$22+'BP Financier'!$D$22+'BP Financier'!$E$22+'BP Financier'!$F$22+'BP Financier'!$F$19+'BP Financier'!$F$16))*$V7253*AB7253/(1-$W7253)","v":{"v":8115.961851615815,"d":"8,116"}},null,{"v":0.01,"d":"1.00%"},{"$f":"Actif!$E$28/100","v":{"v":0.28900000000000003,"d":"28.90%"}},{"$f":"Actif!$E$30/100","v":{"v":0.09050000000000001,"d":"9.05%"}},{"$f":"Actif!$E$31/100","v":{"v":0.0605,"d":"6.05%"}},{"$f":"Actif!$E$32/100","v":{"v":0.47350000000000003,"d":"47.35%"}},{"$f":"Actif!$E$33/100","v":{"v":0.0585,"d":"5.85%"}},{"$f":"Actif!$E$29/100","v":{"v":0.027999999999999997,"d":"2.80%"}}]
[null,"#144",53,2030,"F","A_PER",{"v":0.44999999999999996,"d":"0.45"},{"v":0.38999999999999996,"d":"0.39"},0.6,0.6,85,0,{"$f":"ROUND(Primes!$P$7*V7254,0)","v":10},{"$f":"'BP Financier'!$F$33*(('BP Financier'!$C$19+'BP Financier'!$D$19+'BP Financier'!$E$19+'BP Financier'!$F$19)/('BP Financier'!$C$16+'BP Financier'!$C$19+'BP Financier'!$D$16+'BP Financier'!$D$19+'BP Financier'!$E$16+'BP Financier'!$E$19+'BP Financier'!$F$16+'BP Financier'!$F$19))*V7254","v":{"v":363297.7607432643,"d":"363,298"}},{"v":206087.45987495876,"d":"206,087"},{"$f":"'BP Financier'!$F$44*(('BP Financier'!$C$19+'BP Financier'!$D$19+'BP Financier'!$E$19+'BP Financier'!$F$19)/('BP Financier'!$C$16+'BP Financier'!$C$19+'BP Financier'!$D$16+'BP Financier'!$D$19+'BP Financier'!$E$16+'BP Financier'!$E$19+'BP Financier'!$C$22+'BP Financier'!$D$22+'BP Financier'!$E$22+'BP Financier'!$F$22+'BP Financier'!$F$19+'BP Financier'!$F$16))*$V7254*X7254/(1-$W7254)","v":{"v":26231.948127543983,"d":"26,232"}},{"$f":"'BP Financier'!$F$44*(('BP Financier'!$C$19+'BP Financier'!$D$19+'BP Financier'!$E$19+'BP Financier'!$F$19)/('BP Financier'!$C$16+'BP Financier'!$C$19+'BP Financier'!$D$16+'BP Financier'!$D$19+'BP Financier'!$E$16+'BP Financier'!$E$19+'BP Financier'!$C$22+'BP Financier'!$D$22+'BP Financier'!$E$22+'BP Financier'!$F$22+'BP Financier'!$F$19+'BP Financier'!$F$16))*$V7254*Y7254/(1-$W7254)","v":{"v":17536.27471509846,"d":"17,536"}},{"$f":"'BP Financier'!$F$44*(('BP Financier'!$C$19+'BP Financier'!$D$19+'BP Financier'!$E$19+'BP Financier'!$F$19)/('BP Financier'!$C$16+'BP Financier'!$C$19+'BP Financier'!$D$16+'BP Financier'!$D$19+'BP Financier'!$E$16+'BP Financier'!$E$19+'BP Financier'!$C$22+'BP Financier'!$D$22+'BP Financier'!$E$22+'BP Financier'!$F$22+'BP Financier'!$F$19+'BP Financier'!$F$16))*$V7254*Z7254/(1-$W7254)","v":{"v":137246.71202643178,"d":"137,247"}},{"$f":"'BP Financier'!$F$44*(('BP Financier'!$C$19+'BP Financier'!$D$19+'BP Financier'!$E$19+'BP Financier'!$F$19)/('BP Financier'!$C$16+'BP Financier'!$C$19+'BP Financier'!$D$16+'BP Financier'!$D$19+'BP Financier'!$E$16+'BP Financier'!$E$19+'BP Financier'!$C$22+'BP Financier'!$D$22+'BP Financier'!$E$22+'BP Financier'!$F$22+'BP Financier'!$F$19+'BP Financier'!$F$16))*$V7254*AA7254/(1-$W7254)","v":{"v":16956.56315426876,"d":"16,957"}},{"$f":"'BP Financier'!$F$44*(('BP Financier'!$C$19+'BP Financier'!$D$19+'BP Financier'!$E$19+'BP Financier'!$F$19)/('BP Financier'!$C$16+'BP Financier'!$C$19+'BP Financier'!$D$16+'BP Financier'!$D$19+'BP Financier'!$E$16+'BP Financier'!$E$19+'BP Financier'!$C$22+'BP Financier'!$D$22+'BP Financier'!$E$22+'BP Financier'!$F$22+'BP Financier'!$F$19+'BP Financier'!$F$16))*$V7254*AB7254/(1-$W7254)","v":{"v":8115.961851615815,"d":"8,116"}},null,{"v":0.01,"d":"1.00%"},{"$f":"Actif!$E$28/100","v":{"v":0.28900000000000003,"d":"28.90%"}},{"$f":"Actif!$E$30/100","v":{"v":0.09050000000000001,"d":"9.05%"}},{"$f":"Actif!$E$31/100","v":{"v":0.0605,"d":"6.05%"}},{"$f":"Actif!$E$32/100","v":{"v":0.47350000000000003,"d":"47.35%"}},{"$f":"Actif!$E$33/100","v":{"v":0.0585,"d":"5.85%"}},{"$f":"Actif!$E$29/100","v":{"v":0.027999999999999997,"d":"2.80%"}}]
[null,"#145",54,2026,"H","A_PER",{"v":0.44999999999999996,"d":"0.45"},{"v":0.38999999999999996,"d":"0.39"},0.6,0.6,85,0,{"$f":"ROUND(Primes!$P$7*V7255,0)","v":10},{"$f":"'BP Financier'!$F$33*(('BP Financier'!$C$19+'BP Financier'!$D$19+'BP Financier'!$E$19+'BP Financier'!$F$19)/('BP Financier'!$C$16+'BP Financier'!$C$19+'BP Financier'!$D$16+'BP Financier'!$D$19+'BP Financier'!$E$16+'BP Financier'!$E$19+'BP Financier'!$F$16+'BP Financier'!$F$19))*V7255","v":{"v":363297.7607432643,"d":"363,298"}},{"v":206087.45987495876,"d":"206,087"},{"$f":"'BP Financier'!$F$44*(('BP Financier'!$C$19+'BP Financier'!$D$19+'BP Financier'!$E$19+'BP Financier'!$F$19)/('BP Financier'!$C$16+'BP Financier'!$C$19+'BP Financier'!$D$16+'BP Financier'!$D$19+'BP Financier'!$E$16+'BP Financier'!$E$19+'BP Financier'!$C$22+'BP Financier'!$D$22+'BP Financier'!$E$22+'BP Financier'!$F$22+'BP Financier'!$F$19+'BP Financier'!$F$16))*$V7255*X7255/(1-$W7255)","v":{"v":26231.948127543983,"d":"26,232"}},{"$f":"'BP Financier'!$F$44*(('BP Financier'!$C$19+'BP Financier'!$D$19+'BP Financier'!$E$19+'BP Financier'!$F$19)/('BP Financier'!$C$16+'BP Financier'!$C$19+'BP Financier'!$D$16+'BP Financier'!$D$19+'BP Financier'!$E$16+'BP Financier'!$E$19+'BP Financier'!$C$22+'BP Financier'!$D$22+'BP Financier'!$E$22+'BP Financier'!$F$22+'BP Financier'!$F$19+'BP Financier'!$F$16))*$V7255*Y7255/(1-$W7255)","v":{"v":17536.27471509846,"d":"17,536"}},{"$f":"'BP Financier'!$F$44*(('BP Financier'!$C$19+'BP Financier'!$D$19+'BP Financier'!$E$19+'BP Financier'!$F$19)/('BP Financier'!$C$16+'BP Financier'!$C$19+'BP Financier'!$D$16+'BP Financier'!$D$19+'BP Financier'!$E$16+'BP Financier'!$E$19+'BP Financier'!$C$22+'BP Financier'!$D$22+'BP Financier'!$E$22+'BP Financier'!$F$22+'BP Financier'!$F$19+'BP Financier'!$F$16))*$V7255*Z7255/(1-$W7255)","v":{"v":137246.71202643178,"d":"137,247"}},{"$f":"'BP Financier'!$F$44*(('BP Financier'!$C$19+'BP Financier'!$D$19+'BP Financier'!$E$19+'BP Financier'!$F$19)/('BP Financier'!$C$16+'BP Financier'!$C$19+'BP Financier'!$D$16+'BP Financier'!$D$19+'BP Financier'!$E$16+'BP Financier'!$E$19+'BP Financier'!$C$22+'BP Financier'!$D$22+'BP Financier'!$E$22+'BP Financier'!$F$22+'BP Financier'!$F$19+'BP Financier'!$F$16))*$V7255*AA7255/(1-$W7255)","v":{"v":16956.56315426876,"d":"16,957"}},{"$f":"'BP Financier'!$F$44*(('BP Financier'!$C$19+'BP Financier'!$D$19+'BP Financier'!$E$19+'BP Financier'!$F$19)/('BP Financier'!$C$16+'BP Financier'!$C$19+'BP Financier'!$D$16+'BP Financier'!$D$19+'BP Financier'!$E$16+'BP Financier'!$E$19+'BP Financier'!$C$22+'BP Financier'!$D$22+'BP Financier'!$E$22+'BP Financier'!$F$22+'BP Financier'!$F$19+'BP Financier'!$F$16))*$V7255*AB7255/(1-$W7255)","v":{"v":8115.961851615815,"d":"8,116"}},null,{"v":0.01,"d":"1.00%"},{"$f":"Actif!$E$28/100","v":{"v":0.28900000000000003,"d":"28.90%"}},{"$f":"Actif!$E$30/100","v":{"v":0.09050000000000001,"d":"9.05%"}},{"$f":"Actif!$E$31/100","v":{"v":0.0605,"d":"6.05%"}},{"$f":"Actif!$E$32/100","v":{"v":0.47350000000000003,"d":"47.35%"}},{"$f":"Actif!$E$33/100","v":{"v":0.0585,"d":"5.85%"}},{"$f":"Actif!$E$29/100","v":{"v":0.027999999999999997,"d":"2.80%"}}]
[null,"#146",54,2028,"H","A_PER",{"v":0.44999999999999996,"d":"0.45"},{"v":0.38999999999999996,"d":"0.39"},0.6,0.6,85,0,{"$f":"ROUND(Primes!$P$7*V7256,0)","v":10},{"$f":"'BP Financier'!$F$33*(('BP Financier'!$C$19+'BP Financier'!$D$19+'BP Financier'!$E$19+'BP Financier'!$F$19)/('BP Financier'!$C$16+'BP Financier'!$C$19+'BP Financier'!$D$16+'BP Financier'!$D$19+'BP Financier'!$E$16+'BP Financier'!$E$19+'BP Financier'!$F$16+'BP Financier'!$F$19))*V7256","v":{"v":363297.7607432643,"d":"363,298"}},{"v":206087.45987495876,"d":"206,087"},{"$f":"'BP Financier'!$F$44*(('BP Financier'!$C$19+'BP Financier'!$D$19+'BP Financier'!$E$19+'BP Financier'!$F$19)/('BP Financier'!$C$16+'BP Financier'!$C$19+'BP Financier'!$D$16+'BP Financier'!$D$19+'BP Financier'!$E$16+'BP Financier'!$E$19+'BP Financier'!$C$22+'BP Financier'!$D$22+'BP Financier'!$E$22+'BP Financier'!$F$22+'BP Financier'!$F$19+'BP Financier'!$F$16))*$V7256*X7256/(1-$W7256)","v":{"v":26231.948127543983,"d":"26,232"}},{"$f":"'BP Financier'!$F$44*(('BP Financier'!$C$19+'BP Financier'!$D$19+'BP Financier'!$E$19+'BP Financier'!$F$19)/('BP Financier'!$C$16+'BP Financier'!$C$19+'BP Financier'!$D$16+'BP Financier'!$D$19+'BP Financier'!$E$16+'BP Financier'!$E$19+'BP Financier'!$C$22+'BP Financier'!$D$22+'BP Financier'!$E$22+'BP Financier'!$F$22+'BP Financier'!$F$19+'BP Financier'!$F$16))*$V7256*Y7256/(1-$W7256)","v":{"v":17536.27471509846,"d":"17,536"}},{"$f":"'BP Financier'!$F$44*(('BP Financier'!$C$19+'BP Financier'!$D$19+'BP Financier'!$E$19+'BP Financier'!$F$19)/('BP Financier'!$C$16+'BP Financier'!$C$19+'BP Financier'!$D$16+'BP Financier'!$D$19+'BP Financier'!$E$16+'BP Financier'!$E$19+'BP Financier'!$C$22+'BP Financier'!$D$22+'BP Financier'!$E$22+'BP Financier'!$F$22+'BP Financier'!$F$19+'BP Financier'!$F$16))*$V7256*Z7256/(1-$W7256)","v":{"v":137246.71202643178,"d":"137,247"}},{"$f":"'BP Financier'!$F$44*(('BP Financier'!$C$19+'BP Financier'!$D$19+'BP Financier'!$E$19+'BP Financier'!$F$19)/('BP Financier'!$C$16+'BP Financier'!$C$19+'BP Financier'!$D$16+'BP Financier'!$D$19+'BP Financier'!$E$16+'BP Financier'!$E$19+'BP Financier'!$C$22+'BP Financier'!$D$22+'BP Financier'!$E$22+'BP Financier'!$F$22+'BP Financier'!$F$19+'BP Financier'!$F$16))*$V7256*AA7256/(1-$W7256)","v":{"v":16956.56315426876,"d":"16,957"}},{"$f":"'BP Financier'!$F$44*(('BP Financier'!$C$19+'BP Financier'!$D$19+'BP Financier'!$E$19+'BP Financier'!$F$19)/('BP Financier'!$C$16+'BP Financier'!$C$19+'BP Financier'!$D$16+'BP Financier'!$D$19+'BP Financier'!$E$16+'BP Financier'!$E$19+'BP Financier'!$C$22+'BP Financier'!$D$22+'BP Financier'!$E$22+'BP Financier'!$F$22+'BP Financier'!$F$19+'BP Financier'!$F$16))*$V7256*AB7256/(1-$W7256)","v":{"v":8115.961851615815,"d":"8,116"}},null,{"v":0.01,"d":"1.00%"},{"$f":"Actif!$E$28/100","v":{"v":0.28900000000000003,"d":"28.90%"}},{"$f":"Actif!$E$30/100","v":{"v":0.09050000000000001,"d":"9.05%"}},{"$f":"Actif!$E$31/100","v":{"v":0.0605,"d":"6.05%"}},{"$f":"Actif!$E$32/100","v":{"v":0.47350000000000003,"d":"47.35%"}},{"$f":"Actif!$E$33/100","v":{"v":0.0585,"d":"5.85%"}},{"$f":"Actif!$E$29/100","v":{"v":0.027999999999999997,"d":"2.80%"}}]
[null,"#147",54,2029,"H","A_PER",{"v":0.44999999999999996,"d":"0.45"},{"v":0.38999999999999996,"d":"0.39"},0.6,0.6,85,0,{"$f":"ROUND(Primes!$P$7*V7257,0)","v":10},{"$f":"'BP Financier'!$F$33*(('BP Financier'!$C$19+'BP Financier'!$D$19+'BP Financier'!$E$19+'BP Financier'!$F$19)/('BP Financier'!$C$16+'BP Financier'!$C$19+'BP Financier'!$D$16+'BP Financier'!$D$19+'BP Financier'!$E$16+'BP Financier'!$E$19+'BP Financier'!$F$16+'BP Financier'!$F$19))*V7257","v":{"v":363297.7607432643,"d":"363,298"}},{"v":206087.45987495876,"d":"206,087"},{"$f":"'BP Financier'!$F$44*(('BP Financier'!$C$19+'BP Financier'!$D$19+'BP Financier'!$E$19+'BP Financier'!$F$19)/('BP Financier'!$C$16+'BP Financier'!$C$19+'BP Financier'!$D$16+'BP Financier'!$D$19+'BP Financier'!$E$16+'BP Financier'!$E$19+'BP Financier'!$C$22+'BP Financier'!$D$22+'BP Financier'!$E$22+'BP Financier'!$F$22+'BP Financier'!$F$19+'BP Financier'!$F$16))*$V7257*X7257/(1-$W7257)","v":{"v":26231.948127543983,"d":"26,232"}},{"$f":"'BP Financier'!$F$44*(('BP Financier'!$C$19+'BP Financier'!$D$19+'BP Financier'!$E$19+'BP Financier'!$F$19)/('BP Financier'!$C$16+'BP Financier'!$C$19+'BP Financier'!$D$16+'BP Financier'!$D$19+'BP Financier'!$E$16+'BP Financier'!$E$19+'BP Financier'!$C$22+'BP Financier'!$D$22+'BP Financier'!$E$22+'BP Financier'!$F$22+'BP Financier'!$F$19+'BP Financier'!$F$16))*$V7257*Y7257/(1-$W7257)","v":{"v":17536.27471509846,"d":"17,536"}},{"$f":"'BP Financier'!$F$44*(('BP Financier'!$C$19+'BP Financier'!$D$19+'BP Financier'!$E$19+'BP Financier'!$F$19)/('BP Financier'!$C$16+'BP Financier'!$C$19+'BP Financier'!$D$16+'BP Financier'!$D$19+'BP Financier'!$E$16+'BP Financier'!$E$19+'BP Financier'!$C$22+'BP Financier'!$D$22+'BP Financier'!$E$22+'BP Financier'!$F$22+'BP Financier'!$F$19+'BP Financier'!$F$16))*$V7257*Z7257/(1-$W7257)","v":{"v":137246.71202643178,"d":"137,247"}},{"$f":"'BP Financier'!$F$44*(('BP Financier'!$C$19+'BP Financier'!$D$19+'BP Financier'!$E$19+'BP Financier'!$F$19)/('BP Financier'!$C$16+'BP Financier'!$C$19+'BP Financier'!$D$16+'BP Financier'!$D$19+'BP Financier'!$E$16+'BP Financier'!$E$19+'BP Financier'!$C$22+'BP Financier'!$D$22+'BP Financier'!$E$22+'BP Financier'!$F$22+'BP Financier'!$F$19+'BP Financier'!$F$16))*$V7257*AA7257/(1-$W7257)","v":{"v":16956.56315426876,"d":"16,957"}},{"$f":"'BP Financier'!$F$44*(('BP Financier'!$C$19+'BP Financier'!$D$19+'BP Financier'!$E$19+'BP Financier'!$F$19)/('BP Financier'!$C$16+'BP Financier'!$C$19+'BP Financier'!$D$16+'BP Financier'!$D$19+'BP Financier'!$E$16+'BP Financier'!$E$19+'BP Financier'!$C$22+'BP Financier'!$D$22+'BP Financier'!$E$22+'BP Financier'!$F$22+'BP Financier'!$F$19+'BP Financier'!$F$16))*$V7257*AB7257/(1-$W7257)","v":{"v":8115.961851615815,"d":"8,116"}},null,{"v":0.01,"d":"1.00%"},{"$f":"Actif!$E$28/100","v":{"v":0.28900000000000003,"d":"28.90%"}},{"$f":"Actif!$E$30/100","v":{"v":0.09050000000000001,"d":"9.05%"}},{"$f":"Actif!$E$31/100","v":{"v":0.0605,"d":"6.05%"}},{"$f":"Actif!$E$32/100","v":{"v":0.47350000000000003,"d":"47.35%"}},{"$f":"Actif!$E$33/100","v":{"v":0.0585,"d":"5.85%"}},{"$f":"Actif!$E$29/100","v":{"v":0.027999999999999997,"d":"2.80%"}}]
[null,"#148",54,2030,"H","A_PER",{"v":0.44999999999999996,"d":"0.45"},{"v":0.38999999999999996,"d":"0.39"},0.6,0.6,85,0,{"$f":"ROUND(Primes!$P$7*V7258,0)","v":10},{"$f":"'BP Financier'!$F$33*(('BP Financier'!$C$19+'BP Financier'!$D$19+'BP Financier'!$E$19+'BP Financier'!$F$19)/('BP Financier'!$C$16+'BP Financier'!$C$19+'BP Financier'!$D$16+'BP Financier'!$D$19+'BP Financier'!$E$16+'BP Financier'!$E$19+'BP Financier'!$F$16+'BP Financier'!$F$19))*V7258","v":{"v":363297.7607432643,"d":"363,298"}},{"v":206087.45987495876,"d":"206,087"},{"$f":"'BP Financier'!$F$44*(('BP Financier'!$C$19+'BP Financier'!$D$19+'BP Financier'!$E$19+'BP Financier'!$F$19)/('BP Financier'!$C$16+'BP Financier'!$C$19+'BP Financier'!$D$16+'BP Financier'!$D$19+'BP Financier'!$E$16+'BP Financier'!$E$19+'BP Financier'!$C$22+'BP Financier'!$D$22+'BP Financier'!$E$22+'BP Financier'!$F$22+'BP Financier'!$F$19+'BP Financier'!$F$16))*$V7258*X7258/(1-$W7258)","v":{"v":26231.948127543983,"d":"26,232"}},{"$f":"'BP Financier'!$F$44*(('BP Financier'!$C$19+'BP Financier'!$D$19+'BP Financier'!$E$19+'BP Financier'!$F$19)/('BP Financier'!$C$16+'BP Financier'!$C$19+'BP Financier'!$D$16+'BP Financier'!$D$19+'BP Financier'!$E$16+'BP Financier'!$E$19+'BP Financier'!$C$22+'BP Financier'!$D$22+'BP Financier'!$E$22+'BP Financier'!$F$22+'BP Financier'!$F$19+'BP Financier'!$F$16))*$V7258*Y7258/(1-$W7258)","v":{"v":17536.27471509846,"d":"17,536"}},{"$f":"'BP Financier'!$F$44*(('BP Financier'!$C$19+'BP Financier'!$D$19+'BP Financier'!$E$19+'BP Financier'!$F$19)/('BP Financier'!$C$16+'BP Financier'!$C$19+'BP Financier'!$D$16+'BP Financier'!$D$19+'BP Financier'!$E$16+'BP Financier'!$E$19+'BP Financier'!$C$22+'BP Financier'!$D$22+'BP Financier'!$E$22+'BP Financier'!$F$22+'BP Financier'!$F$19+'BP Financier'!$F$16))*$V7258*Z7258/(1-$W7258)","v":{"v":137246.71202643178,"d":"137,247"}},{"$f":"'BP Financier'!$F$44*(('BP Financier'!$C$19+'BP Financier'!$D$19+'BP Financier'!$E$19+'BP Financier'!$F$19)/('BP Financier'!$C$16+'BP Financier'!$C$19+'BP Financier'!$D$16+'BP Financier'!$D$19+'BP Financier'!$E$16+'BP Financier'!$E$19+'BP Financier'!$C$22+'BP Financier'!$D$22+'BP Financier'!$E$22+'BP Financier'!$F$22+'BP Financier'!$F$19+'BP Financier'!$F$16))*$V7258*AA7258/(1-$W7258)","v":{"v":16956.56315426876,"d":"16,957"}},{"$f":"'BP Financier'!$F$44*(('BP Financier'!$C$19+'BP Financier'!$D$19+'BP Financier'!$E$19+'BP Financier'!$F$19)/('BP Financier'!$C$16+'BP Financier'!$C$19+'BP Financier'!$D$16+'BP Financier'!$D$19+'BP Financier'!$E$16+'BP Financier'!$E$19+'BP Financier'!$C$22+'BP Financier'!$D$22+'BP Financier'!$E$22+'BP Financier'!$F$22+'BP Financier'!$F$19+'BP Financier'!$F$16))*$V7258*AB7258/(1-$W7258)","v":{"v":8115.961851615815,"d":"8,116"}},null,{"v":0.01,"d":"1.00%"},{"$f":"Actif!$E$28/100","v":{"v":0.28900000000000003,"d":"28.90%"}},{"$f":"Actif!$E$30/100","v":{"v":0.09050000000000001,"d":"9.05%"}},{"$f":"Actif!$E$31/100","v":{"v":0.0605,"d":"6.05%"}},{"$f":"Actif!$E$32/100","v":{"v":0.47350000000000003,"d":"47.35%"}},{"$f":"Actif!$E$33/100","v":{"v":0.0585,"d":"5.85%"}},{"$f":"Actif!$E$29/100","v":{"v":0.027999999999999997,"d":"2.80%"}}]
[null,"#149",55,2026,"H","A_PER",{"v":0.44999999999999996,"d":"0.45"},{"v":0.38999999999999996,"d":"0.39"},0.6,0.6,85,0,{"$f":"ROUND(Primes!$P$7*V7259,0)","v":10},{"$f":"'BP Financier'!$F$33*(('BP Financier'!$C$19+'BP Financier'!$D$19+'BP Financier'!$E$19+'BP Financier'!$F$19)/('BP Financier'!$C$16+'BP Financier'!$C$19+'BP Financier'!$D$16+'BP Financier'!$D$19+'BP Financier'!$E$16+'BP Financier'!$E$19+'BP Financier'!$F$16+'BP Financier'!$F$19))*V7259","v":{"v":363297.7607432643,"d":"363,298"}},{"v":206087.45987495876,"d":"206,087"},{"$f":"'BP Financier'!$F$44*(('BP Financier'!$C$19+'BP Financier'!$D$19+'BP Financier'!$E$19+'BP Financier'!$F$19)/('BP Financier'!$C$16+'BP Financier'!$C$19+'BP Financier'!$D$16+'BP Financier'!$D$19+'BP Financier'!$E$16+'BP Financier'!$E$19+'BP Financier'!$C$22+'BP Financier'!$D$22+'BP Financier'!$E$22+'BP Financier'!$F$22+'BP Financier'!$F$19+'BP Financier'!$F$16))*$V7259*X7259/(1-$W7259)","v":{"v":26231.948127543983,"d":"26,232"}},{"$f":"'BP Financier'!$F$44*(('BP Financier'!$C$19+'BP Financier'!$D$19+'BP Financier'!$E$19+'BP Financier'!$F$19)/('BP Financier'!$C$16+'BP Financier'!$C$19+'BP Financier'!$D$16+'BP Financier'!$D$19+'BP Financier'!$E$16+'BP Financier'!$E$19+'BP Financier'!$C$22+'BP Financier'!$D$22+'BP Financier'!$E$22+'BP Financier'!$F$22+'BP Financier'!$F$19+'BP Financier'!$F$16))*$V7259*Y7259/(1-$W7259)","v":{"v":17536.27471509846,"d":"17,536"}},{"$f":"'BP Financier'!$F$44*(('BP Financier'!$C$19+'BP Financier'!$D$19+'BP Financier'!$E$19+'BP Financier'!$F$19)/('BP Financier'!$C$16+'BP Financier'!$C$19+'BP Financier'!$D$16+'BP Financier'!$D$19+'BP Financier'!$E$16+'BP Financier'!$E$19+'BP Financier'!$C$22+'BP Financier'!$D$22+'BP Financier'!$E$22+'BP Financier'!$F$22+'BP Financier'!$F$19+'BP Financier'!$F$16))*$V7259*Z7259/(1-$W7259)","v":{"v":137246.71202643178,"d":"137,247"}},{"$f":"'BP Financier'!$F$44*(('BP Financier'!$C$19+'BP Financier'!$D$19+'BP Financier'!$E$19+'BP Financier'!$F$19)/('BP Financier'!$C$16+'BP Financier'!$C$19+'BP Financier'!$D$16+'BP Financier'!$D$19+'BP Financier'!$E$16+'BP Financier'!$E$19+'BP Financier'!$C$22+'BP Financier'!$D$22+'BP Financier'!$E$22+'BP Financier'!$F$22+'BP Financier'!$F$19+'BP Financier'!$F$16))*$V7259*AA7259/(1-$W7259)","v":{"v":16956.56315426876,"d":"16,957"}},{"$f":"'BP Financier'!$F$44*(('BP Financier'!$C$19+'BP Financier'!$D$19+'BP Financier'!$E$19+'BP Financier'!$F$19)/('BP Financier'!$C$16+'BP Financier'!$C$19+'BP Financier'!$D$16+'BP Financier'!$D$19+'BP Financier'!$E$16+'BP Financier'!$E$19+'BP Financier'!$C$22+'BP Financier'!$D$22+'BP Financier'!$E$22+'BP Financier'!$F$22+'BP Financier'!$F$19+'BP Financier'!$F$16))*$V7259*AB7259/(1-$W7259)","v":{"v":8115.961851615815,"d":"8,116"}},null,{"v":0.01,"d":"1.00%"},{"$f":"Actif!$E$28/100","v":{"v":0.28900000000000003,"d":"28.90%"}},{"$f":"Actif!$E$30/100","v":{"v":0.09050000000000001,"d":"9.05%"}},{"$f":"Actif!$E$31/100","v":{"v":0.0605,"d":"6.05%"}},{"$f":"Actif!$E$32/100","v":{"v":0.47350000000000003,"d":"47.35%"}},{"$f":"Actif!$E$33/100","v":{"v":0.0585,"d":"5.85%"}},{"$f":"Actif!$E$29/100","v":{"v":0.027999999999999997,"d":"2.80%"}}]
[null,"#150",55,2028,"H","A_PER",{"v":0.44999999999999996,"d":"0.45"},{"v":0.38999999999999996,"d":"0.39"},0.6,0.6,85,0,{"$f":"ROUND(Primes!$P$7*V7260,0)","v":10},{"$f":"'BP Financier'!$F$33*(('BP Financier'!$C$19+'BP Financier'!$D$19+'BP Financier'!$E$19+'BP Financier'!$F$19)/('BP Financier'!$C$16+'BP Financier'!$C$19+'BP Financier'!$D$16+'BP Financier'!$D$19+'BP Financier'!$E$16+'BP Financier'!$E$19+'BP Financier'!$F$16+'BP Financier'!$F$19))*V7260","v":{"v":363297.7607432643,"d":"363,298"}},{"v":206087.45987495876,"d":"206,087"},{"$f":"'BP Financier'!$F$44*(('BP Financier'!$C$19+'BP Financier'!$D$19+'BP Financier'!$E$19+'BP Financier'!$F$19)/('BP Financier'!$C$16+'BP Financier'!$C$19+'BP Financier'!$D$16+'BP Financier'!$D$19+'BP Financier'!$E$16+'BP Financier'!$E$19+'BP Financier'!$C$22+'BP Financier'!$D$22+'BP Financier'!$E$22+'BP Financier'!$F$22+'BP Financier'!$F$19+'BP Financier'!$F$16))*$V7260*X7260/(1-$W7260)","v":{"v":26231.948127543983,"d":"26,232"}},{"$f":"'BP Financier'!$F$44*(('BP Financier'!$C$19+'BP Financier'!$D$19+'BP Financier'!$E$19+'BP Financier'!$F$19)/('BP Financier'!$C$16+'BP Financier'!$C$19+'BP Financier'!$D$16+'BP Financier'!$D$19+'BP Financier'!$E$16+'BP Financier'!$E$19+'BP Financier'!$C$22+'BP Financier'!$D$22+'BP Financier'!$E$22+'BP Financier'!$F$22+'BP Financier'!$F$19+'BP Financier'!$F$16))*$V7260*Y7260/(1-$W7260)","v":{"v":17536.27471509846,"d":"17,536"}},{"$f":"'BP Financier'!$F$44*(('BP Financier'!$C$19+'BP Financier'!$D$19+'BP Financier'!$E$19+'BP Financier'!$F$19)/('BP Financier'!$C$16+'BP Financier'!$C$19+'BP Financier'!$D$16+'BP Financier'!$D$19+'BP Financier'!$E$16+'BP Financier'!$E$19+'BP Financier'!$C$22+'BP Financier'!$D$22+'BP Financier'!$E$22+'BP Financier'!$F$22+'BP Financier'!$F$19+'BP Financier'!$F$16))*$V7260*Z7260/(1-$W7260)","v":{"v":137246.71202643178,"d":"137,247"}},{"$f":"'BP Financier'!$F$44*(('BP Financier'!$C$19+'BP Financier'!$D$19+'BP Financier'!$E$19+'BP Financier'!$F$19)/('BP Financier'!$C$16+'BP Financier'!$C$19+'BP Financier'!$D$16+'BP Financier'!$D$19+'BP Financier'!$E$16+'BP Financier'!$E$19+'BP Financier'!$C$22+'BP Financier'!$D$22+'BP Financier'!$E$22+'BP Financier'!$F$22+'BP Financier'!$F$19+'BP Financier'!$F$16))*$V7260*AA7260/(1-$W7260)","v":{"v":16956.56315426876,"d":"16,957"}},{"$f":"'BP Financier'!$F$44*(('BP Financier'!$C$19+'BP Financier'!$D$19+'BP Financier'!$E$19+'BP Financier'!$F$19)/('BP Financier'!$C$16+'BP Financier'!$C$19+'BP Financier'!$D$16+'BP Financier'!$D$19+'BP Financier'!$E$16+'BP Financier'!$E$19+'BP Financier'!$C$22+'BP Financier'!$D$22+'BP Financier'!$E$22+'BP Financier'!$F$22+'BP Financier'!$F$19+'BP Financier'!$F$16))*$V7260*AB7260/(1-$W7260)","v":{"v":8115.961851615815,"d":"8,116"}},null,{"v":0.01,"d":"1.00%"},{"$f":"Actif!$E$28/100","v":{"v":0.28900000000000003,"d":"28.90%"}},{"$f":"Actif!$E$30/100","v":{"v":0.09050000000000001,"d":"9.05%"}},{"$f":"Actif!$E$31/100","v":{"v":0.0605,"d":"6.05%"}},{"$f":"Actif!$E$32/100","v":{"v":0.47350000000000003,"d":"47.35%"}},{"$f":"Actif!$E$33/100","v":{"v":0.0585,"d":"5.85%"}},{"$f":"Actif!$E$29/100","v":{"v":0.027999999999999997,"d":"2.80%"}}]
[null,"#151",55,2029,"H","A_PER",{"v":0.44999999999999996,"d":"0.45"},{"v":0.38999999999999996,"d":"0.39"},0.6,0.6,85,0,{"$f":"ROUND(Primes!$P$7*V7261,0)","v":10},{"$f":"'BP Financier'!$F$33*(('BP Financier'!$C$19+'BP Financier'!$D$19+'BP Financier'!$E$19+'BP Financier'!$F$19)/('BP Financier'!$C$16+'BP Financier'!$C$19+'BP Financier'!$D$16+'BP Financier'!$D$19+'BP Financier'!$E$16+'BP Financier'!$E$19+'BP Financier'!$F$16+'BP Financier'!$F$19))*V7261","v":{"v":363297.7607432643,"d":"363,298"}},{"v":206087.45987495876,"d":"206,087"},{"$f":"'BP Financier'!$F$44*(('BP Financier'!$C$19+'BP Financier'!$D$19+'BP Financier'!$E$19+'BP Financier'!$F$19)/('BP Financier'!$C$16+'BP Financier'!$C$19+'BP Financier'!$D$16+'BP Financier'!$D$19+'BP Financier'!$E$16+'BP Financier'!$E$19+'BP Financier'!$C$22+'BP Financier'!$D$22+'BP Financier'!$E$22+'BP Financier'!$F$22+'BP Financier'!$F$19+'BP Financier'!$F$16))*$V7261*X7261/(1-$W7261)","v":{"v":26231.948127543983,"d":"26,232"}},{"$f":"'BP Financier'!$F$44*(('BP Financier'!$C$19+'BP Financier'!$D$19+'BP Financier'!$E$19+'BP Financier'!$F$19)/('BP Financier'!$C$16+'BP Financier'!$C$19+'BP Financier'!$D$16+'BP Financier'!$D$19+'BP Financier'!$E$16+'BP Financier'!$E$19+'BP Financier'!$C$22+'BP Financier'!$D$22+'BP Financier'!$E$22+'BP Financier'!$F$22+'BP Financier'!$F$19+'BP Financier'!$F$16))*$V7261*Y7261/(1-$W7261)","v":{"v":17536.27471509846,"d":"17,536"}},{"$f":"'BP Financier'!$F$44*(('BP Financier'!$C$19+'BP Financier'!$D$19+'BP Financier'!$E$19+'BP Financier'!$F$19)/('BP Financier'!$C$16+'BP Financier'!$C$19+'BP Financier'!$D$16+'BP Financier'!$D$19+'BP Financier'!$E$16+'BP Financier'!$E$19+'BP Financier'!$C$22+'BP Financier'!$D$22+'BP Financier'!$E$22+'BP Financier'!$F$22+'BP Financier'!$F$19+'BP Financier'!$F$16))*$V7261*Z7261/(1-$W7261)","v":{"v":137246.71202643178,"d":"137,247"}},{"$f":"'BP Financier'!$F$44*(('BP Financier'!$C$19+'BP Financier'!$D$19+'BP Financier'!$E$19+'BP Financier'!$F$19)/('BP Financier'!$C$16+'BP Financier'!$C$19+'BP Financier'!$D$16+'BP Financier'!$D$19+'BP Financier'!$E$16+'BP Financier'!$E$19+'BP Financier'!$C$22+'BP Financier'!$D$22+'BP Financier'!$E$22+'BP Financier'!$F$22+'BP Financier'!$F$19+'BP Financier'!$F$16))*$V7261*AA7261/(1-$W7261)","v":{"v":16956.56315426876,"d":"16,957"}},{"$f":"'BP Financier'!$F$44*(('BP Financier'!$C$19+'BP Financier'!$D$19+'BP Financier'!$E$19+'BP Financier'!$F$19)/('BP Financier'!$C$16+'BP Financier'!$C$19+'BP Financier'!$D$16+'BP Financier'!$D$19+'BP Financier'!$E$16+'BP Financier'!$E$19+'BP Financier'!$C$22+'BP Financier'!$D$22+'BP Financier'!$E$22+'BP Financier'!$F$22+'BP Financier'!$F$19+'BP Financier'!$F$16))*$V7261*AB7261/(1-$W7261)","v":{"v":8115.961851615815,"d":"8,116"}},null,{"v":0.01,"d":"1.00%"},{"$f":"Actif!$E$28/100","v":{"v":0.28900000000000003,"d":"28.90%"}},{"$f":"Actif!$E$30/100","v":{"v":0.09050000000000001,"d":"9.05%"}},{"$f":"Actif!$E$31/100","v":{"v":0.0605,"d":"6.05%"}},{"$f":"Actif!$E$32/100","v":{"v":0.47350000000000003,"d":"47.35%"}},{"$f":"Actif!$E$33/100","v":{"v":0.0585,"d":"5.85%"}},{"$f":"Actif!$E$29/100","v":{"v":0.027999999999999997,"d":"2.80%"}}]
[null,"#152",55,2030,"H","A_PER",{"v":0.44999999999999996,"d":"0.45"},{"v":0.38999999999999996,"d":"0.39"},0.6,0.6,85,0,{"$f":"ROUND(Primes!$P$7*V7262,0)","v":10},{"$f":"'BP Financier'!$F$33*(('BP Financier'!$C$19+'BP Financier'!$D$19+'BP Financier'!$E$19+'BP Financier'!$F$19)/('BP Financier'!$C$16+'BP Financier'!$C$19+'BP Financier'!$D$16+'BP Financier'!$D$19+'BP Financier'!$E$16+'BP Financier'!$E$19+'BP Financier'!$F$16+'BP Financier'!$F$19))*V7262","v":{"v":363297.7607432643,"d":"363,298"}},{"v":206087.45987495876,"d":"206,087"},{"$f":"'BP Financier'!$F$44*(('BP Financier'!$C$19+'BP Financier'!$D$19+'BP Financier'!$E$19+'BP Financier'!$F$19)/('BP Financier'!$C$16+'BP Financier'!$C$19+'BP Financier'!$D$16+'BP Financier'!$D$19+'BP Financier'!$E$16+'BP Financier'!$E$19+'BP Financier'!$C$22+'BP Financier'!$D$22+'BP Financier'!$E$22+'BP Financier'!$F$22+'BP Financier'!$F$19+'BP Financier'!$F$16))*$V7262*X7262/(1-$W7262)","v":{"v":26231.948127543983,"d":"26,232"}},{"$f":"'BP Financier'!$F$44*(('BP Financier'!$C$19+'BP Financier'!$D$19+'BP Financier'!$E$19+'BP Financier'!$F$19)/('BP Financier'!$C$16+'BP Financier'!$C$19+'BP Financier'!$D$16+'BP Financier'!$D$19+'BP Financier'!$E$16+'BP Financier'!$E$19+'BP Financier'!$C$22+'BP Financier'!$D$22+'BP Financier'!$E$22+'BP Financier'!$F$22+'BP Financier'!$F$19+'BP Financier'!$F$16))*$V7262*Y7262/(1-$W7262)","v":{"v":17536.27471509846,"d":"17,536"}},{"$f":"'BP Financier'!$F$44*(('BP Financier'!$C$19+'BP Financier'!$D$19+'BP Financier'!$E$19+'BP Financier'!$F$19)/('BP Financier'!$C$16+'BP Financier'!$C$19+'BP Financier'!$D$16+'BP Financier'!$D$19+'BP Financier'!$E$16+'BP Financier'!$E$19+'BP Financier'!$C$22+'BP Financier'!$D$22+'BP Financier'!$E$22+'BP Financier'!$F$22+'BP Financier'!$F$19+'BP Financier'!$F$16))*$V7262*Z7262/(1-$W7262)","v":{"v":137246.71202643178,"d":"137,247"}},{"$f":"'BP Financier'!$F$44*(('BP Financier'!$C$19+'BP Financier'!$D$19+'BP Financier'!$E$19+'BP Financier'!$F$19)/('BP Financier'!$C$16+'BP Financier'!$C$19+'BP Financier'!$D$16+'BP Financier'!$D$19+'BP Financier'!$E$16+'BP Financier'!$E$19+'BP Financier'!$C$22+'BP Financier'!$D$22+'BP Financier'!$E$22+'BP Financier'!$F$22+'BP Financier'!$F$19+'BP Financier'!$F$16))*$V7262*AA7262/(1-$W7262)","v":{"v":16956.56315426876,"d":"16,957"}},{"$f":"'BP Financier'!$F$44*(('BP Financier'!$C$19+'BP Financier'!$D$19+'BP Financier'!$E$19+'BP Financier'!$F$19)/('BP Financier'!$C$16+'BP Financier'!$C$19+'BP Financier'!$D$16+'BP Financier'!$D$19+'BP Financier'!$E$16+'BP Financier'!$E$19+'BP Financier'!$C$22+'BP Financier'!$D$22+'BP Financier'!$E$22+'BP Financier'!$F$22+'BP Financier'!$F$19+'BP Financier'!$F$16))*$V7262*AB7262/(1-$W7262)","v":{"v":8115.961851615815,"d":"8,116"}},null,{"v":0.01,"d":"1.00%"},{"$f":"Actif!$E$28/100","v":{"v":0.28900000000000003,"d":"28.90%"}},{"$f":"Actif!$E$30/100","v":{"v":0.09050000000000001,"d":"9.05%"}},{"$f":"Actif!$E$31/100","v":{"v":0.0605,"d":"6.05%"}},{"$f":"Actif!$E$32/100","v":{"v":0.47350000000000003,"d":"47.35%"}},{"$f":"Actif!$E$33/100","v":{"v":0.0585,"d":"5.85%"}},{"$f":"Actif!$E$29/100","v":{"v":0.027999999999999997,"d":"2.80%"}}]
[null,"#153",56,2026,"F","A_PER",{"v":0.44999999999999996,"d":"0.45"},{"v":0.38999999999999996,"d":"0.39"},0.6,0.6,85,0,{"$f":"ROUND(Primes!$P$7*V7263,0)","v":5},{"$f":"'BP Financier'!$F$33*(('BP Financier'!$C$19+'BP Financier'!$D$19+'BP Financier'!$E$19+'BP Financier'!$F$19)/('BP Financier'!$C$16+'BP Financier'!$C$19+'BP Financier'!$D$16+'BP Financier'!$D$19+'BP Financier'!$E$16+'BP Financier'!$E$19+'BP Financier'!$F$16+'BP Financier'!$F$19))*V7263","v":{"v":181648.88037163214,"d":"181,649"}},{"v":103043.72993747938,"d":"103,044"},{"$f":"'BP Financier'!$F$44*(('BP Financier'!$C$19+'BP Financier'!$D$19+'BP Financier'!$E$19+'BP Financier'!$F$19)/('BP Financier'!$C$16+'BP Financier'!$C$19+'BP Financier'!$D$16+'BP Financier'!$D$19+'BP Financier'!$E$16+'BP Financier'!$E$19+'BP Financier'!$C$22+'BP Financier'!$D$22+'BP Financier'!$E$22+'BP Financier'!$F$22+'BP Financier'!$F$19+'BP Financier'!$F$16))*$V7263*X7263/(1-$W7263)","v":{"v":13115.974063771991,"d":"13,116"}},{"$f":"'BP Financier'!$F$44*(('BP Financier'!$C$19+'BP Financier'!$D$19+'BP Financier'!$E$19+'BP Financier'!$F$19)/('BP Financier'!$C$16+'BP Financier'!$C$19+'BP Financier'!$D$16+'BP Financier'!$D$19+'BP Financier'!$E$16+'BP Financier'!$E$19+'BP Financier'!$C$22+'BP Financier'!$D$22+'BP Financier'!$E$22+'BP Financier'!$F$22+'BP Financier'!$F$19+'BP Financier'!$F$16))*$V7263*Y7263/(1-$W7263)","v":{"v":8768.13735754923,"d":"8,768"}},{"$f":"'BP Financier'!$F$44*(('BP Financier'!$C$19+'BP Financier'!$D$19+'BP Financier'!$E$19+'BP Financier'!$F$19)/('BP Financier'!$C$16+'BP Financier'!$C$19+'BP Financier'!$D$16+'BP Financier'!$D$19+'BP Financier'!$E$16+'BP Financier'!$E$19+'BP Financier'!$C$22+'BP Financier'!$D$22+'BP Financier'!$E$22+'BP Financier'!$F$22+'BP Financier'!$F$19+'BP Financier'!$F$16))*$V7263*Z7263/(1-$W7263)","v":{"v":68623.35601321589,"d":"68,623"}},{"$f":"'BP Financier'!$F$44*(('BP Financier'!$C$19+'BP Financier'!$D$19+'BP Financier'!$E$19+'BP Financier'!$F$19)/('BP Financier'!$C$16+'BP Financier'!$C$19+'BP Financier'!$D$16+'BP Financier'!$D$19+'BP Financier'!$E$16+'BP Financier'!$E$19+'BP Financier'!$C$22+'BP Financier'!$D$22+'BP Financier'!$E$22+'BP Financier'!$F$22+'BP Financier'!$F$19+'BP Financier'!$F$16))*$V7263*AA7263/(1-$W7263)","v":{"v":8478.28157713438,"d":"8,478"}},{"$f":"'BP Financier'!$F$44*(('BP Financier'!$C$19+'BP Financier'!$D$19+'BP Financier'!$E$19+'BP Financier'!$F$19)/('BP Financier'!$C$16+'BP Financier'!$C$19+'BP Financier'!$D$16+'BP Financier'!$D$19+'BP Financier'!$E$16+'BP Financier'!$E$19+'BP Financier'!$C$22+'BP Financier'!$D$22+'BP Financier'!$E$22+'BP Financier'!$F$22+'BP Financier'!$F$19+'BP Financier'!$F$16))*$V7263*AB7263/(1-$W7263)","v":{"v":4057.9809258079076,"d":"4,058"}},null,{"v":0.005,"d":"0.50%"},{"$f":"Actif!$E$28/100","v":{"v":0.28900000000000003,"d":"28.90%"}},{"$f":"Actif!$E$30/100","v":{"v":0.09050000000000001,"d":"9.05%"}},{"$f":"Actif!$E$31/100","v":{"v":0.0605,"d":"6.05%"}},{"$f":"Actif!$E$32/100","v":{"v":0.47350000000000003,"d":"47.35%"}},{"$f":"Actif!$E$33/100","v":{"v":0.0585,"d":"5.85%"}},{"$f":"Actif!$E$29/100","v":{"v":0.027999999999999997,"d":"2.80%"}}]
[null,"#154",56,2028,"F","A_PER",{"v":0.44999999999999996,"d":"0.45"},{"v":0.38999999999999996,"d":"0.39"},0.6,0.6,85,0,{"$f":"ROUND(Primes!$P$7*V7264,0)","v":5},{"$f":"'BP Financier'!$F$33*(('BP Financier'!$C$19+'BP Financier'!$D$19+'BP Financier'!$E$19+'BP Financier'!$F$19)/('BP Financier'!$C$16+'BP Financier'!$C$19+'BP Financier'!$D$16+'BP Financier'!$D$19+'BP Financier'!$E$16+'BP Financier'!$E$19+'BP Financier'!$F$16+'BP Financier'!$F$19))*V7264","v":{"v":181648.88037163214,"d":"181,649"}},{"v":103043.72993747938,"d":"103,044"},{"$f":"'BP Financier'!$F$44*(('BP Financier'!$C$19+'BP Financier'!$D$19+'BP Financier'!$E$19+'BP Financier'!$F$19)/('BP Financier'!$C$16+'BP Financier'!$C$19+'BP Financier'!$D$16+'BP Financier'!$D$19+'BP Financier'!$E$16+'BP Financier'!$E$19+'BP Financier'!$C$22+'BP Financier'!$D$22+'BP Financier'!$E$22+'BP Financier'!$F$22+'BP Financier'!$F$19+'BP Financier'!$F$16))*$V7264*X7264/(1-$W7264)","v":{"v":13115.974063771991,"d":"13,116"}},{"$f":"'BP Financier'!$F$44*(('BP Financier'!$C$19+'BP Financier'!$D$19+'BP Financier'!$E$19+'BP Financier'!$F$19)/('BP Financier'!$C$16+'BP Financier'!$C$19+'BP Financier'!$D$16+'BP Financier'!$D$19+'BP Financier'!$E$16+'BP Financier'!$E$19+'BP Financier'!$C$22+'BP Financier'!$D$22+'BP Financier'!$E$22+'BP Financier'!$F$22+'BP Financier'!$F$19+'BP Financier'!$F$16))*$V7264*Y7264/(1-$W7264)","v":{"v":8768.13735754923,"d":"8,768"}},{"$f":"'BP Financier'!$F$44*(('BP Financier'!$C$19+'BP Financier'!$D$19+'BP Financier'!$E$19+'BP Financier'!$F$19)/('BP Financier'!$C$16+'BP Financier'!$C$19+'BP Financier'!$D$16+'BP Financier'!$D$19+'BP Financier'!$E$16+'BP Financier'!$E$19+'BP Financier'!$C$22+'BP Financier'!$D$22+'BP Financier'!$E$22+'BP Financier'!$F$22+'BP Financier'!$F$19+'BP Financier'!$F$16))*$V7264*Z7264/(1-$W7264)","v":{"v":68623.35601321589,"d":"68,623"}},{"$f":"'BP Financier'!$F$44*(('BP Financier'!$C$19+'BP Financier'!$D$19+'BP Financier'!$E$19+'BP Financier'!$F$19)/('BP Financier'!$C$16+'BP Financier'!$C$19+'BP Financier'!$D$16+'BP Financier'!$D$19+'BP Financier'!$E$16+'BP Financier'!$E$19+'BP Financier'!$C$22+'BP Financier'!$D$22+'BP Financier'!$E$22+'BP Financier'!$F$22+'BP Financier'!$F$19+'BP Financier'!$F$16))*$V7264*AA7264/(1-$W7264)","v":{"v":8478.28157713438,"d":"8,478"}},{"$f":"'BP Financier'!$F$44*(('BP Financier'!$C$19+'BP Financier'!$D$19+'BP Financier'!$E$19+'BP Financier'!$F$19)/('BP Financier'!$C$16+'BP Financier'!$C$19+'BP Financier'!$D$16+'BP Financier'!$D$19+'BP Financier'!$E$16+'BP Financier'!$E$19+'BP Financier'!$C$22+'BP Financier'!$D$22+'BP Financier'!$E$22+'BP Financier'!$F$22+'BP Financier'!$F$19+'BP Financier'!$F$16))*$V7264*AB7264/(1-$W7264)","v":{"v":4057.9809258079076,"d":"4,058"}},null,{"v":0.005,"d":"0.50%"},{"$f":"Actif!$E$28/100","v":{"v":0.28900000000000003,"d":"28.90%"}},{"$f":"Actif!$E$30/100","v":{"v":0.09050000000000001,"d":"9.05%"}},{"$f":"Actif!$E$31/100","v":{"v":0.0605,"d":"6.05%"}},{"$f":"Actif!$E$32/100","v":{"v":0.47350000000000003,"d":"47.35%"}},{"$f":"Actif!$E$33/100","v":{"v":0.0585,"d":"5.85%"}},{"$f":"Actif!$E$29/100","v":{"v":0.027999999999999997,"d":"2.80%"}}]
[null,"#155",56,2029,"F","A_PER",{"v":0.44999999999999996,"d":"0.45"},{"v":0.38999999999999996,"d":"0.39"},0.6,0.6,85,0,{"$f":"ROUND(Primes!$P$7*V7265,0)","v":5},{"$f":"'BP Financier'!$F$33*(('BP Financier'!$C$19+'BP Financier'!$D$19+'BP Financier'!$E$19+'BP Financier'!$F$19)/('BP Financier'!$C$16+'BP Financier'!$C$19+'BP Financier'!$D$16+'BP Financier'!$D$19+'BP Financier'!$E$16+'BP Financier'!$E$19+'BP Financier'!$F$16+'BP Financier'!$F$19))*V7265","v":{"v":181648.88037163214,"d":"181,649"}},{"v":103043.72993747938,"d":"103,044"},{"$f":"'BP Financier'!$F$44*(('BP Financier'!$C$19+'BP Financier'!$D$19+'BP Financier'!$E$19+'BP Financier'!$F$19)/('BP Financier'!$C$16+'BP Financier'!$C$19+'BP Financier'!$D$16+'BP Financier'!$D$19+'BP Financier'!$E$16+'BP Financier'!$E$19+'BP Financier'!$C$22+'BP Financier'!$D$22+'BP Financier'!$E$22+'BP Financier'!$F$22+'BP Financier'!$F$19+'BP Financier'!$F$16))*$V7265*X7265/(1-$W7265)","v":{"v":13115.974063771991,"d":"13,116"}},{"$f":"'BP Financier'!$F$44*(('BP Financier'!$C$19+'BP Financier'!$D$19+'BP Financier'!$E$19+'BP Financier'!$F$19)/('BP Financier'!$C$16+'BP Financier'!$C$19+'BP Financier'!$D$16+'BP Financier'!$D$19+'BP Financier'!$E$16+'BP Financier'!$E$19+'BP Financier'!$C$22+'BP Financier'!$D$22+'BP Financier'!$E$22+'BP Financier'!$F$22+'BP Financier'!$F$19+'BP Financier'!$F$16))*$V7265*Y7265/(1-$W7265)","v":{"v":8768.13735754923,"d":"8,768"}},{"$f":"'BP Financier'!$F$44*(('BP Financier'!$C$19+'BP Financier'!$D$19+'BP Financier'!$E$19+'BP Financier'!$F$19)/('BP Financier'!$C$16+'BP Financier'!$C$19+'BP Financier'!$D$16+'BP Financier'!$D$19+'BP Financier'!$E$16+'BP Financier'!$E$19+'BP Financier'!$C$22+'BP Financier'!$D$22+'BP Financier'!$E$22+'BP Financier'!$F$22+'BP Financier'!$F$19+'BP Financier'!$F$16))*$V7265*Z7265/(1-$W7265)","v":{"v":68623.35601321589,"d":"68,623"}},{"$f":"'BP Financier'!$F$44*(('BP Financier'!$C$19+'BP Financier'!$D$19+'BP Financier'!$E$19+'BP Financier'!$F$19)/('BP Financier'!$C$16+'BP Financier'!$C$19+'BP Financier'!$D$16+'BP Financier'!$D$19+'BP Financier'!$E$16+'BP Financier'!$E$19+'BP Financier'!$C$22+'BP Financier'!$D$22+'BP Financier'!$E$22+'BP Financier'!$F$22+'BP Financier'!$F$19+'BP Financier'!$F$16))*$V7265*AA7265/(1-$W7265)","v":{"v":8478.28157713438,"d":"8,478"}},{"$f":"'BP Financier'!$F$44*(('BP Financier'!$C$19+'BP Financier'!$D$19+'BP Financier'!$E$19+'BP Financier'!$F$19)/('BP Financier'!$C$16+'BP Financier'!$C$19+'BP Financier'!$D$16+'BP Financier'!$D$19+'BP Financier'!$E$16+'BP Financier'!$E$19+'BP Financier'!$C$22+'BP Financier'!$D$22+'BP Financier'!$E$22+'BP Financier'!$F$22+'BP Financier'!$F$19+'BP Financier'!$F$16))*$V7265*AB7265/(1-$W7265)","v":{"v":4057.9809258079076,"d":"4,058"}},null,{"v":0.005,"d":"0.50%"},{"$f":"Actif!$E$28/100","v":{"v":0.28900000000000003,"d":"28.90%"}},{"$f":"Actif!$E$30/100","v":{"v":0.09050000000000001,"d":"9.05%"}},{"$f":"Actif!$E$31/100","v":{"v":0.0605,"d":"6.05%"}},{"$f":"Actif!$E$32/100","v":{"v":0.47350000000000003,"d":"47.35%"}},{"$f":"Actif!$E$33/100","v":{"v":0.0585,"d":"5.85%"}},{"$f":"Actif!$E$29/100","v":{"v":0.027999999999999997,"d":"2.80%"}}]
[null,"#156",56,2030,"F","A_PER",{"v":0.44999999999999996,"d":"0.45"},{"v":0.38999999999999996,"d":"0.39"},0.6,0.6,85,0,{"$f":"ROUND(Primes!$P$7*V7266,0)","v":5},{"$f":"'BP Financier'!$F$33*(('BP Financier'!$C$19+'BP Financier'!$D$19+'BP Financier'!$E$19+'BP Financier'!$F$19)/('BP Financier'!$C$16+'BP Financier'!$C$19+'BP Financier'!$D$16+'BP Financier'!$D$19+'BP Financier'!$E$16+'BP Financier'!$E$19+'BP Financier'!$F$16+'BP Financier'!$F$19))*V7266","v":{"v":181648.88037163214,"d":"181,649"}},{"v":103043.72993747938,"d":"103,044"},{"$f":"'BP Financier'!$F$44*(('BP Financier'!$C$19+'BP Financier'!$D$19+'BP Financier'!$E$19+'BP Financier'!$F$19)/('BP Financier'!$C$16+'BP Financier'!$C$19+'BP Financier'!$D$16+'BP Financier'!$D$19+'BP Financier'!$E$16+'BP Financier'!$E$19+'BP Financier'!$C$22+'BP Financier'!$D$22+'BP Financier'!$E$22+'BP Financier'!$F$22+'BP Financier'!$F$19+'BP Financier'!$F$16))*$V7266*X7266/(1-$W7266)","v":{"v":13115.974063771991,"d":"13,116"}},{"$f":"'BP Financier'!$F$44*(('BP Financier'!$C$19+'BP Financier'!$D$19+'BP Financier'!$E$19+'BP Financier'!$F$19)/('BP Financier'!$C$16+'BP Financier'!$C$19+'BP Financier'!$D$16+'BP Financier'!$D$19+'BP Financier'!$E$16+'BP Financier'!$E$19+'BP Financier'!$C$22+'BP Financier'!$D$22+'BP Financier'!$E$22+'BP Financier'!$F$22+'BP Financier'!$F$19+'BP Financier'!$F$16))*$V7266*Y7266/(1-$W7266)","v":{"v":8768.13735754923,"d":"8,768"}},{"$f":"'BP Financier'!$F$44*(('BP Financier'!$C$19+'BP Financier'!$D$19+'BP Financier'!$E$19+'BP Financier'!$F$19)/('BP Financier'!$C$16+'BP Financier'!$C$19+'BP Financier'!$D$16+'BP Financier'!$D$19+'BP Financier'!$E$16+'BP Financier'!$E$19+'BP Financier'!$C$22+'BP Financier'!$D$22+'BP Financier'!$E$22+'BP Financier'!$F$22+'BP Financier'!$F$19+'BP Financier'!$F$16))*$V7266*Z7266/(1-$W7266)","v":{"v":68623.35601321589,"d":"68,623"}},{"$f":"'BP Financier'!$F$44*(('BP Financier'!$C$19+'BP Financier'!$D$19+'BP Financier'!$E$19+'BP Financier'!$F$19)/('BP Financier'!$C$16+'BP Financier'!$C$19+'BP Financier'!$D$16+'BP Financier'!$D$19+'BP Financier'!$E$16+'BP Financier'!$E$19+'BP Financier'!$C$22+'BP Financier'!$D$22+'BP Financier'!$E$22+'BP Financier'!$F$22+'BP Financier'!$F$19+'BP Financier'!$F$16))*$V7266*AA7266/(1-$W7266)","v":{"v":8478.28157713438,"d":"8,478"}},{"$f":"'BP Financier'!$F$44*(('BP Financier'!$C$19+'BP Financier'!$D$19+'BP Financier'!$E$19+'BP Financier'!$F$19)/('BP Financier'!$C$16+'BP Financier'!$C$19+'BP Financier'!$D$16+'BP Financier'!$D$19+'BP Financier'!$E$16+'BP Financier'!$E$19+'BP Financier'!$C$22+'BP Financier'!$D$22+'BP Financier'!$E$22+'BP Financier'!$F$22+'BP Financier'!$F$19+'BP Financier'!$F$16))*$V7266*AB7266/(1-$W7266)","v":{"v":4057.9809258079076,"d":"4,058"}},null,{"v":0.005,"d":"0.50%"},{"$f":"Actif!$E$28/100","v":{"v":0.28900000000000003,"d":"28.90%"}},{"$f":"Actif!$E$30/100","v":{"v":0.09050000000000001,"d":"9.05%"}},{"$f":"Actif!$E$31/100","v":{"v":0.0605,"d":"6.05%"}},{"$f":"Actif!$E$32/100","v":{"v":0.47350000000000003,"d":"47.35%"}},{"$f":"Actif!$E$33/100","v":{"v":0.0585,"d":"5.85%"}},{"$f":"Actif!$E$29/100","v":{"v":0.027999999999999997,"d":"2.80%"}}]
[null,"#157",57,2026,"H","A_PER",{"v":0.44999999999999996,"d":"0.45"},{"v":0.38999999999999996,"d":"0.39"},0.6,0.6,85,0,{"$f":"ROUND(Primes!$P$7*V7267,0)","v":3},{"$f":"'BP Financier'!$F$33*(('BP Financier'!$C$19+'BP Financier'!$D$19+'BP Financier'!$E$19+'BP Financier'!$F$19)/('BP Financier'!$C$16+'BP Financier'!$C$19+'BP Financier'!$D$16+'BP Financier'!$D$19+'BP Financier'!$E$16+'BP Financier'!$E$19+'BP Financier'!$F$16+'BP Financier'!$F$19))*V7267","v":{"v":90824.44018581607,"d":"90,824"}},{"v":51521.86496873969,"d":"51,522"},{"$f":"'BP Financier'!$F$44*(('BP Financier'!$C$19+'BP Financier'!$D$19+'BP Financier'!$E$19+'BP Financier'!$F$19)/('BP Financier'!$C$16+'BP Financier'!$C$19+'BP Financier'!$D$16+'BP Financier'!$D$19+'BP Financier'!$E$16+'BP Financier'!$E$19+'BP Financier'!$C$22+'BP Financier'!$D$22+'BP Financier'!$E$22+'BP Financier'!$F$22+'BP Financier'!$F$19+'BP Financier'!$F$16))*$V7267*X7267/(1-$W7267)","v":{"v":6557.987031885996,"d":"6,558"}},{"$f":"'BP Financier'!$F$44*(('BP Financier'!$C$19+'BP Financier'!$D$19+'BP Financier'!$E$19+'BP Financier'!$F$19)/('BP Financier'!$C$16+'BP Financier'!$C$19+'BP Financier'!$D$16+'BP Financier'!$D$19+'BP Financier'!$E$16+'BP Financier'!$E$19+'BP Financier'!$C$22+'BP Financier'!$D$22+'BP Financier'!$E$22+'BP Financier'!$F$22+'BP Financier'!$F$19+'BP Financier'!$F$16))*$V7267*Y7267/(1-$W7267)","v":{"v":4384.068678774615,"d":"4,384"}},{"$f":"'BP Financier'!$F$44*(('BP Financier'!$C$19+'BP Financier'!$D$19+'BP Financier'!$E$19+'BP Financier'!$F$19)/('BP Financier'!$C$16+'BP Financier'!$C$19+'BP Financier'!$D$16+'BP Financier'!$D$19+'BP Financier'!$E$16+'BP Financier'!$E$19+'BP Financier'!$C$22+'BP Financier'!$D$22+'BP Financier'!$E$22+'BP Financier'!$F$22+'BP Financier'!$F$19+'BP Financier'!$F$16))*$V7267*Z7267/(1-$W7267)","v":{"v":34311.678006607945,"d":"34,312"}},{"$f":"'BP Financier'!$F$44*(('BP Financier'!$C$19+'BP Financier'!$D$19+'BP Financier'!$E$19+'BP Financier'!$F$19)/('BP Financier'!$C$16+'BP Financier'!$C$19+'BP Financier'!$D$16+'BP Financier'!$D$19+'BP Financier'!$E$16+'BP Financier'!$E$19+'BP Financier'!$C$22+'BP Financier'!$D$22+'BP Financier'!$E$22+'BP Financier'!$F$22+'BP Financier'!$F$19+'BP Financier'!$F$16))*$V7267*AA7267/(1-$W7267)","v":{"v":4239.14078856719,"d":"4,239"}},{"$f":"'BP Financier'!$F$44*(('BP Financier'!$C$19+'BP Financier'!$D$19+'BP Financier'!$E$19+'BP Financier'!$F$19)/('BP Financier'!$C$16+'BP Financier'!$C$19+'BP Financier'!$D$16+'BP Financier'!$D$19+'BP Financier'!$E$16+'BP Financier'!$E$19+'BP Financier'!$C$22+'BP Financier'!$D$22+'BP Financier'!$E$22+'BP Financier'!$F$22+'BP Financier'!$F$19+'BP Financier'!$F$16))*$V7267*AB7267/(1-$W7267)","v":{"v":2028.9904629039538,"d":"2,029"}},null,{"v":0.0025,"d":"0.25%"},{"$f":"Actif!$E$28/100","v":{"v":0.28900000000000003,"d":"28.90%"}},{"$f":"Actif!$E$30/100","v":{"v":0.09050000000000001,"d":"9.05%"}},{"$f":"Actif!$E$31/100","v":{"v":0.0605,"d":"6.05%"}},{"$f":"Actif!$E$32/100","v":{"v":0.47350000000000003,"d":"47.35%"}},{"$f":"Actif!$E$33/100","v":{"v":0.0585,"d":"5.85%"}},{"$f":"Actif!$E$29/100","v":{"v":0.027999999999999997,"d":"2.80%"}}]
[null,"#158",57,2028,"H","A_PER",{"v":0.44999999999999996,"d":"0.45"},{"v":0.38999999999999996,"d":"0.39"},0.6,0.6,85,0,{"$f":"ROUND(Primes!$P$7*V7268,0)","v":3},{"$f":"'BP Financier'!$F$33*(('BP Financier'!$C$19+'BP Financier'!$D$19+'BP Financier'!$E$19+'BP Financier'!$F$19)/('BP Financier'!$C$16+'BP Financier'!$C$19+'BP Financier'!$D$16+'BP Financier'!$D$19+'BP Financier'!$E$16+'BP Financier'!$E$19+'BP Financier'!$F$16+'BP Financier'!$F$19))*V7268","v":{"v":90824.44018581607,"d":"90,824"}},{"v":51521.86496873969,"d":"51,522"},{"$f":"'BP Financier'!$F$44*(('BP Financier'!$C$19+'BP Financier'!$D$19+'BP Financier'!$E$19+'BP Financier'!$F$19)/('BP Financier'!$C$16+'BP Financier'!$C$19+'BP Financier'!$D$16+'BP Financier'!$D$19+'BP Financier'!$E$16+'BP Financier'!$E$19+'BP Financier'!$C$22+'BP Financier'!$D$22+'BP Financier'!$E$22+'BP Financier'!$F$22+'BP Financier'!$F$19+'BP Financier'!$F$16))*$V7268*X7268/(1-$W7268)","v":{"v":6557.987031885996,"d":"6,558"}},{"$f":"'BP Financier'!$F$44*(('BP Financier'!$C$19+'BP Financier'!$D$19+'BP Financier'!$E$19+'BP Financier'!$F$19)/('BP Financier'!$C$16+'BP Financier'!$C$19+'BP Financier'!$D$16+'BP Financier'!$D$19+'BP Financier'!$E$16+'BP Financier'!$E$19+'BP Financier'!$C$22+'BP Financier'!$D$22+'BP Financier'!$E$22+'BP Financier'!$F$22+'BP Financier'!$F$19+'BP Financier'!$F$16))*$V7268*Y7268/(1-$W7268)","v":{"v":4384.068678774615,"d":"4,384"}},{"$f":"'BP Financier'!$F$44*(('BP Financier'!$C$19+'BP Financier'!$D$19+'BP Financier'!$E$19+'BP Financier'!$F$19)/('BP Financier'!$C$16+'BP Financier'!$C$19+'BP Financier'!$D$16+'BP Financier'!$D$19+'BP Financier'!$E$16+'BP Financier'!$E$19+'BP Financier'!$C$22+'BP Financier'!$D$22+'BP Financier'!$E$22+'BP Financier'!$F$22+'BP Financier'!$F$19+'BP Financier'!$F$16))*$V7268*Z7268/(1-$W7268)","v":{"v":34311.678006607945,"d":"34,312"}},{"$f":"'BP Financier'!$F$44*(('BP Financier'!$C$19+'BP Financier'!$D$19+'BP Financier'!$E$19+'BP Financier'!$F$19)/('BP Financier'!$C$16+'BP Financier'!$C$19+'BP Financier'!$D$16+'BP Financier'!$D$19+'BP Financier'!$E$16+'BP Financier'!$E$19+'BP Financier'!$C$22+'BP Financier'!$D$22+'BP Financier'!$E$22+'BP Financier'!$F$22+'BP Financier'!$F$19+'BP Financier'!$F$16))*$V7268*AA7268/(1-$W7268)","v":{"v":4239.14078856719,"d":"4,239"}},{"$f":"'BP Financier'!$F$44*(('BP Financier'!$C$19+'BP Financier'!$D$19+'BP Financier'!$E$19+'BP Financier'!$F$19)/('BP Financier'!$C$16+'BP Financier'!$C$19+'BP Financier'!$D$16+'BP Financier'!$D$19+'BP Financier'!$E$16+'BP Financier'!$E$19+'BP Financier'!$C$22+'BP Financier'!$D$22+'BP Financier'!$E$22+'BP Financier'!$F$22+'BP Financier'!$F$19+'BP Financier'!$F$16))*$V7268*AB7268/(1-$W7268)","v":{"v":2028.9904629039538,"d":"2,029"}},null,{"v":0.0025,"d":"0.25%"},{"$f":"Actif!$E$28/100","v":{"v":0.28900000000000003,"d":"28.90%"}},{"$f":"Actif!$E$30/100","v":{"v":0.09050000000000001,"d":"9.05%"}},{"$f":"Actif!$E$31/100","v":{"v":0.0605,"d":"6.05%"}},{"$f":"Actif!$E$32/100","v":{"v":0.47350000000000003,"d":"47.35%"}},{"$f":"Actif!$E$33/100","v":{"v":0.0585,"d":"5.85%"}},{"$f":"Actif!$E$29/100","v":{"v":0.027999999999999997,"d":"2.80%"}}]
[null,"#159",57,2029,"H","A_PER",{"v":0.44999999999999996,"d":"0.45"},{"v":0.38999999999999996,"d":"0.39"},0.6,0.6,85,0,{"$f":"ROUND(Primes!$P$7*V7269,0)","v":3},{"$f":"'BP Financier'!$F$33*(('BP Financier'!$C$19+'BP Financier'!$D$19+'BP Financier'!$E$19+'BP Financier'!$F$19)/('BP Financier'!$C$16+'BP Financier'!$C$19+'BP Financier'!$D$16+'BP Financier'!$D$19+'BP Financier'!$E$16+'BP Financier'!$E$19+'BP Financier'!$F$16+'BP Financier'!$F$19))*V7269","v":{"v":90824.44018581607,"d":"90,824"}},{"v":51521.86496873969,"d":"51,522"},{"$f":"'BP Financier'!$F$44*(('BP Financier'!$C$19+'BP Financier'!$D$19+'BP Financier'!$E$19+'BP Financier'!$F$19)/('BP Financier'!$C$16+'BP Financier'!$C$19+'BP Financier'!$D$16+'BP Financier'!$D$19+'BP Financier'!$E$16+'BP Financier'!$E$19+'BP Financier'!$C$22+'BP Financier'!$D$22+'BP Financier'!$E$22+'BP Financier'!$F$22+'BP Financier'!$F$19+'BP Financier'!$F$16))*$V7269*X7269/(1-$W7269)","v":{"v":6557.987031885996,"d":"6,558"}},{"$f":"'BP Financier'!$F$44*(('BP Financier'!$C$19+'BP Financier'!$D$19+'BP Financier'!$E$19+'BP Financier'!$F$19)/('BP Financier'!$C$16+'BP Financier'!$C$19+'BP Financier'!$D$16+'BP Financier'!$D$19+'BP Financier'!$E$16+'BP Financier'!$E$19+'BP Financier'!$C$22+'BP Financier'!$D$22+'BP Financier'!$E$22+'BP Financier'!$F$22+'BP Financier'!$F$19+'BP Financier'!$F$16))*$V7269*Y7269/(1-$W7269)","v":{"v":4384.068678774615,"d":"4,384"}},{"$f":"'BP Financier'!$F$44*(('BP Financier'!$C$19+'BP Financier'!$D$19+'BP Financier'!$E$19+'BP Financier'!$F$19)/('BP Financier'!$C$16+'BP Financier'!$C$19+'BP Financier'!$D$16+'BP Financier'!$D$19+'BP Financier'!$E$16+'BP Financier'!$E$19+'BP Financier'!$C$22+'BP Financier'!$D$22+'BP Financier'!$E$22+'BP Financier'!$F$22+'BP Financier'!$F$19+'BP Financier'!$F$16))*$V7269*Z7269/(1-$W7269)","v":{"v":34311.678006607945,"d":"34,312"}},{"$f":"'BP Financier'!$F$44*(('BP Financier'!$C$19+'BP Financier'!$D$19+'BP Financier'!$E$19+'BP Financier'!$F$19)/('BP Financier'!$C$16+'BP Financier'!$C$19+'BP Financier'!$D$16+'BP Financier'!$D$19+'BP Financier'!$E$16+'BP Financier'!$E$19+'BP Financier'!$C$22+'BP Financier'!$D$22+'BP Financier'!$E$22+'BP Financier'!$F$22+'BP Financier'!$F$19+'BP Financier'!$F$16))*$V7269*AA7269/(1-$W7269)","v":{"v":4239.14078856719,"d":"4,239"}},{"$f":"'BP Financier'!$F$44*(('BP Financier'!$C$19+'BP Financier'!$D$19+'BP Financier'!$E$19+'BP Financier'!$F$19)/('BP Financier'!$C$16+'BP Financier'!$C$19+'BP Financier'!$D$16+'BP Financier'!$D$19+'BP Financier'!$E$16+'BP Financier'!$E$19+'BP Financier'!$C$22+'BP Financier'!$D$22+'BP Financier'!$E$22+'BP Financier'!$F$22+'BP Financier'!$F$19+'BP Financier'!$F$16))*$V7269*AB7269/(1-$W7269)","v":{"v":2028.9904629039538,"d":"2,029"}},null,{"v":0.0025,"d":"0.25%"},{"$f":"Actif!$E$28/100","v":{"v":0.28900000000000003,"d":"28.90%"}},{"$f":"Actif!$E$30/100","v":{"v":0.09050000000000001,"d":"9.05%"}},{"$f":"Actif!$E$31/100","v":{"v":0.0605,"d":"6.05%"}},{"$f":"Actif!$E$32/100","v":{"v":0.47350000000000003,"d":"47.35%"}},{"$f":"Actif!$E$33/100","v":{"v":0.0585,"d":"5.85%"}},{"$f":"Actif!$E$29/100","v":{"v":0.027999999999999997,"d":"2.80%"}}]
[null,"#160",57,2030,"H","A_PER",{"v":0.44999999999999996,"d":"0.45"},{"v":0.38999999999999996,"d":"0.39"},0.6,0.6,85,0,{"$f":"ROUND(Primes!$P$7*V7270,0)","v":3},{"$f":"'BP Financier'!$F$33*(('BP Financier'!$C$19+'BP Financier'!$D$19+'BP Financier'!$E$19+'BP Financier'!$F$19)/('BP Financier'!$C$16+'BP Financier'!$C$19+'BP Financier'!$D$16+'BP Financier'!$D$19+'BP Financier'!$E$16+'BP Financier'!$E$19+'BP Financier'!$F$16+'BP Financier'!$F$19))*V7270","v":{"v":90824.44018581607,"d":"90,824"}},{"v":51521.86496873969,"d":"51,522"},{"$f":"'BP Financier'!$F$44*(('BP Financier'!$C$19+'BP Financier'!$D$19+'BP Financier'!$E$19+'BP Financier'!$F$19)/('BP Financier'!$C$16+'BP Financier'!$C$19+'BP Financier'!$D$16+'BP Financier'!$D$19+'BP Financier'!$E$16+'BP Financier'!$E$19+'BP Financier'!$C$22+'BP Financier'!$D$22+'BP Financier'!$E$22+'BP Financier'!$F$22+'BP Financier'!$F$19+'BP Financier'!$F$16))*$V7270*X7270/(1-$W7270)","v":{"v":6557.987031885996,"d":"6,558"}},{"$f":"'BP Financier'!$F$44*(('BP Financier'!$C$19+'BP Financier'!$D$19+'BP Financier'!$E$19+'BP Financier'!$F$19)/('BP Financier'!$C$16+'BP Financier'!$C$19+'BP Financier'!$D$16+'BP Financier'!$D$19+'BP Financier'!$E$16+'BP Financier'!$E$19+'BP Financier'!$C$22+'BP Financier'!$D$22+'BP Financier'!$E$22+'BP Financier'!$F$22+'BP Financier'!$F$19+'BP Financier'!$F$16))*$V7270*Y7270/(1-$W7270)","v":{"v":4384.068678774615,"d":"4,384"}},{"$f":"'BP Financier'!$F$44*(('BP Financier'!$C$19+'BP Financier'!$D$19+'BP Financier'!$E$19+'BP Financier'!$F$19)/('BP Financier'!$C$16+'BP Financier'!$C$19+'BP Financier'!$D$16+'BP Financier'!$D$19+'BP Financier'!$E$16+'BP Financier'!$E$19+'BP Financier'!$C$22+'BP Financier'!$D$22+'BP Financier'!$E$22+'BP Financier'!$F$22+'BP Financier'!$F$19+'BP Financier'!$F$16))*$V7270*Z7270/(1-$W7270)","v":{"v":34311.678006607945,"d":"34,312"}},{"$f":"'BP Financier'!$F$44*(('BP Financier'!$C$19+'BP Financier'!$D$19+'BP Financier'!$E$19+'BP Financier'!$F$19)/('BP Financier'!$C$16+'BP Financier'!$C$19+'BP Financier'!$D$16+'BP Financier'!$D$19+'BP Financier'!$E$16+'BP Financier'!$E$19+'BP Financier'!$C$22+'BP Financier'!$D$22+'BP Financier'!$E$22+'BP Financier'!$F$22+'BP Financier'!$F$19+'BP Financier'!$F$16))*$V7270*AA7270/(1-$W7270)","v":{"v":4239.14078856719,"d":"4,239"}},{"$f":"'BP Financier'!$F$44*(('BP Financier'!$C$19+'BP Financier'!$D$19+'BP Financier'!$E$19+'BP Financier'!$F$19)/('BP Financier'!$C$16+'BP Financier'!$C$19+'BP Financier'!$D$16+'BP Financier'!$D$19+'BP Financier'!$E$16+'BP Financier'!$E$19+'BP Financier'!$C$22+'BP Financier'!$D$22+'BP Financier'!$E$22+'BP Financier'!$F$22+'BP Financier'!$F$19+'BP Financier'!$F$16))*$V7270*AB7270/(1-$W7270)","v":{"v":2028.9904629039538,"d":"2,029"}},null,{"v":0.0025,"d":"0.25%"},{"$f":"Actif!$E$28/100","v":{"v":0.28900000000000003,"d":"28.90%"}},{"$f":"Actif!$E$30/100","v":{"v":0.09050000000000001,"d":"9.05%"}},{"$f":"Actif!$E$31/100","v":{"v":0.0605,"d":"6.05%"}},{"$f":"Actif!$E$32/100","v":{"v":0.47350000000000003,"d":"47.35%"}},{"$f":"Actif!$E$33/100","v":{"v":0.0585,"d":"5.85%"}},{"$f":"Actif!$E$29/100","v":{"v":0.027999999999999997,"d":"2.80%"}}]
[null,"#161",58,2026,"H","A_PER",{"v":0.44999999999999996,"d":"0.45"},{"v":0.38999999999999996,"d":"0.39"},0.6,0.6,85,0,{"$f":"ROUND(Primes!$P$7*V7271,0)","v":3},{"$f":"'BP Financier'!$F$33*(('BP Financier'!$C$19+'BP Financier'!$D$19+'BP Financier'!$E$19+'BP Financier'!$F$19)/('BP Financier'!$C$16+'BP Financier'!$C$19+'BP Financier'!$D$16+'BP Financier'!$D$19+'BP Financier'!$E$16+'BP Financier'!$E$19+'BP Financier'!$F$16+'BP Financier'!$F$19))*V7271","v":{"v":90824.44018581607,"d":"90,824"}},{"v":51521.86496873969,"d":"51,522"},{"$f":"'BP Financier'!$F$44*(('BP Financier'!$C$19+'BP Financier'!$D$19+'BP Financier'!$E$19+'BP Financier'!$F$19)/('BP Financier'!$C$16+'BP Financier'!$C$19+'BP Financier'!$D$16+'BP Financier'!$D$19+'BP Financier'!$E$16+'BP Financier'!$E$19+'BP Financier'!$C$22+'BP Financier'!$D$22+'BP Financier'!$E$22+'BP Financier'!$F$22+'BP Financier'!$F$19+'BP Financier'!$F$16))*$V7271*X7271/(1-$W7271)","v":{"v":6557.987031885996,"d":"6,558"}},{"$f":"'BP Financier'!$F$44*(('BP Financier'!$C$19+'BP Financier'!$D$19+'BP Financier'!$E$19+'BP Financier'!$F$19)/('BP Financier'!$C$16+'BP Financier'!$C$19+'BP Financier'!$D$16+'BP Financier'!$D$19+'BP Financier'!$E$16+'BP Financier'!$E$19+'BP Financier'!$C$22+'BP Financier'!$D$22+'BP Financier'!$E$22+'BP Financier'!$F$22+'BP Financier'!$F$19+'BP Financier'!$F$16))*$V7271*Y7271/(1-$W7271)","v":{"v":4384.068678774615,"d":"4,384"}},{"$f":"'BP Financier'!$F$44*(('BP Financier'!$C$19+'BP Financier'!$D$19+'BP Financier'!$E$19+'BP Financier'!$F$19)/('BP Financier'!$C$16+'BP Financier'!$C$19+'BP Financier'!$D$16+'BP Financier'!$D$19+'BP Financier'!$E$16+'BP Financier'!$E$19+'BP Financier'!$C$22+'BP Financier'!$D$22+'BP Financier'!$E$22+'BP Financier'!$F$22+'BP Financier'!$F$19+'BP Financier'!$F$16))*$V7271*Z7271/(1-$W7271)","v":{"v":34311.678006607945,"d":"34,312"}},{"$f":"'BP Financier'!$F$44*(('BP Financier'!$C$19+'BP Financier'!$D$19+'BP Financier'!$E$19+'BP Financier'!$F$19)/('BP Financier'!$C$16+'BP Financier'!$C$19+'BP Financier'!$D$16+'BP Financier'!$D$19+'BP Financier'!$E$16+'BP Financier'!$E$19+'BP Financier'!$C$22+'BP Financier'!$D$22+'BP Financier'!$E$22+'BP Financier'!$F$22+'BP Financier'!$F$19+'BP Financier'!$F$16))*$V7271*AA7271/(1-$W7271)","v":{"v":4239.14078856719,"d":"4,239"}},{"$f":"'BP Financier'!$F$44*(('BP Financier'!$C$19+'BP Financier'!$D$19+'BP Financier'!$E$19+'BP Financier'!$F$19)/('BP Financier'!$C$16+'BP Financier'!$C$19+'BP Financier'!$D$16+'BP Financier'!$D$19+'BP Financier'!$E$16+'BP Financier'!$E$19+'BP Financier'!$C$22+'BP Financier'!$D$22+'BP Financier'!$E$22+'BP Financier'!$F$22+'BP Financier'!$F$19+'BP Financier'!$F$16))*$V7271*AB7271/(1-$W7271)","v":{"v":2028.9904629039538,"d":"2,029"}},null,{"v":0.0025,"d":"0.25%"},{"$f":"Actif!$E$28/100","v":{"v":0.28900000000000003,"d":"28.90%"}},{"$f":"Actif!$E$30/100","v":{"v":0.09050000000000001,"d":"9.05%"}},{"$f":"Actif!$E$31/100","v":{"v":0.0605,"d":"6.05%"}},{"$f":"Actif!$E$32/100","v":{"v":0.47350000000000003,"d":"47.35%"}},{"$f":"Actif!$E$33/100","v":{"v":0.0585,"d":"5.85%"}},{"$f":"Actif!$E$29/100","v":{"v":0.027999999999999997,"d":"2.80%"}}]
[null,"#162",58,2028,"H","A_PER",{"v":0.44999999999999996,"d":"0.45"},{"v":0.38999999999999996,"d":"0.39"},0.6,0.6,85,0,{"$f":"ROUND(Primes!$P$7*V7272,0)","v":3},{"$f":"'BP Financier'!$F$33*(('BP Financier'!$C$19+'BP Financier'!$D$19+'BP Financier'!$E$19+'BP Financier'!$F$19)/('BP Financier'!$C$16+'BP Financier'!$C$19+'BP Financier'!$D$16+'BP Financier'!$D$19+'BP Financier'!$E$16+'BP Financier'!$E$19+'BP Financier'!$F$16+'BP Financier'!$F$19))*V7272","v":{"v":90824.44018581607,"d":"90,824"}},{"v":51521.86496873969,"d":"51,522"},{"$f":"'BP Financier'!$F$44*(('BP Financier'!$C$19+'BP Financier'!$D$19+'BP Financier'!$E$19+'BP Financier'!$F$19)/('BP Financier'!$C$16+'BP Financier'!$C$19+'BP Financier'!$D$16+'BP Financier'!$D$19+'BP Financier'!$E$16+'BP Financier'!$E$19+'BP Financier'!$C$22+'BP Financier'!$D$22+'BP Financier'!$E$22+'BP Financier'!$F$22+'BP Financier'!$F$19+'BP Financier'!$F$16))*$V7272*X7272/(1-$W7272)","v":{"v":6557.987031885996,"d":"6,558"}},{"$f":"'BP Financier'!$F$44*(('BP Financier'!$C$19+'BP Financier'!$D$19+'BP Financier'!$E$19+'BP Financier'!$F$19)/('BP Financier'!$C$16+'BP Financier'!$C$19+'BP Financier'!$D$16+'BP Financier'!$D$19+'BP Financier'!$E$16+'BP Financier'!$E$19+'BP Financier'!$C$22+'BP Financier'!$D$22+'BP Financier'!$E$22+'BP Financier'!$F$22+'BP Financier'!$F$19+'BP Financier'!$F$16))*$V7272*Y7272/(1-$W7272)","v":{"v":4384.068678774615,"d":"4,384"}},{"$f":"'BP Financier'!$F$44*(('BP Financier'!$C$19+'BP Financier'!$D$19+'BP Financier'!$E$19+'BP Financier'!$F$19)/('BP Financier'!$C$16+'BP Financier'!$C$19+'BP Financier'!$D$16+'BP Financier'!$D$19+'BP Financier'!$E$16+'BP Financier'!$E$19+'BP Financier'!$C$22+'BP Financier'!$D$22+'BP Financier'!$E$22+'BP Financier'!$F$22+'BP Financier'!$F$19+'BP Financier'!$F$16))*$V7272*Z7272/(1-$W7272)","v":{"v":34311.678006607945,"d":"34,312"}},{"$f":"'BP Financier'!$F$44*(('BP Financier'!$C$19+'BP Financier'!$D$19+'BP Financier'!$E$19+'BP Financier'!$F$19)/('BP Financier'!$C$16+'BP Financier'!$C$19+'BP Financier'!$D$16+'BP Financier'!$D$19+'BP Financier'!$E$16+'BP Financier'!$E$19+'BP Financier'!$C$22+'BP Financier'!$D$22+'BP Financier'!$E$22+'BP Financier'!$F$22+'BP Financier'!$F$19+'BP Financier'!$F$16))*$V7272*AA7272/(1-$W7272)","v":{"v":4239.14078856719,"d":"4,239"}},{"$f":"'BP Financier'!$F$44*(('BP Financier'!$C$19+'BP Financier'!$D$19+'BP Financier'!$E$19+'BP Financier'!$F$19)/('BP Financier'!$C$16+'BP Financier'!$C$19+'BP Financier'!$D$16+'BP Financier'!$D$19+'BP Financier'!$E$16+'BP Financier'!$E$19+'BP Financier'!$C$22+'BP Financier'!$D$22+'BP Financier'!$E$22+'BP Financier'!$F$22+'BP Financier'!$F$19+'BP Financier'!$F$16))*$V7272*AB7272/(1-$W7272)","v":{"v":2028.9904629039538,"d":"2,029"}},null,{"v":0.0025,"d":"0.25%"},{"$f":"Actif!$E$28/100","v":{"v":0.28900000000000003,"d":"28.90%"}},{"$f":"Actif!$E$30/100","v":{"v":0.09050000000000001,"d":"9.05%"}},{"$f":"Actif!$E$31/100","v":{"v":0.0605,"d":"6.05%"}},{"$f":"Actif!$E$32/100","v":{"v":0.47350000000000003,"d":"47.35%"}},{"$f":"Actif!$E$33/100","v":{"v":0.0585,"d":"5.85%"}},{"$f":"Actif!$E$29/100","v":{"v":0.027999999999999997,"d":"2.80%"}}]
[null,"#163",58,2029,"H","A_PER",{"v":0.44999999999999996,"d":"0.45"},{"v":0.38999999999999996,"d":"0.39"},0.6,0.6,85,0,{"$f":"ROUND(Primes!$P$7*V7273,0)","v":3},{"$f":"'BP Financier'!$F$33*(('BP Financier'!$C$19+'BP Financier'!$D$19+'BP Financier'!$E$19+'BP Financier'!$F$19)/('BP Financier'!$C$16+'BP Financier'!$C$19+'BP Financier'!$D$16+'BP Financier'!$D$19+'BP Financier'!$E$16+'BP Financier'!$E$19+'BP Financier'!$F$16+'BP Financier'!$F$19))*V7273","v":{"v":90824.44018581607,"d":"90,824"}},{"v":51521.86496873969,"d":"51,522"},{"$f":"'BP Financier'!$F$44*(('BP Financier'!$C$19+'BP Financier'!$D$19+'BP Financier'!$E$19+'BP Financier'!$F$19)/('BP Financier'!$C$16+'BP Financier'!$C$19+'BP Financier'!$D$16+'BP Financier'!$D$19+'BP Financier'!$E$16+'BP Financier'!$E$19+'BP Financier'!$C$22+'BP Financier'!$D$22+'BP Financier'!$E$22+'BP Financier'!$F$22+'BP Financier'!$F$19+'BP Financier'!$F$16))*$V7273*X7273/(1-$W7273)","v":{"v":6557.987031885996,"d":"6,558"}},{"$f":"'BP Financier'!$F$44*(('BP Financier'!$C$19+'BP Financier'!$D$19+'BP Financier'!$E$19+'BP Financier'!$F$19)/('BP Financier'!$C$16+'BP Financier'!$C$19+'BP Financier'!$D$16+'BP Financier'!$D$19+'BP Financier'!$E$16+'BP Financier'!$E$19+'BP Financier'!$C$22+'BP Financier'!$D$22+'BP Financier'!$E$22+'BP Financier'!$F$22+'BP Financier'!$F$19+'BP Financier'!$F$16))*$V7273*Y7273/(1-$W7273)","v":{"v":4384.068678774615,"d":"4,384"}},{"$f":"'BP Financier'!$F$44*(('BP Financier'!$C$19+'BP Financier'!$D$19+'BP Financier'!$E$19+'BP Financier'!$F$19)/('BP Financier'!$C$16+'BP Financier'!$C$19+'BP Financier'!$D$16+'BP Financier'!$D$19+'BP Financier'!$E$16+'BP Financier'!$E$19+'BP Financier'!$C$22+'BP Financier'!$D$22+'BP Financier'!$E$22+'BP Financier'!$F$22+'BP Financier'!$F$19+'BP Financier'!$F$16))*$V7273*Z7273/(1-$W7273)","v":{"v":34311.678006607945,"d":"34,312"}},{"$f":"'BP Financier'!$F$44*(('BP Financier'!$C$19+'BP Financier'!$D$19+'BP Financier'!$E$19+'BP Financier'!$F$19)/('BP Financier'!$C$16+'BP Financier'!$C$19+'BP Financier'!$D$16+'BP Financier'!$D$19+'BP Financier'!$E$16+'BP Financier'!$E$19+'BP Financier'!$C$22+'BP Financier'!$D$22+'BP Financier'!$E$22+'BP Financier'!$F$22+'BP Financier'!$F$19+'BP Financier'!$F$16))*$V7273*AA7273/(1-$W7273)","v":{"v":4239.14078856719,"d":"4,239"}},{"$f":"'BP Financier'!$F$44*(('BP Financier'!$C$19+'BP Financier'!$D$19+'BP Financier'!$E$19+'BP Financier'!$F$19)/('BP Financier'!$C$16+'BP Financier'!$C$19+'BP Financier'!$D$16+'BP Financier'!$D$19+'BP Financier'!$E$16+'BP Financier'!$E$19+'BP Financier'!$C$22+'BP Financier'!$D$22+'BP Financier'!$E$22+'BP Financier'!$F$22+'BP Financier'!$F$19+'BP Financier'!$F$16))*$V7273*AB7273/(1-$W7273)","v":{"v":2028.9904629039538,"d":"2,029"}},null,{"v":0.0025,"d":"0.25%"},{"$f":"Actif!$E$28/100","v":{"v":0.28900000000000003,"d":"28.90%"}},{"$f":"Actif!$E$30/100","v":{"v":0.09050000000000001,"d":"9.05%"}},{"$f":"Actif!$E$31/100","v":{"v":0.0605,"d":"6.05%"}},{"$f":"Actif!$E$32/100","v":{"v":0.47350000000000003,"d":"47.35%"}},{"$f":"Actif!$E$33/100","v":{"v":0.0585,"d":"5.85%"}},{"$f":"Actif!$E$29/100","v":{"v":0.027999999999999997,"d":"2.80%"}}]
[null,"#164",58,2030,"H","A_PER",{"v":0.44999999999999996,"d":"0.45"},{"v":0.38999999999999996,"d":"0.39"},0.6,0.6,85,0,{"$f":"ROUND(Primes!$P$7*V7274,0)","v":3},{"$f":"'BP Financier'!$F$33*(('BP Financier'!$C$19+'BP Financier'!$D$19+'BP Financier'!$E$19+'BP Financier'!$F$19)/('BP Financier'!$C$16+'BP Financier'!$C$19+'BP Financier'!$D$16+'BP Financier'!$D$19+'BP Financier'!$E$16+'BP Financier'!$E$19+'BP Financier'!$F$16+'BP Financier'!$F$19))*V7274","v":{"v":90824.44018581607,"d":"90,824"}},{"v":51521.86496873969,"d":"51,522"},{"$f":"'BP Financier'!$F$44*(('BP Financier'!$C$19+'BP Financier'!$D$19+'BP Financier'!$E$19+'BP Financier'!$F$19)/('BP Financier'!$C$16+'BP Financier'!$C$19+'BP Financier'!$D$16+'BP Financier'!$D$19+'BP Financier'!$E$16+'BP Financier'!$E$19+'BP Financier'!$C$22+'BP Financier'!$D$22+'BP Financier'!$E$22+'BP Financier'!$F$22+'BP Financier'!$F$19+'BP Financier'!$F$16))*$V7274*X7274/(1-$W7274)","v":{"v":6557.987031885996,"d":"6,558"}},{"$f":"'BP Financier'!$F$44*(('BP Financier'!$C$19+'BP Financier'!$D$19+'BP Financier'!$E$19+'BP Financier'!$F$19)/('BP Financier'!$C$16+'BP Financier'!$C$19+'BP Financier'!$D$16+'BP Financier'!$D$19+'BP Financier'!$E$16+'BP Financier'!$E$19+'BP Financier'!$C$22+'BP Financier'!$D$22+'BP Financier'!$E$22+'BP Financier'!$F$22+'BP Financier'!$F$19+'BP Financier'!$F$16))*$V7274*Y7274/(1-$W7274)","v":{"v":4384.068678774615,"d":"4,384"}},{"$f":"'BP Financier'!$F$44*(('BP Financier'!$C$19+'BP Financier'!$D$19+'BP Financier'!$E$19+'BP Financier'!$F$19)/('BP Financier'!$C$16+'BP Financier'!$C$19+'BP Financier'!$D$16+'BP Financier'!$D$19+'BP Financier'!$E$16+'BP Financier'!$E$19+'BP Financier'!$C$22+'BP Financier'!$D$22+'BP Financier'!$E$22+'BP Financier'!$F$22+'BP Financier'!$F$19+'BP Financier'!$F$16))*$V7274*Z7274/(1-$W7274)","v":{"v":34311.678006607945,"d":"34,312"}},{"$f":"'BP Financier'!$F$44*(('BP Financier'!$C$19+'BP Financier'!$D$19+'BP Financier'!$E$19+'BP Financier'!$F$19)/('BP Financier'!$C$16+'BP Financier'!$C$19+'BP Financier'!$D$16+'BP Financier'!$D$19+'BP Financier'!$E$16+'BP Financier'!$E$19+'BP Financier'!$C$22+'BP Financier'!$D$22+'BP Financier'!$E$22+'BP Financier'!$F$22+'BP Financier'!$F$19+'BP Financier'!$F$16))*$V7274*AA7274/(1-$W7274)","v":{"v":4239.14078856719,"d":"4,239"}},{"$f":"'BP Financier'!$F$44*(('BP Financier'!$C$19+'BP Financier'!$D$19+'BP Financier'!$E$19+'BP Financier'!$F$19)/('BP Financier'!$C$16+'BP Financier'!$C$19+'BP Financier'!$D$16+'BP Financier'!$D$19+'BP Financier'!$E$16+'BP Financier'!$E$19+'BP Financier'!$C$22+'BP Financier'!$D$22+'BP Financier'!$E$22+'BP Financier'!$F$22+'BP Financier'!$F$19+'BP Financier'!$F$16))*$V7274*AB7274/(1-$W7274)","v":{"v":2028.9904629039538,"d":"2,029"}},null,{"v":0.0025,"d":"0.25%"},{"$f":"Actif!$E$28/100","v":{"v":0.28900000000000003,"d":"28.90%"}},{"$f":"Actif!$E$30/100","v":{"v":0.09050000000000001,"d":"9.05%"}},{"$f":"Actif!$E$31/100","v":{"v":0.0605,"d":"6.05%"}},{"$f":"Actif!$E$32/100","v":{"v":0.47350000000000003,"d":"47.35%"}},{"$f":"Actif!$E$33/100","v":{"v":0.0585,"d":"5.85%"}},{"$f":"Actif!$E$29/100","v":{"v":0.027999999999999997,"d":"2.80%"}}]
[null,"#165",59,2026,"F","A_PER",{"v":0.44999999999999996,"d":"0.45"},{"v":0.38999999999999996,"d":"0.39"},0.6,0.6,85,0,{"$f":"ROUND(Primes!$P$7*V7275,0)","v":3},{"$f":"'BP Financier'!$F$33*(('BP Financier'!$C$19+'BP Financier'!$D$19+'BP Financier'!$E$19+'BP Financier'!$F$19)/('BP Financier'!$C$16+'BP Financier'!$C$19+'BP Financier'!$D$16+'BP Financier'!$D$19+'BP Financier'!$E$16+'BP Financier'!$E$19+'BP Financier'!$F$16+'BP Financier'!$F$19))*V7275","v":{"v":90824.44018581607,"d":"90,824"}},{"v":51521.86496873969,"d":"51,522"},{"$f":"'BP Financier'!$F$44*(('BP Financier'!$C$19+'BP Financier'!$D$19+'BP Financier'!$E$19+'BP Financier'!$F$19)/('BP Financier'!$C$16+'BP Financier'!$C$19+'BP Financier'!$D$16+'BP Financier'!$D$19+'BP Financier'!$E$16+'BP Financier'!$E$19+'BP Financier'!$C$22+'BP Financier'!$D$22+'BP Financier'!$E$22+'BP Financier'!$F$22+'BP Financier'!$F$19+'BP Financier'!$F$16))*$V7275*X7275/(1-$W7275)","v":{"v":6557.987031885996,"d":"6,558"}},{"$f":"'BP Financier'!$F$44*(('BP Financier'!$C$19+'BP Financier'!$D$19+'BP Financier'!$E$19+'BP Financier'!$F$19)/('BP Financier'!$C$16+'BP Financier'!$C$19+'BP Financier'!$D$16+'BP Financier'!$D$19+'BP Financier'!$E$16+'BP Financier'!$E$19+'BP Financier'!$C$22+'BP Financier'!$D$22+'BP Financier'!$E$22+'BP Financier'!$F$22+'BP Financier'!$F$19+'BP Financier'!$F$16))*$V7275*Y7275/(1-$W7275)","v":{"v":4384.068678774615,"d":"4,384"}},{"$f":"'BP Financier'!$F$44*(('BP Financier'!$C$19+'BP Financier'!$D$19+'BP Financier'!$E$19+'BP Financier'!$F$19)/('BP Financier'!$C$16+'BP Financier'!$C$19+'BP Financier'!$D$16+'BP Financier'!$D$19+'BP Financier'!$E$16+'BP Financier'!$E$19+'BP Financier'!$C$22+'BP Financier'!$D$22+'BP Financier'!$E$22+'BP Financier'!$F$22+'BP Financier'!$F$19+'BP Financier'!$F$16))*$V7275*Z7275/(1-$W7275)","v":{"v":34311.678006607945,"d":"34,312"}},{"$f":"'BP Financier'!$F$44*(('BP Financier'!$C$19+'BP Financier'!$D$19+'BP Financier'!$E$19+'BP Financier'!$F$19)/('BP Financier'!$C$16+'BP Financier'!$C$19+'BP Financier'!$D$16+'BP Financier'!$D$19+'BP Financier'!$E$16+'BP Financier'!$E$19+'BP Financier'!$C$22+'BP Financier'!$D$22+'BP Financier'!$E$22+'BP Financier'!$F$22+'BP Financier'!$F$19+'BP Financier'!$F$16))*$V7275*AA7275/(1-$W7275)","v":{"v":4239.14078856719,"d":"4,239"}},{"$f":"'BP Financier'!$F$44*(('BP Financier'!$C$19+'BP Financier'!$D$19+'BP Financier'!$E$19+'BP Financier'!$F$19)/('BP Financier'!$C$16+'BP Financier'!$C$19+'BP Financier'!$D$16+'BP Financier'!$D$19+'BP Financier'!$E$16+'BP Financier'!$E$19+'BP Financier'!$C$22+'BP Financier'!$D$22+'BP Financier'!$E$22+'BP Financier'!$F$22+'BP Financier'!$F$19+'BP Financier'!$F$16))*$V7275*AB7275/(1-$W7275)","v":{"v":2028.9904629039538,"d":"2,029"}},null,{"v":0.0025,"d":"0.25%"},{"$f":"Actif!$E$28/100","v":{"v":0.28900000000000003,"d":"28.90%"}},{"$f":"Actif!$E$30/100","v":{"v":0.09050000000000001,"d":"9.05%"}},{"$f":"Actif!$E$31/100","v":{"v":0.0605,"d":"6.05%"}},{"$f":"Actif!$E$32/100","v":{"v":0.47350000000000003,"d":"47.35%"}},{"$f":"Actif!$E$33/100","v":{"v":0.0585,"d":"5.85%"}},{"$f":"Actif!$E$29/100","v":{"v":0.027999999999999997,"d":"2.80%"}}]
[null,"#166",59,2028,"F","A_PER",{"v":0.44999999999999996,"d":"0.45"},{"v":0.38999999999999996,"d":"0.39"},0.6,0.6,85,0,{"$f":"ROUND(Primes!$P$7*V7276,0)","v":3},{"$f":"'BP Financier'!$F$33*(('BP Financier'!$C$19+'BP Financier'!$D$19+'BP Financier'!$E$19+'BP Financier'!$F$19)/('BP Financier'!$C$16+'BP Financier'!$C$19+'BP Financier'!$D$16+'BP Financier'!$D$19+'BP Financier'!$E$16+'BP Financier'!$E$19+'BP Financier'!$F$16+'BP Financier'!$F$19))*V7276","v":{"v":90824.44018581607,"d":"90,824"}},{"v":51521.86496873969,"d":"51,522"},{"$f":"'BP Financier'!$F$44*(('BP Financier'!$C$19+'BP Financier'!$D$19+'BP Financier'!$E$19+'BP Financier'!$F$19)/('BP Financier'!$C$16+'BP Financier'!$C$19+'BP Financier'!$D$16+'BP Financier'!$D$19+'BP Financier'!$E$16+'BP Financier'!$E$19+'BP Financier'!$C$22+'BP Financier'!$D$22+'BP Financier'!$E$22+'BP Financier'!$F$22+'BP Financier'!$F$19+'BP Financier'!$F$16))*$V7276*X7276/(1-$W7276)","v":{"v":6557.987031885996,"d":"6,558"}},{"$f":"'BP Financier'!$F$44*(('BP Financier'!$C$19+'BP Financier'!$D$19+'BP Financier'!$E$19+'BP Financier'!$F$19)/('BP Financier'!$C$16+'BP Financier'!$C$19+'BP Financier'!$D$16+'BP Financier'!$D$19+'BP Financier'!$E$16+'BP Financier'!$E$19+'BP Financier'!$C$22+'BP Financier'!$D$22+'BP Financier'!$E$22+'BP Financier'!$F$22+'BP Financier'!$F$19+'BP Financier'!$F$16))*$V7276*Y7276/(1-$W7276)","v":{"v":4384.068678774615,"d":"4,384"}},{"$f":"'BP Financier'!$F$44*(('BP Financier'!$C$19+'BP Financier'!$D$19+'BP Financier'!$E$19+'BP Financier'!$F$19)/('BP Financier'!$C$16+'BP Financier'!$C$19+'BP Financier'!$D$16+'BP Financier'!$D$19+'BP Financier'!$E$16+'BP Financier'!$E$19+'BP Financier'!$C$22+'BP Financier'!$D$22+'BP Financier'!$E$22+'BP Financier'!$F$22+'BP Financier'!$F$19+'BP Financier'!$F$16))*$V7276*Z7276/(1-$W7276)","v":{"v":34311.678006607945,"d":"34,312"}},{"$f":"'BP Financier'!$F$44*(('BP Financier'!$C$19+'BP Financier'!$D$19+'BP Financier'!$E$19+'BP Financier'!$F$19)/('BP Financier'!$C$16+'BP Financier'!$C$19+'BP Financier'!$D$16+'BP Financier'!$D$19+'BP Financier'!$E$16+'BP Financier'!$E$19+'BP Financier'!$C$22+'BP Financier'!$D$22+'BP Financier'!$E$22+'BP Financier'!$F$22+'BP Financier'!$F$19+'BP Financier'!$F$16))*$V7276*AA7276/(1-$W7276)","v":{"v":4239.14078856719,"d":"4,239"}},{"$f":"'BP Financier'!$F$44*(('BP Financier'!$C$19+'BP Financier'!$D$19+'BP Financier'!$E$19+'BP Financier'!$F$19)/('BP Financier'!$C$16+'BP Financier'!$C$19+'BP Financier'!$D$16+'BP Financier'!$D$19+'BP Financier'!$E$16+'BP Financier'!$E$19+'BP Financier'!$C$22+'BP Financier'!$D$22+'BP Financier'!$E$22+'BP Financier'!$F$22+'BP Financier'!$F$19+'BP Financier'!$F$16))*$V7276*AB7276/(1-$W7276)","v":{"v":2028.9904629039538,"d":"2,029"}},null,{"v":0.0025,"d":"0.25%"},{"$f":"Actif!$E$28/100","v":{"v":0.28900000000000003,"d":"28.90%"}},{"$f":"Actif!$E$30/100","v":{"v":0.09050000000000001,"d":"9.05%"}},{"$f":"Actif!$E$31/100","v":{"v":0.0605,"d":"6.05%"}},{"$f":"Actif!$E$32/100","v":{"v":0.47350000000000003,"d":"47.35%"}},{"$f":"Actif!$E$33/100","v":{"v":0.0585,"d":"5.85%"}},{"$f":"Actif!$E$29/100","v":{"v":0.027999999999999997,"d":"2.80%"}}]
[null,"#167",59,2029,"F","A_PER",{"v":0.44999999999999996,"d":"0.45"},{"v":0.38999999999999996,"d":"0.39"},0.6,0.6,85,0,{"$f":"ROUND(Primes!$P$7*V7277,0)","v":3},{"$f":"'BP Financier'!$F$33*(('BP Financier'!$C$19+'BP Financier'!$D$19+'BP Financier'!$E$19+'BP Financier'!$F$19)/('BP Financier'!$C$16+'BP Financier'!$C$19+'BP Financier'!$D$16+'BP Financier'!$D$19+'BP Financier'!$E$16+'BP Financier'!$E$19+'BP Financier'!$F$16+'BP Financier'!$F$19))*V7277","v":{"v":90824.44018581607,"d":"90,824"}},{"v":51521.86496873969,"d":"51,522"},{"$f":"'BP Financier'!$F$44*(('BP Financier'!$C$19+'BP Financier'!$D$19+'BP Financier'!$E$19+'BP Financier'!$F$19)/('BP Financier'!$C$16+'BP Financier'!$C$19+'BP Financier'!$D$16+'BP Financier'!$D$19+'BP Financier'!$E$16+'BP Financier'!$E$19+'BP Financier'!$C$22+'BP Financier'!$D$22+'BP Financier'!$E$22+'BP Financier'!$F$22+'BP Financier'!$F$19+'BP Financier'!$F$16))*$V7277*X7277/(1-$W7277)","v":{"v":6557.987031885996,"d":"6,558"}},{"$f":"'BP Financier'!$F$44*(('BP Financier'!$C$19+'BP Financier'!$D$19+'BP Financier'!$E$19+'BP Financier'!$F$19)/('BP Financier'!$C$16+'BP Financier'!$C$19+'BP Financier'!$D$16+'BP Financier'!$D$19+'BP Financier'!$E$16+'BP Financier'!$E$19+'BP Financier'!$C$22+'BP Financier'!$D$22+'BP Financier'!$E$22+'BP Financier'!$F$22+'BP Financier'!$F$19+'BP Financier'!$F$16))*$V7277*Y7277/(1-$W7277)","v":{"v":4384.068678774615,"d":"4,384"}},{"$f":"'BP Financier'!$F$44*(('BP Financier'!$C$19+'BP Financier'!$D$19+'BP Financier'!$E$19+'BP Financier'!$F$19)/('BP Financier'!$C$16+'BP Financier'!$C$19+'BP Financier'!$D$16+'BP Financier'!$D$19+'BP Financier'!$E$16+'BP Financier'!$E$19+'BP Financier'!$C$22+'BP Financier'!$D$22+'BP Financier'!$E$22+'BP Financier'!$F$22+'BP Financier'!$F$19+'BP Financier'!$F$16))*$V7277*Z7277/(1-$W7277)","v":{"v":34311.678006607945,"d":"34,312"}},{"$f":"'BP Financier'!$F$44*(('BP Financier'!$C$19+'BP Financier'!$D$19+'BP Financier'!$E$19+'BP Financier'!$F$19)/('BP Financier'!$C$16+'BP Financier'!$C$19+'BP Financier'!$D$16+'BP Financier'!$D$19+'BP Financier'!$E$16+'BP Financier'!$E$19+'BP Financier'!$C$22+'BP Financier'!$D$22+'BP Financier'!$E$22+'BP Financier'!$F$22+'BP Financier'!$F$19+'BP Financier'!$F$16))*$V7277*AA7277/(1-$W7277)","v":{"v":4239.14078856719,"d":"4,239"}},{"$f":"'BP Financier'!$F$44*(('BP Financier'!$C$19+'BP Financier'!$D$19+'BP Financier'!$E$19+'BP Financier'!$F$19)/('BP Financier'!$C$16+'BP Financier'!$C$19+'BP Financier'!$D$16+'BP Financier'!$D$19+'BP Financier'!$E$16+'BP Financier'!$E$19+'BP Financier'!$C$22+'BP Financier'!$D$22+'BP Financier'!$E$22+'BP Financier'!$F$22+'BP Financier'!$F$19+'BP Financier'!$F$16))*$V7277*AB7277/(1-$W7277)","v":{"v":2028.9904629039538,"d":"2,029"}},null,{"v":0.0025,"d":"0.25%"},{"$f":"Actif!$E$28/100","v":{"v":0.28900000000000003,"d":"28.90%"}},{"$f":"Actif!$E$30/100","v":{"v":0.09050000000000001,"d":"9.05%"}},{"$f":"Actif!$E$31/100","v":{"v":0.0605,"d":"6.05%"}},{"$f":"Actif!$E$32/100","v":{"v":0.47350000000000003,"d":"47.35%"}},{"$f":"Actif!$E$33/100","v":{"v":0.0585,"d":"5.85%"}},{"$f":"Actif!$E$29/100","v":{"v":0.027999999999999997,"d":"2.80%"}}]
[null,"#168",59,2030,"F","A_PER",{"v":0.44999999999999996,"d":"0.45"},{"v":0.38999999999999996,"d":"0.39"},0.6,0.6,85,0,{"$f":"ROUND(Primes!$P$7*V7278,0)","v":3},{"$f":"'BP Financier'!$F$33*(('BP Financier'!$C$19+'BP Financier'!$D$19+'BP Financier'!$E$19+'BP Financier'!$F$19)/('BP Financier'!$C$16+'BP Financier'!$C$19+'BP Financier'!$D$16+'BP Financier'!$D$19+'BP Financier'!$E$16+'BP Financier'!$E$19+'BP Financier'!$F$16+'BP Financier'!$F$19))*V7278","v":{"v":90824.44018581607,"d":"90,824"}},{"v":51521.86496873969,"d":"51,522"},{"$f":"'BP Financier'!$F$44*(('BP Financier'!$C$19+'BP Financier'!$D$19+'BP Financier'!$E$19+'BP Financier'!$F$19)/('BP Financier'!$C$16+'BP Financier'!$C$19+'BP Financier'!$D$16+'BP Financier'!$D$19+'BP Financier'!$E$16+'BP Financier'!$E$19+'BP Financier'!$C$22+'BP Financier'!$D$22+'BP Financier'!$E$22+'BP Financier'!$F$22+'BP Financier'!$F$19+'BP Financier'!$F$16))*$V7278*X7278/(1-$W7278)","v":{"v":6557.987031885996,"d":"6,558"}},{"$f":"'BP Financier'!$F$44*(('BP Financier'!$C$19+'BP Financier'!$D$19+'BP Financier'!$E$19+'BP Financier'!$F$19)/('BP Financier'!$C$16+'BP Financier'!$C$19+'BP Financier'!$D$16+'BP Financier'!$D$19+'BP Financier'!$E$16+'BP Financier'!$E$19+'BP Financier'!$C$22+'BP Financier'!$D$22+'BP Financier'!$E$22+'BP Financier'!$F$22+'BP Financier'!$F$19+'BP Financier'!$F$16))*$V7278*Y7278/(1-$W7278)","v":{"v":4384.068678774615,"d":"4,384"}},{"$f":"'BP Financier'!$F$44*(('BP Financier'!$C$19+'BP Financier'!$D$19+'BP Financier'!$E$19+'BP Financier'!$F$19)/('BP Financier'!$C$16+'BP Financier'!$C$19+'BP Financier'!$D$16+'BP Financier'!$D$19+'BP Financier'!$E$16+'BP Financier'!$E$19+'BP Financier'!$C$22+'BP Financier'!$D$22+'BP Financier'!$E$22+'BP Financier'!$F$22+'BP Financier'!$F$19+'BP Financier'!$F$16))*$V7278*Z7278/(1-$W7278)","v":{"v":34311.678006607945,"d":"34,312"}},{"$f":"'BP Financier'!$F$44*(('BP Financier'!$C$19+'BP Financier'!$D$19+'BP Financier'!$E$19+'BP Financier'!$F$19)/('BP Financier'!$C$16+'BP Financier'!$C$19+'BP Financier'!$D$16+'BP Financier'!$D$19+'BP Financier'!$E$16+'BP Financier'!$E$19+'BP Financier'!$C$22+'BP Financier'!$D$22+'BP Financier'!$E$22+'BP Financier'!$F$22+'BP Financier'!$F$19+'BP Financier'!$F$16))*$V7278*AA7278/(1-$W7278)","v":{"v":4239.14078856719,"d":"4,239"}},{"$f":"'BP Financier'!$F$44*(('BP Financier'!$C$19+'BP Financier'!$D$19+'BP Financier'!$E$19+'BP Financier'!$F$19)/('BP Financier'!$C$16+'BP Financier'!$C$19+'BP Financier'!$D$16+'BP Financier'!$D$19+'BP Financier'!$E$16+'BP Financier'!$E$19+'BP Financier'!$C$22+'BP Financier'!$D$22+'BP Financier'!$E$22+'BP Financier'!$F$22+'BP Financier'!$F$19+'BP Financier'!$F$16))*$V7278*AB7278/(1-$W7278)","v":{"v":2028.9904629039538,"d":"2,029"}},null,{"v":0.0025,"d":"0.25%"},{"$f":"Actif!$E$28/100","v":{"v":0.28900000000000003,"d":"28.90%"}},{"$f":"Actif!$E$30/100","v":{"v":0.09050000000000001,"d":"9.05%"}},{"$f":"Actif!$E$31/100","v":{"v":0.0605,"d":"6.05%"}},{"$f":"Actif!$E$32/100","v":{"v":0.47350000000000003,"d":"47.35%"}},{"$f":"Actif!$E$33/100","v":{"v":0.0585,"d":"5.85%"}},{"$f":"Actif!$E$29/100","v":{"v":0.027999999999999997,"d":"2.80%"}}]
[null,"#169",60,2026,"H","A_PER",{"v":0.44999999999999996,"d":"0.45"},{"v":0.38999999999999996,"d":"0.39"},0.6,0.6,85,0,{"$f":"ROUND(Primes!$P$7*V7279,0)","v":3},{"$f":"'BP Financier'!$F$33*(('BP Financier'!$C$19+'BP Financier'!$D$19+'BP Financier'!$E$19+'BP Financier'!$F$19)/('BP Financier'!$C$16+'BP Financier'!$C$19+'BP Financier'!$D$16+'BP Financier'!$D$19+'BP Financier'!$E$16+'BP Financier'!$E$19+'BP Financier'!$F$16+'BP Financier'!$F$19))*V7279","v":{"v":90824.44018581607,"d":"90,824"}},{"v":51521.86496873969,"d":"51,522"},{"$f":"'BP Financier'!$F$44*(('BP Financier'!$C$19+'BP Financier'!$D$19+'BP Financier'!$E$19+'BP Financier'!$F$19)/('BP Financier'!$C$16+'BP Financier'!$C$19+'BP Financier'!$D$16+'BP Financier'!$D$19+'BP Financier'!$E$16+'BP Financier'!$E$19+'BP Financier'!$C$22+'BP Financier'!$D$22+'BP Financier'!$E$22+'BP Financier'!$F$22+'BP Financier'!$F$19+'BP Financier'!$F$16))*$V7279*X7279/(1-$W7279)","v":{"v":6557.987031885996,"d":"6,558"}},{"$f":"'BP Financier'!$F$44*(('BP Financier'!$C$19+'BP Financier'!$D$19+'BP Financier'!$E$19+'BP Financier'!$F$19)/('BP Financier'!$C$16+'BP Financier'!$C$19+'BP Financier'!$D$16+'BP Financier'!$D$19+'BP Financier'!$E$16+'BP Financier'!$E$19+'BP Financier'!$C$22+'BP Financier'!$D$22+'BP Financier'!$E$22+'BP Financier'!$F$22+'BP Financier'!$F$19+'BP Financier'!$F$16))*$V7279*Y7279/(1-$W7279)","v":{"v":4384.068678774615,"d":"4,384"}},{"$f":"'BP Financier'!$F$44*(('BP Financier'!$C$19+'BP Financier'!$D$19+'BP Financier'!$E$19+'BP Financier'!$F$19)/('BP Financier'!$C$16+'BP Financier'!$C$19+'BP Financier'!$D$16+'BP Financier'!$D$19+'BP Financier'!$E$16+'BP Financier'!$E$19+'BP Financier'!$C$22+'BP Financier'!$D$22+'BP Financier'!$E$22+'BP Financier'!$F$22+'BP Financier'!$F$19+'BP Financier'!$F$16))*$V7279*Z7279/(1-$W7279)","v":{"v":34311.678006607945,"d":"34,312"}},{"$f":"'BP Financier'!$F$44*(('BP Financier'!$C$19+'BP Financier'!$D$19+'BP Financier'!$E$19+'BP Financier'!$F$19)/('BP Financier'!$C$16+'BP Financier'!$C$19+'BP Financier'!$D$16+'BP Financier'!$D$19+'BP Financier'!$E$16+'BP Financier'!$E$19+'BP Financier'!$C$22+'BP Financier'!$D$22+'BP Financier'!$E$22+'BP Financier'!$F$22+'BP Financier'!$F$19+'BP Financier'!$F$16))*$V7279*AA7279/(1-$W7279)","v":{"v":4239.14078856719,"d":"4,239"}},{"$f":"'BP Financier'!$F$44*(('BP Financier'!$C$19+'BP Financier'!$D$19+'BP Financier'!$E$19+'BP Financier'!$F$19)/('BP Financier'!$C$16+'BP Financier'!$C$19+'BP Financier'!$D$16+'BP Financier'!$D$19+'BP Financier'!$E$16+'BP Financier'!$E$19+'BP Financier'!$C$22+'BP Financier'!$D$22+'BP Financier'!$E$22+'BP Financier'!$F$22+'BP Financier'!$F$19+'BP Financier'!$F$16))*$V7279*AB7279/(1-$W7279)","v":{"v":2028.9904629039538,"d":"2,029"}},null,{"v":0.0025,"d":"0.25%"},{"$f":"Actif!$E$28/100","v":{"v":0.28900000000000003,"d":"28.90%"}},{"$f":"Actif!$E$30/100","v":{"v":0.09050000000000001,"d":"9.05%"}},{"$f":"Actif!$E$31/100","v":{"v":0.0605,"d":"6.05%"}},{"$f":"Actif!$E$32/100","v":{"v":0.47350000000000003,"d":"47.35%"}},{"$f":"Actif!$E$33/100","v":{"v":0.0585,"d":"5.85%"}},{"$f":"Actif!$E$29/100","v":{"v":0.027999999999999997,"d":"2.80%"}}]
[null,"#170",60,2028,"H","A_PER",{"v":0.44999999999999996,"d":"0.45"},{"v":0.38999999999999996,"d":"0.39"},0.6,0.6,85,0,{"$f":"ROUND(Primes!$P$7*V7280,0)","v":3},{"$f":"'BP Financier'!$F$33*(('BP Financier'!$C$19+'BP Financier'!$D$19+'BP Financier'!$E$19+'BP Financier'!$F$19)/('BP Financier'!$C$16+'BP Financier'!$C$19+'BP Financier'!$D$16+'BP Financier'!$D$19+'BP Financier'!$E$16+'BP Financier'!$E$19+'BP Financier'!$F$16+'BP Financier'!$F$19))*V7280","v":{"v":90824.44018581607,"d":"90,824"}},{"v":51521.86496873969,"d":"51,522"},{"$f":"'BP Financier'!$F$44*(('BP Financier'!$C$19+'BP Financier'!$D$19+'BP Financier'!$E$19+'BP Financier'!$F$19)/('BP Financier'!$C$16+'BP Financier'!$C$19+'BP Financier'!$D$16+'BP Financier'!$D$19+'BP Financier'!$E$16+'BP Financier'!$E$19+'BP Financier'!$C$22+'BP Financier'!$D$22+'BP Financier'!$E$22+'BP Financier'!$F$22+'BP Financier'!$F$19+'BP Financier'!$F$16))*$V7280*X7280/(1-$W7280)","v":{"v":6557.987031885996,"d":"6,558"}},{"$f":"'BP Financier'!$F$44*(('BP Financier'!$C$19+'BP Financier'!$D$19+'BP Financier'!$E$19+'BP Financier'!$F$19)/('BP Financier'!$C$16+'BP Financier'!$C$19+'BP Financier'!$D$16+'BP Financier'!$D$19+'BP Financier'!$E$16+'BP Financier'!$E$19+'BP Financier'!$C$22+'BP Financier'!$D$22+'BP Financier'!$E$22+'BP Financier'!$F$22+'BP Financier'!$F$19+'BP Financier'!$F$16))*$V7280*Y7280/(1-$W7280)","v":{"v":4384.068678774615,"d":"4,384"}},{"$f":"'BP Financier'!$F$44*(('BP Financier'!$C$19+'BP Financier'!$D$19+'BP Financier'!$E$19+'BP Financier'!$F$19)/('BP Financier'!$C$16+'BP Financier'!$C$19+'BP Financier'!$D$16+'BP Financier'!$D$19+'BP Financier'!$E$16+'BP Financier'!$E$19+'BP Financier'!$C$22+'BP Financier'!$D$22+'BP Financier'!$E$22+'BP Financier'!$F$22+'BP Financier'!$F$19+'BP Financier'!$F$16))*$V7280*Z7280/(1-$W7280)","v":{"v":34311.678006607945,"d":"34,312"}},{"$f":"'BP Financier'!$F$44*(('BP Financier'!$C$19+'BP Financier'!$D$19+'BP Financier'!$E$19+'BP Financier'!$F$19)/('BP Financier'!$C$16+'BP Financier'!$C$19+'BP Financier'!$D$16+'BP Financier'!$D$19+'BP Financier'!$E$16+'BP Financier'!$E$19+'BP Financier'!$C$22+'BP Financier'!$D$22+'BP Financier'!$E$22+'BP Financier'!$F$22+'BP Financier'!$F$19+'BP Financier'!$F$16))*$V7280*AA7280/(1-$W7280)","v":{"v":4239.14078856719,"d":"4,239"}},{"$f":"'BP Financier'!$F$44*(('BP Financier'!$C$19+'BP Financier'!$D$19+'BP Financier'!$E$19+'BP Financier'!$F$19)/('BP Financier'!$C$16+'BP Financier'!$C$19+'BP Financier'!$D$16+'BP Financier'!$D$19+'BP Financier'!$E$16+'BP Financier'!$E$19+'BP Financier'!$C$22+'BP Financier'!$D$22+'BP Financier'!$E$22+'BP Financier'!$F$22+'BP Financier'!$F$19+'BP Financier'!$F$16))*$V7280*AB7280/(1-$W7280)","v":{"v":2028.9904629039538,"d":"2,029"}},null,{"v":0.0025,"d":"0.25%"},{"$f":"Actif!$E$28/100","v":{"v":0.28900000000000003,"d":"28.90%"}},{"$f":"Actif!$E$30/100","v":{"v":0.09050000000000001,"d":"9.05%"}},{"$f":"Actif!$E$31/100","v":{"v":0.0605,"d":"6.05%"}},{"$f":"Actif!$E$32/100","v":{"v":0.47350000000000003,"d":"47.35%"}},{"$f":"Actif!$E$33/100","v":{"v":0.0585,"d":"5.85%"}},{"$f":"Actif!$E$29/100","v":{"v":0.027999999999999997,"d":"2.80%"}}]
[null,"#171",60,2029,"H","A_PER",{"$f":"frais_gestion_Euro*100","v":{"v":0.44999999999999996,"d":"0.45"}},{"$f":"frais_gestion_UC*100","v":{"v":0.38999999999999996,"d":"0.39"}},{"$f":"frais_distribution_FG*100","v":0.6},{"$f":"frais_distribution_UC*100","v":0.6},85,0,{"$f":"ROUND(Primes!$P$7*V7281,0)","v":3},{"$f":"'BP Financier'!$F$33*(('BP Financier'!$C$19+'BP Financier'!$D$19+'BP Financier'!$E$19+'BP Financier'!$F$19)/('BP Financier'!$C$16+'BP Financier'!$C$19+'BP Financier'!$D$16+'BP Financier'!$D$19+'BP Financier'!$E$16+'BP Financier'!$E$19+'BP Financier'!$F$16+'BP Financier'!$F$19))*V7281","v":{"v":90824.44018581607,"d":"90,824"}},{"v":51521.86496873969,"d":"51,522"},{"$f":"'BP Financier'!$F$44*(('BP Financier'!$C$19+'BP Financier'!$D$19+'BP Financier'!$E$19+'BP Financier'!$F$19)/('BP Financier'!$C$16+'BP Financier'!$C$19+'BP Financier'!$D$16+'BP Financier'!$D$19+'BP Financier'!$E$16+'BP Financier'!$E$19+'BP Financier'!$C$22+'BP Financier'!$D$22+'BP Financier'!$E$22+'BP Financier'!$F$22+'BP Financier'!$F$19+'BP Financier'!$F$16))*$V7281*X7281/(1-$W7281)","v":{"v":6557.987031885996,"d":"6,558"}},{"$f":"'BP Financier'!$F$44*(('BP Financier'!$C$19+'BP Financier'!$D$19+'BP Financier'!$E$19+'BP Financier'!$F$19)/('BP Financier'!$C$16+'BP Financier'!$C$19+'BP Financier'!$D$16+'BP Financier'!$D$19+'BP Financier'!$E$16+'BP Financier'!$E$19+'BP Financier'!$C$22+'BP Financier'!$D$22+'BP Financier'!$E$22+'BP Financier'!$F$22+'BP Financier'!$F$19+'BP Financier'!$F$16))*$V7281*Y7281/(1-$W7281)","v":{"v":4384.068678774615,"d":"4,384"}},{"$f":"'BP Financier'!$F$44*(('BP Financier'!$C$19+'BP Financier'!$D$19+'BP Financier'!$E$19+'BP Financier'!$F$19)/('BP Financier'!$C$16+'BP Financier'!$C$19+'BP Financier'!$D$16+'BP Financier'!$D$19+'BP Financier'!$E$16+'BP Financier'!$E$19+'BP Financier'!$C$22+'BP Financier'!$D$22+'BP Financier'!$E$22+'BP Financier'!$F$22+'BP Financier'!$F$19+'BP Financier'!$F$16))*$V7281*Z7281/(1-$W7281)","v":{"v":34311.678006607945,"d":"34,312"}},{"$f":"'BP Financier'!$F$44*(('BP Financier'!$C$19+'BP Financier'!$D$19+'BP Financier'!$E$19+'BP Financier'!$F$19)/('BP Financier'!$C$16+'BP Financier'!$C$19+'BP Financier'!$D$16+'BP Financier'!$D$19+'BP Financier'!$E$16+'BP Financier'!$E$19+'BP Financier'!$C$22+'BP Financier'!$D$22+'BP Financier'!$E$22+'BP Financier'!$F$22+'BP Financier'!$F$19+'BP Financier'!$F$16))*$V7281*AA7281/(1-$W7281)","v":{"v":4239.14078856719,"d":"4,239"}},{"$f":"'BP Financier'!$F$44*(('BP Financier'!$C$19+'BP Financier'!$D$19+'BP Financier'!$E$19+'BP Financier'!$F$19)/('BP Financier'!$C$16+'BP Financier'!$C$19+'BP Financier'!$D$16+'BP Financier'!$D$19+'BP Financier'!$E$16+'BP Financier'!$E$19+'BP Financier'!$C$22+'BP Financier'!$D$22+'BP Financier'!$E$22+'BP Financier'!$F$22+'BP Financier'!$F$19+'BP Financier'!$F$16))*$V7281*AB7281/(1-$W7281)","v":{"v":2028.9904629039538,"d":"2,029"}},null,{"v":0.0025,"d":"0.25%"},{"$f":"Actif!$E$28/100","v":{"v":0.28900000000000003,"d":"28.90%"}},{"$f":"Actif!$E$30/100","v":{"v":0.09050000000000001,"d":"9.05%"}},{"$f":"Actif!$E$31/100","v":{"v":0.0605,"d":"6.05%"}},{"$f":"Actif!$E$32/100","v":{"v":0.47350000000000003,"d":"47.35%"}},{"$f":"Actif!$E$33/100","v":{"v":0.0585,"d":"5.85%"}},{"$f":"Actif!$E$29/100","v":{"v":0.027999999999999997,"d":"2.80%"}}]
[null,"#172",60,2030,"H","A_PER",{"v":0.44999999999999996,"d":"0.45"},{"v":0.38999999999999996,"d":"0.39"},0.6,0.6,85,0,{"$f":"ROUND(Primes!$P$7*V7282,0)","v":3},{"$f":"'BP Financier'!$F$33*(('BP Financier'!$C$19+'BP Financier'!$D$19+'BP Financier'!$E$19+'BP Financier'!$F$19)/('BP Financier'!$C$16+'BP Financier'!$C$19+'BP Financier'!$D$16+'BP Financier'!$D$19+'BP Financier'!$E$16+'BP Financier'!$E$19+'BP Financier'!$F$16+'BP Financier'!$F$19))*V7282","v":{"v":90824.44018581607,"d":"90,824"}},{"v":51521.86496873969,"d":"51,522"},{"$f":"'BP Financier'!$F$44*(('BP Financier'!$C$19+'BP Financier'!$D$19+'BP Financier'!$E$19+'BP Financier'!$F$19)/('BP Financier'!$C$16+'BP Financier'!$C$19+'BP Financier'!$D$16+'BP Financier'!$D$19+'BP Financier'!$E$16+'BP Financier'!$E$19+'BP Financier'!$C$22+'BP Financier'!$D$22+'BP Financier'!$E$22+'BP Financier'!$F$22+'BP Financier'!$F$19+'BP Financier'!$F$16))*$V7282*X7282/(1-$W7282)","v":{"v":6557.987031885996,"d":"6,558"}},{"$f":"'BP Financier'!$F$44*(('BP Financier'!$C$19+'BP Financier'!$D$19+'BP Financier'!$E$19+'BP Financier'!$F$19)/('BP Financier'!$C$16+'BP Financier'!$C$19+'BP Financier'!$D$16+'BP Financier'!$D$19+'BP Financier'!$E$16+'BP Financier'!$E$19+'BP Financier'!$C$22+'BP Financier'!$D$22+'BP Financier'!$E$22+'BP Financier'!$F$22+'BP Financier'!$F$19+'BP Financier'!$F$16))*$V7282*Y7282/(1-$W7282)","v":{"v":4384.068678774615,"d":"4,384"}},{"$f":"'BP Financier'!$F$44*(('BP Financier'!$C$19+'BP Financier'!$D$19+'BP Financier'!$E$19+'BP Financier'!$F$19)/('BP Financier'!$C$16+'BP Financier'!$C$19+'BP Financier'!$D$16+'BP Financier'!$D$19+'BP Financier'!$E$16+'BP Financier'!$E$19+'BP Financier'!$C$22+'BP Financier'!$D$22+'BP Financier'!$E$22+'BP Financier'!$F$22+'BP Financier'!$F$19+'BP Financier'!$F$16))*$V7282*Z7282/(1-$W7282)","v":{"v":34311.678006607945,"d":"34,312"}},{"$f":"'BP Financier'!$F$44*(('BP Financier'!$C$19+'BP Financier'!$D$19+'BP Financier'!$E$19+'BP Financier'!$F$19)/('BP Financier'!$C$16+'BP Financier'!$C$19+'BP Financier'!$D$16+'BP Financier'!$D$19+'BP Financier'!$E$16+'BP Financier'!$E$19+'BP Financier'!$C$22+'BP Financier'!$D$22+'BP Financier'!$E$22+'BP Financier'!$F$22+'BP Financier'!$F$19+'BP Financier'!$F$16))*$V7282*AA7282/(1-$W7282)","v":{"v":4239.14078856719,"d":"4,239"}},{"$f":"'BP Financier'!$F$44*(('BP Financier'!$C$19+'BP Financier'!$D$19+'BP Financier'!$E$19+'BP Financier'!$F$19)/('BP Financier'!$C$16+'BP Financier'!$C$19+'BP Financier'!$D$16+'BP Financier'!$D$19+'BP Financier'!$E$16+'BP Financier'!$E$19+'BP Financier'!$C$22+'BP Financier'!$D$22+'BP Financier'!$E$22+'BP Financier'!$F$22+'BP Financier'!$F$19+'BP Financier'!$F$16))*$V7282*AB7282/(1-$W7282)","v":{"v":2028.9904629039538,"d":"2,029"}},null,{"v":0.0025,"d":"0.25%"},{"$f":"Actif!$E$28/100","v":{"v":0.28900000000000003,"d":"28.90%"}},{"$f":"Actif!$E$30/100","v":{"v":0.09050000000000001,"d":"9.05%"}},{"$f":"Actif!$E$31/100","v":{"v":0.0605,"d":"6.05%"}},{"$f":"Actif!$E$32/100","v":{"v":0.47350000000000003,"d":"47.35%"}},{"$f":"Actif!$E$33/100","v":{"v":0.0585,"d":"5.85%"}},{"$f":"Actif!$E$29/100","v":{"v":0.027999999999999997,"d":"2.80%"}}]
[null,"#173"]
[null,"#174"]
[null,"#175"]
[null,"#176"]
[null,"#177"]
[null,"#178"]
[null,"#179"]
[null,"#180"]
[null,"#181"]
[null,"#182"]
[null,"#183"]
[null,"#184"]
[null,"#185"]
[null,"#186"]
[null,"#187"]
[null,"#188"]
[null,"#189"]
[null,"#190"]
[null,"#191"]
[null,"#192"]
[null,"#193"]
[null,"#194"]
[null,"#195"]
[null,"#196"]
[null,"#197"]
[null,"#198"]
[null,"#199"]
[null,"#200"]
[null,"#201"]
[null,"#202"]
[null,"#203"]
[null,"#204"]
[null,"#205"]
[null,"#206"]
[null,"#207"]
[null,"#208"]
[null,"#209"]
[null,"#210"]
[null,"#211"]
[null,"#212"]
[null,"#213"]
[null,"#214"]
[null,"#215"]
[null,"#216"]
[null,"#217"]
[null,"#218"]
[null,"#219"]
[null,"#220"]
[null,"#221"]
[null,"#222"]
[null,"#223"]
[null,"#224"]
[null,"#225"]
[null,"#226"]
[null,"#227"]
[null,"#228"]
[null,"#229"]
[null,"#230"]
[null,"#231"]
[null,"#232"]
[null,"#233"]
[null,"#234"]
[null,"#235"]
[null,"#236"]
[null,"#237"]
[null,"#238"]
[null,"#239"]
[null,"#240"]
[null,"#241"]
[null,"#242"]
[null,"#243"]
[null,"#244"]
[null,"#245"]
[null,"#246"]
[null,"#247"]
[null,"#248"]
[null,"#249"]
[null,"#250"]
[null,"#251"]
[null,"#252"]
[null,"#253"]
[null,"#254"]
[null,"#255"]
[null,"#256"]
[null,"#257"]
[null,"#258"]
[null,"#259"]
[null,"#260"]
[null,"#261"]
[null,"#262"]
[null,"#263"]
[null,"#264"]
[null,"#265"]
[null,"#266"]
[null,"#267"]
[null,"#268"]
[null,"#269"]
[null,"#270"]
[null,"#271"]
[null,"#272"]
[null,"#273"]
[null,"#274"]
[null,"#275"]
[null,"#276"]
[null,"#277"]
[null,"#278"]
[null,"#279"]
[null,"#280"]
[null,"#281"]
[null,"#282"]
[null,"#283"]
[null,"#284"]
[null,"#285"]
[null,"#286"]
[null,"#287"]
[null,"#288"]
[null,"#289"]
[null,"#290"]
[null,"#291"]
[null,"#292"]
[null,"#293"]
[null,"#294"]
[null,"#295"]
[null,"#296"]
[null,"#297"]
[null,"#298"]
[null,"#299"]
[null,"#300"]
[null,"#301"]
[null,"#302"]
[null,"#303"]
[null,"#304"]
[null,"#305"]
[null,"#306"]
[null,"#307"]
[null,"#308"]
[null,"#309"]
[null,"#310"]
[null,"#311"]
[null,"#312"]
[null,"#313"]
[null,"#314"]
[null,"#315"]
[null,"#316"]
[null,"#317"]
[null,"#318"]
[null,"#319"]
[null,"#320"]
[null,"#321"]
[null,"#322"]
[null,"#323"]
[null,"#324"]
[null,"#325"]
[null,"#326"]
[null,"#327"]
[null,"#328"]
[null,"#329"]
[null,"#330"]
[null,"#331"]
[null,"#332"]
[null,"#333"]
[null,"#334"]
[null,"#335"]
[null,"#336"]
[null,"#337"]
[null,"#338"]
[null,"#339"]
[null,"#340"]
[null,"#341"]
[null,"#342"]
[null,"#343"]
[null,"#344"]
[null,"#345"]
[null,"#346"]
[null,"#347"]
[null,"#348"]
[null,"#349"]
[null,"#350"]
[null,"#351"]
[null,"#352"]
[null,"#353"]
[null,"#354"]
[null,"#355"]
[null,"#356"]
[null,"#357"]
[null,"#358"]
[null,"#359"]
[null,"#360"]
[null,"#361"]
[null,"#362"]
[null,"#363"]
[null,"#364"]
[null,"#365"]
[null,"#366"]
[null,"#367"]
[null,"#368"]
[null,"#369"]
[null,"#370"]
[null,"#371"]
[null,"#372"]
[null,"#373"]
[null,"#374"]
[null,"#375"]
[null,"#376"]
[null,"#377"]
[null,"#378"]
[null,"#379"]
[null,"#380"]
[null,"#381"]
[null,"#382"]
[null,"#383"]
[null,"#384"]
[null,"#385"]
[null,"#386"]
[null,"#387"]
[null,"#388"]
[null,"#389"]
[null,"#390"]
[null,"#391"]
[null,"#392"]
[null,"#393"]
[null,"#394"]
[null,"#395"]
[null,"#396"]
[null,"#397"]
[null,"#398"]
[null,"#399"]
[null,"#400"]
[null,"#401"]
[null,"#402"]
[null,"#403"]
[null,"#404"]
[null,"#405"]
[null,"#406"]
[null,"#407"]
[null,"#408"]
[null,"#409"]
[null,"#410"]
[null,"#411"]
[null,"#412"]
[null,"#413"]
[null,"#414"]
[null,"#415"]
[null,"#416"]
[null,"#417"]
[null,"#418"]
[null,"#419"]
[null,"#420"]
[null,"#421"]
[null,"#422"]
[null,"#423"]
[null,"#424"]
[null,"#425"]
[null,"#426"]
[null,"#427"]
[null,"#428"]
[null,"#429"]
[null,"#430"]
[null,"#431"]
[null,"#432"]
[null,"#433"]
[null,"#434"]
[null,"#435"]
[null,"#436"]
[null,"#437"]
[null,"#438"]
[null,"#439"]
[null,"#440"]
[null,"#441"]
[null,"#442"]
[null,"#443"]
[null,"#444"]
[null,"#445"]
[null,"#446"]
[null,"#447"]
[null,"#448"]
[null,"#449"]
[null,"#450"]
[null,"#451"]
[null,"#452"]
[null,"#453"]
[null,"#454"]
[null,"#455"]
[null,"#456"]
[null,"#457"]
[null,"#458"]
[null,"#459"]
[null,"#460"]
[null,"#461"]
[null,"#462"]
[null,"#463"]
[null,"#464"]
[null,"#465"]
[null,"#466"]
[null,"#467"]
[null,"#468"]
[null,"#469"]
[null,"#470"]
[null,"#471"]
[null,"#472"]
[null,"#473"]
[null,"#474"]
[null,"#475"]
[null,"#476"]
[null,"#477"]
[null,"#478"]
[null,"#479"]
[null,"#480"]
[null,"#481"]
[null,"#482"]
[null,"#483"]
[null,"#484"]
[null,"#485"]
[null,"#486"]
[null,"#487"]
[null,"#488"]
[null,"#489"]
[null,"#490"]
[null,"#491"]
[null,"#492"]
[null,"#493"]
[null,"#494"]
[null,"#495"]
[null,"#496"]
[null,"#497"]
[null,"#498"]
[null,"#499"]
[null,"#500"]
[null,"#501"]
[null,"#502"]
[null,"#503"]
[null,"#504"]
[null,"#505"]
[null,"#506"]
[null,"#507"]
[null,"#508"]
[null,"#509"]
[null,"#510"]
[null,"#511"]
[null,"#512"]
[null,"#513"]
[null,"#514"]
[null,"#515"]
[null,"#516"]
[null,"#517"]
[null,"#518"]
[null,"#519"]
[null,"#520"]
[null,"#521"]
[null,"#522"]
[null,"#523"]
[null,"#524"]
[null,"#525"]
[null,"#526"]
[null,"#527"]
[null,"#528"]
[null,"#529"]
[null,"#530"]
[null,"#531"]
[null,"#532"]
[null,"#533"]
[null,"#534"]
[null,"#535"]
[null,"#536"]
[null,"#537"]
[null,"#538"]
[null,"#539"]
[null,"#540"]
[null,"#541"]
[null,"#542"]
[null,"#543"]
[null,"#544"]
[null,"#545"]
[null,"#546"]
[null,"#547"]
[null,"#548"]
[null,"#549"]
[null,"#550"]
[null,"#551"]
[null,"#552"]
[null,"#553"]
[null,"#554"]
[null,"#555"]
[null,"#556"]
[null,"#557"]
[null,"#558"]
[null,"#559"]
[null,"#560"]
[null,"#561"]
[null,"#562"]
[null,"#563"]
[null,"#564"]
[null,"#565"]
[null,"#566"]
[null,"#567"]
[null,"#568"]
[null,"#569"]
[null,"#570"]
[null,"#571"]
[null,"#572"]
[null,"#573"]
[null,"#574"]
[null,"#575"]
[null,"#576"]
[null,"#577"]
[null,"#578"]
[null,"#579"]
[null,"#580"]
[null,"#581"]
[null,"#582"]
[null,"#583"]
[null,"#584"]
[null,"#585"]
[null,"#586"]
[null,"#587"]
[null,"#588"]
[null,"#589"]
[null,"#590"]
[null,"#591"]
[null,"#592"]
[null,"#593"]
[null,"#594"]
[null,"#595"]
[null,"#596"]
[null,"#597"]
[null,"#598"]
[null,"#599"]
[null,"#600"]
[null,"#601"]
[null,"#602"]
[null,"#603"]
[null,"#604"]
[null,"#605"]
[null,"#606"]
[null,"#607"]
[null,"#608"]
[null,"#609"]
[null,"#610"]
[null,"#611"]
[null,"#612"]
[null,"#613"]
[null,"#614"]
[null,"#615"]
[null,"#616"]
[null,"#617"]
[null,"#618"]
[null,"#619"]
[null,"#620"]
[null,"#621"]
[null,"#622"]
[null,"#623"]
[null,"#624"]
[null,"#625"]
[null,"#626"]
[null,"#627"]
[null,"#628"]
[null,"#629"]
[null,"#630"]
[null,"#631"]
[null,"#632"]
[null,"#633"]
[null,"#634"]
[null,"#635"]
[null,"#636"]
[null,"#637"]
[null,"#638"]
[null,"#639"]
[null,"#640"]
[null,"#641"]
[null,"#642"]
[null,"#643"]
[null,"#644"]
[null,"#645"]
[null,"#646"]
[null,"#647"]
[null,"#648"]
[null,"#649"]
[null,"#650"]
[null,"#651"]
[null,"#652"]
[null,"#653"]
[null,"#654"]
[null,"#655"]
[null,"#656"]
[null,"#657"]
[null,"#658"]
[null,"#659"]
[null,"#660"]
[null,"#661"]
[null,"#662"]
[null,"#663"]
[null,"#664"]
[null,"#665"]
[null,"#666"]
[null,"#667"]
[null,"#668"]
[null,"#669"]
[null,"#670"]
[null,"#671"]
[null,"#672"]
[null,"#673"]
[null,"#674"]
[null,"#675"]
[null,"#676"]
[null,"#677"]
[null,"#678"]
[null,"#679"]
[null,"#680"]
[null,"#681"]
[null,"#682"]
[null,"#683"]
[null,"#684"]
[null,"#685"]
[null,"#686"]
[null,"#687"]
[null,"#688"]
[null,"#689"]
[null,"#690"]
[null,"#691"]
[null,"#692"]
[null,"#693"]
[null,"#694"]
[null,"#695"]
[null,"#696"]
[null,"#697"]
[null,"#698"]
[null,"#699"]
[null,"#700"]
[null,"#701"]
[null,"#702"]
[null,"#703"]
[null,"#704"]
[null,"#705"]
[null,"#706"]
[null,"#707"]
[null,"#708"]
[null,"#709"]
[null,"#710"]
[null,"#711"]
[null,"#712"]
[null,"#713"]
[null,"#714"]
[null,"#715"]
[null,"#716"]
[null,"#717"]
[null,"#718"]
[null,"#719"]
[null,"#720"]
[null,"#721"]
[null,"#722"]
[null,"#723"]
[null,"#724"]
[null,"#725"]
[null,"#726"]
[null,"#727"]
[null,"#728"]
[null,"#729"]
[null,"#730"]
[null,"#731"]
[null,"#732"]
[null,"#733"]
[null,"#734"]
[null,"#735"]
[null,"#736"]
[null,"#737"]
[null,"#738"]
[null,"#739"]
[null,"#740"]
[null,"#741"]
[null,"#742"]
[null,"#743"]
[null,"#744"]
[null,"#745"]
[null,"#746"]
[null,"#747"]
[null,"#748"]
[null,"#749"]
[null,"#750"]
[null,"#751"]
[null,"#752"]
[null,"#753"]
[null,"#754"]
[null,"#755"]
[null,"#756"]
[null,"#757"]
[null,"#758"]
[null,"#759"]
[null,"#760"]
[null,"#761"]
[null,"#762"]
[null,"#763"]
[null,"#764"]
[null,"#765"]
[null,"#766"]
[null,"#767"]
[null,"#768"]
[null,"#769"]
[null,"#770"]
[null,"#771"]
[null,"#772"]
[null,"#773"]
[null,"#774"]
[null,"#775"]
[null,"#776"]
[null,"#777"]
[null,"#778"]
[null,"#779"]
[null,"#780"]
[null,"#781"]
[null,"#782"]
[null,"#783"]
[null,"#784"]
[null,"#785"]
[null,"#786"]
[null,"#787"]
[null,"#788"]
[null,"#789"]
[null,"#790"]
[null,"#791"]
[null,"#792"]
[null,"#793"]
[null,"#794"]
[null,"#795"]
[null,"#796"]
[null,"#797"]
[null,"#798"]
[null,"#799"]
[null,"#800"]
[null,"#801"]
[null,"#802"]
[null,"#803"]
[null,"#804"]
[null,"#805"]
[null,"#806"]
[null,"#807"]
[null,"#808"]
[null,"#809"]
[null,"#810"]
[null,"#811"]
[null,"#812"]
[null,"#813"]
[null,"#814"]
[null,"#815"]
[null,"#816"]
[null,"#817"]
[null,"#818"]
[null,"#819"]
[null,"#820"]
[null,"#821"]
[null,"#822"]
[null,"#823"]
[null,"#824"]
[null,"#825"]
[null,"#826"]
[null,"#827"]
[null,"#828"]
[null,"#829"]
[null,"#830"]
[null,"#831"]
[null,"#832"]
[null,"#833"]
[null,"#834"]
[null,"#835"]
[null,"#836"]
[null,"#837"]
[null,"#838"]
[null,"#839"]
[null,"#840"]
[null,"#841"]
[null,"#842"]
[null,"#843"]
[null,"#844"]
[null,"#845"]
[null,"#846"]
[null,"#847"]
[null,"#848"]
[null,"#849"]
[null,"#850"]
[null,"#851"]
[null,"#852"]
[null,"#853"]
[null,"#854"]
[null,"#855"]
[null,"#856"]
[null,"#857"]
[null,"#858"]
[null,"#859"]
[null,"#860"]
[null,"#861"]
[null,"#862"]
[null,"#863"]
[null,"#864"]
[null,"#865"]
[null,"#866"]
[null,"#867"]
[null,"#868"]
[null,"#869"]
[null,"#870"]
[null,"#871"]
[null,"#872"]
[null,"#873"]
[null,"#874"]
[null,"#875"]
[null,"#876"]
[null,"#877"]
[null,"#878"]
[null,"#879"]
[null,"#880"]
[null,"#881"]
[null,"#882"]
[null,"#883"]
[null,"#884"]
[null,"#885"]
[null,"#886"]
[null,"#887"]
[null,"#888"]
[null,"#889"]
[null,"#890"]
[null,"#891"]
[null,"#892"]
[null,"#893"]
[null,"#894"]
[null,"#895"]
[null,"#896"]
[null,"#897"]
[null,"#898"]
[null,"#899"]
[null,"#900"]
[null,"#901"]
[null,"#902"]
[null,"#903"]
[null,"#904"]
[null,"#905"]
[null,"#906"]
[null,"#907"]
[null,"#908"]
[null,"#909"]
[null,"#910"]
[null,"#911"]
[null,"#912"]
[null,"#913"]
[null,"#914"]
[null,"#915"]
[null,"#916"]
[null,"#917"]
[null,"#918"]
[null,"#919"]
[null,"#920"]
[null,"#921"]
[null,"#922"]
[null,"#923"]
[null,"#924"]
[null,"#925"]
[null,"#926"]
[null,"#927"]
[null,"#928"]
[null,"#929"]
[null,"#930"]
[null,"#931"]
[null,"#932"]
[null,"#933"]
[null,"#934"]
[null,"#935"]
[null,"#936"]
[null,"#937"]
[null,"#938"]
[null,"#939"]
[null,"#940"]
[null,"#941"]
[null,"#942"]
[null,"#943"]
[null,"#944"]
[null,"#945"]
[null,"#946"]
[null,"#947"]
[null,"#948"]
[null,"#949"]
[null,"#950"]
[null,"#951"]
[null,"#952"]
[null,"#953"]
[null,"#954"]
[null,"#955"]
[null,"#956"]
[null,"#957"]
[null,"#958"]
[null,"#959"]
[null,"#960"]
[null,"#961"]
[null,"#962"]
[null,"#963"]
[null,"#964"]
[null,"#965"]
[null,"#966"]
[null,"#967"]
[null,"#968"]
[null,"#969"]
[null,"#970"]
[null,"#971"]
[null,"#972"]
[null,"#973"]
[null,"#974"]
[null,"#975"]
[null,"#976"]
[null,"#977"]
[null,"#978"]
[null,"#979"]
[null,"#980"]
[null,"#981"]
[null,"#982"]
[null,"#983"]
[null,"#984"]
[null,"#985"]
[null,"#986"]
[null,"#987"]
[null,"#988"]
[null,"#989"]
[null,"#990"]
[null,"#991"]
[null,"#992"]
[null,"#993"]
[null,"#994"]
[null,"#995"]
[null,"#996"]
[null,"#997"]
[null,"#998"]
[null,"#999"]
[null,"#1000"]
[]
[null,"AVIE / CAPI","Euro - UC","2031-12-31",{"$nulls":19},"Obligation","Dette Privée","Action","Private Equity","Obligation CT"]
[null,"ID","AGE","SOUSCRIPTION_YR","SEXE","PDT","CHGT_GEST_EURO_PC","CHGT_GEST_UC_PC","COMM_DIST_EURO_PC","COMM_DIST_UC_PC","CLAUSE_PB_PC","TMG_PC","NO_POLS","PM_EURO","PM_UC_TOT","PM_UC_1","PM_UC_2","PM_UC_3","PM_UC_4","PM_UC_5",null,"Pondération","%Euro","%UC1","%UC2","%UC3","%UC4","%UC5"]
[null,"#1",18,2026,"H","A_VIE",{"$f":"frais_gestion_Euro*100","v":{"v":0.44999999999999996,"d":"0.45"}},{"$f":"frais_gestion_UC*100","v":{"v":0.38999999999999996,"d":"0.39"}},{"$f":"frais_distribution_FG*100","v":0.6},{"$f":"frais_distribution_UC*100","v":0.6},85,0,{"$f":"ROUND(Primes!$Q$4*V8114,0)","v":11},{"$f":"'BP Financier'!$G$33*(('BP Financier'!$C$16+'BP Financier'!$D$16+'BP Financier'!$E$16+'BP Financier'!$F$16+'BP Financier'!$G$16)/('BP Financier'!$C$16+'BP Financier'!$C$19+'BP Financier'!$D$16+'BP Financier'!$D$19+'BP Financier'!$E$16+'BP Financier'!$E$19+'BP Financier'!$F$16+'BP Financier'!$F$19+'BP Financier'!$G$19+'BP Financier'!$G$16))*V8114","v":{"v":570278.6743187835,"d":"570,279"}},{"$f":"SUM(P8114:T8114)","v":{"v":327302.6120010531,"d":"327,303"}},{"$f":"'BP Financier'!$G$44*(('BP Financier'!$C$16+'BP Financier'!$D$16+'BP Financier'!$E$16+'BP Financier'!$F$16+'BP Financier'!$G$16)/('BP Financier'!$C$16+'BP Financier'!$C$19+'BP Financier'!$D$16+'BP Financier'!$D$19+'BP Financier'!$E$16+'BP Financier'!$E$19+'BP Financier'!$C$22+'BP Financier'!$D$22+'BP Financier'!$E$22+'BP Financier'!$F$16+'BP Financier'!$F$19+'BP Financier'!$F$22+'BP Financier'!$G$16+'BP Financier'!$G$19+'BP Financier'!$G$22))*$V8114*X8114/(1-$W8114)","v":{"v":41660.880993101695,"d":"41,661"}},{"$f":"'BP Financier'!$G$44*(('BP Financier'!$C$16+'BP Financier'!$D$16+'BP Financier'!$E$16+'BP Financier'!$F$16+'BP Financier'!$G$16)/('BP Financier'!$C$16+'BP Financier'!$C$19+'BP Financier'!$D$16+'BP Financier'!$D$19+'BP Financier'!$E$16+'BP Financier'!$E$19+'BP Financier'!$C$22+'BP Financier'!$D$22+'BP Financier'!$E$22+'BP Financier'!$F$16+'BP Financier'!$F$19+'BP Financier'!$F$22+'BP Financier'!$G$16+'BP Financier'!$G$19+'BP Financier'!$G$22))*$V8114*Y8114/(1-$W8114)","v":{"v":27850.644199808314,"d":"27,851"}},{"$f":"'BP Financier'!$G$44*(('BP Financier'!$C$16+'BP Financier'!$D$16+'BP Financier'!$E$16+'BP Financier'!$F$16+'BP Financier'!$G$16)/('BP Financier'!$C$16+'BP Financier'!$C$19+'BP Financier'!$D$16+'BP Financier'!$D$19+'BP Financier'!$E$16+'BP Financier'!$E$19+'BP Financier'!$C$22+'BP Financier'!$D$22+'BP Financier'!$E$22+'BP Financier'!$F$16+'BP Financier'!$F$19+'BP Financier'!$F$22+'BP Financier'!$G$16+'BP Financier'!$G$19+'BP Financier'!$G$22))*$V8114*Z8114/(1-$W8114)","v":{"v":217971.57072081385,"d":"217,972"}},{"$f":"'BP Financier'!$G$44*(('BP Financier'!$C$16+'BP Financier'!$D$16+'BP Financier'!$E$16+'BP Financier'!$F$16+'BP Financier'!$G$16)/('BP Financier'!$C$16+'BP Financier'!$C$19+'BP Financier'!$D$16+'BP Financier'!$D$19+'BP Financier'!$E$16+'BP Financier'!$E$19+'BP Financier'!$C$22+'BP Financier'!$D$22+'BP Financier'!$E$22+'BP Financier'!$F$16+'BP Financier'!$F$19+'BP Financier'!$F$22+'BP Financier'!$G$16+'BP Financier'!$G$19+'BP Financier'!$G$22))*$V8114*AA8114/(1-$W8114)","v":{"v":26929.96174692209,"d":"26,930"}},{"$f":"'BP Financier'!$G$44*(('BP Financier'!$C$16+'BP Financier'!$D$16+'BP Financier'!$E$16+'BP Financier'!$F$16+'BP Financier'!$G$16)/('BP Financier'!$C$16+'BP Financier'!$C$19+'BP Financier'!$D$16+'BP Financier'!$D$19+'BP Financier'!$E$16+'BP Financier'!$E$19+'BP Financier'!$C$22+'BP Financier'!$D$22+'BP Financier'!$E$22+'BP Financier'!$F$16+'BP Financier'!$F$19+'BP Financier'!$F$22+'BP Financier'!$G$16+'BP Financier'!$G$19+'BP Financier'!$G$22))*$V8114*AB8114/(1-$W8114)","v":{"v":12889.554340407152,"d":"12,890"}},null,{"v":1E-3,"d":"0.10%"},{"$f":"Actif!$E$28/100","v":{"v":0.28900000000000003,"d":"28.90%"}},{"$f":"Actif!$E$30/100","v":{"v":0.09050000000000001,"d":"9.05%"}},{"$f":"Actif!$E$31/100","v":{"v":0.0605,"d":"6.05%"}},{"$f":"Actif!$E$32/100","v":{"v":0.47350000000000003,"d":"47.35%"}},{"$f":"Actif!$E$33/100","v":{"v":0.0585,"d":"5.85%"}},{"$f":"Actif!$E$29/100","v":{"v":0.027999999999999997,"d":"2.80%"}}]
[null,"#2",18,2028,"H","A_VIE",{"v":0.44999999999999996,"d":"0.45"},{"v":0.38999999999999996,"d":"0.39"},0.6,0.6,85,0,{"$f":"ROUND(Primes!$Q$4*V8115,0)","v":11},{"$f":"'BP Financier'!$G$33*(('BP Financier'!$C$16+'BP Financier'!$D$16+'BP Financier'!$E$16+'BP Financier'!$F$16+'BP Financier'!$G$16)/('BP Financier'!$C$16+'BP Financier'!$C$19+'BP Financier'!$D$16+'BP Financier'!$D$19+'BP Financier'!$E$16+'BP Financier'!$E$19+'BP Financier'!$F$16+'BP Financier'!$F$19+'BP Financier'!$G$19+'BP Financier'!$G$16))*V8115","v":{"v":570278.6743187835,"d":"570,279"}},{"$f":"SUM(P8115:T8115)","v":{"v":327302.6120010531,"d":"327,303"}},{"$f":"'BP Financier'!$G$44*(('BP Financier'!$C$16+'BP Financier'!$D$16+'BP Financier'!$E$16+'BP Financier'!$F$16+'BP Financier'!$G$16)/('BP Financier'!$C$16+'BP Financier'!$C$19+'BP Financier'!$D$16+'BP Financier'!$D$19+'BP Financier'!$E$16+'BP Financier'!$E$19+'BP Financier'!$C$22+'BP Financier'!$D$22+'BP Financier'!$E$22+'BP Financier'!$F$16+'BP Financier'!$F$19+'BP Financier'!$F$22+'BP Financier'!$G$16+'BP Financier'!$G$19+'BP Financier'!$G$22))*$V8115*X8115/(1-$W8115)","v":{"v":41660.880993101695,"d":"41,661"}},{"$f":"'BP Financier'!$G$44*(('BP Financier'!$C$16+'BP Financier'!$D$16+'BP Financier'!$E$16+'BP Financier'!$F$16+'BP Financier'!$G$16)/('BP Financier'!$C$16+'BP Financier'!$C$19+'BP Financier'!$D$16+'BP Financier'!$D$19+'BP Financier'!$E$16+'BP Financier'!$E$19+'BP Financier'!$C$22+'BP Financier'!$D$22+'BP Financier'!$E$22+'BP Financier'!$F$16+'BP Financier'!$F$19+'BP Financier'!$F$22+'BP Financier'!$G$16+'BP Financier'!$G$19+'BP Financier'!$G$22))*$V8115*Y8115/(1-$W8115)","v":{"v":27850.644199808314,"d":"27,851"}},{"$f":"'BP Financier'!$G$44*(('BP Financier'!$C$16+'BP Financier'!$D$16+'BP Financier'!$E$16+'BP Financier'!$F$16+'BP Financier'!$G$16)/('BP Financier'!$C$16+'BP Financier'!$C$19+'BP Financier'!$D$16+'BP Financier'!$D$19+'BP Financier'!$E$16+'BP Financier'!$E$19+'BP Financier'!$C$22+'BP Financier'!$D$22+'BP Financier'!$E$22+'BP Financier'!$F$16+'BP Financier'!$F$19+'BP Financier'!$F$22+'BP Financier'!$G$16+'BP Financier'!$G$19+'BP Financier'!$G$22))*$V8115*Z8115/(1-$W8115)","v":{"v":217971.57072081385,"d":"217,972"}},{"$f":"'BP Financier'!$G$44*(('BP Financier'!$C$16+'BP Financier'!$D$16+'BP Financier'!$E$16+'BP Financier'!$F$16+'BP Financier'!$G$16)/('BP Financier'!$C$16+'BP Financier'!$C$19+'BP Financier'!$D$16+'BP Financier'!$D$19+'BP Financier'!$E$16+'BP Financier'!$E$19+'BP Financier'!$C$22+'BP Financier'!$D$22+'BP Financier'!$E$22+'BP Financier'!$F$16+'BP Financier'!$F$19+'BP Financier'!$F$22+'BP Financier'!$G$16+'BP Financier'!$G$19+'BP Financier'!$G$22))*$V8115*AA8115/(1-$W8115)","v":{"v":26929.96174692209,"d":"26,930"}},{"$f":"'BP Financier'!$G$44*(('BP Financier'!$C$16+'BP Financier'!$D$16+'BP Financier'!$E$16+'BP Financier'!$F$16+'BP Financier'!$G$16)/('BP Financier'!$C$16+'BP Financier'!$C$19+'BP Financier'!$D$16+'BP Financier'!$D$19+'BP Financier'!$E$16+'BP Financier'!$E$19+'BP Financier'!$C$22+'BP Financier'!$D$22+'BP Financier'!$E$22+'BP Financier'!$F$16+'BP Financier'!$F$19+'BP Financier'!$F$22+'BP Financier'!$G$16+'BP Financier'!$G$19+'BP Financier'!$G$22))*$V8115*AB8115/(1-$W8115)","v":{"v":12889.554340407152,"d":"12,890"}},null,{"v":1E-3,"d":"0.10%"},{"$f":"Actif!$E$28/100","v":{"v":0.28900000000000003,"d":"28.90%"}},{"$f":"Actif!$E$30/100","v":{"v":0.09050000000000001,"d":"9.05%"}},{"$f":"Actif!$E$31/100","v":{"v":0.0605,"d":"6.05%"}},{"$f":"Actif!$E$32/100","v":{"v":0.47350000000000003,"d":"47.35%"}},{"$f":"Actif!$E$33/100","v":{"v":0.0585,"d":"5.85%"}},{"$f":"Actif!$E$29/100","v":{"v":0.027999999999999997,"d":"2.80%"}}]
[null,"#3",18,2029,"H","A_VIE",{"v":0.44999999999999996,"d":"0.45"},{"v":0.38999999999999996,"d":"0.39"},0.6,0.6,85,0,{"$f":"ROUND(Primes!$Q$4*V8116,0)","v":11},{"$f":"'BP Financier'!$G$33*(('BP Financier'!$C$16+'BP Financier'!$D$16+'BP Financier'!$E$16+'BP Financier'!$F$16+'BP Financier'!$G$16)/('BP Financier'!$C$16+'BP Financier'!$C$19+'BP Financier'!$D$16+'BP Financier'!$D$19+'BP Financier'!$E$16+'BP Financier'!$E$19+'BP Financier'!$F$16+'BP Financier'!$F$19+'BP Financier'!$G$19+'BP Financier'!$G$16))*V8116","v":{"v":570278.6743187835,"d":"570,279"}},{"v":327302.6120010531,"d":"327,303"},{"$f":"'BP Financier'!$G$44*(('BP Financier'!$C$16+'BP Financier'!$D$16+'BP Financier'!$E$16+'BP Financier'!$F$16+'BP Financier'!$G$16)/('BP Financier'!$C$16+'BP Financier'!$C$19+'BP Financier'!$D$16+'BP Financier'!$D$19+'BP Financier'!$E$16+'BP Financier'!$E$19+'BP Financier'!$C$22+'BP Financier'!$D$22+'BP Financier'!$E$22+'BP Financier'!$F$16+'BP Financier'!$F$19+'BP Financier'!$F$22+'BP Financier'!$G$16+'BP Financier'!$G$19+'BP Financier'!$G$22))*$V8116*X8116/(1-$W8116)","v":{"v":41660.880993101695,"d":"41,661"}},{"$f":"'BP Financier'!$G$44*(('BP Financier'!$C$16+'BP Financier'!$D$16+'BP Financier'!$E$16+'BP Financier'!$F$16+'BP Financier'!$G$16)/('BP Financier'!$C$16+'BP Financier'!$C$19+'BP Financier'!$D$16+'BP Financier'!$D$19+'BP Financier'!$E$16+'BP Financier'!$E$19+'BP Financier'!$C$22+'BP Financier'!$D$22+'BP Financier'!$E$22+'BP Financier'!$F$16+'BP Financier'!$F$19+'BP Financier'!$F$22+'BP Financier'!$G$16+'BP Financier'!$G$19+'BP Financier'!$G$22))*$V8116*Y8116/(1-$W8116)","v":{"v":27850.644199808314,"d":"27,851"}},{"$f":"'BP Financier'!$G$44*(('BP Financier'!$C$16+'BP Financier'!$D$16+'BP Financier'!$E$16+'BP Financier'!$F$16+'BP Financier'!$G$16)/('BP Financier'!$C$16+'BP Financier'!$C$19+'BP Financier'!$D$16+'BP Financier'!$D$19+'BP Financier'!$E$16+'BP Financier'!$E$19+'BP Financier'!$C$22+'BP Financier'!$D$22+'BP Financier'!$E$22+'BP Financier'!$F$16+'BP Financier'!$F$19+'BP Financier'!$F$22+'BP Financier'!$G$16+'BP Financier'!$G$19+'BP Financier'!$G$22))*$V8116*Z8116/(1-$W8116)","v":{"v":217971.57072081385,"d":"217,972"}},{"$f":"'BP Financier'!$G$44*(('BP Financier'!$C$16+'BP Financier'!$D$16+'BP Financier'!$E$16+'BP Financier'!$F$16+'BP Financier'!$G$16)/('BP Financier'!$C$16+'BP Financier'!$C$19+'BP Financier'!$D$16+'BP Financier'!$D$19+'BP Financier'!$E$16+'BP Financier'!$E$19+'BP Financier'!$C$22+'BP Financier'!$D$22+'BP Financier'!$E$22+'BP Financier'!$F$16+'BP Financier'!$F$19+'BP Financier'!$F$22+'BP Financier'!$G$16+'BP Financier'!$G$19+'BP Financier'!$G$22))*$V8116*AA8116/(1-$W8116)","v":{"v":26929.96174692209,"d":"26,930"}},{"$f":"'BP Financier'!$G$44*(('BP Financier'!$C$16+'BP Financier'!$D$16+'BP Financier'!$E$16+'BP Financier'!$F$16+'BP Financier'!$G$16)/('BP Financier'!$C$16+'BP Financier'!$C$19+'BP Financier'!$D$16+'BP Financier'!$D$19+'BP Financier'!$E$16+'BP Financier'!$E$19+'BP Financier'!$C$22+'BP Financier'!$D$22+'BP Financier'!$E$22+'BP Financier'!$F$16+'BP Financier'!$F$19+'BP Financier'!$F$22+'BP Financier'!$G$16+'BP Financier'!$G$19+'BP Financier'!$G$22))*$V8116*AB8116/(1-$W8116)","v":{"v":12889.554340407152,"d":"12,890"}},null,{"v":1E-3,"d":"0.10%"},{"$f":"Actif!$E$28/100","v":{"v":0.28900000000000003,"d":"28.90%"}},{"$f":"Actif!$E$30/100","v":{"v":0.09050000000000001,"d":"9.05%"}},{"$f":"Actif!$E$31/100","v":{"v":0.0605,"d":"6.05%"}},{"$f":"Actif!$E$32/100","v":{"v":0.47350000000000003,"d":"47.35%"}},{"$f":"Actif!$E$33/100","v":{"v":0.0585,"d":"5.85%"}},{"$f":"Actif!$E$29/100","v":{"v":0.027999999999999997,"d":"2.80%"}}]
[null,"#4",18,2030,"H","A_VIE",{"v":0.44999999999999996,"d":"0.45"},{"v":0.38999999999999996,"d":"0.39"},0.6,0.6,85,0,{"$f":"ROUND(Primes!$Q$4*V8117,0)","v":11},{"$f":"'BP Financier'!$G$33*(('BP Financier'!$C$16+'BP Financier'!$D$16+'BP Financier'!$E$16+'BP Financier'!$F$16+'BP Financier'!$G$16)/('BP Financier'!$C$16+'BP Financier'!$C$19+'BP Financier'!$D$16+'BP Financier'!$D$19+'BP Financier'!$E$16+'BP Financier'!$E$19+'BP Financier'!$F$16+'BP Financier'!$F$19+'BP Financier'!$G$19+'BP Financier'!$G$16))*V8117","v":{"v":570278.6743187835,"d":"570,279"}},{"v":327302.6120010531,"d":"327,303"},{"$f":"'BP Financier'!$G$44*(('BP Financier'!$C$16+'BP Financier'!$D$16+'BP Financier'!$E$16+'BP Financier'!$F$16+'BP Financier'!$G$16)/('BP Financier'!$C$16+'BP Financier'!$C$19+'BP Financier'!$D$16+'BP Financier'!$D$19+'BP Financier'!$E$16+'BP Financier'!$E$19+'BP Financier'!$C$22+'BP Financier'!$D$22+'BP Financier'!$E$22+'BP Financier'!$F$16+'BP Financier'!$F$19+'BP Financier'!$F$22+'BP Financier'!$G$16+'BP Financier'!$G$19+'BP Financier'!$G$22))*$V8117*X8117/(1-$W8117)","v":{"v":41660.880993101695,"d":"41,661"}},{"$f":"'BP Financier'!$G$44*(('BP Financier'!$C$16+'BP Financier'!$D$16+'BP Financier'!$E$16+'BP Financier'!$F$16+'BP Financier'!$G$16)/('BP Financier'!$C$16+'BP Financier'!$C$19+'BP Financier'!$D$16+'BP Financier'!$D$19+'BP Financier'!$E$16+'BP Financier'!$E$19+'BP Financier'!$C$22+'BP Financier'!$D$22+'BP Financier'!$E$22+'BP Financier'!$F$16+'BP Financier'!$F$19+'BP Financier'!$F$22+'BP Financier'!$G$16+'BP Financier'!$G$19+'BP Financier'!$G$22))*$V8117*Y8117/(1-$W8117)","v":{"v":27850.644199808314,"d":"27,851"}},{"$f":"'BP Financier'!$G$44*(('BP Financier'!$C$16+'BP Financier'!$D$16+'BP Financier'!$E$16+'BP Financier'!$F$16+'BP Financier'!$G$16)/('BP Financier'!$C$16+'BP Financier'!$C$19+'BP Financier'!$D$16+'BP Financier'!$D$19+'BP Financier'!$E$16+'BP Financier'!$E$19+'BP Financier'!$C$22+'BP Financier'!$D$22+'BP Financier'!$E$22+'BP Financier'!$F$16+'BP Financier'!$F$19+'BP Financier'!$F$22+'BP Financier'!$G$16+'BP Financier'!$G$19+'BP Financier'!$G$22))*$V8117*Z8117/(1-$W8117)","v":{"v":217971.57072081385,"d":"217,972"}},{"$f":"'BP Financier'!$G$44*(('BP Financier'!$C$16+'BP Financier'!$D$16+'BP Financier'!$E$16+'BP Financier'!$F$16+'BP Financier'!$G$16)/('BP Financier'!$C$16+'BP Financier'!$C$19+'BP Financier'!$D$16+'BP Financier'!$D$19+'BP Financier'!$E$16+'BP Financier'!$E$19+'BP Financier'!$C$22+'BP Financier'!$D$22+'BP Financier'!$E$22+'BP Financier'!$F$16+'BP Financier'!$F$19+'BP Financier'!$F$22+'BP Financier'!$G$16+'BP Financier'!$G$19+'BP Financier'!$G$22))*$V8117*AA8117/(1-$W8117)","v":{"v":26929.96174692209,"d":"26,930"}},{"$f":"'BP Financier'!$G$44*(('BP Financier'!$C$16+'BP Financier'!$D$16+'BP Financier'!$E$16+'BP Financier'!$F$16+'BP Financier'!$G$16)/('BP Financier'!$C$16+'BP Financier'!$C$19+'BP Financier'!$D$16+'BP Financier'!$D$19+'BP Financier'!$E$16+'BP Financier'!$E$19+'BP Financier'!$C$22+'BP Financier'!$D$22+'BP Financier'!$E$22+'BP Financier'!$F$16+'BP Financier'!$F$19+'BP Financier'!$F$22+'BP Financier'!$G$16+'BP Financier'!$G$19+'BP Financier'!$G$22))*$V8117*AB8117/(1-$W8117)","v":{"v":12889.554340407152,"d":"12,890"}},null,{"v":1E-3,"d":"0.10%"},{"$f":"Actif!$E$28/100","v":{"v":0.28900000000000003,"d":"28.90%"}},{"$f":"Actif!$E$30/100","v":{"v":0.09050000000000001,"d":"9.05%"}},{"$f":"Actif!$E$31/100","v":{"v":0.0605,"d":"6.05%"}},{"$f":"Actif!$E$32/100","v":{"v":0.47350000000000003,"d":"47.35%"}},{"$f":"Actif!$E$33/100","v":{"v":0.0585,"d":"5.85%"}},{"$f":"Actif!$E$29/100","v":{"v":0.027999999999999997,"d":"2.80%"}}]
[null,"#5",18,2031,"H","A_VIE",{"v":0.44999999999999996,"d":"0.45"},{"v":0.38999999999999996,"d":"0.39"},0.6,0.6,85,0,{"$f":"ROUND(Primes!$Q$4*V8118,0)","v":11},{"$f":"'BP Financier'!$G$33*(('BP Financier'!$C$16+'BP Financier'!$D$16+'BP Financier'!$E$16+'BP Financier'!$F$16+'BP Financier'!$G$16)/('BP Financier'!$C$16+'BP Financier'!$C$19+'BP Financier'!$D$16+'BP Financier'!$D$19+'BP Financier'!$E$16+'BP Financier'!$E$19+'BP Financier'!$F$16+'BP Financier'!$F$19+'BP Financier'!$G$19+'BP Financier'!$G$16))*V8118","v":{"v":570278.6743187835,"d":"570,279"}},{"v":327302.6120010531,"d":"327,303"},{"$f":"'BP Financier'!$G$44*(('BP Financier'!$C$16+'BP Financier'!$D$16+'BP Financier'!$E$16+'BP Financier'!$F$16+'BP Financier'!$G$16)/('BP Financier'!$C$16+'BP Financier'!$C$19+'BP Financier'!$D$16+'BP Financier'!$D$19+'BP Financier'!$E$16+'BP Financier'!$E$19+'BP Financier'!$C$22+'BP Financier'!$D$22+'BP Financier'!$E$22+'BP Financier'!$F$16+'BP Financier'!$F$19+'BP Financier'!$F$22+'BP Financier'!$G$16+'BP Financier'!$G$19+'BP Financier'!$G$22))*$V8118*X8118/(1-$W8118)","v":{"v":41660.880993101695,"d":"41,661"}},{"$f":"'BP Financier'!$G$44*(('BP Financier'!$C$16+'BP Financier'!$D$16+'BP Financier'!$E$16+'BP Financier'!$F$16+'BP Financier'!$G$16)/('BP Financier'!$C$16+'BP Financier'!$C$19+'BP Financier'!$D$16+'BP Financier'!$D$19+'BP Financier'!$E$16+'BP Financier'!$E$19+'BP Financier'!$C$22+'BP Financier'!$D$22+'BP Financier'!$E$22+'BP Financier'!$F$16+'BP Financier'!$F$19+'BP Financier'!$F$22+'BP Financier'!$G$16+'BP Financier'!$G$19+'BP Financier'!$G$22))*$V8118*Y8118/(1-$W8118)","v":{"v":27850.644199808314,"d":"27,851"}},{"$f":"'BP Financier'!$G$44*(('BP Financier'!$C$16+'BP Financier'!$D$16+'BP Financier'!$E$16+'BP Financier'!$F$16+'BP Financier'!$G$16)/('BP Financier'!$C$16+'BP Financier'!$C$19+'BP Financier'!$D$16+'BP Financier'!$D$19+'BP Financier'!$E$16+'BP Financier'!$E$19+'BP Financier'!$C$22+'BP Financier'!$D$22+'BP Financier'!$E$22+'BP Financier'!$F$16+'BP Financier'!$F$19+'BP Financier'!$F$22+'BP Financier'!$G$16+'BP Financier'!$G$19+'BP Financier'!$G$22))*$V8118*Z8118/(1-$W8118)","v":{"v":217971.57072081385,"d":"217,972"}},{"$f":"'BP Financier'!$G$44*(('BP Financier'!$C$16+'BP Financier'!$D$16+'BP Financier'!$E$16+'BP Financier'!$F$16+'BP Financier'!$G$16)/('BP Financier'!$C$16+'BP Financier'!$C$19+'BP Financier'!$D$16+'BP Financier'!$D$19+'BP Financier'!$E$16+'BP Financier'!$E$19+'BP Financier'!$C$22+'BP Financier'!$D$22+'BP Financier'!$E$22+'BP Financier'!$F$16+'BP Financier'!$F$19+'BP Financier'!$F$22+'BP Financier'!$G$16+'BP Financier'!$G$19+'BP Financier'!$G$22))*$V8118*AA8118/(1-$W8118)","v":{"v":26929.96174692209,"d":"26,930"}},{"$f":"'BP Financier'!$G$44*(('BP Financier'!$C$16+'BP Financier'!$D$16+'BP Financier'!$E$16+'BP Financier'!$F$16+'BP Financier'!$G$16)/('BP Financier'!$C$16+'BP Financier'!$C$19+'BP Financier'!$D$16+'BP Financier'!$D$19+'BP Financier'!$E$16+'BP Financier'!$E$19+'BP Financier'!$C$22+'BP Financier'!$D$22+'BP Financier'!$E$22+'BP Financier'!$F$16+'BP Financier'!$F$19+'BP Financier'!$F$22+'BP Financier'!$G$16+'BP Financier'!$G$19+'BP Financier'!$G$22))*$V8118*AB8118/(1-$W8118)","v":{"v":12889.554340407152,"d":"12,890"}},null,{"v":1E-3,"d":"0.10%"},{"$f":"Actif!$E$28/100","v":{"v":0.28900000000000003,"d":"28.90%"}},{"$f":"Actif!$E$30/100","v":{"v":0.09050000000000001,"d":"9.05%"}},{"$f":"Actif!$E$31/100","v":{"v":0.0605,"d":"6.05%"}},{"$f":"Actif!$E$32/100","v":{"v":0.47350000000000003,"d":"47.35%"}},{"$f":"Actif!$E$33/100","v":{"v":0.0585,"d":"5.85%"}},{"$f":"Actif!$E$29/100","v":{"v":0.027999999999999997,"d":"2.80%"}}]
[null,"#6",19,2026,"H","A_VIE",{"v":0.44999999999999996,"d":"0.45"},{"v":0.38999999999999996,"d":"0.39"},0.6,0.6,85,0,{"$f":"ROUND(Primes!$Q$4*V8119,0)","v":11},{"$f":"'BP Financier'!$G$33*(('BP Financier'!$C$16+'BP Financier'!$D$16+'BP Financier'!$E$16+'BP Financier'!$F$16+'BP Financier'!$G$16)/('BP Financier'!$C$16+'BP Financier'!$C$19+'BP Financier'!$D$16+'BP Financier'!$D$19+'BP Financier'!$E$16+'BP Financier'!$E$19+'BP Financier'!$F$16+'BP Financier'!$F$19+'BP Financier'!$G$19+'BP Financier'!$G$16))*V8119","v":{"v":570278.6743187835,"d":"570,279"}},{"v":327302.6120010531,"d":"327,303"},{"$f":"'BP Financier'!$G$44*(('BP Financier'!$C$16+'BP Financier'!$D$16+'BP Financier'!$E$16+'BP Financier'!$F$16+'BP Financier'!$G$16)/('BP Financier'!$C$16+'BP Financier'!$C$19+'BP Financier'!$D$16+'BP Financier'!$D$19+'BP Financier'!$E$16+'BP Financier'!$E$19+'BP Financier'!$C$22+'BP Financier'!$D$22+'BP Financier'!$E$22+'BP Financier'!$F$16+'BP Financier'!$F$19+'BP Financier'!$F$22+'BP Financier'!$G$16+'BP Financier'!$G$19+'BP Financier'!$G$22))*$V8119*X8119/(1-$W8119)","v":{"v":41660.880993101695,"d":"41,661"}},{"$f":"'BP Financier'!$G$44*(('BP Financier'!$C$16+'BP Financier'!$D$16+'BP Financier'!$E$16+'BP Financier'!$F$16+'BP Financier'!$G$16)/('BP Financier'!$C$16+'BP Financier'!$C$19+'BP Financier'!$D$16+'BP Financier'!$D$19+'BP Financier'!$E$16+'BP Financier'!$E$19+'BP Financier'!$C$22+'BP Financier'!$D$22+'BP Financier'!$E$22+'BP Financier'!$F$16+'BP Financier'!$F$19+'BP Financier'!$F$22+'BP Financier'!$G$16+'BP Financier'!$G$19+'BP Financier'!$G$22))*$V8119*Y8119/(1-$W8119)","v":{"v":27850.644199808314,"d":"27,851"}},{"$f":"'BP Financier'!$G$44*(('BP Financier'!$C$16+'BP Financier'!$D$16+'BP Financier'!$E$16+'BP Financier'!$F$16+'BP Financier'!$G$16)/('BP Financier'!$C$16+'BP Financier'!$C$19+'BP Financier'!$D$16+'BP Financier'!$D$19+'BP Financier'!$E$16+'BP Financier'!$E$19+'BP Financier'!$C$22+'BP Financier'!$D$22+'BP Financier'!$E$22+'BP Financier'!$F$16+'BP Financier'!$F$19+'BP Financier'!$F$22+'BP Financier'!$G$16+'BP Financier'!$G$19+'BP Financier'!$G$22))*$V8119*Z8119/(1-$W8119)","v":{"v":217971.57072081385,"d":"217,972"}},{"$f":"'BP Financier'!$G$44*(('BP Financier'!$C$16+'BP Financier'!$D$16+'BP Financier'!$E$16+'BP Financier'!$F$16+'BP Financier'!$G$16)/('BP Financier'!$C$16+'BP Financier'!$C$19+'BP Financier'!$D$16+'BP Financier'!$D$19+'BP Financier'!$E$16+'BP Financier'!$E$19+'BP Financier'!$C$22+'BP Financier'!$D$22+'BP Financier'!$E$22+'BP Financier'!$F$16+'BP Financier'!$F$19+'BP Financier'!$F$22+'BP Financier'!$G$16+'BP Financier'!$G$19+'BP Financier'!$G$22))*$V8119*AA8119/(1-$W8119)","v":{"v":26929.96174692209,"d":"26,930"}},{"$f":"'BP Financier'!$G$44*(('BP Financier'!$C$16+'BP Financier'!$D$16+'BP Financier'!$E$16+'BP Financier'!$F$16+'BP Financier'!$G$16)/('BP Financier'!$C$16+'BP Financier'!$C$19+'BP Financier'!$D$16+'BP Financier'!$D$19+'BP Financier'!$E$16+'BP Financier'!$E$19+'BP Financier'!$C$22+'BP Financier'!$D$22+'BP Financier'!$E$22+'BP Financier'!$F$16+'BP Financier'!$F$19+'BP Financier'!$F$22+'BP Financier'!$G$16+'BP Financier'!$G$19+'BP Financier'!$G$22))*$V8119*AB8119/(1-$W8119)","v":{"v":12889.554340407152,"d":"12,890"}},null,{"v":1E-3,"d":"0.10%"},{"$f":"Actif!$E$28/100","v":{"v":0.28900000000000003,"d":"28.90%"}},{"$f":"Actif!$E$30/100","v":{"v":0.09050000000000001,"d":"9.05%"}},{"$f":"Actif!$E$31/100","v":{"v":0.0605,"d":"6.05%"}},{"$f":"Actif!$E$32/100","v":{"v":0.47350000000000003,"d":"47.35%"}},{"$f":"Actif!$E$33/100","v":{"v":0.0585,"d":"5.85%"}},{"$f":"Actif!$E$29/100","v":{"v":0.027999999999999997,"d":"2.80%"}}]
[null,"#7",19,2028,"H","A_VIE",{"v":0.44999999999999996,"d":"0.45"},{"v":0.38999999999999996,"d":"0.39"},0.6,0.6,85,0,{"$f":"ROUND(Primes!$Q$4*V8120,0)","v":11},{"$f":"'BP Financier'!$G$33*(('BP Financier'!$C$16+'BP Financier'!$D$16+'BP Financier'!$E$16+'BP Financier'!$F$16+'BP Financier'!$G$16)/('BP Financier'!$C$16+'BP Financier'!$C$19+'BP Financier'!$D$16+'BP Financier'!$D$19+'BP Financier'!$E$16+'BP Financier'!$E$19+'BP Financier'!$F$16+'BP Financier'!$F$19+'BP Financier'!$G$19+'BP Financier'!$G$16))*V8120","v":{"v":570278.6743187835,"d":"570,279"}},{"v":327302.6120010531,"d":"327,303"},{"$f":"'BP Financier'!$G$44*(('BP Financier'!$C$16+'BP Financier'!$D$16+'BP Financier'!$E$16+'BP Financier'!$F$16+'BP Financier'!$G$16)/('BP Financier'!$C$16+'BP Financier'!$C$19+'BP Financier'!$D$16+'BP Financier'!$D$19+'BP Financier'!$E$16+'BP Financier'!$E$19+'BP Financier'!$C$22+'BP Financier'!$D$22+'BP Financier'!$E$22+'BP Financier'!$F$16+'BP Financier'!$F$19+'BP Financier'!$F$22+'BP Financier'!$G$16+'BP Financier'!$G$19+'BP Financier'!$G$22))*$V8120*X8120/(1-$W8120)","v":{"v":41660.880993101695,"d":"41,661"}},{"$f":"'BP Financier'!$G$44*(('BP Financier'!$C$16+'BP Financier'!$D$16+'BP Financier'!$E$16+'BP Financier'!$F$16+'BP Financier'!$G$16)/('BP Financier'!$C$16+'BP Financier'!$C$19+'BP Financier'!$D$16+'BP Financier'!$D$19+'BP Financier'!$E$16+'BP Financier'!$E$19+'BP Financier'!$C$22+'BP Financier'!$D$22+'BP Financier'!$E$22+'BP Financier'!$F$16+'BP Financier'!$F$19+'BP Financier'!$F$22+'BP Financier'!$G$16+'BP Financier'!$G$19+'BP Financier'!$G$22))*$V8120*Y8120/(1-$W8120)","v":{"v":27850.644199808314,"d":"27,851"}},{"$f":"'BP Financier'!$G$44*(('BP Financier'!$C$16+'BP Financier'!$D$16+'BP Financier'!$E$16+'BP Financier'!$F$16+'BP Financier'!$G$16)/('BP Financier'!$C$16+'BP Financier'!$C$19+'BP Financier'!$D$16+'BP Financier'!$D$19+'BP Financier'!$E$16+'BP Financier'!$E$19+'BP Financier'!$C$22+'BP Financier'!$D$22+'BP Financier'!$E$22+'BP Financier'!$F$16+'BP Financier'!$F$19+'BP Financier'!$F$22+'BP Financier'!$G$16+'BP Financier'!$G$19+'BP Financier'!$G$22))*$V8120*Z8120/(1-$W8120)","v":{"v":217971.57072081385,"d":"217,972"}},{"$f":"'BP Financier'!$G$44*(('BP Financier'!$C$16+'BP Financier'!$D$16+'BP Financier'!$E$16+'BP Financier'!$F$16+'BP Financier'!$G$16)/('BP Financier'!$C$16+'BP Financier'!$C$19+'BP Financier'!$D$16+'BP Financier'!$D$19+'BP Financier'!$E$16+'BP Financier'!$E$19+'BP Financier'!$C$22+'BP Financier'!$D$22+'BP Financier'!$E$22+'BP Financier'!$F$16+'BP Financier'!$F$19+'BP Financier'!$F$22+'BP Financier'!$G$16+'BP Financier'!$G$19+'BP Financier'!$G$22))*$V8120*AA8120/(1-$W8120)","v":{"v":26929.96174692209,"d":"26,930"}},{"$f":"'BP Financier'!$G$44*(('BP Financier'!$C$16+'BP Financier'!$D$16+'BP Financier'!$E$16+'BP Financier'!$F$16+'BP Financier'!$G$16)/('BP Financier'!$C$16+'BP Financier'!$C$19+'BP Financier'!$D$16+'BP Financier'!$D$19+'BP Financier'!$E$16+'BP Financier'!$E$19+'BP Financier'!$C$22+'BP Financier'!$D$22+'BP Financier'!$E$22+'BP Financier'!$F$16+'BP Financier'!$F$19+'BP Financier'!$F$22+'BP Financier'!$G$16+'BP Financier'!$G$19+'BP Financier'!$G$22))*$V8120*AB8120/(1-$W8120)","v":{"v":12889.554340407152,"d":"12,890"}},null,{"v":1E-3,"d":"0.10%"},{"$f":"Actif!$E$28/100","v":{"v":0.28900000000000003,"d":"28.90%"}},{"$f":"Actif!$E$30/100","v":{"v":0.09050000000000001,"d":"9.05%"}},{"$f":"Actif!$E$31/100","v":{"v":0.0605,"d":"6.05%"}},{"$f":"Actif!$E$32/100","v":{"v":0.47350000000000003,"d":"47.35%"}},{"$f":"Actif!$E$33/100","v":{"v":0.0585,"d":"5.85%"}},{"$f":"Actif!$E$29/100","v":{"v":0.027999999999999997,"d":"2.80%"}}]
[null,"#8",19,2029,"H","A_VIE",{"v":0.44999999999999996,"d":"0.45"},{"v":0.38999999999999996,"d":"0.39"},0.6,0.6,85,0,{"$f":"ROUND(Primes!$Q$4*V8121,0)","v":11},{"$f":"'BP Financier'!$G$33*(('BP Financier'!$C$16+'BP Financier'!$D$16+'BP Financier'!$E$16+'BP Financier'!$F$16+'BP Financier'!$G$16)/('BP Financier'!$C$16+'BP Financier'!$C$19+'BP Financier'!$D$16+'BP Financier'!$D$19+'BP Financier'!$E$16+'BP Financier'!$E$19+'BP Financier'!$F$16+'BP Financier'!$F$19+'BP Financier'!$G$19+'BP Financier'!$G$16))*V8121","v":{"v":570278.6743187835,"d":"570,279"}},{"v":327302.6120010531,"d":"327,303"},{"$f":"'BP Financier'!$G$44*(('BP Financier'!$C$16+'BP Financier'!$D$16+'BP Financier'!$E$16+'BP Financier'!$F$16+'BP Financier'!$G$16)/('BP Financier'!$C$16+'BP Financier'!$C$19+'BP Financier'!$D$16+'BP Financier'!$D$19+'BP Financier'!$E$16+'BP Financier'!$E$19+'BP Financier'!$C$22+'BP Financier'!$D$22+'BP Financier'!$E$22+'BP Financier'!$F$16+'BP Financier'!$F$19+'BP Financier'!$F$22+'BP Financier'!$G$16+'BP Financier'!$G$19+'BP Financier'!$G$22))*$V8121*X8121/(1-$W8121)","v":{"v":41660.880993101695,"d":"41,661"}},{"$f":"'BP Financier'!$G$44*(('BP Financier'!$C$16+'BP Financier'!$D$16+'BP Financier'!$E$16+'BP Financier'!$F$16+'BP Financier'!$G$16)/('BP Financier'!$C$16+'BP Financier'!$C$19+'BP Financier'!$D$16+'BP Financier'!$D$19+'BP Financier'!$E$16+'BP Financier'!$E$19+'BP Financier'!$C$22+'BP Financier'!$D$22+'BP Financier'!$E$22+'BP Financier'!$F$16+'BP Financier'!$F$19+'BP Financier'!$F$22+'BP Financier'!$G$16+'BP Financier'!$G$19+'BP Financier'!$G$22))*$V8121*Y8121/(1-$W8121)","v":{"v":27850.644199808314,"d":"27,851"}},{"$f":"'BP Financier'!$G$44*(('BP Financier'!$C$16+'BP Financier'!$D$16+'BP Financier'!$E$16+'BP Financier'!$F$16+'BP Financier'!$G$16)/('BP Financier'!$C$16+'BP Financier'!$C$19+'BP Financier'!$D$16+'BP Financier'!$D$19+'BP Financier'!$E$16+'BP Financier'!$E$19+'BP Financier'!$C$22+'BP Financier'!$D$22+'BP Financier'!$E$22+'BP Financier'!$F$16+'BP Financier'!$F$19+'BP Financier'!$F$22+'BP Financier'!$G$16+'BP Financier'!$G$19+'BP Financier'!$G$22))*$V8121*Z8121/(1-$W8121)","v":{"v":217971.57072081385,"d":"217,972"}},{"$f":"'BP Financier'!$G$44*(('BP Financier'!$C$16+'BP Financier'!$D$16+'BP Financier'!$E$16+'BP Financier'!$F$16+'BP Financier'!$G$16)/('BP Financier'!$C$16+'BP Financier'!$C$19+'BP Financier'!$D$16+'BP Financier'!$D$19+'BP Financier'!$E$16+'BP Financier'!$E$19+'BP Financier'!$C$22+'BP Financier'!$D$22+'BP Financier'!$E$22+'BP Financier'!$F$16+'BP Financier'!$F$19+'BP Financier'!$F$22+'BP Financier'!$G$16+'BP Financier'!$G$19+'BP Financier'!$G$22))*$V8121*AA8121/(1-$W8121)","v":{"v":26929.96174692209,"d":"26,930"}},{"$f":"'BP Financier'!$G$44*(('BP Financier'!$C$16+'BP Financier'!$D$16+'BP Financier'!$E$16+'BP Financier'!$F$16+'BP Financier'!$G$16)/('BP Financier'!$C$16+'BP Financier'!$C$19+'BP Financier'!$D$16+'BP Financier'!$D$19+'BP Financier'!$E$16+'BP Financier'!$E$19+'BP Financier'!$C$22+'BP Financier'!$D$22+'BP Financier'!$E$22+'BP Financier'!$F$16+'BP Financier'!$F$19+'BP Financier'!$F$22+'BP Financier'!$G$16+'BP Financier'!$G$19+'BP Financier'!$G$22))*$V8121*AB8121/(1-$W8121)","v":{"v":12889.554340407152,"d":"12,890"}},null,{"v":1E-3,"d":"0.10%"},{"$f":"Actif!$E$28/100","v":{"v":0.28900000000000003,"d":"28.90%"}},{"$f":"Actif!$E$30/100","v":{"v":0.09050000000000001,"d":"9.05%"}},{"$f":"Actif!$E$31/100","v":{"v":0.0605,"d":"6.05%"}},{"$f":"Actif!$E$32/100","v":{"v":0.47350000000000003,"d":"47.35%"}},{"$f":"Actif!$E$33/100","v":{"v":0.0585,"d":"5.85%"}},{"$f":"Actif!$E$29/100","v":{"v":0.027999999999999997,"d":"2.80%"}}]
[null,"#9",19,2030,"H","A_VIE",{"v":0.44999999999999996,"d":"0.45"},{"v":0.38999999999999996,"d":"0.39"},0.6,0.6,85,0,{"$f":"ROUND(Primes!$Q$4*V8122,0)","v":11},{"$f":"'BP Financier'!$G$33*(('BP Financier'!$C$16+'BP Financier'!$D$16+'BP Financier'!$E$16+'BP Financier'!$F$16+'BP Financier'!$G$16)/('BP Financier'!$C$16+'BP Financier'!$C$19+'BP Financier'!$D$16+'BP Financier'!$D$19+'BP Financier'!$E$16+'BP Financier'!$E$19+'BP Financier'!$F$16+'BP Financier'!$F$19+'BP Financier'!$G$19+'BP Financier'!$G$16))*V8122","v":{"v":570278.6743187835,"d":"570,279"}},{"v":327302.6120010531,"d":"327,303"},{"$f":"'BP Financier'!$G$44*(('BP Financier'!$C$16+'BP Financier'!$D$16+'BP Financier'!$E$16+'BP Financier'!$F$16+'BP Financier'!$G$16)/('BP Financier'!$C$16+'BP Financier'!$C$19+'BP Financier'!$D$16+'BP Financier'!$D$19+'BP Financier'!$E$16+'BP Financier'!$E$19+'BP Financier'!$C$22+'BP Financier'!$D$22+'BP Financier'!$E$22+'BP Financier'!$F$16+'BP Financier'!$F$19+'BP Financier'!$F$22+'BP Financier'!$G$16+'BP Financier'!$G$19+'BP Financier'!$G$22))*$V8122*X8122/(1-$W8122)","v":{"v":41660.880993101695,"d":"41,661"}},{"$f":"'BP Financier'!$G$44*(('BP Financier'!$C$16+'BP Financier'!$D$16+'BP Financier'!$E$16+'BP Financier'!$F$16+'BP Financier'!$G$16)/('BP Financier'!$C$16+'BP Financier'!$C$19+'BP Financier'!$D$16+'BP Financier'!$D$19+'BP Financier'!$E$16+'BP Financier'!$E$19+'BP Financier'!$C$22+'BP Financier'!$D$22+'BP Financier'!$E$22+'BP Financier'!$F$16+'BP Financier'!$F$19+'BP Financier'!$F$22+'BP Financier'!$G$16+'BP Financier'!$G$19+'BP Financier'!$G$22))*$V8122*Y8122/(1-$W8122)","v":{"v":27850.644199808314,"d":"27,851"}},{"$f":"'BP Financier'!$G$44*(('BP Financier'!$C$16+'BP Financier'!$D$16+'BP Financier'!$E$16+'BP Financier'!$F$16+'BP Financier'!$G$16)/('BP Financier'!$C$16+'BP Financier'!$C$19+'BP Financier'!$D$16+'BP Financier'!$D$19+'BP Financier'!$E$16+'BP Financier'!$E$19+'BP Financier'!$C$22+'BP Financier'!$D$22+'BP Financier'!$E$22+'BP Financier'!$F$16+'BP Financier'!$F$19+'BP Financier'!$F$22+'BP Financier'!$G$16+'BP Financier'!$G$19+'BP Financier'!$G$22))*$V8122*Z8122/(1-$W8122)","v":{"v":217971.57072081385,"d":"217,972"}},{"$f":"'BP Financier'!$G$44*(('BP Financier'!$C$16+'BP Financier'!$D$16+'BP Financier'!$E$16+'BP Financier'!$F$16+'BP Financier'!$G$16)/('BP Financier'!$C$16+'BP Financier'!$C$19+'BP Financier'!$D$16+'BP Financier'!$D$19+'BP Financier'!$E$16+'BP Financier'!$E$19+'BP Financier'!$C$22+'BP Financier'!$D$22+'BP Financier'!$E$22+'BP Financier'!$F$16+'BP Financier'!$F$19+'BP Financier'!$F$22+'BP Financier'!$G$16+'BP Financier'!$G$19+'BP Financier'!$G$22))*$V8122*AA8122/(1-$W8122)","v":{"v":26929.96174692209,"d":"26,930"}},{"$f":"'BP Financier'!$G$44*(('BP Financier'!$C$16+'BP Financier'!$D$16+'BP Financier'!$E$16+'BP Financier'!$F$16+'BP Financier'!$G$16)/('BP Financier'!$C$16+'BP Financier'!$C$19+'BP Financier'!$D$16+'BP Financier'!$D$19+'BP Financier'!$E$16+'BP Financier'!$E$19+'BP Financier'!$C$22+'BP Financier'!$D$22+'BP Financier'!$E$22+'BP Financier'!$F$16+'BP Financier'!$F$19+'BP Financier'!$F$22+'BP Financier'!$G$16+'BP Financier'!$G$19+'BP Financier'!$G$22))*$V8122*AB8122/(1-$W8122)","v":{"v":12889.554340407152,"d":"12,890"}},null,{"v":1E-3,"d":"0.10%"},{"$f":"Actif!$E$28/100","v":{"v":0.28900000000000003,"d":"28.90%"}},{"$f":"Actif!$E$30/100","v":{"v":0.09050000000000001,"d":"9.05%"}},{"$f":"Actif!$E$31/100","v":{"v":0.0605,"d":"6.05%"}},{"$f":"Actif!$E$32/100","v":{"v":0.47350000000000003,"d":"47.35%"}},{"$f":"Actif!$E$33/100","v":{"v":0.0585,"d":"5.85%"}},{"$f":"Actif!$E$29/100","v":{"v":0.027999999999999997,"d":"2.80%"}}]
[null,"#10",19,2031,"H","A_VIE",{"v":0.44999999999999996,"d":"0.45"},{"v":0.38999999999999996,"d":"0.39"},0.6,0.6,85,0,{"$f":"ROUND(Primes!$Q$4*V8123,0)","v":11},{"$f":"'BP Financier'!$G$33*(('BP Financier'!$C$16+'BP Financier'!$D$16+'BP Financier'!$E$16+'BP Financier'!$F$16+'BP Financier'!$G$16)/('BP Financier'!$C$16+'BP Financier'!$C$19+'BP Financier'!$D$16+'BP Financier'!$D$19+'BP Financier'!$E$16+'BP Financier'!$E$19+'BP Financier'!$F$16+'BP Financier'!$F$19+'BP Financier'!$G$19+'BP Financier'!$G$16))*V8123","v":{"v":570278.6743187835,"d":"570,279"}},{"v":327302.6120010531,"d":"327,303"},{"$f":"'BP Financier'!$G$44*(('BP Financier'!$C$16+'BP Financier'!$D$16+'BP Financier'!$E$16+'BP Financier'!$F$16+'BP Financier'!$G$16)/('BP Financier'!$C$16+'BP Financier'!$C$19+'BP Financier'!$D$16+'BP Financier'!$D$19+'BP Financier'!$E$16+'BP Financier'!$E$19+'BP Financier'!$C$22+'BP Financier'!$D$22+'BP Financier'!$E$22+'BP Financier'!$F$16+'BP Financier'!$F$19+'BP Financier'!$F$22+'BP Financier'!$G$16+'BP Financier'!$G$19+'BP Financier'!$G$22))*$V8123*X8123/(1-$W8123)","v":{"v":41660.880993101695,"d":"41,661"}},{"$f":"'BP Financier'!$G$44*(('BP Financier'!$C$16+'BP Financier'!$D$16+'BP Financier'!$E$16+'BP Financier'!$F$16+'BP Financier'!$G$16)/('BP Financier'!$C$16+'BP Financier'!$C$19+'BP Financier'!$D$16+'BP Financier'!$D$19+'BP Financier'!$E$16+'BP Financier'!$E$19+'BP Financier'!$C$22+'BP Financier'!$D$22+'BP Financier'!$E$22+'BP Financier'!$F$16+'BP Financier'!$F$19+'BP Financier'!$F$22+'BP Financier'!$G$16+'BP Financier'!$G$19+'BP Financier'!$G$22))*$V8123*Y8123/(1-$W8123)","v":{"v":27850.644199808314,"d":"27,851"}},{"$f":"'BP Financier'!$G$44*(('BP Financier'!$C$16+'BP Financier'!$D$16+'BP Financier'!$E$16+'BP Financier'!$F$16+'BP Financier'!$G$16)/('BP Financier'!$C$16+'BP Financier'!$C$19+'BP Financier'!$D$16+'BP Financier'!$D$19+'BP Financier'!$E$16+'BP Financier'!$E$19+'BP Financier'!$C$22+'BP Financier'!$D$22+'BP Financier'!$E$22+'BP Financier'!$F$16+'BP Financier'!$F$19+'BP Financier'!$F$22+'BP Financier'!$G$16+'BP Financier'!$G$19+'BP Financier'!$G$22))*$V8123*Z8123/(1-$W8123)","v":{"v":217971.57072081385,"d":"217,972"}},{"$f":"'BP Financier'!$G$44*(('BP Financier'!$C$16+'BP Financier'!$D$16+'BP Financier'!$E$16+'BP Financier'!$F$16+'BP Financier'!$G$16)/('BP Financier'!$C$16+'BP Financier'!$C$19+'BP Financier'!$D$16+'BP Financier'!$D$19+'BP Financier'!$E$16+'BP Financier'!$E$19+'BP Financier'!$C$22+'BP Financier'!$D$22+'BP Financier'!$E$22+'BP Financier'!$F$16+'BP Financier'!$F$19+'BP Financier'!$F$22+'BP Financier'!$G$16+'BP Financier'!$G$19+'BP Financier'!$G$22))*$V8123*AA8123/(1-$W8123)","v":{"v":26929.96174692209,"d":"26,930"}},{"$f":"'BP Financier'!$G$44*(('BP Financier'!$C$16+'BP Financier'!$D$16+'BP Financier'!$E$16+'BP Financier'!$F$16+'BP Financier'!$G$16)/('BP Financier'!$C$16+'BP Financier'!$C$19+'BP Financier'!$D$16+'BP Financier'!$D$19+'BP Financier'!$E$16+'BP Financier'!$E$19+'BP Financier'!$C$22+'BP Financier'!$D$22+'BP Financier'!$E$22+'BP Financier'!$F$16+'BP Financier'!$F$19+'BP Financier'!$F$22+'BP Financier'!$G$16+'BP Financier'!$G$19+'BP Financier'!$G$22))*$V8123*AB8123/(1-$W8123)","v":{"v":12889.554340407152,"d":"12,890"}},null,{"v":1E-3,"d":"0.10%"},{"$f":"Actif!$E$28/100","v":{"v":0.28900000000000003,"d":"28.90%"}},{"$f":"Actif!$E$30/100","v":{"v":0.09050000000000001,"d":"9.05%"}},{"$f":"Actif!$E$31/100","v":{"v":0.0605,"d":"6.05%"}},{"$f":"Actif!$E$32/100","v":{"v":0.47350000000000003,"d":"47.35%"}},{"$f":"Actif!$E$33/100","v":{"v":0.0585,"d":"5.85%"}},{"$f":"Actif!$E$29/100","v":{"v":0.027999999999999997,"d":"2.80%"}}]
[null,"#11",20,2026,"F","A_VIE",{"v":0.44999999999999996,"d":"0.45"},{"v":0.38999999999999996,"d":"0.39"},0.6,0.6,85,0,{"$f":"ROUND(Primes!$Q$4*V8124,0)","v":23},{"$f":"'BP Financier'!$G$33*(('BP Financier'!$C$16+'BP Financier'!$D$16+'BP Financier'!$E$16+'BP Financier'!$F$16+'BP Financier'!$G$16)/('BP Financier'!$C$16+'BP Financier'!$C$19+'BP Financier'!$D$16+'BP Financier'!$D$19+'BP Financier'!$E$16+'BP Financier'!$E$19+'BP Financier'!$F$16+'BP Financier'!$F$19+'BP Financier'!$G$19+'BP Financier'!$G$16))*V8124","v":{"v":1140557.348637567,"d":"1,140,557"}},{"v":654605.2240021062,"d":"654,605"},{"$f":"'BP Financier'!$G$44*(('BP Financier'!$C$16+'BP Financier'!$D$16+'BP Financier'!$E$16+'BP Financier'!$F$16+'BP Financier'!$G$16)/('BP Financier'!$C$16+'BP Financier'!$C$19+'BP Financier'!$D$16+'BP Financier'!$D$19+'BP Financier'!$E$16+'BP Financier'!$E$19+'BP Financier'!$C$22+'BP Financier'!$D$22+'BP Financier'!$E$22+'BP Financier'!$F$16+'BP Financier'!$F$19+'BP Financier'!$F$22+'BP Financier'!$G$16+'BP Financier'!$G$19+'BP Financier'!$G$22))*$V8124*X8124/(1-$W8124)","v":{"v":83321.76198620339,"d":"83,322"}},{"$f":"'BP Financier'!$G$44*(('BP Financier'!$C$16+'BP Financier'!$D$16+'BP Financier'!$E$16+'BP Financier'!$F$16+'BP Financier'!$G$16)/('BP Financier'!$C$16+'BP Financier'!$C$19+'BP Financier'!$D$16+'BP Financier'!$D$19+'BP Financier'!$E$16+'BP Financier'!$E$19+'BP Financier'!$C$22+'BP Financier'!$D$22+'BP Financier'!$E$22+'BP Financier'!$F$16+'BP Financier'!$F$19+'BP Financier'!$F$22+'BP Financier'!$G$16+'BP Financier'!$G$19+'BP Financier'!$G$22))*$V8124*Y8124/(1-$W8124)","v":{"v":55701.28839961663,"d":"55,701"}},{"$f":"'BP Financier'!$G$44*(('BP Financier'!$C$16+'BP Financier'!$D$16+'BP Financier'!$E$16+'BP Financier'!$F$16+'BP Financier'!$G$16)/('BP Financier'!$C$16+'BP Financier'!$C$19+'BP Financier'!$D$16+'BP Financier'!$D$19+'BP Financier'!$E$16+'BP Financier'!$E$19+'BP Financier'!$C$22+'BP Financier'!$D$22+'BP Financier'!$E$22+'BP Financier'!$F$16+'BP Financier'!$F$19+'BP Financier'!$F$22+'BP Financier'!$G$16+'BP Financier'!$G$19+'BP Financier'!$G$22))*$V8124*Z8124/(1-$W8124)","v":{"v":435943.1414416277,"d":"435,943"}},{"$f":"'BP Financier'!$G$44*(('BP Financier'!$C$16+'BP Financier'!$D$16+'BP Financier'!$E$16+'BP Financier'!$F$16+'BP Financier'!$G$16)/('BP Financier'!$C$16+'BP Financier'!$C$19+'BP Financier'!$D$16+'BP Financier'!$D$19+'BP Financier'!$E$16+'BP Financier'!$E$19+'BP Financier'!$C$22+'BP Financier'!$D$22+'BP Financier'!$E$22+'BP Financier'!$F$16+'BP Financier'!$F$19+'BP Financier'!$F$22+'BP Financier'!$G$16+'BP Financier'!$G$19+'BP Financier'!$G$22))*$V8124*AA8124/(1-$W8124)","v":{"v":53859.92349384418,"d":"53,860"}},{"$f":"'BP Financier'!$G$44*(('BP Financier'!$C$16+'BP Financier'!$D$16+'BP Financier'!$E$16+'BP Financier'!$F$16+'BP Financier'!$G$16)/('BP Financier'!$C$16+'BP Financier'!$C$19+'BP Financier'!$D$16+'BP Financier'!$D$19+'BP Financier'!$E$16+'BP Financier'!$E$19+'BP Financier'!$C$22+'BP Financier'!$D$22+'BP Financier'!$E$22+'BP Financier'!$F$16+'BP Financier'!$F$19+'BP Financier'!$F$22+'BP Financier'!$G$16+'BP Financier'!$G$19+'BP Financier'!$G$22))*$V8124*AB8124/(1-$W8124)","v":{"v":25779.108680814305,"d":"25,779"}},null,{"v":2E-3,"d":"0.20%"},{"$f":"Actif!$E$28/100","v":{"v":0.28900000000000003,"d":"28.90%"}},{"$f":"Actif!$E$30/100","v":{"v":0.09050000000000001,"d":"9.05%"}},{"$f":"Actif!$E$31/100","v":{"v":0.0605,"d":"6.05%"}},{"$f":"Actif!$E$32/100","v":{"v":0.47350000000000003,"d":"47.35%"}},{"$f":"Actif!$E$33/100","v":{"v":0.0585,"d":"5.85%"}},{"$f":"Actif!$E$29/100","v":{"v":0.027999999999999997,"d":"2.80%"}}]
[null,"#12",20,2028,"F","A_VIE",{"v":0.44999999999999996,"d":"0.45"},{"v":0.38999999999999996,"d":"0.39"},0.6,0.6,85,0,{"$f":"ROUND(Primes!$Q$4*V8125,0)","v":23},{"$f":"'BP Financier'!$G$33*(('BP Financier'!$C$16+'BP Financier'!$D$16+'BP Financier'!$E$16+'BP Financier'!$F$16+'BP Financier'!$G$16)/('BP Financier'!$C$16+'BP Financier'!$C$19+'BP Financier'!$D$16+'BP Financier'!$D$19+'BP Financier'!$E$16+'BP Financier'!$E$19+'BP Financier'!$F$16+'BP Financier'!$F$19+'BP Financier'!$G$19+'BP Financier'!$G$16))*V8125","v":{"v":1140557.348637567,"d":"1,140,557"}},{"v":654605.2240021062,"d":"654,605"},{"$f":"'BP Financier'!$G$44*(('BP Financier'!$C$16+'BP Financier'!$D$16+'BP Financier'!$E$16+'BP Financier'!$F$16+'BP Financier'!$G$16)/('BP Financier'!$C$16+'BP Financier'!$C$19+'BP Financier'!$D$16+'BP Financier'!$D$19+'BP Financier'!$E$16+'BP Financier'!$E$19+'BP Financier'!$C$22+'BP Financier'!$D$22+'BP Financier'!$E$22+'BP Financier'!$F$16+'BP Financier'!$F$19+'BP Financier'!$F$22+'BP Financier'!$G$16+'BP Financier'!$G$19+'BP Financier'!$G$22))*$V8125*X8125/(1-$W8125)","v":{"v":83321.76198620339,"d":"83,322"}},{"$f":"'BP Financier'!$G$44*(('BP Financier'!$C$16+'BP Financier'!$D$16+'BP Financier'!$E$16+'BP Financier'!$F$16+'BP Financier'!$G$16)/('BP Financier'!$C$16+'BP Financier'!$C$19+'BP Financier'!$D$16+'BP Financier'!$D$19+'BP Financier'!$E$16+'BP Financier'!$E$19+'BP Financier'!$C$22+'BP Financier'!$D$22+'BP Financier'!$E$22+'BP Financier'!$F$16+'BP Financier'!$F$19+'BP Financier'!$F$22+'BP Financier'!$G$16+'BP Financier'!$G$19+'BP Financier'!$G$22))*$V8125*Y8125/(1-$W8125)","v":{"v":55701.28839961663,"d":"55,701"}},{"$f":"'BP Financier'!$G$44*(('BP Financier'!$C$16+'BP Financier'!$D$16+'BP Financier'!$E$16+'BP Financier'!$F$16+'BP Financier'!$G$16)/('BP Financier'!$C$16+'BP Financier'!$C$19+'BP Financier'!$D$16+'BP Financier'!$D$19+'BP Financier'!$E$16+'BP Financier'!$E$19+'BP Financier'!$C$22+'BP Financier'!$D$22+'BP Financier'!$E$22+'BP Financier'!$F$16+'BP Financier'!$F$19+'BP Financier'!$F$22+'BP Financier'!$G$16+'BP Financier'!$G$19+'BP Financier'!$G$22))*$V8125*Z8125/(1-$W8125)","v":{"v":435943.1414416277,"d":"435,943"}},{"$f":"'BP Financier'!$G$44*(('BP Financier'!$C$16+'BP Financier'!$D$16+'BP Financier'!$E$16+'BP Financier'!$F$16+'BP Financier'!$G$16)/('BP Financier'!$C$16+'BP Financier'!$C$19+'BP Financier'!$D$16+'BP Financier'!$D$19+'BP Financier'!$E$16+'BP Financier'!$E$19+'BP Financier'!$C$22+'BP Financier'!$D$22+'BP Financier'!$E$22+'BP Financier'!$F$16+'BP Financier'!$F$19+'BP Financier'!$F$22+'BP Financier'!$G$16+'BP Financier'!$G$19+'BP Financier'!$G$22))*$V8125*AA8125/(1-$W8125)","v":{"v":53859.92349384418,"d":"53,860"}},{"$f":"'BP Financier'!$G$44*(('BP Financier'!$C$16+'BP Financier'!$D$16+'BP Financier'!$E$16+'BP Financier'!$F$16+'BP Financier'!$G$16)/('BP Financier'!$C$16+'BP Financier'!$C$19+'BP Financier'!$D$16+'BP Financier'!$D$19+'BP Financier'!$E$16+'BP Financier'!$E$19+'BP Financier'!$C$22+'BP Financier'!$D$22+'BP Financier'!$E$22+'BP Financier'!$F$16+'BP Financier'!$F$19+'BP Financier'!$F$22+'BP Financier'!$G$16+'BP Financier'!$G$19+'BP Financier'!$G$22))*$V8125*AB8125/(1-$W8125)","v":{"v":25779.108680814305,"d":"25,779"}},null,{"v":2E-3,"d":"0.20%"},{"$f":"Actif!$E$28/100","v":{"v":0.28900000000000003,"d":"28.90%"}},{"$f":"Actif!$E$30/100","v":{"v":0.09050000000000001,"d":"9.05%"}},{"$f":"Actif!$E$31/100","v":{"v":0.0605,"d":"6.05%"}},{"$f":"Actif!$E$32/100","v":{"v":0.47350000000000003,"d":"47.35%"}},{"$f":"Actif!$E$33/100","v":{"v":0.0585,"d":"5.85%"}},{"$f":"Actif!$E$29/100","v":{"v":0.027999999999999997,"d":"2.80%"}}]
[null,"#13",20,2029,"F","A_VIE",{"v":0.44999999999999996,"d":"0.45"},{"v":0.38999999999999996,"d":"0.39"},0.6,0.6,85,0,{"$f":"ROUND(Primes!$Q$4*V8126,0)","v":23},{"$f":"'BP Financier'!$G$33*(('BP Financier'!$C$16+'BP Financier'!$D$16+'BP Financier'!$E$16+'BP Financier'!$F$16+'BP Financier'!$G$16)/('BP Financier'!$C$16+'BP Financier'!$C$19+'BP Financier'!$D$16+'BP Financier'!$D$19+'BP Financier'!$E$16+'BP Financier'!$E$19+'BP Financier'!$F$16+'BP Financier'!$F$19+'BP Financier'!$G$19+'BP Financier'!$G$16))*V8126","v":{"v":1140557.348637567,"d":"1,140,557"}},{"v":654605.2240021062,"d":"654,605"},{"$f":"'BP Financier'!$G$44*(('BP Financier'!$C$16+'BP Financier'!$D$16+'BP Financier'!$E$16+'BP Financier'!$F$16+'BP Financier'!$G$16)/('BP Financier'!$C$16+'BP Financier'!$C$19+'BP Financier'!$D$16+'BP Financier'!$D$19+'BP Financier'!$E$16+'BP Financier'!$E$19+'BP Financier'!$C$22+'BP Financier'!$D$22+'BP Financier'!$E$22+'BP Financier'!$F$16+'BP Financier'!$F$19+'BP Financier'!$F$22+'BP Financier'!$G$16+'BP Financier'!$G$19+'BP Financier'!$G$22))*$V8126*X8126/(1-$W8126)","v":{"v":83321.76198620339,"d":"83,322"}},{"$f":"'BP Financier'!$G$44*(('BP Financier'!$C$16+'BP Financier'!$D$16+'BP Financier'!$E$16+'BP Financier'!$F$16+'BP Financier'!$G$16)/('BP Financier'!$C$16+'BP Financier'!$C$19+'BP Financier'!$D$16+'BP Financier'!$D$19+'BP Financier'!$E$16+'BP Financier'!$E$19+'BP Financier'!$C$22+'BP Financier'!$D$22+'BP Financier'!$E$22+'BP Financier'!$F$16+'BP Financier'!$F$19+'BP Financier'!$F$22+'BP Financier'!$G$16+'BP Financier'!$G$19+'BP Financier'!$G$22))*$V8126*Y8126/(1-$W8126)","v":{"v":55701.28839961663,"d":"55,701"}},{"$f":"'BP Financier'!$G$44*(('BP Financier'!$C$16+'BP Financier'!$D$16+'BP Financier'!$E$16+'BP Financier'!$F$16+'BP Financier'!$G$16)/('BP Financier'!$C$16+'BP Financier'!$C$19+'BP Financier'!$D$16+'BP Financier'!$D$19+'BP Financier'!$E$16+'BP Financier'!$E$19+'BP Financier'!$C$22+'BP Financier'!$D$22+'BP Financier'!$E$22+'BP Financier'!$F$16+'BP Financier'!$F$19+'BP Financier'!$F$22+'BP Financier'!$G$16+'BP Financier'!$G$19+'BP Financier'!$G$22))*$V8126*Z8126/(1-$W8126)","v":{"v":435943.1414416277,"d":"435,943"}},{"$f":"'BP Financier'!$G$44*(('BP Financier'!$C$16+'BP Financier'!$D$16+'BP Financier'!$E$16+'BP Financier'!$F$16+'BP Financier'!$G$16)/('BP Financier'!$C$16+'BP Financier'!$C$19+'BP Financier'!$D$16+'BP Financier'!$D$19+'BP Financier'!$E$16+'BP Financier'!$E$19+'BP Financier'!$C$22+'BP Financier'!$D$22+'BP Financier'!$E$22+'BP Financier'!$F$16+'BP Financier'!$F$19+'BP Financier'!$F$22+'BP Financier'!$G$16+'BP Financier'!$G$19+'BP Financier'!$G$22))*$V8126*AA8126/(1-$W8126)","v":{"v":53859.92349384418,"d":"53,860"}},{"$f":"'BP Financier'!$G$44*(('BP Financier'!$C$16+'BP Financier'!$D$16+'BP Financier'!$E$16+'BP Financier'!$F$16+'BP Financier'!$G$16)/('BP Financier'!$C$16+'BP Financier'!$C$19+'BP Financier'!$D$16+'BP Financier'!$D$19+'BP Financier'!$E$16+'BP Financier'!$E$19+'BP Financier'!$C$22+'BP Financier'!$D$22+'BP Financier'!$E$22+'BP Financier'!$F$16+'BP Financier'!$F$19+'BP Financier'!$F$22+'BP Financier'!$G$16+'BP Financier'!$G$19+'BP Financier'!$G$22))*$V8126*AB8126/(1-$W8126)","v":{"v":25779.108680814305,"d":"25,779"}},null,{"v":2E-3,"d":"0.20%"},{"$f":"Actif!$E$28/100","v":{"v":0.28900000000000003,"d":"28.90%"}},{"$f":"Actif!$E$30/100","v":{"v":0.09050000000000001,"d":"9.05%"}},{"$f":"Actif!$E$31/100","v":{"v":0.0605,"d":"6.05%"}},{"$f":"Actif!$E$32/100","v":{"v":0.47350000000000003,"d":"47.35%"}},{"$f":"Actif!$E$33/100","v":{"v":0.0585,"d":"5.85%"}},{"$f":"Actif!$E$29/100","v":{"v":0.027999999999999997,"d":"2.80%"}}]
[null,"#14",20,2030,"F","A_VIE",{"v":0.44999999999999996,"d":"0.45"},{"v":0.38999999999999996,"d":"0.39"},0.6,0.6,85,0,{"$f":"ROUND(Primes!$Q$4*V8127,0)","v":23},{"$f":"'BP Financier'!$G$33*(('BP Financier'!$C$16+'BP Financier'!$D$16+'BP Financier'!$E$16+'BP Financier'!$F$16+'BP Financier'!$G$16)/('BP Financier'!$C$16+'BP Financier'!$C$19+'BP Financier'!$D$16+'BP Financier'!$D$19+'BP Financier'!$E$16+'BP Financier'!$E$19+'BP Financier'!$F$16+'BP Financier'!$F$19+'BP Financier'!$G$19+'BP Financier'!$G$16))*V8127","v":{"v":1140557.348637567,"d":"1,140,557"}},{"v":654605.2240021062,"d":"654,605"},{"$f":"'BP Financier'!$G$44*(('BP Financier'!$C$16+'BP Financier'!$D$16+'BP Financier'!$E$16+'BP Financier'!$F$16+'BP Financier'!$G$16)/('BP Financier'!$C$16+'BP Financier'!$C$19+'BP Financier'!$D$16+'BP Financier'!$D$19+'BP Financier'!$E$16+'BP Financier'!$E$19+'BP Financier'!$C$22+'BP Financier'!$D$22+'BP Financier'!$E$22+'BP Financier'!$F$16+'BP Financier'!$F$19+'BP Financier'!$F$22+'BP Financier'!$G$16+'BP Financier'!$G$19+'BP Financier'!$G$22))*$V8127*X8127/(1-$W8127)","v":{"v":83321.76198620339,"d":"83,322"}},{"$f":"'BP Financier'!$G$44*(('BP Financier'!$C$16+'BP Financier'!$D$16+'BP Financier'!$E$16+'BP Financier'!$F$16+'BP Financier'!$G$16)/('BP Financier'!$C$16+'BP Financier'!$C$19+'BP Financier'!$D$16+'BP Financier'!$D$19+'BP Financier'!$E$16+'BP Financier'!$E$19+'BP Financier'!$C$22+'BP Financier'!$D$22+'BP Financier'!$E$22+'BP Financier'!$F$16+'BP Financier'!$F$19+'BP Financier'!$F$22+'BP Financier'!$G$16+'BP Financier'!$G$19+'BP Financier'!$G$22))*$V8127*Y8127/(1-$W8127)","v":{"v":55701.28839961663,"d":"55,701"}},{"$f":"'BP Financier'!$G$44*(('BP Financier'!$C$16+'BP Financier'!$D$16+'BP Financier'!$E$16+'BP Financier'!$F$16+'BP Financier'!$G$16)/('BP Financier'!$C$16+'BP Financier'!$C$19+'BP Financier'!$D$16+'BP Financier'!$D$19+'BP Financier'!$E$16+'BP Financier'!$E$19+'BP Financier'!$C$22+'BP Financier'!$D$22+'BP Financier'!$E$22+'BP Financier'!$F$16+'BP Financier'!$F$19+'BP Financier'!$F$22+'BP Financier'!$G$16+'BP Financier'!$G$19+'BP Financier'!$G$22))*$V8127*Z8127/(1-$W8127)","v":{"v":435943.1414416277,"d":"435,943"}},{"$f":"'BP Financier'!$G$44*(('BP Financier'!$C$16+'BP Financier'!$D$16+'BP Financier'!$E$16+'BP Financier'!$F$16+'BP Financier'!$G$16)/('BP Financier'!$C$16+'BP Financier'!$C$19+'BP Financier'!$D$16+'BP Financier'!$D$19+'BP Financier'!$E$16+'BP Financier'!$E$19+'BP Financier'!$C$22+'BP Financier'!$D$22+'BP Financier'!$E$22+'BP Financier'!$F$16+'BP Financier'!$F$19+'BP Financier'!$F$22+'BP Financier'!$G$16+'BP Financier'!$G$19+'BP Financier'!$G$22))*$V8127*AA8127/(1-$W8127)","v":{"v":53859.92349384418,"d":"53,860"}},{"$f":"'BP Financier'!$G$44*(('BP Financier'!$C$16+'BP Financier'!$D$16+'BP Financier'!$E$16+'BP Financier'!$F$16+'BP Financier'!$G$16)/('BP Financier'!$C$16+'BP Financier'!$C$19+'BP Financier'!$D$16+'BP Financier'!$D$19+'BP Financier'!$E$16+'BP Financier'!$E$19+'BP Financier'!$C$22+'BP Financier'!$D$22+'BP Financier'!$E$22+'BP Financier'!$F$16+'BP Financier'!$F$19+'BP Financier'!$F$22+'BP Financier'!$G$16+'BP Financier'!$G$19+'BP Financier'!$G$22))*$V8127*AB8127/(1-$W8127)","v":{"v":25779.108680814305,"d":"25,779"}},null,{"v":2E-3,"d":"0.20%"},{"$f":"Actif!$E$28/100","v":{"v":0.28900000000000003,"d":"28.90%"}},{"$f":"Actif!$E$30/100","v":{"v":0.09050000000000001,"d":"9.05%"}},{"$f":"Actif!$E$31/100","v":{"v":0.0605,"d":"6.05%"}},{"$f":"Actif!$E$32/100","v":{"v":0.47350000000000003,"d":"47.35%"}},{"$f":"Actif!$E$33/100","v":{"v":0.0585,"d":"5.85%"}},{"$f":"Actif!$E$29/100","v":{"v":0.027999999999999997,"d":"2.80%"}}]
[null,"#15",20,2031,"F","A_VIE",{"v":0.44999999999999996,"d":"0.45"},{"v":0.38999999999999996,"d":"0.39"},0.6,0.6,85,0,{"$f":"ROUND(Primes!$Q$4*V8128,0)","v":23},{"$f":"'BP Financier'!$G$33*(('BP Financier'!$C$16+'BP Financier'!$D$16+'BP Financier'!$E$16+'BP Financier'!$F$16+'BP Financier'!$G$16)/('BP Financier'!$C$16+'BP Financier'!$C$19+'BP Financier'!$D$16+'BP Financier'!$D$19+'BP Financier'!$E$16+'BP Financier'!$E$19+'BP Financier'!$F$16+'BP Financier'!$F$19+'BP Financier'!$G$19+'BP Financier'!$G$16))*V8128","v":{"v":1140557.348637567,"d":"1,140,557"}},{"v":654605.2240021062,"d":"654,605"},{"$f":"'BP Financier'!$G$44*(('BP Financier'!$C$16+'BP Financier'!$D$16+'BP Financier'!$E$16+'BP Financier'!$F$16+'BP Financier'!$G$16)/('BP Financier'!$C$16+'BP Financier'!$C$19+'BP Financier'!$D$16+'BP Financier'!$D$19+'BP Financier'!$E$16+'BP Financier'!$E$19+'BP Financier'!$C$22+'BP Financier'!$D$22+'BP Financier'!$E$22+'BP Financier'!$F$16+'BP Financier'!$F$19+'BP Financier'!$F$22+'BP Financier'!$G$16+'BP Financier'!$G$19+'BP Financier'!$G$22))*$V8128*X8128/(1-$W8128)","v":{"v":83321.76198620339,"d":"83,322"}},{"$f":"'BP Financier'!$G$44*(('BP Financier'!$C$16+'BP Financier'!$D$16+'BP Financier'!$E$16+'BP Financier'!$F$16+'BP Financier'!$G$16)/('BP Financier'!$C$16+'BP Financier'!$C$19+'BP Financier'!$D$16+'BP Financier'!$D$19+'BP Financier'!$E$16+'BP Financier'!$E$19+'BP Financier'!$C$22+'BP Financier'!$D$22+'BP Financier'!$E$22+'BP Financier'!$F$16+'BP Financier'!$F$19+'BP Financier'!$F$22+'BP Financier'!$G$16+'BP Financier'!$G$19+'BP Financier'!$G$22))*$V8128*Y8128/(1-$W8128)","v":{"v":55701.28839961663,"d":"55,701"}},{"$f":"'BP Financier'!$G$44*(('BP Financier'!$C$16+'BP Financier'!$D$16+'BP Financier'!$E$16+'BP Financier'!$F$16+'BP Financier'!$G$16)/('BP Financier'!$C$16+'BP Financier'!$C$19+'BP Financier'!$D$16+'BP Financier'!$D$19+'BP Financier'!$E$16+'BP Financier'!$E$19+'BP Financier'!$C$22+'BP Financier'!$D$22+'BP Financier'!$E$22+'BP Financier'!$F$16+'BP Financier'!$F$19+'BP Financier'!$F$22+'BP Financier'!$G$16+'BP Financier'!$G$19+'BP Financier'!$G$22))*$V8128*Z8128/(1-$W8128)","v":{"v":435943.1414416277,"d":"435,943"}},{"$f":"'BP Financier'!$G$44*(('BP Financier'!$C$16+'BP Financier'!$D$16+'BP Financier'!$E$16+'BP Financier'!$F$16+'BP Financier'!$G$16)/('BP Financier'!$C$16+'BP Financier'!$C$19+'BP Financier'!$D$16+'BP Financier'!$D$19+'BP Financier'!$E$16+'BP Financier'!$E$19+'BP Financier'!$C$22+'BP Financier'!$D$22+'BP Financier'!$E$22+'BP Financier'!$F$16+'BP Financier'!$F$19+'BP Financier'!$F$22+'BP Financier'!$G$16+'BP Financier'!$G$19+'BP Financier'!$G$22))*$V8128*AA8128/(1-$W8128)","v":{"v":53859.92349384418,"d":"53,860"}},{"$f":"'BP Financier'!$G$44*(('BP Financier'!$C$16+'BP Financier'!$D$16+'BP Financier'!$E$16+'BP Financier'!$F$16+'BP Financier'!$G$16)/('BP Financier'!$C$16+'BP Financier'!$C$19+'BP Financier'!$D$16+'BP Financier'!$D$19+'BP Financier'!$E$16+'BP Financier'!$E$19+'BP Financier'!$C$22+'BP Financier'!$D$22+'BP Financier'!$E$22+'BP Financier'!$F$16+'BP Financier'!$F$19+'BP Financier'!$F$22+'BP Financier'!$G$16+'BP Financier'!$G$19+'BP Financier'!$G$22))*$V8128*AB8128/(1-$W8128)","v":{"v":25779.108680814305,"d":"25,779"}},null,{"v":2E-3,"d":"0.20%"},{"$f":"Actif!$E$28/100","v":{"v":0.28900000000000003,"d":"28.90%"}},{"$f":"Actif!$E$30/100","v":{"v":0.09050000000000001,"d":"9.05%"}},{"$f":"Actif!$E$31/100","v":{"v":0.0605,"d":"6.05%"}},{"$f":"Actif!$E$32/100","v":{"v":0.47350000000000003,"d":"47.35%"}},{"$f":"Actif!$E$33/100","v":{"v":0.0585,"d":"5.85%"}},{"$f":"Actif!$E$29/100","v":{"v":0.027999999999999997,"d":"2.80%"}}]
[null,"#16",21,2026,"H","A_VIE",{"v":0.44999999999999996,"d":"0.45"},{"v":0.38999999999999996,"d":"0.39"},0.6,0.6,85,0,{"$f":"ROUND(Primes!$Q$4*V8129,0)","v":23},{"$f":"'BP Financier'!$G$33*(('BP Financier'!$C$16+'BP Financier'!$D$16+'BP Financier'!$E$16+'BP Financier'!$F$16+'BP Financier'!$G$16)/('BP Financier'!$C$16+'BP Financier'!$C$19+'BP Financier'!$D$16+'BP Financier'!$D$19+'BP Financier'!$E$16+'BP Financier'!$E$19+'BP Financier'!$F$16+'BP Financier'!$F$19+'BP Financier'!$G$19+'BP Financier'!$G$16))*V8129","v":{"v":1140557.348637567,"d":"1,140,557"}},{"v":654605.2240021062,"d":"654,605"},{"$f":"'BP Financier'!$G$44*(('BP Financier'!$C$16+'BP Financier'!$D$16+'BP Financier'!$E$16+'BP Financier'!$F$16+'BP Financier'!$G$16)/('BP Financier'!$C$16+'BP Financier'!$C$19+'BP Financier'!$D$16+'BP Financier'!$D$19+'BP Financier'!$E$16+'BP Financier'!$E$19+'BP Financier'!$C$22+'BP Financier'!$D$22+'BP Financier'!$E$22+'BP Financier'!$F$16+'BP Financier'!$F$19+'BP Financier'!$F$22+'BP Financier'!$G$16+'BP Financier'!$G$19+'BP Financier'!$G$22))*$V8129*X8129/(1-$W8129)","v":{"v":83321.76198620339,"d":"83,322"}},{"$f":"'BP Financier'!$G$44*(('BP Financier'!$C$16+'BP Financier'!$D$16+'BP Financier'!$E$16+'BP Financier'!$F$16+'BP Financier'!$G$16)/('BP Financier'!$C$16+'BP Financier'!$C$19+'BP Financier'!$D$16+'BP Financier'!$D$19+'BP Financier'!$E$16+'BP Financier'!$E$19+'BP Financier'!$C$22+'BP Financier'!$D$22+'BP Financier'!$E$22+'BP Financier'!$F$16+'BP Financier'!$F$19+'BP Financier'!$F$22+'BP Financier'!$G$16+'BP Financier'!$G$19+'BP Financier'!$G$22))*$V8129*Y8129/(1-$W8129)","v":{"v":55701.28839961663,"d":"55,701"}},{"$f":"'BP Financier'!$G$44*(('BP Financier'!$C$16+'BP Financier'!$D$16+'BP Financier'!$E$16+'BP Financier'!$F$16+'BP Financier'!$G$16)/('BP Financier'!$C$16+'BP Financier'!$C$19+'BP Financier'!$D$16+'BP Financier'!$D$19+'BP Financier'!$E$16+'BP Financier'!$E$19+'BP Financier'!$C$22+'BP Financier'!$D$22+'BP Financier'!$E$22+'BP Financier'!$F$16+'BP Financier'!$F$19+'BP Financier'!$F$22+'BP Financier'!$G$16+'BP Financier'!$G$19+'BP Financier'!$G$22))*$V8129*Z8129/(1-$W8129)","v":{"v":435943.1414416277,"d":"435,943"}},{"$f":"'BP Financier'!$G$44*(('BP Financier'!$C$16+'BP Financier'!$D$16+'BP Financier'!$E$16+'BP Financier'!$F$16+'BP Financier'!$G$16)/('BP Financier'!$C$16+'BP Financier'!$C$19+'BP Financier'!$D$16+'BP Financier'!$D$19+'BP Financier'!$E$16+'BP Financier'!$E$19+'BP Financier'!$C$22+'BP Financier'!$D$22+'BP Financier'!$E$22+'BP Financier'!$F$16+'BP Financier'!$F$19+'BP Financier'!$F$22+'BP Financier'!$G$16+'BP Financier'!$G$19+'BP Financier'!$G$22))*$V8129*AA8129/(1-$W8129)","v":{"v":53859.92349384418,"d":"53,860"}},{"$f":"'BP Financier'!$G$44*(('BP Financier'!$C$16+'BP Financier'!$D$16+'BP Financier'!$E$16+'BP Financier'!$F$16+'BP Financier'!$G$16)/('BP Financier'!$C$16+'BP Financier'!$C$19+'BP Financier'!$D$16+'BP Financier'!$D$19+'BP Financier'!$E$16+'BP Financier'!$E$19+'BP Financier'!$C$22+'BP Financier'!$D$22+'BP Financier'!$E$22+'BP Financier'!$F$16+'BP Financier'!$F$19+'BP Financier'!$F$22+'BP Financier'!$G$16+'BP Financier'!$G$19+'BP Financier'!$G$22))*$V8129*AB8129/(1-$W8129)","v":{"v":25779.108680814305,"d":"25,779"}},null,{"v":2E-3,"d":"0.20%"},{"$f":"Actif!$E$28/100","v":{"v":0.28900000000000003,"d":"28.90%"}},{"$f":"Actif!$E$30/100","v":{"v":0.09050000000000001,"d":"9.05%"}},{"$f":"Actif!$E$31/100","v":{"v":0.0605,"d":"6.05%"}},{"$f":"Actif!$E$32/100","v":{"v":0.47350000000000003,"d":"47.35%"}},{"$f":"Actif!$E$33/100","v":{"v":0.0585,"d":"5.85%"}},{"$f":"Actif!$E$29/100","v":{"v":0.027999999999999997,"d":"2.80%"}}]
[null,"#17",21,2028,"H","A_VIE",{"v":0.44999999999999996,"d":"0.45"},{"v":0.38999999999999996,"d":"0.39"},0.6,0.6,85,0,{"$f":"ROUND(Primes!$Q$4*V8130,0)","v":23},{"$f":"'BP Financier'!$G$33*(('BP Financier'!$C$16+'BP Financier'!$D$16+'BP Financier'!$E$16+'BP Financier'!$F$16+'BP Financier'!$G$16)/('BP Financier'!$C$16+'BP Financier'!$C$19+'BP Financier'!$D$16+'BP Financier'!$D$19+'BP Financier'!$E$16+'BP Financier'!$E$19+'BP Financier'!$F$16+'BP Financier'!$F$19+'BP Financier'!$G$19+'BP Financier'!$G$16))*V8130","v":{"v":1140557.348637567,"d":"1,140,557"}},{"v":654605.2240021062,"d":"654,605"},{"$f":"'BP Financier'!$G$44*(('BP Financier'!$C$16+'BP Financier'!$D$16+'BP Financier'!$E$16+'BP Financier'!$F$16+'BP Financier'!$G$16)/('BP Financier'!$C$16+'BP Financier'!$C$19+'BP Financier'!$D$16+'BP Financier'!$D$19+'BP Financier'!$E$16+'BP Financier'!$E$19+'BP Financier'!$C$22+'BP Financier'!$D$22+'BP Financier'!$E$22+'BP Financier'!$F$16+'BP Financier'!$F$19+'BP Financier'!$F$22+'BP Financier'!$G$16+'BP Financier'!$G$19+'BP Financier'!$G$22))*$V8130*X8130/(1-$W8130)","v":{"v":83321.76198620339,"d":"83,322"}},{"$f":"'BP Financier'!$G$44*(('BP Financier'!$C$16+'BP Financier'!$D$16+'BP Financier'!$E$16+'BP Financier'!$F$16+'BP Financier'!$G$16)/('BP Financier'!$C$16+'BP Financier'!$C$19+'BP Financier'!$D$16+'BP Financier'!$D$19+'BP Financier'!$E$16+'BP Financier'!$E$19+'BP Financier'!$C$22+'BP Financier'!$D$22+'BP Financier'!$E$22+'BP Financier'!$F$16+'BP Financier'!$F$19+'BP Financier'!$F$22+'BP Financier'!$G$16+'BP Financier'!$G$19+'BP Financier'!$G$22))*$V8130*Y8130/(1-$W8130)","v":{"v":55701.28839961663,"d":"55,701"}},{"$f":"'BP Financier'!$G$44*(('BP Financier'!$C$16+'BP Financier'!$D$16+'BP Financier'!$E$16+'BP Financier'!$F$16+'BP Financier'!$G$16)/('BP Financier'!$C$16+'BP Financier'!$C$19+'BP Financier'!$D$16+'BP Financier'!$D$19+'BP Financier'!$E$16+'BP Financier'!$E$19+'BP Financier'!$C$22+'BP Financier'!$D$22+'BP Financier'!$E$22+'BP Financier'!$F$16+'BP Financier'!$F$19+'BP Financier'!$F$22+'BP Financier'!$G$16+'BP Financier'!$G$19+'BP Financier'!$G$22))*$V8130*Z8130/(1-$W8130)","v":{"v":435943.1414416277,"d":"435,943"}},{"$f":"'BP Financier'!$G$44*(('BP Financier'!$C$16+'BP Financier'!$D$16+'BP Financier'!$E$16+'BP Financier'!$F$16+'BP Financier'!$G$16)/('BP Financier'!$C$16+'BP Financier'!$C$19+'BP Financier'!$D$16+'BP Financier'!$D$19+'BP Financier'!$E$16+'BP Financier'!$E$19+'BP Financier'!$C$22+'BP Financier'!$D$22+'BP Financier'!$E$22+'BP Financier'!$F$16+'BP Financier'!$F$19+'BP Financier'!$F$22+'BP Financier'!$G$16+'BP Financier'!$G$19+'BP Financier'!$G$22))*$V8130*AA8130/(1-$W8130)","v":{"v":53859.92349384418,"d":"53,860"}},{"$f":"'BP Financier'!$G$44*(('BP Financier'!$C$16+'BP Financier'!$D$16+'BP Financier'!$E$16+'BP Financier'!$F$16+'BP Financier'!$G$16)/('BP Financier'!$C$16+'BP Financier'!$C$19+'BP Financier'!$D$16+'BP Financier'!$D$19+'BP Financier'!$E$16+'BP Financier'!$E$19+'BP Financier'!$C$22+'BP Financier'!$D$22+'BP Financier'!$E$22+'BP Financier'!$F$16+'BP Financier'!$F$19+'BP Financier'!$F$22+'BP Financier'!$G$16+'BP Financier'!$G$19+'BP Financier'!$G$22))*$V8130*AB8130/(1-$W8130)","v":{"v":25779.108680814305,"d":"25,779"}},null,{"v":2E-3,"d":"0.20%"},{"$f":"Actif!$E$28/100","v":{"v":0.28900000000000003,"d":"28.90%"}},{"$f":"Actif!$E$30/100","v":{"v":0.09050000000000001,"d":"9.05%"}},{"$f":"Actif!$E$31/100","v":{"v":0.0605,"d":"6.05%"}},{"$f":"Actif!$E$32/100","v":{"v":0.47350000000000003,"d":"47.35%"}},{"$f":"Actif!$E$33/100","v":{"v":0.0585,"d":"5.85%"}},{"$f":"Actif!$E$29/100","v":{"v":0.027999999999999997,"d":"2.80%"}}]
[null,"#18",21,2029,"H","A_VIE",{"v":0.44999999999999996,"d":"0.45"},{"v":0.38999999999999996,"d":"0.39"},0.6,0.6,85,0,{"$f":"ROUND(Primes!$Q$4*V8131,0)","v":23},{"$f":"'BP Financier'!$G$33*(('BP Financier'!$C$16+'BP Financier'!$D$16+'BP Financier'!$E$16+'BP Financier'!$F$16+'BP Financier'!$G$16)/('BP Financier'!$C$16+'BP Financier'!$C$19+'BP Financier'!$D$16+'BP Financier'!$D$19+'BP Financier'!$E$16+'BP Financier'!$E$19+'BP Financier'!$F$16+'BP Financier'!$F$19+'BP Financier'!$G$19+'BP Financier'!$G$16))*V8131","v":{"v":1140557.348637567,"d":"1,140,557"}},{"v":654605.2240021062,"d":"654,605"},{"$f":"'BP Financier'!$G$44*(('BP Financier'!$C$16+'BP Financier'!$D$16+'BP Financier'!$E$16+'BP Financier'!$F$16+'BP Financier'!$G$16)/('BP Financier'!$C$16+'BP Financier'!$C$19+'BP Financier'!$D$16+'BP Financier'!$D$19+'BP Financier'!$E$16+'BP Financier'!$E$19+'BP Financier'!$C$22+'BP Financier'!$D$22+'BP Financier'!$E$22+'BP Financier'!$F$16+'BP Financier'!$F$19+'BP Financier'!$F$22+'BP Financier'!$G$16+'BP Financier'!$G$19+'BP Financier'!$G$22))*$V8131*X8131/(1-$W8131)","v":{"v":83321.76198620339,"d":"83,322"}},{"$f":"'BP Financier'!$G$44*(('BP Financier'!$C$16+'BP Financier'!$D$16+'BP Financier'!$E$16+'BP Financier'!$F$16+'BP Financier'!$G$16)/('BP Financier'!$C$16+'BP Financier'!$C$19+'BP Financier'!$D$16+'BP Financier'!$D$19+'BP Financier'!$E$16+'BP Financier'!$E$19+'BP Financier'!$C$22+'BP Financier'!$D$22+'BP Financier'!$E$22+'BP Financier'!$F$16+'BP Financier'!$F$19+'BP Financier'!$F$22+'BP Financier'!$G$16+'BP Financier'!$G$19+'BP Financier'!$G$22))*$V8131*Y8131/(1-$W8131)","v":{"v":55701.28839961663,"d":"55,701"}},{"$f":"'BP Financier'!$G$44*(('BP Financier'!$C$16+'BP Financier'!$D$16+'BP Financier'!$E$16+'BP Financier'!$F$16+'BP Financier'!$G$16)/('BP Financier'!$C$16+'BP Financier'!$C$19+'BP Financier'!$D$16+'BP Financier'!$D$19+'BP Financier'!$E$16+'BP Financier'!$E$19+'BP Financier'!$C$22+'BP Financier'!$D$22+'BP Financier'!$E$22+'BP Financier'!$F$16+'BP Financier'!$F$19+'BP Financier'!$F$22+'BP Financier'!$G$16+'BP Financier'!$G$19+'BP Financier'!$G$22))*$V8131*Z8131/(1-$W8131)","v":{"v":435943.1414416277,"d":"435,943"}},{"$f":"'BP Financier'!$G$44*(('BP Financier'!$C$16+'BP Financier'!$D$16+'BP Financier'!$E$16+'BP Financier'!$F$16+'BP Financier'!$G$16)/('BP Financier'!$C$16+'BP Financier'!$C$19+'BP Financier'!$D$16+'BP Financier'!$D$19+'BP Financier'!$E$16+'BP Financier'!$E$19+'BP Financier'!$C$22+'BP Financier'!$D$22+'BP Financier'!$E$22+'BP Financier'!$F$16+'BP Financier'!$F$19+'BP Financier'!$F$22+'BP Financier'!$G$16+'BP Financier'!$G$19+'BP Financier'!$G$22))*$V8131*AA8131/(1-$W8131)","v":{"v":53859.92349384418,"d":"53,860"}},{"$f":"'BP Financier'!$G$44*(('BP Financier'!$C$16+'BP Financier'!$D$16+'BP Financier'!$E$16+'BP Financier'!$F$16+'BP Financier'!$G$16)/('BP Financier'!$C$16+'BP Financier'!$C$19+'BP Financier'!$D$16+'BP Financier'!$D$19+'BP Financier'!$E$16+'BP Financier'!$E$19+'BP Financier'!$C$22+'BP Financier'!$D$22+'BP Financier'!$E$22+'BP Financier'!$F$16+'BP Financier'!$F$19+'BP Financier'!$F$22+'BP Financier'!$G$16+'BP Financier'!$G$19+'BP Financier'!$G$22))*$V8131*AB8131/(1-$W8131)","v":{"v":25779.108680814305,"d":"25,779"}},null,{"v":2E-3,"d":"0.20%"},{"$f":"Actif!$E$28/100","v":{"v":0.28900000000000003,"d":"28.90%"}},{"$f":"Actif!$E$30/100","v":{"v":0.09050000000000001,"d":"9.05%"}},{"$f":"Actif!$E$31/100","v":{"v":0.0605,"d":"6.05%"}},{"$f":"Actif!$E$32/100","v":{"v":0.47350000000000003,"d":"47.35%"}},{"$f":"Actif!$E$33/100","v":{"v":0.0585,"d":"5.85%"}},{"$f":"Actif!$E$29/100","v":{"v":0.027999999999999997,"d":"2.80%"}}]
[null,"#19",21,2030,"H","A_VIE",{"v":0.44999999999999996,"d":"0.45"},{"v":0.38999999999999996,"d":"0.39"},0.6,0.6,85,0,{"$f":"ROUND(Primes!$Q$4*V8132,0)","v":23},{"$f":"'BP Financier'!$G$33*(('BP Financier'!$C$16+'BP Financier'!$D$16+'BP Financier'!$E$16+'BP Financier'!$F$16+'BP Financier'!$G$16)/('BP Financier'!$C$16+'BP Financier'!$C$19+'BP Financier'!$D$16+'BP Financier'!$D$19+'BP Financier'!$E$16+'BP Financier'!$E$19+'BP Financier'!$F$16+'BP Financier'!$F$19+'BP Financier'!$G$19+'BP Financier'!$G$16))*V8132","v":{"v":1140557.348637567,"d":"1,140,557"}},{"v":654605.2240021062,"d":"654,605"},{"$f":"'BP Financier'!$G$44*(('BP Financier'!$C$16+'BP Financier'!$D$16+'BP Financier'!$E$16+'BP Financier'!$F$16+'BP Financier'!$G$16)/('BP Financier'!$C$16+'BP Financier'!$C$19+'BP Financier'!$D$16+'BP Financier'!$D$19+'BP Financier'!$E$16+'BP Financier'!$E$19+'BP Financier'!$C$22+'BP Financier'!$D$22+'BP Financier'!$E$22+'BP Financier'!$F$16+'BP Financier'!$F$19+'BP Financier'!$F$22+'BP Financier'!$G$16+'BP Financier'!$G$19+'BP Financier'!$G$22))*$V8132*X8132/(1-$W8132)","v":{"v":83321.76198620339,"d":"83,322"}},{"$f":"'BP Financier'!$G$44*(('BP Financier'!$C$16+'BP Financier'!$D$16+'BP Financier'!$E$16+'BP Financier'!$F$16+'BP Financier'!$G$16)/('BP Financier'!$C$16+'BP Financier'!$C$19+'BP Financier'!$D$16+'BP Financier'!$D$19+'BP Financier'!$E$16+'BP Financier'!$E$19+'BP Financier'!$C$22+'BP Financier'!$D$22+'BP Financier'!$E$22+'BP Financier'!$F$16+'BP Financier'!$F$19+'BP Financier'!$F$22+'BP Financier'!$G$16+'BP Financier'!$G$19+'BP Financier'!$G$22))*$V8132*Y8132/(1-$W8132)","v":{"v":55701.28839961663,"d":"55,701"}},{"$f":"'BP Financier'!$G$44*(('BP Financier'!$C$16+'BP Financier'!$D$16+'BP Financier'!$E$16+'BP Financier'!$F$16+'BP Financier'!$G$16)/('BP Financier'!$C$16+'BP Financier'!$C$19+'BP Financier'!$D$16+'BP Financier'!$D$19+'BP Financier'!$E$16+'BP Financier'!$E$19+'BP Financier'!$C$22+'BP Financier'!$D$22+'BP Financier'!$E$22+'BP Financier'!$F$16+'BP Financier'!$F$19+'BP Financier'!$F$22+'BP Financier'!$G$16+'BP Financier'!$G$19+'BP Financier'!$G$22))*$V8132*Z8132/(1-$W8132)","v":{"v":435943.1414416277,"d":"435,943"}},{"$f":"'BP Financier'!$G$44*(('BP Financier'!$C$16+'BP Financier'!$D$16+'BP Financier'!$E$16+'BP Financier'!$F$16+'BP Financier'!$G$16)/('BP Financier'!$C$16+'BP Financier'!$C$19+'BP Financier'!$D$16+'BP Financier'!$D$19+'BP Financier'!$E$16+'BP Financier'!$E$19+'BP Financier'!$C$22+'BP Financier'!$D$22+'BP Financier'!$E$22+'BP Financier'!$F$16+'BP Financier'!$F$19+'BP Financier'!$F$22+'BP Financier'!$G$16+'BP Financier'!$G$19+'BP Financier'!$G$22))*$V8132*AA8132/(1-$W8132)","v":{"v":53859.92349384418,"d":"53,860"}},{"$f":"'BP Financier'!$G$44*(('BP Financier'!$C$16+'BP Financier'!$D$16+'BP Financier'!$E$16+'BP Financier'!$F$16+'BP Financier'!$G$16)/('BP Financier'!$C$16+'BP Financier'!$C$19+'BP Financier'!$D$16+'BP Financier'!$D$19+'BP Financier'!$E$16+'BP Financier'!$E$19+'BP Financier'!$C$22+'BP Financier'!$D$22+'BP Financier'!$E$22+'BP Financier'!$F$16+'BP Financier'!$F$19+'BP Financier'!$F$22+'BP Financier'!$G$16+'BP Financier'!$G$19+'BP Financier'!$G$22))*$V8132*AB8132/(1-$W8132)","v":{"v":25779.108680814305,"d":"25,779"}},null,{"v":2E-3,"d":"0.20%"},{"$f":"Actif!$E$28/100","v":{"v":0.28900000000000003,"d":"28.90%"}},{"$f":"Actif!$E$30/100","v":{"v":0.09050000000000001,"d":"9.05%"}},{"$f":"Actif!$E$31/100","v":{"v":0.0605,"d":"6.05%"}},{"$f":"Actif!$E$32/100","v":{"v":0.47350000000000003,"d":"47.35%"}},{"$f":"Actif!$E$33/100","v":{"v":0.0585,"d":"5.85%"}},{"$f":"Actif!$E$29/100","v":{"v":0.027999999999999997,"d":"2.80%"}}]
[null,"#20",21,2031,"H","A_VIE",{"v":0.44999999999999996,"d":"0.45"},{"v":0.38999999999999996,"d":"0.39"},0.6,0.6,85,0,{"$f":"ROUND(Primes!$Q$4*V8133,0)","v":23},{"$f":"'BP Financier'!$G$33*(('BP Financier'!$C$16+'BP Financier'!$D$16+'BP Financier'!$E$16+'BP Financier'!$F$16+'BP Financier'!$G$16)/('BP Financier'!$C$16+'BP Financier'!$C$19+'BP Financier'!$D$16+'BP Financier'!$D$19+'BP Financier'!$E$16+'BP Financier'!$E$19+'BP Financier'!$F$16+'BP Financier'!$F$19+'BP Financier'!$G$19+'BP Financier'!$G$16))*V8133","v":{"v":1140557.348637567,"d":"1,140,557"}},{"v":654605.2240021062,"d":"654,605"},{"$f":"'BP Financier'!$G$44*(('BP Financier'!$C$16+'BP Financier'!$D$16+'BP Financier'!$E$16+'BP Financier'!$F$16+'BP Financier'!$G$16)/('BP Financier'!$C$16+'BP Financier'!$C$19+'BP Financier'!$D$16+'BP Financier'!$D$19+'BP Financier'!$E$16+'BP Financier'!$E$19+'BP Financier'!$C$22+'BP Financier'!$D$22+'BP Financier'!$E$22+'BP Financier'!$F$16+'BP Financier'!$F$19+'BP Financier'!$F$22+'BP Financier'!$G$16+'BP Financier'!$G$19+'BP Financier'!$G$22))*$V8133*X8133/(1-$W8133)","v":{"v":83321.76198620339,"d":"83,322"}},{"$f":"'BP Financier'!$G$44*(('BP Financier'!$C$16+'BP Financier'!$D$16+'BP Financier'!$E$16+'BP Financier'!$F$16+'BP Financier'!$G$16)/('BP Financier'!$C$16+'BP Financier'!$C$19+'BP Financier'!$D$16+'BP Financier'!$D$19+'BP Financier'!$E$16+'BP Financier'!$E$19+'BP Financier'!$C$22+'BP Financier'!$D$22+'BP Financier'!$E$22+'BP Financier'!$F$16+'BP Financier'!$F$19+'BP Financier'!$F$22+'BP Financier'!$G$16+'BP Financier'!$G$19+'BP Financier'!$G$22))*$V8133*Y8133/(1-$W8133)","v":{"v":55701.28839961663,"d":"55,701"}},{"$f":"'BP Financier'!$G$44*(('BP Financier'!$C$16+'BP Financier'!$D$16+'BP Financier'!$E$16+'BP Financier'!$F$16+'BP Financier'!$G$16)/('BP Financier'!$C$16+'BP Financier'!$C$19+'BP Financier'!$D$16+'BP Financier'!$D$19+'BP Financier'!$E$16+'BP Financier'!$E$19+'BP Financier'!$C$22+'BP Financier'!$D$22+'BP Financier'!$E$22+'BP Financier'!$F$16+'BP Financier'!$F$19+'BP Financier'!$F$22+'BP Financier'!$G$16+'BP Financier'!$G$19+'BP Financier'!$G$22))*$V8133*Z8133/(1-$W8133)","v":{"v":435943.1414416277,"d":"435,943"}},{"$f":"'BP Financier'!$G$44*(('BP Financier'!$C$16+'BP Financier'!$D$16+'BP Financier'!$E$16+'BP Financier'!$F$16+'BP Financier'!$G$16)/('BP Financier'!$C$16+'BP Financier'!$C$19+'BP Financier'!$D$16+'BP Financier'!$D$19+'BP Financier'!$E$16+'BP Financier'!$E$19+'BP Financier'!$C$22+'BP Financier'!$D$22+'BP Financier'!$E$22+'BP Financier'!$F$16+'BP Financier'!$F$19+'BP Financier'!$F$22+'BP Financier'!$G$16+'BP Financier'!$G$19+'BP Financier'!$G$22))*$V8133*AA8133/(1-$W8133)","v":{"v":53859.92349384418,"d":"53,860"}},{"$f":"'BP Financier'!$G$44*(('BP Financier'!$C$16+'BP Financier'!$D$16+'BP Financier'!$E$16+'BP Financier'!$F$16+'BP Financier'!$G$16)/('BP Financier'!$C$16+'BP Financier'!$C$19+'BP Financier'!$D$16+'BP Financier'!$D$19+'BP Financier'!$E$16+'BP Financier'!$E$19+'BP Financier'!$C$22+'BP Financier'!$D$22+'BP Financier'!$E$22+'BP Financier'!$F$16+'BP Financier'!$F$19+'BP Financier'!$F$22+'BP Financier'!$G$16+'BP Financier'!$G$19+'BP Financier'!$G$22))*$V8133*AB8133/(1-$W8133)","v":{"v":25779.108680814305,"d":"25,779"}},null,{"v":2E-3,"d":"0.20%"},{"$f":"Actif!$E$28/100","v":{"v":0.28900000000000003,"d":"28.90%"}},{"$f":"Actif!$E$30/100","v":{"v":0.09050000000000001,"d":"9.05%"}},{"$f":"Actif!$E$31/100","v":{"v":0.0605,"d":"6.05%"}},{"$f":"Actif!$E$32/100","v":{"v":0.47350000000000003,"d":"47.35%"}},{"$f":"Actif!$E$33/100","v":{"v":0.0585,"d":"5.85%"}},{"$f":"Actif!$E$29/100","v":{"v":0.027999999999999997,"d":"2.80%"}}]
[null,"#21",22,2026,"H","A_VIE",{"v":0.44999999999999996,"d":"0.45"},{"v":0.38999999999999996,"d":"0.39"},0.6,0.6,85,0,{"$f":"ROUND(Primes!$Q$4*V8134,0)","v":23},{"$f":"'BP Financier'!$G$33*(('BP Financier'!$C$16+'BP Financier'!$D$16+'BP Financier'!$E$16+'BP Financier'!$F$16+'BP Financier'!$G$16)/('BP Financier'!$C$16+'BP Financier'!$C$19+'BP Financier'!$D$16+'BP Financier'!$D$19+'BP Financier'!$E$16+'BP Financier'!$E$19+'BP Financier'!$F$16+'BP Financier'!$F$19+'BP Financier'!$G$19+'BP Financier'!$G$16))*V8134","v":{"v":1140557.348637567,"d":"1,140,557"}},{"v":654605.2240021062,"d":"654,605"},{"$f":"'BP Financier'!$G$44*(('BP Financier'!$C$16+'BP Financier'!$D$16+'BP Financier'!$E$16+'BP Financier'!$F$16+'BP Financier'!$G$16)/('BP Financier'!$C$16+'BP Financier'!$C$19+'BP Financier'!$D$16+'BP Financier'!$D$19+'BP Financier'!$E$16+'BP Financier'!$E$19+'BP Financier'!$C$22+'BP Financier'!$D$22+'BP Financier'!$E$22+'BP Financier'!$F$16+'BP Financier'!$F$19+'BP Financier'!$F$22+'BP Financier'!$G$16+'BP Financier'!$G$19+'BP Financier'!$G$22))*$V8134*X8134/(1-$W8134)","v":{"v":83321.76198620339,"d":"83,322"}},{"$f":"'BP Financier'!$G$44*(('BP Financier'!$C$16+'BP Financier'!$D$16+'BP Financier'!$E$16+'BP Financier'!$F$16+'BP Financier'!$G$16)/('BP Financier'!$C$16+'BP Financier'!$C$19+'BP Financier'!$D$16+'BP Financier'!$D$19+'BP Financier'!$E$16+'BP Financier'!$E$19+'BP Financier'!$C$22+'BP Financier'!$D$22+'BP Financier'!$E$22+'BP Financier'!$F$16+'BP Financier'!$F$19+'BP Financier'!$F$22+'BP Financier'!$G$16+'BP Financier'!$G$19+'BP Financier'!$G$22))*$V8134*Y8134/(1-$W8134)","v":{"v":55701.28839961663,"d":"55,701"}},{"$f":"'BP Financier'!$G$44*(('BP Financier'!$C$16+'BP Financier'!$D$16+'BP Financier'!$E$16+'BP Financier'!$F$16+'BP Financier'!$G$16)/('BP Financier'!$C$16+'BP Financier'!$C$19+'BP Financier'!$D$16+'BP Financier'!$D$19+'BP Financier'!$E$16+'BP Financier'!$E$19+'BP Financier'!$C$22+'BP Financier'!$D$22+'BP Financier'!$E$22+'BP Financier'!$F$16+'BP Financier'!$F$19+'BP Financier'!$F$22+'BP Financier'!$G$16+'BP Financier'!$G$19+'BP Financier'!$G$22))*$V8134*Z8134/(1-$W8134)","v":{"v":435943.1414416277,"d":"435,943"}},{"$f":"'BP Financier'!$G$44*(('BP Financier'!$C$16+'BP Financier'!$D$16+'BP Financier'!$E$16+'BP Financier'!$F$16+'BP Financier'!$G$16)/('BP Financier'!$C$16+'BP Financier'!$C$19+'BP Financier'!$D$16+'BP Financier'!$D$19+'BP Financier'!$E$16+'BP Financier'!$E$19+'BP Financier'!$C$22+'BP Financier'!$D$22+'BP Financier'!$E$22+'BP Financier'!$F$16+'BP Financier'!$F$19+'BP Financier'!$F$22+'BP Financier'!$G$16+'BP Financier'!$G$19+'BP Financier'!$G$22))*$V8134*AA8134/(1-$W8134)","v":{"v":53859.92349384418,"d":"53,860"}},{"$f":"'BP Financier'!$G$44*(('BP Financier'!$C$16+'BP Financier'!$D$16+'BP Financier'!$E$16+'BP Financier'!$F$16+'BP Financier'!$G$16)/('BP Financier'!$C$16+'BP Financier'!$C$19+'BP Financier'!$D$16+'BP Financier'!$D$19+'BP Financier'!$E$16+'BP Financier'!$E$19+'BP Financier'!$C$22+'BP Financier'!$D$22+'BP Financier'!$E$22+'BP Financier'!$F$16+'BP Financier'!$F$19+'BP Financier'!$F$22+'BP Financier'!$G$16+'BP Financier'!$G$19+'BP Financier'!$G$22))*$V8134*AB8134/(1-$W8134)","v":{"v":25779.108680814305,"d":"25,779"}},null,{"v":2E-3,"d":"0.20%"},{"$f":"Actif!$E$28/100","v":{"v":0.28900000000000003,"d":"28.90%"}},{"$f":"Actif!$E$30/100","v":{"v":0.09050000000000001,"d":"9.05%"}},{"$f":"Actif!$E$31/100","v":{"v":0.0605,"d":"6.05%"}},{"$f":"Actif!$E$32/100","v":{"v":0.47350000000000003,"d":"47.35%"}},{"$f":"Actif!$E$33/100","v":{"v":0.0585,"d":"5.85%"}},{"$f":"Actif!$E$29/100","v":{"v":0.027999999999999997,"d":"2.80%"}}]
[null,"#22",22,2028,"H","A_VIE",{"v":0.44999999999999996,"d":"0.45"},{"v":0.38999999999999996,"d":"0.39"},0.6,0.6,85,0,{"$f":"ROUND(Primes!$Q$4*V8135,0)","v":23},{"$f":"'BP Financier'!$G$33*(('BP Financier'!$C$16+'BP Financier'!$D$16+'BP Financier'!$E$16+'BP Financier'!$F$16+'BP Financier'!$G$16)/('BP Financier'!$C$16+'BP Financier'!$C$19+'BP Financier'!$D$16+'BP Financier'!$D$19+'BP Financier'!$E$16+'BP Financier'!$E$19+'BP Financier'!$F$16+'BP Financier'!$F$19+'BP Financier'!$G$19+'BP Financier'!$G$16))*V8135","v":{"v":1140557.348637567,"d":"1,140,557"}},{"v":654605.2240021062,"d":"654,605"},{"$f":"'BP Financier'!$G$44*(('BP Financier'!$C$16+'BP Financier'!$D$16+'BP Financier'!$E$16+'BP Financier'!$F$16+'BP Financier'!$G$16)/('BP Financier'!$C$16+'BP Financier'!$C$19+'BP Financier'!$D$16+'BP Financier'!$D$19+'BP Financier'!$E$16+'BP Financier'!$E$19+'BP Financier'!$C$22+'BP Financier'!$D$22+'BP Financier'!$E$22+'BP Financier'!$F$16+'BP Financier'!$F$19+'BP Financier'!$F$22+'BP Financier'!$G$16+'BP Financier'!$G$19+'BP Financier'!$G$22))*$V8135*X8135/(1-$W8135)","v":{"v":83321.76198620339,"d":"83,322"}},{"$f":"'BP Financier'!$G$44*(('BP Financier'!$C$16+'BP Financier'!$D$16+'BP Financier'!$E$16+'BP Financier'!$F$16+'BP Financier'!$G$16)/('BP Financier'!$C$16+'BP Financier'!$C$19+'BP Financier'!$D$16+'BP Financier'!$D$19+'BP Financier'!$E$16+'BP Financier'!$E$19+'BP Financier'!$C$22+'BP Financier'!$D$22+'BP Financier'!$E$22+'BP Financier'!$F$16+'BP Financier'!$F$19+'BP Financier'!$F$22+'BP Financier'!$G$16+'BP Financier'!$G$19+'BP Financier'!$G$22))*$V8135*Y8135/(1-$W8135)","v":{"v":55701.28839961663,"d":"55,701"}},{"$f":"'BP Financier'!$G$44*(('BP Financier'!$C$16+'BP Financier'!$D$16+'BP Financier'!$E$16+'BP Financier'!$F$16+'BP Financier'!$G$16)/('BP Financier'!$C$16+'BP Financier'!$C$19+'BP Financier'!$D$16+'BP Financier'!$D$19+'BP Financier'!$E$16+'BP Financier'!$E$19+'BP Financier'!$C$22+'BP Financier'!$D$22+'BP Financier'!$E$22+'BP Financier'!$F$16+'BP Financier'!$F$19+'BP Financier'!$F$22+'BP Financier'!$G$16+'BP Financier'!$G$19+'BP Financier'!$G$22))*$V8135*Z8135/(1-$W8135)","v":{"v":435943.1414416277,"d":"435,943"}},{"$f":"'BP Financier'!$G$44*(('BP Financier'!$C$16+'BP Financier'!$D$16+'BP Financier'!$E$16+'BP Financier'!$F$16+'BP Financier'!$G$16)/('BP Financier'!$C$16+'BP Financier'!$C$19+'BP Financier'!$D$16+'BP Financier'!$D$19+'BP Financier'!$E$16+'BP Financier'!$E$19+'BP Financier'!$C$22+'BP Financier'!$D$22+'BP Financier'!$E$22+'BP Financier'!$F$16+'BP Financier'!$F$19+'BP Financier'!$F$22+'BP Financier'!$G$16+'BP Financier'!$G$19+'BP Financier'!$G$22))*$V8135*AA8135/(1-$W8135)","v":{"v":53859.92349384418,"d":"53,860"}},{"$f":"'BP Financier'!$G$44*(('BP Financier'!$C$16+'BP Financier'!$D$16+'BP Financier'!$E$16+'BP Financier'!$F$16+'BP Financier'!$G$16)/('BP Financier'!$C$16+'BP Financier'!$C$19+'BP Financier'!$D$16+'BP Financier'!$D$19+'BP Financier'!$E$16+'BP Financier'!$E$19+'BP Financier'!$C$22+'BP Financier'!$D$22+'BP Financier'!$E$22+'BP Financier'!$F$16+'BP Financier'!$F$19+'BP Financier'!$F$22+'BP Financier'!$G$16+'BP Financier'!$G$19+'BP Financier'!$G$22))*$V8135*AB8135/(1-$W8135)","v":{"v":25779.108680814305,"d":"25,779"}},null,{"v":2E-3,"d":"0.20%"},{"$f":"Actif!$E$28/100","v":{"v":0.28900000000000003,"d":"28.90%"}},{"$f":"Actif!$E$30/100","v":{"v":0.09050000000000001,"d":"9.05%"}},{"$f":"Actif!$E$31/100","v":{"v":0.0605,"d":"6.05%"}},{"$f":"Actif!$E$32/100","v":{"v":0.47350000000000003,"d":"47.35%"}},{"$f":"Actif!$E$33/100","v":{"v":0.0585,"d":"5.85%"}},{"$f":"Actif!$E$29/100","v":{"v":0.027999999999999997,"d":"2.80%"}}]
[null,"#23",22,2029,"H","A_VIE",{"v":0.44999999999999996,"d":"0.45"},{"v":0.38999999999999996,"d":"0.39"},0.6,0.6,85,0,{"$f":"ROUND(Primes!$Q$4*V8136,0)","v":23},{"$f":"'BP Financier'!$G$33*(('BP Financier'!$C$16+'BP Financier'!$D$16+'BP Financier'!$E$16+'BP Financier'!$F$16+'BP Financier'!$G$16)/('BP Financier'!$C$16+'BP Financier'!$C$19+'BP Financier'!$D$16+'BP Financier'!$D$19+'BP Financier'!$E$16+'BP Financier'!$E$19+'BP Financier'!$F$16+'BP Financier'!$F$19+'BP Financier'!$G$19+'BP Financier'!$G$16))*V8136","v":{"v":1140557.348637567,"d":"1,140,557"}},{"v":654605.2240021062,"d":"654,605"},{"$f":"'BP Financier'!$G$44*(('BP Financier'!$C$16+'BP Financier'!$D$16+'BP Financier'!$E$16+'BP Financier'!$F$16+'BP Financier'!$G$16)/('BP Financier'!$C$16+'BP Financier'!$C$19+'BP Financier'!$D$16+'BP Financier'!$D$19+'BP Financier'!$E$16+'BP Financier'!$E$19+'BP Financier'!$C$22+'BP Financier'!$D$22+'BP Financier'!$E$22+'BP Financier'!$F$16+'BP Financier'!$F$19+'BP Financier'!$F$22+'BP Financier'!$G$16+'BP Financier'!$G$19+'BP Financier'!$G$22))*$V8136*X8136/(1-$W8136)","v":{"v":83321.76198620339,"d":"83,322"}},{"$f":"'BP Financier'!$G$44*(('BP Financier'!$C$16+'BP Financier'!$D$16+'BP Financier'!$E$16+'BP Financier'!$F$16+'BP Financier'!$G$16)/('BP Financier'!$C$16+'BP Financier'!$C$19+'BP Financier'!$D$16+'BP Financier'!$D$19+'BP Financier'!$E$16+'BP Financier'!$E$19+'BP Financier'!$C$22+'BP Financier'!$D$22+'BP Financier'!$E$22+'BP Financier'!$F$16+'BP Financier'!$F$19+'BP Financier'!$F$22+'BP Financier'!$G$16+'BP Financier'!$G$19+'BP Financier'!$G$22))*$V8136*Y8136/(1-$W8136)","v":{"v":55701.28839961663,"d":"55,701"}},{"$f":"'BP Financier'!$G$44*(('BP Financier'!$C$16+'BP Financier'!$D$16+'BP Financier'!$E$16+'BP Financier'!$F$16+'BP Financier'!$G$16)/('BP Financier'!$C$16+'BP Financier'!$C$19+'BP Financier'!$D$16+'BP Financier'!$D$19+'BP Financier'!$E$16+'BP Financier'!$E$19+'BP Financier'!$C$22+'BP Financier'!$D$22+'BP Financier'!$E$22+'BP Financier'!$F$16+'BP Financier'!$F$19+'BP Financier'!$F$22+'BP Financier'!$G$16+'BP Financier'!$G$19+'BP Financier'!$G$22))*$V8136*Z8136/(1-$W8136)","v":{"v":435943.1414416277,"d":"435,943"}},{"$f":"'BP Financier'!$G$44*(('BP Financier'!$C$16+'BP Financier'!$D$16+'BP Financier'!$E$16+'BP Financier'!$F$16+'BP Financier'!$G$16)/('BP Financier'!$C$16+'BP Financier'!$C$19+'BP Financier'!$D$16+'BP Financier'!$D$19+'BP Financier'!$E$16+'BP Financier'!$E$19+'BP Financier'!$C$22+'BP Financier'!$D$22+'BP Financier'!$E$22+'BP Financier'!$F$16+'BP Financier'!$F$19+'BP Financier'!$F$22+'BP Financier'!$G$16+'BP Financier'!$G$19+'BP Financier'!$G$22))*$V8136*AA8136/(1-$W8136)","v":{"v":53859.92349384418,"d":"53,860"}},{"$f":"'BP Financier'!$G$44*(('BP Financier'!$C$16+'BP Financier'!$D$16+'BP Financier'!$E$16+'BP Financier'!$F$16+'BP Financier'!$G$16)/('BP Financier'!$C$16+'BP Financier'!$C$19+'BP Financier'!$D$16+'BP Financier'!$D$19+'BP Financier'!$E$16+'BP Financier'!$E$19+'BP Financier'!$C$22+'BP Financier'!$D$22+'BP Financier'!$E$22+'BP Financier'!$F$16+'BP Financier'!$F$19+'BP Financier'!$F$22+'BP Financier'!$G$16+'BP Financier'!$G$19+'BP Financier'!$G$22))*$V8136*AB8136/(1-$W8136)","v":{"v":25779.108680814305,"d":"25,779"}},null,{"v":2E-3,"d":"0.20%"},{"$f":"Actif!$E$28/100","v":{"v":0.28900000000000003,"d":"28.90%"}},{"$f":"Actif!$E$30/100","v":{"v":0.09050000000000001,"d":"9.05%"}},{"$f":"Actif!$E$31/100","v":{"v":0.0605,"d":"6.05%"}},{"$f":"Actif!$E$32/100","v":{"v":0.47350000000000003,"d":"47.35%"}},{"$f":"Actif!$E$33/100","v":{"v":0.0585,"d":"5.85%"}},{"$f":"Actif!$E$29/100","v":{"v":0.027999999999999997,"d":"2.80%"}}]
[null,"#24",22,2030,"H","A_VIE",{"v":0.44999999999999996,"d":"0.45"},{"v":0.38999999999999996,"d":"0.39"},0.6,0.6,85,0,{"$f":"ROUND(Primes!$Q$4*V8137,0)","v":23},{"$f":"'BP Financier'!$G$33*(('BP Financier'!$C$16+'BP Financier'!$D$16+'BP Financier'!$E$16+'BP Financier'!$F$16+'BP Financier'!$G$16)/('BP Financier'!$C$16+'BP Financier'!$C$19+'BP Financier'!$D$16+'BP Financier'!$D$19+'BP Financier'!$E$16+'BP Financier'!$E$19+'BP Financier'!$F$16+'BP Financier'!$F$19+'BP Financier'!$G$19+'BP Financier'!$G$16))*V8137","v":{"v":1140557.348637567,"d":"1,140,557"}},{"v":654605.2240021062,"d":"654,605"},{"$f":"'BP Financier'!$G$44*(('BP Financier'!$C$16+'BP Financier'!$D$16+'BP Financier'!$E$16+'BP Financier'!$F$16+'BP Financier'!$G$16)/('BP Financier'!$C$16+'BP Financier'!$C$19+'BP Financier'!$D$16+'BP Financier'!$D$19+'BP Financier'!$E$16+'BP Financier'!$E$19+'BP Financier'!$C$22+'BP Financier'!$D$22+'BP Financier'!$E$22+'BP Financier'!$F$16+'BP Financier'!$F$19+'BP Financier'!$F$22+'BP Financier'!$G$16+'BP Financier'!$G$19+'BP Financier'!$G$22))*$V8137*X8137/(1-$W8137)","v":{"v":83321.76198620339,"d":"83,322"}},{"$f":"'BP Financier'!$G$44*(('BP Financier'!$C$16+'BP Financier'!$D$16+'BP Financier'!$E$16+'BP Financier'!$F$16+'BP Financier'!$G$16)/('BP Financier'!$C$16+'BP Financier'!$C$19+'BP Financier'!$D$16+'BP Financier'!$D$19+'BP Financier'!$E$16+'BP Financier'!$E$19+'BP Financier'!$C$22+'BP Financier'!$D$22+'BP Financier'!$E$22+'BP Financier'!$F$16+'BP Financier'!$F$19+'BP Financier'!$F$22+'BP Financier'!$G$16+'BP Financier'!$G$19+'BP Financier'!$G$22))*$V8137*Y8137/(1-$W8137)","v":{"v":55701.28839961663,"d":"55,701"}},{"$f":"'BP Financier'!$G$44*(('BP Financier'!$C$16+'BP Financier'!$D$16+'BP Financier'!$E$16+'BP Financier'!$F$16+'BP Financier'!$G$16)/('BP Financier'!$C$16+'BP Financier'!$C$19+'BP Financier'!$D$16+'BP Financier'!$D$19+'BP Financier'!$E$16+'BP Financier'!$E$19+'BP Financier'!$C$22+'BP Financier'!$D$22+'BP Financier'!$E$22+'BP Financier'!$F$16+'BP Financier'!$F$19+'BP Financier'!$F$22+'BP Financier'!$G$16+'BP Financier'!$G$19+'BP Financier'!$G$22))*$V8137*Z8137/(1-$W8137)","v":{"v":435943.1414416277,"d":"435,943"}},{"$f":"'BP Financier'!$G$44*(('BP Financier'!$C$16+'BP Financier'!$D$16+'BP Financier'!$E$16+'BP Financier'!$F$16+'BP Financier'!$G$16)/('BP Financier'!$C$16+'BP Financier'!$C$19+'BP Financier'!$D$16+'BP Financier'!$D$19+'BP Financier'!$E$16+'BP Financier'!$E$19+'BP Financier'!$C$22+'BP Financier'!$D$22+'BP Financier'!$E$22+'BP Financier'!$F$16+'BP Financier'!$F$19+'BP Financier'!$F$22+'BP Financier'!$G$16+'BP Financier'!$G$19+'BP Financier'!$G$22))*$V8137*AA8137/(1-$W8137)","v":{"v":53859.92349384418,"d":"53,860"}},{"$f":"'BP Financier'!$G$44*(('BP Financier'!$C$16+'BP Financier'!$D$16+'BP Financier'!$E$16+'BP Financier'!$F$16+'BP Financier'!$G$16)/('BP Financier'!$C$16+'BP Financier'!$C$19+'BP Financier'!$D$16+'BP Financier'!$D$19+'BP Financier'!$E$16+'BP Financier'!$E$19+'BP Financier'!$C$22+'BP Financier'!$D$22+'BP Financier'!$E$22+'BP Financier'!$F$16+'BP Financier'!$F$19+'BP Financier'!$F$22+'BP Financier'!$G$16+'BP Financier'!$G$19+'BP Financier'!$G$22))*$V8137*AB8137/(1-$W8137)","v":{"v":25779.108680814305,"d":"25,779"}},null,{"v":2E-3,"d":"0.20%"},{"$f":"Actif!$E$28/100","v":{"v":0.28900000000000003,"d":"28.90%"}},{"$f":"Actif!$E$30/100","v":{"v":0.09050000000000001,"d":"9.05%"}},{"$f":"Actif!$E$31/100","v":{"v":0.0605,"d":"6.05%"}},{"$f":"Actif!$E$32/100","v":{"v":0.47350000000000003,"d":"47.35%"}},{"$f":"Actif!$E$33/100","v":{"v":0.0585,"d":"5.85%"}},{"$f":"Actif!$E$29/100","v":{"v":0.027999999999999997,"d":"2.80%"}}]
[null,"#25",22,2031,"H","A_VIE",{"v":0.44999999999999996,"d":"0.45"},{"v":0.38999999999999996,"d":"0.39"},0.6,0.6,85,0,{"$f":"ROUND(Primes!$Q$4*V8138,0)","v":23},{"$f":"'BP Financier'!$G$33*(('BP Financier'!$C$16+'BP Financier'!$D$16+'BP Financier'!$E$16+'BP Financier'!$F$16+'BP Financier'!$G$16)/('BP Financier'!$C$16+'BP Financier'!$C$19+'BP Financier'!$D$16+'BP Financier'!$D$19+'BP Financier'!$E$16+'BP Financier'!$E$19+'BP Financier'!$F$16+'BP Financier'!$F$19+'BP Financier'!$G$19+'BP Financier'!$G$16))*V8138","v":{"v":1140557.348637567,"d":"1,140,557"}},{"v":654605.2240021062,"d":"654,605"},{"$f":"'BP Financier'!$G$44*(('BP Financier'!$C$16+'BP Financier'!$D$16+'BP Financier'!$E$16+'BP Financier'!$F$16+'BP Financier'!$G$16)/('BP Financier'!$C$16+'BP Financier'!$C$19+'BP Financier'!$D$16+'BP Financier'!$D$19+'BP Financier'!$E$16+'BP Financier'!$E$19+'BP Financier'!$C$22+'BP Financier'!$D$22+'BP Financier'!$E$22+'BP Financier'!$F$16+'BP Financier'!$F$19+'BP Financier'!$F$22+'BP Financier'!$G$16+'BP Financier'!$G$19+'BP Financier'!$G$22))*$V8138*X8138/(1-$W8138)","v":{"v":83321.76198620339,"d":"83,322"}},{"$f":"'BP Financier'!$G$44*(('BP Financier'!$C$16+'BP Financier'!$D$16+'BP Financier'!$E$16+'BP Financier'!$F$16+'BP Financier'!$G$16)/('BP Financier'!$C$16+'BP Financier'!$C$19+'BP Financier'!$D$16+'BP Financier'!$D$19+'BP Financier'!$E$16+'BP Financier'!$E$19+'BP Financier'!$C$22+'BP Financier'!$D$22+'BP Financier'!$E$22+'BP Financier'!$F$16+'BP Financier'!$F$19+'BP Financier'!$F$22+'BP Financier'!$G$16+'BP Financier'!$G$19+'BP Financier'!$G$22))*$V8138*Y8138/(1-$W8138)","v":{"v":55701.28839961663,"d":"55,701"}},{"$f":"'BP Financier'!$G$44*(('BP Financier'!$C$16+'BP Financier'!$D$16+'BP Financier'!$E$16+'BP Financier'!$F$16+'BP Financier'!$G$16)/('BP Financier'!$C$16+'BP Financier'!$C$19+'BP Financier'!$D$16+'BP Financier'!$D$19+'BP Financier'!$E$16+'BP Financier'!$E$19+'BP Financier'!$C$22+'BP Financier'!$D$22+'BP Financier'!$E$22+'BP Financier'!$F$16+'BP Financier'!$F$19+'BP Financier'!$F$22+'BP Financier'!$G$16+'BP Financier'!$G$19+'BP Financier'!$G$22))*$V8138*Z8138/(1-$W8138)","v":{"v":435943.1414416277,"d":"435,943"}},{"$f":"'BP Financier'!$G$44*(('BP Financier'!$C$16+'BP Financier'!$D$16+'BP Financier'!$E$16+'BP Financier'!$F$16+'BP Financier'!$G$16)/('BP Financier'!$C$16+'BP Financier'!$C$19+'BP Financier'!$D$16+'BP Financier'!$D$19+'BP Financier'!$E$16+'BP Financier'!$E$19+'BP Financier'!$C$22+'BP Financier'!$D$22+'BP Financier'!$E$22+'BP Financier'!$F$16+'BP Financier'!$F$19+'BP Financier'!$F$22+'BP Financier'!$G$16+'BP Financier'!$G$19+'BP Financier'!$G$22))*$V8138*AA8138/(1-$W8138)","v":{"v":53859.92349384418,"d":"53,860"}},{"$f":"'BP Financier'!$G$44*(('BP Financier'!$C$16+'BP Financier'!$D$16+'BP Financier'!$E$16+'BP Financier'!$F$16+'BP Financier'!$G$16)/('BP Financier'!$C$16+'BP Financier'!$C$19+'BP Financier'!$D$16+'BP Financier'!$D$19+'BP Financier'!$E$16+'BP Financier'!$E$19+'BP Financier'!$C$22+'BP Financier'!$D$22+'BP Financier'!$E$22+'BP Financier'!$F$16+'BP Financier'!$F$19+'BP Financier'!$F$22+'BP Financier'!$G$16+'BP Financier'!$G$19+'BP Financier'!$G$22))*$V8138*AB8138/(1-$W8138)","v":{"v":25779.108680814305,"d":"25,779"}},null,{"v":2E-3,"d":"0.20%"},{"$f":"Actif!$E$28/100","v":{"v":0.28900000000000003,"d":"28.90%"}},{"$f":"Actif!$E$30/100","v":{"v":0.09050000000000001,"d":"9.05%"}},{"$f":"Actif!$E$31/100","v":{"v":0.0605,"d":"6.05%"}},{"$f":"Actif!$E$32/100","v":{"v":0.47350000000000003,"d":"47.35%"}},{"$f":"Actif!$E$33/100","v":{"v":0.0585,"d":"5.85%"}},{"$f":"Actif!$E$29/100","v":{"v":0.027999999999999997,"d":"2.80%"}}]
[null,"#26",23,2026,"F","A_VIE",{"v":0.44999999999999996,"d":"0.45"},{"v":0.38999999999999996,"d":"0.39"},0.6,0.6,85,0,{"$f":"ROUND(Primes!$Q$4*V8139,0)","v":23},{"$f":"'BP Financier'!$G$33*(('BP Financier'!$C$16+'BP Financier'!$D$16+'BP Financier'!$E$16+'BP Financier'!$F$16+'BP Financier'!$G$16)/('BP Financier'!$C$16+'BP Financier'!$C$19+'BP Financier'!$D$16+'BP Financier'!$D$19+'BP Financier'!$E$16+'BP Financier'!$E$19+'BP Financier'!$F$16+'BP Financier'!$F$19+'BP Financier'!$G$19+'BP Financier'!$G$16))*V8139","v":{"v":1140557.348637567,"d":"1,140,557"}},{"v":654605.2240021062,"d":"654,605"},{"$f":"'BP Financier'!$G$44*(('BP Financier'!$C$16+'BP Financier'!$D$16+'BP Financier'!$E$16+'BP Financier'!$F$16+'BP Financier'!$G$16)/('BP Financier'!$C$16+'BP Financier'!$C$19+'BP Financier'!$D$16+'BP Financier'!$D$19+'BP Financier'!$E$16+'BP Financier'!$E$19+'BP Financier'!$C$22+'BP Financier'!$D$22+'BP Financier'!$E$22+'BP Financier'!$F$16+'BP Financier'!$F$19+'BP Financier'!$F$22+'BP Financier'!$G$16+'BP Financier'!$G$19+'BP Financier'!$G$22))*$V8139*X8139/(1-$W8139)","v":{"v":83321.76198620339,"d":"83,322"}},{"$f":"'BP Financier'!$G$44*(('BP Financier'!$C$16+'BP Financier'!$D$16+'BP Financier'!$E$16+'BP Financier'!$F$16+'BP Financier'!$G$16)/('BP Financier'!$C$16+'BP Financier'!$C$19+'BP Financier'!$D$16+'BP Financier'!$D$19+'BP Financier'!$E$16+'BP Financier'!$E$19+'BP Financier'!$C$22+'BP Financier'!$D$22+'BP Financier'!$E$22+'BP Financier'!$F$16+'BP Financier'!$F$19+'BP Financier'!$F$22+'BP Financier'!$G$16+'BP Financier'!$G$19+'BP Financier'!$G$22))*$V8139*Y8139/(1-$W8139)","v":{"v":55701.28839961663,"d":"55,701"}},{"$f":"'BP Financier'!$G$44*(('BP Financier'!$C$16+'BP Financier'!$D$16+'BP Financier'!$E$16+'BP Financier'!$F$16+'BP Financier'!$G$16)/('BP Financier'!$C$16+'BP Financier'!$C$19+'BP Financier'!$D$16+'BP Financier'!$D$19+'BP Financier'!$E$16+'BP Financier'!$E$19+'BP Financier'!$C$22+'BP Financier'!$D$22+'BP Financier'!$E$22+'BP Financier'!$F$16+'BP Financier'!$F$19+'BP Financier'!$F$22+'BP Financier'!$G$16+'BP Financier'!$G$19+'BP Financier'!$G$22))*$V8139*Z8139/(1-$W8139)","v":{"v":435943.1414416277,"d":"435,943"}},{"$f":"'BP Financier'!$G$44*(('BP Financier'!$C$16+'BP Financier'!$D$16+'BP Financier'!$E$16+'BP Financier'!$F$16+'BP Financier'!$G$16)/('BP Financier'!$C$16+'BP Financier'!$C$19+'BP Financier'!$D$16+'BP Financier'!$D$19+'BP Financier'!$E$16+'BP Financier'!$E$19+'BP Financier'!$C$22+'BP Financier'!$D$22+'BP Financier'!$E$22+'BP Financier'!$F$16+'BP Financier'!$F$19+'BP Financier'!$F$22+'BP Financier'!$G$16+'BP Financier'!$G$19+'BP Financier'!$G$22))*$V8139*AA8139/(1-$W8139)","v":{"v":53859.92349384418,"d":"53,860"}},{"$f":"'BP Financier'!$G$44*(('BP Financier'!$C$16+'BP Financier'!$D$16+'BP Financier'!$E$16+'BP Financier'!$F$16+'BP Financier'!$G$16)/('BP Financier'!$C$16+'BP Financier'!$C$19+'BP Financier'!$D$16+'BP Financier'!$D$19+'BP Financier'!$E$16+'BP Financier'!$E$19+'BP Financier'!$C$22+'BP Financier'!$D$22+'BP Financier'!$E$22+'BP Financier'!$F$16+'BP Financier'!$F$19+'BP Financier'!$F$22+'BP Financier'!$G$16+'BP Financier'!$G$19+'BP Financier'!$G$22))*$V8139*AB8139/(1-$W8139)","v":{"v":25779.108680814305,"d":"25,779"}},null,{"v":2E-3,"d":"0.20%"},{"$f":"Actif!$E$28/100","v":{"v":0.28900000000000003,"d":"28.90%"}},{"$f":"Actif!$E$30/100","v":{"v":0.09050000000000001,"d":"9.05%"}},{"$f":"Actif!$E$31/100","v":{"v":0.0605,"d":"6.05%"}},{"$f":"Actif!$E$32/100","v":{"v":0.47350000000000003,"d":"47.35%"}},{"$f":"Actif!$E$33/100","v":{"v":0.0585,"d":"5.85%"}},{"$f":"Actif!$E$29/100","v":{"v":0.027999999999999997,"d":"2.80%"}}]
[null,"#27",23,2028,"F","A_VIE",{"v":0.44999999999999996,"d":"0.45"},{"v":0.38999999999999996,"d":"0.39"},0.6,0.6,85,0,{"$f":"ROUND(Primes!$Q$4*V8140,0)","v":23},{"$f":"'BP Financier'!$G$33*(('BP Financier'!$C$16+'BP Financier'!$D$16+'BP Financier'!$E$16+'BP Financier'!$F$16+'BP Financier'!$G$16)/('BP Financier'!$C$16+'BP Financier'!$C$19+'BP Financier'!$D$16+'BP Financier'!$D$19+'BP Financier'!$E$16+'BP Financier'!$E$19+'BP Financier'!$F$16+'BP Financier'!$F$19+'BP Financier'!$G$19+'BP Financier'!$G$16))*V8140","v":{"v":1140557.348637567,"d":"1,140,557"}},{"v":654605.2240021062,"d":"654,605"},{"$f":"'BP Financier'!$G$44*(('BP Financier'!$C$16+'BP Financier'!$D$16+'BP Financier'!$E$16+'BP Financier'!$F$16+'BP Financier'!$G$16)/('BP Financier'!$C$16+'BP Financier'!$C$19+'BP Financier'!$D$16+'BP Financier'!$D$19+'BP Financier'!$E$16+'BP Financier'!$E$19+'BP Financier'!$C$22+'BP Financier'!$D$22+'BP Financier'!$E$22+'BP Financier'!$F$16+'BP Financier'!$F$19+'BP Financier'!$F$22+'BP Financier'!$G$16+'BP Financier'!$G$19+'BP Financier'!$G$22))*$V8140*X8140/(1-$W8140)","v":{"v":83321.76198620339,"d":"83,322"}},{"$f":"'BP Financier'!$G$44*(('BP Financier'!$C$16+'BP Financier'!$D$16+'BP Financier'!$E$16+'BP Financier'!$F$16+'BP Financier'!$G$16)/('BP Financier'!$C$16+'BP Financier'!$C$19+'BP Financier'!$D$16+'BP Financier'!$D$19+'BP Financier'!$E$16+'BP Financier'!$E$19+'BP Financier'!$C$22+'BP Financier'!$D$22+'BP Financier'!$E$22+'BP Financier'!$F$16+'BP Financier'!$F$19+'BP Financier'!$F$22+'BP Financier'!$G$16+'BP Financier'!$G$19+'BP Financier'!$G$22))*$V8140*Y8140/(1-$W8140)","v":{"v":55701.28839961663,"d":"55,701"}},{"$f":"'BP Financier'!$G$44*(('BP Financier'!$C$16+'BP Financier'!$D$16+'BP Financier'!$E$16+'BP Financier'!$F$16+'BP Financier'!$G$16)/('BP Financier'!$C$16+'BP Financier'!$C$19+'BP Financier'!$D$16+'BP Financier'!$D$19+'BP Financier'!$E$16+'BP Financier'!$E$19+'BP Financier'!$C$22+'BP Financier'!$D$22+'BP Financier'!$E$22+'BP Financier'!$F$16+'BP Financier'!$F$19+'BP Financier'!$F$22+'BP Financier'!$G$16+'BP Financier'!$G$19+'BP Financier'!$G$22))*$V8140*Z8140/(1-$W8140)","v":{"v":435943.1414416277,"d":"435,943"}},{"$f":"'BP Financier'!$G$44*(('BP Financier'!$C$16+'BP Financier'!$D$16+'BP Financier'!$E$16+'BP Financier'!$F$16+'BP Financier'!$G$16)/('BP Financier'!$C$16+'BP Financier'!$C$19+'BP Financier'!$D$16+'BP Financier'!$D$19+'BP Financier'!$E$16+'BP Financier'!$E$19+'BP Financier'!$C$22+'BP Financier'!$D$22+'BP Financier'!$E$22+'BP Financier'!$F$16+'BP Financier'!$F$19+'BP Financier'!$F$22+'BP Financier'!$G$16+'BP Financier'!$G$19+'BP Financier'!$G$22))*$V8140*AA8140/(1-$W8140)","v":{"v":53859.92349384418,"d":"53,860"}},{"$f":"'BP Financier'!$G$44*(('BP Financier'!$C$16+'BP Financier'!$D$16+'BP Financier'!$E$16+'BP Financier'!$F$16+'BP Financier'!$G$16)/('BP Financier'!$C$16+'BP Financier'!$C$19+'BP Financier'!$D$16+'BP Financier'!$D$19+'BP Financier'!$E$16+'BP Financier'!$E$19+'BP Financier'!$C$22+'BP Financier'!$D$22+'BP Financier'!$E$22+'BP Financier'!$F$16+'BP Financier'!$F$19+'BP Financier'!$F$22+'BP Financier'!$G$16+'BP Financier'!$G$19+'BP Financier'!$G$22))*$V8140*AB8140/(1-$W8140)","v":{"v":25779.108680814305,"d":"25,779"}},null,{"v":2E-3,"d":"0.20%"},{"$f":"Actif!$E$28/100","v":{"v":0.28900000000000003,"d":"28.90%"}},{"$f":"Actif!$E$30/100","v":{"v":0.09050000000000001,"d":"9.05%"}},{"$f":"Actif!$E$31/100","v":{"v":0.0605,"d":"6.05%"}},{"$f":"Actif!$E$32/100","v":{"v":0.47350000000000003,"d":"47.35%"}},{"$f":"Actif!$E$33/100","v":{"v":0.0585,"d":"5.85%"}},{"$f":"Actif!$E$29/100","v":{"v":0.027999999999999997,"d":"2.80%"}}]
[null,"#28",23,2029,"F","A_VIE",{"v":0.44999999999999996,"d":"0.45"},{"v":0.38999999999999996,"d":"0.39"},0.6,0.6,85,0,{"$f":"ROUND(Primes!$Q$4*V8141,0)","v":23},{"$f":"'BP Financier'!$G$33*(('BP Financier'!$C$16+'BP Financier'!$D$16+'BP Financier'!$E$16+'BP Financier'!$F$16+'BP Financier'!$G$16)/('BP Financier'!$C$16+'BP Financier'!$C$19+'BP Financier'!$D$16+'BP Financier'!$D$19+'BP Financier'!$E$16+'BP Financier'!$E$19+'BP Financier'!$F$16+'BP Financier'!$F$19+'BP Financier'!$G$19+'BP Financier'!$G$16))*V8141","v":{"v":1140557.348637567,"d":"1,140,557"}},{"v":654605.2240021062,"d":"654,605"},{"$f":"'BP Financier'!$G$44*(('BP Financier'!$C$16+'BP Financier'!$D$16+'BP Financier'!$E$16+'BP Financier'!$F$16+'BP Financier'!$G$16)/('BP Financier'!$C$16+'BP Financier'!$C$19+'BP Financier'!$D$16+'BP Financier'!$D$19+'BP Financier'!$E$16+'BP Financier'!$E$19+'BP Financier'!$C$22+'BP Financier'!$D$22+'BP Financier'!$E$22+'BP Financier'!$F$16+'BP Financier'!$F$19+'BP Financier'!$F$22+'BP Financier'!$G$16+'BP Financier'!$G$19+'BP Financier'!$G$22))*$V8141*X8141/(1-$W8141)","v":{"v":83321.76198620339,"d":"83,322"}},{"$f":"'BP Financier'!$G$44*(('BP Financier'!$C$16+'BP Financier'!$D$16+'BP Financier'!$E$16+'BP Financier'!$F$16+'BP Financier'!$G$16)/('BP Financier'!$C$16+'BP Financier'!$C$19+'BP Financier'!$D$16+'BP Financier'!$D$19+'BP Financier'!$E$16+'BP Financier'!$E$19+'BP Financier'!$C$22+'BP Financier'!$D$22+'BP Financier'!$E$22+'BP Financier'!$F$16+'BP Financier'!$F$19+'BP Financier'!$F$22+'BP Financier'!$G$16+'BP Financier'!$G$19+'BP Financier'!$G$22))*$V8141*Y8141/(1-$W8141)","v":{"v":55701.28839961663,"d":"55,701"}},{"$f":"'BP Financier'!$G$44*(('BP Financier'!$C$16+'BP Financier'!$D$16+'BP Financier'!$E$16+'BP Financier'!$F$16+'BP Financier'!$G$16)/('BP Financier'!$C$16+'BP Financier'!$C$19+'BP Financier'!$D$16+'BP Financier'!$D$19+'BP Financier'!$E$16+'BP Financier'!$E$19+'BP Financier'!$C$22+'BP Financier'!$D$22+'BP Financier'!$E$22+'BP Financier'!$F$16+'BP Financier'!$F$19+'BP Financier'!$F$22+'BP Financier'!$G$16+'BP Financier'!$G$19+'BP Financier'!$G$22))*$V8141*Z8141/(1-$W8141)","v":{"v":435943.1414416277,"d":"435,943"}},{"$f":"'BP Financier'!$G$44*(('BP Financier'!$C$16+'BP Financier'!$D$16+'BP Financier'!$E$16+'BP Financier'!$F$16+'BP Financier'!$G$16)/('BP Financier'!$C$16+'BP Financier'!$C$19+'BP Financier'!$D$16+'BP Financier'!$D$19+'BP Financier'!$E$16+'BP Financier'!$E$19+'BP Financier'!$C$22+'BP Financier'!$D$22+'BP Financier'!$E$22+'BP Financier'!$F$16+'BP Financier'!$F$19+'BP Financier'!$F$22+'BP Financier'!$G$16+'BP Financier'!$G$19+'BP Financier'!$G$22))*$V8141*AA8141/(1-$W8141)","v":{"v":53859.92349384418,"d":"53,860"}},{"$f":"'BP Financier'!$G$44*(('BP Financier'!$C$16+'BP Financier'!$D$16+'BP Financier'!$E$16+'BP Financier'!$F$16+'BP Financier'!$G$16)/('BP Financier'!$C$16+'BP Financier'!$C$19+'BP Financier'!$D$16+'BP Financier'!$D$19+'BP Financier'!$E$16+'BP Financier'!$E$19+'BP Financier'!$C$22+'BP Financier'!$D$22+'BP Financier'!$E$22+'BP Financier'!$F$16+'BP Financier'!$F$19+'BP Financier'!$F$22+'BP Financier'!$G$16+'BP Financier'!$G$19+'BP Financier'!$G$22))*$V8141*AB8141/(1-$W8141)","v":{"v":25779.108680814305,"d":"25,779"}},null,{"v":2E-3,"d":"0.20%"},{"$f":"Actif!$E$28/100","v":{"v":0.28900000000000003,"d":"28.90%"}},{"$f":"Actif!$E$30/100","v":{"v":0.09050000000000001,"d":"9.05%"}},{"$f":"Actif!$E$31/100","v":{"v":0.0605,"d":"6.05%"}},{"$f":"Actif!$E$32/100","v":{"v":0.47350000000000003,"d":"47.35%"}},{"$f":"Actif!$E$33/100","v":{"v":0.0585,"d":"5.85%"}},{"$f":"Actif!$E$29/100","v":{"v":0.027999999999999997,"d":"2.80%"}}]
[null,"#29",23,2030,"F","A_VIE",{"v":0.44999999999999996,"d":"0.45"},{"v":0.38999999999999996,"d":"0.39"},0.6,0.6,85,0,{"$f":"ROUND(Primes!$Q$4*V8142,0)","v":23},{"$f":"'BP Financier'!$G$33*(('BP Financier'!$C$16+'BP Financier'!$D$16+'BP Financier'!$E$16+'BP Financier'!$F$16+'BP Financier'!$G$16)/('BP Financier'!$C$16+'BP Financier'!$C$19+'BP Financier'!$D$16+'BP Financier'!$D$19+'BP Financier'!$E$16+'BP Financier'!$E$19+'BP Financier'!$F$16+'BP Financier'!$F$19+'BP Financier'!$G$19+'BP Financier'!$G$16))*V8142","v":{"v":1140557.348637567,"d":"1,140,557"}},{"v":654605.2240021062,"d":"654,605"},{"$f":"'BP Financier'!$G$44*(('BP Financier'!$C$16+'BP Financier'!$D$16+'BP Financier'!$E$16+'BP Financier'!$F$16+'BP Financier'!$G$16)/('BP Financier'!$C$16+'BP Financier'!$C$19+'BP Financier'!$D$16+'BP Financier'!$D$19+'BP Financier'!$E$16+'BP Financier'!$E$19+'BP Financier'!$C$22+'BP Financier'!$D$22+'BP Financier'!$E$22+'BP Financier'!$F$16+'BP Financier'!$F$19+'BP Financier'!$F$22+'BP Financier'!$G$16+'BP Financier'!$G$19+'BP Financier'!$G$22))*$V8142*X8142/(1-$W8142)","v":{"v":83321.76198620339,"d":"83,322"}},{"$f":"'BP Financier'!$G$44*(('BP Financier'!$C$16+'BP Financier'!$D$16+'BP Financier'!$E$16+'BP Financier'!$F$16+'BP Financier'!$G$16)/('BP Financier'!$C$16+'BP Financier'!$C$19+'BP Financier'!$D$16+'BP Financier'!$D$19+'BP Financier'!$E$16+'BP Financier'!$E$19+'BP Financier'!$C$22+'BP Financier'!$D$22+'BP Financier'!$E$22+'BP Financier'!$F$16+'BP Financier'!$F$19+'BP Financier'!$F$22+'BP Financier'!$G$16+'BP Financier'!$G$19+'BP Financier'!$G$22))*$V8142*Y8142/(1-$W8142)","v":{"v":55701.28839961663,"d":"55,701"}},{"$f":"'BP Financier'!$G$44*(('BP Financier'!$C$16+'BP Financier'!$D$16+'BP Financier'!$E$16+'BP Financier'!$F$16+'BP Financier'!$G$16)/('BP Financier'!$C$16+'BP Financier'!$C$19+'BP Financier'!$D$16+'BP Financier'!$D$19+'BP Financier'!$E$16+'BP Financier'!$E$19+'BP Financier'!$C$22+'BP Financier'!$D$22+'BP Financier'!$E$22+'BP Financier'!$F$16+'BP Financier'!$F$19+'BP Financier'!$F$22+'BP Financier'!$G$16+'BP Financier'!$G$19+'BP Financier'!$G$22))*$V8142*Z8142/(1-$W8142)","v":{"v":435943.1414416277,"d":"435,943"}},{"$f":"'BP Financier'!$G$44*(('BP Financier'!$C$16+'BP Financier'!$D$16+'BP Financier'!$E$16+'BP Financier'!$F$16+'BP Financier'!$G$16)/('BP Financier'!$C$16+'BP Financier'!$C$19+'BP Financier'!$D$16+'BP Financier'!$D$19+'BP Financier'!$E$16+'BP Financier'!$E$19+'BP Financier'!$C$22+'BP Financier'!$D$22+'BP Financier'!$E$22+'BP Financier'!$F$16+'BP Financier'!$F$19+'BP Financier'!$F$22+'BP Financier'!$G$16+'BP Financier'!$G$19+'BP Financier'!$G$22))*$V8142*AA8142/(1-$W8142)","v":{"v":53859.92349384418,"d":"53,860"}},{"$f":"'BP Financier'!$G$44*(('BP Financier'!$C$16+'BP Financier'!$D$16+'BP Financier'!$E$16+'BP Financier'!$F$16+'BP Financier'!$G$16)/('BP Financier'!$C$16+'BP Financier'!$C$19+'BP Financier'!$D$16+'BP Financier'!$D$19+'BP Financier'!$E$16+'BP Financier'!$E$19+'BP Financier'!$C$22+'BP Financier'!$D$22+'BP Financier'!$E$22+'BP Financier'!$F$16+'BP Financier'!$F$19+'BP Financier'!$F$22+'BP Financier'!$G$16+'BP Financier'!$G$19+'BP Financier'!$G$22))*$V8142*AB8142/(1-$W8142)","v":{"v":25779.108680814305,"d":"25,779"}},null,{"v":2E-3,"d":"0.20%"},{"$f":"Actif!$E$28/100","v":{"v":0.28900000000000003,"d":"28.90%"}},{"$f":"Actif!$E$30/100","v":{"v":0.09050000000000001,"d":"9.05%"}},{"$f":"Actif!$E$31/100","v":{"v":0.0605,"d":"6.05%"}},{"$f":"Actif!$E$32/100","v":{"v":0.47350000000000003,"d":"47.35%"}},{"$f":"Actif!$E$33/100","v":{"v":0.0585,"d":"5.85%"}},{"$f":"Actif!$E$29/100","v":{"v":0.027999999999999997,"d":"2.80%"}}]
[null,"#30",23,2031,"F","A_VIE",{"v":0.44999999999999996,"d":"0.45"},{"v":0.38999999999999996,"d":"0.39"},0.6,0.6,85,0,{"$f":"ROUND(Primes!$Q$4*V8143,0)","v":23},{"$f":"'BP Financier'!$G$33*(('BP Financier'!$C$16+'BP Financier'!$D$16+'BP Financier'!$E$16+'BP Financier'!$F$16+'BP Financier'!$G$16)/('BP Financier'!$C$16+'BP Financier'!$C$19+'BP Financier'!$D$16+'BP Financier'!$D$19+'BP Financier'!$E$16+'BP Financier'!$E$19+'BP Financier'!$F$16+'BP Financier'!$F$19+'BP Financier'!$G$19+'BP Financier'!$G$16))*V8143","v":{"v":1140557.348637567,"d":"1,140,557"}},{"v":654605.2240021062,"d":"654,605"},{"$f":"'BP Financier'!$G$44*(('BP Financier'!$C$16+'BP Financier'!$D$16+'BP Financier'!$E$16+'BP Financier'!$F$16+'BP Financier'!$G$16)/('BP Financier'!$C$16+'BP Financier'!$C$19+'BP Financier'!$D$16+'BP Financier'!$D$19+'BP Financier'!$E$16+'BP Financier'!$E$19+'BP Financier'!$C$22+'BP Financier'!$D$22+'BP Financier'!$E$22+'BP Financier'!$F$16+'BP Financier'!$F$19+'BP Financier'!$F$22+'BP Financier'!$G$16+'BP Financier'!$G$19+'BP Financier'!$G$22))*$V8143*X8143/(1-$W8143)","v":{"v":83321.76198620339,"d":"83,322"}},{"$f":"'BP Financier'!$G$44*(('BP Financier'!$C$16+'BP Financier'!$D$16+'BP Financier'!$E$16+'BP Financier'!$F$16+'BP Financier'!$G$16)/('BP Financier'!$C$16+'BP Financier'!$C$19+'BP Financier'!$D$16+'BP Financier'!$D$19+'BP Financier'!$E$16+'BP Financier'!$E$19+'BP Financier'!$C$22+'BP Financier'!$D$22+'BP Financier'!$E$22+'BP Financier'!$F$16+'BP Financier'!$F$19+'BP Financier'!$F$22+'BP Financier'!$G$16+'BP Financier'!$G$19+'BP Financier'!$G$22))*$V8143*Y8143/(1-$W8143)","v":{"v":55701.28839961663,"d":"55,701"}},{"$f":"'BP Financier'!$G$44*(('BP Financier'!$C$16+'BP Financier'!$D$16+'BP Financier'!$E$16+'BP Financier'!$F$16+'BP Financier'!$G$16)/('BP Financier'!$C$16+'BP Financier'!$C$19+'BP Financier'!$D$16+'BP Financier'!$D$19+'BP Financier'!$E$16+'BP Financier'!$E$19+'BP Financier'!$C$22+'BP Financier'!$D$22+'BP Financier'!$E$22+'BP Financier'!$F$16+'BP Financier'!$F$19+'BP Financier'!$F$22+'BP Financier'!$G$16+'BP Financier'!$G$19+'BP Financier'!$G$22))*$V8143*Z8143/(1-$W8143)","v":{"v":435943.1414416277,"d":"435,943"}},{"$f":"'BP Financier'!$G$44*(('BP Financier'!$C$16+'BP Financier'!$D$16+'BP Financier'!$E$16+'BP Financier'!$F$16+'BP Financier'!$G$16)/('BP Financier'!$C$16+'BP Financier'!$C$19+'BP Financier'!$D$16+'BP Financier'!$D$19+'BP Financier'!$E$16+'BP Financier'!$E$19+'BP Financier'!$C$22+'BP Financier'!$D$22+'BP Financier'!$E$22+'BP Financier'!$F$16+'BP Financier'!$F$19+'BP Financier'!$F$22+'BP Financier'!$G$16+'BP Financier'!$G$19+'BP Financier'!$G$22))*$V8143*AA8143/(1-$W8143)","v":{"v":53859.92349384418,"d":"53,860"}},{"$f":"'BP Financier'!$G$44*(('BP Financier'!$C$16+'BP Financier'!$D$16+'BP Financier'!$E$16+'BP Financier'!$F$16+'BP Financier'!$G$16)/('BP Financier'!$C$16+'BP Financier'!$C$19+'BP Financier'!$D$16+'BP Financier'!$D$19+'BP Financier'!$E$16+'BP Financier'!$E$19+'BP Financier'!$C$22+'BP Financier'!$D$22+'BP Financier'!$E$22+'BP Financier'!$F$16+'BP Financier'!$F$19+'BP Financier'!$F$22+'BP Financier'!$G$16+'BP Financier'!$G$19+'BP Financier'!$G$22))*$V8143*AB8143/(1-$W8143)","v":{"v":25779.108680814305,"d":"25,779"}},null,{"v":2E-3,"d":"0.20%"},{"$f":"Actif!$E$28/100","v":{"v":0.28900000000000003,"d":"28.90%"}},{"$f":"Actif!$E$30/100","v":{"v":0.09050000000000001,"d":"9.05%"}},{"$f":"Actif!$E$31/100","v":{"v":0.0605,"d":"6.05%"}},{"$f":"Actif!$E$32/100","v":{"v":0.47350000000000003,"d":"47.35%"}},{"$f":"Actif!$E$33/100","v":{"v":0.0585,"d":"5.85%"}},{"$f":"Actif!$E$29/100","v":{"v":0.027999999999999997,"d":"2.80%"}}]
[null,"#31",24,2026,"H","A_VIE",{"v":0.44999999999999996,"d":"0.45"},{"v":0.38999999999999996,"d":"0.39"},0.6,0.6,85,0,{"$f":"ROUND(Primes!$Q$4*V8144,0)","v":23},{"$f":"'BP Financier'!$G$33*(('BP Financier'!$C$16+'BP Financier'!$D$16+'BP Financier'!$E$16+'BP Financier'!$F$16+'BP Financier'!$G$16)/('BP Financier'!$C$16+'BP Financier'!$C$19+'BP Financier'!$D$16+'BP Financier'!$D$19+'BP Financier'!$E$16+'BP Financier'!$E$19+'BP Financier'!$F$16+'BP Financier'!$F$19+'BP Financier'!$G$19+'BP Financier'!$G$16))*V8144","v":{"v":1140557.348637567,"d":"1,140,557"}},{"v":654605.2240021062,"d":"654,605"},{"$f":"'BP Financier'!$G$44*(('BP Financier'!$C$16+'BP Financier'!$D$16+'BP Financier'!$E$16+'BP Financier'!$F$16+'BP Financier'!$G$16)/('BP Financier'!$C$16+'BP Financier'!$C$19+'BP Financier'!$D$16+'BP Financier'!$D$19+'BP Financier'!$E$16+'BP Financier'!$E$19+'BP Financier'!$C$22+'BP Financier'!$D$22+'BP Financier'!$E$22+'BP Financier'!$F$16+'BP Financier'!$F$19+'BP Financier'!$F$22+'BP Financier'!$G$16+'BP Financier'!$G$19+'BP Financier'!$G$22))*$V8144*X8144/(1-$W8144)","v":{"v":83321.76198620339,"d":"83,322"}},{"$f":"'BP Financier'!$G$44*(('BP Financier'!$C$16+'BP Financier'!$D$16+'BP Financier'!$E$16+'BP Financier'!$F$16+'BP Financier'!$G$16)/('BP Financier'!$C$16+'BP Financier'!$C$19+'BP Financier'!$D$16+'BP Financier'!$D$19+'BP Financier'!$E$16+'BP Financier'!$E$19+'BP Financier'!$C$22+'BP Financier'!$D$22+'BP Financier'!$E$22+'BP Financier'!$F$16+'BP Financier'!$F$19+'BP Financier'!$F$22+'BP Financier'!$G$16+'BP Financier'!$G$19+'BP Financier'!$G$22))*$V8144*Y8144/(1-$W8144)","v":{"v":55701.28839961663,"d":"55,701"}},{"$f":"'BP Financier'!$G$44*(('BP Financier'!$C$16+'BP Financier'!$D$16+'BP Financier'!$E$16+'BP Financier'!$F$16+'BP Financier'!$G$16)/('BP Financier'!$C$16+'BP Financier'!$C$19+'BP Financier'!$D$16+'BP Financier'!$D$19+'BP Financier'!$E$16+'BP Financier'!$E$19+'BP Financier'!$C$22+'BP Financier'!$D$22+'BP Financier'!$E$22+'BP Financier'!$F$16+'BP Financier'!$F$19+'BP Financier'!$F$22+'BP Financier'!$G$16+'BP Financier'!$G$19+'BP Financier'!$G$22))*$V8144*Z8144/(1-$W8144)","v":{"v":435943.1414416277,"d":"435,943"}},{"$f":"'BP Financier'!$G$44*(('BP Financier'!$C$16+'BP Financier'!$D$16+'BP Financier'!$E$16+'BP Financier'!$F$16+'BP Financier'!$G$16)/('BP Financier'!$C$16+'BP Financier'!$C$19+'BP Financier'!$D$16+'BP Financier'!$D$19+'BP Financier'!$E$16+'BP Financier'!$E$19+'BP Financier'!$C$22+'BP Financier'!$D$22+'BP Financier'!$E$22+'BP Financier'!$F$16+'BP Financier'!$F$19+'BP Financier'!$F$22+'BP Financier'!$G$16+'BP Financier'!$G$19+'BP Financier'!$G$22))*$V8144*AA8144/(1-$W8144)","v":{"v":53859.92349384418,"d":"53,860"}},{"$f":"'BP Financier'!$G$44*(('BP Financier'!$C$16+'BP Financier'!$D$16+'BP Financier'!$E$16+'BP Financier'!$F$16+'BP Financier'!$G$16)/('BP Financier'!$C$16+'BP Financier'!$C$19+'BP Financier'!$D$16+'BP Financier'!$D$19+'BP Financier'!$E$16+'BP Financier'!$E$19+'BP Financier'!$C$22+'BP Financier'!$D$22+'BP Financier'!$E$22+'BP Financier'!$F$16+'BP Financier'!$F$19+'BP Financier'!$F$22+'BP Financier'!$G$16+'BP Financier'!$G$19+'BP Financier'!$G$22))*$V8144*AB8144/(1-$W8144)","v":{"v":25779.108680814305,"d":"25,779"}},null,{"v":2E-3,"d":"0.20%"},{"$f":"Actif!$E$28/100","v":{"v":0.28900000000000003,"d":"28.90%"}},{"$f":"Actif!$E$30/100","v":{"v":0.09050000000000001,"d":"9.05%"}},{"$f":"Actif!$E$31/100","v":{"v":0.0605,"d":"6.05%"}},{"$f":"Actif!$E$32/100","v":{"v":0.47350000000000003,"d":"47.35%"}},{"$f":"Actif!$E$33/100","v":{"v":0.0585,"d":"5.85%"}},{"$f":"Actif!$E$29/100","v":{"v":0.027999999999999997,"d":"2.80%"}}]
[null,"#32",24,2028,"H","A_VIE",{"v":0.44999999999999996,"d":"0.45"},{"v":0.38999999999999996,"d":"0.39"},0.6,0.6,85,0,{"$f":"ROUND(Primes!$Q$4*V8145,0)","v":23},{"$f":"'BP Financier'!$G$33*(('BP Financier'!$C$16+'BP Financier'!$D$16+'BP Financier'!$E$16+'BP Financier'!$F$16+'BP Financier'!$G$16)/('BP Financier'!$C$16+'BP Financier'!$C$19+'BP Financier'!$D$16+'BP Financier'!$D$19+'BP Financier'!$E$16+'BP Financier'!$E$19+'BP Financier'!$F$16+'BP Financier'!$F$19+'BP Financier'!$G$19+'BP Financier'!$G$16))*V8145","v":{"v":1140557.348637567,"d":"1,140,557"}},{"v":654605.2240021062,"d":"654,605"},{"$f":"'BP Financier'!$G$44*(('BP Financier'!$C$16+'BP Financier'!$D$16+'BP Financier'!$E$16+'BP Financier'!$F$16+'BP Financier'!$G$16)/('BP Financier'!$C$16+'BP Financier'!$C$19+'BP Financier'!$D$16+'BP Financier'!$D$19+'BP Financier'!$E$16+'BP Financier'!$E$19+'BP Financier'!$C$22+'BP Financier'!$D$22+'BP Financier'!$E$22+'BP Financier'!$F$16+'BP Financier'!$F$19+'BP Financier'!$F$22+'BP Financier'!$G$16+'BP Financier'!$G$19+'BP Financier'!$G$22))*$V8145*X8145/(1-$W8145)","v":{"v":83321.76198620339,"d":"83,322"}},{"$f":"'BP Financier'!$G$44*(('BP Financier'!$C$16+'BP Financier'!$D$16+'BP Financier'!$E$16+'BP Financier'!$F$16+'BP Financier'!$G$16)/('BP Financier'!$C$16+'BP Financier'!$C$19+'BP Financier'!$D$16+'BP Financier'!$D$19+'BP Financier'!$E$16+'BP Financier'!$E$19+'BP Financier'!$C$22+'BP Financier'!$D$22+'BP Financier'!$E$22+'BP Financier'!$F$16+'BP Financier'!$F$19+'BP Financier'!$F$22+'BP Financier'!$G$16+'BP Financier'!$G$19+'BP Financier'!$G$22))*$V8145*Y8145/(1-$W8145)","v":{"v":55701.28839961663,"d":"55,701"}},{"$f":"'BP Financier'!$G$44*(('BP Financier'!$C$16+'BP Financier'!$D$16+'BP Financier'!$E$16+'BP Financier'!$F$16+'BP Financier'!$G$16)/('BP Financier'!$C$16+'BP Financier'!$C$19+'BP Financier'!$D$16+'BP Financier'!$D$19+'BP Financier'!$E$16+'BP Financier'!$E$19+'BP Financier'!$C$22+'BP Financier'!$D$22+'BP Financier'!$E$22+'BP Financier'!$F$16+'BP Financier'!$F$19+'BP Financier'!$F$22+'BP Financier'!$G$16+'BP Financier'!$G$19+'BP Financier'!$G$22))*$V8145*Z8145/(1-$W8145)","v":{"v":435943.1414416277,"d":"435,943"}},{"$f":"'BP Financier'!$G$44*(('BP Financier'!$C$16+'BP Financier'!$D$16+'BP Financier'!$E$16+'BP Financier'!$F$16+'BP Financier'!$G$16)/('BP Financier'!$C$16+'BP Financier'!$C$19+'BP Financier'!$D$16+'BP Financier'!$D$19+'BP Financier'!$E$16+'BP Financier'!$E$19+'BP Financier'!$C$22+'BP Financier'!$D$22+'BP Financier'!$E$22+'BP Financier'!$F$16+'BP Financier'!$F$19+'BP Financier'!$F$22+'BP Financier'!$G$16+'BP Financier'!$G$19+'BP Financier'!$G$22))*$V8145*AA8145/(1-$W8145)","v":{"v":53859.92349384418,"d":"53,860"}},{"$f":"'BP Financier'!$G$44*(('BP Financier'!$C$16+'BP Financier'!$D$16+'BP Financier'!$E$16+'BP Financier'!$F$16+'BP Financier'!$G$16)/('BP Financier'!$C$16+'BP Financier'!$C$19+'BP Financier'!$D$16+'BP Financier'!$D$19+'BP Financier'!$E$16+'BP Financier'!$E$19+'BP Financier'!$C$22+'BP Financier'!$D$22+'BP Financier'!$E$22+'BP Financier'!$F$16+'BP Financier'!$F$19+'BP Financier'!$F$22+'BP Financier'!$G$16+'BP Financier'!$G$19+'BP Financier'!$G$22))*$V8145*AB8145/(1-$W8145)","v":{"v":25779.108680814305,"d":"25,779"}},null,{"v":2E-3,"d":"0.20%"},{"$f":"Actif!$E$28/100","v":{"v":0.28900000000000003,"d":"28.90%"}},{"$f":"Actif!$E$30/100","v":{"v":0.09050000000000001,"d":"9.05%"}},{"$f":"Actif!$E$31/100","v":{"v":0.0605,"d":"6.05%"}},{"$f":"Actif!$E$32/100","v":{"v":0.47350000000000003,"d":"47.35%"}},{"$f":"Actif!$E$33/100","v":{"v":0.0585,"d":"5.85%"}},{"$f":"Actif!$E$29/100","v":{"v":0.027999999999999997,"d":"2.80%"}}]
[null,"#33",24,2029,"H","A_VIE",{"v":0.44999999999999996,"d":"0.45"},{"v":0.38999999999999996,"d":"0.39"},0.6,0.6,85,0,{"$f":"ROUND(Primes!$Q$4*V8146,0)","v":23},{"$f":"'BP Financier'!$G$33*(('BP Financier'!$C$16+'BP Financier'!$D$16+'BP Financier'!$E$16+'BP Financier'!$F$16+'BP Financier'!$G$16)/('BP Financier'!$C$16+'BP Financier'!$C$19+'BP Financier'!$D$16+'BP Financier'!$D$19+'BP Financier'!$E$16+'BP Financier'!$E$19+'BP Financier'!$F$16+'BP Financier'!$F$19+'BP Financier'!$G$19+'BP Financier'!$G$16))*V8146","v":{"v":1140557.348637567,"d":"1,140,557"}},{"v":654605.2240021062,"d":"654,605"},{"$f":"'BP Financier'!$G$44*(('BP Financier'!$C$16+'BP Financier'!$D$16+'BP Financier'!$E$16+'BP Financier'!$F$16+'BP Financier'!$G$16)/('BP Financier'!$C$16+'BP Financier'!$C$19+'BP Financier'!$D$16+'BP Financier'!$D$19+'BP Financier'!$E$16+'BP Financier'!$E$19+'BP Financier'!$C$22+'BP Financier'!$D$22+'BP Financier'!$E$22+'BP Financier'!$F$16+'BP Financier'!$F$19+'BP Financier'!$F$22+'BP Financier'!$G$16+'BP Financier'!$G$19+'BP Financier'!$G$22))*$V8146*X8146/(1-$W8146)","v":{"v":83321.76198620339,"d":"83,322"}},{"$f":"'BP Financier'!$G$44*(('BP Financier'!$C$16+'BP Financier'!$D$16+'BP Financier'!$E$16+'BP Financier'!$F$16+'BP Financier'!$G$16)/('BP Financier'!$C$16+'BP Financier'!$C$19+'BP Financier'!$D$16+'BP Financier'!$D$19+'BP Financier'!$E$16+'BP Financier'!$E$19+'BP Financier'!$C$22+'BP Financier'!$D$22+'BP Financier'!$E$22+'BP Financier'!$F$16+'BP Financier'!$F$19+'BP Financier'!$F$22+'BP Financier'!$G$16+'BP Financier'!$G$19+'BP Financier'!$G$22))*$V8146*Y8146/(1-$W8146)","v":{"v":55701.28839961663,"d":"55,701"}},{"$f":"'BP Financier'!$G$44*(('BP Financier'!$C$16+'BP Financier'!$D$16+'BP Financier'!$E$16+'BP Financier'!$F$16+'BP Financier'!$G$16)/('BP Financier'!$C$16+'BP Financier'!$C$19+'BP Financier'!$D$16+'BP Financier'!$D$19+'BP Financier'!$E$16+'BP Financier'!$E$19+'BP Financier'!$C$22+'BP Financier'!$D$22+'BP Financier'!$E$22+'BP Financier'!$F$16+'BP Financier'!$F$19+'BP Financier'!$F$22+'BP Financier'!$G$16+'BP Financier'!$G$19+'BP Financier'!$G$22))*$V8146*Z8146/(1-$W8146)","v":{"v":435943.1414416277,"d":"435,943"}},{"$f":"'BP Financier'!$G$44*(('BP Financier'!$C$16+'BP Financier'!$D$16+'BP Financier'!$E$16+'BP Financier'!$F$16+'BP Financier'!$G$16)/('BP Financier'!$C$16+'BP Financier'!$C$19+'BP Financier'!$D$16+'BP Financier'!$D$19+'BP Financier'!$E$16+'BP Financier'!$E$19+'BP Financier'!$C$22+'BP Financier'!$D$22+'BP Financier'!$E$22+'BP Financier'!$F$16+'BP Financier'!$F$19+'BP Financier'!$F$22+'BP Financier'!$G$16+'BP Financier'!$G$19+'BP Financier'!$G$22))*$V8146*AA8146/(1-$W8146)","v":{"v":53859.92349384418,"d":"53,860"}},{"$f":"'BP Financier'!$G$44*(('BP Financier'!$C$16+'BP Financier'!$D$16+'BP Financier'!$E$16+'BP Financier'!$F$16+'BP Financier'!$G$16)/('BP Financier'!$C$16+'BP Financier'!$C$19+'BP Financier'!$D$16+'BP Financier'!$D$19+'BP Financier'!$E$16+'BP Financier'!$E$19+'BP Financier'!$C$22+'BP Financier'!$D$22+'BP Financier'!$E$22+'BP Financier'!$F$16+'BP Financier'!$F$19+'BP Financier'!$F$22+'BP Financier'!$G$16+'BP Financier'!$G$19+'BP Financier'!$G$22))*$V8146*AB8146/(1-$W8146)","v":{"v":25779.108680814305,"d":"25,779"}},null,{"v":2E-3,"d":"0.20%"},{"$f":"Actif!$E$28/100","v":{"v":0.28900000000000003,"d":"28.90%"}},{"$f":"Actif!$E$30/100","v":{"v":0.09050000000000001,"d":"9.05%"}},{"$f":"Actif!$E$31/100","v":{"v":0.0605,"d":"6.05%"}},{"$f":"Actif!$E$32/100","v":{"v":0.47350000000000003,"d":"47.35%"}},{"$f":"Actif!$E$33/100","v":{"v":0.0585,"d":"5.85%"}},{"$f":"Actif!$E$29/100","v":{"v":0.027999999999999997,"d":"2.80%"}}]
[null,"#34",24,2030,"H","A_VIE",{"v":0.44999999999999996,"d":"0.45"},{"v":0.38999999999999996,"d":"0.39"},0.6,0.6,85,0,{"$f":"ROUND(Primes!$Q$4*V8147,0)","v":23},{"$f":"'BP Financier'!$G$33*(('BP Financier'!$C$16+'BP Financier'!$D$16+'BP Financier'!$E$16+'BP Financier'!$F$16+'BP Financier'!$G$16)/('BP Financier'!$C$16+'BP Financier'!$C$19+'BP Financier'!$D$16+'BP Financier'!$D$19+'BP Financier'!$E$16+'BP Financier'!$E$19+'BP Financier'!$F$16+'BP Financier'!$F$19+'BP Financier'!$G$19+'BP Financier'!$G$16))*V8147","v":{"v":1140557.348637567,"d":"1,140,557"}},{"v":654605.2240021062,"d":"654,605"},{"$f":"'BP Financier'!$G$44*(('BP Financier'!$C$16+'BP Financier'!$D$16+'BP Financier'!$E$16+'BP Financier'!$F$16+'BP Financier'!$G$16)/('BP Financier'!$C$16+'BP Financier'!$C$19+'BP Financier'!$D$16+'BP Financier'!$D$19+'BP Financier'!$E$16+'BP Financier'!$E$19+'BP Financier'!$C$22+'BP Financier'!$D$22+'BP Financier'!$E$22+'BP Financier'!$F$16+'BP Financier'!$F$19+'BP Financier'!$F$22+'BP Financier'!$G$16+'BP Financier'!$G$19+'BP Financier'!$G$22))*$V8147*X8147/(1-$W8147)","v":{"v":83321.76198620339,"d":"83,322"}},{"$f":"'BP Financier'!$G$44*(('BP Financier'!$C$16+'BP Financier'!$D$16+'BP Financier'!$E$16+'BP Financier'!$F$16+'BP Financier'!$G$16)/('BP Financier'!$C$16+'BP Financier'!$C$19+'BP Financier'!$D$16+'BP Financier'!$D$19+'BP Financier'!$E$16+'BP Financier'!$E$19+'BP Financier'!$C$22+'BP Financier'!$D$22+'BP Financier'!$E$22+'BP Financier'!$F$16+'BP Financier'!$F$19+'BP Financier'!$F$22+'BP Financier'!$G$16+'BP Financier'!$G$19+'BP Financier'!$G$22))*$V8147*Y8147/(1-$W8147)","v":{"v":55701.28839961663,"d":"55,701"}},{"$f":"'BP Financier'!$G$44*(('BP Financier'!$C$16+'BP Financier'!$D$16+'BP Financier'!$E$16+'BP Financier'!$F$16+'BP Financier'!$G$16)/('BP Financier'!$C$16+'BP Financier'!$C$19+'BP Financier'!$D$16+'BP Financier'!$D$19+'BP Financier'!$E$16+'BP Financier'!$E$19+'BP Financier'!$C$22+'BP Financier'!$D$22+'BP Financier'!$E$22+'BP Financier'!$F$16+'BP Financier'!$F$19+'BP Financier'!$F$22+'BP Financier'!$G$16+'BP Financier'!$G$19+'BP Financier'!$G$22))*$V8147*Z8147/(1-$W8147)","v":{"v":435943.1414416277,"d":"435,943"}},{"$f":"'BP Financier'!$G$44*(('BP Financier'!$C$16+'BP Financier'!$D$16+'BP Financier'!$E$16+'BP Financier'!$F$16+'BP Financier'!$G$16)/('BP Financier'!$C$16+'BP Financier'!$C$19+'BP Financier'!$D$16+'BP Financier'!$D$19+'BP Financier'!$E$16+'BP Financier'!$E$19+'BP Financier'!$C$22+'BP Financier'!$D$22+'BP Financier'!$E$22+'BP Financier'!$F$16+'BP Financier'!$F$19+'BP Financier'!$F$22+'BP Financier'!$G$16+'BP Financier'!$G$19+'BP Financier'!$G$22))*$V8147*AA8147/(1-$W8147)","v":{"v":53859.92349384418,"d":"53,860"}},{"$f":"'BP Financier'!$G$44*(('BP Financier'!$C$16+'BP Financier'!$D$16+'BP Financier'!$E$16+'BP Financier'!$F$16+'BP Financier'!$G$16)/('BP Financier'!$C$16+'BP Financier'!$C$19+'BP Financier'!$D$16+'BP Financier'!$D$19+'BP Financier'!$E$16+'BP Financier'!$E$19+'BP Financier'!$C$22+'BP Financier'!$D$22+'BP Financier'!$E$22+'BP Financier'!$F$16+'BP Financier'!$F$19+'BP Financier'!$F$22+'BP Financier'!$G$16+'BP Financier'!$G$19+'BP Financier'!$G$22))*$V8147*AB8147/(1-$W8147)","v":{"v":25779.108680814305,"d":"25,779"}},null,{"v":2E-3,"d":"0.20%"},{"$f":"Actif!$E$28/100","v":{"v":0.28900000000000003,"d":"28.90%"}},{"$f":"Actif!$E$30/100","v":{"v":0.09050000000000001,"d":"9.05%"}},{"$f":"Actif!$E$31/100","v":{"v":0.0605,"d":"6.05%"}},{"$f":"Actif!$E$32/100","v":{"v":0.47350000000000003,"d":"47.35%"}},{"$f":"Actif!$E$33/100","v":{"v":0.0585,"d":"5.85%"}},{"$f":"Actif!$E$29/100","v":{"v":0.027999999999999997,"d":"2.80%"}}]
[null,"#35",24,2031,"H","A_VIE",{"v":0.44999999999999996,"d":"0.45"},{"v":0.38999999999999996,"d":"0.39"},0.6,0.6,85,0,{"$f":"ROUND(Primes!$Q$4*V8148,0)","v":23},{"$f":"'BP Financier'!$G$33*(('BP Financier'!$C$16+'BP Financier'!$D$16+'BP Financier'!$E$16+'BP Financier'!$F$16+'BP Financier'!$G$16)/('BP Financier'!$C$16+'BP Financier'!$C$19+'BP Financier'!$D$16+'BP Financier'!$D$19+'BP Financier'!$E$16+'BP Financier'!$E$19+'BP Financier'!$F$16+'BP Financier'!$F$19+'BP Financier'!$G$19+'BP Financier'!$G$16))*V8148","v":{"v":1140557.348637567,"d":"1,140,557"}},{"v":654605.2240021062,"d":"654,605"},{"$f":"'BP Financier'!$G$44*(('BP Financier'!$C$16+'BP Financier'!$D$16+'BP Financier'!$E$16+'BP Financier'!$F$16+'BP Financier'!$G$16)/('BP Financier'!$C$16+'BP Financier'!$C$19+'BP Financier'!$D$16+'BP Financier'!$D$19+'BP Financier'!$E$16+'BP Financier'!$E$19+'BP Financier'!$C$22+'BP Financier'!$D$22+'BP Financier'!$E$22+'BP Financier'!$F$16+'BP Financier'!$F$19+'BP Financier'!$F$22+'BP Financier'!$G$16+'BP Financier'!$G$19+'BP Financier'!$G$22))*$V8148*X8148/(1-$W8148)","v":{"v":83321.76198620339,"d":"83,322"}},{"$f":"'BP Financier'!$G$44*(('BP Financier'!$C$16+'BP Financier'!$D$16+'BP Financier'!$E$16+'BP Financier'!$F$16+'BP Financier'!$G$16)/('BP Financier'!$C$16+'BP Financier'!$C$19+'BP Financier'!$D$16+'BP Financier'!$D$19+'BP Financier'!$E$16+'BP Financier'!$E$19+'BP Financier'!$C$22+'BP Financier'!$D$22+'BP Financier'!$E$22+'BP Financier'!$F$16+'BP Financier'!$F$19+'BP Financier'!$F$22+'BP Financier'!$G$16+'BP Financier'!$G$19+'BP Financier'!$G$22))*$V8148*Y8148/(1-$W8148)","v":{"v":55701.28839961663,"d":"55,701"}},{"$f":"'BP Financier'!$G$44*(('BP Financier'!$C$16+'BP Financier'!$D$16+'BP Financier'!$E$16+'BP Financier'!$F$16+'BP Financier'!$G$16)/('BP Financier'!$C$16+'BP Financier'!$C$19+'BP Financier'!$D$16+'BP Financier'!$D$19+'BP Financier'!$E$16+'BP Financier'!$E$19+'BP Financier'!$C$22+'BP Financier'!$D$22+'BP Financier'!$E$22+'BP Financier'!$F$16+'BP Financier'!$F$19+'BP Financier'!$F$22+'BP Financier'!$G$16+'BP Financier'!$G$19+'BP Financier'!$G$22))*$V8148*Z8148/(1-$W8148)","v":{"v":435943.1414416277,"d":"435,943"}},{"$f":"'BP Financier'!$G$44*(('BP Financier'!$C$16+'BP Financier'!$D$16+'BP Financier'!$E$16+'BP Financier'!$F$16+'BP Financier'!$G$16)/('BP Financier'!$C$16+'BP Financier'!$C$19+'BP Financier'!$D$16+'BP Financier'!$D$19+'BP Financier'!$E$16+'BP Financier'!$E$19+'BP Financier'!$C$22+'BP Financier'!$D$22+'BP Financier'!$E$22+'BP Financier'!$F$16+'BP Financier'!$F$19+'BP Financier'!$F$22+'BP Financier'!$G$16+'BP Financier'!$G$19+'BP Financier'!$G$22))*$V8148*AA8148/(1-$W8148)","v":{"v":53859.92349384418,"d":"53,860"}},{"$f":"'BP Financier'!$G$44*(('BP Financier'!$C$16+'BP Financier'!$D$16+'BP Financier'!$E$16+'BP Financier'!$F$16+'BP Financier'!$G$16)/('BP Financier'!$C$16+'BP Financier'!$C$19+'BP Financier'!$D$16+'BP Financier'!$D$19+'BP Financier'!$E$16+'BP Financier'!$E$19+'BP Financier'!$C$22+'BP Financier'!$D$22+'BP Financier'!$E$22+'BP Financier'!$F$16+'BP Financier'!$F$19+'BP Financier'!$F$22+'BP Financier'!$G$16+'BP Financier'!$G$19+'BP Financier'!$G$22))*$V8148*AB8148/(1-$W8148)","v":{"v":25779.108680814305,"d":"25,779"}},null,{"v":2E-3,"d":"0.20%"},{"$f":"Actif!$E$28/100","v":{"v":0.28900000000000003,"d":"28.90%"}},{"$f":"Actif!$E$30/100","v":{"v":0.09050000000000001,"d":"9.05%"}},{"$f":"Actif!$E$31/100","v":{"v":0.0605,"d":"6.05%"}},{"$f":"Actif!$E$32/100","v":{"v":0.47350000000000003,"d":"47.35%"}},{"$f":"Actif!$E$33/100","v":{"v":0.0585,"d":"5.85%"}},{"$f":"Actif!$E$29/100","v":{"v":0.027999999999999997,"d":"2.80%"}}]
[null,"#36",25,2026,"H","A_VIE",{"v":0.44999999999999996,"d":"0.45"},{"v":0.38999999999999996,"d":"0.39"},0.6,0.6,85,0,{"$f":"ROUND(Primes!$Q$4*V8149,0)","v":114},{"$f":"'BP Financier'!$G$33*(('BP Financier'!$C$16+'BP Financier'!$D$16+'BP Financier'!$E$16+'BP Financier'!$F$16+'BP Financier'!$G$16)/('BP Financier'!$C$16+'BP Financier'!$C$19+'BP Financier'!$D$16+'BP Financier'!$D$19+'BP Financier'!$E$16+'BP Financier'!$E$19+'BP Financier'!$F$16+'BP Financier'!$F$19+'BP Financier'!$G$19+'BP Financier'!$G$16))*V8149","v":{"v":5702786.7431878345,"d":"5,702,787"}},{"v":3273026.120010531,"d":"3,273,026"},{"$f":"'BP Financier'!$G$44*(('BP Financier'!$C$16+'BP Financier'!$D$16+'BP Financier'!$E$16+'BP Financier'!$F$16+'BP Financier'!$G$16)/('BP Financier'!$C$16+'BP Financier'!$C$19+'BP Financier'!$D$16+'BP Financier'!$D$19+'BP Financier'!$E$16+'BP Financier'!$E$19+'BP Financier'!$C$22+'BP Financier'!$D$22+'BP Financier'!$E$22+'BP Financier'!$F$16+'BP Financier'!$F$19+'BP Financier'!$F$22+'BP Financier'!$G$16+'BP Financier'!$G$19+'BP Financier'!$G$22))*$V8149*X8149/(1-$W8149)","v":{"v":416608.809931017,"d":"416,609"}},{"$f":"'BP Financier'!$G$44*(('BP Financier'!$C$16+'BP Financier'!$D$16+'BP Financier'!$E$16+'BP Financier'!$F$16+'BP Financier'!$G$16)/('BP Financier'!$C$16+'BP Financier'!$C$19+'BP Financier'!$D$16+'BP Financier'!$D$19+'BP Financier'!$E$16+'BP Financier'!$E$19+'BP Financier'!$C$22+'BP Financier'!$D$22+'BP Financier'!$E$22+'BP Financier'!$F$16+'BP Financier'!$F$19+'BP Financier'!$F$22+'BP Financier'!$G$16+'BP Financier'!$G$19+'BP Financier'!$G$22))*$V8149*Y8149/(1-$W8149)","v":{"v":278506.44199808314,"d":"278,506"}},{"$f":"'BP Financier'!$G$44*(('BP Financier'!$C$16+'BP Financier'!$D$16+'BP Financier'!$E$16+'BP Financier'!$F$16+'BP Financier'!$G$16)/('BP Financier'!$C$16+'BP Financier'!$C$19+'BP Financier'!$D$16+'BP Financier'!$D$19+'BP Financier'!$E$16+'BP Financier'!$E$19+'BP Financier'!$C$22+'BP Financier'!$D$22+'BP Financier'!$E$22+'BP Financier'!$F$16+'BP Financier'!$F$19+'BP Financier'!$F$22+'BP Financier'!$G$16+'BP Financier'!$G$19+'BP Financier'!$G$22))*$V8149*Z8149/(1-$W8149)","v":{"v":2179715.7072081384,"d":"2,179,716"}},{"$f":"'BP Financier'!$G$44*(('BP Financier'!$C$16+'BP Financier'!$D$16+'BP Financier'!$E$16+'BP Financier'!$F$16+'BP Financier'!$G$16)/('BP Financier'!$C$16+'BP Financier'!$C$19+'BP Financier'!$D$16+'BP Financier'!$D$19+'BP Financier'!$E$16+'BP Financier'!$E$19+'BP Financier'!$C$22+'BP Financier'!$D$22+'BP Financier'!$E$22+'BP Financier'!$F$16+'BP Financier'!$F$19+'BP Financier'!$F$22+'BP Financier'!$G$16+'BP Financier'!$G$19+'BP Financier'!$G$22))*$V8149*AA8149/(1-$W8149)","v":{"v":269299.6174692209,"d":"269,300"}},{"$f":"'BP Financier'!$G$44*(('BP Financier'!$C$16+'BP Financier'!$D$16+'BP Financier'!$E$16+'BP Financier'!$F$16+'BP Financier'!$G$16)/('BP Financier'!$C$16+'BP Financier'!$C$19+'BP Financier'!$D$16+'BP Financier'!$D$19+'BP Financier'!$E$16+'BP Financier'!$E$19+'BP Financier'!$C$22+'BP Financier'!$D$22+'BP Financier'!$E$22+'BP Financier'!$F$16+'BP Financier'!$F$19+'BP Financier'!$F$22+'BP Financier'!$G$16+'BP Financier'!$G$19+'BP Financier'!$G$22))*$V8149*AB8149/(1-$W8149)","v":{"v":128895.54340407152,"d":"128,896"}},null,{"v":0.01,"d":"1.00%"},{"$f":"Actif!$E$28/100","v":{"v":0.28900000000000003,"d":"28.90%"}},{"$f":"Actif!$E$30/100","v":{"v":0.09050000000000001,"d":"9.05%"}},{"$f":"Actif!$E$31/100","v":{"v":0.0605,"d":"6.05%"}},{"$f":"Actif!$E$32/100","v":{"v":0.47350000000000003,"d":"47.35%"}},{"$f":"Actif!$E$33/100","v":{"v":0.0585,"d":"5.85%"}},{"$f":"Actif!$E$29/100","v":{"v":0.027999999999999997,"d":"2.80%"}}]
[null,"#37",25,2028,"H","A_VIE",{"v":0.44999999999999996,"d":"0.45"},{"v":0.38999999999999996,"d":"0.39"},0.6,0.6,85,0,{"$f":"ROUND(Primes!$Q$4*V8150,0)","v":114},{"$f":"'BP Financier'!$G$33*(('BP Financier'!$C$16+'BP Financier'!$D$16+'BP Financier'!$E$16+'BP Financier'!$F$16+'BP Financier'!$G$16)/('BP Financier'!$C$16+'BP Financier'!$C$19+'BP Financier'!$D$16+'BP Financier'!$D$19+'BP Financier'!$E$16+'BP Financier'!$E$19+'BP Financier'!$F$16+'BP Financier'!$F$19+'BP Financier'!$G$19+'BP Financier'!$G$16))*V8150","v":{"v":5702786.7431878345,"d":"5,702,787"}},{"v":3273026.120010531,"d":"3,273,026"},{"$f":"'BP Financier'!$G$44*(('BP Financier'!$C$16+'BP Financier'!$D$16+'BP Financier'!$E$16+'BP Financier'!$F$16+'BP Financier'!$G$16)/('BP Financier'!$C$16+'BP Financier'!$C$19+'BP Financier'!$D$16+'BP Financier'!$D$19+'BP Financier'!$E$16+'BP Financier'!$E$19+'BP Financier'!$C$22+'BP Financier'!$D$22+'BP Financier'!$E$22+'BP Financier'!$F$16+'BP Financier'!$F$19+'BP Financier'!$F$22+'BP Financier'!$G$16+'BP Financier'!$G$19+'BP Financier'!$G$22))*$V8150*X8150/(1-$W8150)","v":{"v":416608.809931017,"d":"416,609"}},{"$f":"'BP Financier'!$G$44*(('BP Financier'!$C$16+'BP Financier'!$D$16+'BP Financier'!$E$16+'BP Financier'!$F$16+'BP Financier'!$G$16)/('BP Financier'!$C$16+'BP Financier'!$C$19+'BP Financier'!$D$16+'BP Financier'!$D$19+'BP Financier'!$E$16+'BP Financier'!$E$19+'BP Financier'!$C$22+'BP Financier'!$D$22+'BP Financier'!$E$22+'BP Financier'!$F$16+'BP Financier'!$F$19+'BP Financier'!$F$22+'BP Financier'!$G$16+'BP Financier'!$G$19+'BP Financier'!$G$22))*$V8150*Y8150/(1-$W8150)","v":{"v":278506.44199808314,"d":"278,506"}},{"$f":"'BP Financier'!$G$44*(('BP Financier'!$C$16+'BP Financier'!$D$16+'BP Financier'!$E$16+'BP Financier'!$F$16+'BP Financier'!$G$16)/('BP Financier'!$C$16+'BP Financier'!$C$19+'BP Financier'!$D$16+'BP Financier'!$D$19+'BP Financier'!$E$16+'BP Financier'!$E$19+'BP Financier'!$C$22+'BP Financier'!$D$22+'BP Financier'!$E$22+'BP Financier'!$F$16+'BP Financier'!$F$19+'BP Financier'!$F$22+'BP Financier'!$G$16+'BP Financier'!$G$19+'BP Financier'!$G$22))*$V8150*Z8150/(1-$W8150)","v":{"v":2179715.7072081384,"d":"2,179,716"}},{"$f":"'BP Financier'!$G$44*(('BP Financier'!$C$16+'BP Financier'!$D$16+'BP Financier'!$E$16+'BP Financier'!$F$16+'BP Financier'!$G$16)/('BP Financier'!$C$16+'BP Financier'!$C$19+'BP Financier'!$D$16+'BP Financier'!$D$19+'BP Financier'!$E$16+'BP Financier'!$E$19+'BP Financier'!$C$22+'BP Financier'!$D$22+'BP Financier'!$E$22+'BP Financier'!$F$16+'BP Financier'!$F$19+'BP Financier'!$F$22+'BP Financier'!$G$16+'BP Financier'!$G$19+'BP Financier'!$G$22))*$V8150*AA8150/(1-$W8150)","v":{"v":269299.6174692209,"d":"269,300"}},{"$f":"'BP Financier'!$G$44*(('BP Financier'!$C$16+'BP Financier'!$D$16+'BP Financier'!$E$16+'BP Financier'!$F$16+'BP Financier'!$G$16)/('BP Financier'!$C$16+'BP Financier'!$C$19+'BP Financier'!$D$16+'BP Financier'!$D$19+'BP Financier'!$E$16+'BP Financier'!$E$19+'BP Financier'!$C$22+'BP Financier'!$D$22+'BP Financier'!$E$22+'BP Financier'!$F$16+'BP Financier'!$F$19+'BP Financier'!$F$22+'BP Financier'!$G$16+'BP Financier'!$G$19+'BP Financier'!$G$22))*$V8150*AB8150/(1-$W8150)","v":{"v":128895.54340407152,"d":"128,896"}},null,{"v":0.01,"d":"1.00%"},{"$f":"Actif!$E$28/100","v":{"v":0.28900000000000003,"d":"28.90%"}},{"$f":"Actif!$E$30/100","v":{"v":0.09050000000000001,"d":"9.05%"}},{"$f":"Actif!$E$31/100","v":{"v":0.0605,"d":"6.05%"}},{"$f":"Actif!$E$32/100","v":{"v":0.47350000000000003,"d":"47.35%"}},{"$f":"Actif!$E$33/100","v":{"v":0.0585,"d":"5.85%"}},{"$f":"Actif!$E$29/100","v":{"v":0.027999999999999997,"d":"2.80%"}}]
[null,"#38",25,2029,"H","A_VIE",{"v":0.44999999999999996,"d":"0.45"},{"v":0.38999999999999996,"d":"0.39"},0.6,0.6,85,0,{"$f":"ROUND(Primes!$Q$4*V8151,0)","v":114},{"$f":"'BP Financier'!$G$33*(('BP Financier'!$C$16+'BP Financier'!$D$16+'BP Financier'!$E$16+'BP Financier'!$F$16+'BP Financier'!$G$16)/('BP Financier'!$C$16+'BP Financier'!$C$19+'BP Financier'!$D$16+'BP Financier'!$D$19+'BP Financier'!$E$16+'BP Financier'!$E$19+'BP Financier'!$F$16+'BP Financier'!$F$19+'BP Financier'!$G$19+'BP Financier'!$G$16))*V8151","v":{"v":5702786.7431878345,"d":"5,702,787"}},{"v":3273026.120010531,"d":"3,273,026"},{"$f":"'BP Financier'!$G$44*(('BP Financier'!$C$16+'BP Financier'!$D$16+'BP Financier'!$E$16+'BP Financier'!$F$16+'BP Financier'!$G$16)/('BP Financier'!$C$16+'BP Financier'!$C$19+'BP Financier'!$D$16+'BP Financier'!$D$19+'BP Financier'!$E$16+'BP Financier'!$E$19+'BP Financier'!$C$22+'BP Financier'!$D$22+'BP Financier'!$E$22+'BP Financier'!$F$16+'BP Financier'!$F$19+'BP Financier'!$F$22+'BP Financier'!$G$16+'BP Financier'!$G$19+'BP Financier'!$G$22))*$V8151*X8151/(1-$W8151)","v":{"v":416608.809931017,"d":"416,609"}},{"$f":"'BP Financier'!$G$44*(('BP Financier'!$C$16+'BP Financier'!$D$16+'BP Financier'!$E$16+'BP Financier'!$F$16+'BP Financier'!$G$16)/('BP Financier'!$C$16+'BP Financier'!$C$19+'BP Financier'!$D$16+'BP Financier'!$D$19+'BP Financier'!$E$16+'BP Financier'!$E$19+'BP Financier'!$C$22+'BP Financier'!$D$22+'BP Financier'!$E$22+'BP Financier'!$F$16+'BP Financier'!$F$19+'BP Financier'!$F$22+'BP Financier'!$G$16+'BP Financier'!$G$19+'BP Financier'!$G$22))*$V8151*Y8151/(1-$W8151)","v":{"v":278506.44199808314,"d":"278,506"}},{"$f":"'BP Financier'!$G$44*(('BP Financier'!$C$16+'BP Financier'!$D$16+'BP Financier'!$E$16+'BP Financier'!$F$16+'BP Financier'!$G$16)/('BP Financier'!$C$16+'BP Financier'!$C$19+'BP Financier'!$D$16+'BP Financier'!$D$19+'BP Financier'!$E$16+'BP Financier'!$E$19+'BP Financier'!$C$22+'BP Financier'!$D$22+'BP Financier'!$E$22+'BP Financier'!$F$16+'BP Financier'!$F$19+'BP Financier'!$F$22+'BP Financier'!$G$16+'BP Financier'!$G$19+'BP Financier'!$G$22))*$V8151*Z8151/(1-$W8151)","v":{"v":2179715.7072081384,"d":"2,179,716"}},{"$f":"'BP Financier'!$G$44*(('BP Financier'!$C$16+'BP Financier'!$D$16+'BP Financier'!$E$16+'BP Financier'!$F$16+'BP Financier'!$G$16)/('BP Financier'!$C$16+'BP Financier'!$C$19+'BP Financier'!$D$16+'BP Financier'!$D$19+'BP Financier'!$E$16+'BP Financier'!$E$19+'BP Financier'!$C$22+'BP Financier'!$D$22+'BP Financier'!$E$22+'BP Financier'!$F$16+'BP Financier'!$F$19+'BP Financier'!$F$22+'BP Financier'!$G$16+'BP Financier'!$G$19+'BP Financier'!$G$22))*$V8151*AA8151/(1-$W8151)","v":{"v":269299.6174692209,"d":"269,300"}},{"$f":"'BP Financier'!$G$44*(('BP Financier'!$C$16+'BP Financier'!$D$16+'BP Financier'!$E$16+'BP Financier'!$F$16+'BP Financier'!$G$16)/('BP Financier'!$C$16+'BP Financier'!$C$19+'BP Financier'!$D$16+'BP Financier'!$D$19+'BP Financier'!$E$16+'BP Financier'!$E$19+'BP Financier'!$C$22+'BP Financier'!$D$22+'BP Financier'!$E$22+'BP Financier'!$F$16+'BP Financier'!$F$19+'BP Financier'!$F$22+'BP Financier'!$G$16+'BP Financier'!$G$19+'BP Financier'!$G$22))*$V8151*AB8151/(1-$W8151)","v":{"v":128895.54340407152,"d":"128,896"}},null,{"v":0.01,"d":"1.00%"},{"$f":"Actif!$E$28/100","v":{"v":0.28900000000000003,"d":"28.90%"}},{"$f":"Actif!$E$30/100","v":{"v":0.09050000000000001,"d":"9.05%"}},{"$f":"Actif!$E$31/100","v":{"v":0.0605,"d":"6.05%"}},{"$f":"Actif!$E$32/100","v":{"v":0.47350000000000003,"d":"47.35%"}},{"$f":"Actif!$E$33/100","v":{"v":0.0585,"d":"5.85%"}},{"$f":"Actif!$E$29/100","v":{"v":0.027999999999999997,"d":"2.80%"}}]
[null,"#39",25,2030,"H","A_VIE",{"v":0.44999999999999996,"d":"0.45"},{"v":0.38999999999999996,"d":"0.39"},0.6,0.6,85,0,{"$f":"ROUND(Primes!$Q$4*V8152,0)","v":114},{"$f":"'BP Financier'!$G$33*(('BP Financier'!$C$16+'BP Financier'!$D$16+'BP Financier'!$E$16+'BP Financier'!$F$16+'BP Financier'!$G$16)/('BP Financier'!$C$16+'BP Financier'!$C$19+'BP Financier'!$D$16+'BP Financier'!$D$19+'BP Financier'!$E$16+'BP Financier'!$E$19+'BP Financier'!$F$16+'BP Financier'!$F$19+'BP Financier'!$G$19+'BP Financier'!$G$16))*V8152","v":{"v":5702786.7431878345,"d":"5,702,787"}},{"v":3273026.120010531,"d":"3,273,026"},{"$f":"'BP Financier'!$G$44*(('BP Financier'!$C$16+'BP Financier'!$D$16+'BP Financier'!$E$16+'BP Financier'!$F$16+'BP Financier'!$G$16)/('BP Financier'!$C$16+'BP Financier'!$C$19+'BP Financier'!$D$16+'BP Financier'!$D$19+'BP Financier'!$E$16+'BP Financier'!$E$19+'BP Financier'!$C$22+'BP Financier'!$D$22+'BP Financier'!$E$22+'BP Financier'!$F$16+'BP Financier'!$F$19+'BP Financier'!$F$22+'BP Financier'!$G$16+'BP Financier'!$G$19+'BP Financier'!$G$22))*$V8152*X8152/(1-$W8152)","v":{"v":416608.809931017,"d":"416,609"}},{"$f":"'BP Financier'!$G$44*(('BP Financier'!$C$16+'BP Financier'!$D$16+'BP Financier'!$E$16+'BP Financier'!$F$16+'BP Financier'!$G$16)/('BP Financier'!$C$16+'BP Financier'!$C$19+'BP Financier'!$D$16+'BP Financier'!$D$19+'BP Financier'!$E$16+'BP Financier'!$E$19+'BP Financier'!$C$22+'BP Financier'!$D$22+'BP Financier'!$E$22+'BP Financier'!$F$16+'BP Financier'!$F$19+'BP Financier'!$F$22+'BP Financier'!$G$16+'BP Financier'!$G$19+'BP Financier'!$G$22))*$V8152*Y8152/(1-$W8152)","v":{"v":278506.44199808314,"d":"278,506"}},{"$f":"'BP Financier'!$G$44*(('BP Financier'!$C$16+'BP Financier'!$D$16+'BP Financier'!$E$16+'BP Financier'!$F$16+'BP Financier'!$G$16)/('BP Financier'!$C$16+'BP Financier'!$C$19+'BP Financier'!$D$16+'BP Financier'!$D$19+'BP Financier'!$E$16+'BP Financier'!$E$19+'BP Financier'!$C$22+'BP Financier'!$D$22+'BP Financier'!$E$22+'BP Financier'!$F$16+'BP Financier'!$F$19+'BP Financier'!$F$22+'BP Financier'!$G$16+'BP Financier'!$G$19+'BP Financier'!$G$22))*$V8152*Z8152/(1-$W8152)","v":{"v":2179715.7072081384,"d":"2,179,716"}},{"$f":"'BP Financier'!$G$44*(('BP Financier'!$C$16+'BP Financier'!$D$16+'BP Financier'!$E$16+'BP Financier'!$F$16+'BP Financier'!$G$16)/('BP Financier'!$C$16+'BP Financier'!$C$19+'BP Financier'!$D$16+'BP Financier'!$D$19+'BP Financier'!$E$16+'BP Financier'!$E$19+'BP Financier'!$C$22+'BP Financier'!$D$22+'BP Financier'!$E$22+'BP Financier'!$F$16+'BP Financier'!$F$19+'BP Financier'!$F$22+'BP Financier'!$G$16+'BP Financier'!$G$19+'BP Financier'!$G$22))*$V8152*AA8152/(1-$W8152)","v":{"v":269299.6174692209,"d":"269,300"}},{"$f":"'BP Financier'!$G$44*(('BP Financier'!$C$16+'BP Financier'!$D$16+'BP Financier'!$E$16+'BP Financier'!$F$16+'BP Financier'!$G$16)/('BP Financier'!$C$16+'BP Financier'!$C$19+'BP Financier'!$D$16+'BP Financier'!$D$19+'BP Financier'!$E$16+'BP Financier'!$E$19+'BP Financier'!$C$22+'BP Financier'!$D$22+'BP Financier'!$E$22+'BP Financier'!$F$16+'BP Financier'!$F$19+'BP Financier'!$F$22+'BP Financier'!$G$16+'BP Financier'!$G$19+'BP Financier'!$G$22))*$V8152*AB8152/(1-$W8152)","v":{"v":128895.54340407152,"d":"128,896"}},null,{"v":0.01,"d":"1.00%"},{"$f":"Actif!$E$28/100","v":{"v":0.28900000000000003,"d":"28.90%"}},{"$f":"Actif!$E$30/100","v":{"v":0.09050000000000001,"d":"9.05%"}},{"$f":"Actif!$E$31/100","v":{"v":0.0605,"d":"6.05%"}},{"$f":"Actif!$E$32/100","v":{"v":0.47350000000000003,"d":"47.35%"}},{"$f":"Actif!$E$33/100","v":{"v":0.0585,"d":"5.85%"}},{"$f":"Actif!$E$29/100","v":{"v":0.027999999999999997,"d":"2.80%"}}]
[null,"#40",25,2031,"H","A_VIE",{"v":0.44999999999999996,"d":"0.45"},{"v":0.38999999999999996,"d":"0.39"},0.6,0.6,85,0,{"$f":"ROUND(Primes!$Q$4*V8153,0)","v":114},{"$f":"'BP Financier'!$G$33*(('BP Financier'!$C$16+'BP Financier'!$D$16+'BP Financier'!$E$16+'BP Financier'!$F$16+'BP Financier'!$G$16)/('BP Financier'!$C$16+'BP Financier'!$C$19+'BP Financier'!$D$16+'BP Financier'!$D$19+'BP Financier'!$E$16+'BP Financier'!$E$19+'BP Financier'!$F$16+'BP Financier'!$F$19+'BP Financier'!$G$19+'BP Financier'!$G$16))*V8153","v":{"v":5702786.7431878345,"d":"5,702,787"}},{"v":3273026.120010531,"d":"3,273,026"},{"$f":"'BP Financier'!$G$44*(('BP Financier'!$C$16+'BP Financier'!$D$16+'BP Financier'!$E$16+'BP Financier'!$F$16+'BP Financier'!$G$16)/('BP Financier'!$C$16+'BP Financier'!$C$19+'BP Financier'!$D$16+'BP Financier'!$D$19+'BP Financier'!$E$16+'BP Financier'!$E$19+'BP Financier'!$C$22+'BP Financier'!$D$22+'BP Financier'!$E$22+'BP Financier'!$F$16+'BP Financier'!$F$19+'BP Financier'!$F$22+'BP Financier'!$G$16+'BP Financier'!$G$19+'BP Financier'!$G$22))*$V8153*X8153/(1-$W8153)","v":{"v":416608.809931017,"d":"416,609"}},{"$f":"'BP Financier'!$G$44*(('BP Financier'!$C$16+'BP Financier'!$D$16+'BP Financier'!$E$16+'BP Financier'!$F$16+'BP Financier'!$G$16)/('BP Financier'!$C$16+'BP Financier'!$C$19+'BP Financier'!$D$16+'BP Financier'!$D$19+'BP Financier'!$E$16+'BP Financier'!$E$19+'BP Financier'!$C$22+'BP Financier'!$D$22+'BP Financier'!$E$22+'BP Financier'!$F$16+'BP Financier'!$F$19+'BP Financier'!$F$22+'BP Financier'!$G$16+'BP Financier'!$G$19+'BP Financier'!$G$22))*$V8153*Y8153/(1-$W8153)","v":{"v":278506.44199808314,"d":"278,506"}},{"$f":"'BP Financier'!$G$44*(('BP Financier'!$C$16+'BP Financier'!$D$16+'BP Financier'!$E$16+'BP Financier'!$F$16+'BP Financier'!$G$16)/('BP Financier'!$C$16+'BP Financier'!$C$19+'BP Financier'!$D$16+'BP Financier'!$D$19+'BP Financier'!$E$16+'BP Financier'!$E$19+'BP Financier'!$C$22+'BP Financier'!$D$22+'BP Financier'!$E$22+'BP Financier'!$F$16+'BP Financier'!$F$19+'BP Financier'!$F$22+'BP Financier'!$G$16+'BP Financier'!$G$19+'BP Financier'!$G$22))*$V8153*Z8153/(1-$W8153)","v":{"v":2179715.7072081384,"d":"2,179,716"}},{"$f":"'BP Financier'!$G$44*(('BP Financier'!$C$16+'BP Financier'!$D$16+'BP Financier'!$E$16+'BP Financier'!$F$16+'BP Financier'!$G$16)/('BP Financier'!$C$16+'BP Financier'!$C$19+'BP Financier'!$D$16+'BP Financier'!$D$19+'BP Financier'!$E$16+'BP Financier'!$E$19+'BP Financier'!$C$22+'BP Financier'!$D$22+'BP Financier'!$E$22+'BP Financier'!$F$16+'BP Financier'!$F$19+'BP Financier'!$F$22+'BP Financier'!$G$16+'BP Financier'!$G$19+'BP Financier'!$G$22))*$V8153*AA8153/(1-$W8153)","v":{"v":269299.6174692209,"d":"269,300"}},{"$f":"'BP Financier'!$G$44*(('BP Financier'!$C$16+'BP Financier'!$D$16+'BP Financier'!$E$16+'BP Financier'!$F$16+'BP Financier'!$G$16)/('BP Financier'!$C$16+'BP Financier'!$C$19+'BP Financier'!$D$16+'BP Financier'!$D$19+'BP Financier'!$E$16+'BP Financier'!$E$19+'BP Financier'!$C$22+'BP Financier'!$D$22+'BP Financier'!$E$22+'BP Financier'!$F$16+'BP Financier'!$F$19+'BP Financier'!$F$22+'BP Financier'!$G$16+'BP Financier'!$G$19+'BP Financier'!$G$22))*$V8153*AB8153/(1-$W8153)","v":{"v":128895.54340407152,"d":"128,896"}},null,{"v":0.01,"d":"1.00%"},{"$f":"Actif!$E$28/100","v":{"v":0.28900000000000003,"d":"28.90%"}},{"$f":"Actif!$E$30/100","v":{"v":0.09050000000000001,"d":"9.05%"}},{"$f":"Actif!$E$31/100","v":{"v":0.0605,"d":"6.05%"}},{"$f":"Actif!$E$32/100","v":{"v":0.47350000000000003,"d":"47.35%"}},{"$f":"Actif!$E$33/100","v":{"v":0.0585,"d":"5.85%"}},{"$f":"Actif!$E$29/100","v":{"v":0.027999999999999997,"d":"2.80%"}}]
[null,"#41",26,2026,"F","A_VIE",{"v":0.44999999999999996,"d":"0.45"},{"v":0.38999999999999996,"d":"0.39"},0.6,0.6,85,0,{"$f":"ROUND(Primes!$Q$4*V8154,0)","v":68},{"$f":"'BP Financier'!$G$33*(('BP Financier'!$C$16+'BP Financier'!$D$16+'BP Financier'!$E$16+'BP Financier'!$F$16+'BP Financier'!$G$16)/('BP Financier'!$C$16+'BP Financier'!$C$19+'BP Financier'!$D$16+'BP Financier'!$D$19+'BP Financier'!$E$16+'BP Financier'!$E$19+'BP Financier'!$F$16+'BP Financier'!$F$19+'BP Financier'!$G$19+'BP Financier'!$G$16))*V8154","v":{"v":3421672.0459127007,"d":"3,421,672"}},{"v":1963815.672006318,"d":"1,963,816"},{"$f":"'BP Financier'!$G$44*(('BP Financier'!$C$16+'BP Financier'!$D$16+'BP Financier'!$E$16+'BP Financier'!$F$16+'BP Financier'!$G$16)/('BP Financier'!$C$16+'BP Financier'!$C$19+'BP Financier'!$D$16+'BP Financier'!$D$19+'BP Financier'!$E$16+'BP Financier'!$E$19+'BP Financier'!$C$22+'BP Financier'!$D$22+'BP Financier'!$E$22+'BP Financier'!$F$16+'BP Financier'!$F$19+'BP Financier'!$F$22+'BP Financier'!$G$16+'BP Financier'!$G$19+'BP Financier'!$G$22))*$V8154*X8154/(1-$W8154)","v":{"v":249965.28595861018,"d":"249,965"}},{"$f":"'BP Financier'!$G$44*(('BP Financier'!$C$16+'BP Financier'!$D$16+'BP Financier'!$E$16+'BP Financier'!$F$16+'BP Financier'!$G$16)/('BP Financier'!$C$16+'BP Financier'!$C$19+'BP Financier'!$D$16+'BP Financier'!$D$19+'BP Financier'!$E$16+'BP Financier'!$E$19+'BP Financier'!$C$22+'BP Financier'!$D$22+'BP Financier'!$E$22+'BP Financier'!$F$16+'BP Financier'!$F$19+'BP Financier'!$F$22+'BP Financier'!$G$16+'BP Financier'!$G$19+'BP Financier'!$G$22))*$V8154*Y8154/(1-$W8154)","v":{"v":167103.86519884988,"d":"167,104"}},{"$f":"'BP Financier'!$G$44*(('BP Financier'!$C$16+'BP Financier'!$D$16+'BP Financier'!$E$16+'BP Financier'!$F$16+'BP Financier'!$G$16)/('BP Financier'!$C$16+'BP Financier'!$C$19+'BP Financier'!$D$16+'BP Financier'!$D$19+'BP Financier'!$E$16+'BP Financier'!$E$19+'BP Financier'!$C$22+'BP Financier'!$D$22+'BP Financier'!$E$22+'BP Financier'!$F$16+'BP Financier'!$F$19+'BP Financier'!$F$22+'BP Financier'!$G$16+'BP Financier'!$G$19+'BP Financier'!$G$22))*$V8154*Z8154/(1-$W8154)","v":{"v":1307829.424324883,"d":"1,307,829"}},{"$f":"'BP Financier'!$G$44*(('BP Financier'!$C$16+'BP Financier'!$D$16+'BP Financier'!$E$16+'BP Financier'!$F$16+'BP Financier'!$G$16)/('BP Financier'!$C$16+'BP Financier'!$C$19+'BP Financier'!$D$16+'BP Financier'!$D$19+'BP Financier'!$E$16+'BP Financier'!$E$19+'BP Financier'!$C$22+'BP Financier'!$D$22+'BP Financier'!$E$22+'BP Financier'!$F$16+'BP Financier'!$F$19+'BP Financier'!$F$22+'BP Financier'!$G$16+'BP Financier'!$G$19+'BP Financier'!$G$22))*$V8154*AA8154/(1-$W8154)","v":{"v":161579.77048153256,"d":"161,580"}},{"$f":"'BP Financier'!$G$44*(('BP Financier'!$C$16+'BP Financier'!$D$16+'BP Financier'!$E$16+'BP Financier'!$F$16+'BP Financier'!$G$16)/('BP Financier'!$C$16+'BP Financier'!$C$19+'BP Financier'!$D$16+'BP Financier'!$D$19+'BP Financier'!$E$16+'BP Financier'!$E$19+'BP Financier'!$C$22+'BP Financier'!$D$22+'BP Financier'!$E$22+'BP Financier'!$F$16+'BP Financier'!$F$19+'BP Financier'!$F$22+'BP Financier'!$G$16+'BP Financier'!$G$19+'BP Financier'!$G$22))*$V8154*AB8154/(1-$W8154)","v":{"v":77337.32604244292,"d":"77,337"}},null,{"v":0.006,"d":"0.60%"},{"$f":"Actif!$E$28/100","v":{"v":0.28900000000000003,"d":"28.90%"}},{"$f":"Actif!$E$30/100","v":{"v":0.09050000000000001,"d":"9.05%"}},{"$f":"Actif!$E$31/100","v":{"v":0.0605,"d":"6.05%"}},{"$f":"Actif!$E$32/100","v":{"v":0.47350000000000003,"d":"47.35%"}},{"$f":"Actif!$E$33/100","v":{"v":0.0585,"d":"5.85%"}},{"$f":"Actif!$E$29/100","v":{"v":0.027999999999999997,"d":"2.80%"}}]
[null,"#42",26,2028,"F","A_VIE",{"v":0.44999999999999996,"d":"0.45"},{"v":0.38999999999999996,"d":"0.39"},0.6,0.6,85,0,{"$f":"ROUND(Primes!$Q$4*V8155,0)","v":68},{"$f":"'BP Financier'!$G$33*(('BP Financier'!$C$16+'BP Financier'!$D$16+'BP Financier'!$E$16+'BP Financier'!$F$16+'BP Financier'!$G$16)/('BP Financier'!$C$16+'BP Financier'!$C$19+'BP Financier'!$D$16+'BP Financier'!$D$19+'BP Financier'!$E$16+'BP Financier'!$E$19+'BP Financier'!$F$16+'BP Financier'!$F$19+'BP Financier'!$G$19+'BP Financier'!$G$16))*V8155","v":{"v":3421672.0459127007,"d":"3,421,672"}},{"v":1963815.672006318,"d":"1,963,816"},{"$f":"'BP Financier'!$G$44*(('BP Financier'!$C$16+'BP Financier'!$D$16+'BP Financier'!$E$16+'BP Financier'!$F$16+'BP Financier'!$G$16)/('BP Financier'!$C$16+'BP Financier'!$C$19+'BP Financier'!$D$16+'BP Financier'!$D$19+'BP Financier'!$E$16+'BP Financier'!$E$19+'BP Financier'!$C$22+'BP Financier'!$D$22+'BP Financier'!$E$22+'BP Financier'!$F$16+'BP Financier'!$F$19+'BP Financier'!$F$22+'BP Financier'!$G$16+'BP Financier'!$G$19+'BP Financier'!$G$22))*$V8155*X8155/(1-$W8155)","v":{"v":249965.28595861018,"d":"249,965"}},{"$f":"'BP Financier'!$G$44*(('BP Financier'!$C$16+'BP Financier'!$D$16+'BP Financier'!$E$16+'BP Financier'!$F$16+'BP Financier'!$G$16)/('BP Financier'!$C$16+'BP Financier'!$C$19+'BP Financier'!$D$16+'BP Financier'!$D$19+'BP Financier'!$E$16+'BP Financier'!$E$19+'BP Financier'!$C$22+'BP Financier'!$D$22+'BP Financier'!$E$22+'BP Financier'!$F$16+'BP Financier'!$F$19+'BP Financier'!$F$22+'BP Financier'!$G$16+'BP Financier'!$G$19+'BP Financier'!$G$22))*$V8155*Y8155/(1-$W8155)","v":{"v":167103.86519884988,"d":"167,104"}},{"$f":"'BP Financier'!$G$44*(('BP Financier'!$C$16+'BP Financier'!$D$16+'BP Financier'!$E$16+'BP Financier'!$F$16+'BP Financier'!$G$16)/('BP Financier'!$C$16+'BP Financier'!$C$19+'BP Financier'!$D$16+'BP Financier'!$D$19+'BP Financier'!$E$16+'BP Financier'!$E$19+'BP Financier'!$C$22+'BP Financier'!$D$22+'BP Financier'!$E$22+'BP Financier'!$F$16+'BP Financier'!$F$19+'BP Financier'!$F$22+'BP Financier'!$G$16+'BP Financier'!$G$19+'BP Financier'!$G$22))*$V8155*Z8155/(1-$W8155)","v":{"v":1307829.424324883,"d":"1,307,829"}},{"$f":"'BP Financier'!$G$44*(('BP Financier'!$C$16+'BP Financier'!$D$16+'BP Financier'!$E$16+'BP Financier'!$F$16+'BP Financier'!$G$16)/('BP Financier'!$C$16+'BP Financier'!$C$19+'BP Financier'!$D$16+'BP Financier'!$D$19+'BP Financier'!$E$16+'BP Financier'!$E$19+'BP Financier'!$C$22+'BP Financier'!$D$22+'BP Financier'!$E$22+'BP Financier'!$F$16+'BP Financier'!$F$19+'BP Financier'!$F$22+'BP Financier'!$G$16+'BP Financier'!$G$19+'BP Financier'!$G$22))*$V8155*AA8155/(1-$W8155)","v":{"v":161579.77048153256,"d":"161,580"}},{"$f":"'BP Financier'!$G$44*(('BP Financier'!$C$16+'BP Financier'!$D$16+'BP Financier'!$E$16+'BP Financier'!$F$16+'BP Financier'!$G$16)/('BP Financier'!$C$16+'BP Financier'!$C$19+'BP Financier'!$D$16+'BP Financier'!$D$19+'BP Financier'!$E$16+'BP Financier'!$E$19+'BP Financier'!$C$22+'BP Financier'!$D$22+'BP Financier'!$E$22+'BP Financier'!$F$16+'BP Financier'!$F$19+'BP Financier'!$F$22+'BP Financier'!$G$16+'BP Financier'!$G$19+'BP Financier'!$G$22))*$V8155*AB8155/(1-$W8155)","v":{"v":77337.32604244292,"d":"77,337"}},null,{"v":0.006,"d":"0.60%"},{"$f":"Actif!$E$28/100","v":{"v":0.28900000000000003,"d":"28.90%"}},{"$f":"Actif!$E$30/100","v":{"v":0.09050000000000001,"d":"9.05%"}},{"$f":"Actif!$E$31/100","v":{"v":0.0605,"d":"6.05%"}},{"$f":"Actif!$E$32/100","v":{"v":0.47350000000000003,"d":"47.35%"}},{"$f":"Actif!$E$33/100","v":{"v":0.0585,"d":"5.85%"}},{"$f":"Actif!$E$29/100","v":{"v":0.027999999999999997,"d":"2.80%"}}]
[null,"#43",26,2029,"F","A_VIE",{"v":0.44999999999999996,"d":"0.45"},{"v":0.38999999999999996,"d":"0.39"},0.6,0.6,85,0,{"$f":"ROUND(Primes!$Q$4*V8156,0)","v":68},{"$f":"'BP Financier'!$G$33*(('BP Financier'!$C$16+'BP Financier'!$D$16+'BP Financier'!$E$16+'BP Financier'!$F$16+'BP Financier'!$G$16)/('BP Financier'!$C$16+'BP Financier'!$C$19+'BP Financier'!$D$16+'BP Financier'!$D$19+'BP Financier'!$E$16+'BP Financier'!$E$19+'BP Financier'!$F$16+'BP Financier'!$F$19+'BP Financier'!$G$19+'BP Financier'!$G$16))*V8156","v":{"v":3421672.0459127007,"d":"3,421,672"}},{"v":1963815.672006318,"d":"1,963,816"},{"$f":"'BP Financier'!$G$44*(('BP Financier'!$C$16+'BP Financier'!$D$16+'BP Financier'!$E$16+'BP Financier'!$F$16+'BP Financier'!$G$16)/('BP Financier'!$C$16+'BP Financier'!$C$19+'BP Financier'!$D$16+'BP Financier'!$D$19+'BP Financier'!$E$16+'BP Financier'!$E$19+'BP Financier'!$C$22+'BP Financier'!$D$22+'BP Financier'!$E$22+'BP Financier'!$F$16+'BP Financier'!$F$19+'BP Financier'!$F$22+'BP Financier'!$G$16+'BP Financier'!$G$19+'BP Financier'!$G$22))*$V8156*X8156/(1-$W8156)","v":{"v":249965.28595861018,"d":"249,965"}},{"$f":"'BP Financier'!$G$44*(('BP Financier'!$C$16+'BP Financier'!$D$16+'BP Financier'!$E$16+'BP Financier'!$F$16+'BP Financier'!$G$16)/('BP Financier'!$C$16+'BP Financier'!$C$19+'BP Financier'!$D$16+'BP Financier'!$D$19+'BP Financier'!$E$16+'BP Financier'!$E$19+'BP Financier'!$C$22+'BP Financier'!$D$22+'BP Financier'!$E$22+'BP Financier'!$F$16+'BP Financier'!$F$19+'BP Financier'!$F$22+'BP Financier'!$G$16+'BP Financier'!$G$19+'BP Financier'!$G$22))*$V8156*Y8156/(1-$W8156)","v":{"v":167103.86519884988,"d":"167,104"}},{"$f":"'BP Financier'!$G$44*(('BP Financier'!$C$16+'BP Financier'!$D$16+'BP Financier'!$E$16+'BP Financier'!$F$16+'BP Financier'!$G$16)/('BP Financier'!$C$16+'BP Financier'!$C$19+'BP Financier'!$D$16+'BP Financier'!$D$19+'BP Financier'!$E$16+'BP Financier'!$E$19+'BP Financier'!$C$22+'BP Financier'!$D$22+'BP Financier'!$E$22+'BP Financier'!$F$16+'BP Financier'!$F$19+'BP Financier'!$F$22+'BP Financier'!$G$16+'BP Financier'!$G$19+'BP Financier'!$G$22))*$V8156*Z8156/(1-$W8156)","v":{"v":1307829.424324883,"d":"1,307,829"}},{"$f":"'BP Financier'!$G$44*(('BP Financier'!$C$16+'BP Financier'!$D$16+'BP Financier'!$E$16+'BP Financier'!$F$16+'BP Financier'!$G$16)/('BP Financier'!$C$16+'BP Financier'!$C$19+'BP Financier'!$D$16+'BP Financier'!$D$19+'BP Financier'!$E$16+'BP Financier'!$E$19+'BP Financier'!$C$22+'BP Financier'!$D$22+'BP Financier'!$E$22+'BP Financier'!$F$16+'BP Financier'!$F$19+'BP Financier'!$F$22+'BP Financier'!$G$16+'BP Financier'!$G$19+'BP Financier'!$G$22))*$V8156*AA8156/(1-$W8156)","v":{"v":161579.77048153256,"d":"161,580"}},{"$f":"'BP Financier'!$G$44*(('BP Financier'!$C$16+'BP Financier'!$D$16+'BP Financier'!$E$16+'BP Financier'!$F$16+'BP Financier'!$G$16)/('BP Financier'!$C$16+'BP Financier'!$C$19+'BP Financier'!$D$16+'BP Financier'!$D$19+'BP Financier'!$E$16+'BP Financier'!$E$19+'BP Financier'!$C$22+'BP Financier'!$D$22+'BP Financier'!$E$22+'BP Financier'!$F$16+'BP Financier'!$F$19+'BP Financier'!$F$22+'BP Financier'!$G$16+'BP Financier'!$G$19+'BP Financier'!$G$22))*$V8156*AB8156/(1-$W8156)","v":{"v":77337.32604244292,"d":"77,337"}},null,{"v":0.006,"d":"0.60%"},{"$f":"Actif!$E$28/100","v":{"v":0.28900000000000003,"d":"28.90%"}},{"$f":"Actif!$E$30/100","v":{"v":0.09050000000000001,"d":"9.05%"}},{"$f":"Actif!$E$31/100","v":{"v":0.0605,"d":"6.05%"}},{"$f":"Actif!$E$32/100","v":{"v":0.47350000000000003,"d":"47.35%"}},{"$f":"Actif!$E$33/100","v":{"v":0.0585,"d":"5.85%"}},{"$f":"Actif!$E$29/100","v":{"v":0.027999999999999997,"d":"2.80%"}}]
[null,"#44",26,2030,"F","A_VIE",{"v":0.44999999999999996,"d":"0.45"},{"v":0.38999999999999996,"d":"0.39"},0.6,0.6,85,0,{"$f":"ROUND(Primes!$Q$4*V8157,0)","v":68},{"$f":"'BP Financier'!$G$33*(('BP Financier'!$C$16+'BP Financier'!$D$16+'BP Financier'!$E$16+'BP Financier'!$F$16+'BP Financier'!$G$16)/('BP Financier'!$C$16+'BP Financier'!$C$19+'BP Financier'!$D$16+'BP Financier'!$D$19+'BP Financier'!$E$16+'BP Financier'!$E$19+'BP Financier'!$F$16+'BP Financier'!$F$19+'BP Financier'!$G$19+'BP Financier'!$G$16))*V8157","v":{"v":3421672.0459127007,"d":"3,421,672"}},{"v":1963815.672006318,"d":"1,963,816"},{"$f":"'BP Financier'!$G$44*(('BP Financier'!$C$16+'BP Financier'!$D$16+'BP Financier'!$E$16+'BP Financier'!$F$16+'BP Financier'!$G$16)/('BP Financier'!$C$16+'BP Financier'!$C$19+'BP Financier'!$D$16+'BP Financier'!$D$19+'BP Financier'!$E$16+'BP Financier'!$E$19+'BP Financier'!$C$22+'BP Financier'!$D$22+'BP Financier'!$E$22+'BP Financier'!$F$16+'BP Financier'!$F$19+'BP Financier'!$F$22+'BP Financier'!$G$16+'BP Financier'!$G$19+'BP Financier'!$G$22))*$V8157*X8157/(1-$W8157)","v":{"v":249965.28595861018,"d":"249,965"}},{"$f":"'BP Financier'!$G$44*(('BP Financier'!$C$16+'BP Financier'!$D$16+'BP Financier'!$E$16+'BP Financier'!$F$16+'BP Financier'!$G$16)/('BP Financier'!$C$16+'BP Financier'!$C$19+'BP Financier'!$D$16+'BP Financier'!$D$19+'BP Financier'!$E$16+'BP Financier'!$E$19+'BP Financier'!$C$22+'BP Financier'!$D$22+'BP Financier'!$E$22+'BP Financier'!$F$16+'BP Financier'!$F$19+'BP Financier'!$F$22+'BP Financier'!$G$16+'BP Financier'!$G$19+'BP Financier'!$G$22))*$V8157*Y8157/(1-$W8157)","v":{"v":167103.86519884988,"d":"167,104"}},{"$f":"'BP Financier'!$G$44*(('BP Financier'!$C$16+'BP Financier'!$D$16+'BP Financier'!$E$16+'BP Financier'!$F$16+'BP Financier'!$G$16)/('BP Financier'!$C$16+'BP Financier'!$C$19+'BP Financier'!$D$16+'BP Financier'!$D$19+'BP Financier'!$E$16+'BP Financier'!$E$19+'BP Financier'!$C$22+'BP Financier'!$D$22+'BP Financier'!$E$22+'BP Financier'!$F$16+'BP Financier'!$F$19+'BP Financier'!$F$22+'BP Financier'!$G$16+'BP Financier'!$G$19+'BP Financier'!$G$22))*$V8157*Z8157/(1-$W8157)","v":{"v":1307829.424324883,"d":"1,307,829"}},{"$f":"'BP Financier'!$G$44*(('BP Financier'!$C$16+'BP Financier'!$D$16+'BP Financier'!$E$16+'BP Financier'!$F$16+'BP Financier'!$G$16)/('BP Financier'!$C$16+'BP Financier'!$C$19+'BP Financier'!$D$16+'BP Financier'!$D$19+'BP Financier'!$E$16+'BP Financier'!$E$19+'BP Financier'!$C$22+'BP Financier'!$D$22+'BP Financier'!$E$22+'BP Financier'!$F$16+'BP Financier'!$F$19+'BP Financier'!$F$22+'BP Financier'!$G$16+'BP Financier'!$G$19+'BP Financier'!$G$22))*$V8157*AA8157/(1-$W8157)","v":{"v":161579.77048153256,"d":"161,580"}},{"$f":"'BP Financier'!$G$44*(('BP Financier'!$C$16+'BP Financier'!$D$16+'BP Financier'!$E$16+'BP Financier'!$F$16+'BP Financier'!$G$16)/('BP Financier'!$C$16+'BP Financier'!$C$19+'BP Financier'!$D$16+'BP Financier'!$D$19+'BP Financier'!$E$16+'BP Financier'!$E$19+'BP Financier'!$C$22+'BP Financier'!$D$22+'BP Financier'!$E$22+'BP Financier'!$F$16+'BP Financier'!$F$19+'BP Financier'!$F$22+'BP Financier'!$G$16+'BP Financier'!$G$19+'BP Financier'!$G$22))*$V8157*AB8157/(1-$W8157)","v":{"v":77337.32604244292,"d":"77,337"}},null,{"v":0.006,"d":"0.60%"},{"$f":"Actif!$E$28/100","v":{"v":0.28900000000000003,"d":"28.90%"}},{"$f":"Actif!$E$30/100","v":{"v":0.09050000000000001,"d":"9.05%"}},{"$f":"Actif!$E$31/100","v":{"v":0.0605,"d":"6.05%"}},{"$f":"Actif!$E$32/100","v":{"v":0.47350000000000003,"d":"47.35%"}},{"$f":"Actif!$E$33/100","v":{"v":0.0585,"d":"5.85%"}},{"$f":"Actif!$E$29/100","v":{"v":0.027999999999999997,"d":"2.80%"}}]
[null,"#45",26,2031,"F","A_VIE",{"v":0.44999999999999996,"d":"0.45"},{"v":0.38999999999999996,"d":"0.39"},0.6,0.6,85,0,{"$f":"ROUND(Primes!$Q$4*V8158,0)","v":68},{"$f":"'BP Financier'!$G$33*(('BP Financier'!$C$16+'BP Financier'!$D$16+'BP Financier'!$E$16+'BP Financier'!$F$16+'BP Financier'!$G$16)/('BP Financier'!$C$16+'BP Financier'!$C$19+'BP Financier'!$D$16+'BP Financier'!$D$19+'BP Financier'!$E$16+'BP Financier'!$E$19+'BP Financier'!$F$16+'BP Financier'!$F$19+'BP Financier'!$G$19+'BP Financier'!$G$16))*V8158","v":{"v":3421672.0459127007,"d":"3,421,672"}},{"v":1963815.672006318,"d":"1,963,816"},{"$f":"'BP Financier'!$G$44*(('BP Financier'!$C$16+'BP Financier'!$D$16+'BP Financier'!$E$16+'BP Financier'!$F$16+'BP Financier'!$G$16)/('BP Financier'!$C$16+'BP Financier'!$C$19+'BP Financier'!$D$16+'BP Financier'!$D$19+'BP Financier'!$E$16+'BP Financier'!$E$19+'BP Financier'!$C$22+'BP Financier'!$D$22+'BP Financier'!$E$22+'BP Financier'!$F$16+'BP Financier'!$F$19+'BP Financier'!$F$22+'BP Financier'!$G$16+'BP Financier'!$G$19+'BP Financier'!$G$22))*$V8158*X8158/(1-$W8158)","v":{"v":249965.28595861018,"d":"249,965"}},{"$f":"'BP Financier'!$G$44*(('BP Financier'!$C$16+'BP Financier'!$D$16+'BP Financier'!$E$16+'BP Financier'!$F$16+'BP Financier'!$G$16)/('BP Financier'!$C$16+'BP Financier'!$C$19+'BP Financier'!$D$16+'BP Financier'!$D$19+'BP Financier'!$E$16+'BP Financier'!$E$19+'BP Financier'!$C$22+'BP Financier'!$D$22+'BP Financier'!$E$22+'BP Financier'!$F$16+'BP Financier'!$F$19+'BP Financier'!$F$22+'BP Financier'!$G$16+'BP Financier'!$G$19+'BP Financier'!$G$22))*$V8158*Y8158/(1-$W8158)","v":{"v":167103.86519884988,"d":"167,104"}},{"$f":"'BP Financier'!$G$44*(('BP Financier'!$C$16+'BP Financier'!$D$16+'BP Financier'!$E$16+'BP Financier'!$F$16+'BP Financier'!$G$16)/('BP Financier'!$C$16+'BP Financier'!$C$19+'BP Financier'!$D$16+'BP Financier'!$D$19+'BP Financier'!$E$16+'BP Financier'!$E$19+'BP Financier'!$C$22+'BP Financier'!$D$22+'BP Financier'!$E$22+'BP Financier'!$F$16+'BP Financier'!$F$19+'BP Financier'!$F$22+'BP Financier'!$G$16+'BP Financier'!$G$19+'BP Financier'!$G$22))*$V8158*Z8158/(1-$W8158)","v":{"v":1307829.424324883,"d":"1,307,829"}},{"$f":"'BP Financier'!$G$44*(('BP Financier'!$C$16+'BP Financier'!$D$16+'BP Financier'!$E$16+'BP Financier'!$F$16+'BP Financier'!$G$16)/('BP Financier'!$C$16+'BP Financier'!$C$19+'BP Financier'!$D$16+'BP Financier'!$D$19+'BP Financier'!$E$16+'BP Financier'!$E$19+'BP Financier'!$C$22+'BP Financier'!$D$22+'BP Financier'!$E$22+'BP Financier'!$F$16+'BP Financier'!$F$19+'BP Financier'!$F$22+'BP Financier'!$G$16+'BP Financier'!$G$19+'BP Financier'!$G$22))*$V8158*AA8158/(1-$W8158)","v":{"v":161579.77048153256,"d":"161,580"}},{"$f":"'BP Financier'!$G$44*(('BP Financier'!$C$16+'BP Financier'!$D$16+'BP Financier'!$E$16+'BP Financier'!$F$16+'BP Financier'!$G$16)/('BP Financier'!$C$16+'BP Financier'!$C$19+'BP Financier'!$D$16+'BP Financier'!$D$19+'BP Financier'!$E$16+'BP Financier'!$E$19+'BP Financier'!$C$22+'BP Financier'!$D$22+'BP Financier'!$E$22+'BP Financier'!$F$16+'BP Financier'!$F$19+'BP Financier'!$F$22+'BP Financier'!$G$16+'BP Financier'!$G$19+'BP Financier'!$G$22))*$V8158*AB8158/(1-$W8158)","v":{"v":77337.32604244292,"d":"77,337"}},null,{"v":0.006,"d":"0.60%"},{"$f":"Actif!$E$28/100","v":{"v":0.28900000000000003,"d":"28.90%"}},{"$f":"Actif!$E$30/100","v":{"v":0.09050000000000001,"d":"9.05%"}},{"$f":"Actif!$E$31/100","v":{"v":0.0605,"d":"6.05%"}},{"$f":"Actif!$E$32/100","v":{"v":0.47350000000000003,"d":"47.35%"}},{"$f":"Actif!$E$33/100","v":{"v":0.0585,"d":"5.85%"}},{"$f":"Actif!$E$29/100","v":{"v":0.027999999999999997,"d":"2.80%"}}]
[null,"#46",27,2026,"H","A_VIE",{"v":0.44999999999999996,"d":"0.45"},{"v":0.38999999999999996,"d":"0.39"},0.6,0.6,85,0,{"$f":"ROUND(Primes!$Q$4*V8159,0)","v":68},{"$f":"'BP Financier'!$G$33*(('BP Financier'!$C$16+'BP Financier'!$D$16+'BP Financier'!$E$16+'BP Financier'!$F$16+'BP Financier'!$G$16)/('BP Financier'!$C$16+'BP Financier'!$C$19+'BP Financier'!$D$16+'BP Financier'!$D$19+'BP Financier'!$E$16+'BP Financier'!$E$19+'BP Financier'!$F$16+'BP Financier'!$F$19+'BP Financier'!$G$19+'BP Financier'!$G$16))*V8159","v":{"v":3421672.0459127007,"d":"3,421,672"}},{"v":1963815.672006318,"d":"1,963,816"},{"$f":"'BP Financier'!$G$44*(('BP Financier'!$C$16+'BP Financier'!$D$16+'BP Financier'!$E$16+'BP Financier'!$F$16+'BP Financier'!$G$16)/('BP Financier'!$C$16+'BP Financier'!$C$19+'BP Financier'!$D$16+'BP Financier'!$D$19+'BP Financier'!$E$16+'BP Financier'!$E$19+'BP Financier'!$C$22+'BP Financier'!$D$22+'BP Financier'!$E$22+'BP Financier'!$F$16+'BP Financier'!$F$19+'BP Financier'!$F$22+'BP Financier'!$G$16+'BP Financier'!$G$19+'BP Financier'!$G$22))*$V8159*X8159/(1-$W8159)","v":{"v":249965.28595861018,"d":"249,965"}},{"$f":"'BP Financier'!$G$44*(('BP Financier'!$C$16+'BP Financier'!$D$16+'BP Financier'!$E$16+'BP Financier'!$F$16+'BP Financier'!$G$16)/('BP Financier'!$C$16+'BP Financier'!$C$19+'BP Financier'!$D$16+'BP Financier'!$D$19+'BP Financier'!$E$16+'BP Financier'!$E$19+'BP Financier'!$C$22+'BP Financier'!$D$22+'BP Financier'!$E$22+'BP Financier'!$F$16+'BP Financier'!$F$19+'BP Financier'!$F$22+'BP Financier'!$G$16+'BP Financier'!$G$19+'BP Financier'!$G$22))*$V8159*Y8159/(1-$W8159)","v":{"v":167103.86519884988,"d":"167,104"}},{"$f":"'BP Financier'!$G$44*(('BP Financier'!$C$16+'BP Financier'!$D$16+'BP Financier'!$E$16+'BP Financier'!$F$16+'BP Financier'!$G$16)/('BP Financier'!$C$16+'BP Financier'!$C$19+'BP Financier'!$D$16+'BP Financier'!$D$19+'BP Financier'!$E$16+'BP Financier'!$E$19+'BP Financier'!$C$22+'BP Financier'!$D$22+'BP Financier'!$E$22+'BP Financier'!$F$16+'BP Financier'!$F$19+'BP Financier'!$F$22+'BP Financier'!$G$16+'BP Financier'!$G$19+'BP Financier'!$G$22))*$V8159*Z8159/(1-$W8159)","v":{"v":1307829.424324883,"d":"1,307,829"}},{"$f":"'BP Financier'!$G$44*(('BP Financier'!$C$16+'BP Financier'!$D$16+'BP Financier'!$E$16+'BP Financier'!$F$16+'BP Financier'!$G$16)/('BP Financier'!$C$16+'BP Financier'!$C$19+'BP Financier'!$D$16+'BP Financier'!$D$19+'BP Financier'!$E$16+'BP Financier'!$E$19+'BP Financier'!$C$22+'BP Financier'!$D$22+'BP Financier'!$E$22+'BP Financier'!$F$16+'BP Financier'!$F$19+'BP Financier'!$F$22+'BP Financier'!$G$16+'BP Financier'!$G$19+'BP Financier'!$G$22))*$V8159*AA8159/(1-$W8159)","v":{"v":161579.77048153256,"d":"161,580"}},{"$f":"'BP Financier'!$G$44*(('BP Financier'!$C$16+'BP Financier'!$D$16+'BP Financier'!$E$16+'BP Financier'!$F$16+'BP Financier'!$G$16)/('BP Financier'!$C$16+'BP Financier'!$C$19+'BP Financier'!$D$16+'BP Financier'!$D$19+'BP Financier'!$E$16+'BP Financier'!$E$19+'BP Financier'!$C$22+'BP Financier'!$D$22+'BP Financier'!$E$22+'BP Financier'!$F$16+'BP Financier'!$F$19+'BP Financier'!$F$22+'BP Financier'!$G$16+'BP Financier'!$G$19+'BP Financier'!$G$22))*$V8159*AB8159/(1-$W8159)","v":{"v":77337.32604244292,"d":"77,337"}},null,{"v":0.006,"d":"0.60%"},{"$f":"Actif!$E$28/100","v":{"v":0.28900000000000003,"d":"28.90%"}},{"$f":"Actif!$E$30/100","v":{"v":0.09050000000000001,"d":"9.05%"}},{"$f":"Actif!$E$31/100","v":{"v":0.0605,"d":"6.05%"}},{"$f":"Actif!$E$32/100","v":{"v":0.47350000000000003,"d":"47.35%"}},{"$f":"Actif!$E$33/100","v":{"v":0.0585,"d":"5.85%"}},{"$f":"Actif!$E$29/100","v":{"v":0.027999999999999997,"d":"2.80%"}}]
[null,"#47",27,2028,"H","A_VIE",{"v":0.44999999999999996,"d":"0.45"},{"v":0.38999999999999996,"d":"0.39"},0.6,0.6,85,0,{"$f":"ROUND(Primes!$Q$4*V8160,0)","v":68},{"$f":"'BP Financier'!$G$33*(('BP Financier'!$C$16+'BP Financier'!$D$16+'BP Financier'!$E$16+'BP Financier'!$F$16+'BP Financier'!$G$16)/('BP Financier'!$C$16+'BP Financier'!$C$19+'BP Financier'!$D$16+'BP Financier'!$D$19+'BP Financier'!$E$16+'BP Financier'!$E$19+'BP Financier'!$F$16+'BP Financier'!$F$19+'BP Financier'!$G$19+'BP Financier'!$G$16))*V8160","v":{"v":3421672.0459127007,"d":"3,421,672"}},{"v":1963815.672006318,"d":"1,963,816"},{"$f":"'BP Financier'!$G$44*(('BP Financier'!$C$16+'BP Financier'!$D$16+'BP Financier'!$E$16+'BP Financier'!$F$16+'BP Financier'!$G$16)/('BP Financier'!$C$16+'BP Financier'!$C$19+'BP Financier'!$D$16+'BP Financier'!$D$19+'BP Financier'!$E$16+'BP Financier'!$E$19+'BP Financier'!$C$22+'BP Financier'!$D$22+'BP Financier'!$E$22+'BP Financier'!$F$16+'BP Financier'!$F$19+'BP Financier'!$F$22+'BP Financier'!$G$16+'BP Financier'!$G$19+'BP Financier'!$G$22))*$V8160*X8160/(1-$W8160)","v":{"v":249965.28595861018,"d":"249,965"}},{"$f":"'BP Financier'!$G$44*(('BP Financier'!$C$16+'BP Financier'!$D$16+'BP Financier'!$E$16+'BP Financier'!$F$16+'BP Financier'!$G$16)/('BP Financier'!$C$16+'BP Financier'!$C$19+'BP Financier'!$D$16+'BP Financier'!$D$19+'BP Financier'!$E$16+'BP Financier'!$E$19+'BP Financier'!$C$22+'BP Financier'!$D$22+'BP Financier'!$E$22+'BP Financier'!$F$16+'BP Financier'!$F$19+'BP Financier'!$F$22+'BP Financier'!$G$16+'BP Financier'!$G$19+'BP Financier'!$G$22))*$V8160*Y8160/(1-$W8160)","v":{"v":167103.86519884988,"d":"167,104"}},{"$f":"'BP Financier'!$G$44*(('BP Financier'!$C$16+'BP Financier'!$D$16+'BP Financier'!$E$16+'BP Financier'!$F$16+'BP Financier'!$G$16)/('BP Financier'!$C$16+'BP Financier'!$C$19+'BP Financier'!$D$16+'BP Financier'!$D$19+'BP Financier'!$E$16+'BP Financier'!$E$19+'BP Financier'!$C$22+'BP Financier'!$D$22+'BP Financier'!$E$22+'BP Financier'!$F$16+'BP Financier'!$F$19+'BP Financier'!$F$22+'BP Financier'!$G$16+'BP Financier'!$G$19+'BP Financier'!$G$22))*$V8160*Z8160/(1-$W8160)","v":{"v":1307829.424324883,"d":"1,307,829"}},{"$f":"'BP Financier'!$G$44*(('BP Financier'!$C$16+'BP Financier'!$D$16+'BP Financier'!$E$16+'BP Financier'!$F$16+'BP Financier'!$G$16)/('BP Financier'!$C$16+'BP Financier'!$C$19+'BP Financier'!$D$16+'BP Financier'!$D$19+'BP Financier'!$E$16+'BP Financier'!$E$19+'BP Financier'!$C$22+'BP Financier'!$D$22+'BP Financier'!$E$22+'BP Financier'!$F$16+'BP Financier'!$F$19+'BP Financier'!$F$22+'BP Financier'!$G$16+'BP Financier'!$G$19+'BP Financier'!$G$22))*$V8160*AA8160/(1-$W8160)","v":{"v":161579.77048153256,"d":"161,580"}},{"$f":"'BP Financier'!$G$44*(('BP Financier'!$C$16+'BP Financier'!$D$16+'BP Financier'!$E$16+'BP Financier'!$F$16+'BP Financier'!$G$16)/('BP Financier'!$C$16+'BP Financier'!$C$19+'BP Financier'!$D$16+'BP Financier'!$D$19+'BP Financier'!$E$16+'BP Financier'!$E$19+'BP Financier'!$C$22+'BP Financier'!$D$22+'BP Financier'!$E$22+'BP Financier'!$F$16+'BP Financier'!$F$19+'BP Financier'!$F$22+'BP Financier'!$G$16+'BP Financier'!$G$19+'BP Financier'!$G$22))*$V8160*AB8160/(1-$W8160)","v":{"v":77337.32604244292,"d":"77,337"}},null,{"v":0.006,"d":"0.60%"},{"$f":"Actif!$E$28/100","v":{"v":0.28900000000000003,"d":"28.90%"}},{"$f":"Actif!$E$30/100","v":{"v":0.09050000000000001,"d":"9.05%"}},{"$f":"Actif!$E$31/100","v":{"v":0.0605,"d":"6.05%"}},{"$f":"Actif!$E$32/100","v":{"v":0.47350000000000003,"d":"47.35%"}},{"$f":"Actif!$E$33/100","v":{"v":0.0585,"d":"5.85%"}},{"$f":"Actif!$E$29/100","v":{"v":0.027999999999999997,"d":"2.80%"}}]
[null,"#48",27,2029,"H","A_VIE",{"v":0.44999999999999996,"d":"0.45"},{"v":0.38999999999999996,"d":"0.39"},0.6,0.6,85,0,{"$f":"ROUND(Primes!$Q$4*V8161,0)","v":68},{"$f":"'BP Financier'!$G$33*(('BP Financier'!$C$16+'BP Financier'!$D$16+'BP Financier'!$E$16+'BP Financier'!$F$16+'BP Financier'!$G$16)/('BP Financier'!$C$16+'BP Financier'!$C$19+'BP Financier'!$D$16+'BP Financier'!$D$19+'BP Financier'!$E$16+'BP Financier'!$E$19+'BP Financier'!$F$16+'BP Financier'!$F$19+'BP Financier'!$G$19+'BP Financier'!$G$16))*V8161","v":{"v":3421672.0459127007,"d":"3,421,672"}},{"v":1963815.672006318,"d":"1,963,816"},{"$f":"'BP Financier'!$G$44*(('BP Financier'!$C$16+'BP Financier'!$D$16+'BP Financier'!$E$16+'BP Financier'!$F$16+'BP Financier'!$G$16)/('BP Financier'!$C$16+'BP Financier'!$C$19+'BP Financier'!$D$16+'BP Financier'!$D$19+'BP Financier'!$E$16+'BP Financier'!$E$19+'BP Financier'!$C$22+'BP Financier'!$D$22+'BP Financier'!$E$22+'BP Financier'!$F$16+'BP Financier'!$F$19+'BP Financier'!$F$22+'BP Financier'!$G$16+'BP Financier'!$G$19+'BP Financier'!$G$22))*$V8161*X8161/(1-$W8161)","v":{"v":249965.28595861018,"d":"249,965"}},{"$f":"'BP Financier'!$G$44*(('BP Financier'!$C$16+'BP Financier'!$D$16+'BP Financier'!$E$16+'BP Financier'!$F$16+'BP Financier'!$G$16)/('BP Financier'!$C$16+'BP Financier'!$C$19+'BP Financier'!$D$16+'BP Financier'!$D$19+'BP Financier'!$E$16+'BP Financier'!$E$19+'BP Financier'!$C$22+'BP Financier'!$D$22+'BP Financier'!$E$22+'BP Financier'!$F$16+'BP Financier'!$F$19+'BP Financier'!$F$22+'BP Financier'!$G$16+'BP Financier'!$G$19+'BP Financier'!$G$22))*$V8161*Y8161/(1-$W8161)","v":{"v":167103.86519884988,"d":"167,104"}},{"$f":"'BP Financier'!$G$44*(('BP Financier'!$C$16+'BP Financier'!$D$16+'BP Financier'!$E$16+'BP Financier'!$F$16+'BP Financier'!$G$16)/('BP Financier'!$C$16+'BP Financier'!$C$19+'BP Financier'!$D$16+'BP Financier'!$D$19+'BP Financier'!$E$16+'BP Financier'!$E$19+'BP Financier'!$C$22+'BP Financier'!$D$22+'BP Financier'!$E$22+'BP Financier'!$F$16+'BP Financier'!$F$19+'BP Financier'!$F$22+'BP Financier'!$G$16+'BP Financier'!$G$19+'BP Financier'!$G$22))*$V8161*Z8161/(1-$W8161)","v":{"v":1307829.424324883,"d":"1,307,829"}},{"$f":"'BP Financier'!$G$44*(('BP Financier'!$C$16+'BP Financier'!$D$16+'BP Financier'!$E$16+'BP Financier'!$F$16+'BP Financier'!$G$16)/('BP Financier'!$C$16+'BP Financier'!$C$19+'BP Financier'!$D$16+'BP Financier'!$D$19+'BP Financier'!$E$16+'BP Financier'!$E$19+'BP Financier'!$C$22+'BP Financier'!$D$22+'BP Financier'!$E$22+'BP Financier'!$F$16+'BP Financier'!$F$19+'BP Financier'!$F$22+'BP Financier'!$G$16+'BP Financier'!$G$19+'BP Financier'!$G$22))*$V8161*AA8161/(1-$W8161)","v":{"v":161579.77048153256,"d":"161,580"}},{"$f":"'BP Financier'!$G$44*(('BP Financier'!$C$16+'BP Financier'!$D$16+'BP Financier'!$E$16+'BP Financier'!$F$16+'BP Financier'!$G$16)/('BP Financier'!$C$16+'BP Financier'!$C$19+'BP Financier'!$D$16+'BP Financier'!$D$19+'BP Financier'!$E$16+'BP Financier'!$E$19+'BP Financier'!$C$22+'BP Financier'!$D$22+'BP Financier'!$E$22+'BP Financier'!$F$16+'BP Financier'!$F$19+'BP Financier'!$F$22+'BP Financier'!$G$16+'BP Financier'!$G$19+'BP Financier'!$G$22))*$V8161*AB8161/(1-$W8161)","v":{"v":77337.32604244292,"d":"77,337"}},null,{"v":0.006,"d":"0.60%"},{"$f":"Actif!$E$28/100","v":{"v":0.28900000000000003,"d":"28.90%"}},{"$f":"Actif!$E$30/100","v":{"v":0.09050000000000001,"d":"9.05%"}},{"$f":"Actif!$E$31/100","v":{"v":0.0605,"d":"6.05%"}},{"$f":"Actif!$E$32/100","v":{"v":0.47350000000000003,"d":"47.35%"}},{"$f":"Actif!$E$33/100","v":{"v":0.0585,"d":"5.85%"}},{"$f":"Actif!$E$29/100","v":{"v":0.027999999999999997,"d":"2.80%"}}]
[null,"#49",27,2030,"H","A_VIE",{"v":0.44999999999999996,"d":"0.45"},{"v":0.38999999999999996,"d":"0.39"},0.6,0.6,85,0,{"$f":"ROUND(Primes!$Q$4*V8162,0)","v":68},{"$f":"'BP Financier'!$G$33*(('BP Financier'!$C$16+'BP Financier'!$D$16+'BP Financier'!$E$16+'BP Financier'!$F$16+'BP Financier'!$G$16)/('BP Financier'!$C$16+'BP Financier'!$C$19+'BP Financier'!$D$16+'BP Financier'!$D$19+'BP Financier'!$E$16+'BP Financier'!$E$19+'BP Financier'!$F$16+'BP Financier'!$F$19+'BP Financier'!$G$19+'BP Financier'!$G$16))*V8162","v":{"v":3421672.0459127007,"d":"3,421,672"}},{"v":1963815.672006318,"d":"1,963,816"},{"$f":"'BP Financier'!$G$44*(('BP Financier'!$C$16+'BP Financier'!$D$16+'BP Financier'!$E$16+'BP Financier'!$F$16+'BP Financier'!$G$16)/('BP Financier'!$C$16+'BP Financier'!$C$19+'BP Financier'!$D$16+'BP Financier'!$D$19+'BP Financier'!$E$16+'BP Financier'!$E$19+'BP Financier'!$C$22+'BP Financier'!$D$22+'BP Financier'!$E$22+'BP Financier'!$F$16+'BP Financier'!$F$19+'BP Financier'!$F$22+'BP Financier'!$G$16+'BP Financier'!$G$19+'BP Financier'!$G$22))*$V8162*X8162/(1-$W8162)","v":{"v":249965.28595861018,"d":"249,965"}},{"$f":"'BP Financier'!$G$44*(('BP Financier'!$C$16+'BP Financier'!$D$16+'BP Financier'!$E$16+'BP Financier'!$F$16+'BP Financier'!$G$16)/('BP Financier'!$C$16+'BP Financier'!$C$19+'BP Financier'!$D$16+'BP Financier'!$D$19+'BP Financier'!$E$16+'BP Financier'!$E$19+'BP Financier'!$C$22+'BP Financier'!$D$22+'BP Financier'!$E$22+'BP Financier'!$F$16+'BP Financier'!$F$19+'BP Financier'!$F$22+'BP Financier'!$G$16+'BP Financier'!$G$19+'BP Financier'!$G$22))*$V8162*Y8162/(1-$W8162)","v":{"v":167103.86519884988,"d":"167,104"}},{"$f":"'BP Financier'!$G$44*(('BP Financier'!$C$16+'BP Financier'!$D$16+'BP Financier'!$E$16+'BP Financier'!$F$16+'BP Financier'!$G$16)/('BP Financier'!$C$16+'BP Financier'!$C$19+'BP Financier'!$D$16+'BP Financier'!$D$19+'BP Financier'!$E$16+'BP Financier'!$E$19+'BP Financier'!$C$22+'BP Financier'!$D$22+'BP Financier'!$E$22+'BP Financier'!$F$16+'BP Financier'!$F$19+'BP Financier'!$F$22+'BP Financier'!$G$16+'BP Financier'!$G$19+'BP Financier'!$G$22))*$V8162*Z8162/(1-$W8162)","v":{"v":1307829.424324883,"d":"1,307,829"}},{"$f":"'BP Financier'!$G$44*(('BP Financier'!$C$16+'BP Financier'!$D$16+'BP Financier'!$E$16+'BP Financier'!$F$16+'BP Financier'!$G$16)/('BP Financier'!$C$16+'BP Financier'!$C$19+'BP Financier'!$D$16+'BP Financier'!$D$19+'BP Financier'!$E$16+'BP Financier'!$E$19+'BP Financier'!$C$22+'BP Financier'!$D$22+'BP Financier'!$E$22+'BP Financier'!$F$16+'BP Financier'!$F$19+'BP Financier'!$F$22+'BP Financier'!$G$16+'BP Financier'!$G$19+'BP Financier'!$G$22))*$V8162*AA8162/(1-$W8162)","v":{"v":161579.77048153256,"d":"161,580"}},{"$f":"'BP Financier'!$G$44*(('BP Financier'!$C$16+'BP Financier'!$D$16+'BP Financier'!$E$16+'BP Financier'!$F$16+'BP Financier'!$G$16)/('BP Financier'!$C$16+'BP Financier'!$C$19+'BP Financier'!$D$16+'BP Financier'!$D$19+'BP Financier'!$E$16+'BP Financier'!$E$19+'BP Financier'!$C$22+'BP Financier'!$D$22+'BP Financier'!$E$22+'BP Financier'!$F$16+'BP Financier'!$F$19+'BP Financier'!$F$22+'BP Financier'!$G$16+'BP Financier'!$G$19+'BP Financier'!$G$22))*$V8162*AB8162/(1-$W8162)","v":{"v":77337.32604244292,"d":"77,337"}},null,{"v":0.006,"d":"0.60%"},{"$f":"Actif!$E$28/100","v":{"v":0.28900000000000003,"d":"28.90%"}},{"$f":"Actif!$E$30/100","v":{"v":0.09050000000000001,"d":"9.05%"}},{"$f":"Actif!$E$31/100","v":{"v":0.0605,"d":"6.05%"}},{"$f":"Actif!$E$32/100","v":{"v":0.47350000000000003,"d":"47.35%"}},{"$f":"Actif!$E$33/100","v":{"v":0.0585,"d":"5.85%"}},{"$f":"Actif!$E$29/100","v":{"v":0.027999999999999997,"d":"2.80%"}}]
[null,"#50",27,2031,"H","A_VIE",{"v":0.44999999999999996,"d":"0.45"},{"v":0.38999999999999996,"d":"0.39"},0.6,0.6,85,0,{"$f":"ROUND(Primes!$Q$4*V8163,0)","v":68},{"$f":"'BP Financier'!$G$33*(('BP Financier'!$C$16+'BP Financier'!$D$16+'BP Financier'!$E$16+'BP Financier'!$F$16+'BP Financier'!$G$16)/('BP Financier'!$C$16+'BP Financier'!$C$19+'BP Financier'!$D$16+'BP Financier'!$D$19+'BP Financier'!$E$16+'BP Financier'!$E$19+'BP Financier'!$F$16+'BP Financier'!$F$19+'BP Financier'!$G$19+'BP Financier'!$G$16))*V8163","v":{"v":3421672.0459127007,"d":"3,421,672"}},{"v":1963815.672006318,"d":"1,963,816"},{"$f":"'BP Financier'!$G$44*(('BP Financier'!$C$16+'BP Financier'!$D$16+'BP Financier'!$E$16+'BP Financier'!$F$16+'BP Financier'!$G$16)/('BP Financier'!$C$16+'BP Financier'!$C$19+'BP Financier'!$D$16+'BP Financier'!$D$19+'BP Financier'!$E$16+'BP Financier'!$E$19+'BP Financier'!$C$22+'BP Financier'!$D$22+'BP Financier'!$E$22+'BP Financier'!$F$16+'BP Financier'!$F$19+'BP Financier'!$F$22+'BP Financier'!$G$16+'BP Financier'!$G$19+'BP Financier'!$G$22))*$V8163*X8163/(1-$W8163)","v":{"v":249965.28595861018,"d":"249,965"}},{"$f":"'BP Financier'!$G$44*(('BP Financier'!$C$16+'BP Financier'!$D$16+'BP Financier'!$E$16+'BP Financier'!$F$16+'BP Financier'!$G$16)/('BP Financier'!$C$16+'BP Financier'!$C$19+'BP Financier'!$D$16+'BP Financier'!$D$19+'BP Financier'!$E$16+'BP Financier'!$E$19+'BP Financier'!$C$22+'BP Financier'!$D$22+'BP Financier'!$E$22+'BP Financier'!$F$16+'BP Financier'!$F$19+'BP Financier'!$F$22+'BP Financier'!$G$16+'BP Financier'!$G$19+'BP Financier'!$G$22))*$V8163*Y8163/(1-$W8163)","v":{"v":167103.86519884988,"d":"167,104"}},{"$f":"'BP Financier'!$G$44*(('BP Financier'!$C$16+'BP Financier'!$D$16+'BP Financier'!$E$16+'BP Financier'!$F$16+'BP Financier'!$G$16)/('BP Financier'!$C$16+'BP Financier'!$C$19+'BP Financier'!$D$16+'BP Financier'!$D$19+'BP Financier'!$E$16+'BP Financier'!$E$19+'BP Financier'!$C$22+'BP Financier'!$D$22+'BP Financier'!$E$22+'BP Financier'!$F$16+'BP Financier'!$F$19+'BP Financier'!$F$22+'BP Financier'!$G$16+'BP Financier'!$G$19+'BP Financier'!$G$22))*$V8163*Z8163/(1-$W8163)","v":{"v":1307829.424324883,"d":"1,307,829"}},{"$f":"'BP Financier'!$G$44*(('BP Financier'!$C$16+'BP Financier'!$D$16+'BP Financier'!$E$16+'BP Financier'!$F$16+'BP Financier'!$G$16)/('BP Financier'!$C$16+'BP Financier'!$C$19+'BP Financier'!$D$16+'BP Financier'!$D$19+'BP Financier'!$E$16+'BP Financier'!$E$19+'BP Financier'!$C$22+'BP Financier'!$D$22+'BP Financier'!$E$22+'BP Financier'!$F$16+'BP Financier'!$F$19+'BP Financier'!$F$22+'BP Financier'!$G$16+'BP Financier'!$G$19+'BP Financier'!$G$22))*$V8163*AA8163/(1-$W8163)","v":{"v":161579.77048153256,"d":"161,580"}},{"$f":"'BP Financier'!$G$44*(('BP Financier'!$C$16+'BP Financier'!$D$16+'BP Financier'!$E$16+'BP Financier'!$F$16+'BP Financier'!$G$16)/('BP Financier'!$C$16+'BP Financier'!$C$19+'BP Financier'!$D$16+'BP Financier'!$D$19+'BP Financier'!$E$16+'BP Financier'!$E$19+'BP Financier'!$C$22+'BP Financier'!$D$22+'BP Financier'!$E$22+'BP Financier'!$F$16+'BP Financier'!$F$19+'BP Financier'!$F$22+'BP Financier'!$G$16+'BP Financier'!$G$19+'BP Financier'!$G$22))*$V8163*AB8163/(1-$W8163)","v":{"v":77337.32604244292,"d":"77,337"}},null,{"v":0.006,"d":"0.60%"},{"$f":"Actif!$E$28/100","v":{"v":0.28900000000000003,"d":"28.90%"}},{"$f":"Actif!$E$30/100","v":{"v":0.09050000000000001,"d":"9.05%"}},{"$f":"Actif!$E$31/100","v":{"v":0.0605,"d":"6.05%"}},{"$f":"Actif!$E$32/100","v":{"v":0.47350000000000003,"d":"47.35%"}},{"$f":"Actif!$E$33/100","v":{"v":0.0585,"d":"5.85%"}},{"$f":"Actif!$E$29/100","v":{"v":0.027999999999999997,"d":"2.80%"}}]
[null,"#51",28,2026,"H","A_VIE",{"v":0.44999999999999996,"d":"0.45"},{"v":0.38999999999999996,"d":"0.39"},0.6,0.6,85,0,{"$f":"ROUND(Primes!$Q$4*V8164,0)","v":68},{"$f":"'BP Financier'!$G$33*(('BP Financier'!$C$16+'BP Financier'!$D$16+'BP Financier'!$E$16+'BP Financier'!$F$16+'BP Financier'!$G$16)/('BP Financier'!$C$16+'BP Financier'!$C$19+'BP Financier'!$D$16+'BP Financier'!$D$19+'BP Financier'!$E$16+'BP Financier'!$E$19+'BP Financier'!$F$16+'BP Financier'!$F$19+'BP Financier'!$G$19+'BP Financier'!$G$16))*V8164","v":{"v":3421672.0459127007,"d":"3,421,672"}},{"v":1963815.672006318,"d":"1,963,816"},{"$f":"'BP Financier'!$G$44*(('BP Financier'!$C$16+'BP Financier'!$D$16+'BP Financier'!$E$16+'BP Financier'!$F$16+'BP Financier'!$G$16)/('BP Financier'!$C$16+'BP Financier'!$C$19+'BP Financier'!$D$16+'BP Financier'!$D$19+'BP Financier'!$E$16+'BP Financier'!$E$19+'BP Financier'!$C$22+'BP Financier'!$D$22+'BP Financier'!$E$22+'BP Financier'!$F$16+'BP Financier'!$F$19+'BP Financier'!$F$22+'BP Financier'!$G$16+'BP Financier'!$G$19+'BP Financier'!$G$22))*$V8164*X8164/(1-$W8164)","v":{"v":249965.28595861018,"d":"249,965"}},{"$f":"'BP Financier'!$G$44*(('BP Financier'!$C$16+'BP Financier'!$D$16+'BP Financier'!$E$16+'BP Financier'!$F$16+'BP Financier'!$G$16)/('BP Financier'!$C$16+'BP Financier'!$C$19+'BP Financier'!$D$16+'BP Financier'!$D$19+'BP Financier'!$E$16+'BP Financier'!$E$19+'BP Financier'!$C$22+'BP Financier'!$D$22+'BP Financier'!$E$22+'BP Financier'!$F$16+'BP Financier'!$F$19+'BP Financier'!$F$22+'BP Financier'!$G$16+'BP Financier'!$G$19+'BP Financier'!$G$22))*$V8164*Y8164/(1-$W8164)","v":{"v":167103.86519884988,"d":"167,104"}},{"$f":"'BP Financier'!$G$44*(('BP Financier'!$C$16+'BP Financier'!$D$16+'BP Financier'!$E$16+'BP Financier'!$F$16+'BP Financier'!$G$16)/('BP Financier'!$C$16+'BP Financier'!$C$19+'BP Financier'!$D$16+'BP Financier'!$D$19+'BP Financier'!$E$16+'BP Financier'!$E$19+'BP Financier'!$C$22+'BP Financier'!$D$22+'BP Financier'!$E$22+'BP Financier'!$F$16+'BP Financier'!$F$19+'BP Financier'!$F$22+'BP Financier'!$G$16+'BP Financier'!$G$19+'BP Financier'!$G$22))*$V8164*Z8164/(1-$W8164)","v":{"v":1307829.424324883,"d":"1,307,829"}},{"$f":"'BP Financier'!$G$44*(('BP Financier'!$C$16+'BP Financier'!$D$16+'BP Financier'!$E$16+'BP Financier'!$F$16+'BP Financier'!$G$16)/('BP Financier'!$C$16+'BP Financier'!$C$19+'BP Financier'!$D$16+'BP Financier'!$D$19+'BP Financier'!$E$16+'BP Financier'!$E$19+'BP Financier'!$C$22+'BP Financier'!$D$22+'BP Financier'!$E$22+'BP Financier'!$F$16+'BP Financier'!$F$19+'BP Financier'!$F$22+'BP Financier'!$G$16+'BP Financier'!$G$19+'BP Financier'!$G$22))*$V8164*AA8164/(1-$W8164)","v":{"v":161579.77048153256,"d":"161,580"}},{"$f":"'BP Financier'!$G$44*(('BP Financier'!$C$16+'BP Financier'!$D$16+'BP Financier'!$E$16+'BP Financier'!$F$16+'BP Financier'!$G$16)/('BP Financier'!$C$16+'BP Financier'!$C$19+'BP Financier'!$D$16+'BP Financier'!$D$19+'BP Financier'!$E$16+'BP Financier'!$E$19+'BP Financier'!$C$22+'BP Financier'!$D$22+'BP Financier'!$E$22+'BP Financier'!$F$16+'BP Financier'!$F$19+'BP Financier'!$F$22+'BP Financier'!$G$16+'BP Financier'!$G$19+'BP Financier'!$G$22))*$V8164*AB8164/(1-$W8164)","v":{"v":77337.32604244292,"d":"77,337"}},null,{"v":0.006,"d":"0.60%"},{"$f":"Actif!$E$28/100","v":{"v":0.28900000000000003,"d":"28.90%"}},{"$f":"Actif!$E$30/100","v":{"v":0.09050000000000001,"d":"9.05%"}},{"$f":"Actif!$E$31/100","v":{"v":0.0605,"d":"6.05%"}},{"$f":"Actif!$E$32/100","v":{"v":0.47350000000000003,"d":"47.35%"}},{"$f":"Actif!$E$33/100","v":{"v":0.0585,"d":"5.85%"}},{"$f":"Actif!$E$29/100","v":{"v":0.027999999999999997,"d":"2.80%"}}]
[null,"#52",28,2028,"H","A_VIE",{"v":0.44999999999999996,"d":"0.45"},{"v":0.38999999999999996,"d":"0.39"},0.6,0.6,85,0,{"$f":"ROUND(Primes!$Q$4*V8165,0)","v":68},{"$f":"'BP Financier'!$G$33*(('BP Financier'!$C$16+'BP Financier'!$D$16+'BP Financier'!$E$16+'BP Financier'!$F$16+'BP Financier'!$G$16)/('BP Financier'!$C$16+'BP Financier'!$C$19+'BP Financier'!$D$16+'BP Financier'!$D$19+'BP Financier'!$E$16+'BP Financier'!$E$19+'BP Financier'!$F$16+'BP Financier'!$F$19+'BP Financier'!$G$19+'BP Financier'!$G$16))*V8165","v":{"v":3421672.0459127007,"d":"3,421,672"}},{"v":1963815.672006318,"d":"1,963,816"},{"$f":"'BP Financier'!$G$44*(('BP Financier'!$C$16+'BP Financier'!$D$16+'BP Financier'!$E$16+'BP Financier'!$F$16+'BP Financier'!$G$16)/('BP Financier'!$C$16+'BP Financier'!$C$19+'BP Financier'!$D$16+'BP Financier'!$D$19+'BP Financier'!$E$16+'BP Financier'!$E$19+'BP Financier'!$C$22+'BP Financier'!$D$22+'BP Financier'!$E$22+'BP Financier'!$F$16+'BP Financier'!$F$19+'BP Financier'!$F$22+'BP Financier'!$G$16+'BP Financier'!$G$19+'BP Financier'!$G$22))*$V8165*X8165/(1-$W8165)","v":{"v":249965.28595861018,"d":"249,965"}},{"$f":"'BP Financier'!$G$44*(('BP Financier'!$C$16+'BP Financier'!$D$16+'BP Financier'!$E$16+'BP Financier'!$F$16+'BP Financier'!$G$16)/('BP Financier'!$C$16+'BP Financier'!$C$19+'BP Financier'!$D$16+'BP Financier'!$D$19+'BP Financier'!$E$16+'BP Financier'!$E$19+'BP Financier'!$C$22+'BP Financier'!$D$22+'BP Financier'!$E$22+'BP Financier'!$F$16+'BP Financier'!$F$19+'BP Financier'!$F$22+'BP Financier'!$G$16+'BP Financier'!$G$19+'BP Financier'!$G$22))*$V8165*Y8165/(1-$W8165)","v":{"v":167103.86519884988,"d":"167,104"}},{"$f":"'BP Financier'!$G$44*(('BP Financier'!$C$16+'BP Financier'!$D$16+'BP Financier'!$E$16+'BP Financier'!$F$16+'BP Financier'!$G$16)/('BP Financier'!$C$16+'BP Financier'!$C$19+'BP Financier'!$D$16+'BP Financier'!$D$19+'BP Financier'!$E$16+'BP Financier'!$E$19+'BP Financier'!$C$22+'BP Financier'!$D$22+'BP Financier'!$E$22+'BP Financier'!$F$16+'BP Financier'!$F$19+'BP Financier'!$F$22+'BP Financier'!$G$16+'BP Financier'!$G$19+'BP Financier'!$G$22))*$V8165*Z8165/(1-$W8165)","v":{"v":1307829.424324883,"d":"1,307,829"}},{"$f":"'BP Financier'!$G$44*(('BP Financier'!$C$16+'BP Financier'!$D$16+'BP Financier'!$E$16+'BP Financier'!$F$16+'BP Financier'!$G$16)/('BP Financier'!$C$16+'BP Financier'!$C$19+'BP Financier'!$D$16+'BP Financier'!$D$19+'BP Financier'!$E$16+'BP Financier'!$E$19+'BP Financier'!$C$22+'BP Financier'!$D$22+'BP Financier'!$E$22+'BP Financier'!$F$16+'BP Financier'!$F$19+'BP Financier'!$F$22+'BP Financier'!$G$16+'BP Financier'!$G$19+'BP Financier'!$G$22))*$V8165*AA8165/(1-$W8165)","v":{"v":161579.77048153256,"d":"161,580"}},{"$f":"'BP Financier'!$G$44*(('BP Financier'!$C$16+'BP Financier'!$D$16+'BP Financier'!$E$16+'BP Financier'!$F$16+'BP Financier'!$G$16)/('BP Financier'!$C$16+'BP Financier'!$C$19+'BP Financier'!$D$16+'BP Financier'!$D$19+'BP Financier'!$E$16+'BP Financier'!$E$19+'BP Financier'!$C$22+'BP Financier'!$D$22+'BP Financier'!$E$22+'BP Financier'!$F$16+'BP Financier'!$F$19+'BP Financier'!$F$22+'BP Financier'!$G$16+'BP Financier'!$G$19+'BP Financier'!$G$22))*$V8165*AB8165/(1-$W8165)","v":{"v":77337.32604244292,"d":"77,337"}},null,{"v":0.006,"d":"0.60%"},{"$f":"Actif!$E$28/100","v":{"v":0.28900000000000003,"d":"28.90%"}},{"$f":"Actif!$E$30/100","v":{"v":0.09050000000000001,"d":"9.05%"}},{"$f":"Actif!$E$31/100","v":{"v":0.0605,"d":"6.05%"}},{"$f":"Actif!$E$32/100","v":{"v":0.47350000000000003,"d":"47.35%"}},{"$f":"Actif!$E$33/100","v":{"v":0.0585,"d":"5.85%"}},{"$f":"Actif!$E$29/100","v":{"v":0.027999999999999997,"d":"2.80%"}}]
[null,"#53",28,2029,"H","A_VIE",{"v":0.44999999999999996,"d":"0.45"},{"v":0.38999999999999996,"d":"0.39"},0.6,0.6,85,0,{"$f":"ROUND(Primes!$Q$4*V8166,0)","v":68},{"$f":"'BP Financier'!$G$33*(('BP Financier'!$C$16+'BP Financier'!$D$16+'BP Financier'!$E$16+'BP Financier'!$F$16+'BP Financier'!$G$16)/('BP Financier'!$C$16+'BP Financier'!$C$19+'BP Financier'!$D$16+'BP Financier'!$D$19+'BP Financier'!$E$16+'BP Financier'!$E$19+'BP Financier'!$F$16+'BP Financier'!$F$19+'BP Financier'!$G$19+'BP Financier'!$G$16))*V8166","v":{"v":3421672.0459127007,"d":"3,421,672"}},{"v":1963815.672006318,"d":"1,963,816"},{"$f":"'BP Financier'!$G$44*(('BP Financier'!$C$16+'BP Financier'!$D$16+'BP Financier'!$E$16+'BP Financier'!$F$16+'BP Financier'!$G$16)/('BP Financier'!$C$16+'BP Financier'!$C$19+'BP Financier'!$D$16+'BP Financier'!$D$19+'BP Financier'!$E$16+'BP Financier'!$E$19+'BP Financier'!$C$22+'BP Financier'!$D$22+'BP Financier'!$E$22+'BP Financier'!$F$16+'BP Financier'!$F$19+'BP Financier'!$F$22+'BP Financier'!$G$16+'BP Financier'!$G$19+'BP Financier'!$G$22))*$V8166*X8166/(1-$W8166)","v":{"v":249965.28595861018,"d":"249,965"}},{"$f":"'BP Financier'!$G$44*(('BP Financier'!$C$16+'BP Financier'!$D$16+'BP Financier'!$E$16+'BP Financier'!$F$16+'BP Financier'!$G$16)/('BP Financier'!$C$16+'BP Financier'!$C$19+'BP Financier'!$D$16+'BP Financier'!$D$19+'BP Financier'!$E$16+'BP Financier'!$E$19+'BP Financier'!$C$22+'BP Financier'!$D$22+'BP Financier'!$E$22+'BP Financier'!$F$16+'BP Financier'!$F$19+'BP Financier'!$F$22+'BP Financier'!$G$16+'BP Financier'!$G$19+'BP Financier'!$G$22))*$V8166*Y8166/(1-$W8166)","v":{"v":167103.86519884988,"d":"167,104"}},{"$f":"'BP Financier'!$G$44*(('BP Financier'!$C$16+'BP Financier'!$D$16+'BP Financier'!$E$16+'BP Financier'!$F$16+'BP Financier'!$G$16)/('BP Financier'!$C$16+'BP Financier'!$C$19+'BP Financier'!$D$16+'BP Financier'!$D$19+'BP Financier'!$E$16+'BP Financier'!$E$19+'BP Financier'!$C$22+'BP Financier'!$D$22+'BP Financier'!$E$22+'BP Financier'!$F$16+'BP Financier'!$F$19+'BP Financier'!$F$22+'BP Financier'!$G$16+'BP Financier'!$G$19+'BP Financier'!$G$22))*$V8166*Z8166/(1-$W8166)","v":{"v":1307829.424324883,"d":"1,307,829"}},{"$f":"'BP Financier'!$G$44*(('BP Financier'!$C$16+'BP Financier'!$D$16+'BP Financier'!$E$16+'BP Financier'!$F$16+'BP Financier'!$G$16)/('BP Financier'!$C$16+'BP Financier'!$C$19+'BP Financier'!$D$16+'BP Financier'!$D$19+'BP Financier'!$E$16+'BP Financier'!$E$19+'BP Financier'!$C$22+'BP Financier'!$D$22+'BP Financier'!$E$22+'BP Financier'!$F$16+'BP Financier'!$F$19+'BP Financier'!$F$22+'BP Financier'!$G$16+'BP Financier'!$G$19+'BP Financier'!$G$22))*$V8166*AA8166/(1-$W8166)","v":{"v":161579.77048153256,"d":"161,580"}},{"$f":"'BP Financier'!$G$44*(('BP Financier'!$C$16+'BP Financier'!$D$16+'BP Financier'!$E$16+'BP Financier'!$F$16+'BP Financier'!$G$16)/('BP Financier'!$C$16+'BP Financier'!$C$19+'BP Financier'!$D$16+'BP Financier'!$D$19+'BP Financier'!$E$16+'BP Financier'!$E$19+'BP Financier'!$C$22+'BP Financier'!$D$22+'BP Financier'!$E$22+'BP Financier'!$F$16+'BP Financier'!$F$19+'BP Financier'!$F$22+'BP Financier'!$G$16+'BP Financier'!$G$19+'BP Financier'!$G$22))*$V8166*AB8166/(1-$W8166)","v":{"v":77337.32604244292,"d":"77,337"}},null,{"v":0.006,"d":"0.60%"},{"$f":"Actif!$E$28/100","v":{"v":0.28900000000000003,"d":"28.90%"}},{"$f":"Actif!$E$30/100","v":{"v":0.09050000000000001,"d":"9.05%"}},{"$f":"Actif!$E$31/100","v":{"v":0.0605,"d":"6.05%"}},{"$f":"Actif!$E$32/100","v":{"v":0.47350000000000003,"d":"47.35%"}},{"$f":"Actif!$E$33/100","v":{"v":0.0585,"d":"5.85%"}},{"$f":"Actif!$E$29/100","v":{"v":0.027999999999999997,"d":"2.80%"}}]
[null,"#54",28,2030,"H","A_VIE",{"v":0.44999999999999996,"d":"0.45"},{"v":0.38999999999999996,"d":"0.39"},0.6,0.6,85,0,{"$f":"ROUND(Primes!$Q$4*V8167,0)","v":68},{"$f":"'BP Financier'!$G$33*(('BP Financier'!$C$16+'BP Financier'!$D$16+'BP Financier'!$E$16+'BP Financier'!$F$16+'BP Financier'!$G$16)/('BP Financier'!$C$16+'BP Financier'!$C$19+'BP Financier'!$D$16+'BP Financier'!$D$19+'BP Financier'!$E$16+'BP Financier'!$E$19+'BP Financier'!$F$16+'BP Financier'!$F$19+'BP Financier'!$G$19+'BP Financier'!$G$16))*V8167","v":{"v":3421672.0459127007,"d":"3,421,672"}},{"v":1963815.672006318,"d":"1,963,816"},{"$f":"'BP Financier'!$G$44*(('BP Financier'!$C$16+'BP Financier'!$D$16+'BP Financier'!$E$16+'BP Financier'!$F$16+'BP Financier'!$G$16)/('BP Financier'!$C$16+'BP Financier'!$C$19+'BP Financier'!$D$16+'BP Financier'!$D$19+'BP Financier'!$E$16+'BP Financier'!$E$19+'BP Financier'!$C$22+'BP Financier'!$D$22+'BP Financier'!$E$22+'BP Financier'!$F$16+'BP Financier'!$F$19+'BP Financier'!$F$22+'BP Financier'!$G$16+'BP Financier'!$G$19+'BP Financier'!$G$22))*$V8167*X8167/(1-$W8167)","v":{"v":249965.28595861018,"d":"249,965"}},{"$f":"'BP Financier'!$G$44*(('BP Financier'!$C$16+'BP Financier'!$D$16+'BP Financier'!$E$16+'BP Financier'!$F$16+'BP Financier'!$G$16)/('BP Financier'!$C$16+'BP Financier'!$C$19+'BP Financier'!$D$16+'BP Financier'!$D$19+'BP Financier'!$E$16+'BP Financier'!$E$19+'BP Financier'!$C$22+'BP Financier'!$D$22+'BP Financier'!$E$22+'BP Financier'!$F$16+'BP Financier'!$F$19+'BP Financier'!$F$22+'BP Financier'!$G$16+'BP Financier'!$G$19+'BP Financier'!$G$22))*$V8167*Y8167/(1-$W8167)","v":{"v":167103.86519884988,"d":"167,104"}},{"$f":"'BP Financier'!$G$44*(('BP Financier'!$C$16+'BP Financier'!$D$16+'BP Financier'!$E$16+'BP Financier'!$F$16+'BP Financier'!$G$16)/('BP Financier'!$C$16+'BP Financier'!$C$19+'BP Financier'!$D$16+'BP Financier'!$D$19+'BP Financier'!$E$16+'BP Financier'!$E$19+'BP Financier'!$C$22+'BP Financier'!$D$22+'BP Financier'!$E$22+'BP Financier'!$F$16+'BP Financier'!$F$19+'BP Financier'!$F$22+'BP Financier'!$G$16+'BP Financier'!$G$19+'BP Financier'!$G$22))*$V8167*Z8167/(1-$W8167)","v":{"v":1307829.424324883,"d":"1,307,829"}},{"$f":"'BP Financier'!$G$44*(('BP Financier'!$C$16+'BP Financier'!$D$16+'BP Financier'!$E$16+'BP Financier'!$F$16+'BP Financier'!$G$16)/('BP Financier'!$C$16+'BP Financier'!$C$19+'BP Financier'!$D$16+'BP Financier'!$D$19+'BP Financier'!$E$16+'BP Financier'!$E$19+'BP Financier'!$C$22+'BP Financier'!$D$22+'BP Financier'!$E$22+'BP Financier'!$F$16+'BP Financier'!$F$19+'BP Financier'!$F$22+'BP Financier'!$G$16+'BP Financier'!$G$19+'BP Financier'!$G$22))*$V8167*AA8167/(1-$W8167)","v":{"v":161579.77048153256,"d":"161,580"}},{"$f":"'BP Financier'!$G$44*(('BP Financier'!$C$16+'BP Financier'!$D$16+'BP Financier'!$E$16+'BP Financier'!$F$16+'BP Financier'!$G$16)/('BP Financier'!$C$16+'BP Financier'!$C$19+'BP Financier'!$D$16+'BP Financier'!$D$19+'BP Financier'!$E$16+'BP Financier'!$E$19+'BP Financier'!$C$22+'BP Financier'!$D$22+'BP Financier'!$E$22+'BP Financier'!$F$16+'BP Financier'!$F$19+'BP Financier'!$F$22+'BP Financier'!$G$16+'BP Financier'!$G$19+'BP Financier'!$G$22))*$V8167*AB8167/(1-$W8167)","v":{"v":77337.32604244292,"d":"77,337"}},null,{"v":0.006,"d":"0.60%"},{"$f":"Actif!$E$28/100","v":{"v":0.28900000000000003,"d":"28.90%"}},{"$f":"Actif!$E$30/100","v":{"v":0.09050000000000001,"d":"9.05%"}},{"$f":"Actif!$E$31/100","v":{"v":0.0605,"d":"6.05%"}},{"$f":"Actif!$E$32/100","v":{"v":0.47350000000000003,"d":"47.35%"}},{"$f":"Actif!$E$33/100","v":{"v":0.0585,"d":"5.85%"}},{"$f":"Actif!$E$29/100","v":{"v":0.027999999999999997,"d":"2.80%"}}]
[null,"#55",28,2031,"H","A_VIE",{"v":0.44999999999999996,"d":"0.45"},{"v":0.38999999999999996,"d":"0.39"},0.6,0.6,85,0,{"$f":"ROUND(Primes!$Q$4*V8168,0)","v":68},{"$f":"'BP Financier'!$G$33*(('BP Financier'!$C$16+'BP Financier'!$D$16+'BP Financier'!$E$16+'BP Financier'!$F$16+'BP Financier'!$G$16)/('BP Financier'!$C$16+'BP Financier'!$C$19+'BP Financier'!$D$16+'BP Financier'!$D$19+'BP Financier'!$E$16+'BP Financier'!$E$19+'BP Financier'!$F$16+'BP Financier'!$F$19+'BP Financier'!$G$19+'BP Financier'!$G$16))*V8168","v":{"v":3421672.0459127007,"d":"3,421,672"}},{"v":1963815.672006318,"d":"1,963,816"},{"$f":"'BP Financier'!$G$44*(('BP Financier'!$C$16+'BP Financier'!$D$16+'BP Financier'!$E$16+'BP Financier'!$F$16+'BP Financier'!$G$16)/('BP Financier'!$C$16+'BP Financier'!$C$19+'BP Financier'!$D$16+'BP Financier'!$D$19+'BP Financier'!$E$16+'BP Financier'!$E$19+'BP Financier'!$C$22+'BP Financier'!$D$22+'BP Financier'!$E$22+'BP Financier'!$F$16+'BP Financier'!$F$19+'BP Financier'!$F$22+'BP Financier'!$G$16+'BP Financier'!$G$19+'BP Financier'!$G$22))*$V8168*X8168/(1-$W8168)","v":{"v":249965.28595861018,"d":"249,965"}},{"$f":"'BP Financier'!$G$44*(('BP Financier'!$C$16+'BP Financier'!$D$16+'BP Financier'!$E$16+'BP Financier'!$F$16+'BP Financier'!$G$16)/('BP Financier'!$C$16+'BP Financier'!$C$19+'BP Financier'!$D$16+'BP Financier'!$D$19+'BP Financier'!$E$16+'BP Financier'!$E$19+'BP Financier'!$C$22+'BP Financier'!$D$22+'BP Financier'!$E$22+'BP Financier'!$F$16+'BP Financier'!$F$19+'BP Financier'!$F$22+'BP Financier'!$G$16+'BP Financier'!$G$19+'BP Financier'!$G$22))*$V8168*Y8168/(1-$W8168)","v":{"v":167103.86519884988,"d":"167,104"}},{"$f":"'BP Financier'!$G$44*(('BP Financier'!$C$16+'BP Financier'!$D$16+'BP Financier'!$E$16+'BP Financier'!$F$16+'BP Financier'!$G$16)/('BP Financier'!$C$16+'BP Financier'!$C$19+'BP Financier'!$D$16+'BP Financier'!$D$19+'BP Financier'!$E$16+'BP Financier'!$E$19+'BP Financier'!$C$22+'BP Financier'!$D$22+'BP Financier'!$E$22+'BP Financier'!$F$16+'BP Financier'!$F$19+'BP Financier'!$F$22+'BP Financier'!$G$16+'BP Financier'!$G$19+'BP Financier'!$G$22))*$V8168*Z8168/(1-$W8168)","v":{"v":1307829.424324883,"d":"1,307,829"}},{"$f":"'BP Financier'!$G$44*(('BP Financier'!$C$16+'BP Financier'!$D$16+'BP Financier'!$E$16+'BP Financier'!$F$16+'BP Financier'!$G$16)/('BP Financier'!$C$16+'BP Financier'!$C$19+'BP Financier'!$D$16+'BP Financier'!$D$19+'BP Financier'!$E$16+'BP Financier'!$E$19+'BP Financier'!$C$22+'BP Financier'!$D$22+'BP Financier'!$E$22+'BP Financier'!$F$16+'BP Financier'!$F$19+'BP Financier'!$F$22+'BP Financier'!$G$16+'BP Financier'!$G$19+'BP Financier'!$G$22))*$V8168*AA8168/(1-$W8168)","v":{"v":161579.77048153256,"d":"161,580"}},{"$f":"'BP Financier'!$G$44*(('BP Financier'!$C$16+'BP Financier'!$D$16+'BP Financier'!$E$16+'BP Financier'!$F$16+'BP Financier'!$G$16)/('BP Financier'!$C$16+'BP Financier'!$C$19+'BP Financier'!$D$16+'BP Financier'!$D$19+'BP Financier'!$E$16+'BP Financier'!$E$19+'BP Financier'!$C$22+'BP Financier'!$D$22+'BP Financier'!$E$22+'BP Financier'!$F$16+'BP Financier'!$F$19+'BP Financier'!$F$22+'BP Financier'!$G$16+'BP Financier'!$G$19+'BP Financier'!$G$22))*$V8168*AB8168/(1-$W8168)","v":{"v":77337.32604244292,"d":"77,337"}},null,{"v":0.006,"d":"0.60%"},{"$f":"Actif!$E$28/100","v":{"v":0.28900000000000003,"d":"28.90%"}},{"$f":"Actif!$E$30/100","v":{"v":0.09050000000000001,"d":"9.05%"}},{"$f":"Actif!$E$31/100","v":{"v":0.0605,"d":"6.05%"}},{"$f":"Actif!$E$32/100","v":{"v":0.47350000000000003,"d":"47.35%"}},{"$f":"Actif!$E$33/100","v":{"v":0.0585,"d":"5.85%"}},{"$f":"Actif!$E$29/100","v":{"v":0.027999999999999997,"d":"2.80%"}}]
[null,"#56",29,2026,"F","A_VIE",{"v":0.44999999999999996,"d":"0.45"},{"v":0.38999999999999996,"d":"0.39"},0.6,0.6,85,0,{"$f":"ROUND(Primes!$Q$4*V8169,0)","v":68},{"$f":"'BP Financier'!$G$33*(('BP Financier'!$C$16+'BP Financier'!$D$16+'BP Financier'!$E$16+'BP Financier'!$F$16+'BP Financier'!$G$16)/('BP Financier'!$C$16+'BP Financier'!$C$19+'BP Financier'!$D$16+'BP Financier'!$D$19+'BP Financier'!$E$16+'BP Financier'!$E$19+'BP Financier'!$F$16+'BP Financier'!$F$19+'BP Financier'!$G$19+'BP Financier'!$G$16))*V8169","v":{"v":3421672.0459127007,"d":"3,421,672"}},{"v":1963815.672006318,"d":"1,963,816"},{"$f":"'BP Financier'!$G$44*(('BP Financier'!$C$16+'BP Financier'!$D$16+'BP Financier'!$E$16+'BP Financier'!$F$16+'BP Financier'!$G$16)/('BP Financier'!$C$16+'BP Financier'!$C$19+'BP Financier'!$D$16+'BP Financier'!$D$19+'BP Financier'!$E$16+'BP Financier'!$E$19+'BP Financier'!$C$22+'BP Financier'!$D$22+'BP Financier'!$E$22+'BP Financier'!$F$16+'BP Financier'!$F$19+'BP Financier'!$F$22+'BP Financier'!$G$16+'BP Financier'!$G$19+'BP Financier'!$G$22))*$V8169*X8169/(1-$W8169)","v":{"v":249965.28595861018,"d":"249,965"}},{"$f":"'BP Financier'!$G$44*(('BP Financier'!$C$16+'BP Financier'!$D$16+'BP Financier'!$E$16+'BP Financier'!$F$16+'BP Financier'!$G$16)/('BP Financier'!$C$16+'BP Financier'!$C$19+'BP Financier'!$D$16+'BP Financier'!$D$19+'BP Financier'!$E$16+'BP Financier'!$E$19+'BP Financier'!$C$22+'BP Financier'!$D$22+'BP Financier'!$E$22+'BP Financier'!$F$16+'BP Financier'!$F$19+'BP Financier'!$F$22+'BP Financier'!$G$16+'BP Financier'!$G$19+'BP Financier'!$G$22))*$V8169*Y8169/(1-$W8169)","v":{"v":167103.86519884988,"d":"167,104"}},{"$f":"'BP Financier'!$G$44*(('BP Financier'!$C$16+'BP Financier'!$D$16+'BP Financier'!$E$16+'BP Financier'!$F$16+'BP Financier'!$G$16)/('BP Financier'!$C$16+'BP Financier'!$C$19+'BP Financier'!$D$16+'BP Financier'!$D$19+'BP Financier'!$E$16+'BP Financier'!$E$19+'BP Financier'!$C$22+'BP Financier'!$D$22+'BP Financier'!$E$22+'BP Financier'!$F$16+'BP Financier'!$F$19+'BP Financier'!$F$22+'BP Financier'!$G$16+'BP Financier'!$G$19+'BP Financier'!$G$22))*$V8169*Z8169/(1-$W8169)","v":{"v":1307829.424324883,"d":"1,307,829"}},{"$f":"'BP Financier'!$G$44*(('BP Financier'!$C$16+'BP Financier'!$D$16+'BP Financier'!$E$16+'BP Financier'!$F$16+'BP Financier'!$G$16)/('BP Financier'!$C$16+'BP Financier'!$C$19+'BP Financier'!$D$16+'BP Financier'!$D$19+'BP Financier'!$E$16+'BP Financier'!$E$19+'BP Financier'!$C$22+'BP Financier'!$D$22+'BP Financier'!$E$22+'BP Financier'!$F$16+'BP Financier'!$F$19+'BP Financier'!$F$22+'BP Financier'!$G$16+'BP Financier'!$G$19+'BP Financier'!$G$22))*$V8169*AA8169/(1-$W8169)","v":{"v":161579.77048153256,"d":"161,580"}},{"$f":"'BP Financier'!$G$44*(('BP Financier'!$C$16+'BP Financier'!$D$16+'BP Financier'!$E$16+'BP Financier'!$F$16+'BP Financier'!$G$16)/('BP Financier'!$C$16+'BP Financier'!$C$19+'BP Financier'!$D$16+'BP Financier'!$D$19+'BP Financier'!$E$16+'BP Financier'!$E$19+'BP Financier'!$C$22+'BP Financier'!$D$22+'BP Financier'!$E$22+'BP Financier'!$F$16+'BP Financier'!$F$19+'BP Financier'!$F$22+'BP Financier'!$G$16+'BP Financier'!$G$19+'BP Financier'!$G$22))*$V8169*AB8169/(1-$W8169)","v":{"v":77337.32604244292,"d":"77,337"}},null,{"v":0.006,"d":"0.60%"},{"$f":"Actif!$E$28/100","v":{"v":0.28900000000000003,"d":"28.90%"}},{"$f":"Actif!$E$30/100","v":{"v":0.09050000000000001,"d":"9.05%"}},{"$f":"Actif!$E$31/100","v":{"v":0.0605,"d":"6.05%"}},{"$f":"Actif!$E$32/100","v":{"v":0.47350000000000003,"d":"47.35%"}},{"$f":"Actif!$E$33/100","v":{"v":0.0585,"d":"5.85%"}},{"$f":"Actif!$E$29/100","v":{"v":0.027999999999999997,"d":"2.80%"}}]
[null,"#57",29,2028,"F","A_VIE",{"v":0.44999999999999996,"d":"0.45"},{"v":0.38999999999999996,"d":"0.39"},0.6,0.6,85,0,{"$f":"ROUND(Primes!$Q$4*V8170,0)","v":68},{"$f":"'BP Financier'!$G$33*(('BP Financier'!$C$16+'BP Financier'!$D$16+'BP Financier'!$E$16+'BP Financier'!$F$16+'BP Financier'!$G$16)/('BP Financier'!$C$16+'BP Financier'!$C$19+'BP Financier'!$D$16+'BP Financier'!$D$19+'BP Financier'!$E$16+'BP Financier'!$E$19+'BP Financier'!$F$16+'BP Financier'!$F$19+'BP Financier'!$G$19+'BP Financier'!$G$16))*V8170","v":{"v":3421672.0459127007,"d":"3,421,672"}},{"v":1963815.672006318,"d":"1,963,816"},{"$f":"'BP Financier'!$G$44*(('BP Financier'!$C$16+'BP Financier'!$D$16+'BP Financier'!$E$16+'BP Financier'!$F$16+'BP Financier'!$G$16)/('BP Financier'!$C$16+'BP Financier'!$C$19+'BP Financier'!$D$16+'BP Financier'!$D$19+'BP Financier'!$E$16+'BP Financier'!$E$19+'BP Financier'!$C$22+'BP Financier'!$D$22+'BP Financier'!$E$22+'BP Financier'!$F$16+'BP Financier'!$F$19+'BP Financier'!$F$22+'BP Financier'!$G$16+'BP Financier'!$G$19+'BP Financier'!$G$22))*$V8170*X8170/(1-$W8170)","v":{"v":249965.28595861018,"d":"249,965"}},{"$f":"'BP Financier'!$G$44*(('BP Financier'!$C$16+'BP Financier'!$D$16+'BP Financier'!$E$16+'BP Financier'!$F$16+'BP Financier'!$G$16)/('BP Financier'!$C$16+'BP Financier'!$C$19+'BP Financier'!$D$16+'BP Financier'!$D$19+'BP Financier'!$E$16+'BP Financier'!$E$19+'BP Financier'!$C$22+'BP Financier'!$D$22+'BP Financier'!$E$22+'BP Financier'!$F$16+'BP Financier'!$F$19+'BP Financier'!$F$22+'BP Financier'!$G$16+'BP Financier'!$G$19+'BP Financier'!$G$22))*$V8170*Y8170/(1-$W8170)","v":{"v":167103.86519884988,"d":"167,104"}},{"$f":"'BP Financier'!$G$44*(('BP Financier'!$C$16+'BP Financier'!$D$16+'BP Financier'!$E$16+'BP Financier'!$F$16+'BP Financier'!$G$16)/('BP Financier'!$C$16+'BP Financier'!$C$19+'BP Financier'!$D$16+'BP Financier'!$D$19+'BP Financier'!$E$16+'BP Financier'!$E$19+'BP Financier'!$C$22+'BP Financier'!$D$22+'BP Financier'!$E$22+'BP Financier'!$F$16+'BP Financier'!$F$19+'BP Financier'!$F$22+'BP Financier'!$G$16+'BP Financier'!$G$19+'BP Financier'!$G$22))*$V8170*Z8170/(1-$W8170)","v":{"v":1307829.424324883,"d":"1,307,829"}},{"$f":"'BP Financier'!$G$44*(('BP Financier'!$C$16+'BP Financier'!$D$16+'BP Financier'!$E$16+'BP Financier'!$F$16+'BP Financier'!$G$16)/('BP Financier'!$C$16+'BP Financier'!$C$19+'BP Financier'!$D$16+'BP Financier'!$D$19+'BP Financier'!$E$16+'BP Financier'!$E$19+'BP Financier'!$C$22+'BP Financier'!$D$22+'BP Financier'!$E$22+'BP Financier'!$F$16+'BP Financier'!$F$19+'BP Financier'!$F$22+'BP Financier'!$G$16+'BP Financier'!$G$19+'BP Financier'!$G$22))*$V8170*AA8170/(1-$W8170)","v":{"v":161579.77048153256,"d":"161,580"}},{"$f":"'BP Financier'!$G$44*(('BP Financier'!$C$16+'BP Financier'!$D$16+'BP Financier'!$E$16+'BP Financier'!$F$16+'BP Financier'!$G$16)/('BP Financier'!$C$16+'BP Financier'!$C$19+'BP Financier'!$D$16+'BP Financier'!$D$19+'BP Financier'!$E$16+'BP Financier'!$E$19+'BP Financier'!$C$22+'BP Financier'!$D$22+'BP Financier'!$E$22+'BP Financier'!$F$16+'BP Financier'!$F$19+'BP Financier'!$F$22+'BP Financier'!$G$16+'BP Financier'!$G$19+'BP Financier'!$G$22))*$V8170*AB8170/(1-$W8170)","v":{"v":77337.32604244292,"d":"77,337"}},null,{"v":0.006,"d":"0.60%"},{"$f":"Actif!$E$28/100","v":{"v":0.28900000000000003,"d":"28.90%"}},{"$f":"Actif!$E$30/100","v":{"v":0.09050000000000001,"d":"9.05%"}},{"$f":"Actif!$E$31/100","v":{"v":0.0605,"d":"6.05%"}},{"$f":"Actif!$E$32/100","v":{"v":0.47350000000000003,"d":"47.35%"}},{"$f":"Actif!$E$33/100","v":{"v":0.0585,"d":"5.85%"}},{"$f":"Actif!$E$29/100","v":{"v":0.027999999999999997,"d":"2.80%"}}]
[null,"#58",29,2029,"F","A_VIE",{"v":0.44999999999999996,"d":"0.45"},{"v":0.38999999999999996,"d":"0.39"},0.6,0.6,85,0,{"$f":"ROUND(Primes!$Q$4*V8171,0)","v":68},{"$f":"'BP Financier'!$G$33*(('BP Financier'!$C$16+'BP Financier'!$D$16+'BP Financier'!$E$16+'BP Financier'!$F$16+'BP Financier'!$G$16)/('BP Financier'!$C$16+'BP Financier'!$C$19+'BP Financier'!$D$16+'BP Financier'!$D$19+'BP Financier'!$E$16+'BP Financier'!$E$19+'BP Financier'!$F$16+'BP Financier'!$F$19+'BP Financier'!$G$19+'BP Financier'!$G$16))*V8171","v":{"v":3421672.0459127007,"d":"3,421,672"}},{"v":1963815.672006318,"d":"1,963,816"},{"$f":"'BP Financier'!$G$44*(('BP Financier'!$C$16+'BP Financier'!$D$16+'BP Financier'!$E$16+'BP Financier'!$F$16+'BP Financier'!$G$16)/('BP Financier'!$C$16+'BP Financier'!$C$19+'BP Financier'!$D$16+'BP Financier'!$D$19+'BP Financier'!$E$16+'BP Financier'!$E$19+'BP Financier'!$C$22+'BP Financier'!$D$22+'BP Financier'!$E$22+'BP Financier'!$F$16+'BP Financier'!$F$19+'BP Financier'!$F$22+'BP Financier'!$G$16+'BP Financier'!$G$19+'BP Financier'!$G$22))*$V8171*X8171/(1-$W8171)","v":{"v":249965.28595861018,"d":"249,965"}},{"$f":"'BP Financier'!$G$44*(('BP Financier'!$C$16+'BP Financier'!$D$16+'BP Financier'!$E$16+'BP Financier'!$F$16+'BP Financier'!$G$16)/('BP Financier'!$C$16+'BP Financier'!$C$19+'BP Financier'!$D$16+'BP Financier'!$D$19+'BP Financier'!$E$16+'BP Financier'!$E$19+'BP Financier'!$C$22+'BP Financier'!$D$22+'BP Financier'!$E$22+'BP Financier'!$F$16+'BP Financier'!$F$19+'BP Financier'!$F$22+'BP Financier'!$G$16+'BP Financier'!$G$19+'BP Financier'!$G$22))*$V8171*Y8171/(1-$W8171)","v":{"v":167103.86519884988,"d":"167,104"}},{"$f":"'BP Financier'!$G$44*(('BP Financier'!$C$16+'BP Financier'!$D$16+'BP Financier'!$E$16+'BP Financier'!$F$16+'BP Financier'!$G$16)/('BP Financier'!$C$16+'BP Financier'!$C$19+'BP Financier'!$D$16+'BP Financier'!$D$19+'BP Financier'!$E$16+'BP Financier'!$E$19+'BP Financier'!$C$22+'BP Financier'!$D$22+'BP Financier'!$E$22+'BP Financier'!$F$16+'BP Financier'!$F$19+'BP Financier'!$F$22+'BP Financier'!$G$16+'BP Financier'!$G$19+'BP Financier'!$G$22))*$V8171*Z8171/(1-$W8171)","v":{"v":1307829.424324883,"d":"1,307,829"}},{"$f":"'BP Financier'!$G$44*(('BP Financier'!$C$16+'BP Financier'!$D$16+'BP Financier'!$E$16+'BP Financier'!$F$16+'BP Financier'!$G$16)/('BP Financier'!$C$16+'BP Financier'!$C$19+'BP Financier'!$D$16+'BP Financier'!$D$19+'BP Financier'!$E$16+'BP Financier'!$E$19+'BP Financier'!$C$22+'BP Financier'!$D$22+'BP Financier'!$E$22+'BP Financier'!$F$16+'BP Financier'!$F$19+'BP Financier'!$F$22+'BP Financier'!$G$16+'BP Financier'!$G$19+'BP Financier'!$G$22))*$V8171*AA8171/(1-$W8171)","v":{"v":161579.77048153256,"d":"161,580"}},{"$f":"'BP Financier'!$G$44*(('BP Financier'!$C$16+'BP Financier'!$D$16+'BP Financier'!$E$16+'BP Financier'!$F$16+'BP Financier'!$G$16)/('BP Financier'!$C$16+'BP Financier'!$C$19+'BP Financier'!$D$16+'BP Financier'!$D$19+'BP Financier'!$E$16+'BP Financier'!$E$19+'BP Financier'!$C$22+'BP Financier'!$D$22+'BP Financier'!$E$22+'BP Financier'!$F$16+'BP Financier'!$F$19+'BP Financier'!$F$22+'BP Financier'!$G$16+'BP Financier'!$G$19+'BP Financier'!$G$22))*$V8171*AB8171/(1-$W8171)","v":{"v":77337.32604244292,"d":"77,337"}},null,{"v":0.006,"d":"0.60%"},{"$f":"Actif!$E$28/100","v":{"v":0.28900000000000003,"d":"28.90%"}},{"$f":"Actif!$E$30/100","v":{"v":0.09050000000000001,"d":"9.05%"}},{"$f":"Actif!$E$31/100","v":{"v":0.0605,"d":"6.05%"}},{"$f":"Actif!$E$32/100","v":{"v":0.47350000000000003,"d":"47.35%"}},{"$f":"Actif!$E$33/100","v":{"v":0.0585,"d":"5.85%"}},{"$f":"Actif!$E$29/100","v":{"v":0.027999999999999997,"d":"2.80%"}}]
[null,"#59",29,2030,"F","A_VIE",{"v":0.44999999999999996,"d":"0.45"},{"v":0.38999999999999996,"d":"0.39"},0.6,0.6,85,0,{"$f":"ROUND(Primes!$Q$4*V8172,0)","v":68},{"$f":"'BP Financier'!$G$33*(('BP Financier'!$C$16+'BP Financier'!$D$16+'BP Financier'!$E$16+'BP Financier'!$F$16+'BP Financier'!$G$16)/('BP Financier'!$C$16+'BP Financier'!$C$19+'BP Financier'!$D$16+'BP Financier'!$D$19+'BP Financier'!$E$16+'BP Financier'!$E$19+'BP Financier'!$F$16+'BP Financier'!$F$19+'BP Financier'!$G$19+'BP Financier'!$G$16))*V8172","v":{"v":3421672.0459127007,"d":"3,421,672"}},{"v":1963815.672006318,"d":"1,963,816"},{"$f":"'BP Financier'!$G$44*(('BP Financier'!$C$16+'BP Financier'!$D$16+'BP Financier'!$E$16+'BP Financier'!$F$16+'BP Financier'!$G$16)/('BP Financier'!$C$16+'BP Financier'!$C$19+'BP Financier'!$D$16+'BP Financier'!$D$19+'BP Financier'!$E$16+'BP Financier'!$E$19+'BP Financier'!$C$22+'BP Financier'!$D$22+'BP Financier'!$E$22+'BP Financier'!$F$16+'BP Financier'!$F$19+'BP Financier'!$F$22+'BP Financier'!$G$16+'BP Financier'!$G$19+'BP Financier'!$G$22))*$V8172*X8172/(1-$W8172)","v":{"v":249965.28595861018,"d":"249,965"}},{"$f":"'BP Financier'!$G$44*(('BP Financier'!$C$16+'BP Financier'!$D$16+'BP Financier'!$E$16+'BP Financier'!$F$16+'BP Financier'!$G$16)/('BP Financier'!$C$16+'BP Financier'!$C$19+'BP Financier'!$D$16+'BP Financier'!$D$19+'BP Financier'!$E$16+'BP Financier'!$E$19+'BP Financier'!$C$22+'BP Financier'!$D$22+'BP Financier'!$E$22+'BP Financier'!$F$16+'BP Financier'!$F$19+'BP Financier'!$F$22+'BP Financier'!$G$16+'BP Financier'!$G$19+'BP Financier'!$G$22))*$V8172*Y8172/(1-$W8172)","v":{"v":167103.86519884988,"d":"167,104"}},{"$f":"'BP Financier'!$G$44*(('BP Financier'!$C$16+'BP Financier'!$D$16+'BP Financier'!$E$16+'BP Financier'!$F$16+'BP Financier'!$G$16)/('BP Financier'!$C$16+'BP Financier'!$C$19+'BP Financier'!$D$16+'BP Financier'!$D$19+'BP Financier'!$E$16+'BP Financier'!$E$19+'BP Financier'!$C$22+'BP Financier'!$D$22+'BP Financier'!$E$22+'BP Financier'!$F$16+'BP Financier'!$F$19+'BP Financier'!$F$22+'BP Financier'!$G$16+'BP Financier'!$G$19+'BP Financier'!$G$22))*$V8172*Z8172/(1-$W8172)","v":{"v":1307829.424324883,"d":"1,307,829"}},{"$f":"'BP Financier'!$G$44*(('BP Financier'!$C$16+'BP Financier'!$D$16+'BP Financier'!$E$16+'BP Financier'!$F$16+'BP Financier'!$G$16)/('BP Financier'!$C$16+'BP Financier'!$C$19+'BP Financier'!$D$16+'BP Financier'!$D$19+'BP Financier'!$E$16+'BP Financier'!$E$19+'BP Financier'!$C$22+'BP Financier'!$D$22+'BP Financier'!$E$22+'BP Financier'!$F$16+'BP Financier'!$F$19+'BP Financier'!$F$22+'BP Financier'!$G$16+'BP Financier'!$G$19+'BP Financier'!$G$22))*$V8172*AA8172/(1-$W8172)","v":{"v":161579.77048153256,"d":"161,580"}},{"$f":"'BP Financier'!$G$44*(('BP Financier'!$C$16+'BP Financier'!$D$16+'BP Financier'!$E$16+'BP Financier'!$F$16+'BP Financier'!$G$16)/('BP Financier'!$C$16+'BP Financier'!$C$19+'BP Financier'!$D$16+'BP Financier'!$D$19+'BP Financier'!$E$16+'BP Financier'!$E$19+'BP Financier'!$C$22+'BP Financier'!$D$22+'BP Financier'!$E$22+'BP Financier'!$F$16+'BP Financier'!$F$19+'BP Financier'!$F$22+'BP Financier'!$G$16+'BP Financier'!$G$19+'BP Financier'!$G$22))*$V8172*AB8172/(1-$W8172)","v":{"v":77337.32604244292,"d":"77,337"}},null,{"v":0.006,"d":"0.60%"},{"$f":"Actif!$E$28/100","v":{"v":0.28900000000000003,"d":"28.90%"}},{"$f":"Actif!$E$30/100","v":{"v":0.09050000000000001,"d":"9.05%"}},{"$f":"Actif!$E$31/100","v":{"v":0.0605,"d":"6.05%"}},{"$f":"Actif!$E$32/100","v":{"v":0.47350000000000003,"d":"47.35%"}},{"$f":"Actif!$E$33/100","v":{"v":0.0585,"d":"5.85%"}},{"$f":"Actif!$E$29/100","v":{"v":0.027999999999999997,"d":"2.80%"}}]
[null,"#60",29,2031,"F","A_VIE",{"v":0.44999999999999996,"d":"0.45"},{"v":0.38999999999999996,"d":"0.39"},0.6,0.6,85,0,{"$f":"ROUND(Primes!$Q$4*V8173,0)","v":68},{"$f":"'BP Financier'!$G$33*(('BP Financier'!$C$16+'BP Financier'!$D$16+'BP Financier'!$E$16+'BP Financier'!$F$16+'BP Financier'!$G$16)/('BP Financier'!$C$16+'BP Financier'!$C$19+'BP Financier'!$D$16+'BP Financier'!$D$19+'BP Financier'!$E$16+'BP Financier'!$E$19+'BP Financier'!$F$16+'BP Financier'!$F$19+'BP Financier'!$G$19+'BP Financier'!$G$16))*V8173","v":{"v":3421672.0459127007,"d":"3,421,672"}},{"v":1963815.672006318,"d":"1,963,816"},{"$f":"'BP Financier'!$G$44*(('BP Financier'!$C$16+'BP Financier'!$D$16+'BP Financier'!$E$16+'BP Financier'!$F$16+'BP Financier'!$G$16)/('BP Financier'!$C$16+'BP Financier'!$C$19+'BP Financier'!$D$16+'BP Financier'!$D$19+'BP Financier'!$E$16+'BP Financier'!$E$19+'BP Financier'!$C$22+'BP Financier'!$D$22+'BP Financier'!$E$22+'BP Financier'!$F$16+'BP Financier'!$F$19+'BP Financier'!$F$22+'BP Financier'!$G$16+'BP Financier'!$G$19+'BP Financier'!$G$22))*$V8173*X8173/(1-$W8173)","v":{"v":249965.28595861018,"d":"249,965"}},{"$f":"'BP Financier'!$G$44*(('BP Financier'!$C$16+'BP Financier'!$D$16+'BP Financier'!$E$16+'BP Financier'!$F$16+'BP Financier'!$G$16)/('BP Financier'!$C$16+'BP Financier'!$C$19+'BP Financier'!$D$16+'BP Financier'!$D$19+'BP Financier'!$E$16+'BP Financier'!$E$19+'BP Financier'!$C$22+'BP Financier'!$D$22+'BP Financier'!$E$22+'BP Financier'!$F$16+'BP Financier'!$F$19+'BP Financier'!$F$22+'BP Financier'!$G$16+'BP Financier'!$G$19+'BP Financier'!$G$22))*$V8173*Y8173/(1-$W8173)","v":{"v":167103.86519884988,"d":"167,104"}},{"$f":"'BP Financier'!$G$44*(('BP Financier'!$C$16+'BP Financier'!$D$16+'BP Financier'!$E$16+'BP Financier'!$F$16+'BP Financier'!$G$16)/('BP Financier'!$C$16+'BP Financier'!$C$19+'BP Financier'!$D$16+'BP Financier'!$D$19+'BP Financier'!$E$16+'BP Financier'!$E$19+'BP Financier'!$C$22+'BP Financier'!$D$22+'BP Financier'!$E$22+'BP Financier'!$F$16+'BP Financier'!$F$19+'BP Financier'!$F$22+'BP Financier'!$G$16+'BP Financier'!$G$19+'BP Financier'!$G$22))*$V8173*Z8173/(1-$W8173)","v":{"v":1307829.424324883,"d":"1,307,829"}},{"$f":"'BP Financier'!$G$44*(('BP Financier'!$C$16+'BP Financier'!$D$16+'BP Financier'!$E$16+'BP Financier'!$F$16+'BP Financier'!$G$16)/('BP Financier'!$C$16+'BP Financier'!$C$19+'BP Financier'!$D$16+'BP Financier'!$D$19+'BP Financier'!$E$16+'BP Financier'!$E$19+'BP Financier'!$C$22+'BP Financier'!$D$22+'BP Financier'!$E$22+'BP Financier'!$F$16+'BP Financier'!$F$19+'BP Financier'!$F$22+'BP Financier'!$G$16+'BP Financier'!$G$19+'BP Financier'!$G$22))*$V8173*AA8173/(1-$W8173)","v":{"v":161579.77048153256,"d":"161,580"}},{"$f":"'BP Financier'!$G$44*(('BP Financier'!$C$16+'BP Financier'!$D$16+'BP Financier'!$E$16+'BP Financier'!$F$16+'BP Financier'!$G$16)/('BP Financier'!$C$16+'BP Financier'!$C$19+'BP Financier'!$D$16+'BP Financier'!$D$19+'BP Financier'!$E$16+'BP Financier'!$E$19+'BP Financier'!$C$22+'BP Financier'!$D$22+'BP Financier'!$E$22+'BP Financier'!$F$16+'BP Financier'!$F$19+'BP Financier'!$F$22+'BP Financier'!$G$16+'BP Financier'!$G$19+'BP Financier'!$G$22))*$V8173*AB8173/(1-$W8173)","v":{"v":77337.32604244292,"d":"77,337"}},null,{"v":0.006,"d":"0.60%"},{"$f":"Actif!$E$28/100","v":{"v":0.28900000000000003,"d":"28.90%"}},{"$f":"Actif!$E$30/100","v":{"v":0.09050000000000001,"d":"9.05%"}},{"$f":"Actif!$E$31/100","v":{"v":0.0605,"d":"6.05%"}},{"$f":"Actif!$E$32/100","v":{"v":0.47350000000000003,"d":"47.35%"}},{"$f":"Actif!$E$33/100","v":{"v":0.0585,"d":"5.85%"}},{"$f":"Actif!$E$29/100","v":{"v":0.027999999999999997,"d":"2.80%"}}]
[null,"#61",30,2026,"H","A_VIE",{"v":0.44999999999999996,"d":"0.45"},{"v":0.38999999999999996,"d":"0.39"},0.6,0.6,85,0,{"$f":"ROUND(Primes!$Q$4*V8174,0)","v":68},{"$f":"'BP Financier'!$G$33*(('BP Financier'!$C$16+'BP Financier'!$D$16+'BP Financier'!$E$16+'BP Financier'!$F$16+'BP Financier'!$G$16)/('BP Financier'!$C$16+'BP Financier'!$C$19+'BP Financier'!$D$16+'BP Financier'!$D$19+'BP Financier'!$E$16+'BP Financier'!$E$19+'BP Financier'!$F$16+'BP Financier'!$F$19+'BP Financier'!$G$19+'BP Financier'!$G$16))*V8174","v":{"v":3421672.0459127007,"d":"3,421,672"}},{"v":1963815.672006318,"d":"1,963,816"},{"$f":"'BP Financier'!$G$44*(('BP Financier'!$C$16+'BP Financier'!$D$16+'BP Financier'!$E$16+'BP Financier'!$F$16+'BP Financier'!$G$16)/('BP Financier'!$C$16+'BP Financier'!$C$19+'BP Financier'!$D$16+'BP Financier'!$D$19+'BP Financier'!$E$16+'BP Financier'!$E$19+'BP Financier'!$C$22+'BP Financier'!$D$22+'BP Financier'!$E$22+'BP Financier'!$F$16+'BP Financier'!$F$19+'BP Financier'!$F$22+'BP Financier'!$G$16+'BP Financier'!$G$19+'BP Financier'!$G$22))*$V8174*X8174/(1-$W8174)","v":{"v":249965.28595861018,"d":"249,965"}},{"$f":"'BP Financier'!$G$44*(('BP Financier'!$C$16+'BP Financier'!$D$16+'BP Financier'!$E$16+'BP Financier'!$F$16+'BP Financier'!$G$16)/('BP Financier'!$C$16+'BP Financier'!$C$19+'BP Financier'!$D$16+'BP Financier'!$D$19+'BP Financier'!$E$16+'BP Financier'!$E$19+'BP Financier'!$C$22+'BP Financier'!$D$22+'BP Financier'!$E$22+'BP Financier'!$F$16+'BP Financier'!$F$19+'BP Financier'!$F$22+'BP Financier'!$G$16+'BP Financier'!$G$19+'BP Financier'!$G$22))*$V8174*Y8174/(1-$W8174)","v":{"v":167103.86519884988,"d":"167,104"}},{"$f":"'BP Financier'!$G$44*(('BP Financier'!$C$16+'BP Financier'!$D$16+'BP Financier'!$E$16+'BP Financier'!$F$16+'BP Financier'!$G$16)/('BP Financier'!$C$16+'BP Financier'!$C$19+'BP Financier'!$D$16+'BP Financier'!$D$19+'BP Financier'!$E$16+'BP Financier'!$E$19+'BP Financier'!$C$22+'BP Financier'!$D$22+'BP Financier'!$E$22+'BP Financier'!$F$16+'BP Financier'!$F$19+'BP Financier'!$F$22+'BP Financier'!$G$16+'BP Financier'!$G$19+'BP Financier'!$G$22))*$V8174*Z8174/(1-$W8174)","v":{"v":1307829.424324883,"d":"1,307,829"}},{"$f":"'BP Financier'!$G$44*(('BP Financier'!$C$16+'BP Financier'!$D$16+'BP Financier'!$E$16+'BP Financier'!$F$16+'BP Financier'!$G$16)/('BP Financier'!$C$16+'BP Financier'!$C$19+'BP Financier'!$D$16+'BP Financier'!$D$19+'BP Financier'!$E$16+'BP Financier'!$E$19+'BP Financier'!$C$22+'BP Financier'!$D$22+'BP Financier'!$E$22+'BP Financier'!$F$16+'BP Financier'!$F$19+'BP Financier'!$F$22+'BP Financier'!$G$16+'BP Financier'!$G$19+'BP Financier'!$G$22))*$V8174*AA8174/(1-$W8174)","v":{"v":161579.77048153256,"d":"161,580"}},{"$f":"'BP Financier'!$G$44*(('BP Financier'!$C$16+'BP Financier'!$D$16+'BP Financier'!$E$16+'BP Financier'!$F$16+'BP Financier'!$G$16)/('BP Financier'!$C$16+'BP Financier'!$C$19+'BP Financier'!$D$16+'BP Financier'!$D$19+'BP Financier'!$E$16+'BP Financier'!$E$19+'BP Financier'!$C$22+'BP Financier'!$D$22+'BP Financier'!$E$22+'BP Financier'!$F$16+'BP Financier'!$F$19+'BP Financier'!$F$22+'BP Financier'!$G$16+'BP Financier'!$G$19+'BP Financier'!$G$22))*$V8174*AB8174/(1-$W8174)","v":{"v":77337.32604244292,"d":"77,337"}},null,{"v":0.006,"d":"0.60%"},{"$f":"Actif!$E$28/100","v":{"v":0.28900000000000003,"d":"28.90%"}},{"$f":"Actif!$E$30/100","v":{"v":0.09050000000000001,"d":"9.05%"}},{"$f":"Actif!$E$31/100","v":{"v":0.0605,"d":"6.05%"}},{"$f":"Actif!$E$32/100","v":{"v":0.47350000000000003,"d":"47.35%"}},{"$f":"Actif!$E$33/100","v":{"v":0.0585,"d":"5.85%"}},{"$f":"Actif!$E$29/100","v":{"v":0.027999999999999997,"d":"2.80%"}}]
[null,"#62",30,2028,"H","A_VIE",{"v":0.44999999999999996,"d":"0.45"},{"v":0.38999999999999996,"d":"0.39"},0.6,0.6,85,0,{"$f":"ROUND(Primes!$Q$4*V8175,0)","v":68},{"$f":"'BP Financier'!$G$33*(('BP Financier'!$C$16+'BP Financier'!$D$16+'BP Financier'!$E$16+'BP Financier'!$F$16+'BP Financier'!$G$16)/('BP Financier'!$C$16+'BP Financier'!$C$19+'BP Financier'!$D$16+'BP Financier'!$D$19+'BP Financier'!$E$16+'BP Financier'!$E$19+'BP Financier'!$F$16+'BP Financier'!$F$19+'BP Financier'!$G$19+'BP Financier'!$G$16))*V8175","v":{"v":3421672.0459127007,"d":"3,421,672"}},{"v":1963815.672006318,"d":"1,963,816"},{"$f":"'BP Financier'!$G$44*(('BP Financier'!$C$16+'BP Financier'!$D$16+'BP Financier'!$E$16+'BP Financier'!$F$16+'BP Financier'!$G$16)/('BP Financier'!$C$16+'BP Financier'!$C$19+'BP Financier'!$D$16+'BP Financier'!$D$19+'BP Financier'!$E$16+'BP Financier'!$E$19+'BP Financier'!$C$22+'BP Financier'!$D$22+'BP Financier'!$E$22+'BP Financier'!$F$16+'BP Financier'!$F$19+'BP Financier'!$F$22+'BP Financier'!$G$16+'BP Financier'!$G$19+'BP Financier'!$G$22))*$V8175*X8175/(1-$W8175)","v":{"v":249965.28595861018,"d":"249,965"}},{"$f":"'BP Financier'!$G$44*(('BP Financier'!$C$16+'BP Financier'!$D$16+'BP Financier'!$E$16+'BP Financier'!$F$16+'BP Financier'!$G$16)/('BP Financier'!$C$16+'BP Financier'!$C$19+'BP Financier'!$D$16+'BP Financier'!$D$19+'BP Financier'!$E$16+'BP Financier'!$E$19+'BP Financier'!$C$22+'BP Financier'!$D$22+'BP Financier'!$E$22+'BP Financier'!$F$16+'BP Financier'!$F$19+'BP Financier'!$F$22+'BP Financier'!$G$16+'BP Financier'!$G$19+'BP Financier'!$G$22))*$V8175*Y8175/(1-$W8175)","v":{"v":167103.86519884988,"d":"167,104"}},{"$f":"'BP Financier'!$G$44*(('BP Financier'!$C$16+'BP Financier'!$D$16+'BP Financier'!$E$16+'BP Financier'!$F$16+'BP Financier'!$G$16)/('BP Financier'!$C$16+'BP Financier'!$C$19+'BP Financier'!$D$16+'BP Financier'!$D$19+'BP Financier'!$E$16+'BP Financier'!$E$19+'BP Financier'!$C$22+'BP Financier'!$D$22+'BP Financier'!$E$22+'BP Financier'!$F$16+'BP Financier'!$F$19+'BP Financier'!$F$22+'BP Financier'!$G$16+'BP Financier'!$G$19+'BP Financier'!$G$22))*$V8175*Z8175/(1-$W8175)","v":{"v":1307829.424324883,"d":"1,307,829"}},{"$f":"'BP Financier'!$G$44*(('BP Financier'!$C$16+'BP Financier'!$D$16+'BP Financier'!$E$16+'BP Financier'!$F$16+'BP Financier'!$G$16)/('BP Financier'!$C$16+'BP Financier'!$C$19+'BP Financier'!$D$16+'BP Financier'!$D$19+'BP Financier'!$E$16+'BP Financier'!$E$19+'BP Financier'!$C$22+'BP Financier'!$D$22+'BP Financier'!$E$22+'BP Financier'!$F$16+'BP Financier'!$F$19+'BP Financier'!$F$22+'BP Financier'!$G$16+'BP Financier'!$G$19+'BP Financier'!$G$22))*$V8175*AA8175/(1-$W8175)","v":{"v":161579.77048153256,"d":"161,580"}},{"$f":"'BP Financier'!$G$44*(('BP Financier'!$C$16+'BP Financier'!$D$16+'BP Financier'!$E$16+'BP Financier'!$F$16+'BP Financier'!$G$16)/('BP Financier'!$C$16+'BP Financier'!$C$19+'BP Financier'!$D$16+'BP Financier'!$D$19+'BP Financier'!$E$16+'BP Financier'!$E$19+'BP Financier'!$C$22+'BP Financier'!$D$22+'BP Financier'!$E$22+'BP Financier'!$F$16+'BP Financier'!$F$19+'BP Financier'!$F$22+'BP Financier'!$G$16+'BP Financier'!$G$19+'BP Financier'!$G$22))*$V8175*AB8175/(1-$W8175)","v":{"v":77337.32604244292,"d":"77,337"}},null,{"v":0.006,"d":"0.60%"},{"$f":"Actif!$E$28/100","v":{"v":0.28900000000000003,"d":"28.90%"}},{"$f":"Actif!$E$30/100","v":{"v":0.09050000000000001,"d":"9.05%"}},{"$f":"Actif!$E$31/100","v":{"v":0.0605,"d":"6.05%"}},{"$f":"Actif!$E$32/100","v":{"v":0.47350000000000003,"d":"47.35%"}},{"$f":"Actif!$E$33/100","v":{"v":0.0585,"d":"5.85%"}},{"$f":"Actif!$E$29/100","v":{"v":0.027999999999999997,"d":"2.80%"}}]
[null,"#63",30,2029,"H","A_VIE",{"v":0.44999999999999996,"d":"0.45"},{"v":0.38999999999999996,"d":"0.39"},0.6,0.6,85,0,{"$f":"ROUND(Primes!$Q$4*V8176,0)","v":68},{"$f":"'BP Financier'!$G$33*(('BP Financier'!$C$16+'BP Financier'!$D$16+'BP Financier'!$E$16+'BP Financier'!$F$16+'BP Financier'!$G$16)/('BP Financier'!$C$16+'BP Financier'!$C$19+'BP Financier'!$D$16+'BP Financier'!$D$19+'BP Financier'!$E$16+'BP Financier'!$E$19+'BP Financier'!$F$16+'BP Financier'!$F$19+'BP Financier'!$G$19+'BP Financier'!$G$16))*V8176","v":{"v":3421672.0459127007,"d":"3,421,672"}},{"v":1963815.672006318,"d":"1,963,816"},{"$f":"'BP Financier'!$G$44*(('BP Financier'!$C$16+'BP Financier'!$D$16+'BP Financier'!$E$16+'BP Financier'!$F$16+'BP Financier'!$G$16)/('BP Financier'!$C$16+'BP Financier'!$C$19+'BP Financier'!$D$16+'BP Financier'!$D$19+'BP Financier'!$E$16+'BP Financier'!$E$19+'BP Financier'!$C$22+'BP Financier'!$D$22+'BP Financier'!$E$22+'BP Financier'!$F$16+'BP Financier'!$F$19+'BP Financier'!$F$22+'BP Financier'!$G$16+'BP Financier'!$G$19+'BP Financier'!$G$22))*$V8176*X8176/(1-$W8176)","v":{"v":249965.28595861018,"d":"249,965"}},{"$f":"'BP Financier'!$G$44*(('BP Financier'!$C$16+'BP Financier'!$D$16+'BP Financier'!$E$16+'BP Financier'!$F$16+'BP Financier'!$G$16)/('BP Financier'!$C$16+'BP Financier'!$C$19+'BP Financier'!$D$16+'BP Financier'!$D$19+'BP Financier'!$E$16+'BP Financier'!$E$19+'BP Financier'!$C$22+'BP Financier'!$D$22+'BP Financier'!$E$22+'BP Financier'!$F$16+'BP Financier'!$F$19+'BP Financier'!$F$22+'BP Financier'!$G$16+'BP Financier'!$G$19+'BP Financier'!$G$22))*$V8176*Y8176/(1-$W8176)","v":{"v":167103.86519884988,"d":"167,104"}},{"$f":"'BP Financier'!$G$44*(('BP Financier'!$C$16+'BP Financier'!$D$16+'BP Financier'!$E$16+'BP Financier'!$F$16+'BP Financier'!$G$16)/('BP Financier'!$C$16+'BP Financier'!$C$19+'BP Financier'!$D$16+'BP Financier'!$D$19+'BP Financier'!$E$16+'BP Financier'!$E$19+'BP Financier'!$C$22+'BP Financier'!$D$22+'BP Financier'!$E$22+'BP Financier'!$F$16+'BP Financier'!$F$19+'BP Financier'!$F$22+'BP Financier'!$G$16+'BP Financier'!$G$19+'BP Financier'!$G$22))*$V8176*Z8176/(1-$W8176)","v":{"v":1307829.424324883,"d":"1,307,829"}},{"$f":"'BP Financier'!$G$44*(('BP Financier'!$C$16+'BP Financier'!$D$16+'BP Financier'!$E$16+'BP Financier'!$F$16+'BP Financier'!$G$16)/('BP Financier'!$C$16+'BP Financier'!$C$19+'BP Financier'!$D$16+'BP Financier'!$D$19+'BP Financier'!$E$16+'BP Financier'!$E$19+'BP Financier'!$C$22+'BP Financier'!$D$22+'BP Financier'!$E$22+'BP Financier'!$F$16+'BP Financier'!$F$19+'BP Financier'!$F$22+'BP Financier'!$G$16+'BP Financier'!$G$19+'BP Financier'!$G$22))*$V8176*AA8176/(1-$W8176)","v":{"v":161579.77048153256,"d":"161,580"}},{"$f":"'BP Financier'!$G$44*(('BP Financier'!$C$16+'BP Financier'!$D$16+'BP Financier'!$E$16+'BP Financier'!$F$16+'BP Financier'!$G$16)/('BP Financier'!$C$16+'BP Financier'!$C$19+'BP Financier'!$D$16+'BP Financier'!$D$19+'BP Financier'!$E$16+'BP Financier'!$E$19+'BP Financier'!$C$22+'BP Financier'!$D$22+'BP Financier'!$E$22+'BP Financier'!$F$16+'BP Financier'!$F$19+'BP Financier'!$F$22+'BP Financier'!$G$16+'BP Financier'!$G$19+'BP Financier'!$G$22))*$V8176*AB8176/(1-$W8176)","v":{"v":77337.32604244292,"d":"77,337"}},null,{"v":0.006,"d":"0.60%"},{"$f":"Actif!$E$28/100","v":{"v":0.28900000000000003,"d":"28.90%"}},{"$f":"Actif!$E$30/100","v":{"v":0.09050000000000001,"d":"9.05%"}},{"$f":"Actif!$E$31/100","v":{"v":0.0605,"d":"6.05%"}},{"$f":"Actif!$E$32/100","v":{"v":0.47350000000000003,"d":"47.35%"}},{"$f":"Actif!$E$33/100","v":{"v":0.0585,"d":"5.85%"}},{"$f":"Actif!$E$29/100","v":{"v":0.027999999999999997,"d":"2.80%"}}]
[null,"#64",30,2030,"H","A_VIE",{"v":0.44999999999999996,"d":"0.45"},{"v":0.38999999999999996,"d":"0.39"},0.6,0.6,85,0,{"$f":"ROUND(Primes!$Q$4*V8177,0)","v":68},{"$f":"'BP Financier'!$G$33*(('BP Financier'!$C$16+'BP Financier'!$D$16+'BP Financier'!$E$16+'BP Financier'!$F$16+'BP Financier'!$G$16)/('BP Financier'!$C$16+'BP Financier'!$C$19+'BP Financier'!$D$16+'BP Financier'!$D$19+'BP Financier'!$E$16+'BP Financier'!$E$19+'BP Financier'!$F$16+'BP Financier'!$F$19+'BP Financier'!$G$19+'BP Financier'!$G$16))*V8177","v":{"v":3421672.0459127007,"d":"3,421,672"}},{"v":1963815.672006318,"d":"1,963,816"},{"$f":"'BP Financier'!$G$44*(('BP Financier'!$C$16+'BP Financier'!$D$16+'BP Financier'!$E$16+'BP Financier'!$F$16+'BP Financier'!$G$16)/('BP Financier'!$C$16+'BP Financier'!$C$19+'BP Financier'!$D$16+'BP Financier'!$D$19+'BP Financier'!$E$16+'BP Financier'!$E$19+'BP Financier'!$C$22+'BP Financier'!$D$22+'BP Financier'!$E$22+'BP Financier'!$F$16+'BP Financier'!$F$19+'BP Financier'!$F$22+'BP Financier'!$G$16+'BP Financier'!$G$19+'BP Financier'!$G$22))*$V8177*X8177/(1-$W8177)","v":{"v":249965.28595861018,"d":"249,965"}},{"$f":"'BP Financier'!$G$44*(('BP Financier'!$C$16+'BP Financier'!$D$16+'BP Financier'!$E$16+'BP Financier'!$F$16+'BP Financier'!$G$16)/('BP Financier'!$C$16+'BP Financier'!$C$19+'BP Financier'!$D$16+'BP Financier'!$D$19+'BP Financier'!$E$16+'BP Financier'!$E$19+'BP Financier'!$C$22+'BP Financier'!$D$22+'BP Financier'!$E$22+'BP Financier'!$F$16+'BP Financier'!$F$19+'BP Financier'!$F$22+'BP Financier'!$G$16+'BP Financier'!$G$19+'BP Financier'!$G$22))*$V8177*Y8177/(1-$W8177)","v":{"v":167103.86519884988,"d":"167,104"}},{"$f":"'BP Financier'!$G$44*(('BP Financier'!$C$16+'BP Financier'!$D$16+'BP Financier'!$E$16+'BP Financier'!$F$16+'BP Financier'!$G$16)/('BP Financier'!$C$16+'BP Financier'!$C$19+'BP Financier'!$D$16+'BP Financier'!$D$19+'BP Financier'!$E$16+'BP Financier'!$E$19+'BP Financier'!$C$22+'BP Financier'!$D$22+'BP Financier'!$E$22+'BP Financier'!$F$16+'BP Financier'!$F$19+'BP Financier'!$F$22+'BP Financier'!$G$16+'BP Financier'!$G$19+'BP Financier'!$G$22))*$V8177*Z8177/(1-$W8177)","v":{"v":1307829.424324883,"d":"1,307,829"}},{"$f":"'BP Financier'!$G$44*(('BP Financier'!$C$16+'BP Financier'!$D$16+'BP Financier'!$E$16+'BP Financier'!$F$16+'BP Financier'!$G$16)/('BP Financier'!$C$16+'BP Financier'!$C$19+'BP Financier'!$D$16+'BP Financier'!$D$19+'BP Financier'!$E$16+'BP Financier'!$E$19+'BP Financier'!$C$22+'BP Financier'!$D$22+'BP Financier'!$E$22+'BP Financier'!$F$16+'BP Financier'!$F$19+'BP Financier'!$F$22+'BP Financier'!$G$16+'BP Financier'!$G$19+'BP Financier'!$G$22))*$V8177*AA8177/(1-$W8177)","v":{"v":161579.77048153256,"d":"161,580"}},{"$f":"'BP Financier'!$G$44*(('BP Financier'!$C$16+'BP Financier'!$D$16+'BP Financier'!$E$16+'BP Financier'!$F$16+'BP Financier'!$G$16)/('BP Financier'!$C$16+'BP Financier'!$C$19+'BP Financier'!$D$16+'BP Financier'!$D$19+'BP Financier'!$E$16+'BP Financier'!$E$19+'BP Financier'!$C$22+'BP Financier'!$D$22+'BP Financier'!$E$22+'BP Financier'!$F$16+'BP Financier'!$F$19+'BP Financier'!$F$22+'BP Financier'!$G$16+'BP Financier'!$G$19+'BP Financier'!$G$22))*$V8177*AB8177/(1-$W8177)","v":{"v":77337.32604244292,"d":"77,337"}},null,{"v":0.006,"d":"0.60%"},{"$f":"Actif!$E$28/100","v":{"v":0.28900000000000003,"d":"28.90%"}},{"$f":"Actif!$E$30/100","v":{"v":0.09050000000000001,"d":"9.05%"}},{"$f":"Actif!$E$31/100","v":{"v":0.0605,"d":"6.05%"}},{"$f":"Actif!$E$32/100","v":{"v":0.47350000000000003,"d":"47.35%"}},{"$f":"Actif!$E$33/100","v":{"v":0.0585,"d":"5.85%"}},{"$f":"Actif!$E$29/100","v":{"v":0.027999999999999997,"d":"2.80%"}}]
[null,"#65",30,2031,"H","A_VIE",{"v":0.44999999999999996,"d":"0.45"},{"v":0.38999999999999996,"d":"0.39"},0.6,0.6,85,0,{"$f":"ROUND(Primes!$Q$4*V8178,0)","v":68},{"$f":"'BP Financier'!$G$33*(('BP Financier'!$C$16+'BP Financier'!$D$16+'BP Financier'!$E$16+'BP Financier'!$F$16+'BP Financier'!$G$16)/('BP Financier'!$C$16+'BP Financier'!$C$19+'BP Financier'!$D$16+'BP Financier'!$D$19+'BP Financier'!$E$16+'BP Financier'!$E$19+'BP Financier'!$F$16+'BP Financier'!$F$19+'BP Financier'!$G$19+'BP Financier'!$G$16))*V8178","v":{"v":3421672.0459127007,"d":"3,421,672"}},{"v":1963815.672006318,"d":"1,963,816"},{"$f":"'BP Financier'!$G$44*(('BP Financier'!$C$16+'BP Financier'!$D$16+'BP Financier'!$E$16+'BP Financier'!$F$16+'BP Financier'!$G$16)/('BP Financier'!$C$16+'BP Financier'!$C$19+'BP Financier'!$D$16+'BP Financier'!$D$19+'BP Financier'!$E$16+'BP Financier'!$E$19+'BP Financier'!$C$22+'BP Financier'!$D$22+'BP Financier'!$E$22+'BP Financier'!$F$16+'BP Financier'!$F$19+'BP Financier'!$F$22+'BP Financier'!$G$16+'BP Financier'!$G$19+'BP Financier'!$G$22))*$V8178*X8178/(1-$W8178)","v":{"v":249965.28595861018,"d":"249,965"}},{"$f":"'BP Financier'!$G$44*(('BP Financier'!$C$16+'BP Financier'!$D$16+'BP Financier'!$E$16+'BP Financier'!$F$16+'BP Financier'!$G$16)/('BP Financier'!$C$16+'BP Financier'!$C$19+'BP Financier'!$D$16+'BP Financier'!$D$19+'BP Financier'!$E$16+'BP Financier'!$E$19+'BP Financier'!$C$22+'BP Financier'!$D$22+'BP Financier'!$E$22+'BP Financier'!$F$16+'BP Financier'!$F$19+'BP Financier'!$F$22+'BP Financier'!$G$16+'BP Financier'!$G$19+'BP Financier'!$G$22))*$V8178*Y8178/(1-$W8178)","v":{"v":167103.86519884988,"d":"167,104"}},{"$f":"'BP Financier'!$G$44*(('BP Financier'!$C$16+'BP Financier'!$D$16+'BP Financier'!$E$16+'BP Financier'!$F$16+'BP Financier'!$G$16)/('BP Financier'!$C$16+'BP Financier'!$C$19+'BP Financier'!$D$16+'BP Financier'!$D$19+'BP Financier'!$E$16+'BP Financier'!$E$19+'BP Financier'!$C$22+'BP Financier'!$D$22+'BP Financier'!$E$22+'BP Financier'!$F$16+'BP Financier'!$F$19+'BP Financier'!$F$22+'BP Financier'!$G$16+'BP Financier'!$G$19+'BP Financier'!$G$22))*$V8178*Z8178/(1-$W8178)","v":{"v":1307829.424324883,"d":"1,307,829"}},{"$f":"'BP Financier'!$G$44*(('BP Financier'!$C$16+'BP Financier'!$D$16+'BP Financier'!$E$16+'BP Financier'!$F$16+'BP Financier'!$G$16)/('BP Financier'!$C$16+'BP Financier'!$C$19+'BP Financier'!$D$16+'BP Financier'!$D$19+'BP Financier'!$E$16+'BP Financier'!$E$19+'BP Financier'!$C$22+'BP Financier'!$D$22+'BP Financier'!$E$22+'BP Financier'!$F$16+'BP Financier'!$F$19+'BP Financier'!$F$22+'BP Financier'!$G$16+'BP Financier'!$G$19+'BP Financier'!$G$22))*$V8178*AA8178/(1-$W8178)","v":{"v":161579.77048153256,"d":"161,580"}},{"$f":"'BP Financier'!$G$44*(('BP Financier'!$C$16+'BP Financier'!$D$16+'BP Financier'!$E$16+'BP Financier'!$F$16+'BP Financier'!$G$16)/('BP Financier'!$C$16+'BP Financier'!$C$19+'BP Financier'!$D$16+'BP Financier'!$D$19+'BP Financier'!$E$16+'BP Financier'!$E$19+'BP Financier'!$C$22+'BP Financier'!$D$22+'BP Financier'!$E$22+'BP Financier'!$F$16+'BP Financier'!$F$19+'BP Financier'!$F$22+'BP Financier'!$G$16+'BP Financier'!$G$19+'BP Financier'!$G$22))*$V8178*AB8178/(1-$W8178)","v":{"v":77337.32604244292,"d":"77,337"}},null,{"v":0.006,"d":"0.60%"},{"$f":"Actif!$E$28/100","v":{"v":0.28900000000000003,"d":"28.90%"}},{"$f":"Actif!$E$30/100","v":{"v":0.09050000000000001,"d":"9.05%"}},{"$f":"Actif!$E$31/100","v":{"v":0.0605,"d":"6.05%"}},{"$f":"Actif!$E$32/100","v":{"v":0.47350000000000003,"d":"47.35%"}},{"$f":"Actif!$E$33/100","v":{"v":0.0585,"d":"5.85%"}},{"$f":"Actif!$E$29/100","v":{"v":0.027999999999999997,"d":"2.80%"}}]
[null,"#66",31,2026,"H","A_VIE",{"v":0.44999999999999996,"d":"0.45"},{"v":0.38999999999999996,"d":"0.39"},0.6,0.6,85,0,{"$f":"ROUND(Primes!$Q$4*V8179,0)","v":68},{"$f":"'BP Financier'!$G$33*(('BP Financier'!$C$16+'BP Financier'!$D$16+'BP Financier'!$E$16+'BP Financier'!$F$16+'BP Financier'!$G$16)/('BP Financier'!$C$16+'BP Financier'!$C$19+'BP Financier'!$D$16+'BP Financier'!$D$19+'BP Financier'!$E$16+'BP Financier'!$E$19+'BP Financier'!$F$16+'BP Financier'!$F$19+'BP Financier'!$G$19+'BP Financier'!$G$16))*V8179","v":{"v":3421672.0459127007,"d":"3,421,672"}},{"v":1963815.672006318,"d":"1,963,816"},{"$f":"'BP Financier'!$G$44*(('BP Financier'!$C$16+'BP Financier'!$D$16+'BP Financier'!$E$16+'BP Financier'!$F$16+'BP Financier'!$G$16)/('BP Financier'!$C$16+'BP Financier'!$C$19+'BP Financier'!$D$16+'BP Financier'!$D$19+'BP Financier'!$E$16+'BP Financier'!$E$19+'BP Financier'!$C$22+'BP Financier'!$D$22+'BP Financier'!$E$22+'BP Financier'!$F$16+'BP Financier'!$F$19+'BP Financier'!$F$22+'BP Financier'!$G$16+'BP Financier'!$G$19+'BP Financier'!$G$22))*$V8179*X8179/(1-$W8179)","v":{"v":249965.28595861018,"d":"249,965"}},{"$f":"'BP Financier'!$G$44*(('BP Financier'!$C$16+'BP Financier'!$D$16+'BP Financier'!$E$16+'BP Financier'!$F$16+'BP Financier'!$G$16)/('BP Financier'!$C$16+'BP Financier'!$C$19+'BP Financier'!$D$16+'BP Financier'!$D$19+'BP Financier'!$E$16+'BP Financier'!$E$19+'BP Financier'!$C$22+'BP Financier'!$D$22+'BP Financier'!$E$22+'BP Financier'!$F$16+'BP Financier'!$F$19+'BP Financier'!$F$22+'BP Financier'!$G$16+'BP Financier'!$G$19+'BP Financier'!$G$22))*$V8179*Y8179/(1-$W8179)","v":{"v":167103.86519884988,"d":"167,104"}},{"$f":"'BP Financier'!$G$44*(('BP Financier'!$C$16+'BP Financier'!$D$16+'BP Financier'!$E$16+'BP Financier'!$F$16+'BP Financier'!$G$16)/('BP Financier'!$C$16+'BP Financier'!$C$19+'BP Financier'!$D$16+'BP Financier'!$D$19+'BP Financier'!$E$16+'BP Financier'!$E$19+'BP Financier'!$C$22+'BP Financier'!$D$22+'BP Financier'!$E$22+'BP Financier'!$F$16+'BP Financier'!$F$19+'BP Financier'!$F$22+'BP Financier'!$G$16+'BP Financier'!$G$19+'BP Financier'!$G$22))*$V8179*Z8179/(1-$W8179)","v":{"v":1307829.424324883,"d":"1,307,829"}},{"$f":"'BP Financier'!$G$44*(('BP Financier'!$C$16+'BP Financier'!$D$16+'BP Financier'!$E$16+'BP Financier'!$F$16+'BP Financier'!$G$16)/('BP Financier'!$C$16+'BP Financier'!$C$19+'BP Financier'!$D$16+'BP Financier'!$D$19+'BP Financier'!$E$16+'BP Financier'!$E$19+'BP Financier'!$C$22+'BP Financier'!$D$22+'BP Financier'!$E$22+'BP Financier'!$F$16+'BP Financier'!$F$19+'BP Financier'!$F$22+'BP Financier'!$G$16+'BP Financier'!$G$19+'BP Financier'!$G$22))*$V8179*AA8179/(1-$W8179)","v":{"v":161579.77048153256,"d":"161,580"}},{"$f":"'BP Financier'!$G$44*(('BP Financier'!$C$16+'BP Financier'!$D$16+'BP Financier'!$E$16+'BP Financier'!$F$16+'BP Financier'!$G$16)/('BP Financier'!$C$16+'BP Financier'!$C$19+'BP Financier'!$D$16+'BP Financier'!$D$19+'BP Financier'!$E$16+'BP Financier'!$E$19+'BP Financier'!$C$22+'BP Financier'!$D$22+'BP Financier'!$E$22+'BP Financier'!$F$16+'BP Financier'!$F$19+'BP Financier'!$F$22+'BP Financier'!$G$16+'BP Financier'!$G$19+'BP Financier'!$G$22))*$V8179*AB8179/(1-$W8179)","v":{"v":77337.32604244292,"d":"77,337"}},null,{"v":0.006,"d":"0.60%"},{"$f":"Actif!$E$28/100","v":{"v":0.28900000000000003,"d":"28.90%"}},{"$f":"Actif!$E$30/100","v":{"v":0.09050000000000001,"d":"9.05%"}},{"$f":"Actif!$E$31/100","v":{"v":0.0605,"d":"6.05%"}},{"$f":"Actif!$E$32/100","v":{"v":0.47350000000000003,"d":"47.35%"}},{"$f":"Actif!$E$33/100","v":{"v":0.0585,"d":"5.85%"}},{"$f":"Actif!$E$29/100","v":{"v":0.027999999999999997,"d":"2.80%"}}]
[null,"#67",31,2028,"H","A_VIE",{"v":0.44999999999999996,"d":"0.45"},{"v":0.38999999999999996,"d":"0.39"},0.6,0.6,85,0,{"$f":"ROUND(Primes!$Q$4*V8180,0)","v":68},{"$f":"'BP Financier'!$G$33*(('BP Financier'!$C$16+'BP Financier'!$D$16+'BP Financier'!$E$16+'BP Financier'!$F$16+'BP Financier'!$G$16)/('BP Financier'!$C$16+'BP Financier'!$C$19+'BP Financier'!$D$16+'BP Financier'!$D$19+'BP Financier'!$E$16+'BP Financier'!$E$19+'BP Financier'!$F$16+'BP Financier'!$F$19+'BP Financier'!$G$19+'BP Financier'!$G$16))*V8180","v":{"v":3421672.0459127007,"d":"3,421,672"}},{"v":1963815.672006318,"d":"1,963,816"},{"$f":"'BP Financier'!$G$44*(('BP Financier'!$C$16+'BP Financier'!$D$16+'BP Financier'!$E$16+'BP Financier'!$F$16+'BP Financier'!$G$16)/('BP Financier'!$C$16+'BP Financier'!$C$19+'BP Financier'!$D$16+'BP Financier'!$D$19+'BP Financier'!$E$16+'BP Financier'!$E$19+'BP Financier'!$C$22+'BP Financier'!$D$22+'BP Financier'!$E$22+'BP Financier'!$F$16+'BP Financier'!$F$19+'BP Financier'!$F$22+'BP Financier'!$G$16+'BP Financier'!$G$19+'BP Financier'!$G$22))*$V8180*X8180/(1-$W8180)","v":{"v":249965.28595861018,"d":"249,965"}},{"$f":"'BP Financier'!$G$44*(('BP Financier'!$C$16+'BP Financier'!$D$16+'BP Financier'!$E$16+'BP Financier'!$F$16+'BP Financier'!$G$16)/('BP Financier'!$C$16+'BP Financier'!$C$19+'BP Financier'!$D$16+'BP Financier'!$D$19+'BP Financier'!$E$16+'BP Financier'!$E$19+'BP Financier'!$C$22+'BP Financier'!$D$22+'BP Financier'!$E$22+'BP Financier'!$F$16+'BP Financier'!$F$19+'BP Financier'!$F$22+'BP Financier'!$G$16+'BP Financier'!$G$19+'BP Financier'!$G$22))*$V8180*Y8180/(1-$W8180)","v":{"v":167103.86519884988,"d":"167,104"}},{"$f":"'BP Financier'!$G$44*(('BP Financier'!$C$16+'BP Financier'!$D$16+'BP Financier'!$E$16+'BP Financier'!$F$16+'BP Financier'!$G$16)/('BP Financier'!$C$16+'BP Financier'!$C$19+'BP Financier'!$D$16+'BP Financier'!$D$19+'BP Financier'!$E$16+'BP Financier'!$E$19+'BP Financier'!$C$22+'BP Financier'!$D$22+'BP Financier'!$E$22+'BP Financier'!$F$16+'BP Financier'!$F$19+'BP Financier'!$F$22+'BP Financier'!$G$16+'BP Financier'!$G$19+'BP Financier'!$G$22))*$V8180*Z8180/(1-$W8180)","v":{"v":1307829.424324883,"d":"1,307,829"}},{"$f":"'BP Financier'!$G$44*(('BP Financier'!$C$16+'BP Financier'!$D$16+'BP Financier'!$E$16+'BP Financier'!$F$16+'BP Financier'!$G$16)/('BP Financier'!$C$16+'BP Financier'!$C$19+'BP Financier'!$D$16+'BP Financier'!$D$19+'BP Financier'!$E$16+'BP Financier'!$E$19+'BP Financier'!$C$22+'BP Financier'!$D$22+'BP Financier'!$E$22+'BP Financier'!$F$16+'BP Financier'!$F$19+'BP Financier'!$F$22+'BP Financier'!$G$16+'BP Financier'!$G$19+'BP Financier'!$G$22))*$V8180*AA8180/(1-$W8180)","v":{"v":161579.77048153256,"d":"161,580"}},{"$f":"'BP Financier'!$G$44*(('BP Financier'!$C$16+'BP Financier'!$D$16+'BP Financier'!$E$16+'BP Financier'!$F$16+'BP Financier'!$G$16)/('BP Financier'!$C$16+'BP Financier'!$C$19+'BP Financier'!$D$16+'BP Financier'!$D$19+'BP Financier'!$E$16+'BP Financier'!$E$19+'BP Financier'!$C$22+'BP Financier'!$D$22+'BP Financier'!$E$22+'BP Financier'!$F$16+'BP Financier'!$F$19+'BP Financier'!$F$22+'BP Financier'!$G$16+'BP Financier'!$G$19+'BP Financier'!$G$22))*$V8180*AB8180/(1-$W8180)","v":{"v":77337.32604244292,"d":"77,337"}},null,{"v":0.006,"d":"0.60%"},{"$f":"Actif!$E$28/100","v":{"v":0.28900000000000003,"d":"28.90%"}},{"$f":"Actif!$E$30/100","v":{"v":0.09050000000000001,"d":"9.05%"}},{"$f":"Actif!$E$31/100","v":{"v":0.0605,"d":"6.05%"}},{"$f":"Actif!$E$32/100","v":{"v":0.47350000000000003,"d":"47.35%"}},{"$f":"Actif!$E$33/100","v":{"v":0.0585,"d":"5.85%"}},{"$f":"Actif!$E$29/100","v":{"v":0.027999999999999997,"d":"2.80%"}}]
[null,"#68",31,2029,"H","A_VIE",{"v":0.44999999999999996,"d":"0.45"},{"v":0.38999999999999996,"d":"0.39"},0.6,0.6,85,0,{"$f":"ROUND(Primes!$Q$4*V8181,0)","v":68},{"$f":"'BP Financier'!$G$33*(('BP Financier'!$C$16+'BP Financier'!$D$16+'BP Financier'!$E$16+'BP Financier'!$F$16+'BP Financier'!$G$16)/('BP Financier'!$C$16+'BP Financier'!$C$19+'BP Financier'!$D$16+'BP Financier'!$D$19+'BP Financier'!$E$16+'BP Financier'!$E$19+'BP Financier'!$F$16+'BP Financier'!$F$19+'BP Financier'!$G$19+'BP Financier'!$G$16))*V8181","v":{"v":3421672.0459127007,"d":"3,421,672"}},{"v":1963815.672006318,"d":"1,963,816"},{"$f":"'BP Financier'!$G$44*(('BP Financier'!$C$16+'BP Financier'!$D$16+'BP Financier'!$E$16+'BP Financier'!$F$16+'BP Financier'!$G$16)/('BP Financier'!$C$16+'BP Financier'!$C$19+'BP Financier'!$D$16+'BP Financier'!$D$19+'BP Financier'!$E$16+'BP Financier'!$E$19+'BP Financier'!$C$22+'BP Financier'!$D$22+'BP Financier'!$E$22+'BP Financier'!$F$16+'BP Financier'!$F$19+'BP Financier'!$F$22+'BP Financier'!$G$16+'BP Financier'!$G$19+'BP Financier'!$G$22))*$V8181*X8181/(1-$W8181)","v":{"v":249965.28595861018,"d":"249,965"}},{"$f":"'BP Financier'!$G$44*(('BP Financier'!$C$16+'BP Financier'!$D$16+'BP Financier'!$E$16+'BP Financier'!$F$16+'BP Financier'!$G$16)/('BP Financier'!$C$16+'BP Financier'!$C$19+'BP Financier'!$D$16+'BP Financier'!$D$19+'BP Financier'!$E$16+'BP Financier'!$E$19+'BP Financier'!$C$22+'BP Financier'!$D$22+'BP Financier'!$E$22+'BP Financier'!$F$16+'BP Financier'!$F$19+'BP Financier'!$F$22+'BP Financier'!$G$16+'BP Financier'!$G$19+'BP Financier'!$G$22))*$V8181*Y8181/(1-$W8181)","v":{"v":167103.86519884988,"d":"167,104"}},{"$f":"'BP Financier'!$G$44*(('BP Financier'!$C$16+'BP Financier'!$D$16+'BP Financier'!$E$16+'BP Financier'!$F$16+'BP Financier'!$G$16)/('BP Financier'!$C$16+'BP Financier'!$C$19+'BP Financier'!$D$16+'BP Financier'!$D$19+'BP Financier'!$E$16+'BP Financier'!$E$19+'BP Financier'!$C$22+'BP Financier'!$D$22+'BP Financier'!$E$22+'BP Financier'!$F$16+'BP Financier'!$F$19+'BP Financier'!$F$22+'BP Financier'!$G$16+'BP Financier'!$G$19+'BP Financier'!$G$22))*$V8181*Z8181/(1-$W8181)","v":{"v":1307829.424324883,"d":"1,307,829"}},{"$f":"'BP Financier'!$G$44*(('BP Financier'!$C$16+'BP Financier'!$D$16+'BP Financier'!$E$16+'BP Financier'!$F$16+'BP Financier'!$G$16)/('BP Financier'!$C$16+'BP Financier'!$C$19+'BP Financier'!$D$16+'BP Financier'!$D$19+'BP Financier'!$E$16+'BP Financier'!$E$19+'BP Financier'!$C$22+'BP Financier'!$D$22+'BP Financier'!$E$22+'BP Financier'!$F$16+'BP Financier'!$F$19+'BP Financier'!$F$22+'BP Financier'!$G$16+'BP Financier'!$G$19+'BP Financier'!$G$22))*$V8181*AA8181/(1-$W8181)","v":{"v":161579.77048153256,"d":"161,580"}},{"$f":"'BP Financier'!$G$44*(('BP Financier'!$C$16+'BP Financier'!$D$16+'BP Financier'!$E$16+'BP Financier'!$F$16+'BP Financier'!$G$16)/('BP Financier'!$C$16+'BP Financier'!$C$19+'BP Financier'!$D$16+'BP Financier'!$D$19+'BP Financier'!$E$16+'BP Financier'!$E$19+'BP Financier'!$C$22+'BP Financier'!$D$22+'BP Financier'!$E$22+'BP Financier'!$F$16+'BP Financier'!$F$19+'BP Financier'!$F$22+'BP Financier'!$G$16+'BP Financier'!$G$19+'BP Financier'!$G$22))*$V8181*AB8181/(1-$W8181)","v":{"v":77337.32604244292,"d":"77,337"}},null,{"v":0.006,"d":"0.60%"},{"$f":"Actif!$E$28/100","v":{"v":0.28900000000000003,"d":"28.90%"}},{"$f":"Actif!$E$30/100","v":{"v":0.09050000000000001,"d":"9.05%"}},{"$f":"Actif!$E$31/100","v":{"v":0.0605,"d":"6.05%"}},{"$f":"Actif!$E$32/100","v":{"v":0.47350000000000003,"d":"47.35%"}},{"$f":"Actif!$E$33/100","v":{"v":0.0585,"d":"5.85%"}},{"$f":"Actif!$E$29/100","v":{"v":0.027999999999999997,"d":"2.80%"}}]
[null,"#69",31,2030,"H","A_VIE",{"v":0.44999999999999996,"d":"0.45"},{"v":0.38999999999999996,"d":"0.39"},0.6,0.6,85,0,{"$f":"ROUND(Primes!$Q$4*V8182,0)","v":68},{"$f":"'BP Financier'!$G$33*(('BP Financier'!$C$16+'BP Financier'!$D$16+'BP Financier'!$E$16+'BP Financier'!$F$16+'BP Financier'!$G$16)/('BP Financier'!$C$16+'BP Financier'!$C$19+'BP Financier'!$D$16+'BP Financier'!$D$19+'BP Financier'!$E$16+'BP Financier'!$E$19+'BP Financier'!$F$16+'BP Financier'!$F$19+'BP Financier'!$G$19+'BP Financier'!$G$16))*V8182","v":{"v":3421672.0459127007,"d":"3,421,672"}},{"v":1963815.672006318,"d":"1,963,816"},{"$f":"'BP Financier'!$G$44*(('BP Financier'!$C$16+'BP Financier'!$D$16+'BP Financier'!$E$16+'BP Financier'!$F$16+'BP Financier'!$G$16)/('BP Financier'!$C$16+'BP Financier'!$C$19+'BP Financier'!$D$16+'BP Financier'!$D$19+'BP Financier'!$E$16+'BP Financier'!$E$19+'BP Financier'!$C$22+'BP Financier'!$D$22+'BP Financier'!$E$22+'BP Financier'!$F$16+'BP Financier'!$F$19+'BP Financier'!$F$22+'BP Financier'!$G$16+'BP Financier'!$G$19+'BP Financier'!$G$22))*$V8182*X8182/(1-$W8182)","v":{"v":249965.28595861018,"d":"249,965"}},{"$f":"'BP Financier'!$G$44*(('BP Financier'!$C$16+'BP Financier'!$D$16+'BP Financier'!$E$16+'BP Financier'!$F$16+'BP Financier'!$G$16)/('BP Financier'!$C$16+'BP Financier'!$C$19+'BP Financier'!$D$16+'BP Financier'!$D$19+'BP Financier'!$E$16+'BP Financier'!$E$19+'BP Financier'!$C$22+'BP Financier'!$D$22+'BP Financier'!$E$22+'BP Financier'!$F$16+'BP Financier'!$F$19+'BP Financier'!$F$22+'BP Financier'!$G$16+'BP Financier'!$G$19+'BP Financier'!$G$22))*$V8182*Y8182/(1-$W8182)","v":{"v":167103.86519884988,"d":"167,104"}},{"$f":"'BP Financier'!$G$44*(('BP Financier'!$C$16+'BP Financier'!$D$16+'BP Financier'!$E$16+'BP Financier'!$F$16+'BP Financier'!$G$16)/('BP Financier'!$C$16+'BP Financier'!$C$19+'BP Financier'!$D$16+'BP Financier'!$D$19+'BP Financier'!$E$16+'BP Financier'!$E$19+'BP Financier'!$C$22+'BP Financier'!$D$22+'BP Financier'!$E$22+'BP Financier'!$F$16+'BP Financier'!$F$19+'BP Financier'!$F$22+'BP Financier'!$G$16+'BP Financier'!$G$19+'BP Financier'!$G$22))*$V8182*Z8182/(1-$W8182)","v":{"v":1307829.424324883,"d":"1,307,829"}},{"$f":"'BP Financier'!$G$44*(('BP Financier'!$C$16+'BP Financier'!$D$16+'BP Financier'!$E$16+'BP Financier'!$F$16+'BP Financier'!$G$16)/('BP Financier'!$C$16+'BP Financier'!$C$19+'BP Financier'!$D$16+'BP Financier'!$D$19+'BP Financier'!$E$16+'BP Financier'!$E$19+'BP Financier'!$C$22+'BP Financier'!$D$22+'BP Financier'!$E$22+'BP Financier'!$F$16+'BP Financier'!$F$19+'BP Financier'!$F$22+'BP Financier'!$G$16+'BP Financier'!$G$19+'BP Financier'!$G$22))*$V8182*AA8182/(1-$W8182)","v":{"v":161579.77048153256,"d":"161,580"}},{"$f":"'BP Financier'!$G$44*(('BP Financier'!$C$16+'BP Financier'!$D$16+'BP Financier'!$E$16+'BP Financier'!$F$16+'BP Financier'!$G$16)/('BP Financier'!$C$16+'BP Financier'!$C$19+'BP Financier'!$D$16+'BP Financier'!$D$19+'BP Financier'!$E$16+'BP Financier'!$E$19+'BP Financier'!$C$22+'BP Financier'!$D$22+'BP Financier'!$E$22+'BP Financier'!$F$16+'BP Financier'!$F$19+'BP Financier'!$F$22+'BP Financier'!$G$16+'BP Financier'!$G$19+'BP Financier'!$G$22))*$V8182*AB8182/(1-$W8182)","v":{"v":77337.32604244292,"d":"77,337"}},null,{"v":0.006,"d":"0.60%"},{"$f":"Actif!$E$28/100","v":{"v":0.28900000000000003,"d":"28.90%"}},{"$f":"Actif!$E$30/100","v":{"v":0.09050000000000001,"d":"9.05%"}},{"$f":"Actif!$E$31/100","v":{"v":0.0605,"d":"6.05%"}},{"$f":"Actif!$E$32/100","v":{"v":0.47350000000000003,"d":"47.35%"}},{"$f":"Actif!$E$33/100","v":{"v":0.0585,"d":"5.85%"}},{"$f":"Actif!$E$29/100","v":{"v":0.027999999999999997,"d":"2.80%"}}]
[null,"#70",31,2031,"H","A_VIE",{"v":0.44999999999999996,"d":"0.45"},{"v":0.38999999999999996,"d":"0.39"},0.6,0.6,85,0,{"$f":"ROUND(Primes!$Q$4*V8183,0)","v":68},{"$f":"'BP Financier'!$G$33*(('BP Financier'!$C$16+'BP Financier'!$D$16+'BP Financier'!$E$16+'BP Financier'!$F$16+'BP Financier'!$G$16)/('BP Financier'!$C$16+'BP Financier'!$C$19+'BP Financier'!$D$16+'BP Financier'!$D$19+'BP Financier'!$E$16+'BP Financier'!$E$19+'BP Financier'!$F$16+'BP Financier'!$F$19+'BP Financier'!$G$19+'BP Financier'!$G$16))*V8183","v":{"v":3421672.0459127007,"d":"3,421,672"}},{"v":1963815.672006318,"d":"1,963,816"},{"$f":"'BP Financier'!$G$44*(('BP Financier'!$C$16+'BP Financier'!$D$16+'BP Financier'!$E$16+'BP Financier'!$F$16+'BP Financier'!$G$16)/('BP Financier'!$C$16+'BP Financier'!$C$19+'BP Financier'!$D$16+'BP Financier'!$D$19+'BP Financier'!$E$16+'BP Financier'!$E$19+'BP Financier'!$C$22+'BP Financier'!$D$22+'BP Financier'!$E$22+'BP Financier'!$F$16+'BP Financier'!$F$19+'BP Financier'!$F$22+'BP Financier'!$G$16+'BP Financier'!$G$19+'BP Financier'!$G$22))*$V8183*X8183/(1-$W8183)","v":{"v":249965.28595861018,"d":"249,965"}},{"$f":"'BP Financier'!$G$44*(('BP Financier'!$C$16+'BP Financier'!$D$16+'BP Financier'!$E$16+'BP Financier'!$F$16+'BP Financier'!$G$16)/('BP Financier'!$C$16+'BP Financier'!$C$19+'BP Financier'!$D$16+'BP Financier'!$D$19+'BP Financier'!$E$16+'BP Financier'!$E$19+'BP Financier'!$C$22+'BP Financier'!$D$22+'BP Financier'!$E$22+'BP Financier'!$F$16+'BP Financier'!$F$19+'BP Financier'!$F$22+'BP Financier'!$G$16+'BP Financier'!$G$19+'BP Financier'!$G$22))*$V8183*Y8183/(1-$W8183)","v":{"v":167103.86519884988,"d":"167,104"}},{"$f":"'BP Financier'!$G$44*(('BP Financier'!$C$16+'BP Financier'!$D$16+'BP Financier'!$E$16+'BP Financier'!$F$16+'BP Financier'!$G$16)/('BP Financier'!$C$16+'BP Financier'!$C$19+'BP Financier'!$D$16+'BP Financier'!$D$19+'BP Financier'!$E$16+'BP Financier'!$E$19+'BP Financier'!$C$22+'BP Financier'!$D$22+'BP Financier'!$E$22+'BP Financier'!$F$16+'BP Financier'!$F$19+'BP Financier'!$F$22+'BP Financier'!$G$16+'BP Financier'!$G$19+'BP Financier'!$G$22))*$V8183*Z8183/(1-$W8183)","v":{"v":1307829.424324883,"d":"1,307,829"}},{"$f":"'BP Financier'!$G$44*(('BP Financier'!$C$16+'BP Financier'!$D$16+'BP Financier'!$E$16+'BP Financier'!$F$16+'BP Financier'!$G$16)/('BP Financier'!$C$16+'BP Financier'!$C$19+'BP Financier'!$D$16+'BP Financier'!$D$19+'BP Financier'!$E$16+'BP Financier'!$E$19+'BP Financier'!$C$22+'BP Financier'!$D$22+'BP Financier'!$E$22+'BP Financier'!$F$16+'BP Financier'!$F$19+'BP Financier'!$F$22+'BP Financier'!$G$16+'BP Financier'!$G$19+'BP Financier'!$G$22))*$V8183*AA8183/(1-$W8183)","v":{"v":161579.77048153256,"d":"161,580"}},{"$f":"'BP Financier'!$G$44*(('BP Financier'!$C$16+'BP Financier'!$D$16+'BP Financier'!$E$16+'BP Financier'!$F$16+'BP Financier'!$G$16)/('BP Financier'!$C$16+'BP Financier'!$C$19+'BP Financier'!$D$16+'BP Financier'!$D$19+'BP Financier'!$E$16+'BP Financier'!$E$19+'BP Financier'!$C$22+'BP Financier'!$D$22+'BP Financier'!$E$22+'BP Financier'!$F$16+'BP Financier'!$F$19+'BP Financier'!$F$22+'BP Financier'!$G$16+'BP Financier'!$G$19+'BP Financier'!$G$22))*$V8183*AB8183/(1-$W8183)","v":{"v":77337.32604244292,"d":"77,337"}},null,{"v":0.006,"d":"0.60%"},{"$f":"Actif!$E$28/100","v":{"v":0.28900000000000003,"d":"28.90%"}},{"$f":"Actif!$E$30/100","v":{"v":0.09050000000000001,"d":"9.05%"}},{"$f":"Actif!$E$31/100","v":{"v":0.0605,"d":"6.05%"}},{"$f":"Actif!$E$32/100","v":{"v":0.47350000000000003,"d":"47.35%"}},{"$f":"Actif!$E$33/100","v":{"v":0.0585,"d":"5.85%"}},{"$f":"Actif!$E$29/100","v":{"v":0.027999999999999997,"d":"2.80%"}}]
[null,"#71",32,2026,"F","A_VIE",{"v":0.44999999999999996,"d":"0.45"},{"v":0.38999999999999996,"d":"0.39"},0.6,0.6,85,0,{"$f":"ROUND(Primes!$Q$4*V8184,0)","v":68},{"$f":"'BP Financier'!$G$33*(('BP Financier'!$C$16+'BP Financier'!$D$16+'BP Financier'!$E$16+'BP Financier'!$F$16+'BP Financier'!$G$16)/('BP Financier'!$C$16+'BP Financier'!$C$19+'BP Financier'!$D$16+'BP Financier'!$D$19+'BP Financier'!$E$16+'BP Financier'!$E$19+'BP Financier'!$F$16+'BP Financier'!$F$19+'BP Financier'!$G$19+'BP Financier'!$G$16))*V8184","v":{"v":3421672.0459127007,"d":"3,421,672"}},{"v":1963815.672006318,"d":"1,963,816"},{"$f":"'BP Financier'!$G$44*(('BP Financier'!$C$16+'BP Financier'!$D$16+'BP Financier'!$E$16+'BP Financier'!$F$16+'BP Financier'!$G$16)/('BP Financier'!$C$16+'BP Financier'!$C$19+'BP Financier'!$D$16+'BP Financier'!$D$19+'BP Financier'!$E$16+'BP Financier'!$E$19+'BP Financier'!$C$22+'BP Financier'!$D$22+'BP Financier'!$E$22+'BP Financier'!$F$16+'BP Financier'!$F$19+'BP Financier'!$F$22+'BP Financier'!$G$16+'BP Financier'!$G$19+'BP Financier'!$G$22))*$V8184*X8184/(1-$W8184)","v":{"v":249965.28595861018,"d":"249,965"}},{"$f":"'BP Financier'!$G$44*(('BP Financier'!$C$16+'BP Financier'!$D$16+'BP Financier'!$E$16+'BP Financier'!$F$16+'BP Financier'!$G$16)/('BP Financier'!$C$16+'BP Financier'!$C$19+'BP Financier'!$D$16+'BP Financier'!$D$19+'BP Financier'!$E$16+'BP Financier'!$E$19+'BP Financier'!$C$22+'BP Financier'!$D$22+'BP Financier'!$E$22+'BP Financier'!$F$16+'BP Financier'!$F$19+'BP Financier'!$F$22+'BP Financier'!$G$16+'BP Financier'!$G$19+'BP Financier'!$G$22))*$V8184*Y8184/(1-$W8184)","v":{"v":167103.86519884988,"d":"167,104"}},{"$f":"'BP Financier'!$G$44*(('BP Financier'!$C$16+'BP Financier'!$D$16+'BP Financier'!$E$16+'BP Financier'!$F$16+'BP Financier'!$G$16)/('BP Financier'!$C$16+'BP Financier'!$C$19+'BP Financier'!$D$16+'BP Financier'!$D$19+'BP Financier'!$E$16+'BP Financier'!$E$19+'BP Financier'!$C$22+'BP Financier'!$D$22+'BP Financier'!$E$22+'BP Financier'!$F$16+'BP Financier'!$F$19+'BP Financier'!$F$22+'BP Financier'!$G$16+'BP Financier'!$G$19+'BP Financier'!$G$22))*$V8184*Z8184/(1-$W8184)","v":{"v":1307829.424324883,"d":"1,307,829"}},{"$f":"'BP Financier'!$G$44*(('BP Financier'!$C$16+'BP Financier'!$D$16+'BP Financier'!$E$16+'BP Financier'!$F$16+'BP Financier'!$G$16)/('BP Financier'!$C$16+'BP Financier'!$C$19+'BP Financier'!$D$16+'BP Financier'!$D$19+'BP Financier'!$E$16+'BP Financier'!$E$19+'BP Financier'!$C$22+'BP Financier'!$D$22+'BP Financier'!$E$22+'BP Financier'!$F$16+'BP Financier'!$F$19+'BP Financier'!$F$22+'BP Financier'!$G$16+'BP Financier'!$G$19+'BP Financier'!$G$22))*$V8184*AA8184/(1-$W8184)","v":{"v":161579.77048153256,"d":"161,580"}},{"$f":"'BP Financier'!$G$44*(('BP Financier'!$C$16+'BP Financier'!$D$16+'BP Financier'!$E$16+'BP Financier'!$F$16+'BP Financier'!$G$16)/('BP Financier'!$C$16+'BP Financier'!$C$19+'BP Financier'!$D$16+'BP Financier'!$D$19+'BP Financier'!$E$16+'BP Financier'!$E$19+'BP Financier'!$C$22+'BP Financier'!$D$22+'BP Financier'!$E$22+'BP Financier'!$F$16+'BP Financier'!$F$19+'BP Financier'!$F$22+'BP Financier'!$G$16+'BP Financier'!$G$19+'BP Financier'!$G$22))*$V8184*AB8184/(1-$W8184)","v":{"v":77337.32604244292,"d":"77,337"}},null,{"v":0.006,"d":"0.60%"},{"$f":"Actif!$E$28/100","v":{"v":0.28900000000000003,"d":"28.90%"}},{"$f":"Actif!$E$30/100","v":{"v":0.09050000000000001,"d":"9.05%"}},{"$f":"Actif!$E$31/100","v":{"v":0.0605,"d":"6.05%"}},{"$f":"Actif!$E$32/100","v":{"v":0.47350000000000003,"d":"47.35%"}},{"$f":"Actif!$E$33/100","v":{"v":0.0585,"d":"5.85%"}},{"$f":"Actif!$E$29/100","v":{"v":0.027999999999999997,"d":"2.80%"}}]
[null,"#72",32,2028,"F","A_VIE",{"v":0.44999999999999996,"d":"0.45"},{"v":0.38999999999999996,"d":"0.39"},0.6,0.6,85,0,{"$f":"ROUND(Primes!$Q$4*V8185,0)","v":68},{"$f":"'BP Financier'!$G$33*(('BP Financier'!$C$16+'BP Financier'!$D$16+'BP Financier'!$E$16+'BP Financier'!$F$16+'BP Financier'!$G$16)/('BP Financier'!$C$16+'BP Financier'!$C$19+'BP Financier'!$D$16+'BP Financier'!$D$19+'BP Financier'!$E$16+'BP Financier'!$E$19+'BP Financier'!$F$16+'BP Financier'!$F$19+'BP Financier'!$G$19+'BP Financier'!$G$16))*V8185","v":{"v":3421672.0459127007,"d":"3,421,672"}},{"v":1963815.672006318,"d":"1,963,816"},{"$f":"'BP Financier'!$G$44*(('BP Financier'!$C$16+'BP Financier'!$D$16+'BP Financier'!$E$16+'BP Financier'!$F$16+'BP Financier'!$G$16)/('BP Financier'!$C$16+'BP Financier'!$C$19+'BP Financier'!$D$16+'BP Financier'!$D$19+'BP Financier'!$E$16+'BP Financier'!$E$19+'BP Financier'!$C$22+'BP Financier'!$D$22+'BP Financier'!$E$22+'BP Financier'!$F$16+'BP Financier'!$F$19+'BP Financier'!$F$22+'BP Financier'!$G$16+'BP Financier'!$G$19+'BP Financier'!$G$22))*$V8185*X8185/(1-$W8185)","v":{"v":249965.28595861018,"d":"249,965"}},{"$f":"'BP Financier'!$G$44*(('BP Financier'!$C$16+'BP Financier'!$D$16+'BP Financier'!$E$16+'BP Financier'!$F$16+'BP Financier'!$G$16)/('BP Financier'!$C$16+'BP Financier'!$C$19+'BP Financier'!$D$16+'BP Financier'!$D$19+'BP Financier'!$E$16+'BP Financier'!$E$19+'BP Financier'!$C$22+'BP Financier'!$D$22+'BP Financier'!$E$22+'BP Financier'!$F$16+'BP Financier'!$F$19+'BP Financier'!$F$22+'BP Financier'!$G$16+'BP Financier'!$G$19+'BP Financier'!$G$22))*$V8185*Y8185/(1-$W8185)","v":{"v":167103.86519884988,"d":"167,104"}},{"$f":"'BP Financier'!$G$44*(('BP Financier'!$C$16+'BP Financier'!$D$16+'BP Financier'!$E$16+'BP Financier'!$F$16+'BP Financier'!$G$16)/('BP Financier'!$C$16+'BP Financier'!$C$19+'BP Financier'!$D$16+'BP Financier'!$D$19+'BP Financier'!$E$16+'BP Financier'!$E$19+'BP Financier'!$C$22+'BP Financier'!$D$22+'BP Financier'!$E$22+'BP Financier'!$F$16+'BP Financier'!$F$19+'BP Financier'!$F$22+'BP Financier'!$G$16+'BP Financier'!$G$19+'BP Financier'!$G$22))*$V8185*Z8185/(1-$W8185)","v":{"v":1307829.424324883,"d":"1,307,829"}},{"$f":"'BP Financier'!$G$44*(('BP Financier'!$C$16+'BP Financier'!$D$16+'BP Financier'!$E$16+'BP Financier'!$F$16+'BP Financier'!$G$16)/('BP Financier'!$C$16+'BP Financier'!$C$19+'BP Financier'!$D$16+'BP Financier'!$D$19+'BP Financier'!$E$16+'BP Financier'!$E$19+'BP Financier'!$C$22+'BP Financier'!$D$22+'BP Financier'!$E$22+'BP Financier'!$F$16+'BP Financier'!$F$19+'BP Financier'!$F$22+'BP Financier'!$G$16+'BP Financier'!$G$19+'BP Financier'!$G$22))*$V8185*AA8185/(1-$W8185)","v":{"v":161579.77048153256,"d":"161,580"}},{"$f":"'BP Financier'!$G$44*(('BP Financier'!$C$16+'BP Financier'!$D$16+'BP Financier'!$E$16+'BP Financier'!$F$16+'BP Financier'!$G$16)/('BP Financier'!$C$16+'BP Financier'!$C$19+'BP Financier'!$D$16+'BP Financier'!$D$19+'BP Financier'!$E$16+'BP Financier'!$E$19+'BP Financier'!$C$22+'BP Financier'!$D$22+'BP Financier'!$E$22+'BP Financier'!$F$16+'BP Financier'!$F$19+'BP Financier'!$F$22+'BP Financier'!$G$16+'BP Financier'!$G$19+'BP Financier'!$G$22))*$V8185*AB8185/(1-$W8185)","v":{"v":77337.32604244292,"d":"77,337"}},null,{"v":0.006,"d":"0.60%"},{"$f":"Actif!$E$28/100","v":{"v":0.28900000000000003,"d":"28.90%"}},{"$f":"Actif!$E$30/100","v":{"v":0.09050000000000001,"d":"9.05%"}},{"$f":"Actif!$E$31/100","v":{"v":0.0605,"d":"6.05%"}},{"$f":"Actif!$E$32/100","v":{"v":0.47350000000000003,"d":"47.35%"}},{"$f":"Actif!$E$33/100","v":{"v":0.0585,"d":"5.85%"}},{"$f":"Actif!$E$29/100","v":{"v":0.027999999999999997,"d":"2.80%"}}]
[null,"#73",32,2029,"F","A_VIE",{"v":0.44999999999999996,"d":"0.45"},{"v":0.38999999999999996,"d":"0.39"},0.6,0.6,85,0,{"$f":"ROUND(Primes!$Q$4*V8186,0)","v":68},{"$f":"'BP Financier'!$G$33*(('BP Financier'!$C$16+'BP Financier'!$D$16+'BP Financier'!$E$16+'BP Financier'!$F$16+'BP Financier'!$G$16)/('BP Financier'!$C$16+'BP Financier'!$C$19+'BP Financier'!$D$16+'BP Financier'!$D$19+'BP Financier'!$E$16+'BP Financier'!$E$19+'BP Financier'!$F$16+'BP Financier'!$F$19+'BP Financier'!$G$19+'BP Financier'!$G$16))*V8186","v":{"v":3421672.0459127007,"d":"3,421,672"}},{"v":1963815.672006318,"d":"1,963,816"},{"$f":"'BP Financier'!$G$44*(('BP Financier'!$C$16+'BP Financier'!$D$16+'BP Financier'!$E$16+'BP Financier'!$F$16+'BP Financier'!$G$16)/('BP Financier'!$C$16+'BP Financier'!$C$19+'BP Financier'!$D$16+'BP Financier'!$D$19+'BP Financier'!$E$16+'BP Financier'!$E$19+'BP Financier'!$C$22+'BP Financier'!$D$22+'BP Financier'!$E$22+'BP Financier'!$F$16+'BP Financier'!$F$19+'BP Financier'!$F$22+'BP Financier'!$G$16+'BP Financier'!$G$19+'BP Financier'!$G$22))*$V8186*X8186/(1-$W8186)","v":{"v":249965.28595861018,"d":"249,965"}},{"$f":"'BP Financier'!$G$44*(('BP Financier'!$C$16+'BP Financier'!$D$16+'BP Financier'!$E$16+'BP Financier'!$F$16+'BP Financier'!$G$16)/('BP Financier'!$C$16+'BP Financier'!$C$19+'BP Financier'!$D$16+'BP Financier'!$D$19+'BP Financier'!$E$16+'BP Financier'!$E$19+'BP Financier'!$C$22+'BP Financier'!$D$22+'BP Financier'!$E$22+'BP Financier'!$F$16+'BP Financier'!$F$19+'BP Financier'!$F$22+'BP Financier'!$G$16+'BP Financier'!$G$19+'BP Financier'!$G$22))*$V8186*Y8186/(1-$W8186)","v":{"v":167103.86519884988,"d":"167,104"}},{"$f":"'BP Financier'!$G$44*(('BP Financier'!$C$16+'BP Financier'!$D$16+'BP Financier'!$E$16+'BP Financier'!$F$16+'BP Financier'!$G$16)/('BP Financier'!$C$16+'BP Financier'!$C$19+'BP Financier'!$D$16+'BP Financier'!$D$19+'BP Financier'!$E$16+'BP Financier'!$E$19+'BP Financier'!$C$22+'BP Financier'!$D$22+'BP Financier'!$E$22+'BP Financier'!$F$16+'BP Financier'!$F$19+'BP Financier'!$F$22+'BP Financier'!$G$16+'BP Financier'!$G$19+'BP Financier'!$G$22))*$V8186*Z8186/(1-$W8186)","v":{"v":1307829.424324883,"d":"1,307,829"}},{"$f":"'BP Financier'!$G$44*(('BP Financier'!$C$16+'BP Financier'!$D$16+'BP Financier'!$E$16+'BP Financier'!$F$16+'BP Financier'!$G$16)/('BP Financier'!$C$16+'BP Financier'!$C$19+'BP Financier'!$D$16+'BP Financier'!$D$19+'BP Financier'!$E$16+'BP Financier'!$E$19+'BP Financier'!$C$22+'BP Financier'!$D$22+'BP Financier'!$E$22+'BP Financier'!$F$16+'BP Financier'!$F$19+'BP Financier'!$F$22+'BP Financier'!$G$16+'BP Financier'!$G$19+'BP Financier'!$G$22))*$V8186*AA8186/(1-$W8186)","v":{"v":161579.77048153256,"d":"161,580"}},{"$f":"'BP Financier'!$G$44*(('BP Financier'!$C$16+'BP Financier'!$D$16+'BP Financier'!$E$16+'BP Financier'!$F$16+'BP Financier'!$G$16)/('BP Financier'!$C$16+'BP Financier'!$C$19+'BP Financier'!$D$16+'BP Financier'!$D$19+'BP Financier'!$E$16+'BP Financier'!$E$19+'BP Financier'!$C$22+'BP Financier'!$D$22+'BP Financier'!$E$22+'BP Financier'!$F$16+'BP Financier'!$F$19+'BP Financier'!$F$22+'BP Financier'!$G$16+'BP Financier'!$G$19+'BP Financier'!$G$22))*$V8186*AB8186/(1-$W8186)","v":{"v":77337.32604244292,"d":"77,337"}},null,{"v":0.006,"d":"0.60%"},{"$f":"Actif!$E$28/100","v":{"v":0.28900000000000003,"d":"28.90%"}},{"$f":"Actif!$E$30/100","v":{"v":0.09050000000000001,"d":"9.05%"}},{"$f":"Actif!$E$31/100","v":{"v":0.0605,"d":"6.05%"}},{"$f":"Actif!$E$32/100","v":{"v":0.47350000000000003,"d":"47.35%"}},{"$f":"Actif!$E$33/100","v":{"v":0.0585,"d":"5.85%"}},{"$f":"Actif!$E$29/100","v":{"v":0.027999999999999997,"d":"2.80%"}}]
[null,"#74",32,2030,"F","A_VIE",{"v":0.44999999999999996,"d":"0.45"},{"v":0.38999999999999996,"d":"0.39"},0.6,0.6,85,0,{"$f":"ROUND(Primes!$Q$4*V8187,0)","v":68},{"$f":"'BP Financier'!$G$33*(('BP Financier'!$C$16+'BP Financier'!$D$16+'BP Financier'!$E$16+'BP Financier'!$F$16+'BP Financier'!$G$16)/('BP Financier'!$C$16+'BP Financier'!$C$19+'BP Financier'!$D$16+'BP Financier'!$D$19+'BP Financier'!$E$16+'BP Financier'!$E$19+'BP Financier'!$F$16+'BP Financier'!$F$19+'BP Financier'!$G$19+'BP Financier'!$G$16))*V8187","v":{"v":3421672.0459127007,"d":"3,421,672"}},{"v":1963815.672006318,"d":"1,963,816"},{"$f":"'BP Financier'!$G$44*(('BP Financier'!$C$16+'BP Financier'!$D$16+'BP Financier'!$E$16+'BP Financier'!$F$16+'BP Financier'!$G$16)/('BP Financier'!$C$16+'BP Financier'!$C$19+'BP Financier'!$D$16+'BP Financier'!$D$19+'BP Financier'!$E$16+'BP Financier'!$E$19+'BP Financier'!$C$22+'BP Financier'!$D$22+'BP Financier'!$E$22+'BP Financier'!$F$16+'BP Financier'!$F$19+'BP Financier'!$F$22+'BP Financier'!$G$16+'BP Financier'!$G$19+'BP Financier'!$G$22))*$V8187*X8187/(1-$W8187)","v":{"v":249965.28595861018,"d":"249,965"}},{"$f":"'BP Financier'!$G$44*(('BP Financier'!$C$16+'BP Financier'!$D$16+'BP Financier'!$E$16+'BP Financier'!$F$16+'BP Financier'!$G$16)/('BP Financier'!$C$16+'BP Financier'!$C$19+'BP Financier'!$D$16+'BP Financier'!$D$19+'BP Financier'!$E$16+'BP Financier'!$E$19+'BP Financier'!$C$22+'BP Financier'!$D$22+'BP Financier'!$E$22+'BP Financier'!$F$16+'BP Financier'!$F$19+'BP Financier'!$F$22+'BP Financier'!$G$16+'BP Financier'!$G$19+'BP Financier'!$G$22))*$V8187*Y8187/(1-$W8187)","v":{"v":167103.86519884988,"d":"167,104"}},{"$f":"'BP Financier'!$G$44*(('BP Financier'!$C$16+'BP Financier'!$D$16+'BP Financier'!$E$16+'BP Financier'!$F$16+'BP Financier'!$G$16)/('BP Financier'!$C$16+'BP Financier'!$C$19+'BP Financier'!$D$16+'BP Financier'!$D$19+'BP Financier'!$E$16+'BP Financier'!$E$19+'BP Financier'!$C$22+'BP Financier'!$D$22+'BP Financier'!$E$22+'BP Financier'!$F$16+'BP Financier'!$F$19+'BP Financier'!$F$22+'BP Financier'!$G$16+'BP Financier'!$G$19+'BP Financier'!$G$22))*$V8187*Z8187/(1-$W8187)","v":{"v":1307829.424324883,"d":"1,307,829"}},{"$f":"'BP Financier'!$G$44*(('BP Financier'!$C$16+'BP Financier'!$D$16+'BP Financier'!$E$16+'BP Financier'!$F$16+'BP Financier'!$G$16)/('BP Financier'!$C$16+'BP Financier'!$C$19+'BP Financier'!$D$16+'BP Financier'!$D$19+'BP Financier'!$E$16+'BP Financier'!$E$19+'BP Financier'!$C$22+'BP Financier'!$D$22+'BP Financier'!$E$22+'BP Financier'!$F$16+'BP Financier'!$F$19+'BP Financier'!$F$22+'BP Financier'!$G$16+'BP Financier'!$G$19+'BP Financier'!$G$22))*$V8187*AA8187/(1-$W8187)","v":{"v":161579.77048153256,"d":"161,580"}},{"$f":"'BP Financier'!$G$44*(('BP Financier'!$C$16+'BP Financier'!$D$16+'BP Financier'!$E$16+'BP Financier'!$F$16+'BP Financier'!$G$16)/('BP Financier'!$C$16+'BP Financier'!$C$19+'BP Financier'!$D$16+'BP Financier'!$D$19+'BP Financier'!$E$16+'BP Financier'!$E$19+'BP Financier'!$C$22+'BP Financier'!$D$22+'BP Financier'!$E$22+'BP Financier'!$F$16+'BP Financier'!$F$19+'BP Financier'!$F$22+'BP Financier'!$G$16+'BP Financier'!$G$19+'BP Financier'!$G$22))*$V8187*AB8187/(1-$W8187)","v":{"v":77337.32604244292,"d":"77,337"}},null,{"v":0.006,"d":"0.60%"},{"$f":"Actif!$E$28/100","v":{"v":0.28900000000000003,"d":"28.90%"}},{"$f":"Actif!$E$30/100","v":{"v":0.09050000000000001,"d":"9.05%"}},{"$f":"Actif!$E$31/100","v":{"v":0.0605,"d":"6.05%"}},{"$f":"Actif!$E$32/100","v":{"v":0.47350000000000003,"d":"47.35%"}},{"$f":"Actif!$E$33/100","v":{"v":0.0585,"d":"5.85%"}},{"$f":"Actif!$E$29/100","v":{"v":0.027999999999999997,"d":"2.80%"}}]
[null,"#75",32,2031,"F","A_VIE",{"v":0.44999999999999996,"d":"0.45"},{"v":0.38999999999999996,"d":"0.39"},0.6,0.6,85,0,{"$f":"ROUND(Primes!$Q$4*V8188,0)","v":68},{"$f":"'BP Financier'!$G$33*(('BP Financier'!$C$16+'BP Financier'!$D$16+'BP Financier'!$E$16+'BP Financier'!$F$16+'BP Financier'!$G$16)/('BP Financier'!$C$16+'BP Financier'!$C$19+'BP Financier'!$D$16+'BP Financier'!$D$19+'BP Financier'!$E$16+'BP Financier'!$E$19+'BP Financier'!$F$16+'BP Financier'!$F$19+'BP Financier'!$G$19+'BP Financier'!$G$16))*V8188","v":{"v":3421672.0459127007,"d":"3,421,672"}},{"v":1963815.672006318,"d":"1,963,816"},{"$f":"'BP Financier'!$G$44*(('BP Financier'!$C$16+'BP Financier'!$D$16+'BP Financier'!$E$16+'BP Financier'!$F$16+'BP Financier'!$G$16)/('BP Financier'!$C$16+'BP Financier'!$C$19+'BP Financier'!$D$16+'BP Financier'!$D$19+'BP Financier'!$E$16+'BP Financier'!$E$19+'BP Financier'!$C$22+'BP Financier'!$D$22+'BP Financier'!$E$22+'BP Financier'!$F$16+'BP Financier'!$F$19+'BP Financier'!$F$22+'BP Financier'!$G$16+'BP Financier'!$G$19+'BP Financier'!$G$22))*$V8188*X8188/(1-$W8188)","v":{"v":249965.28595861018,"d":"249,965"}},{"$f":"'BP Financier'!$G$44*(('BP Financier'!$C$16+'BP Financier'!$D$16+'BP Financier'!$E$16+'BP Financier'!$F$16+'BP Financier'!$G$16)/('BP Financier'!$C$16+'BP Financier'!$C$19+'BP Financier'!$D$16+'BP Financier'!$D$19+'BP Financier'!$E$16+'BP Financier'!$E$19+'BP Financier'!$C$22+'BP Financier'!$D$22+'BP Financier'!$E$22+'BP Financier'!$F$16+'BP Financier'!$F$19+'BP Financier'!$F$22+'BP Financier'!$G$16+'BP Financier'!$G$19+'BP Financier'!$G$22))*$V8188*Y8188/(1-$W8188)","v":{"v":167103.86519884988,"d":"167,104"}},{"$f":"'BP Financier'!$G$44*(('BP Financier'!$C$16+'BP Financier'!$D$16+'BP Financier'!$E$16+'BP Financier'!$F$16+'BP Financier'!$G$16)/('BP Financier'!$C$16+'BP Financier'!$C$19+'BP Financier'!$D$16+'BP Financier'!$D$19+'BP Financier'!$E$16+'BP Financier'!$E$19+'BP Financier'!$C$22+'BP Financier'!$D$22+'BP Financier'!$E$22+'BP Financier'!$F$16+'BP Financier'!$F$19+'BP Financier'!$F$22+'BP Financier'!$G$16+'BP Financier'!$G$19+'BP Financier'!$G$22))*$V8188*Z8188/(1-$W8188)","v":{"v":1307829.424324883,"d":"1,307,829"}},{"$f":"'BP Financier'!$G$44*(('BP Financier'!$C$16+'BP Financier'!$D$16+'BP Financier'!$E$16+'BP Financier'!$F$16+'BP Financier'!$G$16)/('BP Financier'!$C$16+'BP Financier'!$C$19+'BP Financier'!$D$16+'BP Financier'!$D$19+'BP Financier'!$E$16+'BP Financier'!$E$19+'BP Financier'!$C$22+'BP Financier'!$D$22+'BP Financier'!$E$22+'BP Financier'!$F$16+'BP Financier'!$F$19+'BP Financier'!$F$22+'BP Financier'!$G$16+'BP Financier'!$G$19+'BP Financier'!$G$22))*$V8188*AA8188/(1-$W8188)","v":{"v":161579.77048153256,"d":"161,580"}},{"$f":"'BP Financier'!$G$44*(('BP Financier'!$C$16+'BP Financier'!$D$16+'BP Financier'!$E$16+'BP Financier'!$F$16+'BP Financier'!$G$16)/('BP Financier'!$C$16+'BP Financier'!$C$19+'BP Financier'!$D$16+'BP Financier'!$D$19+'BP Financier'!$E$16+'BP Financier'!$E$19+'BP Financier'!$C$22+'BP Financier'!$D$22+'BP Financier'!$E$22+'BP Financier'!$F$16+'BP Financier'!$F$19+'BP Financier'!$F$22+'BP Financier'!$G$16+'BP Financier'!$G$19+'BP Financier'!$G$22))*$V8188*AB8188/(1-$W8188)","v":{"v":77337.32604244292,"d":"77,337"}},null,{"v":0.006,"d":"0.60%"},{"$f":"Actif!$E$28/100","v":{"v":0.28900000000000003,"d":"28.90%"}},{"$f":"Actif!$E$30/100","v":{"v":0.09050000000000001,"d":"9.05%"}},{"$f":"Actif!$E$31/100","v":{"v":0.0605,"d":"6.05%"}},{"$f":"Actif!$E$32/100","v":{"v":0.47350000000000003,"d":"47.35%"}},{"$f":"Actif!$E$33/100","v":{"v":0.0585,"d":"5.85%"}},{"$f":"Actif!$E$29/100","v":{"v":0.027999999999999997,"d":"2.80%"}}]
[null,"#76",33,2026,"H","A_VIE",{"v":0.44999999999999996,"d":"0.45"},{"v":0.38999999999999996,"d":"0.39"},0.6,0.6,85,0,{"$f":"ROUND(Primes!$Q$4*V8189,0)","v":68},{"$f":"'BP Financier'!$G$33*(('BP Financier'!$C$16+'BP Financier'!$D$16+'BP Financier'!$E$16+'BP Financier'!$F$16+'BP Financier'!$G$16)/('BP Financier'!$C$16+'BP Financier'!$C$19+'BP Financier'!$D$16+'BP Financier'!$D$19+'BP Financier'!$E$16+'BP Financier'!$E$19+'BP Financier'!$F$16+'BP Financier'!$F$19+'BP Financier'!$G$19+'BP Financier'!$G$16))*V8189","v":{"v":3421672.0459127007,"d":"3,421,672"}},{"v":1963815.672006318,"d":"1,963,816"},{"$f":"'BP Financier'!$G$44*(('BP Financier'!$C$16+'BP Financier'!$D$16+'BP Financier'!$E$16+'BP Financier'!$F$16+'BP Financier'!$G$16)/('BP Financier'!$C$16+'BP Financier'!$C$19+'BP Financier'!$D$16+'BP Financier'!$D$19+'BP Financier'!$E$16+'BP Financier'!$E$19+'BP Financier'!$C$22+'BP Financier'!$D$22+'BP Financier'!$E$22+'BP Financier'!$F$16+'BP Financier'!$F$19+'BP Financier'!$F$22+'BP Financier'!$G$16+'BP Financier'!$G$19+'BP Financier'!$G$22))*$V8189*X8189/(1-$W8189)","v":{"v":249965.28595861018,"d":"249,965"}},{"$f":"'BP Financier'!$G$44*(('BP Financier'!$C$16+'BP Financier'!$D$16+'BP Financier'!$E$16+'BP Financier'!$F$16+'BP Financier'!$G$16)/('BP Financier'!$C$16+'BP Financier'!$C$19+'BP Financier'!$D$16+'BP Financier'!$D$19+'BP Financier'!$E$16+'BP Financier'!$E$19+'BP Financier'!$C$22+'BP Financier'!$D$22+'BP Financier'!$E$22+'BP Financier'!$F$16+'BP Financier'!$F$19+'BP Financier'!$F$22+'BP Financier'!$G$16+'BP Financier'!$G$19+'BP Financier'!$G$22))*$V8189*Y8189/(1-$W8189)","v":{"v":167103.86519884988,"d":"167,104"}},{"$f":"'BP Financier'!$G$44*(('BP Financier'!$C$16+'BP Financier'!$D$16+'BP Financier'!$E$16+'BP Financier'!$F$16+'BP Financier'!$G$16)/('BP Financier'!$C$16+'BP Financier'!$C$19+'BP Financier'!$D$16+'BP Financier'!$D$19+'BP Financier'!$E$16+'BP Financier'!$E$19+'BP Financier'!$C$22+'BP Financier'!$D$22+'BP Financier'!$E$22+'BP Financier'!$F$16+'BP Financier'!$F$19+'BP Financier'!$F$22+'BP Financier'!$G$16+'BP Financier'!$G$19+'BP Financier'!$G$22))*$V8189*Z8189/(1-$W8189)","v":{"v":1307829.424324883,"d":"1,307,829"}},{"$f":"'BP Financier'!$G$44*(('BP Financier'!$C$16+'BP Financier'!$D$16+'BP Financier'!$E$16+'BP Financier'!$F$16+'BP Financier'!$G$16)/('BP Financier'!$C$16+'BP Financier'!$C$19+'BP Financier'!$D$16+'BP Financier'!$D$19+'BP Financier'!$E$16+'BP Financier'!$E$19+'BP Financier'!$C$22+'BP Financier'!$D$22+'BP Financier'!$E$22+'BP Financier'!$F$16+'BP Financier'!$F$19+'BP Financier'!$F$22+'BP Financier'!$G$16+'BP Financier'!$G$19+'BP Financier'!$G$22))*$V8189*AA8189/(1-$W8189)","v":{"v":161579.77048153256,"d":"161,580"}},{"$f":"'BP Financier'!$G$44*(('BP Financier'!$C$16+'BP Financier'!$D$16+'BP Financier'!$E$16+'BP Financier'!$F$16+'BP Financier'!$G$16)/('BP Financier'!$C$16+'BP Financier'!$C$19+'BP Financier'!$D$16+'BP Financier'!$D$19+'BP Financier'!$E$16+'BP Financier'!$E$19+'BP Financier'!$C$22+'BP Financier'!$D$22+'BP Financier'!$E$22+'BP Financier'!$F$16+'BP Financier'!$F$19+'BP Financier'!$F$22+'BP Financier'!$G$16+'BP Financier'!$G$19+'BP Financier'!$G$22))*$V8189*AB8189/(1-$W8189)","v":{"v":77337.32604244292,"d":"77,337"}},null,{"v":0.006,"d":"0.60%"},{"$f":"Actif!$E$28/100","v":{"v":0.28900000000000003,"d":"28.90%"}},{"$f":"Actif!$E$30/100","v":{"v":0.09050000000000001,"d":"9.05%"}},{"$f":"Actif!$E$31/100","v":{"v":0.0605,"d":"6.05%"}},{"$f":"Actif!$E$32/100","v":{"v":0.47350000000000003,"d":"47.35%"}},{"$f":"Actif!$E$33/100","v":{"v":0.0585,"d":"5.85%"}},{"$f":"Actif!$E$29/100","v":{"v":0.027999999999999997,"d":"2.80%"}}]
[null,"#77",33,2028,"H","A_VIE",{"v":0.44999999999999996,"d":"0.45"},{"v":0.38999999999999996,"d":"0.39"},0.6,0.6,85,0,{"$f":"ROUND(Primes!$Q$4*V8190,0)","v":68},{"$f":"'BP Financier'!$G$33*(('BP Financier'!$C$16+'BP Financier'!$D$16+'BP Financier'!$E$16+'BP Financier'!$F$16+'BP Financier'!$G$16)/('BP Financier'!$C$16+'BP Financier'!$C$19+'BP Financier'!$D$16+'BP Financier'!$D$19+'BP Financier'!$E$16+'BP Financier'!$E$19+'BP Financier'!$F$16+'BP Financier'!$F$19+'BP Financier'!$G$19+'BP Financier'!$G$16))*V8190","v":{"v":3421672.0459127007,"d":"3,421,672"}},{"v":1963815.672006318,"d":"1,963,816"},{"$f":"'BP Financier'!$G$44*(('BP Financier'!$C$16+'BP Financier'!$D$16+'BP Financier'!$E$16+'BP Financier'!$F$16+'BP Financier'!$G$16)/('BP Financier'!$C$16+'BP Financier'!$C$19+'BP Financier'!$D$16+'BP Financier'!$D$19+'BP Financier'!$E$16+'BP Financier'!$E$19+'BP Financier'!$C$22+'BP Financier'!$D$22+'BP Financier'!$E$22+'BP Financier'!$F$16+'BP Financier'!$F$19+'BP Financier'!$F$22+'BP Financier'!$G$16+'BP Financier'!$G$19+'BP Financier'!$G$22))*$V8190*X8190/(1-$W8190)","v":{"v":249965.28595861018,"d":"249,965"}},{"$f":"'BP Financier'!$G$44*(('BP Financier'!$C$16+'BP Financier'!$D$16+'BP Financier'!$E$16+'BP Financier'!$F$16+'BP Financier'!$G$16)/('BP Financier'!$C$16+'BP Financier'!$C$19+'BP Financier'!$D$16+'BP Financier'!$D$19+'BP Financier'!$E$16+'BP Financier'!$E$19+'BP Financier'!$C$22+'BP Financier'!$D$22+'BP Financier'!$E$22+'BP Financier'!$F$16+'BP Financier'!$F$19+'BP Financier'!$F$22+'BP Financier'!$G$16+'BP Financier'!$G$19+'BP Financier'!$G$22))*$V8190*Y8190/(1-$W8190)","v":{"v":167103.86519884988,"d":"167,104"}},{"$f":"'BP Financier'!$G$44*(('BP Financier'!$C$16+'BP Financier'!$D$16+'BP Financier'!$E$16+'BP Financier'!$F$16+'BP Financier'!$G$16)/('BP Financier'!$C$16+'BP Financier'!$C$19+'BP Financier'!$D$16+'BP Financier'!$D$19+'BP Financier'!$E$16+'BP Financier'!$E$19+'BP Financier'!$C$22+'BP Financier'!$D$22+'BP Financier'!$E$22+'BP Financier'!$F$16+'BP Financier'!$F$19+'BP Financier'!$F$22+'BP Financier'!$G$16+'BP Financier'!$G$19+'BP Financier'!$G$22))*$V8190*Z8190/(1-$W8190)","v":{"v":1307829.424324883,"d":"1,307,829"}},{"$f":"'BP Financier'!$G$44*(('BP Financier'!$C$16+'BP Financier'!$D$16+'BP Financier'!$E$16+'BP Financier'!$F$16+'BP Financier'!$G$16)/('BP Financier'!$C$16+'BP Financier'!$C$19+'BP Financier'!$D$16+'BP Financier'!$D$19+'BP Financier'!$E$16+'BP Financier'!$E$19+'BP Financier'!$C$22+'BP Financier'!$D$22+'BP Financier'!$E$22+'BP Financier'!$F$16+'BP Financier'!$F$19+'BP Financier'!$F$22+'BP Financier'!$G$16+'BP Financier'!$G$19+'BP Financier'!$G$22))*$V8190*AA8190/(1-$W8190)","v":{"v":161579.77048153256,"d":"161,580"}},{"$f":"'BP Financier'!$G$44*(('BP Financier'!$C$16+'BP Financier'!$D$16+'BP Financier'!$E$16+'BP Financier'!$F$16+'BP Financier'!$G$16)/('BP Financier'!$C$16+'BP Financier'!$C$19+'BP Financier'!$D$16+'BP Financier'!$D$19+'BP Financier'!$E$16+'BP Financier'!$E$19+'BP Financier'!$C$22+'BP Financier'!$D$22+'BP Financier'!$E$22+'BP Financier'!$F$16+'BP Financier'!$F$19+'BP Financier'!$F$22+'BP Financier'!$G$16+'BP Financier'!$G$19+'BP Financier'!$G$22))*$V8190*AB8190/(1-$W8190)","v":{"v":77337.32604244292,"d":"77,337"}},null,{"v":0.006,"d":"0.60%"},{"$f":"Actif!$E$28/100","v":{"v":0.28900000000000003,"d":"28.90%"}},{"$f":"Actif!$E$30/100","v":{"v":0.09050000000000001,"d":"9.05%"}},{"$f":"Actif!$E$31/100","v":{"v":0.0605,"d":"6.05%"}},{"$f":"Actif!$E$32/100","v":{"v":0.47350000000000003,"d":"47.35%"}},{"$f":"Actif!$E$33/100","v":{"v":0.0585,"d":"5.85%"}},{"$f":"Actif!$E$29/100","v":{"v":0.027999999999999997,"d":"2.80%"}}]
[null,"#78",33,2029,"H","A_VIE",{"v":0.44999999999999996,"d":"0.45"},{"v":0.38999999999999996,"d":"0.39"},0.6,0.6,85,0,{"$f":"ROUND(Primes!$Q$4*V8191,0)","v":68},{"$f":"'BP Financier'!$G$33*(('BP Financier'!$C$16+'BP Financier'!$D$16+'BP Financier'!$E$16+'BP Financier'!$F$16+'BP Financier'!$G$16)/('BP Financier'!$C$16+'BP Financier'!$C$19+'BP Financier'!$D$16+'BP Financier'!$D$19+'BP Financier'!$E$16+'BP Financier'!$E$19+'BP Financier'!$F$16+'BP Financier'!$F$19+'BP Financier'!$G$19+'BP Financier'!$G$16))*V8191","v":{"v":3421672.0459127007,"d":"3,421,672"}},{"v":1963815.672006318,"d":"1,963,816"},{"$f":"'BP Financier'!$G$44*(('BP Financier'!$C$16+'BP Financier'!$D$16+'BP Financier'!$E$16+'BP Financier'!$F$16+'BP Financier'!$G$16)/('BP Financier'!$C$16+'BP Financier'!$C$19+'BP Financier'!$D$16+'BP Financier'!$D$19+'BP Financier'!$E$16+'BP Financier'!$E$19+'BP Financier'!$C$22+'BP Financier'!$D$22+'BP Financier'!$E$22+'BP Financier'!$F$16+'BP Financier'!$F$19+'BP Financier'!$F$22+'BP Financier'!$G$16+'BP Financier'!$G$19+'BP Financier'!$G$22))*$V8191*X8191/(1-$W8191)","v":{"v":249965.28595861018,"d":"249,965"}},{"$f":"'BP Financier'!$G$44*(('BP Financier'!$C$16+'BP Financier'!$D$16+'BP Financier'!$E$16+'BP Financier'!$F$16+'BP Financier'!$G$16)/('BP Financier'!$C$16+'BP Financier'!$C$19+'BP Financier'!$D$16+'BP Financier'!$D$19+'BP Financier'!$E$16+'BP Financier'!$E$19+'BP Financier'!$C$22+'BP Financier'!$D$22+'BP Financier'!$E$22+'BP Financier'!$F$16+'BP Financier'!$F$19+'BP Financier'!$F$22+'BP Financier'!$G$16+'BP Financier'!$G$19+'BP Financier'!$G$22))*$V8191*Y8191/(1-$W8191)","v":{"v":167103.86519884988,"d":"167,104"}},{"$f":"'BP Financier'!$G$44*(('BP Financier'!$C$16+'BP Financier'!$D$16+'BP Financier'!$E$16+'BP Financier'!$F$16+'BP Financier'!$G$16)/('BP Financier'!$C$16+'BP Financier'!$C$19+'BP Financier'!$D$16+'BP Financier'!$D$19+'BP Financier'!$E$16+'BP Financier'!$E$19+'BP Financier'!$C$22+'BP Financier'!$D$22+'BP Financier'!$E$22+'BP Financier'!$F$16+'BP Financier'!$F$19+'BP Financier'!$F$22+'BP Financier'!$G$16+'BP Financier'!$G$19+'BP Financier'!$G$22))*$V8191*Z8191/(1-$W8191)","v":{"v":1307829.424324883,"d":"1,307,829"}},{"$f":"'BP Financier'!$G$44*(('BP Financier'!$C$16+'BP Financier'!$D$16+'BP Financier'!$E$16+'BP Financier'!$F$16+'BP Financier'!$G$16)/('BP Financier'!$C$16+'BP Financier'!$C$19+'BP Financier'!$D$16+'BP Financier'!$D$19+'BP Financier'!$E$16+'BP Financier'!$E$19+'BP Financier'!$C$22+'BP Financier'!$D$22+'BP Financier'!$E$22+'BP Financier'!$F$16+'BP Financier'!$F$19+'BP Financier'!$F$22+'BP Financier'!$G$16+'BP Financier'!$G$19+'BP Financier'!$G$22))*$V8191*AA8191/(1-$W8191)","v":{"v":161579.77048153256,"d":"161,580"}},{"$f":"'BP Financier'!$G$44*(('BP Financier'!$C$16+'BP Financier'!$D$16+'BP Financier'!$E$16+'BP Financier'!$F$16+'BP Financier'!$G$16)/('BP Financier'!$C$16+'BP Financier'!$C$19+'BP Financier'!$D$16+'BP Financier'!$D$19+'BP Financier'!$E$16+'BP Financier'!$E$19+'BP Financier'!$C$22+'BP Financier'!$D$22+'BP Financier'!$E$22+'BP Financier'!$F$16+'BP Financier'!$F$19+'BP Financier'!$F$22+'BP Financier'!$G$16+'BP Financier'!$G$19+'BP Financier'!$G$22))*$V8191*AB8191/(1-$W8191)","v":{"v":77337.32604244292,"d":"77,337"}},null,{"v":0.006,"d":"0.60%"},{"$f":"Actif!$E$28/100","v":{"v":0.28900000000000003,"d":"28.90%"}},{"$f":"Actif!$E$30/100","v":{"v":0.09050000000000001,"d":"9.05%"}},{"$f":"Actif!$E$31/100","v":{"v":0.0605,"d":"6.05%"}},{"$f":"Actif!$E$32/100","v":{"v":0.47350000000000003,"d":"47.35%"}},{"$f":"Actif!$E$33/100","v":{"v":0.0585,"d":"5.85%"}},{"$f":"Actif!$E$29/100","v":{"v":0.027999999999999997,"d":"2.80%"}}]
[null,"#79",33,2030,"H","A_VIE",{"v":0.44999999999999996,"d":"0.45"},{"v":0.38999999999999996,"d":"0.39"},0.6,0.6,85,0,{"$f":"ROUND(Primes!$Q$4*V8192,0)","v":68},{"$f":"'BP Financier'!$G$33*(('BP Financier'!$C$16+'BP Financier'!$D$16+'BP Financier'!$E$16+'BP Financier'!$F$16+'BP Financier'!$G$16)/('BP Financier'!$C$16+'BP Financier'!$C$19+'BP Financier'!$D$16+'BP Financier'!$D$19+'BP Financier'!$E$16+'BP Financier'!$E$19+'BP Financier'!$F$16+'BP Financier'!$F$19+'BP Financier'!$G$19+'BP Financier'!$G$16))*V8192","v":{"v":3421672.0459127007,"d":"3,421,672"}},{"v":1963815.672006318,"d":"1,963,816"},{"$f":"'BP Financier'!$G$44*(('BP Financier'!$C$16+'BP Financier'!$D$16+'BP Financier'!$E$16+'BP Financier'!$F$16+'BP Financier'!$G$16)/('BP Financier'!$C$16+'BP Financier'!$C$19+'BP Financier'!$D$16+'BP Financier'!$D$19+'BP Financier'!$E$16+'BP Financier'!$E$19+'BP Financier'!$C$22+'BP Financier'!$D$22+'BP Financier'!$E$22+'BP Financier'!$F$16+'BP Financier'!$F$19+'BP Financier'!$F$22+'BP Financier'!$G$16+'BP Financier'!$G$19+'BP Financier'!$G$22))*$V8192*X8192/(1-$W8192)","v":{"v":249965.28595861018,"d":"249,965"}},{"$f":"'BP Financier'!$G$44*(('BP Financier'!$C$16+'BP Financier'!$D$16+'BP Financier'!$E$16+'BP Financier'!$F$16+'BP Financier'!$G$16)/('BP Financier'!$C$16+'BP Financier'!$C$19+'BP Financier'!$D$16+'BP Financier'!$D$19+'BP Financier'!$E$16+'BP Financier'!$E$19+'BP Financier'!$C$22+'BP Financier'!$D$22+'BP Financier'!$E$22+'BP Financier'!$F$16+'BP Financier'!$F$19+'BP Financier'!$F$22+'BP Financier'!$G$16+'BP Financier'!$G$19+'BP Financier'!$G$22))*$V8192*Y8192/(1-$W8192)","v":{"v":167103.86519884988,"d":"167,104"}},{"$f":"'BP Financier'!$G$44*(('BP Financier'!$C$16+'BP Financier'!$D$16+'BP Financier'!$E$16+'BP Financier'!$F$16+'BP Financier'!$G$16)/('BP Financier'!$C$16+'BP Financier'!$C$19+'BP Financier'!$D$16+'BP Financier'!$D$19+'BP Financier'!$E$16+'BP Financier'!$E$19+'BP Financier'!$C$22+'BP Financier'!$D$22+'BP Financier'!$E$22+'BP Financier'!$F$16+'BP Financier'!$F$19+'BP Financier'!$F$22+'BP Financier'!$G$16+'BP Financier'!$G$19+'BP Financier'!$G$22))*$V8192*Z8192/(1-$W8192)","v":{"v":1307829.424324883,"d":"1,307,829"}},{"$f":"'BP Financier'!$G$44*(('BP Financier'!$C$16+'BP Financier'!$D$16+'BP Financier'!$E$16+'BP Financier'!$F$16+'BP Financier'!$G$16)/('BP Financier'!$C$16+'BP Financier'!$C$19+'BP Financier'!$D$16+'BP Financier'!$D$19+'BP Financier'!$E$16+'BP Financier'!$E$19+'BP Financier'!$C$22+'BP Financier'!$D$22+'BP Financier'!$E$22+'BP Financier'!$F$16+'BP Financier'!$F$19+'BP Financier'!$F$22+'BP Financier'!$G$16+'BP Financier'!$G$19+'BP Financier'!$G$22))*$V8192*AA8192/(1-$W8192)","v":{"v":161579.77048153256,"d":"161,580"}},{"$f":"'BP Financier'!$G$44*(('BP Financier'!$C$16+'BP Financier'!$D$16+'BP Financier'!$E$16+'BP Financier'!$F$16+'BP Financier'!$G$16)/('BP Financier'!$C$16+'BP Financier'!$C$19+'BP Financier'!$D$16+'BP Financier'!$D$19+'BP Financier'!$E$16+'BP Financier'!$E$19+'BP Financier'!$C$22+'BP Financier'!$D$22+'BP Financier'!$E$22+'BP Financier'!$F$16+'BP Financier'!$F$19+'BP Financier'!$F$22+'BP Financier'!$G$16+'BP Financier'!$G$19+'BP Financier'!$G$22))*$V8192*AB8192/(1-$W8192)","v":{"v":77337.32604244292,"d":"77,337"}},null,{"v":0.006,"d":"0.60%"},{"$f":"Actif!$E$28/100","v":{"v":0.28900000000000003,"d":"28.90%"}},{"$f":"Actif!$E$30/100","v":{"v":0.09050000000000001,"d":"9.05%"}},{"$f":"Actif!$E$31/100","v":{"v":0.0605,"d":"6.05%"}},{"$f":"Actif!$E$32/100","v":{"v":0.47350000000000003,"d":"47.35%"}},{"$f":"Actif!$E$33/100","v":{"v":0.0585,"d":"5.85%"}},{"$f":"Actif!$E$29/100","v":{"v":0.027999999999999997,"d":"2.80%"}}]
[null,"#80",33,2031,"H","A_VIE",{"v":0.44999999999999996,"d":"0.45"},{"v":0.38999999999999996,"d":"0.39"},0.6,0.6,85,0,{"$f":"ROUND(Primes!$Q$4*V8193,0)","v":68},{"$f":"'BP Financier'!$G$33*(('BP Financier'!$C$16+'BP Financier'!$D$16+'BP Financier'!$E$16+'BP Financier'!$F$16+'BP Financier'!$G$16)/('BP Financier'!$C$16+'BP Financier'!$C$19+'BP Financier'!$D$16+'BP Financier'!$D$19+'BP Financier'!$E$16+'BP Financier'!$E$19+'BP Financier'!$F$16+'BP Financier'!$F$19+'BP Financier'!$G$19+'BP Financier'!$G$16))*V8193","v":{"v":3421672.0459127007,"d":"3,421,672"}},{"v":1963815.672006318,"d":"1,963,816"},{"$f":"'BP Financier'!$G$44*(('BP Financier'!$C$16+'BP Financier'!$D$16+'BP Financier'!$E$16+'BP Financier'!$F$16+'BP Financier'!$G$16)/('BP Financier'!$C$16+'BP Financier'!$C$19+'BP Financier'!$D$16+'BP Financier'!$D$19+'BP Financier'!$E$16+'BP Financier'!$E$19+'BP Financier'!$C$22+'BP Financier'!$D$22+'BP Financier'!$E$22+'BP Financier'!$F$16+'BP Financier'!$F$19+'BP Financier'!$F$22+'BP Financier'!$G$16+'BP Financier'!$G$19+'BP Financier'!$G$22))*$V8193*X8193/(1-$W8193)","v":{"v":249965.28595861018,"d":"249,965"}},{"$f":"'BP Financier'!$G$44*(('BP Financier'!$C$16+'BP Financier'!$D$16+'BP Financier'!$E$16+'BP Financier'!$F$16+'BP Financier'!$G$16)/('BP Financier'!$C$16+'BP Financier'!$C$19+'BP Financier'!$D$16+'BP Financier'!$D$19+'BP Financier'!$E$16+'BP Financier'!$E$19+'BP Financier'!$C$22+'BP Financier'!$D$22+'BP Financier'!$E$22+'BP Financier'!$F$16+'BP Financier'!$F$19+'BP Financier'!$F$22+'BP Financier'!$G$16+'BP Financier'!$G$19+'BP Financier'!$G$22))*$V8193*Y8193/(1-$W8193)","v":{"v":167103.86519884988,"d":"167,104"}},{"$f":"'BP Financier'!$G$44*(('BP Financier'!$C$16+'BP Financier'!$D$16+'BP Financier'!$E$16+'BP Financier'!$F$16+'BP Financier'!$G$16)/('BP Financier'!$C$16+'BP Financier'!$C$19+'BP Financier'!$D$16+'BP Financier'!$D$19+'BP Financier'!$E$16+'BP Financier'!$E$19+'BP Financier'!$C$22+'BP Financier'!$D$22+'BP Financier'!$E$22+'BP Financier'!$F$16+'BP Financier'!$F$19+'BP Financier'!$F$22+'BP Financier'!$G$16+'BP Financier'!$G$19+'BP Financier'!$G$22))*$V8193*Z8193/(1-$W8193)","v":{"v":1307829.424324883,"d":"1,307,829"}},{"$f":"'BP Financier'!$G$44*(('BP Financier'!$C$16+'BP Financier'!$D$16+'BP Financier'!$E$16+'BP Financier'!$F$16+'BP Financier'!$G$16)/('BP Financier'!$C$16+'BP Financier'!$C$19+'BP Financier'!$D$16+'BP Financier'!$D$19+'BP Financier'!$E$16+'BP Financier'!$E$19+'BP Financier'!$C$22+'BP Financier'!$D$22+'BP Financier'!$E$22+'BP Financier'!$F$16+'BP Financier'!$F$19+'BP Financier'!$F$22+'BP Financier'!$G$16+'BP Financier'!$G$19+'BP Financier'!$G$22))*$V8193*AA8193/(1-$W8193)","v":{"v":161579.77048153256,"d":"161,580"}},{"$f":"'BP Financier'!$G$44*(('BP Financier'!$C$16+'BP Financier'!$D$16+'BP Financier'!$E$16+'BP Financier'!$F$16+'BP Financier'!$G$16)/('BP Financier'!$C$16+'BP Financier'!$C$19+'BP Financier'!$D$16+'BP Financier'!$D$19+'BP Financier'!$E$16+'BP Financier'!$E$19+'BP Financier'!$C$22+'BP Financier'!$D$22+'BP Financier'!$E$22+'BP Financier'!$F$16+'BP Financier'!$F$19+'BP Financier'!$F$22+'BP Financier'!$G$16+'BP Financier'!$G$19+'BP Financier'!$G$22))*$V8193*AB8193/(1-$W8193)","v":{"v":77337.32604244292,"d":"77,337"}},null,{"v":0.006,"d":"0.60%"},{"$f":"Actif!$E$28/100","v":{"v":0.28900000000000003,"d":"28.90%"}},{"$f":"Actif!$E$30/100","v":{"v":0.09050000000000001,"d":"9.05%"}},{"$f":"Actif!$E$31/100","v":{"v":0.0605,"d":"6.05%"}},{"$f":"Actif!$E$32/100","v":{"v":0.47350000000000003,"d":"47.35%"}},{"$f":"Actif!$E$33/100","v":{"v":0.0585,"d":"5.85%"}},{"$f":"Actif!$E$29/100","v":{"v":0.027999999999999997,"d":"2.80%"}}]
[null,"#81",34,2026,"H","A_VIE",{"v":0.44999999999999996,"d":"0.45"},{"v":0.38999999999999996,"d":"0.39"},0.6,0.6,85,0,{"$f":"ROUND(Primes!$Q$4*V8194,0)","v":68},{"$f":"'BP Financier'!$G$33*(('BP Financier'!$C$16+'BP Financier'!$D$16+'BP Financier'!$E$16+'BP Financier'!$F$16+'BP Financier'!$G$16)/('BP Financier'!$C$16+'BP Financier'!$C$19+'BP Financier'!$D$16+'BP Financier'!$D$19+'BP Financier'!$E$16+'BP Financier'!$E$19+'BP Financier'!$F$16+'BP Financier'!$F$19+'BP Financier'!$G$19+'BP Financier'!$G$16))*V8194","v":{"v":3421672.0459127007,"d":"3,421,672"}},{"v":1963815.672006318,"d":"1,963,816"},{"$f":"'BP Financier'!$G$44*(('BP Financier'!$C$16+'BP Financier'!$D$16+'BP Financier'!$E$16+'BP Financier'!$F$16+'BP Financier'!$G$16)/('BP Financier'!$C$16+'BP Financier'!$C$19+'BP Financier'!$D$16+'BP Financier'!$D$19+'BP Financier'!$E$16+'BP Financier'!$E$19+'BP Financier'!$C$22+'BP Financier'!$D$22+'BP Financier'!$E$22+'BP Financier'!$F$16+'BP Financier'!$F$19+'BP Financier'!$F$22+'BP Financier'!$G$16+'BP Financier'!$G$19+'BP Financier'!$G$22))*$V8194*X8194/(1-$W8194)","v":{"v":249965.28595861018,"d":"249,965"}},{"$f":"'BP Financier'!$G$44*(('BP Financier'!$C$16+'BP Financier'!$D$16+'BP Financier'!$E$16+'BP Financier'!$F$16+'BP Financier'!$G$16)/('BP Financier'!$C$16+'BP Financier'!$C$19+'BP Financier'!$D$16+'BP Financier'!$D$19+'BP Financier'!$E$16+'BP Financier'!$E$19+'BP Financier'!$C$22+'BP Financier'!$D$22+'BP Financier'!$E$22+'BP Financier'!$F$16+'BP Financier'!$F$19+'BP Financier'!$F$22+'BP Financier'!$G$16+'BP Financier'!$G$19+'BP Financier'!$G$22))*$V8194*Y8194/(1-$W8194)","v":{"v":167103.86519884988,"d":"167,104"}},{"$f":"'BP Financier'!$G$44*(('BP Financier'!$C$16+'BP Financier'!$D$16+'BP Financier'!$E$16+'BP Financier'!$F$16+'BP Financier'!$G$16)/('BP Financier'!$C$16+'BP Financier'!$C$19+'BP Financier'!$D$16+'BP Financier'!$D$19+'BP Financier'!$E$16+'BP Financier'!$E$19+'BP Financier'!$C$22+'BP Financier'!$D$22+'BP Financier'!$E$22+'BP Financier'!$F$16+'BP Financier'!$F$19+'BP Financier'!$F$22+'BP Financier'!$G$16+'BP Financier'!$G$19+'BP Financier'!$G$22))*$V8194*Z8194/(1-$W8194)","v":{"v":1307829.424324883,"d":"1,307,829"}},{"$f":"'BP Financier'!$G$44*(('BP Financier'!$C$16+'BP Financier'!$D$16+'BP Financier'!$E$16+'BP Financier'!$F$16+'BP Financier'!$G$16)/('BP Financier'!$C$16+'BP Financier'!$C$19+'BP Financier'!$D$16+'BP Financier'!$D$19+'BP Financier'!$E$16+'BP Financier'!$E$19+'BP Financier'!$C$22+'BP Financier'!$D$22+'BP Financier'!$E$22+'BP Financier'!$F$16+'BP Financier'!$F$19+'BP Financier'!$F$22+'BP Financier'!$G$16+'BP Financier'!$G$19+'BP Financier'!$G$22))*$V8194*AA8194/(1-$W8194)","v":{"v":161579.77048153256,"d":"161,580"}},{"$f":"'BP Financier'!$G$44*(('BP Financier'!$C$16+'BP Financier'!$D$16+'BP Financier'!$E$16+'BP Financier'!$F$16+'BP Financier'!$G$16)/('BP Financier'!$C$16+'BP Financier'!$C$19+'BP Financier'!$D$16+'BP Financier'!$D$19+'BP Financier'!$E$16+'BP Financier'!$E$19+'BP Financier'!$C$22+'BP Financier'!$D$22+'BP Financier'!$E$22+'BP Financier'!$F$16+'BP Financier'!$F$19+'BP Financier'!$F$22+'BP Financier'!$G$16+'BP Financier'!$G$19+'BP Financier'!$G$22))*$V8194*AB8194/(1-$W8194)","v":{"v":77337.32604244292,"d":"77,337"}},null,{"v":0.006,"d":"0.60%"},{"$f":"Actif!$E$28/100","v":{"v":0.28900000000000003,"d":"28.90%"}},{"$f":"Actif!$E$30/100","v":{"v":0.09050000000000001,"d":"9.05%"}},{"$f":"Actif!$E$31/100","v":{"v":0.0605,"d":"6.05%"}},{"$f":"Actif!$E$32/100","v":{"v":0.47350000000000003,"d":"47.35%"}},{"$f":"Actif!$E$33/100","v":{"v":0.0585,"d":"5.85%"}},{"$f":"Actif!$E$29/100","v":{"v":0.027999999999999997,"d":"2.80%"}}]
[null,"#82",34,2028,"H","A_VIE",{"v":0.44999999999999996,"d":"0.45"},{"v":0.38999999999999996,"d":"0.39"},0.6,0.6,85,0,{"$f":"ROUND(Primes!$Q$4*V8195,0)","v":68},{"$f":"'BP Financier'!$G$33*(('BP Financier'!$C$16+'BP Financier'!$D$16+'BP Financier'!$E$16+'BP Financier'!$F$16+'BP Financier'!$G$16)/('BP Financier'!$C$16+'BP Financier'!$C$19+'BP Financier'!$D$16+'BP Financier'!$D$19+'BP Financier'!$E$16+'BP Financier'!$E$19+'BP Financier'!$F$16+'BP Financier'!$F$19+'BP Financier'!$G$19+'BP Financier'!$G$16))*V8195","v":{"v":3421672.0459127007,"d":"3,421,672"}},{"$f":"SUM(P8195:T8195)","v":{"v":1963815.672006318,"d":"1,963,816"}},{"$f":"'BP Financier'!$G$44*(('BP Financier'!$C$16+'BP Financier'!$D$16+'BP Financier'!$E$16+'BP Financier'!$F$16+'BP Financier'!$G$16)/('BP Financier'!$C$16+'BP Financier'!$C$19+'BP Financier'!$D$16+'BP Financier'!$D$19+'BP Financier'!$E$16+'BP Financier'!$E$19+'BP Financier'!$C$22+'BP Financier'!$D$22+'BP Financier'!$E$22+'BP Financier'!$F$16+'BP Financier'!$F$19+'BP Financier'!$F$22+'BP Financier'!$G$16+'BP Financier'!$G$19+'BP Financier'!$G$22))*$V8195*X8195/(1-$W8195)","v":{"v":249965.28595861018,"d":"249,965"}},{"$f":"'BP Financier'!$G$44*(('BP Financier'!$C$16+'BP Financier'!$D$16+'BP Financier'!$E$16+'BP Financier'!$F$16+'BP Financier'!$G$16)/('BP Financier'!$C$16+'BP Financier'!$C$19+'BP Financier'!$D$16+'BP Financier'!$D$19+'BP Financier'!$E$16+'BP Financier'!$E$19+'BP Financier'!$C$22+'BP Financier'!$D$22+'BP Financier'!$E$22+'BP Financier'!$F$16+'BP Financier'!$F$19+'BP Financier'!$F$22+'BP Financier'!$G$16+'BP Financier'!$G$19+'BP Financier'!$G$22))*$V8195*Y8195/(1-$W8195)","v":{"v":167103.86519884988,"d":"167,104"}},{"$f":"'BP Financier'!$G$44*(('BP Financier'!$C$16+'BP Financier'!$D$16+'BP Financier'!$E$16+'BP Financier'!$F$16+'BP Financier'!$G$16)/('BP Financier'!$C$16+'BP Financier'!$C$19+'BP Financier'!$D$16+'BP Financier'!$D$19+'BP Financier'!$E$16+'BP Financier'!$E$19+'BP Financier'!$C$22+'BP Financier'!$D$22+'BP Financier'!$E$22+'BP Financier'!$F$16+'BP Financier'!$F$19+'BP Financier'!$F$22+'BP Financier'!$G$16+'BP Financier'!$G$19+'BP Financier'!$G$22))*$V8195*Z8195/(1-$W8195)","v":{"v":1307829.424324883,"d":"1,307,829"}},{"$f":"'BP Financier'!$G$44*(('BP Financier'!$C$16+'BP Financier'!$D$16+'BP Financier'!$E$16+'BP Financier'!$F$16+'BP Financier'!$G$16)/('BP Financier'!$C$16+'BP Financier'!$C$19+'BP Financier'!$D$16+'BP Financier'!$D$19+'BP Financier'!$E$16+'BP Financier'!$E$19+'BP Financier'!$C$22+'BP Financier'!$D$22+'BP Financier'!$E$22+'BP Financier'!$F$16+'BP Financier'!$F$19+'BP Financier'!$F$22+'BP Financier'!$G$16+'BP Financier'!$G$19+'BP Financier'!$G$22))*$V8195*AA8195/(1-$W8195)","v":{"v":161579.77048153256,"d":"161,580"}},{"$f":"'BP Financier'!$G$44*(('BP Financier'!$C$16+'BP Financier'!$D$16+'BP Financier'!$E$16+'BP Financier'!$F$16+'BP Financier'!$G$16)/('BP Financier'!$C$16+'BP Financier'!$C$19+'BP Financier'!$D$16+'BP Financier'!$D$19+'BP Financier'!$E$16+'BP Financier'!$E$19+'BP Financier'!$C$22+'BP Financier'!$D$22+'BP Financier'!$E$22+'BP Financier'!$F$16+'BP Financier'!$F$19+'BP Financier'!$F$22+'BP Financier'!$G$16+'BP Financier'!$G$19+'BP Financier'!$G$22))*$V8195*AB8195/(1-$W8195)","v":{"v":77337.32604244292,"d":"77,337"}},null,{"v":0.006,"d":"0.60%"},{"$f":"Actif!$E$28/100","v":{"v":0.28900000000000003,"d":"28.90%"}},{"$f":"Actif!$E$30/100","v":{"v":0.09050000000000001,"d":"9.05%"}},{"$f":"Actif!$E$31/100","v":{"v":0.0605,"d":"6.05%"}},{"$f":"Actif!$E$32/100","v":{"v":0.47350000000000003,"d":"47.35%"}},{"$f":"Actif!$E$33/100","v":{"v":0.0585,"d":"5.85%"}},{"$f":"Actif!$E$29/100","v":{"v":0.027999999999999997,"d":"2.80%"}}]
[null,"#83",34,2029,"H","A_VIE",{"v":0.44999999999999996,"d":"0.45"},{"v":0.38999999999999996,"d":"0.39"},0.6,0.6,85,0,{"$f":"ROUND(Primes!$Q$4*V8196,0)","v":68},{"$f":"'BP Financier'!$G$33*(('BP Financier'!$C$16+'BP Financier'!$D$16+'BP Financier'!$E$16+'BP Financier'!$F$16+'BP Financier'!$G$16)/('BP Financier'!$C$16+'BP Financier'!$C$19+'BP Financier'!$D$16+'BP Financier'!$D$19+'BP Financier'!$E$16+'BP Financier'!$E$19+'BP Financier'!$F$16+'BP Financier'!$F$19+'BP Financier'!$G$19+'BP Financier'!$G$16))*V8196","v":{"v":3421672.0459127007,"d":"3,421,672"}},{"v":1963815.672006318,"d":"1,963,816"},{"$f":"'BP Financier'!$G$44*(('BP Financier'!$C$16+'BP Financier'!$D$16+'BP Financier'!$E$16+'BP Financier'!$F$16+'BP Financier'!$G$16)/('BP Financier'!$C$16+'BP Financier'!$C$19+'BP Financier'!$D$16+'BP Financier'!$D$19+'BP Financier'!$E$16+'BP Financier'!$E$19+'BP Financier'!$C$22+'BP Financier'!$D$22+'BP Financier'!$E$22+'BP Financier'!$F$16+'BP Financier'!$F$19+'BP Financier'!$F$22+'BP Financier'!$G$16+'BP Financier'!$G$19+'BP Financier'!$G$22))*$V8196*X8196/(1-$W8196)","v":{"v":249965.28595861018,"d":"249,965"}},{"$f":"'BP Financier'!$G$44*(('BP Financier'!$C$16+'BP Financier'!$D$16+'BP Financier'!$E$16+'BP Financier'!$F$16+'BP Financier'!$G$16)/('BP Financier'!$C$16+'BP Financier'!$C$19+'BP Financier'!$D$16+'BP Financier'!$D$19+'BP Financier'!$E$16+'BP Financier'!$E$19+'BP Financier'!$C$22+'BP Financier'!$D$22+'BP Financier'!$E$22+'BP Financier'!$F$16+'BP Financier'!$F$19+'BP Financier'!$F$22+'BP Financier'!$G$16+'BP Financier'!$G$19+'BP Financier'!$G$22))*$V8196*Y8196/(1-$W8196)","v":{"v":167103.86519884988,"d":"167,104"}},{"$f":"'BP Financier'!$G$44*(('BP Financier'!$C$16+'BP Financier'!$D$16+'BP Financier'!$E$16+'BP Financier'!$F$16+'BP Financier'!$G$16)/('BP Financier'!$C$16+'BP Financier'!$C$19+'BP Financier'!$D$16+'BP Financier'!$D$19+'BP Financier'!$E$16+'BP Financier'!$E$19+'BP Financier'!$C$22+'BP Financier'!$D$22+'BP Financier'!$E$22+'BP Financier'!$F$16+'BP Financier'!$F$19+'BP Financier'!$F$22+'BP Financier'!$G$16+'BP Financier'!$G$19+'BP Financier'!$G$22))*$V8196*Z8196/(1-$W8196)","v":{"v":1307829.424324883,"d":"1,307,829"}},{"$f":"'BP Financier'!$G$44*(('BP Financier'!$C$16+'BP Financier'!$D$16+'BP Financier'!$E$16+'BP Financier'!$F$16+'BP Financier'!$G$16)/('BP Financier'!$C$16+'BP Financier'!$C$19+'BP Financier'!$D$16+'BP Financier'!$D$19+'BP Financier'!$E$16+'BP Financier'!$E$19+'BP Financier'!$C$22+'BP Financier'!$D$22+'BP Financier'!$E$22+'BP Financier'!$F$16+'BP Financier'!$F$19+'BP Financier'!$F$22+'BP Financier'!$G$16+'BP Financier'!$G$19+'BP Financier'!$G$22))*$V8196*AA8196/(1-$W8196)","v":{"v":161579.77048153256,"d":"161,580"}},{"$f":"'BP Financier'!$G$44*(('BP Financier'!$C$16+'BP Financier'!$D$16+'BP Financier'!$E$16+'BP Financier'!$F$16+'BP Financier'!$G$16)/('BP Financier'!$C$16+'BP Financier'!$C$19+'BP Financier'!$D$16+'BP Financier'!$D$19+'BP Financier'!$E$16+'BP Financier'!$E$19+'BP Financier'!$C$22+'BP Financier'!$D$22+'BP Financier'!$E$22+'BP Financier'!$F$16+'BP Financier'!$F$19+'BP Financier'!$F$22+'BP Financier'!$G$16+'BP Financier'!$G$19+'BP Financier'!$G$22))*$V8196*AB8196/(1-$W8196)","v":{"v":77337.32604244292,"d":"77,337"}},null,{"v":0.006,"d":"0.60%"},{"$f":"Actif!$E$28/100","v":{"v":0.28900000000000003,"d":"28.90%"}},{"$f":"Actif!$E$30/100","v":{"v":0.09050000000000001,"d":"9.05%"}},{"$f":"Actif!$E$31/100","v":{"v":0.0605,"d":"6.05%"}},{"$f":"Actif!$E$32/100","v":{"v":0.47350000000000003,"d":"47.35%"}},{"$f":"Actif!$E$33/100","v":{"v":0.0585,"d":"5.85%"}},{"$f":"Actif!$E$29/100","v":{"v":0.027999999999999997,"d":"2.80%"}}]
[null,"#84",34,2030,"H","A_VIE",{"v":0.44999999999999996,"d":"0.45"},{"v":0.38999999999999996,"d":"0.39"},0.6,0.6,85,0,{"$f":"ROUND(Primes!$Q$4*V8197,0)","v":68},{"$f":"'BP Financier'!$G$33*(('BP Financier'!$C$16+'BP Financier'!$D$16+'BP Financier'!$E$16+'BP Financier'!$F$16+'BP Financier'!$G$16)/('BP Financier'!$C$16+'BP Financier'!$C$19+'BP Financier'!$D$16+'BP Financier'!$D$19+'BP Financier'!$E$16+'BP Financier'!$E$19+'BP Financier'!$F$16+'BP Financier'!$F$19+'BP Financier'!$G$19+'BP Financier'!$G$16))*V8197","v":{"v":3421672.0459127007,"d":"3,421,672"}},{"v":1963815.672006318,"d":"1,963,816"},{"$f":"'BP Financier'!$G$44*(('BP Financier'!$C$16+'BP Financier'!$D$16+'BP Financier'!$E$16+'BP Financier'!$F$16+'BP Financier'!$G$16)/('BP Financier'!$C$16+'BP Financier'!$C$19+'BP Financier'!$D$16+'BP Financier'!$D$19+'BP Financier'!$E$16+'BP Financier'!$E$19+'BP Financier'!$C$22+'BP Financier'!$D$22+'BP Financier'!$E$22+'BP Financier'!$F$16+'BP Financier'!$F$19+'BP Financier'!$F$22+'BP Financier'!$G$16+'BP Financier'!$G$19+'BP Financier'!$G$22))*$V8197*X8197/(1-$W8197)","v":{"v":249965.28595861018,"d":"249,965"}},{"$f":"'BP Financier'!$G$44*(('BP Financier'!$C$16+'BP Financier'!$D$16+'BP Financier'!$E$16+'BP Financier'!$F$16+'BP Financier'!$G$16)/('BP Financier'!$C$16+'BP Financier'!$C$19+'BP Financier'!$D$16+'BP Financier'!$D$19+'BP Financier'!$E$16+'BP Financier'!$E$19+'BP Financier'!$C$22+'BP Financier'!$D$22+'BP Financier'!$E$22+'BP Financier'!$F$16+'BP Financier'!$F$19+'BP Financier'!$F$22+'BP Financier'!$G$16+'BP Financier'!$G$19+'BP Financier'!$G$22))*$V8197*Y8197/(1-$W8197)","v":{"v":167103.86519884988,"d":"167,104"}},{"$f":"'BP Financier'!$G$44*(('BP Financier'!$C$16+'BP Financier'!$D$16+'BP Financier'!$E$16+'BP Financier'!$F$16+'BP Financier'!$G$16)/('BP Financier'!$C$16+'BP Financier'!$C$19+'BP Financier'!$D$16+'BP Financier'!$D$19+'BP Financier'!$E$16+'BP Financier'!$E$19+'BP Financier'!$C$22+'BP Financier'!$D$22+'BP Financier'!$E$22+'BP Financier'!$F$16+'BP Financier'!$F$19+'BP Financier'!$F$22+'BP Financier'!$G$16+'BP Financier'!$G$19+'BP Financier'!$G$22))*$V8197*Z8197/(1-$W8197)","v":{"v":1307829.424324883,"d":"1,307,829"}},{"$f":"'BP Financier'!$G$44*(('BP Financier'!$C$16+'BP Financier'!$D$16+'BP Financier'!$E$16+'BP Financier'!$F$16+'BP Financier'!$G$16)/('BP Financier'!$C$16+'BP Financier'!$C$19+'BP Financier'!$D$16+'BP Financier'!$D$19+'BP Financier'!$E$16+'BP Financier'!$E$19+'BP Financier'!$C$22+'BP Financier'!$D$22+'BP Financier'!$E$22+'BP Financier'!$F$16+'BP Financier'!$F$19+'BP Financier'!$F$22+'BP Financier'!$G$16+'BP Financier'!$G$19+'BP Financier'!$G$22))*$V8197*AA8197/(1-$W8197)","v":{"v":161579.77048153256,"d":"161,580"}},{"$f":"'BP Financier'!$G$44*(('BP Financier'!$C$16+'BP Financier'!$D$16+'BP Financier'!$E$16+'BP Financier'!$F$16+'BP Financier'!$G$16)/('BP Financier'!$C$16+'BP Financier'!$C$19+'BP Financier'!$D$16+'BP Financier'!$D$19+'BP Financier'!$E$16+'BP Financier'!$E$19+'BP Financier'!$C$22+'BP Financier'!$D$22+'BP Financier'!$E$22+'BP Financier'!$F$16+'BP Financier'!$F$19+'BP Financier'!$F$22+'BP Financier'!$G$16+'BP Financier'!$G$19+'BP Financier'!$G$22))*$V8197*AB8197/(1-$W8197)","v":{"v":77337.32604244292,"d":"77,337"}},null,{"v":0.006,"d":"0.60%"},{"$f":"Actif!$E$28/100","v":{"v":0.28900000000000003,"d":"28.90%"}},{"$f":"Actif!$E$30/100","v":{"v":0.09050000000000001,"d":"9.05%"}},{"$f":"Actif!$E$31/100","v":{"v":0.0605,"d":"6.05%"}},{"$f":"Actif!$E$32/100","v":{"v":0.47350000000000003,"d":"47.35%"}},{"$f":"Actif!$E$33/100","v":{"v":0.0585,"d":"5.85%"}},{"$f":"Actif!$E$29/100","v":{"v":0.027999999999999997,"d":"2.80%"}}]
[null,"#85",34,2031,"H","A_VIE",{"v":0.44999999999999996,"d":"0.45"},{"v":0.38999999999999996,"d":"0.39"},0.6,0.6,85,0,{"$f":"ROUND(Primes!$Q$4*V8198,0)","v":68},{"$f":"'BP Financier'!$G$33*(('BP Financier'!$C$16+'BP Financier'!$D$16+'BP Financier'!$E$16+'BP Financier'!$F$16+'BP Financier'!$G$16)/('BP Financier'!$C$16+'BP Financier'!$C$19+'BP Financier'!$D$16+'BP Financier'!$D$19+'BP Financier'!$E$16+'BP Financier'!$E$19+'BP Financier'!$F$16+'BP Financier'!$F$19+'BP Financier'!$G$19+'BP Financier'!$G$16))*V8198","v":{"v":3421672.0459127007,"d":"3,421,672"}},{"v":1963815.672006318,"d":"1,963,816"},{"$f":"'BP Financier'!$G$44*(('BP Financier'!$C$16+'BP Financier'!$D$16+'BP Financier'!$E$16+'BP Financier'!$F$16+'BP Financier'!$G$16)/('BP Financier'!$C$16+'BP Financier'!$C$19+'BP Financier'!$D$16+'BP Financier'!$D$19+'BP Financier'!$E$16+'BP Financier'!$E$19+'BP Financier'!$C$22+'BP Financier'!$D$22+'BP Financier'!$E$22+'BP Financier'!$F$16+'BP Financier'!$F$19+'BP Financier'!$F$22+'BP Financier'!$G$16+'BP Financier'!$G$19+'BP Financier'!$G$22))*$V8198*X8198/(1-$W8198)","v":{"v":249965.28595861018,"d":"249,965"}},{"$f":"'BP Financier'!$G$44*(('BP Financier'!$C$16+'BP Financier'!$D$16+'BP Financier'!$E$16+'BP Financier'!$F$16+'BP Financier'!$G$16)/('BP Financier'!$C$16+'BP Financier'!$C$19+'BP Financier'!$D$16+'BP Financier'!$D$19+'BP Financier'!$E$16+'BP Financier'!$E$19+'BP Financier'!$C$22+'BP Financier'!$D$22+'BP Financier'!$E$22+'BP Financier'!$F$16+'BP Financier'!$F$19+'BP Financier'!$F$22+'BP Financier'!$G$16+'BP Financier'!$G$19+'BP Financier'!$G$22))*$V8198*Y8198/(1-$W8198)","v":{"v":167103.86519884988,"d":"167,104"}},{"$f":"'BP Financier'!$G$44*(('BP Financier'!$C$16+'BP Financier'!$D$16+'BP Financier'!$E$16+'BP Financier'!$F$16+'BP Financier'!$G$16)/('BP Financier'!$C$16+'BP Financier'!$C$19+'BP Financier'!$D$16+'BP Financier'!$D$19+'BP Financier'!$E$16+'BP Financier'!$E$19+'BP Financier'!$C$22+'BP Financier'!$D$22+'BP Financier'!$E$22+'BP Financier'!$F$16+'BP Financier'!$F$19+'BP Financier'!$F$22+'BP Financier'!$G$16+'BP Financier'!$G$19+'BP Financier'!$G$22))*$V8198*Z8198/(1-$W8198)","v":{"v":1307829.424324883,"d":"1,307,829"}},{"$f":"'BP Financier'!$G$44*(('BP Financier'!$C$16+'BP Financier'!$D$16+'BP Financier'!$E$16+'BP Financier'!$F$16+'BP Financier'!$G$16)/('BP Financier'!$C$16+'BP Financier'!$C$19+'BP Financier'!$D$16+'BP Financier'!$D$19+'BP Financier'!$E$16+'BP Financier'!$E$19+'BP Financier'!$C$22+'BP Financier'!$D$22+'BP Financier'!$E$22+'BP Financier'!$F$16+'BP Financier'!$F$19+'BP Financier'!$F$22+'BP Financier'!$G$16+'BP Financier'!$G$19+'BP Financier'!$G$22))*$V8198*AA8198/(1-$W8198)","v":{"v":161579.77048153256,"d":"161,580"}},{"$f":"'BP Financier'!$G$44*(('BP Financier'!$C$16+'BP Financier'!$D$16+'BP Financier'!$E$16+'BP Financier'!$F$16+'BP Financier'!$G$16)/('BP Financier'!$C$16+'BP Financier'!$C$19+'BP Financier'!$D$16+'BP Financier'!$D$19+'BP Financier'!$E$16+'BP Financier'!$E$19+'BP Financier'!$C$22+'BP Financier'!$D$22+'BP Financier'!$E$22+'BP Financier'!$F$16+'BP Financier'!$F$19+'BP Financier'!$F$22+'BP Financier'!$G$16+'BP Financier'!$G$19+'BP Financier'!$G$22))*$V8198*AB8198/(1-$W8198)","v":{"v":77337.32604244292,"d":"77,337"}},null,{"v":0.006,"d":"0.60%"},{"$f":"Actif!$E$28/100","v":{"v":0.28900000000000003,"d":"28.90%"}},{"$f":"Actif!$E$30/100","v":{"v":0.09050000000000001,"d":"9.05%"}},{"$f":"Actif!$E$31/100","v":{"v":0.0605,"d":"6.05%"}},{"$f":"Actif!$E$32/100","v":{"v":0.47350000000000003,"d":"47.35%"}},{"$f":"Actif!$E$33/100","v":{"v":0.0585,"d":"5.85%"}},{"$f":"Actif!$E$29/100","v":{"v":0.027999999999999997,"d":"2.80%"}}]
[null,"#86",35,2026,"F","A_VIE",{"v":0.44999999999999996,"d":"0.45"},{"v":0.38999999999999996,"d":"0.39"},0.6,0.6,85,0,{"$f":"ROUND(Primes!$Q$4*V8199,0)","v":68},{"$f":"'BP Financier'!$G$33*(('BP Financier'!$C$16+'BP Financier'!$D$16+'BP Financier'!$E$16+'BP Financier'!$F$16+'BP Financier'!$G$16)/('BP Financier'!$C$16+'BP Financier'!$C$19+'BP Financier'!$D$16+'BP Financier'!$D$19+'BP Financier'!$E$16+'BP Financier'!$E$19+'BP Financier'!$F$16+'BP Financier'!$F$19+'BP Financier'!$G$19+'BP Financier'!$G$16))*V8199","v":{"v":3421672.0459127007,"d":"3,421,672"}},{"v":1963815.672006318,"d":"1,963,816"},{"$f":"'BP Financier'!$G$44*(('BP Financier'!$C$16+'BP Financier'!$D$16+'BP Financier'!$E$16+'BP Financier'!$F$16+'BP Financier'!$G$16)/('BP Financier'!$C$16+'BP Financier'!$C$19+'BP Financier'!$D$16+'BP Financier'!$D$19+'BP Financier'!$E$16+'BP Financier'!$E$19+'BP Financier'!$C$22+'BP Financier'!$D$22+'BP Financier'!$E$22+'BP Financier'!$F$16+'BP Financier'!$F$19+'BP Financier'!$F$22+'BP Financier'!$G$16+'BP Financier'!$G$19+'BP Financier'!$G$22))*$V8199*X8199/(1-$W8199)","v":{"v":249965.28595861018,"d":"249,965"}},{"$f":"'BP Financier'!$G$44*(('BP Financier'!$C$16+'BP Financier'!$D$16+'BP Financier'!$E$16+'BP Financier'!$F$16+'BP Financier'!$G$16)/('BP Financier'!$C$16+'BP Financier'!$C$19+'BP Financier'!$D$16+'BP Financier'!$D$19+'BP Financier'!$E$16+'BP Financier'!$E$19+'BP Financier'!$C$22+'BP Financier'!$D$22+'BP Financier'!$E$22+'BP Financier'!$F$16+'BP Financier'!$F$19+'BP Financier'!$F$22+'BP Financier'!$G$16+'BP Financier'!$G$19+'BP Financier'!$G$22))*$V8199*Y8199/(1-$W8199)","v":{"v":167103.86519884988,"d":"167,104"}},{"$f":"'BP Financier'!$G$44*(('BP Financier'!$C$16+'BP Financier'!$D$16+'BP Financier'!$E$16+'BP Financier'!$F$16+'BP Financier'!$G$16)/('BP Financier'!$C$16+'BP Financier'!$C$19+'BP Financier'!$D$16+'BP Financier'!$D$19+'BP Financier'!$E$16+'BP Financier'!$E$19+'BP Financier'!$C$22+'BP Financier'!$D$22+'BP Financier'!$E$22+'BP Financier'!$F$16+'BP Financier'!$F$19+'BP Financier'!$F$22+'BP Financier'!$G$16+'BP Financier'!$G$19+'BP Financier'!$G$22))*$V8199*Z8199/(1-$W8199)","v":{"v":1307829.424324883,"d":"1,307,829"}},{"$f":"'BP Financier'!$G$44*(('BP Financier'!$C$16+'BP Financier'!$D$16+'BP Financier'!$E$16+'BP Financier'!$F$16+'BP Financier'!$G$16)/('BP Financier'!$C$16+'BP Financier'!$C$19+'BP Financier'!$D$16+'BP Financier'!$D$19+'BP Financier'!$E$16+'BP Financier'!$E$19+'BP Financier'!$C$22+'BP Financier'!$D$22+'BP Financier'!$E$22+'BP Financier'!$F$16+'BP Financier'!$F$19+'BP Financier'!$F$22+'BP Financier'!$G$16+'BP Financier'!$G$19+'BP Financier'!$G$22))*$V8199*AA8199/(1-$W8199)","v":{"v":161579.77048153256,"d":"161,580"}},{"$f":"'BP Financier'!$G$44*(('BP Financier'!$C$16+'BP Financier'!$D$16+'BP Financier'!$E$16+'BP Financier'!$F$16+'BP Financier'!$G$16)/('BP Financier'!$C$16+'BP Financier'!$C$19+'BP Financier'!$D$16+'BP Financier'!$D$19+'BP Financier'!$E$16+'BP Financier'!$E$19+'BP Financier'!$C$22+'BP Financier'!$D$22+'BP Financier'!$E$22+'BP Financier'!$F$16+'BP Financier'!$F$19+'BP Financier'!$F$22+'BP Financier'!$G$16+'BP Financier'!$G$19+'BP Financier'!$G$22))*$V8199*AB8199/(1-$W8199)","v":{"v":77337.32604244292,"d":"77,337"}},null,{"v":0.006,"d":"0.60%"},{"$f":"Actif!$E$28/100","v":{"v":0.28900000000000003,"d":"28.90%"}},{"$f":"Actif!$E$30/100","v":{"v":0.09050000000000001,"d":"9.05%"}},{"$f":"Actif!$E$31/100","v":{"v":0.0605,"d":"6.05%"}},{"$f":"Actif!$E$32/100","v":{"v":0.47350000000000003,"d":"47.35%"}},{"$f":"Actif!$E$33/100","v":{"v":0.0585,"d":"5.85%"}},{"$f":"Actif!$E$29/100","v":{"v":0.027999999999999997,"d":"2.80%"}}]
[null,"#87",35,2028,"F","A_VIE",{"v":0.44999999999999996,"d":"0.45"},{"v":0.38999999999999996,"d":"0.39"},0.6,0.6,85,0,{"$f":"ROUND(Primes!$Q$4*V8200,0)","v":68},{"$f":"'BP Financier'!$G$33*(('BP Financier'!$C$16+'BP Financier'!$D$16+'BP Financier'!$E$16+'BP Financier'!$F$16+'BP Financier'!$G$16)/('BP Financier'!$C$16+'BP Financier'!$C$19+'BP Financier'!$D$16+'BP Financier'!$D$19+'BP Financier'!$E$16+'BP Financier'!$E$19+'BP Financier'!$F$16+'BP Financier'!$F$19+'BP Financier'!$G$19+'BP Financier'!$G$16))*V8200","v":{"v":3421672.0459127007,"d":"3,421,672"}},{"v":1963815.672006318,"d":"1,963,816"},{"$f":"'BP Financier'!$G$44*(('BP Financier'!$C$16+'BP Financier'!$D$16+'BP Financier'!$E$16+'BP Financier'!$F$16+'BP Financier'!$G$16)/('BP Financier'!$C$16+'BP Financier'!$C$19+'BP Financier'!$D$16+'BP Financier'!$D$19+'BP Financier'!$E$16+'BP Financier'!$E$19+'BP Financier'!$C$22+'BP Financier'!$D$22+'BP Financier'!$E$22+'BP Financier'!$F$16+'BP Financier'!$F$19+'BP Financier'!$F$22+'BP Financier'!$G$16+'BP Financier'!$G$19+'BP Financier'!$G$22))*$V8200*X8200/(1-$W8200)","v":{"v":249965.28595861018,"d":"249,965"}},{"$f":"'BP Financier'!$G$44*(('BP Financier'!$C$16+'BP Financier'!$D$16+'BP Financier'!$E$16+'BP Financier'!$F$16+'BP Financier'!$G$16)/('BP Financier'!$C$16+'BP Financier'!$C$19+'BP Financier'!$D$16+'BP Financier'!$D$19+'BP Financier'!$E$16+'BP Financier'!$E$19+'BP Financier'!$C$22+'BP Financier'!$D$22+'BP Financier'!$E$22+'BP Financier'!$F$16+'BP Financier'!$F$19+'BP Financier'!$F$22+'BP Financier'!$G$16+'BP Financier'!$G$19+'BP Financier'!$G$22))*$V8200*Y8200/(1-$W8200)","v":{"v":167103.86519884988,"d":"167,104"}},{"$f":"'BP Financier'!$G$44*(('BP Financier'!$C$16+'BP Financier'!$D$16+'BP Financier'!$E$16+'BP Financier'!$F$16+'BP Financier'!$G$16)/('BP Financier'!$C$16+'BP Financier'!$C$19+'BP Financier'!$D$16+'BP Financier'!$D$19+'BP Financier'!$E$16+'BP Financier'!$E$19+'BP Financier'!$C$22+'BP Financier'!$D$22+'BP Financier'!$E$22+'BP Financier'!$F$16+'BP Financier'!$F$19+'BP Financier'!$F$22+'BP Financier'!$G$16+'BP Financier'!$G$19+'BP Financier'!$G$22))*$V8200*Z8200/(1-$W8200)","v":{"v":1307829.424324883,"d":"1,307,829"}},{"$f":"'BP Financier'!$G$44*(('BP Financier'!$C$16+'BP Financier'!$D$16+'BP Financier'!$E$16+'BP Financier'!$F$16+'BP Financier'!$G$16)/('BP Financier'!$C$16+'BP Financier'!$C$19+'BP Financier'!$D$16+'BP Financier'!$D$19+'BP Financier'!$E$16+'BP Financier'!$E$19+'BP Financier'!$C$22+'BP Financier'!$D$22+'BP Financier'!$E$22+'BP Financier'!$F$16+'BP Financier'!$F$19+'BP Financier'!$F$22+'BP Financier'!$G$16+'BP Financier'!$G$19+'BP Financier'!$G$22))*$V8200*AA8200/(1-$W8200)","v":{"v":161579.77048153256,"d":"161,580"}},{"$f":"'BP Financier'!$G$44*(('BP Financier'!$C$16+'BP Financier'!$D$16+'BP Financier'!$E$16+'BP Financier'!$F$16+'BP Financier'!$G$16)/('BP Financier'!$C$16+'BP Financier'!$C$19+'BP Financier'!$D$16+'BP Financier'!$D$19+'BP Financier'!$E$16+'BP Financier'!$E$19+'BP Financier'!$C$22+'BP Financier'!$D$22+'BP Financier'!$E$22+'BP Financier'!$F$16+'BP Financier'!$F$19+'BP Financier'!$F$22+'BP Financier'!$G$16+'BP Financier'!$G$19+'BP Financier'!$G$22))*$V8200*AB8200/(1-$W8200)","v":{"v":77337.32604244292,"d":"77,337"}},null,{"v":0.006,"d":"0.60%"},{"$f":"Actif!$E$28/100","v":{"v":0.28900000000000003,"d":"28.90%"}},{"$f":"Actif!$E$30/100","v":{"v":0.09050000000000001,"d":"9.05%"}},{"$f":"Actif!$E$31/100","v":{"v":0.0605,"d":"6.05%"}},{"$f":"Actif!$E$32/100","v":{"v":0.47350000000000003,"d":"47.35%"}},{"$f":"Actif!$E$33/100","v":{"v":0.0585,"d":"5.85%"}},{"$f":"Actif!$E$29/100","v":{"v":0.027999999999999997,"d":"2.80%"}}]
[null,"#88",35,2029,"F","A_VIE",{"v":0.44999999999999996,"d":"0.45"},{"v":0.38999999999999996,"d":"0.39"},0.6,0.6,85,0,{"$f":"ROUND(Primes!$Q$4*V8201,0)","v":68},{"$f":"'BP Financier'!$G$33*(('BP Financier'!$C$16+'BP Financier'!$D$16+'BP Financier'!$E$16+'BP Financier'!$F$16+'BP Financier'!$G$16)/('BP Financier'!$C$16+'BP Financier'!$C$19+'BP Financier'!$D$16+'BP Financier'!$D$19+'BP Financier'!$E$16+'BP Financier'!$E$19+'BP Financier'!$F$16+'BP Financier'!$F$19+'BP Financier'!$G$19+'BP Financier'!$G$16))*V8201","v":{"v":3421672.0459127007,"d":"3,421,672"}},{"v":1963815.672006318,"d":"1,963,816"},{"$f":"'BP Financier'!$G$44*(('BP Financier'!$C$16+'BP Financier'!$D$16+'BP Financier'!$E$16+'BP Financier'!$F$16+'BP Financier'!$G$16)/('BP Financier'!$C$16+'BP Financier'!$C$19+'BP Financier'!$D$16+'BP Financier'!$D$19+'BP Financier'!$E$16+'BP Financier'!$E$19+'BP Financier'!$C$22+'BP Financier'!$D$22+'BP Financier'!$E$22+'BP Financier'!$F$16+'BP Financier'!$F$19+'BP Financier'!$F$22+'BP Financier'!$G$16+'BP Financier'!$G$19+'BP Financier'!$G$22))*$V8201*X8201/(1-$W8201)","v":{"v":249965.28595861018,"d":"249,965"}},{"$f":"'BP Financier'!$G$44*(('BP Financier'!$C$16+'BP Financier'!$D$16+'BP Financier'!$E$16+'BP Financier'!$F$16+'BP Financier'!$G$16)/('BP Financier'!$C$16+'BP Financier'!$C$19+'BP Financier'!$D$16+'BP Financier'!$D$19+'BP Financier'!$E$16+'BP Financier'!$E$19+'BP Financier'!$C$22+'BP Financier'!$D$22+'BP Financier'!$E$22+'BP Financier'!$F$16+'BP Financier'!$F$19+'BP Financier'!$F$22+'BP Financier'!$G$16+'BP Financier'!$G$19+'BP Financier'!$G$22))*$V8201*Y8201/(1-$W8201)","v":{"v":167103.86519884988,"d":"167,104"}},{"$f":"'BP Financier'!$G$44*(('BP Financier'!$C$16+'BP Financier'!$D$16+'BP Financier'!$E$16+'BP Financier'!$F$16+'BP Financier'!$G$16)/('BP Financier'!$C$16+'BP Financier'!$C$19+'BP Financier'!$D$16+'BP Financier'!$D$19+'BP Financier'!$E$16+'BP Financier'!$E$19+'BP Financier'!$C$22+'BP Financier'!$D$22+'BP Financier'!$E$22+'BP Financier'!$F$16+'BP Financier'!$F$19+'BP Financier'!$F$22+'BP Financier'!$G$16+'BP Financier'!$G$19+'BP Financier'!$G$22))*$V8201*Z8201/(1-$W8201)","v":{"v":1307829.424324883,"d":"1,307,829"}},{"$f":"'BP Financier'!$G$44*(('BP Financier'!$C$16+'BP Financier'!$D$16+'BP Financier'!$E$16+'BP Financier'!$F$16+'BP Financier'!$G$16)/('BP Financier'!$C$16+'BP Financier'!$C$19+'BP Financier'!$D$16+'BP Financier'!$D$19+'BP Financier'!$E$16+'BP Financier'!$E$19+'BP Financier'!$C$22+'BP Financier'!$D$22+'BP Financier'!$E$22+'BP Financier'!$F$16+'BP Financier'!$F$19+'BP Financier'!$F$22+'BP Financier'!$G$16+'BP Financier'!$G$19+'BP Financier'!$G$22))*$V8201*AA8201/(1-$W8201)","v":{"v":161579.77048153256,"d":"161,580"}},{"$f":"'BP Financier'!$G$44*(('BP Financier'!$C$16+'BP Financier'!$D$16+'BP Financier'!$E$16+'BP Financier'!$F$16+'BP Financier'!$G$16)/('BP Financier'!$C$16+'BP Financier'!$C$19+'BP Financier'!$D$16+'BP Financier'!$D$19+'BP Financier'!$E$16+'BP Financier'!$E$19+'BP Financier'!$C$22+'BP Financier'!$D$22+'BP Financier'!$E$22+'BP Financier'!$F$16+'BP Financier'!$F$19+'BP Financier'!$F$22+'BP Financier'!$G$16+'BP Financier'!$G$19+'BP Financier'!$G$22))*$V8201*AB8201/(1-$W8201)","v":{"v":77337.32604244292,"d":"77,337"}},null,{"v":0.006,"d":"0.60%"},{"$f":"Actif!$E$28/100","v":{"v":0.28900000000000003,"d":"28.90%"}},{"$f":"Actif!$E$30/100","v":{"v":0.09050000000000001,"d":"9.05%"}},{"$f":"Actif!$E$31/100","v":{"v":0.0605,"d":"6.05%"}},{"$f":"Actif!$E$32/100","v":{"v":0.47350000000000003,"d":"47.35%"}},{"$f":"Actif!$E$33/100","v":{"v":0.0585,"d":"5.85%"}},{"$f":"Actif!$E$29/100","v":{"v":0.027999999999999997,"d":"2.80%"}}]
[null,"#89",35,2030,"F","A_VIE",{"v":0.44999999999999996,"d":"0.45"},{"v":0.38999999999999996,"d":"0.39"},0.6,0.6,85,0,{"$f":"ROUND(Primes!$Q$4*V8202,0)","v":68},{"$f":"'BP Financier'!$G$33*(('BP Financier'!$C$16+'BP Financier'!$D$16+'BP Financier'!$E$16+'BP Financier'!$F$16+'BP Financier'!$G$16)/('BP Financier'!$C$16+'BP Financier'!$C$19+'BP Financier'!$D$16+'BP Financier'!$D$19+'BP Financier'!$E$16+'BP Financier'!$E$19+'BP Financier'!$F$16+'BP Financier'!$F$19+'BP Financier'!$G$19+'BP Financier'!$G$16))*V8202","v":{"v":3421672.0459127007,"d":"3,421,672"}},{"v":1963815.672006318,"d":"1,963,816"},{"$f":"'BP Financier'!$G$44*(('BP Financier'!$C$16+'BP Financier'!$D$16+'BP Financier'!$E$16+'BP Financier'!$F$16+'BP Financier'!$G$16)/('BP Financier'!$C$16+'BP Financier'!$C$19+'BP Financier'!$D$16+'BP Financier'!$D$19+'BP Financier'!$E$16+'BP Financier'!$E$19+'BP Financier'!$C$22+'BP Financier'!$D$22+'BP Financier'!$E$22+'BP Financier'!$F$16+'BP Financier'!$F$19+'BP Financier'!$F$22+'BP Financier'!$G$16+'BP Financier'!$G$19+'BP Financier'!$G$22))*$V8202*X8202/(1-$W8202)","v":{"v":249965.28595861018,"d":"249,965"}},{"$f":"'BP Financier'!$G$44*(('BP Financier'!$C$16+'BP Financier'!$D$16+'BP Financier'!$E$16+'BP Financier'!$F$16+'BP Financier'!$G$16)/('BP Financier'!$C$16+'BP Financier'!$C$19+'BP Financier'!$D$16+'BP Financier'!$D$19+'BP Financier'!$E$16+'BP Financier'!$E$19+'BP Financier'!$C$22+'BP Financier'!$D$22+'BP Financier'!$E$22+'BP Financier'!$F$16+'BP Financier'!$F$19+'BP Financier'!$F$22+'BP Financier'!$G$16+'BP Financier'!$G$19+'BP Financier'!$G$22))*$V8202*Y8202/(1-$W8202)","v":{"v":167103.86519884988,"d":"167,104"}},{"$f":"'BP Financier'!$G$44*(('BP Financier'!$C$16+'BP Financier'!$D$16+'BP Financier'!$E$16+'BP Financier'!$F$16+'BP Financier'!$G$16)/('BP Financier'!$C$16+'BP Financier'!$C$19+'BP Financier'!$D$16+'BP Financier'!$D$19+'BP Financier'!$E$16+'BP Financier'!$E$19+'BP Financier'!$C$22+'BP Financier'!$D$22+'BP Financier'!$E$22+'BP Financier'!$F$16+'BP Financier'!$F$19+'BP Financier'!$F$22+'BP Financier'!$G$16+'BP Financier'!$G$19+'BP Financier'!$G$22))*$V8202*Z8202/(1-$W8202)","v":{"v":1307829.424324883,"d":"1,307,829"}},{"$f":"'BP Financier'!$G$44*(('BP Financier'!$C$16+'BP Financier'!$D$16+'BP Financier'!$E$16+'BP Financier'!$F$16+'BP Financier'!$G$16)/('BP Financier'!$C$16+'BP Financier'!$C$19+'BP Financier'!$D$16+'BP Financier'!$D$19+'BP Financier'!$E$16+'BP Financier'!$E$19+'BP Financier'!$C$22+'BP Financier'!$D$22+'BP Financier'!$E$22+'BP Financier'!$F$16+'BP Financier'!$F$19+'BP Financier'!$F$22+'BP Financier'!$G$16+'BP Financier'!$G$19+'BP Financier'!$G$22))*$V8202*AA8202/(1-$W8202)","v":{"v":161579.77048153256,"d":"161,580"}},{"$f":"'BP Financier'!$G$44*(('BP Financier'!$C$16+'BP Financier'!$D$16+'BP Financier'!$E$16+'BP Financier'!$F$16+'BP Financier'!$G$16)/('BP Financier'!$C$16+'BP Financier'!$C$19+'BP Financier'!$D$16+'BP Financier'!$D$19+'BP Financier'!$E$16+'BP Financier'!$E$19+'BP Financier'!$C$22+'BP Financier'!$D$22+'BP Financier'!$E$22+'BP Financier'!$F$16+'BP Financier'!$F$19+'BP Financier'!$F$22+'BP Financier'!$G$16+'BP Financier'!$G$19+'BP Financier'!$G$22))*$V8202*AB8202/(1-$W8202)","v":{"v":77337.32604244292,"d":"77,337"}},null,{"v":0.006,"d":"0.60%"},{"$f":"Actif!$E$28/100","v":{"v":0.28900000000000003,"d":"28.90%"}},{"$f":"Actif!$E$30/100","v":{"v":0.09050000000000001,"d":"9.05%"}},{"$f":"Actif!$E$31/100","v":{"v":0.0605,"d":"6.05%"}},{"$f":"Actif!$E$32/100","v":{"v":0.47350000000000003,"d":"47.35%"}},{"$f":"Actif!$E$33/100","v":{"v":0.0585,"d":"5.85%"}},{"$f":"Actif!$E$29/100","v":{"v":0.027999999999999997,"d":"2.80%"}}]
[null,"#90",35,2031,"F","A_VIE",{"v":0.44999999999999996,"d":"0.45"},{"v":0.38999999999999996,"d":"0.39"},0.6,0.6,85,0,{"$f":"ROUND(Primes!$Q$4*V8203,0)","v":68},{"$f":"'BP Financier'!$G$33*(('BP Financier'!$C$16+'BP Financier'!$D$16+'BP Financier'!$E$16+'BP Financier'!$F$16+'BP Financier'!$G$16)/('BP Financier'!$C$16+'BP Financier'!$C$19+'BP Financier'!$D$16+'BP Financier'!$D$19+'BP Financier'!$E$16+'BP Financier'!$E$19+'BP Financier'!$F$16+'BP Financier'!$F$19+'BP Financier'!$G$19+'BP Financier'!$G$16))*V8203","v":{"v":3421672.0459127007,"d":"3,421,672"}},{"v":1963815.672006318,"d":"1,963,816"},{"$f":"'BP Financier'!$G$44*(('BP Financier'!$C$16+'BP Financier'!$D$16+'BP Financier'!$E$16+'BP Financier'!$F$16+'BP Financier'!$G$16)/('BP Financier'!$C$16+'BP Financier'!$C$19+'BP Financier'!$D$16+'BP Financier'!$D$19+'BP Financier'!$E$16+'BP Financier'!$E$19+'BP Financier'!$C$22+'BP Financier'!$D$22+'BP Financier'!$E$22+'BP Financier'!$F$16+'BP Financier'!$F$19+'BP Financier'!$F$22+'BP Financier'!$G$16+'BP Financier'!$G$19+'BP Financier'!$G$22))*$V8203*X8203/(1-$W8203)","v":{"v":249965.28595861018,"d":"249,965"}},{"$f":"'BP Financier'!$G$44*(('BP Financier'!$C$16+'BP Financier'!$D$16+'BP Financier'!$E$16+'BP Financier'!$F$16+'BP Financier'!$G$16)/('BP Financier'!$C$16+'BP Financier'!$C$19+'BP Financier'!$D$16+'BP Financier'!$D$19+'BP Financier'!$E$16+'BP Financier'!$E$19+'BP Financier'!$C$22+'BP Financier'!$D$22+'BP Financier'!$E$22+'BP Financier'!$F$16+'BP Financier'!$F$19+'BP Financier'!$F$22+'BP Financier'!$G$16+'BP Financier'!$G$19+'BP Financier'!$G$22))*$V8203*Y8203/(1-$W8203)","v":{"v":167103.86519884988,"d":"167,104"}},{"$f":"'BP Financier'!$G$44*(('BP Financier'!$C$16+'BP Financier'!$D$16+'BP Financier'!$E$16+'BP Financier'!$F$16+'BP Financier'!$G$16)/('BP Financier'!$C$16+'BP Financier'!$C$19+'BP Financier'!$D$16+'BP Financier'!$D$19+'BP Financier'!$E$16+'BP Financier'!$E$19+'BP Financier'!$C$22+'BP Financier'!$D$22+'BP Financier'!$E$22+'BP Financier'!$F$16+'BP Financier'!$F$19+'BP Financier'!$F$22+'BP Financier'!$G$16+'BP Financier'!$G$19+'BP Financier'!$G$22))*$V8203*Z8203/(1-$W8203)","v":{"v":1307829.424324883,"d":"1,307,829"}},{"$f":"'BP Financier'!$G$44*(('BP Financier'!$C$16+'BP Financier'!$D$16+'BP Financier'!$E$16+'BP Financier'!$F$16+'BP Financier'!$G$16)/('BP Financier'!$C$16+'BP Financier'!$C$19+'BP Financier'!$D$16+'BP Financier'!$D$19+'BP Financier'!$E$16+'BP Financier'!$E$19+'BP Financier'!$C$22+'BP Financier'!$D$22+'BP Financier'!$E$22+'BP Financier'!$F$16+'BP Financier'!$F$19+'BP Financier'!$F$22+'BP Financier'!$G$16+'BP Financier'!$G$19+'BP Financier'!$G$22))*$V8203*AA8203/(1-$W8203)","v":{"v":161579.77048153256,"d":"161,580"}},{"$f":"'BP Financier'!$G$44*(('BP Financier'!$C$16+'BP Financier'!$D$16+'BP Financier'!$E$16+'BP Financier'!$F$16+'BP Financier'!$G$16)/('BP Financier'!$C$16+'BP Financier'!$C$19+'BP Financier'!$D$16+'BP Financier'!$D$19+'BP Financier'!$E$16+'BP Financier'!$E$19+'BP Financier'!$C$22+'BP Financier'!$D$22+'BP Financier'!$E$22+'BP Financier'!$F$16+'BP Financier'!$F$19+'BP Financier'!$F$22+'BP Financier'!$G$16+'BP Financier'!$G$19+'BP Financier'!$G$22))*$V8203*AB8203/(1-$W8203)","v":{"v":77337.32604244292,"d":"77,337"}},null,{"v":0.006,"d":"0.60%"},{"$f":"Actif!$E$28/100","v":{"v":0.28900000000000003,"d":"28.90%"}},{"$f":"Actif!$E$30/100","v":{"v":0.09050000000000001,"d":"9.05%"}},{"$f":"Actif!$E$31/100","v":{"v":0.0605,"d":"6.05%"}},{"$f":"Actif!$E$32/100","v":{"v":0.47350000000000003,"d":"47.35%"}},{"$f":"Actif!$E$33/100","v":{"v":0.0585,"d":"5.85%"}},{"$f":"Actif!$E$29/100","v":{"v":0.027999999999999997,"d":"2.80%"}}]
[null,"#91",36,2026,"H","A_VIE",{"v":0.44999999999999996,"d":"0.45"},{"v":0.38999999999999996,"d":"0.39"},0.6,0.6,85,0,{"$f":"ROUND(Primes!$Q$4*V8204,0)","v":11},{"$f":"'BP Financier'!$G$33*(('BP Financier'!$C$16+'BP Financier'!$D$16+'BP Financier'!$E$16+'BP Financier'!$F$16+'BP Financier'!$G$16)/('BP Financier'!$C$16+'BP Financier'!$C$19+'BP Financier'!$D$16+'BP Financier'!$D$19+'BP Financier'!$E$16+'BP Financier'!$E$19+'BP Financier'!$F$16+'BP Financier'!$F$19+'BP Financier'!$G$19+'BP Financier'!$G$16))*V8204","v":{"v":570278.6743187835,"d":"570,279"}},{"v":327302.6120010531,"d":"327,303"},{"$f":"'BP Financier'!$G$44*(('BP Financier'!$C$16+'BP Financier'!$D$16+'BP Financier'!$E$16+'BP Financier'!$F$16+'BP Financier'!$G$16)/('BP Financier'!$C$16+'BP Financier'!$C$19+'BP Financier'!$D$16+'BP Financier'!$D$19+'BP Financier'!$E$16+'BP Financier'!$E$19+'BP Financier'!$C$22+'BP Financier'!$D$22+'BP Financier'!$E$22+'BP Financier'!$F$16+'BP Financier'!$F$19+'BP Financier'!$F$22+'BP Financier'!$G$16+'BP Financier'!$G$19+'BP Financier'!$G$22))*$V8204*X8204/(1-$W8204)","v":{"v":41660.880993101695,"d":"41,661"}},{"$f":"'BP Financier'!$G$44*(('BP Financier'!$C$16+'BP Financier'!$D$16+'BP Financier'!$E$16+'BP Financier'!$F$16+'BP Financier'!$G$16)/('BP Financier'!$C$16+'BP Financier'!$C$19+'BP Financier'!$D$16+'BP Financier'!$D$19+'BP Financier'!$E$16+'BP Financier'!$E$19+'BP Financier'!$C$22+'BP Financier'!$D$22+'BP Financier'!$E$22+'BP Financier'!$F$16+'BP Financier'!$F$19+'BP Financier'!$F$22+'BP Financier'!$G$16+'BP Financier'!$G$19+'BP Financier'!$G$22))*$V8204*Y8204/(1-$W8204)","v":{"v":27850.644199808314,"d":"27,851"}},{"$f":"'BP Financier'!$G$44*(('BP Financier'!$C$16+'BP Financier'!$D$16+'BP Financier'!$E$16+'BP Financier'!$F$16+'BP Financier'!$G$16)/('BP Financier'!$C$16+'BP Financier'!$C$19+'BP Financier'!$D$16+'BP Financier'!$D$19+'BP Financier'!$E$16+'BP Financier'!$E$19+'BP Financier'!$C$22+'BP Financier'!$D$22+'BP Financier'!$E$22+'BP Financier'!$F$16+'BP Financier'!$F$19+'BP Financier'!$F$22+'BP Financier'!$G$16+'BP Financier'!$G$19+'BP Financier'!$G$22))*$V8204*Z8204/(1-$W8204)","v":{"v":217971.57072081385,"d":"217,972"}},{"$f":"'BP Financier'!$G$44*(('BP Financier'!$C$16+'BP Financier'!$D$16+'BP Financier'!$E$16+'BP Financier'!$F$16+'BP Financier'!$G$16)/('BP Financier'!$C$16+'BP Financier'!$C$19+'BP Financier'!$D$16+'BP Financier'!$D$19+'BP Financier'!$E$16+'BP Financier'!$E$19+'BP Financier'!$C$22+'BP Financier'!$D$22+'BP Financier'!$E$22+'BP Financier'!$F$16+'BP Financier'!$F$19+'BP Financier'!$F$22+'BP Financier'!$G$16+'BP Financier'!$G$19+'BP Financier'!$G$22))*$V8204*AA8204/(1-$W8204)","v":{"v":26929.96174692209,"d":"26,930"}},{"$f":"'BP Financier'!$G$44*(('BP Financier'!$C$16+'BP Financier'!$D$16+'BP Financier'!$E$16+'BP Financier'!$F$16+'BP Financier'!$G$16)/('BP Financier'!$C$16+'BP Financier'!$C$19+'BP Financier'!$D$16+'BP Financier'!$D$19+'BP Financier'!$E$16+'BP Financier'!$E$19+'BP Financier'!$C$22+'BP Financier'!$D$22+'BP Financier'!$E$22+'BP Financier'!$F$16+'BP Financier'!$F$19+'BP Financier'!$F$22+'BP Financier'!$G$16+'BP Financier'!$G$19+'BP Financier'!$G$22))*$V8204*AB8204/(1-$W8204)","v":{"v":12889.554340407152,"d":"12,890"}},null,{"v":1E-3,"d":"0.10%"},{"$f":"Actif!$E$28/100","v":{"v":0.28900000000000003,"d":"28.90%"}},{"$f":"Actif!$E$30/100","v":{"v":0.09050000000000001,"d":"9.05%"}},{"$f":"Actif!$E$31/100","v":{"v":0.0605,"d":"6.05%"}},{"$f":"Actif!$E$32/100","v":{"v":0.47350000000000003,"d":"47.35%"}},{"$f":"Actif!$E$33/100","v":{"v":0.0585,"d":"5.85%"}},{"$f":"Actif!$E$29/100","v":{"v":0.027999999999999997,"d":"2.80%"}}]
[null,"#92",36,2028,"H","A_VIE",{"v":0.44999999999999996,"d":"0.45"},{"v":0.38999999999999996,"d":"0.39"},0.6,0.6,85,0,{"$f":"ROUND(Primes!$Q$4*V8205,0)","v":11},{"$f":"'BP Financier'!$G$33*(('BP Financier'!$C$16+'BP Financier'!$D$16+'BP Financier'!$E$16+'BP Financier'!$F$16+'BP Financier'!$G$16)/('BP Financier'!$C$16+'BP Financier'!$C$19+'BP Financier'!$D$16+'BP Financier'!$D$19+'BP Financier'!$E$16+'BP Financier'!$E$19+'BP Financier'!$F$16+'BP Financier'!$F$19+'BP Financier'!$G$19+'BP Financier'!$G$16))*V8205","v":{"v":570278.6743187835,"d":"570,279"}},{"v":327302.6120010531,"d":"327,303"},{"$f":"'BP Financier'!$G$44*(('BP Financier'!$C$16+'BP Financier'!$D$16+'BP Financier'!$E$16+'BP Financier'!$F$16+'BP Financier'!$G$16)/('BP Financier'!$C$16+'BP Financier'!$C$19+'BP Financier'!$D$16+'BP Financier'!$D$19+'BP Financier'!$E$16+'BP Financier'!$E$19+'BP Financier'!$C$22+'BP Financier'!$D$22+'BP Financier'!$E$22+'BP Financier'!$F$16+'BP Financier'!$F$19+'BP Financier'!$F$22+'BP Financier'!$G$16+'BP Financier'!$G$19+'BP Financier'!$G$22))*$V8205*X8205/(1-$W8205)","v":{"v":41660.880993101695,"d":"41,661"}},{"$f":"'BP Financier'!$G$44*(('BP Financier'!$C$16+'BP Financier'!$D$16+'BP Financier'!$E$16+'BP Financier'!$F$16+'BP Financier'!$G$16)/('BP Financier'!$C$16+'BP Financier'!$C$19+'BP Financier'!$D$16+'BP Financier'!$D$19+'BP Financier'!$E$16+'BP Financier'!$E$19+'BP Financier'!$C$22+'BP Financier'!$D$22+'BP Financier'!$E$22+'BP Financier'!$F$16+'BP Financier'!$F$19+'BP Financier'!$F$22+'BP Financier'!$G$16+'BP Financier'!$G$19+'BP Financier'!$G$22))*$V8205*Y8205/(1-$W8205)","v":{"v":27850.644199808314,"d":"27,851"}},{"$f":"'BP Financier'!$G$44*(('BP Financier'!$C$16+'BP Financier'!$D$16+'BP Financier'!$E$16+'BP Financier'!$F$16+'BP Financier'!$G$16)/('BP Financier'!$C$16+'BP Financier'!$C$19+'BP Financier'!$D$16+'BP Financier'!$D$19+'BP Financier'!$E$16+'BP Financier'!$E$19+'BP Financier'!$C$22+'BP Financier'!$D$22+'BP Financier'!$E$22+'BP Financier'!$F$16+'BP Financier'!$F$19+'BP Financier'!$F$22+'BP Financier'!$G$16+'BP Financier'!$G$19+'BP Financier'!$G$22))*$V8205*Z8205/(1-$W8205)","v":{"v":217971.57072081385,"d":"217,972"}},{"$f":"'BP Financier'!$G$44*(('BP Financier'!$C$16+'BP Financier'!$D$16+'BP Financier'!$E$16+'BP Financier'!$F$16+'BP Financier'!$G$16)/('BP Financier'!$C$16+'BP Financier'!$C$19+'BP Financier'!$D$16+'BP Financier'!$D$19+'BP Financier'!$E$16+'BP Financier'!$E$19+'BP Financier'!$C$22+'BP Financier'!$D$22+'BP Financier'!$E$22+'BP Financier'!$F$16+'BP Financier'!$F$19+'BP Financier'!$F$22+'BP Financier'!$G$16+'BP Financier'!$G$19+'BP Financier'!$G$22))*$V8205*AA8205/(1-$W8205)","v":{"v":26929.96174692209,"d":"26,930"}},{"$f":"'BP Financier'!$G$44*(('BP Financier'!$C$16+'BP Financier'!$D$16+'BP Financier'!$E$16+'BP Financier'!$F$16+'BP Financier'!$G$16)/('BP Financier'!$C$16+'BP Financier'!$C$19+'BP Financier'!$D$16+'BP Financier'!$D$19+'BP Financier'!$E$16+'BP Financier'!$E$19+'BP Financier'!$C$22+'BP Financier'!$D$22+'BP Financier'!$E$22+'BP Financier'!$F$16+'BP Financier'!$F$19+'BP Financier'!$F$22+'BP Financier'!$G$16+'BP Financier'!$G$19+'BP Financier'!$G$22))*$V8205*AB8205/(1-$W8205)","v":{"v":12889.554340407152,"d":"12,890"}},null,{"v":1E-3,"d":"0.10%"},{"$f":"Actif!$E$28/100","v":{"v":0.28900000000000003,"d":"28.90%"}},{"$f":"Actif!$E$30/100","v":{"v":0.09050000000000001,"d":"9.05%"}},{"$f":"Actif!$E$31/100","v":{"v":0.0605,"d":"6.05%"}},{"$f":"Actif!$E$32/100","v":{"v":0.47350000000000003,"d":"47.35%"}},{"$f":"Actif!$E$33/100","v":{"v":0.0585,"d":"5.85%"}},{"$f":"Actif!$E$29/100","v":{"v":0.027999999999999997,"d":"2.80%"}}]
[null,"#93",36,2029,"H","A_VIE",{"v":0.44999999999999996,"d":"0.45"},{"v":0.38999999999999996,"d":"0.39"},0.6,0.6,85,0,{"$f":"ROUND(Primes!$Q$4*V8206,0)","v":11},{"$f":"'BP Financier'!$G$33*(('BP Financier'!$C$16+'BP Financier'!$D$16+'BP Financier'!$E$16+'BP Financier'!$F$16+'BP Financier'!$G$16)/('BP Financier'!$C$16+'BP Financier'!$C$19+'BP Financier'!$D$16+'BP Financier'!$D$19+'BP Financier'!$E$16+'BP Financier'!$E$19+'BP Financier'!$F$16+'BP Financier'!$F$19+'BP Financier'!$G$19+'BP Financier'!$G$16))*V8206","v":{"v":570278.6743187835,"d":"570,279"}},{"v":327302.6120010531,"d":"327,303"},{"$f":"'BP Financier'!$G$44*(('BP Financier'!$C$16+'BP Financier'!$D$16+'BP Financier'!$E$16+'BP Financier'!$F$16+'BP Financier'!$G$16)/('BP Financier'!$C$16+'BP Financier'!$C$19+'BP Financier'!$D$16+'BP Financier'!$D$19+'BP Financier'!$E$16+'BP Financier'!$E$19+'BP Financier'!$C$22+'BP Financier'!$D$22+'BP Financier'!$E$22+'BP Financier'!$F$16+'BP Financier'!$F$19+'BP Financier'!$F$22+'BP Financier'!$G$16+'BP Financier'!$G$19+'BP Financier'!$G$22))*$V8206*X8206/(1-$W8206)","v":{"v":41660.880993101695,"d":"41,661"}},{"$f":"'BP Financier'!$G$44*(('BP Financier'!$C$16+'BP Financier'!$D$16+'BP Financier'!$E$16+'BP Financier'!$F$16+'BP Financier'!$G$16)/('BP Financier'!$C$16+'BP Financier'!$C$19+'BP Financier'!$D$16+'BP Financier'!$D$19+'BP Financier'!$E$16+'BP Financier'!$E$19+'BP Financier'!$C$22+'BP Financier'!$D$22+'BP Financier'!$E$22+'BP Financier'!$F$16+'BP Financier'!$F$19+'BP Financier'!$F$22+'BP Financier'!$G$16+'BP Financier'!$G$19+'BP Financier'!$G$22))*$V8206*Y8206/(1-$W8206)","v":{"v":27850.644199808314,"d":"27,851"}},{"$f":"'BP Financier'!$G$44*(('BP Financier'!$C$16+'BP Financier'!$D$16+'BP Financier'!$E$16+'BP Financier'!$F$16+'BP Financier'!$G$16)/('BP Financier'!$C$16+'BP Financier'!$C$19+'BP Financier'!$D$16+'BP Financier'!$D$19+'BP Financier'!$E$16+'BP Financier'!$E$19+'BP Financier'!$C$22+'BP Financier'!$D$22+'BP Financier'!$E$22+'BP Financier'!$F$16+'BP Financier'!$F$19+'BP Financier'!$F$22+'BP Financier'!$G$16+'BP Financier'!$G$19+'BP Financier'!$G$22))*$V8206*Z8206/(1-$W8206)","v":{"v":217971.57072081385,"d":"217,972"}},{"$f":"'BP Financier'!$G$44*(('BP Financier'!$C$16+'BP Financier'!$D$16+'BP Financier'!$E$16+'BP Financier'!$F$16+'BP Financier'!$G$16)/('BP Financier'!$C$16+'BP Financier'!$C$19+'BP Financier'!$D$16+'BP Financier'!$D$19+'BP Financier'!$E$16+'BP Financier'!$E$19+'BP Financier'!$C$22+'BP Financier'!$D$22+'BP Financier'!$E$22+'BP Financier'!$F$16+'BP Financier'!$F$19+'BP Financier'!$F$22+'BP Financier'!$G$16+'BP Financier'!$G$19+'BP Financier'!$G$22))*$V8206*AA8206/(1-$W8206)","v":{"v":26929.96174692209,"d":"26,930"}},{"$f":"'BP Financier'!$G$44*(('BP Financier'!$C$16+'BP Financier'!$D$16+'BP Financier'!$E$16+'BP Financier'!$F$16+'BP Financier'!$G$16)/('BP Financier'!$C$16+'BP Financier'!$C$19+'BP Financier'!$D$16+'BP Financier'!$D$19+'BP Financier'!$E$16+'BP Financier'!$E$19+'BP Financier'!$C$22+'BP Financier'!$D$22+'BP Financier'!$E$22+'BP Financier'!$F$16+'BP Financier'!$F$19+'BP Financier'!$F$22+'BP Financier'!$G$16+'BP Financier'!$G$19+'BP Financier'!$G$22))*$V8206*AB8206/(1-$W8206)","v":{"v":12889.554340407152,"d":"12,890"}},null,{"v":1E-3,"d":"0.10%"},{"$f":"Actif!$E$28/100","v":{"v":0.28900000000000003,"d":"28.90%"}},{"$f":"Actif!$E$30/100","v":{"v":0.09050000000000001,"d":"9.05%"}},{"$f":"Actif!$E$31/100","v":{"v":0.0605,"d":"6.05%"}},{"$f":"Actif!$E$32/100","v":{"v":0.47350000000000003,"d":"47.35%"}},{"$f":"Actif!$E$33/100","v":{"v":0.0585,"d":"5.85%"}},{"$f":"Actif!$E$29/100","v":{"v":0.027999999999999997,"d":"2.80%"}}]
[null,"#94",36,2030,"H","A_VIE",{"v":0.44999999999999996,"d":"0.45"},{"v":0.38999999999999996,"d":"0.39"},0.6,0.6,85,0,{"$f":"ROUND(Primes!$Q$4*V8207,0)","v":11},{"$f":"'BP Financier'!$G$33*(('BP Financier'!$C$16+'BP Financier'!$D$16+'BP Financier'!$E$16+'BP Financier'!$F$16+'BP Financier'!$G$16)/('BP Financier'!$C$16+'BP Financier'!$C$19+'BP Financier'!$D$16+'BP Financier'!$D$19+'BP Financier'!$E$16+'BP Financier'!$E$19+'BP Financier'!$F$16+'BP Financier'!$F$19+'BP Financier'!$G$19+'BP Financier'!$G$16))*V8207","v":{"v":570278.6743187835,"d":"570,279"}},{"v":327302.6120010531,"d":"327,303"},{"$f":"'BP Financier'!$G$44*(('BP Financier'!$C$16+'BP Financier'!$D$16+'BP Financier'!$E$16+'BP Financier'!$F$16+'BP Financier'!$G$16)/('BP Financier'!$C$16+'BP Financier'!$C$19+'BP Financier'!$D$16+'BP Financier'!$D$19+'BP Financier'!$E$16+'BP Financier'!$E$19+'BP Financier'!$C$22+'BP Financier'!$D$22+'BP Financier'!$E$22+'BP Financier'!$F$16+'BP Financier'!$F$19+'BP Financier'!$F$22+'BP Financier'!$G$16+'BP Financier'!$G$19+'BP Financier'!$G$22))*$V8207*X8207/(1-$W8207)","v":{"v":41660.880993101695,"d":"41,661"}},{"$f":"'BP Financier'!$G$44*(('BP Financier'!$C$16+'BP Financier'!$D$16+'BP Financier'!$E$16+'BP Financier'!$F$16+'BP Financier'!$G$16)/('BP Financier'!$C$16+'BP Financier'!$C$19+'BP Financier'!$D$16+'BP Financier'!$D$19+'BP Financier'!$E$16+'BP Financier'!$E$19+'BP Financier'!$C$22+'BP Financier'!$D$22+'BP Financier'!$E$22+'BP Financier'!$F$16+'BP Financier'!$F$19+'BP Financier'!$F$22+'BP Financier'!$G$16+'BP Financier'!$G$19+'BP Financier'!$G$22))*$V8207*Y8207/(1-$W8207)","v":{"v":27850.644199808314,"d":"27,851"}},{"$f":"'BP Financier'!$G$44*(('BP Financier'!$C$16+'BP Financier'!$D$16+'BP Financier'!$E$16+'BP Financier'!$F$16+'BP Financier'!$G$16)/('BP Financier'!$C$16+'BP Financier'!$C$19+'BP Financier'!$D$16+'BP Financier'!$D$19+'BP Financier'!$E$16+'BP Financier'!$E$19+'BP Financier'!$C$22+'BP Financier'!$D$22+'BP Financier'!$E$22+'BP Financier'!$F$16+'BP Financier'!$F$19+'BP Financier'!$F$22+'BP Financier'!$G$16+'BP Financier'!$G$19+'BP Financier'!$G$22))*$V8207*Z8207/(1-$W8207)","v":{"v":217971.57072081385,"d":"217,972"}},{"$f":"'BP Financier'!$G$44*(('BP Financier'!$C$16+'BP Financier'!$D$16+'BP Financier'!$E$16+'BP Financier'!$F$16+'BP Financier'!$G$16)/('BP Financier'!$C$16+'BP Financier'!$C$19+'BP Financier'!$D$16+'BP Financier'!$D$19+'BP Financier'!$E$16+'BP Financier'!$E$19+'BP Financier'!$C$22+'BP Financier'!$D$22+'BP Financier'!$E$22+'BP Financier'!$F$16+'BP Financier'!$F$19+'BP Financier'!$F$22+'BP Financier'!$G$16+'BP Financier'!$G$19+'BP Financier'!$G$22))*$V8207*AA8207/(1-$W8207)","v":{"v":26929.96174692209,"d":"26,930"}},{"$f":"'BP Financier'!$G$44*(('BP Financier'!$C$16+'BP Financier'!$D$16+'BP Financier'!$E$16+'BP Financier'!$F$16+'BP Financier'!$G$16)/('BP Financier'!$C$16+'BP Financier'!$C$19+'BP Financier'!$D$16+'BP Financier'!$D$19+'BP Financier'!$E$16+'BP Financier'!$E$19+'BP Financier'!$C$22+'BP Financier'!$D$22+'BP Financier'!$E$22+'BP Financier'!$F$16+'BP Financier'!$F$19+'BP Financier'!$F$22+'BP Financier'!$G$16+'BP Financier'!$G$19+'BP Financier'!$G$22))*$V8207*AB8207/(1-$W8207)","v":{"v":12889.554340407152,"d":"12,890"}},null,{"v":1E-3,"d":"0.10%"},{"$f":"Actif!$E$28/100","v":{"v":0.28900000000000003,"d":"28.90%"}},{"$f":"Actif!$E$30/100","v":{"v":0.09050000000000001,"d":"9.05%"}},{"$f":"Actif!$E$31/100","v":{"v":0.0605,"d":"6.05%"}},{"$f":"Actif!$E$32/100","v":{"v":0.47350000000000003,"d":"47.35%"}},{"$f":"Actif!$E$33/100","v":{"v":0.0585,"d":"5.85%"}},{"$f":"Actif!$E$29/100","v":{"v":0.027999999999999997,"d":"2.80%"}}]
[null,"#95",36,2031,"H","A_VIE",{"v":0.44999999999999996,"d":"0.45"},{"v":0.38999999999999996,"d":"0.39"},0.6,0.6,85,0,{"$f":"ROUND(Primes!$Q$4*V8208,0)","v":11},{"$f":"'BP Financier'!$G$33*(('BP Financier'!$C$16+'BP Financier'!$D$16+'BP Financier'!$E$16+'BP Financier'!$F$16+'BP Financier'!$G$16)/('BP Financier'!$C$16+'BP Financier'!$C$19+'BP Financier'!$D$16+'BP Financier'!$D$19+'BP Financier'!$E$16+'BP Financier'!$E$19+'BP Financier'!$F$16+'BP Financier'!$F$19+'BP Financier'!$G$19+'BP Financier'!$G$16))*V8208","v":{"v":570278.6743187835,"d":"570,279"}},{"v":327302.6120010531,"d":"327,303"},{"$f":"'BP Financier'!$G$44*(('BP Financier'!$C$16+'BP Financier'!$D$16+'BP Financier'!$E$16+'BP Financier'!$F$16+'BP Financier'!$G$16)/('BP Financier'!$C$16+'BP Financier'!$C$19+'BP Financier'!$D$16+'BP Financier'!$D$19+'BP Financier'!$E$16+'BP Financier'!$E$19+'BP Financier'!$C$22+'BP Financier'!$D$22+'BP Financier'!$E$22+'BP Financier'!$F$16+'BP Financier'!$F$19+'BP Financier'!$F$22+'BP Financier'!$G$16+'BP Financier'!$G$19+'BP Financier'!$G$22))*$V8208*X8208/(1-$W8208)","v":{"v":41660.880993101695,"d":"41,661"}},{"$f":"'BP Financier'!$G$44*(('BP Financier'!$C$16+'BP Financier'!$D$16+'BP Financier'!$E$16+'BP Financier'!$F$16+'BP Financier'!$G$16)/('BP Financier'!$C$16+'BP Financier'!$C$19+'BP Financier'!$D$16+'BP Financier'!$D$19+'BP Financier'!$E$16+'BP Financier'!$E$19+'BP Financier'!$C$22+'BP Financier'!$D$22+'BP Financier'!$E$22+'BP Financier'!$F$16+'BP Financier'!$F$19+'BP Financier'!$F$22+'BP Financier'!$G$16+'BP Financier'!$G$19+'BP Financier'!$G$22))*$V8208*Y8208/(1-$W8208)","v":{"v":27850.644199808314,"d":"27,851"}},{"$f":"'BP Financier'!$G$44*(('BP Financier'!$C$16+'BP Financier'!$D$16+'BP Financier'!$E$16+'BP Financier'!$F$16+'BP Financier'!$G$16)/('BP Financier'!$C$16+'BP Financier'!$C$19+'BP Financier'!$D$16+'BP Financier'!$D$19+'BP Financier'!$E$16+'BP Financier'!$E$19+'BP Financier'!$C$22+'BP Financier'!$D$22+'BP Financier'!$E$22+'BP Financier'!$F$16+'BP Financier'!$F$19+'BP Financier'!$F$22+'BP Financier'!$G$16+'BP Financier'!$G$19+'BP Financier'!$G$22))*$V8208*Z8208/(1-$W8208)","v":{"v":217971.57072081385,"d":"217,972"}},{"$f":"'BP Financier'!$G$44*(('BP Financier'!$C$16+'BP Financier'!$D$16+'BP Financier'!$E$16+'BP Financier'!$F$16+'BP Financier'!$G$16)/('BP Financier'!$C$16+'BP Financier'!$C$19+'BP Financier'!$D$16+'BP Financier'!$D$19+'BP Financier'!$E$16+'BP Financier'!$E$19+'BP Financier'!$C$22+'BP Financier'!$D$22+'BP Financier'!$E$22+'BP Financier'!$F$16+'BP Financier'!$F$19+'BP Financier'!$F$22+'BP Financier'!$G$16+'BP Financier'!$G$19+'BP Financier'!$G$22))*$V8208*AA8208/(1-$W8208)","v":{"v":26929.96174692209,"d":"26,930"}},{"$f":"'BP Financier'!$G$44*(('BP Financier'!$C$16+'BP Financier'!$D$16+'BP Financier'!$E$16+'BP Financier'!$F$16+'BP Financier'!$G$16)/('BP Financier'!$C$16+'BP Financier'!$C$19+'BP Financier'!$D$16+'BP Financier'!$D$19+'BP Financier'!$E$16+'BP Financier'!$E$19+'BP Financier'!$C$22+'BP Financier'!$D$22+'BP Financier'!$E$22+'BP Financier'!$F$16+'BP Financier'!$F$19+'BP Financier'!$F$22+'BP Financier'!$G$16+'BP Financier'!$G$19+'BP Financier'!$G$22))*$V8208*AB8208/(1-$W8208)","v":{"v":12889.554340407152,"d":"12,890"}},null,{"v":1E-3,"d":"0.10%"},{"$f":"Actif!$E$28/100","v":{"v":0.28900000000000003,"d":"28.90%"}},{"$f":"Actif!$E$30/100","v":{"v":0.09050000000000001,"d":"9.05%"}},{"$f":"Actif!$E$31/100","v":{"v":0.0605,"d":"6.05%"}},{"$f":"Actif!$E$32/100","v":{"v":0.47350000000000003,"d":"47.35%"}},{"$f":"Actif!$E$33/100","v":{"v":0.0585,"d":"5.85%"}},{"$f":"Actif!$E$29/100","v":{"v":0.027999999999999997,"d":"2.80%"}}]
[null,"#96",37,2026,"H","A_VIE",{"v":0.44999999999999996,"d":"0.45"},{"v":0.38999999999999996,"d":"0.39"},0.6,0.6,85,0,{"$f":"ROUND(Primes!$Q$4*V8209,0)","v":11},{"$f":"'BP Financier'!$G$33*(('BP Financier'!$C$16+'BP Financier'!$D$16+'BP Financier'!$E$16+'BP Financier'!$F$16+'BP Financier'!$G$16)/('BP Financier'!$C$16+'BP Financier'!$C$19+'BP Financier'!$D$16+'BP Financier'!$D$19+'BP Financier'!$E$16+'BP Financier'!$E$19+'BP Financier'!$F$16+'BP Financier'!$F$19+'BP Financier'!$G$19+'BP Financier'!$G$16))*V8209","v":{"v":570278.6743187835,"d":"570,279"}},{"v":327302.6120010531,"d":"327,303"},{"$f":"'BP Financier'!$G$44*(('BP Financier'!$C$16+'BP Financier'!$D$16+'BP Financier'!$E$16+'BP Financier'!$F$16+'BP Financier'!$G$16)/('BP Financier'!$C$16+'BP Financier'!$C$19+'BP Financier'!$D$16+'BP Financier'!$D$19+'BP Financier'!$E$16+'BP Financier'!$E$19+'BP Financier'!$C$22+'BP Financier'!$D$22+'BP Financier'!$E$22+'BP Financier'!$F$16+'BP Financier'!$F$19+'BP Financier'!$F$22+'BP Financier'!$G$16+'BP Financier'!$G$19+'BP Financier'!$G$22))*$V8209*X8209/(1-$W8209)","v":{"v":41660.880993101695,"d":"41,661"}},{"$f":"'BP Financier'!$G$44*(('BP Financier'!$C$16+'BP Financier'!$D$16+'BP Financier'!$E$16+'BP Financier'!$F$16+'BP Financier'!$G$16)/('BP Financier'!$C$16+'BP Financier'!$C$19+'BP Financier'!$D$16+'BP Financier'!$D$19+'BP Financier'!$E$16+'BP Financier'!$E$19+'BP Financier'!$C$22+'BP Financier'!$D$22+'BP Financier'!$E$22+'BP Financier'!$F$16+'BP Financier'!$F$19+'BP Financier'!$F$22+'BP Financier'!$G$16+'BP Financier'!$G$19+'BP Financier'!$G$22))*$V8209*Y8209/(1-$W8209)","v":{"v":27850.644199808314,"d":"27,851"}},{"$f":"'BP Financier'!$G$44*(('BP Financier'!$C$16+'BP Financier'!$D$16+'BP Financier'!$E$16+'BP Financier'!$F$16+'BP Financier'!$G$16)/('BP Financier'!$C$16+'BP Financier'!$C$19+'BP Financier'!$D$16+'BP Financier'!$D$19+'BP Financier'!$E$16+'BP Financier'!$E$19+'BP Financier'!$C$22+'BP Financier'!$D$22+'BP Financier'!$E$22+'BP Financier'!$F$16+'BP Financier'!$F$19+'BP Financier'!$F$22+'BP Financier'!$G$16+'BP Financier'!$G$19+'BP Financier'!$G$22))*$V8209*Z8209/(1-$W8209)","v":{"v":217971.57072081385,"d":"217,972"}},{"$f":"'BP Financier'!$G$44*(('BP Financier'!$C$16+'BP Financier'!$D$16+'BP Financier'!$E$16+'BP Financier'!$F$16+'BP Financier'!$G$16)/('BP Financier'!$C$16+'BP Financier'!$C$19+'BP Financier'!$D$16+'BP Financier'!$D$19+'BP Financier'!$E$16+'BP Financier'!$E$19+'BP Financier'!$C$22+'BP Financier'!$D$22+'BP Financier'!$E$22+'BP Financier'!$F$16+'BP Financier'!$F$19+'BP Financier'!$F$22+'BP Financier'!$G$16+'BP Financier'!$G$19+'BP Financier'!$G$22))*$V8209*AA8209/(1-$W8209)","v":{"v":26929.96174692209,"d":"26,930"}},{"$f":"'BP Financier'!$G$44*(('BP Financier'!$C$16+'BP Financier'!$D$16+'BP Financier'!$E$16+'BP Financier'!$F$16+'BP Financier'!$G$16)/('BP Financier'!$C$16+'BP Financier'!$C$19+'BP Financier'!$D$16+'BP Financier'!$D$19+'BP Financier'!$E$16+'BP Financier'!$E$19+'BP Financier'!$C$22+'BP Financier'!$D$22+'BP Financier'!$E$22+'BP Financier'!$F$16+'BP Financier'!$F$19+'BP Financier'!$F$22+'BP Financier'!$G$16+'BP Financier'!$G$19+'BP Financier'!$G$22))*$V8209*AB8209/(1-$W8209)","v":{"v":12889.554340407152,"d":"12,890"}},null,{"v":1E-3,"d":"0.10%"},{"$f":"Actif!$E$28/100","v":{"v":0.28900000000000003,"d":"28.90%"}},{"$f":"Actif!$E$30/100","v":{"v":0.09050000000000001,"d":"9.05%"}},{"$f":"Actif!$E$31/100","v":{"v":0.0605,"d":"6.05%"}},{"$f":"Actif!$E$32/100","v":{"v":0.47350000000000003,"d":"47.35%"}},{"$f":"Actif!$E$33/100","v":{"v":0.0585,"d":"5.85%"}},{"$f":"Actif!$E$29/100","v":{"v":0.027999999999999997,"d":"2.80%"}}]
[null,"#97",37,2028,"H","A_VIE",{"v":0.44999999999999996,"d":"0.45"},{"v":0.38999999999999996,"d":"0.39"},0.6,0.6,85,0,{"$f":"ROUND(Primes!$Q$4*V8210,0)","v":11},{"$f":"'BP Financier'!$G$33*(('BP Financier'!$C$16+'BP Financier'!$D$16+'BP Financier'!$E$16+'BP Financier'!$F$16+'BP Financier'!$G$16)/('BP Financier'!$C$16+'BP Financier'!$C$19+'BP Financier'!$D$16+'BP Financier'!$D$19+'BP Financier'!$E$16+'BP Financier'!$E$19+'BP Financier'!$F$16+'BP Financier'!$F$19+'BP Financier'!$G$19+'BP Financier'!$G$16))*V8210","v":{"v":570278.6743187835,"d":"570,279"}},{"v":327302.6120010531,"d":"327,303"},{"$f":"'BP Financier'!$G$44*(('BP Financier'!$C$16+'BP Financier'!$D$16+'BP Financier'!$E$16+'BP Financier'!$F$16+'BP Financier'!$G$16)/('BP Financier'!$C$16+'BP Financier'!$C$19+'BP Financier'!$D$16+'BP Financier'!$D$19+'BP Financier'!$E$16+'BP Financier'!$E$19+'BP Financier'!$C$22+'BP Financier'!$D$22+'BP Financier'!$E$22+'BP Financier'!$F$16+'BP Financier'!$F$19+'BP Financier'!$F$22+'BP Financier'!$G$16+'BP Financier'!$G$19+'BP Financier'!$G$22))*$V8210*X8210/(1-$W8210)","v":{"v":41660.880993101695,"d":"41,661"}},{"$f":"'BP Financier'!$G$44*(('BP Financier'!$C$16+'BP Financier'!$D$16+'BP Financier'!$E$16+'BP Financier'!$F$16+'BP Financier'!$G$16)/('BP Financier'!$C$16+'BP Financier'!$C$19+'BP Financier'!$D$16+'BP Financier'!$D$19+'BP Financier'!$E$16+'BP Financier'!$E$19+'BP Financier'!$C$22+'BP Financier'!$D$22+'BP Financier'!$E$22+'BP Financier'!$F$16+'BP Financier'!$F$19+'BP Financier'!$F$22+'BP Financier'!$G$16+'BP Financier'!$G$19+'BP Financier'!$G$22))*$V8210*Y8210/(1-$W8210)","v":{"v":27850.644199808314,"d":"27,851"}},{"$f":"'BP Financier'!$G$44*(('BP Financier'!$C$16+'BP Financier'!$D$16+'BP Financier'!$E$16+'BP Financier'!$F$16+'BP Financier'!$G$16)/('BP Financier'!$C$16+'BP Financier'!$C$19+'BP Financier'!$D$16+'BP Financier'!$D$19+'BP Financier'!$E$16+'BP Financier'!$E$19+'BP Financier'!$C$22+'BP Financier'!$D$22+'BP Financier'!$E$22+'BP Financier'!$F$16+'BP Financier'!$F$19+'BP Financier'!$F$22+'BP Financier'!$G$16+'BP Financier'!$G$19+'BP Financier'!$G$22))*$V8210*Z8210/(1-$W8210)","v":{"v":217971.57072081385,"d":"217,972"}},{"$f":"'BP Financier'!$G$44*(('BP Financier'!$C$16+'BP Financier'!$D$16+'BP Financier'!$E$16+'BP Financier'!$F$16+'BP Financier'!$G$16)/('BP Financier'!$C$16+'BP Financier'!$C$19+'BP Financier'!$D$16+'BP Financier'!$D$19+'BP Financier'!$E$16+'BP Financier'!$E$19+'BP Financier'!$C$22+'BP Financier'!$D$22+'BP Financier'!$E$22+'BP Financier'!$F$16+'BP Financier'!$F$19+'BP Financier'!$F$22+'BP Financier'!$G$16+'BP Financier'!$G$19+'BP Financier'!$G$22))*$V8210*AA8210/(1-$W8210)","v":{"v":26929.96174692209,"d":"26,930"}},{"$f":"'BP Financier'!$G$44*(('BP Financier'!$C$16+'BP Financier'!$D$16+'BP Financier'!$E$16+'BP Financier'!$F$16+'BP Financier'!$G$16)/('BP Financier'!$C$16+'BP Financier'!$C$19+'BP Financier'!$D$16+'BP Financier'!$D$19+'BP Financier'!$E$16+'BP Financier'!$E$19+'BP Financier'!$C$22+'BP Financier'!$D$22+'BP Financier'!$E$22+'BP Financier'!$F$16+'BP Financier'!$F$19+'BP Financier'!$F$22+'BP Financier'!$G$16+'BP Financier'!$G$19+'BP Financier'!$G$22))*$V8210*AB8210/(1-$W8210)","v":{"v":12889.554340407152,"d":"12,890"}},null,{"v":1E-3,"d":"0.10%"},{"$f":"Actif!$E$28/100","v":{"v":0.28900000000000003,"d":"28.90%"}},{"$f":"Actif!$E$30/100","v":{"v":0.09050000000000001,"d":"9.05%"}},{"$f":"Actif!$E$31/100","v":{"v":0.0605,"d":"6.05%"}},{"$f":"Actif!$E$32/100","v":{"v":0.47350000000000003,"d":"47.35%"}},{"$f":"Actif!$E$33/100","v":{"v":0.0585,"d":"5.85%"}},{"$f":"Actif!$E$29/100","v":{"v":0.027999999999999997,"d":"2.80%"}}]
[null,"#98",37,2029,"H","A_VIE",{"v":0.44999999999999996,"d":"0.45"},{"v":0.38999999999999996,"d":"0.39"},0.6,0.6,85,0,{"$f":"ROUND(Primes!$Q$4*V8211,0)","v":11},{"$f":"'BP Financier'!$G$33*(('BP Financier'!$C$16+'BP Financier'!$D$16+'BP Financier'!$E$16+'BP Financier'!$F$16+'BP Financier'!$G$16)/('BP Financier'!$C$16+'BP Financier'!$C$19+'BP Financier'!$D$16+'BP Financier'!$D$19+'BP Financier'!$E$16+'BP Financier'!$E$19+'BP Financier'!$F$16+'BP Financier'!$F$19+'BP Financier'!$G$19+'BP Financier'!$G$16))*V8211","v":{"v":570278.6743187835,"d":"570,279"}},{"v":327302.6120010531,"d":"327,303"},{"$f":"'BP Financier'!$G$44*(('BP Financier'!$C$16+'BP Financier'!$D$16+'BP Financier'!$E$16+'BP Financier'!$F$16+'BP Financier'!$G$16)/('BP Financier'!$C$16+'BP Financier'!$C$19+'BP Financier'!$D$16+'BP Financier'!$D$19+'BP Financier'!$E$16+'BP Financier'!$E$19+'BP Financier'!$C$22+'BP Financier'!$D$22+'BP Financier'!$E$22+'BP Financier'!$F$16+'BP Financier'!$F$19+'BP Financier'!$F$22+'BP Financier'!$G$16+'BP Financier'!$G$19+'BP Financier'!$G$22))*$V8211*X8211/(1-$W8211)","v":{"v":41660.880993101695,"d":"41,661"}},{"$f":"'BP Financier'!$G$44*(('BP Financier'!$C$16+'BP Financier'!$D$16+'BP Financier'!$E$16+'BP Financier'!$F$16+'BP Financier'!$G$16)/('BP Financier'!$C$16+'BP Financier'!$C$19+'BP Financier'!$D$16+'BP Financier'!$D$19+'BP Financier'!$E$16+'BP Financier'!$E$19+'BP Financier'!$C$22+'BP Financier'!$D$22+'BP Financier'!$E$22+'BP Financier'!$F$16+'BP Financier'!$F$19+'BP Financier'!$F$22+'BP Financier'!$G$16+'BP Financier'!$G$19+'BP Financier'!$G$22))*$V8211*Y8211/(1-$W8211)","v":{"v":27850.644199808314,"d":"27,851"}},{"$f":"'BP Financier'!$G$44*(('BP Financier'!$C$16+'BP Financier'!$D$16+'BP Financier'!$E$16+'BP Financier'!$F$16+'BP Financier'!$G$16)/('BP Financier'!$C$16+'BP Financier'!$C$19+'BP Financier'!$D$16+'BP Financier'!$D$19+'BP Financier'!$E$16+'BP Financier'!$E$19+'BP Financier'!$C$22+'BP Financier'!$D$22+'BP Financier'!$E$22+'BP Financier'!$F$16+'BP Financier'!$F$19+'BP Financier'!$F$22+'BP Financier'!$G$16+'BP Financier'!$G$19+'BP Financier'!$G$22))*$V8211*Z8211/(1-$W8211)","v":{"v":217971.57072081385,"d":"217,972"}},{"$f":"'BP Financier'!$G$44*(('BP Financier'!$C$16+'BP Financier'!$D$16+'BP Financier'!$E$16+'BP Financier'!$F$16+'BP Financier'!$G$16)/('BP Financier'!$C$16+'BP Financier'!$C$19+'BP Financier'!$D$16+'BP Financier'!$D$19+'BP Financier'!$E$16+'BP Financier'!$E$19+'BP Financier'!$C$22+'BP Financier'!$D$22+'BP Financier'!$E$22+'BP Financier'!$F$16+'BP Financier'!$F$19+'BP Financier'!$F$22+'BP Financier'!$G$16+'BP Financier'!$G$19+'BP Financier'!$G$22))*$V8211*AA8211/(1-$W8211)","v":{"v":26929.96174692209,"d":"26,930"}},{"$f":"'BP Financier'!$G$44*(('BP Financier'!$C$16+'BP Financier'!$D$16+'BP Financier'!$E$16+'BP Financier'!$F$16+'BP Financier'!$G$16)/('BP Financier'!$C$16+'BP Financier'!$C$19+'BP Financier'!$D$16+'BP Financier'!$D$19+'BP Financier'!$E$16+'BP Financier'!$E$19+'BP Financier'!$C$22+'BP Financier'!$D$22+'BP Financier'!$E$22+'BP Financier'!$F$16+'BP Financier'!$F$19+'BP Financier'!$F$22+'BP Financier'!$G$16+'BP Financier'!$G$19+'BP Financier'!$G$22))*$V8211*AB8211/(1-$W8211)","v":{"v":12889.554340407152,"d":"12,890"}},null,{"v":1E-3,"d":"0.10%"},{"$f":"Actif!$E$28/100","v":{"v":0.28900000000000003,"d":"28.90%"}},{"$f":"Actif!$E$30/100","v":{"v":0.09050000000000001,"d":"9.05%"}},{"$f":"Actif!$E$31/100","v":{"v":0.0605,"d":"6.05%"}},{"$f":"Actif!$E$32/100","v":{"v":0.47350000000000003,"d":"47.35%"}},{"$f":"Actif!$E$33/100","v":{"v":0.0585,"d":"5.85%"}},{"$f":"Actif!$E$29/100","v":{"v":0.027999999999999997,"d":"2.80%"}}]
[null,"#99",37,2030,"H","A_VIE",{"v":0.44999999999999996,"d":"0.45"},{"v":0.38999999999999996,"d":"0.39"},0.6,0.6,85,0,{"$f":"ROUND(Primes!$Q$4*V8212,0)","v":11},{"$f":"'BP Financier'!$G$33*(('BP Financier'!$C$16+'BP Financier'!$D$16+'BP Financier'!$E$16+'BP Financier'!$F$16+'BP Financier'!$G$16)/('BP Financier'!$C$16+'BP Financier'!$C$19+'BP Financier'!$D$16+'BP Financier'!$D$19+'BP Financier'!$E$16+'BP Financier'!$E$19+'BP Financier'!$F$16+'BP Financier'!$F$19+'BP Financier'!$G$19+'BP Financier'!$G$16))*V8212","v":{"v":570278.6743187835,"d":"570,279"}},{"v":327302.6120010531,"d":"327,303"},{"$f":"'BP Financier'!$G$44*(('BP Financier'!$C$16+'BP Financier'!$D$16+'BP Financier'!$E$16+'BP Financier'!$F$16+'BP Financier'!$G$16)/('BP Financier'!$C$16+'BP Financier'!$C$19+'BP Financier'!$D$16+'BP Financier'!$D$19+'BP Financier'!$E$16+'BP Financier'!$E$19+'BP Financier'!$C$22+'BP Financier'!$D$22+'BP Financier'!$E$22+'BP Financier'!$F$16+'BP Financier'!$F$19+'BP Financier'!$F$22+'BP Financier'!$G$16+'BP Financier'!$G$19+'BP Financier'!$G$22))*$V8212*X8212/(1-$W8212)","v":{"v":41660.880993101695,"d":"41,661"}},{"$f":"'BP Financier'!$G$44*(('BP Financier'!$C$16+'BP Financier'!$D$16+'BP Financier'!$E$16+'BP Financier'!$F$16+'BP Financier'!$G$16)/('BP Financier'!$C$16+'BP Financier'!$C$19+'BP Financier'!$D$16+'BP Financier'!$D$19+'BP Financier'!$E$16+'BP Financier'!$E$19+'BP Financier'!$C$22+'BP Financier'!$D$22+'BP Financier'!$E$22+'BP Financier'!$F$16+'BP Financier'!$F$19+'BP Financier'!$F$22+'BP Financier'!$G$16+'BP Financier'!$G$19+'BP Financier'!$G$22))*$V8212*Y8212/(1-$W8212)","v":{"v":27850.644199808314,"d":"27,851"}},{"$f":"'BP Financier'!$G$44*(('BP Financier'!$C$16+'BP Financier'!$D$16+'BP Financier'!$E$16+'BP Financier'!$F$16+'BP Financier'!$G$16)/('BP Financier'!$C$16+'BP Financier'!$C$19+'BP Financier'!$D$16+'BP Financier'!$D$19+'BP Financier'!$E$16+'BP Financier'!$E$19+'BP Financier'!$C$22+'BP Financier'!$D$22+'BP Financier'!$E$22+'BP Financier'!$F$16+'BP Financier'!$F$19+'BP Financier'!$F$22+'BP Financier'!$G$16+'BP Financier'!$G$19+'BP Financier'!$G$22))*$V8212*Z8212/(1-$W8212)","v":{"v":217971.57072081385,"d":"217,972"}},{"$f":"'BP Financier'!$G$44*(('BP Financier'!$C$16+'BP Financier'!$D$16+'BP Financier'!$E$16+'BP Financier'!$F$16+'BP Financier'!$G$16)/('BP Financier'!$C$16+'BP Financier'!$C$19+'BP Financier'!$D$16+'BP Financier'!$D$19+'BP Financier'!$E$16+'BP Financier'!$E$19+'BP Financier'!$C$22+'BP Financier'!$D$22+'BP Financier'!$E$22+'BP Financier'!$F$16+'BP Financier'!$F$19+'BP Financier'!$F$22+'BP Financier'!$G$16+'BP Financier'!$G$19+'BP Financier'!$G$22))*$V8212*AA8212/(1-$W8212)","v":{"v":26929.96174692209,"d":"26,930"}},{"$f":"'BP Financier'!$G$44*(('BP Financier'!$C$16+'BP Financier'!$D$16+'BP Financier'!$E$16+'BP Financier'!$F$16+'BP Financier'!$G$16)/('BP Financier'!$C$16+'BP Financier'!$C$19+'BP Financier'!$D$16+'BP Financier'!$D$19+'BP Financier'!$E$16+'BP Financier'!$E$19+'BP Financier'!$C$22+'BP Financier'!$D$22+'BP Financier'!$E$22+'BP Financier'!$F$16+'BP Financier'!$F$19+'BP Financier'!$F$22+'BP Financier'!$G$16+'BP Financier'!$G$19+'BP Financier'!$G$22))*$V8212*AB8212/(1-$W8212)","v":{"v":12889.554340407152,"d":"12,890"}},null,{"v":1E-3,"d":"0.10%"},{"$f":"Actif!$E$28/100","v":{"v":0.28900000000000003,"d":"28.90%"}},{"$f":"Actif!$E$30/100","v":{"v":0.09050000000000001,"d":"9.05%"}},{"$f":"Actif!$E$31/100","v":{"v":0.0605,"d":"6.05%"}},{"$f":"Actif!$E$32/100","v":{"v":0.47350000000000003,"d":"47.35%"}},{"$f":"Actif!$E$33/100","v":{"v":0.0585,"d":"5.85%"}},{"$f":"Actif!$E$29/100","v":{"v":0.027999999999999997,"d":"2.80%"}}]
[null,"#100",37,2031,"H","A_VIE",{"v":0.44999999999999996,"d":"0.45"},{"v":0.38999999999999996,"d":"0.39"},0.6,0.6,85,0,{"$f":"ROUND(Primes!$Q$4*V8213,0)","v":11},{"$f":"'BP Financier'!$G$33*(('BP Financier'!$C$16+'BP Financier'!$D$16+'BP Financier'!$E$16+'BP Financier'!$F$16+'BP Financier'!$G$16)/('BP Financier'!$C$16+'BP Financier'!$C$19+'BP Financier'!$D$16+'BP Financier'!$D$19+'BP Financier'!$E$16+'BP Financier'!$E$19+'BP Financier'!$F$16+'BP Financier'!$F$19+'BP Financier'!$G$19+'BP Financier'!$G$16))*V8213","v":{"v":570278.6743187835,"d":"570,279"}},{"v":327302.6120010531,"d":"327,303"},{"$f":"'BP Financier'!$G$44*(('BP Financier'!$C$16+'BP Financier'!$D$16+'BP Financier'!$E$16+'BP Financier'!$F$16+'BP Financier'!$G$16)/('BP Financier'!$C$16+'BP Financier'!$C$19+'BP Financier'!$D$16+'BP Financier'!$D$19+'BP Financier'!$E$16+'BP Financier'!$E$19+'BP Financier'!$C$22+'BP Financier'!$D$22+'BP Financier'!$E$22+'BP Financier'!$F$16+'BP Financier'!$F$19+'BP Financier'!$F$22+'BP Financier'!$G$16+'BP Financier'!$G$19+'BP Financier'!$G$22))*$V8213*X8213/(1-$W8213)","v":{"v":41660.880993101695,"d":"41,661"}},{"$f":"'BP Financier'!$G$44*(('BP Financier'!$C$16+'BP Financier'!$D$16+'BP Financier'!$E$16+'BP Financier'!$F$16+'BP Financier'!$G$16)/('BP Financier'!$C$16+'BP Financier'!$C$19+'BP Financier'!$D$16+'BP Financier'!$D$19+'BP Financier'!$E$16+'BP Financier'!$E$19+'BP Financier'!$C$22+'BP Financier'!$D$22+'BP Financier'!$E$22+'BP Financier'!$F$16+'BP Financier'!$F$19+'BP Financier'!$F$22+'BP Financier'!$G$16+'BP Financier'!$G$19+'BP Financier'!$G$22))*$V8213*Y8213/(1-$W8213)","v":{"v":27850.644199808314,"d":"27,851"}},{"$f":"'BP Financier'!$G$44*(('BP Financier'!$C$16+'BP Financier'!$D$16+'BP Financier'!$E$16+'BP Financier'!$F$16+'BP Financier'!$G$16)/('BP Financier'!$C$16+'BP Financier'!$C$19+'BP Financier'!$D$16+'BP Financier'!$D$19+'BP Financier'!$E$16+'BP Financier'!$E$19+'BP Financier'!$C$22+'BP Financier'!$D$22+'BP Financier'!$E$22+'BP Financier'!$F$16+'BP Financier'!$F$19+'BP Financier'!$F$22+'BP Financier'!$G$16+'BP Financier'!$G$19+'BP Financier'!$G$22))*$V8213*Z8213/(1-$W8213)","v":{"v":217971.57072081385,"d":"217,972"}},{"$f":"'BP Financier'!$G$44*(('BP Financier'!$C$16+'BP Financier'!$D$16+'BP Financier'!$E$16+'BP Financier'!$F$16+'BP Financier'!$G$16)/('BP Financier'!$C$16+'BP Financier'!$C$19+'BP Financier'!$D$16+'BP Financier'!$D$19+'BP Financier'!$E$16+'BP Financier'!$E$19+'BP Financier'!$C$22+'BP Financier'!$D$22+'BP Financier'!$E$22+'BP Financier'!$F$16+'BP Financier'!$F$19+'BP Financier'!$F$22+'BP Financier'!$G$16+'BP Financier'!$G$19+'BP Financier'!$G$22))*$V8213*AA8213/(1-$W8213)","v":{"v":26929.96174692209,"d":"26,930"}},{"$f":"'BP Financier'!$G$44*(('BP Financier'!$C$16+'BP Financier'!$D$16+'BP Financier'!$E$16+'BP Financier'!$F$16+'BP Financier'!$G$16)/('BP Financier'!$C$16+'BP Financier'!$C$19+'BP Financier'!$D$16+'BP Financier'!$D$19+'BP Financier'!$E$16+'BP Financier'!$E$19+'BP Financier'!$C$22+'BP Financier'!$D$22+'BP Financier'!$E$22+'BP Financier'!$F$16+'BP Financier'!$F$19+'BP Financier'!$F$22+'BP Financier'!$G$16+'BP Financier'!$G$19+'BP Financier'!$G$22))*$V8213*AB8213/(1-$W8213)","v":{"v":12889.554340407152,"d":"12,890"}},null,{"v":1E-3,"d":"0.10%"},{"$f":"Actif!$E$28/100","v":{"v":0.28900000000000003,"d":"28.90%"}},{"$f":"Actif!$E$30/100","v":{"v":0.09050000000000001,"d":"9.05%"}},{"$f":"Actif!$E$31/100","v":{"v":0.0605,"d":"6.05%"}},{"$f":"Actif!$E$32/100","v":{"v":0.47350000000000003,"d":"47.35%"}},{"$f":"Actif!$E$33/100","v":{"v":0.0585,"d":"5.85%"}},{"$f":"Actif!$E$29/100","v":{"v":0.027999999999999997,"d":"2.80%"}}]
[null,"#101",38,2026,"F","A_VIE",{"v":0.44999999999999996,"d":"0.45"},{"v":0.38999999999999996,"d":"0.39"},0.6,0.6,85,0,{"$f":"ROUND(Primes!$Q$4*V8214,0)","v":11},{"$f":"'BP Financier'!$G$33*(('BP Financier'!$C$16+'BP Financier'!$D$16+'BP Financier'!$E$16+'BP Financier'!$F$16+'BP Financier'!$G$16)/('BP Financier'!$C$16+'BP Financier'!$C$19+'BP Financier'!$D$16+'BP Financier'!$D$19+'BP Financier'!$E$16+'BP Financier'!$E$19+'BP Financier'!$F$16+'BP Financier'!$F$19+'BP Financier'!$G$19+'BP Financier'!$G$16))*V8214","v":{"v":570278.6743187835,"d":"570,279"}},{"v":327302.6120010531,"d":"327,303"},{"$f":"'BP Financier'!$G$44*(('BP Financier'!$C$16+'BP Financier'!$D$16+'BP Financier'!$E$16+'BP Financier'!$F$16+'BP Financier'!$G$16)/('BP Financier'!$C$16+'BP Financier'!$C$19+'BP Financier'!$D$16+'BP Financier'!$D$19+'BP Financier'!$E$16+'BP Financier'!$E$19+'BP Financier'!$C$22+'BP Financier'!$D$22+'BP Financier'!$E$22+'BP Financier'!$F$16+'BP Financier'!$F$19+'BP Financier'!$F$22+'BP Financier'!$G$16+'BP Financier'!$G$19+'BP Financier'!$G$22))*$V8214*X8214/(1-$W8214)","v":{"v":41660.880993101695,"d":"41,661"}},{"$f":"'BP Financier'!$G$44*(('BP Financier'!$C$16+'BP Financier'!$D$16+'BP Financier'!$E$16+'BP Financier'!$F$16+'BP Financier'!$G$16)/('BP Financier'!$C$16+'BP Financier'!$C$19+'BP Financier'!$D$16+'BP Financier'!$D$19+'BP Financier'!$E$16+'BP Financier'!$E$19+'BP Financier'!$C$22+'BP Financier'!$D$22+'BP Financier'!$E$22+'BP Financier'!$F$16+'BP Financier'!$F$19+'BP Financier'!$F$22+'BP Financier'!$G$16+'BP Financier'!$G$19+'BP Financier'!$G$22))*$V8214*Y8214/(1-$W8214)","v":{"v":27850.644199808314,"d":"27,851"}},{"$f":"'BP Financier'!$G$44*(('BP Financier'!$C$16+'BP Financier'!$D$16+'BP Financier'!$E$16+'BP Financier'!$F$16+'BP Financier'!$G$16)/('BP Financier'!$C$16+'BP Financier'!$C$19+'BP Financier'!$D$16+'BP Financier'!$D$19+'BP Financier'!$E$16+'BP Financier'!$E$19+'BP Financier'!$C$22+'BP Financier'!$D$22+'BP Financier'!$E$22+'BP Financier'!$F$16+'BP Financier'!$F$19+'BP Financier'!$F$22+'BP Financier'!$G$16+'BP Financier'!$G$19+'BP Financier'!$G$22))*$V8214*Z8214/(1-$W8214)","v":{"v":217971.57072081385,"d":"217,972"}},{"$f":"'BP Financier'!$G$44*(('BP Financier'!$C$16+'BP Financier'!$D$16+'BP Financier'!$E$16+'BP Financier'!$F$16+'BP Financier'!$G$16)/('BP Financier'!$C$16+'BP Financier'!$C$19+'BP Financier'!$D$16+'BP Financier'!$D$19+'BP Financier'!$E$16+'BP Financier'!$E$19+'BP Financier'!$C$22+'BP Financier'!$D$22+'BP Financier'!$E$22+'BP Financier'!$F$16+'BP Financier'!$F$19+'BP Financier'!$F$22+'BP Financier'!$G$16+'BP Financier'!$G$19+'BP Financier'!$G$22))*$V8214*AA8214/(1-$W8214)","v":{"v":26929.96174692209,"d":"26,930"}},{"$f":"'BP Financier'!$G$44*(('BP Financier'!$C$16+'BP Financier'!$D$16+'BP Financier'!$E$16+'BP Financier'!$F$16+'BP Financier'!$G$16)/('BP Financier'!$C$16+'BP Financier'!$C$19+'BP Financier'!$D$16+'BP Financier'!$D$19+'BP Financier'!$E$16+'BP Financier'!$E$19+'BP Financier'!$C$22+'BP Financier'!$D$22+'BP Financier'!$E$22+'BP Financier'!$F$16+'BP Financier'!$F$19+'BP Financier'!$F$22+'BP Financier'!$G$16+'BP Financier'!$G$19+'BP Financier'!$G$22))*$V8214*AB8214/(1-$W8214)","v":{"v":12889.554340407152,"d":"12,890"}},null,{"v":1E-3,"d":"0.10%"},{"$f":"Actif!$E$28/100","v":{"v":0.28900000000000003,"d":"28.90%"}},{"$f":"Actif!$E$30/100","v":{"v":0.09050000000000001,"d":"9.05%"}},{"$f":"Actif!$E$31/100","v":{"v":0.0605,"d":"6.05%"}},{"$f":"Actif!$E$32/100","v":{"v":0.47350000000000003,"d":"47.35%"}},{"$f":"Actif!$E$33/100","v":{"v":0.0585,"d":"5.85%"}},{"$f":"Actif!$E$29/100","v":{"v":0.027999999999999997,"d":"2.80%"}}]
[null,"#102",38,2028,"F","A_VIE",{"v":0.44999999999999996,"d":"0.45"},{"v":0.38999999999999996,"d":"0.39"},0.6,0.6,85,0,{"$f":"ROUND(Primes!$Q$4*V8215,0)","v":11},{"$f":"'BP Financier'!$G$33*(('BP Financier'!$C$16+'BP Financier'!$D$16+'BP Financier'!$E$16+'BP Financier'!$F$16+'BP Financier'!$G$16)/('BP Financier'!$C$16+'BP Financier'!$C$19+'BP Financier'!$D$16+'BP Financier'!$D$19+'BP Financier'!$E$16+'BP Financier'!$E$19+'BP Financier'!$F$16+'BP Financier'!$F$19+'BP Financier'!$G$19+'BP Financier'!$G$16))*V8215","v":{"v":570278.6743187835,"d":"570,279"}},{"v":327302.6120010531,"d":"327,303"},{"$f":"'BP Financier'!$G$44*(('BP Financier'!$C$16+'BP Financier'!$D$16+'BP Financier'!$E$16+'BP Financier'!$F$16+'BP Financier'!$G$16)/('BP Financier'!$C$16+'BP Financier'!$C$19+'BP Financier'!$D$16+'BP Financier'!$D$19+'BP Financier'!$E$16+'BP Financier'!$E$19+'BP Financier'!$C$22+'BP Financier'!$D$22+'BP Financier'!$E$22+'BP Financier'!$F$16+'BP Financier'!$F$19+'BP Financier'!$F$22+'BP Financier'!$G$16+'BP Financier'!$G$19+'BP Financier'!$G$22))*$V8215*X8215/(1-$W8215)","v":{"v":41660.880993101695,"d":"41,661"}},{"$f":"'BP Financier'!$G$44*(('BP Financier'!$C$16+'BP Financier'!$D$16+'BP Financier'!$E$16+'BP Financier'!$F$16+'BP Financier'!$G$16)/('BP Financier'!$C$16+'BP Financier'!$C$19+'BP Financier'!$D$16+'BP Financier'!$D$19+'BP Financier'!$E$16+'BP Financier'!$E$19+'BP Financier'!$C$22+'BP Financier'!$D$22+'BP Financier'!$E$22+'BP Financier'!$F$16+'BP Financier'!$F$19+'BP Financier'!$F$22+'BP Financier'!$G$16+'BP Financier'!$G$19+'BP Financier'!$G$22))*$V8215*Y8215/(1-$W8215)","v":{"v":27850.644199808314,"d":"27,851"}},{"$f":"'BP Financier'!$G$44*(('BP Financier'!$C$16+'BP Financier'!$D$16+'BP Financier'!$E$16+'BP Financier'!$F$16+'BP Financier'!$G$16)/('BP Financier'!$C$16+'BP Financier'!$C$19+'BP Financier'!$D$16+'BP Financier'!$D$19+'BP Financier'!$E$16+'BP Financier'!$E$19+'BP Financier'!$C$22+'BP Financier'!$D$22+'BP Financier'!$E$22+'BP Financier'!$F$16+'BP Financier'!$F$19+'BP Financier'!$F$22+'BP Financier'!$G$16+'BP Financier'!$G$19+'BP Financier'!$G$22))*$V8215*Z8215/(1-$W8215)","v":{"v":217971.57072081385,"d":"217,972"}},{"$f":"'BP Financier'!$G$44*(('BP Financier'!$C$16+'BP Financier'!$D$16+'BP Financier'!$E$16+'BP Financier'!$F$16+'BP Financier'!$G$16)/('BP Financier'!$C$16+'BP Financier'!$C$19+'BP Financier'!$D$16+'BP Financier'!$D$19+'BP Financier'!$E$16+'BP Financier'!$E$19+'BP Financier'!$C$22+'BP Financier'!$D$22+'BP Financier'!$E$22+'BP Financier'!$F$16+'BP Financier'!$F$19+'BP Financier'!$F$22+'BP Financier'!$G$16+'BP Financier'!$G$19+'BP Financier'!$G$22))*$V8215*AA8215/(1-$W8215)","v":{"v":26929.96174692209,"d":"26,930"}},{"$f":"'BP Financier'!$G$44*(('BP Financier'!$C$16+'BP Financier'!$D$16+'BP Financier'!$E$16+'BP Financier'!$F$16+'BP Financier'!$G$16)/('BP Financier'!$C$16+'BP Financier'!$C$19+'BP Financier'!$D$16+'BP Financier'!$D$19+'BP Financier'!$E$16+'BP Financier'!$E$19+'BP Financier'!$C$22+'BP Financier'!$D$22+'BP Financier'!$E$22+'BP Financier'!$F$16+'BP Financier'!$F$19+'BP Financier'!$F$22+'BP Financier'!$G$16+'BP Financier'!$G$19+'BP Financier'!$G$22))*$V8215*AB8215/(1-$W8215)","v":{"v":12889.554340407152,"d":"12,890"}},null,{"v":1E-3,"d":"0.10%"},{"$f":"Actif!$E$28/100","v":{"v":0.28900000000000003,"d":"28.90%"}},{"$f":"Actif!$E$30/100","v":{"v":0.09050000000000001,"d":"9.05%"}},{"$f":"Actif!$E$31/100","v":{"v":0.0605,"d":"6.05%"}},{"$f":"Actif!$E$32/100","v":{"v":0.47350000000000003,"d":"47.35%"}},{"$f":"Actif!$E$33/100","v":{"v":0.0585,"d":"5.85%"}},{"$f":"Actif!$E$29/100","v":{"v":0.027999999999999997,"d":"2.80%"}}]
[null,"#103",38,2029,"F","A_VIE",{"v":0.44999999999999996,"d":"0.45"},{"v":0.38999999999999996,"d":"0.39"},0.6,0.6,85,0,{"$f":"ROUND(Primes!$Q$4*V8216,0)","v":11},{"$f":"'BP Financier'!$G$33*(('BP Financier'!$C$16+'BP Financier'!$D$16+'BP Financier'!$E$16+'BP Financier'!$F$16+'BP Financier'!$G$16)/('BP Financier'!$C$16+'BP Financier'!$C$19+'BP Financier'!$D$16+'BP Financier'!$D$19+'BP Financier'!$E$16+'BP Financier'!$E$19+'BP Financier'!$F$16+'BP Financier'!$F$19+'BP Financier'!$G$19+'BP Financier'!$G$16))*V8216","v":{"v":570278.6743187835,"d":"570,279"}},{"v":327302.6120010531,"d":"327,303"},{"$f":"'BP Financier'!$G$44*(('BP Financier'!$C$16+'BP Financier'!$D$16+'BP Financier'!$E$16+'BP Financier'!$F$16+'BP Financier'!$G$16)/('BP Financier'!$C$16+'BP Financier'!$C$19+'BP Financier'!$D$16+'BP Financier'!$D$19+'BP Financier'!$E$16+'BP Financier'!$E$19+'BP Financier'!$C$22+'BP Financier'!$D$22+'BP Financier'!$E$22+'BP Financier'!$F$16+'BP Financier'!$F$19+'BP Financier'!$F$22+'BP Financier'!$G$16+'BP Financier'!$G$19+'BP Financier'!$G$22))*$V8216*X8216/(1-$W8216)","v":{"v":41660.880993101695,"d":"41,661"}},{"$f":"'BP Financier'!$G$44*(('BP Financier'!$C$16+'BP Financier'!$D$16+'BP Financier'!$E$16+'BP Financier'!$F$16+'BP Financier'!$G$16)/('BP Financier'!$C$16+'BP Financier'!$C$19+'BP Financier'!$D$16+'BP Financier'!$D$19+'BP Financier'!$E$16+'BP Financier'!$E$19+'BP Financier'!$C$22+'BP Financier'!$D$22+'BP Financier'!$E$22+'BP Financier'!$F$16+'BP Financier'!$F$19+'BP Financier'!$F$22+'BP Financier'!$G$16+'BP Financier'!$G$19+'BP Financier'!$G$22))*$V8216*Y8216/(1-$W8216)","v":{"v":27850.644199808314,"d":"27,851"}},{"$f":"'BP Financier'!$G$44*(('BP Financier'!$C$16+'BP Financier'!$D$16+'BP Financier'!$E$16+'BP Financier'!$F$16+'BP Financier'!$G$16)/('BP Financier'!$C$16+'BP Financier'!$C$19+'BP Financier'!$D$16+'BP Financier'!$D$19+'BP Financier'!$E$16+'BP Financier'!$E$19+'BP Financier'!$C$22+'BP Financier'!$D$22+'BP Financier'!$E$22+'BP Financier'!$F$16+'BP Financier'!$F$19+'BP Financier'!$F$22+'BP Financier'!$G$16+'BP Financier'!$G$19+'BP Financier'!$G$22))*$V8216*Z8216/(1-$W8216)","v":{"v":217971.57072081385,"d":"217,972"}},{"$f":"'BP Financier'!$G$44*(('BP Financier'!$C$16+'BP Financier'!$D$16+'BP Financier'!$E$16+'BP Financier'!$F$16+'BP Financier'!$G$16)/('BP Financier'!$C$16+'BP Financier'!$C$19+'BP Financier'!$D$16+'BP Financier'!$D$19+'BP Financier'!$E$16+'BP Financier'!$E$19+'BP Financier'!$C$22+'BP Financier'!$D$22+'BP Financier'!$E$22+'BP Financier'!$F$16+'BP Financier'!$F$19+'BP Financier'!$F$22+'BP Financier'!$G$16+'BP Financier'!$G$19+'BP Financier'!$G$22))*$V8216*AA8216/(1-$W8216)","v":{"v":26929.96174692209,"d":"26,930"}},{"$f":"'BP Financier'!$G$44*(('BP Financier'!$C$16+'BP Financier'!$D$16+'BP Financier'!$E$16+'BP Financier'!$F$16+'BP Financier'!$G$16)/('BP Financier'!$C$16+'BP Financier'!$C$19+'BP Financier'!$D$16+'BP Financier'!$D$19+'BP Financier'!$E$16+'BP Financier'!$E$19+'BP Financier'!$C$22+'BP Financier'!$D$22+'BP Financier'!$E$22+'BP Financier'!$F$16+'BP Financier'!$F$19+'BP Financier'!$F$22+'BP Financier'!$G$16+'BP Financier'!$G$19+'BP Financier'!$G$22))*$V8216*AB8216/(1-$W8216)","v":{"v":12889.554340407152,"d":"12,890"}},null,{"v":1E-3,"d":"0.10%"},{"$f":"Actif!$E$28/100","v":{"v":0.28900000000000003,"d":"28.90%"}},{"$f":"Actif!$E$30/100","v":{"v":0.09050000000000001,"d":"9.05%"}},{"$f":"Actif!$E$31/100","v":{"v":0.0605,"d":"6.05%"}},{"$f":"Actif!$E$32/100","v":{"v":0.47350000000000003,"d":"47.35%"}},{"$f":"Actif!$E$33/100","v":{"v":0.0585,"d":"5.85%"}},{"$f":"Actif!$E$29/100","v":{"v":0.027999999999999997,"d":"2.80%"}}]
[null,"#104",38,2030,"F","A_VIE",{"v":0.44999999999999996,"d":"0.45"},{"v":0.38999999999999996,"d":"0.39"},0.6,0.6,85,0,{"$f":"ROUND(Primes!$Q$4*V8217,0)","v":11},{"$f":"'BP Financier'!$G$33*(('BP Financier'!$C$16+'BP Financier'!$D$16+'BP Financier'!$E$16+'BP Financier'!$F$16+'BP Financier'!$G$16)/('BP Financier'!$C$16+'BP Financier'!$C$19+'BP Financier'!$D$16+'BP Financier'!$D$19+'BP Financier'!$E$16+'BP Financier'!$E$19+'BP Financier'!$F$16+'BP Financier'!$F$19+'BP Financier'!$G$19+'BP Financier'!$G$16))*V8217","v":{"v":570278.6743187835,"d":"570,279"}},{"v":327302.6120010531,"d":"327,303"},{"$f":"'BP Financier'!$G$44*(('BP Financier'!$C$16+'BP Financier'!$D$16+'BP Financier'!$E$16+'BP Financier'!$F$16+'BP Financier'!$G$16)/('BP Financier'!$C$16+'BP Financier'!$C$19+'BP Financier'!$D$16+'BP Financier'!$D$19+'BP Financier'!$E$16+'BP Financier'!$E$19+'BP Financier'!$C$22+'BP Financier'!$D$22+'BP Financier'!$E$22+'BP Financier'!$F$16+'BP Financier'!$F$19+'BP Financier'!$F$22+'BP Financier'!$G$16+'BP Financier'!$G$19+'BP Financier'!$G$22))*$V8217*X8217/(1-$W8217)","v":{"v":41660.880993101695,"d":"41,661"}},{"$f":"'BP Financier'!$G$44*(('BP Financier'!$C$16+'BP Financier'!$D$16+'BP Financier'!$E$16+'BP Financier'!$F$16+'BP Financier'!$G$16)/('BP Financier'!$C$16+'BP Financier'!$C$19+'BP Financier'!$D$16+'BP Financier'!$D$19+'BP Financier'!$E$16+'BP Financier'!$E$19+'BP Financier'!$C$22+'BP Financier'!$D$22+'BP Financier'!$E$22+'BP Financier'!$F$16+'BP Financier'!$F$19+'BP Financier'!$F$22+'BP Financier'!$G$16+'BP Financier'!$G$19+'BP Financier'!$G$22))*$V8217*Y8217/(1-$W8217)","v":{"v":27850.644199808314,"d":"27,851"}},{"$f":"'BP Financier'!$G$44*(('BP Financier'!$C$16+'BP Financier'!$D$16+'BP Financier'!$E$16+'BP Financier'!$F$16+'BP Financier'!$G$16)/('BP Financier'!$C$16+'BP Financier'!$C$19+'BP Financier'!$D$16+'BP Financier'!$D$19+'BP Financier'!$E$16+'BP Financier'!$E$19+'BP Financier'!$C$22+'BP Financier'!$D$22+'BP Financier'!$E$22+'BP Financier'!$F$16+'BP Financier'!$F$19+'BP Financier'!$F$22+'BP Financier'!$G$16+'BP Financier'!$G$19+'BP Financier'!$G$22))*$V8217*Z8217/(1-$W8217)","v":{"v":217971.57072081385,"d":"217,972"}},{"$f":"'BP Financier'!$G$44*(('BP Financier'!$C$16+'BP Financier'!$D$16+'BP Financier'!$E$16+'BP Financier'!$F$16+'BP Financier'!$G$16)/('BP Financier'!$C$16+'BP Financier'!$C$19+'BP Financier'!$D$16+'BP Financier'!$D$19+'BP Financier'!$E$16+'BP Financier'!$E$19+'BP Financier'!$C$22+'BP Financier'!$D$22+'BP Financier'!$E$22+'BP Financier'!$F$16+'BP Financier'!$F$19+'BP Financier'!$F$22+'BP Financier'!$G$16+'BP Financier'!$G$19+'BP Financier'!$G$22))*$V8217*AA8217/(1-$W8217)","v":{"v":26929.96174692209,"d":"26,930"}},{"$f":"'BP Financier'!$G$44*(('BP Financier'!$C$16+'BP Financier'!$D$16+'BP Financier'!$E$16+'BP Financier'!$F$16+'BP Financier'!$G$16)/('BP Financier'!$C$16+'BP Financier'!$C$19+'BP Financier'!$D$16+'BP Financier'!$D$19+'BP Financier'!$E$16+'BP Financier'!$E$19+'BP Financier'!$C$22+'BP Financier'!$D$22+'BP Financier'!$E$22+'BP Financier'!$F$16+'BP Financier'!$F$19+'BP Financier'!$F$22+'BP Financier'!$G$16+'BP Financier'!$G$19+'BP Financier'!$G$22))*$V8217*AB8217/(1-$W8217)","v":{"v":12889.554340407152,"d":"12,890"}},null,{"v":1E-3,"d":"0.10%"},{"$f":"Actif!$E$28/100","v":{"v":0.28900000000000003,"d":"28.90%"}},{"$f":"Actif!$E$30/100","v":{"v":0.09050000000000001,"d":"9.05%"}},{"$f":"Actif!$E$31/100","v":{"v":0.0605,"d":"6.05%"}},{"$f":"Actif!$E$32/100","v":{"v":0.47350000000000003,"d":"47.35%"}},{"$f":"Actif!$E$33/100","v":{"v":0.0585,"d":"5.85%"}},{"$f":"Actif!$E$29/100","v":{"v":0.027999999999999997,"d":"2.80%"}}]
[null,"#105",38,2031,"F","A_VIE",{"v":0.44999999999999996,"d":"0.45"},{"v":0.38999999999999996,"d":"0.39"},0.6,0.6,85,0,{"$f":"ROUND(Primes!$Q$4*V8218,0)","v":11},{"$f":"'BP Financier'!$G$33*(('BP Financier'!$C$16+'BP Financier'!$D$16+'BP Financier'!$E$16+'BP Financier'!$F$16+'BP Financier'!$G$16)/('BP Financier'!$C$16+'BP Financier'!$C$19+'BP Financier'!$D$16+'BP Financier'!$D$19+'BP Financier'!$E$16+'BP Financier'!$E$19+'BP Financier'!$F$16+'BP Financier'!$F$19+'BP Financier'!$G$19+'BP Financier'!$G$16))*V8218","v":{"v":570278.6743187835,"d":"570,279"}},{"v":327302.6120010531,"d":"327,303"},{"$f":"'BP Financier'!$G$44*(('BP Financier'!$C$16+'BP Financier'!$D$16+'BP Financier'!$E$16+'BP Financier'!$F$16+'BP Financier'!$G$16)/('BP Financier'!$C$16+'BP Financier'!$C$19+'BP Financier'!$D$16+'BP Financier'!$D$19+'BP Financier'!$E$16+'BP Financier'!$E$19+'BP Financier'!$C$22+'BP Financier'!$D$22+'BP Financier'!$E$22+'BP Financier'!$F$16+'BP Financier'!$F$19+'BP Financier'!$F$22+'BP Financier'!$G$16+'BP Financier'!$G$19+'BP Financier'!$G$22))*$V8218*X8218/(1-$W8218)","v":{"v":41660.880993101695,"d":"41,661"}},{"$f":"'BP Financier'!$G$44*(('BP Financier'!$C$16+'BP Financier'!$D$16+'BP Financier'!$E$16+'BP Financier'!$F$16+'BP Financier'!$G$16)/('BP Financier'!$C$16+'BP Financier'!$C$19+'BP Financier'!$D$16+'BP Financier'!$D$19+'BP Financier'!$E$16+'BP Financier'!$E$19+'BP Financier'!$C$22+'BP Financier'!$D$22+'BP Financier'!$E$22+'BP Financier'!$F$16+'BP Financier'!$F$19+'BP Financier'!$F$22+'BP Financier'!$G$16+'BP Financier'!$G$19+'BP Financier'!$G$22))*$V8218*Y8218/(1-$W8218)","v":{"v":27850.644199808314,"d":"27,851"}},{"$f":"'BP Financier'!$G$44*(('BP Financier'!$C$16+'BP Financier'!$D$16+'BP Financier'!$E$16+'BP Financier'!$F$16+'BP Financier'!$G$16)/('BP Financier'!$C$16+'BP Financier'!$C$19+'BP Financier'!$D$16+'BP Financier'!$D$19+'BP Financier'!$E$16+'BP Financier'!$E$19+'BP Financier'!$C$22+'BP Financier'!$D$22+'BP Financier'!$E$22+'BP Financier'!$F$16+'BP Financier'!$F$19+'BP Financier'!$F$22+'BP Financier'!$G$16+'BP Financier'!$G$19+'BP Financier'!$G$22))*$V8218*Z8218/(1-$W8218)","v":{"v":217971.57072081385,"d":"217,972"}},{"$f":"'BP Financier'!$G$44*(('BP Financier'!$C$16+'BP Financier'!$D$16+'BP Financier'!$E$16+'BP Financier'!$F$16+'BP Financier'!$G$16)/('BP Financier'!$C$16+'BP Financier'!$C$19+'BP Financier'!$D$16+'BP Financier'!$D$19+'BP Financier'!$E$16+'BP Financier'!$E$19+'BP Financier'!$C$22+'BP Financier'!$D$22+'BP Financier'!$E$22+'BP Financier'!$F$16+'BP Financier'!$F$19+'BP Financier'!$F$22+'BP Financier'!$G$16+'BP Financier'!$G$19+'BP Financier'!$G$22))*$V8218*AA8218/(1-$W8218)","v":{"v":26929.96174692209,"d":"26,930"}},{"$f":"'BP Financier'!$G$44*(('BP Financier'!$C$16+'BP Financier'!$D$16+'BP Financier'!$E$16+'BP Financier'!$F$16+'BP Financier'!$G$16)/('BP Financier'!$C$16+'BP Financier'!$C$19+'BP Financier'!$D$16+'BP Financier'!$D$19+'BP Financier'!$E$16+'BP Financier'!$E$19+'BP Financier'!$C$22+'BP Financier'!$D$22+'BP Financier'!$E$22+'BP Financier'!$F$16+'BP Financier'!$F$19+'BP Financier'!$F$22+'BP Financier'!$G$16+'BP Financier'!$G$19+'BP Financier'!$G$22))*$V8218*AB8218/(1-$W8218)","v":{"v":12889.554340407152,"d":"12,890"}},null,{"v":1E-3,"d":"0.10%"},{"$f":"Actif!$E$28/100","v":{"v":0.28900000000000003,"d":"28.90%"}},{"$f":"Actif!$E$30/100","v":{"v":0.09050000000000001,"d":"9.05%"}},{"$f":"Actif!$E$31/100","v":{"v":0.0605,"d":"6.05%"}},{"$f":"Actif!$E$32/100","v":{"v":0.47350000000000003,"d":"47.35%"}},{"$f":"Actif!$E$33/100","v":{"v":0.0585,"d":"5.85%"}},{"$f":"Actif!$E$29/100","v":{"v":0.027999999999999997,"d":"2.80%"}}]
[null,"#106",39,2026,"H","A_VIE",{"v":0.44999999999999996,"d":"0.45"},{"v":0.38999999999999996,"d":"0.39"},0.6,0.6,85,0,{"$f":"ROUND(Primes!$Q$4*V8219,0)","v":11},{"$f":"'BP Financier'!$G$33*(('BP Financier'!$C$16+'BP Financier'!$D$16+'BP Financier'!$E$16+'BP Financier'!$F$16+'BP Financier'!$G$16)/('BP Financier'!$C$16+'BP Financier'!$C$19+'BP Financier'!$D$16+'BP Financier'!$D$19+'BP Financier'!$E$16+'BP Financier'!$E$19+'BP Financier'!$F$16+'BP Financier'!$F$19+'BP Financier'!$G$19+'BP Financier'!$G$16))*V8219","v":{"v":570278.6743187835,"d":"570,279"}},{"v":327302.6120010531,"d":"327,303"},{"$f":"'BP Financier'!$G$44*(('BP Financier'!$C$16+'BP Financier'!$D$16+'BP Financier'!$E$16+'BP Financier'!$F$16+'BP Financier'!$G$16)/('BP Financier'!$C$16+'BP Financier'!$C$19+'BP Financier'!$D$16+'BP Financier'!$D$19+'BP Financier'!$E$16+'BP Financier'!$E$19+'BP Financier'!$C$22+'BP Financier'!$D$22+'BP Financier'!$E$22+'BP Financier'!$F$16+'BP Financier'!$F$19+'BP Financier'!$F$22+'BP Financier'!$G$16+'BP Financier'!$G$19+'BP Financier'!$G$22))*$V8219*X8219/(1-$W8219)","v":{"v":41660.880993101695,"d":"41,661"}},{"$f":"'BP Financier'!$G$44*(('BP Financier'!$C$16+'BP Financier'!$D$16+'BP Financier'!$E$16+'BP Financier'!$F$16+'BP Financier'!$G$16)/('BP Financier'!$C$16+'BP Financier'!$C$19+'BP Financier'!$D$16+'BP Financier'!$D$19+'BP Financier'!$E$16+'BP Financier'!$E$19+'BP Financier'!$C$22+'BP Financier'!$D$22+'BP Financier'!$E$22+'BP Financier'!$F$16+'BP Financier'!$F$19+'BP Financier'!$F$22+'BP Financier'!$G$16+'BP Financier'!$G$19+'BP Financier'!$G$22))*$V8219*Y8219/(1-$W8219)","v":{"v":27850.644199808314,"d":"27,851"}},{"$f":"'BP Financier'!$G$44*(('BP Financier'!$C$16+'BP Financier'!$D$16+'BP Financier'!$E$16+'BP Financier'!$F$16+'BP Financier'!$G$16)/('BP Financier'!$C$16+'BP Financier'!$C$19+'BP Financier'!$D$16+'BP Financier'!$D$19+'BP Financier'!$E$16+'BP Financier'!$E$19+'BP Financier'!$C$22+'BP Financier'!$D$22+'BP Financier'!$E$22+'BP Financier'!$F$16+'BP Financier'!$F$19+'BP Financier'!$F$22+'BP Financier'!$G$16+'BP Financier'!$G$19+'BP Financier'!$G$22))*$V8219*Z8219/(1-$W8219)","v":{"v":217971.57072081385,"d":"217,972"}},{"$f":"'BP Financier'!$G$44*(('BP Financier'!$C$16+'BP Financier'!$D$16+'BP Financier'!$E$16+'BP Financier'!$F$16+'BP Financier'!$G$16)/('BP Financier'!$C$16+'BP Financier'!$C$19+'BP Financier'!$D$16+'BP Financier'!$D$19+'BP Financier'!$E$16+'BP Financier'!$E$19+'BP Financier'!$C$22+'BP Financier'!$D$22+'BP Financier'!$E$22+'BP Financier'!$F$16+'BP Financier'!$F$19+'BP Financier'!$F$22+'BP Financier'!$G$16+'BP Financier'!$G$19+'BP Financier'!$G$22))*$V8219*AA8219/(1-$W8219)","v":{"v":26929.96174692209,"d":"26,930"}},{"$f":"'BP Financier'!$G$44*(('BP Financier'!$C$16+'BP Financier'!$D$16+'BP Financier'!$E$16+'BP Financier'!$F$16+'BP Financier'!$G$16)/('BP Financier'!$C$16+'BP Financier'!$C$19+'BP Financier'!$D$16+'BP Financier'!$D$19+'BP Financier'!$E$16+'BP Financier'!$E$19+'BP Financier'!$C$22+'BP Financier'!$D$22+'BP Financier'!$E$22+'BP Financier'!$F$16+'BP Financier'!$F$19+'BP Financier'!$F$22+'BP Financier'!$G$16+'BP Financier'!$G$19+'BP Financier'!$G$22))*$V8219*AB8219/(1-$W8219)","v":{"v":12889.554340407152,"d":"12,890"}},null,{"v":1E-3,"d":"0.10%"},{"$f":"Actif!$E$28/100","v":{"v":0.28900000000000003,"d":"28.90%"}},{"$f":"Actif!$E$30/100","v":{"v":0.09050000000000001,"d":"9.05%"}},{"$f":"Actif!$E$31/100","v":{"v":0.0605,"d":"6.05%"}},{"$f":"Actif!$E$32/100","v":{"v":0.47350000000000003,"d":"47.35%"}},{"$f":"Actif!$E$33/100","v":{"v":0.0585,"d":"5.85%"}},{"$f":"Actif!$E$29/100","v":{"v":0.027999999999999997,"d":"2.80%"}}]
[null,"#107",39,2028,"H","A_VIE",{"$f":"frais_gestion_Euro*100","v":{"v":0.44999999999999996,"d":"0.45"}},{"$f":"frais_gestion_UC*100","v":{"v":0.38999999999999996,"d":"0.39"}},{"$f":"frais_distribution_FG*100","v":0.6},{"$f":"frais_distribution_UC*100","v":0.6},85,0,{"$f":"ROUND(Primes!$Q$4*V8220,0)","v":11},{"$f":"'BP Financier'!$G$33*(('BP Financier'!$C$16+'BP Financier'!$D$16+'BP Financier'!$E$16+'BP Financier'!$F$16+'BP Financier'!$G$16)/('BP Financier'!$C$16+'BP Financier'!$C$19+'BP Financier'!$D$16+'BP Financier'!$D$19+'BP Financier'!$E$16+'BP Financier'!$E$19+'BP Financier'!$F$16+'BP Financier'!$F$19+'BP Financier'!$G$19+'BP Financier'!$G$16))*V8220","v":{"v":570278.6743187835,"d":"570,279"}},{"v":327302.6120010531,"d":"327,303"},{"$f":"'BP Financier'!$G$44*(('BP Financier'!$C$16+'BP Financier'!$D$16+'BP Financier'!$E$16+'BP Financier'!$F$16+'BP Financier'!$G$16)/('BP Financier'!$C$16+'BP Financier'!$C$19+'BP Financier'!$D$16+'BP Financier'!$D$19+'BP Financier'!$E$16+'BP Financier'!$E$19+'BP Financier'!$C$22+'BP Financier'!$D$22+'BP Financier'!$E$22+'BP Financier'!$F$16+'BP Financier'!$F$19+'BP Financier'!$F$22+'BP Financier'!$G$16+'BP Financier'!$G$19+'BP Financier'!$G$22))*$V8220*X8220/(1-$W8220)","v":{"v":41660.880993101695,"d":"41,661"}},{"$f":"'BP Financier'!$G$44*(('BP Financier'!$C$16+'BP Financier'!$D$16+'BP Financier'!$E$16+'BP Financier'!$F$16+'BP Financier'!$G$16)/('BP Financier'!$C$16+'BP Financier'!$C$19+'BP Financier'!$D$16+'BP Financier'!$D$19+'BP Financier'!$E$16+'BP Financier'!$E$19+'BP Financier'!$C$22+'BP Financier'!$D$22+'BP Financier'!$E$22+'BP Financier'!$F$16+'BP Financier'!$F$19+'BP Financier'!$F$22+'BP Financier'!$G$16+'BP Financier'!$G$19+'BP Financier'!$G$22))*$V8220*Y8220/(1-$W8220)","v":{"v":27850.644199808314,"d":"27,851"}},{"$f":"'BP Financier'!$G$44*(('BP Financier'!$C$16+'BP Financier'!$D$16+'BP Financier'!$E$16+'BP Financier'!$F$16+'BP Financier'!$G$16)/('BP Financier'!$C$16+'BP Financier'!$C$19+'BP Financier'!$D$16+'BP Financier'!$D$19+'BP Financier'!$E$16+'BP Financier'!$E$19+'BP Financier'!$C$22+'BP Financier'!$D$22+'BP Financier'!$E$22+'BP Financier'!$F$16+'BP Financier'!$F$19+'BP Financier'!$F$22+'BP Financier'!$G$16+'BP Financier'!$G$19+'BP Financier'!$G$22))*$V8220*Z8220/(1-$W8220)","v":{"v":217971.57072081385,"d":"217,972"}},{"$f":"'BP Financier'!$G$44*(('BP Financier'!$C$16+'BP Financier'!$D$16+'BP Financier'!$E$16+'BP Financier'!$F$16+'BP Financier'!$G$16)/('BP Financier'!$C$16+'BP Financier'!$C$19+'BP Financier'!$D$16+'BP Financier'!$D$19+'BP Financier'!$E$16+'BP Financier'!$E$19+'BP Financier'!$C$22+'BP Financier'!$D$22+'BP Financier'!$E$22+'BP Financier'!$F$16+'BP Financier'!$F$19+'BP Financier'!$F$22+'BP Financier'!$G$16+'BP Financier'!$G$19+'BP Financier'!$G$22))*$V8220*AA8220/(1-$W8220)","v":{"v":26929.96174692209,"d":"26,930"}},{"$f":"'BP Financier'!$G$44*(('BP Financier'!$C$16+'BP Financier'!$D$16+'BP Financier'!$E$16+'BP Financier'!$F$16+'BP Financier'!$G$16)/('BP Financier'!$C$16+'BP Financier'!$C$19+'BP Financier'!$D$16+'BP Financier'!$D$19+'BP Financier'!$E$16+'BP Financier'!$E$19+'BP Financier'!$C$22+'BP Financier'!$D$22+'BP Financier'!$E$22+'BP Financier'!$F$16+'BP Financier'!$F$19+'BP Financier'!$F$22+'BP Financier'!$G$16+'BP Financier'!$G$19+'BP Financier'!$G$22))*$V8220*AB8220/(1-$W8220)","v":{"v":12889.554340407152,"d":"12,890"}},null,{"v":1E-3,"d":"0.10%"},{"$f":"Actif!$E$28/100","v":{"v":0.28900000000000003,"d":"28.90%"}},{"$f":"Actif!$E$30/100","v":{"v":0.09050000000000001,"d":"9.05%"}},{"$f":"Actif!$E$31/100","v":{"v":0.0605,"d":"6.05%"}},{"$f":"Actif!$E$32/100","v":{"v":0.47350000000000003,"d":"47.35%"}},{"$f":"Actif!$E$33/100","v":{"v":0.0585,"d":"5.85%"}},{"$f":"Actif!$E$29/100","v":{"v":0.027999999999999997,"d":"2.80%"}}]
[null,"#108",39,2029,"H","A_VIE",{"v":0.44999999999999996,"d":"0.45"},{"v":0.38999999999999996,"d":"0.39"},0.6,0.6,85,0,{"$f":"ROUND(Primes!$Q$4*V8221,0)","v":11},{"$f":"'BP Financier'!$G$33*(('BP Financier'!$C$16+'BP Financier'!$D$16+'BP Financier'!$E$16+'BP Financier'!$F$16+'BP Financier'!$G$16)/('BP Financier'!$C$16+'BP Financier'!$C$19+'BP Financier'!$D$16+'BP Financier'!$D$19+'BP Financier'!$E$16+'BP Financier'!$E$19+'BP Financier'!$F$16+'BP Financier'!$F$19+'BP Financier'!$G$19+'BP Financier'!$G$16))*V8221","v":{"v":570278.6743187835,"d":"570,279"}},{"v":327302.6120010531,"d":"327,303"},{"$f":"'BP Financier'!$G$44*(('BP Financier'!$C$16+'BP Financier'!$D$16+'BP Financier'!$E$16+'BP Financier'!$F$16+'BP Financier'!$G$16)/('BP Financier'!$C$16+'BP Financier'!$C$19+'BP Financier'!$D$16+'BP Financier'!$D$19+'BP Financier'!$E$16+'BP Financier'!$E$19+'BP Financier'!$C$22+'BP Financier'!$D$22+'BP Financier'!$E$22+'BP Financier'!$F$16+'BP Financier'!$F$19+'BP Financier'!$F$22+'BP Financier'!$G$16+'BP Financier'!$G$19+'BP Financier'!$G$22))*$V8221*X8221/(1-$W8221)","v":{"v":41660.880993101695,"d":"41,661"}},{"$f":"'BP Financier'!$G$44*(('BP Financier'!$C$16+'BP Financier'!$D$16+'BP Financier'!$E$16+'BP Financier'!$F$16+'BP Financier'!$G$16)/('BP Financier'!$C$16+'BP Financier'!$C$19+'BP Financier'!$D$16+'BP Financier'!$D$19+'BP Financier'!$E$16+'BP Financier'!$E$19+'BP Financier'!$C$22+'BP Financier'!$D$22+'BP Financier'!$E$22+'BP Financier'!$F$16+'BP Financier'!$F$19+'BP Financier'!$F$22+'BP Financier'!$G$16+'BP Financier'!$G$19+'BP Financier'!$G$22))*$V8221*Y8221/(1-$W8221)","v":{"v":27850.644199808314,"d":"27,851"}},{"$f":"'BP Financier'!$G$44*(('BP Financier'!$C$16+'BP Financier'!$D$16+'BP Financier'!$E$16+'BP Financier'!$F$16+'BP Financier'!$G$16)/('BP Financier'!$C$16+'BP Financier'!$C$19+'BP Financier'!$D$16+'BP Financier'!$D$19+'BP Financier'!$E$16+'BP Financier'!$E$19+'BP Financier'!$C$22+'BP Financier'!$D$22+'BP Financier'!$E$22+'BP Financier'!$F$16+'BP Financier'!$F$19+'BP Financier'!$F$22+'BP Financier'!$G$16+'BP Financier'!$G$19+'BP Financier'!$G$22))*$V8221*Z8221/(1-$W8221)","v":{"v":217971.57072081385,"d":"217,972"}},{"$f":"'BP Financier'!$G$44*(('BP Financier'!$C$16+'BP Financier'!$D$16+'BP Financier'!$E$16+'BP Financier'!$F$16+'BP Financier'!$G$16)/('BP Financier'!$C$16+'BP Financier'!$C$19+'BP Financier'!$D$16+'BP Financier'!$D$19+'BP Financier'!$E$16+'BP Financier'!$E$19+'BP Financier'!$C$22+'BP Financier'!$D$22+'BP Financier'!$E$22+'BP Financier'!$F$16+'BP Financier'!$F$19+'BP Financier'!$F$22+'BP Financier'!$G$16+'BP Financier'!$G$19+'BP Financier'!$G$22))*$V8221*AA8221/(1-$W8221)","v":{"v":26929.96174692209,"d":"26,930"}},{"$f":"'BP Financier'!$G$44*(('BP Financier'!$C$16+'BP Financier'!$D$16+'BP Financier'!$E$16+'BP Financier'!$F$16+'BP Financier'!$G$16)/('BP Financier'!$C$16+'BP Financier'!$C$19+'BP Financier'!$D$16+'BP Financier'!$D$19+'BP Financier'!$E$16+'BP Financier'!$E$19+'BP Financier'!$C$22+'BP Financier'!$D$22+'BP Financier'!$E$22+'BP Financier'!$F$16+'BP Financier'!$F$19+'BP Financier'!$F$22+'BP Financier'!$G$16+'BP Financier'!$G$19+'BP Financier'!$G$22))*$V8221*AB8221/(1-$W8221)","v":{"v":12889.554340407152,"d":"12,890"}},null,{"v":1E-3,"d":"0.10%"},{"$f":"Actif!$E$28/100","v":{"v":0.28900000000000003,"d":"28.90%"}},{"$f":"Actif!$E$30/100","v":{"v":0.09050000000000001,"d":"9.05%"}},{"$f":"Actif!$E$31/100","v":{"v":0.0605,"d":"6.05%"}},{"$f":"Actif!$E$32/100","v":{"v":0.47350000000000003,"d":"47.35%"}},{"$f":"Actif!$E$33/100","v":{"v":0.0585,"d":"5.85%"}},{"$f":"Actif!$E$29/100","v":{"v":0.027999999999999997,"d":"2.80%"}}]
[null,"#109",39,2030,"H","A_VIE",{"v":0.44999999999999996,"d":"0.45"},{"v":0.38999999999999996,"d":"0.39"},0.6,0.6,85,0,{"$f":"ROUND(Primes!$Q$4*V8222,0)","v":11},{"$f":"'BP Financier'!$G$33*(('BP Financier'!$C$16+'BP Financier'!$D$16+'BP Financier'!$E$16+'BP Financier'!$F$16+'BP Financier'!$G$16)/('BP Financier'!$C$16+'BP Financier'!$C$19+'BP Financier'!$D$16+'BP Financier'!$D$19+'BP Financier'!$E$16+'BP Financier'!$E$19+'BP Financier'!$F$16+'BP Financier'!$F$19+'BP Financier'!$G$19+'BP Financier'!$G$16))*V8222","v":{"v":570278.6743187835,"d":"570,279"}},{"v":327302.6120010531,"d":"327,303"},{"$f":"'BP Financier'!$G$44*(('BP Financier'!$C$16+'BP Financier'!$D$16+'BP Financier'!$E$16+'BP Financier'!$F$16+'BP Financier'!$G$16)/('BP Financier'!$C$16+'BP Financier'!$C$19+'BP Financier'!$D$16+'BP Financier'!$D$19+'BP Financier'!$E$16+'BP Financier'!$E$19+'BP Financier'!$C$22+'BP Financier'!$D$22+'BP Financier'!$E$22+'BP Financier'!$F$16+'BP Financier'!$F$19+'BP Financier'!$F$22+'BP Financier'!$G$16+'BP Financier'!$G$19+'BP Financier'!$G$22))*$V8222*X8222/(1-$W8222)","v":{"v":41660.880993101695,"d":"41,661"}},{"$f":"'BP Financier'!$G$44*(('BP Financier'!$C$16+'BP Financier'!$D$16+'BP Financier'!$E$16+'BP Financier'!$F$16+'BP Financier'!$G$16)/('BP Financier'!$C$16+'BP Financier'!$C$19+'BP Financier'!$D$16+'BP Financier'!$D$19+'BP Financier'!$E$16+'BP Financier'!$E$19+'BP Financier'!$C$22+'BP Financier'!$D$22+'BP Financier'!$E$22+'BP Financier'!$F$16+'BP Financier'!$F$19+'BP Financier'!$F$22+'BP Financier'!$G$16+'BP Financier'!$G$19+'BP Financier'!$G$22))*$V8222*Y8222/(1-$W8222)","v":{"v":27850.644199808314,"d":"27,851"}},{"$f":"'BP Financier'!$G$44*(('BP Financier'!$C$16+'BP Financier'!$D$16+'BP Financier'!$E$16+'BP Financier'!$F$16+'BP Financier'!$G$16)/('BP Financier'!$C$16+'BP Financier'!$C$19+'BP Financier'!$D$16+'BP Financier'!$D$19+'BP Financier'!$E$16+'BP Financier'!$E$19+'BP Financier'!$C$22+'BP Financier'!$D$22+'BP Financier'!$E$22+'BP Financier'!$F$16+'BP Financier'!$F$19+'BP Financier'!$F$22+'BP Financier'!$G$16+'BP Financier'!$G$19+'BP Financier'!$G$22))*$V8222*Z8222/(1-$W8222)","v":{"v":217971.57072081385,"d":"217,972"}},{"$f":"'BP Financier'!$G$44*(('BP Financier'!$C$16+'BP Financier'!$D$16+'BP Financier'!$E$16+'BP Financier'!$F$16+'BP Financier'!$G$16)/('BP Financier'!$C$16+'BP Financier'!$C$19+'BP Financier'!$D$16+'BP Financier'!$D$19+'BP Financier'!$E$16+'BP Financier'!$E$19+'BP Financier'!$C$22+'BP Financier'!$D$22+'BP Financier'!$E$22+'BP Financier'!$F$16+'BP Financier'!$F$19+'BP Financier'!$F$22+'BP Financier'!$G$16+'BP Financier'!$G$19+'BP Financier'!$G$22))*$V8222*AA8222/(1-$W8222)","v":{"v":26929.96174692209,"d":"26,930"}},{"$f":"'BP Financier'!$G$44*(('BP Financier'!$C$16+'BP Financier'!$D$16+'BP Financier'!$E$16+'BP Financier'!$F$16+'BP Financier'!$G$16)/('BP Financier'!$C$16+'BP Financier'!$C$19+'BP Financier'!$D$16+'BP Financier'!$D$19+'BP Financier'!$E$16+'BP Financier'!$E$19+'BP Financier'!$C$22+'BP Financier'!$D$22+'BP Financier'!$E$22+'BP Financier'!$F$16+'BP Financier'!$F$19+'BP Financier'!$F$22+'BP Financier'!$G$16+'BP Financier'!$G$19+'BP Financier'!$G$22))*$V8222*AB8222/(1-$W8222)","v":{"v":12889.554340407152,"d":"12,890"}},null,{"v":1E-3,"d":"0.10%"},{"$f":"Actif!$E$28/100","v":{"v":0.28900000000000003,"d":"28.90%"}},{"$f":"Actif!$E$30/100","v":{"v":0.09050000000000001,"d":"9.05%"}},{"$f":"Actif!$E$31/100","v":{"v":0.0605,"d":"6.05%"}},{"$f":"Actif!$E$32/100","v":{"v":0.47350000000000003,"d":"47.35%"}},{"$f":"Actif!$E$33/100","v":{"v":0.0585,"d":"5.85%"}},{"$f":"Actif!$E$29/100","v":{"v":0.027999999999999997,"d":"2.80%"}}]
[null,"#110",39,2031,"H","A_VIE",{"v":0.44999999999999996,"d":"0.45"},{"v":0.38999999999999996,"d":"0.39"},0.6,0.6,85,0,{"$f":"ROUND(Primes!$Q$4*V8223,0)","v":11},{"$f":"'BP Financier'!$G$33*(('BP Financier'!$C$16+'BP Financier'!$D$16+'BP Financier'!$E$16+'BP Financier'!$F$16+'BP Financier'!$G$16)/('BP Financier'!$C$16+'BP Financier'!$C$19+'BP Financier'!$D$16+'BP Financier'!$D$19+'BP Financier'!$E$16+'BP Financier'!$E$19+'BP Financier'!$F$16+'BP Financier'!$F$19+'BP Financier'!$G$19+'BP Financier'!$G$16))*V8223","v":{"v":570278.6743187835,"d":"570,279"}},{"v":327302.6120010531,"d":"327,303"},{"$f":"'BP Financier'!$G$44*(('BP Financier'!$C$16+'BP Financier'!$D$16+'BP Financier'!$E$16+'BP Financier'!$F$16+'BP Financier'!$G$16)/('BP Financier'!$C$16+'BP Financier'!$C$19+'BP Financier'!$D$16+'BP Financier'!$D$19+'BP Financier'!$E$16+'BP Financier'!$E$19+'BP Financier'!$C$22+'BP Financier'!$D$22+'BP Financier'!$E$22+'BP Financier'!$F$16+'BP Financier'!$F$19+'BP Financier'!$F$22+'BP Financier'!$G$16+'BP Financier'!$G$19+'BP Financier'!$G$22))*$V8223*X8223/(1-$W8223)","v":{"v":41660.880993101695,"d":"41,661"}},{"$f":"'BP Financier'!$G$44*(('BP Financier'!$C$16+'BP Financier'!$D$16+'BP Financier'!$E$16+'BP Financier'!$F$16+'BP Financier'!$G$16)/('BP Financier'!$C$16+'BP Financier'!$C$19+'BP Financier'!$D$16+'BP Financier'!$D$19+'BP Financier'!$E$16+'BP Financier'!$E$19+'BP Financier'!$C$22+'BP Financier'!$D$22+'BP Financier'!$E$22+'BP Financier'!$F$16+'BP Financier'!$F$19+'BP Financier'!$F$22+'BP Financier'!$G$16+'BP Financier'!$G$19+'BP Financier'!$G$22))*$V8223*Y8223/(1-$W8223)","v":{"v":27850.644199808314,"d":"27,851"}},{"$f":"'BP Financier'!$G$44*(('BP Financier'!$C$16+'BP Financier'!$D$16+'BP Financier'!$E$16+'BP Financier'!$F$16+'BP Financier'!$G$16)/('BP Financier'!$C$16+'BP Financier'!$C$19+'BP Financier'!$D$16+'BP Financier'!$D$19+'BP Financier'!$E$16+'BP Financier'!$E$19+'BP Financier'!$C$22+'BP Financier'!$D$22+'BP Financier'!$E$22+'BP Financier'!$F$16+'BP Financier'!$F$19+'BP Financier'!$F$22+'BP Financier'!$G$16+'BP Financier'!$G$19+'BP Financier'!$G$22))*$V8223*Z8223/(1-$W8223)","v":{"v":217971.57072081385,"d":"217,972"}},{"$f":"'BP Financier'!$G$44*(('BP Financier'!$C$16+'BP Financier'!$D$16+'BP Financier'!$E$16+'BP Financier'!$F$16+'BP Financier'!$G$16)/('BP Financier'!$C$16+'BP Financier'!$C$19+'BP Financier'!$D$16+'BP Financier'!$D$19+'BP Financier'!$E$16+'BP Financier'!$E$19+'BP Financier'!$C$22+'BP Financier'!$D$22+'BP Financier'!$E$22+'BP Financier'!$F$16+'BP Financier'!$F$19+'BP Financier'!$F$22+'BP Financier'!$G$16+'BP Financier'!$G$19+'BP Financier'!$G$22))*$V8223*AA8223/(1-$W8223)","v":{"v":26929.96174692209,"d":"26,930"}},{"$f":"'BP Financier'!$G$44*(('BP Financier'!$C$16+'BP Financier'!$D$16+'BP Financier'!$E$16+'BP Financier'!$F$16+'BP Financier'!$G$16)/('BP Financier'!$C$16+'BP Financier'!$C$19+'BP Financier'!$D$16+'BP Financier'!$D$19+'BP Financier'!$E$16+'BP Financier'!$E$19+'BP Financier'!$C$22+'BP Financier'!$D$22+'BP Financier'!$E$22+'BP Financier'!$F$16+'BP Financier'!$F$19+'BP Financier'!$F$22+'BP Financier'!$G$16+'BP Financier'!$G$19+'BP Financier'!$G$22))*$V8223*AB8223/(1-$W8223)","v":{"v":12889.554340407152,"d":"12,890"}},null,{"v":1E-3,"d":"0.10%"},{"$f":"Actif!$E$28/100","v":{"v":0.28900000000000003,"d":"28.90%"}},{"$f":"Actif!$E$30/100","v":{"v":0.09050000000000001,"d":"9.05%"}},{"$f":"Actif!$E$31/100","v":{"v":0.0605,"d":"6.05%"}},{"$f":"Actif!$E$32/100","v":{"v":0.47350000000000003,"d":"47.35%"}},{"$f":"Actif!$E$33/100","v":{"v":0.0585,"d":"5.85%"}},{"$f":"Actif!$E$29/100","v":{"v":0.027999999999999997,"d":"2.80%"}}]
[null,"#111",40,2026,"H","A_VIE",{"v":0.44999999999999996,"d":"0.45"},{"v":0.38999999999999996,"d":"0.39"},0.6,0.6,85,0,{"$f":"ROUND(Primes!$Q$4*V8224,0)","v":11},{"$f":"'BP Financier'!$G$33*(('BP Financier'!$C$16+'BP Financier'!$D$16+'BP Financier'!$E$16+'BP Financier'!$F$16+'BP Financier'!$G$16)/('BP Financier'!$C$16+'BP Financier'!$C$19+'BP Financier'!$D$16+'BP Financier'!$D$19+'BP Financier'!$E$16+'BP Financier'!$E$19+'BP Financier'!$F$16+'BP Financier'!$F$19+'BP Financier'!$G$19+'BP Financier'!$G$16))*V8224","v":{"v":570278.6743187835,"d":"570,279"}},{"v":327302.6120010531,"d":"327,303"},{"$f":"'BP Financier'!$G$44*(('BP Financier'!$C$16+'BP Financier'!$D$16+'BP Financier'!$E$16+'BP Financier'!$F$16+'BP Financier'!$G$16)/('BP Financier'!$C$16+'BP Financier'!$C$19+'BP Financier'!$D$16+'BP Financier'!$D$19+'BP Financier'!$E$16+'BP Financier'!$E$19+'BP Financier'!$C$22+'BP Financier'!$D$22+'BP Financier'!$E$22+'BP Financier'!$F$16+'BP Financier'!$F$19+'BP Financier'!$F$22+'BP Financier'!$G$16+'BP Financier'!$G$19+'BP Financier'!$G$22))*$V8224*X8224/(1-$W8224)","v":{"v":41660.880993101695,"d":"41,661"}},{"$f":"'BP Financier'!$G$44*(('BP Financier'!$C$16+'BP Financier'!$D$16+'BP Financier'!$E$16+'BP Financier'!$F$16+'BP Financier'!$G$16)/('BP Financier'!$C$16+'BP Financier'!$C$19+'BP Financier'!$D$16+'BP Financier'!$D$19+'BP Financier'!$E$16+'BP Financier'!$E$19+'BP Financier'!$C$22+'BP Financier'!$D$22+'BP Financier'!$E$22+'BP Financier'!$F$16+'BP Financier'!$F$19+'BP Financier'!$F$22+'BP Financier'!$G$16+'BP Financier'!$G$19+'BP Financier'!$G$22))*$V8224*Y8224/(1-$W8224)","v":{"v":27850.644199808314,"d":"27,851"}},{"$f":"'BP Financier'!$G$44*(('BP Financier'!$C$16+'BP Financier'!$D$16+'BP Financier'!$E$16+'BP Financier'!$F$16+'BP Financier'!$G$16)/('BP Financier'!$C$16+'BP Financier'!$C$19+'BP Financier'!$D$16+'BP Financier'!$D$19+'BP Financier'!$E$16+'BP Financier'!$E$19+'BP Financier'!$C$22+'BP Financier'!$D$22+'BP Financier'!$E$22+'BP Financier'!$F$16+'BP Financier'!$F$19+'BP Financier'!$F$22+'BP Financier'!$G$16+'BP Financier'!$G$19+'BP Financier'!$G$22))*$V8224*Z8224/(1-$W8224)","v":{"v":217971.57072081385,"d":"217,972"}},{"$f":"'BP Financier'!$G$44*(('BP Financier'!$C$16+'BP Financier'!$D$16+'BP Financier'!$E$16+'BP Financier'!$F$16+'BP Financier'!$G$16)/('BP Financier'!$C$16+'BP Financier'!$C$19+'BP Financier'!$D$16+'BP Financier'!$D$19+'BP Financier'!$E$16+'BP Financier'!$E$19+'BP Financier'!$C$22+'BP Financier'!$D$22+'BP Financier'!$E$22+'BP Financier'!$F$16+'BP Financier'!$F$19+'BP Financier'!$F$22+'BP Financier'!$G$16+'BP Financier'!$G$19+'BP Financier'!$G$22))*$V8224*AA8224/(1-$W8224)","v":{"v":26929.96174692209,"d":"26,930"}},{"$f":"'BP Financier'!$G$44*(('BP Financier'!$C$16+'BP Financier'!$D$16+'BP Financier'!$E$16+'BP Financier'!$F$16+'BP Financier'!$G$16)/('BP Financier'!$C$16+'BP Financier'!$C$19+'BP Financier'!$D$16+'BP Financier'!$D$19+'BP Financier'!$E$16+'BP Financier'!$E$19+'BP Financier'!$C$22+'BP Financier'!$D$22+'BP Financier'!$E$22+'BP Financier'!$F$16+'BP Financier'!$F$19+'BP Financier'!$F$22+'BP Financier'!$G$16+'BP Financier'!$G$19+'BP Financier'!$G$22))*$V8224*AB8224/(1-$W8224)","v":{"v":12889.554340407152,"d":"12,890"}},null,{"v":1E-3,"d":"0.10%"},{"$f":"Actif!$E$28/100","v":{"v":0.28900000000000003,"d":"28.90%"}},{"$f":"Actif!$E$30/100","v":{"v":0.09050000000000001,"d":"9.05%"}},{"$f":"Actif!$E$31/100","v":{"v":0.0605,"d":"6.05%"}},{"$f":"Actif!$E$32/100","v":{"v":0.47350000000000003,"d":"47.35%"}},{"$f":"Actif!$E$33/100","v":{"v":0.0585,"d":"5.85%"}},{"$f":"Actif!$E$29/100","v":{"v":0.027999999999999997,"d":"2.80%"}}]
[null,"#112",40,2028,"H","A_VIE",{"v":0.44999999999999996,"d":"0.45"},{"v":0.38999999999999996,"d":"0.39"},0.6,0.6,85,0,{"$f":"ROUND(Primes!$Q$4*V8225,0)","v":11},{"$f":"'BP Financier'!$G$33*(('BP Financier'!$C$16+'BP Financier'!$D$16+'BP Financier'!$E$16+'BP Financier'!$F$16+'BP Financier'!$G$16)/('BP Financier'!$C$16+'BP Financier'!$C$19+'BP Financier'!$D$16+'BP Financier'!$D$19+'BP Financier'!$E$16+'BP Financier'!$E$19+'BP Financier'!$F$16+'BP Financier'!$F$19+'BP Financier'!$G$19+'BP Financier'!$G$16))*V8225","v":{"v":570278.6743187835,"d":"570,279"}},{"v":327302.6120010531,"d":"327,303"},{"$f":"'BP Financier'!$G$44*(('BP Financier'!$C$16+'BP Financier'!$D$16+'BP Financier'!$E$16+'BP Financier'!$F$16+'BP Financier'!$G$16)/('BP Financier'!$C$16+'BP Financier'!$C$19+'BP Financier'!$D$16+'BP Financier'!$D$19+'BP Financier'!$E$16+'BP Financier'!$E$19+'BP Financier'!$C$22+'BP Financier'!$D$22+'BP Financier'!$E$22+'BP Financier'!$F$16+'BP Financier'!$F$19+'BP Financier'!$F$22+'BP Financier'!$G$16+'BP Financier'!$G$19+'BP Financier'!$G$22))*$V8225*X8225/(1-$W8225)","v":{"v":41660.880993101695,"d":"41,661"}},{"$f":"'BP Financier'!$G$44*(('BP Financier'!$C$16+'BP Financier'!$D$16+'BP Financier'!$E$16+'BP Financier'!$F$16+'BP Financier'!$G$16)/('BP Financier'!$C$16+'BP Financier'!$C$19+'BP Financier'!$D$16+'BP Financier'!$D$19+'BP Financier'!$E$16+'BP Financier'!$E$19+'BP Financier'!$C$22+'BP Financier'!$D$22+'BP Financier'!$E$22+'BP Financier'!$F$16+'BP Financier'!$F$19+'BP Financier'!$F$22+'BP Financier'!$G$16+'BP Financier'!$G$19+'BP Financier'!$G$22))*$V8225*Y8225/(1-$W8225)","v":{"v":27850.644199808314,"d":"27,851"}},{"$f":"'BP Financier'!$G$44*(('BP Financier'!$C$16+'BP Financier'!$D$16+'BP Financier'!$E$16+'BP Financier'!$F$16+'BP Financier'!$G$16)/('BP Financier'!$C$16+'BP Financier'!$C$19+'BP Financier'!$D$16+'BP Financier'!$D$19+'BP Financier'!$E$16+'BP Financier'!$E$19+'BP Financier'!$C$22+'BP Financier'!$D$22+'BP Financier'!$E$22+'BP Financier'!$F$16+'BP Financier'!$F$19+'BP Financier'!$F$22+'BP Financier'!$G$16+'BP Financier'!$G$19+'BP Financier'!$G$22))*$V8225*Z8225/(1-$W8225)","v":{"v":217971.57072081385,"d":"217,972"}},{"$f":"'BP Financier'!$G$44*(('BP Financier'!$C$16+'BP Financier'!$D$16+'BP Financier'!$E$16+'BP Financier'!$F$16+'BP Financier'!$G$16)/('BP Financier'!$C$16+'BP Financier'!$C$19+'BP Financier'!$D$16+'BP Financier'!$D$19+'BP Financier'!$E$16+'BP Financier'!$E$19+'BP Financier'!$C$22+'BP Financier'!$D$22+'BP Financier'!$E$22+'BP Financier'!$F$16+'BP Financier'!$F$19+'BP Financier'!$F$22+'BP Financier'!$G$16+'BP Financier'!$G$19+'BP Financier'!$G$22))*$V8225*AA8225/(1-$W8225)","v":{"v":26929.96174692209,"d":"26,930"}},{"$f":"'BP Financier'!$G$44*(('BP Financier'!$C$16+'BP Financier'!$D$16+'BP Financier'!$E$16+'BP Financier'!$F$16+'BP Financier'!$G$16)/('BP Financier'!$C$16+'BP Financier'!$C$19+'BP Financier'!$D$16+'BP Financier'!$D$19+'BP Financier'!$E$16+'BP Financier'!$E$19+'BP Financier'!$C$22+'BP Financier'!$D$22+'BP Financier'!$E$22+'BP Financier'!$F$16+'BP Financier'!$F$19+'BP Financier'!$F$22+'BP Financier'!$G$16+'BP Financier'!$G$19+'BP Financier'!$G$22))*$V8225*AB8225/(1-$W8225)","v":{"v":12889.554340407152,"d":"12,890"}},null,{"v":1E-3,"d":"0.10%"},{"$f":"Actif!$E$28/100","v":{"v":0.28900000000000003,"d":"28.90%"}},{"$f":"Actif!$E$30/100","v":{"v":0.09050000000000001,"d":"9.05%"}},{"$f":"Actif!$E$31/100","v":{"v":0.0605,"d":"6.05%"}},{"$f":"Actif!$E$32/100","v":{"v":0.47350000000000003,"d":"47.35%"}},{"$f":"Actif!$E$33/100","v":{"v":0.0585,"d":"5.85%"}},{"$f":"Actif!$E$29/100","v":{"v":0.027999999999999997,"d":"2.80%"}}]
[null,"#113",40,2029,"H","A_VIE",{"v":0.44999999999999996,"d":"0.45"},{"v":0.38999999999999996,"d":"0.39"},0.6,0.6,85,0,{"$f":"ROUND(Primes!$Q$4*V8226,0)","v":11},{"$f":"'BP Financier'!$G$33*(('BP Financier'!$C$16+'BP Financier'!$D$16+'BP Financier'!$E$16+'BP Financier'!$F$16+'BP Financier'!$G$16)/('BP Financier'!$C$16+'BP Financier'!$C$19+'BP Financier'!$D$16+'BP Financier'!$D$19+'BP Financier'!$E$16+'BP Financier'!$E$19+'BP Financier'!$F$16+'BP Financier'!$F$19+'BP Financier'!$G$19+'BP Financier'!$G$16))*V8226","v":{"v":570278.6743187835,"d":"570,279"}},{"v":327302.6120010531,"d":"327,303"},{"$f":"'BP Financier'!$G$44*(('BP Financier'!$C$16+'BP Financier'!$D$16+'BP Financier'!$E$16+'BP Financier'!$F$16+'BP Financier'!$G$16)/('BP Financier'!$C$16+'BP Financier'!$C$19+'BP Financier'!$D$16+'BP Financier'!$D$19+'BP Financier'!$E$16+'BP Financier'!$E$19+'BP Financier'!$C$22+'BP Financier'!$D$22+'BP Financier'!$E$22+'BP Financier'!$F$16+'BP Financier'!$F$19+'BP Financier'!$F$22+'BP Financier'!$G$16+'BP Financier'!$G$19+'BP Financier'!$G$22))*$V8226*X8226/(1-$W8226)","v":{"v":41660.880993101695,"d":"41,661"}},{"$f":"'BP Financier'!$G$44*(('BP Financier'!$C$16+'BP Financier'!$D$16+'BP Financier'!$E$16+'BP Financier'!$F$16+'BP Financier'!$G$16)/('BP Financier'!$C$16+'BP Financier'!$C$19+'BP Financier'!$D$16+'BP Financier'!$D$19+'BP Financier'!$E$16+'BP Financier'!$E$19+'BP Financier'!$C$22+'BP Financier'!$D$22+'BP Financier'!$E$22+'BP Financier'!$F$16+'BP Financier'!$F$19+'BP Financier'!$F$22+'BP Financier'!$G$16+'BP Financier'!$G$19+'BP Financier'!$G$22))*$V8226*Y8226/(1-$W8226)","v":{"v":27850.644199808314,"d":"27,851"}},{"$f":"'BP Financier'!$G$44*(('BP Financier'!$C$16+'BP Financier'!$D$16+'BP Financier'!$E$16+'BP Financier'!$F$16+'BP Financier'!$G$16)/('BP Financier'!$C$16+'BP Financier'!$C$19+'BP Financier'!$D$16+'BP Financier'!$D$19+'BP Financier'!$E$16+'BP Financier'!$E$19+'BP Financier'!$C$22+'BP Financier'!$D$22+'BP Financier'!$E$22+'BP Financier'!$F$16+'BP Financier'!$F$19+'BP Financier'!$F$22+'BP Financier'!$G$16+'BP Financier'!$G$19+'BP Financier'!$G$22))*$V8226*Z8226/(1-$W8226)","v":{"v":217971.57072081385,"d":"217,972"}},{"$f":"'BP Financier'!$G$44*(('BP Financier'!$C$16+'BP Financier'!$D$16+'BP Financier'!$E$16+'BP Financier'!$F$16+'BP Financier'!$G$16)/('BP Financier'!$C$16+'BP Financier'!$C$19+'BP Financier'!$D$16+'BP Financier'!$D$19+'BP Financier'!$E$16+'BP Financier'!$E$19+'BP Financier'!$C$22+'BP Financier'!$D$22+'BP Financier'!$E$22+'BP Financier'!$F$16+'BP Financier'!$F$19+'BP Financier'!$F$22+'BP Financier'!$G$16+'BP Financier'!$G$19+'BP Financier'!$G$22))*$V8226*AA8226/(1-$W8226)","v":{"v":26929.96174692209,"d":"26,930"}},{"$f":"'BP Financier'!$G$44*(('BP Financier'!$C$16+'BP Financier'!$D$16+'BP Financier'!$E$16+'BP Financier'!$F$16+'BP Financier'!$G$16)/('BP Financier'!$C$16+'BP Financier'!$C$19+'BP Financier'!$D$16+'BP Financier'!$D$19+'BP Financier'!$E$16+'BP Financier'!$E$19+'BP Financier'!$C$22+'BP Financier'!$D$22+'BP Financier'!$E$22+'BP Financier'!$F$16+'BP Financier'!$F$19+'BP Financier'!$F$22+'BP Financier'!$G$16+'BP Financier'!$G$19+'BP Financier'!$G$22))*$V8226*AB8226/(1-$W8226)","v":{"v":12889.554340407152,"d":"12,890"}},null,{"v":1E-3,"d":"0.10%"},{"$f":"Actif!$E$28/100","v":{"v":0.28900000000000003,"d":"28.90%"}},{"$f":"Actif!$E$30/100","v":{"v":0.09050000000000001,"d":"9.05%"}},{"$f":"Actif!$E$31/100","v":{"v":0.0605,"d":"6.05%"}},{"$f":"Actif!$E$32/100","v":{"v":0.47350000000000003,"d":"47.35%"}},{"$f":"Actif!$E$33/100","v":{"v":0.0585,"d":"5.85%"}},{"$f":"Actif!$E$29/100","v":{"v":0.027999999999999997,"d":"2.80%"}}]
[null,"#114",40,2030,"H","A_VIE",{"v":0.44999999999999996,"d":"0.45"},{"v":0.38999999999999996,"d":"0.39"},0.6,0.6,85,0,{"$f":"ROUND(Primes!$Q$4*V8227,0)","v":11},{"$f":"'BP Financier'!$G$33*(('BP Financier'!$C$16+'BP Financier'!$D$16+'BP Financier'!$E$16+'BP Financier'!$F$16+'BP Financier'!$G$16)/('BP Financier'!$C$16+'BP Financier'!$C$19+'BP Financier'!$D$16+'BP Financier'!$D$19+'BP Financier'!$E$16+'BP Financier'!$E$19+'BP Financier'!$F$16+'BP Financier'!$F$19+'BP Financier'!$G$19+'BP Financier'!$G$16))*V8227","v":{"v":570278.6743187835,"d":"570,279"}},{"v":327302.6120010531,"d":"327,303"},{"$f":"'BP Financier'!$G$44*(('BP Financier'!$C$16+'BP Financier'!$D$16+'BP Financier'!$E$16+'BP Financier'!$F$16+'BP Financier'!$G$16)/('BP Financier'!$C$16+'BP Financier'!$C$19+'BP Financier'!$D$16+'BP Financier'!$D$19+'BP Financier'!$E$16+'BP Financier'!$E$19+'BP Financier'!$C$22+'BP Financier'!$D$22+'BP Financier'!$E$22+'BP Financier'!$F$16+'BP Financier'!$F$19+'BP Financier'!$F$22+'BP Financier'!$G$16+'BP Financier'!$G$19+'BP Financier'!$G$22))*$V8227*X8227/(1-$W8227)","v":{"v":41660.880993101695,"d":"41,661"}},{"$f":"'BP Financier'!$G$44*(('BP Financier'!$C$16+'BP Financier'!$D$16+'BP Financier'!$E$16+'BP Financier'!$F$16+'BP Financier'!$G$16)/('BP Financier'!$C$16+'BP Financier'!$C$19+'BP Financier'!$D$16+'BP Financier'!$D$19+'BP Financier'!$E$16+'BP Financier'!$E$19+'BP Financier'!$C$22+'BP Financier'!$D$22+'BP Financier'!$E$22+'BP Financier'!$F$16+'BP Financier'!$F$19+'BP Financier'!$F$22+'BP Financier'!$G$16+'BP Financier'!$G$19+'BP Financier'!$G$22))*$V8227*Y8227/(1-$W8227)","v":{"v":27850.644199808314,"d":"27,851"}},{"$f":"'BP Financier'!$G$44*(('BP Financier'!$C$16+'BP Financier'!$D$16+'BP Financier'!$E$16+'BP Financier'!$F$16+'BP Financier'!$G$16)/('BP Financier'!$C$16+'BP Financier'!$C$19+'BP Financier'!$D$16+'BP Financier'!$D$19+'BP Financier'!$E$16+'BP Financier'!$E$19+'BP Financier'!$C$22+'BP Financier'!$D$22+'BP Financier'!$E$22+'BP Financier'!$F$16+'BP Financier'!$F$19+'BP Financier'!$F$22+'BP Financier'!$G$16+'BP Financier'!$G$19+'BP Financier'!$G$22))*$V8227*Z8227/(1-$W8227)","v":{"v":217971.57072081385,"d":"217,972"}},{"$f":"'BP Financier'!$G$44*(('BP Financier'!$C$16+'BP Financier'!$D$16+'BP Financier'!$E$16+'BP Financier'!$F$16+'BP Financier'!$G$16)/('BP Financier'!$C$16+'BP Financier'!$C$19+'BP Financier'!$D$16+'BP Financier'!$D$19+'BP Financier'!$E$16+'BP Financier'!$E$19+'BP Financier'!$C$22+'BP Financier'!$D$22+'BP Financier'!$E$22+'BP Financier'!$F$16+'BP Financier'!$F$19+'BP Financier'!$F$22+'BP Financier'!$G$16+'BP Financier'!$G$19+'BP Financier'!$G$22))*$V8227*AA8227/(1-$W8227)","v":{"v":26929.96174692209,"d":"26,930"}},{"$f":"'BP Financier'!$G$44*(('BP Financier'!$C$16+'BP Financier'!$D$16+'BP Financier'!$E$16+'BP Financier'!$F$16+'BP Financier'!$G$16)/('BP Financier'!$C$16+'BP Financier'!$C$19+'BP Financier'!$D$16+'BP Financier'!$D$19+'BP Financier'!$E$16+'BP Financier'!$E$19+'BP Financier'!$C$22+'BP Financier'!$D$22+'BP Financier'!$E$22+'BP Financier'!$F$16+'BP Financier'!$F$19+'BP Financier'!$F$22+'BP Financier'!$G$16+'BP Financier'!$G$19+'BP Financier'!$G$22))*$V8227*AB8227/(1-$W8227)","v":{"v":12889.554340407152,"d":"12,890"}},null,{"v":1E-3,"d":"0.10%"},{"$f":"Actif!$E$28/100","v":{"v":0.28900000000000003,"d":"28.90%"}},{"$f":"Actif!$E$30/100","v":{"v":0.09050000000000001,"d":"9.05%"}},{"$f":"Actif!$E$31/100","v":{"v":0.0605,"d":"6.05%"}},{"$f":"Actif!$E$32/100","v":{"v":0.47350000000000003,"d":"47.35%"}},{"$f":"Actif!$E$33/100","v":{"v":0.0585,"d":"5.85%"}},{"$f":"Actif!$E$29/100","v":{"v":0.027999999999999997,"d":"2.80%"}}]
[null,"#115",40,2031,"H","A_VIE",{"v":0.44999999999999996,"d":"0.45"},{"v":0.38999999999999996,"d":"0.39"},0.6,0.6,85,0,{"$f":"ROUND(Primes!$Q$4*V8228,0)","v":11},{"$f":"'BP Financier'!$G$33*(('BP Financier'!$C$16+'BP Financier'!$D$16+'BP Financier'!$E$16+'BP Financier'!$F$16+'BP Financier'!$G$16)/('BP Financier'!$C$16+'BP Financier'!$C$19+'BP Financier'!$D$16+'BP Financier'!$D$19+'BP Financier'!$E$16+'BP Financier'!$E$19+'BP Financier'!$F$16+'BP Financier'!$F$19+'BP Financier'!$G$19+'BP Financier'!$G$16))*V8228","v":{"v":570278.6743187835,"d":"570,279"}},{"v":327302.6120010531,"d":"327,303"},{"$f":"'BP Financier'!$G$44*(('BP Financier'!$C$16+'BP Financier'!$D$16+'BP Financier'!$E$16+'BP Financier'!$F$16+'BP Financier'!$G$16)/('BP Financier'!$C$16+'BP Financier'!$C$19+'BP Financier'!$D$16+'BP Financier'!$D$19+'BP Financier'!$E$16+'BP Financier'!$E$19+'BP Financier'!$C$22+'BP Financier'!$D$22+'BP Financier'!$E$22+'BP Financier'!$F$16+'BP Financier'!$F$19+'BP Financier'!$F$22+'BP Financier'!$G$16+'BP Financier'!$G$19+'BP Financier'!$G$22))*$V8228*X8228/(1-$W8228)","v":{"v":41660.880993101695,"d":"41,661"}},{"$f":"'BP Financier'!$G$44*(('BP Financier'!$C$16+'BP Financier'!$D$16+'BP Financier'!$E$16+'BP Financier'!$F$16+'BP Financier'!$G$16)/('BP Financier'!$C$16+'BP Financier'!$C$19+'BP Financier'!$D$16+'BP Financier'!$D$19+'BP Financier'!$E$16+'BP Financier'!$E$19+'BP Financier'!$C$22+'BP Financier'!$D$22+'BP Financier'!$E$22+'BP Financier'!$F$16+'BP Financier'!$F$19+'BP Financier'!$F$22+'BP Financier'!$G$16+'BP Financier'!$G$19+'BP Financier'!$G$22))*$V8228*Y8228/(1-$W8228)","v":{"v":27850.644199808314,"d":"27,851"}},{"$f":"'BP Financier'!$G$44*(('BP Financier'!$C$16+'BP Financier'!$D$16+'BP Financier'!$E$16+'BP Financier'!$F$16+'BP Financier'!$G$16)/('BP Financier'!$C$16+'BP Financier'!$C$19+'BP Financier'!$D$16+'BP Financier'!$D$19+'BP Financier'!$E$16+'BP Financier'!$E$19+'BP Financier'!$C$22+'BP Financier'!$D$22+'BP Financier'!$E$22+'BP Financier'!$F$16+'BP Financier'!$F$19+'BP Financier'!$F$22+'BP Financier'!$G$16+'BP Financier'!$G$19+'BP Financier'!$G$22))*$V8228*Z8228/(1-$W8228)","v":{"v":217971.57072081385,"d":"217,972"}},{"$f":"'BP Financier'!$G$44*(('BP Financier'!$C$16+'BP Financier'!$D$16+'BP Financier'!$E$16+'BP Financier'!$F$16+'BP Financier'!$G$16)/('BP Financier'!$C$16+'BP Financier'!$C$19+'BP Financier'!$D$16+'BP Financier'!$D$19+'BP Financier'!$E$16+'BP Financier'!$E$19+'BP Financier'!$C$22+'BP Financier'!$D$22+'BP Financier'!$E$22+'BP Financier'!$F$16+'BP Financier'!$F$19+'BP Financier'!$F$22+'BP Financier'!$G$16+'BP Financier'!$G$19+'BP Financier'!$G$22))*$V8228*AA8228/(1-$W8228)","v":{"v":26929.96174692209,"d":"26,930"}},{"$f":"'BP Financier'!$G$44*(('BP Financier'!$C$16+'BP Financier'!$D$16+'BP Financier'!$E$16+'BP Financier'!$F$16+'BP Financier'!$G$16)/('BP Financier'!$C$16+'BP Financier'!$C$19+'BP Financier'!$D$16+'BP Financier'!$D$19+'BP Financier'!$E$16+'BP Financier'!$E$19+'BP Financier'!$C$22+'BP Financier'!$D$22+'BP Financier'!$E$22+'BP Financier'!$F$16+'BP Financier'!$F$19+'BP Financier'!$F$22+'BP Financier'!$G$16+'BP Financier'!$G$19+'BP Financier'!$G$22))*$V8228*AB8228/(1-$W8228)","v":{"v":12889.554340407152,"d":"12,890"}},null,{"v":1E-3,"d":"0.10%"},{"$f":"Actif!$E$28/100","v":{"v":0.28900000000000003,"d":"28.90%"}},{"$f":"Actif!$E$30/100","v":{"v":0.09050000000000001,"d":"9.05%"}},{"$f":"Actif!$E$31/100","v":{"v":0.0605,"d":"6.05%"}},{"$f":"Actif!$E$32/100","v":{"v":0.47350000000000003,"d":"47.35%"}},{"$f":"Actif!$E$33/100","v":{"v":0.0585,"d":"5.85%"}},{"$f":"Actif!$E$29/100","v":{"v":0.027999999999999997,"d":"2.80%"}}]
[null,"#116",41,2026,"F","A_VIE",{"v":0.44999999999999996,"d":"0.45"},{"v":0.38999999999999996,"d":"0.39"},0.6,0.6,85,0,{"$f":"ROUND(Primes!$Q$4*V8229,0)","v":11},{"$f":"'BP Financier'!$G$33*(('BP Financier'!$C$16+'BP Financier'!$D$16+'BP Financier'!$E$16+'BP Financier'!$F$16+'BP Financier'!$G$16)/('BP Financier'!$C$16+'BP Financier'!$C$19+'BP Financier'!$D$16+'BP Financier'!$D$19+'BP Financier'!$E$16+'BP Financier'!$E$19+'BP Financier'!$F$16+'BP Financier'!$F$19+'BP Financier'!$G$19+'BP Financier'!$G$16))*V8229","v":{"v":570278.6743187835,"d":"570,279"}},{"v":327302.6120010531,"d":"327,303"},{"$f":"'BP Financier'!$G$44*(('BP Financier'!$C$16+'BP Financier'!$D$16+'BP Financier'!$E$16+'BP Financier'!$F$16+'BP Financier'!$G$16)/('BP Financier'!$C$16+'BP Financier'!$C$19+'BP Financier'!$D$16+'BP Financier'!$D$19+'BP Financier'!$E$16+'BP Financier'!$E$19+'BP Financier'!$C$22+'BP Financier'!$D$22+'BP Financier'!$E$22+'BP Financier'!$F$16+'BP Financier'!$F$19+'BP Financier'!$F$22+'BP Financier'!$G$16+'BP Financier'!$G$19+'BP Financier'!$G$22))*$V8229*X8229/(1-$W8229)","v":{"v":41660.880993101695,"d":"41,661"}},{"$f":"'BP Financier'!$G$44*(('BP Financier'!$C$16+'BP Financier'!$D$16+'BP Financier'!$E$16+'BP Financier'!$F$16+'BP Financier'!$G$16)/('BP Financier'!$C$16+'BP Financier'!$C$19+'BP Financier'!$D$16+'BP Financier'!$D$19+'BP Financier'!$E$16+'BP Financier'!$E$19+'BP Financier'!$C$22+'BP Financier'!$D$22+'BP Financier'!$E$22+'BP Financier'!$F$16+'BP Financier'!$F$19+'BP Financier'!$F$22+'BP Financier'!$G$16+'BP Financier'!$G$19+'BP Financier'!$G$22))*$V8229*Y8229/(1-$W8229)","v":{"v":27850.644199808314,"d":"27,851"}},{"$f":"'BP Financier'!$G$44*(('BP Financier'!$C$16+'BP Financier'!$D$16+'BP Financier'!$E$16+'BP Financier'!$F$16+'BP Financier'!$G$16)/('BP Financier'!$C$16+'BP Financier'!$C$19+'BP Financier'!$D$16+'BP Financier'!$D$19+'BP Financier'!$E$16+'BP Financier'!$E$19+'BP Financier'!$C$22+'BP Financier'!$D$22+'BP Financier'!$E$22+'BP Financier'!$F$16+'BP Financier'!$F$19+'BP Financier'!$F$22+'BP Financier'!$G$16+'BP Financier'!$G$19+'BP Financier'!$G$22))*$V8229*Z8229/(1-$W8229)","v":{"v":217971.57072081385,"d":"217,972"}},{"$f":"'BP Financier'!$G$44*(('BP Financier'!$C$16+'BP Financier'!$D$16+'BP Financier'!$E$16+'BP Financier'!$F$16+'BP Financier'!$G$16)/('BP Financier'!$C$16+'BP Financier'!$C$19+'BP Financier'!$D$16+'BP Financier'!$D$19+'BP Financier'!$E$16+'BP Financier'!$E$19+'BP Financier'!$C$22+'BP Financier'!$D$22+'BP Financier'!$E$22+'BP Financier'!$F$16+'BP Financier'!$F$19+'BP Financier'!$F$22+'BP Financier'!$G$16+'BP Financier'!$G$19+'BP Financier'!$G$22))*$V8229*AA8229/(1-$W8229)","v":{"v":26929.96174692209,"d":"26,930"}},{"$f":"'BP Financier'!$G$44*(('BP Financier'!$C$16+'BP Financier'!$D$16+'BP Financier'!$E$16+'BP Financier'!$F$16+'BP Financier'!$G$16)/('BP Financier'!$C$16+'BP Financier'!$C$19+'BP Financier'!$D$16+'BP Financier'!$D$19+'BP Financier'!$E$16+'BP Financier'!$E$19+'BP Financier'!$C$22+'BP Financier'!$D$22+'BP Financier'!$E$22+'BP Financier'!$F$16+'BP Financier'!$F$19+'BP Financier'!$F$22+'BP Financier'!$G$16+'BP Financier'!$G$19+'BP Financier'!$G$22))*$V8229*AB8229/(1-$W8229)","v":{"v":12889.554340407152,"d":"12,890"}},null,{"v":1E-3,"d":"0.10%"},{"$f":"Actif!$E$28/100","v":{"v":0.28900000000000003,"d":"28.90%"}},{"$f":"Actif!$E$30/100","v":{"v":0.09050000000000001,"d":"9.05%"}},{"$f":"Actif!$E$31/100","v":{"v":0.0605,"d":"6.05%"}},{"$f":"Actif!$E$32/100","v":{"v":0.47350000000000003,"d":"47.35%"}},{"$f":"Actif!$E$33/100","v":{"v":0.0585,"d":"5.85%"}},{"$f":"Actif!$E$29/100","v":{"v":0.027999999999999997,"d":"2.80%"}}]
[null,"#117",41,2028,"F","A_VIE",{"v":0.44999999999999996,"d":"0.45"},{"v":0.38999999999999996,"d":"0.39"},0.6,0.6,85,0,{"$f":"ROUND(Primes!$Q$4*V8230,0)","v":11},{"$f":"'BP Financier'!$G$33*(('BP Financier'!$C$16+'BP Financier'!$D$16+'BP Financier'!$E$16+'BP Financier'!$F$16+'BP Financier'!$G$16)/('BP Financier'!$C$16+'BP Financier'!$C$19+'BP Financier'!$D$16+'BP Financier'!$D$19+'BP Financier'!$E$16+'BP Financier'!$E$19+'BP Financier'!$F$16+'BP Financier'!$F$19+'BP Financier'!$G$19+'BP Financier'!$G$16))*V8230","v":{"v":570278.6743187835,"d":"570,279"}},{"v":327302.6120010531,"d":"327,303"},{"$f":"'BP Financier'!$G$44*(('BP Financier'!$C$16+'BP Financier'!$D$16+'BP Financier'!$E$16+'BP Financier'!$F$16+'BP Financier'!$G$16)/('BP Financier'!$C$16+'BP Financier'!$C$19+'BP Financier'!$D$16+'BP Financier'!$D$19+'BP Financier'!$E$16+'BP Financier'!$E$19+'BP Financier'!$C$22+'BP Financier'!$D$22+'BP Financier'!$E$22+'BP Financier'!$F$16+'BP Financier'!$F$19+'BP Financier'!$F$22+'BP Financier'!$G$16+'BP Financier'!$G$19+'BP Financier'!$G$22))*$V8230*X8230/(1-$W8230)","v":{"v":41660.880993101695,"d":"41,661"}},{"$f":"'BP Financier'!$G$44*(('BP Financier'!$C$16+'BP Financier'!$D$16+'BP Financier'!$E$16+'BP Financier'!$F$16+'BP Financier'!$G$16)/('BP Financier'!$C$16+'BP Financier'!$C$19+'BP Financier'!$D$16+'BP Financier'!$D$19+'BP Financier'!$E$16+'BP Financier'!$E$19+'BP Financier'!$C$22+'BP Financier'!$D$22+'BP Financier'!$E$22+'BP Financier'!$F$16+'BP Financier'!$F$19+'BP Financier'!$F$22+'BP Financier'!$G$16+'BP Financier'!$G$19+'BP Financier'!$G$22))*$V8230*Y8230/(1-$W8230)","v":{"v":27850.644199808314,"d":"27,851"}},{"$f":"'BP Financier'!$G$44*(('BP Financier'!$C$16+'BP Financier'!$D$16+'BP Financier'!$E$16+'BP Financier'!$F$16+'BP Financier'!$G$16)/('BP Financier'!$C$16+'BP Financier'!$C$19+'BP Financier'!$D$16+'BP Financier'!$D$19+'BP Financier'!$E$16+'BP Financier'!$E$19+'BP Financier'!$C$22+'BP Financier'!$D$22+'BP Financier'!$E$22+'BP Financier'!$F$16+'BP Financier'!$F$19+'BP Financier'!$F$22+'BP Financier'!$G$16+'BP Financier'!$G$19+'BP Financier'!$G$22))*$V8230*Z8230/(1-$W8230)","v":{"v":217971.57072081385,"d":"217,972"}},{"$f":"'BP Financier'!$G$44*(('BP Financier'!$C$16+'BP Financier'!$D$16+'BP Financier'!$E$16+'BP Financier'!$F$16+'BP Financier'!$G$16)/('BP Financier'!$C$16+'BP Financier'!$C$19+'BP Financier'!$D$16+'BP Financier'!$D$19+'BP Financier'!$E$16+'BP Financier'!$E$19+'BP Financier'!$C$22+'BP Financier'!$D$22+'BP Financier'!$E$22+'BP Financier'!$F$16+'BP Financier'!$F$19+'BP Financier'!$F$22+'BP Financier'!$G$16+'BP Financier'!$G$19+'BP Financier'!$G$22))*$V8230*AA8230/(1-$W8230)","v":{"v":26929.96174692209,"d":"26,930"}},{"$f":"'BP Financier'!$G$44*(('BP Financier'!$C$16+'BP Financier'!$D$16+'BP Financier'!$E$16+'BP Financier'!$F$16+'BP Financier'!$G$16)/('BP Financier'!$C$16+'BP Financier'!$C$19+'BP Financier'!$D$16+'BP Financier'!$D$19+'BP Financier'!$E$16+'BP Financier'!$E$19+'BP Financier'!$C$22+'BP Financier'!$D$22+'BP Financier'!$E$22+'BP Financier'!$F$16+'BP Financier'!$F$19+'BP Financier'!$F$22+'BP Financier'!$G$16+'BP Financier'!$G$19+'BP Financier'!$G$22))*$V8230*AB8230/(1-$W8230)","v":{"v":12889.554340407152,"d":"12,890"}},null,{"v":1E-3,"d":"0.10%"},{"$f":"Actif!$E$28/100","v":{"v":0.28900000000000003,"d":"28.90%"}},{"$f":"Actif!$E$30/100","v":{"v":0.09050000000000001,"d":"9.05%"}},{"$f":"Actif!$E$31/100","v":{"v":0.0605,"d":"6.05%"}},{"$f":"Actif!$E$32/100","v":{"v":0.47350000000000003,"d":"47.35%"}},{"$f":"Actif!$E$33/100","v":{"v":0.0585,"d":"5.85%"}},{"$f":"Actif!$E$29/100","v":{"v":0.027999999999999997,"d":"2.80%"}}]
[null,"#118",41,2029,"F","A_VIE",{"v":0.44999999999999996,"d":"0.45"},{"v":0.38999999999999996,"d":"0.39"},0.6,0.6,85,0,{"$f":"ROUND(Primes!$Q$4*V8231,0)","v":11},{"$f":"'BP Financier'!$G$33*(('BP Financier'!$C$16+'BP Financier'!$D$16+'BP Financier'!$E$16+'BP Financier'!$F$16+'BP Financier'!$G$16)/('BP Financier'!$C$16+'BP Financier'!$C$19+'BP Financier'!$D$16+'BP Financier'!$D$19+'BP Financier'!$E$16+'BP Financier'!$E$19+'BP Financier'!$F$16+'BP Financier'!$F$19+'BP Financier'!$G$19+'BP Financier'!$G$16))*V8231","v":{"v":570278.6743187835,"d":"570,279"}},{"v":327302.6120010531,"d":"327,303"},{"$f":"'BP Financier'!$G$44*(('BP Financier'!$C$16+'BP Financier'!$D$16+'BP Financier'!$E$16+'BP Financier'!$F$16+'BP Financier'!$G$16)/('BP Financier'!$C$16+'BP Financier'!$C$19+'BP Financier'!$D$16+'BP Financier'!$D$19+'BP Financier'!$E$16+'BP Financier'!$E$19+'BP Financier'!$C$22+'BP Financier'!$D$22+'BP Financier'!$E$22+'BP Financier'!$F$16+'BP Financier'!$F$19+'BP Financier'!$F$22+'BP Financier'!$G$16+'BP Financier'!$G$19+'BP Financier'!$G$22))*$V8231*X8231/(1-$W8231)","v":{"v":41660.880993101695,"d":"41,661"}},{"$f":"'BP Financier'!$G$44*(('BP Financier'!$C$16+'BP Financier'!$D$16+'BP Financier'!$E$16+'BP Financier'!$F$16+'BP Financier'!$G$16)/('BP Financier'!$C$16+'BP Financier'!$C$19+'BP Financier'!$D$16+'BP Financier'!$D$19+'BP Financier'!$E$16+'BP Financier'!$E$19+'BP Financier'!$C$22+'BP Financier'!$D$22+'BP Financier'!$E$22+'BP Financier'!$F$16+'BP Financier'!$F$19+'BP Financier'!$F$22+'BP Financier'!$G$16+'BP Financier'!$G$19+'BP Financier'!$G$22))*$V8231*Y8231/(1-$W8231)","v":{"v":27850.644199808314,"d":"27,851"}},{"$f":"'BP Financier'!$G$44*(('BP Financier'!$C$16+'BP Financier'!$D$16+'BP Financier'!$E$16+'BP Financier'!$F$16+'BP Financier'!$G$16)/('BP Financier'!$C$16+'BP Financier'!$C$19+'BP Financier'!$D$16+'BP Financier'!$D$19+'BP Financier'!$E$16+'BP Financier'!$E$19+'BP Financier'!$C$22+'BP Financier'!$D$22+'BP Financier'!$E$22+'BP Financier'!$F$16+'BP Financier'!$F$19+'BP Financier'!$F$22+'BP Financier'!$G$16+'BP Financier'!$G$19+'BP Financier'!$G$22))*$V8231*Z8231/(1-$W8231)","v":{"v":217971.57072081385,"d":"217,972"}},{"$f":"'BP Financier'!$G$44*(('BP Financier'!$C$16+'BP Financier'!$D$16+'BP Financier'!$E$16+'BP Financier'!$F$16+'BP Financier'!$G$16)/('BP Financier'!$C$16+'BP Financier'!$C$19+'BP Financier'!$D$16+'BP Financier'!$D$19+'BP Financier'!$E$16+'BP Financier'!$E$19+'BP Financier'!$C$22+'BP Financier'!$D$22+'BP Financier'!$E$22+'BP Financier'!$F$16+'BP Financier'!$F$19+'BP Financier'!$F$22+'BP Financier'!$G$16+'BP Financier'!$G$19+'BP Financier'!$G$22))*$V8231*AA8231/(1-$W8231)","v":{"v":26929.96174692209,"d":"26,930"}},{"$f":"'BP Financier'!$G$44*(('BP Financier'!$C$16+'BP Financier'!$D$16+'BP Financier'!$E$16+'BP Financier'!$F$16+'BP Financier'!$G$16)/('BP Financier'!$C$16+'BP Financier'!$C$19+'BP Financier'!$D$16+'BP Financier'!$D$19+'BP Financier'!$E$16+'BP Financier'!$E$19+'BP Financier'!$C$22+'BP Financier'!$D$22+'BP Financier'!$E$22+'BP Financier'!$F$16+'BP Financier'!$F$19+'BP Financier'!$F$22+'BP Financier'!$G$16+'BP Financier'!$G$19+'BP Financier'!$G$22))*$V8231*AB8231/(1-$W8231)","v":{"v":12889.554340407152,"d":"12,890"}},null,{"v":1E-3,"d":"0.10%"},{"$f":"Actif!$E$28/100","v":{"v":0.28900000000000003,"d":"28.90%"}},{"$f":"Actif!$E$30/100","v":{"v":0.09050000000000001,"d":"9.05%"}},{"$f":"Actif!$E$31/100","v":{"v":0.0605,"d":"6.05%"}},{"$f":"Actif!$E$32/100","v":{"v":0.47350000000000003,"d":"47.35%"}},{"$f":"Actif!$E$33/100","v":{"v":0.0585,"d":"5.85%"}},{"$f":"Actif!$E$29/100","v":{"v":0.027999999999999997,"d":"2.80%"}}]
[null,"#119",41,2030,"F","A_VIE",{"v":0.44999999999999996,"d":"0.45"},{"v":0.38999999999999996,"d":"0.39"},0.6,0.6,85,0,{"$f":"ROUND(Primes!$Q$4*V8232,0)","v":11},{"$f":"'BP Financier'!$G$33*(('BP Financier'!$C$16+'BP Financier'!$D$16+'BP Financier'!$E$16+'BP Financier'!$F$16+'BP Financier'!$G$16)/('BP Financier'!$C$16+'BP Financier'!$C$19+'BP Financier'!$D$16+'BP Financier'!$D$19+'BP Financier'!$E$16+'BP Financier'!$E$19+'BP Financier'!$F$16+'BP Financier'!$F$19+'BP Financier'!$G$19+'BP Financier'!$G$16))*V8232","v":{"v":570278.6743187835,"d":"570,279"}},{"v":327302.6120010531,"d":"327,303"},{"$f":"'BP Financier'!$G$44*(('BP Financier'!$C$16+'BP Financier'!$D$16+'BP Financier'!$E$16+'BP Financier'!$F$16+'BP Financier'!$G$16)/('BP Financier'!$C$16+'BP Financier'!$C$19+'BP Financier'!$D$16+'BP Financier'!$D$19+'BP Financier'!$E$16+'BP Financier'!$E$19+'BP Financier'!$C$22+'BP Financier'!$D$22+'BP Financier'!$E$22+'BP Financier'!$F$16+'BP Financier'!$F$19+'BP Financier'!$F$22+'BP Financier'!$G$16+'BP Financier'!$G$19+'BP Financier'!$G$22))*$V8232*X8232/(1-$W8232)","v":{"v":41660.880993101695,"d":"41,661"}},{"$f":"'BP Financier'!$G$44*(('BP Financier'!$C$16+'BP Financier'!$D$16+'BP Financier'!$E$16+'BP Financier'!$F$16+'BP Financier'!$G$16)/('BP Financier'!$C$16+'BP Financier'!$C$19+'BP Financier'!$D$16+'BP Financier'!$D$19+'BP Financier'!$E$16+'BP Financier'!$E$19+'BP Financier'!$C$22+'BP Financier'!$D$22+'BP Financier'!$E$22+'BP Financier'!$F$16+'BP Financier'!$F$19+'BP Financier'!$F$22+'BP Financier'!$G$16+'BP Financier'!$G$19+'BP Financier'!$G$22))*$V8232*Y8232/(1-$W8232)","v":{"v":27850.644199808314,"d":"27,851"}},{"$f":"'BP Financier'!$G$44*(('BP Financier'!$C$16+'BP Financier'!$D$16+'BP Financier'!$E$16+'BP Financier'!$F$16+'BP Financier'!$G$16)/('BP Financier'!$C$16+'BP Financier'!$C$19+'BP Financier'!$D$16+'BP Financier'!$D$19+'BP Financier'!$E$16+'BP Financier'!$E$19+'BP Financier'!$C$22+'BP Financier'!$D$22+'BP Financier'!$E$22+'BP Financier'!$F$16+'BP Financier'!$F$19+'BP Financier'!$F$22+'BP Financier'!$G$16+'BP Financier'!$G$19+'BP Financier'!$G$22))*$V8232*Z8232/(1-$W8232)","v":{"v":217971.57072081385,"d":"217,972"}},{"$f":"'BP Financier'!$G$44*(('BP Financier'!$C$16+'BP Financier'!$D$16+'BP Financier'!$E$16+'BP Financier'!$F$16+'BP Financier'!$G$16)/('BP Financier'!$C$16+'BP Financier'!$C$19+'BP Financier'!$D$16+'BP Financier'!$D$19+'BP Financier'!$E$16+'BP Financier'!$E$19+'BP Financier'!$C$22+'BP Financier'!$D$22+'BP Financier'!$E$22+'BP Financier'!$F$16+'BP Financier'!$F$19+'BP Financier'!$F$22+'BP Financier'!$G$16+'BP Financier'!$G$19+'BP Financier'!$G$22))*$V8232*AA8232/(1-$W8232)","v":{"v":26929.96174692209,"d":"26,930"}},{"$f":"'BP Financier'!$G$44*(('BP Financier'!$C$16+'BP Financier'!$D$16+'BP Financier'!$E$16+'BP Financier'!$F$16+'BP Financier'!$G$16)/('BP Financier'!$C$16+'BP Financier'!$C$19+'BP Financier'!$D$16+'BP Financier'!$D$19+'BP Financier'!$E$16+'BP Financier'!$E$19+'BP Financier'!$C$22+'BP Financier'!$D$22+'BP Financier'!$E$22+'BP Financier'!$F$16+'BP Financier'!$F$19+'BP Financier'!$F$22+'BP Financier'!$G$16+'BP Financier'!$G$19+'BP Financier'!$G$22))*$V8232*AB8232/(1-$W8232)","v":{"v":12889.554340407152,"d":"12,890"}},null,{"v":1E-3,"d":"0.10%"},{"$f":"Actif!$E$28/100","v":{"v":0.28900000000000003,"d":"28.90%"}},{"$f":"Actif!$E$30/100","v":{"v":0.09050000000000001,"d":"9.05%"}},{"$f":"Actif!$E$31/100","v":{"v":0.0605,"d":"6.05%"}},{"$f":"Actif!$E$32/100","v":{"v":0.47350000000000003,"d":"47.35%"}},{"$f":"Actif!$E$33/100","v":{"v":0.0585,"d":"5.85%"}},{"$f":"Actif!$E$29/100","v":{"v":0.027999999999999997,"d":"2.80%"}}]
[null,"#120",41,2031,"F","A_VIE",{"v":0.44999999999999996,"d":"0.45"},{"v":0.38999999999999996,"d":"0.39"},0.6,0.6,85,0,{"$f":"ROUND(Primes!$Q$4*V8233,0)","v":11},{"$f":"'BP Financier'!$G$33*(('BP Financier'!$C$16+'BP Financier'!$D$16+'BP Financier'!$E$16+'BP Financier'!$F$16+'BP Financier'!$G$16)/('BP Financier'!$C$16+'BP Financier'!$C$19+'BP Financier'!$D$16+'BP Financier'!$D$19+'BP Financier'!$E$16+'BP Financier'!$E$19+'BP Financier'!$F$16+'BP Financier'!$F$19+'BP Financier'!$G$19+'BP Financier'!$G$16))*V8233","v":{"v":570278.6743187835,"d":"570,279"}},{"v":327302.6120010531,"d":"327,303"},{"$f":"'BP Financier'!$G$44*(('BP Financier'!$C$16+'BP Financier'!$D$16+'BP Financier'!$E$16+'BP Financier'!$F$16+'BP Financier'!$G$16)/('BP Financier'!$C$16+'BP Financier'!$C$19+'BP Financier'!$D$16+'BP Financier'!$D$19+'BP Financier'!$E$16+'BP Financier'!$E$19+'BP Financier'!$C$22+'BP Financier'!$D$22+'BP Financier'!$E$22+'BP Financier'!$F$16+'BP Financier'!$F$19+'BP Financier'!$F$22+'BP Financier'!$G$16+'BP Financier'!$G$19+'BP Financier'!$G$22))*$V8233*X8233/(1-$W8233)","v":{"v":41660.880993101695,"d":"41,661"}},{"$f":"'BP Financier'!$G$44*(('BP Financier'!$C$16+'BP Financier'!$D$16+'BP Financier'!$E$16+'BP Financier'!$F$16+'BP Financier'!$G$16)/('BP Financier'!$C$16+'BP Financier'!$C$19+'BP Financier'!$D$16+'BP Financier'!$D$19+'BP Financier'!$E$16+'BP Financier'!$E$19+'BP Financier'!$C$22+'BP Financier'!$D$22+'BP Financier'!$E$22+'BP Financier'!$F$16+'BP Financier'!$F$19+'BP Financier'!$F$22+'BP Financier'!$G$16+'BP Financier'!$G$19+'BP Financier'!$G$22))*$V8233*Y8233/(1-$W8233)","v":{"v":27850.644199808314,"d":"27,851"}},{"$f":"'BP Financier'!$G$44*(('BP Financier'!$C$16+'BP Financier'!$D$16+'BP Financier'!$E$16+'BP Financier'!$F$16+'BP Financier'!$G$16)/('BP Financier'!$C$16+'BP Financier'!$C$19+'BP Financier'!$D$16+'BP Financier'!$D$19+'BP Financier'!$E$16+'BP Financier'!$E$19+'BP Financier'!$C$22+'BP Financier'!$D$22+'BP Financier'!$E$22+'BP Financier'!$F$16+'BP Financier'!$F$19+'BP Financier'!$F$22+'BP Financier'!$G$16+'BP Financier'!$G$19+'BP Financier'!$G$22))*$V8233*Z8233/(1-$W8233)","v":{"v":217971.57072081385,"d":"217,972"}},{"$f":"'BP Financier'!$G$44*(('BP Financier'!$C$16+'BP Financier'!$D$16+'BP Financier'!$E$16+'BP Financier'!$F$16+'BP Financier'!$G$16)/('BP Financier'!$C$16+'BP Financier'!$C$19+'BP Financier'!$D$16+'BP Financier'!$D$19+'BP Financier'!$E$16+'BP Financier'!$E$19+'BP Financier'!$C$22+'BP Financier'!$D$22+'BP Financier'!$E$22+'BP Financier'!$F$16+'BP Financier'!$F$19+'BP Financier'!$F$22+'BP Financier'!$G$16+'BP Financier'!$G$19+'BP Financier'!$G$22))*$V8233*AA8233/(1-$W8233)","v":{"v":26929.96174692209,"d":"26,930"}},{"$f":"'BP Financier'!$G$44*(('BP Financier'!$C$16+'BP Financier'!$D$16+'BP Financier'!$E$16+'BP Financier'!$F$16+'BP Financier'!$G$16)/('BP Financier'!$C$16+'BP Financier'!$C$19+'BP Financier'!$D$16+'BP Financier'!$D$19+'BP Financier'!$E$16+'BP Financier'!$E$19+'BP Financier'!$C$22+'BP Financier'!$D$22+'BP Financier'!$E$22+'BP Financier'!$F$16+'BP Financier'!$F$19+'BP Financier'!$F$22+'BP Financier'!$G$16+'BP Financier'!$G$19+'BP Financier'!$G$22))*$V8233*AB8233/(1-$W8233)","v":{"v":12889.554340407152,"d":"12,890"}},null,{"v":1E-3,"d":"0.10%"},{"$f":"Actif!$E$28/100","v":{"v":0.28900000000000003,"d":"28.90%"}},{"$f":"Actif!$E$30/100","v":{"v":0.09050000000000001,"d":"9.05%"}},{"$f":"Actif!$E$31/100","v":{"v":0.0605,"d":"6.05%"}},{"$f":"Actif!$E$32/100","v":{"v":0.47350000000000003,"d":"47.35%"}},{"$f":"Actif!$E$33/100","v":{"v":0.0585,"d":"5.85%"}},{"$f":"Actif!$E$29/100","v":{"v":0.027999999999999997,"d":"2.80%"}}]
[null,"#121",42,2026,"H","A_VIE",{"v":0.44999999999999996,"d":"0.45"},{"v":0.38999999999999996,"d":"0.39"},0.6,0.6,85,0,{"$f":"ROUND(Primes!$Q$4*V8234,0)","v":11},{"$f":"'BP Financier'!$G$33*(('BP Financier'!$C$16+'BP Financier'!$D$16+'BP Financier'!$E$16+'BP Financier'!$F$16+'BP Financier'!$G$16)/('BP Financier'!$C$16+'BP Financier'!$C$19+'BP Financier'!$D$16+'BP Financier'!$D$19+'BP Financier'!$E$16+'BP Financier'!$E$19+'BP Financier'!$F$16+'BP Financier'!$F$19+'BP Financier'!$G$19+'BP Financier'!$G$16))*V8234","v":{"v":570278.6743187835,"d":"570,279"}},{"v":327302.6120010531,"d":"327,303"},{"$f":"'BP Financier'!$G$44*(('BP Financier'!$C$16+'BP Financier'!$D$16+'BP Financier'!$E$16+'BP Financier'!$F$16+'BP Financier'!$G$16)/('BP Financier'!$C$16+'BP Financier'!$C$19+'BP Financier'!$D$16+'BP Financier'!$D$19+'BP Financier'!$E$16+'BP Financier'!$E$19+'BP Financier'!$C$22+'BP Financier'!$D$22+'BP Financier'!$E$22+'BP Financier'!$F$16+'BP Financier'!$F$19+'BP Financier'!$F$22+'BP Financier'!$G$16+'BP Financier'!$G$19+'BP Financier'!$G$22))*$V8234*X8234/(1-$W8234)","v":{"v":41660.880993101695,"d":"41,661"}},{"$f":"'BP Financier'!$G$44*(('BP Financier'!$C$16+'BP Financier'!$D$16+'BP Financier'!$E$16+'BP Financier'!$F$16+'BP Financier'!$G$16)/('BP Financier'!$C$16+'BP Financier'!$C$19+'BP Financier'!$D$16+'BP Financier'!$D$19+'BP Financier'!$E$16+'BP Financier'!$E$19+'BP Financier'!$C$22+'BP Financier'!$D$22+'BP Financier'!$E$22+'BP Financier'!$F$16+'BP Financier'!$F$19+'BP Financier'!$F$22+'BP Financier'!$G$16+'BP Financier'!$G$19+'BP Financier'!$G$22))*$V8234*Y8234/(1-$W8234)","v":{"v":27850.644199808314,"d":"27,851"}},{"$f":"'BP Financier'!$G$44*(('BP Financier'!$C$16+'BP Financier'!$D$16+'BP Financier'!$E$16+'BP Financier'!$F$16+'BP Financier'!$G$16)/('BP Financier'!$C$16+'BP Financier'!$C$19+'BP Financier'!$D$16+'BP Financier'!$D$19+'BP Financier'!$E$16+'BP Financier'!$E$19+'BP Financier'!$C$22+'BP Financier'!$D$22+'BP Financier'!$E$22+'BP Financier'!$F$16+'BP Financier'!$F$19+'BP Financier'!$F$22+'BP Financier'!$G$16+'BP Financier'!$G$19+'BP Financier'!$G$22))*$V8234*Z8234/(1-$W8234)","v":{"v":217971.57072081385,"d":"217,972"}},{"$f":"'BP Financier'!$G$44*(('BP Financier'!$C$16+'BP Financier'!$D$16+'BP Financier'!$E$16+'BP Financier'!$F$16+'BP Financier'!$G$16)/('BP Financier'!$C$16+'BP Financier'!$C$19+'BP Financier'!$D$16+'BP Financier'!$D$19+'BP Financier'!$E$16+'BP Financier'!$E$19+'BP Financier'!$C$22+'BP Financier'!$D$22+'BP Financier'!$E$22+'BP Financier'!$F$16+'BP Financier'!$F$19+'BP Financier'!$F$22+'BP Financier'!$G$16+'BP Financier'!$G$19+'BP Financier'!$G$22))*$V8234*AA8234/(1-$W8234)","v":{"v":26929.96174692209,"d":"26,930"}},{"$f":"'BP Financier'!$G$44*(('BP Financier'!$C$16+'BP Financier'!$D$16+'BP Financier'!$E$16+'BP Financier'!$F$16+'BP Financier'!$G$16)/('BP Financier'!$C$16+'BP Financier'!$C$19+'BP Financier'!$D$16+'BP Financier'!$D$19+'BP Financier'!$E$16+'BP Financier'!$E$19+'BP Financier'!$C$22+'BP Financier'!$D$22+'BP Financier'!$E$22+'BP Financier'!$F$16+'BP Financier'!$F$19+'BP Financier'!$F$22+'BP Financier'!$G$16+'BP Financier'!$G$19+'BP Financier'!$G$22))*$V8234*AB8234/(1-$W8234)","v":{"v":12889.554340407152,"d":"12,890"}},null,{"v":1E-3,"d":"0.10%"},{"$f":"Actif!$E$28/100","v":{"v":0.28900000000000003,"d":"28.90%"}},{"$f":"Actif!$E$30/100","v":{"v":0.09050000000000001,"d":"9.05%"}},{"$f":"Actif!$E$31/100","v":{"v":0.0605,"d":"6.05%"}},{"$f":"Actif!$E$32/100","v":{"v":0.47350000000000003,"d":"47.35%"}},{"$f":"Actif!$E$33/100","v":{"v":0.0585,"d":"5.85%"}},{"$f":"Actif!$E$29/100","v":{"v":0.027999999999999997,"d":"2.80%"}}]
[null,"#122",42,2028,"H","A_VIE",{"v":0.44999999999999996,"d":"0.45"},{"v":0.38999999999999996,"d":"0.39"},0.6,0.6,85,0,{"$f":"ROUND(Primes!$Q$4*V8235,0)","v":11},{"$f":"'BP Financier'!$G$33*(('BP Financier'!$C$16+'BP Financier'!$D$16+'BP Financier'!$E$16+'BP Financier'!$F$16+'BP Financier'!$G$16)/('BP Financier'!$C$16+'BP Financier'!$C$19+'BP Financier'!$D$16+'BP Financier'!$D$19+'BP Financier'!$E$16+'BP Financier'!$E$19+'BP Financier'!$F$16+'BP Financier'!$F$19+'BP Financier'!$G$19+'BP Financier'!$G$16))*V8235","v":{"v":570278.6743187835,"d":"570,279"}},{"v":327302.6120010531,"d":"327,303"},{"$f":"'BP Financier'!$G$44*(('BP Financier'!$C$16+'BP Financier'!$D$16+'BP Financier'!$E$16+'BP Financier'!$F$16+'BP Financier'!$G$16)/('BP Financier'!$C$16+'BP Financier'!$C$19+'BP Financier'!$D$16+'BP Financier'!$D$19+'BP Financier'!$E$16+'BP Financier'!$E$19+'BP Financier'!$C$22+'BP Financier'!$D$22+'BP Financier'!$E$22+'BP Financier'!$F$16+'BP Financier'!$F$19+'BP Financier'!$F$22+'BP Financier'!$G$16+'BP Financier'!$G$19+'BP Financier'!$G$22))*$V8235*X8235/(1-$W8235)","v":{"v":41660.880993101695,"d":"41,661"}},{"$f":"'BP Financier'!$G$44*(('BP Financier'!$C$16+'BP Financier'!$D$16+'BP Financier'!$E$16+'BP Financier'!$F$16+'BP Financier'!$G$16)/('BP Financier'!$C$16+'BP Financier'!$C$19+'BP Financier'!$D$16+'BP Financier'!$D$19+'BP Financier'!$E$16+'BP Financier'!$E$19+'BP Financier'!$C$22+'BP Financier'!$D$22+'BP Financier'!$E$22+'BP Financier'!$F$16+'BP Financier'!$F$19+'BP Financier'!$F$22+'BP Financier'!$G$16+'BP Financier'!$G$19+'BP Financier'!$G$22))*$V8235*Y8235/(1-$W8235)","v":{"v":27850.644199808314,"d":"27,851"}},{"$f":"'BP Financier'!$G$44*(('BP Financier'!$C$16+'BP Financier'!$D$16+'BP Financier'!$E$16+'BP Financier'!$F$16+'BP Financier'!$G$16)/('BP Financier'!$C$16+'BP Financier'!$C$19+'BP Financier'!$D$16+'BP Financier'!$D$19+'BP Financier'!$E$16+'BP Financier'!$E$19+'BP Financier'!$C$22+'BP Financier'!$D$22+'BP Financier'!$E$22+'BP Financier'!$F$16+'BP Financier'!$F$19+'BP Financier'!$F$22+'BP Financier'!$G$16+'BP Financier'!$G$19+'BP Financier'!$G$22))*$V8235*Z8235/(1-$W8235)","v":{"v":217971.57072081385,"d":"217,972"}},{"$f":"'BP Financier'!$G$44*(('BP Financier'!$C$16+'BP Financier'!$D$16+'BP Financier'!$E$16+'BP Financier'!$F$16+'BP Financier'!$G$16)/('BP Financier'!$C$16+'BP Financier'!$C$19+'BP Financier'!$D$16+'BP Financier'!$D$19+'BP Financier'!$E$16+'BP Financier'!$E$19+'BP Financier'!$C$22+'BP Financier'!$D$22+'BP Financier'!$E$22+'BP Financier'!$F$16+'BP Financier'!$F$19+'BP Financier'!$F$22+'BP Financier'!$G$16+'BP Financier'!$G$19+'BP Financier'!$G$22))*$V8235*AA8235/(1-$W8235)","v":{"v":26929.96174692209,"d":"26,930"}},{"$f":"'BP Financier'!$G$44*(('BP Financier'!$C$16+'BP Financier'!$D$16+'BP Financier'!$E$16+'BP Financier'!$F$16+'BP Financier'!$G$16)/('BP Financier'!$C$16+'BP Financier'!$C$19+'BP Financier'!$D$16+'BP Financier'!$D$19+'BP Financier'!$E$16+'BP Financier'!$E$19+'BP Financier'!$C$22+'BP Financier'!$D$22+'BP Financier'!$E$22+'BP Financier'!$F$16+'BP Financier'!$F$19+'BP Financier'!$F$22+'BP Financier'!$G$16+'BP Financier'!$G$19+'BP Financier'!$G$22))*$V8235*AB8235/(1-$W8235)","v":{"v":12889.554340407152,"d":"12,890"}},null,{"v":1E-3,"d":"0.10%"},{"$f":"Actif!$E$28/100","v":{"v":0.28900000000000003,"d":"28.90%"}},{"$f":"Actif!$E$30/100","v":{"v":0.09050000000000001,"d":"9.05%"}},{"$f":"Actif!$E$31/100","v":{"v":0.0605,"d":"6.05%"}},{"$f":"Actif!$E$32/100","v":{"v":0.47350000000000003,"d":"47.35%"}},{"$f":"Actif!$E$33/100","v":{"v":0.0585,"d":"5.85%"}},{"$f":"Actif!$E$29/100","v":{"v":0.027999999999999997,"d":"2.80%"}}]
[null,"#123",42,2029,"H","A_VIE",{"v":0.44999999999999996,"d":"0.45"},{"v":0.38999999999999996,"d":"0.39"},0.6,0.6,85,0,{"$f":"ROUND(Primes!$Q$4*V8236,0)","v":11},{"$f":"'BP Financier'!$G$33*(('BP Financier'!$C$16+'BP Financier'!$D$16+'BP Financier'!$E$16+'BP Financier'!$F$16+'BP Financier'!$G$16)/('BP Financier'!$C$16+'BP Financier'!$C$19+'BP Financier'!$D$16+'BP Financier'!$D$19+'BP Financier'!$E$16+'BP Financier'!$E$19+'BP Financier'!$F$16+'BP Financier'!$F$19+'BP Financier'!$G$19+'BP Financier'!$G$16))*V8236","v":{"v":570278.6743187835,"d":"570,279"}},{"v":327302.6120010531,"d":"327,303"},{"$f":"'BP Financier'!$G$44*(('BP Financier'!$C$16+'BP Financier'!$D$16+'BP Financier'!$E$16+'BP Financier'!$F$16+'BP Financier'!$G$16)/('BP Financier'!$C$16+'BP Financier'!$C$19+'BP Financier'!$D$16+'BP Financier'!$D$19+'BP Financier'!$E$16+'BP Financier'!$E$19+'BP Financier'!$C$22+'BP Financier'!$D$22+'BP Financier'!$E$22+'BP Financier'!$F$16+'BP Financier'!$F$19+'BP Financier'!$F$22+'BP Financier'!$G$16+'BP Financier'!$G$19+'BP Financier'!$G$22))*$V8236*X8236/(1-$W8236)","v":{"v":41660.880993101695,"d":"41,661"}},{"$f":"'BP Financier'!$G$44*(('BP Financier'!$C$16+'BP Financier'!$D$16+'BP Financier'!$E$16+'BP Financier'!$F$16+'BP Financier'!$G$16)/('BP Financier'!$C$16+'BP Financier'!$C$19+'BP Financier'!$D$16+'BP Financier'!$D$19+'BP Financier'!$E$16+'BP Financier'!$E$19+'BP Financier'!$C$22+'BP Financier'!$D$22+'BP Financier'!$E$22+'BP Financier'!$F$16+'BP Financier'!$F$19+'BP Financier'!$F$22+'BP Financier'!$G$16+'BP Financier'!$G$19+'BP Financier'!$G$22))*$V8236*Y8236/(1-$W8236)","v":{"v":27850.644199808314,"d":"27,851"}},{"$f":"'BP Financier'!$G$44*(('BP Financier'!$C$16+'BP Financier'!$D$16+'BP Financier'!$E$16+'BP Financier'!$F$16+'BP Financier'!$G$16)/('BP Financier'!$C$16+'BP Financier'!$C$19+'BP Financier'!$D$16+'BP Financier'!$D$19+'BP Financier'!$E$16+'BP Financier'!$E$19+'BP Financier'!$C$22+'BP Financier'!$D$22+'BP Financier'!$E$22+'BP Financier'!$F$16+'BP Financier'!$F$19+'BP Financier'!$F$22+'BP Financier'!$G$16+'BP Financier'!$G$19+'BP Financier'!$G$22))*$V8236*Z8236/(1-$W8236)","v":{"v":217971.57072081385,"d":"217,972"}},{"$f":"'BP Financier'!$G$44*(('BP Financier'!$C$16+'BP Financier'!$D$16+'BP Financier'!$E$16+'BP Financier'!$F$16+'BP Financier'!$G$16)/('BP Financier'!$C$16+'BP Financier'!$C$19+'BP Financier'!$D$16+'BP Financier'!$D$19+'BP Financier'!$E$16+'BP Financier'!$E$19+'BP Financier'!$C$22+'BP Financier'!$D$22+'BP Financier'!$E$22+'BP Financier'!$F$16+'BP Financier'!$F$19+'BP Financier'!$F$22+'BP Financier'!$G$16+'BP Financier'!$G$19+'BP Financier'!$G$22))*$V8236*AA8236/(1-$W8236)","v":{"v":26929.96174692209,"d":"26,930"}},{"$f":"'BP Financier'!$G$44*(('BP Financier'!$C$16+'BP Financier'!$D$16+'BP Financier'!$E$16+'BP Financier'!$F$16+'BP Financier'!$G$16)/('BP Financier'!$C$16+'BP Financier'!$C$19+'BP Financier'!$D$16+'BP Financier'!$D$19+'BP Financier'!$E$16+'BP Financier'!$E$19+'BP Financier'!$C$22+'BP Financier'!$D$22+'BP Financier'!$E$22+'BP Financier'!$F$16+'BP Financier'!$F$19+'BP Financier'!$F$22+'BP Financier'!$G$16+'BP Financier'!$G$19+'BP Financier'!$G$22))*$V8236*AB8236/(1-$W8236)","v":{"v":12889.554340407152,"d":"12,890"}},null,{"v":1E-3,"d":"0.10%"},{"$f":"Actif!$E$28/100","v":{"v":0.28900000000000003,"d":"28.90%"}},{"$f":"Actif!$E$30/100","v":{"v":0.09050000000000001,"d":"9.05%"}},{"$f":"Actif!$E$31/100","v":{"v":0.0605,"d":"6.05%"}},{"$f":"Actif!$E$32/100","v":{"v":0.47350000000000003,"d":"47.35%"}},{"$f":"Actif!$E$33/100","v":{"v":0.0585,"d":"5.85%"}},{"$f":"Actif!$E$29/100","v":{"v":0.027999999999999997,"d":"2.80%"}}]
[null,"#124",42,2030,"H","A_VIE",{"v":0.44999999999999996,"d":"0.45"},{"v":0.38999999999999996,"d":"0.39"},0.6,0.6,85,0,{"$f":"ROUND(Primes!$Q$4*V8237,0)","v":11},{"$f":"'BP Financier'!$G$33*(('BP Financier'!$C$16+'BP Financier'!$D$16+'BP Financier'!$E$16+'BP Financier'!$F$16+'BP Financier'!$G$16)/('BP Financier'!$C$16+'BP Financier'!$C$19+'BP Financier'!$D$16+'BP Financier'!$D$19+'BP Financier'!$E$16+'BP Financier'!$E$19+'BP Financier'!$F$16+'BP Financier'!$F$19+'BP Financier'!$G$19+'BP Financier'!$G$16))*V8237","v":{"v":570278.6743187835,"d":"570,279"}},{"v":327302.6120010531,"d":"327,303"},{"$f":"'BP Financier'!$G$44*(('BP Financier'!$C$16+'BP Financier'!$D$16+'BP Financier'!$E$16+'BP Financier'!$F$16+'BP Financier'!$G$16)/('BP Financier'!$C$16+'BP Financier'!$C$19+'BP Financier'!$D$16+'BP Financier'!$D$19+'BP Financier'!$E$16+'BP Financier'!$E$19+'BP Financier'!$C$22+'BP Financier'!$D$22+'BP Financier'!$E$22+'BP Financier'!$F$16+'BP Financier'!$F$19+'BP Financier'!$F$22+'BP Financier'!$G$16+'BP Financier'!$G$19+'BP Financier'!$G$22))*$V8237*X8237/(1-$W8237)","v":{"v":41660.880993101695,"d":"41,661"}},{"$f":"'BP Financier'!$G$44*(('BP Financier'!$C$16+'BP Financier'!$D$16+'BP Financier'!$E$16+'BP Financier'!$F$16+'BP Financier'!$G$16)/('BP Financier'!$C$16+'BP Financier'!$C$19+'BP Financier'!$D$16+'BP Financier'!$D$19+'BP Financier'!$E$16+'BP Financier'!$E$19+'BP Financier'!$C$22+'BP Financier'!$D$22+'BP Financier'!$E$22+'BP Financier'!$F$16+'BP Financier'!$F$19+'BP Financier'!$F$22+'BP Financier'!$G$16+'BP Financier'!$G$19+'BP Financier'!$G$22))*$V8237*Y8237/(1-$W8237)","v":{"v":27850.644199808314,"d":"27,851"}},{"$f":"'BP Financier'!$G$44*(('BP Financier'!$C$16+'BP Financier'!$D$16+'BP Financier'!$E$16+'BP Financier'!$F$16+'BP Financier'!$G$16)/('BP Financier'!$C$16+'BP Financier'!$C$19+'BP Financier'!$D$16+'BP Financier'!$D$19+'BP Financier'!$E$16+'BP Financier'!$E$19+'BP Financier'!$C$22+'BP Financier'!$D$22+'BP Financier'!$E$22+'BP Financier'!$F$16+'BP Financier'!$F$19+'BP Financier'!$F$22+'BP Financier'!$G$16+'BP Financier'!$G$19+'BP Financier'!$G$22))*$V8237*Z8237/(1-$W8237)","v":{"v":217971.57072081385,"d":"217,972"}},{"$f":"'BP Financier'!$G$44*(('BP Financier'!$C$16+'BP Financier'!$D$16+'BP Financier'!$E$16+'BP Financier'!$F$16+'BP Financier'!$G$16)/('BP Financier'!$C$16+'BP Financier'!$C$19+'BP Financier'!$D$16+'BP Financier'!$D$19+'BP Financier'!$E$16+'BP Financier'!$E$19+'BP Financier'!$C$22+'BP Financier'!$D$22+'BP Financier'!$E$22+'BP Financier'!$F$16+'BP Financier'!$F$19+'BP Financier'!$F$22+'BP Financier'!$G$16+'BP Financier'!$G$19+'BP Financier'!$G$22))*$V8237*AA8237/(1-$W8237)","v":{"v":26929.96174692209,"d":"26,930"}},{"$f":"'BP Financier'!$G$44*(('BP Financier'!$C$16+'BP Financier'!$D$16+'BP Financier'!$E$16+'BP Financier'!$F$16+'BP Financier'!$G$16)/('BP Financier'!$C$16+'BP Financier'!$C$19+'BP Financier'!$D$16+'BP Financier'!$D$19+'BP Financier'!$E$16+'BP Financier'!$E$19+'BP Financier'!$C$22+'BP Financier'!$D$22+'BP Financier'!$E$22+'BP Financier'!$F$16+'BP Financier'!$F$19+'BP Financier'!$F$22+'BP Financier'!$G$16+'BP Financier'!$G$19+'BP Financier'!$G$22))*$V8237*AB8237/(1-$W8237)","v":{"v":12889.554340407152,"d":"12,890"}},null,{"v":1E-3,"d":"0.10%"},{"$f":"Actif!$E$28/100","v":{"v":0.28900000000000003,"d":"28.90%"}},{"$f":"Actif!$E$30/100","v":{"v":0.09050000000000001,"d":"9.05%"}},{"$f":"Actif!$E$31/100","v":{"v":0.0605,"d":"6.05%"}},{"$f":"Actif!$E$32/100","v":{"v":0.47350000000000003,"d":"47.35%"}},{"$f":"Actif!$E$33/100","v":{"v":0.0585,"d":"5.85%"}},{"$f":"Actif!$E$29/100","v":{"v":0.027999999999999997,"d":"2.80%"}}]
[null,"#125",42,2031,"H","A_VIE",{"v":0.44999999999999996,"d":"0.45"},{"v":0.38999999999999996,"d":"0.39"},0.6,0.6,85,0,{"$f":"ROUND(Primes!$Q$4*V8238,0)","v":11},{"$f":"'BP Financier'!$G$33*(('BP Financier'!$C$16+'BP Financier'!$D$16+'BP Financier'!$E$16+'BP Financier'!$F$16+'BP Financier'!$G$16)/('BP Financier'!$C$16+'BP Financier'!$C$19+'BP Financier'!$D$16+'BP Financier'!$D$19+'BP Financier'!$E$16+'BP Financier'!$E$19+'BP Financier'!$F$16+'BP Financier'!$F$19+'BP Financier'!$G$19+'BP Financier'!$G$16))*V8238","v":{"v":570278.6743187835,"d":"570,279"}},{"v":327302.6120010531,"d":"327,303"},{"$f":"'BP Financier'!$G$44*(('BP Financier'!$C$16+'BP Financier'!$D$16+'BP Financier'!$E$16+'BP Financier'!$F$16+'BP Financier'!$G$16)/('BP Financier'!$C$16+'BP Financier'!$C$19+'BP Financier'!$D$16+'BP Financier'!$D$19+'BP Financier'!$E$16+'BP Financier'!$E$19+'BP Financier'!$C$22+'BP Financier'!$D$22+'BP Financier'!$E$22+'BP Financier'!$F$16+'BP Financier'!$F$19+'BP Financier'!$F$22+'BP Financier'!$G$16+'BP Financier'!$G$19+'BP Financier'!$G$22))*$V8238*X8238/(1-$W8238)","v":{"v":41660.880993101695,"d":"41,661"}},{"$f":"'BP Financier'!$G$44*(('BP Financier'!$C$16+'BP Financier'!$D$16+'BP Financier'!$E$16+'BP Financier'!$F$16+'BP Financier'!$G$16)/('BP Financier'!$C$16+'BP Financier'!$C$19+'BP Financier'!$D$16+'BP Financier'!$D$19+'BP Financier'!$E$16+'BP Financier'!$E$19+'BP Financier'!$C$22+'BP Financier'!$D$22+'BP Financier'!$E$22+'BP Financier'!$F$16+'BP Financier'!$F$19+'BP Financier'!$F$22+'BP Financier'!$G$16+'BP Financier'!$G$19+'BP Financier'!$G$22))*$V8238*Y8238/(1-$W8238)","v":{"v":27850.644199808314,"d":"27,851"}},{"$f":"'BP Financier'!$G$44*(('BP Financier'!$C$16+'BP Financier'!$D$16+'BP Financier'!$E$16+'BP Financier'!$F$16+'BP Financier'!$G$16)/('BP Financier'!$C$16+'BP Financier'!$C$19+'BP Financier'!$D$16+'BP Financier'!$D$19+'BP Financier'!$E$16+'BP Financier'!$E$19+'BP Financier'!$C$22+'BP Financier'!$D$22+'BP Financier'!$E$22+'BP Financier'!$F$16+'BP Financier'!$F$19+'BP Financier'!$F$22+'BP Financier'!$G$16+'BP Financier'!$G$19+'BP Financier'!$G$22))*$V8238*Z8238/(1-$W8238)","v":{"v":217971.57072081385,"d":"217,972"}},{"$f":"'BP Financier'!$G$44*(('BP Financier'!$C$16+'BP Financier'!$D$16+'BP Financier'!$E$16+'BP Financier'!$F$16+'BP Financier'!$G$16)/('BP Financier'!$C$16+'BP Financier'!$C$19+'BP Financier'!$D$16+'BP Financier'!$D$19+'BP Financier'!$E$16+'BP Financier'!$E$19+'BP Financier'!$C$22+'BP Financier'!$D$22+'BP Financier'!$E$22+'BP Financier'!$F$16+'BP Financier'!$F$19+'BP Financier'!$F$22+'BP Financier'!$G$16+'BP Financier'!$G$19+'BP Financier'!$G$22))*$V8238*AA8238/(1-$W8238)","v":{"v":26929.96174692209,"d":"26,930"}},{"$f":"'BP Financier'!$G$44*(('BP Financier'!$C$16+'BP Financier'!$D$16+'BP Financier'!$E$16+'BP Financier'!$F$16+'BP Financier'!$G$16)/('BP Financier'!$C$16+'BP Financier'!$C$19+'BP Financier'!$D$16+'BP Financier'!$D$19+'BP Financier'!$E$16+'BP Financier'!$E$19+'BP Financier'!$C$22+'BP Financier'!$D$22+'BP Financier'!$E$22+'BP Financier'!$F$16+'BP Financier'!$F$19+'BP Financier'!$F$22+'BP Financier'!$G$16+'BP Financier'!$G$19+'BP Financier'!$G$22))*$V8238*AB8238/(1-$W8238)","v":{"v":12889.554340407152,"d":"12,890"}},null,{"v":1E-3,"d":"0.10%"},{"$f":"Actif!$E$28/100","v":{"v":0.28900000000000003,"d":"28.90%"}},{"$f":"Actif!$E$30/100","v":{"v":0.09050000000000001,"d":"9.05%"}},{"$f":"Actif!$E$31/100","v":{"v":0.0605,"d":"6.05%"}},{"$f":"Actif!$E$32/100","v":{"v":0.47350000000000003,"d":"47.35%"}},{"$f":"Actif!$E$33/100","v":{"v":0.0585,"d":"5.85%"}},{"$f":"Actif!$E$29/100","v":{"v":0.027999999999999997,"d":"2.80%"}}]
[null,"#126",43,2026,"H","A_VIE",{"v":0.44999999999999996,"d":"0.45"},{"v":0.38999999999999996,"d":"0.39"},0.6,0.6,85,0,{"$f":"ROUND(Primes!$Q$4*V8239,0)","v":11},{"$f":"'BP Financier'!$G$33*(('BP Financier'!$C$16+'BP Financier'!$D$16+'BP Financier'!$E$16+'BP Financier'!$F$16+'BP Financier'!$G$16)/('BP Financier'!$C$16+'BP Financier'!$C$19+'BP Financier'!$D$16+'BP Financier'!$D$19+'BP Financier'!$E$16+'BP Financier'!$E$19+'BP Financier'!$F$16+'BP Financier'!$F$19+'BP Financier'!$G$19+'BP Financier'!$G$16))*V8239","v":{"v":570278.6743187835,"d":"570,279"}},{"v":327302.6120010531,"d":"327,303"},{"$f":"'BP Financier'!$G$44*(('BP Financier'!$C$16+'BP Financier'!$D$16+'BP Financier'!$E$16+'BP Financier'!$F$16+'BP Financier'!$G$16)/('BP Financier'!$C$16+'BP Financier'!$C$19+'BP Financier'!$D$16+'BP Financier'!$D$19+'BP Financier'!$E$16+'BP Financier'!$E$19+'BP Financier'!$C$22+'BP Financier'!$D$22+'BP Financier'!$E$22+'BP Financier'!$F$16+'BP Financier'!$F$19+'BP Financier'!$F$22+'BP Financier'!$G$16+'BP Financier'!$G$19+'BP Financier'!$G$22))*$V8239*X8239/(1-$W8239)","v":{"v":41660.880993101695,"d":"41,661"}},{"$f":"'BP Financier'!$G$44*(('BP Financier'!$C$16+'BP Financier'!$D$16+'BP Financier'!$E$16+'BP Financier'!$F$16+'BP Financier'!$G$16)/('BP Financier'!$C$16+'BP Financier'!$C$19+'BP Financier'!$D$16+'BP Financier'!$D$19+'BP Financier'!$E$16+'BP Financier'!$E$19+'BP Financier'!$C$22+'BP Financier'!$D$22+'BP Financier'!$E$22+'BP Financier'!$F$16+'BP Financier'!$F$19+'BP Financier'!$F$22+'BP Financier'!$G$16+'BP Financier'!$G$19+'BP Financier'!$G$22))*$V8239*Y8239/(1-$W8239)","v":{"v":27850.644199808314,"d":"27,851"}},{"$f":"'BP Financier'!$G$44*(('BP Financier'!$C$16+'BP Financier'!$D$16+'BP Financier'!$E$16+'BP Financier'!$F$16+'BP Financier'!$G$16)/('BP Financier'!$C$16+'BP Financier'!$C$19+'BP Financier'!$D$16+'BP Financier'!$D$19+'BP Financier'!$E$16+'BP Financier'!$E$19+'BP Financier'!$C$22+'BP Financier'!$D$22+'BP Financier'!$E$22+'BP Financier'!$F$16+'BP Financier'!$F$19+'BP Financier'!$F$22+'BP Financier'!$G$16+'BP Financier'!$G$19+'BP Financier'!$G$22))*$V8239*Z8239/(1-$W8239)","v":{"v":217971.57072081385,"d":"217,972"}},{"$f":"'BP Financier'!$G$44*(('BP Financier'!$C$16+'BP Financier'!$D$16+'BP Financier'!$E$16+'BP Financier'!$F$16+'BP Financier'!$G$16)/('BP Financier'!$C$16+'BP Financier'!$C$19+'BP Financier'!$D$16+'BP Financier'!$D$19+'BP Financier'!$E$16+'BP Financier'!$E$19+'BP Financier'!$C$22+'BP Financier'!$D$22+'BP Financier'!$E$22+'BP Financier'!$F$16+'BP Financier'!$F$19+'BP Financier'!$F$22+'BP Financier'!$G$16+'BP Financier'!$G$19+'BP Financier'!$G$22))*$V8239*AA8239/(1-$W8239)","v":{"v":26929.96174692209,"d":"26,930"}},{"$f":"'BP Financier'!$G$44*(('BP Financier'!$C$16+'BP Financier'!$D$16+'BP Financier'!$E$16+'BP Financier'!$F$16+'BP Financier'!$G$16)/('BP Financier'!$C$16+'BP Financier'!$C$19+'BP Financier'!$D$16+'BP Financier'!$D$19+'BP Financier'!$E$16+'BP Financier'!$E$19+'BP Financier'!$C$22+'BP Financier'!$D$22+'BP Financier'!$E$22+'BP Financier'!$F$16+'BP Financier'!$F$19+'BP Financier'!$F$22+'BP Financier'!$G$16+'BP Financier'!$G$19+'BP Financier'!$G$22))*$V8239*AB8239/(1-$W8239)","v":{"v":12889.554340407152,"d":"12,890"}},null,{"v":1E-3,"d":"0.10%"},{"$f":"Actif!$E$28/100","v":{"v":0.28900000000000003,"d":"28.90%"}},{"$f":"Actif!$E$30/100","v":{"v":0.09050000000000001,"d":"9.05%"}},{"$f":"Actif!$E$31/100","v":{"v":0.0605,"d":"6.05%"}},{"$f":"Actif!$E$32/100","v":{"v":0.47350000000000003,"d":"47.35%"}},{"$f":"Actif!$E$33/100","v":{"v":0.0585,"d":"5.85%"}},{"$f":"Actif!$E$29/100","v":{"v":0.027999999999999997,"d":"2.80%"}}]
[null,"#127",43,2028,"H","A_VIE",{"v":0.44999999999999996,"d":"0.45"},{"v":0.38999999999999996,"d":"0.39"},0.6,0.6,85,0,{"$f":"ROUND(Primes!$Q$4*V8240,0)","v":11},{"$f":"'BP Financier'!$G$33*(('BP Financier'!$C$16+'BP Financier'!$D$16+'BP Financier'!$E$16+'BP Financier'!$F$16+'BP Financier'!$G$16)/('BP Financier'!$C$16+'BP Financier'!$C$19+'BP Financier'!$D$16+'BP Financier'!$D$19+'BP Financier'!$E$16+'BP Financier'!$E$19+'BP Financier'!$F$16+'BP Financier'!$F$19+'BP Financier'!$G$19+'BP Financier'!$G$16))*V8240","v":{"v":570278.6743187835,"d":"570,279"}},{"v":327302.6120010531,"d":"327,303"},{"$f":"'BP Financier'!$G$44*(('BP Financier'!$C$16+'BP Financier'!$D$16+'BP Financier'!$E$16+'BP Financier'!$F$16+'BP Financier'!$G$16)/('BP Financier'!$C$16+'BP Financier'!$C$19+'BP Financier'!$D$16+'BP Financier'!$D$19+'BP Financier'!$E$16+'BP Financier'!$E$19+'BP Financier'!$C$22+'BP Financier'!$D$22+'BP Financier'!$E$22+'BP Financier'!$F$16+'BP Financier'!$F$19+'BP Financier'!$F$22+'BP Financier'!$G$16+'BP Financier'!$G$19+'BP Financier'!$G$22))*$V8240*X8240/(1-$W8240)","v":{"v":41660.880993101695,"d":"41,661"}},{"$f":"'BP Financier'!$G$44*(('BP Financier'!$C$16+'BP Financier'!$D$16+'BP Financier'!$E$16+'BP Financier'!$F$16+'BP Financier'!$G$16)/('BP Financier'!$C$16+'BP Financier'!$C$19+'BP Financier'!$D$16+'BP Financier'!$D$19+'BP Financier'!$E$16+'BP Financier'!$E$19+'BP Financier'!$C$22+'BP Financier'!$D$22+'BP Financier'!$E$22+'BP Financier'!$F$16+'BP Financier'!$F$19+'BP Financier'!$F$22+'BP Financier'!$G$16+'BP Financier'!$G$19+'BP Financier'!$G$22))*$V8240*Y8240/(1-$W8240)","v":{"v":27850.644199808314,"d":"27,851"}},{"$f":"'BP Financier'!$G$44*(('BP Financier'!$C$16+'BP Financier'!$D$16+'BP Financier'!$E$16+'BP Financier'!$F$16+'BP Financier'!$G$16)/('BP Financier'!$C$16+'BP Financier'!$C$19+'BP Financier'!$D$16+'BP Financier'!$D$19+'BP Financier'!$E$16+'BP Financier'!$E$19+'BP Financier'!$C$22+'BP Financier'!$D$22+'BP Financier'!$E$22+'BP Financier'!$F$16+'BP Financier'!$F$19+'BP Financier'!$F$22+'BP Financier'!$G$16+'BP Financier'!$G$19+'BP Financier'!$G$22))*$V8240*Z8240/(1-$W8240)","v":{"v":217971.57072081385,"d":"217,972"}},{"$f":"'BP Financier'!$G$44*(('BP Financier'!$C$16+'BP Financier'!$D$16+'BP Financier'!$E$16+'BP Financier'!$F$16+'BP Financier'!$G$16)/('BP Financier'!$C$16+'BP Financier'!$C$19+'BP Financier'!$D$16+'BP Financier'!$D$19+'BP Financier'!$E$16+'BP Financier'!$E$19+'BP Financier'!$C$22+'BP Financier'!$D$22+'BP Financier'!$E$22+'BP Financier'!$F$16+'BP Financier'!$F$19+'BP Financier'!$F$22+'BP Financier'!$G$16+'BP Financier'!$G$19+'BP Financier'!$G$22))*$V8240*AA8240/(1-$W8240)","v":{"v":26929.96174692209,"d":"26,930"}},{"$f":"'BP Financier'!$G$44*(('BP Financier'!$C$16+'BP Financier'!$D$16+'BP Financier'!$E$16+'BP Financier'!$F$16+'BP Financier'!$G$16)/('BP Financier'!$C$16+'BP Financier'!$C$19+'BP Financier'!$D$16+'BP Financier'!$D$19+'BP Financier'!$E$16+'BP Financier'!$E$19+'BP Financier'!$C$22+'BP Financier'!$D$22+'BP Financier'!$E$22+'BP Financier'!$F$16+'BP Financier'!$F$19+'BP Financier'!$F$22+'BP Financier'!$G$16+'BP Financier'!$G$19+'BP Financier'!$G$22))*$V8240*AB8240/(1-$W8240)","v":{"v":12889.554340407152,"d":"12,890"}},null,{"v":1E-3,"d":"0.10%"},{"$f":"Actif!$E$28/100","v":{"v":0.28900000000000003,"d":"28.90%"}},{"$f":"Actif!$E$30/100","v":{"v":0.09050000000000001,"d":"9.05%"}},{"$f":"Actif!$E$31/100","v":{"v":0.0605,"d":"6.05%"}},{"$f":"Actif!$E$32/100","v":{"v":0.47350000000000003,"d":"47.35%"}},{"$f":"Actif!$E$33/100","v":{"v":0.0585,"d":"5.85%"}},{"$f":"Actif!$E$29/100","v":{"v":0.027999999999999997,"d":"2.80%"}}]
[null,"#128",43,2029,"H","A_VIE",{"v":0.44999999999999996,"d":"0.45"},{"v":0.38999999999999996,"d":"0.39"},0.6,0.6,85,0,{"$f":"ROUND(Primes!$Q$4*V8241,0)","v":11},{"$f":"'BP Financier'!$G$33*(('BP Financier'!$C$16+'BP Financier'!$D$16+'BP Financier'!$E$16+'BP Financier'!$F$16+'BP Financier'!$G$16)/('BP Financier'!$C$16+'BP Financier'!$C$19+'BP Financier'!$D$16+'BP Financier'!$D$19+'BP Financier'!$E$16+'BP Financier'!$E$19+'BP Financier'!$F$16+'BP Financier'!$F$19+'BP Financier'!$G$19+'BP Financier'!$G$16))*V8241","v":{"v":570278.6743187835,"d":"570,279"}},{"v":327302.6120010531,"d":"327,303"},{"$f":"'BP Financier'!$G$44*(('BP Financier'!$C$16+'BP Financier'!$D$16+'BP Financier'!$E$16+'BP Financier'!$F$16+'BP Financier'!$G$16)/('BP Financier'!$C$16+'BP Financier'!$C$19+'BP Financier'!$D$16+'BP Financier'!$D$19+'BP Financier'!$E$16+'BP Financier'!$E$19+'BP Financier'!$C$22+'BP Financier'!$D$22+'BP Financier'!$E$22+'BP Financier'!$F$16+'BP Financier'!$F$19+'BP Financier'!$F$22+'BP Financier'!$G$16+'BP Financier'!$G$19+'BP Financier'!$G$22))*$V8241*X8241/(1-$W8241)","v":{"v":41660.880993101695,"d":"41,661"}},{"$f":"'BP Financier'!$G$44*(('BP Financier'!$C$16+'BP Financier'!$D$16+'BP Financier'!$E$16+'BP Financier'!$F$16+'BP Financier'!$G$16)/('BP Financier'!$C$16+'BP Financier'!$C$19+'BP Financier'!$D$16+'BP Financier'!$D$19+'BP Financier'!$E$16+'BP Financier'!$E$19+'BP Financier'!$C$22+'BP Financier'!$D$22+'BP Financier'!$E$22+'BP Financier'!$F$16+'BP Financier'!$F$19+'BP Financier'!$F$22+'BP Financier'!$G$16+'BP Financier'!$G$19+'BP Financier'!$G$22))*$V8241*Y8241/(1-$W8241)","v":{"v":27850.644199808314,"d":"27,851"}},{"$f":"'BP Financier'!$G$44*(('BP Financier'!$C$16+'BP Financier'!$D$16+'BP Financier'!$E$16+'BP Financier'!$F$16+'BP Financier'!$G$16)/('BP Financier'!$C$16+'BP Financier'!$C$19+'BP Financier'!$D$16+'BP Financier'!$D$19+'BP Financier'!$E$16+'BP Financier'!$E$19+'BP Financier'!$C$22+'BP Financier'!$D$22+'BP Financier'!$E$22+'BP Financier'!$F$16+'BP Financier'!$F$19+'BP Financier'!$F$22+'BP Financier'!$G$16+'BP Financier'!$G$19+'BP Financier'!$G$22))*$V8241*Z8241/(1-$W8241)","v":{"v":217971.57072081385,"d":"217,972"}},{"$f":"'BP Financier'!$G$44*(('BP Financier'!$C$16+'BP Financier'!$D$16+'BP Financier'!$E$16+'BP Financier'!$F$16+'BP Financier'!$G$16)/('BP Financier'!$C$16+'BP Financier'!$C$19+'BP Financier'!$D$16+'BP Financier'!$D$19+'BP Financier'!$E$16+'BP Financier'!$E$19+'BP Financier'!$C$22+'BP Financier'!$D$22+'BP Financier'!$E$22+'BP Financier'!$F$16+'BP Financier'!$F$19+'BP Financier'!$F$22+'BP Financier'!$G$16+'BP Financier'!$G$19+'BP Financier'!$G$22))*$V8241*AA8241/(1-$W8241)","v":{"v":26929.96174692209,"d":"26,930"}},{"$f":"'BP Financier'!$G$44*(('BP Financier'!$C$16+'BP Financier'!$D$16+'BP Financier'!$E$16+'BP Financier'!$F$16+'BP Financier'!$G$16)/('BP Financier'!$C$16+'BP Financier'!$C$19+'BP Financier'!$D$16+'BP Financier'!$D$19+'BP Financier'!$E$16+'BP Financier'!$E$19+'BP Financier'!$C$22+'BP Financier'!$D$22+'BP Financier'!$E$22+'BP Financier'!$F$16+'BP Financier'!$F$19+'BP Financier'!$F$22+'BP Financier'!$G$16+'BP Financier'!$G$19+'BP Financier'!$G$22))*$V8241*AB8241/(1-$W8241)","v":{"v":12889.554340407152,"d":"12,890"}},null,{"v":1E-3,"d":"0.10%"},{"$f":"Actif!$E$28/100","v":{"v":0.28900000000000003,"d":"28.90%"}},{"$f":"Actif!$E$30/100","v":{"v":0.09050000000000001,"d":"9.05%"}},{"$f":"Actif!$E$31/100","v":{"v":0.0605,"d":"6.05%"}},{"$f":"Actif!$E$32/100","v":{"v":0.47350000000000003,"d":"47.35%"}},{"$f":"Actif!$E$33/100","v":{"v":0.0585,"d":"5.85%"}},{"$f":"Actif!$E$29/100","v":{"v":0.027999999999999997,"d":"2.80%"}}]
[null,"#129",43,2030,"H","A_VIE",{"v":0.44999999999999996,"d":"0.45"},{"v":0.38999999999999996,"d":"0.39"},0.6,0.6,85,0,{"$f":"ROUND(Primes!$Q$4*V8242,0)","v":11},{"$f":"'BP Financier'!$G$33*(('BP Financier'!$C$16+'BP Financier'!$D$16+'BP Financier'!$E$16+'BP Financier'!$F$16+'BP Financier'!$G$16)/('BP Financier'!$C$16+'BP Financier'!$C$19+'BP Financier'!$D$16+'BP Financier'!$D$19+'BP Financier'!$E$16+'BP Financier'!$E$19+'BP Financier'!$F$16+'BP Financier'!$F$19+'BP Financier'!$G$19+'BP Financier'!$G$16))*V8242","v":{"v":570278.6743187835,"d":"570,279"}},{"v":327302.6120010531,"d":"327,303"},{"$f":"'BP Financier'!$G$44*(('BP Financier'!$C$16+'BP Financier'!$D$16+'BP Financier'!$E$16+'BP Financier'!$F$16+'BP Financier'!$G$16)/('BP Financier'!$C$16+'BP Financier'!$C$19+'BP Financier'!$D$16+'BP Financier'!$D$19+'BP Financier'!$E$16+'BP Financier'!$E$19+'BP Financier'!$C$22+'BP Financier'!$D$22+'BP Financier'!$E$22+'BP Financier'!$F$16+'BP Financier'!$F$19+'BP Financier'!$F$22+'BP Financier'!$G$16+'BP Financier'!$G$19+'BP Financier'!$G$22))*$V8242*X8242/(1-$W8242)","v":{"v":41660.880993101695,"d":"41,661"}},{"$f":"'BP Financier'!$G$44*(('BP Financier'!$C$16+'BP Financier'!$D$16+'BP Financier'!$E$16+'BP Financier'!$F$16+'BP Financier'!$G$16)/('BP Financier'!$C$16+'BP Financier'!$C$19+'BP Financier'!$D$16+'BP Financier'!$D$19+'BP Financier'!$E$16+'BP Financier'!$E$19+'BP Financier'!$C$22+'BP Financier'!$D$22+'BP Financier'!$E$22+'BP Financier'!$F$16+'BP Financier'!$F$19+'BP Financier'!$F$22+'BP Financier'!$G$16+'BP Financier'!$G$19+'BP Financier'!$G$22))*$V8242*Y8242/(1-$W8242)","v":{"v":27850.644199808314,"d":"27,851"}},{"$f":"'BP Financier'!$G$44*(('BP Financier'!$C$16+'BP Financier'!$D$16+'BP Financier'!$E$16+'BP Financier'!$F$16+'BP Financier'!$G$16)/('BP Financier'!$C$16+'BP Financier'!$C$19+'BP Financier'!$D$16+'BP Financier'!$D$19+'BP Financier'!$E$16+'BP Financier'!$E$19+'BP Financier'!$C$22+'BP Financier'!$D$22+'BP Financier'!$E$22+'BP Financier'!$F$16+'BP Financier'!$F$19+'BP Financier'!$F$22+'BP Financier'!$G$16+'BP Financier'!$G$19+'BP Financier'!$G$22))*$V8242*Z8242/(1-$W8242)","v":{"v":217971.57072081385,"d":"217,972"}},{"$f":"'BP Financier'!$G$44*(('BP Financier'!$C$16+'BP Financier'!$D$16+'BP Financier'!$E$16+'BP Financier'!$F$16+'BP Financier'!$G$16)/('BP Financier'!$C$16+'BP Financier'!$C$19+'BP Financier'!$D$16+'BP Financier'!$D$19+'BP Financier'!$E$16+'BP Financier'!$E$19+'BP Financier'!$C$22+'BP Financier'!$D$22+'BP Financier'!$E$22+'BP Financier'!$F$16+'BP Financier'!$F$19+'BP Financier'!$F$22+'BP Financier'!$G$16+'BP Financier'!$G$19+'BP Financier'!$G$22))*$V8242*AA8242/(1-$W8242)","v":{"v":26929.96174692209,"d":"26,930"}},{"$f":"'BP Financier'!$G$44*(('BP Financier'!$C$16+'BP Financier'!$D$16+'BP Financier'!$E$16+'BP Financier'!$F$16+'BP Financier'!$G$16)/('BP Financier'!$C$16+'BP Financier'!$C$19+'BP Financier'!$D$16+'BP Financier'!$D$19+'BP Financier'!$E$16+'BP Financier'!$E$19+'BP Financier'!$C$22+'BP Financier'!$D$22+'BP Financier'!$E$22+'BP Financier'!$F$16+'BP Financier'!$F$19+'BP Financier'!$F$22+'BP Financier'!$G$16+'BP Financier'!$G$19+'BP Financier'!$G$22))*$V8242*AB8242/(1-$W8242)","v":{"v":12889.554340407152,"d":"12,890"}},null,{"v":1E-3,"d":"0.10%"},{"$f":"Actif!$E$28/100","v":{"v":0.28900000000000003,"d":"28.90%"}},{"$f":"Actif!$E$30/100","v":{"v":0.09050000000000001,"d":"9.05%"}},{"$f":"Actif!$E$31/100","v":{"v":0.0605,"d":"6.05%"}},{"$f":"Actif!$E$32/100","v":{"v":0.47350000000000003,"d":"47.35%"}},{"$f":"Actif!$E$33/100","v":{"v":0.0585,"d":"5.85%"}},{"$f":"Actif!$E$29/100","v":{"v":0.027999999999999997,"d":"2.80%"}}]
[null,"#130",43,2031,"H","A_VIE",{"v":0.44999999999999996,"d":"0.45"},{"v":0.38999999999999996,"d":"0.39"},0.6,0.6,85,0,{"$f":"ROUND(Primes!$Q$4*V8243,0)","v":11},{"$f":"'BP Financier'!$G$33*(('BP Financier'!$C$16+'BP Financier'!$D$16+'BP Financier'!$E$16+'BP Financier'!$F$16+'BP Financier'!$G$16)/('BP Financier'!$C$16+'BP Financier'!$C$19+'BP Financier'!$D$16+'BP Financier'!$D$19+'BP Financier'!$E$16+'BP Financier'!$E$19+'BP Financier'!$F$16+'BP Financier'!$F$19+'BP Financier'!$G$19+'BP Financier'!$G$16))*V8243","v":{"v":570278.6743187835,"d":"570,279"}},{"v":327302.6120010531,"d":"327,303"},{"$f":"'BP Financier'!$G$44*(('BP Financier'!$C$16+'BP Financier'!$D$16+'BP Financier'!$E$16+'BP Financier'!$F$16+'BP Financier'!$G$16)/('BP Financier'!$C$16+'BP Financier'!$C$19+'BP Financier'!$D$16+'BP Financier'!$D$19+'BP Financier'!$E$16+'BP Financier'!$E$19+'BP Financier'!$C$22+'BP Financier'!$D$22+'BP Financier'!$E$22+'BP Financier'!$F$16+'BP Financier'!$F$19+'BP Financier'!$F$22+'BP Financier'!$G$16+'BP Financier'!$G$19+'BP Financier'!$G$22))*$V8243*X8243/(1-$W8243)","v":{"v":41660.880993101695,"d":"41,661"}},{"$f":"'BP Financier'!$G$44*(('BP Financier'!$C$16+'BP Financier'!$D$16+'BP Financier'!$E$16+'BP Financier'!$F$16+'BP Financier'!$G$16)/('BP Financier'!$C$16+'BP Financier'!$C$19+'BP Financier'!$D$16+'BP Financier'!$D$19+'BP Financier'!$E$16+'BP Financier'!$E$19+'BP Financier'!$C$22+'BP Financier'!$D$22+'BP Financier'!$E$22+'BP Financier'!$F$16+'BP Financier'!$F$19+'BP Financier'!$F$22+'BP Financier'!$G$16+'BP Financier'!$G$19+'BP Financier'!$G$22))*$V8243*Y8243/(1-$W8243)","v":{"v":27850.644199808314,"d":"27,851"}},{"$f":"'BP Financier'!$G$44*(('BP Financier'!$C$16+'BP Financier'!$D$16+'BP Financier'!$E$16+'BP Financier'!$F$16+'BP Financier'!$G$16)/('BP Financier'!$C$16+'BP Financier'!$C$19+'BP Financier'!$D$16+'BP Financier'!$D$19+'BP Financier'!$E$16+'BP Financier'!$E$19+'BP Financier'!$C$22+'BP Financier'!$D$22+'BP Financier'!$E$22+'BP Financier'!$F$16+'BP Financier'!$F$19+'BP Financier'!$F$22+'BP Financier'!$G$16+'BP Financier'!$G$19+'BP Financier'!$G$22))*$V8243*Z8243/(1-$W8243)","v":{"v":217971.57072081385,"d":"217,972"}},{"$f":"'BP Financier'!$G$44*(('BP Financier'!$C$16+'BP Financier'!$D$16+'BP Financier'!$E$16+'BP Financier'!$F$16+'BP Financier'!$G$16)/('BP Financier'!$C$16+'BP Financier'!$C$19+'BP Financier'!$D$16+'BP Financier'!$D$19+'BP Financier'!$E$16+'BP Financier'!$E$19+'BP Financier'!$C$22+'BP Financier'!$D$22+'BP Financier'!$E$22+'BP Financier'!$F$16+'BP Financier'!$F$19+'BP Financier'!$F$22+'BP Financier'!$G$16+'BP Financier'!$G$19+'BP Financier'!$G$22))*$V8243*AA8243/(1-$W8243)","v":{"v":26929.96174692209,"d":"26,930"}},{"$f":"'BP Financier'!$G$44*(('BP Financier'!$C$16+'BP Financier'!$D$16+'BP Financier'!$E$16+'BP Financier'!$F$16+'BP Financier'!$G$16)/('BP Financier'!$C$16+'BP Financier'!$C$19+'BP Financier'!$D$16+'BP Financier'!$D$19+'BP Financier'!$E$16+'BP Financier'!$E$19+'BP Financier'!$C$22+'BP Financier'!$D$22+'BP Financier'!$E$22+'BP Financier'!$F$16+'BP Financier'!$F$19+'BP Financier'!$F$22+'BP Financier'!$G$16+'BP Financier'!$G$19+'BP Financier'!$G$22))*$V8243*AB8243/(1-$W8243)","v":{"v":12889.554340407152,"d":"12,890"}},null,{"v":1E-3,"d":"0.10%"},{"$f":"Actif!$E$28/100","v":{"v":0.28900000000000003,"d":"28.90%"}},{"$f":"Actif!$E$30/100","v":{"v":0.09050000000000001,"d":"9.05%"}},{"$f":"Actif!$E$31/100","v":{"v":0.0605,"d":"6.05%"}},{"$f":"Actif!$E$32/100","v":{"v":0.47350000000000003,"d":"47.35%"}},{"$f":"Actif!$E$33/100","v":{"v":0.0585,"d":"5.85%"}},{"$f":"Actif!$E$29/100","v":{"v":0.027999999999999997,"d":"2.80%"}}]
[null,"#131",44,2026,"F","A_VIE",{"v":0.44999999999999996,"d":"0.45"},{"v":0.38999999999999996,"d":"0.39"},0.6,0.6,85,0,{"$f":"ROUND(Primes!$Q$4*V8244,0)","v":11},{"$f":"'BP Financier'!$G$33*(('BP Financier'!$C$16+'BP Financier'!$D$16+'BP Financier'!$E$16+'BP Financier'!$F$16+'BP Financier'!$G$16)/('BP Financier'!$C$16+'BP Financier'!$C$19+'BP Financier'!$D$16+'BP Financier'!$D$19+'BP Financier'!$E$16+'BP Financier'!$E$19+'BP Financier'!$F$16+'BP Financier'!$F$19+'BP Financier'!$G$19+'BP Financier'!$G$16))*V8244","v":{"v":570278.6743187835,"d":"570,279"}},{"v":327302.6120010531,"d":"327,303"},{"$f":"'BP Financier'!$G$44*(('BP Financier'!$C$16+'BP Financier'!$D$16+'BP Financier'!$E$16+'BP Financier'!$F$16+'BP Financier'!$G$16)/('BP Financier'!$C$16+'BP Financier'!$C$19+'BP Financier'!$D$16+'BP Financier'!$D$19+'BP Financier'!$E$16+'BP Financier'!$E$19+'BP Financier'!$C$22+'BP Financier'!$D$22+'BP Financier'!$E$22+'BP Financier'!$F$16+'BP Financier'!$F$19+'BP Financier'!$F$22+'BP Financier'!$G$16+'BP Financier'!$G$19+'BP Financier'!$G$22))*$V8244*X8244/(1-$W8244)","v":{"v":41660.880993101695,"d":"41,661"}},{"$f":"'BP Financier'!$G$44*(('BP Financier'!$C$16+'BP Financier'!$D$16+'BP Financier'!$E$16+'BP Financier'!$F$16+'BP Financier'!$G$16)/('BP Financier'!$C$16+'BP Financier'!$C$19+'BP Financier'!$D$16+'BP Financier'!$D$19+'BP Financier'!$E$16+'BP Financier'!$E$19+'BP Financier'!$C$22+'BP Financier'!$D$22+'BP Financier'!$E$22+'BP Financier'!$F$16+'BP Financier'!$F$19+'BP Financier'!$F$22+'BP Financier'!$G$16+'BP Financier'!$G$19+'BP Financier'!$G$22))*$V8244*Y8244/(1-$W8244)","v":{"v":27850.644199808314,"d":"27,851"}},{"$f":"'BP Financier'!$G$44*(('BP Financier'!$C$16+'BP Financier'!$D$16+'BP Financier'!$E$16+'BP Financier'!$F$16+'BP Financier'!$G$16)/('BP Financier'!$C$16+'BP Financier'!$C$19+'BP Financier'!$D$16+'BP Financier'!$D$19+'BP Financier'!$E$16+'BP Financier'!$E$19+'BP Financier'!$C$22+'BP Financier'!$D$22+'BP Financier'!$E$22+'BP Financier'!$F$16+'BP Financier'!$F$19+'BP Financier'!$F$22+'BP Financier'!$G$16+'BP Financier'!$G$19+'BP Financier'!$G$22))*$V8244*Z8244/(1-$W8244)","v":{"v":217971.57072081385,"d":"217,972"}},{"$f":"'BP Financier'!$G$44*(('BP Financier'!$C$16+'BP Financier'!$D$16+'BP Financier'!$E$16+'BP Financier'!$F$16+'BP Financier'!$G$16)/('BP Financier'!$C$16+'BP Financier'!$C$19+'BP Financier'!$D$16+'BP Financier'!$D$19+'BP Financier'!$E$16+'BP Financier'!$E$19+'BP Financier'!$C$22+'BP Financier'!$D$22+'BP Financier'!$E$22+'BP Financier'!$F$16+'BP Financier'!$F$19+'BP Financier'!$F$22+'BP Financier'!$G$16+'BP Financier'!$G$19+'BP Financier'!$G$22))*$V8244*AA8244/(1-$W8244)","v":{"v":26929.96174692209,"d":"26,930"}},{"$f":"'BP Financier'!$G$44*(('BP Financier'!$C$16+'BP Financier'!$D$16+'BP Financier'!$E$16+'BP Financier'!$F$16+'BP Financier'!$G$16)/('BP Financier'!$C$16+'BP Financier'!$C$19+'BP Financier'!$D$16+'BP Financier'!$D$19+'BP Financier'!$E$16+'BP Financier'!$E$19+'BP Financier'!$C$22+'BP Financier'!$D$22+'BP Financier'!$E$22+'BP Financier'!$F$16+'BP Financier'!$F$19+'BP Financier'!$F$22+'BP Financier'!$G$16+'BP Financier'!$G$19+'BP Financier'!$G$22))*$V8244*AB8244/(1-$W8244)","v":{"v":12889.554340407152,"d":"12,890"}},null,{"v":1E-3,"d":"0.10%"},{"$f":"Actif!$E$28/100","v":{"v":0.28900000000000003,"d":"28.90%"}},{"$f":"Actif!$E$30/100","v":{"v":0.09050000000000001,"d":"9.05%"}},{"$f":"Actif!$E$31/100","v":{"v":0.0605,"d":"6.05%"}},{"$f":"Actif!$E$32/100","v":{"v":0.47350000000000003,"d":"47.35%"}},{"$f":"Actif!$E$33/100","v":{"v":0.0585,"d":"5.85%"}},{"$f":"Actif!$E$29/100","v":{"v":0.027999999999999997,"d":"2.80%"}}]
[null,"#132",44,2028,"F","A_VIE",{"v":0.44999999999999996,"d":"0.45"},{"v":0.38999999999999996,"d":"0.39"},0.6,0.6,85,0,{"$f":"ROUND(Primes!$Q$4*V8245,0)","v":11},{"$f":"'BP Financier'!$G$33*(('BP Financier'!$C$16+'BP Financier'!$D$16+'BP Financier'!$E$16+'BP Financier'!$F$16+'BP Financier'!$G$16)/('BP Financier'!$C$16+'BP Financier'!$C$19+'BP Financier'!$D$16+'BP Financier'!$D$19+'BP Financier'!$E$16+'BP Financier'!$E$19+'BP Financier'!$F$16+'BP Financier'!$F$19+'BP Financier'!$G$19+'BP Financier'!$G$16))*V8245","v":{"v":570278.6743187835,"d":"570,279"}},{"v":327302.6120010531,"d":"327,303"},{"$f":"'BP Financier'!$G$44*(('BP Financier'!$C$16+'BP Financier'!$D$16+'BP Financier'!$E$16+'BP Financier'!$F$16+'BP Financier'!$G$16)/('BP Financier'!$C$16+'BP Financier'!$C$19+'BP Financier'!$D$16+'BP Financier'!$D$19+'BP Financier'!$E$16+'BP Financier'!$E$19+'BP Financier'!$C$22+'BP Financier'!$D$22+'BP Financier'!$E$22+'BP Financier'!$F$16+'BP Financier'!$F$19+'BP Financier'!$F$22+'BP Financier'!$G$16+'BP Financier'!$G$19+'BP Financier'!$G$22))*$V8245*X8245/(1-$W8245)","v":{"v":41660.880993101695,"d":"41,661"}},{"$f":"'BP Financier'!$G$44*(('BP Financier'!$C$16+'BP Financier'!$D$16+'BP Financier'!$E$16+'BP Financier'!$F$16+'BP Financier'!$G$16)/('BP Financier'!$C$16+'BP Financier'!$C$19+'BP Financier'!$D$16+'BP Financier'!$D$19+'BP Financier'!$E$16+'BP Financier'!$E$19+'BP Financier'!$C$22+'BP Financier'!$D$22+'BP Financier'!$E$22+'BP Financier'!$F$16+'BP Financier'!$F$19+'BP Financier'!$F$22+'BP Financier'!$G$16+'BP Financier'!$G$19+'BP Financier'!$G$22))*$V8245*Y8245/(1-$W8245)","v":{"v":27850.644199808314,"d":"27,851"}},{"$f":"'BP Financier'!$G$44*(('BP Financier'!$C$16+'BP Financier'!$D$16+'BP Financier'!$E$16+'BP Financier'!$F$16+'BP Financier'!$G$16)/('BP Financier'!$C$16+'BP Financier'!$C$19+'BP Financier'!$D$16+'BP Financier'!$D$19+'BP Financier'!$E$16+'BP Financier'!$E$19+'BP Financier'!$C$22+'BP Financier'!$D$22+'BP Financier'!$E$22+'BP Financier'!$F$16+'BP Financier'!$F$19+'BP Financier'!$F$22+'BP Financier'!$G$16+'BP Financier'!$G$19+'BP Financier'!$G$22))*$V8245*Z8245/(1-$W8245)","v":{"v":217971.57072081385,"d":"217,972"}},{"$f":"'BP Financier'!$G$44*(('BP Financier'!$C$16+'BP Financier'!$D$16+'BP Financier'!$E$16+'BP Financier'!$F$16+'BP Financier'!$G$16)/('BP Financier'!$C$16+'BP Financier'!$C$19+'BP Financier'!$D$16+'BP Financier'!$D$19+'BP Financier'!$E$16+'BP Financier'!$E$19+'BP Financier'!$C$22+'BP Financier'!$D$22+'BP Financier'!$E$22+'BP Financier'!$F$16+'BP Financier'!$F$19+'BP Financier'!$F$22+'BP Financier'!$G$16+'BP Financier'!$G$19+'BP Financier'!$G$22))*$V8245*AA8245/(1-$W8245)","v":{"v":26929.96174692209,"d":"26,930"}},{"$f":"'BP Financier'!$G$44*(('BP Financier'!$C$16+'BP Financier'!$D$16+'BP Financier'!$E$16+'BP Financier'!$F$16+'BP Financier'!$G$16)/('BP Financier'!$C$16+'BP Financier'!$C$19+'BP Financier'!$D$16+'BP Financier'!$D$19+'BP Financier'!$E$16+'BP Financier'!$E$19+'BP Financier'!$C$22+'BP Financier'!$D$22+'BP Financier'!$E$22+'BP Financier'!$F$16+'BP Financier'!$F$19+'BP Financier'!$F$22+'BP Financier'!$G$16+'BP Financier'!$G$19+'BP Financier'!$G$22))*$V8245*AB8245/(1-$W8245)","v":{"v":12889.554340407152,"d":"12,890"}},null,{"v":1E-3,"d":"0.10%"},{"$f":"Actif!$E$28/100","v":{"v":0.28900000000000003,"d":"28.90%"}},{"$f":"Actif!$E$30/100","v":{"v":0.09050000000000001,"d":"9.05%"}},{"$f":"Actif!$E$31/100","v":{"v":0.0605,"d":"6.05%"}},{"$f":"Actif!$E$32/100","v":{"v":0.47350000000000003,"d":"47.35%"}},{"$f":"Actif!$E$33/100","v":{"v":0.0585,"d":"5.85%"}},{"$f":"Actif!$E$29/100","v":{"v":0.027999999999999997,"d":"2.80%"}}]
[null,"#133",44,2029,"F","A_VIE",{"v":0.44999999999999996,"d":"0.45"},{"v":0.38999999999999996,"d":"0.39"},0.6,0.6,85,0,{"$f":"ROUND(Primes!$Q$4*V8246,0)","v":11},{"$f":"'BP Financier'!$G$33*(('BP Financier'!$C$16+'BP Financier'!$D$16+'BP Financier'!$E$16+'BP Financier'!$F$16+'BP Financier'!$G$16)/('BP Financier'!$C$16+'BP Financier'!$C$19+'BP Financier'!$D$16+'BP Financier'!$D$19+'BP Financier'!$E$16+'BP Financier'!$E$19+'BP Financier'!$F$16+'BP Financier'!$F$19+'BP Financier'!$G$19+'BP Financier'!$G$16))*V8246","v":{"v":570278.6743187835,"d":"570,279"}},{"v":327302.6120010531,"d":"327,303"},{"$f":"'BP Financier'!$G$44*(('BP Financier'!$C$16+'BP Financier'!$D$16+'BP Financier'!$E$16+'BP Financier'!$F$16+'BP Financier'!$G$16)/('BP Financier'!$C$16+'BP Financier'!$C$19+'BP Financier'!$D$16+'BP Financier'!$D$19+'BP Financier'!$E$16+'BP Financier'!$E$19+'BP Financier'!$C$22+'BP Financier'!$D$22+'BP Financier'!$E$22+'BP Financier'!$F$16+'BP Financier'!$F$19+'BP Financier'!$F$22+'BP Financier'!$G$16+'BP Financier'!$G$19+'BP Financier'!$G$22))*$V8246*X8246/(1-$W8246)","v":{"v":41660.880993101695,"d":"41,661"}},{"$f":"'BP Financier'!$G$44*(('BP Financier'!$C$16+'BP Financier'!$D$16+'BP Financier'!$E$16+'BP Financier'!$F$16+'BP Financier'!$G$16)/('BP Financier'!$C$16+'BP Financier'!$C$19+'BP Financier'!$D$16+'BP Financier'!$D$19+'BP Financier'!$E$16+'BP Financier'!$E$19+'BP Financier'!$C$22+'BP Financier'!$D$22+'BP Financier'!$E$22+'BP Financier'!$F$16+'BP Financier'!$F$19+'BP Financier'!$F$22+'BP Financier'!$G$16+'BP Financier'!$G$19+'BP Financier'!$G$22))*$V8246*Y8246/(1-$W8246)","v":{"v":27850.644199808314,"d":"27,851"}},{"$f":"'BP Financier'!$G$44*(('BP Financier'!$C$16+'BP Financier'!$D$16+'BP Financier'!$E$16+'BP Financier'!$F$16+'BP Financier'!$G$16)/('BP Financier'!$C$16+'BP Financier'!$C$19+'BP Financier'!$D$16+'BP Financier'!$D$19+'BP Financier'!$E$16+'BP Financier'!$E$19+'BP Financier'!$C$22+'BP Financier'!$D$22+'BP Financier'!$E$22+'BP Financier'!$F$16+'BP Financier'!$F$19+'BP Financier'!$F$22+'BP Financier'!$G$16+'BP Financier'!$G$19+'BP Financier'!$G$22))*$V8246*Z8246/(1-$W8246)","v":{"v":217971.57072081385,"d":"217,972"}},{"$f":"'BP Financier'!$G$44*(('BP Financier'!$C$16+'BP Financier'!$D$16+'BP Financier'!$E$16+'BP Financier'!$F$16+'BP Financier'!$G$16)/('BP Financier'!$C$16+'BP Financier'!$C$19+'BP Financier'!$D$16+'BP Financier'!$D$19+'BP Financier'!$E$16+'BP Financier'!$E$19+'BP Financier'!$C$22+'BP Financier'!$D$22+'BP Financier'!$E$22+'BP Financier'!$F$16+'BP Financier'!$F$19+'BP Financier'!$F$22+'BP Financier'!$G$16+'BP Financier'!$G$19+'BP Financier'!$G$22))*$V8246*AA8246/(1-$W8246)","v":{"v":26929.96174692209,"d":"26,930"}},{"$f":"'BP Financier'!$G$44*(('BP Financier'!$C$16+'BP Financier'!$D$16+'BP Financier'!$E$16+'BP Financier'!$F$16+'BP Financier'!$G$16)/('BP Financier'!$C$16+'BP Financier'!$C$19+'BP Financier'!$D$16+'BP Financier'!$D$19+'BP Financier'!$E$16+'BP Financier'!$E$19+'BP Financier'!$C$22+'BP Financier'!$D$22+'BP Financier'!$E$22+'BP Financier'!$F$16+'BP Financier'!$F$19+'BP Financier'!$F$22+'BP Financier'!$G$16+'BP Financier'!$G$19+'BP Financier'!$G$22))*$V8246*AB8246/(1-$W8246)","v":{"v":12889.554340407152,"d":"12,890"}},null,{"v":1E-3,"d":"0.10%"},{"$f":"Actif!$E$28/100","v":{"v":0.28900000000000003,"d":"28.90%"}},{"$f":"Actif!$E$30/100","v":{"v":0.09050000000000001,"d":"9.05%"}},{"$f":"Actif!$E$31/100","v":{"v":0.0605,"d":"6.05%"}},{"$f":"Actif!$E$32/100","v":{"v":0.47350000000000003,"d":"47.35%"}},{"$f":"Actif!$E$33/100","v":{"v":0.0585,"d":"5.85%"}},{"$f":"Actif!$E$29/100","v":{"v":0.027999999999999997,"d":"2.80%"}}]
[null,"#134",44,2030,"F","A_VIE",{"v":0.44999999999999996,"d":"0.45"},{"v":0.38999999999999996,"d":"0.39"},0.6,0.6,85,0,{"$f":"ROUND(Primes!$Q$4*V8247,0)","v":11},{"$f":"'BP Financier'!$G$33*(('BP Financier'!$C$16+'BP Financier'!$D$16+'BP Financier'!$E$16+'BP Financier'!$F$16+'BP Financier'!$G$16)/('BP Financier'!$C$16+'BP Financier'!$C$19+'BP Financier'!$D$16+'BP Financier'!$D$19+'BP Financier'!$E$16+'BP Financier'!$E$19+'BP Financier'!$F$16+'BP Financier'!$F$19+'BP Financier'!$G$19+'BP Financier'!$G$16))*V8247","v":{"v":570278.6743187835,"d":"570,279"}},{"v":327302.6120010531,"d":"327,303"},{"$f":"'BP Financier'!$G$44*(('BP Financier'!$C$16+'BP Financier'!$D$16+'BP Financier'!$E$16+'BP Financier'!$F$16+'BP Financier'!$G$16)/('BP Financier'!$C$16+'BP Financier'!$C$19+'BP Financier'!$D$16+'BP Financier'!$D$19+'BP Financier'!$E$16+'BP Financier'!$E$19+'BP Financier'!$C$22+'BP Financier'!$D$22+'BP Financier'!$E$22+'BP Financier'!$F$16+'BP Financier'!$F$19+'BP Financier'!$F$22+'BP Financier'!$G$16+'BP Financier'!$G$19+'BP Financier'!$G$22))*$V8247*X8247/(1-$W8247)","v":{"v":41660.880993101695,"d":"41,661"}},{"$f":"'BP Financier'!$G$44*(('BP Financier'!$C$16+'BP Financier'!$D$16+'BP Financier'!$E$16+'BP Financier'!$F$16+'BP Financier'!$G$16)/('BP Financier'!$C$16+'BP Financier'!$C$19+'BP Financier'!$D$16+'BP Financier'!$D$19+'BP Financier'!$E$16+'BP Financier'!$E$19+'BP Financier'!$C$22+'BP Financier'!$D$22+'BP Financier'!$E$22+'BP Financier'!$F$16+'BP Financier'!$F$19+'BP Financier'!$F$22+'BP Financier'!$G$16+'BP Financier'!$G$19+'BP Financier'!$G$22))*$V8247*Y8247/(1-$W8247)","v":{"v":27850.644199808314,"d":"27,851"}},{"$f":"'BP Financier'!$G$44*(('BP Financier'!$C$16+'BP Financier'!$D$16+'BP Financier'!$E$16+'BP Financier'!$F$16+'BP Financier'!$G$16)/('BP Financier'!$C$16+'BP Financier'!$C$19+'BP Financier'!$D$16+'BP Financier'!$D$19+'BP Financier'!$E$16+'BP Financier'!$E$19+'BP Financier'!$C$22+'BP Financier'!$D$22+'BP Financier'!$E$22+'BP Financier'!$F$16+'BP Financier'!$F$19+'BP Financier'!$F$22+'BP Financier'!$G$16+'BP Financier'!$G$19+'BP Financier'!$G$22))*$V8247*Z8247/(1-$W8247)","v":{"v":217971.57072081385,"d":"217,972"}},{"$f":"'BP Financier'!$G$44*(('BP Financier'!$C$16+'BP Financier'!$D$16+'BP Financier'!$E$16+'BP Financier'!$F$16+'BP Financier'!$G$16)/('BP Financier'!$C$16+'BP Financier'!$C$19+'BP Financier'!$D$16+'BP Financier'!$D$19+'BP Financier'!$E$16+'BP Financier'!$E$19+'BP Financier'!$C$22+'BP Financier'!$D$22+'BP Financier'!$E$22+'BP Financier'!$F$16+'BP Financier'!$F$19+'BP Financier'!$F$22+'BP Financier'!$G$16+'BP Financier'!$G$19+'BP Financier'!$G$22))*$V8247*AA8247/(1-$W8247)","v":{"v":26929.96174692209,"d":"26,930"}},{"$f":"'BP Financier'!$G$44*(('BP Financier'!$C$16+'BP Financier'!$D$16+'BP Financier'!$E$16+'BP Financier'!$F$16+'BP Financier'!$G$16)/('BP Financier'!$C$16+'BP Financier'!$C$19+'BP Financier'!$D$16+'BP Financier'!$D$19+'BP Financier'!$E$16+'BP Financier'!$E$19+'BP Financier'!$C$22+'BP Financier'!$D$22+'BP Financier'!$E$22+'BP Financier'!$F$16+'BP Financier'!$F$19+'BP Financier'!$F$22+'BP Financier'!$G$16+'BP Financier'!$G$19+'BP Financier'!$G$22))*$V8247*AB8247/(1-$W8247)","v":{"v":12889.554340407152,"d":"12,890"}},null,{"v":1E-3,"d":"0.10%"},{"$f":"Actif!$E$28/100","v":{"v":0.28900000000000003,"d":"28.90%"}},{"$f":"Actif!$E$30/100","v":{"v":0.09050000000000001,"d":"9.05%"}},{"$f":"Actif!$E$31/100","v":{"v":0.0605,"d":"6.05%"}},{"$f":"Actif!$E$32/100","v":{"v":0.47350000000000003,"d":"47.35%"}},{"$f":"Actif!$E$33/100","v":{"v":0.0585,"d":"5.85%"}},{"$f":"Actif!$E$29/100","v":{"v":0.027999999999999997,"d":"2.80%"}}]
[null,"#135",44,2031,"F","A_VIE",{"v":0.44999999999999996,"d":"0.45"},{"v":0.38999999999999996,"d":"0.39"},0.6,0.6,85,0,{"$f":"ROUND(Primes!$Q$4*V8248,0)","v":11},{"$f":"'BP Financier'!$G$33*(('BP Financier'!$C$16+'BP Financier'!$D$16+'BP Financier'!$E$16+'BP Financier'!$F$16+'BP Financier'!$G$16)/('BP Financier'!$C$16+'BP Financier'!$C$19+'BP Financier'!$D$16+'BP Financier'!$D$19+'BP Financier'!$E$16+'BP Financier'!$E$19+'BP Financier'!$F$16+'BP Financier'!$F$19+'BP Financier'!$G$19+'BP Financier'!$G$16))*V8248","v":{"v":570278.6743187835,"d":"570,279"}},{"v":327302.6120010531,"d":"327,303"},{"$f":"'BP Financier'!$G$44*(('BP Financier'!$C$16+'BP Financier'!$D$16+'BP Financier'!$E$16+'BP Financier'!$F$16+'BP Financier'!$G$16)/('BP Financier'!$C$16+'BP Financier'!$C$19+'BP Financier'!$D$16+'BP Financier'!$D$19+'BP Financier'!$E$16+'BP Financier'!$E$19+'BP Financier'!$C$22+'BP Financier'!$D$22+'BP Financier'!$E$22+'BP Financier'!$F$16+'BP Financier'!$F$19+'BP Financier'!$F$22+'BP Financier'!$G$16+'BP Financier'!$G$19+'BP Financier'!$G$22))*$V8248*X8248/(1-$W8248)","v":{"v":41660.880993101695,"d":"41,661"}},{"$f":"'BP Financier'!$G$44*(('BP Financier'!$C$16+'BP Financier'!$D$16+'BP Financier'!$E$16+'BP Financier'!$F$16+'BP Financier'!$G$16)/('BP Financier'!$C$16+'BP Financier'!$C$19+'BP Financier'!$D$16+'BP Financier'!$D$19+'BP Financier'!$E$16+'BP Financier'!$E$19+'BP Financier'!$C$22+'BP Financier'!$D$22+'BP Financier'!$E$22+'BP Financier'!$F$16+'BP Financier'!$F$19+'BP Financier'!$F$22+'BP Financier'!$G$16+'BP Financier'!$G$19+'BP Financier'!$G$22))*$V8248*Y8248/(1-$W8248)","v":{"v":27850.644199808314,"d":"27,851"}},{"$f":"'BP Financier'!$G$44*(('BP Financier'!$C$16+'BP Financier'!$D$16+'BP Financier'!$E$16+'BP Financier'!$F$16+'BP Financier'!$G$16)/('BP Financier'!$C$16+'BP Financier'!$C$19+'BP Financier'!$D$16+'BP Financier'!$D$19+'BP Financier'!$E$16+'BP Financier'!$E$19+'BP Financier'!$C$22+'BP Financier'!$D$22+'BP Financier'!$E$22+'BP Financier'!$F$16+'BP Financier'!$F$19+'BP Financier'!$F$22+'BP Financier'!$G$16+'BP Financier'!$G$19+'BP Financier'!$G$22))*$V8248*Z8248/(1-$W8248)","v":{"v":217971.57072081385,"d":"217,972"}},{"$f":"'BP Financier'!$G$44*(('BP Financier'!$C$16+'BP Financier'!$D$16+'BP Financier'!$E$16+'BP Financier'!$F$16+'BP Financier'!$G$16)/('BP Financier'!$C$16+'BP Financier'!$C$19+'BP Financier'!$D$16+'BP Financier'!$D$19+'BP Financier'!$E$16+'BP Financier'!$E$19+'BP Financier'!$C$22+'BP Financier'!$D$22+'BP Financier'!$E$22+'BP Financier'!$F$16+'BP Financier'!$F$19+'BP Financier'!$F$22+'BP Financier'!$G$16+'BP Financier'!$G$19+'BP Financier'!$G$22))*$V8248*AA8248/(1-$W8248)","v":{"v":26929.96174692209,"d":"26,930"}},{"$f":"'BP Financier'!$G$44*(('BP Financier'!$C$16+'BP Financier'!$D$16+'BP Financier'!$E$16+'BP Financier'!$F$16+'BP Financier'!$G$16)/('BP Financier'!$C$16+'BP Financier'!$C$19+'BP Financier'!$D$16+'BP Financier'!$D$19+'BP Financier'!$E$16+'BP Financier'!$E$19+'BP Financier'!$C$22+'BP Financier'!$D$22+'BP Financier'!$E$22+'BP Financier'!$F$16+'BP Financier'!$F$19+'BP Financier'!$F$22+'BP Financier'!$G$16+'BP Financier'!$G$19+'BP Financier'!$G$22))*$V8248*AB8248/(1-$W8248)","v":{"v":12889.554340407152,"d":"12,890"}},null,{"v":1E-3,"d":"0.10%"},{"$f":"Actif!$E$28/100","v":{"v":0.28900000000000003,"d":"28.90%"}},{"$f":"Actif!$E$30/100","v":{"v":0.09050000000000001,"d":"9.05%"}},{"$f":"Actif!$E$31/100","v":{"v":0.0605,"d":"6.05%"}},{"$f":"Actif!$E$32/100","v":{"v":0.47350000000000003,"d":"47.35%"}},{"$f":"Actif!$E$33/100","v":{"v":0.0585,"d":"5.85%"}},{"$f":"Actif!$E$29/100","v":{"v":0.027999999999999997,"d":"2.80%"}}]
[null,"#136",45,2026,"H","A_VIE",{"v":0.44999999999999996,"d":"0.45"},{"v":0.38999999999999996,"d":"0.39"},0.6,0.6,85,0,{"$f":"ROUND(Primes!$Q$4*V8249,0)","v":11},{"$f":"'BP Financier'!$G$33*(('BP Financier'!$C$16+'BP Financier'!$D$16+'BP Financier'!$E$16+'BP Financier'!$F$16+'BP Financier'!$G$16)/('BP Financier'!$C$16+'BP Financier'!$C$19+'BP Financier'!$D$16+'BP Financier'!$D$19+'BP Financier'!$E$16+'BP Financier'!$E$19+'BP Financier'!$F$16+'BP Financier'!$F$19+'BP Financier'!$G$19+'BP Financier'!$G$16))*V8249","v":{"v":570278.6743187835,"d":"570,279"}},{"v":327302.6120010531,"d":"327,303"},{"$f":"'BP Financier'!$G$44*(('BP Financier'!$C$16+'BP Financier'!$D$16+'BP Financier'!$E$16+'BP Financier'!$F$16+'BP Financier'!$G$16)/('BP Financier'!$C$16+'BP Financier'!$C$19+'BP Financier'!$D$16+'BP Financier'!$D$19+'BP Financier'!$E$16+'BP Financier'!$E$19+'BP Financier'!$C$22+'BP Financier'!$D$22+'BP Financier'!$E$22+'BP Financier'!$F$16+'BP Financier'!$F$19+'BP Financier'!$F$22+'BP Financier'!$G$16+'BP Financier'!$G$19+'BP Financier'!$G$22))*$V8249*X8249/(1-$W8249)","v":{"v":41660.880993101695,"d":"41,661"}},{"$f":"'BP Financier'!$G$44*(('BP Financier'!$C$16+'BP Financier'!$D$16+'BP Financier'!$E$16+'BP Financier'!$F$16+'BP Financier'!$G$16)/('BP Financier'!$C$16+'BP Financier'!$C$19+'BP Financier'!$D$16+'BP Financier'!$D$19+'BP Financier'!$E$16+'BP Financier'!$E$19+'BP Financier'!$C$22+'BP Financier'!$D$22+'BP Financier'!$E$22+'BP Financier'!$F$16+'BP Financier'!$F$19+'BP Financier'!$F$22+'BP Financier'!$G$16+'BP Financier'!$G$19+'BP Financier'!$G$22))*$V8249*Y8249/(1-$W8249)","v":{"v":27850.644199808314,"d":"27,851"}},{"$f":"'BP Financier'!$G$44*(('BP Financier'!$C$16+'BP Financier'!$D$16+'BP Financier'!$E$16+'BP Financier'!$F$16+'BP Financier'!$G$16)/('BP Financier'!$C$16+'BP Financier'!$C$19+'BP Financier'!$D$16+'BP Financier'!$D$19+'BP Financier'!$E$16+'BP Financier'!$E$19+'BP Financier'!$C$22+'BP Financier'!$D$22+'BP Financier'!$E$22+'BP Financier'!$F$16+'BP Financier'!$F$19+'BP Financier'!$F$22+'BP Financier'!$G$16+'BP Financier'!$G$19+'BP Financier'!$G$22))*$V8249*Z8249/(1-$W8249)","v":{"v":217971.57072081385,"d":"217,972"}},{"$f":"'BP Financier'!$G$44*(('BP Financier'!$C$16+'BP Financier'!$D$16+'BP Financier'!$E$16+'BP Financier'!$F$16+'BP Financier'!$G$16)/('BP Financier'!$C$16+'BP Financier'!$C$19+'BP Financier'!$D$16+'BP Financier'!$D$19+'BP Financier'!$E$16+'BP Financier'!$E$19+'BP Financier'!$C$22+'BP Financier'!$D$22+'BP Financier'!$E$22+'BP Financier'!$F$16+'BP Financier'!$F$19+'BP Financier'!$F$22+'BP Financier'!$G$16+'BP Financier'!$G$19+'BP Financier'!$G$22))*$V8249*AA8249/(1-$W8249)","v":{"v":26929.96174692209,"d":"26,930"}},{"$f":"'BP Financier'!$G$44*(('BP Financier'!$C$16+'BP Financier'!$D$16+'BP Financier'!$E$16+'BP Financier'!$F$16+'BP Financier'!$G$16)/('BP Financier'!$C$16+'BP Financier'!$C$19+'BP Financier'!$D$16+'BP Financier'!$D$19+'BP Financier'!$E$16+'BP Financier'!$E$19+'BP Financier'!$C$22+'BP Financier'!$D$22+'BP Financier'!$E$22+'BP Financier'!$F$16+'BP Financier'!$F$19+'BP Financier'!$F$22+'BP Financier'!$G$16+'BP Financier'!$G$19+'BP Financier'!$G$22))*$V8249*AB8249/(1-$W8249)","v":{"v":12889.554340407152,"d":"12,890"}},null,{"v":1E-3,"d":"0.10%"},{"$f":"Actif!$E$28/100","v":{"v":0.28900000000000003,"d":"28.90%"}},{"$f":"Actif!$E$30/100","v":{"v":0.09050000000000001,"d":"9.05%"}},{"$f":"Actif!$E$31/100","v":{"v":0.0605,"d":"6.05%"}},{"$f":"Actif!$E$32/100","v":{"v":0.47350000000000003,"d":"47.35%"}},{"$f":"Actif!$E$33/100","v":{"v":0.0585,"d":"5.85%"}},{"$f":"Actif!$E$29/100","v":{"v":0.027999999999999997,"d":"2.80%"}}]
[null,"#137",45,2028,"H","A_VIE",{"v":0.44999999999999996,"d":"0.45"},{"v":0.38999999999999996,"d":"0.39"},0.6,0.6,85,0,{"$f":"ROUND(Primes!$Q$4*V8250,0)","v":11},{"$f":"'BP Financier'!$G$33*(('BP Financier'!$C$16+'BP Financier'!$D$16+'BP Financier'!$E$16+'BP Financier'!$F$16+'BP Financier'!$G$16)/('BP Financier'!$C$16+'BP Financier'!$C$19+'BP Financier'!$D$16+'BP Financier'!$D$19+'BP Financier'!$E$16+'BP Financier'!$E$19+'BP Financier'!$F$16+'BP Financier'!$F$19+'BP Financier'!$G$19+'BP Financier'!$G$16))*V8250","v":{"v":570278.6743187835,"d":"570,279"}},{"v":327302.6120010531,"d":"327,303"},{"$f":"'BP Financier'!$G$44*(('BP Financier'!$C$16+'BP Financier'!$D$16+'BP Financier'!$E$16+'BP Financier'!$F$16+'BP Financier'!$G$16)/('BP Financier'!$C$16+'BP Financier'!$C$19+'BP Financier'!$D$16+'BP Financier'!$D$19+'BP Financier'!$E$16+'BP Financier'!$E$19+'BP Financier'!$C$22+'BP Financier'!$D$22+'BP Financier'!$E$22+'BP Financier'!$F$16+'BP Financier'!$F$19+'BP Financier'!$F$22+'BP Financier'!$G$16+'BP Financier'!$G$19+'BP Financier'!$G$22))*$V8250*X8250/(1-$W8250)","v":{"v":41660.880993101695,"d":"41,661"}},{"$f":"'BP Financier'!$G$44*(('BP Financier'!$C$16+'BP Financier'!$D$16+'BP Financier'!$E$16+'BP Financier'!$F$16+'BP Financier'!$G$16)/('BP Financier'!$C$16+'BP Financier'!$C$19+'BP Financier'!$D$16+'BP Financier'!$D$19+'BP Financier'!$E$16+'BP Financier'!$E$19+'BP Financier'!$C$22+'BP Financier'!$D$22+'BP Financier'!$E$22+'BP Financier'!$F$16+'BP Financier'!$F$19+'BP Financier'!$F$22+'BP Financier'!$G$16+'BP Financier'!$G$19+'BP Financier'!$G$22))*$V8250*Y8250/(1-$W8250)","v":{"v":27850.644199808314,"d":"27,851"}},{"$f":"'BP Financier'!$G$44*(('BP Financier'!$C$16+'BP Financier'!$D$16+'BP Financier'!$E$16+'BP Financier'!$F$16+'BP Financier'!$G$16)/('BP Financier'!$C$16+'BP Financier'!$C$19+'BP Financier'!$D$16+'BP Financier'!$D$19+'BP Financier'!$E$16+'BP Financier'!$E$19+'BP Financier'!$C$22+'BP Financier'!$D$22+'BP Financier'!$E$22+'BP Financier'!$F$16+'BP Financier'!$F$19+'BP Financier'!$F$22+'BP Financier'!$G$16+'BP Financier'!$G$19+'BP Financier'!$G$22))*$V8250*Z8250/(1-$W8250)","v":{"v":217971.57072081385,"d":"217,972"}},{"$f":"'BP Financier'!$G$44*(('BP Financier'!$C$16+'BP Financier'!$D$16+'BP Financier'!$E$16+'BP Financier'!$F$16+'BP Financier'!$G$16)/('BP Financier'!$C$16+'BP Financier'!$C$19+'BP Financier'!$D$16+'BP Financier'!$D$19+'BP Financier'!$E$16+'BP Financier'!$E$19+'BP Financier'!$C$22+'BP Financier'!$D$22+'BP Financier'!$E$22+'BP Financier'!$F$16+'BP Financier'!$F$19+'BP Financier'!$F$22+'BP Financier'!$G$16+'BP Financier'!$G$19+'BP Financier'!$G$22))*$V8250*AA8250/(1-$W8250)","v":{"v":26929.96174692209,"d":"26,930"}},{"$f":"'BP Financier'!$G$44*(('BP Financier'!$C$16+'BP Financier'!$D$16+'BP Financier'!$E$16+'BP Financier'!$F$16+'BP Financier'!$G$16)/('BP Financier'!$C$16+'BP Financier'!$C$19+'BP Financier'!$D$16+'BP Financier'!$D$19+'BP Financier'!$E$16+'BP Financier'!$E$19+'BP Financier'!$C$22+'BP Financier'!$D$22+'BP Financier'!$E$22+'BP Financier'!$F$16+'BP Financier'!$F$19+'BP Financier'!$F$22+'BP Financier'!$G$16+'BP Financier'!$G$19+'BP Financier'!$G$22))*$V8250*AB8250/(1-$W8250)","v":{"v":12889.554340407152,"d":"12,890"}},null,{"v":1E-3,"d":"0.10%"},{"$f":"Actif!$E$28/100","v":{"v":0.28900000000000003,"d":"28.90%"}},{"$f":"Actif!$E$30/100","v":{"v":0.09050000000000001,"d":"9.05%"}},{"$f":"Actif!$E$31/100","v":{"v":0.0605,"d":"6.05%"}},{"$f":"Actif!$E$32/100","v":{"v":0.47350000000000003,"d":"47.35%"}},{"$f":"Actif!$E$33/100","v":{"v":0.0585,"d":"5.85%"}},{"$f":"Actif!$E$29/100","v":{"v":0.027999999999999997,"d":"2.80%"}}]
[null,"#138",45,2029,"H","A_VIE",{"v":0.44999999999999996,"d":"0.45"},{"v":0.38999999999999996,"d":"0.39"},0.6,0.6,85,0,{"$f":"ROUND(Primes!$Q$4*V8251,0)","v":11},{"$f":"'BP Financier'!$G$33*(('BP Financier'!$C$16+'BP Financier'!$D$16+'BP Financier'!$E$16+'BP Financier'!$F$16+'BP Financier'!$G$16)/('BP Financier'!$C$16+'BP Financier'!$C$19+'BP Financier'!$D$16+'BP Financier'!$D$19+'BP Financier'!$E$16+'BP Financier'!$E$19+'BP Financier'!$F$16+'BP Financier'!$F$19+'BP Financier'!$G$19+'BP Financier'!$G$16))*V8251","v":{"v":570278.6743187835,"d":"570,279"}},{"v":327302.6120010531,"d":"327,303"},{"$f":"'BP Financier'!$G$44*(('BP Financier'!$C$16+'BP Financier'!$D$16+'BP Financier'!$E$16+'BP Financier'!$F$16+'BP Financier'!$G$16)/('BP Financier'!$C$16+'BP Financier'!$C$19+'BP Financier'!$D$16+'BP Financier'!$D$19+'BP Financier'!$E$16+'BP Financier'!$E$19+'BP Financier'!$C$22+'BP Financier'!$D$22+'BP Financier'!$E$22+'BP Financier'!$F$16+'BP Financier'!$F$19+'BP Financier'!$F$22+'BP Financier'!$G$16+'BP Financier'!$G$19+'BP Financier'!$G$22))*$V8251*X8251/(1-$W8251)","v":{"v":41660.880993101695,"d":"41,661"}},{"$f":"'BP Financier'!$G$44*(('BP Financier'!$C$16+'BP Financier'!$D$16+'BP Financier'!$E$16+'BP Financier'!$F$16+'BP Financier'!$G$16)/('BP Financier'!$C$16+'BP Financier'!$C$19+'BP Financier'!$D$16+'BP Financier'!$D$19+'BP Financier'!$E$16+'BP Financier'!$E$19+'BP Financier'!$C$22+'BP Financier'!$D$22+'BP Financier'!$E$22+'BP Financier'!$F$16+'BP Financier'!$F$19+'BP Financier'!$F$22+'BP Financier'!$G$16+'BP Financier'!$G$19+'BP Financier'!$G$22))*$V8251*Y8251/(1-$W8251)","v":{"v":27850.644199808314,"d":"27,851"}},{"$f":"'BP Financier'!$G$44*(('BP Financier'!$C$16+'BP Financier'!$D$16+'BP Financier'!$E$16+'BP Financier'!$F$16+'BP Financier'!$G$16)/('BP Financier'!$C$16+'BP Financier'!$C$19+'BP Financier'!$D$16+'BP Financier'!$D$19+'BP Financier'!$E$16+'BP Financier'!$E$19+'BP Financier'!$C$22+'BP Financier'!$D$22+'BP Financier'!$E$22+'BP Financier'!$F$16+'BP Financier'!$F$19+'BP Financier'!$F$22+'BP Financier'!$G$16+'BP Financier'!$G$19+'BP Financier'!$G$22))*$V8251*Z8251/(1-$W8251)","v":{"v":217971.57072081385,"d":"217,972"}},{"$f":"'BP Financier'!$G$44*(('BP Financier'!$C$16+'BP Financier'!$D$16+'BP Financier'!$E$16+'BP Financier'!$F$16+'BP Financier'!$G$16)/('BP Financier'!$C$16+'BP Financier'!$C$19+'BP Financier'!$D$16+'BP Financier'!$D$19+'BP Financier'!$E$16+'BP Financier'!$E$19+'BP Financier'!$C$22+'BP Financier'!$D$22+'BP Financier'!$E$22+'BP Financier'!$F$16+'BP Financier'!$F$19+'BP Financier'!$F$22+'BP Financier'!$G$16+'BP Financier'!$G$19+'BP Financier'!$G$22))*$V8251*AA8251/(1-$W8251)","v":{"v":26929.96174692209,"d":"26,930"}},{"$f":"'BP Financier'!$G$44*(('BP Financier'!$C$16+'BP Financier'!$D$16+'BP Financier'!$E$16+'BP Financier'!$F$16+'BP Financier'!$G$16)/('BP Financier'!$C$16+'BP Financier'!$C$19+'BP Financier'!$D$16+'BP Financier'!$D$19+'BP Financier'!$E$16+'BP Financier'!$E$19+'BP Financier'!$C$22+'BP Financier'!$D$22+'BP Financier'!$E$22+'BP Financier'!$F$16+'BP Financier'!$F$19+'BP Financier'!$F$22+'BP Financier'!$G$16+'BP Financier'!$G$19+'BP Financier'!$G$22))*$V8251*AB8251/(1-$W8251)","v":{"v":12889.554340407152,"d":"12,890"}},null,{"v":1E-3,"d":"0.10%"},{"$f":"Actif!$E$28/100","v":{"v":0.28900000000000003,"d":"28.90%"}},{"$f":"Actif!$E$30/100","v":{"v":0.09050000000000001,"d":"9.05%"}},{"$f":"Actif!$E$31/100","v":{"v":0.0605,"d":"6.05%"}},{"$f":"Actif!$E$32/100","v":{"v":0.47350000000000003,"d":"47.35%"}},{"$f":"Actif!$E$33/100","v":{"v":0.0585,"d":"5.85%"}},{"$f":"Actif!$E$29/100","v":{"v":0.027999999999999997,"d":"2.80%"}}]
[null,"#139",45,2030,"H","A_VIE",{"v":0.44999999999999996,"d":"0.45"},{"v":0.38999999999999996,"d":"0.39"},0.6,0.6,85,0,{"$f":"ROUND(Primes!$Q$4*V8252,0)","v":11},{"$f":"'BP Financier'!$G$33*(('BP Financier'!$C$16+'BP Financier'!$D$16+'BP Financier'!$E$16+'BP Financier'!$F$16+'BP Financier'!$G$16)/('BP Financier'!$C$16+'BP Financier'!$C$19+'BP Financier'!$D$16+'BP Financier'!$D$19+'BP Financier'!$E$16+'BP Financier'!$E$19+'BP Financier'!$F$16+'BP Financier'!$F$19+'BP Financier'!$G$19+'BP Financier'!$G$16))*V8252","v":{"v":570278.6743187835,"d":"570,279"}},{"v":327302.6120010531,"d":"327,303"},{"$f":"'BP Financier'!$G$44*(('BP Financier'!$C$16+'BP Financier'!$D$16+'BP Financier'!$E$16+'BP Financier'!$F$16+'BP Financier'!$G$16)/('BP Financier'!$C$16+'BP Financier'!$C$19+'BP Financier'!$D$16+'BP Financier'!$D$19+'BP Financier'!$E$16+'BP Financier'!$E$19+'BP Financier'!$C$22+'BP Financier'!$D$22+'BP Financier'!$E$22+'BP Financier'!$F$16+'BP Financier'!$F$19+'BP Financier'!$F$22+'BP Financier'!$G$16+'BP Financier'!$G$19+'BP Financier'!$G$22))*$V8252*X8252/(1-$W8252)","v":{"v":41660.880993101695,"d":"41,661"}},{"$f":"'BP Financier'!$G$44*(('BP Financier'!$C$16+'BP Financier'!$D$16+'BP Financier'!$E$16+'BP Financier'!$F$16+'BP Financier'!$G$16)/('BP Financier'!$C$16+'BP Financier'!$C$19+'BP Financier'!$D$16+'BP Financier'!$D$19+'BP Financier'!$E$16+'BP Financier'!$E$19+'BP Financier'!$C$22+'BP Financier'!$D$22+'BP Financier'!$E$22+'BP Financier'!$F$16+'BP Financier'!$F$19+'BP Financier'!$F$22+'BP Financier'!$G$16+'BP Financier'!$G$19+'BP Financier'!$G$22))*$V8252*Y8252/(1-$W8252)","v":{"v":27850.644199808314,"d":"27,851"}},{"$f":"'BP Financier'!$G$44*(('BP Financier'!$C$16+'BP Financier'!$D$16+'BP Financier'!$E$16+'BP Financier'!$F$16+'BP Financier'!$G$16)/('BP Financier'!$C$16+'BP Financier'!$C$19+'BP Financier'!$D$16+'BP Financier'!$D$19+'BP Financier'!$E$16+'BP Financier'!$E$19+'BP Financier'!$C$22+'BP Financier'!$D$22+'BP Financier'!$E$22+'BP Financier'!$F$16+'BP Financier'!$F$19+'BP Financier'!$F$22+'BP Financier'!$G$16+'BP Financier'!$G$19+'BP Financier'!$G$22))*$V8252*Z8252/(1-$W8252)","v":{"v":217971.57072081385,"d":"217,972"}},{"$f":"'BP Financier'!$G$44*(('BP Financier'!$C$16+'BP Financier'!$D$16+'BP Financier'!$E$16+'BP Financier'!$F$16+'BP Financier'!$G$16)/('BP Financier'!$C$16+'BP Financier'!$C$19+'BP Financier'!$D$16+'BP Financier'!$D$19+'BP Financier'!$E$16+'BP Financier'!$E$19+'BP Financier'!$C$22+'BP Financier'!$D$22+'BP Financier'!$E$22+'BP Financier'!$F$16+'BP Financier'!$F$19+'BP Financier'!$F$22+'BP Financier'!$G$16+'BP Financier'!$G$19+'BP Financier'!$G$22))*$V8252*AA8252/(1-$W8252)","v":{"v":26929.96174692209,"d":"26,930"}},{"$f":"'BP Financier'!$G$44*(('BP Financier'!$C$16+'BP Financier'!$D$16+'BP Financier'!$E$16+'BP Financier'!$F$16+'BP Financier'!$G$16)/('BP Financier'!$C$16+'BP Financier'!$C$19+'BP Financier'!$D$16+'BP Financier'!$D$19+'BP Financier'!$E$16+'BP Financier'!$E$19+'BP Financier'!$C$22+'BP Financier'!$D$22+'BP Financier'!$E$22+'BP Financier'!$F$16+'BP Financier'!$F$19+'BP Financier'!$F$22+'BP Financier'!$G$16+'BP Financier'!$G$19+'BP Financier'!$G$22))*$V8252*AB8252/(1-$W8252)","v":{"v":12889.554340407152,"d":"12,890"}},null,{"v":1E-3,"d":"0.10%"},{"$f":"Actif!$E$28/100","v":{"v":0.28900000000000003,"d":"28.90%"}},{"$f":"Actif!$E$30/100","v":{"v":0.09050000000000001,"d":"9.05%"}},{"$f":"Actif!$E$31/100","v":{"v":0.0605,"d":"6.05%"}},{"$f":"Actif!$E$32/100","v":{"v":0.47350000000000003,"d":"47.35%"}},{"$f":"Actif!$E$33/100","v":{"v":0.0585,"d":"5.85%"}},{"$f":"Actif!$E$29/100","v":{"v":0.027999999999999997,"d":"2.80%"}}]
[null,"#140",45,2031,"H","A_VIE",{"v":0.44999999999999996,"d":"0.45"},{"v":0.38999999999999996,"d":"0.39"},0.6,0.6,85,0,{"$f":"ROUND(Primes!$Q$4*V8253,0)","v":11},{"$f":"'BP Financier'!$G$33*(('BP Financier'!$C$16+'BP Financier'!$D$16+'BP Financier'!$E$16+'BP Financier'!$F$16+'BP Financier'!$G$16)/('BP Financier'!$C$16+'BP Financier'!$C$19+'BP Financier'!$D$16+'BP Financier'!$D$19+'BP Financier'!$E$16+'BP Financier'!$E$19+'BP Financier'!$F$16+'BP Financier'!$F$19+'BP Financier'!$G$19+'BP Financier'!$G$16))*V8253","v":{"v":570278.6743187835,"d":"570,279"}},{"v":327302.6120010531,"d":"327,303"},{"$f":"'BP Financier'!$G$44*(('BP Financier'!$C$16+'BP Financier'!$D$16+'BP Financier'!$E$16+'BP Financier'!$F$16+'BP Financier'!$G$16)/('BP Financier'!$C$16+'BP Financier'!$C$19+'BP Financier'!$D$16+'BP Financier'!$D$19+'BP Financier'!$E$16+'BP Financier'!$E$19+'BP Financier'!$C$22+'BP Financier'!$D$22+'BP Financier'!$E$22+'BP Financier'!$F$16+'BP Financier'!$F$19+'BP Financier'!$F$22+'BP Financier'!$G$16+'BP Financier'!$G$19+'BP Financier'!$G$22))*$V8253*X8253/(1-$W8253)","v":{"v":41660.880993101695,"d":"41,661"}},{"$f":"'BP Financier'!$G$44*(('BP Financier'!$C$16+'BP Financier'!$D$16+'BP Financier'!$E$16+'BP Financier'!$F$16+'BP Financier'!$G$16)/('BP Financier'!$C$16+'BP Financier'!$C$19+'BP Financier'!$D$16+'BP Financier'!$D$19+'BP Financier'!$E$16+'BP Financier'!$E$19+'BP Financier'!$C$22+'BP Financier'!$D$22+'BP Financier'!$E$22+'BP Financier'!$F$16+'BP Financier'!$F$19+'BP Financier'!$F$22+'BP Financier'!$G$16+'BP Financier'!$G$19+'BP Financier'!$G$22))*$V8253*Y8253/(1-$W8253)","v":{"v":27850.644199808314,"d":"27,851"}},{"$f":"'BP Financier'!$G$44*(('BP Financier'!$C$16+'BP Financier'!$D$16+'BP Financier'!$E$16+'BP Financier'!$F$16+'BP Financier'!$G$16)/('BP Financier'!$C$16+'BP Financier'!$C$19+'BP Financier'!$D$16+'BP Financier'!$D$19+'BP Financier'!$E$16+'BP Financier'!$E$19+'BP Financier'!$C$22+'BP Financier'!$D$22+'BP Financier'!$E$22+'BP Financier'!$F$16+'BP Financier'!$F$19+'BP Financier'!$F$22+'BP Financier'!$G$16+'BP Financier'!$G$19+'BP Financier'!$G$22))*$V8253*Z8253/(1-$W8253)","v":{"v":217971.57072081385,"d":"217,972"}},{"$f":"'BP Financier'!$G$44*(('BP Financier'!$C$16+'BP Financier'!$D$16+'BP Financier'!$E$16+'BP Financier'!$F$16+'BP Financier'!$G$16)/('BP Financier'!$C$16+'BP Financier'!$C$19+'BP Financier'!$D$16+'BP Financier'!$D$19+'BP Financier'!$E$16+'BP Financier'!$E$19+'BP Financier'!$C$22+'BP Financier'!$D$22+'BP Financier'!$E$22+'BP Financier'!$F$16+'BP Financier'!$F$19+'BP Financier'!$F$22+'BP Financier'!$G$16+'BP Financier'!$G$19+'BP Financier'!$G$22))*$V8253*AA8253/(1-$W8253)","v":{"v":26929.96174692209,"d":"26,930"}},{"$f":"'BP Financier'!$G$44*(('BP Financier'!$C$16+'BP Financier'!$D$16+'BP Financier'!$E$16+'BP Financier'!$F$16+'BP Financier'!$G$16)/('BP Financier'!$C$16+'BP Financier'!$C$19+'BP Financier'!$D$16+'BP Financier'!$D$19+'BP Financier'!$E$16+'BP Financier'!$E$19+'BP Financier'!$C$22+'BP Financier'!$D$22+'BP Financier'!$E$22+'BP Financier'!$F$16+'BP Financier'!$F$19+'BP Financier'!$F$22+'BP Financier'!$G$16+'BP Financier'!$G$19+'BP Financier'!$G$22))*$V8253*AB8253/(1-$W8253)","v":{"v":12889.554340407152,"d":"12,890"}},null,{"v":1E-3,"d":"0.10%"},{"$f":"Actif!$E$28/100","v":{"v":0.28900000000000003,"d":"28.90%"}},{"$f":"Actif!$E$30/100","v":{"v":0.09050000000000001,"d":"9.05%"}},{"$f":"Actif!$E$31/100","v":{"v":0.0605,"d":"6.05%"}},{"$f":"Actif!$E$32/100","v":{"v":0.47350000000000003,"d":"47.35%"}},{"$f":"Actif!$E$33/100","v":{"v":0.0585,"d":"5.85%"}},{"$f":"Actif!$E$29/100","v":{"v":0.027999999999999997,"d":"2.80%"}}]
[null,"#141",46,2026,"H","A_VIE",{"v":0.44999999999999996,"d":"0.45"},{"v":0.38999999999999996,"d":"0.39"},0.6,0.6,85,0,{"$f":"ROUND(Primes!$Q$4*V8254,0)","v":11},{"$f":"'BP Financier'!$G$33*(('BP Financier'!$C$16+'BP Financier'!$D$16+'BP Financier'!$E$16+'BP Financier'!$F$16+'BP Financier'!$G$16)/('BP Financier'!$C$16+'BP Financier'!$C$19+'BP Financier'!$D$16+'BP Financier'!$D$19+'BP Financier'!$E$16+'BP Financier'!$E$19+'BP Financier'!$F$16+'BP Financier'!$F$19+'BP Financier'!$G$19+'BP Financier'!$G$16))*V8254","v":{"v":570278.6743187835,"d":"570,279"}},{"v":327302.6120010531,"d":"327,303"},{"$f":"'BP Financier'!$G$44*(('BP Financier'!$C$16+'BP Financier'!$D$16+'BP Financier'!$E$16+'BP Financier'!$F$16+'BP Financier'!$G$16)/('BP Financier'!$C$16+'BP Financier'!$C$19+'BP Financier'!$D$16+'BP Financier'!$D$19+'BP Financier'!$E$16+'BP Financier'!$E$19+'BP Financier'!$C$22+'BP Financier'!$D$22+'BP Financier'!$E$22+'BP Financier'!$F$16+'BP Financier'!$F$19+'BP Financier'!$F$22+'BP Financier'!$G$16+'BP Financier'!$G$19+'BP Financier'!$G$22))*$V8254*X8254/(1-$W8254)","v":{"v":41660.880993101695,"d":"41,661"}},{"$f":"'BP Financier'!$G$44*(('BP Financier'!$C$16+'BP Financier'!$D$16+'BP Financier'!$E$16+'BP Financier'!$F$16+'BP Financier'!$G$16)/('BP Financier'!$C$16+'BP Financier'!$C$19+'BP Financier'!$D$16+'BP Financier'!$D$19+'BP Financier'!$E$16+'BP Financier'!$E$19+'BP Financier'!$C$22+'BP Financier'!$D$22+'BP Financier'!$E$22+'BP Financier'!$F$16+'BP Financier'!$F$19+'BP Financier'!$F$22+'BP Financier'!$G$16+'BP Financier'!$G$19+'BP Financier'!$G$22))*$V8254*Y8254/(1-$W8254)","v":{"v":27850.644199808314,"d":"27,851"}},{"$f":"'BP Financier'!$G$44*(('BP Financier'!$C$16+'BP Financier'!$D$16+'BP Financier'!$E$16+'BP Financier'!$F$16+'BP Financier'!$G$16)/('BP Financier'!$C$16+'BP Financier'!$C$19+'BP Financier'!$D$16+'BP Financier'!$D$19+'BP Financier'!$E$16+'BP Financier'!$E$19+'BP Financier'!$C$22+'BP Financier'!$D$22+'BP Financier'!$E$22+'BP Financier'!$F$16+'BP Financier'!$F$19+'BP Financier'!$F$22+'BP Financier'!$G$16+'BP Financier'!$G$19+'BP Financier'!$G$22))*$V8254*Z8254/(1-$W8254)","v":{"v":217971.57072081385,"d":"217,972"}},{"$f":"'BP Financier'!$G$44*(('BP Financier'!$C$16+'BP Financier'!$D$16+'BP Financier'!$E$16+'BP Financier'!$F$16+'BP Financier'!$G$16)/('BP Financier'!$C$16+'BP Financier'!$C$19+'BP Financier'!$D$16+'BP Financier'!$D$19+'BP Financier'!$E$16+'BP Financier'!$E$19+'BP Financier'!$C$22+'BP Financier'!$D$22+'BP Financier'!$E$22+'BP Financier'!$F$16+'BP Financier'!$F$19+'BP Financier'!$F$22+'BP Financier'!$G$16+'BP Financier'!$G$19+'BP Financier'!$G$22))*$V8254*AA8254/(1-$W8254)","v":{"v":26929.96174692209,"d":"26,930"}},{"$f":"'BP Financier'!$G$44*(('BP Financier'!$C$16+'BP Financier'!$D$16+'BP Financier'!$E$16+'BP Financier'!$F$16+'BP Financier'!$G$16)/('BP Financier'!$C$16+'BP Financier'!$C$19+'BP Financier'!$D$16+'BP Financier'!$D$19+'BP Financier'!$E$16+'BP Financier'!$E$19+'BP Financier'!$C$22+'BP Financier'!$D$22+'BP Financier'!$E$22+'BP Financier'!$F$16+'BP Financier'!$F$19+'BP Financier'!$F$22+'BP Financier'!$G$16+'BP Financier'!$G$19+'BP Financier'!$G$22))*$V8254*AB8254/(1-$W8254)","v":{"v":12889.554340407152,"d":"12,890"}},null,{"v":1E-3,"d":"0.10%"},{"$f":"Actif!$E$28/100","v":{"v":0.28900000000000003,"d":"28.90%"}},{"$f":"Actif!$E$30/100","v":{"v":0.09050000000000001,"d":"9.05%"}},{"$f":"Actif!$E$31/100","v":{"v":0.0605,"d":"6.05%"}},{"$f":"Actif!$E$32/100","v":{"v":0.47350000000000003,"d":"47.35%"}},{"$f":"Actif!$E$33/100","v":{"v":0.0585,"d":"5.85%"}},{"$f":"Actif!$E$29/100","v":{"v":0.027999999999999997,"d":"2.80%"}}]
[null,"#142",46,2028,"H","A_VIE",{"v":0.44999999999999996,"d":"0.45"},{"v":0.38999999999999996,"d":"0.39"},0.6,0.6,85,0,{"$f":"ROUND(Primes!$Q$4*V8255,0)","v":11},{"$f":"'BP Financier'!$G$33*(('BP Financier'!$C$16+'BP Financier'!$D$16+'BP Financier'!$E$16+'BP Financier'!$F$16+'BP Financier'!$G$16)/('BP Financier'!$C$16+'BP Financier'!$C$19+'BP Financier'!$D$16+'BP Financier'!$D$19+'BP Financier'!$E$16+'BP Financier'!$E$19+'BP Financier'!$F$16+'BP Financier'!$F$19+'BP Financier'!$G$19+'BP Financier'!$G$16))*V8255","v":{"v":570278.6743187835,"d":"570,279"}},{"v":327302.6120010531,"d":"327,303"},{"$f":"'BP Financier'!$G$44*(('BP Financier'!$C$16+'BP Financier'!$D$16+'BP Financier'!$E$16+'BP Financier'!$F$16+'BP Financier'!$G$16)/('BP Financier'!$C$16+'BP Financier'!$C$19+'BP Financier'!$D$16+'BP Financier'!$D$19+'BP Financier'!$E$16+'BP Financier'!$E$19+'BP Financier'!$C$22+'BP Financier'!$D$22+'BP Financier'!$E$22+'BP Financier'!$F$16+'BP Financier'!$F$19+'BP Financier'!$F$22+'BP Financier'!$G$16+'BP Financier'!$G$19+'BP Financier'!$G$22))*$V8255*X8255/(1-$W8255)","v":{"v":41660.880993101695,"d":"41,661"}},{"$f":"'BP Financier'!$G$44*(('BP Financier'!$C$16+'BP Financier'!$D$16+'BP Financier'!$E$16+'BP Financier'!$F$16+'BP Financier'!$G$16)/('BP Financier'!$C$16+'BP Financier'!$C$19+'BP Financier'!$D$16+'BP Financier'!$D$19+'BP Financier'!$E$16+'BP Financier'!$E$19+'BP Financier'!$C$22+'BP Financier'!$D$22+'BP Financier'!$E$22+'BP Financier'!$F$16+'BP Financier'!$F$19+'BP Financier'!$F$22+'BP Financier'!$G$16+'BP Financier'!$G$19+'BP Financier'!$G$22))*$V8255*Y8255/(1-$W8255)","v":{"v":27850.644199808314,"d":"27,851"}},{"$f":"'BP Financier'!$G$44*(('BP Financier'!$C$16+'BP Financier'!$D$16+'BP Financier'!$E$16+'BP Financier'!$F$16+'BP Financier'!$G$16)/('BP Financier'!$C$16+'BP Financier'!$C$19+'BP Financier'!$D$16+'BP Financier'!$D$19+'BP Financier'!$E$16+'BP Financier'!$E$19+'BP Financier'!$C$22+'BP Financier'!$D$22+'BP Financier'!$E$22+'BP Financier'!$F$16+'BP Financier'!$F$19+'BP Financier'!$F$22+'BP Financier'!$G$16+'BP Financier'!$G$19+'BP Financier'!$G$22))*$V8255*Z8255/(1-$W8255)","v":{"v":217971.57072081385,"d":"217,972"}},{"$f":"'BP Financier'!$G$44*(('BP Financier'!$C$16+'BP Financier'!$D$16+'BP Financier'!$E$16+'BP Financier'!$F$16+'BP Financier'!$G$16)/('BP Financier'!$C$16+'BP Financier'!$C$19+'BP Financier'!$D$16+'BP Financier'!$D$19+'BP Financier'!$E$16+'BP Financier'!$E$19+'BP Financier'!$C$22+'BP Financier'!$D$22+'BP Financier'!$E$22+'BP Financier'!$F$16+'BP Financier'!$F$19+'BP Financier'!$F$22+'BP Financier'!$G$16+'BP Financier'!$G$19+'BP Financier'!$G$22))*$V8255*AA8255/(1-$W8255)","v":{"v":26929.96174692209,"d":"26,930"}},{"$f":"'BP Financier'!$G$44*(('BP Financier'!$C$16+'BP Financier'!$D$16+'BP Financier'!$E$16+'BP Financier'!$F$16+'BP Financier'!$G$16)/('BP Financier'!$C$16+'BP Financier'!$C$19+'BP Financier'!$D$16+'BP Financier'!$D$19+'BP Financier'!$E$16+'BP Financier'!$E$19+'BP Financier'!$C$22+'BP Financier'!$D$22+'BP Financier'!$E$22+'BP Financier'!$F$16+'BP Financier'!$F$19+'BP Financier'!$F$22+'BP Financier'!$G$16+'BP Financier'!$G$19+'BP Financier'!$G$22))*$V8255*AB8255/(1-$W8255)","v":{"v":12889.554340407152,"d":"12,890"}},null,{"v":1E-3,"d":"0.10%"},{"$f":"Actif!$E$28/100","v":{"v":0.28900000000000003,"d":"28.90%"}},{"$f":"Actif!$E$30/100","v":{"v":0.09050000000000001,"d":"9.05%"}},{"$f":"Actif!$E$31/100","v":{"v":0.0605,"d":"6.05%"}},{"$f":"Actif!$E$32/100","v":{"v":0.47350000000000003,"d":"47.35%"}},{"$f":"Actif!$E$33/100","v":{"v":0.0585,"d":"5.85%"}},{"$f":"Actif!$E$29/100","v":{"v":0.027999999999999997,"d":"2.80%"}}]
[null,"#143",46,2029,"H","A_VIE",{"v":0.44999999999999996,"d":"0.45"},{"v":0.38999999999999996,"d":"0.39"},0.6,0.6,85,0,{"$f":"ROUND(Primes!$Q$4*V8256,0)","v":11},{"$f":"'BP Financier'!$G$33*(('BP Financier'!$C$16+'BP Financier'!$D$16+'BP Financier'!$E$16+'BP Financier'!$F$16+'BP Financier'!$G$16)/('BP Financier'!$C$16+'BP Financier'!$C$19+'BP Financier'!$D$16+'BP Financier'!$D$19+'BP Financier'!$E$16+'BP Financier'!$E$19+'BP Financier'!$F$16+'BP Financier'!$F$19+'BP Financier'!$G$19+'BP Financier'!$G$16))*V8256","v":{"v":570278.6743187835,"d":"570,279"}},{"v":327302.6120010531,"d":"327,303"},{"$f":"'BP Financier'!$G$44*(('BP Financier'!$C$16+'BP Financier'!$D$16+'BP Financier'!$E$16+'BP Financier'!$F$16+'BP Financier'!$G$16)/('BP Financier'!$C$16+'BP Financier'!$C$19+'BP Financier'!$D$16+'BP Financier'!$D$19+'BP Financier'!$E$16+'BP Financier'!$E$19+'BP Financier'!$C$22+'BP Financier'!$D$22+'BP Financier'!$E$22+'BP Financier'!$F$16+'BP Financier'!$F$19+'BP Financier'!$F$22+'BP Financier'!$G$16+'BP Financier'!$G$19+'BP Financier'!$G$22))*$V8256*X8256/(1-$W8256)","v":{"v":41660.880993101695,"d":"41,661"}},{"$f":"'BP Financier'!$G$44*(('BP Financier'!$C$16+'BP Financier'!$D$16+'BP Financier'!$E$16+'BP Financier'!$F$16+'BP Financier'!$G$16)/('BP Financier'!$C$16+'BP Financier'!$C$19+'BP Financier'!$D$16+'BP Financier'!$D$19+'BP Financier'!$E$16+'BP Financier'!$E$19+'BP Financier'!$C$22+'BP Financier'!$D$22+'BP Financier'!$E$22+'BP Financier'!$F$16+'BP Financier'!$F$19+'BP Financier'!$F$22+'BP Financier'!$G$16+'BP Financier'!$G$19+'BP Financier'!$G$22))*$V8256*Y8256/(1-$W8256)","v":{"v":27850.644199808314,"d":"27,851"}},{"$f":"'BP Financier'!$G$44*(('BP Financier'!$C$16+'BP Financier'!$D$16+'BP Financier'!$E$16+'BP Financier'!$F$16+'BP Financier'!$G$16)/('BP Financier'!$C$16+'BP Financier'!$C$19+'BP Financier'!$D$16+'BP Financier'!$D$19+'BP Financier'!$E$16+'BP Financier'!$E$19+'BP Financier'!$C$22+'BP Financier'!$D$22+'BP Financier'!$E$22+'BP Financier'!$F$16+'BP Financier'!$F$19+'BP Financier'!$F$22+'BP Financier'!$G$16+'BP Financier'!$G$19+'BP Financier'!$G$22))*$V8256*Z8256/(1-$W8256)","v":{"v":217971.57072081385,"d":"217,972"}},{"$f":"'BP Financier'!$G$44*(('BP Financier'!$C$16+'BP Financier'!$D$16+'BP Financier'!$E$16+'BP Financier'!$F$16+'BP Financier'!$G$16)/('BP Financier'!$C$16+'BP Financier'!$C$19+'BP Financier'!$D$16+'BP Financier'!$D$19+'BP Financier'!$E$16+'BP Financier'!$E$19+'BP Financier'!$C$22+'BP Financier'!$D$22+'BP Financier'!$E$22+'BP Financier'!$F$16+'BP Financier'!$F$19+'BP Financier'!$F$22+'BP Financier'!$G$16+'BP Financier'!$G$19+'BP Financier'!$G$22))*$V8256*AA8256/(1-$W8256)","v":{"v":26929.96174692209,"d":"26,930"}},{"$f":"'BP Financier'!$G$44*(('BP Financier'!$C$16+'BP Financier'!$D$16+'BP Financier'!$E$16+'BP Financier'!$F$16+'BP Financier'!$G$16)/('BP Financier'!$C$16+'BP Financier'!$C$19+'BP Financier'!$D$16+'BP Financier'!$D$19+'BP Financier'!$E$16+'BP Financier'!$E$19+'BP Financier'!$C$22+'BP Financier'!$D$22+'BP Financier'!$E$22+'BP Financier'!$F$16+'BP Financier'!$F$19+'BP Financier'!$F$22+'BP Financier'!$G$16+'BP Financier'!$G$19+'BP Financier'!$G$22))*$V8256*AB8256/(1-$W8256)","v":{"v":12889.554340407152,"d":"12,890"}},null,{"v":1E-3,"d":"0.10%"},{"$f":"Actif!$E$28/100","v":{"v":0.28900000000000003,"d":"28.90%"}},{"$f":"Actif!$E$30/100","v":{"v":0.09050000000000001,"d":"9.05%"}},{"$f":"Actif!$E$31/100","v":{"v":0.0605,"d":"6.05%"}},{"$f":"Actif!$E$32/100","v":{"v":0.47350000000000003,"d":"47.35%"}},{"$f":"Actif!$E$33/100","v":{"v":0.0585,"d":"5.85%"}},{"$f":"Actif!$E$29/100","v":{"v":0.027999999999999997,"d":"2.80%"}}]
[null,"#144",46,2030,"H","A_VIE",{"v":0.44999999999999996,"d":"0.45"},{"v":0.38999999999999996,"d":"0.39"},0.6,0.6,85,0,{"$f":"ROUND(Primes!$Q$4*V8257,0)","v":11},{"$f":"'BP Financier'!$G$33*(('BP Financier'!$C$16+'BP Financier'!$D$16+'BP Financier'!$E$16+'BP Financier'!$F$16+'BP Financier'!$G$16)/('BP Financier'!$C$16+'BP Financier'!$C$19+'BP Financier'!$D$16+'BP Financier'!$D$19+'BP Financier'!$E$16+'BP Financier'!$E$19+'BP Financier'!$F$16+'BP Financier'!$F$19+'BP Financier'!$G$19+'BP Financier'!$G$16))*V8257","v":{"v":570278.6743187835,"d":"570,279"}},{"v":327302.6120010531,"d":"327,303"},{"$f":"'BP Financier'!$G$44*(('BP Financier'!$C$16+'BP Financier'!$D$16+'BP Financier'!$E$16+'BP Financier'!$F$16+'BP Financier'!$G$16)/('BP Financier'!$C$16+'BP Financier'!$C$19+'BP Financier'!$D$16+'BP Financier'!$D$19+'BP Financier'!$E$16+'BP Financier'!$E$19+'BP Financier'!$C$22+'BP Financier'!$D$22+'BP Financier'!$E$22+'BP Financier'!$F$16+'BP Financier'!$F$19+'BP Financier'!$F$22+'BP Financier'!$G$16+'BP Financier'!$G$19+'BP Financier'!$G$22))*$V8257*X8257/(1-$W8257)","v":{"v":41660.880993101695,"d":"41,661"}},{"$f":"'BP Financier'!$G$44*(('BP Financier'!$C$16+'BP Financier'!$D$16+'BP Financier'!$E$16+'BP Financier'!$F$16+'BP Financier'!$G$16)/('BP Financier'!$C$16+'BP Financier'!$C$19+'BP Financier'!$D$16+'BP Financier'!$D$19+'BP Financier'!$E$16+'BP Financier'!$E$19+'BP Financier'!$C$22+'BP Financier'!$D$22+'BP Financier'!$E$22+'BP Financier'!$F$16+'BP Financier'!$F$19+'BP Financier'!$F$22+'BP Financier'!$G$16+'BP Financier'!$G$19+'BP Financier'!$G$22))*$V8257*Y8257/(1-$W8257)","v":{"v":27850.644199808314,"d":"27,851"}},{"$f":"'BP Financier'!$G$44*(('BP Financier'!$C$16+'BP Financier'!$D$16+'BP Financier'!$E$16+'BP Financier'!$F$16+'BP Financier'!$G$16)/('BP Financier'!$C$16+'BP Financier'!$C$19+'BP Financier'!$D$16+'BP Financier'!$D$19+'BP Financier'!$E$16+'BP Financier'!$E$19+'BP Financier'!$C$22+'BP Financier'!$D$22+'BP Financier'!$E$22+'BP Financier'!$F$16+'BP Financier'!$F$19+'BP Financier'!$F$22+'BP Financier'!$G$16+'BP Financier'!$G$19+'BP Financier'!$G$22))*$V8257*Z8257/(1-$W8257)","v":{"v":217971.57072081385,"d":"217,972"}},{"$f":"'BP Financier'!$G$44*(('BP Financier'!$C$16+'BP Financier'!$D$16+'BP Financier'!$E$16+'BP Financier'!$F$16+'BP Financier'!$G$16)/('BP Financier'!$C$16+'BP Financier'!$C$19+'BP Financier'!$D$16+'BP Financier'!$D$19+'BP Financier'!$E$16+'BP Financier'!$E$19+'BP Financier'!$C$22+'BP Financier'!$D$22+'BP Financier'!$E$22+'BP Financier'!$F$16+'BP Financier'!$F$19+'BP Financier'!$F$22+'BP Financier'!$G$16+'BP Financier'!$G$19+'BP Financier'!$G$22))*$V8257*AA8257/(1-$W8257)","v":{"v":26929.96174692209,"d":"26,930"}},{"$f":"'BP Financier'!$G$44*(('BP Financier'!$C$16+'BP Financier'!$D$16+'BP Financier'!$E$16+'BP Financier'!$F$16+'BP Financier'!$G$16)/('BP Financier'!$C$16+'BP Financier'!$C$19+'BP Financier'!$D$16+'BP Financier'!$D$19+'BP Financier'!$E$16+'BP Financier'!$E$19+'BP Financier'!$C$22+'BP Financier'!$D$22+'BP Financier'!$E$22+'BP Financier'!$F$16+'BP Financier'!$F$19+'BP Financier'!$F$22+'BP Financier'!$G$16+'BP Financier'!$G$19+'BP Financier'!$G$22))*$V8257*AB8257/(1-$W8257)","v":{"v":12889.554340407152,"d":"12,890"}},null,{"v":1E-3,"d":"0.10%"},{"$f":"Actif!$E$28/100","v":{"v":0.28900000000000003,"d":"28.90%"}},{"$f":"Actif!$E$30/100","v":{"v":0.09050000000000001,"d":"9.05%"}},{"$f":"Actif!$E$31/100","v":{"v":0.0605,"d":"6.05%"}},{"$f":"Actif!$E$32/100","v":{"v":0.47350000000000003,"d":"47.35%"}},{"$f":"Actif!$E$33/100","v":{"v":0.0585,"d":"5.85%"}},{"$f":"Actif!$E$29/100","v":{"v":0.027999999999999997,"d":"2.80%"}}]
[null,"#145",46,2031,"H","A_VIE",{"v":0.44999999999999996,"d":"0.45"},{"v":0.38999999999999996,"d":"0.39"},0.6,0.6,85,0,{"$f":"ROUND(Primes!$Q$4*V8258,0)","v":11},{"$f":"'BP Financier'!$G$33*(('BP Financier'!$C$16+'BP Financier'!$D$16+'BP Financier'!$E$16+'BP Financier'!$F$16+'BP Financier'!$G$16)/('BP Financier'!$C$16+'BP Financier'!$C$19+'BP Financier'!$D$16+'BP Financier'!$D$19+'BP Financier'!$E$16+'BP Financier'!$E$19+'BP Financier'!$F$16+'BP Financier'!$F$19+'BP Financier'!$G$19+'BP Financier'!$G$16))*V8258","v":{"v":570278.6743187835,"d":"570,279"}},{"v":327302.6120010531,"d":"327,303"},{"$f":"'BP Financier'!$G$44*(('BP Financier'!$C$16+'BP Financier'!$D$16+'BP Financier'!$E$16+'BP Financier'!$F$16+'BP Financier'!$G$16)/('BP Financier'!$C$16+'BP Financier'!$C$19+'BP Financier'!$D$16+'BP Financier'!$D$19+'BP Financier'!$E$16+'BP Financier'!$E$19+'BP Financier'!$C$22+'BP Financier'!$D$22+'BP Financier'!$E$22+'BP Financier'!$F$16+'BP Financier'!$F$19+'BP Financier'!$F$22+'BP Financier'!$G$16+'BP Financier'!$G$19+'BP Financier'!$G$22))*$V8258*X8258/(1-$W8258)","v":{"v":41660.880993101695,"d":"41,661"}},{"$f":"'BP Financier'!$G$44*(('BP Financier'!$C$16+'BP Financier'!$D$16+'BP Financier'!$E$16+'BP Financier'!$F$16+'BP Financier'!$G$16)/('BP Financier'!$C$16+'BP Financier'!$C$19+'BP Financier'!$D$16+'BP Financier'!$D$19+'BP Financier'!$E$16+'BP Financier'!$E$19+'BP Financier'!$C$22+'BP Financier'!$D$22+'BP Financier'!$E$22+'BP Financier'!$F$16+'BP Financier'!$F$19+'BP Financier'!$F$22+'BP Financier'!$G$16+'BP Financier'!$G$19+'BP Financier'!$G$22))*$V8258*Y8258/(1-$W8258)","v":{"v":27850.644199808314,"d":"27,851"}},{"$f":"'BP Financier'!$G$44*(('BP Financier'!$C$16+'BP Financier'!$D$16+'BP Financier'!$E$16+'BP Financier'!$F$16+'BP Financier'!$G$16)/('BP Financier'!$C$16+'BP Financier'!$C$19+'BP Financier'!$D$16+'BP Financier'!$D$19+'BP Financier'!$E$16+'BP Financier'!$E$19+'BP Financier'!$C$22+'BP Financier'!$D$22+'BP Financier'!$E$22+'BP Financier'!$F$16+'BP Financier'!$F$19+'BP Financier'!$F$22+'BP Financier'!$G$16+'BP Financier'!$G$19+'BP Financier'!$G$22))*$V8258*Z8258/(1-$W8258)","v":{"v":217971.57072081385,"d":"217,972"}},{"$f":"'BP Financier'!$G$44*(('BP Financier'!$C$16+'BP Financier'!$D$16+'BP Financier'!$E$16+'BP Financier'!$F$16+'BP Financier'!$G$16)/('BP Financier'!$C$16+'BP Financier'!$C$19+'BP Financier'!$D$16+'BP Financier'!$D$19+'BP Financier'!$E$16+'BP Financier'!$E$19+'BP Financier'!$C$22+'BP Financier'!$D$22+'BP Financier'!$E$22+'BP Financier'!$F$16+'BP Financier'!$F$19+'BP Financier'!$F$22+'BP Financier'!$G$16+'BP Financier'!$G$19+'BP Financier'!$G$22))*$V8258*AA8258/(1-$W8258)","v":{"v":26929.96174692209,"d":"26,930"}},{"$f":"'BP Financier'!$G$44*(('BP Financier'!$C$16+'BP Financier'!$D$16+'BP Financier'!$E$16+'BP Financier'!$F$16+'BP Financier'!$G$16)/('BP Financier'!$C$16+'BP Financier'!$C$19+'BP Financier'!$D$16+'BP Financier'!$D$19+'BP Financier'!$E$16+'BP Financier'!$E$19+'BP Financier'!$C$22+'BP Financier'!$D$22+'BP Financier'!$E$22+'BP Financier'!$F$16+'BP Financier'!$F$19+'BP Financier'!$F$22+'BP Financier'!$G$16+'BP Financier'!$G$19+'BP Financier'!$G$22))*$V8258*AB8258/(1-$W8258)","v":{"v":12889.554340407152,"d":"12,890"}},null,{"v":1E-3,"d":"0.10%"},{"$f":"Actif!$E$28/100","v":{"v":0.28900000000000003,"d":"28.90%"}},{"$f":"Actif!$E$30/100","v":{"v":0.09050000000000001,"d":"9.05%"}},{"$f":"Actif!$E$31/100","v":{"v":0.0605,"d":"6.05%"}},{"$f":"Actif!$E$32/100","v":{"v":0.47350000000000003,"d":"47.35%"}},{"$f":"Actif!$E$33/100","v":{"v":0.0585,"d":"5.85%"}},{"$f":"Actif!$E$29/100","v":{"v":0.027999999999999997,"d":"2.80%"}}]
[null,"#146",47,2026,"F","A_VIE",{"v":0.44999999999999996,"d":"0.45"},{"v":0.38999999999999996,"d":"0.39"},0.6,0.6,85,0,{"$f":"ROUND(Primes!$Q$4*V8259,0)","v":11},{"$f":"'BP Financier'!$G$33*(('BP Financier'!$C$16+'BP Financier'!$D$16+'BP Financier'!$E$16+'BP Financier'!$F$16+'BP Financier'!$G$16)/('BP Financier'!$C$16+'BP Financier'!$C$19+'BP Financier'!$D$16+'BP Financier'!$D$19+'BP Financier'!$E$16+'BP Financier'!$E$19+'BP Financier'!$F$16+'BP Financier'!$F$19+'BP Financier'!$G$19+'BP Financier'!$G$16))*V8259","v":{"v":570278.6743187835,"d":"570,279"}},{"v":327302.6120010531,"d":"327,303"},{"$f":"'BP Financier'!$G$44*(('BP Financier'!$C$16+'BP Financier'!$D$16+'BP Financier'!$E$16+'BP Financier'!$F$16+'BP Financier'!$G$16)/('BP Financier'!$C$16+'BP Financier'!$C$19+'BP Financier'!$D$16+'BP Financier'!$D$19+'BP Financier'!$E$16+'BP Financier'!$E$19+'BP Financier'!$C$22+'BP Financier'!$D$22+'BP Financier'!$E$22+'BP Financier'!$F$16+'BP Financier'!$F$19+'BP Financier'!$F$22+'BP Financier'!$G$16+'BP Financier'!$G$19+'BP Financier'!$G$22))*$V8259*X8259/(1-$W8259)","v":{"v":41660.880993101695,"d":"41,661"}},{"$f":"'BP Financier'!$G$44*(('BP Financier'!$C$16+'BP Financier'!$D$16+'BP Financier'!$E$16+'BP Financier'!$F$16+'BP Financier'!$G$16)/('BP Financier'!$C$16+'BP Financier'!$C$19+'BP Financier'!$D$16+'BP Financier'!$D$19+'BP Financier'!$E$16+'BP Financier'!$E$19+'BP Financier'!$C$22+'BP Financier'!$D$22+'BP Financier'!$E$22+'BP Financier'!$F$16+'BP Financier'!$F$19+'BP Financier'!$F$22+'BP Financier'!$G$16+'BP Financier'!$G$19+'BP Financier'!$G$22))*$V8259*Y8259/(1-$W8259)","v":{"v":27850.644199808314,"d":"27,851"}},{"$f":"'BP Financier'!$G$44*(('BP Financier'!$C$16+'BP Financier'!$D$16+'BP Financier'!$E$16+'BP Financier'!$F$16+'BP Financier'!$G$16)/('BP Financier'!$C$16+'BP Financier'!$C$19+'BP Financier'!$D$16+'BP Financier'!$D$19+'BP Financier'!$E$16+'BP Financier'!$E$19+'BP Financier'!$C$22+'BP Financier'!$D$22+'BP Financier'!$E$22+'BP Financier'!$F$16+'BP Financier'!$F$19+'BP Financier'!$F$22+'BP Financier'!$G$16+'BP Financier'!$G$19+'BP Financier'!$G$22))*$V8259*Z8259/(1-$W8259)","v":{"v":217971.57072081385,"d":"217,972"}},{"$f":"'BP Financier'!$G$44*(('BP Financier'!$C$16+'BP Financier'!$D$16+'BP Financier'!$E$16+'BP Financier'!$F$16+'BP Financier'!$G$16)/('BP Financier'!$C$16+'BP Financier'!$C$19+'BP Financier'!$D$16+'BP Financier'!$D$19+'BP Financier'!$E$16+'BP Financier'!$E$19+'BP Financier'!$C$22+'BP Financier'!$D$22+'BP Financier'!$E$22+'BP Financier'!$F$16+'BP Financier'!$F$19+'BP Financier'!$F$22+'BP Financier'!$G$16+'BP Financier'!$G$19+'BP Financier'!$G$22))*$V8259*AA8259/(1-$W8259)","v":{"v":26929.96174692209,"d":"26,930"}},{"$f":"'BP Financier'!$G$44*(('BP Financier'!$C$16+'BP Financier'!$D$16+'BP Financier'!$E$16+'BP Financier'!$F$16+'BP Financier'!$G$16)/('BP Financier'!$C$16+'BP Financier'!$C$19+'BP Financier'!$D$16+'BP Financier'!$D$19+'BP Financier'!$E$16+'BP Financier'!$E$19+'BP Financier'!$C$22+'BP Financier'!$D$22+'BP Financier'!$E$22+'BP Financier'!$F$16+'BP Financier'!$F$19+'BP Financier'!$F$22+'BP Financier'!$G$16+'BP Financier'!$G$19+'BP Financier'!$G$22))*$V8259*AB8259/(1-$W8259)","v":{"v":12889.554340407152,"d":"12,890"}},null,{"v":1E-3,"d":"0.10%"},{"$f":"Actif!$E$28/100","v":{"v":0.28900000000000003,"d":"28.90%"}},{"$f":"Actif!$E$30/100","v":{"v":0.09050000000000001,"d":"9.05%"}},{"$f":"Actif!$E$31/100","v":{"v":0.0605,"d":"6.05%"}},{"$f":"Actif!$E$32/100","v":{"v":0.47350000000000003,"d":"47.35%"}},{"$f":"Actif!$E$33/100","v":{"v":0.0585,"d":"5.85%"}},{"$f":"Actif!$E$29/100","v":{"v":0.027999999999999997,"d":"2.80%"}}]
[null,"#147",47,2028,"F","A_VIE",{"v":0.44999999999999996,"d":"0.45"},{"v":0.38999999999999996,"d":"0.39"},0.6,0.6,85,0,{"$f":"ROUND(Primes!$Q$4*V8260,0)","v":11},{"$f":"'BP Financier'!$G$33*(('BP Financier'!$C$16+'BP Financier'!$D$16+'BP Financier'!$E$16+'BP Financier'!$F$16+'BP Financier'!$G$16)/('BP Financier'!$C$16+'BP Financier'!$C$19+'BP Financier'!$D$16+'BP Financier'!$D$19+'BP Financier'!$E$16+'BP Financier'!$E$19+'BP Financier'!$F$16+'BP Financier'!$F$19+'BP Financier'!$G$19+'BP Financier'!$G$16))*V8260","v":{"v":570278.6743187835,"d":"570,279"}},{"v":327302.6120010531,"d":"327,303"},{"$f":"'BP Financier'!$G$44*(('BP Financier'!$C$16+'BP Financier'!$D$16+'BP Financier'!$E$16+'BP Financier'!$F$16+'BP Financier'!$G$16)/('BP Financier'!$C$16+'BP Financier'!$C$19+'BP Financier'!$D$16+'BP Financier'!$D$19+'BP Financier'!$E$16+'BP Financier'!$E$19+'BP Financier'!$C$22+'BP Financier'!$D$22+'BP Financier'!$E$22+'BP Financier'!$F$16+'BP Financier'!$F$19+'BP Financier'!$F$22+'BP Financier'!$G$16+'BP Financier'!$G$19+'BP Financier'!$G$22))*$V8260*X8260/(1-$W8260)","v":{"v":41660.880993101695,"d":"41,661"}},{"$f":"'BP Financier'!$G$44*(('BP Financier'!$C$16+'BP Financier'!$D$16+'BP Financier'!$E$16+'BP Financier'!$F$16+'BP Financier'!$G$16)/('BP Financier'!$C$16+'BP Financier'!$C$19+'BP Financier'!$D$16+'BP Financier'!$D$19+'BP Financier'!$E$16+'BP Financier'!$E$19+'BP Financier'!$C$22+'BP Financier'!$D$22+'BP Financier'!$E$22+'BP Financier'!$F$16+'BP Financier'!$F$19+'BP Financier'!$F$22+'BP Financier'!$G$16+'BP Financier'!$G$19+'BP Financier'!$G$22))*$V8260*Y8260/(1-$W8260)","v":{"v":27850.644199808314,"d":"27,851"}},{"$f":"'BP Financier'!$G$44*(('BP Financier'!$C$16+'BP Financier'!$D$16+'BP Financier'!$E$16+'BP Financier'!$F$16+'BP Financier'!$G$16)/('BP Financier'!$C$16+'BP Financier'!$C$19+'BP Financier'!$D$16+'BP Financier'!$D$19+'BP Financier'!$E$16+'BP Financier'!$E$19+'BP Financier'!$C$22+'BP Financier'!$D$22+'BP Financier'!$E$22+'BP Financier'!$F$16+'BP Financier'!$F$19+'BP Financier'!$F$22+'BP Financier'!$G$16+'BP Financier'!$G$19+'BP Financier'!$G$22))*$V8260*Z8260/(1-$W8260)","v":{"v":217971.57072081385,"d":"217,972"}},{"$f":"'BP Financier'!$G$44*(('BP Financier'!$C$16+'BP Financier'!$D$16+'BP Financier'!$E$16+'BP Financier'!$F$16+'BP Financier'!$G$16)/('BP Financier'!$C$16+'BP Financier'!$C$19+'BP Financier'!$D$16+'BP Financier'!$D$19+'BP Financier'!$E$16+'BP Financier'!$E$19+'BP Financier'!$C$22+'BP Financier'!$D$22+'BP Financier'!$E$22+'BP Financier'!$F$16+'BP Financier'!$F$19+'BP Financier'!$F$22+'BP Financier'!$G$16+'BP Financier'!$G$19+'BP Financier'!$G$22))*$V8260*AA8260/(1-$W8260)","v":{"v":26929.96174692209,"d":"26,930"}},{"$f":"'BP Financier'!$G$44*(('BP Financier'!$C$16+'BP Financier'!$D$16+'BP Financier'!$E$16+'BP Financier'!$F$16+'BP Financier'!$G$16)/('BP Financier'!$C$16+'BP Financier'!$C$19+'BP Financier'!$D$16+'BP Financier'!$D$19+'BP Financier'!$E$16+'BP Financier'!$E$19+'BP Financier'!$C$22+'BP Financier'!$D$22+'BP Financier'!$E$22+'BP Financier'!$F$16+'BP Financier'!$F$19+'BP Financier'!$F$22+'BP Financier'!$G$16+'BP Financier'!$G$19+'BP Financier'!$G$22))*$V8260*AB8260/(1-$W8260)","v":{"v":12889.554340407152,"d":"12,890"}},null,{"v":1E-3,"d":"0.10%"},{"$f":"Actif!$E$28/100","v":{"v":0.28900000000000003,"d":"28.90%"}},{"$f":"Actif!$E$30/100","v":{"v":0.09050000000000001,"d":"9.05%"}},{"$f":"Actif!$E$31/100","v":{"v":0.0605,"d":"6.05%"}},{"$f":"Actif!$E$32/100","v":{"v":0.47350000000000003,"d":"47.35%"}},{"$f":"Actif!$E$33/100","v":{"v":0.0585,"d":"5.85%"}},{"$f":"Actif!$E$29/100","v":{"v":0.027999999999999997,"d":"2.80%"}}]
[null,"#148",47,2029,"F","A_VIE",{"v":0.44999999999999996,"d":"0.45"},{"v":0.38999999999999996,"d":"0.39"},0.6,0.6,85,0,{"$f":"ROUND(Primes!$Q$4*V8261,0)","v":11},{"$f":"'BP Financier'!$G$33*(('BP Financier'!$C$16+'BP Financier'!$D$16+'BP Financier'!$E$16+'BP Financier'!$F$16+'BP Financier'!$G$16)/('BP Financier'!$C$16+'BP Financier'!$C$19+'BP Financier'!$D$16+'BP Financier'!$D$19+'BP Financier'!$E$16+'BP Financier'!$E$19+'BP Financier'!$F$16+'BP Financier'!$F$19+'BP Financier'!$G$19+'BP Financier'!$G$16))*V8261","v":{"v":570278.6743187835,"d":"570,279"}},{"v":327302.6120010531,"d":"327,303"},{"$f":"'BP Financier'!$G$44*(('BP Financier'!$C$16+'BP Financier'!$D$16+'BP Financier'!$E$16+'BP Financier'!$F$16+'BP Financier'!$G$16)/('BP Financier'!$C$16+'BP Financier'!$C$19+'BP Financier'!$D$16+'BP Financier'!$D$19+'BP Financier'!$E$16+'BP Financier'!$E$19+'BP Financier'!$C$22+'BP Financier'!$D$22+'BP Financier'!$E$22+'BP Financier'!$F$16+'BP Financier'!$F$19+'BP Financier'!$F$22+'BP Financier'!$G$16+'BP Financier'!$G$19+'BP Financier'!$G$22))*$V8261*X8261/(1-$W8261)","v":{"v":41660.880993101695,"d":"41,661"}},{"$f":"'BP Financier'!$G$44*(('BP Financier'!$C$16+'BP Financier'!$D$16+'BP Financier'!$E$16+'BP Financier'!$F$16+'BP Financier'!$G$16)/('BP Financier'!$C$16+'BP Financier'!$C$19+'BP Financier'!$D$16+'BP Financier'!$D$19+'BP Financier'!$E$16+'BP Financier'!$E$19+'BP Financier'!$C$22+'BP Financier'!$D$22+'BP Financier'!$E$22+'BP Financier'!$F$16+'BP Financier'!$F$19+'BP Financier'!$F$22+'BP Financier'!$G$16+'BP Financier'!$G$19+'BP Financier'!$G$22))*$V8261*Y8261/(1-$W8261)","v":{"v":27850.644199808314,"d":"27,851"}},{"$f":"'BP Financier'!$G$44*(('BP Financier'!$C$16+'BP Financier'!$D$16+'BP Financier'!$E$16+'BP Financier'!$F$16+'BP Financier'!$G$16)/('BP Financier'!$C$16+'BP Financier'!$C$19+'BP Financier'!$D$16+'BP Financier'!$D$19+'BP Financier'!$E$16+'BP Financier'!$E$19+'BP Financier'!$C$22+'BP Financier'!$D$22+'BP Financier'!$E$22+'BP Financier'!$F$16+'BP Financier'!$F$19+'BP Financier'!$F$22+'BP Financier'!$G$16+'BP Financier'!$G$19+'BP Financier'!$G$22))*$V8261*Z8261/(1-$W8261)","v":{"v":217971.57072081385,"d":"217,972"}},{"$f":"'BP Financier'!$G$44*(('BP Financier'!$C$16+'BP Financier'!$D$16+'BP Financier'!$E$16+'BP Financier'!$F$16+'BP Financier'!$G$16)/('BP Financier'!$C$16+'BP Financier'!$C$19+'BP Financier'!$D$16+'BP Financier'!$D$19+'BP Financier'!$E$16+'BP Financier'!$E$19+'BP Financier'!$C$22+'BP Financier'!$D$22+'BP Financier'!$E$22+'BP Financier'!$F$16+'BP Financier'!$F$19+'BP Financier'!$F$22+'BP Financier'!$G$16+'BP Financier'!$G$19+'BP Financier'!$G$22))*$V8261*AA8261/(1-$W8261)","v":{"v":26929.96174692209,"d":"26,930"}},{"$f":"'BP Financier'!$G$44*(('BP Financier'!$C$16+'BP Financier'!$D$16+'BP Financier'!$E$16+'BP Financier'!$F$16+'BP Financier'!$G$16)/('BP Financier'!$C$16+'BP Financier'!$C$19+'BP Financier'!$D$16+'BP Financier'!$D$19+'BP Financier'!$E$16+'BP Financier'!$E$19+'BP Financier'!$C$22+'BP Financier'!$D$22+'BP Financier'!$E$22+'BP Financier'!$F$16+'BP Financier'!$F$19+'BP Financier'!$F$22+'BP Financier'!$G$16+'BP Financier'!$G$19+'BP Financier'!$G$22))*$V8261*AB8261/(1-$W8261)","v":{"v":12889.554340407152,"d":"12,890"}},null,{"v":1E-3,"d":"0.10%"},{"$f":"Actif!$E$28/100","v":{"v":0.28900000000000003,"d":"28.90%"}},{"$f":"Actif!$E$30/100","v":{"v":0.09050000000000001,"d":"9.05%"}},{"$f":"Actif!$E$31/100","v":{"v":0.0605,"d":"6.05%"}},{"$f":"Actif!$E$32/100","v":{"v":0.47350000000000003,"d":"47.35%"}},{"$f":"Actif!$E$33/100","v":{"v":0.0585,"d":"5.85%"}},{"$f":"Actif!$E$29/100","v":{"v":0.027999999999999997,"d":"2.80%"}}]
[null,"#149",47,2030,"F","A_VIE",{"v":0.44999999999999996,"d":"0.45"},{"v":0.38999999999999996,"d":"0.39"},0.6,0.6,85,0,{"$f":"ROUND(Primes!$Q$4*V8262,0)","v":11},{"$f":"'BP Financier'!$G$33*(('BP Financier'!$C$16+'BP Financier'!$D$16+'BP Financier'!$E$16+'BP Financier'!$F$16+'BP Financier'!$G$16)/('BP Financier'!$C$16+'BP Financier'!$C$19+'BP Financier'!$D$16+'BP Financier'!$D$19+'BP Financier'!$E$16+'BP Financier'!$E$19+'BP Financier'!$F$16+'BP Financier'!$F$19+'BP Financier'!$G$19+'BP Financier'!$G$16))*V8262","v":{"v":570278.6743187835,"d":"570,279"}},{"v":327302.6120010531,"d":"327,303"},{"$f":"'BP Financier'!$G$44*(('BP Financier'!$C$16+'BP Financier'!$D$16+'BP Financier'!$E$16+'BP Financier'!$F$16+'BP Financier'!$G$16)/('BP Financier'!$C$16+'BP Financier'!$C$19+'BP Financier'!$D$16+'BP Financier'!$D$19+'BP Financier'!$E$16+'BP Financier'!$E$19+'BP Financier'!$C$22+'BP Financier'!$D$22+'BP Financier'!$E$22+'BP Financier'!$F$16+'BP Financier'!$F$19+'BP Financier'!$F$22+'BP Financier'!$G$16+'BP Financier'!$G$19+'BP Financier'!$G$22))*$V8262*X8262/(1-$W8262)","v":{"v":41660.880993101695,"d":"41,661"}},{"$f":"'BP Financier'!$G$44*(('BP Financier'!$C$16+'BP Financier'!$D$16+'BP Financier'!$E$16+'BP Financier'!$F$16+'BP Financier'!$G$16)/('BP Financier'!$C$16+'BP Financier'!$C$19+'BP Financier'!$D$16+'BP Financier'!$D$19+'BP Financier'!$E$16+'BP Financier'!$E$19+'BP Financier'!$C$22+'BP Financier'!$D$22+'BP Financier'!$E$22+'BP Financier'!$F$16+'BP Financier'!$F$19+'BP Financier'!$F$22+'BP Financier'!$G$16+'BP Financier'!$G$19+'BP Financier'!$G$22))*$V8262*Y8262/(1-$W8262)","v":{"v":27850.644199808314,"d":"27,851"}},{"$f":"'BP Financier'!$G$44*(('BP Financier'!$C$16+'BP Financier'!$D$16+'BP Financier'!$E$16+'BP Financier'!$F$16+'BP Financier'!$G$16)/('BP Financier'!$C$16+'BP Financier'!$C$19+'BP Financier'!$D$16+'BP Financier'!$D$19+'BP Financier'!$E$16+'BP Financier'!$E$19+'BP Financier'!$C$22+'BP Financier'!$D$22+'BP Financier'!$E$22+'BP Financier'!$F$16+'BP Financier'!$F$19+'BP Financier'!$F$22+'BP Financier'!$G$16+'BP Financier'!$G$19+'BP Financier'!$G$22))*$V8262*Z8262/(1-$W8262)","v":{"v":217971.57072081385,"d":"217,972"}},{"$f":"'BP Financier'!$G$44*(('BP Financier'!$C$16+'BP Financier'!$D$16+'BP Financier'!$E$16+'BP Financier'!$F$16+'BP Financier'!$G$16)/('BP Financier'!$C$16+'BP Financier'!$C$19+'BP Financier'!$D$16+'BP Financier'!$D$19+'BP Financier'!$E$16+'BP Financier'!$E$19+'BP Financier'!$C$22+'BP Financier'!$D$22+'BP Financier'!$E$22+'BP Financier'!$F$16+'BP Financier'!$F$19+'BP Financier'!$F$22+'BP Financier'!$G$16+'BP Financier'!$G$19+'BP Financier'!$G$22))*$V8262*AA8262/(1-$W8262)","v":{"v":26929.96174692209,"d":"26,930"}},{"$f":"'BP Financier'!$G$44*(('BP Financier'!$C$16+'BP Financier'!$D$16+'BP Financier'!$E$16+'BP Financier'!$F$16+'BP Financier'!$G$16)/('BP Financier'!$C$16+'BP Financier'!$C$19+'BP Financier'!$D$16+'BP Financier'!$D$19+'BP Financier'!$E$16+'BP Financier'!$E$19+'BP Financier'!$C$22+'BP Financier'!$D$22+'BP Financier'!$E$22+'BP Financier'!$F$16+'BP Financier'!$F$19+'BP Financier'!$F$22+'BP Financier'!$G$16+'BP Financier'!$G$19+'BP Financier'!$G$22))*$V8262*AB8262/(1-$W8262)","v":{"v":12889.554340407152,"d":"12,890"}},null,{"v":1E-3,"d":"0.10%"},{"$f":"Actif!$E$28/100","v":{"v":0.28900000000000003,"d":"28.90%"}},{"$f":"Actif!$E$30/100","v":{"v":0.09050000000000001,"d":"9.05%"}},{"$f":"Actif!$E$31/100","v":{"v":0.0605,"d":"6.05%"}},{"$f":"Actif!$E$32/100","v":{"v":0.47350000000000003,"d":"47.35%"}},{"$f":"Actif!$E$33/100","v":{"v":0.0585,"d":"5.85%"}},{"$f":"Actif!$E$29/100","v":{"v":0.027999999999999997,"d":"2.80%"}}]
[null,"#150",47,2031,"F","A_VIE",{"v":0.44999999999999996,"d":"0.45"},{"v":0.38999999999999996,"d":"0.39"},0.6,0.6,85,0,{"$f":"ROUND(Primes!$Q$4*V8263,0)","v":11},{"$f":"'BP Financier'!$G$33*(('BP Financier'!$C$16+'BP Financier'!$D$16+'BP Financier'!$E$16+'BP Financier'!$F$16+'BP Financier'!$G$16)/('BP Financier'!$C$16+'BP Financier'!$C$19+'BP Financier'!$D$16+'BP Financier'!$D$19+'BP Financier'!$E$16+'BP Financier'!$E$19+'BP Financier'!$F$16+'BP Financier'!$F$19+'BP Financier'!$G$19+'BP Financier'!$G$16))*V8263","v":{"v":570278.6743187835,"d":"570,279"}},{"v":327302.6120010531,"d":"327,303"},{"$f":"'BP Financier'!$G$44*(('BP Financier'!$C$16+'BP Financier'!$D$16+'BP Financier'!$E$16+'BP Financier'!$F$16+'BP Financier'!$G$16)/('BP Financier'!$C$16+'BP Financier'!$C$19+'BP Financier'!$D$16+'BP Financier'!$D$19+'BP Financier'!$E$16+'BP Financier'!$E$19+'BP Financier'!$C$22+'BP Financier'!$D$22+'BP Financier'!$E$22+'BP Financier'!$F$16+'BP Financier'!$F$19+'BP Financier'!$F$22+'BP Financier'!$G$16+'BP Financier'!$G$19+'BP Financier'!$G$22))*$V8263*X8263/(1-$W8263)","v":{"v":41660.880993101695,"d":"41,661"}},{"$f":"'BP Financier'!$G$44*(('BP Financier'!$C$16+'BP Financier'!$D$16+'BP Financier'!$E$16+'BP Financier'!$F$16+'BP Financier'!$G$16)/('BP Financier'!$C$16+'BP Financier'!$C$19+'BP Financier'!$D$16+'BP Financier'!$D$19+'BP Financier'!$E$16+'BP Financier'!$E$19+'BP Financier'!$C$22+'BP Financier'!$D$22+'BP Financier'!$E$22+'BP Financier'!$F$16+'BP Financier'!$F$19+'BP Financier'!$F$22+'BP Financier'!$G$16+'BP Financier'!$G$19+'BP Financier'!$G$22))*$V8263*Y8263/(1-$W8263)","v":{"v":27850.644199808314,"d":"27,851"}},{"$f":"'BP Financier'!$G$44*(('BP Financier'!$C$16+'BP Financier'!$D$16+'BP Financier'!$E$16+'BP Financier'!$F$16+'BP Financier'!$G$16)/('BP Financier'!$C$16+'BP Financier'!$C$19+'BP Financier'!$D$16+'BP Financier'!$D$19+'BP Financier'!$E$16+'BP Financier'!$E$19+'BP Financier'!$C$22+'BP Financier'!$D$22+'BP Financier'!$E$22+'BP Financier'!$F$16+'BP Financier'!$F$19+'BP Financier'!$F$22+'BP Financier'!$G$16+'BP Financier'!$G$19+'BP Financier'!$G$22))*$V8263*Z8263/(1-$W8263)","v":{"v":217971.57072081385,"d":"217,972"}},{"$f":"'BP Financier'!$G$44*(('BP Financier'!$C$16+'BP Financier'!$D$16+'BP Financier'!$E$16+'BP Financier'!$F$16+'BP Financier'!$G$16)/('BP Financier'!$C$16+'BP Financier'!$C$19+'BP Financier'!$D$16+'BP Financier'!$D$19+'BP Financier'!$E$16+'BP Financier'!$E$19+'BP Financier'!$C$22+'BP Financier'!$D$22+'BP Financier'!$E$22+'BP Financier'!$F$16+'BP Financier'!$F$19+'BP Financier'!$F$22+'BP Financier'!$G$16+'BP Financier'!$G$19+'BP Financier'!$G$22))*$V8263*AA8263/(1-$W8263)","v":{"v":26929.96174692209,"d":"26,930"}},{"$f":"'BP Financier'!$G$44*(('BP Financier'!$C$16+'BP Financier'!$D$16+'BP Financier'!$E$16+'BP Financier'!$F$16+'BP Financier'!$G$16)/('BP Financier'!$C$16+'BP Financier'!$C$19+'BP Financier'!$D$16+'BP Financier'!$D$19+'BP Financier'!$E$16+'BP Financier'!$E$19+'BP Financier'!$C$22+'BP Financier'!$D$22+'BP Financier'!$E$22+'BP Financier'!$F$16+'BP Financier'!$F$19+'BP Financier'!$F$22+'BP Financier'!$G$16+'BP Financier'!$G$19+'BP Financier'!$G$22))*$V8263*AB8263/(1-$W8263)","v":{"v":12889.554340407152,"d":"12,890"}},null,{"v":1E-3,"d":"0.10%"},{"$f":"Actif!$E$28/100","v":{"v":0.28900000000000003,"d":"28.90%"}},{"$f":"Actif!$E$30/100","v":{"v":0.09050000000000001,"d":"9.05%"}},{"$f":"Actif!$E$31/100","v":{"v":0.0605,"d":"6.05%"}},{"$f":"Actif!$E$32/100","v":{"v":0.47350000000000003,"d":"47.35%"}},{"$f":"Actif!$E$33/100","v":{"v":0.0585,"d":"5.85%"}},{"$f":"Actif!$E$29/100","v":{"v":0.027999999999999997,"d":"2.80%"}}]
[null,"#151",48,2026,"H","A_VIE",{"v":0.44999999999999996,"d":"0.45"},{"v":0.38999999999999996,"d":"0.39"},0.6,0.6,85,0,{"$f":"ROUND(Primes!$Q$4*V8264,0)","v":11},{"$f":"'BP Financier'!$G$33*(('BP Financier'!$C$16+'BP Financier'!$D$16+'BP Financier'!$E$16+'BP Financier'!$F$16+'BP Financier'!$G$16)/('BP Financier'!$C$16+'BP Financier'!$C$19+'BP Financier'!$D$16+'BP Financier'!$D$19+'BP Financier'!$E$16+'BP Financier'!$E$19+'BP Financier'!$F$16+'BP Financier'!$F$19+'BP Financier'!$G$19+'BP Financier'!$G$16))*V8264","v":{"v":570278.6743187835,"d":"570,279"}},{"v":327302.6120010531,"d":"327,303"},{"$f":"'BP Financier'!$G$44*(('BP Financier'!$C$16+'BP Financier'!$D$16+'BP Financier'!$E$16+'BP Financier'!$F$16+'BP Financier'!$G$16)/('BP Financier'!$C$16+'BP Financier'!$C$19+'BP Financier'!$D$16+'BP Financier'!$D$19+'BP Financier'!$E$16+'BP Financier'!$E$19+'BP Financier'!$C$22+'BP Financier'!$D$22+'BP Financier'!$E$22+'BP Financier'!$F$16+'BP Financier'!$F$19+'BP Financier'!$F$22+'BP Financier'!$G$16+'BP Financier'!$G$19+'BP Financier'!$G$22))*$V8264*X8264/(1-$W8264)","v":{"v":41660.880993101695,"d":"41,661"}},{"$f":"'BP Financier'!$G$44*(('BP Financier'!$C$16+'BP Financier'!$D$16+'BP Financier'!$E$16+'BP Financier'!$F$16+'BP Financier'!$G$16)/('BP Financier'!$C$16+'BP Financier'!$C$19+'BP Financier'!$D$16+'BP Financier'!$D$19+'BP Financier'!$E$16+'BP Financier'!$E$19+'BP Financier'!$C$22+'BP Financier'!$D$22+'BP Financier'!$E$22+'BP Financier'!$F$16+'BP Financier'!$F$19+'BP Financier'!$F$22+'BP Financier'!$G$16+'BP Financier'!$G$19+'BP Financier'!$G$22))*$V8264*Y8264/(1-$W8264)","v":{"v":27850.644199808314,"d":"27,851"}},{"$f":"'BP Financier'!$G$44*(('BP Financier'!$C$16+'BP Financier'!$D$16+'BP Financier'!$E$16+'BP Financier'!$F$16+'BP Financier'!$G$16)/('BP Financier'!$C$16+'BP Financier'!$C$19+'BP Financier'!$D$16+'BP Financier'!$D$19+'BP Financier'!$E$16+'BP Financier'!$E$19+'BP Financier'!$C$22+'BP Financier'!$D$22+'BP Financier'!$E$22+'BP Financier'!$F$16+'BP Financier'!$F$19+'BP Financier'!$F$22+'BP Financier'!$G$16+'BP Financier'!$G$19+'BP Financier'!$G$22))*$V8264*Z8264/(1-$W8264)","v":{"v":217971.57072081385,"d":"217,972"}},{"$f":"'BP Financier'!$G$44*(('BP Financier'!$C$16+'BP Financier'!$D$16+'BP Financier'!$E$16+'BP Financier'!$F$16+'BP Financier'!$G$16)/('BP Financier'!$C$16+'BP Financier'!$C$19+'BP Financier'!$D$16+'BP Financier'!$D$19+'BP Financier'!$E$16+'BP Financier'!$E$19+'BP Financier'!$C$22+'BP Financier'!$D$22+'BP Financier'!$E$22+'BP Financier'!$F$16+'BP Financier'!$F$19+'BP Financier'!$F$22+'BP Financier'!$G$16+'BP Financier'!$G$19+'BP Financier'!$G$22))*$V8264*AA8264/(1-$W8264)","v":{"v":26929.96174692209,"d":"26,930"}},{"$f":"'BP Financier'!$G$44*(('BP Financier'!$C$16+'BP Financier'!$D$16+'BP Financier'!$E$16+'BP Financier'!$F$16+'BP Financier'!$G$16)/('BP Financier'!$C$16+'BP Financier'!$C$19+'BP Financier'!$D$16+'BP Financier'!$D$19+'BP Financier'!$E$16+'BP Financier'!$E$19+'BP Financier'!$C$22+'BP Financier'!$D$22+'BP Financier'!$E$22+'BP Financier'!$F$16+'BP Financier'!$F$19+'BP Financier'!$F$22+'BP Financier'!$G$16+'BP Financier'!$G$19+'BP Financier'!$G$22))*$V8264*AB8264/(1-$W8264)","v":{"v":12889.554340407152,"d":"12,890"}},null,{"v":1E-3,"d":"0.10%"},{"$f":"Actif!$E$28/100","v":{"v":0.28900000000000003,"d":"28.90%"}},{"$f":"Actif!$E$30/100","v":{"v":0.09050000000000001,"d":"9.05%"}},{"$f":"Actif!$E$31/100","v":{"v":0.0605,"d":"6.05%"}},{"$f":"Actif!$E$32/100","v":{"v":0.47350000000000003,"d":"47.35%"}},{"$f":"Actif!$E$33/100","v":{"v":0.0585,"d":"5.85%"}},{"$f":"Actif!$E$29/100","v":{"v":0.027999999999999997,"d":"2.80%"}}]
[null,"#152",48,2028,"H","A_VIE",{"v":0.44999999999999996,"d":"0.45"},{"v":0.38999999999999996,"d":"0.39"},0.6,0.6,85,0,{"$f":"ROUND(Primes!$Q$4*V8265,0)","v":11},{"$f":"'BP Financier'!$G$33*(('BP Financier'!$C$16+'BP Financier'!$D$16+'BP Financier'!$E$16+'BP Financier'!$F$16+'BP Financier'!$G$16)/('BP Financier'!$C$16+'BP Financier'!$C$19+'BP Financier'!$D$16+'BP Financier'!$D$19+'BP Financier'!$E$16+'BP Financier'!$E$19+'BP Financier'!$F$16+'BP Financier'!$F$19+'BP Financier'!$G$19+'BP Financier'!$G$16))*V8265","v":{"v":570278.6743187835,"d":"570,279"}},{"v":327302.6120010531,"d":"327,303"},{"$f":"'BP Financier'!$G$44*(('BP Financier'!$C$16+'BP Financier'!$D$16+'BP Financier'!$E$16+'BP Financier'!$F$16+'BP Financier'!$G$16)/('BP Financier'!$C$16+'BP Financier'!$C$19+'BP Financier'!$D$16+'BP Financier'!$D$19+'BP Financier'!$E$16+'BP Financier'!$E$19+'BP Financier'!$C$22+'BP Financier'!$D$22+'BP Financier'!$E$22+'BP Financier'!$F$16+'BP Financier'!$F$19+'BP Financier'!$F$22+'BP Financier'!$G$16+'BP Financier'!$G$19+'BP Financier'!$G$22))*$V8265*X8265/(1-$W8265)","v":{"v":41660.880993101695,"d":"41,661"}},{"$f":"'BP Financier'!$G$44*(('BP Financier'!$C$16+'BP Financier'!$D$16+'BP Financier'!$E$16+'BP Financier'!$F$16+'BP Financier'!$G$16)/('BP Financier'!$C$16+'BP Financier'!$C$19+'BP Financier'!$D$16+'BP Financier'!$D$19+'BP Financier'!$E$16+'BP Financier'!$E$19+'BP Financier'!$C$22+'BP Financier'!$D$22+'BP Financier'!$E$22+'BP Financier'!$F$16+'BP Financier'!$F$19+'BP Financier'!$F$22+'BP Financier'!$G$16+'BP Financier'!$G$19+'BP Financier'!$G$22))*$V8265*Y8265/(1-$W8265)","v":{"v":27850.644199808314,"d":"27,851"}},{"$f":"'BP Financier'!$G$44*(('BP Financier'!$C$16+'BP Financier'!$D$16+'BP Financier'!$E$16+'BP Financier'!$F$16+'BP Financier'!$G$16)/('BP Financier'!$C$16+'BP Financier'!$C$19+'BP Financier'!$D$16+'BP Financier'!$D$19+'BP Financier'!$E$16+'BP Financier'!$E$19+'BP Financier'!$C$22+'BP Financier'!$D$22+'BP Financier'!$E$22+'BP Financier'!$F$16+'BP Financier'!$F$19+'BP Financier'!$F$22+'BP Financier'!$G$16+'BP Financier'!$G$19+'BP Financier'!$G$22))*$V8265*Z8265/(1-$W8265)","v":{"v":217971.57072081385,"d":"217,972"}},{"$f":"'BP Financier'!$G$44*(('BP Financier'!$C$16+'BP Financier'!$D$16+'BP Financier'!$E$16+'BP Financier'!$F$16+'BP Financier'!$G$16)/('BP Financier'!$C$16+'BP Financier'!$C$19+'BP Financier'!$D$16+'BP Financier'!$D$19+'BP Financier'!$E$16+'BP Financier'!$E$19+'BP Financier'!$C$22+'BP Financier'!$D$22+'BP Financier'!$E$22+'BP Financier'!$F$16+'BP Financier'!$F$19+'BP Financier'!$F$22+'BP Financier'!$G$16+'BP Financier'!$G$19+'BP Financier'!$G$22))*$V8265*AA8265/(1-$W8265)","v":{"v":26929.96174692209,"d":"26,930"}},{"$f":"'BP Financier'!$G$44*(('BP Financier'!$C$16+'BP Financier'!$D$16+'BP Financier'!$E$16+'BP Financier'!$F$16+'BP Financier'!$G$16)/('BP Financier'!$C$16+'BP Financier'!$C$19+'BP Financier'!$D$16+'BP Financier'!$D$19+'BP Financier'!$E$16+'BP Financier'!$E$19+'BP Financier'!$C$22+'BP Financier'!$D$22+'BP Financier'!$E$22+'BP Financier'!$F$16+'BP Financier'!$F$19+'BP Financier'!$F$22+'BP Financier'!$G$16+'BP Financier'!$G$19+'BP Financier'!$G$22))*$V8265*AB8265/(1-$W8265)","v":{"v":12889.554340407152,"d":"12,890"}},null,{"v":1E-3,"d":"0.10%"},{"$f":"Actif!$E$28/100","v":{"v":0.28900000000000003,"d":"28.90%"}},{"$f":"Actif!$E$30/100","v":{"v":0.09050000000000001,"d":"9.05%"}},{"$f":"Actif!$E$31/100","v":{"v":0.0605,"d":"6.05%"}},{"$f":"Actif!$E$32/100","v":{"v":0.47350000000000003,"d":"47.35%"}},{"$f":"Actif!$E$33/100","v":{"v":0.0585,"d":"5.85%"}},{"$f":"Actif!$E$29/100","v":{"v":0.027999999999999997,"d":"2.80%"}}]
[null,"#153",48,2029,"H","A_VIE",{"v":0.44999999999999996,"d":"0.45"},{"v":0.38999999999999996,"d":"0.39"},0.6,0.6,85,0,{"$f":"ROUND(Primes!$Q$4*V8266,0)","v":11},{"$f":"'BP Financier'!$G$33*(('BP Financier'!$C$16+'BP Financier'!$D$16+'BP Financier'!$E$16+'BP Financier'!$F$16+'BP Financier'!$G$16)/('BP Financier'!$C$16+'BP Financier'!$C$19+'BP Financier'!$D$16+'BP Financier'!$D$19+'BP Financier'!$E$16+'BP Financier'!$E$19+'BP Financier'!$F$16+'BP Financier'!$F$19+'BP Financier'!$G$19+'BP Financier'!$G$16))*V8266","v":{"v":570278.6743187835,"d":"570,279"}},{"v":327302.6120010531,"d":"327,303"},{"$f":"'BP Financier'!$G$44*(('BP Financier'!$C$16+'BP Financier'!$D$16+'BP Financier'!$E$16+'BP Financier'!$F$16+'BP Financier'!$G$16)/('BP Financier'!$C$16+'BP Financier'!$C$19+'BP Financier'!$D$16+'BP Financier'!$D$19+'BP Financier'!$E$16+'BP Financier'!$E$19+'BP Financier'!$C$22+'BP Financier'!$D$22+'BP Financier'!$E$22+'BP Financier'!$F$16+'BP Financier'!$F$19+'BP Financier'!$F$22+'BP Financier'!$G$16+'BP Financier'!$G$19+'BP Financier'!$G$22))*$V8266*X8266/(1-$W8266)","v":{"v":41660.880993101695,"d":"41,661"}},{"$f":"'BP Financier'!$G$44*(('BP Financier'!$C$16+'BP Financier'!$D$16+'BP Financier'!$E$16+'BP Financier'!$F$16+'BP Financier'!$G$16)/('BP Financier'!$C$16+'BP Financier'!$C$19+'BP Financier'!$D$16+'BP Financier'!$D$19+'BP Financier'!$E$16+'BP Financier'!$E$19+'BP Financier'!$C$22+'BP Financier'!$D$22+'BP Financier'!$E$22+'BP Financier'!$F$16+'BP Financier'!$F$19+'BP Financier'!$F$22+'BP Financier'!$G$16+'BP Financier'!$G$19+'BP Financier'!$G$22))*$V8266*Y8266/(1-$W8266)","v":{"v":27850.644199808314,"d":"27,851"}},{"$f":"'BP Financier'!$G$44*(('BP Financier'!$C$16+'BP Financier'!$D$16+'BP Financier'!$E$16+'BP Financier'!$F$16+'BP Financier'!$G$16)/('BP Financier'!$C$16+'BP Financier'!$C$19+'BP Financier'!$D$16+'BP Financier'!$D$19+'BP Financier'!$E$16+'BP Financier'!$E$19+'BP Financier'!$C$22+'BP Financier'!$D$22+'BP Financier'!$E$22+'BP Financier'!$F$16+'BP Financier'!$F$19+'BP Financier'!$F$22+'BP Financier'!$G$16+'BP Financier'!$G$19+'BP Financier'!$G$22))*$V8266*Z8266/(1-$W8266)","v":{"v":217971.57072081385,"d":"217,972"}},{"$f":"'BP Financier'!$G$44*(('BP Financier'!$C$16+'BP Financier'!$D$16+'BP Financier'!$E$16+'BP Financier'!$F$16+'BP Financier'!$G$16)/('BP Financier'!$C$16+'BP Financier'!$C$19+'BP Financier'!$D$16+'BP Financier'!$D$19+'BP Financier'!$E$16+'BP Financier'!$E$19+'BP Financier'!$C$22+'BP Financier'!$D$22+'BP Financier'!$E$22+'BP Financier'!$F$16+'BP Financier'!$F$19+'BP Financier'!$F$22+'BP Financier'!$G$16+'BP Financier'!$G$19+'BP Financier'!$G$22))*$V8266*AA8266/(1-$W8266)","v":{"v":26929.96174692209,"d":"26,930"}},{"$f":"'BP Financier'!$G$44*(('BP Financier'!$C$16+'BP Financier'!$D$16+'BP Financier'!$E$16+'BP Financier'!$F$16+'BP Financier'!$G$16)/('BP Financier'!$C$16+'BP Financier'!$C$19+'BP Financier'!$D$16+'BP Financier'!$D$19+'BP Financier'!$E$16+'BP Financier'!$E$19+'BP Financier'!$C$22+'BP Financier'!$D$22+'BP Financier'!$E$22+'BP Financier'!$F$16+'BP Financier'!$F$19+'BP Financier'!$F$22+'BP Financier'!$G$16+'BP Financier'!$G$19+'BP Financier'!$G$22))*$V8266*AB8266/(1-$W8266)","v":{"v":12889.554340407152,"d":"12,890"}},null,{"v":1E-3,"d":"0.10%"},{"$f":"Actif!$E$28/100","v":{"v":0.28900000000000003,"d":"28.90%"}},{"$f":"Actif!$E$30/100","v":{"v":0.09050000000000001,"d":"9.05%"}},{"$f":"Actif!$E$31/100","v":{"v":0.0605,"d":"6.05%"}},{"$f":"Actif!$E$32/100","v":{"v":0.47350000000000003,"d":"47.35%"}},{"$f":"Actif!$E$33/100","v":{"v":0.0585,"d":"5.85%"}},{"$f":"Actif!$E$29/100","v":{"v":0.027999999999999997,"d":"2.80%"}}]
[null,"#154",48,2030,"H","A_VIE",{"v":0.44999999999999996,"d":"0.45"},{"v":0.38999999999999996,"d":"0.39"},0.6,0.6,85,0,{"$f":"ROUND(Primes!$Q$4*V8267,0)","v":11},{"$f":"'BP Financier'!$G$33*(('BP Financier'!$C$16+'BP Financier'!$D$16+'BP Financier'!$E$16+'BP Financier'!$F$16+'BP Financier'!$G$16)/('BP Financier'!$C$16+'BP Financier'!$C$19+'BP Financier'!$D$16+'BP Financier'!$D$19+'BP Financier'!$E$16+'BP Financier'!$E$19+'BP Financier'!$F$16+'BP Financier'!$F$19+'BP Financier'!$G$19+'BP Financier'!$G$16))*V8267","v":{"v":570278.6743187835,"d":"570,279"}},{"v":327302.6120010531,"d":"327,303"},{"$f":"'BP Financier'!$G$44*(('BP Financier'!$C$16+'BP Financier'!$D$16+'BP Financier'!$E$16+'BP Financier'!$F$16+'BP Financier'!$G$16)/('BP Financier'!$C$16+'BP Financier'!$C$19+'BP Financier'!$D$16+'BP Financier'!$D$19+'BP Financier'!$E$16+'BP Financier'!$E$19+'BP Financier'!$C$22+'BP Financier'!$D$22+'BP Financier'!$E$22+'BP Financier'!$F$16+'BP Financier'!$F$19+'BP Financier'!$F$22+'BP Financier'!$G$16+'BP Financier'!$G$19+'BP Financier'!$G$22))*$V8267*X8267/(1-$W8267)","v":{"v":41660.880993101695,"d":"41,661"}},{"$f":"'BP Financier'!$G$44*(('BP Financier'!$C$16+'BP Financier'!$D$16+'BP Financier'!$E$16+'BP Financier'!$F$16+'BP Financier'!$G$16)/('BP Financier'!$C$16+'BP Financier'!$C$19+'BP Financier'!$D$16+'BP Financier'!$D$19+'BP Financier'!$E$16+'BP Financier'!$E$19+'BP Financier'!$C$22+'BP Financier'!$D$22+'BP Financier'!$E$22+'BP Financier'!$F$16+'BP Financier'!$F$19+'BP Financier'!$F$22+'BP Financier'!$G$16+'BP Financier'!$G$19+'BP Financier'!$G$22))*$V8267*Y8267/(1-$W8267)","v":{"v":27850.644199808314,"d":"27,851"}},{"$f":"'BP Financier'!$G$44*(('BP Financier'!$C$16+'BP Financier'!$D$16+'BP Financier'!$E$16+'BP Financier'!$F$16+'BP Financier'!$G$16)/('BP Financier'!$C$16+'BP Financier'!$C$19+'BP Financier'!$D$16+'BP Financier'!$D$19+'BP Financier'!$E$16+'BP Financier'!$E$19+'BP Financier'!$C$22+'BP Financier'!$D$22+'BP Financier'!$E$22+'BP Financier'!$F$16+'BP Financier'!$F$19+'BP Financier'!$F$22+'BP Financier'!$G$16+'BP Financier'!$G$19+'BP Financier'!$G$22))*$V8267*Z8267/(1-$W8267)","v":{"v":217971.57072081385,"d":"217,972"}},{"$f":"'BP Financier'!$G$44*(('BP Financier'!$C$16+'BP Financier'!$D$16+'BP Financier'!$E$16+'BP Financier'!$F$16+'BP Financier'!$G$16)/('BP Financier'!$C$16+'BP Financier'!$C$19+'BP Financier'!$D$16+'BP Financier'!$D$19+'BP Financier'!$E$16+'BP Financier'!$E$19+'BP Financier'!$C$22+'BP Financier'!$D$22+'BP Financier'!$E$22+'BP Financier'!$F$16+'BP Financier'!$F$19+'BP Financier'!$F$22+'BP Financier'!$G$16+'BP Financier'!$G$19+'BP Financier'!$G$22))*$V8267*AA8267/(1-$W8267)","v":{"v":26929.96174692209,"d":"26,930"}},{"$f":"'BP Financier'!$G$44*(('BP Financier'!$C$16+'BP Financier'!$D$16+'BP Financier'!$E$16+'BP Financier'!$F$16+'BP Financier'!$G$16)/('BP Financier'!$C$16+'BP Financier'!$C$19+'BP Financier'!$D$16+'BP Financier'!$D$19+'BP Financier'!$E$16+'BP Financier'!$E$19+'BP Financier'!$C$22+'BP Financier'!$D$22+'BP Financier'!$E$22+'BP Financier'!$F$16+'BP Financier'!$F$19+'BP Financier'!$F$22+'BP Financier'!$G$16+'BP Financier'!$G$19+'BP Financier'!$G$22))*$V8267*AB8267/(1-$W8267)","v":{"v":12889.554340407152,"d":"12,890"}},null,{"v":1E-3,"d":"0.10%"},{"$f":"Actif!$E$28/100","v":{"v":0.28900000000000003,"d":"28.90%"}},{"$f":"Actif!$E$30/100","v":{"v":0.09050000000000001,"d":"9.05%"}},{"$f":"Actif!$E$31/100","v":{"v":0.0605,"d":"6.05%"}},{"$f":"Actif!$E$32/100","v":{"v":0.47350000000000003,"d":"47.35%"}},{"$f":"Actif!$E$33/100","v":{"v":0.0585,"d":"5.85%"}},{"$f":"Actif!$E$29/100","v":{"v":0.027999999999999997,"d":"2.80%"}}]
[null,"#155",48,2031,"H","A_VIE",{"v":0.44999999999999996,"d":"0.45"},{"v":0.38999999999999996,"d":"0.39"},0.6,0.6,85,0,{"$f":"ROUND(Primes!$Q$4*V8268,0)","v":11},{"$f":"'BP Financier'!$G$33*(('BP Financier'!$C$16+'BP Financier'!$D$16+'BP Financier'!$E$16+'BP Financier'!$F$16+'BP Financier'!$G$16)/('BP Financier'!$C$16+'BP Financier'!$C$19+'BP Financier'!$D$16+'BP Financier'!$D$19+'BP Financier'!$E$16+'BP Financier'!$E$19+'BP Financier'!$F$16+'BP Financier'!$F$19+'BP Financier'!$G$19+'BP Financier'!$G$16))*V8268","v":{"v":570278.6743187835,"d":"570,279"}},{"v":327302.6120010531,"d":"327,303"},{"$f":"'BP Financier'!$G$44*(('BP Financier'!$C$16+'BP Financier'!$D$16+'BP Financier'!$E$16+'BP Financier'!$F$16+'BP Financier'!$G$16)/('BP Financier'!$C$16+'BP Financier'!$C$19+'BP Financier'!$D$16+'BP Financier'!$D$19+'BP Financier'!$E$16+'BP Financier'!$E$19+'BP Financier'!$C$22+'BP Financier'!$D$22+'BP Financier'!$E$22+'BP Financier'!$F$16+'BP Financier'!$F$19+'BP Financier'!$F$22+'BP Financier'!$G$16+'BP Financier'!$G$19+'BP Financier'!$G$22))*$V8268*X8268/(1-$W8268)","v":{"v":41660.880993101695,"d":"41,661"}},{"$f":"'BP Financier'!$G$44*(('BP Financier'!$C$16+'BP Financier'!$D$16+'BP Financier'!$E$16+'BP Financier'!$F$16+'BP Financier'!$G$16)/('BP Financier'!$C$16+'BP Financier'!$C$19+'BP Financier'!$D$16+'BP Financier'!$D$19+'BP Financier'!$E$16+'BP Financier'!$E$19+'BP Financier'!$C$22+'BP Financier'!$D$22+'BP Financier'!$E$22+'BP Financier'!$F$16+'BP Financier'!$F$19+'BP Financier'!$F$22+'BP Financier'!$G$16+'BP Financier'!$G$19+'BP Financier'!$G$22))*$V8268*Y8268/(1-$W8268)","v":{"v":27850.644199808314,"d":"27,851"}},{"$f":"'BP Financier'!$G$44*(('BP Financier'!$C$16+'BP Financier'!$D$16+'BP Financier'!$E$16+'BP Financier'!$F$16+'BP Financier'!$G$16)/('BP Financier'!$C$16+'BP Financier'!$C$19+'BP Financier'!$D$16+'BP Financier'!$D$19+'BP Financier'!$E$16+'BP Financier'!$E$19+'BP Financier'!$C$22+'BP Financier'!$D$22+'BP Financier'!$E$22+'BP Financier'!$F$16+'BP Financier'!$F$19+'BP Financier'!$F$22+'BP Financier'!$G$16+'BP Financier'!$G$19+'BP Financier'!$G$22))*$V8268*Z8268/(1-$W8268)","v":{"v":217971.57072081385,"d":"217,972"}},{"$f":"'BP Financier'!$G$44*(('BP Financier'!$C$16+'BP Financier'!$D$16+'BP Financier'!$E$16+'BP Financier'!$F$16+'BP Financier'!$G$16)/('BP Financier'!$C$16+'BP Financier'!$C$19+'BP Financier'!$D$16+'BP Financier'!$D$19+'BP Financier'!$E$16+'BP Financier'!$E$19+'BP Financier'!$C$22+'BP Financier'!$D$22+'BP Financier'!$E$22+'BP Financier'!$F$16+'BP Financier'!$F$19+'BP Financier'!$F$22+'BP Financier'!$G$16+'BP Financier'!$G$19+'BP Financier'!$G$22))*$V8268*AA8268/(1-$W8268)","v":{"v":26929.96174692209,"d":"26,930"}},{"$f":"'BP Financier'!$G$44*(('BP Financier'!$C$16+'BP Financier'!$D$16+'BP Financier'!$E$16+'BP Financier'!$F$16+'BP Financier'!$G$16)/('BP Financier'!$C$16+'BP Financier'!$C$19+'BP Financier'!$D$16+'BP Financier'!$D$19+'BP Financier'!$E$16+'BP Financier'!$E$19+'BP Financier'!$C$22+'BP Financier'!$D$22+'BP Financier'!$E$22+'BP Financier'!$F$16+'BP Financier'!$F$19+'BP Financier'!$F$22+'BP Financier'!$G$16+'BP Financier'!$G$19+'BP Financier'!$G$22))*$V8268*AB8268/(1-$W8268)","v":{"v":12889.554340407152,"d":"12,890"}},null,{"v":1E-3,"d":"0.10%"},{"$f":"Actif!$E$28/100","v":{"v":0.28900000000000003,"d":"28.90%"}},{"$f":"Actif!$E$30/100","v":{"v":0.09050000000000001,"d":"9.05%"}},{"$f":"Actif!$E$31/100","v":{"v":0.0605,"d":"6.05%"}},{"$f":"Actif!$E$32/100","v":{"v":0.47350000000000003,"d":"47.35%"}},{"$f":"Actif!$E$33/100","v":{"v":0.0585,"d":"5.85%"}},{"$f":"Actif!$E$29/100","v":{"v":0.027999999999999997,"d":"2.80%"}}]
[null,"#156",49,2026,"H","A_VIE",{"v":0.44999999999999996,"d":"0.45"},{"v":0.38999999999999996,"d":"0.39"},0.6,0.6,85,0,{"$f":"ROUND(Primes!$Q$4*V8269,0)","v":11},{"$f":"'BP Financier'!$G$33*(('BP Financier'!$C$16+'BP Financier'!$D$16+'BP Financier'!$E$16+'BP Financier'!$F$16+'BP Financier'!$G$16)/('BP Financier'!$C$16+'BP Financier'!$C$19+'BP Financier'!$D$16+'BP Financier'!$D$19+'BP Financier'!$E$16+'BP Financier'!$E$19+'BP Financier'!$F$16+'BP Financier'!$F$19+'BP Financier'!$G$19+'BP Financier'!$G$16))*V8269","v":{"v":570278.6743187835,"d":"570,279"}},{"v":327302.6120010531,"d":"327,303"},{"$f":"'BP Financier'!$G$44*(('BP Financier'!$C$16+'BP Financier'!$D$16+'BP Financier'!$E$16+'BP Financier'!$F$16+'BP Financier'!$G$16)/('BP Financier'!$C$16+'BP Financier'!$C$19+'BP Financier'!$D$16+'BP Financier'!$D$19+'BP Financier'!$E$16+'BP Financier'!$E$19+'BP Financier'!$C$22+'BP Financier'!$D$22+'BP Financier'!$E$22+'BP Financier'!$F$16+'BP Financier'!$F$19+'BP Financier'!$F$22+'BP Financier'!$G$16+'BP Financier'!$G$19+'BP Financier'!$G$22))*$V8269*X8269/(1-$W8269)","v":{"v":41660.880993101695,"d":"41,661"}},{"$f":"'BP Financier'!$G$44*(('BP Financier'!$C$16+'BP Financier'!$D$16+'BP Financier'!$E$16+'BP Financier'!$F$16+'BP Financier'!$G$16)/('BP Financier'!$C$16+'BP Financier'!$C$19+'BP Financier'!$D$16+'BP Financier'!$D$19+'BP Financier'!$E$16+'BP Financier'!$E$19+'BP Financier'!$C$22+'BP Financier'!$D$22+'BP Financier'!$E$22+'BP Financier'!$F$16+'BP Financier'!$F$19+'BP Financier'!$F$22+'BP Financier'!$G$16+'BP Financier'!$G$19+'BP Financier'!$G$22))*$V8269*Y8269/(1-$W8269)","v":{"v":27850.644199808314,"d":"27,851"}},{"$f":"'BP Financier'!$G$44*(('BP Financier'!$C$16+'BP Financier'!$D$16+'BP Financier'!$E$16+'BP Financier'!$F$16+'BP Financier'!$G$16)/('BP Financier'!$C$16+'BP Financier'!$C$19+'BP Financier'!$D$16+'BP Financier'!$D$19+'BP Financier'!$E$16+'BP Financier'!$E$19+'BP Financier'!$C$22+'BP Financier'!$D$22+'BP Financier'!$E$22+'BP Financier'!$F$16+'BP Financier'!$F$19+'BP Financier'!$F$22+'BP Financier'!$G$16+'BP Financier'!$G$19+'BP Financier'!$G$22))*$V8269*Z8269/(1-$W8269)","v":{"v":217971.57072081385,"d":"217,972"}},{"$f":"'BP Financier'!$G$44*(('BP Financier'!$C$16+'BP Financier'!$D$16+'BP Financier'!$E$16+'BP Financier'!$F$16+'BP Financier'!$G$16)/('BP Financier'!$C$16+'BP Financier'!$C$19+'BP Financier'!$D$16+'BP Financier'!$D$19+'BP Financier'!$E$16+'BP Financier'!$E$19+'BP Financier'!$C$22+'BP Financier'!$D$22+'BP Financier'!$E$22+'BP Financier'!$F$16+'BP Financier'!$F$19+'BP Financier'!$F$22+'BP Financier'!$G$16+'BP Financier'!$G$19+'BP Financier'!$G$22))*$V8269*AA8269/(1-$W8269)","v":{"v":26929.96174692209,"d":"26,930"}},{"$f":"'BP Financier'!$G$44*(('BP Financier'!$C$16+'BP Financier'!$D$16+'BP Financier'!$E$16+'BP Financier'!$F$16+'BP Financier'!$G$16)/('BP Financier'!$C$16+'BP Financier'!$C$19+'BP Financier'!$D$16+'BP Financier'!$D$19+'BP Financier'!$E$16+'BP Financier'!$E$19+'BP Financier'!$C$22+'BP Financier'!$D$22+'BP Financier'!$E$22+'BP Financier'!$F$16+'BP Financier'!$F$19+'BP Financier'!$F$22+'BP Financier'!$G$16+'BP Financier'!$G$19+'BP Financier'!$G$22))*$V8269*AB8269/(1-$W8269)","v":{"v":12889.554340407152,"d":"12,890"}},null,{"v":1E-3,"d":"0.10%"},{"$f":"Actif!$E$28/100","v":{"v":0.28900000000000003,"d":"28.90%"}},{"$f":"Actif!$E$30/100","v":{"v":0.09050000000000001,"d":"9.05%"}},{"$f":"Actif!$E$31/100","v":{"v":0.0605,"d":"6.05%"}},{"$f":"Actif!$E$32/100","v":{"v":0.47350000000000003,"d":"47.35%"}},{"$f":"Actif!$E$33/100","v":{"v":0.0585,"d":"5.85%"}},{"$f":"Actif!$E$29/100","v":{"v":0.027999999999999997,"d":"2.80%"}}]
[null,"#157",49,2028,"H","A_VIE",{"v":0.44999999999999996,"d":"0.45"},{"v":0.38999999999999996,"d":"0.39"},0.6,0.6,85,0,{"$f":"ROUND(Primes!$Q$4*V8270,0)","v":11},{"$f":"'BP Financier'!$G$33*(('BP Financier'!$C$16+'BP Financier'!$D$16+'BP Financier'!$E$16+'BP Financier'!$F$16+'BP Financier'!$G$16)/('BP Financier'!$C$16+'BP Financier'!$C$19+'BP Financier'!$D$16+'BP Financier'!$D$19+'BP Financier'!$E$16+'BP Financier'!$E$19+'BP Financier'!$F$16+'BP Financier'!$F$19+'BP Financier'!$G$19+'BP Financier'!$G$16))*V8270","v":{"v":570278.6743187835,"d":"570,279"}},{"v":327302.6120010531,"d":"327,303"},{"$f":"'BP Financier'!$G$44*(('BP Financier'!$C$16+'BP Financier'!$D$16+'BP Financier'!$E$16+'BP Financier'!$F$16+'BP Financier'!$G$16)/('BP Financier'!$C$16+'BP Financier'!$C$19+'BP Financier'!$D$16+'BP Financier'!$D$19+'BP Financier'!$E$16+'BP Financier'!$E$19+'BP Financier'!$C$22+'BP Financier'!$D$22+'BP Financier'!$E$22+'BP Financier'!$F$16+'BP Financier'!$F$19+'BP Financier'!$F$22+'BP Financier'!$G$16+'BP Financier'!$G$19+'BP Financier'!$G$22))*$V8270*X8270/(1-$W8270)","v":{"v":41660.880993101695,"d":"41,661"}},{"$f":"'BP Financier'!$G$44*(('BP Financier'!$C$16+'BP Financier'!$D$16+'BP Financier'!$E$16+'BP Financier'!$F$16+'BP Financier'!$G$16)/('BP Financier'!$C$16+'BP Financier'!$C$19+'BP Financier'!$D$16+'BP Financier'!$D$19+'BP Financier'!$E$16+'BP Financier'!$E$19+'BP Financier'!$C$22+'BP Financier'!$D$22+'BP Financier'!$E$22+'BP Financier'!$F$16+'BP Financier'!$F$19+'BP Financier'!$F$22+'BP Financier'!$G$16+'BP Financier'!$G$19+'BP Financier'!$G$22))*$V8270*Y8270/(1-$W8270)","v":{"v":27850.644199808314,"d":"27,851"}},{"$f":"'BP Financier'!$G$44*(('BP Financier'!$C$16+'BP Financier'!$D$16+'BP Financier'!$E$16+'BP Financier'!$F$16+'BP Financier'!$G$16)/('BP Financier'!$C$16+'BP Financier'!$C$19+'BP Financier'!$D$16+'BP Financier'!$D$19+'BP Financier'!$E$16+'BP Financier'!$E$19+'BP Financier'!$C$22+'BP Financier'!$D$22+'BP Financier'!$E$22+'BP Financier'!$F$16+'BP Financier'!$F$19+'BP Financier'!$F$22+'BP Financier'!$G$16+'BP Financier'!$G$19+'BP Financier'!$G$22))*$V8270*Z8270/(1-$W8270)","v":{"v":217971.57072081385,"d":"217,972"}},{"$f":"'BP Financier'!$G$44*(('BP Financier'!$C$16+'BP Financier'!$D$16+'BP Financier'!$E$16+'BP Financier'!$F$16+'BP Financier'!$G$16)/('BP Financier'!$C$16+'BP Financier'!$C$19+'BP Financier'!$D$16+'BP Financier'!$D$19+'BP Financier'!$E$16+'BP Financier'!$E$19+'BP Financier'!$C$22+'BP Financier'!$D$22+'BP Financier'!$E$22+'BP Financier'!$F$16+'BP Financier'!$F$19+'BP Financier'!$F$22+'BP Financier'!$G$16+'BP Financier'!$G$19+'BP Financier'!$G$22))*$V8270*AA8270/(1-$W8270)","v":{"v":26929.96174692209,"d":"26,930"}},{"$f":"'BP Financier'!$G$44*(('BP Financier'!$C$16+'BP Financier'!$D$16+'BP Financier'!$E$16+'BP Financier'!$F$16+'BP Financier'!$G$16)/('BP Financier'!$C$16+'BP Financier'!$C$19+'BP Financier'!$D$16+'BP Financier'!$D$19+'BP Financier'!$E$16+'BP Financier'!$E$19+'BP Financier'!$C$22+'BP Financier'!$D$22+'BP Financier'!$E$22+'BP Financier'!$F$16+'BP Financier'!$F$19+'BP Financier'!$F$22+'BP Financier'!$G$16+'BP Financier'!$G$19+'BP Financier'!$G$22))*$V8270*AB8270/(1-$W8270)","v":{"v":12889.554340407152,"d":"12,890"}},null,{"v":1E-3,"d":"0.10%"},{"$f":"Actif!$E$28/100","v":{"v":0.28900000000000003,"d":"28.90%"}},{"$f":"Actif!$E$30/100","v":{"v":0.09050000000000001,"d":"9.05%"}},{"$f":"Actif!$E$31/100","v":{"v":0.0605,"d":"6.05%"}},{"$f":"Actif!$E$32/100","v":{"v":0.47350000000000003,"d":"47.35%"}},{"$f":"Actif!$E$33/100","v":{"v":0.0585,"d":"5.85%"}},{"$f":"Actif!$E$29/100","v":{"v":0.027999999999999997,"d":"2.80%"}}]
[null,"#158",49,2029,"H","A_VIE",{"v":0.44999999999999996,"d":"0.45"},{"v":0.38999999999999996,"d":"0.39"},0.6,0.6,85,0,{"$f":"ROUND(Primes!$Q$4*V8271,0)","v":11},{"$f":"'BP Financier'!$G$33*(('BP Financier'!$C$16+'BP Financier'!$D$16+'BP Financier'!$E$16+'BP Financier'!$F$16+'BP Financier'!$G$16)/('BP Financier'!$C$16+'BP Financier'!$C$19+'BP Financier'!$D$16+'BP Financier'!$D$19+'BP Financier'!$E$16+'BP Financier'!$E$19+'BP Financier'!$F$16+'BP Financier'!$F$19+'BP Financier'!$G$19+'BP Financier'!$G$16))*V8271","v":{"v":570278.6743187835,"d":"570,279"}},{"v":327302.6120010531,"d":"327,303"},{"$f":"'BP Financier'!$G$44*(('BP Financier'!$C$16+'BP Financier'!$D$16+'BP Financier'!$E$16+'BP Financier'!$F$16+'BP Financier'!$G$16)/('BP Financier'!$C$16+'BP Financier'!$C$19+'BP Financier'!$D$16+'BP Financier'!$D$19+'BP Financier'!$E$16+'BP Financier'!$E$19+'BP Financier'!$C$22+'BP Financier'!$D$22+'BP Financier'!$E$22+'BP Financier'!$F$16+'BP Financier'!$F$19+'BP Financier'!$F$22+'BP Financier'!$G$16+'BP Financier'!$G$19+'BP Financier'!$G$22))*$V8271*X8271/(1-$W8271)","v":{"v":41660.880993101695,"d":"41,661"}},{"$f":"'BP Financier'!$G$44*(('BP Financier'!$C$16+'BP Financier'!$D$16+'BP Financier'!$E$16+'BP Financier'!$F$16+'BP Financier'!$G$16)/('BP Financier'!$C$16+'BP Financier'!$C$19+'BP Financier'!$D$16+'BP Financier'!$D$19+'BP Financier'!$E$16+'BP Financier'!$E$19+'BP Financier'!$C$22+'BP Financier'!$D$22+'BP Financier'!$E$22+'BP Financier'!$F$16+'BP Financier'!$F$19+'BP Financier'!$F$22+'BP Financier'!$G$16+'BP Financier'!$G$19+'BP Financier'!$G$22))*$V8271*Y8271/(1-$W8271)","v":{"v":27850.644199808314,"d":"27,851"}},{"$f":"'BP Financier'!$G$44*(('BP Financier'!$C$16+'BP Financier'!$D$16+'BP Financier'!$E$16+'BP Financier'!$F$16+'BP Financier'!$G$16)/('BP Financier'!$C$16+'BP Financier'!$C$19+'BP Financier'!$D$16+'BP Financier'!$D$19+'BP Financier'!$E$16+'BP Financier'!$E$19+'BP Financier'!$C$22+'BP Financier'!$D$22+'BP Financier'!$E$22+'BP Financier'!$F$16+'BP Financier'!$F$19+'BP Financier'!$F$22+'BP Financier'!$G$16+'BP Financier'!$G$19+'BP Financier'!$G$22))*$V8271*Z8271/(1-$W8271)","v":{"v":217971.57072081385,"d":"217,972"}},{"$f":"'BP Financier'!$G$44*(('BP Financier'!$C$16+'BP Financier'!$D$16+'BP Financier'!$E$16+'BP Financier'!$F$16+'BP Financier'!$G$16)/('BP Financier'!$C$16+'BP Financier'!$C$19+'BP Financier'!$D$16+'BP Financier'!$D$19+'BP Financier'!$E$16+'BP Financier'!$E$19+'BP Financier'!$C$22+'BP Financier'!$D$22+'BP Financier'!$E$22+'BP Financier'!$F$16+'BP Financier'!$F$19+'BP Financier'!$F$22+'BP Financier'!$G$16+'BP Financier'!$G$19+'BP Financier'!$G$22))*$V8271*AA8271/(1-$W8271)","v":{"v":26929.96174692209,"d":"26,930"}},{"$f":"'BP Financier'!$G$44*(('BP Financier'!$C$16+'BP Financier'!$D$16+'BP Financier'!$E$16+'BP Financier'!$F$16+'BP Financier'!$G$16)/('BP Financier'!$C$16+'BP Financier'!$C$19+'BP Financier'!$D$16+'BP Financier'!$D$19+'BP Financier'!$E$16+'BP Financier'!$E$19+'BP Financier'!$C$22+'BP Financier'!$D$22+'BP Financier'!$E$22+'BP Financier'!$F$16+'BP Financier'!$F$19+'BP Financier'!$F$22+'BP Financier'!$G$16+'BP Financier'!$G$19+'BP Financier'!$G$22))*$V8271*AB8271/(1-$W8271)","v":{"v":12889.554340407152,"d":"12,890"}},null,{"v":1E-3,"d":"0.10%"},{"$f":"Actif!$E$28/100","v":{"v":0.28900000000000003,"d":"28.90%"}},{"$f":"Actif!$E$30/100","v":{"v":0.09050000000000001,"d":"9.05%"}},{"$f":"Actif!$E$31/100","v":{"v":0.0605,"d":"6.05%"}},{"$f":"Actif!$E$32/100","v":{"v":0.47350000000000003,"d":"47.35%"}},{"$f":"Actif!$E$33/100","v":{"v":0.0585,"d":"5.85%"}},{"$f":"Actif!$E$29/100","v":{"v":0.027999999999999997,"d":"2.80%"}}]
[null,"#159",49,2030,"H","A_VIE",{"v":0.44999999999999996,"d":"0.45"},{"v":0.38999999999999996,"d":"0.39"},0.6,0.6,85,0,{"$f":"ROUND(Primes!$Q$4*V8272,0)","v":11},{"$f":"'BP Financier'!$G$33*(('BP Financier'!$C$16+'BP Financier'!$D$16+'BP Financier'!$E$16+'BP Financier'!$F$16+'BP Financier'!$G$16)/('BP Financier'!$C$16+'BP Financier'!$C$19+'BP Financier'!$D$16+'BP Financier'!$D$19+'BP Financier'!$E$16+'BP Financier'!$E$19+'BP Financier'!$F$16+'BP Financier'!$F$19+'BP Financier'!$G$19+'BP Financier'!$G$16))*V8272","v":{"v":570278.6743187835,"d":"570,279"}},{"v":327302.6120010531,"d":"327,303"},{"$f":"'BP Financier'!$G$44*(('BP Financier'!$C$16+'BP Financier'!$D$16+'BP Financier'!$E$16+'BP Financier'!$F$16+'BP Financier'!$G$16)/('BP Financier'!$C$16+'BP Financier'!$C$19+'BP Financier'!$D$16+'BP Financier'!$D$19+'BP Financier'!$E$16+'BP Financier'!$E$19+'BP Financier'!$C$22+'BP Financier'!$D$22+'BP Financier'!$E$22+'BP Financier'!$F$16+'BP Financier'!$F$19+'BP Financier'!$F$22+'BP Financier'!$G$16+'BP Financier'!$G$19+'BP Financier'!$G$22))*$V8272*X8272/(1-$W8272)","v":{"v":41660.880993101695,"d":"41,661"}},{"$f":"'BP Financier'!$G$44*(('BP Financier'!$C$16+'BP Financier'!$D$16+'BP Financier'!$E$16+'BP Financier'!$F$16+'BP Financier'!$G$16)/('BP Financier'!$C$16+'BP Financier'!$C$19+'BP Financier'!$D$16+'BP Financier'!$D$19+'BP Financier'!$E$16+'BP Financier'!$E$19+'BP Financier'!$C$22+'BP Financier'!$D$22+'BP Financier'!$E$22+'BP Financier'!$F$16+'BP Financier'!$F$19+'BP Financier'!$F$22+'BP Financier'!$G$16+'BP Financier'!$G$19+'BP Financier'!$G$22))*$V8272*Y8272/(1-$W8272)","v":{"v":27850.644199808314,"d":"27,851"}},{"$f":"'BP Financier'!$G$44*(('BP Financier'!$C$16+'BP Financier'!$D$16+'BP Financier'!$E$16+'BP Financier'!$F$16+'BP Financier'!$G$16)/('BP Financier'!$C$16+'BP Financier'!$C$19+'BP Financier'!$D$16+'BP Financier'!$D$19+'BP Financier'!$E$16+'BP Financier'!$E$19+'BP Financier'!$C$22+'BP Financier'!$D$22+'BP Financier'!$E$22+'BP Financier'!$F$16+'BP Financier'!$F$19+'BP Financier'!$F$22+'BP Financier'!$G$16+'BP Financier'!$G$19+'BP Financier'!$G$22))*$V8272*Z8272/(1-$W8272)","v":{"v":217971.57072081385,"d":"217,972"}},{"$f":"'BP Financier'!$G$44*(('BP Financier'!$C$16+'BP Financier'!$D$16+'BP Financier'!$E$16+'BP Financier'!$F$16+'BP Financier'!$G$16)/('BP Financier'!$C$16+'BP Financier'!$C$19+'BP Financier'!$D$16+'BP Financier'!$D$19+'BP Financier'!$E$16+'BP Financier'!$E$19+'BP Financier'!$C$22+'BP Financier'!$D$22+'BP Financier'!$E$22+'BP Financier'!$F$16+'BP Financier'!$F$19+'BP Financier'!$F$22+'BP Financier'!$G$16+'BP Financier'!$G$19+'BP Financier'!$G$22))*$V8272*AA8272/(1-$W8272)","v":{"v":26929.96174692209,"d":"26,930"}},{"$f":"'BP Financier'!$G$44*(('BP Financier'!$C$16+'BP Financier'!$D$16+'BP Financier'!$E$16+'BP Financier'!$F$16+'BP Financier'!$G$16)/('BP Financier'!$C$16+'BP Financier'!$C$19+'BP Financier'!$D$16+'BP Financier'!$D$19+'BP Financier'!$E$16+'BP Financier'!$E$19+'BP Financier'!$C$22+'BP Financier'!$D$22+'BP Financier'!$E$22+'BP Financier'!$F$16+'BP Financier'!$F$19+'BP Financier'!$F$22+'BP Financier'!$G$16+'BP Financier'!$G$19+'BP Financier'!$G$22))*$V8272*AB8272/(1-$W8272)","v":{"v":12889.554340407152,"d":"12,890"}},null,{"v":1E-3,"d":"0.10%"},{"$f":"Actif!$E$28/100","v":{"v":0.28900000000000003,"d":"28.90%"}},{"$f":"Actif!$E$30/100","v":{"v":0.09050000000000001,"d":"9.05%"}},{"$f":"Actif!$E$31/100","v":{"v":0.0605,"d":"6.05%"}},{"$f":"Actif!$E$32/100","v":{"v":0.47350000000000003,"d":"47.35%"}},{"$f":"Actif!$E$33/100","v":{"v":0.0585,"d":"5.85%"}},{"$f":"Actif!$E$29/100","v":{"v":0.027999999999999997,"d":"2.80%"}}]
[null,"#160",49,2031,"H","A_VIE",{"v":0.44999999999999996,"d":"0.45"},{"v":0.38999999999999996,"d":"0.39"},0.6,0.6,85,0,{"$f":"ROUND(Primes!$Q$4*V8273,0)","v":11},{"$f":"'BP Financier'!$G$33*(('BP Financier'!$C$16+'BP Financier'!$D$16+'BP Financier'!$E$16+'BP Financier'!$F$16+'BP Financier'!$G$16)/('BP Financier'!$C$16+'BP Financier'!$C$19+'BP Financier'!$D$16+'BP Financier'!$D$19+'BP Financier'!$E$16+'BP Financier'!$E$19+'BP Financier'!$F$16+'BP Financier'!$F$19+'BP Financier'!$G$19+'BP Financier'!$G$16))*V8273","v":{"v":570278.6743187835,"d":"570,279"}},{"v":327302.6120010531,"d":"327,303"},{"$f":"'BP Financier'!$G$44*(('BP Financier'!$C$16+'BP Financier'!$D$16+'BP Financier'!$E$16+'BP Financier'!$F$16+'BP Financier'!$G$16)/('BP Financier'!$C$16+'BP Financier'!$C$19+'BP Financier'!$D$16+'BP Financier'!$D$19+'BP Financier'!$E$16+'BP Financier'!$E$19+'BP Financier'!$C$22+'BP Financier'!$D$22+'BP Financier'!$E$22+'BP Financier'!$F$16+'BP Financier'!$F$19+'BP Financier'!$F$22+'BP Financier'!$G$16+'BP Financier'!$G$19+'BP Financier'!$G$22))*$V8273*X8273/(1-$W8273)","v":{"v":41660.880993101695,"d":"41,661"}},{"$f":"'BP Financier'!$G$44*(('BP Financier'!$C$16+'BP Financier'!$D$16+'BP Financier'!$E$16+'BP Financier'!$F$16+'BP Financier'!$G$16)/('BP Financier'!$C$16+'BP Financier'!$C$19+'BP Financier'!$D$16+'BP Financier'!$D$19+'BP Financier'!$E$16+'BP Financier'!$E$19+'BP Financier'!$C$22+'BP Financier'!$D$22+'BP Financier'!$E$22+'BP Financier'!$F$16+'BP Financier'!$F$19+'BP Financier'!$F$22+'BP Financier'!$G$16+'BP Financier'!$G$19+'BP Financier'!$G$22))*$V8273*Y8273/(1-$W8273)","v":{"v":27850.644199808314,"d":"27,851"}},{"$f":"'BP Financier'!$G$44*(('BP Financier'!$C$16+'BP Financier'!$D$16+'BP Financier'!$E$16+'BP Financier'!$F$16+'BP Financier'!$G$16)/('BP Financier'!$C$16+'BP Financier'!$C$19+'BP Financier'!$D$16+'BP Financier'!$D$19+'BP Financier'!$E$16+'BP Financier'!$E$19+'BP Financier'!$C$22+'BP Financier'!$D$22+'BP Financier'!$E$22+'BP Financier'!$F$16+'BP Financier'!$F$19+'BP Financier'!$F$22+'BP Financier'!$G$16+'BP Financier'!$G$19+'BP Financier'!$G$22))*$V8273*Z8273/(1-$W8273)","v":{"v":217971.57072081385,"d":"217,972"}},{"$f":"'BP Financier'!$G$44*(('BP Financier'!$C$16+'BP Financier'!$D$16+'BP Financier'!$E$16+'BP Financier'!$F$16+'BP Financier'!$G$16)/('BP Financier'!$C$16+'BP Financier'!$C$19+'BP Financier'!$D$16+'BP Financier'!$D$19+'BP Financier'!$E$16+'BP Financier'!$E$19+'BP Financier'!$C$22+'BP Financier'!$D$22+'BP Financier'!$E$22+'BP Financier'!$F$16+'BP Financier'!$F$19+'BP Financier'!$F$22+'BP Financier'!$G$16+'BP Financier'!$G$19+'BP Financier'!$G$22))*$V8273*AA8273/(1-$W8273)","v":{"v":26929.96174692209,"d":"26,930"}},{"$f":"'BP Financier'!$G$44*(('BP Financier'!$C$16+'BP Financier'!$D$16+'BP Financier'!$E$16+'BP Financier'!$F$16+'BP Financier'!$G$16)/('BP Financier'!$C$16+'BP Financier'!$C$19+'BP Financier'!$D$16+'BP Financier'!$D$19+'BP Financier'!$E$16+'BP Financier'!$E$19+'BP Financier'!$C$22+'BP Financier'!$D$22+'BP Financier'!$E$22+'BP Financier'!$F$16+'BP Financier'!$F$19+'BP Financier'!$F$22+'BP Financier'!$G$16+'BP Financier'!$G$19+'BP Financier'!$G$22))*$V8273*AB8273/(1-$W8273)","v":{"v":12889.554340407152,"d":"12,890"}},null,{"v":1E-3,"d":"0.10%"},{"$f":"Actif!$E$28/100","v":{"v":0.28900000000000003,"d":"28.90%"}},{"$f":"Actif!$E$30/100","v":{"v":0.09050000000000001,"d":"9.05%"}},{"$f":"Actif!$E$31/100","v":{"v":0.0605,"d":"6.05%"}},{"$f":"Actif!$E$32/100","v":{"v":0.47350000000000003,"d":"47.35%"}},{"$f":"Actif!$E$33/100","v":{"v":0.0585,"d":"5.85%"}},{"$f":"Actif!$E$29/100","v":{"v":0.027999999999999997,"d":"2.80%"}}]
[null,"#161",50,2026,"F","A_VIE",{"v":0.44999999999999996,"d":"0.45"},{"v":0.38999999999999996,"d":"0.39"},0.6,0.6,85,0,{"$f":"ROUND(Primes!$Q$4*V8274,0)","v":68},{"$f":"'BP Financier'!$G$33*(('BP Financier'!$C$16+'BP Financier'!$D$16+'BP Financier'!$E$16+'BP Financier'!$F$16+'BP Financier'!$G$16)/('BP Financier'!$C$16+'BP Financier'!$C$19+'BP Financier'!$D$16+'BP Financier'!$D$19+'BP Financier'!$E$16+'BP Financier'!$E$19+'BP Financier'!$F$16+'BP Financier'!$F$19+'BP Financier'!$G$19+'BP Financier'!$G$16))*V8274","v":{"v":3421672.0459127007,"d":"3,421,672"}},{"v":1963815.672006318,"d":"1,963,816"},{"$f":"'BP Financier'!$G$44*(('BP Financier'!$C$16+'BP Financier'!$D$16+'BP Financier'!$E$16+'BP Financier'!$F$16+'BP Financier'!$G$16)/('BP Financier'!$C$16+'BP Financier'!$C$19+'BP Financier'!$D$16+'BP Financier'!$D$19+'BP Financier'!$E$16+'BP Financier'!$E$19+'BP Financier'!$C$22+'BP Financier'!$D$22+'BP Financier'!$E$22+'BP Financier'!$F$16+'BP Financier'!$F$19+'BP Financier'!$F$22+'BP Financier'!$G$16+'BP Financier'!$G$19+'BP Financier'!$G$22))*$V8274*X8274/(1-$W8274)","v":{"v":249965.28595861018,"d":"249,965"}},{"$f":"'BP Financier'!$G$44*(('BP Financier'!$C$16+'BP Financier'!$D$16+'BP Financier'!$E$16+'BP Financier'!$F$16+'BP Financier'!$G$16)/('BP Financier'!$C$16+'BP Financier'!$C$19+'BP Financier'!$D$16+'BP Financier'!$D$19+'BP Financier'!$E$16+'BP Financier'!$E$19+'BP Financier'!$C$22+'BP Financier'!$D$22+'BP Financier'!$E$22+'BP Financier'!$F$16+'BP Financier'!$F$19+'BP Financier'!$F$22+'BP Financier'!$G$16+'BP Financier'!$G$19+'BP Financier'!$G$22))*$V8274*Y8274/(1-$W8274)","v":{"v":167103.86519884988,"d":"167,104"}},{"$f":"'BP Financier'!$G$44*(('BP Financier'!$C$16+'BP Financier'!$D$16+'BP Financier'!$E$16+'BP Financier'!$F$16+'BP Financier'!$G$16)/('BP Financier'!$C$16+'BP Financier'!$C$19+'BP Financier'!$D$16+'BP Financier'!$D$19+'BP Financier'!$E$16+'BP Financier'!$E$19+'BP Financier'!$C$22+'BP Financier'!$D$22+'BP Financier'!$E$22+'BP Financier'!$F$16+'BP Financier'!$F$19+'BP Financier'!$F$22+'BP Financier'!$G$16+'BP Financier'!$G$19+'BP Financier'!$G$22))*$V8274*Z8274/(1-$W8274)","v":{"v":1307829.424324883,"d":"1,307,829"}},{"$f":"'BP Financier'!$G$44*(('BP Financier'!$C$16+'BP Financier'!$D$16+'BP Financier'!$E$16+'BP Financier'!$F$16+'BP Financier'!$G$16)/('BP Financier'!$C$16+'BP Financier'!$C$19+'BP Financier'!$D$16+'BP Financier'!$D$19+'BP Financier'!$E$16+'BP Financier'!$E$19+'BP Financier'!$C$22+'BP Financier'!$D$22+'BP Financier'!$E$22+'BP Financier'!$F$16+'BP Financier'!$F$19+'BP Financier'!$F$22+'BP Financier'!$G$16+'BP Financier'!$G$19+'BP Financier'!$G$22))*$V8274*AA8274/(1-$W8274)","v":{"v":161579.77048153256,"d":"161,580"}},{"$f":"'BP Financier'!$G$44*(('BP Financier'!$C$16+'BP Financier'!$D$16+'BP Financier'!$E$16+'BP Financier'!$F$16+'BP Financier'!$G$16)/('BP Financier'!$C$16+'BP Financier'!$C$19+'BP Financier'!$D$16+'BP Financier'!$D$19+'BP Financier'!$E$16+'BP Financier'!$E$19+'BP Financier'!$C$22+'BP Financier'!$D$22+'BP Financier'!$E$22+'BP Financier'!$F$16+'BP Financier'!$F$19+'BP Financier'!$F$22+'BP Financier'!$G$16+'BP Financier'!$G$19+'BP Financier'!$G$22))*$V8274*AB8274/(1-$W8274)","v":{"v":77337.32604244292,"d":"77,337"}},null,{"v":0.006,"d":"0.60%"},{"$f":"Actif!$E$28/100","v":{"v":0.28900000000000003,"d":"28.90%"}},{"$f":"Actif!$E$30/100","v":{"v":0.09050000000000001,"d":"9.05%"}},{"$f":"Actif!$E$31/100","v":{"v":0.0605,"d":"6.05%"}},{"$f":"Actif!$E$32/100","v":{"v":0.47350000000000003,"d":"47.35%"}},{"$f":"Actif!$E$33/100","v":{"v":0.0585,"d":"5.85%"}},{"$f":"Actif!$E$29/100","v":{"v":0.027999999999999997,"d":"2.80%"}}]
[null,"#162",50,2028,"F","A_VIE",{"v":0.44999999999999996,"d":"0.45"},{"v":0.38999999999999996,"d":"0.39"},0.6,0.6,85,0,{"$f":"ROUND(Primes!$Q$4*V8275,0)","v":68},{"$f":"'BP Financier'!$G$33*(('BP Financier'!$C$16+'BP Financier'!$D$16+'BP Financier'!$E$16+'BP Financier'!$F$16+'BP Financier'!$G$16)/('BP Financier'!$C$16+'BP Financier'!$C$19+'BP Financier'!$D$16+'BP Financier'!$D$19+'BP Financier'!$E$16+'BP Financier'!$E$19+'BP Financier'!$F$16+'BP Financier'!$F$19+'BP Financier'!$G$19+'BP Financier'!$G$16))*V8275","v":{"v":3421672.0459127007,"d":"3,421,672"}},{"$f":"SUM(P8275:T8275)","v":{"v":1963815.672006318,"d":"1,963,816"}},{"$f":"'BP Financier'!$G$44*(('BP Financier'!$C$16+'BP Financier'!$D$16+'BP Financier'!$E$16+'BP Financier'!$F$16+'BP Financier'!$G$16)/('BP Financier'!$C$16+'BP Financier'!$C$19+'BP Financier'!$D$16+'BP Financier'!$D$19+'BP Financier'!$E$16+'BP Financier'!$E$19+'BP Financier'!$C$22+'BP Financier'!$D$22+'BP Financier'!$E$22+'BP Financier'!$F$16+'BP Financier'!$F$19+'BP Financier'!$F$22+'BP Financier'!$G$16+'BP Financier'!$G$19+'BP Financier'!$G$22))*$V8275*X8275/(1-$W8275)","v":{"v":249965.28595861018,"d":"249,965"}},{"$f":"'BP Financier'!$G$44*(('BP Financier'!$C$16+'BP Financier'!$D$16+'BP Financier'!$E$16+'BP Financier'!$F$16+'BP Financier'!$G$16)/('BP Financier'!$C$16+'BP Financier'!$C$19+'BP Financier'!$D$16+'BP Financier'!$D$19+'BP Financier'!$E$16+'BP Financier'!$E$19+'BP Financier'!$C$22+'BP Financier'!$D$22+'BP Financier'!$E$22+'BP Financier'!$F$16+'BP Financier'!$F$19+'BP Financier'!$F$22+'BP Financier'!$G$16+'BP Financier'!$G$19+'BP Financier'!$G$22))*$V8275*Y8275/(1-$W8275)","v":{"v":167103.86519884988,"d":"167,104"}},{"$f":"'BP Financier'!$G$44*(('BP Financier'!$C$16+'BP Financier'!$D$16+'BP Financier'!$E$16+'BP Financier'!$F$16+'BP Financier'!$G$16)/('BP Financier'!$C$16+'BP Financier'!$C$19+'BP Financier'!$D$16+'BP Financier'!$D$19+'BP Financier'!$E$16+'BP Financier'!$E$19+'BP Financier'!$C$22+'BP Financier'!$D$22+'BP Financier'!$E$22+'BP Financier'!$F$16+'BP Financier'!$F$19+'BP Financier'!$F$22+'BP Financier'!$G$16+'BP Financier'!$G$19+'BP Financier'!$G$22))*$V8275*Z8275/(1-$W8275)","v":{"v":1307829.424324883,"d":"1,307,829"}},{"$f":"'BP Financier'!$G$44*(('BP Financier'!$C$16+'BP Financier'!$D$16+'BP Financier'!$E$16+'BP Financier'!$F$16+'BP Financier'!$G$16)/('BP Financier'!$C$16+'BP Financier'!$C$19+'BP Financier'!$D$16+'BP Financier'!$D$19+'BP Financier'!$E$16+'BP Financier'!$E$19+'BP Financier'!$C$22+'BP Financier'!$D$22+'BP Financier'!$E$22+'BP Financier'!$F$16+'BP Financier'!$F$19+'BP Financier'!$F$22+'BP Financier'!$G$16+'BP Financier'!$G$19+'BP Financier'!$G$22))*$V8275*AA8275/(1-$W8275)","v":{"v":161579.77048153256,"d":"161,580"}},{"$f":"'BP Financier'!$G$44*(('BP Financier'!$C$16+'BP Financier'!$D$16+'BP Financier'!$E$16+'BP Financier'!$F$16+'BP Financier'!$G$16)/('BP Financier'!$C$16+'BP Financier'!$C$19+'BP Financier'!$D$16+'BP Financier'!$D$19+'BP Financier'!$E$16+'BP Financier'!$E$19+'BP Financier'!$C$22+'BP Financier'!$D$22+'BP Financier'!$E$22+'BP Financier'!$F$16+'BP Financier'!$F$19+'BP Financier'!$F$22+'BP Financier'!$G$16+'BP Financier'!$G$19+'BP Financier'!$G$22))*$V8275*AB8275/(1-$W8275)","v":{"v":77337.32604244292,"d":"77,337"}},null,{"v":0.006,"d":"0.60%"},{"$f":"Actif!$E$28/100","v":{"v":0.28900000000000003,"d":"28.90%"}},{"$f":"Actif!$E$30/100","v":{"v":0.09050000000000001,"d":"9.05%"}},{"$f":"Actif!$E$31/100","v":{"v":0.0605,"d":"6.05%"}},{"$f":"Actif!$E$32/100","v":{"v":0.47350000000000003,"d":"47.35%"}},{"$f":"Actif!$E$33/100","v":{"v":0.0585,"d":"5.85%"}},{"$f":"Actif!$E$29/100","v":{"v":0.027999999999999997,"d":"2.80%"}}]
[null,"#163",50,2029,"F","A_VIE",{"v":0.44999999999999996,"d":"0.45"},{"v":0.38999999999999996,"d":"0.39"},0.6,0.6,85,0,{"$f":"ROUND(Primes!$Q$4*V8276,0)","v":68},{"$f":"'BP Financier'!$G$33*(('BP Financier'!$C$16+'BP Financier'!$D$16+'BP Financier'!$E$16+'BP Financier'!$F$16+'BP Financier'!$G$16)/('BP Financier'!$C$16+'BP Financier'!$C$19+'BP Financier'!$D$16+'BP Financier'!$D$19+'BP Financier'!$E$16+'BP Financier'!$E$19+'BP Financier'!$F$16+'BP Financier'!$F$19+'BP Financier'!$G$19+'BP Financier'!$G$16))*V8276","v":{"v":3421672.0459127007,"d":"3,421,672"}},{"v":1963815.672006318,"d":"1,963,816"},{"$f":"'BP Financier'!$G$44*(('BP Financier'!$C$16+'BP Financier'!$D$16+'BP Financier'!$E$16+'BP Financier'!$F$16+'BP Financier'!$G$16)/('BP Financier'!$C$16+'BP Financier'!$C$19+'BP Financier'!$D$16+'BP Financier'!$D$19+'BP Financier'!$E$16+'BP Financier'!$E$19+'BP Financier'!$C$22+'BP Financier'!$D$22+'BP Financier'!$E$22+'BP Financier'!$F$16+'BP Financier'!$F$19+'BP Financier'!$F$22+'BP Financier'!$G$16+'BP Financier'!$G$19+'BP Financier'!$G$22))*$V8276*X8276/(1-$W8276)","v":{"v":249965.28595861018,"d":"249,965"}},{"$f":"'BP Financier'!$G$44*(('BP Financier'!$C$16+'BP Financier'!$D$16+'BP Financier'!$E$16+'BP Financier'!$F$16+'BP Financier'!$G$16)/('BP Financier'!$C$16+'BP Financier'!$C$19+'BP Financier'!$D$16+'BP Financier'!$D$19+'BP Financier'!$E$16+'BP Financier'!$E$19+'BP Financier'!$C$22+'BP Financier'!$D$22+'BP Financier'!$E$22+'BP Financier'!$F$16+'BP Financier'!$F$19+'BP Financier'!$F$22+'BP Financier'!$G$16+'BP Financier'!$G$19+'BP Financier'!$G$22))*$V8276*Y8276/(1-$W8276)","v":{"v":167103.86519884988,"d":"167,104"}},{"$f":"'BP Financier'!$G$44*(('BP Financier'!$C$16+'BP Financier'!$D$16+'BP Financier'!$E$16+'BP Financier'!$F$16+'BP Financier'!$G$16)/('BP Financier'!$C$16+'BP Financier'!$C$19+'BP Financier'!$D$16+'BP Financier'!$D$19+'BP Financier'!$E$16+'BP Financier'!$E$19+'BP Financier'!$C$22+'BP Financier'!$D$22+'BP Financier'!$E$22+'BP Financier'!$F$16+'BP Financier'!$F$19+'BP Financier'!$F$22+'BP Financier'!$G$16+'BP Financier'!$G$19+'BP Financier'!$G$22))*$V8276*Z8276/(1-$W8276)","v":{"v":1307829.424324883,"d":"1,307,829"}},{"$f":"'BP Financier'!$G$44*(('BP Financier'!$C$16+'BP Financier'!$D$16+'BP Financier'!$E$16+'BP Financier'!$F$16+'BP Financier'!$G$16)/('BP Financier'!$C$16+'BP Financier'!$C$19+'BP Financier'!$D$16+'BP Financier'!$D$19+'BP Financier'!$E$16+'BP Financier'!$E$19+'BP Financier'!$C$22+'BP Financier'!$D$22+'BP Financier'!$E$22+'BP Financier'!$F$16+'BP Financier'!$F$19+'BP Financier'!$F$22+'BP Financier'!$G$16+'BP Financier'!$G$19+'BP Financier'!$G$22))*$V8276*AA8276/(1-$W8276)","v":{"v":161579.77048153256,"d":"161,580"}},{"$f":"'BP Financier'!$G$44*(('BP Financier'!$C$16+'BP Financier'!$D$16+'BP Financier'!$E$16+'BP Financier'!$F$16+'BP Financier'!$G$16)/('BP Financier'!$C$16+'BP Financier'!$C$19+'BP Financier'!$D$16+'BP Financier'!$D$19+'BP Financier'!$E$16+'BP Financier'!$E$19+'BP Financier'!$C$22+'BP Financier'!$D$22+'BP Financier'!$E$22+'BP Financier'!$F$16+'BP Financier'!$F$19+'BP Financier'!$F$22+'BP Financier'!$G$16+'BP Financier'!$G$19+'BP Financier'!$G$22))*$V8276*AB8276/(1-$W8276)","v":{"v":77337.32604244292,"d":"77,337"}},null,{"v":0.006,"d":"0.60%"},{"$f":"Actif!$E$28/100","v":{"v":0.28900000000000003,"d":"28.90%"}},{"$f":"Actif!$E$30/100","v":{"v":0.09050000000000001,"d":"9.05%"}},{"$f":"Actif!$E$31/100","v":{"v":0.0605,"d":"6.05%"}},{"$f":"Actif!$E$32/100","v":{"v":0.47350000000000003,"d":"47.35%"}},{"$f":"Actif!$E$33/100","v":{"v":0.0585,"d":"5.85%"}},{"$f":"Actif!$E$29/100","v":{"v":0.027999999999999997,"d":"2.80%"}}]
[null,"#164",50,2030,"F","A_VIE",{"v":0.44999999999999996,"d":"0.45"},{"v":0.38999999999999996,"d":"0.39"},0.6,0.6,85,0,{"$f":"ROUND(Primes!$Q$4*V8277,0)","v":68},{"$f":"'BP Financier'!$G$33*(('BP Financier'!$C$16+'BP Financier'!$D$16+'BP Financier'!$E$16+'BP Financier'!$F$16+'BP Financier'!$G$16)/('BP Financier'!$C$16+'BP Financier'!$C$19+'BP Financier'!$D$16+'BP Financier'!$D$19+'BP Financier'!$E$16+'BP Financier'!$E$19+'BP Financier'!$F$16+'BP Financier'!$F$19+'BP Financier'!$G$19+'BP Financier'!$G$16))*V8277","v":{"v":3421672.0459127007,"d":"3,421,672"}},{"v":1963815.672006318,"d":"1,963,816"},{"$f":"'BP Financier'!$G$44*(('BP Financier'!$C$16+'BP Financier'!$D$16+'BP Financier'!$E$16+'BP Financier'!$F$16+'BP Financier'!$G$16)/('BP Financier'!$C$16+'BP Financier'!$C$19+'BP Financier'!$D$16+'BP Financier'!$D$19+'BP Financier'!$E$16+'BP Financier'!$E$19+'BP Financier'!$C$22+'BP Financier'!$D$22+'BP Financier'!$E$22+'BP Financier'!$F$16+'BP Financier'!$F$19+'BP Financier'!$F$22+'BP Financier'!$G$16+'BP Financier'!$G$19+'BP Financier'!$G$22))*$V8277*X8277/(1-$W8277)","v":{"v":249965.28595861018,"d":"249,965"}},{"$f":"'BP Financier'!$G$44*(('BP Financier'!$C$16+'BP Financier'!$D$16+'BP Financier'!$E$16+'BP Financier'!$F$16+'BP Financier'!$G$16)/('BP Financier'!$C$16+'BP Financier'!$C$19+'BP Financier'!$D$16+'BP Financier'!$D$19+'BP Financier'!$E$16+'BP Financier'!$E$19+'BP Financier'!$C$22+'BP Financier'!$D$22+'BP Financier'!$E$22+'BP Financier'!$F$16+'BP Financier'!$F$19+'BP Financier'!$F$22+'BP Financier'!$G$16+'BP Financier'!$G$19+'BP Financier'!$G$22))*$V8277*Y8277/(1-$W8277)","v":{"v":167103.86519884988,"d":"167,104"}},{"$f":"'BP Financier'!$G$44*(('BP Financier'!$C$16+'BP Financier'!$D$16+'BP Financier'!$E$16+'BP Financier'!$F$16+'BP Financier'!$G$16)/('BP Financier'!$C$16+'BP Financier'!$C$19+'BP Financier'!$D$16+'BP Financier'!$D$19+'BP Financier'!$E$16+'BP Financier'!$E$19+'BP Financier'!$C$22+'BP Financier'!$D$22+'BP Financier'!$E$22+'BP Financier'!$F$16+'BP Financier'!$F$19+'BP Financier'!$F$22+'BP Financier'!$G$16+'BP Financier'!$G$19+'BP Financier'!$G$22))*$V8277*Z8277/(1-$W8277)","v":{"v":1307829.424324883,"d":"1,307,829"}},{"$f":"'BP Financier'!$G$44*(('BP Financier'!$C$16+'BP Financier'!$D$16+'BP Financier'!$E$16+'BP Financier'!$F$16+'BP Financier'!$G$16)/('BP Financier'!$C$16+'BP Financier'!$C$19+'BP Financier'!$D$16+'BP Financier'!$D$19+'BP Financier'!$E$16+'BP Financier'!$E$19+'BP Financier'!$C$22+'BP Financier'!$D$22+'BP Financier'!$E$22+'BP Financier'!$F$16+'BP Financier'!$F$19+'BP Financier'!$F$22+'BP Financier'!$G$16+'BP Financier'!$G$19+'BP Financier'!$G$22))*$V8277*AA8277/(1-$W8277)","v":{"v":161579.77048153256,"d":"161,580"}},{"$f":"'BP Financier'!$G$44*(('BP Financier'!$C$16+'BP Financier'!$D$16+'BP Financier'!$E$16+'BP Financier'!$F$16+'BP Financier'!$G$16)/('BP Financier'!$C$16+'BP Financier'!$C$19+'BP Financier'!$D$16+'BP Financier'!$D$19+'BP Financier'!$E$16+'BP Financier'!$E$19+'BP Financier'!$C$22+'BP Financier'!$D$22+'BP Financier'!$E$22+'BP Financier'!$F$16+'BP Financier'!$F$19+'BP Financier'!$F$22+'BP Financier'!$G$16+'BP Financier'!$G$19+'BP Financier'!$G$22))*$V8277*AB8277/(1-$W8277)","v":{"v":77337.32604244292,"d":"77,337"}},null,{"v":0.006,"d":"0.60%"},{"$f":"Actif!$E$28/100","v":{"v":0.28900000000000003,"d":"28.90%"}},{"$f":"Actif!$E$30/100","v":{"v":0.09050000000000001,"d":"9.05%"}},{"$f":"Actif!$E$31/100","v":{"v":0.0605,"d":"6.05%"}},{"$f":"Actif!$E$32/100","v":{"v":0.47350000000000003,"d":"47.35%"}},{"$f":"Actif!$E$33/100","v":{"v":0.0585,"d":"5.85%"}},{"$f":"Actif!$E$29/100","v":{"v":0.027999999999999997,"d":"2.80%"}}]
[null,"#165",50,2031,"F","A_VIE",{"v":0.44999999999999996,"d":"0.45"},{"v":0.38999999999999996,"d":"0.39"},0.6,0.6,85,0,{"$f":"ROUND(Primes!$Q$4*V8278,0)","v":68},{"$f":"'BP Financier'!$G$33*(('BP Financier'!$C$16+'BP Financier'!$D$16+'BP Financier'!$E$16+'BP Financier'!$F$16+'BP Financier'!$G$16)/('BP Financier'!$C$16+'BP Financier'!$C$19+'BP Financier'!$D$16+'BP Financier'!$D$19+'BP Financier'!$E$16+'BP Financier'!$E$19+'BP Financier'!$F$16+'BP Financier'!$F$19+'BP Financier'!$G$19+'BP Financier'!$G$16))*V8278","v":{"v":3421672.0459127007,"d":"3,421,672"}},{"v":1963815.672006318,"d":"1,963,816"},{"$f":"'BP Financier'!$G$44*(('BP Financier'!$C$16+'BP Financier'!$D$16+'BP Financier'!$E$16+'BP Financier'!$F$16+'BP Financier'!$G$16)/('BP Financier'!$C$16+'BP Financier'!$C$19+'BP Financier'!$D$16+'BP Financier'!$D$19+'BP Financier'!$E$16+'BP Financier'!$E$19+'BP Financier'!$C$22+'BP Financier'!$D$22+'BP Financier'!$E$22+'BP Financier'!$F$16+'BP Financier'!$F$19+'BP Financier'!$F$22+'BP Financier'!$G$16+'BP Financier'!$G$19+'BP Financier'!$G$22))*$V8278*X8278/(1-$W8278)","v":{"v":249965.28595861018,"d":"249,965"}},{"$f":"'BP Financier'!$G$44*(('BP Financier'!$C$16+'BP Financier'!$D$16+'BP Financier'!$E$16+'BP Financier'!$F$16+'BP Financier'!$G$16)/('BP Financier'!$C$16+'BP Financier'!$C$19+'BP Financier'!$D$16+'BP Financier'!$D$19+'BP Financier'!$E$16+'BP Financier'!$E$19+'BP Financier'!$C$22+'BP Financier'!$D$22+'BP Financier'!$E$22+'BP Financier'!$F$16+'BP Financier'!$F$19+'BP Financier'!$F$22+'BP Financier'!$G$16+'BP Financier'!$G$19+'BP Financier'!$G$22))*$V8278*Y8278/(1-$W8278)","v":{"v":167103.86519884988,"d":"167,104"}},{"$f":"'BP Financier'!$G$44*(('BP Financier'!$C$16+'BP Financier'!$D$16+'BP Financier'!$E$16+'BP Financier'!$F$16+'BP Financier'!$G$16)/('BP Financier'!$C$16+'BP Financier'!$C$19+'BP Financier'!$D$16+'BP Financier'!$D$19+'BP Financier'!$E$16+'BP Financier'!$E$19+'BP Financier'!$C$22+'BP Financier'!$D$22+'BP Financier'!$E$22+'BP Financier'!$F$16+'BP Financier'!$F$19+'BP Financier'!$F$22+'BP Financier'!$G$16+'BP Financier'!$G$19+'BP Financier'!$G$22))*$V8278*Z8278/(1-$W8278)","v":{"v":1307829.424324883,"d":"1,307,829"}},{"$f":"'BP Financier'!$G$44*(('BP Financier'!$C$16+'BP Financier'!$D$16+'BP Financier'!$E$16+'BP Financier'!$F$16+'BP Financier'!$G$16)/('BP Financier'!$C$16+'BP Financier'!$C$19+'BP Financier'!$D$16+'BP Financier'!$D$19+'BP Financier'!$E$16+'BP Financier'!$E$19+'BP Financier'!$C$22+'BP Financier'!$D$22+'BP Financier'!$E$22+'BP Financier'!$F$16+'BP Financier'!$F$19+'BP Financier'!$F$22+'BP Financier'!$G$16+'BP Financier'!$G$19+'BP Financier'!$G$22))*$V8278*AA8278/(1-$W8278)","v":{"v":161579.77048153256,"d":"161,580"}},{"$f":"'BP Financier'!$G$44*(('BP Financier'!$C$16+'BP Financier'!$D$16+'BP Financier'!$E$16+'BP Financier'!$F$16+'BP Financier'!$G$16)/('BP Financier'!$C$16+'BP Financier'!$C$19+'BP Financier'!$D$16+'BP Financier'!$D$19+'BP Financier'!$E$16+'BP Financier'!$E$19+'BP Financier'!$C$22+'BP Financier'!$D$22+'BP Financier'!$E$22+'BP Financier'!$F$16+'BP Financier'!$F$19+'BP Financier'!$F$22+'BP Financier'!$G$16+'BP Financier'!$G$19+'BP Financier'!$G$22))*$V8278*AB8278/(1-$W8278)","v":{"v":77337.32604244292,"d":"77,337"}},null,{"v":0.006,"d":"0.60%"},{"$f":"Actif!$E$28/100","v":{"v":0.28900000000000003,"d":"28.90%"}},{"$f":"Actif!$E$30/100","v":{"v":0.09050000000000001,"d":"9.05%"}},{"$f":"Actif!$E$31/100","v":{"v":0.0605,"d":"6.05%"}},{"$f":"Actif!$E$32/100","v":{"v":0.47350000000000003,"d":"47.35%"}},{"$f":"Actif!$E$33/100","v":{"v":0.0585,"d":"5.85%"}},{"$f":"Actif!$E$29/100","v":{"v":0.027999999999999997,"d":"2.80%"}}]
[null,"#166",51,2026,"H","A_VIE",{"v":0.44999999999999996,"d":"0.45"},{"v":0.38999999999999996,"d":"0.39"},0.6,0.6,85,0,{"$f":"ROUND(Primes!$Q$4*V8279,0)","v":68},{"$f":"'BP Financier'!$G$33*(('BP Financier'!$C$16+'BP Financier'!$D$16+'BP Financier'!$E$16+'BP Financier'!$F$16+'BP Financier'!$G$16)/('BP Financier'!$C$16+'BP Financier'!$C$19+'BP Financier'!$D$16+'BP Financier'!$D$19+'BP Financier'!$E$16+'BP Financier'!$E$19+'BP Financier'!$F$16+'BP Financier'!$F$19+'BP Financier'!$G$19+'BP Financier'!$G$16))*V8279","v":{"v":3421672.0459127007,"d":"3,421,672"}},{"v":1963815.672006318,"d":"1,963,816"},{"$f":"'BP Financier'!$G$44*(('BP Financier'!$C$16+'BP Financier'!$D$16+'BP Financier'!$E$16+'BP Financier'!$F$16+'BP Financier'!$G$16)/('BP Financier'!$C$16+'BP Financier'!$C$19+'BP Financier'!$D$16+'BP Financier'!$D$19+'BP Financier'!$E$16+'BP Financier'!$E$19+'BP Financier'!$C$22+'BP Financier'!$D$22+'BP Financier'!$E$22+'BP Financier'!$F$16+'BP Financier'!$F$19+'BP Financier'!$F$22+'BP Financier'!$G$16+'BP Financier'!$G$19+'BP Financier'!$G$22))*$V8279*X8279/(1-$W8279)","v":{"v":249965.28595861018,"d":"249,965"}},{"$f":"'BP Financier'!$G$44*(('BP Financier'!$C$16+'BP Financier'!$D$16+'BP Financier'!$E$16+'BP Financier'!$F$16+'BP Financier'!$G$16)/('BP Financier'!$C$16+'BP Financier'!$C$19+'BP Financier'!$D$16+'BP Financier'!$D$19+'BP Financier'!$E$16+'BP Financier'!$E$19+'BP Financier'!$C$22+'BP Financier'!$D$22+'BP Financier'!$E$22+'BP Financier'!$F$16+'BP Financier'!$F$19+'BP Financier'!$F$22+'BP Financier'!$G$16+'BP Financier'!$G$19+'BP Financier'!$G$22))*$V8279*Y8279/(1-$W8279)","v":{"v":167103.86519884988,"d":"167,104"}},{"$f":"'BP Financier'!$G$44*(('BP Financier'!$C$16+'BP Financier'!$D$16+'BP Financier'!$E$16+'BP Financier'!$F$16+'BP Financier'!$G$16)/('BP Financier'!$C$16+'BP Financier'!$C$19+'BP Financier'!$D$16+'BP Financier'!$D$19+'BP Financier'!$E$16+'BP Financier'!$E$19+'BP Financier'!$C$22+'BP Financier'!$D$22+'BP Financier'!$E$22+'BP Financier'!$F$16+'BP Financier'!$F$19+'BP Financier'!$F$22+'BP Financier'!$G$16+'BP Financier'!$G$19+'BP Financier'!$G$22))*$V8279*Z8279/(1-$W8279)","v":{"v":1307829.424324883,"d":"1,307,829"}},{"$f":"'BP Financier'!$G$44*(('BP Financier'!$C$16+'BP Financier'!$D$16+'BP Financier'!$E$16+'BP Financier'!$F$16+'BP Financier'!$G$16)/('BP Financier'!$C$16+'BP Financier'!$C$19+'BP Financier'!$D$16+'BP Financier'!$D$19+'BP Financier'!$E$16+'BP Financier'!$E$19+'BP Financier'!$C$22+'BP Financier'!$D$22+'BP Financier'!$E$22+'BP Financier'!$F$16+'BP Financier'!$F$19+'BP Financier'!$F$22+'BP Financier'!$G$16+'BP Financier'!$G$19+'BP Financier'!$G$22))*$V8279*AA8279/(1-$W8279)","v":{"v":161579.77048153256,"d":"161,580"}},{"$f":"'BP Financier'!$G$44*(('BP Financier'!$C$16+'BP Financier'!$D$16+'BP Financier'!$E$16+'BP Financier'!$F$16+'BP Financier'!$G$16)/('BP Financier'!$C$16+'BP Financier'!$C$19+'BP Financier'!$D$16+'BP Financier'!$D$19+'BP Financier'!$E$16+'BP Financier'!$E$19+'BP Financier'!$C$22+'BP Financier'!$D$22+'BP Financier'!$E$22+'BP Financier'!$F$16+'BP Financier'!$F$19+'BP Financier'!$F$22+'BP Financier'!$G$16+'BP Financier'!$G$19+'BP Financier'!$G$22))*$V8279*AB8279/(1-$W8279)","v":{"v":77337.32604244292,"d":"77,337"}},null,{"v":0.006,"d":"0.60%"},{"$f":"Actif!$E$28/100","v":{"v":0.28900000000000003,"d":"28.90%"}},{"$f":"Actif!$E$30/100","v":{"v":0.09050000000000001,"d":"9.05%"}},{"$f":"Actif!$E$31/100","v":{"v":0.0605,"d":"6.05%"}},{"$f":"Actif!$E$32/100","v":{"v":0.47350000000000003,"d":"47.35%"}},{"$f":"Actif!$E$33/100","v":{"v":0.0585,"d":"5.85%"}},{"$f":"Actif!$E$29/100","v":{"v":0.027999999999999997,"d":"2.80%"}}]
[null,"#167",51,2028,"H","A_VIE",{"v":0.44999999999999996,"d":"0.45"},{"v":0.38999999999999996,"d":"0.39"},0.6,0.6,85,0,{"$f":"ROUND(Primes!$Q$4*V8280,0)","v":68},{"$f":"'BP Financier'!$G$33*(('BP Financier'!$C$16+'BP Financier'!$D$16+'BP Financier'!$E$16+'BP Financier'!$F$16+'BP Financier'!$G$16)/('BP Financier'!$C$16+'BP Financier'!$C$19+'BP Financier'!$D$16+'BP Financier'!$D$19+'BP Financier'!$E$16+'BP Financier'!$E$19+'BP Financier'!$F$16+'BP Financier'!$F$19+'BP Financier'!$G$19+'BP Financier'!$G$16))*V8280","v":{"v":3421672.0459127007,"d":"3,421,672"}},{"v":1963815.672006318,"d":"1,963,816"},{"$f":"'BP Financier'!$G$44*(('BP Financier'!$C$16+'BP Financier'!$D$16+'BP Financier'!$E$16+'BP Financier'!$F$16+'BP Financier'!$G$16)/('BP Financier'!$C$16+'BP Financier'!$C$19+'BP Financier'!$D$16+'BP Financier'!$D$19+'BP Financier'!$E$16+'BP Financier'!$E$19+'BP Financier'!$C$22+'BP Financier'!$D$22+'BP Financier'!$E$22+'BP Financier'!$F$16+'BP Financier'!$F$19+'BP Financier'!$F$22+'BP Financier'!$G$16+'BP Financier'!$G$19+'BP Financier'!$G$22))*$V8280*X8280/(1-$W8280)","v":{"v":249965.28595861018,"d":"249,965"}},{"$f":"'BP Financier'!$G$44*(('BP Financier'!$C$16+'BP Financier'!$D$16+'BP Financier'!$E$16+'BP Financier'!$F$16+'BP Financier'!$G$16)/('BP Financier'!$C$16+'BP Financier'!$C$19+'BP Financier'!$D$16+'BP Financier'!$D$19+'BP Financier'!$E$16+'BP Financier'!$E$19+'BP Financier'!$C$22+'BP Financier'!$D$22+'BP Financier'!$E$22+'BP Financier'!$F$16+'BP Financier'!$F$19+'BP Financier'!$F$22+'BP Financier'!$G$16+'BP Financier'!$G$19+'BP Financier'!$G$22))*$V8280*Y8280/(1-$W8280)","v":{"v":167103.86519884988,"d":"167,104"}},{"$f":"'BP Financier'!$G$44*(('BP Financier'!$C$16+'BP Financier'!$D$16+'BP Financier'!$E$16+'BP Financier'!$F$16+'BP Financier'!$G$16)/('BP Financier'!$C$16+'BP Financier'!$C$19+'BP Financier'!$D$16+'BP Financier'!$D$19+'BP Financier'!$E$16+'BP Financier'!$E$19+'BP Financier'!$C$22+'BP Financier'!$D$22+'BP Financier'!$E$22+'BP Financier'!$F$16+'BP Financier'!$F$19+'BP Financier'!$F$22+'BP Financier'!$G$16+'BP Financier'!$G$19+'BP Financier'!$G$22))*$V8280*Z8280/(1-$W8280)","v":{"v":1307829.424324883,"d":"1,307,829"}},{"$f":"'BP Financier'!$G$44*(('BP Financier'!$C$16+'BP Financier'!$D$16+'BP Financier'!$E$16+'BP Financier'!$F$16+'BP Financier'!$G$16)/('BP Financier'!$C$16+'BP Financier'!$C$19+'BP Financier'!$D$16+'BP Financier'!$D$19+'BP Financier'!$E$16+'BP Financier'!$E$19+'BP Financier'!$C$22+'BP Financier'!$D$22+'BP Financier'!$E$22+'BP Financier'!$F$16+'BP Financier'!$F$19+'BP Financier'!$F$22+'BP Financier'!$G$16+'BP Financier'!$G$19+'BP Financier'!$G$22))*$V8280*AA8280/(1-$W8280)","v":{"v":161579.77048153256,"d":"161,580"}},{"$f":"'BP Financier'!$G$44*(('BP Financier'!$C$16+'BP Financier'!$D$16+'BP Financier'!$E$16+'BP Financier'!$F$16+'BP Financier'!$G$16)/('BP Financier'!$C$16+'BP Financier'!$C$19+'BP Financier'!$D$16+'BP Financier'!$D$19+'BP Financier'!$E$16+'BP Financier'!$E$19+'BP Financier'!$C$22+'BP Financier'!$D$22+'BP Financier'!$E$22+'BP Financier'!$F$16+'BP Financier'!$F$19+'BP Financier'!$F$22+'BP Financier'!$G$16+'BP Financier'!$G$19+'BP Financier'!$G$22))*$V8280*AB8280/(1-$W8280)","v":{"v":77337.32604244292,"d":"77,337"}},null,{"v":0.006,"d":"0.60%"},{"$f":"Actif!$E$28/100","v":{"v":0.28900000000000003,"d":"28.90%"}},{"$f":"Actif!$E$30/100","v":{"v":0.09050000000000001,"d":"9.05%"}},{"$f":"Actif!$E$31/100","v":{"v":0.0605,"d":"6.05%"}},{"$f":"Actif!$E$32/100","v":{"v":0.47350000000000003,"d":"47.35%"}},{"$f":"Actif!$E$33/100","v":{"v":0.0585,"d":"5.85%"}},{"$f":"Actif!$E$29/100","v":{"v":0.027999999999999997,"d":"2.80%"}}]
[null,"#168",51,2029,"H","A_VIE",{"v":0.44999999999999996,"d":"0.45"},{"v":0.38999999999999996,"d":"0.39"},0.6,0.6,85,0,{"$f":"ROUND(Primes!$Q$4*V8281,0)","v":68},{"$f":"'BP Financier'!$G$33*(('BP Financier'!$C$16+'BP Financier'!$D$16+'BP Financier'!$E$16+'BP Financier'!$F$16+'BP Financier'!$G$16)/('BP Financier'!$C$16+'BP Financier'!$C$19+'BP Financier'!$D$16+'BP Financier'!$D$19+'BP Financier'!$E$16+'BP Financier'!$E$19+'BP Financier'!$F$16+'BP Financier'!$F$19+'BP Financier'!$G$19+'BP Financier'!$G$16))*V8281","v":{"v":3421672.0459127007,"d":"3,421,672"}},{"v":1963815.672006318,"d":"1,963,816"},{"$f":"'BP Financier'!$G$44*(('BP Financier'!$C$16+'BP Financier'!$D$16+'BP Financier'!$E$16+'BP Financier'!$F$16+'BP Financier'!$G$16)/('BP Financier'!$C$16+'BP Financier'!$C$19+'BP Financier'!$D$16+'BP Financier'!$D$19+'BP Financier'!$E$16+'BP Financier'!$E$19+'BP Financier'!$C$22+'BP Financier'!$D$22+'BP Financier'!$E$22+'BP Financier'!$F$16+'BP Financier'!$F$19+'BP Financier'!$F$22+'BP Financier'!$G$16+'BP Financier'!$G$19+'BP Financier'!$G$22))*$V8281*X8281/(1-$W8281)","v":{"v":249965.28595861018,"d":"249,965"}},{"$f":"'BP Financier'!$G$44*(('BP Financier'!$C$16+'BP Financier'!$D$16+'BP Financier'!$E$16+'BP Financier'!$F$16+'BP Financier'!$G$16)/('BP Financier'!$C$16+'BP Financier'!$C$19+'BP Financier'!$D$16+'BP Financier'!$D$19+'BP Financier'!$E$16+'BP Financier'!$E$19+'BP Financier'!$C$22+'BP Financier'!$D$22+'BP Financier'!$E$22+'BP Financier'!$F$16+'BP Financier'!$F$19+'BP Financier'!$F$22+'BP Financier'!$G$16+'BP Financier'!$G$19+'BP Financier'!$G$22))*$V8281*Y8281/(1-$W8281)","v":{"v":167103.86519884988,"d":"167,104"}},{"$f":"'BP Financier'!$G$44*(('BP Financier'!$C$16+'BP Financier'!$D$16+'BP Financier'!$E$16+'BP Financier'!$F$16+'BP Financier'!$G$16)/('BP Financier'!$C$16+'BP Financier'!$C$19+'BP Financier'!$D$16+'BP Financier'!$D$19+'BP Financier'!$E$16+'BP Financier'!$E$19+'BP Financier'!$C$22+'BP Financier'!$D$22+'BP Financier'!$E$22+'BP Financier'!$F$16+'BP Financier'!$F$19+'BP Financier'!$F$22+'BP Financier'!$G$16+'BP Financier'!$G$19+'BP Financier'!$G$22))*$V8281*Z8281/(1-$W8281)","v":{"v":1307829.424324883,"d":"1,307,829"}},{"$f":"'BP Financier'!$G$44*(('BP Financier'!$C$16+'BP Financier'!$D$16+'BP Financier'!$E$16+'BP Financier'!$F$16+'BP Financier'!$G$16)/('BP Financier'!$C$16+'BP Financier'!$C$19+'BP Financier'!$D$16+'BP Financier'!$D$19+'BP Financier'!$E$16+'BP Financier'!$E$19+'BP Financier'!$C$22+'BP Financier'!$D$22+'BP Financier'!$E$22+'BP Financier'!$F$16+'BP Financier'!$F$19+'BP Financier'!$F$22+'BP Financier'!$G$16+'BP Financier'!$G$19+'BP Financier'!$G$22))*$V8281*AA8281/(1-$W8281)","v":{"v":161579.77048153256,"d":"161,580"}},{"$f":"'BP Financier'!$G$44*(('BP Financier'!$C$16+'BP Financier'!$D$16+'BP Financier'!$E$16+'BP Financier'!$F$16+'BP Financier'!$G$16)/('BP Financier'!$C$16+'BP Financier'!$C$19+'BP Financier'!$D$16+'BP Financier'!$D$19+'BP Financier'!$E$16+'BP Financier'!$E$19+'BP Financier'!$C$22+'BP Financier'!$D$22+'BP Financier'!$E$22+'BP Financier'!$F$16+'BP Financier'!$F$19+'BP Financier'!$F$22+'BP Financier'!$G$16+'BP Financier'!$G$19+'BP Financier'!$G$22))*$V8281*AB8281/(1-$W8281)","v":{"v":77337.32604244292,"d":"77,337"}},null,{"v":0.006,"d":"0.60%"},{"$f":"Actif!$E$28/100","v":{"v":0.28900000000000003,"d":"28.90%"}},{"$f":"Actif!$E$30/100","v":{"v":0.09050000000000001,"d":"9.05%"}},{"$f":"Actif!$E$31/100","v":{"v":0.0605,"d":"6.05%"}},{"$f":"Actif!$E$32/100","v":{"v":0.47350000000000003,"d":"47.35%"}},{"$f":"Actif!$E$33/100","v":{"v":0.0585,"d":"5.85%"}},{"$f":"Actif!$E$29/100","v":{"v":0.027999999999999997,"d":"2.80%"}}]
[null,"#169",51,2030,"H","A_VIE",{"v":0.44999999999999996,"d":"0.45"},{"v":0.38999999999999996,"d":"0.39"},0.6,0.6,85,0,{"$f":"ROUND(Primes!$Q$4*V8282,0)","v":68},{"$f":"'BP Financier'!$G$33*(('BP Financier'!$C$16+'BP Financier'!$D$16+'BP Financier'!$E$16+'BP Financier'!$F$16+'BP Financier'!$G$16)/('BP Financier'!$C$16+'BP Financier'!$C$19+'BP Financier'!$D$16+'BP Financier'!$D$19+'BP Financier'!$E$16+'BP Financier'!$E$19+'BP Financier'!$F$16+'BP Financier'!$F$19+'BP Financier'!$G$19+'BP Financier'!$G$16))*V8282","v":{"v":3421672.0459127007,"d":"3,421,672"}},{"v":1963815.672006318,"d":"1,963,816"},{"$f":"'BP Financier'!$G$44*(('BP Financier'!$C$16+'BP Financier'!$D$16+'BP Financier'!$E$16+'BP Financier'!$F$16+'BP Financier'!$G$16)/('BP Financier'!$C$16+'BP Financier'!$C$19+'BP Financier'!$D$16+'BP Financier'!$D$19+'BP Financier'!$E$16+'BP Financier'!$E$19+'BP Financier'!$C$22+'BP Financier'!$D$22+'BP Financier'!$E$22+'BP Financier'!$F$16+'BP Financier'!$F$19+'BP Financier'!$F$22+'BP Financier'!$G$16+'BP Financier'!$G$19+'BP Financier'!$G$22))*$V8282*X8282/(1-$W8282)","v":{"v":249965.28595861018,"d":"249,965"}},{"$f":"'BP Financier'!$G$44*(('BP Financier'!$C$16+'BP Financier'!$D$16+'BP Financier'!$E$16+'BP Financier'!$F$16+'BP Financier'!$G$16)/('BP Financier'!$C$16+'BP Financier'!$C$19+'BP Financier'!$D$16+'BP Financier'!$D$19+'BP Financier'!$E$16+'BP Financier'!$E$19+'BP Financier'!$C$22+'BP Financier'!$D$22+'BP Financier'!$E$22+'BP Financier'!$F$16+'BP Financier'!$F$19+'BP Financier'!$F$22+'BP Financier'!$G$16+'BP Financier'!$G$19+'BP Financier'!$G$22))*$V8282*Y8282/(1-$W8282)","v":{"v":167103.86519884988,"d":"167,104"}},{"$f":"'BP Financier'!$G$44*(('BP Financier'!$C$16+'BP Financier'!$D$16+'BP Financier'!$E$16+'BP Financier'!$F$16+'BP Financier'!$G$16)/('BP Financier'!$C$16+'BP Financier'!$C$19+'BP Financier'!$D$16+'BP Financier'!$D$19+'BP Financier'!$E$16+'BP Financier'!$E$19+'BP Financier'!$C$22+'BP Financier'!$D$22+'BP Financier'!$E$22+'BP Financier'!$F$16+'BP Financier'!$F$19+'BP Financier'!$F$22+'BP Financier'!$G$16+'BP Financier'!$G$19+'BP Financier'!$G$22))*$V8282*Z8282/(1-$W8282)","v":{"v":1307829.424324883,"d":"1,307,829"}},{"$f":"'BP Financier'!$G$44*(('BP Financier'!$C$16+'BP Financier'!$D$16+'BP Financier'!$E$16+'BP Financier'!$F$16+'BP Financier'!$G$16)/('BP Financier'!$C$16+'BP Financier'!$C$19+'BP Financier'!$D$16+'BP Financier'!$D$19+'BP Financier'!$E$16+'BP Financier'!$E$19+'BP Financier'!$C$22+'BP Financier'!$D$22+'BP Financier'!$E$22+'BP Financier'!$F$16+'BP Financier'!$F$19+'BP Financier'!$F$22+'BP Financier'!$G$16+'BP Financier'!$G$19+'BP Financier'!$G$22))*$V8282*AA8282/(1-$W8282)","v":{"v":161579.77048153256,"d":"161,580"}},{"$f":"'BP Financier'!$G$44*(('BP Financier'!$C$16+'BP Financier'!$D$16+'BP Financier'!$E$16+'BP Financier'!$F$16+'BP Financier'!$G$16)/('BP Financier'!$C$16+'BP Financier'!$C$19+'BP Financier'!$D$16+'BP Financier'!$D$19+'BP Financier'!$E$16+'BP Financier'!$E$19+'BP Financier'!$C$22+'BP Financier'!$D$22+'BP Financier'!$E$22+'BP Financier'!$F$16+'BP Financier'!$F$19+'BP Financier'!$F$22+'BP Financier'!$G$16+'BP Financier'!$G$19+'BP Financier'!$G$22))*$V8282*AB8282/(1-$W8282)","v":{"v":77337.32604244292,"d":"77,337"}},null,{"v":0.006,"d":"0.60%"},{"$f":"Actif!$E$28/100","v":{"v":0.28900000000000003,"d":"28.90%"}},{"$f":"Actif!$E$30/100","v":{"v":0.09050000000000001,"d":"9.05%"}},{"$f":"Actif!$E$31/100","v":{"v":0.0605,"d":"6.05%"}},{"$f":"Actif!$E$32/100","v":{"v":0.47350000000000003,"d":"47.35%"}},{"$f":"Actif!$E$33/100","v":{"v":0.0585,"d":"5.85%"}},{"$f":"Actif!$E$29/100","v":{"v":0.027999999999999997,"d":"2.80%"}}]
[null,"#170",51,2031,"H","A_VIE",{"v":0.44999999999999996,"d":"0.45"},{"v":0.38999999999999996,"d":"0.39"},0.6,0.6,85,0,{"$f":"ROUND(Primes!$Q$4*V8283,0)","v":68},{"$f":"'BP Financier'!$G$33*(('BP Financier'!$C$16+'BP Financier'!$D$16+'BP Financier'!$E$16+'BP Financier'!$F$16+'BP Financier'!$G$16)/('BP Financier'!$C$16+'BP Financier'!$C$19+'BP Financier'!$D$16+'BP Financier'!$D$19+'BP Financier'!$E$16+'BP Financier'!$E$19+'BP Financier'!$F$16+'BP Financier'!$F$19+'BP Financier'!$G$19+'BP Financier'!$G$16))*V8283","v":{"v":3421672.0459127007,"d":"3,421,672"}},{"v":1963815.672006318,"d":"1,963,816"},{"$f":"'BP Financier'!$G$44*(('BP Financier'!$C$16+'BP Financier'!$D$16+'BP Financier'!$E$16+'BP Financier'!$F$16+'BP Financier'!$G$16)/('BP Financier'!$C$16+'BP Financier'!$C$19+'BP Financier'!$D$16+'BP Financier'!$D$19+'BP Financier'!$E$16+'BP Financier'!$E$19+'BP Financier'!$C$22+'BP Financier'!$D$22+'BP Financier'!$E$22+'BP Financier'!$F$16+'BP Financier'!$F$19+'BP Financier'!$F$22+'BP Financier'!$G$16+'BP Financier'!$G$19+'BP Financier'!$G$22))*$V8283*X8283/(1-$W8283)","v":{"v":249965.28595861018,"d":"249,965"}},{"$f":"'BP Financier'!$G$44*(('BP Financier'!$C$16+'BP Financier'!$D$16+'BP Financier'!$E$16+'BP Financier'!$F$16+'BP Financier'!$G$16)/('BP Financier'!$C$16+'BP Financier'!$C$19+'BP Financier'!$D$16+'BP Financier'!$D$19+'BP Financier'!$E$16+'BP Financier'!$E$19+'BP Financier'!$C$22+'BP Financier'!$D$22+'BP Financier'!$E$22+'BP Financier'!$F$16+'BP Financier'!$F$19+'BP Financier'!$F$22+'BP Financier'!$G$16+'BP Financier'!$G$19+'BP Financier'!$G$22))*$V8283*Y8283/(1-$W8283)","v":{"v":167103.86519884988,"d":"167,104"}},{"$f":"'BP Financier'!$G$44*(('BP Financier'!$C$16+'BP Financier'!$D$16+'BP Financier'!$E$16+'BP Financier'!$F$16+'BP Financier'!$G$16)/('BP Financier'!$C$16+'BP Financier'!$C$19+'BP Financier'!$D$16+'BP Financier'!$D$19+'BP Financier'!$E$16+'BP Financier'!$E$19+'BP Financier'!$C$22+'BP Financier'!$D$22+'BP Financier'!$E$22+'BP Financier'!$F$16+'BP Financier'!$F$19+'BP Financier'!$F$22+'BP Financier'!$G$16+'BP Financier'!$G$19+'BP Financier'!$G$22))*$V8283*Z8283/(1-$W8283)","v":{"v":1307829.424324883,"d":"1,307,829"}},{"$f":"'BP Financier'!$G$44*(('BP Financier'!$C$16+'BP Financier'!$D$16+'BP Financier'!$E$16+'BP Financier'!$F$16+'BP Financier'!$G$16)/('BP Financier'!$C$16+'BP Financier'!$C$19+'BP Financier'!$D$16+'BP Financier'!$D$19+'BP Financier'!$E$16+'BP Financier'!$E$19+'BP Financier'!$C$22+'BP Financier'!$D$22+'BP Financier'!$E$22+'BP Financier'!$F$16+'BP Financier'!$F$19+'BP Financier'!$F$22+'BP Financier'!$G$16+'BP Financier'!$G$19+'BP Financier'!$G$22))*$V8283*AA8283/(1-$W8283)","v":{"v":161579.77048153256,"d":"161,580"}},{"$f":"'BP Financier'!$G$44*(('BP Financier'!$C$16+'BP Financier'!$D$16+'BP Financier'!$E$16+'BP Financier'!$F$16+'BP Financier'!$G$16)/('BP Financier'!$C$16+'BP Financier'!$C$19+'BP Financier'!$D$16+'BP Financier'!$D$19+'BP Financier'!$E$16+'BP Financier'!$E$19+'BP Financier'!$C$22+'BP Financier'!$D$22+'BP Financier'!$E$22+'BP Financier'!$F$16+'BP Financier'!$F$19+'BP Financier'!$F$22+'BP Financier'!$G$16+'BP Financier'!$G$19+'BP Financier'!$G$22))*$V8283*AB8283/(1-$W8283)","v":{"v":77337.32604244292,"d":"77,337"}},null,{"v":0.006,"d":"0.60%"},{"$f":"Actif!$E$28/100","v":{"v":0.28900000000000003,"d":"28.90%"}},{"$f":"Actif!$E$30/100","v":{"v":0.09050000000000001,"d":"9.05%"}},{"$f":"Actif!$E$31/100","v":{"v":0.0605,"d":"6.05%"}},{"$f":"Actif!$E$32/100","v":{"v":0.47350000000000003,"d":"47.35%"}},{"$f":"Actif!$E$33/100","v":{"v":0.0585,"d":"5.85%"}},{"$f":"Actif!$E$29/100","v":{"v":0.027999999999999997,"d":"2.80%"}}]
[null,"#171",52,2026,"H","A_VIE",{"v":0.44999999999999996,"d":"0.45"},{"v":0.38999999999999996,"d":"0.39"},0.6,0.6,85,0,{"$f":"ROUND(Primes!$Q$4*V8284,0)","v":68},{"$f":"'BP Financier'!$G$33*(('BP Financier'!$C$16+'BP Financier'!$D$16+'BP Financier'!$E$16+'BP Financier'!$F$16+'BP Financier'!$G$16)/('BP Financier'!$C$16+'BP Financier'!$C$19+'BP Financier'!$D$16+'BP Financier'!$D$19+'BP Financier'!$E$16+'BP Financier'!$E$19+'BP Financier'!$F$16+'BP Financier'!$F$19+'BP Financier'!$G$19+'BP Financier'!$G$16))*V8284","v":{"v":3421672.0459127007,"d":"3,421,672"}},{"v":1963815.672006318,"d":"1,963,816"},{"$f":"'BP Financier'!$G$44*(('BP Financier'!$C$16+'BP Financier'!$D$16+'BP Financier'!$E$16+'BP Financier'!$F$16+'BP Financier'!$G$16)/('BP Financier'!$C$16+'BP Financier'!$C$19+'BP Financier'!$D$16+'BP Financier'!$D$19+'BP Financier'!$E$16+'BP Financier'!$E$19+'BP Financier'!$C$22+'BP Financier'!$D$22+'BP Financier'!$E$22+'BP Financier'!$F$16+'BP Financier'!$F$19+'BP Financier'!$F$22+'BP Financier'!$G$16+'BP Financier'!$G$19+'BP Financier'!$G$22))*$V8284*X8284/(1-$W8284)","v":{"v":249965.28595861018,"d":"249,965"}},{"$f":"'BP Financier'!$G$44*(('BP Financier'!$C$16+'BP Financier'!$D$16+'BP Financier'!$E$16+'BP Financier'!$F$16+'BP Financier'!$G$16)/('BP Financier'!$C$16+'BP Financier'!$C$19+'BP Financier'!$D$16+'BP Financier'!$D$19+'BP Financier'!$E$16+'BP Financier'!$E$19+'BP Financier'!$C$22+'BP Financier'!$D$22+'BP Financier'!$E$22+'BP Financier'!$F$16+'BP Financier'!$F$19+'BP Financier'!$F$22+'BP Financier'!$G$16+'BP Financier'!$G$19+'BP Financier'!$G$22))*$V8284*Y8284/(1-$W8284)","v":{"v":167103.86519884988,"d":"167,104"}},{"$f":"'BP Financier'!$G$44*(('BP Financier'!$C$16+'BP Financier'!$D$16+'BP Financier'!$E$16+'BP Financier'!$F$16+'BP Financier'!$G$16)/('BP Financier'!$C$16+'BP Financier'!$C$19+'BP Financier'!$D$16+'BP Financier'!$D$19+'BP Financier'!$E$16+'BP Financier'!$E$19+'BP Financier'!$C$22+'BP Financier'!$D$22+'BP Financier'!$E$22+'BP Financier'!$F$16+'BP Financier'!$F$19+'BP Financier'!$F$22+'BP Financier'!$G$16+'BP Financier'!$G$19+'BP Financier'!$G$22))*$V8284*Z8284/(1-$W8284)","v":{"v":1307829.424324883,"d":"1,307,829"}},{"$f":"'BP Financier'!$G$44*(('BP Financier'!$C$16+'BP Financier'!$D$16+'BP Financier'!$E$16+'BP Financier'!$F$16+'BP Financier'!$G$16)/('BP Financier'!$C$16+'BP Financier'!$C$19+'BP Financier'!$D$16+'BP Financier'!$D$19+'BP Financier'!$E$16+'BP Financier'!$E$19+'BP Financier'!$C$22+'BP Financier'!$D$22+'BP Financier'!$E$22+'BP Financier'!$F$16+'BP Financier'!$F$19+'BP Financier'!$F$22+'BP Financier'!$G$16+'BP Financier'!$G$19+'BP Financier'!$G$22))*$V8284*AA8284/(1-$W8284)","v":{"v":161579.77048153256,"d":"161,580"}},{"$f":"'BP Financier'!$G$44*(('BP Financier'!$C$16+'BP Financier'!$D$16+'BP Financier'!$E$16+'BP Financier'!$F$16+'BP Financier'!$G$16)/('BP Financier'!$C$16+'BP Financier'!$C$19+'BP Financier'!$D$16+'BP Financier'!$D$19+'BP Financier'!$E$16+'BP Financier'!$E$19+'BP Financier'!$C$22+'BP Financier'!$D$22+'BP Financier'!$E$22+'BP Financier'!$F$16+'BP Financier'!$F$19+'BP Financier'!$F$22+'BP Financier'!$G$16+'BP Financier'!$G$19+'BP Financier'!$G$22))*$V8284*AB8284/(1-$W8284)","v":{"v":77337.32604244292,"d":"77,337"}},null,{"v":0.006,"d":"0.60%"},{"$f":"Actif!$E$28/100","v":{"v":0.28900000000000003,"d":"28.90%"}},{"$f":"Actif!$E$30/100","v":{"v":0.09050000000000001,"d":"9.05%"}},{"$f":"Actif!$E$31/100","v":{"v":0.0605,"d":"6.05%"}},{"$f":"Actif!$E$32/100","v":{"v":0.47350000000000003,"d":"47.35%"}},{"$f":"Actif!$E$33/100","v":{"v":0.0585,"d":"5.85%"}},{"$f":"Actif!$E$29/100","v":{"v":0.027999999999999997,"d":"2.80%"}}]
[null,"#172",52,2028,"H","A_VIE",{"v":0.44999999999999996,"d":"0.45"},{"v":0.38999999999999996,"d":"0.39"},0.6,0.6,85,0,{"$f":"ROUND(Primes!$Q$4*V8285,0)","v":68},{"$f":"'BP Financier'!$G$33*(('BP Financier'!$C$16+'BP Financier'!$D$16+'BP Financier'!$E$16+'BP Financier'!$F$16+'BP Financier'!$G$16)/('BP Financier'!$C$16+'BP Financier'!$C$19+'BP Financier'!$D$16+'BP Financier'!$D$19+'BP Financier'!$E$16+'BP Financier'!$E$19+'BP Financier'!$F$16+'BP Financier'!$F$19+'BP Financier'!$G$19+'BP Financier'!$G$16))*V8285","v":{"v":3421672.0459127007,"d":"3,421,672"}},{"v":1963815.672006318,"d":"1,963,816"},{"$f":"'BP Financier'!$G$44*(('BP Financier'!$C$16+'BP Financier'!$D$16+'BP Financier'!$E$16+'BP Financier'!$F$16+'BP Financier'!$G$16)/('BP Financier'!$C$16+'BP Financier'!$C$19+'BP Financier'!$D$16+'BP Financier'!$D$19+'BP Financier'!$E$16+'BP Financier'!$E$19+'BP Financier'!$C$22+'BP Financier'!$D$22+'BP Financier'!$E$22+'BP Financier'!$F$16+'BP Financier'!$F$19+'BP Financier'!$F$22+'BP Financier'!$G$16+'BP Financier'!$G$19+'BP Financier'!$G$22))*$V8285*X8285/(1-$W8285)","v":{"v":249965.28595861018,"d":"249,965"}},{"$f":"'BP Financier'!$G$44*(('BP Financier'!$C$16+'BP Financier'!$D$16+'BP Financier'!$E$16+'BP Financier'!$F$16+'BP Financier'!$G$16)/('BP Financier'!$C$16+'BP Financier'!$C$19+'BP Financier'!$D$16+'BP Financier'!$D$19+'BP Financier'!$E$16+'BP Financier'!$E$19+'BP Financier'!$C$22+'BP Financier'!$D$22+'BP Financier'!$E$22+'BP Financier'!$F$16+'BP Financier'!$F$19+'BP Financier'!$F$22+'BP Financier'!$G$16+'BP Financier'!$G$19+'BP Financier'!$G$22))*$V8285*Y8285/(1-$W8285)","v":{"v":167103.86519884988,"d":"167,104"}},{"$f":"'BP Financier'!$G$44*(('BP Financier'!$C$16+'BP Financier'!$D$16+'BP Financier'!$E$16+'BP Financier'!$F$16+'BP Financier'!$G$16)/('BP Financier'!$C$16+'BP Financier'!$C$19+'BP Financier'!$D$16+'BP Financier'!$D$19+'BP Financier'!$E$16+'BP Financier'!$E$19+'BP Financier'!$C$22+'BP Financier'!$D$22+'BP Financier'!$E$22+'BP Financier'!$F$16+'BP Financier'!$F$19+'BP Financier'!$F$22+'BP Financier'!$G$16+'BP Financier'!$G$19+'BP Financier'!$G$22))*$V8285*Z8285/(1-$W8285)","v":{"v":1307829.424324883,"d":"1,307,829"}},{"$f":"'BP Financier'!$G$44*(('BP Financier'!$C$16+'BP Financier'!$D$16+'BP Financier'!$E$16+'BP Financier'!$F$16+'BP Financier'!$G$16)/('BP Financier'!$C$16+'BP Financier'!$C$19+'BP Financier'!$D$16+'BP Financier'!$D$19+'BP Financier'!$E$16+'BP Financier'!$E$19+'BP Financier'!$C$22+'BP Financier'!$D$22+'BP Financier'!$E$22+'BP Financier'!$F$16+'BP Financier'!$F$19+'BP Financier'!$F$22+'BP Financier'!$G$16+'BP Financier'!$G$19+'BP Financier'!$G$22))*$V8285*AA8285/(1-$W8285)","v":{"v":161579.77048153256,"d":"161,580"}},{"$f":"'BP Financier'!$G$44*(('BP Financier'!$C$16+'BP Financier'!$D$16+'BP Financier'!$E$16+'BP Financier'!$F$16+'BP Financier'!$G$16)/('BP Financier'!$C$16+'BP Financier'!$C$19+'BP Financier'!$D$16+'BP Financier'!$D$19+'BP Financier'!$E$16+'BP Financier'!$E$19+'BP Financier'!$C$22+'BP Financier'!$D$22+'BP Financier'!$E$22+'BP Financier'!$F$16+'BP Financier'!$F$19+'BP Financier'!$F$22+'BP Financier'!$G$16+'BP Financier'!$G$19+'BP Financier'!$G$22))*$V8285*AB8285/(1-$W8285)","v":{"v":77337.32604244292,"d":"77,337"}},null,{"v":0.006,"d":"0.60%"},{"$f":"Actif!$E$28/100","v":{"v":0.28900000000000003,"d":"28.90%"}},{"$f":"Actif!$E$30/100","v":{"v":0.09050000000000001,"d":"9.05%"}},{"$f":"Actif!$E$31/100","v":{"v":0.0605,"d":"6.05%"}},{"$f":"Actif!$E$32/100","v":{"v":0.47350000000000003,"d":"47.35%"}},{"$f":"Actif!$E$33/100","v":{"v":0.0585,"d":"5.85%"}},{"$f":"Actif!$E$29/100","v":{"v":0.027999999999999997,"d":"2.80%"}}]
[null,"#173",52,2029,"H","A_VIE",{"v":0.44999999999999996,"d":"0.45"},{"v":0.38999999999999996,"d":"0.39"},0.6,0.6,85,0,{"$f":"ROUND(Primes!$Q$4*V8286,0)","v":68},{"$f":"'BP Financier'!$G$33*(('BP Financier'!$C$16+'BP Financier'!$D$16+'BP Financier'!$E$16+'BP Financier'!$F$16+'BP Financier'!$G$16)/('BP Financier'!$C$16+'BP Financier'!$C$19+'BP Financier'!$D$16+'BP Financier'!$D$19+'BP Financier'!$E$16+'BP Financier'!$E$19+'BP Financier'!$F$16+'BP Financier'!$F$19+'BP Financier'!$G$19+'BP Financier'!$G$16))*V8286","v":{"v":3421672.0459127007,"d":"3,421,672"}},{"v":1963815.672006318,"d":"1,963,816"},{"$f":"'BP Financier'!$G$44*(('BP Financier'!$C$16+'BP Financier'!$D$16+'BP Financier'!$E$16+'BP Financier'!$F$16+'BP Financier'!$G$16)/('BP Financier'!$C$16+'BP Financier'!$C$19+'BP Financier'!$D$16+'BP Financier'!$D$19+'BP Financier'!$E$16+'BP Financier'!$E$19+'BP Financier'!$C$22+'BP Financier'!$D$22+'BP Financier'!$E$22+'BP Financier'!$F$16+'BP Financier'!$F$19+'BP Financier'!$F$22+'BP Financier'!$G$16+'BP Financier'!$G$19+'BP Financier'!$G$22))*$V8286*X8286/(1-$W8286)","v":{"v":249965.28595861018,"d":"249,965"}},{"$f":"'BP Financier'!$G$44*(('BP Financier'!$C$16+'BP Financier'!$D$16+'BP Financier'!$E$16+'BP Financier'!$F$16+'BP Financier'!$G$16)/('BP Financier'!$C$16+'BP Financier'!$C$19+'BP Financier'!$D$16+'BP Financier'!$D$19+'BP Financier'!$E$16+'BP Financier'!$E$19+'BP Financier'!$C$22+'BP Financier'!$D$22+'BP Financier'!$E$22+'BP Financier'!$F$16+'BP Financier'!$F$19+'BP Financier'!$F$22+'BP Financier'!$G$16+'BP Financier'!$G$19+'BP Financier'!$G$22))*$V8286*Y8286/(1-$W8286)","v":{"v":167103.86519884988,"d":"167,104"}},{"$f":"'BP Financier'!$G$44*(('BP Financier'!$C$16+'BP Financier'!$D$16+'BP Financier'!$E$16+'BP Financier'!$F$16+'BP Financier'!$G$16)/('BP Financier'!$C$16+'BP Financier'!$C$19+'BP Financier'!$D$16+'BP Financier'!$D$19+'BP Financier'!$E$16+'BP Financier'!$E$19+'BP Financier'!$C$22+'BP Financier'!$D$22+'BP Financier'!$E$22+'BP Financier'!$F$16+'BP Financier'!$F$19+'BP Financier'!$F$22+'BP Financier'!$G$16+'BP Financier'!$G$19+'BP Financier'!$G$22))*$V8286*Z8286/(1-$W8286)","v":{"v":1307829.424324883,"d":"1,307,829"}},{"$f":"'BP Financier'!$G$44*(('BP Financier'!$C$16+'BP Financier'!$D$16+'BP Financier'!$E$16+'BP Financier'!$F$16+'BP Financier'!$G$16)/('BP Financier'!$C$16+'BP Financier'!$C$19+'BP Financier'!$D$16+'BP Financier'!$D$19+'BP Financier'!$E$16+'BP Financier'!$E$19+'BP Financier'!$C$22+'BP Financier'!$D$22+'BP Financier'!$E$22+'BP Financier'!$F$16+'BP Financier'!$F$19+'BP Financier'!$F$22+'BP Financier'!$G$16+'BP Financier'!$G$19+'BP Financier'!$G$22))*$V8286*AA8286/(1-$W8286)","v":{"v":161579.77048153256,"d":"161,580"}},{"$f":"'BP Financier'!$G$44*(('BP Financier'!$C$16+'BP Financier'!$D$16+'BP Financier'!$E$16+'BP Financier'!$F$16+'BP Financier'!$G$16)/('BP Financier'!$C$16+'BP Financier'!$C$19+'BP Financier'!$D$16+'BP Financier'!$D$19+'BP Financier'!$E$16+'BP Financier'!$E$19+'BP Financier'!$C$22+'BP Financier'!$D$22+'BP Financier'!$E$22+'BP Financier'!$F$16+'BP Financier'!$F$19+'BP Financier'!$F$22+'BP Financier'!$G$16+'BP Financier'!$G$19+'BP Financier'!$G$22))*$V8286*AB8286/(1-$W8286)","v":{"v":77337.32604244292,"d":"77,337"}},null,{"v":0.006,"d":"0.60%"},{"$f":"Actif!$E$28/100","v":{"v":0.28900000000000003,"d":"28.90%"}},{"$f":"Actif!$E$30/100","v":{"v":0.09050000000000001,"d":"9.05%"}},{"$f":"Actif!$E$31/100","v":{"v":0.0605,"d":"6.05%"}},{"$f":"Actif!$E$32/100","v":{"v":0.47350000000000003,"d":"47.35%"}},{"$f":"Actif!$E$33/100","v":{"v":0.0585,"d":"5.85%"}},{"$f":"Actif!$E$29/100","v":{"v":0.027999999999999997,"d":"2.80%"}}]
[null,"#174",52,2030,"H","A_VIE",{"v":0.44999999999999996,"d":"0.45"},{"v":0.38999999999999996,"d":"0.39"},0.6,0.6,85,0,{"$f":"ROUND(Primes!$Q$4*V8287,0)","v":68},{"$f":"'BP Financier'!$G$33*(('BP Financier'!$C$16+'BP Financier'!$D$16+'BP Financier'!$E$16+'BP Financier'!$F$16+'BP Financier'!$G$16)/('BP Financier'!$C$16+'BP Financier'!$C$19+'BP Financier'!$D$16+'BP Financier'!$D$19+'BP Financier'!$E$16+'BP Financier'!$E$19+'BP Financier'!$F$16+'BP Financier'!$F$19+'BP Financier'!$G$19+'BP Financier'!$G$16))*V8287","v":{"v":3421672.0459127007,"d":"3,421,672"}},{"v":1963815.672006318,"d":"1,963,816"},{"$f":"'BP Financier'!$G$44*(('BP Financier'!$C$16+'BP Financier'!$D$16+'BP Financier'!$E$16+'BP Financier'!$F$16+'BP Financier'!$G$16)/('BP Financier'!$C$16+'BP Financier'!$C$19+'BP Financier'!$D$16+'BP Financier'!$D$19+'BP Financier'!$E$16+'BP Financier'!$E$19+'BP Financier'!$C$22+'BP Financier'!$D$22+'BP Financier'!$E$22+'BP Financier'!$F$16+'BP Financier'!$F$19+'BP Financier'!$F$22+'BP Financier'!$G$16+'BP Financier'!$G$19+'BP Financier'!$G$22))*$V8287*X8287/(1-$W8287)","v":{"v":249965.28595861018,"d":"249,965"}},{"$f":"'BP Financier'!$G$44*(('BP Financier'!$C$16+'BP Financier'!$D$16+'BP Financier'!$E$16+'BP Financier'!$F$16+'BP Financier'!$G$16)/('BP Financier'!$C$16+'BP Financier'!$C$19+'BP Financier'!$D$16+'BP Financier'!$D$19+'BP Financier'!$E$16+'BP Financier'!$E$19+'BP Financier'!$C$22+'BP Financier'!$D$22+'BP Financier'!$E$22+'BP Financier'!$F$16+'BP Financier'!$F$19+'BP Financier'!$F$22+'BP Financier'!$G$16+'BP Financier'!$G$19+'BP Financier'!$G$22))*$V8287*Y8287/(1-$W8287)","v":{"v":167103.86519884988,"d":"167,104"}},{"$f":"'BP Financier'!$G$44*(('BP Financier'!$C$16+'BP Financier'!$D$16+'BP Financier'!$E$16+'BP Financier'!$F$16+'BP Financier'!$G$16)/('BP Financier'!$C$16+'BP Financier'!$C$19+'BP Financier'!$D$16+'BP Financier'!$D$19+'BP Financier'!$E$16+'BP Financier'!$E$19+'BP Financier'!$C$22+'BP Financier'!$D$22+'BP Financier'!$E$22+'BP Financier'!$F$16+'BP Financier'!$F$19+'BP Financier'!$F$22+'BP Financier'!$G$16+'BP Financier'!$G$19+'BP Financier'!$G$22))*$V8287*Z8287/(1-$W8287)","v":{"v":1307829.424324883,"d":"1,307,829"}},{"$f":"'BP Financier'!$G$44*(('BP Financier'!$C$16+'BP Financier'!$D$16+'BP Financier'!$E$16+'BP Financier'!$F$16+'BP Financier'!$G$16)/('BP Financier'!$C$16+'BP Financier'!$C$19+'BP Financier'!$D$16+'BP Financier'!$D$19+'BP Financier'!$E$16+'BP Financier'!$E$19+'BP Financier'!$C$22+'BP Financier'!$D$22+'BP Financier'!$E$22+'BP Financier'!$F$16+'BP Financier'!$F$19+'BP Financier'!$F$22+'BP Financier'!$G$16+'BP Financier'!$G$19+'BP Financier'!$G$22))*$V8287*AA8287/(1-$W8287)","v":{"v":161579.77048153256,"d":"161,580"}},{"$f":"'BP Financier'!$G$44*(('BP Financier'!$C$16+'BP Financier'!$D$16+'BP Financier'!$E$16+'BP Financier'!$F$16+'BP Financier'!$G$16)/('BP Financier'!$C$16+'BP Financier'!$C$19+'BP Financier'!$D$16+'BP Financier'!$D$19+'BP Financier'!$E$16+'BP Financier'!$E$19+'BP Financier'!$C$22+'BP Financier'!$D$22+'BP Financier'!$E$22+'BP Financier'!$F$16+'BP Financier'!$F$19+'BP Financier'!$F$22+'BP Financier'!$G$16+'BP Financier'!$G$19+'BP Financier'!$G$22))*$V8287*AB8287/(1-$W8287)","v":{"v":77337.32604244292,"d":"77,337"}},null,{"v":0.006,"d":"0.60%"},{"$f":"Actif!$E$28/100","v":{"v":0.28900000000000003,"d":"28.90%"}},{"$f":"Actif!$E$30/100","v":{"v":0.09050000000000001,"d":"9.05%"}},{"$f":"Actif!$E$31/100","v":{"v":0.0605,"d":"6.05%"}},{"$f":"Actif!$E$32/100","v":{"v":0.47350000000000003,"d":"47.35%"}},{"$f":"Actif!$E$33/100","v":{"v":0.0585,"d":"5.85%"}},{"$f":"Actif!$E$29/100","v":{"v":0.027999999999999997,"d":"2.80%"}}]
[null,"#175",52,2031,"H","A_VIE",{"v":0.44999999999999996,"d":"0.45"},{"v":0.38999999999999996,"d":"0.39"},0.6,0.6,85,0,{"$f":"ROUND(Primes!$Q$4*V8288,0)","v":68},{"$f":"'BP Financier'!$G$33*(('BP Financier'!$C$16+'BP Financier'!$D$16+'BP Financier'!$E$16+'BP Financier'!$F$16+'BP Financier'!$G$16)/('BP Financier'!$C$16+'BP Financier'!$C$19+'BP Financier'!$D$16+'BP Financier'!$D$19+'BP Financier'!$E$16+'BP Financier'!$E$19+'BP Financier'!$F$16+'BP Financier'!$F$19+'BP Financier'!$G$19+'BP Financier'!$G$16))*V8288","v":{"v":3421672.0459127007,"d":"3,421,672"}},{"v":1963815.672006318,"d":"1,963,816"},{"$f":"'BP Financier'!$G$44*(('BP Financier'!$C$16+'BP Financier'!$D$16+'BP Financier'!$E$16+'BP Financier'!$F$16+'BP Financier'!$G$16)/('BP Financier'!$C$16+'BP Financier'!$C$19+'BP Financier'!$D$16+'BP Financier'!$D$19+'BP Financier'!$E$16+'BP Financier'!$E$19+'BP Financier'!$C$22+'BP Financier'!$D$22+'BP Financier'!$E$22+'BP Financier'!$F$16+'BP Financier'!$F$19+'BP Financier'!$F$22+'BP Financier'!$G$16+'BP Financier'!$G$19+'BP Financier'!$G$22))*$V8288*X8288/(1-$W8288)","v":{"v":249965.28595861018,"d":"249,965"}},{"$f":"'BP Financier'!$G$44*(('BP Financier'!$C$16+'BP Financier'!$D$16+'BP Financier'!$E$16+'BP Financier'!$F$16+'BP Financier'!$G$16)/('BP Financier'!$C$16+'BP Financier'!$C$19+'BP Financier'!$D$16+'BP Financier'!$D$19+'BP Financier'!$E$16+'BP Financier'!$E$19+'BP Financier'!$C$22+'BP Financier'!$D$22+'BP Financier'!$E$22+'BP Financier'!$F$16+'BP Financier'!$F$19+'BP Financier'!$F$22+'BP Financier'!$G$16+'BP Financier'!$G$19+'BP Financier'!$G$22))*$V8288*Y8288/(1-$W8288)","v":{"v":167103.86519884988,"d":"167,104"}},{"$f":"'BP Financier'!$G$44*(('BP Financier'!$C$16+'BP Financier'!$D$16+'BP Financier'!$E$16+'BP Financier'!$F$16+'BP Financier'!$G$16)/('BP Financier'!$C$16+'BP Financier'!$C$19+'BP Financier'!$D$16+'BP Financier'!$D$19+'BP Financier'!$E$16+'BP Financier'!$E$19+'BP Financier'!$C$22+'BP Financier'!$D$22+'BP Financier'!$E$22+'BP Financier'!$F$16+'BP Financier'!$F$19+'BP Financier'!$F$22+'BP Financier'!$G$16+'BP Financier'!$G$19+'BP Financier'!$G$22))*$V8288*Z8288/(1-$W8288)","v":{"v":1307829.424324883,"d":"1,307,829"}},{"$f":"'BP Financier'!$G$44*(('BP Financier'!$C$16+'BP Financier'!$D$16+'BP Financier'!$E$16+'BP Financier'!$F$16+'BP Financier'!$G$16)/('BP Financier'!$C$16+'BP Financier'!$C$19+'BP Financier'!$D$16+'BP Financier'!$D$19+'BP Financier'!$E$16+'BP Financier'!$E$19+'BP Financier'!$C$22+'BP Financier'!$D$22+'BP Financier'!$E$22+'BP Financier'!$F$16+'BP Financier'!$F$19+'BP Financier'!$F$22+'BP Financier'!$G$16+'BP Financier'!$G$19+'BP Financier'!$G$22))*$V8288*AA8288/(1-$W8288)","v":{"v":161579.77048153256,"d":"161,580"}},{"$f":"'BP Financier'!$G$44*(('BP Financier'!$C$16+'BP Financier'!$D$16+'BP Financier'!$E$16+'BP Financier'!$F$16+'BP Financier'!$G$16)/('BP Financier'!$C$16+'BP Financier'!$C$19+'BP Financier'!$D$16+'BP Financier'!$D$19+'BP Financier'!$E$16+'BP Financier'!$E$19+'BP Financier'!$C$22+'BP Financier'!$D$22+'BP Financier'!$E$22+'BP Financier'!$F$16+'BP Financier'!$F$19+'BP Financier'!$F$22+'BP Financier'!$G$16+'BP Financier'!$G$19+'BP Financier'!$G$22))*$V8288*AB8288/(1-$W8288)","v":{"v":77337.32604244292,"d":"77,337"}},null,{"v":0.006,"d":"0.60%"},{"$f":"Actif!$E$28/100","v":{"v":0.28900000000000003,"d":"28.90%"}},{"$f":"Actif!$E$30/100","v":{"v":0.09050000000000001,"d":"9.05%"}},{"$f":"Actif!$E$31/100","v":{"v":0.0605,"d":"6.05%"}},{"$f":"Actif!$E$32/100","v":{"v":0.47350000000000003,"d":"47.35%"}},{"$f":"Actif!$E$33/100","v":{"v":0.0585,"d":"5.85%"}},{"$f":"Actif!$E$29/100","v":{"v":0.027999999999999997,"d":"2.80%"}}]
[null,"#176",53,2026,"F","A_VIE",{"v":0.44999999999999996,"d":"0.45"},{"v":0.38999999999999996,"d":"0.39"},0.6,0.6,85,0,{"$f":"ROUND(Primes!$Q$4*V8289,0)","v":68},{"$f":"'BP Financier'!$G$33*(('BP Financier'!$C$16+'BP Financier'!$D$16+'BP Financier'!$E$16+'BP Financier'!$F$16+'BP Financier'!$G$16)/('BP Financier'!$C$16+'BP Financier'!$C$19+'BP Financier'!$D$16+'BP Financier'!$D$19+'BP Financier'!$E$16+'BP Financier'!$E$19+'BP Financier'!$F$16+'BP Financier'!$F$19+'BP Financier'!$G$19+'BP Financier'!$G$16))*V8289","v":{"v":3421672.0459127007,"d":"3,421,672"}},{"v":1963815.672006318,"d":"1,963,816"},{"$f":"'BP Financier'!$G$44*(('BP Financier'!$C$16+'BP Financier'!$D$16+'BP Financier'!$E$16+'BP Financier'!$F$16+'BP Financier'!$G$16)/('BP Financier'!$C$16+'BP Financier'!$C$19+'BP Financier'!$D$16+'BP Financier'!$D$19+'BP Financier'!$E$16+'BP Financier'!$E$19+'BP Financier'!$C$22+'BP Financier'!$D$22+'BP Financier'!$E$22+'BP Financier'!$F$16+'BP Financier'!$F$19+'BP Financier'!$F$22+'BP Financier'!$G$16+'BP Financier'!$G$19+'BP Financier'!$G$22))*$V8289*X8289/(1-$W8289)","v":{"v":249965.28595861018,"d":"249,965"}},{"$f":"'BP Financier'!$G$44*(('BP Financier'!$C$16+'BP Financier'!$D$16+'BP Financier'!$E$16+'BP Financier'!$F$16+'BP Financier'!$G$16)/('BP Financier'!$C$16+'BP Financier'!$C$19+'BP Financier'!$D$16+'BP Financier'!$D$19+'BP Financier'!$E$16+'BP Financier'!$E$19+'BP Financier'!$C$22+'BP Financier'!$D$22+'BP Financier'!$E$22+'BP Financier'!$F$16+'BP Financier'!$F$19+'BP Financier'!$F$22+'BP Financier'!$G$16+'BP Financier'!$G$19+'BP Financier'!$G$22))*$V8289*Y8289/(1-$W8289)","v":{"v":167103.86519884988,"d":"167,104"}},{"$f":"'BP Financier'!$G$44*(('BP Financier'!$C$16+'BP Financier'!$D$16+'BP Financier'!$E$16+'BP Financier'!$F$16+'BP Financier'!$G$16)/('BP Financier'!$C$16+'BP Financier'!$C$19+'BP Financier'!$D$16+'BP Financier'!$D$19+'BP Financier'!$E$16+'BP Financier'!$E$19+'BP Financier'!$C$22+'BP Financier'!$D$22+'BP Financier'!$E$22+'BP Financier'!$F$16+'BP Financier'!$F$19+'BP Financier'!$F$22+'BP Financier'!$G$16+'BP Financier'!$G$19+'BP Financier'!$G$22))*$V8289*Z8289/(1-$W8289)","v":{"v":1307829.424324883,"d":"1,307,829"}},{"$f":"'BP Financier'!$G$44*(('BP Financier'!$C$16+'BP Financier'!$D$16+'BP Financier'!$E$16+'BP Financier'!$F$16+'BP Financier'!$G$16)/('BP Financier'!$C$16+'BP Financier'!$C$19+'BP Financier'!$D$16+'BP Financier'!$D$19+'BP Financier'!$E$16+'BP Financier'!$E$19+'BP Financier'!$C$22+'BP Financier'!$D$22+'BP Financier'!$E$22+'BP Financier'!$F$16+'BP Financier'!$F$19+'BP Financier'!$F$22+'BP Financier'!$G$16+'BP Financier'!$G$19+'BP Financier'!$G$22))*$V8289*AA8289/(1-$W8289)","v":{"v":161579.77048153256,"d":"161,580"}},{"$f":"'BP Financier'!$G$44*(('BP Financier'!$C$16+'BP Financier'!$D$16+'BP Financier'!$E$16+'BP Financier'!$F$16+'BP Financier'!$G$16)/('BP Financier'!$C$16+'BP Financier'!$C$19+'BP Financier'!$D$16+'BP Financier'!$D$19+'BP Financier'!$E$16+'BP Financier'!$E$19+'BP Financier'!$C$22+'BP Financier'!$D$22+'BP Financier'!$E$22+'BP Financier'!$F$16+'BP Financier'!$F$19+'BP Financier'!$F$22+'BP Financier'!$G$16+'BP Financier'!$G$19+'BP Financier'!$G$22))*$V8289*AB8289/(1-$W8289)","v":{"v":77337.32604244292,"d":"77,337"}},null,{"v":0.006,"d":"0.60%"},{"$f":"Actif!$E$28/100","v":{"v":0.28900000000000003,"d":"28.90%"}},{"$f":"Actif!$E$30/100","v":{"v":0.09050000000000001,"d":"9.05%"}},{"$f":"Actif!$E$31/100","v":{"v":0.0605,"d":"6.05%"}},{"$f":"Actif!$E$32/100","v":{"v":0.47350000000000003,"d":"47.35%"}},{"$f":"Actif!$E$33/100","v":{"v":0.0585,"d":"5.85%"}},{"$f":"Actif!$E$29/100","v":{"v":0.027999999999999997,"d":"2.80%"}}]
[null,"#177",53,2028,"F","A_VIE",{"v":0.44999999999999996,"d":"0.45"},{"v":0.38999999999999996,"d":"0.39"},0.6,0.6,85,0,{"$f":"ROUND(Primes!$Q$4*V8290,0)","v":68},{"$f":"'BP Financier'!$G$33*(('BP Financier'!$C$16+'BP Financier'!$D$16+'BP Financier'!$E$16+'BP Financier'!$F$16+'BP Financier'!$G$16)/('BP Financier'!$C$16+'BP Financier'!$C$19+'BP Financier'!$D$16+'BP Financier'!$D$19+'BP Financier'!$E$16+'BP Financier'!$E$19+'BP Financier'!$F$16+'BP Financier'!$F$19+'BP Financier'!$G$19+'BP Financier'!$G$16))*V8290","v":{"v":3421672.0459127007,"d":"3,421,672"}},{"v":1963815.672006318,"d":"1,963,816"},{"$f":"'BP Financier'!$G$44*(('BP Financier'!$C$16+'BP Financier'!$D$16+'BP Financier'!$E$16+'BP Financier'!$F$16+'BP Financier'!$G$16)/('BP Financier'!$C$16+'BP Financier'!$C$19+'BP Financier'!$D$16+'BP Financier'!$D$19+'BP Financier'!$E$16+'BP Financier'!$E$19+'BP Financier'!$C$22+'BP Financier'!$D$22+'BP Financier'!$E$22+'BP Financier'!$F$16+'BP Financier'!$F$19+'BP Financier'!$F$22+'BP Financier'!$G$16+'BP Financier'!$G$19+'BP Financier'!$G$22))*$V8290*X8290/(1-$W8290)","v":{"v":249965.28595861018,"d":"249,965"}},{"$f":"'BP Financier'!$G$44*(('BP Financier'!$C$16+'BP Financier'!$D$16+'BP Financier'!$E$16+'BP Financier'!$F$16+'BP Financier'!$G$16)/('BP Financier'!$C$16+'BP Financier'!$C$19+'BP Financier'!$D$16+'BP Financier'!$D$19+'BP Financier'!$E$16+'BP Financier'!$E$19+'BP Financier'!$C$22+'BP Financier'!$D$22+'BP Financier'!$E$22+'BP Financier'!$F$16+'BP Financier'!$F$19+'BP Financier'!$F$22+'BP Financier'!$G$16+'BP Financier'!$G$19+'BP Financier'!$G$22))*$V8290*Y8290/(1-$W8290)","v":{"v":167103.86519884988,"d":"167,104"}},{"$f":"'BP Financier'!$G$44*(('BP Financier'!$C$16+'BP Financier'!$D$16+'BP Financier'!$E$16+'BP Financier'!$F$16+'BP Financier'!$G$16)/('BP Financier'!$C$16+'BP Financier'!$C$19+'BP Financier'!$D$16+'BP Financier'!$D$19+'BP Financier'!$E$16+'BP Financier'!$E$19+'BP Financier'!$C$22+'BP Financier'!$D$22+'BP Financier'!$E$22+'BP Financier'!$F$16+'BP Financier'!$F$19+'BP Financier'!$F$22+'BP Financier'!$G$16+'BP Financier'!$G$19+'BP Financier'!$G$22))*$V8290*Z8290/(1-$W8290)","v":{"v":1307829.424324883,"d":"1,307,829"}},{"$f":"'BP Financier'!$G$44*(('BP Financier'!$C$16+'BP Financier'!$D$16+'BP Financier'!$E$16+'BP Financier'!$F$16+'BP Financier'!$G$16)/('BP Financier'!$C$16+'BP Financier'!$C$19+'BP Financier'!$D$16+'BP Financier'!$D$19+'BP Financier'!$E$16+'BP Financier'!$E$19+'BP Financier'!$C$22+'BP Financier'!$D$22+'BP Financier'!$E$22+'BP Financier'!$F$16+'BP Financier'!$F$19+'BP Financier'!$F$22+'BP Financier'!$G$16+'BP Financier'!$G$19+'BP Financier'!$G$22))*$V8290*AA8290/(1-$W8290)","v":{"v":161579.77048153256,"d":"161,580"}},{"$f":"'BP Financier'!$G$44*(('BP Financier'!$C$16+'BP Financier'!$D$16+'BP Financier'!$E$16+'BP Financier'!$F$16+'BP Financier'!$G$16)/('BP Financier'!$C$16+'BP Financier'!$C$19+'BP Financier'!$D$16+'BP Financier'!$D$19+'BP Financier'!$E$16+'BP Financier'!$E$19+'BP Financier'!$C$22+'BP Financier'!$D$22+'BP Financier'!$E$22+'BP Financier'!$F$16+'BP Financier'!$F$19+'BP Financier'!$F$22+'BP Financier'!$G$16+'BP Financier'!$G$19+'BP Financier'!$G$22))*$V8290*AB8290/(1-$W8290)","v":{"v":77337.32604244292,"d":"77,337"}},null,{"v":0.006,"d":"0.60%"},{"$f":"Actif!$E$28/100","v":{"v":0.28900000000000003,"d":"28.90%"}},{"$f":"Actif!$E$30/100","v":{"v":0.09050000000000001,"d":"9.05%"}},{"$f":"Actif!$E$31/100","v":{"v":0.0605,"d":"6.05%"}},{"$f":"Actif!$E$32/100","v":{"v":0.47350000000000003,"d":"47.35%"}},{"$f":"Actif!$E$33/100","v":{"v":0.0585,"d":"5.85%"}},{"$f":"Actif!$E$29/100","v":{"v":0.027999999999999997,"d":"2.80%"}}]
[null,"#178",53,2029,"F","A_VIE",{"v":0.44999999999999996,"d":"0.45"},{"v":0.38999999999999996,"d":"0.39"},0.6,0.6,85,0,{"$f":"ROUND(Primes!$Q$4*V8291,0)","v":68},{"$f":"'BP Financier'!$G$33*(('BP Financier'!$C$16+'BP Financier'!$D$16+'BP Financier'!$E$16+'BP Financier'!$F$16+'BP Financier'!$G$16)/('BP Financier'!$C$16+'BP Financier'!$C$19+'BP Financier'!$D$16+'BP Financier'!$D$19+'BP Financier'!$E$16+'BP Financier'!$E$19+'BP Financier'!$F$16+'BP Financier'!$F$19+'BP Financier'!$G$19+'BP Financier'!$G$16))*V8291","v":{"v":3421672.0459127007,"d":"3,421,672"}},{"v":1963815.672006318,"d":"1,963,816"},{"$f":"'BP Financier'!$G$44*(('BP Financier'!$C$16+'BP Financier'!$D$16+'BP Financier'!$E$16+'BP Financier'!$F$16+'BP Financier'!$G$16)/('BP Financier'!$C$16+'BP Financier'!$C$19+'BP Financier'!$D$16+'BP Financier'!$D$19+'BP Financier'!$E$16+'BP Financier'!$E$19+'BP Financier'!$C$22+'BP Financier'!$D$22+'BP Financier'!$E$22+'BP Financier'!$F$16+'BP Financier'!$F$19+'BP Financier'!$F$22+'BP Financier'!$G$16+'BP Financier'!$G$19+'BP Financier'!$G$22))*$V8291*X8291/(1-$W8291)","v":{"v":249965.28595861018,"d":"249,965"}},{"$f":"'BP Financier'!$G$44*(('BP Financier'!$C$16+'BP Financier'!$D$16+'BP Financier'!$E$16+'BP Financier'!$F$16+'BP Financier'!$G$16)/('BP Financier'!$C$16+'BP Financier'!$C$19+'BP Financier'!$D$16+'BP Financier'!$D$19+'BP Financier'!$E$16+'BP Financier'!$E$19+'BP Financier'!$C$22+'BP Financier'!$D$22+'BP Financier'!$E$22+'BP Financier'!$F$16+'BP Financier'!$F$19+'BP Financier'!$F$22+'BP Financier'!$G$16+'BP Financier'!$G$19+'BP Financier'!$G$22))*$V8291*Y8291/(1-$W8291)","v":{"v":167103.86519884988,"d":"167,104"}},{"$f":"'BP Financier'!$G$44*(('BP Financier'!$C$16+'BP Financier'!$D$16+'BP Financier'!$E$16+'BP Financier'!$F$16+'BP Financier'!$G$16)/('BP Financier'!$C$16+'BP Financier'!$C$19+'BP Financier'!$D$16+'BP Financier'!$D$19+'BP Financier'!$E$16+'BP Financier'!$E$19+'BP Financier'!$C$22+'BP Financier'!$D$22+'BP Financier'!$E$22+'BP Financier'!$F$16+'BP Financier'!$F$19+'BP Financier'!$F$22+'BP Financier'!$G$16+'BP Financier'!$G$19+'BP Financier'!$G$22))*$V8291*Z8291/(1-$W8291)","v":{"v":1307829.424324883,"d":"1,307,829"}},{"$f":"'BP Financier'!$G$44*(('BP Financier'!$C$16+'BP Financier'!$D$16+'BP Financier'!$E$16+'BP Financier'!$F$16+'BP Financier'!$G$16)/('BP Financier'!$C$16+'BP Financier'!$C$19+'BP Financier'!$D$16+'BP Financier'!$D$19+'BP Financier'!$E$16+'BP Financier'!$E$19+'BP Financier'!$C$22+'BP Financier'!$D$22+'BP Financier'!$E$22+'BP Financier'!$F$16+'BP Financier'!$F$19+'BP Financier'!$F$22+'BP Financier'!$G$16+'BP Financier'!$G$19+'BP Financier'!$G$22))*$V8291*AA8291/(1-$W8291)","v":{"v":161579.77048153256,"d":"161,580"}},{"$f":"'BP Financier'!$G$44*(('BP Financier'!$C$16+'BP Financier'!$D$16+'BP Financier'!$E$16+'BP Financier'!$F$16+'BP Financier'!$G$16)/('BP Financier'!$C$16+'BP Financier'!$C$19+'BP Financier'!$D$16+'BP Financier'!$D$19+'BP Financier'!$E$16+'BP Financier'!$E$19+'BP Financier'!$C$22+'BP Financier'!$D$22+'BP Financier'!$E$22+'BP Financier'!$F$16+'BP Financier'!$F$19+'BP Financier'!$F$22+'BP Financier'!$G$16+'BP Financier'!$G$19+'BP Financier'!$G$22))*$V8291*AB8291/(1-$W8291)","v":{"v":77337.32604244292,"d":"77,337"}},null,{"v":0.006,"d":"0.60%"},{"$f":"Actif!$E$28/100","v":{"v":0.28900000000000003,"d":"28.90%"}},{"$f":"Actif!$E$30/100","v":{"v":0.09050000000000001,"d":"9.05%"}},{"$f":"Actif!$E$31/100","v":{"v":0.0605,"d":"6.05%"}},{"$f":"Actif!$E$32/100","v":{"v":0.47350000000000003,"d":"47.35%"}},{"$f":"Actif!$E$33/100","v":{"v":0.0585,"d":"5.85%"}},{"$f":"Actif!$E$29/100","v":{"v":0.027999999999999997,"d":"2.80%"}}]
[null,"#179",53,2030,"F","A_VIE",{"v":0.44999999999999996,"d":"0.45"},{"v":0.38999999999999996,"d":"0.39"},0.6,0.6,85,0,{"$f":"ROUND(Primes!$Q$4*V8292,0)","v":68},{"$f":"'BP Financier'!$G$33*(('BP Financier'!$C$16+'BP Financier'!$D$16+'BP Financier'!$E$16+'BP Financier'!$F$16+'BP Financier'!$G$16)/('BP Financier'!$C$16+'BP Financier'!$C$19+'BP Financier'!$D$16+'BP Financier'!$D$19+'BP Financier'!$E$16+'BP Financier'!$E$19+'BP Financier'!$F$16+'BP Financier'!$F$19+'BP Financier'!$G$19+'BP Financier'!$G$16))*V8292","v":{"v":3421672.0459127007,"d":"3,421,672"}},{"v":1963815.672006318,"d":"1,963,816"},{"$f":"'BP Financier'!$G$44*(('BP Financier'!$C$16+'BP Financier'!$D$16+'BP Financier'!$E$16+'BP Financier'!$F$16+'BP Financier'!$G$16)/('BP Financier'!$C$16+'BP Financier'!$C$19+'BP Financier'!$D$16+'BP Financier'!$D$19+'BP Financier'!$E$16+'BP Financier'!$E$19+'BP Financier'!$C$22+'BP Financier'!$D$22+'BP Financier'!$E$22+'BP Financier'!$F$16+'BP Financier'!$F$19+'BP Financier'!$F$22+'BP Financier'!$G$16+'BP Financier'!$G$19+'BP Financier'!$G$22))*$V8292*X8292/(1-$W8292)","v":{"v":249965.28595861018,"d":"249,965"}},{"$f":"'BP Financier'!$G$44*(('BP Financier'!$C$16+'BP Financier'!$D$16+'BP Financier'!$E$16+'BP Financier'!$F$16+'BP Financier'!$G$16)/('BP Financier'!$C$16+'BP Financier'!$C$19+'BP Financier'!$D$16+'BP Financier'!$D$19+'BP Financier'!$E$16+'BP Financier'!$E$19+'BP Financier'!$C$22+'BP Financier'!$D$22+'BP Financier'!$E$22+'BP Financier'!$F$16+'BP Financier'!$F$19+'BP Financier'!$F$22+'BP Financier'!$G$16+'BP Financier'!$G$19+'BP Financier'!$G$22))*$V8292*Y8292/(1-$W8292)","v":{"v":167103.86519884988,"d":"167,104"}},{"$f":"'BP Financier'!$G$44*(('BP Financier'!$C$16+'BP Financier'!$D$16+'BP Financier'!$E$16+'BP Financier'!$F$16+'BP Financier'!$G$16)/('BP Financier'!$C$16+'BP Financier'!$C$19+'BP Financier'!$D$16+'BP Financier'!$D$19+'BP Financier'!$E$16+'BP Financier'!$E$19+'BP Financier'!$C$22+'BP Financier'!$D$22+'BP Financier'!$E$22+'BP Financier'!$F$16+'BP Financier'!$F$19+'BP Financier'!$F$22+'BP Financier'!$G$16+'BP Financier'!$G$19+'BP Financier'!$G$22))*$V8292*Z8292/(1-$W8292)","v":{"v":1307829.424324883,"d":"1,307,829"}},{"$f":"'BP Financier'!$G$44*(('BP Financier'!$C$16+'BP Financier'!$D$16+'BP Financier'!$E$16+'BP Financier'!$F$16+'BP Financier'!$G$16)/('BP Financier'!$C$16+'BP Financier'!$C$19+'BP Financier'!$D$16+'BP Financier'!$D$19+'BP Financier'!$E$16+'BP Financier'!$E$19+'BP Financier'!$C$22+'BP Financier'!$D$22+'BP Financier'!$E$22+'BP Financier'!$F$16+'BP Financier'!$F$19+'BP Financier'!$F$22+'BP Financier'!$G$16+'BP Financier'!$G$19+'BP Financier'!$G$22))*$V8292*AA8292/(1-$W8292)","v":{"v":161579.77048153256,"d":"161,580"}},{"$f":"'BP Financier'!$G$44*(('BP Financier'!$C$16+'BP Financier'!$D$16+'BP Financier'!$E$16+'BP Financier'!$F$16+'BP Financier'!$G$16)/('BP Financier'!$C$16+'BP Financier'!$C$19+'BP Financier'!$D$16+'BP Financier'!$D$19+'BP Financier'!$E$16+'BP Financier'!$E$19+'BP Financier'!$C$22+'BP Financier'!$D$22+'BP Financier'!$E$22+'BP Financier'!$F$16+'BP Financier'!$F$19+'BP Financier'!$F$22+'BP Financier'!$G$16+'BP Financier'!$G$19+'BP Financier'!$G$22))*$V8292*AB8292/(1-$W8292)","v":{"v":77337.32604244292,"d":"77,337"}},null,{"v":0.006,"d":"0.60%"},{"$f":"Actif!$E$28/100","v":{"v":0.28900000000000003,"d":"28.90%"}},{"$f":"Actif!$E$30/100","v":{"v":0.09050000000000001,"d":"9.05%"}},{"$f":"Actif!$E$31/100","v":{"v":0.0605,"d":"6.05%"}},{"$f":"Actif!$E$32/100","v":{"v":0.47350000000000003,"d":"47.35%"}},{"$f":"Actif!$E$33/100","v":{"v":0.0585,"d":"5.85%"}},{"$f":"Actif!$E$29/100","v":{"v":0.027999999999999997,"d":"2.80%"}}]
[null,"#180",53,2031,"F","A_VIE",{"v":0.44999999999999996,"d":"0.45"},{"v":0.38999999999999996,"d":"0.39"},0.6,0.6,85,0,{"$f":"ROUND(Primes!$Q$4*V8293,0)","v":68},{"$f":"'BP Financier'!$G$33*(('BP Financier'!$C$16+'BP Financier'!$D$16+'BP Financier'!$E$16+'BP Financier'!$F$16+'BP Financier'!$G$16)/('BP Financier'!$C$16+'BP Financier'!$C$19+'BP Financier'!$D$16+'BP Financier'!$D$19+'BP Financier'!$E$16+'BP Financier'!$E$19+'BP Financier'!$F$16+'BP Financier'!$F$19+'BP Financier'!$G$19+'BP Financier'!$G$16))*V8293","v":{"v":3421672.0459127007,"d":"3,421,672"}},{"v":1963815.672006318,"d":"1,963,816"},{"$f":"'BP Financier'!$G$44*(('BP Financier'!$C$16+'BP Financier'!$D$16+'BP Financier'!$E$16+'BP Financier'!$F$16+'BP Financier'!$G$16)/('BP Financier'!$C$16+'BP Financier'!$C$19+'BP Financier'!$D$16+'BP Financier'!$D$19+'BP Financier'!$E$16+'BP Financier'!$E$19+'BP Financier'!$C$22+'BP Financier'!$D$22+'BP Financier'!$E$22+'BP Financier'!$F$16+'BP Financier'!$F$19+'BP Financier'!$F$22+'BP Financier'!$G$16+'BP Financier'!$G$19+'BP Financier'!$G$22))*$V8293*X8293/(1-$W8293)","v":{"v":249965.28595861018,"d":"249,965"}},{"$f":"'BP Financier'!$G$44*(('BP Financier'!$C$16+'BP Financier'!$D$16+'BP Financier'!$E$16+'BP Financier'!$F$16+'BP Financier'!$G$16)/('BP Financier'!$C$16+'BP Financier'!$C$19+'BP Financier'!$D$16+'BP Financier'!$D$19+'BP Financier'!$E$16+'BP Financier'!$E$19+'BP Financier'!$C$22+'BP Financier'!$D$22+'BP Financier'!$E$22+'BP Financier'!$F$16+'BP Financier'!$F$19+'BP Financier'!$F$22+'BP Financier'!$G$16+'BP Financier'!$G$19+'BP Financier'!$G$22))*$V8293*Y8293/(1-$W8293)","v":{"v":167103.86519884988,"d":"167,104"}},{"$f":"'BP Financier'!$G$44*(('BP Financier'!$C$16+'BP Financier'!$D$16+'BP Financier'!$E$16+'BP Financier'!$F$16+'BP Financier'!$G$16)/('BP Financier'!$C$16+'BP Financier'!$C$19+'BP Financier'!$D$16+'BP Financier'!$D$19+'BP Financier'!$E$16+'BP Financier'!$E$19+'BP Financier'!$C$22+'BP Financier'!$D$22+'BP Financier'!$E$22+'BP Financier'!$F$16+'BP Financier'!$F$19+'BP Financier'!$F$22+'BP Financier'!$G$16+'BP Financier'!$G$19+'BP Financier'!$G$22))*$V8293*Z8293/(1-$W8293)","v":{"v":1307829.424324883,"d":"1,307,829"}},{"$f":"'BP Financier'!$G$44*(('BP Financier'!$C$16+'BP Financier'!$D$16+'BP Financier'!$E$16+'BP Financier'!$F$16+'BP Financier'!$G$16)/('BP Financier'!$C$16+'BP Financier'!$C$19+'BP Financier'!$D$16+'BP Financier'!$D$19+'BP Financier'!$E$16+'BP Financier'!$E$19+'BP Financier'!$C$22+'BP Financier'!$D$22+'BP Financier'!$E$22+'BP Financier'!$F$16+'BP Financier'!$F$19+'BP Financier'!$F$22+'BP Financier'!$G$16+'BP Financier'!$G$19+'BP Financier'!$G$22))*$V8293*AA8293/(1-$W8293)","v":{"v":161579.77048153256,"d":"161,580"}},{"$f":"'BP Financier'!$G$44*(('BP Financier'!$C$16+'BP Financier'!$D$16+'BP Financier'!$E$16+'BP Financier'!$F$16+'BP Financier'!$G$16)/('BP Financier'!$C$16+'BP Financier'!$C$19+'BP Financier'!$D$16+'BP Financier'!$D$19+'BP Financier'!$E$16+'BP Financier'!$E$19+'BP Financier'!$C$22+'BP Financier'!$D$22+'BP Financier'!$E$22+'BP Financier'!$F$16+'BP Financier'!$F$19+'BP Financier'!$F$22+'BP Financier'!$G$16+'BP Financier'!$G$19+'BP Financier'!$G$22))*$V8293*AB8293/(1-$W8293)","v":{"v":77337.32604244292,"d":"77,337"}},null,{"v":0.006,"d":"0.60%"},{"$f":"Actif!$E$28/100","v":{"v":0.28900000000000003,"d":"28.90%"}},{"$f":"Actif!$E$30/100","v":{"v":0.09050000000000001,"d":"9.05%"}},{"$f":"Actif!$E$31/100","v":{"v":0.0605,"d":"6.05%"}},{"$f":"Actif!$E$32/100","v":{"v":0.47350000000000003,"d":"47.35%"}},{"$f":"Actif!$E$33/100","v":{"v":0.0585,"d":"5.85%"}},{"$f":"Actif!$E$29/100","v":{"v":0.027999999999999997,"d":"2.80%"}}]
[null,"#181",54,2026,"H","A_VIE",{"v":0.44999999999999996,"d":"0.45"},{"v":0.38999999999999996,"d":"0.39"},0.6,0.6,85,0,{"$f":"ROUND(Primes!$Q$4*V8294,0)","v":68},{"$f":"'BP Financier'!$G$33*(('BP Financier'!$C$16+'BP Financier'!$D$16+'BP Financier'!$E$16+'BP Financier'!$F$16+'BP Financier'!$G$16)/('BP Financier'!$C$16+'BP Financier'!$C$19+'BP Financier'!$D$16+'BP Financier'!$D$19+'BP Financier'!$E$16+'BP Financier'!$E$19+'BP Financier'!$F$16+'BP Financier'!$F$19+'BP Financier'!$G$19+'BP Financier'!$G$16))*V8294","v":{"v":3421672.0459127007,"d":"3,421,672"}},{"v":1963815.672006318,"d":"1,963,816"},{"$f":"'BP Financier'!$G$44*(('BP Financier'!$C$16+'BP Financier'!$D$16+'BP Financier'!$E$16+'BP Financier'!$F$16+'BP Financier'!$G$16)/('BP Financier'!$C$16+'BP Financier'!$C$19+'BP Financier'!$D$16+'BP Financier'!$D$19+'BP Financier'!$E$16+'BP Financier'!$E$19+'BP Financier'!$C$22+'BP Financier'!$D$22+'BP Financier'!$E$22+'BP Financier'!$F$16+'BP Financier'!$F$19+'BP Financier'!$F$22+'BP Financier'!$G$16+'BP Financier'!$G$19+'BP Financier'!$G$22))*$V8294*X8294/(1-$W8294)","v":{"v":249965.28595861018,"d":"249,965"}},{"$f":"'BP Financier'!$G$44*(('BP Financier'!$C$16+'BP Financier'!$D$16+'BP Financier'!$E$16+'BP Financier'!$F$16+'BP Financier'!$G$16)/('BP Financier'!$C$16+'BP Financier'!$C$19+'BP Financier'!$D$16+'BP Financier'!$D$19+'BP Financier'!$E$16+'BP Financier'!$E$19+'BP Financier'!$C$22+'BP Financier'!$D$22+'BP Financier'!$E$22+'BP Financier'!$F$16+'BP Financier'!$F$19+'BP Financier'!$F$22+'BP Financier'!$G$16+'BP Financier'!$G$19+'BP Financier'!$G$22))*$V8294*Y8294/(1-$W8294)","v":{"v":167103.86519884988,"d":"167,104"}},{"$f":"'BP Financier'!$G$44*(('BP Financier'!$C$16+'BP Financier'!$D$16+'BP Financier'!$E$16+'BP Financier'!$F$16+'BP Financier'!$G$16)/('BP Financier'!$C$16+'BP Financier'!$C$19+'BP Financier'!$D$16+'BP Financier'!$D$19+'BP Financier'!$E$16+'BP Financier'!$E$19+'BP Financier'!$C$22+'BP Financier'!$D$22+'BP Financier'!$E$22+'BP Financier'!$F$16+'BP Financier'!$F$19+'BP Financier'!$F$22+'BP Financier'!$G$16+'BP Financier'!$G$19+'BP Financier'!$G$22))*$V8294*Z8294/(1-$W8294)","v":{"v":1307829.424324883,"d":"1,307,829"}},{"$f":"'BP Financier'!$G$44*(('BP Financier'!$C$16+'BP Financier'!$D$16+'BP Financier'!$E$16+'BP Financier'!$F$16+'BP Financier'!$G$16)/('BP Financier'!$C$16+'BP Financier'!$C$19+'BP Financier'!$D$16+'BP Financier'!$D$19+'BP Financier'!$E$16+'BP Financier'!$E$19+'BP Financier'!$C$22+'BP Financier'!$D$22+'BP Financier'!$E$22+'BP Financier'!$F$16+'BP Financier'!$F$19+'BP Financier'!$F$22+'BP Financier'!$G$16+'BP Financier'!$G$19+'BP Financier'!$G$22))*$V8294*AA8294/(1-$W8294)","v":{"v":161579.77048153256,"d":"161,580"}},{"$f":"'BP Financier'!$G$44*(('BP Financier'!$C$16+'BP Financier'!$D$16+'BP Financier'!$E$16+'BP Financier'!$F$16+'BP Financier'!$G$16)/('BP Financier'!$C$16+'BP Financier'!$C$19+'BP Financier'!$D$16+'BP Financier'!$D$19+'BP Financier'!$E$16+'BP Financier'!$E$19+'BP Financier'!$C$22+'BP Financier'!$D$22+'BP Financier'!$E$22+'BP Financier'!$F$16+'BP Financier'!$F$19+'BP Financier'!$F$22+'BP Financier'!$G$16+'BP Financier'!$G$19+'BP Financier'!$G$22))*$V8294*AB8294/(1-$W8294)","v":{"v":77337.32604244292,"d":"77,337"}},null,{"v":0.006,"d":"0.60%"},{"$f":"Actif!$E$28/100","v":{"v":0.28900000000000003,"d":"28.90%"}},{"$f":"Actif!$E$30/100","v":{"v":0.09050000000000001,"d":"9.05%"}},{"$f":"Actif!$E$31/100","v":{"v":0.0605,"d":"6.05%"}},{"$f":"Actif!$E$32/100","v":{"v":0.47350000000000003,"d":"47.35%"}},{"$f":"Actif!$E$33/100","v":{"v":0.0585,"d":"5.85%"}},{"$f":"Actif!$E$29/100","v":{"v":0.027999999999999997,"d":"2.80%"}}]
[null,"#182",54,2028,"H","A_VIE",{"v":0.44999999999999996,"d":"0.45"},{"v":0.38999999999999996,"d":"0.39"},0.6,0.6,85,0,{"$f":"ROUND(Primes!$Q$4*V8295,0)","v":68},{"$f":"'BP Financier'!$G$33*(('BP Financier'!$C$16+'BP Financier'!$D$16+'BP Financier'!$E$16+'BP Financier'!$F$16+'BP Financier'!$G$16)/('BP Financier'!$C$16+'BP Financier'!$C$19+'BP Financier'!$D$16+'BP Financier'!$D$19+'BP Financier'!$E$16+'BP Financier'!$E$19+'BP Financier'!$F$16+'BP Financier'!$F$19+'BP Financier'!$G$19+'BP Financier'!$G$16))*V8295","v":{"v":3421672.0459127007,"d":"3,421,672"}},{"v":1963815.672006318,"d":"1,963,816"},{"$f":"'BP Financier'!$G$44*(('BP Financier'!$C$16+'BP Financier'!$D$16+'BP Financier'!$E$16+'BP Financier'!$F$16+'BP Financier'!$G$16)/('BP Financier'!$C$16+'BP Financier'!$C$19+'BP Financier'!$D$16+'BP Financier'!$D$19+'BP Financier'!$E$16+'BP Financier'!$E$19+'BP Financier'!$C$22+'BP Financier'!$D$22+'BP Financier'!$E$22+'BP Financier'!$F$16+'BP Financier'!$F$19+'BP Financier'!$F$22+'BP Financier'!$G$16+'BP Financier'!$G$19+'BP Financier'!$G$22))*$V8295*X8295/(1-$W8295)","v":{"v":249965.28595861018,"d":"249,965"}},{"$f":"'BP Financier'!$G$44*(('BP Financier'!$C$16+'BP Financier'!$D$16+'BP Financier'!$E$16+'BP Financier'!$F$16+'BP Financier'!$G$16)/('BP Financier'!$C$16+'BP Financier'!$C$19+'BP Financier'!$D$16+'BP Financier'!$D$19+'BP Financier'!$E$16+'BP Financier'!$E$19+'BP Financier'!$C$22+'BP Financier'!$D$22+'BP Financier'!$E$22+'BP Financier'!$F$16+'BP Financier'!$F$19+'BP Financier'!$F$22+'BP Financier'!$G$16+'BP Financier'!$G$19+'BP Financier'!$G$22))*$V8295*Y8295/(1-$W8295)","v":{"v":167103.86519884988,"d":"167,104"}},{"$f":"'BP Financier'!$G$44*(('BP Financier'!$C$16+'BP Financier'!$D$16+'BP Financier'!$E$16+'BP Financier'!$F$16+'BP Financier'!$G$16)/('BP Financier'!$C$16+'BP Financier'!$C$19+'BP Financier'!$D$16+'BP Financier'!$D$19+'BP Financier'!$E$16+'BP Financier'!$E$19+'BP Financier'!$C$22+'BP Financier'!$D$22+'BP Financier'!$E$22+'BP Financier'!$F$16+'BP Financier'!$F$19+'BP Financier'!$F$22+'BP Financier'!$G$16+'BP Financier'!$G$19+'BP Financier'!$G$22))*$V8295*Z8295/(1-$W8295)","v":{"v":1307829.424324883,"d":"1,307,829"}},{"$f":"'BP Financier'!$G$44*(('BP Financier'!$C$16+'BP Financier'!$D$16+'BP Financier'!$E$16+'BP Financier'!$F$16+'BP Financier'!$G$16)/('BP Financier'!$C$16+'BP Financier'!$C$19+'BP Financier'!$D$16+'BP Financier'!$D$19+'BP Financier'!$E$16+'BP Financier'!$E$19+'BP Financier'!$C$22+'BP Financier'!$D$22+'BP Financier'!$E$22+'BP Financier'!$F$16+'BP Financier'!$F$19+'BP Financier'!$F$22+'BP Financier'!$G$16+'BP Financier'!$G$19+'BP Financier'!$G$22))*$V8295*AA8295/(1-$W8295)","v":{"v":161579.77048153256,"d":"161,580"}},{"$f":"'BP Financier'!$G$44*(('BP Financier'!$C$16+'BP Financier'!$D$16+'BP Financier'!$E$16+'BP Financier'!$F$16+'BP Financier'!$G$16)/('BP Financier'!$C$16+'BP Financier'!$C$19+'BP Financier'!$D$16+'BP Financier'!$D$19+'BP Financier'!$E$16+'BP Financier'!$E$19+'BP Financier'!$C$22+'BP Financier'!$D$22+'BP Financier'!$E$22+'BP Financier'!$F$16+'BP Financier'!$F$19+'BP Financier'!$F$22+'BP Financier'!$G$16+'BP Financier'!$G$19+'BP Financier'!$G$22))*$V8295*AB8295/(1-$W8295)","v":{"v":77337.32604244292,"d":"77,337"}},null,{"v":0.006,"d":"0.60%"},{"$f":"Actif!$E$28/100","v":{"v":0.28900000000000003,"d":"28.90%"}},{"$f":"Actif!$E$30/100","v":{"v":0.09050000000000001,"d":"9.05%"}},{"$f":"Actif!$E$31/100","v":{"v":0.0605,"d":"6.05%"}},{"$f":"Actif!$E$32/100","v":{"v":0.47350000000000003,"d":"47.35%"}},{"$f":"Actif!$E$33/100","v":{"v":0.0585,"d":"5.85%"}},{"$f":"Actif!$E$29/100","v":{"v":0.027999999999999997,"d":"2.80%"}}]
[null,"#183",54,2029,"H","A_VIE",{"v":0.44999999999999996,"d":"0.45"},{"v":0.38999999999999996,"d":"0.39"},0.6,0.6,85,0,{"$f":"ROUND(Primes!$Q$4*V8296,0)","v":68},{"$f":"'BP Financier'!$G$33*(('BP Financier'!$C$16+'BP Financier'!$D$16+'BP Financier'!$E$16+'BP Financier'!$F$16+'BP Financier'!$G$16)/('BP Financier'!$C$16+'BP Financier'!$C$19+'BP Financier'!$D$16+'BP Financier'!$D$19+'BP Financier'!$E$16+'BP Financier'!$E$19+'BP Financier'!$F$16+'BP Financier'!$F$19+'BP Financier'!$G$19+'BP Financier'!$G$16))*V8296","v":{"v":3421672.0459127007,"d":"3,421,672"}},{"v":1963815.672006318,"d":"1,963,816"},{"$f":"'BP Financier'!$G$44*(('BP Financier'!$C$16+'BP Financier'!$D$16+'BP Financier'!$E$16+'BP Financier'!$F$16+'BP Financier'!$G$16)/('BP Financier'!$C$16+'BP Financier'!$C$19+'BP Financier'!$D$16+'BP Financier'!$D$19+'BP Financier'!$E$16+'BP Financier'!$E$19+'BP Financier'!$C$22+'BP Financier'!$D$22+'BP Financier'!$E$22+'BP Financier'!$F$16+'BP Financier'!$F$19+'BP Financier'!$F$22+'BP Financier'!$G$16+'BP Financier'!$G$19+'BP Financier'!$G$22))*$V8296*X8296/(1-$W8296)","v":{"v":249965.28595861018,"d":"249,965"}},{"$f":"'BP Financier'!$G$44*(('BP Financier'!$C$16+'BP Financier'!$D$16+'BP Financier'!$E$16+'BP Financier'!$F$16+'BP Financier'!$G$16)/('BP Financier'!$C$16+'BP Financier'!$C$19+'BP Financier'!$D$16+'BP Financier'!$D$19+'BP Financier'!$E$16+'BP Financier'!$E$19+'BP Financier'!$C$22+'BP Financier'!$D$22+'BP Financier'!$E$22+'BP Financier'!$F$16+'BP Financier'!$F$19+'BP Financier'!$F$22+'BP Financier'!$G$16+'BP Financier'!$G$19+'BP Financier'!$G$22))*$V8296*Y8296/(1-$W8296)","v":{"v":167103.86519884988,"d":"167,104"}},{"$f":"'BP Financier'!$G$44*(('BP Financier'!$C$16+'BP Financier'!$D$16+'BP Financier'!$E$16+'BP Financier'!$F$16+'BP Financier'!$G$16)/('BP Financier'!$C$16+'BP Financier'!$C$19+'BP Financier'!$D$16+'BP Financier'!$D$19+'BP Financier'!$E$16+'BP Financier'!$E$19+'BP Financier'!$C$22+'BP Financier'!$D$22+'BP Financier'!$E$22+'BP Financier'!$F$16+'BP Financier'!$F$19+'BP Financier'!$F$22+'BP Financier'!$G$16+'BP Financier'!$G$19+'BP Financier'!$G$22))*$V8296*Z8296/(1-$W8296)","v":{"v":1307829.424324883,"d":"1,307,829"}},{"$f":"'BP Financier'!$G$44*(('BP Financier'!$C$16+'BP Financier'!$D$16+'BP Financier'!$E$16+'BP Financier'!$F$16+'BP Financier'!$G$16)/('BP Financier'!$C$16+'BP Financier'!$C$19+'BP Financier'!$D$16+'BP Financier'!$D$19+'BP Financier'!$E$16+'BP Financier'!$E$19+'BP Financier'!$C$22+'BP Financier'!$D$22+'BP Financier'!$E$22+'BP Financier'!$F$16+'BP Financier'!$F$19+'BP Financier'!$F$22+'BP Financier'!$G$16+'BP Financier'!$G$19+'BP Financier'!$G$22))*$V8296*AA8296/(1-$W8296)","v":{"v":161579.77048153256,"d":"161,580"}},{"$f":"'BP Financier'!$G$44*(('BP Financier'!$C$16+'BP Financier'!$D$16+'BP Financier'!$E$16+'BP Financier'!$F$16+'BP Financier'!$G$16)/('BP Financier'!$C$16+'BP Financier'!$C$19+'BP Financier'!$D$16+'BP Financier'!$D$19+'BP Financier'!$E$16+'BP Financier'!$E$19+'BP Financier'!$C$22+'BP Financier'!$D$22+'BP Financier'!$E$22+'BP Financier'!$F$16+'BP Financier'!$F$19+'BP Financier'!$F$22+'BP Financier'!$G$16+'BP Financier'!$G$19+'BP Financier'!$G$22))*$V8296*AB8296/(1-$W8296)","v":{"v":77337.32604244292,"d":"77,337"}},null,{"v":0.006,"d":"0.60%"},{"$f":"Actif!$E$28/100","v":{"v":0.28900000000000003,"d":"28.90%"}},{"$f":"Actif!$E$30/100","v":{"v":0.09050000000000001,"d":"9.05%"}},{"$f":"Actif!$E$31/100","v":{"v":0.0605,"d":"6.05%"}},{"$f":"Actif!$E$32/100","v":{"v":0.47350000000000003,"d":"47.35%"}},{"$f":"Actif!$E$33/100","v":{"v":0.0585,"d":"5.85%"}},{"$f":"Actif!$E$29/100","v":{"v":0.027999999999999997,"d":"2.80%"}}]
[null,"#184",54,2030,"H","A_VIE",{"v":0.44999999999999996,"d":"0.45"},{"v":0.38999999999999996,"d":"0.39"},0.6,0.6,85,0,{"$f":"ROUND(Primes!$Q$4*V8297,0)","v":68},{"$f":"'BP Financier'!$G$33*(('BP Financier'!$C$16+'BP Financier'!$D$16+'BP Financier'!$E$16+'BP Financier'!$F$16+'BP Financier'!$G$16)/('BP Financier'!$C$16+'BP Financier'!$C$19+'BP Financier'!$D$16+'BP Financier'!$D$19+'BP Financier'!$E$16+'BP Financier'!$E$19+'BP Financier'!$F$16+'BP Financier'!$F$19+'BP Financier'!$G$19+'BP Financier'!$G$16))*V8297","v":{"v":3421672.0459127007,"d":"3,421,672"}},{"v":1963815.672006318,"d":"1,963,816"},{"$f":"'BP Financier'!$G$44*(('BP Financier'!$C$16+'BP Financier'!$D$16+'BP Financier'!$E$16+'BP Financier'!$F$16+'BP Financier'!$G$16)/('BP Financier'!$C$16+'BP Financier'!$C$19+'BP Financier'!$D$16+'BP Financier'!$D$19+'BP Financier'!$E$16+'BP Financier'!$E$19+'BP Financier'!$C$22+'BP Financier'!$D$22+'BP Financier'!$E$22+'BP Financier'!$F$16+'BP Financier'!$F$19+'BP Financier'!$F$22+'BP Financier'!$G$16+'BP Financier'!$G$19+'BP Financier'!$G$22))*$V8297*X8297/(1-$W8297)","v":{"v":249965.28595861018,"d":"249,965"}},{"$f":"'BP Financier'!$G$44*(('BP Financier'!$C$16+'BP Financier'!$D$16+'BP Financier'!$E$16+'BP Financier'!$F$16+'BP Financier'!$G$16)/('BP Financier'!$C$16+'BP Financier'!$C$19+'BP Financier'!$D$16+'BP Financier'!$D$19+'BP Financier'!$E$16+'BP Financier'!$E$19+'BP Financier'!$C$22+'BP Financier'!$D$22+'BP Financier'!$E$22+'BP Financier'!$F$16+'BP Financier'!$F$19+'BP Financier'!$F$22+'BP Financier'!$G$16+'BP Financier'!$G$19+'BP Financier'!$G$22))*$V8297*Y8297/(1-$W8297)","v":{"v":167103.86519884988,"d":"167,104"}},{"$f":"'BP Financier'!$G$44*(('BP Financier'!$C$16+'BP Financier'!$D$16+'BP Financier'!$E$16+'BP Financier'!$F$16+'BP Financier'!$G$16)/('BP Financier'!$C$16+'BP Financier'!$C$19+'BP Financier'!$D$16+'BP Financier'!$D$19+'BP Financier'!$E$16+'BP Financier'!$E$19+'BP Financier'!$C$22+'BP Financier'!$D$22+'BP Financier'!$E$22+'BP Financier'!$F$16+'BP Financier'!$F$19+'BP Financier'!$F$22+'BP Financier'!$G$16+'BP Financier'!$G$19+'BP Financier'!$G$22))*$V8297*Z8297/(1-$W8297)","v":{"v":1307829.424324883,"d":"1,307,829"}},{"$f":"'BP Financier'!$G$44*(('BP Financier'!$C$16+'BP Financier'!$D$16+'BP Financier'!$E$16+'BP Financier'!$F$16+'BP Financier'!$G$16)/('BP Financier'!$C$16+'BP Financier'!$C$19+'BP Financier'!$D$16+'BP Financier'!$D$19+'BP Financier'!$E$16+'BP Financier'!$E$19+'BP Financier'!$C$22+'BP Financier'!$D$22+'BP Financier'!$E$22+'BP Financier'!$F$16+'BP Financier'!$F$19+'BP Financier'!$F$22+'BP Financier'!$G$16+'BP Financier'!$G$19+'BP Financier'!$G$22))*$V8297*AA8297/(1-$W8297)","v":{"v":161579.77048153256,"d":"161,580"}},{"$f":"'BP Financier'!$G$44*(('BP Financier'!$C$16+'BP Financier'!$D$16+'BP Financier'!$E$16+'BP Financier'!$F$16+'BP Financier'!$G$16)/('BP Financier'!$C$16+'BP Financier'!$C$19+'BP Financier'!$D$16+'BP Financier'!$D$19+'BP Financier'!$E$16+'BP Financier'!$E$19+'BP Financier'!$C$22+'BP Financier'!$D$22+'BP Financier'!$E$22+'BP Financier'!$F$16+'BP Financier'!$F$19+'BP Financier'!$F$22+'BP Financier'!$G$16+'BP Financier'!$G$19+'BP Financier'!$G$22))*$V8297*AB8297/(1-$W8297)","v":{"v":77337.32604244292,"d":"77,337"}},null,{"v":0.006,"d":"0.60%"},{"$f":"Actif!$E$28/100","v":{"v":0.28900000000000003,"d":"28.90%"}},{"$f":"Actif!$E$30/100","v":{"v":0.09050000000000001,"d":"9.05%"}},{"$f":"Actif!$E$31/100","v":{"v":0.0605,"d":"6.05%"}},{"$f":"Actif!$E$32/100","v":{"v":0.47350000000000003,"d":"47.35%"}},{"$f":"Actif!$E$33/100","v":{"v":0.0585,"d":"5.85%"}},{"$f":"Actif!$E$29/100","v":{"v":0.027999999999999997,"d":"2.80%"}}]
[null,"#185",54,2031,"H","A_VIE",{"v":0.44999999999999996,"d":"0.45"},{"v":0.38999999999999996,"d":"0.39"},0.6,0.6,85,0,{"$f":"ROUND(Primes!$Q$4*V8298,0)","v":68},{"$f":"'BP Financier'!$G$33*(('BP Financier'!$C$16+'BP Financier'!$D$16+'BP Financier'!$E$16+'BP Financier'!$F$16+'BP Financier'!$G$16)/('BP Financier'!$C$16+'BP Financier'!$C$19+'BP Financier'!$D$16+'BP Financier'!$D$19+'BP Financier'!$E$16+'BP Financier'!$E$19+'BP Financier'!$F$16+'BP Financier'!$F$19+'BP Financier'!$G$19+'BP Financier'!$G$16))*V8298","v":{"v":3421672.0459127007,"d":"3,421,672"}},{"v":1963815.672006318,"d":"1,963,816"},{"$f":"'BP Financier'!$G$44*(('BP Financier'!$C$16+'BP Financier'!$D$16+'BP Financier'!$E$16+'BP Financier'!$F$16+'BP Financier'!$G$16)/('BP Financier'!$C$16+'BP Financier'!$C$19+'BP Financier'!$D$16+'BP Financier'!$D$19+'BP Financier'!$E$16+'BP Financier'!$E$19+'BP Financier'!$C$22+'BP Financier'!$D$22+'BP Financier'!$E$22+'BP Financier'!$F$16+'BP Financier'!$F$19+'BP Financier'!$F$22+'BP Financier'!$G$16+'BP Financier'!$G$19+'BP Financier'!$G$22))*$V8298*X8298/(1-$W8298)","v":{"v":249965.28595861018,"d":"249,965"}},{"$f":"'BP Financier'!$G$44*(('BP Financier'!$C$16+'BP Financier'!$D$16+'BP Financier'!$E$16+'BP Financier'!$F$16+'BP Financier'!$G$16)/('BP Financier'!$C$16+'BP Financier'!$C$19+'BP Financier'!$D$16+'BP Financier'!$D$19+'BP Financier'!$E$16+'BP Financier'!$E$19+'BP Financier'!$C$22+'BP Financier'!$D$22+'BP Financier'!$E$22+'BP Financier'!$F$16+'BP Financier'!$F$19+'BP Financier'!$F$22+'BP Financier'!$G$16+'BP Financier'!$G$19+'BP Financier'!$G$22))*$V8298*Y8298/(1-$W8298)","v":{"v":167103.86519884988,"d":"167,104"}},{"$f":"'BP Financier'!$G$44*(('BP Financier'!$C$16+'BP Financier'!$D$16+'BP Financier'!$E$16+'BP Financier'!$F$16+'BP Financier'!$G$16)/('BP Financier'!$C$16+'BP Financier'!$C$19+'BP Financier'!$D$16+'BP Financier'!$D$19+'BP Financier'!$E$16+'BP Financier'!$E$19+'BP Financier'!$C$22+'BP Financier'!$D$22+'BP Financier'!$E$22+'BP Financier'!$F$16+'BP Financier'!$F$19+'BP Financier'!$F$22+'BP Financier'!$G$16+'BP Financier'!$G$19+'BP Financier'!$G$22))*$V8298*Z8298/(1-$W8298)","v":{"v":1307829.424324883,"d":"1,307,829"}},{"$f":"'BP Financier'!$G$44*(('BP Financier'!$C$16+'BP Financier'!$D$16+'BP Financier'!$E$16+'BP Financier'!$F$16+'BP Financier'!$G$16)/('BP Financier'!$C$16+'BP Financier'!$C$19+'BP Financier'!$D$16+'BP Financier'!$D$19+'BP Financier'!$E$16+'BP Financier'!$E$19+'BP Financier'!$C$22+'BP Financier'!$D$22+'BP Financier'!$E$22+'BP Financier'!$F$16+'BP Financier'!$F$19+'BP Financier'!$F$22+'BP Financier'!$G$16+'BP Financier'!$G$19+'BP Financier'!$G$22))*$V8298*AA8298/(1-$W8298)","v":{"v":161579.77048153256,"d":"161,580"}},{"$f":"'BP Financier'!$G$44*(('BP Financier'!$C$16+'BP Financier'!$D$16+'BP Financier'!$E$16+'BP Financier'!$F$16+'BP Financier'!$G$16)/('BP Financier'!$C$16+'BP Financier'!$C$19+'BP Financier'!$D$16+'BP Financier'!$D$19+'BP Financier'!$E$16+'BP Financier'!$E$19+'BP Financier'!$C$22+'BP Financier'!$D$22+'BP Financier'!$E$22+'BP Financier'!$F$16+'BP Financier'!$F$19+'BP Financier'!$F$22+'BP Financier'!$G$16+'BP Financier'!$G$19+'BP Financier'!$G$22))*$V8298*AB8298/(1-$W8298)","v":{"v":77337.32604244292,"d":"77,337"}},null,{"v":0.006,"d":"0.60%"},{"$f":"Actif!$E$28/100","v":{"v":0.28900000000000003,"d":"28.90%"}},{"$f":"Actif!$E$30/100","v":{"v":0.09050000000000001,"d":"9.05%"}},{"$f":"Actif!$E$31/100","v":{"v":0.0605,"d":"6.05%"}},{"$f":"Actif!$E$32/100","v":{"v":0.47350000000000003,"d":"47.35%"}},{"$f":"Actif!$E$33/100","v":{"v":0.0585,"d":"5.85%"}},{"$f":"Actif!$E$29/100","v":{"v":0.027999999999999997,"d":"2.80%"}}]
[null,"#186",55,2026,"H","A_VIE",{"v":0.44999999999999996,"d":"0.45"},{"v":0.38999999999999996,"d":"0.39"},0.6,0.6,85,0,{"$f":"ROUND(Primes!$Q$4*V8299,0)","v":68},{"$f":"'BP Financier'!$G$33*(('BP Financier'!$C$16+'BP Financier'!$D$16+'BP Financier'!$E$16+'BP Financier'!$F$16+'BP Financier'!$G$16)/('BP Financier'!$C$16+'BP Financier'!$C$19+'BP Financier'!$D$16+'BP Financier'!$D$19+'BP Financier'!$E$16+'BP Financier'!$E$19+'BP Financier'!$F$16+'BP Financier'!$F$19+'BP Financier'!$G$19+'BP Financier'!$G$16))*V8299","v":{"v":3421672.0459127007,"d":"3,421,672"}},{"v":1963815.672006318,"d":"1,963,816"},{"$f":"'BP Financier'!$G$44*(('BP Financier'!$C$16+'BP Financier'!$D$16+'BP Financier'!$E$16+'BP Financier'!$F$16+'BP Financier'!$G$16)/('BP Financier'!$C$16+'BP Financier'!$C$19+'BP Financier'!$D$16+'BP Financier'!$D$19+'BP Financier'!$E$16+'BP Financier'!$E$19+'BP Financier'!$C$22+'BP Financier'!$D$22+'BP Financier'!$E$22+'BP Financier'!$F$16+'BP Financier'!$F$19+'BP Financier'!$F$22+'BP Financier'!$G$16+'BP Financier'!$G$19+'BP Financier'!$G$22))*$V8299*X8299/(1-$W8299)","v":{"v":249965.28595861018,"d":"249,965"}},{"$f":"'BP Financier'!$G$44*(('BP Financier'!$C$16+'BP Financier'!$D$16+'BP Financier'!$E$16+'BP Financier'!$F$16+'BP Financier'!$G$16)/('BP Financier'!$C$16+'BP Financier'!$C$19+'BP Financier'!$D$16+'BP Financier'!$D$19+'BP Financier'!$E$16+'BP Financier'!$E$19+'BP Financier'!$C$22+'BP Financier'!$D$22+'BP Financier'!$E$22+'BP Financier'!$F$16+'BP Financier'!$F$19+'BP Financier'!$F$22+'BP Financier'!$G$16+'BP Financier'!$G$19+'BP Financier'!$G$22))*$V8299*Y8299/(1-$W8299)","v":{"v":167103.86519884988,"d":"167,104"}},{"$f":"'BP Financier'!$G$44*(('BP Financier'!$C$16+'BP Financier'!$D$16+'BP Financier'!$E$16+'BP Financier'!$F$16+'BP Financier'!$G$16)/('BP Financier'!$C$16+'BP Financier'!$C$19+'BP Financier'!$D$16+'BP Financier'!$D$19+'BP Financier'!$E$16+'BP Financier'!$E$19+'BP Financier'!$C$22+'BP Financier'!$D$22+'BP Financier'!$E$22+'BP Financier'!$F$16+'BP Financier'!$F$19+'BP Financier'!$F$22+'BP Financier'!$G$16+'BP Financier'!$G$19+'BP Financier'!$G$22))*$V8299*Z8299/(1-$W8299)","v":{"v":1307829.424324883,"d":"1,307,829"}},{"$f":"'BP Financier'!$G$44*(('BP Financier'!$C$16+'BP Financier'!$D$16+'BP Financier'!$E$16+'BP Financier'!$F$16+'BP Financier'!$G$16)/('BP Financier'!$C$16+'BP Financier'!$C$19+'BP Financier'!$D$16+'BP Financier'!$D$19+'BP Financier'!$E$16+'BP Financier'!$E$19+'BP Financier'!$C$22+'BP Financier'!$D$22+'BP Financier'!$E$22+'BP Financier'!$F$16+'BP Financier'!$F$19+'BP Financier'!$F$22+'BP Financier'!$G$16+'BP Financier'!$G$19+'BP Financier'!$G$22))*$V8299*AA8299/(1-$W8299)","v":{"v":161579.77048153256,"d":"161,580"}},{"$f":"'BP Financier'!$G$44*(('BP Financier'!$C$16+'BP Financier'!$D$16+'BP Financier'!$E$16+'BP Financier'!$F$16+'BP Financier'!$G$16)/('BP Financier'!$C$16+'BP Financier'!$C$19+'BP Financier'!$D$16+'BP Financier'!$D$19+'BP Financier'!$E$16+'BP Financier'!$E$19+'BP Financier'!$C$22+'BP Financier'!$D$22+'BP Financier'!$E$22+'BP Financier'!$F$16+'BP Financier'!$F$19+'BP Financier'!$F$22+'BP Financier'!$G$16+'BP Financier'!$G$19+'BP Financier'!$G$22))*$V8299*AB8299/(1-$W8299)","v":{"v":77337.32604244292,"d":"77,337"}},null,{"v":0.006,"d":"0.60%"},{"$f":"Actif!$E$28/100","v":{"v":0.28900000000000003,"d":"28.90%"}},{"$f":"Actif!$E$30/100","v":{"v":0.09050000000000001,"d":"9.05%"}},{"$f":"Actif!$E$31/100","v":{"v":0.0605,"d":"6.05%"}},{"$f":"Actif!$E$32/100","v":{"v":0.47350000000000003,"d":"47.35%"}},{"$f":"Actif!$E$33/100","v":{"v":0.0585,"d":"5.85%"}},{"$f":"Actif!$E$29/100","v":{"v":0.027999999999999997,"d":"2.80%"}}]
[null,"#187",55,2028,"H","A_VIE",{"v":0.44999999999999996,"d":"0.45"},{"v":0.38999999999999996,"d":"0.39"},0.6,0.6,85,0,{"$f":"ROUND(Primes!$Q$4*V8300,0)","v":68},{"$f":"'BP Financier'!$G$33*(('BP Financier'!$C$16+'BP Financier'!$D$16+'BP Financier'!$E$16+'BP Financier'!$F$16+'BP Financier'!$G$16)/('BP Financier'!$C$16+'BP Financier'!$C$19+'BP Financier'!$D$16+'BP Financier'!$D$19+'BP Financier'!$E$16+'BP Financier'!$E$19+'BP Financier'!$F$16+'BP Financier'!$F$19+'BP Financier'!$G$19+'BP Financier'!$G$16))*V8300","v":{"v":3421672.0459127007,"d":"3,421,672"}},{"v":1963815.672006318,"d":"1,963,816"},{"$f":"'BP Financier'!$G$44*(('BP Financier'!$C$16+'BP Financier'!$D$16+'BP Financier'!$E$16+'BP Financier'!$F$16+'BP Financier'!$G$16)/('BP Financier'!$C$16+'BP Financier'!$C$19+'BP Financier'!$D$16+'BP Financier'!$D$19+'BP Financier'!$E$16+'BP Financier'!$E$19+'BP Financier'!$C$22+'BP Financier'!$D$22+'BP Financier'!$E$22+'BP Financier'!$F$16+'BP Financier'!$F$19+'BP Financier'!$F$22+'BP Financier'!$G$16+'BP Financier'!$G$19+'BP Financier'!$G$22))*$V8300*X8300/(1-$W8300)","v":{"v":249965.28595861018,"d":"249,965"}},{"$f":"'BP Financier'!$G$44*(('BP Financier'!$C$16+'BP Financier'!$D$16+'BP Financier'!$E$16+'BP Financier'!$F$16+'BP Financier'!$G$16)/('BP Financier'!$C$16+'BP Financier'!$C$19+'BP Financier'!$D$16+'BP Financier'!$D$19+'BP Financier'!$E$16+'BP Financier'!$E$19+'BP Financier'!$C$22+'BP Financier'!$D$22+'BP Financier'!$E$22+'BP Financier'!$F$16+'BP Financier'!$F$19+'BP Financier'!$F$22+'BP Financier'!$G$16+'BP Financier'!$G$19+'BP Financier'!$G$22))*$V8300*Y8300/(1-$W8300)","v":{"v":167103.86519884988,"d":"167,104"}},{"$f":"'BP Financier'!$G$44*(('BP Financier'!$C$16+'BP Financier'!$D$16+'BP Financier'!$E$16+'BP Financier'!$F$16+'BP Financier'!$G$16)/('BP Financier'!$C$16+'BP Financier'!$C$19+'BP Financier'!$D$16+'BP Financier'!$D$19+'BP Financier'!$E$16+'BP Financier'!$E$19+'BP Financier'!$C$22+'BP Financier'!$D$22+'BP Financier'!$E$22+'BP Financier'!$F$16+'BP Financier'!$F$19+'BP Financier'!$F$22+'BP Financier'!$G$16+'BP Financier'!$G$19+'BP Financier'!$G$22))*$V8300*Z8300/(1-$W8300)","v":{"v":1307829.424324883,"d":"1,307,829"}},{"$f":"'BP Financier'!$G$44*(('BP Financier'!$C$16+'BP Financier'!$D$16+'BP Financier'!$E$16+'BP Financier'!$F$16+'BP Financier'!$G$16)/('BP Financier'!$C$16+'BP Financier'!$C$19+'BP Financier'!$D$16+'BP Financier'!$D$19+'BP Financier'!$E$16+'BP Financier'!$E$19+'BP Financier'!$C$22+'BP Financier'!$D$22+'BP Financier'!$E$22+'BP Financier'!$F$16+'BP Financier'!$F$19+'BP Financier'!$F$22+'BP Financier'!$G$16+'BP Financier'!$G$19+'BP Financier'!$G$22))*$V8300*AA8300/(1-$W8300)","v":{"v":161579.77048153256,"d":"161,580"}},{"$f":"'BP Financier'!$G$44*(('BP Financier'!$C$16+'BP Financier'!$D$16+'BP Financier'!$E$16+'BP Financier'!$F$16+'BP Financier'!$G$16)/('BP Financier'!$C$16+'BP Financier'!$C$19+'BP Financier'!$D$16+'BP Financier'!$D$19+'BP Financier'!$E$16+'BP Financier'!$E$19+'BP Financier'!$C$22+'BP Financier'!$D$22+'BP Financier'!$E$22+'BP Financier'!$F$16+'BP Financier'!$F$19+'BP Financier'!$F$22+'BP Financier'!$G$16+'BP Financier'!$G$19+'BP Financier'!$G$22))*$V8300*AB8300/(1-$W8300)","v":{"v":77337.32604244292,"d":"77,337"}},null,{"v":0.006,"d":"0.60%"},{"$f":"Actif!$E$28/100","v":{"v":0.28900000000000003,"d":"28.90%"}},{"$f":"Actif!$E$30/100","v":{"v":0.09050000000000001,"d":"9.05%"}},{"$f":"Actif!$E$31/100","v":{"v":0.0605,"d":"6.05%"}},{"$f":"Actif!$E$32/100","v":{"v":0.47350000000000003,"d":"47.35%"}},{"$f":"Actif!$E$33/100","v":{"v":0.0585,"d":"5.85%"}},{"$f":"Actif!$E$29/100","v":{"v":0.027999999999999997,"d":"2.80%"}}]
[null,"#188",55,2029,"H","A_VIE",{"v":0.44999999999999996,"d":"0.45"},{"v":0.38999999999999996,"d":"0.39"},0.6,0.6,85,0,{"$f":"ROUND(Primes!$Q$4*V8301,0)","v":68},{"$f":"'BP Financier'!$G$33*(('BP Financier'!$C$16+'BP Financier'!$D$16+'BP Financier'!$E$16+'BP Financier'!$F$16+'BP Financier'!$G$16)/('BP Financier'!$C$16+'BP Financier'!$C$19+'BP Financier'!$D$16+'BP Financier'!$D$19+'BP Financier'!$E$16+'BP Financier'!$E$19+'BP Financier'!$F$16+'BP Financier'!$F$19+'BP Financier'!$G$19+'BP Financier'!$G$16))*V8301","v":{"v":3421672.0459127007,"d":"3,421,672"}},{"v":1963815.672006318,"d":"1,963,816"},{"$f":"'BP Financier'!$G$44*(('BP Financier'!$C$16+'BP Financier'!$D$16+'BP Financier'!$E$16+'BP Financier'!$F$16+'BP Financier'!$G$16)/('BP Financier'!$C$16+'BP Financier'!$C$19+'BP Financier'!$D$16+'BP Financier'!$D$19+'BP Financier'!$E$16+'BP Financier'!$E$19+'BP Financier'!$C$22+'BP Financier'!$D$22+'BP Financier'!$E$22+'BP Financier'!$F$16+'BP Financier'!$F$19+'BP Financier'!$F$22+'BP Financier'!$G$16+'BP Financier'!$G$19+'BP Financier'!$G$22))*$V8301*X8301/(1-$W8301)","v":{"v":249965.28595861018,"d":"249,965"}},{"$f":"'BP Financier'!$G$44*(('BP Financier'!$C$16+'BP Financier'!$D$16+'BP Financier'!$E$16+'BP Financier'!$F$16+'BP Financier'!$G$16)/('BP Financier'!$C$16+'BP Financier'!$C$19+'BP Financier'!$D$16+'BP Financier'!$D$19+'BP Financier'!$E$16+'BP Financier'!$E$19+'BP Financier'!$C$22+'BP Financier'!$D$22+'BP Financier'!$E$22+'BP Financier'!$F$16+'BP Financier'!$F$19+'BP Financier'!$F$22+'BP Financier'!$G$16+'BP Financier'!$G$19+'BP Financier'!$G$22))*$V8301*Y8301/(1-$W8301)","v":{"v":167103.86519884988,"d":"167,104"}},{"$f":"'BP Financier'!$G$44*(('BP Financier'!$C$16+'BP Financier'!$D$16+'BP Financier'!$E$16+'BP Financier'!$F$16+'BP Financier'!$G$16)/('BP Financier'!$C$16+'BP Financier'!$C$19+'BP Financier'!$D$16+'BP Financier'!$D$19+'BP Financier'!$E$16+'BP Financier'!$E$19+'BP Financier'!$C$22+'BP Financier'!$D$22+'BP Financier'!$E$22+'BP Financier'!$F$16+'BP Financier'!$F$19+'BP Financier'!$F$22+'BP Financier'!$G$16+'BP Financier'!$G$19+'BP Financier'!$G$22))*$V8301*Z8301/(1-$W8301)","v":{"v":1307829.424324883,"d":"1,307,829"}},{"$f":"'BP Financier'!$G$44*(('BP Financier'!$C$16+'BP Financier'!$D$16+'BP Financier'!$E$16+'BP Financier'!$F$16+'BP Financier'!$G$16)/('BP Financier'!$C$16+'BP Financier'!$C$19+'BP Financier'!$D$16+'BP Financier'!$D$19+'BP Financier'!$E$16+'BP Financier'!$E$19+'BP Financier'!$C$22+'BP Financier'!$D$22+'BP Financier'!$E$22+'BP Financier'!$F$16+'BP Financier'!$F$19+'BP Financier'!$F$22+'BP Financier'!$G$16+'BP Financier'!$G$19+'BP Financier'!$G$22))*$V8301*AA8301/(1-$W8301)","v":{"v":161579.77048153256,"d":"161,580"}},{"$f":"'BP Financier'!$G$44*(('BP Financier'!$C$16+'BP Financier'!$D$16+'BP Financier'!$E$16+'BP Financier'!$F$16+'BP Financier'!$G$16)/('BP Financier'!$C$16+'BP Financier'!$C$19+'BP Financier'!$D$16+'BP Financier'!$D$19+'BP Financier'!$E$16+'BP Financier'!$E$19+'BP Financier'!$C$22+'BP Financier'!$D$22+'BP Financier'!$E$22+'BP Financier'!$F$16+'BP Financier'!$F$19+'BP Financier'!$F$22+'BP Financier'!$G$16+'BP Financier'!$G$19+'BP Financier'!$G$22))*$V8301*AB8301/(1-$W8301)","v":{"v":77337.32604244292,"d":"77,337"}},null,{"v":0.006,"d":"0.60%"},{"$f":"Actif!$E$28/100","v":{"v":0.28900000000000003,"d":"28.90%"}},{"$f":"Actif!$E$30/100","v":{"v":0.09050000000000001,"d":"9.05%"}},{"$f":"Actif!$E$31/100","v":{"v":0.0605,"d":"6.05%"}},{"$f":"Actif!$E$32/100","v":{"v":0.47350000000000003,"d":"47.35%"}},{"$f":"Actif!$E$33/100","v":{"v":0.0585,"d":"5.85%"}},{"$f":"Actif!$E$29/100","v":{"v":0.027999999999999997,"d":"2.80%"}}]
[null,"#189",55,2030,"H","A_VIE",{"v":0.44999999999999996,"d":"0.45"},{"v":0.38999999999999996,"d":"0.39"},0.6,0.6,85,0,{"$f":"ROUND(Primes!$Q$4*V8302,0)","v":68},{"$f":"'BP Financier'!$G$33*(('BP Financier'!$C$16+'BP Financier'!$D$16+'BP Financier'!$E$16+'BP Financier'!$F$16+'BP Financier'!$G$16)/('BP Financier'!$C$16+'BP Financier'!$C$19+'BP Financier'!$D$16+'BP Financier'!$D$19+'BP Financier'!$E$16+'BP Financier'!$E$19+'BP Financier'!$F$16+'BP Financier'!$F$19+'BP Financier'!$G$19+'BP Financier'!$G$16))*V8302","v":{"v":3421672.0459127007,"d":"3,421,672"}},{"v":1963815.672006318,"d":"1,963,816"},{"$f":"'BP Financier'!$G$44*(('BP Financier'!$C$16+'BP Financier'!$D$16+'BP Financier'!$E$16+'BP Financier'!$F$16+'BP Financier'!$G$16)/('BP Financier'!$C$16+'BP Financier'!$C$19+'BP Financier'!$D$16+'BP Financier'!$D$19+'BP Financier'!$E$16+'BP Financier'!$E$19+'BP Financier'!$C$22+'BP Financier'!$D$22+'BP Financier'!$E$22+'BP Financier'!$F$16+'BP Financier'!$F$19+'BP Financier'!$F$22+'BP Financier'!$G$16+'BP Financier'!$G$19+'BP Financier'!$G$22))*$V8302*X8302/(1-$W8302)","v":{"v":249965.28595861018,"d":"249,965"}},{"$f":"'BP Financier'!$G$44*(('BP Financier'!$C$16+'BP Financier'!$D$16+'BP Financier'!$E$16+'BP Financier'!$F$16+'BP Financier'!$G$16)/('BP Financier'!$C$16+'BP Financier'!$C$19+'BP Financier'!$D$16+'BP Financier'!$D$19+'BP Financier'!$E$16+'BP Financier'!$E$19+'BP Financier'!$C$22+'BP Financier'!$D$22+'BP Financier'!$E$22+'BP Financier'!$F$16+'BP Financier'!$F$19+'BP Financier'!$F$22+'BP Financier'!$G$16+'BP Financier'!$G$19+'BP Financier'!$G$22))*$V8302*Y8302/(1-$W8302)","v":{"v":167103.86519884988,"d":"167,104"}},{"$f":"'BP Financier'!$G$44*(('BP Financier'!$C$16+'BP Financier'!$D$16+'BP Financier'!$E$16+'BP Financier'!$F$16+'BP Financier'!$G$16)/('BP Financier'!$C$16+'BP Financier'!$C$19+'BP Financier'!$D$16+'BP Financier'!$D$19+'BP Financier'!$E$16+'BP Financier'!$E$19+'BP Financier'!$C$22+'BP Financier'!$D$22+'BP Financier'!$E$22+'BP Financier'!$F$16+'BP Financier'!$F$19+'BP Financier'!$F$22+'BP Financier'!$G$16+'BP Financier'!$G$19+'BP Financier'!$G$22))*$V8302*Z8302/(1-$W8302)","v":{"v":1307829.424324883,"d":"1,307,829"}},{"$f":"'BP Financier'!$G$44*(('BP Financier'!$C$16+'BP Financier'!$D$16+'BP Financier'!$E$16+'BP Financier'!$F$16+'BP Financier'!$G$16)/('BP Financier'!$C$16+'BP Financier'!$C$19+'BP Financier'!$D$16+'BP Financier'!$D$19+'BP Financier'!$E$16+'BP Financier'!$E$19+'BP Financier'!$C$22+'BP Financier'!$D$22+'BP Financier'!$E$22+'BP Financier'!$F$16+'BP Financier'!$F$19+'BP Financier'!$F$22+'BP Financier'!$G$16+'BP Financier'!$G$19+'BP Financier'!$G$22))*$V8302*AA8302/(1-$W8302)","v":{"v":161579.77048153256,"d":"161,580"}},{"$f":"'BP Financier'!$G$44*(('BP Financier'!$C$16+'BP Financier'!$D$16+'BP Financier'!$E$16+'BP Financier'!$F$16+'BP Financier'!$G$16)/('BP Financier'!$C$16+'BP Financier'!$C$19+'BP Financier'!$D$16+'BP Financier'!$D$19+'BP Financier'!$E$16+'BP Financier'!$E$19+'BP Financier'!$C$22+'BP Financier'!$D$22+'BP Financier'!$E$22+'BP Financier'!$F$16+'BP Financier'!$F$19+'BP Financier'!$F$22+'BP Financier'!$G$16+'BP Financier'!$G$19+'BP Financier'!$G$22))*$V8302*AB8302/(1-$W8302)","v":{"v":77337.32604244292,"d":"77,337"}},null,{"v":0.006,"d":"0.60%"},{"$f":"Actif!$E$28/100","v":{"v":0.28900000000000003,"d":"28.90%"}},{"$f":"Actif!$E$30/100","v":{"v":0.09050000000000001,"d":"9.05%"}},{"$f":"Actif!$E$31/100","v":{"v":0.0605,"d":"6.05%"}},{"$f":"Actif!$E$32/100","v":{"v":0.47350000000000003,"d":"47.35%"}},{"$f":"Actif!$E$33/100","v":{"v":0.0585,"d":"5.85%"}},{"$f":"Actif!$E$29/100","v":{"v":0.027999999999999997,"d":"2.80%"}}]
[null,"#190",55,2031,"H","A_VIE",{"v":0.44999999999999996,"d":"0.45"},{"v":0.38999999999999996,"d":"0.39"},0.6,0.6,85,0,{"$f":"ROUND(Primes!$Q$4*V8303,0)","v":68},{"$f":"'BP Financier'!$G$33*(('BP Financier'!$C$16+'BP Financier'!$D$16+'BP Financier'!$E$16+'BP Financier'!$F$16+'BP Financier'!$G$16)/('BP Financier'!$C$16+'BP Financier'!$C$19+'BP Financier'!$D$16+'BP Financier'!$D$19+'BP Financier'!$E$16+'BP Financier'!$E$19+'BP Financier'!$F$16+'BP Financier'!$F$19+'BP Financier'!$G$19+'BP Financier'!$G$16))*V8303","v":{"v":3421672.0459127007,"d":"3,421,672"}},{"v":1963815.672006318,"d":"1,963,816"},{"$f":"'BP Financier'!$G$44*(('BP Financier'!$C$16+'BP Financier'!$D$16+'BP Financier'!$E$16+'BP Financier'!$F$16+'BP Financier'!$G$16)/('BP Financier'!$C$16+'BP Financier'!$C$19+'BP Financier'!$D$16+'BP Financier'!$D$19+'BP Financier'!$E$16+'BP Financier'!$E$19+'BP Financier'!$C$22+'BP Financier'!$D$22+'BP Financier'!$E$22+'BP Financier'!$F$16+'BP Financier'!$F$19+'BP Financier'!$F$22+'BP Financier'!$G$16+'BP Financier'!$G$19+'BP Financier'!$G$22))*$V8303*X8303/(1-$W8303)","v":{"v":249965.28595861018,"d":"249,965"}},{"$f":"'BP Financier'!$G$44*(('BP Financier'!$C$16+'BP Financier'!$D$16+'BP Financier'!$E$16+'BP Financier'!$F$16+'BP Financier'!$G$16)/('BP Financier'!$C$16+'BP Financier'!$C$19+'BP Financier'!$D$16+'BP Financier'!$D$19+'BP Financier'!$E$16+'BP Financier'!$E$19+'BP Financier'!$C$22+'BP Financier'!$D$22+'BP Financier'!$E$22+'BP Financier'!$F$16+'BP Financier'!$F$19+'BP Financier'!$F$22+'BP Financier'!$G$16+'BP Financier'!$G$19+'BP Financier'!$G$22))*$V8303*Y8303/(1-$W8303)","v":{"v":167103.86519884988,"d":"167,104"}},{"$f":"'BP Financier'!$G$44*(('BP Financier'!$C$16+'BP Financier'!$D$16+'BP Financier'!$E$16+'BP Financier'!$F$16+'BP Financier'!$G$16)/('BP Financier'!$C$16+'BP Financier'!$C$19+'BP Financier'!$D$16+'BP Financier'!$D$19+'BP Financier'!$E$16+'BP Financier'!$E$19+'BP Financier'!$C$22+'BP Financier'!$D$22+'BP Financier'!$E$22+'BP Financier'!$F$16+'BP Financier'!$F$19+'BP Financier'!$F$22+'BP Financier'!$G$16+'BP Financier'!$G$19+'BP Financier'!$G$22))*$V8303*Z8303/(1-$W8303)","v":{"v":1307829.424324883,"d":"1,307,829"}},{"$f":"'BP Financier'!$G$44*(('BP Financier'!$C$16+'BP Financier'!$D$16+'BP Financier'!$E$16+'BP Financier'!$F$16+'BP Financier'!$G$16)/('BP Financier'!$C$16+'BP Financier'!$C$19+'BP Financier'!$D$16+'BP Financier'!$D$19+'BP Financier'!$E$16+'BP Financier'!$E$19+'BP Financier'!$C$22+'BP Financier'!$D$22+'BP Financier'!$E$22+'BP Financier'!$F$16+'BP Financier'!$F$19+'BP Financier'!$F$22+'BP Financier'!$G$16+'BP Financier'!$G$19+'BP Financier'!$G$22))*$V8303*AA8303/(1-$W8303)","v":{"v":161579.77048153256,"d":"161,580"}},{"$f":"'BP Financier'!$G$44*(('BP Financier'!$C$16+'BP Financier'!$D$16+'BP Financier'!$E$16+'BP Financier'!$F$16+'BP Financier'!$G$16)/('BP Financier'!$C$16+'BP Financier'!$C$19+'BP Financier'!$D$16+'BP Financier'!$D$19+'BP Financier'!$E$16+'BP Financier'!$E$19+'BP Financier'!$C$22+'BP Financier'!$D$22+'BP Financier'!$E$22+'BP Financier'!$F$16+'BP Financier'!$F$19+'BP Financier'!$F$22+'BP Financier'!$G$16+'BP Financier'!$G$19+'BP Financier'!$G$22))*$V8303*AB8303/(1-$W8303)","v":{"v":77337.32604244292,"d":"77,337"}},null,{"v":0.006,"d":"0.60%"},{"$f":"Actif!$E$28/100","v":{"v":0.28900000000000003,"d":"28.90%"}},{"$f":"Actif!$E$30/100","v":{"v":0.09050000000000001,"d":"9.05%"}},{"$f":"Actif!$E$31/100","v":{"v":0.0605,"d":"6.05%"}},{"$f":"Actif!$E$32/100","v":{"v":0.47350000000000003,"d":"47.35%"}},{"$f":"Actif!$E$33/100","v":{"v":0.0585,"d":"5.85%"}},{"$f":"Actif!$E$29/100","v":{"v":0.027999999999999997,"d":"2.80%"}}]
[null,"#191",56,2026,"F","A_VIE",{"v":0.44999999999999996,"d":"0.45"},{"v":0.38999999999999996,"d":"0.39"},0.6,0.6,85,0,{"$f":"ROUND(Primes!$Q$4*V8304,0)","v":68},{"$f":"'BP Financier'!$G$33*(('BP Financier'!$C$16+'BP Financier'!$D$16+'BP Financier'!$E$16+'BP Financier'!$F$16+'BP Financier'!$G$16)/('BP Financier'!$C$16+'BP Financier'!$C$19+'BP Financier'!$D$16+'BP Financier'!$D$19+'BP Financier'!$E$16+'BP Financier'!$E$19+'BP Financier'!$F$16+'BP Financier'!$F$19+'BP Financier'!$G$19+'BP Financier'!$G$16))*V8304","v":{"v":3421672.0459127007,"d":"3,421,672"}},{"v":1963815.672006318,"d":"1,963,816"},{"$f":"'BP Financier'!$G$44*(('BP Financier'!$C$16+'BP Financier'!$D$16+'BP Financier'!$E$16+'BP Financier'!$F$16+'BP Financier'!$G$16)/('BP Financier'!$C$16+'BP Financier'!$C$19+'BP Financier'!$D$16+'BP Financier'!$D$19+'BP Financier'!$E$16+'BP Financier'!$E$19+'BP Financier'!$C$22+'BP Financier'!$D$22+'BP Financier'!$E$22+'BP Financier'!$F$16+'BP Financier'!$F$19+'BP Financier'!$F$22+'BP Financier'!$G$16+'BP Financier'!$G$19+'BP Financier'!$G$22))*$V8304*X8304/(1-$W8304)","v":{"v":249965.28595861018,"d":"249,965"}},{"$f":"'BP Financier'!$G$44*(('BP Financier'!$C$16+'BP Financier'!$D$16+'BP Financier'!$E$16+'BP Financier'!$F$16+'BP Financier'!$G$16)/('BP Financier'!$C$16+'BP Financier'!$C$19+'BP Financier'!$D$16+'BP Financier'!$D$19+'BP Financier'!$E$16+'BP Financier'!$E$19+'BP Financier'!$C$22+'BP Financier'!$D$22+'BP Financier'!$E$22+'BP Financier'!$F$16+'BP Financier'!$F$19+'BP Financier'!$F$22+'BP Financier'!$G$16+'BP Financier'!$G$19+'BP Financier'!$G$22))*$V8304*Y8304/(1-$W8304)","v":{"v":167103.86519884988,"d":"167,104"}},{"$f":"'BP Financier'!$G$44*(('BP Financier'!$C$16+'BP Financier'!$D$16+'BP Financier'!$E$16+'BP Financier'!$F$16+'BP Financier'!$G$16)/('BP Financier'!$C$16+'BP Financier'!$C$19+'BP Financier'!$D$16+'BP Financier'!$D$19+'BP Financier'!$E$16+'BP Financier'!$E$19+'BP Financier'!$C$22+'BP Financier'!$D$22+'BP Financier'!$E$22+'BP Financier'!$F$16+'BP Financier'!$F$19+'BP Financier'!$F$22+'BP Financier'!$G$16+'BP Financier'!$G$19+'BP Financier'!$G$22))*$V8304*Z8304/(1-$W8304)","v":{"v":1307829.424324883,"d":"1,307,829"}},{"$f":"'BP Financier'!$G$44*(('BP Financier'!$C$16+'BP Financier'!$D$16+'BP Financier'!$E$16+'BP Financier'!$F$16+'BP Financier'!$G$16)/('BP Financier'!$C$16+'BP Financier'!$C$19+'BP Financier'!$D$16+'BP Financier'!$D$19+'BP Financier'!$E$16+'BP Financier'!$E$19+'BP Financier'!$C$22+'BP Financier'!$D$22+'BP Financier'!$E$22+'BP Financier'!$F$16+'BP Financier'!$F$19+'BP Financier'!$F$22+'BP Financier'!$G$16+'BP Financier'!$G$19+'BP Financier'!$G$22))*$V8304*AA8304/(1-$W8304)","v":{"v":161579.77048153256,"d":"161,580"}},{"$f":"'BP Financier'!$G$44*(('BP Financier'!$C$16+'BP Financier'!$D$16+'BP Financier'!$E$16+'BP Financier'!$F$16+'BP Financier'!$G$16)/('BP Financier'!$C$16+'BP Financier'!$C$19+'BP Financier'!$D$16+'BP Financier'!$D$19+'BP Financier'!$E$16+'BP Financier'!$E$19+'BP Financier'!$C$22+'BP Financier'!$D$22+'BP Financier'!$E$22+'BP Financier'!$F$16+'BP Financier'!$F$19+'BP Financier'!$F$22+'BP Financier'!$G$16+'BP Financier'!$G$19+'BP Financier'!$G$22))*$V8304*AB8304/(1-$W8304)","v":{"v":77337.32604244292,"d":"77,337"}},null,{"v":0.006,"d":"0.60%"},{"$f":"Actif!$E$28/100","v":{"v":0.28900000000000003,"d":"28.90%"}},{"$f":"Actif!$E$30/100","v":{"v":0.09050000000000001,"d":"9.05%"}},{"$f":"Actif!$E$31/100","v":{"v":0.0605,"d":"6.05%"}},{"$f":"Actif!$E$32/100","v":{"v":0.47350000000000003,"d":"47.35%"}},{"$f":"Actif!$E$33/100","v":{"v":0.0585,"d":"5.85%"}},{"$f":"Actif!$E$29/100","v":{"v":0.027999999999999997,"d":"2.80%"}}]
[null,"#192",56,2028,"F","A_VIE",{"v":0.44999999999999996,"d":"0.45"},{"v":0.38999999999999996,"d":"0.39"},0.6,0.6,85,0,{"$f":"ROUND(Primes!$Q$4*V8305,0)","v":68},{"$f":"'BP Financier'!$G$33*(('BP Financier'!$C$16+'BP Financier'!$D$16+'BP Financier'!$E$16+'BP Financier'!$F$16+'BP Financier'!$G$16)/('BP Financier'!$C$16+'BP Financier'!$C$19+'BP Financier'!$D$16+'BP Financier'!$D$19+'BP Financier'!$E$16+'BP Financier'!$E$19+'BP Financier'!$F$16+'BP Financier'!$F$19+'BP Financier'!$G$19+'BP Financier'!$G$16))*V8305","v":{"v":3421672.0459127007,"d":"3,421,672"}},{"v":1963815.672006318,"d":"1,963,816"},{"$f":"'BP Financier'!$G$44*(('BP Financier'!$C$16+'BP Financier'!$D$16+'BP Financier'!$E$16+'BP Financier'!$F$16+'BP Financier'!$G$16)/('BP Financier'!$C$16+'BP Financier'!$C$19+'BP Financier'!$D$16+'BP Financier'!$D$19+'BP Financier'!$E$16+'BP Financier'!$E$19+'BP Financier'!$C$22+'BP Financier'!$D$22+'BP Financier'!$E$22+'BP Financier'!$F$16+'BP Financier'!$F$19+'BP Financier'!$F$22+'BP Financier'!$G$16+'BP Financier'!$G$19+'BP Financier'!$G$22))*$V8305*X8305/(1-$W8305)","v":{"v":249965.28595861018,"d":"249,965"}},{"$f":"'BP Financier'!$G$44*(('BP Financier'!$C$16+'BP Financier'!$D$16+'BP Financier'!$E$16+'BP Financier'!$F$16+'BP Financier'!$G$16)/('BP Financier'!$C$16+'BP Financier'!$C$19+'BP Financier'!$D$16+'BP Financier'!$D$19+'BP Financier'!$E$16+'BP Financier'!$E$19+'BP Financier'!$C$22+'BP Financier'!$D$22+'BP Financier'!$E$22+'BP Financier'!$F$16+'BP Financier'!$F$19+'BP Financier'!$F$22+'BP Financier'!$G$16+'BP Financier'!$G$19+'BP Financier'!$G$22))*$V8305*Y8305/(1-$W8305)","v":{"v":167103.86519884988,"d":"167,104"}},{"$f":"'BP Financier'!$G$44*(('BP Financier'!$C$16+'BP Financier'!$D$16+'BP Financier'!$E$16+'BP Financier'!$F$16+'BP Financier'!$G$16)/('BP Financier'!$C$16+'BP Financier'!$C$19+'BP Financier'!$D$16+'BP Financier'!$D$19+'BP Financier'!$E$16+'BP Financier'!$E$19+'BP Financier'!$C$22+'BP Financier'!$D$22+'BP Financier'!$E$22+'BP Financier'!$F$16+'BP Financier'!$F$19+'BP Financier'!$F$22+'BP Financier'!$G$16+'BP Financier'!$G$19+'BP Financier'!$G$22))*$V8305*Z8305/(1-$W8305)","v":{"v":1307829.424324883,"d":"1,307,829"}},{"$f":"'BP Financier'!$G$44*(('BP Financier'!$C$16+'BP Financier'!$D$16+'BP Financier'!$E$16+'BP Financier'!$F$16+'BP Financier'!$G$16)/('BP Financier'!$C$16+'BP Financier'!$C$19+'BP Financier'!$D$16+'BP Financier'!$D$19+'BP Financier'!$E$16+'BP Financier'!$E$19+'BP Financier'!$C$22+'BP Financier'!$D$22+'BP Financier'!$E$22+'BP Financier'!$F$16+'BP Financier'!$F$19+'BP Financier'!$F$22+'BP Financier'!$G$16+'BP Financier'!$G$19+'BP Financier'!$G$22))*$V8305*AA8305/(1-$W8305)","v":{"v":161579.77048153256,"d":"161,580"}},{"$f":"'BP Financier'!$G$44*(('BP Financier'!$C$16+'BP Financier'!$D$16+'BP Financier'!$E$16+'BP Financier'!$F$16+'BP Financier'!$G$16)/('BP Financier'!$C$16+'BP Financier'!$C$19+'BP Financier'!$D$16+'BP Financier'!$D$19+'BP Financier'!$E$16+'BP Financier'!$E$19+'BP Financier'!$C$22+'BP Financier'!$D$22+'BP Financier'!$E$22+'BP Financier'!$F$16+'BP Financier'!$F$19+'BP Financier'!$F$22+'BP Financier'!$G$16+'BP Financier'!$G$19+'BP Financier'!$G$22))*$V8305*AB8305/(1-$W8305)","v":{"v":77337.32604244292,"d":"77,337"}},null,{"v":0.006,"d":"0.60%"},{"$f":"Actif!$E$28/100","v":{"v":0.28900000000000003,"d":"28.90%"}},{"$f":"Actif!$E$30/100","v":{"v":0.09050000000000001,"d":"9.05%"}},{"$f":"Actif!$E$31/100","v":{"v":0.0605,"d":"6.05%"}},{"$f":"Actif!$E$32/100","v":{"v":0.47350000000000003,"d":"47.35%"}},{"$f":"Actif!$E$33/100","v":{"v":0.0585,"d":"5.85%"}},{"$f":"Actif!$E$29/100","v":{"v":0.027999999999999997,"d":"2.80%"}}]
[null,"#193",56,2029,"F","A_VIE",{"v":0.44999999999999996,"d":"0.45"},{"v":0.38999999999999996,"d":"0.39"},0.6,0.6,85,0,{"$f":"ROUND(Primes!$Q$4*V8306,0)","v":68},{"$f":"'BP Financier'!$G$33*(('BP Financier'!$C$16+'BP Financier'!$D$16+'BP Financier'!$E$16+'BP Financier'!$F$16+'BP Financier'!$G$16)/('BP Financier'!$C$16+'BP Financier'!$C$19+'BP Financier'!$D$16+'BP Financier'!$D$19+'BP Financier'!$E$16+'BP Financier'!$E$19+'BP Financier'!$F$16+'BP Financier'!$F$19+'BP Financier'!$G$19+'BP Financier'!$G$16))*V8306","v":{"v":3421672.0459127007,"d":"3,421,672"}},{"v":1963815.672006318,"d":"1,963,816"},{"$f":"'BP Financier'!$G$44*(('BP Financier'!$C$16+'BP Financier'!$D$16+'BP Financier'!$E$16+'BP Financier'!$F$16+'BP Financier'!$G$16)/('BP Financier'!$C$16+'BP Financier'!$C$19+'BP Financier'!$D$16+'BP Financier'!$D$19+'BP Financier'!$E$16+'BP Financier'!$E$19+'BP Financier'!$C$22+'BP Financier'!$D$22+'BP Financier'!$E$22+'BP Financier'!$F$16+'BP Financier'!$F$19+'BP Financier'!$F$22+'BP Financier'!$G$16+'BP Financier'!$G$19+'BP Financier'!$G$22))*$V8306*X8306/(1-$W8306)","v":{"v":249965.28595861018,"d":"249,965"}},{"$f":"'BP Financier'!$G$44*(('BP Financier'!$C$16+'BP Financier'!$D$16+'BP Financier'!$E$16+'BP Financier'!$F$16+'BP Financier'!$G$16)/('BP Financier'!$C$16+'BP Financier'!$C$19+'BP Financier'!$D$16+'BP Financier'!$D$19+'BP Financier'!$E$16+'BP Financier'!$E$19+'BP Financier'!$C$22+'BP Financier'!$D$22+'BP Financier'!$E$22+'BP Financier'!$F$16+'BP Financier'!$F$19+'BP Financier'!$F$22+'BP Financier'!$G$16+'BP Financier'!$G$19+'BP Financier'!$G$22))*$V8306*Y8306/(1-$W8306)","v":{"v":167103.86519884988,"d":"167,104"}},{"$f":"'BP Financier'!$G$44*(('BP Financier'!$C$16+'BP Financier'!$D$16+'BP Financier'!$E$16+'BP Financier'!$F$16+'BP Financier'!$G$16)/('BP Financier'!$C$16+'BP Financier'!$C$19+'BP Financier'!$D$16+'BP Financier'!$D$19+'BP Financier'!$E$16+'BP Financier'!$E$19+'BP Financier'!$C$22+'BP Financier'!$D$22+'BP Financier'!$E$22+'BP Financier'!$F$16+'BP Financier'!$F$19+'BP Financier'!$F$22+'BP Financier'!$G$16+'BP Financier'!$G$19+'BP Financier'!$G$22))*$V8306*Z8306/(1-$W8306)","v":{"v":1307829.424324883,"d":"1,307,829"}},{"$f":"'BP Financier'!$G$44*(('BP Financier'!$C$16+'BP Financier'!$D$16+'BP Financier'!$E$16+'BP Financier'!$F$16+'BP Financier'!$G$16)/('BP Financier'!$C$16+'BP Financier'!$C$19+'BP Financier'!$D$16+'BP Financier'!$D$19+'BP Financier'!$E$16+'BP Financier'!$E$19+'BP Financier'!$C$22+'BP Financier'!$D$22+'BP Financier'!$E$22+'BP Financier'!$F$16+'BP Financier'!$F$19+'BP Financier'!$F$22+'BP Financier'!$G$16+'BP Financier'!$G$19+'BP Financier'!$G$22))*$V8306*AA8306/(1-$W8306)","v":{"v":161579.77048153256,"d":"161,580"}},{"$f":"'BP Financier'!$G$44*(('BP Financier'!$C$16+'BP Financier'!$D$16+'BP Financier'!$E$16+'BP Financier'!$F$16+'BP Financier'!$G$16)/('BP Financier'!$C$16+'BP Financier'!$C$19+'BP Financier'!$D$16+'BP Financier'!$D$19+'BP Financier'!$E$16+'BP Financier'!$E$19+'BP Financier'!$C$22+'BP Financier'!$D$22+'BP Financier'!$E$22+'BP Financier'!$F$16+'BP Financier'!$F$19+'BP Financier'!$F$22+'BP Financier'!$G$16+'BP Financier'!$G$19+'BP Financier'!$G$22))*$V8306*AB8306/(1-$W8306)","v":{"v":77337.32604244292,"d":"77,337"}},null,{"v":0.006,"d":"0.60%"},{"$f":"Actif!$E$28/100","v":{"v":0.28900000000000003,"d":"28.90%"}},{"$f":"Actif!$E$30/100","v":{"v":0.09050000000000001,"d":"9.05%"}},{"$f":"Actif!$E$31/100","v":{"v":0.0605,"d":"6.05%"}},{"$f":"Actif!$E$32/100","v":{"v":0.47350000000000003,"d":"47.35%"}},{"$f":"Actif!$E$33/100","v":{"v":0.0585,"d":"5.85%"}},{"$f":"Actif!$E$29/100","v":{"v":0.027999999999999997,"d":"2.80%"}}]
[null,"#194",56,2030,"F","A_VIE",{"v":0.44999999999999996,"d":"0.45"},{"v":0.38999999999999996,"d":"0.39"},0.6,0.6,85,0,{"$f":"ROUND(Primes!$Q$4*V8307,0)","v":68},{"$f":"'BP Financier'!$G$33*(('BP Financier'!$C$16+'BP Financier'!$D$16+'BP Financier'!$E$16+'BP Financier'!$F$16+'BP Financier'!$G$16)/('BP Financier'!$C$16+'BP Financier'!$C$19+'BP Financier'!$D$16+'BP Financier'!$D$19+'BP Financier'!$E$16+'BP Financier'!$E$19+'BP Financier'!$F$16+'BP Financier'!$F$19+'BP Financier'!$G$19+'BP Financier'!$G$16))*V8307","v":{"v":3421672.0459127007,"d":"3,421,672"}},{"v":1963815.672006318,"d":"1,963,816"},{"$f":"'BP Financier'!$G$44*(('BP Financier'!$C$16+'BP Financier'!$D$16+'BP Financier'!$E$16+'BP Financier'!$F$16+'BP Financier'!$G$16)/('BP Financier'!$C$16+'BP Financier'!$C$19+'BP Financier'!$D$16+'BP Financier'!$D$19+'BP Financier'!$E$16+'BP Financier'!$E$19+'BP Financier'!$C$22+'BP Financier'!$D$22+'BP Financier'!$E$22+'BP Financier'!$F$16+'BP Financier'!$F$19+'BP Financier'!$F$22+'BP Financier'!$G$16+'BP Financier'!$G$19+'BP Financier'!$G$22))*$V8307*X8307/(1-$W8307)","v":{"v":249965.28595861018,"d":"249,965"}},{"$f":"'BP Financier'!$G$44*(('BP Financier'!$C$16+'BP Financier'!$D$16+'BP Financier'!$E$16+'BP Financier'!$F$16+'BP Financier'!$G$16)/('BP Financier'!$C$16+'BP Financier'!$C$19+'BP Financier'!$D$16+'BP Financier'!$D$19+'BP Financier'!$E$16+'BP Financier'!$E$19+'BP Financier'!$C$22+'BP Financier'!$D$22+'BP Financier'!$E$22+'BP Financier'!$F$16+'BP Financier'!$F$19+'BP Financier'!$F$22+'BP Financier'!$G$16+'BP Financier'!$G$19+'BP Financier'!$G$22))*$V8307*Y8307/(1-$W8307)","v":{"v":167103.86519884988,"d":"167,104"}},{"$f":"'BP Financier'!$G$44*(('BP Financier'!$C$16+'BP Financier'!$D$16+'BP Financier'!$E$16+'BP Financier'!$F$16+'BP Financier'!$G$16)/('BP Financier'!$C$16+'BP Financier'!$C$19+'BP Financier'!$D$16+'BP Financier'!$D$19+'BP Financier'!$E$16+'BP Financier'!$E$19+'BP Financier'!$C$22+'BP Financier'!$D$22+'BP Financier'!$E$22+'BP Financier'!$F$16+'BP Financier'!$F$19+'BP Financier'!$F$22+'BP Financier'!$G$16+'BP Financier'!$G$19+'BP Financier'!$G$22))*$V8307*Z8307/(1-$W8307)","v":{"v":1307829.424324883,"d":"1,307,829"}},{"$f":"'BP Financier'!$G$44*(('BP Financier'!$C$16+'BP Financier'!$D$16+'BP Financier'!$E$16+'BP Financier'!$F$16+'BP Financier'!$G$16)/('BP Financier'!$C$16+'BP Financier'!$C$19+'BP Financier'!$D$16+'BP Financier'!$D$19+'BP Financier'!$E$16+'BP Financier'!$E$19+'BP Financier'!$C$22+'BP Financier'!$D$22+'BP Financier'!$E$22+'BP Financier'!$F$16+'BP Financier'!$F$19+'BP Financier'!$F$22+'BP Financier'!$G$16+'BP Financier'!$G$19+'BP Financier'!$G$22))*$V8307*AA8307/(1-$W8307)","v":{"v":161579.77048153256,"d":"161,580"}},{"$f":"'BP Financier'!$G$44*(('BP Financier'!$C$16+'BP Financier'!$D$16+'BP Financier'!$E$16+'BP Financier'!$F$16+'BP Financier'!$G$16)/('BP Financier'!$C$16+'BP Financier'!$C$19+'BP Financier'!$D$16+'BP Financier'!$D$19+'BP Financier'!$E$16+'BP Financier'!$E$19+'BP Financier'!$C$22+'BP Financier'!$D$22+'BP Financier'!$E$22+'BP Financier'!$F$16+'BP Financier'!$F$19+'BP Financier'!$F$22+'BP Financier'!$G$16+'BP Financier'!$G$19+'BP Financier'!$G$22))*$V8307*AB8307/(1-$W8307)","v":{"v":77337.32604244292,"d":"77,337"}},null,{"v":0.006,"d":"0.60%"},{"$f":"Actif!$E$28/100","v":{"v":0.28900000000000003,"d":"28.90%"}},{"$f":"Actif!$E$30/100","v":{"v":0.09050000000000001,"d":"9.05%"}},{"$f":"Actif!$E$31/100","v":{"v":0.0605,"d":"6.05%"}},{"$f":"Actif!$E$32/100","v":{"v":0.47350000000000003,"d":"47.35%"}},{"$f":"Actif!$E$33/100","v":{"v":0.0585,"d":"5.85%"}},{"$f":"Actif!$E$29/100","v":{"v":0.027999999999999997,"d":"2.80%"}}]
[null,"#195",56,2031,"F","A_VIE",{"v":0.44999999999999996,"d":"0.45"},{"v":0.38999999999999996,"d":"0.39"},0.6,0.6,85,0,{"$f":"ROUND(Primes!$Q$4*V8308,0)","v":68},{"$f":"'BP Financier'!$G$33*(('BP Financier'!$C$16+'BP Financier'!$D$16+'BP Financier'!$E$16+'BP Financier'!$F$16+'BP Financier'!$G$16)/('BP Financier'!$C$16+'BP Financier'!$C$19+'BP Financier'!$D$16+'BP Financier'!$D$19+'BP Financier'!$E$16+'BP Financier'!$E$19+'BP Financier'!$F$16+'BP Financier'!$F$19+'BP Financier'!$G$19+'BP Financier'!$G$16))*V8308","v":{"v":3421672.0459127007,"d":"3,421,672"}},{"v":1963815.672006318,"d":"1,963,816"},{"$f":"'BP Financier'!$G$44*(('BP Financier'!$C$16+'BP Financier'!$D$16+'BP Financier'!$E$16+'BP Financier'!$F$16+'BP Financier'!$G$16)/('BP Financier'!$C$16+'BP Financier'!$C$19+'BP Financier'!$D$16+'BP Financier'!$D$19+'BP Financier'!$E$16+'BP Financier'!$E$19+'BP Financier'!$C$22+'BP Financier'!$D$22+'BP Financier'!$E$22+'BP Financier'!$F$16+'BP Financier'!$F$19+'BP Financier'!$F$22+'BP Financier'!$G$16+'BP Financier'!$G$19+'BP Financier'!$G$22))*$V8308*X8308/(1-$W8308)","v":{"v":249965.28595861018,"d":"249,965"}},{"$f":"'BP Financier'!$G$44*(('BP Financier'!$C$16+'BP Financier'!$D$16+'BP Financier'!$E$16+'BP Financier'!$F$16+'BP Financier'!$G$16)/('BP Financier'!$C$16+'BP Financier'!$C$19+'BP Financier'!$D$16+'BP Financier'!$D$19+'BP Financier'!$E$16+'BP Financier'!$E$19+'BP Financier'!$C$22+'BP Financier'!$D$22+'BP Financier'!$E$22+'BP Financier'!$F$16+'BP Financier'!$F$19+'BP Financier'!$F$22+'BP Financier'!$G$16+'BP Financier'!$G$19+'BP Financier'!$G$22))*$V8308*Y8308/(1-$W8308)","v":{"v":167103.86519884988,"d":"167,104"}},{"$f":"'BP Financier'!$G$44*(('BP Financier'!$C$16+'BP Financier'!$D$16+'BP Financier'!$E$16+'BP Financier'!$F$16+'BP Financier'!$G$16)/('BP Financier'!$C$16+'BP Financier'!$C$19+'BP Financier'!$D$16+'BP Financier'!$D$19+'BP Financier'!$E$16+'BP Financier'!$E$19+'BP Financier'!$C$22+'BP Financier'!$D$22+'BP Financier'!$E$22+'BP Financier'!$F$16+'BP Financier'!$F$19+'BP Financier'!$F$22+'BP Financier'!$G$16+'BP Financier'!$G$19+'BP Financier'!$G$22))*$V8308*Z8308/(1-$W8308)","v":{"v":1307829.424324883,"d":"1,307,829"}},{"$f":"'BP Financier'!$G$44*(('BP Financier'!$C$16+'BP Financier'!$D$16+'BP Financier'!$E$16+'BP Financier'!$F$16+'BP Financier'!$G$16)/('BP Financier'!$C$16+'BP Financier'!$C$19+'BP Financier'!$D$16+'BP Financier'!$D$19+'BP Financier'!$E$16+'BP Financier'!$E$19+'BP Financier'!$C$22+'BP Financier'!$D$22+'BP Financier'!$E$22+'BP Financier'!$F$16+'BP Financier'!$F$19+'BP Financier'!$F$22+'BP Financier'!$G$16+'BP Financier'!$G$19+'BP Financier'!$G$22))*$V8308*AA8308/(1-$W8308)","v":{"v":161579.77048153256,"d":"161,580"}},{"$f":"'BP Financier'!$G$44*(('BP Financier'!$C$16+'BP Financier'!$D$16+'BP Financier'!$E$16+'BP Financier'!$F$16+'BP Financier'!$G$16)/('BP Financier'!$C$16+'BP Financier'!$C$19+'BP Financier'!$D$16+'BP Financier'!$D$19+'BP Financier'!$E$16+'BP Financier'!$E$19+'BP Financier'!$C$22+'BP Financier'!$D$22+'BP Financier'!$E$22+'BP Financier'!$F$16+'BP Financier'!$F$19+'BP Financier'!$F$22+'BP Financier'!$G$16+'BP Financier'!$G$19+'BP Financier'!$G$22))*$V8308*AB8308/(1-$W8308)","v":{"v":77337.32604244292,"d":"77,337"}},null,{"v":0.006,"d":"0.60%"},{"$f":"Actif!$E$28/100","v":{"v":0.28900000000000003,"d":"28.90%"}},{"$f":"Actif!$E$30/100","v":{"v":0.09050000000000001,"d":"9.05%"}},{"$f":"Actif!$E$31/100","v":{"v":0.0605,"d":"6.05%"}},{"$f":"Actif!$E$32/100","v":{"v":0.47350000000000003,"d":"47.35%"}},{"$f":"Actif!$E$33/100","v":{"v":0.0585,"d":"5.85%"}},{"$f":"Actif!$E$29/100","v":{"v":0.027999999999999997,"d":"2.80%"}}]
[null,"#196",57,2026,"H","A_VIE",{"v":0.44999999999999996,"d":"0.45"},{"v":0.38999999999999996,"d":"0.39"},0.6,0.6,85,0,{"$f":"ROUND(Primes!$Q$4*V8309,0)","v":68},{"$f":"'BP Financier'!$G$33*(('BP Financier'!$C$16+'BP Financier'!$D$16+'BP Financier'!$E$16+'BP Financier'!$F$16+'BP Financier'!$G$16)/('BP Financier'!$C$16+'BP Financier'!$C$19+'BP Financier'!$D$16+'BP Financier'!$D$19+'BP Financier'!$E$16+'BP Financier'!$E$19+'BP Financier'!$F$16+'BP Financier'!$F$19+'BP Financier'!$G$19+'BP Financier'!$G$16))*V8309","v":{"v":3421672.0459127007,"d":"3,421,672"}},{"v":1963815.672006318,"d":"1,963,816"},{"$f":"'BP Financier'!$G$44*(('BP Financier'!$C$16+'BP Financier'!$D$16+'BP Financier'!$E$16+'BP Financier'!$F$16+'BP Financier'!$G$16)/('BP Financier'!$C$16+'BP Financier'!$C$19+'BP Financier'!$D$16+'BP Financier'!$D$19+'BP Financier'!$E$16+'BP Financier'!$E$19+'BP Financier'!$C$22+'BP Financier'!$D$22+'BP Financier'!$E$22+'BP Financier'!$F$16+'BP Financier'!$F$19+'BP Financier'!$F$22+'BP Financier'!$G$16+'BP Financier'!$G$19+'BP Financier'!$G$22))*$V8309*X8309/(1-$W8309)","v":{"v":249965.28595861018,"d":"249,965"}},{"$f":"'BP Financier'!$G$44*(('BP Financier'!$C$16+'BP Financier'!$D$16+'BP Financier'!$E$16+'BP Financier'!$F$16+'BP Financier'!$G$16)/('BP Financier'!$C$16+'BP Financier'!$C$19+'BP Financier'!$D$16+'BP Financier'!$D$19+'BP Financier'!$E$16+'BP Financier'!$E$19+'BP Financier'!$C$22+'BP Financier'!$D$22+'BP Financier'!$E$22+'BP Financier'!$F$16+'BP Financier'!$F$19+'BP Financier'!$F$22+'BP Financier'!$G$16+'BP Financier'!$G$19+'BP Financier'!$G$22))*$V8309*Y8309/(1-$W8309)","v":{"v":167103.86519884988,"d":"167,104"}},{"$f":"'BP Financier'!$G$44*(('BP Financier'!$C$16+'BP Financier'!$D$16+'BP Financier'!$E$16+'BP Financier'!$F$16+'BP Financier'!$G$16)/('BP Financier'!$C$16+'BP Financier'!$C$19+'BP Financier'!$D$16+'BP Financier'!$D$19+'BP Financier'!$E$16+'BP Financier'!$E$19+'BP Financier'!$C$22+'BP Financier'!$D$22+'BP Financier'!$E$22+'BP Financier'!$F$16+'BP Financier'!$F$19+'BP Financier'!$F$22+'BP Financier'!$G$16+'BP Financier'!$G$19+'BP Financier'!$G$22))*$V8309*Z8309/(1-$W8309)","v":{"v":1307829.424324883,"d":"1,307,829"}},{"$f":"'BP Financier'!$G$44*(('BP Financier'!$C$16+'BP Financier'!$D$16+'BP Financier'!$E$16+'BP Financier'!$F$16+'BP Financier'!$G$16)/('BP Financier'!$C$16+'BP Financier'!$C$19+'BP Financier'!$D$16+'BP Financier'!$D$19+'BP Financier'!$E$16+'BP Financier'!$E$19+'BP Financier'!$C$22+'BP Financier'!$D$22+'BP Financier'!$E$22+'BP Financier'!$F$16+'BP Financier'!$F$19+'BP Financier'!$F$22+'BP Financier'!$G$16+'BP Financier'!$G$19+'BP Financier'!$G$22))*$V8309*AA8309/(1-$W8309)","v":{"v":161579.77048153256,"d":"161,580"}},{"$f":"'BP Financier'!$G$44*(('BP Financier'!$C$16+'BP Financier'!$D$16+'BP Financier'!$E$16+'BP Financier'!$F$16+'BP Financier'!$G$16)/('BP Financier'!$C$16+'BP Financier'!$C$19+'BP Financier'!$D$16+'BP Financier'!$D$19+'BP Financier'!$E$16+'BP Financier'!$E$19+'BP Financier'!$C$22+'BP Financier'!$D$22+'BP Financier'!$E$22+'BP Financier'!$F$16+'BP Financier'!$F$19+'BP Financier'!$F$22+'BP Financier'!$G$16+'BP Financier'!$G$19+'BP Financier'!$G$22))*$V8309*AB8309/(1-$W8309)","v":{"v":77337.32604244292,"d":"77,337"}},null,{"v":0.006,"d":"0.60%"},{"$f":"Actif!$E$28/100","v":{"v":0.28900000000000003,"d":"28.90%"}},{"$f":"Actif!$E$30/100","v":{"v":0.09050000000000001,"d":"9.05%"}},{"$f":"Actif!$E$31/100","v":{"v":0.0605,"d":"6.05%"}},{"$f":"Actif!$E$32/100","v":{"v":0.47350000000000003,"d":"47.35%"}},{"$f":"Actif!$E$33/100","v":{"v":0.0585,"d":"5.85%"}},{"$f":"Actif!$E$29/100","v":{"v":0.027999999999999997,"d":"2.80%"}}]
[null,"#197",57,2028,"H","A_VIE",{"v":0.44999999999999996,"d":"0.45"},{"v":0.38999999999999996,"d":"0.39"},0.6,0.6,85,0,{"$f":"ROUND(Primes!$Q$4*V8310,0)","v":68},{"$f":"'BP Financier'!$G$33*(('BP Financier'!$C$16+'BP Financier'!$D$16+'BP Financier'!$E$16+'BP Financier'!$F$16+'BP Financier'!$G$16)/('BP Financier'!$C$16+'BP Financier'!$C$19+'BP Financier'!$D$16+'BP Financier'!$D$19+'BP Financier'!$E$16+'BP Financier'!$E$19+'BP Financier'!$F$16+'BP Financier'!$F$19+'BP Financier'!$G$19+'BP Financier'!$G$16))*V8310","v":{"v":3421672.0459127007,"d":"3,421,672"}},{"v":1963815.672006318,"d":"1,963,816"},{"$f":"'BP Financier'!$G$44*(('BP Financier'!$C$16+'BP Financier'!$D$16+'BP Financier'!$E$16+'BP Financier'!$F$16+'BP Financier'!$G$16)/('BP Financier'!$C$16+'BP Financier'!$C$19+'BP Financier'!$D$16+'BP Financier'!$D$19+'BP Financier'!$E$16+'BP Financier'!$E$19+'BP Financier'!$C$22+'BP Financier'!$D$22+'BP Financier'!$E$22+'BP Financier'!$F$16+'BP Financier'!$F$19+'BP Financier'!$F$22+'BP Financier'!$G$16+'BP Financier'!$G$19+'BP Financier'!$G$22))*$V8310*X8310/(1-$W8310)","v":{"v":249965.28595861018,"d":"249,965"}},{"$f":"'BP Financier'!$G$44*(('BP Financier'!$C$16+'BP Financier'!$D$16+'BP Financier'!$E$16+'BP Financier'!$F$16+'BP Financier'!$G$16)/('BP Financier'!$C$16+'BP Financier'!$C$19+'BP Financier'!$D$16+'BP Financier'!$D$19+'BP Financier'!$E$16+'BP Financier'!$E$19+'BP Financier'!$C$22+'BP Financier'!$D$22+'BP Financier'!$E$22+'BP Financier'!$F$16+'BP Financier'!$F$19+'BP Financier'!$F$22+'BP Financier'!$G$16+'BP Financier'!$G$19+'BP Financier'!$G$22))*$V8310*Y8310/(1-$W8310)","v":{"v":167103.86519884988,"d":"167,104"}},{"$f":"'BP Financier'!$G$44*(('BP Financier'!$C$16+'BP Financier'!$D$16+'BP Financier'!$E$16+'BP Financier'!$F$16+'BP Financier'!$G$16)/('BP Financier'!$C$16+'BP Financier'!$C$19+'BP Financier'!$D$16+'BP Financier'!$D$19+'BP Financier'!$E$16+'BP Financier'!$E$19+'BP Financier'!$C$22+'BP Financier'!$D$22+'BP Financier'!$E$22+'BP Financier'!$F$16+'BP Financier'!$F$19+'BP Financier'!$F$22+'BP Financier'!$G$16+'BP Financier'!$G$19+'BP Financier'!$G$22))*$V8310*Z8310/(1-$W8310)","v":{"v":1307829.424324883,"d":"1,307,829"}},{"$f":"'BP Financier'!$G$44*(('BP Financier'!$C$16+'BP Financier'!$D$16+'BP Financier'!$E$16+'BP Financier'!$F$16+'BP Financier'!$G$16)/('BP Financier'!$C$16+'BP Financier'!$C$19+'BP Financier'!$D$16+'BP Financier'!$D$19+'BP Financier'!$E$16+'BP Financier'!$E$19+'BP Financier'!$C$22+'BP Financier'!$D$22+'BP Financier'!$E$22+'BP Financier'!$F$16+'BP Financier'!$F$19+'BP Financier'!$F$22+'BP Financier'!$G$16+'BP Financier'!$G$19+'BP Financier'!$G$22))*$V8310*AA8310/(1-$W8310)","v":{"v":161579.77048153256,"d":"161,580"}},{"$f":"'BP Financier'!$G$44*(('BP Financier'!$C$16+'BP Financier'!$D$16+'BP Financier'!$E$16+'BP Financier'!$F$16+'BP Financier'!$G$16)/('BP Financier'!$C$16+'BP Financier'!$C$19+'BP Financier'!$D$16+'BP Financier'!$D$19+'BP Financier'!$E$16+'BP Financier'!$E$19+'BP Financier'!$C$22+'BP Financier'!$D$22+'BP Financier'!$E$22+'BP Financier'!$F$16+'BP Financier'!$F$19+'BP Financier'!$F$22+'BP Financier'!$G$16+'BP Financier'!$G$19+'BP Financier'!$G$22))*$V8310*AB8310/(1-$W8310)","v":{"v":77337.32604244292,"d":"77,337"}},null,{"v":0.006,"d":"0.60%"},{"$f":"Actif!$E$28/100","v":{"v":0.28900000000000003,"d":"28.90%"}},{"$f":"Actif!$E$30/100","v":{"v":0.09050000000000001,"d":"9.05%"}},{"$f":"Actif!$E$31/100","v":{"v":0.0605,"d":"6.05%"}},{"$f":"Actif!$E$32/100","v":{"v":0.47350000000000003,"d":"47.35%"}},{"$f":"Actif!$E$33/100","v":{"v":0.0585,"d":"5.85%"}},{"$f":"Actif!$E$29/100","v":{"v":0.027999999999999997,"d":"2.80%"}}]
[null,"#198",57,2029,"H","A_VIE",{"v":0.44999999999999996,"d":"0.45"},{"v":0.38999999999999996,"d":"0.39"},0.6,0.6,85,0,{"$f":"ROUND(Primes!$Q$4*V8311,0)","v":68},{"$f":"'BP Financier'!$G$33*(('BP Financier'!$C$16+'BP Financier'!$D$16+'BP Financier'!$E$16+'BP Financier'!$F$16+'BP Financier'!$G$16)/('BP Financier'!$C$16+'BP Financier'!$C$19+'BP Financier'!$D$16+'BP Financier'!$D$19+'BP Financier'!$E$16+'BP Financier'!$E$19+'BP Financier'!$F$16+'BP Financier'!$F$19+'BP Financier'!$G$19+'BP Financier'!$G$16))*V8311","v":{"v":3421672.0459127007,"d":"3,421,672"}},{"v":1963815.672006318,"d":"1,963,816"},{"$f":"'BP Financier'!$G$44*(('BP Financier'!$C$16+'BP Financier'!$D$16+'BP Financier'!$E$16+'BP Financier'!$F$16+'BP Financier'!$G$16)/('BP Financier'!$C$16+'BP Financier'!$C$19+'BP Financier'!$D$16+'BP Financier'!$D$19+'BP Financier'!$E$16+'BP Financier'!$E$19+'BP Financier'!$C$22+'BP Financier'!$D$22+'BP Financier'!$E$22+'BP Financier'!$F$16+'BP Financier'!$F$19+'BP Financier'!$F$22+'BP Financier'!$G$16+'BP Financier'!$G$19+'BP Financier'!$G$22))*$V8311*X8311/(1-$W8311)","v":{"v":249965.28595861018,"d":"249,965"}},{"$f":"'BP Financier'!$G$44*(('BP Financier'!$C$16+'BP Financier'!$D$16+'BP Financier'!$E$16+'BP Financier'!$F$16+'BP Financier'!$G$16)/('BP Financier'!$C$16+'BP Financier'!$C$19+'BP Financier'!$D$16+'BP Financier'!$D$19+'BP Financier'!$E$16+'BP Financier'!$E$19+'BP Financier'!$C$22+'BP Financier'!$D$22+'BP Financier'!$E$22+'BP Financier'!$F$16+'BP Financier'!$F$19+'BP Financier'!$F$22+'BP Financier'!$G$16+'BP Financier'!$G$19+'BP Financier'!$G$22))*$V8311*Y8311/(1-$W8311)","v":{"v":167103.86519884988,"d":"167,104"}},{"$f":"'BP Financier'!$G$44*(('BP Financier'!$C$16+'BP Financier'!$D$16+'BP Financier'!$E$16+'BP Financier'!$F$16+'BP Financier'!$G$16)/('BP Financier'!$C$16+'BP Financier'!$C$19+'BP Financier'!$D$16+'BP Financier'!$D$19+'BP Financier'!$E$16+'BP Financier'!$E$19+'BP Financier'!$C$22+'BP Financier'!$D$22+'BP Financier'!$E$22+'BP Financier'!$F$16+'BP Financier'!$F$19+'BP Financier'!$F$22+'BP Financier'!$G$16+'BP Financier'!$G$19+'BP Financier'!$G$22))*$V8311*Z8311/(1-$W8311)","v":{"v":1307829.424324883,"d":"1,307,829"}},{"$f":"'BP Financier'!$G$44*(('BP Financier'!$C$16+'BP Financier'!$D$16+'BP Financier'!$E$16+'BP Financier'!$F$16+'BP Financier'!$G$16)/('BP Financier'!$C$16+'BP Financier'!$C$19+'BP Financier'!$D$16+'BP Financier'!$D$19+'BP Financier'!$E$16+'BP Financier'!$E$19+'BP Financier'!$C$22+'BP Financier'!$D$22+'BP Financier'!$E$22+'BP Financier'!$F$16+'BP Financier'!$F$19+'BP Financier'!$F$22+'BP Financier'!$G$16+'BP Financier'!$G$19+'BP Financier'!$G$22))*$V8311*AA8311/(1-$W8311)","v":{"v":161579.77048153256,"d":"161,580"}},{"$f":"'BP Financier'!$G$44*(('BP Financier'!$C$16+'BP Financier'!$D$16+'BP Financier'!$E$16+'BP Financier'!$F$16+'BP Financier'!$G$16)/('BP Financier'!$C$16+'BP Financier'!$C$19+'BP Financier'!$D$16+'BP Financier'!$D$19+'BP Financier'!$E$16+'BP Financier'!$E$19+'BP Financier'!$C$22+'BP Financier'!$D$22+'BP Financier'!$E$22+'BP Financier'!$F$16+'BP Financier'!$F$19+'BP Financier'!$F$22+'BP Financier'!$G$16+'BP Financier'!$G$19+'BP Financier'!$G$22))*$V8311*AB8311/(1-$W8311)","v":{"v":77337.32604244292,"d":"77,337"}},null,{"v":0.006,"d":"0.60%"},{"$f":"Actif!$E$28/100","v":{"v":0.28900000000000003,"d":"28.90%"}},{"$f":"Actif!$E$30/100","v":{"v":0.09050000000000001,"d":"9.05%"}},{"$f":"Actif!$E$31/100","v":{"v":0.0605,"d":"6.05%"}},{"$f":"Actif!$E$32/100","v":{"v":0.47350000000000003,"d":"47.35%"}},{"$f":"Actif!$E$33/100","v":{"v":0.0585,"d":"5.85%"}},{"$f":"Actif!$E$29/100","v":{"v":0.027999999999999997,"d":"2.80%"}}]
[null,"#199",57,2030,"H","A_VIE",{"v":0.44999999999999996,"d":"0.45"},{"v":0.38999999999999996,"d":"0.39"},0.6,0.6,85,0,{"$f":"ROUND(Primes!$Q$4*V8312,0)","v":68},{"$f":"'BP Financier'!$G$33*(('BP Financier'!$C$16+'BP Financier'!$D$16+'BP Financier'!$E$16+'BP Financier'!$F$16+'BP Financier'!$G$16)/('BP Financier'!$C$16+'BP Financier'!$C$19+'BP Financier'!$D$16+'BP Financier'!$D$19+'BP Financier'!$E$16+'BP Financier'!$E$19+'BP Financier'!$F$16+'BP Financier'!$F$19+'BP Financier'!$G$19+'BP Financier'!$G$16))*V8312","v":{"v":3421672.0459127007,"d":"3,421,672"}},{"v":1963815.672006318,"d":"1,963,816"},{"$f":"'BP Financier'!$G$44*(('BP Financier'!$C$16+'BP Financier'!$D$16+'BP Financier'!$E$16+'BP Financier'!$F$16+'BP Financier'!$G$16)/('BP Financier'!$C$16+'BP Financier'!$C$19+'BP Financier'!$D$16+'BP Financier'!$D$19+'BP Financier'!$E$16+'BP Financier'!$E$19+'BP Financier'!$C$22+'BP Financier'!$D$22+'BP Financier'!$E$22+'BP Financier'!$F$16+'BP Financier'!$F$19+'BP Financier'!$F$22+'BP Financier'!$G$16+'BP Financier'!$G$19+'BP Financier'!$G$22))*$V8312*X8312/(1-$W8312)","v":{"v":249965.28595861018,"d":"249,965"}},{"$f":"'BP Financier'!$G$44*(('BP Financier'!$C$16+'BP Financier'!$D$16+'BP Financier'!$E$16+'BP Financier'!$F$16+'BP Financier'!$G$16)/('BP Financier'!$C$16+'BP Financier'!$C$19+'BP Financier'!$D$16+'BP Financier'!$D$19+'BP Financier'!$E$16+'BP Financier'!$E$19+'BP Financier'!$C$22+'BP Financier'!$D$22+'BP Financier'!$E$22+'BP Financier'!$F$16+'BP Financier'!$F$19+'BP Financier'!$F$22+'BP Financier'!$G$16+'BP Financier'!$G$19+'BP Financier'!$G$22))*$V8312*Y8312/(1-$W8312)","v":{"v":167103.86519884988,"d":"167,104"}},{"$f":"'BP Financier'!$G$44*(('BP Financier'!$C$16+'BP Financier'!$D$16+'BP Financier'!$E$16+'BP Financier'!$F$16+'BP Financier'!$G$16)/('BP Financier'!$C$16+'BP Financier'!$C$19+'BP Financier'!$D$16+'BP Financier'!$D$19+'BP Financier'!$E$16+'BP Financier'!$E$19+'BP Financier'!$C$22+'BP Financier'!$D$22+'BP Financier'!$E$22+'BP Financier'!$F$16+'BP Financier'!$F$19+'BP Financier'!$F$22+'BP Financier'!$G$16+'BP Financier'!$G$19+'BP Financier'!$G$22))*$V8312*Z8312/(1-$W8312)","v":{"v":1307829.424324883,"d":"1,307,829"}},{"$f":"'BP Financier'!$G$44*(('BP Financier'!$C$16+'BP Financier'!$D$16+'BP Financier'!$E$16+'BP Financier'!$F$16+'BP Financier'!$G$16)/('BP Financier'!$C$16+'BP Financier'!$C$19+'BP Financier'!$D$16+'BP Financier'!$D$19+'BP Financier'!$E$16+'BP Financier'!$E$19+'BP Financier'!$C$22+'BP Financier'!$D$22+'BP Financier'!$E$22+'BP Financier'!$F$16+'BP Financier'!$F$19+'BP Financier'!$F$22+'BP Financier'!$G$16+'BP Financier'!$G$19+'BP Financier'!$G$22))*$V8312*AA8312/(1-$W8312)","v":{"v":161579.77048153256,"d":"161,580"}},{"$f":"'BP Financier'!$G$44*(('BP Financier'!$C$16+'BP Financier'!$D$16+'BP Financier'!$E$16+'BP Financier'!$F$16+'BP Financier'!$G$16)/('BP Financier'!$C$16+'BP Financier'!$C$19+'BP Financier'!$D$16+'BP Financier'!$D$19+'BP Financier'!$E$16+'BP Financier'!$E$19+'BP Financier'!$C$22+'BP Financier'!$D$22+'BP Financier'!$E$22+'BP Financier'!$F$16+'BP Financier'!$F$19+'BP Financier'!$F$22+'BP Financier'!$G$16+'BP Financier'!$G$19+'BP Financier'!$G$22))*$V8312*AB8312/(1-$W8312)","v":{"v":77337.32604244292,"d":"77,337"}},null,{"v":0.006,"d":"0.60%"},{"$f":"Actif!$E$28/100","v":{"v":0.28900000000000003,"d":"28.90%"}},{"$f":"Actif!$E$30/100","v":{"v":0.09050000000000001,"d":"9.05%"}},{"$f":"Actif!$E$31/100","v":{"v":0.0605,"d":"6.05%"}},{"$f":"Actif!$E$32/100","v":{"v":0.47350000000000003,"d":"47.35%"}},{"$f":"Actif!$E$33/100","v":{"v":0.0585,"d":"5.85%"}},{"$f":"Actif!$E$29/100","v":{"v":0.027999999999999997,"d":"2.80%"}}]
[null,"#200",57,2031,"H","A_VIE",{"v":0.44999999999999996,"d":"0.45"},{"v":0.38999999999999996,"d":"0.39"},0.6,0.6,85,0,{"$f":"ROUND(Primes!$Q$4*V8313,0)","v":68},{"$f":"'BP Financier'!$G$33*(('BP Financier'!$C$16+'BP Financier'!$D$16+'BP Financier'!$E$16+'BP Financier'!$F$16+'BP Financier'!$G$16)/('BP Financier'!$C$16+'BP Financier'!$C$19+'BP Financier'!$D$16+'BP Financier'!$D$19+'BP Financier'!$E$16+'BP Financier'!$E$19+'BP Financier'!$F$16+'BP Financier'!$F$19+'BP Financier'!$G$19+'BP Financier'!$G$16))*V8313","v":{"v":3421672.0459127007,"d":"3,421,672"}},{"v":1963815.672006318,"d":"1,963,816"},{"$f":"'BP Financier'!$G$44*(('BP Financier'!$C$16+'BP Financier'!$D$16+'BP Financier'!$E$16+'BP Financier'!$F$16+'BP Financier'!$G$16)/('BP Financier'!$C$16+'BP Financier'!$C$19+'BP Financier'!$D$16+'BP Financier'!$D$19+'BP Financier'!$E$16+'BP Financier'!$E$19+'BP Financier'!$C$22+'BP Financier'!$D$22+'BP Financier'!$E$22+'BP Financier'!$F$16+'BP Financier'!$F$19+'BP Financier'!$F$22+'BP Financier'!$G$16+'BP Financier'!$G$19+'BP Financier'!$G$22))*$V8313*X8313/(1-$W8313)","v":{"v":249965.28595861018,"d":"249,965"}},{"$f":"'BP Financier'!$G$44*(('BP Financier'!$C$16+'BP Financier'!$D$16+'BP Financier'!$E$16+'BP Financier'!$F$16+'BP Financier'!$G$16)/('BP Financier'!$C$16+'BP Financier'!$C$19+'BP Financier'!$D$16+'BP Financier'!$D$19+'BP Financier'!$E$16+'BP Financier'!$E$19+'BP Financier'!$C$22+'BP Financier'!$D$22+'BP Financier'!$E$22+'BP Financier'!$F$16+'BP Financier'!$F$19+'BP Financier'!$F$22+'BP Financier'!$G$16+'BP Financier'!$G$19+'BP Financier'!$G$22))*$V8313*Y8313/(1-$W8313)","v":{"v":167103.86519884988,"d":"167,104"}},{"$f":"'BP Financier'!$G$44*(('BP Financier'!$C$16+'BP Financier'!$D$16+'BP Financier'!$E$16+'BP Financier'!$F$16+'BP Financier'!$G$16)/('BP Financier'!$C$16+'BP Financier'!$C$19+'BP Financier'!$D$16+'BP Financier'!$D$19+'BP Financier'!$E$16+'BP Financier'!$E$19+'BP Financier'!$C$22+'BP Financier'!$D$22+'BP Financier'!$E$22+'BP Financier'!$F$16+'BP Financier'!$F$19+'BP Financier'!$F$22+'BP Financier'!$G$16+'BP Financier'!$G$19+'BP Financier'!$G$22))*$V8313*Z8313/(1-$W8313)","v":{"v":1307829.424324883,"d":"1,307,829"}},{"$f":"'BP Financier'!$G$44*(('BP Financier'!$C$16+'BP Financier'!$D$16+'BP Financier'!$E$16+'BP Financier'!$F$16+'BP Financier'!$G$16)/('BP Financier'!$C$16+'BP Financier'!$C$19+'BP Financier'!$D$16+'BP Financier'!$D$19+'BP Financier'!$E$16+'BP Financier'!$E$19+'BP Financier'!$C$22+'BP Financier'!$D$22+'BP Financier'!$E$22+'BP Financier'!$F$16+'BP Financier'!$F$19+'BP Financier'!$F$22+'BP Financier'!$G$16+'BP Financier'!$G$19+'BP Financier'!$G$22))*$V8313*AA8313/(1-$W8313)","v":{"v":161579.77048153256,"d":"161,580"}},{"$f":"'BP Financier'!$G$44*(('BP Financier'!$C$16+'BP Financier'!$D$16+'BP Financier'!$E$16+'BP Financier'!$F$16+'BP Financier'!$G$16)/('BP Financier'!$C$16+'BP Financier'!$C$19+'BP Financier'!$D$16+'BP Financier'!$D$19+'BP Financier'!$E$16+'BP Financier'!$E$19+'BP Financier'!$C$22+'BP Financier'!$D$22+'BP Financier'!$E$22+'BP Financier'!$F$16+'BP Financier'!$F$19+'BP Financier'!$F$22+'BP Financier'!$G$16+'BP Financier'!$G$19+'BP Financier'!$G$22))*$V8313*AB8313/(1-$W8313)","v":{"v":77337.32604244292,"d":"77,337"}},null,{"v":0.006,"d":"0.60%"},{"$f":"Actif!$E$28/100","v":{"v":0.28900000000000003,"d":"28.90%"}},{"$f":"Actif!$E$30/100","v":{"v":0.09050000000000001,"d":"9.05%"}},{"$f":"Actif!$E$31/100","v":{"v":0.0605,"d":"6.05%"}},{"$f":"Actif!$E$32/100","v":{"v":0.47350000000000003,"d":"47.35%"}},{"$f":"Actif!$E$33/100","v":{"v":0.0585,"d":"5.85%"}},{"$f":"Actif!$E$29/100","v":{"v":0.027999999999999997,"d":"2.80%"}}]
[null,"#201",58,2026,"H","A_VIE",{"v":0.44999999999999996,"d":"0.45"},{"v":0.38999999999999996,"d":"0.39"},0.6,0.6,85,0,{"$f":"ROUND(Primes!$Q$4*V8314,0)","v":68},{"$f":"'BP Financier'!$G$33*(('BP Financier'!$C$16+'BP Financier'!$D$16+'BP Financier'!$E$16+'BP Financier'!$F$16+'BP Financier'!$G$16)/('BP Financier'!$C$16+'BP Financier'!$C$19+'BP Financier'!$D$16+'BP Financier'!$D$19+'BP Financier'!$E$16+'BP Financier'!$E$19+'BP Financier'!$F$16+'BP Financier'!$F$19+'BP Financier'!$G$19+'BP Financier'!$G$16))*V8314","v":{"v":3421672.0459127007,"d":"3,421,672"}},{"v":1963815.672006318,"d":"1,963,816"},{"$f":"'BP Financier'!$G$44*(('BP Financier'!$C$16+'BP Financier'!$D$16+'BP Financier'!$E$16+'BP Financier'!$F$16+'BP Financier'!$G$16)/('BP Financier'!$C$16+'BP Financier'!$C$19+'BP Financier'!$D$16+'BP Financier'!$D$19+'BP Financier'!$E$16+'BP Financier'!$E$19+'BP Financier'!$C$22+'BP Financier'!$D$22+'BP Financier'!$E$22+'BP Financier'!$F$16+'BP Financier'!$F$19+'BP Financier'!$F$22+'BP Financier'!$G$16+'BP Financier'!$G$19+'BP Financier'!$G$22))*$V8314*X8314/(1-$W8314)","v":{"v":249965.28595861018,"d":"249,965"}},{"$f":"'BP Financier'!$G$44*(('BP Financier'!$C$16+'BP Financier'!$D$16+'BP Financier'!$E$16+'BP Financier'!$F$16+'BP Financier'!$G$16)/('BP Financier'!$C$16+'BP Financier'!$C$19+'BP Financier'!$D$16+'BP Financier'!$D$19+'BP Financier'!$E$16+'BP Financier'!$E$19+'BP Financier'!$C$22+'BP Financier'!$D$22+'BP Financier'!$E$22+'BP Financier'!$F$16+'BP Financier'!$F$19+'BP Financier'!$F$22+'BP Financier'!$G$16+'BP Financier'!$G$19+'BP Financier'!$G$22))*$V8314*Y8314/(1-$W8314)","v":{"v":167103.86519884988,"d":"167,104"}},{"$f":"'BP Financier'!$G$44*(('BP Financier'!$C$16+'BP Financier'!$D$16+'BP Financier'!$E$16+'BP Financier'!$F$16+'BP Financier'!$G$16)/('BP Financier'!$C$16+'BP Financier'!$C$19+'BP Financier'!$D$16+'BP Financier'!$D$19+'BP Financier'!$E$16+'BP Financier'!$E$19+'BP Financier'!$C$22+'BP Financier'!$D$22+'BP Financier'!$E$22+'BP Financier'!$F$16+'BP Financier'!$F$19+'BP Financier'!$F$22+'BP Financier'!$G$16+'BP Financier'!$G$19+'BP Financier'!$G$22))*$V8314*Z8314/(1-$W8314)","v":{"v":1307829.424324883,"d":"1,307,829"}},{"$f":"'BP Financier'!$G$44*(('BP Financier'!$C$16+'BP Financier'!$D$16+'BP Financier'!$E$16+'BP Financier'!$F$16+'BP Financier'!$G$16)/('BP Financier'!$C$16+'BP Financier'!$C$19+'BP Financier'!$D$16+'BP Financier'!$D$19+'BP Financier'!$E$16+'BP Financier'!$E$19+'BP Financier'!$C$22+'BP Financier'!$D$22+'BP Financier'!$E$22+'BP Financier'!$F$16+'BP Financier'!$F$19+'BP Financier'!$F$22+'BP Financier'!$G$16+'BP Financier'!$G$19+'BP Financier'!$G$22))*$V8314*AA8314/(1-$W8314)","v":{"v":161579.77048153256,"d":"161,580"}},{"$f":"'BP Financier'!$G$44*(('BP Financier'!$C$16+'BP Financier'!$D$16+'BP Financier'!$E$16+'BP Financier'!$F$16+'BP Financier'!$G$16)/('BP Financier'!$C$16+'BP Financier'!$C$19+'BP Financier'!$D$16+'BP Financier'!$D$19+'BP Financier'!$E$16+'BP Financier'!$E$19+'BP Financier'!$C$22+'BP Financier'!$D$22+'BP Financier'!$E$22+'BP Financier'!$F$16+'BP Financier'!$F$19+'BP Financier'!$F$22+'BP Financier'!$G$16+'BP Financier'!$G$19+'BP Financier'!$G$22))*$V8314*AB8314/(1-$W8314)","v":{"v":77337.32604244292,"d":"77,337"}},null,{"v":0.006,"d":"0.60%"},{"$f":"Actif!$E$28/100","v":{"v":0.28900000000000003,"d":"28.90%"}},{"$f":"Actif!$E$30/100","v":{"v":0.09050000000000001,"d":"9.05%"}},{"$f":"Actif!$E$31/100","v":{"v":0.0605,"d":"6.05%"}},{"$f":"Actif!$E$32/100","v":{"v":0.47350000000000003,"d":"47.35%"}},{"$f":"Actif!$E$33/100","v":{"v":0.0585,"d":"5.85%"}},{"$f":"Actif!$E$29/100","v":{"v":0.027999999999999997,"d":"2.80%"}}]
[null,"#202",58,2028,"H","A_VIE",{"v":0.44999999999999996,"d":"0.45"},{"v":0.38999999999999996,"d":"0.39"},0.6,0.6,85,0,{"$f":"ROUND(Primes!$Q$4*V8315,0)","v":68},{"$f":"'BP Financier'!$G$33*(('BP Financier'!$C$16+'BP Financier'!$D$16+'BP Financier'!$E$16+'BP Financier'!$F$16+'BP Financier'!$G$16)/('BP Financier'!$C$16+'BP Financier'!$C$19+'BP Financier'!$D$16+'BP Financier'!$D$19+'BP Financier'!$E$16+'BP Financier'!$E$19+'BP Financier'!$F$16+'BP Financier'!$F$19+'BP Financier'!$G$19+'BP Financier'!$G$16))*V8315","v":{"v":3421672.0459127007,"d":"3,421,672"}},{"v":1963815.672006318,"d":"1,963,816"},{"$f":"'BP Financier'!$G$44*(('BP Financier'!$C$16+'BP Financier'!$D$16+'BP Financier'!$E$16+'BP Financier'!$F$16+'BP Financier'!$G$16)/('BP Financier'!$C$16+'BP Financier'!$C$19+'BP Financier'!$D$16+'BP Financier'!$D$19+'BP Financier'!$E$16+'BP Financier'!$E$19+'BP Financier'!$C$22+'BP Financier'!$D$22+'BP Financier'!$E$22+'BP Financier'!$F$16+'BP Financier'!$F$19+'BP Financier'!$F$22+'BP Financier'!$G$16+'BP Financier'!$G$19+'BP Financier'!$G$22))*$V8315*X8315/(1-$W8315)","v":{"v":249965.28595861018,"d":"249,965"}},{"$f":"'BP Financier'!$G$44*(('BP Financier'!$C$16+'BP Financier'!$D$16+'BP Financier'!$E$16+'BP Financier'!$F$16+'BP Financier'!$G$16)/('BP Financier'!$C$16+'BP Financier'!$C$19+'BP Financier'!$D$16+'BP Financier'!$D$19+'BP Financier'!$E$16+'BP Financier'!$E$19+'BP Financier'!$C$22+'BP Financier'!$D$22+'BP Financier'!$E$22+'BP Financier'!$F$16+'BP Financier'!$F$19+'BP Financier'!$F$22+'BP Financier'!$G$16+'BP Financier'!$G$19+'BP Financier'!$G$22))*$V8315*Y8315/(1-$W8315)","v":{"v":167103.86519884988,"d":"167,104"}},{"$f":"'BP Financier'!$G$44*(('BP Financier'!$C$16+'BP Financier'!$D$16+'BP Financier'!$E$16+'BP Financier'!$F$16+'BP Financier'!$G$16)/('BP Financier'!$C$16+'BP Financier'!$C$19+'BP Financier'!$D$16+'BP Financier'!$D$19+'BP Financier'!$E$16+'BP Financier'!$E$19+'BP Financier'!$C$22+'BP Financier'!$D$22+'BP Financier'!$E$22+'BP Financier'!$F$16+'BP Financier'!$F$19+'BP Financier'!$F$22+'BP Financier'!$G$16+'BP Financier'!$G$19+'BP Financier'!$G$22))*$V8315*Z8315/(1-$W8315)","v":{"v":1307829.424324883,"d":"1,307,829"}},{"$f":"'BP Financier'!$G$44*(('BP Financier'!$C$16+'BP Financier'!$D$16+'BP Financier'!$E$16+'BP Financier'!$F$16+'BP Financier'!$G$16)/('BP Financier'!$C$16+'BP Financier'!$C$19+'BP Financier'!$D$16+'BP Financier'!$D$19+'BP Financier'!$E$16+'BP Financier'!$E$19+'BP Financier'!$C$22+'BP Financier'!$D$22+'BP Financier'!$E$22+'BP Financier'!$F$16+'BP Financier'!$F$19+'BP Financier'!$F$22+'BP Financier'!$G$16+'BP Financier'!$G$19+'BP Financier'!$G$22))*$V8315*AA8315/(1-$W8315)","v":{"v":161579.77048153256,"d":"161,580"}},{"$f":"'BP Financier'!$G$44*(('BP Financier'!$C$16+'BP Financier'!$D$16+'BP Financier'!$E$16+'BP Financier'!$F$16+'BP Financier'!$G$16)/('BP Financier'!$C$16+'BP Financier'!$C$19+'BP Financier'!$D$16+'BP Financier'!$D$19+'BP Financier'!$E$16+'BP Financier'!$E$19+'BP Financier'!$C$22+'BP Financier'!$D$22+'BP Financier'!$E$22+'BP Financier'!$F$16+'BP Financier'!$F$19+'BP Financier'!$F$22+'BP Financier'!$G$16+'BP Financier'!$G$19+'BP Financier'!$G$22))*$V8315*AB8315/(1-$W8315)","v":{"v":77337.32604244292,"d":"77,337"}},null,{"v":0.006,"d":"0.60%"},{"$f":"Actif!$E$28/100","v":{"v":0.28900000000000003,"d":"28.90%"}},{"$f":"Actif!$E$30/100","v":{"v":0.09050000000000001,"d":"9.05%"}},{"$f":"Actif!$E$31/100","v":{"v":0.0605,"d":"6.05%"}},{"$f":"Actif!$E$32/100","v":{"v":0.47350000000000003,"d":"47.35%"}},{"$f":"Actif!$E$33/100","v":{"v":0.0585,"d":"5.85%"}},{"$f":"Actif!$E$29/100","v":{"v":0.027999999999999997,"d":"2.80%"}}]
[null,"#203",58,2029,"H","A_VIE",{"v":0.44999999999999996,"d":"0.45"},{"v":0.38999999999999996,"d":"0.39"},0.6,0.6,85,0,{"$f":"ROUND(Primes!$Q$4*V8316,0)","v":68},{"$f":"'BP Financier'!$G$33*(('BP Financier'!$C$16+'BP Financier'!$D$16+'BP Financier'!$E$16+'BP Financier'!$F$16+'BP Financier'!$G$16)/('BP Financier'!$C$16+'BP Financier'!$C$19+'BP Financier'!$D$16+'BP Financier'!$D$19+'BP Financier'!$E$16+'BP Financier'!$E$19+'BP Financier'!$F$16+'BP Financier'!$F$19+'BP Financier'!$G$19+'BP Financier'!$G$16))*V8316","v":{"v":3421672.0459127007,"d":"3,421,672"}},{"v":1963815.672006318,"d":"1,963,816"},{"$f":"'BP Financier'!$G$44*(('BP Financier'!$C$16+'BP Financier'!$D$16+'BP Financier'!$E$16+'BP Financier'!$F$16+'BP Financier'!$G$16)/('BP Financier'!$C$16+'BP Financier'!$C$19+'BP Financier'!$D$16+'BP Financier'!$D$19+'BP Financier'!$E$16+'BP Financier'!$E$19+'BP Financier'!$C$22+'BP Financier'!$D$22+'BP Financier'!$E$22+'BP Financier'!$F$16+'BP Financier'!$F$19+'BP Financier'!$F$22+'BP Financier'!$G$16+'BP Financier'!$G$19+'BP Financier'!$G$22))*$V8316*X8316/(1-$W8316)","v":{"v":249965.28595861018,"d":"249,965"}},{"$f":"'BP Financier'!$G$44*(('BP Financier'!$C$16+'BP Financier'!$D$16+'BP Financier'!$E$16+'BP Financier'!$F$16+'BP Financier'!$G$16)/('BP Financier'!$C$16+'BP Financier'!$C$19+'BP Financier'!$D$16+'BP Financier'!$D$19+'BP Financier'!$E$16+'BP Financier'!$E$19+'BP Financier'!$C$22+'BP Financier'!$D$22+'BP Financier'!$E$22+'BP Financier'!$F$16+'BP Financier'!$F$19+'BP Financier'!$F$22+'BP Financier'!$G$16+'BP Financier'!$G$19+'BP Financier'!$G$22))*$V8316*Y8316/(1-$W8316)","v":{"v":167103.86519884988,"d":"167,104"}},{"$f":"'BP Financier'!$G$44*(('BP Financier'!$C$16+'BP Financier'!$D$16+'BP Financier'!$E$16+'BP Financier'!$F$16+'BP Financier'!$G$16)/('BP Financier'!$C$16+'BP Financier'!$C$19+'BP Financier'!$D$16+'BP Financier'!$D$19+'BP Financier'!$E$16+'BP Financier'!$E$19+'BP Financier'!$C$22+'BP Financier'!$D$22+'BP Financier'!$E$22+'BP Financier'!$F$16+'BP Financier'!$F$19+'BP Financier'!$F$22+'BP Financier'!$G$16+'BP Financier'!$G$19+'BP Financier'!$G$22))*$V8316*Z8316/(1-$W8316)","v":{"v":1307829.424324883,"d":"1,307,829"}},{"$f":"'BP Financier'!$G$44*(('BP Financier'!$C$16+'BP Financier'!$D$16+'BP Financier'!$E$16+'BP Financier'!$F$16+'BP Financier'!$G$16)/('BP Financier'!$C$16+'BP Financier'!$C$19+'BP Financier'!$D$16+'BP Financier'!$D$19+'BP Financier'!$E$16+'BP Financier'!$E$19+'BP Financier'!$C$22+'BP Financier'!$D$22+'BP Financier'!$E$22+'BP Financier'!$F$16+'BP Financier'!$F$19+'BP Financier'!$F$22+'BP Financier'!$G$16+'BP Financier'!$G$19+'BP Financier'!$G$22))*$V8316*AA8316/(1-$W8316)","v":{"v":161579.77048153256,"d":"161,580"}},{"$f":"'BP Financier'!$G$44*(('BP Financier'!$C$16+'BP Financier'!$D$16+'BP Financier'!$E$16+'BP Financier'!$F$16+'BP Financier'!$G$16)/('BP Financier'!$C$16+'BP Financier'!$C$19+'BP Financier'!$D$16+'BP Financier'!$D$19+'BP Financier'!$E$16+'BP Financier'!$E$19+'BP Financier'!$C$22+'BP Financier'!$D$22+'BP Financier'!$E$22+'BP Financier'!$F$16+'BP Financier'!$F$19+'BP Financier'!$F$22+'BP Financier'!$G$16+'BP Financier'!$G$19+'BP Financier'!$G$22))*$V8316*AB8316/(1-$W8316)","v":{"v":77337.32604244292,"d":"77,337"}},null,{"v":0.006,"d":"0.60%"},{"$f":"Actif!$E$28/100","v":{"v":0.28900000000000003,"d":"28.90%"}},{"$f":"Actif!$E$30/100","v":{"v":0.09050000000000001,"d":"9.05%"}},{"$f":"Actif!$E$31/100","v":{"v":0.0605,"d":"6.05%"}},{"$f":"Actif!$E$32/100","v":{"v":0.47350000000000003,"d":"47.35%"}},{"$f":"Actif!$E$33/100","v":{"v":0.0585,"d":"5.85%"}},{"$f":"Actif!$E$29/100","v":{"v":0.027999999999999997,"d":"2.80%"}}]
[null,"#204",58,2030,"H","A_VIE",{"v":0.44999999999999996,"d":"0.45"},{"v":0.38999999999999996,"d":"0.39"},0.6,0.6,85,0,{"$f":"ROUND(Primes!$Q$4*V8317,0)","v":68},{"$f":"'BP Financier'!$G$33*(('BP Financier'!$C$16+'BP Financier'!$D$16+'BP Financier'!$E$16+'BP Financier'!$F$16+'BP Financier'!$G$16)/('BP Financier'!$C$16+'BP Financier'!$C$19+'BP Financier'!$D$16+'BP Financier'!$D$19+'BP Financier'!$E$16+'BP Financier'!$E$19+'BP Financier'!$F$16+'BP Financier'!$F$19+'BP Financier'!$G$19+'BP Financier'!$G$16))*V8317","v":{"v":3421672.0459127007,"d":"3,421,672"}},{"v":1963815.672006318,"d":"1,963,816"},{"$f":"'BP Financier'!$G$44*(('BP Financier'!$C$16+'BP Financier'!$D$16+'BP Financier'!$E$16+'BP Financier'!$F$16+'BP Financier'!$G$16)/('BP Financier'!$C$16+'BP Financier'!$C$19+'BP Financier'!$D$16+'BP Financier'!$D$19+'BP Financier'!$E$16+'BP Financier'!$E$19+'BP Financier'!$C$22+'BP Financier'!$D$22+'BP Financier'!$E$22+'BP Financier'!$F$16+'BP Financier'!$F$19+'BP Financier'!$F$22+'BP Financier'!$G$16+'BP Financier'!$G$19+'BP Financier'!$G$22))*$V8317*X8317/(1-$W8317)","v":{"v":249965.28595861018,"d":"249,965"}},{"$f":"'BP Financier'!$G$44*(('BP Financier'!$C$16+'BP Financier'!$D$16+'BP Financier'!$E$16+'BP Financier'!$F$16+'BP Financier'!$G$16)/('BP Financier'!$C$16+'BP Financier'!$C$19+'BP Financier'!$D$16+'BP Financier'!$D$19+'BP Financier'!$E$16+'BP Financier'!$E$19+'BP Financier'!$C$22+'BP Financier'!$D$22+'BP Financier'!$E$22+'BP Financier'!$F$16+'BP Financier'!$F$19+'BP Financier'!$F$22+'BP Financier'!$G$16+'BP Financier'!$G$19+'BP Financier'!$G$22))*$V8317*Y8317/(1-$W8317)","v":{"v":167103.86519884988,"d":"167,104"}},{"$f":"'BP Financier'!$G$44*(('BP Financier'!$C$16+'BP Financier'!$D$16+'BP Financier'!$E$16+'BP Financier'!$F$16+'BP Financier'!$G$16)/('BP Financier'!$C$16+'BP Financier'!$C$19+'BP Financier'!$D$16+'BP Financier'!$D$19+'BP Financier'!$E$16+'BP Financier'!$E$19+'BP Financier'!$C$22+'BP Financier'!$D$22+'BP Financier'!$E$22+'BP Financier'!$F$16+'BP Financier'!$F$19+'BP Financier'!$F$22+'BP Financier'!$G$16+'BP Financier'!$G$19+'BP Financier'!$G$22))*$V8317*Z8317/(1-$W8317)","v":{"v":1307829.424324883,"d":"1,307,829"}},{"$f":"'BP Financier'!$G$44*(('BP Financier'!$C$16+'BP Financier'!$D$16+'BP Financier'!$E$16+'BP Financier'!$F$16+'BP Financier'!$G$16)/('BP Financier'!$C$16+'BP Financier'!$C$19+'BP Financier'!$D$16+'BP Financier'!$D$19+'BP Financier'!$E$16+'BP Financier'!$E$19+'BP Financier'!$C$22+'BP Financier'!$D$22+'BP Financier'!$E$22+'BP Financier'!$F$16+'BP Financier'!$F$19+'BP Financier'!$F$22+'BP Financier'!$G$16+'BP Financier'!$G$19+'BP Financier'!$G$22))*$V8317*AA8317/(1-$W8317)","v":{"v":161579.77048153256,"d":"161,580"}},{"$f":"'BP Financier'!$G$44*(('BP Financier'!$C$16+'BP Financier'!$D$16+'BP Financier'!$E$16+'BP Financier'!$F$16+'BP Financier'!$G$16)/('BP Financier'!$C$16+'BP Financier'!$C$19+'BP Financier'!$D$16+'BP Financier'!$D$19+'BP Financier'!$E$16+'BP Financier'!$E$19+'BP Financier'!$C$22+'BP Financier'!$D$22+'BP Financier'!$E$22+'BP Financier'!$F$16+'BP Financier'!$F$19+'BP Financier'!$F$22+'BP Financier'!$G$16+'BP Financier'!$G$19+'BP Financier'!$G$22))*$V8317*AB8317/(1-$W8317)","v":{"v":77337.32604244292,"d":"77,337"}},null,{"v":0.006,"d":"0.60%"},{"$f":"Actif!$E$28/100","v":{"v":0.28900000000000003,"d":"28.90%"}},{"$f":"Actif!$E$30/100","v":{"v":0.09050000000000001,"d":"9.05%"}},{"$f":"Actif!$E$31/100","v":{"v":0.0605,"d":"6.05%"}},{"$f":"Actif!$E$32/100","v":{"v":0.47350000000000003,"d":"47.35%"}},{"$f":"Actif!$E$33/100","v":{"v":0.0585,"d":"5.85%"}},{"$f":"Actif!$E$29/100","v":{"v":0.027999999999999997,"d":"2.80%"}}]
[null,"#205",58,2031,"H","A_VIE",{"v":0.44999999999999996,"d":"0.45"},{"v":0.38999999999999996,"d":"0.39"},0.6,0.6,85,0,{"$f":"ROUND(Primes!$Q$4*V8318,0)","v":68},{"$f":"'BP Financier'!$G$33*(('BP Financier'!$C$16+'BP Financier'!$D$16+'BP Financier'!$E$16+'BP Financier'!$F$16+'BP Financier'!$G$16)/('BP Financier'!$C$16+'BP Financier'!$C$19+'BP Financier'!$D$16+'BP Financier'!$D$19+'BP Financier'!$E$16+'BP Financier'!$E$19+'BP Financier'!$F$16+'BP Financier'!$F$19+'BP Financier'!$G$19+'BP Financier'!$G$16))*V8318","v":{"v":3421672.0459127007,"d":"3,421,672"}},{"v":1963815.672006318,"d":"1,963,816"},{"$f":"'BP Financier'!$G$44*(('BP Financier'!$C$16+'BP Financier'!$D$16+'BP Financier'!$E$16+'BP Financier'!$F$16+'BP Financier'!$G$16)/('BP Financier'!$C$16+'BP Financier'!$C$19+'BP Financier'!$D$16+'BP Financier'!$D$19+'BP Financier'!$E$16+'BP Financier'!$E$19+'BP Financier'!$C$22+'BP Financier'!$D$22+'BP Financier'!$E$22+'BP Financier'!$F$16+'BP Financier'!$F$19+'BP Financier'!$F$22+'BP Financier'!$G$16+'BP Financier'!$G$19+'BP Financier'!$G$22))*$V8318*X8318/(1-$W8318)","v":{"v":249965.28595861018,"d":"249,965"}},{"$f":"'BP Financier'!$G$44*(('BP Financier'!$C$16+'BP Financier'!$D$16+'BP Financier'!$E$16+'BP Financier'!$F$16+'BP Financier'!$G$16)/('BP Financier'!$C$16+'BP Financier'!$C$19+'BP Financier'!$D$16+'BP Financier'!$D$19+'BP Financier'!$E$16+'BP Financier'!$E$19+'BP Financier'!$C$22+'BP Financier'!$D$22+'BP Financier'!$E$22+'BP Financier'!$F$16+'BP Financier'!$F$19+'BP Financier'!$F$22+'BP Financier'!$G$16+'BP Financier'!$G$19+'BP Financier'!$G$22))*$V8318*Y8318/(1-$W8318)","v":{"v":167103.86519884988,"d":"167,104"}},{"$f":"'BP Financier'!$G$44*(('BP Financier'!$C$16+'BP Financier'!$D$16+'BP Financier'!$E$16+'BP Financier'!$F$16+'BP Financier'!$G$16)/('BP Financier'!$C$16+'BP Financier'!$C$19+'BP Financier'!$D$16+'BP Financier'!$D$19+'BP Financier'!$E$16+'BP Financier'!$E$19+'BP Financier'!$C$22+'BP Financier'!$D$22+'BP Financier'!$E$22+'BP Financier'!$F$16+'BP Financier'!$F$19+'BP Financier'!$F$22+'BP Financier'!$G$16+'BP Financier'!$G$19+'BP Financier'!$G$22))*$V8318*Z8318/(1-$W8318)","v":{"v":1307829.424324883,"d":"1,307,829"}},{"$f":"'BP Financier'!$G$44*(('BP Financier'!$C$16+'BP Financier'!$D$16+'BP Financier'!$E$16+'BP Financier'!$F$16+'BP Financier'!$G$16)/('BP Financier'!$C$16+'BP Financier'!$C$19+'BP Financier'!$D$16+'BP Financier'!$D$19+'BP Financier'!$E$16+'BP Financier'!$E$19+'BP Financier'!$C$22+'BP Financier'!$D$22+'BP Financier'!$E$22+'BP Financier'!$F$16+'BP Financier'!$F$19+'BP Financier'!$F$22+'BP Financier'!$G$16+'BP Financier'!$G$19+'BP Financier'!$G$22))*$V8318*AA8318/(1-$W8318)","v":{"v":161579.77048153256,"d":"161,580"}},{"$f":"'BP Financier'!$G$44*(('BP Financier'!$C$16+'BP Financier'!$D$16+'BP Financier'!$E$16+'BP Financier'!$F$16+'BP Financier'!$G$16)/('BP Financier'!$C$16+'BP Financier'!$C$19+'BP Financier'!$D$16+'BP Financier'!$D$19+'BP Financier'!$E$16+'BP Financier'!$E$19+'BP Financier'!$C$22+'BP Financier'!$D$22+'BP Financier'!$E$22+'BP Financier'!$F$16+'BP Financier'!$F$19+'BP Financier'!$F$22+'BP Financier'!$G$16+'BP Financier'!$G$19+'BP Financier'!$G$22))*$V8318*AB8318/(1-$W8318)","v":{"v":77337.32604244292,"d":"77,337"}},null,{"v":0.006,"d":"0.60%"},{"$f":"Actif!$E$28/100","v":{"v":0.28900000000000003,"d":"28.90%"}},{"$f":"Actif!$E$30/100","v":{"v":0.09050000000000001,"d":"9.05%"}},{"$f":"Actif!$E$31/100","v":{"v":0.0605,"d":"6.05%"}},{"$f":"Actif!$E$32/100","v":{"v":0.47350000000000003,"d":"47.35%"}},{"$f":"Actif!$E$33/100","v":{"v":0.0585,"d":"5.85%"}},{"$f":"Actif!$E$29/100","v":{"v":0.027999999999999997,"d":"2.80%"}}]
[null,"#206",59,2026,"F","A_VIE",{"v":0.44999999999999996,"d":"0.45"},{"v":0.38999999999999996,"d":"0.39"},0.6,0.6,85,0,{"$f":"ROUND(Primes!$Q$4*V8319,0)","v":68},{"$f":"'BP Financier'!$G$33*(('BP Financier'!$C$16+'BP Financier'!$D$16+'BP Financier'!$E$16+'BP Financier'!$F$16+'BP Financier'!$G$16)/('BP Financier'!$C$16+'BP Financier'!$C$19+'BP Financier'!$D$16+'BP Financier'!$D$19+'BP Financier'!$E$16+'BP Financier'!$E$19+'BP Financier'!$F$16+'BP Financier'!$F$19+'BP Financier'!$G$19+'BP Financier'!$G$16))*V8319","v":{"v":3421672.0459127007,"d":"3,421,672"}},{"v":1963815.672006318,"d":"1,963,816"},{"$f":"'BP Financier'!$G$44*(('BP Financier'!$C$16+'BP Financier'!$D$16+'BP Financier'!$E$16+'BP Financier'!$F$16+'BP Financier'!$G$16)/('BP Financier'!$C$16+'BP Financier'!$C$19+'BP Financier'!$D$16+'BP Financier'!$D$19+'BP Financier'!$E$16+'BP Financier'!$E$19+'BP Financier'!$C$22+'BP Financier'!$D$22+'BP Financier'!$E$22+'BP Financier'!$F$16+'BP Financier'!$F$19+'BP Financier'!$F$22+'BP Financier'!$G$16+'BP Financier'!$G$19+'BP Financier'!$G$22))*$V8319*X8319/(1-$W8319)","v":{"v":249965.28595861018,"d":"249,965"}},{"$f":"'BP Financier'!$G$44*(('BP Financier'!$C$16+'BP Financier'!$D$16+'BP Financier'!$E$16+'BP Financier'!$F$16+'BP Financier'!$G$16)/('BP Financier'!$C$16+'BP Financier'!$C$19+'BP Financier'!$D$16+'BP Financier'!$D$19+'BP Financier'!$E$16+'BP Financier'!$E$19+'BP Financier'!$C$22+'BP Financier'!$D$22+'BP Financier'!$E$22+'BP Financier'!$F$16+'BP Financier'!$F$19+'BP Financier'!$F$22+'BP Financier'!$G$16+'BP Financier'!$G$19+'BP Financier'!$G$22))*$V8319*Y8319/(1-$W8319)","v":{"v":167103.86519884988,"d":"167,104"}},{"$f":"'BP Financier'!$G$44*(('BP Financier'!$C$16+'BP Financier'!$D$16+'BP Financier'!$E$16+'BP Financier'!$F$16+'BP Financier'!$G$16)/('BP Financier'!$C$16+'BP Financier'!$C$19+'BP Financier'!$D$16+'BP Financier'!$D$19+'BP Financier'!$E$16+'BP Financier'!$E$19+'BP Financier'!$C$22+'BP Financier'!$D$22+'BP Financier'!$E$22+'BP Financier'!$F$16+'BP Financier'!$F$19+'BP Financier'!$F$22+'BP Financier'!$G$16+'BP Financier'!$G$19+'BP Financier'!$G$22))*$V8319*Z8319/(1-$W8319)","v":{"v":1307829.424324883,"d":"1,307,829"}},{"$f":"'BP Financier'!$G$44*(('BP Financier'!$C$16+'BP Financier'!$D$16+'BP Financier'!$E$16+'BP Financier'!$F$16+'BP Financier'!$G$16)/('BP Financier'!$C$16+'BP Financier'!$C$19+'BP Financier'!$D$16+'BP Financier'!$D$19+'BP Financier'!$E$16+'BP Financier'!$E$19+'BP Financier'!$C$22+'BP Financier'!$D$22+'BP Financier'!$E$22+'BP Financier'!$F$16+'BP Financier'!$F$19+'BP Financier'!$F$22+'BP Financier'!$G$16+'BP Financier'!$G$19+'BP Financier'!$G$22))*$V8319*AA8319/(1-$W8319)","v":{"v":161579.77048153256,"d":"161,580"}},{"$f":"'BP Financier'!$G$44*(('BP Financier'!$C$16+'BP Financier'!$D$16+'BP Financier'!$E$16+'BP Financier'!$F$16+'BP Financier'!$G$16)/('BP Financier'!$C$16+'BP Financier'!$C$19+'BP Financier'!$D$16+'BP Financier'!$D$19+'BP Financier'!$E$16+'BP Financier'!$E$19+'BP Financier'!$C$22+'BP Financier'!$D$22+'BP Financier'!$E$22+'BP Financier'!$F$16+'BP Financier'!$F$19+'BP Financier'!$F$22+'BP Financier'!$G$16+'BP Financier'!$G$19+'BP Financier'!$G$22))*$V8319*AB8319/(1-$W8319)","v":{"v":77337.32604244292,"d":"77,337"}},null,{"v":0.006,"d":"0.60%"},{"$f":"Actif!$E$28/100","v":{"v":0.28900000000000003,"d":"28.90%"}},{"$f":"Actif!$E$30/100","v":{"v":0.09050000000000001,"d":"9.05%"}},{"$f":"Actif!$E$31/100","v":{"v":0.0605,"d":"6.05%"}},{"$f":"Actif!$E$32/100","v":{"v":0.47350000000000003,"d":"47.35%"}},{"$f":"Actif!$E$33/100","v":{"v":0.0585,"d":"5.85%"}},{"$f":"Actif!$E$29/100","v":{"v":0.027999999999999997,"d":"2.80%"}}]
[null,"#207",59,2028,"F","A_VIE",{"v":0.44999999999999996,"d":"0.45"},{"v":0.38999999999999996,"d":"0.39"},0.6,0.6,85,0,{"$f":"ROUND(Primes!$Q$4*V8320,0)","v":68},{"$f":"'BP Financier'!$G$33*(('BP Financier'!$C$16+'BP Financier'!$D$16+'BP Financier'!$E$16+'BP Financier'!$F$16+'BP Financier'!$G$16)/('BP Financier'!$C$16+'BP Financier'!$C$19+'BP Financier'!$D$16+'BP Financier'!$D$19+'BP Financier'!$E$16+'BP Financier'!$E$19+'BP Financier'!$F$16+'BP Financier'!$F$19+'BP Financier'!$G$19+'BP Financier'!$G$16))*V8320","v":{"v":3421672.0459127007,"d":"3,421,672"}},{"v":1963815.672006318,"d":"1,963,816"},{"$f":"'BP Financier'!$G$44*(('BP Financier'!$C$16+'BP Financier'!$D$16+'BP Financier'!$E$16+'BP Financier'!$F$16+'BP Financier'!$G$16)/('BP Financier'!$C$16+'BP Financier'!$C$19+'BP Financier'!$D$16+'BP Financier'!$D$19+'BP Financier'!$E$16+'BP Financier'!$E$19+'BP Financier'!$C$22+'BP Financier'!$D$22+'BP Financier'!$E$22+'BP Financier'!$F$16+'BP Financier'!$F$19+'BP Financier'!$F$22+'BP Financier'!$G$16+'BP Financier'!$G$19+'BP Financier'!$G$22))*$V8320*X8320/(1-$W8320)","v":{"v":249965.28595861018,"d":"249,965"}},{"$f":"'BP Financier'!$G$44*(('BP Financier'!$C$16+'BP Financier'!$D$16+'BP Financier'!$E$16+'BP Financier'!$F$16+'BP Financier'!$G$16)/('BP Financier'!$C$16+'BP Financier'!$C$19+'BP Financier'!$D$16+'BP Financier'!$D$19+'BP Financier'!$E$16+'BP Financier'!$E$19+'BP Financier'!$C$22+'BP Financier'!$D$22+'BP Financier'!$E$22+'BP Financier'!$F$16+'BP Financier'!$F$19+'BP Financier'!$F$22+'BP Financier'!$G$16+'BP Financier'!$G$19+'BP Financier'!$G$22))*$V8320*Y8320/(1-$W8320)","v":{"v":167103.86519884988,"d":"167,104"}},{"$f":"'BP Financier'!$G$44*(('BP Financier'!$C$16+'BP Financier'!$D$16+'BP Financier'!$E$16+'BP Financier'!$F$16+'BP Financier'!$G$16)/('BP Financier'!$C$16+'BP Financier'!$C$19+'BP Financier'!$D$16+'BP Financier'!$D$19+'BP Financier'!$E$16+'BP Financier'!$E$19+'BP Financier'!$C$22+'BP Financier'!$D$22+'BP Financier'!$E$22+'BP Financier'!$F$16+'BP Financier'!$F$19+'BP Financier'!$F$22+'BP Financier'!$G$16+'BP Financier'!$G$19+'BP Financier'!$G$22))*$V8320*Z8320/(1-$W8320)","v":{"v":1307829.424324883,"d":"1,307,829"}},{"$f":"'BP Financier'!$G$44*(('BP Financier'!$C$16+'BP Financier'!$D$16+'BP Financier'!$E$16+'BP Financier'!$F$16+'BP Financier'!$G$16)/('BP Financier'!$C$16+'BP Financier'!$C$19+'BP Financier'!$D$16+'BP Financier'!$D$19+'BP Financier'!$E$16+'BP Financier'!$E$19+'BP Financier'!$C$22+'BP Financier'!$D$22+'BP Financier'!$E$22+'BP Financier'!$F$16+'BP Financier'!$F$19+'BP Financier'!$F$22+'BP Financier'!$G$16+'BP Financier'!$G$19+'BP Financier'!$G$22))*$V8320*AA8320/(1-$W8320)","v":{"v":161579.77048153256,"d":"161,580"}},{"$f":"'BP Financier'!$G$44*(('BP Financier'!$C$16+'BP Financier'!$D$16+'BP Financier'!$E$16+'BP Financier'!$F$16+'BP Financier'!$G$16)/('BP Financier'!$C$16+'BP Financier'!$C$19+'BP Financier'!$D$16+'BP Financier'!$D$19+'BP Financier'!$E$16+'BP Financier'!$E$19+'BP Financier'!$C$22+'BP Financier'!$D$22+'BP Financier'!$E$22+'BP Financier'!$F$16+'BP Financier'!$F$19+'BP Financier'!$F$22+'BP Financier'!$G$16+'BP Financier'!$G$19+'BP Financier'!$G$22))*$V8320*AB8320/(1-$W8320)","v":{"v":77337.32604244292,"d":"77,337"}},null,{"v":0.006,"d":"0.60%"},{"$f":"Actif!$E$28/100","v":{"v":0.28900000000000003,"d":"28.90%"}},{"$f":"Actif!$E$30/100","v":{"v":0.09050000000000001,"d":"9.05%"}},{"$f":"Actif!$E$31/100","v":{"v":0.0605,"d":"6.05%"}},{"$f":"Actif!$E$32/100","v":{"v":0.47350000000000003,"d":"47.35%"}},{"$f":"Actif!$E$33/100","v":{"v":0.0585,"d":"5.85%"}},{"$f":"Actif!$E$29/100","v":{"v":0.027999999999999997,"d":"2.80%"}}]
[null,"#208",59,2029,"F","A_VIE",{"v":0.44999999999999996,"d":"0.45"},{"v":0.38999999999999996,"d":"0.39"},0.6,0.6,85,0,{"$f":"ROUND(Primes!$Q$4*V8321,0)","v":68},{"$f":"'BP Financier'!$G$33*(('BP Financier'!$C$16+'BP Financier'!$D$16+'BP Financier'!$E$16+'BP Financier'!$F$16+'BP Financier'!$G$16)/('BP Financier'!$C$16+'BP Financier'!$C$19+'BP Financier'!$D$16+'BP Financier'!$D$19+'BP Financier'!$E$16+'BP Financier'!$E$19+'BP Financier'!$F$16+'BP Financier'!$F$19+'BP Financier'!$G$19+'BP Financier'!$G$16))*V8321","v":{"v":3421672.0459127007,"d":"3,421,672"}},{"v":1963815.672006318,"d":"1,963,816"},{"$f":"'BP Financier'!$G$44*(('BP Financier'!$C$16+'BP Financier'!$D$16+'BP Financier'!$E$16+'BP Financier'!$F$16+'BP Financier'!$G$16)/('BP Financier'!$C$16+'BP Financier'!$C$19+'BP Financier'!$D$16+'BP Financier'!$D$19+'BP Financier'!$E$16+'BP Financier'!$E$19+'BP Financier'!$C$22+'BP Financier'!$D$22+'BP Financier'!$E$22+'BP Financier'!$F$16+'BP Financier'!$F$19+'BP Financier'!$F$22+'BP Financier'!$G$16+'BP Financier'!$G$19+'BP Financier'!$G$22))*$V8321*X8321/(1-$W8321)","v":{"v":249965.28595861018,"d":"249,965"}},{"$f":"'BP Financier'!$G$44*(('BP Financier'!$C$16+'BP Financier'!$D$16+'BP Financier'!$E$16+'BP Financier'!$F$16+'BP Financier'!$G$16)/('BP Financier'!$C$16+'BP Financier'!$C$19+'BP Financier'!$D$16+'BP Financier'!$D$19+'BP Financier'!$E$16+'BP Financier'!$E$19+'BP Financier'!$C$22+'BP Financier'!$D$22+'BP Financier'!$E$22+'BP Financier'!$F$16+'BP Financier'!$F$19+'BP Financier'!$F$22+'BP Financier'!$G$16+'BP Financier'!$G$19+'BP Financier'!$G$22))*$V8321*Y8321/(1-$W8321)","v":{"v":167103.86519884988,"d":"167,104"}},{"$f":"'BP Financier'!$G$44*(('BP Financier'!$C$16+'BP Financier'!$D$16+'BP Financier'!$E$16+'BP Financier'!$F$16+'BP Financier'!$G$16)/('BP Financier'!$C$16+'BP Financier'!$C$19+'BP Financier'!$D$16+'BP Financier'!$D$19+'BP Financier'!$E$16+'BP Financier'!$E$19+'BP Financier'!$C$22+'BP Financier'!$D$22+'BP Financier'!$E$22+'BP Financier'!$F$16+'BP Financier'!$F$19+'BP Financier'!$F$22+'BP Financier'!$G$16+'BP Financier'!$G$19+'BP Financier'!$G$22))*$V8321*Z8321/(1-$W8321)","v":{"v":1307829.424324883,"d":"1,307,829"}},{"$f":"'BP Financier'!$G$44*(('BP Financier'!$C$16+'BP Financier'!$D$16+'BP Financier'!$E$16+'BP Financier'!$F$16+'BP Financier'!$G$16)/('BP Financier'!$C$16+'BP Financier'!$C$19+'BP Financier'!$D$16+'BP Financier'!$D$19+'BP Financier'!$E$16+'BP Financier'!$E$19+'BP Financier'!$C$22+'BP Financier'!$D$22+'BP Financier'!$E$22+'BP Financier'!$F$16+'BP Financier'!$F$19+'BP Financier'!$F$22+'BP Financier'!$G$16+'BP Financier'!$G$19+'BP Financier'!$G$22))*$V8321*AA8321/(1-$W8321)","v":{"v":161579.77048153256,"d":"161,580"}},{"$f":"'BP Financier'!$G$44*(('BP Financier'!$C$16+'BP Financier'!$D$16+'BP Financier'!$E$16+'BP Financier'!$F$16+'BP Financier'!$G$16)/('BP Financier'!$C$16+'BP Financier'!$C$19+'BP Financier'!$D$16+'BP Financier'!$D$19+'BP Financier'!$E$16+'BP Financier'!$E$19+'BP Financier'!$C$22+'BP Financier'!$D$22+'BP Financier'!$E$22+'BP Financier'!$F$16+'BP Financier'!$F$19+'BP Financier'!$F$22+'BP Financier'!$G$16+'BP Financier'!$G$19+'BP Financier'!$G$22))*$V8321*AB8321/(1-$W8321)","v":{"v":77337.32604244292,"d":"77,337"}},null,{"v":0.006,"d":"0.60%"},{"$f":"Actif!$E$28/100","v":{"v":0.28900000000000003,"d":"28.90%"}},{"$f":"Actif!$E$30/100","v":{"v":0.09050000000000001,"d":"9.05%"}},{"$f":"Actif!$E$31/100","v":{"v":0.0605,"d":"6.05%"}},{"$f":"Actif!$E$32/100","v":{"v":0.47350000000000003,"d":"47.35%"}},{"$f":"Actif!$E$33/100","v":{"v":0.0585,"d":"5.85%"}},{"$f":"Actif!$E$29/100","v":{"v":0.027999999999999997,"d":"2.80%"}}]
[null,"#209",59,2030,"F","A_VIE",{"v":0.44999999999999996,"d":"0.45"},{"v":0.38999999999999996,"d":"0.39"},0.6,0.6,85,0,{"$f":"ROUND(Primes!$Q$4*V8322,0)","v":68},{"$f":"'BP Financier'!$G$33*(('BP Financier'!$C$16+'BP Financier'!$D$16+'BP Financier'!$E$16+'BP Financier'!$F$16+'BP Financier'!$G$16)/('BP Financier'!$C$16+'BP Financier'!$C$19+'BP Financier'!$D$16+'BP Financier'!$D$19+'BP Financier'!$E$16+'BP Financier'!$E$19+'BP Financier'!$F$16+'BP Financier'!$F$19+'BP Financier'!$G$19+'BP Financier'!$G$16))*V8322","v":{"v":3421672.0459127007,"d":"3,421,672"}},{"v":1963815.672006318,"d":"1,963,816"},{"$f":"'BP Financier'!$G$44*(('BP Financier'!$C$16+'BP Financier'!$D$16+'BP Financier'!$E$16+'BP Financier'!$F$16+'BP Financier'!$G$16)/('BP Financier'!$C$16+'BP Financier'!$C$19+'BP Financier'!$D$16+'BP Financier'!$D$19+'BP Financier'!$E$16+'BP Financier'!$E$19+'BP Financier'!$C$22+'BP Financier'!$D$22+'BP Financier'!$E$22+'BP Financier'!$F$16+'BP Financier'!$F$19+'BP Financier'!$F$22+'BP Financier'!$G$16+'BP Financier'!$G$19+'BP Financier'!$G$22))*$V8322*X8322/(1-$W8322)","v":{"v":249965.28595861018,"d":"249,965"}},{"$f":"'BP Financier'!$G$44*(('BP Financier'!$C$16+'BP Financier'!$D$16+'BP Financier'!$E$16+'BP Financier'!$F$16+'BP Financier'!$G$16)/('BP Financier'!$C$16+'BP Financier'!$C$19+'BP Financier'!$D$16+'BP Financier'!$D$19+'BP Financier'!$E$16+'BP Financier'!$E$19+'BP Financier'!$C$22+'BP Financier'!$D$22+'BP Financier'!$E$22+'BP Financier'!$F$16+'BP Financier'!$F$19+'BP Financier'!$F$22+'BP Financier'!$G$16+'BP Financier'!$G$19+'BP Financier'!$G$22))*$V8322*Y8322/(1-$W8322)","v":{"v":167103.86519884988,"d":"167,104"}},{"$f":"'BP Financier'!$G$44*(('BP Financier'!$C$16+'BP Financier'!$D$16+'BP Financier'!$E$16+'BP Financier'!$F$16+'BP Financier'!$G$16)/('BP Financier'!$C$16+'BP Financier'!$C$19+'BP Financier'!$D$16+'BP Financier'!$D$19+'BP Financier'!$E$16+'BP Financier'!$E$19+'BP Financier'!$C$22+'BP Financier'!$D$22+'BP Financier'!$E$22+'BP Financier'!$F$16+'BP Financier'!$F$19+'BP Financier'!$F$22+'BP Financier'!$G$16+'BP Financier'!$G$19+'BP Financier'!$G$22))*$V8322*Z8322/(1-$W8322)","v":{"v":1307829.424324883,"d":"1,307,829"}},{"$f":"'BP Financier'!$G$44*(('BP Financier'!$C$16+'BP Financier'!$D$16+'BP Financier'!$E$16+'BP Financier'!$F$16+'BP Financier'!$G$16)/('BP Financier'!$C$16+'BP Financier'!$C$19+'BP Financier'!$D$16+'BP Financier'!$D$19+'BP Financier'!$E$16+'BP Financier'!$E$19+'BP Financier'!$C$22+'BP Financier'!$D$22+'BP Financier'!$E$22+'BP Financier'!$F$16+'BP Financier'!$F$19+'BP Financier'!$F$22+'BP Financier'!$G$16+'BP Financier'!$G$19+'BP Financier'!$G$22))*$V8322*AA8322/(1-$W8322)","v":{"v":161579.77048153256,"d":"161,580"}},{"$f":"'BP Financier'!$G$44*(('BP Financier'!$C$16+'BP Financier'!$D$16+'BP Financier'!$E$16+'BP Financier'!$F$16+'BP Financier'!$G$16)/('BP Financier'!$C$16+'BP Financier'!$C$19+'BP Financier'!$D$16+'BP Financier'!$D$19+'BP Financier'!$E$16+'BP Financier'!$E$19+'BP Financier'!$C$22+'BP Financier'!$D$22+'BP Financier'!$E$22+'BP Financier'!$F$16+'BP Financier'!$F$19+'BP Financier'!$F$22+'BP Financier'!$G$16+'BP Financier'!$G$19+'BP Financier'!$G$22))*$V8322*AB8322/(1-$W8322)","v":{"v":77337.32604244292,"d":"77,337"}},null,{"v":0.006,"d":"0.60%"},{"$f":"Actif!$E$28/100","v":{"v":0.28900000000000003,"d":"28.90%"}},{"$f":"Actif!$E$30/100","v":{"v":0.09050000000000001,"d":"9.05%"}},{"$f":"Actif!$E$31/100","v":{"v":0.0605,"d":"6.05%"}},{"$f":"Actif!$E$32/100","v":{"v":0.47350000000000003,"d":"47.35%"}},{"$f":"Actif!$E$33/100","v":{"v":0.0585,"d":"5.85%"}},{"$f":"Actif!$E$29/100","v":{"v":0.027999999999999997,"d":"2.80%"}}]
[null,"#210",59,2031,"F","A_VIE",{"v":0.44999999999999996,"d":"0.45"},{"v":0.38999999999999996,"d":"0.39"},0.6,0.6,85,0,{"$f":"ROUND(Primes!$Q$4*V8323,0)","v":68},{"$f":"'BP Financier'!$G$33*(('BP Financier'!$C$16+'BP Financier'!$D$16+'BP Financier'!$E$16+'BP Financier'!$F$16+'BP Financier'!$G$16)/('BP Financier'!$C$16+'BP Financier'!$C$19+'BP Financier'!$D$16+'BP Financier'!$D$19+'BP Financier'!$E$16+'BP Financier'!$E$19+'BP Financier'!$F$16+'BP Financier'!$F$19+'BP Financier'!$G$19+'BP Financier'!$G$16))*V8323","v":{"v":3421672.0459127007,"d":"3,421,672"}},{"v":1963815.672006318,"d":"1,963,816"},{"$f":"'BP Financier'!$G$44*(('BP Financier'!$C$16+'BP Financier'!$D$16+'BP Financier'!$E$16+'BP Financier'!$F$16+'BP Financier'!$G$16)/('BP Financier'!$C$16+'BP Financier'!$C$19+'BP Financier'!$D$16+'BP Financier'!$D$19+'BP Financier'!$E$16+'BP Financier'!$E$19+'BP Financier'!$C$22+'BP Financier'!$D$22+'BP Financier'!$E$22+'BP Financier'!$F$16+'BP Financier'!$F$19+'BP Financier'!$F$22+'BP Financier'!$G$16+'BP Financier'!$G$19+'BP Financier'!$G$22))*$V8323*X8323/(1-$W8323)","v":{"v":249965.28595861018,"d":"249,965"}},{"$f":"'BP Financier'!$G$44*(('BP Financier'!$C$16+'BP Financier'!$D$16+'BP Financier'!$E$16+'BP Financier'!$F$16+'BP Financier'!$G$16)/('BP Financier'!$C$16+'BP Financier'!$C$19+'BP Financier'!$D$16+'BP Financier'!$D$19+'BP Financier'!$E$16+'BP Financier'!$E$19+'BP Financier'!$C$22+'BP Financier'!$D$22+'BP Financier'!$E$22+'BP Financier'!$F$16+'BP Financier'!$F$19+'BP Financier'!$F$22+'BP Financier'!$G$16+'BP Financier'!$G$19+'BP Financier'!$G$22))*$V8323*Y8323/(1-$W8323)","v":{"v":167103.86519884988,"d":"167,104"}},{"$f":"'BP Financier'!$G$44*(('BP Financier'!$C$16+'BP Financier'!$D$16+'BP Financier'!$E$16+'BP Financier'!$F$16+'BP Financier'!$G$16)/('BP Financier'!$C$16+'BP Financier'!$C$19+'BP Financier'!$D$16+'BP Financier'!$D$19+'BP Financier'!$E$16+'BP Financier'!$E$19+'BP Financier'!$C$22+'BP Financier'!$D$22+'BP Financier'!$E$22+'BP Financier'!$F$16+'BP Financier'!$F$19+'BP Financier'!$F$22+'BP Financier'!$G$16+'BP Financier'!$G$19+'BP Financier'!$G$22))*$V8323*Z8323/(1-$W8323)","v":{"v":1307829.424324883,"d":"1,307,829"}},{"$f":"'BP Financier'!$G$44*(('BP Financier'!$C$16+'BP Financier'!$D$16+'BP Financier'!$E$16+'BP Financier'!$F$16+'BP Financier'!$G$16)/('BP Financier'!$C$16+'BP Financier'!$C$19+'BP Financier'!$D$16+'BP Financier'!$D$19+'BP Financier'!$E$16+'BP Financier'!$E$19+'BP Financier'!$C$22+'BP Financier'!$D$22+'BP Financier'!$E$22+'BP Financier'!$F$16+'BP Financier'!$F$19+'BP Financier'!$F$22+'BP Financier'!$G$16+'BP Financier'!$G$19+'BP Financier'!$G$22))*$V8323*AA8323/(1-$W8323)","v":{"v":161579.77048153256,"d":"161,580"}},{"$f":"'BP Financier'!$G$44*(('BP Financier'!$C$16+'BP Financier'!$D$16+'BP Financier'!$E$16+'BP Financier'!$F$16+'BP Financier'!$G$16)/('BP Financier'!$C$16+'BP Financier'!$C$19+'BP Financier'!$D$16+'BP Financier'!$D$19+'BP Financier'!$E$16+'BP Financier'!$E$19+'BP Financier'!$C$22+'BP Financier'!$D$22+'BP Financier'!$E$22+'BP Financier'!$F$16+'BP Financier'!$F$19+'BP Financier'!$F$22+'BP Financier'!$G$16+'BP Financier'!$G$19+'BP Financier'!$G$22))*$V8323*AB8323/(1-$W8323)","v":{"v":77337.32604244292,"d":"77,337"}},null,{"v":0.006,"d":"0.60%"},{"$f":"Actif!$E$28/100","v":{"v":0.28900000000000003,"d":"28.90%"}},{"$f":"Actif!$E$30/100","v":{"v":0.09050000000000001,"d":"9.05%"}},{"$f":"Actif!$E$31/100","v":{"v":0.0605,"d":"6.05%"}},{"$f":"Actif!$E$32/100","v":{"v":0.47350000000000003,"d":"47.35%"}},{"$f":"Actif!$E$33/100","v":{"v":0.0585,"d":"5.85%"}},{"$f":"Actif!$E$29/100","v":{"v":0.027999999999999997,"d":"2.80%"}}]
[null,"#211",60,2026,"H","A_VIE",{"v":0.44999999999999996,"d":"0.45"},{"v":0.38999999999999996,"d":"0.39"},0.6,0.6,85,0,{"$f":"ROUND(Primes!$Q$4*V8324,0)","v":114},{"$f":"'BP Financier'!$G$33*(('BP Financier'!$C$16+'BP Financier'!$D$16+'BP Financier'!$E$16+'BP Financier'!$F$16+'BP Financier'!$G$16)/('BP Financier'!$C$16+'BP Financier'!$C$19+'BP Financier'!$D$16+'BP Financier'!$D$19+'BP Financier'!$E$16+'BP Financier'!$E$19+'BP Financier'!$F$16+'BP Financier'!$F$19+'BP Financier'!$G$19+'BP Financier'!$G$16))*V8324","v":{"v":5702786.7431878345,"d":"5,702,787"}},{"v":3273026.120010531,"d":"3,273,026"},{"$f":"'BP Financier'!$G$44*(('BP Financier'!$C$16+'BP Financier'!$D$16+'BP Financier'!$E$16+'BP Financier'!$F$16+'BP Financier'!$G$16)/('BP Financier'!$C$16+'BP Financier'!$C$19+'BP Financier'!$D$16+'BP Financier'!$D$19+'BP Financier'!$E$16+'BP Financier'!$E$19+'BP Financier'!$C$22+'BP Financier'!$D$22+'BP Financier'!$E$22+'BP Financier'!$F$16+'BP Financier'!$F$19+'BP Financier'!$F$22+'BP Financier'!$G$16+'BP Financier'!$G$19+'BP Financier'!$G$22))*$V8324*X8324/(1-$W8324)","v":{"v":416608.809931017,"d":"416,609"}},{"$f":"'BP Financier'!$G$44*(('BP Financier'!$C$16+'BP Financier'!$D$16+'BP Financier'!$E$16+'BP Financier'!$F$16+'BP Financier'!$G$16)/('BP Financier'!$C$16+'BP Financier'!$C$19+'BP Financier'!$D$16+'BP Financier'!$D$19+'BP Financier'!$E$16+'BP Financier'!$E$19+'BP Financier'!$C$22+'BP Financier'!$D$22+'BP Financier'!$E$22+'BP Financier'!$F$16+'BP Financier'!$F$19+'BP Financier'!$F$22+'BP Financier'!$G$16+'BP Financier'!$G$19+'BP Financier'!$G$22))*$V8324*Y8324/(1-$W8324)","v":{"v":278506.44199808314,"d":"278,506"}},{"$f":"'BP Financier'!$G$44*(('BP Financier'!$C$16+'BP Financier'!$D$16+'BP Financier'!$E$16+'BP Financier'!$F$16+'BP Financier'!$G$16)/('BP Financier'!$C$16+'BP Financier'!$C$19+'BP Financier'!$D$16+'BP Financier'!$D$19+'BP Financier'!$E$16+'BP Financier'!$E$19+'BP Financier'!$C$22+'BP Financier'!$D$22+'BP Financier'!$E$22+'BP Financier'!$F$16+'BP Financier'!$F$19+'BP Financier'!$F$22+'BP Financier'!$G$16+'BP Financier'!$G$19+'BP Financier'!$G$22))*$V8324*Z8324/(1-$W8324)","v":{"v":2179715.7072081384,"d":"2,179,716"}},{"$f":"'BP Financier'!$G$44*(('BP Financier'!$C$16+'BP Financier'!$D$16+'BP Financier'!$E$16+'BP Financier'!$F$16+'BP Financier'!$G$16)/('BP Financier'!$C$16+'BP Financier'!$C$19+'BP Financier'!$D$16+'BP Financier'!$D$19+'BP Financier'!$E$16+'BP Financier'!$E$19+'BP Financier'!$C$22+'BP Financier'!$D$22+'BP Financier'!$E$22+'BP Financier'!$F$16+'BP Financier'!$F$19+'BP Financier'!$F$22+'BP Financier'!$G$16+'BP Financier'!$G$19+'BP Financier'!$G$22))*$V8324*AA8324/(1-$W8324)","v":{"v":269299.6174692209,"d":"269,300"}},{"$f":"'BP Financier'!$G$44*(('BP Financier'!$C$16+'BP Financier'!$D$16+'BP Financier'!$E$16+'BP Financier'!$F$16+'BP Financier'!$G$16)/('BP Financier'!$C$16+'BP Financier'!$C$19+'BP Financier'!$D$16+'BP Financier'!$D$19+'BP Financier'!$E$16+'BP Financier'!$E$19+'BP Financier'!$C$22+'BP Financier'!$D$22+'BP Financier'!$E$22+'BP Financier'!$F$16+'BP Financier'!$F$19+'BP Financier'!$F$22+'BP Financier'!$G$16+'BP Financier'!$G$19+'BP Financier'!$G$22))*$V8324*AB8324/(1-$W8324)","v":{"v":128895.54340407152,"d":"128,896"}},null,{"v":0.01,"d":"1.00%"},{"$f":"Actif!$E$28/100","v":{"v":0.28900000000000003,"d":"28.90%"}},{"$f":"Actif!$E$30/100","v":{"v":0.09050000000000001,"d":"9.05%"}},{"$f":"Actif!$E$31/100","v":{"v":0.0605,"d":"6.05%"}},{"$f":"Actif!$E$32/100","v":{"v":0.47350000000000003,"d":"47.35%"}},{"$f":"Actif!$E$33/100","v":{"v":0.0585,"d":"5.85%"}},{"$f":"Actif!$E$29/100","v":{"v":0.027999999999999997,"d":"2.80%"}}]
[null,"#212",60,2028,"H","A_VIE",{"v":0.44999999999999996,"d":"0.45"},{"v":0.38999999999999996,"d":"0.39"},0.6,0.6,85,0,{"$f":"ROUND(Primes!$Q$4*V8325,0)","v":114},{"$f":"'BP Financier'!$G$33*(('BP Financier'!$C$16+'BP Financier'!$D$16+'BP Financier'!$E$16+'BP Financier'!$F$16+'BP Financier'!$G$16)/('BP Financier'!$C$16+'BP Financier'!$C$19+'BP Financier'!$D$16+'BP Financier'!$D$19+'BP Financier'!$E$16+'BP Financier'!$E$19+'BP Financier'!$F$16+'BP Financier'!$F$19+'BP Financier'!$G$19+'BP Financier'!$G$16))*V8325","v":{"v":5702786.7431878345,"d":"5,702,787"}},{"v":3273026.120010531,"d":"3,273,026"},{"$f":"'BP Financier'!$G$44*(('BP Financier'!$C$16+'BP Financier'!$D$16+'BP Financier'!$E$16+'BP Financier'!$F$16+'BP Financier'!$G$16)/('BP Financier'!$C$16+'BP Financier'!$C$19+'BP Financier'!$D$16+'BP Financier'!$D$19+'BP Financier'!$E$16+'BP Financier'!$E$19+'BP Financier'!$C$22+'BP Financier'!$D$22+'BP Financier'!$E$22+'BP Financier'!$F$16+'BP Financier'!$F$19+'BP Financier'!$F$22+'BP Financier'!$G$16+'BP Financier'!$G$19+'BP Financier'!$G$22))*$V8325*X8325/(1-$W8325)","v":{"v":416608.809931017,"d":"416,609"}},{"$f":"'BP Financier'!$G$44*(('BP Financier'!$C$16+'BP Financier'!$D$16+'BP Financier'!$E$16+'BP Financier'!$F$16+'BP Financier'!$G$16)/('BP Financier'!$C$16+'BP Financier'!$C$19+'BP Financier'!$D$16+'BP Financier'!$D$19+'BP Financier'!$E$16+'BP Financier'!$E$19+'BP Financier'!$C$22+'BP Financier'!$D$22+'BP Financier'!$E$22+'BP Financier'!$F$16+'BP Financier'!$F$19+'BP Financier'!$F$22+'BP Financier'!$G$16+'BP Financier'!$G$19+'BP Financier'!$G$22))*$V8325*Y8325/(1-$W8325)","v":{"v":278506.44199808314,"d":"278,506"}},{"$f":"'BP Financier'!$G$44*(('BP Financier'!$C$16+'BP Financier'!$D$16+'BP Financier'!$E$16+'BP Financier'!$F$16+'BP Financier'!$G$16)/('BP Financier'!$C$16+'BP Financier'!$C$19+'BP Financier'!$D$16+'BP Financier'!$D$19+'BP Financier'!$E$16+'BP Financier'!$E$19+'BP Financier'!$C$22+'BP Financier'!$D$22+'BP Financier'!$E$22+'BP Financier'!$F$16+'BP Financier'!$F$19+'BP Financier'!$F$22+'BP Financier'!$G$16+'BP Financier'!$G$19+'BP Financier'!$G$22))*$V8325*Z8325/(1-$W8325)","v":{"v":2179715.7072081384,"d":"2,179,716"}},{"$f":"'BP Financier'!$G$44*(('BP Financier'!$C$16+'BP Financier'!$D$16+'BP Financier'!$E$16+'BP Financier'!$F$16+'BP Financier'!$G$16)/('BP Financier'!$C$16+'BP Financier'!$C$19+'BP Financier'!$D$16+'BP Financier'!$D$19+'BP Financier'!$E$16+'BP Financier'!$E$19+'BP Financier'!$C$22+'BP Financier'!$D$22+'BP Financier'!$E$22+'BP Financier'!$F$16+'BP Financier'!$F$19+'BP Financier'!$F$22+'BP Financier'!$G$16+'BP Financier'!$G$19+'BP Financier'!$G$22))*$V8325*AA8325/(1-$W8325)","v":{"v":269299.6174692209,"d":"269,300"}},{"$f":"'BP Financier'!$G$44*(('BP Financier'!$C$16+'BP Financier'!$D$16+'BP Financier'!$E$16+'BP Financier'!$F$16+'BP Financier'!$G$16)/('BP Financier'!$C$16+'BP Financier'!$C$19+'BP Financier'!$D$16+'BP Financier'!$D$19+'BP Financier'!$E$16+'BP Financier'!$E$19+'BP Financier'!$C$22+'BP Financier'!$D$22+'BP Financier'!$E$22+'BP Financier'!$F$16+'BP Financier'!$F$19+'BP Financier'!$F$22+'BP Financier'!$G$16+'BP Financier'!$G$19+'BP Financier'!$G$22))*$V8325*AB8325/(1-$W8325)","v":{"v":128895.54340407152,"d":"128,896"}},null,{"v":0.01,"d":"1.00%"},{"$f":"Actif!$E$28/100","v":{"v":0.28900000000000003,"d":"28.90%"}},{"$f":"Actif!$E$30/100","v":{"v":0.09050000000000001,"d":"9.05%"}},{"$f":"Actif!$E$31/100","v":{"v":0.0605,"d":"6.05%"}},{"$f":"Actif!$E$32/100","v":{"v":0.47350000000000003,"d":"47.35%"}},{"$f":"Actif!$E$33/100","v":{"v":0.0585,"d":"5.85%"}},{"$f":"Actif!$E$29/100","v":{"v":0.027999999999999997,"d":"2.80%"}}]
[null,"#213",60,2029,"H","A_VIE",{"$f":"frais_gestion_Euro*100","v":{"v":0.44999999999999996,"d":"0.45"}},{"$f":"frais_gestion_UC*100","v":{"v":0.38999999999999996,"d":"0.39"}},{"$f":"frais_distribution_FG*100","v":0.6},{"$f":"frais_distribution_UC*100","v":0.6},85,0,{"$f":"ROUND(Primes!$Q$4*V8326,0)","v":114},{"$f":"'BP Financier'!$G$33*(('BP Financier'!$C$16+'BP Financier'!$D$16+'BP Financier'!$E$16+'BP Financier'!$F$16+'BP Financier'!$G$16)/('BP Financier'!$C$16+'BP Financier'!$C$19+'BP Financier'!$D$16+'BP Financier'!$D$19+'BP Financier'!$E$16+'BP Financier'!$E$19+'BP Financier'!$F$16+'BP Financier'!$F$19+'BP Financier'!$G$19+'BP Financier'!$G$16))*V8326","v":{"v":5702786.7431878345,"d":"5,702,787"}},{"v":3273026.120010531,"d":"3,273,026"},{"$f":"'BP Financier'!$G$44*(('BP Financier'!$C$16+'BP Financier'!$D$16+'BP Financier'!$E$16+'BP Financier'!$F$16+'BP Financier'!$G$16)/('BP Financier'!$C$16+'BP Financier'!$C$19+'BP Financier'!$D$16+'BP Financier'!$D$19+'BP Financier'!$E$16+'BP Financier'!$E$19+'BP Financier'!$C$22+'BP Financier'!$D$22+'BP Financier'!$E$22+'BP Financier'!$F$16+'BP Financier'!$F$19+'BP Financier'!$F$22+'BP Financier'!$G$16+'BP Financier'!$G$19+'BP Financier'!$G$22))*$V8326*X8326/(1-$W8326)","v":{"v":416608.809931017,"d":"416,609"}},{"$f":"'BP Financier'!$G$44*(('BP Financier'!$C$16+'BP Financier'!$D$16+'BP Financier'!$E$16+'BP Financier'!$F$16+'BP Financier'!$G$16)/('BP Financier'!$C$16+'BP Financier'!$C$19+'BP Financier'!$D$16+'BP Financier'!$D$19+'BP Financier'!$E$16+'BP Financier'!$E$19+'BP Financier'!$C$22+'BP Financier'!$D$22+'BP Financier'!$E$22+'BP Financier'!$F$16+'BP Financier'!$F$19+'BP Financier'!$F$22+'BP Financier'!$G$16+'BP Financier'!$G$19+'BP Financier'!$G$22))*$V8326*Y8326/(1-$W8326)","v":{"v":278506.44199808314,"d":"278,506"}},{"$f":"'BP Financier'!$G$44*(('BP Financier'!$C$16+'BP Financier'!$D$16+'BP Financier'!$E$16+'BP Financier'!$F$16+'BP Financier'!$G$16)/('BP Financier'!$C$16+'BP Financier'!$C$19+'BP Financier'!$D$16+'BP Financier'!$D$19+'BP Financier'!$E$16+'BP Financier'!$E$19+'BP Financier'!$C$22+'BP Financier'!$D$22+'BP Financier'!$E$22+'BP Financier'!$F$16+'BP Financier'!$F$19+'BP Financier'!$F$22+'BP Financier'!$G$16+'BP Financier'!$G$19+'BP Financier'!$G$22))*$V8326*Z8326/(1-$W8326)","v":{"v":2179715.7072081384,"d":"2,179,716"}},{"$f":"'BP Financier'!$G$44*(('BP Financier'!$C$16+'BP Financier'!$D$16+'BP Financier'!$E$16+'BP Financier'!$F$16+'BP Financier'!$G$16)/('BP Financier'!$C$16+'BP Financier'!$C$19+'BP Financier'!$D$16+'BP Financier'!$D$19+'BP Financier'!$E$16+'BP Financier'!$E$19+'BP Financier'!$C$22+'BP Financier'!$D$22+'BP Financier'!$E$22+'BP Financier'!$F$16+'BP Financier'!$F$19+'BP Financier'!$F$22+'BP Financier'!$G$16+'BP Financier'!$G$19+'BP Financier'!$G$22))*$V8326*AA8326/(1-$W8326)","v":{"v":269299.6174692209,"d":"269,300"}},{"$f":"'BP Financier'!$G$44*(('BP Financier'!$C$16+'BP Financier'!$D$16+'BP Financier'!$E$16+'BP Financier'!$F$16+'BP Financier'!$G$16)/('BP Financier'!$C$16+'BP Financier'!$C$19+'BP Financier'!$D$16+'BP Financier'!$D$19+'BP Financier'!$E$16+'BP Financier'!$E$19+'BP Financier'!$C$22+'BP Financier'!$D$22+'BP Financier'!$E$22+'BP Financier'!$F$16+'BP Financier'!$F$19+'BP Financier'!$F$22+'BP Financier'!$G$16+'BP Financier'!$G$19+'BP Financier'!$G$22))*$V8326*AB8326/(1-$W8326)","v":{"v":128895.54340407152,"d":"128,896"}},null,{"v":0.01,"d":"1.00%"},{"$f":"Actif!$E$28/100","v":{"v":0.28900000000000003,"d":"28.90%"}},{"$f":"Actif!$E$30/100","v":{"v":0.09050000000000001,"d":"9.05%"}},{"$f":"Actif!$E$31/100","v":{"v":0.0605,"d":"6.05%"}},{"$f":"Actif!$E$32/100","v":{"v":0.47350000000000003,"d":"47.35%"}},{"$f":"Actif!$E$33/100","v":{"v":0.0585,"d":"5.85%"}},{"$f":"Actif!$E$29/100","v":{"v":0.027999999999999997,"d":"2.80%"}}]
[null,"#214",60,2030,"H","A_VIE",{"v":0.44999999999999996,"d":"0.45"},{"v":0.38999999999999996,"d":"0.39"},0.6,0.6,85,0,{"$f":"ROUND(Primes!$Q$4*V8327,0)","v":114},{"$f":"'BP Financier'!$G$33*(('BP Financier'!$C$16+'BP Financier'!$D$16+'BP Financier'!$E$16+'BP Financier'!$F$16+'BP Financier'!$G$16)/('BP Financier'!$C$16+'BP Financier'!$C$19+'BP Financier'!$D$16+'BP Financier'!$D$19+'BP Financier'!$E$16+'BP Financier'!$E$19+'BP Financier'!$F$16+'BP Financier'!$F$19+'BP Financier'!$G$19+'BP Financier'!$G$16))*V8327","v":{"v":5702786.7431878345,"d":"5,702,787"}},{"v":3273026.120010531,"d":"3,273,026"},{"$f":"'BP Financier'!$G$44*(('BP Financier'!$C$16+'BP Financier'!$D$16+'BP Financier'!$E$16+'BP Financier'!$F$16+'BP Financier'!$G$16)/('BP Financier'!$C$16+'BP Financier'!$C$19+'BP Financier'!$D$16+'BP Financier'!$D$19+'BP Financier'!$E$16+'BP Financier'!$E$19+'BP Financier'!$C$22+'BP Financier'!$D$22+'BP Financier'!$E$22+'BP Financier'!$F$16+'BP Financier'!$F$19+'BP Financier'!$F$22+'BP Financier'!$G$16+'BP Financier'!$G$19+'BP Financier'!$G$22))*$V8327*X8327/(1-$W8327)","v":{"v":416608.809931017,"d":"416,609"}},{"$f":"'BP Financier'!$G$44*(('BP Financier'!$C$16+'BP Financier'!$D$16+'BP Financier'!$E$16+'BP Financier'!$F$16+'BP Financier'!$G$16)/('BP Financier'!$C$16+'BP Financier'!$C$19+'BP Financier'!$D$16+'BP Financier'!$D$19+'BP Financier'!$E$16+'BP Financier'!$E$19+'BP Financier'!$C$22+'BP Financier'!$D$22+'BP Financier'!$E$22+'BP Financier'!$F$16+'BP Financier'!$F$19+'BP Financier'!$F$22+'BP Financier'!$G$16+'BP Financier'!$G$19+'BP Financier'!$G$22))*$V8327*Y8327/(1-$W8327)","v":{"v":278506.44199808314,"d":"278,506"}},{"$f":"'BP Financier'!$G$44*(('BP Financier'!$C$16+'BP Financier'!$D$16+'BP Financier'!$E$16+'BP Financier'!$F$16+'BP Financier'!$G$16)/('BP Financier'!$C$16+'BP Financier'!$C$19+'BP Financier'!$D$16+'BP Financier'!$D$19+'BP Financier'!$E$16+'BP Financier'!$E$19+'BP Financier'!$C$22+'BP Financier'!$D$22+'BP Financier'!$E$22+'BP Financier'!$F$16+'BP Financier'!$F$19+'BP Financier'!$F$22+'BP Financier'!$G$16+'BP Financier'!$G$19+'BP Financier'!$G$22))*$V8327*Z8327/(1-$W8327)","v":{"v":2179715.7072081384,"d":"2,179,716"}},{"$f":"'BP Financier'!$G$44*(('BP Financier'!$C$16+'BP Financier'!$D$16+'BP Financier'!$E$16+'BP Financier'!$F$16+'BP Financier'!$G$16)/('BP Financier'!$C$16+'BP Financier'!$C$19+'BP Financier'!$D$16+'BP Financier'!$D$19+'BP Financier'!$E$16+'BP Financier'!$E$19+'BP Financier'!$C$22+'BP Financier'!$D$22+'BP Financier'!$E$22+'BP Financier'!$F$16+'BP Financier'!$F$19+'BP Financier'!$F$22+'BP Financier'!$G$16+'BP Financier'!$G$19+'BP Financier'!$G$22))*$V8327*AA8327/(1-$W8327)","v":{"v":269299.6174692209,"d":"269,300"}},{"$f":"'BP Financier'!$G$44*(('BP Financier'!$C$16+'BP Financier'!$D$16+'BP Financier'!$E$16+'BP Financier'!$F$16+'BP Financier'!$G$16)/('BP Financier'!$C$16+'BP Financier'!$C$19+'BP Financier'!$D$16+'BP Financier'!$D$19+'BP Financier'!$E$16+'BP Financier'!$E$19+'BP Financier'!$C$22+'BP Financier'!$D$22+'BP Financier'!$E$22+'BP Financier'!$F$16+'BP Financier'!$F$19+'BP Financier'!$F$22+'BP Financier'!$G$16+'BP Financier'!$G$19+'BP Financier'!$G$22))*$V8327*AB8327/(1-$W8327)","v":{"v":128895.54340407152,"d":"128,896"}},null,{"v":0.01,"d":"1.00%"},{"$f":"Actif!$E$28/100","v":{"v":0.28900000000000003,"d":"28.90%"}},{"$f":"Actif!$E$30/100","v":{"v":0.09050000000000001,"d":"9.05%"}},{"$f":"Actif!$E$31/100","v":{"v":0.0605,"d":"6.05%"}},{"$f":"Actif!$E$32/100","v":{"v":0.47350000000000003,"d":"47.35%"}},{"$f":"Actif!$E$33/100","v":{"v":0.0585,"d":"5.85%"}},{"$f":"Actif!$E$29/100","v":{"v":0.027999999999999997,"d":"2.80%"}}]
[null,"#215",60,2031,"H","A_VIE",{"v":0.44999999999999996,"d":"0.45"},{"v":0.38999999999999996,"d":"0.39"},0.6,0.6,85,0,{"$f":"ROUND(Primes!$Q$4*V8328,0)","v":114},{"$f":"'BP Financier'!$G$33*(('BP Financier'!$C$16+'BP Financier'!$D$16+'BP Financier'!$E$16+'BP Financier'!$F$16+'BP Financier'!$G$16)/('BP Financier'!$C$16+'BP Financier'!$C$19+'BP Financier'!$D$16+'BP Financier'!$D$19+'BP Financier'!$E$16+'BP Financier'!$E$19+'BP Financier'!$F$16+'BP Financier'!$F$19+'BP Financier'!$G$19+'BP Financier'!$G$16))*V8328","v":{"v":5702786.7431878345,"d":"5,702,787"}},{"v":3273026.120010531,"d":"3,273,026"},{"$f":"'BP Financier'!$G$44*(('BP Financier'!$C$16+'BP Financier'!$D$16+'BP Financier'!$E$16+'BP Financier'!$F$16+'BP Financier'!$G$16)/('BP Financier'!$C$16+'BP Financier'!$C$19+'BP Financier'!$D$16+'BP Financier'!$D$19+'BP Financier'!$E$16+'BP Financier'!$E$19+'BP Financier'!$C$22+'BP Financier'!$D$22+'BP Financier'!$E$22+'BP Financier'!$F$16+'BP Financier'!$F$19+'BP Financier'!$F$22+'BP Financier'!$G$16+'BP Financier'!$G$19+'BP Financier'!$G$22))*$V8328*X8328/(1-$W8328)","v":{"v":416608.809931017,"d":"416,609"}},{"$f":"'BP Financier'!$G$44*(('BP Financier'!$C$16+'BP Financier'!$D$16+'BP Financier'!$E$16+'BP Financier'!$F$16+'BP Financier'!$G$16)/('BP Financier'!$C$16+'BP Financier'!$C$19+'BP Financier'!$D$16+'BP Financier'!$D$19+'BP Financier'!$E$16+'BP Financier'!$E$19+'BP Financier'!$C$22+'BP Financier'!$D$22+'BP Financier'!$E$22+'BP Financier'!$F$16+'BP Financier'!$F$19+'BP Financier'!$F$22+'BP Financier'!$G$16+'BP Financier'!$G$19+'BP Financier'!$G$22))*$V8328*Y8328/(1-$W8328)","v":{"v":278506.44199808314,"d":"278,506"}},{"$f":"'BP Financier'!$G$44*(('BP Financier'!$C$16+'BP Financier'!$D$16+'BP Financier'!$E$16+'BP Financier'!$F$16+'BP Financier'!$G$16)/('BP Financier'!$C$16+'BP Financier'!$C$19+'BP Financier'!$D$16+'BP Financier'!$D$19+'BP Financier'!$E$16+'BP Financier'!$E$19+'BP Financier'!$C$22+'BP Financier'!$D$22+'BP Financier'!$E$22+'BP Financier'!$F$16+'BP Financier'!$F$19+'BP Financier'!$F$22+'BP Financier'!$G$16+'BP Financier'!$G$19+'BP Financier'!$G$22))*$V8328*Z8328/(1-$W8328)","v":{"v":2179715.7072081384,"d":"2,179,716"}},{"$f":"'BP Financier'!$G$44*(('BP Financier'!$C$16+'BP Financier'!$D$16+'BP Financier'!$E$16+'BP Financier'!$F$16+'BP Financier'!$G$16)/('BP Financier'!$C$16+'BP Financier'!$C$19+'BP Financier'!$D$16+'BP Financier'!$D$19+'BP Financier'!$E$16+'BP Financier'!$E$19+'BP Financier'!$C$22+'BP Financier'!$D$22+'BP Financier'!$E$22+'BP Financier'!$F$16+'BP Financier'!$F$19+'BP Financier'!$F$22+'BP Financier'!$G$16+'BP Financier'!$G$19+'BP Financier'!$G$22))*$V8328*AA8328/(1-$W8328)","v":{"v":269299.6174692209,"d":"269,300"}},{"$f":"'BP Financier'!$G$44*(('BP Financier'!$C$16+'BP Financier'!$D$16+'BP Financier'!$E$16+'BP Financier'!$F$16+'BP Financier'!$G$16)/('BP Financier'!$C$16+'BP Financier'!$C$19+'BP Financier'!$D$16+'BP Financier'!$D$19+'BP Financier'!$E$16+'BP Financier'!$E$19+'BP Financier'!$C$22+'BP Financier'!$D$22+'BP Financier'!$E$22+'BP Financier'!$F$16+'BP Financier'!$F$19+'BP Financier'!$F$22+'BP Financier'!$G$16+'BP Financier'!$G$19+'BP Financier'!$G$22))*$V8328*AB8328/(1-$W8328)","v":{"v":128895.54340407152,"d":"128,896"}},null,{"v":0.01,"d":"1.00%"},{"$f":"Actif!$E$28/100","v":{"v":0.28900000000000003,"d":"28.90%"}},{"$f":"Actif!$E$30/100","v":{"v":0.09050000000000001,"d":"9.05%"}},{"$f":"Actif!$E$31/100","v":{"v":0.0605,"d":"6.05%"}},{"$f":"Actif!$E$32/100","v":{"v":0.47350000000000003,"d":"47.35%"}},{"$f":"Actif!$E$33/100","v":{"v":0.0585,"d":"5.85%"}},{"$f":"Actif!$E$29/100","v":{"v":0.027999999999999997,"d":"2.80%"}}]
[null,"#216",61,2026,"H","A_VIE",{"v":0.44999999999999996,"d":"0.45"},{"v":0.38999999999999996,"d":"0.39"},0.6,0.6,85,0,{"$f":"ROUND(Primes!$Q$4*V8329,0)","v":68},{"$f":"'BP Financier'!$G$33*(('BP Financier'!$C$16+'BP Financier'!$D$16+'BP Financier'!$E$16+'BP Financier'!$F$16+'BP Financier'!$G$16)/('BP Financier'!$C$16+'BP Financier'!$C$19+'BP Financier'!$D$16+'BP Financier'!$D$19+'BP Financier'!$E$16+'BP Financier'!$E$19+'BP Financier'!$F$16+'BP Financier'!$F$19+'BP Financier'!$G$19+'BP Financier'!$G$16))*V8329","v":{"v":3421672.0459127007,"d":"3,421,672"}},{"v":1963815.672006318,"d":"1,963,816"},{"$f":"'BP Financier'!$G$44*(('BP Financier'!$C$16+'BP Financier'!$D$16+'BP Financier'!$E$16+'BP Financier'!$F$16+'BP Financier'!$G$16)/('BP Financier'!$C$16+'BP Financier'!$C$19+'BP Financier'!$D$16+'BP Financier'!$D$19+'BP Financier'!$E$16+'BP Financier'!$E$19+'BP Financier'!$C$22+'BP Financier'!$D$22+'BP Financier'!$E$22+'BP Financier'!$F$16+'BP Financier'!$F$19+'BP Financier'!$F$22+'BP Financier'!$G$16+'BP Financier'!$G$19+'BP Financier'!$G$22))*$V8329*X8329/(1-$W8329)","v":{"v":249965.28595861018,"d":"249,965"}},{"$f":"'BP Financier'!$G$44*(('BP Financier'!$C$16+'BP Financier'!$D$16+'BP Financier'!$E$16+'BP Financier'!$F$16+'BP Financier'!$G$16)/('BP Financier'!$C$16+'BP Financier'!$C$19+'BP Financier'!$D$16+'BP Financier'!$D$19+'BP Financier'!$E$16+'BP Financier'!$E$19+'BP Financier'!$C$22+'BP Financier'!$D$22+'BP Financier'!$E$22+'BP Financier'!$F$16+'BP Financier'!$F$19+'BP Financier'!$F$22+'BP Financier'!$G$16+'BP Financier'!$G$19+'BP Financier'!$G$22))*$V8329*Y8329/(1-$W8329)","v":{"v":167103.86519884988,"d":"167,104"}},{"$f":"'BP Financier'!$G$44*(('BP Financier'!$C$16+'BP Financier'!$D$16+'BP Financier'!$E$16+'BP Financier'!$F$16+'BP Financier'!$G$16)/('BP Financier'!$C$16+'BP Financier'!$C$19+'BP Financier'!$D$16+'BP Financier'!$D$19+'BP Financier'!$E$16+'BP Financier'!$E$19+'BP Financier'!$C$22+'BP Financier'!$D$22+'BP Financier'!$E$22+'BP Financier'!$F$16+'BP Financier'!$F$19+'BP Financier'!$F$22+'BP Financier'!$G$16+'BP Financier'!$G$19+'BP Financier'!$G$22))*$V8329*Z8329/(1-$W8329)","v":{"v":1307829.424324883,"d":"1,307,829"}},{"$f":"'BP Financier'!$G$44*(('BP Financier'!$C$16+'BP Financier'!$D$16+'BP Financier'!$E$16+'BP Financier'!$F$16+'BP Financier'!$G$16)/('BP Financier'!$C$16+'BP Financier'!$C$19+'BP Financier'!$D$16+'BP Financier'!$D$19+'BP Financier'!$E$16+'BP Financier'!$E$19+'BP Financier'!$C$22+'BP Financier'!$D$22+'BP Financier'!$E$22+'BP Financier'!$F$16+'BP Financier'!$F$19+'BP Financier'!$F$22+'BP Financier'!$G$16+'BP Financier'!$G$19+'BP Financier'!$G$22))*$V8329*AA8329/(1-$W8329)","v":{"v":161579.77048153256,"d":"161,580"}},{"$f":"'BP Financier'!$G$44*(('BP Financier'!$C$16+'BP Financier'!$D$16+'BP Financier'!$E$16+'BP Financier'!$F$16+'BP Financier'!$G$16)/('BP Financier'!$C$16+'BP Financier'!$C$19+'BP Financier'!$D$16+'BP Financier'!$D$19+'BP Financier'!$E$16+'BP Financier'!$E$19+'BP Financier'!$C$22+'BP Financier'!$D$22+'BP Financier'!$E$22+'BP Financier'!$F$16+'BP Financier'!$F$19+'BP Financier'!$F$22+'BP Financier'!$G$16+'BP Financier'!$G$19+'BP Financier'!$G$22))*$V8329*AB8329/(1-$W8329)","v":{"v":77337.32604244292,"d":"77,337"}},null,{"v":0.006,"d":"0.60%"},{"$f":"Actif!$E$28/100","v":{"v":0.28900000000000003,"d":"28.90%"}},{"$f":"Actif!$E$30/100","v":{"v":0.09050000000000001,"d":"9.05%"}},{"$f":"Actif!$E$31/100","v":{"v":0.0605,"d":"6.05%"}},{"$f":"Actif!$E$32/100","v":{"v":0.47350000000000003,"d":"47.35%"}},{"$f":"Actif!$E$33/100","v":{"v":0.0585,"d":"5.85%"}},{"$f":"Actif!$E$29/100","v":{"v":0.027999999999999997,"d":"2.80%"}}]
[null,"#217",61,2028,"H","A_VIE",{"v":0.44999999999999996,"d":"0.45"},{"v":0.38999999999999996,"d":"0.39"},0.6,0.6,85,0,{"$f":"ROUND(Primes!$Q$4*V8330,0)","v":68},{"$f":"'BP Financier'!$G$33*(('BP Financier'!$C$16+'BP Financier'!$D$16+'BP Financier'!$E$16+'BP Financier'!$F$16+'BP Financier'!$G$16)/('BP Financier'!$C$16+'BP Financier'!$C$19+'BP Financier'!$D$16+'BP Financier'!$D$19+'BP Financier'!$E$16+'BP Financier'!$E$19+'BP Financier'!$F$16+'BP Financier'!$F$19+'BP Financier'!$G$19+'BP Financier'!$G$16))*V8330","v":{"v":3421672.0459127007,"d":"3,421,672"}},{"v":1963815.672006318,"d":"1,963,816"},{"$f":"'BP Financier'!$G$44*(('BP Financier'!$C$16+'BP Financier'!$D$16+'BP Financier'!$E$16+'BP Financier'!$F$16+'BP Financier'!$G$16)/('BP Financier'!$C$16+'BP Financier'!$C$19+'BP Financier'!$D$16+'BP Financier'!$D$19+'BP Financier'!$E$16+'BP Financier'!$E$19+'BP Financier'!$C$22+'BP Financier'!$D$22+'BP Financier'!$E$22+'BP Financier'!$F$16+'BP Financier'!$F$19+'BP Financier'!$F$22+'BP Financier'!$G$16+'BP Financier'!$G$19+'BP Financier'!$G$22))*$V8330*X8330/(1-$W8330)","v":{"v":249965.28595861018,"d":"249,965"}},{"$f":"'BP Financier'!$G$44*(('BP Financier'!$C$16+'BP Financier'!$D$16+'BP Financier'!$E$16+'BP Financier'!$F$16+'BP Financier'!$G$16)/('BP Financier'!$C$16+'BP Financier'!$C$19+'BP Financier'!$D$16+'BP Financier'!$D$19+'BP Financier'!$E$16+'BP Financier'!$E$19+'BP Financier'!$C$22+'BP Financier'!$D$22+'BP Financier'!$E$22+'BP Financier'!$F$16+'BP Financier'!$F$19+'BP Financier'!$F$22+'BP Financier'!$G$16+'BP Financier'!$G$19+'BP Financier'!$G$22))*$V8330*Y8330/(1-$W8330)","v":{"v":167103.86519884988,"d":"167,104"}},{"$f":"'BP Financier'!$G$44*(('BP Financier'!$C$16+'BP Financier'!$D$16+'BP Financier'!$E$16+'BP Financier'!$F$16+'BP Financier'!$G$16)/('BP Financier'!$C$16+'BP Financier'!$C$19+'BP Financier'!$D$16+'BP Financier'!$D$19+'BP Financier'!$E$16+'BP Financier'!$E$19+'BP Financier'!$C$22+'BP Financier'!$D$22+'BP Financier'!$E$22+'BP Financier'!$F$16+'BP Financier'!$F$19+'BP Financier'!$F$22+'BP Financier'!$G$16+'BP Financier'!$G$19+'BP Financier'!$G$22))*$V8330*Z8330/(1-$W8330)","v":{"v":1307829.424324883,"d":"1,307,829"}},{"$f":"'BP Financier'!$G$44*(('BP Financier'!$C$16+'BP Financier'!$D$16+'BP Financier'!$E$16+'BP Financier'!$F$16+'BP Financier'!$G$16)/('BP Financier'!$C$16+'BP Financier'!$C$19+'BP Financier'!$D$16+'BP Financier'!$D$19+'BP Financier'!$E$16+'BP Financier'!$E$19+'BP Financier'!$C$22+'BP Financier'!$D$22+'BP Financier'!$E$22+'BP Financier'!$F$16+'BP Financier'!$F$19+'BP Financier'!$F$22+'BP Financier'!$G$16+'BP Financier'!$G$19+'BP Financier'!$G$22))*$V8330*AA8330/(1-$W8330)","v":{"v":161579.77048153256,"d":"161,580"}},{"$f":"'BP Financier'!$G$44*(('BP Financier'!$C$16+'BP Financier'!$D$16+'BP Financier'!$E$16+'BP Financier'!$F$16+'BP Financier'!$G$16)/('BP Financier'!$C$16+'BP Financier'!$C$19+'BP Financier'!$D$16+'BP Financier'!$D$19+'BP Financier'!$E$16+'BP Financier'!$E$19+'BP Financier'!$C$22+'BP Financier'!$D$22+'BP Financier'!$E$22+'BP Financier'!$F$16+'BP Financier'!$F$19+'BP Financier'!$F$22+'BP Financier'!$G$16+'BP Financier'!$G$19+'BP Financier'!$G$22))*$V8330*AB8330/(1-$W8330)","v":{"v":77337.32604244292,"d":"77,337"}},null,{"v":0.006,"d":"0.60%"},{"$f":"Actif!$E$28/100","v":{"v":0.28900000000000003,"d":"28.90%"}},{"$f":"Actif!$E$30/100","v":{"v":0.09050000000000001,"d":"9.05%"}},{"$f":"Actif!$E$31/100","v":{"v":0.0605,"d":"6.05%"}},{"$f":"Actif!$E$32/100","v":{"v":0.47350000000000003,"d":"47.35%"}},{"$f":"Actif!$E$33/100","v":{"v":0.0585,"d":"5.85%"}},{"$f":"Actif!$E$29/100","v":{"v":0.027999999999999997,"d":"2.80%"}}]
[null,"#218",61,2029,"H","A_VIE",{"v":0.44999999999999996,"d":"0.45"},{"v":0.38999999999999996,"d":"0.39"},0.6,0.6,85,0,{"$f":"ROUND(Primes!$Q$4*V8331,0)","v":68},{"$f":"'BP Financier'!$G$33*(('BP Financier'!$C$16+'BP Financier'!$D$16+'BP Financier'!$E$16+'BP Financier'!$F$16+'BP Financier'!$G$16)/('BP Financier'!$C$16+'BP Financier'!$C$19+'BP Financier'!$D$16+'BP Financier'!$D$19+'BP Financier'!$E$16+'BP Financier'!$E$19+'BP Financier'!$F$16+'BP Financier'!$F$19+'BP Financier'!$G$19+'BP Financier'!$G$16))*V8331","v":{"v":3421672.0459127007,"d":"3,421,672"}},{"v":1963815.672006318,"d":"1,963,816"},{"$f":"'BP Financier'!$G$44*(('BP Financier'!$C$16+'BP Financier'!$D$16+'BP Financier'!$E$16+'BP Financier'!$F$16+'BP Financier'!$G$16)/('BP Financier'!$C$16+'BP Financier'!$C$19+'BP Financier'!$D$16+'BP Financier'!$D$19+'BP Financier'!$E$16+'BP Financier'!$E$19+'BP Financier'!$C$22+'BP Financier'!$D$22+'BP Financier'!$E$22+'BP Financier'!$F$16+'BP Financier'!$F$19+'BP Financier'!$F$22+'BP Financier'!$G$16+'BP Financier'!$G$19+'BP Financier'!$G$22))*$V8331*X8331/(1-$W8331)","v":{"v":249965.28595861018,"d":"249,965"}},{"$f":"'BP Financier'!$G$44*(('BP Financier'!$C$16+'BP Financier'!$D$16+'BP Financier'!$E$16+'BP Financier'!$F$16+'BP Financier'!$G$16)/('BP Financier'!$C$16+'BP Financier'!$C$19+'BP Financier'!$D$16+'BP Financier'!$D$19+'BP Financier'!$E$16+'BP Financier'!$E$19+'BP Financier'!$C$22+'BP Financier'!$D$22+'BP Financier'!$E$22+'BP Financier'!$F$16+'BP Financier'!$F$19+'BP Financier'!$F$22+'BP Financier'!$G$16+'BP Financier'!$G$19+'BP Financier'!$G$22))*$V8331*Y8331/(1-$W8331)","v":{"v":167103.86519884988,"d":"167,104"}},{"$f":"'BP Financier'!$G$44*(('BP Financier'!$C$16+'BP Financier'!$D$16+'BP Financier'!$E$16+'BP Financier'!$F$16+'BP Financier'!$G$16)/('BP Financier'!$C$16+'BP Financier'!$C$19+'BP Financier'!$D$16+'BP Financier'!$D$19+'BP Financier'!$E$16+'BP Financier'!$E$19+'BP Financier'!$C$22+'BP Financier'!$D$22+'BP Financier'!$E$22+'BP Financier'!$F$16+'BP Financier'!$F$19+'BP Financier'!$F$22+'BP Financier'!$G$16+'BP Financier'!$G$19+'BP Financier'!$G$22))*$V8331*Z8331/(1-$W8331)","v":{"v":1307829.424324883,"d":"1,307,829"}},{"$f":"'BP Financier'!$G$44*(('BP Financier'!$C$16+'BP Financier'!$D$16+'BP Financier'!$E$16+'BP Financier'!$F$16+'BP Financier'!$G$16)/('BP Financier'!$C$16+'BP Financier'!$C$19+'BP Financier'!$D$16+'BP Financier'!$D$19+'BP Financier'!$E$16+'BP Financier'!$E$19+'BP Financier'!$C$22+'BP Financier'!$D$22+'BP Financier'!$E$22+'BP Financier'!$F$16+'BP Financier'!$F$19+'BP Financier'!$F$22+'BP Financier'!$G$16+'BP Financier'!$G$19+'BP Financier'!$G$22))*$V8331*AA8331/(1-$W8331)","v":{"v":161579.77048153256,"d":"161,580"}},{"$f":"'BP Financier'!$G$44*(('BP Financier'!$C$16+'BP Financier'!$D$16+'BP Financier'!$E$16+'BP Financier'!$F$16+'BP Financier'!$G$16)/('BP Financier'!$C$16+'BP Financier'!$C$19+'BP Financier'!$D$16+'BP Financier'!$D$19+'BP Financier'!$E$16+'BP Financier'!$E$19+'BP Financier'!$C$22+'BP Financier'!$D$22+'BP Financier'!$E$22+'BP Financier'!$F$16+'BP Financier'!$F$19+'BP Financier'!$F$22+'BP Financier'!$G$16+'BP Financier'!$G$19+'BP Financier'!$G$22))*$V8331*AB8331/(1-$W8331)","v":{"v":77337.32604244292,"d":"77,337"}},null,{"v":0.006,"d":"0.60%"},{"$f":"Actif!$E$28/100","v":{"v":0.28900000000000003,"d":"28.90%"}},{"$f":"Actif!$E$30/100","v":{"v":0.09050000000000001,"d":"9.05%"}},{"$f":"Actif!$E$31/100","v":{"v":0.0605,"d":"6.05%"}},{"$f":"Actif!$E$32/100","v":{"v":0.47350000000000003,"d":"47.35%"}},{"$f":"Actif!$E$33/100","v":{"v":0.0585,"d":"5.85%"}},{"$f":"Actif!$E$29/100","v":{"v":0.027999999999999997,"d":"2.80%"}}]
[null,"#219",61,2030,"H","A_VIE",{"v":0.44999999999999996,"d":"0.45"},{"v":0.38999999999999996,"d":"0.39"},0.6,0.6,85,0,{"$f":"ROUND(Primes!$Q$4*V8332,0)","v":68},{"$f":"'BP Financier'!$G$33*(('BP Financier'!$C$16+'BP Financier'!$D$16+'BP Financier'!$E$16+'BP Financier'!$F$16+'BP Financier'!$G$16)/('BP Financier'!$C$16+'BP Financier'!$C$19+'BP Financier'!$D$16+'BP Financier'!$D$19+'BP Financier'!$E$16+'BP Financier'!$E$19+'BP Financier'!$F$16+'BP Financier'!$F$19+'BP Financier'!$G$19+'BP Financier'!$G$16))*V8332","v":{"v":3421672.0459127007,"d":"3,421,672"}},{"v":1963815.672006318,"d":"1,963,816"},{"$f":"'BP Financier'!$G$44*(('BP Financier'!$C$16+'BP Financier'!$D$16+'BP Financier'!$E$16+'BP Financier'!$F$16+'BP Financier'!$G$16)/('BP Financier'!$C$16+'BP Financier'!$C$19+'BP Financier'!$D$16+'BP Financier'!$D$19+'BP Financier'!$E$16+'BP Financier'!$E$19+'BP Financier'!$C$22+'BP Financier'!$D$22+'BP Financier'!$E$22+'BP Financier'!$F$16+'BP Financier'!$F$19+'BP Financier'!$F$22+'BP Financier'!$G$16+'BP Financier'!$G$19+'BP Financier'!$G$22))*$V8332*X8332/(1-$W8332)","v":{"v":249965.28595861018,"d":"249,965"}},{"$f":"'BP Financier'!$G$44*(('BP Financier'!$C$16+'BP Financier'!$D$16+'BP Financier'!$E$16+'BP Financier'!$F$16+'BP Financier'!$G$16)/('BP Financier'!$C$16+'BP Financier'!$C$19+'BP Financier'!$D$16+'BP Financier'!$D$19+'BP Financier'!$E$16+'BP Financier'!$E$19+'BP Financier'!$C$22+'BP Financier'!$D$22+'BP Financier'!$E$22+'BP Financier'!$F$16+'BP Financier'!$F$19+'BP Financier'!$F$22+'BP Financier'!$G$16+'BP Financier'!$G$19+'BP Financier'!$G$22))*$V8332*Y8332/(1-$W8332)","v":{"v":167103.86519884988,"d":"167,104"}},{"$f":"'BP Financier'!$G$44*(('BP Financier'!$C$16+'BP Financier'!$D$16+'BP Financier'!$E$16+'BP Financier'!$F$16+'BP Financier'!$G$16)/('BP Financier'!$C$16+'BP Financier'!$C$19+'BP Financier'!$D$16+'BP Financier'!$D$19+'BP Financier'!$E$16+'BP Financier'!$E$19+'BP Financier'!$C$22+'BP Financier'!$D$22+'BP Financier'!$E$22+'BP Financier'!$F$16+'BP Financier'!$F$19+'BP Financier'!$F$22+'BP Financier'!$G$16+'BP Financier'!$G$19+'BP Financier'!$G$22))*$V8332*Z8332/(1-$W8332)","v":{"v":1307829.424324883,"d":"1,307,829"}},{"$f":"'BP Financier'!$G$44*(('BP Financier'!$C$16+'BP Financier'!$D$16+'BP Financier'!$E$16+'BP Financier'!$F$16+'BP Financier'!$G$16)/('BP Financier'!$C$16+'BP Financier'!$C$19+'BP Financier'!$D$16+'BP Financier'!$D$19+'BP Financier'!$E$16+'BP Financier'!$E$19+'BP Financier'!$C$22+'BP Financier'!$D$22+'BP Financier'!$E$22+'BP Financier'!$F$16+'BP Financier'!$F$19+'BP Financier'!$F$22+'BP Financier'!$G$16+'BP Financier'!$G$19+'BP Financier'!$G$22))*$V8332*AA8332/(1-$W8332)","v":{"v":161579.77048153256,"d":"161,580"}},{"$f":"'BP Financier'!$G$44*(('BP Financier'!$C$16+'BP Financier'!$D$16+'BP Financier'!$E$16+'BP Financier'!$F$16+'BP Financier'!$G$16)/('BP Financier'!$C$16+'BP Financier'!$C$19+'BP Financier'!$D$16+'BP Financier'!$D$19+'BP Financier'!$E$16+'BP Financier'!$E$19+'BP Financier'!$C$22+'BP Financier'!$D$22+'BP Financier'!$E$22+'BP Financier'!$F$16+'BP Financier'!$F$19+'BP Financier'!$F$22+'BP Financier'!$G$16+'BP Financier'!$G$19+'BP Financier'!$G$22))*$V8332*AB8332/(1-$W8332)","v":{"v":77337.32604244292,"d":"77,337"}},null,{"v":0.006,"d":"0.60%"},{"$f":"Actif!$E$28/100","v":{"v":0.28900000000000003,"d":"28.90%"}},{"$f":"Actif!$E$30/100","v":{"v":0.09050000000000001,"d":"9.05%"}},{"$f":"Actif!$E$31/100","v":{"v":0.0605,"d":"6.05%"}},{"$f":"Actif!$E$32/100","v":{"v":0.47350000000000003,"d":"47.35%"}},{"$f":"Actif!$E$33/100","v":{"v":0.0585,"d":"5.85%"}},{"$f":"Actif!$E$29/100","v":{"v":0.027999999999999997,"d":"2.80%"}}]
[null,"#220",61,2031,"H","A_VIE",{"v":0.44999999999999996,"d":"0.45"},{"v":0.38999999999999996,"d":"0.39"},0.6,0.6,85,0,{"$f":"ROUND(Primes!$Q$4*V8333,0)","v":68},{"$f":"'BP Financier'!$G$33*(('BP Financier'!$C$16+'BP Financier'!$D$16+'BP Financier'!$E$16+'BP Financier'!$F$16+'BP Financier'!$G$16)/('BP Financier'!$C$16+'BP Financier'!$C$19+'BP Financier'!$D$16+'BP Financier'!$D$19+'BP Financier'!$E$16+'BP Financier'!$E$19+'BP Financier'!$F$16+'BP Financier'!$F$19+'BP Financier'!$G$19+'BP Financier'!$G$16))*V8333","v":{"v":3421672.0459127007,"d":"3,421,672"}},{"v":1963815.672006318,"d":"1,963,816"},{"$f":"'BP Financier'!$G$44*(('BP Financier'!$C$16+'BP Financier'!$D$16+'BP Financier'!$E$16+'BP Financier'!$F$16+'BP Financier'!$G$16)/('BP Financier'!$C$16+'BP Financier'!$C$19+'BP Financier'!$D$16+'BP Financier'!$D$19+'BP Financier'!$E$16+'BP Financier'!$E$19+'BP Financier'!$C$22+'BP Financier'!$D$22+'BP Financier'!$E$22+'BP Financier'!$F$16+'BP Financier'!$F$19+'BP Financier'!$F$22+'BP Financier'!$G$16+'BP Financier'!$G$19+'BP Financier'!$G$22))*$V8333*X8333/(1-$W8333)","v":{"v":249965.28595861018,"d":"249,965"}},{"$f":"'BP Financier'!$G$44*(('BP Financier'!$C$16+'BP Financier'!$D$16+'BP Financier'!$E$16+'BP Financier'!$F$16+'BP Financier'!$G$16)/('BP Financier'!$C$16+'BP Financier'!$C$19+'BP Financier'!$D$16+'BP Financier'!$D$19+'BP Financier'!$E$16+'BP Financier'!$E$19+'BP Financier'!$C$22+'BP Financier'!$D$22+'BP Financier'!$E$22+'BP Financier'!$F$16+'BP Financier'!$F$19+'BP Financier'!$F$22+'BP Financier'!$G$16+'BP Financier'!$G$19+'BP Financier'!$G$22))*$V8333*Y8333/(1-$W8333)","v":{"v":167103.86519884988,"d":"167,104"}},{"$f":"'BP Financier'!$G$44*(('BP Financier'!$C$16+'BP Financier'!$D$16+'BP Financier'!$E$16+'BP Financier'!$F$16+'BP Financier'!$G$16)/('BP Financier'!$C$16+'BP Financier'!$C$19+'BP Financier'!$D$16+'BP Financier'!$D$19+'BP Financier'!$E$16+'BP Financier'!$E$19+'BP Financier'!$C$22+'BP Financier'!$D$22+'BP Financier'!$E$22+'BP Financier'!$F$16+'BP Financier'!$F$19+'BP Financier'!$F$22+'BP Financier'!$G$16+'BP Financier'!$G$19+'BP Financier'!$G$22))*$V8333*Z8333/(1-$W8333)","v":{"v":1307829.424324883,"d":"1,307,829"}},{"$f":"'BP Financier'!$G$44*(('BP Financier'!$C$16+'BP Financier'!$D$16+'BP Financier'!$E$16+'BP Financier'!$F$16+'BP Financier'!$G$16)/('BP Financier'!$C$16+'BP Financier'!$C$19+'BP Financier'!$D$16+'BP Financier'!$D$19+'BP Financier'!$E$16+'BP Financier'!$E$19+'BP Financier'!$C$22+'BP Financier'!$D$22+'BP Financier'!$E$22+'BP Financier'!$F$16+'BP Financier'!$F$19+'BP Financier'!$F$22+'BP Financier'!$G$16+'BP Financier'!$G$19+'BP Financier'!$G$22))*$V8333*AA8333/(1-$W8333)","v":{"v":161579.77048153256,"d":"161,580"}},{"$f":"'BP Financier'!$G$44*(('BP Financier'!$C$16+'BP Financier'!$D$16+'BP Financier'!$E$16+'BP Financier'!$F$16+'BP Financier'!$G$16)/('BP Financier'!$C$16+'BP Financier'!$C$19+'BP Financier'!$D$16+'BP Financier'!$D$19+'BP Financier'!$E$16+'BP Financier'!$E$19+'BP Financier'!$C$22+'BP Financier'!$D$22+'BP Financier'!$E$22+'BP Financier'!$F$16+'BP Financier'!$F$19+'BP Financier'!$F$22+'BP Financier'!$G$16+'BP Financier'!$G$19+'BP Financier'!$G$22))*$V8333*AB8333/(1-$W8333)","v":{"v":77337.32604244292,"d":"77,337"}},null,{"v":0.006,"d":"0.60%"},{"$f":"Actif!$E$28/100","v":{"v":0.28900000000000003,"d":"28.90%"}},{"$f":"Actif!$E$30/100","v":{"v":0.09050000000000001,"d":"9.05%"}},{"$f":"Actif!$E$31/100","v":{"v":0.0605,"d":"6.05%"}},{"$f":"Actif!$E$32/100","v":{"v":0.47350000000000003,"d":"47.35%"}},{"$f":"Actif!$E$33/100","v":{"v":0.0585,"d":"5.85%"}},{"$f":"Actif!$E$29/100","v":{"v":0.027999999999999997,"d":"2.80%"}}]
[null,"#221",62,2026,"F","A_VIE",{"v":0.44999999999999996,"d":"0.45"},{"v":0.38999999999999996,"d":"0.39"},0.6,0.6,85,0,{"$f":"ROUND(Primes!$Q$4*V8334,0)","v":68},{"$f":"'BP Financier'!$G$33*(('BP Financier'!$C$16+'BP Financier'!$D$16+'BP Financier'!$E$16+'BP Financier'!$F$16+'BP Financier'!$G$16)/('BP Financier'!$C$16+'BP Financier'!$C$19+'BP Financier'!$D$16+'BP Financier'!$D$19+'BP Financier'!$E$16+'BP Financier'!$E$19+'BP Financier'!$F$16+'BP Financier'!$F$19+'BP Financier'!$G$19+'BP Financier'!$G$16))*V8334","v":{"v":3421672.0459127007,"d":"3,421,672"}},{"v":1963815.672006318,"d":"1,963,816"},{"$f":"'BP Financier'!$G$44*(('BP Financier'!$C$16+'BP Financier'!$D$16+'BP Financier'!$E$16+'BP Financier'!$F$16+'BP Financier'!$G$16)/('BP Financier'!$C$16+'BP Financier'!$C$19+'BP Financier'!$D$16+'BP Financier'!$D$19+'BP Financier'!$E$16+'BP Financier'!$E$19+'BP Financier'!$C$22+'BP Financier'!$D$22+'BP Financier'!$E$22+'BP Financier'!$F$16+'BP Financier'!$F$19+'BP Financier'!$F$22+'BP Financier'!$G$16+'BP Financier'!$G$19+'BP Financier'!$G$22))*$V8334*X8334/(1-$W8334)","v":{"v":249965.28595861018,"d":"249,965"}},{"$f":"'BP Financier'!$G$44*(('BP Financier'!$C$16+'BP Financier'!$D$16+'BP Financier'!$E$16+'BP Financier'!$F$16+'BP Financier'!$G$16)/('BP Financier'!$C$16+'BP Financier'!$C$19+'BP Financier'!$D$16+'BP Financier'!$D$19+'BP Financier'!$E$16+'BP Financier'!$E$19+'BP Financier'!$C$22+'BP Financier'!$D$22+'BP Financier'!$E$22+'BP Financier'!$F$16+'BP Financier'!$F$19+'BP Financier'!$F$22+'BP Financier'!$G$16+'BP Financier'!$G$19+'BP Financier'!$G$22))*$V8334*Y8334/(1-$W8334)","v":{"v":167103.86519884988,"d":"167,104"}},{"$f":"'BP Financier'!$G$44*(('BP Financier'!$C$16+'BP Financier'!$D$16+'BP Financier'!$E$16+'BP Financier'!$F$16+'BP Financier'!$G$16)/('BP Financier'!$C$16+'BP Financier'!$C$19+'BP Financier'!$D$16+'BP Financier'!$D$19+'BP Financier'!$E$16+'BP Financier'!$E$19+'BP Financier'!$C$22+'BP Financier'!$D$22+'BP Financier'!$E$22+'BP Financier'!$F$16+'BP Financier'!$F$19+'BP Financier'!$F$22+'BP Financier'!$G$16+'BP Financier'!$G$19+'BP Financier'!$G$22))*$V8334*Z8334/(1-$W8334)","v":{"v":1307829.424324883,"d":"1,307,829"}},{"$f":"'BP Financier'!$G$44*(('BP Financier'!$C$16+'BP Financier'!$D$16+'BP Financier'!$E$16+'BP Financier'!$F$16+'BP Financier'!$G$16)/('BP Financier'!$C$16+'BP Financier'!$C$19+'BP Financier'!$D$16+'BP Financier'!$D$19+'BP Financier'!$E$16+'BP Financier'!$E$19+'BP Financier'!$C$22+'BP Financier'!$D$22+'BP Financier'!$E$22+'BP Financier'!$F$16+'BP Financier'!$F$19+'BP Financier'!$F$22+'BP Financier'!$G$16+'BP Financier'!$G$19+'BP Financier'!$G$22))*$V8334*AA8334/(1-$W8334)","v":{"v":161579.77048153256,"d":"161,580"}},{"$f":"'BP Financier'!$G$44*(('BP Financier'!$C$16+'BP Financier'!$D$16+'BP Financier'!$E$16+'BP Financier'!$F$16+'BP Financier'!$G$16)/('BP Financier'!$C$16+'BP Financier'!$C$19+'BP Financier'!$D$16+'BP Financier'!$D$19+'BP Financier'!$E$16+'BP Financier'!$E$19+'BP Financier'!$C$22+'BP Financier'!$D$22+'BP Financier'!$E$22+'BP Financier'!$F$16+'BP Financier'!$F$19+'BP Financier'!$F$22+'BP Financier'!$G$16+'BP Financier'!$G$19+'BP Financier'!$G$22))*$V8334*AB8334/(1-$W8334)","v":{"v":77337.32604244292,"d":"77,337"}},null,{"v":0.006,"d":"0.60%"},{"$f":"Actif!$E$28/100","v":{"v":0.28900000000000003,"d":"28.90%"}},{"$f":"Actif!$E$30/100","v":{"v":0.09050000000000001,"d":"9.05%"}},{"$f":"Actif!$E$31/100","v":{"v":0.0605,"d":"6.05%"}},{"$f":"Actif!$E$32/100","v":{"v":0.47350000000000003,"d":"47.35%"}},{"$f":"Actif!$E$33/100","v":{"v":0.0585,"d":"5.85%"}},{"$f":"Actif!$E$29/100","v":{"v":0.027999999999999997,"d":"2.80%"}}]
[null,"#222",62,2028,"F","A_VIE",{"v":0.44999999999999996,"d":"0.45"},{"v":0.38999999999999996,"d":"0.39"},0.6,0.6,85,0,{"$f":"ROUND(Primes!$Q$4*V8335,0)","v":68},{"$f":"'BP Financier'!$G$33*(('BP Financier'!$C$16+'BP Financier'!$D$16+'BP Financier'!$E$16+'BP Financier'!$F$16+'BP Financier'!$G$16)/('BP Financier'!$C$16+'BP Financier'!$C$19+'BP Financier'!$D$16+'BP Financier'!$D$19+'BP Financier'!$E$16+'BP Financier'!$E$19+'BP Financier'!$F$16+'BP Financier'!$F$19+'BP Financier'!$G$19+'BP Financier'!$G$16))*V8335","v":{"v":3421672.0459127007,"d":"3,421,672"}},{"v":1963815.672006318,"d":"1,963,816"},{"$f":"'BP Financier'!$G$44*(('BP Financier'!$C$16+'BP Financier'!$D$16+'BP Financier'!$E$16+'BP Financier'!$F$16+'BP Financier'!$G$16)/('BP Financier'!$C$16+'BP Financier'!$C$19+'BP Financier'!$D$16+'BP Financier'!$D$19+'BP Financier'!$E$16+'BP Financier'!$E$19+'BP Financier'!$C$22+'BP Financier'!$D$22+'BP Financier'!$E$22+'BP Financier'!$F$16+'BP Financier'!$F$19+'BP Financier'!$F$22+'BP Financier'!$G$16+'BP Financier'!$G$19+'BP Financier'!$G$22))*$V8335*X8335/(1-$W8335)","v":{"v":249965.28595861018,"d":"249,965"}},{"$f":"'BP Financier'!$G$44*(('BP Financier'!$C$16+'BP Financier'!$D$16+'BP Financier'!$E$16+'BP Financier'!$F$16+'BP Financier'!$G$16)/('BP Financier'!$C$16+'BP Financier'!$C$19+'BP Financier'!$D$16+'BP Financier'!$D$19+'BP Financier'!$E$16+'BP Financier'!$E$19+'BP Financier'!$C$22+'BP Financier'!$D$22+'BP Financier'!$E$22+'BP Financier'!$F$16+'BP Financier'!$F$19+'BP Financier'!$F$22+'BP Financier'!$G$16+'BP Financier'!$G$19+'BP Financier'!$G$22))*$V8335*Y8335/(1-$W8335)","v":{"v":167103.86519884988,"d":"167,104"}},{"$f":"'BP Financier'!$G$44*(('BP Financier'!$C$16+'BP Financier'!$D$16+'BP Financier'!$E$16+'BP Financier'!$F$16+'BP Financier'!$G$16)/('BP Financier'!$C$16+'BP Financier'!$C$19+'BP Financier'!$D$16+'BP Financier'!$D$19+'BP Financier'!$E$16+'BP Financier'!$E$19+'BP Financier'!$C$22+'BP Financier'!$D$22+'BP Financier'!$E$22+'BP Financier'!$F$16+'BP Financier'!$F$19+'BP Financier'!$F$22+'BP Financier'!$G$16+'BP Financier'!$G$19+'BP Financier'!$G$22))*$V8335*Z8335/(1-$W8335)","v":{"v":1307829.424324883,"d":"1,307,829"}},{"$f":"'BP Financier'!$G$44*(('BP Financier'!$C$16+'BP Financier'!$D$16+'BP Financier'!$E$16+'BP Financier'!$F$16+'BP Financier'!$G$16)/('BP Financier'!$C$16+'BP Financier'!$C$19+'BP Financier'!$D$16+'BP Financier'!$D$19+'BP Financier'!$E$16+'BP Financier'!$E$19+'BP Financier'!$C$22+'BP Financier'!$D$22+'BP Financier'!$E$22+'BP Financier'!$F$16+'BP Financier'!$F$19+'BP Financier'!$F$22+'BP Financier'!$G$16+'BP Financier'!$G$19+'BP Financier'!$G$22))*$V8335*AA8335/(1-$W8335)","v":{"v":161579.77048153256,"d":"161,580"}},{"$f":"'BP Financier'!$G$44*(('BP Financier'!$C$16+'BP Financier'!$D$16+'BP Financier'!$E$16+'BP Financier'!$F$16+'BP Financier'!$G$16)/('BP Financier'!$C$16+'BP Financier'!$C$19+'BP Financier'!$D$16+'BP Financier'!$D$19+'BP Financier'!$E$16+'BP Financier'!$E$19+'BP Financier'!$C$22+'BP Financier'!$D$22+'BP Financier'!$E$22+'BP Financier'!$F$16+'BP Financier'!$F$19+'BP Financier'!$F$22+'BP Financier'!$G$16+'BP Financier'!$G$19+'BP Financier'!$G$22))*$V8335*AB8335/(1-$W8335)","v":{"v":77337.32604244292,"d":"77,337"}},null,{"v":0.006,"d":"0.60%"},{"$f":"Actif!$E$28/100","v":{"v":0.28900000000000003,"d":"28.90%"}},{"$f":"Actif!$E$30/100","v":{"v":0.09050000000000001,"d":"9.05%"}},{"$f":"Actif!$E$31/100","v":{"v":0.0605,"d":"6.05%"}},{"$f":"Actif!$E$32/100","v":{"v":0.47350000000000003,"d":"47.35%"}},{"$f":"Actif!$E$33/100","v":{"v":0.0585,"d":"5.85%"}},{"$f":"Actif!$E$29/100","v":{"v":0.027999999999999997,"d":"2.80%"}}]
[null,"#223",62,2029,"F","A_VIE",{"v":0.44999999999999996,"d":"0.45"},{"v":0.38999999999999996,"d":"0.39"},0.6,0.6,85,0,{"$f":"ROUND(Primes!$Q$4*V8336,0)","v":68},{"$f":"'BP Financier'!$G$33*(('BP Financier'!$C$16+'BP Financier'!$D$16+'BP Financier'!$E$16+'BP Financier'!$F$16+'BP Financier'!$G$16)/('BP Financier'!$C$16+'BP Financier'!$C$19+'BP Financier'!$D$16+'BP Financier'!$D$19+'BP Financier'!$E$16+'BP Financier'!$E$19+'BP Financier'!$F$16+'BP Financier'!$F$19+'BP Financier'!$G$19+'BP Financier'!$G$16))*V8336","v":{"v":3421672.0459127007,"d":"3,421,672"}},{"v":1963815.672006318,"d":"1,963,816"},{"$f":"'BP Financier'!$G$44*(('BP Financier'!$C$16+'BP Financier'!$D$16+'BP Financier'!$E$16+'BP Financier'!$F$16+'BP Financier'!$G$16)/('BP Financier'!$C$16+'BP Financier'!$C$19+'BP Financier'!$D$16+'BP Financier'!$D$19+'BP Financier'!$E$16+'BP Financier'!$E$19+'BP Financier'!$C$22+'BP Financier'!$D$22+'BP Financier'!$E$22+'BP Financier'!$F$16+'BP Financier'!$F$19+'BP Financier'!$F$22+'BP Financier'!$G$16+'BP Financier'!$G$19+'BP Financier'!$G$22))*$V8336*X8336/(1-$W8336)","v":{"v":249965.28595861018,"d":"249,965"}},{"$f":"'BP Financier'!$G$44*(('BP Financier'!$C$16+'BP Financier'!$D$16+'BP Financier'!$E$16+'BP Financier'!$F$16+'BP Financier'!$G$16)/('BP Financier'!$C$16+'BP Financier'!$C$19+'BP Financier'!$D$16+'BP Financier'!$D$19+'BP Financier'!$E$16+'BP Financier'!$E$19+'BP Financier'!$C$22+'BP Financier'!$D$22+'BP Financier'!$E$22+'BP Financier'!$F$16+'BP Financier'!$F$19+'BP Financier'!$F$22+'BP Financier'!$G$16+'BP Financier'!$G$19+'BP Financier'!$G$22))*$V8336*Y8336/(1-$W8336)","v":{"v":167103.86519884988,"d":"167,104"}},{"$f":"'BP Financier'!$G$44*(('BP Financier'!$C$16+'BP Financier'!$D$16+'BP Financier'!$E$16+'BP Financier'!$F$16+'BP Financier'!$G$16)/('BP Financier'!$C$16+'BP Financier'!$C$19+'BP Financier'!$D$16+'BP Financier'!$D$19+'BP Financier'!$E$16+'BP Financier'!$E$19+'BP Financier'!$C$22+'BP Financier'!$D$22+'BP Financier'!$E$22+'BP Financier'!$F$16+'BP Financier'!$F$19+'BP Financier'!$F$22+'BP Financier'!$G$16+'BP Financier'!$G$19+'BP Financier'!$G$22))*$V8336*Z8336/(1-$W8336)","v":{"v":1307829.424324883,"d":"1,307,829"}},{"$f":"'BP Financier'!$G$44*(('BP Financier'!$C$16+'BP Financier'!$D$16+'BP Financier'!$E$16+'BP Financier'!$F$16+'BP Financier'!$G$16)/('BP Financier'!$C$16+'BP Financier'!$C$19+'BP Financier'!$D$16+'BP Financier'!$D$19+'BP Financier'!$E$16+'BP Financier'!$E$19+'BP Financier'!$C$22+'BP Financier'!$D$22+'BP Financier'!$E$22+'BP Financier'!$F$16+'BP Financier'!$F$19+'BP Financier'!$F$22+'BP Financier'!$G$16+'BP Financier'!$G$19+'BP Financier'!$G$22))*$V8336*AA8336/(1-$W8336)","v":{"v":161579.77048153256,"d":"161,580"}},{"$f":"'BP Financier'!$G$44*(('BP Financier'!$C$16+'BP Financier'!$D$16+'BP Financier'!$E$16+'BP Financier'!$F$16+'BP Financier'!$G$16)/('BP Financier'!$C$16+'BP Financier'!$C$19+'BP Financier'!$D$16+'BP Financier'!$D$19+'BP Financier'!$E$16+'BP Financier'!$E$19+'BP Financier'!$C$22+'BP Financier'!$D$22+'BP Financier'!$E$22+'BP Financier'!$F$16+'BP Financier'!$F$19+'BP Financier'!$F$22+'BP Financier'!$G$16+'BP Financier'!$G$19+'BP Financier'!$G$22))*$V8336*AB8336/(1-$W8336)","v":{"v":77337.32604244292,"d":"77,337"}},null,{"v":0.006,"d":"0.60%"},{"$f":"Actif!$E$28/100","v":{"v":0.28900000000000003,"d":"28.90%"}},{"$f":"Actif!$E$30/100","v":{"v":0.09050000000000001,"d":"9.05%"}},{"$f":"Actif!$E$31/100","v":{"v":0.0605,"d":"6.05%"}},{"$f":"Actif!$E$32/100","v":{"v":0.47350000000000003,"d":"47.35%"}},{"$f":"Actif!$E$33/100","v":{"v":0.0585,"d":"5.85%"}},{"$f":"Actif!$E$29/100","v":{"v":0.027999999999999997,"d":"2.80%"}}]
[null,"#224",62,2030,"F","A_VIE",{"v":0.44999999999999996,"d":"0.45"},{"v":0.38999999999999996,"d":"0.39"},0.6,0.6,85,0,{"$f":"ROUND(Primes!$Q$4*V8337,0)","v":68},{"$f":"'BP Financier'!$G$33*(('BP Financier'!$C$16+'BP Financier'!$D$16+'BP Financier'!$E$16+'BP Financier'!$F$16+'BP Financier'!$G$16)/('BP Financier'!$C$16+'BP Financier'!$C$19+'BP Financier'!$D$16+'BP Financier'!$D$19+'BP Financier'!$E$16+'BP Financier'!$E$19+'BP Financier'!$F$16+'BP Financier'!$F$19+'BP Financier'!$G$19+'BP Financier'!$G$16))*V8337","v":{"v":3421672.0459127007,"d":"3,421,672"}},{"v":1963815.672006318,"d":"1,963,816"},{"$f":"'BP Financier'!$G$44*(('BP Financier'!$C$16+'BP Financier'!$D$16+'BP Financier'!$E$16+'BP Financier'!$F$16+'BP Financier'!$G$16)/('BP Financier'!$C$16+'BP Financier'!$C$19+'BP Financier'!$D$16+'BP Financier'!$D$19+'BP Financier'!$E$16+'BP Financier'!$E$19+'BP Financier'!$C$22+'BP Financier'!$D$22+'BP Financier'!$E$22+'BP Financier'!$F$16+'BP Financier'!$F$19+'BP Financier'!$F$22+'BP Financier'!$G$16+'BP Financier'!$G$19+'BP Financier'!$G$22))*$V8337*X8337/(1-$W8337)","v":{"v":249965.28595861018,"d":"249,965"}},{"$f":"'BP Financier'!$G$44*(('BP Financier'!$C$16+'BP Financier'!$D$16+'BP Financier'!$E$16+'BP Financier'!$F$16+'BP Financier'!$G$16)/('BP Financier'!$C$16+'BP Financier'!$C$19+'BP Financier'!$D$16+'BP Financier'!$D$19+'BP Financier'!$E$16+'BP Financier'!$E$19+'BP Financier'!$C$22+'BP Financier'!$D$22+'BP Financier'!$E$22+'BP Financier'!$F$16+'BP Financier'!$F$19+'BP Financier'!$F$22+'BP Financier'!$G$16+'BP Financier'!$G$19+'BP Financier'!$G$22))*$V8337*Y8337/(1-$W8337)","v":{"v":167103.86519884988,"d":"167,104"}},{"$f":"'BP Financier'!$G$44*(('BP Financier'!$C$16+'BP Financier'!$D$16+'BP Financier'!$E$16+'BP Financier'!$F$16+'BP Financier'!$G$16)/('BP Financier'!$C$16+'BP Financier'!$C$19+'BP Financier'!$D$16+'BP Financier'!$D$19+'BP Financier'!$E$16+'BP Financier'!$E$19+'BP Financier'!$C$22+'BP Financier'!$D$22+'BP Financier'!$E$22+'BP Financier'!$F$16+'BP Financier'!$F$19+'BP Financier'!$F$22+'BP Financier'!$G$16+'BP Financier'!$G$19+'BP Financier'!$G$22))*$V8337*Z8337/(1-$W8337)","v":{"v":1307829.424324883,"d":"1,307,829"}},{"$f":"'BP Financier'!$G$44*(('BP Financier'!$C$16+'BP Financier'!$D$16+'BP Financier'!$E$16+'BP Financier'!$F$16+'BP Financier'!$G$16)/('BP Financier'!$C$16+'BP Financier'!$C$19+'BP Financier'!$D$16+'BP Financier'!$D$19+'BP Financier'!$E$16+'BP Financier'!$E$19+'BP Financier'!$C$22+'BP Financier'!$D$22+'BP Financier'!$E$22+'BP Financier'!$F$16+'BP Financier'!$F$19+'BP Financier'!$F$22+'BP Financier'!$G$16+'BP Financier'!$G$19+'BP Financier'!$G$22))*$V8337*AA8337/(1-$W8337)","v":{"v":161579.77048153256,"d":"161,580"}},{"$f":"'BP Financier'!$G$44*(('BP Financier'!$C$16+'BP Financier'!$D$16+'BP Financier'!$E$16+'BP Financier'!$F$16+'BP Financier'!$G$16)/('BP Financier'!$C$16+'BP Financier'!$C$19+'BP Financier'!$D$16+'BP Financier'!$D$19+'BP Financier'!$E$16+'BP Financier'!$E$19+'BP Financier'!$C$22+'BP Financier'!$D$22+'BP Financier'!$E$22+'BP Financier'!$F$16+'BP Financier'!$F$19+'BP Financier'!$F$22+'BP Financier'!$G$16+'BP Financier'!$G$19+'BP Financier'!$G$22))*$V8337*AB8337/(1-$W8337)","v":{"v":77337.32604244292,"d":"77,337"}},null,{"v":0.006,"d":"0.60%"},{"$f":"Actif!$E$28/100","v":{"v":0.28900000000000003,"d":"28.90%"}},{"$f":"Actif!$E$30/100","v":{"v":0.09050000000000001,"d":"9.05%"}},{"$f":"Actif!$E$31/100","v":{"v":0.0605,"d":"6.05%"}},{"$f":"Actif!$E$32/100","v":{"v":0.47350000000000003,"d":"47.35%"}},{"$f":"Actif!$E$33/100","v":{"v":0.0585,"d":"5.85%"}},{"$f":"Actif!$E$29/100","v":{"v":0.027999999999999997,"d":"2.80%"}}]
[null,"#225",62,2031,"F","A_VIE",{"v":0.44999999999999996,"d":"0.45"},{"v":0.38999999999999996,"d":"0.39"},0.6,0.6,85,0,{"$f":"ROUND(Primes!$Q$4*V8338,0)","v":68},{"$f":"'BP Financier'!$G$33*(('BP Financier'!$C$16+'BP Financier'!$D$16+'BP Financier'!$E$16+'BP Financier'!$F$16+'BP Financier'!$G$16)/('BP Financier'!$C$16+'BP Financier'!$C$19+'BP Financier'!$D$16+'BP Financier'!$D$19+'BP Financier'!$E$16+'BP Financier'!$E$19+'BP Financier'!$F$16+'BP Financier'!$F$19+'BP Financier'!$G$19+'BP Financier'!$G$16))*V8338","v":{"v":3421672.0459127007,"d":"3,421,672"}},{"v":1963815.672006318,"d":"1,963,816"},{"$f":"'BP Financier'!$G$44*(('BP Financier'!$C$16+'BP Financier'!$D$16+'BP Financier'!$E$16+'BP Financier'!$F$16+'BP Financier'!$G$16)/('BP Financier'!$C$16+'BP Financier'!$C$19+'BP Financier'!$D$16+'BP Financier'!$D$19+'BP Financier'!$E$16+'BP Financier'!$E$19+'BP Financier'!$C$22+'BP Financier'!$D$22+'BP Financier'!$E$22+'BP Financier'!$F$16+'BP Financier'!$F$19+'BP Financier'!$F$22+'BP Financier'!$G$16+'BP Financier'!$G$19+'BP Financier'!$G$22))*$V8338*X8338/(1-$W8338)","v":{"v":249965.28595861018,"d":"249,965"}},{"$f":"'BP Financier'!$G$44*(('BP Financier'!$C$16+'BP Financier'!$D$16+'BP Financier'!$E$16+'BP Financier'!$F$16+'BP Financier'!$G$16)/('BP Financier'!$C$16+'BP Financier'!$C$19+'BP Financier'!$D$16+'BP Financier'!$D$19+'BP Financier'!$E$16+'BP Financier'!$E$19+'BP Financier'!$C$22+'BP Financier'!$D$22+'BP Financier'!$E$22+'BP Financier'!$F$16+'BP Financier'!$F$19+'BP Financier'!$F$22+'BP Financier'!$G$16+'BP Financier'!$G$19+'BP Financier'!$G$22))*$V8338*Y8338/(1-$W8338)","v":{"v":167103.86519884988,"d":"167,104"}},{"$f":"'BP Financier'!$G$44*(('BP Financier'!$C$16+'BP Financier'!$D$16+'BP Financier'!$E$16+'BP Financier'!$F$16+'BP Financier'!$G$16)/('BP Financier'!$C$16+'BP Financier'!$C$19+'BP Financier'!$D$16+'BP Financier'!$D$19+'BP Financier'!$E$16+'BP Financier'!$E$19+'BP Financier'!$C$22+'BP Financier'!$D$22+'BP Financier'!$E$22+'BP Financier'!$F$16+'BP Financier'!$F$19+'BP Financier'!$F$22+'BP Financier'!$G$16+'BP Financier'!$G$19+'BP Financier'!$G$22))*$V8338*Z8338/(1-$W8338)","v":{"v":1307829.424324883,"d":"1,307,829"}},{"$f":"'BP Financier'!$G$44*(('BP Financier'!$C$16+'BP Financier'!$D$16+'BP Financier'!$E$16+'BP Financier'!$F$16+'BP Financier'!$G$16)/('BP Financier'!$C$16+'BP Financier'!$C$19+'BP Financier'!$D$16+'BP Financier'!$D$19+'BP Financier'!$E$16+'BP Financier'!$E$19+'BP Financier'!$C$22+'BP Financier'!$D$22+'BP Financier'!$E$22+'BP Financier'!$F$16+'BP Financier'!$F$19+'BP Financier'!$F$22+'BP Financier'!$G$16+'BP Financier'!$G$19+'BP Financier'!$G$22))*$V8338*AA8338/(1-$W8338)","v":{"v":161579.77048153256,"d":"161,580"}},{"$f":"'BP Financier'!$G$44*(('BP Financier'!$C$16+'BP Financier'!$D$16+'BP Financier'!$E$16+'BP Financier'!$F$16+'BP Financier'!$G$16)/('BP Financier'!$C$16+'BP Financier'!$C$19+'BP Financier'!$D$16+'BP Financier'!$D$19+'BP Financier'!$E$16+'BP Financier'!$E$19+'BP Financier'!$C$22+'BP Financier'!$D$22+'BP Financier'!$E$22+'BP Financier'!$F$16+'BP Financier'!$F$19+'BP Financier'!$F$22+'BP Financier'!$G$16+'BP Financier'!$G$19+'BP Financier'!$G$22))*$V8338*AB8338/(1-$W8338)","v":{"v":77337.32604244292,"d":"77,337"}},null,{"v":0.006,"d":"0.60%"},{"$f":"Actif!$E$28/100","v":{"v":0.28900000000000003,"d":"28.90%"}},{"$f":"Actif!$E$30/100","v":{"v":0.09050000000000001,"d":"9.05%"}},{"$f":"Actif!$E$31/100","v":{"v":0.0605,"d":"6.05%"}},{"$f":"Actif!$E$32/100","v":{"v":0.47350000000000003,"d":"47.35%"}},{"$f":"Actif!$E$33/100","v":{"v":0.0585,"d":"5.85%"}},{"$f":"Actif!$E$29/100","v":{"v":0.027999999999999997,"d":"2.80%"}}]
[null,"#226",63,2026,"H","A_VIE",{"v":0.44999999999999996,"d":"0.45"},{"v":0.38999999999999996,"d":"0.39"},0.6,0.6,85,0,{"$f":"ROUND(Primes!$Q$4*V8339,0)","v":68},{"$f":"'BP Financier'!$G$33*(('BP Financier'!$C$16+'BP Financier'!$D$16+'BP Financier'!$E$16+'BP Financier'!$F$16+'BP Financier'!$G$16)/('BP Financier'!$C$16+'BP Financier'!$C$19+'BP Financier'!$D$16+'BP Financier'!$D$19+'BP Financier'!$E$16+'BP Financier'!$E$19+'BP Financier'!$F$16+'BP Financier'!$F$19+'BP Financier'!$G$19+'BP Financier'!$G$16))*V8339","v":{"v":3421672.0459127007,"d":"3,421,672"}},{"v":1963815.672006318,"d":"1,963,816"},{"$f":"'BP Financier'!$G$44*(('BP Financier'!$C$16+'BP Financier'!$D$16+'BP Financier'!$E$16+'BP Financier'!$F$16+'BP Financier'!$G$16)/('BP Financier'!$C$16+'BP Financier'!$C$19+'BP Financier'!$D$16+'BP Financier'!$D$19+'BP Financier'!$E$16+'BP Financier'!$E$19+'BP Financier'!$C$22+'BP Financier'!$D$22+'BP Financier'!$E$22+'BP Financier'!$F$16+'BP Financier'!$F$19+'BP Financier'!$F$22+'BP Financier'!$G$16+'BP Financier'!$G$19+'BP Financier'!$G$22))*$V8339*X8339/(1-$W8339)","v":{"v":249965.28595861018,"d":"249,965"}},{"$f":"'BP Financier'!$G$44*(('BP Financier'!$C$16+'BP Financier'!$D$16+'BP Financier'!$E$16+'BP Financier'!$F$16+'BP Financier'!$G$16)/('BP Financier'!$C$16+'BP Financier'!$C$19+'BP Financier'!$D$16+'BP Financier'!$D$19+'BP Financier'!$E$16+'BP Financier'!$E$19+'BP Financier'!$C$22+'BP Financier'!$D$22+'BP Financier'!$E$22+'BP Financier'!$F$16+'BP Financier'!$F$19+'BP Financier'!$F$22+'BP Financier'!$G$16+'BP Financier'!$G$19+'BP Financier'!$G$22))*$V8339*Y8339/(1-$W8339)","v":{"v":167103.86519884988,"d":"167,104"}},{"$f":"'BP Financier'!$G$44*(('BP Financier'!$C$16+'BP Financier'!$D$16+'BP Financier'!$E$16+'BP Financier'!$F$16+'BP Financier'!$G$16)/('BP Financier'!$C$16+'BP Financier'!$C$19+'BP Financier'!$D$16+'BP Financier'!$D$19+'BP Financier'!$E$16+'BP Financier'!$E$19+'BP Financier'!$C$22+'BP Financier'!$D$22+'BP Financier'!$E$22+'BP Financier'!$F$16+'BP Financier'!$F$19+'BP Financier'!$F$22+'BP Financier'!$G$16+'BP Financier'!$G$19+'BP Financier'!$G$22))*$V8339*Z8339/(1-$W8339)","v":{"v":1307829.424324883,"d":"1,307,829"}},{"$f":"'BP Financier'!$G$44*(('BP Financier'!$C$16+'BP Financier'!$D$16+'BP Financier'!$E$16+'BP Financier'!$F$16+'BP Financier'!$G$16)/('BP Financier'!$C$16+'BP Financier'!$C$19+'BP Financier'!$D$16+'BP Financier'!$D$19+'BP Financier'!$E$16+'BP Financier'!$E$19+'BP Financier'!$C$22+'BP Financier'!$D$22+'BP Financier'!$E$22+'BP Financier'!$F$16+'BP Financier'!$F$19+'BP Financier'!$F$22+'BP Financier'!$G$16+'BP Financier'!$G$19+'BP Financier'!$G$22))*$V8339*AA8339/(1-$W8339)","v":{"v":161579.77048153256,"d":"161,580"}},{"$f":"'BP Financier'!$G$44*(('BP Financier'!$C$16+'BP Financier'!$D$16+'BP Financier'!$E$16+'BP Financier'!$F$16+'BP Financier'!$G$16)/('BP Financier'!$C$16+'BP Financier'!$C$19+'BP Financier'!$D$16+'BP Financier'!$D$19+'BP Financier'!$E$16+'BP Financier'!$E$19+'BP Financier'!$C$22+'BP Financier'!$D$22+'BP Financier'!$E$22+'BP Financier'!$F$16+'BP Financier'!$F$19+'BP Financier'!$F$22+'BP Financier'!$G$16+'BP Financier'!$G$19+'BP Financier'!$G$22))*$V8339*AB8339/(1-$W8339)","v":{"v":77337.32604244292,"d":"77,337"}},null,{"v":0.006,"d":"0.60%"},{"$f":"Actif!$E$28/100","v":{"v":0.28900000000000003,"d":"28.90%"}},{"$f":"Actif!$E$30/100","v":{"v":0.09050000000000001,"d":"9.05%"}},{"$f":"Actif!$E$31/100","v":{"v":0.0605,"d":"6.05%"}},{"$f":"Actif!$E$32/100","v":{"v":0.47350000000000003,"d":"47.35%"}},{"$f":"Actif!$E$33/100","v":{"v":0.0585,"d":"5.85%"}},{"$f":"Actif!$E$29/100","v":{"v":0.027999999999999997,"d":"2.80%"}}]
[null,"#227",63,2028,"H","A_VIE",{"v":0.44999999999999996,"d":"0.45"},{"v":0.38999999999999996,"d":"0.39"},0.6,0.6,85,0,{"$f":"ROUND(Primes!$Q$4*V8340,0)","v":68},{"$f":"'BP Financier'!$G$33*(('BP Financier'!$C$16+'BP Financier'!$D$16+'BP Financier'!$E$16+'BP Financier'!$F$16+'BP Financier'!$G$16)/('BP Financier'!$C$16+'BP Financier'!$C$19+'BP Financier'!$D$16+'BP Financier'!$D$19+'BP Financier'!$E$16+'BP Financier'!$E$19+'BP Financier'!$F$16+'BP Financier'!$F$19+'BP Financier'!$G$19+'BP Financier'!$G$16))*V8340","v":{"v":3421672.0459127007,"d":"3,421,672"}},{"v":1963815.672006318,"d":"1,963,816"},{"$f":"'BP Financier'!$G$44*(('BP Financier'!$C$16+'BP Financier'!$D$16+'BP Financier'!$E$16+'BP Financier'!$F$16+'BP Financier'!$G$16)/('BP Financier'!$C$16+'BP Financier'!$C$19+'BP Financier'!$D$16+'BP Financier'!$D$19+'BP Financier'!$E$16+'BP Financier'!$E$19+'BP Financier'!$C$22+'BP Financier'!$D$22+'BP Financier'!$E$22+'BP Financier'!$F$16+'BP Financier'!$F$19+'BP Financier'!$F$22+'BP Financier'!$G$16+'BP Financier'!$G$19+'BP Financier'!$G$22))*$V8340*X8340/(1-$W8340)","v":{"v":249965.28595861018,"d":"249,965"}},{"$f":"'BP Financier'!$G$44*(('BP Financier'!$C$16+'BP Financier'!$D$16+'BP Financier'!$E$16+'BP Financier'!$F$16+'BP Financier'!$G$16)/('BP Financier'!$C$16+'BP Financier'!$C$19+'BP Financier'!$D$16+'BP Financier'!$D$19+'BP Financier'!$E$16+'BP Financier'!$E$19+'BP Financier'!$C$22+'BP Financier'!$D$22+'BP Financier'!$E$22+'BP Financier'!$F$16+'BP Financier'!$F$19+'BP Financier'!$F$22+'BP Financier'!$G$16+'BP Financier'!$G$19+'BP Financier'!$G$22))*$V8340*Y8340/(1-$W8340)","v":{"v":167103.86519884988,"d":"167,104"}},{"$f":"'BP Financier'!$G$44*(('BP Financier'!$C$16+'BP Financier'!$D$16+'BP Financier'!$E$16+'BP Financier'!$F$16+'BP Financier'!$G$16)/('BP Financier'!$C$16+'BP Financier'!$C$19+'BP Financier'!$D$16+'BP Financier'!$D$19+'BP Financier'!$E$16+'BP Financier'!$E$19+'BP Financier'!$C$22+'BP Financier'!$D$22+'BP Financier'!$E$22+'BP Financier'!$F$16+'BP Financier'!$F$19+'BP Financier'!$F$22+'BP Financier'!$G$16+'BP Financier'!$G$19+'BP Financier'!$G$22))*$V8340*Z8340/(1-$W8340)","v":{"v":1307829.424324883,"d":"1,307,829"}},{"$f":"'BP Financier'!$G$44*(('BP Financier'!$C$16+'BP Financier'!$D$16+'BP Financier'!$E$16+'BP Financier'!$F$16+'BP Financier'!$G$16)/('BP Financier'!$C$16+'BP Financier'!$C$19+'BP Financier'!$D$16+'BP Financier'!$D$19+'BP Financier'!$E$16+'BP Financier'!$E$19+'BP Financier'!$C$22+'BP Financier'!$D$22+'BP Financier'!$E$22+'BP Financier'!$F$16+'BP Financier'!$F$19+'BP Financier'!$F$22+'BP Financier'!$G$16+'BP Financier'!$G$19+'BP Financier'!$G$22))*$V8340*AA8340/(1-$W8340)","v":{"v":161579.77048153256,"d":"161,580"}},{"$f":"'BP Financier'!$G$44*(('BP Financier'!$C$16+'BP Financier'!$D$16+'BP Financier'!$E$16+'BP Financier'!$F$16+'BP Financier'!$G$16)/('BP Financier'!$C$16+'BP Financier'!$C$19+'BP Financier'!$D$16+'BP Financier'!$D$19+'BP Financier'!$E$16+'BP Financier'!$E$19+'BP Financier'!$C$22+'BP Financier'!$D$22+'BP Financier'!$E$22+'BP Financier'!$F$16+'BP Financier'!$F$19+'BP Financier'!$F$22+'BP Financier'!$G$16+'BP Financier'!$G$19+'BP Financier'!$G$22))*$V8340*AB8340/(1-$W8340)","v":{"v":77337.32604244292,"d":"77,337"}},null,{"v":0.006,"d":"0.60%"},{"$f":"Actif!$E$28/100","v":{"v":0.28900000000000003,"d":"28.90%"}},{"$f":"Actif!$E$30/100","v":{"v":0.09050000000000001,"d":"9.05%"}},{"$f":"Actif!$E$31/100","v":{"v":0.0605,"d":"6.05%"}},{"$f":"Actif!$E$32/100","v":{"v":0.47350000000000003,"d":"47.35%"}},{"$f":"Actif!$E$33/100","v":{"v":0.0585,"d":"5.85%"}},{"$f":"Actif!$E$29/100","v":{"v":0.027999999999999997,"d":"2.80%"}}]
[null,"#228",63,2029,"H","A_VIE",{"v":0.44999999999999996,"d":"0.45"},{"v":0.38999999999999996,"d":"0.39"},0.6,0.6,85,0,{"$f":"ROUND(Primes!$Q$4*V8341,0)","v":68},{"$f":"'BP Financier'!$G$33*(('BP Financier'!$C$16+'BP Financier'!$D$16+'BP Financier'!$E$16+'BP Financier'!$F$16+'BP Financier'!$G$16)/('BP Financier'!$C$16+'BP Financier'!$C$19+'BP Financier'!$D$16+'BP Financier'!$D$19+'BP Financier'!$E$16+'BP Financier'!$E$19+'BP Financier'!$F$16+'BP Financier'!$F$19+'BP Financier'!$G$19+'BP Financier'!$G$16))*V8341","v":{"v":3421672.0459127007,"d":"3,421,672"}},{"v":1963815.672006318,"d":"1,963,816"},{"$f":"'BP Financier'!$G$44*(('BP Financier'!$C$16+'BP Financier'!$D$16+'BP Financier'!$E$16+'BP Financier'!$F$16+'BP Financier'!$G$16)/('BP Financier'!$C$16+'BP Financier'!$C$19+'BP Financier'!$D$16+'BP Financier'!$D$19+'BP Financier'!$E$16+'BP Financier'!$E$19+'BP Financier'!$C$22+'BP Financier'!$D$22+'BP Financier'!$E$22+'BP Financier'!$F$16+'BP Financier'!$F$19+'BP Financier'!$F$22+'BP Financier'!$G$16+'BP Financier'!$G$19+'BP Financier'!$G$22))*$V8341*X8341/(1-$W8341)","v":{"v":249965.28595861018,"d":"249,965"}},{"$f":"'BP Financier'!$G$44*(('BP Financier'!$C$16+'BP Financier'!$D$16+'BP Financier'!$E$16+'BP Financier'!$F$16+'BP Financier'!$G$16)/('BP Financier'!$C$16+'BP Financier'!$C$19+'BP Financier'!$D$16+'BP Financier'!$D$19+'BP Financier'!$E$16+'BP Financier'!$E$19+'BP Financier'!$C$22+'BP Financier'!$D$22+'BP Financier'!$E$22+'BP Financier'!$F$16+'BP Financier'!$F$19+'BP Financier'!$F$22+'BP Financier'!$G$16+'BP Financier'!$G$19+'BP Financier'!$G$22))*$V8341*Y8341/(1-$W8341)","v":{"v":167103.86519884988,"d":"167,104"}},{"$f":"'BP Financier'!$G$44*(('BP Financier'!$C$16+'BP Financier'!$D$16+'BP Financier'!$E$16+'BP Financier'!$F$16+'BP Financier'!$G$16)/('BP Financier'!$C$16+'BP Financier'!$C$19+'BP Financier'!$D$16+'BP Financier'!$D$19+'BP Financier'!$E$16+'BP Financier'!$E$19+'BP Financier'!$C$22+'BP Financier'!$D$22+'BP Financier'!$E$22+'BP Financier'!$F$16+'BP Financier'!$F$19+'BP Financier'!$F$22+'BP Financier'!$G$16+'BP Financier'!$G$19+'BP Financier'!$G$22))*$V8341*Z8341/(1-$W8341)","v":{"v":1307829.424324883,"d":"1,307,829"}},{"$f":"'BP Financier'!$G$44*(('BP Financier'!$C$16+'BP Financier'!$D$16+'BP Financier'!$E$16+'BP Financier'!$F$16+'BP Financier'!$G$16)/('BP Financier'!$C$16+'BP Financier'!$C$19+'BP Financier'!$D$16+'BP Financier'!$D$19+'BP Financier'!$E$16+'BP Financier'!$E$19+'BP Financier'!$C$22+'BP Financier'!$D$22+'BP Financier'!$E$22+'BP Financier'!$F$16+'BP Financier'!$F$19+'BP Financier'!$F$22+'BP Financier'!$G$16+'BP Financier'!$G$19+'BP Financier'!$G$22))*$V8341*AA8341/(1-$W8341)","v":{"v":161579.77048153256,"d":"161,580"}},{"$f":"'BP Financier'!$G$44*(('BP Financier'!$C$16+'BP Financier'!$D$16+'BP Financier'!$E$16+'BP Financier'!$F$16+'BP Financier'!$G$16)/('BP Financier'!$C$16+'BP Financier'!$C$19+'BP Financier'!$D$16+'BP Financier'!$D$19+'BP Financier'!$E$16+'BP Financier'!$E$19+'BP Financier'!$C$22+'BP Financier'!$D$22+'BP Financier'!$E$22+'BP Financier'!$F$16+'BP Financier'!$F$19+'BP Financier'!$F$22+'BP Financier'!$G$16+'BP Financier'!$G$19+'BP Financier'!$G$22))*$V8341*AB8341/(1-$W8341)","v":{"v":77337.32604244292,"d":"77,337"}},null,{"v":0.006,"d":"0.60%"},{"$f":"Actif!$E$28/100","v":{"v":0.28900000000000003,"d":"28.90%"}},{"$f":"Actif!$E$30/100","v":{"v":0.09050000000000001,"d":"9.05%"}},{"$f":"Actif!$E$31/100","v":{"v":0.0605,"d":"6.05%"}},{"$f":"Actif!$E$32/100","v":{"v":0.47350000000000003,"d":"47.35%"}},{"$f":"Actif!$E$33/100","v":{"v":0.0585,"d":"5.85%"}},{"$f":"Actif!$E$29/100","v":{"v":0.027999999999999997,"d":"2.80%"}}]
[null,"#229",63,2030,"H","A_VIE",{"v":0.44999999999999996,"d":"0.45"},{"v":0.38999999999999996,"d":"0.39"},0.6,0.6,85,0,{"$f":"ROUND(Primes!$Q$4*V8342,0)","v":68},{"$f":"'BP Financier'!$G$33*(('BP Financier'!$C$16+'BP Financier'!$D$16+'BP Financier'!$E$16+'BP Financier'!$F$16+'BP Financier'!$G$16)/('BP Financier'!$C$16+'BP Financier'!$C$19+'BP Financier'!$D$16+'BP Financier'!$D$19+'BP Financier'!$E$16+'BP Financier'!$E$19+'BP Financier'!$F$16+'BP Financier'!$F$19+'BP Financier'!$G$19+'BP Financier'!$G$16))*V8342","v":{"v":3421672.0459127007,"d":"3,421,672"}},{"v":1963815.672006318,"d":"1,963,816"},{"$f":"'BP Financier'!$G$44*(('BP Financier'!$C$16+'BP Financier'!$D$16+'BP Financier'!$E$16+'BP Financier'!$F$16+'BP Financier'!$G$16)/('BP Financier'!$C$16+'BP Financier'!$C$19+'BP Financier'!$D$16+'BP Financier'!$D$19+'BP Financier'!$E$16+'BP Financier'!$E$19+'BP Financier'!$C$22+'BP Financier'!$D$22+'BP Financier'!$E$22+'BP Financier'!$F$16+'BP Financier'!$F$19+'BP Financier'!$F$22+'BP Financier'!$G$16+'BP Financier'!$G$19+'BP Financier'!$G$22))*$V8342*X8342/(1-$W8342)","v":{"v":249965.28595861018,"d":"249,965"}},{"$f":"'BP Financier'!$G$44*(('BP Financier'!$C$16+'BP Financier'!$D$16+'BP Financier'!$E$16+'BP Financier'!$F$16+'BP Financier'!$G$16)/('BP Financier'!$C$16+'BP Financier'!$C$19+'BP Financier'!$D$16+'BP Financier'!$D$19+'BP Financier'!$E$16+'BP Financier'!$E$19+'BP Financier'!$C$22+'BP Financier'!$D$22+'BP Financier'!$E$22+'BP Financier'!$F$16+'BP Financier'!$F$19+'BP Financier'!$F$22+'BP Financier'!$G$16+'BP Financier'!$G$19+'BP Financier'!$G$22))*$V8342*Y8342/(1-$W8342)","v":{"v":167103.86519884988,"d":"167,104"}},{"$f":"'BP Financier'!$G$44*(('BP Financier'!$C$16+'BP Financier'!$D$16+'BP Financier'!$E$16+'BP Financier'!$F$16+'BP Financier'!$G$16)/('BP Financier'!$C$16+'BP Financier'!$C$19+'BP Financier'!$D$16+'BP Financier'!$D$19+'BP Financier'!$E$16+'BP Financier'!$E$19+'BP Financier'!$C$22+'BP Financier'!$D$22+'BP Financier'!$E$22+'BP Financier'!$F$16+'BP Financier'!$F$19+'BP Financier'!$F$22+'BP Financier'!$G$16+'BP Financier'!$G$19+'BP Financier'!$G$22))*$V8342*Z8342/(1-$W8342)","v":{"v":1307829.424324883,"d":"1,307,829"}},{"$f":"'BP Financier'!$G$44*(('BP Financier'!$C$16+'BP Financier'!$D$16+'BP Financier'!$E$16+'BP Financier'!$F$16+'BP Financier'!$G$16)/('BP Financier'!$C$16+'BP Financier'!$C$19+'BP Financier'!$D$16+'BP Financier'!$D$19+'BP Financier'!$E$16+'BP Financier'!$E$19+'BP Financier'!$C$22+'BP Financier'!$D$22+'BP Financier'!$E$22+'BP Financier'!$F$16+'BP Financier'!$F$19+'BP Financier'!$F$22+'BP Financier'!$G$16+'BP Financier'!$G$19+'BP Financier'!$G$22))*$V8342*AA8342/(1-$W8342)","v":{"v":161579.77048153256,"d":"161,580"}},{"$f":"'BP Financier'!$G$44*(('BP Financier'!$C$16+'BP Financier'!$D$16+'BP Financier'!$E$16+'BP Financier'!$F$16+'BP Financier'!$G$16)/('BP Financier'!$C$16+'BP Financier'!$C$19+'BP Financier'!$D$16+'BP Financier'!$D$19+'BP Financier'!$E$16+'BP Financier'!$E$19+'BP Financier'!$C$22+'BP Financier'!$D$22+'BP Financier'!$E$22+'BP Financier'!$F$16+'BP Financier'!$F$19+'BP Financier'!$F$22+'BP Financier'!$G$16+'BP Financier'!$G$19+'BP Financier'!$G$22))*$V8342*AB8342/(1-$W8342)","v":{"v":77337.32604244292,"d":"77,337"}},null,{"v":0.006,"d":"0.60%"},{"$f":"Actif!$E$28/100","v":{"v":0.28900000000000003,"d":"28.90%"}},{"$f":"Actif!$E$30/100","v":{"v":0.09050000000000001,"d":"9.05%"}},{"$f":"Actif!$E$31/100","v":{"v":0.0605,"d":"6.05%"}},{"$f":"Actif!$E$32/100","v":{"v":0.47350000000000003,"d":"47.35%"}},{"$f":"Actif!$E$33/100","v":{"v":0.0585,"d":"5.85%"}},{"$f":"Actif!$E$29/100","v":{"v":0.027999999999999997,"d":"2.80%"}}]
[null,"#230",63,2031,"H","A_VIE",{"v":0.44999999999999996,"d":"0.45"},{"v":0.38999999999999996,"d":"0.39"},0.6,0.6,85,0,{"$f":"ROUND(Primes!$Q$4*V8343,0)","v":68},{"$f":"'BP Financier'!$G$33*(('BP Financier'!$C$16+'BP Financier'!$D$16+'BP Financier'!$E$16+'BP Financier'!$F$16+'BP Financier'!$G$16)/('BP Financier'!$C$16+'BP Financier'!$C$19+'BP Financier'!$D$16+'BP Financier'!$D$19+'BP Financier'!$E$16+'BP Financier'!$E$19+'BP Financier'!$F$16+'BP Financier'!$F$19+'BP Financier'!$G$19+'BP Financier'!$G$16))*V8343","v":{"v":3421672.0459127007,"d":"3,421,672"}},{"v":1963815.672006318,"d":"1,963,816"},{"$f":"'BP Financier'!$G$44*(('BP Financier'!$C$16+'BP Financier'!$D$16+'BP Financier'!$E$16+'BP Financier'!$F$16+'BP Financier'!$G$16)/('BP Financier'!$C$16+'BP Financier'!$C$19+'BP Financier'!$D$16+'BP Financier'!$D$19+'BP Financier'!$E$16+'BP Financier'!$E$19+'BP Financier'!$C$22+'BP Financier'!$D$22+'BP Financier'!$E$22+'BP Financier'!$F$16+'BP Financier'!$F$19+'BP Financier'!$F$22+'BP Financier'!$G$16+'BP Financier'!$G$19+'BP Financier'!$G$22))*$V8343*X8343/(1-$W8343)","v":{"v":249965.28595861018,"d":"249,965"}},{"$f":"'BP Financier'!$G$44*(('BP Financier'!$C$16+'BP Financier'!$D$16+'BP Financier'!$E$16+'BP Financier'!$F$16+'BP Financier'!$G$16)/('BP Financier'!$C$16+'BP Financier'!$C$19+'BP Financier'!$D$16+'BP Financier'!$D$19+'BP Financier'!$E$16+'BP Financier'!$E$19+'BP Financier'!$C$22+'BP Financier'!$D$22+'BP Financier'!$E$22+'BP Financier'!$F$16+'BP Financier'!$F$19+'BP Financier'!$F$22+'BP Financier'!$G$16+'BP Financier'!$G$19+'BP Financier'!$G$22))*$V8343*Y8343/(1-$W8343)","v":{"v":167103.86519884988,"d":"167,104"}},{"$f":"'BP Financier'!$G$44*(('BP Financier'!$C$16+'BP Financier'!$D$16+'BP Financier'!$E$16+'BP Financier'!$F$16+'BP Financier'!$G$16)/('BP Financier'!$C$16+'BP Financier'!$C$19+'BP Financier'!$D$16+'BP Financier'!$D$19+'BP Financier'!$E$16+'BP Financier'!$E$19+'BP Financier'!$C$22+'BP Financier'!$D$22+'BP Financier'!$E$22+'BP Financier'!$F$16+'BP Financier'!$F$19+'BP Financier'!$F$22+'BP Financier'!$G$16+'BP Financier'!$G$19+'BP Financier'!$G$22))*$V8343*Z8343/(1-$W8343)","v":{"v":1307829.424324883,"d":"1,307,829"}},{"$f":"'BP Financier'!$G$44*(('BP Financier'!$C$16+'BP Financier'!$D$16+'BP Financier'!$E$16+'BP Financier'!$F$16+'BP Financier'!$G$16)/('BP Financier'!$C$16+'BP Financier'!$C$19+'BP Financier'!$D$16+'BP Financier'!$D$19+'BP Financier'!$E$16+'BP Financier'!$E$19+'BP Financier'!$C$22+'BP Financier'!$D$22+'BP Financier'!$E$22+'BP Financier'!$F$16+'BP Financier'!$F$19+'BP Financier'!$F$22+'BP Financier'!$G$16+'BP Financier'!$G$19+'BP Financier'!$G$22))*$V8343*AA8343/(1-$W8343)","v":{"v":161579.77048153256,"d":"161,580"}},{"$f":"'BP Financier'!$G$44*(('BP Financier'!$C$16+'BP Financier'!$D$16+'BP Financier'!$E$16+'BP Financier'!$F$16+'BP Financier'!$G$16)/('BP Financier'!$C$16+'BP Financier'!$C$19+'BP Financier'!$D$16+'BP Financier'!$D$19+'BP Financier'!$E$16+'BP Financier'!$E$19+'BP Financier'!$C$22+'BP Financier'!$D$22+'BP Financier'!$E$22+'BP Financier'!$F$16+'BP Financier'!$F$19+'BP Financier'!$F$22+'BP Financier'!$G$16+'BP Financier'!$G$19+'BP Financier'!$G$22))*$V8343*AB8343/(1-$W8343)","v":{"v":77337.32604244292,"d":"77,337"}},null,{"v":0.006,"d":"0.60%"},{"$f":"Actif!$E$28/100","v":{"v":0.28900000000000003,"d":"28.90%"}},{"$f":"Actif!$E$30/100","v":{"v":0.09050000000000001,"d":"9.05%"}},{"$f":"Actif!$E$31/100","v":{"v":0.0605,"d":"6.05%"}},{"$f":"Actif!$E$32/100","v":{"v":0.47350000000000003,"d":"47.35%"}},{"$f":"Actif!$E$33/100","v":{"v":0.0585,"d":"5.85%"}},{"$f":"Actif!$E$29/100","v":{"v":0.027999999999999997,"d":"2.80%"}}]
[null,"#231",64,2026,"H","A_VIE",{"v":0.44999999999999996,"d":"0.45"},{"v":0.38999999999999996,"d":"0.39"},0.6,0.6,85,0,{"$f":"ROUND(Primes!$Q$4*V8344,0)","v":68},{"$f":"'BP Financier'!$G$33*(('BP Financier'!$C$16+'BP Financier'!$D$16+'BP Financier'!$E$16+'BP Financier'!$F$16+'BP Financier'!$G$16)/('BP Financier'!$C$16+'BP Financier'!$C$19+'BP Financier'!$D$16+'BP Financier'!$D$19+'BP Financier'!$E$16+'BP Financier'!$E$19+'BP Financier'!$F$16+'BP Financier'!$F$19+'BP Financier'!$G$19+'BP Financier'!$G$16))*V8344","v":{"v":3421672.0459127007,"d":"3,421,672"}},{"v":1963815.672006318,"d":"1,963,816"},{"$f":"'BP Financier'!$G$44*(('BP Financier'!$C$16+'BP Financier'!$D$16+'BP Financier'!$E$16+'BP Financier'!$F$16+'BP Financier'!$G$16)/('BP Financier'!$C$16+'BP Financier'!$C$19+'BP Financier'!$D$16+'BP Financier'!$D$19+'BP Financier'!$E$16+'BP Financier'!$E$19+'BP Financier'!$C$22+'BP Financier'!$D$22+'BP Financier'!$E$22+'BP Financier'!$F$16+'BP Financier'!$F$19+'BP Financier'!$F$22+'BP Financier'!$G$16+'BP Financier'!$G$19+'BP Financier'!$G$22))*$V8344*X8344/(1-$W8344)","v":{"v":249965.28595861018,"d":"249,965"}},{"$f":"'BP Financier'!$G$44*(('BP Financier'!$C$16+'BP Financier'!$D$16+'BP Financier'!$E$16+'BP Financier'!$F$16+'BP Financier'!$G$16)/('BP Financier'!$C$16+'BP Financier'!$C$19+'BP Financier'!$D$16+'BP Financier'!$D$19+'BP Financier'!$E$16+'BP Financier'!$E$19+'BP Financier'!$C$22+'BP Financier'!$D$22+'BP Financier'!$E$22+'BP Financier'!$F$16+'BP Financier'!$F$19+'BP Financier'!$F$22+'BP Financier'!$G$16+'BP Financier'!$G$19+'BP Financier'!$G$22))*$V8344*Y8344/(1-$W8344)","v":{"v":167103.86519884988,"d":"167,104"}},{"$f":"'BP Financier'!$G$44*(('BP Financier'!$C$16+'BP Financier'!$D$16+'BP Financier'!$E$16+'BP Financier'!$F$16+'BP Financier'!$G$16)/('BP Financier'!$C$16+'BP Financier'!$C$19+'BP Financier'!$D$16+'BP Financier'!$D$19+'BP Financier'!$E$16+'BP Financier'!$E$19+'BP Financier'!$C$22+'BP Financier'!$D$22+'BP Financier'!$E$22+'BP Financier'!$F$16+'BP Financier'!$F$19+'BP Financier'!$F$22+'BP Financier'!$G$16+'BP Financier'!$G$19+'BP Financier'!$G$22))*$V8344*Z8344/(1-$W8344)","v":{"v":1307829.424324883,"d":"1,307,829"}},{"$f":"'BP Financier'!$G$44*(('BP Financier'!$C$16+'BP Financier'!$D$16+'BP Financier'!$E$16+'BP Financier'!$F$16+'BP Financier'!$G$16)/('BP Financier'!$C$16+'BP Financier'!$C$19+'BP Financier'!$D$16+'BP Financier'!$D$19+'BP Financier'!$E$16+'BP Financier'!$E$19+'BP Financier'!$C$22+'BP Financier'!$D$22+'BP Financier'!$E$22+'BP Financier'!$F$16+'BP Financier'!$F$19+'BP Financier'!$F$22+'BP Financier'!$G$16+'BP Financier'!$G$19+'BP Financier'!$G$22))*$V8344*AA8344/(1-$W8344)","v":{"v":161579.77048153256,"d":"161,580"}},{"$f":"'BP Financier'!$G$44*(('BP Financier'!$C$16+'BP Financier'!$D$16+'BP Financier'!$E$16+'BP Financier'!$F$16+'BP Financier'!$G$16)/('BP Financier'!$C$16+'BP Financier'!$C$19+'BP Financier'!$D$16+'BP Financier'!$D$19+'BP Financier'!$E$16+'BP Financier'!$E$19+'BP Financier'!$C$22+'BP Financier'!$D$22+'BP Financier'!$E$22+'BP Financier'!$F$16+'BP Financier'!$F$19+'BP Financier'!$F$22+'BP Financier'!$G$16+'BP Financier'!$G$19+'BP Financier'!$G$22))*$V8344*AB8344/(1-$W8344)","v":{"v":77337.32604244292,"d":"77,337"}},null,{"v":0.006,"d":"0.60%"},{"$f":"Actif!$E$28/100","v":{"v":0.28900000000000003,"d":"28.90%"}},{"$f":"Actif!$E$30/100","v":{"v":0.09050000000000001,"d":"9.05%"}},{"$f":"Actif!$E$31/100","v":{"v":0.0605,"d":"6.05%"}},{"$f":"Actif!$E$32/100","v":{"v":0.47350000000000003,"d":"47.35%"}},{"$f":"Actif!$E$33/100","v":{"v":0.0585,"d":"5.85%"}},{"$f":"Actif!$E$29/100","v":{"v":0.027999999999999997,"d":"2.80%"}}]
[null,"#232",64,2028,"H","A_VIE",{"v":0.44999999999999996,"d":"0.45"},{"v":0.38999999999999996,"d":"0.39"},0.6,0.6,85,0,{"$f":"ROUND(Primes!$Q$4*V8345,0)","v":68},{"$f":"'BP Financier'!$G$33*(('BP Financier'!$C$16+'BP Financier'!$D$16+'BP Financier'!$E$16+'BP Financier'!$F$16+'BP Financier'!$G$16)/('BP Financier'!$C$16+'BP Financier'!$C$19+'BP Financier'!$D$16+'BP Financier'!$D$19+'BP Financier'!$E$16+'BP Financier'!$E$19+'BP Financier'!$F$16+'BP Financier'!$F$19+'BP Financier'!$G$19+'BP Financier'!$G$16))*V8345","v":{"v":3421672.0459127007,"d":"3,421,672"}},{"v":1963815.672006318,"d":"1,963,816"},{"$f":"'BP Financier'!$G$44*(('BP Financier'!$C$16+'BP Financier'!$D$16+'BP Financier'!$E$16+'BP Financier'!$F$16+'BP Financier'!$G$16)/('BP Financier'!$C$16+'BP Financier'!$C$19+'BP Financier'!$D$16+'BP Financier'!$D$19+'BP Financier'!$E$16+'BP Financier'!$E$19+'BP Financier'!$C$22+'BP Financier'!$D$22+'BP Financier'!$E$22+'BP Financier'!$F$16+'BP Financier'!$F$19+'BP Financier'!$F$22+'BP Financier'!$G$16+'BP Financier'!$G$19+'BP Financier'!$G$22))*$V8345*X8345/(1-$W8345)","v":{"v":249965.28595861018,"d":"249,965"}},{"$f":"'BP Financier'!$G$44*(('BP Financier'!$C$16+'BP Financier'!$D$16+'BP Financier'!$E$16+'BP Financier'!$F$16+'BP Financier'!$G$16)/('BP Financier'!$C$16+'BP Financier'!$C$19+'BP Financier'!$D$16+'BP Financier'!$D$19+'BP Financier'!$E$16+'BP Financier'!$E$19+'BP Financier'!$C$22+'BP Financier'!$D$22+'BP Financier'!$E$22+'BP Financier'!$F$16+'BP Financier'!$F$19+'BP Financier'!$F$22+'BP Financier'!$G$16+'BP Financier'!$G$19+'BP Financier'!$G$22))*$V8345*Y8345/(1-$W8345)","v":{"v":167103.86519884988,"d":"167,104"}},{"$f":"'BP Financier'!$G$44*(('BP Financier'!$C$16+'BP Financier'!$D$16+'BP Financier'!$E$16+'BP Financier'!$F$16+'BP Financier'!$G$16)/('BP Financier'!$C$16+'BP Financier'!$C$19+'BP Financier'!$D$16+'BP Financier'!$D$19+'BP Financier'!$E$16+'BP Financier'!$E$19+'BP Financier'!$C$22+'BP Financier'!$D$22+'BP Financier'!$E$22+'BP Financier'!$F$16+'BP Financier'!$F$19+'BP Financier'!$F$22+'BP Financier'!$G$16+'BP Financier'!$G$19+'BP Financier'!$G$22))*$V8345*Z8345/(1-$W8345)","v":{"v":1307829.424324883,"d":"1,307,829"}},{"$f":"'BP Financier'!$G$44*(('BP Financier'!$C$16+'BP Financier'!$D$16+'BP Financier'!$E$16+'BP Financier'!$F$16+'BP Financier'!$G$16)/('BP Financier'!$C$16+'BP Financier'!$C$19+'BP Financier'!$D$16+'BP Financier'!$D$19+'BP Financier'!$E$16+'BP Financier'!$E$19+'BP Financier'!$C$22+'BP Financier'!$D$22+'BP Financier'!$E$22+'BP Financier'!$F$16+'BP Financier'!$F$19+'BP Financier'!$F$22+'BP Financier'!$G$16+'BP Financier'!$G$19+'BP Financier'!$G$22))*$V8345*AA8345/(1-$W8345)","v":{"v":161579.77048153256,"d":"161,580"}},{"$f":"'BP Financier'!$G$44*(('BP Financier'!$C$16+'BP Financier'!$D$16+'BP Financier'!$E$16+'BP Financier'!$F$16+'BP Financier'!$G$16)/('BP Financier'!$C$16+'BP Financier'!$C$19+'BP Financier'!$D$16+'BP Financier'!$D$19+'BP Financier'!$E$16+'BP Financier'!$E$19+'BP Financier'!$C$22+'BP Financier'!$D$22+'BP Financier'!$E$22+'BP Financier'!$F$16+'BP Financier'!$F$19+'BP Financier'!$F$22+'BP Financier'!$G$16+'BP Financier'!$G$19+'BP Financier'!$G$22))*$V8345*AB8345/(1-$W8345)","v":{"v":77337.32604244292,"d":"77,337"}},null,{"v":0.006,"d":"0.60%"},{"$f":"Actif!$E$28/100","v":{"v":0.28900000000000003,"d":"28.90%"}},{"$f":"Actif!$E$30/100","v":{"v":0.09050000000000001,"d":"9.05%"}},{"$f":"Actif!$E$31/100","v":{"v":0.0605,"d":"6.05%"}},{"$f":"Actif!$E$32/100","v":{"v":0.47350000000000003,"d":"47.35%"}},{"$f":"Actif!$E$33/100","v":{"v":0.0585,"d":"5.85%"}},{"$f":"Actif!$E$29/100","v":{"v":0.027999999999999997,"d":"2.80%"}}]
[null,"#233",64,2029,"H","A_VIE",{"v":0.44999999999999996,"d":"0.45"},{"v":0.38999999999999996,"d":"0.39"},0.6,0.6,85,0,{"$f":"ROUND(Primes!$Q$4*V8346,0)","v":68},{"$f":"'BP Financier'!$G$33*(('BP Financier'!$C$16+'BP Financier'!$D$16+'BP Financier'!$E$16+'BP Financier'!$F$16+'BP Financier'!$G$16)/('BP Financier'!$C$16+'BP Financier'!$C$19+'BP Financier'!$D$16+'BP Financier'!$D$19+'BP Financier'!$E$16+'BP Financier'!$E$19+'BP Financier'!$F$16+'BP Financier'!$F$19+'BP Financier'!$G$19+'BP Financier'!$G$16))*V8346","v":{"v":3421672.0459127007,"d":"3,421,672"}},{"v":1963815.672006318,"d":"1,963,816"},{"$f":"'BP Financier'!$G$44*(('BP Financier'!$C$16+'BP Financier'!$D$16+'BP Financier'!$E$16+'BP Financier'!$F$16+'BP Financier'!$G$16)/('BP Financier'!$C$16+'BP Financier'!$C$19+'BP Financier'!$D$16+'BP Financier'!$D$19+'BP Financier'!$E$16+'BP Financier'!$E$19+'BP Financier'!$C$22+'BP Financier'!$D$22+'BP Financier'!$E$22+'BP Financier'!$F$16+'BP Financier'!$F$19+'BP Financier'!$F$22+'BP Financier'!$G$16+'BP Financier'!$G$19+'BP Financier'!$G$22))*$V8346*X8346/(1-$W8346)","v":{"v":249965.28595861018,"d":"249,965"}},{"$f":"'BP Financier'!$G$44*(('BP Financier'!$C$16+'BP Financier'!$D$16+'BP Financier'!$E$16+'BP Financier'!$F$16+'BP Financier'!$G$16)/('BP Financier'!$C$16+'BP Financier'!$C$19+'BP Financier'!$D$16+'BP Financier'!$D$19+'BP Financier'!$E$16+'BP Financier'!$E$19+'BP Financier'!$C$22+'BP Financier'!$D$22+'BP Financier'!$E$22+'BP Financier'!$F$16+'BP Financier'!$F$19+'BP Financier'!$F$22+'BP Financier'!$G$16+'BP Financier'!$G$19+'BP Financier'!$G$22))*$V8346*Y8346/(1-$W8346)","v":{"v":167103.86519884988,"d":"167,104"}},{"$f":"'BP Financier'!$G$44*(('BP Financier'!$C$16+'BP Financier'!$D$16+'BP Financier'!$E$16+'BP Financier'!$F$16+'BP Financier'!$G$16)/('BP Financier'!$C$16+'BP Financier'!$C$19+'BP Financier'!$D$16+'BP Financier'!$D$19+'BP Financier'!$E$16+'BP Financier'!$E$19+'BP Financier'!$C$22+'BP Financier'!$D$22+'BP Financier'!$E$22+'BP Financier'!$F$16+'BP Financier'!$F$19+'BP Financier'!$F$22+'BP Financier'!$G$16+'BP Financier'!$G$19+'BP Financier'!$G$22))*$V8346*Z8346/(1-$W8346)","v":{"v":1307829.424324883,"d":"1,307,829"}},{"$f":"'BP Financier'!$G$44*(('BP Financier'!$C$16+'BP Financier'!$D$16+'BP Financier'!$E$16+'BP Financier'!$F$16+'BP Financier'!$G$16)/('BP Financier'!$C$16+'BP Financier'!$C$19+'BP Financier'!$D$16+'BP Financier'!$D$19+'BP Financier'!$E$16+'BP Financier'!$E$19+'BP Financier'!$C$22+'BP Financier'!$D$22+'BP Financier'!$E$22+'BP Financier'!$F$16+'BP Financier'!$F$19+'BP Financier'!$F$22+'BP Financier'!$G$16+'BP Financier'!$G$19+'BP Financier'!$G$22))*$V8346*AA8346/(1-$W8346)","v":{"v":161579.77048153256,"d":"161,580"}},{"$f":"'BP Financier'!$G$44*(('BP Financier'!$C$16+'BP Financier'!$D$16+'BP Financier'!$E$16+'BP Financier'!$F$16+'BP Financier'!$G$16)/('BP Financier'!$C$16+'BP Financier'!$C$19+'BP Financier'!$D$16+'BP Financier'!$D$19+'BP Financier'!$E$16+'BP Financier'!$E$19+'BP Financier'!$C$22+'BP Financier'!$D$22+'BP Financier'!$E$22+'BP Financier'!$F$16+'BP Financier'!$F$19+'BP Financier'!$F$22+'BP Financier'!$G$16+'BP Financier'!$G$19+'BP Financier'!$G$22))*$V8346*AB8346/(1-$W8346)","v":{"v":77337.32604244292,"d":"77,337"}},null,{"v":0.006,"d":"0.60%"},{"$f":"Actif!$E$28/100","v":{"v":0.28900000000000003,"d":"28.90%"}},{"$f":"Actif!$E$30/100","v":{"v":0.09050000000000001,"d":"9.05%"}},{"$f":"Actif!$E$31/100","v":{"v":0.0605,"d":"6.05%"}},{"$f":"Actif!$E$32/100","v":{"v":0.47350000000000003,"d":"47.35%"}},{"$f":"Actif!$E$33/100","v":{"v":0.0585,"d":"5.85%"}},{"$f":"Actif!$E$29/100","v":{"v":0.027999999999999997,"d":"2.80%"}}]
[null,"#234",64,2030,"H","A_VIE",{"v":0.44999999999999996,"d":"0.45"},{"v":0.38999999999999996,"d":"0.39"},0.6,0.6,85,0,{"$f":"ROUND(Primes!$Q$4*V8347,0)","v":68},{"$f":"'BP Financier'!$G$33*(('BP Financier'!$C$16+'BP Financier'!$D$16+'BP Financier'!$E$16+'BP Financier'!$F$16+'BP Financier'!$G$16)/('BP Financier'!$C$16+'BP Financier'!$C$19+'BP Financier'!$D$16+'BP Financier'!$D$19+'BP Financier'!$E$16+'BP Financier'!$E$19+'BP Financier'!$F$16+'BP Financier'!$F$19+'BP Financier'!$G$19+'BP Financier'!$G$16))*V8347","v":{"v":3421672.0459127007,"d":"3,421,672"}},{"v":1963815.672006318,"d":"1,963,816"},{"$f":"'BP Financier'!$G$44*(('BP Financier'!$C$16+'BP Financier'!$D$16+'BP Financier'!$E$16+'BP Financier'!$F$16+'BP Financier'!$G$16)/('BP Financier'!$C$16+'BP Financier'!$C$19+'BP Financier'!$D$16+'BP Financier'!$D$19+'BP Financier'!$E$16+'BP Financier'!$E$19+'BP Financier'!$C$22+'BP Financier'!$D$22+'BP Financier'!$E$22+'BP Financier'!$F$16+'BP Financier'!$F$19+'BP Financier'!$F$22+'BP Financier'!$G$16+'BP Financier'!$G$19+'BP Financier'!$G$22))*$V8347*X8347/(1-$W8347)","v":{"v":249965.28595861018,"d":"249,965"}},{"$f":"'BP Financier'!$G$44*(('BP Financier'!$C$16+'BP Financier'!$D$16+'BP Financier'!$E$16+'BP Financier'!$F$16+'BP Financier'!$G$16)/('BP Financier'!$C$16+'BP Financier'!$C$19+'BP Financier'!$D$16+'BP Financier'!$D$19+'BP Financier'!$E$16+'BP Financier'!$E$19+'BP Financier'!$C$22+'BP Financier'!$D$22+'BP Financier'!$E$22+'BP Financier'!$F$16+'BP Financier'!$F$19+'BP Financier'!$F$22+'BP Financier'!$G$16+'BP Financier'!$G$19+'BP Financier'!$G$22))*$V8347*Y8347/(1-$W8347)","v":{"v":167103.86519884988,"d":"167,104"}},{"$f":"'BP Financier'!$G$44*(('BP Financier'!$C$16+'BP Financier'!$D$16+'BP Financier'!$E$16+'BP Financier'!$F$16+'BP Financier'!$G$16)/('BP Financier'!$C$16+'BP Financier'!$C$19+'BP Financier'!$D$16+'BP Financier'!$D$19+'BP Financier'!$E$16+'BP Financier'!$E$19+'BP Financier'!$C$22+'BP Financier'!$D$22+'BP Financier'!$E$22+'BP Financier'!$F$16+'BP Financier'!$F$19+'BP Financier'!$F$22+'BP Financier'!$G$16+'BP Financier'!$G$19+'BP Financier'!$G$22))*$V8347*Z8347/(1-$W8347)","v":{"v":1307829.424324883,"d":"1,307,829"}},{"$f":"'BP Financier'!$G$44*(('BP Financier'!$C$16+'BP Financier'!$D$16+'BP Financier'!$E$16+'BP Financier'!$F$16+'BP Financier'!$G$16)/('BP Financier'!$C$16+'BP Financier'!$C$19+'BP Financier'!$D$16+'BP Financier'!$D$19+'BP Financier'!$E$16+'BP Financier'!$E$19+'BP Financier'!$C$22+'BP Financier'!$D$22+'BP Financier'!$E$22+'BP Financier'!$F$16+'BP Financier'!$F$19+'BP Financier'!$F$22+'BP Financier'!$G$16+'BP Financier'!$G$19+'BP Financier'!$G$22))*$V8347*AA8347/(1-$W8347)","v":{"v":161579.77048153256,"d":"161,580"}},{"$f":"'BP Financier'!$G$44*(('BP Financier'!$C$16+'BP Financier'!$D$16+'BP Financier'!$E$16+'BP Financier'!$F$16+'BP Financier'!$G$16)/('BP Financier'!$C$16+'BP Financier'!$C$19+'BP Financier'!$D$16+'BP Financier'!$D$19+'BP Financier'!$E$16+'BP Financier'!$E$19+'BP Financier'!$C$22+'BP Financier'!$D$22+'BP Financier'!$E$22+'BP Financier'!$F$16+'BP Financier'!$F$19+'BP Financier'!$F$22+'BP Financier'!$G$16+'BP Financier'!$G$19+'BP Financier'!$G$22))*$V8347*AB8347/(1-$W8347)","v":{"v":77337.32604244292,"d":"77,337"}},null,{"v":0.006,"d":"0.60%"},{"$f":"Actif!$E$28/100","v":{"v":0.28900000000000003,"d":"28.90%"}},{"$f":"Actif!$E$30/100","v":{"v":0.09050000000000001,"d":"9.05%"}},{"$f":"Actif!$E$31/100","v":{"v":0.0605,"d":"6.05%"}},{"$f":"Actif!$E$32/100","v":{"v":0.47350000000000003,"d":"47.35%"}},{"$f":"Actif!$E$33/100","v":{"v":0.0585,"d":"5.85%"}},{"$f":"Actif!$E$29/100","v":{"v":0.027999999999999997,"d":"2.80%"}}]
[null,"#235",64,2031,"H","A_VIE",{"v":0.44999999999999996,"d":"0.45"},{"v":0.38999999999999996,"d":"0.39"},0.6,0.6,85,0,{"$f":"ROUND(Primes!$Q$4*V8348,0)","v":68},{"$f":"'BP Financier'!$G$33*(('BP Financier'!$C$16+'BP Financier'!$D$16+'BP Financier'!$E$16+'BP Financier'!$F$16+'BP Financier'!$G$16)/('BP Financier'!$C$16+'BP Financier'!$C$19+'BP Financier'!$D$16+'BP Financier'!$D$19+'BP Financier'!$E$16+'BP Financier'!$E$19+'BP Financier'!$F$16+'BP Financier'!$F$19+'BP Financier'!$G$19+'BP Financier'!$G$16))*V8348","v":{"v":3421672.0459127007,"d":"3,421,672"}},{"v":1963815.672006318,"d":"1,963,816"},{"$f":"'BP Financier'!$G$44*(('BP Financier'!$C$16+'BP Financier'!$D$16+'BP Financier'!$E$16+'BP Financier'!$F$16+'BP Financier'!$G$16)/('BP Financier'!$C$16+'BP Financier'!$C$19+'BP Financier'!$D$16+'BP Financier'!$D$19+'BP Financier'!$E$16+'BP Financier'!$E$19+'BP Financier'!$C$22+'BP Financier'!$D$22+'BP Financier'!$E$22+'BP Financier'!$F$16+'BP Financier'!$F$19+'BP Financier'!$F$22+'BP Financier'!$G$16+'BP Financier'!$G$19+'BP Financier'!$G$22))*$V8348*X8348/(1-$W8348)","v":{"v":249965.28595861018,"d":"249,965"}},{"$f":"'BP Financier'!$G$44*(('BP Financier'!$C$16+'BP Financier'!$D$16+'BP Financier'!$E$16+'BP Financier'!$F$16+'BP Financier'!$G$16)/('BP Financier'!$C$16+'BP Financier'!$C$19+'BP Financier'!$D$16+'BP Financier'!$D$19+'BP Financier'!$E$16+'BP Financier'!$E$19+'BP Financier'!$C$22+'BP Financier'!$D$22+'BP Financier'!$E$22+'BP Financier'!$F$16+'BP Financier'!$F$19+'BP Financier'!$F$22+'BP Financier'!$G$16+'BP Financier'!$G$19+'BP Financier'!$G$22))*$V8348*Y8348/(1-$W8348)","v":{"v":167103.86519884988,"d":"167,104"}},{"$f":"'BP Financier'!$G$44*(('BP Financier'!$C$16+'BP Financier'!$D$16+'BP Financier'!$E$16+'BP Financier'!$F$16+'BP Financier'!$G$16)/('BP Financier'!$C$16+'BP Financier'!$C$19+'BP Financier'!$D$16+'BP Financier'!$D$19+'BP Financier'!$E$16+'BP Financier'!$E$19+'BP Financier'!$C$22+'BP Financier'!$D$22+'BP Financier'!$E$22+'BP Financier'!$F$16+'BP Financier'!$F$19+'BP Financier'!$F$22+'BP Financier'!$G$16+'BP Financier'!$G$19+'BP Financier'!$G$22))*$V8348*Z8348/(1-$W8348)","v":{"v":1307829.424324883,"d":"1,307,829"}},{"$f":"'BP Financier'!$G$44*(('BP Financier'!$C$16+'BP Financier'!$D$16+'BP Financier'!$E$16+'BP Financier'!$F$16+'BP Financier'!$G$16)/('BP Financier'!$C$16+'BP Financier'!$C$19+'BP Financier'!$D$16+'BP Financier'!$D$19+'BP Financier'!$E$16+'BP Financier'!$E$19+'BP Financier'!$C$22+'BP Financier'!$D$22+'BP Financier'!$E$22+'BP Financier'!$F$16+'BP Financier'!$F$19+'BP Financier'!$F$22+'BP Financier'!$G$16+'BP Financier'!$G$19+'BP Financier'!$G$22))*$V8348*AA8348/(1-$W8348)","v":{"v":161579.77048153256,"d":"161,580"}},{"$f":"'BP Financier'!$G$44*(('BP Financier'!$C$16+'BP Financier'!$D$16+'BP Financier'!$E$16+'BP Financier'!$F$16+'BP Financier'!$G$16)/('BP Financier'!$C$16+'BP Financier'!$C$19+'BP Financier'!$D$16+'BP Financier'!$D$19+'BP Financier'!$E$16+'BP Financier'!$E$19+'BP Financier'!$C$22+'BP Financier'!$D$22+'BP Financier'!$E$22+'BP Financier'!$F$16+'BP Financier'!$F$19+'BP Financier'!$F$22+'BP Financier'!$G$16+'BP Financier'!$G$19+'BP Financier'!$G$22))*$V8348*AB8348/(1-$W8348)","v":{"v":77337.32604244292,"d":"77,337"}},null,{"v":0.006,"d":"0.60%"},{"$f":"Actif!$E$28/100","v":{"v":0.28900000000000003,"d":"28.90%"}},{"$f":"Actif!$E$30/100","v":{"v":0.09050000000000001,"d":"9.05%"}},{"$f":"Actif!$E$31/100","v":{"v":0.0605,"d":"6.05%"}},{"$f":"Actif!$E$32/100","v":{"v":0.47350000000000003,"d":"47.35%"}},{"$f":"Actif!$E$33/100","v":{"v":0.0585,"d":"5.85%"}},{"$f":"Actif!$E$29/100","v":{"v":0.027999999999999997,"d":"2.80%"}}]
[null,"#236",65,2026,"F","A_VIE",{"v":0.44999999999999996,"d":"0.45"},{"v":0.38999999999999996,"d":"0.39"},0.6,0.6,85,0,{"$f":"ROUND(Primes!$Q$4*V8349,0)","v":68},{"$f":"'BP Financier'!$G$33*(('BP Financier'!$C$16+'BP Financier'!$D$16+'BP Financier'!$E$16+'BP Financier'!$F$16+'BP Financier'!$G$16)/('BP Financier'!$C$16+'BP Financier'!$C$19+'BP Financier'!$D$16+'BP Financier'!$D$19+'BP Financier'!$E$16+'BP Financier'!$E$19+'BP Financier'!$F$16+'BP Financier'!$F$19+'BP Financier'!$G$19+'BP Financier'!$G$16))*V8349","v":{"v":3421672.0459127007,"d":"3,421,672"}},{"v":1963815.672006318,"d":"1,963,816"},{"$f":"'BP Financier'!$G$44*(('BP Financier'!$C$16+'BP Financier'!$D$16+'BP Financier'!$E$16+'BP Financier'!$F$16+'BP Financier'!$G$16)/('BP Financier'!$C$16+'BP Financier'!$C$19+'BP Financier'!$D$16+'BP Financier'!$D$19+'BP Financier'!$E$16+'BP Financier'!$E$19+'BP Financier'!$C$22+'BP Financier'!$D$22+'BP Financier'!$E$22+'BP Financier'!$F$16+'BP Financier'!$F$19+'BP Financier'!$F$22+'BP Financier'!$G$16+'BP Financier'!$G$19+'BP Financier'!$G$22))*$V8349*X8349/(1-$W8349)","v":{"v":249965.28595861018,"d":"249,965"}},{"$f":"'BP Financier'!$G$44*(('BP Financier'!$C$16+'BP Financier'!$D$16+'BP Financier'!$E$16+'BP Financier'!$F$16+'BP Financier'!$G$16)/('BP Financier'!$C$16+'BP Financier'!$C$19+'BP Financier'!$D$16+'BP Financier'!$D$19+'BP Financier'!$E$16+'BP Financier'!$E$19+'BP Financier'!$C$22+'BP Financier'!$D$22+'BP Financier'!$E$22+'BP Financier'!$F$16+'BP Financier'!$F$19+'BP Financier'!$F$22+'BP Financier'!$G$16+'BP Financier'!$G$19+'BP Financier'!$G$22))*$V8349*Y8349/(1-$W8349)","v":{"v":167103.86519884988,"d":"167,104"}},{"$f":"'BP Financier'!$G$44*(('BP Financier'!$C$16+'BP Financier'!$D$16+'BP Financier'!$E$16+'BP Financier'!$F$16+'BP Financier'!$G$16)/('BP Financier'!$C$16+'BP Financier'!$C$19+'BP Financier'!$D$16+'BP Financier'!$D$19+'BP Financier'!$E$16+'BP Financier'!$E$19+'BP Financier'!$C$22+'BP Financier'!$D$22+'BP Financier'!$E$22+'BP Financier'!$F$16+'BP Financier'!$F$19+'BP Financier'!$F$22+'BP Financier'!$G$16+'BP Financier'!$G$19+'BP Financier'!$G$22))*$V8349*Z8349/(1-$W8349)","v":{"v":1307829.424324883,"d":"1,307,829"}},{"$f":"'BP Financier'!$G$44*(('BP Financier'!$C$16+'BP Financier'!$D$16+'BP Financier'!$E$16+'BP Financier'!$F$16+'BP Financier'!$G$16)/('BP Financier'!$C$16+'BP Financier'!$C$19+'BP Financier'!$D$16+'BP Financier'!$D$19+'BP Financier'!$E$16+'BP Financier'!$E$19+'BP Financier'!$C$22+'BP Financier'!$D$22+'BP Financier'!$E$22+'BP Financier'!$F$16+'BP Financier'!$F$19+'BP Financier'!$F$22+'BP Financier'!$G$16+'BP Financier'!$G$19+'BP Financier'!$G$22))*$V8349*AA8349/(1-$W8349)","v":{"v":161579.77048153256,"d":"161,580"}},{"$f":"'BP Financier'!$G$44*(('BP Financier'!$C$16+'BP Financier'!$D$16+'BP Financier'!$E$16+'BP Financier'!$F$16+'BP Financier'!$G$16)/('BP Financier'!$C$16+'BP Financier'!$C$19+'BP Financier'!$D$16+'BP Financier'!$D$19+'BP Financier'!$E$16+'BP Financier'!$E$19+'BP Financier'!$C$22+'BP Financier'!$D$22+'BP Financier'!$E$22+'BP Financier'!$F$16+'BP Financier'!$F$19+'BP Financier'!$F$22+'BP Financier'!$G$16+'BP Financier'!$G$19+'BP Financier'!$G$22))*$V8349*AB8349/(1-$W8349)","v":{"v":77337.32604244292,"d":"77,337"}},null,{"v":0.006,"d":"0.60%"},{"$f":"Actif!$E$28/100","v":{"v":0.28900000000000003,"d":"28.90%"}},{"$f":"Actif!$E$30/100","v":{"v":0.09050000000000001,"d":"9.05%"}},{"$f":"Actif!$E$31/100","v":{"v":0.0605,"d":"6.05%"}},{"$f":"Actif!$E$32/100","v":{"v":0.47350000000000003,"d":"47.35%"}},{"$f":"Actif!$E$33/100","v":{"v":0.0585,"d":"5.85%"}},{"$f":"Actif!$E$29/100","v":{"v":0.027999999999999997,"d":"2.80%"}}]
[null,"#237",65,2028,"F","A_VIE",{"v":0.44999999999999996,"d":"0.45"},{"v":0.38999999999999996,"d":"0.39"},0.6,0.6,85,0,{"$f":"ROUND(Primes!$Q$4*V8350,0)","v":68},{"$f":"'BP Financier'!$G$33*(('BP Financier'!$C$16+'BP Financier'!$D$16+'BP Financier'!$E$16+'BP Financier'!$F$16+'BP Financier'!$G$16)/('BP Financier'!$C$16+'BP Financier'!$C$19+'BP Financier'!$D$16+'BP Financier'!$D$19+'BP Financier'!$E$16+'BP Financier'!$E$19+'BP Financier'!$F$16+'BP Financier'!$F$19+'BP Financier'!$G$19+'BP Financier'!$G$16))*V8350","v":{"v":3421672.0459127007,"d":"3,421,672"}},{"v":1963815.672006318,"d":"1,963,816"},{"$f":"'BP Financier'!$G$44*(('BP Financier'!$C$16+'BP Financier'!$D$16+'BP Financier'!$E$16+'BP Financier'!$F$16+'BP Financier'!$G$16)/('BP Financier'!$C$16+'BP Financier'!$C$19+'BP Financier'!$D$16+'BP Financier'!$D$19+'BP Financier'!$E$16+'BP Financier'!$E$19+'BP Financier'!$C$22+'BP Financier'!$D$22+'BP Financier'!$E$22+'BP Financier'!$F$16+'BP Financier'!$F$19+'BP Financier'!$F$22+'BP Financier'!$G$16+'BP Financier'!$G$19+'BP Financier'!$G$22))*$V8350*X8350/(1-$W8350)","v":{"v":249965.28595861018,"d":"249,965"}},{"$f":"'BP Financier'!$G$44*(('BP Financier'!$C$16+'BP Financier'!$D$16+'BP Financier'!$E$16+'BP Financier'!$F$16+'BP Financier'!$G$16)/('BP Financier'!$C$16+'BP Financier'!$C$19+'BP Financier'!$D$16+'BP Financier'!$D$19+'BP Financier'!$E$16+'BP Financier'!$E$19+'BP Financier'!$C$22+'BP Financier'!$D$22+'BP Financier'!$E$22+'BP Financier'!$F$16+'BP Financier'!$F$19+'BP Financier'!$F$22+'BP Financier'!$G$16+'BP Financier'!$G$19+'BP Financier'!$G$22))*$V8350*Y8350/(1-$W8350)","v":{"v":167103.86519884988,"d":"167,104"}},{"$f":"'BP Financier'!$G$44*(('BP Financier'!$C$16+'BP Financier'!$D$16+'BP Financier'!$E$16+'BP Financier'!$F$16+'BP Financier'!$G$16)/('BP Financier'!$C$16+'BP Financier'!$C$19+'BP Financier'!$D$16+'BP Financier'!$D$19+'BP Financier'!$E$16+'BP Financier'!$E$19+'BP Financier'!$C$22+'BP Financier'!$D$22+'BP Financier'!$E$22+'BP Financier'!$F$16+'BP Financier'!$F$19+'BP Financier'!$F$22+'BP Financier'!$G$16+'BP Financier'!$G$19+'BP Financier'!$G$22))*$V8350*Z8350/(1-$W8350)","v":{"v":1307829.424324883,"d":"1,307,829"}},{"$f":"'BP Financier'!$G$44*(('BP Financier'!$C$16+'BP Financier'!$D$16+'BP Financier'!$E$16+'BP Financier'!$F$16+'BP Financier'!$G$16)/('BP Financier'!$C$16+'BP Financier'!$C$19+'BP Financier'!$D$16+'BP Financier'!$D$19+'BP Financier'!$E$16+'BP Financier'!$E$19+'BP Financier'!$C$22+'BP Financier'!$D$22+'BP Financier'!$E$22+'BP Financier'!$F$16+'BP Financier'!$F$19+'BP Financier'!$F$22+'BP Financier'!$G$16+'BP Financier'!$G$19+'BP Financier'!$G$22))*$V8350*AA8350/(1-$W8350)","v":{"v":161579.77048153256,"d":"161,580"}},{"$f":"'BP Financier'!$G$44*(('BP Financier'!$C$16+'BP Financier'!$D$16+'BP Financier'!$E$16+'BP Financier'!$F$16+'BP Financier'!$G$16)/('BP Financier'!$C$16+'BP Financier'!$C$19+'BP Financier'!$D$16+'BP Financier'!$D$19+'BP Financier'!$E$16+'BP Financier'!$E$19+'BP Financier'!$C$22+'BP Financier'!$D$22+'BP Financier'!$E$22+'BP Financier'!$F$16+'BP Financier'!$F$19+'BP Financier'!$F$22+'BP Financier'!$G$16+'BP Financier'!$G$19+'BP Financier'!$G$22))*$V8350*AB8350/(1-$W8350)","v":{"v":77337.32604244292,"d":"77,337"}},null,{"v":0.006,"d":"0.60%"},{"$f":"Actif!$E$28/100","v":{"v":0.28900000000000003,"d":"28.90%"}},{"$f":"Actif!$E$30/100","v":{"v":0.09050000000000001,"d":"9.05%"}},{"$f":"Actif!$E$31/100","v":{"v":0.0605,"d":"6.05%"}},{"$f":"Actif!$E$32/100","v":{"v":0.47350000000000003,"d":"47.35%"}},{"$f":"Actif!$E$33/100","v":{"v":0.0585,"d":"5.85%"}},{"$f":"Actif!$E$29/100","v":{"v":0.027999999999999997,"d":"2.80%"}}]
[null,"#238",65,2029,"F","A_VIE",{"v":0.44999999999999996,"d":"0.45"},{"v":0.38999999999999996,"d":"0.39"},0.6,0.6,85,0,{"$f":"ROUND(Primes!$Q$4*V8351,0)","v":68},{"$f":"'BP Financier'!$G$33*(('BP Financier'!$C$16+'BP Financier'!$D$16+'BP Financier'!$E$16+'BP Financier'!$F$16+'BP Financier'!$G$16)/('BP Financier'!$C$16+'BP Financier'!$C$19+'BP Financier'!$D$16+'BP Financier'!$D$19+'BP Financier'!$E$16+'BP Financier'!$E$19+'BP Financier'!$F$16+'BP Financier'!$F$19+'BP Financier'!$G$19+'BP Financier'!$G$16))*V8351","v":{"v":3421672.0459127007,"d":"3,421,672"}},{"v":1963815.672006318,"d":"1,963,816"},{"$f":"'BP Financier'!$G$44*(('BP Financier'!$C$16+'BP Financier'!$D$16+'BP Financier'!$E$16+'BP Financier'!$F$16+'BP Financier'!$G$16)/('BP Financier'!$C$16+'BP Financier'!$C$19+'BP Financier'!$D$16+'BP Financier'!$D$19+'BP Financier'!$E$16+'BP Financier'!$E$19+'BP Financier'!$C$22+'BP Financier'!$D$22+'BP Financier'!$E$22+'BP Financier'!$F$16+'BP Financier'!$F$19+'BP Financier'!$F$22+'BP Financier'!$G$16+'BP Financier'!$G$19+'BP Financier'!$G$22))*$V8351*X8351/(1-$W8351)","v":{"v":249965.28595861018,"d":"249,965"}},{"$f":"'BP Financier'!$G$44*(('BP Financier'!$C$16+'BP Financier'!$D$16+'BP Financier'!$E$16+'BP Financier'!$F$16+'BP Financier'!$G$16)/('BP Financier'!$C$16+'BP Financier'!$C$19+'BP Financier'!$D$16+'BP Financier'!$D$19+'BP Financier'!$E$16+'BP Financier'!$E$19+'BP Financier'!$C$22+'BP Financier'!$D$22+'BP Financier'!$E$22+'BP Financier'!$F$16+'BP Financier'!$F$19+'BP Financier'!$F$22+'BP Financier'!$G$16+'BP Financier'!$G$19+'BP Financier'!$G$22))*$V8351*Y8351/(1-$W8351)","v":{"v":167103.86519884988,"d":"167,104"}},{"$f":"'BP Financier'!$G$44*(('BP Financier'!$C$16+'BP Financier'!$D$16+'BP Financier'!$E$16+'BP Financier'!$F$16+'BP Financier'!$G$16)/('BP Financier'!$C$16+'BP Financier'!$C$19+'BP Financier'!$D$16+'BP Financier'!$D$19+'BP Financier'!$E$16+'BP Financier'!$E$19+'BP Financier'!$C$22+'BP Financier'!$D$22+'BP Financier'!$E$22+'BP Financier'!$F$16+'BP Financier'!$F$19+'BP Financier'!$F$22+'BP Financier'!$G$16+'BP Financier'!$G$19+'BP Financier'!$G$22))*$V8351*Z8351/(1-$W8351)","v":{"v":1307829.424324883,"d":"1,307,829"}},{"$f":"'BP Financier'!$G$44*(('BP Financier'!$C$16+'BP Financier'!$D$16+'BP Financier'!$E$16+'BP Financier'!$F$16+'BP Financier'!$G$16)/('BP Financier'!$C$16+'BP Financier'!$C$19+'BP Financier'!$D$16+'BP Financier'!$D$19+'BP Financier'!$E$16+'BP Financier'!$E$19+'BP Financier'!$C$22+'BP Financier'!$D$22+'BP Financier'!$E$22+'BP Financier'!$F$16+'BP Financier'!$F$19+'BP Financier'!$F$22+'BP Financier'!$G$16+'BP Financier'!$G$19+'BP Financier'!$G$22))*$V8351*AA8351/(1-$W8351)","v":{"v":161579.77048153256,"d":"161,580"}},{"$f":"'BP Financier'!$G$44*(('BP Financier'!$C$16+'BP Financier'!$D$16+'BP Financier'!$E$16+'BP Financier'!$F$16+'BP Financier'!$G$16)/('BP Financier'!$C$16+'BP Financier'!$C$19+'BP Financier'!$D$16+'BP Financier'!$D$19+'BP Financier'!$E$16+'BP Financier'!$E$19+'BP Financier'!$C$22+'BP Financier'!$D$22+'BP Financier'!$E$22+'BP Financier'!$F$16+'BP Financier'!$F$19+'BP Financier'!$F$22+'BP Financier'!$G$16+'BP Financier'!$G$19+'BP Financier'!$G$22))*$V8351*AB8351/(1-$W8351)","v":{"v":77337.32604244292,"d":"77,337"}},null,{"v":0.006,"d":"0.60%"},{"$f":"Actif!$E$28/100","v":{"v":0.28900000000000003,"d":"28.90%"}},{"$f":"Actif!$E$30/100","v":{"v":0.09050000000000001,"d":"9.05%"}},{"$f":"Actif!$E$31/100","v":{"v":0.0605,"d":"6.05%"}},{"$f":"Actif!$E$32/100","v":{"v":0.47350000000000003,"d":"47.35%"}},{"$f":"Actif!$E$33/100","v":{"v":0.0585,"d":"5.85%"}},{"$f":"Actif!$E$29/100","v":{"v":0.027999999999999997,"d":"2.80%"}}]
[null,"#239",65,2030,"F","A_VIE",{"v":0.44999999999999996,"d":"0.45"},{"v":0.38999999999999996,"d":"0.39"},0.6,0.6,85,0,{"$f":"ROUND(Primes!$Q$4*V8352,0)","v":68},{"$f":"'BP Financier'!$G$33*(('BP Financier'!$C$16+'BP Financier'!$D$16+'BP Financier'!$E$16+'BP Financier'!$F$16+'BP Financier'!$G$16)/('BP Financier'!$C$16+'BP Financier'!$C$19+'BP Financier'!$D$16+'BP Financier'!$D$19+'BP Financier'!$E$16+'BP Financier'!$E$19+'BP Financier'!$F$16+'BP Financier'!$F$19+'BP Financier'!$G$19+'BP Financier'!$G$16))*V8352","v":{"v":3421672.0459127007,"d":"3,421,672"}},{"v":1963815.672006318,"d":"1,963,816"},{"$f":"'BP Financier'!$G$44*(('BP Financier'!$C$16+'BP Financier'!$D$16+'BP Financier'!$E$16+'BP Financier'!$F$16+'BP Financier'!$G$16)/('BP Financier'!$C$16+'BP Financier'!$C$19+'BP Financier'!$D$16+'BP Financier'!$D$19+'BP Financier'!$E$16+'BP Financier'!$E$19+'BP Financier'!$C$22+'BP Financier'!$D$22+'BP Financier'!$E$22+'BP Financier'!$F$16+'BP Financier'!$F$19+'BP Financier'!$F$22+'BP Financier'!$G$16+'BP Financier'!$G$19+'BP Financier'!$G$22))*$V8352*X8352/(1-$W8352)","v":{"v":249965.28595861018,"d":"249,965"}},{"$f":"'BP Financier'!$G$44*(('BP Financier'!$C$16+'BP Financier'!$D$16+'BP Financier'!$E$16+'BP Financier'!$F$16+'BP Financier'!$G$16)/('BP Financier'!$C$16+'BP Financier'!$C$19+'BP Financier'!$D$16+'BP Financier'!$D$19+'BP Financier'!$E$16+'BP Financier'!$E$19+'BP Financier'!$C$22+'BP Financier'!$D$22+'BP Financier'!$E$22+'BP Financier'!$F$16+'BP Financier'!$F$19+'BP Financier'!$F$22+'BP Financier'!$G$16+'BP Financier'!$G$19+'BP Financier'!$G$22))*$V8352*Y8352/(1-$W8352)","v":{"v":167103.86519884988,"d":"167,104"}},{"$f":"'BP Financier'!$G$44*(('BP Financier'!$C$16+'BP Financier'!$D$16+'BP Financier'!$E$16+'BP Financier'!$F$16+'BP Financier'!$G$16)/('BP Financier'!$C$16+'BP Financier'!$C$19+'BP Financier'!$D$16+'BP Financier'!$D$19+'BP Financier'!$E$16+'BP Financier'!$E$19+'BP Financier'!$C$22+'BP Financier'!$D$22+'BP Financier'!$E$22+'BP Financier'!$F$16+'BP Financier'!$F$19+'BP Financier'!$F$22+'BP Financier'!$G$16+'BP Financier'!$G$19+'BP Financier'!$G$22))*$V8352*Z8352/(1-$W8352)","v":{"v":1307829.424324883,"d":"1,307,829"}},{"$f":"'BP Financier'!$G$44*(('BP Financier'!$C$16+'BP Financier'!$D$16+'BP Financier'!$E$16+'BP Financier'!$F$16+'BP Financier'!$G$16)/('BP Financier'!$C$16+'BP Financier'!$C$19+'BP Financier'!$D$16+'BP Financier'!$D$19+'BP Financier'!$E$16+'BP Financier'!$E$19+'BP Financier'!$C$22+'BP Financier'!$D$22+'BP Financier'!$E$22+'BP Financier'!$F$16+'BP Financier'!$F$19+'BP Financier'!$F$22+'BP Financier'!$G$16+'BP Financier'!$G$19+'BP Financier'!$G$22))*$V8352*AA8352/(1-$W8352)","v":{"v":161579.77048153256,"d":"161,580"}},{"$f":"'BP Financier'!$G$44*(('BP Financier'!$C$16+'BP Financier'!$D$16+'BP Financier'!$E$16+'BP Financier'!$F$16+'BP Financier'!$G$16)/('BP Financier'!$C$16+'BP Financier'!$C$19+'BP Financier'!$D$16+'BP Financier'!$D$19+'BP Financier'!$E$16+'BP Financier'!$E$19+'BP Financier'!$C$22+'BP Financier'!$D$22+'BP Financier'!$E$22+'BP Financier'!$F$16+'BP Financier'!$F$19+'BP Financier'!$F$22+'BP Financier'!$G$16+'BP Financier'!$G$19+'BP Financier'!$G$22))*$V8352*AB8352/(1-$W8352)","v":{"v":77337.32604244292,"d":"77,337"}},null,{"v":0.006,"d":"0.60%"},{"$f":"Actif!$E$28/100","v":{"v":0.28900000000000003,"d":"28.90%"}},{"$f":"Actif!$E$30/100","v":{"v":0.09050000000000001,"d":"9.05%"}},{"$f":"Actif!$E$31/100","v":{"v":0.0605,"d":"6.05%"}},{"$f":"Actif!$E$32/100","v":{"v":0.47350000000000003,"d":"47.35%"}},{"$f":"Actif!$E$33/100","v":{"v":0.0585,"d":"5.85%"}},{"$f":"Actif!$E$29/100","v":{"v":0.027999999999999997,"d":"2.80%"}}]
[null,"#240",65,2031,"F","A_VIE",{"v":0.44999999999999996,"d":"0.45"},{"v":0.38999999999999996,"d":"0.39"},0.6,0.6,85,0,{"$f":"ROUND(Primes!$Q$4*V8353,0)","v":68},{"$f":"'BP Financier'!$G$33*(('BP Financier'!$C$16+'BP Financier'!$D$16+'BP Financier'!$E$16+'BP Financier'!$F$16+'BP Financier'!$G$16)/('BP Financier'!$C$16+'BP Financier'!$C$19+'BP Financier'!$D$16+'BP Financier'!$D$19+'BP Financier'!$E$16+'BP Financier'!$E$19+'BP Financier'!$F$16+'BP Financier'!$F$19+'BP Financier'!$G$19+'BP Financier'!$G$16))*V8353","v":{"v":3421672.0459127007,"d":"3,421,672"}},{"v":1963815.672006318,"d":"1,963,816"},{"$f":"'BP Financier'!$G$44*(('BP Financier'!$C$16+'BP Financier'!$D$16+'BP Financier'!$E$16+'BP Financier'!$F$16+'BP Financier'!$G$16)/('BP Financier'!$C$16+'BP Financier'!$C$19+'BP Financier'!$D$16+'BP Financier'!$D$19+'BP Financier'!$E$16+'BP Financier'!$E$19+'BP Financier'!$C$22+'BP Financier'!$D$22+'BP Financier'!$E$22+'BP Financier'!$F$16+'BP Financier'!$F$19+'BP Financier'!$F$22+'BP Financier'!$G$16+'BP Financier'!$G$19+'BP Financier'!$G$22))*$V8353*X8353/(1-$W8353)","v":{"v":249965.28595861018,"d":"249,965"}},{"$f":"'BP Financier'!$G$44*(('BP Financier'!$C$16+'BP Financier'!$D$16+'BP Financier'!$E$16+'BP Financier'!$F$16+'BP Financier'!$G$16)/('BP Financier'!$C$16+'BP Financier'!$C$19+'BP Financier'!$D$16+'BP Financier'!$D$19+'BP Financier'!$E$16+'BP Financier'!$E$19+'BP Financier'!$C$22+'BP Financier'!$D$22+'BP Financier'!$E$22+'BP Financier'!$F$16+'BP Financier'!$F$19+'BP Financier'!$F$22+'BP Financier'!$G$16+'BP Financier'!$G$19+'BP Financier'!$G$22))*$V8353*Y8353/(1-$W8353)","v":{"v":167103.86519884988,"d":"167,104"}},{"$f":"'BP Financier'!$G$44*(('BP Financier'!$C$16+'BP Financier'!$D$16+'BP Financier'!$E$16+'BP Financier'!$F$16+'BP Financier'!$G$16)/('BP Financier'!$C$16+'BP Financier'!$C$19+'BP Financier'!$D$16+'BP Financier'!$D$19+'BP Financier'!$E$16+'BP Financier'!$E$19+'BP Financier'!$C$22+'BP Financier'!$D$22+'BP Financier'!$E$22+'BP Financier'!$F$16+'BP Financier'!$F$19+'BP Financier'!$F$22+'BP Financier'!$G$16+'BP Financier'!$G$19+'BP Financier'!$G$22))*$V8353*Z8353/(1-$W8353)","v":{"v":1307829.424324883,"d":"1,307,829"}},{"$f":"'BP Financier'!$G$44*(('BP Financier'!$C$16+'BP Financier'!$D$16+'BP Financier'!$E$16+'BP Financier'!$F$16+'BP Financier'!$G$16)/('BP Financier'!$C$16+'BP Financier'!$C$19+'BP Financier'!$D$16+'BP Financier'!$D$19+'BP Financier'!$E$16+'BP Financier'!$E$19+'BP Financier'!$C$22+'BP Financier'!$D$22+'BP Financier'!$E$22+'BP Financier'!$F$16+'BP Financier'!$F$19+'BP Financier'!$F$22+'BP Financier'!$G$16+'BP Financier'!$G$19+'BP Financier'!$G$22))*$V8353*AA8353/(1-$W8353)","v":{"v":161579.77048153256,"d":"161,580"}},{"$f":"'BP Financier'!$G$44*(('BP Financier'!$C$16+'BP Financier'!$D$16+'BP Financier'!$E$16+'BP Financier'!$F$16+'BP Financier'!$G$16)/('BP Financier'!$C$16+'BP Financier'!$C$19+'BP Financier'!$D$16+'BP Financier'!$D$19+'BP Financier'!$E$16+'BP Financier'!$E$19+'BP Financier'!$C$22+'BP Financier'!$D$22+'BP Financier'!$E$22+'BP Financier'!$F$16+'BP Financier'!$F$19+'BP Financier'!$F$22+'BP Financier'!$G$16+'BP Financier'!$G$19+'BP Financier'!$G$22))*$V8353*AB8353/(1-$W8353)","v":{"v":77337.32604244292,"d":"77,337"}},null,{"v":0.006,"d":"0.60%"},{"$f":"Actif!$E$28/100","v":{"v":0.28900000000000003,"d":"28.90%"}},{"$f":"Actif!$E$30/100","v":{"v":0.09050000000000001,"d":"9.05%"}},{"$f":"Actif!$E$31/100","v":{"v":0.0605,"d":"6.05%"}},{"$f":"Actif!$E$32/100","v":{"v":0.47350000000000003,"d":"47.35%"}},{"$f":"Actif!$E$33/100","v":{"v":0.0585,"d":"5.85%"}},{"$f":"Actif!$E$29/100","v":{"v":0.027999999999999997,"d":"2.80%"}}]
[null,"#241",70,2026,"H","A_VIE",{"v":0.44999999999999996,"d":"0.45"},{"v":0.38999999999999996,"d":"0.39"},0.6,0.6,85,0,{"$f":"ROUND(Primes!$Q$4*V8354,0)","v":11},{"$f":"'BP Financier'!$G$33*(('BP Financier'!$C$16+'BP Financier'!$D$16+'BP Financier'!$E$16+'BP Financier'!$F$16+'BP Financier'!$G$16)/('BP Financier'!$C$16+'BP Financier'!$C$19+'BP Financier'!$D$16+'BP Financier'!$D$19+'BP Financier'!$E$16+'BP Financier'!$E$19+'BP Financier'!$F$16+'BP Financier'!$F$19+'BP Financier'!$G$19+'BP Financier'!$G$16))*V8354","v":{"v":570278.6743187835,"d":"570,279"}},{"v":327302.6120010531,"d":"327,303"},{"$f":"'BP Financier'!$G$44*(('BP Financier'!$C$16+'BP Financier'!$D$16+'BP Financier'!$E$16+'BP Financier'!$F$16+'BP Financier'!$G$16)/('BP Financier'!$C$16+'BP Financier'!$C$19+'BP Financier'!$D$16+'BP Financier'!$D$19+'BP Financier'!$E$16+'BP Financier'!$E$19+'BP Financier'!$C$22+'BP Financier'!$D$22+'BP Financier'!$E$22+'BP Financier'!$F$16+'BP Financier'!$F$19+'BP Financier'!$F$22+'BP Financier'!$G$16+'BP Financier'!$G$19+'BP Financier'!$G$22))*$V8354*X8354/(1-$W8354)","v":{"v":41660.880993101695,"d":"41,661"}},{"$f":"'BP Financier'!$G$44*(('BP Financier'!$C$16+'BP Financier'!$D$16+'BP Financier'!$E$16+'BP Financier'!$F$16+'BP Financier'!$G$16)/('BP Financier'!$C$16+'BP Financier'!$C$19+'BP Financier'!$D$16+'BP Financier'!$D$19+'BP Financier'!$E$16+'BP Financier'!$E$19+'BP Financier'!$C$22+'BP Financier'!$D$22+'BP Financier'!$E$22+'BP Financier'!$F$16+'BP Financier'!$F$19+'BP Financier'!$F$22+'BP Financier'!$G$16+'BP Financier'!$G$19+'BP Financier'!$G$22))*$V8354*Y8354/(1-$W8354)","v":{"v":27850.644199808314,"d":"27,851"}},{"$f":"'BP Financier'!$G$44*(('BP Financier'!$C$16+'BP Financier'!$D$16+'BP Financier'!$E$16+'BP Financier'!$F$16+'BP Financier'!$G$16)/('BP Financier'!$C$16+'BP Financier'!$C$19+'BP Financier'!$D$16+'BP Financier'!$D$19+'BP Financier'!$E$16+'BP Financier'!$E$19+'BP Financier'!$C$22+'BP Financier'!$D$22+'BP Financier'!$E$22+'BP Financier'!$F$16+'BP Financier'!$F$19+'BP Financier'!$F$22+'BP Financier'!$G$16+'BP Financier'!$G$19+'BP Financier'!$G$22))*$V8354*Z8354/(1-$W8354)","v":{"v":217971.57072081385,"d":"217,972"}},{"$f":"'BP Financier'!$G$44*(('BP Financier'!$C$16+'BP Financier'!$D$16+'BP Financier'!$E$16+'BP Financier'!$F$16+'BP Financier'!$G$16)/('BP Financier'!$C$16+'BP Financier'!$C$19+'BP Financier'!$D$16+'BP Financier'!$D$19+'BP Financier'!$E$16+'BP Financier'!$E$19+'BP Financier'!$C$22+'BP Financier'!$D$22+'BP Financier'!$E$22+'BP Financier'!$F$16+'BP Financier'!$F$19+'BP Financier'!$F$22+'BP Financier'!$G$16+'BP Financier'!$G$19+'BP Financier'!$G$22))*$V8354*AA8354/(1-$W8354)","v":{"v":26929.96174692209,"d":"26,930"}},{"$f":"'BP Financier'!$G$44*(('BP Financier'!$C$16+'BP Financier'!$D$16+'BP Financier'!$E$16+'BP Financier'!$F$16+'BP Financier'!$G$16)/('BP Financier'!$C$16+'BP Financier'!$C$19+'BP Financier'!$D$16+'BP Financier'!$D$19+'BP Financier'!$E$16+'BP Financier'!$E$19+'BP Financier'!$C$22+'BP Financier'!$D$22+'BP Financier'!$E$22+'BP Financier'!$F$16+'BP Financier'!$F$19+'BP Financier'!$F$22+'BP Financier'!$G$16+'BP Financier'!$G$19+'BP Financier'!$G$22))*$V8354*AB8354/(1-$W8354)","v":{"v":12889.554340407152,"d":"12,890"}},null,{"v":1E-3,"d":"0.10%"},{"$f":"Actif!$E$28/100","v":{"v":0.28900000000000003,"d":"28.90%"}},{"$f":"Actif!$E$30/100","v":{"v":0.09050000000000001,"d":"9.05%"}},{"$f":"Actif!$E$31/100","v":{"v":0.0605,"d":"6.05%"}},{"$f":"Actif!$E$32/100","v":{"v":0.47350000000000003,"d":"47.35%"}},{"$f":"Actif!$E$33/100","v":{"v":0.0585,"d":"5.85%"}},{"$f":"Actif!$E$29/100","v":{"v":0.027999999999999997,"d":"2.80%"}}]
[null,"#242",70,2028,"H","A_VIE",{"v":0.44999999999999996,"d":"0.45"},{"v":0.38999999999999996,"d":"0.39"},0.6,0.6,85,0,{"$f":"ROUND(Primes!$Q$4*V8355,0)","v":11},{"$f":"'BP Financier'!$G$33*(('BP Financier'!$C$16+'BP Financier'!$D$16+'BP Financier'!$E$16+'BP Financier'!$F$16+'BP Financier'!$G$16)/('BP Financier'!$C$16+'BP Financier'!$C$19+'BP Financier'!$D$16+'BP Financier'!$D$19+'BP Financier'!$E$16+'BP Financier'!$E$19+'BP Financier'!$F$16+'BP Financier'!$F$19+'BP Financier'!$G$19+'BP Financier'!$G$16))*V8355","v":{"v":570278.6743187835,"d":"570,279"}},{"$f":"SUM(P8355:T8355)","v":{"v":327302.6120010531,"d":"327,303"}},{"$f":"'BP Financier'!$G$44*(('BP Financier'!$C$16+'BP Financier'!$D$16+'BP Financier'!$E$16+'BP Financier'!$F$16+'BP Financier'!$G$16)/('BP Financier'!$C$16+'BP Financier'!$C$19+'BP Financier'!$D$16+'BP Financier'!$D$19+'BP Financier'!$E$16+'BP Financier'!$E$19+'BP Financier'!$C$22+'BP Financier'!$D$22+'BP Financier'!$E$22+'BP Financier'!$F$16+'BP Financier'!$F$19+'BP Financier'!$F$22+'BP Financier'!$G$16+'BP Financier'!$G$19+'BP Financier'!$G$22))*$V8355*X8355/(1-$W8355)","v":{"v":41660.880993101695,"d":"41,661"}},{"$f":"'BP Financier'!$G$44*(('BP Financier'!$C$16+'BP Financier'!$D$16+'BP Financier'!$E$16+'BP Financier'!$F$16+'BP Financier'!$G$16)/('BP Financier'!$C$16+'BP Financier'!$C$19+'BP Financier'!$D$16+'BP Financier'!$D$19+'BP Financier'!$E$16+'BP Financier'!$E$19+'BP Financier'!$C$22+'BP Financier'!$D$22+'BP Financier'!$E$22+'BP Financier'!$F$16+'BP Financier'!$F$19+'BP Financier'!$F$22+'BP Financier'!$G$16+'BP Financier'!$G$19+'BP Financier'!$G$22))*$V8355*Y8355/(1-$W8355)","v":{"v":27850.644199808314,"d":"27,851"}},{"$f":"'BP Financier'!$G$44*(('BP Financier'!$C$16+'BP Financier'!$D$16+'BP Financier'!$E$16+'BP Financier'!$F$16+'BP Financier'!$G$16)/('BP Financier'!$C$16+'BP Financier'!$C$19+'BP Financier'!$D$16+'BP Financier'!$D$19+'BP Financier'!$E$16+'BP Financier'!$E$19+'BP Financier'!$C$22+'BP Financier'!$D$22+'BP Financier'!$E$22+'BP Financier'!$F$16+'BP Financier'!$F$19+'BP Financier'!$F$22+'BP Financier'!$G$16+'BP Financier'!$G$19+'BP Financier'!$G$22))*$V8355*Z8355/(1-$W8355)","v":{"v":217971.57072081385,"d":"217,972"}},{"$f":"'BP Financier'!$G$44*(('BP Financier'!$C$16+'BP Financier'!$D$16+'BP Financier'!$E$16+'BP Financier'!$F$16+'BP Financier'!$G$16)/('BP Financier'!$C$16+'BP Financier'!$C$19+'BP Financier'!$D$16+'BP Financier'!$D$19+'BP Financier'!$E$16+'BP Financier'!$E$19+'BP Financier'!$C$22+'BP Financier'!$D$22+'BP Financier'!$E$22+'BP Financier'!$F$16+'BP Financier'!$F$19+'BP Financier'!$F$22+'BP Financier'!$G$16+'BP Financier'!$G$19+'BP Financier'!$G$22))*$V8355*AA8355/(1-$W8355)","v":{"v":26929.96174692209,"d":"26,930"}},{"$f":"'BP Financier'!$G$44*(('BP Financier'!$C$16+'BP Financier'!$D$16+'BP Financier'!$E$16+'BP Financier'!$F$16+'BP Financier'!$G$16)/('BP Financier'!$C$16+'BP Financier'!$C$19+'BP Financier'!$D$16+'BP Financier'!$D$19+'BP Financier'!$E$16+'BP Financier'!$E$19+'BP Financier'!$C$22+'BP Financier'!$D$22+'BP Financier'!$E$22+'BP Financier'!$F$16+'BP Financier'!$F$19+'BP Financier'!$F$22+'BP Financier'!$G$16+'BP Financier'!$G$19+'BP Financier'!$G$22))*$V8355*AB8355/(1-$W8355)","v":{"v":12889.554340407152,"d":"12,890"}},null,{"v":1E-3,"d":"0.10%"},{"$f":"Actif!$E$28/100","v":{"v":0.28900000000000003,"d":"28.90%"}},{"$f":"Actif!$E$30/100","v":{"v":0.09050000000000001,"d":"9.05%"}},{"$f":"Actif!$E$31/100","v":{"v":0.0605,"d":"6.05%"}},{"$f":"Actif!$E$32/100","v":{"v":0.47350000000000003,"d":"47.35%"}},{"$f":"Actif!$E$33/100","v":{"v":0.0585,"d":"5.85%"}},{"$f":"Actif!$E$29/100","v":{"v":0.027999999999999997,"d":"2.80%"}}]
[null,"#243",70,2029,"H","A_VIE",{"v":0.44999999999999996,"d":"0.45"},{"v":0.38999999999999996,"d":"0.39"},0.6,0.6,85,0,{"$f":"ROUND(Primes!$Q$4*V8356,0)","v":11},{"$f":"'BP Financier'!$G$33*(('BP Financier'!$C$16+'BP Financier'!$D$16+'BP Financier'!$E$16+'BP Financier'!$F$16+'BP Financier'!$G$16)/('BP Financier'!$C$16+'BP Financier'!$C$19+'BP Financier'!$D$16+'BP Financier'!$D$19+'BP Financier'!$E$16+'BP Financier'!$E$19+'BP Financier'!$F$16+'BP Financier'!$F$19+'BP Financier'!$G$19+'BP Financier'!$G$16))*V8356","v":{"v":570278.6743187835,"d":"570,279"}},{"v":327302.6120010531,"d":"327,303"},{"$f":"'BP Financier'!$G$44*(('BP Financier'!$C$16+'BP Financier'!$D$16+'BP Financier'!$E$16+'BP Financier'!$F$16+'BP Financier'!$G$16)/('BP Financier'!$C$16+'BP Financier'!$C$19+'BP Financier'!$D$16+'BP Financier'!$D$19+'BP Financier'!$E$16+'BP Financier'!$E$19+'BP Financier'!$C$22+'BP Financier'!$D$22+'BP Financier'!$E$22+'BP Financier'!$F$16+'BP Financier'!$F$19+'BP Financier'!$F$22+'BP Financier'!$G$16+'BP Financier'!$G$19+'BP Financier'!$G$22))*$V8356*X8356/(1-$W8356)","v":{"v":41660.880993101695,"d":"41,661"}},{"$f":"'BP Financier'!$G$44*(('BP Financier'!$C$16+'BP Financier'!$D$16+'BP Financier'!$E$16+'BP Financier'!$F$16+'BP Financier'!$G$16)/('BP Financier'!$C$16+'BP Financier'!$C$19+'BP Financier'!$D$16+'BP Financier'!$D$19+'BP Financier'!$E$16+'BP Financier'!$E$19+'BP Financier'!$C$22+'BP Financier'!$D$22+'BP Financier'!$E$22+'BP Financier'!$F$16+'BP Financier'!$F$19+'BP Financier'!$F$22+'BP Financier'!$G$16+'BP Financier'!$G$19+'BP Financier'!$G$22))*$V8356*Y8356/(1-$W8356)","v":{"v":27850.644199808314,"d":"27,851"}},{"$f":"'BP Financier'!$G$44*(('BP Financier'!$C$16+'BP Financier'!$D$16+'BP Financier'!$E$16+'BP Financier'!$F$16+'BP Financier'!$G$16)/('BP Financier'!$C$16+'BP Financier'!$C$19+'BP Financier'!$D$16+'BP Financier'!$D$19+'BP Financier'!$E$16+'BP Financier'!$E$19+'BP Financier'!$C$22+'BP Financier'!$D$22+'BP Financier'!$E$22+'BP Financier'!$F$16+'BP Financier'!$F$19+'BP Financier'!$F$22+'BP Financier'!$G$16+'BP Financier'!$G$19+'BP Financier'!$G$22))*$V8356*Z8356/(1-$W8356)","v":{"v":217971.57072081385,"d":"217,972"}},{"$f":"'BP Financier'!$G$44*(('BP Financier'!$C$16+'BP Financier'!$D$16+'BP Financier'!$E$16+'BP Financier'!$F$16+'BP Financier'!$G$16)/('BP Financier'!$C$16+'BP Financier'!$C$19+'BP Financier'!$D$16+'BP Financier'!$D$19+'BP Financier'!$E$16+'BP Financier'!$E$19+'BP Financier'!$C$22+'BP Financier'!$D$22+'BP Financier'!$E$22+'BP Financier'!$F$16+'BP Financier'!$F$19+'BP Financier'!$F$22+'BP Financier'!$G$16+'BP Financier'!$G$19+'BP Financier'!$G$22))*$V8356*AA8356/(1-$W8356)","v":{"v":26929.96174692209,"d":"26,930"}},{"$f":"'BP Financier'!$G$44*(('BP Financier'!$C$16+'BP Financier'!$D$16+'BP Financier'!$E$16+'BP Financier'!$F$16+'BP Financier'!$G$16)/('BP Financier'!$C$16+'BP Financier'!$C$19+'BP Financier'!$D$16+'BP Financier'!$D$19+'BP Financier'!$E$16+'BP Financier'!$E$19+'BP Financier'!$C$22+'BP Financier'!$D$22+'BP Financier'!$E$22+'BP Financier'!$F$16+'BP Financier'!$F$19+'BP Financier'!$F$22+'BP Financier'!$G$16+'BP Financier'!$G$19+'BP Financier'!$G$22))*$V8356*AB8356/(1-$W8356)","v":{"v":12889.554340407152,"d":"12,890"}},null,{"v":1E-3,"d":"0.10%"},{"$f":"Actif!$E$28/100","v":{"v":0.28900000000000003,"d":"28.90%"}},{"$f":"Actif!$E$30/100","v":{"v":0.09050000000000001,"d":"9.05%"}},{"$f":"Actif!$E$31/100","v":{"v":0.0605,"d":"6.05%"}},{"$f":"Actif!$E$32/100","v":{"v":0.47350000000000003,"d":"47.35%"}},{"$f":"Actif!$E$33/100","v":{"v":0.0585,"d":"5.85%"}},{"$f":"Actif!$E$29/100","v":{"v":0.027999999999999997,"d":"2.80%"}}]
[null,"#244",70,2030,"H","A_VIE",{"v":0.44999999999999996,"d":"0.45"},{"v":0.38999999999999996,"d":"0.39"},0.6,0.6,85,0,{"$f":"ROUND(Primes!$Q$4*V8357,0)","v":11},{"$f":"'BP Financier'!$G$33*(('BP Financier'!$C$16+'BP Financier'!$D$16+'BP Financier'!$E$16+'BP Financier'!$F$16+'BP Financier'!$G$16)/('BP Financier'!$C$16+'BP Financier'!$C$19+'BP Financier'!$D$16+'BP Financier'!$D$19+'BP Financier'!$E$16+'BP Financier'!$E$19+'BP Financier'!$F$16+'BP Financier'!$F$19+'BP Financier'!$G$19+'BP Financier'!$G$16))*V8357","v":{"v":570278.6743187835,"d":"570,279"}},{"v":327302.6120010531,"d":"327,303"},{"$f":"'BP Financier'!$G$44*(('BP Financier'!$C$16+'BP Financier'!$D$16+'BP Financier'!$E$16+'BP Financier'!$F$16+'BP Financier'!$G$16)/('BP Financier'!$C$16+'BP Financier'!$C$19+'BP Financier'!$D$16+'BP Financier'!$D$19+'BP Financier'!$E$16+'BP Financier'!$E$19+'BP Financier'!$C$22+'BP Financier'!$D$22+'BP Financier'!$E$22+'BP Financier'!$F$16+'BP Financier'!$F$19+'BP Financier'!$F$22+'BP Financier'!$G$16+'BP Financier'!$G$19+'BP Financier'!$G$22))*$V8357*X8357/(1-$W8357)","v":{"v":41660.880993101695,"d":"41,661"}},{"$f":"'BP Financier'!$G$44*(('BP Financier'!$C$16+'BP Financier'!$D$16+'BP Financier'!$E$16+'BP Financier'!$F$16+'BP Financier'!$G$16)/('BP Financier'!$C$16+'BP Financier'!$C$19+'BP Financier'!$D$16+'BP Financier'!$D$19+'BP Financier'!$E$16+'BP Financier'!$E$19+'BP Financier'!$C$22+'BP Financier'!$D$22+'BP Financier'!$E$22+'BP Financier'!$F$16+'BP Financier'!$F$19+'BP Financier'!$F$22+'BP Financier'!$G$16+'BP Financier'!$G$19+'BP Financier'!$G$22))*$V8357*Y8357/(1-$W8357)","v":{"v":27850.644199808314,"d":"27,851"}},{"$f":"'BP Financier'!$G$44*(('BP Financier'!$C$16+'BP Financier'!$D$16+'BP Financier'!$E$16+'BP Financier'!$F$16+'BP Financier'!$G$16)/('BP Financier'!$C$16+'BP Financier'!$C$19+'BP Financier'!$D$16+'BP Financier'!$D$19+'BP Financier'!$E$16+'BP Financier'!$E$19+'BP Financier'!$C$22+'BP Financier'!$D$22+'BP Financier'!$E$22+'BP Financier'!$F$16+'BP Financier'!$F$19+'BP Financier'!$F$22+'BP Financier'!$G$16+'BP Financier'!$G$19+'BP Financier'!$G$22))*$V8357*Z8357/(1-$W8357)","v":{"v":217971.57072081385,"d":"217,972"}},{"$f":"'BP Financier'!$G$44*(('BP Financier'!$C$16+'BP Financier'!$D$16+'BP Financier'!$E$16+'BP Financier'!$F$16+'BP Financier'!$G$16)/('BP Financier'!$C$16+'BP Financier'!$C$19+'BP Financier'!$D$16+'BP Financier'!$D$19+'BP Financier'!$E$16+'BP Financier'!$E$19+'BP Financier'!$C$22+'BP Financier'!$D$22+'BP Financier'!$E$22+'BP Financier'!$F$16+'BP Financier'!$F$19+'BP Financier'!$F$22+'BP Financier'!$G$16+'BP Financier'!$G$19+'BP Financier'!$G$22))*$V8357*AA8357/(1-$W8357)","v":{"v":26929.96174692209,"d":"26,930"}},{"$f":"'BP Financier'!$G$44*(('BP Financier'!$C$16+'BP Financier'!$D$16+'BP Financier'!$E$16+'BP Financier'!$F$16+'BP Financier'!$G$16)/('BP Financier'!$C$16+'BP Financier'!$C$19+'BP Financier'!$D$16+'BP Financier'!$D$19+'BP Financier'!$E$16+'BP Financier'!$E$19+'BP Financier'!$C$22+'BP Financier'!$D$22+'BP Financier'!$E$22+'BP Financier'!$F$16+'BP Financier'!$F$19+'BP Financier'!$F$22+'BP Financier'!$G$16+'BP Financier'!$G$19+'BP Financier'!$G$22))*$V8357*AB8357/(1-$W8357)","v":{"v":12889.554340407152,"d":"12,890"}},null,{"v":1E-3,"d":"0.10%"},{"$f":"Actif!$E$28/100","v":{"v":0.28900000000000003,"d":"28.90%"}},{"$f":"Actif!$E$30/100","v":{"v":0.09050000000000001,"d":"9.05%"}},{"$f":"Actif!$E$31/100","v":{"v":0.0605,"d":"6.05%"}},{"$f":"Actif!$E$32/100","v":{"v":0.47350000000000003,"d":"47.35%"}},{"$f":"Actif!$E$33/100","v":{"v":0.0585,"d":"5.85%"}},{"$f":"Actif!$E$29/100","v":{"v":0.027999999999999997,"d":"2.80%"}}]
[null,"#245",70,2031,"H","A_VIE",{"v":0.44999999999999996,"d":"0.45"},{"v":0.38999999999999996,"d":"0.39"},0.6,0.6,85,0,{"$f":"ROUND(Primes!$Q$4*V8358,0)","v":11},{"$f":"'BP Financier'!$G$33*(('BP Financier'!$C$16+'BP Financier'!$D$16+'BP Financier'!$E$16+'BP Financier'!$F$16+'BP Financier'!$G$16)/('BP Financier'!$C$16+'BP Financier'!$C$19+'BP Financier'!$D$16+'BP Financier'!$D$19+'BP Financier'!$E$16+'BP Financier'!$E$19+'BP Financier'!$F$16+'BP Financier'!$F$19+'BP Financier'!$G$19+'BP Financier'!$G$16))*V8358","v":{"v":570278.6743187835,"d":"570,279"}},{"v":327302.6120010531,"d":"327,303"},{"$f":"'BP Financier'!$G$44*(('BP Financier'!$C$16+'BP Financier'!$D$16+'BP Financier'!$E$16+'BP Financier'!$F$16+'BP Financier'!$G$16)/('BP Financier'!$C$16+'BP Financier'!$C$19+'BP Financier'!$D$16+'BP Financier'!$D$19+'BP Financier'!$E$16+'BP Financier'!$E$19+'BP Financier'!$C$22+'BP Financier'!$D$22+'BP Financier'!$E$22+'BP Financier'!$F$16+'BP Financier'!$F$19+'BP Financier'!$F$22+'BP Financier'!$G$16+'BP Financier'!$G$19+'BP Financier'!$G$22))*$V8358*X8358/(1-$W8358)","v":{"v":41660.880993101695,"d":"41,661"}},{"$f":"'BP Financier'!$G$44*(('BP Financier'!$C$16+'BP Financier'!$D$16+'BP Financier'!$E$16+'BP Financier'!$F$16+'BP Financier'!$G$16)/('BP Financier'!$C$16+'BP Financier'!$C$19+'BP Financier'!$D$16+'BP Financier'!$D$19+'BP Financier'!$E$16+'BP Financier'!$E$19+'BP Financier'!$C$22+'BP Financier'!$D$22+'BP Financier'!$E$22+'BP Financier'!$F$16+'BP Financier'!$F$19+'BP Financier'!$F$22+'BP Financier'!$G$16+'BP Financier'!$G$19+'BP Financier'!$G$22))*$V8358*Y8358/(1-$W8358)","v":{"v":27850.644199808314,"d":"27,851"}},{"$f":"'BP Financier'!$G$44*(('BP Financier'!$C$16+'BP Financier'!$D$16+'BP Financier'!$E$16+'BP Financier'!$F$16+'BP Financier'!$G$16)/('BP Financier'!$C$16+'BP Financier'!$C$19+'BP Financier'!$D$16+'BP Financier'!$D$19+'BP Financier'!$E$16+'BP Financier'!$E$19+'BP Financier'!$C$22+'BP Financier'!$D$22+'BP Financier'!$E$22+'BP Financier'!$F$16+'BP Financier'!$F$19+'BP Financier'!$F$22+'BP Financier'!$G$16+'BP Financier'!$G$19+'BP Financier'!$G$22))*$V8358*Z8358/(1-$W8358)","v":{"v":217971.57072081385,"d":"217,972"}},{"$f":"'BP Financier'!$G$44*(('BP Financier'!$C$16+'BP Financier'!$D$16+'BP Financier'!$E$16+'BP Financier'!$F$16+'BP Financier'!$G$16)/('BP Financier'!$C$16+'BP Financier'!$C$19+'BP Financier'!$D$16+'BP Financier'!$D$19+'BP Financier'!$E$16+'BP Financier'!$E$19+'BP Financier'!$C$22+'BP Financier'!$D$22+'BP Financier'!$E$22+'BP Financier'!$F$16+'BP Financier'!$F$19+'BP Financier'!$F$22+'BP Financier'!$G$16+'BP Financier'!$G$19+'BP Financier'!$G$22))*$V8358*AA8358/(1-$W8358)","v":{"v":26929.96174692209,"d":"26,930"}},{"$f":"'BP Financier'!$G$44*(('BP Financier'!$C$16+'BP Financier'!$D$16+'BP Financier'!$E$16+'BP Financier'!$F$16+'BP Financier'!$G$16)/('BP Financier'!$C$16+'BP Financier'!$C$19+'BP Financier'!$D$16+'BP Financier'!$D$19+'BP Financier'!$E$16+'BP Financier'!$E$19+'BP Financier'!$C$22+'BP Financier'!$D$22+'BP Financier'!$E$22+'BP Financier'!$F$16+'BP Financier'!$F$19+'BP Financier'!$F$22+'BP Financier'!$G$16+'BP Financier'!$G$19+'BP Financier'!$G$22))*$V8358*AB8358/(1-$W8358)","v":{"v":12889.554340407152,"d":"12,890"}},null,{"v":1E-3,"d":"0.10%"},{"$f":"Actif!$E$28/100","v":{"v":0.28900000000000003,"d":"28.90%"}},{"$f":"Actif!$E$30/100","v":{"v":0.09050000000000001,"d":"9.05%"}},{"$f":"Actif!$E$31/100","v":{"v":0.0605,"d":"6.05%"}},{"$f":"Actif!$E$32/100","v":{"v":0.47350000000000003,"d":"47.35%"}},{"$f":"Actif!$E$33/100","v":{"v":0.0585,"d":"5.85%"}},{"$f":"Actif!$E$29/100","v":{"v":0.027999999999999997,"d":"2.80%"}}]
[null,"#246",75,2026,"H","A_VIE",{"v":0.44999999999999996,"d":"0.45"},{"v":0.38999999999999996,"d":"0.39"},0.6,0.6,85,0,{"$f":"ROUND(Primes!$Q$4*V8359,0)","v":11},{"$f":"'BP Financier'!$G$33*(('BP Financier'!$C$16+'BP Financier'!$D$16+'BP Financier'!$E$16+'BP Financier'!$F$16+'BP Financier'!$G$16)/('BP Financier'!$C$16+'BP Financier'!$C$19+'BP Financier'!$D$16+'BP Financier'!$D$19+'BP Financier'!$E$16+'BP Financier'!$E$19+'BP Financier'!$F$16+'BP Financier'!$F$19+'BP Financier'!$G$19+'BP Financier'!$G$16))*V8359","v":{"v":570278.6743187835,"d":"570,279"}},{"v":327302.6120010531,"d":"327,303"},{"$f":"'BP Financier'!$G$44*(('BP Financier'!$C$16+'BP Financier'!$D$16+'BP Financier'!$E$16+'BP Financier'!$F$16+'BP Financier'!$G$16)/('BP Financier'!$C$16+'BP Financier'!$C$19+'BP Financier'!$D$16+'BP Financier'!$D$19+'BP Financier'!$E$16+'BP Financier'!$E$19+'BP Financier'!$C$22+'BP Financier'!$D$22+'BP Financier'!$E$22+'BP Financier'!$F$16+'BP Financier'!$F$19+'BP Financier'!$F$22+'BP Financier'!$G$16+'BP Financier'!$G$19+'BP Financier'!$G$22))*$V8359*X8359/(1-$W8359)","v":{"v":41660.880993101695,"d":"41,661"}},{"$f":"'BP Financier'!$G$44*(('BP Financier'!$C$16+'BP Financier'!$D$16+'BP Financier'!$E$16+'BP Financier'!$F$16+'BP Financier'!$G$16)/('BP Financier'!$C$16+'BP Financier'!$C$19+'BP Financier'!$D$16+'BP Financier'!$D$19+'BP Financier'!$E$16+'BP Financier'!$E$19+'BP Financier'!$C$22+'BP Financier'!$D$22+'BP Financier'!$E$22+'BP Financier'!$F$16+'BP Financier'!$F$19+'BP Financier'!$F$22+'BP Financier'!$G$16+'BP Financier'!$G$19+'BP Financier'!$G$22))*$V8359*Y8359/(1-$W8359)","v":{"v":27850.644199808314,"d":"27,851"}},{"$f":"'BP Financier'!$G$44*(('BP Financier'!$C$16+'BP Financier'!$D$16+'BP Financier'!$E$16+'BP Financier'!$F$16+'BP Financier'!$G$16)/('BP Financier'!$C$16+'BP Financier'!$C$19+'BP Financier'!$D$16+'BP Financier'!$D$19+'BP Financier'!$E$16+'BP Financier'!$E$19+'BP Financier'!$C$22+'BP Financier'!$D$22+'BP Financier'!$E$22+'BP Financier'!$F$16+'BP Financier'!$F$19+'BP Financier'!$F$22+'BP Financier'!$G$16+'BP Financier'!$G$19+'BP Financier'!$G$22))*$V8359*Z8359/(1-$W8359)","v":{"v":217971.57072081385,"d":"217,972"}},{"$f":"'BP Financier'!$G$44*(('BP Financier'!$C$16+'BP Financier'!$D$16+'BP Financier'!$E$16+'BP Financier'!$F$16+'BP Financier'!$G$16)/('BP Financier'!$C$16+'BP Financier'!$C$19+'BP Financier'!$D$16+'BP Financier'!$D$19+'BP Financier'!$E$16+'BP Financier'!$E$19+'BP Financier'!$C$22+'BP Financier'!$D$22+'BP Financier'!$E$22+'BP Financier'!$F$16+'BP Financier'!$F$19+'BP Financier'!$F$22+'BP Financier'!$G$16+'BP Financier'!$G$19+'BP Financier'!$G$22))*$V8359*AA8359/(1-$W8359)","v":{"v":26929.96174692209,"d":"26,930"}},{"$f":"'BP Financier'!$G$44*(('BP Financier'!$C$16+'BP Financier'!$D$16+'BP Financier'!$E$16+'BP Financier'!$F$16+'BP Financier'!$G$16)/('BP Financier'!$C$16+'BP Financier'!$C$19+'BP Financier'!$D$16+'BP Financier'!$D$19+'BP Financier'!$E$16+'BP Financier'!$E$19+'BP Financier'!$C$22+'BP Financier'!$D$22+'BP Financier'!$E$22+'BP Financier'!$F$16+'BP Financier'!$F$19+'BP Financier'!$F$22+'BP Financier'!$G$16+'BP Financier'!$G$19+'BP Financier'!$G$22))*$V8359*AB8359/(1-$W8359)","v":{"v":12889.554340407152,"d":"12,890"}},null,{"v":1E-3,"d":"0.10%"},{"$f":"Actif!$E$28/100","v":{"v":0.28900000000000003,"d":"28.90%"}},{"$f":"Actif!$E$30/100","v":{"v":0.09050000000000001,"d":"9.05%"}},{"$f":"Actif!$E$31/100","v":{"v":0.0605,"d":"6.05%"}},{"$f":"Actif!$E$32/100","v":{"v":0.47350000000000003,"d":"47.35%"}},{"$f":"Actif!$E$33/100","v":{"v":0.0585,"d":"5.85%"}},{"$f":"Actif!$E$29/100","v":{"v":0.027999999999999997,"d":"2.80%"}}]
[null,"#247",75,2028,"H","A_VIE",{"v":0.44999999999999996,"d":"0.45"},{"v":0.38999999999999996,"d":"0.39"},0.6,0.6,85,0,{"$f":"ROUND(Primes!$Q$4*V8360,0)","v":11},{"$f":"'BP Financier'!$G$33*(('BP Financier'!$C$16+'BP Financier'!$D$16+'BP Financier'!$E$16+'BP Financier'!$F$16+'BP Financier'!$G$16)/('BP Financier'!$C$16+'BP Financier'!$C$19+'BP Financier'!$D$16+'BP Financier'!$D$19+'BP Financier'!$E$16+'BP Financier'!$E$19+'BP Financier'!$F$16+'BP Financier'!$F$19+'BP Financier'!$G$19+'BP Financier'!$G$16))*V8360","v":{"v":570278.6743187835,"d":"570,279"}},{"v":327302.6120010531,"d":"327,303"},{"$f":"'BP Financier'!$G$44*(('BP Financier'!$C$16+'BP Financier'!$D$16+'BP Financier'!$E$16+'BP Financier'!$F$16+'BP Financier'!$G$16)/('BP Financier'!$C$16+'BP Financier'!$C$19+'BP Financier'!$D$16+'BP Financier'!$D$19+'BP Financier'!$E$16+'BP Financier'!$E$19+'BP Financier'!$C$22+'BP Financier'!$D$22+'BP Financier'!$E$22+'BP Financier'!$F$16+'BP Financier'!$F$19+'BP Financier'!$F$22+'BP Financier'!$G$16+'BP Financier'!$G$19+'BP Financier'!$G$22))*$V8360*X8360/(1-$W8360)","v":{"v":41660.880993101695,"d":"41,661"}},{"$f":"'BP Financier'!$G$44*(('BP Financier'!$C$16+'BP Financier'!$D$16+'BP Financier'!$E$16+'BP Financier'!$F$16+'BP Financier'!$G$16)/('BP Financier'!$C$16+'BP Financier'!$C$19+'BP Financier'!$D$16+'BP Financier'!$D$19+'BP Financier'!$E$16+'BP Financier'!$E$19+'BP Financier'!$C$22+'BP Financier'!$D$22+'BP Financier'!$E$22+'BP Financier'!$F$16+'BP Financier'!$F$19+'BP Financier'!$F$22+'BP Financier'!$G$16+'BP Financier'!$G$19+'BP Financier'!$G$22))*$V8360*Y8360/(1-$W8360)","v":{"v":27850.644199808314,"d":"27,851"}},{"$f":"'BP Financier'!$G$44*(('BP Financier'!$C$16+'BP Financier'!$D$16+'BP Financier'!$E$16+'BP Financier'!$F$16+'BP Financier'!$G$16)/('BP Financier'!$C$16+'BP Financier'!$C$19+'BP Financier'!$D$16+'BP Financier'!$D$19+'BP Financier'!$E$16+'BP Financier'!$E$19+'BP Financier'!$C$22+'BP Financier'!$D$22+'BP Financier'!$E$22+'BP Financier'!$F$16+'BP Financier'!$F$19+'BP Financier'!$F$22+'BP Financier'!$G$16+'BP Financier'!$G$19+'BP Financier'!$G$22))*$V8360*Z8360/(1-$W8360)","v":{"v":217971.57072081385,"d":"217,972"}},{"$f":"'BP Financier'!$G$44*(('BP Financier'!$C$16+'BP Financier'!$D$16+'BP Financier'!$E$16+'BP Financier'!$F$16+'BP Financier'!$G$16)/('BP Financier'!$C$16+'BP Financier'!$C$19+'BP Financier'!$D$16+'BP Financier'!$D$19+'BP Financier'!$E$16+'BP Financier'!$E$19+'BP Financier'!$C$22+'BP Financier'!$D$22+'BP Financier'!$E$22+'BP Financier'!$F$16+'BP Financier'!$F$19+'BP Financier'!$F$22+'BP Financier'!$G$16+'BP Financier'!$G$19+'BP Financier'!$G$22))*$V8360*AA8360/(1-$W8360)","v":{"v":26929.96174692209,"d":"26,930"}},{"$f":"'BP Financier'!$G$44*(('BP Financier'!$C$16+'BP Financier'!$D$16+'BP Financier'!$E$16+'BP Financier'!$F$16+'BP Financier'!$G$16)/('BP Financier'!$C$16+'BP Financier'!$C$19+'BP Financier'!$D$16+'BP Financier'!$D$19+'BP Financier'!$E$16+'BP Financier'!$E$19+'BP Financier'!$C$22+'BP Financier'!$D$22+'BP Financier'!$E$22+'BP Financier'!$F$16+'BP Financier'!$F$19+'BP Financier'!$F$22+'BP Financier'!$G$16+'BP Financier'!$G$19+'BP Financier'!$G$22))*$V8360*AB8360/(1-$W8360)","v":{"v":12889.554340407152,"d":"12,890"}},null,{"v":1E-3,"d":"0.10%"},{"$f":"Actif!$E$28/100","v":{"v":0.28900000000000003,"d":"28.90%"}},{"$f":"Actif!$E$30/100","v":{"v":0.09050000000000001,"d":"9.05%"}},{"$f":"Actif!$E$31/100","v":{"v":0.0605,"d":"6.05%"}},{"$f":"Actif!$E$32/100","v":{"v":0.47350000000000003,"d":"47.35%"}},{"$f":"Actif!$E$33/100","v":{"v":0.0585,"d":"5.85%"}},{"$f":"Actif!$E$29/100","v":{"v":0.027999999999999997,"d":"2.80%"}}]
[null,"#248",75,2029,"H","A_VIE",{"v":0.44999999999999996,"d":"0.45"},{"v":0.38999999999999996,"d":"0.39"},0.6,0.6,85,0,{"$f":"ROUND(Primes!$Q$4*V8361,0)","v":11},{"$f":"'BP Financier'!$G$33*(('BP Financier'!$C$16+'BP Financier'!$D$16+'BP Financier'!$E$16+'BP Financier'!$F$16+'BP Financier'!$G$16)/('BP Financier'!$C$16+'BP Financier'!$C$19+'BP Financier'!$D$16+'BP Financier'!$D$19+'BP Financier'!$E$16+'BP Financier'!$E$19+'BP Financier'!$F$16+'BP Financier'!$F$19+'BP Financier'!$G$19+'BP Financier'!$G$16))*V8361","v":{"v":570278.6743187835,"d":"570,279"}},{"v":327302.6120010531,"d":"327,303"},{"$f":"'BP Financier'!$G$44*(('BP Financier'!$C$16+'BP Financier'!$D$16+'BP Financier'!$E$16+'BP Financier'!$F$16+'BP Financier'!$G$16)/('BP Financier'!$C$16+'BP Financier'!$C$19+'BP Financier'!$D$16+'BP Financier'!$D$19+'BP Financier'!$E$16+'BP Financier'!$E$19+'BP Financier'!$C$22+'BP Financier'!$D$22+'BP Financier'!$E$22+'BP Financier'!$F$16+'BP Financier'!$F$19+'BP Financier'!$F$22+'BP Financier'!$G$16+'BP Financier'!$G$19+'BP Financier'!$G$22))*$V8361*X8361/(1-$W8361)","v":{"v":41660.880993101695,"d":"41,661"}},{"$f":"'BP Financier'!$G$44*(('BP Financier'!$C$16+'BP Financier'!$D$16+'BP Financier'!$E$16+'BP Financier'!$F$16+'BP Financier'!$G$16)/('BP Financier'!$C$16+'BP Financier'!$C$19+'BP Financier'!$D$16+'BP Financier'!$D$19+'BP Financier'!$E$16+'BP Financier'!$E$19+'BP Financier'!$C$22+'BP Financier'!$D$22+'BP Financier'!$E$22+'BP Financier'!$F$16+'BP Financier'!$F$19+'BP Financier'!$F$22+'BP Financier'!$G$16+'BP Financier'!$G$19+'BP Financier'!$G$22))*$V8361*Y8361/(1-$W8361)","v":{"v":27850.644199808314,"d":"27,851"}},{"$f":"'BP Financier'!$G$44*(('BP Financier'!$C$16+'BP Financier'!$D$16+'BP Financier'!$E$16+'BP Financier'!$F$16+'BP Financier'!$G$16)/('BP Financier'!$C$16+'BP Financier'!$C$19+'BP Financier'!$D$16+'BP Financier'!$D$19+'BP Financier'!$E$16+'BP Financier'!$E$19+'BP Financier'!$C$22+'BP Financier'!$D$22+'BP Financier'!$E$22+'BP Financier'!$F$16+'BP Financier'!$F$19+'BP Financier'!$F$22+'BP Financier'!$G$16+'BP Financier'!$G$19+'BP Financier'!$G$22))*$V8361*Z8361/(1-$W8361)","v":{"v":217971.57072081385,"d":"217,972"}},{"$f":"'BP Financier'!$G$44*(('BP Financier'!$C$16+'BP Financier'!$D$16+'BP Financier'!$E$16+'BP Financier'!$F$16+'BP Financier'!$G$16)/('BP Financier'!$C$16+'BP Financier'!$C$19+'BP Financier'!$D$16+'BP Financier'!$D$19+'BP Financier'!$E$16+'BP Financier'!$E$19+'BP Financier'!$C$22+'BP Financier'!$D$22+'BP Financier'!$E$22+'BP Financier'!$F$16+'BP Financier'!$F$19+'BP Financier'!$F$22+'BP Financier'!$G$16+'BP Financier'!$G$19+'BP Financier'!$G$22))*$V8361*AA8361/(1-$W8361)","v":{"v":26929.96174692209,"d":"26,930"}},{"$f":"'BP Financier'!$G$44*(('BP Financier'!$C$16+'BP Financier'!$D$16+'BP Financier'!$E$16+'BP Financier'!$F$16+'BP Financier'!$G$16)/('BP Financier'!$C$16+'BP Financier'!$C$19+'BP Financier'!$D$16+'BP Financier'!$D$19+'BP Financier'!$E$16+'BP Financier'!$E$19+'BP Financier'!$C$22+'BP Financier'!$D$22+'BP Financier'!$E$22+'BP Financier'!$F$16+'BP Financier'!$F$19+'BP Financier'!$F$22+'BP Financier'!$G$16+'BP Financier'!$G$19+'BP Financier'!$G$22))*$V8361*AB8361/(1-$W8361)","v":{"v":12889.554340407152,"d":"12,890"}},null,{"v":1E-3,"d":"0.10%"},{"$f":"Actif!$E$28/100","v":{"v":0.28900000000000003,"d":"28.90%"}},{"$f":"Actif!$E$30/100","v":{"v":0.09050000000000001,"d":"9.05%"}},{"$f":"Actif!$E$31/100","v":{"v":0.0605,"d":"6.05%"}},{"$f":"Actif!$E$32/100","v":{"v":0.47350000000000003,"d":"47.35%"}},{"$f":"Actif!$E$33/100","v":{"v":0.0585,"d":"5.85%"}},{"$f":"Actif!$E$29/100","v":{"v":0.027999999999999997,"d":"2.80%"}}]
[null,"#249",75,2030,"H","A_VIE",{"v":0.44999999999999996,"d":"0.45"},{"v":0.38999999999999996,"d":"0.39"},0.6,0.6,85,0,{"$f":"ROUND(Primes!$Q$4*V8362,0)","v":11},{"$f":"'BP Financier'!$G$33*(('BP Financier'!$C$16+'BP Financier'!$D$16+'BP Financier'!$E$16+'BP Financier'!$F$16+'BP Financier'!$G$16)/('BP Financier'!$C$16+'BP Financier'!$C$19+'BP Financier'!$D$16+'BP Financier'!$D$19+'BP Financier'!$E$16+'BP Financier'!$E$19+'BP Financier'!$F$16+'BP Financier'!$F$19+'BP Financier'!$G$19+'BP Financier'!$G$16))*V8362","v":{"v":570278.6743187835,"d":"570,279"}},{"v":327302.6120010531,"d":"327,303"},{"$f":"'BP Financier'!$G$44*(('BP Financier'!$C$16+'BP Financier'!$D$16+'BP Financier'!$E$16+'BP Financier'!$F$16+'BP Financier'!$G$16)/('BP Financier'!$C$16+'BP Financier'!$C$19+'BP Financier'!$D$16+'BP Financier'!$D$19+'BP Financier'!$E$16+'BP Financier'!$E$19+'BP Financier'!$C$22+'BP Financier'!$D$22+'BP Financier'!$E$22+'BP Financier'!$F$16+'BP Financier'!$F$19+'BP Financier'!$F$22+'BP Financier'!$G$16+'BP Financier'!$G$19+'BP Financier'!$G$22))*$V8362*X8362/(1-$W8362)","v":{"v":41660.880993101695,"d":"41,661"}},{"$f":"'BP Financier'!$G$44*(('BP Financier'!$C$16+'BP Financier'!$D$16+'BP Financier'!$E$16+'BP Financier'!$F$16+'BP Financier'!$G$16)/('BP Financier'!$C$16+'BP Financier'!$C$19+'BP Financier'!$D$16+'BP Financier'!$D$19+'BP Financier'!$E$16+'BP Financier'!$E$19+'BP Financier'!$C$22+'BP Financier'!$D$22+'BP Financier'!$E$22+'BP Financier'!$F$16+'BP Financier'!$F$19+'BP Financier'!$F$22+'BP Financier'!$G$16+'BP Financier'!$G$19+'BP Financier'!$G$22))*$V8362*Y8362/(1-$W8362)","v":{"v":27850.644199808314,"d":"27,851"}},{"$f":"'BP Financier'!$G$44*(('BP Financier'!$C$16+'BP Financier'!$D$16+'BP Financier'!$E$16+'BP Financier'!$F$16+'BP Financier'!$G$16)/('BP Financier'!$C$16+'BP Financier'!$C$19+'BP Financier'!$D$16+'BP Financier'!$D$19+'BP Financier'!$E$16+'BP Financier'!$E$19+'BP Financier'!$C$22+'BP Financier'!$D$22+'BP Financier'!$E$22+'BP Financier'!$F$16+'BP Financier'!$F$19+'BP Financier'!$F$22+'BP Financier'!$G$16+'BP Financier'!$G$19+'BP Financier'!$G$22))*$V8362*Z8362/(1-$W8362)","v":{"v":217971.57072081385,"d":"217,972"}},{"$f":"'BP Financier'!$G$44*(('BP Financier'!$C$16+'BP Financier'!$D$16+'BP Financier'!$E$16+'BP Financier'!$F$16+'BP Financier'!$G$16)/('BP Financier'!$C$16+'BP Financier'!$C$19+'BP Financier'!$D$16+'BP Financier'!$D$19+'BP Financier'!$E$16+'BP Financier'!$E$19+'BP Financier'!$C$22+'BP Financier'!$D$22+'BP Financier'!$E$22+'BP Financier'!$F$16+'BP Financier'!$F$19+'BP Financier'!$F$22+'BP Financier'!$G$16+'BP Financier'!$G$19+'BP Financier'!$G$22))*$V8362*AA8362/(1-$W8362)","v":{"v":26929.96174692209,"d":"26,930"}},{"$f":"'BP Financier'!$G$44*(('BP Financier'!$C$16+'BP Financier'!$D$16+'BP Financier'!$E$16+'BP Financier'!$F$16+'BP Financier'!$G$16)/('BP Financier'!$C$16+'BP Financier'!$C$19+'BP Financier'!$D$16+'BP Financier'!$D$19+'BP Financier'!$E$16+'BP Financier'!$E$19+'BP Financier'!$C$22+'BP Financier'!$D$22+'BP Financier'!$E$22+'BP Financier'!$F$16+'BP Financier'!$F$19+'BP Financier'!$F$22+'BP Financier'!$G$16+'BP Financier'!$G$19+'BP Financier'!$G$22))*$V8362*AB8362/(1-$W8362)","v":{"v":12889.554340407152,"d":"12,890"}},null,{"v":1E-3,"d":"0.10%"},{"$f":"Actif!$E$28/100","v":{"v":0.28900000000000003,"d":"28.90%"}},{"$f":"Actif!$E$30/100","v":{"v":0.09050000000000001,"d":"9.05%"}},{"$f":"Actif!$E$31/100","v":{"v":0.0605,"d":"6.05%"}},{"$f":"Actif!$E$32/100","v":{"v":0.47350000000000003,"d":"47.35%"}},{"$f":"Actif!$E$33/100","v":{"v":0.0585,"d":"5.85%"}},{"$f":"Actif!$E$29/100","v":{"v":0.027999999999999997,"d":"2.80%"}}]
[null,"#250",75,2031,"H","A_VIE",{"v":0.44999999999999996,"d":"0.45"},{"v":0.38999999999999996,"d":"0.39"},0.6,0.6,85,0,{"$f":"ROUND(Primes!$Q$4*V8363,0)","v":11},{"$f":"'BP Financier'!$G$33*(('BP Financier'!$C$16+'BP Financier'!$D$16+'BP Financier'!$E$16+'BP Financier'!$F$16+'BP Financier'!$G$16)/('BP Financier'!$C$16+'BP Financier'!$C$19+'BP Financier'!$D$16+'BP Financier'!$D$19+'BP Financier'!$E$16+'BP Financier'!$E$19+'BP Financier'!$F$16+'BP Financier'!$F$19+'BP Financier'!$G$19+'BP Financier'!$G$16))*V8363","v":{"v":570278.6743187835,"d":"570,279"}},{"v":327302.6120010531,"d":"327,303"},{"$f":"'BP Financier'!$G$44*(('BP Financier'!$C$16+'BP Financier'!$D$16+'BP Financier'!$E$16+'BP Financier'!$F$16+'BP Financier'!$G$16)/('BP Financier'!$C$16+'BP Financier'!$C$19+'BP Financier'!$D$16+'BP Financier'!$D$19+'BP Financier'!$E$16+'BP Financier'!$E$19+'BP Financier'!$C$22+'BP Financier'!$D$22+'BP Financier'!$E$22+'BP Financier'!$F$16+'BP Financier'!$F$19+'BP Financier'!$F$22+'BP Financier'!$G$16+'BP Financier'!$G$19+'BP Financier'!$G$22))*$V8363*X8363/(1-$W8363)","v":{"v":41660.880993101695,"d":"41,661"}},{"$f":"'BP Financier'!$G$44*(('BP Financier'!$C$16+'BP Financier'!$D$16+'BP Financier'!$E$16+'BP Financier'!$F$16+'BP Financier'!$G$16)/('BP Financier'!$C$16+'BP Financier'!$C$19+'BP Financier'!$D$16+'BP Financier'!$D$19+'BP Financier'!$E$16+'BP Financier'!$E$19+'BP Financier'!$C$22+'BP Financier'!$D$22+'BP Financier'!$E$22+'BP Financier'!$F$16+'BP Financier'!$F$19+'BP Financier'!$F$22+'BP Financier'!$G$16+'BP Financier'!$G$19+'BP Financier'!$G$22))*$V8363*Y8363/(1-$W8363)","v":{"v":27850.644199808314,"d":"27,851"}},{"$f":"'BP Financier'!$G$44*(('BP Financier'!$C$16+'BP Financier'!$D$16+'BP Financier'!$E$16+'BP Financier'!$F$16+'BP Financier'!$G$16)/('BP Financier'!$C$16+'BP Financier'!$C$19+'BP Financier'!$D$16+'BP Financier'!$D$19+'BP Financier'!$E$16+'BP Financier'!$E$19+'BP Financier'!$C$22+'BP Financier'!$D$22+'BP Financier'!$E$22+'BP Financier'!$F$16+'BP Financier'!$F$19+'BP Financier'!$F$22+'BP Financier'!$G$16+'BP Financier'!$G$19+'BP Financier'!$G$22))*$V8363*Z8363/(1-$W8363)","v":{"v":217971.57072081385,"d":"217,972"}},{"$f":"'BP Financier'!$G$44*(('BP Financier'!$C$16+'BP Financier'!$D$16+'BP Financier'!$E$16+'BP Financier'!$F$16+'BP Financier'!$G$16)/('BP Financier'!$C$16+'BP Financier'!$C$19+'BP Financier'!$D$16+'BP Financier'!$D$19+'BP Financier'!$E$16+'BP Financier'!$E$19+'BP Financier'!$C$22+'BP Financier'!$D$22+'BP Financier'!$E$22+'BP Financier'!$F$16+'BP Financier'!$F$19+'BP Financier'!$F$22+'BP Financier'!$G$16+'BP Financier'!$G$19+'BP Financier'!$G$22))*$V8363*AA8363/(1-$W8363)","v":{"v":26929.96174692209,"d":"26,930"}},{"$f":"'BP Financier'!$G$44*(('BP Financier'!$C$16+'BP Financier'!$D$16+'BP Financier'!$E$16+'BP Financier'!$F$16+'BP Financier'!$G$16)/('BP Financier'!$C$16+'BP Financier'!$C$19+'BP Financier'!$D$16+'BP Financier'!$D$19+'BP Financier'!$E$16+'BP Financier'!$E$19+'BP Financier'!$C$22+'BP Financier'!$D$22+'BP Financier'!$E$22+'BP Financier'!$F$16+'BP Financier'!$F$19+'BP Financier'!$F$22+'BP Financier'!$G$16+'BP Financier'!$G$19+'BP Financier'!$G$22))*$V8363*AB8363/(1-$W8363)","v":{"v":12889.554340407152,"d":"12,890"}},null,{"v":1E-3,"d":"0.10%"},{"$f":"Actif!$E$28/100","v":{"v":0.28900000000000003,"d":"28.90%"}},{"$f":"Actif!$E$30/100","v":{"v":0.09050000000000001,"d":"9.05%"}},{"$f":"Actif!$E$31/100","v":{"v":0.0605,"d":"6.05%"}},{"$f":"Actif!$E$32/100","v":{"v":0.47350000000000003,"d":"47.35%"}},{"$f":"Actif!$E$33/100","v":{"v":0.0585,"d":"5.85%"}},{"$f":"Actif!$E$29/100","v":{"v":0.027999999999999997,"d":"2.80%"}}]
[null,"#251",80,2026,"F","A_VIE",{"v":0.44999999999999996,"d":"0.45"},{"v":0.38999999999999996,"d":"0.39"},0.6,0.6,85,0,{"$f":"ROUND(Primes!$Q$4*V8364,0)","v":11},{"$f":"'BP Financier'!$G$33*(('BP Financier'!$C$16+'BP Financier'!$D$16+'BP Financier'!$E$16+'BP Financier'!$F$16+'BP Financier'!$G$16)/('BP Financier'!$C$16+'BP Financier'!$C$19+'BP Financier'!$D$16+'BP Financier'!$D$19+'BP Financier'!$E$16+'BP Financier'!$E$19+'BP Financier'!$F$16+'BP Financier'!$F$19+'BP Financier'!$G$19+'BP Financier'!$G$16))*V8364","v":{"v":570278.6743187835,"d":"570,279"}},{"v":327302.6120010531,"d":"327,303"},{"$f":"'BP Financier'!$G$44*(('BP Financier'!$C$16+'BP Financier'!$D$16+'BP Financier'!$E$16+'BP Financier'!$F$16+'BP Financier'!$G$16)/('BP Financier'!$C$16+'BP Financier'!$C$19+'BP Financier'!$D$16+'BP Financier'!$D$19+'BP Financier'!$E$16+'BP Financier'!$E$19+'BP Financier'!$C$22+'BP Financier'!$D$22+'BP Financier'!$E$22+'BP Financier'!$F$16+'BP Financier'!$F$19+'BP Financier'!$F$22+'BP Financier'!$G$16+'BP Financier'!$G$19+'BP Financier'!$G$22))*$V8364*X8364/(1-$W8364)","v":{"v":41660.880993101695,"d":"41,661"}},{"$f":"'BP Financier'!$G$44*(('BP Financier'!$C$16+'BP Financier'!$D$16+'BP Financier'!$E$16+'BP Financier'!$F$16+'BP Financier'!$G$16)/('BP Financier'!$C$16+'BP Financier'!$C$19+'BP Financier'!$D$16+'BP Financier'!$D$19+'BP Financier'!$E$16+'BP Financier'!$E$19+'BP Financier'!$C$22+'BP Financier'!$D$22+'BP Financier'!$E$22+'BP Financier'!$F$16+'BP Financier'!$F$19+'BP Financier'!$F$22+'BP Financier'!$G$16+'BP Financier'!$G$19+'BP Financier'!$G$22))*$V8364*Y8364/(1-$W8364)","v":{"v":27850.644199808314,"d":"27,851"}},{"$f":"'BP Financier'!$G$44*(('BP Financier'!$C$16+'BP Financier'!$D$16+'BP Financier'!$E$16+'BP Financier'!$F$16+'BP Financier'!$G$16)/('BP Financier'!$C$16+'BP Financier'!$C$19+'BP Financier'!$D$16+'BP Financier'!$D$19+'BP Financier'!$E$16+'BP Financier'!$E$19+'BP Financier'!$C$22+'BP Financier'!$D$22+'BP Financier'!$E$22+'BP Financier'!$F$16+'BP Financier'!$F$19+'BP Financier'!$F$22+'BP Financier'!$G$16+'BP Financier'!$G$19+'BP Financier'!$G$22))*$V8364*Z8364/(1-$W8364)","v":{"v":217971.57072081385,"d":"217,972"}},{"$f":"'BP Financier'!$G$44*(('BP Financier'!$C$16+'BP Financier'!$D$16+'BP Financier'!$E$16+'BP Financier'!$F$16+'BP Financier'!$G$16)/('BP Financier'!$C$16+'BP Financier'!$C$19+'BP Financier'!$D$16+'BP Financier'!$D$19+'BP Financier'!$E$16+'BP Financier'!$E$19+'BP Financier'!$C$22+'BP Financier'!$D$22+'BP Financier'!$E$22+'BP Financier'!$F$16+'BP Financier'!$F$19+'BP Financier'!$F$22+'BP Financier'!$G$16+'BP Financier'!$G$19+'BP Financier'!$G$22))*$V8364*AA8364/(1-$W8364)","v":{"v":26929.96174692209,"d":"26,930"}},{"$f":"'BP Financier'!$G$44*(('BP Financier'!$C$16+'BP Financier'!$D$16+'BP Financier'!$E$16+'BP Financier'!$F$16+'BP Financier'!$G$16)/('BP Financier'!$C$16+'BP Financier'!$C$19+'BP Financier'!$D$16+'BP Financier'!$D$19+'BP Financier'!$E$16+'BP Financier'!$E$19+'BP Financier'!$C$22+'BP Financier'!$D$22+'BP Financier'!$E$22+'BP Financier'!$F$16+'BP Financier'!$F$19+'BP Financier'!$F$22+'BP Financier'!$G$16+'BP Financier'!$G$19+'BP Financier'!$G$22))*$V8364*AB8364/(1-$W8364)","v":{"v":12889.554340407152,"d":"12,890"}},null,{"v":1E-3,"d":"0.10%"},{"$f":"Actif!$E$28/100","v":{"v":0.28900000000000003,"d":"28.90%"}},{"$f":"Actif!$E$30/100","v":{"v":0.09050000000000001,"d":"9.05%"}},{"$f":"Actif!$E$31/100","v":{"v":0.0605,"d":"6.05%"}},{"$f":"Actif!$E$32/100","v":{"v":0.47350000000000003,"d":"47.35%"}},{"$f":"Actif!$E$33/100","v":{"v":0.0585,"d":"5.85%"}},{"$f":"Actif!$E$29/100","v":{"v":0.027999999999999997,"d":"2.80%"}}]
[null,"#252",80,2028,"F","A_VIE",{"v":0.44999999999999996,"d":"0.45"},{"v":0.38999999999999996,"d":"0.39"},0.6,0.6,85,0,{"$f":"ROUND(Primes!$Q$4*V8365,0)","v":11},{"$f":"'BP Financier'!$G$33*(('BP Financier'!$C$16+'BP Financier'!$D$16+'BP Financier'!$E$16+'BP Financier'!$F$16+'BP Financier'!$G$16)/('BP Financier'!$C$16+'BP Financier'!$C$19+'BP Financier'!$D$16+'BP Financier'!$D$19+'BP Financier'!$E$16+'BP Financier'!$E$19+'BP Financier'!$F$16+'BP Financier'!$F$19+'BP Financier'!$G$19+'BP Financier'!$G$16))*V8365","v":{"v":570278.6743187835,"d":"570,279"}},{"v":327302.6120010531,"d":"327,303"},{"$f":"'BP Financier'!$G$44*(('BP Financier'!$C$16+'BP Financier'!$D$16+'BP Financier'!$E$16+'BP Financier'!$F$16+'BP Financier'!$G$16)/('BP Financier'!$C$16+'BP Financier'!$C$19+'BP Financier'!$D$16+'BP Financier'!$D$19+'BP Financier'!$E$16+'BP Financier'!$E$19+'BP Financier'!$C$22+'BP Financier'!$D$22+'BP Financier'!$E$22+'BP Financier'!$F$16+'BP Financier'!$F$19+'BP Financier'!$F$22+'BP Financier'!$G$16+'BP Financier'!$G$19+'BP Financier'!$G$22))*$V8365*X8365/(1-$W8365)","v":{"v":41660.880993101695,"d":"41,661"}},{"$f":"'BP Financier'!$G$44*(('BP Financier'!$C$16+'BP Financier'!$D$16+'BP Financier'!$E$16+'BP Financier'!$F$16+'BP Financier'!$G$16)/('BP Financier'!$C$16+'BP Financier'!$C$19+'BP Financier'!$D$16+'BP Financier'!$D$19+'BP Financier'!$E$16+'BP Financier'!$E$19+'BP Financier'!$C$22+'BP Financier'!$D$22+'BP Financier'!$E$22+'BP Financier'!$F$16+'BP Financier'!$F$19+'BP Financier'!$F$22+'BP Financier'!$G$16+'BP Financier'!$G$19+'BP Financier'!$G$22))*$V8365*Y8365/(1-$W8365)","v":{"v":27850.644199808314,"d":"27,851"}},{"$f":"'BP Financier'!$G$44*(('BP Financier'!$C$16+'BP Financier'!$D$16+'BP Financier'!$E$16+'BP Financier'!$F$16+'BP Financier'!$G$16)/('BP Financier'!$C$16+'BP Financier'!$C$19+'BP Financier'!$D$16+'BP Financier'!$D$19+'BP Financier'!$E$16+'BP Financier'!$E$19+'BP Financier'!$C$22+'BP Financier'!$D$22+'BP Financier'!$E$22+'BP Financier'!$F$16+'BP Financier'!$F$19+'BP Financier'!$F$22+'BP Financier'!$G$16+'BP Financier'!$G$19+'BP Financier'!$G$22))*$V8365*Z8365/(1-$W8365)","v":{"v":217971.57072081385,"d":"217,972"}},{"$f":"'BP Financier'!$G$44*(('BP Financier'!$C$16+'BP Financier'!$D$16+'BP Financier'!$E$16+'BP Financier'!$F$16+'BP Financier'!$G$16)/('BP Financier'!$C$16+'BP Financier'!$C$19+'BP Financier'!$D$16+'BP Financier'!$D$19+'BP Financier'!$E$16+'BP Financier'!$E$19+'BP Financier'!$C$22+'BP Financier'!$D$22+'BP Financier'!$E$22+'BP Financier'!$F$16+'BP Financier'!$F$19+'BP Financier'!$F$22+'BP Financier'!$G$16+'BP Financier'!$G$19+'BP Financier'!$G$22))*$V8365*AA8365/(1-$W8365)","v":{"v":26929.96174692209,"d":"26,930"}},{"$f":"'BP Financier'!$G$44*(('BP Financier'!$C$16+'BP Financier'!$D$16+'BP Financier'!$E$16+'BP Financier'!$F$16+'BP Financier'!$G$16)/('BP Financier'!$C$16+'BP Financier'!$C$19+'BP Financier'!$D$16+'BP Financier'!$D$19+'BP Financier'!$E$16+'BP Financier'!$E$19+'BP Financier'!$C$22+'BP Financier'!$D$22+'BP Financier'!$E$22+'BP Financier'!$F$16+'BP Financier'!$F$19+'BP Financier'!$F$22+'BP Financier'!$G$16+'BP Financier'!$G$19+'BP Financier'!$G$22))*$V8365*AB8365/(1-$W8365)","v":{"v":12889.554340407152,"d":"12,890"}},null,{"v":1E-3,"d":"0.10%"},{"$f":"Actif!$E$28/100","v":{"v":0.28900000000000003,"d":"28.90%"}},{"$f":"Actif!$E$30/100","v":{"v":0.09050000000000001,"d":"9.05%"}},{"$f":"Actif!$E$31/100","v":{"v":0.0605,"d":"6.05%"}},{"$f":"Actif!$E$32/100","v":{"v":0.47350000000000003,"d":"47.35%"}},{"$f":"Actif!$E$33/100","v":{"v":0.0585,"d":"5.85%"}},{"$f":"Actif!$E$29/100","v":{"v":0.027999999999999997,"d":"2.80%"}}]
[null,"#253",80,2029,"F","A_VIE",{"v":0.44999999999999996,"d":"0.45"},{"v":0.38999999999999996,"d":"0.39"},0.6,0.6,85,0,{"$f":"ROUND(Primes!$Q$4*V8366,0)","v":11},{"$f":"'BP Financier'!$G$33*(('BP Financier'!$C$16+'BP Financier'!$D$16+'BP Financier'!$E$16+'BP Financier'!$F$16+'BP Financier'!$G$16)/('BP Financier'!$C$16+'BP Financier'!$C$19+'BP Financier'!$D$16+'BP Financier'!$D$19+'BP Financier'!$E$16+'BP Financier'!$E$19+'BP Financier'!$F$16+'BP Financier'!$F$19+'BP Financier'!$G$19+'BP Financier'!$G$16))*V8366","v":{"v":570278.6743187835,"d":"570,279"}},{"v":327302.6120010531,"d":"327,303"},{"$f":"'BP Financier'!$G$44*(('BP Financier'!$C$16+'BP Financier'!$D$16+'BP Financier'!$E$16+'BP Financier'!$F$16+'BP Financier'!$G$16)/('BP Financier'!$C$16+'BP Financier'!$C$19+'BP Financier'!$D$16+'BP Financier'!$D$19+'BP Financier'!$E$16+'BP Financier'!$E$19+'BP Financier'!$C$22+'BP Financier'!$D$22+'BP Financier'!$E$22+'BP Financier'!$F$16+'BP Financier'!$F$19+'BP Financier'!$F$22+'BP Financier'!$G$16+'BP Financier'!$G$19+'BP Financier'!$G$22))*$V8366*X8366/(1-$W8366)","v":{"v":41660.880993101695,"d":"41,661"}},{"$f":"'BP Financier'!$G$44*(('BP Financier'!$C$16+'BP Financier'!$D$16+'BP Financier'!$E$16+'BP Financier'!$F$16+'BP Financier'!$G$16)/('BP Financier'!$C$16+'BP Financier'!$C$19+'BP Financier'!$D$16+'BP Financier'!$D$19+'BP Financier'!$E$16+'BP Financier'!$E$19+'BP Financier'!$C$22+'BP Financier'!$D$22+'BP Financier'!$E$22+'BP Financier'!$F$16+'BP Financier'!$F$19+'BP Financier'!$F$22+'BP Financier'!$G$16+'BP Financier'!$G$19+'BP Financier'!$G$22))*$V8366*Y8366/(1-$W8366)","v":{"v":27850.644199808314,"d":"27,851"}},{"$f":"'BP Financier'!$G$44*(('BP Financier'!$C$16+'BP Financier'!$D$16+'BP Financier'!$E$16+'BP Financier'!$F$16+'BP Financier'!$G$16)/('BP Financier'!$C$16+'BP Financier'!$C$19+'BP Financier'!$D$16+'BP Financier'!$D$19+'BP Financier'!$E$16+'BP Financier'!$E$19+'BP Financier'!$C$22+'BP Financier'!$D$22+'BP Financier'!$E$22+'BP Financier'!$F$16+'BP Financier'!$F$19+'BP Financier'!$F$22+'BP Financier'!$G$16+'BP Financier'!$G$19+'BP Financier'!$G$22))*$V8366*Z8366/(1-$W8366)","v":{"v":217971.57072081385,"d":"217,972"}},{"$f":"'BP Financier'!$G$44*(('BP Financier'!$C$16+'BP Financier'!$D$16+'BP Financier'!$E$16+'BP Financier'!$F$16+'BP Financier'!$G$16)/('BP Financier'!$C$16+'BP Financier'!$C$19+'BP Financier'!$D$16+'BP Financier'!$D$19+'BP Financier'!$E$16+'BP Financier'!$E$19+'BP Financier'!$C$22+'BP Financier'!$D$22+'BP Financier'!$E$22+'BP Financier'!$F$16+'BP Financier'!$F$19+'BP Financier'!$F$22+'BP Financier'!$G$16+'BP Financier'!$G$19+'BP Financier'!$G$22))*$V8366*AA8366/(1-$W8366)","v":{"v":26929.96174692209,"d":"26,930"}},{"$f":"'BP Financier'!$G$44*(('BP Financier'!$C$16+'BP Financier'!$D$16+'BP Financier'!$E$16+'BP Financier'!$F$16+'BP Financier'!$G$16)/('BP Financier'!$C$16+'BP Financier'!$C$19+'BP Financier'!$D$16+'BP Financier'!$D$19+'BP Financier'!$E$16+'BP Financier'!$E$19+'BP Financier'!$C$22+'BP Financier'!$D$22+'BP Financier'!$E$22+'BP Financier'!$F$16+'BP Financier'!$F$19+'BP Financier'!$F$22+'BP Financier'!$G$16+'BP Financier'!$G$19+'BP Financier'!$G$22))*$V8366*AB8366/(1-$W8366)","v":{"v":12889.554340407152,"d":"12,890"}},null,{"v":1E-3,"d":"0.10%"},{"$f":"Actif!$E$28/100","v":{"v":0.28900000000000003,"d":"28.90%"}},{"$f":"Actif!$E$30/100","v":{"v":0.09050000000000001,"d":"9.05%"}},{"$f":"Actif!$E$31/100","v":{"v":0.0605,"d":"6.05%"}},{"$f":"Actif!$E$32/100","v":{"v":0.47350000000000003,"d":"47.35%"}},{"$f":"Actif!$E$33/100","v":{"v":0.0585,"d":"5.85%"}},{"$f":"Actif!$E$29/100","v":{"v":0.027999999999999997,"d":"2.80%"}}]
[null,"#254",80,2030,"F","A_VIE",{"v":0.44999999999999996,"d":"0.45"},{"v":0.38999999999999996,"d":"0.39"},0.6,0.6,85,0,{"$f":"ROUND(Primes!$Q$4*V8367,0)","v":11},{"$f":"'BP Financier'!$G$33*(('BP Financier'!$C$16+'BP Financier'!$D$16+'BP Financier'!$E$16+'BP Financier'!$F$16+'BP Financier'!$G$16)/('BP Financier'!$C$16+'BP Financier'!$C$19+'BP Financier'!$D$16+'BP Financier'!$D$19+'BP Financier'!$E$16+'BP Financier'!$E$19+'BP Financier'!$F$16+'BP Financier'!$F$19+'BP Financier'!$G$19+'BP Financier'!$G$16))*V8367","v":{"v":570278.6743187835,"d":"570,279"}},{"v":327302.6120010531,"d":"327,303"},{"$f":"'BP Financier'!$G$44*(('BP Financier'!$C$16+'BP Financier'!$D$16+'BP Financier'!$E$16+'BP Financier'!$F$16+'BP Financier'!$G$16)/('BP Financier'!$C$16+'BP Financier'!$C$19+'BP Financier'!$D$16+'BP Financier'!$D$19+'BP Financier'!$E$16+'BP Financier'!$E$19+'BP Financier'!$C$22+'BP Financier'!$D$22+'BP Financier'!$E$22+'BP Financier'!$F$16+'BP Financier'!$F$19+'BP Financier'!$F$22+'BP Financier'!$G$16+'BP Financier'!$G$19+'BP Financier'!$G$22))*$V8367*X8367/(1-$W8367)","v":{"v":41660.880993101695,"d":"41,661"}},{"$f":"'BP Financier'!$G$44*(('BP Financier'!$C$16+'BP Financier'!$D$16+'BP Financier'!$E$16+'BP Financier'!$F$16+'BP Financier'!$G$16)/('BP Financier'!$C$16+'BP Financier'!$C$19+'BP Financier'!$D$16+'BP Financier'!$D$19+'BP Financier'!$E$16+'BP Financier'!$E$19+'BP Financier'!$C$22+'BP Financier'!$D$22+'BP Financier'!$E$22+'BP Financier'!$F$16+'BP Financier'!$F$19+'BP Financier'!$F$22+'BP Financier'!$G$16+'BP Financier'!$G$19+'BP Financier'!$G$22))*$V8367*Y8367/(1-$W8367)","v":{"v":27850.644199808314,"d":"27,851"}},{"$f":"'BP Financier'!$G$44*(('BP Financier'!$C$16+'BP Financier'!$D$16+'BP Financier'!$E$16+'BP Financier'!$F$16+'BP Financier'!$G$16)/('BP Financier'!$C$16+'BP Financier'!$C$19+'BP Financier'!$D$16+'BP Financier'!$D$19+'BP Financier'!$E$16+'BP Financier'!$E$19+'BP Financier'!$C$22+'BP Financier'!$D$22+'BP Financier'!$E$22+'BP Financier'!$F$16+'BP Financier'!$F$19+'BP Financier'!$F$22+'BP Financier'!$G$16+'BP Financier'!$G$19+'BP Financier'!$G$22))*$V8367*Z8367/(1-$W8367)","v":{"v":217971.57072081385,"d":"217,972"}},{"$f":"'BP Financier'!$G$44*(('BP Financier'!$C$16+'BP Financier'!$D$16+'BP Financier'!$E$16+'BP Financier'!$F$16+'BP Financier'!$G$16)/('BP Financier'!$C$16+'BP Financier'!$C$19+'BP Financier'!$D$16+'BP Financier'!$D$19+'BP Financier'!$E$16+'BP Financier'!$E$19+'BP Financier'!$C$22+'BP Financier'!$D$22+'BP Financier'!$E$22+'BP Financier'!$F$16+'BP Financier'!$F$19+'BP Financier'!$F$22+'BP Financier'!$G$16+'BP Financier'!$G$19+'BP Financier'!$G$22))*$V8367*AA8367/(1-$W8367)","v":{"v":26929.96174692209,"d":"26,930"}},{"$f":"'BP Financier'!$G$44*(('BP Financier'!$C$16+'BP Financier'!$D$16+'BP Financier'!$E$16+'BP Financier'!$F$16+'BP Financier'!$G$16)/('BP Financier'!$C$16+'BP Financier'!$C$19+'BP Financier'!$D$16+'BP Financier'!$D$19+'BP Financier'!$E$16+'BP Financier'!$E$19+'BP Financier'!$C$22+'BP Financier'!$D$22+'BP Financier'!$E$22+'BP Financier'!$F$16+'BP Financier'!$F$19+'BP Financier'!$F$22+'BP Financier'!$G$16+'BP Financier'!$G$19+'BP Financier'!$G$22))*$V8367*AB8367/(1-$W8367)","v":{"v":12889.554340407152,"d":"12,890"}},null,{"v":1E-3,"d":"0.10%"},{"$f":"Actif!$E$28/100","v":{"v":0.28900000000000003,"d":"28.90%"}},{"$f":"Actif!$E$30/100","v":{"v":0.09050000000000001,"d":"9.05%"}},{"$f":"Actif!$E$31/100","v":{"v":0.0605,"d":"6.05%"}},{"$f":"Actif!$E$32/100","v":{"v":0.47350000000000003,"d":"47.35%"}},{"$f":"Actif!$E$33/100","v":{"v":0.0585,"d":"5.85%"}},{"$f":"Actif!$E$29/100","v":{"v":0.027999999999999997,"d":"2.80%"}}]
[null,"#255",80,2031,"F","A_VIE",{"v":0.44999999999999996,"d":"0.45"},{"v":0.38999999999999996,"d":"0.39"},0.6,0.6,85,0,{"$f":"ROUND(Primes!$Q$4*V8368,0)","v":11},{"$f":"'BP Financier'!$G$33*(('BP Financier'!$C$16+'BP Financier'!$D$16+'BP Financier'!$E$16+'BP Financier'!$F$16+'BP Financier'!$G$16)/('BP Financier'!$C$16+'BP Financier'!$C$19+'BP Financier'!$D$16+'BP Financier'!$D$19+'BP Financier'!$E$16+'BP Financier'!$E$19+'BP Financier'!$F$16+'BP Financier'!$F$19+'BP Financier'!$G$19+'BP Financier'!$G$16))*V8368","v":{"v":570278.6743187835,"d":"570,279"}},{"v":327302.6120010531,"d":"327,303"},{"$f":"'BP Financier'!$G$44*(('BP Financier'!$C$16+'BP Financier'!$D$16+'BP Financier'!$E$16+'BP Financier'!$F$16+'BP Financier'!$G$16)/('BP Financier'!$C$16+'BP Financier'!$C$19+'BP Financier'!$D$16+'BP Financier'!$D$19+'BP Financier'!$E$16+'BP Financier'!$E$19+'BP Financier'!$C$22+'BP Financier'!$D$22+'BP Financier'!$E$22+'BP Financier'!$F$16+'BP Financier'!$F$19+'BP Financier'!$F$22+'BP Financier'!$G$16+'BP Financier'!$G$19+'BP Financier'!$G$22))*$V8368*X8368/(1-$W8368)","v":{"v":41660.880993101695,"d":"41,661"}},{"$f":"'BP Financier'!$G$44*(('BP Financier'!$C$16+'BP Financier'!$D$16+'BP Financier'!$E$16+'BP Financier'!$F$16+'BP Financier'!$G$16)/('BP Financier'!$C$16+'BP Financier'!$C$19+'BP Financier'!$D$16+'BP Financier'!$D$19+'BP Financier'!$E$16+'BP Financier'!$E$19+'BP Financier'!$C$22+'BP Financier'!$D$22+'BP Financier'!$E$22+'BP Financier'!$F$16+'BP Financier'!$F$19+'BP Financier'!$F$22+'BP Financier'!$G$16+'BP Financier'!$G$19+'BP Financier'!$G$22))*$V8368*Y8368/(1-$W8368)","v":{"v":27850.644199808314,"d":"27,851"}},{"$f":"'BP Financier'!$G$44*(('BP Financier'!$C$16+'BP Financier'!$D$16+'BP Financier'!$E$16+'BP Financier'!$F$16+'BP Financier'!$G$16)/('BP Financier'!$C$16+'BP Financier'!$C$19+'BP Financier'!$D$16+'BP Financier'!$D$19+'BP Financier'!$E$16+'BP Financier'!$E$19+'BP Financier'!$C$22+'BP Financier'!$D$22+'BP Financier'!$E$22+'BP Financier'!$F$16+'BP Financier'!$F$19+'BP Financier'!$F$22+'BP Financier'!$G$16+'BP Financier'!$G$19+'BP Financier'!$G$22))*$V8368*Z8368/(1-$W8368)","v":{"v":217971.57072081385,"d":"217,972"}},{"$f":"'BP Financier'!$G$44*(('BP Financier'!$C$16+'BP Financier'!$D$16+'BP Financier'!$E$16+'BP Financier'!$F$16+'BP Financier'!$G$16)/('BP Financier'!$C$16+'BP Financier'!$C$19+'BP Financier'!$D$16+'BP Financier'!$D$19+'BP Financier'!$E$16+'BP Financier'!$E$19+'BP Financier'!$C$22+'BP Financier'!$D$22+'BP Financier'!$E$22+'BP Financier'!$F$16+'BP Financier'!$F$19+'BP Financier'!$F$22+'BP Financier'!$G$16+'BP Financier'!$G$19+'BP Financier'!$G$22))*$V8368*AA8368/(1-$W8368)","v":{"v":26929.96174692209,"d":"26,930"}},{"$f":"'BP Financier'!$G$44*(('BP Financier'!$C$16+'BP Financier'!$D$16+'BP Financier'!$E$16+'BP Financier'!$F$16+'BP Financier'!$G$16)/('BP Financier'!$C$16+'BP Financier'!$C$19+'BP Financier'!$D$16+'BP Financier'!$D$19+'BP Financier'!$E$16+'BP Financier'!$E$19+'BP Financier'!$C$22+'BP Financier'!$D$22+'BP Financier'!$E$22+'BP Financier'!$F$16+'BP Financier'!$F$19+'BP Financier'!$F$22+'BP Financier'!$G$16+'BP Financier'!$G$19+'BP Financier'!$G$22))*$V8368*AB8368/(1-$W8368)","v":{"v":12889.554340407152,"d":"12,890"}},null,{"v":1E-3,"d":"0.10%"},{"$f":"Actif!$E$28/100","v":{"v":0.28900000000000003,"d":"28.90%"}},{"$f":"Actif!$E$30/100","v":{"v":0.09050000000000001,"d":"9.05%"}},{"$f":"Actif!$E$31/100","v":{"v":0.0605,"d":"6.05%"}},{"$f":"Actif!$E$32/100","v":{"v":0.47350000000000003,"d":"47.35%"}},{"$f":"Actif!$E$33/100","v":{"v":0.0585,"d":"5.85%"}},{"$f":"Actif!$E$29/100","v":{"v":0.027999999999999997,"d":"2.80%"}}]
[null,"#256",85,2026,"H","A_VIE",{"v":0.44999999999999996,"d":"0.45"},{"v":0.38999999999999996,"d":"0.39"},0.6,0.6,85,0,{"$f":"ROUND(Primes!$Q$4*V8369,0)","v":6},{"$f":"'BP Financier'!$G$33*(('BP Financier'!$C$16+'BP Financier'!$D$16+'BP Financier'!$E$16+'BP Financier'!$F$16+'BP Financier'!$G$16)/('BP Financier'!$C$16+'BP Financier'!$C$19+'BP Financier'!$D$16+'BP Financier'!$D$19+'BP Financier'!$E$16+'BP Financier'!$E$19+'BP Financier'!$F$16+'BP Financier'!$F$19+'BP Financier'!$G$19+'BP Financier'!$G$16))*V8369","v":{"v":285139.3371593917,"d":"285,139"}},{"v":163651.30600052656,"d":"163,651"},{"$f":"'BP Financier'!$G$44*(('BP Financier'!$C$16+'BP Financier'!$D$16+'BP Financier'!$E$16+'BP Financier'!$F$16+'BP Financier'!$G$16)/('BP Financier'!$C$16+'BP Financier'!$C$19+'BP Financier'!$D$16+'BP Financier'!$D$19+'BP Financier'!$E$16+'BP Financier'!$E$19+'BP Financier'!$C$22+'BP Financier'!$D$22+'BP Financier'!$E$22+'BP Financier'!$F$16+'BP Financier'!$F$19+'BP Financier'!$F$22+'BP Financier'!$G$16+'BP Financier'!$G$19+'BP Financier'!$G$22))*$V8369*X8369/(1-$W8369)","v":{"v":20830.440496550847,"d":"20,830"}},{"$f":"'BP Financier'!$G$44*(('BP Financier'!$C$16+'BP Financier'!$D$16+'BP Financier'!$E$16+'BP Financier'!$F$16+'BP Financier'!$G$16)/('BP Financier'!$C$16+'BP Financier'!$C$19+'BP Financier'!$D$16+'BP Financier'!$D$19+'BP Financier'!$E$16+'BP Financier'!$E$19+'BP Financier'!$C$22+'BP Financier'!$D$22+'BP Financier'!$E$22+'BP Financier'!$F$16+'BP Financier'!$F$19+'BP Financier'!$F$22+'BP Financier'!$G$16+'BP Financier'!$G$19+'BP Financier'!$G$22))*$V8369*Y8369/(1-$W8369)","v":{"v":13925.322099904157,"d":"13,925"}},{"$f":"'BP Financier'!$G$44*(('BP Financier'!$C$16+'BP Financier'!$D$16+'BP Financier'!$E$16+'BP Financier'!$F$16+'BP Financier'!$G$16)/('BP Financier'!$C$16+'BP Financier'!$C$19+'BP Financier'!$D$16+'BP Financier'!$D$19+'BP Financier'!$E$16+'BP Financier'!$E$19+'BP Financier'!$C$22+'BP Financier'!$D$22+'BP Financier'!$E$22+'BP Financier'!$F$16+'BP Financier'!$F$19+'BP Financier'!$F$22+'BP Financier'!$G$16+'BP Financier'!$G$19+'BP Financier'!$G$22))*$V8369*Z8369/(1-$W8369)","v":{"v":108985.78536040692,"d":"108,986"}},{"$f":"'BP Financier'!$G$44*(('BP Financier'!$C$16+'BP Financier'!$D$16+'BP Financier'!$E$16+'BP Financier'!$F$16+'BP Financier'!$G$16)/('BP Financier'!$C$16+'BP Financier'!$C$19+'BP Financier'!$D$16+'BP Financier'!$D$19+'BP Financier'!$E$16+'BP Financier'!$E$19+'BP Financier'!$C$22+'BP Financier'!$D$22+'BP Financier'!$E$22+'BP Financier'!$F$16+'BP Financier'!$F$19+'BP Financier'!$F$22+'BP Financier'!$G$16+'BP Financier'!$G$19+'BP Financier'!$G$22))*$V8369*AA8369/(1-$W8369)","v":{"v":13464.980873461045,"d":"13,465"}},{"$f":"'BP Financier'!$G$44*(('BP Financier'!$C$16+'BP Financier'!$D$16+'BP Financier'!$E$16+'BP Financier'!$F$16+'BP Financier'!$G$16)/('BP Financier'!$C$16+'BP Financier'!$C$19+'BP Financier'!$D$16+'BP Financier'!$D$19+'BP Financier'!$E$16+'BP Financier'!$E$19+'BP Financier'!$C$22+'BP Financier'!$D$22+'BP Financier'!$E$22+'BP Financier'!$F$16+'BP Financier'!$F$19+'BP Financier'!$F$22+'BP Financier'!$G$16+'BP Financier'!$G$19+'BP Financier'!$G$22))*$V8369*AB8369/(1-$W8369)","v":{"v":6444.777170203576,"d":"6,445"}},null,{"v":0.0005,"d":"0.05%"},{"$f":"Actif!$E$28/100","v":{"v":0.28900000000000003,"d":"28.90%"}},{"$f":"Actif!$E$30/100","v":{"v":0.09050000000000001,"d":"9.05%"}},{"$f":"Actif!$E$31/100","v":{"v":0.0605,"d":"6.05%"}},{"$f":"Actif!$E$32/100","v":{"v":0.47350000000000003,"d":"47.35%"}},{"$f":"Actif!$E$33/100","v":{"v":0.0585,"d":"5.85%"}},{"$f":"Actif!$E$29/100","v":{"v":0.027999999999999997,"d":"2.80%"}}]
[null,"#257",85,2028,"H","A_VIE",{"v":0.44999999999999996,"d":"0.45"},{"v":0.38999999999999996,"d":"0.39"},0.6,0.6,85,0,{"$f":"ROUND(Primes!$Q$4*V8370,0)","v":6},{"$f":"'BP Financier'!$G$33*(('BP Financier'!$C$16+'BP Financier'!$D$16+'BP Financier'!$E$16+'BP Financier'!$F$16+'BP Financier'!$G$16)/('BP Financier'!$C$16+'BP Financier'!$C$19+'BP Financier'!$D$16+'BP Financier'!$D$19+'BP Financier'!$E$16+'BP Financier'!$E$19+'BP Financier'!$F$16+'BP Financier'!$F$19+'BP Financier'!$G$19+'BP Financier'!$G$16))*V8370","v":{"v":285139.3371593917,"d":"285,139"}},{"v":163651.30600052656,"d":"163,651"},{"$f":"'BP Financier'!$G$44*(('BP Financier'!$C$16+'BP Financier'!$D$16+'BP Financier'!$E$16+'BP Financier'!$F$16+'BP Financier'!$G$16)/('BP Financier'!$C$16+'BP Financier'!$C$19+'BP Financier'!$D$16+'BP Financier'!$D$19+'BP Financier'!$E$16+'BP Financier'!$E$19+'BP Financier'!$C$22+'BP Financier'!$D$22+'BP Financier'!$E$22+'BP Financier'!$F$16+'BP Financier'!$F$19+'BP Financier'!$F$22+'BP Financier'!$G$16+'BP Financier'!$G$19+'BP Financier'!$G$22))*$V8370*X8370/(1-$W8370)","v":{"v":20830.440496550847,"d":"20,830"}},{"$f":"'BP Financier'!$G$44*(('BP Financier'!$C$16+'BP Financier'!$D$16+'BP Financier'!$E$16+'BP Financier'!$F$16+'BP Financier'!$G$16)/('BP Financier'!$C$16+'BP Financier'!$C$19+'BP Financier'!$D$16+'BP Financier'!$D$19+'BP Financier'!$E$16+'BP Financier'!$E$19+'BP Financier'!$C$22+'BP Financier'!$D$22+'BP Financier'!$E$22+'BP Financier'!$F$16+'BP Financier'!$F$19+'BP Financier'!$F$22+'BP Financier'!$G$16+'BP Financier'!$G$19+'BP Financier'!$G$22))*$V8370*Y8370/(1-$W8370)","v":{"v":13925.322099904157,"d":"13,925"}},{"$f":"'BP Financier'!$G$44*(('BP Financier'!$C$16+'BP Financier'!$D$16+'BP Financier'!$E$16+'BP Financier'!$F$16+'BP Financier'!$G$16)/('BP Financier'!$C$16+'BP Financier'!$C$19+'BP Financier'!$D$16+'BP Financier'!$D$19+'BP Financier'!$E$16+'BP Financier'!$E$19+'BP Financier'!$C$22+'BP Financier'!$D$22+'BP Financier'!$E$22+'BP Financier'!$F$16+'BP Financier'!$F$19+'BP Financier'!$F$22+'BP Financier'!$G$16+'BP Financier'!$G$19+'BP Financier'!$G$22))*$V8370*Z8370/(1-$W8370)","v":{"v":108985.78536040692,"d":"108,986"}},{"$f":"'BP Financier'!$G$44*(('BP Financier'!$C$16+'BP Financier'!$D$16+'BP Financier'!$E$16+'BP Financier'!$F$16+'BP Financier'!$G$16)/('BP Financier'!$C$16+'BP Financier'!$C$19+'BP Financier'!$D$16+'BP Financier'!$D$19+'BP Financier'!$E$16+'BP Financier'!$E$19+'BP Financier'!$C$22+'BP Financier'!$D$22+'BP Financier'!$E$22+'BP Financier'!$F$16+'BP Financier'!$F$19+'BP Financier'!$F$22+'BP Financier'!$G$16+'BP Financier'!$G$19+'BP Financier'!$G$22))*$V8370*AA8370/(1-$W8370)","v":{"v":13464.980873461045,"d":"13,465"}},{"$f":"'BP Financier'!$G$44*(('BP Financier'!$C$16+'BP Financier'!$D$16+'BP Financier'!$E$16+'BP Financier'!$F$16+'BP Financier'!$G$16)/('BP Financier'!$C$16+'BP Financier'!$C$19+'BP Financier'!$D$16+'BP Financier'!$D$19+'BP Financier'!$E$16+'BP Financier'!$E$19+'BP Financier'!$C$22+'BP Financier'!$D$22+'BP Financier'!$E$22+'BP Financier'!$F$16+'BP Financier'!$F$19+'BP Financier'!$F$22+'BP Financier'!$G$16+'BP Financier'!$G$19+'BP Financier'!$G$22))*$V8370*AB8370/(1-$W8370)","v":{"v":6444.777170203576,"d":"6,445"}},null,{"v":0.0005,"d":"0.05%"},{"$f":"Actif!$E$28/100","v":{"v":0.28900000000000003,"d":"28.90%"}},{"$f":"Actif!$E$30/100","v":{"v":0.09050000000000001,"d":"9.05%"}},{"$f":"Actif!$E$31/100","v":{"v":0.0605,"d":"6.05%"}},{"$f":"Actif!$E$32/100","v":{"v":0.47350000000000003,"d":"47.35%"}},{"$f":"Actif!$E$33/100","v":{"v":0.0585,"d":"5.85%"}},{"$f":"Actif!$E$29/100","v":{"v":0.027999999999999997,"d":"2.80%"}}]
[null,"#258",85,2029,"H","A_VIE",{"v":0.44999999999999996,"d":"0.45"},{"v":0.38999999999999996,"d":"0.39"},0.6,0.6,85,0,{"$f":"ROUND(Primes!$Q$4*V8371,0)","v":6},{"$f":"'BP Financier'!$G$33*(('BP Financier'!$C$16+'BP Financier'!$D$16+'BP Financier'!$E$16+'BP Financier'!$F$16+'BP Financier'!$G$16)/('BP Financier'!$C$16+'BP Financier'!$C$19+'BP Financier'!$D$16+'BP Financier'!$D$19+'BP Financier'!$E$16+'BP Financier'!$E$19+'BP Financier'!$F$16+'BP Financier'!$F$19+'BP Financier'!$G$19+'BP Financier'!$G$16))*V8371","v":{"v":285139.3371593917,"d":"285,139"}},{"v":163651.30600052656,"d":"163,651"},{"$f":"'BP Financier'!$G$44*(('BP Financier'!$C$16+'BP Financier'!$D$16+'BP Financier'!$E$16+'BP Financier'!$F$16+'BP Financier'!$G$16)/('BP Financier'!$C$16+'BP Financier'!$C$19+'BP Financier'!$D$16+'BP Financier'!$D$19+'BP Financier'!$E$16+'BP Financier'!$E$19+'BP Financier'!$C$22+'BP Financier'!$D$22+'BP Financier'!$E$22+'BP Financier'!$F$16+'BP Financier'!$F$19+'BP Financier'!$F$22+'BP Financier'!$G$16+'BP Financier'!$G$19+'BP Financier'!$G$22))*$V8371*X8371/(1-$W8371)","v":{"v":20830.440496550847,"d":"20,830"}},{"$f":"'BP Financier'!$G$44*(('BP Financier'!$C$16+'BP Financier'!$D$16+'BP Financier'!$E$16+'BP Financier'!$F$16+'BP Financier'!$G$16)/('BP Financier'!$C$16+'BP Financier'!$C$19+'BP Financier'!$D$16+'BP Financier'!$D$19+'BP Financier'!$E$16+'BP Financier'!$E$19+'BP Financier'!$C$22+'BP Financier'!$D$22+'BP Financier'!$E$22+'BP Financier'!$F$16+'BP Financier'!$F$19+'BP Financier'!$F$22+'BP Financier'!$G$16+'BP Financier'!$G$19+'BP Financier'!$G$22))*$V8371*Y8371/(1-$W8371)","v":{"v":13925.322099904157,"d":"13,925"}},{"$f":"'BP Financier'!$G$44*(('BP Financier'!$C$16+'BP Financier'!$D$16+'BP Financier'!$E$16+'BP Financier'!$F$16+'BP Financier'!$G$16)/('BP Financier'!$C$16+'BP Financier'!$C$19+'BP Financier'!$D$16+'BP Financier'!$D$19+'BP Financier'!$E$16+'BP Financier'!$E$19+'BP Financier'!$C$22+'BP Financier'!$D$22+'BP Financier'!$E$22+'BP Financier'!$F$16+'BP Financier'!$F$19+'BP Financier'!$F$22+'BP Financier'!$G$16+'BP Financier'!$G$19+'BP Financier'!$G$22))*$V8371*Z8371/(1-$W8371)","v":{"v":108985.78536040692,"d":"108,986"}},{"$f":"'BP Financier'!$G$44*(('BP Financier'!$C$16+'BP Financier'!$D$16+'BP Financier'!$E$16+'BP Financier'!$F$16+'BP Financier'!$G$16)/('BP Financier'!$C$16+'BP Financier'!$C$19+'BP Financier'!$D$16+'BP Financier'!$D$19+'BP Financier'!$E$16+'BP Financier'!$E$19+'BP Financier'!$C$22+'BP Financier'!$D$22+'BP Financier'!$E$22+'BP Financier'!$F$16+'BP Financier'!$F$19+'BP Financier'!$F$22+'BP Financier'!$G$16+'BP Financier'!$G$19+'BP Financier'!$G$22))*$V8371*AA8371/(1-$W8371)","v":{"v":13464.980873461045,"d":"13,465"}},{"$f":"'BP Financier'!$G$44*(('BP Financier'!$C$16+'BP Financier'!$D$16+'BP Financier'!$E$16+'BP Financier'!$F$16+'BP Financier'!$G$16)/('BP Financier'!$C$16+'BP Financier'!$C$19+'BP Financier'!$D$16+'BP Financier'!$D$19+'BP Financier'!$E$16+'BP Financier'!$E$19+'BP Financier'!$C$22+'BP Financier'!$D$22+'BP Financier'!$E$22+'BP Financier'!$F$16+'BP Financier'!$F$19+'BP Financier'!$F$22+'BP Financier'!$G$16+'BP Financier'!$G$19+'BP Financier'!$G$22))*$V8371*AB8371/(1-$W8371)","v":{"v":6444.777170203576,"d":"6,445"}},null,{"v":0.0005,"d":"0.05%"},{"$f":"Actif!$E$28/100","v":{"v":0.28900000000000003,"d":"28.90%"}},{"$f":"Actif!$E$30/100","v":{"v":0.09050000000000001,"d":"9.05%"}},{"$f":"Actif!$E$31/100","v":{"v":0.0605,"d":"6.05%"}},{"$f":"Actif!$E$32/100","v":{"v":0.47350000000000003,"d":"47.35%"}},{"$f":"Actif!$E$33/100","v":{"v":0.0585,"d":"5.85%"}},{"$f":"Actif!$E$29/100","v":{"v":0.027999999999999997,"d":"2.80%"}}]
[null,"#259",85,2030,"H","A_VIE",{"v":0.44999999999999996,"d":"0.45"},{"v":0.38999999999999996,"d":"0.39"},0.6,0.6,85,0,{"$f":"ROUND(Primes!$Q$4*V8372,0)","v":6},{"$f":"'BP Financier'!$G$33*(('BP Financier'!$C$16+'BP Financier'!$D$16+'BP Financier'!$E$16+'BP Financier'!$F$16+'BP Financier'!$G$16)/('BP Financier'!$C$16+'BP Financier'!$C$19+'BP Financier'!$D$16+'BP Financier'!$D$19+'BP Financier'!$E$16+'BP Financier'!$E$19+'BP Financier'!$F$16+'BP Financier'!$F$19+'BP Financier'!$G$19+'BP Financier'!$G$16))*V8372","v":{"v":285139.3371593917,"d":"285,139"}},{"v":163651.30600052656,"d":"163,651"},{"$f":"'BP Financier'!$G$44*(('BP Financier'!$C$16+'BP Financier'!$D$16+'BP Financier'!$E$16+'BP Financier'!$F$16+'BP Financier'!$G$16)/('BP Financier'!$C$16+'BP Financier'!$C$19+'BP Financier'!$D$16+'BP Financier'!$D$19+'BP Financier'!$E$16+'BP Financier'!$E$19+'BP Financier'!$C$22+'BP Financier'!$D$22+'BP Financier'!$E$22+'BP Financier'!$F$16+'BP Financier'!$F$19+'BP Financier'!$F$22+'BP Financier'!$G$16+'BP Financier'!$G$19+'BP Financier'!$G$22))*$V8372*X8372/(1-$W8372)","v":{"v":20830.440496550847,"d":"20,830"}},{"$f":"'BP Financier'!$G$44*(('BP Financier'!$C$16+'BP Financier'!$D$16+'BP Financier'!$E$16+'BP Financier'!$F$16+'BP Financier'!$G$16)/('BP Financier'!$C$16+'BP Financier'!$C$19+'BP Financier'!$D$16+'BP Financier'!$D$19+'BP Financier'!$E$16+'BP Financier'!$E$19+'BP Financier'!$C$22+'BP Financier'!$D$22+'BP Financier'!$E$22+'BP Financier'!$F$16+'BP Financier'!$F$19+'BP Financier'!$F$22+'BP Financier'!$G$16+'BP Financier'!$G$19+'BP Financier'!$G$22))*$V8372*Y8372/(1-$W8372)","v":{"v":13925.322099904157,"d":"13,925"}},{"$f":"'BP Financier'!$G$44*(('BP Financier'!$C$16+'BP Financier'!$D$16+'BP Financier'!$E$16+'BP Financier'!$F$16+'BP Financier'!$G$16)/('BP Financier'!$C$16+'BP Financier'!$C$19+'BP Financier'!$D$16+'BP Financier'!$D$19+'BP Financier'!$E$16+'BP Financier'!$E$19+'BP Financier'!$C$22+'BP Financier'!$D$22+'BP Financier'!$E$22+'BP Financier'!$F$16+'BP Financier'!$F$19+'BP Financier'!$F$22+'BP Financier'!$G$16+'BP Financier'!$G$19+'BP Financier'!$G$22))*$V8372*Z8372/(1-$W8372)","v":{"v":108985.78536040692,"d":"108,986"}},{"$f":"'BP Financier'!$G$44*(('BP Financier'!$C$16+'BP Financier'!$D$16+'BP Financier'!$E$16+'BP Financier'!$F$16+'BP Financier'!$G$16)/('BP Financier'!$C$16+'BP Financier'!$C$19+'BP Financier'!$D$16+'BP Financier'!$D$19+'BP Financier'!$E$16+'BP Financier'!$E$19+'BP Financier'!$C$22+'BP Financier'!$D$22+'BP Financier'!$E$22+'BP Financier'!$F$16+'BP Financier'!$F$19+'BP Financier'!$F$22+'BP Financier'!$G$16+'BP Financier'!$G$19+'BP Financier'!$G$22))*$V8372*AA8372/(1-$W8372)","v":{"v":13464.980873461045,"d":"13,465"}},{"$f":"'BP Financier'!$G$44*(('BP Financier'!$C$16+'BP Financier'!$D$16+'BP Financier'!$E$16+'BP Financier'!$F$16+'BP Financier'!$G$16)/('BP Financier'!$C$16+'BP Financier'!$C$19+'BP Financier'!$D$16+'BP Financier'!$D$19+'BP Financier'!$E$16+'BP Financier'!$E$19+'BP Financier'!$C$22+'BP Financier'!$D$22+'BP Financier'!$E$22+'BP Financier'!$F$16+'BP Financier'!$F$19+'BP Financier'!$F$22+'BP Financier'!$G$16+'BP Financier'!$G$19+'BP Financier'!$G$22))*$V8372*AB8372/(1-$W8372)","v":{"v":6444.777170203576,"d":"6,445"}},null,{"v":0.0005,"d":"0.05%"},{"$f":"Actif!$E$28/100","v":{"v":0.28900000000000003,"d":"28.90%"}},{"$f":"Actif!$E$30/100","v":{"v":0.09050000000000001,"d":"9.05%"}},{"$f":"Actif!$E$31/100","v":{"v":0.0605,"d":"6.05%"}},{"$f":"Actif!$E$32/100","v":{"v":0.47350000000000003,"d":"47.35%"}},{"$f":"Actif!$E$33/100","v":{"v":0.0585,"d":"5.85%"}},{"$f":"Actif!$E$29/100","v":{"v":0.027999999999999997,"d":"2.80%"}}]
[null,"#260",85,2031,"H","A_VIE",{"v":0.44999999999999996,"d":"0.45"},{"v":0.38999999999999996,"d":"0.39"},0.6,0.6,85,0,{"$f":"ROUND(Primes!$Q$4*V8373,0)","v":6},{"$f":"'BP Financier'!$G$33*(('BP Financier'!$C$16+'BP Financier'!$D$16+'BP Financier'!$E$16+'BP Financier'!$F$16+'BP Financier'!$G$16)/('BP Financier'!$C$16+'BP Financier'!$C$19+'BP Financier'!$D$16+'BP Financier'!$D$19+'BP Financier'!$E$16+'BP Financier'!$E$19+'BP Financier'!$F$16+'BP Financier'!$F$19+'BP Financier'!$G$19+'BP Financier'!$G$16))*V8373","v":{"v":285139.3371593917,"d":"285,139"}},{"v":163651.30600052656,"d":"163,651"},{"$f":"'BP Financier'!$G$44*(('BP Financier'!$C$16+'BP Financier'!$D$16+'BP Financier'!$E$16+'BP Financier'!$F$16+'BP Financier'!$G$16)/('BP Financier'!$C$16+'BP Financier'!$C$19+'BP Financier'!$D$16+'BP Financier'!$D$19+'BP Financier'!$E$16+'BP Financier'!$E$19+'BP Financier'!$C$22+'BP Financier'!$D$22+'BP Financier'!$E$22+'BP Financier'!$F$16+'BP Financier'!$F$19+'BP Financier'!$F$22+'BP Financier'!$G$16+'BP Financier'!$G$19+'BP Financier'!$G$22))*$V8373*X8373/(1-$W8373)","v":{"v":20830.440496550847,"d":"20,830"}},{"$f":"'BP Financier'!$G$44*(('BP Financier'!$C$16+'BP Financier'!$D$16+'BP Financier'!$E$16+'BP Financier'!$F$16+'BP Financier'!$G$16)/('BP Financier'!$C$16+'BP Financier'!$C$19+'BP Financier'!$D$16+'BP Financier'!$D$19+'BP Financier'!$E$16+'BP Financier'!$E$19+'BP Financier'!$C$22+'BP Financier'!$D$22+'BP Financier'!$E$22+'BP Financier'!$F$16+'BP Financier'!$F$19+'BP Financier'!$F$22+'BP Financier'!$G$16+'BP Financier'!$G$19+'BP Financier'!$G$22))*$V8373*Y8373/(1-$W8373)","v":{"v":13925.322099904157,"d":"13,925"}},{"$f":"'BP Financier'!$G$44*(('BP Financier'!$C$16+'BP Financier'!$D$16+'BP Financier'!$E$16+'BP Financier'!$F$16+'BP Financier'!$G$16)/('BP Financier'!$C$16+'BP Financier'!$C$19+'BP Financier'!$D$16+'BP Financier'!$D$19+'BP Financier'!$E$16+'BP Financier'!$E$19+'BP Financier'!$C$22+'BP Financier'!$D$22+'BP Financier'!$E$22+'BP Financier'!$F$16+'BP Financier'!$F$19+'BP Financier'!$F$22+'BP Financier'!$G$16+'BP Financier'!$G$19+'BP Financier'!$G$22))*$V8373*Z8373/(1-$W8373)","v":{"v":108985.78536040692,"d":"108,986"}},{"$f":"'BP Financier'!$G$44*(('BP Financier'!$C$16+'BP Financier'!$D$16+'BP Financier'!$E$16+'BP Financier'!$F$16+'BP Financier'!$G$16)/('BP Financier'!$C$16+'BP Financier'!$C$19+'BP Financier'!$D$16+'BP Financier'!$D$19+'BP Financier'!$E$16+'BP Financier'!$E$19+'BP Financier'!$C$22+'BP Financier'!$D$22+'BP Financier'!$E$22+'BP Financier'!$F$16+'BP Financier'!$F$19+'BP Financier'!$F$22+'BP Financier'!$G$16+'BP Financier'!$G$19+'BP Financier'!$G$22))*$V8373*AA8373/(1-$W8373)","v":{"v":13464.980873461045,"d":"13,465"}},{"$f":"'BP Financier'!$G$44*(('BP Financier'!$C$16+'BP Financier'!$D$16+'BP Financier'!$E$16+'BP Financier'!$F$16+'BP Financier'!$G$16)/('BP Financier'!$C$16+'BP Financier'!$C$19+'BP Financier'!$D$16+'BP Financier'!$D$19+'BP Financier'!$E$16+'BP Financier'!$E$19+'BP Financier'!$C$22+'BP Financier'!$D$22+'BP Financier'!$E$22+'BP Financier'!$F$16+'BP Financier'!$F$19+'BP Financier'!$F$22+'BP Financier'!$G$16+'BP Financier'!$G$19+'BP Financier'!$G$22))*$V8373*AB8373/(1-$W8373)","v":{"v":6444.777170203576,"d":"6,445"}},null,{"v":0.0005,"d":"0.05%"},{"$f":"Actif!$E$28/100","v":{"v":0.28900000000000003,"d":"28.90%"}},{"$f":"Actif!$E$30/100","v":{"v":0.09050000000000001,"d":"9.05%"}},{"$f":"Actif!$E$31/100","v":{"v":0.0605,"d":"6.05%"}},{"$f":"Actif!$E$32/100","v":{"v":0.47350000000000003,"d":"47.35%"}},{"$f":"Actif!$E$33/100","v":{"v":0.0585,"d":"5.85%"}},{"$f":"Actif!$E$29/100","v":{"v":0.027999999999999997,"d":"2.80%"}}]
[null,"#261",90,2026,"H","A_VIE",{"v":0.44999999999999996,"d":"0.45"},{"v":0.38999999999999996,"d":"0.39"},0.6,0.6,85,0,{"$f":"ROUND(Primes!$Q$4*V8374,0)","v":6},{"$f":"'BP Financier'!$G$33*(('BP Financier'!$C$16+'BP Financier'!$D$16+'BP Financier'!$E$16+'BP Financier'!$F$16+'BP Financier'!$G$16)/('BP Financier'!$C$16+'BP Financier'!$C$19+'BP Financier'!$D$16+'BP Financier'!$D$19+'BP Financier'!$E$16+'BP Financier'!$E$19+'BP Financier'!$F$16+'BP Financier'!$F$19+'BP Financier'!$G$19+'BP Financier'!$G$16))*V8374","v":{"v":285139.3371593917,"d":"285,139"}},{"v":163651.30600052656,"d":"163,651"},{"$f":"'BP Financier'!$G$44*(('BP Financier'!$C$16+'BP Financier'!$D$16+'BP Financier'!$E$16+'BP Financier'!$F$16+'BP Financier'!$G$16)/('BP Financier'!$C$16+'BP Financier'!$C$19+'BP Financier'!$D$16+'BP Financier'!$D$19+'BP Financier'!$E$16+'BP Financier'!$E$19+'BP Financier'!$C$22+'BP Financier'!$D$22+'BP Financier'!$E$22+'BP Financier'!$F$16+'BP Financier'!$F$19+'BP Financier'!$F$22+'BP Financier'!$G$16+'BP Financier'!$G$19+'BP Financier'!$G$22))*$V8374*X8374/(1-$W8374)","v":{"v":20830.440496550847,"d":"20,830"}},{"$f":"'BP Financier'!$G$44*(('BP Financier'!$C$16+'BP Financier'!$D$16+'BP Financier'!$E$16+'BP Financier'!$F$16+'BP Financier'!$G$16)/('BP Financier'!$C$16+'BP Financier'!$C$19+'BP Financier'!$D$16+'BP Financier'!$D$19+'BP Financier'!$E$16+'BP Financier'!$E$19+'BP Financier'!$C$22+'BP Financier'!$D$22+'BP Financier'!$E$22+'BP Financier'!$F$16+'BP Financier'!$F$19+'BP Financier'!$F$22+'BP Financier'!$G$16+'BP Financier'!$G$19+'BP Financier'!$G$22))*$V8374*Y8374/(1-$W8374)","v":{"v":13925.322099904157,"d":"13,925"}},{"$f":"'BP Financier'!$G$44*(('BP Financier'!$C$16+'BP Financier'!$D$16+'BP Financier'!$E$16+'BP Financier'!$F$16+'BP Financier'!$G$16)/('BP Financier'!$C$16+'BP Financier'!$C$19+'BP Financier'!$D$16+'BP Financier'!$D$19+'BP Financier'!$E$16+'BP Financier'!$E$19+'BP Financier'!$C$22+'BP Financier'!$D$22+'BP Financier'!$E$22+'BP Financier'!$F$16+'BP Financier'!$F$19+'BP Financier'!$F$22+'BP Financier'!$G$16+'BP Financier'!$G$19+'BP Financier'!$G$22))*$V8374*Z8374/(1-$W8374)","v":{"v":108985.78536040692,"d":"108,986"}},{"$f":"'BP Financier'!$G$44*(('BP Financier'!$C$16+'BP Financier'!$D$16+'BP Financier'!$E$16+'BP Financier'!$F$16+'BP Financier'!$G$16)/('BP Financier'!$C$16+'BP Financier'!$C$19+'BP Financier'!$D$16+'BP Financier'!$D$19+'BP Financier'!$E$16+'BP Financier'!$E$19+'BP Financier'!$C$22+'BP Financier'!$D$22+'BP Financier'!$E$22+'BP Financier'!$F$16+'BP Financier'!$F$19+'BP Financier'!$F$22+'BP Financier'!$G$16+'BP Financier'!$G$19+'BP Financier'!$G$22))*$V8374*AA8374/(1-$W8374)","v":{"v":13464.980873461045,"d":"13,465"}},{"$f":"'BP Financier'!$G$44*(('BP Financier'!$C$16+'BP Financier'!$D$16+'BP Financier'!$E$16+'BP Financier'!$F$16+'BP Financier'!$G$16)/('BP Financier'!$C$16+'BP Financier'!$C$19+'BP Financier'!$D$16+'BP Financier'!$D$19+'BP Financier'!$E$16+'BP Financier'!$E$19+'BP Financier'!$C$22+'BP Financier'!$D$22+'BP Financier'!$E$22+'BP Financier'!$F$16+'BP Financier'!$F$19+'BP Financier'!$F$22+'BP Financier'!$G$16+'BP Financier'!$G$19+'BP Financier'!$G$22))*$V8374*AB8374/(1-$W8374)","v":{"v":6444.777170203576,"d":"6,445"}},null,{"v":0.0005,"d":"0.05%"},{"$f":"Actif!$E$28/100","v":{"v":0.28900000000000003,"d":"28.90%"}},{"$f":"Actif!$E$30/100","v":{"v":0.09050000000000001,"d":"9.05%"}},{"$f":"Actif!$E$31/100","v":{"v":0.0605,"d":"6.05%"}},{"$f":"Actif!$E$32/100","v":{"v":0.47350000000000003,"d":"47.35%"}},{"$f":"Actif!$E$33/100","v":{"v":0.0585,"d":"5.85%"}},{"$f":"Actif!$E$29/100","v":{"v":0.027999999999999997,"d":"2.80%"}}]
[null,"#262",90,2028,"H","A_VIE",{"v":0.44999999999999996,"d":"0.45"},{"v":0.38999999999999996,"d":"0.39"},0.6,0.6,85,0,{"$f":"ROUND(Primes!$Q$4*V8375,0)","v":6},{"$f":"'BP Financier'!$G$33*(('BP Financier'!$C$16+'BP Financier'!$D$16+'BP Financier'!$E$16+'BP Financier'!$F$16+'BP Financier'!$G$16)/('BP Financier'!$C$16+'BP Financier'!$C$19+'BP Financier'!$D$16+'BP Financier'!$D$19+'BP Financier'!$E$16+'BP Financier'!$E$19+'BP Financier'!$F$16+'BP Financier'!$F$19+'BP Financier'!$G$19+'BP Financier'!$G$16))*V8375","v":{"v":285139.3371593917,"d":"285,139"}},{"v":163651.30600052656,"d":"163,651"},{"$f":"'BP Financier'!$G$44*(('BP Financier'!$C$16+'BP Financier'!$D$16+'BP Financier'!$E$16+'BP Financier'!$F$16+'BP Financier'!$G$16)/('BP Financier'!$C$16+'BP Financier'!$C$19+'BP Financier'!$D$16+'BP Financier'!$D$19+'BP Financier'!$E$16+'BP Financier'!$E$19+'BP Financier'!$C$22+'BP Financier'!$D$22+'BP Financier'!$E$22+'BP Financier'!$F$16+'BP Financier'!$F$19+'BP Financier'!$F$22+'BP Financier'!$G$16+'BP Financier'!$G$19+'BP Financier'!$G$22))*$V8375*X8375/(1-$W8375)","v":{"v":20830.440496550847,"d":"20,830"}},{"$f":"'BP Financier'!$G$44*(('BP Financier'!$C$16+'BP Financier'!$D$16+'BP Financier'!$E$16+'BP Financier'!$F$16+'BP Financier'!$G$16)/('BP Financier'!$C$16+'BP Financier'!$C$19+'BP Financier'!$D$16+'BP Financier'!$D$19+'BP Financier'!$E$16+'BP Financier'!$E$19+'BP Financier'!$C$22+'BP Financier'!$D$22+'BP Financier'!$E$22+'BP Financier'!$F$16+'BP Financier'!$F$19+'BP Financier'!$F$22+'BP Financier'!$G$16+'BP Financier'!$G$19+'BP Financier'!$G$22))*$V8375*Y8375/(1-$W8375)","v":{"v":13925.322099904157,"d":"13,925"}},{"$f":"'BP Financier'!$G$44*(('BP Financier'!$C$16+'BP Financier'!$D$16+'BP Financier'!$E$16+'BP Financier'!$F$16+'BP Financier'!$G$16)/('BP Financier'!$C$16+'BP Financier'!$C$19+'BP Financier'!$D$16+'BP Financier'!$D$19+'BP Financier'!$E$16+'BP Financier'!$E$19+'BP Financier'!$C$22+'BP Financier'!$D$22+'BP Financier'!$E$22+'BP Financier'!$F$16+'BP Financier'!$F$19+'BP Financier'!$F$22+'BP Financier'!$G$16+'BP Financier'!$G$19+'BP Financier'!$G$22))*$V8375*Z8375/(1-$W8375)","v":{"v":108985.78536040692,"d":"108,986"}},{"$f":"'BP Financier'!$G$44*(('BP Financier'!$C$16+'BP Financier'!$D$16+'BP Financier'!$E$16+'BP Financier'!$F$16+'BP Financier'!$G$16)/('BP Financier'!$C$16+'BP Financier'!$C$19+'BP Financier'!$D$16+'BP Financier'!$D$19+'BP Financier'!$E$16+'BP Financier'!$E$19+'BP Financier'!$C$22+'BP Financier'!$D$22+'BP Financier'!$E$22+'BP Financier'!$F$16+'BP Financier'!$F$19+'BP Financier'!$F$22+'BP Financier'!$G$16+'BP Financier'!$G$19+'BP Financier'!$G$22))*$V8375*AA8375/(1-$W8375)","v":{"v":13464.980873461045,"d":"13,465"}},{"$f":"'BP Financier'!$G$44*(('BP Financier'!$C$16+'BP Financier'!$D$16+'BP Financier'!$E$16+'BP Financier'!$F$16+'BP Financier'!$G$16)/('BP Financier'!$C$16+'BP Financier'!$C$19+'BP Financier'!$D$16+'BP Financier'!$D$19+'BP Financier'!$E$16+'BP Financier'!$E$19+'BP Financier'!$C$22+'BP Financier'!$D$22+'BP Financier'!$E$22+'BP Financier'!$F$16+'BP Financier'!$F$19+'BP Financier'!$F$22+'BP Financier'!$G$16+'BP Financier'!$G$19+'BP Financier'!$G$22))*$V8375*AB8375/(1-$W8375)","v":{"v":6444.777170203576,"d":"6,445"}},null,{"v":0.0005,"d":"0.05%"},{"$f":"Actif!$E$28/100","v":{"v":0.28900000000000003,"d":"28.90%"}},{"$f":"Actif!$E$30/100","v":{"v":0.09050000000000001,"d":"9.05%"}},{"$f":"Actif!$E$31/100","v":{"v":0.0605,"d":"6.05%"}},{"$f":"Actif!$E$32/100","v":{"v":0.47350000000000003,"d":"47.35%"}},{"$f":"Actif!$E$33/100","v":{"v":0.0585,"d":"5.85%"}},{"$f":"Actif!$E$29/100","v":{"v":0.027999999999999997,"d":"2.80%"}}]
[null,"#263",90,2029,"H","A_VIE",{"v":0.44999999999999996,"d":"0.45"},{"v":0.38999999999999996,"d":"0.39"},0.6,0.6,85,0,{"$f":"ROUND(Primes!$Q$4*V8376,0)","v":6},{"$f":"'BP Financier'!$G$33*(('BP Financier'!$C$16+'BP Financier'!$D$16+'BP Financier'!$E$16+'BP Financier'!$F$16+'BP Financier'!$G$16)/('BP Financier'!$C$16+'BP Financier'!$C$19+'BP Financier'!$D$16+'BP Financier'!$D$19+'BP Financier'!$E$16+'BP Financier'!$E$19+'BP Financier'!$F$16+'BP Financier'!$F$19+'BP Financier'!$G$19+'BP Financier'!$G$16))*V8376","v":{"v":285139.3371593917,"d":"285,139"}},{"v":163651.30600052656,"d":"163,651"},{"$f":"'BP Financier'!$G$44*(('BP Financier'!$C$16+'BP Financier'!$D$16+'BP Financier'!$E$16+'BP Financier'!$F$16+'BP Financier'!$G$16)/('BP Financier'!$C$16+'BP Financier'!$C$19+'BP Financier'!$D$16+'BP Financier'!$D$19+'BP Financier'!$E$16+'BP Financier'!$E$19+'BP Financier'!$C$22+'BP Financier'!$D$22+'BP Financier'!$E$22+'BP Financier'!$F$16+'BP Financier'!$F$19+'BP Financier'!$F$22+'BP Financier'!$G$16+'BP Financier'!$G$19+'BP Financier'!$G$22))*$V8376*X8376/(1-$W8376)","v":{"v":20830.440496550847,"d":"20,830"}},{"$f":"'BP Financier'!$G$44*(('BP Financier'!$C$16+'BP Financier'!$D$16+'BP Financier'!$E$16+'BP Financier'!$F$16+'BP Financier'!$G$16)/('BP Financier'!$C$16+'BP Financier'!$C$19+'BP Financier'!$D$16+'BP Financier'!$D$19+'BP Financier'!$E$16+'BP Financier'!$E$19+'BP Financier'!$C$22+'BP Financier'!$D$22+'BP Financier'!$E$22+'BP Financier'!$F$16+'BP Financier'!$F$19+'BP Financier'!$F$22+'BP Financier'!$G$16+'BP Financier'!$G$19+'BP Financier'!$G$22))*$V8376*Y8376/(1-$W8376)","v":{"v":13925.322099904157,"d":"13,925"}},{"$f":"'BP Financier'!$G$44*(('BP Financier'!$C$16+'BP Financier'!$D$16+'BP Financier'!$E$16+'BP Financier'!$F$16+'BP Financier'!$G$16)/('BP Financier'!$C$16+'BP Financier'!$C$19+'BP Financier'!$D$16+'BP Financier'!$D$19+'BP Financier'!$E$16+'BP Financier'!$E$19+'BP Financier'!$C$22+'BP Financier'!$D$22+'BP Financier'!$E$22+'BP Financier'!$F$16+'BP Financier'!$F$19+'BP Financier'!$F$22+'BP Financier'!$G$16+'BP Financier'!$G$19+'BP Financier'!$G$22))*$V8376*Z8376/(1-$W8376)","v":{"v":108985.78536040692,"d":"108,986"}},{"$f":"'BP Financier'!$G$44*(('BP Financier'!$C$16+'BP Financier'!$D$16+'BP Financier'!$E$16+'BP Financier'!$F$16+'BP Financier'!$G$16)/('BP Financier'!$C$16+'BP Financier'!$C$19+'BP Financier'!$D$16+'BP Financier'!$D$19+'BP Financier'!$E$16+'BP Financier'!$E$19+'BP Financier'!$C$22+'BP Financier'!$D$22+'BP Financier'!$E$22+'BP Financier'!$F$16+'BP Financier'!$F$19+'BP Financier'!$F$22+'BP Financier'!$G$16+'BP Financier'!$G$19+'BP Financier'!$G$22))*$V8376*AA8376/(1-$W8376)","v":{"v":13464.980873461045,"d":"13,465"}},{"$f":"'BP Financier'!$G$44*(('BP Financier'!$C$16+'BP Financier'!$D$16+'BP Financier'!$E$16+'BP Financier'!$F$16+'BP Financier'!$G$16)/('BP Financier'!$C$16+'BP Financier'!$C$19+'BP Financier'!$D$16+'BP Financier'!$D$19+'BP Financier'!$E$16+'BP Financier'!$E$19+'BP Financier'!$C$22+'BP Financier'!$D$22+'BP Financier'!$E$22+'BP Financier'!$F$16+'BP Financier'!$F$19+'BP Financier'!$F$22+'BP Financier'!$G$16+'BP Financier'!$G$19+'BP Financier'!$G$22))*$V8376*AB8376/(1-$W8376)","v":{"v":6444.777170203576,"d":"6,445"}},null,{"v":0.0005,"d":"0.05%"},{"$f":"Actif!$E$28/100","v":{"v":0.28900000000000003,"d":"28.90%"}},{"$f":"Actif!$E$30/100","v":{"v":0.09050000000000001,"d":"9.05%"}},{"$f":"Actif!$E$31/100","v":{"v":0.0605,"d":"6.05%"}},{"$f":"Actif!$E$32/100","v":{"v":0.47350000000000003,"d":"47.35%"}},{"$f":"Actif!$E$33/100","v":{"v":0.0585,"d":"5.85%"}},{"$f":"Actif!$E$29/100","v":{"v":0.027999999999999997,"d":"2.80%"}}]
[null,"#264",90,2030,"H","A_VIE",{"v":0.44999999999999996,"d":"0.45"},{"v":0.38999999999999996,"d":"0.39"},0.6,0.6,85,0,{"$f":"ROUND(Primes!$Q$4*V8377,0)","v":6},{"$f":"'BP Financier'!$G$33*(('BP Financier'!$C$16+'BP Financier'!$D$16+'BP Financier'!$E$16+'BP Financier'!$F$16+'BP Financier'!$G$16)/('BP Financier'!$C$16+'BP Financier'!$C$19+'BP Financier'!$D$16+'BP Financier'!$D$19+'BP Financier'!$E$16+'BP Financier'!$E$19+'BP Financier'!$F$16+'BP Financier'!$F$19+'BP Financier'!$G$19+'BP Financier'!$G$16))*V8377","v":{"v":285139.3371593917,"d":"285,139"}},{"v":163651.30600052656,"d":"163,651"},{"$f":"'BP Financier'!$G$44*(('BP Financier'!$C$16+'BP Financier'!$D$16+'BP Financier'!$E$16+'BP Financier'!$F$16+'BP Financier'!$G$16)/('BP Financier'!$C$16+'BP Financier'!$C$19+'BP Financier'!$D$16+'BP Financier'!$D$19+'BP Financier'!$E$16+'BP Financier'!$E$19+'BP Financier'!$C$22+'BP Financier'!$D$22+'BP Financier'!$E$22+'BP Financier'!$F$16+'BP Financier'!$F$19+'BP Financier'!$F$22+'BP Financier'!$G$16+'BP Financier'!$G$19+'BP Financier'!$G$22))*$V8377*X8377/(1-$W8377)","v":{"v":20830.440496550847,"d":"20,830"}},{"$f":"'BP Financier'!$G$44*(('BP Financier'!$C$16+'BP Financier'!$D$16+'BP Financier'!$E$16+'BP Financier'!$F$16+'BP Financier'!$G$16)/('BP Financier'!$C$16+'BP Financier'!$C$19+'BP Financier'!$D$16+'BP Financier'!$D$19+'BP Financier'!$E$16+'BP Financier'!$E$19+'BP Financier'!$C$22+'BP Financier'!$D$22+'BP Financier'!$E$22+'BP Financier'!$F$16+'BP Financier'!$F$19+'BP Financier'!$F$22+'BP Financier'!$G$16+'BP Financier'!$G$19+'BP Financier'!$G$22))*$V8377*Y8377/(1-$W8377)","v":{"v":13925.322099904157,"d":"13,925"}},{"$f":"'BP Financier'!$G$44*(('BP Financier'!$C$16+'BP Financier'!$D$16+'BP Financier'!$E$16+'BP Financier'!$F$16+'BP Financier'!$G$16)/('BP Financier'!$C$16+'BP Financier'!$C$19+'BP Financier'!$D$16+'BP Financier'!$D$19+'BP Financier'!$E$16+'BP Financier'!$E$19+'BP Financier'!$C$22+'BP Financier'!$D$22+'BP Financier'!$E$22+'BP Financier'!$F$16+'BP Financier'!$F$19+'BP Financier'!$F$22+'BP Financier'!$G$16+'BP Financier'!$G$19+'BP Financier'!$G$22))*$V8377*Z8377/(1-$W8377)","v":{"v":108985.78536040692,"d":"108,986"}},{"$f":"'BP Financier'!$G$44*(('BP Financier'!$C$16+'BP Financier'!$D$16+'BP Financier'!$E$16+'BP Financier'!$F$16+'BP Financier'!$G$16)/('BP Financier'!$C$16+'BP Financier'!$C$19+'BP Financier'!$D$16+'BP Financier'!$D$19+'BP Financier'!$E$16+'BP Financier'!$E$19+'BP Financier'!$C$22+'BP Financier'!$D$22+'BP Financier'!$E$22+'BP Financier'!$F$16+'BP Financier'!$F$19+'BP Financier'!$F$22+'BP Financier'!$G$16+'BP Financier'!$G$19+'BP Financier'!$G$22))*$V8377*AA8377/(1-$W8377)","v":{"v":13464.980873461045,"d":"13,465"}},{"$f":"'BP Financier'!$G$44*(('BP Financier'!$C$16+'BP Financier'!$D$16+'BP Financier'!$E$16+'BP Financier'!$F$16+'BP Financier'!$G$16)/('BP Financier'!$C$16+'BP Financier'!$C$19+'BP Financier'!$D$16+'BP Financier'!$D$19+'BP Financier'!$E$16+'BP Financier'!$E$19+'BP Financier'!$C$22+'BP Financier'!$D$22+'BP Financier'!$E$22+'BP Financier'!$F$16+'BP Financier'!$F$19+'BP Financier'!$F$22+'BP Financier'!$G$16+'BP Financier'!$G$19+'BP Financier'!$G$22))*$V8377*AB8377/(1-$W8377)","v":{"v":6444.777170203576,"d":"6,445"}},null,{"v":0.0005,"d":"0.05%"},{"$f":"Actif!$E$28/100","v":{"v":0.28900000000000003,"d":"28.90%"}},{"$f":"Actif!$E$30/100","v":{"v":0.09050000000000001,"d":"9.05%"}},{"$f":"Actif!$E$31/100","v":{"v":0.0605,"d":"6.05%"}},{"$f":"Actif!$E$32/100","v":{"v":0.47350000000000003,"d":"47.35%"}},{"$f":"Actif!$E$33/100","v":{"v":0.0585,"d":"5.85%"}},{"$f":"Actif!$E$29/100","v":{"v":0.027999999999999997,"d":"2.80%"}}]
[null,"#265",90,2031,"H","A_VIE",{"v":0.44999999999999996,"d":"0.45"},{"v":0.38999999999999996,"d":"0.39"},0.6,0.6,85,0,{"$f":"ROUND(Primes!$Q$4*V8378,0)","v":6},{"$f":"'BP Financier'!$G$33*(('BP Financier'!$C$16+'BP Financier'!$D$16+'BP Financier'!$E$16+'BP Financier'!$F$16+'BP Financier'!$G$16)/('BP Financier'!$C$16+'BP Financier'!$C$19+'BP Financier'!$D$16+'BP Financier'!$D$19+'BP Financier'!$E$16+'BP Financier'!$E$19+'BP Financier'!$F$16+'BP Financier'!$F$19+'BP Financier'!$G$19+'BP Financier'!$G$16))*V8378","v":{"v":285139.3371593917,"d":"285,139"}},{"v":163651.30600052656,"d":"163,651"},{"$f":"'BP Financier'!$G$44*(('BP Financier'!$C$16+'BP Financier'!$D$16+'BP Financier'!$E$16+'BP Financier'!$F$16+'BP Financier'!$G$16)/('BP Financier'!$C$16+'BP Financier'!$C$19+'BP Financier'!$D$16+'BP Financier'!$D$19+'BP Financier'!$E$16+'BP Financier'!$E$19+'BP Financier'!$C$22+'BP Financier'!$D$22+'BP Financier'!$E$22+'BP Financier'!$F$16+'BP Financier'!$F$19+'BP Financier'!$F$22+'BP Financier'!$G$16+'BP Financier'!$G$19+'BP Financier'!$G$22))*$V8378*X8378/(1-$W8378)","v":{"v":20830.440496550847,"d":"20,830"}},{"$f":"'BP Financier'!$G$44*(('BP Financier'!$C$16+'BP Financier'!$D$16+'BP Financier'!$E$16+'BP Financier'!$F$16+'BP Financier'!$G$16)/('BP Financier'!$C$16+'BP Financier'!$C$19+'BP Financier'!$D$16+'BP Financier'!$D$19+'BP Financier'!$E$16+'BP Financier'!$E$19+'BP Financier'!$C$22+'BP Financier'!$D$22+'BP Financier'!$E$22+'BP Financier'!$F$16+'BP Financier'!$F$19+'BP Financier'!$F$22+'BP Financier'!$G$16+'BP Financier'!$G$19+'BP Financier'!$G$22))*$V8378*Y8378/(1-$W8378)","v":{"v":13925.322099904157,"d":"13,925"}},{"$f":"'BP Financier'!$G$44*(('BP Financier'!$C$16+'BP Financier'!$D$16+'BP Financier'!$E$16+'BP Financier'!$F$16+'BP Financier'!$G$16)/('BP Financier'!$C$16+'BP Financier'!$C$19+'BP Financier'!$D$16+'BP Financier'!$D$19+'BP Financier'!$E$16+'BP Financier'!$E$19+'BP Financier'!$C$22+'BP Financier'!$D$22+'BP Financier'!$E$22+'BP Financier'!$F$16+'BP Financier'!$F$19+'BP Financier'!$F$22+'BP Financier'!$G$16+'BP Financier'!$G$19+'BP Financier'!$G$22))*$V8378*Z8378/(1-$W8378)","v":{"v":108985.78536040692,"d":"108,986"}},{"$f":"'BP Financier'!$G$44*(('BP Financier'!$C$16+'BP Financier'!$D$16+'BP Financier'!$E$16+'BP Financier'!$F$16+'BP Financier'!$G$16)/('BP Financier'!$C$16+'BP Financier'!$C$19+'BP Financier'!$D$16+'BP Financier'!$D$19+'BP Financier'!$E$16+'BP Financier'!$E$19+'BP Financier'!$C$22+'BP Financier'!$D$22+'BP Financier'!$E$22+'BP Financier'!$F$16+'BP Financier'!$F$19+'BP Financier'!$F$22+'BP Financier'!$G$16+'BP Financier'!$G$19+'BP Financier'!$G$22))*$V8378*AA8378/(1-$W8378)","v":{"v":13464.980873461045,"d":"13,465"}},{"$f":"'BP Financier'!$G$44*(('BP Financier'!$C$16+'BP Financier'!$D$16+'BP Financier'!$E$16+'BP Financier'!$F$16+'BP Financier'!$G$16)/('BP Financier'!$C$16+'BP Financier'!$C$19+'BP Financier'!$D$16+'BP Financier'!$D$19+'BP Financier'!$E$16+'BP Financier'!$E$19+'BP Financier'!$C$22+'BP Financier'!$D$22+'BP Financier'!$E$22+'BP Financier'!$F$16+'BP Financier'!$F$19+'BP Financier'!$F$22+'BP Financier'!$G$16+'BP Financier'!$G$19+'BP Financier'!$G$22))*$V8378*AB8378/(1-$W8378)","v":{"v":6444.777170203576,"d":"6,445"}},null,{"v":0.0005,"d":"0.05%"},{"$f":"Actif!$E$28/100","v":{"v":0.28900000000000003,"d":"28.90%"}},{"$f":"Actif!$E$30/100","v":{"v":0.09050000000000001,"d":"9.05%"}},{"$f":"Actif!$E$31/100","v":{"v":0.0605,"d":"6.05%"}},{"$f":"Actif!$E$32/100","v":{"v":0.47350000000000003,"d":"47.35%"}},{"$f":"Actif!$E$33/100","v":{"v":0.0585,"d":"5.85%"}},{"$f":"Actif!$E$29/100","v":{"v":0.027999999999999997,"d":"2.80%"}}]
[null,"#266",18,2026,"H","A_CAPI",{"v":0.44999999999999996,"d":"0.45"},{"v":0.38999999999999996,"d":"0.39"},0.6,0.6,85,0,{"$f":"ROUND(Primes!$Q$10*V8379,2)","v":0.13},0,{"$f":"SUM(P8379:T8379)","v":{"v":3617.194486340221,"d":"3,617"}},{"$f":"'BP Financier'!$G$44*(('BP Financier'!$C$22+'BP Financier'!$D$22+'BP Financier'!$E$22+'BP Financier'!$F$22+'BP Financier'!$G$22)/('BP Financier'!$C$16+'BP Financier'!$C$19+'BP Financier'!$D$16+'BP Financier'!$D$19+'BP Financier'!$E$16+'BP Financier'!$E$19+'BP Financier'!$C$22+'BP Financier'!$D$22+'BP Financier'!$E$22+'BP Financier'!$F$22+'BP Financier'!$F$16+'BP Financier'!$F$19+'BP Financier'!$G$16+'BP Financier'!$G$19+'BP Financier'!$G$22))*$V8379*X8379/(1-$W8379)","v":{"v":460.4164571220675,"d":"460"}},{"$f":"'BP Financier'!$G$44*(('BP Financier'!$C$22+'BP Financier'!$D$22+'BP Financier'!$E$22+'BP Financier'!$F$22+'BP Financier'!$G$22)/('BP Financier'!$C$16+'BP Financier'!$C$19+'BP Financier'!$D$16+'BP Financier'!$D$19+'BP Financier'!$E$16+'BP Financier'!$E$19+'BP Financier'!$C$22+'BP Financier'!$D$22+'BP Financier'!$E$22+'BP Financier'!$F$22+'BP Financier'!$F$16+'BP Financier'!$F$19+'BP Financier'!$G$16+'BP Financier'!$G$19+'BP Financier'!$G$22))*$V8379*Y8379/(1-$W8379)","v":{"v":307.7922171921004,"d":"308"}},{"$f":"'BP Financier'!$G$44*(('BP Financier'!$C$22+'BP Financier'!$D$22+'BP Financier'!$E$22+'BP Financier'!$F$22+'BP Financier'!$G$22)/('BP Financier'!$C$16+'BP Financier'!$C$19+'BP Financier'!$D$16+'BP Financier'!$D$19+'BP Financier'!$E$16+'BP Financier'!$E$19+'BP Financier'!$C$22+'BP Financier'!$D$22+'BP Financier'!$E$22+'BP Financier'!$F$22+'BP Financier'!$F$16+'BP Financier'!$F$19+'BP Financier'!$G$16+'BP Financier'!$G$19+'BP Financier'!$G$22))*$V8379*Z8379/(1-$W8379)","v":{"v":2408.9192535613147,"d":"2,409"}},{"$f":"'BP Financier'!$G$44*(('BP Financier'!$C$22+'BP Financier'!$D$22+'BP Financier'!$E$22+'BP Financier'!$F$22+'BP Financier'!$G$22)/('BP Financier'!$C$16+'BP Financier'!$C$19+'BP Financier'!$D$16+'BP Financier'!$D$19+'BP Financier'!$E$16+'BP Financier'!$E$19+'BP Financier'!$C$22+'BP Financier'!$D$22+'BP Financier'!$E$22+'BP Financier'!$F$22+'BP Financier'!$F$16+'BP Financier'!$F$19+'BP Financier'!$G$16+'BP Financier'!$G$19+'BP Financier'!$G$22))*$V8379*AA8379/(1-$W8379)","v":{"v":297.6172678634359,"d":"298"}},{"$f":"'BP Financier'!$G$44*(('BP Financier'!$C$22+'BP Financier'!$D$22+'BP Financier'!$E$22+'BP Financier'!$F$22+'BP Financier'!$G$22)/('BP Financier'!$C$16+'BP Financier'!$C$19+'BP Financier'!$D$16+'BP Financier'!$D$19+'BP Financier'!$E$16+'BP Financier'!$E$19+'BP Financier'!$C$22+'BP Financier'!$D$22+'BP Financier'!$E$22+'BP Financier'!$F$22+'BP Financier'!$F$16+'BP Financier'!$F$19+'BP Financier'!$G$16+'BP Financier'!$G$19+'BP Financier'!$G$22))*$V8379*AB8379/(1-$W8379)","v":{"v":142.44929060130264,"d":"142"}},null,{"v":1E-3,"d":"0.10%"},{"$f":"Actif!$E$28/100","v":{"v":0.28900000000000003,"d":"28.90%"}},{"$f":"Actif!$E$30/100","v":{"v":0.09050000000000001,"d":"9.05%"}},{"$f":"Actif!$E$31/100","v":{"v":0.0605,"d":"6.05%"}},{"$f":"Actif!$E$32/100","v":{"v":0.47350000000000003,"d":"47.35%"}},{"$f":"Actif!$E$33/100","v":{"v":0.0585,"d":"5.85%"}},{"$f":"Actif!$E$29/100","v":{"v":0.027999999999999997,"d":"2.80%"}}]
[null,"#267",18,2028,"H","A_CAPI",{"v":0.44999999999999996,"d":"0.45"},{"v":0.38999999999999996,"d":"0.39"},0.6,0.6,85,0,{"$f":"ROUND(Primes!$Q$10*V8380,2)","v":0.13},0,{"$f":"SUM(P8380:T8380)","v":{"v":3617.194486340221,"d":"3,617"}},{"$f":"'BP Financier'!$G$44*(('BP Financier'!$C$22+'BP Financier'!$D$22+'BP Financier'!$E$22+'BP Financier'!$F$22+'BP Financier'!$G$22)/('BP Financier'!$C$16+'BP Financier'!$C$19+'BP Financier'!$D$16+'BP Financier'!$D$19+'BP Financier'!$E$16+'BP Financier'!$E$19+'BP Financier'!$C$22+'BP Financier'!$D$22+'BP Financier'!$E$22+'BP Financier'!$F$22+'BP Financier'!$F$16+'BP Financier'!$F$19+'BP Financier'!$G$16+'BP Financier'!$G$19+'BP Financier'!$G$22))*$V8380*X8380/(1-$W8380)","v":{"v":460.4164571220675,"d":"460"}},{"$f":"'BP Financier'!$G$44*(('BP Financier'!$C$22+'BP Financier'!$D$22+'BP Financier'!$E$22+'BP Financier'!$F$22+'BP Financier'!$G$22)/('BP Financier'!$C$16+'BP Financier'!$C$19+'BP Financier'!$D$16+'BP Financier'!$D$19+'BP Financier'!$E$16+'BP Financier'!$E$19+'BP Financier'!$C$22+'BP Financier'!$D$22+'BP Financier'!$E$22+'BP Financier'!$F$22+'BP Financier'!$F$16+'BP Financier'!$F$19+'BP Financier'!$G$16+'BP Financier'!$G$19+'BP Financier'!$G$22))*$V8380*Y8380/(1-$W8380)","v":{"v":307.7922171921004,"d":"308"}},{"$f":"'BP Financier'!$G$44*(('BP Financier'!$C$22+'BP Financier'!$D$22+'BP Financier'!$E$22+'BP Financier'!$F$22+'BP Financier'!$G$22)/('BP Financier'!$C$16+'BP Financier'!$C$19+'BP Financier'!$D$16+'BP Financier'!$D$19+'BP Financier'!$E$16+'BP Financier'!$E$19+'BP Financier'!$C$22+'BP Financier'!$D$22+'BP Financier'!$E$22+'BP Financier'!$F$22+'BP Financier'!$F$16+'BP Financier'!$F$19+'BP Financier'!$G$16+'BP Financier'!$G$19+'BP Financier'!$G$22))*$V8380*Z8380/(1-$W8380)","v":{"v":2408.9192535613147,"d":"2,409"}},{"$f":"'BP Financier'!$G$44*(('BP Financier'!$C$22+'BP Financier'!$D$22+'BP Financier'!$E$22+'BP Financier'!$F$22+'BP Financier'!$G$22)/('BP Financier'!$C$16+'BP Financier'!$C$19+'BP Financier'!$D$16+'BP Financier'!$D$19+'BP Financier'!$E$16+'BP Financier'!$E$19+'BP Financier'!$C$22+'BP Financier'!$D$22+'BP Financier'!$E$22+'BP Financier'!$F$22+'BP Financier'!$F$16+'BP Financier'!$F$19+'BP Financier'!$G$16+'BP Financier'!$G$19+'BP Financier'!$G$22))*$V8380*AA8380/(1-$W8380)","v":{"v":297.6172678634359,"d":"298"}},{"$f":"'BP Financier'!$G$44*(('BP Financier'!$C$22+'BP Financier'!$D$22+'BP Financier'!$E$22+'BP Financier'!$F$22+'BP Financier'!$G$22)/('BP Financier'!$C$16+'BP Financier'!$C$19+'BP Financier'!$D$16+'BP Financier'!$D$19+'BP Financier'!$E$16+'BP Financier'!$E$19+'BP Financier'!$C$22+'BP Financier'!$D$22+'BP Financier'!$E$22+'BP Financier'!$F$22+'BP Financier'!$F$16+'BP Financier'!$F$19+'BP Financier'!$G$16+'BP Financier'!$G$19+'BP Financier'!$G$22))*$V8380*AB8380/(1-$W8380)","v":{"v":142.44929060130264,"d":"142"}},null,{"v":1E-3,"d":"0.10%"},{"$f":"Actif!$E$28/100","v":{"v":0.28900000000000003,"d":"28.90%"}},{"$f":"Actif!$E$30/100","v":{"v":0.09050000000000001,"d":"9.05%"}},{"$f":"Actif!$E$31/100","v":{"v":0.0605,"d":"6.05%"}},{"$f":"Actif!$E$32/100","v":{"v":0.47350000000000003,"d":"47.35%"}},{"$f":"Actif!$E$33/100","v":{"v":0.0585,"d":"5.85%"}},{"$f":"Actif!$E$29/100","v":{"v":0.027999999999999997,"d":"2.80%"}}]
[null,"#268",18,2029,"H","A_CAPI",{"v":0.44999999999999996,"d":"0.45"},{"v":0.38999999999999996,"d":"0.39"},0.6,0.6,85,0,{"$f":"ROUND(Primes!$Q$10*V8381,2)","v":0.13},0,{"v":3617.194486340221,"d":"3,617"},{"$f":"'BP Financier'!$G$44*(('BP Financier'!$C$22+'BP Financier'!$D$22+'BP Financier'!$E$22+'BP Financier'!$F$22+'BP Financier'!$G$22)/('BP Financier'!$C$16+'BP Financier'!$C$19+'BP Financier'!$D$16+'BP Financier'!$D$19+'BP Financier'!$E$16+'BP Financier'!$E$19+'BP Financier'!$C$22+'BP Financier'!$D$22+'BP Financier'!$E$22+'BP Financier'!$F$22+'BP Financier'!$F$16+'BP Financier'!$F$19+'BP Financier'!$G$16+'BP Financier'!$G$19+'BP Financier'!$G$22))*$V8381*X8381/(1-$W8381)","v":{"v":460.4164571220675,"d":"460"}},{"$f":"'BP Financier'!$G$44*(('BP Financier'!$C$22+'BP Financier'!$D$22+'BP Financier'!$E$22+'BP Financier'!$F$22+'BP Financier'!$G$22)/('BP Financier'!$C$16+'BP Financier'!$C$19+'BP Financier'!$D$16+'BP Financier'!$D$19+'BP Financier'!$E$16+'BP Financier'!$E$19+'BP Financier'!$C$22+'BP Financier'!$D$22+'BP Financier'!$E$22+'BP Financier'!$F$22+'BP Financier'!$F$16+'BP Financier'!$F$19+'BP Financier'!$G$16+'BP Financier'!$G$19+'BP Financier'!$G$22))*$V8381*Y8381/(1-$W8381)","v":{"v":307.7922171921004,"d":"308"}},{"$f":"'BP Financier'!$G$44*(('BP Financier'!$C$22+'BP Financier'!$D$22+'BP Financier'!$E$22+'BP Financier'!$F$22+'BP Financier'!$G$22)/('BP Financier'!$C$16+'BP Financier'!$C$19+'BP Financier'!$D$16+'BP Financier'!$D$19+'BP Financier'!$E$16+'BP Financier'!$E$19+'BP Financier'!$C$22+'BP Financier'!$D$22+'BP Financier'!$E$22+'BP Financier'!$F$22+'BP Financier'!$F$16+'BP Financier'!$F$19+'BP Financier'!$G$16+'BP Financier'!$G$19+'BP Financier'!$G$22))*$V8381*Z8381/(1-$W8381)","v":{"v":2408.9192535613147,"d":"2,409"}},{"$f":"'BP Financier'!$G$44*(('BP Financier'!$C$22+'BP Financier'!$D$22+'BP Financier'!$E$22+'BP Financier'!$F$22+'BP Financier'!$G$22)/('BP Financier'!$C$16+'BP Financier'!$C$19+'BP Financier'!$D$16+'BP Financier'!$D$19+'BP Financier'!$E$16+'BP Financier'!$E$19+'BP Financier'!$C$22+'BP Financier'!$D$22+'BP Financier'!$E$22+'BP Financier'!$F$22+'BP Financier'!$F$16+'BP Financier'!$F$19+'BP Financier'!$G$16+'BP Financier'!$G$19+'BP Financier'!$G$22))*$V8381*AA8381/(1-$W8381)","v":{"v":297.6172678634359,"d":"298"}},{"$f":"'BP Financier'!$G$44*(('BP Financier'!$C$22+'BP Financier'!$D$22+'BP Financier'!$E$22+'BP Financier'!$F$22+'BP Financier'!$G$22)/('BP Financier'!$C$16+'BP Financier'!$C$19+'BP Financier'!$D$16+'BP Financier'!$D$19+'BP Financier'!$E$16+'BP Financier'!$E$19+'BP Financier'!$C$22+'BP Financier'!$D$22+'BP Financier'!$E$22+'BP Financier'!$F$22+'BP Financier'!$F$16+'BP Financier'!$F$19+'BP Financier'!$G$16+'BP Financier'!$G$19+'BP Financier'!$G$22))*$V8381*AB8381/(1-$W8381)","v":{"v":142.44929060130264,"d":"142"}},null,{"v":1E-3,"d":"0.10%"},{"$f":"Actif!$E$28/100","v":{"v":0.28900000000000003,"d":"28.90%"}},{"$f":"Actif!$E$30/100","v":{"v":0.09050000000000001,"d":"9.05%"}},{"$f":"Actif!$E$31/100","v":{"v":0.0605,"d":"6.05%"}},{"$f":"Actif!$E$32/100","v":{"v":0.47350000000000003,"d":"47.35%"}},{"$f":"Actif!$E$33/100","v":{"v":0.0585,"d":"5.85%"}},{"$f":"Actif!$E$29/100","v":{"v":0.027999999999999997,"d":"2.80%"}}]
[null,"#269",18,2030,"H","A_CAPI",{"v":0.44999999999999996,"d":"0.45"},{"v":0.38999999999999996,"d":"0.39"},0.6,0.6,85,0,{"$f":"ROUND(Primes!$Q$10*V8382,2)","v":0.13},0,{"v":3617.194486340221,"d":"3,617"},{"$f":"'BP Financier'!$G$44*(('BP Financier'!$C$22+'BP Financier'!$D$22+'BP Financier'!$E$22+'BP Financier'!$F$22+'BP Financier'!$G$22)/('BP Financier'!$C$16+'BP Financier'!$C$19+'BP Financier'!$D$16+'BP Financier'!$D$19+'BP Financier'!$E$16+'BP Financier'!$E$19+'BP Financier'!$C$22+'BP Financier'!$D$22+'BP Financier'!$E$22+'BP Financier'!$F$22+'BP Financier'!$F$16+'BP Financier'!$F$19+'BP Financier'!$G$16+'BP Financier'!$G$19+'BP Financier'!$G$22))*$V8382*X8382/(1-$W8382)","v":{"v":460.4164571220675,"d":"460"}},{"$f":"'BP Financier'!$G$44*(('BP Financier'!$C$22+'BP Financier'!$D$22+'BP Financier'!$E$22+'BP Financier'!$F$22+'BP Financier'!$G$22)/('BP Financier'!$C$16+'BP Financier'!$C$19+'BP Financier'!$D$16+'BP Financier'!$D$19+'BP Financier'!$E$16+'BP Financier'!$E$19+'BP Financier'!$C$22+'BP Financier'!$D$22+'BP Financier'!$E$22+'BP Financier'!$F$22+'BP Financier'!$F$16+'BP Financier'!$F$19+'BP Financier'!$G$16+'BP Financier'!$G$19+'BP Financier'!$G$22))*$V8382*Y8382/(1-$W8382)","v":{"v":307.7922171921004,"d":"308"}},{"$f":"'BP Financier'!$G$44*(('BP Financier'!$C$22+'BP Financier'!$D$22+'BP Financier'!$E$22+'BP Financier'!$F$22+'BP Financier'!$G$22)/('BP Financier'!$C$16+'BP Financier'!$C$19+'BP Financier'!$D$16+'BP Financier'!$D$19+'BP Financier'!$E$16+'BP Financier'!$E$19+'BP Financier'!$C$22+'BP Financier'!$D$22+'BP Financier'!$E$22+'BP Financier'!$F$22+'BP Financier'!$F$16+'BP Financier'!$F$19+'BP Financier'!$G$16+'BP Financier'!$G$19+'BP Financier'!$G$22))*$V8382*Z8382/(1-$W8382)","v":{"v":2408.9192535613147,"d":"2,409"}},{"$f":"'BP Financier'!$G$44*(('BP Financier'!$C$22+'BP Financier'!$D$22+'BP Financier'!$E$22+'BP Financier'!$F$22+'BP Financier'!$G$22)/('BP Financier'!$C$16+'BP Financier'!$C$19+'BP Financier'!$D$16+'BP Financier'!$D$19+'BP Financier'!$E$16+'BP Financier'!$E$19+'BP Financier'!$C$22+'BP Financier'!$D$22+'BP Financier'!$E$22+'BP Financier'!$F$22+'BP Financier'!$F$16+'BP Financier'!$F$19+'BP Financier'!$G$16+'BP Financier'!$G$19+'BP Financier'!$G$22))*$V8382*AA8382/(1-$W8382)","v":{"v":297.6172678634359,"d":"298"}},{"$f":"'BP Financier'!$G$44*(('BP Financier'!$C$22+'BP Financier'!$D$22+'BP Financier'!$E$22+'BP Financier'!$F$22+'BP Financier'!$G$22)/('BP Financier'!$C$16+'BP Financier'!$C$19+'BP Financier'!$D$16+'BP Financier'!$D$19+'BP Financier'!$E$16+'BP Financier'!$E$19+'BP Financier'!$C$22+'BP Financier'!$D$22+'BP Financier'!$E$22+'BP Financier'!$F$22+'BP Financier'!$F$16+'BP Financier'!$F$19+'BP Financier'!$G$16+'BP Financier'!$G$19+'BP Financier'!$G$22))*$V8382*AB8382/(1-$W8382)","v":{"v":142.44929060130264,"d":"142"}},null,{"v":1E-3,"d":"0.10%"},{"$f":"Actif!$E$28/100","v":{"v":0.28900000000000003,"d":"28.90%"}},{"$f":"Actif!$E$30/100","v":{"v":0.09050000000000001,"d":"9.05%"}},{"$f":"Actif!$E$31/100","v":{"v":0.0605,"d":"6.05%"}},{"$f":"Actif!$E$32/100","v":{"v":0.47350000000000003,"d":"47.35%"}},{"$f":"Actif!$E$33/100","v":{"v":0.0585,"d":"5.85%"}},{"$f":"Actif!$E$29/100","v":{"v":0.027999999999999997,"d":"2.80%"}}]
[null,"#270",18,2031,"H","A_CAPI",{"v":0.44999999999999996,"d":"0.45"},{"v":0.38999999999999996,"d":"0.39"},0.6,0.6,85,0,{"$f":"ROUND(Primes!$Q$10*V8383,2)","v":0.13},0,{"v":3617.194486340221,"d":"3,617"},{"$f":"'BP Financier'!$G$44*(('BP Financier'!$C$22+'BP Financier'!$D$22+'BP Financier'!$E$22+'BP Financier'!$F$22+'BP Financier'!$G$22)/('BP Financier'!$C$16+'BP Financier'!$C$19+'BP Financier'!$D$16+'BP Financier'!$D$19+'BP Financier'!$E$16+'BP Financier'!$E$19+'BP Financier'!$C$22+'BP Financier'!$D$22+'BP Financier'!$E$22+'BP Financier'!$F$22+'BP Financier'!$F$16+'BP Financier'!$F$19+'BP Financier'!$G$16+'BP Financier'!$G$19+'BP Financier'!$G$22))*$V8383*X8383/(1-$W8383)","v":{"v":460.4164571220675,"d":"460"}},{"$f":"'BP Financier'!$G$44*(('BP Financier'!$C$22+'BP Financier'!$D$22+'BP Financier'!$E$22+'BP Financier'!$F$22+'BP Financier'!$G$22)/('BP Financier'!$C$16+'BP Financier'!$C$19+'BP Financier'!$D$16+'BP Financier'!$D$19+'BP Financier'!$E$16+'BP Financier'!$E$19+'BP Financier'!$C$22+'BP Financier'!$D$22+'BP Financier'!$E$22+'BP Financier'!$F$22+'BP Financier'!$F$16+'BP Financier'!$F$19+'BP Financier'!$G$16+'BP Financier'!$G$19+'BP Financier'!$G$22))*$V8383*Y8383/(1-$W8383)","v":{"v":307.7922171921004,"d":"308"}},{"$f":"'BP Financier'!$G$44*(('BP Financier'!$C$22+'BP Financier'!$D$22+'BP Financier'!$E$22+'BP Financier'!$F$22+'BP Financier'!$G$22)/('BP Financier'!$C$16+'BP Financier'!$C$19+'BP Financier'!$D$16+'BP Financier'!$D$19+'BP Financier'!$E$16+'BP Financier'!$E$19+'BP Financier'!$C$22+'BP Financier'!$D$22+'BP Financier'!$E$22+'BP Financier'!$F$22+'BP Financier'!$F$16+'BP Financier'!$F$19+'BP Financier'!$G$16+'BP Financier'!$G$19+'BP Financier'!$G$22))*$V8383*Z8383/(1-$W8383)","v":{"v":2408.9192535613147,"d":"2,409"}},{"$f":"'BP Financier'!$G$44*(('BP Financier'!$C$22+'BP Financier'!$D$22+'BP Financier'!$E$22+'BP Financier'!$F$22+'BP Financier'!$G$22)/('BP Financier'!$C$16+'BP Financier'!$C$19+'BP Financier'!$D$16+'BP Financier'!$D$19+'BP Financier'!$E$16+'BP Financier'!$E$19+'BP Financier'!$C$22+'BP Financier'!$D$22+'BP Financier'!$E$22+'BP Financier'!$F$22+'BP Financier'!$F$16+'BP Financier'!$F$19+'BP Financier'!$G$16+'BP Financier'!$G$19+'BP Financier'!$G$22))*$V8383*AA8383/(1-$W8383)","v":{"v":297.6172678634359,"d":"298"}},{"$f":"'BP Financier'!$G$44*(('BP Financier'!$C$22+'BP Financier'!$D$22+'BP Financier'!$E$22+'BP Financier'!$F$22+'BP Financier'!$G$22)/('BP Financier'!$C$16+'BP Financier'!$C$19+'BP Financier'!$D$16+'BP Financier'!$D$19+'BP Financier'!$E$16+'BP Financier'!$E$19+'BP Financier'!$C$22+'BP Financier'!$D$22+'BP Financier'!$E$22+'BP Financier'!$F$22+'BP Financier'!$F$16+'BP Financier'!$F$19+'BP Financier'!$G$16+'BP Financier'!$G$19+'BP Financier'!$G$22))*$V8383*AB8383/(1-$W8383)","v":{"v":142.44929060130264,"d":"142"}},null,{"v":1E-3,"d":"0.10%"},{"$f":"Actif!$E$28/100","v":{"v":0.28900000000000003,"d":"28.90%"}},{"$f":"Actif!$E$30/100","v":{"v":0.09050000000000001,"d":"9.05%"}},{"$f":"Actif!$E$31/100","v":{"v":0.0605,"d":"6.05%"}},{"$f":"Actif!$E$32/100","v":{"v":0.47350000000000003,"d":"47.35%"}},{"$f":"Actif!$E$33/100","v":{"v":0.0585,"d":"5.85%"}},{"$f":"Actif!$E$29/100","v":{"v":0.027999999999999997,"d":"2.80%"}}]
[null,"#271",19,2026,"H","A_CAPI",{"v":0.44999999999999996,"d":"0.45"},{"v":0.38999999999999996,"d":"0.39"},0.6,0.6,85,0,{"$f":"ROUND(Primes!$Q$10*V8384,2)","v":0.13},0,{"v":3617.194486340221,"d":"3,617"},{"$f":"'BP Financier'!$G$44*(('BP Financier'!$C$22+'BP Financier'!$D$22+'BP Financier'!$E$22+'BP Financier'!$F$22+'BP Financier'!$G$22)/('BP Financier'!$C$16+'BP Financier'!$C$19+'BP Financier'!$D$16+'BP Financier'!$D$19+'BP Financier'!$E$16+'BP Financier'!$E$19+'BP Financier'!$C$22+'BP Financier'!$D$22+'BP Financier'!$E$22+'BP Financier'!$F$22+'BP Financier'!$F$16+'BP Financier'!$F$19+'BP Financier'!$G$16+'BP Financier'!$G$19+'BP Financier'!$G$22))*$V8384*X8384/(1-$W8384)","v":{"v":460.4164571220675,"d":"460"}},{"$f":"'BP Financier'!$G$44*(('BP Financier'!$C$22+'BP Financier'!$D$22+'BP Financier'!$E$22+'BP Financier'!$F$22+'BP Financier'!$G$22)/('BP Financier'!$C$16+'BP Financier'!$C$19+'BP Financier'!$D$16+'BP Financier'!$D$19+'BP Financier'!$E$16+'BP Financier'!$E$19+'BP Financier'!$C$22+'BP Financier'!$D$22+'BP Financier'!$E$22+'BP Financier'!$F$22+'BP Financier'!$F$16+'BP Financier'!$F$19+'BP Financier'!$G$16+'BP Financier'!$G$19+'BP Financier'!$G$22))*$V8384*Y8384/(1-$W8384)","v":{"v":307.7922171921004,"d":"308"}},{"$f":"'BP Financier'!$G$44*(('BP Financier'!$C$22+'BP Financier'!$D$22+'BP Financier'!$E$22+'BP Financier'!$F$22+'BP Financier'!$G$22)/('BP Financier'!$C$16+'BP Financier'!$C$19+'BP Financier'!$D$16+'BP Financier'!$D$19+'BP Financier'!$E$16+'BP Financier'!$E$19+'BP Financier'!$C$22+'BP Financier'!$D$22+'BP Financier'!$E$22+'BP Financier'!$F$22+'BP Financier'!$F$16+'BP Financier'!$F$19+'BP Financier'!$G$16+'BP Financier'!$G$19+'BP Financier'!$G$22))*$V8384*Z8384/(1-$W8384)","v":{"v":2408.9192535613147,"d":"2,409"}},{"$f":"'BP Financier'!$G$44*(('BP Financier'!$C$22+'BP Financier'!$D$22+'BP Financier'!$E$22+'BP Financier'!$F$22+'BP Financier'!$G$22)/('BP Financier'!$C$16+'BP Financier'!$C$19+'BP Financier'!$D$16+'BP Financier'!$D$19+'BP Financier'!$E$16+'BP Financier'!$E$19+'BP Financier'!$C$22+'BP Financier'!$D$22+'BP Financier'!$E$22+'BP Financier'!$F$22+'BP Financier'!$F$16+'BP Financier'!$F$19+'BP Financier'!$G$16+'BP Financier'!$G$19+'BP Financier'!$G$22))*$V8384*AA8384/(1-$W8384)","v":{"v":297.6172678634359,"d":"298"}},{"$f":"'BP Financier'!$G$44*(('BP Financier'!$C$22+'BP Financier'!$D$22+'BP Financier'!$E$22+'BP Financier'!$F$22+'BP Financier'!$G$22)/('BP Financier'!$C$16+'BP Financier'!$C$19+'BP Financier'!$D$16+'BP Financier'!$D$19+'BP Financier'!$E$16+'BP Financier'!$E$19+'BP Financier'!$C$22+'BP Financier'!$D$22+'BP Financier'!$E$22+'BP Financier'!$F$22+'BP Financier'!$F$16+'BP Financier'!$F$19+'BP Financier'!$G$16+'BP Financier'!$G$19+'BP Financier'!$G$22))*$V8384*AB8384/(1-$W8384)","v":{"v":142.44929060130264,"d":"142"}},null,{"v":1E-3,"d":"0.10%"},{"$f":"Actif!$E$28/100","v":{"v":0.28900000000000003,"d":"28.90%"}},{"$f":"Actif!$E$30/100","v":{"v":0.09050000000000001,"d":"9.05%"}},{"$f":"Actif!$E$31/100","v":{"v":0.0605,"d":"6.05%"}},{"$f":"Actif!$E$32/100","v":{"v":0.47350000000000003,"d":"47.35%"}},{"$f":"Actif!$E$33/100","v":{"v":0.0585,"d":"5.85%"}},{"$f":"Actif!$E$29/100","v":{"v":0.027999999999999997,"d":"2.80%"}}]
[null,"#272",19,2028,"H","A_CAPI",{"v":0.44999999999999996,"d":"0.45"},{"v":0.38999999999999996,"d":"0.39"},0.6,0.6,85,0,{"$f":"ROUND(Primes!$Q$10*V8385,2)","v":0.13},0,{"v":3617.194486340221,"d":"3,617"},{"$f":"'BP Financier'!$G$44*(('BP Financier'!$C$22+'BP Financier'!$D$22+'BP Financier'!$E$22+'BP Financier'!$F$22+'BP Financier'!$G$22)/('BP Financier'!$C$16+'BP Financier'!$C$19+'BP Financier'!$D$16+'BP Financier'!$D$19+'BP Financier'!$E$16+'BP Financier'!$E$19+'BP Financier'!$C$22+'BP Financier'!$D$22+'BP Financier'!$E$22+'BP Financier'!$F$22+'BP Financier'!$F$16+'BP Financier'!$F$19+'BP Financier'!$G$16+'BP Financier'!$G$19+'BP Financier'!$G$22))*$V8385*X8385/(1-$W8385)","v":{"v":460.4164571220675,"d":"460"}},{"$f":"'BP Financier'!$G$44*(('BP Financier'!$C$22+'BP Financier'!$D$22+'BP Financier'!$E$22+'BP Financier'!$F$22+'BP Financier'!$G$22)/('BP Financier'!$C$16+'BP Financier'!$C$19+'BP Financier'!$D$16+'BP Financier'!$D$19+'BP Financier'!$E$16+'BP Financier'!$E$19+'BP Financier'!$C$22+'BP Financier'!$D$22+'BP Financier'!$E$22+'BP Financier'!$F$22+'BP Financier'!$F$16+'BP Financier'!$F$19+'BP Financier'!$G$16+'BP Financier'!$G$19+'BP Financier'!$G$22))*$V8385*Y8385/(1-$W8385)","v":{"v":307.7922171921004,"d":"308"}},{"$f":"'BP Financier'!$G$44*(('BP Financier'!$C$22+'BP Financier'!$D$22+'BP Financier'!$E$22+'BP Financier'!$F$22+'BP Financier'!$G$22)/('BP Financier'!$C$16+'BP Financier'!$C$19+'BP Financier'!$D$16+'BP Financier'!$D$19+'BP Financier'!$E$16+'BP Financier'!$E$19+'BP Financier'!$C$22+'BP Financier'!$D$22+'BP Financier'!$E$22+'BP Financier'!$F$22+'BP Financier'!$F$16+'BP Financier'!$F$19+'BP Financier'!$G$16+'BP Financier'!$G$19+'BP Financier'!$G$22))*$V8385*Z8385/(1-$W8385)","v":{"v":2408.9192535613147,"d":"2,409"}},{"$f":"'BP Financier'!$G$44*(('BP Financier'!$C$22+'BP Financier'!$D$22+'BP Financier'!$E$22+'BP Financier'!$F$22+'BP Financier'!$G$22)/('BP Financier'!$C$16+'BP Financier'!$C$19+'BP Financier'!$D$16+'BP Financier'!$D$19+'BP Financier'!$E$16+'BP Financier'!$E$19+'BP Financier'!$C$22+'BP Financier'!$D$22+'BP Financier'!$E$22+'BP Financier'!$F$22+'BP Financier'!$F$16+'BP Financier'!$F$19+'BP Financier'!$G$16+'BP Financier'!$G$19+'BP Financier'!$G$22))*$V8385*AA8385/(1-$W8385)","v":{"v":297.6172678634359,"d":"298"}},{"$f":"'BP Financier'!$G$44*(('BP Financier'!$C$22+'BP Financier'!$D$22+'BP Financier'!$E$22+'BP Financier'!$F$22+'BP Financier'!$G$22)/('BP Financier'!$C$16+'BP Financier'!$C$19+'BP Financier'!$D$16+'BP Financier'!$D$19+'BP Financier'!$E$16+'BP Financier'!$E$19+'BP Financier'!$C$22+'BP Financier'!$D$22+'BP Financier'!$E$22+'BP Financier'!$F$22+'BP Financier'!$F$16+'BP Financier'!$F$19+'BP Financier'!$G$16+'BP Financier'!$G$19+'BP Financier'!$G$22))*$V8385*AB8385/(1-$W8385)","v":{"v":142.44929060130264,"d":"142"}},null,{"v":1E-3,"d":"0.10%"},{"$f":"Actif!$E$28/100","v":{"v":0.28900000000000003,"d":"28.90%"}},{"$f":"Actif!$E$30/100","v":{"v":0.09050000000000001,"d":"9.05%"}},{"$f":"Actif!$E$31/100","v":{"v":0.0605,"d":"6.05%"}},{"$f":"Actif!$E$32/100","v":{"v":0.47350000000000003,"d":"47.35%"}},{"$f":"Actif!$E$33/100","v":{"v":0.0585,"d":"5.85%"}},{"$f":"Actif!$E$29/100","v":{"v":0.027999999999999997,"d":"2.80%"}}]
[null,"#273",19,2029,"H","A_CAPI",{"v":0.44999999999999996,"d":"0.45"},{"v":0.38999999999999996,"d":"0.39"},0.6,0.6,85,0,{"$f":"ROUND(Primes!$Q$10*V8386,2)","v":0.13},0,{"v":3617.194486340221,"d":"3,617"},{"$f":"'BP Financier'!$G$44*(('BP Financier'!$C$22+'BP Financier'!$D$22+'BP Financier'!$E$22+'BP Financier'!$F$22+'BP Financier'!$G$22)/('BP Financier'!$C$16+'BP Financier'!$C$19+'BP Financier'!$D$16+'BP Financier'!$D$19+'BP Financier'!$E$16+'BP Financier'!$E$19+'BP Financier'!$C$22+'BP Financier'!$D$22+'BP Financier'!$E$22+'BP Financier'!$F$22+'BP Financier'!$F$16+'BP Financier'!$F$19+'BP Financier'!$G$16+'BP Financier'!$G$19+'BP Financier'!$G$22))*$V8386*X8386/(1-$W8386)","v":{"v":460.4164571220675,"d":"460"}},{"$f":"'BP Financier'!$G$44*(('BP Financier'!$C$22+'BP Financier'!$D$22+'BP Financier'!$E$22+'BP Financier'!$F$22+'BP Financier'!$G$22)/('BP Financier'!$C$16+'BP Financier'!$C$19+'BP Financier'!$D$16+'BP Financier'!$D$19+'BP Financier'!$E$16+'BP Financier'!$E$19+'BP Financier'!$C$22+'BP Financier'!$D$22+'BP Financier'!$E$22+'BP Financier'!$F$22+'BP Financier'!$F$16+'BP Financier'!$F$19+'BP Financier'!$G$16+'BP Financier'!$G$19+'BP Financier'!$G$22))*$V8386*Y8386/(1-$W8386)","v":{"v":307.7922171921004,"d":"308"}},{"$f":"'BP Financier'!$G$44*(('BP Financier'!$C$22+'BP Financier'!$D$22+'BP Financier'!$E$22+'BP Financier'!$F$22+'BP Financier'!$G$22)/('BP Financier'!$C$16+'BP Financier'!$C$19+'BP Financier'!$D$16+'BP Financier'!$D$19+'BP Financier'!$E$16+'BP Financier'!$E$19+'BP Financier'!$C$22+'BP Financier'!$D$22+'BP Financier'!$E$22+'BP Financier'!$F$22+'BP Financier'!$F$16+'BP Financier'!$F$19+'BP Financier'!$G$16+'BP Financier'!$G$19+'BP Financier'!$G$22))*$V8386*Z8386/(1-$W8386)","v":{"v":2408.9192535613147,"d":"2,409"}},{"$f":"'BP Financier'!$G$44*(('BP Financier'!$C$22+'BP Financier'!$D$22+'BP Financier'!$E$22+'BP Financier'!$F$22+'BP Financier'!$G$22)/('BP Financier'!$C$16+'BP Financier'!$C$19+'BP Financier'!$D$16+'BP Financier'!$D$19+'BP Financier'!$E$16+'BP Financier'!$E$19+'BP Financier'!$C$22+'BP Financier'!$D$22+'BP Financier'!$E$22+'BP Financier'!$F$22+'BP Financier'!$F$16+'BP Financier'!$F$19+'BP Financier'!$G$16+'BP Financier'!$G$19+'BP Financier'!$G$22))*$V8386*AA8386/(1-$W8386)","v":{"v":297.6172678634359,"d":"298"}},{"$f":"'BP Financier'!$G$44*(('BP Financier'!$C$22+'BP Financier'!$D$22+'BP Financier'!$E$22+'BP Financier'!$F$22+'BP Financier'!$G$22)/('BP Financier'!$C$16+'BP Financier'!$C$19+'BP Financier'!$D$16+'BP Financier'!$D$19+'BP Financier'!$E$16+'BP Financier'!$E$19+'BP Financier'!$C$22+'BP Financier'!$D$22+'BP Financier'!$E$22+'BP Financier'!$F$22+'BP Financier'!$F$16+'BP Financier'!$F$19+'BP Financier'!$G$16+'BP Financier'!$G$19+'BP Financier'!$G$22))*$V8386*AB8386/(1-$W8386)","v":{"v":142.44929060130264,"d":"142"}},null,{"v":1E-3,"d":"0.10%"},{"$f":"Actif!$E$28/100","v":{"v":0.28900000000000003,"d":"28.90%"}},{"$f":"Actif!$E$30/100","v":{"v":0.09050000000000001,"d":"9.05%"}},{"$f":"Actif!$E$31/100","v":{"v":0.0605,"d":"6.05%"}},{"$f":"Actif!$E$32/100","v":{"v":0.47350000000000003,"d":"47.35%"}},{"$f":"Actif!$E$33/100","v":{"v":0.0585,"d":"5.85%"}},{"$f":"Actif!$E$29/100","v":{"v":0.027999999999999997,"d":"2.80%"}}]
[null,"#274",19,2030,"H","A_CAPI",{"v":0.44999999999999996,"d":"0.45"},{"v":0.38999999999999996,"d":"0.39"},0.6,0.6,85,0,{"$f":"ROUND(Primes!$Q$10*V8387,2)","v":0.13},0,{"v":3617.194486340221,"d":"3,617"},{"$f":"'BP Financier'!$G$44*(('BP Financier'!$C$22+'BP Financier'!$D$22+'BP Financier'!$E$22+'BP Financier'!$F$22+'BP Financier'!$G$22)/('BP Financier'!$C$16+'BP Financier'!$C$19+'BP Financier'!$D$16+'BP Financier'!$D$19+'BP Financier'!$E$16+'BP Financier'!$E$19+'BP Financier'!$C$22+'BP Financier'!$D$22+'BP Financier'!$E$22+'BP Financier'!$F$22+'BP Financier'!$F$16+'BP Financier'!$F$19+'BP Financier'!$G$16+'BP Financier'!$G$19+'BP Financier'!$G$22))*$V8387*X8387/(1-$W8387)","v":{"v":460.4164571220675,"d":"460"}},{"$f":"'BP Financier'!$G$44*(('BP Financier'!$C$22+'BP Financier'!$D$22+'BP Financier'!$E$22+'BP Financier'!$F$22+'BP Financier'!$G$22)/('BP Financier'!$C$16+'BP Financier'!$C$19+'BP Financier'!$D$16+'BP Financier'!$D$19+'BP Financier'!$E$16+'BP Financier'!$E$19+'BP Financier'!$C$22+'BP Financier'!$D$22+'BP Financier'!$E$22+'BP Financier'!$F$22+'BP Financier'!$F$16+'BP Financier'!$F$19+'BP Financier'!$G$16+'BP Financier'!$G$19+'BP Financier'!$G$22))*$V8387*Y8387/(1-$W8387)","v":{"v":307.7922171921004,"d":"308"}},{"$f":"'BP Financier'!$G$44*(('BP Financier'!$C$22+'BP Financier'!$D$22+'BP Financier'!$E$22+'BP Financier'!$F$22+'BP Financier'!$G$22)/('BP Financier'!$C$16+'BP Financier'!$C$19+'BP Financier'!$D$16+'BP Financier'!$D$19+'BP Financier'!$E$16+'BP Financier'!$E$19+'BP Financier'!$C$22+'BP Financier'!$D$22+'BP Financier'!$E$22+'BP Financier'!$F$22+'BP Financier'!$F$16+'BP Financier'!$F$19+'BP Financier'!$G$16+'BP Financier'!$G$19+'BP Financier'!$G$22))*$V8387*Z8387/(1-$W8387)","v":{"v":2408.9192535613147,"d":"2,409"}},{"$f":"'BP Financier'!$G$44*(('BP Financier'!$C$22+'BP Financier'!$D$22+'BP Financier'!$E$22+'BP Financier'!$F$22+'BP Financier'!$G$22)/('BP Financier'!$C$16+'BP Financier'!$C$19+'BP Financier'!$D$16+'BP Financier'!$D$19+'BP Financier'!$E$16+'BP Financier'!$E$19+'BP Financier'!$C$22+'BP Financier'!$D$22+'BP Financier'!$E$22+'BP Financier'!$F$22+'BP Financier'!$F$16+'BP Financier'!$F$19+'BP Financier'!$G$16+'BP Financier'!$G$19+'BP Financier'!$G$22))*$V8387*AA8387/(1-$W8387)","v":{"v":297.6172678634359,"d":"298"}},{"$f":"'BP Financier'!$G$44*(('BP Financier'!$C$22+'BP Financier'!$D$22+'BP Financier'!$E$22+'BP Financier'!$F$22+'BP Financier'!$G$22)/('BP Financier'!$C$16+'BP Financier'!$C$19+'BP Financier'!$D$16+'BP Financier'!$D$19+'BP Financier'!$E$16+'BP Financier'!$E$19+'BP Financier'!$C$22+'BP Financier'!$D$22+'BP Financier'!$E$22+'BP Financier'!$F$22+'BP Financier'!$F$16+'BP Financier'!$F$19+'BP Financier'!$G$16+'BP Financier'!$G$19+'BP Financier'!$G$22))*$V8387*AB8387/(1-$W8387)","v":{"v":142.44929060130264,"d":"142"}},null,{"v":1E-3,"d":"0.10%"},{"$f":"Actif!$E$28/100","v":{"v":0.28900000000000003,"d":"28.90%"}},{"$f":"Actif!$E$30/100","v":{"v":0.09050000000000001,"d":"9.05%"}},{"$f":"Actif!$E$31/100","v":{"v":0.0605,"d":"6.05%"}},{"$f":"Actif!$E$32/100","v":{"v":0.47350000000000003,"d":"47.35%"}},{"$f":"Actif!$E$33/100","v":{"v":0.0585,"d":"5.85%"}},{"$f":"Actif!$E$29/100","v":{"v":0.027999999999999997,"d":"2.80%"}}]
[null,"#275",19,2031,"H","A_CAPI",{"v":0.44999999999999996,"d":"0.45"},{"v":0.38999999999999996,"d":"0.39"},0.6,0.6,85,0,{"$f":"ROUND(Primes!$Q$10*V8388,2)","v":0.13},0,{"v":3617.194486340221,"d":"3,617"},{"$f":"'BP Financier'!$G$44*(('BP Financier'!$C$22+'BP Financier'!$D$22+'BP Financier'!$E$22+'BP Financier'!$F$22+'BP Financier'!$G$22)/('BP Financier'!$C$16+'BP Financier'!$C$19+'BP Financier'!$D$16+'BP Financier'!$D$19+'BP Financier'!$E$16+'BP Financier'!$E$19+'BP Financier'!$C$22+'BP Financier'!$D$22+'BP Financier'!$E$22+'BP Financier'!$F$22+'BP Financier'!$F$16+'BP Financier'!$F$19+'BP Financier'!$G$16+'BP Financier'!$G$19+'BP Financier'!$G$22))*$V8388*X8388/(1-$W8388)","v":{"v":460.4164571220675,"d":"460"}},{"$f":"'BP Financier'!$G$44*(('BP Financier'!$C$22+'BP Financier'!$D$22+'BP Financier'!$E$22+'BP Financier'!$F$22+'BP Financier'!$G$22)/('BP Financier'!$C$16+'BP Financier'!$C$19+'BP Financier'!$D$16+'BP Financier'!$D$19+'BP Financier'!$E$16+'BP Financier'!$E$19+'BP Financier'!$C$22+'BP Financier'!$D$22+'BP Financier'!$E$22+'BP Financier'!$F$22+'BP Financier'!$F$16+'BP Financier'!$F$19+'BP Financier'!$G$16+'BP Financier'!$G$19+'BP Financier'!$G$22))*$V8388*Y8388/(1-$W8388)","v":{"v":307.7922171921004,"d":"308"}},{"$f":"'BP Financier'!$G$44*(('BP Financier'!$C$22+'BP Financier'!$D$22+'BP Financier'!$E$22+'BP Financier'!$F$22+'BP Financier'!$G$22)/('BP Financier'!$C$16+'BP Financier'!$C$19+'BP Financier'!$D$16+'BP Financier'!$D$19+'BP Financier'!$E$16+'BP Financier'!$E$19+'BP Financier'!$C$22+'BP Financier'!$D$22+'BP Financier'!$E$22+'BP Financier'!$F$22+'BP Financier'!$F$16+'BP Financier'!$F$19+'BP Financier'!$G$16+'BP Financier'!$G$19+'BP Financier'!$G$22))*$V8388*Z8388/(1-$W8388)","v":{"v":2408.9192535613147,"d":"2,409"}},{"$f":"'BP Financier'!$G$44*(('BP Financier'!$C$22+'BP Financier'!$D$22+'BP Financier'!$E$22+'BP Financier'!$F$22+'BP Financier'!$G$22)/('BP Financier'!$C$16+'BP Financier'!$C$19+'BP Financier'!$D$16+'BP Financier'!$D$19+'BP Financier'!$E$16+'BP Financier'!$E$19+'BP Financier'!$C$22+'BP Financier'!$D$22+'BP Financier'!$E$22+'BP Financier'!$F$22+'BP Financier'!$F$16+'BP Financier'!$F$19+'BP Financier'!$G$16+'BP Financier'!$G$19+'BP Financier'!$G$22))*$V8388*AA8388/(1-$W8388)","v":{"v":297.6172678634359,"d":"298"}},{"$f":"'BP Financier'!$G$44*(('BP Financier'!$C$22+'BP Financier'!$D$22+'BP Financier'!$E$22+'BP Financier'!$F$22+'BP Financier'!$G$22)/('BP Financier'!$C$16+'BP Financier'!$C$19+'BP Financier'!$D$16+'BP Financier'!$D$19+'BP Financier'!$E$16+'BP Financier'!$E$19+'BP Financier'!$C$22+'BP Financier'!$D$22+'BP Financier'!$E$22+'BP Financier'!$F$22+'BP Financier'!$F$16+'BP Financier'!$F$19+'BP Financier'!$G$16+'BP Financier'!$G$19+'BP Financier'!$G$22))*$V8388*AB8388/(1-$W8388)","v":{"v":142.44929060130264,"d":"142"}},null,{"v":1E-3,"d":"0.10%"},{"$f":"Actif!$E$28/100","v":{"v":0.28900000000000003,"d":"28.90%"}},{"$f":"Actif!$E$30/100","v":{"v":0.09050000000000001,"d":"9.05%"}},{"$f":"Actif!$E$31/100","v":{"v":0.0605,"d":"6.05%"}},{"$f":"Actif!$E$32/100","v":{"v":0.47350000000000003,"d":"47.35%"}},{"$f":"Actif!$E$33/100","v":{"v":0.0585,"d":"5.85%"}},{"$f":"Actif!$E$29/100","v":{"v":0.027999999999999997,"d":"2.80%"}}]
[null,"#276",20,2026,"F","A_CAPI",{"v":0.44999999999999996,"d":"0.45"},{"v":0.38999999999999996,"d":"0.39"},0.6,0.6,85,0,{"$f":"ROUND(Primes!$Q$10*V8389,2)","v":0.26},0,{"v":7234.388972680442,"d":"7,234"},{"$f":"'BP Financier'!$G$44*(('BP Financier'!$C$22+'BP Financier'!$D$22+'BP Financier'!$E$22+'BP Financier'!$F$22+'BP Financier'!$G$22)/('BP Financier'!$C$16+'BP Financier'!$C$19+'BP Financier'!$D$16+'BP Financier'!$D$19+'BP Financier'!$E$16+'BP Financier'!$E$19+'BP Financier'!$C$22+'BP Financier'!$D$22+'BP Financier'!$E$22+'BP Financier'!$F$22+'BP Financier'!$F$16+'BP Financier'!$F$19+'BP Financier'!$G$16+'BP Financier'!$G$19+'BP Financier'!$G$22))*$V8389*X8389/(1-$W8389)","v":{"v":920.832914244135,"d":"921"}},{"$f":"'BP Financier'!$G$44*(('BP Financier'!$C$22+'BP Financier'!$D$22+'BP Financier'!$E$22+'BP Financier'!$F$22+'BP Financier'!$G$22)/('BP Financier'!$C$16+'BP Financier'!$C$19+'BP Financier'!$D$16+'BP Financier'!$D$19+'BP Financier'!$E$16+'BP Financier'!$E$19+'BP Financier'!$C$22+'BP Financier'!$D$22+'BP Financier'!$E$22+'BP Financier'!$F$22+'BP Financier'!$F$16+'BP Financier'!$F$19+'BP Financier'!$G$16+'BP Financier'!$G$19+'BP Financier'!$G$22))*$V8389*Y8389/(1-$W8389)","v":{"v":615.5844343842008,"d":"616"}},{"$f":"'BP Financier'!$G$44*(('BP Financier'!$C$22+'BP Financier'!$D$22+'BP Financier'!$E$22+'BP Financier'!$F$22+'BP Financier'!$G$22)/('BP Financier'!$C$16+'BP Financier'!$C$19+'BP Financier'!$D$16+'BP Financier'!$D$19+'BP Financier'!$E$16+'BP Financier'!$E$19+'BP Financier'!$C$22+'BP Financier'!$D$22+'BP Financier'!$E$22+'BP Financier'!$F$22+'BP Financier'!$F$16+'BP Financier'!$F$19+'BP Financier'!$G$16+'BP Financier'!$G$19+'BP Financier'!$G$22))*$V8389*Z8389/(1-$W8389)","v":{"v":4817.838507122629,"d":"4,818"}},{"$f":"'BP Financier'!$G$44*(('BP Financier'!$C$22+'BP Financier'!$D$22+'BP Financier'!$E$22+'BP Financier'!$F$22+'BP Financier'!$G$22)/('BP Financier'!$C$16+'BP Financier'!$C$19+'BP Financier'!$D$16+'BP Financier'!$D$19+'BP Financier'!$E$16+'BP Financier'!$E$19+'BP Financier'!$C$22+'BP Financier'!$D$22+'BP Financier'!$E$22+'BP Financier'!$F$22+'BP Financier'!$F$16+'BP Financier'!$F$19+'BP Financier'!$G$16+'BP Financier'!$G$19+'BP Financier'!$G$22))*$V8389*AA8389/(1-$W8389)","v":{"v":595.2345357268719,"d":"595"}},{"$f":"'BP Financier'!$G$44*(('BP Financier'!$C$22+'BP Financier'!$D$22+'BP Financier'!$E$22+'BP Financier'!$F$22+'BP Financier'!$G$22)/('BP Financier'!$C$16+'BP Financier'!$C$19+'BP Financier'!$D$16+'BP Financier'!$D$19+'BP Financier'!$E$16+'BP Financier'!$E$19+'BP Financier'!$C$22+'BP Financier'!$D$22+'BP Financier'!$E$22+'BP Financier'!$F$22+'BP Financier'!$F$16+'BP Financier'!$F$19+'BP Financier'!$G$16+'BP Financier'!$G$19+'BP Financier'!$G$22))*$V8389*AB8389/(1-$W8389)","v":{"v":284.89858120260527,"d":"285"}},null,{"v":2E-3,"d":"0.20%"},{"$f":"Actif!$E$28/100","v":{"v":0.28900000000000003,"d":"28.90%"}},{"$f":"Actif!$E$30/100","v":{"v":0.09050000000000001,"d":"9.05%"}},{"$f":"Actif!$E$31/100","v":{"v":0.0605,"d":"6.05%"}},{"$f":"Actif!$E$32/100","v":{"v":0.47350000000000003,"d":"47.35%"}},{"$f":"Actif!$E$33/100","v":{"v":0.0585,"d":"5.85%"}},{"$f":"Actif!$E$29/100","v":{"v":0.027999999999999997,"d":"2.80%"}}]
[null,"#277",20,2028,"F","A_CAPI",{"v":0.44999999999999996,"d":"0.45"},{"v":0.38999999999999996,"d":"0.39"},0.6,0.6,85,0,{"$f":"ROUND(Primes!$Q$10*V8390,2)","v":0.26},0,{"v":7234.388972680442,"d":"7,234"},{"$f":"'BP Financier'!$G$44*(('BP Financier'!$C$22+'BP Financier'!$D$22+'BP Financier'!$E$22+'BP Financier'!$F$22+'BP Financier'!$G$22)/('BP Financier'!$C$16+'BP Financier'!$C$19+'BP Financier'!$D$16+'BP Financier'!$D$19+'BP Financier'!$E$16+'BP Financier'!$E$19+'BP Financier'!$C$22+'BP Financier'!$D$22+'BP Financier'!$E$22+'BP Financier'!$F$22+'BP Financier'!$F$16+'BP Financier'!$F$19+'BP Financier'!$G$16+'BP Financier'!$G$19+'BP Financier'!$G$22))*$V8390*X8390/(1-$W8390)","v":{"v":920.832914244135,"d":"921"}},{"$f":"'BP Financier'!$G$44*(('BP Financier'!$C$22+'BP Financier'!$D$22+'BP Financier'!$E$22+'BP Financier'!$F$22+'BP Financier'!$G$22)/('BP Financier'!$C$16+'BP Financier'!$C$19+'BP Financier'!$D$16+'BP Financier'!$D$19+'BP Financier'!$E$16+'BP Financier'!$E$19+'BP Financier'!$C$22+'BP Financier'!$D$22+'BP Financier'!$E$22+'BP Financier'!$F$22+'BP Financier'!$F$16+'BP Financier'!$F$19+'BP Financier'!$G$16+'BP Financier'!$G$19+'BP Financier'!$G$22))*$V8390*Y8390/(1-$W8390)","v":{"v":615.5844343842008,"d":"616"}},{"$f":"'BP Financier'!$G$44*(('BP Financier'!$C$22+'BP Financier'!$D$22+'BP Financier'!$E$22+'BP Financier'!$F$22+'BP Financier'!$G$22)/('BP Financier'!$C$16+'BP Financier'!$C$19+'BP Financier'!$D$16+'BP Financier'!$D$19+'BP Financier'!$E$16+'BP Financier'!$E$19+'BP Financier'!$C$22+'BP Financier'!$D$22+'BP Financier'!$E$22+'BP Financier'!$F$22+'BP Financier'!$F$16+'BP Financier'!$F$19+'BP Financier'!$G$16+'BP Financier'!$G$19+'BP Financier'!$G$22))*$V8390*Z8390/(1-$W8390)","v":{"v":4817.838507122629,"d":"4,818"}},{"$f":"'BP Financier'!$G$44*(('BP Financier'!$C$22+'BP Financier'!$D$22+'BP Financier'!$E$22+'BP Financier'!$F$22+'BP Financier'!$G$22)/('BP Financier'!$C$16+'BP Financier'!$C$19+'BP Financier'!$D$16+'BP Financier'!$D$19+'BP Financier'!$E$16+'BP Financier'!$E$19+'BP Financier'!$C$22+'BP Financier'!$D$22+'BP Financier'!$E$22+'BP Financier'!$F$22+'BP Financier'!$F$16+'BP Financier'!$F$19+'BP Financier'!$G$16+'BP Financier'!$G$19+'BP Financier'!$G$22))*$V8390*AA8390/(1-$W8390)","v":{"v":595.2345357268719,"d":"595"}},{"$f":"'BP Financier'!$G$44*(('BP Financier'!$C$22+'BP Financier'!$D$22+'BP Financier'!$E$22+'BP Financier'!$F$22+'BP Financier'!$G$22)/('BP Financier'!$C$16+'BP Financier'!$C$19+'BP Financier'!$D$16+'BP Financier'!$D$19+'BP Financier'!$E$16+'BP Financier'!$E$19+'BP Financier'!$C$22+'BP Financier'!$D$22+'BP Financier'!$E$22+'BP Financier'!$F$22+'BP Financier'!$F$16+'BP Financier'!$F$19+'BP Financier'!$G$16+'BP Financier'!$G$19+'BP Financier'!$G$22))*$V8390*AB8390/(1-$W8390)","v":{"v":284.89858120260527,"d":"285"}},null,{"v":2E-3,"d":"0.20%"},{"$f":"Actif!$E$28/100","v":{"v":0.28900000000000003,"d":"28.90%"}},{"$f":"Actif!$E$30/100","v":{"v":0.09050000000000001,"d":"9.05%"}},{"$f":"Actif!$E$31/100","v":{"v":0.0605,"d":"6.05%"}},{"$f":"Actif!$E$32/100","v":{"v":0.47350000000000003,"d":"47.35%"}},{"$f":"Actif!$E$33/100","v":{"v":0.0585,"d":"5.85%"}},{"$f":"Actif!$E$29/100","v":{"v":0.027999999999999997,"d":"2.80%"}}]
[null,"#278",20,2029,"F","A_CAPI",{"v":0.44999999999999996,"d":"0.45"},{"v":0.38999999999999996,"d":"0.39"},0.6,0.6,85,0,{"$f":"ROUND(Primes!$Q$10*V8391,2)","v":0.26},0,{"v":7234.388972680442,"d":"7,234"},{"$f":"'BP Financier'!$G$44*(('BP Financier'!$C$22+'BP Financier'!$D$22+'BP Financier'!$E$22+'BP Financier'!$F$22+'BP Financier'!$G$22)/('BP Financier'!$C$16+'BP Financier'!$C$19+'BP Financier'!$D$16+'BP Financier'!$D$19+'BP Financier'!$E$16+'BP Financier'!$E$19+'BP Financier'!$C$22+'BP Financier'!$D$22+'BP Financier'!$E$22+'BP Financier'!$F$22+'BP Financier'!$F$16+'BP Financier'!$F$19+'BP Financier'!$G$16+'BP Financier'!$G$19+'BP Financier'!$G$22))*$V8391*X8391/(1-$W8391)","v":{"v":920.832914244135,"d":"921"}},{"$f":"'BP Financier'!$G$44*(('BP Financier'!$C$22+'BP Financier'!$D$22+'BP Financier'!$E$22+'BP Financier'!$F$22+'BP Financier'!$G$22)/('BP Financier'!$C$16+'BP Financier'!$C$19+'BP Financier'!$D$16+'BP Financier'!$D$19+'BP Financier'!$E$16+'BP Financier'!$E$19+'BP Financier'!$C$22+'BP Financier'!$D$22+'BP Financier'!$E$22+'BP Financier'!$F$22+'BP Financier'!$F$16+'BP Financier'!$F$19+'BP Financier'!$G$16+'BP Financier'!$G$19+'BP Financier'!$G$22))*$V8391*Y8391/(1-$W8391)","v":{"v":615.5844343842008,"d":"616"}},{"$f":"'BP Financier'!$G$44*(('BP Financier'!$C$22+'BP Financier'!$D$22+'BP Financier'!$E$22+'BP Financier'!$F$22+'BP Financier'!$G$22)/('BP Financier'!$C$16+'BP Financier'!$C$19+'BP Financier'!$D$16+'BP Financier'!$D$19+'BP Financier'!$E$16+'BP Financier'!$E$19+'BP Financier'!$C$22+'BP Financier'!$D$22+'BP Financier'!$E$22+'BP Financier'!$F$22+'BP Financier'!$F$16+'BP Financier'!$F$19+'BP Financier'!$G$16+'BP Financier'!$G$19+'BP Financier'!$G$22))*$V8391*Z8391/(1-$W8391)","v":{"v":4817.838507122629,"d":"4,818"}},{"$f":"'BP Financier'!$G$44*(('BP Financier'!$C$22+'BP Financier'!$D$22+'BP Financier'!$E$22+'BP Financier'!$F$22+'BP Financier'!$G$22)/('BP Financier'!$C$16+'BP Financier'!$C$19+'BP Financier'!$D$16+'BP Financier'!$D$19+'BP Financier'!$E$16+'BP Financier'!$E$19+'BP Financier'!$C$22+'BP Financier'!$D$22+'BP Financier'!$E$22+'BP Financier'!$F$22+'BP Financier'!$F$16+'BP Financier'!$F$19+'BP Financier'!$G$16+'BP Financier'!$G$19+'BP Financier'!$G$22))*$V8391*AA8391/(1-$W8391)","v":{"v":595.2345357268719,"d":"595"}},{"$f":"'BP Financier'!$G$44*(('BP Financier'!$C$22+'BP Financier'!$D$22+'BP Financier'!$E$22+'BP Financier'!$F$22+'BP Financier'!$G$22)/('BP Financier'!$C$16+'BP Financier'!$C$19+'BP Financier'!$D$16+'BP Financier'!$D$19+'BP Financier'!$E$16+'BP Financier'!$E$19+'BP Financier'!$C$22+'BP Financier'!$D$22+'BP Financier'!$E$22+'BP Financier'!$F$22+'BP Financier'!$F$16+'BP Financier'!$F$19+'BP Financier'!$G$16+'BP Financier'!$G$19+'BP Financier'!$G$22))*$V8391*AB8391/(1-$W8391)","v":{"v":284.89858120260527,"d":"285"}},null,{"v":2E-3,"d":"0.20%"},{"$f":"Actif!$E$28/100","v":{"v":0.28900000000000003,"d":"28.90%"}},{"$f":"Actif!$E$30/100","v":{"v":0.09050000000000001,"d":"9.05%"}},{"$f":"Actif!$E$31/100","v":{"v":0.0605,"d":"6.05%"}},{"$f":"Actif!$E$32/100","v":{"v":0.47350000000000003,"d":"47.35%"}},{"$f":"Actif!$E$33/100","v":{"v":0.0585,"d":"5.85%"}},{"$f":"Actif!$E$29/100","v":{"v":0.027999999999999997,"d":"2.80%"}}]
[null,"#279",20,2030,"F","A_CAPI",{"v":0.44999999999999996,"d":"0.45"},{"v":0.38999999999999996,"d":"0.39"},0.6,0.6,85,0,{"$f":"ROUND(Primes!$Q$10*V8392,2)","v":0.26},0,{"v":7234.388972680442,"d":"7,234"},{"$f":"'BP Financier'!$G$44*(('BP Financier'!$C$22+'BP Financier'!$D$22+'BP Financier'!$E$22+'BP Financier'!$F$22+'BP Financier'!$G$22)/('BP Financier'!$C$16+'BP Financier'!$C$19+'BP Financier'!$D$16+'BP Financier'!$D$19+'BP Financier'!$E$16+'BP Financier'!$E$19+'BP Financier'!$C$22+'BP Financier'!$D$22+'BP Financier'!$E$22+'BP Financier'!$F$22+'BP Financier'!$F$16+'BP Financier'!$F$19+'BP Financier'!$G$16+'BP Financier'!$G$19+'BP Financier'!$G$22))*$V8392*X8392/(1-$W8392)","v":{"v":920.832914244135,"d":"921"}},{"$f":"'BP Financier'!$G$44*(('BP Financier'!$C$22+'BP Financier'!$D$22+'BP Financier'!$E$22+'BP Financier'!$F$22+'BP Financier'!$G$22)/('BP Financier'!$C$16+'BP Financier'!$C$19+'BP Financier'!$D$16+'BP Financier'!$D$19+'BP Financier'!$E$16+'BP Financier'!$E$19+'BP Financier'!$C$22+'BP Financier'!$D$22+'BP Financier'!$E$22+'BP Financier'!$F$22+'BP Financier'!$F$16+'BP Financier'!$F$19+'BP Financier'!$G$16+'BP Financier'!$G$19+'BP Financier'!$G$22))*$V8392*Y8392/(1-$W8392)","v":{"v":615.5844343842008,"d":"616"}},{"$f":"'BP Financier'!$G$44*(('BP Financier'!$C$22+'BP Financier'!$D$22+'BP Financier'!$E$22+'BP Financier'!$F$22+'BP Financier'!$G$22)/('BP Financier'!$C$16+'BP Financier'!$C$19+'BP Financier'!$D$16+'BP Financier'!$D$19+'BP Financier'!$E$16+'BP Financier'!$E$19+'BP Financier'!$C$22+'BP Financier'!$D$22+'BP Financier'!$E$22+'BP Financier'!$F$22+'BP Financier'!$F$16+'BP Financier'!$F$19+'BP Financier'!$G$16+'BP Financier'!$G$19+'BP Financier'!$G$22))*$V8392*Z8392/(1-$W8392)","v":{"v":4817.838507122629,"d":"4,818"}},{"$f":"'BP Financier'!$G$44*(('BP Financier'!$C$22+'BP Financier'!$D$22+'BP Financier'!$E$22+'BP Financier'!$F$22+'BP Financier'!$G$22)/('BP Financier'!$C$16+'BP Financier'!$C$19+'BP Financier'!$D$16+'BP Financier'!$D$19+'BP Financier'!$E$16+'BP Financier'!$E$19+'BP Financier'!$C$22+'BP Financier'!$D$22+'BP Financier'!$E$22+'BP Financier'!$F$22+'BP Financier'!$F$16+'BP Financier'!$F$19+'BP Financier'!$G$16+'BP Financier'!$G$19+'BP Financier'!$G$22))*$V8392*AA8392/(1-$W8392)","v":{"v":595.2345357268719,"d":"595"}},{"$f":"'BP Financier'!$G$44*(('BP Financier'!$C$22+'BP Financier'!$D$22+'BP Financier'!$E$22+'BP Financier'!$F$22+'BP Financier'!$G$22)/('BP Financier'!$C$16+'BP Financier'!$C$19+'BP Financier'!$D$16+'BP Financier'!$D$19+'BP Financier'!$E$16+'BP Financier'!$E$19+'BP Financier'!$C$22+'BP Financier'!$D$22+'BP Financier'!$E$22+'BP Financier'!$F$22+'BP Financier'!$F$16+'BP Financier'!$F$19+'BP Financier'!$G$16+'BP Financier'!$G$19+'BP Financier'!$G$22))*$V8392*AB8392/(1-$W8392)","v":{"v":284.89858120260527,"d":"285"}},null,{"v":2E-3,"d":"0.20%"},{"$f":"Actif!$E$28/100","v":{"v":0.28900000000000003,"d":"28.90%"}},{"$f":"Actif!$E$30/100","v":{"v":0.09050000000000001,"d":"9.05%"}},{"$f":"Actif!$E$31/100","v":{"v":0.0605,"d":"6.05%"}},{"$f":"Actif!$E$32/100","v":{"v":0.47350000000000003,"d":"47.35%"}},{"$f":"Actif!$E$33/100","v":{"v":0.0585,"d":"5.85%"}},{"$f":"Actif!$E$29/100","v":{"v":0.027999999999999997,"d":"2.80%"}}]
[null,"#280",20,2031,"F","A_CAPI",{"v":0.44999999999999996,"d":"0.45"},{"v":0.38999999999999996,"d":"0.39"},0.6,0.6,85,0,{"$f":"ROUND(Primes!$Q$10*V8393,2)","v":0.26},0,{"v":7234.388972680442,"d":"7,234"},{"$f":"'BP Financier'!$G$44*(('BP Financier'!$C$22+'BP Financier'!$D$22+'BP Financier'!$E$22+'BP Financier'!$F$22+'BP Financier'!$G$22)/('BP Financier'!$C$16+'BP Financier'!$C$19+'BP Financier'!$D$16+'BP Financier'!$D$19+'BP Financier'!$E$16+'BP Financier'!$E$19+'BP Financier'!$C$22+'BP Financier'!$D$22+'BP Financier'!$E$22+'BP Financier'!$F$22+'BP Financier'!$F$16+'BP Financier'!$F$19+'BP Financier'!$G$16+'BP Financier'!$G$19+'BP Financier'!$G$22))*$V8393*X8393/(1-$W8393)","v":{"v":920.832914244135,"d":"921"}},{"$f":"'BP Financier'!$G$44*(('BP Financier'!$C$22+'BP Financier'!$D$22+'BP Financier'!$E$22+'BP Financier'!$F$22+'BP Financier'!$G$22)/('BP Financier'!$C$16+'BP Financier'!$C$19+'BP Financier'!$D$16+'BP Financier'!$D$19+'BP Financier'!$E$16+'BP Financier'!$E$19+'BP Financier'!$C$22+'BP Financier'!$D$22+'BP Financier'!$E$22+'BP Financier'!$F$22+'BP Financier'!$F$16+'BP Financier'!$F$19+'BP Financier'!$G$16+'BP Financier'!$G$19+'BP Financier'!$G$22))*$V8393*Y8393/(1-$W8393)","v":{"v":615.5844343842008,"d":"616"}},{"$f":"'BP Financier'!$G$44*(('BP Financier'!$C$22+'BP Financier'!$D$22+'BP Financier'!$E$22+'BP Financier'!$F$22+'BP Financier'!$G$22)/('BP Financier'!$C$16+'BP Financier'!$C$19+'BP Financier'!$D$16+'BP Financier'!$D$19+'BP Financier'!$E$16+'BP Financier'!$E$19+'BP Financier'!$C$22+'BP Financier'!$D$22+'BP Financier'!$E$22+'BP Financier'!$F$22+'BP Financier'!$F$16+'BP Financier'!$F$19+'BP Financier'!$G$16+'BP Financier'!$G$19+'BP Financier'!$G$22))*$V8393*Z8393/(1-$W8393)","v":{"v":4817.838507122629,"d":"4,818"}},{"$f":"'BP Financier'!$G$44*(('BP Financier'!$C$22+'BP Financier'!$D$22+'BP Financier'!$E$22+'BP Financier'!$F$22+'BP Financier'!$G$22)/('BP Financier'!$C$16+'BP Financier'!$C$19+'BP Financier'!$D$16+'BP Financier'!$D$19+'BP Financier'!$E$16+'BP Financier'!$E$19+'BP Financier'!$C$22+'BP Financier'!$D$22+'BP Financier'!$E$22+'BP Financier'!$F$22+'BP Financier'!$F$16+'BP Financier'!$F$19+'BP Financier'!$G$16+'BP Financier'!$G$19+'BP Financier'!$G$22))*$V8393*AA8393/(1-$W8393)","v":{"v":595.2345357268719,"d":"595"}},{"$f":"'BP Financier'!$G$44*(('BP Financier'!$C$22+'BP Financier'!$D$22+'BP Financier'!$E$22+'BP Financier'!$F$22+'BP Financier'!$G$22)/('BP Financier'!$C$16+'BP Financier'!$C$19+'BP Financier'!$D$16+'BP Financier'!$D$19+'BP Financier'!$E$16+'BP Financier'!$E$19+'BP Financier'!$C$22+'BP Financier'!$D$22+'BP Financier'!$E$22+'BP Financier'!$F$22+'BP Financier'!$F$16+'BP Financier'!$F$19+'BP Financier'!$G$16+'BP Financier'!$G$19+'BP Financier'!$G$22))*$V8393*AB8393/(1-$W8393)","v":{"v":284.89858120260527,"d":"285"}},null,{"v":2E-3,"d":"0.20%"},{"$f":"Actif!$E$28/100","v":{"v":0.28900000000000003,"d":"28.90%"}},{"$f":"Actif!$E$30/100","v":{"v":0.09050000000000001,"d":"9.05%"}},{"$f":"Actif!$E$31/100","v":{"v":0.0605,"d":"6.05%"}},{"$f":"Actif!$E$32/100","v":{"v":0.47350000000000003,"d":"47.35%"}},{"$f":"Actif!$E$33/100","v":{"v":0.0585,"d":"5.85%"}},{"$f":"Actif!$E$29/100","v":{"v":0.027999999999999997,"d":"2.80%"}}]
[null,"#281",21,2026,"H","A_CAPI",{"v":0.44999999999999996,"d":"0.45"},{"v":0.38999999999999996,"d":"0.39"},0.6,0.6,85,0,{"$f":"ROUND(Primes!$Q$10*V8394,2)","v":0.26},0,{"v":7234.388972680442,"d":"7,234"},{"$f":"'BP Financier'!$G$44*(('BP Financier'!$C$22+'BP Financier'!$D$22+'BP Financier'!$E$22+'BP Financier'!$F$22+'BP Financier'!$G$22)/('BP Financier'!$C$16+'BP Financier'!$C$19+'BP Financier'!$D$16+'BP Financier'!$D$19+'BP Financier'!$E$16+'BP Financier'!$E$19+'BP Financier'!$C$22+'BP Financier'!$D$22+'BP Financier'!$E$22+'BP Financier'!$F$22+'BP Financier'!$F$16+'BP Financier'!$F$19+'BP Financier'!$G$16+'BP Financier'!$G$19+'BP Financier'!$G$22))*$V8394*X8394/(1-$W8394)","v":{"v":920.832914244135,"d":"921"}},{"$f":"'BP Financier'!$G$44*(('BP Financier'!$C$22+'BP Financier'!$D$22+'BP Financier'!$E$22+'BP Financier'!$F$22+'BP Financier'!$G$22)/('BP Financier'!$C$16+'BP Financier'!$C$19+'BP Financier'!$D$16+'BP Financier'!$D$19+'BP Financier'!$E$16+'BP Financier'!$E$19+'BP Financier'!$C$22+'BP Financier'!$D$22+'BP Financier'!$E$22+'BP Financier'!$F$22+'BP Financier'!$F$16+'BP Financier'!$F$19+'BP Financier'!$G$16+'BP Financier'!$G$19+'BP Financier'!$G$22))*$V8394*Y8394/(1-$W8394)","v":{"v":615.5844343842008,"d":"616"}},{"$f":"'BP Financier'!$G$44*(('BP Financier'!$C$22+'BP Financier'!$D$22+'BP Financier'!$E$22+'BP Financier'!$F$22+'BP Financier'!$G$22)/('BP Financier'!$C$16+'BP Financier'!$C$19+'BP Financier'!$D$16+'BP Financier'!$D$19+'BP Financier'!$E$16+'BP Financier'!$E$19+'BP Financier'!$C$22+'BP Financier'!$D$22+'BP Financier'!$E$22+'BP Financier'!$F$22+'BP Financier'!$F$16+'BP Financier'!$F$19+'BP Financier'!$G$16+'BP Financier'!$G$19+'BP Financier'!$G$22))*$V8394*Z8394/(1-$W8394)","v":{"v":4817.838507122629,"d":"4,818"}},{"$f":"'BP Financier'!$G$44*(('BP Financier'!$C$22+'BP Financier'!$D$22+'BP Financier'!$E$22+'BP Financier'!$F$22+'BP Financier'!$G$22)/('BP Financier'!$C$16+'BP Financier'!$C$19+'BP Financier'!$D$16+'BP Financier'!$D$19+'BP Financier'!$E$16+'BP Financier'!$E$19+'BP Financier'!$C$22+'BP Financier'!$D$22+'BP Financier'!$E$22+'BP Financier'!$F$22+'BP Financier'!$F$16+'BP Financier'!$F$19+'BP Financier'!$G$16+'BP Financier'!$G$19+'BP Financier'!$G$22))*$V8394*AA8394/(1-$W8394)","v":{"v":595.2345357268719,"d":"595"}},{"$f":"'BP Financier'!$G$44*(('BP Financier'!$C$22+'BP Financier'!$D$22+'BP Financier'!$E$22+'BP Financier'!$F$22+'BP Financier'!$G$22)/('BP Financier'!$C$16+'BP Financier'!$C$19+'BP Financier'!$D$16+'BP Financier'!$D$19+'BP Financier'!$E$16+'BP Financier'!$E$19+'BP Financier'!$C$22+'BP Financier'!$D$22+'BP Financier'!$E$22+'BP Financier'!$F$22+'BP Financier'!$F$16+'BP Financier'!$F$19+'BP Financier'!$G$16+'BP Financier'!$G$19+'BP Financier'!$G$22))*$V8394*AB8394/(1-$W8394)","v":{"v":284.89858120260527,"d":"285"}},null,{"v":2E-3,"d":"0.20%"},{"$f":"Actif!$E$28/100","v":{"v":0.28900000000000003,"d":"28.90%"}},{"$f":"Actif!$E$30/100","v":{"v":0.09050000000000001,"d":"9.05%"}},{"$f":"Actif!$E$31/100","v":{"v":0.0605,"d":"6.05%"}},{"$f":"Actif!$E$32/100","v":{"v":0.47350000000000003,"d":"47.35%"}},{"$f":"Actif!$E$33/100","v":{"v":0.0585,"d":"5.85%"}},{"$f":"Actif!$E$29/100","v":{"v":0.027999999999999997,"d":"2.80%"}}]
[null,"#282",21,2028,"H","A_CAPI",{"v":0.44999999999999996,"d":"0.45"},{"v":0.38999999999999996,"d":"0.39"},0.6,0.6,85,0,{"$f":"ROUND(Primes!$Q$10*V8395,2)","v":0.26},0,{"v":7234.388972680442,"d":"7,234"},{"$f":"'BP Financier'!$G$44*(('BP Financier'!$C$22+'BP Financier'!$D$22+'BP Financier'!$E$22+'BP Financier'!$F$22+'BP Financier'!$G$22)/('BP Financier'!$C$16+'BP Financier'!$C$19+'BP Financier'!$D$16+'BP Financier'!$D$19+'BP Financier'!$E$16+'BP Financier'!$E$19+'BP Financier'!$C$22+'BP Financier'!$D$22+'BP Financier'!$E$22+'BP Financier'!$F$22+'BP Financier'!$F$16+'BP Financier'!$F$19+'BP Financier'!$G$16+'BP Financier'!$G$19+'BP Financier'!$G$22))*$V8395*X8395/(1-$W8395)","v":{"v":920.832914244135,"d":"921"}},{"$f":"'BP Financier'!$G$44*(('BP Financier'!$C$22+'BP Financier'!$D$22+'BP Financier'!$E$22+'BP Financier'!$F$22+'BP Financier'!$G$22)/('BP Financier'!$C$16+'BP Financier'!$C$19+'BP Financier'!$D$16+'BP Financier'!$D$19+'BP Financier'!$E$16+'BP Financier'!$E$19+'BP Financier'!$C$22+'BP Financier'!$D$22+'BP Financier'!$E$22+'BP Financier'!$F$22+'BP Financier'!$F$16+'BP Financier'!$F$19+'BP Financier'!$G$16+'BP Financier'!$G$19+'BP Financier'!$G$22))*$V8395*Y8395/(1-$W8395)","v":{"v":615.5844343842008,"d":"616"}},{"$f":"'BP Financier'!$G$44*(('BP Financier'!$C$22+'BP Financier'!$D$22+'BP Financier'!$E$22+'BP Financier'!$F$22+'BP Financier'!$G$22)/('BP Financier'!$C$16+'BP Financier'!$C$19+'BP Financier'!$D$16+'BP Financier'!$D$19+'BP Financier'!$E$16+'BP Financier'!$E$19+'BP Financier'!$C$22+'BP Financier'!$D$22+'BP Financier'!$E$22+'BP Financier'!$F$22+'BP Financier'!$F$16+'BP Financier'!$F$19+'BP Financier'!$G$16+'BP Financier'!$G$19+'BP Financier'!$G$22))*$V8395*Z8395/(1-$W8395)","v":{"v":4817.838507122629,"d":"4,818"}},{"$f":"'BP Financier'!$G$44*(('BP Financier'!$C$22+'BP Financier'!$D$22+'BP Financier'!$E$22+'BP Financier'!$F$22+'BP Financier'!$G$22)/('BP Financier'!$C$16+'BP Financier'!$C$19+'BP Financier'!$D$16+'BP Financier'!$D$19+'BP Financier'!$E$16+'BP Financier'!$E$19+'BP Financier'!$C$22+'BP Financier'!$D$22+'BP Financier'!$E$22+'BP Financier'!$F$22+'BP Financier'!$F$16+'BP Financier'!$F$19+'BP Financier'!$G$16+'BP Financier'!$G$19+'BP Financier'!$G$22))*$V8395*AA8395/(1-$W8395)","v":{"v":595.2345357268719,"d":"595"}},{"$f":"'BP Financier'!$G$44*(('BP Financier'!$C$22+'BP Financier'!$D$22+'BP Financier'!$E$22+'BP Financier'!$F$22+'BP Financier'!$G$22)/('BP Financier'!$C$16+'BP Financier'!$C$19+'BP Financier'!$D$16+'BP Financier'!$D$19+'BP Financier'!$E$16+'BP Financier'!$E$19+'BP Financier'!$C$22+'BP Financier'!$D$22+'BP Financier'!$E$22+'BP Financier'!$F$22+'BP Financier'!$F$16+'BP Financier'!$F$19+'BP Financier'!$G$16+'BP Financier'!$G$19+'BP Financier'!$G$22))*$V8395*AB8395/(1-$W8395)","v":{"v":284.89858120260527,"d":"285"}},null,{"v":2E-3,"d":"0.20%"},{"$f":"Actif!$E$28/100","v":{"v":0.28900000000000003,"d":"28.90%"}},{"$f":"Actif!$E$30/100","v":{"v":0.09050000000000001,"d":"9.05%"}},{"$f":"Actif!$E$31/100","v":{"v":0.0605,"d":"6.05%"}},{"$f":"Actif!$E$32/100","v":{"v":0.47350000000000003,"d":"47.35%"}},{"$f":"Actif!$E$33/100","v":{"v":0.0585,"d":"5.85%"}},{"$f":"Actif!$E$29/100","v":{"v":0.027999999999999997,"d":"2.80%"}}]
[null,"#283",21,2029,"H","A_CAPI",{"v":0.44999999999999996,"d":"0.45"},{"v":0.38999999999999996,"d":"0.39"},0.6,0.6,85,0,{"$f":"ROUND(Primes!$Q$10*V8396,2)","v":0.26},0,{"v":7234.388972680442,"d":"7,234"},{"$f":"'BP Financier'!$G$44*(('BP Financier'!$C$22+'BP Financier'!$D$22+'BP Financier'!$E$22+'BP Financier'!$F$22+'BP Financier'!$G$22)/('BP Financier'!$C$16+'BP Financier'!$C$19+'BP Financier'!$D$16+'BP Financier'!$D$19+'BP Financier'!$E$16+'BP Financier'!$E$19+'BP Financier'!$C$22+'BP Financier'!$D$22+'BP Financier'!$E$22+'BP Financier'!$F$22+'BP Financier'!$F$16+'BP Financier'!$F$19+'BP Financier'!$G$16+'BP Financier'!$G$19+'BP Financier'!$G$22))*$V8396*X8396/(1-$W8396)","v":{"v":920.832914244135,"d":"921"}},{"$f":"'BP Financier'!$G$44*(('BP Financier'!$C$22+'BP Financier'!$D$22+'BP Financier'!$E$22+'BP Financier'!$F$22+'BP Financier'!$G$22)/('BP Financier'!$C$16+'BP Financier'!$C$19+'BP Financier'!$D$16+'BP Financier'!$D$19+'BP Financier'!$E$16+'BP Financier'!$E$19+'BP Financier'!$C$22+'BP Financier'!$D$22+'BP Financier'!$E$22+'BP Financier'!$F$22+'BP Financier'!$F$16+'BP Financier'!$F$19+'BP Financier'!$G$16+'BP Financier'!$G$19+'BP Financier'!$G$22))*$V8396*Y8396/(1-$W8396)","v":{"v":615.5844343842008,"d":"616"}},{"$f":"'BP Financier'!$G$44*(('BP Financier'!$C$22+'BP Financier'!$D$22+'BP Financier'!$E$22+'BP Financier'!$F$22+'BP Financier'!$G$22)/('BP Financier'!$C$16+'BP Financier'!$C$19+'BP Financier'!$D$16+'BP Financier'!$D$19+'BP Financier'!$E$16+'BP Financier'!$E$19+'BP Financier'!$C$22+'BP Financier'!$D$22+'BP Financier'!$E$22+'BP Financier'!$F$22+'BP Financier'!$F$16+'BP Financier'!$F$19+'BP Financier'!$G$16+'BP Financier'!$G$19+'BP Financier'!$G$22))*$V8396*Z8396/(1-$W8396)","v":{"v":4817.838507122629,"d":"4,818"}},{"$f":"'BP Financier'!$G$44*(('BP Financier'!$C$22+'BP Financier'!$D$22+'BP Financier'!$E$22+'BP Financier'!$F$22+'BP Financier'!$G$22)/('BP Financier'!$C$16+'BP Financier'!$C$19+'BP Financier'!$D$16+'BP Financier'!$D$19+'BP Financier'!$E$16+'BP Financier'!$E$19+'BP Financier'!$C$22+'BP Financier'!$D$22+'BP Financier'!$E$22+'BP Financier'!$F$22+'BP Financier'!$F$16+'BP Financier'!$F$19+'BP Financier'!$G$16+'BP Financier'!$G$19+'BP Financier'!$G$22))*$V8396*AA8396/(1-$W8396)","v":{"v":595.2345357268719,"d":"595"}},{"$f":"'BP Financier'!$G$44*(('BP Financier'!$C$22+'BP Financier'!$D$22+'BP Financier'!$E$22+'BP Financier'!$F$22+'BP Financier'!$G$22)/('BP Financier'!$C$16+'BP Financier'!$C$19+'BP Financier'!$D$16+'BP Financier'!$D$19+'BP Financier'!$E$16+'BP Financier'!$E$19+'BP Financier'!$C$22+'BP Financier'!$D$22+'BP Financier'!$E$22+'BP Financier'!$F$22+'BP Financier'!$F$16+'BP Financier'!$F$19+'BP Financier'!$G$16+'BP Financier'!$G$19+'BP Financier'!$G$22))*$V8396*AB8396/(1-$W8396)","v":{"v":284.89858120260527,"d":"285"}},null,{"v":2E-3,"d":"0.20%"},{"$f":"Actif!$E$28/100","v":{"v":0.28900000000000003,"d":"28.90%"}},{"$f":"Actif!$E$30/100","v":{"v":0.09050000000000001,"d":"9.05%"}},{"$f":"Actif!$E$31/100","v":{"v":0.0605,"d":"6.05%"}},{"$f":"Actif!$E$32/100","v":{"v":0.47350000000000003,"d":"47.35%"}},{"$f":"Actif!$E$33/100","v":{"v":0.0585,"d":"5.85%"}},{"$f":"Actif!$E$29/100","v":{"v":0.027999999999999997,"d":"2.80%"}}]
[null,"#284",21,2030,"H","A_CAPI",{"v":0.44999999999999996,"d":"0.45"},{"v":0.38999999999999996,"d":"0.39"},0.6,0.6,85,0,{"$f":"ROUND(Primes!$Q$10*V8397,2)","v":0.26},0,{"v":7234.388972680442,"d":"7,234"},{"$f":"'BP Financier'!$G$44*(('BP Financier'!$C$22+'BP Financier'!$D$22+'BP Financier'!$E$22+'BP Financier'!$F$22+'BP Financier'!$G$22)/('BP Financier'!$C$16+'BP Financier'!$C$19+'BP Financier'!$D$16+'BP Financier'!$D$19+'BP Financier'!$E$16+'BP Financier'!$E$19+'BP Financier'!$C$22+'BP Financier'!$D$22+'BP Financier'!$E$22+'BP Financier'!$F$22+'BP Financier'!$F$16+'BP Financier'!$F$19+'BP Financier'!$G$16+'BP Financier'!$G$19+'BP Financier'!$G$22))*$V8397*X8397/(1-$W8397)","v":{"v":920.832914244135,"d":"921"}},{"$f":"'BP Financier'!$G$44*(('BP Financier'!$C$22+'BP Financier'!$D$22+'BP Financier'!$E$22+'BP Financier'!$F$22+'BP Financier'!$G$22)/('BP Financier'!$C$16+'BP Financier'!$C$19+'BP Financier'!$D$16+'BP Financier'!$D$19+'BP Financier'!$E$16+'BP Financier'!$E$19+'BP Financier'!$C$22+'BP Financier'!$D$22+'BP Financier'!$E$22+'BP Financier'!$F$22+'BP Financier'!$F$16+'BP Financier'!$F$19+'BP Financier'!$G$16+'BP Financier'!$G$19+'BP Financier'!$G$22))*$V8397*Y8397/(1-$W8397)","v":{"v":615.5844343842008,"d":"616"}},{"$f":"'BP Financier'!$G$44*(('BP Financier'!$C$22+'BP Financier'!$D$22+'BP Financier'!$E$22+'BP Financier'!$F$22+'BP Financier'!$G$22)/('BP Financier'!$C$16+'BP Financier'!$C$19+'BP Financier'!$D$16+'BP Financier'!$D$19+'BP Financier'!$E$16+'BP Financier'!$E$19+'BP Financier'!$C$22+'BP Financier'!$D$22+'BP Financier'!$E$22+'BP Financier'!$F$22+'BP Financier'!$F$16+'BP Financier'!$F$19+'BP Financier'!$G$16+'BP Financier'!$G$19+'BP Financier'!$G$22))*$V8397*Z8397/(1-$W8397)","v":{"v":4817.838507122629,"d":"4,818"}},{"$f":"'BP Financier'!$G$44*(('BP Financier'!$C$22+'BP Financier'!$D$22+'BP Financier'!$E$22+'BP Financier'!$F$22+'BP Financier'!$G$22)/('BP Financier'!$C$16+'BP Financier'!$C$19+'BP Financier'!$D$16+'BP Financier'!$D$19+'BP Financier'!$E$16+'BP Financier'!$E$19+'BP Financier'!$C$22+'BP Financier'!$D$22+'BP Financier'!$E$22+'BP Financier'!$F$22+'BP Financier'!$F$16+'BP Financier'!$F$19+'BP Financier'!$G$16+'BP Financier'!$G$19+'BP Financier'!$G$22))*$V8397*AA8397/(1-$W8397)","v":{"v":595.2345357268719,"d":"595"}},{"$f":"'BP Financier'!$G$44*(('BP Financier'!$C$22+'BP Financier'!$D$22+'BP Financier'!$E$22+'BP Financier'!$F$22+'BP Financier'!$G$22)/('BP Financier'!$C$16+'BP Financier'!$C$19+'BP Financier'!$D$16+'BP Financier'!$D$19+'BP Financier'!$E$16+'BP Financier'!$E$19+'BP Financier'!$C$22+'BP Financier'!$D$22+'BP Financier'!$E$22+'BP Financier'!$F$22+'BP Financier'!$F$16+'BP Financier'!$F$19+'BP Financier'!$G$16+'BP Financier'!$G$19+'BP Financier'!$G$22))*$V8397*AB8397/(1-$W8397)","v":{"v":284.89858120260527,"d":"285"}},null,{"v":2E-3,"d":"0.20%"},{"$f":"Actif!$E$28/100","v":{"v":0.28900000000000003,"d":"28.90%"}},{"$f":"Actif!$E$30/100","v":{"v":0.09050000000000001,"d":"9.05%"}},{"$f":"Actif!$E$31/100","v":{"v":0.0605,"d":"6.05%"}},{"$f":"Actif!$E$32/100","v":{"v":0.47350000000000003,"d":"47.35%"}},{"$f":"Actif!$E$33/100","v":{"v":0.0585,"d":"5.85%"}},{"$f":"Actif!$E$29/100","v":{"v":0.027999999999999997,"d":"2.80%"}}]
[null,"#285",21,2031,"H","A_CAPI",{"v":0.44999999999999996,"d":"0.45"},{"v":0.38999999999999996,"d":"0.39"},0.6,0.6,85,0,{"$f":"ROUND(Primes!$Q$10*V8398,2)","v":0.26},0,{"v":7234.388972680442,"d":"7,234"},{"$f":"'BP Financier'!$G$44*(('BP Financier'!$C$22+'BP Financier'!$D$22+'BP Financier'!$E$22+'BP Financier'!$F$22+'BP Financier'!$G$22)/('BP Financier'!$C$16+'BP Financier'!$C$19+'BP Financier'!$D$16+'BP Financier'!$D$19+'BP Financier'!$E$16+'BP Financier'!$E$19+'BP Financier'!$C$22+'BP Financier'!$D$22+'BP Financier'!$E$22+'BP Financier'!$F$22+'BP Financier'!$F$16+'BP Financier'!$F$19+'BP Financier'!$G$16+'BP Financier'!$G$19+'BP Financier'!$G$22))*$V8398*X8398/(1-$W8398)","v":{"v":920.832914244135,"d":"921"}},{"$f":"'BP Financier'!$G$44*(('BP Financier'!$C$22+'BP Financier'!$D$22+'BP Financier'!$E$22+'BP Financier'!$F$22+'BP Financier'!$G$22)/('BP Financier'!$C$16+'BP Financier'!$C$19+'BP Financier'!$D$16+'BP Financier'!$D$19+'BP Financier'!$E$16+'BP Financier'!$E$19+'BP Financier'!$C$22+'BP Financier'!$D$22+'BP Financier'!$E$22+'BP Financier'!$F$22+'BP Financier'!$F$16+'BP Financier'!$F$19+'BP Financier'!$G$16+'BP Financier'!$G$19+'BP Financier'!$G$22))*$V8398*Y8398/(1-$W8398)","v":{"v":615.5844343842008,"d":"616"}},{"$f":"'BP Financier'!$G$44*(('BP Financier'!$C$22+'BP Financier'!$D$22+'BP Financier'!$E$22+'BP Financier'!$F$22+'BP Financier'!$G$22)/('BP Financier'!$C$16+'BP Financier'!$C$19+'BP Financier'!$D$16+'BP Financier'!$D$19+'BP Financier'!$E$16+'BP Financier'!$E$19+'BP Financier'!$C$22+'BP Financier'!$D$22+'BP Financier'!$E$22+'BP Financier'!$F$22+'BP Financier'!$F$16+'BP Financier'!$F$19+'BP Financier'!$G$16+'BP Financier'!$G$19+'BP Financier'!$G$22))*$V8398*Z8398/(1-$W8398)","v":{"v":4817.838507122629,"d":"4,818"}},{"$f":"'BP Financier'!$G$44*(('BP Financier'!$C$22+'BP Financier'!$D$22+'BP Financier'!$E$22+'BP Financier'!$F$22+'BP Financier'!$G$22)/('BP Financier'!$C$16+'BP Financier'!$C$19+'BP Financier'!$D$16+'BP Financier'!$D$19+'BP Financier'!$E$16+'BP Financier'!$E$19+'BP Financier'!$C$22+'BP Financier'!$D$22+'BP Financier'!$E$22+'BP Financier'!$F$22+'BP Financier'!$F$16+'BP Financier'!$F$19+'BP Financier'!$G$16+'BP Financier'!$G$19+'BP Financier'!$G$22))*$V8398*AA8398/(1-$W8398)","v":{"v":595.2345357268719,"d":"595"}},{"$f":"'BP Financier'!$G$44*(('BP Financier'!$C$22+'BP Financier'!$D$22+'BP Financier'!$E$22+'BP Financier'!$F$22+'BP Financier'!$G$22)/('BP Financier'!$C$16+'BP Financier'!$C$19+'BP Financier'!$D$16+'BP Financier'!$D$19+'BP Financier'!$E$16+'BP Financier'!$E$19+'BP Financier'!$C$22+'BP Financier'!$D$22+'BP Financier'!$E$22+'BP Financier'!$F$22+'BP Financier'!$F$16+'BP Financier'!$F$19+'BP Financier'!$G$16+'BP Financier'!$G$19+'BP Financier'!$G$22))*$V8398*AB8398/(1-$W8398)","v":{"v":284.89858120260527,"d":"285"}},null,{"v":2E-3,"d":"0.20%"},{"$f":"Actif!$E$28/100","v":{"v":0.28900000000000003,"d":"28.90%"}},{"$f":"Actif!$E$30/100","v":{"v":0.09050000000000001,"d":"9.05%"}},{"$f":"Actif!$E$31/100","v":{"v":0.0605,"d":"6.05%"}},{"$f":"Actif!$E$32/100","v":{"v":0.47350000000000003,"d":"47.35%"}},{"$f":"Actif!$E$33/100","v":{"v":0.0585,"d":"5.85%"}},{"$f":"Actif!$E$29/100","v":{"v":0.027999999999999997,"d":"2.80%"}}]
[null,"#286",22,2026,"H","A_CAPI",{"v":0.44999999999999996,"d":"0.45"},{"v":0.38999999999999996,"d":"0.39"},0.6,0.6,85,0,{"$f":"ROUND(Primes!$Q$10*V8399,2)","v":0.26},0,{"v":7234.388972680442,"d":"7,234"},{"$f":"'BP Financier'!$G$44*(('BP Financier'!$C$22+'BP Financier'!$D$22+'BP Financier'!$E$22+'BP Financier'!$F$22+'BP Financier'!$G$22)/('BP Financier'!$C$16+'BP Financier'!$C$19+'BP Financier'!$D$16+'BP Financier'!$D$19+'BP Financier'!$E$16+'BP Financier'!$E$19+'BP Financier'!$C$22+'BP Financier'!$D$22+'BP Financier'!$E$22+'BP Financier'!$F$22+'BP Financier'!$F$16+'BP Financier'!$F$19+'BP Financier'!$G$16+'BP Financier'!$G$19+'BP Financier'!$G$22))*$V8399*X8399/(1-$W8399)","v":{"v":920.832914244135,"d":"921"}},{"$f":"'BP Financier'!$G$44*(('BP Financier'!$C$22+'BP Financier'!$D$22+'BP Financier'!$E$22+'BP Financier'!$F$22+'BP Financier'!$G$22)/('BP Financier'!$C$16+'BP Financier'!$C$19+'BP Financier'!$D$16+'BP Financier'!$D$19+'BP Financier'!$E$16+'BP Financier'!$E$19+'BP Financier'!$C$22+'BP Financier'!$D$22+'BP Financier'!$E$22+'BP Financier'!$F$22+'BP Financier'!$F$16+'BP Financier'!$F$19+'BP Financier'!$G$16+'BP Financier'!$G$19+'BP Financier'!$G$22))*$V8399*Y8399/(1-$W8399)","v":{"v":615.5844343842008,"d":"616"}},{"$f":"'BP Financier'!$G$44*(('BP Financier'!$C$22+'BP Financier'!$D$22+'BP Financier'!$E$22+'BP Financier'!$F$22+'BP Financier'!$G$22)/('BP Financier'!$C$16+'BP Financier'!$C$19+'BP Financier'!$D$16+'BP Financier'!$D$19+'BP Financier'!$E$16+'BP Financier'!$E$19+'BP Financier'!$C$22+'BP Financier'!$D$22+'BP Financier'!$E$22+'BP Financier'!$F$22+'BP Financier'!$F$16+'BP Financier'!$F$19+'BP Financier'!$G$16+'BP Financier'!$G$19+'BP Financier'!$G$22))*$V8399*Z8399/(1-$W8399)","v":{"v":4817.838507122629,"d":"4,818"}},{"$f":"'BP Financier'!$G$44*(('BP Financier'!$C$22+'BP Financier'!$D$22+'BP Financier'!$E$22+'BP Financier'!$F$22+'BP Financier'!$G$22)/('BP Financier'!$C$16+'BP Financier'!$C$19+'BP Financier'!$D$16+'BP Financier'!$D$19+'BP Financier'!$E$16+'BP Financier'!$E$19+'BP Financier'!$C$22+'BP Financier'!$D$22+'BP Financier'!$E$22+'BP Financier'!$F$22+'BP Financier'!$F$16+'BP Financier'!$F$19+'BP Financier'!$G$16+'BP Financier'!$G$19+'BP Financier'!$G$22))*$V8399*AA8399/(1-$W8399)","v":{"v":595.2345357268719,"d":"595"}},{"$f":"'BP Financier'!$G$44*(('BP Financier'!$C$22+'BP Financier'!$D$22+'BP Financier'!$E$22+'BP Financier'!$F$22+'BP Financier'!$G$22)/('BP Financier'!$C$16+'BP Financier'!$C$19+'BP Financier'!$D$16+'BP Financier'!$D$19+'BP Financier'!$E$16+'BP Financier'!$E$19+'BP Financier'!$C$22+'BP Financier'!$D$22+'BP Financier'!$E$22+'BP Financier'!$F$22+'BP Financier'!$F$16+'BP Financier'!$F$19+'BP Financier'!$G$16+'BP Financier'!$G$19+'BP Financier'!$G$22))*$V8399*AB8399/(1-$W8399)","v":{"v":284.89858120260527,"d":"285"}},null,{"v":2E-3,"d":"0.20%"},{"$f":"Actif!$E$28/100","v":{"v":0.28900000000000003,"d":"28.90%"}},{"$f":"Actif!$E$30/100","v":{"v":0.09050000000000001,"d":"9.05%"}},{"$f":"Actif!$E$31/100","v":{"v":0.0605,"d":"6.05%"}},{"$f":"Actif!$E$32/100","v":{"v":0.47350000000000003,"d":"47.35%"}},{"$f":"Actif!$E$33/100","v":{"v":0.0585,"d":"5.85%"}},{"$f":"Actif!$E$29/100","v":{"v":0.027999999999999997,"d":"2.80%"}}]
[null,"#287",22,2028,"H","A_CAPI",{"v":0.44999999999999996,"d":"0.45"},{"v":0.38999999999999996,"d":"0.39"},0.6,0.6,85,0,{"$f":"ROUND(Primes!$Q$10*V8400,2)","v":0.26},0,{"v":7234.388972680442,"d":"7,234"},{"$f":"'BP Financier'!$G$44*(('BP Financier'!$C$22+'BP Financier'!$D$22+'BP Financier'!$E$22+'BP Financier'!$F$22+'BP Financier'!$G$22)/('BP Financier'!$C$16+'BP Financier'!$C$19+'BP Financier'!$D$16+'BP Financier'!$D$19+'BP Financier'!$E$16+'BP Financier'!$E$19+'BP Financier'!$C$22+'BP Financier'!$D$22+'BP Financier'!$E$22+'BP Financier'!$F$22+'BP Financier'!$F$16+'BP Financier'!$F$19+'BP Financier'!$G$16+'BP Financier'!$G$19+'BP Financier'!$G$22))*$V8400*X8400/(1-$W8400)","v":{"v":920.832914244135,"d":"921"}},{"$f":"'BP Financier'!$G$44*(('BP Financier'!$C$22+'BP Financier'!$D$22+'BP Financier'!$E$22+'BP Financier'!$F$22+'BP Financier'!$G$22)/('BP Financier'!$C$16+'BP Financier'!$C$19+'BP Financier'!$D$16+'BP Financier'!$D$19+'BP Financier'!$E$16+'BP Financier'!$E$19+'BP Financier'!$C$22+'BP Financier'!$D$22+'BP Financier'!$E$22+'BP Financier'!$F$22+'BP Financier'!$F$16+'BP Financier'!$F$19+'BP Financier'!$G$16+'BP Financier'!$G$19+'BP Financier'!$G$22))*$V8400*Y8400/(1-$W8400)","v":{"v":615.5844343842008,"d":"616"}},{"$f":"'BP Financier'!$G$44*(('BP Financier'!$C$22+'BP Financier'!$D$22+'BP Financier'!$E$22+'BP Financier'!$F$22+'BP Financier'!$G$22)/('BP Financier'!$C$16+'BP Financier'!$C$19+'BP Financier'!$D$16+'BP Financier'!$D$19+'BP Financier'!$E$16+'BP Financier'!$E$19+'BP Financier'!$C$22+'BP Financier'!$D$22+'BP Financier'!$E$22+'BP Financier'!$F$22+'BP Financier'!$F$16+'BP Financier'!$F$19+'BP Financier'!$G$16+'BP Financier'!$G$19+'BP Financier'!$G$22))*$V8400*Z8400/(1-$W8400)","v":{"v":4817.838507122629,"d":"4,818"}},{"$f":"'BP Financier'!$G$44*(('BP Financier'!$C$22+'BP Financier'!$D$22+'BP Financier'!$E$22+'BP Financier'!$F$22+'BP Financier'!$G$22)/('BP Financier'!$C$16+'BP Financier'!$C$19+'BP Financier'!$D$16+'BP Financier'!$D$19+'BP Financier'!$E$16+'BP Financier'!$E$19+'BP Financier'!$C$22+'BP Financier'!$D$22+'BP Financier'!$E$22+'BP Financier'!$F$22+'BP Financier'!$F$16+'BP Financier'!$F$19+'BP Financier'!$G$16+'BP Financier'!$G$19+'BP Financier'!$G$22))*$V8400*AA8400/(1-$W8400)","v":{"v":595.2345357268719,"d":"595"}},{"$f":"'BP Financier'!$G$44*(('BP Financier'!$C$22+'BP Financier'!$D$22+'BP Financier'!$E$22+'BP Financier'!$F$22+'BP Financier'!$G$22)/('BP Financier'!$C$16+'BP Financier'!$C$19+'BP Financier'!$D$16+'BP Financier'!$D$19+'BP Financier'!$E$16+'BP Financier'!$E$19+'BP Financier'!$C$22+'BP Financier'!$D$22+'BP Financier'!$E$22+'BP Financier'!$F$22+'BP Financier'!$F$16+'BP Financier'!$F$19+'BP Financier'!$G$16+'BP Financier'!$G$19+'BP Financier'!$G$22))*$V8400*AB8400/(1-$W8400)","v":{"v":284.89858120260527,"d":"285"}},null,{"v":2E-3,"d":"0.20%"},{"$f":"Actif!$E$28/100","v":{"v":0.28900000000000003,"d":"28.90%"}},{"$f":"Actif!$E$30/100","v":{"v":0.09050000000000001,"d":"9.05%"}},{"$f":"Actif!$E$31/100","v":{"v":0.0605,"d":"6.05%"}},{"$f":"Actif!$E$32/100","v":{"v":0.47350000000000003,"d":"47.35%"}},{"$f":"Actif!$E$33/100","v":{"v":0.0585,"d":"5.85%"}},{"$f":"Actif!$E$29/100","v":{"v":0.027999999999999997,"d":"2.80%"}}]
[null,"#288",22,2029,"H","A_CAPI",{"v":0.44999999999999996,"d":"0.45"},{"v":0.38999999999999996,"d":"0.39"},0.6,0.6,85,0,{"$f":"ROUND(Primes!$Q$10*V8401,2)","v":0.26},0,{"v":7234.388972680442,"d":"7,234"},{"$f":"'BP Financier'!$G$44*(('BP Financier'!$C$22+'BP Financier'!$D$22+'BP Financier'!$E$22+'BP Financier'!$F$22+'BP Financier'!$G$22)/('BP Financier'!$C$16+'BP Financier'!$C$19+'BP Financier'!$D$16+'BP Financier'!$D$19+'BP Financier'!$E$16+'BP Financier'!$E$19+'BP Financier'!$C$22+'BP Financier'!$D$22+'BP Financier'!$E$22+'BP Financier'!$F$22+'BP Financier'!$F$16+'BP Financier'!$F$19+'BP Financier'!$G$16+'BP Financier'!$G$19+'BP Financier'!$G$22))*$V8401*X8401/(1-$W8401)","v":{"v":920.832914244135,"d":"921"}},{"$f":"'BP Financier'!$G$44*(('BP Financier'!$C$22+'BP Financier'!$D$22+'BP Financier'!$E$22+'BP Financier'!$F$22+'BP Financier'!$G$22)/('BP Financier'!$C$16+'BP Financier'!$C$19+'BP Financier'!$D$16+'BP Financier'!$D$19+'BP Financier'!$E$16+'BP Financier'!$E$19+'BP Financier'!$C$22+'BP Financier'!$D$22+'BP Financier'!$E$22+'BP Financier'!$F$22+'BP Financier'!$F$16+'BP Financier'!$F$19+'BP Financier'!$G$16+'BP Financier'!$G$19+'BP Financier'!$G$22))*$V8401*Y8401/(1-$W8401)","v":{"v":615.5844343842008,"d":"616"}},{"$f":"'BP Financier'!$G$44*(('BP Financier'!$C$22+'BP Financier'!$D$22+'BP Financier'!$E$22+'BP Financier'!$F$22+'BP Financier'!$G$22)/('BP Financier'!$C$16+'BP Financier'!$C$19+'BP Financier'!$D$16+'BP Financier'!$D$19+'BP Financier'!$E$16+'BP Financier'!$E$19+'BP Financier'!$C$22+'BP Financier'!$D$22+'BP Financier'!$E$22+'BP Financier'!$F$22+'BP Financier'!$F$16+'BP Financier'!$F$19+'BP Financier'!$G$16+'BP Financier'!$G$19+'BP Financier'!$G$22))*$V8401*Z8401/(1-$W8401)","v":{"v":4817.838507122629,"d":"4,818"}},{"$f":"'BP Financier'!$G$44*(('BP Financier'!$C$22+'BP Financier'!$D$22+'BP Financier'!$E$22+'BP Financier'!$F$22+'BP Financier'!$G$22)/('BP Financier'!$C$16+'BP Financier'!$C$19+'BP Financier'!$D$16+'BP Financier'!$D$19+'BP Financier'!$E$16+'BP Financier'!$E$19+'BP Financier'!$C$22+'BP Financier'!$D$22+'BP Financier'!$E$22+'BP Financier'!$F$22+'BP Financier'!$F$16+'BP Financier'!$F$19+'BP Financier'!$G$16+'BP Financier'!$G$19+'BP Financier'!$G$22))*$V8401*AA8401/(1-$W8401)","v":{"v":595.2345357268719,"d":"595"}},{"$f":"'BP Financier'!$G$44*(('BP Financier'!$C$22+'BP Financier'!$D$22+'BP Financier'!$E$22+'BP Financier'!$F$22+'BP Financier'!$G$22)/('BP Financier'!$C$16+'BP Financier'!$C$19+'BP Financier'!$D$16+'BP Financier'!$D$19+'BP Financier'!$E$16+'BP Financier'!$E$19+'BP Financier'!$C$22+'BP Financier'!$D$22+'BP Financier'!$E$22+'BP Financier'!$F$22+'BP Financier'!$F$16+'BP Financier'!$F$19+'BP Financier'!$G$16+'BP Financier'!$G$19+'BP Financier'!$G$22))*$V8401*AB8401/(1-$W8401)","v":{"v":284.89858120260527,"d":"285"}},null,{"v":2E-3,"d":"0.20%"},{"$f":"Actif!$E$28/100","v":{"v":0.28900000000000003,"d":"28.90%"}},{"$f":"Actif!$E$30/100","v":{"v":0.09050000000000001,"d":"9.05%"}},{"$f":"Actif!$E$31/100","v":{"v":0.0605,"d":"6.05%"}},{"$f":"Actif!$E$32/100","v":{"v":0.47350000000000003,"d":"47.35%"}},{"$f":"Actif!$E$33/100","v":{"v":0.0585,"d":"5.85%"}},{"$f":"Actif!$E$29/100","v":{"v":0.027999999999999997,"d":"2.80%"}}]
[null,"#289",22,2030,"H","A_CAPI",{"v":0.44999999999999996,"d":"0.45"},{"v":0.38999999999999996,"d":"0.39"},0.6,0.6,85,0,{"$f":"ROUND(Primes!$Q$10*V8402,2)","v":0.26},0,{"v":7234.388972680442,"d":"7,234"},{"$f":"'BP Financier'!$G$44*(('BP Financier'!$C$22+'BP Financier'!$D$22+'BP Financier'!$E$22+'BP Financier'!$F$22+'BP Financier'!$G$22)/('BP Financier'!$C$16+'BP Financier'!$C$19+'BP Financier'!$D$16+'BP Financier'!$D$19+'BP Financier'!$E$16+'BP Financier'!$E$19+'BP Financier'!$C$22+'BP Financier'!$D$22+'BP Financier'!$E$22+'BP Financier'!$F$22+'BP Financier'!$F$16+'BP Financier'!$F$19+'BP Financier'!$G$16+'BP Financier'!$G$19+'BP Financier'!$G$22))*$V8402*X8402/(1-$W8402)","v":{"v":920.832914244135,"d":"921"}},{"$f":"'BP Financier'!$G$44*(('BP Financier'!$C$22+'BP Financier'!$D$22+'BP Financier'!$E$22+'BP Financier'!$F$22+'BP Financier'!$G$22)/('BP Financier'!$C$16+'BP Financier'!$C$19+'BP Financier'!$D$16+'BP Financier'!$D$19+'BP Financier'!$E$16+'BP Financier'!$E$19+'BP Financier'!$C$22+'BP Financier'!$D$22+'BP Financier'!$E$22+'BP Financier'!$F$22+'BP Financier'!$F$16+'BP Financier'!$F$19+'BP Financier'!$G$16+'BP Financier'!$G$19+'BP Financier'!$G$22))*$V8402*Y8402/(1-$W8402)","v":{"v":615.5844343842008,"d":"616"}},{"$f":"'BP Financier'!$G$44*(('BP Financier'!$C$22+'BP Financier'!$D$22+'BP Financier'!$E$22+'BP Financier'!$F$22+'BP Financier'!$G$22)/('BP Financier'!$C$16+'BP Financier'!$C$19+'BP Financier'!$D$16+'BP Financier'!$D$19+'BP Financier'!$E$16+'BP Financier'!$E$19+'BP Financier'!$C$22+'BP Financier'!$D$22+'BP Financier'!$E$22+'BP Financier'!$F$22+'BP Financier'!$F$16+'BP Financier'!$F$19+'BP Financier'!$G$16+'BP Financier'!$G$19+'BP Financier'!$G$22))*$V8402*Z8402/(1-$W8402)","v":{"v":4817.838507122629,"d":"4,818"}},{"$f":"'BP Financier'!$G$44*(('BP Financier'!$C$22+'BP Financier'!$D$22+'BP Financier'!$E$22+'BP Financier'!$F$22+'BP Financier'!$G$22)/('BP Financier'!$C$16+'BP Financier'!$C$19+'BP Financier'!$D$16+'BP Financier'!$D$19+'BP Financier'!$E$16+'BP Financier'!$E$19+'BP Financier'!$C$22+'BP Financier'!$D$22+'BP Financier'!$E$22+'BP Financier'!$F$22+'BP Financier'!$F$16+'BP Financier'!$F$19+'BP Financier'!$G$16+'BP Financier'!$G$19+'BP Financier'!$G$22))*$V8402*AA8402/(1-$W8402)","v":{"v":595.2345357268719,"d":"595"}},{"$f":"'BP Financier'!$G$44*(('BP Financier'!$C$22+'BP Financier'!$D$22+'BP Financier'!$E$22+'BP Financier'!$F$22+'BP Financier'!$G$22)/('BP Financier'!$C$16+'BP Financier'!$C$19+'BP Financier'!$D$16+'BP Financier'!$D$19+'BP Financier'!$E$16+'BP Financier'!$E$19+'BP Financier'!$C$22+'BP Financier'!$D$22+'BP Financier'!$E$22+'BP Financier'!$F$22+'BP Financier'!$F$16+'BP Financier'!$F$19+'BP Financier'!$G$16+'BP Financier'!$G$19+'BP Financier'!$G$22))*$V8402*AB8402/(1-$W8402)","v":{"v":284.89858120260527,"d":"285"}},null,{"v":2E-3,"d":"0.20%"},{"$f":"Actif!$E$28/100","v":{"v":0.28900000000000003,"d":"28.90%"}},{"$f":"Actif!$E$30/100","v":{"v":0.09050000000000001,"d":"9.05%"}},{"$f":"Actif!$E$31/100","v":{"v":0.0605,"d":"6.05%"}},{"$f":"Actif!$E$32/100","v":{"v":0.47350000000000003,"d":"47.35%"}},{"$f":"Actif!$E$33/100","v":{"v":0.0585,"d":"5.85%"}},{"$f":"Actif!$E$29/100","v":{"v":0.027999999999999997,"d":"2.80%"}}]
[null,"#290",22,2031,"H","A_CAPI",{"v":0.44999999999999996,"d":"0.45"},{"v":0.38999999999999996,"d":"0.39"},0.6,0.6,85,0,{"$f":"ROUND(Primes!$Q$10*V8403,2)","v":0.26},0,{"v":7234.388972680442,"d":"7,234"},{"$f":"'BP Financier'!$G$44*(('BP Financier'!$C$22+'BP Financier'!$D$22+'BP Financier'!$E$22+'BP Financier'!$F$22+'BP Financier'!$G$22)/('BP Financier'!$C$16+'BP Financier'!$C$19+'BP Financier'!$D$16+'BP Financier'!$D$19+'BP Financier'!$E$16+'BP Financier'!$E$19+'BP Financier'!$C$22+'BP Financier'!$D$22+'BP Financier'!$E$22+'BP Financier'!$F$22+'BP Financier'!$F$16+'BP Financier'!$F$19+'BP Financier'!$G$16+'BP Financier'!$G$19+'BP Financier'!$G$22))*$V8403*X8403/(1-$W8403)","v":{"v":920.832914244135,"d":"921"}},{"$f":"'BP Financier'!$G$44*(('BP Financier'!$C$22+'BP Financier'!$D$22+'BP Financier'!$E$22+'BP Financier'!$F$22+'BP Financier'!$G$22)/('BP Financier'!$C$16+'BP Financier'!$C$19+'BP Financier'!$D$16+'BP Financier'!$D$19+'BP Financier'!$E$16+'BP Financier'!$E$19+'BP Financier'!$C$22+'BP Financier'!$D$22+'BP Financier'!$E$22+'BP Financier'!$F$22+'BP Financier'!$F$16+'BP Financier'!$F$19+'BP Financier'!$G$16+'BP Financier'!$G$19+'BP Financier'!$G$22))*$V8403*Y8403/(1-$W8403)","v":{"v":615.5844343842008,"d":"616"}},{"$f":"'BP Financier'!$G$44*(('BP Financier'!$C$22+'BP Financier'!$D$22+'BP Financier'!$E$22+'BP Financier'!$F$22+'BP Financier'!$G$22)/('BP Financier'!$C$16+'BP Financier'!$C$19+'BP Financier'!$D$16+'BP Financier'!$D$19+'BP Financier'!$E$16+'BP Financier'!$E$19+'BP Financier'!$C$22+'BP Financier'!$D$22+'BP Financier'!$E$22+'BP Financier'!$F$22+'BP Financier'!$F$16+'BP Financier'!$F$19+'BP Financier'!$G$16+'BP Financier'!$G$19+'BP Financier'!$G$22))*$V8403*Z8403/(1-$W8403)","v":{"v":4817.838507122629,"d":"4,818"}},{"$f":"'BP Financier'!$G$44*(('BP Financier'!$C$22+'BP Financier'!$D$22+'BP Financier'!$E$22+'BP Financier'!$F$22+'BP Financier'!$G$22)/('BP Financier'!$C$16+'BP Financier'!$C$19+'BP Financier'!$D$16+'BP Financier'!$D$19+'BP Financier'!$E$16+'BP Financier'!$E$19+'BP Financier'!$C$22+'BP Financier'!$D$22+'BP Financier'!$E$22+'BP Financier'!$F$22+'BP Financier'!$F$16+'BP Financier'!$F$19+'BP Financier'!$G$16+'BP Financier'!$G$19+'BP Financier'!$G$22))*$V8403*AA8403/(1-$W8403)","v":{"v":595.2345357268719,"d":"595"}},{"$f":"'BP Financier'!$G$44*(('BP Financier'!$C$22+'BP Financier'!$D$22+'BP Financier'!$E$22+'BP Financier'!$F$22+'BP Financier'!$G$22)/('BP Financier'!$C$16+'BP Financier'!$C$19+'BP Financier'!$D$16+'BP Financier'!$D$19+'BP Financier'!$E$16+'BP Financier'!$E$19+'BP Financier'!$C$22+'BP Financier'!$D$22+'BP Financier'!$E$22+'BP Financier'!$F$22+'BP Financier'!$F$16+'BP Financier'!$F$19+'BP Financier'!$G$16+'BP Financier'!$G$19+'BP Financier'!$G$22))*$V8403*AB8403/(1-$W8403)","v":{"v":284.89858120260527,"d":"285"}},null,{"v":2E-3,"d":"0.20%"},{"$f":"Actif!$E$28/100","v":{"v":0.28900000000000003,"d":"28.90%"}},{"$f":"Actif!$E$30/100","v":{"v":0.09050000000000001,"d":"9.05%"}},{"$f":"Actif!$E$31/100","v":{"v":0.0605,"d":"6.05%"}},{"$f":"Actif!$E$32/100","v":{"v":0.47350000000000003,"d":"47.35%"}},{"$f":"Actif!$E$33/100","v":{"v":0.0585,"d":"5.85%"}},{"$f":"Actif!$E$29/100","v":{"v":0.027999999999999997,"d":"2.80%"}}]
[null,"#291",23,2026,"F","A_CAPI",{"v":0.44999999999999996,"d":"0.45"},{"v":0.38999999999999996,"d":"0.39"},0.6,0.6,85,0,{"$f":"ROUND(Primes!$Q$10*V8404,2)","v":0.26},0,{"v":7234.388972680442,"d":"7,234"},{"$f":"'BP Financier'!$G$44*(('BP Financier'!$C$22+'BP Financier'!$D$22+'BP Financier'!$E$22+'BP Financier'!$F$22+'BP Financier'!$G$22)/('BP Financier'!$C$16+'BP Financier'!$C$19+'BP Financier'!$D$16+'BP Financier'!$D$19+'BP Financier'!$E$16+'BP Financier'!$E$19+'BP Financier'!$C$22+'BP Financier'!$D$22+'BP Financier'!$E$22+'BP Financier'!$F$22+'BP Financier'!$F$16+'BP Financier'!$F$19+'BP Financier'!$G$16+'BP Financier'!$G$19+'BP Financier'!$G$22))*$V8404*X8404/(1-$W8404)","v":{"v":920.832914244135,"d":"921"}},{"$f":"'BP Financier'!$G$44*(('BP Financier'!$C$22+'BP Financier'!$D$22+'BP Financier'!$E$22+'BP Financier'!$F$22+'BP Financier'!$G$22)/('BP Financier'!$C$16+'BP Financier'!$C$19+'BP Financier'!$D$16+'BP Financier'!$D$19+'BP Financier'!$E$16+'BP Financier'!$E$19+'BP Financier'!$C$22+'BP Financier'!$D$22+'BP Financier'!$E$22+'BP Financier'!$F$22+'BP Financier'!$F$16+'BP Financier'!$F$19+'BP Financier'!$G$16+'BP Financier'!$G$19+'BP Financier'!$G$22))*$V8404*Y8404/(1-$W8404)","v":{"v":615.5844343842008,"d":"616"}},{"$f":"'BP Financier'!$G$44*(('BP Financier'!$C$22+'BP Financier'!$D$22+'BP Financier'!$E$22+'BP Financier'!$F$22+'BP Financier'!$G$22)/('BP Financier'!$C$16+'BP Financier'!$C$19+'BP Financier'!$D$16+'BP Financier'!$D$19+'BP Financier'!$E$16+'BP Financier'!$E$19+'BP Financier'!$C$22+'BP Financier'!$D$22+'BP Financier'!$E$22+'BP Financier'!$F$22+'BP Financier'!$F$16+'BP Financier'!$F$19+'BP Financier'!$G$16+'BP Financier'!$G$19+'BP Financier'!$G$22))*$V8404*Z8404/(1-$W8404)","v":{"v":4817.838507122629,"d":"4,818"}},{"$f":"'BP Financier'!$G$44*(('BP Financier'!$C$22+'BP Financier'!$D$22+'BP Financier'!$E$22+'BP Financier'!$F$22+'BP Financier'!$G$22)/('BP Financier'!$C$16+'BP Financier'!$C$19+'BP Financier'!$D$16+'BP Financier'!$D$19+'BP Financier'!$E$16+'BP Financier'!$E$19+'BP Financier'!$C$22+'BP Financier'!$D$22+'BP Financier'!$E$22+'BP Financier'!$F$22+'BP Financier'!$F$16+'BP Financier'!$F$19+'BP Financier'!$G$16+'BP Financier'!$G$19+'BP Financier'!$G$22))*$V8404*AA8404/(1-$W8404)","v":{"v":595.2345357268719,"d":"595"}},{"$f":"'BP Financier'!$G$44*(('BP Financier'!$C$22+'BP Financier'!$D$22+'BP Financier'!$E$22+'BP Financier'!$F$22+'BP Financier'!$G$22)/('BP Financier'!$C$16+'BP Financier'!$C$19+'BP Financier'!$D$16+'BP Financier'!$D$19+'BP Financier'!$E$16+'BP Financier'!$E$19+'BP Financier'!$C$22+'BP Financier'!$D$22+'BP Financier'!$E$22+'BP Financier'!$F$22+'BP Financier'!$F$16+'BP Financier'!$F$19+'BP Financier'!$G$16+'BP Financier'!$G$19+'BP Financier'!$G$22))*$V8404*AB8404/(1-$W8404)","v":{"v":284.89858120260527,"d":"285"}},null,{"v":2E-3,"d":"0.20%"},{"$f":"Actif!$E$28/100","v":{"v":0.28900000000000003,"d":"28.90%"}},{"$f":"Actif!$E$30/100","v":{"v":0.09050000000000001,"d":"9.05%"}},{"$f":"Actif!$E$31/100","v":{"v":0.0605,"d":"6.05%"}},{"$f":"Actif!$E$32/100","v":{"v":0.47350000000000003,"d":"47.35%"}},{"$f":"Actif!$E$33/100","v":{"v":0.0585,"d":"5.85%"}},{"$f":"Actif!$E$29/100","v":{"v":0.027999999999999997,"d":"2.80%"}}]
[null,"#292",23,2028,"F","A_CAPI",{"v":0.44999999999999996,"d":"0.45"},{"v":0.38999999999999996,"d":"0.39"},0.6,0.6,85,0,{"$f":"ROUND(Primes!$Q$10*V8405,2)","v":0.26},0,{"v":7234.388972680442,"d":"7,234"},{"$f":"'BP Financier'!$G$44*(('BP Financier'!$C$22+'BP Financier'!$D$22+'BP Financier'!$E$22+'BP Financier'!$F$22+'BP Financier'!$G$22)/('BP Financier'!$C$16+'BP Financier'!$C$19+'BP Financier'!$D$16+'BP Financier'!$D$19+'BP Financier'!$E$16+'BP Financier'!$E$19+'BP Financier'!$C$22+'BP Financier'!$D$22+'BP Financier'!$E$22+'BP Financier'!$F$22+'BP Financier'!$F$16+'BP Financier'!$F$19+'BP Financier'!$G$16+'BP Financier'!$G$19+'BP Financier'!$G$22))*$V8405*X8405/(1-$W8405)","v":{"v":920.832914244135,"d":"921"}},{"$f":"'BP Financier'!$G$44*(('BP Financier'!$C$22+'BP Financier'!$D$22+'BP Financier'!$E$22+'BP Financier'!$F$22+'BP Financier'!$G$22)/('BP Financier'!$C$16+'BP Financier'!$C$19+'BP Financier'!$D$16+'BP Financier'!$D$19+'BP Financier'!$E$16+'BP Financier'!$E$19+'BP Financier'!$C$22+'BP Financier'!$D$22+'BP Financier'!$E$22+'BP Financier'!$F$22+'BP Financier'!$F$16+'BP Financier'!$F$19+'BP Financier'!$G$16+'BP Financier'!$G$19+'BP Financier'!$G$22))*$V8405*Y8405/(1-$W8405)","v":{"v":615.5844343842008,"d":"616"}},{"$f":"'BP Financier'!$G$44*(('BP Financier'!$C$22+'BP Financier'!$D$22+'BP Financier'!$E$22+'BP Financier'!$F$22+'BP Financier'!$G$22)/('BP Financier'!$C$16+'BP Financier'!$C$19+'BP Financier'!$D$16+'BP Financier'!$D$19+'BP Financier'!$E$16+'BP Financier'!$E$19+'BP Financier'!$C$22+'BP Financier'!$D$22+'BP Financier'!$E$22+'BP Financier'!$F$22+'BP Financier'!$F$16+'BP Financier'!$F$19+'BP Financier'!$G$16+'BP Financier'!$G$19+'BP Financier'!$G$22))*$V8405*Z8405/(1-$W8405)","v":{"v":4817.838507122629,"d":"4,818"}},{"$f":"'BP Financier'!$G$44*(('BP Financier'!$C$22+'BP Financier'!$D$22+'BP Financier'!$E$22+'BP Financier'!$F$22+'BP Financier'!$G$22)/('BP Financier'!$C$16+'BP Financier'!$C$19+'BP Financier'!$D$16+'BP Financier'!$D$19+'BP Financier'!$E$16+'BP Financier'!$E$19+'BP Financier'!$C$22+'BP Financier'!$D$22+'BP Financier'!$E$22+'BP Financier'!$F$22+'BP Financier'!$F$16+'BP Financier'!$F$19+'BP Financier'!$G$16+'BP Financier'!$G$19+'BP Financier'!$G$22))*$V8405*AA8405/(1-$W8405)","v":{"v":595.2345357268719,"d":"595"}},{"$f":"'BP Financier'!$G$44*(('BP Financier'!$C$22+'BP Financier'!$D$22+'BP Financier'!$E$22+'BP Financier'!$F$22+'BP Financier'!$G$22)/('BP Financier'!$C$16+'BP Financier'!$C$19+'BP Financier'!$D$16+'BP Financier'!$D$19+'BP Financier'!$E$16+'BP Financier'!$E$19+'BP Financier'!$C$22+'BP Financier'!$D$22+'BP Financier'!$E$22+'BP Financier'!$F$22+'BP Financier'!$F$16+'BP Financier'!$F$19+'BP Financier'!$G$16+'BP Financier'!$G$19+'BP Financier'!$G$22))*$V8405*AB8405/(1-$W8405)","v":{"v":284.89858120260527,"d":"285"}},null,{"v":2E-3,"d":"0.20%"},{"$f":"Actif!$E$28/100","v":{"v":0.28900000000000003,"d":"28.90%"}},{"$f":"Actif!$E$30/100","v":{"v":0.09050000000000001,"d":"9.05%"}},{"$f":"Actif!$E$31/100","v":{"v":0.0605,"d":"6.05%"}},{"$f":"Actif!$E$32/100","v":{"v":0.47350000000000003,"d":"47.35%"}},{"$f":"Actif!$E$33/100","v":{"v":0.0585,"d":"5.85%"}},{"$f":"Actif!$E$29/100","v":{"v":0.027999999999999997,"d":"2.80%"}}]
[null,"#293",23,2029,"F","A_CAPI",{"v":0.44999999999999996,"d":"0.45"},{"v":0.38999999999999996,"d":"0.39"},0.6,0.6,85,0,{"$f":"ROUND(Primes!$Q$10*V8406,2)","v":0.26},0,{"v":7234.388972680442,"d":"7,234"},{"$f":"'BP Financier'!$G$44*(('BP Financier'!$C$22+'BP Financier'!$D$22+'BP Financier'!$E$22+'BP Financier'!$F$22+'BP Financier'!$G$22)/('BP Financier'!$C$16+'BP Financier'!$C$19+'BP Financier'!$D$16+'BP Financier'!$D$19+'BP Financier'!$E$16+'BP Financier'!$E$19+'BP Financier'!$C$22+'BP Financier'!$D$22+'BP Financier'!$E$22+'BP Financier'!$F$22+'BP Financier'!$F$16+'BP Financier'!$F$19+'BP Financier'!$G$16+'BP Financier'!$G$19+'BP Financier'!$G$22))*$V8406*X8406/(1-$W8406)","v":{"v":920.832914244135,"d":"921"}},{"$f":"'BP Financier'!$G$44*(('BP Financier'!$C$22+'BP Financier'!$D$22+'BP Financier'!$E$22+'BP Financier'!$F$22+'BP Financier'!$G$22)/('BP Financier'!$C$16+'BP Financier'!$C$19+'BP Financier'!$D$16+'BP Financier'!$D$19+'BP Financier'!$E$16+'BP Financier'!$E$19+'BP Financier'!$C$22+'BP Financier'!$D$22+'BP Financier'!$E$22+'BP Financier'!$F$22+'BP Financier'!$F$16+'BP Financier'!$F$19+'BP Financier'!$G$16+'BP Financier'!$G$19+'BP Financier'!$G$22))*$V8406*Y8406/(1-$W8406)","v":{"v":615.5844343842008,"d":"616"}},{"$f":"'BP Financier'!$G$44*(('BP Financier'!$C$22+'BP Financier'!$D$22+'BP Financier'!$E$22+'BP Financier'!$F$22+'BP Financier'!$G$22)/('BP Financier'!$C$16+'BP Financier'!$C$19+'BP Financier'!$D$16+'BP Financier'!$D$19+'BP Financier'!$E$16+'BP Financier'!$E$19+'BP Financier'!$C$22+'BP Financier'!$D$22+'BP Financier'!$E$22+'BP Financier'!$F$22+'BP Financier'!$F$16+'BP Financier'!$F$19+'BP Financier'!$G$16+'BP Financier'!$G$19+'BP Financier'!$G$22))*$V8406*Z8406/(1-$W8406)","v":{"v":4817.838507122629,"d":"4,818"}},{"$f":"'BP Financier'!$G$44*(('BP Financier'!$C$22+'BP Financier'!$D$22+'BP Financier'!$E$22+'BP Financier'!$F$22+'BP Financier'!$G$22)/('BP Financier'!$C$16+'BP Financier'!$C$19+'BP Financier'!$D$16+'BP Financier'!$D$19+'BP Financier'!$E$16+'BP Financier'!$E$19+'BP Financier'!$C$22+'BP Financier'!$D$22+'BP Financier'!$E$22+'BP Financier'!$F$22+'BP Financier'!$F$16+'BP Financier'!$F$19+'BP Financier'!$G$16+'BP Financier'!$G$19+'BP Financier'!$G$22))*$V8406*AA8406/(1-$W8406)","v":{"v":595.2345357268719,"d":"595"}},{"$f":"'BP Financier'!$G$44*(('BP Financier'!$C$22+'BP Financier'!$D$22+'BP Financier'!$E$22+'BP Financier'!$F$22+'BP Financier'!$G$22)/('BP Financier'!$C$16+'BP Financier'!$C$19+'BP Financier'!$D$16+'BP Financier'!$D$19+'BP Financier'!$E$16+'BP Financier'!$E$19+'BP Financier'!$C$22+'BP Financier'!$D$22+'BP Financier'!$E$22+'BP Financier'!$F$22+'BP Financier'!$F$16+'BP Financier'!$F$19+'BP Financier'!$G$16+'BP Financier'!$G$19+'BP Financier'!$G$22))*$V8406*AB8406/(1-$W8406)","v":{"v":284.89858120260527,"d":"285"}},null,{"v":2E-3,"d":"0.20%"},{"$f":"Actif!$E$28/100","v":{"v":0.28900000000000003,"d":"28.90%"}},{"$f":"Actif!$E$30/100","v":{"v":0.09050000000000001,"d":"9.05%"}},{"$f":"Actif!$E$31/100","v":{"v":0.0605,"d":"6.05%"}},{"$f":"Actif!$E$32/100","v":{"v":0.47350000000000003,"d":"47.35%"}},{"$f":"Actif!$E$33/100","v":{"v":0.0585,"d":"5.85%"}},{"$f":"Actif!$E$29/100","v":{"v":0.027999999999999997,"d":"2.80%"}}]
[null,"#294",23,2030,"F","A_CAPI",{"v":0.44999999999999996,"d":"0.45"},{"v":0.38999999999999996,"d":"0.39"},0.6,0.6,85,0,{"$f":"ROUND(Primes!$Q$10*V8407,2)","v":0.26},0,{"v":7234.388972680442,"d":"7,234"},{"$f":"'BP Financier'!$G$44*(('BP Financier'!$C$22+'BP Financier'!$D$22+'BP Financier'!$E$22+'BP Financier'!$F$22+'BP Financier'!$G$22)/('BP Financier'!$C$16+'BP Financier'!$C$19+'BP Financier'!$D$16+'BP Financier'!$D$19+'BP Financier'!$E$16+'BP Financier'!$E$19+'BP Financier'!$C$22+'BP Financier'!$D$22+'BP Financier'!$E$22+'BP Financier'!$F$22+'BP Financier'!$F$16+'BP Financier'!$F$19+'BP Financier'!$G$16+'BP Financier'!$G$19+'BP Financier'!$G$22))*$V8407*X8407/(1-$W8407)","v":{"v":920.832914244135,"d":"921"}},{"$f":"'BP Financier'!$G$44*(('BP Financier'!$C$22+'BP Financier'!$D$22+'BP Financier'!$E$22+'BP Financier'!$F$22+'BP Financier'!$G$22)/('BP Financier'!$C$16+'BP Financier'!$C$19+'BP Financier'!$D$16+'BP Financier'!$D$19+'BP Financier'!$E$16+'BP Financier'!$E$19+'BP Financier'!$C$22+'BP Financier'!$D$22+'BP Financier'!$E$22+'BP Financier'!$F$22+'BP Financier'!$F$16+'BP Financier'!$F$19+'BP Financier'!$G$16+'BP Financier'!$G$19+'BP Financier'!$G$22))*$V8407*Y8407/(1-$W8407)","v":{"v":615.5844343842008,"d":"616"}},{"$f":"'BP Financier'!$G$44*(('BP Financier'!$C$22+'BP Financier'!$D$22+'BP Financier'!$E$22+'BP Financier'!$F$22+'BP Financier'!$G$22)/('BP Financier'!$C$16+'BP Financier'!$C$19+'BP Financier'!$D$16+'BP Financier'!$D$19+'BP Financier'!$E$16+'BP Financier'!$E$19+'BP Financier'!$C$22+'BP Financier'!$D$22+'BP Financier'!$E$22+'BP Financier'!$F$22+'BP Financier'!$F$16+'BP Financier'!$F$19+'BP Financier'!$G$16+'BP Financier'!$G$19+'BP Financier'!$G$22))*$V8407*Z8407/(1-$W8407)","v":{"v":4817.838507122629,"d":"4,818"}},{"$f":"'BP Financier'!$G$44*(('BP Financier'!$C$22+'BP Financier'!$D$22+'BP Financier'!$E$22+'BP Financier'!$F$22+'BP Financier'!$G$22)/('BP Financier'!$C$16+'BP Financier'!$C$19+'BP Financier'!$D$16+'BP Financier'!$D$19+'BP Financier'!$E$16+'BP Financier'!$E$19+'BP Financier'!$C$22+'BP Financier'!$D$22+'BP Financier'!$E$22+'BP Financier'!$F$22+'BP Financier'!$F$16+'BP Financier'!$F$19+'BP Financier'!$G$16+'BP Financier'!$G$19+'BP Financier'!$G$22))*$V8407*AA8407/(1-$W8407)","v":{"v":595.2345357268719,"d":"595"}},{"$f":"'BP Financier'!$G$44*(('BP Financier'!$C$22+'BP Financier'!$D$22+'BP Financier'!$E$22+'BP Financier'!$F$22+'BP Financier'!$G$22)/('BP Financier'!$C$16+'BP Financier'!$C$19+'BP Financier'!$D$16+'BP Financier'!$D$19+'BP Financier'!$E$16+'BP Financier'!$E$19+'BP Financier'!$C$22+'BP Financier'!$D$22+'BP Financier'!$E$22+'BP Financier'!$F$22+'BP Financier'!$F$16+'BP Financier'!$F$19+'BP Financier'!$G$16+'BP Financier'!$G$19+'BP Financier'!$G$22))*$V8407*AB8407/(1-$W8407)","v":{"v":284.89858120260527,"d":"285"}},null,{"v":2E-3,"d":"0.20%"},{"$f":"Actif!$E$28/100","v":{"v":0.28900000000000003,"d":"28.90%"}},{"$f":"Actif!$E$30/100","v":{"v":0.09050000000000001,"d":"9.05%"}},{"$f":"Actif!$E$31/100","v":{"v":0.0605,"d":"6.05%"}},{"$f":"Actif!$E$32/100","v":{"v":0.47350000000000003,"d":"47.35%"}},{"$f":"Actif!$E$33/100","v":{"v":0.0585,"d":"5.85%"}},{"$f":"Actif!$E$29/100","v":{"v":0.027999999999999997,"d":"2.80%"}}]
[null,"#295",23,2031,"F","A_CAPI",{"v":0.44999999999999996,"d":"0.45"},{"v":0.38999999999999996,"d":"0.39"},0.6,0.6,85,0,{"$f":"ROUND(Primes!$Q$10*V8408,2)","v":0.26},0,{"v":7234.388972680442,"d":"7,234"},{"$f":"'BP Financier'!$G$44*(('BP Financier'!$C$22+'BP Financier'!$D$22+'BP Financier'!$E$22+'BP Financier'!$F$22+'BP Financier'!$G$22)/('BP Financier'!$C$16+'BP Financier'!$C$19+'BP Financier'!$D$16+'BP Financier'!$D$19+'BP Financier'!$E$16+'BP Financier'!$E$19+'BP Financier'!$C$22+'BP Financier'!$D$22+'BP Financier'!$E$22+'BP Financier'!$F$22+'BP Financier'!$F$16+'BP Financier'!$F$19+'BP Financier'!$G$16+'BP Financier'!$G$19+'BP Financier'!$G$22))*$V8408*X8408/(1-$W8408)","v":{"v":920.832914244135,"d":"921"}},{"$f":"'BP Financier'!$G$44*(('BP Financier'!$C$22+'BP Financier'!$D$22+'BP Financier'!$E$22+'BP Financier'!$F$22+'BP Financier'!$G$22)/('BP Financier'!$C$16+'BP Financier'!$C$19+'BP Financier'!$D$16+'BP Financier'!$D$19+'BP Financier'!$E$16+'BP Financier'!$E$19+'BP Financier'!$C$22+'BP Financier'!$D$22+'BP Financier'!$E$22+'BP Financier'!$F$22+'BP Financier'!$F$16+'BP Financier'!$F$19+'BP Financier'!$G$16+'BP Financier'!$G$19+'BP Financier'!$G$22))*$V8408*Y8408/(1-$W8408)","v":{"v":615.5844343842008,"d":"616"}},{"$f":"'BP Financier'!$G$44*(('BP Financier'!$C$22+'BP Financier'!$D$22+'BP Financier'!$E$22+'BP Financier'!$F$22+'BP Financier'!$G$22)/('BP Financier'!$C$16+'BP Financier'!$C$19+'BP Financier'!$D$16+'BP Financier'!$D$19+'BP Financier'!$E$16+'BP Financier'!$E$19+'BP Financier'!$C$22+'BP Financier'!$D$22+'BP Financier'!$E$22+'BP Financier'!$F$22+'BP Financier'!$F$16+'BP Financier'!$F$19+'BP Financier'!$G$16+'BP Financier'!$G$19+'BP Financier'!$G$22))*$V8408*Z8408/(1-$W8408)","v":{"v":4817.838507122629,"d":"4,818"}},{"$f":"'BP Financier'!$G$44*(('BP Financier'!$C$22+'BP Financier'!$D$22+'BP Financier'!$E$22+'BP Financier'!$F$22+'BP Financier'!$G$22)/('BP Financier'!$C$16+'BP Financier'!$C$19+'BP Financier'!$D$16+'BP Financier'!$D$19+'BP Financier'!$E$16+'BP Financier'!$E$19+'BP Financier'!$C$22+'BP Financier'!$D$22+'BP Financier'!$E$22+'BP Financier'!$F$22+'BP Financier'!$F$16+'BP Financier'!$F$19+'BP Financier'!$G$16+'BP Financier'!$G$19+'BP Financier'!$G$22))*$V8408*AA8408/(1-$W8408)","v":{"v":595.2345357268719,"d":"595"}},{"$f":"'BP Financier'!$G$44*(('BP Financier'!$C$22+'BP Financier'!$D$22+'BP Financier'!$E$22+'BP Financier'!$F$22+'BP Financier'!$G$22)/('BP Financier'!$C$16+'BP Financier'!$C$19+'BP Financier'!$D$16+'BP Financier'!$D$19+'BP Financier'!$E$16+'BP Financier'!$E$19+'BP Financier'!$C$22+'BP Financier'!$D$22+'BP Financier'!$E$22+'BP Financier'!$F$22+'BP Financier'!$F$16+'BP Financier'!$F$19+'BP Financier'!$G$16+'BP Financier'!$G$19+'BP Financier'!$G$22))*$V8408*AB8408/(1-$W8408)","v":{"v":284.89858120260527,"d":"285"}},null,{"v":2E-3,"d":"0.20%"},{"$f":"Actif!$E$28/100","v":{"v":0.28900000000000003,"d":"28.90%"}},{"$f":"Actif!$E$30/100","v":{"v":0.09050000000000001,"d":"9.05%"}},{"$f":"Actif!$E$31/100","v":{"v":0.0605,"d":"6.05%"}},{"$f":"Actif!$E$32/100","v":{"v":0.47350000000000003,"d":"47.35%"}},{"$f":"Actif!$E$33/100","v":{"v":0.0585,"d":"5.85%"}},{"$f":"Actif!$E$29/100","v":{"v":0.027999999999999997,"d":"2.80%"}}]
[null,"#296",24,2026,"H","A_CAPI",{"v":0.44999999999999996,"d":"0.45"},{"v":0.38999999999999996,"d":"0.39"},0.6,0.6,85,0,{"$f":"ROUND(Primes!$Q$10*V8409,2)","v":0.26},0,{"v":7234.388972680442,"d":"7,234"},{"$f":"'BP Financier'!$G$44*(('BP Financier'!$C$22+'BP Financier'!$D$22+'BP Financier'!$E$22+'BP Financier'!$F$22+'BP Financier'!$G$22)/('BP Financier'!$C$16+'BP Financier'!$C$19+'BP Financier'!$D$16+'BP Financier'!$D$19+'BP Financier'!$E$16+'BP Financier'!$E$19+'BP Financier'!$C$22+'BP Financier'!$D$22+'BP Financier'!$E$22+'BP Financier'!$F$22+'BP Financier'!$F$16+'BP Financier'!$F$19+'BP Financier'!$G$16+'BP Financier'!$G$19+'BP Financier'!$G$22))*$V8409*X8409/(1-$W8409)","v":{"v":920.832914244135,"d":"921"}},{"$f":"'BP Financier'!$G$44*(('BP Financier'!$C$22+'BP Financier'!$D$22+'BP Financier'!$E$22+'BP Financier'!$F$22+'BP Financier'!$G$22)/('BP Financier'!$C$16+'BP Financier'!$C$19+'BP Financier'!$D$16+'BP Financier'!$D$19+'BP Financier'!$E$16+'BP Financier'!$E$19+'BP Financier'!$C$22+'BP Financier'!$D$22+'BP Financier'!$E$22+'BP Financier'!$F$22+'BP Financier'!$F$16+'BP Financier'!$F$19+'BP Financier'!$G$16+'BP Financier'!$G$19+'BP Financier'!$G$22))*$V8409*Y8409/(1-$W8409)","v":{"v":615.5844343842008,"d":"616"}},{"$f":"'BP Financier'!$G$44*(('BP Financier'!$C$22+'BP Financier'!$D$22+'BP Financier'!$E$22+'BP Financier'!$F$22+'BP Financier'!$G$22)/('BP Financier'!$C$16+'BP Financier'!$C$19+'BP Financier'!$D$16+'BP Financier'!$D$19+'BP Financier'!$E$16+'BP Financier'!$E$19+'BP Financier'!$C$22+'BP Financier'!$D$22+'BP Financier'!$E$22+'BP Financier'!$F$22+'BP Financier'!$F$16+'BP Financier'!$F$19+'BP Financier'!$G$16+'BP Financier'!$G$19+'BP Financier'!$G$22))*$V8409*Z8409/(1-$W8409)","v":{"v":4817.838507122629,"d":"4,818"}},{"$f":"'BP Financier'!$G$44*(('BP Financier'!$C$22+'BP Financier'!$D$22+'BP Financier'!$E$22+'BP Financier'!$F$22+'BP Financier'!$G$22)/('BP Financier'!$C$16+'BP Financier'!$C$19+'BP Financier'!$D$16+'BP Financier'!$D$19+'BP Financier'!$E$16+'BP Financier'!$E$19+'BP Financier'!$C$22+'BP Financier'!$D$22+'BP Financier'!$E$22+'BP Financier'!$F$22+'BP Financier'!$F$16+'BP Financier'!$F$19+'BP Financier'!$G$16+'BP Financier'!$G$19+'BP Financier'!$G$22))*$V8409*AA8409/(1-$W8409)","v":{"v":595.2345357268719,"d":"595"}},{"$f":"'BP Financier'!$G$44*(('BP Financier'!$C$22+'BP Financier'!$D$22+'BP Financier'!$E$22+'BP Financier'!$F$22+'BP Financier'!$G$22)/('BP Financier'!$C$16+'BP Financier'!$C$19+'BP Financier'!$D$16+'BP Financier'!$D$19+'BP Financier'!$E$16+'BP Financier'!$E$19+'BP Financier'!$C$22+'BP Financier'!$D$22+'BP Financier'!$E$22+'BP Financier'!$F$22+'BP Financier'!$F$16+'BP Financier'!$F$19+'BP Financier'!$G$16+'BP Financier'!$G$19+'BP Financier'!$G$22))*$V8409*AB8409/(1-$W8409)","v":{"v":284.89858120260527,"d":"285"}},null,{"v":2E-3,"d":"0.20%"},{"$f":"Actif!$E$28/100","v":{"v":0.28900000000000003,"d":"28.90%"}},{"$f":"Actif!$E$30/100","v":{"v":0.09050000000000001,"d":"9.05%"}},{"$f":"Actif!$E$31/100","v":{"v":0.0605,"d":"6.05%"}},{"$f":"Actif!$E$32/100","v":{"v":0.47350000000000003,"d":"47.35%"}},{"$f":"Actif!$E$33/100","v":{"v":0.0585,"d":"5.85%"}},{"$f":"Actif!$E$29/100","v":{"v":0.027999999999999997,"d":"2.80%"}}]
[null,"#297",24,2028,"H","A_CAPI",{"v":0.44999999999999996,"d":"0.45"},{"v":0.38999999999999996,"d":"0.39"},0.6,0.6,85,0,{"$f":"ROUND(Primes!$Q$10*V8410,2)","v":0.26},0,{"v":7234.388972680442,"d":"7,234"},{"$f":"'BP Financier'!$G$44*(('BP Financier'!$C$22+'BP Financier'!$D$22+'BP Financier'!$E$22+'BP Financier'!$F$22+'BP Financier'!$G$22)/('BP Financier'!$C$16+'BP Financier'!$C$19+'BP Financier'!$D$16+'BP Financier'!$D$19+'BP Financier'!$E$16+'BP Financier'!$E$19+'BP Financier'!$C$22+'BP Financier'!$D$22+'BP Financier'!$E$22+'BP Financier'!$F$22+'BP Financier'!$F$16+'BP Financier'!$F$19+'BP Financier'!$G$16+'BP Financier'!$G$19+'BP Financier'!$G$22))*$V8410*X8410/(1-$W8410)","v":{"v":920.832914244135,"d":"921"}},{"$f":"'BP Financier'!$G$44*(('BP Financier'!$C$22+'BP Financier'!$D$22+'BP Financier'!$E$22+'BP Financier'!$F$22+'BP Financier'!$G$22)/('BP Financier'!$C$16+'BP Financier'!$C$19+'BP Financier'!$D$16+'BP Financier'!$D$19+'BP Financier'!$E$16+'BP Financier'!$E$19+'BP Financier'!$C$22+'BP Financier'!$D$22+'BP Financier'!$E$22+'BP Financier'!$F$22+'BP Financier'!$F$16+'BP Financier'!$F$19+'BP Financier'!$G$16+'BP Financier'!$G$19+'BP Financier'!$G$22))*$V8410*Y8410/(1-$W8410)","v":{"v":615.5844343842008,"d":"616"}},{"$f":"'BP Financier'!$G$44*(('BP Financier'!$C$22+'BP Financier'!$D$22+'BP Financier'!$E$22+'BP Financier'!$F$22+'BP Financier'!$G$22)/('BP Financier'!$C$16+'BP Financier'!$C$19+'BP Financier'!$D$16+'BP Financier'!$D$19+'BP Financier'!$E$16+'BP Financier'!$E$19+'BP Financier'!$C$22+'BP Financier'!$D$22+'BP Financier'!$E$22+'BP Financier'!$F$22+'BP Financier'!$F$16+'BP Financier'!$F$19+'BP Financier'!$G$16+'BP Financier'!$G$19+'BP Financier'!$G$22))*$V8410*Z8410/(1-$W8410)","v":{"v":4817.838507122629,"d":"4,818"}},{"$f":"'BP Financier'!$G$44*(('BP Financier'!$C$22+'BP Financier'!$D$22+'BP Financier'!$E$22+'BP Financier'!$F$22+'BP Financier'!$G$22)/('BP Financier'!$C$16+'BP Financier'!$C$19+'BP Financier'!$D$16+'BP Financier'!$D$19+'BP Financier'!$E$16+'BP Financier'!$E$19+'BP Financier'!$C$22+'BP Financier'!$D$22+'BP Financier'!$E$22+'BP Financier'!$F$22+'BP Financier'!$F$16+'BP Financier'!$F$19+'BP Financier'!$G$16+'BP Financier'!$G$19+'BP Financier'!$G$22))*$V8410*AA8410/(1-$W8410)","v":{"v":595.2345357268719,"d":"595"}},{"$f":"'BP Financier'!$G$44*(('BP Financier'!$C$22+'BP Financier'!$D$22+'BP Financier'!$E$22+'BP Financier'!$F$22+'BP Financier'!$G$22)/('BP Financier'!$C$16+'BP Financier'!$C$19+'BP Financier'!$D$16+'BP Financier'!$D$19+'BP Financier'!$E$16+'BP Financier'!$E$19+'BP Financier'!$C$22+'BP Financier'!$D$22+'BP Financier'!$E$22+'BP Financier'!$F$22+'BP Financier'!$F$16+'BP Financier'!$F$19+'BP Financier'!$G$16+'BP Financier'!$G$19+'BP Financier'!$G$22))*$V8410*AB8410/(1-$W8410)","v":{"v":284.89858120260527,"d":"285"}},null,{"v":2E-3,"d":"0.20%"},{"$f":"Actif!$E$28/100","v":{"v":0.28900000000000003,"d":"28.90%"}},{"$f":"Actif!$E$30/100","v":{"v":0.09050000000000001,"d":"9.05%"}},{"$f":"Actif!$E$31/100","v":{"v":0.0605,"d":"6.05%"}},{"$f":"Actif!$E$32/100","v":{"v":0.47350000000000003,"d":"47.35%"}},{"$f":"Actif!$E$33/100","v":{"v":0.0585,"d":"5.85%"}},{"$f":"Actif!$E$29/100","v":{"v":0.027999999999999997,"d":"2.80%"}}]
[null,"#298",24,2029,"H","A_CAPI",{"v":0.44999999999999996,"d":"0.45"},{"v":0.38999999999999996,"d":"0.39"},0.6,0.6,85,0,{"$f":"ROUND(Primes!$Q$10*V8411,2)","v":0.26},0,{"v":7234.388972680442,"d":"7,234"},{"$f":"'BP Financier'!$G$44*(('BP Financier'!$C$22+'BP Financier'!$D$22+'BP Financier'!$E$22+'BP Financier'!$F$22+'BP Financier'!$G$22)/('BP Financier'!$C$16+'BP Financier'!$C$19+'BP Financier'!$D$16+'BP Financier'!$D$19+'BP Financier'!$E$16+'BP Financier'!$E$19+'BP Financier'!$C$22+'BP Financier'!$D$22+'BP Financier'!$E$22+'BP Financier'!$F$22+'BP Financier'!$F$16+'BP Financier'!$F$19+'BP Financier'!$G$16+'BP Financier'!$G$19+'BP Financier'!$G$22))*$V8411*X8411/(1-$W8411)","v":{"v":920.832914244135,"d":"921"}},{"$f":"'BP Financier'!$G$44*(('BP Financier'!$C$22+'BP Financier'!$D$22+'BP Financier'!$E$22+'BP Financier'!$F$22+'BP Financier'!$G$22)/('BP Financier'!$C$16+'BP Financier'!$C$19+'BP Financier'!$D$16+'BP Financier'!$D$19+'BP Financier'!$E$16+'BP Financier'!$E$19+'BP Financier'!$C$22+'BP Financier'!$D$22+'BP Financier'!$E$22+'BP Financier'!$F$22+'BP Financier'!$F$16+'BP Financier'!$F$19+'BP Financier'!$G$16+'BP Financier'!$G$19+'BP Financier'!$G$22))*$V8411*Y8411/(1-$W8411)","v":{"v":615.5844343842008,"d":"616"}},{"$f":"'BP Financier'!$G$44*(('BP Financier'!$C$22+'BP Financier'!$D$22+'BP Financier'!$E$22+'BP Financier'!$F$22+'BP Financier'!$G$22)/('BP Financier'!$C$16+'BP Financier'!$C$19+'BP Financier'!$D$16+'BP Financier'!$D$19+'BP Financier'!$E$16+'BP Financier'!$E$19+'BP Financier'!$C$22+'BP Financier'!$D$22+'BP Financier'!$E$22+'BP Financier'!$F$22+'BP Financier'!$F$16+'BP Financier'!$F$19+'BP Financier'!$G$16+'BP Financier'!$G$19+'BP Financier'!$G$22))*$V8411*Z8411/(1-$W8411)","v":{"v":4817.838507122629,"d":"4,818"}},{"$f":"'BP Financier'!$G$44*(('BP Financier'!$C$22+'BP Financier'!$D$22+'BP Financier'!$E$22+'BP Financier'!$F$22+'BP Financier'!$G$22)/('BP Financier'!$C$16+'BP Financier'!$C$19+'BP Financier'!$D$16+'BP Financier'!$D$19+'BP Financier'!$E$16+'BP Financier'!$E$19+'BP Financier'!$C$22+'BP Financier'!$D$22+'BP Financier'!$E$22+'BP Financier'!$F$22+'BP Financier'!$F$16+'BP Financier'!$F$19+'BP Financier'!$G$16+'BP Financier'!$G$19+'BP Financier'!$G$22))*$V8411*AA8411/(1-$W8411)","v":{"v":595.2345357268719,"d":"595"}},{"$f":"'BP Financier'!$G$44*(('BP Financier'!$C$22+'BP Financier'!$D$22+'BP Financier'!$E$22+'BP Financier'!$F$22+'BP Financier'!$G$22)/('BP Financier'!$C$16+'BP Financier'!$C$19+'BP Financier'!$D$16+'BP Financier'!$D$19+'BP Financier'!$E$16+'BP Financier'!$E$19+'BP Financier'!$C$22+'BP Financier'!$D$22+'BP Financier'!$E$22+'BP Financier'!$F$22+'BP Financier'!$F$16+'BP Financier'!$F$19+'BP Financier'!$G$16+'BP Financier'!$G$19+'BP Financier'!$G$22))*$V8411*AB8411/(1-$W8411)","v":{"v":284.89858120260527,"d":"285"}},null,{"v":2E-3,"d":"0.20%"},{"$f":"Actif!$E$28/100","v":{"v":0.28900000000000003,"d":"28.90%"}},{"$f":"Actif!$E$30/100","v":{"v":0.09050000000000001,"d":"9.05%"}},{"$f":"Actif!$E$31/100","v":{"v":0.0605,"d":"6.05%"}},{"$f":"Actif!$E$32/100","v":{"v":0.47350000000000003,"d":"47.35%"}},{"$f":"Actif!$E$33/100","v":{"v":0.0585,"d":"5.85%"}},{"$f":"Actif!$E$29/100","v":{"v":0.027999999999999997,"d":"2.80%"}}]
[null,"#299",24,2030,"H","A_CAPI",{"v":0.44999999999999996,"d":"0.45"},{"v":0.38999999999999996,"d":"0.39"},0.6,0.6,85,0,{"$f":"ROUND(Primes!$Q$10*V8412,2)","v":0.26},0,{"v":7234.388972680442,"d":"7,234"},{"$f":"'BP Financier'!$G$44*(('BP Financier'!$C$22+'BP Financier'!$D$22+'BP Financier'!$E$22+'BP Financier'!$F$22+'BP Financier'!$G$22)/('BP Financier'!$C$16+'BP Financier'!$C$19+'BP Financier'!$D$16+'BP Financier'!$D$19+'BP Financier'!$E$16+'BP Financier'!$E$19+'BP Financier'!$C$22+'BP Financier'!$D$22+'BP Financier'!$E$22+'BP Financier'!$F$22+'BP Financier'!$F$16+'BP Financier'!$F$19+'BP Financier'!$G$16+'BP Financier'!$G$19+'BP Financier'!$G$22))*$V8412*X8412/(1-$W8412)","v":{"v":920.832914244135,"d":"921"}},{"$f":"'BP Financier'!$G$44*(('BP Financier'!$C$22+'BP Financier'!$D$22+'BP Financier'!$E$22+'BP Financier'!$F$22+'BP Financier'!$G$22)/('BP Financier'!$C$16+'BP Financier'!$C$19+'BP Financier'!$D$16+'BP Financier'!$D$19+'BP Financier'!$E$16+'BP Financier'!$E$19+'BP Financier'!$C$22+'BP Financier'!$D$22+'BP Financier'!$E$22+'BP Financier'!$F$22+'BP Financier'!$F$16+'BP Financier'!$F$19+'BP Financier'!$G$16+'BP Financier'!$G$19+'BP Financier'!$G$22))*$V8412*Y8412/(1-$W8412)","v":{"v":615.5844343842008,"d":"616"}},{"$f":"'BP Financier'!$G$44*(('BP Financier'!$C$22+'BP Financier'!$D$22+'BP Financier'!$E$22+'BP Financier'!$F$22+'BP Financier'!$G$22)/('BP Financier'!$C$16+'BP Financier'!$C$19+'BP Financier'!$D$16+'BP Financier'!$D$19+'BP Financier'!$E$16+'BP Financier'!$E$19+'BP Financier'!$C$22+'BP Financier'!$D$22+'BP Financier'!$E$22+'BP Financier'!$F$22+'BP Financier'!$F$16+'BP Financier'!$F$19+'BP Financier'!$G$16+'BP Financier'!$G$19+'BP Financier'!$G$22))*$V8412*Z8412/(1-$W8412)","v":{"v":4817.838507122629,"d":"4,818"}},{"$f":"'BP Financier'!$G$44*(('BP Financier'!$C$22+'BP Financier'!$D$22+'BP Financier'!$E$22+'BP Financier'!$F$22+'BP Financier'!$G$22)/('BP Financier'!$C$16+'BP Financier'!$C$19+'BP Financier'!$D$16+'BP Financier'!$D$19+'BP Financier'!$E$16+'BP Financier'!$E$19+'BP Financier'!$C$22+'BP Financier'!$D$22+'BP Financier'!$E$22+'BP Financier'!$F$22+'BP Financier'!$F$16+'BP Financier'!$F$19+'BP Financier'!$G$16+'BP Financier'!$G$19+'BP Financier'!$G$22))*$V8412*AA8412/(1-$W8412)","v":{"v":595.2345357268719,"d":"595"}},{"$f":"'BP Financier'!$G$44*(('BP Financier'!$C$22+'BP Financier'!$D$22+'BP Financier'!$E$22+'BP Financier'!$F$22+'BP Financier'!$G$22)/('BP Financier'!$C$16+'BP Financier'!$C$19+'BP Financier'!$D$16+'BP Financier'!$D$19+'BP Financier'!$E$16+'BP Financier'!$E$19+'BP Financier'!$C$22+'BP Financier'!$D$22+'BP Financier'!$E$22+'BP Financier'!$F$22+'BP Financier'!$F$16+'BP Financier'!$F$19+'BP Financier'!$G$16+'BP Financier'!$G$19+'BP Financier'!$G$22))*$V8412*AB8412/(1-$W8412)","v":{"v":284.89858120260527,"d":"285"}},null,{"v":2E-3,"d":"0.20%"},{"$f":"Actif!$E$28/100","v":{"v":0.28900000000000003,"d":"28.90%"}},{"$f":"Actif!$E$30/100","v":{"v":0.09050000000000001,"d":"9.05%"}},{"$f":"Actif!$E$31/100","v":{"v":0.0605,"d":"6.05%"}},{"$f":"Actif!$E$32/100","v":{"v":0.47350000000000003,"d":"47.35%"}},{"$f":"Actif!$E$33/100","v":{"v":0.0585,"d":"5.85%"}},{"$f":"Actif!$E$29/100","v":{"v":0.027999999999999997,"d":"2.80%"}}]
[null,"#300",24,2031,"H","A_CAPI",{"v":0.44999999999999996,"d":"0.45"},{"v":0.38999999999999996,"d":"0.39"},0.6,0.6,85,0,{"$f":"ROUND(Primes!$Q$10*V8413,2)","v":0.26},0,{"v":7234.388972680442,"d":"7,234"},{"$f":"'BP Financier'!$G$44*(('BP Financier'!$C$22+'BP Financier'!$D$22+'BP Financier'!$E$22+'BP Financier'!$F$22+'BP Financier'!$G$22)/('BP Financier'!$C$16+'BP Financier'!$C$19+'BP Financier'!$D$16+'BP Financier'!$D$19+'BP Financier'!$E$16+'BP Financier'!$E$19+'BP Financier'!$C$22+'BP Financier'!$D$22+'BP Financier'!$E$22+'BP Financier'!$F$22+'BP Financier'!$F$16+'BP Financier'!$F$19+'BP Financier'!$G$16+'BP Financier'!$G$19+'BP Financier'!$G$22))*$V8413*X8413/(1-$W8413)","v":{"v":920.832914244135,"d":"921"}},{"$f":"'BP Financier'!$G$44*(('BP Financier'!$C$22+'BP Financier'!$D$22+'BP Financier'!$E$22+'BP Financier'!$F$22+'BP Financier'!$G$22)/('BP Financier'!$C$16+'BP Financier'!$C$19+'BP Financier'!$D$16+'BP Financier'!$D$19+'BP Financier'!$E$16+'BP Financier'!$E$19+'BP Financier'!$C$22+'BP Financier'!$D$22+'BP Financier'!$E$22+'BP Financier'!$F$22+'BP Financier'!$F$16+'BP Financier'!$F$19+'BP Financier'!$G$16+'BP Financier'!$G$19+'BP Financier'!$G$22))*$V8413*Y8413/(1-$W8413)","v":{"v":615.5844343842008,"d":"616"}},{"$f":"'BP Financier'!$G$44*(('BP Financier'!$C$22+'BP Financier'!$D$22+'BP Financier'!$E$22+'BP Financier'!$F$22+'BP Financier'!$G$22)/('BP Financier'!$C$16+'BP Financier'!$C$19+'BP Financier'!$D$16+'BP Financier'!$D$19+'BP Financier'!$E$16+'BP Financier'!$E$19+'BP Financier'!$C$22+'BP Financier'!$D$22+'BP Financier'!$E$22+'BP Financier'!$F$22+'BP Financier'!$F$16+'BP Financier'!$F$19+'BP Financier'!$G$16+'BP Financier'!$G$19+'BP Financier'!$G$22))*$V8413*Z8413/(1-$W8413)","v":{"v":4817.838507122629,"d":"4,818"}},{"$f":"'BP Financier'!$G$44*(('BP Financier'!$C$22+'BP Financier'!$D$22+'BP Financier'!$E$22+'BP Financier'!$F$22+'BP Financier'!$G$22)/('BP Financier'!$C$16+'BP Financier'!$C$19+'BP Financier'!$D$16+'BP Financier'!$D$19+'BP Financier'!$E$16+'BP Financier'!$E$19+'BP Financier'!$C$22+'BP Financier'!$D$22+'BP Financier'!$E$22+'BP Financier'!$F$22+'BP Financier'!$F$16+'BP Financier'!$F$19+'BP Financier'!$G$16+'BP Financier'!$G$19+'BP Financier'!$G$22))*$V8413*AA8413/(1-$W8413)","v":{"v":595.2345357268719,"d":"595"}},{"$f":"'BP Financier'!$G$44*(('BP Financier'!$C$22+'BP Financier'!$D$22+'BP Financier'!$E$22+'BP Financier'!$F$22+'BP Financier'!$G$22)/('BP Financier'!$C$16+'BP Financier'!$C$19+'BP Financier'!$D$16+'BP Financier'!$D$19+'BP Financier'!$E$16+'BP Financier'!$E$19+'BP Financier'!$C$22+'BP Financier'!$D$22+'BP Financier'!$E$22+'BP Financier'!$F$22+'BP Financier'!$F$16+'BP Financier'!$F$19+'BP Financier'!$G$16+'BP Financier'!$G$19+'BP Financier'!$G$22))*$V8413*AB8413/(1-$W8413)","v":{"v":284.89858120260527,"d":"285"}},null,{"v":2E-3,"d":"0.20%"},{"$f":"Actif!$E$28/100","v":{"v":0.28900000000000003,"d":"28.90%"}},{"$f":"Actif!$E$30/100","v":{"v":0.09050000000000001,"d":"9.05%"}},{"$f":"Actif!$E$31/100","v":{"v":0.0605,"d":"6.05%"}},{"$f":"Actif!$E$32/100","v":{"v":0.47350000000000003,"d":"47.35%"}},{"$f":"Actif!$E$33/100","v":{"v":0.0585,"d":"5.85%"}},{"$f":"Actif!$E$29/100","v":{"v":0.027999999999999997,"d":"2.80%"}}]
[null,"#301",25,2026,"H","A_CAPI",{"v":0.44999999999999996,"d":"0.45"},{"v":0.38999999999999996,"d":"0.39"},0.6,0.6,85,0,{"$f":"ROUND(Primes!$Q$10*V8414,2)","v":{"v":1.3,"d":"1.30"}},0,{"v":36171.94486340221,"d":"36,172"},{"$f":"'BP Financier'!$G$44*(('BP Financier'!$C$22+'BP Financier'!$D$22+'BP Financier'!$E$22+'BP Financier'!$F$22+'BP Financier'!$G$22)/('BP Financier'!$C$16+'BP Financier'!$C$19+'BP Financier'!$D$16+'BP Financier'!$D$19+'BP Financier'!$E$16+'BP Financier'!$E$19+'BP Financier'!$C$22+'BP Financier'!$D$22+'BP Financier'!$E$22+'BP Financier'!$F$22+'BP Financier'!$F$16+'BP Financier'!$F$19+'BP Financier'!$G$16+'BP Financier'!$G$19+'BP Financier'!$G$22))*$V8414*X8414/(1-$W8414)","v":{"v":4604.164571220676,"d":"4,604"}},{"$f":"'BP Financier'!$G$44*(('BP Financier'!$C$22+'BP Financier'!$D$22+'BP Financier'!$E$22+'BP Financier'!$F$22+'BP Financier'!$G$22)/('BP Financier'!$C$16+'BP Financier'!$C$19+'BP Financier'!$D$16+'BP Financier'!$D$19+'BP Financier'!$E$16+'BP Financier'!$E$19+'BP Financier'!$C$22+'BP Financier'!$D$22+'BP Financier'!$E$22+'BP Financier'!$F$22+'BP Financier'!$F$16+'BP Financier'!$F$19+'BP Financier'!$G$16+'BP Financier'!$G$19+'BP Financier'!$G$22))*$V8414*Y8414/(1-$W8414)","v":{"v":3077.9221719210045,"d":"3,078"}},{"$f":"'BP Financier'!$G$44*(('BP Financier'!$C$22+'BP Financier'!$D$22+'BP Financier'!$E$22+'BP Financier'!$F$22+'BP Financier'!$G$22)/('BP Financier'!$C$16+'BP Financier'!$C$19+'BP Financier'!$D$16+'BP Financier'!$D$19+'BP Financier'!$E$16+'BP Financier'!$E$19+'BP Financier'!$C$22+'BP Financier'!$D$22+'BP Financier'!$E$22+'BP Financier'!$F$22+'BP Financier'!$F$16+'BP Financier'!$F$19+'BP Financier'!$G$16+'BP Financier'!$G$19+'BP Financier'!$G$22))*$V8414*Z8414/(1-$W8414)","v":{"v":24089.192535613147,"d":"24,089"}},{"$f":"'BP Financier'!$G$44*(('BP Financier'!$C$22+'BP Financier'!$D$22+'BP Financier'!$E$22+'BP Financier'!$F$22+'BP Financier'!$G$22)/('BP Financier'!$C$16+'BP Financier'!$C$19+'BP Financier'!$D$16+'BP Financier'!$D$19+'BP Financier'!$E$16+'BP Financier'!$E$19+'BP Financier'!$C$22+'BP Financier'!$D$22+'BP Financier'!$E$22+'BP Financier'!$F$22+'BP Financier'!$F$16+'BP Financier'!$F$19+'BP Financier'!$G$16+'BP Financier'!$G$19+'BP Financier'!$G$22))*$V8414*AA8414/(1-$W8414)","v":{"v":2976.1726786343597,"d":"2,976"}},{"$f":"'BP Financier'!$G$44*(('BP Financier'!$C$22+'BP Financier'!$D$22+'BP Financier'!$E$22+'BP Financier'!$F$22+'BP Financier'!$G$22)/('BP Financier'!$C$16+'BP Financier'!$C$19+'BP Financier'!$D$16+'BP Financier'!$D$19+'BP Financier'!$E$16+'BP Financier'!$E$19+'BP Financier'!$C$22+'BP Financier'!$D$22+'BP Financier'!$E$22+'BP Financier'!$F$22+'BP Financier'!$F$16+'BP Financier'!$F$19+'BP Financier'!$G$16+'BP Financier'!$G$19+'BP Financier'!$G$22))*$V8414*AB8414/(1-$W8414)","v":{"v":1424.4929060130266,"d":"1,424"}},null,{"v":0.01,"d":"1.00%"},{"$f":"Actif!$E$28/100","v":{"v":0.28900000000000003,"d":"28.90%"}},{"$f":"Actif!$E$30/100","v":{"v":0.09050000000000001,"d":"9.05%"}},{"$f":"Actif!$E$31/100","v":{"v":0.0605,"d":"6.05%"}},{"$f":"Actif!$E$32/100","v":{"v":0.47350000000000003,"d":"47.35%"}},{"$f":"Actif!$E$33/100","v":{"v":0.0585,"d":"5.85%"}},{"$f":"Actif!$E$29/100","v":{"v":0.027999999999999997,"d":"2.80%"}}]
[null,"#302",25,2028,"H","A_CAPI",{"v":0.44999999999999996,"d":"0.45"},{"v":0.38999999999999996,"d":"0.39"},0.6,0.6,85,0,{"$f":"ROUND(Primes!$Q$10*V8415,2)","v":{"v":1.3,"d":"1.30"}},0,{"v":36171.94486340221,"d":"36,172"},{"$f":"'BP Financier'!$G$44*(('BP Financier'!$C$22+'BP Financier'!$D$22+'BP Financier'!$E$22+'BP Financier'!$F$22+'BP Financier'!$G$22)/('BP Financier'!$C$16+'BP Financier'!$C$19+'BP Financier'!$D$16+'BP Financier'!$D$19+'BP Financier'!$E$16+'BP Financier'!$E$19+'BP Financier'!$C$22+'BP Financier'!$D$22+'BP Financier'!$E$22+'BP Financier'!$F$22+'BP Financier'!$F$16+'BP Financier'!$F$19+'BP Financier'!$G$16+'BP Financier'!$G$19+'BP Financier'!$G$22))*$V8415*X8415/(1-$W8415)","v":{"v":4604.164571220676,"d":"4,604"}},{"$f":"'BP Financier'!$G$44*(('BP Financier'!$C$22+'BP Financier'!$D$22+'BP Financier'!$E$22+'BP Financier'!$F$22+'BP Financier'!$G$22)/('BP Financier'!$C$16+'BP Financier'!$C$19+'BP Financier'!$D$16+'BP Financier'!$D$19+'BP Financier'!$E$16+'BP Financier'!$E$19+'BP Financier'!$C$22+'BP Financier'!$D$22+'BP Financier'!$E$22+'BP Financier'!$F$22+'BP Financier'!$F$16+'BP Financier'!$F$19+'BP Financier'!$G$16+'BP Financier'!$G$19+'BP Financier'!$G$22))*$V8415*Y8415/(1-$W8415)","v":{"v":3077.9221719210045,"d":"3,078"}},{"$f":"'BP Financier'!$G$44*(('BP Financier'!$C$22+'BP Financier'!$D$22+'BP Financier'!$E$22+'BP Financier'!$F$22+'BP Financier'!$G$22)/('BP Financier'!$C$16+'BP Financier'!$C$19+'BP Financier'!$D$16+'BP Financier'!$D$19+'BP Financier'!$E$16+'BP Financier'!$E$19+'BP Financier'!$C$22+'BP Financier'!$D$22+'BP Financier'!$E$22+'BP Financier'!$F$22+'BP Financier'!$F$16+'BP Financier'!$F$19+'BP Financier'!$G$16+'BP Financier'!$G$19+'BP Financier'!$G$22))*$V8415*Z8415/(1-$W8415)","v":{"v":24089.192535613147,"d":"24,089"}},{"$f":"'BP Financier'!$G$44*(('BP Financier'!$C$22+'BP Financier'!$D$22+'BP Financier'!$E$22+'BP Financier'!$F$22+'BP Financier'!$G$22)/('BP Financier'!$C$16+'BP Financier'!$C$19+'BP Financier'!$D$16+'BP Financier'!$D$19+'BP Financier'!$E$16+'BP Financier'!$E$19+'BP Financier'!$C$22+'BP Financier'!$D$22+'BP Financier'!$E$22+'BP Financier'!$F$22+'BP Financier'!$F$16+'BP Financier'!$F$19+'BP Financier'!$G$16+'BP Financier'!$G$19+'BP Financier'!$G$22))*$V8415*AA8415/(1-$W8415)","v":{"v":2976.1726786343597,"d":"2,976"}},{"$f":"'BP Financier'!$G$44*(('BP Financier'!$C$22+'BP Financier'!$D$22+'BP Financier'!$E$22+'BP Financier'!$F$22+'BP Financier'!$G$22)/('BP Financier'!$C$16+'BP Financier'!$C$19+'BP Financier'!$D$16+'BP Financier'!$D$19+'BP Financier'!$E$16+'BP Financier'!$E$19+'BP Financier'!$C$22+'BP Financier'!$D$22+'BP Financier'!$E$22+'BP Financier'!$F$22+'BP Financier'!$F$16+'BP Financier'!$F$19+'BP Financier'!$G$16+'BP Financier'!$G$19+'BP Financier'!$G$22))*$V8415*AB8415/(1-$W8415)","v":{"v":1424.4929060130266,"d":"1,424"}},null,{"v":0.01,"d":"1.00%"},{"$f":"Actif!$E$28/100","v":{"v":0.28900000000000003,"d":"28.90%"}},{"$f":"Actif!$E$30/100","v":{"v":0.09050000000000001,"d":"9.05%"}},{"$f":"Actif!$E$31/100","v":{"v":0.0605,"d":"6.05%"}},{"$f":"Actif!$E$32/100","v":{"v":0.47350000000000003,"d":"47.35%"}},{"$f":"Actif!$E$33/100","v":{"v":0.0585,"d":"5.85%"}},{"$f":"Actif!$E$29/100","v":{"v":0.027999999999999997,"d":"2.80%"}}]
[null,"#303",25,2029,"H","A_CAPI",{"v":0.44999999999999996,"d":"0.45"},{"v":0.38999999999999996,"d":"0.39"},0.6,0.6,85,0,{"$f":"ROUND(Primes!$Q$10*V8416,2)","v":{"v":1.3,"d":"1.30"}},0,{"v":36171.94486340221,"d":"36,172"},{"$f":"'BP Financier'!$G$44*(('BP Financier'!$C$22+'BP Financier'!$D$22+'BP Financier'!$E$22+'BP Financier'!$F$22+'BP Financier'!$G$22)/('BP Financier'!$C$16+'BP Financier'!$C$19+'BP Financier'!$D$16+'BP Financier'!$D$19+'BP Financier'!$E$16+'BP Financier'!$E$19+'BP Financier'!$C$22+'BP Financier'!$D$22+'BP Financier'!$E$22+'BP Financier'!$F$22+'BP Financier'!$F$16+'BP Financier'!$F$19+'BP Financier'!$G$16+'BP Financier'!$G$19+'BP Financier'!$G$22))*$V8416*X8416/(1-$W8416)","v":{"v":4604.164571220676,"d":"4,604"}},{"$f":"'BP Financier'!$G$44*(('BP Financier'!$C$22+'BP Financier'!$D$22+'BP Financier'!$E$22+'BP Financier'!$F$22+'BP Financier'!$G$22)/('BP Financier'!$C$16+'BP Financier'!$C$19+'BP Financier'!$D$16+'BP Financier'!$D$19+'BP Financier'!$E$16+'BP Financier'!$E$19+'BP Financier'!$C$22+'BP Financier'!$D$22+'BP Financier'!$E$22+'BP Financier'!$F$22+'BP Financier'!$F$16+'BP Financier'!$F$19+'BP Financier'!$G$16+'BP Financier'!$G$19+'BP Financier'!$G$22))*$V8416*Y8416/(1-$W8416)","v":{"v":3077.9221719210045,"d":"3,078"}},{"$f":"'BP Financier'!$G$44*(('BP Financier'!$C$22+'BP Financier'!$D$22+'BP Financier'!$E$22+'BP Financier'!$F$22+'BP Financier'!$G$22)/('BP Financier'!$C$16+'BP Financier'!$C$19+'BP Financier'!$D$16+'BP Financier'!$D$19+'BP Financier'!$E$16+'BP Financier'!$E$19+'BP Financier'!$C$22+'BP Financier'!$D$22+'BP Financier'!$E$22+'BP Financier'!$F$22+'BP Financier'!$F$16+'BP Financier'!$F$19+'BP Financier'!$G$16+'BP Financier'!$G$19+'BP Financier'!$G$22))*$V8416*Z8416/(1-$W8416)","v":{"v":24089.192535613147,"d":"24,089"}},{"$f":"'BP Financier'!$G$44*(('BP Financier'!$C$22+'BP Financier'!$D$22+'BP Financier'!$E$22+'BP Financier'!$F$22+'BP Financier'!$G$22)/('BP Financier'!$C$16+'BP Financier'!$C$19+'BP Financier'!$D$16+'BP Financier'!$D$19+'BP Financier'!$E$16+'BP Financier'!$E$19+'BP Financier'!$C$22+'BP Financier'!$D$22+'BP Financier'!$E$22+'BP Financier'!$F$22+'BP Financier'!$F$16+'BP Financier'!$F$19+'BP Financier'!$G$16+'BP Financier'!$G$19+'BP Financier'!$G$22))*$V8416*AA8416/(1-$W8416)","v":{"v":2976.1726786343597,"d":"2,976"}},{"$f":"'BP Financier'!$G$44*(('BP Financier'!$C$22+'BP Financier'!$D$22+'BP Financier'!$E$22+'BP Financier'!$F$22+'BP Financier'!$G$22)/('BP Financier'!$C$16+'BP Financier'!$C$19+'BP Financier'!$D$16+'BP Financier'!$D$19+'BP Financier'!$E$16+'BP Financier'!$E$19+'BP Financier'!$C$22+'BP Financier'!$D$22+'BP Financier'!$E$22+'BP Financier'!$F$22+'BP Financier'!$F$16+'BP Financier'!$F$19+'BP Financier'!$G$16+'BP Financier'!$G$19+'BP Financier'!$G$22))*$V8416*AB8416/(1-$W8416)","v":{"v":1424.4929060130266,"d":"1,424"}},null,{"v":0.01,"d":"1.00%"},{"$f":"Actif!$E$28/100","v":{"v":0.28900000000000003,"d":"28.90%"}},{"$f":"Actif!$E$30/100","v":{"v":0.09050000000000001,"d":"9.05%"}},{"$f":"Actif!$E$31/100","v":{"v":0.0605,"d":"6.05%"}},{"$f":"Actif!$E$32/100","v":{"v":0.47350000000000003,"d":"47.35%"}},{"$f":"Actif!$E$33/100","v":{"v":0.0585,"d":"5.85%"}},{"$f":"Actif!$E$29/100","v":{"v":0.027999999999999997,"d":"2.80%"}}]
[null,"#304",25,2030,"H","A_CAPI",{"v":0.44999999999999996,"d":"0.45"},{"v":0.38999999999999996,"d":"0.39"},0.6,0.6,85,0,{"$f":"ROUND(Primes!$Q$10*V8417,2)","v":{"v":1.3,"d":"1.30"}},0,{"v":36171.94486340221,"d":"36,172"},{"$f":"'BP Financier'!$G$44*(('BP Financier'!$C$22+'BP Financier'!$D$22+'BP Financier'!$E$22+'BP Financier'!$F$22+'BP Financier'!$G$22)/('BP Financier'!$C$16+'BP Financier'!$C$19+'BP Financier'!$D$16+'BP Financier'!$D$19+'BP Financier'!$E$16+'BP Financier'!$E$19+'BP Financier'!$C$22+'BP Financier'!$D$22+'BP Financier'!$E$22+'BP Financier'!$F$22+'BP Financier'!$F$16+'BP Financier'!$F$19+'BP Financier'!$G$16+'BP Financier'!$G$19+'BP Financier'!$G$22))*$V8417*X8417/(1-$W8417)","v":{"v":4604.164571220676,"d":"4,604"}},{"$f":"'BP Financier'!$G$44*(('BP Financier'!$C$22+'BP Financier'!$D$22+'BP Financier'!$E$22+'BP Financier'!$F$22+'BP Financier'!$G$22)/('BP Financier'!$C$16+'BP Financier'!$C$19+'BP Financier'!$D$16+'BP Financier'!$D$19+'BP Financier'!$E$16+'BP Financier'!$E$19+'BP Financier'!$C$22+'BP Financier'!$D$22+'BP Financier'!$E$22+'BP Financier'!$F$22+'BP Financier'!$F$16+'BP Financier'!$F$19+'BP Financier'!$G$16+'BP Financier'!$G$19+'BP Financier'!$G$22))*$V8417*Y8417/(1-$W8417)","v":{"v":3077.9221719210045,"d":"3,078"}},{"$f":"'BP Financier'!$G$44*(('BP Financier'!$C$22+'BP Financier'!$D$22+'BP Financier'!$E$22+'BP Financier'!$F$22+'BP Financier'!$G$22)/('BP Financier'!$C$16+'BP Financier'!$C$19+'BP Financier'!$D$16+'BP Financier'!$D$19+'BP Financier'!$E$16+'BP Financier'!$E$19+'BP Financier'!$C$22+'BP Financier'!$D$22+'BP Financier'!$E$22+'BP Financier'!$F$22+'BP Financier'!$F$16+'BP Financier'!$F$19+'BP Financier'!$G$16+'BP Financier'!$G$19+'BP Financier'!$G$22))*$V8417*Z8417/(1-$W8417)","v":{"v":24089.192535613147,"d":"24,089"}},{"$f":"'BP Financier'!$G$44*(('BP Financier'!$C$22+'BP Financier'!$D$22+'BP Financier'!$E$22+'BP Financier'!$F$22+'BP Financier'!$G$22)/('BP Financier'!$C$16+'BP Financier'!$C$19+'BP Financier'!$D$16+'BP Financier'!$D$19+'BP Financier'!$E$16+'BP Financier'!$E$19+'BP Financier'!$C$22+'BP Financier'!$D$22+'BP Financier'!$E$22+'BP Financier'!$F$22+'BP Financier'!$F$16+'BP Financier'!$F$19+'BP Financier'!$G$16+'BP Financier'!$G$19+'BP Financier'!$G$22))*$V8417*AA8417/(1-$W8417)","v":{"v":2976.1726786343597,"d":"2,976"}},{"$f":"'BP Financier'!$G$44*(('BP Financier'!$C$22+'BP Financier'!$D$22+'BP Financier'!$E$22+'BP Financier'!$F$22+'BP Financier'!$G$22)/('BP Financier'!$C$16+'BP Financier'!$C$19+'BP Financier'!$D$16+'BP Financier'!$D$19+'BP Financier'!$E$16+'BP Financier'!$E$19+'BP Financier'!$C$22+'BP Financier'!$D$22+'BP Financier'!$E$22+'BP Financier'!$F$22+'BP Financier'!$F$16+'BP Financier'!$F$19+'BP Financier'!$G$16+'BP Financier'!$G$19+'BP Financier'!$G$22))*$V8417*AB8417/(1-$W8417)","v":{"v":1424.4929060130266,"d":"1,424"}},null,{"v":0.01,"d":"1.00%"},{"$f":"Actif!$E$28/100","v":{"v":0.28900000000000003,"d":"28.90%"}},{"$f":"Actif!$E$30/100","v":{"v":0.09050000000000001,"d":"9.05%"}},{"$f":"Actif!$E$31/100","v":{"v":0.0605,"d":"6.05%"}},{"$f":"Actif!$E$32/100","v":{"v":0.47350000000000003,"d":"47.35%"}},{"$f":"Actif!$E$33/100","v":{"v":0.0585,"d":"5.85%"}},{"$f":"Actif!$E$29/100","v":{"v":0.027999999999999997,"d":"2.80%"}}]
[null,"#305",25,2031,"H","A_CAPI",{"v":0.44999999999999996,"d":"0.45"},{"v":0.38999999999999996,"d":"0.39"},0.6,0.6,85,0,{"$f":"ROUND(Primes!$Q$10*V8418,2)","v":{"v":1.3,"d":"1.30"}},0,{"v":36171.94486340221,"d":"36,172"},{"$f":"'BP Financier'!$G$44*(('BP Financier'!$C$22+'BP Financier'!$D$22+'BP Financier'!$E$22+'BP Financier'!$F$22+'BP Financier'!$G$22)/('BP Financier'!$C$16+'BP Financier'!$C$19+'BP Financier'!$D$16+'BP Financier'!$D$19+'BP Financier'!$E$16+'BP Financier'!$E$19+'BP Financier'!$C$22+'BP Financier'!$D$22+'BP Financier'!$E$22+'BP Financier'!$F$22+'BP Financier'!$F$16+'BP Financier'!$F$19+'BP Financier'!$G$16+'BP Financier'!$G$19+'BP Financier'!$G$22))*$V8418*X8418/(1-$W8418)","v":{"v":4604.164571220676,"d":"4,604"}},{"$f":"'BP Financier'!$G$44*(('BP Financier'!$C$22+'BP Financier'!$D$22+'BP Financier'!$E$22+'BP Financier'!$F$22+'BP Financier'!$G$22)/('BP Financier'!$C$16+'BP Financier'!$C$19+'BP Financier'!$D$16+'BP Financier'!$D$19+'BP Financier'!$E$16+'BP Financier'!$E$19+'BP Financier'!$C$22+'BP Financier'!$D$22+'BP Financier'!$E$22+'BP Financier'!$F$22+'BP Financier'!$F$16+'BP Financier'!$F$19+'BP Financier'!$G$16+'BP Financier'!$G$19+'BP Financier'!$G$22))*$V8418*Y8418/(1-$W8418)","v":{"v":3077.9221719210045,"d":"3,078"}},{"$f":"'BP Financier'!$G$44*(('BP Financier'!$C$22+'BP Financier'!$D$22+'BP Financier'!$E$22+'BP Financier'!$F$22+'BP Financier'!$G$22)/('BP Financier'!$C$16+'BP Financier'!$C$19+'BP Financier'!$D$16+'BP Financier'!$D$19+'BP Financier'!$E$16+'BP Financier'!$E$19+'BP Financier'!$C$22+'BP Financier'!$D$22+'BP Financier'!$E$22+'BP Financier'!$F$22+'BP Financier'!$F$16+'BP Financier'!$F$19+'BP Financier'!$G$16+'BP Financier'!$G$19+'BP Financier'!$G$22))*$V8418*Z8418/(1-$W8418)","v":{"v":24089.192535613147,"d":"24,089"}},{"$f":"'BP Financier'!$G$44*(('BP Financier'!$C$22+'BP Financier'!$D$22+'BP Financier'!$E$22+'BP Financier'!$F$22+'BP Financier'!$G$22)/('BP Financier'!$C$16+'BP Financier'!$C$19+'BP Financier'!$D$16+'BP Financier'!$D$19+'BP Financier'!$E$16+'BP Financier'!$E$19+'BP Financier'!$C$22+'BP Financier'!$D$22+'BP Financier'!$E$22+'BP Financier'!$F$22+'BP Financier'!$F$16+'BP Financier'!$F$19+'BP Financier'!$G$16+'BP Financier'!$G$19+'BP Financier'!$G$22))*$V8418*AA8418/(1-$W8418)","v":{"v":2976.1726786343597,"d":"2,976"}},{"$f":"'BP Financier'!$G$44*(('BP Financier'!$C$22+'BP Financier'!$D$22+'BP Financier'!$E$22+'BP Financier'!$F$22+'BP Financier'!$G$22)/('BP Financier'!$C$16+'BP Financier'!$C$19+'BP Financier'!$D$16+'BP Financier'!$D$19+'BP Financier'!$E$16+'BP Financier'!$E$19+'BP Financier'!$C$22+'BP Financier'!$D$22+'BP Financier'!$E$22+'BP Financier'!$F$22+'BP Financier'!$F$16+'BP Financier'!$F$19+'BP Financier'!$G$16+'BP Financier'!$G$19+'BP Financier'!$G$22))*$V8418*AB8418/(1-$W8418)","v":{"v":1424.4929060130266,"d":"1,424"}},null,{"v":0.01,"d":"1.00%"},{"$f":"Actif!$E$28/100","v":{"v":0.28900000000000003,"d":"28.90%"}},{"$f":"Actif!$E$30/100","v":{"v":0.09050000000000001,"d":"9.05%"}},{"$f":"Actif!$E$31/100","v":{"v":0.0605,"d":"6.05%"}},{"$f":"Actif!$E$32/100","v":{"v":0.47350000000000003,"d":"47.35%"}},{"$f":"Actif!$E$33/100","v":{"v":0.0585,"d":"5.85%"}},{"$f":"Actif!$E$29/100","v":{"v":0.027999999999999997,"d":"2.80%"}}]
[null,"#306",26,2026,"F","A_CAPI",{"v":0.44999999999999996,"d":"0.45"},{"v":0.38999999999999996,"d":"0.39"},0.6,0.6,85,0,{"$f":"ROUND(Primes!$Q$10*V8419,2)","v":0.78},0,{"v":21703.166918041326,"d":"21,703"},{"$f":"'BP Financier'!$G$44*(('BP Financier'!$C$22+'BP Financier'!$D$22+'BP Financier'!$E$22+'BP Financier'!$F$22+'BP Financier'!$G$22)/('BP Financier'!$C$16+'BP Financier'!$C$19+'BP Financier'!$D$16+'BP Financier'!$D$19+'BP Financier'!$E$16+'BP Financier'!$E$19+'BP Financier'!$C$22+'BP Financier'!$D$22+'BP Financier'!$E$22+'BP Financier'!$F$22+'BP Financier'!$F$16+'BP Financier'!$F$19+'BP Financier'!$G$16+'BP Financier'!$G$19+'BP Financier'!$G$22))*$V8419*X8419/(1-$W8419)","v":{"v":2762.4987427324054,"d":"2,762"}},{"$f":"'BP Financier'!$G$44*(('BP Financier'!$C$22+'BP Financier'!$D$22+'BP Financier'!$E$22+'BP Financier'!$F$22+'BP Financier'!$G$22)/('BP Financier'!$C$16+'BP Financier'!$C$19+'BP Financier'!$D$16+'BP Financier'!$D$19+'BP Financier'!$E$16+'BP Financier'!$E$19+'BP Financier'!$C$22+'BP Financier'!$D$22+'BP Financier'!$E$22+'BP Financier'!$F$22+'BP Financier'!$F$16+'BP Financier'!$F$19+'BP Financier'!$G$16+'BP Financier'!$G$19+'BP Financier'!$G$22))*$V8419*Y8419/(1-$W8419)","v":{"v":1846.7533031526023,"d":"1,847"}},{"$f":"'BP Financier'!$G$44*(('BP Financier'!$C$22+'BP Financier'!$D$22+'BP Financier'!$E$22+'BP Financier'!$F$22+'BP Financier'!$G$22)/('BP Financier'!$C$16+'BP Financier'!$C$19+'BP Financier'!$D$16+'BP Financier'!$D$19+'BP Financier'!$E$16+'BP Financier'!$E$19+'BP Financier'!$C$22+'BP Financier'!$D$22+'BP Financier'!$E$22+'BP Financier'!$F$22+'BP Financier'!$F$16+'BP Financier'!$F$19+'BP Financier'!$G$16+'BP Financier'!$G$19+'BP Financier'!$G$22))*$V8419*Z8419/(1-$W8419)","v":{"v":14453.51552136789,"d":"14,454"}},{"$f":"'BP Financier'!$G$44*(('BP Financier'!$C$22+'BP Financier'!$D$22+'BP Financier'!$E$22+'BP Financier'!$F$22+'BP Financier'!$G$22)/('BP Financier'!$C$16+'BP Financier'!$C$19+'BP Financier'!$D$16+'BP Financier'!$D$19+'BP Financier'!$E$16+'BP Financier'!$E$19+'BP Financier'!$C$22+'BP Financier'!$D$22+'BP Financier'!$E$22+'BP Financier'!$F$22+'BP Financier'!$F$16+'BP Financier'!$F$19+'BP Financier'!$G$16+'BP Financier'!$G$19+'BP Financier'!$G$22))*$V8419*AA8419/(1-$W8419)","v":{"v":1785.7036071806158,"d":"1,786"}},{"$f":"'BP Financier'!$G$44*(('BP Financier'!$C$22+'BP Financier'!$D$22+'BP Financier'!$E$22+'BP Financier'!$F$22+'BP Financier'!$G$22)/('BP Financier'!$C$16+'BP Financier'!$C$19+'BP Financier'!$D$16+'BP Financier'!$D$19+'BP Financier'!$E$16+'BP Financier'!$E$19+'BP Financier'!$C$22+'BP Financier'!$D$22+'BP Financier'!$E$22+'BP Financier'!$F$22+'BP Financier'!$F$16+'BP Financier'!$F$19+'BP Financier'!$G$16+'BP Financier'!$G$19+'BP Financier'!$G$22))*$V8419*AB8419/(1-$W8419)","v":{"v":854.6957436078159,"d":"855"}},null,{"v":0.006,"d":"0.60%"},{"$f":"Actif!$E$28/100","v":{"v":0.28900000000000003,"d":"28.90%"}},{"$f":"Actif!$E$30/100","v":{"v":0.09050000000000001,"d":"9.05%"}},{"$f":"Actif!$E$31/100","v":{"v":0.0605,"d":"6.05%"}},{"$f":"Actif!$E$32/100","v":{"v":0.47350000000000003,"d":"47.35%"}},{"$f":"Actif!$E$33/100","v":{"v":0.0585,"d":"5.85%"}},{"$f":"Actif!$E$29/100","v":{"v":0.027999999999999997,"d":"2.80%"}}]
[null,"#307",26,2028,"F","A_CAPI",{"v":0.44999999999999996,"d":"0.45"},{"v":0.38999999999999996,"d":"0.39"},0.6,0.6,85,0,{"$f":"ROUND(Primes!$Q$10*V8420,2)","v":0.78},0,{"v":21703.166918041326,"d":"21,703"},{"$f":"'BP Financier'!$G$44*(('BP Financier'!$C$22+'BP Financier'!$D$22+'BP Financier'!$E$22+'BP Financier'!$F$22+'BP Financier'!$G$22)/('BP Financier'!$C$16+'BP Financier'!$C$19+'BP Financier'!$D$16+'BP Financier'!$D$19+'BP Financier'!$E$16+'BP Financier'!$E$19+'BP Financier'!$C$22+'BP Financier'!$D$22+'BP Financier'!$E$22+'BP Financier'!$F$22+'BP Financier'!$F$16+'BP Financier'!$F$19+'BP Financier'!$G$16+'BP Financier'!$G$19+'BP Financier'!$G$22))*$V8420*X8420/(1-$W8420)","v":{"v":2762.4987427324054,"d":"2,762"}},{"$f":"'BP Financier'!$G$44*(('BP Financier'!$C$22+'BP Financier'!$D$22+'BP Financier'!$E$22+'BP Financier'!$F$22+'BP Financier'!$G$22)/('BP Financier'!$C$16+'BP Financier'!$C$19+'BP Financier'!$D$16+'BP Financier'!$D$19+'BP Financier'!$E$16+'BP Financier'!$E$19+'BP Financier'!$C$22+'BP Financier'!$D$22+'BP Financier'!$E$22+'BP Financier'!$F$22+'BP Financier'!$F$16+'BP Financier'!$F$19+'BP Financier'!$G$16+'BP Financier'!$G$19+'BP Financier'!$G$22))*$V8420*Y8420/(1-$W8420)","v":{"v":1846.7533031526023,"d":"1,847"}},{"$f":"'BP Financier'!$G$44*(('BP Financier'!$C$22+'BP Financier'!$D$22+'BP Financier'!$E$22+'BP Financier'!$F$22+'BP Financier'!$G$22)/('BP Financier'!$C$16+'BP Financier'!$C$19+'BP Financier'!$D$16+'BP Financier'!$D$19+'BP Financier'!$E$16+'BP Financier'!$E$19+'BP Financier'!$C$22+'BP Financier'!$D$22+'BP Financier'!$E$22+'BP Financier'!$F$22+'BP Financier'!$F$16+'BP Financier'!$F$19+'BP Financier'!$G$16+'BP Financier'!$G$19+'BP Financier'!$G$22))*$V8420*Z8420/(1-$W8420)","v":{"v":14453.51552136789,"d":"14,454"}},{"$f":"'BP Financier'!$G$44*(('BP Financier'!$C$22+'BP Financier'!$D$22+'BP Financier'!$E$22+'BP Financier'!$F$22+'BP Financier'!$G$22)/('BP Financier'!$C$16+'BP Financier'!$C$19+'BP Financier'!$D$16+'BP Financier'!$D$19+'BP Financier'!$E$16+'BP Financier'!$E$19+'BP Financier'!$C$22+'BP Financier'!$D$22+'BP Financier'!$E$22+'BP Financier'!$F$22+'BP Financier'!$F$16+'BP Financier'!$F$19+'BP Financier'!$G$16+'BP Financier'!$G$19+'BP Financier'!$G$22))*$V8420*AA8420/(1-$W8420)","v":{"v":1785.7036071806158,"d":"1,786"}},{"$f":"'BP Financier'!$G$44*(('BP Financier'!$C$22+'BP Financier'!$D$22+'BP Financier'!$E$22+'BP Financier'!$F$22+'BP Financier'!$G$22)/('BP Financier'!$C$16+'BP Financier'!$C$19+'BP Financier'!$D$16+'BP Financier'!$D$19+'BP Financier'!$E$16+'BP Financier'!$E$19+'BP Financier'!$C$22+'BP Financier'!$D$22+'BP Financier'!$E$22+'BP Financier'!$F$22+'BP Financier'!$F$16+'BP Financier'!$F$19+'BP Financier'!$G$16+'BP Financier'!$G$19+'BP Financier'!$G$22))*$V8420*AB8420/(1-$W8420)","v":{"v":854.6957436078159,"d":"855"}},null,{"v":0.006,"d":"0.60%"},{"$f":"Actif!$E$28/100","v":{"v":0.28900000000000003,"d":"28.90%"}},{"$f":"Actif!$E$30/100","v":{"v":0.09050000000000001,"d":"9.05%"}},{"$f":"Actif!$E$31/100","v":{"v":0.0605,"d":"6.05%"}},{"$f":"Actif!$E$32/100","v":{"v":0.47350000000000003,"d":"47.35%"}},{"$f":"Actif!$E$33/100","v":{"v":0.0585,"d":"5.85%"}},{"$f":"Actif!$E$29/100","v":{"v":0.027999999999999997,"d":"2.80%"}}]
[null,"#308",26,2029,"F","A_CAPI",{"v":0.44999999999999996,"d":"0.45"},{"v":0.38999999999999996,"d":"0.39"},0.6,0.6,85,0,{"$f":"ROUND(Primes!$Q$10*V8421,2)","v":0.78},0,{"v":21703.166918041326,"d":"21,703"},{"$f":"'BP Financier'!$G$44*(('BP Financier'!$C$22+'BP Financier'!$D$22+'BP Financier'!$E$22+'BP Financier'!$F$22+'BP Financier'!$G$22)/('BP Financier'!$C$16+'BP Financier'!$C$19+'BP Financier'!$D$16+'BP Financier'!$D$19+'BP Financier'!$E$16+'BP Financier'!$E$19+'BP Financier'!$C$22+'BP Financier'!$D$22+'BP Financier'!$E$22+'BP Financier'!$F$22+'BP Financier'!$F$16+'BP Financier'!$F$19+'BP Financier'!$G$16+'BP Financier'!$G$19+'BP Financier'!$G$22))*$V8421*X8421/(1-$W8421)","v":{"v":2762.4987427324054,"d":"2,762"}},{"$f":"'BP Financier'!$G$44*(('BP Financier'!$C$22+'BP Financier'!$D$22+'BP Financier'!$E$22+'BP Financier'!$F$22+'BP Financier'!$G$22)/('BP Financier'!$C$16+'BP Financier'!$C$19+'BP Financier'!$D$16+'BP Financier'!$D$19+'BP Financier'!$E$16+'BP Financier'!$E$19+'BP Financier'!$C$22+'BP Financier'!$D$22+'BP Financier'!$E$22+'BP Financier'!$F$22+'BP Financier'!$F$16+'BP Financier'!$F$19+'BP Financier'!$G$16+'BP Financier'!$G$19+'BP Financier'!$G$22))*$V8421*Y8421/(1-$W8421)","v":{"v":1846.7533031526023,"d":"1,847"}},{"$f":"'BP Financier'!$G$44*(('BP Financier'!$C$22+'BP Financier'!$D$22+'BP Financier'!$E$22+'BP Financier'!$F$22+'BP Financier'!$G$22)/('BP Financier'!$C$16+'BP Financier'!$C$19+'BP Financier'!$D$16+'BP Financier'!$D$19+'BP Financier'!$E$16+'BP Financier'!$E$19+'BP Financier'!$C$22+'BP Financier'!$D$22+'BP Financier'!$E$22+'BP Financier'!$F$22+'BP Financier'!$F$16+'BP Financier'!$F$19+'BP Financier'!$G$16+'BP Financier'!$G$19+'BP Financier'!$G$22))*$V8421*Z8421/(1-$W8421)","v":{"v":14453.51552136789,"d":"14,454"}},{"$f":"'BP Financier'!$G$44*(('BP Financier'!$C$22+'BP Financier'!$D$22+'BP Financier'!$E$22+'BP Financier'!$F$22+'BP Financier'!$G$22)/('BP Financier'!$C$16+'BP Financier'!$C$19+'BP Financier'!$D$16+'BP Financier'!$D$19+'BP Financier'!$E$16+'BP Financier'!$E$19+'BP Financier'!$C$22+'BP Financier'!$D$22+'BP Financier'!$E$22+'BP Financier'!$F$22+'BP Financier'!$F$16+'BP Financier'!$F$19+'BP Financier'!$G$16+'BP Financier'!$G$19+'BP Financier'!$G$22))*$V8421*AA8421/(1-$W8421)","v":{"v":1785.7036071806158,"d":"1,786"}},{"$f":"'BP Financier'!$G$44*(('BP Financier'!$C$22+'BP Financier'!$D$22+'BP Financier'!$E$22+'BP Financier'!$F$22+'BP Financier'!$G$22)/('BP Financier'!$C$16+'BP Financier'!$C$19+'BP Financier'!$D$16+'BP Financier'!$D$19+'BP Financier'!$E$16+'BP Financier'!$E$19+'BP Financier'!$C$22+'BP Financier'!$D$22+'BP Financier'!$E$22+'BP Financier'!$F$22+'BP Financier'!$F$16+'BP Financier'!$F$19+'BP Financier'!$G$16+'BP Financier'!$G$19+'BP Financier'!$G$22))*$V8421*AB8421/(1-$W8421)","v":{"v":854.6957436078159,"d":"855"}},null,{"v":0.006,"d":"0.60%"},{"$f":"Actif!$E$28/100","v":{"v":0.28900000000000003,"d":"28.90%"}},{"$f":"Actif!$E$30/100","v":{"v":0.09050000000000001,"d":"9.05%"}},{"$f":"Actif!$E$31/100","v":{"v":0.0605,"d":"6.05%"}},{"$f":"Actif!$E$32/100","v":{"v":0.47350000000000003,"d":"47.35%"}},{"$f":"Actif!$E$33/100","v":{"v":0.0585,"d":"5.85%"}},{"$f":"Actif!$E$29/100","v":{"v":0.027999999999999997,"d":"2.80%"}}]
[null,"#309",26,2030,"F","A_CAPI",{"v":0.44999999999999996,"d":"0.45"},{"v":0.38999999999999996,"d":"0.39"},0.6,0.6,85,0,{"$f":"ROUND(Primes!$Q$10*V8422,2)","v":0.78},0,{"v":21703.166918041326,"d":"21,703"},{"$f":"'BP Financier'!$G$44*(('BP Financier'!$C$22+'BP Financier'!$D$22+'BP Financier'!$E$22+'BP Financier'!$F$22+'BP Financier'!$G$22)/('BP Financier'!$C$16+'BP Financier'!$C$19+'BP Financier'!$D$16+'BP Financier'!$D$19+'BP Financier'!$E$16+'BP Financier'!$E$19+'BP Financier'!$C$22+'BP Financier'!$D$22+'BP Financier'!$E$22+'BP Financier'!$F$22+'BP Financier'!$F$16+'BP Financier'!$F$19+'BP Financier'!$G$16+'BP Financier'!$G$19+'BP Financier'!$G$22))*$V8422*X8422/(1-$W8422)","v":{"v":2762.4987427324054,"d":"2,762"}},{"$f":"'BP Financier'!$G$44*(('BP Financier'!$C$22+'BP Financier'!$D$22+'BP Financier'!$E$22+'BP Financier'!$F$22+'BP Financier'!$G$22)/('BP Financier'!$C$16+'BP Financier'!$C$19+'BP Financier'!$D$16+'BP Financier'!$D$19+'BP Financier'!$E$16+'BP Financier'!$E$19+'BP Financier'!$C$22+'BP Financier'!$D$22+'BP Financier'!$E$22+'BP Financier'!$F$22+'BP Financier'!$F$16+'BP Financier'!$F$19+'BP Financier'!$G$16+'BP Financier'!$G$19+'BP Financier'!$G$22))*$V8422*Y8422/(1-$W8422)","v":{"v":1846.7533031526023,"d":"1,847"}},{"$f":"'BP Financier'!$G$44*(('BP Financier'!$C$22+'BP Financier'!$D$22+'BP Financier'!$E$22+'BP Financier'!$F$22+'BP Financier'!$G$22)/('BP Financier'!$C$16+'BP Financier'!$C$19+'BP Financier'!$D$16+'BP Financier'!$D$19+'BP Financier'!$E$16+'BP Financier'!$E$19+'BP Financier'!$C$22+'BP Financier'!$D$22+'BP Financier'!$E$22+'BP Financier'!$F$22+'BP Financier'!$F$16+'BP Financier'!$F$19+'BP Financier'!$G$16+'BP Financier'!$G$19+'BP Financier'!$G$22))*$V8422*Z8422/(1-$W8422)","v":{"v":14453.51552136789,"d":"14,454"}},{"$f":"'BP Financier'!$G$44*(('BP Financier'!$C$22+'BP Financier'!$D$22+'BP Financier'!$E$22+'BP Financier'!$F$22+'BP Financier'!$G$22)/('BP Financier'!$C$16+'BP Financier'!$C$19+'BP Financier'!$D$16+'BP Financier'!$D$19+'BP Financier'!$E$16+'BP Financier'!$E$19+'BP Financier'!$C$22+'BP Financier'!$D$22+'BP Financier'!$E$22+'BP Financier'!$F$22+'BP Financier'!$F$16+'BP Financier'!$F$19+'BP Financier'!$G$16+'BP Financier'!$G$19+'BP Financier'!$G$22))*$V8422*AA8422/(1-$W8422)","v":{"v":1785.7036071806158,"d":"1,786"}},{"$f":"'BP Financier'!$G$44*(('BP Financier'!$C$22+'BP Financier'!$D$22+'BP Financier'!$E$22+'BP Financier'!$F$22+'BP Financier'!$G$22)/('BP Financier'!$C$16+'BP Financier'!$C$19+'BP Financier'!$D$16+'BP Financier'!$D$19+'BP Financier'!$E$16+'BP Financier'!$E$19+'BP Financier'!$C$22+'BP Financier'!$D$22+'BP Financier'!$E$22+'BP Financier'!$F$22+'BP Financier'!$F$16+'BP Financier'!$F$19+'BP Financier'!$G$16+'BP Financier'!$G$19+'BP Financier'!$G$22))*$V8422*AB8422/(1-$W8422)","v":{"v":854.6957436078159,"d":"855"}},null,{"v":0.006,"d":"0.60%"},{"$f":"Actif!$E$28/100","v":{"v":0.28900000000000003,"d":"28.90%"}},{"$f":"Actif!$E$30/100","v":{"v":0.09050000000000001,"d":"9.05%"}},{"$f":"Actif!$E$31/100","v":{"v":0.0605,"d":"6.05%"}},{"$f":"Actif!$E$32/100","v":{"v":0.47350000000000003,"d":"47.35%"}},{"$f":"Actif!$E$33/100","v":{"v":0.0585,"d":"5.85%"}},{"$f":"Actif!$E$29/100","v":{"v":0.027999999999999997,"d":"2.80%"}}]
[null,"#310",26,2031,"F","A_CAPI",{"v":0.44999999999999996,"d":"0.45"},{"v":0.38999999999999996,"d":"0.39"},0.6,0.6,85,0,{"$f":"ROUND(Primes!$Q$10*V8423,2)","v":0.78},0,{"v":21703.166918041326,"d":"21,703"},{"$f":"'BP Financier'!$G$44*(('BP Financier'!$C$22+'BP Financier'!$D$22+'BP Financier'!$E$22+'BP Financier'!$F$22+'BP Financier'!$G$22)/('BP Financier'!$C$16+'BP Financier'!$C$19+'BP Financier'!$D$16+'BP Financier'!$D$19+'BP Financier'!$E$16+'BP Financier'!$E$19+'BP Financier'!$C$22+'BP Financier'!$D$22+'BP Financier'!$E$22+'BP Financier'!$F$22+'BP Financier'!$F$16+'BP Financier'!$F$19+'BP Financier'!$G$16+'BP Financier'!$G$19+'BP Financier'!$G$22))*$V8423*X8423/(1-$W8423)","v":{"v":2762.4987427324054,"d":"2,762"}},{"$f":"'BP Financier'!$G$44*(('BP Financier'!$C$22+'BP Financier'!$D$22+'BP Financier'!$E$22+'BP Financier'!$F$22+'BP Financier'!$G$22)/('BP Financier'!$C$16+'BP Financier'!$C$19+'BP Financier'!$D$16+'BP Financier'!$D$19+'BP Financier'!$E$16+'BP Financier'!$E$19+'BP Financier'!$C$22+'BP Financier'!$D$22+'BP Financier'!$E$22+'BP Financier'!$F$22+'BP Financier'!$F$16+'BP Financier'!$F$19+'BP Financier'!$G$16+'BP Financier'!$G$19+'BP Financier'!$G$22))*$V8423*Y8423/(1-$W8423)","v":{"v":1846.7533031526023,"d":"1,847"}},{"$f":"'BP Financier'!$G$44*(('BP Financier'!$C$22+'BP Financier'!$D$22+'BP Financier'!$E$22+'BP Financier'!$F$22+'BP Financier'!$G$22)/('BP Financier'!$C$16+'BP Financier'!$C$19+'BP Financier'!$D$16+'BP Financier'!$D$19+'BP Financier'!$E$16+'BP Financier'!$E$19+'BP Financier'!$C$22+'BP Financier'!$D$22+'BP Financier'!$E$22+'BP Financier'!$F$22+'BP Financier'!$F$16+'BP Financier'!$F$19+'BP Financier'!$G$16+'BP Financier'!$G$19+'BP Financier'!$G$22))*$V8423*Z8423/(1-$W8423)","v":{"v":14453.51552136789,"d":"14,454"}},{"$f":"'BP Financier'!$G$44*(('BP Financier'!$C$22+'BP Financier'!$D$22+'BP Financier'!$E$22+'BP Financier'!$F$22+'BP Financier'!$G$22)/('BP Financier'!$C$16+'BP Financier'!$C$19+'BP Financier'!$D$16+'BP Financier'!$D$19+'BP Financier'!$E$16+'BP Financier'!$E$19+'BP Financier'!$C$22+'BP Financier'!$D$22+'BP Financier'!$E$22+'BP Financier'!$F$22+'BP Financier'!$F$16+'BP Financier'!$F$19+'BP Financier'!$G$16+'BP Financier'!$G$19+'BP Financier'!$G$22))*$V8423*AA8423/(1-$W8423)","v":{"v":1785.7036071806158,"d":"1,786"}},{"$f":"'BP Financier'!$G$44*(('BP Financier'!$C$22+'BP Financier'!$D$22+'BP Financier'!$E$22+'BP Financier'!$F$22+'BP Financier'!$G$22)/('BP Financier'!$C$16+'BP Financier'!$C$19+'BP Financier'!$D$16+'BP Financier'!$D$19+'BP Financier'!$E$16+'BP Financier'!$E$19+'BP Financier'!$C$22+'BP Financier'!$D$22+'BP Financier'!$E$22+'BP Financier'!$F$22+'BP Financier'!$F$16+'BP Financier'!$F$19+'BP Financier'!$G$16+'BP Financier'!$G$19+'BP Financier'!$G$22))*$V8423*AB8423/(1-$W8423)","v":{"v":854.6957436078159,"d":"855"}},null,{"v":0.006,"d":"0.60%"},{"$f":"Actif!$E$28/100","v":{"v":0.28900000000000003,"d":"28.90%"}},{"$f":"Actif!$E$30/100","v":{"v":0.09050000000000001,"d":"9.05%"}},{"$f":"Actif!$E$31/100","v":{"v":0.0605,"d":"6.05%"}},{"$f":"Actif!$E$32/100","v":{"v":0.47350000000000003,"d":"47.35%"}},{"$f":"Actif!$E$33/100","v":{"v":0.0585,"d":"5.85%"}},{"$f":"Actif!$E$29/100","v":{"v":0.027999999999999997,"d":"2.80%"}}]
[null,"#311",27,2026,"H","A_CAPI",{"v":0.44999999999999996,"d":"0.45"},{"v":0.38999999999999996,"d":"0.39"},0.6,0.6,85,0,{"$f":"ROUND(Primes!$Q$10*V8424,2)","v":0.78},0,{"v":21703.166918041326,"d":"21,703"},{"$f":"'BP Financier'!$G$44*(('BP Financier'!$C$22+'BP Financier'!$D$22+'BP Financier'!$E$22+'BP Financier'!$F$22+'BP Financier'!$G$22)/('BP Financier'!$C$16+'BP Financier'!$C$19+'BP Financier'!$D$16+'BP Financier'!$D$19+'BP Financier'!$E$16+'BP Financier'!$E$19+'BP Financier'!$C$22+'BP Financier'!$D$22+'BP Financier'!$E$22+'BP Financier'!$F$22+'BP Financier'!$F$16+'BP Financier'!$F$19+'BP Financier'!$G$16+'BP Financier'!$G$19+'BP Financier'!$G$22))*$V8424*X8424/(1-$W8424)","v":{"v":2762.4987427324054,"d":"2,762"}},{"$f":"'BP Financier'!$G$44*(('BP Financier'!$C$22+'BP Financier'!$D$22+'BP Financier'!$E$22+'BP Financier'!$F$22+'BP Financier'!$G$22)/('BP Financier'!$C$16+'BP Financier'!$C$19+'BP Financier'!$D$16+'BP Financier'!$D$19+'BP Financier'!$E$16+'BP Financier'!$E$19+'BP Financier'!$C$22+'BP Financier'!$D$22+'BP Financier'!$E$22+'BP Financier'!$F$22+'BP Financier'!$F$16+'BP Financier'!$F$19+'BP Financier'!$G$16+'BP Financier'!$G$19+'BP Financier'!$G$22))*$V8424*Y8424/(1-$W8424)","v":{"v":1846.7533031526023,"d":"1,847"}},{"$f":"'BP Financier'!$G$44*(('BP Financier'!$C$22+'BP Financier'!$D$22+'BP Financier'!$E$22+'BP Financier'!$F$22+'BP Financier'!$G$22)/('BP Financier'!$C$16+'BP Financier'!$C$19+'BP Financier'!$D$16+'BP Financier'!$D$19+'BP Financier'!$E$16+'BP Financier'!$E$19+'BP Financier'!$C$22+'BP Financier'!$D$22+'BP Financier'!$E$22+'BP Financier'!$F$22+'BP Financier'!$F$16+'BP Financier'!$F$19+'BP Financier'!$G$16+'BP Financier'!$G$19+'BP Financier'!$G$22))*$V8424*Z8424/(1-$W8424)","v":{"v":14453.51552136789,"d":"14,454"}},{"$f":"'BP Financier'!$G$44*(('BP Financier'!$C$22+'BP Financier'!$D$22+'BP Financier'!$E$22+'BP Financier'!$F$22+'BP Financier'!$G$22)/('BP Financier'!$C$16+'BP Financier'!$C$19+'BP Financier'!$D$16+'BP Financier'!$D$19+'BP Financier'!$E$16+'BP Financier'!$E$19+'BP Financier'!$C$22+'BP Financier'!$D$22+'BP Financier'!$E$22+'BP Financier'!$F$22+'BP Financier'!$F$16+'BP Financier'!$F$19+'BP Financier'!$G$16+'BP Financier'!$G$19+'BP Financier'!$G$22))*$V8424*AA8424/(1-$W8424)","v":{"v":1785.7036071806158,"d":"1,786"}},{"$f":"'BP Financier'!$G$44*(('BP Financier'!$C$22+'BP Financier'!$D$22+'BP Financier'!$E$22+'BP Financier'!$F$22+'BP Financier'!$G$22)/('BP Financier'!$C$16+'BP Financier'!$C$19+'BP Financier'!$D$16+'BP Financier'!$D$19+'BP Financier'!$E$16+'BP Financier'!$E$19+'BP Financier'!$C$22+'BP Financier'!$D$22+'BP Financier'!$E$22+'BP Financier'!$F$22+'BP Financier'!$F$16+'BP Financier'!$F$19+'BP Financier'!$G$16+'BP Financier'!$G$19+'BP Financier'!$G$22))*$V8424*AB8424/(1-$W8424)","v":{"v":854.6957436078159,"d":"855"}},null,{"v":0.006,"d":"0.60%"},{"$f":"Actif!$E$28/100","v":{"v":0.28900000000000003,"d":"28.90%"}},{"$f":"Actif!$E$30/100","v":{"v":0.09050000000000001,"d":"9.05%"}},{"$f":"Actif!$E$31/100","v":{"v":0.0605,"d":"6.05%"}},{"$f":"Actif!$E$32/100","v":{"v":0.47350000000000003,"d":"47.35%"}},{"$f":"Actif!$E$33/100","v":{"v":0.0585,"d":"5.85%"}},{"$f":"Actif!$E$29/100","v":{"v":0.027999999999999997,"d":"2.80%"}}]
[null,"#312",27,2028,"H","A_CAPI",{"v":0.44999999999999996,"d":"0.45"},{"v":0.38999999999999996,"d":"0.39"},0.6,0.6,85,0,{"$f":"ROUND(Primes!$Q$10*V8425,2)","v":0.78},0,{"v":21703.166918041326,"d":"21,703"},{"$f":"'BP Financier'!$G$44*(('BP Financier'!$C$22+'BP Financier'!$D$22+'BP Financier'!$E$22+'BP Financier'!$F$22+'BP Financier'!$G$22)/('BP Financier'!$C$16+'BP Financier'!$C$19+'BP Financier'!$D$16+'BP Financier'!$D$19+'BP Financier'!$E$16+'BP Financier'!$E$19+'BP Financier'!$C$22+'BP Financier'!$D$22+'BP Financier'!$E$22+'BP Financier'!$F$22+'BP Financier'!$F$16+'BP Financier'!$F$19+'BP Financier'!$G$16+'BP Financier'!$G$19+'BP Financier'!$G$22))*$V8425*X8425/(1-$W8425)","v":{"v":2762.4987427324054,"d":"2,762"}},{"$f":"'BP Financier'!$G$44*(('BP Financier'!$C$22+'BP Financier'!$D$22+'BP Financier'!$E$22+'BP Financier'!$F$22+'BP Financier'!$G$22)/('BP Financier'!$C$16+'BP Financier'!$C$19+'BP Financier'!$D$16+'BP Financier'!$D$19+'BP Financier'!$E$16+'BP Financier'!$E$19+'BP Financier'!$C$22+'BP Financier'!$D$22+'BP Financier'!$E$22+'BP Financier'!$F$22+'BP Financier'!$F$16+'BP Financier'!$F$19+'BP Financier'!$G$16+'BP Financier'!$G$19+'BP Financier'!$G$22))*$V8425*Y8425/(1-$W8425)","v":{"v":1846.7533031526023,"d":"1,847"}},{"$f":"'BP Financier'!$G$44*(('BP Financier'!$C$22+'BP Financier'!$D$22+'BP Financier'!$E$22+'BP Financier'!$F$22+'BP Financier'!$G$22)/('BP Financier'!$C$16+'BP Financier'!$C$19+'BP Financier'!$D$16+'BP Financier'!$D$19+'BP Financier'!$E$16+'BP Financier'!$E$19+'BP Financier'!$C$22+'BP Financier'!$D$22+'BP Financier'!$E$22+'BP Financier'!$F$22+'BP Financier'!$F$16+'BP Financier'!$F$19+'BP Financier'!$G$16+'BP Financier'!$G$19+'BP Financier'!$G$22))*$V8425*Z8425/(1-$W8425)","v":{"v":14453.51552136789,"d":"14,454"}},{"$f":"'BP Financier'!$G$44*(('BP Financier'!$C$22+'BP Financier'!$D$22+'BP Financier'!$E$22+'BP Financier'!$F$22+'BP Financier'!$G$22)/('BP Financier'!$C$16+'BP Financier'!$C$19+'BP Financier'!$D$16+'BP Financier'!$D$19+'BP Financier'!$E$16+'BP Financier'!$E$19+'BP Financier'!$C$22+'BP Financier'!$D$22+'BP Financier'!$E$22+'BP Financier'!$F$22+'BP Financier'!$F$16+'BP Financier'!$F$19+'BP Financier'!$G$16+'BP Financier'!$G$19+'BP Financier'!$G$22))*$V8425*AA8425/(1-$W8425)","v":{"v":1785.7036071806158,"d":"1,786"}},{"$f":"'BP Financier'!$G$44*(('BP Financier'!$C$22+'BP Financier'!$D$22+'BP Financier'!$E$22+'BP Financier'!$F$22+'BP Financier'!$G$22)/('BP Financier'!$C$16+'BP Financier'!$C$19+'BP Financier'!$D$16+'BP Financier'!$D$19+'BP Financier'!$E$16+'BP Financier'!$E$19+'BP Financier'!$C$22+'BP Financier'!$D$22+'BP Financier'!$E$22+'BP Financier'!$F$22+'BP Financier'!$F$16+'BP Financier'!$F$19+'BP Financier'!$G$16+'BP Financier'!$G$19+'BP Financier'!$G$22))*$V8425*AB8425/(1-$W8425)","v":{"v":854.6957436078159,"d":"855"}},null,{"v":0.006,"d":"0.60%"},{"$f":"Actif!$E$28/100","v":{"v":0.28900000000000003,"d":"28.90%"}},{"$f":"Actif!$E$30/100","v":{"v":0.09050000000000001,"d":"9.05%"}},{"$f":"Actif!$E$31/100","v":{"v":0.0605,"d":"6.05%"}},{"$f":"Actif!$E$32/100","v":{"v":0.47350000000000003,"d":"47.35%"}},{"$f":"Actif!$E$33/100","v":{"v":0.0585,"d":"5.85%"}},{"$f":"Actif!$E$29/100","v":{"v":0.027999999999999997,"d":"2.80%"}}]
[null,"#313",27,2029,"H","A_CAPI",{"v":0.44999999999999996,"d":"0.45"},{"v":0.38999999999999996,"d":"0.39"},0.6,0.6,85,0,{"$f":"ROUND(Primes!$Q$10*V8426,2)","v":0.78},0,{"v":21703.166918041326,"d":"21,703"},{"$f":"'BP Financier'!$G$44*(('BP Financier'!$C$22+'BP Financier'!$D$22+'BP Financier'!$E$22+'BP Financier'!$F$22+'BP Financier'!$G$22)/('BP Financier'!$C$16+'BP Financier'!$C$19+'BP Financier'!$D$16+'BP Financier'!$D$19+'BP Financier'!$E$16+'BP Financier'!$E$19+'BP Financier'!$C$22+'BP Financier'!$D$22+'BP Financier'!$E$22+'BP Financier'!$F$22+'BP Financier'!$F$16+'BP Financier'!$F$19+'BP Financier'!$G$16+'BP Financier'!$G$19+'BP Financier'!$G$22))*$V8426*X8426/(1-$W8426)","v":{"v":2762.4987427324054,"d":"2,762"}},{"$f":"'BP Financier'!$G$44*(('BP Financier'!$C$22+'BP Financier'!$D$22+'BP Financier'!$E$22+'BP Financier'!$F$22+'BP Financier'!$G$22)/('BP Financier'!$C$16+'BP Financier'!$C$19+'BP Financier'!$D$16+'BP Financier'!$D$19+'BP Financier'!$E$16+'BP Financier'!$E$19+'BP Financier'!$C$22+'BP Financier'!$D$22+'BP Financier'!$E$22+'BP Financier'!$F$22+'BP Financier'!$F$16+'BP Financier'!$F$19+'BP Financier'!$G$16+'BP Financier'!$G$19+'BP Financier'!$G$22))*$V8426*Y8426/(1-$W8426)","v":{"v":1846.7533031526023,"d":"1,847"}},{"$f":"'BP Financier'!$G$44*(('BP Financier'!$C$22+'BP Financier'!$D$22+'BP Financier'!$E$22+'BP Financier'!$F$22+'BP Financier'!$G$22)/('BP Financier'!$C$16+'BP Financier'!$C$19+'BP Financier'!$D$16+'BP Financier'!$D$19+'BP Financier'!$E$16+'BP Financier'!$E$19+'BP Financier'!$C$22+'BP Financier'!$D$22+'BP Financier'!$E$22+'BP Financier'!$F$22+'BP Financier'!$F$16+'BP Financier'!$F$19+'BP Financier'!$G$16+'BP Financier'!$G$19+'BP Financier'!$G$22))*$V8426*Z8426/(1-$W8426)","v":{"v":14453.51552136789,"d":"14,454"}},{"$f":"'BP Financier'!$G$44*(('BP Financier'!$C$22+'BP Financier'!$D$22+'BP Financier'!$E$22+'BP Financier'!$F$22+'BP Financier'!$G$22)/('BP Financier'!$C$16+'BP Financier'!$C$19+'BP Financier'!$D$16+'BP Financier'!$D$19+'BP Financier'!$E$16+'BP Financier'!$E$19+'BP Financier'!$C$22+'BP Financier'!$D$22+'BP Financier'!$E$22+'BP Financier'!$F$22+'BP Financier'!$F$16+'BP Financier'!$F$19+'BP Financier'!$G$16+'BP Financier'!$G$19+'BP Financier'!$G$22))*$V8426*AA8426/(1-$W8426)","v":{"v":1785.7036071806158,"d":"1,786"}},{"$f":"'BP Financier'!$G$44*(('BP Financier'!$C$22+'BP Financier'!$D$22+'BP Financier'!$E$22+'BP Financier'!$F$22+'BP Financier'!$G$22)/('BP Financier'!$C$16+'BP Financier'!$C$19+'BP Financier'!$D$16+'BP Financier'!$D$19+'BP Financier'!$E$16+'BP Financier'!$E$19+'BP Financier'!$C$22+'BP Financier'!$D$22+'BP Financier'!$E$22+'BP Financier'!$F$22+'BP Financier'!$F$16+'BP Financier'!$F$19+'BP Financier'!$G$16+'BP Financier'!$G$19+'BP Financier'!$G$22))*$V8426*AB8426/(1-$W8426)","v":{"v":854.6957436078159,"d":"855"}},null,{"v":0.006,"d":"0.60%"},{"$f":"Actif!$E$28/100","v":{"v":0.28900000000000003,"d":"28.90%"}},{"$f":"Actif!$E$30/100","v":{"v":0.09050000000000001,"d":"9.05%"}},{"$f":"Actif!$E$31/100","v":{"v":0.0605,"d":"6.05%"}},{"$f":"Actif!$E$32/100","v":{"v":0.47350000000000003,"d":"47.35%"}},{"$f":"Actif!$E$33/100","v":{"v":0.0585,"d":"5.85%"}},{"$f":"Actif!$E$29/100","v":{"v":0.027999999999999997,"d":"2.80%"}}]
[null,"#314",27,2030,"H","A_CAPI",{"v":0.44999999999999996,"d":"0.45"},{"v":0.38999999999999996,"d":"0.39"},0.6,0.6,85,0,{"$f":"ROUND(Primes!$Q$10*V8427,2)","v":0.78},0,{"v":21703.166918041326,"d":"21,703"},{"$f":"'BP Financier'!$G$44*(('BP Financier'!$C$22+'BP Financier'!$D$22+'BP Financier'!$E$22+'BP Financier'!$F$22+'BP Financier'!$G$22)/('BP Financier'!$C$16+'BP Financier'!$C$19+'BP Financier'!$D$16+'BP Financier'!$D$19+'BP Financier'!$E$16+'BP Financier'!$E$19+'BP Financier'!$C$22+'BP Financier'!$D$22+'BP Financier'!$E$22+'BP Financier'!$F$22+'BP Financier'!$F$16+'BP Financier'!$F$19+'BP Financier'!$G$16+'BP Financier'!$G$19+'BP Financier'!$G$22))*$V8427*X8427/(1-$W8427)","v":{"v":2762.4987427324054,"d":"2,762"}},{"$f":"'BP Financier'!$G$44*(('BP Financier'!$C$22+'BP Financier'!$D$22+'BP Financier'!$E$22+'BP Financier'!$F$22+'BP Financier'!$G$22)/('BP Financier'!$C$16+'BP Financier'!$C$19+'BP Financier'!$D$16+'BP Financier'!$D$19+'BP Financier'!$E$16+'BP Financier'!$E$19+'BP Financier'!$C$22+'BP Financier'!$D$22+'BP Financier'!$E$22+'BP Financier'!$F$22+'BP Financier'!$F$16+'BP Financier'!$F$19+'BP Financier'!$G$16+'BP Financier'!$G$19+'BP Financier'!$G$22))*$V8427*Y8427/(1-$W8427)","v":{"v":1846.7533031526023,"d":"1,847"}},{"$f":"'BP Financier'!$G$44*(('BP Financier'!$C$22+'BP Financier'!$D$22+'BP Financier'!$E$22+'BP Financier'!$F$22+'BP Financier'!$G$22)/('BP Financier'!$C$16+'BP Financier'!$C$19+'BP Financier'!$D$16+'BP Financier'!$D$19+'BP Financier'!$E$16+'BP Financier'!$E$19+'BP Financier'!$C$22+'BP Financier'!$D$22+'BP Financier'!$E$22+'BP Financier'!$F$22+'BP Financier'!$F$16+'BP Financier'!$F$19+'BP Financier'!$G$16+'BP Financier'!$G$19+'BP Financier'!$G$22))*$V8427*Z8427/(1-$W8427)","v":{"v":14453.51552136789,"d":"14,454"}},{"$f":"'BP Financier'!$G$44*(('BP Financier'!$C$22+'BP Financier'!$D$22+'BP Financier'!$E$22+'BP Financier'!$F$22+'BP Financier'!$G$22)/('BP Financier'!$C$16+'BP Financier'!$C$19+'BP Financier'!$D$16+'BP Financier'!$D$19+'BP Financier'!$E$16+'BP Financier'!$E$19+'BP Financier'!$C$22+'BP Financier'!$D$22+'BP Financier'!$E$22+'BP Financier'!$F$22+'BP Financier'!$F$16+'BP Financier'!$F$19+'BP Financier'!$G$16+'BP Financier'!$G$19+'BP Financier'!$G$22))*$V8427*AA8427/(1-$W8427)","v":{"v":1785.7036071806158,"d":"1,786"}},{"$f":"'BP Financier'!$G$44*(('BP Financier'!$C$22+'BP Financier'!$D$22+'BP Financier'!$E$22+'BP Financier'!$F$22+'BP Financier'!$G$22)/('BP Financier'!$C$16+'BP Financier'!$C$19+'BP Financier'!$D$16+'BP Financier'!$D$19+'BP Financier'!$E$16+'BP Financier'!$E$19+'BP Financier'!$C$22+'BP Financier'!$D$22+'BP Financier'!$E$22+'BP Financier'!$F$22+'BP Financier'!$F$16+'BP Financier'!$F$19+'BP Financier'!$G$16+'BP Financier'!$G$19+'BP Financier'!$G$22))*$V8427*AB8427/(1-$W8427)","v":{"v":854.6957436078159,"d":"855"}},null,{"v":0.006,"d":"0.60%"},{"$f":"Actif!$E$28/100","v":{"v":0.28900000000000003,"d":"28.90%"}},{"$f":"Actif!$E$30/100","v":{"v":0.09050000000000001,"d":"9.05%"}},{"$f":"Actif!$E$31/100","v":{"v":0.0605,"d":"6.05%"}},{"$f":"Actif!$E$32/100","v":{"v":0.47350000000000003,"d":"47.35%"}},{"$f":"Actif!$E$33/100","v":{"v":0.0585,"d":"5.85%"}},{"$f":"Actif!$E$29/100","v":{"v":0.027999999999999997,"d":"2.80%"}}]
[null,"#315",27,2031,"H","A_CAPI",{"v":0.44999999999999996,"d":"0.45"},{"v":0.38999999999999996,"d":"0.39"},0.6,0.6,85,0,{"$f":"ROUND(Primes!$Q$10*V8428,2)","v":0.78},0,{"v":21703.166918041326,"d":"21,703"},{"$f":"'BP Financier'!$G$44*(('BP Financier'!$C$22+'BP Financier'!$D$22+'BP Financier'!$E$22+'BP Financier'!$F$22+'BP Financier'!$G$22)/('BP Financier'!$C$16+'BP Financier'!$C$19+'BP Financier'!$D$16+'BP Financier'!$D$19+'BP Financier'!$E$16+'BP Financier'!$E$19+'BP Financier'!$C$22+'BP Financier'!$D$22+'BP Financier'!$E$22+'BP Financier'!$F$22+'BP Financier'!$F$16+'BP Financier'!$F$19+'BP Financier'!$G$16+'BP Financier'!$G$19+'BP Financier'!$G$22))*$V8428*X8428/(1-$W8428)","v":{"v":2762.4987427324054,"d":"2,762"}},{"$f":"'BP Financier'!$G$44*(('BP Financier'!$C$22+'BP Financier'!$D$22+'BP Financier'!$E$22+'BP Financier'!$F$22+'BP Financier'!$G$22)/('BP Financier'!$C$16+'BP Financier'!$C$19+'BP Financier'!$D$16+'BP Financier'!$D$19+'BP Financier'!$E$16+'BP Financier'!$E$19+'BP Financier'!$C$22+'BP Financier'!$D$22+'BP Financier'!$E$22+'BP Financier'!$F$22+'BP Financier'!$F$16+'BP Financier'!$F$19+'BP Financier'!$G$16+'BP Financier'!$G$19+'BP Financier'!$G$22))*$V8428*Y8428/(1-$W8428)","v":{"v":1846.7533031526023,"d":"1,847"}},{"$f":"'BP Financier'!$G$44*(('BP Financier'!$C$22+'BP Financier'!$D$22+'BP Financier'!$E$22+'BP Financier'!$F$22+'BP Financier'!$G$22)/('BP Financier'!$C$16+'BP Financier'!$C$19+'BP Financier'!$D$16+'BP Financier'!$D$19+'BP Financier'!$E$16+'BP Financier'!$E$19+'BP Financier'!$C$22+'BP Financier'!$D$22+'BP Financier'!$E$22+'BP Financier'!$F$22+'BP Financier'!$F$16+'BP Financier'!$F$19+'BP Financier'!$G$16+'BP Financier'!$G$19+'BP Financier'!$G$22))*$V8428*Z8428/(1-$W8428)","v":{"v":14453.51552136789,"d":"14,454"}},{"$f":"'BP Financier'!$G$44*(('BP Financier'!$C$22+'BP Financier'!$D$22+'BP Financier'!$E$22+'BP Financier'!$F$22+'BP Financier'!$G$22)/('BP Financier'!$C$16+'BP Financier'!$C$19+'BP Financier'!$D$16+'BP Financier'!$D$19+'BP Financier'!$E$16+'BP Financier'!$E$19+'BP Financier'!$C$22+'BP Financier'!$D$22+'BP Financier'!$E$22+'BP Financier'!$F$22+'BP Financier'!$F$16+'BP Financier'!$F$19+'BP Financier'!$G$16+'BP Financier'!$G$19+'BP Financier'!$G$22))*$V8428*AA8428/(1-$W8428)","v":{"v":1785.7036071806158,"d":"1,786"}},{"$f":"'BP Financier'!$G$44*(('BP Financier'!$C$22+'BP Financier'!$D$22+'BP Financier'!$E$22+'BP Financier'!$F$22+'BP Financier'!$G$22)/('BP Financier'!$C$16+'BP Financier'!$C$19+'BP Financier'!$D$16+'BP Financier'!$D$19+'BP Financier'!$E$16+'BP Financier'!$E$19+'BP Financier'!$C$22+'BP Financier'!$D$22+'BP Financier'!$E$22+'BP Financier'!$F$22+'BP Financier'!$F$16+'BP Financier'!$F$19+'BP Financier'!$G$16+'BP Financier'!$G$19+'BP Financier'!$G$22))*$V8428*AB8428/(1-$W8428)","v":{"v":854.6957436078159,"d":"855"}},null,{"v":0.006,"d":"0.60%"},{"$f":"Actif!$E$28/100","v":{"v":0.28900000000000003,"d":"28.90%"}},{"$f":"Actif!$E$30/100","v":{"v":0.09050000000000001,"d":"9.05%"}},{"$f":"Actif!$E$31/100","v":{"v":0.0605,"d":"6.05%"}},{"$f":"Actif!$E$32/100","v":{"v":0.47350000000000003,"d":"47.35%"}},{"$f":"Actif!$E$33/100","v":{"v":0.0585,"d":"5.85%"}},{"$f":"Actif!$E$29/100","v":{"v":0.027999999999999997,"d":"2.80%"}}]
[null,"#316",28,2026,"H","A_CAPI",{"v":0.44999999999999996,"d":"0.45"},{"v":0.38999999999999996,"d":"0.39"},0.6,0.6,85,0,{"$f":"ROUND(Primes!$Q$10*V8429,2)","v":0.78},0,{"v":21703.166918041326,"d":"21,703"},{"$f":"'BP Financier'!$G$44*(('BP Financier'!$C$22+'BP Financier'!$D$22+'BP Financier'!$E$22+'BP Financier'!$F$22+'BP Financier'!$G$22)/('BP Financier'!$C$16+'BP Financier'!$C$19+'BP Financier'!$D$16+'BP Financier'!$D$19+'BP Financier'!$E$16+'BP Financier'!$E$19+'BP Financier'!$C$22+'BP Financier'!$D$22+'BP Financier'!$E$22+'BP Financier'!$F$22+'BP Financier'!$F$16+'BP Financier'!$F$19+'BP Financier'!$G$16+'BP Financier'!$G$19+'BP Financier'!$G$22))*$V8429*X8429/(1-$W8429)","v":{"v":2762.4987427324054,"d":"2,762"}},{"$f":"'BP Financier'!$G$44*(('BP Financier'!$C$22+'BP Financier'!$D$22+'BP Financier'!$E$22+'BP Financier'!$F$22+'BP Financier'!$G$22)/('BP Financier'!$C$16+'BP Financier'!$C$19+'BP Financier'!$D$16+'BP Financier'!$D$19+'BP Financier'!$E$16+'BP Financier'!$E$19+'BP Financier'!$C$22+'BP Financier'!$D$22+'BP Financier'!$E$22+'BP Financier'!$F$22+'BP Financier'!$F$16+'BP Financier'!$F$19+'BP Financier'!$G$16+'BP Financier'!$G$19+'BP Financier'!$G$22))*$V8429*Y8429/(1-$W8429)","v":{"v":1846.7533031526023,"d":"1,847"}},{"$f":"'BP Financier'!$G$44*(('BP Financier'!$C$22+'BP Financier'!$D$22+'BP Financier'!$E$22+'BP Financier'!$F$22+'BP Financier'!$G$22)/('BP Financier'!$C$16+'BP Financier'!$C$19+'BP Financier'!$D$16+'BP Financier'!$D$19+'BP Financier'!$E$16+'BP Financier'!$E$19+'BP Financier'!$C$22+'BP Financier'!$D$22+'BP Financier'!$E$22+'BP Financier'!$F$22+'BP Financier'!$F$16+'BP Financier'!$F$19+'BP Financier'!$G$16+'BP Financier'!$G$19+'BP Financier'!$G$22))*$V8429*Z8429/(1-$W8429)","v":{"v":14453.51552136789,"d":"14,454"}},{"$f":"'BP Financier'!$G$44*(('BP Financier'!$C$22+'BP Financier'!$D$22+'BP Financier'!$E$22+'BP Financier'!$F$22+'BP Financier'!$G$22)/('BP Financier'!$C$16+'BP Financier'!$C$19+'BP Financier'!$D$16+'BP Financier'!$D$19+'BP Financier'!$E$16+'BP Financier'!$E$19+'BP Financier'!$C$22+'BP Financier'!$D$22+'BP Financier'!$E$22+'BP Financier'!$F$22+'BP Financier'!$F$16+'BP Financier'!$F$19+'BP Financier'!$G$16+'BP Financier'!$G$19+'BP Financier'!$G$22))*$V8429*AA8429/(1-$W8429)","v":{"v":1785.7036071806158,"d":"1,786"}},{"$f":"'BP Financier'!$G$44*(('BP Financier'!$C$22+'BP Financier'!$D$22+'BP Financier'!$E$22+'BP Financier'!$F$22+'BP Financier'!$G$22)/('BP Financier'!$C$16+'BP Financier'!$C$19+'BP Financier'!$D$16+'BP Financier'!$D$19+'BP Financier'!$E$16+'BP Financier'!$E$19+'BP Financier'!$C$22+'BP Financier'!$D$22+'BP Financier'!$E$22+'BP Financier'!$F$22+'BP Financier'!$F$16+'BP Financier'!$F$19+'BP Financier'!$G$16+'BP Financier'!$G$19+'BP Financier'!$G$22))*$V8429*AB8429/(1-$W8429)","v":{"v":854.6957436078159,"d":"855"}},null,{"v":0.006,"d":"0.60%"},{"$f":"Actif!$E$28/100","v":{"v":0.28900000000000003,"d":"28.90%"}},{"$f":"Actif!$E$30/100","v":{"v":0.09050000000000001,"d":"9.05%"}},{"$f":"Actif!$E$31/100","v":{"v":0.0605,"d":"6.05%"}},{"$f":"Actif!$E$32/100","v":{"v":0.47350000000000003,"d":"47.35%"}},{"$f":"Actif!$E$33/100","v":{"v":0.0585,"d":"5.85%"}},{"$f":"Actif!$E$29/100","v":{"v":0.027999999999999997,"d":"2.80%"}}]
[null,"#317",28,2028,"H","A_CAPI",{"v":0.44999999999999996,"d":"0.45"},{"v":0.38999999999999996,"d":"0.39"},0.6,0.6,85,0,{"$f":"ROUND(Primes!$Q$10*V8430,2)","v":0.78},0,{"v":21703.166918041326,"d":"21,703"},{"$f":"'BP Financier'!$G$44*(('BP Financier'!$C$22+'BP Financier'!$D$22+'BP Financier'!$E$22+'BP Financier'!$F$22+'BP Financier'!$G$22)/('BP Financier'!$C$16+'BP Financier'!$C$19+'BP Financier'!$D$16+'BP Financier'!$D$19+'BP Financier'!$E$16+'BP Financier'!$E$19+'BP Financier'!$C$22+'BP Financier'!$D$22+'BP Financier'!$E$22+'BP Financier'!$F$22+'BP Financier'!$F$16+'BP Financier'!$F$19+'BP Financier'!$G$16+'BP Financier'!$G$19+'BP Financier'!$G$22))*$V8430*X8430/(1-$W8430)","v":{"v":2762.4987427324054,"d":"2,762"}},{"$f":"'BP Financier'!$G$44*(('BP Financier'!$C$22+'BP Financier'!$D$22+'BP Financier'!$E$22+'BP Financier'!$F$22+'BP Financier'!$G$22)/('BP Financier'!$C$16+'BP Financier'!$C$19+'BP Financier'!$D$16+'BP Financier'!$D$19+'BP Financier'!$E$16+'BP Financier'!$E$19+'BP Financier'!$C$22+'BP Financier'!$D$22+'BP Financier'!$E$22+'BP Financier'!$F$22+'BP Financier'!$F$16+'BP Financier'!$F$19+'BP Financier'!$G$16+'BP Financier'!$G$19+'BP Financier'!$G$22))*$V8430*Y8430/(1-$W8430)","v":{"v":1846.7533031526023,"d":"1,847"}},{"$f":"'BP Financier'!$G$44*(('BP Financier'!$C$22+'BP Financier'!$D$22+'BP Financier'!$E$22+'BP Financier'!$F$22+'BP Financier'!$G$22)/('BP Financier'!$C$16+'BP Financier'!$C$19+'BP Financier'!$D$16+'BP Financier'!$D$19+'BP Financier'!$E$16+'BP Financier'!$E$19+'BP Financier'!$C$22+'BP Financier'!$D$22+'BP Financier'!$E$22+'BP Financier'!$F$22+'BP Financier'!$F$16+'BP Financier'!$F$19+'BP Financier'!$G$16+'BP Financier'!$G$19+'BP Financier'!$G$22))*$V8430*Z8430/(1-$W8430)","v":{"v":14453.51552136789,"d":"14,454"}},{"$f":"'BP Financier'!$G$44*(('BP Financier'!$C$22+'BP Financier'!$D$22+'BP Financier'!$E$22+'BP Financier'!$F$22+'BP Financier'!$G$22)/('BP Financier'!$C$16+'BP Financier'!$C$19+'BP Financier'!$D$16+'BP Financier'!$D$19+'BP Financier'!$E$16+'BP Financier'!$E$19+'BP Financier'!$C$22+'BP Financier'!$D$22+'BP Financier'!$E$22+'BP Financier'!$F$22+'BP Financier'!$F$16+'BP Financier'!$F$19+'BP Financier'!$G$16+'BP Financier'!$G$19+'BP Financier'!$G$22))*$V8430*AA8430/(1-$W8430)","v":{"v":1785.7036071806158,"d":"1,786"}},{"$f":"'BP Financier'!$G$44*(('BP Financier'!$C$22+'BP Financier'!$D$22+'BP Financier'!$E$22+'BP Financier'!$F$22+'BP Financier'!$G$22)/('BP Financier'!$C$16+'BP Financier'!$C$19+'BP Financier'!$D$16+'BP Financier'!$D$19+'BP Financier'!$E$16+'BP Financier'!$E$19+'BP Financier'!$C$22+'BP Financier'!$D$22+'BP Financier'!$E$22+'BP Financier'!$F$22+'BP Financier'!$F$16+'BP Financier'!$F$19+'BP Financier'!$G$16+'BP Financier'!$G$19+'BP Financier'!$G$22))*$V8430*AB8430/(1-$W8430)","v":{"v":854.6957436078159,"d":"855"}},null,{"v":0.006,"d":"0.60%"},{"$f":"Actif!$E$28/100","v":{"v":0.28900000000000003,"d":"28.90%"}},{"$f":"Actif!$E$30/100","v":{"v":0.09050000000000001,"d":"9.05%"}},{"$f":"Actif!$E$31/100","v":{"v":0.0605,"d":"6.05%"}},{"$f":"Actif!$E$32/100","v":{"v":0.47350000000000003,"d":"47.35%"}},{"$f":"Actif!$E$33/100","v":{"v":0.0585,"d":"5.85%"}},{"$f":"Actif!$E$29/100","v":{"v":0.027999999999999997,"d":"2.80%"}}]
[null,"#318",28,2029,"H","A_CAPI",{"v":0.44999999999999996,"d":"0.45"},{"v":0.38999999999999996,"d":"0.39"},0.6,0.6,85,0,{"$f":"ROUND(Primes!$Q$10*V8431,2)","v":0.78},0,{"v":21703.166918041326,"d":"21,703"},{"$f":"'BP Financier'!$G$44*(('BP Financier'!$C$22+'BP Financier'!$D$22+'BP Financier'!$E$22+'BP Financier'!$F$22+'BP Financier'!$G$22)/('BP Financier'!$C$16+'BP Financier'!$C$19+'BP Financier'!$D$16+'BP Financier'!$D$19+'BP Financier'!$E$16+'BP Financier'!$E$19+'BP Financier'!$C$22+'BP Financier'!$D$22+'BP Financier'!$E$22+'BP Financier'!$F$22+'BP Financier'!$F$16+'BP Financier'!$F$19+'BP Financier'!$G$16+'BP Financier'!$G$19+'BP Financier'!$G$22))*$V8431*X8431/(1-$W8431)","v":{"v":2762.4987427324054,"d":"2,762"}},{"$f":"'BP Financier'!$G$44*(('BP Financier'!$C$22+'BP Financier'!$D$22+'BP Financier'!$E$22+'BP Financier'!$F$22+'BP Financier'!$G$22)/('BP Financier'!$C$16+'BP Financier'!$C$19+'BP Financier'!$D$16+'BP Financier'!$D$19+'BP Financier'!$E$16+'BP Financier'!$E$19+'BP Financier'!$C$22+'BP Financier'!$D$22+'BP Financier'!$E$22+'BP Financier'!$F$22+'BP Financier'!$F$16+'BP Financier'!$F$19+'BP Financier'!$G$16+'BP Financier'!$G$19+'BP Financier'!$G$22))*$V8431*Y8431/(1-$W8431)","v":{"v":1846.7533031526023,"d":"1,847"}},{"$f":"'BP Financier'!$G$44*(('BP Financier'!$C$22+'BP Financier'!$D$22+'BP Financier'!$E$22+'BP Financier'!$F$22+'BP Financier'!$G$22)/('BP Financier'!$C$16+'BP Financier'!$C$19+'BP Financier'!$D$16+'BP Financier'!$D$19+'BP Financier'!$E$16+'BP Financier'!$E$19+'BP Financier'!$C$22+'BP Financier'!$D$22+'BP Financier'!$E$22+'BP Financier'!$F$22+'BP Financier'!$F$16+'BP Financier'!$F$19+'BP Financier'!$G$16+'BP Financier'!$G$19+'BP Financier'!$G$22))*$V8431*Z8431/(1-$W8431)","v":{"v":14453.51552136789,"d":"14,454"}},{"$f":"'BP Financier'!$G$44*(('BP Financier'!$C$22+'BP Financier'!$D$22+'BP Financier'!$E$22+'BP Financier'!$F$22+'BP Financier'!$G$22)/('BP Financier'!$C$16+'BP Financier'!$C$19+'BP Financier'!$D$16+'BP Financier'!$D$19+'BP Financier'!$E$16+'BP Financier'!$E$19+'BP Financier'!$C$22+'BP Financier'!$D$22+'BP Financier'!$E$22+'BP Financier'!$F$22+'BP Financier'!$F$16+'BP Financier'!$F$19+'BP Financier'!$G$16+'BP Financier'!$G$19+'BP Financier'!$G$22))*$V8431*AA8431/(1-$W8431)","v":{"v":1785.7036071806158,"d":"1,786"}},{"$f":"'BP Financier'!$G$44*(('BP Financier'!$C$22+'BP Financier'!$D$22+'BP Financier'!$E$22+'BP Financier'!$F$22+'BP Financier'!$G$22)/('BP Financier'!$C$16+'BP Financier'!$C$19+'BP Financier'!$D$16+'BP Financier'!$D$19+'BP Financier'!$E$16+'BP Financier'!$E$19+'BP Financier'!$C$22+'BP Financier'!$D$22+'BP Financier'!$E$22+'BP Financier'!$F$22+'BP Financier'!$F$16+'BP Financier'!$F$19+'BP Financier'!$G$16+'BP Financier'!$G$19+'BP Financier'!$G$22))*$V8431*AB8431/(1-$W8431)","v":{"v":854.6957436078159,"d":"855"}},null,{"v":0.006,"d":"0.60%"},{"$f":"Actif!$E$28/100","v":{"v":0.28900000000000003,"d":"28.90%"}},{"$f":"Actif!$E$30/100","v":{"v":0.09050000000000001,"d":"9.05%"}},{"$f":"Actif!$E$31/100","v":{"v":0.0605,"d":"6.05%"}},{"$f":"Actif!$E$32/100","v":{"v":0.47350000000000003,"d":"47.35%"}},{"$f":"Actif!$E$33/100","v":{"v":0.0585,"d":"5.85%"}},{"$f":"Actif!$E$29/100","v":{"v":0.027999999999999997,"d":"2.80%"}}]
[null,"#319",28,2030,"H","A_CAPI",{"v":0.44999999999999996,"d":"0.45"},{"v":0.38999999999999996,"d":"0.39"},0.6,0.6,85,0,{"$f":"ROUND(Primes!$Q$10*V8432,2)","v":0.78},0,{"v":21703.166918041326,"d":"21,703"},{"$f":"'BP Financier'!$G$44*(('BP Financier'!$C$22+'BP Financier'!$D$22+'BP Financier'!$E$22+'BP Financier'!$F$22+'BP Financier'!$G$22)/('BP Financier'!$C$16+'BP Financier'!$C$19+'BP Financier'!$D$16+'BP Financier'!$D$19+'BP Financier'!$E$16+'BP Financier'!$E$19+'BP Financier'!$C$22+'BP Financier'!$D$22+'BP Financier'!$E$22+'BP Financier'!$F$22+'BP Financier'!$F$16+'BP Financier'!$F$19+'BP Financier'!$G$16+'BP Financier'!$G$19+'BP Financier'!$G$22))*$V8432*X8432/(1-$W8432)","v":{"v":2762.4987427324054,"d":"2,762"}},{"$f":"'BP Financier'!$G$44*(('BP Financier'!$C$22+'BP Financier'!$D$22+'BP Financier'!$E$22+'BP Financier'!$F$22+'BP Financier'!$G$22)/('BP Financier'!$C$16+'BP Financier'!$C$19+'BP Financier'!$D$16+'BP Financier'!$D$19+'BP Financier'!$E$16+'BP Financier'!$E$19+'BP Financier'!$C$22+'BP Financier'!$D$22+'BP Financier'!$E$22+'BP Financier'!$F$22+'BP Financier'!$F$16+'BP Financier'!$F$19+'BP Financier'!$G$16+'BP Financier'!$G$19+'BP Financier'!$G$22))*$V8432*Y8432/(1-$W8432)","v":{"v":1846.7533031526023,"d":"1,847"}},{"$f":"'BP Financier'!$G$44*(('BP Financier'!$C$22+'BP Financier'!$D$22+'BP Financier'!$E$22+'BP Financier'!$F$22+'BP Financier'!$G$22)/('BP Financier'!$C$16+'BP Financier'!$C$19+'BP Financier'!$D$16+'BP Financier'!$D$19+'BP Financier'!$E$16+'BP Financier'!$E$19+'BP Financier'!$C$22+'BP Financier'!$D$22+'BP Financier'!$E$22+'BP Financier'!$F$22+'BP Financier'!$F$16+'BP Financier'!$F$19+'BP Financier'!$G$16+'BP Financier'!$G$19+'BP Financier'!$G$22))*$V8432*Z8432/(1-$W8432)","v":{"v":14453.51552136789,"d":"14,454"}},{"$f":"'BP Financier'!$G$44*(('BP Financier'!$C$22+'BP Financier'!$D$22+'BP Financier'!$E$22+'BP Financier'!$F$22+'BP Financier'!$G$22)/('BP Financier'!$C$16+'BP Financier'!$C$19+'BP Financier'!$D$16+'BP Financier'!$D$19+'BP Financier'!$E$16+'BP Financier'!$E$19+'BP Financier'!$C$22+'BP Financier'!$D$22+'BP Financier'!$E$22+'BP Financier'!$F$22+'BP Financier'!$F$16+'BP Financier'!$F$19+'BP Financier'!$G$16+'BP Financier'!$G$19+'BP Financier'!$G$22))*$V8432*AA8432/(1-$W8432)","v":{"v":1785.7036071806158,"d":"1,786"}},{"$f":"'BP Financier'!$G$44*(('BP Financier'!$C$22+'BP Financier'!$D$22+'BP Financier'!$E$22+'BP Financier'!$F$22+'BP Financier'!$G$22)/('BP Financier'!$C$16+'BP Financier'!$C$19+'BP Financier'!$D$16+'BP Financier'!$D$19+'BP Financier'!$E$16+'BP Financier'!$E$19+'BP Financier'!$C$22+'BP Financier'!$D$22+'BP Financier'!$E$22+'BP Financier'!$F$22+'BP Financier'!$F$16+'BP Financier'!$F$19+'BP Financier'!$G$16+'BP Financier'!$G$19+'BP Financier'!$G$22))*$V8432*AB8432/(1-$W8432)","v":{"v":854.6957436078159,"d":"855"}},null,{"v":0.006,"d":"0.60%"},{"$f":"Actif!$E$28/100","v":{"v":0.28900000000000003,"d":"28.90%"}},{"$f":"Actif!$E$30/100","v":{"v":0.09050000000000001,"d":"9.05%"}},{"$f":"Actif!$E$31/100","v":{"v":0.0605,"d":"6.05%"}},{"$f":"Actif!$E$32/100","v":{"v":0.47350000000000003,"d":"47.35%"}},{"$f":"Actif!$E$33/100","v":{"v":0.0585,"d":"5.85%"}},{"$f":"Actif!$E$29/100","v":{"v":0.027999999999999997,"d":"2.80%"}}]
[null,"#320",28,2031,"H","A_CAPI",{"v":0.44999999999999996,"d":"0.45"},{"v":0.38999999999999996,"d":"0.39"},0.6,0.6,85,0,{"$f":"ROUND(Primes!$Q$10*V8433,2)","v":0.78},0,{"v":21703.166918041326,"d":"21,703"},{"$f":"'BP Financier'!$G$44*(('BP Financier'!$C$22+'BP Financier'!$D$22+'BP Financier'!$E$22+'BP Financier'!$F$22+'BP Financier'!$G$22)/('BP Financier'!$C$16+'BP Financier'!$C$19+'BP Financier'!$D$16+'BP Financier'!$D$19+'BP Financier'!$E$16+'BP Financier'!$E$19+'BP Financier'!$C$22+'BP Financier'!$D$22+'BP Financier'!$E$22+'BP Financier'!$F$22+'BP Financier'!$F$16+'BP Financier'!$F$19+'BP Financier'!$G$16+'BP Financier'!$G$19+'BP Financier'!$G$22))*$V8433*X8433/(1-$W8433)","v":{"v":2762.4987427324054,"d":"2,762"}},{"$f":"'BP Financier'!$G$44*(('BP Financier'!$C$22+'BP Financier'!$D$22+'BP Financier'!$E$22+'BP Financier'!$F$22+'BP Financier'!$G$22)/('BP Financier'!$C$16+'BP Financier'!$C$19+'BP Financier'!$D$16+'BP Financier'!$D$19+'BP Financier'!$E$16+'BP Financier'!$E$19+'BP Financier'!$C$22+'BP Financier'!$D$22+'BP Financier'!$E$22+'BP Financier'!$F$22+'BP Financier'!$F$16+'BP Financier'!$F$19+'BP Financier'!$G$16+'BP Financier'!$G$19+'BP Financier'!$G$22))*$V8433*Y8433/(1-$W8433)","v":{"v":1846.7533031526023,"d":"1,847"}},{"$f":"'BP Financier'!$G$44*(('BP Financier'!$C$22+'BP Financier'!$D$22+'BP Financier'!$E$22+'BP Financier'!$F$22+'BP Financier'!$G$22)/('BP Financier'!$C$16+'BP Financier'!$C$19+'BP Financier'!$D$16+'BP Financier'!$D$19+'BP Financier'!$E$16+'BP Financier'!$E$19+'BP Financier'!$C$22+'BP Financier'!$D$22+'BP Financier'!$E$22+'BP Financier'!$F$22+'BP Financier'!$F$16+'BP Financier'!$F$19+'BP Financier'!$G$16+'BP Financier'!$G$19+'BP Financier'!$G$22))*$V8433*Z8433/(1-$W8433)","v":{"v":14453.51552136789,"d":"14,454"}},{"$f":"'BP Financier'!$G$44*(('BP Financier'!$C$22+'BP Financier'!$D$22+'BP Financier'!$E$22+'BP Financier'!$F$22+'BP Financier'!$G$22)/('BP Financier'!$C$16+'BP Financier'!$C$19+'BP Financier'!$D$16+'BP Financier'!$D$19+'BP Financier'!$E$16+'BP Financier'!$E$19+'BP Financier'!$C$22+'BP Financier'!$D$22+'BP Financier'!$E$22+'BP Financier'!$F$22+'BP Financier'!$F$16+'BP Financier'!$F$19+'BP Financier'!$G$16+'BP Financier'!$G$19+'BP Financier'!$G$22))*$V8433*AA8433/(1-$W8433)","v":{"v":1785.7036071806158,"d":"1,786"}},{"$f":"'BP Financier'!$G$44*(('BP Financier'!$C$22+'BP Financier'!$D$22+'BP Financier'!$E$22+'BP Financier'!$F$22+'BP Financier'!$G$22)/('BP Financier'!$C$16+'BP Financier'!$C$19+'BP Financier'!$D$16+'BP Financier'!$D$19+'BP Financier'!$E$16+'BP Financier'!$E$19+'BP Financier'!$C$22+'BP Financier'!$D$22+'BP Financier'!$E$22+'BP Financier'!$F$22+'BP Financier'!$F$16+'BP Financier'!$F$19+'BP Financier'!$G$16+'BP Financier'!$G$19+'BP Financier'!$G$22))*$V8433*AB8433/(1-$W8433)","v":{"v":854.6957436078159,"d":"855"}},null,{"v":0.006,"d":"0.60%"},{"$f":"Actif!$E$28/100","v":{"v":0.28900000000000003,"d":"28.90%"}},{"$f":"Actif!$E$30/100","v":{"v":0.09050000000000001,"d":"9.05%"}},{"$f":"Actif!$E$31/100","v":{"v":0.0605,"d":"6.05%"}},{"$f":"Actif!$E$32/100","v":{"v":0.47350000000000003,"d":"47.35%"}},{"$f":"Actif!$E$33/100","v":{"v":0.0585,"d":"5.85%"}},{"$f":"Actif!$E$29/100","v":{"v":0.027999999999999997,"d":"2.80%"}}]
[null,"#321",29,2026,"F","A_CAPI",{"$f":"frais_gestion_Euro*100","v":{"v":0.44999999999999996,"d":"0.45"}},{"$f":"frais_gestion_UC*100","v":{"v":0.38999999999999996,"d":"0.39"}},{"$f":"frais_distribution_FG*100","v":0.6},{"$f":"frais_distribution_UC*100","v":0.6},85,0,{"$f":"ROUND(Primes!$Q$10*V8434,2)","v":0.78},0,{"v":21703.166918041326,"d":"21,703"},{"$f":"'BP Financier'!$G$44*(('BP Financier'!$C$22+'BP Financier'!$D$22+'BP Financier'!$E$22+'BP Financier'!$F$22+'BP Financier'!$G$22)/('BP Financier'!$C$16+'BP Financier'!$C$19+'BP Financier'!$D$16+'BP Financier'!$D$19+'BP Financier'!$E$16+'BP Financier'!$E$19+'BP Financier'!$C$22+'BP Financier'!$D$22+'BP Financier'!$E$22+'BP Financier'!$F$22+'BP Financier'!$F$16+'BP Financier'!$F$19+'BP Financier'!$G$16+'BP Financier'!$G$19+'BP Financier'!$G$22))*$V8434*X8434/(1-$W8434)","v":{"v":2762.4987427324054,"d":"2,762"}},{"$f":"'BP Financier'!$G$44*(('BP Financier'!$C$22+'BP Financier'!$D$22+'BP Financier'!$E$22+'BP Financier'!$F$22+'BP Financier'!$G$22)/('BP Financier'!$C$16+'BP Financier'!$C$19+'BP Financier'!$D$16+'BP Financier'!$D$19+'BP Financier'!$E$16+'BP Financier'!$E$19+'BP Financier'!$C$22+'BP Financier'!$D$22+'BP Financier'!$E$22+'BP Financier'!$F$22+'BP Financier'!$F$16+'BP Financier'!$F$19+'BP Financier'!$G$16+'BP Financier'!$G$19+'BP Financier'!$G$22))*$V8434*Y8434/(1-$W8434)","v":{"v":1846.7533031526023,"d":"1,847"}},{"$f":"'BP Financier'!$G$44*(('BP Financier'!$C$22+'BP Financier'!$D$22+'BP Financier'!$E$22+'BP Financier'!$F$22+'BP Financier'!$G$22)/('BP Financier'!$C$16+'BP Financier'!$C$19+'BP Financier'!$D$16+'BP Financier'!$D$19+'BP Financier'!$E$16+'BP Financier'!$E$19+'BP Financier'!$C$22+'BP Financier'!$D$22+'BP Financier'!$E$22+'BP Financier'!$F$22+'BP Financier'!$F$16+'BP Financier'!$F$19+'BP Financier'!$G$16+'BP Financier'!$G$19+'BP Financier'!$G$22))*$V8434*Z8434/(1-$W8434)","v":{"v":14453.51552136789,"d":"14,454"}},{"$f":"'BP Financier'!$G$44*(('BP Financier'!$C$22+'BP Financier'!$D$22+'BP Financier'!$E$22+'BP Financier'!$F$22+'BP Financier'!$G$22)/('BP Financier'!$C$16+'BP Financier'!$C$19+'BP Financier'!$D$16+'BP Financier'!$D$19+'BP Financier'!$E$16+'BP Financier'!$E$19+'BP Financier'!$C$22+'BP Financier'!$D$22+'BP Financier'!$E$22+'BP Financier'!$F$22+'BP Financier'!$F$16+'BP Financier'!$F$19+'BP Financier'!$G$16+'BP Financier'!$G$19+'BP Financier'!$G$22))*$V8434*AA8434/(1-$W8434)","v":{"v":1785.7036071806158,"d":"1,786"}},{"$f":"'BP Financier'!$G$44*(('BP Financier'!$C$22+'BP Financier'!$D$22+'BP Financier'!$E$22+'BP Financier'!$F$22+'BP Financier'!$G$22)/('BP Financier'!$C$16+'BP Financier'!$C$19+'BP Financier'!$D$16+'BP Financier'!$D$19+'BP Financier'!$E$16+'BP Financier'!$E$19+'BP Financier'!$C$22+'BP Financier'!$D$22+'BP Financier'!$E$22+'BP Financier'!$F$22+'BP Financier'!$F$16+'BP Financier'!$F$19+'BP Financier'!$G$16+'BP Financier'!$G$19+'BP Financier'!$G$22))*$V8434*AB8434/(1-$W8434)","v":{"v":854.6957436078159,"d":"855"}},null,{"v":0.006,"d":"0.60%"},{"$f":"Actif!$E$28/100","v":{"v":0.28900000000000003,"d":"28.90%"}},{"$f":"Actif!$E$30/100","v":{"v":0.09050000000000001,"d":"9.05%"}},{"$f":"Actif!$E$31/100","v":{"v":0.0605,"d":"6.05%"}},{"$f":"Actif!$E$32/100","v":{"v":0.47350000000000003,"d":"47.35%"}},{"$f":"Actif!$E$33/100","v":{"v":0.0585,"d":"5.85%"}},{"$f":"Actif!$E$29/100","v":{"v":0.027999999999999997,"d":"2.80%"}}]
[null,"#322",29,2028,"F","A_CAPI",{"v":0.44999999999999996,"d":"0.45"},{"v":0.38999999999999996,"d":"0.39"},0.6,0.6,85,0,{"$f":"ROUND(Primes!$Q$10*V8435,2)","v":0.78},0,{"v":21703.166918041326,"d":"21,703"},{"$f":"'BP Financier'!$G$44*(('BP Financier'!$C$22+'BP Financier'!$D$22+'BP Financier'!$E$22+'BP Financier'!$F$22+'BP Financier'!$G$22)/('BP Financier'!$C$16+'BP Financier'!$C$19+'BP Financier'!$D$16+'BP Financier'!$D$19+'BP Financier'!$E$16+'BP Financier'!$E$19+'BP Financier'!$C$22+'BP Financier'!$D$22+'BP Financier'!$E$22+'BP Financier'!$F$22+'BP Financier'!$F$16+'BP Financier'!$F$19+'BP Financier'!$G$16+'BP Financier'!$G$19+'BP Financier'!$G$22))*$V8435*X8435/(1-$W8435)","v":{"v":2762.4987427324054,"d":"2,762"}},{"$f":"'BP Financier'!$G$44*(('BP Financier'!$C$22+'BP Financier'!$D$22+'BP Financier'!$E$22+'BP Financier'!$F$22+'BP Financier'!$G$22)/('BP Financier'!$C$16+'BP Financier'!$C$19+'BP Financier'!$D$16+'BP Financier'!$D$19+'BP Financier'!$E$16+'BP Financier'!$E$19+'BP Financier'!$C$22+'BP Financier'!$D$22+'BP Financier'!$E$22+'BP Financier'!$F$22+'BP Financier'!$F$16+'BP Financier'!$F$19+'BP Financier'!$G$16+'BP Financier'!$G$19+'BP Financier'!$G$22))*$V8435*Y8435/(1-$W8435)","v":{"v":1846.7533031526023,"d":"1,847"}},{"$f":"'BP Financier'!$G$44*(('BP Financier'!$C$22+'BP Financier'!$D$22+'BP Financier'!$E$22+'BP Financier'!$F$22+'BP Financier'!$G$22)/('BP Financier'!$C$16+'BP Financier'!$C$19+'BP Financier'!$D$16+'BP Financier'!$D$19+'BP Financier'!$E$16+'BP Financier'!$E$19+'BP Financier'!$C$22+'BP Financier'!$D$22+'BP Financier'!$E$22+'BP Financier'!$F$22+'BP Financier'!$F$16+'BP Financier'!$F$19+'BP Financier'!$G$16+'BP Financier'!$G$19+'BP Financier'!$G$22))*$V8435*Z8435/(1-$W8435)","v":{"v":14453.51552136789,"d":"14,454"}},{"$f":"'BP Financier'!$G$44*(('BP Financier'!$C$22+'BP Financier'!$D$22+'BP Financier'!$E$22+'BP Financier'!$F$22+'BP Financier'!$G$22)/('BP Financier'!$C$16+'BP Financier'!$C$19+'BP Financier'!$D$16+'BP Financier'!$D$19+'BP Financier'!$E$16+'BP Financier'!$E$19+'BP Financier'!$C$22+'BP Financier'!$D$22+'BP Financier'!$E$22+'BP Financier'!$F$22+'BP Financier'!$F$16+'BP Financier'!$F$19+'BP Financier'!$G$16+'BP Financier'!$G$19+'BP Financier'!$G$22))*$V8435*AA8435/(1-$W8435)","v":{"v":1785.7036071806158,"d":"1,786"}},{"$f":"'BP Financier'!$G$44*(('BP Financier'!$C$22+'BP Financier'!$D$22+'BP Financier'!$E$22+'BP Financier'!$F$22+'BP Financier'!$G$22)/('BP Financier'!$C$16+'BP Financier'!$C$19+'BP Financier'!$D$16+'BP Financier'!$D$19+'BP Financier'!$E$16+'BP Financier'!$E$19+'BP Financier'!$C$22+'BP Financier'!$D$22+'BP Financier'!$E$22+'BP Financier'!$F$22+'BP Financier'!$F$16+'BP Financier'!$F$19+'BP Financier'!$G$16+'BP Financier'!$G$19+'BP Financier'!$G$22))*$V8435*AB8435/(1-$W8435)","v":{"v":854.6957436078159,"d":"855"}},null,{"v":0.006,"d":"0.60%"},{"$f":"Actif!$E$28/100","v":{"v":0.28900000000000003,"d":"28.90%"}},{"$f":"Actif!$E$30/100","v":{"v":0.09050000000000001,"d":"9.05%"}},{"$f":"Actif!$E$31/100","v":{"v":0.0605,"d":"6.05%"}},{"$f":"Actif!$E$32/100","v":{"v":0.47350000000000003,"d":"47.35%"}},{"$f":"Actif!$E$33/100","v":{"v":0.0585,"d":"5.85%"}},{"$f":"Actif!$E$29/100","v":{"v":0.027999999999999997,"d":"2.80%"}}]
[null,"#323",29,2029,"F","A_CAPI",{"v":0.44999999999999996,"d":"0.45"},{"v":0.38999999999999996,"d":"0.39"},0.6,0.6,85,0,{"$f":"ROUND(Primes!$Q$10*V8436,2)","v":0.78},0,{"v":21703.166918041326,"d":"21,703"},{"$f":"'BP Financier'!$G$44*(('BP Financier'!$C$22+'BP Financier'!$D$22+'BP Financier'!$E$22+'BP Financier'!$F$22+'BP Financier'!$G$22)/('BP Financier'!$C$16+'BP Financier'!$C$19+'BP Financier'!$D$16+'BP Financier'!$D$19+'BP Financier'!$E$16+'BP Financier'!$E$19+'BP Financier'!$C$22+'BP Financier'!$D$22+'BP Financier'!$E$22+'BP Financier'!$F$22+'BP Financier'!$F$16+'BP Financier'!$F$19+'BP Financier'!$G$16+'BP Financier'!$G$19+'BP Financier'!$G$22))*$V8436*X8436/(1-$W8436)","v":{"v":2762.4987427324054,"d":"2,762"}},{"$f":"'BP Financier'!$G$44*(('BP Financier'!$C$22+'BP Financier'!$D$22+'BP Financier'!$E$22+'BP Financier'!$F$22+'BP Financier'!$G$22)/('BP Financier'!$C$16+'BP Financier'!$C$19+'BP Financier'!$D$16+'BP Financier'!$D$19+'BP Financier'!$E$16+'BP Financier'!$E$19+'BP Financier'!$C$22+'BP Financier'!$D$22+'BP Financier'!$E$22+'BP Financier'!$F$22+'BP Financier'!$F$16+'BP Financier'!$F$19+'BP Financier'!$G$16+'BP Financier'!$G$19+'BP Financier'!$G$22))*$V8436*Y8436/(1-$W8436)","v":{"v":1846.7533031526023,"d":"1,847"}},{"$f":"'BP Financier'!$G$44*(('BP Financier'!$C$22+'BP Financier'!$D$22+'BP Financier'!$E$22+'BP Financier'!$F$22+'BP Financier'!$G$22)/('BP Financier'!$C$16+'BP Financier'!$C$19+'BP Financier'!$D$16+'BP Financier'!$D$19+'BP Financier'!$E$16+'BP Financier'!$E$19+'BP Financier'!$C$22+'BP Financier'!$D$22+'BP Financier'!$E$22+'BP Financier'!$F$22+'BP Financier'!$F$16+'BP Financier'!$F$19+'BP Financier'!$G$16+'BP Financier'!$G$19+'BP Financier'!$G$22))*$V8436*Z8436/(1-$W8436)","v":{"v":14453.51552136789,"d":"14,454"}},{"$f":"'BP Financier'!$G$44*(('BP Financier'!$C$22+'BP Financier'!$D$22+'BP Financier'!$E$22+'BP Financier'!$F$22+'BP Financier'!$G$22)/('BP Financier'!$C$16+'BP Financier'!$C$19+'BP Financier'!$D$16+'BP Financier'!$D$19+'BP Financier'!$E$16+'BP Financier'!$E$19+'BP Financier'!$C$22+'BP Financier'!$D$22+'BP Financier'!$E$22+'BP Financier'!$F$22+'BP Financier'!$F$16+'BP Financier'!$F$19+'BP Financier'!$G$16+'BP Financier'!$G$19+'BP Financier'!$G$22))*$V8436*AA8436/(1-$W8436)","v":{"v":1785.7036071806158,"d":"1,786"}},{"$f":"'BP Financier'!$G$44*(('BP Financier'!$C$22+'BP Financier'!$D$22+'BP Financier'!$E$22+'BP Financier'!$F$22+'BP Financier'!$G$22)/('BP Financier'!$C$16+'BP Financier'!$C$19+'BP Financier'!$D$16+'BP Financier'!$D$19+'BP Financier'!$E$16+'BP Financier'!$E$19+'BP Financier'!$C$22+'BP Financier'!$D$22+'BP Financier'!$E$22+'BP Financier'!$F$22+'BP Financier'!$F$16+'BP Financier'!$F$19+'BP Financier'!$G$16+'BP Financier'!$G$19+'BP Financier'!$G$22))*$V8436*AB8436/(1-$W8436)","v":{"v":854.6957436078159,"d":"855"}},null,{"v":0.006,"d":"0.60%"},{"$f":"Actif!$E$28/100","v":{"v":0.28900000000000003,"d":"28.90%"}},{"$f":"Actif!$E$30/100","v":{"v":0.09050000000000001,"d":"9.05%"}},{"$f":"Actif!$E$31/100","v":{"v":0.0605,"d":"6.05%"}},{"$f":"Actif!$E$32/100","v":{"v":0.47350000000000003,"d":"47.35%"}},{"$f":"Actif!$E$33/100","v":{"v":0.0585,"d":"5.85%"}},{"$f":"Actif!$E$29/100","v":{"v":0.027999999999999997,"d":"2.80%"}}]
[null,"#324",29,2030,"F","A_CAPI",{"v":0.44999999999999996,"d":"0.45"},{"v":0.38999999999999996,"d":"0.39"},0.6,0.6,85,0,{"$f":"ROUND(Primes!$Q$10*V8437,2)","v":0.78},0,{"v":21703.166918041326,"d":"21,703"},{"$f":"'BP Financier'!$G$44*(('BP Financier'!$C$22+'BP Financier'!$D$22+'BP Financier'!$E$22+'BP Financier'!$F$22+'BP Financier'!$G$22)/('BP Financier'!$C$16+'BP Financier'!$C$19+'BP Financier'!$D$16+'BP Financier'!$D$19+'BP Financier'!$E$16+'BP Financier'!$E$19+'BP Financier'!$C$22+'BP Financier'!$D$22+'BP Financier'!$E$22+'BP Financier'!$F$22+'BP Financier'!$F$16+'BP Financier'!$F$19+'BP Financier'!$G$16+'BP Financier'!$G$19+'BP Financier'!$G$22))*$V8437*X8437/(1-$W8437)","v":{"v":2762.4987427324054,"d":"2,762"}},{"$f":"'BP Financier'!$G$44*(('BP Financier'!$C$22+'BP Financier'!$D$22+'BP Financier'!$E$22+'BP Financier'!$F$22+'BP Financier'!$G$22)/('BP Financier'!$C$16+'BP Financier'!$C$19+'BP Financier'!$D$16+'BP Financier'!$D$19+'BP Financier'!$E$16+'BP Financier'!$E$19+'BP Financier'!$C$22+'BP Financier'!$D$22+'BP Financier'!$E$22+'BP Financier'!$F$22+'BP Financier'!$F$16+'BP Financier'!$F$19+'BP Financier'!$G$16+'BP Financier'!$G$19+'BP Financier'!$G$22))*$V8437*Y8437/(1-$W8437)","v":{"v":1846.7533031526023,"d":"1,847"}},{"$f":"'BP Financier'!$G$44*(('BP Financier'!$C$22+'BP Financier'!$D$22+'BP Financier'!$E$22+'BP Financier'!$F$22+'BP Financier'!$G$22)/('BP Financier'!$C$16+'BP Financier'!$C$19+'BP Financier'!$D$16+'BP Financier'!$D$19+'BP Financier'!$E$16+'BP Financier'!$E$19+'BP Financier'!$C$22+'BP Financier'!$D$22+'BP Financier'!$E$22+'BP Financier'!$F$22+'BP Financier'!$F$16+'BP Financier'!$F$19+'BP Financier'!$G$16+'BP Financier'!$G$19+'BP Financier'!$G$22))*$V8437*Z8437/(1-$W8437)","v":{"v":14453.51552136789,"d":"14,454"}},{"$f":"'BP Financier'!$G$44*(('BP Financier'!$C$22+'BP Financier'!$D$22+'BP Financier'!$E$22+'BP Financier'!$F$22+'BP Financier'!$G$22)/('BP Financier'!$C$16+'BP Financier'!$C$19+'BP Financier'!$D$16+'BP Financier'!$D$19+'BP Financier'!$E$16+'BP Financier'!$E$19+'BP Financier'!$C$22+'BP Financier'!$D$22+'BP Financier'!$E$22+'BP Financier'!$F$22+'BP Financier'!$F$16+'BP Financier'!$F$19+'BP Financier'!$G$16+'BP Financier'!$G$19+'BP Financier'!$G$22))*$V8437*AA8437/(1-$W8437)","v":{"v":1785.7036071806158,"d":"1,786"}},{"$f":"'BP Financier'!$G$44*(('BP Financier'!$C$22+'BP Financier'!$D$22+'BP Financier'!$E$22+'BP Financier'!$F$22+'BP Financier'!$G$22)/('BP Financier'!$C$16+'BP Financier'!$C$19+'BP Financier'!$D$16+'BP Financier'!$D$19+'BP Financier'!$E$16+'BP Financier'!$E$19+'BP Financier'!$C$22+'BP Financier'!$D$22+'BP Financier'!$E$22+'BP Financier'!$F$22+'BP Financier'!$F$16+'BP Financier'!$F$19+'BP Financier'!$G$16+'BP Financier'!$G$19+'BP Financier'!$G$22))*$V8437*AB8437/(1-$W8437)","v":{"v":854.6957436078159,"d":"855"}},null,{"v":0.006,"d":"0.60%"},{"$f":"Actif!$E$28/100","v":{"v":0.28900000000000003,"d":"28.90%"}},{"$f":"Actif!$E$30/100","v":{"v":0.09050000000000001,"d":"9.05%"}},{"$f":"Actif!$E$31/100","v":{"v":0.0605,"d":"6.05%"}},{"$f":"Actif!$E$32/100","v":{"v":0.47350000000000003,"d":"47.35%"}},{"$f":"Actif!$E$33/100","v":{"v":0.0585,"d":"5.85%"}},{"$f":"Actif!$E$29/100","v":{"v":0.027999999999999997,"d":"2.80%"}}]
[null,"#325",29,2031,"F","A_CAPI",{"v":0.44999999999999996,"d":"0.45"},{"v":0.38999999999999996,"d":"0.39"},0.6,0.6,85,0,{"$f":"ROUND(Primes!$Q$10*V8438,2)","v":0.78},0,{"v":21703.166918041326,"d":"21,703"},{"$f":"'BP Financier'!$G$44*(('BP Financier'!$C$22+'BP Financier'!$D$22+'BP Financier'!$E$22+'BP Financier'!$F$22+'BP Financier'!$G$22)/('BP Financier'!$C$16+'BP Financier'!$C$19+'BP Financier'!$D$16+'BP Financier'!$D$19+'BP Financier'!$E$16+'BP Financier'!$E$19+'BP Financier'!$C$22+'BP Financier'!$D$22+'BP Financier'!$E$22+'BP Financier'!$F$22+'BP Financier'!$F$16+'BP Financier'!$F$19+'BP Financier'!$G$16+'BP Financier'!$G$19+'BP Financier'!$G$22))*$V8438*X8438/(1-$W8438)","v":{"v":2762.4987427324054,"d":"2,762"}},{"$f":"'BP Financier'!$G$44*(('BP Financier'!$C$22+'BP Financier'!$D$22+'BP Financier'!$E$22+'BP Financier'!$F$22+'BP Financier'!$G$22)/('BP Financier'!$C$16+'BP Financier'!$C$19+'BP Financier'!$D$16+'BP Financier'!$D$19+'BP Financier'!$E$16+'BP Financier'!$E$19+'BP Financier'!$C$22+'BP Financier'!$D$22+'BP Financier'!$E$22+'BP Financier'!$F$22+'BP Financier'!$F$16+'BP Financier'!$F$19+'BP Financier'!$G$16+'BP Financier'!$G$19+'BP Financier'!$G$22))*$V8438*Y8438/(1-$W8438)","v":{"v":1846.7533031526023,"d":"1,847"}},{"$f":"'BP Financier'!$G$44*(('BP Financier'!$C$22+'BP Financier'!$D$22+'BP Financier'!$E$22+'BP Financier'!$F$22+'BP Financier'!$G$22)/('BP Financier'!$C$16+'BP Financier'!$C$19+'BP Financier'!$D$16+'BP Financier'!$D$19+'BP Financier'!$E$16+'BP Financier'!$E$19+'BP Financier'!$C$22+'BP Financier'!$D$22+'BP Financier'!$E$22+'BP Financier'!$F$22+'BP Financier'!$F$16+'BP Financier'!$F$19+'BP Financier'!$G$16+'BP Financier'!$G$19+'BP Financier'!$G$22))*$V8438*Z8438/(1-$W8438)","v":{"v":14453.51552136789,"d":"14,454"}},{"$f":"'BP Financier'!$G$44*(('BP Financier'!$C$22+'BP Financier'!$D$22+'BP Financier'!$E$22+'BP Financier'!$F$22+'BP Financier'!$G$22)/('BP Financier'!$C$16+'BP Financier'!$C$19+'BP Financier'!$D$16+'BP Financier'!$D$19+'BP Financier'!$E$16+'BP Financier'!$E$19+'BP Financier'!$C$22+'BP Financier'!$D$22+'BP Financier'!$E$22+'BP Financier'!$F$22+'BP Financier'!$F$16+'BP Financier'!$F$19+'BP Financier'!$G$16+'BP Financier'!$G$19+'BP Financier'!$G$22))*$V8438*AA8438/(1-$W8438)","v":{"v":1785.7036071806158,"d":"1,786"}},{"$f":"'BP Financier'!$G$44*(('BP Financier'!$C$22+'BP Financier'!$D$22+'BP Financier'!$E$22+'BP Financier'!$F$22+'BP Financier'!$G$22)/('BP Financier'!$C$16+'BP Financier'!$C$19+'BP Financier'!$D$16+'BP Financier'!$D$19+'BP Financier'!$E$16+'BP Financier'!$E$19+'BP Financier'!$C$22+'BP Financier'!$D$22+'BP Financier'!$E$22+'BP Financier'!$F$22+'BP Financier'!$F$16+'BP Financier'!$F$19+'BP Financier'!$G$16+'BP Financier'!$G$19+'BP Financier'!$G$22))*$V8438*AB8438/(1-$W8438)","v":{"v":854.6957436078159,"d":"855"}},null,{"v":0.006,"d":"0.60%"},{"$f":"Actif!$E$28/100","v":{"v":0.28900000000000003,"d":"28.90%"}},{"$f":"Actif!$E$30/100","v":{"v":0.09050000000000001,"d":"9.05%"}},{"$f":"Actif!$E$31/100","v":{"v":0.0605,"d":"6.05%"}},{"$f":"Actif!$E$32/100","v":{"v":0.47350000000000003,"d":"47.35%"}},{"$f":"Actif!$E$33/100","v":{"v":0.0585,"d":"5.85%"}},{"$f":"Actif!$E$29/100","v":{"v":0.027999999999999997,"d":"2.80%"}}]
[null,"#326",30,2026,"H","A_CAPI",{"v":0.44999999999999996,"d":"0.45"},{"v":0.38999999999999996,"d":"0.39"},0.6,0.6,85,0,{"$f":"ROUND(Primes!$Q$10*V8439,2)","v":0.78},0,{"v":21703.166918041326,"d":"21,703"},{"$f":"'BP Financier'!$G$44*(('BP Financier'!$C$22+'BP Financier'!$D$22+'BP Financier'!$E$22+'BP Financier'!$F$22+'BP Financier'!$G$22)/('BP Financier'!$C$16+'BP Financier'!$C$19+'BP Financier'!$D$16+'BP Financier'!$D$19+'BP Financier'!$E$16+'BP Financier'!$E$19+'BP Financier'!$C$22+'BP Financier'!$D$22+'BP Financier'!$E$22+'BP Financier'!$F$22+'BP Financier'!$F$16+'BP Financier'!$F$19+'BP Financier'!$G$16+'BP Financier'!$G$19+'BP Financier'!$G$22))*$V8439*X8439/(1-$W8439)","v":{"v":2762.4987427324054,"d":"2,762"}},{"$f":"'BP Financier'!$G$44*(('BP Financier'!$C$22+'BP Financier'!$D$22+'BP Financier'!$E$22+'BP Financier'!$F$22+'BP Financier'!$G$22)/('BP Financier'!$C$16+'BP Financier'!$C$19+'BP Financier'!$D$16+'BP Financier'!$D$19+'BP Financier'!$E$16+'BP Financier'!$E$19+'BP Financier'!$C$22+'BP Financier'!$D$22+'BP Financier'!$E$22+'BP Financier'!$F$22+'BP Financier'!$F$16+'BP Financier'!$F$19+'BP Financier'!$G$16+'BP Financier'!$G$19+'BP Financier'!$G$22))*$V8439*Y8439/(1-$W8439)","v":{"v":1846.7533031526023,"d":"1,847"}},{"$f":"'BP Financier'!$G$44*(('BP Financier'!$C$22+'BP Financier'!$D$22+'BP Financier'!$E$22+'BP Financier'!$F$22+'BP Financier'!$G$22)/('BP Financier'!$C$16+'BP Financier'!$C$19+'BP Financier'!$D$16+'BP Financier'!$D$19+'BP Financier'!$E$16+'BP Financier'!$E$19+'BP Financier'!$C$22+'BP Financier'!$D$22+'BP Financier'!$E$22+'BP Financier'!$F$22+'BP Financier'!$F$16+'BP Financier'!$F$19+'BP Financier'!$G$16+'BP Financier'!$G$19+'BP Financier'!$G$22))*$V8439*Z8439/(1-$W8439)","v":{"v":14453.51552136789,"d":"14,454"}},{"$f":"'BP Financier'!$G$44*(('BP Financier'!$C$22+'BP Financier'!$D$22+'BP Financier'!$E$22+'BP Financier'!$F$22+'BP Financier'!$G$22)/('BP Financier'!$C$16+'BP Financier'!$C$19+'BP Financier'!$D$16+'BP Financier'!$D$19+'BP Financier'!$E$16+'BP Financier'!$E$19+'BP Financier'!$C$22+'BP Financier'!$D$22+'BP Financier'!$E$22+'BP Financier'!$F$22+'BP Financier'!$F$16+'BP Financier'!$F$19+'BP Financier'!$G$16+'BP Financier'!$G$19+'BP Financier'!$G$22))*$V8439*AA8439/(1-$W8439)","v":{"v":1785.7036071806158,"d":"1,786"}},{"$f":"'BP Financier'!$G$44*(('BP Financier'!$C$22+'BP Financier'!$D$22+'BP Financier'!$E$22+'BP Financier'!$F$22+'BP Financier'!$G$22)/('BP Financier'!$C$16+'BP Financier'!$C$19+'BP Financier'!$D$16+'BP Financier'!$D$19+'BP Financier'!$E$16+'BP Financier'!$E$19+'BP Financier'!$C$22+'BP Financier'!$D$22+'BP Financier'!$E$22+'BP Financier'!$F$22+'BP Financier'!$F$16+'BP Financier'!$F$19+'BP Financier'!$G$16+'BP Financier'!$G$19+'BP Financier'!$G$22))*$V8439*AB8439/(1-$W8439)","v":{"v":854.6957436078159,"d":"855"}},null,{"v":0.006,"d":"0.60%"},{"$f":"Actif!$E$28/100","v":{"v":0.28900000000000003,"d":"28.90%"}},{"$f":"Actif!$E$30/100","v":{"v":0.09050000000000001,"d":"9.05%"}},{"$f":"Actif!$E$31/100","v":{"v":0.0605,"d":"6.05%"}},{"$f":"Actif!$E$32/100","v":{"v":0.47350000000000003,"d":"47.35%"}},{"$f":"Actif!$E$33/100","v":{"v":0.0585,"d":"5.85%"}},{"$f":"Actif!$E$29/100","v":{"v":0.027999999999999997,"d":"2.80%"}}]
[null,"#327",30,2028,"H","A_CAPI",{"v":0.44999999999999996,"d":"0.45"},{"v":0.38999999999999996,"d":"0.39"},0.6,0.6,85,0,{"$f":"ROUND(Primes!$Q$10*V8440,2)","v":0.78},0,{"v":21703.166918041326,"d":"21,703"},{"$f":"'BP Financier'!$G$44*(('BP Financier'!$C$22+'BP Financier'!$D$22+'BP Financier'!$E$22+'BP Financier'!$F$22+'BP Financier'!$G$22)/('BP Financier'!$C$16+'BP Financier'!$C$19+'BP Financier'!$D$16+'BP Financier'!$D$19+'BP Financier'!$E$16+'BP Financier'!$E$19+'BP Financier'!$C$22+'BP Financier'!$D$22+'BP Financier'!$E$22+'BP Financier'!$F$22+'BP Financier'!$F$16+'BP Financier'!$F$19+'BP Financier'!$G$16+'BP Financier'!$G$19+'BP Financier'!$G$22))*$V8440*X8440/(1-$W8440)","v":{"v":2762.4987427324054,"d":"2,762"}},{"$f":"'BP Financier'!$G$44*(('BP Financier'!$C$22+'BP Financier'!$D$22+'BP Financier'!$E$22+'BP Financier'!$F$22+'BP Financier'!$G$22)/('BP Financier'!$C$16+'BP Financier'!$C$19+'BP Financier'!$D$16+'BP Financier'!$D$19+'BP Financier'!$E$16+'BP Financier'!$E$19+'BP Financier'!$C$22+'BP Financier'!$D$22+'BP Financier'!$E$22+'BP Financier'!$F$22+'BP Financier'!$F$16+'BP Financier'!$F$19+'BP Financier'!$G$16+'BP Financier'!$G$19+'BP Financier'!$G$22))*$V8440*Y8440/(1-$W8440)","v":{"v":1846.7533031526023,"d":"1,847"}},{"$f":"'BP Financier'!$G$44*(('BP Financier'!$C$22+'BP Financier'!$D$22+'BP Financier'!$E$22+'BP Financier'!$F$22+'BP Financier'!$G$22)/('BP Financier'!$C$16+'BP Financier'!$C$19+'BP Financier'!$D$16+'BP Financier'!$D$19+'BP Financier'!$E$16+'BP Financier'!$E$19+'BP Financier'!$C$22+'BP Financier'!$D$22+'BP Financier'!$E$22+'BP Financier'!$F$22+'BP Financier'!$F$16+'BP Financier'!$F$19+'BP Financier'!$G$16+'BP Financier'!$G$19+'BP Financier'!$G$22))*$V8440*Z8440/(1-$W8440)","v":{"v":14453.51552136789,"d":"14,454"}},{"$f":"'BP Financier'!$G$44*(('BP Financier'!$C$22+'BP Financier'!$D$22+'BP Financier'!$E$22+'BP Financier'!$F$22+'BP Financier'!$G$22)/('BP Financier'!$C$16+'BP Financier'!$C$19+'BP Financier'!$D$16+'BP Financier'!$D$19+'BP Financier'!$E$16+'BP Financier'!$E$19+'BP Financier'!$C$22+'BP Financier'!$D$22+'BP Financier'!$E$22+'BP Financier'!$F$22+'BP Financier'!$F$16+'BP Financier'!$F$19+'BP Financier'!$G$16+'BP Financier'!$G$19+'BP Financier'!$G$22))*$V8440*AA8440/(1-$W8440)","v":{"v":1785.7036071806158,"d":"1,786"}},{"$f":"'BP Financier'!$G$44*(('BP Financier'!$C$22+'BP Financier'!$D$22+'BP Financier'!$E$22+'BP Financier'!$F$22+'BP Financier'!$G$22)/('BP Financier'!$C$16+'BP Financier'!$C$19+'BP Financier'!$D$16+'BP Financier'!$D$19+'BP Financier'!$E$16+'BP Financier'!$E$19+'BP Financier'!$C$22+'BP Financier'!$D$22+'BP Financier'!$E$22+'BP Financier'!$F$22+'BP Financier'!$F$16+'BP Financier'!$F$19+'BP Financier'!$G$16+'BP Financier'!$G$19+'BP Financier'!$G$22))*$V8440*AB8440/(1-$W8440)","v":{"v":854.6957436078159,"d":"855"}},null,{"v":0.006,"d":"0.60%"},{"$f":"Actif!$E$28/100","v":{"v":0.28900000000000003,"d":"28.90%"}},{"$f":"Actif!$E$30/100","v":{"v":0.09050000000000001,"d":"9.05%"}},{"$f":"Actif!$E$31/100","v":{"v":0.0605,"d":"6.05%"}},{"$f":"Actif!$E$32/100","v":{"v":0.47350000000000003,"d":"47.35%"}},{"$f":"Actif!$E$33/100","v":{"v":0.0585,"d":"5.85%"}},{"$f":"Actif!$E$29/100","v":{"v":0.027999999999999997,"d":"2.80%"}}]
[null,"#328",30,2029,"H","A_CAPI",{"v":0.44999999999999996,"d":"0.45"},{"v":0.38999999999999996,"d":"0.39"},0.6,0.6,85,0,{"$f":"ROUND(Primes!$Q$10*V8441,2)","v":0.78},0,{"v":21703.166918041326,"d":"21,703"},{"$f":"'BP Financier'!$G$44*(('BP Financier'!$C$22+'BP Financier'!$D$22+'BP Financier'!$E$22+'BP Financier'!$F$22+'BP Financier'!$G$22)/('BP Financier'!$C$16+'BP Financier'!$C$19+'BP Financier'!$D$16+'BP Financier'!$D$19+'BP Financier'!$E$16+'BP Financier'!$E$19+'BP Financier'!$C$22+'BP Financier'!$D$22+'BP Financier'!$E$22+'BP Financier'!$F$22+'BP Financier'!$F$16+'BP Financier'!$F$19+'BP Financier'!$G$16+'BP Financier'!$G$19+'BP Financier'!$G$22))*$V8441*X8441/(1-$W8441)","v":{"v":2762.4987427324054,"d":"2,762"}},{"$f":"'BP Financier'!$G$44*(('BP Financier'!$C$22+'BP Financier'!$D$22+'BP Financier'!$E$22+'BP Financier'!$F$22+'BP Financier'!$G$22)/('BP Financier'!$C$16+'BP Financier'!$C$19+'BP Financier'!$D$16+'BP Financier'!$D$19+'BP Financier'!$E$16+'BP Financier'!$E$19+'BP Financier'!$C$22+'BP Financier'!$D$22+'BP Financier'!$E$22+'BP Financier'!$F$22+'BP Financier'!$F$16+'BP Financier'!$F$19+'BP Financier'!$G$16+'BP Financier'!$G$19+'BP Financier'!$G$22))*$V8441*Y8441/(1-$W8441)","v":{"v":1846.7533031526023,"d":"1,847"}},{"$f":"'BP Financier'!$G$44*(('BP Financier'!$C$22+'BP Financier'!$D$22+'BP Financier'!$E$22+'BP Financier'!$F$22+'BP Financier'!$G$22)/('BP Financier'!$C$16+'BP Financier'!$C$19+'BP Financier'!$D$16+'BP Financier'!$D$19+'BP Financier'!$E$16+'BP Financier'!$E$19+'BP Financier'!$C$22+'BP Financier'!$D$22+'BP Financier'!$E$22+'BP Financier'!$F$22+'BP Financier'!$F$16+'BP Financier'!$F$19+'BP Financier'!$G$16+'BP Financier'!$G$19+'BP Financier'!$G$22))*$V8441*Z8441/(1-$W8441)","v":{"v":14453.51552136789,"d":"14,454"}},{"$f":"'BP Financier'!$G$44*(('BP Financier'!$C$22+'BP Financier'!$D$22+'BP Financier'!$E$22+'BP Financier'!$F$22+'BP Financier'!$G$22)/('BP Financier'!$C$16+'BP Financier'!$C$19+'BP Financier'!$D$16+'BP Financier'!$D$19+'BP Financier'!$E$16+'BP Financier'!$E$19+'BP Financier'!$C$22+'BP Financier'!$D$22+'BP Financier'!$E$22+'BP Financier'!$F$22+'BP Financier'!$F$16+'BP Financier'!$F$19+'BP Financier'!$G$16+'BP Financier'!$G$19+'BP Financier'!$G$22))*$V8441*AA8441/(1-$W8441)","v":{"v":1785.7036071806158,"d":"1,786"}},{"$f":"'BP Financier'!$G$44*(('BP Financier'!$C$22+'BP Financier'!$D$22+'BP Financier'!$E$22+'BP Financier'!$F$22+'BP Financier'!$G$22)/('BP Financier'!$C$16+'BP Financier'!$C$19+'BP Financier'!$D$16+'BP Financier'!$D$19+'BP Financier'!$E$16+'BP Financier'!$E$19+'BP Financier'!$C$22+'BP Financier'!$D$22+'BP Financier'!$E$22+'BP Financier'!$F$22+'BP Financier'!$F$16+'BP Financier'!$F$19+'BP Financier'!$G$16+'BP Financier'!$G$19+'BP Financier'!$G$22))*$V8441*AB8441/(1-$W8441)","v":{"v":854.6957436078159,"d":"855"}},null,{"v":0.006,"d":"0.60%"},{"$f":"Actif!$E$28/100","v":{"v":0.28900000000000003,"d":"28.90%"}},{"$f":"Actif!$E$30/100","v":{"v":0.09050000000000001,"d":"9.05%"}},{"$f":"Actif!$E$31/100","v":{"v":0.0605,"d":"6.05%"}},{"$f":"Actif!$E$32/100","v":{"v":0.47350000000000003,"d":"47.35%"}},{"$f":"Actif!$E$33/100","v":{"v":0.0585,"d":"5.85%"}},{"$f":"Actif!$E$29/100","v":{"v":0.027999999999999997,"d":"2.80%"}}]
[null,"#329",30,2030,"H","A_CAPI",{"v":0.44999999999999996,"d":"0.45"},{"v":0.38999999999999996,"d":"0.39"},0.6,0.6,85,0,{"$f":"ROUND(Primes!$Q$10*V8442,2)","v":0.78},0,{"v":21703.166918041326,"d":"21,703"},{"$f":"'BP Financier'!$G$44*(('BP Financier'!$C$22+'BP Financier'!$D$22+'BP Financier'!$E$22+'BP Financier'!$F$22+'BP Financier'!$G$22)/('BP Financier'!$C$16+'BP Financier'!$C$19+'BP Financier'!$D$16+'BP Financier'!$D$19+'BP Financier'!$E$16+'BP Financier'!$E$19+'BP Financier'!$C$22+'BP Financier'!$D$22+'BP Financier'!$E$22+'BP Financier'!$F$22+'BP Financier'!$F$16+'BP Financier'!$F$19+'BP Financier'!$G$16+'BP Financier'!$G$19+'BP Financier'!$G$22))*$V8442*X8442/(1-$W8442)","v":{"v":2762.4987427324054,"d":"2,762"}},{"$f":"'BP Financier'!$G$44*(('BP Financier'!$C$22+'BP Financier'!$D$22+'BP Financier'!$E$22+'BP Financier'!$F$22+'BP Financier'!$G$22)/('BP Financier'!$C$16+'BP Financier'!$C$19+'BP Financier'!$D$16+'BP Financier'!$D$19+'BP Financier'!$E$16+'BP Financier'!$E$19+'BP Financier'!$C$22+'BP Financier'!$D$22+'BP Financier'!$E$22+'BP Financier'!$F$22+'BP Financier'!$F$16+'BP Financier'!$F$19+'BP Financier'!$G$16+'BP Financier'!$G$19+'BP Financier'!$G$22))*$V8442*Y8442/(1-$W8442)","v":{"v":1846.7533031526023,"d":"1,847"}},{"$f":"'BP Financier'!$G$44*(('BP Financier'!$C$22+'BP Financier'!$D$22+'BP Financier'!$E$22+'BP Financier'!$F$22+'BP Financier'!$G$22)/('BP Financier'!$C$16+'BP Financier'!$C$19+'BP Financier'!$D$16+'BP Financier'!$D$19+'BP Financier'!$E$16+'BP Financier'!$E$19+'BP Financier'!$C$22+'BP Financier'!$D$22+'BP Financier'!$E$22+'BP Financier'!$F$22+'BP Financier'!$F$16+'BP Financier'!$F$19+'BP Financier'!$G$16+'BP Financier'!$G$19+'BP Financier'!$G$22))*$V8442*Z8442/(1-$W8442)","v":{"v":14453.51552136789,"d":"14,454"}},{"$f":"'BP Financier'!$G$44*(('BP Financier'!$C$22+'BP Financier'!$D$22+'BP Financier'!$E$22+'BP Financier'!$F$22+'BP Financier'!$G$22)/('BP Financier'!$C$16+'BP Financier'!$C$19+'BP Financier'!$D$16+'BP Financier'!$D$19+'BP Financier'!$E$16+'BP Financier'!$E$19+'BP Financier'!$C$22+'BP Financier'!$D$22+'BP Financier'!$E$22+'BP Financier'!$F$22+'BP Financier'!$F$16+'BP Financier'!$F$19+'BP Financier'!$G$16+'BP Financier'!$G$19+'BP Financier'!$G$22))*$V8442*AA8442/(1-$W8442)","v":{"v":1785.7036071806158,"d":"1,786"}},{"$f":"'BP Financier'!$G$44*(('BP Financier'!$C$22+'BP Financier'!$D$22+'BP Financier'!$E$22+'BP Financier'!$F$22+'BP Financier'!$G$22)/('BP Financier'!$C$16+'BP Financier'!$C$19+'BP Financier'!$D$16+'BP Financier'!$D$19+'BP Financier'!$E$16+'BP Financier'!$E$19+'BP Financier'!$C$22+'BP Financier'!$D$22+'BP Financier'!$E$22+'BP Financier'!$F$22+'BP Financier'!$F$16+'BP Financier'!$F$19+'BP Financier'!$G$16+'BP Financier'!$G$19+'BP Financier'!$G$22))*$V8442*AB8442/(1-$W8442)","v":{"v":854.6957436078159,"d":"855"}},null,{"v":0.006,"d":"0.60%"},{"$f":"Actif!$E$28/100","v":{"v":0.28900000000000003,"d":"28.90%"}},{"$f":"Actif!$E$30/100","v":{"v":0.09050000000000001,"d":"9.05%"}},{"$f":"Actif!$E$31/100","v":{"v":0.0605,"d":"6.05%"}},{"$f":"Actif!$E$32/100","v":{"v":0.47350000000000003,"d":"47.35%"}},{"$f":"Actif!$E$33/100","v":{"v":0.0585,"d":"5.85%"}},{"$f":"Actif!$E$29/100","v":{"v":0.027999999999999997,"d":"2.80%"}}]
[null,"#330",30,2031,"H","A_CAPI",{"v":0.44999999999999996,"d":"0.45"},{"v":0.38999999999999996,"d":"0.39"},0.6,0.6,85,0,{"$f":"ROUND(Primes!$Q$10*V8443,2)","v":0.78},0,{"v":21703.166918041326,"d":"21,703"},{"$f":"'BP Financier'!$G$44*(('BP Financier'!$C$22+'BP Financier'!$D$22+'BP Financier'!$E$22+'BP Financier'!$F$22+'BP Financier'!$G$22)/('BP Financier'!$C$16+'BP Financier'!$C$19+'BP Financier'!$D$16+'BP Financier'!$D$19+'BP Financier'!$E$16+'BP Financier'!$E$19+'BP Financier'!$C$22+'BP Financier'!$D$22+'BP Financier'!$E$22+'BP Financier'!$F$22+'BP Financier'!$F$16+'BP Financier'!$F$19+'BP Financier'!$G$16+'BP Financier'!$G$19+'BP Financier'!$G$22))*$V8443*X8443/(1-$W8443)","v":{"v":2762.4987427324054,"d":"2,762"}},{"$f":"'BP Financier'!$G$44*(('BP Financier'!$C$22+'BP Financier'!$D$22+'BP Financier'!$E$22+'BP Financier'!$F$22+'BP Financier'!$G$22)/('BP Financier'!$C$16+'BP Financier'!$C$19+'BP Financier'!$D$16+'BP Financier'!$D$19+'BP Financier'!$E$16+'BP Financier'!$E$19+'BP Financier'!$C$22+'BP Financier'!$D$22+'BP Financier'!$E$22+'BP Financier'!$F$22+'BP Financier'!$F$16+'BP Financier'!$F$19+'BP Financier'!$G$16+'BP Financier'!$G$19+'BP Financier'!$G$22))*$V8443*Y8443/(1-$W8443)","v":{"v":1846.7533031526023,"d":"1,847"}},{"$f":"'BP Financier'!$G$44*(('BP Financier'!$C$22+'BP Financier'!$D$22+'BP Financier'!$E$22+'BP Financier'!$F$22+'BP Financier'!$G$22)/('BP Financier'!$C$16+'BP Financier'!$C$19+'BP Financier'!$D$16+'BP Financier'!$D$19+'BP Financier'!$E$16+'BP Financier'!$E$19+'BP Financier'!$C$22+'BP Financier'!$D$22+'BP Financier'!$E$22+'BP Financier'!$F$22+'BP Financier'!$F$16+'BP Financier'!$F$19+'BP Financier'!$G$16+'BP Financier'!$G$19+'BP Financier'!$G$22))*$V8443*Z8443/(1-$W8443)","v":{"v":14453.51552136789,"d":"14,454"}},{"$f":"'BP Financier'!$G$44*(('BP Financier'!$C$22+'BP Financier'!$D$22+'BP Financier'!$E$22+'BP Financier'!$F$22+'BP Financier'!$G$22)/('BP Financier'!$C$16+'BP Financier'!$C$19+'BP Financier'!$D$16+'BP Financier'!$D$19+'BP Financier'!$E$16+'BP Financier'!$E$19+'BP Financier'!$C$22+'BP Financier'!$D$22+'BP Financier'!$E$22+'BP Financier'!$F$22+'BP Financier'!$F$16+'BP Financier'!$F$19+'BP Financier'!$G$16+'BP Financier'!$G$19+'BP Financier'!$G$22))*$V8443*AA8443/(1-$W8443)","v":{"v":1785.7036071806158,"d":"1,786"}},{"$f":"'BP Financier'!$G$44*(('BP Financier'!$C$22+'BP Financier'!$D$22+'BP Financier'!$E$22+'BP Financier'!$F$22+'BP Financier'!$G$22)/('BP Financier'!$C$16+'BP Financier'!$C$19+'BP Financier'!$D$16+'BP Financier'!$D$19+'BP Financier'!$E$16+'BP Financier'!$E$19+'BP Financier'!$C$22+'BP Financier'!$D$22+'BP Financier'!$E$22+'BP Financier'!$F$22+'BP Financier'!$F$16+'BP Financier'!$F$19+'BP Financier'!$G$16+'BP Financier'!$G$19+'BP Financier'!$G$22))*$V8443*AB8443/(1-$W8443)","v":{"v":854.6957436078159,"d":"855"}},null,{"v":0.006,"d":"0.60%"},{"$f":"Actif!$E$28/100","v":{"v":0.28900000000000003,"d":"28.90%"}},{"$f":"Actif!$E$30/100","v":{"v":0.09050000000000001,"d":"9.05%"}},{"$f":"Actif!$E$31/100","v":{"v":0.0605,"d":"6.05%"}},{"$f":"Actif!$E$32/100","v":{"v":0.47350000000000003,"d":"47.35%"}},{"$f":"Actif!$E$33/100","v":{"v":0.0585,"d":"5.85%"}},{"$f":"Actif!$E$29/100","v":{"v":0.027999999999999997,"d":"2.80%"}}]
[null,"#331",31,2026,"H","A_CAPI",{"v":0.44999999999999996,"d":"0.45"},{"v":0.38999999999999996,"d":"0.39"},0.6,0.6,85,0,{"$f":"ROUND(Primes!$Q$10*V8444,2)","v":0.78},0,{"v":21703.166918041326,"d":"21,703"},{"$f":"'BP Financier'!$G$44*(('BP Financier'!$C$22+'BP Financier'!$D$22+'BP Financier'!$E$22+'BP Financier'!$F$22+'BP Financier'!$G$22)/('BP Financier'!$C$16+'BP Financier'!$C$19+'BP Financier'!$D$16+'BP Financier'!$D$19+'BP Financier'!$E$16+'BP Financier'!$E$19+'BP Financier'!$C$22+'BP Financier'!$D$22+'BP Financier'!$E$22+'BP Financier'!$F$22+'BP Financier'!$F$16+'BP Financier'!$F$19+'BP Financier'!$G$16+'BP Financier'!$G$19+'BP Financier'!$G$22))*$V8444*X8444/(1-$W8444)","v":{"v":2762.4987427324054,"d":"2,762"}},{"$f":"'BP Financier'!$G$44*(('BP Financier'!$C$22+'BP Financier'!$D$22+'BP Financier'!$E$22+'BP Financier'!$F$22+'BP Financier'!$G$22)/('BP Financier'!$C$16+'BP Financier'!$C$19+'BP Financier'!$D$16+'BP Financier'!$D$19+'BP Financier'!$E$16+'BP Financier'!$E$19+'BP Financier'!$C$22+'BP Financier'!$D$22+'BP Financier'!$E$22+'BP Financier'!$F$22+'BP Financier'!$F$16+'BP Financier'!$F$19+'BP Financier'!$G$16+'BP Financier'!$G$19+'BP Financier'!$G$22))*$V8444*Y8444/(1-$W8444)","v":{"v":1846.7533031526023,"d":"1,847"}},{"$f":"'BP Financier'!$G$44*(('BP Financier'!$C$22+'BP Financier'!$D$22+'BP Financier'!$E$22+'BP Financier'!$F$22+'BP Financier'!$G$22)/('BP Financier'!$C$16+'BP Financier'!$C$19+'BP Financier'!$D$16+'BP Financier'!$D$19+'BP Financier'!$E$16+'BP Financier'!$E$19+'BP Financier'!$C$22+'BP Financier'!$D$22+'BP Financier'!$E$22+'BP Financier'!$F$22+'BP Financier'!$F$16+'BP Financier'!$F$19+'BP Financier'!$G$16+'BP Financier'!$G$19+'BP Financier'!$G$22))*$V8444*Z8444/(1-$W8444)","v":{"v":14453.51552136789,"d":"14,454"}},{"$f":"'BP Financier'!$G$44*(('BP Financier'!$C$22+'BP Financier'!$D$22+'BP Financier'!$E$22+'BP Financier'!$F$22+'BP Financier'!$G$22)/('BP Financier'!$C$16+'BP Financier'!$C$19+'BP Financier'!$D$16+'BP Financier'!$D$19+'BP Financier'!$E$16+'BP Financier'!$E$19+'BP Financier'!$C$22+'BP Financier'!$D$22+'BP Financier'!$E$22+'BP Financier'!$F$22+'BP Financier'!$F$16+'BP Financier'!$F$19+'BP Financier'!$G$16+'BP Financier'!$G$19+'BP Financier'!$G$22))*$V8444*AA8444/(1-$W8444)","v":{"v":1785.7036071806158,"d":"1,786"}},{"$f":"'BP Financier'!$G$44*(('BP Financier'!$C$22+'BP Financier'!$D$22+'BP Financier'!$E$22+'BP Financier'!$F$22+'BP Financier'!$G$22)/('BP Financier'!$C$16+'BP Financier'!$C$19+'BP Financier'!$D$16+'BP Financier'!$D$19+'BP Financier'!$E$16+'BP Financier'!$E$19+'BP Financier'!$C$22+'BP Financier'!$D$22+'BP Financier'!$E$22+'BP Financier'!$F$22+'BP Financier'!$F$16+'BP Financier'!$F$19+'BP Financier'!$G$16+'BP Financier'!$G$19+'BP Financier'!$G$22))*$V8444*AB8444/(1-$W8444)","v":{"v":854.6957436078159,"d":"855"}},null,{"v":0.006,"d":"0.60%"},{"$f":"Actif!$E$28/100","v":{"v":0.28900000000000003,"d":"28.90%"}},{"$f":"Actif!$E$30/100","v":{"v":0.09050000000000001,"d":"9.05%"}},{"$f":"Actif!$E$31/100","v":{"v":0.0605,"d":"6.05%"}},{"$f":"Actif!$E$32/100","v":{"v":0.47350000000000003,"d":"47.35%"}},{"$f":"Actif!$E$33/100","v":{"v":0.0585,"d":"5.85%"}},{"$f":"Actif!$E$29/100","v":{"v":0.027999999999999997,"d":"2.80%"}}]
[null,"#332",31,2028,"H","A_CAPI",{"v":0.44999999999999996,"d":"0.45"},{"v":0.38999999999999996,"d":"0.39"},0.6,0.6,85,0,{"$f":"ROUND(Primes!$Q$10*V8445,2)","v":0.78},0,{"v":21703.166918041326,"d":"21,703"},{"$f":"'BP Financier'!$G$44*(('BP Financier'!$C$22+'BP Financier'!$D$22+'BP Financier'!$E$22+'BP Financier'!$F$22+'BP Financier'!$G$22)/('BP Financier'!$C$16+'BP Financier'!$C$19+'BP Financier'!$D$16+'BP Financier'!$D$19+'BP Financier'!$E$16+'BP Financier'!$E$19+'BP Financier'!$C$22+'BP Financier'!$D$22+'BP Financier'!$E$22+'BP Financier'!$F$22+'BP Financier'!$F$16+'BP Financier'!$F$19+'BP Financier'!$G$16+'BP Financier'!$G$19+'BP Financier'!$G$22))*$V8445*X8445/(1-$W8445)","v":{"v":2762.4987427324054,"d":"2,762"}},{"$f":"'BP Financier'!$G$44*(('BP Financier'!$C$22+'BP Financier'!$D$22+'BP Financier'!$E$22+'BP Financier'!$F$22+'BP Financier'!$G$22)/('BP Financier'!$C$16+'BP Financier'!$C$19+'BP Financier'!$D$16+'BP Financier'!$D$19+'BP Financier'!$E$16+'BP Financier'!$E$19+'BP Financier'!$C$22+'BP Financier'!$D$22+'BP Financier'!$E$22+'BP Financier'!$F$22+'BP Financier'!$F$16+'BP Financier'!$F$19+'BP Financier'!$G$16+'BP Financier'!$G$19+'BP Financier'!$G$22))*$V8445*Y8445/(1-$W8445)","v":{"v":1846.7533031526023,"d":"1,847"}},{"$f":"'BP Financier'!$G$44*(('BP Financier'!$C$22+'BP Financier'!$D$22+'BP Financier'!$E$22+'BP Financier'!$F$22+'BP Financier'!$G$22)/('BP Financier'!$C$16+'BP Financier'!$C$19+'BP Financier'!$D$16+'BP Financier'!$D$19+'BP Financier'!$E$16+'BP Financier'!$E$19+'BP Financier'!$C$22+'BP Financier'!$D$22+'BP Financier'!$E$22+'BP Financier'!$F$22+'BP Financier'!$F$16+'BP Financier'!$F$19+'BP Financier'!$G$16+'BP Financier'!$G$19+'BP Financier'!$G$22))*$V8445*Z8445/(1-$W8445)","v":{"v":14453.51552136789,"d":"14,454"}},{"$f":"'BP Financier'!$G$44*(('BP Financier'!$C$22+'BP Financier'!$D$22+'BP Financier'!$E$22+'BP Financier'!$F$22+'BP Financier'!$G$22)/('BP Financier'!$C$16+'BP Financier'!$C$19+'BP Financier'!$D$16+'BP Financier'!$D$19+'BP Financier'!$E$16+'BP Financier'!$E$19+'BP Financier'!$C$22+'BP Financier'!$D$22+'BP Financier'!$E$22+'BP Financier'!$F$22+'BP Financier'!$F$16+'BP Financier'!$F$19+'BP Financier'!$G$16+'BP Financier'!$G$19+'BP Financier'!$G$22))*$V8445*AA8445/(1-$W8445)","v":{"v":1785.7036071806158,"d":"1,786"}},{"$f":"'BP Financier'!$G$44*(('BP Financier'!$C$22+'BP Financier'!$D$22+'BP Financier'!$E$22+'BP Financier'!$F$22+'BP Financier'!$G$22)/('BP Financier'!$C$16+'BP Financier'!$C$19+'BP Financier'!$D$16+'BP Financier'!$D$19+'BP Financier'!$E$16+'BP Financier'!$E$19+'BP Financier'!$C$22+'BP Financier'!$D$22+'BP Financier'!$E$22+'BP Financier'!$F$22+'BP Financier'!$F$16+'BP Financier'!$F$19+'BP Financier'!$G$16+'BP Financier'!$G$19+'BP Financier'!$G$22))*$V8445*AB8445/(1-$W8445)","v":{"v":854.6957436078159,"d":"855"}},null,{"v":0.006,"d":"0.60%"},{"$f":"Actif!$E$28/100","v":{"v":0.28900000000000003,"d":"28.90%"}},{"$f":"Actif!$E$30/100","v":{"v":0.09050000000000001,"d":"9.05%"}},{"$f":"Actif!$E$31/100","v":{"v":0.0605,"d":"6.05%"}},{"$f":"Actif!$E$32/100","v":{"v":0.47350000000000003,"d":"47.35%"}},{"$f":"Actif!$E$33/100","v":{"v":0.0585,"d":"5.85%"}},{"$f":"Actif!$E$29/100","v":{"v":0.027999999999999997,"d":"2.80%"}}]
[null,"#333",31,2029,"H","A_CAPI",{"v":0.44999999999999996,"d":"0.45"},{"v":0.38999999999999996,"d":"0.39"},0.6,0.6,85,0,{"$f":"ROUND(Primes!$Q$10*V8446,2)","v":0.78},0,{"v":21703.166918041326,"d":"21,703"},{"$f":"'BP Financier'!$G$44*(('BP Financier'!$C$22+'BP Financier'!$D$22+'BP Financier'!$E$22+'BP Financier'!$F$22+'BP Financier'!$G$22)/('BP Financier'!$C$16+'BP Financier'!$C$19+'BP Financier'!$D$16+'BP Financier'!$D$19+'BP Financier'!$E$16+'BP Financier'!$E$19+'BP Financier'!$C$22+'BP Financier'!$D$22+'BP Financier'!$E$22+'BP Financier'!$F$22+'BP Financier'!$F$16+'BP Financier'!$F$19+'BP Financier'!$G$16+'BP Financier'!$G$19+'BP Financier'!$G$22))*$V8446*X8446/(1-$W8446)","v":{"v":2762.4987427324054,"d":"2,762"}},{"$f":"'BP Financier'!$G$44*(('BP Financier'!$C$22+'BP Financier'!$D$22+'BP Financier'!$E$22+'BP Financier'!$F$22+'BP Financier'!$G$22)/('BP Financier'!$C$16+'BP Financier'!$C$19+'BP Financier'!$D$16+'BP Financier'!$D$19+'BP Financier'!$E$16+'BP Financier'!$E$19+'BP Financier'!$C$22+'BP Financier'!$D$22+'BP Financier'!$E$22+'BP Financier'!$F$22+'BP Financier'!$F$16+'BP Financier'!$F$19+'BP Financier'!$G$16+'BP Financier'!$G$19+'BP Financier'!$G$22))*$V8446*Y8446/(1-$W8446)","v":{"v":1846.7533031526023,"d":"1,847"}},{"$f":"'BP Financier'!$G$44*(('BP Financier'!$C$22+'BP Financier'!$D$22+'BP Financier'!$E$22+'BP Financier'!$F$22+'BP Financier'!$G$22)/('BP Financier'!$C$16+'BP Financier'!$C$19+'BP Financier'!$D$16+'BP Financier'!$D$19+'BP Financier'!$E$16+'BP Financier'!$E$19+'BP Financier'!$C$22+'BP Financier'!$D$22+'BP Financier'!$E$22+'BP Financier'!$F$22+'BP Financier'!$F$16+'BP Financier'!$F$19+'BP Financier'!$G$16+'BP Financier'!$G$19+'BP Financier'!$G$22))*$V8446*Z8446/(1-$W8446)","v":{"v":14453.51552136789,"d":"14,454"}},{"$f":"'BP Financier'!$G$44*(('BP Financier'!$C$22+'BP Financier'!$D$22+'BP Financier'!$E$22+'BP Financier'!$F$22+'BP Financier'!$G$22)/('BP Financier'!$C$16+'BP Financier'!$C$19+'BP Financier'!$D$16+'BP Financier'!$D$19+'BP Financier'!$E$16+'BP Financier'!$E$19+'BP Financier'!$C$22+'BP Financier'!$D$22+'BP Financier'!$E$22+'BP Financier'!$F$22+'BP Financier'!$F$16+'BP Financier'!$F$19+'BP Financier'!$G$16+'BP Financier'!$G$19+'BP Financier'!$G$22))*$V8446*AA8446/(1-$W8446)","v":{"v":1785.7036071806158,"d":"1,786"}},{"$f":"'BP Financier'!$G$44*(('BP Financier'!$C$22+'BP Financier'!$D$22+'BP Financier'!$E$22+'BP Financier'!$F$22+'BP Financier'!$G$22)/('BP Financier'!$C$16+'BP Financier'!$C$19+'BP Financier'!$D$16+'BP Financier'!$D$19+'BP Financier'!$E$16+'BP Financier'!$E$19+'BP Financier'!$C$22+'BP Financier'!$D$22+'BP Financier'!$E$22+'BP Financier'!$F$22+'BP Financier'!$F$16+'BP Financier'!$F$19+'BP Financier'!$G$16+'BP Financier'!$G$19+'BP Financier'!$G$22))*$V8446*AB8446/(1-$W8446)","v":{"v":854.6957436078159,"d":"855"}},null,{"v":0.006,"d":"0.60%"},{"$f":"Actif!$E$28/100","v":{"v":0.28900000000000003,"d":"28.90%"}},{"$f":"Actif!$E$30/100","v":{"v":0.09050000000000001,"d":"9.05%"}},{"$f":"Actif!$E$31/100","v":{"v":0.0605,"d":"6.05%"}},{"$f":"Actif!$E$32/100","v":{"v":0.47350000000000003,"d":"47.35%"}},{"$f":"Actif!$E$33/100","v":{"v":0.0585,"d":"5.85%"}},{"$f":"Actif!$E$29/100","v":{"v":0.027999999999999997,"d":"2.80%"}}]
[null,"#334",31,2030,"H","A_CAPI",{"v":0.44999999999999996,"d":"0.45"},{"v":0.38999999999999996,"d":"0.39"},0.6,0.6,85,0,{"$f":"ROUND(Primes!$Q$10*V8447,2)","v":0.78},0,{"v":21703.166918041326,"d":"21,703"},{"$f":"'BP Financier'!$G$44*(('BP Financier'!$C$22+'BP Financier'!$D$22+'BP Financier'!$E$22+'BP Financier'!$F$22+'BP Financier'!$G$22)/('BP Financier'!$C$16+'BP Financier'!$C$19+'BP Financier'!$D$16+'BP Financier'!$D$19+'BP Financier'!$E$16+'BP Financier'!$E$19+'BP Financier'!$C$22+'BP Financier'!$D$22+'BP Financier'!$E$22+'BP Financier'!$F$22+'BP Financier'!$F$16+'BP Financier'!$F$19+'BP Financier'!$G$16+'BP Financier'!$G$19+'BP Financier'!$G$22))*$V8447*X8447/(1-$W8447)","v":{"v":2762.4987427324054,"d":"2,762"}},{"$f":"'BP Financier'!$G$44*(('BP Financier'!$C$22+'BP Financier'!$D$22+'BP Financier'!$E$22+'BP Financier'!$F$22+'BP Financier'!$G$22)/('BP Financier'!$C$16+'BP Financier'!$C$19+'BP Financier'!$D$16+'BP Financier'!$D$19+'BP Financier'!$E$16+'BP Financier'!$E$19+'BP Financier'!$C$22+'BP Financier'!$D$22+'BP Financier'!$E$22+'BP Financier'!$F$22+'BP Financier'!$F$16+'BP Financier'!$F$19+'BP Financier'!$G$16+'BP Financier'!$G$19+'BP Financier'!$G$22))*$V8447*Y8447/(1-$W8447)","v":{"v":1846.7533031526023,"d":"1,847"}},{"$f":"'BP Financier'!$G$44*(('BP Financier'!$C$22+'BP Financier'!$D$22+'BP Financier'!$E$22+'BP Financier'!$F$22+'BP Financier'!$G$22)/('BP Financier'!$C$16+'BP Financier'!$C$19+'BP Financier'!$D$16+'BP Financier'!$D$19+'BP Financier'!$E$16+'BP Financier'!$E$19+'BP Financier'!$C$22+'BP Financier'!$D$22+'BP Financier'!$E$22+'BP Financier'!$F$22+'BP Financier'!$F$16+'BP Financier'!$F$19+'BP Financier'!$G$16+'BP Financier'!$G$19+'BP Financier'!$G$22))*$V8447*Z8447/(1-$W8447)","v":{"v":14453.51552136789,"d":"14,454"}},{"$f":"'BP Financier'!$G$44*(('BP Financier'!$C$22+'BP Financier'!$D$22+'BP Financier'!$E$22+'BP Financier'!$F$22+'BP Financier'!$G$22)/('BP Financier'!$C$16+'BP Financier'!$C$19+'BP Financier'!$D$16+'BP Financier'!$D$19+'BP Financier'!$E$16+'BP Financier'!$E$19+'BP Financier'!$C$22+'BP Financier'!$D$22+'BP Financier'!$E$22+'BP Financier'!$F$22+'BP Financier'!$F$16+'BP Financier'!$F$19+'BP Financier'!$G$16+'BP Financier'!$G$19+'BP Financier'!$G$22))*$V8447*AA8447/(1-$W8447)","v":{"v":1785.7036071806158,"d":"1,786"}},{"$f":"'BP Financier'!$G$44*(('BP Financier'!$C$22+'BP Financier'!$D$22+'BP Financier'!$E$22+'BP Financier'!$F$22+'BP Financier'!$G$22)/('BP Financier'!$C$16+'BP Financier'!$C$19+'BP Financier'!$D$16+'BP Financier'!$D$19+'BP Financier'!$E$16+'BP Financier'!$E$19+'BP Financier'!$C$22+'BP Financier'!$D$22+'BP Financier'!$E$22+'BP Financier'!$F$22+'BP Financier'!$F$16+'BP Financier'!$F$19+'BP Financier'!$G$16+'BP Financier'!$G$19+'BP Financier'!$G$22))*$V8447*AB8447/(1-$W8447)","v":{"v":854.6957436078159,"d":"855"}},null,{"v":0.006,"d":"0.60%"},{"$f":"Actif!$E$28/100","v":{"v":0.28900000000000003,"d":"28.90%"}},{"$f":"Actif!$E$30/100","v":{"v":0.09050000000000001,"d":"9.05%"}},{"$f":"Actif!$E$31/100","v":{"v":0.0605,"d":"6.05%"}},{"$f":"Actif!$E$32/100","v":{"v":0.47350000000000003,"d":"47.35%"}},{"$f":"Actif!$E$33/100","v":{"v":0.0585,"d":"5.85%"}},{"$f":"Actif!$E$29/100","v":{"v":0.027999999999999997,"d":"2.80%"}}]
[null,"#335",31,2031,"H","A_CAPI",{"v":0.44999999999999996,"d":"0.45"},{"v":0.38999999999999996,"d":"0.39"},0.6,0.6,85,0,{"$f":"ROUND(Primes!$Q$10*V8448,2)","v":0.78},0,{"v":21703.166918041326,"d":"21,703"},{"$f":"'BP Financier'!$G$44*(('BP Financier'!$C$22+'BP Financier'!$D$22+'BP Financier'!$E$22+'BP Financier'!$F$22+'BP Financier'!$G$22)/('BP Financier'!$C$16+'BP Financier'!$C$19+'BP Financier'!$D$16+'BP Financier'!$D$19+'BP Financier'!$E$16+'BP Financier'!$E$19+'BP Financier'!$C$22+'BP Financier'!$D$22+'BP Financier'!$E$22+'BP Financier'!$F$22+'BP Financier'!$F$16+'BP Financier'!$F$19+'BP Financier'!$G$16+'BP Financier'!$G$19+'BP Financier'!$G$22))*$V8448*X8448/(1-$W8448)","v":{"v":2762.4987427324054,"d":"2,762"}},{"$f":"'BP Financier'!$G$44*(('BP Financier'!$C$22+'BP Financier'!$D$22+'BP Financier'!$E$22+'BP Financier'!$F$22+'BP Financier'!$G$22)/('BP Financier'!$C$16+'BP Financier'!$C$19+'BP Financier'!$D$16+'BP Financier'!$D$19+'BP Financier'!$E$16+'BP Financier'!$E$19+'BP Financier'!$C$22+'BP Financier'!$D$22+'BP Financier'!$E$22+'BP Financier'!$F$22+'BP Financier'!$F$16+'BP Financier'!$F$19+'BP Financier'!$G$16+'BP Financier'!$G$19+'BP Financier'!$G$22))*$V8448*Y8448/(1-$W8448)","v":{"v":1846.7533031526023,"d":"1,847"}},{"$f":"'BP Financier'!$G$44*(('BP Financier'!$C$22+'BP Financier'!$D$22+'BP Financier'!$E$22+'BP Financier'!$F$22+'BP Financier'!$G$22)/('BP Financier'!$C$16+'BP Financier'!$C$19+'BP Financier'!$D$16+'BP Financier'!$D$19+'BP Financier'!$E$16+'BP Financier'!$E$19+'BP Financier'!$C$22+'BP Financier'!$D$22+'BP Financier'!$E$22+'BP Financier'!$F$22+'BP Financier'!$F$16+'BP Financier'!$F$19+'BP Financier'!$G$16+'BP Financier'!$G$19+'BP Financier'!$G$22))*$V8448*Z8448/(1-$W8448)","v":{"v":14453.51552136789,"d":"14,454"}},{"$f":"'BP Financier'!$G$44*(('BP Financier'!$C$22+'BP Financier'!$D$22+'BP Financier'!$E$22+'BP Financier'!$F$22+'BP Financier'!$G$22)/('BP Financier'!$C$16+'BP Financier'!$C$19+'BP Financier'!$D$16+'BP Financier'!$D$19+'BP Financier'!$E$16+'BP Financier'!$E$19+'BP Financier'!$C$22+'BP Financier'!$D$22+'BP Financier'!$E$22+'BP Financier'!$F$22+'BP Financier'!$F$16+'BP Financier'!$F$19+'BP Financier'!$G$16+'BP Financier'!$G$19+'BP Financier'!$G$22))*$V8448*AA8448/(1-$W8448)","v":{"v":1785.7036071806158,"d":"1,786"}},{"$f":"'BP Financier'!$G$44*(('BP Financier'!$C$22+'BP Financier'!$D$22+'BP Financier'!$E$22+'BP Financier'!$F$22+'BP Financier'!$G$22)/('BP Financier'!$C$16+'BP Financier'!$C$19+'BP Financier'!$D$16+'BP Financier'!$D$19+'BP Financier'!$E$16+'BP Financier'!$E$19+'BP Financier'!$C$22+'BP Financier'!$D$22+'BP Financier'!$E$22+'BP Financier'!$F$22+'BP Financier'!$F$16+'BP Financier'!$F$19+'BP Financier'!$G$16+'BP Financier'!$G$19+'BP Financier'!$G$22))*$V8448*AB8448/(1-$W8448)","v":{"v":854.6957436078159,"d":"855"}},null,{"v":0.006,"d":"0.60%"},{"$f":"Actif!$E$28/100","v":{"v":0.28900000000000003,"d":"28.90%"}},{"$f":"Actif!$E$30/100","v":{"v":0.09050000000000001,"d":"9.05%"}},{"$f":"Actif!$E$31/100","v":{"v":0.0605,"d":"6.05%"}},{"$f":"Actif!$E$32/100","v":{"v":0.47350000000000003,"d":"47.35%"}},{"$f":"Actif!$E$33/100","v":{"v":0.0585,"d":"5.85%"}},{"$f":"Actif!$E$29/100","v":{"v":0.027999999999999997,"d":"2.80%"}}]
[null,"#336",32,2026,"F","A_CAPI",{"v":0.44999999999999996,"d":"0.45"},{"v":0.38999999999999996,"d":"0.39"},0.6,0.6,85,0,{"$f":"ROUND(Primes!$Q$10*V8449,2)","v":0.78},0,{"v":21703.166918041326,"d":"21,703"},{"$f":"'BP Financier'!$G$44*(('BP Financier'!$C$22+'BP Financier'!$D$22+'BP Financier'!$E$22+'BP Financier'!$F$22+'BP Financier'!$G$22)/('BP Financier'!$C$16+'BP Financier'!$C$19+'BP Financier'!$D$16+'BP Financier'!$D$19+'BP Financier'!$E$16+'BP Financier'!$E$19+'BP Financier'!$C$22+'BP Financier'!$D$22+'BP Financier'!$E$22+'BP Financier'!$F$22+'BP Financier'!$F$16+'BP Financier'!$F$19+'BP Financier'!$G$16+'BP Financier'!$G$19+'BP Financier'!$G$22))*$V8449*X8449/(1-$W8449)","v":{"v":2762.4987427324054,"d":"2,762"}},{"$f":"'BP Financier'!$G$44*(('BP Financier'!$C$22+'BP Financier'!$D$22+'BP Financier'!$E$22+'BP Financier'!$F$22+'BP Financier'!$G$22)/('BP Financier'!$C$16+'BP Financier'!$C$19+'BP Financier'!$D$16+'BP Financier'!$D$19+'BP Financier'!$E$16+'BP Financier'!$E$19+'BP Financier'!$C$22+'BP Financier'!$D$22+'BP Financier'!$E$22+'BP Financier'!$F$22+'BP Financier'!$F$16+'BP Financier'!$F$19+'BP Financier'!$G$16+'BP Financier'!$G$19+'BP Financier'!$G$22))*$V8449*Y8449/(1-$W8449)","v":{"v":1846.7533031526023,"d":"1,847"}},{"$f":"'BP Financier'!$G$44*(('BP Financier'!$C$22+'BP Financier'!$D$22+'BP Financier'!$E$22+'BP Financier'!$F$22+'BP Financier'!$G$22)/('BP Financier'!$C$16+'BP Financier'!$C$19+'BP Financier'!$D$16+'BP Financier'!$D$19+'BP Financier'!$E$16+'BP Financier'!$E$19+'BP Financier'!$C$22+'BP Financier'!$D$22+'BP Financier'!$E$22+'BP Financier'!$F$22+'BP Financier'!$F$16+'BP Financier'!$F$19+'BP Financier'!$G$16+'BP Financier'!$G$19+'BP Financier'!$G$22))*$V8449*Z8449/(1-$W8449)","v":{"v":14453.51552136789,"d":"14,454"}},{"$f":"'BP Financier'!$G$44*(('BP Financier'!$C$22+'BP Financier'!$D$22+'BP Financier'!$E$22+'BP Financier'!$F$22+'BP Financier'!$G$22)/('BP Financier'!$C$16+'BP Financier'!$C$19+'BP Financier'!$D$16+'BP Financier'!$D$19+'BP Financier'!$E$16+'BP Financier'!$E$19+'BP Financier'!$C$22+'BP Financier'!$D$22+'BP Financier'!$E$22+'BP Financier'!$F$22+'BP Financier'!$F$16+'BP Financier'!$F$19+'BP Financier'!$G$16+'BP Financier'!$G$19+'BP Financier'!$G$22))*$V8449*AA8449/(1-$W8449)","v":{"v":1785.7036071806158,"d":"1,786"}},{"$f":"'BP Financier'!$G$44*(('BP Financier'!$C$22+'BP Financier'!$D$22+'BP Financier'!$E$22+'BP Financier'!$F$22+'BP Financier'!$G$22)/('BP Financier'!$C$16+'BP Financier'!$C$19+'BP Financier'!$D$16+'BP Financier'!$D$19+'BP Financier'!$E$16+'BP Financier'!$E$19+'BP Financier'!$C$22+'BP Financier'!$D$22+'BP Financier'!$E$22+'BP Financier'!$F$22+'BP Financier'!$F$16+'BP Financier'!$F$19+'BP Financier'!$G$16+'BP Financier'!$G$19+'BP Financier'!$G$22))*$V8449*AB8449/(1-$W8449)","v":{"v":854.6957436078159,"d":"855"}},null,{"v":0.006,"d":"0.60%"},{"$f":"Actif!$E$28/100","v":{"v":0.28900000000000003,"d":"28.90%"}},{"$f":"Actif!$E$30/100","v":{"v":0.09050000000000001,"d":"9.05%"}},{"$f":"Actif!$E$31/100","v":{"v":0.0605,"d":"6.05%"}},{"$f":"Actif!$E$32/100","v":{"v":0.47350000000000003,"d":"47.35%"}},{"$f":"Actif!$E$33/100","v":{"v":0.0585,"d":"5.85%"}},{"$f":"Actif!$E$29/100","v":{"v":0.027999999999999997,"d":"2.80%"}}]
[null,"#337",32,2028,"F","A_CAPI",{"v":0.44999999999999996,"d":"0.45"},{"v":0.38999999999999996,"d":"0.39"},0.6,0.6,85,0,{"$f":"ROUND(Primes!$Q$10*V8450,2)","v":0.78},0,{"v":21703.166918041326,"d":"21,703"},{"$f":"'BP Financier'!$G$44*(('BP Financier'!$C$22+'BP Financier'!$D$22+'BP Financier'!$E$22+'BP Financier'!$F$22+'BP Financier'!$G$22)/('BP Financier'!$C$16+'BP Financier'!$C$19+'BP Financier'!$D$16+'BP Financier'!$D$19+'BP Financier'!$E$16+'BP Financier'!$E$19+'BP Financier'!$C$22+'BP Financier'!$D$22+'BP Financier'!$E$22+'BP Financier'!$F$22+'BP Financier'!$F$16+'BP Financier'!$F$19+'BP Financier'!$G$16+'BP Financier'!$G$19+'BP Financier'!$G$22))*$V8450*X8450/(1-$W8450)","v":{"v":2762.4987427324054,"d":"2,762"}},{"$f":"'BP Financier'!$G$44*(('BP Financier'!$C$22+'BP Financier'!$D$22+'BP Financier'!$E$22+'BP Financier'!$F$22+'BP Financier'!$G$22)/('BP Financier'!$C$16+'BP Financier'!$C$19+'BP Financier'!$D$16+'BP Financier'!$D$19+'BP Financier'!$E$16+'BP Financier'!$E$19+'BP Financier'!$C$22+'BP Financier'!$D$22+'BP Financier'!$E$22+'BP Financier'!$F$22+'BP Financier'!$F$16+'BP Financier'!$F$19+'BP Financier'!$G$16+'BP Financier'!$G$19+'BP Financier'!$G$22))*$V8450*Y8450/(1-$W8450)","v":{"v":1846.7533031526023,"d":"1,847"}},{"$f":"'BP Financier'!$G$44*(('BP Financier'!$C$22+'BP Financier'!$D$22+'BP Financier'!$E$22+'BP Financier'!$F$22+'BP Financier'!$G$22)/('BP Financier'!$C$16+'BP Financier'!$C$19+'BP Financier'!$D$16+'BP Financier'!$D$19+'BP Financier'!$E$16+'BP Financier'!$E$19+'BP Financier'!$C$22+'BP Financier'!$D$22+'BP Financier'!$E$22+'BP Financier'!$F$22+'BP Financier'!$F$16+'BP Financier'!$F$19+'BP Financier'!$G$16+'BP Financier'!$G$19+'BP Financier'!$G$22))*$V8450*Z8450/(1-$W8450)","v":{"v":14453.51552136789,"d":"14,454"}},{"$f":"'BP Financier'!$G$44*(('BP Financier'!$C$22+'BP Financier'!$D$22+'BP Financier'!$E$22+'BP Financier'!$F$22+'BP Financier'!$G$22)/('BP Financier'!$C$16+'BP Financier'!$C$19+'BP Financier'!$D$16+'BP Financier'!$D$19+'BP Financier'!$E$16+'BP Financier'!$E$19+'BP Financier'!$C$22+'BP Financier'!$D$22+'BP Financier'!$E$22+'BP Financier'!$F$22+'BP Financier'!$F$16+'BP Financier'!$F$19+'BP Financier'!$G$16+'BP Financier'!$G$19+'BP Financier'!$G$22))*$V8450*AA8450/(1-$W8450)","v":{"v":1785.7036071806158,"d":"1,786"}},{"$f":"'BP Financier'!$G$44*(('BP Financier'!$C$22+'BP Financier'!$D$22+'BP Financier'!$E$22+'BP Financier'!$F$22+'BP Financier'!$G$22)/('BP Financier'!$C$16+'BP Financier'!$C$19+'BP Financier'!$D$16+'BP Financier'!$D$19+'BP Financier'!$E$16+'BP Financier'!$E$19+'BP Financier'!$C$22+'BP Financier'!$D$22+'BP Financier'!$E$22+'BP Financier'!$F$22+'BP Financier'!$F$16+'BP Financier'!$F$19+'BP Financier'!$G$16+'BP Financier'!$G$19+'BP Financier'!$G$22))*$V8450*AB8450/(1-$W8450)","v":{"v":854.6957436078159,"d":"855"}},null,{"v":0.006,"d":"0.60%"},{"$f":"Actif!$E$28/100","v":{"v":0.28900000000000003,"d":"28.90%"}},{"$f":"Actif!$E$30/100","v":{"v":0.09050000000000001,"d":"9.05%"}},{"$f":"Actif!$E$31/100","v":{"v":0.0605,"d":"6.05%"}},{"$f":"Actif!$E$32/100","v":{"v":0.47350000000000003,"d":"47.35%"}},{"$f":"Actif!$E$33/100","v":{"v":0.0585,"d":"5.85%"}},{"$f":"Actif!$E$29/100","v":{"v":0.027999999999999997,"d":"2.80%"}}]
[null,"#338",32,2029,"F","A_CAPI",{"v":0.44999999999999996,"d":"0.45"},{"v":0.38999999999999996,"d":"0.39"},0.6,0.6,85,0,{"$f":"ROUND(Primes!$Q$10*V8451,2)","v":0.78},0,{"v":21703.166918041326,"d":"21,703"},{"$f":"'BP Financier'!$G$44*(('BP Financier'!$C$22+'BP Financier'!$D$22+'BP Financier'!$E$22+'BP Financier'!$F$22+'BP Financier'!$G$22)/('BP Financier'!$C$16+'BP Financier'!$C$19+'BP Financier'!$D$16+'BP Financier'!$D$19+'BP Financier'!$E$16+'BP Financier'!$E$19+'BP Financier'!$C$22+'BP Financier'!$D$22+'BP Financier'!$E$22+'BP Financier'!$F$22+'BP Financier'!$F$16+'BP Financier'!$F$19+'BP Financier'!$G$16+'BP Financier'!$G$19+'BP Financier'!$G$22))*$V8451*X8451/(1-$W8451)","v":{"v":2762.4987427324054,"d":"2,762"}},{"$f":"'BP Financier'!$G$44*(('BP Financier'!$C$22+'BP Financier'!$D$22+'BP Financier'!$E$22+'BP Financier'!$F$22+'BP Financier'!$G$22)/('BP Financier'!$C$16+'BP Financier'!$C$19+'BP Financier'!$D$16+'BP Financier'!$D$19+'BP Financier'!$E$16+'BP Financier'!$E$19+'BP Financier'!$C$22+'BP Financier'!$D$22+'BP Financier'!$E$22+'BP Financier'!$F$22+'BP Financier'!$F$16+'BP Financier'!$F$19+'BP Financier'!$G$16+'BP Financier'!$G$19+'BP Financier'!$G$22))*$V8451*Y8451/(1-$W8451)","v":{"v":1846.7533031526023,"d":"1,847"}},{"$f":"'BP Financier'!$G$44*(('BP Financier'!$C$22+'BP Financier'!$D$22+'BP Financier'!$E$22+'BP Financier'!$F$22+'BP Financier'!$G$22)/('BP Financier'!$C$16+'BP Financier'!$C$19+'BP Financier'!$D$16+'BP Financier'!$D$19+'BP Financier'!$E$16+'BP Financier'!$E$19+'BP Financier'!$C$22+'BP Financier'!$D$22+'BP Financier'!$E$22+'BP Financier'!$F$22+'BP Financier'!$F$16+'BP Financier'!$F$19+'BP Financier'!$G$16+'BP Financier'!$G$19+'BP Financier'!$G$22))*$V8451*Z8451/(1-$W8451)","v":{"v":14453.51552136789,"d":"14,454"}},{"$f":"'BP Financier'!$G$44*(('BP Financier'!$C$22+'BP Financier'!$D$22+'BP Financier'!$E$22+'BP Financier'!$F$22+'BP Financier'!$G$22)/('BP Financier'!$C$16+'BP Financier'!$C$19+'BP Financier'!$D$16+'BP Financier'!$D$19+'BP Financier'!$E$16+'BP Financier'!$E$19+'BP Financier'!$C$22+'BP Financier'!$D$22+'BP Financier'!$E$22+'BP Financier'!$F$22+'BP Financier'!$F$16+'BP Financier'!$F$19+'BP Financier'!$G$16+'BP Financier'!$G$19+'BP Financier'!$G$22))*$V8451*AA8451/(1-$W8451)","v":{"v":1785.7036071806158,"d":"1,786"}},{"$f":"'BP Financier'!$G$44*(('BP Financier'!$C$22+'BP Financier'!$D$22+'BP Financier'!$E$22+'BP Financier'!$F$22+'BP Financier'!$G$22)/('BP Financier'!$C$16+'BP Financier'!$C$19+'BP Financier'!$D$16+'BP Financier'!$D$19+'BP Financier'!$E$16+'BP Financier'!$E$19+'BP Financier'!$C$22+'BP Financier'!$D$22+'BP Financier'!$E$22+'BP Financier'!$F$22+'BP Financier'!$F$16+'BP Financier'!$F$19+'BP Financier'!$G$16+'BP Financier'!$G$19+'BP Financier'!$G$22))*$V8451*AB8451/(1-$W8451)","v":{"v":854.6957436078159,"d":"855"}},null,{"v":0.006,"d":"0.60%"},{"$f":"Actif!$E$28/100","v":{"v":0.28900000000000003,"d":"28.90%"}},{"$f":"Actif!$E$30/100","v":{"v":0.09050000000000001,"d":"9.05%"}},{"$f":"Actif!$E$31/100","v":{"v":0.0605,"d":"6.05%"}},{"$f":"Actif!$E$32/100","v":{"v":0.47350000000000003,"d":"47.35%"}},{"$f":"Actif!$E$33/100","v":{"v":0.0585,"d":"5.85%"}},{"$f":"Actif!$E$29/100","v":{"v":0.027999999999999997,"d":"2.80%"}}]
[null,"#339",32,2030,"F","A_CAPI",{"v":0.44999999999999996,"d":"0.45"},{"v":0.38999999999999996,"d":"0.39"},0.6,0.6,85,0,{"$f":"ROUND(Primes!$Q$10*V8452,2)","v":0.78},0,{"v":21703.166918041326,"d":"21,703"},{"$f":"'BP Financier'!$G$44*(('BP Financier'!$C$22+'BP Financier'!$D$22+'BP Financier'!$E$22+'BP Financier'!$F$22+'BP Financier'!$G$22)/('BP Financier'!$C$16+'BP Financier'!$C$19+'BP Financier'!$D$16+'BP Financier'!$D$19+'BP Financier'!$E$16+'BP Financier'!$E$19+'BP Financier'!$C$22+'BP Financier'!$D$22+'BP Financier'!$E$22+'BP Financier'!$F$22+'BP Financier'!$F$16+'BP Financier'!$F$19+'BP Financier'!$G$16+'BP Financier'!$G$19+'BP Financier'!$G$22))*$V8452*X8452/(1-$W8452)","v":{"v":2762.4987427324054,"d":"2,762"}},{"$f":"'BP Financier'!$G$44*(('BP Financier'!$C$22+'BP Financier'!$D$22+'BP Financier'!$E$22+'BP Financier'!$F$22+'BP Financier'!$G$22)/('BP Financier'!$C$16+'BP Financier'!$C$19+'BP Financier'!$D$16+'BP Financier'!$D$19+'BP Financier'!$E$16+'BP Financier'!$E$19+'BP Financier'!$C$22+'BP Financier'!$D$22+'BP Financier'!$E$22+'BP Financier'!$F$22+'BP Financier'!$F$16+'BP Financier'!$F$19+'BP Financier'!$G$16+'BP Financier'!$G$19+'BP Financier'!$G$22))*$V8452*Y8452/(1-$W8452)","v":{"v":1846.7533031526023,"d":"1,847"}},{"$f":"'BP Financier'!$G$44*(('BP Financier'!$C$22+'BP Financier'!$D$22+'BP Financier'!$E$22+'BP Financier'!$F$22+'BP Financier'!$G$22)/('BP Financier'!$C$16+'BP Financier'!$C$19+'BP Financier'!$D$16+'BP Financier'!$D$19+'BP Financier'!$E$16+'BP Financier'!$E$19+'BP Financier'!$C$22+'BP Financier'!$D$22+'BP Financier'!$E$22+'BP Financier'!$F$22+'BP Financier'!$F$16+'BP Financier'!$F$19+'BP Financier'!$G$16+'BP Financier'!$G$19+'BP Financier'!$G$22))*$V8452*Z8452/(1-$W8452)","v":{"v":14453.51552136789,"d":"14,454"}},{"$f":"'BP Financier'!$G$44*(('BP Financier'!$C$22+'BP Financier'!$D$22+'BP Financier'!$E$22+'BP Financier'!$F$22+'BP Financier'!$G$22)/('BP Financier'!$C$16+'BP Financier'!$C$19+'BP Financier'!$D$16+'BP Financier'!$D$19+'BP Financier'!$E$16+'BP Financier'!$E$19+'BP Financier'!$C$22+'BP Financier'!$D$22+'BP Financier'!$E$22+'BP Financier'!$F$22+'BP Financier'!$F$16+'BP Financier'!$F$19+'BP Financier'!$G$16+'BP Financier'!$G$19+'BP Financier'!$G$22))*$V8452*AA8452/(1-$W8452)","v":{"v":1785.7036071806158,"d":"1,786"}},{"$f":"'BP Financier'!$G$44*(('BP Financier'!$C$22+'BP Financier'!$D$22+'BP Financier'!$E$22+'BP Financier'!$F$22+'BP Financier'!$G$22)/('BP Financier'!$C$16+'BP Financier'!$C$19+'BP Financier'!$D$16+'BP Financier'!$D$19+'BP Financier'!$E$16+'BP Financier'!$E$19+'BP Financier'!$C$22+'BP Financier'!$D$22+'BP Financier'!$E$22+'BP Financier'!$F$22+'BP Financier'!$F$16+'BP Financier'!$F$19+'BP Financier'!$G$16+'BP Financier'!$G$19+'BP Financier'!$G$22))*$V8452*AB8452/(1-$W8452)","v":{"v":854.6957436078159,"d":"855"}},null,{"v":0.006,"d":"0.60%"},{"$f":"Actif!$E$28/100","v":{"v":0.28900000000000003,"d":"28.90%"}},{"$f":"Actif!$E$30/100","v":{"v":0.09050000000000001,"d":"9.05%"}},{"$f":"Actif!$E$31/100","v":{"v":0.0605,"d":"6.05%"}},{"$f":"Actif!$E$32/100","v":{"v":0.47350000000000003,"d":"47.35%"}},{"$f":"Actif!$E$33/100","v":{"v":0.0585,"d":"5.85%"}},{"$f":"Actif!$E$29/100","v":{"v":0.027999999999999997,"d":"2.80%"}}]
[null,"#340",32,2031,"F","A_CAPI",{"v":0.44999999999999996,"d":"0.45"},{"v":0.38999999999999996,"d":"0.39"},0.6,0.6,85,0,{"$f":"ROUND(Primes!$Q$10*V8453,2)","v":0.78},0,{"v":21703.166918041326,"d":"21,703"},{"$f":"'BP Financier'!$G$44*(('BP Financier'!$C$22+'BP Financier'!$D$22+'BP Financier'!$E$22+'BP Financier'!$F$22+'BP Financier'!$G$22)/('BP Financier'!$C$16+'BP Financier'!$C$19+'BP Financier'!$D$16+'BP Financier'!$D$19+'BP Financier'!$E$16+'BP Financier'!$E$19+'BP Financier'!$C$22+'BP Financier'!$D$22+'BP Financier'!$E$22+'BP Financier'!$F$22+'BP Financier'!$F$16+'BP Financier'!$F$19+'BP Financier'!$G$16+'BP Financier'!$G$19+'BP Financier'!$G$22))*$V8453*X8453/(1-$W8453)","v":{"v":2762.4987427324054,"d":"2,762"}},{"$f":"'BP Financier'!$G$44*(('BP Financier'!$C$22+'BP Financier'!$D$22+'BP Financier'!$E$22+'BP Financier'!$F$22+'BP Financier'!$G$22)/('BP Financier'!$C$16+'BP Financier'!$C$19+'BP Financier'!$D$16+'BP Financier'!$D$19+'BP Financier'!$E$16+'BP Financier'!$E$19+'BP Financier'!$C$22+'BP Financier'!$D$22+'BP Financier'!$E$22+'BP Financier'!$F$22+'BP Financier'!$F$16+'BP Financier'!$F$19+'BP Financier'!$G$16+'BP Financier'!$G$19+'BP Financier'!$G$22))*$V8453*Y8453/(1-$W8453)","v":{"v":1846.7533031526023,"d":"1,847"}},{"$f":"'BP Financier'!$G$44*(('BP Financier'!$C$22+'BP Financier'!$D$22+'BP Financier'!$E$22+'BP Financier'!$F$22+'BP Financier'!$G$22)/('BP Financier'!$C$16+'BP Financier'!$C$19+'BP Financier'!$D$16+'BP Financier'!$D$19+'BP Financier'!$E$16+'BP Financier'!$E$19+'BP Financier'!$C$22+'BP Financier'!$D$22+'BP Financier'!$E$22+'BP Financier'!$F$22+'BP Financier'!$F$16+'BP Financier'!$F$19+'BP Financier'!$G$16+'BP Financier'!$G$19+'BP Financier'!$G$22))*$V8453*Z8453/(1-$W8453)","v":{"v":14453.51552136789,"d":"14,454"}},{"$f":"'BP Financier'!$G$44*(('BP Financier'!$C$22+'BP Financier'!$D$22+'BP Financier'!$E$22+'BP Financier'!$F$22+'BP Financier'!$G$22)/('BP Financier'!$C$16+'BP Financier'!$C$19+'BP Financier'!$D$16+'BP Financier'!$D$19+'BP Financier'!$E$16+'BP Financier'!$E$19+'BP Financier'!$C$22+'BP Financier'!$D$22+'BP Financier'!$E$22+'BP Financier'!$F$22+'BP Financier'!$F$16+'BP Financier'!$F$19+'BP Financier'!$G$16+'BP Financier'!$G$19+'BP Financier'!$G$22))*$V8453*AA8453/(1-$W8453)","v":{"v":1785.7036071806158,"d":"1,786"}},{"$f":"'BP Financier'!$G$44*(('BP Financier'!$C$22+'BP Financier'!$D$22+'BP Financier'!$E$22+'BP Financier'!$F$22+'BP Financier'!$G$22)/('BP Financier'!$C$16+'BP Financier'!$C$19+'BP Financier'!$D$16+'BP Financier'!$D$19+'BP Financier'!$E$16+'BP Financier'!$E$19+'BP Financier'!$C$22+'BP Financier'!$D$22+'BP Financier'!$E$22+'BP Financier'!$F$22+'BP Financier'!$F$16+'BP Financier'!$F$19+'BP Financier'!$G$16+'BP Financier'!$G$19+'BP Financier'!$G$22))*$V8453*AB8453/(1-$W8453)","v":{"v":854.6957436078159,"d":"855"}},null,{"v":0.006,"d":"0.60%"},{"$f":"Actif!$E$28/100","v":{"v":0.28900000000000003,"d":"28.90%"}},{"$f":"Actif!$E$30/100","v":{"v":0.09050000000000001,"d":"9.05%"}},{"$f":"Actif!$E$31/100","v":{"v":0.0605,"d":"6.05%"}},{"$f":"Actif!$E$32/100","v":{"v":0.47350000000000003,"d":"47.35%"}},{"$f":"Actif!$E$33/100","v":{"v":0.0585,"d":"5.85%"}},{"$f":"Actif!$E$29/100","v":{"v":0.027999999999999997,"d":"2.80%"}}]
[null,"#341",33,2026,"H","A_CAPI",{"v":0.44999999999999996,"d":"0.45"},{"v":0.38999999999999996,"d":"0.39"},0.6,0.6,85,0,{"$f":"ROUND(Primes!$Q$10*V8454,2)","v":0.78},0,{"v":21703.166918041326,"d":"21,703"},{"$f":"'BP Financier'!$G$44*(('BP Financier'!$C$22+'BP Financier'!$D$22+'BP Financier'!$E$22+'BP Financier'!$F$22+'BP Financier'!$G$22)/('BP Financier'!$C$16+'BP Financier'!$C$19+'BP Financier'!$D$16+'BP Financier'!$D$19+'BP Financier'!$E$16+'BP Financier'!$E$19+'BP Financier'!$C$22+'BP Financier'!$D$22+'BP Financier'!$E$22+'BP Financier'!$F$22+'BP Financier'!$F$16+'BP Financier'!$F$19+'BP Financier'!$G$16+'BP Financier'!$G$19+'BP Financier'!$G$22))*$V8454*X8454/(1-$W8454)","v":{"v":2762.4987427324054,"d":"2,762"}},{"$f":"'BP Financier'!$G$44*(('BP Financier'!$C$22+'BP Financier'!$D$22+'BP Financier'!$E$22+'BP Financier'!$F$22+'BP Financier'!$G$22)/('BP Financier'!$C$16+'BP Financier'!$C$19+'BP Financier'!$D$16+'BP Financier'!$D$19+'BP Financier'!$E$16+'BP Financier'!$E$19+'BP Financier'!$C$22+'BP Financier'!$D$22+'BP Financier'!$E$22+'BP Financier'!$F$22+'BP Financier'!$F$16+'BP Financier'!$F$19+'BP Financier'!$G$16+'BP Financier'!$G$19+'BP Financier'!$G$22))*$V8454*Y8454/(1-$W8454)","v":{"v":1846.7533031526023,"d":"1,847"}},{"$f":"'BP Financier'!$G$44*(('BP Financier'!$C$22+'BP Financier'!$D$22+'BP Financier'!$E$22+'BP Financier'!$F$22+'BP Financier'!$G$22)/('BP Financier'!$C$16+'BP Financier'!$C$19+'BP Financier'!$D$16+'BP Financier'!$D$19+'BP Financier'!$E$16+'BP Financier'!$E$19+'BP Financier'!$C$22+'BP Financier'!$D$22+'BP Financier'!$E$22+'BP Financier'!$F$22+'BP Financier'!$F$16+'BP Financier'!$F$19+'BP Financier'!$G$16+'BP Financier'!$G$19+'BP Financier'!$G$22))*$V8454*Z8454/(1-$W8454)","v":{"v":14453.51552136789,"d":"14,454"}},{"$f":"'BP Financier'!$G$44*(('BP Financier'!$C$22+'BP Financier'!$D$22+'BP Financier'!$E$22+'BP Financier'!$F$22+'BP Financier'!$G$22)/('BP Financier'!$C$16+'BP Financier'!$C$19+'BP Financier'!$D$16+'BP Financier'!$D$19+'BP Financier'!$E$16+'BP Financier'!$E$19+'BP Financier'!$C$22+'BP Financier'!$D$22+'BP Financier'!$E$22+'BP Financier'!$F$22+'BP Financier'!$F$16+'BP Financier'!$F$19+'BP Financier'!$G$16+'BP Financier'!$G$19+'BP Financier'!$G$22))*$V8454*AA8454/(1-$W8454)","v":{"v":1785.7036071806158,"d":"1,786"}},{"$f":"'BP Financier'!$G$44*(('BP Financier'!$C$22+'BP Financier'!$D$22+'BP Financier'!$E$22+'BP Financier'!$F$22+'BP Financier'!$G$22)/('BP Financier'!$C$16+'BP Financier'!$C$19+'BP Financier'!$D$16+'BP Financier'!$D$19+'BP Financier'!$E$16+'BP Financier'!$E$19+'BP Financier'!$C$22+'BP Financier'!$D$22+'BP Financier'!$E$22+'BP Financier'!$F$22+'BP Financier'!$F$16+'BP Financier'!$F$19+'BP Financier'!$G$16+'BP Financier'!$G$19+'BP Financier'!$G$22))*$V8454*AB8454/(1-$W8454)","v":{"v":854.6957436078159,"d":"855"}},null,{"v":0.006,"d":"0.60%"},{"$f":"Actif!$E$28/100","v":{"v":0.28900000000000003,"d":"28.90%"}},{"$f":"Actif!$E$30/100","v":{"v":0.09050000000000001,"d":"9.05%"}},{"$f":"Actif!$E$31/100","v":{"v":0.0605,"d":"6.05%"}},{"$f":"Actif!$E$32/100","v":{"v":0.47350000000000003,"d":"47.35%"}},{"$f":"Actif!$E$33/100","v":{"v":0.0585,"d":"5.85%"}},{"$f":"Actif!$E$29/100","v":{"v":0.027999999999999997,"d":"2.80%"}}]
[null,"#342",33,2028,"H","A_CAPI",{"v":0.44999999999999996,"d":"0.45"},{"v":0.38999999999999996,"d":"0.39"},0.6,0.6,85,0,{"$f":"ROUND(Primes!$Q$10*V8455,2)","v":0.78},0,{"v":21703.166918041326,"d":"21,703"},{"$f":"'BP Financier'!$G$44*(('BP Financier'!$C$22+'BP Financier'!$D$22+'BP Financier'!$E$22+'BP Financier'!$F$22+'BP Financier'!$G$22)/('BP Financier'!$C$16+'BP Financier'!$C$19+'BP Financier'!$D$16+'BP Financier'!$D$19+'BP Financier'!$E$16+'BP Financier'!$E$19+'BP Financier'!$C$22+'BP Financier'!$D$22+'BP Financier'!$E$22+'BP Financier'!$F$22+'BP Financier'!$F$16+'BP Financier'!$F$19+'BP Financier'!$G$16+'BP Financier'!$G$19+'BP Financier'!$G$22))*$V8455*X8455/(1-$W8455)","v":{"v":2762.4987427324054,"d":"2,762"}},{"$f":"'BP Financier'!$G$44*(('BP Financier'!$C$22+'BP Financier'!$D$22+'BP Financier'!$E$22+'BP Financier'!$F$22+'BP Financier'!$G$22)/('BP Financier'!$C$16+'BP Financier'!$C$19+'BP Financier'!$D$16+'BP Financier'!$D$19+'BP Financier'!$E$16+'BP Financier'!$E$19+'BP Financier'!$C$22+'BP Financier'!$D$22+'BP Financier'!$E$22+'BP Financier'!$F$22+'BP Financier'!$F$16+'BP Financier'!$F$19+'BP Financier'!$G$16+'BP Financier'!$G$19+'BP Financier'!$G$22))*$V8455*Y8455/(1-$W8455)","v":{"v":1846.7533031526023,"d":"1,847"}},{"$f":"'BP Financier'!$G$44*(('BP Financier'!$C$22+'BP Financier'!$D$22+'BP Financier'!$E$22+'BP Financier'!$F$22+'BP Financier'!$G$22)/('BP Financier'!$C$16+'BP Financier'!$C$19+'BP Financier'!$D$16+'BP Financier'!$D$19+'BP Financier'!$E$16+'BP Financier'!$E$19+'BP Financier'!$C$22+'BP Financier'!$D$22+'BP Financier'!$E$22+'BP Financier'!$F$22+'BP Financier'!$F$16+'BP Financier'!$F$19+'BP Financier'!$G$16+'BP Financier'!$G$19+'BP Financier'!$G$22))*$V8455*Z8455/(1-$W8455)","v":{"v":14453.51552136789,"d":"14,454"}},{"$f":"'BP Financier'!$G$44*(('BP Financier'!$C$22+'BP Financier'!$D$22+'BP Financier'!$E$22+'BP Financier'!$F$22+'BP Financier'!$G$22)/('BP Financier'!$C$16+'BP Financier'!$C$19+'BP Financier'!$D$16+'BP Financier'!$D$19+'BP Financier'!$E$16+'BP Financier'!$E$19+'BP Financier'!$C$22+'BP Financier'!$D$22+'BP Financier'!$E$22+'BP Financier'!$F$22+'BP Financier'!$F$16+'BP Financier'!$F$19+'BP Financier'!$G$16+'BP Financier'!$G$19+'BP Financier'!$G$22))*$V8455*AA8455/(1-$W8455)","v":{"v":1785.7036071806158,"d":"1,786"}},{"$f":"'BP Financier'!$G$44*(('BP Financier'!$C$22+'BP Financier'!$D$22+'BP Financier'!$E$22+'BP Financier'!$F$22+'BP Financier'!$G$22)/('BP Financier'!$C$16+'BP Financier'!$C$19+'BP Financier'!$D$16+'BP Financier'!$D$19+'BP Financier'!$E$16+'BP Financier'!$E$19+'BP Financier'!$C$22+'BP Financier'!$D$22+'BP Financier'!$E$22+'BP Financier'!$F$22+'BP Financier'!$F$16+'BP Financier'!$F$19+'BP Financier'!$G$16+'BP Financier'!$G$19+'BP Financier'!$G$22))*$V8455*AB8455/(1-$W8455)","v":{"v":854.6957436078159,"d":"855"}},null,{"v":0.006,"d":"0.60%"},{"$f":"Actif!$E$28/100","v":{"v":0.28900000000000003,"d":"28.90%"}},{"$f":"Actif!$E$30/100","v":{"v":0.09050000000000001,"d":"9.05%"}},{"$f":"Actif!$E$31/100","v":{"v":0.0605,"d":"6.05%"}},{"$f":"Actif!$E$32/100","v":{"v":0.47350000000000003,"d":"47.35%"}},{"$f":"Actif!$E$33/100","v":{"v":0.0585,"d":"5.85%"}},{"$f":"Actif!$E$29/100","v":{"v":0.027999999999999997,"d":"2.80%"}}]
[null,"#343",33,2029,"H","A_CAPI",{"v":0.44999999999999996,"d":"0.45"},{"v":0.38999999999999996,"d":"0.39"},0.6,0.6,85,0,{"$f":"ROUND(Primes!$Q$10*V8456,2)","v":0.78},0,{"v":21703.166918041326,"d":"21,703"},{"$f":"'BP Financier'!$G$44*(('BP Financier'!$C$22+'BP Financier'!$D$22+'BP Financier'!$E$22+'BP Financier'!$F$22+'BP Financier'!$G$22)/('BP Financier'!$C$16+'BP Financier'!$C$19+'BP Financier'!$D$16+'BP Financier'!$D$19+'BP Financier'!$E$16+'BP Financier'!$E$19+'BP Financier'!$C$22+'BP Financier'!$D$22+'BP Financier'!$E$22+'BP Financier'!$F$22+'BP Financier'!$F$16+'BP Financier'!$F$19+'BP Financier'!$G$16+'BP Financier'!$G$19+'BP Financier'!$G$22))*$V8456*X8456/(1-$W8456)","v":{"v":2762.4987427324054,"d":"2,762"}},{"$f":"'BP Financier'!$G$44*(('BP Financier'!$C$22+'BP Financier'!$D$22+'BP Financier'!$E$22+'BP Financier'!$F$22+'BP Financier'!$G$22)/('BP Financier'!$C$16+'BP Financier'!$C$19+'BP Financier'!$D$16+'BP Financier'!$D$19+'BP Financier'!$E$16+'BP Financier'!$E$19+'BP Financier'!$C$22+'BP Financier'!$D$22+'BP Financier'!$E$22+'BP Financier'!$F$22+'BP Financier'!$F$16+'BP Financier'!$F$19+'BP Financier'!$G$16+'BP Financier'!$G$19+'BP Financier'!$G$22))*$V8456*Y8456/(1-$W8456)","v":{"v":1846.7533031526023,"d":"1,847"}},{"$f":"'BP Financier'!$G$44*(('BP Financier'!$C$22+'BP Financier'!$D$22+'BP Financier'!$E$22+'BP Financier'!$F$22+'BP Financier'!$G$22)/('BP Financier'!$C$16+'BP Financier'!$C$19+'BP Financier'!$D$16+'BP Financier'!$D$19+'BP Financier'!$E$16+'BP Financier'!$E$19+'BP Financier'!$C$22+'BP Financier'!$D$22+'BP Financier'!$E$22+'BP Financier'!$F$22+'BP Financier'!$F$16+'BP Financier'!$F$19+'BP Financier'!$G$16+'BP Financier'!$G$19+'BP Financier'!$G$22))*$V8456*Z8456/(1-$W8456)","v":{"v":14453.51552136789,"d":"14,454"}},{"$f":"'BP Financier'!$G$44*(('BP Financier'!$C$22+'BP Financier'!$D$22+'BP Financier'!$E$22+'BP Financier'!$F$22+'BP Financier'!$G$22)/('BP Financier'!$C$16+'BP Financier'!$C$19+'BP Financier'!$D$16+'BP Financier'!$D$19+'BP Financier'!$E$16+'BP Financier'!$E$19+'BP Financier'!$C$22+'BP Financier'!$D$22+'BP Financier'!$E$22+'BP Financier'!$F$22+'BP Financier'!$F$16+'BP Financier'!$F$19+'BP Financier'!$G$16+'BP Financier'!$G$19+'BP Financier'!$G$22))*$V8456*AA8456/(1-$W8456)","v":{"v":1785.7036071806158,"d":"1,786"}},{"$f":"'BP Financier'!$G$44*(('BP Financier'!$C$22+'BP Financier'!$D$22+'BP Financier'!$E$22+'BP Financier'!$F$22+'BP Financier'!$G$22)/('BP Financier'!$C$16+'BP Financier'!$C$19+'BP Financier'!$D$16+'BP Financier'!$D$19+'BP Financier'!$E$16+'BP Financier'!$E$19+'BP Financier'!$C$22+'BP Financier'!$D$22+'BP Financier'!$E$22+'BP Financier'!$F$22+'BP Financier'!$F$16+'BP Financier'!$F$19+'BP Financier'!$G$16+'BP Financier'!$G$19+'BP Financier'!$G$22))*$V8456*AB8456/(1-$W8456)","v":{"v":854.6957436078159,"d":"855"}},null,{"v":0.006,"d":"0.60%"},{"$f":"Actif!$E$28/100","v":{"v":0.28900000000000003,"d":"28.90%"}},{"$f":"Actif!$E$30/100","v":{"v":0.09050000000000001,"d":"9.05%"}},{"$f":"Actif!$E$31/100","v":{"v":0.0605,"d":"6.05%"}},{"$f":"Actif!$E$32/100","v":{"v":0.47350000000000003,"d":"47.35%"}},{"$f":"Actif!$E$33/100","v":{"v":0.0585,"d":"5.85%"}},{"$f":"Actif!$E$29/100","v":{"v":0.027999999999999997,"d":"2.80%"}}]
[null,"#344",33,2030,"H","A_CAPI",{"v":0.44999999999999996,"d":"0.45"},{"v":0.38999999999999996,"d":"0.39"},0.6,0.6,85,0,{"$f":"ROUND(Primes!$Q$10*V8457,2)","v":0.78},0,{"v":21703.166918041326,"d":"21,703"},{"$f":"'BP Financier'!$G$44*(('BP Financier'!$C$22+'BP Financier'!$D$22+'BP Financier'!$E$22+'BP Financier'!$F$22+'BP Financier'!$G$22)/('BP Financier'!$C$16+'BP Financier'!$C$19+'BP Financier'!$D$16+'BP Financier'!$D$19+'BP Financier'!$E$16+'BP Financier'!$E$19+'BP Financier'!$C$22+'BP Financier'!$D$22+'BP Financier'!$E$22+'BP Financier'!$F$22+'BP Financier'!$F$16+'BP Financier'!$F$19+'BP Financier'!$G$16+'BP Financier'!$G$19+'BP Financier'!$G$22))*$V8457*X8457/(1-$W8457)","v":{"v":2762.4987427324054,"d":"2,762"}},{"$f":"'BP Financier'!$G$44*(('BP Financier'!$C$22+'BP Financier'!$D$22+'BP Financier'!$E$22+'BP Financier'!$F$22+'BP Financier'!$G$22)/('BP Financier'!$C$16+'BP Financier'!$C$19+'BP Financier'!$D$16+'BP Financier'!$D$19+'BP Financier'!$E$16+'BP Financier'!$E$19+'BP Financier'!$C$22+'BP Financier'!$D$22+'BP Financier'!$E$22+'BP Financier'!$F$22+'BP Financier'!$F$16+'BP Financier'!$F$19+'BP Financier'!$G$16+'BP Financier'!$G$19+'BP Financier'!$G$22))*$V8457*Y8457/(1-$W8457)","v":{"v":1846.7533031526023,"d":"1,847"}},{"$f":"'BP Financier'!$G$44*(('BP Financier'!$C$22+'BP Financier'!$D$22+'BP Financier'!$E$22+'BP Financier'!$F$22+'BP Financier'!$G$22)/('BP Financier'!$C$16+'BP Financier'!$C$19+'BP Financier'!$D$16+'BP Financier'!$D$19+'BP Financier'!$E$16+'BP Financier'!$E$19+'BP Financier'!$C$22+'BP Financier'!$D$22+'BP Financier'!$E$22+'BP Financier'!$F$22+'BP Financier'!$F$16+'BP Financier'!$F$19+'BP Financier'!$G$16+'BP Financier'!$G$19+'BP Financier'!$G$22))*$V8457*Z8457/(1-$W8457)","v":{"v":14453.51552136789,"d":"14,454"}},{"$f":"'BP Financier'!$G$44*(('BP Financier'!$C$22+'BP Financier'!$D$22+'BP Financier'!$E$22+'BP Financier'!$F$22+'BP Financier'!$G$22)/('BP Financier'!$C$16+'BP Financier'!$C$19+'BP Financier'!$D$16+'BP Financier'!$D$19+'BP Financier'!$E$16+'BP Financier'!$E$19+'BP Financier'!$C$22+'BP Financier'!$D$22+'BP Financier'!$E$22+'BP Financier'!$F$22+'BP Financier'!$F$16+'BP Financier'!$F$19+'BP Financier'!$G$16+'BP Financier'!$G$19+'BP Financier'!$G$22))*$V8457*AA8457/(1-$W8457)","v":{"v":1785.7036071806158,"d":"1,786"}},{"$f":"'BP Financier'!$G$44*(('BP Financier'!$C$22+'BP Financier'!$D$22+'BP Financier'!$E$22+'BP Financier'!$F$22+'BP Financier'!$G$22)/('BP Financier'!$C$16+'BP Financier'!$C$19+'BP Financier'!$D$16+'BP Financier'!$D$19+'BP Financier'!$E$16+'BP Financier'!$E$19+'BP Financier'!$C$22+'BP Financier'!$D$22+'BP Financier'!$E$22+'BP Financier'!$F$22+'BP Financier'!$F$16+'BP Financier'!$F$19+'BP Financier'!$G$16+'BP Financier'!$G$19+'BP Financier'!$G$22))*$V8457*AB8457/(1-$W8457)","v":{"v":854.6957436078159,"d":"855"}},null,{"v":0.006,"d":"0.60%"},{"$f":"Actif!$E$28/100","v":{"v":0.28900000000000003,"d":"28.90%"}},{"$f":"Actif!$E$30/100","v":{"v":0.09050000000000001,"d":"9.05%"}},{"$f":"Actif!$E$31/100","v":{"v":0.0605,"d":"6.05%"}},{"$f":"Actif!$E$32/100","v":{"v":0.47350000000000003,"d":"47.35%"}},{"$f":"Actif!$E$33/100","v":{"v":0.0585,"d":"5.85%"}},{"$f":"Actif!$E$29/100","v":{"v":0.027999999999999997,"d":"2.80%"}}]
[null,"#345",33,2031,"H","A_CAPI",{"v":0.44999999999999996,"d":"0.45"},{"v":0.38999999999999996,"d":"0.39"},0.6,0.6,85,0,{"$f":"ROUND(Primes!$Q$10*V8458,2)","v":0.78},0,{"v":21703.166918041326,"d":"21,703"},{"$f":"'BP Financier'!$G$44*(('BP Financier'!$C$22+'BP Financier'!$D$22+'BP Financier'!$E$22+'BP Financier'!$F$22+'BP Financier'!$G$22)/('BP Financier'!$C$16+'BP Financier'!$C$19+'BP Financier'!$D$16+'BP Financier'!$D$19+'BP Financier'!$E$16+'BP Financier'!$E$19+'BP Financier'!$C$22+'BP Financier'!$D$22+'BP Financier'!$E$22+'BP Financier'!$F$22+'BP Financier'!$F$16+'BP Financier'!$F$19+'BP Financier'!$G$16+'BP Financier'!$G$19+'BP Financier'!$G$22))*$V8458*X8458/(1-$W8458)","v":{"v":2762.4987427324054,"d":"2,762"}},{"$f":"'BP Financier'!$G$44*(('BP Financier'!$C$22+'BP Financier'!$D$22+'BP Financier'!$E$22+'BP Financier'!$F$22+'BP Financier'!$G$22)/('BP Financier'!$C$16+'BP Financier'!$C$19+'BP Financier'!$D$16+'BP Financier'!$D$19+'BP Financier'!$E$16+'BP Financier'!$E$19+'BP Financier'!$C$22+'BP Financier'!$D$22+'BP Financier'!$E$22+'BP Financier'!$F$22+'BP Financier'!$F$16+'BP Financier'!$F$19+'BP Financier'!$G$16+'BP Financier'!$G$19+'BP Financier'!$G$22))*$V8458*Y8458/(1-$W8458)","v":{"v":1846.7533031526023,"d":"1,847"}},{"$f":"'BP Financier'!$G$44*(('BP Financier'!$C$22+'BP Financier'!$D$22+'BP Financier'!$E$22+'BP Financier'!$F$22+'BP Financier'!$G$22)/('BP Financier'!$C$16+'BP Financier'!$C$19+'BP Financier'!$D$16+'BP Financier'!$D$19+'BP Financier'!$E$16+'BP Financier'!$E$19+'BP Financier'!$C$22+'BP Financier'!$D$22+'BP Financier'!$E$22+'BP Financier'!$F$22+'BP Financier'!$F$16+'BP Financier'!$F$19+'BP Financier'!$G$16+'BP Financier'!$G$19+'BP Financier'!$G$22))*$V8458*Z8458/(1-$W8458)","v":{"v":14453.51552136789,"d":"14,454"}},{"$f":"'BP Financier'!$G$44*(('BP Financier'!$C$22+'BP Financier'!$D$22+'BP Financier'!$E$22+'BP Financier'!$F$22+'BP Financier'!$G$22)/('BP Financier'!$C$16+'BP Financier'!$C$19+'BP Financier'!$D$16+'BP Financier'!$D$19+'BP Financier'!$E$16+'BP Financier'!$E$19+'BP Financier'!$C$22+'BP Financier'!$D$22+'BP Financier'!$E$22+'BP Financier'!$F$22+'BP Financier'!$F$16+'BP Financier'!$F$19+'BP Financier'!$G$16+'BP Financier'!$G$19+'BP Financier'!$G$22))*$V8458*AA8458/(1-$W8458)","v":{"v":1785.7036071806158,"d":"1,786"}},{"$f":"'BP Financier'!$G$44*(('BP Financier'!$C$22+'BP Financier'!$D$22+'BP Financier'!$E$22+'BP Financier'!$F$22+'BP Financier'!$G$22)/('BP Financier'!$C$16+'BP Financier'!$C$19+'BP Financier'!$D$16+'BP Financier'!$D$19+'BP Financier'!$E$16+'BP Financier'!$E$19+'BP Financier'!$C$22+'BP Financier'!$D$22+'BP Financier'!$E$22+'BP Financier'!$F$22+'BP Financier'!$F$16+'BP Financier'!$F$19+'BP Financier'!$G$16+'BP Financier'!$G$19+'BP Financier'!$G$22))*$V8458*AB8458/(1-$W8458)","v":{"v":854.6957436078159,"d":"855"}},null,{"v":0.006,"d":"0.60%"},{"$f":"Actif!$E$28/100","v":{"v":0.28900000000000003,"d":"28.90%"}},{"$f":"Actif!$E$30/100","v":{"v":0.09050000000000001,"d":"9.05%"}},{"$f":"Actif!$E$31/100","v":{"v":0.0605,"d":"6.05%"}},{"$f":"Actif!$E$32/100","v":{"v":0.47350000000000003,"d":"47.35%"}},{"$f":"Actif!$E$33/100","v":{"v":0.0585,"d":"5.85%"}},{"$f":"Actif!$E$29/100","v":{"v":0.027999999999999997,"d":"2.80%"}}]
[null,"#346",34,2026,"H","A_CAPI",{"v":0.44999999999999996,"d":"0.45"},{"v":0.38999999999999996,"d":"0.39"},0.6,0.6,85,0,{"$f":"ROUND(Primes!$Q$10*V8459,2)","v":0.78},0,{"v":21703.166918041326,"d":"21,703"},{"$f":"'BP Financier'!$G$44*(('BP Financier'!$C$22+'BP Financier'!$D$22+'BP Financier'!$E$22+'BP Financier'!$F$22+'BP Financier'!$G$22)/('BP Financier'!$C$16+'BP Financier'!$C$19+'BP Financier'!$D$16+'BP Financier'!$D$19+'BP Financier'!$E$16+'BP Financier'!$E$19+'BP Financier'!$C$22+'BP Financier'!$D$22+'BP Financier'!$E$22+'BP Financier'!$F$22+'BP Financier'!$F$16+'BP Financier'!$F$19+'BP Financier'!$G$16+'BP Financier'!$G$19+'BP Financier'!$G$22))*$V8459*X8459/(1-$W8459)","v":{"v":2762.4987427324054,"d":"2,762"}},{"$f":"'BP Financier'!$G$44*(('BP Financier'!$C$22+'BP Financier'!$D$22+'BP Financier'!$E$22+'BP Financier'!$F$22+'BP Financier'!$G$22)/('BP Financier'!$C$16+'BP Financier'!$C$19+'BP Financier'!$D$16+'BP Financier'!$D$19+'BP Financier'!$E$16+'BP Financier'!$E$19+'BP Financier'!$C$22+'BP Financier'!$D$22+'BP Financier'!$E$22+'BP Financier'!$F$22+'BP Financier'!$F$16+'BP Financier'!$F$19+'BP Financier'!$G$16+'BP Financier'!$G$19+'BP Financier'!$G$22))*$V8459*Y8459/(1-$W8459)","v":{"v":1846.7533031526023,"d":"1,847"}},{"$f":"'BP Financier'!$G$44*(('BP Financier'!$C$22+'BP Financier'!$D$22+'BP Financier'!$E$22+'BP Financier'!$F$22+'BP Financier'!$G$22)/('BP Financier'!$C$16+'BP Financier'!$C$19+'BP Financier'!$D$16+'BP Financier'!$D$19+'BP Financier'!$E$16+'BP Financier'!$E$19+'BP Financier'!$C$22+'BP Financier'!$D$22+'BP Financier'!$E$22+'BP Financier'!$F$22+'BP Financier'!$F$16+'BP Financier'!$F$19+'BP Financier'!$G$16+'BP Financier'!$G$19+'BP Financier'!$G$22))*$V8459*Z8459/(1-$W8459)","v":{"v":14453.51552136789,"d":"14,454"}},{"$f":"'BP Financier'!$G$44*(('BP Financier'!$C$22+'BP Financier'!$D$22+'BP Financier'!$E$22+'BP Financier'!$F$22+'BP Financier'!$G$22)/('BP Financier'!$C$16+'BP Financier'!$C$19+'BP Financier'!$D$16+'BP Financier'!$D$19+'BP Financier'!$E$16+'BP Financier'!$E$19+'BP Financier'!$C$22+'BP Financier'!$D$22+'BP Financier'!$E$22+'BP Financier'!$F$22+'BP Financier'!$F$16+'BP Financier'!$F$19+'BP Financier'!$G$16+'BP Financier'!$G$19+'BP Financier'!$G$22))*$V8459*AA8459/(1-$W8459)","v":{"v":1785.7036071806158,"d":"1,786"}},{"$f":"'BP Financier'!$G$44*(('BP Financier'!$C$22+'BP Financier'!$D$22+'BP Financier'!$E$22+'BP Financier'!$F$22+'BP Financier'!$G$22)/('BP Financier'!$C$16+'BP Financier'!$C$19+'BP Financier'!$D$16+'BP Financier'!$D$19+'BP Financier'!$E$16+'BP Financier'!$E$19+'BP Financier'!$C$22+'BP Financier'!$D$22+'BP Financier'!$E$22+'BP Financier'!$F$22+'BP Financier'!$F$16+'BP Financier'!$F$19+'BP Financier'!$G$16+'BP Financier'!$G$19+'BP Financier'!$G$22))*$V8459*AB8459/(1-$W8459)","v":{"v":854.6957436078159,"d":"855"}},null,{"v":0.006,"d":"0.60%"},{"$f":"Actif!$E$28/100","v":{"v":0.28900000000000003,"d":"28.90%"}},{"$f":"Actif!$E$30/100","v":{"v":0.09050000000000001,"d":"9.05%"}},{"$f":"Actif!$E$31/100","v":{"v":0.0605,"d":"6.05%"}},{"$f":"Actif!$E$32/100","v":{"v":0.47350000000000003,"d":"47.35%"}},{"$f":"Actif!$E$33/100","v":{"v":0.0585,"d":"5.85%"}},{"$f":"Actif!$E$29/100","v":{"v":0.027999999999999997,"d":"2.80%"}}]
[null,"#347",34,2028,"H","A_CAPI",{"v":0.44999999999999996,"d":"0.45"},{"v":0.38999999999999996,"d":"0.39"},0.6,0.6,85,0,{"$f":"ROUND(Primes!$Q$10*V8460,2)","v":0.78},0,{"$f":"SUM(P8460:T8460)","v":{"v":21703.166918041326,"d":"21,703"}},{"$f":"'BP Financier'!$G$44*(('BP Financier'!$C$22+'BP Financier'!$D$22+'BP Financier'!$E$22+'BP Financier'!$F$22+'BP Financier'!$G$22)/('BP Financier'!$C$16+'BP Financier'!$C$19+'BP Financier'!$D$16+'BP Financier'!$D$19+'BP Financier'!$E$16+'BP Financier'!$E$19+'BP Financier'!$C$22+'BP Financier'!$D$22+'BP Financier'!$E$22+'BP Financier'!$F$22+'BP Financier'!$F$16+'BP Financier'!$F$19+'BP Financier'!$G$16+'BP Financier'!$G$19+'BP Financier'!$G$22))*$V8460*X8460/(1-$W8460)","v":{"v":2762.4987427324054,"d":"2,762"}},{"$f":"'BP Financier'!$G$44*(('BP Financier'!$C$22+'BP Financier'!$D$22+'BP Financier'!$E$22+'BP Financier'!$F$22+'BP Financier'!$G$22)/('BP Financier'!$C$16+'BP Financier'!$C$19+'BP Financier'!$D$16+'BP Financier'!$D$19+'BP Financier'!$E$16+'BP Financier'!$E$19+'BP Financier'!$C$22+'BP Financier'!$D$22+'BP Financier'!$E$22+'BP Financier'!$F$22+'BP Financier'!$F$16+'BP Financier'!$F$19+'BP Financier'!$G$16+'BP Financier'!$G$19+'BP Financier'!$G$22))*$V8460*Y8460/(1-$W8460)","v":{"v":1846.7533031526023,"d":"1,847"}},{"$f":"'BP Financier'!$G$44*(('BP Financier'!$C$22+'BP Financier'!$D$22+'BP Financier'!$E$22+'BP Financier'!$F$22+'BP Financier'!$G$22)/('BP Financier'!$C$16+'BP Financier'!$C$19+'BP Financier'!$D$16+'BP Financier'!$D$19+'BP Financier'!$E$16+'BP Financier'!$E$19+'BP Financier'!$C$22+'BP Financier'!$D$22+'BP Financier'!$E$22+'BP Financier'!$F$22+'BP Financier'!$F$16+'BP Financier'!$F$19+'BP Financier'!$G$16+'BP Financier'!$G$19+'BP Financier'!$G$22))*$V8460*Z8460/(1-$W8460)","v":{"v":14453.51552136789,"d":"14,454"}},{"$f":"'BP Financier'!$G$44*(('BP Financier'!$C$22+'BP Financier'!$D$22+'BP Financier'!$E$22+'BP Financier'!$F$22+'BP Financier'!$G$22)/('BP Financier'!$C$16+'BP Financier'!$C$19+'BP Financier'!$D$16+'BP Financier'!$D$19+'BP Financier'!$E$16+'BP Financier'!$E$19+'BP Financier'!$C$22+'BP Financier'!$D$22+'BP Financier'!$E$22+'BP Financier'!$F$22+'BP Financier'!$F$16+'BP Financier'!$F$19+'BP Financier'!$G$16+'BP Financier'!$G$19+'BP Financier'!$G$22))*$V8460*AA8460/(1-$W8460)","v":{"v":1785.7036071806158,"d":"1,786"}},{"$f":"'BP Financier'!$G$44*(('BP Financier'!$C$22+'BP Financier'!$D$22+'BP Financier'!$E$22+'BP Financier'!$F$22+'BP Financier'!$G$22)/('BP Financier'!$C$16+'BP Financier'!$C$19+'BP Financier'!$D$16+'BP Financier'!$D$19+'BP Financier'!$E$16+'BP Financier'!$E$19+'BP Financier'!$C$22+'BP Financier'!$D$22+'BP Financier'!$E$22+'BP Financier'!$F$22+'BP Financier'!$F$16+'BP Financier'!$F$19+'BP Financier'!$G$16+'BP Financier'!$G$19+'BP Financier'!$G$22))*$V8460*AB8460/(1-$W8460)","v":{"v":854.6957436078159,"d":"855"}},null,{"v":0.006,"d":"0.60%"},{"$f":"Actif!$E$28/100","v":{"v":0.28900000000000003,"d":"28.90%"}},{"$f":"Actif!$E$30/100","v":{"v":0.09050000000000001,"d":"9.05%"}},{"$f":"Actif!$E$31/100","v":{"v":0.0605,"d":"6.05%"}},{"$f":"Actif!$E$32/100","v":{"v":0.47350000000000003,"d":"47.35%"}},{"$f":"Actif!$E$33/100","v":{"v":0.0585,"d":"5.85%"}},{"$f":"Actif!$E$29/100","v":{"v":0.027999999999999997,"d":"2.80%"}}]
[null,"#348",34,2029,"H","A_CAPI",{"v":0.44999999999999996,"d":"0.45"},{"v":0.38999999999999996,"d":"0.39"},0.6,0.6,85,0,{"$f":"ROUND(Primes!$Q$10*V8461,2)","v":0.78},0,{"v":21703.166918041326,"d":"21,703"},{"$f":"'BP Financier'!$G$44*(('BP Financier'!$C$22+'BP Financier'!$D$22+'BP Financier'!$E$22+'BP Financier'!$F$22+'BP Financier'!$G$22)/('BP Financier'!$C$16+'BP Financier'!$C$19+'BP Financier'!$D$16+'BP Financier'!$D$19+'BP Financier'!$E$16+'BP Financier'!$E$19+'BP Financier'!$C$22+'BP Financier'!$D$22+'BP Financier'!$E$22+'BP Financier'!$F$22+'BP Financier'!$F$16+'BP Financier'!$F$19+'BP Financier'!$G$16+'BP Financier'!$G$19+'BP Financier'!$G$22))*$V8461*X8461/(1-$W8461)","v":{"v":2762.4987427324054,"d":"2,762"}},{"$f":"'BP Financier'!$G$44*(('BP Financier'!$C$22+'BP Financier'!$D$22+'BP Financier'!$E$22+'BP Financier'!$F$22+'BP Financier'!$G$22)/('BP Financier'!$C$16+'BP Financier'!$C$19+'BP Financier'!$D$16+'BP Financier'!$D$19+'BP Financier'!$E$16+'BP Financier'!$E$19+'BP Financier'!$C$22+'BP Financier'!$D$22+'BP Financier'!$E$22+'BP Financier'!$F$22+'BP Financier'!$F$16+'BP Financier'!$F$19+'BP Financier'!$G$16+'BP Financier'!$G$19+'BP Financier'!$G$22))*$V8461*Y8461/(1-$W8461)","v":{"v":1846.7533031526023,"d":"1,847"}},{"$f":"'BP Financier'!$G$44*(('BP Financier'!$C$22+'BP Financier'!$D$22+'BP Financier'!$E$22+'BP Financier'!$F$22+'BP Financier'!$G$22)/('BP Financier'!$C$16+'BP Financier'!$C$19+'BP Financier'!$D$16+'BP Financier'!$D$19+'BP Financier'!$E$16+'BP Financier'!$E$19+'BP Financier'!$C$22+'BP Financier'!$D$22+'BP Financier'!$E$22+'BP Financier'!$F$22+'BP Financier'!$F$16+'BP Financier'!$F$19+'BP Financier'!$G$16+'BP Financier'!$G$19+'BP Financier'!$G$22))*$V8461*Z8461/(1-$W8461)","v":{"v":14453.51552136789,"d":"14,454"}},{"$f":"'BP Financier'!$G$44*(('BP Financier'!$C$22+'BP Financier'!$D$22+'BP Financier'!$E$22+'BP Financier'!$F$22+'BP Financier'!$G$22)/('BP Financier'!$C$16+'BP Financier'!$C$19+'BP Financier'!$D$16+'BP Financier'!$D$19+'BP Financier'!$E$16+'BP Financier'!$E$19+'BP Financier'!$C$22+'BP Financier'!$D$22+'BP Financier'!$E$22+'BP Financier'!$F$22+'BP Financier'!$F$16+'BP Financier'!$F$19+'BP Financier'!$G$16+'BP Financier'!$G$19+'BP Financier'!$G$22))*$V8461*AA8461/(1-$W8461)","v":{"v":1785.7036071806158,"d":"1,786"}},{"$f":"'BP Financier'!$G$44*(('BP Financier'!$C$22+'BP Financier'!$D$22+'BP Financier'!$E$22+'BP Financier'!$F$22+'BP Financier'!$G$22)/('BP Financier'!$C$16+'BP Financier'!$C$19+'BP Financier'!$D$16+'BP Financier'!$D$19+'BP Financier'!$E$16+'BP Financier'!$E$19+'BP Financier'!$C$22+'BP Financier'!$D$22+'BP Financier'!$E$22+'BP Financier'!$F$22+'BP Financier'!$F$16+'BP Financier'!$F$19+'BP Financier'!$G$16+'BP Financier'!$G$19+'BP Financier'!$G$22))*$V8461*AB8461/(1-$W8461)","v":{"v":854.6957436078159,"d":"855"}},null,{"v":0.006,"d":"0.60%"},{"$f":"Actif!$E$28/100","v":{"v":0.28900000000000003,"d":"28.90%"}},{"$f":"Actif!$E$30/100","v":{"v":0.09050000000000001,"d":"9.05%"}},{"$f":"Actif!$E$31/100","v":{"v":0.0605,"d":"6.05%"}},{"$f":"Actif!$E$32/100","v":{"v":0.47350000000000003,"d":"47.35%"}},{"$f":"Actif!$E$33/100","v":{"v":0.0585,"d":"5.85%"}},{"$f":"Actif!$E$29/100","v":{"v":0.027999999999999997,"d":"2.80%"}}]
[null,"#349",34,2030,"H","A_CAPI",{"v":0.44999999999999996,"d":"0.45"},{"v":0.38999999999999996,"d":"0.39"},0.6,0.6,85,0,{"$f":"ROUND(Primes!$Q$10*V8462,2)","v":0.78},0,{"v":21703.166918041326,"d":"21,703"},{"$f":"'BP Financier'!$G$44*(('BP Financier'!$C$22+'BP Financier'!$D$22+'BP Financier'!$E$22+'BP Financier'!$F$22+'BP Financier'!$G$22)/('BP Financier'!$C$16+'BP Financier'!$C$19+'BP Financier'!$D$16+'BP Financier'!$D$19+'BP Financier'!$E$16+'BP Financier'!$E$19+'BP Financier'!$C$22+'BP Financier'!$D$22+'BP Financier'!$E$22+'BP Financier'!$F$22+'BP Financier'!$F$16+'BP Financier'!$F$19+'BP Financier'!$G$16+'BP Financier'!$G$19+'BP Financier'!$G$22))*$V8462*X8462/(1-$W8462)","v":{"v":2762.4987427324054,"d":"2,762"}},{"$f":"'BP Financier'!$G$44*(('BP Financier'!$C$22+'BP Financier'!$D$22+'BP Financier'!$E$22+'BP Financier'!$F$22+'BP Financier'!$G$22)/('BP Financier'!$C$16+'BP Financier'!$C$19+'BP Financier'!$D$16+'BP Financier'!$D$19+'BP Financier'!$E$16+'BP Financier'!$E$19+'BP Financier'!$C$22+'BP Financier'!$D$22+'BP Financier'!$E$22+'BP Financier'!$F$22+'BP Financier'!$F$16+'BP Financier'!$F$19+'BP Financier'!$G$16+'BP Financier'!$G$19+'BP Financier'!$G$22))*$V8462*Y8462/(1-$W8462)","v":{"v":1846.7533031526023,"d":"1,847"}},{"$f":"'BP Financier'!$G$44*(('BP Financier'!$C$22+'BP Financier'!$D$22+'BP Financier'!$E$22+'BP Financier'!$F$22+'BP Financier'!$G$22)/('BP Financier'!$C$16+'BP Financier'!$C$19+'BP Financier'!$D$16+'BP Financier'!$D$19+'BP Financier'!$E$16+'BP Financier'!$E$19+'BP Financier'!$C$22+'BP Financier'!$D$22+'BP Financier'!$E$22+'BP Financier'!$F$22+'BP Financier'!$F$16+'BP Financier'!$F$19+'BP Financier'!$G$16+'BP Financier'!$G$19+'BP Financier'!$G$22))*$V8462*Z8462/(1-$W8462)","v":{"v":14453.51552136789,"d":"14,454"}},{"$f":"'BP Financier'!$G$44*(('BP Financier'!$C$22+'BP Financier'!$D$22+'BP Financier'!$E$22+'BP Financier'!$F$22+'BP Financier'!$G$22)/('BP Financier'!$C$16+'BP Financier'!$C$19+'BP Financier'!$D$16+'BP Financier'!$D$19+'BP Financier'!$E$16+'BP Financier'!$E$19+'BP Financier'!$C$22+'BP Financier'!$D$22+'BP Financier'!$E$22+'BP Financier'!$F$22+'BP Financier'!$F$16+'BP Financier'!$F$19+'BP Financier'!$G$16+'BP Financier'!$G$19+'BP Financier'!$G$22))*$V8462*AA8462/(1-$W8462)","v":{"v":1785.7036071806158,"d":"1,786"}},{"$f":"'BP Financier'!$G$44*(('BP Financier'!$C$22+'BP Financier'!$D$22+'BP Financier'!$E$22+'BP Financier'!$F$22+'BP Financier'!$G$22)/('BP Financier'!$C$16+'BP Financier'!$C$19+'BP Financier'!$D$16+'BP Financier'!$D$19+'BP Financier'!$E$16+'BP Financier'!$E$19+'BP Financier'!$C$22+'BP Financier'!$D$22+'BP Financier'!$E$22+'BP Financier'!$F$22+'BP Financier'!$F$16+'BP Financier'!$F$19+'BP Financier'!$G$16+'BP Financier'!$G$19+'BP Financier'!$G$22))*$V8462*AB8462/(1-$W8462)","v":{"v":854.6957436078159,"d":"855"}},null,{"v":0.006,"d":"0.60%"},{"$f":"Actif!$E$28/100","v":{"v":0.28900000000000003,"d":"28.90%"}},{"$f":"Actif!$E$30/100","v":{"v":0.09050000000000001,"d":"9.05%"}},{"$f":"Actif!$E$31/100","v":{"v":0.0605,"d":"6.05%"}},{"$f":"Actif!$E$32/100","v":{"v":0.47350000000000003,"d":"47.35%"}},{"$f":"Actif!$E$33/100","v":{"v":0.0585,"d":"5.85%"}},{"$f":"Actif!$E$29/100","v":{"v":0.027999999999999997,"d":"2.80%"}}]
[null,"#350",34,2031,"H","A_CAPI",{"v":0.44999999999999996,"d":"0.45"},{"v":0.38999999999999996,"d":"0.39"},0.6,0.6,85,0,{"$f":"ROUND(Primes!$Q$10*V8463,2)","v":0.78},0,{"v":21703.166918041326,"d":"21,703"},{"$f":"'BP Financier'!$G$44*(('BP Financier'!$C$22+'BP Financier'!$D$22+'BP Financier'!$E$22+'BP Financier'!$F$22+'BP Financier'!$G$22)/('BP Financier'!$C$16+'BP Financier'!$C$19+'BP Financier'!$D$16+'BP Financier'!$D$19+'BP Financier'!$E$16+'BP Financier'!$E$19+'BP Financier'!$C$22+'BP Financier'!$D$22+'BP Financier'!$E$22+'BP Financier'!$F$22+'BP Financier'!$F$16+'BP Financier'!$F$19+'BP Financier'!$G$16+'BP Financier'!$G$19+'BP Financier'!$G$22))*$V8463*X8463/(1-$W8463)","v":{"v":2762.4987427324054,"d":"2,762"}},{"$f":"'BP Financier'!$G$44*(('BP Financier'!$C$22+'BP Financier'!$D$22+'BP Financier'!$E$22+'BP Financier'!$F$22+'BP Financier'!$G$22)/('BP Financier'!$C$16+'BP Financier'!$C$19+'BP Financier'!$D$16+'BP Financier'!$D$19+'BP Financier'!$E$16+'BP Financier'!$E$19+'BP Financier'!$C$22+'BP Financier'!$D$22+'BP Financier'!$E$22+'BP Financier'!$F$22+'BP Financier'!$F$16+'BP Financier'!$F$19+'BP Financier'!$G$16+'BP Financier'!$G$19+'BP Financier'!$G$22))*$V8463*Y8463/(1-$W8463)","v":{"v":1846.7533031526023,"d":"1,847"}},{"$f":"'BP Financier'!$G$44*(('BP Financier'!$C$22+'BP Financier'!$D$22+'BP Financier'!$E$22+'BP Financier'!$F$22+'BP Financier'!$G$22)/('BP Financier'!$C$16+'BP Financier'!$C$19+'BP Financier'!$D$16+'BP Financier'!$D$19+'BP Financier'!$E$16+'BP Financier'!$E$19+'BP Financier'!$C$22+'BP Financier'!$D$22+'BP Financier'!$E$22+'BP Financier'!$F$22+'BP Financier'!$F$16+'BP Financier'!$F$19+'BP Financier'!$G$16+'BP Financier'!$G$19+'BP Financier'!$G$22))*$V8463*Z8463/(1-$W8463)","v":{"v":14453.51552136789,"d":"14,454"}},{"$f":"'BP Financier'!$G$44*(('BP Financier'!$C$22+'BP Financier'!$D$22+'BP Financier'!$E$22+'BP Financier'!$F$22+'BP Financier'!$G$22)/('BP Financier'!$C$16+'BP Financier'!$C$19+'BP Financier'!$D$16+'BP Financier'!$D$19+'BP Financier'!$E$16+'BP Financier'!$E$19+'BP Financier'!$C$22+'BP Financier'!$D$22+'BP Financier'!$E$22+'BP Financier'!$F$22+'BP Financier'!$F$16+'BP Financier'!$F$19+'BP Financier'!$G$16+'BP Financier'!$G$19+'BP Financier'!$G$22))*$V8463*AA8463/(1-$W8463)","v":{"v":1785.7036071806158,"d":"1,786"}},{"$f":"'BP Financier'!$G$44*(('BP Financier'!$C$22+'BP Financier'!$D$22+'BP Financier'!$E$22+'BP Financier'!$F$22+'BP Financier'!$G$22)/('BP Financier'!$C$16+'BP Financier'!$C$19+'BP Financier'!$D$16+'BP Financier'!$D$19+'BP Financier'!$E$16+'BP Financier'!$E$19+'BP Financier'!$C$22+'BP Financier'!$D$22+'BP Financier'!$E$22+'BP Financier'!$F$22+'BP Financier'!$F$16+'BP Financier'!$F$19+'BP Financier'!$G$16+'BP Financier'!$G$19+'BP Financier'!$G$22))*$V8463*AB8463/(1-$W8463)","v":{"v":854.6957436078159,"d":"855"}},null,{"v":0.006,"d":"0.60%"},{"$f":"Actif!$E$28/100","v":{"v":0.28900000000000003,"d":"28.90%"}},{"$f":"Actif!$E$30/100","v":{"v":0.09050000000000001,"d":"9.05%"}},{"$f":"Actif!$E$31/100","v":{"v":0.0605,"d":"6.05%"}},{"$f":"Actif!$E$32/100","v":{"v":0.47350000000000003,"d":"47.35%"}},{"$f":"Actif!$E$33/100","v":{"v":0.0585,"d":"5.85%"}},{"$f":"Actif!$E$29/100","v":{"v":0.027999999999999997,"d":"2.80%"}}]
[null,"#351",35,2026,"F","A_CAPI",{"v":0.44999999999999996,"d":"0.45"},{"v":0.38999999999999996,"d":"0.39"},0.6,0.6,85,0,{"$f":"ROUND(Primes!$Q$10*V8464,2)","v":0.78},0,{"v":21703.166918041326,"d":"21,703"},{"$f":"'BP Financier'!$G$44*(('BP Financier'!$C$22+'BP Financier'!$D$22+'BP Financier'!$E$22+'BP Financier'!$F$22+'BP Financier'!$G$22)/('BP Financier'!$C$16+'BP Financier'!$C$19+'BP Financier'!$D$16+'BP Financier'!$D$19+'BP Financier'!$E$16+'BP Financier'!$E$19+'BP Financier'!$C$22+'BP Financier'!$D$22+'BP Financier'!$E$22+'BP Financier'!$F$22+'BP Financier'!$F$16+'BP Financier'!$F$19+'BP Financier'!$G$16+'BP Financier'!$G$19+'BP Financier'!$G$22))*$V8464*X8464/(1-$W8464)","v":{"v":2762.4987427324054,"d":"2,762"}},{"$f":"'BP Financier'!$G$44*(('BP Financier'!$C$22+'BP Financier'!$D$22+'BP Financier'!$E$22+'BP Financier'!$F$22+'BP Financier'!$G$22)/('BP Financier'!$C$16+'BP Financier'!$C$19+'BP Financier'!$D$16+'BP Financier'!$D$19+'BP Financier'!$E$16+'BP Financier'!$E$19+'BP Financier'!$C$22+'BP Financier'!$D$22+'BP Financier'!$E$22+'BP Financier'!$F$22+'BP Financier'!$F$16+'BP Financier'!$F$19+'BP Financier'!$G$16+'BP Financier'!$G$19+'BP Financier'!$G$22))*$V8464*Y8464/(1-$W8464)","v":{"v":1846.7533031526023,"d":"1,847"}},{"$f":"'BP Financier'!$G$44*(('BP Financier'!$C$22+'BP Financier'!$D$22+'BP Financier'!$E$22+'BP Financier'!$F$22+'BP Financier'!$G$22)/('BP Financier'!$C$16+'BP Financier'!$C$19+'BP Financier'!$D$16+'BP Financier'!$D$19+'BP Financier'!$E$16+'BP Financier'!$E$19+'BP Financier'!$C$22+'BP Financier'!$D$22+'BP Financier'!$E$22+'BP Financier'!$F$22+'BP Financier'!$F$16+'BP Financier'!$F$19+'BP Financier'!$G$16+'BP Financier'!$G$19+'BP Financier'!$G$22))*$V8464*Z8464/(1-$W8464)","v":{"v":14453.51552136789,"d":"14,454"}},{"$f":"'BP Financier'!$G$44*(('BP Financier'!$C$22+'BP Financier'!$D$22+'BP Financier'!$E$22+'BP Financier'!$F$22+'BP Financier'!$G$22)/('BP Financier'!$C$16+'BP Financier'!$C$19+'BP Financier'!$D$16+'BP Financier'!$D$19+'BP Financier'!$E$16+'BP Financier'!$E$19+'BP Financier'!$C$22+'BP Financier'!$D$22+'BP Financier'!$E$22+'BP Financier'!$F$22+'BP Financier'!$F$16+'BP Financier'!$F$19+'BP Financier'!$G$16+'BP Financier'!$G$19+'BP Financier'!$G$22))*$V8464*AA8464/(1-$W8464)","v":{"v":1785.7036071806158,"d":"1,786"}},{"$f":"'BP Financier'!$G$44*(('BP Financier'!$C$22+'BP Financier'!$D$22+'BP Financier'!$E$22+'BP Financier'!$F$22+'BP Financier'!$G$22)/('BP Financier'!$C$16+'BP Financier'!$C$19+'BP Financier'!$D$16+'BP Financier'!$D$19+'BP Financier'!$E$16+'BP Financier'!$E$19+'BP Financier'!$C$22+'BP Financier'!$D$22+'BP Financier'!$E$22+'BP Financier'!$F$22+'BP Financier'!$F$16+'BP Financier'!$F$19+'BP Financier'!$G$16+'BP Financier'!$G$19+'BP Financier'!$G$22))*$V8464*AB8464/(1-$W8464)","v":{"v":854.6957436078159,"d":"855"}},null,{"v":0.006,"d":"0.60%"},{"$f":"Actif!$E$28/100","v":{"v":0.28900000000000003,"d":"28.90%"}},{"$f":"Actif!$E$30/100","v":{"v":0.09050000000000001,"d":"9.05%"}},{"$f":"Actif!$E$31/100","v":{"v":0.0605,"d":"6.05%"}},{"$f":"Actif!$E$32/100","v":{"v":0.47350000000000003,"d":"47.35%"}},{"$f":"Actif!$E$33/100","v":{"v":0.0585,"d":"5.85%"}},{"$f":"Actif!$E$29/100","v":{"v":0.027999999999999997,"d":"2.80%"}}]
[null,"#352",35,2028,"F","A_CAPI",{"v":0.44999999999999996,"d":"0.45"},{"v":0.38999999999999996,"d":"0.39"},0.6,0.6,85,0,{"$f":"ROUND(Primes!$Q$10*V8465,2)","v":0.78},0,{"v":21703.166918041326,"d":"21,703"},{"$f":"'BP Financier'!$G$44*(('BP Financier'!$C$22+'BP Financier'!$D$22+'BP Financier'!$E$22+'BP Financier'!$F$22+'BP Financier'!$G$22)/('BP Financier'!$C$16+'BP Financier'!$C$19+'BP Financier'!$D$16+'BP Financier'!$D$19+'BP Financier'!$E$16+'BP Financier'!$E$19+'BP Financier'!$C$22+'BP Financier'!$D$22+'BP Financier'!$E$22+'BP Financier'!$F$22+'BP Financier'!$F$16+'BP Financier'!$F$19+'BP Financier'!$G$16+'BP Financier'!$G$19+'BP Financier'!$G$22))*$V8465*X8465/(1-$W8465)","v":{"v":2762.4987427324054,"d":"2,762"}},{"$f":"'BP Financier'!$G$44*(('BP Financier'!$C$22+'BP Financier'!$D$22+'BP Financier'!$E$22+'BP Financier'!$F$22+'BP Financier'!$G$22)/('BP Financier'!$C$16+'BP Financier'!$C$19+'BP Financier'!$D$16+'BP Financier'!$D$19+'BP Financier'!$E$16+'BP Financier'!$E$19+'BP Financier'!$C$22+'BP Financier'!$D$22+'BP Financier'!$E$22+'BP Financier'!$F$22+'BP Financier'!$F$16+'BP Financier'!$F$19+'BP Financier'!$G$16+'BP Financier'!$G$19+'BP Financier'!$G$22))*$V8465*Y8465/(1-$W8465)","v":{"v":1846.7533031526023,"d":"1,847"}},{"$f":"'BP Financier'!$G$44*(('BP Financier'!$C$22+'BP Financier'!$D$22+'BP Financier'!$E$22+'BP Financier'!$F$22+'BP Financier'!$G$22)/('BP Financier'!$C$16+'BP Financier'!$C$19+'BP Financier'!$D$16+'BP Financier'!$D$19+'BP Financier'!$E$16+'BP Financier'!$E$19+'BP Financier'!$C$22+'BP Financier'!$D$22+'BP Financier'!$E$22+'BP Financier'!$F$22+'BP Financier'!$F$16+'BP Financier'!$F$19+'BP Financier'!$G$16+'BP Financier'!$G$19+'BP Financier'!$G$22))*$V8465*Z8465/(1-$W8465)","v":{"v":14453.51552136789,"d":"14,454"}},{"$f":"'BP Financier'!$G$44*(('BP Financier'!$C$22+'BP Financier'!$D$22+'BP Financier'!$E$22+'BP Financier'!$F$22+'BP Financier'!$G$22)/('BP Financier'!$C$16+'BP Financier'!$C$19+'BP Financier'!$D$16+'BP Financier'!$D$19+'BP Financier'!$E$16+'BP Financier'!$E$19+'BP Financier'!$C$22+'BP Financier'!$D$22+'BP Financier'!$E$22+'BP Financier'!$F$22+'BP Financier'!$F$16+'BP Financier'!$F$19+'BP Financier'!$G$16+'BP Financier'!$G$19+'BP Financier'!$G$22))*$V8465*AA8465/(1-$W8465)","v":{"v":1785.7036071806158,"d":"1,786"}},{"$f":"'BP Financier'!$G$44*(('BP Financier'!$C$22+'BP Financier'!$D$22+'BP Financier'!$E$22+'BP Financier'!$F$22+'BP Financier'!$G$22)/('BP Financier'!$C$16+'BP Financier'!$C$19+'BP Financier'!$D$16+'BP Financier'!$D$19+'BP Financier'!$E$16+'BP Financier'!$E$19+'BP Financier'!$C$22+'BP Financier'!$D$22+'BP Financier'!$E$22+'BP Financier'!$F$22+'BP Financier'!$F$16+'BP Financier'!$F$19+'BP Financier'!$G$16+'BP Financier'!$G$19+'BP Financier'!$G$22))*$V8465*AB8465/(1-$W8465)","v":{"v":854.6957436078159,"d":"855"}},null,{"v":0.006,"d":"0.60%"},{"$f":"Actif!$E$28/100","v":{"v":0.28900000000000003,"d":"28.90%"}},{"$f":"Actif!$E$30/100","v":{"v":0.09050000000000001,"d":"9.05%"}},{"$f":"Actif!$E$31/100","v":{"v":0.0605,"d":"6.05%"}},{"$f":"Actif!$E$32/100","v":{"v":0.47350000000000003,"d":"47.35%"}},{"$f":"Actif!$E$33/100","v":{"v":0.0585,"d":"5.85%"}},{"$f":"Actif!$E$29/100","v":{"v":0.027999999999999997,"d":"2.80%"}}]
[null,"#353",35,2029,"F","A_CAPI",{"v":0.44999999999999996,"d":"0.45"},{"v":0.38999999999999996,"d":"0.39"},0.6,0.6,85,0,{"$f":"ROUND(Primes!$Q$10*V8466,2)","v":0.78},0,{"v":21703.166918041326,"d":"21,703"},{"$f":"'BP Financier'!$G$44*(('BP Financier'!$C$22+'BP Financier'!$D$22+'BP Financier'!$E$22+'BP Financier'!$F$22+'BP Financier'!$G$22)/('BP Financier'!$C$16+'BP Financier'!$C$19+'BP Financier'!$D$16+'BP Financier'!$D$19+'BP Financier'!$E$16+'BP Financier'!$E$19+'BP Financier'!$C$22+'BP Financier'!$D$22+'BP Financier'!$E$22+'BP Financier'!$F$22+'BP Financier'!$F$16+'BP Financier'!$F$19+'BP Financier'!$G$16+'BP Financier'!$G$19+'BP Financier'!$G$22))*$V8466*X8466/(1-$W8466)","v":{"v":2762.4987427324054,"d":"2,762"}},{"$f":"'BP Financier'!$G$44*(('BP Financier'!$C$22+'BP Financier'!$D$22+'BP Financier'!$E$22+'BP Financier'!$F$22+'BP Financier'!$G$22)/('BP Financier'!$C$16+'BP Financier'!$C$19+'BP Financier'!$D$16+'BP Financier'!$D$19+'BP Financier'!$E$16+'BP Financier'!$E$19+'BP Financier'!$C$22+'BP Financier'!$D$22+'BP Financier'!$E$22+'BP Financier'!$F$22+'BP Financier'!$F$16+'BP Financier'!$F$19+'BP Financier'!$G$16+'BP Financier'!$G$19+'BP Financier'!$G$22))*$V8466*Y8466/(1-$W8466)","v":{"v":1846.7533031526023,"d":"1,847"}},{"$f":"'BP Financier'!$G$44*(('BP Financier'!$C$22+'BP Financier'!$D$22+'BP Financier'!$E$22+'BP Financier'!$F$22+'BP Financier'!$G$22)/('BP Financier'!$C$16+'BP Financier'!$C$19+'BP Financier'!$D$16+'BP Financier'!$D$19+'BP Financier'!$E$16+'BP Financier'!$E$19+'BP Financier'!$C$22+'BP Financier'!$D$22+'BP Financier'!$E$22+'BP Financier'!$F$22+'BP Financier'!$F$16+'BP Financier'!$F$19+'BP Financier'!$G$16+'BP Financier'!$G$19+'BP Financier'!$G$22))*$V8466*Z8466/(1-$W8466)","v":{"v":14453.51552136789,"d":"14,454"}},{"$f":"'BP Financier'!$G$44*(('BP Financier'!$C$22+'BP Financier'!$D$22+'BP Financier'!$E$22+'BP Financier'!$F$22+'BP Financier'!$G$22)/('BP Financier'!$C$16+'BP Financier'!$C$19+'BP Financier'!$D$16+'BP Financier'!$D$19+'BP Financier'!$E$16+'BP Financier'!$E$19+'BP Financier'!$C$22+'BP Financier'!$D$22+'BP Financier'!$E$22+'BP Financier'!$F$22+'BP Financier'!$F$16+'BP Financier'!$F$19+'BP Financier'!$G$16+'BP Financier'!$G$19+'BP Financier'!$G$22))*$V8466*AA8466/(1-$W8466)","v":{"v":1785.7036071806158,"d":"1,786"}},{"$f":"'BP Financier'!$G$44*(('BP Financier'!$C$22+'BP Financier'!$D$22+'BP Financier'!$E$22+'BP Financier'!$F$22+'BP Financier'!$G$22)/('BP Financier'!$C$16+'BP Financier'!$C$19+'BP Financier'!$D$16+'BP Financier'!$D$19+'BP Financier'!$E$16+'BP Financier'!$E$19+'BP Financier'!$C$22+'BP Financier'!$D$22+'BP Financier'!$E$22+'BP Financier'!$F$22+'BP Financier'!$F$16+'BP Financier'!$F$19+'BP Financier'!$G$16+'BP Financier'!$G$19+'BP Financier'!$G$22))*$V8466*AB8466/(1-$W8466)","v":{"v":854.6957436078159,"d":"855"}},null,{"v":0.006,"d":"0.60%"},{"$f":"Actif!$E$28/100","v":{"v":0.28900000000000003,"d":"28.90%"}},{"$f":"Actif!$E$30/100","v":{"v":0.09050000000000001,"d":"9.05%"}},{"$f":"Actif!$E$31/100","v":{"v":0.0605,"d":"6.05%"}},{"$f":"Actif!$E$32/100","v":{"v":0.47350000000000003,"d":"47.35%"}},{"$f":"Actif!$E$33/100","v":{"v":0.0585,"d":"5.85%"}},{"$f":"Actif!$E$29/100","v":{"v":0.027999999999999997,"d":"2.80%"}}]
[null,"#354",35,2030,"F","A_CAPI",{"v":0.44999999999999996,"d":"0.45"},{"v":0.38999999999999996,"d":"0.39"},0.6,0.6,85,0,{"$f":"ROUND(Primes!$Q$10*V8467,2)","v":0.78},0,{"v":21703.166918041326,"d":"21,703"},{"$f":"'BP Financier'!$G$44*(('BP Financier'!$C$22+'BP Financier'!$D$22+'BP Financier'!$E$22+'BP Financier'!$F$22+'BP Financier'!$G$22)/('BP Financier'!$C$16+'BP Financier'!$C$19+'BP Financier'!$D$16+'BP Financier'!$D$19+'BP Financier'!$E$16+'BP Financier'!$E$19+'BP Financier'!$C$22+'BP Financier'!$D$22+'BP Financier'!$E$22+'BP Financier'!$F$22+'BP Financier'!$F$16+'BP Financier'!$F$19+'BP Financier'!$G$16+'BP Financier'!$G$19+'BP Financier'!$G$22))*$V8467*X8467/(1-$W8467)","v":{"v":2762.4987427324054,"d":"2,762"}},{"$f":"'BP Financier'!$G$44*(('BP Financier'!$C$22+'BP Financier'!$D$22+'BP Financier'!$E$22+'BP Financier'!$F$22+'BP Financier'!$G$22)/('BP Financier'!$C$16+'BP Financier'!$C$19+'BP Financier'!$D$16+'BP Financier'!$D$19+'BP Financier'!$E$16+'BP Financier'!$E$19+'BP Financier'!$C$22+'BP Financier'!$D$22+'BP Financier'!$E$22+'BP Financier'!$F$22+'BP Financier'!$F$16+'BP Financier'!$F$19+'BP Financier'!$G$16+'BP Financier'!$G$19+'BP Financier'!$G$22))*$V8467*Y8467/(1-$W8467)","v":{"v":1846.7533031526023,"d":"1,847"}},{"$f":"'BP Financier'!$G$44*(('BP Financier'!$C$22+'BP Financier'!$D$22+'BP Financier'!$E$22+'BP Financier'!$F$22+'BP Financier'!$G$22)/('BP Financier'!$C$16+'BP Financier'!$C$19+'BP Financier'!$D$16+'BP Financier'!$D$19+'BP Financier'!$E$16+'BP Financier'!$E$19+'BP Financier'!$C$22+'BP Financier'!$D$22+'BP Financier'!$E$22+'BP Financier'!$F$22+'BP Financier'!$F$16+'BP Financier'!$F$19+'BP Financier'!$G$16+'BP Financier'!$G$19+'BP Financier'!$G$22))*$V8467*Z8467/(1-$W8467)","v":{"v":14453.51552136789,"d":"14,454"}},{"$f":"'BP Financier'!$G$44*(('BP Financier'!$C$22+'BP Financier'!$D$22+'BP Financier'!$E$22+'BP Financier'!$F$22+'BP Financier'!$G$22)/('BP Financier'!$C$16+'BP Financier'!$C$19+'BP Financier'!$D$16+'BP Financier'!$D$19+'BP Financier'!$E$16+'BP Financier'!$E$19+'BP Financier'!$C$22+'BP Financier'!$D$22+'BP Financier'!$E$22+'BP Financier'!$F$22+'BP Financier'!$F$16+'BP Financier'!$F$19+'BP Financier'!$G$16+'BP Financier'!$G$19+'BP Financier'!$G$22))*$V8467*AA8467/(1-$W8467)","v":{"v":1785.7036071806158,"d":"1,786"}},{"$f":"'BP Financier'!$G$44*(('BP Financier'!$C$22+'BP Financier'!$D$22+'BP Financier'!$E$22+'BP Financier'!$F$22+'BP Financier'!$G$22)/('BP Financier'!$C$16+'BP Financier'!$C$19+'BP Financier'!$D$16+'BP Financier'!$D$19+'BP Financier'!$E$16+'BP Financier'!$E$19+'BP Financier'!$C$22+'BP Financier'!$D$22+'BP Financier'!$E$22+'BP Financier'!$F$22+'BP Financier'!$F$16+'BP Financier'!$F$19+'BP Financier'!$G$16+'BP Financier'!$G$19+'BP Financier'!$G$22))*$V8467*AB8467/(1-$W8467)","v":{"v":854.6957436078159,"d":"855"}},null,{"v":0.006,"d":"0.60%"},{"$f":"Actif!$E$28/100","v":{"v":0.28900000000000003,"d":"28.90%"}},{"$f":"Actif!$E$30/100","v":{"v":0.09050000000000001,"d":"9.05%"}},{"$f":"Actif!$E$31/100","v":{"v":0.0605,"d":"6.05%"}},{"$f":"Actif!$E$32/100","v":{"v":0.47350000000000003,"d":"47.35%"}},{"$f":"Actif!$E$33/100","v":{"v":0.0585,"d":"5.85%"}},{"$f":"Actif!$E$29/100","v":{"v":0.027999999999999997,"d":"2.80%"}}]
[null,"#355",35,2031,"F","A_CAPI",{"v":0.44999999999999996,"d":"0.45"},{"v":0.38999999999999996,"d":"0.39"},0.6,0.6,85,0,{"$f":"ROUND(Primes!$Q$10*V8468,2)","v":0.78},0,{"v":21703.166918041326,"d":"21,703"},{"$f":"'BP Financier'!$G$44*(('BP Financier'!$C$22+'BP Financier'!$D$22+'BP Financier'!$E$22+'BP Financier'!$F$22+'BP Financier'!$G$22)/('BP Financier'!$C$16+'BP Financier'!$C$19+'BP Financier'!$D$16+'BP Financier'!$D$19+'BP Financier'!$E$16+'BP Financier'!$E$19+'BP Financier'!$C$22+'BP Financier'!$D$22+'BP Financier'!$E$22+'BP Financier'!$F$22+'BP Financier'!$F$16+'BP Financier'!$F$19+'BP Financier'!$G$16+'BP Financier'!$G$19+'BP Financier'!$G$22))*$V8468*X8468/(1-$W8468)","v":{"v":2762.4987427324054,"d":"2,762"}},{"$f":"'BP Financier'!$G$44*(('BP Financier'!$C$22+'BP Financier'!$D$22+'BP Financier'!$E$22+'BP Financier'!$F$22+'BP Financier'!$G$22)/('BP Financier'!$C$16+'BP Financier'!$C$19+'BP Financier'!$D$16+'BP Financier'!$D$19+'BP Financier'!$E$16+'BP Financier'!$E$19+'BP Financier'!$C$22+'BP Financier'!$D$22+'BP Financier'!$E$22+'BP Financier'!$F$22+'BP Financier'!$F$16+'BP Financier'!$F$19+'BP Financier'!$G$16+'BP Financier'!$G$19+'BP Financier'!$G$22))*$V8468*Y8468/(1-$W8468)","v":{"v":1846.7533031526023,"d":"1,847"}},{"$f":"'BP Financier'!$G$44*(('BP Financier'!$C$22+'BP Financier'!$D$22+'BP Financier'!$E$22+'BP Financier'!$F$22+'BP Financier'!$G$22)/('BP Financier'!$C$16+'BP Financier'!$C$19+'BP Financier'!$D$16+'BP Financier'!$D$19+'BP Financier'!$E$16+'BP Financier'!$E$19+'BP Financier'!$C$22+'BP Financier'!$D$22+'BP Financier'!$E$22+'BP Financier'!$F$22+'BP Financier'!$F$16+'BP Financier'!$F$19+'BP Financier'!$G$16+'BP Financier'!$G$19+'BP Financier'!$G$22))*$V8468*Z8468/(1-$W8468)","v":{"v":14453.51552136789,"d":"14,454"}},{"$f":"'BP Financier'!$G$44*(('BP Financier'!$C$22+'BP Financier'!$D$22+'BP Financier'!$E$22+'BP Financier'!$F$22+'BP Financier'!$G$22)/('BP Financier'!$C$16+'BP Financier'!$C$19+'BP Financier'!$D$16+'BP Financier'!$D$19+'BP Financier'!$E$16+'BP Financier'!$E$19+'BP Financier'!$C$22+'BP Financier'!$D$22+'BP Financier'!$E$22+'BP Financier'!$F$22+'BP Financier'!$F$16+'BP Financier'!$F$19+'BP Financier'!$G$16+'BP Financier'!$G$19+'BP Financier'!$G$22))*$V8468*AA8468/(1-$W8468)","v":{"v":1785.7036071806158,"d":"1,786"}},{"$f":"'BP Financier'!$G$44*(('BP Financier'!$C$22+'BP Financier'!$D$22+'BP Financier'!$E$22+'BP Financier'!$F$22+'BP Financier'!$G$22)/('BP Financier'!$C$16+'BP Financier'!$C$19+'BP Financier'!$D$16+'BP Financier'!$D$19+'BP Financier'!$E$16+'BP Financier'!$E$19+'BP Financier'!$C$22+'BP Financier'!$D$22+'BP Financier'!$E$22+'BP Financier'!$F$22+'BP Financier'!$F$16+'BP Financier'!$F$19+'BP Financier'!$G$16+'BP Financier'!$G$19+'BP Financier'!$G$22))*$V8468*AB8468/(1-$W8468)","v":{"v":854.6957436078159,"d":"855"}},null,{"v":0.006,"d":"0.60%"},{"$f":"Actif!$E$28/100","v":{"v":0.28900000000000003,"d":"28.90%"}},{"$f":"Actif!$E$30/100","v":{"v":0.09050000000000001,"d":"9.05%"}},{"$f":"Actif!$E$31/100","v":{"v":0.0605,"d":"6.05%"}},{"$f":"Actif!$E$32/100","v":{"v":0.47350000000000003,"d":"47.35%"}},{"$f":"Actif!$E$33/100","v":{"v":0.0585,"d":"5.85%"}},{"$f":"Actif!$E$29/100","v":{"v":0.027999999999999997,"d":"2.80%"}}]
[null,"#356",36,2026,"H","A_CAPI",{"v":0.44999999999999996,"d":"0.45"},{"v":0.38999999999999996,"d":"0.39"},0.6,0.6,85,0,{"$f":"ROUND(Primes!$Q$10*V8469,2)","v":0.13},0,{"v":3617.194486340221,"d":"3,617"},{"$f":"'BP Financier'!$G$44*(('BP Financier'!$C$22+'BP Financier'!$D$22+'BP Financier'!$E$22+'BP Financier'!$F$22+'BP Financier'!$G$22)/('BP Financier'!$C$16+'BP Financier'!$C$19+'BP Financier'!$D$16+'BP Financier'!$D$19+'BP Financier'!$E$16+'BP Financier'!$E$19+'BP Financier'!$C$22+'BP Financier'!$D$22+'BP Financier'!$E$22+'BP Financier'!$F$22+'BP Financier'!$F$16+'BP Financier'!$F$19+'BP Financier'!$G$16+'BP Financier'!$G$19+'BP Financier'!$G$22))*$V8469*X8469/(1-$W8469)","v":{"v":460.4164571220675,"d":"460"}},{"$f":"'BP Financier'!$G$44*(('BP Financier'!$C$22+'BP Financier'!$D$22+'BP Financier'!$E$22+'BP Financier'!$F$22+'BP Financier'!$G$22)/('BP Financier'!$C$16+'BP Financier'!$C$19+'BP Financier'!$D$16+'BP Financier'!$D$19+'BP Financier'!$E$16+'BP Financier'!$E$19+'BP Financier'!$C$22+'BP Financier'!$D$22+'BP Financier'!$E$22+'BP Financier'!$F$22+'BP Financier'!$F$16+'BP Financier'!$F$19+'BP Financier'!$G$16+'BP Financier'!$G$19+'BP Financier'!$G$22))*$V8469*Y8469/(1-$W8469)","v":{"v":307.7922171921004,"d":"308"}},{"$f":"'BP Financier'!$G$44*(('BP Financier'!$C$22+'BP Financier'!$D$22+'BP Financier'!$E$22+'BP Financier'!$F$22+'BP Financier'!$G$22)/('BP Financier'!$C$16+'BP Financier'!$C$19+'BP Financier'!$D$16+'BP Financier'!$D$19+'BP Financier'!$E$16+'BP Financier'!$E$19+'BP Financier'!$C$22+'BP Financier'!$D$22+'BP Financier'!$E$22+'BP Financier'!$F$22+'BP Financier'!$F$16+'BP Financier'!$F$19+'BP Financier'!$G$16+'BP Financier'!$G$19+'BP Financier'!$G$22))*$V8469*Z8469/(1-$W8469)","v":{"v":2408.9192535613147,"d":"2,409"}},{"$f":"'BP Financier'!$G$44*(('BP Financier'!$C$22+'BP Financier'!$D$22+'BP Financier'!$E$22+'BP Financier'!$F$22+'BP Financier'!$G$22)/('BP Financier'!$C$16+'BP Financier'!$C$19+'BP Financier'!$D$16+'BP Financier'!$D$19+'BP Financier'!$E$16+'BP Financier'!$E$19+'BP Financier'!$C$22+'BP Financier'!$D$22+'BP Financier'!$E$22+'BP Financier'!$F$22+'BP Financier'!$F$16+'BP Financier'!$F$19+'BP Financier'!$G$16+'BP Financier'!$G$19+'BP Financier'!$G$22))*$V8469*AA8469/(1-$W8469)","v":{"v":297.6172678634359,"d":"298"}},{"$f":"'BP Financier'!$G$44*(('BP Financier'!$C$22+'BP Financier'!$D$22+'BP Financier'!$E$22+'BP Financier'!$F$22+'BP Financier'!$G$22)/('BP Financier'!$C$16+'BP Financier'!$C$19+'BP Financier'!$D$16+'BP Financier'!$D$19+'BP Financier'!$E$16+'BP Financier'!$E$19+'BP Financier'!$C$22+'BP Financier'!$D$22+'BP Financier'!$E$22+'BP Financier'!$F$22+'BP Financier'!$F$16+'BP Financier'!$F$19+'BP Financier'!$G$16+'BP Financier'!$G$19+'BP Financier'!$G$22))*$V8469*AB8469/(1-$W8469)","v":{"v":142.44929060130264,"d":"142"}},null,{"v":1E-3,"d":"0.10%"},{"$f":"Actif!$E$28/100","v":{"v":0.28900000000000003,"d":"28.90%"}},{"$f":"Actif!$E$30/100","v":{"v":0.09050000000000001,"d":"9.05%"}},{"$f":"Actif!$E$31/100","v":{"v":0.0605,"d":"6.05%"}},{"$f":"Actif!$E$32/100","v":{"v":0.47350000000000003,"d":"47.35%"}},{"$f":"Actif!$E$33/100","v":{"v":0.0585,"d":"5.85%"}},{"$f":"Actif!$E$29/100","v":{"v":0.027999999999999997,"d":"2.80%"}}]
[null,"#357",36,2028,"H","A_CAPI",{"v":0.44999999999999996,"d":"0.45"},{"v":0.38999999999999996,"d":"0.39"},0.6,0.6,85,0,{"$f":"ROUND(Primes!$Q$10*V8470,2)","v":0.13},0,{"v":3617.194486340221,"d":"3,617"},{"$f":"'BP Financier'!$G$44*(('BP Financier'!$C$22+'BP Financier'!$D$22+'BP Financier'!$E$22+'BP Financier'!$F$22+'BP Financier'!$G$22)/('BP Financier'!$C$16+'BP Financier'!$C$19+'BP Financier'!$D$16+'BP Financier'!$D$19+'BP Financier'!$E$16+'BP Financier'!$E$19+'BP Financier'!$C$22+'BP Financier'!$D$22+'BP Financier'!$E$22+'BP Financier'!$F$22+'BP Financier'!$F$16+'BP Financier'!$F$19+'BP Financier'!$G$16+'BP Financier'!$G$19+'BP Financier'!$G$22))*$V8470*X8470/(1-$W8470)","v":{"v":460.4164571220675,"d":"460"}},{"$f":"'BP Financier'!$G$44*(('BP Financier'!$C$22+'BP Financier'!$D$22+'BP Financier'!$E$22+'BP Financier'!$F$22+'BP Financier'!$G$22)/('BP Financier'!$C$16+'BP Financier'!$C$19+'BP Financier'!$D$16+'BP Financier'!$D$19+'BP Financier'!$E$16+'BP Financier'!$E$19+'BP Financier'!$C$22+'BP Financier'!$D$22+'BP Financier'!$E$22+'BP Financier'!$F$22+'BP Financier'!$F$16+'BP Financier'!$F$19+'BP Financier'!$G$16+'BP Financier'!$G$19+'BP Financier'!$G$22))*$V8470*Y8470/(1-$W8470)","v":{"v":307.7922171921004,"d":"308"}},{"$f":"'BP Financier'!$G$44*(('BP Financier'!$C$22+'BP Financier'!$D$22+'BP Financier'!$E$22+'BP Financier'!$F$22+'BP Financier'!$G$22)/('BP Financier'!$C$16+'BP Financier'!$C$19+'BP Financier'!$D$16+'BP Financier'!$D$19+'BP Financier'!$E$16+'BP Financier'!$E$19+'BP Financier'!$C$22+'BP Financier'!$D$22+'BP Financier'!$E$22+'BP Financier'!$F$22+'BP Financier'!$F$16+'BP Financier'!$F$19+'BP Financier'!$G$16+'BP Financier'!$G$19+'BP Financier'!$G$22))*$V8470*Z8470/(1-$W8470)","v":{"v":2408.9192535613147,"d":"2,409"}},{"$f":"'BP Financier'!$G$44*(('BP Financier'!$C$22+'BP Financier'!$D$22+'BP Financier'!$E$22+'BP Financier'!$F$22+'BP Financier'!$G$22)/('BP Financier'!$C$16+'BP Financier'!$C$19+'BP Financier'!$D$16+'BP Financier'!$D$19+'BP Financier'!$E$16+'BP Financier'!$E$19+'BP Financier'!$C$22+'BP Financier'!$D$22+'BP Financier'!$E$22+'BP Financier'!$F$22+'BP Financier'!$F$16+'BP Financier'!$F$19+'BP Financier'!$G$16+'BP Financier'!$G$19+'BP Financier'!$G$22))*$V8470*AA8470/(1-$W8470)","v":{"v":297.6172678634359,"d":"298"}},{"$f":"'BP Financier'!$G$44*(('BP Financier'!$C$22+'BP Financier'!$D$22+'BP Financier'!$E$22+'BP Financier'!$F$22+'BP Financier'!$G$22)/('BP Financier'!$C$16+'BP Financier'!$C$19+'BP Financier'!$D$16+'BP Financier'!$D$19+'BP Financier'!$E$16+'BP Financier'!$E$19+'BP Financier'!$C$22+'BP Financier'!$D$22+'BP Financier'!$E$22+'BP Financier'!$F$22+'BP Financier'!$F$16+'BP Financier'!$F$19+'BP Financier'!$G$16+'BP Financier'!$G$19+'BP Financier'!$G$22))*$V8470*AB8470/(1-$W8470)","v":{"v":142.44929060130264,"d":"142"}},null,{"v":1E-3,"d":"0.10%"},{"$f":"Actif!$E$28/100","v":{"v":0.28900000000000003,"d":"28.90%"}},{"$f":"Actif!$E$30/100","v":{"v":0.09050000000000001,"d":"9.05%"}},{"$f":"Actif!$E$31/100","v":{"v":0.0605,"d":"6.05%"}},{"$f":"Actif!$E$32/100","v":{"v":0.47350000000000003,"d":"47.35%"}},{"$f":"Actif!$E$33/100","v":{"v":0.0585,"d":"5.85%"}},{"$f":"Actif!$E$29/100","v":{"v":0.027999999999999997,"d":"2.80%"}}]
[null,"#358",36,2029,"H","A_CAPI",{"v":0.44999999999999996,"d":"0.45"},{"v":0.38999999999999996,"d":"0.39"},0.6,0.6,85,0,{"$f":"ROUND(Primes!$Q$10*V8471,2)","v":0.13},0,{"v":3617.194486340221,"d":"3,617"},{"$f":"'BP Financier'!$G$44*(('BP Financier'!$C$22+'BP Financier'!$D$22+'BP Financier'!$E$22+'BP Financier'!$F$22+'BP Financier'!$G$22)/('BP Financier'!$C$16+'BP Financier'!$C$19+'BP Financier'!$D$16+'BP Financier'!$D$19+'BP Financier'!$E$16+'BP Financier'!$E$19+'BP Financier'!$C$22+'BP Financier'!$D$22+'BP Financier'!$E$22+'BP Financier'!$F$22+'BP Financier'!$F$16+'BP Financier'!$F$19+'BP Financier'!$G$16+'BP Financier'!$G$19+'BP Financier'!$G$22))*$V8471*X8471/(1-$W8471)","v":{"v":460.4164571220675,"d":"460"}},{"$f":"'BP Financier'!$G$44*(('BP Financier'!$C$22+'BP Financier'!$D$22+'BP Financier'!$E$22+'BP Financier'!$F$22+'BP Financier'!$G$22)/('BP Financier'!$C$16+'BP Financier'!$C$19+'BP Financier'!$D$16+'BP Financier'!$D$19+'BP Financier'!$E$16+'BP Financier'!$E$19+'BP Financier'!$C$22+'BP Financier'!$D$22+'BP Financier'!$E$22+'BP Financier'!$F$22+'BP Financier'!$F$16+'BP Financier'!$F$19+'BP Financier'!$G$16+'BP Financier'!$G$19+'BP Financier'!$G$22))*$V8471*Y8471/(1-$W8471)","v":{"v":307.7922171921004,"d":"308"}},{"$f":"'BP Financier'!$G$44*(('BP Financier'!$C$22+'BP Financier'!$D$22+'BP Financier'!$E$22+'BP Financier'!$F$22+'BP Financier'!$G$22)/('BP Financier'!$C$16+'BP Financier'!$C$19+'BP Financier'!$D$16+'BP Financier'!$D$19+'BP Financier'!$E$16+'BP Financier'!$E$19+'BP Financier'!$C$22+'BP Financier'!$D$22+'BP Financier'!$E$22+'BP Financier'!$F$22+'BP Financier'!$F$16+'BP Financier'!$F$19+'BP Financier'!$G$16+'BP Financier'!$G$19+'BP Financier'!$G$22))*$V8471*Z8471/(1-$W8471)","v":{"v":2408.9192535613147,"d":"2,409"}},{"$f":"'BP Financier'!$G$44*(('BP Financier'!$C$22+'BP Financier'!$D$22+'BP Financier'!$E$22+'BP Financier'!$F$22+'BP Financier'!$G$22)/('BP Financier'!$C$16+'BP Financier'!$C$19+'BP Financier'!$D$16+'BP Financier'!$D$19+'BP Financier'!$E$16+'BP Financier'!$E$19+'BP Financier'!$C$22+'BP Financier'!$D$22+'BP Financier'!$E$22+'BP Financier'!$F$22+'BP Financier'!$F$16+'BP Financier'!$F$19+'BP Financier'!$G$16+'BP Financier'!$G$19+'BP Financier'!$G$22))*$V8471*AA8471/(1-$W8471)","v":{"v":297.6172678634359,"d":"298"}},{"$f":"'BP Financier'!$G$44*(('BP Financier'!$C$22+'BP Financier'!$D$22+'BP Financier'!$E$22+'BP Financier'!$F$22+'BP Financier'!$G$22)/('BP Financier'!$C$16+'BP Financier'!$C$19+'BP Financier'!$D$16+'BP Financier'!$D$19+'BP Financier'!$E$16+'BP Financier'!$E$19+'BP Financier'!$C$22+'BP Financier'!$D$22+'BP Financier'!$E$22+'BP Financier'!$F$22+'BP Financier'!$F$16+'BP Financier'!$F$19+'BP Financier'!$G$16+'BP Financier'!$G$19+'BP Financier'!$G$22))*$V8471*AB8471/(1-$W8471)","v":{"v":142.44929060130264,"d":"142"}},null,{"v":1E-3,"d":"0.10%"},{"$f":"Actif!$E$28/100","v":{"v":0.28900000000000003,"d":"28.90%"}},{"$f":"Actif!$E$30/100","v":{"v":0.09050000000000001,"d":"9.05%"}},{"$f":"Actif!$E$31/100","v":{"v":0.0605,"d":"6.05%"}},{"$f":"Actif!$E$32/100","v":{"v":0.47350000000000003,"d":"47.35%"}},{"$f":"Actif!$E$33/100","v":{"v":0.0585,"d":"5.85%"}},{"$f":"Actif!$E$29/100","v":{"v":0.027999999999999997,"d":"2.80%"}}]
[null,"#359",36,2030,"H","A_CAPI",{"v":0.44999999999999996,"d":"0.45"},{"v":0.38999999999999996,"d":"0.39"},0.6,0.6,85,0,{"$f":"ROUND(Primes!$Q$10*V8472,2)","v":0.13},0,{"v":3617.194486340221,"d":"3,617"},{"$f":"'BP Financier'!$G$44*(('BP Financier'!$C$22+'BP Financier'!$D$22+'BP Financier'!$E$22+'BP Financier'!$F$22+'BP Financier'!$G$22)/('BP Financier'!$C$16+'BP Financier'!$C$19+'BP Financier'!$D$16+'BP Financier'!$D$19+'BP Financier'!$E$16+'BP Financier'!$E$19+'BP Financier'!$C$22+'BP Financier'!$D$22+'BP Financier'!$E$22+'BP Financier'!$F$22+'BP Financier'!$F$16+'BP Financier'!$F$19+'BP Financier'!$G$16+'BP Financier'!$G$19+'BP Financier'!$G$22))*$V8472*X8472/(1-$W8472)","v":{"v":460.4164571220675,"d":"460"}},{"$f":"'BP Financier'!$G$44*(('BP Financier'!$C$22+'BP Financier'!$D$22+'BP Financier'!$E$22+'BP Financier'!$F$22+'BP Financier'!$G$22)/('BP Financier'!$C$16+'BP Financier'!$C$19+'BP Financier'!$D$16+'BP Financier'!$D$19+'BP Financier'!$E$16+'BP Financier'!$E$19+'BP Financier'!$C$22+'BP Financier'!$D$22+'BP Financier'!$E$22+'BP Financier'!$F$22+'BP Financier'!$F$16+'BP Financier'!$F$19+'BP Financier'!$G$16+'BP Financier'!$G$19+'BP Financier'!$G$22))*$V8472*Y8472/(1-$W8472)","v":{"v":307.7922171921004,"d":"308"}},{"$f":"'BP Financier'!$G$44*(('BP Financier'!$C$22+'BP Financier'!$D$22+'BP Financier'!$E$22+'BP Financier'!$F$22+'BP Financier'!$G$22)/('BP Financier'!$C$16+'BP Financier'!$C$19+'BP Financier'!$D$16+'BP Financier'!$D$19+'BP Financier'!$E$16+'BP Financier'!$E$19+'BP Financier'!$C$22+'BP Financier'!$D$22+'BP Financier'!$E$22+'BP Financier'!$F$22+'BP Financier'!$F$16+'BP Financier'!$F$19+'BP Financier'!$G$16+'BP Financier'!$G$19+'BP Financier'!$G$22))*$V8472*Z8472/(1-$W8472)","v":{"v":2408.9192535613147,"d":"2,409"}},{"$f":"'BP Financier'!$G$44*(('BP Financier'!$C$22+'BP Financier'!$D$22+'BP Financier'!$E$22+'BP Financier'!$F$22+'BP Financier'!$G$22)/('BP Financier'!$C$16+'BP Financier'!$C$19+'BP Financier'!$D$16+'BP Financier'!$D$19+'BP Financier'!$E$16+'BP Financier'!$E$19+'BP Financier'!$C$22+'BP Financier'!$D$22+'BP Financier'!$E$22+'BP Financier'!$F$22+'BP Financier'!$F$16+'BP Financier'!$F$19+'BP Financier'!$G$16+'BP Financier'!$G$19+'BP Financier'!$G$22))*$V8472*AA8472/(1-$W8472)","v":{"v":297.6172678634359,"d":"298"}},{"$f":"'BP Financier'!$G$44*(('BP Financier'!$C$22+'BP Financier'!$D$22+'BP Financier'!$E$22+'BP Financier'!$F$22+'BP Financier'!$G$22)/('BP Financier'!$C$16+'BP Financier'!$C$19+'BP Financier'!$D$16+'BP Financier'!$D$19+'BP Financier'!$E$16+'BP Financier'!$E$19+'BP Financier'!$C$22+'BP Financier'!$D$22+'BP Financier'!$E$22+'BP Financier'!$F$22+'BP Financier'!$F$16+'BP Financier'!$F$19+'BP Financier'!$G$16+'BP Financier'!$G$19+'BP Financier'!$G$22))*$V8472*AB8472/(1-$W8472)","v":{"v":142.44929060130264,"d":"142"}},null,{"v":1E-3,"d":"0.10%"},{"$f":"Actif!$E$28/100","v":{"v":0.28900000000000003,"d":"28.90%"}},{"$f":"Actif!$E$30/100","v":{"v":0.09050000000000001,"d":"9.05%"}},{"$f":"Actif!$E$31/100","v":{"v":0.0605,"d":"6.05%"}},{"$f":"Actif!$E$32/100","v":{"v":0.47350000000000003,"d":"47.35%"}},{"$f":"Actif!$E$33/100","v":{"v":0.0585,"d":"5.85%"}},{"$f":"Actif!$E$29/100","v":{"v":0.027999999999999997,"d":"2.80%"}}]
[null,"#360",36,2031,"H","A_CAPI",{"v":0.44999999999999996,"d":"0.45"},{"v":0.38999999999999996,"d":"0.39"},0.6,0.6,85,0,{"$f":"ROUND(Primes!$Q$10*V8473,2)","v":0.13},0,{"v":3617.194486340221,"d":"3,617"},{"$f":"'BP Financier'!$G$44*(('BP Financier'!$C$22+'BP Financier'!$D$22+'BP Financier'!$E$22+'BP Financier'!$F$22+'BP Financier'!$G$22)/('BP Financier'!$C$16+'BP Financier'!$C$19+'BP Financier'!$D$16+'BP Financier'!$D$19+'BP Financier'!$E$16+'BP Financier'!$E$19+'BP Financier'!$C$22+'BP Financier'!$D$22+'BP Financier'!$E$22+'BP Financier'!$F$22+'BP Financier'!$F$16+'BP Financier'!$F$19+'BP Financier'!$G$16+'BP Financier'!$G$19+'BP Financier'!$G$22))*$V8473*X8473/(1-$W8473)","v":{"v":460.4164571220675,"d":"460"}},{"$f":"'BP Financier'!$G$44*(('BP Financier'!$C$22+'BP Financier'!$D$22+'BP Financier'!$E$22+'BP Financier'!$F$22+'BP Financier'!$G$22)/('BP Financier'!$C$16+'BP Financier'!$C$19+'BP Financier'!$D$16+'BP Financier'!$D$19+'BP Financier'!$E$16+'BP Financier'!$E$19+'BP Financier'!$C$22+'BP Financier'!$D$22+'BP Financier'!$E$22+'BP Financier'!$F$22+'BP Financier'!$F$16+'BP Financier'!$F$19+'BP Financier'!$G$16+'BP Financier'!$G$19+'BP Financier'!$G$22))*$V8473*Y8473/(1-$W8473)","v":{"v":307.7922171921004,"d":"308"}},{"$f":"'BP Financier'!$G$44*(('BP Financier'!$C$22+'BP Financier'!$D$22+'BP Financier'!$E$22+'BP Financier'!$F$22+'BP Financier'!$G$22)/('BP Financier'!$C$16+'BP Financier'!$C$19+'BP Financier'!$D$16+'BP Financier'!$D$19+'BP Financier'!$E$16+'BP Financier'!$E$19+'BP Financier'!$C$22+'BP Financier'!$D$22+'BP Financier'!$E$22+'BP Financier'!$F$22+'BP Financier'!$F$16+'BP Financier'!$F$19+'BP Financier'!$G$16+'BP Financier'!$G$19+'BP Financier'!$G$22))*$V8473*Z8473/(1-$W8473)","v":{"v":2408.9192535613147,"d":"2,409"}},{"$f":"'BP Financier'!$G$44*(('BP Financier'!$C$22+'BP Financier'!$D$22+'BP Financier'!$E$22+'BP Financier'!$F$22+'BP Financier'!$G$22)/('BP Financier'!$C$16+'BP Financier'!$C$19+'BP Financier'!$D$16+'BP Financier'!$D$19+'BP Financier'!$E$16+'BP Financier'!$E$19+'BP Financier'!$C$22+'BP Financier'!$D$22+'BP Financier'!$E$22+'BP Financier'!$F$22+'BP Financier'!$F$16+'BP Financier'!$F$19+'BP Financier'!$G$16+'BP Financier'!$G$19+'BP Financier'!$G$22))*$V8473*AA8473/(1-$W8473)","v":{"v":297.6172678634359,"d":"298"}},{"$f":"'BP Financier'!$G$44*(('BP Financier'!$C$22+'BP Financier'!$D$22+'BP Financier'!$E$22+'BP Financier'!$F$22+'BP Financier'!$G$22)/('BP Financier'!$C$16+'BP Financier'!$C$19+'BP Financier'!$D$16+'BP Financier'!$D$19+'BP Financier'!$E$16+'BP Financier'!$E$19+'BP Financier'!$C$22+'BP Financier'!$D$22+'BP Financier'!$E$22+'BP Financier'!$F$22+'BP Financier'!$F$16+'BP Financier'!$F$19+'BP Financier'!$G$16+'BP Financier'!$G$19+'BP Financier'!$G$22))*$V8473*AB8473/(1-$W8473)","v":{"v":142.44929060130264,"d":"142"}},null,{"v":1E-3,"d":"0.10%"},{"$f":"Actif!$E$28/100","v":{"v":0.28900000000000003,"d":"28.90%"}},{"$f":"Actif!$E$30/100","v":{"v":0.09050000000000001,"d":"9.05%"}},{"$f":"Actif!$E$31/100","v":{"v":0.0605,"d":"6.05%"}},{"$f":"Actif!$E$32/100","v":{"v":0.47350000000000003,"d":"47.35%"}},{"$f":"Actif!$E$33/100","v":{"v":0.0585,"d":"5.85%"}},{"$f":"Actif!$E$29/100","v":{"v":0.027999999999999997,"d":"2.80%"}}]
[null,"#361",37,2026,"H","A_CAPI",{"v":0.44999999999999996,"d":"0.45"},{"v":0.38999999999999996,"d":"0.39"},0.6,0.6,85,0,{"$f":"ROUND(Primes!$Q$10*V8474,2)","v":0.13},0,{"v":3617.194486340221,"d":"3,617"},{"$f":"'BP Financier'!$G$44*(('BP Financier'!$C$22+'BP Financier'!$D$22+'BP Financier'!$E$22+'BP Financier'!$F$22+'BP Financier'!$G$22)/('BP Financier'!$C$16+'BP Financier'!$C$19+'BP Financier'!$D$16+'BP Financier'!$D$19+'BP Financier'!$E$16+'BP Financier'!$E$19+'BP Financier'!$C$22+'BP Financier'!$D$22+'BP Financier'!$E$22+'BP Financier'!$F$22+'BP Financier'!$F$16+'BP Financier'!$F$19+'BP Financier'!$G$16+'BP Financier'!$G$19+'BP Financier'!$G$22))*$V8474*X8474/(1-$W8474)","v":{"v":460.4164571220675,"d":"460"}},{"$f":"'BP Financier'!$G$44*(('BP Financier'!$C$22+'BP Financier'!$D$22+'BP Financier'!$E$22+'BP Financier'!$F$22+'BP Financier'!$G$22)/('BP Financier'!$C$16+'BP Financier'!$C$19+'BP Financier'!$D$16+'BP Financier'!$D$19+'BP Financier'!$E$16+'BP Financier'!$E$19+'BP Financier'!$C$22+'BP Financier'!$D$22+'BP Financier'!$E$22+'BP Financier'!$F$22+'BP Financier'!$F$16+'BP Financier'!$F$19+'BP Financier'!$G$16+'BP Financier'!$G$19+'BP Financier'!$G$22))*$V8474*Y8474/(1-$W8474)","v":{"v":307.7922171921004,"d":"308"}},{"$f":"'BP Financier'!$G$44*(('BP Financier'!$C$22+'BP Financier'!$D$22+'BP Financier'!$E$22+'BP Financier'!$F$22+'BP Financier'!$G$22)/('BP Financier'!$C$16+'BP Financier'!$C$19+'BP Financier'!$D$16+'BP Financier'!$D$19+'BP Financier'!$E$16+'BP Financier'!$E$19+'BP Financier'!$C$22+'BP Financier'!$D$22+'BP Financier'!$E$22+'BP Financier'!$F$22+'BP Financier'!$F$16+'BP Financier'!$F$19+'BP Financier'!$G$16+'BP Financier'!$G$19+'BP Financier'!$G$22))*$V8474*Z8474/(1-$W8474)","v":{"v":2408.9192535613147,"d":"2,409"}},{"$f":"'BP Financier'!$G$44*(('BP Financier'!$C$22+'BP Financier'!$D$22+'BP Financier'!$E$22+'BP Financier'!$F$22+'BP Financier'!$G$22)/('BP Financier'!$C$16+'BP Financier'!$C$19+'BP Financier'!$D$16+'BP Financier'!$D$19+'BP Financier'!$E$16+'BP Financier'!$E$19+'BP Financier'!$C$22+'BP Financier'!$D$22+'BP Financier'!$E$22+'BP Financier'!$F$22+'BP Financier'!$F$16+'BP Financier'!$F$19+'BP Financier'!$G$16+'BP Financier'!$G$19+'BP Financier'!$G$22))*$V8474*AA8474/(1-$W8474)","v":{"v":297.6172678634359,"d":"298"}},{"$f":"'BP Financier'!$G$44*(('BP Financier'!$C$22+'BP Financier'!$D$22+'BP Financier'!$E$22+'BP Financier'!$F$22+'BP Financier'!$G$22)/('BP Financier'!$C$16+'BP Financier'!$C$19+'BP Financier'!$D$16+'BP Financier'!$D$19+'BP Financier'!$E$16+'BP Financier'!$E$19+'BP Financier'!$C$22+'BP Financier'!$D$22+'BP Financier'!$E$22+'BP Financier'!$F$22+'BP Financier'!$F$16+'BP Financier'!$F$19+'BP Financier'!$G$16+'BP Financier'!$G$19+'BP Financier'!$G$22))*$V8474*AB8474/(1-$W8474)","v":{"v":142.44929060130264,"d":"142"}},null,{"v":1E-3,"d":"0.10%"},{"$f":"Actif!$E$28/100","v":{"v":0.28900000000000003,"d":"28.90%"}},{"$f":"Actif!$E$30/100","v":{"v":0.09050000000000001,"d":"9.05%"}},{"$f":"Actif!$E$31/100","v":{"v":0.0605,"d":"6.05%"}},{"$f":"Actif!$E$32/100","v":{"v":0.47350000000000003,"d":"47.35%"}},{"$f":"Actif!$E$33/100","v":{"v":0.0585,"d":"5.85%"}},{"$f":"Actif!$E$29/100","v":{"v":0.027999999999999997,"d":"2.80%"}}]
[null,"#362",37,2028,"H","A_CAPI",{"v":0.44999999999999996,"d":"0.45"},{"v":0.38999999999999996,"d":"0.39"},0.6,0.6,85,0,{"$f":"ROUND(Primes!$Q$10*V8475,2)","v":0.13},0,{"v":3617.194486340221,"d":"3,617"},{"$f":"'BP Financier'!$G$44*(('BP Financier'!$C$22+'BP Financier'!$D$22+'BP Financier'!$E$22+'BP Financier'!$F$22+'BP Financier'!$G$22)/('BP Financier'!$C$16+'BP Financier'!$C$19+'BP Financier'!$D$16+'BP Financier'!$D$19+'BP Financier'!$E$16+'BP Financier'!$E$19+'BP Financier'!$C$22+'BP Financier'!$D$22+'BP Financier'!$E$22+'BP Financier'!$F$22+'BP Financier'!$F$16+'BP Financier'!$F$19+'BP Financier'!$G$16+'BP Financier'!$G$19+'BP Financier'!$G$22))*$V8475*X8475/(1-$W8475)","v":{"v":460.4164571220675,"d":"460"}},{"$f":"'BP Financier'!$G$44*(('BP Financier'!$C$22+'BP Financier'!$D$22+'BP Financier'!$E$22+'BP Financier'!$F$22+'BP Financier'!$G$22)/('BP Financier'!$C$16+'BP Financier'!$C$19+'BP Financier'!$D$16+'BP Financier'!$D$19+'BP Financier'!$E$16+'BP Financier'!$E$19+'BP Financier'!$C$22+'BP Financier'!$D$22+'BP Financier'!$E$22+'BP Financier'!$F$22+'BP Financier'!$F$16+'BP Financier'!$F$19+'BP Financier'!$G$16+'BP Financier'!$G$19+'BP Financier'!$G$22))*$V8475*Y8475/(1-$W8475)","v":{"v":307.7922171921004,"d":"308"}},{"$f":"'BP Financier'!$G$44*(('BP Financier'!$C$22+'BP Financier'!$D$22+'BP Financier'!$E$22+'BP Financier'!$F$22+'BP Financier'!$G$22)/('BP Financier'!$C$16+'BP Financier'!$C$19+'BP Financier'!$D$16+'BP Financier'!$D$19+'BP Financier'!$E$16+'BP Financier'!$E$19+'BP Financier'!$C$22+'BP Financier'!$D$22+'BP Financier'!$E$22+'BP Financier'!$F$22+'BP Financier'!$F$16+'BP Financier'!$F$19+'BP Financier'!$G$16+'BP Financier'!$G$19+'BP Financier'!$G$22))*$V8475*Z8475/(1-$W8475)","v":{"v":2408.9192535613147,"d":"2,409"}},{"$f":"'BP Financier'!$G$44*(('BP Financier'!$C$22+'BP Financier'!$D$22+'BP Financier'!$E$22+'BP Financier'!$F$22+'BP Financier'!$G$22)/('BP Financier'!$C$16+'BP Financier'!$C$19+'BP Financier'!$D$16+'BP Financier'!$D$19+'BP Financier'!$E$16+'BP Financier'!$E$19+'BP Financier'!$C$22+'BP Financier'!$D$22+'BP Financier'!$E$22+'BP Financier'!$F$22+'BP Financier'!$F$16+'BP Financier'!$F$19+'BP Financier'!$G$16+'BP Financier'!$G$19+'BP Financier'!$G$22))*$V8475*AA8475/(1-$W8475)","v":{"v":297.6172678634359,"d":"298"}},{"$f":"'BP Financier'!$G$44*(('BP Financier'!$C$22+'BP Financier'!$D$22+'BP Financier'!$E$22+'BP Financier'!$F$22+'BP Financier'!$G$22)/('BP Financier'!$C$16+'BP Financier'!$C$19+'BP Financier'!$D$16+'BP Financier'!$D$19+'BP Financier'!$E$16+'BP Financier'!$E$19+'BP Financier'!$C$22+'BP Financier'!$D$22+'BP Financier'!$E$22+'BP Financier'!$F$22+'BP Financier'!$F$16+'BP Financier'!$F$19+'BP Financier'!$G$16+'BP Financier'!$G$19+'BP Financier'!$G$22))*$V8475*AB8475/(1-$W8475)","v":{"v":142.44929060130264,"d":"142"}},null,{"v":1E-3,"d":"0.10%"},{"$f":"Actif!$E$28/100","v":{"v":0.28900000000000003,"d":"28.90%"}},{"$f":"Actif!$E$30/100","v":{"v":0.09050000000000001,"d":"9.05%"}},{"$f":"Actif!$E$31/100","v":{"v":0.0605,"d":"6.05%"}},{"$f":"Actif!$E$32/100","v":{"v":0.47350000000000003,"d":"47.35%"}},{"$f":"Actif!$E$33/100","v":{"v":0.0585,"d":"5.85%"}},{"$f":"Actif!$E$29/100","v":{"v":0.027999999999999997,"d":"2.80%"}}]
[null,"#363",37,2029,"H","A_CAPI",{"v":0.44999999999999996,"d":"0.45"},{"v":0.38999999999999996,"d":"0.39"},0.6,0.6,85,0,{"$f":"ROUND(Primes!$Q$10*V8476,2)","v":0.13},0,{"v":3617.194486340221,"d":"3,617"},{"$f":"'BP Financier'!$G$44*(('BP Financier'!$C$22+'BP Financier'!$D$22+'BP Financier'!$E$22+'BP Financier'!$F$22+'BP Financier'!$G$22)/('BP Financier'!$C$16+'BP Financier'!$C$19+'BP Financier'!$D$16+'BP Financier'!$D$19+'BP Financier'!$E$16+'BP Financier'!$E$19+'BP Financier'!$C$22+'BP Financier'!$D$22+'BP Financier'!$E$22+'BP Financier'!$F$22+'BP Financier'!$F$16+'BP Financier'!$F$19+'BP Financier'!$G$16+'BP Financier'!$G$19+'BP Financier'!$G$22))*$V8476*X8476/(1-$W8476)","v":{"v":460.4164571220675,"d":"460"}},{"$f":"'BP Financier'!$G$44*(('BP Financier'!$C$22+'BP Financier'!$D$22+'BP Financier'!$E$22+'BP Financier'!$F$22+'BP Financier'!$G$22)/('BP Financier'!$C$16+'BP Financier'!$C$19+'BP Financier'!$D$16+'BP Financier'!$D$19+'BP Financier'!$E$16+'BP Financier'!$E$19+'BP Financier'!$C$22+'BP Financier'!$D$22+'BP Financier'!$E$22+'BP Financier'!$F$22+'BP Financier'!$F$16+'BP Financier'!$F$19+'BP Financier'!$G$16+'BP Financier'!$G$19+'BP Financier'!$G$22))*$V8476*Y8476/(1-$W8476)","v":{"v":307.7922171921004,"d":"308"}},{"$f":"'BP Financier'!$G$44*(('BP Financier'!$C$22+'BP Financier'!$D$22+'BP Financier'!$E$22+'BP Financier'!$F$22+'BP Financier'!$G$22)/('BP Financier'!$C$16+'BP Financier'!$C$19+'BP Financier'!$D$16+'BP Financier'!$D$19+'BP Financier'!$E$16+'BP Financier'!$E$19+'BP Financier'!$C$22+'BP Financier'!$D$22+'BP Financier'!$E$22+'BP Financier'!$F$22+'BP Financier'!$F$16+'BP Financier'!$F$19+'BP Financier'!$G$16+'BP Financier'!$G$19+'BP Financier'!$G$22))*$V8476*Z8476/(1-$W8476)","v":{"v":2408.9192535613147,"d":"2,409"}},{"$f":"'BP Financier'!$G$44*(('BP Financier'!$C$22+'BP Financier'!$D$22+'BP Financier'!$E$22+'BP Financier'!$F$22+'BP Financier'!$G$22)/('BP Financier'!$C$16+'BP Financier'!$C$19+'BP Financier'!$D$16+'BP Financier'!$D$19+'BP Financier'!$E$16+'BP Financier'!$E$19+'BP Financier'!$C$22+'BP Financier'!$D$22+'BP Financier'!$E$22+'BP Financier'!$F$22+'BP Financier'!$F$16+'BP Financier'!$F$19+'BP Financier'!$G$16+'BP Financier'!$G$19+'BP Financier'!$G$22))*$V8476*AA8476/(1-$W8476)","v":{"v":297.6172678634359,"d":"298"}},{"$f":"'BP Financier'!$G$44*(('BP Financier'!$C$22+'BP Financier'!$D$22+'BP Financier'!$E$22+'BP Financier'!$F$22+'BP Financier'!$G$22)/('BP Financier'!$C$16+'BP Financier'!$C$19+'BP Financier'!$D$16+'BP Financier'!$D$19+'BP Financier'!$E$16+'BP Financier'!$E$19+'BP Financier'!$C$22+'BP Financier'!$D$22+'BP Financier'!$E$22+'BP Financier'!$F$22+'BP Financier'!$F$16+'BP Financier'!$F$19+'BP Financier'!$G$16+'BP Financier'!$G$19+'BP Financier'!$G$22))*$V8476*AB8476/(1-$W8476)","v":{"v":142.44929060130264,"d":"142"}},null,{"v":1E-3,"d":"0.10%"},{"$f":"Actif!$E$28/100","v":{"v":0.28900000000000003,"d":"28.90%"}},{"$f":"Actif!$E$30/100","v":{"v":0.09050000000000001,"d":"9.05%"}},{"$f":"Actif!$E$31/100","v":{"v":0.0605,"d":"6.05%"}},{"$f":"Actif!$E$32/100","v":{"v":0.47350000000000003,"d":"47.35%"}},{"$f":"Actif!$E$33/100","v":{"v":0.0585,"d":"5.85%"}},{"$f":"Actif!$E$29/100","v":{"v":0.027999999999999997,"d":"2.80%"}}]
[null,"#364",37,2030,"H","A_CAPI",{"v":0.44999999999999996,"d":"0.45"},{"v":0.38999999999999996,"d":"0.39"},0.6,0.6,85,0,{"$f":"ROUND(Primes!$Q$10*V8477,2)","v":0.13},0,{"v":3617.194486340221,"d":"3,617"},{"$f":"'BP Financier'!$G$44*(('BP Financier'!$C$22+'BP Financier'!$D$22+'BP Financier'!$E$22+'BP Financier'!$F$22+'BP Financier'!$G$22)/('BP Financier'!$C$16+'BP Financier'!$C$19+'BP Financier'!$D$16+'BP Financier'!$D$19+'BP Financier'!$E$16+'BP Financier'!$E$19+'BP Financier'!$C$22+'BP Financier'!$D$22+'BP Financier'!$E$22+'BP Financier'!$F$22+'BP Financier'!$F$16+'BP Financier'!$F$19+'BP Financier'!$G$16+'BP Financier'!$G$19+'BP Financier'!$G$22))*$V8477*X8477/(1-$W8477)","v":{"v":460.4164571220675,"d":"460"}},{"$f":"'BP Financier'!$G$44*(('BP Financier'!$C$22+'BP Financier'!$D$22+'BP Financier'!$E$22+'BP Financier'!$F$22+'BP Financier'!$G$22)/('BP Financier'!$C$16+'BP Financier'!$C$19+'BP Financier'!$D$16+'BP Financier'!$D$19+'BP Financier'!$E$16+'BP Financier'!$E$19+'BP Financier'!$C$22+'BP Financier'!$D$22+'BP Financier'!$E$22+'BP Financier'!$F$22+'BP Financier'!$F$16+'BP Financier'!$F$19+'BP Financier'!$G$16+'BP Financier'!$G$19+'BP Financier'!$G$22))*$V8477*Y8477/(1-$W8477)","v":{"v":307.7922171921004,"d":"308"}},{"$f":"'BP Financier'!$G$44*(('BP Financier'!$C$22+'BP Financier'!$D$22+'BP Financier'!$E$22+'BP Financier'!$F$22+'BP Financier'!$G$22)/('BP Financier'!$C$16+'BP Financier'!$C$19+'BP Financier'!$D$16+'BP Financier'!$D$19+'BP Financier'!$E$16+'BP Financier'!$E$19+'BP Financier'!$C$22+'BP Financier'!$D$22+'BP Financier'!$E$22+'BP Financier'!$F$22+'BP Financier'!$F$16+'BP Financier'!$F$19+'BP Financier'!$G$16+'BP Financier'!$G$19+'BP Financier'!$G$22))*$V8477*Z8477/(1-$W8477)","v":{"v":2408.9192535613147,"d":"2,409"}},{"$f":"'BP Financier'!$G$44*(('BP Financier'!$C$22+'BP Financier'!$D$22+'BP Financier'!$E$22+'BP Financier'!$F$22+'BP Financier'!$G$22)/('BP Financier'!$C$16+'BP Financier'!$C$19+'BP Financier'!$D$16+'BP Financier'!$D$19+'BP Financier'!$E$16+'BP Financier'!$E$19+'BP Financier'!$C$22+'BP Financier'!$D$22+'BP Financier'!$E$22+'BP Financier'!$F$22+'BP Financier'!$F$16+'BP Financier'!$F$19+'BP Financier'!$G$16+'BP Financier'!$G$19+'BP Financier'!$G$22))*$V8477*AA8477/(1-$W8477)","v":{"v":297.6172678634359,"d":"298"}},{"$f":"'BP Financier'!$G$44*(('BP Financier'!$C$22+'BP Financier'!$D$22+'BP Financier'!$E$22+'BP Financier'!$F$22+'BP Financier'!$G$22)/('BP Financier'!$C$16+'BP Financier'!$C$19+'BP Financier'!$D$16+'BP Financier'!$D$19+'BP Financier'!$E$16+'BP Financier'!$E$19+'BP Financier'!$C$22+'BP Financier'!$D$22+'BP Financier'!$E$22+'BP Financier'!$F$22+'BP Financier'!$F$16+'BP Financier'!$F$19+'BP Financier'!$G$16+'BP Financier'!$G$19+'BP Financier'!$G$22))*$V8477*AB8477/(1-$W8477)","v":{"v":142.44929060130264,"d":"142"}},null,{"v":1E-3,"d":"0.10%"},{"$f":"Actif!$E$28/100","v":{"v":0.28900000000000003,"d":"28.90%"}},{"$f":"Actif!$E$30/100","v":{"v":0.09050000000000001,"d":"9.05%"}},{"$f":"Actif!$E$31/100","v":{"v":0.0605,"d":"6.05%"}},{"$f":"Actif!$E$32/100","v":{"v":0.47350000000000003,"d":"47.35%"}},{"$f":"Actif!$E$33/100","v":{"v":0.0585,"d":"5.85%"}},{"$f":"Actif!$E$29/100","v":{"v":0.027999999999999997,"d":"2.80%"}}]
[null,"#365",37,2031,"H","A_CAPI",{"v":0.44999999999999996,"d":"0.45"},{"v":0.38999999999999996,"d":"0.39"},0.6,0.6,85,0,{"$f":"ROUND(Primes!$Q$10*V8478,2)","v":0.13},0,{"v":3617.194486340221,"d":"3,617"},{"$f":"'BP Financier'!$G$44*(('BP Financier'!$C$22+'BP Financier'!$D$22+'BP Financier'!$E$22+'BP Financier'!$F$22+'BP Financier'!$G$22)/('BP Financier'!$C$16+'BP Financier'!$C$19+'BP Financier'!$D$16+'BP Financier'!$D$19+'BP Financier'!$E$16+'BP Financier'!$E$19+'BP Financier'!$C$22+'BP Financier'!$D$22+'BP Financier'!$E$22+'BP Financier'!$F$22+'BP Financier'!$F$16+'BP Financier'!$F$19+'BP Financier'!$G$16+'BP Financier'!$G$19+'BP Financier'!$G$22))*$V8478*X8478/(1-$W8478)","v":{"v":460.4164571220675,"d":"460"}},{"$f":"'BP Financier'!$G$44*(('BP Financier'!$C$22+'BP Financier'!$D$22+'BP Financier'!$E$22+'BP Financier'!$F$22+'BP Financier'!$G$22)/('BP Financier'!$C$16+'BP Financier'!$C$19+'BP Financier'!$D$16+'BP Financier'!$D$19+'BP Financier'!$E$16+'BP Financier'!$E$19+'BP Financier'!$C$22+'BP Financier'!$D$22+'BP Financier'!$E$22+'BP Financier'!$F$22+'BP Financier'!$F$16+'BP Financier'!$F$19+'BP Financier'!$G$16+'BP Financier'!$G$19+'BP Financier'!$G$22))*$V8478*Y8478/(1-$W8478)","v":{"v":307.7922171921004,"d":"308"}},{"$f":"'BP Financier'!$G$44*(('BP Financier'!$C$22+'BP Financier'!$D$22+'BP Financier'!$E$22+'BP Financier'!$F$22+'BP Financier'!$G$22)/('BP Financier'!$C$16+'BP Financier'!$C$19+'BP Financier'!$D$16+'BP Financier'!$D$19+'BP Financier'!$E$16+'BP Financier'!$E$19+'BP Financier'!$C$22+'BP Financier'!$D$22+'BP Financier'!$E$22+'BP Financier'!$F$22+'BP Financier'!$F$16+'BP Financier'!$F$19+'BP Financier'!$G$16+'BP Financier'!$G$19+'BP Financier'!$G$22))*$V8478*Z8478/(1-$W8478)","v":{"v":2408.9192535613147,"d":"2,409"}},{"$f":"'BP Financier'!$G$44*(('BP Financier'!$C$22+'BP Financier'!$D$22+'BP Financier'!$E$22+'BP Financier'!$F$22+'BP Financier'!$G$22)/('BP Financier'!$C$16+'BP Financier'!$C$19+'BP Financier'!$D$16+'BP Financier'!$D$19+'BP Financier'!$E$16+'BP Financier'!$E$19+'BP Financier'!$C$22+'BP Financier'!$D$22+'BP Financier'!$E$22+'BP Financier'!$F$22+'BP Financier'!$F$16+'BP Financier'!$F$19+'BP Financier'!$G$16+'BP Financier'!$G$19+'BP Financier'!$G$22))*$V8478*AA8478/(1-$W8478)","v":{"v":297.6172678634359,"d":"298"}},{"$f":"'BP Financier'!$G$44*(('BP Financier'!$C$22+'BP Financier'!$D$22+'BP Financier'!$E$22+'BP Financier'!$F$22+'BP Financier'!$G$22)/('BP Financier'!$C$16+'BP Financier'!$C$19+'BP Financier'!$D$16+'BP Financier'!$D$19+'BP Financier'!$E$16+'BP Financier'!$E$19+'BP Financier'!$C$22+'BP Financier'!$D$22+'BP Financier'!$E$22+'BP Financier'!$F$22+'BP Financier'!$F$16+'BP Financier'!$F$19+'BP Financier'!$G$16+'BP Financier'!$G$19+'BP Financier'!$G$22))*$V8478*AB8478/(1-$W8478)","v":{"v":142.44929060130264,"d":"142"}},null,{"v":1E-3,"d":"0.10%"},{"$f":"Actif!$E$28/100","v":{"v":0.28900000000000003,"d":"28.90%"}},{"$f":"Actif!$E$30/100","v":{"v":0.09050000000000001,"d":"9.05%"}},{"$f":"Actif!$E$31/100","v":{"v":0.0605,"d":"6.05%"}},{"$f":"Actif!$E$32/100","v":{"v":0.47350000000000003,"d":"47.35%"}},{"$f":"Actif!$E$33/100","v":{"v":0.0585,"d":"5.85%"}},{"$f":"Actif!$E$29/100","v":{"v":0.027999999999999997,"d":"2.80%"}}]
[null,"#366",38,2026,"F","A_CAPI",{"v":0.44999999999999996,"d":"0.45"},{"v":0.38999999999999996,"d":"0.39"},0.6,0.6,85,0,{"$f":"ROUND(Primes!$Q$10*V8479,2)","v":0.13},0,{"v":3617.194486340221,"d":"3,617"},{"$f":"'BP Financier'!$G$44*(('BP Financier'!$C$22+'BP Financier'!$D$22+'BP Financier'!$E$22+'BP Financier'!$F$22+'BP Financier'!$G$22)/('BP Financier'!$C$16+'BP Financier'!$C$19+'BP Financier'!$D$16+'BP Financier'!$D$19+'BP Financier'!$E$16+'BP Financier'!$E$19+'BP Financier'!$C$22+'BP Financier'!$D$22+'BP Financier'!$E$22+'BP Financier'!$F$22+'BP Financier'!$F$16+'BP Financier'!$F$19+'BP Financier'!$G$16+'BP Financier'!$G$19+'BP Financier'!$G$22))*$V8479*X8479/(1-$W8479)","v":{"v":460.4164571220675,"d":"460"}},{"$f":"'BP Financier'!$G$44*(('BP Financier'!$C$22+'BP Financier'!$D$22+'BP Financier'!$E$22+'BP Financier'!$F$22+'BP Financier'!$G$22)/('BP Financier'!$C$16+'BP Financier'!$C$19+'BP Financier'!$D$16+'BP Financier'!$D$19+'BP Financier'!$E$16+'BP Financier'!$E$19+'BP Financier'!$C$22+'BP Financier'!$D$22+'BP Financier'!$E$22+'BP Financier'!$F$22+'BP Financier'!$F$16+'BP Financier'!$F$19+'BP Financier'!$G$16+'BP Financier'!$G$19+'BP Financier'!$G$22))*$V8479*Y8479/(1-$W8479)","v":{"v":307.7922171921004,"d":"308"}},{"$f":"'BP Financier'!$G$44*(('BP Financier'!$C$22+'BP Financier'!$D$22+'BP Financier'!$E$22+'BP Financier'!$F$22+'BP Financier'!$G$22)/('BP Financier'!$C$16+'BP Financier'!$C$19+'BP Financier'!$D$16+'BP Financier'!$D$19+'BP Financier'!$E$16+'BP Financier'!$E$19+'BP Financier'!$C$22+'BP Financier'!$D$22+'BP Financier'!$E$22+'BP Financier'!$F$22+'BP Financier'!$F$16+'BP Financier'!$F$19+'BP Financier'!$G$16+'BP Financier'!$G$19+'BP Financier'!$G$22))*$V8479*Z8479/(1-$W8479)","v":{"v":2408.9192535613147,"d":"2,409"}},{"$f":"'BP Financier'!$G$44*(('BP Financier'!$C$22+'BP Financier'!$D$22+'BP Financier'!$E$22+'BP Financier'!$F$22+'BP Financier'!$G$22)/('BP Financier'!$C$16+'BP Financier'!$C$19+'BP Financier'!$D$16+'BP Financier'!$D$19+'BP Financier'!$E$16+'BP Financier'!$E$19+'BP Financier'!$C$22+'BP Financier'!$D$22+'BP Financier'!$E$22+'BP Financier'!$F$22+'BP Financier'!$F$16+'BP Financier'!$F$19+'BP Financier'!$G$16+'BP Financier'!$G$19+'BP Financier'!$G$22))*$V8479*AA8479/(1-$W8479)","v":{"v":297.6172678634359,"d":"298"}},{"$f":"'BP Financier'!$G$44*(('BP Financier'!$C$22+'BP Financier'!$D$22+'BP Financier'!$E$22+'BP Financier'!$F$22+'BP Financier'!$G$22)/('BP Financier'!$C$16+'BP Financier'!$C$19+'BP Financier'!$D$16+'BP Financier'!$D$19+'BP Financier'!$E$16+'BP Financier'!$E$19+'BP Financier'!$C$22+'BP Financier'!$D$22+'BP Financier'!$E$22+'BP Financier'!$F$22+'BP Financier'!$F$16+'BP Financier'!$F$19+'BP Financier'!$G$16+'BP Financier'!$G$19+'BP Financier'!$G$22))*$V8479*AB8479/(1-$W8479)","v":{"v":142.44929060130264,"d":"142"}},null,{"v":1E-3,"d":"0.10%"},{"$f":"Actif!$E$28/100","v":{"v":0.28900000000000003,"d":"28.90%"}},{"$f":"Actif!$E$30/100","v":{"v":0.09050000000000001,"d":"9.05%"}},{"$f":"Actif!$E$31/100","v":{"v":0.0605,"d":"6.05%"}},{"$f":"Actif!$E$32/100","v":{"v":0.47350000000000003,"d":"47.35%"}},{"$f":"Actif!$E$33/100","v":{"v":0.0585,"d":"5.85%"}},{"$f":"Actif!$E$29/100","v":{"v":0.027999999999999997,"d":"2.80%"}}]
[null,"#367",38,2028,"F","A_CAPI",{"v":0.44999999999999996,"d":"0.45"},{"v":0.38999999999999996,"d":"0.39"},0.6,0.6,85,0,{"$f":"ROUND(Primes!$Q$10*V8480,2)","v":0.13},0,{"v":3617.194486340221,"d":"3,617"},{"$f":"'BP Financier'!$G$44*(('BP Financier'!$C$22+'BP Financier'!$D$22+'BP Financier'!$E$22+'BP Financier'!$F$22+'BP Financier'!$G$22)/('BP Financier'!$C$16+'BP Financier'!$C$19+'BP Financier'!$D$16+'BP Financier'!$D$19+'BP Financier'!$E$16+'BP Financier'!$E$19+'BP Financier'!$C$22+'BP Financier'!$D$22+'BP Financier'!$E$22+'BP Financier'!$F$22+'BP Financier'!$F$16+'BP Financier'!$F$19+'BP Financier'!$G$16+'BP Financier'!$G$19+'BP Financier'!$G$22))*$V8480*X8480/(1-$W8480)","v":{"v":460.4164571220675,"d":"460"}},{"$f":"'BP Financier'!$G$44*(('BP Financier'!$C$22+'BP Financier'!$D$22+'BP Financier'!$E$22+'BP Financier'!$F$22+'BP Financier'!$G$22)/('BP Financier'!$C$16+'BP Financier'!$C$19+'BP Financier'!$D$16+'BP Financier'!$D$19+'BP Financier'!$E$16+'BP Financier'!$E$19+'BP Financier'!$C$22+'BP Financier'!$D$22+'BP Financier'!$E$22+'BP Financier'!$F$22+'BP Financier'!$F$16+'BP Financier'!$F$19+'BP Financier'!$G$16+'BP Financier'!$G$19+'BP Financier'!$G$22))*$V8480*Y8480/(1-$W8480)","v":{"v":307.7922171921004,"d":"308"}},{"$f":"'BP Financier'!$G$44*(('BP Financier'!$C$22+'BP Financier'!$D$22+'BP Financier'!$E$22+'BP Financier'!$F$22+'BP Financier'!$G$22)/('BP Financier'!$C$16+'BP Financier'!$C$19+'BP Financier'!$D$16+'BP Financier'!$D$19+'BP Financier'!$E$16+'BP Financier'!$E$19+'BP Financier'!$C$22+'BP Financier'!$D$22+'BP Financier'!$E$22+'BP Financier'!$F$22+'BP Financier'!$F$16+'BP Financier'!$F$19+'BP Financier'!$G$16+'BP Financier'!$G$19+'BP Financier'!$G$22))*$V8480*Z8480/(1-$W8480)","v":{"v":2408.9192535613147,"d":"2,409"}},{"$f":"'BP Financier'!$G$44*(('BP Financier'!$C$22+'BP Financier'!$D$22+'BP Financier'!$E$22+'BP Financier'!$F$22+'BP Financier'!$G$22)/('BP Financier'!$C$16+'BP Financier'!$C$19+'BP Financier'!$D$16+'BP Financier'!$D$19+'BP Financier'!$E$16+'BP Financier'!$E$19+'BP Financier'!$C$22+'BP Financier'!$D$22+'BP Financier'!$E$22+'BP Financier'!$F$22+'BP Financier'!$F$16+'BP Financier'!$F$19+'BP Financier'!$G$16+'BP Financier'!$G$19+'BP Financier'!$G$22))*$V8480*AA8480/(1-$W8480)","v":{"v":297.6172678634359,"d":"298"}},{"$f":"'BP Financier'!$G$44*(('BP Financier'!$C$22+'BP Financier'!$D$22+'BP Financier'!$E$22+'BP Financier'!$F$22+'BP Financier'!$G$22)/('BP Financier'!$C$16+'BP Financier'!$C$19+'BP Financier'!$D$16+'BP Financier'!$D$19+'BP Financier'!$E$16+'BP Financier'!$E$19+'BP Financier'!$C$22+'BP Financier'!$D$22+'BP Financier'!$E$22+'BP Financier'!$F$22+'BP Financier'!$F$16+'BP Financier'!$F$19+'BP Financier'!$G$16+'BP Financier'!$G$19+'BP Financier'!$G$22))*$V8480*AB8480/(1-$W8480)","v":{"v":142.44929060130264,"d":"142"}},null,{"v":1E-3,"d":"0.10%"},{"$f":"Actif!$E$28/100","v":{"v":0.28900000000000003,"d":"28.90%"}},{"$f":"Actif!$E$30/100","v":{"v":0.09050000000000001,"d":"9.05%"}},{"$f":"Actif!$E$31/100","v":{"v":0.0605,"d":"6.05%"}},{"$f":"Actif!$E$32/100","v":{"v":0.47350000000000003,"d":"47.35%"}},{"$f":"Actif!$E$33/100","v":{"v":0.0585,"d":"5.85%"}},{"$f":"Actif!$E$29/100","v":{"v":0.027999999999999997,"d":"2.80%"}}]
[null,"#368",38,2029,"F","A_CAPI",{"v":0.44999999999999996,"d":"0.45"},{"v":0.38999999999999996,"d":"0.39"},0.6,0.6,85,0,{"$f":"ROUND(Primes!$Q$10*V8481,2)","v":0.13},0,{"v":3617.194486340221,"d":"3,617"},{"$f":"'BP Financier'!$G$44*(('BP Financier'!$C$22+'BP Financier'!$D$22+'BP Financier'!$E$22+'BP Financier'!$F$22+'BP Financier'!$G$22)/('BP Financier'!$C$16+'BP Financier'!$C$19+'BP Financier'!$D$16+'BP Financier'!$D$19+'BP Financier'!$E$16+'BP Financier'!$E$19+'BP Financier'!$C$22+'BP Financier'!$D$22+'BP Financier'!$E$22+'BP Financier'!$F$22+'BP Financier'!$F$16+'BP Financier'!$F$19+'BP Financier'!$G$16+'BP Financier'!$G$19+'BP Financier'!$G$22))*$V8481*X8481/(1-$W8481)","v":{"v":460.4164571220675,"d":"460"}},{"$f":"'BP Financier'!$G$44*(('BP Financier'!$C$22+'BP Financier'!$D$22+'BP Financier'!$E$22+'BP Financier'!$F$22+'BP Financier'!$G$22)/('BP Financier'!$C$16+'BP Financier'!$C$19+'BP Financier'!$D$16+'BP Financier'!$D$19+'BP Financier'!$E$16+'BP Financier'!$E$19+'BP Financier'!$C$22+'BP Financier'!$D$22+'BP Financier'!$E$22+'BP Financier'!$F$22+'BP Financier'!$F$16+'BP Financier'!$F$19+'BP Financier'!$G$16+'BP Financier'!$G$19+'BP Financier'!$G$22))*$V8481*Y8481/(1-$W8481)","v":{"v":307.7922171921004,"d":"308"}},{"$f":"'BP Financier'!$G$44*(('BP Financier'!$C$22+'BP Financier'!$D$22+'BP Financier'!$E$22+'BP Financier'!$F$22+'BP Financier'!$G$22)/('BP Financier'!$C$16+'BP Financier'!$C$19+'BP Financier'!$D$16+'BP Financier'!$D$19+'BP Financier'!$E$16+'BP Financier'!$E$19+'BP Financier'!$C$22+'BP Financier'!$D$22+'BP Financier'!$E$22+'BP Financier'!$F$22+'BP Financier'!$F$16+'BP Financier'!$F$19+'BP Financier'!$G$16+'BP Financier'!$G$19+'BP Financier'!$G$22))*$V8481*Z8481/(1-$W8481)","v":{"v":2408.9192535613147,"d":"2,409"}},{"$f":"'BP Financier'!$G$44*(('BP Financier'!$C$22+'BP Financier'!$D$22+'BP Financier'!$E$22+'BP Financier'!$F$22+'BP Financier'!$G$22)/('BP Financier'!$C$16+'BP Financier'!$C$19+'BP Financier'!$D$16+'BP Financier'!$D$19+'BP Financier'!$E$16+'BP Financier'!$E$19+'BP Financier'!$C$22+'BP Financier'!$D$22+'BP Financier'!$E$22+'BP Financier'!$F$22+'BP Financier'!$F$16+'BP Financier'!$F$19+'BP Financier'!$G$16+'BP Financier'!$G$19+'BP Financier'!$G$22))*$V8481*AA8481/(1-$W8481)","v":{"v":297.6172678634359,"d":"298"}},{"$f":"'BP Financier'!$G$44*(('BP Financier'!$C$22+'BP Financier'!$D$22+'BP Financier'!$E$22+'BP Financier'!$F$22+'BP Financier'!$G$22)/('BP Financier'!$C$16+'BP Financier'!$C$19+'BP Financier'!$D$16+'BP Financier'!$D$19+'BP Financier'!$E$16+'BP Financier'!$E$19+'BP Financier'!$C$22+'BP Financier'!$D$22+'BP Financier'!$E$22+'BP Financier'!$F$22+'BP Financier'!$F$16+'BP Financier'!$F$19+'BP Financier'!$G$16+'BP Financier'!$G$19+'BP Financier'!$G$22))*$V8481*AB8481/(1-$W8481)","v":{"v":142.44929060130264,"d":"142"}},null,{"v":1E-3,"d":"0.10%"},{"$f":"Actif!$E$28/100","v":{"v":0.28900000000000003,"d":"28.90%"}},{"$f":"Actif!$E$30/100","v":{"v":0.09050000000000001,"d":"9.05%"}},{"$f":"Actif!$E$31/100","v":{"v":0.0605,"d":"6.05%"}},{"$f":"Actif!$E$32/100","v":{"v":0.47350000000000003,"d":"47.35%"}},{"$f":"Actif!$E$33/100","v":{"v":0.0585,"d":"5.85%"}},{"$f":"Actif!$E$29/100","v":{"v":0.027999999999999997,"d":"2.80%"}}]
[null,"#369",38,2030,"F","A_CAPI",{"v":0.44999999999999996,"d":"0.45"},{"v":0.38999999999999996,"d":"0.39"},0.6,0.6,85,0,{"$f":"ROUND(Primes!$Q$10*V8482,2)","v":0.13},0,{"v":3617.194486340221,"d":"3,617"},{"$f":"'BP Financier'!$G$44*(('BP Financier'!$C$22+'BP Financier'!$D$22+'BP Financier'!$E$22+'BP Financier'!$F$22+'BP Financier'!$G$22)/('BP Financier'!$C$16+'BP Financier'!$C$19+'BP Financier'!$D$16+'BP Financier'!$D$19+'BP Financier'!$E$16+'BP Financier'!$E$19+'BP Financier'!$C$22+'BP Financier'!$D$22+'BP Financier'!$E$22+'BP Financier'!$F$22+'BP Financier'!$F$16+'BP Financier'!$F$19+'BP Financier'!$G$16+'BP Financier'!$G$19+'BP Financier'!$G$22))*$V8482*X8482/(1-$W8482)","v":{"v":460.4164571220675,"d":"460"}},{"$f":"'BP Financier'!$G$44*(('BP Financier'!$C$22+'BP Financier'!$D$22+'BP Financier'!$E$22+'BP Financier'!$F$22+'BP Financier'!$G$22)/('BP Financier'!$C$16+'BP Financier'!$C$19+'BP Financier'!$D$16+'BP Financier'!$D$19+'BP Financier'!$E$16+'BP Financier'!$E$19+'BP Financier'!$C$22+'BP Financier'!$D$22+'BP Financier'!$E$22+'BP Financier'!$F$22+'BP Financier'!$F$16+'BP Financier'!$F$19+'BP Financier'!$G$16+'BP Financier'!$G$19+'BP Financier'!$G$22))*$V8482*Y8482/(1-$W8482)","v":{"v":307.7922171921004,"d":"308"}},{"$f":"'BP Financier'!$G$44*(('BP Financier'!$C$22+'BP Financier'!$D$22+'BP Financier'!$E$22+'BP Financier'!$F$22+'BP Financier'!$G$22)/('BP Financier'!$C$16+'BP Financier'!$C$19+'BP Financier'!$D$16+'BP Financier'!$D$19+'BP Financier'!$E$16+'BP Financier'!$E$19+'BP Financier'!$C$22+'BP Financier'!$D$22+'BP Financier'!$E$22+'BP Financier'!$F$22+'BP Financier'!$F$16+'BP Financier'!$F$19+'BP Financier'!$G$16+'BP Financier'!$G$19+'BP Financier'!$G$22))*$V8482*Z8482/(1-$W8482)","v":{"v":2408.9192535613147,"d":"2,409"}},{"$f":"'BP Financier'!$G$44*(('BP Financier'!$C$22+'BP Financier'!$D$22+'BP Financier'!$E$22+'BP Financier'!$F$22+'BP Financier'!$G$22)/('BP Financier'!$C$16+'BP Financier'!$C$19+'BP Financier'!$D$16+'BP Financier'!$D$19+'BP Financier'!$E$16+'BP Financier'!$E$19+'BP Financier'!$C$22+'BP Financier'!$D$22+'BP Financier'!$E$22+'BP Financier'!$F$22+'BP Financier'!$F$16+'BP Financier'!$F$19+'BP Financier'!$G$16+'BP Financier'!$G$19+'BP Financier'!$G$22))*$V8482*AA8482/(1-$W8482)","v":{"v":297.6172678634359,"d":"298"}},{"$f":"'BP Financier'!$G$44*(('BP Financier'!$C$22+'BP Financier'!$D$22+'BP Financier'!$E$22+'BP Financier'!$F$22+'BP Financier'!$G$22)/('BP Financier'!$C$16+'BP Financier'!$C$19+'BP Financier'!$D$16+'BP Financier'!$D$19+'BP Financier'!$E$16+'BP Financier'!$E$19+'BP Financier'!$C$22+'BP Financier'!$D$22+'BP Financier'!$E$22+'BP Financier'!$F$22+'BP Financier'!$F$16+'BP Financier'!$F$19+'BP Financier'!$G$16+'BP Financier'!$G$19+'BP Financier'!$G$22))*$V8482*AB8482/(1-$W8482)","v":{"v":142.44929060130264,"d":"142"}},null,{"v":1E-3,"d":"0.10%"},{"$f":"Actif!$E$28/100","v":{"v":0.28900000000000003,"d":"28.90%"}},{"$f":"Actif!$E$30/100","v":{"v":0.09050000000000001,"d":"9.05%"}},{"$f":"Actif!$E$31/100","v":{"v":0.0605,"d":"6.05%"}},{"$f":"Actif!$E$32/100","v":{"v":0.47350000000000003,"d":"47.35%"}},{"$f":"Actif!$E$33/100","v":{"v":0.0585,"d":"5.85%"}},{"$f":"Actif!$E$29/100","v":{"v":0.027999999999999997,"d":"2.80%"}}]
[null,"#370",38,2031,"F","A_CAPI",{"v":0.44999999999999996,"d":"0.45"},{"v":0.38999999999999996,"d":"0.39"},0.6,0.6,85,0,{"$f":"ROUND(Primes!$Q$10*V8483,2)","v":0.13},0,{"v":3617.194486340221,"d":"3,617"},{"$f":"'BP Financier'!$G$44*(('BP Financier'!$C$22+'BP Financier'!$D$22+'BP Financier'!$E$22+'BP Financier'!$F$22+'BP Financier'!$G$22)/('BP Financier'!$C$16+'BP Financier'!$C$19+'BP Financier'!$D$16+'BP Financier'!$D$19+'BP Financier'!$E$16+'BP Financier'!$E$19+'BP Financier'!$C$22+'BP Financier'!$D$22+'BP Financier'!$E$22+'BP Financier'!$F$22+'BP Financier'!$F$16+'BP Financier'!$F$19+'BP Financier'!$G$16+'BP Financier'!$G$19+'BP Financier'!$G$22))*$V8483*X8483/(1-$W8483)","v":{"v":460.4164571220675,"d":"460"}},{"$f":"'BP Financier'!$G$44*(('BP Financier'!$C$22+'BP Financier'!$D$22+'BP Financier'!$E$22+'BP Financier'!$F$22+'BP Financier'!$G$22)/('BP Financier'!$C$16+'BP Financier'!$C$19+'BP Financier'!$D$16+'BP Financier'!$D$19+'BP Financier'!$E$16+'BP Financier'!$E$19+'BP Financier'!$C$22+'BP Financier'!$D$22+'BP Financier'!$E$22+'BP Financier'!$F$22+'BP Financier'!$F$16+'BP Financier'!$F$19+'BP Financier'!$G$16+'BP Financier'!$G$19+'BP Financier'!$G$22))*$V8483*Y8483/(1-$W8483)","v":{"v":307.7922171921004,"d":"308"}},{"$f":"'BP Financier'!$G$44*(('BP Financier'!$C$22+'BP Financier'!$D$22+'BP Financier'!$E$22+'BP Financier'!$F$22+'BP Financier'!$G$22)/('BP Financier'!$C$16+'BP Financier'!$C$19+'BP Financier'!$D$16+'BP Financier'!$D$19+'BP Financier'!$E$16+'BP Financier'!$E$19+'BP Financier'!$C$22+'BP Financier'!$D$22+'BP Financier'!$E$22+'BP Financier'!$F$22+'BP Financier'!$F$16+'BP Financier'!$F$19+'BP Financier'!$G$16+'BP Financier'!$G$19+'BP Financier'!$G$22))*$V8483*Z8483/(1-$W8483)","v":{"v":2408.9192535613147,"d":"2,409"}},{"$f":"'BP Financier'!$G$44*(('BP Financier'!$C$22+'BP Financier'!$D$22+'BP Financier'!$E$22+'BP Financier'!$F$22+'BP Financier'!$G$22)/('BP Financier'!$C$16+'BP Financier'!$C$19+'BP Financier'!$D$16+'BP Financier'!$D$19+'BP Financier'!$E$16+'BP Financier'!$E$19+'BP Financier'!$C$22+'BP Financier'!$D$22+'BP Financier'!$E$22+'BP Financier'!$F$22+'BP Financier'!$F$16+'BP Financier'!$F$19+'BP Financier'!$G$16+'BP Financier'!$G$19+'BP Financier'!$G$22))*$V8483*AA8483/(1-$W8483)","v":{"v":297.6172678634359,"d":"298"}},{"$f":"'BP Financier'!$G$44*(('BP Financier'!$C$22+'BP Financier'!$D$22+'BP Financier'!$E$22+'BP Financier'!$F$22+'BP Financier'!$G$22)/('BP Financier'!$C$16+'BP Financier'!$C$19+'BP Financier'!$D$16+'BP Financier'!$D$19+'BP Financier'!$E$16+'BP Financier'!$E$19+'BP Financier'!$C$22+'BP Financier'!$D$22+'BP Financier'!$E$22+'BP Financier'!$F$22+'BP Financier'!$F$16+'BP Financier'!$F$19+'BP Financier'!$G$16+'BP Financier'!$G$19+'BP Financier'!$G$22))*$V8483*AB8483/(1-$W8483)","v":{"v":142.44929060130264,"d":"142"}},null,{"v":1E-3,"d":"0.10%"},{"$f":"Actif!$E$28/100","v":{"v":0.28900000000000003,"d":"28.90%"}},{"$f":"Actif!$E$30/100","v":{"v":0.09050000000000001,"d":"9.05%"}},{"$f":"Actif!$E$31/100","v":{"v":0.0605,"d":"6.05%"}},{"$f":"Actif!$E$32/100","v":{"v":0.47350000000000003,"d":"47.35%"}},{"$f":"Actif!$E$33/100","v":{"v":0.0585,"d":"5.85%"}},{"$f":"Actif!$E$29/100","v":{"v":0.027999999999999997,"d":"2.80%"}}]
[null,"#371",39,2026,"H","A_CAPI",{"v":0.44999999999999996,"d":"0.45"},{"v":0.38999999999999996,"d":"0.39"},0.6,0.6,85,0,{"$f":"ROUND(Primes!$Q$10*V8484,2)","v":0.13},0,{"v":3617.194486340221,"d":"3,617"},{"$f":"'BP Financier'!$G$44*(('BP Financier'!$C$22+'BP Financier'!$D$22+'BP Financier'!$E$22+'BP Financier'!$F$22+'BP Financier'!$G$22)/('BP Financier'!$C$16+'BP Financier'!$C$19+'BP Financier'!$D$16+'BP Financier'!$D$19+'BP Financier'!$E$16+'BP Financier'!$E$19+'BP Financier'!$C$22+'BP Financier'!$D$22+'BP Financier'!$E$22+'BP Financier'!$F$22+'BP Financier'!$F$16+'BP Financier'!$F$19+'BP Financier'!$G$16+'BP Financier'!$G$19+'BP Financier'!$G$22))*$V8484*X8484/(1-$W8484)","v":{"v":460.4164571220675,"d":"460"}},{"$f":"'BP Financier'!$G$44*(('BP Financier'!$C$22+'BP Financier'!$D$22+'BP Financier'!$E$22+'BP Financier'!$F$22+'BP Financier'!$G$22)/('BP Financier'!$C$16+'BP Financier'!$C$19+'BP Financier'!$D$16+'BP Financier'!$D$19+'BP Financier'!$E$16+'BP Financier'!$E$19+'BP Financier'!$C$22+'BP Financier'!$D$22+'BP Financier'!$E$22+'BP Financier'!$F$22+'BP Financier'!$F$16+'BP Financier'!$F$19+'BP Financier'!$G$16+'BP Financier'!$G$19+'BP Financier'!$G$22))*$V8484*Y8484/(1-$W8484)","v":{"v":307.7922171921004,"d":"308"}},{"$f":"'BP Financier'!$G$44*(('BP Financier'!$C$22+'BP Financier'!$D$22+'BP Financier'!$E$22+'BP Financier'!$F$22+'BP Financier'!$G$22)/('BP Financier'!$C$16+'BP Financier'!$C$19+'BP Financier'!$D$16+'BP Financier'!$D$19+'BP Financier'!$E$16+'BP Financier'!$E$19+'BP Financier'!$C$22+'BP Financier'!$D$22+'BP Financier'!$E$22+'BP Financier'!$F$22+'BP Financier'!$F$16+'BP Financier'!$F$19+'BP Financier'!$G$16+'BP Financier'!$G$19+'BP Financier'!$G$22))*$V8484*Z8484/(1-$W8484)","v":{"v":2408.9192535613147,"d":"2,409"}},{"$f":"'BP Financier'!$G$44*(('BP Financier'!$C$22+'BP Financier'!$D$22+'BP Financier'!$E$22+'BP Financier'!$F$22+'BP Financier'!$G$22)/('BP Financier'!$C$16+'BP Financier'!$C$19+'BP Financier'!$D$16+'BP Financier'!$D$19+'BP Financier'!$E$16+'BP Financier'!$E$19+'BP Financier'!$C$22+'BP Financier'!$D$22+'BP Financier'!$E$22+'BP Financier'!$F$22+'BP Financier'!$F$16+'BP Financier'!$F$19+'BP Financier'!$G$16+'BP Financier'!$G$19+'BP Financier'!$G$22))*$V8484*AA8484/(1-$W8484)","v":{"v":297.6172678634359,"d":"298"}},{"$f":"'BP Financier'!$G$44*(('BP Financier'!$C$22+'BP Financier'!$D$22+'BP Financier'!$E$22+'BP Financier'!$F$22+'BP Financier'!$G$22)/('BP Financier'!$C$16+'BP Financier'!$C$19+'BP Financier'!$D$16+'BP Financier'!$D$19+'BP Financier'!$E$16+'BP Financier'!$E$19+'BP Financier'!$C$22+'BP Financier'!$D$22+'BP Financier'!$E$22+'BP Financier'!$F$22+'BP Financier'!$F$16+'BP Financier'!$F$19+'BP Financier'!$G$16+'BP Financier'!$G$19+'BP Financier'!$G$22))*$V8484*AB8484/(1-$W8484)","v":{"v":142.44929060130264,"d":"142"}},null,{"v":1E-3,"d":"0.10%"},{"$f":"Actif!$E$28/100","v":{"v":0.28900000000000003,"d":"28.90%"}},{"$f":"Actif!$E$30/100","v":{"v":0.09050000000000001,"d":"9.05%"}},{"$f":"Actif!$E$31/100","v":{"v":0.0605,"d":"6.05%"}},{"$f":"Actif!$E$32/100","v":{"v":0.47350000000000003,"d":"47.35%"}},{"$f":"Actif!$E$33/100","v":{"v":0.0585,"d":"5.85%"}},{"$f":"Actif!$E$29/100","v":{"v":0.027999999999999997,"d":"2.80%"}}]
[null,"#372",39,2028,"H","A_CAPI",{"v":0.44999999999999996,"d":"0.45"},{"v":0.38999999999999996,"d":"0.39"},0.6,0.6,85,0,{"$f":"ROUND(Primes!$Q$10*V8485,2)","v":0.13},0,{"v":3617.194486340221,"d":"3,617"},{"$f":"'BP Financier'!$G$44*(('BP Financier'!$C$22+'BP Financier'!$D$22+'BP Financier'!$E$22+'BP Financier'!$F$22+'BP Financier'!$G$22)/('BP Financier'!$C$16+'BP Financier'!$C$19+'BP Financier'!$D$16+'BP Financier'!$D$19+'BP Financier'!$E$16+'BP Financier'!$E$19+'BP Financier'!$C$22+'BP Financier'!$D$22+'BP Financier'!$E$22+'BP Financier'!$F$22+'BP Financier'!$F$16+'BP Financier'!$F$19+'BP Financier'!$G$16+'BP Financier'!$G$19+'BP Financier'!$G$22))*$V8485*X8485/(1-$W8485)","v":{"v":460.4164571220675,"d":"460"}},{"$f":"'BP Financier'!$G$44*(('BP Financier'!$C$22+'BP Financier'!$D$22+'BP Financier'!$E$22+'BP Financier'!$F$22+'BP Financier'!$G$22)/('BP Financier'!$C$16+'BP Financier'!$C$19+'BP Financier'!$D$16+'BP Financier'!$D$19+'BP Financier'!$E$16+'BP Financier'!$E$19+'BP Financier'!$C$22+'BP Financier'!$D$22+'BP Financier'!$E$22+'BP Financier'!$F$22+'BP Financier'!$F$16+'BP Financier'!$F$19+'BP Financier'!$G$16+'BP Financier'!$G$19+'BP Financier'!$G$22))*$V8485*Y8485/(1-$W8485)","v":{"v":307.7922171921004,"d":"308"}},{"$f":"'BP Financier'!$G$44*(('BP Financier'!$C$22+'BP Financier'!$D$22+'BP Financier'!$E$22+'BP Financier'!$F$22+'BP Financier'!$G$22)/('BP Financier'!$C$16+'BP Financier'!$C$19+'BP Financier'!$D$16+'BP Financier'!$D$19+'BP Financier'!$E$16+'BP Financier'!$E$19+'BP Financier'!$C$22+'BP Financier'!$D$22+'BP Financier'!$E$22+'BP Financier'!$F$22+'BP Financier'!$F$16+'BP Financier'!$F$19+'BP Financier'!$G$16+'BP Financier'!$G$19+'BP Financier'!$G$22))*$V8485*Z8485/(1-$W8485)","v":{"v":2408.9192535613147,"d":"2,409"}},{"$f":"'BP Financier'!$G$44*(('BP Financier'!$C$22+'BP Financier'!$D$22+'BP Financier'!$E$22+'BP Financier'!$F$22+'BP Financier'!$G$22)/('BP Financier'!$C$16+'BP Financier'!$C$19+'BP Financier'!$D$16+'BP Financier'!$D$19+'BP Financier'!$E$16+'BP Financier'!$E$19+'BP Financier'!$C$22+'BP Financier'!$D$22+'BP Financier'!$E$22+'BP Financier'!$F$22+'BP Financier'!$F$16+'BP Financier'!$F$19+'BP Financier'!$G$16+'BP Financier'!$G$19+'BP Financier'!$G$22))*$V8485*AA8485/(1-$W8485)","v":{"v":297.6172678634359,"d":"298"}},{"$f":"'BP Financier'!$G$44*(('BP Financier'!$C$22+'BP Financier'!$D$22+'BP Financier'!$E$22+'BP Financier'!$F$22+'BP Financier'!$G$22)/('BP Financier'!$C$16+'BP Financier'!$C$19+'BP Financier'!$D$16+'BP Financier'!$D$19+'BP Financier'!$E$16+'BP Financier'!$E$19+'BP Financier'!$C$22+'BP Financier'!$D$22+'BP Financier'!$E$22+'BP Financier'!$F$22+'BP Financier'!$F$16+'BP Financier'!$F$19+'BP Financier'!$G$16+'BP Financier'!$G$19+'BP Financier'!$G$22))*$V8485*AB8485/(1-$W8485)","v":{"v":142.44929060130264,"d":"142"}},null,{"v":1E-3,"d":"0.10%"},{"$f":"Actif!$E$28/100","v":{"v":0.28900000000000003,"d":"28.90%"}},{"$f":"Actif!$E$30/100","v":{"v":0.09050000000000001,"d":"9.05%"}},{"$f":"Actif!$E$31/100","v":{"v":0.0605,"d":"6.05%"}},{"$f":"Actif!$E$32/100","v":{"v":0.47350000000000003,"d":"47.35%"}},{"$f":"Actif!$E$33/100","v":{"v":0.0585,"d":"5.85%"}},{"$f":"Actif!$E$29/100","v":{"v":0.027999999999999997,"d":"2.80%"}}]
[null,"#373",39,2029,"H","A_CAPI",{"v":0.44999999999999996,"d":"0.45"},{"v":0.38999999999999996,"d":"0.39"},0.6,0.6,85,0,{"$f":"ROUND(Primes!$Q$10*V8486,2)","v":0.13},0,{"v":3617.194486340221,"d":"3,617"},{"$f":"'BP Financier'!$G$44*(('BP Financier'!$C$22+'BP Financier'!$D$22+'BP Financier'!$E$22+'BP Financier'!$F$22+'BP Financier'!$G$22)/('BP Financier'!$C$16+'BP Financier'!$C$19+'BP Financier'!$D$16+'BP Financier'!$D$19+'BP Financier'!$E$16+'BP Financier'!$E$19+'BP Financier'!$C$22+'BP Financier'!$D$22+'BP Financier'!$E$22+'BP Financier'!$F$22+'BP Financier'!$F$16+'BP Financier'!$F$19+'BP Financier'!$G$16+'BP Financier'!$G$19+'BP Financier'!$G$22))*$V8486*X8486/(1-$W8486)","v":{"v":460.4164571220675,"d":"460"}},{"$f":"'BP Financier'!$G$44*(('BP Financier'!$C$22+'BP Financier'!$D$22+'BP Financier'!$E$22+'BP Financier'!$F$22+'BP Financier'!$G$22)/('BP Financier'!$C$16+'BP Financier'!$C$19+'BP Financier'!$D$16+'BP Financier'!$D$19+'BP Financier'!$E$16+'BP Financier'!$E$19+'BP Financier'!$C$22+'BP Financier'!$D$22+'BP Financier'!$E$22+'BP Financier'!$F$22+'BP Financier'!$F$16+'BP Financier'!$F$19+'BP Financier'!$G$16+'BP Financier'!$G$19+'BP Financier'!$G$22))*$V8486*Y8486/(1-$W8486)","v":{"v":307.7922171921004,"d":"308"}},{"$f":"'BP Financier'!$G$44*(('BP Financier'!$C$22+'BP Financier'!$D$22+'BP Financier'!$E$22+'BP Financier'!$F$22+'BP Financier'!$G$22)/('BP Financier'!$C$16+'BP Financier'!$C$19+'BP Financier'!$D$16+'BP Financier'!$D$19+'BP Financier'!$E$16+'BP Financier'!$E$19+'BP Financier'!$C$22+'BP Financier'!$D$22+'BP Financier'!$E$22+'BP Financier'!$F$22+'BP Financier'!$F$16+'BP Financier'!$F$19+'BP Financier'!$G$16+'BP Financier'!$G$19+'BP Financier'!$G$22))*$V8486*Z8486/(1-$W8486)","v":{"v":2408.9192535613147,"d":"2,409"}},{"$f":"'BP Financier'!$G$44*(('BP Financier'!$C$22+'BP Financier'!$D$22+'BP Financier'!$E$22+'BP Financier'!$F$22+'BP Financier'!$G$22)/('BP Financier'!$C$16+'BP Financier'!$C$19+'BP Financier'!$D$16+'BP Financier'!$D$19+'BP Financier'!$E$16+'BP Financier'!$E$19+'BP Financier'!$C$22+'BP Financier'!$D$22+'BP Financier'!$E$22+'BP Financier'!$F$22+'BP Financier'!$F$16+'BP Financier'!$F$19+'BP Financier'!$G$16+'BP Financier'!$G$19+'BP Financier'!$G$22))*$V8486*AA8486/(1-$W8486)","v":{"v":297.6172678634359,"d":"298"}},{"$f":"'BP Financier'!$G$44*(('BP Financier'!$C$22+'BP Financier'!$D$22+'BP Financier'!$E$22+'BP Financier'!$F$22+'BP Financier'!$G$22)/('BP Financier'!$C$16+'BP Financier'!$C$19+'BP Financier'!$D$16+'BP Financier'!$D$19+'BP Financier'!$E$16+'BP Financier'!$E$19+'BP Financier'!$C$22+'BP Financier'!$D$22+'BP Financier'!$E$22+'BP Financier'!$F$22+'BP Financier'!$F$16+'BP Financier'!$F$19+'BP Financier'!$G$16+'BP Financier'!$G$19+'BP Financier'!$G$22))*$V8486*AB8486/(1-$W8486)","v":{"v":142.44929060130264,"d":"142"}},null,{"v":1E-3,"d":"0.10%"},{"$f":"Actif!$E$28/100","v":{"v":0.28900000000000003,"d":"28.90%"}},{"$f":"Actif!$E$30/100","v":{"v":0.09050000000000001,"d":"9.05%"}},{"$f":"Actif!$E$31/100","v":{"v":0.0605,"d":"6.05%"}},{"$f":"Actif!$E$32/100","v":{"v":0.47350000000000003,"d":"47.35%"}},{"$f":"Actif!$E$33/100","v":{"v":0.0585,"d":"5.85%"}},{"$f":"Actif!$E$29/100","v":{"v":0.027999999999999997,"d":"2.80%"}}]
[null,"#374",39,2030,"H","A_CAPI",{"v":0.44999999999999996,"d":"0.45"},{"v":0.38999999999999996,"d":"0.39"},0.6,0.6,85,0,{"$f":"ROUND(Primes!$Q$10*V8487,2)","v":0.13},0,{"v":3617.194486340221,"d":"3,617"},{"$f":"'BP Financier'!$G$44*(('BP Financier'!$C$22+'BP Financier'!$D$22+'BP Financier'!$E$22+'BP Financier'!$F$22+'BP Financier'!$G$22)/('BP Financier'!$C$16+'BP Financier'!$C$19+'BP Financier'!$D$16+'BP Financier'!$D$19+'BP Financier'!$E$16+'BP Financier'!$E$19+'BP Financier'!$C$22+'BP Financier'!$D$22+'BP Financier'!$E$22+'BP Financier'!$F$22+'BP Financier'!$F$16+'BP Financier'!$F$19+'BP Financier'!$G$16+'BP Financier'!$G$19+'BP Financier'!$G$22))*$V8487*X8487/(1-$W8487)","v":{"v":460.4164571220675,"d":"460"}},{"$f":"'BP Financier'!$G$44*(('BP Financier'!$C$22+'BP Financier'!$D$22+'BP Financier'!$E$22+'BP Financier'!$F$22+'BP Financier'!$G$22)/('BP Financier'!$C$16+'BP Financier'!$C$19+'BP Financier'!$D$16+'BP Financier'!$D$19+'BP Financier'!$E$16+'BP Financier'!$E$19+'BP Financier'!$C$22+'BP Financier'!$D$22+'BP Financier'!$E$22+'BP Financier'!$F$22+'BP Financier'!$F$16+'BP Financier'!$F$19+'BP Financier'!$G$16+'BP Financier'!$G$19+'BP Financier'!$G$22))*$V8487*Y8487/(1-$W8487)","v":{"v":307.7922171921004,"d":"308"}},{"$f":"'BP Financier'!$G$44*(('BP Financier'!$C$22+'BP Financier'!$D$22+'BP Financier'!$E$22+'BP Financier'!$F$22+'BP Financier'!$G$22)/('BP Financier'!$C$16+'BP Financier'!$C$19+'BP Financier'!$D$16+'BP Financier'!$D$19+'BP Financier'!$E$16+'BP Financier'!$E$19+'BP Financier'!$C$22+'BP Financier'!$D$22+'BP Financier'!$E$22+'BP Financier'!$F$22+'BP Financier'!$F$16+'BP Financier'!$F$19+'BP Financier'!$G$16+'BP Financier'!$G$19+'BP Financier'!$G$22))*$V8487*Z8487/(1-$W8487)","v":{"v":2408.9192535613147,"d":"2,409"}},{"$f":"'BP Financier'!$G$44*(('BP Financier'!$C$22+'BP Financier'!$D$22+'BP Financier'!$E$22+'BP Financier'!$F$22+'BP Financier'!$G$22)/('BP Financier'!$C$16+'BP Financier'!$C$19+'BP Financier'!$D$16+'BP Financier'!$D$19+'BP Financier'!$E$16+'BP Financier'!$E$19+'BP Financier'!$C$22+'BP Financier'!$D$22+'BP Financier'!$E$22+'BP Financier'!$F$22+'BP Financier'!$F$16+'BP Financier'!$F$19+'BP Financier'!$G$16+'BP Financier'!$G$19+'BP Financier'!$G$22))*$V8487*AA8487/(1-$W8487)","v":{"v":297.6172678634359,"d":"298"}},{"$f":"'BP Financier'!$G$44*(('BP Financier'!$C$22+'BP Financier'!$D$22+'BP Financier'!$E$22+'BP Financier'!$F$22+'BP Financier'!$G$22)/('BP Financier'!$C$16+'BP Financier'!$C$19+'BP Financier'!$D$16+'BP Financier'!$D$19+'BP Financier'!$E$16+'BP Financier'!$E$19+'BP Financier'!$C$22+'BP Financier'!$D$22+'BP Financier'!$E$22+'BP Financier'!$F$22+'BP Financier'!$F$16+'BP Financier'!$F$19+'BP Financier'!$G$16+'BP Financier'!$G$19+'BP Financier'!$G$22))*$V8487*AB8487/(1-$W8487)","v":{"v":142.44929060130264,"d":"142"}},null,{"v":1E-3,"d":"0.10%"},{"$f":"Actif!$E$28/100","v":{"v":0.28900000000000003,"d":"28.90%"}},{"$f":"Actif!$E$30/100","v":{"v":0.09050000000000001,"d":"9.05%"}},{"$f":"Actif!$E$31/100","v":{"v":0.0605,"d":"6.05%"}},{"$f":"Actif!$E$32/100","v":{"v":0.47350000000000003,"d":"47.35%"}},{"$f":"Actif!$E$33/100","v":{"v":0.0585,"d":"5.85%"}},{"$f":"Actif!$E$29/100","v":{"v":0.027999999999999997,"d":"2.80%"}}]
[null,"#375",39,2031,"H","A_CAPI",{"v":0.44999999999999996,"d":"0.45"},{"v":0.38999999999999996,"d":"0.39"},0.6,0.6,85,0,{"$f":"ROUND(Primes!$Q$10*V8488,2)","v":0.13},0,{"v":3617.194486340221,"d":"3,617"},{"$f":"'BP Financier'!$G$44*(('BP Financier'!$C$22+'BP Financier'!$D$22+'BP Financier'!$E$22+'BP Financier'!$F$22+'BP Financier'!$G$22)/('BP Financier'!$C$16+'BP Financier'!$C$19+'BP Financier'!$D$16+'BP Financier'!$D$19+'BP Financier'!$E$16+'BP Financier'!$E$19+'BP Financier'!$C$22+'BP Financier'!$D$22+'BP Financier'!$E$22+'BP Financier'!$F$22+'BP Financier'!$F$16+'BP Financier'!$F$19+'BP Financier'!$G$16+'BP Financier'!$G$19+'BP Financier'!$G$22))*$V8488*X8488/(1-$W8488)","v":{"v":460.4164571220675,"d":"460"}},{"$f":"'BP Financier'!$G$44*(('BP Financier'!$C$22+'BP Financier'!$D$22+'BP Financier'!$E$22+'BP Financier'!$F$22+'BP Financier'!$G$22)/('BP Financier'!$C$16+'BP Financier'!$C$19+'BP Financier'!$D$16+'BP Financier'!$D$19+'BP Financier'!$E$16+'BP Financier'!$E$19+'BP Financier'!$C$22+'BP Financier'!$D$22+'BP Financier'!$E$22+'BP Financier'!$F$22+'BP Financier'!$F$16+'BP Financier'!$F$19+'BP Financier'!$G$16+'BP Financier'!$G$19+'BP Financier'!$G$22))*$V8488*Y8488/(1-$W8488)","v":{"v":307.7922171921004,"d":"308"}},{"$f":"'BP Financier'!$G$44*(('BP Financier'!$C$22+'BP Financier'!$D$22+'BP Financier'!$E$22+'BP Financier'!$F$22+'BP Financier'!$G$22)/('BP Financier'!$C$16+'BP Financier'!$C$19+'BP Financier'!$D$16+'BP Financier'!$D$19+'BP Financier'!$E$16+'BP Financier'!$E$19+'BP Financier'!$C$22+'BP Financier'!$D$22+'BP Financier'!$E$22+'BP Financier'!$F$22+'BP Financier'!$F$16+'BP Financier'!$F$19+'BP Financier'!$G$16+'BP Financier'!$G$19+'BP Financier'!$G$22))*$V8488*Z8488/(1-$W8488)","v":{"v":2408.9192535613147,"d":"2,409"}},{"$f":"'BP Financier'!$G$44*(('BP Financier'!$C$22+'BP Financier'!$D$22+'BP Financier'!$E$22+'BP Financier'!$F$22+'BP Financier'!$G$22)/('BP Financier'!$C$16+'BP Financier'!$C$19+'BP Financier'!$D$16+'BP Financier'!$D$19+'BP Financier'!$E$16+'BP Financier'!$E$19+'BP Financier'!$C$22+'BP Financier'!$D$22+'BP Financier'!$E$22+'BP Financier'!$F$22+'BP Financier'!$F$16+'BP Financier'!$F$19+'BP Financier'!$G$16+'BP Financier'!$G$19+'BP Financier'!$G$22))*$V8488*AA8488/(1-$W8488)","v":{"v":297.6172678634359,"d":"298"}},{"$f":"'BP Financier'!$G$44*(('BP Financier'!$C$22+'BP Financier'!$D$22+'BP Financier'!$E$22+'BP Financier'!$F$22+'BP Financier'!$G$22)/('BP Financier'!$C$16+'BP Financier'!$C$19+'BP Financier'!$D$16+'BP Financier'!$D$19+'BP Financier'!$E$16+'BP Financier'!$E$19+'BP Financier'!$C$22+'BP Financier'!$D$22+'BP Financier'!$E$22+'BP Financier'!$F$22+'BP Financier'!$F$16+'BP Financier'!$F$19+'BP Financier'!$G$16+'BP Financier'!$G$19+'BP Financier'!$G$22))*$V8488*AB8488/(1-$W8488)","v":{"v":142.44929060130264,"d":"142"}},null,{"v":1E-3,"d":"0.10%"},{"$f":"Actif!$E$28/100","v":{"v":0.28900000000000003,"d":"28.90%"}},{"$f":"Actif!$E$30/100","v":{"v":0.09050000000000001,"d":"9.05%"}},{"$f":"Actif!$E$31/100","v":{"v":0.0605,"d":"6.05%"}},{"$f":"Actif!$E$32/100","v":{"v":0.47350000000000003,"d":"47.35%"}},{"$f":"Actif!$E$33/100","v":{"v":0.0585,"d":"5.85%"}},{"$f":"Actif!$E$29/100","v":{"v":0.027999999999999997,"d":"2.80%"}}]
[null,"#376",40,2026,"H","A_CAPI",{"v":0.44999999999999996,"d":"0.45"},{"v":0.38999999999999996,"d":"0.39"},0.6,0.6,85,0,{"$f":"ROUND(Primes!$Q$10*V8489,2)","v":0.13},0,{"v":3617.194486340221,"d":"3,617"},{"$f":"'BP Financier'!$G$44*(('BP Financier'!$C$22+'BP Financier'!$D$22+'BP Financier'!$E$22+'BP Financier'!$F$22+'BP Financier'!$G$22)/('BP Financier'!$C$16+'BP Financier'!$C$19+'BP Financier'!$D$16+'BP Financier'!$D$19+'BP Financier'!$E$16+'BP Financier'!$E$19+'BP Financier'!$C$22+'BP Financier'!$D$22+'BP Financier'!$E$22+'BP Financier'!$F$22+'BP Financier'!$F$16+'BP Financier'!$F$19+'BP Financier'!$G$16+'BP Financier'!$G$19+'BP Financier'!$G$22))*$V8489*X8489/(1-$W8489)","v":{"v":460.4164571220675,"d":"460"}},{"$f":"'BP Financier'!$G$44*(('BP Financier'!$C$22+'BP Financier'!$D$22+'BP Financier'!$E$22+'BP Financier'!$F$22+'BP Financier'!$G$22)/('BP Financier'!$C$16+'BP Financier'!$C$19+'BP Financier'!$D$16+'BP Financier'!$D$19+'BP Financier'!$E$16+'BP Financier'!$E$19+'BP Financier'!$C$22+'BP Financier'!$D$22+'BP Financier'!$E$22+'BP Financier'!$F$22+'BP Financier'!$F$16+'BP Financier'!$F$19+'BP Financier'!$G$16+'BP Financier'!$G$19+'BP Financier'!$G$22))*$V8489*Y8489/(1-$W8489)","v":{"v":307.7922171921004,"d":"308"}},{"$f":"'BP Financier'!$G$44*(('BP Financier'!$C$22+'BP Financier'!$D$22+'BP Financier'!$E$22+'BP Financier'!$F$22+'BP Financier'!$G$22)/('BP Financier'!$C$16+'BP Financier'!$C$19+'BP Financier'!$D$16+'BP Financier'!$D$19+'BP Financier'!$E$16+'BP Financier'!$E$19+'BP Financier'!$C$22+'BP Financier'!$D$22+'BP Financier'!$E$22+'BP Financier'!$F$22+'BP Financier'!$F$16+'BP Financier'!$F$19+'BP Financier'!$G$16+'BP Financier'!$G$19+'BP Financier'!$G$22))*$V8489*Z8489/(1-$W8489)","v":{"v":2408.9192535613147,"d":"2,409"}},{"$f":"'BP Financier'!$G$44*(('BP Financier'!$C$22+'BP Financier'!$D$22+'BP Financier'!$E$22+'BP Financier'!$F$22+'BP Financier'!$G$22)/('BP Financier'!$C$16+'BP Financier'!$C$19+'BP Financier'!$D$16+'BP Financier'!$D$19+'BP Financier'!$E$16+'BP Financier'!$E$19+'BP Financier'!$C$22+'BP Financier'!$D$22+'BP Financier'!$E$22+'BP Financier'!$F$22+'BP Financier'!$F$16+'BP Financier'!$F$19+'BP Financier'!$G$16+'BP Financier'!$G$19+'BP Financier'!$G$22))*$V8489*AA8489/(1-$W8489)","v":{"v":297.6172678634359,"d":"298"}},{"$f":"'BP Financier'!$G$44*(('BP Financier'!$C$22+'BP Financier'!$D$22+'BP Financier'!$E$22+'BP Financier'!$F$22+'BP Financier'!$G$22)/('BP Financier'!$C$16+'BP Financier'!$C$19+'BP Financier'!$D$16+'BP Financier'!$D$19+'BP Financier'!$E$16+'BP Financier'!$E$19+'BP Financier'!$C$22+'BP Financier'!$D$22+'BP Financier'!$E$22+'BP Financier'!$F$22+'BP Financier'!$F$16+'BP Financier'!$F$19+'BP Financier'!$G$16+'BP Financier'!$G$19+'BP Financier'!$G$22))*$V8489*AB8489/(1-$W8489)","v":{"v":142.44929060130264,"d":"142"}},null,{"v":1E-3,"d":"0.10%"},{"$f":"Actif!$E$28/100","v":{"v":0.28900000000000003,"d":"28.90%"}},{"$f":"Actif!$E$30/100","v":{"v":0.09050000000000001,"d":"9.05%"}},{"$f":"Actif!$E$31/100","v":{"v":0.0605,"d":"6.05%"}},{"$f":"Actif!$E$32/100","v":{"v":0.47350000000000003,"d":"47.35%"}},{"$f":"Actif!$E$33/100","v":{"v":0.0585,"d":"5.85%"}},{"$f":"Actif!$E$29/100","v":{"v":0.027999999999999997,"d":"2.80%"}}]
[null,"#377",40,2028,"H","A_CAPI",{"v":0.44999999999999996,"d":"0.45"},{"v":0.38999999999999996,"d":"0.39"},0.6,0.6,85,0,{"$f":"ROUND(Primes!$Q$10*V8490,2)","v":0.13},0,{"v":3617.194486340221,"d":"3,617"},{"$f":"'BP Financier'!$G$44*(('BP Financier'!$C$22+'BP Financier'!$D$22+'BP Financier'!$E$22+'BP Financier'!$F$22+'BP Financier'!$G$22)/('BP Financier'!$C$16+'BP Financier'!$C$19+'BP Financier'!$D$16+'BP Financier'!$D$19+'BP Financier'!$E$16+'BP Financier'!$E$19+'BP Financier'!$C$22+'BP Financier'!$D$22+'BP Financier'!$E$22+'BP Financier'!$F$22+'BP Financier'!$F$16+'BP Financier'!$F$19+'BP Financier'!$G$16+'BP Financier'!$G$19+'BP Financier'!$G$22))*$V8490*X8490/(1-$W8490)","v":{"v":460.4164571220675,"d":"460"}},{"$f":"'BP Financier'!$G$44*(('BP Financier'!$C$22+'BP Financier'!$D$22+'BP Financier'!$E$22+'BP Financier'!$F$22+'BP Financier'!$G$22)/('BP Financier'!$C$16+'BP Financier'!$C$19+'BP Financier'!$D$16+'BP Financier'!$D$19+'BP Financier'!$E$16+'BP Financier'!$E$19+'BP Financier'!$C$22+'BP Financier'!$D$22+'BP Financier'!$E$22+'BP Financier'!$F$22+'BP Financier'!$F$16+'BP Financier'!$F$19+'BP Financier'!$G$16+'BP Financier'!$G$19+'BP Financier'!$G$22))*$V8490*Y8490/(1-$W8490)","v":{"v":307.7922171921004,"d":"308"}},{"$f":"'BP Financier'!$G$44*(('BP Financier'!$C$22+'BP Financier'!$D$22+'BP Financier'!$E$22+'BP Financier'!$F$22+'BP Financier'!$G$22)/('BP Financier'!$C$16+'BP Financier'!$C$19+'BP Financier'!$D$16+'BP Financier'!$D$19+'BP Financier'!$E$16+'BP Financier'!$E$19+'BP Financier'!$C$22+'BP Financier'!$D$22+'BP Financier'!$E$22+'BP Financier'!$F$22+'BP Financier'!$F$16+'BP Financier'!$F$19+'BP Financier'!$G$16+'BP Financier'!$G$19+'BP Financier'!$G$22))*$V8490*Z8490/(1-$W8490)","v":{"v":2408.9192535613147,"d":"2,409"}},{"$f":"'BP Financier'!$G$44*(('BP Financier'!$C$22+'BP Financier'!$D$22+'BP Financier'!$E$22+'BP Financier'!$F$22+'BP Financier'!$G$22)/('BP Financier'!$C$16+'BP Financier'!$C$19+'BP Financier'!$D$16+'BP Financier'!$D$19+'BP Financier'!$E$16+'BP Financier'!$E$19+'BP Financier'!$C$22+'BP Financier'!$D$22+'BP Financier'!$E$22+'BP Financier'!$F$22+'BP Financier'!$F$16+'BP Financier'!$F$19+'BP Financier'!$G$16+'BP Financier'!$G$19+'BP Financier'!$G$22))*$V8490*AA8490/(1-$W8490)","v":{"v":297.6172678634359,"d":"298"}},{"$f":"'BP Financier'!$G$44*(('BP Financier'!$C$22+'BP Financier'!$D$22+'BP Financier'!$E$22+'BP Financier'!$F$22+'BP Financier'!$G$22)/('BP Financier'!$C$16+'BP Financier'!$C$19+'BP Financier'!$D$16+'BP Financier'!$D$19+'BP Financier'!$E$16+'BP Financier'!$E$19+'BP Financier'!$C$22+'BP Financier'!$D$22+'BP Financier'!$E$22+'BP Financier'!$F$22+'BP Financier'!$F$16+'BP Financier'!$F$19+'BP Financier'!$G$16+'BP Financier'!$G$19+'BP Financier'!$G$22))*$V8490*AB8490/(1-$W8490)","v":{"v":142.44929060130264,"d":"142"}},null,{"v":1E-3,"d":"0.10%"},{"$f":"Actif!$E$28/100","v":{"v":0.28900000000000003,"d":"28.90%"}},{"$f":"Actif!$E$30/100","v":{"v":0.09050000000000001,"d":"9.05%"}},{"$f":"Actif!$E$31/100","v":{"v":0.0605,"d":"6.05%"}},{"$f":"Actif!$E$32/100","v":{"v":0.47350000000000003,"d":"47.35%"}},{"$f":"Actif!$E$33/100","v":{"v":0.0585,"d":"5.85%"}},{"$f":"Actif!$E$29/100","v":{"v":0.027999999999999997,"d":"2.80%"}}]
[null,"#378",40,2029,"H","A_CAPI",{"v":0.44999999999999996,"d":"0.45"},{"v":0.38999999999999996,"d":"0.39"},0.6,0.6,85,0,{"$f":"ROUND(Primes!$Q$10*V8491,2)","v":0.13},0,{"v":3617.194486340221,"d":"3,617"},{"$f":"'BP Financier'!$G$44*(('BP Financier'!$C$22+'BP Financier'!$D$22+'BP Financier'!$E$22+'BP Financier'!$F$22+'BP Financier'!$G$22)/('BP Financier'!$C$16+'BP Financier'!$C$19+'BP Financier'!$D$16+'BP Financier'!$D$19+'BP Financier'!$E$16+'BP Financier'!$E$19+'BP Financier'!$C$22+'BP Financier'!$D$22+'BP Financier'!$E$22+'BP Financier'!$F$22+'BP Financier'!$F$16+'BP Financier'!$F$19+'BP Financier'!$G$16+'BP Financier'!$G$19+'BP Financier'!$G$22))*$V8491*X8491/(1-$W8491)","v":{"v":460.4164571220675,"d":"460"}},{"$f":"'BP Financier'!$G$44*(('BP Financier'!$C$22+'BP Financier'!$D$22+'BP Financier'!$E$22+'BP Financier'!$F$22+'BP Financier'!$G$22)/('BP Financier'!$C$16+'BP Financier'!$C$19+'BP Financier'!$D$16+'BP Financier'!$D$19+'BP Financier'!$E$16+'BP Financier'!$E$19+'BP Financier'!$C$22+'BP Financier'!$D$22+'BP Financier'!$E$22+'BP Financier'!$F$22+'BP Financier'!$F$16+'BP Financier'!$F$19+'BP Financier'!$G$16+'BP Financier'!$G$19+'BP Financier'!$G$22))*$V8491*Y8491/(1-$W8491)","v":{"v":307.7922171921004,"d":"308"}},{"$f":"'BP Financier'!$G$44*(('BP Financier'!$C$22+'BP Financier'!$D$22+'BP Financier'!$E$22+'BP Financier'!$F$22+'BP Financier'!$G$22)/('BP Financier'!$C$16+'BP Financier'!$C$19+'BP Financier'!$D$16+'BP Financier'!$D$19+'BP Financier'!$E$16+'BP Financier'!$E$19+'BP Financier'!$C$22+'BP Financier'!$D$22+'BP Financier'!$E$22+'BP Financier'!$F$22+'BP Financier'!$F$16+'BP Financier'!$F$19+'BP Financier'!$G$16+'BP Financier'!$G$19+'BP Financier'!$G$22))*$V8491*Z8491/(1-$W8491)","v":{"v":2408.9192535613147,"d":"2,409"}},{"$f":"'BP Financier'!$G$44*(('BP Financier'!$C$22+'BP Financier'!$D$22+'BP Financier'!$E$22+'BP Financier'!$F$22+'BP Financier'!$G$22)/('BP Financier'!$C$16+'BP Financier'!$C$19+'BP Financier'!$D$16+'BP Financier'!$D$19+'BP Financier'!$E$16+'BP Financier'!$E$19+'BP Financier'!$C$22+'BP Financier'!$D$22+'BP Financier'!$E$22+'BP Financier'!$F$22+'BP Financier'!$F$16+'BP Financier'!$F$19+'BP Financier'!$G$16+'BP Financier'!$G$19+'BP Financier'!$G$22))*$V8491*AA8491/(1-$W8491)","v":{"v":297.6172678634359,"d":"298"}},{"$f":"'BP Financier'!$G$44*(('BP Financier'!$C$22+'BP Financier'!$D$22+'BP Financier'!$E$22+'BP Financier'!$F$22+'BP Financier'!$G$22)/('BP Financier'!$C$16+'BP Financier'!$C$19+'BP Financier'!$D$16+'BP Financier'!$D$19+'BP Financier'!$E$16+'BP Financier'!$E$19+'BP Financier'!$C$22+'BP Financier'!$D$22+'BP Financier'!$E$22+'BP Financier'!$F$22+'BP Financier'!$F$16+'BP Financier'!$F$19+'BP Financier'!$G$16+'BP Financier'!$G$19+'BP Financier'!$G$22))*$V8491*AB8491/(1-$W8491)","v":{"v":142.44929060130264,"d":"142"}},null,{"v":1E-3,"d":"0.10%"},{"$f":"Actif!$E$28/100","v":{"v":0.28900000000000003,"d":"28.90%"}},{"$f":"Actif!$E$30/100","v":{"v":0.09050000000000001,"d":"9.05%"}},{"$f":"Actif!$E$31/100","v":{"v":0.0605,"d":"6.05%"}},{"$f":"Actif!$E$32/100","v":{"v":0.47350000000000003,"d":"47.35%"}},{"$f":"Actif!$E$33/100","v":{"v":0.0585,"d":"5.85%"}},{"$f":"Actif!$E$29/100","v":{"v":0.027999999999999997,"d":"2.80%"}}]
[null,"#379",40,2030,"H","A_CAPI",{"v":0.44999999999999996,"d":"0.45"},{"v":0.38999999999999996,"d":"0.39"},0.6,0.6,85,0,{"$f":"ROUND(Primes!$Q$10*V8492,2)","v":0.13},0,{"v":3617.194486340221,"d":"3,617"},{"$f":"'BP Financier'!$G$44*(('BP Financier'!$C$22+'BP Financier'!$D$22+'BP Financier'!$E$22+'BP Financier'!$F$22+'BP Financier'!$G$22)/('BP Financier'!$C$16+'BP Financier'!$C$19+'BP Financier'!$D$16+'BP Financier'!$D$19+'BP Financier'!$E$16+'BP Financier'!$E$19+'BP Financier'!$C$22+'BP Financier'!$D$22+'BP Financier'!$E$22+'BP Financier'!$F$22+'BP Financier'!$F$16+'BP Financier'!$F$19+'BP Financier'!$G$16+'BP Financier'!$G$19+'BP Financier'!$G$22))*$V8492*X8492/(1-$W8492)","v":{"v":460.4164571220675,"d":"460"}},{"$f":"'BP Financier'!$G$44*(('BP Financier'!$C$22+'BP Financier'!$D$22+'BP Financier'!$E$22+'BP Financier'!$F$22+'BP Financier'!$G$22)/('BP Financier'!$C$16+'BP Financier'!$C$19+'BP Financier'!$D$16+'BP Financier'!$D$19+'BP Financier'!$E$16+'BP Financier'!$E$19+'BP Financier'!$C$22+'BP Financier'!$D$22+'BP Financier'!$E$22+'BP Financier'!$F$22+'BP Financier'!$F$16+'BP Financier'!$F$19+'BP Financier'!$G$16+'BP Financier'!$G$19+'BP Financier'!$G$22))*$V8492*Y8492/(1-$W8492)","v":{"v":307.7922171921004,"d":"308"}},{"$f":"'BP Financier'!$G$44*(('BP Financier'!$C$22+'BP Financier'!$D$22+'BP Financier'!$E$22+'BP Financier'!$F$22+'BP Financier'!$G$22)/('BP Financier'!$C$16+'BP Financier'!$C$19+'BP Financier'!$D$16+'BP Financier'!$D$19+'BP Financier'!$E$16+'BP Financier'!$E$19+'BP Financier'!$C$22+'BP Financier'!$D$22+'BP Financier'!$E$22+'BP Financier'!$F$22+'BP Financier'!$F$16+'BP Financier'!$F$19+'BP Financier'!$G$16+'BP Financier'!$G$19+'BP Financier'!$G$22))*$V8492*Z8492/(1-$W8492)","v":{"v":2408.9192535613147,"d":"2,409"}},{"$f":"'BP Financier'!$G$44*(('BP Financier'!$C$22+'BP Financier'!$D$22+'BP Financier'!$E$22+'BP Financier'!$F$22+'BP Financier'!$G$22)/('BP Financier'!$C$16+'BP Financier'!$C$19+'BP Financier'!$D$16+'BP Financier'!$D$19+'BP Financier'!$E$16+'BP Financier'!$E$19+'BP Financier'!$C$22+'BP Financier'!$D$22+'BP Financier'!$E$22+'BP Financier'!$F$22+'BP Financier'!$F$16+'BP Financier'!$F$19+'BP Financier'!$G$16+'BP Financier'!$G$19+'BP Financier'!$G$22))*$V8492*AA8492/(1-$W8492)","v":{"v":297.6172678634359,"d":"298"}},{"$f":"'BP Financier'!$G$44*(('BP Financier'!$C$22+'BP Financier'!$D$22+'BP Financier'!$E$22+'BP Financier'!$F$22+'BP Financier'!$G$22)/('BP Financier'!$C$16+'BP Financier'!$C$19+'BP Financier'!$D$16+'BP Financier'!$D$19+'BP Financier'!$E$16+'BP Financier'!$E$19+'BP Financier'!$C$22+'BP Financier'!$D$22+'BP Financier'!$E$22+'BP Financier'!$F$22+'BP Financier'!$F$16+'BP Financier'!$F$19+'BP Financier'!$G$16+'BP Financier'!$G$19+'BP Financier'!$G$22))*$V8492*AB8492/(1-$W8492)","v":{"v":142.44929060130264,"d":"142"}},null,{"v":1E-3,"d":"0.10%"},{"$f":"Actif!$E$28/100","v":{"v":0.28900000000000003,"d":"28.90%"}},{"$f":"Actif!$E$30/100","v":{"v":0.09050000000000001,"d":"9.05%"}},{"$f":"Actif!$E$31/100","v":{"v":0.0605,"d":"6.05%"}},{"$f":"Actif!$E$32/100","v":{"v":0.47350000000000003,"d":"47.35%"}},{"$f":"Actif!$E$33/100","v":{"v":0.0585,"d":"5.85%"}},{"$f":"Actif!$E$29/100","v":{"v":0.027999999999999997,"d":"2.80%"}}]
[null,"#380",40,2031,"H","A_CAPI",{"v":0.44999999999999996,"d":"0.45"},{"v":0.38999999999999996,"d":"0.39"},0.6,0.6,85,0,{"$f":"ROUND(Primes!$Q$10*V8493,2)","v":0.13},0,{"v":3617.194486340221,"d":"3,617"},{"$f":"'BP Financier'!$G$44*(('BP Financier'!$C$22+'BP Financier'!$D$22+'BP Financier'!$E$22+'BP Financier'!$F$22+'BP Financier'!$G$22)/('BP Financier'!$C$16+'BP Financier'!$C$19+'BP Financier'!$D$16+'BP Financier'!$D$19+'BP Financier'!$E$16+'BP Financier'!$E$19+'BP Financier'!$C$22+'BP Financier'!$D$22+'BP Financier'!$E$22+'BP Financier'!$F$22+'BP Financier'!$F$16+'BP Financier'!$F$19+'BP Financier'!$G$16+'BP Financier'!$G$19+'BP Financier'!$G$22))*$V8493*X8493/(1-$W8493)","v":{"v":460.4164571220675,"d":"460"}},{"$f":"'BP Financier'!$G$44*(('BP Financier'!$C$22+'BP Financier'!$D$22+'BP Financier'!$E$22+'BP Financier'!$F$22+'BP Financier'!$G$22)/('BP Financier'!$C$16+'BP Financier'!$C$19+'BP Financier'!$D$16+'BP Financier'!$D$19+'BP Financier'!$E$16+'BP Financier'!$E$19+'BP Financier'!$C$22+'BP Financier'!$D$22+'BP Financier'!$E$22+'BP Financier'!$F$22+'BP Financier'!$F$16+'BP Financier'!$F$19+'BP Financier'!$G$16+'BP Financier'!$G$19+'BP Financier'!$G$22))*$V8493*Y8493/(1-$W8493)","v":{"v":307.7922171921004,"d":"308"}},{"$f":"'BP Financier'!$G$44*(('BP Financier'!$C$22+'BP Financier'!$D$22+'BP Financier'!$E$22+'BP Financier'!$F$22+'BP Financier'!$G$22)/('BP Financier'!$C$16+'BP Financier'!$C$19+'BP Financier'!$D$16+'BP Financier'!$D$19+'BP Financier'!$E$16+'BP Financier'!$E$19+'BP Financier'!$C$22+'BP Financier'!$D$22+'BP Financier'!$E$22+'BP Financier'!$F$22+'BP Financier'!$F$16+'BP Financier'!$F$19+'BP Financier'!$G$16+'BP Financier'!$G$19+'BP Financier'!$G$22))*$V8493*Z8493/(1-$W8493)","v":{"v":2408.9192535613147,"d":"2,409"}},{"$f":"'BP Financier'!$G$44*(('BP Financier'!$C$22+'BP Financier'!$D$22+'BP Financier'!$E$22+'BP Financier'!$F$22+'BP Financier'!$G$22)/('BP Financier'!$C$16+'BP Financier'!$C$19+'BP Financier'!$D$16+'BP Financier'!$D$19+'BP Financier'!$E$16+'BP Financier'!$E$19+'BP Financier'!$C$22+'BP Financier'!$D$22+'BP Financier'!$E$22+'BP Financier'!$F$22+'BP Financier'!$F$16+'BP Financier'!$F$19+'BP Financier'!$G$16+'BP Financier'!$G$19+'BP Financier'!$G$22))*$V8493*AA8493/(1-$W8493)","v":{"v":297.6172678634359,"d":"298"}},{"$f":"'BP Financier'!$G$44*(('BP Financier'!$C$22+'BP Financier'!$D$22+'BP Financier'!$E$22+'BP Financier'!$F$22+'BP Financier'!$G$22)/('BP Financier'!$C$16+'BP Financier'!$C$19+'BP Financier'!$D$16+'BP Financier'!$D$19+'BP Financier'!$E$16+'BP Financier'!$E$19+'BP Financier'!$C$22+'BP Financier'!$D$22+'BP Financier'!$E$22+'BP Financier'!$F$22+'BP Financier'!$F$16+'BP Financier'!$F$19+'BP Financier'!$G$16+'BP Financier'!$G$19+'BP Financier'!$G$22))*$V8493*AB8493/(1-$W8493)","v":{"v":142.44929060130264,"d":"142"}},null,{"v":1E-3,"d":"0.10%"},{"$f":"Actif!$E$28/100","v":{"v":0.28900000000000003,"d":"28.90%"}},{"$f":"Actif!$E$30/100","v":{"v":0.09050000000000001,"d":"9.05%"}},{"$f":"Actif!$E$31/100","v":{"v":0.0605,"d":"6.05%"}},{"$f":"Actif!$E$32/100","v":{"v":0.47350000000000003,"d":"47.35%"}},{"$f":"Actif!$E$33/100","v":{"v":0.0585,"d":"5.85%"}},{"$f":"Actif!$E$29/100","v":{"v":0.027999999999999997,"d":"2.80%"}}]
[null,"#381",41,2026,"F","A_CAPI",{"v":0.44999999999999996,"d":"0.45"},{"v":0.38999999999999996,"d":"0.39"},0.6,0.6,85,0,{"$f":"ROUND(Primes!$Q$10*V8494,2)","v":0.13},0,{"v":3617.194486340221,"d":"3,617"},{"$f":"'BP Financier'!$G$44*(('BP Financier'!$C$22+'BP Financier'!$D$22+'BP Financier'!$E$22+'BP Financier'!$F$22+'BP Financier'!$G$22)/('BP Financier'!$C$16+'BP Financier'!$C$19+'BP Financier'!$D$16+'BP Financier'!$D$19+'BP Financier'!$E$16+'BP Financier'!$E$19+'BP Financier'!$C$22+'BP Financier'!$D$22+'BP Financier'!$E$22+'BP Financier'!$F$22+'BP Financier'!$F$16+'BP Financier'!$F$19+'BP Financier'!$G$16+'BP Financier'!$G$19+'BP Financier'!$G$22))*$V8494*X8494/(1-$W8494)","v":{"v":460.4164571220675,"d":"460"}},{"$f":"'BP Financier'!$G$44*(('BP Financier'!$C$22+'BP Financier'!$D$22+'BP Financier'!$E$22+'BP Financier'!$F$22+'BP Financier'!$G$22)/('BP Financier'!$C$16+'BP Financier'!$C$19+'BP Financier'!$D$16+'BP Financier'!$D$19+'BP Financier'!$E$16+'BP Financier'!$E$19+'BP Financier'!$C$22+'BP Financier'!$D$22+'BP Financier'!$E$22+'BP Financier'!$F$22+'BP Financier'!$F$16+'BP Financier'!$F$19+'BP Financier'!$G$16+'BP Financier'!$G$19+'BP Financier'!$G$22))*$V8494*Y8494/(1-$W8494)","v":{"v":307.7922171921004,"d":"308"}},{"$f":"'BP Financier'!$G$44*(('BP Financier'!$C$22+'BP Financier'!$D$22+'BP Financier'!$E$22+'BP Financier'!$F$22+'BP Financier'!$G$22)/('BP Financier'!$C$16+'BP Financier'!$C$19+'BP Financier'!$D$16+'BP Financier'!$D$19+'BP Financier'!$E$16+'BP Financier'!$E$19+'BP Financier'!$C$22+'BP Financier'!$D$22+'BP Financier'!$E$22+'BP Financier'!$F$22+'BP Financier'!$F$16+'BP Financier'!$F$19+'BP Financier'!$G$16+'BP Financier'!$G$19+'BP Financier'!$G$22))*$V8494*Z8494/(1-$W8494)","v":{"v":2408.9192535613147,"d":"2,409"}},{"$f":"'BP Financier'!$G$44*(('BP Financier'!$C$22+'BP Financier'!$D$22+'BP Financier'!$E$22+'BP Financier'!$F$22+'BP Financier'!$G$22)/('BP Financier'!$C$16+'BP Financier'!$C$19+'BP Financier'!$D$16+'BP Financier'!$D$19+'BP Financier'!$E$16+'BP Financier'!$E$19+'BP Financier'!$C$22+'BP Financier'!$D$22+'BP Financier'!$E$22+'BP Financier'!$F$22+'BP Financier'!$F$16+'BP Financier'!$F$19+'BP Financier'!$G$16+'BP Financier'!$G$19+'BP Financier'!$G$22))*$V8494*AA8494/(1-$W8494)","v":{"v":297.6172678634359,"d":"298"}},{"$f":"'BP Financier'!$G$44*(('BP Financier'!$C$22+'BP Financier'!$D$22+'BP Financier'!$E$22+'BP Financier'!$F$22+'BP Financier'!$G$22)/('BP Financier'!$C$16+'BP Financier'!$C$19+'BP Financier'!$D$16+'BP Financier'!$D$19+'BP Financier'!$E$16+'BP Financier'!$E$19+'BP Financier'!$C$22+'BP Financier'!$D$22+'BP Financier'!$E$22+'BP Financier'!$F$22+'BP Financier'!$F$16+'BP Financier'!$F$19+'BP Financier'!$G$16+'BP Financier'!$G$19+'BP Financier'!$G$22))*$V8494*AB8494/(1-$W8494)","v":{"v":142.44929060130264,"d":"142"}},null,{"v":1E-3,"d":"0.10%"},{"$f":"Actif!$E$28/100","v":{"v":0.28900000000000003,"d":"28.90%"}},{"$f":"Actif!$E$30/100","v":{"v":0.09050000000000001,"d":"9.05%"}},{"$f":"Actif!$E$31/100","v":{"v":0.0605,"d":"6.05%"}},{"$f":"Actif!$E$32/100","v":{"v":0.47350000000000003,"d":"47.35%"}},{"$f":"Actif!$E$33/100","v":{"v":0.0585,"d":"5.85%"}},{"$f":"Actif!$E$29/100","v":{"v":0.027999999999999997,"d":"2.80%"}}]
[null,"#382",41,2028,"F","A_CAPI",{"v":0.44999999999999996,"d":"0.45"},{"v":0.38999999999999996,"d":"0.39"},0.6,0.6,85,0,{"$f":"ROUND(Primes!$Q$10*V8495,2)","v":0.13},0,{"v":3617.194486340221,"d":"3,617"},{"$f":"'BP Financier'!$G$44*(('BP Financier'!$C$22+'BP Financier'!$D$22+'BP Financier'!$E$22+'BP Financier'!$F$22+'BP Financier'!$G$22)/('BP Financier'!$C$16+'BP Financier'!$C$19+'BP Financier'!$D$16+'BP Financier'!$D$19+'BP Financier'!$E$16+'BP Financier'!$E$19+'BP Financier'!$C$22+'BP Financier'!$D$22+'BP Financier'!$E$22+'BP Financier'!$F$22+'BP Financier'!$F$16+'BP Financier'!$F$19+'BP Financier'!$G$16+'BP Financier'!$G$19+'BP Financier'!$G$22))*$V8495*X8495/(1-$W8495)","v":{"v":460.4164571220675,"d":"460"}},{"$f":"'BP Financier'!$G$44*(('BP Financier'!$C$22+'BP Financier'!$D$22+'BP Financier'!$E$22+'BP Financier'!$F$22+'BP Financier'!$G$22)/('BP Financier'!$C$16+'BP Financier'!$C$19+'BP Financier'!$D$16+'BP Financier'!$D$19+'BP Financier'!$E$16+'BP Financier'!$E$19+'BP Financier'!$C$22+'BP Financier'!$D$22+'BP Financier'!$E$22+'BP Financier'!$F$22+'BP Financier'!$F$16+'BP Financier'!$F$19+'BP Financier'!$G$16+'BP Financier'!$G$19+'BP Financier'!$G$22))*$V8495*Y8495/(1-$W8495)","v":{"v":307.7922171921004,"d":"308"}},{"$f":"'BP Financier'!$G$44*(('BP Financier'!$C$22+'BP Financier'!$D$22+'BP Financier'!$E$22+'BP Financier'!$F$22+'BP Financier'!$G$22)/('BP Financier'!$C$16+'BP Financier'!$C$19+'BP Financier'!$D$16+'BP Financier'!$D$19+'BP Financier'!$E$16+'BP Financier'!$E$19+'BP Financier'!$C$22+'BP Financier'!$D$22+'BP Financier'!$E$22+'BP Financier'!$F$22+'BP Financier'!$F$16+'BP Financier'!$F$19+'BP Financier'!$G$16+'BP Financier'!$G$19+'BP Financier'!$G$22))*$V8495*Z8495/(1-$W8495)","v":{"v":2408.9192535613147,"d":"2,409"}},{"$f":"'BP Financier'!$G$44*(('BP Financier'!$C$22+'BP Financier'!$D$22+'BP Financier'!$E$22+'BP Financier'!$F$22+'BP Financier'!$G$22)/('BP Financier'!$C$16+'BP Financier'!$C$19+'BP Financier'!$D$16+'BP Financier'!$D$19+'BP Financier'!$E$16+'BP Financier'!$E$19+'BP Financier'!$C$22+'BP Financier'!$D$22+'BP Financier'!$E$22+'BP Financier'!$F$22+'BP Financier'!$F$16+'BP Financier'!$F$19+'BP Financier'!$G$16+'BP Financier'!$G$19+'BP Financier'!$G$22))*$V8495*AA8495/(1-$W8495)","v":{"v":297.6172678634359,"d":"298"}},{"$f":"'BP Financier'!$G$44*(('BP Financier'!$C$22+'BP Financier'!$D$22+'BP Financier'!$E$22+'BP Financier'!$F$22+'BP Financier'!$G$22)/('BP Financier'!$C$16+'BP Financier'!$C$19+'BP Financier'!$D$16+'BP Financier'!$D$19+'BP Financier'!$E$16+'BP Financier'!$E$19+'BP Financier'!$C$22+'BP Financier'!$D$22+'BP Financier'!$E$22+'BP Financier'!$F$22+'BP Financier'!$F$16+'BP Financier'!$F$19+'BP Financier'!$G$16+'BP Financier'!$G$19+'BP Financier'!$G$22))*$V8495*AB8495/(1-$W8495)","v":{"v":142.44929060130264,"d":"142"}},null,{"v":1E-3,"d":"0.10%"},{"$f":"Actif!$E$28/100","v":{"v":0.28900000000000003,"d":"28.90%"}},{"$f":"Actif!$E$30/100","v":{"v":0.09050000000000001,"d":"9.05%"}},{"$f":"Actif!$E$31/100","v":{"v":0.0605,"d":"6.05%"}},{"$f":"Actif!$E$32/100","v":{"v":0.47350000000000003,"d":"47.35%"}},{"$f":"Actif!$E$33/100","v":{"v":0.0585,"d":"5.85%"}},{"$f":"Actif!$E$29/100","v":{"v":0.027999999999999997,"d":"2.80%"}}]
[null,"#383",41,2029,"F","A_CAPI",{"v":0.44999999999999996,"d":"0.45"},{"v":0.38999999999999996,"d":"0.39"},0.6,0.6,85,0,{"$f":"ROUND(Primes!$Q$10*V8496,2)","v":0.13},0,{"v":3617.194486340221,"d":"3,617"},{"$f":"'BP Financier'!$G$44*(('BP Financier'!$C$22+'BP Financier'!$D$22+'BP Financier'!$E$22+'BP Financier'!$F$22+'BP Financier'!$G$22)/('BP Financier'!$C$16+'BP Financier'!$C$19+'BP Financier'!$D$16+'BP Financier'!$D$19+'BP Financier'!$E$16+'BP Financier'!$E$19+'BP Financier'!$C$22+'BP Financier'!$D$22+'BP Financier'!$E$22+'BP Financier'!$F$22+'BP Financier'!$F$16+'BP Financier'!$F$19+'BP Financier'!$G$16+'BP Financier'!$G$19+'BP Financier'!$G$22))*$V8496*X8496/(1-$W8496)","v":{"v":460.4164571220675,"d":"460"}},{"$f":"'BP Financier'!$G$44*(('BP Financier'!$C$22+'BP Financier'!$D$22+'BP Financier'!$E$22+'BP Financier'!$F$22+'BP Financier'!$G$22)/('BP Financier'!$C$16+'BP Financier'!$C$19+'BP Financier'!$D$16+'BP Financier'!$D$19+'BP Financier'!$E$16+'BP Financier'!$E$19+'BP Financier'!$C$22+'BP Financier'!$D$22+'BP Financier'!$E$22+'BP Financier'!$F$22+'BP Financier'!$F$16+'BP Financier'!$F$19+'BP Financier'!$G$16+'BP Financier'!$G$19+'BP Financier'!$G$22))*$V8496*Y8496/(1-$W8496)","v":{"v":307.7922171921004,"d":"308"}},{"$f":"'BP Financier'!$G$44*(('BP Financier'!$C$22+'BP Financier'!$D$22+'BP Financier'!$E$22+'BP Financier'!$F$22+'BP Financier'!$G$22)/('BP Financier'!$C$16+'BP Financier'!$C$19+'BP Financier'!$D$16+'BP Financier'!$D$19+'BP Financier'!$E$16+'BP Financier'!$E$19+'BP Financier'!$C$22+'BP Financier'!$D$22+'BP Financier'!$E$22+'BP Financier'!$F$22+'BP Financier'!$F$16+'BP Financier'!$F$19+'BP Financier'!$G$16+'BP Financier'!$G$19+'BP Financier'!$G$22))*$V8496*Z8496/(1-$W8496)","v":{"v":2408.9192535613147,"d":"2,409"}},{"$f":"'BP Financier'!$G$44*(('BP Financier'!$C$22+'BP Financier'!$D$22+'BP Financier'!$E$22+'BP Financier'!$F$22+'BP Financier'!$G$22)/('BP Financier'!$C$16+'BP Financier'!$C$19+'BP Financier'!$D$16+'BP Financier'!$D$19+'BP Financier'!$E$16+'BP Financier'!$E$19+'BP Financier'!$C$22+'BP Financier'!$D$22+'BP Financier'!$E$22+'BP Financier'!$F$22+'BP Financier'!$F$16+'BP Financier'!$F$19+'BP Financier'!$G$16+'BP Financier'!$G$19+'BP Financier'!$G$22))*$V8496*AA8496/(1-$W8496)","v":{"v":297.6172678634359,"d":"298"}},{"$f":"'BP Financier'!$G$44*(('BP Financier'!$C$22+'BP Financier'!$D$22+'BP Financier'!$E$22+'BP Financier'!$F$22+'BP Financier'!$G$22)/('BP Financier'!$C$16+'BP Financier'!$C$19+'BP Financier'!$D$16+'BP Financier'!$D$19+'BP Financier'!$E$16+'BP Financier'!$E$19+'BP Financier'!$C$22+'BP Financier'!$D$22+'BP Financier'!$E$22+'BP Financier'!$F$22+'BP Financier'!$F$16+'BP Financier'!$F$19+'BP Financier'!$G$16+'BP Financier'!$G$19+'BP Financier'!$G$22))*$V8496*AB8496/(1-$W8496)","v":{"v":142.44929060130264,"d":"142"}},null,{"v":1E-3,"d":"0.10%"},{"$f":"Actif!$E$28/100","v":{"v":0.28900000000000003,"d":"28.90%"}},{"$f":"Actif!$E$30/100","v":{"v":0.09050000000000001,"d":"9.05%"}},{"$f":"Actif!$E$31/100","v":{"v":0.0605,"d":"6.05%"}},{"$f":"Actif!$E$32/100","v":{"v":0.47350000000000003,"d":"47.35%"}},{"$f":"Actif!$E$33/100","v":{"v":0.0585,"d":"5.85%"}},{"$f":"Actif!$E$29/100","v":{"v":0.027999999999999997,"d":"2.80%"}}]
[null,"#384",41,2030,"F","A_CAPI",{"v":0.44999999999999996,"d":"0.45"},{"v":0.38999999999999996,"d":"0.39"},0.6,0.6,85,0,{"$f":"ROUND(Primes!$Q$10*V8497,2)","v":0.13},0,{"v":3617.194486340221,"d":"3,617"},{"$f":"'BP Financier'!$G$44*(('BP Financier'!$C$22+'BP Financier'!$D$22+'BP Financier'!$E$22+'BP Financier'!$F$22+'BP Financier'!$G$22)/('BP Financier'!$C$16+'BP Financier'!$C$19+'BP Financier'!$D$16+'BP Financier'!$D$19+'BP Financier'!$E$16+'BP Financier'!$E$19+'BP Financier'!$C$22+'BP Financier'!$D$22+'BP Financier'!$E$22+'BP Financier'!$F$22+'BP Financier'!$F$16+'BP Financier'!$F$19+'BP Financier'!$G$16+'BP Financier'!$G$19+'BP Financier'!$G$22))*$V8497*X8497/(1-$W8497)","v":{"v":460.4164571220675,"d":"460"}},{"$f":"'BP Financier'!$G$44*(('BP Financier'!$C$22+'BP Financier'!$D$22+'BP Financier'!$E$22+'BP Financier'!$F$22+'BP Financier'!$G$22)/('BP Financier'!$C$16+'BP Financier'!$C$19+'BP Financier'!$D$16+'BP Financier'!$D$19+'BP Financier'!$E$16+'BP Financier'!$E$19+'BP Financier'!$C$22+'BP Financier'!$D$22+'BP Financier'!$E$22+'BP Financier'!$F$22+'BP Financier'!$F$16+'BP Financier'!$F$19+'BP Financier'!$G$16+'BP Financier'!$G$19+'BP Financier'!$G$22))*$V8497*Y8497/(1-$W8497)","v":{"v":307.7922171921004,"d":"308"}},{"$f":"'BP Financier'!$G$44*(('BP Financier'!$C$22+'BP Financier'!$D$22+'BP Financier'!$E$22+'BP Financier'!$F$22+'BP Financier'!$G$22)/('BP Financier'!$C$16+'BP Financier'!$C$19+'BP Financier'!$D$16+'BP Financier'!$D$19+'BP Financier'!$E$16+'BP Financier'!$E$19+'BP Financier'!$C$22+'BP Financier'!$D$22+'BP Financier'!$E$22+'BP Financier'!$F$22+'BP Financier'!$F$16+'BP Financier'!$F$19+'BP Financier'!$G$16+'BP Financier'!$G$19+'BP Financier'!$G$22))*$V8497*Z8497/(1-$W8497)","v":{"v":2408.9192535613147,"d":"2,409"}},{"$f":"'BP Financier'!$G$44*(('BP Financier'!$C$22+'BP Financier'!$D$22+'BP Financier'!$E$22+'BP Financier'!$F$22+'BP Financier'!$G$22)/('BP Financier'!$C$16+'BP Financier'!$C$19+'BP Financier'!$D$16+'BP Financier'!$D$19+'BP Financier'!$E$16+'BP Financier'!$E$19+'BP Financier'!$C$22+'BP Financier'!$D$22+'BP Financier'!$E$22+'BP Financier'!$F$22+'BP Financier'!$F$16+'BP Financier'!$F$19+'BP Financier'!$G$16+'BP Financier'!$G$19+'BP Financier'!$G$22))*$V8497*AA8497/(1-$W8497)","v":{"v":297.6172678634359,"d":"298"}},{"$f":"'BP Financier'!$G$44*(('BP Financier'!$C$22+'BP Financier'!$D$22+'BP Financier'!$E$22+'BP Financier'!$F$22+'BP Financier'!$G$22)/('BP Financier'!$C$16+'BP Financier'!$C$19+'BP Financier'!$D$16+'BP Financier'!$D$19+'BP Financier'!$E$16+'BP Financier'!$E$19+'BP Financier'!$C$22+'BP Financier'!$D$22+'BP Financier'!$E$22+'BP Financier'!$F$22+'BP Financier'!$F$16+'BP Financier'!$F$19+'BP Financier'!$G$16+'BP Financier'!$G$19+'BP Financier'!$G$22))*$V8497*AB8497/(1-$W8497)","v":{"v":142.44929060130264,"d":"142"}},null,{"v":1E-3,"d":"0.10%"},{"$f":"Actif!$E$28/100","v":{"v":0.28900000000000003,"d":"28.90%"}},{"$f":"Actif!$E$30/100","v":{"v":0.09050000000000001,"d":"9.05%"}},{"$f":"Actif!$E$31/100","v":{"v":0.0605,"d":"6.05%"}},{"$f":"Actif!$E$32/100","v":{"v":0.47350000000000003,"d":"47.35%"}},{"$f":"Actif!$E$33/100","v":{"v":0.0585,"d":"5.85%"}},{"$f":"Actif!$E$29/100","v":{"v":0.027999999999999997,"d":"2.80%"}}]
[null,"#385",41,2031,"F","A_CAPI",{"v":0.44999999999999996,"d":"0.45"},{"v":0.38999999999999996,"d":"0.39"},0.6,0.6,85,0,{"$f":"ROUND(Primes!$Q$10*V8498,2)","v":0.13},0,{"v":3617.194486340221,"d":"3,617"},{"$f":"'BP Financier'!$G$44*(('BP Financier'!$C$22+'BP Financier'!$D$22+'BP Financier'!$E$22+'BP Financier'!$F$22+'BP Financier'!$G$22)/('BP Financier'!$C$16+'BP Financier'!$C$19+'BP Financier'!$D$16+'BP Financier'!$D$19+'BP Financier'!$E$16+'BP Financier'!$E$19+'BP Financier'!$C$22+'BP Financier'!$D$22+'BP Financier'!$E$22+'BP Financier'!$F$22+'BP Financier'!$F$16+'BP Financier'!$F$19+'BP Financier'!$G$16+'BP Financier'!$G$19+'BP Financier'!$G$22))*$V8498*X8498/(1-$W8498)","v":{"v":460.4164571220675,"d":"460"}},{"$f":"'BP Financier'!$G$44*(('BP Financier'!$C$22+'BP Financier'!$D$22+'BP Financier'!$E$22+'BP Financier'!$F$22+'BP Financier'!$G$22)/('BP Financier'!$C$16+'BP Financier'!$C$19+'BP Financier'!$D$16+'BP Financier'!$D$19+'BP Financier'!$E$16+'BP Financier'!$E$19+'BP Financier'!$C$22+'BP Financier'!$D$22+'BP Financier'!$E$22+'BP Financier'!$F$22+'BP Financier'!$F$16+'BP Financier'!$F$19+'BP Financier'!$G$16+'BP Financier'!$G$19+'BP Financier'!$G$22))*$V8498*Y8498/(1-$W8498)","v":{"v":307.7922171921004,"d":"308"}},{"$f":"'BP Financier'!$G$44*(('BP Financier'!$C$22+'BP Financier'!$D$22+'BP Financier'!$E$22+'BP Financier'!$F$22+'BP Financier'!$G$22)/('BP Financier'!$C$16+'BP Financier'!$C$19+'BP Financier'!$D$16+'BP Financier'!$D$19+'BP Financier'!$E$16+'BP Financier'!$E$19+'BP Financier'!$C$22+'BP Financier'!$D$22+'BP Financier'!$E$22+'BP Financier'!$F$22+'BP Financier'!$F$16+'BP Financier'!$F$19+'BP Financier'!$G$16+'BP Financier'!$G$19+'BP Financier'!$G$22))*$V8498*Z8498/(1-$W8498)","v":{"v":2408.9192535613147,"d":"2,409"}},{"$f":"'BP Financier'!$G$44*(('BP Financier'!$C$22+'BP Financier'!$D$22+'BP Financier'!$E$22+'BP Financier'!$F$22+'BP Financier'!$G$22)/('BP Financier'!$C$16+'BP Financier'!$C$19+'BP Financier'!$D$16+'BP Financier'!$D$19+'BP Financier'!$E$16+'BP Financier'!$E$19+'BP Financier'!$C$22+'BP Financier'!$D$22+'BP Financier'!$E$22+'BP Financier'!$F$22+'BP Financier'!$F$16+'BP Financier'!$F$19+'BP Financier'!$G$16+'BP Financier'!$G$19+'BP Financier'!$G$22))*$V8498*AA8498/(1-$W8498)","v":{"v":297.6172678634359,"d":"298"}},{"$f":"'BP Financier'!$G$44*(('BP Financier'!$C$22+'BP Financier'!$D$22+'BP Financier'!$E$22+'BP Financier'!$F$22+'BP Financier'!$G$22)/('BP Financier'!$C$16+'BP Financier'!$C$19+'BP Financier'!$D$16+'BP Financier'!$D$19+'BP Financier'!$E$16+'BP Financier'!$E$19+'BP Financier'!$C$22+'BP Financier'!$D$22+'BP Financier'!$E$22+'BP Financier'!$F$22+'BP Financier'!$F$16+'BP Financier'!$F$19+'BP Financier'!$G$16+'BP Financier'!$G$19+'BP Financier'!$G$22))*$V8498*AB8498/(1-$W8498)","v":{"v":142.44929060130264,"d":"142"}},null,{"v":1E-3,"d":"0.10%"},{"$f":"Actif!$E$28/100","v":{"v":0.28900000000000003,"d":"28.90%"}},{"$f":"Actif!$E$30/100","v":{"v":0.09050000000000001,"d":"9.05%"}},{"$f":"Actif!$E$31/100","v":{"v":0.0605,"d":"6.05%"}},{"$f":"Actif!$E$32/100","v":{"v":0.47350000000000003,"d":"47.35%"}},{"$f":"Actif!$E$33/100","v":{"v":0.0585,"d":"5.85%"}},{"$f":"Actif!$E$29/100","v":{"v":0.027999999999999997,"d":"2.80%"}}]
[null,"#386",42,2026,"H","A_CAPI",{"v":0.44999999999999996,"d":"0.45"},{"v":0.38999999999999996,"d":"0.39"},0.6,0.6,85,0,{"$f":"ROUND(Primes!$Q$10*V8499,2)","v":0.13},0,{"v":3617.194486340221,"d":"3,617"},{"$f":"'BP Financier'!$G$44*(('BP Financier'!$C$22+'BP Financier'!$D$22+'BP Financier'!$E$22+'BP Financier'!$F$22+'BP Financier'!$G$22)/('BP Financier'!$C$16+'BP Financier'!$C$19+'BP Financier'!$D$16+'BP Financier'!$D$19+'BP Financier'!$E$16+'BP Financier'!$E$19+'BP Financier'!$C$22+'BP Financier'!$D$22+'BP Financier'!$E$22+'BP Financier'!$F$22+'BP Financier'!$F$16+'BP Financier'!$F$19+'BP Financier'!$G$16+'BP Financier'!$G$19+'BP Financier'!$G$22))*$V8499*X8499/(1-$W8499)","v":{"v":460.4164571220675,"d":"460"}},{"$f":"'BP Financier'!$G$44*(('BP Financier'!$C$22+'BP Financier'!$D$22+'BP Financier'!$E$22+'BP Financier'!$F$22+'BP Financier'!$G$22)/('BP Financier'!$C$16+'BP Financier'!$C$19+'BP Financier'!$D$16+'BP Financier'!$D$19+'BP Financier'!$E$16+'BP Financier'!$E$19+'BP Financier'!$C$22+'BP Financier'!$D$22+'BP Financier'!$E$22+'BP Financier'!$F$22+'BP Financier'!$F$16+'BP Financier'!$F$19+'BP Financier'!$G$16+'BP Financier'!$G$19+'BP Financier'!$G$22))*$V8499*Y8499/(1-$W8499)","v":{"v":307.7922171921004,"d":"308"}},{"$f":"'BP Financier'!$G$44*(('BP Financier'!$C$22+'BP Financier'!$D$22+'BP Financier'!$E$22+'BP Financier'!$F$22+'BP Financier'!$G$22)/('BP Financier'!$C$16+'BP Financier'!$C$19+'BP Financier'!$D$16+'BP Financier'!$D$19+'BP Financier'!$E$16+'BP Financier'!$E$19+'BP Financier'!$C$22+'BP Financier'!$D$22+'BP Financier'!$E$22+'BP Financier'!$F$22+'BP Financier'!$F$16+'BP Financier'!$F$19+'BP Financier'!$G$16+'BP Financier'!$G$19+'BP Financier'!$G$22))*$V8499*Z8499/(1-$W8499)","v":{"v":2408.9192535613147,"d":"2,409"}},{"$f":"'BP Financier'!$G$44*(('BP Financier'!$C$22+'BP Financier'!$D$22+'BP Financier'!$E$22+'BP Financier'!$F$22+'BP Financier'!$G$22)/('BP Financier'!$C$16+'BP Financier'!$C$19+'BP Financier'!$D$16+'BP Financier'!$D$19+'BP Financier'!$E$16+'BP Financier'!$E$19+'BP Financier'!$C$22+'BP Financier'!$D$22+'BP Financier'!$E$22+'BP Financier'!$F$22+'BP Financier'!$F$16+'BP Financier'!$F$19+'BP Financier'!$G$16+'BP Financier'!$G$19+'BP Financier'!$G$22))*$V8499*AA8499/(1-$W8499)","v":{"v":297.6172678634359,"d":"298"}},{"$f":"'BP Financier'!$G$44*(('BP Financier'!$C$22+'BP Financier'!$D$22+'BP Financier'!$E$22+'BP Financier'!$F$22+'BP Financier'!$G$22)/('BP Financier'!$C$16+'BP Financier'!$C$19+'BP Financier'!$D$16+'BP Financier'!$D$19+'BP Financier'!$E$16+'BP Financier'!$E$19+'BP Financier'!$C$22+'BP Financier'!$D$22+'BP Financier'!$E$22+'BP Financier'!$F$22+'BP Financier'!$F$16+'BP Financier'!$F$19+'BP Financier'!$G$16+'BP Financier'!$G$19+'BP Financier'!$G$22))*$V8499*AB8499/(1-$W8499)","v":{"v":142.44929060130264,"d":"142"}},null,{"v":1E-3,"d":"0.10%"},{"$f":"Actif!$E$28/100","v":{"v":0.28900000000000003,"d":"28.90%"}},{"$f":"Actif!$E$30/100","v":{"v":0.09050000000000001,"d":"9.05%"}},{"$f":"Actif!$E$31/100","v":{"v":0.0605,"d":"6.05%"}},{"$f":"Actif!$E$32/100","v":{"v":0.47350000000000003,"d":"47.35%"}},{"$f":"Actif!$E$33/100","v":{"v":0.0585,"d":"5.85%"}},{"$f":"Actif!$E$29/100","v":{"v":0.027999999999999997,"d":"2.80%"}}]
[null,"#387",42,2028,"H","A_CAPI",{"v":0.44999999999999996,"d":"0.45"},{"v":0.38999999999999996,"d":"0.39"},0.6,0.6,85,0,{"$f":"ROUND(Primes!$Q$10*V8500,2)","v":0.13},0,{"v":3617.194486340221,"d":"3,617"},{"$f":"'BP Financier'!$G$44*(('BP Financier'!$C$22+'BP Financier'!$D$22+'BP Financier'!$E$22+'BP Financier'!$F$22+'BP Financier'!$G$22)/('BP Financier'!$C$16+'BP Financier'!$C$19+'BP Financier'!$D$16+'BP Financier'!$D$19+'BP Financier'!$E$16+'BP Financier'!$E$19+'BP Financier'!$C$22+'BP Financier'!$D$22+'BP Financier'!$E$22+'BP Financier'!$F$22+'BP Financier'!$F$16+'BP Financier'!$F$19+'BP Financier'!$G$16+'BP Financier'!$G$19+'BP Financier'!$G$22))*$V8500*X8500/(1-$W8500)","v":{"v":460.4164571220675,"d":"460"}},{"$f":"'BP Financier'!$G$44*(('BP Financier'!$C$22+'BP Financier'!$D$22+'BP Financier'!$E$22+'BP Financier'!$F$22+'BP Financier'!$G$22)/('BP Financier'!$C$16+'BP Financier'!$C$19+'BP Financier'!$D$16+'BP Financier'!$D$19+'BP Financier'!$E$16+'BP Financier'!$E$19+'BP Financier'!$C$22+'BP Financier'!$D$22+'BP Financier'!$E$22+'BP Financier'!$F$22+'BP Financier'!$F$16+'BP Financier'!$F$19+'BP Financier'!$G$16+'BP Financier'!$G$19+'BP Financier'!$G$22))*$V8500*Y8500/(1-$W8500)","v":{"v":307.7922171921004,"d":"308"}},{"$f":"'BP Financier'!$G$44*(('BP Financier'!$C$22+'BP Financier'!$D$22+'BP Financier'!$E$22+'BP Financier'!$F$22+'BP Financier'!$G$22)/('BP Financier'!$C$16+'BP Financier'!$C$19+'BP Financier'!$D$16+'BP Financier'!$D$19+'BP Financier'!$E$16+'BP Financier'!$E$19+'BP Financier'!$C$22+'BP Financier'!$D$22+'BP Financier'!$E$22+'BP Financier'!$F$22+'BP Financier'!$F$16+'BP Financier'!$F$19+'BP Financier'!$G$16+'BP Financier'!$G$19+'BP Financier'!$G$22))*$V8500*Z8500/(1-$W8500)","v":{"v":2408.9192535613147,"d":"2,409"}},{"$f":"'BP Financier'!$G$44*(('BP Financier'!$C$22+'BP Financier'!$D$22+'BP Financier'!$E$22+'BP Financier'!$F$22+'BP Financier'!$G$22)/('BP Financier'!$C$16+'BP Financier'!$C$19+'BP Financier'!$D$16+'BP Financier'!$D$19+'BP Financier'!$E$16+'BP Financier'!$E$19+'BP Financier'!$C$22+'BP Financier'!$D$22+'BP Financier'!$E$22+'BP Financier'!$F$22+'BP Financier'!$F$16+'BP Financier'!$F$19+'BP Financier'!$G$16+'BP Financier'!$G$19+'BP Financier'!$G$22))*$V8500*AA8500/(1-$W8500)","v":{"v":297.6172678634359,"d":"298"}},{"$f":"'BP Financier'!$G$44*(('BP Financier'!$C$22+'BP Financier'!$D$22+'BP Financier'!$E$22+'BP Financier'!$F$22+'BP Financier'!$G$22)/('BP Financier'!$C$16+'BP Financier'!$C$19+'BP Financier'!$D$16+'BP Financier'!$D$19+'BP Financier'!$E$16+'BP Financier'!$E$19+'BP Financier'!$C$22+'BP Financier'!$D$22+'BP Financier'!$E$22+'BP Financier'!$F$22+'BP Financier'!$F$16+'BP Financier'!$F$19+'BP Financier'!$G$16+'BP Financier'!$G$19+'BP Financier'!$G$22))*$V8500*AB8500/(1-$W8500)","v":{"v":142.44929060130264,"d":"142"}},null,{"v":1E-3,"d":"0.10%"},{"$f":"Actif!$E$28/100","v":{"v":0.28900000000000003,"d":"28.90%"}},{"$f":"Actif!$E$30/100","v":{"v":0.09050000000000001,"d":"9.05%"}},{"$f":"Actif!$E$31/100","v":{"v":0.0605,"d":"6.05%"}},{"$f":"Actif!$E$32/100","v":{"v":0.47350000000000003,"d":"47.35%"}},{"$f":"Actif!$E$33/100","v":{"v":0.0585,"d":"5.85%"}},{"$f":"Actif!$E$29/100","v":{"v":0.027999999999999997,"d":"2.80%"}}]
[null,"#388",42,2029,"H","A_CAPI",{"v":0.44999999999999996,"d":"0.45"},{"v":0.38999999999999996,"d":"0.39"},0.6,0.6,85,0,{"$f":"ROUND(Primes!$Q$10*V8501,2)","v":0.13},0,{"v":3617.194486340221,"d":"3,617"},{"$f":"'BP Financier'!$G$44*(('BP Financier'!$C$22+'BP Financier'!$D$22+'BP Financier'!$E$22+'BP Financier'!$F$22+'BP Financier'!$G$22)/('BP Financier'!$C$16+'BP Financier'!$C$19+'BP Financier'!$D$16+'BP Financier'!$D$19+'BP Financier'!$E$16+'BP Financier'!$E$19+'BP Financier'!$C$22+'BP Financier'!$D$22+'BP Financier'!$E$22+'BP Financier'!$F$22+'BP Financier'!$F$16+'BP Financier'!$F$19+'BP Financier'!$G$16+'BP Financier'!$G$19+'BP Financier'!$G$22))*$V8501*X8501/(1-$W8501)","v":{"v":460.4164571220675,"d":"460"}},{"$f":"'BP Financier'!$G$44*(('BP Financier'!$C$22+'BP Financier'!$D$22+'BP Financier'!$E$22+'BP Financier'!$F$22+'BP Financier'!$G$22)/('BP Financier'!$C$16+'BP Financier'!$C$19+'BP Financier'!$D$16+'BP Financier'!$D$19+'BP Financier'!$E$16+'BP Financier'!$E$19+'BP Financier'!$C$22+'BP Financier'!$D$22+'BP Financier'!$E$22+'BP Financier'!$F$22+'BP Financier'!$F$16+'BP Financier'!$F$19+'BP Financier'!$G$16+'BP Financier'!$G$19+'BP Financier'!$G$22))*$V8501*Y8501/(1-$W8501)","v":{"v":307.7922171921004,"d":"308"}},{"$f":"'BP Financier'!$G$44*(('BP Financier'!$C$22+'BP Financier'!$D$22+'BP Financier'!$E$22+'BP Financier'!$F$22+'BP Financier'!$G$22)/('BP Financier'!$C$16+'BP Financier'!$C$19+'BP Financier'!$D$16+'BP Financier'!$D$19+'BP Financier'!$E$16+'BP Financier'!$E$19+'BP Financier'!$C$22+'BP Financier'!$D$22+'BP Financier'!$E$22+'BP Financier'!$F$22+'BP Financier'!$F$16+'BP Financier'!$F$19+'BP Financier'!$G$16+'BP Financier'!$G$19+'BP Financier'!$G$22))*$V8501*Z8501/(1-$W8501)","v":{"v":2408.9192535613147,"d":"2,409"}},{"$f":"'BP Financier'!$G$44*(('BP Financier'!$C$22+'BP Financier'!$D$22+'BP Financier'!$E$22+'BP Financier'!$F$22+'BP Financier'!$G$22)/('BP Financier'!$C$16+'BP Financier'!$C$19+'BP Financier'!$D$16+'BP Financier'!$D$19+'BP Financier'!$E$16+'BP Financier'!$E$19+'BP Financier'!$C$22+'BP Financier'!$D$22+'BP Financier'!$E$22+'BP Financier'!$F$22+'BP Financier'!$F$16+'BP Financier'!$F$19+'BP Financier'!$G$16+'BP Financier'!$G$19+'BP Financier'!$G$22))*$V8501*AA8501/(1-$W8501)","v":{"v":297.6172678634359,"d":"298"}},{"$f":"'BP Financier'!$G$44*(('BP Financier'!$C$22+'BP Financier'!$D$22+'BP Financier'!$E$22+'BP Financier'!$F$22+'BP Financier'!$G$22)/('BP Financier'!$C$16+'BP Financier'!$C$19+'BP Financier'!$D$16+'BP Financier'!$D$19+'BP Financier'!$E$16+'BP Financier'!$E$19+'BP Financier'!$C$22+'BP Financier'!$D$22+'BP Financier'!$E$22+'BP Financier'!$F$22+'BP Financier'!$F$16+'BP Financier'!$F$19+'BP Financier'!$G$16+'BP Financier'!$G$19+'BP Financier'!$G$22))*$V8501*AB8501/(1-$W8501)","v":{"v":142.44929060130264,"d":"142"}},null,{"v":1E-3,"d":"0.10%"},{"$f":"Actif!$E$28/100","v":{"v":0.28900000000000003,"d":"28.90%"}},{"$f":"Actif!$E$30/100","v":{"v":0.09050000000000001,"d":"9.05%"}},{"$f":"Actif!$E$31/100","v":{"v":0.0605,"d":"6.05%"}},{"$f":"Actif!$E$32/100","v":{"v":0.47350000000000003,"d":"47.35%"}},{"$f":"Actif!$E$33/100","v":{"v":0.0585,"d":"5.85%"}},{"$f":"Actif!$E$29/100","v":{"v":0.027999999999999997,"d":"2.80%"}}]
[null,"#389",42,2030,"H","A_CAPI",{"v":0.44999999999999996,"d":"0.45"},{"v":0.38999999999999996,"d":"0.39"},0.6,0.6,85,0,{"$f":"ROUND(Primes!$Q$10*V8502,2)","v":0.13},0,{"v":3617.194486340221,"d":"3,617"},{"$f":"'BP Financier'!$G$44*(('BP Financier'!$C$22+'BP Financier'!$D$22+'BP Financier'!$E$22+'BP Financier'!$F$22+'BP Financier'!$G$22)/('BP Financier'!$C$16+'BP Financier'!$C$19+'BP Financier'!$D$16+'BP Financier'!$D$19+'BP Financier'!$E$16+'BP Financier'!$E$19+'BP Financier'!$C$22+'BP Financier'!$D$22+'BP Financier'!$E$22+'BP Financier'!$F$22+'BP Financier'!$F$16+'BP Financier'!$F$19+'BP Financier'!$G$16+'BP Financier'!$G$19+'BP Financier'!$G$22))*$V8502*X8502/(1-$W8502)","v":{"v":460.4164571220675,"d":"460"}},{"$f":"'BP Financier'!$G$44*(('BP Financier'!$C$22+'BP Financier'!$D$22+'BP Financier'!$E$22+'BP Financier'!$F$22+'BP Financier'!$G$22)/('BP Financier'!$C$16+'BP Financier'!$C$19+'BP Financier'!$D$16+'BP Financier'!$D$19+'BP Financier'!$E$16+'BP Financier'!$E$19+'BP Financier'!$C$22+'BP Financier'!$D$22+'BP Financier'!$E$22+'BP Financier'!$F$22+'BP Financier'!$F$16+'BP Financier'!$F$19+'BP Financier'!$G$16+'BP Financier'!$G$19+'BP Financier'!$G$22))*$V8502*Y8502/(1-$W8502)","v":{"v":307.7922171921004,"d":"308"}},{"$f":"'BP Financier'!$G$44*(('BP Financier'!$C$22+'BP Financier'!$D$22+'BP Financier'!$E$22+'BP Financier'!$F$22+'BP Financier'!$G$22)/('BP Financier'!$C$16+'BP Financier'!$C$19+'BP Financier'!$D$16+'BP Financier'!$D$19+'BP Financier'!$E$16+'BP Financier'!$E$19+'BP Financier'!$C$22+'BP Financier'!$D$22+'BP Financier'!$E$22+'BP Financier'!$F$22+'BP Financier'!$F$16+'BP Financier'!$F$19+'BP Financier'!$G$16+'BP Financier'!$G$19+'BP Financier'!$G$22))*$V8502*Z8502/(1-$W8502)","v":{"v":2408.9192535613147,"d":"2,409"}},{"$f":"'BP Financier'!$G$44*(('BP Financier'!$C$22+'BP Financier'!$D$22+'BP Financier'!$E$22+'BP Financier'!$F$22+'BP Financier'!$G$22)/('BP Financier'!$C$16+'BP Financier'!$C$19+'BP Financier'!$D$16+'BP Financier'!$D$19+'BP Financier'!$E$16+'BP Financier'!$E$19+'BP Financier'!$C$22+'BP Financier'!$D$22+'BP Financier'!$E$22+'BP Financier'!$F$22+'BP Financier'!$F$16+'BP Financier'!$F$19+'BP Financier'!$G$16+'BP Financier'!$G$19+'BP Financier'!$G$22))*$V8502*AA8502/(1-$W8502)","v":{"v":297.6172678634359,"d":"298"}},{"$f":"'BP Financier'!$G$44*(('BP Financier'!$C$22+'BP Financier'!$D$22+'BP Financier'!$E$22+'BP Financier'!$F$22+'BP Financier'!$G$22)/('BP Financier'!$C$16+'BP Financier'!$C$19+'BP Financier'!$D$16+'BP Financier'!$D$19+'BP Financier'!$E$16+'BP Financier'!$E$19+'BP Financier'!$C$22+'BP Financier'!$D$22+'BP Financier'!$E$22+'BP Financier'!$F$22+'BP Financier'!$F$16+'BP Financier'!$F$19+'BP Financier'!$G$16+'BP Financier'!$G$19+'BP Financier'!$G$22))*$V8502*AB8502/(1-$W8502)","v":{"v":142.44929060130264,"d":"142"}},null,{"v":1E-3,"d":"0.10%"},{"$f":"Actif!$E$28/100","v":{"v":0.28900000000000003,"d":"28.90%"}},{"$f":"Actif!$E$30/100","v":{"v":0.09050000000000001,"d":"9.05%"}},{"$f":"Actif!$E$31/100","v":{"v":0.0605,"d":"6.05%"}},{"$f":"Actif!$E$32/100","v":{"v":0.47350000000000003,"d":"47.35%"}},{"$f":"Actif!$E$33/100","v":{"v":0.0585,"d":"5.85%"}},{"$f":"Actif!$E$29/100","v":{"v":0.027999999999999997,"d":"2.80%"}}]
[null,"#390",42,2031,"H","A_CAPI",{"v":0.44999999999999996,"d":"0.45"},{"v":0.38999999999999996,"d":"0.39"},0.6,0.6,85,0,{"$f":"ROUND(Primes!$Q$10*V8503,2)","v":0.13},0,{"v":3617.194486340221,"d":"3,617"},{"$f":"'BP Financier'!$G$44*(('BP Financier'!$C$22+'BP Financier'!$D$22+'BP Financier'!$E$22+'BP Financier'!$F$22+'BP Financier'!$G$22)/('BP Financier'!$C$16+'BP Financier'!$C$19+'BP Financier'!$D$16+'BP Financier'!$D$19+'BP Financier'!$E$16+'BP Financier'!$E$19+'BP Financier'!$C$22+'BP Financier'!$D$22+'BP Financier'!$E$22+'BP Financier'!$F$22+'BP Financier'!$F$16+'BP Financier'!$F$19+'BP Financier'!$G$16+'BP Financier'!$G$19+'BP Financier'!$G$22))*$V8503*X8503/(1-$W8503)","v":{"v":460.4164571220675,"d":"460"}},{"$f":"'BP Financier'!$G$44*(('BP Financier'!$C$22+'BP Financier'!$D$22+'BP Financier'!$E$22+'BP Financier'!$F$22+'BP Financier'!$G$22)/('BP Financier'!$C$16+'BP Financier'!$C$19+'BP Financier'!$D$16+'BP Financier'!$D$19+'BP Financier'!$E$16+'BP Financier'!$E$19+'BP Financier'!$C$22+'BP Financier'!$D$22+'BP Financier'!$E$22+'BP Financier'!$F$22+'BP Financier'!$F$16+'BP Financier'!$F$19+'BP Financier'!$G$16+'BP Financier'!$G$19+'BP Financier'!$G$22))*$V8503*Y8503/(1-$W8503)","v":{"v":307.7922171921004,"d":"308"}},{"$f":"'BP Financier'!$G$44*(('BP Financier'!$C$22+'BP Financier'!$D$22+'BP Financier'!$E$22+'BP Financier'!$F$22+'BP Financier'!$G$22)/('BP Financier'!$C$16+'BP Financier'!$C$19+'BP Financier'!$D$16+'BP Financier'!$D$19+'BP Financier'!$E$16+'BP Financier'!$E$19+'BP Financier'!$C$22+'BP Financier'!$D$22+'BP Financier'!$E$22+'BP Financier'!$F$22+'BP Financier'!$F$16+'BP Financier'!$F$19+'BP Financier'!$G$16+'BP Financier'!$G$19+'BP Financier'!$G$22))*$V8503*Z8503/(1-$W8503)","v":{"v":2408.9192535613147,"d":"2,409"}},{"$f":"'BP Financier'!$G$44*(('BP Financier'!$C$22+'BP Financier'!$D$22+'BP Financier'!$E$22+'BP Financier'!$F$22+'BP Financier'!$G$22)/('BP Financier'!$C$16+'BP Financier'!$C$19+'BP Financier'!$D$16+'BP Financier'!$D$19+'BP Financier'!$E$16+'BP Financier'!$E$19+'BP Financier'!$C$22+'BP Financier'!$D$22+'BP Financier'!$E$22+'BP Financier'!$F$22+'BP Financier'!$F$16+'BP Financier'!$F$19+'BP Financier'!$G$16+'BP Financier'!$G$19+'BP Financier'!$G$22))*$V8503*AA8503/(1-$W8503)","v":{"v":297.6172678634359,"d":"298"}},{"$f":"'BP Financier'!$G$44*(('BP Financier'!$C$22+'BP Financier'!$D$22+'BP Financier'!$E$22+'BP Financier'!$F$22+'BP Financier'!$G$22)/('BP Financier'!$C$16+'BP Financier'!$C$19+'BP Financier'!$D$16+'BP Financier'!$D$19+'BP Financier'!$E$16+'BP Financier'!$E$19+'BP Financier'!$C$22+'BP Financier'!$D$22+'BP Financier'!$E$22+'BP Financier'!$F$22+'BP Financier'!$F$16+'BP Financier'!$F$19+'BP Financier'!$G$16+'BP Financier'!$G$19+'BP Financier'!$G$22))*$V8503*AB8503/(1-$W8503)","v":{"v":142.44929060130264,"d":"142"}},null,{"v":1E-3,"d":"0.10%"},{"$f":"Actif!$E$28/100","v":{"v":0.28900000000000003,"d":"28.90%"}},{"$f":"Actif!$E$30/100","v":{"v":0.09050000000000001,"d":"9.05%"}},{"$f":"Actif!$E$31/100","v":{"v":0.0605,"d":"6.05%"}},{"$f":"Actif!$E$32/100","v":{"v":0.47350000000000003,"d":"47.35%"}},{"$f":"Actif!$E$33/100","v":{"v":0.0585,"d":"5.85%"}},{"$f":"Actif!$E$29/100","v":{"v":0.027999999999999997,"d":"2.80%"}}]
[null,"#391",43,2026,"H","A_CAPI",{"v":0.44999999999999996,"d":"0.45"},{"v":0.38999999999999996,"d":"0.39"},0.6,0.6,85,0,{"$f":"ROUND(Primes!$Q$10*V8504,2)","v":0.13},0,{"v":3617.194486340221,"d":"3,617"},{"$f":"'BP Financier'!$G$44*(('BP Financier'!$C$22+'BP Financier'!$D$22+'BP Financier'!$E$22+'BP Financier'!$F$22+'BP Financier'!$G$22)/('BP Financier'!$C$16+'BP Financier'!$C$19+'BP Financier'!$D$16+'BP Financier'!$D$19+'BP Financier'!$E$16+'BP Financier'!$E$19+'BP Financier'!$C$22+'BP Financier'!$D$22+'BP Financier'!$E$22+'BP Financier'!$F$22+'BP Financier'!$F$16+'BP Financier'!$F$19+'BP Financier'!$G$16+'BP Financier'!$G$19+'BP Financier'!$G$22))*$V8504*X8504/(1-$W8504)","v":{"v":460.4164571220675,"d":"460"}},{"$f":"'BP Financier'!$G$44*(('BP Financier'!$C$22+'BP Financier'!$D$22+'BP Financier'!$E$22+'BP Financier'!$F$22+'BP Financier'!$G$22)/('BP Financier'!$C$16+'BP Financier'!$C$19+'BP Financier'!$D$16+'BP Financier'!$D$19+'BP Financier'!$E$16+'BP Financier'!$E$19+'BP Financier'!$C$22+'BP Financier'!$D$22+'BP Financier'!$E$22+'BP Financier'!$F$22+'BP Financier'!$F$16+'BP Financier'!$F$19+'BP Financier'!$G$16+'BP Financier'!$G$19+'BP Financier'!$G$22))*$V8504*Y8504/(1-$W8504)","v":{"v":307.7922171921004,"d":"308"}},{"$f":"'BP Financier'!$G$44*(('BP Financier'!$C$22+'BP Financier'!$D$22+'BP Financier'!$E$22+'BP Financier'!$F$22+'BP Financier'!$G$22)/('BP Financier'!$C$16+'BP Financier'!$C$19+'BP Financier'!$D$16+'BP Financier'!$D$19+'BP Financier'!$E$16+'BP Financier'!$E$19+'BP Financier'!$C$22+'BP Financier'!$D$22+'BP Financier'!$E$22+'BP Financier'!$F$22+'BP Financier'!$F$16+'BP Financier'!$F$19+'BP Financier'!$G$16+'BP Financier'!$G$19+'BP Financier'!$G$22))*$V8504*Z8504/(1-$W8504)","v":{"v":2408.9192535613147,"d":"2,409"}},{"$f":"'BP Financier'!$G$44*(('BP Financier'!$C$22+'BP Financier'!$D$22+'BP Financier'!$E$22+'BP Financier'!$F$22+'BP Financier'!$G$22)/('BP Financier'!$C$16+'BP Financier'!$C$19+'BP Financier'!$D$16+'BP Financier'!$D$19+'BP Financier'!$E$16+'BP Financier'!$E$19+'BP Financier'!$C$22+'BP Financier'!$D$22+'BP Financier'!$E$22+'BP Financier'!$F$22+'BP Financier'!$F$16+'BP Financier'!$F$19+'BP Financier'!$G$16+'BP Financier'!$G$19+'BP Financier'!$G$22))*$V8504*AA8504/(1-$W8504)","v":{"v":297.6172678634359,"d":"298"}},{"$f":"'BP Financier'!$G$44*(('BP Financier'!$C$22+'BP Financier'!$D$22+'BP Financier'!$E$22+'BP Financier'!$F$22+'BP Financier'!$G$22)/('BP Financier'!$C$16+'BP Financier'!$C$19+'BP Financier'!$D$16+'BP Financier'!$D$19+'BP Financier'!$E$16+'BP Financier'!$E$19+'BP Financier'!$C$22+'BP Financier'!$D$22+'BP Financier'!$E$22+'BP Financier'!$F$22+'BP Financier'!$F$16+'BP Financier'!$F$19+'BP Financier'!$G$16+'BP Financier'!$G$19+'BP Financier'!$G$22))*$V8504*AB8504/(1-$W8504)","v":{"v":142.44929060130264,"d":"142"}},null,{"v":1E-3,"d":"0.10%"},{"$f":"Actif!$E$28/100","v":{"v":0.28900000000000003,"d":"28.90%"}},{"$f":"Actif!$E$30/100","v":{"v":0.09050000000000001,"d":"9.05%"}},{"$f":"Actif!$E$31/100","v":{"v":0.0605,"d":"6.05%"}},{"$f":"Actif!$E$32/100","v":{"v":0.47350000000000003,"d":"47.35%"}},{"$f":"Actif!$E$33/100","v":{"v":0.0585,"d":"5.85%"}},{"$f":"Actif!$E$29/100","v":{"v":0.027999999999999997,"d":"2.80%"}}]
[null,"#392",43,2028,"H","A_CAPI",{"v":0.44999999999999996,"d":"0.45"},{"v":0.38999999999999996,"d":"0.39"},0.6,0.6,85,0,{"$f":"ROUND(Primes!$Q$10*V8505,2)","v":0.13},0,{"v":3617.194486340221,"d":"3,617"},{"$f":"'BP Financier'!$G$44*(('BP Financier'!$C$22+'BP Financier'!$D$22+'BP Financier'!$E$22+'BP Financier'!$F$22+'BP Financier'!$G$22)/('BP Financier'!$C$16+'BP Financier'!$C$19+'BP Financier'!$D$16+'BP Financier'!$D$19+'BP Financier'!$E$16+'BP Financier'!$E$19+'BP Financier'!$C$22+'BP Financier'!$D$22+'BP Financier'!$E$22+'BP Financier'!$F$22+'BP Financier'!$F$16+'BP Financier'!$F$19+'BP Financier'!$G$16+'BP Financier'!$G$19+'BP Financier'!$G$22))*$V8505*X8505/(1-$W8505)","v":{"v":460.4164571220675,"d":"460"}},{"$f":"'BP Financier'!$G$44*(('BP Financier'!$C$22+'BP Financier'!$D$22+'BP Financier'!$E$22+'BP Financier'!$F$22+'BP Financier'!$G$22)/('BP Financier'!$C$16+'BP Financier'!$C$19+'BP Financier'!$D$16+'BP Financier'!$D$19+'BP Financier'!$E$16+'BP Financier'!$E$19+'BP Financier'!$C$22+'BP Financier'!$D$22+'BP Financier'!$E$22+'BP Financier'!$F$22+'BP Financier'!$F$16+'BP Financier'!$F$19+'BP Financier'!$G$16+'BP Financier'!$G$19+'BP Financier'!$G$22))*$V8505*Y8505/(1-$W8505)","v":{"v":307.7922171921004,"d":"308"}},{"$f":"'BP Financier'!$G$44*(('BP Financier'!$C$22+'BP Financier'!$D$22+'BP Financier'!$E$22+'BP Financier'!$F$22+'BP Financier'!$G$22)/('BP Financier'!$C$16+'BP Financier'!$C$19+'BP Financier'!$D$16+'BP Financier'!$D$19+'BP Financier'!$E$16+'BP Financier'!$E$19+'BP Financier'!$C$22+'BP Financier'!$D$22+'BP Financier'!$E$22+'BP Financier'!$F$22+'BP Financier'!$F$16+'BP Financier'!$F$19+'BP Financier'!$G$16+'BP Financier'!$G$19+'BP Financier'!$G$22))*$V8505*Z8505/(1-$W8505)","v":{"v":2408.9192535613147,"d":"2,409"}},{"$f":"'BP Financier'!$G$44*(('BP Financier'!$C$22+'BP Financier'!$D$22+'BP Financier'!$E$22+'BP Financier'!$F$22+'BP Financier'!$G$22)/('BP Financier'!$C$16+'BP Financier'!$C$19+'BP Financier'!$D$16+'BP Financier'!$D$19+'BP Financier'!$E$16+'BP Financier'!$E$19+'BP Financier'!$C$22+'BP Financier'!$D$22+'BP Financier'!$E$22+'BP Financier'!$F$22+'BP Financier'!$F$16+'BP Financier'!$F$19+'BP Financier'!$G$16+'BP Financier'!$G$19+'BP Financier'!$G$22))*$V8505*AA8505/(1-$W8505)","v":{"v":297.6172678634359,"d":"298"}},{"$f":"'BP Financier'!$G$44*(('BP Financier'!$C$22+'BP Financier'!$D$22+'BP Financier'!$E$22+'BP Financier'!$F$22+'BP Financier'!$G$22)/('BP Financier'!$C$16+'BP Financier'!$C$19+'BP Financier'!$D$16+'BP Financier'!$D$19+'BP Financier'!$E$16+'BP Financier'!$E$19+'BP Financier'!$C$22+'BP Financier'!$D$22+'BP Financier'!$E$22+'BP Financier'!$F$22+'BP Financier'!$F$16+'BP Financier'!$F$19+'BP Financier'!$G$16+'BP Financier'!$G$19+'BP Financier'!$G$22))*$V8505*AB8505/(1-$W8505)","v":{"v":142.44929060130264,"d":"142"}},null,{"v":1E-3,"d":"0.10%"},{"$f":"Actif!$E$28/100","v":{"v":0.28900000000000003,"d":"28.90%"}},{"$f":"Actif!$E$30/100","v":{"v":0.09050000000000001,"d":"9.05%"}},{"$f":"Actif!$E$31/100","v":{"v":0.0605,"d":"6.05%"}},{"$f":"Actif!$E$32/100","v":{"v":0.47350000000000003,"d":"47.35%"}},{"$f":"Actif!$E$33/100","v":{"v":0.0585,"d":"5.85%"}},{"$f":"Actif!$E$29/100","v":{"v":0.027999999999999997,"d":"2.80%"}}]
[null,"#393",43,2029,"H","A_CAPI",{"v":0.44999999999999996,"d":"0.45"},{"v":0.38999999999999996,"d":"0.39"},0.6,0.6,85,0,{"$f":"ROUND(Primes!$Q$10*V8506,2)","v":0.13},0,{"v":3617.194486340221,"d":"3,617"},{"$f":"'BP Financier'!$G$44*(('BP Financier'!$C$22+'BP Financier'!$D$22+'BP Financier'!$E$22+'BP Financier'!$F$22+'BP Financier'!$G$22)/('BP Financier'!$C$16+'BP Financier'!$C$19+'BP Financier'!$D$16+'BP Financier'!$D$19+'BP Financier'!$E$16+'BP Financier'!$E$19+'BP Financier'!$C$22+'BP Financier'!$D$22+'BP Financier'!$E$22+'BP Financier'!$F$22+'BP Financier'!$F$16+'BP Financier'!$F$19+'BP Financier'!$G$16+'BP Financier'!$G$19+'BP Financier'!$G$22))*$V8506*X8506/(1-$W8506)","v":{"v":460.4164571220675,"d":"460"}},{"$f":"'BP Financier'!$G$44*(('BP Financier'!$C$22+'BP Financier'!$D$22+'BP Financier'!$E$22+'BP Financier'!$F$22+'BP Financier'!$G$22)/('BP Financier'!$C$16+'BP Financier'!$C$19+'BP Financier'!$D$16+'BP Financier'!$D$19+'BP Financier'!$E$16+'BP Financier'!$E$19+'BP Financier'!$C$22+'BP Financier'!$D$22+'BP Financier'!$E$22+'BP Financier'!$F$22+'BP Financier'!$F$16+'BP Financier'!$F$19+'BP Financier'!$G$16+'BP Financier'!$G$19+'BP Financier'!$G$22))*$V8506*Y8506/(1-$W8506)","v":{"v":307.7922171921004,"d":"308"}},{"$f":"'BP Financier'!$G$44*(('BP Financier'!$C$22+'BP Financier'!$D$22+'BP Financier'!$E$22+'BP Financier'!$F$22+'BP Financier'!$G$22)/('BP Financier'!$C$16+'BP Financier'!$C$19+'BP Financier'!$D$16+'BP Financier'!$D$19+'BP Financier'!$E$16+'BP Financier'!$E$19+'BP Financier'!$C$22+'BP Financier'!$D$22+'BP Financier'!$E$22+'BP Financier'!$F$22+'BP Financier'!$F$16+'BP Financier'!$F$19+'BP Financier'!$G$16+'BP Financier'!$G$19+'BP Financier'!$G$22))*$V8506*Z8506/(1-$W8506)","v":{"v":2408.9192535613147,"d":"2,409"}},{"$f":"'BP Financier'!$G$44*(('BP Financier'!$C$22+'BP Financier'!$D$22+'BP Financier'!$E$22+'BP Financier'!$F$22+'BP Financier'!$G$22)/('BP Financier'!$C$16+'BP Financier'!$C$19+'BP Financier'!$D$16+'BP Financier'!$D$19+'BP Financier'!$E$16+'BP Financier'!$E$19+'BP Financier'!$C$22+'BP Financier'!$D$22+'BP Financier'!$E$22+'BP Financier'!$F$22+'BP Financier'!$F$16+'BP Financier'!$F$19+'BP Financier'!$G$16+'BP Financier'!$G$19+'BP Financier'!$G$22))*$V8506*AA8506/(1-$W8506)","v":{"v":297.6172678634359,"d":"298"}},{"$f":"'BP Financier'!$G$44*(('BP Financier'!$C$22+'BP Financier'!$D$22+'BP Financier'!$E$22+'BP Financier'!$F$22+'BP Financier'!$G$22)/('BP Financier'!$C$16+'BP Financier'!$C$19+'BP Financier'!$D$16+'BP Financier'!$D$19+'BP Financier'!$E$16+'BP Financier'!$E$19+'BP Financier'!$C$22+'BP Financier'!$D$22+'BP Financier'!$E$22+'BP Financier'!$F$22+'BP Financier'!$F$16+'BP Financier'!$F$19+'BP Financier'!$G$16+'BP Financier'!$G$19+'BP Financier'!$G$22))*$V8506*AB8506/(1-$W8506)","v":{"v":142.44929060130264,"d":"142"}},null,{"v":1E-3,"d":"0.10%"},{"$f":"Actif!$E$28/100","v":{"v":0.28900000000000003,"d":"28.90%"}},{"$f":"Actif!$E$30/100","v":{"v":0.09050000000000001,"d":"9.05%"}},{"$f":"Actif!$E$31/100","v":{"v":0.0605,"d":"6.05%"}},{"$f":"Actif!$E$32/100","v":{"v":0.47350000000000003,"d":"47.35%"}},{"$f":"Actif!$E$33/100","v":{"v":0.0585,"d":"5.85%"}},{"$f":"Actif!$E$29/100","v":{"v":0.027999999999999997,"d":"2.80%"}}]
[null,"#394",43,2030,"H","A_CAPI",{"v":0.44999999999999996,"d":"0.45"},{"v":0.38999999999999996,"d":"0.39"},0.6,0.6,85,0,{"$f":"ROUND(Primes!$Q$10*V8507,2)","v":0.13},0,{"v":3617.194486340221,"d":"3,617"},{"$f":"'BP Financier'!$G$44*(('BP Financier'!$C$22+'BP Financier'!$D$22+'BP Financier'!$E$22+'BP Financier'!$F$22+'BP Financier'!$G$22)/('BP Financier'!$C$16+'BP Financier'!$C$19+'BP Financier'!$D$16+'BP Financier'!$D$19+'BP Financier'!$E$16+'BP Financier'!$E$19+'BP Financier'!$C$22+'BP Financier'!$D$22+'BP Financier'!$E$22+'BP Financier'!$F$22+'BP Financier'!$F$16+'BP Financier'!$F$19+'BP Financier'!$G$16+'BP Financier'!$G$19+'BP Financier'!$G$22))*$V8507*X8507/(1-$W8507)","v":{"v":460.4164571220675,"d":"460"}},{"$f":"'BP Financier'!$G$44*(('BP Financier'!$C$22+'BP Financier'!$D$22+'BP Financier'!$E$22+'BP Financier'!$F$22+'BP Financier'!$G$22)/('BP Financier'!$C$16+'BP Financier'!$C$19+'BP Financier'!$D$16+'BP Financier'!$D$19+'BP Financier'!$E$16+'BP Financier'!$E$19+'BP Financier'!$C$22+'BP Financier'!$D$22+'BP Financier'!$E$22+'BP Financier'!$F$22+'BP Financier'!$F$16+'BP Financier'!$F$19+'BP Financier'!$G$16+'BP Financier'!$G$19+'BP Financier'!$G$22))*$V8507*Y8507/(1-$W8507)","v":{"v":307.7922171921004,"d":"308"}},{"$f":"'BP Financier'!$G$44*(('BP Financier'!$C$22+'BP Financier'!$D$22+'BP Financier'!$E$22+'BP Financier'!$F$22+'BP Financier'!$G$22)/('BP Financier'!$C$16+'BP Financier'!$C$19+'BP Financier'!$D$16+'BP Financier'!$D$19+'BP Financier'!$E$16+'BP Financier'!$E$19+'BP Financier'!$C$22+'BP Financier'!$D$22+'BP Financier'!$E$22+'BP Financier'!$F$22+'BP Financier'!$F$16+'BP Financier'!$F$19+'BP Financier'!$G$16+'BP Financier'!$G$19+'BP Financier'!$G$22))*$V8507*Z8507/(1-$W8507)","v":{"v":2408.9192535613147,"d":"2,409"}},{"$f":"'BP Financier'!$G$44*(('BP Financier'!$C$22+'BP Financier'!$D$22+'BP Financier'!$E$22+'BP Financier'!$F$22+'BP Financier'!$G$22)/('BP Financier'!$C$16+'BP Financier'!$C$19+'BP Financier'!$D$16+'BP Financier'!$D$19+'BP Financier'!$E$16+'BP Financier'!$E$19+'BP Financier'!$C$22+'BP Financier'!$D$22+'BP Financier'!$E$22+'BP Financier'!$F$22+'BP Financier'!$F$16+'BP Financier'!$F$19+'BP Financier'!$G$16+'BP Financier'!$G$19+'BP Financier'!$G$22))*$V8507*AA8507/(1-$W8507)","v":{"v":297.6172678634359,"d":"298"}},{"$f":"'BP Financier'!$G$44*(('BP Financier'!$C$22+'BP Financier'!$D$22+'BP Financier'!$E$22+'BP Financier'!$F$22+'BP Financier'!$G$22)/('BP Financier'!$C$16+'BP Financier'!$C$19+'BP Financier'!$D$16+'BP Financier'!$D$19+'BP Financier'!$E$16+'BP Financier'!$E$19+'BP Financier'!$C$22+'BP Financier'!$D$22+'BP Financier'!$E$22+'BP Financier'!$F$22+'BP Financier'!$F$16+'BP Financier'!$F$19+'BP Financier'!$G$16+'BP Financier'!$G$19+'BP Financier'!$G$22))*$V8507*AB8507/(1-$W8507)","v":{"v":142.44929060130264,"d":"142"}},null,{"v":1E-3,"d":"0.10%"},{"$f":"Actif!$E$28/100","v":{"v":0.28900000000000003,"d":"28.90%"}},{"$f":"Actif!$E$30/100","v":{"v":0.09050000000000001,"d":"9.05%"}},{"$f":"Actif!$E$31/100","v":{"v":0.0605,"d":"6.05%"}},{"$f":"Actif!$E$32/100","v":{"v":0.47350000000000003,"d":"47.35%"}},{"$f":"Actif!$E$33/100","v":{"v":0.0585,"d":"5.85%"}},{"$f":"Actif!$E$29/100","v":{"v":0.027999999999999997,"d":"2.80%"}}]
[null,"#395",43,2031,"H","A_CAPI",{"v":0.44999999999999996,"d":"0.45"},{"v":0.38999999999999996,"d":"0.39"},0.6,0.6,85,0,{"$f":"ROUND(Primes!$Q$10*V8508,2)","v":0.13},0,{"v":3617.194486340221,"d":"3,617"},{"$f":"'BP Financier'!$G$44*(('BP Financier'!$C$22+'BP Financier'!$D$22+'BP Financier'!$E$22+'BP Financier'!$F$22+'BP Financier'!$G$22)/('BP Financier'!$C$16+'BP Financier'!$C$19+'BP Financier'!$D$16+'BP Financier'!$D$19+'BP Financier'!$E$16+'BP Financier'!$E$19+'BP Financier'!$C$22+'BP Financier'!$D$22+'BP Financier'!$E$22+'BP Financier'!$F$22+'BP Financier'!$F$16+'BP Financier'!$F$19+'BP Financier'!$G$16+'BP Financier'!$G$19+'BP Financier'!$G$22))*$V8508*X8508/(1-$W8508)","v":{"v":460.4164571220675,"d":"460"}},{"$f":"'BP Financier'!$G$44*(('BP Financier'!$C$22+'BP Financier'!$D$22+'BP Financier'!$E$22+'BP Financier'!$F$22+'BP Financier'!$G$22)/('BP Financier'!$C$16+'BP Financier'!$C$19+'BP Financier'!$D$16+'BP Financier'!$D$19+'BP Financier'!$E$16+'BP Financier'!$E$19+'BP Financier'!$C$22+'BP Financier'!$D$22+'BP Financier'!$E$22+'BP Financier'!$F$22+'BP Financier'!$F$16+'BP Financier'!$F$19+'BP Financier'!$G$16+'BP Financier'!$G$19+'BP Financier'!$G$22))*$V8508*Y8508/(1-$W8508)","v":{"v":307.7922171921004,"d":"308"}},{"$f":"'BP Financier'!$G$44*(('BP Financier'!$C$22+'BP Financier'!$D$22+'BP Financier'!$E$22+'BP Financier'!$F$22+'BP Financier'!$G$22)/('BP Financier'!$C$16+'BP Financier'!$C$19+'BP Financier'!$D$16+'BP Financier'!$D$19+'BP Financier'!$E$16+'BP Financier'!$E$19+'BP Financier'!$C$22+'BP Financier'!$D$22+'BP Financier'!$E$22+'BP Financier'!$F$22+'BP Financier'!$F$16+'BP Financier'!$F$19+'BP Financier'!$G$16+'BP Financier'!$G$19+'BP Financier'!$G$22))*$V8508*Z8508/(1-$W8508)","v":{"v":2408.9192535613147,"d":"2,409"}},{"$f":"'BP Financier'!$G$44*(('BP Financier'!$C$22+'BP Financier'!$D$22+'BP Financier'!$E$22+'BP Financier'!$F$22+'BP Financier'!$G$22)/('BP Financier'!$C$16+'BP Financier'!$C$19+'BP Financier'!$D$16+'BP Financier'!$D$19+'BP Financier'!$E$16+'BP Financier'!$E$19+'BP Financier'!$C$22+'BP Financier'!$D$22+'BP Financier'!$E$22+'BP Financier'!$F$22+'BP Financier'!$F$16+'BP Financier'!$F$19+'BP Financier'!$G$16+'BP Financier'!$G$19+'BP Financier'!$G$22))*$V8508*AA8508/(1-$W8508)","v":{"v":297.6172678634359,"d":"298"}},{"$f":"'BP Financier'!$G$44*(('BP Financier'!$C$22+'BP Financier'!$D$22+'BP Financier'!$E$22+'BP Financier'!$F$22+'BP Financier'!$G$22)/('BP Financier'!$C$16+'BP Financier'!$C$19+'BP Financier'!$D$16+'BP Financier'!$D$19+'BP Financier'!$E$16+'BP Financier'!$E$19+'BP Financier'!$C$22+'BP Financier'!$D$22+'BP Financier'!$E$22+'BP Financier'!$F$22+'BP Financier'!$F$16+'BP Financier'!$F$19+'BP Financier'!$G$16+'BP Financier'!$G$19+'BP Financier'!$G$22))*$V8508*AB8508/(1-$W8508)","v":{"v":142.44929060130264,"d":"142"}},null,{"v":1E-3,"d":"0.10%"},{"$f":"Actif!$E$28/100","v":{"v":0.28900000000000003,"d":"28.90%"}},{"$f":"Actif!$E$30/100","v":{"v":0.09050000000000001,"d":"9.05%"}},{"$f":"Actif!$E$31/100","v":{"v":0.0605,"d":"6.05%"}},{"$f":"Actif!$E$32/100","v":{"v":0.47350000000000003,"d":"47.35%"}},{"$f":"Actif!$E$33/100","v":{"v":0.0585,"d":"5.85%"}},{"$f":"Actif!$E$29/100","v":{"v":0.027999999999999997,"d":"2.80%"}}]
[null,"#396",44,2026,"F","A_CAPI",{"v":0.44999999999999996,"d":"0.45"},{"v":0.38999999999999996,"d":"0.39"},0.6,0.6,85,0,{"$f":"ROUND(Primes!$Q$10*V8509,2)","v":0.13},0,{"v":3617.194486340221,"d":"3,617"},{"$f":"'BP Financier'!$G$44*(('BP Financier'!$C$22+'BP Financier'!$D$22+'BP Financier'!$E$22+'BP Financier'!$F$22+'BP Financier'!$G$22)/('BP Financier'!$C$16+'BP Financier'!$C$19+'BP Financier'!$D$16+'BP Financier'!$D$19+'BP Financier'!$E$16+'BP Financier'!$E$19+'BP Financier'!$C$22+'BP Financier'!$D$22+'BP Financier'!$E$22+'BP Financier'!$F$22+'BP Financier'!$F$16+'BP Financier'!$F$19+'BP Financier'!$G$16+'BP Financier'!$G$19+'BP Financier'!$G$22))*$V8509*X8509/(1-$W8509)","v":{"v":460.4164571220675,"d":"460"}},{"$f":"'BP Financier'!$G$44*(('BP Financier'!$C$22+'BP Financier'!$D$22+'BP Financier'!$E$22+'BP Financier'!$F$22+'BP Financier'!$G$22)/('BP Financier'!$C$16+'BP Financier'!$C$19+'BP Financier'!$D$16+'BP Financier'!$D$19+'BP Financier'!$E$16+'BP Financier'!$E$19+'BP Financier'!$C$22+'BP Financier'!$D$22+'BP Financier'!$E$22+'BP Financier'!$F$22+'BP Financier'!$F$16+'BP Financier'!$F$19+'BP Financier'!$G$16+'BP Financier'!$G$19+'BP Financier'!$G$22))*$V8509*Y8509/(1-$W8509)","v":{"v":307.7922171921004,"d":"308"}},{"$f":"'BP Financier'!$G$44*(('BP Financier'!$C$22+'BP Financier'!$D$22+'BP Financier'!$E$22+'BP Financier'!$F$22+'BP Financier'!$G$22)/('BP Financier'!$C$16+'BP Financier'!$C$19+'BP Financier'!$D$16+'BP Financier'!$D$19+'BP Financier'!$E$16+'BP Financier'!$E$19+'BP Financier'!$C$22+'BP Financier'!$D$22+'BP Financier'!$E$22+'BP Financier'!$F$22+'BP Financier'!$F$16+'BP Financier'!$F$19+'BP Financier'!$G$16+'BP Financier'!$G$19+'BP Financier'!$G$22))*$V8509*Z8509/(1-$W8509)","v":{"v":2408.9192535613147,"d":"2,409"}},{"$f":"'BP Financier'!$G$44*(('BP Financier'!$C$22+'BP Financier'!$D$22+'BP Financier'!$E$22+'BP Financier'!$F$22+'BP Financier'!$G$22)/('BP Financier'!$C$16+'BP Financier'!$C$19+'BP Financier'!$D$16+'BP Financier'!$D$19+'BP Financier'!$E$16+'BP Financier'!$E$19+'BP Financier'!$C$22+'BP Financier'!$D$22+'BP Financier'!$E$22+'BP Financier'!$F$22+'BP Financier'!$F$16+'BP Financier'!$F$19+'BP Financier'!$G$16+'BP Financier'!$G$19+'BP Financier'!$G$22))*$V8509*AA8509/(1-$W8509)","v":{"v":297.6172678634359,"d":"298"}},{"$f":"'BP Financier'!$G$44*(('BP Financier'!$C$22+'BP Financier'!$D$22+'BP Financier'!$E$22+'BP Financier'!$F$22+'BP Financier'!$G$22)/('BP Financier'!$C$16+'BP Financier'!$C$19+'BP Financier'!$D$16+'BP Financier'!$D$19+'BP Financier'!$E$16+'BP Financier'!$E$19+'BP Financier'!$C$22+'BP Financier'!$D$22+'BP Financier'!$E$22+'BP Financier'!$F$22+'BP Financier'!$F$16+'BP Financier'!$F$19+'BP Financier'!$G$16+'BP Financier'!$G$19+'BP Financier'!$G$22))*$V8509*AB8509/(1-$W8509)","v":{"v":142.44929060130264,"d":"142"}},null,{"v":1E-3,"d":"0.10%"},{"$f":"Actif!$E$28/100","v":{"v":0.28900000000000003,"d":"28.90%"}},{"$f":"Actif!$E$30/100","v":{"v":0.09050000000000001,"d":"9.05%"}},{"$f":"Actif!$E$31/100","v":{"v":0.0605,"d":"6.05%"}},{"$f":"Actif!$E$32/100","v":{"v":0.47350000000000003,"d":"47.35%"}},{"$f":"Actif!$E$33/100","v":{"v":0.0585,"d":"5.85%"}},{"$f":"Actif!$E$29/100","v":{"v":0.027999999999999997,"d":"2.80%"}}]
[null,"#397",44,2028,"F","A_CAPI",{"v":0.44999999999999996,"d":"0.45"},{"v":0.38999999999999996,"d":"0.39"},0.6,0.6,85,0,{"$f":"ROUND(Primes!$Q$10*V8510,2)","v":0.13},0,{"v":3617.194486340221,"d":"3,617"},{"$f":"'BP Financier'!$G$44*(('BP Financier'!$C$22+'BP Financier'!$D$22+'BP Financier'!$E$22+'BP Financier'!$F$22+'BP Financier'!$G$22)/('BP Financier'!$C$16+'BP Financier'!$C$19+'BP Financier'!$D$16+'BP Financier'!$D$19+'BP Financier'!$E$16+'BP Financier'!$E$19+'BP Financier'!$C$22+'BP Financier'!$D$22+'BP Financier'!$E$22+'BP Financier'!$F$22+'BP Financier'!$F$16+'BP Financier'!$F$19+'BP Financier'!$G$16+'BP Financier'!$G$19+'BP Financier'!$G$22))*$V8510*X8510/(1-$W8510)","v":{"v":460.4164571220675,"d":"460"}},{"$f":"'BP Financier'!$G$44*(('BP Financier'!$C$22+'BP Financier'!$D$22+'BP Financier'!$E$22+'BP Financier'!$F$22+'BP Financier'!$G$22)/('BP Financier'!$C$16+'BP Financier'!$C$19+'BP Financier'!$D$16+'BP Financier'!$D$19+'BP Financier'!$E$16+'BP Financier'!$E$19+'BP Financier'!$C$22+'BP Financier'!$D$22+'BP Financier'!$E$22+'BP Financier'!$F$22+'BP Financier'!$F$16+'BP Financier'!$F$19+'BP Financier'!$G$16+'BP Financier'!$G$19+'BP Financier'!$G$22))*$V8510*Y8510/(1-$W8510)","v":{"v":307.7922171921004,"d":"308"}},{"$f":"'BP Financier'!$G$44*(('BP Financier'!$C$22+'BP Financier'!$D$22+'BP Financier'!$E$22+'BP Financier'!$F$22+'BP Financier'!$G$22)/('BP Financier'!$C$16+'BP Financier'!$C$19+'BP Financier'!$D$16+'BP Financier'!$D$19+'BP Financier'!$E$16+'BP Financier'!$E$19+'BP Financier'!$C$22+'BP Financier'!$D$22+'BP Financier'!$E$22+'BP Financier'!$F$22+'BP Financier'!$F$16+'BP Financier'!$F$19+'BP Financier'!$G$16+'BP Financier'!$G$19+'BP Financier'!$G$22))*$V8510*Z8510/(1-$W8510)","v":{"v":2408.9192535613147,"d":"2,409"}},{"$f":"'BP Financier'!$G$44*(('BP Financier'!$C$22+'BP Financier'!$D$22+'BP Financier'!$E$22+'BP Financier'!$F$22+'BP Financier'!$G$22)/('BP Financier'!$C$16+'BP Financier'!$C$19+'BP Financier'!$D$16+'BP Financier'!$D$19+'BP Financier'!$E$16+'BP Financier'!$E$19+'BP Financier'!$C$22+'BP Financier'!$D$22+'BP Financier'!$E$22+'BP Financier'!$F$22+'BP Financier'!$F$16+'BP Financier'!$F$19+'BP Financier'!$G$16+'BP Financier'!$G$19+'BP Financier'!$G$22))*$V8510*AA8510/(1-$W8510)","v":{"v":297.6172678634359,"d":"298"}},{"$f":"'BP Financier'!$G$44*(('BP Financier'!$C$22+'BP Financier'!$D$22+'BP Financier'!$E$22+'BP Financier'!$F$22+'BP Financier'!$G$22)/('BP Financier'!$C$16+'BP Financier'!$C$19+'BP Financier'!$D$16+'BP Financier'!$D$19+'BP Financier'!$E$16+'BP Financier'!$E$19+'BP Financier'!$C$22+'BP Financier'!$D$22+'BP Financier'!$E$22+'BP Financier'!$F$22+'BP Financier'!$F$16+'BP Financier'!$F$19+'BP Financier'!$G$16+'BP Financier'!$G$19+'BP Financier'!$G$22))*$V8510*AB8510/(1-$W8510)","v":{"v":142.44929060130264,"d":"142"}},null,{"v":1E-3,"d":"0.10%"},{"$f":"Actif!$E$28/100","v":{"v":0.28900000000000003,"d":"28.90%"}},{"$f":"Actif!$E$30/100","v":{"v":0.09050000000000001,"d":"9.05%"}},{"$f":"Actif!$E$31/100","v":{"v":0.0605,"d":"6.05%"}},{"$f":"Actif!$E$32/100","v":{"v":0.47350000000000003,"d":"47.35%"}},{"$f":"Actif!$E$33/100","v":{"v":0.0585,"d":"5.85%"}},{"$f":"Actif!$E$29/100","v":{"v":0.027999999999999997,"d":"2.80%"}}]
[null,"#398",44,2029,"F","A_CAPI",{"v":0.44999999999999996,"d":"0.45"},{"v":0.38999999999999996,"d":"0.39"},0.6,0.6,85,0,{"$f":"ROUND(Primes!$Q$10*V8511,2)","v":0.13},0,{"v":3617.194486340221,"d":"3,617"},{"$f":"'BP Financier'!$G$44*(('BP Financier'!$C$22+'BP Financier'!$D$22+'BP Financier'!$E$22+'BP Financier'!$F$22+'BP Financier'!$G$22)/('BP Financier'!$C$16+'BP Financier'!$C$19+'BP Financier'!$D$16+'BP Financier'!$D$19+'BP Financier'!$E$16+'BP Financier'!$E$19+'BP Financier'!$C$22+'BP Financier'!$D$22+'BP Financier'!$E$22+'BP Financier'!$F$22+'BP Financier'!$F$16+'BP Financier'!$F$19+'BP Financier'!$G$16+'BP Financier'!$G$19+'BP Financier'!$G$22))*$V8511*X8511/(1-$W8511)","v":{"v":460.4164571220675,"d":"460"}},{"$f":"'BP Financier'!$G$44*(('BP Financier'!$C$22+'BP Financier'!$D$22+'BP Financier'!$E$22+'BP Financier'!$F$22+'BP Financier'!$G$22)/('BP Financier'!$C$16+'BP Financier'!$C$19+'BP Financier'!$D$16+'BP Financier'!$D$19+'BP Financier'!$E$16+'BP Financier'!$E$19+'BP Financier'!$C$22+'BP Financier'!$D$22+'BP Financier'!$E$22+'BP Financier'!$F$22+'BP Financier'!$F$16+'BP Financier'!$F$19+'BP Financier'!$G$16+'BP Financier'!$G$19+'BP Financier'!$G$22))*$V8511*Y8511/(1-$W8511)","v":{"v":307.7922171921004,"d":"308"}},{"$f":"'BP Financier'!$G$44*(('BP Financier'!$C$22+'BP Financier'!$D$22+'BP Financier'!$E$22+'BP Financier'!$F$22+'BP Financier'!$G$22)/('BP Financier'!$C$16+'BP Financier'!$C$19+'BP Financier'!$D$16+'BP Financier'!$D$19+'BP Financier'!$E$16+'BP Financier'!$E$19+'BP Financier'!$C$22+'BP Financier'!$D$22+'BP Financier'!$E$22+'BP Financier'!$F$22+'BP Financier'!$F$16+'BP Financier'!$F$19+'BP Financier'!$G$16+'BP Financier'!$G$19+'BP Financier'!$G$22))*$V8511*Z8511/(1-$W8511)","v":{"v":2408.9192535613147,"d":"2,409"}},{"$f":"'BP Financier'!$G$44*(('BP Financier'!$C$22+'BP Financier'!$D$22+'BP Financier'!$E$22+'BP Financier'!$F$22+'BP Financier'!$G$22)/('BP Financier'!$C$16+'BP Financier'!$C$19+'BP Financier'!$D$16+'BP Financier'!$D$19+'BP Financier'!$E$16+'BP Financier'!$E$19+'BP Financier'!$C$22+'BP Financier'!$D$22+'BP Financier'!$E$22+'BP Financier'!$F$22+'BP Financier'!$F$16+'BP Financier'!$F$19+'BP Financier'!$G$16+'BP Financier'!$G$19+'BP Financier'!$G$22))*$V8511*AA8511/(1-$W8511)","v":{"v":297.6172678634359,"d":"298"}},{"$f":"'BP Financier'!$G$44*(('BP Financier'!$C$22+'BP Financier'!$D$22+'BP Financier'!$E$22+'BP Financier'!$F$22+'BP Financier'!$G$22)/('BP Financier'!$C$16+'BP Financier'!$C$19+'BP Financier'!$D$16+'BP Financier'!$D$19+'BP Financier'!$E$16+'BP Financier'!$E$19+'BP Financier'!$C$22+'BP Financier'!$D$22+'BP Financier'!$E$22+'BP Financier'!$F$22+'BP Financier'!$F$16+'BP Financier'!$F$19+'BP Financier'!$G$16+'BP Financier'!$G$19+'BP Financier'!$G$22))*$V8511*AB8511/(1-$W8511)","v":{"v":142.44929060130264,"d":"142"}},null,{"v":1E-3,"d":"0.10%"},{"$f":"Actif!$E$28/100","v":{"v":0.28900000000000003,"d":"28.90%"}},{"$f":"Actif!$E$30/100","v":{"v":0.09050000000000001,"d":"9.05%"}},{"$f":"Actif!$E$31/100","v":{"v":0.0605,"d":"6.05%"}},{"$f":"Actif!$E$32/100","v":{"v":0.47350000000000003,"d":"47.35%"}},{"$f":"Actif!$E$33/100","v":{"v":0.0585,"d":"5.85%"}},{"$f":"Actif!$E$29/100","v":{"v":0.027999999999999997,"d":"2.80%"}}]
[null,"#399",44,2030,"F","A_CAPI",{"v":0.44999999999999996,"d":"0.45"},{"v":0.38999999999999996,"d":"0.39"},0.6,0.6,85,0,{"$f":"ROUND(Primes!$Q$10*V8512,2)","v":0.13},0,{"v":3617.194486340221,"d":"3,617"},{"$f":"'BP Financier'!$G$44*(('BP Financier'!$C$22+'BP Financier'!$D$22+'BP Financier'!$E$22+'BP Financier'!$F$22+'BP Financier'!$G$22)/('BP Financier'!$C$16+'BP Financier'!$C$19+'BP Financier'!$D$16+'BP Financier'!$D$19+'BP Financier'!$E$16+'BP Financier'!$E$19+'BP Financier'!$C$22+'BP Financier'!$D$22+'BP Financier'!$E$22+'BP Financier'!$F$22+'BP Financier'!$F$16+'BP Financier'!$F$19+'BP Financier'!$G$16+'BP Financier'!$G$19+'BP Financier'!$G$22))*$V8512*X8512/(1-$W8512)","v":{"v":460.4164571220675,"d":"460"}},{"$f":"'BP Financier'!$G$44*(('BP Financier'!$C$22+'BP Financier'!$D$22+'BP Financier'!$E$22+'BP Financier'!$F$22+'BP Financier'!$G$22)/('BP Financier'!$C$16+'BP Financier'!$C$19+'BP Financier'!$D$16+'BP Financier'!$D$19+'BP Financier'!$E$16+'BP Financier'!$E$19+'BP Financier'!$C$22+'BP Financier'!$D$22+'BP Financier'!$E$22+'BP Financier'!$F$22+'BP Financier'!$F$16+'BP Financier'!$F$19+'BP Financier'!$G$16+'BP Financier'!$G$19+'BP Financier'!$G$22))*$V8512*Y8512/(1-$W8512)","v":{"v":307.7922171921004,"d":"308"}},{"$f":"'BP Financier'!$G$44*(('BP Financier'!$C$22+'BP Financier'!$D$22+'BP Financier'!$E$22+'BP Financier'!$F$22+'BP Financier'!$G$22)/('BP Financier'!$C$16+'BP Financier'!$C$19+'BP Financier'!$D$16+'BP Financier'!$D$19+'BP Financier'!$E$16+'BP Financier'!$E$19+'BP Financier'!$C$22+'BP Financier'!$D$22+'BP Financier'!$E$22+'BP Financier'!$F$22+'BP Financier'!$F$16+'BP Financier'!$F$19+'BP Financier'!$G$16+'BP Financier'!$G$19+'BP Financier'!$G$22))*$V8512*Z8512/(1-$W8512)","v":{"v":2408.9192535613147,"d":"2,409"}},{"$f":"'BP Financier'!$G$44*(('BP Financier'!$C$22+'BP Financier'!$D$22+'BP Financier'!$E$22+'BP Financier'!$F$22+'BP Financier'!$G$22)/('BP Financier'!$C$16+'BP Financier'!$C$19+'BP Financier'!$D$16+'BP Financier'!$D$19+'BP Financier'!$E$16+'BP Financier'!$E$19+'BP Financier'!$C$22+'BP Financier'!$D$22+'BP Financier'!$E$22+'BP Financier'!$F$22+'BP Financier'!$F$16+'BP Financier'!$F$19+'BP Financier'!$G$16+'BP Financier'!$G$19+'BP Financier'!$G$22))*$V8512*AA8512/(1-$W8512)","v":{"v":297.6172678634359,"d":"298"}},{"$f":"'BP Financier'!$G$44*(('BP Financier'!$C$22+'BP Financier'!$D$22+'BP Financier'!$E$22+'BP Financier'!$F$22+'BP Financier'!$G$22)/('BP Financier'!$C$16+'BP Financier'!$C$19+'BP Financier'!$D$16+'BP Financier'!$D$19+'BP Financier'!$E$16+'BP Financier'!$E$19+'BP Financier'!$C$22+'BP Financier'!$D$22+'BP Financier'!$E$22+'BP Financier'!$F$22+'BP Financier'!$F$16+'BP Financier'!$F$19+'BP Financier'!$G$16+'BP Financier'!$G$19+'BP Financier'!$G$22))*$V8512*AB8512/(1-$W8512)","v":{"v":142.44929060130264,"d":"142"}},null,{"v":1E-3,"d":"0.10%"},{"$f":"Actif!$E$28/100","v":{"v":0.28900000000000003,"d":"28.90%"}},{"$f":"Actif!$E$30/100","v":{"v":0.09050000000000001,"d":"9.05%"}},{"$f":"Actif!$E$31/100","v":{"v":0.0605,"d":"6.05%"}},{"$f":"Actif!$E$32/100","v":{"v":0.47350000000000003,"d":"47.35%"}},{"$f":"Actif!$E$33/100","v":{"v":0.0585,"d":"5.85%"}},{"$f":"Actif!$E$29/100","v":{"v":0.027999999999999997,"d":"2.80%"}}]
[null,"#400",44,2031,"F","A_CAPI",{"v":0.44999999999999996,"d":"0.45"},{"v":0.38999999999999996,"d":"0.39"},0.6,0.6,85,0,{"$f":"ROUND(Primes!$Q$10*V8513,2)","v":0.13},0,{"v":3617.194486340221,"d":"3,617"},{"$f":"'BP Financier'!$G$44*(('BP Financier'!$C$22+'BP Financier'!$D$22+'BP Financier'!$E$22+'BP Financier'!$F$22+'BP Financier'!$G$22)/('BP Financier'!$C$16+'BP Financier'!$C$19+'BP Financier'!$D$16+'BP Financier'!$D$19+'BP Financier'!$E$16+'BP Financier'!$E$19+'BP Financier'!$C$22+'BP Financier'!$D$22+'BP Financier'!$E$22+'BP Financier'!$F$22+'BP Financier'!$F$16+'BP Financier'!$F$19+'BP Financier'!$G$16+'BP Financier'!$G$19+'BP Financier'!$G$22))*$V8513*X8513/(1-$W8513)","v":{"v":460.4164571220675,"d":"460"}},{"$f":"'BP Financier'!$G$44*(('BP Financier'!$C$22+'BP Financier'!$D$22+'BP Financier'!$E$22+'BP Financier'!$F$22+'BP Financier'!$G$22)/('BP Financier'!$C$16+'BP Financier'!$C$19+'BP Financier'!$D$16+'BP Financier'!$D$19+'BP Financier'!$E$16+'BP Financier'!$E$19+'BP Financier'!$C$22+'BP Financier'!$D$22+'BP Financier'!$E$22+'BP Financier'!$F$22+'BP Financier'!$F$16+'BP Financier'!$F$19+'BP Financier'!$G$16+'BP Financier'!$G$19+'BP Financier'!$G$22))*$V8513*Y8513/(1-$W8513)","v":{"v":307.7922171921004,"d":"308"}},{"$f":"'BP Financier'!$G$44*(('BP Financier'!$C$22+'BP Financier'!$D$22+'BP Financier'!$E$22+'BP Financier'!$F$22+'BP Financier'!$G$22)/('BP Financier'!$C$16+'BP Financier'!$C$19+'BP Financier'!$D$16+'BP Financier'!$D$19+'BP Financier'!$E$16+'BP Financier'!$E$19+'BP Financier'!$C$22+'BP Financier'!$D$22+'BP Financier'!$E$22+'BP Financier'!$F$22+'BP Financier'!$F$16+'BP Financier'!$F$19+'BP Financier'!$G$16+'BP Financier'!$G$19+'BP Financier'!$G$22))*$V8513*Z8513/(1-$W8513)","v":{"v":2408.9192535613147,"d":"2,409"}},{"$f":"'BP Financier'!$G$44*(('BP Financier'!$C$22+'BP Financier'!$D$22+'BP Financier'!$E$22+'BP Financier'!$F$22+'BP Financier'!$G$22)/('BP Financier'!$C$16+'BP Financier'!$C$19+'BP Financier'!$D$16+'BP Financier'!$D$19+'BP Financier'!$E$16+'BP Financier'!$E$19+'BP Financier'!$C$22+'BP Financier'!$D$22+'BP Financier'!$E$22+'BP Financier'!$F$22+'BP Financier'!$F$16+'BP Financier'!$F$19+'BP Financier'!$G$16+'BP Financier'!$G$19+'BP Financier'!$G$22))*$V8513*AA8513/(1-$W8513)","v":{"v":297.6172678634359,"d":"298"}},{"$f":"'BP Financier'!$G$44*(('BP Financier'!$C$22+'BP Financier'!$D$22+'BP Financier'!$E$22+'BP Financier'!$F$22+'BP Financier'!$G$22)/('BP Financier'!$C$16+'BP Financier'!$C$19+'BP Financier'!$D$16+'BP Financier'!$D$19+'BP Financier'!$E$16+'BP Financier'!$E$19+'BP Financier'!$C$22+'BP Financier'!$D$22+'BP Financier'!$E$22+'BP Financier'!$F$22+'BP Financier'!$F$16+'BP Financier'!$F$19+'BP Financier'!$G$16+'BP Financier'!$G$19+'BP Financier'!$G$22))*$V8513*AB8513/(1-$W8513)","v":{"v":142.44929060130264,"d":"142"}},null,{"v":1E-3,"d":"0.10%"},{"$f":"Actif!$E$28/100","v":{"v":0.28900000000000003,"d":"28.90%"}},{"$f":"Actif!$E$30/100","v":{"v":0.09050000000000001,"d":"9.05%"}},{"$f":"Actif!$E$31/100","v":{"v":0.0605,"d":"6.05%"}},{"$f":"Actif!$E$32/100","v":{"v":0.47350000000000003,"d":"47.35%"}},{"$f":"Actif!$E$33/100","v":{"v":0.0585,"d":"5.85%"}},{"$f":"Actif!$E$29/100","v":{"v":0.027999999999999997,"d":"2.80%"}}]
[null,"#401",45,2026,"H","A_CAPI",{"v":0.44999999999999996,"d":"0.45"},{"v":0.38999999999999996,"d":"0.39"},0.6,0.6,85,0,{"$f":"ROUND(Primes!$Q$10*V8514,2)","v":0.13},0,{"v":3617.194486340221,"d":"3,617"},{"$f":"'BP Financier'!$G$44*(('BP Financier'!$C$22+'BP Financier'!$D$22+'BP Financier'!$E$22+'BP Financier'!$F$22+'BP Financier'!$G$22)/('BP Financier'!$C$16+'BP Financier'!$C$19+'BP Financier'!$D$16+'BP Financier'!$D$19+'BP Financier'!$E$16+'BP Financier'!$E$19+'BP Financier'!$C$22+'BP Financier'!$D$22+'BP Financier'!$E$22+'BP Financier'!$F$22+'BP Financier'!$F$16+'BP Financier'!$F$19+'BP Financier'!$G$16+'BP Financier'!$G$19+'BP Financier'!$G$22))*$V8514*X8514/(1-$W8514)","v":{"v":460.4164571220675,"d":"460"}},{"$f":"'BP Financier'!$G$44*(('BP Financier'!$C$22+'BP Financier'!$D$22+'BP Financier'!$E$22+'BP Financier'!$F$22+'BP Financier'!$G$22)/('BP Financier'!$C$16+'BP Financier'!$C$19+'BP Financier'!$D$16+'BP Financier'!$D$19+'BP Financier'!$E$16+'BP Financier'!$E$19+'BP Financier'!$C$22+'BP Financier'!$D$22+'BP Financier'!$E$22+'BP Financier'!$F$22+'BP Financier'!$F$16+'BP Financier'!$F$19+'BP Financier'!$G$16+'BP Financier'!$G$19+'BP Financier'!$G$22))*$V8514*Y8514/(1-$W8514)","v":{"v":307.7922171921004,"d":"308"}},{"$f":"'BP Financier'!$G$44*(('BP Financier'!$C$22+'BP Financier'!$D$22+'BP Financier'!$E$22+'BP Financier'!$F$22+'BP Financier'!$G$22)/('BP Financier'!$C$16+'BP Financier'!$C$19+'BP Financier'!$D$16+'BP Financier'!$D$19+'BP Financier'!$E$16+'BP Financier'!$E$19+'BP Financier'!$C$22+'BP Financier'!$D$22+'BP Financier'!$E$22+'BP Financier'!$F$22+'BP Financier'!$F$16+'BP Financier'!$F$19+'BP Financier'!$G$16+'BP Financier'!$G$19+'BP Financier'!$G$22))*$V8514*Z8514/(1-$W8514)","v":{"v":2408.9192535613147,"d":"2,409"}},{"$f":"'BP Financier'!$G$44*(('BP Financier'!$C$22+'BP Financier'!$D$22+'BP Financier'!$E$22+'BP Financier'!$F$22+'BP Financier'!$G$22)/('BP Financier'!$C$16+'BP Financier'!$C$19+'BP Financier'!$D$16+'BP Financier'!$D$19+'BP Financier'!$E$16+'BP Financier'!$E$19+'BP Financier'!$C$22+'BP Financier'!$D$22+'BP Financier'!$E$22+'BP Financier'!$F$22+'BP Financier'!$F$16+'BP Financier'!$F$19+'BP Financier'!$G$16+'BP Financier'!$G$19+'BP Financier'!$G$22))*$V8514*AA8514/(1-$W8514)","v":{"v":297.6172678634359,"d":"298"}},{"$f":"'BP Financier'!$G$44*(('BP Financier'!$C$22+'BP Financier'!$D$22+'BP Financier'!$E$22+'BP Financier'!$F$22+'BP Financier'!$G$22)/('BP Financier'!$C$16+'BP Financier'!$C$19+'BP Financier'!$D$16+'BP Financier'!$D$19+'BP Financier'!$E$16+'BP Financier'!$E$19+'BP Financier'!$C$22+'BP Financier'!$D$22+'BP Financier'!$E$22+'BP Financier'!$F$22+'BP Financier'!$F$16+'BP Financier'!$F$19+'BP Financier'!$G$16+'BP Financier'!$G$19+'BP Financier'!$G$22))*$V8514*AB8514/(1-$W8514)","v":{"v":142.44929060130264,"d":"142"}},null,{"v":1E-3,"d":"0.10%"},{"$f":"Actif!$E$28/100","v":{"v":0.28900000000000003,"d":"28.90%"}},{"$f":"Actif!$E$30/100","v":{"v":0.09050000000000001,"d":"9.05%"}},{"$f":"Actif!$E$31/100","v":{"v":0.0605,"d":"6.05%"}},{"$f":"Actif!$E$32/100","v":{"v":0.47350000000000003,"d":"47.35%"}},{"$f":"Actif!$E$33/100","v":{"v":0.0585,"d":"5.85%"}},{"$f":"Actif!$E$29/100","v":{"v":0.027999999999999997,"d":"2.80%"}}]
[null,"#402",45,2028,"H","A_CAPI",{"v":0.44999999999999996,"d":"0.45"},{"v":0.38999999999999996,"d":"0.39"},0.6,0.6,85,0,{"$f":"ROUND(Primes!$Q$10*V8515,2)","v":0.13},0,{"v":3617.194486340221,"d":"3,617"},{"$f":"'BP Financier'!$G$44*(('BP Financier'!$C$22+'BP Financier'!$D$22+'BP Financier'!$E$22+'BP Financier'!$F$22+'BP Financier'!$G$22)/('BP Financier'!$C$16+'BP Financier'!$C$19+'BP Financier'!$D$16+'BP Financier'!$D$19+'BP Financier'!$E$16+'BP Financier'!$E$19+'BP Financier'!$C$22+'BP Financier'!$D$22+'BP Financier'!$E$22+'BP Financier'!$F$22+'BP Financier'!$F$16+'BP Financier'!$F$19+'BP Financier'!$G$16+'BP Financier'!$G$19+'BP Financier'!$G$22))*$V8515*X8515/(1-$W8515)","v":{"v":460.4164571220675,"d":"460"}},{"$f":"'BP Financier'!$G$44*(('BP Financier'!$C$22+'BP Financier'!$D$22+'BP Financier'!$E$22+'BP Financier'!$F$22+'BP Financier'!$G$22)/('BP Financier'!$C$16+'BP Financier'!$C$19+'BP Financier'!$D$16+'BP Financier'!$D$19+'BP Financier'!$E$16+'BP Financier'!$E$19+'BP Financier'!$C$22+'BP Financier'!$D$22+'BP Financier'!$E$22+'BP Financier'!$F$22+'BP Financier'!$F$16+'BP Financier'!$F$19+'BP Financier'!$G$16+'BP Financier'!$G$19+'BP Financier'!$G$22))*$V8515*Y8515/(1-$W8515)","v":{"v":307.7922171921004,"d":"308"}},{"$f":"'BP Financier'!$G$44*(('BP Financier'!$C$22+'BP Financier'!$D$22+'BP Financier'!$E$22+'BP Financier'!$F$22+'BP Financier'!$G$22)/('BP Financier'!$C$16+'BP Financier'!$C$19+'BP Financier'!$D$16+'BP Financier'!$D$19+'BP Financier'!$E$16+'BP Financier'!$E$19+'BP Financier'!$C$22+'BP Financier'!$D$22+'BP Financier'!$E$22+'BP Financier'!$F$22+'BP Financier'!$F$16+'BP Financier'!$F$19+'BP Financier'!$G$16+'BP Financier'!$G$19+'BP Financier'!$G$22))*$V8515*Z8515/(1-$W8515)","v":{"v":2408.9192535613147,"d":"2,409"}},{"$f":"'BP Financier'!$G$44*(('BP Financier'!$C$22+'BP Financier'!$D$22+'BP Financier'!$E$22+'BP Financier'!$F$22+'BP Financier'!$G$22)/('BP Financier'!$C$16+'BP Financier'!$C$19+'BP Financier'!$D$16+'BP Financier'!$D$19+'BP Financier'!$E$16+'BP Financier'!$E$19+'BP Financier'!$C$22+'BP Financier'!$D$22+'BP Financier'!$E$22+'BP Financier'!$F$22+'BP Financier'!$F$16+'BP Financier'!$F$19+'BP Financier'!$G$16+'BP Financier'!$G$19+'BP Financier'!$G$22))*$V8515*AA8515/(1-$W8515)","v":{"v":297.6172678634359,"d":"298"}},{"$f":"'BP Financier'!$G$44*(('BP Financier'!$C$22+'BP Financier'!$D$22+'BP Financier'!$E$22+'BP Financier'!$F$22+'BP Financier'!$G$22)/('BP Financier'!$C$16+'BP Financier'!$C$19+'BP Financier'!$D$16+'BP Financier'!$D$19+'BP Financier'!$E$16+'BP Financier'!$E$19+'BP Financier'!$C$22+'BP Financier'!$D$22+'BP Financier'!$E$22+'BP Financier'!$F$22+'BP Financier'!$F$16+'BP Financier'!$F$19+'BP Financier'!$G$16+'BP Financier'!$G$19+'BP Financier'!$G$22))*$V8515*AB8515/(1-$W8515)","v":{"v":142.44929060130264,"d":"142"}},null,{"v":1E-3,"d":"0.10%"},{"$f":"Actif!$E$28/100","v":{"v":0.28900000000000003,"d":"28.90%"}},{"$f":"Actif!$E$30/100","v":{"v":0.09050000000000001,"d":"9.05%"}},{"$f":"Actif!$E$31/100","v":{"v":0.0605,"d":"6.05%"}},{"$f":"Actif!$E$32/100","v":{"v":0.47350000000000003,"d":"47.35%"}},{"$f":"Actif!$E$33/100","v":{"v":0.0585,"d":"5.85%"}},{"$f":"Actif!$E$29/100","v":{"v":0.027999999999999997,"d":"2.80%"}}]
[null,"#403",45,2029,"H","A_CAPI",{"v":0.44999999999999996,"d":"0.45"},{"v":0.38999999999999996,"d":"0.39"},0.6,0.6,85,0,{"$f":"ROUND(Primes!$Q$10*V8516,2)","v":0.13},0,{"v":3617.194486340221,"d":"3,617"},{"$f":"'BP Financier'!$G$44*(('BP Financier'!$C$22+'BP Financier'!$D$22+'BP Financier'!$E$22+'BP Financier'!$F$22+'BP Financier'!$G$22)/('BP Financier'!$C$16+'BP Financier'!$C$19+'BP Financier'!$D$16+'BP Financier'!$D$19+'BP Financier'!$E$16+'BP Financier'!$E$19+'BP Financier'!$C$22+'BP Financier'!$D$22+'BP Financier'!$E$22+'BP Financier'!$F$22+'BP Financier'!$F$16+'BP Financier'!$F$19+'BP Financier'!$G$16+'BP Financier'!$G$19+'BP Financier'!$G$22))*$V8516*X8516/(1-$W8516)","v":{"v":460.4164571220675,"d":"460"}},{"$f":"'BP Financier'!$G$44*(('BP Financier'!$C$22+'BP Financier'!$D$22+'BP Financier'!$E$22+'BP Financier'!$F$22+'BP Financier'!$G$22)/('BP Financier'!$C$16+'BP Financier'!$C$19+'BP Financier'!$D$16+'BP Financier'!$D$19+'BP Financier'!$E$16+'BP Financier'!$E$19+'BP Financier'!$C$22+'BP Financier'!$D$22+'BP Financier'!$E$22+'BP Financier'!$F$22+'BP Financier'!$F$16+'BP Financier'!$F$19+'BP Financier'!$G$16+'BP Financier'!$G$19+'BP Financier'!$G$22))*$V8516*Y8516/(1-$W8516)","v":{"v":307.7922171921004,"d":"308"}},{"$f":"'BP Financier'!$G$44*(('BP Financier'!$C$22+'BP Financier'!$D$22+'BP Financier'!$E$22+'BP Financier'!$F$22+'BP Financier'!$G$22)/('BP Financier'!$C$16+'BP Financier'!$C$19+'BP Financier'!$D$16+'BP Financier'!$D$19+'BP Financier'!$E$16+'BP Financier'!$E$19+'BP Financier'!$C$22+'BP Financier'!$D$22+'BP Financier'!$E$22+'BP Financier'!$F$22+'BP Financier'!$F$16+'BP Financier'!$F$19+'BP Financier'!$G$16+'BP Financier'!$G$19+'BP Financier'!$G$22))*$V8516*Z8516/(1-$W8516)","v":{"v":2408.9192535613147,"d":"2,409"}},{"$f":"'BP Financier'!$G$44*(('BP Financier'!$C$22+'BP Financier'!$D$22+'BP Financier'!$E$22+'BP Financier'!$F$22+'BP Financier'!$G$22)/('BP Financier'!$C$16+'BP Financier'!$C$19+'BP Financier'!$D$16+'BP Financier'!$D$19+'BP Financier'!$E$16+'BP Financier'!$E$19+'BP Financier'!$C$22+'BP Financier'!$D$22+'BP Financier'!$E$22+'BP Financier'!$F$22+'BP Financier'!$F$16+'BP Financier'!$F$19+'BP Financier'!$G$16+'BP Financier'!$G$19+'BP Financier'!$G$22))*$V8516*AA8516/(1-$W8516)","v":{"v":297.6172678634359,"d":"298"}},{"$f":"'BP Financier'!$G$44*(('BP Financier'!$C$22+'BP Financier'!$D$22+'BP Financier'!$E$22+'BP Financier'!$F$22+'BP Financier'!$G$22)/('BP Financier'!$C$16+'BP Financier'!$C$19+'BP Financier'!$D$16+'BP Financier'!$D$19+'BP Financier'!$E$16+'BP Financier'!$E$19+'BP Financier'!$C$22+'BP Financier'!$D$22+'BP Financier'!$E$22+'BP Financier'!$F$22+'BP Financier'!$F$16+'BP Financier'!$F$19+'BP Financier'!$G$16+'BP Financier'!$G$19+'BP Financier'!$G$22))*$V8516*AB8516/(1-$W8516)","v":{"v":142.44929060130264,"d":"142"}},null,{"v":1E-3,"d":"0.10%"},{"$f":"Actif!$E$28/100","v":{"v":0.28900000000000003,"d":"28.90%"}},{"$f":"Actif!$E$30/100","v":{"v":0.09050000000000001,"d":"9.05%"}},{"$f":"Actif!$E$31/100","v":{"v":0.0605,"d":"6.05%"}},{"$f":"Actif!$E$32/100","v":{"v":0.47350000000000003,"d":"47.35%"}},{"$f":"Actif!$E$33/100","v":{"v":0.0585,"d":"5.85%"}},{"$f":"Actif!$E$29/100","v":{"v":0.027999999999999997,"d":"2.80%"}}]
[null,"#404",45,2030,"H","A_CAPI",{"v":0.44999999999999996,"d":"0.45"},{"v":0.38999999999999996,"d":"0.39"},0.6,0.6,85,0,{"$f":"ROUND(Primes!$Q$10*V8517,2)","v":0.13},0,{"v":3617.194486340221,"d":"3,617"},{"$f":"'BP Financier'!$G$44*(('BP Financier'!$C$22+'BP Financier'!$D$22+'BP Financier'!$E$22+'BP Financier'!$F$22+'BP Financier'!$G$22)/('BP Financier'!$C$16+'BP Financier'!$C$19+'BP Financier'!$D$16+'BP Financier'!$D$19+'BP Financier'!$E$16+'BP Financier'!$E$19+'BP Financier'!$C$22+'BP Financier'!$D$22+'BP Financier'!$E$22+'BP Financier'!$F$22+'BP Financier'!$F$16+'BP Financier'!$F$19+'BP Financier'!$G$16+'BP Financier'!$G$19+'BP Financier'!$G$22))*$V8517*X8517/(1-$W8517)","v":{"v":460.4164571220675,"d":"460"}},{"$f":"'BP Financier'!$G$44*(('BP Financier'!$C$22+'BP Financier'!$D$22+'BP Financier'!$E$22+'BP Financier'!$F$22+'BP Financier'!$G$22)/('BP Financier'!$C$16+'BP Financier'!$C$19+'BP Financier'!$D$16+'BP Financier'!$D$19+'BP Financier'!$E$16+'BP Financier'!$E$19+'BP Financier'!$C$22+'BP Financier'!$D$22+'BP Financier'!$E$22+'BP Financier'!$F$22+'BP Financier'!$F$16+'BP Financier'!$F$19+'BP Financier'!$G$16+'BP Financier'!$G$19+'BP Financier'!$G$22))*$V8517*Y8517/(1-$W8517)","v":{"v":307.7922171921004,"d":"308"}},{"$f":"'BP Financier'!$G$44*(('BP Financier'!$C$22+'BP Financier'!$D$22+'BP Financier'!$E$22+'BP Financier'!$F$22+'BP Financier'!$G$22)/('BP Financier'!$C$16+'BP Financier'!$C$19+'BP Financier'!$D$16+'BP Financier'!$D$19+'BP Financier'!$E$16+'BP Financier'!$E$19+'BP Financier'!$C$22+'BP Financier'!$D$22+'BP Financier'!$E$22+'BP Financier'!$F$22+'BP Financier'!$F$16+'BP Financier'!$F$19+'BP Financier'!$G$16+'BP Financier'!$G$19+'BP Financier'!$G$22))*$V8517*Z8517/(1-$W8517)","v":{"v":2408.9192535613147,"d":"2,409"}},{"$f":"'BP Financier'!$G$44*(('BP Financier'!$C$22+'BP Financier'!$D$22+'BP Financier'!$E$22+'BP Financier'!$F$22+'BP Financier'!$G$22)/('BP Financier'!$C$16+'BP Financier'!$C$19+'BP Financier'!$D$16+'BP Financier'!$D$19+'BP Financier'!$E$16+'BP Financier'!$E$19+'BP Financier'!$C$22+'BP Financier'!$D$22+'BP Financier'!$E$22+'BP Financier'!$F$22+'BP Financier'!$F$16+'BP Financier'!$F$19+'BP Financier'!$G$16+'BP Financier'!$G$19+'BP Financier'!$G$22))*$V8517*AA8517/(1-$W8517)","v":{"v":297.6172678634359,"d":"298"}},{"$f":"'BP Financier'!$G$44*(('BP Financier'!$C$22+'BP Financier'!$D$22+'BP Financier'!$E$22+'BP Financier'!$F$22+'BP Financier'!$G$22)/('BP Financier'!$C$16+'BP Financier'!$C$19+'BP Financier'!$D$16+'BP Financier'!$D$19+'BP Financier'!$E$16+'BP Financier'!$E$19+'BP Financier'!$C$22+'BP Financier'!$D$22+'BP Financier'!$E$22+'BP Financier'!$F$22+'BP Financier'!$F$16+'BP Financier'!$F$19+'BP Financier'!$G$16+'BP Financier'!$G$19+'BP Financier'!$G$22))*$V8517*AB8517/(1-$W8517)","v":{"v":142.44929060130264,"d":"142"}},null,{"v":1E-3,"d":"0.10%"},{"$f":"Actif!$E$28/100","v":{"v":0.28900000000000003,"d":"28.90%"}},{"$f":"Actif!$E$30/100","v":{"v":0.09050000000000001,"d":"9.05%"}},{"$f":"Actif!$E$31/100","v":{"v":0.0605,"d":"6.05%"}},{"$f":"Actif!$E$32/100","v":{"v":0.47350000000000003,"d":"47.35%"}},{"$f":"Actif!$E$33/100","v":{"v":0.0585,"d":"5.85%"}},{"$f":"Actif!$E$29/100","v":{"v":0.027999999999999997,"d":"2.80%"}}]
[null,"#405",45,2031,"H","A_CAPI",{"v":0.44999999999999996,"d":"0.45"},{"v":0.38999999999999996,"d":"0.39"},0.6,0.6,85,0,{"$f":"ROUND(Primes!$Q$10*V8518,2)","v":0.13},0,{"v":3617.194486340221,"d":"3,617"},{"$f":"'BP Financier'!$G$44*(('BP Financier'!$C$22+'BP Financier'!$D$22+'BP Financier'!$E$22+'BP Financier'!$F$22+'BP Financier'!$G$22)/('BP Financier'!$C$16+'BP Financier'!$C$19+'BP Financier'!$D$16+'BP Financier'!$D$19+'BP Financier'!$E$16+'BP Financier'!$E$19+'BP Financier'!$C$22+'BP Financier'!$D$22+'BP Financier'!$E$22+'BP Financier'!$F$22+'BP Financier'!$F$16+'BP Financier'!$F$19+'BP Financier'!$G$16+'BP Financier'!$G$19+'BP Financier'!$G$22))*$V8518*X8518/(1-$W8518)","v":{"v":460.4164571220675,"d":"460"}},{"$f":"'BP Financier'!$G$44*(('BP Financier'!$C$22+'BP Financier'!$D$22+'BP Financier'!$E$22+'BP Financier'!$F$22+'BP Financier'!$G$22)/('BP Financier'!$C$16+'BP Financier'!$C$19+'BP Financier'!$D$16+'BP Financier'!$D$19+'BP Financier'!$E$16+'BP Financier'!$E$19+'BP Financier'!$C$22+'BP Financier'!$D$22+'BP Financier'!$E$22+'BP Financier'!$F$22+'BP Financier'!$F$16+'BP Financier'!$F$19+'BP Financier'!$G$16+'BP Financier'!$G$19+'BP Financier'!$G$22))*$V8518*Y8518/(1-$W8518)","v":{"v":307.7922171921004,"d":"308"}},{"$f":"'BP Financier'!$G$44*(('BP Financier'!$C$22+'BP Financier'!$D$22+'BP Financier'!$E$22+'BP Financier'!$F$22+'BP Financier'!$G$22)/('BP Financier'!$C$16+'BP Financier'!$C$19+'BP Financier'!$D$16+'BP Financier'!$D$19+'BP Financier'!$E$16+'BP Financier'!$E$19+'BP Financier'!$C$22+'BP Financier'!$D$22+'BP Financier'!$E$22+'BP Financier'!$F$22+'BP Financier'!$F$16+'BP Financier'!$F$19+'BP Financier'!$G$16+'BP Financier'!$G$19+'BP Financier'!$G$22))*$V8518*Z8518/(1-$W8518)","v":{"v":2408.9192535613147,"d":"2,409"}},{"$f":"'BP Financier'!$G$44*(('BP Financier'!$C$22+'BP Financier'!$D$22+'BP Financier'!$E$22+'BP Financier'!$F$22+'BP Financier'!$G$22)/('BP Financier'!$C$16+'BP Financier'!$C$19+'BP Financier'!$D$16+'BP Financier'!$D$19+'BP Financier'!$E$16+'BP Financier'!$E$19+'BP Financier'!$C$22+'BP Financier'!$D$22+'BP Financier'!$E$22+'BP Financier'!$F$22+'BP Financier'!$F$16+'BP Financier'!$F$19+'BP Financier'!$G$16+'BP Financier'!$G$19+'BP Financier'!$G$22))*$V8518*AA8518/(1-$W8518)","v":{"v":297.6172678634359,"d":"298"}},{"$f":"'BP Financier'!$G$44*(('BP Financier'!$C$22+'BP Financier'!$D$22+'BP Financier'!$E$22+'BP Financier'!$F$22+'BP Financier'!$G$22)/('BP Financier'!$C$16+'BP Financier'!$C$19+'BP Financier'!$D$16+'BP Financier'!$D$19+'BP Financier'!$E$16+'BP Financier'!$E$19+'BP Financier'!$C$22+'BP Financier'!$D$22+'BP Financier'!$E$22+'BP Financier'!$F$22+'BP Financier'!$F$16+'BP Financier'!$F$19+'BP Financier'!$G$16+'BP Financier'!$G$19+'BP Financier'!$G$22))*$V8518*AB8518/(1-$W8518)","v":{"v":142.44929060130264,"d":"142"}},null,{"v":1E-3,"d":"0.10%"},{"$f":"Actif!$E$28/100","v":{"v":0.28900000000000003,"d":"28.90%"}},{"$f":"Actif!$E$30/100","v":{"v":0.09050000000000001,"d":"9.05%"}},{"$f":"Actif!$E$31/100","v":{"v":0.0605,"d":"6.05%"}},{"$f":"Actif!$E$32/100","v":{"v":0.47350000000000003,"d":"47.35%"}},{"$f":"Actif!$E$33/100","v":{"v":0.0585,"d":"5.85%"}},{"$f":"Actif!$E$29/100","v":{"v":0.027999999999999997,"d":"2.80%"}}]
[null,"#406",46,2026,"H","A_CAPI",{"v":0.44999999999999996,"d":"0.45"},{"v":0.38999999999999996,"d":"0.39"},0.6,0.6,85,0,{"$f":"ROUND(Primes!$Q$10*V8519,2)","v":0.13},0,{"v":3617.194486340221,"d":"3,617"},{"$f":"'BP Financier'!$G$44*(('BP Financier'!$C$22+'BP Financier'!$D$22+'BP Financier'!$E$22+'BP Financier'!$F$22+'BP Financier'!$G$22)/('BP Financier'!$C$16+'BP Financier'!$C$19+'BP Financier'!$D$16+'BP Financier'!$D$19+'BP Financier'!$E$16+'BP Financier'!$E$19+'BP Financier'!$C$22+'BP Financier'!$D$22+'BP Financier'!$E$22+'BP Financier'!$F$22+'BP Financier'!$F$16+'BP Financier'!$F$19+'BP Financier'!$G$16+'BP Financier'!$G$19+'BP Financier'!$G$22))*$V8519*X8519/(1-$W8519)","v":{"v":460.4164571220675,"d":"460"}},{"$f":"'BP Financier'!$G$44*(('BP Financier'!$C$22+'BP Financier'!$D$22+'BP Financier'!$E$22+'BP Financier'!$F$22+'BP Financier'!$G$22)/('BP Financier'!$C$16+'BP Financier'!$C$19+'BP Financier'!$D$16+'BP Financier'!$D$19+'BP Financier'!$E$16+'BP Financier'!$E$19+'BP Financier'!$C$22+'BP Financier'!$D$22+'BP Financier'!$E$22+'BP Financier'!$F$22+'BP Financier'!$F$16+'BP Financier'!$F$19+'BP Financier'!$G$16+'BP Financier'!$G$19+'BP Financier'!$G$22))*$V8519*Y8519/(1-$W8519)","v":{"v":307.7922171921004,"d":"308"}},{"$f":"'BP Financier'!$G$44*(('BP Financier'!$C$22+'BP Financier'!$D$22+'BP Financier'!$E$22+'BP Financier'!$F$22+'BP Financier'!$G$22)/('BP Financier'!$C$16+'BP Financier'!$C$19+'BP Financier'!$D$16+'BP Financier'!$D$19+'BP Financier'!$E$16+'BP Financier'!$E$19+'BP Financier'!$C$22+'BP Financier'!$D$22+'BP Financier'!$E$22+'BP Financier'!$F$22+'BP Financier'!$F$16+'BP Financier'!$F$19+'BP Financier'!$G$16+'BP Financier'!$G$19+'BP Financier'!$G$22))*$V8519*Z8519/(1-$W8519)","v":{"v":2408.9192535613147,"d":"2,409"}},{"$f":"'BP Financier'!$G$44*(('BP Financier'!$C$22+'BP Financier'!$D$22+'BP Financier'!$E$22+'BP Financier'!$F$22+'BP Financier'!$G$22)/('BP Financier'!$C$16+'BP Financier'!$C$19+'BP Financier'!$D$16+'BP Financier'!$D$19+'BP Financier'!$E$16+'BP Financier'!$E$19+'BP Financier'!$C$22+'BP Financier'!$D$22+'BP Financier'!$E$22+'BP Financier'!$F$22+'BP Financier'!$F$16+'BP Financier'!$F$19+'BP Financier'!$G$16+'BP Financier'!$G$19+'BP Financier'!$G$22))*$V8519*AA8519/(1-$W8519)","v":{"v":297.6172678634359,"d":"298"}},{"$f":"'BP Financier'!$G$44*(('BP Financier'!$C$22+'BP Financier'!$D$22+'BP Financier'!$E$22+'BP Financier'!$F$22+'BP Financier'!$G$22)/('BP Financier'!$C$16+'BP Financier'!$C$19+'BP Financier'!$D$16+'BP Financier'!$D$19+'BP Financier'!$E$16+'BP Financier'!$E$19+'BP Financier'!$C$22+'BP Financier'!$D$22+'BP Financier'!$E$22+'BP Financier'!$F$22+'BP Financier'!$F$16+'BP Financier'!$F$19+'BP Financier'!$G$16+'BP Financier'!$G$19+'BP Financier'!$G$22))*$V8519*AB8519/(1-$W8519)","v":{"v":142.44929060130264,"d":"142"}},null,{"v":1E-3,"d":"0.10%"},{"$f":"Actif!$E$28/100","v":{"v":0.28900000000000003,"d":"28.90%"}},{"$f":"Actif!$E$30/100","v":{"v":0.09050000000000001,"d":"9.05%"}},{"$f":"Actif!$E$31/100","v":{"v":0.0605,"d":"6.05%"}},{"$f":"Actif!$E$32/100","v":{"v":0.47350000000000003,"d":"47.35%"}},{"$f":"Actif!$E$33/100","v":{"v":0.0585,"d":"5.85%"}},{"$f":"Actif!$E$29/100","v":{"v":0.027999999999999997,"d":"2.80%"}}]
[null,"#407",46,2028,"H","A_CAPI",{"v":0.44999999999999996,"d":"0.45"},{"v":0.38999999999999996,"d":"0.39"},0.6,0.6,85,0,{"$f":"ROUND(Primes!$Q$10*V8520,2)","v":0.13},0,{"v":3617.194486340221,"d":"3,617"},{"$f":"'BP Financier'!$G$44*(('BP Financier'!$C$22+'BP Financier'!$D$22+'BP Financier'!$E$22+'BP Financier'!$F$22+'BP Financier'!$G$22)/('BP Financier'!$C$16+'BP Financier'!$C$19+'BP Financier'!$D$16+'BP Financier'!$D$19+'BP Financier'!$E$16+'BP Financier'!$E$19+'BP Financier'!$C$22+'BP Financier'!$D$22+'BP Financier'!$E$22+'BP Financier'!$F$22+'BP Financier'!$F$16+'BP Financier'!$F$19+'BP Financier'!$G$16+'BP Financier'!$G$19+'BP Financier'!$G$22))*$V8520*X8520/(1-$W8520)","v":{"v":460.4164571220675,"d":"460"}},{"$f":"'BP Financier'!$G$44*(('BP Financier'!$C$22+'BP Financier'!$D$22+'BP Financier'!$E$22+'BP Financier'!$F$22+'BP Financier'!$G$22)/('BP Financier'!$C$16+'BP Financier'!$C$19+'BP Financier'!$D$16+'BP Financier'!$D$19+'BP Financier'!$E$16+'BP Financier'!$E$19+'BP Financier'!$C$22+'BP Financier'!$D$22+'BP Financier'!$E$22+'BP Financier'!$F$22+'BP Financier'!$F$16+'BP Financier'!$F$19+'BP Financier'!$G$16+'BP Financier'!$G$19+'BP Financier'!$G$22))*$V8520*Y8520/(1-$W8520)","v":{"v":307.7922171921004,"d":"308"}},{"$f":"'BP Financier'!$G$44*(('BP Financier'!$C$22+'BP Financier'!$D$22+'BP Financier'!$E$22+'BP Financier'!$F$22+'BP Financier'!$G$22)/('BP Financier'!$C$16+'BP Financier'!$C$19+'BP Financier'!$D$16+'BP Financier'!$D$19+'BP Financier'!$E$16+'BP Financier'!$E$19+'BP Financier'!$C$22+'BP Financier'!$D$22+'BP Financier'!$E$22+'BP Financier'!$F$22+'BP Financier'!$F$16+'BP Financier'!$F$19+'BP Financier'!$G$16+'BP Financier'!$G$19+'BP Financier'!$G$22))*$V8520*Z8520/(1-$W8520)","v":{"v":2408.9192535613147,"d":"2,409"}},{"$f":"'BP Financier'!$G$44*(('BP Financier'!$C$22+'BP Financier'!$D$22+'BP Financier'!$E$22+'BP Financier'!$F$22+'BP Financier'!$G$22)/('BP Financier'!$C$16+'BP Financier'!$C$19+'BP Financier'!$D$16+'BP Financier'!$D$19+'BP Financier'!$E$16+'BP Financier'!$E$19+'BP Financier'!$C$22+'BP Financier'!$D$22+'BP Financier'!$E$22+'BP Financier'!$F$22+'BP Financier'!$F$16+'BP Financier'!$F$19+'BP Financier'!$G$16+'BP Financier'!$G$19+'BP Financier'!$G$22))*$V8520*AA8520/(1-$W8520)","v":{"v":297.6172678634359,"d":"298"}},{"$f":"'BP Financier'!$G$44*(('BP Financier'!$C$22+'BP Financier'!$D$22+'BP Financier'!$E$22+'BP Financier'!$F$22+'BP Financier'!$G$22)/('BP Financier'!$C$16+'BP Financier'!$C$19+'BP Financier'!$D$16+'BP Financier'!$D$19+'BP Financier'!$E$16+'BP Financier'!$E$19+'BP Financier'!$C$22+'BP Financier'!$D$22+'BP Financier'!$E$22+'BP Financier'!$F$22+'BP Financier'!$F$16+'BP Financier'!$F$19+'BP Financier'!$G$16+'BP Financier'!$G$19+'BP Financier'!$G$22))*$V8520*AB8520/(1-$W8520)","v":{"v":142.44929060130264,"d":"142"}},null,{"v":1E-3,"d":"0.10%"},{"$f":"Actif!$E$28/100","v":{"v":0.28900000000000003,"d":"28.90%"}},{"$f":"Actif!$E$30/100","v":{"v":0.09050000000000001,"d":"9.05%"}},{"$f":"Actif!$E$31/100","v":{"v":0.0605,"d":"6.05%"}},{"$f":"Actif!$E$32/100","v":{"v":0.47350000000000003,"d":"47.35%"}},{"$f":"Actif!$E$33/100","v":{"v":0.0585,"d":"5.85%"}},{"$f":"Actif!$E$29/100","v":{"v":0.027999999999999997,"d":"2.80%"}}]
[null,"#408",46,2029,"H","A_CAPI",{"v":0.44999999999999996,"d":"0.45"},{"v":0.38999999999999996,"d":"0.39"},0.6,0.6,85,0,{"$f":"ROUND(Primes!$Q$10*V8521,2)","v":0.13},0,{"v":3617.194486340221,"d":"3,617"},{"$f":"'BP Financier'!$G$44*(('BP Financier'!$C$22+'BP Financier'!$D$22+'BP Financier'!$E$22+'BP Financier'!$F$22+'BP Financier'!$G$22)/('BP Financier'!$C$16+'BP Financier'!$C$19+'BP Financier'!$D$16+'BP Financier'!$D$19+'BP Financier'!$E$16+'BP Financier'!$E$19+'BP Financier'!$C$22+'BP Financier'!$D$22+'BP Financier'!$E$22+'BP Financier'!$F$22+'BP Financier'!$F$16+'BP Financier'!$F$19+'BP Financier'!$G$16+'BP Financier'!$G$19+'BP Financier'!$G$22))*$V8521*X8521/(1-$W8521)","v":{"v":460.4164571220675,"d":"460"}},{"$f":"'BP Financier'!$G$44*(('BP Financier'!$C$22+'BP Financier'!$D$22+'BP Financier'!$E$22+'BP Financier'!$F$22+'BP Financier'!$G$22)/('BP Financier'!$C$16+'BP Financier'!$C$19+'BP Financier'!$D$16+'BP Financier'!$D$19+'BP Financier'!$E$16+'BP Financier'!$E$19+'BP Financier'!$C$22+'BP Financier'!$D$22+'BP Financier'!$E$22+'BP Financier'!$F$22+'BP Financier'!$F$16+'BP Financier'!$F$19+'BP Financier'!$G$16+'BP Financier'!$G$19+'BP Financier'!$G$22))*$V8521*Y8521/(1-$W8521)","v":{"v":307.7922171921004,"d":"308"}},{"$f":"'BP Financier'!$G$44*(('BP Financier'!$C$22+'BP Financier'!$D$22+'BP Financier'!$E$22+'BP Financier'!$F$22+'BP Financier'!$G$22)/('BP Financier'!$C$16+'BP Financier'!$C$19+'BP Financier'!$D$16+'BP Financier'!$D$19+'BP Financier'!$E$16+'BP Financier'!$E$19+'BP Financier'!$C$22+'BP Financier'!$D$22+'BP Financier'!$E$22+'BP Financier'!$F$22+'BP Financier'!$F$16+'BP Financier'!$F$19+'BP Financier'!$G$16+'BP Financier'!$G$19+'BP Financier'!$G$22))*$V8521*Z8521/(1-$W8521)","v":{"v":2408.9192535613147,"d":"2,409"}},{"$f":"'BP Financier'!$G$44*(('BP Financier'!$C$22+'BP Financier'!$D$22+'BP Financier'!$E$22+'BP Financier'!$F$22+'BP Financier'!$G$22)/('BP Financier'!$C$16+'BP Financier'!$C$19+'BP Financier'!$D$16+'BP Financier'!$D$19+'BP Financier'!$E$16+'BP Financier'!$E$19+'BP Financier'!$C$22+'BP Financier'!$D$22+'BP Financier'!$E$22+'BP Financier'!$F$22+'BP Financier'!$F$16+'BP Financier'!$F$19+'BP Financier'!$G$16+'BP Financier'!$G$19+'BP Financier'!$G$22))*$V8521*AA8521/(1-$W8521)","v":{"v":297.6172678634359,"d":"298"}},{"$f":"'BP Financier'!$G$44*(('BP Financier'!$C$22+'BP Financier'!$D$22+'BP Financier'!$E$22+'BP Financier'!$F$22+'BP Financier'!$G$22)/('BP Financier'!$C$16+'BP Financier'!$C$19+'BP Financier'!$D$16+'BP Financier'!$D$19+'BP Financier'!$E$16+'BP Financier'!$E$19+'BP Financier'!$C$22+'BP Financier'!$D$22+'BP Financier'!$E$22+'BP Financier'!$F$22+'BP Financier'!$F$16+'BP Financier'!$F$19+'BP Financier'!$G$16+'BP Financier'!$G$19+'BP Financier'!$G$22))*$V8521*AB8521/(1-$W8521)","v":{"v":142.44929060130264,"d":"142"}},null,{"v":1E-3,"d":"0.10%"},{"$f":"Actif!$E$28/100","v":{"v":0.28900000000000003,"d":"28.90%"}},{"$f":"Actif!$E$30/100","v":{"v":0.09050000000000001,"d":"9.05%"}},{"$f":"Actif!$E$31/100","v":{"v":0.0605,"d":"6.05%"}},{"$f":"Actif!$E$32/100","v":{"v":0.47350000000000003,"d":"47.35%"}},{"$f":"Actif!$E$33/100","v":{"v":0.0585,"d":"5.85%"}},{"$f":"Actif!$E$29/100","v":{"v":0.027999999999999997,"d":"2.80%"}}]
[null,"#409",46,2030,"H","A_CAPI",{"v":0.44999999999999996,"d":"0.45"},{"v":0.38999999999999996,"d":"0.39"},0.6,0.6,85,0,{"$f":"ROUND(Primes!$Q$10*V8522,2)","v":0.13},0,{"v":3617.194486340221,"d":"3,617"},{"$f":"'BP Financier'!$G$44*(('BP Financier'!$C$22+'BP Financier'!$D$22+'BP Financier'!$E$22+'BP Financier'!$F$22+'BP Financier'!$G$22)/('BP Financier'!$C$16+'BP Financier'!$C$19+'BP Financier'!$D$16+'BP Financier'!$D$19+'BP Financier'!$E$16+'BP Financier'!$E$19+'BP Financier'!$C$22+'BP Financier'!$D$22+'BP Financier'!$E$22+'BP Financier'!$F$22+'BP Financier'!$F$16+'BP Financier'!$F$19+'BP Financier'!$G$16+'BP Financier'!$G$19+'BP Financier'!$G$22))*$V8522*X8522/(1-$W8522)","v":{"v":460.4164571220675,"d":"460"}},{"$f":"'BP Financier'!$G$44*(('BP Financier'!$C$22+'BP Financier'!$D$22+'BP Financier'!$E$22+'BP Financier'!$F$22+'BP Financier'!$G$22)/('BP Financier'!$C$16+'BP Financier'!$C$19+'BP Financier'!$D$16+'BP Financier'!$D$19+'BP Financier'!$E$16+'BP Financier'!$E$19+'BP Financier'!$C$22+'BP Financier'!$D$22+'BP Financier'!$E$22+'BP Financier'!$F$22+'BP Financier'!$F$16+'BP Financier'!$F$19+'BP Financier'!$G$16+'BP Financier'!$G$19+'BP Financier'!$G$22))*$V8522*Y8522/(1-$W8522)","v":{"v":307.7922171921004,"d":"308"}},{"$f":"'BP Financier'!$G$44*(('BP Financier'!$C$22+'BP Financier'!$D$22+'BP Financier'!$E$22+'BP Financier'!$F$22+'BP Financier'!$G$22)/('BP Financier'!$C$16+'BP Financier'!$C$19+'BP Financier'!$D$16+'BP Financier'!$D$19+'BP Financier'!$E$16+'BP Financier'!$E$19+'BP Financier'!$C$22+'BP Financier'!$D$22+'BP Financier'!$E$22+'BP Financier'!$F$22+'BP Financier'!$F$16+'BP Financier'!$F$19+'BP Financier'!$G$16+'BP Financier'!$G$19+'BP Financier'!$G$22))*$V8522*Z8522/(1-$W8522)","v":{"v":2408.9192535613147,"d":"2,409"}},{"$f":"'BP Financier'!$G$44*(('BP Financier'!$C$22+'BP Financier'!$D$22+'BP Financier'!$E$22+'BP Financier'!$F$22+'BP Financier'!$G$22)/('BP Financier'!$C$16+'BP Financier'!$C$19+'BP Financier'!$D$16+'BP Financier'!$D$19+'BP Financier'!$E$16+'BP Financier'!$E$19+'BP Financier'!$C$22+'BP Financier'!$D$22+'BP Financier'!$E$22+'BP Financier'!$F$22+'BP Financier'!$F$16+'BP Financier'!$F$19+'BP Financier'!$G$16+'BP Financier'!$G$19+'BP Financier'!$G$22))*$V8522*AA8522/(1-$W8522)","v":{"v":297.6172678634359,"d":"298"}},{"$f":"'BP Financier'!$G$44*(('BP Financier'!$C$22+'BP Financier'!$D$22+'BP Financier'!$E$22+'BP Financier'!$F$22+'BP Financier'!$G$22)/('BP Financier'!$C$16+'BP Financier'!$C$19+'BP Financier'!$D$16+'BP Financier'!$D$19+'BP Financier'!$E$16+'BP Financier'!$E$19+'BP Financier'!$C$22+'BP Financier'!$D$22+'BP Financier'!$E$22+'BP Financier'!$F$22+'BP Financier'!$F$16+'BP Financier'!$F$19+'BP Financier'!$G$16+'BP Financier'!$G$19+'BP Financier'!$G$22))*$V8522*AB8522/(1-$W8522)","v":{"v":142.44929060130264,"d":"142"}},null,{"v":1E-3,"d":"0.10%"},{"$f":"Actif!$E$28/100","v":{"v":0.28900000000000003,"d":"28.90%"}},{"$f":"Actif!$E$30/100","v":{"v":0.09050000000000001,"d":"9.05%"}},{"$f":"Actif!$E$31/100","v":{"v":0.0605,"d":"6.05%"}},{"$f":"Actif!$E$32/100","v":{"v":0.47350000000000003,"d":"47.35%"}},{"$f":"Actif!$E$33/100","v":{"v":0.0585,"d":"5.85%"}},{"$f":"Actif!$E$29/100","v":{"v":0.027999999999999997,"d":"2.80%"}}]
[null,"#410",46,2031,"H","A_CAPI",{"v":0.44999999999999996,"d":"0.45"},{"v":0.38999999999999996,"d":"0.39"},0.6,0.6,85,0,{"$f":"ROUND(Primes!$Q$10*V8523,2)","v":0.13},0,{"v":3617.194486340221,"d":"3,617"},{"$f":"'BP Financier'!$G$44*(('BP Financier'!$C$22+'BP Financier'!$D$22+'BP Financier'!$E$22+'BP Financier'!$F$22+'BP Financier'!$G$22)/('BP Financier'!$C$16+'BP Financier'!$C$19+'BP Financier'!$D$16+'BP Financier'!$D$19+'BP Financier'!$E$16+'BP Financier'!$E$19+'BP Financier'!$C$22+'BP Financier'!$D$22+'BP Financier'!$E$22+'BP Financier'!$F$22+'BP Financier'!$F$16+'BP Financier'!$F$19+'BP Financier'!$G$16+'BP Financier'!$G$19+'BP Financier'!$G$22))*$V8523*X8523/(1-$W8523)","v":{"v":460.4164571220675,"d":"460"}},{"$f":"'BP Financier'!$G$44*(('BP Financier'!$C$22+'BP Financier'!$D$22+'BP Financier'!$E$22+'BP Financier'!$F$22+'BP Financier'!$G$22)/('BP Financier'!$C$16+'BP Financier'!$C$19+'BP Financier'!$D$16+'BP Financier'!$D$19+'BP Financier'!$E$16+'BP Financier'!$E$19+'BP Financier'!$C$22+'BP Financier'!$D$22+'BP Financier'!$E$22+'BP Financier'!$F$22+'BP Financier'!$F$16+'BP Financier'!$F$19+'BP Financier'!$G$16+'BP Financier'!$G$19+'BP Financier'!$G$22))*$V8523*Y8523/(1-$W8523)","v":{"v":307.7922171921004,"d":"308"}},{"$f":"'BP Financier'!$G$44*(('BP Financier'!$C$22+'BP Financier'!$D$22+'BP Financier'!$E$22+'BP Financier'!$F$22+'BP Financier'!$G$22)/('BP Financier'!$C$16+'BP Financier'!$C$19+'BP Financier'!$D$16+'BP Financier'!$D$19+'BP Financier'!$E$16+'BP Financier'!$E$19+'BP Financier'!$C$22+'BP Financier'!$D$22+'BP Financier'!$E$22+'BP Financier'!$F$22+'BP Financier'!$F$16+'BP Financier'!$F$19+'BP Financier'!$G$16+'BP Financier'!$G$19+'BP Financier'!$G$22))*$V8523*Z8523/(1-$W8523)","v":{"v":2408.9192535613147,"d":"2,409"}},{"$f":"'BP Financier'!$G$44*(('BP Financier'!$C$22+'BP Financier'!$D$22+'BP Financier'!$E$22+'BP Financier'!$F$22+'BP Financier'!$G$22)/('BP Financier'!$C$16+'BP Financier'!$C$19+'BP Financier'!$D$16+'BP Financier'!$D$19+'BP Financier'!$E$16+'BP Financier'!$E$19+'BP Financier'!$C$22+'BP Financier'!$D$22+'BP Financier'!$E$22+'BP Financier'!$F$22+'BP Financier'!$F$16+'BP Financier'!$F$19+'BP Financier'!$G$16+'BP Financier'!$G$19+'BP Financier'!$G$22))*$V8523*AA8523/(1-$W8523)","v":{"v":297.6172678634359,"d":"298"}},{"$f":"'BP Financier'!$G$44*(('BP Financier'!$C$22+'BP Financier'!$D$22+'BP Financier'!$E$22+'BP Financier'!$F$22+'BP Financier'!$G$22)/('BP Financier'!$C$16+'BP Financier'!$C$19+'BP Financier'!$D$16+'BP Financier'!$D$19+'BP Financier'!$E$16+'BP Financier'!$E$19+'BP Financier'!$C$22+'BP Financier'!$D$22+'BP Financier'!$E$22+'BP Financier'!$F$22+'BP Financier'!$F$16+'BP Financier'!$F$19+'BP Financier'!$G$16+'BP Financier'!$G$19+'BP Financier'!$G$22))*$V8523*AB8523/(1-$W8523)","v":{"v":142.44929060130264,"d":"142"}},null,{"v":1E-3,"d":"0.10%"},{"$f":"Actif!$E$28/100","v":{"v":0.28900000000000003,"d":"28.90%"}},{"$f":"Actif!$E$30/100","v":{"v":0.09050000000000001,"d":"9.05%"}},{"$f":"Actif!$E$31/100","v":{"v":0.0605,"d":"6.05%"}},{"$f":"Actif!$E$32/100","v":{"v":0.47350000000000003,"d":"47.35%"}},{"$f":"Actif!$E$33/100","v":{"v":0.0585,"d":"5.85%"}},{"$f":"Actif!$E$29/100","v":{"v":0.027999999999999997,"d":"2.80%"}}]
[null,"#411",47,2026,"F","A_CAPI",{"v":0.44999999999999996,"d":"0.45"},{"v":0.38999999999999996,"d":"0.39"},0.6,0.6,85,0,{"$f":"ROUND(Primes!$Q$10*V8524,2)","v":0.13},0,{"v":3617.194486340221,"d":"3,617"},{"$f":"'BP Financier'!$G$44*(('BP Financier'!$C$22+'BP Financier'!$D$22+'BP Financier'!$E$22+'BP Financier'!$F$22+'BP Financier'!$G$22)/('BP Financier'!$C$16+'BP Financier'!$C$19+'BP Financier'!$D$16+'BP Financier'!$D$19+'BP Financier'!$E$16+'BP Financier'!$E$19+'BP Financier'!$C$22+'BP Financier'!$D$22+'BP Financier'!$E$22+'BP Financier'!$F$22+'BP Financier'!$F$16+'BP Financier'!$F$19+'BP Financier'!$G$16+'BP Financier'!$G$19+'BP Financier'!$G$22))*$V8524*X8524/(1-$W8524)","v":{"v":460.4164571220675,"d":"460"}},{"$f":"'BP Financier'!$G$44*(('BP Financier'!$C$22+'BP Financier'!$D$22+'BP Financier'!$E$22+'BP Financier'!$F$22+'BP Financier'!$G$22)/('BP Financier'!$C$16+'BP Financier'!$C$19+'BP Financier'!$D$16+'BP Financier'!$D$19+'BP Financier'!$E$16+'BP Financier'!$E$19+'BP Financier'!$C$22+'BP Financier'!$D$22+'BP Financier'!$E$22+'BP Financier'!$F$22+'BP Financier'!$F$16+'BP Financier'!$F$19+'BP Financier'!$G$16+'BP Financier'!$G$19+'BP Financier'!$G$22))*$V8524*Y8524/(1-$W8524)","v":{"v":307.7922171921004,"d":"308"}},{"$f":"'BP Financier'!$G$44*(('BP Financier'!$C$22+'BP Financier'!$D$22+'BP Financier'!$E$22+'BP Financier'!$F$22+'BP Financier'!$G$22)/('BP Financier'!$C$16+'BP Financier'!$C$19+'BP Financier'!$D$16+'BP Financier'!$D$19+'BP Financier'!$E$16+'BP Financier'!$E$19+'BP Financier'!$C$22+'BP Financier'!$D$22+'BP Financier'!$E$22+'BP Financier'!$F$22+'BP Financier'!$F$16+'BP Financier'!$F$19+'BP Financier'!$G$16+'BP Financier'!$G$19+'BP Financier'!$G$22))*$V8524*Z8524/(1-$W8524)","v":{"v":2408.9192535613147,"d":"2,409"}},{"$f":"'BP Financier'!$G$44*(('BP Financier'!$C$22+'BP Financier'!$D$22+'BP Financier'!$E$22+'BP Financier'!$F$22+'BP Financier'!$G$22)/('BP Financier'!$C$16+'BP Financier'!$C$19+'BP Financier'!$D$16+'BP Financier'!$D$19+'BP Financier'!$E$16+'BP Financier'!$E$19+'BP Financier'!$C$22+'BP Financier'!$D$22+'BP Financier'!$E$22+'BP Financier'!$F$22+'BP Financier'!$F$16+'BP Financier'!$F$19+'BP Financier'!$G$16+'BP Financier'!$G$19+'BP Financier'!$G$22))*$V8524*AA8524/(1-$W8524)","v":{"v":297.6172678634359,"d":"298"}},{"$f":"'BP Financier'!$G$44*(('BP Financier'!$C$22+'BP Financier'!$D$22+'BP Financier'!$E$22+'BP Financier'!$F$22+'BP Financier'!$G$22)/('BP Financier'!$C$16+'BP Financier'!$C$19+'BP Financier'!$D$16+'BP Financier'!$D$19+'BP Financier'!$E$16+'BP Financier'!$E$19+'BP Financier'!$C$22+'BP Financier'!$D$22+'BP Financier'!$E$22+'BP Financier'!$F$22+'BP Financier'!$F$16+'BP Financier'!$F$19+'BP Financier'!$G$16+'BP Financier'!$G$19+'BP Financier'!$G$22))*$V8524*AB8524/(1-$W8524)","v":{"v":142.44929060130264,"d":"142"}},null,{"v":1E-3,"d":"0.10%"},{"$f":"Actif!$E$28/100","v":{"v":0.28900000000000003,"d":"28.90%"}},{"$f":"Actif!$E$30/100","v":{"v":0.09050000000000001,"d":"9.05%"}},{"$f":"Actif!$E$31/100","v":{"v":0.0605,"d":"6.05%"}},{"$f":"Actif!$E$32/100","v":{"v":0.47350000000000003,"d":"47.35%"}},{"$f":"Actif!$E$33/100","v":{"v":0.0585,"d":"5.85%"}},{"$f":"Actif!$E$29/100","v":{"v":0.027999999999999997,"d":"2.80%"}}]
[null,"#412",47,2028,"F","A_CAPI",{"v":0.44999999999999996,"d":"0.45"},{"v":0.38999999999999996,"d":"0.39"},0.6,0.6,85,0,{"$f":"ROUND(Primes!$Q$10*V8525,2)","v":0.13},0,{"v":3617.194486340221,"d":"3,617"},{"$f":"'BP Financier'!$G$44*(('BP Financier'!$C$22+'BP Financier'!$D$22+'BP Financier'!$E$22+'BP Financier'!$F$22+'BP Financier'!$G$22)/('BP Financier'!$C$16+'BP Financier'!$C$19+'BP Financier'!$D$16+'BP Financier'!$D$19+'BP Financier'!$E$16+'BP Financier'!$E$19+'BP Financier'!$C$22+'BP Financier'!$D$22+'BP Financier'!$E$22+'BP Financier'!$F$22+'BP Financier'!$F$16+'BP Financier'!$F$19+'BP Financier'!$G$16+'BP Financier'!$G$19+'BP Financier'!$G$22))*$V8525*X8525/(1-$W8525)","v":{"v":460.4164571220675,"d":"460"}},{"$f":"'BP Financier'!$G$44*(('BP Financier'!$C$22+'BP Financier'!$D$22+'BP Financier'!$E$22+'BP Financier'!$F$22+'BP Financier'!$G$22)/('BP Financier'!$C$16+'BP Financier'!$C$19+'BP Financier'!$D$16+'BP Financier'!$D$19+'BP Financier'!$E$16+'BP Financier'!$E$19+'BP Financier'!$C$22+'BP Financier'!$D$22+'BP Financier'!$E$22+'BP Financier'!$F$22+'BP Financier'!$F$16+'BP Financier'!$F$19+'BP Financier'!$G$16+'BP Financier'!$G$19+'BP Financier'!$G$22))*$V8525*Y8525/(1-$W8525)","v":{"v":307.7922171921004,"d":"308"}},{"$f":"'BP Financier'!$G$44*(('BP Financier'!$C$22+'BP Financier'!$D$22+'BP Financier'!$E$22+'BP Financier'!$F$22+'BP Financier'!$G$22)/('BP Financier'!$C$16+'BP Financier'!$C$19+'BP Financier'!$D$16+'BP Financier'!$D$19+'BP Financier'!$E$16+'BP Financier'!$E$19+'BP Financier'!$C$22+'BP Financier'!$D$22+'BP Financier'!$E$22+'BP Financier'!$F$22+'BP Financier'!$F$16+'BP Financier'!$F$19+'BP Financier'!$G$16+'BP Financier'!$G$19+'BP Financier'!$G$22))*$V8525*Z8525/(1-$W8525)","v":{"v":2408.9192535613147,"d":"2,409"}},{"$f":"'BP Financier'!$G$44*(('BP Financier'!$C$22+'BP Financier'!$D$22+'BP Financier'!$E$22+'BP Financier'!$F$22+'BP Financier'!$G$22)/('BP Financier'!$C$16+'BP Financier'!$C$19+'BP Financier'!$D$16+'BP Financier'!$D$19+'BP Financier'!$E$16+'BP Financier'!$E$19+'BP Financier'!$C$22+'BP Financier'!$D$22+'BP Financier'!$E$22+'BP Financier'!$F$22+'BP Financier'!$F$16+'BP Financier'!$F$19+'BP Financier'!$G$16+'BP Financier'!$G$19+'BP Financier'!$G$22))*$V8525*AA8525/(1-$W8525)","v":{"v":297.6172678634359,"d":"298"}},{"$f":"'BP Financier'!$G$44*(('BP Financier'!$C$22+'BP Financier'!$D$22+'BP Financier'!$E$22+'BP Financier'!$F$22+'BP Financier'!$G$22)/('BP Financier'!$C$16+'BP Financier'!$C$19+'BP Financier'!$D$16+'BP Financier'!$D$19+'BP Financier'!$E$16+'BP Financier'!$E$19+'BP Financier'!$C$22+'BP Financier'!$D$22+'BP Financier'!$E$22+'BP Financier'!$F$22+'BP Financier'!$F$16+'BP Financier'!$F$19+'BP Financier'!$G$16+'BP Financier'!$G$19+'BP Financier'!$G$22))*$V8525*AB8525/(1-$W8525)","v":{"v":142.44929060130264,"d":"142"}},null,{"v":1E-3,"d":"0.10%"},{"$f":"Actif!$E$28/100","v":{"v":0.28900000000000003,"d":"28.90%"}},{"$f":"Actif!$E$30/100","v":{"v":0.09050000000000001,"d":"9.05%"}},{"$f":"Actif!$E$31/100","v":{"v":0.0605,"d":"6.05%"}},{"$f":"Actif!$E$32/100","v":{"v":0.47350000000000003,"d":"47.35%"}},{"$f":"Actif!$E$33/100","v":{"v":0.0585,"d":"5.85%"}},{"$f":"Actif!$E$29/100","v":{"v":0.027999999999999997,"d":"2.80%"}}]
[null,"#413",47,2029,"F","A_CAPI",{"v":0.44999999999999996,"d":"0.45"},{"v":0.38999999999999996,"d":"0.39"},0.6,0.6,85,0,{"$f":"ROUND(Primes!$Q$10*V8526,2)","v":0.13},0,{"v":3617.194486340221,"d":"3,617"},{"$f":"'BP Financier'!$G$44*(('BP Financier'!$C$22+'BP Financier'!$D$22+'BP Financier'!$E$22+'BP Financier'!$F$22+'BP Financier'!$G$22)/('BP Financier'!$C$16+'BP Financier'!$C$19+'BP Financier'!$D$16+'BP Financier'!$D$19+'BP Financier'!$E$16+'BP Financier'!$E$19+'BP Financier'!$C$22+'BP Financier'!$D$22+'BP Financier'!$E$22+'BP Financier'!$F$22+'BP Financier'!$F$16+'BP Financier'!$F$19+'BP Financier'!$G$16+'BP Financier'!$G$19+'BP Financier'!$G$22))*$V8526*X8526/(1-$W8526)","v":{"v":460.4164571220675,"d":"460"}},{"$f":"'BP Financier'!$G$44*(('BP Financier'!$C$22+'BP Financier'!$D$22+'BP Financier'!$E$22+'BP Financier'!$F$22+'BP Financier'!$G$22)/('BP Financier'!$C$16+'BP Financier'!$C$19+'BP Financier'!$D$16+'BP Financier'!$D$19+'BP Financier'!$E$16+'BP Financier'!$E$19+'BP Financier'!$C$22+'BP Financier'!$D$22+'BP Financier'!$E$22+'BP Financier'!$F$22+'BP Financier'!$F$16+'BP Financier'!$F$19+'BP Financier'!$G$16+'BP Financier'!$G$19+'BP Financier'!$G$22))*$V8526*Y8526/(1-$W8526)","v":{"v":307.7922171921004,"d":"308"}},{"$f":"'BP Financier'!$G$44*(('BP Financier'!$C$22+'BP Financier'!$D$22+'BP Financier'!$E$22+'BP Financier'!$F$22+'BP Financier'!$G$22)/('BP Financier'!$C$16+'BP Financier'!$C$19+'BP Financier'!$D$16+'BP Financier'!$D$19+'BP Financier'!$E$16+'BP Financier'!$E$19+'BP Financier'!$C$22+'BP Financier'!$D$22+'BP Financier'!$E$22+'BP Financier'!$F$22+'BP Financier'!$F$16+'BP Financier'!$F$19+'BP Financier'!$G$16+'BP Financier'!$G$19+'BP Financier'!$G$22))*$V8526*Z8526/(1-$W8526)","v":{"v":2408.9192535613147,"d":"2,409"}},{"$f":"'BP Financier'!$G$44*(('BP Financier'!$C$22+'BP Financier'!$D$22+'BP Financier'!$E$22+'BP Financier'!$F$22+'BP Financier'!$G$22)/('BP Financier'!$C$16+'BP Financier'!$C$19+'BP Financier'!$D$16+'BP Financier'!$D$19+'BP Financier'!$E$16+'BP Financier'!$E$19+'BP Financier'!$C$22+'BP Financier'!$D$22+'BP Financier'!$E$22+'BP Financier'!$F$22+'BP Financier'!$F$16+'BP Financier'!$F$19+'BP Financier'!$G$16+'BP Financier'!$G$19+'BP Financier'!$G$22))*$V8526*AA8526/(1-$W8526)","v":{"v":297.6172678634359,"d":"298"}},{"$f":"'BP Financier'!$G$44*(('BP Financier'!$C$22+'BP Financier'!$D$22+'BP Financier'!$E$22+'BP Financier'!$F$22+'BP Financier'!$G$22)/('BP Financier'!$C$16+'BP Financier'!$C$19+'BP Financier'!$D$16+'BP Financier'!$D$19+'BP Financier'!$E$16+'BP Financier'!$E$19+'BP Financier'!$C$22+'BP Financier'!$D$22+'BP Financier'!$E$22+'BP Financier'!$F$22+'BP Financier'!$F$16+'BP Financier'!$F$19+'BP Financier'!$G$16+'BP Financier'!$G$19+'BP Financier'!$G$22))*$V8526*AB8526/(1-$W8526)","v":{"v":142.44929060130264,"d":"142"}},null,{"v":1E-3,"d":"0.10%"},{"$f":"Actif!$E$28/100","v":{"v":0.28900000000000003,"d":"28.90%"}},{"$f":"Actif!$E$30/100","v":{"v":0.09050000000000001,"d":"9.05%"}},{"$f":"Actif!$E$31/100","v":{"v":0.0605,"d":"6.05%"}},{"$f":"Actif!$E$32/100","v":{"v":0.47350000000000003,"d":"47.35%"}},{"$f":"Actif!$E$33/100","v":{"v":0.0585,"d":"5.85%"}},{"$f":"Actif!$E$29/100","v":{"v":0.027999999999999997,"d":"2.80%"}}]
[null,"#414",47,2030,"F","A_CAPI",{"v":0.44999999999999996,"d":"0.45"},{"v":0.38999999999999996,"d":"0.39"},0.6,0.6,85,0,{"$f":"ROUND(Primes!$Q$10*V8527,2)","v":0.13},0,{"v":3617.194486340221,"d":"3,617"},{"$f":"'BP Financier'!$G$44*(('BP Financier'!$C$22+'BP Financier'!$D$22+'BP Financier'!$E$22+'BP Financier'!$F$22+'BP Financier'!$G$22)/('BP Financier'!$C$16+'BP Financier'!$C$19+'BP Financier'!$D$16+'BP Financier'!$D$19+'BP Financier'!$E$16+'BP Financier'!$E$19+'BP Financier'!$C$22+'BP Financier'!$D$22+'BP Financier'!$E$22+'BP Financier'!$F$22+'BP Financier'!$F$16+'BP Financier'!$F$19+'BP Financier'!$G$16+'BP Financier'!$G$19+'BP Financier'!$G$22))*$V8527*X8527/(1-$W8527)","v":{"v":460.4164571220675,"d":"460"}},{"$f":"'BP Financier'!$G$44*(('BP Financier'!$C$22+'BP Financier'!$D$22+'BP Financier'!$E$22+'BP Financier'!$F$22+'BP Financier'!$G$22)/('BP Financier'!$C$16+'BP Financier'!$C$19+'BP Financier'!$D$16+'BP Financier'!$D$19+'BP Financier'!$E$16+'BP Financier'!$E$19+'BP Financier'!$C$22+'BP Financier'!$D$22+'BP Financier'!$E$22+'BP Financier'!$F$22+'BP Financier'!$F$16+'BP Financier'!$F$19+'BP Financier'!$G$16+'BP Financier'!$G$19+'BP Financier'!$G$22))*$V8527*Y8527/(1-$W8527)","v":{"v":307.7922171921004,"d":"308"}},{"$f":"'BP Financier'!$G$44*(('BP Financier'!$C$22+'BP Financier'!$D$22+'BP Financier'!$E$22+'BP Financier'!$F$22+'BP Financier'!$G$22)/('BP Financier'!$C$16+'BP Financier'!$C$19+'BP Financier'!$D$16+'BP Financier'!$D$19+'BP Financier'!$E$16+'BP Financier'!$E$19+'BP Financier'!$C$22+'BP Financier'!$D$22+'BP Financier'!$E$22+'BP Financier'!$F$22+'BP Financier'!$F$16+'BP Financier'!$F$19+'BP Financier'!$G$16+'BP Financier'!$G$19+'BP Financier'!$G$22))*$V8527*Z8527/(1-$W8527)","v":{"v":2408.9192535613147,"d":"2,409"}},{"$f":"'BP Financier'!$G$44*(('BP Financier'!$C$22+'BP Financier'!$D$22+'BP Financier'!$E$22+'BP Financier'!$F$22+'BP Financier'!$G$22)/('BP Financier'!$C$16+'BP Financier'!$C$19+'BP Financier'!$D$16+'BP Financier'!$D$19+'BP Financier'!$E$16+'BP Financier'!$E$19+'BP Financier'!$C$22+'BP Financier'!$D$22+'BP Financier'!$E$22+'BP Financier'!$F$22+'BP Financier'!$F$16+'BP Financier'!$F$19+'BP Financier'!$G$16+'BP Financier'!$G$19+'BP Financier'!$G$22))*$V8527*AA8527/(1-$W8527)","v":{"v":297.6172678634359,"d":"298"}},{"$f":"'BP Financier'!$G$44*(('BP Financier'!$C$22+'BP Financier'!$D$22+'BP Financier'!$E$22+'BP Financier'!$F$22+'BP Financier'!$G$22)/('BP Financier'!$C$16+'BP Financier'!$C$19+'BP Financier'!$D$16+'BP Financier'!$D$19+'BP Financier'!$E$16+'BP Financier'!$E$19+'BP Financier'!$C$22+'BP Financier'!$D$22+'BP Financier'!$E$22+'BP Financier'!$F$22+'BP Financier'!$F$16+'BP Financier'!$F$19+'BP Financier'!$G$16+'BP Financier'!$G$19+'BP Financier'!$G$22))*$V8527*AB8527/(1-$W8527)","v":{"v":142.44929060130264,"d":"142"}},null,{"v":1E-3,"d":"0.10%"},{"$f":"Actif!$E$28/100","v":{"v":0.28900000000000003,"d":"28.90%"}},{"$f":"Actif!$E$30/100","v":{"v":0.09050000000000001,"d":"9.05%"}},{"$f":"Actif!$E$31/100","v":{"v":0.0605,"d":"6.05%"}},{"$f":"Actif!$E$32/100","v":{"v":0.47350000000000003,"d":"47.35%"}},{"$f":"Actif!$E$33/100","v":{"v":0.0585,"d":"5.85%"}},{"$f":"Actif!$E$29/100","v":{"v":0.027999999999999997,"d":"2.80%"}}]
[null,"#415",47,2031,"F","A_CAPI",{"v":0.44999999999999996,"d":"0.45"},{"v":0.38999999999999996,"d":"0.39"},0.6,0.6,85,0,{"$f":"ROUND(Primes!$Q$10*V8528,2)","v":0.13},0,{"v":3617.194486340221,"d":"3,617"},{"$f":"'BP Financier'!$G$44*(('BP Financier'!$C$22+'BP Financier'!$D$22+'BP Financier'!$E$22+'BP Financier'!$F$22+'BP Financier'!$G$22)/('BP Financier'!$C$16+'BP Financier'!$C$19+'BP Financier'!$D$16+'BP Financier'!$D$19+'BP Financier'!$E$16+'BP Financier'!$E$19+'BP Financier'!$C$22+'BP Financier'!$D$22+'BP Financier'!$E$22+'BP Financier'!$F$22+'BP Financier'!$F$16+'BP Financier'!$F$19+'BP Financier'!$G$16+'BP Financier'!$G$19+'BP Financier'!$G$22))*$V8528*X8528/(1-$W8528)","v":{"v":460.4164571220675,"d":"460"}},{"$f":"'BP Financier'!$G$44*(('BP Financier'!$C$22+'BP Financier'!$D$22+'BP Financier'!$E$22+'BP Financier'!$F$22+'BP Financier'!$G$22)/('BP Financier'!$C$16+'BP Financier'!$C$19+'BP Financier'!$D$16+'BP Financier'!$D$19+'BP Financier'!$E$16+'BP Financier'!$E$19+'BP Financier'!$C$22+'BP Financier'!$D$22+'BP Financier'!$E$22+'BP Financier'!$F$22+'BP Financier'!$F$16+'BP Financier'!$F$19+'BP Financier'!$G$16+'BP Financier'!$G$19+'BP Financier'!$G$22))*$V8528*Y8528/(1-$W8528)","v":{"v":307.7922171921004,"d":"308"}},{"$f":"'BP Financier'!$G$44*(('BP Financier'!$C$22+'BP Financier'!$D$22+'BP Financier'!$E$22+'BP Financier'!$F$22+'BP Financier'!$G$22)/('BP Financier'!$C$16+'BP Financier'!$C$19+'BP Financier'!$D$16+'BP Financier'!$D$19+'BP Financier'!$E$16+'BP Financier'!$E$19+'BP Financier'!$C$22+'BP Financier'!$D$22+'BP Financier'!$E$22+'BP Financier'!$F$22+'BP Financier'!$F$16+'BP Financier'!$F$19+'BP Financier'!$G$16+'BP Financier'!$G$19+'BP Financier'!$G$22))*$V8528*Z8528/(1-$W8528)","v":{"v":2408.9192535613147,"d":"2,409"}},{"$f":"'BP Financier'!$G$44*(('BP Financier'!$C$22+'BP Financier'!$D$22+'BP Financier'!$E$22+'BP Financier'!$F$22+'BP Financier'!$G$22)/('BP Financier'!$C$16+'BP Financier'!$C$19+'BP Financier'!$D$16+'BP Financier'!$D$19+'BP Financier'!$E$16+'BP Financier'!$E$19+'BP Financier'!$C$22+'BP Financier'!$D$22+'BP Financier'!$E$22+'BP Financier'!$F$22+'BP Financier'!$F$16+'BP Financier'!$F$19+'BP Financier'!$G$16+'BP Financier'!$G$19+'BP Financier'!$G$22))*$V8528*AA8528/(1-$W8528)","v":{"v":297.6172678634359,"d":"298"}},{"$f":"'BP Financier'!$G$44*(('BP Financier'!$C$22+'BP Financier'!$D$22+'BP Financier'!$E$22+'BP Financier'!$F$22+'BP Financier'!$G$22)/('BP Financier'!$C$16+'BP Financier'!$C$19+'BP Financier'!$D$16+'BP Financier'!$D$19+'BP Financier'!$E$16+'BP Financier'!$E$19+'BP Financier'!$C$22+'BP Financier'!$D$22+'BP Financier'!$E$22+'BP Financier'!$F$22+'BP Financier'!$F$16+'BP Financier'!$F$19+'BP Financier'!$G$16+'BP Financier'!$G$19+'BP Financier'!$G$22))*$V8528*AB8528/(1-$W8528)","v":{"v":142.44929060130264,"d":"142"}},null,{"v":1E-3,"d":"0.10%"},{"$f":"Actif!$E$28/100","v":{"v":0.28900000000000003,"d":"28.90%"}},{"$f":"Actif!$E$30/100","v":{"v":0.09050000000000001,"d":"9.05%"}},{"$f":"Actif!$E$31/100","v":{"v":0.0605,"d":"6.05%"}},{"$f":"Actif!$E$32/100","v":{"v":0.47350000000000003,"d":"47.35%"}},{"$f":"Actif!$E$33/100","v":{"v":0.0585,"d":"5.85%"}},{"$f":"Actif!$E$29/100","v":{"v":0.027999999999999997,"d":"2.80%"}}]
[null,"#416",48,2026,"H","A_CAPI",{"v":0.44999999999999996,"d":"0.45"},{"v":0.38999999999999996,"d":"0.39"},0.6,0.6,85,0,{"$f":"ROUND(Primes!$Q$10*V8529,2)","v":0.13},0,{"v":3617.194486340221,"d":"3,617"},{"$f":"'BP Financier'!$G$44*(('BP Financier'!$C$22+'BP Financier'!$D$22+'BP Financier'!$E$22+'BP Financier'!$F$22+'BP Financier'!$G$22)/('BP Financier'!$C$16+'BP Financier'!$C$19+'BP Financier'!$D$16+'BP Financier'!$D$19+'BP Financier'!$E$16+'BP Financier'!$E$19+'BP Financier'!$C$22+'BP Financier'!$D$22+'BP Financier'!$E$22+'BP Financier'!$F$22+'BP Financier'!$F$16+'BP Financier'!$F$19+'BP Financier'!$G$16+'BP Financier'!$G$19+'BP Financier'!$G$22))*$V8529*X8529/(1-$W8529)","v":{"v":460.4164571220675,"d":"460"}},{"$f":"'BP Financier'!$G$44*(('BP Financier'!$C$22+'BP Financier'!$D$22+'BP Financier'!$E$22+'BP Financier'!$F$22+'BP Financier'!$G$22)/('BP Financier'!$C$16+'BP Financier'!$C$19+'BP Financier'!$D$16+'BP Financier'!$D$19+'BP Financier'!$E$16+'BP Financier'!$E$19+'BP Financier'!$C$22+'BP Financier'!$D$22+'BP Financier'!$E$22+'BP Financier'!$F$22+'BP Financier'!$F$16+'BP Financier'!$F$19+'BP Financier'!$G$16+'BP Financier'!$G$19+'BP Financier'!$G$22))*$V8529*Y8529/(1-$W8529)","v":{"v":307.7922171921004,"d":"308"}},{"$f":"'BP Financier'!$G$44*(('BP Financier'!$C$22+'BP Financier'!$D$22+'BP Financier'!$E$22+'BP Financier'!$F$22+'BP Financier'!$G$22)/('BP Financier'!$C$16+'BP Financier'!$C$19+'BP Financier'!$D$16+'BP Financier'!$D$19+'BP Financier'!$E$16+'BP Financier'!$E$19+'BP Financier'!$C$22+'BP Financier'!$D$22+'BP Financier'!$E$22+'BP Financier'!$F$22+'BP Financier'!$F$16+'BP Financier'!$F$19+'BP Financier'!$G$16+'BP Financier'!$G$19+'BP Financier'!$G$22))*$V8529*Z8529/(1-$W8529)","v":{"v":2408.9192535613147,"d":"2,409"}},{"$f":"'BP Financier'!$G$44*(('BP Financier'!$C$22+'BP Financier'!$D$22+'BP Financier'!$E$22+'BP Financier'!$F$22+'BP Financier'!$G$22)/('BP Financier'!$C$16+'BP Financier'!$C$19+'BP Financier'!$D$16+'BP Financier'!$D$19+'BP Financier'!$E$16+'BP Financier'!$E$19+'BP Financier'!$C$22+'BP Financier'!$D$22+'BP Financier'!$E$22+'BP Financier'!$F$22+'BP Financier'!$F$16+'BP Financier'!$F$19+'BP Financier'!$G$16+'BP Financier'!$G$19+'BP Financier'!$G$22))*$V8529*AA8529/(1-$W8529)","v":{"v":297.6172678634359,"d":"298"}},{"$f":"'BP Financier'!$G$44*(('BP Financier'!$C$22+'BP Financier'!$D$22+'BP Financier'!$E$22+'BP Financier'!$F$22+'BP Financier'!$G$22)/('BP Financier'!$C$16+'BP Financier'!$C$19+'BP Financier'!$D$16+'BP Financier'!$D$19+'BP Financier'!$E$16+'BP Financier'!$E$19+'BP Financier'!$C$22+'BP Financier'!$D$22+'BP Financier'!$E$22+'BP Financier'!$F$22+'BP Financier'!$F$16+'BP Financier'!$F$19+'BP Financier'!$G$16+'BP Financier'!$G$19+'BP Financier'!$G$22))*$V8529*AB8529/(1-$W8529)","v":{"v":142.44929060130264,"d":"142"}},null,{"v":1E-3,"d":"0.10%"},{"$f":"Actif!$E$28/100","v":{"v":0.28900000000000003,"d":"28.90%"}},{"$f":"Actif!$E$30/100","v":{"v":0.09050000000000001,"d":"9.05%"}},{"$f":"Actif!$E$31/100","v":{"v":0.0605,"d":"6.05%"}},{"$f":"Actif!$E$32/100","v":{"v":0.47350000000000003,"d":"47.35%"}},{"$f":"Actif!$E$33/100","v":{"v":0.0585,"d":"5.85%"}},{"$f":"Actif!$E$29/100","v":{"v":0.027999999999999997,"d":"2.80%"}}]
[null,"#417",48,2028,"H","A_CAPI",{"v":0.44999999999999996,"d":"0.45"},{"v":0.38999999999999996,"d":"0.39"},0.6,0.6,85,0,{"$f":"ROUND(Primes!$Q$10*V8530,2)","v":0.13},0,{"v":3617.194486340221,"d":"3,617"},{"$f":"'BP Financier'!$G$44*(('BP Financier'!$C$22+'BP Financier'!$D$22+'BP Financier'!$E$22+'BP Financier'!$F$22+'BP Financier'!$G$22)/('BP Financier'!$C$16+'BP Financier'!$C$19+'BP Financier'!$D$16+'BP Financier'!$D$19+'BP Financier'!$E$16+'BP Financier'!$E$19+'BP Financier'!$C$22+'BP Financier'!$D$22+'BP Financier'!$E$22+'BP Financier'!$F$22+'BP Financier'!$F$16+'BP Financier'!$F$19+'BP Financier'!$G$16+'BP Financier'!$G$19+'BP Financier'!$G$22))*$V8530*X8530/(1-$W8530)","v":{"v":460.4164571220675,"d":"460"}},{"$f":"'BP Financier'!$G$44*(('BP Financier'!$C$22+'BP Financier'!$D$22+'BP Financier'!$E$22+'BP Financier'!$F$22+'BP Financier'!$G$22)/('BP Financier'!$C$16+'BP Financier'!$C$19+'BP Financier'!$D$16+'BP Financier'!$D$19+'BP Financier'!$E$16+'BP Financier'!$E$19+'BP Financier'!$C$22+'BP Financier'!$D$22+'BP Financier'!$E$22+'BP Financier'!$F$22+'BP Financier'!$F$16+'BP Financier'!$F$19+'BP Financier'!$G$16+'BP Financier'!$G$19+'BP Financier'!$G$22))*$V8530*Y8530/(1-$W8530)","v":{"v":307.7922171921004,"d":"308"}},{"$f":"'BP Financier'!$G$44*(('BP Financier'!$C$22+'BP Financier'!$D$22+'BP Financier'!$E$22+'BP Financier'!$F$22+'BP Financier'!$G$22)/('BP Financier'!$C$16+'BP Financier'!$C$19+'BP Financier'!$D$16+'BP Financier'!$D$19+'BP Financier'!$E$16+'BP Financier'!$E$19+'BP Financier'!$C$22+'BP Financier'!$D$22+'BP Financier'!$E$22+'BP Financier'!$F$22+'BP Financier'!$F$16+'BP Financier'!$F$19+'BP Financier'!$G$16+'BP Financier'!$G$19+'BP Financier'!$G$22))*$V8530*Z8530/(1-$W8530)","v":{"v":2408.9192535613147,"d":"2,409"}},{"$f":"'BP Financier'!$G$44*(('BP Financier'!$C$22+'BP Financier'!$D$22+'BP Financier'!$E$22+'BP Financier'!$F$22+'BP Financier'!$G$22)/('BP Financier'!$C$16+'BP Financier'!$C$19+'BP Financier'!$D$16+'BP Financier'!$D$19+'BP Financier'!$E$16+'BP Financier'!$E$19+'BP Financier'!$C$22+'BP Financier'!$D$22+'BP Financier'!$E$22+'BP Financier'!$F$22+'BP Financier'!$F$16+'BP Financier'!$F$19+'BP Financier'!$G$16+'BP Financier'!$G$19+'BP Financier'!$G$22))*$V8530*AA8530/(1-$W8530)","v":{"v":297.6172678634359,"d":"298"}},{"$f":"'BP Financier'!$G$44*(('BP Financier'!$C$22+'BP Financier'!$D$22+'BP Financier'!$E$22+'BP Financier'!$F$22+'BP Financier'!$G$22)/('BP Financier'!$C$16+'BP Financier'!$C$19+'BP Financier'!$D$16+'BP Financier'!$D$19+'BP Financier'!$E$16+'BP Financier'!$E$19+'BP Financier'!$C$22+'BP Financier'!$D$22+'BP Financier'!$E$22+'BP Financier'!$F$22+'BP Financier'!$F$16+'BP Financier'!$F$19+'BP Financier'!$G$16+'BP Financier'!$G$19+'BP Financier'!$G$22))*$V8530*AB8530/(1-$W8530)","v":{"v":142.44929060130264,"d":"142"}},null,{"v":1E-3,"d":"0.10%"},{"$f":"Actif!$E$28/100","v":{"v":0.28900000000000003,"d":"28.90%"}},{"$f":"Actif!$E$30/100","v":{"v":0.09050000000000001,"d":"9.05%"}},{"$f":"Actif!$E$31/100","v":{"v":0.0605,"d":"6.05%"}},{"$f":"Actif!$E$32/100","v":{"v":0.47350000000000003,"d":"47.35%"}},{"$f":"Actif!$E$33/100","v":{"v":0.0585,"d":"5.85%"}},{"$f":"Actif!$E$29/100","v":{"v":0.027999999999999997,"d":"2.80%"}}]
[null,"#418",48,2029,"H","A_CAPI",{"v":0.44999999999999996,"d":"0.45"},{"v":0.38999999999999996,"d":"0.39"},0.6,0.6,85,0,{"$f":"ROUND(Primes!$Q$10*V8531,2)","v":0.13},0,{"v":3617.194486340221,"d":"3,617"},{"$f":"'BP Financier'!$G$44*(('BP Financier'!$C$22+'BP Financier'!$D$22+'BP Financier'!$E$22+'BP Financier'!$F$22+'BP Financier'!$G$22)/('BP Financier'!$C$16+'BP Financier'!$C$19+'BP Financier'!$D$16+'BP Financier'!$D$19+'BP Financier'!$E$16+'BP Financier'!$E$19+'BP Financier'!$C$22+'BP Financier'!$D$22+'BP Financier'!$E$22+'BP Financier'!$F$22+'BP Financier'!$F$16+'BP Financier'!$F$19+'BP Financier'!$G$16+'BP Financier'!$G$19+'BP Financier'!$G$22))*$V8531*X8531/(1-$W8531)","v":{"v":460.4164571220675,"d":"460"}},{"$f":"'BP Financier'!$G$44*(('BP Financier'!$C$22+'BP Financier'!$D$22+'BP Financier'!$E$22+'BP Financier'!$F$22+'BP Financier'!$G$22)/('BP Financier'!$C$16+'BP Financier'!$C$19+'BP Financier'!$D$16+'BP Financier'!$D$19+'BP Financier'!$E$16+'BP Financier'!$E$19+'BP Financier'!$C$22+'BP Financier'!$D$22+'BP Financier'!$E$22+'BP Financier'!$F$22+'BP Financier'!$F$16+'BP Financier'!$F$19+'BP Financier'!$G$16+'BP Financier'!$G$19+'BP Financier'!$G$22))*$V8531*Y8531/(1-$W8531)","v":{"v":307.7922171921004,"d":"308"}},{"$f":"'BP Financier'!$G$44*(('BP Financier'!$C$22+'BP Financier'!$D$22+'BP Financier'!$E$22+'BP Financier'!$F$22+'BP Financier'!$G$22)/('BP Financier'!$C$16+'BP Financier'!$C$19+'BP Financier'!$D$16+'BP Financier'!$D$19+'BP Financier'!$E$16+'BP Financier'!$E$19+'BP Financier'!$C$22+'BP Financier'!$D$22+'BP Financier'!$E$22+'BP Financier'!$F$22+'BP Financier'!$F$16+'BP Financier'!$F$19+'BP Financier'!$G$16+'BP Financier'!$G$19+'BP Financier'!$G$22))*$V8531*Z8531/(1-$W8531)","v":{"v":2408.9192535613147,"d":"2,409"}},{"$f":"'BP Financier'!$G$44*(('BP Financier'!$C$22+'BP Financier'!$D$22+'BP Financier'!$E$22+'BP Financier'!$F$22+'BP Financier'!$G$22)/('BP Financier'!$C$16+'BP Financier'!$C$19+'BP Financier'!$D$16+'BP Financier'!$D$19+'BP Financier'!$E$16+'BP Financier'!$E$19+'BP Financier'!$C$22+'BP Financier'!$D$22+'BP Financier'!$E$22+'BP Financier'!$F$22+'BP Financier'!$F$16+'BP Financier'!$F$19+'BP Financier'!$G$16+'BP Financier'!$G$19+'BP Financier'!$G$22))*$V8531*AA8531/(1-$W8531)","v":{"v":297.6172678634359,"d":"298"}},{"$f":"'BP Financier'!$G$44*(('BP Financier'!$C$22+'BP Financier'!$D$22+'BP Financier'!$E$22+'BP Financier'!$F$22+'BP Financier'!$G$22)/('BP Financier'!$C$16+'BP Financier'!$C$19+'BP Financier'!$D$16+'BP Financier'!$D$19+'BP Financier'!$E$16+'BP Financier'!$E$19+'BP Financier'!$C$22+'BP Financier'!$D$22+'BP Financier'!$E$22+'BP Financier'!$F$22+'BP Financier'!$F$16+'BP Financier'!$F$19+'BP Financier'!$G$16+'BP Financier'!$G$19+'BP Financier'!$G$22))*$V8531*AB8531/(1-$W8531)","v":{"v":142.44929060130264,"d":"142"}},null,{"v":1E-3,"d":"0.10%"},{"$f":"Actif!$E$28/100","v":{"v":0.28900000000000003,"d":"28.90%"}},{"$f":"Actif!$E$30/100","v":{"v":0.09050000000000001,"d":"9.05%"}},{"$f":"Actif!$E$31/100","v":{"v":0.0605,"d":"6.05%"}},{"$f":"Actif!$E$32/100","v":{"v":0.47350000000000003,"d":"47.35%"}},{"$f":"Actif!$E$33/100","v":{"v":0.0585,"d":"5.85%"}},{"$f":"Actif!$E$29/100","v":{"v":0.027999999999999997,"d":"2.80%"}}]
[null,"#419",48,2030,"H","A_CAPI",{"v":0.44999999999999996,"d":"0.45"},{"v":0.38999999999999996,"d":"0.39"},0.6,0.6,85,0,{"$f":"ROUND(Primes!$Q$10*V8532,2)","v":0.13},0,{"v":3617.194486340221,"d":"3,617"},{"$f":"'BP Financier'!$G$44*(('BP Financier'!$C$22+'BP Financier'!$D$22+'BP Financier'!$E$22+'BP Financier'!$F$22+'BP Financier'!$G$22)/('BP Financier'!$C$16+'BP Financier'!$C$19+'BP Financier'!$D$16+'BP Financier'!$D$19+'BP Financier'!$E$16+'BP Financier'!$E$19+'BP Financier'!$C$22+'BP Financier'!$D$22+'BP Financier'!$E$22+'BP Financier'!$F$22+'BP Financier'!$F$16+'BP Financier'!$F$19+'BP Financier'!$G$16+'BP Financier'!$G$19+'BP Financier'!$G$22))*$V8532*X8532/(1-$W8532)","v":{"v":460.4164571220675,"d":"460"}},{"$f":"'BP Financier'!$G$44*(('BP Financier'!$C$22+'BP Financier'!$D$22+'BP Financier'!$E$22+'BP Financier'!$F$22+'BP Financier'!$G$22)/('BP Financier'!$C$16+'BP Financier'!$C$19+'BP Financier'!$D$16+'BP Financier'!$D$19+'BP Financier'!$E$16+'BP Financier'!$E$19+'BP Financier'!$C$22+'BP Financier'!$D$22+'BP Financier'!$E$22+'BP Financier'!$F$22+'BP Financier'!$F$16+'BP Financier'!$F$19+'BP Financier'!$G$16+'BP Financier'!$G$19+'BP Financier'!$G$22))*$V8532*Y8532/(1-$W8532)","v":{"v":307.7922171921004,"d":"308"}},{"$f":"'BP Financier'!$G$44*(('BP Financier'!$C$22+'BP Financier'!$D$22+'BP Financier'!$E$22+'BP Financier'!$F$22+'BP Financier'!$G$22)/('BP Financier'!$C$16+'BP Financier'!$C$19+'BP Financier'!$D$16+'BP Financier'!$D$19+'BP Financier'!$E$16+'BP Financier'!$E$19+'BP Financier'!$C$22+'BP Financier'!$D$22+'BP Financier'!$E$22+'BP Financier'!$F$22+'BP Financier'!$F$16+'BP Financier'!$F$19+'BP Financier'!$G$16+'BP Financier'!$G$19+'BP Financier'!$G$22))*$V8532*Z8532/(1-$W8532)","v":{"v":2408.9192535613147,"d":"2,409"}},{"$f":"'BP Financier'!$G$44*(('BP Financier'!$C$22+'BP Financier'!$D$22+'BP Financier'!$E$22+'BP Financier'!$F$22+'BP Financier'!$G$22)/('BP Financier'!$C$16+'BP Financier'!$C$19+'BP Financier'!$D$16+'BP Financier'!$D$19+'BP Financier'!$E$16+'BP Financier'!$E$19+'BP Financier'!$C$22+'BP Financier'!$D$22+'BP Financier'!$E$22+'BP Financier'!$F$22+'BP Financier'!$F$16+'BP Financier'!$F$19+'BP Financier'!$G$16+'BP Financier'!$G$19+'BP Financier'!$G$22))*$V8532*AA8532/(1-$W8532)","v":{"v":297.6172678634359,"d":"298"}},{"$f":"'BP Financier'!$G$44*(('BP Financier'!$C$22+'BP Financier'!$D$22+'BP Financier'!$E$22+'BP Financier'!$F$22+'BP Financier'!$G$22)/('BP Financier'!$C$16+'BP Financier'!$C$19+'BP Financier'!$D$16+'BP Financier'!$D$19+'BP Financier'!$E$16+'BP Financier'!$E$19+'BP Financier'!$C$22+'BP Financier'!$D$22+'BP Financier'!$E$22+'BP Financier'!$F$22+'BP Financier'!$F$16+'BP Financier'!$F$19+'BP Financier'!$G$16+'BP Financier'!$G$19+'BP Financier'!$G$22))*$V8532*AB8532/(1-$W8532)","v":{"v":142.44929060130264,"d":"142"}},null,{"v":1E-3,"d":"0.10%"},{"$f":"Actif!$E$28/100","v":{"v":0.28900000000000003,"d":"28.90%"}},{"$f":"Actif!$E$30/100","v":{"v":0.09050000000000001,"d":"9.05%"}},{"$f":"Actif!$E$31/100","v":{"v":0.0605,"d":"6.05%"}},{"$f":"Actif!$E$32/100","v":{"v":0.47350000000000003,"d":"47.35%"}},{"$f":"Actif!$E$33/100","v":{"v":0.0585,"d":"5.85%"}},{"$f":"Actif!$E$29/100","v":{"v":0.027999999999999997,"d":"2.80%"}}]
[null,"#420",48,2031,"H","A_CAPI",{"v":0.44999999999999996,"d":"0.45"},{"v":0.38999999999999996,"d":"0.39"},0.6,0.6,85,0,{"$f":"ROUND(Primes!$Q$10*V8533,2)","v":0.13},0,{"v":3617.194486340221,"d":"3,617"},{"$f":"'BP Financier'!$G$44*(('BP Financier'!$C$22+'BP Financier'!$D$22+'BP Financier'!$E$22+'BP Financier'!$F$22+'BP Financier'!$G$22)/('BP Financier'!$C$16+'BP Financier'!$C$19+'BP Financier'!$D$16+'BP Financier'!$D$19+'BP Financier'!$E$16+'BP Financier'!$E$19+'BP Financier'!$C$22+'BP Financier'!$D$22+'BP Financier'!$E$22+'BP Financier'!$F$22+'BP Financier'!$F$16+'BP Financier'!$F$19+'BP Financier'!$G$16+'BP Financier'!$G$19+'BP Financier'!$G$22))*$V8533*X8533/(1-$W8533)","v":{"v":460.4164571220675,"d":"460"}},{"$f":"'BP Financier'!$G$44*(('BP Financier'!$C$22+'BP Financier'!$D$22+'BP Financier'!$E$22+'BP Financier'!$F$22+'BP Financier'!$G$22)/('BP Financier'!$C$16+'BP Financier'!$C$19+'BP Financier'!$D$16+'BP Financier'!$D$19+'BP Financier'!$E$16+'BP Financier'!$E$19+'BP Financier'!$C$22+'BP Financier'!$D$22+'BP Financier'!$E$22+'BP Financier'!$F$22+'BP Financier'!$F$16+'BP Financier'!$F$19+'BP Financier'!$G$16+'BP Financier'!$G$19+'BP Financier'!$G$22))*$V8533*Y8533/(1-$W8533)","v":{"v":307.7922171921004,"d":"308"}},{"$f":"'BP Financier'!$G$44*(('BP Financier'!$C$22+'BP Financier'!$D$22+'BP Financier'!$E$22+'BP Financier'!$F$22+'BP Financier'!$G$22)/('BP Financier'!$C$16+'BP Financier'!$C$19+'BP Financier'!$D$16+'BP Financier'!$D$19+'BP Financier'!$E$16+'BP Financier'!$E$19+'BP Financier'!$C$22+'BP Financier'!$D$22+'BP Financier'!$E$22+'BP Financier'!$F$22+'BP Financier'!$F$16+'BP Financier'!$F$19+'BP Financier'!$G$16+'BP Financier'!$G$19+'BP Financier'!$G$22))*$V8533*Z8533/(1-$W8533)","v":{"v":2408.9192535613147,"d":"2,409"}},{"$f":"'BP Financier'!$G$44*(('BP Financier'!$C$22+'BP Financier'!$D$22+'BP Financier'!$E$22+'BP Financier'!$F$22+'BP Financier'!$G$22)/('BP Financier'!$C$16+'BP Financier'!$C$19+'BP Financier'!$D$16+'BP Financier'!$D$19+'BP Financier'!$E$16+'BP Financier'!$E$19+'BP Financier'!$C$22+'BP Financier'!$D$22+'BP Financier'!$E$22+'BP Financier'!$F$22+'BP Financier'!$F$16+'BP Financier'!$F$19+'BP Financier'!$G$16+'BP Financier'!$G$19+'BP Financier'!$G$22))*$V8533*AA8533/(1-$W8533)","v":{"v":297.6172678634359,"d":"298"}},{"$f":"'BP Financier'!$G$44*(('BP Financier'!$C$22+'BP Financier'!$D$22+'BP Financier'!$E$22+'BP Financier'!$F$22+'BP Financier'!$G$22)/('BP Financier'!$C$16+'BP Financier'!$C$19+'BP Financier'!$D$16+'BP Financier'!$D$19+'BP Financier'!$E$16+'BP Financier'!$E$19+'BP Financier'!$C$22+'BP Financier'!$D$22+'BP Financier'!$E$22+'BP Financier'!$F$22+'BP Financier'!$F$16+'BP Financier'!$F$19+'BP Financier'!$G$16+'BP Financier'!$G$19+'BP Financier'!$G$22))*$V8533*AB8533/(1-$W8533)","v":{"v":142.44929060130264,"d":"142"}},null,{"v":1E-3,"d":"0.10%"},{"$f":"Actif!$E$28/100","v":{"v":0.28900000000000003,"d":"28.90%"}},{"$f":"Actif!$E$30/100","v":{"v":0.09050000000000001,"d":"9.05%"}},{"$f":"Actif!$E$31/100","v":{"v":0.0605,"d":"6.05%"}},{"$f":"Actif!$E$32/100","v":{"v":0.47350000000000003,"d":"47.35%"}},{"$f":"Actif!$E$33/100","v":{"v":0.0585,"d":"5.85%"}},{"$f":"Actif!$E$29/100","v":{"v":0.027999999999999997,"d":"2.80%"}}]
[null,"#421",49,2026,"H","A_CAPI",{"v":0.44999999999999996,"d":"0.45"},{"v":0.38999999999999996,"d":"0.39"},0.6,0.6,85,0,{"$f":"ROUND(Primes!$Q$10*V8534,2)","v":0.13},0,{"v":3617.194486340221,"d":"3,617"},{"$f":"'BP Financier'!$G$44*(('BP Financier'!$C$22+'BP Financier'!$D$22+'BP Financier'!$E$22+'BP Financier'!$F$22+'BP Financier'!$G$22)/('BP Financier'!$C$16+'BP Financier'!$C$19+'BP Financier'!$D$16+'BP Financier'!$D$19+'BP Financier'!$E$16+'BP Financier'!$E$19+'BP Financier'!$C$22+'BP Financier'!$D$22+'BP Financier'!$E$22+'BP Financier'!$F$22+'BP Financier'!$F$16+'BP Financier'!$F$19+'BP Financier'!$G$16+'BP Financier'!$G$19+'BP Financier'!$G$22))*$V8534*X8534/(1-$W8534)","v":{"v":460.4164571220675,"d":"460"}},{"$f":"'BP Financier'!$G$44*(('BP Financier'!$C$22+'BP Financier'!$D$22+'BP Financier'!$E$22+'BP Financier'!$F$22+'BP Financier'!$G$22)/('BP Financier'!$C$16+'BP Financier'!$C$19+'BP Financier'!$D$16+'BP Financier'!$D$19+'BP Financier'!$E$16+'BP Financier'!$E$19+'BP Financier'!$C$22+'BP Financier'!$D$22+'BP Financier'!$E$22+'BP Financier'!$F$22+'BP Financier'!$F$16+'BP Financier'!$F$19+'BP Financier'!$G$16+'BP Financier'!$G$19+'BP Financier'!$G$22))*$V8534*Y8534/(1-$W8534)","v":{"v":307.7922171921004,"d":"308"}},{"$f":"'BP Financier'!$G$44*(('BP Financier'!$C$22+'BP Financier'!$D$22+'BP Financier'!$E$22+'BP Financier'!$F$22+'BP Financier'!$G$22)/('BP Financier'!$C$16+'BP Financier'!$C$19+'BP Financier'!$D$16+'BP Financier'!$D$19+'BP Financier'!$E$16+'BP Financier'!$E$19+'BP Financier'!$C$22+'BP Financier'!$D$22+'BP Financier'!$E$22+'BP Financier'!$F$22+'BP Financier'!$F$16+'BP Financier'!$F$19+'BP Financier'!$G$16+'BP Financier'!$G$19+'BP Financier'!$G$22))*$V8534*Z8534/(1-$W8534)","v":{"v":2408.9192535613147,"d":"2,409"}},{"$f":"'BP Financier'!$G$44*(('BP Financier'!$C$22+'BP Financier'!$D$22+'BP Financier'!$E$22+'BP Financier'!$F$22+'BP Financier'!$G$22)/('BP Financier'!$C$16+'BP Financier'!$C$19+'BP Financier'!$D$16+'BP Financier'!$D$19+'BP Financier'!$E$16+'BP Financier'!$E$19+'BP Financier'!$C$22+'BP Financier'!$D$22+'BP Financier'!$E$22+'BP Financier'!$F$22+'BP Financier'!$F$16+'BP Financier'!$F$19+'BP Financier'!$G$16+'BP Financier'!$G$19+'BP Financier'!$G$22))*$V8534*AA8534/(1-$W8534)","v":{"v":297.6172678634359,"d":"298"}},{"$f":"'BP Financier'!$G$44*(('BP Financier'!$C$22+'BP Financier'!$D$22+'BP Financier'!$E$22+'BP Financier'!$F$22+'BP Financier'!$G$22)/('BP Financier'!$C$16+'BP Financier'!$C$19+'BP Financier'!$D$16+'BP Financier'!$D$19+'BP Financier'!$E$16+'BP Financier'!$E$19+'BP Financier'!$C$22+'BP Financier'!$D$22+'BP Financier'!$E$22+'BP Financier'!$F$22+'BP Financier'!$F$16+'BP Financier'!$F$19+'BP Financier'!$G$16+'BP Financier'!$G$19+'BP Financier'!$G$22))*$V8534*AB8534/(1-$W8534)","v":{"v":142.44929060130264,"d":"142"}},null,{"v":1E-3,"d":"0.10%"},{"$f":"Actif!$E$28/100","v":{"v":0.28900000000000003,"d":"28.90%"}},{"$f":"Actif!$E$30/100","v":{"v":0.09050000000000001,"d":"9.05%"}},{"$f":"Actif!$E$31/100","v":{"v":0.0605,"d":"6.05%"}},{"$f":"Actif!$E$32/100","v":{"v":0.47350000000000003,"d":"47.35%"}},{"$f":"Actif!$E$33/100","v":{"v":0.0585,"d":"5.85%"}},{"$f":"Actif!$E$29/100","v":{"v":0.027999999999999997,"d":"2.80%"}}]
[null,"#422",49,2028,"H","A_CAPI",{"v":0.44999999999999996,"d":"0.45"},{"v":0.38999999999999996,"d":"0.39"},0.6,0.6,85,0,{"$f":"ROUND(Primes!$Q$10*V8535,2)","v":0.13},0,{"v":3617.194486340221,"d":"3,617"},{"$f":"'BP Financier'!$G$44*(('BP Financier'!$C$22+'BP Financier'!$D$22+'BP Financier'!$E$22+'BP Financier'!$F$22+'BP Financier'!$G$22)/('BP Financier'!$C$16+'BP Financier'!$C$19+'BP Financier'!$D$16+'BP Financier'!$D$19+'BP Financier'!$E$16+'BP Financier'!$E$19+'BP Financier'!$C$22+'BP Financier'!$D$22+'BP Financier'!$E$22+'BP Financier'!$F$22+'BP Financier'!$F$16+'BP Financier'!$F$19+'BP Financier'!$G$16+'BP Financier'!$G$19+'BP Financier'!$G$22))*$V8535*X8535/(1-$W8535)","v":{"v":460.4164571220675,"d":"460"}},{"$f":"'BP Financier'!$G$44*(('BP Financier'!$C$22+'BP Financier'!$D$22+'BP Financier'!$E$22+'BP Financier'!$F$22+'BP Financier'!$G$22)/('BP Financier'!$C$16+'BP Financier'!$C$19+'BP Financier'!$D$16+'BP Financier'!$D$19+'BP Financier'!$E$16+'BP Financier'!$E$19+'BP Financier'!$C$22+'BP Financier'!$D$22+'BP Financier'!$E$22+'BP Financier'!$F$22+'BP Financier'!$F$16+'BP Financier'!$F$19+'BP Financier'!$G$16+'BP Financier'!$G$19+'BP Financier'!$G$22))*$V8535*Y8535/(1-$W8535)","v":{"v":307.7922171921004,"d":"308"}},{"$f":"'BP Financier'!$G$44*(('BP Financier'!$C$22+'BP Financier'!$D$22+'BP Financier'!$E$22+'BP Financier'!$F$22+'BP Financier'!$G$22)/('BP Financier'!$C$16+'BP Financier'!$C$19+'BP Financier'!$D$16+'BP Financier'!$D$19+'BP Financier'!$E$16+'BP Financier'!$E$19+'BP Financier'!$C$22+'BP Financier'!$D$22+'BP Financier'!$E$22+'BP Financier'!$F$22+'BP Financier'!$F$16+'BP Financier'!$F$19+'BP Financier'!$G$16+'BP Financier'!$G$19+'BP Financier'!$G$22))*$V8535*Z8535/(1-$W8535)","v":{"v":2408.9192535613147,"d":"2,409"}},{"$f":"'BP Financier'!$G$44*(('BP Financier'!$C$22+'BP Financier'!$D$22+'BP Financier'!$E$22+'BP Financier'!$F$22+'BP Financier'!$G$22)/('BP Financier'!$C$16+'BP Financier'!$C$19+'BP Financier'!$D$16+'BP Financier'!$D$19+'BP Financier'!$E$16+'BP Financier'!$E$19+'BP Financier'!$C$22+'BP Financier'!$D$22+'BP Financier'!$E$22+'BP Financier'!$F$22+'BP Financier'!$F$16+'BP Financier'!$F$19+'BP Financier'!$G$16+'BP Financier'!$G$19+'BP Financier'!$G$22))*$V8535*AA8535/(1-$W8535)","v":{"v":297.6172678634359,"d":"298"}},{"$f":"'BP Financier'!$G$44*(('BP Financier'!$C$22+'BP Financier'!$D$22+'BP Financier'!$E$22+'BP Financier'!$F$22+'BP Financier'!$G$22)/('BP Financier'!$C$16+'BP Financier'!$C$19+'BP Financier'!$D$16+'BP Financier'!$D$19+'BP Financier'!$E$16+'BP Financier'!$E$19+'BP Financier'!$C$22+'BP Financier'!$D$22+'BP Financier'!$E$22+'BP Financier'!$F$22+'BP Financier'!$F$16+'BP Financier'!$F$19+'BP Financier'!$G$16+'BP Financier'!$G$19+'BP Financier'!$G$22))*$V8535*AB8535/(1-$W8535)","v":{"v":142.44929060130264,"d":"142"}},null,{"v":1E-3,"d":"0.10%"},{"$f":"Actif!$E$28/100","v":{"v":0.28900000000000003,"d":"28.90%"}},{"$f":"Actif!$E$30/100","v":{"v":0.09050000000000001,"d":"9.05%"}},{"$f":"Actif!$E$31/100","v":{"v":0.0605,"d":"6.05%"}},{"$f":"Actif!$E$32/100","v":{"v":0.47350000000000003,"d":"47.35%"}},{"$f":"Actif!$E$33/100","v":{"v":0.0585,"d":"5.85%"}},{"$f":"Actif!$E$29/100","v":{"v":0.027999999999999997,"d":"2.80%"}}]
[null,"#423",49,2029,"H","A_CAPI",{"v":0.44999999999999996,"d":"0.45"},{"v":0.38999999999999996,"d":"0.39"},0.6,0.6,85,0,{"$f":"ROUND(Primes!$Q$10*V8536,2)","v":0.13},0,{"v":3617.194486340221,"d":"3,617"},{"$f":"'BP Financier'!$G$44*(('BP Financier'!$C$22+'BP Financier'!$D$22+'BP Financier'!$E$22+'BP Financier'!$F$22+'BP Financier'!$G$22)/('BP Financier'!$C$16+'BP Financier'!$C$19+'BP Financier'!$D$16+'BP Financier'!$D$19+'BP Financier'!$E$16+'BP Financier'!$E$19+'BP Financier'!$C$22+'BP Financier'!$D$22+'BP Financier'!$E$22+'BP Financier'!$F$22+'BP Financier'!$F$16+'BP Financier'!$F$19+'BP Financier'!$G$16+'BP Financier'!$G$19+'BP Financier'!$G$22))*$V8536*X8536/(1-$W8536)","v":{"v":460.4164571220675,"d":"460"}},{"$f":"'BP Financier'!$G$44*(('BP Financier'!$C$22+'BP Financier'!$D$22+'BP Financier'!$E$22+'BP Financier'!$F$22+'BP Financier'!$G$22)/('BP Financier'!$C$16+'BP Financier'!$C$19+'BP Financier'!$D$16+'BP Financier'!$D$19+'BP Financier'!$E$16+'BP Financier'!$E$19+'BP Financier'!$C$22+'BP Financier'!$D$22+'BP Financier'!$E$22+'BP Financier'!$F$22+'BP Financier'!$F$16+'BP Financier'!$F$19+'BP Financier'!$G$16+'BP Financier'!$G$19+'BP Financier'!$G$22))*$V8536*Y8536/(1-$W8536)","v":{"v":307.7922171921004,"d":"308"}},{"$f":"'BP Financier'!$G$44*(('BP Financier'!$C$22+'BP Financier'!$D$22+'BP Financier'!$E$22+'BP Financier'!$F$22+'BP Financier'!$G$22)/('BP Financier'!$C$16+'BP Financier'!$C$19+'BP Financier'!$D$16+'BP Financier'!$D$19+'BP Financier'!$E$16+'BP Financier'!$E$19+'BP Financier'!$C$22+'BP Financier'!$D$22+'BP Financier'!$E$22+'BP Financier'!$F$22+'BP Financier'!$F$16+'BP Financier'!$F$19+'BP Financier'!$G$16+'BP Financier'!$G$19+'BP Financier'!$G$22))*$V8536*Z8536/(1-$W8536)","v":{"v":2408.9192535613147,"d":"2,409"}},{"$f":"'BP Financier'!$G$44*(('BP Financier'!$C$22+'BP Financier'!$D$22+'BP Financier'!$E$22+'BP Financier'!$F$22+'BP Financier'!$G$22)/('BP Financier'!$C$16+'BP Financier'!$C$19+'BP Financier'!$D$16+'BP Financier'!$D$19+'BP Financier'!$E$16+'BP Financier'!$E$19+'BP Financier'!$C$22+'BP Financier'!$D$22+'BP Financier'!$E$22+'BP Financier'!$F$22+'BP Financier'!$F$16+'BP Financier'!$F$19+'BP Financier'!$G$16+'BP Financier'!$G$19+'BP Financier'!$G$22))*$V8536*AA8536/(1-$W8536)","v":{"v":297.6172678634359,"d":"298"}},{"$f":"'BP Financier'!$G$44*(('BP Financier'!$C$22+'BP Financier'!$D$22+'BP Financier'!$E$22+'BP Financier'!$F$22+'BP Financier'!$G$22)/('BP Financier'!$C$16+'BP Financier'!$C$19+'BP Financier'!$D$16+'BP Financier'!$D$19+'BP Financier'!$E$16+'BP Financier'!$E$19+'BP Financier'!$C$22+'BP Financier'!$D$22+'BP Financier'!$E$22+'BP Financier'!$F$22+'BP Financier'!$F$16+'BP Financier'!$F$19+'BP Financier'!$G$16+'BP Financier'!$G$19+'BP Financier'!$G$22))*$V8536*AB8536/(1-$W8536)","v":{"v":142.44929060130264,"d":"142"}},null,{"v":1E-3,"d":"0.10%"},{"$f":"Actif!$E$28/100","v":{"v":0.28900000000000003,"d":"28.90%"}},{"$f":"Actif!$E$30/100","v":{"v":0.09050000000000001,"d":"9.05%"}},{"$f":"Actif!$E$31/100","v":{"v":0.0605,"d":"6.05%"}},{"$f":"Actif!$E$32/100","v":{"v":0.47350000000000003,"d":"47.35%"}},{"$f":"Actif!$E$33/100","v":{"v":0.0585,"d":"5.85%"}},{"$f":"Actif!$E$29/100","v":{"v":0.027999999999999997,"d":"2.80%"}}]
[null,"#424",49,2030,"H","A_CAPI",{"v":0.44999999999999996,"d":"0.45"},{"v":0.38999999999999996,"d":"0.39"},0.6,0.6,85,0,{"$f":"ROUND(Primes!$Q$10*V8537,2)","v":0.13},0,{"v":3617.194486340221,"d":"3,617"},{"$f":"'BP Financier'!$G$44*(('BP Financier'!$C$22+'BP Financier'!$D$22+'BP Financier'!$E$22+'BP Financier'!$F$22+'BP Financier'!$G$22)/('BP Financier'!$C$16+'BP Financier'!$C$19+'BP Financier'!$D$16+'BP Financier'!$D$19+'BP Financier'!$E$16+'BP Financier'!$E$19+'BP Financier'!$C$22+'BP Financier'!$D$22+'BP Financier'!$E$22+'BP Financier'!$F$22+'BP Financier'!$F$16+'BP Financier'!$F$19+'BP Financier'!$G$16+'BP Financier'!$G$19+'BP Financier'!$G$22))*$V8537*X8537/(1-$W8537)","v":{"v":460.4164571220675,"d":"460"}},{"$f":"'BP Financier'!$G$44*(('BP Financier'!$C$22+'BP Financier'!$D$22+'BP Financier'!$E$22+'BP Financier'!$F$22+'BP Financier'!$G$22)/('BP Financier'!$C$16+'BP Financier'!$C$19+'BP Financier'!$D$16+'BP Financier'!$D$19+'BP Financier'!$E$16+'BP Financier'!$E$19+'BP Financier'!$C$22+'BP Financier'!$D$22+'BP Financier'!$E$22+'BP Financier'!$F$22+'BP Financier'!$F$16+'BP Financier'!$F$19+'BP Financier'!$G$16+'BP Financier'!$G$19+'BP Financier'!$G$22))*$V8537*Y8537/(1-$W8537)","v":{"v":307.7922171921004,"d":"308"}},{"$f":"'BP Financier'!$G$44*(('BP Financier'!$C$22+'BP Financier'!$D$22+'BP Financier'!$E$22+'BP Financier'!$F$22+'BP Financier'!$G$22)/('BP Financier'!$C$16+'BP Financier'!$C$19+'BP Financier'!$D$16+'BP Financier'!$D$19+'BP Financier'!$E$16+'BP Financier'!$E$19+'BP Financier'!$C$22+'BP Financier'!$D$22+'BP Financier'!$E$22+'BP Financier'!$F$22+'BP Financier'!$F$16+'BP Financier'!$F$19+'BP Financier'!$G$16+'BP Financier'!$G$19+'BP Financier'!$G$22))*$V8537*Z8537/(1-$W8537)","v":{"v":2408.9192535613147,"d":"2,409"}},{"$f":"'BP Financier'!$G$44*(('BP Financier'!$C$22+'BP Financier'!$D$22+'BP Financier'!$E$22+'BP Financier'!$F$22+'BP Financier'!$G$22)/('BP Financier'!$C$16+'BP Financier'!$C$19+'BP Financier'!$D$16+'BP Financier'!$D$19+'BP Financier'!$E$16+'BP Financier'!$E$19+'BP Financier'!$C$22+'BP Financier'!$D$22+'BP Financier'!$E$22+'BP Financier'!$F$22+'BP Financier'!$F$16+'BP Financier'!$F$19+'BP Financier'!$G$16+'BP Financier'!$G$19+'BP Financier'!$G$22))*$V8537*AA8537/(1-$W8537)","v":{"v":297.6172678634359,"d":"298"}},{"$f":"'BP Financier'!$G$44*(('BP Financier'!$C$22+'BP Financier'!$D$22+'BP Financier'!$E$22+'BP Financier'!$F$22+'BP Financier'!$G$22)/('BP Financier'!$C$16+'BP Financier'!$C$19+'BP Financier'!$D$16+'BP Financier'!$D$19+'BP Financier'!$E$16+'BP Financier'!$E$19+'BP Financier'!$C$22+'BP Financier'!$D$22+'BP Financier'!$E$22+'BP Financier'!$F$22+'BP Financier'!$F$16+'BP Financier'!$F$19+'BP Financier'!$G$16+'BP Financier'!$G$19+'BP Financier'!$G$22))*$V8537*AB8537/(1-$W8537)","v":{"v":142.44929060130264,"d":"142"}},null,{"v":1E-3,"d":"0.10%"},{"$f":"Actif!$E$28/100","v":{"v":0.28900000000000003,"d":"28.90%"}},{"$f":"Actif!$E$30/100","v":{"v":0.09050000000000001,"d":"9.05%"}},{"$f":"Actif!$E$31/100","v":{"v":0.0605,"d":"6.05%"}},{"$f":"Actif!$E$32/100","v":{"v":0.47350000000000003,"d":"47.35%"}},{"$f":"Actif!$E$33/100","v":{"v":0.0585,"d":"5.85%"}},{"$f":"Actif!$E$29/100","v":{"v":0.027999999999999997,"d":"2.80%"}}]
[null,"#425",49,2031,"H","A_CAPI",{"v":0.44999999999999996,"d":"0.45"},{"v":0.38999999999999996,"d":"0.39"},0.6,0.6,85,0,{"$f":"ROUND(Primes!$Q$10*V8538,2)","v":0.13},0,{"v":3617.194486340221,"d":"3,617"},{"$f":"'BP Financier'!$G$44*(('BP Financier'!$C$22+'BP Financier'!$D$22+'BP Financier'!$E$22+'BP Financier'!$F$22+'BP Financier'!$G$22)/('BP Financier'!$C$16+'BP Financier'!$C$19+'BP Financier'!$D$16+'BP Financier'!$D$19+'BP Financier'!$E$16+'BP Financier'!$E$19+'BP Financier'!$C$22+'BP Financier'!$D$22+'BP Financier'!$E$22+'BP Financier'!$F$22+'BP Financier'!$F$16+'BP Financier'!$F$19+'BP Financier'!$G$16+'BP Financier'!$G$19+'BP Financier'!$G$22))*$V8538*X8538/(1-$W8538)","v":{"v":460.4164571220675,"d":"460"}},{"$f":"'BP Financier'!$G$44*(('BP Financier'!$C$22+'BP Financier'!$D$22+'BP Financier'!$E$22+'BP Financier'!$F$22+'BP Financier'!$G$22)/('BP Financier'!$C$16+'BP Financier'!$C$19+'BP Financier'!$D$16+'BP Financier'!$D$19+'BP Financier'!$E$16+'BP Financier'!$E$19+'BP Financier'!$C$22+'BP Financier'!$D$22+'BP Financier'!$E$22+'BP Financier'!$F$22+'BP Financier'!$F$16+'BP Financier'!$F$19+'BP Financier'!$G$16+'BP Financier'!$G$19+'BP Financier'!$G$22))*$V8538*Y8538/(1-$W8538)","v":{"v":307.7922171921004,"d":"308"}},{"$f":"'BP Financier'!$G$44*(('BP Financier'!$C$22+'BP Financier'!$D$22+'BP Financier'!$E$22+'BP Financier'!$F$22+'BP Financier'!$G$22)/('BP Financier'!$C$16+'BP Financier'!$C$19+'BP Financier'!$D$16+'BP Financier'!$D$19+'BP Financier'!$E$16+'BP Financier'!$E$19+'BP Financier'!$C$22+'BP Financier'!$D$22+'BP Financier'!$E$22+'BP Financier'!$F$22+'BP Financier'!$F$16+'BP Financier'!$F$19+'BP Financier'!$G$16+'BP Financier'!$G$19+'BP Financier'!$G$22))*$V8538*Z8538/(1-$W8538)","v":{"v":2408.9192535613147,"d":"2,409"}},{"$f":"'BP Financier'!$G$44*(('BP Financier'!$C$22+'BP Financier'!$D$22+'BP Financier'!$E$22+'BP Financier'!$F$22+'BP Financier'!$G$22)/('BP Financier'!$C$16+'BP Financier'!$C$19+'BP Financier'!$D$16+'BP Financier'!$D$19+'BP Financier'!$E$16+'BP Financier'!$E$19+'BP Financier'!$C$22+'BP Financier'!$D$22+'BP Financier'!$E$22+'BP Financier'!$F$22+'BP Financier'!$F$16+'BP Financier'!$F$19+'BP Financier'!$G$16+'BP Financier'!$G$19+'BP Financier'!$G$22))*$V8538*AA8538/(1-$W8538)","v":{"v":297.6172678634359,"d":"298"}},{"$f":"'BP Financier'!$G$44*(('BP Financier'!$C$22+'BP Financier'!$D$22+'BP Financier'!$E$22+'BP Financier'!$F$22+'BP Financier'!$G$22)/('BP Financier'!$C$16+'BP Financier'!$C$19+'BP Financier'!$D$16+'BP Financier'!$D$19+'BP Financier'!$E$16+'BP Financier'!$E$19+'BP Financier'!$C$22+'BP Financier'!$D$22+'BP Financier'!$E$22+'BP Financier'!$F$22+'BP Financier'!$F$16+'BP Financier'!$F$19+'BP Financier'!$G$16+'BP Financier'!$G$19+'BP Financier'!$G$22))*$V8538*AB8538/(1-$W8538)","v":{"v":142.44929060130264,"d":"142"}},null,{"v":1E-3,"d":"0.10%"},{"$f":"Actif!$E$28/100","v":{"v":0.28900000000000003,"d":"28.90%"}},{"$f":"Actif!$E$30/100","v":{"v":0.09050000000000001,"d":"9.05%"}},{"$f":"Actif!$E$31/100","v":{"v":0.0605,"d":"6.05%"}},{"$f":"Actif!$E$32/100","v":{"v":0.47350000000000003,"d":"47.35%"}},{"$f":"Actif!$E$33/100","v":{"v":0.0585,"d":"5.85%"}},{"$f":"Actif!$E$29/100","v":{"v":0.027999999999999997,"d":"2.80%"}}]
[null,"#426",50,2026,"F","A_CAPI",{"v":0.44999999999999996,"d":"0.45"},{"v":0.38999999999999996,"d":"0.39"},0.6,0.6,85,0,{"$f":"ROUND(Primes!$Q$10*V8539,2)","v":0.78},0,{"v":21703.166918041326,"d":"21,703"},{"$f":"'BP Financier'!$G$44*(('BP Financier'!$C$22+'BP Financier'!$D$22+'BP Financier'!$E$22+'BP Financier'!$F$22+'BP Financier'!$G$22)/('BP Financier'!$C$16+'BP Financier'!$C$19+'BP Financier'!$D$16+'BP Financier'!$D$19+'BP Financier'!$E$16+'BP Financier'!$E$19+'BP Financier'!$C$22+'BP Financier'!$D$22+'BP Financier'!$E$22+'BP Financier'!$F$22+'BP Financier'!$F$16+'BP Financier'!$F$19+'BP Financier'!$G$16+'BP Financier'!$G$19+'BP Financier'!$G$22))*$V8539*X8539/(1-$W8539)","v":{"v":2762.4987427324054,"d":"2,762"}},{"$f":"'BP Financier'!$G$44*(('BP Financier'!$C$22+'BP Financier'!$D$22+'BP Financier'!$E$22+'BP Financier'!$F$22+'BP Financier'!$G$22)/('BP Financier'!$C$16+'BP Financier'!$C$19+'BP Financier'!$D$16+'BP Financier'!$D$19+'BP Financier'!$E$16+'BP Financier'!$E$19+'BP Financier'!$C$22+'BP Financier'!$D$22+'BP Financier'!$E$22+'BP Financier'!$F$22+'BP Financier'!$F$16+'BP Financier'!$F$19+'BP Financier'!$G$16+'BP Financier'!$G$19+'BP Financier'!$G$22))*$V8539*Y8539/(1-$W8539)","v":{"v":1846.7533031526023,"d":"1,847"}},{"$f":"'BP Financier'!$G$44*(('BP Financier'!$C$22+'BP Financier'!$D$22+'BP Financier'!$E$22+'BP Financier'!$F$22+'BP Financier'!$G$22)/('BP Financier'!$C$16+'BP Financier'!$C$19+'BP Financier'!$D$16+'BP Financier'!$D$19+'BP Financier'!$E$16+'BP Financier'!$E$19+'BP Financier'!$C$22+'BP Financier'!$D$22+'BP Financier'!$E$22+'BP Financier'!$F$22+'BP Financier'!$F$16+'BP Financier'!$F$19+'BP Financier'!$G$16+'BP Financier'!$G$19+'BP Financier'!$G$22))*$V8539*Z8539/(1-$W8539)","v":{"v":14453.51552136789,"d":"14,454"}},{"$f":"'BP Financier'!$G$44*(('BP Financier'!$C$22+'BP Financier'!$D$22+'BP Financier'!$E$22+'BP Financier'!$F$22+'BP Financier'!$G$22)/('BP Financier'!$C$16+'BP Financier'!$C$19+'BP Financier'!$D$16+'BP Financier'!$D$19+'BP Financier'!$E$16+'BP Financier'!$E$19+'BP Financier'!$C$22+'BP Financier'!$D$22+'BP Financier'!$E$22+'BP Financier'!$F$22+'BP Financier'!$F$16+'BP Financier'!$F$19+'BP Financier'!$G$16+'BP Financier'!$G$19+'BP Financier'!$G$22))*$V8539*AA8539/(1-$W8539)","v":{"v":1785.7036071806158,"d":"1,786"}},{"$f":"'BP Financier'!$G$44*(('BP Financier'!$C$22+'BP Financier'!$D$22+'BP Financier'!$E$22+'BP Financier'!$F$22+'BP Financier'!$G$22)/('BP Financier'!$C$16+'BP Financier'!$C$19+'BP Financier'!$D$16+'BP Financier'!$D$19+'BP Financier'!$E$16+'BP Financier'!$E$19+'BP Financier'!$C$22+'BP Financier'!$D$22+'BP Financier'!$E$22+'BP Financier'!$F$22+'BP Financier'!$F$16+'BP Financier'!$F$19+'BP Financier'!$G$16+'BP Financier'!$G$19+'BP Financier'!$G$22))*$V8539*AB8539/(1-$W8539)","v":{"v":854.6957436078159,"d":"855"}},null,{"v":0.006,"d":"0.60%"},{"$f":"Actif!$E$28/100","v":{"v":0.28900000000000003,"d":"28.90%"}},{"$f":"Actif!$E$30/100","v":{"v":0.09050000000000001,"d":"9.05%"}},{"$f":"Actif!$E$31/100","v":{"v":0.0605,"d":"6.05%"}},{"$f":"Actif!$E$32/100","v":{"v":0.47350000000000003,"d":"47.35%"}},{"$f":"Actif!$E$33/100","v":{"v":0.0585,"d":"5.85%"}},{"$f":"Actif!$E$29/100","v":{"v":0.027999999999999997,"d":"2.80%"}}]
[null,"#427",50,2028,"F","A_CAPI",{"$f":"frais_gestion_Euro*100","v":{"v":0.44999999999999996,"d":"0.45"}},{"$f":"frais_gestion_UC*100","v":{"v":0.38999999999999996,"d":"0.39"}},{"$f":"frais_distribution_FG*100","v":0.6},{"$f":"frais_distribution_UC*100","v":0.6},85,0,{"$f":"ROUND(Primes!$Q$10*V8540,2)","v":0.78},0,{"$f":"SUM(P8540:T8540)","v":{"v":21703.166918041326,"d":"21,703"}},{"$f":"'BP Financier'!$G$44*(('BP Financier'!$C$22+'BP Financier'!$D$22+'BP Financier'!$E$22+'BP Financier'!$F$22+'BP Financier'!$G$22)/('BP Financier'!$C$16+'BP Financier'!$C$19+'BP Financier'!$D$16+'BP Financier'!$D$19+'BP Financier'!$E$16+'BP Financier'!$E$19+'BP Financier'!$C$22+'BP Financier'!$D$22+'BP Financier'!$E$22+'BP Financier'!$F$22+'BP Financier'!$F$16+'BP Financier'!$F$19+'BP Financier'!$G$16+'BP Financier'!$G$19+'BP Financier'!$G$22))*$V8540*X8540/(1-$W8540)","v":{"v":2762.4987427324054,"d":"2,762"}},{"$f":"'BP Financier'!$G$44*(('BP Financier'!$C$22+'BP Financier'!$D$22+'BP Financier'!$E$22+'BP Financier'!$F$22+'BP Financier'!$G$22)/('BP Financier'!$C$16+'BP Financier'!$C$19+'BP Financier'!$D$16+'BP Financier'!$D$19+'BP Financier'!$E$16+'BP Financier'!$E$19+'BP Financier'!$C$22+'BP Financier'!$D$22+'BP Financier'!$E$22+'BP Financier'!$F$22+'BP Financier'!$F$16+'BP Financier'!$F$19+'BP Financier'!$G$16+'BP Financier'!$G$19+'BP Financier'!$G$22))*$V8540*Y8540/(1-$W8540)","v":{"v":1846.7533031526023,"d":"1,847"}},{"$f":"'BP Financier'!$G$44*(('BP Financier'!$C$22+'BP Financier'!$D$22+'BP Financier'!$E$22+'BP Financier'!$F$22+'BP Financier'!$G$22)/('BP Financier'!$C$16+'BP Financier'!$C$19+'BP Financier'!$D$16+'BP Financier'!$D$19+'BP Financier'!$E$16+'BP Financier'!$E$19+'BP Financier'!$C$22+'BP Financier'!$D$22+'BP Financier'!$E$22+'BP Financier'!$F$22+'BP Financier'!$F$16+'BP Financier'!$F$19+'BP Financier'!$G$16+'BP Financier'!$G$19+'BP Financier'!$G$22))*$V8540*Z8540/(1-$W8540)","v":{"v":14453.51552136789,"d":"14,454"}},{"$f":"'BP Financier'!$G$44*(('BP Financier'!$C$22+'BP Financier'!$D$22+'BP Financier'!$E$22+'BP Financier'!$F$22+'BP Financier'!$G$22)/('BP Financier'!$C$16+'BP Financier'!$C$19+'BP Financier'!$D$16+'BP Financier'!$D$19+'BP Financier'!$E$16+'BP Financier'!$E$19+'BP Financier'!$C$22+'BP Financier'!$D$22+'BP Financier'!$E$22+'BP Financier'!$F$22+'BP Financier'!$F$16+'BP Financier'!$F$19+'BP Financier'!$G$16+'BP Financier'!$G$19+'BP Financier'!$G$22))*$V8540*AA8540/(1-$W8540)","v":{"v":1785.7036071806158,"d":"1,786"}},{"$f":"'BP Financier'!$G$44*(('BP Financier'!$C$22+'BP Financier'!$D$22+'BP Financier'!$E$22+'BP Financier'!$F$22+'BP Financier'!$G$22)/('BP Financier'!$C$16+'BP Financier'!$C$19+'BP Financier'!$D$16+'BP Financier'!$D$19+'BP Financier'!$E$16+'BP Financier'!$E$19+'BP Financier'!$C$22+'BP Financier'!$D$22+'BP Financier'!$E$22+'BP Financier'!$F$22+'BP Financier'!$F$16+'BP Financier'!$F$19+'BP Financier'!$G$16+'BP Financier'!$G$19+'BP Financier'!$G$22))*$V8540*AB8540/(1-$W8540)","v":{"v":854.6957436078159,"d":"855"}},null,{"v":0.006,"d":"0.60%"},{"$f":"Actif!$E$28/100","v":{"v":0.28900000000000003,"d":"28.90%"}},{"$f":"Actif!$E$30/100","v":{"v":0.09050000000000001,"d":"9.05%"}},{"$f":"Actif!$E$31/100","v":{"v":0.0605,"d":"6.05%"}},{"$f":"Actif!$E$32/100","v":{"v":0.47350000000000003,"d":"47.35%"}},{"$f":"Actif!$E$33/100","v":{"v":0.0585,"d":"5.85%"}},{"$f":"Actif!$E$29/100","v":{"v":0.027999999999999997,"d":"2.80%"}}]
[null,"#428",50,2029,"F","A_CAPI",{"v":0.44999999999999996,"d":"0.45"},{"v":0.38999999999999996,"d":"0.39"},0.6,0.6,85,0,{"$f":"ROUND(Primes!$Q$10*V8541,2)","v":0.78},0,{"v":21703.166918041326,"d":"21,703"},{"$f":"'BP Financier'!$G$44*(('BP Financier'!$C$22+'BP Financier'!$D$22+'BP Financier'!$E$22+'BP Financier'!$F$22+'BP Financier'!$G$22)/('BP Financier'!$C$16+'BP Financier'!$C$19+'BP Financier'!$D$16+'BP Financier'!$D$19+'BP Financier'!$E$16+'BP Financier'!$E$19+'BP Financier'!$C$22+'BP Financier'!$D$22+'BP Financier'!$E$22+'BP Financier'!$F$22+'BP Financier'!$F$16+'BP Financier'!$F$19+'BP Financier'!$G$16+'BP Financier'!$G$19+'BP Financier'!$G$22))*$V8541*X8541/(1-$W8541)","v":{"v":2762.4987427324054,"d":"2,762"}},{"$f":"'BP Financier'!$G$44*(('BP Financier'!$C$22+'BP Financier'!$D$22+'BP Financier'!$E$22+'BP Financier'!$F$22+'BP Financier'!$G$22)/('BP Financier'!$C$16+'BP Financier'!$C$19+'BP Financier'!$D$16+'BP Financier'!$D$19+'BP Financier'!$E$16+'BP Financier'!$E$19+'BP Financier'!$C$22+'BP Financier'!$D$22+'BP Financier'!$E$22+'BP Financier'!$F$22+'BP Financier'!$F$16+'BP Financier'!$F$19+'BP Financier'!$G$16+'BP Financier'!$G$19+'BP Financier'!$G$22))*$V8541*Y8541/(1-$W8541)","v":{"v":1846.7533031526023,"d":"1,847"}},{"$f":"'BP Financier'!$G$44*(('BP Financier'!$C$22+'BP Financier'!$D$22+'BP Financier'!$E$22+'BP Financier'!$F$22+'BP Financier'!$G$22)/('BP Financier'!$C$16+'BP Financier'!$C$19+'BP Financier'!$D$16+'BP Financier'!$D$19+'BP Financier'!$E$16+'BP Financier'!$E$19+'BP Financier'!$C$22+'BP Financier'!$D$22+'BP Financier'!$E$22+'BP Financier'!$F$22+'BP Financier'!$F$16+'BP Financier'!$F$19+'BP Financier'!$G$16+'BP Financier'!$G$19+'BP Financier'!$G$22))*$V8541*Z8541/(1-$W8541)","v":{"v":14453.51552136789,"d":"14,454"}},{"$f":"'BP Financier'!$G$44*(('BP Financier'!$C$22+'BP Financier'!$D$22+'BP Financier'!$E$22+'BP Financier'!$F$22+'BP Financier'!$G$22)/('BP Financier'!$C$16+'BP Financier'!$C$19+'BP Financier'!$D$16+'BP Financier'!$D$19+'BP Financier'!$E$16+'BP Financier'!$E$19+'BP Financier'!$C$22+'BP Financier'!$D$22+'BP Financier'!$E$22+'BP Financier'!$F$22+'BP Financier'!$F$16+'BP Financier'!$F$19+'BP Financier'!$G$16+'BP Financier'!$G$19+'BP Financier'!$G$22))*$V8541*AA8541/(1-$W8541)","v":{"v":1785.7036071806158,"d":"1,786"}},{"$f":"'BP Financier'!$G$44*(('BP Financier'!$C$22+'BP Financier'!$D$22+'BP Financier'!$E$22+'BP Financier'!$F$22+'BP Financier'!$G$22)/('BP Financier'!$C$16+'BP Financier'!$C$19+'BP Financier'!$D$16+'BP Financier'!$D$19+'BP Financier'!$E$16+'BP Financier'!$E$19+'BP Financier'!$C$22+'BP Financier'!$D$22+'BP Financier'!$E$22+'BP Financier'!$F$22+'BP Financier'!$F$16+'BP Financier'!$F$19+'BP Financier'!$G$16+'BP Financier'!$G$19+'BP Financier'!$G$22))*$V8541*AB8541/(1-$W8541)","v":{"v":854.6957436078159,"d":"855"}},null,{"v":0.006,"d":"0.60%"},{"$f":"Actif!$E$28/100","v":{"v":0.28900000000000003,"d":"28.90%"}},{"$f":"Actif!$E$30/100","v":{"v":0.09050000000000001,"d":"9.05%"}},{"$f":"Actif!$E$31/100","v":{"v":0.0605,"d":"6.05%"}},{"$f":"Actif!$E$32/100","v":{"v":0.47350000000000003,"d":"47.35%"}},{"$f":"Actif!$E$33/100","v":{"v":0.0585,"d":"5.85%"}},{"$f":"Actif!$E$29/100","v":{"v":0.027999999999999997,"d":"2.80%"}}]
[null,"#429",50,2030,"F","A_CAPI",{"v":0.44999999999999996,"d":"0.45"},{"v":0.38999999999999996,"d":"0.39"},0.6,0.6,85,0,{"$f":"ROUND(Primes!$Q$10*V8542,2)","v":0.78},0,{"v":21703.166918041326,"d":"21,703"},{"$f":"'BP Financier'!$G$44*(('BP Financier'!$C$22+'BP Financier'!$D$22+'BP Financier'!$E$22+'BP Financier'!$F$22+'BP Financier'!$G$22)/('BP Financier'!$C$16+'BP Financier'!$C$19+'BP Financier'!$D$16+'BP Financier'!$D$19+'BP Financier'!$E$16+'BP Financier'!$E$19+'BP Financier'!$C$22+'BP Financier'!$D$22+'BP Financier'!$E$22+'BP Financier'!$F$22+'BP Financier'!$F$16+'BP Financier'!$F$19+'BP Financier'!$G$16+'BP Financier'!$G$19+'BP Financier'!$G$22))*$V8542*X8542/(1-$W8542)","v":{"v":2762.4987427324054,"d":"2,762"}},{"$f":"'BP Financier'!$G$44*(('BP Financier'!$C$22+'BP Financier'!$D$22+'BP Financier'!$E$22+'BP Financier'!$F$22+'BP Financier'!$G$22)/('BP Financier'!$C$16+'BP Financier'!$C$19+'BP Financier'!$D$16+'BP Financier'!$D$19+'BP Financier'!$E$16+'BP Financier'!$E$19+'BP Financier'!$C$22+'BP Financier'!$D$22+'BP Financier'!$E$22+'BP Financier'!$F$22+'BP Financier'!$F$16+'BP Financier'!$F$19+'BP Financier'!$G$16+'BP Financier'!$G$19+'BP Financier'!$G$22))*$V8542*Y8542/(1-$W8542)","v":{"v":1846.7533031526023,"d":"1,847"}},{"$f":"'BP Financier'!$G$44*(('BP Financier'!$C$22+'BP Financier'!$D$22+'BP Financier'!$E$22+'BP Financier'!$F$22+'BP Financier'!$G$22)/('BP Financier'!$C$16+'BP Financier'!$C$19+'BP Financier'!$D$16+'BP Financier'!$D$19+'BP Financier'!$E$16+'BP Financier'!$E$19+'BP Financier'!$C$22+'BP Financier'!$D$22+'BP Financier'!$E$22+'BP Financier'!$F$22+'BP Financier'!$F$16+'BP Financier'!$F$19+'BP Financier'!$G$16+'BP Financier'!$G$19+'BP Financier'!$G$22))*$V8542*Z8542/(1-$W8542)","v":{"v":14453.51552136789,"d":"14,454"}},{"$f":"'BP Financier'!$G$44*(('BP Financier'!$C$22+'BP Financier'!$D$22+'BP Financier'!$E$22+'BP Financier'!$F$22+'BP Financier'!$G$22)/('BP Financier'!$C$16+'BP Financier'!$C$19+'BP Financier'!$D$16+'BP Financier'!$D$19+'BP Financier'!$E$16+'BP Financier'!$E$19+'BP Financier'!$C$22+'BP Financier'!$D$22+'BP Financier'!$E$22+'BP Financier'!$F$22+'BP Financier'!$F$16+'BP Financier'!$F$19+'BP Financier'!$G$16+'BP Financier'!$G$19+'BP Financier'!$G$22))*$V8542*AA8542/(1-$W8542)","v":{"v":1785.7036071806158,"d":"1,786"}},{"$f":"'BP Financier'!$G$44*(('BP Financier'!$C$22+'BP Financier'!$D$22+'BP Financier'!$E$22+'BP Financier'!$F$22+'BP Financier'!$G$22)/('BP Financier'!$C$16+'BP Financier'!$C$19+'BP Financier'!$D$16+'BP Financier'!$D$19+'BP Financier'!$E$16+'BP Financier'!$E$19+'BP Financier'!$C$22+'BP Financier'!$D$22+'BP Financier'!$E$22+'BP Financier'!$F$22+'BP Financier'!$F$16+'BP Financier'!$F$19+'BP Financier'!$G$16+'BP Financier'!$G$19+'BP Financier'!$G$22))*$V8542*AB8542/(1-$W8542)","v":{"v":854.6957436078159,"d":"855"}},null,{"v":0.006,"d":"0.60%"},{"$f":"Actif!$E$28/100","v":{"v":0.28900000000000003,"d":"28.90%"}},{"$f":"Actif!$E$30/100","v":{"v":0.09050000000000001,"d":"9.05%"}},{"$f":"Actif!$E$31/100","v":{"v":0.0605,"d":"6.05%"}},{"$f":"Actif!$E$32/100","v":{"v":0.47350000000000003,"d":"47.35%"}},{"$f":"Actif!$E$33/100","v":{"v":0.0585,"d":"5.85%"}},{"$f":"Actif!$E$29/100","v":{"v":0.027999999999999997,"d":"2.80%"}}]
[null,"#430",50,2031,"F","A_CAPI",{"v":0.44999999999999996,"d":"0.45"},{"v":0.38999999999999996,"d":"0.39"},0.6,0.6,85,0,{"$f":"ROUND(Primes!$Q$10*V8543,2)","v":0.78},0,{"v":21703.166918041326,"d":"21,703"},{"$f":"'BP Financier'!$G$44*(('BP Financier'!$C$22+'BP Financier'!$D$22+'BP Financier'!$E$22+'BP Financier'!$F$22+'BP Financier'!$G$22)/('BP Financier'!$C$16+'BP Financier'!$C$19+'BP Financier'!$D$16+'BP Financier'!$D$19+'BP Financier'!$E$16+'BP Financier'!$E$19+'BP Financier'!$C$22+'BP Financier'!$D$22+'BP Financier'!$E$22+'BP Financier'!$F$22+'BP Financier'!$F$16+'BP Financier'!$F$19+'BP Financier'!$G$16+'BP Financier'!$G$19+'BP Financier'!$G$22))*$V8543*X8543/(1-$W8543)","v":{"v":2762.4987427324054,"d":"2,762"}},{"$f":"'BP Financier'!$G$44*(('BP Financier'!$C$22+'BP Financier'!$D$22+'BP Financier'!$E$22+'BP Financier'!$F$22+'BP Financier'!$G$22)/('BP Financier'!$C$16+'BP Financier'!$C$19+'BP Financier'!$D$16+'BP Financier'!$D$19+'BP Financier'!$E$16+'BP Financier'!$E$19+'BP Financier'!$C$22+'BP Financier'!$D$22+'BP Financier'!$E$22+'BP Financier'!$F$22+'BP Financier'!$F$16+'BP Financier'!$F$19+'BP Financier'!$G$16+'BP Financier'!$G$19+'BP Financier'!$G$22))*$V8543*Y8543/(1-$W8543)","v":{"v":1846.7533031526023,"d":"1,847"}},{"$f":"'BP Financier'!$G$44*(('BP Financier'!$C$22+'BP Financier'!$D$22+'BP Financier'!$E$22+'BP Financier'!$F$22+'BP Financier'!$G$22)/('BP Financier'!$C$16+'BP Financier'!$C$19+'BP Financier'!$D$16+'BP Financier'!$D$19+'BP Financier'!$E$16+'BP Financier'!$E$19+'BP Financier'!$C$22+'BP Financier'!$D$22+'BP Financier'!$E$22+'BP Financier'!$F$22+'BP Financier'!$F$16+'BP Financier'!$F$19+'BP Financier'!$G$16+'BP Financier'!$G$19+'BP Financier'!$G$22))*$V8543*Z8543/(1-$W8543)","v":{"v":14453.51552136789,"d":"14,454"}},{"$f":"'BP Financier'!$G$44*(('BP Financier'!$C$22+'BP Financier'!$D$22+'BP Financier'!$E$22+'BP Financier'!$F$22+'BP Financier'!$G$22)/('BP Financier'!$C$16+'BP Financier'!$C$19+'BP Financier'!$D$16+'BP Financier'!$D$19+'BP Financier'!$E$16+'BP Financier'!$E$19+'BP Financier'!$C$22+'BP Financier'!$D$22+'BP Financier'!$E$22+'BP Financier'!$F$22+'BP Financier'!$F$16+'BP Financier'!$F$19+'BP Financier'!$G$16+'BP Financier'!$G$19+'BP Financier'!$G$22))*$V8543*AA8543/(1-$W8543)","v":{"v":1785.7036071806158,"d":"1,786"}},{"$f":"'BP Financier'!$G$44*(('BP Financier'!$C$22+'BP Financier'!$D$22+'BP Financier'!$E$22+'BP Financier'!$F$22+'BP Financier'!$G$22)/('BP Financier'!$C$16+'BP Financier'!$C$19+'BP Financier'!$D$16+'BP Financier'!$D$19+'BP Financier'!$E$16+'BP Financier'!$E$19+'BP Financier'!$C$22+'BP Financier'!$D$22+'BP Financier'!$E$22+'BP Financier'!$F$22+'BP Financier'!$F$16+'BP Financier'!$F$19+'BP Financier'!$G$16+'BP Financier'!$G$19+'BP Financier'!$G$22))*$V8543*AB8543/(1-$W8543)","v":{"v":854.6957436078159,"d":"855"}},null,{"v":0.006,"d":"0.60%"},{"$f":"Actif!$E$28/100","v":{"v":0.28900000000000003,"d":"28.90%"}},{"$f":"Actif!$E$30/100","v":{"v":0.09050000000000001,"d":"9.05%"}},{"$f":"Actif!$E$31/100","v":{"v":0.0605,"d":"6.05%"}},{"$f":"Actif!$E$32/100","v":{"v":0.47350000000000003,"d":"47.35%"}},{"$f":"Actif!$E$33/100","v":{"v":0.0585,"d":"5.85%"}},{"$f":"Actif!$E$29/100","v":{"v":0.027999999999999997,"d":"2.80%"}}]
[null,"#431",51,2026,"H","A_CAPI",{"v":0.44999999999999996,"d":"0.45"},{"v":0.38999999999999996,"d":"0.39"},0.6,0.6,85,0,{"$f":"ROUND(Primes!$Q$10*V8544,2)","v":0.78},0,{"v":21703.166918041326,"d":"21,703"},{"$f":"'BP Financier'!$G$44*(('BP Financier'!$C$22+'BP Financier'!$D$22+'BP Financier'!$E$22+'BP Financier'!$F$22+'BP Financier'!$G$22)/('BP Financier'!$C$16+'BP Financier'!$C$19+'BP Financier'!$D$16+'BP Financier'!$D$19+'BP Financier'!$E$16+'BP Financier'!$E$19+'BP Financier'!$C$22+'BP Financier'!$D$22+'BP Financier'!$E$22+'BP Financier'!$F$22+'BP Financier'!$F$16+'BP Financier'!$F$19+'BP Financier'!$G$16+'BP Financier'!$G$19+'BP Financier'!$G$22))*$V8544*X8544/(1-$W8544)","v":{"v":2762.4987427324054,"d":"2,762"}},{"$f":"'BP Financier'!$G$44*(('BP Financier'!$C$22+'BP Financier'!$D$22+'BP Financier'!$E$22+'BP Financier'!$F$22+'BP Financier'!$G$22)/('BP Financier'!$C$16+'BP Financier'!$C$19+'BP Financier'!$D$16+'BP Financier'!$D$19+'BP Financier'!$E$16+'BP Financier'!$E$19+'BP Financier'!$C$22+'BP Financier'!$D$22+'BP Financier'!$E$22+'BP Financier'!$F$22+'BP Financier'!$F$16+'BP Financier'!$F$19+'BP Financier'!$G$16+'BP Financier'!$G$19+'BP Financier'!$G$22))*$V8544*Y8544/(1-$W8544)","v":{"v":1846.7533031526023,"d":"1,847"}},{"$f":"'BP Financier'!$G$44*(('BP Financier'!$C$22+'BP Financier'!$D$22+'BP Financier'!$E$22+'BP Financier'!$F$22+'BP Financier'!$G$22)/('BP Financier'!$C$16+'BP Financier'!$C$19+'BP Financier'!$D$16+'BP Financier'!$D$19+'BP Financier'!$E$16+'BP Financier'!$E$19+'BP Financier'!$C$22+'BP Financier'!$D$22+'BP Financier'!$E$22+'BP Financier'!$F$22+'BP Financier'!$F$16+'BP Financier'!$F$19+'BP Financier'!$G$16+'BP Financier'!$G$19+'BP Financier'!$G$22))*$V8544*Z8544/(1-$W8544)","v":{"v":14453.51552136789,"d":"14,454"}},{"$f":"'BP Financier'!$G$44*(('BP Financier'!$C$22+'BP Financier'!$D$22+'BP Financier'!$E$22+'BP Financier'!$F$22+'BP Financier'!$G$22)/('BP Financier'!$C$16+'BP Financier'!$C$19+'BP Financier'!$D$16+'BP Financier'!$D$19+'BP Financier'!$E$16+'BP Financier'!$E$19+'BP Financier'!$C$22+'BP Financier'!$D$22+'BP Financier'!$E$22+'BP Financier'!$F$22+'BP Financier'!$F$16+'BP Financier'!$F$19+'BP Financier'!$G$16+'BP Financier'!$G$19+'BP Financier'!$G$22))*$V8544*AA8544/(1-$W8544)","v":{"v":1785.7036071806158,"d":"1,786"}},{"$f":"'BP Financier'!$G$44*(('BP Financier'!$C$22+'BP Financier'!$D$22+'BP Financier'!$E$22+'BP Financier'!$F$22+'BP Financier'!$G$22)/('BP Financier'!$C$16+'BP Financier'!$C$19+'BP Financier'!$D$16+'BP Financier'!$D$19+'BP Financier'!$E$16+'BP Financier'!$E$19+'BP Financier'!$C$22+'BP Financier'!$D$22+'BP Financier'!$E$22+'BP Financier'!$F$22+'BP Financier'!$F$16+'BP Financier'!$F$19+'BP Financier'!$G$16+'BP Financier'!$G$19+'BP Financier'!$G$22))*$V8544*AB8544/(1-$W8544)","v":{"v":854.6957436078159,"d":"855"}},null,{"v":0.006,"d":"0.60%"},{"$f":"Actif!$E$28/100","v":{"v":0.28900000000000003,"d":"28.90%"}},{"$f":"Actif!$E$30/100","v":{"v":0.09050000000000001,"d":"9.05%"}},{"$f":"Actif!$E$31/100","v":{"v":0.0605,"d":"6.05%"}},{"$f":"Actif!$E$32/100","v":{"v":0.47350000000000003,"d":"47.35%"}},{"$f":"Actif!$E$33/100","v":{"v":0.0585,"d":"5.85%"}},{"$f":"Actif!$E$29/100","v":{"v":0.027999999999999997,"d":"2.80%"}}]
[null,"#432",51,2028,"H","A_CAPI",{"v":0.44999999999999996,"d":"0.45"},{"v":0.38999999999999996,"d":"0.39"},0.6,0.6,85,0,{"$f":"ROUND(Primes!$Q$10*V8545,2)","v":0.78},0,{"v":21703.166918041326,"d":"21,703"},{"$f":"'BP Financier'!$G$44*(('BP Financier'!$C$22+'BP Financier'!$D$22+'BP Financier'!$E$22+'BP Financier'!$F$22+'BP Financier'!$G$22)/('BP Financier'!$C$16+'BP Financier'!$C$19+'BP Financier'!$D$16+'BP Financier'!$D$19+'BP Financier'!$E$16+'BP Financier'!$E$19+'BP Financier'!$C$22+'BP Financier'!$D$22+'BP Financier'!$E$22+'BP Financier'!$F$22+'BP Financier'!$F$16+'BP Financier'!$F$19+'BP Financier'!$G$16+'BP Financier'!$G$19+'BP Financier'!$G$22))*$V8545*X8545/(1-$W8545)","v":{"v":2762.4987427324054,"d":"2,762"}},{"$f":"'BP Financier'!$G$44*(('BP Financier'!$C$22+'BP Financier'!$D$22+'BP Financier'!$E$22+'BP Financier'!$F$22+'BP Financier'!$G$22)/('BP Financier'!$C$16+'BP Financier'!$C$19+'BP Financier'!$D$16+'BP Financier'!$D$19+'BP Financier'!$E$16+'BP Financier'!$E$19+'BP Financier'!$C$22+'BP Financier'!$D$22+'BP Financier'!$E$22+'BP Financier'!$F$22+'BP Financier'!$F$16+'BP Financier'!$F$19+'BP Financier'!$G$16+'BP Financier'!$G$19+'BP Financier'!$G$22))*$V8545*Y8545/(1-$W8545)","v":{"v":1846.7533031526023,"d":"1,847"}},{"$f":"'BP Financier'!$G$44*(('BP Financier'!$C$22+'BP Financier'!$D$22+'BP Financier'!$E$22+'BP Financier'!$F$22+'BP Financier'!$G$22)/('BP Financier'!$C$16+'BP Financier'!$C$19+'BP Financier'!$D$16+'BP Financier'!$D$19+'BP Financier'!$E$16+'BP Financier'!$E$19+'BP Financier'!$C$22+'BP Financier'!$D$22+'BP Financier'!$E$22+'BP Financier'!$F$22+'BP Financier'!$F$16+'BP Financier'!$F$19+'BP Financier'!$G$16+'BP Financier'!$G$19+'BP Financier'!$G$22))*$V8545*Z8545/(1-$W8545)","v":{"v":14453.51552136789,"d":"14,454"}},{"$f":"'BP Financier'!$G$44*(('BP Financier'!$C$22+'BP Financier'!$D$22+'BP Financier'!$E$22+'BP Financier'!$F$22+'BP Financier'!$G$22)/('BP Financier'!$C$16+'BP Financier'!$C$19+'BP Financier'!$D$16+'BP Financier'!$D$19+'BP Financier'!$E$16+'BP Financier'!$E$19+'BP Financier'!$C$22+'BP Financier'!$D$22+'BP Financier'!$E$22+'BP Financier'!$F$22+'BP Financier'!$F$16+'BP Financier'!$F$19+'BP Financier'!$G$16+'BP Financier'!$G$19+'BP Financier'!$G$22))*$V8545*AA8545/(1-$W8545)","v":{"v":1785.7036071806158,"d":"1,786"}},{"$f":"'BP Financier'!$G$44*(('BP Financier'!$C$22+'BP Financier'!$D$22+'BP Financier'!$E$22+'BP Financier'!$F$22+'BP Financier'!$G$22)/('BP Financier'!$C$16+'BP Financier'!$C$19+'BP Financier'!$D$16+'BP Financier'!$D$19+'BP Financier'!$E$16+'BP Financier'!$E$19+'BP Financier'!$C$22+'BP Financier'!$D$22+'BP Financier'!$E$22+'BP Financier'!$F$22+'BP Financier'!$F$16+'BP Financier'!$F$19+'BP Financier'!$G$16+'BP Financier'!$G$19+'BP Financier'!$G$22))*$V8545*AB8545/(1-$W8545)","v":{"v":854.6957436078159,"d":"855"}},null,{"v":0.006,"d":"0.60%"},{"$f":"Actif!$E$28/100","v":{"v":0.28900000000000003,"d":"28.90%"}},{"$f":"Actif!$E$30/100","v":{"v":0.09050000000000001,"d":"9.05%"}},{"$f":"Actif!$E$31/100","v":{"v":0.0605,"d":"6.05%"}},{"$f":"Actif!$E$32/100","v":{"v":0.47350000000000003,"d":"47.35%"}},{"$f":"Actif!$E$33/100","v":{"v":0.0585,"d":"5.85%"}},{"$f":"Actif!$E$29/100","v":{"v":0.027999999999999997,"d":"2.80%"}}]
[null,"#433",51,2029,"H","A_CAPI",{"v":0.44999999999999996,"d":"0.45"},{"v":0.38999999999999996,"d":"0.39"},0.6,0.6,85,0,{"$f":"ROUND(Primes!$Q$10*V8546,2)","v":0.78},0,{"v":21703.166918041326,"d":"21,703"},{"$f":"'BP Financier'!$G$44*(('BP Financier'!$C$22+'BP Financier'!$D$22+'BP Financier'!$E$22+'BP Financier'!$F$22+'BP Financier'!$G$22)/('BP Financier'!$C$16+'BP Financier'!$C$19+'BP Financier'!$D$16+'BP Financier'!$D$19+'BP Financier'!$E$16+'BP Financier'!$E$19+'BP Financier'!$C$22+'BP Financier'!$D$22+'BP Financier'!$E$22+'BP Financier'!$F$22+'BP Financier'!$F$16+'BP Financier'!$F$19+'BP Financier'!$G$16+'BP Financier'!$G$19+'BP Financier'!$G$22))*$V8546*X8546/(1-$W8546)","v":{"v":2762.4987427324054,"d":"2,762"}},{"$f":"'BP Financier'!$G$44*(('BP Financier'!$C$22+'BP Financier'!$D$22+'BP Financier'!$E$22+'BP Financier'!$F$22+'BP Financier'!$G$22)/('BP Financier'!$C$16+'BP Financier'!$C$19+'BP Financier'!$D$16+'BP Financier'!$D$19+'BP Financier'!$E$16+'BP Financier'!$E$19+'BP Financier'!$C$22+'BP Financier'!$D$22+'BP Financier'!$E$22+'BP Financier'!$F$22+'BP Financier'!$F$16+'BP Financier'!$F$19+'BP Financier'!$G$16+'BP Financier'!$G$19+'BP Financier'!$G$22))*$V8546*Y8546/(1-$W8546)","v":{"v":1846.7533031526023,"d":"1,847"}},{"$f":"'BP Financier'!$G$44*(('BP Financier'!$C$22+'BP Financier'!$D$22+'BP Financier'!$E$22+'BP Financier'!$F$22+'BP Financier'!$G$22)/('BP Financier'!$C$16+'BP Financier'!$C$19+'BP Financier'!$D$16+'BP Financier'!$D$19+'BP Financier'!$E$16+'BP Financier'!$E$19+'BP Financier'!$C$22+'BP Financier'!$D$22+'BP Financier'!$E$22+'BP Financier'!$F$22+'BP Financier'!$F$16+'BP Financier'!$F$19+'BP Financier'!$G$16+'BP Financier'!$G$19+'BP Financier'!$G$22))*$V8546*Z8546/(1-$W8546)","v":{"v":14453.51552136789,"d":"14,454"}},{"$f":"'BP Financier'!$G$44*(('BP Financier'!$C$22+'BP Financier'!$D$22+'BP Financier'!$E$22+'BP Financier'!$F$22+'BP Financier'!$G$22)/('BP Financier'!$C$16+'BP Financier'!$C$19+'BP Financier'!$D$16+'BP Financier'!$D$19+'BP Financier'!$E$16+'BP Financier'!$E$19+'BP Financier'!$C$22+'BP Financier'!$D$22+'BP Financier'!$E$22+'BP Financier'!$F$22+'BP Financier'!$F$16+'BP Financier'!$F$19+'BP Financier'!$G$16+'BP Financier'!$G$19+'BP Financier'!$G$22))*$V8546*AA8546/(1-$W8546)","v":{"v":1785.7036071806158,"d":"1,786"}},{"$f":"'BP Financier'!$G$44*(('BP Financier'!$C$22+'BP Financier'!$D$22+'BP Financier'!$E$22+'BP Financier'!$F$22+'BP Financier'!$G$22)/('BP Financier'!$C$16+'BP Financier'!$C$19+'BP Financier'!$D$16+'BP Financier'!$D$19+'BP Financier'!$E$16+'BP Financier'!$E$19+'BP Financier'!$C$22+'BP Financier'!$D$22+'BP Financier'!$E$22+'BP Financier'!$F$22+'BP Financier'!$F$16+'BP Financier'!$F$19+'BP Financier'!$G$16+'BP Financier'!$G$19+'BP Financier'!$G$22))*$V8546*AB8546/(1-$W8546)","v":{"v":854.6957436078159,"d":"855"}},null,{"v":0.006,"d":"0.60%"},{"$f":"Actif!$E$28/100","v":{"v":0.28900000000000003,"d":"28.90%"}},{"$f":"Actif!$E$30/100","v":{"v":0.09050000000000001,"d":"9.05%"}},{"$f":"Actif!$E$31/100","v":{"v":0.0605,"d":"6.05%"}},{"$f":"Actif!$E$32/100","v":{"v":0.47350000000000003,"d":"47.35%"}},{"$f":"Actif!$E$33/100","v":{"v":0.0585,"d":"5.85%"}},{"$f":"Actif!$E$29/100","v":{"v":0.027999999999999997,"d":"2.80%"}}]
[null,"#434",51,2030,"H","A_CAPI",{"v":0.44999999999999996,"d":"0.45"},{"v":0.38999999999999996,"d":"0.39"},0.6,0.6,85,0,{"$f":"ROUND(Primes!$Q$10*V8547,2)","v":0.78},0,{"v":21703.166918041326,"d":"21,703"},{"$f":"'BP Financier'!$G$44*(('BP Financier'!$C$22+'BP Financier'!$D$22+'BP Financier'!$E$22+'BP Financier'!$F$22+'BP Financier'!$G$22)/('BP Financier'!$C$16+'BP Financier'!$C$19+'BP Financier'!$D$16+'BP Financier'!$D$19+'BP Financier'!$E$16+'BP Financier'!$E$19+'BP Financier'!$C$22+'BP Financier'!$D$22+'BP Financier'!$E$22+'BP Financier'!$F$22+'BP Financier'!$F$16+'BP Financier'!$F$19+'BP Financier'!$G$16+'BP Financier'!$G$19+'BP Financier'!$G$22))*$V8547*X8547/(1-$W8547)","v":{"v":2762.4987427324054,"d":"2,762"}},{"$f":"'BP Financier'!$G$44*(('BP Financier'!$C$22+'BP Financier'!$D$22+'BP Financier'!$E$22+'BP Financier'!$F$22+'BP Financier'!$G$22)/('BP Financier'!$C$16+'BP Financier'!$C$19+'BP Financier'!$D$16+'BP Financier'!$D$19+'BP Financier'!$E$16+'BP Financier'!$E$19+'BP Financier'!$C$22+'BP Financier'!$D$22+'BP Financier'!$E$22+'BP Financier'!$F$22+'BP Financier'!$F$16+'BP Financier'!$F$19+'BP Financier'!$G$16+'BP Financier'!$G$19+'BP Financier'!$G$22))*$V8547*Y8547/(1-$W8547)","v":{"v":1846.7533031526023,"d":"1,847"}},{"$f":"'BP Financier'!$G$44*(('BP Financier'!$C$22+'BP Financier'!$D$22+'BP Financier'!$E$22+'BP Financier'!$F$22+'BP Financier'!$G$22)/('BP Financier'!$C$16+'BP Financier'!$C$19+'BP Financier'!$D$16+'BP Financier'!$D$19+'BP Financier'!$E$16+'BP Financier'!$E$19+'BP Financier'!$C$22+'BP Financier'!$D$22+'BP Financier'!$E$22+'BP Financier'!$F$22+'BP Financier'!$F$16+'BP Financier'!$F$19+'BP Financier'!$G$16+'BP Financier'!$G$19+'BP Financier'!$G$22))*$V8547*Z8547/(1-$W8547)","v":{"v":14453.51552136789,"d":"14,454"}},{"$f":"'BP Financier'!$G$44*(('BP Financier'!$C$22+'BP Financier'!$D$22+'BP Financier'!$E$22+'BP Financier'!$F$22+'BP Financier'!$G$22)/('BP Financier'!$C$16+'BP Financier'!$C$19+'BP Financier'!$D$16+'BP Financier'!$D$19+'BP Financier'!$E$16+'BP Financier'!$E$19+'BP Financier'!$C$22+'BP Financier'!$D$22+'BP Financier'!$E$22+'BP Financier'!$F$22+'BP Financier'!$F$16+'BP Financier'!$F$19+'BP Financier'!$G$16+'BP Financier'!$G$19+'BP Financier'!$G$22))*$V8547*AA8547/(1-$W8547)","v":{"v":1785.7036071806158,"d":"1,786"}},{"$f":"'BP Financier'!$G$44*(('BP Financier'!$C$22+'BP Financier'!$D$22+'BP Financier'!$E$22+'BP Financier'!$F$22+'BP Financier'!$G$22)/('BP Financier'!$C$16+'BP Financier'!$C$19+'BP Financier'!$D$16+'BP Financier'!$D$19+'BP Financier'!$E$16+'BP Financier'!$E$19+'BP Financier'!$C$22+'BP Financier'!$D$22+'BP Financier'!$E$22+'BP Financier'!$F$22+'BP Financier'!$F$16+'BP Financier'!$F$19+'BP Financier'!$G$16+'BP Financier'!$G$19+'BP Financier'!$G$22))*$V8547*AB8547/(1-$W8547)","v":{"v":854.6957436078159,"d":"855"}},null,{"v":0.006,"d":"0.60%"},{"$f":"Actif!$E$28/100","v":{"v":0.28900000000000003,"d":"28.90%"}},{"$f":"Actif!$E$30/100","v":{"v":0.09050000000000001,"d":"9.05%"}},{"$f":"Actif!$E$31/100","v":{"v":0.0605,"d":"6.05%"}},{"$f":"Actif!$E$32/100","v":{"v":0.47350000000000003,"d":"47.35%"}},{"$f":"Actif!$E$33/100","v":{"v":0.0585,"d":"5.85%"}},{"$f":"Actif!$E$29/100","v":{"v":0.027999999999999997,"d":"2.80%"}}]
[null,"#435",51,2031,"H","A_CAPI",{"v":0.44999999999999996,"d":"0.45"},{"v":0.38999999999999996,"d":"0.39"},0.6,0.6,85,0,{"$f":"ROUND(Primes!$Q$10*V8548,2)","v":0.78},0,{"v":21703.166918041326,"d":"21,703"},{"$f":"'BP Financier'!$G$44*(('BP Financier'!$C$22+'BP Financier'!$D$22+'BP Financier'!$E$22+'BP Financier'!$F$22+'BP Financier'!$G$22)/('BP Financier'!$C$16+'BP Financier'!$C$19+'BP Financier'!$D$16+'BP Financier'!$D$19+'BP Financier'!$E$16+'BP Financier'!$E$19+'BP Financier'!$C$22+'BP Financier'!$D$22+'BP Financier'!$E$22+'BP Financier'!$F$22+'BP Financier'!$F$16+'BP Financier'!$F$19+'BP Financier'!$G$16+'BP Financier'!$G$19+'BP Financier'!$G$22))*$V8548*X8548/(1-$W8548)","v":{"v":2762.4987427324054,"d":"2,762"}},{"$f":"'BP Financier'!$G$44*(('BP Financier'!$C$22+'BP Financier'!$D$22+'BP Financier'!$E$22+'BP Financier'!$F$22+'BP Financier'!$G$22)/('BP Financier'!$C$16+'BP Financier'!$C$19+'BP Financier'!$D$16+'BP Financier'!$D$19+'BP Financier'!$E$16+'BP Financier'!$E$19+'BP Financier'!$C$22+'BP Financier'!$D$22+'BP Financier'!$E$22+'BP Financier'!$F$22+'BP Financier'!$F$16+'BP Financier'!$F$19+'BP Financier'!$G$16+'BP Financier'!$G$19+'BP Financier'!$G$22))*$V8548*Y8548/(1-$W8548)","v":{"v":1846.7533031526023,"d":"1,847"}},{"$f":"'BP Financier'!$G$44*(('BP Financier'!$C$22+'BP Financier'!$D$22+'BP Financier'!$E$22+'BP Financier'!$F$22+'BP Financier'!$G$22)/('BP Financier'!$C$16+'BP Financier'!$C$19+'BP Financier'!$D$16+'BP Financier'!$D$19+'BP Financier'!$E$16+'BP Financier'!$E$19+'BP Financier'!$C$22+'BP Financier'!$D$22+'BP Financier'!$E$22+'BP Financier'!$F$22+'BP Financier'!$F$16+'BP Financier'!$F$19+'BP Financier'!$G$16+'BP Financier'!$G$19+'BP Financier'!$G$22))*$V8548*Z8548/(1-$W8548)","v":{"v":14453.51552136789,"d":"14,454"}},{"$f":"'BP Financier'!$G$44*(('BP Financier'!$C$22+'BP Financier'!$D$22+'BP Financier'!$E$22+'BP Financier'!$F$22+'BP Financier'!$G$22)/('BP Financier'!$C$16+'BP Financier'!$C$19+'BP Financier'!$D$16+'BP Financier'!$D$19+'BP Financier'!$E$16+'BP Financier'!$E$19+'BP Financier'!$C$22+'BP Financier'!$D$22+'BP Financier'!$E$22+'BP Financier'!$F$22+'BP Financier'!$F$16+'BP Financier'!$F$19+'BP Financier'!$G$16+'BP Financier'!$G$19+'BP Financier'!$G$22))*$V8548*AA8548/(1-$W8548)","v":{"v":1785.7036071806158,"d":"1,786"}},{"$f":"'BP Financier'!$G$44*(('BP Financier'!$C$22+'BP Financier'!$D$22+'BP Financier'!$E$22+'BP Financier'!$F$22+'BP Financier'!$G$22)/('BP Financier'!$C$16+'BP Financier'!$C$19+'BP Financier'!$D$16+'BP Financier'!$D$19+'BP Financier'!$E$16+'BP Financier'!$E$19+'BP Financier'!$C$22+'BP Financier'!$D$22+'BP Financier'!$E$22+'BP Financier'!$F$22+'BP Financier'!$F$16+'BP Financier'!$F$19+'BP Financier'!$G$16+'BP Financier'!$G$19+'BP Financier'!$G$22))*$V8548*AB8548/(1-$W8548)","v":{"v":854.6957436078159,"d":"855"}},null,{"v":0.006,"d":"0.60%"},{"$f":"Actif!$E$28/100","v":{"v":0.28900000000000003,"d":"28.90%"}},{"$f":"Actif!$E$30/100","v":{"v":0.09050000000000001,"d":"9.05%"}},{"$f":"Actif!$E$31/100","v":{"v":0.0605,"d":"6.05%"}},{"$f":"Actif!$E$32/100","v":{"v":0.47350000000000003,"d":"47.35%"}},{"$f":"Actif!$E$33/100","v":{"v":0.0585,"d":"5.85%"}},{"$f":"Actif!$E$29/100","v":{"v":0.027999999999999997,"d":"2.80%"}}]
[null,"#436",52,2026,"H","A_CAPI",{"v":0.44999999999999996,"d":"0.45"},{"v":0.38999999999999996,"d":"0.39"},0.6,0.6,85,0,{"$f":"ROUND(Primes!$Q$10*V8549,2)","v":0.78},0,{"v":21703.166918041326,"d":"21,703"},{"$f":"'BP Financier'!$G$44*(('BP Financier'!$C$22+'BP Financier'!$D$22+'BP Financier'!$E$22+'BP Financier'!$F$22+'BP Financier'!$G$22)/('BP Financier'!$C$16+'BP Financier'!$C$19+'BP Financier'!$D$16+'BP Financier'!$D$19+'BP Financier'!$E$16+'BP Financier'!$E$19+'BP Financier'!$C$22+'BP Financier'!$D$22+'BP Financier'!$E$22+'BP Financier'!$F$22+'BP Financier'!$F$16+'BP Financier'!$F$19+'BP Financier'!$G$16+'BP Financier'!$G$19+'BP Financier'!$G$22))*$V8549*X8549/(1-$W8549)","v":{"v":2762.4987427324054,"d":"2,762"}},{"$f":"'BP Financier'!$G$44*(('BP Financier'!$C$22+'BP Financier'!$D$22+'BP Financier'!$E$22+'BP Financier'!$F$22+'BP Financier'!$G$22)/('BP Financier'!$C$16+'BP Financier'!$C$19+'BP Financier'!$D$16+'BP Financier'!$D$19+'BP Financier'!$E$16+'BP Financier'!$E$19+'BP Financier'!$C$22+'BP Financier'!$D$22+'BP Financier'!$E$22+'BP Financier'!$F$22+'BP Financier'!$F$16+'BP Financier'!$F$19+'BP Financier'!$G$16+'BP Financier'!$G$19+'BP Financier'!$G$22))*$V8549*Y8549/(1-$W8549)","v":{"v":1846.7533031526023,"d":"1,847"}},{"$f":"'BP Financier'!$G$44*(('BP Financier'!$C$22+'BP Financier'!$D$22+'BP Financier'!$E$22+'BP Financier'!$F$22+'BP Financier'!$G$22)/('BP Financier'!$C$16+'BP Financier'!$C$19+'BP Financier'!$D$16+'BP Financier'!$D$19+'BP Financier'!$E$16+'BP Financier'!$E$19+'BP Financier'!$C$22+'BP Financier'!$D$22+'BP Financier'!$E$22+'BP Financier'!$F$22+'BP Financier'!$F$16+'BP Financier'!$F$19+'BP Financier'!$G$16+'BP Financier'!$G$19+'BP Financier'!$G$22))*$V8549*Z8549/(1-$W8549)","v":{"v":14453.51552136789,"d":"14,454"}},{"$f":"'BP Financier'!$G$44*(('BP Financier'!$C$22+'BP Financier'!$D$22+'BP Financier'!$E$22+'BP Financier'!$F$22+'BP Financier'!$G$22)/('BP Financier'!$C$16+'BP Financier'!$C$19+'BP Financier'!$D$16+'BP Financier'!$D$19+'BP Financier'!$E$16+'BP Financier'!$E$19+'BP Financier'!$C$22+'BP Financier'!$D$22+'BP Financier'!$E$22+'BP Financier'!$F$22+'BP Financier'!$F$16+'BP Financier'!$F$19+'BP Financier'!$G$16+'BP Financier'!$G$19+'BP Financier'!$G$22))*$V8549*AA8549/(1-$W8549)","v":{"v":1785.7036071806158,"d":"1,786"}},{"$f":"'BP Financier'!$G$44*(('BP Financier'!$C$22+'BP Financier'!$D$22+'BP Financier'!$E$22+'BP Financier'!$F$22+'BP Financier'!$G$22)/('BP Financier'!$C$16+'BP Financier'!$C$19+'BP Financier'!$D$16+'BP Financier'!$D$19+'BP Financier'!$E$16+'BP Financier'!$E$19+'BP Financier'!$C$22+'BP Financier'!$D$22+'BP Financier'!$E$22+'BP Financier'!$F$22+'BP Financier'!$F$16+'BP Financier'!$F$19+'BP Financier'!$G$16+'BP Financier'!$G$19+'BP Financier'!$G$22))*$V8549*AB8549/(1-$W8549)","v":{"v":854.6957436078159,"d":"855"}},null,{"v":0.006,"d":"0.60%"},{"$f":"Actif!$E$28/100","v":{"v":0.28900000000000003,"d":"28.90%"}},{"$f":"Actif!$E$30/100","v":{"v":0.09050000000000001,"d":"9.05%"}},{"$f":"Actif!$E$31/100","v":{"v":0.0605,"d":"6.05%"}},{"$f":"Actif!$E$32/100","v":{"v":0.47350000000000003,"d":"47.35%"}},{"$f":"Actif!$E$33/100","v":{"v":0.0585,"d":"5.85%"}},{"$f":"Actif!$E$29/100","v":{"v":0.027999999999999997,"d":"2.80%"}}]
[null,"#437",52,2028,"H","A_CAPI",{"v":0.44999999999999996,"d":"0.45"},{"v":0.38999999999999996,"d":"0.39"},0.6,0.6,85,0,{"$f":"ROUND(Primes!$Q$10*V8550,2)","v":0.78},0,{"v":21703.166918041326,"d":"21,703"},{"$f":"'BP Financier'!$G$44*(('BP Financier'!$C$22+'BP Financier'!$D$22+'BP Financier'!$E$22+'BP Financier'!$F$22+'BP Financier'!$G$22)/('BP Financier'!$C$16+'BP Financier'!$C$19+'BP Financier'!$D$16+'BP Financier'!$D$19+'BP Financier'!$E$16+'BP Financier'!$E$19+'BP Financier'!$C$22+'BP Financier'!$D$22+'BP Financier'!$E$22+'BP Financier'!$F$22+'BP Financier'!$F$16+'BP Financier'!$F$19+'BP Financier'!$G$16+'BP Financier'!$G$19+'BP Financier'!$G$22))*$V8550*X8550/(1-$W8550)","v":{"v":2762.4987427324054,"d":"2,762"}},{"$f":"'BP Financier'!$G$44*(('BP Financier'!$C$22+'BP Financier'!$D$22+'BP Financier'!$E$22+'BP Financier'!$F$22+'BP Financier'!$G$22)/('BP Financier'!$C$16+'BP Financier'!$C$19+'BP Financier'!$D$16+'BP Financier'!$D$19+'BP Financier'!$E$16+'BP Financier'!$E$19+'BP Financier'!$C$22+'BP Financier'!$D$22+'BP Financier'!$E$22+'BP Financier'!$F$22+'BP Financier'!$F$16+'BP Financier'!$F$19+'BP Financier'!$G$16+'BP Financier'!$G$19+'BP Financier'!$G$22))*$V8550*Y8550/(1-$W8550)","v":{"v":1846.7533031526023,"d":"1,847"}},{"$f":"'BP Financier'!$G$44*(('BP Financier'!$C$22+'BP Financier'!$D$22+'BP Financier'!$E$22+'BP Financier'!$F$22+'BP Financier'!$G$22)/('BP Financier'!$C$16+'BP Financier'!$C$19+'BP Financier'!$D$16+'BP Financier'!$D$19+'BP Financier'!$E$16+'BP Financier'!$E$19+'BP Financier'!$C$22+'BP Financier'!$D$22+'BP Financier'!$E$22+'BP Financier'!$F$22+'BP Financier'!$F$16+'BP Financier'!$F$19+'BP Financier'!$G$16+'BP Financier'!$G$19+'BP Financier'!$G$22))*$V8550*Z8550/(1-$W8550)","v":{"v":14453.51552136789,"d":"14,454"}},{"$f":"'BP Financier'!$G$44*(('BP Financier'!$C$22+'BP Financier'!$D$22+'BP Financier'!$E$22+'BP Financier'!$F$22+'BP Financier'!$G$22)/('BP Financier'!$C$16+'BP Financier'!$C$19+'BP Financier'!$D$16+'BP Financier'!$D$19+'BP Financier'!$E$16+'BP Financier'!$E$19+'BP Financier'!$C$22+'BP Financier'!$D$22+'BP Financier'!$E$22+'BP Financier'!$F$22+'BP Financier'!$F$16+'BP Financier'!$F$19+'BP Financier'!$G$16+'BP Financier'!$G$19+'BP Financier'!$G$22))*$V8550*AA8550/(1-$W8550)","v":{"v":1785.7036071806158,"d":"1,786"}},{"$f":"'BP Financier'!$G$44*(('BP Financier'!$C$22+'BP Financier'!$D$22+'BP Financier'!$E$22+'BP Financier'!$F$22+'BP Financier'!$G$22)/('BP Financier'!$C$16+'BP Financier'!$C$19+'BP Financier'!$D$16+'BP Financier'!$D$19+'BP Financier'!$E$16+'BP Financier'!$E$19+'BP Financier'!$C$22+'BP Financier'!$D$22+'BP Financier'!$E$22+'BP Financier'!$F$22+'BP Financier'!$F$16+'BP Financier'!$F$19+'BP Financier'!$G$16+'BP Financier'!$G$19+'BP Financier'!$G$22))*$V8550*AB8550/(1-$W8550)","v":{"v":854.6957436078159,"d":"855"}},null,{"v":0.006,"d":"0.60%"},{"$f":"Actif!$E$28/100","v":{"v":0.28900000000000003,"d":"28.90%"}},{"$f":"Actif!$E$30/100","v":{"v":0.09050000000000001,"d":"9.05%"}},{"$f":"Actif!$E$31/100","v":{"v":0.0605,"d":"6.05%"}},{"$f":"Actif!$E$32/100","v":{"v":0.47350000000000003,"d":"47.35%"}},{"$f":"Actif!$E$33/100","v":{"v":0.0585,"d":"5.85%"}},{"$f":"Actif!$E$29/100","v":{"v":0.027999999999999997,"d":"2.80%"}}]
[null,"#438",52,2029,"H","A_CAPI",{"v":0.44999999999999996,"d":"0.45"},{"v":0.38999999999999996,"d":"0.39"},0.6,0.6,85,0,{"$f":"ROUND(Primes!$Q$10*V8551,2)","v":0.78},0,{"v":21703.166918041326,"d":"21,703"},{"$f":"'BP Financier'!$G$44*(('BP Financier'!$C$22+'BP Financier'!$D$22+'BP Financier'!$E$22+'BP Financier'!$F$22+'BP Financier'!$G$22)/('BP Financier'!$C$16+'BP Financier'!$C$19+'BP Financier'!$D$16+'BP Financier'!$D$19+'BP Financier'!$E$16+'BP Financier'!$E$19+'BP Financier'!$C$22+'BP Financier'!$D$22+'BP Financier'!$E$22+'BP Financier'!$F$22+'BP Financier'!$F$16+'BP Financier'!$F$19+'BP Financier'!$G$16+'BP Financier'!$G$19+'BP Financier'!$G$22))*$V8551*X8551/(1-$W8551)","v":{"v":2762.4987427324054,"d":"2,762"}},{"$f":"'BP Financier'!$G$44*(('BP Financier'!$C$22+'BP Financier'!$D$22+'BP Financier'!$E$22+'BP Financier'!$F$22+'BP Financier'!$G$22)/('BP Financier'!$C$16+'BP Financier'!$C$19+'BP Financier'!$D$16+'BP Financier'!$D$19+'BP Financier'!$E$16+'BP Financier'!$E$19+'BP Financier'!$C$22+'BP Financier'!$D$22+'BP Financier'!$E$22+'BP Financier'!$F$22+'BP Financier'!$F$16+'BP Financier'!$F$19+'BP Financier'!$G$16+'BP Financier'!$G$19+'BP Financier'!$G$22))*$V8551*Y8551/(1-$W8551)","v":{"v":1846.7533031526023,"d":"1,847"}},{"$f":"'BP Financier'!$G$44*(('BP Financier'!$C$22+'BP Financier'!$D$22+'BP Financier'!$E$22+'BP Financier'!$F$22+'BP Financier'!$G$22)/('BP Financier'!$C$16+'BP Financier'!$C$19+'BP Financier'!$D$16+'BP Financier'!$D$19+'BP Financier'!$E$16+'BP Financier'!$E$19+'BP Financier'!$C$22+'BP Financier'!$D$22+'BP Financier'!$E$22+'BP Financier'!$F$22+'BP Financier'!$F$16+'BP Financier'!$F$19+'BP Financier'!$G$16+'BP Financier'!$G$19+'BP Financier'!$G$22))*$V8551*Z8551/(1-$W8551)","v":{"v":14453.51552136789,"d":"14,454"}},{"$f":"'BP Financier'!$G$44*(('BP Financier'!$C$22+'BP Financier'!$D$22+'BP Financier'!$E$22+'BP Financier'!$F$22+'BP Financier'!$G$22)/('BP Financier'!$C$16+'BP Financier'!$C$19+'BP Financier'!$D$16+'BP Financier'!$D$19+'BP Financier'!$E$16+'BP Financier'!$E$19+'BP Financier'!$C$22+'BP Financier'!$D$22+'BP Financier'!$E$22+'BP Financier'!$F$22+'BP Financier'!$F$16+'BP Financier'!$F$19+'BP Financier'!$G$16+'BP Financier'!$G$19+'BP Financier'!$G$22))*$V8551*AA8551/(1-$W8551)","v":{"v":1785.7036071806158,"d":"1,786"}},{"$f":"'BP Financier'!$G$44*(('BP Financier'!$C$22+'BP Financier'!$D$22+'BP Financier'!$E$22+'BP Financier'!$F$22+'BP Financier'!$G$22)/('BP Financier'!$C$16+'BP Financier'!$C$19+'BP Financier'!$D$16+'BP Financier'!$D$19+'BP Financier'!$E$16+'BP Financier'!$E$19+'BP Financier'!$C$22+'BP Financier'!$D$22+'BP Financier'!$E$22+'BP Financier'!$F$22+'BP Financier'!$F$16+'BP Financier'!$F$19+'BP Financier'!$G$16+'BP Financier'!$G$19+'BP Financier'!$G$22))*$V8551*AB8551/(1-$W8551)","v":{"v":854.6957436078159,"d":"855"}},null,{"v":0.006,"d":"0.60%"},{"$f":"Actif!$E$28/100","v":{"v":0.28900000000000003,"d":"28.90%"}},{"$f":"Actif!$E$30/100","v":{"v":0.09050000000000001,"d":"9.05%"}},{"$f":"Actif!$E$31/100","v":{"v":0.0605,"d":"6.05%"}},{"$f":"Actif!$E$32/100","v":{"v":0.47350000000000003,"d":"47.35%"}},{"$f":"Actif!$E$33/100","v":{"v":0.0585,"d":"5.85%"}},{"$f":"Actif!$E$29/100","v":{"v":0.027999999999999997,"d":"2.80%"}}]
[null,"#439",52,2030,"H","A_CAPI",{"v":0.44999999999999996,"d":"0.45"},{"v":0.38999999999999996,"d":"0.39"},0.6,0.6,85,0,{"$f":"ROUND(Primes!$Q$10*V8552,2)","v":0.78},0,{"v":21703.166918041326,"d":"21,703"},{"$f":"'BP Financier'!$G$44*(('BP Financier'!$C$22+'BP Financier'!$D$22+'BP Financier'!$E$22+'BP Financier'!$F$22+'BP Financier'!$G$22)/('BP Financier'!$C$16+'BP Financier'!$C$19+'BP Financier'!$D$16+'BP Financier'!$D$19+'BP Financier'!$E$16+'BP Financier'!$E$19+'BP Financier'!$C$22+'BP Financier'!$D$22+'BP Financier'!$E$22+'BP Financier'!$F$22+'BP Financier'!$F$16+'BP Financier'!$F$19+'BP Financier'!$G$16+'BP Financier'!$G$19+'BP Financier'!$G$22))*$V8552*X8552/(1-$W8552)","v":{"v":2762.4987427324054,"d":"2,762"}},{"$f":"'BP Financier'!$G$44*(('BP Financier'!$C$22+'BP Financier'!$D$22+'BP Financier'!$E$22+'BP Financier'!$F$22+'BP Financier'!$G$22)/('BP Financier'!$C$16+'BP Financier'!$C$19+'BP Financier'!$D$16+'BP Financier'!$D$19+'BP Financier'!$E$16+'BP Financier'!$E$19+'BP Financier'!$C$22+'BP Financier'!$D$22+'BP Financier'!$E$22+'BP Financier'!$F$22+'BP Financier'!$F$16+'BP Financier'!$F$19+'BP Financier'!$G$16+'BP Financier'!$G$19+'BP Financier'!$G$22))*$V8552*Y8552/(1-$W8552)","v":{"v":1846.7533031526023,"d":"1,847"}},{"$f":"'BP Financier'!$G$44*(('BP Financier'!$C$22+'BP Financier'!$D$22+'BP Financier'!$E$22+'BP Financier'!$F$22+'BP Financier'!$G$22)/('BP Financier'!$C$16+'BP Financier'!$C$19+'BP Financier'!$D$16+'BP Financier'!$D$19+'BP Financier'!$E$16+'BP Financier'!$E$19+'BP Financier'!$C$22+'BP Financier'!$D$22+'BP Financier'!$E$22+'BP Financier'!$F$22+'BP Financier'!$F$16+'BP Financier'!$F$19+'BP Financier'!$G$16+'BP Financier'!$G$19+'BP Financier'!$G$22))*$V8552*Z8552/(1-$W8552)","v":{"v":14453.51552136789,"d":"14,454"}},{"$f":"'BP Financier'!$G$44*(('BP Financier'!$C$22+'BP Financier'!$D$22+'BP Financier'!$E$22+'BP Financier'!$F$22+'BP Financier'!$G$22)/('BP Financier'!$C$16+'BP Financier'!$C$19+'BP Financier'!$D$16+'BP Financier'!$D$19+'BP Financier'!$E$16+'BP Financier'!$E$19+'BP Financier'!$C$22+'BP Financier'!$D$22+'BP Financier'!$E$22+'BP Financier'!$F$22+'BP Financier'!$F$16+'BP Financier'!$F$19+'BP Financier'!$G$16+'BP Financier'!$G$19+'BP Financier'!$G$22))*$V8552*AA8552/(1-$W8552)","v":{"v":1785.7036071806158,"d":"1,786"}},{"$f":"'BP Financier'!$G$44*(('BP Financier'!$C$22+'BP Financier'!$D$22+'BP Financier'!$E$22+'BP Financier'!$F$22+'BP Financier'!$G$22)/('BP Financier'!$C$16+'BP Financier'!$C$19+'BP Financier'!$D$16+'BP Financier'!$D$19+'BP Financier'!$E$16+'BP Financier'!$E$19+'BP Financier'!$C$22+'BP Financier'!$D$22+'BP Financier'!$E$22+'BP Financier'!$F$22+'BP Financier'!$F$16+'BP Financier'!$F$19+'BP Financier'!$G$16+'BP Financier'!$G$19+'BP Financier'!$G$22))*$V8552*AB8552/(1-$W8552)","v":{"v":854.6957436078159,"d":"855"}},null,{"v":0.006,"d":"0.60%"},{"$f":"Actif!$E$28/100","v":{"v":0.28900000000000003,"d":"28.90%"}},{"$f":"Actif!$E$30/100","v":{"v":0.09050000000000001,"d":"9.05%"}},{"$f":"Actif!$E$31/100","v":{"v":0.0605,"d":"6.05%"}},{"$f":"Actif!$E$32/100","v":{"v":0.47350000000000003,"d":"47.35%"}},{"$f":"Actif!$E$33/100","v":{"v":0.0585,"d":"5.85%"}},{"$f":"Actif!$E$29/100","v":{"v":0.027999999999999997,"d":"2.80%"}}]
[null,"#440",52,2031,"H","A_CAPI",{"v":0.44999999999999996,"d":"0.45"},{"v":0.38999999999999996,"d":"0.39"},0.6,0.6,85,0,{"$f":"ROUND(Primes!$Q$10*V8553,2)","v":0.78},0,{"v":21703.166918041326,"d":"21,703"},{"$f":"'BP Financier'!$G$44*(('BP Financier'!$C$22+'BP Financier'!$D$22+'BP Financier'!$E$22+'BP Financier'!$F$22+'BP Financier'!$G$22)/('BP Financier'!$C$16+'BP Financier'!$C$19+'BP Financier'!$D$16+'BP Financier'!$D$19+'BP Financier'!$E$16+'BP Financier'!$E$19+'BP Financier'!$C$22+'BP Financier'!$D$22+'BP Financier'!$E$22+'BP Financier'!$F$22+'BP Financier'!$F$16+'BP Financier'!$F$19+'BP Financier'!$G$16+'BP Financier'!$G$19+'BP Financier'!$G$22))*$V8553*X8553/(1-$W8553)","v":{"v":2762.4987427324054,"d":"2,762"}},{"$f":"'BP Financier'!$G$44*(('BP Financier'!$C$22+'BP Financier'!$D$22+'BP Financier'!$E$22+'BP Financier'!$F$22+'BP Financier'!$G$22)/('BP Financier'!$C$16+'BP Financier'!$C$19+'BP Financier'!$D$16+'BP Financier'!$D$19+'BP Financier'!$E$16+'BP Financier'!$E$19+'BP Financier'!$C$22+'BP Financier'!$D$22+'BP Financier'!$E$22+'BP Financier'!$F$22+'BP Financier'!$F$16+'BP Financier'!$F$19+'BP Financier'!$G$16+'BP Financier'!$G$19+'BP Financier'!$G$22))*$V8553*Y8553/(1-$W8553)","v":{"v":1846.7533031526023,"d":"1,847"}},{"$f":"'BP Financier'!$G$44*(('BP Financier'!$C$22+'BP Financier'!$D$22+'BP Financier'!$E$22+'BP Financier'!$F$22+'BP Financier'!$G$22)/('BP Financier'!$C$16+'BP Financier'!$C$19+'BP Financier'!$D$16+'BP Financier'!$D$19+'BP Financier'!$E$16+'BP Financier'!$E$19+'BP Financier'!$C$22+'BP Financier'!$D$22+'BP Financier'!$E$22+'BP Financier'!$F$22+'BP Financier'!$F$16+'BP Financier'!$F$19+'BP Financier'!$G$16+'BP Financier'!$G$19+'BP Financier'!$G$22))*$V8553*Z8553/(1-$W8553)","v":{"v":14453.51552136789,"d":"14,454"}},{"$f":"'BP Financier'!$G$44*(('BP Financier'!$C$22+'BP Financier'!$D$22+'BP Financier'!$E$22+'BP Financier'!$F$22+'BP Financier'!$G$22)/('BP Financier'!$C$16+'BP Financier'!$C$19+'BP Financier'!$D$16+'BP Financier'!$D$19+'BP Financier'!$E$16+'BP Financier'!$E$19+'BP Financier'!$C$22+'BP Financier'!$D$22+'BP Financier'!$E$22+'BP Financier'!$F$22+'BP Financier'!$F$16+'BP Financier'!$F$19+'BP Financier'!$G$16+'BP Financier'!$G$19+'BP Financier'!$G$22))*$V8553*AA8553/(1-$W8553)","v":{"v":1785.7036071806158,"d":"1,786"}},{"$f":"'BP Financier'!$G$44*(('BP Financier'!$C$22+'BP Financier'!$D$22+'BP Financier'!$E$22+'BP Financier'!$F$22+'BP Financier'!$G$22)/('BP Financier'!$C$16+'BP Financier'!$C$19+'BP Financier'!$D$16+'BP Financier'!$D$19+'BP Financier'!$E$16+'BP Financier'!$E$19+'BP Financier'!$C$22+'BP Financier'!$D$22+'BP Financier'!$E$22+'BP Financier'!$F$22+'BP Financier'!$F$16+'BP Financier'!$F$19+'BP Financier'!$G$16+'BP Financier'!$G$19+'BP Financier'!$G$22))*$V8553*AB8553/(1-$W8553)","v":{"v":854.6957436078159,"d":"855"}},null,{"v":0.006,"d":"0.60%"},{"$f":"Actif!$E$28/100","v":{"v":0.28900000000000003,"d":"28.90%"}},{"$f":"Actif!$E$30/100","v":{"v":0.09050000000000001,"d":"9.05%"}},{"$f":"Actif!$E$31/100","v":{"v":0.0605,"d":"6.05%"}},{"$f":"Actif!$E$32/100","v":{"v":0.47350000000000003,"d":"47.35%"}},{"$f":"Actif!$E$33/100","v":{"v":0.0585,"d":"5.85%"}},{"$f":"Actif!$E$29/100","v":{"v":0.027999999999999997,"d":"2.80%"}}]
[null,"#441",53,2026,"F","A_CAPI",{"v":0.44999999999999996,"d":"0.45"},{"v":0.38999999999999996,"d":"0.39"},0.6,0.6,85,0,{"$f":"ROUND(Primes!$Q$10*V8554,2)","v":0.78},0,{"v":21703.166918041326,"d":"21,703"},{"$f":"'BP Financier'!$G$44*(('BP Financier'!$C$22+'BP Financier'!$D$22+'BP Financier'!$E$22+'BP Financier'!$F$22+'BP Financier'!$G$22)/('BP Financier'!$C$16+'BP Financier'!$C$19+'BP Financier'!$D$16+'BP Financier'!$D$19+'BP Financier'!$E$16+'BP Financier'!$E$19+'BP Financier'!$C$22+'BP Financier'!$D$22+'BP Financier'!$E$22+'BP Financier'!$F$22+'BP Financier'!$F$16+'BP Financier'!$F$19+'BP Financier'!$G$16+'BP Financier'!$G$19+'BP Financier'!$G$22))*$V8554*X8554/(1-$W8554)","v":{"v":2762.4987427324054,"d":"2,762"}},{"$f":"'BP Financier'!$G$44*(('BP Financier'!$C$22+'BP Financier'!$D$22+'BP Financier'!$E$22+'BP Financier'!$F$22+'BP Financier'!$G$22)/('BP Financier'!$C$16+'BP Financier'!$C$19+'BP Financier'!$D$16+'BP Financier'!$D$19+'BP Financier'!$E$16+'BP Financier'!$E$19+'BP Financier'!$C$22+'BP Financier'!$D$22+'BP Financier'!$E$22+'BP Financier'!$F$22+'BP Financier'!$F$16+'BP Financier'!$F$19+'BP Financier'!$G$16+'BP Financier'!$G$19+'BP Financier'!$G$22))*$V8554*Y8554/(1-$W8554)","v":{"v":1846.7533031526023,"d":"1,847"}},{"$f":"'BP Financier'!$G$44*(('BP Financier'!$C$22+'BP Financier'!$D$22+'BP Financier'!$E$22+'BP Financier'!$F$22+'BP Financier'!$G$22)/('BP Financier'!$C$16+'BP Financier'!$C$19+'BP Financier'!$D$16+'BP Financier'!$D$19+'BP Financier'!$E$16+'BP Financier'!$E$19+'BP Financier'!$C$22+'BP Financier'!$D$22+'BP Financier'!$E$22+'BP Financier'!$F$22+'BP Financier'!$F$16+'BP Financier'!$F$19+'BP Financier'!$G$16+'BP Financier'!$G$19+'BP Financier'!$G$22))*$V8554*Z8554/(1-$W8554)","v":{"v":14453.51552136789,"d":"14,454"}},{"$f":"'BP Financier'!$G$44*(('BP Financier'!$C$22+'BP Financier'!$D$22+'BP Financier'!$E$22+'BP Financier'!$F$22+'BP Financier'!$G$22)/('BP Financier'!$C$16+'BP Financier'!$C$19+'BP Financier'!$D$16+'BP Financier'!$D$19+'BP Financier'!$E$16+'BP Financier'!$E$19+'BP Financier'!$C$22+'BP Financier'!$D$22+'BP Financier'!$E$22+'BP Financier'!$F$22+'BP Financier'!$F$16+'BP Financier'!$F$19+'BP Financier'!$G$16+'BP Financier'!$G$19+'BP Financier'!$G$22))*$V8554*AA8554/(1-$W8554)","v":{"v":1785.7036071806158,"d":"1,786"}},{"$f":"'BP Financier'!$G$44*(('BP Financier'!$C$22+'BP Financier'!$D$22+'BP Financier'!$E$22+'BP Financier'!$F$22+'BP Financier'!$G$22)/('BP Financier'!$C$16+'BP Financier'!$C$19+'BP Financier'!$D$16+'BP Financier'!$D$19+'BP Financier'!$E$16+'BP Financier'!$E$19+'BP Financier'!$C$22+'BP Financier'!$D$22+'BP Financier'!$E$22+'BP Financier'!$F$22+'BP Financier'!$F$16+'BP Financier'!$F$19+'BP Financier'!$G$16+'BP Financier'!$G$19+'BP Financier'!$G$22))*$V8554*AB8554/(1-$W8554)","v":{"v":854.6957436078159,"d":"855"}},null,{"v":0.006,"d":"0.60%"},{"$f":"Actif!$E$28/100","v":{"v":0.28900000000000003,"d":"28.90%"}},{"$f":"Actif!$E$30/100","v":{"v":0.09050000000000001,"d":"9.05%"}},{"$f":"Actif!$E$31/100","v":{"v":0.0605,"d":"6.05%"}},{"$f":"Actif!$E$32/100","v":{"v":0.47350000000000003,"d":"47.35%"}},{"$f":"Actif!$E$33/100","v":{"v":0.0585,"d":"5.85%"}},{"$f":"Actif!$E$29/100","v":{"v":0.027999999999999997,"d":"2.80%"}}]
[null,"#442",53,2028,"F","A_CAPI",{"v":0.44999999999999996,"d":"0.45"},{"v":0.38999999999999996,"d":"0.39"},0.6,0.6,85,0,{"$f":"ROUND(Primes!$Q$10*V8555,2)","v":0.78},0,{"v":21703.166918041326,"d":"21,703"},{"$f":"'BP Financier'!$G$44*(('BP Financier'!$C$22+'BP Financier'!$D$22+'BP Financier'!$E$22+'BP Financier'!$F$22+'BP Financier'!$G$22)/('BP Financier'!$C$16+'BP Financier'!$C$19+'BP Financier'!$D$16+'BP Financier'!$D$19+'BP Financier'!$E$16+'BP Financier'!$E$19+'BP Financier'!$C$22+'BP Financier'!$D$22+'BP Financier'!$E$22+'BP Financier'!$F$22+'BP Financier'!$F$16+'BP Financier'!$F$19+'BP Financier'!$G$16+'BP Financier'!$G$19+'BP Financier'!$G$22))*$V8555*X8555/(1-$W8555)","v":{"v":2762.4987427324054,"d":"2,762"}},{"$f":"'BP Financier'!$G$44*(('BP Financier'!$C$22+'BP Financier'!$D$22+'BP Financier'!$E$22+'BP Financier'!$F$22+'BP Financier'!$G$22)/('BP Financier'!$C$16+'BP Financier'!$C$19+'BP Financier'!$D$16+'BP Financier'!$D$19+'BP Financier'!$E$16+'BP Financier'!$E$19+'BP Financier'!$C$22+'BP Financier'!$D$22+'BP Financier'!$E$22+'BP Financier'!$F$22+'BP Financier'!$F$16+'BP Financier'!$F$19+'BP Financier'!$G$16+'BP Financier'!$G$19+'BP Financier'!$G$22))*$V8555*Y8555/(1-$W8555)","v":{"v":1846.7533031526023,"d":"1,847"}},{"$f":"'BP Financier'!$G$44*(('BP Financier'!$C$22+'BP Financier'!$D$22+'BP Financier'!$E$22+'BP Financier'!$F$22+'BP Financier'!$G$22)/('BP Financier'!$C$16+'BP Financier'!$C$19+'BP Financier'!$D$16+'BP Financier'!$D$19+'BP Financier'!$E$16+'BP Financier'!$E$19+'BP Financier'!$C$22+'BP Financier'!$D$22+'BP Financier'!$E$22+'BP Financier'!$F$22+'BP Financier'!$F$16+'BP Financier'!$F$19+'BP Financier'!$G$16+'BP Financier'!$G$19+'BP Financier'!$G$22))*$V8555*Z8555/(1-$W8555)","v":{"v":14453.51552136789,"d":"14,454"}},{"$f":"'BP Financier'!$G$44*(('BP Financier'!$C$22+'BP Financier'!$D$22+'BP Financier'!$E$22+'BP Financier'!$F$22+'BP Financier'!$G$22)/('BP Financier'!$C$16+'BP Financier'!$C$19+'BP Financier'!$D$16+'BP Financier'!$D$19+'BP Financier'!$E$16+'BP Financier'!$E$19+'BP Financier'!$C$22+'BP Financier'!$D$22+'BP Financier'!$E$22+'BP Financier'!$F$22+'BP Financier'!$F$16+'BP Financier'!$F$19+'BP Financier'!$G$16+'BP Financier'!$G$19+'BP Financier'!$G$22))*$V8555*AA8555/(1-$W8555)","v":{"v":1785.7036071806158,"d":"1,786"}},{"$f":"'BP Financier'!$G$44*(('BP Financier'!$C$22+'BP Financier'!$D$22+'BP Financier'!$E$22+'BP Financier'!$F$22+'BP Financier'!$G$22)/('BP Financier'!$C$16+'BP Financier'!$C$19+'BP Financier'!$D$16+'BP Financier'!$D$19+'BP Financier'!$E$16+'BP Financier'!$E$19+'BP Financier'!$C$22+'BP Financier'!$D$22+'BP Financier'!$E$22+'BP Financier'!$F$22+'BP Financier'!$F$16+'BP Financier'!$F$19+'BP Financier'!$G$16+'BP Financier'!$G$19+'BP Financier'!$G$22))*$V8555*AB8555/(1-$W8555)","v":{"v":854.6957436078159,"d":"855"}},null,{"v":0.006,"d":"0.60%"},{"$f":"Actif!$E$28/100","v":{"v":0.28900000000000003,"d":"28.90%"}},{"$f":"Actif!$E$30/100","v":{"v":0.09050000000000001,"d":"9.05%"}},{"$f":"Actif!$E$31/100","v":{"v":0.0605,"d":"6.05%"}},{"$f":"Actif!$E$32/100","v":{"v":0.47350000000000003,"d":"47.35%"}},{"$f":"Actif!$E$33/100","v":{"v":0.0585,"d":"5.85%"}},{"$f":"Actif!$E$29/100","v":{"v":0.027999999999999997,"d":"2.80%"}}]
[null,"#443",53,2029,"F","A_CAPI",{"v":0.44999999999999996,"d":"0.45"},{"v":0.38999999999999996,"d":"0.39"},0.6,0.6,85,0,{"$f":"ROUND(Primes!$Q$10*V8556,2)","v":0.78},0,{"v":21703.166918041326,"d":"21,703"},{"$f":"'BP Financier'!$G$44*(('BP Financier'!$C$22+'BP Financier'!$D$22+'BP Financier'!$E$22+'BP Financier'!$F$22+'BP Financier'!$G$22)/('BP Financier'!$C$16+'BP Financier'!$C$19+'BP Financier'!$D$16+'BP Financier'!$D$19+'BP Financier'!$E$16+'BP Financier'!$E$19+'BP Financier'!$C$22+'BP Financier'!$D$22+'BP Financier'!$E$22+'BP Financier'!$F$22+'BP Financier'!$F$16+'BP Financier'!$F$19+'BP Financier'!$G$16+'BP Financier'!$G$19+'BP Financier'!$G$22))*$V8556*X8556/(1-$W8556)","v":{"v":2762.4987427324054,"d":"2,762"}},{"$f":"'BP Financier'!$G$44*(('BP Financier'!$C$22+'BP Financier'!$D$22+'BP Financier'!$E$22+'BP Financier'!$F$22+'BP Financier'!$G$22)/('BP Financier'!$C$16+'BP Financier'!$C$19+'BP Financier'!$D$16+'BP Financier'!$D$19+'BP Financier'!$E$16+'BP Financier'!$E$19+'BP Financier'!$C$22+'BP Financier'!$D$22+'BP Financier'!$E$22+'BP Financier'!$F$22+'BP Financier'!$F$16+'BP Financier'!$F$19+'BP Financier'!$G$16+'BP Financier'!$G$19+'BP Financier'!$G$22))*$V8556*Y8556/(1-$W8556)","v":{"v":1846.7533031526023,"d":"1,847"}},{"$f":"'BP Financier'!$G$44*(('BP Financier'!$C$22+'BP Financier'!$D$22+'BP Financier'!$E$22+'BP Financier'!$F$22+'BP Financier'!$G$22)/('BP Financier'!$C$16+'BP Financier'!$C$19+'BP Financier'!$D$16+'BP Financier'!$D$19+'BP Financier'!$E$16+'BP Financier'!$E$19+'BP Financier'!$C$22+'BP Financier'!$D$22+'BP Financier'!$E$22+'BP Financier'!$F$22+'BP Financier'!$F$16+'BP Financier'!$F$19+'BP Financier'!$G$16+'BP Financier'!$G$19+'BP Financier'!$G$22))*$V8556*Z8556/(1-$W8556)","v":{"v":14453.51552136789,"d":"14,454"}},{"$f":"'BP Financier'!$G$44*(('BP Financier'!$C$22+'BP Financier'!$D$22+'BP Financier'!$E$22+'BP Financier'!$F$22+'BP Financier'!$G$22)/('BP Financier'!$C$16+'BP Financier'!$C$19+'BP Financier'!$D$16+'BP Financier'!$D$19+'BP Financier'!$E$16+'BP Financier'!$E$19+'BP Financier'!$C$22+'BP Financier'!$D$22+'BP Financier'!$E$22+'BP Financier'!$F$22+'BP Financier'!$F$16+'BP Financier'!$F$19+'BP Financier'!$G$16+'BP Financier'!$G$19+'BP Financier'!$G$22))*$V8556*AA8556/(1-$W8556)","v":{"v":1785.7036071806158,"d":"1,786"}},{"$f":"'BP Financier'!$G$44*(('BP Financier'!$C$22+'BP Financier'!$D$22+'BP Financier'!$E$22+'BP Financier'!$F$22+'BP Financier'!$G$22)/('BP Financier'!$C$16+'BP Financier'!$C$19+'BP Financier'!$D$16+'BP Financier'!$D$19+'BP Financier'!$E$16+'BP Financier'!$E$19+'BP Financier'!$C$22+'BP Financier'!$D$22+'BP Financier'!$E$22+'BP Financier'!$F$22+'BP Financier'!$F$16+'BP Financier'!$F$19+'BP Financier'!$G$16+'BP Financier'!$G$19+'BP Financier'!$G$22))*$V8556*AB8556/(1-$W8556)","v":{"v":854.6957436078159,"d":"855"}},null,{"v":0.006,"d":"0.60%"},{"$f":"Actif!$E$28/100","v":{"v":0.28900000000000003,"d":"28.90%"}},{"$f":"Actif!$E$30/100","v":{"v":0.09050000000000001,"d":"9.05%"}},{"$f":"Actif!$E$31/100","v":{"v":0.0605,"d":"6.05%"}},{"$f":"Actif!$E$32/100","v":{"v":0.47350000000000003,"d":"47.35%"}},{"$f":"Actif!$E$33/100","v":{"v":0.0585,"d":"5.85%"}},{"$f":"Actif!$E$29/100","v":{"v":0.027999999999999997,"d":"2.80%"}}]
[null,"#444",53,2030,"F","A_CAPI",{"v":0.44999999999999996,"d":"0.45"},{"v":0.38999999999999996,"d":"0.39"},0.6,0.6,85,0,{"$f":"ROUND(Primes!$Q$10*V8557,2)","v":0.78},0,{"v":21703.166918041326,"d":"21,703"},{"$f":"'BP Financier'!$G$44*(('BP Financier'!$C$22+'BP Financier'!$D$22+'BP Financier'!$E$22+'BP Financier'!$F$22+'BP Financier'!$G$22)/('BP Financier'!$C$16+'BP Financier'!$C$19+'BP Financier'!$D$16+'BP Financier'!$D$19+'BP Financier'!$E$16+'BP Financier'!$E$19+'BP Financier'!$C$22+'BP Financier'!$D$22+'BP Financier'!$E$22+'BP Financier'!$F$22+'BP Financier'!$F$16+'BP Financier'!$F$19+'BP Financier'!$G$16+'BP Financier'!$G$19+'BP Financier'!$G$22))*$V8557*X8557/(1-$W8557)","v":{"v":2762.4987427324054,"d":"2,762"}},{"$f":"'BP Financier'!$G$44*(('BP Financier'!$C$22+'BP Financier'!$D$22+'BP Financier'!$E$22+'BP Financier'!$F$22+'BP Financier'!$G$22)/('BP Financier'!$C$16+'BP Financier'!$C$19+'BP Financier'!$D$16+'BP Financier'!$D$19+'BP Financier'!$E$16+'BP Financier'!$E$19+'BP Financier'!$C$22+'BP Financier'!$D$22+'BP Financier'!$E$22+'BP Financier'!$F$22+'BP Financier'!$F$16+'BP Financier'!$F$19+'BP Financier'!$G$16+'BP Financier'!$G$19+'BP Financier'!$G$22))*$V8557*Y8557/(1-$W8557)","v":{"v":1846.7533031526023,"d":"1,847"}},{"$f":"'BP Financier'!$G$44*(('BP Financier'!$C$22+'BP Financier'!$D$22+'BP Financier'!$E$22+'BP Financier'!$F$22+'BP Financier'!$G$22)/('BP Financier'!$C$16+'BP Financier'!$C$19+'BP Financier'!$D$16+'BP Financier'!$D$19+'BP Financier'!$E$16+'BP Financier'!$E$19+'BP Financier'!$C$22+'BP Financier'!$D$22+'BP Financier'!$E$22+'BP Financier'!$F$22+'BP Financier'!$F$16+'BP Financier'!$F$19+'BP Financier'!$G$16+'BP Financier'!$G$19+'BP Financier'!$G$22))*$V8557*Z8557/(1-$W8557)","v":{"v":14453.51552136789,"d":"14,454"}},{"$f":"'BP Financier'!$G$44*(('BP Financier'!$C$22+'BP Financier'!$D$22+'BP Financier'!$E$22+'BP Financier'!$F$22+'BP Financier'!$G$22)/('BP Financier'!$C$16+'BP Financier'!$C$19+'BP Financier'!$D$16+'BP Financier'!$D$19+'BP Financier'!$E$16+'BP Financier'!$E$19+'BP Financier'!$C$22+'BP Financier'!$D$22+'BP Financier'!$E$22+'BP Financier'!$F$22+'BP Financier'!$F$16+'BP Financier'!$F$19+'BP Financier'!$G$16+'BP Financier'!$G$19+'BP Financier'!$G$22))*$V8557*AA8557/(1-$W8557)","v":{"v":1785.7036071806158,"d":"1,786"}},{"$f":"'BP Financier'!$G$44*(('BP Financier'!$C$22+'BP Financier'!$D$22+'BP Financier'!$E$22+'BP Financier'!$F$22+'BP Financier'!$G$22)/('BP Financier'!$C$16+'BP Financier'!$C$19+'BP Financier'!$D$16+'BP Financier'!$D$19+'BP Financier'!$E$16+'BP Financier'!$E$19+'BP Financier'!$C$22+'BP Financier'!$D$22+'BP Financier'!$E$22+'BP Financier'!$F$22+'BP Financier'!$F$16+'BP Financier'!$F$19+'BP Financier'!$G$16+'BP Financier'!$G$19+'BP Financier'!$G$22))*$V8557*AB8557/(1-$W8557)","v":{"v":854.6957436078159,"d":"855"}},null,{"v":0.006,"d":"0.60%"},{"$f":"Actif!$E$28/100","v":{"v":0.28900000000000003,"d":"28.90%"}},{"$f":"Actif!$E$30/100","v":{"v":0.09050000000000001,"d":"9.05%"}},{"$f":"Actif!$E$31/100","v":{"v":0.0605,"d":"6.05%"}},{"$f":"Actif!$E$32/100","v":{"v":0.47350000000000003,"d":"47.35%"}},{"$f":"Actif!$E$33/100","v":{"v":0.0585,"d":"5.85%"}},{"$f":"Actif!$E$29/100","v":{"v":0.027999999999999997,"d":"2.80%"}}]
[null,"#445",53,2031,"F","A_CAPI",{"v":0.44999999999999996,"d":"0.45"},{"v":0.38999999999999996,"d":"0.39"},0.6,0.6,85,0,{"$f":"ROUND(Primes!$Q$10*V8558,2)","v":0.78},0,{"v":21703.166918041326,"d":"21,703"},{"$f":"'BP Financier'!$G$44*(('BP Financier'!$C$22+'BP Financier'!$D$22+'BP Financier'!$E$22+'BP Financier'!$F$22+'BP Financier'!$G$22)/('BP Financier'!$C$16+'BP Financier'!$C$19+'BP Financier'!$D$16+'BP Financier'!$D$19+'BP Financier'!$E$16+'BP Financier'!$E$19+'BP Financier'!$C$22+'BP Financier'!$D$22+'BP Financier'!$E$22+'BP Financier'!$F$22+'BP Financier'!$F$16+'BP Financier'!$F$19+'BP Financier'!$G$16+'BP Financier'!$G$19+'BP Financier'!$G$22))*$V8558*X8558/(1-$W8558)","v":{"v":2762.4987427324054,"d":"2,762"}},{"$f":"'BP Financier'!$G$44*(('BP Financier'!$C$22+'BP Financier'!$D$22+'BP Financier'!$E$22+'BP Financier'!$F$22+'BP Financier'!$G$22)/('BP Financier'!$C$16+'BP Financier'!$C$19+'BP Financier'!$D$16+'BP Financier'!$D$19+'BP Financier'!$E$16+'BP Financier'!$E$19+'BP Financier'!$C$22+'BP Financier'!$D$22+'BP Financier'!$E$22+'BP Financier'!$F$22+'BP Financier'!$F$16+'BP Financier'!$F$19+'BP Financier'!$G$16+'BP Financier'!$G$19+'BP Financier'!$G$22))*$V8558*Y8558/(1-$W8558)","v":{"v":1846.7533031526023,"d":"1,847"}},{"$f":"'BP Financier'!$G$44*(('BP Financier'!$C$22+'BP Financier'!$D$22+'BP Financier'!$E$22+'BP Financier'!$F$22+'BP Financier'!$G$22)/('BP Financier'!$C$16+'BP Financier'!$C$19+'BP Financier'!$D$16+'BP Financier'!$D$19+'BP Financier'!$E$16+'BP Financier'!$E$19+'BP Financier'!$C$22+'BP Financier'!$D$22+'BP Financier'!$E$22+'BP Financier'!$F$22+'BP Financier'!$F$16+'BP Financier'!$F$19+'BP Financier'!$G$16+'BP Financier'!$G$19+'BP Financier'!$G$22))*$V8558*Z8558/(1-$W8558)","v":{"v":14453.51552136789,"d":"14,454"}},{"$f":"'BP Financier'!$G$44*(('BP Financier'!$C$22+'BP Financier'!$D$22+'BP Financier'!$E$22+'BP Financier'!$F$22+'BP Financier'!$G$22)/('BP Financier'!$C$16+'BP Financier'!$C$19+'BP Financier'!$D$16+'BP Financier'!$D$19+'BP Financier'!$E$16+'BP Financier'!$E$19+'BP Financier'!$C$22+'BP Financier'!$D$22+'BP Financier'!$E$22+'BP Financier'!$F$22+'BP Financier'!$F$16+'BP Financier'!$F$19+'BP Financier'!$G$16+'BP Financier'!$G$19+'BP Financier'!$G$22))*$V8558*AA8558/(1-$W8558)","v":{"v":1785.7036071806158,"d":"1,786"}},{"$f":"'BP Financier'!$G$44*(('BP Financier'!$C$22+'BP Financier'!$D$22+'BP Financier'!$E$22+'BP Financier'!$F$22+'BP Financier'!$G$22)/('BP Financier'!$C$16+'BP Financier'!$C$19+'BP Financier'!$D$16+'BP Financier'!$D$19+'BP Financier'!$E$16+'BP Financier'!$E$19+'BP Financier'!$C$22+'BP Financier'!$D$22+'BP Financier'!$E$22+'BP Financier'!$F$22+'BP Financier'!$F$16+'BP Financier'!$F$19+'BP Financier'!$G$16+'BP Financier'!$G$19+'BP Financier'!$G$22))*$V8558*AB8558/(1-$W8558)","v":{"v":854.6957436078159,"d":"855"}},null,{"v":0.006,"d":"0.60%"},{"$f":"Actif!$E$28/100","v":{"v":0.28900000000000003,"d":"28.90%"}},{"$f":"Actif!$E$30/100","v":{"v":0.09050000000000001,"d":"9.05%"}},{"$f":"Actif!$E$31/100","v":{"v":0.0605,"d":"6.05%"}},{"$f":"Actif!$E$32/100","v":{"v":0.47350000000000003,"d":"47.35%"}},{"$f":"Actif!$E$33/100","v":{"v":0.0585,"d":"5.85%"}},{"$f":"Actif!$E$29/100","v":{"v":0.027999999999999997,"d":"2.80%"}}]
[null,"#446",54,2026,"H","A_CAPI",{"v":0.44999999999999996,"d":"0.45"},{"v":0.38999999999999996,"d":"0.39"},0.6,0.6,85,0,{"$f":"ROUND(Primes!$Q$10*V8559,2)","v":0.78},0,{"v":21703.166918041326,"d":"21,703"},{"$f":"'BP Financier'!$G$44*(('BP Financier'!$C$22+'BP Financier'!$D$22+'BP Financier'!$E$22+'BP Financier'!$F$22+'BP Financier'!$G$22)/('BP Financier'!$C$16+'BP Financier'!$C$19+'BP Financier'!$D$16+'BP Financier'!$D$19+'BP Financier'!$E$16+'BP Financier'!$E$19+'BP Financier'!$C$22+'BP Financier'!$D$22+'BP Financier'!$E$22+'BP Financier'!$F$22+'BP Financier'!$F$16+'BP Financier'!$F$19+'BP Financier'!$G$16+'BP Financier'!$G$19+'BP Financier'!$G$22))*$V8559*X8559/(1-$W8559)","v":{"v":2762.4987427324054,"d":"2,762"}},{"$f":"'BP Financier'!$G$44*(('BP Financier'!$C$22+'BP Financier'!$D$22+'BP Financier'!$E$22+'BP Financier'!$F$22+'BP Financier'!$G$22)/('BP Financier'!$C$16+'BP Financier'!$C$19+'BP Financier'!$D$16+'BP Financier'!$D$19+'BP Financier'!$E$16+'BP Financier'!$E$19+'BP Financier'!$C$22+'BP Financier'!$D$22+'BP Financier'!$E$22+'BP Financier'!$F$22+'BP Financier'!$F$16+'BP Financier'!$F$19+'BP Financier'!$G$16+'BP Financier'!$G$19+'BP Financier'!$G$22))*$V8559*Y8559/(1-$W8559)","v":{"v":1846.7533031526023,"d":"1,847"}},{"$f":"'BP Financier'!$G$44*(('BP Financier'!$C$22+'BP Financier'!$D$22+'BP Financier'!$E$22+'BP Financier'!$F$22+'BP Financier'!$G$22)/('BP Financier'!$C$16+'BP Financier'!$C$19+'BP Financier'!$D$16+'BP Financier'!$D$19+'BP Financier'!$E$16+'BP Financier'!$E$19+'BP Financier'!$C$22+'BP Financier'!$D$22+'BP Financier'!$E$22+'BP Financier'!$F$22+'BP Financier'!$F$16+'BP Financier'!$F$19+'BP Financier'!$G$16+'BP Financier'!$G$19+'BP Financier'!$G$22))*$V8559*Z8559/(1-$W8559)","v":{"v":14453.51552136789,"d":"14,454"}},{"$f":"'BP Financier'!$G$44*(('BP Financier'!$C$22+'BP Financier'!$D$22+'BP Financier'!$E$22+'BP Financier'!$F$22+'BP Financier'!$G$22)/('BP Financier'!$C$16+'BP Financier'!$C$19+'BP Financier'!$D$16+'BP Financier'!$D$19+'BP Financier'!$E$16+'BP Financier'!$E$19+'BP Financier'!$C$22+'BP Financier'!$D$22+'BP Financier'!$E$22+'BP Financier'!$F$22+'BP Financier'!$F$16+'BP Financier'!$F$19+'BP Financier'!$G$16+'BP Financier'!$G$19+'BP Financier'!$G$22))*$V8559*AA8559/(1-$W8559)","v":{"v":1785.7036071806158,"d":"1,786"}},{"$f":"'BP Financier'!$G$44*(('BP Financier'!$C$22+'BP Financier'!$D$22+'BP Financier'!$E$22+'BP Financier'!$F$22+'BP Financier'!$G$22)/('BP Financier'!$C$16+'BP Financier'!$C$19+'BP Financier'!$D$16+'BP Financier'!$D$19+'BP Financier'!$E$16+'BP Financier'!$E$19+'BP Financier'!$C$22+'BP Financier'!$D$22+'BP Financier'!$E$22+'BP Financier'!$F$22+'BP Financier'!$F$16+'BP Financier'!$F$19+'BP Financier'!$G$16+'BP Financier'!$G$19+'BP Financier'!$G$22))*$V8559*AB8559/(1-$W8559)","v":{"v":854.6957436078159,"d":"855"}},null,{"v":0.006,"d":"0.60%"},{"$f":"Actif!$E$28/100","v":{"v":0.28900000000000003,"d":"28.90%"}},{"$f":"Actif!$E$30/100","v":{"v":0.09050000000000001,"d":"9.05%"}},{"$f":"Actif!$E$31/100","v":{"v":0.0605,"d":"6.05%"}},{"$f":"Actif!$E$32/100","v":{"v":0.47350000000000003,"d":"47.35%"}},{"$f":"Actif!$E$33/100","v":{"v":0.0585,"d":"5.85%"}},{"$f":"Actif!$E$29/100","v":{"v":0.027999999999999997,"d":"2.80%"}}]
[null,"#447",54,2028,"H","A_CAPI",{"v":0.44999999999999996,"d":"0.45"},{"v":0.38999999999999996,"d":"0.39"},0.6,0.6,85,0,{"$f":"ROUND(Primes!$Q$10*V8560,2)","v":0.78},0,{"v":21703.166918041326,"d":"21,703"},{"$f":"'BP Financier'!$G$44*(('BP Financier'!$C$22+'BP Financier'!$D$22+'BP Financier'!$E$22+'BP Financier'!$F$22+'BP Financier'!$G$22)/('BP Financier'!$C$16+'BP Financier'!$C$19+'BP Financier'!$D$16+'BP Financier'!$D$19+'BP Financier'!$E$16+'BP Financier'!$E$19+'BP Financier'!$C$22+'BP Financier'!$D$22+'BP Financier'!$E$22+'BP Financier'!$F$22+'BP Financier'!$F$16+'BP Financier'!$F$19+'BP Financier'!$G$16+'BP Financier'!$G$19+'BP Financier'!$G$22))*$V8560*X8560/(1-$W8560)","v":{"v":2762.4987427324054,"d":"2,762"}},{"$f":"'BP Financier'!$G$44*(('BP Financier'!$C$22+'BP Financier'!$D$22+'BP Financier'!$E$22+'BP Financier'!$F$22+'BP Financier'!$G$22)/('BP Financier'!$C$16+'BP Financier'!$C$19+'BP Financier'!$D$16+'BP Financier'!$D$19+'BP Financier'!$E$16+'BP Financier'!$E$19+'BP Financier'!$C$22+'BP Financier'!$D$22+'BP Financier'!$E$22+'BP Financier'!$F$22+'BP Financier'!$F$16+'BP Financier'!$F$19+'BP Financier'!$G$16+'BP Financier'!$G$19+'BP Financier'!$G$22))*$V8560*Y8560/(1-$W8560)","v":{"v":1846.7533031526023,"d":"1,847"}},{"$f":"'BP Financier'!$G$44*(('BP Financier'!$C$22+'BP Financier'!$D$22+'BP Financier'!$E$22+'BP Financier'!$F$22+'BP Financier'!$G$22)/('BP Financier'!$C$16+'BP Financier'!$C$19+'BP Financier'!$D$16+'BP Financier'!$D$19+'BP Financier'!$E$16+'BP Financier'!$E$19+'BP Financier'!$C$22+'BP Financier'!$D$22+'BP Financier'!$E$22+'BP Financier'!$F$22+'BP Financier'!$F$16+'BP Financier'!$F$19+'BP Financier'!$G$16+'BP Financier'!$G$19+'BP Financier'!$G$22))*$V8560*Z8560/(1-$W8560)","v":{"v":14453.51552136789,"d":"14,454"}},{"$f":"'BP Financier'!$G$44*(('BP Financier'!$C$22+'BP Financier'!$D$22+'BP Financier'!$E$22+'BP Financier'!$F$22+'BP Financier'!$G$22)/('BP Financier'!$C$16+'BP Financier'!$C$19+'BP Financier'!$D$16+'BP Financier'!$D$19+'BP Financier'!$E$16+'BP Financier'!$E$19+'BP Financier'!$C$22+'BP Financier'!$D$22+'BP Financier'!$E$22+'BP Financier'!$F$22+'BP Financier'!$F$16+'BP Financier'!$F$19+'BP Financier'!$G$16+'BP Financier'!$G$19+'BP Financier'!$G$22))*$V8560*AA8560/(1-$W8560)","v":{"v":1785.7036071806158,"d":"1,786"}},{"$f":"'BP Financier'!$G$44*(('BP Financier'!$C$22+'BP Financier'!$D$22+'BP Financier'!$E$22+'BP Financier'!$F$22+'BP Financier'!$G$22)/('BP Financier'!$C$16+'BP Financier'!$C$19+'BP Financier'!$D$16+'BP Financier'!$D$19+'BP Financier'!$E$16+'BP Financier'!$E$19+'BP Financier'!$C$22+'BP Financier'!$D$22+'BP Financier'!$E$22+'BP Financier'!$F$22+'BP Financier'!$F$16+'BP Financier'!$F$19+'BP Financier'!$G$16+'BP Financier'!$G$19+'BP Financier'!$G$22))*$V8560*AB8560/(1-$W8560)","v":{"v":854.6957436078159,"d":"855"}},null,{"v":0.006,"d":"0.60%"},{"$f":"Actif!$E$28/100","v":{"v":0.28900000000000003,"d":"28.90%"}},{"$f":"Actif!$E$30/100","v":{"v":0.09050000000000001,"d":"9.05%"}},{"$f":"Actif!$E$31/100","v":{"v":0.0605,"d":"6.05%"}},{"$f":"Actif!$E$32/100","v":{"v":0.47350000000000003,"d":"47.35%"}},{"$f":"Actif!$E$33/100","v":{"v":0.0585,"d":"5.85%"}},{"$f":"Actif!$E$29/100","v":{"v":0.027999999999999997,"d":"2.80%"}}]
[null,"#448",54,2029,"H","A_CAPI",{"v":0.44999999999999996,"d":"0.45"},{"v":0.38999999999999996,"d":"0.39"},0.6,0.6,85,0,{"$f":"ROUND(Primes!$Q$10*V8561,2)","v":0.78},0,{"v":21703.166918041326,"d":"21,703"},{"$f":"'BP Financier'!$G$44*(('BP Financier'!$C$22+'BP Financier'!$D$22+'BP Financier'!$E$22+'BP Financier'!$F$22+'BP Financier'!$G$22)/('BP Financier'!$C$16+'BP Financier'!$C$19+'BP Financier'!$D$16+'BP Financier'!$D$19+'BP Financier'!$E$16+'BP Financier'!$E$19+'BP Financier'!$C$22+'BP Financier'!$D$22+'BP Financier'!$E$22+'BP Financier'!$F$22+'BP Financier'!$F$16+'BP Financier'!$F$19+'BP Financier'!$G$16+'BP Financier'!$G$19+'BP Financier'!$G$22))*$V8561*X8561/(1-$W8561)","v":{"v":2762.4987427324054,"d":"2,762"}},{"$f":"'BP Financier'!$G$44*(('BP Financier'!$C$22+'BP Financier'!$D$22+'BP Financier'!$E$22+'BP Financier'!$F$22+'BP Financier'!$G$22)/('BP Financier'!$C$16+'BP Financier'!$C$19+'BP Financier'!$D$16+'BP Financier'!$D$19+'BP Financier'!$E$16+'BP Financier'!$E$19+'BP Financier'!$C$22+'BP Financier'!$D$22+'BP Financier'!$E$22+'BP Financier'!$F$22+'BP Financier'!$F$16+'BP Financier'!$F$19+'BP Financier'!$G$16+'BP Financier'!$G$19+'BP Financier'!$G$22))*$V8561*Y8561/(1-$W8561)","v":{"v":1846.7533031526023,"d":"1,847"}},{"$f":"'BP Financier'!$G$44*(('BP Financier'!$C$22+'BP Financier'!$D$22+'BP Financier'!$E$22+'BP Financier'!$F$22+'BP Financier'!$G$22)/('BP Financier'!$C$16+'BP Financier'!$C$19+'BP Financier'!$D$16+'BP Financier'!$D$19+'BP Financier'!$E$16+'BP Financier'!$E$19+'BP Financier'!$C$22+'BP Financier'!$D$22+'BP Financier'!$E$22+'BP Financier'!$F$22+'BP Financier'!$F$16+'BP Financier'!$F$19+'BP Financier'!$G$16+'BP Financier'!$G$19+'BP Financier'!$G$22))*$V8561*Z8561/(1-$W8561)","v":{"v":14453.51552136789,"d":"14,454"}},{"$f":"'BP Financier'!$G$44*(('BP Financier'!$C$22+'BP Financier'!$D$22+'BP Financier'!$E$22+'BP Financier'!$F$22+'BP Financier'!$G$22)/('BP Financier'!$C$16+'BP Financier'!$C$19+'BP Financier'!$D$16+'BP Financier'!$D$19+'BP Financier'!$E$16+'BP Financier'!$E$19+'BP Financier'!$C$22+'BP Financier'!$D$22+'BP Financier'!$E$22+'BP Financier'!$F$22+'BP Financier'!$F$16+'BP Financier'!$F$19+'BP Financier'!$G$16+'BP Financier'!$G$19+'BP Financier'!$G$22))*$V8561*AA8561/(1-$W8561)","v":{"v":1785.7036071806158,"d":"1,786"}},{"$f":"'BP Financier'!$G$44*(('BP Financier'!$C$22+'BP Financier'!$D$22+'BP Financier'!$E$22+'BP Financier'!$F$22+'BP Financier'!$G$22)/('BP Financier'!$C$16+'BP Financier'!$C$19+'BP Financier'!$D$16+'BP Financier'!$D$19+'BP Financier'!$E$16+'BP Financier'!$E$19+'BP Financier'!$C$22+'BP Financier'!$D$22+'BP Financier'!$E$22+'BP Financier'!$F$22+'BP Financier'!$F$16+'BP Financier'!$F$19+'BP Financier'!$G$16+'BP Financier'!$G$19+'BP Financier'!$G$22))*$V8561*AB8561/(1-$W8561)","v":{"v":854.6957436078159,"d":"855"}},null,{"v":0.006,"d":"0.60%"},{"$f":"Actif!$E$28/100","v":{"v":0.28900000000000003,"d":"28.90%"}},{"$f":"Actif!$E$30/100","v":{"v":0.09050000000000001,"d":"9.05%"}},{"$f":"Actif!$E$31/100","v":{"v":0.0605,"d":"6.05%"}},{"$f":"Actif!$E$32/100","v":{"v":0.47350000000000003,"d":"47.35%"}},{"$f":"Actif!$E$33/100","v":{"v":0.0585,"d":"5.85%"}},{"$f":"Actif!$E$29/100","v":{"v":0.027999999999999997,"d":"2.80%"}}]
[null,"#449",54,2030,"H","A_CAPI",{"v":0.44999999999999996,"d":"0.45"},{"v":0.38999999999999996,"d":"0.39"},0.6,0.6,85,0,{"$f":"ROUND(Primes!$Q$10*V8562,2)","v":0.78},0,{"v":21703.166918041326,"d":"21,703"},{"$f":"'BP Financier'!$G$44*(('BP Financier'!$C$22+'BP Financier'!$D$22+'BP Financier'!$E$22+'BP Financier'!$F$22+'BP Financier'!$G$22)/('BP Financier'!$C$16+'BP Financier'!$C$19+'BP Financier'!$D$16+'BP Financier'!$D$19+'BP Financier'!$E$16+'BP Financier'!$E$19+'BP Financier'!$C$22+'BP Financier'!$D$22+'BP Financier'!$E$22+'BP Financier'!$F$22+'BP Financier'!$F$16+'BP Financier'!$F$19+'BP Financier'!$G$16+'BP Financier'!$G$19+'BP Financier'!$G$22))*$V8562*X8562/(1-$W8562)","v":{"v":2762.4987427324054,"d":"2,762"}},{"$f":"'BP Financier'!$G$44*(('BP Financier'!$C$22+'BP Financier'!$D$22+'BP Financier'!$E$22+'BP Financier'!$F$22+'BP Financier'!$G$22)/('BP Financier'!$C$16+'BP Financier'!$C$19+'BP Financier'!$D$16+'BP Financier'!$D$19+'BP Financier'!$E$16+'BP Financier'!$E$19+'BP Financier'!$C$22+'BP Financier'!$D$22+'BP Financier'!$E$22+'BP Financier'!$F$22+'BP Financier'!$F$16+'BP Financier'!$F$19+'BP Financier'!$G$16+'BP Financier'!$G$19+'BP Financier'!$G$22))*$V8562*Y8562/(1-$W8562)","v":{"v":1846.7533031526023,"d":"1,847"}},{"$f":"'BP Financier'!$G$44*(('BP Financier'!$C$22+'BP Financier'!$D$22+'BP Financier'!$E$22+'BP Financier'!$F$22+'BP Financier'!$G$22)/('BP Financier'!$C$16+'BP Financier'!$C$19+'BP Financier'!$D$16+'BP Financier'!$D$19+'BP Financier'!$E$16+'BP Financier'!$E$19+'BP Financier'!$C$22+'BP Financier'!$D$22+'BP Financier'!$E$22+'BP Financier'!$F$22+'BP Financier'!$F$16+'BP Financier'!$F$19+'BP Financier'!$G$16+'BP Financier'!$G$19+'BP Financier'!$G$22))*$V8562*Z8562/(1-$W8562)","v":{"v":14453.51552136789,"d":"14,454"}},{"$f":"'BP Financier'!$G$44*(('BP Financier'!$C$22+'BP Financier'!$D$22+'BP Financier'!$E$22+'BP Financier'!$F$22+'BP Financier'!$G$22)/('BP Financier'!$C$16+'BP Financier'!$C$19+'BP Financier'!$D$16+'BP Financier'!$D$19+'BP Financier'!$E$16+'BP Financier'!$E$19+'BP Financier'!$C$22+'BP Financier'!$D$22+'BP Financier'!$E$22+'BP Financier'!$F$22+'BP Financier'!$F$16+'BP Financier'!$F$19+'BP Financier'!$G$16+'BP Financier'!$G$19+'BP Financier'!$G$22))*$V8562*AA8562/(1-$W8562)","v":{"v":1785.7036071806158,"d":"1,786"}},{"$f":"'BP Financier'!$G$44*(('BP Financier'!$C$22+'BP Financier'!$D$22+'BP Financier'!$E$22+'BP Financier'!$F$22+'BP Financier'!$G$22)/('BP Financier'!$C$16+'BP Financier'!$C$19+'BP Financier'!$D$16+'BP Financier'!$D$19+'BP Financier'!$E$16+'BP Financier'!$E$19+'BP Financier'!$C$22+'BP Financier'!$D$22+'BP Financier'!$E$22+'BP Financier'!$F$22+'BP Financier'!$F$16+'BP Financier'!$F$19+'BP Financier'!$G$16+'BP Financier'!$G$19+'BP Financier'!$G$22))*$V8562*AB8562/(1-$W8562)","v":{"v":854.6957436078159,"d":"855"}},null,{"v":0.006,"d":"0.60%"},{"$f":"Actif!$E$28/100","v":{"v":0.28900000000000003,"d":"28.90%"}},{"$f":"Actif!$E$30/100","v":{"v":0.09050000000000001,"d":"9.05%"}},{"$f":"Actif!$E$31/100","v":{"v":0.0605,"d":"6.05%"}},{"$f":"Actif!$E$32/100","v":{"v":0.47350000000000003,"d":"47.35%"}},{"$f":"Actif!$E$33/100","v":{"v":0.0585,"d":"5.85%"}},{"$f":"Actif!$E$29/100","v":{"v":0.027999999999999997,"d":"2.80%"}}]
[null,"#450",54,2031,"H","A_CAPI",{"v":0.44999999999999996,"d":"0.45"},{"v":0.38999999999999996,"d":"0.39"},0.6,0.6,85,0,{"$f":"ROUND(Primes!$Q$10*V8563,2)","v":0.78},0,{"v":21703.166918041326,"d":"21,703"},{"$f":"'BP Financier'!$G$44*(('BP Financier'!$C$22+'BP Financier'!$D$22+'BP Financier'!$E$22+'BP Financier'!$F$22+'BP Financier'!$G$22)/('BP Financier'!$C$16+'BP Financier'!$C$19+'BP Financier'!$D$16+'BP Financier'!$D$19+'BP Financier'!$E$16+'BP Financier'!$E$19+'BP Financier'!$C$22+'BP Financier'!$D$22+'BP Financier'!$E$22+'BP Financier'!$F$22+'BP Financier'!$F$16+'BP Financier'!$F$19+'BP Financier'!$G$16+'BP Financier'!$G$19+'BP Financier'!$G$22))*$V8563*X8563/(1-$W8563)","v":{"v":2762.4987427324054,"d":"2,762"}},{"$f":"'BP Financier'!$G$44*(('BP Financier'!$C$22+'BP Financier'!$D$22+'BP Financier'!$E$22+'BP Financier'!$F$22+'BP Financier'!$G$22)/('BP Financier'!$C$16+'BP Financier'!$C$19+'BP Financier'!$D$16+'BP Financier'!$D$19+'BP Financier'!$E$16+'BP Financier'!$E$19+'BP Financier'!$C$22+'BP Financier'!$D$22+'BP Financier'!$E$22+'BP Financier'!$F$22+'BP Financier'!$F$16+'BP Financier'!$F$19+'BP Financier'!$G$16+'BP Financier'!$G$19+'BP Financier'!$G$22))*$V8563*Y8563/(1-$W8563)","v":{"v":1846.7533031526023,"d":"1,847"}},{"$f":"'BP Financier'!$G$44*(('BP Financier'!$C$22+'BP Financier'!$D$22+'BP Financier'!$E$22+'BP Financier'!$F$22+'BP Financier'!$G$22)/('BP Financier'!$C$16+'BP Financier'!$C$19+'BP Financier'!$D$16+'BP Financier'!$D$19+'BP Financier'!$E$16+'BP Financier'!$E$19+'BP Financier'!$C$22+'BP Financier'!$D$22+'BP Financier'!$E$22+'BP Financier'!$F$22+'BP Financier'!$F$16+'BP Financier'!$F$19+'BP Financier'!$G$16+'BP Financier'!$G$19+'BP Financier'!$G$22))*$V8563*Z8563/(1-$W8563)","v":{"v":14453.51552136789,"d":"14,454"}},{"$f":"'BP Financier'!$G$44*(('BP Financier'!$C$22+'BP Financier'!$D$22+'BP Financier'!$E$22+'BP Financier'!$F$22+'BP Financier'!$G$22)/('BP Financier'!$C$16+'BP Financier'!$C$19+'BP Financier'!$D$16+'BP Financier'!$D$19+'BP Financier'!$E$16+'BP Financier'!$E$19+'BP Financier'!$C$22+'BP Financier'!$D$22+'BP Financier'!$E$22+'BP Financier'!$F$22+'BP Financier'!$F$16+'BP Financier'!$F$19+'BP Financier'!$G$16+'BP Financier'!$G$19+'BP Financier'!$G$22))*$V8563*AA8563/(1-$W8563)","v":{"v":1785.7036071806158,"d":"1,786"}},{"$f":"'BP Financier'!$G$44*(('BP Financier'!$C$22+'BP Financier'!$D$22+'BP Financier'!$E$22+'BP Financier'!$F$22+'BP Financier'!$G$22)/('BP Financier'!$C$16+'BP Financier'!$C$19+'BP Financier'!$D$16+'BP Financier'!$D$19+'BP Financier'!$E$16+'BP Financier'!$E$19+'BP Financier'!$C$22+'BP Financier'!$D$22+'BP Financier'!$E$22+'BP Financier'!$F$22+'BP Financier'!$F$16+'BP Financier'!$F$19+'BP Financier'!$G$16+'BP Financier'!$G$19+'BP Financier'!$G$22))*$V8563*AB8563/(1-$W8563)","v":{"v":854.6957436078159,"d":"855"}},null,{"v":0.006,"d":"0.60%"},{"$f":"Actif!$E$28/100","v":{"v":0.28900000000000003,"d":"28.90%"}},{"$f":"Actif!$E$30/100","v":{"v":0.09050000000000001,"d":"9.05%"}},{"$f":"Actif!$E$31/100","v":{"v":0.0605,"d":"6.05%"}},{"$f":"Actif!$E$32/100","v":{"v":0.47350000000000003,"d":"47.35%"}},{"$f":"Actif!$E$33/100","v":{"v":0.0585,"d":"5.85%"}},{"$f":"Actif!$E$29/100","v":{"v":0.027999999999999997,"d":"2.80%"}}]
[null,"#451",55,2026,"H","A_CAPI",{"v":0.44999999999999996,"d":"0.45"},{"v":0.38999999999999996,"d":"0.39"},0.6,0.6,85,0,{"$f":"ROUND(Primes!$Q$10*V8564,2)","v":0.78},0,{"v":21703.166918041326,"d":"21,703"},{"$f":"'BP Financier'!$G$44*(('BP Financier'!$C$22+'BP Financier'!$D$22+'BP Financier'!$E$22+'BP Financier'!$F$22+'BP Financier'!$G$22)/('BP Financier'!$C$16+'BP Financier'!$C$19+'BP Financier'!$D$16+'BP Financier'!$D$19+'BP Financier'!$E$16+'BP Financier'!$E$19+'BP Financier'!$C$22+'BP Financier'!$D$22+'BP Financier'!$E$22+'BP Financier'!$F$22+'BP Financier'!$F$16+'BP Financier'!$F$19+'BP Financier'!$G$16+'BP Financier'!$G$19+'BP Financier'!$G$22))*$V8564*X8564/(1-$W8564)","v":{"v":2762.4987427324054,"d":"2,762"}},{"$f":"'BP Financier'!$G$44*(('BP Financier'!$C$22+'BP Financier'!$D$22+'BP Financier'!$E$22+'BP Financier'!$F$22+'BP Financier'!$G$22)/('BP Financier'!$C$16+'BP Financier'!$C$19+'BP Financier'!$D$16+'BP Financier'!$D$19+'BP Financier'!$E$16+'BP Financier'!$E$19+'BP Financier'!$C$22+'BP Financier'!$D$22+'BP Financier'!$E$22+'BP Financier'!$F$22+'BP Financier'!$F$16+'BP Financier'!$F$19+'BP Financier'!$G$16+'BP Financier'!$G$19+'BP Financier'!$G$22))*$V8564*Y8564/(1-$W8564)","v":{"v":1846.7533031526023,"d":"1,847"}},{"$f":"'BP Financier'!$G$44*(('BP Financier'!$C$22+'BP Financier'!$D$22+'BP Financier'!$E$22+'BP Financier'!$F$22+'BP Financier'!$G$22)/('BP Financier'!$C$16+'BP Financier'!$C$19+'BP Financier'!$D$16+'BP Financier'!$D$19+'BP Financier'!$E$16+'BP Financier'!$E$19+'BP Financier'!$C$22+'BP Financier'!$D$22+'BP Financier'!$E$22+'BP Financier'!$F$22+'BP Financier'!$F$16+'BP Financier'!$F$19+'BP Financier'!$G$16+'BP Financier'!$G$19+'BP Financier'!$G$22))*$V8564*Z8564/(1-$W8564)","v":{"v":14453.51552136789,"d":"14,454"}},{"$f":"'BP Financier'!$G$44*(('BP Financier'!$C$22+'BP Financier'!$D$22+'BP Financier'!$E$22+'BP Financier'!$F$22+'BP Financier'!$G$22)/('BP Financier'!$C$16+'BP Financier'!$C$19+'BP Financier'!$D$16+'BP Financier'!$D$19+'BP Financier'!$E$16+'BP Financier'!$E$19+'BP Financier'!$C$22+'BP Financier'!$D$22+'BP Financier'!$E$22+'BP Financier'!$F$22+'BP Financier'!$F$16+'BP Financier'!$F$19+'BP Financier'!$G$16+'BP Financier'!$G$19+'BP Financier'!$G$22))*$V8564*AA8564/(1-$W8564)","v":{"v":1785.7036071806158,"d":"1,786"}},{"$f":"'BP Financier'!$G$44*(('BP Financier'!$C$22+'BP Financier'!$D$22+'BP Financier'!$E$22+'BP Financier'!$F$22+'BP Financier'!$G$22)/('BP Financier'!$C$16+'BP Financier'!$C$19+'BP Financier'!$D$16+'BP Financier'!$D$19+'BP Financier'!$E$16+'BP Financier'!$E$19+'BP Financier'!$C$22+'BP Financier'!$D$22+'BP Financier'!$E$22+'BP Financier'!$F$22+'BP Financier'!$F$16+'BP Financier'!$F$19+'BP Financier'!$G$16+'BP Financier'!$G$19+'BP Financier'!$G$22))*$V8564*AB8564/(1-$W8564)","v":{"v":854.6957436078159,"d":"855"}},null,{"v":0.006,"d":"0.60%"},{"$f":"Actif!$E$28/100","v":{"v":0.28900000000000003,"d":"28.90%"}},{"$f":"Actif!$E$30/100","v":{"v":0.09050000000000001,"d":"9.05%"}},{"$f":"Actif!$E$31/100","v":{"v":0.0605,"d":"6.05%"}},{"$f":"Actif!$E$32/100","v":{"v":0.47350000000000003,"d":"47.35%"}},{"$f":"Actif!$E$33/100","v":{"v":0.0585,"d":"5.85%"}},{"$f":"Actif!$E$29/100","v":{"v":0.027999999999999997,"d":"2.80%"}}]
[null,"#452",55,2028,"H","A_CAPI",{"v":0.44999999999999996,"d":"0.45"},{"v":0.38999999999999996,"d":"0.39"},0.6,0.6,85,0,{"$f":"ROUND(Primes!$Q$10*V8565,2)","v":0.78},0,{"v":21703.166918041326,"d":"21,703"},{"$f":"'BP Financier'!$G$44*(('BP Financier'!$C$22+'BP Financier'!$D$22+'BP Financier'!$E$22+'BP Financier'!$F$22+'BP Financier'!$G$22)/('BP Financier'!$C$16+'BP Financier'!$C$19+'BP Financier'!$D$16+'BP Financier'!$D$19+'BP Financier'!$E$16+'BP Financier'!$E$19+'BP Financier'!$C$22+'BP Financier'!$D$22+'BP Financier'!$E$22+'BP Financier'!$F$22+'BP Financier'!$F$16+'BP Financier'!$F$19+'BP Financier'!$G$16+'BP Financier'!$G$19+'BP Financier'!$G$22))*$V8565*X8565/(1-$W8565)","v":{"v":2762.4987427324054,"d":"2,762"}},{"$f":"'BP Financier'!$G$44*(('BP Financier'!$C$22+'BP Financier'!$D$22+'BP Financier'!$E$22+'BP Financier'!$F$22+'BP Financier'!$G$22)/('BP Financier'!$C$16+'BP Financier'!$C$19+'BP Financier'!$D$16+'BP Financier'!$D$19+'BP Financier'!$E$16+'BP Financier'!$E$19+'BP Financier'!$C$22+'BP Financier'!$D$22+'BP Financier'!$E$22+'BP Financier'!$F$22+'BP Financier'!$F$16+'BP Financier'!$F$19+'BP Financier'!$G$16+'BP Financier'!$G$19+'BP Financier'!$G$22))*$V8565*Y8565/(1-$W8565)","v":{"v":1846.7533031526023,"d":"1,847"}},{"$f":"'BP Financier'!$G$44*(('BP Financier'!$C$22+'BP Financier'!$D$22+'BP Financier'!$E$22+'BP Financier'!$F$22+'BP Financier'!$G$22)/('BP Financier'!$C$16+'BP Financier'!$C$19+'BP Financier'!$D$16+'BP Financier'!$D$19+'BP Financier'!$E$16+'BP Financier'!$E$19+'BP Financier'!$C$22+'BP Financier'!$D$22+'BP Financier'!$E$22+'BP Financier'!$F$22+'BP Financier'!$F$16+'BP Financier'!$F$19+'BP Financier'!$G$16+'BP Financier'!$G$19+'BP Financier'!$G$22))*$V8565*Z8565/(1-$W8565)","v":{"v":14453.51552136789,"d":"14,454"}},{"$f":"'BP Financier'!$G$44*(('BP Financier'!$C$22+'BP Financier'!$D$22+'BP Financier'!$E$22+'BP Financier'!$F$22+'BP Financier'!$G$22)/('BP Financier'!$C$16+'BP Financier'!$C$19+'BP Financier'!$D$16+'BP Financier'!$D$19+'BP Financier'!$E$16+'BP Financier'!$E$19+'BP Financier'!$C$22+'BP Financier'!$D$22+'BP Financier'!$E$22+'BP Financier'!$F$22+'BP Financier'!$F$16+'BP Financier'!$F$19+'BP Financier'!$G$16+'BP Financier'!$G$19+'BP Financier'!$G$22))*$V8565*AA8565/(1-$W8565)","v":{"v":1785.7036071806158,"d":"1,786"}},{"$f":"'BP Financier'!$G$44*(('BP Financier'!$C$22+'BP Financier'!$D$22+'BP Financier'!$E$22+'BP Financier'!$F$22+'BP Financier'!$G$22)/('BP Financier'!$C$16+'BP Financier'!$C$19+'BP Financier'!$D$16+'BP Financier'!$D$19+'BP Financier'!$E$16+'BP Financier'!$E$19+'BP Financier'!$C$22+'BP Financier'!$D$22+'BP Financier'!$E$22+'BP Financier'!$F$22+'BP Financier'!$F$16+'BP Financier'!$F$19+'BP Financier'!$G$16+'BP Financier'!$G$19+'BP Financier'!$G$22))*$V8565*AB8565/(1-$W8565)","v":{"v":854.6957436078159,"d":"855"}},null,{"v":0.006,"d":"0.60%"},{"$f":"Actif!$E$28/100","v":{"v":0.28900000000000003,"d":"28.90%"}},{"$f":"Actif!$E$30/100","v":{"v":0.09050000000000001,"d":"9.05%"}},{"$f":"Actif!$E$31/100","v":{"v":0.0605,"d":"6.05%"}},{"$f":"Actif!$E$32/100","v":{"v":0.47350000000000003,"d":"47.35%"}},{"$f":"Actif!$E$33/100","v":{"v":0.0585,"d":"5.85%"}},{"$f":"Actif!$E$29/100","v":{"v":0.027999999999999997,"d":"2.80%"}}]
[null,"#453",55,2029,"H","A_CAPI",{"v":0.44999999999999996,"d":"0.45"},{"v":0.38999999999999996,"d":"0.39"},0.6,0.6,85,0,{"$f":"ROUND(Primes!$Q$10*V8566,2)","v":0.78},0,{"v":21703.166918041326,"d":"21,703"},{"$f":"'BP Financier'!$G$44*(('BP Financier'!$C$22+'BP Financier'!$D$22+'BP Financier'!$E$22+'BP Financier'!$F$22+'BP Financier'!$G$22)/('BP Financier'!$C$16+'BP Financier'!$C$19+'BP Financier'!$D$16+'BP Financier'!$D$19+'BP Financier'!$E$16+'BP Financier'!$E$19+'BP Financier'!$C$22+'BP Financier'!$D$22+'BP Financier'!$E$22+'BP Financier'!$F$22+'BP Financier'!$F$16+'BP Financier'!$F$19+'BP Financier'!$G$16+'BP Financier'!$G$19+'BP Financier'!$G$22))*$V8566*X8566/(1-$W8566)","v":{"v":2762.4987427324054,"d":"2,762"}},{"$f":"'BP Financier'!$G$44*(('BP Financier'!$C$22+'BP Financier'!$D$22+'BP Financier'!$E$22+'BP Financier'!$F$22+'BP Financier'!$G$22)/('BP Financier'!$C$16+'BP Financier'!$C$19+'BP Financier'!$D$16+'BP Financier'!$D$19+'BP Financier'!$E$16+'BP Financier'!$E$19+'BP Financier'!$C$22+'BP Financier'!$D$22+'BP Financier'!$E$22+'BP Financier'!$F$22+'BP Financier'!$F$16+'BP Financier'!$F$19+'BP Financier'!$G$16+'BP Financier'!$G$19+'BP Financier'!$G$22))*$V8566*Y8566/(1-$W8566)","v":{"v":1846.7533031526023,"d":"1,847"}},{"$f":"'BP Financier'!$G$44*(('BP Financier'!$C$22+'BP Financier'!$D$22+'BP Financier'!$E$22+'BP Financier'!$F$22+'BP Financier'!$G$22)/('BP Financier'!$C$16+'BP Financier'!$C$19+'BP Financier'!$D$16+'BP Financier'!$D$19+'BP Financier'!$E$16+'BP Financier'!$E$19+'BP Financier'!$C$22+'BP Financier'!$D$22+'BP Financier'!$E$22+'BP Financier'!$F$22+'BP Financier'!$F$16+'BP Financier'!$F$19+'BP Financier'!$G$16+'BP Financier'!$G$19+'BP Financier'!$G$22))*$V8566*Z8566/(1-$W8566)","v":{"v":14453.51552136789,"d":"14,454"}},{"$f":"'BP Financier'!$G$44*(('BP Financier'!$C$22+'BP Financier'!$D$22+'BP Financier'!$E$22+'BP Financier'!$F$22+'BP Financier'!$G$22)/('BP Financier'!$C$16+'BP Financier'!$C$19+'BP Financier'!$D$16+'BP Financier'!$D$19+'BP Financier'!$E$16+'BP Financier'!$E$19+'BP Financier'!$C$22+'BP Financier'!$D$22+'BP Financier'!$E$22+'BP Financier'!$F$22+'BP Financier'!$F$16+'BP Financier'!$F$19+'BP Financier'!$G$16+'BP Financier'!$G$19+'BP Financier'!$G$22))*$V8566*AA8566/(1-$W8566)","v":{"v":1785.7036071806158,"d":"1,786"}},{"$f":"'BP Financier'!$G$44*(('BP Financier'!$C$22+'BP Financier'!$D$22+'BP Financier'!$E$22+'BP Financier'!$F$22+'BP Financier'!$G$22)/('BP Financier'!$C$16+'BP Financier'!$C$19+'BP Financier'!$D$16+'BP Financier'!$D$19+'BP Financier'!$E$16+'BP Financier'!$E$19+'BP Financier'!$C$22+'BP Financier'!$D$22+'BP Financier'!$E$22+'BP Financier'!$F$22+'BP Financier'!$F$16+'BP Financier'!$F$19+'BP Financier'!$G$16+'BP Financier'!$G$19+'BP Financier'!$G$22))*$V8566*AB8566/(1-$W8566)","v":{"v":854.6957436078159,"d":"855"}},null,{"v":0.006,"d":"0.60%"},{"$f":"Actif!$E$28/100","v":{"v":0.28900000000000003,"d":"28.90%"}},{"$f":"Actif!$E$30/100","v":{"v":0.09050000000000001,"d":"9.05%"}},{"$f":"Actif!$E$31/100","v":{"v":0.0605,"d":"6.05%"}},{"$f":"Actif!$E$32/100","v":{"v":0.47350000000000003,"d":"47.35%"}},{"$f":"Actif!$E$33/100","v":{"v":0.0585,"d":"5.85%"}},{"$f":"Actif!$E$29/100","v":{"v":0.027999999999999997,"d":"2.80%"}}]
[null,"#454",55,2030,"H","A_CAPI",{"v":0.44999999999999996,"d":"0.45"},{"v":0.38999999999999996,"d":"0.39"},0.6,0.6,85,0,{"$f":"ROUND(Primes!$Q$10*V8567,2)","v":0.78},0,{"v":21703.166918041326,"d":"21,703"},{"$f":"'BP Financier'!$G$44*(('BP Financier'!$C$22+'BP Financier'!$D$22+'BP Financier'!$E$22+'BP Financier'!$F$22+'BP Financier'!$G$22)/('BP Financier'!$C$16+'BP Financier'!$C$19+'BP Financier'!$D$16+'BP Financier'!$D$19+'BP Financier'!$E$16+'BP Financier'!$E$19+'BP Financier'!$C$22+'BP Financier'!$D$22+'BP Financier'!$E$22+'BP Financier'!$F$22+'BP Financier'!$F$16+'BP Financier'!$F$19+'BP Financier'!$G$16+'BP Financier'!$G$19+'BP Financier'!$G$22))*$V8567*X8567/(1-$W8567)","v":{"v":2762.4987427324054,"d":"2,762"}},{"$f":"'BP Financier'!$G$44*(('BP Financier'!$C$22+'BP Financier'!$D$22+'BP Financier'!$E$22+'BP Financier'!$F$22+'BP Financier'!$G$22)/('BP Financier'!$C$16+'BP Financier'!$C$19+'BP Financier'!$D$16+'BP Financier'!$D$19+'BP Financier'!$E$16+'BP Financier'!$E$19+'BP Financier'!$C$22+'BP Financier'!$D$22+'BP Financier'!$E$22+'BP Financier'!$F$22+'BP Financier'!$F$16+'BP Financier'!$F$19+'BP Financier'!$G$16+'BP Financier'!$G$19+'BP Financier'!$G$22))*$V8567*Y8567/(1-$W8567)","v":{"v":1846.7533031526023,"d":"1,847"}},{"$f":"'BP Financier'!$G$44*(('BP Financier'!$C$22+'BP Financier'!$D$22+'BP Financier'!$E$22+'BP Financier'!$F$22+'BP Financier'!$G$22)/('BP Financier'!$C$16+'BP Financier'!$C$19+'BP Financier'!$D$16+'BP Financier'!$D$19+'BP Financier'!$E$16+'BP Financier'!$E$19+'BP Financier'!$C$22+'BP Financier'!$D$22+'BP Financier'!$E$22+'BP Financier'!$F$22+'BP Financier'!$F$16+'BP Financier'!$F$19+'BP Financier'!$G$16+'BP Financier'!$G$19+'BP Financier'!$G$22))*$V8567*Z8567/(1-$W8567)","v":{"v":14453.51552136789,"d":"14,454"}},{"$f":"'BP Financier'!$G$44*(('BP Financier'!$C$22+'BP Financier'!$D$22+'BP Financier'!$E$22+'BP Financier'!$F$22+'BP Financier'!$G$22)/('BP Financier'!$C$16+'BP Financier'!$C$19+'BP Financier'!$D$16+'BP Financier'!$D$19+'BP Financier'!$E$16+'BP Financier'!$E$19+'BP Financier'!$C$22+'BP Financier'!$D$22+'BP Financier'!$E$22+'BP Financier'!$F$22+'BP Financier'!$F$16+'BP Financier'!$F$19+'BP Financier'!$G$16+'BP Financier'!$G$19+'BP Financier'!$G$22))*$V8567*AA8567/(1-$W8567)","v":{"v":1785.7036071806158,"d":"1,786"}},{"$f":"'BP Financier'!$G$44*(('BP Financier'!$C$22+'BP Financier'!$D$22+'BP Financier'!$E$22+'BP Financier'!$F$22+'BP Financier'!$G$22)/('BP Financier'!$C$16+'BP Financier'!$C$19+'BP Financier'!$D$16+'BP Financier'!$D$19+'BP Financier'!$E$16+'BP Financier'!$E$19+'BP Financier'!$C$22+'BP Financier'!$D$22+'BP Financier'!$E$22+'BP Financier'!$F$22+'BP Financier'!$F$16+'BP Financier'!$F$19+'BP Financier'!$G$16+'BP Financier'!$G$19+'BP Financier'!$G$22))*$V8567*AB8567/(1-$W8567)","v":{"v":854.6957436078159,"d":"855"}},null,{"v":0.006,"d":"0.60%"},{"$f":"Actif!$E$28/100","v":{"v":0.28900000000000003,"d":"28.90%"}},{"$f":"Actif!$E$30/100","v":{"v":0.09050000000000001,"d":"9.05%"}},{"$f":"Actif!$E$31/100","v":{"v":0.0605,"d":"6.05%"}},{"$f":"Actif!$E$32/100","v":{"v":0.47350000000000003,"d":"47.35%"}},{"$f":"Actif!$E$33/100","v":{"v":0.0585,"d":"5.85%"}},{"$f":"Actif!$E$29/100","v":{"v":0.027999999999999997,"d":"2.80%"}}]
[null,"#455",55,2031,"H","A_CAPI",{"v":0.44999999999999996,"d":"0.45"},{"v":0.38999999999999996,"d":"0.39"},0.6,0.6,85,0,{"$f":"ROUND(Primes!$Q$10*V8568,2)","v":0.78},0,{"v":21703.166918041326,"d":"21,703"},{"$f":"'BP Financier'!$G$44*(('BP Financier'!$C$22+'BP Financier'!$D$22+'BP Financier'!$E$22+'BP Financier'!$F$22+'BP Financier'!$G$22)/('BP Financier'!$C$16+'BP Financier'!$C$19+'BP Financier'!$D$16+'BP Financier'!$D$19+'BP Financier'!$E$16+'BP Financier'!$E$19+'BP Financier'!$C$22+'BP Financier'!$D$22+'BP Financier'!$E$22+'BP Financier'!$F$22+'BP Financier'!$F$16+'BP Financier'!$F$19+'BP Financier'!$G$16+'BP Financier'!$G$19+'BP Financier'!$G$22))*$V8568*X8568/(1-$W8568)","v":{"v":2762.4987427324054,"d":"2,762"}},{"$f":"'BP Financier'!$G$44*(('BP Financier'!$C$22+'BP Financier'!$D$22+'BP Financier'!$E$22+'BP Financier'!$F$22+'BP Financier'!$G$22)/('BP Financier'!$C$16+'BP Financier'!$C$19+'BP Financier'!$D$16+'BP Financier'!$D$19+'BP Financier'!$E$16+'BP Financier'!$E$19+'BP Financier'!$C$22+'BP Financier'!$D$22+'BP Financier'!$E$22+'BP Financier'!$F$22+'BP Financier'!$F$16+'BP Financier'!$F$19+'BP Financier'!$G$16+'BP Financier'!$G$19+'BP Financier'!$G$22))*$V8568*Y8568/(1-$W8568)","v":{"v":1846.7533031526023,"d":"1,847"}},{"$f":"'BP Financier'!$G$44*(('BP Financier'!$C$22+'BP Financier'!$D$22+'BP Financier'!$E$22+'BP Financier'!$F$22+'BP Financier'!$G$22)/('BP Financier'!$C$16+'BP Financier'!$C$19+'BP Financier'!$D$16+'BP Financier'!$D$19+'BP Financier'!$E$16+'BP Financier'!$E$19+'BP Financier'!$C$22+'BP Financier'!$D$22+'BP Financier'!$E$22+'BP Financier'!$F$22+'BP Financier'!$F$16+'BP Financier'!$F$19+'BP Financier'!$G$16+'BP Financier'!$G$19+'BP Financier'!$G$22))*$V8568*Z8568/(1-$W8568)","v":{"v":14453.51552136789,"d":"14,454"}},{"$f":"'BP Financier'!$G$44*(('BP Financier'!$C$22+'BP Financier'!$D$22+'BP Financier'!$E$22+'BP Financier'!$F$22+'BP Financier'!$G$22)/('BP Financier'!$C$16+'BP Financier'!$C$19+'BP Financier'!$D$16+'BP Financier'!$D$19+'BP Financier'!$E$16+'BP Financier'!$E$19+'BP Financier'!$C$22+'BP Financier'!$D$22+'BP Financier'!$E$22+'BP Financier'!$F$22+'BP Financier'!$F$16+'BP Financier'!$F$19+'BP Financier'!$G$16+'BP Financier'!$G$19+'BP Financier'!$G$22))*$V8568*AA8568/(1-$W8568)","v":{"v":1785.7036071806158,"d":"1,786"}},{"$f":"'BP Financier'!$G$44*(('BP Financier'!$C$22+'BP Financier'!$D$22+'BP Financier'!$E$22+'BP Financier'!$F$22+'BP Financier'!$G$22)/('BP Financier'!$C$16+'BP Financier'!$C$19+'BP Financier'!$D$16+'BP Financier'!$D$19+'BP Financier'!$E$16+'BP Financier'!$E$19+'BP Financier'!$C$22+'BP Financier'!$D$22+'BP Financier'!$E$22+'BP Financier'!$F$22+'BP Financier'!$F$16+'BP Financier'!$F$19+'BP Financier'!$G$16+'BP Financier'!$G$19+'BP Financier'!$G$22))*$V8568*AB8568/(1-$W8568)","v":{"v":854.6957436078159,"d":"855"}},null,{"v":0.006,"d":"0.60%"},{"$f":"Actif!$E$28/100","v":{"v":0.28900000000000003,"d":"28.90%"}},{"$f":"Actif!$E$30/100","v":{"v":0.09050000000000001,"d":"9.05%"}},{"$f":"Actif!$E$31/100","v":{"v":0.0605,"d":"6.05%"}},{"$f":"Actif!$E$32/100","v":{"v":0.47350000000000003,"d":"47.35%"}},{"$f":"Actif!$E$33/100","v":{"v":0.0585,"d":"5.85%"}},{"$f":"Actif!$E$29/100","v":{"v":0.027999999999999997,"d":"2.80%"}}]
[null,"#456",56,2026,"F","A_CAPI",{"v":0.44999999999999996,"d":"0.45"},{"v":0.38999999999999996,"d":"0.39"},0.6,0.6,85,0,{"$f":"ROUND(Primes!$Q$10*V8569,2)","v":0.78},0,{"v":21703.166918041326,"d":"21,703"},{"$f":"'BP Financier'!$G$44*(('BP Financier'!$C$22+'BP Financier'!$D$22+'BP Financier'!$E$22+'BP Financier'!$F$22+'BP Financier'!$G$22)/('BP Financier'!$C$16+'BP Financier'!$C$19+'BP Financier'!$D$16+'BP Financier'!$D$19+'BP Financier'!$E$16+'BP Financier'!$E$19+'BP Financier'!$C$22+'BP Financier'!$D$22+'BP Financier'!$E$22+'BP Financier'!$F$22+'BP Financier'!$F$16+'BP Financier'!$F$19+'BP Financier'!$G$16+'BP Financier'!$G$19+'BP Financier'!$G$22))*$V8569*X8569/(1-$W8569)","v":{"v":2762.4987427324054,"d":"2,762"}},{"$f":"'BP Financier'!$G$44*(('BP Financier'!$C$22+'BP Financier'!$D$22+'BP Financier'!$E$22+'BP Financier'!$F$22+'BP Financier'!$G$22)/('BP Financier'!$C$16+'BP Financier'!$C$19+'BP Financier'!$D$16+'BP Financier'!$D$19+'BP Financier'!$E$16+'BP Financier'!$E$19+'BP Financier'!$C$22+'BP Financier'!$D$22+'BP Financier'!$E$22+'BP Financier'!$F$22+'BP Financier'!$F$16+'BP Financier'!$F$19+'BP Financier'!$G$16+'BP Financier'!$G$19+'BP Financier'!$G$22))*$V8569*Y8569/(1-$W8569)","v":{"v":1846.7533031526023,"d":"1,847"}},{"$f":"'BP Financier'!$G$44*(('BP Financier'!$C$22+'BP Financier'!$D$22+'BP Financier'!$E$22+'BP Financier'!$F$22+'BP Financier'!$G$22)/('BP Financier'!$C$16+'BP Financier'!$C$19+'BP Financier'!$D$16+'BP Financier'!$D$19+'BP Financier'!$E$16+'BP Financier'!$E$19+'BP Financier'!$C$22+'BP Financier'!$D$22+'BP Financier'!$E$22+'BP Financier'!$F$22+'BP Financier'!$F$16+'BP Financier'!$F$19+'BP Financier'!$G$16+'BP Financier'!$G$19+'BP Financier'!$G$22))*$V8569*Z8569/(1-$W8569)","v":{"v":14453.51552136789,"d":"14,454"}},{"$f":"'BP Financier'!$G$44*(('BP Financier'!$C$22+'BP Financier'!$D$22+'BP Financier'!$E$22+'BP Financier'!$F$22+'BP Financier'!$G$22)/('BP Financier'!$C$16+'BP Financier'!$C$19+'BP Financier'!$D$16+'BP Financier'!$D$19+'BP Financier'!$E$16+'BP Financier'!$E$19+'BP Financier'!$C$22+'BP Financier'!$D$22+'BP Financier'!$E$22+'BP Financier'!$F$22+'BP Financier'!$F$16+'BP Financier'!$F$19+'BP Financier'!$G$16+'BP Financier'!$G$19+'BP Financier'!$G$22))*$V8569*AA8569/(1-$W8569)","v":{"v":1785.7036071806158,"d":"1,786"}},{"$f":"'BP Financier'!$G$44*(('BP Financier'!$C$22+'BP Financier'!$D$22+'BP Financier'!$E$22+'BP Financier'!$F$22+'BP Financier'!$G$22)/('BP Financier'!$C$16+'BP Financier'!$C$19+'BP Financier'!$D$16+'BP Financier'!$D$19+'BP Financier'!$E$16+'BP Financier'!$E$19+'BP Financier'!$C$22+'BP Financier'!$D$22+'BP Financier'!$E$22+'BP Financier'!$F$22+'BP Financier'!$F$16+'BP Financier'!$F$19+'BP Financier'!$G$16+'BP Financier'!$G$19+'BP Financier'!$G$22))*$V8569*AB8569/(1-$W8569)","v":{"v":854.6957436078159,"d":"855"}},null,{"v":0.006,"d":"0.60%"},{"$f":"Actif!$E$28/100","v":{"v":0.28900000000000003,"d":"28.90%"}},{"$f":"Actif!$E$30/100","v":{"v":0.09050000000000001,"d":"9.05%"}},{"$f":"Actif!$E$31/100","v":{"v":0.0605,"d":"6.05%"}},{"$f":"Actif!$E$32/100","v":{"v":0.47350000000000003,"d":"47.35%"}},{"$f":"Actif!$E$33/100","v":{"v":0.0585,"d":"5.85%"}},{"$f":"Actif!$E$29/100","v":{"v":0.027999999999999997,"d":"2.80%"}}]
[null,"#457",56,2028,"F","A_CAPI",{"v":0.44999999999999996,"d":"0.45"},{"v":0.38999999999999996,"d":"0.39"},0.6,0.6,85,0,{"$f":"ROUND(Primes!$Q$10*V8570,2)","v":0.78},0,{"v":21703.166918041326,"d":"21,703"},{"$f":"'BP Financier'!$G$44*(('BP Financier'!$C$22+'BP Financier'!$D$22+'BP Financier'!$E$22+'BP Financier'!$F$22+'BP Financier'!$G$22)/('BP Financier'!$C$16+'BP Financier'!$C$19+'BP Financier'!$D$16+'BP Financier'!$D$19+'BP Financier'!$E$16+'BP Financier'!$E$19+'BP Financier'!$C$22+'BP Financier'!$D$22+'BP Financier'!$E$22+'BP Financier'!$F$22+'BP Financier'!$F$16+'BP Financier'!$F$19+'BP Financier'!$G$16+'BP Financier'!$G$19+'BP Financier'!$G$22))*$V8570*X8570/(1-$W8570)","v":{"v":2762.4987427324054,"d":"2,762"}},{"$f":"'BP Financier'!$G$44*(('BP Financier'!$C$22+'BP Financier'!$D$22+'BP Financier'!$E$22+'BP Financier'!$F$22+'BP Financier'!$G$22)/('BP Financier'!$C$16+'BP Financier'!$C$19+'BP Financier'!$D$16+'BP Financier'!$D$19+'BP Financier'!$E$16+'BP Financier'!$E$19+'BP Financier'!$C$22+'BP Financier'!$D$22+'BP Financier'!$E$22+'BP Financier'!$F$22+'BP Financier'!$F$16+'BP Financier'!$F$19+'BP Financier'!$G$16+'BP Financier'!$G$19+'BP Financier'!$G$22))*$V8570*Y8570/(1-$W8570)","v":{"v":1846.7533031526023,"d":"1,847"}},{"$f":"'BP Financier'!$G$44*(('BP Financier'!$C$22+'BP Financier'!$D$22+'BP Financier'!$E$22+'BP Financier'!$F$22+'BP Financier'!$G$22)/('BP Financier'!$C$16+'BP Financier'!$C$19+'BP Financier'!$D$16+'BP Financier'!$D$19+'BP Financier'!$E$16+'BP Financier'!$E$19+'BP Financier'!$C$22+'BP Financier'!$D$22+'BP Financier'!$E$22+'BP Financier'!$F$22+'BP Financier'!$F$16+'BP Financier'!$F$19+'BP Financier'!$G$16+'BP Financier'!$G$19+'BP Financier'!$G$22))*$V8570*Z8570/(1-$W8570)","v":{"v":14453.51552136789,"d":"14,454"}},{"$f":"'BP Financier'!$G$44*(('BP Financier'!$C$22+'BP Financier'!$D$22+'BP Financier'!$E$22+'BP Financier'!$F$22+'BP Financier'!$G$22)/('BP Financier'!$C$16+'BP Financier'!$C$19+'BP Financier'!$D$16+'BP Financier'!$D$19+'BP Financier'!$E$16+'BP Financier'!$E$19+'BP Financier'!$C$22+'BP Financier'!$D$22+'BP Financier'!$E$22+'BP Financier'!$F$22+'BP Financier'!$F$16+'BP Financier'!$F$19+'BP Financier'!$G$16+'BP Financier'!$G$19+'BP Financier'!$G$22))*$V8570*AA8570/(1-$W8570)","v":{"v":1785.7036071806158,"d":"1,786"}},{"$f":"'BP Financier'!$G$44*(('BP Financier'!$C$22+'BP Financier'!$D$22+'BP Financier'!$E$22+'BP Financier'!$F$22+'BP Financier'!$G$22)/('BP Financier'!$C$16+'BP Financier'!$C$19+'BP Financier'!$D$16+'BP Financier'!$D$19+'BP Financier'!$E$16+'BP Financier'!$E$19+'BP Financier'!$C$22+'BP Financier'!$D$22+'BP Financier'!$E$22+'BP Financier'!$F$22+'BP Financier'!$F$16+'BP Financier'!$F$19+'BP Financier'!$G$16+'BP Financier'!$G$19+'BP Financier'!$G$22))*$V8570*AB8570/(1-$W8570)","v":{"v":854.6957436078159,"d":"855"}},null,{"v":0.006,"d":"0.60%"},{"$f":"Actif!$E$28/100","v":{"v":0.28900000000000003,"d":"28.90%"}},{"$f":"Actif!$E$30/100","v":{"v":0.09050000000000001,"d":"9.05%"}},{"$f":"Actif!$E$31/100","v":{"v":0.0605,"d":"6.05%"}},{"$f":"Actif!$E$32/100","v":{"v":0.47350000000000003,"d":"47.35%"}},{"$f":"Actif!$E$33/100","v":{"v":0.0585,"d":"5.85%"}},{"$f":"Actif!$E$29/100","v":{"v":0.027999999999999997,"d":"2.80%"}}]
[null,"#458",56,2029,"F","A_CAPI",{"v":0.44999999999999996,"d":"0.45"},{"v":0.38999999999999996,"d":"0.39"},0.6,0.6,85,0,{"$f":"ROUND(Primes!$Q$10*V8571,2)","v":0.78},0,{"v":21703.166918041326,"d":"21,703"},{"$f":"'BP Financier'!$G$44*(('BP Financier'!$C$22+'BP Financier'!$D$22+'BP Financier'!$E$22+'BP Financier'!$F$22+'BP Financier'!$G$22)/('BP Financier'!$C$16+'BP Financier'!$C$19+'BP Financier'!$D$16+'BP Financier'!$D$19+'BP Financier'!$E$16+'BP Financier'!$E$19+'BP Financier'!$C$22+'BP Financier'!$D$22+'BP Financier'!$E$22+'BP Financier'!$F$22+'BP Financier'!$F$16+'BP Financier'!$F$19+'BP Financier'!$G$16+'BP Financier'!$G$19+'BP Financier'!$G$22))*$V8571*X8571/(1-$W8571)","v":{"v":2762.4987427324054,"d":"2,762"}},{"$f":"'BP Financier'!$G$44*(('BP Financier'!$C$22+'BP Financier'!$D$22+'BP Financier'!$E$22+'BP Financier'!$F$22+'BP Financier'!$G$22)/('BP Financier'!$C$16+'BP Financier'!$C$19+'BP Financier'!$D$16+'BP Financier'!$D$19+'BP Financier'!$E$16+'BP Financier'!$E$19+'BP Financier'!$C$22+'BP Financier'!$D$22+'BP Financier'!$E$22+'BP Financier'!$F$22+'BP Financier'!$F$16+'BP Financier'!$F$19+'BP Financier'!$G$16+'BP Financier'!$G$19+'BP Financier'!$G$22))*$V8571*Y8571/(1-$W8571)","v":{"v":1846.7533031526023,"d":"1,847"}},{"$f":"'BP Financier'!$G$44*(('BP Financier'!$C$22+'BP Financier'!$D$22+'BP Financier'!$E$22+'BP Financier'!$F$22+'BP Financier'!$G$22)/('BP Financier'!$C$16+'BP Financier'!$C$19+'BP Financier'!$D$16+'BP Financier'!$D$19+'BP Financier'!$E$16+'BP Financier'!$E$19+'BP Financier'!$C$22+'BP Financier'!$D$22+'BP Financier'!$E$22+'BP Financier'!$F$22+'BP Financier'!$F$16+'BP Financier'!$F$19+'BP Financier'!$G$16+'BP Financier'!$G$19+'BP Financier'!$G$22))*$V8571*Z8571/(1-$W8571)","v":{"v":14453.51552136789,"d":"14,454"}},{"$f":"'BP Financier'!$G$44*(('BP Financier'!$C$22+'BP Financier'!$D$22+'BP Financier'!$E$22+'BP Financier'!$F$22+'BP Financier'!$G$22)/('BP Financier'!$C$16+'BP Financier'!$C$19+'BP Financier'!$D$16+'BP Financier'!$D$19+'BP Financier'!$E$16+'BP Financier'!$E$19+'BP Financier'!$C$22+'BP Financier'!$D$22+'BP Financier'!$E$22+'BP Financier'!$F$22+'BP Financier'!$F$16+'BP Financier'!$F$19+'BP Financier'!$G$16+'BP Financier'!$G$19+'BP Financier'!$G$22))*$V8571*AA8571/(1-$W8571)","v":{"v":1785.7036071806158,"d":"1,786"}},{"$f":"'BP Financier'!$G$44*(('BP Financier'!$C$22+'BP Financier'!$D$22+'BP Financier'!$E$22+'BP Financier'!$F$22+'BP Financier'!$G$22)/('BP Financier'!$C$16+'BP Financier'!$C$19+'BP Financier'!$D$16+'BP Financier'!$D$19+'BP Financier'!$E$16+'BP Financier'!$E$19+'BP Financier'!$C$22+'BP Financier'!$D$22+'BP Financier'!$E$22+'BP Financier'!$F$22+'BP Financier'!$F$16+'BP Financier'!$F$19+'BP Financier'!$G$16+'BP Financier'!$G$19+'BP Financier'!$G$22))*$V8571*AB8571/(1-$W8571)","v":{"v":854.6957436078159,"d":"855"}},null,{"v":0.006,"d":"0.60%"},{"$f":"Actif!$E$28/100","v":{"v":0.28900000000000003,"d":"28.90%"}},{"$f":"Actif!$E$30/100","v":{"v":0.09050000000000001,"d":"9.05%"}},{"$f":"Actif!$E$31/100","v":{"v":0.0605,"d":"6.05%"}},{"$f":"Actif!$E$32/100","v":{"v":0.47350000000000003,"d":"47.35%"}},{"$f":"Actif!$E$33/100","v":{"v":0.0585,"d":"5.85%"}},{"$f":"Actif!$E$29/100","v":{"v":0.027999999999999997,"d":"2.80%"}}]
[null,"#459",56,2030,"F","A_CAPI",{"v":0.44999999999999996,"d":"0.45"},{"v":0.38999999999999996,"d":"0.39"},0.6,0.6,85,0,{"$f":"ROUND(Primes!$Q$10*V8572,2)","v":0.78},0,{"v":21703.166918041326,"d":"21,703"},{"$f":"'BP Financier'!$G$44*(('BP Financier'!$C$22+'BP Financier'!$D$22+'BP Financier'!$E$22+'BP Financier'!$F$22+'BP Financier'!$G$22)/('BP Financier'!$C$16+'BP Financier'!$C$19+'BP Financier'!$D$16+'BP Financier'!$D$19+'BP Financier'!$E$16+'BP Financier'!$E$19+'BP Financier'!$C$22+'BP Financier'!$D$22+'BP Financier'!$E$22+'BP Financier'!$F$22+'BP Financier'!$F$16+'BP Financier'!$F$19+'BP Financier'!$G$16+'BP Financier'!$G$19+'BP Financier'!$G$22))*$V8572*X8572/(1-$W8572)","v":{"v":2762.4987427324054,"d":"2,762"}},{"$f":"'BP Financier'!$G$44*(('BP Financier'!$C$22+'BP Financier'!$D$22+'BP Financier'!$E$22+'BP Financier'!$F$22+'BP Financier'!$G$22)/('BP Financier'!$C$16+'BP Financier'!$C$19+'BP Financier'!$D$16+'BP Financier'!$D$19+'BP Financier'!$E$16+'BP Financier'!$E$19+'BP Financier'!$C$22+'BP Financier'!$D$22+'BP Financier'!$E$22+'BP Financier'!$F$22+'BP Financier'!$F$16+'BP Financier'!$F$19+'BP Financier'!$G$16+'BP Financier'!$G$19+'BP Financier'!$G$22))*$V8572*Y8572/(1-$W8572)","v":{"v":1846.7533031526023,"d":"1,847"}},{"$f":"'BP Financier'!$G$44*(('BP Financier'!$C$22+'BP Financier'!$D$22+'BP Financier'!$E$22+'BP Financier'!$F$22+'BP Financier'!$G$22)/('BP Financier'!$C$16+'BP Financier'!$C$19+'BP Financier'!$D$16+'BP Financier'!$D$19+'BP Financier'!$E$16+'BP Financier'!$E$19+'BP Financier'!$C$22+'BP Financier'!$D$22+'BP Financier'!$E$22+'BP Financier'!$F$22+'BP Financier'!$F$16+'BP Financier'!$F$19+'BP Financier'!$G$16+'BP Financier'!$G$19+'BP Financier'!$G$22))*$V8572*Z8572/(1-$W8572)","v":{"v":14453.51552136789,"d":"14,454"}},{"$f":"'BP Financier'!$G$44*(('BP Financier'!$C$22+'BP Financier'!$D$22+'BP Financier'!$E$22+'BP Financier'!$F$22+'BP Financier'!$G$22)/('BP Financier'!$C$16+'BP Financier'!$C$19+'BP Financier'!$D$16+'BP Financier'!$D$19+'BP Financier'!$E$16+'BP Financier'!$E$19+'BP Financier'!$C$22+'BP Financier'!$D$22+'BP Financier'!$E$22+'BP Financier'!$F$22+'BP Financier'!$F$16+'BP Financier'!$F$19+'BP Financier'!$G$16+'BP Financier'!$G$19+'BP Financier'!$G$22))*$V8572*AA8572/(1-$W8572)","v":{"v":1785.7036071806158,"d":"1,786"}},{"$f":"'BP Financier'!$G$44*(('BP Financier'!$C$22+'BP Financier'!$D$22+'BP Financier'!$E$22+'BP Financier'!$F$22+'BP Financier'!$G$22)/('BP Financier'!$C$16+'BP Financier'!$C$19+'BP Financier'!$D$16+'BP Financier'!$D$19+'BP Financier'!$E$16+'BP Financier'!$E$19+'BP Financier'!$C$22+'BP Financier'!$D$22+'BP Financier'!$E$22+'BP Financier'!$F$22+'BP Financier'!$F$16+'BP Financier'!$F$19+'BP Financier'!$G$16+'BP Financier'!$G$19+'BP Financier'!$G$22))*$V8572*AB8572/(1-$W8572)","v":{"v":854.6957436078159,"d":"855"}},null,{"v":0.006,"d":"0.60%"},{"$f":"Actif!$E$28/100","v":{"v":0.28900000000000003,"d":"28.90%"}},{"$f":"Actif!$E$30/100","v":{"v":0.09050000000000001,"d":"9.05%"}},{"$f":"Actif!$E$31/100","v":{"v":0.0605,"d":"6.05%"}},{"$f":"Actif!$E$32/100","v":{"v":0.47350000000000003,"d":"47.35%"}},{"$f":"Actif!$E$33/100","v":{"v":0.0585,"d":"5.85%"}},{"$f":"Actif!$E$29/100","v":{"v":0.027999999999999997,"d":"2.80%"}}]
[null,"#460",56,2031,"F","A_CAPI",{"v":0.44999999999999996,"d":"0.45"},{"v":0.38999999999999996,"d":"0.39"},0.6,0.6,85,0,{"$f":"ROUND(Primes!$Q$10*V8573,2)","v":0.78},0,{"v":21703.166918041326,"d":"21,703"},{"$f":"'BP Financier'!$G$44*(('BP Financier'!$C$22+'BP Financier'!$D$22+'BP Financier'!$E$22+'BP Financier'!$F$22+'BP Financier'!$G$22)/('BP Financier'!$C$16+'BP Financier'!$C$19+'BP Financier'!$D$16+'BP Financier'!$D$19+'BP Financier'!$E$16+'BP Financier'!$E$19+'BP Financier'!$C$22+'BP Financier'!$D$22+'BP Financier'!$E$22+'BP Financier'!$F$22+'BP Financier'!$F$16+'BP Financier'!$F$19+'BP Financier'!$G$16+'BP Financier'!$G$19+'BP Financier'!$G$22))*$V8573*X8573/(1-$W8573)","v":{"v":2762.4987427324054,"d":"2,762"}},{"$f":"'BP Financier'!$G$44*(('BP Financier'!$C$22+'BP Financier'!$D$22+'BP Financier'!$E$22+'BP Financier'!$F$22+'BP Financier'!$G$22)/('BP Financier'!$C$16+'BP Financier'!$C$19+'BP Financier'!$D$16+'BP Financier'!$D$19+'BP Financier'!$E$16+'BP Financier'!$E$19+'BP Financier'!$C$22+'BP Financier'!$D$22+'BP Financier'!$E$22+'BP Financier'!$F$22+'BP Financier'!$F$16+'BP Financier'!$F$19+'BP Financier'!$G$16+'BP Financier'!$G$19+'BP Financier'!$G$22))*$V8573*Y8573/(1-$W8573)","v":{"v":1846.7533031526023,"d":"1,847"}},{"$f":"'BP Financier'!$G$44*(('BP Financier'!$C$22+'BP Financier'!$D$22+'BP Financier'!$E$22+'BP Financier'!$F$22+'BP Financier'!$G$22)/('BP Financier'!$C$16+'BP Financier'!$C$19+'BP Financier'!$D$16+'BP Financier'!$D$19+'BP Financier'!$E$16+'BP Financier'!$E$19+'BP Financier'!$C$22+'BP Financier'!$D$22+'BP Financier'!$E$22+'BP Financier'!$F$22+'BP Financier'!$F$16+'BP Financier'!$F$19+'BP Financier'!$G$16+'BP Financier'!$G$19+'BP Financier'!$G$22))*$V8573*Z8573/(1-$W8573)","v":{"v":14453.51552136789,"d":"14,454"}},{"$f":"'BP Financier'!$G$44*(('BP Financier'!$C$22+'BP Financier'!$D$22+'BP Financier'!$E$22+'BP Financier'!$F$22+'BP Financier'!$G$22)/('BP Financier'!$C$16+'BP Financier'!$C$19+'BP Financier'!$D$16+'BP Financier'!$D$19+'BP Financier'!$E$16+'BP Financier'!$E$19+'BP Financier'!$C$22+'BP Financier'!$D$22+'BP Financier'!$E$22+'BP Financier'!$F$22+'BP Financier'!$F$16+'BP Financier'!$F$19+'BP Financier'!$G$16+'BP Financier'!$G$19+'BP Financier'!$G$22))*$V8573*AA8573/(1-$W8573)","v":{"v":1785.7036071806158,"d":"1,786"}},{"$f":"'BP Financier'!$G$44*(('BP Financier'!$C$22+'BP Financier'!$D$22+'BP Financier'!$E$22+'BP Financier'!$F$22+'BP Financier'!$G$22)/('BP Financier'!$C$16+'BP Financier'!$C$19+'BP Financier'!$D$16+'BP Financier'!$D$19+'BP Financier'!$E$16+'BP Financier'!$E$19+'BP Financier'!$C$22+'BP Financier'!$D$22+'BP Financier'!$E$22+'BP Financier'!$F$22+'BP Financier'!$F$16+'BP Financier'!$F$19+'BP Financier'!$G$16+'BP Financier'!$G$19+'BP Financier'!$G$22))*$V8573*AB8573/(1-$W8573)","v":{"v":854.6957436078159,"d":"855"}},null,{"v":0.006,"d":"0.60%"},{"$f":"Actif!$E$28/100","v":{"v":0.28900000000000003,"d":"28.90%"}},{"$f":"Actif!$E$30/100","v":{"v":0.09050000000000001,"d":"9.05%"}},{"$f":"Actif!$E$31/100","v":{"v":0.0605,"d":"6.05%"}},{"$f":"Actif!$E$32/100","v":{"v":0.47350000000000003,"d":"47.35%"}},{"$f":"Actif!$E$33/100","v":{"v":0.0585,"d":"5.85%"}},{"$f":"Actif!$E$29/100","v":{"v":0.027999999999999997,"d":"2.80%"}}]
[null,"#461",57,2026,"H","A_CAPI",{"v":0.44999999999999996,"d":"0.45"},{"v":0.38999999999999996,"d":"0.39"},0.6,0.6,85,0,{"$f":"ROUND(Primes!$Q$10*V8574,2)","v":0.78},0,{"v":21703.166918041326,"d":"21,703"},{"$f":"'BP Financier'!$G$44*(('BP Financier'!$C$22+'BP Financier'!$D$22+'BP Financier'!$E$22+'BP Financier'!$F$22+'BP Financier'!$G$22)/('BP Financier'!$C$16+'BP Financier'!$C$19+'BP Financier'!$D$16+'BP Financier'!$D$19+'BP Financier'!$E$16+'BP Financier'!$E$19+'BP Financier'!$C$22+'BP Financier'!$D$22+'BP Financier'!$E$22+'BP Financier'!$F$22+'BP Financier'!$F$16+'BP Financier'!$F$19+'BP Financier'!$G$16+'BP Financier'!$G$19+'BP Financier'!$G$22))*$V8574*X8574/(1-$W8574)","v":{"v":2762.4987427324054,"d":"2,762"}},{"$f":"'BP Financier'!$G$44*(('BP Financier'!$C$22+'BP Financier'!$D$22+'BP Financier'!$E$22+'BP Financier'!$F$22+'BP Financier'!$G$22)/('BP Financier'!$C$16+'BP Financier'!$C$19+'BP Financier'!$D$16+'BP Financier'!$D$19+'BP Financier'!$E$16+'BP Financier'!$E$19+'BP Financier'!$C$22+'BP Financier'!$D$22+'BP Financier'!$E$22+'BP Financier'!$F$22+'BP Financier'!$F$16+'BP Financier'!$F$19+'BP Financier'!$G$16+'BP Financier'!$G$19+'BP Financier'!$G$22))*$V8574*Y8574/(1-$W8574)","v":{"v":1846.7533031526023,"d":"1,847"}},{"$f":"'BP Financier'!$G$44*(('BP Financier'!$C$22+'BP Financier'!$D$22+'BP Financier'!$E$22+'BP Financier'!$F$22+'BP Financier'!$G$22)/('BP Financier'!$C$16+'BP Financier'!$C$19+'BP Financier'!$D$16+'BP Financier'!$D$19+'BP Financier'!$E$16+'BP Financier'!$E$19+'BP Financier'!$C$22+'BP Financier'!$D$22+'BP Financier'!$E$22+'BP Financier'!$F$22+'BP Financier'!$F$16+'BP Financier'!$F$19+'BP Financier'!$G$16+'BP Financier'!$G$19+'BP Financier'!$G$22))*$V8574*Z8574/(1-$W8574)","v":{"v":14453.51552136789,"d":"14,454"}},{"$f":"'BP Financier'!$G$44*(('BP Financier'!$C$22+'BP Financier'!$D$22+'BP Financier'!$E$22+'BP Financier'!$F$22+'BP Financier'!$G$22)/('BP Financier'!$C$16+'BP Financier'!$C$19+'BP Financier'!$D$16+'BP Financier'!$D$19+'BP Financier'!$E$16+'BP Financier'!$E$19+'BP Financier'!$C$22+'BP Financier'!$D$22+'BP Financier'!$E$22+'BP Financier'!$F$22+'BP Financier'!$F$16+'BP Financier'!$F$19+'BP Financier'!$G$16+'BP Financier'!$G$19+'BP Financier'!$G$22))*$V8574*AA8574/(1-$W8574)","v":{"v":1785.7036071806158,"d":"1,786"}},{"$f":"'BP Financier'!$G$44*(('BP Financier'!$C$22+'BP Financier'!$D$22+'BP Financier'!$E$22+'BP Financier'!$F$22+'BP Financier'!$G$22)/('BP Financier'!$C$16+'BP Financier'!$C$19+'BP Financier'!$D$16+'BP Financier'!$D$19+'BP Financier'!$E$16+'BP Financier'!$E$19+'BP Financier'!$C$22+'BP Financier'!$D$22+'BP Financier'!$E$22+'BP Financier'!$F$22+'BP Financier'!$F$16+'BP Financier'!$F$19+'BP Financier'!$G$16+'BP Financier'!$G$19+'BP Financier'!$G$22))*$V8574*AB8574/(1-$W8574)","v":{"v":854.6957436078159,"d":"855"}},null,{"v":0.006,"d":"0.60%"},{"$f":"Actif!$E$28/100","v":{"v":0.28900000000000003,"d":"28.90%"}},{"$f":"Actif!$E$30/100","v":{"v":0.09050000000000001,"d":"9.05%"}},{"$f":"Actif!$E$31/100","v":{"v":0.0605,"d":"6.05%"}},{"$f":"Actif!$E$32/100","v":{"v":0.47350000000000003,"d":"47.35%"}},{"$f":"Actif!$E$33/100","v":{"v":0.0585,"d":"5.85%"}},{"$f":"Actif!$E$29/100","v":{"v":0.027999999999999997,"d":"2.80%"}}]
[null,"#462",57,2028,"H","A_CAPI",{"v":0.44999999999999996,"d":"0.45"},{"v":0.38999999999999996,"d":"0.39"},0.6,0.6,85,0,{"$f":"ROUND(Primes!$Q$10*V8575,2)","v":0.78},0,{"v":21703.166918041326,"d":"21,703"},{"$f":"'BP Financier'!$G$44*(('BP Financier'!$C$22+'BP Financier'!$D$22+'BP Financier'!$E$22+'BP Financier'!$F$22+'BP Financier'!$G$22)/('BP Financier'!$C$16+'BP Financier'!$C$19+'BP Financier'!$D$16+'BP Financier'!$D$19+'BP Financier'!$E$16+'BP Financier'!$E$19+'BP Financier'!$C$22+'BP Financier'!$D$22+'BP Financier'!$E$22+'BP Financier'!$F$22+'BP Financier'!$F$16+'BP Financier'!$F$19+'BP Financier'!$G$16+'BP Financier'!$G$19+'BP Financier'!$G$22))*$V8575*X8575/(1-$W8575)","v":{"v":2762.4987427324054,"d":"2,762"}},{"$f":"'BP Financier'!$G$44*(('BP Financier'!$C$22+'BP Financier'!$D$22+'BP Financier'!$E$22+'BP Financier'!$F$22+'BP Financier'!$G$22)/('BP Financier'!$C$16+'BP Financier'!$C$19+'BP Financier'!$D$16+'BP Financier'!$D$19+'BP Financier'!$E$16+'BP Financier'!$E$19+'BP Financier'!$C$22+'BP Financier'!$D$22+'BP Financier'!$E$22+'BP Financier'!$F$22+'BP Financier'!$F$16+'BP Financier'!$F$19+'BP Financier'!$G$16+'BP Financier'!$G$19+'BP Financier'!$G$22))*$V8575*Y8575/(1-$W8575)","v":{"v":1846.7533031526023,"d":"1,847"}},{"$f":"'BP Financier'!$G$44*(('BP Financier'!$C$22+'BP Financier'!$D$22+'BP Financier'!$E$22+'BP Financier'!$F$22+'BP Financier'!$G$22)/('BP Financier'!$C$16+'BP Financier'!$C$19+'BP Financier'!$D$16+'BP Financier'!$D$19+'BP Financier'!$E$16+'BP Financier'!$E$19+'BP Financier'!$C$22+'BP Financier'!$D$22+'BP Financier'!$E$22+'BP Financier'!$F$22+'BP Financier'!$F$16+'BP Financier'!$F$19+'BP Financier'!$G$16+'BP Financier'!$G$19+'BP Financier'!$G$22))*$V8575*Z8575/(1-$W8575)","v":{"v":14453.51552136789,"d":"14,454"}},{"$f":"'BP Financier'!$G$44*(('BP Financier'!$C$22+'BP Financier'!$D$22+'BP Financier'!$E$22+'BP Financier'!$F$22+'BP Financier'!$G$22)/('BP Financier'!$C$16+'BP Financier'!$C$19+'BP Financier'!$D$16+'BP Financier'!$D$19+'BP Financier'!$E$16+'BP Financier'!$E$19+'BP Financier'!$C$22+'BP Financier'!$D$22+'BP Financier'!$E$22+'BP Financier'!$F$22+'BP Financier'!$F$16+'BP Financier'!$F$19+'BP Financier'!$G$16+'BP Financier'!$G$19+'BP Financier'!$G$22))*$V8575*AA8575/(1-$W8575)","v":{"v":1785.7036071806158,"d":"1,786"}},{"$f":"'BP Financier'!$G$44*(('BP Financier'!$C$22+'BP Financier'!$D$22+'BP Financier'!$E$22+'BP Financier'!$F$22+'BP Financier'!$G$22)/('BP Financier'!$C$16+'BP Financier'!$C$19+'BP Financier'!$D$16+'BP Financier'!$D$19+'BP Financier'!$E$16+'BP Financier'!$E$19+'BP Financier'!$C$22+'BP Financier'!$D$22+'BP Financier'!$E$22+'BP Financier'!$F$22+'BP Financier'!$F$16+'BP Financier'!$F$19+'BP Financier'!$G$16+'BP Financier'!$G$19+'BP Financier'!$G$22))*$V8575*AB8575/(1-$W8575)","v":{"v":854.6957436078159,"d":"855"}},null,{"v":0.006,"d":"0.60%"},{"$f":"Actif!$E$28/100","v":{"v":0.28900000000000003,"d":"28.90%"}},{"$f":"Actif!$E$30/100","v":{"v":0.09050000000000001,"d":"9.05%"}},{"$f":"Actif!$E$31/100","v":{"v":0.0605,"d":"6.05%"}},{"$f":"Actif!$E$32/100","v":{"v":0.47350000000000003,"d":"47.35%"}},{"$f":"Actif!$E$33/100","v":{"v":0.0585,"d":"5.85%"}},{"$f":"Actif!$E$29/100","v":{"v":0.027999999999999997,"d":"2.80%"}}]
[null,"#463",57,2029,"H","A_CAPI",{"v":0.44999999999999996,"d":"0.45"},{"v":0.38999999999999996,"d":"0.39"},0.6,0.6,85,0,{"$f":"ROUND(Primes!$Q$10*V8576,2)","v":0.78},0,{"v":21703.166918041326,"d":"21,703"},{"$f":"'BP Financier'!$G$44*(('BP Financier'!$C$22+'BP Financier'!$D$22+'BP Financier'!$E$22+'BP Financier'!$F$22+'BP Financier'!$G$22)/('BP Financier'!$C$16+'BP Financier'!$C$19+'BP Financier'!$D$16+'BP Financier'!$D$19+'BP Financier'!$E$16+'BP Financier'!$E$19+'BP Financier'!$C$22+'BP Financier'!$D$22+'BP Financier'!$E$22+'BP Financier'!$F$22+'BP Financier'!$F$16+'BP Financier'!$F$19+'BP Financier'!$G$16+'BP Financier'!$G$19+'BP Financier'!$G$22))*$V8576*X8576/(1-$W8576)","v":{"v":2762.4987427324054,"d":"2,762"}},{"$f":"'BP Financier'!$G$44*(('BP Financier'!$C$22+'BP Financier'!$D$22+'BP Financier'!$E$22+'BP Financier'!$F$22+'BP Financier'!$G$22)/('BP Financier'!$C$16+'BP Financier'!$C$19+'BP Financier'!$D$16+'BP Financier'!$D$19+'BP Financier'!$E$16+'BP Financier'!$E$19+'BP Financier'!$C$22+'BP Financier'!$D$22+'BP Financier'!$E$22+'BP Financier'!$F$22+'BP Financier'!$F$16+'BP Financier'!$F$19+'BP Financier'!$G$16+'BP Financier'!$G$19+'BP Financier'!$G$22))*$V8576*Y8576/(1-$W8576)","v":{"v":1846.7533031526023,"d":"1,847"}},{"$f":"'BP Financier'!$G$44*(('BP Financier'!$C$22+'BP Financier'!$D$22+'BP Financier'!$E$22+'BP Financier'!$F$22+'BP Financier'!$G$22)/('BP Financier'!$C$16+'BP Financier'!$C$19+'BP Financier'!$D$16+'BP Financier'!$D$19+'BP Financier'!$E$16+'BP Financier'!$E$19+'BP Financier'!$C$22+'BP Financier'!$D$22+'BP Financier'!$E$22+'BP Financier'!$F$22+'BP Financier'!$F$16+'BP Financier'!$F$19+'BP Financier'!$G$16+'BP Financier'!$G$19+'BP Financier'!$G$22))*$V8576*Z8576/(1-$W8576)","v":{"v":14453.51552136789,"d":"14,454"}},{"$f":"'BP Financier'!$G$44*(('BP Financier'!$C$22+'BP Financier'!$D$22+'BP Financier'!$E$22+'BP Financier'!$F$22+'BP Financier'!$G$22)/('BP Financier'!$C$16+'BP Financier'!$C$19+'BP Financier'!$D$16+'BP Financier'!$D$19+'BP Financier'!$E$16+'BP Financier'!$E$19+'BP Financier'!$C$22+'BP Financier'!$D$22+'BP Financier'!$E$22+'BP Financier'!$F$22+'BP Financier'!$F$16+'BP Financier'!$F$19+'BP Financier'!$G$16+'BP Financier'!$G$19+'BP Financier'!$G$22))*$V8576*AA8576/(1-$W8576)","v":{"v":1785.7036071806158,"d":"1,786"}},{"$f":"'BP Financier'!$G$44*(('BP Financier'!$C$22+'BP Financier'!$D$22+'BP Financier'!$E$22+'BP Financier'!$F$22+'BP Financier'!$G$22)/('BP Financier'!$C$16+'BP Financier'!$C$19+'BP Financier'!$D$16+'BP Financier'!$D$19+'BP Financier'!$E$16+'BP Financier'!$E$19+'BP Financier'!$C$22+'BP Financier'!$D$22+'BP Financier'!$E$22+'BP Financier'!$F$22+'BP Financier'!$F$16+'BP Financier'!$F$19+'BP Financier'!$G$16+'BP Financier'!$G$19+'BP Financier'!$G$22))*$V8576*AB8576/(1-$W8576)","v":{"v":854.6957436078159,"d":"855"}},null,{"v":0.006,"d":"0.60%"},{"$f":"Actif!$E$28/100","v":{"v":0.28900000000000003,"d":"28.90%"}},{"$f":"Actif!$E$30/100","v":{"v":0.09050000000000001,"d":"9.05%"}},{"$f":"Actif!$E$31/100","v":{"v":0.0605,"d":"6.05%"}},{"$f":"Actif!$E$32/100","v":{"v":0.47350000000000003,"d":"47.35%"}},{"$f":"Actif!$E$33/100","v":{"v":0.0585,"d":"5.85%"}},{"$f":"Actif!$E$29/100","v":{"v":0.027999999999999997,"d":"2.80%"}}]
[null,"#464",57,2030,"H","A_CAPI",{"v":0.44999999999999996,"d":"0.45"},{"v":0.38999999999999996,"d":"0.39"},0.6,0.6,85,0,{"$f":"ROUND(Primes!$Q$10*V8577,2)","v":0.78},0,{"v":21703.166918041326,"d":"21,703"},{"$f":"'BP Financier'!$G$44*(('BP Financier'!$C$22+'BP Financier'!$D$22+'BP Financier'!$E$22+'BP Financier'!$F$22+'BP Financier'!$G$22)/('BP Financier'!$C$16+'BP Financier'!$C$19+'BP Financier'!$D$16+'BP Financier'!$D$19+'BP Financier'!$E$16+'BP Financier'!$E$19+'BP Financier'!$C$22+'BP Financier'!$D$22+'BP Financier'!$E$22+'BP Financier'!$F$22+'BP Financier'!$F$16+'BP Financier'!$F$19+'BP Financier'!$G$16+'BP Financier'!$G$19+'BP Financier'!$G$22))*$V8577*X8577/(1-$W8577)","v":{"v":2762.4987427324054,"d":"2,762"}},{"$f":"'BP Financier'!$G$44*(('BP Financier'!$C$22+'BP Financier'!$D$22+'BP Financier'!$E$22+'BP Financier'!$F$22+'BP Financier'!$G$22)/('BP Financier'!$C$16+'BP Financier'!$C$19+'BP Financier'!$D$16+'BP Financier'!$D$19+'BP Financier'!$E$16+'BP Financier'!$E$19+'BP Financier'!$C$22+'BP Financier'!$D$22+'BP Financier'!$E$22+'BP Financier'!$F$22+'BP Financier'!$F$16+'BP Financier'!$F$19+'BP Financier'!$G$16+'BP Financier'!$G$19+'BP Financier'!$G$22))*$V8577*Y8577/(1-$W8577)","v":{"v":1846.7533031526023,"d":"1,847"}},{"$f":"'BP Financier'!$G$44*(('BP Financier'!$C$22+'BP Financier'!$D$22+'BP Financier'!$E$22+'BP Financier'!$F$22+'BP Financier'!$G$22)/('BP Financier'!$C$16+'BP Financier'!$C$19+'BP Financier'!$D$16+'BP Financier'!$D$19+'BP Financier'!$E$16+'BP Financier'!$E$19+'BP Financier'!$C$22+'BP Financier'!$D$22+'BP Financier'!$E$22+'BP Financier'!$F$22+'BP Financier'!$F$16+'BP Financier'!$F$19+'BP Financier'!$G$16+'BP Financier'!$G$19+'BP Financier'!$G$22))*$V8577*Z8577/(1-$W8577)","v":{"v":14453.51552136789,"d":"14,454"}},{"$f":"'BP Financier'!$G$44*(('BP Financier'!$C$22+'BP Financier'!$D$22+'BP Financier'!$E$22+'BP Financier'!$F$22+'BP Financier'!$G$22)/('BP Financier'!$C$16+'BP Financier'!$C$19+'BP Financier'!$D$16+'BP Financier'!$D$19+'BP Financier'!$E$16+'BP Financier'!$E$19+'BP Financier'!$C$22+'BP Financier'!$D$22+'BP Financier'!$E$22+'BP Financier'!$F$22+'BP Financier'!$F$16+'BP Financier'!$F$19+'BP Financier'!$G$16+'BP Financier'!$G$19+'BP Financier'!$G$22))*$V8577*AA8577/(1-$W8577)","v":{"v":1785.7036071806158,"d":"1,786"}},{"$f":"'BP Financier'!$G$44*(('BP Financier'!$C$22+'BP Financier'!$D$22+'BP Financier'!$E$22+'BP Financier'!$F$22+'BP Financier'!$G$22)/('BP Financier'!$C$16+'BP Financier'!$C$19+'BP Financier'!$D$16+'BP Financier'!$D$19+'BP Financier'!$E$16+'BP Financier'!$E$19+'BP Financier'!$C$22+'BP Financier'!$D$22+'BP Financier'!$E$22+'BP Financier'!$F$22+'BP Financier'!$F$16+'BP Financier'!$F$19+'BP Financier'!$G$16+'BP Financier'!$G$19+'BP Financier'!$G$22))*$V8577*AB8577/(1-$W8577)","v":{"v":854.6957436078159,"d":"855"}},null,{"v":0.006,"d":"0.60%"},{"$f":"Actif!$E$28/100","v":{"v":0.28900000000000003,"d":"28.90%"}},{"$f":"Actif!$E$30/100","v":{"v":0.09050000000000001,"d":"9.05%"}},{"$f":"Actif!$E$31/100","v":{"v":0.0605,"d":"6.05%"}},{"$f":"Actif!$E$32/100","v":{"v":0.47350000000000003,"d":"47.35%"}},{"$f":"Actif!$E$33/100","v":{"v":0.0585,"d":"5.85%"}},{"$f":"Actif!$E$29/100","v":{"v":0.027999999999999997,"d":"2.80%"}}]
[null,"#465",57,2031,"H","A_CAPI",{"v":0.44999999999999996,"d":"0.45"},{"v":0.38999999999999996,"d":"0.39"},0.6,0.6,85,0,{"$f":"ROUND(Primes!$Q$10*V8578,2)","v":0.78},0,{"v":21703.166918041326,"d":"21,703"},{"$f":"'BP Financier'!$G$44*(('BP Financier'!$C$22+'BP Financier'!$D$22+'BP Financier'!$E$22+'BP Financier'!$F$22+'BP Financier'!$G$22)/('BP Financier'!$C$16+'BP Financier'!$C$19+'BP Financier'!$D$16+'BP Financier'!$D$19+'BP Financier'!$E$16+'BP Financier'!$E$19+'BP Financier'!$C$22+'BP Financier'!$D$22+'BP Financier'!$E$22+'BP Financier'!$F$22+'BP Financier'!$F$16+'BP Financier'!$F$19+'BP Financier'!$G$16+'BP Financier'!$G$19+'BP Financier'!$G$22))*$V8578*X8578/(1-$W8578)","v":{"v":2762.4987427324054,"d":"2,762"}},{"$f":"'BP Financier'!$G$44*(('BP Financier'!$C$22+'BP Financier'!$D$22+'BP Financier'!$E$22+'BP Financier'!$F$22+'BP Financier'!$G$22)/('BP Financier'!$C$16+'BP Financier'!$C$19+'BP Financier'!$D$16+'BP Financier'!$D$19+'BP Financier'!$E$16+'BP Financier'!$E$19+'BP Financier'!$C$22+'BP Financier'!$D$22+'BP Financier'!$E$22+'BP Financier'!$F$22+'BP Financier'!$F$16+'BP Financier'!$F$19+'BP Financier'!$G$16+'BP Financier'!$G$19+'BP Financier'!$G$22))*$V8578*Y8578/(1-$W8578)","v":{"v":1846.7533031526023,"d":"1,847"}},{"$f":"'BP Financier'!$G$44*(('BP Financier'!$C$22+'BP Financier'!$D$22+'BP Financier'!$E$22+'BP Financier'!$F$22+'BP Financier'!$G$22)/('BP Financier'!$C$16+'BP Financier'!$C$19+'BP Financier'!$D$16+'BP Financier'!$D$19+'BP Financier'!$E$16+'BP Financier'!$E$19+'BP Financier'!$C$22+'BP Financier'!$D$22+'BP Financier'!$E$22+'BP Financier'!$F$22+'BP Financier'!$F$16+'BP Financier'!$F$19+'BP Financier'!$G$16+'BP Financier'!$G$19+'BP Financier'!$G$22))*$V8578*Z8578/(1-$W8578)","v":{"v":14453.51552136789,"d":"14,454"}},{"$f":"'BP Financier'!$G$44*(('BP Financier'!$C$22+'BP Financier'!$D$22+'BP Financier'!$E$22+'BP Financier'!$F$22+'BP Financier'!$G$22)/('BP Financier'!$C$16+'BP Financier'!$C$19+'BP Financier'!$D$16+'BP Financier'!$D$19+'BP Financier'!$E$16+'BP Financier'!$E$19+'BP Financier'!$C$22+'BP Financier'!$D$22+'BP Financier'!$E$22+'BP Financier'!$F$22+'BP Financier'!$F$16+'BP Financier'!$F$19+'BP Financier'!$G$16+'BP Financier'!$G$19+'BP Financier'!$G$22))*$V8578*AA8578/(1-$W8578)","v":{"v":1785.7036071806158,"d":"1,786"}},{"$f":"'BP Financier'!$G$44*(('BP Financier'!$C$22+'BP Financier'!$D$22+'BP Financier'!$E$22+'BP Financier'!$F$22+'BP Financier'!$G$22)/('BP Financier'!$C$16+'BP Financier'!$C$19+'BP Financier'!$D$16+'BP Financier'!$D$19+'BP Financier'!$E$16+'BP Financier'!$E$19+'BP Financier'!$C$22+'BP Financier'!$D$22+'BP Financier'!$E$22+'BP Financier'!$F$22+'BP Financier'!$F$16+'BP Financier'!$F$19+'BP Financier'!$G$16+'BP Financier'!$G$19+'BP Financier'!$G$22))*$V8578*AB8578/(1-$W8578)","v":{"v":854.6957436078159,"d":"855"}},null,{"v":0.006,"d":"0.60%"},{"$f":"Actif!$E$28/100","v":{"v":0.28900000000000003,"d":"28.90%"}},{"$f":"Actif!$E$30/100","v":{"v":0.09050000000000001,"d":"9.05%"}},{"$f":"Actif!$E$31/100","v":{"v":0.0605,"d":"6.05%"}},{"$f":"Actif!$E$32/100","v":{"v":0.47350000000000003,"d":"47.35%"}},{"$f":"Actif!$E$33/100","v":{"v":0.0585,"d":"5.85%"}},{"$f":"Actif!$E$29/100","v":{"v":0.027999999999999997,"d":"2.80%"}}]
[null,"#466",58,2026,"H","A_CAPI",{"v":0.44999999999999996,"d":"0.45"},{"v":0.38999999999999996,"d":"0.39"},0.6,0.6,85,0,{"$f":"ROUND(Primes!$Q$10*V8579,2)","v":0.78},0,{"v":21703.166918041326,"d":"21,703"},{"$f":"'BP Financier'!$G$44*(('BP Financier'!$C$22+'BP Financier'!$D$22+'BP Financier'!$E$22+'BP Financier'!$F$22+'BP Financier'!$G$22)/('BP Financier'!$C$16+'BP Financier'!$C$19+'BP Financier'!$D$16+'BP Financier'!$D$19+'BP Financier'!$E$16+'BP Financier'!$E$19+'BP Financier'!$C$22+'BP Financier'!$D$22+'BP Financier'!$E$22+'BP Financier'!$F$22+'BP Financier'!$F$16+'BP Financier'!$F$19+'BP Financier'!$G$16+'BP Financier'!$G$19+'BP Financier'!$G$22))*$V8579*X8579/(1-$W8579)","v":{"v":2762.4987427324054,"d":"2,762"}},{"$f":"'BP Financier'!$G$44*(('BP Financier'!$C$22+'BP Financier'!$D$22+'BP Financier'!$E$22+'BP Financier'!$F$22+'BP Financier'!$G$22)/('BP Financier'!$C$16+'BP Financier'!$C$19+'BP Financier'!$D$16+'BP Financier'!$D$19+'BP Financier'!$E$16+'BP Financier'!$E$19+'BP Financier'!$C$22+'BP Financier'!$D$22+'BP Financier'!$E$22+'BP Financier'!$F$22+'BP Financier'!$F$16+'BP Financier'!$F$19+'BP Financier'!$G$16+'BP Financier'!$G$19+'BP Financier'!$G$22))*$V8579*Y8579/(1-$W8579)","v":{"v":1846.7533031526023,"d":"1,847"}},{"$f":"'BP Financier'!$G$44*(('BP Financier'!$C$22+'BP Financier'!$D$22+'BP Financier'!$E$22+'BP Financier'!$F$22+'BP Financier'!$G$22)/('BP Financier'!$C$16+'BP Financier'!$C$19+'BP Financier'!$D$16+'BP Financier'!$D$19+'BP Financier'!$E$16+'BP Financier'!$E$19+'BP Financier'!$C$22+'BP Financier'!$D$22+'BP Financier'!$E$22+'BP Financier'!$F$22+'BP Financier'!$F$16+'BP Financier'!$F$19+'BP Financier'!$G$16+'BP Financier'!$G$19+'BP Financier'!$G$22))*$V8579*Z8579/(1-$W8579)","v":{"v":14453.51552136789,"d":"14,454"}},{"$f":"'BP Financier'!$G$44*(('BP Financier'!$C$22+'BP Financier'!$D$22+'BP Financier'!$E$22+'BP Financier'!$F$22+'BP Financier'!$G$22)/('BP Financier'!$C$16+'BP Financier'!$C$19+'BP Financier'!$D$16+'BP Financier'!$D$19+'BP Financier'!$E$16+'BP Financier'!$E$19+'BP Financier'!$C$22+'BP Financier'!$D$22+'BP Financier'!$E$22+'BP Financier'!$F$22+'BP Financier'!$F$16+'BP Financier'!$F$19+'BP Financier'!$G$16+'BP Financier'!$G$19+'BP Financier'!$G$22))*$V8579*AA8579/(1-$W8579)","v":{"v":1785.7036071806158,"d":"1,786"}},{"$f":"'BP Financier'!$G$44*(('BP Financier'!$C$22+'BP Financier'!$D$22+'BP Financier'!$E$22+'BP Financier'!$F$22+'BP Financier'!$G$22)/('BP Financier'!$C$16+'BP Financier'!$C$19+'BP Financier'!$D$16+'BP Financier'!$D$19+'BP Financier'!$E$16+'BP Financier'!$E$19+'BP Financier'!$C$22+'BP Financier'!$D$22+'BP Financier'!$E$22+'BP Financier'!$F$22+'BP Financier'!$F$16+'BP Financier'!$F$19+'BP Financier'!$G$16+'BP Financier'!$G$19+'BP Financier'!$G$22))*$V8579*AB8579/(1-$W8579)","v":{"v":854.6957436078159,"d":"855"}},null,{"v":0.006,"d":"0.60%"},{"$f":"Actif!$E$28/100","v":{"v":0.28900000000000003,"d":"28.90%"}},{"$f":"Actif!$E$30/100","v":{"v":0.09050000000000001,"d":"9.05%"}},{"$f":"Actif!$E$31/100","v":{"v":0.0605,"d":"6.05%"}},{"$f":"Actif!$E$32/100","v":{"v":0.47350000000000003,"d":"47.35%"}},{"$f":"Actif!$E$33/100","v":{"v":0.0585,"d":"5.85%"}},{"$f":"Actif!$E$29/100","v":{"v":0.027999999999999997,"d":"2.80%"}}]
[null,"#467",58,2028,"H","A_CAPI",{"v":0.44999999999999996,"d":"0.45"},{"v":0.38999999999999996,"d":"0.39"},0.6,0.6,85,0,{"$f":"ROUND(Primes!$Q$10*V8580,2)","v":0.78},0,{"v":21703.166918041326,"d":"21,703"},{"$f":"'BP Financier'!$G$44*(('BP Financier'!$C$22+'BP Financier'!$D$22+'BP Financier'!$E$22+'BP Financier'!$F$22+'BP Financier'!$G$22)/('BP Financier'!$C$16+'BP Financier'!$C$19+'BP Financier'!$D$16+'BP Financier'!$D$19+'BP Financier'!$E$16+'BP Financier'!$E$19+'BP Financier'!$C$22+'BP Financier'!$D$22+'BP Financier'!$E$22+'BP Financier'!$F$22+'BP Financier'!$F$16+'BP Financier'!$F$19+'BP Financier'!$G$16+'BP Financier'!$G$19+'BP Financier'!$G$22))*$V8580*X8580/(1-$W8580)","v":{"v":2762.4987427324054,"d":"2,762"}},{"$f":"'BP Financier'!$G$44*(('BP Financier'!$C$22+'BP Financier'!$D$22+'BP Financier'!$E$22+'BP Financier'!$F$22+'BP Financier'!$G$22)/('BP Financier'!$C$16+'BP Financier'!$C$19+'BP Financier'!$D$16+'BP Financier'!$D$19+'BP Financier'!$E$16+'BP Financier'!$E$19+'BP Financier'!$C$22+'BP Financier'!$D$22+'BP Financier'!$E$22+'BP Financier'!$F$22+'BP Financier'!$F$16+'BP Financier'!$F$19+'BP Financier'!$G$16+'BP Financier'!$G$19+'BP Financier'!$G$22))*$V8580*Y8580/(1-$W8580)","v":{"v":1846.7533031526023,"d":"1,847"}},{"$f":"'BP Financier'!$G$44*(('BP Financier'!$C$22+'BP Financier'!$D$22+'BP Financier'!$E$22+'BP Financier'!$F$22+'BP Financier'!$G$22)/('BP Financier'!$C$16+'BP Financier'!$C$19+'BP Financier'!$D$16+'BP Financier'!$D$19+'BP Financier'!$E$16+'BP Financier'!$E$19+'BP Financier'!$C$22+'BP Financier'!$D$22+'BP Financier'!$E$22+'BP Financier'!$F$22+'BP Financier'!$F$16+'BP Financier'!$F$19+'BP Financier'!$G$16+'BP Financier'!$G$19+'BP Financier'!$G$22))*$V8580*Z8580/(1-$W8580)","v":{"v":14453.51552136789,"d":"14,454"}},{"$f":"'BP Financier'!$G$44*(('BP Financier'!$C$22+'BP Financier'!$D$22+'BP Financier'!$E$22+'BP Financier'!$F$22+'BP Financier'!$G$22)/('BP Financier'!$C$16+'BP Financier'!$C$19+'BP Financier'!$D$16+'BP Financier'!$D$19+'BP Financier'!$E$16+'BP Financier'!$E$19+'BP Financier'!$C$22+'BP Financier'!$D$22+'BP Financier'!$E$22+'BP Financier'!$F$22+'BP Financier'!$F$16+'BP Financier'!$F$19+'BP Financier'!$G$16+'BP Financier'!$G$19+'BP Financier'!$G$22))*$V8580*AA8580/(1-$W8580)","v":{"v":1785.7036071806158,"d":"1,786"}},{"$f":"'BP Financier'!$G$44*(('BP Financier'!$C$22+'BP Financier'!$D$22+'BP Financier'!$E$22+'BP Financier'!$F$22+'BP Financier'!$G$22)/('BP Financier'!$C$16+'BP Financier'!$C$19+'BP Financier'!$D$16+'BP Financier'!$D$19+'BP Financier'!$E$16+'BP Financier'!$E$19+'BP Financier'!$C$22+'BP Financier'!$D$22+'BP Financier'!$E$22+'BP Financier'!$F$22+'BP Financier'!$F$16+'BP Financier'!$F$19+'BP Financier'!$G$16+'BP Financier'!$G$19+'BP Financier'!$G$22))*$V8580*AB8580/(1-$W8580)","v":{"v":854.6957436078159,"d":"855"}},null,{"v":0.006,"d":"0.60%"},{"$f":"Actif!$E$28/100","v":{"v":0.28900000000000003,"d":"28.90%"}},{"$f":"Actif!$E$30/100","v":{"v":0.09050000000000001,"d":"9.05%"}},{"$f":"Actif!$E$31/100","v":{"v":0.0605,"d":"6.05%"}},{"$f":"Actif!$E$32/100","v":{"v":0.47350000000000003,"d":"47.35%"}},{"$f":"Actif!$E$33/100","v":{"v":0.0585,"d":"5.85%"}},{"$f":"Actif!$E$29/100","v":{"v":0.027999999999999997,"d":"2.80%"}}]
[null,"#468",58,2029,"H","A_CAPI",{"v":0.44999999999999996,"d":"0.45"},{"v":0.38999999999999996,"d":"0.39"},0.6,0.6,85,0,{"$f":"ROUND(Primes!$Q$10*V8581,2)","v":0.78},0,{"v":21703.166918041326,"d":"21,703"},{"$f":"'BP Financier'!$G$44*(('BP Financier'!$C$22+'BP Financier'!$D$22+'BP Financier'!$E$22+'BP Financier'!$F$22+'BP Financier'!$G$22)/('BP Financier'!$C$16+'BP Financier'!$C$19+'BP Financier'!$D$16+'BP Financier'!$D$19+'BP Financier'!$E$16+'BP Financier'!$E$19+'BP Financier'!$C$22+'BP Financier'!$D$22+'BP Financier'!$E$22+'BP Financier'!$F$22+'BP Financier'!$F$16+'BP Financier'!$F$19+'BP Financier'!$G$16+'BP Financier'!$G$19+'BP Financier'!$G$22))*$V8581*X8581/(1-$W8581)","v":{"v":2762.4987427324054,"d":"2,762"}},{"$f":"'BP Financier'!$G$44*(('BP Financier'!$C$22+'BP Financier'!$D$22+'BP Financier'!$E$22+'BP Financier'!$F$22+'BP Financier'!$G$22)/('BP Financier'!$C$16+'BP Financier'!$C$19+'BP Financier'!$D$16+'BP Financier'!$D$19+'BP Financier'!$E$16+'BP Financier'!$E$19+'BP Financier'!$C$22+'BP Financier'!$D$22+'BP Financier'!$E$22+'BP Financier'!$F$22+'BP Financier'!$F$16+'BP Financier'!$F$19+'BP Financier'!$G$16+'BP Financier'!$G$19+'BP Financier'!$G$22))*$V8581*Y8581/(1-$W8581)","v":{"v":1846.7533031526023,"d":"1,847"}},{"$f":"'BP Financier'!$G$44*(('BP Financier'!$C$22+'BP Financier'!$D$22+'BP Financier'!$E$22+'BP Financier'!$F$22+'BP Financier'!$G$22)/('BP Financier'!$C$16+'BP Financier'!$C$19+'BP Financier'!$D$16+'BP Financier'!$D$19+'BP Financier'!$E$16+'BP Financier'!$E$19+'BP Financier'!$C$22+'BP Financier'!$D$22+'BP Financier'!$E$22+'BP Financier'!$F$22+'BP Financier'!$F$16+'BP Financier'!$F$19+'BP Financier'!$G$16+'BP Financier'!$G$19+'BP Financier'!$G$22))*$V8581*Z8581/(1-$W8581)","v":{"v":14453.51552136789,"d":"14,454"}},{"$f":"'BP Financier'!$G$44*(('BP Financier'!$C$22+'BP Financier'!$D$22+'BP Financier'!$E$22+'BP Financier'!$F$22+'BP Financier'!$G$22)/('BP Financier'!$C$16+'BP Financier'!$C$19+'BP Financier'!$D$16+'BP Financier'!$D$19+'BP Financier'!$E$16+'BP Financier'!$E$19+'BP Financier'!$C$22+'BP Financier'!$D$22+'BP Financier'!$E$22+'BP Financier'!$F$22+'BP Financier'!$F$16+'BP Financier'!$F$19+'BP Financier'!$G$16+'BP Financier'!$G$19+'BP Financier'!$G$22))*$V8581*AA8581/(1-$W8581)","v":{"v":1785.7036071806158,"d":"1,786"}},{"$f":"'BP Financier'!$G$44*(('BP Financier'!$C$22+'BP Financier'!$D$22+'BP Financier'!$E$22+'BP Financier'!$F$22+'BP Financier'!$G$22)/('BP Financier'!$C$16+'BP Financier'!$C$19+'BP Financier'!$D$16+'BP Financier'!$D$19+'BP Financier'!$E$16+'BP Financier'!$E$19+'BP Financier'!$C$22+'BP Financier'!$D$22+'BP Financier'!$E$22+'BP Financier'!$F$22+'BP Financier'!$F$16+'BP Financier'!$F$19+'BP Financier'!$G$16+'BP Financier'!$G$19+'BP Financier'!$G$22))*$V8581*AB8581/(1-$W8581)","v":{"v":854.6957436078159,"d":"855"}},null,{"v":0.006,"d":"0.60%"},{"$f":"Actif!$E$28/100","v":{"v":0.28900000000000003,"d":"28.90%"}},{"$f":"Actif!$E$30/100","v":{"v":0.09050000000000001,"d":"9.05%"}},{"$f":"Actif!$E$31/100","v":{"v":0.0605,"d":"6.05%"}},{"$f":"Actif!$E$32/100","v":{"v":0.47350000000000003,"d":"47.35%"}},{"$f":"Actif!$E$33/100","v":{"v":0.0585,"d":"5.85%"}},{"$f":"Actif!$E$29/100","v":{"v":0.027999999999999997,"d":"2.80%"}}]
[null,"#469",58,2030,"H","A_CAPI",{"v":0.44999999999999996,"d":"0.45"},{"v":0.38999999999999996,"d":"0.39"},0.6,0.6,85,0,{"$f":"ROUND(Primes!$Q$10*V8582,2)","v":0.78},0,{"v":21703.166918041326,"d":"21,703"},{"$f":"'BP Financier'!$G$44*(('BP Financier'!$C$22+'BP Financier'!$D$22+'BP Financier'!$E$22+'BP Financier'!$F$22+'BP Financier'!$G$22)/('BP Financier'!$C$16+'BP Financier'!$C$19+'BP Financier'!$D$16+'BP Financier'!$D$19+'BP Financier'!$E$16+'BP Financier'!$E$19+'BP Financier'!$C$22+'BP Financier'!$D$22+'BP Financier'!$E$22+'BP Financier'!$F$22+'BP Financier'!$F$16+'BP Financier'!$F$19+'BP Financier'!$G$16+'BP Financier'!$G$19+'BP Financier'!$G$22))*$V8582*X8582/(1-$W8582)","v":{"v":2762.4987427324054,"d":"2,762"}},{"$f":"'BP Financier'!$G$44*(('BP Financier'!$C$22+'BP Financier'!$D$22+'BP Financier'!$E$22+'BP Financier'!$F$22+'BP Financier'!$G$22)/('BP Financier'!$C$16+'BP Financier'!$C$19+'BP Financier'!$D$16+'BP Financier'!$D$19+'BP Financier'!$E$16+'BP Financier'!$E$19+'BP Financier'!$C$22+'BP Financier'!$D$22+'BP Financier'!$E$22+'BP Financier'!$F$22+'BP Financier'!$F$16+'BP Financier'!$F$19+'BP Financier'!$G$16+'BP Financier'!$G$19+'BP Financier'!$G$22))*$V8582*Y8582/(1-$W8582)","v":{"v":1846.7533031526023,"d":"1,847"}},{"$f":"'BP Financier'!$G$44*(('BP Financier'!$C$22+'BP Financier'!$D$22+'BP Financier'!$E$22+'BP Financier'!$F$22+'BP Financier'!$G$22)/('BP Financier'!$C$16+'BP Financier'!$C$19+'BP Financier'!$D$16+'BP Financier'!$D$19+'BP Financier'!$E$16+'BP Financier'!$E$19+'BP Financier'!$C$22+'BP Financier'!$D$22+'BP Financier'!$E$22+'BP Financier'!$F$22+'BP Financier'!$F$16+'BP Financier'!$F$19+'BP Financier'!$G$16+'BP Financier'!$G$19+'BP Financier'!$G$22))*$V8582*Z8582/(1-$W8582)","v":{"v":14453.51552136789,"d":"14,454"}},{"$f":"'BP Financier'!$G$44*(('BP Financier'!$C$22+'BP Financier'!$D$22+'BP Financier'!$E$22+'BP Financier'!$F$22+'BP Financier'!$G$22)/('BP Financier'!$C$16+'BP Financier'!$C$19+'BP Financier'!$D$16+'BP Financier'!$D$19+'BP Financier'!$E$16+'BP Financier'!$E$19+'BP Financier'!$C$22+'BP Financier'!$D$22+'BP Financier'!$E$22+'BP Financier'!$F$22+'BP Financier'!$F$16+'BP Financier'!$F$19+'BP Financier'!$G$16+'BP Financier'!$G$19+'BP Financier'!$G$22))*$V8582*AA8582/(1-$W8582)","v":{"v":1785.7036071806158,"d":"1,786"}},{"$f":"'BP Financier'!$G$44*(('BP Financier'!$C$22+'BP Financier'!$D$22+'BP Financier'!$E$22+'BP Financier'!$F$22+'BP Financier'!$G$22)/('BP Financier'!$C$16+'BP Financier'!$C$19+'BP Financier'!$D$16+'BP Financier'!$D$19+'BP Financier'!$E$16+'BP Financier'!$E$19+'BP Financier'!$C$22+'BP Financier'!$D$22+'BP Financier'!$E$22+'BP Financier'!$F$22+'BP Financier'!$F$16+'BP Financier'!$F$19+'BP Financier'!$G$16+'BP Financier'!$G$19+'BP Financier'!$G$22))*$V8582*AB8582/(1-$W8582)","v":{"v":854.6957436078159,"d":"855"}},null,{"v":0.006,"d":"0.60%"},{"$f":"Actif!$E$28/100","v":{"v":0.28900000000000003,"d":"28.90%"}},{"$f":"Actif!$E$30/100","v":{"v":0.09050000000000001,"d":"9.05%"}},{"$f":"Actif!$E$31/100","v":{"v":0.0605,"d":"6.05%"}},{"$f":"Actif!$E$32/100","v":{"v":0.47350000000000003,"d":"47.35%"}},{"$f":"Actif!$E$33/100","v":{"v":0.0585,"d":"5.85%"}},{"$f":"Actif!$E$29/100","v":{"v":0.027999999999999997,"d":"2.80%"}}]
[null,"#470",58,2031,"H","A_CAPI",{"v":0.44999999999999996,"d":"0.45"},{"v":0.38999999999999996,"d":"0.39"},0.6,0.6,85,0,{"$f":"ROUND(Primes!$Q$10*V8583,2)","v":0.78},0,{"v":21703.166918041326,"d":"21,703"},{"$f":"'BP Financier'!$G$44*(('BP Financier'!$C$22+'BP Financier'!$D$22+'BP Financier'!$E$22+'BP Financier'!$F$22+'BP Financier'!$G$22)/('BP Financier'!$C$16+'BP Financier'!$C$19+'BP Financier'!$D$16+'BP Financier'!$D$19+'BP Financier'!$E$16+'BP Financier'!$E$19+'BP Financier'!$C$22+'BP Financier'!$D$22+'BP Financier'!$E$22+'BP Financier'!$F$22+'BP Financier'!$F$16+'BP Financier'!$F$19+'BP Financier'!$G$16+'BP Financier'!$G$19+'BP Financier'!$G$22))*$V8583*X8583/(1-$W8583)","v":{"v":2762.4987427324054,"d":"2,762"}},{"$f":"'BP Financier'!$G$44*(('BP Financier'!$C$22+'BP Financier'!$D$22+'BP Financier'!$E$22+'BP Financier'!$F$22+'BP Financier'!$G$22)/('BP Financier'!$C$16+'BP Financier'!$C$19+'BP Financier'!$D$16+'BP Financier'!$D$19+'BP Financier'!$E$16+'BP Financier'!$E$19+'BP Financier'!$C$22+'BP Financier'!$D$22+'BP Financier'!$E$22+'BP Financier'!$F$22+'BP Financier'!$F$16+'BP Financier'!$F$19+'BP Financier'!$G$16+'BP Financier'!$G$19+'BP Financier'!$G$22))*$V8583*Y8583/(1-$W8583)","v":{"v":1846.7533031526023,"d":"1,847"}},{"$f":"'BP Financier'!$G$44*(('BP Financier'!$C$22+'BP Financier'!$D$22+'BP Financier'!$E$22+'BP Financier'!$F$22+'BP Financier'!$G$22)/('BP Financier'!$C$16+'BP Financier'!$C$19+'BP Financier'!$D$16+'BP Financier'!$D$19+'BP Financier'!$E$16+'BP Financier'!$E$19+'BP Financier'!$C$22+'BP Financier'!$D$22+'BP Financier'!$E$22+'BP Financier'!$F$22+'BP Financier'!$F$16+'BP Financier'!$F$19+'BP Financier'!$G$16+'BP Financier'!$G$19+'BP Financier'!$G$22))*$V8583*Z8583/(1-$W8583)","v":{"v":14453.51552136789,"d":"14,454"}},{"$f":"'BP Financier'!$G$44*(('BP Financier'!$C$22+'BP Financier'!$D$22+'BP Financier'!$E$22+'BP Financier'!$F$22+'BP Financier'!$G$22)/('BP Financier'!$C$16+'BP Financier'!$C$19+'BP Financier'!$D$16+'BP Financier'!$D$19+'BP Financier'!$E$16+'BP Financier'!$E$19+'BP Financier'!$C$22+'BP Financier'!$D$22+'BP Financier'!$E$22+'BP Financier'!$F$22+'BP Financier'!$F$16+'BP Financier'!$F$19+'BP Financier'!$G$16+'BP Financier'!$G$19+'BP Financier'!$G$22))*$V8583*AA8583/(1-$W8583)","v":{"v":1785.7036071806158,"d":"1,786"}},{"$f":"'BP Financier'!$G$44*(('BP Financier'!$C$22+'BP Financier'!$D$22+'BP Financier'!$E$22+'BP Financier'!$F$22+'BP Financier'!$G$22)/('BP Financier'!$C$16+'BP Financier'!$C$19+'BP Financier'!$D$16+'BP Financier'!$D$19+'BP Financier'!$E$16+'BP Financier'!$E$19+'BP Financier'!$C$22+'BP Financier'!$D$22+'BP Financier'!$E$22+'BP Financier'!$F$22+'BP Financier'!$F$16+'BP Financier'!$F$19+'BP Financier'!$G$16+'BP Financier'!$G$19+'BP Financier'!$G$22))*$V8583*AB8583/(1-$W8583)","v":{"v":854.6957436078159,"d":"855"}},null,{"v":0.006,"d":"0.60%"},{"$f":"Actif!$E$28/100","v":{"v":0.28900000000000003,"d":"28.90%"}},{"$f":"Actif!$E$30/100","v":{"v":0.09050000000000001,"d":"9.05%"}},{"$f":"Actif!$E$31/100","v":{"v":0.0605,"d":"6.05%"}},{"$f":"Actif!$E$32/100","v":{"v":0.47350000000000003,"d":"47.35%"}},{"$f":"Actif!$E$33/100","v":{"v":0.0585,"d":"5.85%"}},{"$f":"Actif!$E$29/100","v":{"v":0.027999999999999997,"d":"2.80%"}}]
[null,"#471",59,2026,"F","A_CAPI",{"v":0.44999999999999996,"d":"0.45"},{"v":0.38999999999999996,"d":"0.39"},0.6,0.6,85,0,{"$f":"ROUND(Primes!$Q$10*V8584,2)","v":0.78},0,{"v":21703.166918041326,"d":"21,703"},{"$f":"'BP Financier'!$G$44*(('BP Financier'!$C$22+'BP Financier'!$D$22+'BP Financier'!$E$22+'BP Financier'!$F$22+'BP Financier'!$G$22)/('BP Financier'!$C$16+'BP Financier'!$C$19+'BP Financier'!$D$16+'BP Financier'!$D$19+'BP Financier'!$E$16+'BP Financier'!$E$19+'BP Financier'!$C$22+'BP Financier'!$D$22+'BP Financier'!$E$22+'BP Financier'!$F$22+'BP Financier'!$F$16+'BP Financier'!$F$19+'BP Financier'!$G$16+'BP Financier'!$G$19+'BP Financier'!$G$22))*$V8584*X8584/(1-$W8584)","v":{"v":2762.4987427324054,"d":"2,762"}},{"$f":"'BP Financier'!$G$44*(('BP Financier'!$C$22+'BP Financier'!$D$22+'BP Financier'!$E$22+'BP Financier'!$F$22+'BP Financier'!$G$22)/('BP Financier'!$C$16+'BP Financier'!$C$19+'BP Financier'!$D$16+'BP Financier'!$D$19+'BP Financier'!$E$16+'BP Financier'!$E$19+'BP Financier'!$C$22+'BP Financier'!$D$22+'BP Financier'!$E$22+'BP Financier'!$F$22+'BP Financier'!$F$16+'BP Financier'!$F$19+'BP Financier'!$G$16+'BP Financier'!$G$19+'BP Financier'!$G$22))*$V8584*Y8584/(1-$W8584)","v":{"v":1846.7533031526023,"d":"1,847"}},{"$f":"'BP Financier'!$G$44*(('BP Financier'!$C$22+'BP Financier'!$D$22+'BP Financier'!$E$22+'BP Financier'!$F$22+'BP Financier'!$G$22)/('BP Financier'!$C$16+'BP Financier'!$C$19+'BP Financier'!$D$16+'BP Financier'!$D$19+'BP Financier'!$E$16+'BP Financier'!$E$19+'BP Financier'!$C$22+'BP Financier'!$D$22+'BP Financier'!$E$22+'BP Financier'!$F$22+'BP Financier'!$F$16+'BP Financier'!$F$19+'BP Financier'!$G$16+'BP Financier'!$G$19+'BP Financier'!$G$22))*$V8584*Z8584/(1-$W8584)","v":{"v":14453.51552136789,"d":"14,454"}},{"$f":"'BP Financier'!$G$44*(('BP Financier'!$C$22+'BP Financier'!$D$22+'BP Financier'!$E$22+'BP Financier'!$F$22+'BP Financier'!$G$22)/('BP Financier'!$C$16+'BP Financier'!$C$19+'BP Financier'!$D$16+'BP Financier'!$D$19+'BP Financier'!$E$16+'BP Financier'!$E$19+'BP Financier'!$C$22+'BP Financier'!$D$22+'BP Financier'!$E$22+'BP Financier'!$F$22+'BP Financier'!$F$16+'BP Financier'!$F$19+'BP Financier'!$G$16+'BP Financier'!$G$19+'BP Financier'!$G$22))*$V8584*AA8584/(1-$W8584)","v":{"v":1785.7036071806158,"d":"1,786"}},{"$f":"'BP Financier'!$G$44*(('BP Financier'!$C$22+'BP Financier'!$D$22+'BP Financier'!$E$22+'BP Financier'!$F$22+'BP Financier'!$G$22)/('BP Financier'!$C$16+'BP Financier'!$C$19+'BP Financier'!$D$16+'BP Financier'!$D$19+'BP Financier'!$E$16+'BP Financier'!$E$19+'BP Financier'!$C$22+'BP Financier'!$D$22+'BP Financier'!$E$22+'BP Financier'!$F$22+'BP Financier'!$F$16+'BP Financier'!$F$19+'BP Financier'!$G$16+'BP Financier'!$G$19+'BP Financier'!$G$22))*$V8584*AB8584/(1-$W8584)","v":{"v":854.6957436078159,"d":"855"}},null,{"v":0.006,"d":"0.60%"},{"$f":"Actif!$E$28/100","v":{"v":0.28900000000000003,"d":"28.90%"}},{"$f":"Actif!$E$30/100","v":{"v":0.09050000000000001,"d":"9.05%"}},{"$f":"Actif!$E$31/100","v":{"v":0.0605,"d":"6.05%"}},{"$f":"Actif!$E$32/100","v":{"v":0.47350000000000003,"d":"47.35%"}},{"$f":"Actif!$E$33/100","v":{"v":0.0585,"d":"5.85%"}},{"$f":"Actif!$E$29/100","v":{"v":0.027999999999999997,"d":"2.80%"}}]
[null,"#472",59,2028,"F","A_CAPI",{"v":0.44999999999999996,"d":"0.45"},{"v":0.38999999999999996,"d":"0.39"},0.6,0.6,85,0,{"$f":"ROUND(Primes!$Q$10*V8585,2)","v":0.78},0,{"v":21703.166918041326,"d":"21,703"},{"$f":"'BP Financier'!$G$44*(('BP Financier'!$C$22+'BP Financier'!$D$22+'BP Financier'!$E$22+'BP Financier'!$F$22+'BP Financier'!$G$22)/('BP Financier'!$C$16+'BP Financier'!$C$19+'BP Financier'!$D$16+'BP Financier'!$D$19+'BP Financier'!$E$16+'BP Financier'!$E$19+'BP Financier'!$C$22+'BP Financier'!$D$22+'BP Financier'!$E$22+'BP Financier'!$F$22+'BP Financier'!$F$16+'BP Financier'!$F$19+'BP Financier'!$G$16+'BP Financier'!$G$19+'BP Financier'!$G$22))*$V8585*X8585/(1-$W8585)","v":{"v":2762.4987427324054,"d":"2,762"}},{"$f":"'BP Financier'!$G$44*(('BP Financier'!$C$22+'BP Financier'!$D$22+'BP Financier'!$E$22+'BP Financier'!$F$22+'BP Financier'!$G$22)/('BP Financier'!$C$16+'BP Financier'!$C$19+'BP Financier'!$D$16+'BP Financier'!$D$19+'BP Financier'!$E$16+'BP Financier'!$E$19+'BP Financier'!$C$22+'BP Financier'!$D$22+'BP Financier'!$E$22+'BP Financier'!$F$22+'BP Financier'!$F$16+'BP Financier'!$F$19+'BP Financier'!$G$16+'BP Financier'!$G$19+'BP Financier'!$G$22))*$V8585*Y8585/(1-$W8585)","v":{"v":1846.7533031526023,"d":"1,847"}},{"$f":"'BP Financier'!$G$44*(('BP Financier'!$C$22+'BP Financier'!$D$22+'BP Financier'!$E$22+'BP Financier'!$F$22+'BP Financier'!$G$22)/('BP Financier'!$C$16+'BP Financier'!$C$19+'BP Financier'!$D$16+'BP Financier'!$D$19+'BP Financier'!$E$16+'BP Financier'!$E$19+'BP Financier'!$C$22+'BP Financier'!$D$22+'BP Financier'!$E$22+'BP Financier'!$F$22+'BP Financier'!$F$16+'BP Financier'!$F$19+'BP Financier'!$G$16+'BP Financier'!$G$19+'BP Financier'!$G$22))*$V8585*Z8585/(1-$W8585)","v":{"v":14453.51552136789,"d":"14,454"}},{"$f":"'BP Financier'!$G$44*(('BP Financier'!$C$22+'BP Financier'!$D$22+'BP Financier'!$E$22+'BP Financier'!$F$22+'BP Financier'!$G$22)/('BP Financier'!$C$16+'BP Financier'!$C$19+'BP Financier'!$D$16+'BP Financier'!$D$19+'BP Financier'!$E$16+'BP Financier'!$E$19+'BP Financier'!$C$22+'BP Financier'!$D$22+'BP Financier'!$E$22+'BP Financier'!$F$22+'BP Financier'!$F$16+'BP Financier'!$F$19+'BP Financier'!$G$16+'BP Financier'!$G$19+'BP Financier'!$G$22))*$V8585*AA8585/(1-$W8585)","v":{"v":1785.7036071806158,"d":"1,786"}},{"$f":"'BP Financier'!$G$44*(('BP Financier'!$C$22+'BP Financier'!$D$22+'BP Financier'!$E$22+'BP Financier'!$F$22+'BP Financier'!$G$22)/('BP Financier'!$C$16+'BP Financier'!$C$19+'BP Financier'!$D$16+'BP Financier'!$D$19+'BP Financier'!$E$16+'BP Financier'!$E$19+'BP Financier'!$C$22+'BP Financier'!$D$22+'BP Financier'!$E$22+'BP Financier'!$F$22+'BP Financier'!$F$16+'BP Financier'!$F$19+'BP Financier'!$G$16+'BP Financier'!$G$19+'BP Financier'!$G$22))*$V8585*AB8585/(1-$W8585)","v":{"v":854.6957436078159,"d":"855"}},null,{"v":0.006,"d":"0.60%"},{"$f":"Actif!$E$28/100","v":{"v":0.28900000000000003,"d":"28.90%"}},{"$f":"Actif!$E$30/100","v":{"v":0.09050000000000001,"d":"9.05%"}},{"$f":"Actif!$E$31/100","v":{"v":0.0605,"d":"6.05%"}},{"$f":"Actif!$E$32/100","v":{"v":0.47350000000000003,"d":"47.35%"}},{"$f":"Actif!$E$33/100","v":{"v":0.0585,"d":"5.85%"}},{"$f":"Actif!$E$29/100","v":{"v":0.027999999999999997,"d":"2.80%"}}]
[null,"#473",59,2029,"F","A_CAPI",{"v":0.44999999999999996,"d":"0.45"},{"v":0.38999999999999996,"d":"0.39"},0.6,0.6,85,0,{"$f":"ROUND(Primes!$Q$10*V8586,2)","v":0.78},0,{"v":21703.166918041326,"d":"21,703"},{"$f":"'BP Financier'!$G$44*(('BP Financier'!$C$22+'BP Financier'!$D$22+'BP Financier'!$E$22+'BP Financier'!$F$22+'BP Financier'!$G$22)/('BP Financier'!$C$16+'BP Financier'!$C$19+'BP Financier'!$D$16+'BP Financier'!$D$19+'BP Financier'!$E$16+'BP Financier'!$E$19+'BP Financier'!$C$22+'BP Financier'!$D$22+'BP Financier'!$E$22+'BP Financier'!$F$22+'BP Financier'!$F$16+'BP Financier'!$F$19+'BP Financier'!$G$16+'BP Financier'!$G$19+'BP Financier'!$G$22))*$V8586*X8586/(1-$W8586)","v":{"v":2762.4987427324054,"d":"2,762"}},{"$f":"'BP Financier'!$G$44*(('BP Financier'!$C$22+'BP Financier'!$D$22+'BP Financier'!$E$22+'BP Financier'!$F$22+'BP Financier'!$G$22)/('BP Financier'!$C$16+'BP Financier'!$C$19+'BP Financier'!$D$16+'BP Financier'!$D$19+'BP Financier'!$E$16+'BP Financier'!$E$19+'BP Financier'!$C$22+'BP Financier'!$D$22+'BP Financier'!$E$22+'BP Financier'!$F$22+'BP Financier'!$F$16+'BP Financier'!$F$19+'BP Financier'!$G$16+'BP Financier'!$G$19+'BP Financier'!$G$22))*$V8586*Y8586/(1-$W8586)","v":{"v":1846.7533031526023,"d":"1,847"}},{"$f":"'BP Financier'!$G$44*(('BP Financier'!$C$22+'BP Financier'!$D$22+'BP Financier'!$E$22+'BP Financier'!$F$22+'BP Financier'!$G$22)/('BP Financier'!$C$16+'BP Financier'!$C$19+'BP Financier'!$D$16+'BP Financier'!$D$19+'BP Financier'!$E$16+'BP Financier'!$E$19+'BP Financier'!$C$22+'BP Financier'!$D$22+'BP Financier'!$E$22+'BP Financier'!$F$22+'BP Financier'!$F$16+'BP Financier'!$F$19+'BP Financier'!$G$16+'BP Financier'!$G$19+'BP Financier'!$G$22))*$V8586*Z8586/(1-$W8586)","v":{"v":14453.51552136789,"d":"14,454"}},{"$f":"'BP Financier'!$G$44*(('BP Financier'!$C$22+'BP Financier'!$D$22+'BP Financier'!$E$22+'BP Financier'!$F$22+'BP Financier'!$G$22)/('BP Financier'!$C$16+'BP Financier'!$C$19+'BP Financier'!$D$16+'BP Financier'!$D$19+'BP Financier'!$E$16+'BP Financier'!$E$19+'BP Financier'!$C$22+'BP Financier'!$D$22+'BP Financier'!$E$22+'BP Financier'!$F$22+'BP Financier'!$F$16+'BP Financier'!$F$19+'BP Financier'!$G$16+'BP Financier'!$G$19+'BP Financier'!$G$22))*$V8586*AA8586/(1-$W8586)","v":{"v":1785.7036071806158,"d":"1,786"}},{"$f":"'BP Financier'!$G$44*(('BP Financier'!$C$22+'BP Financier'!$D$22+'BP Financier'!$E$22+'BP Financier'!$F$22+'BP Financier'!$G$22)/('BP Financier'!$C$16+'BP Financier'!$C$19+'BP Financier'!$D$16+'BP Financier'!$D$19+'BP Financier'!$E$16+'BP Financier'!$E$19+'BP Financier'!$C$22+'BP Financier'!$D$22+'BP Financier'!$E$22+'BP Financier'!$F$22+'BP Financier'!$F$16+'BP Financier'!$F$19+'BP Financier'!$G$16+'BP Financier'!$G$19+'BP Financier'!$G$22))*$V8586*AB8586/(1-$W8586)","v":{"v":854.6957436078159,"d":"855"}},null,{"v":0.006,"d":"0.60%"},{"$f":"Actif!$E$28/100","v":{"v":0.28900000000000003,"d":"28.90%"}},{"$f":"Actif!$E$30/100","v":{"v":0.09050000000000001,"d":"9.05%"}},{"$f":"Actif!$E$31/100","v":{"v":0.0605,"d":"6.05%"}},{"$f":"Actif!$E$32/100","v":{"v":0.47350000000000003,"d":"47.35%"}},{"$f":"Actif!$E$33/100","v":{"v":0.0585,"d":"5.85%"}},{"$f":"Actif!$E$29/100","v":{"v":0.027999999999999997,"d":"2.80%"}}]
[null,"#474",59,2030,"F","A_CAPI",{"v":0.44999999999999996,"d":"0.45"},{"v":0.38999999999999996,"d":"0.39"},0.6,0.6,85,0,{"$f":"ROUND(Primes!$Q$10*V8587,2)","v":0.78},0,{"v":21703.166918041326,"d":"21,703"},{"$f":"'BP Financier'!$G$44*(('BP Financier'!$C$22+'BP Financier'!$D$22+'BP Financier'!$E$22+'BP Financier'!$F$22+'BP Financier'!$G$22)/('BP Financier'!$C$16+'BP Financier'!$C$19+'BP Financier'!$D$16+'BP Financier'!$D$19+'BP Financier'!$E$16+'BP Financier'!$E$19+'BP Financier'!$C$22+'BP Financier'!$D$22+'BP Financier'!$E$22+'BP Financier'!$F$22+'BP Financier'!$F$16+'BP Financier'!$F$19+'BP Financier'!$G$16+'BP Financier'!$G$19+'BP Financier'!$G$22))*$V8587*X8587/(1-$W8587)","v":{"v":2762.4987427324054,"d":"2,762"}},{"$f":"'BP Financier'!$G$44*(('BP Financier'!$C$22+'BP Financier'!$D$22+'BP Financier'!$E$22+'BP Financier'!$F$22+'BP Financier'!$G$22)/('BP Financier'!$C$16+'BP Financier'!$C$19+'BP Financier'!$D$16+'BP Financier'!$D$19+'BP Financier'!$E$16+'BP Financier'!$E$19+'BP Financier'!$C$22+'BP Financier'!$D$22+'BP Financier'!$E$22+'BP Financier'!$F$22+'BP Financier'!$F$16+'BP Financier'!$F$19+'BP Financier'!$G$16+'BP Financier'!$G$19+'BP Financier'!$G$22))*$V8587*Y8587/(1-$W8587)","v":{"v":1846.7533031526023,"d":"1,847"}},{"$f":"'BP Financier'!$G$44*(('BP Financier'!$C$22+'BP Financier'!$D$22+'BP Financier'!$E$22+'BP Financier'!$F$22+'BP Financier'!$G$22)/('BP Financier'!$C$16+'BP Financier'!$C$19+'BP Financier'!$D$16+'BP Financier'!$D$19+'BP Financier'!$E$16+'BP Financier'!$E$19+'BP Financier'!$C$22+'BP Financier'!$D$22+'BP Financier'!$E$22+'BP Financier'!$F$22+'BP Financier'!$F$16+'BP Financier'!$F$19+'BP Financier'!$G$16+'BP Financier'!$G$19+'BP Financier'!$G$22))*$V8587*Z8587/(1-$W8587)","v":{"v":14453.51552136789,"d":"14,454"}},{"$f":"'BP Financier'!$G$44*(('BP Financier'!$C$22+'BP Financier'!$D$22+'BP Financier'!$E$22+'BP Financier'!$F$22+'BP Financier'!$G$22)/('BP Financier'!$C$16+'BP Financier'!$C$19+'BP Financier'!$D$16+'BP Financier'!$D$19+'BP Financier'!$E$16+'BP Financier'!$E$19+'BP Financier'!$C$22+'BP Financier'!$D$22+'BP Financier'!$E$22+'BP Financier'!$F$22+'BP Financier'!$F$16+'BP Financier'!$F$19+'BP Financier'!$G$16+'BP Financier'!$G$19+'BP Financier'!$G$22))*$V8587*AA8587/(1-$W8587)","v":{"v":1785.7036071806158,"d":"1,786"}},{"$f":"'BP Financier'!$G$44*(('BP Financier'!$C$22+'BP Financier'!$D$22+'BP Financier'!$E$22+'BP Financier'!$F$22+'BP Financier'!$G$22)/('BP Financier'!$C$16+'BP Financier'!$C$19+'BP Financier'!$D$16+'BP Financier'!$D$19+'BP Financier'!$E$16+'BP Financier'!$E$19+'BP Financier'!$C$22+'BP Financier'!$D$22+'BP Financier'!$E$22+'BP Financier'!$F$22+'BP Financier'!$F$16+'BP Financier'!$F$19+'BP Financier'!$G$16+'BP Financier'!$G$19+'BP Financier'!$G$22))*$V8587*AB8587/(1-$W8587)","v":{"v":854.6957436078159,"d":"855"}},null,{"v":0.006,"d":"0.60%"},{"$f":"Actif!$E$28/100","v":{"v":0.28900000000000003,"d":"28.90%"}},{"$f":"Actif!$E$30/100","v":{"v":0.09050000000000001,"d":"9.05%"}},{"$f":"Actif!$E$31/100","v":{"v":0.0605,"d":"6.05%"}},{"$f":"Actif!$E$32/100","v":{"v":0.47350000000000003,"d":"47.35%"}},{"$f":"Actif!$E$33/100","v":{"v":0.0585,"d":"5.85%"}},{"$f":"Actif!$E$29/100","v":{"v":0.027999999999999997,"d":"2.80%"}}]
[null,"#475",59,2031,"F","A_CAPI",{"v":0.44999999999999996,"d":"0.45"},{"v":0.38999999999999996,"d":"0.39"},0.6,0.6,85,0,{"$f":"ROUND(Primes!$Q$10*V8588,2)","v":0.78},0,{"v":21703.166918041326,"d":"21,703"},{"$f":"'BP Financier'!$G$44*(('BP Financier'!$C$22+'BP Financier'!$D$22+'BP Financier'!$E$22+'BP Financier'!$F$22+'BP Financier'!$G$22)/('BP Financier'!$C$16+'BP Financier'!$C$19+'BP Financier'!$D$16+'BP Financier'!$D$19+'BP Financier'!$E$16+'BP Financier'!$E$19+'BP Financier'!$C$22+'BP Financier'!$D$22+'BP Financier'!$E$22+'BP Financier'!$F$22+'BP Financier'!$F$16+'BP Financier'!$F$19+'BP Financier'!$G$16+'BP Financier'!$G$19+'BP Financier'!$G$22))*$V8588*X8588/(1-$W8588)","v":{"v":2762.4987427324054,"d":"2,762"}},{"$f":"'BP Financier'!$G$44*(('BP Financier'!$C$22+'BP Financier'!$D$22+'BP Financier'!$E$22+'BP Financier'!$F$22+'BP Financier'!$G$22)/('BP Financier'!$C$16+'BP Financier'!$C$19+'BP Financier'!$D$16+'BP Financier'!$D$19+'BP Financier'!$E$16+'BP Financier'!$E$19+'BP Financier'!$C$22+'BP Financier'!$D$22+'BP Financier'!$E$22+'BP Financier'!$F$22+'BP Financier'!$F$16+'BP Financier'!$F$19+'BP Financier'!$G$16+'BP Financier'!$G$19+'BP Financier'!$G$22))*$V8588*Y8588/(1-$W8588)","v":{"v":1846.7533031526023,"d":"1,847"}},{"$f":"'BP Financier'!$G$44*(('BP Financier'!$C$22+'BP Financier'!$D$22+'BP Financier'!$E$22+'BP Financier'!$F$22+'BP Financier'!$G$22)/('BP Financier'!$C$16+'BP Financier'!$C$19+'BP Financier'!$D$16+'BP Financier'!$D$19+'BP Financier'!$E$16+'BP Financier'!$E$19+'BP Financier'!$C$22+'BP Financier'!$D$22+'BP Financier'!$E$22+'BP Financier'!$F$22+'BP Financier'!$F$16+'BP Financier'!$F$19+'BP Financier'!$G$16+'BP Financier'!$G$19+'BP Financier'!$G$22))*$V8588*Z8588/(1-$W8588)","v":{"v":14453.51552136789,"d":"14,454"}},{"$f":"'BP Financier'!$G$44*(('BP Financier'!$C$22+'BP Financier'!$D$22+'BP Financier'!$E$22+'BP Financier'!$F$22+'BP Financier'!$G$22)/('BP Financier'!$C$16+'BP Financier'!$C$19+'BP Financier'!$D$16+'BP Financier'!$D$19+'BP Financier'!$E$16+'BP Financier'!$E$19+'BP Financier'!$C$22+'BP Financier'!$D$22+'BP Financier'!$E$22+'BP Financier'!$F$22+'BP Financier'!$F$16+'BP Financier'!$F$19+'BP Financier'!$G$16+'BP Financier'!$G$19+'BP Financier'!$G$22))*$V8588*AA8588/(1-$W8588)","v":{"v":1785.7036071806158,"d":"1,786"}},{"$f":"'BP Financier'!$G$44*(('BP Financier'!$C$22+'BP Financier'!$D$22+'BP Financier'!$E$22+'BP Financier'!$F$22+'BP Financier'!$G$22)/('BP Financier'!$C$16+'BP Financier'!$C$19+'BP Financier'!$D$16+'BP Financier'!$D$19+'BP Financier'!$E$16+'BP Financier'!$E$19+'BP Financier'!$C$22+'BP Financier'!$D$22+'BP Financier'!$E$22+'BP Financier'!$F$22+'BP Financier'!$F$16+'BP Financier'!$F$19+'BP Financier'!$G$16+'BP Financier'!$G$19+'BP Financier'!$G$22))*$V8588*AB8588/(1-$W8588)","v":{"v":854.6957436078159,"d":"855"}},null,{"v":0.006,"d":"0.60%"},{"$f":"Actif!$E$28/100","v":{"v":0.28900000000000003,"d":"28.90%"}},{"$f":"Actif!$E$30/100","v":{"v":0.09050000000000001,"d":"9.05%"}},{"$f":"Actif!$E$31/100","v":{"v":0.0605,"d":"6.05%"}},{"$f":"Actif!$E$32/100","v":{"v":0.47350000000000003,"d":"47.35%"}},{"$f":"Actif!$E$33/100","v":{"v":0.0585,"d":"5.85%"}},{"$f":"Actif!$E$29/100","v":{"v":0.027999999999999997,"d":"2.80%"}}]
[null,"#476",60,2026,"H","A_CAPI",{"v":0.44999999999999996,"d":"0.45"},{"v":0.38999999999999996,"d":"0.39"},0.6,0.6,85,0,{"$f":"ROUND(Primes!$Q$10*V8589,2)","v":{"v":1.3,"d":"1.30"}},0,{"v":36171.94486340221,"d":"36,172"},{"$f":"'BP Financier'!$G$44*(('BP Financier'!$C$22+'BP Financier'!$D$22+'BP Financier'!$E$22+'BP Financier'!$F$22+'BP Financier'!$G$22)/('BP Financier'!$C$16+'BP Financier'!$C$19+'BP Financier'!$D$16+'BP Financier'!$D$19+'BP Financier'!$E$16+'BP Financier'!$E$19+'BP Financier'!$C$22+'BP Financier'!$D$22+'BP Financier'!$E$22+'BP Financier'!$F$22+'BP Financier'!$F$16+'BP Financier'!$F$19+'BP Financier'!$G$16+'BP Financier'!$G$19+'BP Financier'!$G$22))*$V8589*X8589/(1-$W8589)","v":{"v":4604.164571220676,"d":"4,604"}},{"$f":"'BP Financier'!$G$44*(('BP Financier'!$C$22+'BP Financier'!$D$22+'BP Financier'!$E$22+'BP Financier'!$F$22+'BP Financier'!$G$22)/('BP Financier'!$C$16+'BP Financier'!$C$19+'BP Financier'!$D$16+'BP Financier'!$D$19+'BP Financier'!$E$16+'BP Financier'!$E$19+'BP Financier'!$C$22+'BP Financier'!$D$22+'BP Financier'!$E$22+'BP Financier'!$F$22+'BP Financier'!$F$16+'BP Financier'!$F$19+'BP Financier'!$G$16+'BP Financier'!$G$19+'BP Financier'!$G$22))*$V8589*Y8589/(1-$W8589)","v":{"v":3077.9221719210045,"d":"3,078"}},{"$f":"'BP Financier'!$G$44*(('BP Financier'!$C$22+'BP Financier'!$D$22+'BP Financier'!$E$22+'BP Financier'!$F$22+'BP Financier'!$G$22)/('BP Financier'!$C$16+'BP Financier'!$C$19+'BP Financier'!$D$16+'BP Financier'!$D$19+'BP Financier'!$E$16+'BP Financier'!$E$19+'BP Financier'!$C$22+'BP Financier'!$D$22+'BP Financier'!$E$22+'BP Financier'!$F$22+'BP Financier'!$F$16+'BP Financier'!$F$19+'BP Financier'!$G$16+'BP Financier'!$G$19+'BP Financier'!$G$22))*$V8589*Z8589/(1-$W8589)","v":{"v":24089.192535613147,"d":"24,089"}},{"$f":"'BP Financier'!$G$44*(('BP Financier'!$C$22+'BP Financier'!$D$22+'BP Financier'!$E$22+'BP Financier'!$F$22+'BP Financier'!$G$22)/('BP Financier'!$C$16+'BP Financier'!$C$19+'BP Financier'!$D$16+'BP Financier'!$D$19+'BP Financier'!$E$16+'BP Financier'!$E$19+'BP Financier'!$C$22+'BP Financier'!$D$22+'BP Financier'!$E$22+'BP Financier'!$F$22+'BP Financier'!$F$16+'BP Financier'!$F$19+'BP Financier'!$G$16+'BP Financier'!$G$19+'BP Financier'!$G$22))*$V8589*AA8589/(1-$W8589)","v":{"v":2976.1726786343597,"d":"2,976"}},{"$f":"'BP Financier'!$G$44*(('BP Financier'!$C$22+'BP Financier'!$D$22+'BP Financier'!$E$22+'BP Financier'!$F$22+'BP Financier'!$G$22)/('BP Financier'!$C$16+'BP Financier'!$C$19+'BP Financier'!$D$16+'BP Financier'!$D$19+'BP Financier'!$E$16+'BP Financier'!$E$19+'BP Financier'!$C$22+'BP Financier'!$D$22+'BP Financier'!$E$22+'BP Financier'!$F$22+'BP Financier'!$F$16+'BP Financier'!$F$19+'BP Financier'!$G$16+'BP Financier'!$G$19+'BP Financier'!$G$22))*$V8589*AB8589/(1-$W8589)","v":{"v":1424.4929060130266,"d":"1,424"}},null,{"v":0.01,"d":"1.00%"},{"$f":"Actif!$E$28/100","v":{"v":0.28900000000000003,"d":"28.90%"}},{"$f":"Actif!$E$30/100","v":{"v":0.09050000000000001,"d":"9.05%"}},{"$f":"Actif!$E$31/100","v":{"v":0.0605,"d":"6.05%"}},{"$f":"Actif!$E$32/100","v":{"v":0.47350000000000003,"d":"47.35%"}},{"$f":"Actif!$E$33/100","v":{"v":0.0585,"d":"5.85%"}},{"$f":"Actif!$E$29/100","v":{"v":0.027999999999999997,"d":"2.80%"}}]
[null,"#477",60,2028,"H","A_CAPI",{"v":0.44999999999999996,"d":"0.45"},{"v":0.38999999999999996,"d":"0.39"},0.6,0.6,85,0,{"$f":"ROUND(Primes!$Q$10*V8590,2)","v":{"v":1.3,"d":"1.30"}},0,{"v":36171.94486340221,"d":"36,172"},{"$f":"'BP Financier'!$G$44*(('BP Financier'!$C$22+'BP Financier'!$D$22+'BP Financier'!$E$22+'BP Financier'!$F$22+'BP Financier'!$G$22)/('BP Financier'!$C$16+'BP Financier'!$C$19+'BP Financier'!$D$16+'BP Financier'!$D$19+'BP Financier'!$E$16+'BP Financier'!$E$19+'BP Financier'!$C$22+'BP Financier'!$D$22+'BP Financier'!$E$22+'BP Financier'!$F$22+'BP Financier'!$F$16+'BP Financier'!$F$19+'BP Financier'!$G$16+'BP Financier'!$G$19+'BP Financier'!$G$22))*$V8590*X8590/(1-$W8590)","v":{"v":4604.164571220676,"d":"4,604"}},{"$f":"'BP Financier'!$G$44*(('BP Financier'!$C$22+'BP Financier'!$D$22+'BP Financier'!$E$22+'BP Financier'!$F$22+'BP Financier'!$G$22)/('BP Financier'!$C$16+'BP Financier'!$C$19+'BP Financier'!$D$16+'BP Financier'!$D$19+'BP Financier'!$E$16+'BP Financier'!$E$19+'BP Financier'!$C$22+'BP Financier'!$D$22+'BP Financier'!$E$22+'BP Financier'!$F$22+'BP Financier'!$F$16+'BP Financier'!$F$19+'BP Financier'!$G$16+'BP Financier'!$G$19+'BP Financier'!$G$22))*$V8590*Y8590/(1-$W8590)","v":{"v":3077.9221719210045,"d":"3,078"}},{"$f":"'BP Financier'!$G$44*(('BP Financier'!$C$22+'BP Financier'!$D$22+'BP Financier'!$E$22+'BP Financier'!$F$22+'BP Financier'!$G$22)/('BP Financier'!$C$16+'BP Financier'!$C$19+'BP Financier'!$D$16+'BP Financier'!$D$19+'BP Financier'!$E$16+'BP Financier'!$E$19+'BP Financier'!$C$22+'BP Financier'!$D$22+'BP Financier'!$E$22+'BP Financier'!$F$22+'BP Financier'!$F$16+'BP Financier'!$F$19+'BP Financier'!$G$16+'BP Financier'!$G$19+'BP Financier'!$G$22))*$V8590*Z8590/(1-$W8590)","v":{"v":24089.192535613147,"d":"24,089"}},{"$f":"'BP Financier'!$G$44*(('BP Financier'!$C$22+'BP Financier'!$D$22+'BP Financier'!$E$22+'BP Financier'!$F$22+'BP Financier'!$G$22)/('BP Financier'!$C$16+'BP Financier'!$C$19+'BP Financier'!$D$16+'BP Financier'!$D$19+'BP Financier'!$E$16+'BP Financier'!$E$19+'BP Financier'!$C$22+'BP Financier'!$D$22+'BP Financier'!$E$22+'BP Financier'!$F$22+'BP Financier'!$F$16+'BP Financier'!$F$19+'BP Financier'!$G$16+'BP Financier'!$G$19+'BP Financier'!$G$22))*$V8590*AA8590/(1-$W8590)","v":{"v":2976.1726786343597,"d":"2,976"}},{"$f":"'BP Financier'!$G$44*(('BP Financier'!$C$22+'BP Financier'!$D$22+'BP Financier'!$E$22+'BP Financier'!$F$22+'BP Financier'!$G$22)/('BP Financier'!$C$16+'BP Financier'!$C$19+'BP Financier'!$D$16+'BP Financier'!$D$19+'BP Financier'!$E$16+'BP Financier'!$E$19+'BP Financier'!$C$22+'BP Financier'!$D$22+'BP Financier'!$E$22+'BP Financier'!$F$22+'BP Financier'!$F$16+'BP Financier'!$F$19+'BP Financier'!$G$16+'BP Financier'!$G$19+'BP Financier'!$G$22))*$V8590*AB8590/(1-$W8590)","v":{"v":1424.4929060130266,"d":"1,424"}},null,{"v":0.01,"d":"1.00%"},{"$f":"Actif!$E$28/100","v":{"v":0.28900000000000003,"d":"28.90%"}},{"$f":"Actif!$E$30/100","v":{"v":0.09050000000000001,"d":"9.05%"}},{"$f":"Actif!$E$31/100","v":{"v":0.0605,"d":"6.05%"}},{"$f":"Actif!$E$32/100","v":{"v":0.47350000000000003,"d":"47.35%"}},{"$f":"Actif!$E$33/100","v":{"v":0.0585,"d":"5.85%"}},{"$f":"Actif!$E$29/100","v":{"v":0.027999999999999997,"d":"2.80%"}}]
[null,"#478",60,2029,"H","A_CAPI",{"v":0.44999999999999996,"d":"0.45"},{"v":0.38999999999999996,"d":"0.39"},0.6,0.6,85,0,{"$f":"ROUND(Primes!$Q$10*V8591,2)","v":{"v":1.3,"d":"1.30"}},0,{"v":36171.94486340221,"d":"36,172"},{"$f":"'BP Financier'!$G$44*(('BP Financier'!$C$22+'BP Financier'!$D$22+'BP Financier'!$E$22+'BP Financier'!$F$22+'BP Financier'!$G$22)/('BP Financier'!$C$16+'BP Financier'!$C$19+'BP Financier'!$D$16+'BP Financier'!$D$19+'BP Financier'!$E$16+'BP Financier'!$E$19+'BP Financier'!$C$22+'BP Financier'!$D$22+'BP Financier'!$E$22+'BP Financier'!$F$22+'BP Financier'!$F$16+'BP Financier'!$F$19+'BP Financier'!$G$16+'BP Financier'!$G$19+'BP Financier'!$G$22))*$V8591*X8591/(1-$W8591)","v":{"v":4604.164571220676,"d":"4,604"}},{"$f":"'BP Financier'!$G$44*(('BP Financier'!$C$22+'BP Financier'!$D$22+'BP Financier'!$E$22+'BP Financier'!$F$22+'BP Financier'!$G$22)/('BP Financier'!$C$16+'BP Financier'!$C$19+'BP Financier'!$D$16+'BP Financier'!$D$19+'BP Financier'!$E$16+'BP Financier'!$E$19+'BP Financier'!$C$22+'BP Financier'!$D$22+'BP Financier'!$E$22+'BP Financier'!$F$22+'BP Financier'!$F$16+'BP Financier'!$F$19+'BP Financier'!$G$16+'BP Financier'!$G$19+'BP Financier'!$G$22))*$V8591*Y8591/(1-$W8591)","v":{"v":3077.9221719210045,"d":"3,078"}},{"$f":"'BP Financier'!$G$44*(('BP Financier'!$C$22+'BP Financier'!$D$22+'BP Financier'!$E$22+'BP Financier'!$F$22+'BP Financier'!$G$22)/('BP Financier'!$C$16+'BP Financier'!$C$19+'BP Financier'!$D$16+'BP Financier'!$D$19+'BP Financier'!$E$16+'BP Financier'!$E$19+'BP Financier'!$C$22+'BP Financier'!$D$22+'BP Financier'!$E$22+'BP Financier'!$F$22+'BP Financier'!$F$16+'BP Financier'!$F$19+'BP Financier'!$G$16+'BP Financier'!$G$19+'BP Financier'!$G$22))*$V8591*Z8591/(1-$W8591)","v":{"v":24089.192535613147,"d":"24,089"}},{"$f":"'BP Financier'!$G$44*(('BP Financier'!$C$22+'BP Financier'!$D$22+'BP Financier'!$E$22+'BP Financier'!$F$22+'BP Financier'!$G$22)/('BP Financier'!$C$16+'BP Financier'!$C$19+'BP Financier'!$D$16+'BP Financier'!$D$19+'BP Financier'!$E$16+'BP Financier'!$E$19+'BP Financier'!$C$22+'BP Financier'!$D$22+'BP Financier'!$E$22+'BP Financier'!$F$22+'BP Financier'!$F$16+'BP Financier'!$F$19+'BP Financier'!$G$16+'BP Financier'!$G$19+'BP Financier'!$G$22))*$V8591*AA8591/(1-$W8591)","v":{"v":2976.1726786343597,"d":"2,976"}},{"$f":"'BP Financier'!$G$44*(('BP Financier'!$C$22+'BP Financier'!$D$22+'BP Financier'!$E$22+'BP Financier'!$F$22+'BP Financier'!$G$22)/('BP Financier'!$C$16+'BP Financier'!$C$19+'BP Financier'!$D$16+'BP Financier'!$D$19+'BP Financier'!$E$16+'BP Financier'!$E$19+'BP Financier'!$C$22+'BP Financier'!$D$22+'BP Financier'!$E$22+'BP Financier'!$F$22+'BP Financier'!$F$16+'BP Financier'!$F$19+'BP Financier'!$G$16+'BP Financier'!$G$19+'BP Financier'!$G$22))*$V8591*AB8591/(1-$W8591)","v":{"v":1424.4929060130266,"d":"1,424"}},null,{"v":0.01,"d":"1.00%"},{"$f":"Actif!$E$28/100","v":{"v":0.28900000000000003,"d":"28.90%"}},{"$f":"Actif!$E$30/100","v":{"v":0.09050000000000001,"d":"9.05%"}},{"$f":"Actif!$E$31/100","v":{"v":0.0605,"d":"6.05%"}},{"$f":"Actif!$E$32/100","v":{"v":0.47350000000000003,"d":"47.35%"}},{"$f":"Actif!$E$33/100","v":{"v":0.0585,"d":"5.85%"}},{"$f":"Actif!$E$29/100","v":{"v":0.027999999999999997,"d":"2.80%"}}]
[null,"#479",60,2030,"H","A_CAPI",{"v":0.44999999999999996,"d":"0.45"},{"v":0.38999999999999996,"d":"0.39"},0.6,0.6,85,0,{"$f":"ROUND(Primes!$Q$10*V8592,2)","v":{"v":1.3,"d":"1.30"}},0,{"v":36171.94486340221,"d":"36,172"},{"$f":"'BP Financier'!$G$44*(('BP Financier'!$C$22+'BP Financier'!$D$22+'BP Financier'!$E$22+'BP Financier'!$F$22+'BP Financier'!$G$22)/('BP Financier'!$C$16+'BP Financier'!$C$19+'BP Financier'!$D$16+'BP Financier'!$D$19+'BP Financier'!$E$16+'BP Financier'!$E$19+'BP Financier'!$C$22+'BP Financier'!$D$22+'BP Financier'!$E$22+'BP Financier'!$F$22+'BP Financier'!$F$16+'BP Financier'!$F$19+'BP Financier'!$G$16+'BP Financier'!$G$19+'BP Financier'!$G$22))*$V8592*X8592/(1-$W8592)","v":{"v":4604.164571220676,"d":"4,604"}},{"$f":"'BP Financier'!$G$44*(('BP Financier'!$C$22+'BP Financier'!$D$22+'BP Financier'!$E$22+'BP Financier'!$F$22+'BP Financier'!$G$22)/('BP Financier'!$C$16+'BP Financier'!$C$19+'BP Financier'!$D$16+'BP Financier'!$D$19+'BP Financier'!$E$16+'BP Financier'!$E$19+'BP Financier'!$C$22+'BP Financier'!$D$22+'BP Financier'!$E$22+'BP Financier'!$F$22+'BP Financier'!$F$16+'BP Financier'!$F$19+'BP Financier'!$G$16+'BP Financier'!$G$19+'BP Financier'!$G$22))*$V8592*Y8592/(1-$W8592)","v":{"v":3077.9221719210045,"d":"3,078"}},{"$f":"'BP Financier'!$G$44*(('BP Financier'!$C$22+'BP Financier'!$D$22+'BP Financier'!$E$22+'BP Financier'!$F$22+'BP Financier'!$G$22)/('BP Financier'!$C$16+'BP Financier'!$C$19+'BP Financier'!$D$16+'BP Financier'!$D$19+'BP Financier'!$E$16+'BP Financier'!$E$19+'BP Financier'!$C$22+'BP Financier'!$D$22+'BP Financier'!$E$22+'BP Financier'!$F$22+'BP Financier'!$F$16+'BP Financier'!$F$19+'BP Financier'!$G$16+'BP Financier'!$G$19+'BP Financier'!$G$22))*$V8592*Z8592/(1-$W8592)","v":{"v":24089.192535613147,"d":"24,089"}},{"$f":"'BP Financier'!$G$44*(('BP Financier'!$C$22+'BP Financier'!$D$22+'BP Financier'!$E$22+'BP Financier'!$F$22+'BP Financier'!$G$22)/('BP Financier'!$C$16+'BP Financier'!$C$19+'BP Financier'!$D$16+'BP Financier'!$D$19+'BP Financier'!$E$16+'BP Financier'!$E$19+'BP Financier'!$C$22+'BP Financier'!$D$22+'BP Financier'!$E$22+'BP Financier'!$F$22+'BP Financier'!$F$16+'BP Financier'!$F$19+'BP Financier'!$G$16+'BP Financier'!$G$19+'BP Financier'!$G$22))*$V8592*AA8592/(1-$W8592)","v":{"v":2976.1726786343597,"d":"2,976"}},{"$f":"'BP Financier'!$G$44*(('BP Financier'!$C$22+'BP Financier'!$D$22+'BP Financier'!$E$22+'BP Financier'!$F$22+'BP Financier'!$G$22)/('BP Financier'!$C$16+'BP Financier'!$C$19+'BP Financier'!$D$16+'BP Financier'!$D$19+'BP Financier'!$E$16+'BP Financier'!$E$19+'BP Financier'!$C$22+'BP Financier'!$D$22+'BP Financier'!$E$22+'BP Financier'!$F$22+'BP Financier'!$F$16+'BP Financier'!$F$19+'BP Financier'!$G$16+'BP Financier'!$G$19+'BP Financier'!$G$22))*$V8592*AB8592/(1-$W8592)","v":{"v":1424.4929060130266,"d":"1,424"}},null,{"v":0.01,"d":"1.00%"},{"$f":"Actif!$E$28/100","v":{"v":0.28900000000000003,"d":"28.90%"}},{"$f":"Actif!$E$30/100","v":{"v":0.09050000000000001,"d":"9.05%"}},{"$f":"Actif!$E$31/100","v":{"v":0.0605,"d":"6.05%"}},{"$f":"Actif!$E$32/100","v":{"v":0.47350000000000003,"d":"47.35%"}},{"$f":"Actif!$E$33/100","v":{"v":0.0585,"d":"5.85%"}},{"$f":"Actif!$E$29/100","v":{"v":0.027999999999999997,"d":"2.80%"}}]
[null,"#480",60,2031,"H","A_CAPI",{"v":0.44999999999999996,"d":"0.45"},{"v":0.38999999999999996,"d":"0.39"},0.6,0.6,85,0,{"$f":"ROUND(Primes!$Q$10*V8593,2)","v":{"v":1.3,"d":"1.30"}},0,{"v":36171.94486340221,"d":"36,172"},{"$f":"'BP Financier'!$G$44*(('BP Financier'!$C$22+'BP Financier'!$D$22+'BP Financier'!$E$22+'BP Financier'!$F$22+'BP Financier'!$G$22)/('BP Financier'!$C$16+'BP Financier'!$C$19+'BP Financier'!$D$16+'BP Financier'!$D$19+'BP Financier'!$E$16+'BP Financier'!$E$19+'BP Financier'!$C$22+'BP Financier'!$D$22+'BP Financier'!$E$22+'BP Financier'!$F$22+'BP Financier'!$F$16+'BP Financier'!$F$19+'BP Financier'!$G$16+'BP Financier'!$G$19+'BP Financier'!$G$22))*$V8593*X8593/(1-$W8593)","v":{"v":4604.164571220676,"d":"4,604"}},{"$f":"'BP Financier'!$G$44*(('BP Financier'!$C$22+'BP Financier'!$D$22+'BP Financier'!$E$22+'BP Financier'!$F$22+'BP Financier'!$G$22)/('BP Financier'!$C$16+'BP Financier'!$C$19+'BP Financier'!$D$16+'BP Financier'!$D$19+'BP Financier'!$E$16+'BP Financier'!$E$19+'BP Financier'!$C$22+'BP Financier'!$D$22+'BP Financier'!$E$22+'BP Financier'!$F$22+'BP Financier'!$F$16+'BP Financier'!$F$19+'BP Financier'!$G$16+'BP Financier'!$G$19+'BP Financier'!$G$22))*$V8593*Y8593/(1-$W8593)","v":{"v":3077.9221719210045,"d":"3,078"}},{"$f":"'BP Financier'!$G$44*(('BP Financier'!$C$22+'BP Financier'!$D$22+'BP Financier'!$E$22+'BP Financier'!$F$22+'BP Financier'!$G$22)/('BP Financier'!$C$16+'BP Financier'!$C$19+'BP Financier'!$D$16+'BP Financier'!$D$19+'BP Financier'!$E$16+'BP Financier'!$E$19+'BP Financier'!$C$22+'BP Financier'!$D$22+'BP Financier'!$E$22+'BP Financier'!$F$22+'BP Financier'!$F$16+'BP Financier'!$F$19+'BP Financier'!$G$16+'BP Financier'!$G$19+'BP Financier'!$G$22))*$V8593*Z8593/(1-$W8593)","v":{"v":24089.192535613147,"d":"24,089"}},{"$f":"'BP Financier'!$G$44*(('BP Financier'!$C$22+'BP Financier'!$D$22+'BP Financier'!$E$22+'BP Financier'!$F$22+'BP Financier'!$G$22)/('BP Financier'!$C$16+'BP Financier'!$C$19+'BP Financier'!$D$16+'BP Financier'!$D$19+'BP Financier'!$E$16+'BP Financier'!$E$19+'BP Financier'!$C$22+'BP Financier'!$D$22+'BP Financier'!$E$22+'BP Financier'!$F$22+'BP Financier'!$F$16+'BP Financier'!$F$19+'BP Financier'!$G$16+'BP Financier'!$G$19+'BP Financier'!$G$22))*$V8593*AA8593/(1-$W8593)","v":{"v":2976.1726786343597,"d":"2,976"}},{"$f":"'BP Financier'!$G$44*(('BP Financier'!$C$22+'BP Financier'!$D$22+'BP Financier'!$E$22+'BP Financier'!$F$22+'BP Financier'!$G$22)/('BP Financier'!$C$16+'BP Financier'!$C$19+'BP Financier'!$D$16+'BP Financier'!$D$19+'BP Financier'!$E$16+'BP Financier'!$E$19+'BP Financier'!$C$22+'BP Financier'!$D$22+'BP Financier'!$E$22+'BP Financier'!$F$22+'BP Financier'!$F$16+'BP Financier'!$F$19+'BP Financier'!$G$16+'BP Financier'!$G$19+'BP Financier'!$G$22))*$V8593*AB8593/(1-$W8593)","v":{"v":1424.4929060130266,"d":"1,424"}},null,{"v":0.01,"d":"1.00%"},{"$f":"Actif!$E$28/100","v":{"v":0.28900000000000003,"d":"28.90%"}},{"$f":"Actif!$E$30/100","v":{"v":0.09050000000000001,"d":"9.05%"}},{"$f":"Actif!$E$31/100","v":{"v":0.0605,"d":"6.05%"}},{"$f":"Actif!$E$32/100","v":{"v":0.47350000000000003,"d":"47.35%"}},{"$f":"Actif!$E$33/100","v":{"v":0.0585,"d":"5.85%"}},{"$f":"Actif!$E$29/100","v":{"v":0.027999999999999997,"d":"2.80%"}}]
[null,"#481",61,2026,"H","A_CAPI",{"v":0.44999999999999996,"d":"0.45"},{"v":0.38999999999999996,"d":"0.39"},0.6,0.6,85,0,{"$f":"ROUND(Primes!$Q$10*V8594,2)","v":0.78},0,{"v":21703.166918041326,"d":"21,703"},{"$f":"'BP Financier'!$G$44*(('BP Financier'!$C$22+'BP Financier'!$D$22+'BP Financier'!$E$22+'BP Financier'!$F$22+'BP Financier'!$G$22)/('BP Financier'!$C$16+'BP Financier'!$C$19+'BP Financier'!$D$16+'BP Financier'!$D$19+'BP Financier'!$E$16+'BP Financier'!$E$19+'BP Financier'!$C$22+'BP Financier'!$D$22+'BP Financier'!$E$22+'BP Financier'!$F$22+'BP Financier'!$F$16+'BP Financier'!$F$19+'BP Financier'!$G$16+'BP Financier'!$G$19+'BP Financier'!$G$22))*$V8594*X8594/(1-$W8594)","v":{"v":2762.4987427324054,"d":"2,762"}},{"$f":"'BP Financier'!$G$44*(('BP Financier'!$C$22+'BP Financier'!$D$22+'BP Financier'!$E$22+'BP Financier'!$F$22+'BP Financier'!$G$22)/('BP Financier'!$C$16+'BP Financier'!$C$19+'BP Financier'!$D$16+'BP Financier'!$D$19+'BP Financier'!$E$16+'BP Financier'!$E$19+'BP Financier'!$C$22+'BP Financier'!$D$22+'BP Financier'!$E$22+'BP Financier'!$F$22+'BP Financier'!$F$16+'BP Financier'!$F$19+'BP Financier'!$G$16+'BP Financier'!$G$19+'BP Financier'!$G$22))*$V8594*Y8594/(1-$W8594)","v":{"v":1846.7533031526023,"d":"1,847"}},{"$f":"'BP Financier'!$G$44*(('BP Financier'!$C$22+'BP Financier'!$D$22+'BP Financier'!$E$22+'BP Financier'!$F$22+'BP Financier'!$G$22)/('BP Financier'!$C$16+'BP Financier'!$C$19+'BP Financier'!$D$16+'BP Financier'!$D$19+'BP Financier'!$E$16+'BP Financier'!$E$19+'BP Financier'!$C$22+'BP Financier'!$D$22+'BP Financier'!$E$22+'BP Financier'!$F$22+'BP Financier'!$F$16+'BP Financier'!$F$19+'BP Financier'!$G$16+'BP Financier'!$G$19+'BP Financier'!$G$22))*$V8594*Z8594/(1-$W8594)","v":{"v":14453.51552136789,"d":"14,454"}},{"$f":"'BP Financier'!$G$44*(('BP Financier'!$C$22+'BP Financier'!$D$22+'BP Financier'!$E$22+'BP Financier'!$F$22+'BP Financier'!$G$22)/('BP Financier'!$C$16+'BP Financier'!$C$19+'BP Financier'!$D$16+'BP Financier'!$D$19+'BP Financier'!$E$16+'BP Financier'!$E$19+'BP Financier'!$C$22+'BP Financier'!$D$22+'BP Financier'!$E$22+'BP Financier'!$F$22+'BP Financier'!$F$16+'BP Financier'!$F$19+'BP Financier'!$G$16+'BP Financier'!$G$19+'BP Financier'!$G$22))*$V8594*AA8594/(1-$W8594)","v":{"v":1785.7036071806158,"d":"1,786"}},{"$f":"'BP Financier'!$G$44*(('BP Financier'!$C$22+'BP Financier'!$D$22+'BP Financier'!$E$22+'BP Financier'!$F$22+'BP Financier'!$G$22)/('BP Financier'!$C$16+'BP Financier'!$C$19+'BP Financier'!$D$16+'BP Financier'!$D$19+'BP Financier'!$E$16+'BP Financier'!$E$19+'BP Financier'!$C$22+'BP Financier'!$D$22+'BP Financier'!$E$22+'BP Financier'!$F$22+'BP Financier'!$F$16+'BP Financier'!$F$19+'BP Financier'!$G$16+'BP Financier'!$G$19+'BP Financier'!$G$22))*$V8594*AB8594/(1-$W8594)","v":{"v":854.6957436078159,"d":"855"}},null,{"v":0.006,"d":"0.60%"},{"$f":"Actif!$E$28/100","v":{"v":0.28900000000000003,"d":"28.90%"}},{"$f":"Actif!$E$30/100","v":{"v":0.09050000000000001,"d":"9.05%"}},{"$f":"Actif!$E$31/100","v":{"v":0.0605,"d":"6.05%"}},{"$f":"Actif!$E$32/100","v":{"v":0.47350000000000003,"d":"47.35%"}},{"$f":"Actif!$E$33/100","v":{"v":0.0585,"d":"5.85%"}},{"$f":"Actif!$E$29/100","v":{"v":0.027999999999999997,"d":"2.80%"}}]
[null,"#482",61,2028,"H","A_CAPI",{"v":0.44999999999999996,"d":"0.45"},{"v":0.38999999999999996,"d":"0.39"},0.6,0.6,85,0,{"$f":"ROUND(Primes!$Q$10*V8595,2)","v":0.78},0,{"v":21703.166918041326,"d":"21,703"},{"$f":"'BP Financier'!$G$44*(('BP Financier'!$C$22+'BP Financier'!$D$22+'BP Financier'!$E$22+'BP Financier'!$F$22+'BP Financier'!$G$22)/('BP Financier'!$C$16+'BP Financier'!$C$19+'BP Financier'!$D$16+'BP Financier'!$D$19+'BP Financier'!$E$16+'BP Financier'!$E$19+'BP Financier'!$C$22+'BP Financier'!$D$22+'BP Financier'!$E$22+'BP Financier'!$F$22+'BP Financier'!$F$16+'BP Financier'!$F$19+'BP Financier'!$G$16+'BP Financier'!$G$19+'BP Financier'!$G$22))*$V8595*X8595/(1-$W8595)","v":{"v":2762.4987427324054,"d":"2,762"}},{"$f":"'BP Financier'!$G$44*(('BP Financier'!$C$22+'BP Financier'!$D$22+'BP Financier'!$E$22+'BP Financier'!$F$22+'BP Financier'!$G$22)/('BP Financier'!$C$16+'BP Financier'!$C$19+'BP Financier'!$D$16+'BP Financier'!$D$19+'BP Financier'!$E$16+'BP Financier'!$E$19+'BP Financier'!$C$22+'BP Financier'!$D$22+'BP Financier'!$E$22+'BP Financier'!$F$22+'BP Financier'!$F$16+'BP Financier'!$F$19+'BP Financier'!$G$16+'BP Financier'!$G$19+'BP Financier'!$G$22))*$V8595*Y8595/(1-$W8595)","v":{"v":1846.7533031526023,"d":"1,847"}},{"$f":"'BP Financier'!$G$44*(('BP Financier'!$C$22+'BP Financier'!$D$22+'BP Financier'!$E$22+'BP Financier'!$F$22+'BP Financier'!$G$22)/('BP Financier'!$C$16+'BP Financier'!$C$19+'BP Financier'!$D$16+'BP Financier'!$D$19+'BP Financier'!$E$16+'BP Financier'!$E$19+'BP Financier'!$C$22+'BP Financier'!$D$22+'BP Financier'!$E$22+'BP Financier'!$F$22+'BP Financier'!$F$16+'BP Financier'!$F$19+'BP Financier'!$G$16+'BP Financier'!$G$19+'BP Financier'!$G$22))*$V8595*Z8595/(1-$W8595)","v":{"v":14453.51552136789,"d":"14,454"}},{"$f":"'BP Financier'!$G$44*(('BP Financier'!$C$22+'BP Financier'!$D$22+'BP Financier'!$E$22+'BP Financier'!$F$22+'BP Financier'!$G$22)/('BP Financier'!$C$16+'BP Financier'!$C$19+'BP Financier'!$D$16+'BP Financier'!$D$19+'BP Financier'!$E$16+'BP Financier'!$E$19+'BP Financier'!$C$22+'BP Financier'!$D$22+'BP Financier'!$E$22+'BP Financier'!$F$22+'BP Financier'!$F$16+'BP Financier'!$F$19+'BP Financier'!$G$16+'BP Financier'!$G$19+'BP Financier'!$G$22))*$V8595*AA8595/(1-$W8595)","v":{"v":1785.7036071806158,"d":"1,786"}},{"$f":"'BP Financier'!$G$44*(('BP Financier'!$C$22+'BP Financier'!$D$22+'BP Financier'!$E$22+'BP Financier'!$F$22+'BP Financier'!$G$22)/('BP Financier'!$C$16+'BP Financier'!$C$19+'BP Financier'!$D$16+'BP Financier'!$D$19+'BP Financier'!$E$16+'BP Financier'!$E$19+'BP Financier'!$C$22+'BP Financier'!$D$22+'BP Financier'!$E$22+'BP Financier'!$F$22+'BP Financier'!$F$16+'BP Financier'!$F$19+'BP Financier'!$G$16+'BP Financier'!$G$19+'BP Financier'!$G$22))*$V8595*AB8595/(1-$W8595)","v":{"v":854.6957436078159,"d":"855"}},null,{"v":0.006,"d":"0.60%"},{"$f":"Actif!$E$28/100","v":{"v":0.28900000000000003,"d":"28.90%"}},{"$f":"Actif!$E$30/100","v":{"v":0.09050000000000001,"d":"9.05%"}},{"$f":"Actif!$E$31/100","v":{"v":0.0605,"d":"6.05%"}},{"$f":"Actif!$E$32/100","v":{"v":0.47350000000000003,"d":"47.35%"}},{"$f":"Actif!$E$33/100","v":{"v":0.0585,"d":"5.85%"}},{"$f":"Actif!$E$29/100","v":{"v":0.027999999999999997,"d":"2.80%"}}]
[null,"#483",61,2029,"H","A_CAPI",{"v":0.44999999999999996,"d":"0.45"},{"v":0.38999999999999996,"d":"0.39"},0.6,0.6,85,0,{"$f":"ROUND(Primes!$Q$10*V8596,2)","v":0.78},0,{"v":21703.166918041326,"d":"21,703"},{"$f":"'BP Financier'!$G$44*(('BP Financier'!$C$22+'BP Financier'!$D$22+'BP Financier'!$E$22+'BP Financier'!$F$22+'BP Financier'!$G$22)/('BP Financier'!$C$16+'BP Financier'!$C$19+'BP Financier'!$D$16+'BP Financier'!$D$19+'BP Financier'!$E$16+'BP Financier'!$E$19+'BP Financier'!$C$22+'BP Financier'!$D$22+'BP Financier'!$E$22+'BP Financier'!$F$22+'BP Financier'!$F$16+'BP Financier'!$F$19+'BP Financier'!$G$16+'BP Financier'!$G$19+'BP Financier'!$G$22))*$V8596*X8596/(1-$W8596)","v":{"v":2762.4987427324054,"d":"2,762"}},{"$f":"'BP Financier'!$G$44*(('BP Financier'!$C$22+'BP Financier'!$D$22+'BP Financier'!$E$22+'BP Financier'!$F$22+'BP Financier'!$G$22)/('BP Financier'!$C$16+'BP Financier'!$C$19+'BP Financier'!$D$16+'BP Financier'!$D$19+'BP Financier'!$E$16+'BP Financier'!$E$19+'BP Financier'!$C$22+'BP Financier'!$D$22+'BP Financier'!$E$22+'BP Financier'!$F$22+'BP Financier'!$F$16+'BP Financier'!$F$19+'BP Financier'!$G$16+'BP Financier'!$G$19+'BP Financier'!$G$22))*$V8596*Y8596/(1-$W8596)","v":{"v":1846.7533031526023,"d":"1,847"}},{"$f":"'BP Financier'!$G$44*(('BP Financier'!$C$22+'BP Financier'!$D$22+'BP Financier'!$E$22+'BP Financier'!$F$22+'BP Financier'!$G$22)/('BP Financier'!$C$16+'BP Financier'!$C$19+'BP Financier'!$D$16+'BP Financier'!$D$19+'BP Financier'!$E$16+'BP Financier'!$E$19+'BP Financier'!$C$22+'BP Financier'!$D$22+'BP Financier'!$E$22+'BP Financier'!$F$22+'BP Financier'!$F$16+'BP Financier'!$F$19+'BP Financier'!$G$16+'BP Financier'!$G$19+'BP Financier'!$G$22))*$V8596*Z8596/(1-$W8596)","v":{"v":14453.51552136789,"d":"14,454"}},{"$f":"'BP Financier'!$G$44*(('BP Financier'!$C$22+'BP Financier'!$D$22+'BP Financier'!$E$22+'BP Financier'!$F$22+'BP Financier'!$G$22)/('BP Financier'!$C$16+'BP Financier'!$C$19+'BP Financier'!$D$16+'BP Financier'!$D$19+'BP Financier'!$E$16+'BP Financier'!$E$19+'BP Financier'!$C$22+'BP Financier'!$D$22+'BP Financier'!$E$22+'BP Financier'!$F$22+'BP Financier'!$F$16+'BP Financier'!$F$19+'BP Financier'!$G$16+'BP Financier'!$G$19+'BP Financier'!$G$22))*$V8596*AA8596/(1-$W8596)","v":{"v":1785.7036071806158,"d":"1,786"}},{"$f":"'BP Financier'!$G$44*(('BP Financier'!$C$22+'BP Financier'!$D$22+'BP Financier'!$E$22+'BP Financier'!$F$22+'BP Financier'!$G$22)/('BP Financier'!$C$16+'BP Financier'!$C$19+'BP Financier'!$D$16+'BP Financier'!$D$19+'BP Financier'!$E$16+'BP Financier'!$E$19+'BP Financier'!$C$22+'BP Financier'!$D$22+'BP Financier'!$E$22+'BP Financier'!$F$22+'BP Financier'!$F$16+'BP Financier'!$F$19+'BP Financier'!$G$16+'BP Financier'!$G$19+'BP Financier'!$G$22))*$V8596*AB8596/(1-$W8596)","v":{"v":854.6957436078159,"d":"855"}},null,{"v":0.006,"d":"0.60%"},{"$f":"Actif!$E$28/100","v":{"v":0.28900000000000003,"d":"28.90%"}},{"$f":"Actif!$E$30/100","v":{"v":0.09050000000000001,"d":"9.05%"}},{"$f":"Actif!$E$31/100","v":{"v":0.0605,"d":"6.05%"}},{"$f":"Actif!$E$32/100","v":{"v":0.47350000000000003,"d":"47.35%"}},{"$f":"Actif!$E$33/100","v":{"v":0.0585,"d":"5.85%"}},{"$f":"Actif!$E$29/100","v":{"v":0.027999999999999997,"d":"2.80%"}}]
[null,"#484",61,2030,"H","A_CAPI",{"v":0.44999999999999996,"d":"0.45"},{"v":0.38999999999999996,"d":"0.39"},0.6,0.6,85,0,{"$f":"ROUND(Primes!$Q$10*V8597,2)","v":0.78},0,{"v":21703.166918041326,"d":"21,703"},{"$f":"'BP Financier'!$G$44*(('BP Financier'!$C$22+'BP Financier'!$D$22+'BP Financier'!$E$22+'BP Financier'!$F$22+'BP Financier'!$G$22)/('BP Financier'!$C$16+'BP Financier'!$C$19+'BP Financier'!$D$16+'BP Financier'!$D$19+'BP Financier'!$E$16+'BP Financier'!$E$19+'BP Financier'!$C$22+'BP Financier'!$D$22+'BP Financier'!$E$22+'BP Financier'!$F$22+'BP Financier'!$F$16+'BP Financier'!$F$19+'BP Financier'!$G$16+'BP Financier'!$G$19+'BP Financier'!$G$22))*$V8597*X8597/(1-$W8597)","v":{"v":2762.4987427324054,"d":"2,762"}},{"$f":"'BP Financier'!$G$44*(('BP Financier'!$C$22+'BP Financier'!$D$22+'BP Financier'!$E$22+'BP Financier'!$F$22+'BP Financier'!$G$22)/('BP Financier'!$C$16+'BP Financier'!$C$19+'BP Financier'!$D$16+'BP Financier'!$D$19+'BP Financier'!$E$16+'BP Financier'!$E$19+'BP Financier'!$C$22+'BP Financier'!$D$22+'BP Financier'!$E$22+'BP Financier'!$F$22+'BP Financier'!$F$16+'BP Financier'!$F$19+'BP Financier'!$G$16+'BP Financier'!$G$19+'BP Financier'!$G$22))*$V8597*Y8597/(1-$W8597)","v":{"v":1846.7533031526023,"d":"1,847"}},{"$f":"'BP Financier'!$G$44*(('BP Financier'!$C$22+'BP Financier'!$D$22+'BP Financier'!$E$22+'BP Financier'!$F$22+'BP Financier'!$G$22)/('BP Financier'!$C$16+'BP Financier'!$C$19+'BP Financier'!$D$16+'BP Financier'!$D$19+'BP Financier'!$E$16+'BP Financier'!$E$19+'BP Financier'!$C$22+'BP Financier'!$D$22+'BP Financier'!$E$22+'BP Financier'!$F$22+'BP Financier'!$F$16+'BP Financier'!$F$19+'BP Financier'!$G$16+'BP Financier'!$G$19+'BP Financier'!$G$22))*$V8597*Z8597/(1-$W8597)","v":{"v":14453.51552136789,"d":"14,454"}},{"$f":"'BP Financier'!$G$44*(('BP Financier'!$C$22+'BP Financier'!$D$22+'BP Financier'!$E$22+'BP Financier'!$F$22+'BP Financier'!$G$22)/('BP Financier'!$C$16+'BP Financier'!$C$19+'BP Financier'!$D$16+'BP Financier'!$D$19+'BP Financier'!$E$16+'BP Financier'!$E$19+'BP Financier'!$C$22+'BP Financier'!$D$22+'BP Financier'!$E$22+'BP Financier'!$F$22+'BP Financier'!$F$16+'BP Financier'!$F$19+'BP Financier'!$G$16+'BP Financier'!$G$19+'BP Financier'!$G$22))*$V8597*AA8597/(1-$W8597)","v":{"v":1785.7036071806158,"d":"1,786"}},{"$f":"'BP Financier'!$G$44*(('BP Financier'!$C$22+'BP Financier'!$D$22+'BP Financier'!$E$22+'BP Financier'!$F$22+'BP Financier'!$G$22)/('BP Financier'!$C$16+'BP Financier'!$C$19+'BP Financier'!$D$16+'BP Financier'!$D$19+'BP Financier'!$E$16+'BP Financier'!$E$19+'BP Financier'!$C$22+'BP Financier'!$D$22+'BP Financier'!$E$22+'BP Financier'!$F$22+'BP Financier'!$F$16+'BP Financier'!$F$19+'BP Financier'!$G$16+'BP Financier'!$G$19+'BP Financier'!$G$22))*$V8597*AB8597/(1-$W8597)","v":{"v":854.6957436078159,"d":"855"}},null,{"v":0.006,"d":"0.60%"},{"$f":"Actif!$E$28/100","v":{"v":0.28900000000000003,"d":"28.90%"}},{"$f":"Actif!$E$30/100","v":{"v":0.09050000000000001,"d":"9.05%"}},{"$f":"Actif!$E$31/100","v":{"v":0.0605,"d":"6.05%"}},{"$f":"Actif!$E$32/100","v":{"v":0.47350000000000003,"d":"47.35%"}},{"$f":"Actif!$E$33/100","v":{"v":0.0585,"d":"5.85%"}},{"$f":"Actif!$E$29/100","v":{"v":0.027999999999999997,"d":"2.80%"}}]
[null,"#485",61,2031,"H","A_CAPI",{"v":0.44999999999999996,"d":"0.45"},{"v":0.38999999999999996,"d":"0.39"},0.6,0.6,85,0,{"$f":"ROUND(Primes!$Q$10*V8598,2)","v":0.78},0,{"v":21703.166918041326,"d":"21,703"},{"$f":"'BP Financier'!$G$44*(('BP Financier'!$C$22+'BP Financier'!$D$22+'BP Financier'!$E$22+'BP Financier'!$F$22+'BP Financier'!$G$22)/('BP Financier'!$C$16+'BP Financier'!$C$19+'BP Financier'!$D$16+'BP Financier'!$D$19+'BP Financier'!$E$16+'BP Financier'!$E$19+'BP Financier'!$C$22+'BP Financier'!$D$22+'BP Financier'!$E$22+'BP Financier'!$F$22+'BP Financier'!$F$16+'BP Financier'!$F$19+'BP Financier'!$G$16+'BP Financier'!$G$19+'BP Financier'!$G$22))*$V8598*X8598/(1-$W8598)","v":{"v":2762.4987427324054,"d":"2,762"}},{"$f":"'BP Financier'!$G$44*(('BP Financier'!$C$22+'BP Financier'!$D$22+'BP Financier'!$E$22+'BP Financier'!$F$22+'BP Financier'!$G$22)/('BP Financier'!$C$16+'BP Financier'!$C$19+'BP Financier'!$D$16+'BP Financier'!$D$19+'BP Financier'!$E$16+'BP Financier'!$E$19+'BP Financier'!$C$22+'BP Financier'!$D$22+'BP Financier'!$E$22+'BP Financier'!$F$22+'BP Financier'!$F$16+'BP Financier'!$F$19+'BP Financier'!$G$16+'BP Financier'!$G$19+'BP Financier'!$G$22))*$V8598*Y8598/(1-$W8598)","v":{"v":1846.7533031526023,"d":"1,847"}},{"$f":"'BP Financier'!$G$44*(('BP Financier'!$C$22+'BP Financier'!$D$22+'BP Financier'!$E$22+'BP Financier'!$F$22+'BP Financier'!$G$22)/('BP Financier'!$C$16+'BP Financier'!$C$19+'BP Financier'!$D$16+'BP Financier'!$D$19+'BP Financier'!$E$16+'BP Financier'!$E$19+'BP Financier'!$C$22+'BP Financier'!$D$22+'BP Financier'!$E$22+'BP Financier'!$F$22+'BP Financier'!$F$16+'BP Financier'!$F$19+'BP Financier'!$G$16+'BP Financier'!$G$19+'BP Financier'!$G$22))*$V8598*Z8598/(1-$W8598)","v":{"v":14453.51552136789,"d":"14,454"}},{"$f":"'BP Financier'!$G$44*(('BP Financier'!$C$22+'BP Financier'!$D$22+'BP Financier'!$E$22+'BP Financier'!$F$22+'BP Financier'!$G$22)/('BP Financier'!$C$16+'BP Financier'!$C$19+'BP Financier'!$D$16+'BP Financier'!$D$19+'BP Financier'!$E$16+'BP Financier'!$E$19+'BP Financier'!$C$22+'BP Financier'!$D$22+'BP Financier'!$E$22+'BP Financier'!$F$22+'BP Financier'!$F$16+'BP Financier'!$F$19+'BP Financier'!$G$16+'BP Financier'!$G$19+'BP Financier'!$G$22))*$V8598*AA8598/(1-$W8598)","v":{"v":1785.7036071806158,"d":"1,786"}},{"$f":"'BP Financier'!$G$44*(('BP Financier'!$C$22+'BP Financier'!$D$22+'BP Financier'!$E$22+'BP Financier'!$F$22+'BP Financier'!$G$22)/('BP Financier'!$C$16+'BP Financier'!$C$19+'BP Financier'!$D$16+'BP Financier'!$D$19+'BP Financier'!$E$16+'BP Financier'!$E$19+'BP Financier'!$C$22+'BP Financier'!$D$22+'BP Financier'!$E$22+'BP Financier'!$F$22+'BP Financier'!$F$16+'BP Financier'!$F$19+'BP Financier'!$G$16+'BP Financier'!$G$19+'BP Financier'!$G$22))*$V8598*AB8598/(1-$W8598)","v":{"v":854.6957436078159,"d":"855"}},null,{"v":0.006,"d":"0.60%"},{"$f":"Actif!$E$28/100","v":{"v":0.28900000000000003,"d":"28.90%"}},{"$f":"Actif!$E$30/100","v":{"v":0.09050000000000001,"d":"9.05%"}},{"$f":"Actif!$E$31/100","v":{"v":0.0605,"d":"6.05%"}},{"$f":"Actif!$E$32/100","v":{"v":0.47350000000000003,"d":"47.35%"}},{"$f":"Actif!$E$33/100","v":{"v":0.0585,"d":"5.85%"}},{"$f":"Actif!$E$29/100","v":{"v":0.027999999999999997,"d":"2.80%"}}]
[null,"#486",62,2026,"F","A_CAPI",{"v":0.44999999999999996,"d":"0.45"},{"v":0.38999999999999996,"d":"0.39"},0.6,0.6,85,0,{"$f":"ROUND(Primes!$Q$10*V8599,2)","v":0.78},0,{"v":21703.166918041326,"d":"21,703"},{"$f":"'BP Financier'!$G$44*(('BP Financier'!$C$22+'BP Financier'!$D$22+'BP Financier'!$E$22+'BP Financier'!$F$22+'BP Financier'!$G$22)/('BP Financier'!$C$16+'BP Financier'!$C$19+'BP Financier'!$D$16+'BP Financier'!$D$19+'BP Financier'!$E$16+'BP Financier'!$E$19+'BP Financier'!$C$22+'BP Financier'!$D$22+'BP Financier'!$E$22+'BP Financier'!$F$22+'BP Financier'!$F$16+'BP Financier'!$F$19+'BP Financier'!$G$16+'BP Financier'!$G$19+'BP Financier'!$G$22))*$V8599*X8599/(1-$W8599)","v":{"v":2762.4987427324054,"d":"2,762"}},{"$f":"'BP Financier'!$G$44*(('BP Financier'!$C$22+'BP Financier'!$D$22+'BP Financier'!$E$22+'BP Financier'!$F$22+'BP Financier'!$G$22)/('BP Financier'!$C$16+'BP Financier'!$C$19+'BP Financier'!$D$16+'BP Financier'!$D$19+'BP Financier'!$E$16+'BP Financier'!$E$19+'BP Financier'!$C$22+'BP Financier'!$D$22+'BP Financier'!$E$22+'BP Financier'!$F$22+'BP Financier'!$F$16+'BP Financier'!$F$19+'BP Financier'!$G$16+'BP Financier'!$G$19+'BP Financier'!$G$22))*$V8599*Y8599/(1-$W8599)","v":{"v":1846.7533031526023,"d":"1,847"}},{"$f":"'BP Financier'!$G$44*(('BP Financier'!$C$22+'BP Financier'!$D$22+'BP Financier'!$E$22+'BP Financier'!$F$22+'BP Financier'!$G$22)/('BP Financier'!$C$16+'BP Financier'!$C$19+'BP Financier'!$D$16+'BP Financier'!$D$19+'BP Financier'!$E$16+'BP Financier'!$E$19+'BP Financier'!$C$22+'BP Financier'!$D$22+'BP Financier'!$E$22+'BP Financier'!$F$22+'BP Financier'!$F$16+'BP Financier'!$F$19+'BP Financier'!$G$16+'BP Financier'!$G$19+'BP Financier'!$G$22))*$V8599*Z8599/(1-$W8599)","v":{"v":14453.51552136789,"d":"14,454"}},{"$f":"'BP Financier'!$G$44*(('BP Financier'!$C$22+'BP Financier'!$D$22+'BP Financier'!$E$22+'BP Financier'!$F$22+'BP Financier'!$G$22)/('BP Financier'!$C$16+'BP Financier'!$C$19+'BP Financier'!$D$16+'BP Financier'!$D$19+'BP Financier'!$E$16+'BP Financier'!$E$19+'BP Financier'!$C$22+'BP Financier'!$D$22+'BP Financier'!$E$22+'BP Financier'!$F$22+'BP Financier'!$F$16+'BP Financier'!$F$19+'BP Financier'!$G$16+'BP Financier'!$G$19+'BP Financier'!$G$22))*$V8599*AA8599/(1-$W8599)","v":{"v":1785.7036071806158,"d":"1,786"}},{"$f":"'BP Financier'!$G$44*(('BP Financier'!$C$22+'BP Financier'!$D$22+'BP Financier'!$E$22+'BP Financier'!$F$22+'BP Financier'!$G$22)/('BP Financier'!$C$16+'BP Financier'!$C$19+'BP Financier'!$D$16+'BP Financier'!$D$19+'BP Financier'!$E$16+'BP Financier'!$E$19+'BP Financier'!$C$22+'BP Financier'!$D$22+'BP Financier'!$E$22+'BP Financier'!$F$22+'BP Financier'!$F$16+'BP Financier'!$F$19+'BP Financier'!$G$16+'BP Financier'!$G$19+'BP Financier'!$G$22))*$V8599*AB8599/(1-$W8599)","v":{"v":854.6957436078159,"d":"855"}},null,{"v":0.006,"d":"0.60%"},{"$f":"Actif!$E$28/100","v":{"v":0.28900000000000003,"d":"28.90%"}},{"$f":"Actif!$E$30/100","v":{"v":0.09050000000000001,"d":"9.05%"}},{"$f":"Actif!$E$31/100","v":{"v":0.0605,"d":"6.05%"}},{"$f":"Actif!$E$32/100","v":{"v":0.47350000000000003,"d":"47.35%"}},{"$f":"Actif!$E$33/100","v":{"v":0.0585,"d":"5.85%"}},{"$f":"Actif!$E$29/100","v":{"v":0.027999999999999997,"d":"2.80%"}}]
[null,"#487",62,2028,"F","A_CAPI",{"v":0.44999999999999996,"d":"0.45"},{"v":0.38999999999999996,"d":"0.39"},0.6,0.6,85,0,{"$f":"ROUND(Primes!$Q$10*V8600,2)","v":0.78},0,{"v":21703.166918041326,"d":"21,703"},{"$f":"'BP Financier'!$G$44*(('BP Financier'!$C$22+'BP Financier'!$D$22+'BP Financier'!$E$22+'BP Financier'!$F$22+'BP Financier'!$G$22)/('BP Financier'!$C$16+'BP Financier'!$C$19+'BP Financier'!$D$16+'BP Financier'!$D$19+'BP Financier'!$E$16+'BP Financier'!$E$19+'BP Financier'!$C$22+'BP Financier'!$D$22+'BP Financier'!$E$22+'BP Financier'!$F$22+'BP Financier'!$F$16+'BP Financier'!$F$19+'BP Financier'!$G$16+'BP Financier'!$G$19+'BP Financier'!$G$22))*$V8600*X8600/(1-$W8600)","v":{"v":2762.4987427324054,"d":"2,762"}},{"$f":"'BP Financier'!$G$44*(('BP Financier'!$C$22+'BP Financier'!$D$22+'BP Financier'!$E$22+'BP Financier'!$F$22+'BP Financier'!$G$22)/('BP Financier'!$C$16+'BP Financier'!$C$19+'BP Financier'!$D$16+'BP Financier'!$D$19+'BP Financier'!$E$16+'BP Financier'!$E$19+'BP Financier'!$C$22+'BP Financier'!$D$22+'BP Financier'!$E$22+'BP Financier'!$F$22+'BP Financier'!$F$16+'BP Financier'!$F$19+'BP Financier'!$G$16+'BP Financier'!$G$19+'BP Financier'!$G$22))*$V8600*Y8600/(1-$W8600)","v":{"v":1846.7533031526023,"d":"1,847"}},{"$f":"'BP Financier'!$G$44*(('BP Financier'!$C$22+'BP Financier'!$D$22+'BP Financier'!$E$22+'BP Financier'!$F$22+'BP Financier'!$G$22)/('BP Financier'!$C$16+'BP Financier'!$C$19+'BP Financier'!$D$16+'BP Financier'!$D$19+'BP Financier'!$E$16+'BP Financier'!$E$19+'BP Financier'!$C$22+'BP Financier'!$D$22+'BP Financier'!$E$22+'BP Financier'!$F$22+'BP Financier'!$F$16+'BP Financier'!$F$19+'BP Financier'!$G$16+'BP Financier'!$G$19+'BP Financier'!$G$22))*$V8600*Z8600/(1-$W8600)","v":{"v":14453.51552136789,"d":"14,454"}},{"$f":"'BP Financier'!$G$44*(('BP Financier'!$C$22+'BP Financier'!$D$22+'BP Financier'!$E$22+'BP Financier'!$F$22+'BP Financier'!$G$22)/('BP Financier'!$C$16+'BP Financier'!$C$19+'BP Financier'!$D$16+'BP Financier'!$D$19+'BP Financier'!$E$16+'BP Financier'!$E$19+'BP Financier'!$C$22+'BP Financier'!$D$22+'BP Financier'!$E$22+'BP Financier'!$F$22+'BP Financier'!$F$16+'BP Financier'!$F$19+'BP Financier'!$G$16+'BP Financier'!$G$19+'BP Financier'!$G$22))*$V8600*AA8600/(1-$W8600)","v":{"v":1785.7036071806158,"d":"1,786"}},{"$f":"'BP Financier'!$G$44*(('BP Financier'!$C$22+'BP Financier'!$D$22+'BP Financier'!$E$22+'BP Financier'!$F$22+'BP Financier'!$G$22)/('BP Financier'!$C$16+'BP Financier'!$C$19+'BP Financier'!$D$16+'BP Financier'!$D$19+'BP Financier'!$E$16+'BP Financier'!$E$19+'BP Financier'!$C$22+'BP Financier'!$D$22+'BP Financier'!$E$22+'BP Financier'!$F$22+'BP Financier'!$F$16+'BP Financier'!$F$19+'BP Financier'!$G$16+'BP Financier'!$G$19+'BP Financier'!$G$22))*$V8600*AB8600/(1-$W8600)","v":{"v":854.6957436078159,"d":"855"}},null,{"v":0.006,"d":"0.60%"},{"$f":"Actif!$E$28/100","v":{"v":0.28900000000000003,"d":"28.90%"}},{"$f":"Actif!$E$30/100","v":{"v":0.09050000000000001,"d":"9.05%"}},{"$f":"Actif!$E$31/100","v":{"v":0.0605,"d":"6.05%"}},{"$f":"Actif!$E$32/100","v":{"v":0.47350000000000003,"d":"47.35%"}},{"$f":"Actif!$E$33/100","v":{"v":0.0585,"d":"5.85%"}},{"$f":"Actif!$E$29/100","v":{"v":0.027999999999999997,"d":"2.80%"}}]
[null,"#488",62,2029,"F","A_CAPI",{"v":0.44999999999999996,"d":"0.45"},{"v":0.38999999999999996,"d":"0.39"},0.6,0.6,85,0,{"$f":"ROUND(Primes!$Q$10*V8601,2)","v":0.78},0,{"v":21703.166918041326,"d":"21,703"},{"$f":"'BP Financier'!$G$44*(('BP Financier'!$C$22+'BP Financier'!$D$22+'BP Financier'!$E$22+'BP Financier'!$F$22+'BP Financier'!$G$22)/('BP Financier'!$C$16+'BP Financier'!$C$19+'BP Financier'!$D$16+'BP Financier'!$D$19+'BP Financier'!$E$16+'BP Financier'!$E$19+'BP Financier'!$C$22+'BP Financier'!$D$22+'BP Financier'!$E$22+'BP Financier'!$F$22+'BP Financier'!$F$16+'BP Financier'!$F$19+'BP Financier'!$G$16+'BP Financier'!$G$19+'BP Financier'!$G$22))*$V8601*X8601/(1-$W8601)","v":{"v":2762.4987427324054,"d":"2,762"}},{"$f":"'BP Financier'!$G$44*(('BP Financier'!$C$22+'BP Financier'!$D$22+'BP Financier'!$E$22+'BP Financier'!$F$22+'BP Financier'!$G$22)/('BP Financier'!$C$16+'BP Financier'!$C$19+'BP Financier'!$D$16+'BP Financier'!$D$19+'BP Financier'!$E$16+'BP Financier'!$E$19+'BP Financier'!$C$22+'BP Financier'!$D$22+'BP Financier'!$E$22+'BP Financier'!$F$22+'BP Financier'!$F$16+'BP Financier'!$F$19+'BP Financier'!$G$16+'BP Financier'!$G$19+'BP Financier'!$G$22))*$V8601*Y8601/(1-$W8601)","v":{"v":1846.7533031526023,"d":"1,847"}},{"$f":"'BP Financier'!$G$44*(('BP Financier'!$C$22+'BP Financier'!$D$22+'BP Financier'!$E$22+'BP Financier'!$F$22+'BP Financier'!$G$22)/('BP Financier'!$C$16+'BP Financier'!$C$19+'BP Financier'!$D$16+'BP Financier'!$D$19+'BP Financier'!$E$16+'BP Financier'!$E$19+'BP Financier'!$C$22+'BP Financier'!$D$22+'BP Financier'!$E$22+'BP Financier'!$F$22+'BP Financier'!$F$16+'BP Financier'!$F$19+'BP Financier'!$G$16+'BP Financier'!$G$19+'BP Financier'!$G$22))*$V8601*Z8601/(1-$W8601)","v":{"v":14453.51552136789,"d":"14,454"}},{"$f":"'BP Financier'!$G$44*(('BP Financier'!$C$22+'BP Financier'!$D$22+'BP Financier'!$E$22+'BP Financier'!$F$22+'BP Financier'!$G$22)/('BP Financier'!$C$16+'BP Financier'!$C$19+'BP Financier'!$D$16+'BP Financier'!$D$19+'BP Financier'!$E$16+'BP Financier'!$E$19+'BP Financier'!$C$22+'BP Financier'!$D$22+'BP Financier'!$E$22+'BP Financier'!$F$22+'BP Financier'!$F$16+'BP Financier'!$F$19+'BP Financier'!$G$16+'BP Financier'!$G$19+'BP Financier'!$G$22))*$V8601*AA8601/(1-$W8601)","v":{"v":1785.7036071806158,"d":"1,786"}},{"$f":"'BP Financier'!$G$44*(('BP Financier'!$C$22+'BP Financier'!$D$22+'BP Financier'!$E$22+'BP Financier'!$F$22+'BP Financier'!$G$22)/('BP Financier'!$C$16+'BP Financier'!$C$19+'BP Financier'!$D$16+'BP Financier'!$D$19+'BP Financier'!$E$16+'BP Financier'!$E$19+'BP Financier'!$C$22+'BP Financier'!$D$22+'BP Financier'!$E$22+'BP Financier'!$F$22+'BP Financier'!$F$16+'BP Financier'!$F$19+'BP Financier'!$G$16+'BP Financier'!$G$19+'BP Financier'!$G$22))*$V8601*AB8601/(1-$W8601)","v":{"v":854.6957436078159,"d":"855"}},null,{"v":0.006,"d":"0.60%"},{"$f":"Actif!$E$28/100","v":{"v":0.28900000000000003,"d":"28.90%"}},{"$f":"Actif!$E$30/100","v":{"v":0.09050000000000001,"d":"9.05%"}},{"$f":"Actif!$E$31/100","v":{"v":0.0605,"d":"6.05%"}},{"$f":"Actif!$E$32/100","v":{"v":0.47350000000000003,"d":"47.35%"}},{"$f":"Actif!$E$33/100","v":{"v":0.0585,"d":"5.85%"}},{"$f":"Actif!$E$29/100","v":{"v":0.027999999999999997,"d":"2.80%"}}]
[null,"#489",62,2030,"F","A_CAPI",{"v":0.44999999999999996,"d":"0.45"},{"v":0.38999999999999996,"d":"0.39"},0.6,0.6,85,0,{"$f":"ROUND(Primes!$Q$10*V8602,2)","v":0.78},0,{"v":21703.166918041326,"d":"21,703"},{"$f":"'BP Financier'!$G$44*(('BP Financier'!$C$22+'BP Financier'!$D$22+'BP Financier'!$E$22+'BP Financier'!$F$22+'BP Financier'!$G$22)/('BP Financier'!$C$16+'BP Financier'!$C$19+'BP Financier'!$D$16+'BP Financier'!$D$19+'BP Financier'!$E$16+'BP Financier'!$E$19+'BP Financier'!$C$22+'BP Financier'!$D$22+'BP Financier'!$E$22+'BP Financier'!$F$22+'BP Financier'!$F$16+'BP Financier'!$F$19+'BP Financier'!$G$16+'BP Financier'!$G$19+'BP Financier'!$G$22))*$V8602*X8602/(1-$W8602)","v":{"v":2762.4987427324054,"d":"2,762"}},{"$f":"'BP Financier'!$G$44*(('BP Financier'!$C$22+'BP Financier'!$D$22+'BP Financier'!$E$22+'BP Financier'!$F$22+'BP Financier'!$G$22)/('BP Financier'!$C$16+'BP Financier'!$C$19+'BP Financier'!$D$16+'BP Financier'!$D$19+'BP Financier'!$E$16+'BP Financier'!$E$19+'BP Financier'!$C$22+'BP Financier'!$D$22+'BP Financier'!$E$22+'BP Financier'!$F$22+'BP Financier'!$F$16+'BP Financier'!$F$19+'BP Financier'!$G$16+'BP Financier'!$G$19+'BP Financier'!$G$22))*$V8602*Y8602/(1-$W8602)","v":{"v":1846.7533031526023,"d":"1,847"}},{"$f":"'BP Financier'!$G$44*(('BP Financier'!$C$22+'BP Financier'!$D$22+'BP Financier'!$E$22+'BP Financier'!$F$22+'BP Financier'!$G$22)/('BP Financier'!$C$16+'BP Financier'!$C$19+'BP Financier'!$D$16+'BP Financier'!$D$19+'BP Financier'!$E$16+'BP Financier'!$E$19+'BP Financier'!$C$22+'BP Financier'!$D$22+'BP Financier'!$E$22+'BP Financier'!$F$22+'BP Financier'!$F$16+'BP Financier'!$F$19+'BP Financier'!$G$16+'BP Financier'!$G$19+'BP Financier'!$G$22))*$V8602*Z8602/(1-$W8602)","v":{"v":14453.51552136789,"d":"14,454"}},{"$f":"'BP Financier'!$G$44*(('BP Financier'!$C$22+'BP Financier'!$D$22+'BP Financier'!$E$22+'BP Financier'!$F$22+'BP Financier'!$G$22)/('BP Financier'!$C$16+'BP Financier'!$C$19+'BP Financier'!$D$16+'BP Financier'!$D$19+'BP Financier'!$E$16+'BP Financier'!$E$19+'BP Financier'!$C$22+'BP Financier'!$D$22+'BP Financier'!$E$22+'BP Financier'!$F$22+'BP Financier'!$F$16+'BP Financier'!$F$19+'BP Financier'!$G$16+'BP Financier'!$G$19+'BP Financier'!$G$22))*$V8602*AA8602/(1-$W8602)","v":{"v":1785.7036071806158,"d":"1,786"}},{"$f":"'BP Financier'!$G$44*(('BP Financier'!$C$22+'BP Financier'!$D$22+'BP Financier'!$E$22+'BP Financier'!$F$22+'BP Financier'!$G$22)/('BP Financier'!$C$16+'BP Financier'!$C$19+'BP Financier'!$D$16+'BP Financier'!$D$19+'BP Financier'!$E$16+'BP Financier'!$E$19+'BP Financier'!$C$22+'BP Financier'!$D$22+'BP Financier'!$E$22+'BP Financier'!$F$22+'BP Financier'!$F$16+'BP Financier'!$F$19+'BP Financier'!$G$16+'BP Financier'!$G$19+'BP Financier'!$G$22))*$V8602*AB8602/(1-$W8602)","v":{"v":854.6957436078159,"d":"855"}},null,{"v":0.006,"d":"0.60%"},{"$f":"Actif!$E$28/100","v":{"v":0.28900000000000003,"d":"28.90%"}},{"$f":"Actif!$E$30/100","v":{"v":0.09050000000000001,"d":"9.05%"}},{"$f":"Actif!$E$31/100","v":{"v":0.0605,"d":"6.05%"}},{"$f":"Actif!$E$32/100","v":{"v":0.47350000000000003,"d":"47.35%"}},{"$f":"Actif!$E$33/100","v":{"v":0.0585,"d":"5.85%"}},{"$f":"Actif!$E$29/100","v":{"v":0.027999999999999997,"d":"2.80%"}}]
[null,"#490",62,2031,"F","A_CAPI",{"v":0.44999999999999996,"d":"0.45"},{"v":0.38999999999999996,"d":"0.39"},0.6,0.6,85,0,{"$f":"ROUND(Primes!$Q$10*V8603,2)","v":0.78},0,{"v":21703.166918041326,"d":"21,703"},{"$f":"'BP Financier'!$G$44*(('BP Financier'!$C$22+'BP Financier'!$D$22+'BP Financier'!$E$22+'BP Financier'!$F$22+'BP Financier'!$G$22)/('BP Financier'!$C$16+'BP Financier'!$C$19+'BP Financier'!$D$16+'BP Financier'!$D$19+'BP Financier'!$E$16+'BP Financier'!$E$19+'BP Financier'!$C$22+'BP Financier'!$D$22+'BP Financier'!$E$22+'BP Financier'!$F$22+'BP Financier'!$F$16+'BP Financier'!$F$19+'BP Financier'!$G$16+'BP Financier'!$G$19+'BP Financier'!$G$22))*$V8603*X8603/(1-$W8603)","v":{"v":2762.4987427324054,"d":"2,762"}},{"$f":"'BP Financier'!$G$44*(('BP Financier'!$C$22+'BP Financier'!$D$22+'BP Financier'!$E$22+'BP Financier'!$F$22+'BP Financier'!$G$22)/('BP Financier'!$C$16+'BP Financier'!$C$19+'BP Financier'!$D$16+'BP Financier'!$D$19+'BP Financier'!$E$16+'BP Financier'!$E$19+'BP Financier'!$C$22+'BP Financier'!$D$22+'BP Financier'!$E$22+'BP Financier'!$F$22+'BP Financier'!$F$16+'BP Financier'!$F$19+'BP Financier'!$G$16+'BP Financier'!$G$19+'BP Financier'!$G$22))*$V8603*Y8603/(1-$W8603)","v":{"v":1846.7533031526023,"d":"1,847"}},{"$f":"'BP Financier'!$G$44*(('BP Financier'!$C$22+'BP Financier'!$D$22+'BP Financier'!$E$22+'BP Financier'!$F$22+'BP Financier'!$G$22)/('BP Financier'!$C$16+'BP Financier'!$C$19+'BP Financier'!$D$16+'BP Financier'!$D$19+'BP Financier'!$E$16+'BP Financier'!$E$19+'BP Financier'!$C$22+'BP Financier'!$D$22+'BP Financier'!$E$22+'BP Financier'!$F$22+'BP Financier'!$F$16+'BP Financier'!$F$19+'BP Financier'!$G$16+'BP Financier'!$G$19+'BP Financier'!$G$22))*$V8603*Z8603/(1-$W8603)","v":{"v":14453.51552136789,"d":"14,454"}},{"$f":"'BP Financier'!$G$44*(('BP Financier'!$C$22+'BP Financier'!$D$22+'BP Financier'!$E$22+'BP Financier'!$F$22+'BP Financier'!$G$22)/('BP Financier'!$C$16+'BP Financier'!$C$19+'BP Financier'!$D$16+'BP Financier'!$D$19+'BP Financier'!$E$16+'BP Financier'!$E$19+'BP Financier'!$C$22+'BP Financier'!$D$22+'BP Financier'!$E$22+'BP Financier'!$F$22+'BP Financier'!$F$16+'BP Financier'!$F$19+'BP Financier'!$G$16+'BP Financier'!$G$19+'BP Financier'!$G$22))*$V8603*AA8603/(1-$W8603)","v":{"v":1785.7036071806158,"d":"1,786"}},{"$f":"'BP Financier'!$G$44*(('BP Financier'!$C$22+'BP Financier'!$D$22+'BP Financier'!$E$22+'BP Financier'!$F$22+'BP Financier'!$G$22)/('BP Financier'!$C$16+'BP Financier'!$C$19+'BP Financier'!$D$16+'BP Financier'!$D$19+'BP Financier'!$E$16+'BP Financier'!$E$19+'BP Financier'!$C$22+'BP Financier'!$D$22+'BP Financier'!$E$22+'BP Financier'!$F$22+'BP Financier'!$F$16+'BP Financier'!$F$19+'BP Financier'!$G$16+'BP Financier'!$G$19+'BP Financier'!$G$22))*$V8603*AB8603/(1-$W8603)","v":{"v":854.6957436078159,"d":"855"}},null,{"v":0.006,"d":"0.60%"},{"$f":"Actif!$E$28/100","v":{"v":0.28900000000000003,"d":"28.90%"}},{"$f":"Actif!$E$30/100","v":{"v":0.09050000000000001,"d":"9.05%"}},{"$f":"Actif!$E$31/100","v":{"v":0.0605,"d":"6.05%"}},{"$f":"Actif!$E$32/100","v":{"v":0.47350000000000003,"d":"47.35%"}},{"$f":"Actif!$E$33/100","v":{"v":0.0585,"d":"5.85%"}},{"$f":"Actif!$E$29/100","v":{"v":0.027999999999999997,"d":"2.80%"}}]
[null,"#491",63,2026,"H","A_CAPI",{"v":0.44999999999999996,"d":"0.45"},{"v":0.38999999999999996,"d":"0.39"},0.6,0.6,85,0,{"$f":"ROUND(Primes!$Q$10*V8604,2)","v":0.78},0,{"v":21703.166918041326,"d":"21,703"},{"$f":"'BP Financier'!$G$44*(('BP Financier'!$C$22+'BP Financier'!$D$22+'BP Financier'!$E$22+'BP Financier'!$F$22+'BP Financier'!$G$22)/('BP Financier'!$C$16+'BP Financier'!$C$19+'BP Financier'!$D$16+'BP Financier'!$D$19+'BP Financier'!$E$16+'BP Financier'!$E$19+'BP Financier'!$C$22+'BP Financier'!$D$22+'BP Financier'!$E$22+'BP Financier'!$F$22+'BP Financier'!$F$16+'BP Financier'!$F$19+'BP Financier'!$G$16+'BP Financier'!$G$19+'BP Financier'!$G$22))*$V8604*X8604/(1-$W8604)","v":{"v":2762.4987427324054,"d":"2,762"}},{"$f":"'BP Financier'!$G$44*(('BP Financier'!$C$22+'BP Financier'!$D$22+'BP Financier'!$E$22+'BP Financier'!$F$22+'BP Financier'!$G$22)/('BP Financier'!$C$16+'BP Financier'!$C$19+'BP Financier'!$D$16+'BP Financier'!$D$19+'BP Financier'!$E$16+'BP Financier'!$E$19+'BP Financier'!$C$22+'BP Financier'!$D$22+'BP Financier'!$E$22+'BP Financier'!$F$22+'BP Financier'!$F$16+'BP Financier'!$F$19+'BP Financier'!$G$16+'BP Financier'!$G$19+'BP Financier'!$G$22))*$V8604*Y8604/(1-$W8604)","v":{"v":1846.7533031526023,"d":"1,847"}},{"$f":"'BP Financier'!$G$44*(('BP Financier'!$C$22+'BP Financier'!$D$22+'BP Financier'!$E$22+'BP Financier'!$F$22+'BP Financier'!$G$22)/('BP Financier'!$C$16+'BP Financier'!$C$19+'BP Financier'!$D$16+'BP Financier'!$D$19+'BP Financier'!$E$16+'BP Financier'!$E$19+'BP Financier'!$C$22+'BP Financier'!$D$22+'BP Financier'!$E$22+'BP Financier'!$F$22+'BP Financier'!$F$16+'BP Financier'!$F$19+'BP Financier'!$G$16+'BP Financier'!$G$19+'BP Financier'!$G$22))*$V8604*Z8604/(1-$W8604)","v":{"v":14453.51552136789,"d":"14,454"}},{"$f":"'BP Financier'!$G$44*(('BP Financier'!$C$22+'BP Financier'!$D$22+'BP Financier'!$E$22+'BP Financier'!$F$22+'BP Financier'!$G$22)/('BP Financier'!$C$16+'BP Financier'!$C$19+'BP Financier'!$D$16+'BP Financier'!$D$19+'BP Financier'!$E$16+'BP Financier'!$E$19+'BP Financier'!$C$22+'BP Financier'!$D$22+'BP Financier'!$E$22+'BP Financier'!$F$22+'BP Financier'!$F$16+'BP Financier'!$F$19+'BP Financier'!$G$16+'BP Financier'!$G$19+'BP Financier'!$G$22))*$V8604*AA8604/(1-$W8604)","v":{"v":1785.7036071806158,"d":"1,786"}},{"$f":"'BP Financier'!$G$44*(('BP Financier'!$C$22+'BP Financier'!$D$22+'BP Financier'!$E$22+'BP Financier'!$F$22+'BP Financier'!$G$22)/('BP Financier'!$C$16+'BP Financier'!$C$19+'BP Financier'!$D$16+'BP Financier'!$D$19+'BP Financier'!$E$16+'BP Financier'!$E$19+'BP Financier'!$C$22+'BP Financier'!$D$22+'BP Financier'!$E$22+'BP Financier'!$F$22+'BP Financier'!$F$16+'BP Financier'!$F$19+'BP Financier'!$G$16+'BP Financier'!$G$19+'BP Financier'!$G$22))*$V8604*AB8604/(1-$W8604)","v":{"v":854.6957436078159,"d":"855"}},null,{"v":0.006,"d":"0.60%"},{"$f":"Actif!$E$28/100","v":{"v":0.28900000000000003,"d":"28.90%"}},{"$f":"Actif!$E$30/100","v":{"v":0.09050000000000001,"d":"9.05%"}},{"$f":"Actif!$E$31/100","v":{"v":0.0605,"d":"6.05%"}},{"$f":"Actif!$E$32/100","v":{"v":0.47350000000000003,"d":"47.35%"}},{"$f":"Actif!$E$33/100","v":{"v":0.0585,"d":"5.85%"}},{"$f":"Actif!$E$29/100","v":{"v":0.027999999999999997,"d":"2.80%"}}]
[null,"#492",63,2028,"H","A_CAPI",{"v":0.44999999999999996,"d":"0.45"},{"v":0.38999999999999996,"d":"0.39"},0.6,0.6,85,0,{"$f":"ROUND(Primes!$Q$10*V8605,2)","v":0.78},0,{"v":21703.166918041326,"d":"21,703"},{"$f":"'BP Financier'!$G$44*(('BP Financier'!$C$22+'BP Financier'!$D$22+'BP Financier'!$E$22+'BP Financier'!$F$22+'BP Financier'!$G$22)/('BP Financier'!$C$16+'BP Financier'!$C$19+'BP Financier'!$D$16+'BP Financier'!$D$19+'BP Financier'!$E$16+'BP Financier'!$E$19+'BP Financier'!$C$22+'BP Financier'!$D$22+'BP Financier'!$E$22+'BP Financier'!$F$22+'BP Financier'!$F$16+'BP Financier'!$F$19+'BP Financier'!$G$16+'BP Financier'!$G$19+'BP Financier'!$G$22))*$V8605*X8605/(1-$W8605)","v":{"v":2762.4987427324054,"d":"2,762"}},{"$f":"'BP Financier'!$G$44*(('BP Financier'!$C$22+'BP Financier'!$D$22+'BP Financier'!$E$22+'BP Financier'!$F$22+'BP Financier'!$G$22)/('BP Financier'!$C$16+'BP Financier'!$C$19+'BP Financier'!$D$16+'BP Financier'!$D$19+'BP Financier'!$E$16+'BP Financier'!$E$19+'BP Financier'!$C$22+'BP Financier'!$D$22+'BP Financier'!$E$22+'BP Financier'!$F$22+'BP Financier'!$F$16+'BP Financier'!$F$19+'BP Financier'!$G$16+'BP Financier'!$G$19+'BP Financier'!$G$22))*$V8605*Y8605/(1-$W8605)","v":{"v":1846.7533031526023,"d":"1,847"}},{"$f":"'BP Financier'!$G$44*(('BP Financier'!$C$22+'BP Financier'!$D$22+'BP Financier'!$E$22+'BP Financier'!$F$22+'BP Financier'!$G$22)/('BP Financier'!$C$16+'BP Financier'!$C$19+'BP Financier'!$D$16+'BP Financier'!$D$19+'BP Financier'!$E$16+'BP Financier'!$E$19+'BP Financier'!$C$22+'BP Financier'!$D$22+'BP Financier'!$E$22+'BP Financier'!$F$22+'BP Financier'!$F$16+'BP Financier'!$F$19+'BP Financier'!$G$16+'BP Financier'!$G$19+'BP Financier'!$G$22))*$V8605*Z8605/(1-$W8605)","v":{"v":14453.51552136789,"d":"14,454"}},{"$f":"'BP Financier'!$G$44*(('BP Financier'!$C$22+'BP Financier'!$D$22+'BP Financier'!$E$22+'BP Financier'!$F$22+'BP Financier'!$G$22)/('BP Financier'!$C$16+'BP Financier'!$C$19+'BP Financier'!$D$16+'BP Financier'!$D$19+'BP Financier'!$E$16+'BP Financier'!$E$19+'BP Financier'!$C$22+'BP Financier'!$D$22+'BP Financier'!$E$22+'BP Financier'!$F$22+'BP Financier'!$F$16+'BP Financier'!$F$19+'BP Financier'!$G$16+'BP Financier'!$G$19+'BP Financier'!$G$22))*$V8605*AA8605/(1-$W8605)","v":{"v":1785.7036071806158,"d":"1,786"}},{"$f":"'BP Financier'!$G$44*(('BP Financier'!$C$22+'BP Financier'!$D$22+'BP Financier'!$E$22+'BP Financier'!$F$22+'BP Financier'!$G$22)/('BP Financier'!$C$16+'BP Financier'!$C$19+'BP Financier'!$D$16+'BP Financier'!$D$19+'BP Financier'!$E$16+'BP Financier'!$E$19+'BP Financier'!$C$22+'BP Financier'!$D$22+'BP Financier'!$E$22+'BP Financier'!$F$22+'BP Financier'!$F$16+'BP Financier'!$F$19+'BP Financier'!$G$16+'BP Financier'!$G$19+'BP Financier'!$G$22))*$V8605*AB8605/(1-$W8605)","v":{"v":854.6957436078159,"d":"855"}},null,{"v":0.006,"d":"0.60%"},{"$f":"Actif!$E$28/100","v":{"v":0.28900000000000003,"d":"28.90%"}},{"$f":"Actif!$E$30/100","v":{"v":0.09050000000000001,"d":"9.05%"}},{"$f":"Actif!$E$31/100","v":{"v":0.0605,"d":"6.05%"}},{"$f":"Actif!$E$32/100","v":{"v":0.47350000000000003,"d":"47.35%"}},{"$f":"Actif!$E$33/100","v":{"v":0.0585,"d":"5.85%"}},{"$f":"Actif!$E$29/100","v":{"v":0.027999999999999997,"d":"2.80%"}}]
[null,"#493",63,2029,"H","A_CAPI",{"v":0.44999999999999996,"d":"0.45"},{"v":0.38999999999999996,"d":"0.39"},0.6,0.6,85,0,{"$f":"ROUND(Primes!$Q$10*V8606,2)","v":0.78},0,{"v":21703.166918041326,"d":"21,703"},{"$f":"'BP Financier'!$G$44*(('BP Financier'!$C$22+'BP Financier'!$D$22+'BP Financier'!$E$22+'BP Financier'!$F$22+'BP Financier'!$G$22)/('BP Financier'!$C$16+'BP Financier'!$C$19+'BP Financier'!$D$16+'BP Financier'!$D$19+'BP Financier'!$E$16+'BP Financier'!$E$19+'BP Financier'!$C$22+'BP Financier'!$D$22+'BP Financier'!$E$22+'BP Financier'!$F$22+'BP Financier'!$F$16+'BP Financier'!$F$19+'BP Financier'!$G$16+'BP Financier'!$G$19+'BP Financier'!$G$22))*$V8606*X8606/(1-$W8606)","v":{"v":2762.4987427324054,"d":"2,762"}},{"$f":"'BP Financier'!$G$44*(('BP Financier'!$C$22+'BP Financier'!$D$22+'BP Financier'!$E$22+'BP Financier'!$F$22+'BP Financier'!$G$22)/('BP Financier'!$C$16+'BP Financier'!$C$19+'BP Financier'!$D$16+'BP Financier'!$D$19+'BP Financier'!$E$16+'BP Financier'!$E$19+'BP Financier'!$C$22+'BP Financier'!$D$22+'BP Financier'!$E$22+'BP Financier'!$F$22+'BP Financier'!$F$16+'BP Financier'!$F$19+'BP Financier'!$G$16+'BP Financier'!$G$19+'BP Financier'!$G$22))*$V8606*Y8606/(1-$W8606)","v":{"v":1846.7533031526023,"d":"1,847"}},{"$f":"'BP Financier'!$G$44*(('BP Financier'!$C$22+'BP Financier'!$D$22+'BP Financier'!$E$22+'BP Financier'!$F$22+'BP Financier'!$G$22)/('BP Financier'!$C$16+'BP Financier'!$C$19+'BP Financier'!$D$16+'BP Financier'!$D$19+'BP Financier'!$E$16+'BP Financier'!$E$19+'BP Financier'!$C$22+'BP Financier'!$D$22+'BP Financier'!$E$22+'BP Financier'!$F$22+'BP Financier'!$F$16+'BP Financier'!$F$19+'BP Financier'!$G$16+'BP Financier'!$G$19+'BP Financier'!$G$22))*$V8606*Z8606/(1-$W8606)","v":{"v":14453.51552136789,"d":"14,454"}},{"$f":"'BP Financier'!$G$44*(('BP Financier'!$C$22+'BP Financier'!$D$22+'BP Financier'!$E$22+'BP Financier'!$F$22+'BP Financier'!$G$22)/('BP Financier'!$C$16+'BP Financier'!$C$19+'BP Financier'!$D$16+'BP Financier'!$D$19+'BP Financier'!$E$16+'BP Financier'!$E$19+'BP Financier'!$C$22+'BP Financier'!$D$22+'BP Financier'!$E$22+'BP Financier'!$F$22+'BP Financier'!$F$16+'BP Financier'!$F$19+'BP Financier'!$G$16+'BP Financier'!$G$19+'BP Financier'!$G$22))*$V8606*AA8606/(1-$W8606)","v":{"v":1785.7036071806158,"d":"1,786"}},{"$f":"'BP Financier'!$G$44*(('BP Financier'!$C$22+'BP Financier'!$D$22+'BP Financier'!$E$22+'BP Financier'!$F$22+'BP Financier'!$G$22)/('BP Financier'!$C$16+'BP Financier'!$C$19+'BP Financier'!$D$16+'BP Financier'!$D$19+'BP Financier'!$E$16+'BP Financier'!$E$19+'BP Financier'!$C$22+'BP Financier'!$D$22+'BP Financier'!$E$22+'BP Financier'!$F$22+'BP Financier'!$F$16+'BP Financier'!$F$19+'BP Financier'!$G$16+'BP Financier'!$G$19+'BP Financier'!$G$22))*$V8606*AB8606/(1-$W8606)","v":{"v":854.6957436078159,"d":"855"}},null,{"v":0.006,"d":"0.60%"},{"$f":"Actif!$E$28/100","v":{"v":0.28900000000000003,"d":"28.90%"}},{"$f":"Actif!$E$30/100","v":{"v":0.09050000000000001,"d":"9.05%"}},{"$f":"Actif!$E$31/100","v":{"v":0.0605,"d":"6.05%"}},{"$f":"Actif!$E$32/100","v":{"v":0.47350000000000003,"d":"47.35%"}},{"$f":"Actif!$E$33/100","v":{"v":0.0585,"d":"5.85%"}},{"$f":"Actif!$E$29/100","v":{"v":0.027999999999999997,"d":"2.80%"}}]
[null,"#494",63,2030,"H","A_CAPI",{"v":0.44999999999999996,"d":"0.45"},{"v":0.38999999999999996,"d":"0.39"},0.6,0.6,85,0,{"$f":"ROUND(Primes!$Q$10*V8607,2)","v":0.78},0,{"v":21703.166918041326,"d":"21,703"},{"$f":"'BP Financier'!$G$44*(('BP Financier'!$C$22+'BP Financier'!$D$22+'BP Financier'!$E$22+'BP Financier'!$F$22+'BP Financier'!$G$22)/('BP Financier'!$C$16+'BP Financier'!$C$19+'BP Financier'!$D$16+'BP Financier'!$D$19+'BP Financier'!$E$16+'BP Financier'!$E$19+'BP Financier'!$C$22+'BP Financier'!$D$22+'BP Financier'!$E$22+'BP Financier'!$F$22+'BP Financier'!$F$16+'BP Financier'!$F$19+'BP Financier'!$G$16+'BP Financier'!$G$19+'BP Financier'!$G$22))*$V8607*X8607/(1-$W8607)","v":{"v":2762.4987427324054,"d":"2,762"}},{"$f":"'BP Financier'!$G$44*(('BP Financier'!$C$22+'BP Financier'!$D$22+'BP Financier'!$E$22+'BP Financier'!$F$22+'BP Financier'!$G$22)/('BP Financier'!$C$16+'BP Financier'!$C$19+'BP Financier'!$D$16+'BP Financier'!$D$19+'BP Financier'!$E$16+'BP Financier'!$E$19+'BP Financier'!$C$22+'BP Financier'!$D$22+'BP Financier'!$E$22+'BP Financier'!$F$22+'BP Financier'!$F$16+'BP Financier'!$F$19+'BP Financier'!$G$16+'BP Financier'!$G$19+'BP Financier'!$G$22))*$V8607*Y8607/(1-$W8607)","v":{"v":1846.7533031526023,"d":"1,847"}},{"$f":"'BP Financier'!$G$44*(('BP Financier'!$C$22+'BP Financier'!$D$22+'BP Financier'!$E$22+'BP Financier'!$F$22+'BP Financier'!$G$22)/('BP Financier'!$C$16+'BP Financier'!$C$19+'BP Financier'!$D$16+'BP Financier'!$D$19+'BP Financier'!$E$16+'BP Financier'!$E$19+'BP Financier'!$C$22+'BP Financier'!$D$22+'BP Financier'!$E$22+'BP Financier'!$F$22+'BP Financier'!$F$16+'BP Financier'!$F$19+'BP Financier'!$G$16+'BP Financier'!$G$19+'BP Financier'!$G$22))*$V8607*Z8607/(1-$W8607)","v":{"v":14453.51552136789,"d":"14,454"}},{"$f":"'BP Financier'!$G$44*(('BP Financier'!$C$22+'BP Financier'!$D$22+'BP Financier'!$E$22+'BP Financier'!$F$22+'BP Financier'!$G$22)/('BP Financier'!$C$16+'BP Financier'!$C$19+'BP Financier'!$D$16+'BP Financier'!$D$19+'BP Financier'!$E$16+'BP Financier'!$E$19+'BP Financier'!$C$22+'BP Financier'!$D$22+'BP Financier'!$E$22+'BP Financier'!$F$22+'BP Financier'!$F$16+'BP Financier'!$F$19+'BP Financier'!$G$16+'BP Financier'!$G$19+'BP Financier'!$G$22))*$V8607*AA8607/(1-$W8607)","v":{"v":1785.7036071806158,"d":"1,786"}},{"$f":"'BP Financier'!$G$44*(('BP Financier'!$C$22+'BP Financier'!$D$22+'BP Financier'!$E$22+'BP Financier'!$F$22+'BP Financier'!$G$22)/('BP Financier'!$C$16+'BP Financier'!$C$19+'BP Financier'!$D$16+'BP Financier'!$D$19+'BP Financier'!$E$16+'BP Financier'!$E$19+'BP Financier'!$C$22+'BP Financier'!$D$22+'BP Financier'!$E$22+'BP Financier'!$F$22+'BP Financier'!$F$16+'BP Financier'!$F$19+'BP Financier'!$G$16+'BP Financier'!$G$19+'BP Financier'!$G$22))*$V8607*AB8607/(1-$W8607)","v":{"v":854.6957436078159,"d":"855"}},null,{"v":0.006,"d":"0.60%"},{"$f":"Actif!$E$28/100","v":{"v":0.28900000000000003,"d":"28.90%"}},{"$f":"Actif!$E$30/100","v":{"v":0.09050000000000001,"d":"9.05%"}},{"$f":"Actif!$E$31/100","v":{"v":0.0605,"d":"6.05%"}},{"$f":"Actif!$E$32/100","v":{"v":0.47350000000000003,"d":"47.35%"}},{"$f":"Actif!$E$33/100","v":{"v":0.0585,"d":"5.85%"}},{"$f":"Actif!$E$29/100","v":{"v":0.027999999999999997,"d":"2.80%"}}]
[null,"#495",63,2031,"H","A_CAPI",{"v":0.44999999999999996,"d":"0.45"},{"v":0.38999999999999996,"d":"0.39"},0.6,0.6,85,0,{"$f":"ROUND(Primes!$Q$10*V8608,2)","v":0.78},0,{"v":21703.166918041326,"d":"21,703"},{"$f":"'BP Financier'!$G$44*(('BP Financier'!$C$22+'BP Financier'!$D$22+'BP Financier'!$E$22+'BP Financier'!$F$22+'BP Financier'!$G$22)/('BP Financier'!$C$16+'BP Financier'!$C$19+'BP Financier'!$D$16+'BP Financier'!$D$19+'BP Financier'!$E$16+'BP Financier'!$E$19+'BP Financier'!$C$22+'BP Financier'!$D$22+'BP Financier'!$E$22+'BP Financier'!$F$22+'BP Financier'!$F$16+'BP Financier'!$F$19+'BP Financier'!$G$16+'BP Financier'!$G$19+'BP Financier'!$G$22))*$V8608*X8608/(1-$W8608)","v":{"v":2762.4987427324054,"d":"2,762"}},{"$f":"'BP Financier'!$G$44*(('BP Financier'!$C$22+'BP Financier'!$D$22+'BP Financier'!$E$22+'BP Financier'!$F$22+'BP Financier'!$G$22)/('BP Financier'!$C$16+'BP Financier'!$C$19+'BP Financier'!$D$16+'BP Financier'!$D$19+'BP Financier'!$E$16+'BP Financier'!$E$19+'BP Financier'!$C$22+'BP Financier'!$D$22+'BP Financier'!$E$22+'BP Financier'!$F$22+'BP Financier'!$F$16+'BP Financier'!$F$19+'BP Financier'!$G$16+'BP Financier'!$G$19+'BP Financier'!$G$22))*$V8608*Y8608/(1-$W8608)","v":{"v":1846.7533031526023,"d":"1,847"}},{"$f":"'BP Financier'!$G$44*(('BP Financier'!$C$22+'BP Financier'!$D$22+'BP Financier'!$E$22+'BP Financier'!$F$22+'BP Financier'!$G$22)/('BP Financier'!$C$16+'BP Financier'!$C$19+'BP Financier'!$D$16+'BP Financier'!$D$19+'BP Financier'!$E$16+'BP Financier'!$E$19+'BP Financier'!$C$22+'BP Financier'!$D$22+'BP Financier'!$E$22+'BP Financier'!$F$22+'BP Financier'!$F$16+'BP Financier'!$F$19+'BP Financier'!$G$16+'BP Financier'!$G$19+'BP Financier'!$G$22))*$V8608*Z8608/(1-$W8608)","v":{"v":14453.51552136789,"d":"14,454"}},{"$f":"'BP Financier'!$G$44*(('BP Financier'!$C$22+'BP Financier'!$D$22+'BP Financier'!$E$22+'BP Financier'!$F$22+'BP Financier'!$G$22)/('BP Financier'!$C$16+'BP Financier'!$C$19+'BP Financier'!$D$16+'BP Financier'!$D$19+'BP Financier'!$E$16+'BP Financier'!$E$19+'BP Financier'!$C$22+'BP Financier'!$D$22+'BP Financier'!$E$22+'BP Financier'!$F$22+'BP Financier'!$F$16+'BP Financier'!$F$19+'BP Financier'!$G$16+'BP Financier'!$G$19+'BP Financier'!$G$22))*$V8608*AA8608/(1-$W8608)","v":{"v":1785.7036071806158,"d":"1,786"}},{"$f":"'BP Financier'!$G$44*(('BP Financier'!$C$22+'BP Financier'!$D$22+'BP Financier'!$E$22+'BP Financier'!$F$22+'BP Financier'!$G$22)/('BP Financier'!$C$16+'BP Financier'!$C$19+'BP Financier'!$D$16+'BP Financier'!$D$19+'BP Financier'!$E$16+'BP Financier'!$E$19+'BP Financier'!$C$22+'BP Financier'!$D$22+'BP Financier'!$E$22+'BP Financier'!$F$22+'BP Financier'!$F$16+'BP Financier'!$F$19+'BP Financier'!$G$16+'BP Financier'!$G$19+'BP Financier'!$G$22))*$V8608*AB8608/(1-$W8608)","v":{"v":854.6957436078159,"d":"855"}},null,{"v":0.006,"d":"0.60%"},{"$f":"Actif!$E$28/100","v":{"v":0.28900000000000003,"d":"28.90%"}},{"$f":"Actif!$E$30/100","v":{"v":0.09050000000000001,"d":"9.05%"}},{"$f":"Actif!$E$31/100","v":{"v":0.0605,"d":"6.05%"}},{"$f":"Actif!$E$32/100","v":{"v":0.47350000000000003,"d":"47.35%"}},{"$f":"Actif!$E$33/100","v":{"v":0.0585,"d":"5.85%"}},{"$f":"Actif!$E$29/100","v":{"v":0.027999999999999997,"d":"2.80%"}}]
[null,"#496",64,2026,"H","A_CAPI",{"v":0.44999999999999996,"d":"0.45"},{"v":0.38999999999999996,"d":"0.39"},0.6,0.6,85,0,{"$f":"ROUND(Primes!$Q$10*V8609,2)","v":0.78},0,{"v":21703.166918041326,"d":"21,703"},{"$f":"'BP Financier'!$G$44*(('BP Financier'!$C$22+'BP Financier'!$D$22+'BP Financier'!$E$22+'BP Financier'!$F$22+'BP Financier'!$G$22)/('BP Financier'!$C$16+'BP Financier'!$C$19+'BP Financier'!$D$16+'BP Financier'!$D$19+'BP Financier'!$E$16+'BP Financier'!$E$19+'BP Financier'!$C$22+'BP Financier'!$D$22+'BP Financier'!$E$22+'BP Financier'!$F$22+'BP Financier'!$F$16+'BP Financier'!$F$19+'BP Financier'!$G$16+'BP Financier'!$G$19+'BP Financier'!$G$22))*$V8609*X8609/(1-$W8609)","v":{"v":2762.4987427324054,"d":"2,762"}},{"$f":"'BP Financier'!$G$44*(('BP Financier'!$C$22+'BP Financier'!$D$22+'BP Financier'!$E$22+'BP Financier'!$F$22+'BP Financier'!$G$22)/('BP Financier'!$C$16+'BP Financier'!$C$19+'BP Financier'!$D$16+'BP Financier'!$D$19+'BP Financier'!$E$16+'BP Financier'!$E$19+'BP Financier'!$C$22+'BP Financier'!$D$22+'BP Financier'!$E$22+'BP Financier'!$F$22+'BP Financier'!$F$16+'BP Financier'!$F$19+'BP Financier'!$G$16+'BP Financier'!$G$19+'BP Financier'!$G$22))*$V8609*Y8609/(1-$W8609)","v":{"v":1846.7533031526023,"d":"1,847"}},{"$f":"'BP Financier'!$G$44*(('BP Financier'!$C$22+'BP Financier'!$D$22+'BP Financier'!$E$22+'BP Financier'!$F$22+'BP Financier'!$G$22)/('BP Financier'!$C$16+'BP Financier'!$C$19+'BP Financier'!$D$16+'BP Financier'!$D$19+'BP Financier'!$E$16+'BP Financier'!$E$19+'BP Financier'!$C$22+'BP Financier'!$D$22+'BP Financier'!$E$22+'BP Financier'!$F$22+'BP Financier'!$F$16+'BP Financier'!$F$19+'BP Financier'!$G$16+'BP Financier'!$G$19+'BP Financier'!$G$22))*$V8609*Z8609/(1-$W8609)","v":{"v":14453.51552136789,"d":"14,454"}},{"$f":"'BP Financier'!$G$44*(('BP Financier'!$C$22+'BP Financier'!$D$22+'BP Financier'!$E$22+'BP Financier'!$F$22+'BP Financier'!$G$22)/('BP Financier'!$C$16+'BP Financier'!$C$19+'BP Financier'!$D$16+'BP Financier'!$D$19+'BP Financier'!$E$16+'BP Financier'!$E$19+'BP Financier'!$C$22+'BP Financier'!$D$22+'BP Financier'!$E$22+'BP Financier'!$F$22+'BP Financier'!$F$16+'BP Financier'!$F$19+'BP Financier'!$G$16+'BP Financier'!$G$19+'BP Financier'!$G$22))*$V8609*AA8609/(1-$W8609)","v":{"v":1785.7036071806158,"d":"1,786"}},{"$f":"'BP Financier'!$G$44*(('BP Financier'!$C$22+'BP Financier'!$D$22+'BP Financier'!$E$22+'BP Financier'!$F$22+'BP Financier'!$G$22)/('BP Financier'!$C$16+'BP Financier'!$C$19+'BP Financier'!$D$16+'BP Financier'!$D$19+'BP Financier'!$E$16+'BP Financier'!$E$19+'BP Financier'!$C$22+'BP Financier'!$D$22+'BP Financier'!$E$22+'BP Financier'!$F$22+'BP Financier'!$F$16+'BP Financier'!$F$19+'BP Financier'!$G$16+'BP Financier'!$G$19+'BP Financier'!$G$22))*$V8609*AB8609/(1-$W8609)","v":{"v":854.6957436078159,"d":"855"}},null,{"v":0.006,"d":"0.60%"},{"$f":"Actif!$E$28/100","v":{"v":0.28900000000000003,"d":"28.90%"}},{"$f":"Actif!$E$30/100","v":{"v":0.09050000000000001,"d":"9.05%"}},{"$f":"Actif!$E$31/100","v":{"v":0.0605,"d":"6.05%"}},{"$f":"Actif!$E$32/100","v":{"v":0.47350000000000003,"d":"47.35%"}},{"$f":"Actif!$E$33/100","v":{"v":0.0585,"d":"5.85%"}},{"$f":"Actif!$E$29/100","v":{"v":0.027999999999999997,"d":"2.80%"}}]
[null,"#497",64,2028,"H","A_CAPI",{"v":0.44999999999999996,"d":"0.45"},{"v":0.38999999999999996,"d":"0.39"},0.6,0.6,85,0,{"$f":"ROUND(Primes!$Q$10*V8610,2)","v":0.78},0,{"v":21703.166918041326,"d":"21,703"},{"$f":"'BP Financier'!$G$44*(('BP Financier'!$C$22+'BP Financier'!$D$22+'BP Financier'!$E$22+'BP Financier'!$F$22+'BP Financier'!$G$22)/('BP Financier'!$C$16+'BP Financier'!$C$19+'BP Financier'!$D$16+'BP Financier'!$D$19+'BP Financier'!$E$16+'BP Financier'!$E$19+'BP Financier'!$C$22+'BP Financier'!$D$22+'BP Financier'!$E$22+'BP Financier'!$F$22+'BP Financier'!$F$16+'BP Financier'!$F$19+'BP Financier'!$G$16+'BP Financier'!$G$19+'BP Financier'!$G$22))*$V8610*X8610/(1-$W8610)","v":{"v":2762.4987427324054,"d":"2,762"}},{"$f":"'BP Financier'!$G$44*(('BP Financier'!$C$22+'BP Financier'!$D$22+'BP Financier'!$E$22+'BP Financier'!$F$22+'BP Financier'!$G$22)/('BP Financier'!$C$16+'BP Financier'!$C$19+'BP Financier'!$D$16+'BP Financier'!$D$19+'BP Financier'!$E$16+'BP Financier'!$E$19+'BP Financier'!$C$22+'BP Financier'!$D$22+'BP Financier'!$E$22+'BP Financier'!$F$22+'BP Financier'!$F$16+'BP Financier'!$F$19+'BP Financier'!$G$16+'BP Financier'!$G$19+'BP Financier'!$G$22))*$V8610*Y8610/(1-$W8610)","v":{"v":1846.7533031526023,"d":"1,847"}},{"$f":"'BP Financier'!$G$44*(('BP Financier'!$C$22+'BP Financier'!$D$22+'BP Financier'!$E$22+'BP Financier'!$F$22+'BP Financier'!$G$22)/('BP Financier'!$C$16+'BP Financier'!$C$19+'BP Financier'!$D$16+'BP Financier'!$D$19+'BP Financier'!$E$16+'BP Financier'!$E$19+'BP Financier'!$C$22+'BP Financier'!$D$22+'BP Financier'!$E$22+'BP Financier'!$F$22+'BP Financier'!$F$16+'BP Financier'!$F$19+'BP Financier'!$G$16+'BP Financier'!$G$19+'BP Financier'!$G$22))*$V8610*Z8610/(1-$W8610)","v":{"v":14453.51552136789,"d":"14,454"}},{"$f":"'BP Financier'!$G$44*(('BP Financier'!$C$22+'BP Financier'!$D$22+'BP Financier'!$E$22+'BP Financier'!$F$22+'BP Financier'!$G$22)/('BP Financier'!$C$16+'BP Financier'!$C$19+'BP Financier'!$D$16+'BP Financier'!$D$19+'BP Financier'!$E$16+'BP Financier'!$E$19+'BP Financier'!$C$22+'BP Financier'!$D$22+'BP Financier'!$E$22+'BP Financier'!$F$22+'BP Financier'!$F$16+'BP Financier'!$F$19+'BP Financier'!$G$16+'BP Financier'!$G$19+'BP Financier'!$G$22))*$V8610*AA8610/(1-$W8610)","v":{"v":1785.7036071806158,"d":"1,786"}},{"$f":"'BP Financier'!$G$44*(('BP Financier'!$C$22+'BP Financier'!$D$22+'BP Financier'!$E$22+'BP Financier'!$F$22+'BP Financier'!$G$22)/('BP Financier'!$C$16+'BP Financier'!$C$19+'BP Financier'!$D$16+'BP Financier'!$D$19+'BP Financier'!$E$16+'BP Financier'!$E$19+'BP Financier'!$C$22+'BP Financier'!$D$22+'BP Financier'!$E$22+'BP Financier'!$F$22+'BP Financier'!$F$16+'BP Financier'!$F$19+'BP Financier'!$G$16+'BP Financier'!$G$19+'BP Financier'!$G$22))*$V8610*AB8610/(1-$W8610)","v":{"v":854.6957436078159,"d":"855"}},null,{"v":0.006,"d":"0.60%"},{"$f":"Actif!$E$28/100","v":{"v":0.28900000000000003,"d":"28.90%"}},{"$f":"Actif!$E$30/100","v":{"v":0.09050000000000001,"d":"9.05%"}},{"$f":"Actif!$E$31/100","v":{"v":0.0605,"d":"6.05%"}},{"$f":"Actif!$E$32/100","v":{"v":0.47350000000000003,"d":"47.35%"}},{"$f":"Actif!$E$33/100","v":{"v":0.0585,"d":"5.85%"}},{"$f":"Actif!$E$29/100","v":{"v":0.027999999999999997,"d":"2.80%"}}]
[null,"#498",64,2029,"H","A_CAPI",{"v":0.44999999999999996,"d":"0.45"},{"v":0.38999999999999996,"d":"0.39"},0.6,0.6,85,0,{"$f":"ROUND(Primes!$Q$10*V8611,2)","v":0.78},0,{"v":21703.166918041326,"d":"21,703"},{"$f":"'BP Financier'!$G$44*(('BP Financier'!$C$22+'BP Financier'!$D$22+'BP Financier'!$E$22+'BP Financier'!$F$22+'BP Financier'!$G$22)/('BP Financier'!$C$16+'BP Financier'!$C$19+'BP Financier'!$D$16+'BP Financier'!$D$19+'BP Financier'!$E$16+'BP Financier'!$E$19+'BP Financier'!$C$22+'BP Financier'!$D$22+'BP Financier'!$E$22+'BP Financier'!$F$22+'BP Financier'!$F$16+'BP Financier'!$F$19+'BP Financier'!$G$16+'BP Financier'!$G$19+'BP Financier'!$G$22))*$V8611*X8611/(1-$W8611)","v":{"v":2762.4987427324054,"d":"2,762"}},{"$f":"'BP Financier'!$G$44*(('BP Financier'!$C$22+'BP Financier'!$D$22+'BP Financier'!$E$22+'BP Financier'!$F$22+'BP Financier'!$G$22)/('BP Financier'!$C$16+'BP Financier'!$C$19+'BP Financier'!$D$16+'BP Financier'!$D$19+'BP Financier'!$E$16+'BP Financier'!$E$19+'BP Financier'!$C$22+'BP Financier'!$D$22+'BP Financier'!$E$22+'BP Financier'!$F$22+'BP Financier'!$F$16+'BP Financier'!$F$19+'BP Financier'!$G$16+'BP Financier'!$G$19+'BP Financier'!$G$22))*$V8611*Y8611/(1-$W8611)","v":{"v":1846.7533031526023,"d":"1,847"}},{"$f":"'BP Financier'!$G$44*(('BP Financier'!$C$22+'BP Financier'!$D$22+'BP Financier'!$E$22+'BP Financier'!$F$22+'BP Financier'!$G$22)/('BP Financier'!$C$16+'BP Financier'!$C$19+'BP Financier'!$D$16+'BP Financier'!$D$19+'BP Financier'!$E$16+'BP Financier'!$E$19+'BP Financier'!$C$22+'BP Financier'!$D$22+'BP Financier'!$E$22+'BP Financier'!$F$22+'BP Financier'!$F$16+'BP Financier'!$F$19+'BP Financier'!$G$16+'BP Financier'!$G$19+'BP Financier'!$G$22))*$V8611*Z8611/(1-$W8611)","v":{"v":14453.51552136789,"d":"14,454"}},{"$f":"'BP Financier'!$G$44*(('BP Financier'!$C$22+'BP Financier'!$D$22+'BP Financier'!$E$22+'BP Financier'!$F$22+'BP Financier'!$G$22)/('BP Financier'!$C$16+'BP Financier'!$C$19+'BP Financier'!$D$16+'BP Financier'!$D$19+'BP Financier'!$E$16+'BP Financier'!$E$19+'BP Financier'!$C$22+'BP Financier'!$D$22+'BP Financier'!$E$22+'BP Financier'!$F$22+'BP Financier'!$F$16+'BP Financier'!$F$19+'BP Financier'!$G$16+'BP Financier'!$G$19+'BP Financier'!$G$22))*$V8611*AA8611/(1-$W8611)","v":{"v":1785.7036071806158,"d":"1,786"}},{"$f":"'BP Financier'!$G$44*(('BP Financier'!$C$22+'BP Financier'!$D$22+'BP Financier'!$E$22+'BP Financier'!$F$22+'BP Financier'!$G$22)/('BP Financier'!$C$16+'BP Financier'!$C$19+'BP Financier'!$D$16+'BP Financier'!$D$19+'BP Financier'!$E$16+'BP Financier'!$E$19+'BP Financier'!$C$22+'BP Financier'!$D$22+'BP Financier'!$E$22+'BP Financier'!$F$22+'BP Financier'!$F$16+'BP Financier'!$F$19+'BP Financier'!$G$16+'BP Financier'!$G$19+'BP Financier'!$G$22))*$V8611*AB8611/(1-$W8611)","v":{"v":854.6957436078159,"d":"855"}},null,{"v":0.006,"d":"0.60%"},{"$f":"Actif!$E$28/100","v":{"v":0.28900000000000003,"d":"28.90%"}},{"$f":"Actif!$E$30/100","v":{"v":0.09050000000000001,"d":"9.05%"}},{"$f":"Actif!$E$31/100","v":{"v":0.0605,"d":"6.05%"}},{"$f":"Actif!$E$32/100","v":{"v":0.47350000000000003,"d":"47.35%"}},{"$f":"Actif!$E$33/100","v":{"v":0.0585,"d":"5.85%"}},{"$f":"Actif!$E$29/100","v":{"v":0.027999999999999997,"d":"2.80%"}}]
[null,"#499",64,2030,"H","A_CAPI",{"v":0.44999999999999996,"d":"0.45"},{"v":0.38999999999999996,"d":"0.39"},0.6,0.6,85,0,{"$f":"ROUND(Primes!$Q$10*V8612,2)","v":0.78},0,{"v":21703.166918041326,"d":"21,703"},{"$f":"'BP Financier'!$G$44*(('BP Financier'!$C$22+'BP Financier'!$D$22+'BP Financier'!$E$22+'BP Financier'!$F$22+'BP Financier'!$G$22)/('BP Financier'!$C$16+'BP Financier'!$C$19+'BP Financier'!$D$16+'BP Financier'!$D$19+'BP Financier'!$E$16+'BP Financier'!$E$19+'BP Financier'!$C$22+'BP Financier'!$D$22+'BP Financier'!$E$22+'BP Financier'!$F$22+'BP Financier'!$F$16+'BP Financier'!$F$19+'BP Financier'!$G$16+'BP Financier'!$G$19+'BP Financier'!$G$22))*$V8612*X8612/(1-$W8612)","v":{"v":2762.4987427324054,"d":"2,762"}},{"$f":"'BP Financier'!$G$44*(('BP Financier'!$C$22+'BP Financier'!$D$22+'BP Financier'!$E$22+'BP Financier'!$F$22+'BP Financier'!$G$22)/('BP Financier'!$C$16+'BP Financier'!$C$19+'BP Financier'!$D$16+'BP Financier'!$D$19+'BP Financier'!$E$16+'BP Financier'!$E$19+'BP Financier'!$C$22+'BP Financier'!$D$22+'BP Financier'!$E$22+'BP Financier'!$F$22+'BP Financier'!$F$16+'BP Financier'!$F$19+'BP Financier'!$G$16+'BP Financier'!$G$19+'BP Financier'!$G$22))*$V8612*Y8612/(1-$W8612)","v":{"v":1846.7533031526023,"d":"1,847"}},{"$f":"'BP Financier'!$G$44*(('BP Financier'!$C$22+'BP Financier'!$D$22+'BP Financier'!$E$22+'BP Financier'!$F$22+'BP Financier'!$G$22)/('BP Financier'!$C$16+'BP Financier'!$C$19+'BP Financier'!$D$16+'BP Financier'!$D$19+'BP Financier'!$E$16+'BP Financier'!$E$19+'BP Financier'!$C$22+'BP Financier'!$D$22+'BP Financier'!$E$22+'BP Financier'!$F$22+'BP Financier'!$F$16+'BP Financier'!$F$19+'BP Financier'!$G$16+'BP Financier'!$G$19+'BP Financier'!$G$22))*$V8612*Z8612/(1-$W8612)","v":{"v":14453.51552136789,"d":"14,454"}},{"$f":"'BP Financier'!$G$44*(('BP Financier'!$C$22+'BP Financier'!$D$22+'BP Financier'!$E$22+'BP Financier'!$F$22+'BP Financier'!$G$22)/('BP Financier'!$C$16+'BP Financier'!$C$19+'BP Financier'!$D$16+'BP Financier'!$D$19+'BP Financier'!$E$16+'BP Financier'!$E$19+'BP Financier'!$C$22+'BP Financier'!$D$22+'BP Financier'!$E$22+'BP Financier'!$F$22+'BP Financier'!$F$16+'BP Financier'!$F$19+'BP Financier'!$G$16+'BP Financier'!$G$19+'BP Financier'!$G$22))*$V8612*AA8612/(1-$W8612)","v":{"v":1785.7036071806158,"d":"1,786"}},{"$f":"'BP Financier'!$G$44*(('BP Financier'!$C$22+'BP Financier'!$D$22+'BP Financier'!$E$22+'BP Financier'!$F$22+'BP Financier'!$G$22)/('BP Financier'!$C$16+'BP Financier'!$C$19+'BP Financier'!$D$16+'BP Financier'!$D$19+'BP Financier'!$E$16+'BP Financier'!$E$19+'BP Financier'!$C$22+'BP Financier'!$D$22+'BP Financier'!$E$22+'BP Financier'!$F$22+'BP Financier'!$F$16+'BP Financier'!$F$19+'BP Financier'!$G$16+'BP Financier'!$G$19+'BP Financier'!$G$22))*$V8612*AB8612/(1-$W8612)","v":{"v":854.6957436078159,"d":"855"}},null,{"v":0.006,"d":"0.60%"},{"$f":"Actif!$E$28/100","v":{"v":0.28900000000000003,"d":"28.90%"}},{"$f":"Actif!$E$30/100","v":{"v":0.09050000000000001,"d":"9.05%"}},{"$f":"Actif!$E$31/100","v":{"v":0.0605,"d":"6.05%"}},{"$f":"Actif!$E$32/100","v":{"v":0.47350000000000003,"d":"47.35%"}},{"$f":"Actif!$E$33/100","v":{"v":0.0585,"d":"5.85%"}},{"$f":"Actif!$E$29/100","v":{"v":0.027999999999999997,"d":"2.80%"}}]
[null,"#500",64,2031,"H","A_CAPI",{"v":0.44999999999999996,"d":"0.45"},{"v":0.38999999999999996,"d":"0.39"},0.6,0.6,85,0,{"$f":"ROUND(Primes!$Q$10*V8613,2)","v":0.78},0,{"v":21703.166918041326,"d":"21,703"},{"$f":"'BP Financier'!$G$44*(('BP Financier'!$C$22+'BP Financier'!$D$22+'BP Financier'!$E$22+'BP Financier'!$F$22+'BP Financier'!$G$22)/('BP Financier'!$C$16+'BP Financier'!$C$19+'BP Financier'!$D$16+'BP Financier'!$D$19+'BP Financier'!$E$16+'BP Financier'!$E$19+'BP Financier'!$C$22+'BP Financier'!$D$22+'BP Financier'!$E$22+'BP Financier'!$F$22+'BP Financier'!$F$16+'BP Financier'!$F$19+'BP Financier'!$G$16+'BP Financier'!$G$19+'BP Financier'!$G$22))*$V8613*X8613/(1-$W8613)","v":{"v":2762.4987427324054,"d":"2,762"}},{"$f":"'BP Financier'!$G$44*(('BP Financier'!$C$22+'BP Financier'!$D$22+'BP Financier'!$E$22+'BP Financier'!$F$22+'BP Financier'!$G$22)/('BP Financier'!$C$16+'BP Financier'!$C$19+'BP Financier'!$D$16+'BP Financier'!$D$19+'BP Financier'!$E$16+'BP Financier'!$E$19+'BP Financier'!$C$22+'BP Financier'!$D$22+'BP Financier'!$E$22+'BP Financier'!$F$22+'BP Financier'!$F$16+'BP Financier'!$F$19+'BP Financier'!$G$16+'BP Financier'!$G$19+'BP Financier'!$G$22))*$V8613*Y8613/(1-$W8613)","v":{"v":1846.7533031526023,"d":"1,847"}},{"$f":"'BP Financier'!$G$44*(('BP Financier'!$C$22+'BP Financier'!$D$22+'BP Financier'!$E$22+'BP Financier'!$F$22+'BP Financier'!$G$22)/('BP Financier'!$C$16+'BP Financier'!$C$19+'BP Financier'!$D$16+'BP Financier'!$D$19+'BP Financier'!$E$16+'BP Financier'!$E$19+'BP Financier'!$C$22+'BP Financier'!$D$22+'BP Financier'!$E$22+'BP Financier'!$F$22+'BP Financier'!$F$16+'BP Financier'!$F$19+'BP Financier'!$G$16+'BP Financier'!$G$19+'BP Financier'!$G$22))*$V8613*Z8613/(1-$W8613)","v":{"v":14453.51552136789,"d":"14,454"}},{"$f":"'BP Financier'!$G$44*(('BP Financier'!$C$22+'BP Financier'!$D$22+'BP Financier'!$E$22+'BP Financier'!$F$22+'BP Financier'!$G$22)/('BP Financier'!$C$16+'BP Financier'!$C$19+'BP Financier'!$D$16+'BP Financier'!$D$19+'BP Financier'!$E$16+'BP Financier'!$E$19+'BP Financier'!$C$22+'BP Financier'!$D$22+'BP Financier'!$E$22+'BP Financier'!$F$22+'BP Financier'!$F$16+'BP Financier'!$F$19+'BP Financier'!$G$16+'BP Financier'!$G$19+'BP Financier'!$G$22))*$V8613*AA8613/(1-$W8613)","v":{"v":1785.7036071806158,"d":"1,786"}},{"$f":"'BP Financier'!$G$44*(('BP Financier'!$C$22+'BP Financier'!$D$22+'BP Financier'!$E$22+'BP Financier'!$F$22+'BP Financier'!$G$22)/('BP Financier'!$C$16+'BP Financier'!$C$19+'BP Financier'!$D$16+'BP Financier'!$D$19+'BP Financier'!$E$16+'BP Financier'!$E$19+'BP Financier'!$C$22+'BP Financier'!$D$22+'BP Financier'!$E$22+'BP Financier'!$F$22+'BP Financier'!$F$16+'BP Financier'!$F$19+'BP Financier'!$G$16+'BP Financier'!$G$19+'BP Financier'!$G$22))*$V8613*AB8613/(1-$W8613)","v":{"v":854.6957436078159,"d":"855"}},null,{"v":0.006,"d":"0.60%"},{"$f":"Actif!$E$28/100","v":{"v":0.28900000000000003,"d":"28.90%"}},{"$f":"Actif!$E$30/100","v":{"v":0.09050000000000001,"d":"9.05%"}},{"$f":"Actif!$E$31/100","v":{"v":0.0605,"d":"6.05%"}},{"$f":"Actif!$E$32/100","v":{"v":0.47350000000000003,"d":"47.35%"}},{"$f":"Actif!$E$33/100","v":{"v":0.0585,"d":"5.85%"}},{"$f":"Actif!$E$29/100","v":{"v":0.027999999999999997,"d":"2.80%"}}]
[null,"#501",65,2026,"F","A_CAPI",{"v":0.44999999999999996,"d":"0.45"},{"v":0.38999999999999996,"d":"0.39"},0.6,0.6,85,0,{"$f":"ROUND(Primes!$Q$10*V8614,2)","v":0.78},0,{"v":21703.166918041326,"d":"21,703"},{"$f":"'BP Financier'!$G$44*(('BP Financier'!$C$22+'BP Financier'!$D$22+'BP Financier'!$E$22+'BP Financier'!$F$22+'BP Financier'!$G$22)/('BP Financier'!$C$16+'BP Financier'!$C$19+'BP Financier'!$D$16+'BP Financier'!$D$19+'BP Financier'!$E$16+'BP Financier'!$E$19+'BP Financier'!$C$22+'BP Financier'!$D$22+'BP Financier'!$E$22+'BP Financier'!$F$22+'BP Financier'!$F$16+'BP Financier'!$F$19+'BP Financier'!$G$16+'BP Financier'!$G$19+'BP Financier'!$G$22))*$V8614*X8614/(1-$W8614)","v":{"v":2762.4987427324054,"d":"2,762"}},{"$f":"'BP Financier'!$G$44*(('BP Financier'!$C$22+'BP Financier'!$D$22+'BP Financier'!$E$22+'BP Financier'!$F$22+'BP Financier'!$G$22)/('BP Financier'!$C$16+'BP Financier'!$C$19+'BP Financier'!$D$16+'BP Financier'!$D$19+'BP Financier'!$E$16+'BP Financier'!$E$19+'BP Financier'!$C$22+'BP Financier'!$D$22+'BP Financier'!$E$22+'BP Financier'!$F$22+'BP Financier'!$F$16+'BP Financier'!$F$19+'BP Financier'!$G$16+'BP Financier'!$G$19+'BP Financier'!$G$22))*$V8614*Y8614/(1-$W8614)","v":{"v":1846.7533031526023,"d":"1,847"}},{"$f":"'BP Financier'!$G$44*(('BP Financier'!$C$22+'BP Financier'!$D$22+'BP Financier'!$E$22+'BP Financier'!$F$22+'BP Financier'!$G$22)/('BP Financier'!$C$16+'BP Financier'!$C$19+'BP Financier'!$D$16+'BP Financier'!$D$19+'BP Financier'!$E$16+'BP Financier'!$E$19+'BP Financier'!$C$22+'BP Financier'!$D$22+'BP Financier'!$E$22+'BP Financier'!$F$22+'BP Financier'!$F$16+'BP Financier'!$F$19+'BP Financier'!$G$16+'BP Financier'!$G$19+'BP Financier'!$G$22))*$V8614*Z8614/(1-$W8614)","v":{"v":14453.51552136789,"d":"14,454"}},{"$f":"'BP Financier'!$G$44*(('BP Financier'!$C$22+'BP Financier'!$D$22+'BP Financier'!$E$22+'BP Financier'!$F$22+'BP Financier'!$G$22)/('BP Financier'!$C$16+'BP Financier'!$C$19+'BP Financier'!$D$16+'BP Financier'!$D$19+'BP Financier'!$E$16+'BP Financier'!$E$19+'BP Financier'!$C$22+'BP Financier'!$D$22+'BP Financier'!$E$22+'BP Financier'!$F$22+'BP Financier'!$F$16+'BP Financier'!$F$19+'BP Financier'!$G$16+'BP Financier'!$G$19+'BP Financier'!$G$22))*$V8614*AA8614/(1-$W8614)","v":{"v":1785.7036071806158,"d":"1,786"}},{"$f":"'BP Financier'!$G$44*(('BP Financier'!$C$22+'BP Financier'!$D$22+'BP Financier'!$E$22+'BP Financier'!$F$22+'BP Financier'!$G$22)/('BP Financier'!$C$16+'BP Financier'!$C$19+'BP Financier'!$D$16+'BP Financier'!$D$19+'BP Financier'!$E$16+'BP Financier'!$E$19+'BP Financier'!$C$22+'BP Financier'!$D$22+'BP Financier'!$E$22+'BP Financier'!$F$22+'BP Financier'!$F$16+'BP Financier'!$F$19+'BP Financier'!$G$16+'BP Financier'!$G$19+'BP Financier'!$G$22))*$V8614*AB8614/(1-$W8614)","v":{"v":854.6957436078159,"d":"855"}},null,{"v":0.006,"d":"0.60%"},{"$f":"Actif!$E$28/100","v":{"v":0.28900000000000003,"d":"28.90%"}},{"$f":"Actif!$E$30/100","v":{"v":0.09050000000000001,"d":"9.05%"}},{"$f":"Actif!$E$31/100","v":{"v":0.0605,"d":"6.05%"}},{"$f":"Actif!$E$32/100","v":{"v":0.47350000000000003,"d":"47.35%"}},{"$f":"Actif!$E$33/100","v":{"v":0.0585,"d":"5.85%"}},{"$f":"Actif!$E$29/100","v":{"v":0.027999999999999997,"d":"2.80%"}}]
[null,"#502",65,2028,"F","A_CAPI",{"v":0.44999999999999996,"d":"0.45"},{"v":0.38999999999999996,"d":"0.39"},0.6,0.6,85,0,{"$f":"ROUND(Primes!$Q$10*V8615,2)","v":0.78},0,{"v":21703.166918041326,"d":"21,703"},{"$f":"'BP Financier'!$G$44*(('BP Financier'!$C$22+'BP Financier'!$D$22+'BP Financier'!$E$22+'BP Financier'!$F$22+'BP Financier'!$G$22)/('BP Financier'!$C$16+'BP Financier'!$C$19+'BP Financier'!$D$16+'BP Financier'!$D$19+'BP Financier'!$E$16+'BP Financier'!$E$19+'BP Financier'!$C$22+'BP Financier'!$D$22+'BP Financier'!$E$22+'BP Financier'!$F$22+'BP Financier'!$F$16+'BP Financier'!$F$19+'BP Financier'!$G$16+'BP Financier'!$G$19+'BP Financier'!$G$22))*$V8615*X8615/(1-$W8615)","v":{"v":2762.4987427324054,"d":"2,762"}},{"$f":"'BP Financier'!$G$44*(('BP Financier'!$C$22+'BP Financier'!$D$22+'BP Financier'!$E$22+'BP Financier'!$F$22+'BP Financier'!$G$22)/('BP Financier'!$C$16+'BP Financier'!$C$19+'BP Financier'!$D$16+'BP Financier'!$D$19+'BP Financier'!$E$16+'BP Financier'!$E$19+'BP Financier'!$C$22+'BP Financier'!$D$22+'BP Financier'!$E$22+'BP Financier'!$F$22+'BP Financier'!$F$16+'BP Financier'!$F$19+'BP Financier'!$G$16+'BP Financier'!$G$19+'BP Financier'!$G$22))*$V8615*Y8615/(1-$W8615)","v":{"v":1846.7533031526023,"d":"1,847"}},{"$f":"'BP Financier'!$G$44*(('BP Financier'!$C$22+'BP Financier'!$D$22+'BP Financier'!$E$22+'BP Financier'!$F$22+'BP Financier'!$G$22)/('BP Financier'!$C$16+'BP Financier'!$C$19+'BP Financier'!$D$16+'BP Financier'!$D$19+'BP Financier'!$E$16+'BP Financier'!$E$19+'BP Financier'!$C$22+'BP Financier'!$D$22+'BP Financier'!$E$22+'BP Financier'!$F$22+'BP Financier'!$F$16+'BP Financier'!$F$19+'BP Financier'!$G$16+'BP Financier'!$G$19+'BP Financier'!$G$22))*$V8615*Z8615/(1-$W8615)","v":{"v":14453.51552136789,"d":"14,454"}},{"$f":"'BP Financier'!$G$44*(('BP Financier'!$C$22+'BP Financier'!$D$22+'BP Financier'!$E$22+'BP Financier'!$F$22+'BP Financier'!$G$22)/('BP Financier'!$C$16+'BP Financier'!$C$19+'BP Financier'!$D$16+'BP Financier'!$D$19+'BP Financier'!$E$16+'BP Financier'!$E$19+'BP Financier'!$C$22+'BP Financier'!$D$22+'BP Financier'!$E$22+'BP Financier'!$F$22+'BP Financier'!$F$16+'BP Financier'!$F$19+'BP Financier'!$G$16+'BP Financier'!$G$19+'BP Financier'!$G$22))*$V8615*AA8615/(1-$W8615)","v":{"v":1785.7036071806158,"d":"1,786"}},{"$f":"'BP Financier'!$G$44*(('BP Financier'!$C$22+'BP Financier'!$D$22+'BP Financier'!$E$22+'BP Financier'!$F$22+'BP Financier'!$G$22)/('BP Financier'!$C$16+'BP Financier'!$C$19+'BP Financier'!$D$16+'BP Financier'!$D$19+'BP Financier'!$E$16+'BP Financier'!$E$19+'BP Financier'!$C$22+'BP Financier'!$D$22+'BP Financier'!$E$22+'BP Financier'!$F$22+'BP Financier'!$F$16+'BP Financier'!$F$19+'BP Financier'!$G$16+'BP Financier'!$G$19+'BP Financier'!$G$22))*$V8615*AB8615/(1-$W8615)","v":{"v":854.6957436078159,"d":"855"}},null,{"v":0.006,"d":"0.60%"},{"$f":"Actif!$E$28/100","v":{"v":0.28900000000000003,"d":"28.90%"}},{"$f":"Actif!$E$30/100","v":{"v":0.09050000000000001,"d":"9.05%"}},{"$f":"Actif!$E$31/100","v":{"v":0.0605,"d":"6.05%"}},{"$f":"Actif!$E$32/100","v":{"v":0.47350000000000003,"d":"47.35%"}},{"$f":"Actif!$E$33/100","v":{"v":0.0585,"d":"5.85%"}},{"$f":"Actif!$E$29/100","v":{"v":0.027999999999999997,"d":"2.80%"}}]
[null,"#503",65,2029,"F","A_CAPI",{"v":0.44999999999999996,"d":"0.45"},{"v":0.38999999999999996,"d":"0.39"},0.6,0.6,85,0,{"$f":"ROUND(Primes!$Q$10*V8616,2)","v":0.78},0,{"v":21703.166918041326,"d":"21,703"},{"$f":"'BP Financier'!$G$44*(('BP Financier'!$C$22+'BP Financier'!$D$22+'BP Financier'!$E$22+'BP Financier'!$F$22+'BP Financier'!$G$22)/('BP Financier'!$C$16+'BP Financier'!$C$19+'BP Financier'!$D$16+'BP Financier'!$D$19+'BP Financier'!$E$16+'BP Financier'!$E$19+'BP Financier'!$C$22+'BP Financier'!$D$22+'BP Financier'!$E$22+'BP Financier'!$F$22+'BP Financier'!$F$16+'BP Financier'!$F$19+'BP Financier'!$G$16+'BP Financier'!$G$19+'BP Financier'!$G$22))*$V8616*X8616/(1-$W8616)","v":{"v":2762.4987427324054,"d":"2,762"}},{"$f":"'BP Financier'!$G$44*(('BP Financier'!$C$22+'BP Financier'!$D$22+'BP Financier'!$E$22+'BP Financier'!$F$22+'BP Financier'!$G$22)/('BP Financier'!$C$16+'BP Financier'!$C$19+'BP Financier'!$D$16+'BP Financier'!$D$19+'BP Financier'!$E$16+'BP Financier'!$E$19+'BP Financier'!$C$22+'BP Financier'!$D$22+'BP Financier'!$E$22+'BP Financier'!$F$22+'BP Financier'!$F$16+'BP Financier'!$F$19+'BP Financier'!$G$16+'BP Financier'!$G$19+'BP Financier'!$G$22))*$V8616*Y8616/(1-$W8616)","v":{"v":1846.7533031526023,"d":"1,847"}},{"$f":"'BP Financier'!$G$44*(('BP Financier'!$C$22+'BP Financier'!$D$22+'BP Financier'!$E$22+'BP Financier'!$F$22+'BP Financier'!$G$22)/('BP Financier'!$C$16+'BP Financier'!$C$19+'BP Financier'!$D$16+'BP Financier'!$D$19+'BP Financier'!$E$16+'BP Financier'!$E$19+'BP Financier'!$C$22+'BP Financier'!$D$22+'BP Financier'!$E$22+'BP Financier'!$F$22+'BP Financier'!$F$16+'BP Financier'!$F$19+'BP Financier'!$G$16+'BP Financier'!$G$19+'BP Financier'!$G$22))*$V8616*Z8616/(1-$W8616)","v":{"v":14453.51552136789,"d":"14,454"}},{"$f":"'BP Financier'!$G$44*(('BP Financier'!$C$22+'BP Financier'!$D$22+'BP Financier'!$E$22+'BP Financier'!$F$22+'BP Financier'!$G$22)/('BP Financier'!$C$16+'BP Financier'!$C$19+'BP Financier'!$D$16+'BP Financier'!$D$19+'BP Financier'!$E$16+'BP Financier'!$E$19+'BP Financier'!$C$22+'BP Financier'!$D$22+'BP Financier'!$E$22+'BP Financier'!$F$22+'BP Financier'!$F$16+'BP Financier'!$F$19+'BP Financier'!$G$16+'BP Financier'!$G$19+'BP Financier'!$G$22))*$V8616*AA8616/(1-$W8616)","v":{"v":1785.7036071806158,"d":"1,786"}},{"$f":"'BP Financier'!$G$44*(('BP Financier'!$C$22+'BP Financier'!$D$22+'BP Financier'!$E$22+'BP Financier'!$F$22+'BP Financier'!$G$22)/('BP Financier'!$C$16+'BP Financier'!$C$19+'BP Financier'!$D$16+'BP Financier'!$D$19+'BP Financier'!$E$16+'BP Financier'!$E$19+'BP Financier'!$C$22+'BP Financier'!$D$22+'BP Financier'!$E$22+'BP Financier'!$F$22+'BP Financier'!$F$16+'BP Financier'!$F$19+'BP Financier'!$G$16+'BP Financier'!$G$19+'BP Financier'!$G$22))*$V8616*AB8616/(1-$W8616)","v":{"v":854.6957436078159,"d":"855"}},null,{"v":0.006,"d":"0.60%"},{"$f":"Actif!$E$28/100","v":{"v":0.28900000000000003,"d":"28.90%"}},{"$f":"Actif!$E$30/100","v":{"v":0.09050000000000001,"d":"9.05%"}},{"$f":"Actif!$E$31/100","v":{"v":0.0605,"d":"6.05%"}},{"$f":"Actif!$E$32/100","v":{"v":0.47350000000000003,"d":"47.35%"}},{"$f":"Actif!$E$33/100","v":{"v":0.0585,"d":"5.85%"}},{"$f":"Actif!$E$29/100","v":{"v":0.027999999999999997,"d":"2.80%"}}]
[null,"#504",65,2030,"F","A_CAPI",{"v":0.44999999999999996,"d":"0.45"},{"v":0.38999999999999996,"d":"0.39"},0.6,0.6,85,0,{"$f":"ROUND(Primes!$Q$10*V8617,2)","v":0.78},0,{"v":21703.166918041326,"d":"21,703"},{"$f":"'BP Financier'!$G$44*(('BP Financier'!$C$22+'BP Financier'!$D$22+'BP Financier'!$E$22+'BP Financier'!$F$22+'BP Financier'!$G$22)/('BP Financier'!$C$16+'BP Financier'!$C$19+'BP Financier'!$D$16+'BP Financier'!$D$19+'BP Financier'!$E$16+'BP Financier'!$E$19+'BP Financier'!$C$22+'BP Financier'!$D$22+'BP Financier'!$E$22+'BP Financier'!$F$22+'BP Financier'!$F$16+'BP Financier'!$F$19+'BP Financier'!$G$16+'BP Financier'!$G$19+'BP Financier'!$G$22))*$V8617*X8617/(1-$W8617)","v":{"v":2762.4987427324054,"d":"2,762"}},{"$f":"'BP Financier'!$G$44*(('BP Financier'!$C$22+'BP Financier'!$D$22+'BP Financier'!$E$22+'BP Financier'!$F$22+'BP Financier'!$G$22)/('BP Financier'!$C$16+'BP Financier'!$C$19+'BP Financier'!$D$16+'BP Financier'!$D$19+'BP Financier'!$E$16+'BP Financier'!$E$19+'BP Financier'!$C$22+'BP Financier'!$D$22+'BP Financier'!$E$22+'BP Financier'!$F$22+'BP Financier'!$F$16+'BP Financier'!$F$19+'BP Financier'!$G$16+'BP Financier'!$G$19+'BP Financier'!$G$22))*$V8617*Y8617/(1-$W8617)","v":{"v":1846.7533031526023,"d":"1,847"}},{"$f":"'BP Financier'!$G$44*(('BP Financier'!$C$22+'BP Financier'!$D$22+'BP Financier'!$E$22+'BP Financier'!$F$22+'BP Financier'!$G$22)/('BP Financier'!$C$16+'BP Financier'!$C$19+'BP Financier'!$D$16+'BP Financier'!$D$19+'BP Financier'!$E$16+'BP Financier'!$E$19+'BP Financier'!$C$22+'BP Financier'!$D$22+'BP Financier'!$E$22+'BP Financier'!$F$22+'BP Financier'!$F$16+'BP Financier'!$F$19+'BP Financier'!$G$16+'BP Financier'!$G$19+'BP Financier'!$G$22))*$V8617*Z8617/(1-$W8617)","v":{"v":14453.51552136789,"d":"14,454"}},{"$f":"'BP Financier'!$G$44*(('BP Financier'!$C$22+'BP Financier'!$D$22+'BP Financier'!$E$22+'BP Financier'!$F$22+'BP Financier'!$G$22)/('BP Financier'!$C$16+'BP Financier'!$C$19+'BP Financier'!$D$16+'BP Financier'!$D$19+'BP Financier'!$E$16+'BP Financier'!$E$19+'BP Financier'!$C$22+'BP Financier'!$D$22+'BP Financier'!$E$22+'BP Financier'!$F$22+'BP Financier'!$F$16+'BP Financier'!$F$19+'BP Financier'!$G$16+'BP Financier'!$G$19+'BP Financier'!$G$22))*$V8617*AA8617/(1-$W8617)","v":{"v":1785.7036071806158,"d":"1,786"}},{"$f":"'BP Financier'!$G$44*(('BP Financier'!$C$22+'BP Financier'!$D$22+'BP Financier'!$E$22+'BP Financier'!$F$22+'BP Financier'!$G$22)/('BP Financier'!$C$16+'BP Financier'!$C$19+'BP Financier'!$D$16+'BP Financier'!$D$19+'BP Financier'!$E$16+'BP Financier'!$E$19+'BP Financier'!$C$22+'BP Financier'!$D$22+'BP Financier'!$E$22+'BP Financier'!$F$22+'BP Financier'!$F$16+'BP Financier'!$F$19+'BP Financier'!$G$16+'BP Financier'!$G$19+'BP Financier'!$G$22))*$V8617*AB8617/(1-$W8617)","v":{"v":854.6957436078159,"d":"855"}},null,{"v":0.006,"d":"0.60%"},{"$f":"Actif!$E$28/100","v":{"v":0.28900000000000003,"d":"28.90%"}},{"$f":"Actif!$E$30/100","v":{"v":0.09050000000000001,"d":"9.05%"}},{"$f":"Actif!$E$31/100","v":{"v":0.0605,"d":"6.05%"}},{"$f":"Actif!$E$32/100","v":{"v":0.47350000000000003,"d":"47.35%"}},{"$f":"Actif!$E$33/100","v":{"v":0.0585,"d":"5.85%"}},{"$f":"Actif!$E$29/100","v":{"v":0.027999999999999997,"d":"2.80%"}}]
[null,"#505",65,2031,"F","A_CAPI",{"v":0.44999999999999996,"d":"0.45"},{"v":0.38999999999999996,"d":"0.39"},0.6,0.6,85,0,{"$f":"ROUND(Primes!$Q$10*V8618,2)","v":0.78},0,{"v":21703.166918041326,"d":"21,703"},{"$f":"'BP Financier'!$G$44*(('BP Financier'!$C$22+'BP Financier'!$D$22+'BP Financier'!$E$22+'BP Financier'!$F$22+'BP Financier'!$G$22)/('BP Financier'!$C$16+'BP Financier'!$C$19+'BP Financier'!$D$16+'BP Financier'!$D$19+'BP Financier'!$E$16+'BP Financier'!$E$19+'BP Financier'!$C$22+'BP Financier'!$D$22+'BP Financier'!$E$22+'BP Financier'!$F$22+'BP Financier'!$F$16+'BP Financier'!$F$19+'BP Financier'!$G$16+'BP Financier'!$G$19+'BP Financier'!$G$22))*$V8618*X8618/(1-$W8618)","v":{"v":2762.4987427324054,"d":"2,762"}},{"$f":"'BP Financier'!$G$44*(('BP Financier'!$C$22+'BP Financier'!$D$22+'BP Financier'!$E$22+'BP Financier'!$F$22+'BP Financier'!$G$22)/('BP Financier'!$C$16+'BP Financier'!$C$19+'BP Financier'!$D$16+'BP Financier'!$D$19+'BP Financier'!$E$16+'BP Financier'!$E$19+'BP Financier'!$C$22+'BP Financier'!$D$22+'BP Financier'!$E$22+'BP Financier'!$F$22+'BP Financier'!$F$16+'BP Financier'!$F$19+'BP Financier'!$G$16+'BP Financier'!$G$19+'BP Financier'!$G$22))*$V8618*Y8618/(1-$W8618)","v":{"v":1846.7533031526023,"d":"1,847"}},{"$f":"'BP Financier'!$G$44*(('BP Financier'!$C$22+'BP Financier'!$D$22+'BP Financier'!$E$22+'BP Financier'!$F$22+'BP Financier'!$G$22)/('BP Financier'!$C$16+'BP Financier'!$C$19+'BP Financier'!$D$16+'BP Financier'!$D$19+'BP Financier'!$E$16+'BP Financier'!$E$19+'BP Financier'!$C$22+'BP Financier'!$D$22+'BP Financier'!$E$22+'BP Financier'!$F$22+'BP Financier'!$F$16+'BP Financier'!$F$19+'BP Financier'!$G$16+'BP Financier'!$G$19+'BP Financier'!$G$22))*$V8618*Z8618/(1-$W8618)","v":{"v":14453.51552136789,"d":"14,454"}},{"$f":"'BP Financier'!$G$44*(('BP Financier'!$C$22+'BP Financier'!$D$22+'BP Financier'!$E$22+'BP Financier'!$F$22+'BP Financier'!$G$22)/('BP Financier'!$C$16+'BP Financier'!$C$19+'BP Financier'!$D$16+'BP Financier'!$D$19+'BP Financier'!$E$16+'BP Financier'!$E$19+'BP Financier'!$C$22+'BP Financier'!$D$22+'BP Financier'!$E$22+'BP Financier'!$F$22+'BP Financier'!$F$16+'BP Financier'!$F$19+'BP Financier'!$G$16+'BP Financier'!$G$19+'BP Financier'!$G$22))*$V8618*AA8618/(1-$W8618)","v":{"v":1785.7036071806158,"d":"1,786"}},{"$f":"'BP Financier'!$G$44*(('BP Financier'!$C$22+'BP Financier'!$D$22+'BP Financier'!$E$22+'BP Financier'!$F$22+'BP Financier'!$G$22)/('BP Financier'!$C$16+'BP Financier'!$C$19+'BP Financier'!$D$16+'BP Financier'!$D$19+'BP Financier'!$E$16+'BP Financier'!$E$19+'BP Financier'!$C$22+'BP Financier'!$D$22+'BP Financier'!$E$22+'BP Financier'!$F$22+'BP Financier'!$F$16+'BP Financier'!$F$19+'BP Financier'!$G$16+'BP Financier'!$G$19+'BP Financier'!$G$22))*$V8618*AB8618/(1-$W8618)","v":{"v":854.6957436078159,"d":"855"}},null,{"v":0.006,"d":"0.60%"},{"$f":"Actif!$E$28/100","v":{"v":0.28900000000000003,"d":"28.90%"}},{"$f":"Actif!$E$30/100","v":{"v":0.09050000000000001,"d":"9.05%"}},{"$f":"Actif!$E$31/100","v":{"v":0.0605,"d":"6.05%"}},{"$f":"Actif!$E$32/100","v":{"v":0.47350000000000003,"d":"47.35%"}},{"$f":"Actif!$E$33/100","v":{"v":0.0585,"d":"5.85%"}},{"$f":"Actif!$E$29/100","v":{"v":0.027999999999999997,"d":"2.80%"}}]
[null,"#506",70,2026,"H","A_CAPI",{"v":0.44999999999999996,"d":"0.45"},{"v":0.38999999999999996,"d":"0.39"},0.6,0.6,85,0,{"$f":"ROUND(Primes!$Q$10*V8619,2)","v":0.13},0,{"v":3617.194486340221,"d":"3,617"},{"$f":"'BP Financier'!$G$44*(('BP Financier'!$C$22+'BP Financier'!$D$22+'BP Financier'!$E$22+'BP Financier'!$F$22+'BP Financier'!$G$22)/('BP Financier'!$C$16+'BP Financier'!$C$19+'BP Financier'!$D$16+'BP Financier'!$D$19+'BP Financier'!$E$16+'BP Financier'!$E$19+'BP Financier'!$C$22+'BP Financier'!$D$22+'BP Financier'!$E$22+'BP Financier'!$F$22+'BP Financier'!$F$16+'BP Financier'!$F$19+'BP Financier'!$G$16+'BP Financier'!$G$19+'BP Financier'!$G$22))*$V8619*X8619/(1-$W8619)","v":{"v":460.4164571220675,"d":"460"}},{"$f":"'BP Financier'!$G$44*(('BP Financier'!$C$22+'BP Financier'!$D$22+'BP Financier'!$E$22+'BP Financier'!$F$22+'BP Financier'!$G$22)/('BP Financier'!$C$16+'BP Financier'!$C$19+'BP Financier'!$D$16+'BP Financier'!$D$19+'BP Financier'!$E$16+'BP Financier'!$E$19+'BP Financier'!$C$22+'BP Financier'!$D$22+'BP Financier'!$E$22+'BP Financier'!$F$22+'BP Financier'!$F$16+'BP Financier'!$F$19+'BP Financier'!$G$16+'BP Financier'!$G$19+'BP Financier'!$G$22))*$V8619*Y8619/(1-$W8619)","v":{"v":307.7922171921004,"d":"308"}},{"$f":"'BP Financier'!$G$44*(('BP Financier'!$C$22+'BP Financier'!$D$22+'BP Financier'!$E$22+'BP Financier'!$F$22+'BP Financier'!$G$22)/('BP Financier'!$C$16+'BP Financier'!$C$19+'BP Financier'!$D$16+'BP Financier'!$D$19+'BP Financier'!$E$16+'BP Financier'!$E$19+'BP Financier'!$C$22+'BP Financier'!$D$22+'BP Financier'!$E$22+'BP Financier'!$F$22+'BP Financier'!$F$16+'BP Financier'!$F$19+'BP Financier'!$G$16+'BP Financier'!$G$19+'BP Financier'!$G$22))*$V8619*Z8619/(1-$W8619)","v":{"v":2408.9192535613147,"d":"2,409"}},{"$f":"'BP Financier'!$G$44*(('BP Financier'!$C$22+'BP Financier'!$D$22+'BP Financier'!$E$22+'BP Financier'!$F$22+'BP Financier'!$G$22)/('BP Financier'!$C$16+'BP Financier'!$C$19+'BP Financier'!$D$16+'BP Financier'!$D$19+'BP Financier'!$E$16+'BP Financier'!$E$19+'BP Financier'!$C$22+'BP Financier'!$D$22+'BP Financier'!$E$22+'BP Financier'!$F$22+'BP Financier'!$F$16+'BP Financier'!$F$19+'BP Financier'!$G$16+'BP Financier'!$G$19+'BP Financier'!$G$22))*$V8619*AA8619/(1-$W8619)","v":{"v":297.6172678634359,"d":"298"}},{"$f":"'BP Financier'!$G$44*(('BP Financier'!$C$22+'BP Financier'!$D$22+'BP Financier'!$E$22+'BP Financier'!$F$22+'BP Financier'!$G$22)/('BP Financier'!$C$16+'BP Financier'!$C$19+'BP Financier'!$D$16+'BP Financier'!$D$19+'BP Financier'!$E$16+'BP Financier'!$E$19+'BP Financier'!$C$22+'BP Financier'!$D$22+'BP Financier'!$E$22+'BP Financier'!$F$22+'BP Financier'!$F$16+'BP Financier'!$F$19+'BP Financier'!$G$16+'BP Financier'!$G$19+'BP Financier'!$G$22))*$V8619*AB8619/(1-$W8619)","v":{"v":142.44929060130264,"d":"142"}},null,{"v":1E-3,"d":"0.10%"},{"$f":"Actif!$E$28/100","v":{"v":0.28900000000000003,"d":"28.90%"}},{"$f":"Actif!$E$30/100","v":{"v":0.09050000000000001,"d":"9.05%"}},{"$f":"Actif!$E$31/100","v":{"v":0.0605,"d":"6.05%"}},{"$f":"Actif!$E$32/100","v":{"v":0.47350000000000003,"d":"47.35%"}},{"$f":"Actif!$E$33/100","v":{"v":0.0585,"d":"5.85%"}},{"$f":"Actif!$E$29/100","v":{"v":0.027999999999999997,"d":"2.80%"}}]
[null,"#507",70,2028,"H","A_CAPI",{"v":0.44999999999999996,"d":"0.45"},{"v":0.38999999999999996,"d":"0.39"},0.6,0.6,85,0,{"$f":"ROUND(Primes!$Q$10*V8620,2)","v":0.13},0,{"$f":"SUM(P8620:T8620)","v":{"v":3617.194486340221,"d":"3,617"}},{"$f":"'BP Financier'!$G$44*(('BP Financier'!$C$22+'BP Financier'!$D$22+'BP Financier'!$E$22+'BP Financier'!$F$22+'BP Financier'!$G$22)/('BP Financier'!$C$16+'BP Financier'!$C$19+'BP Financier'!$D$16+'BP Financier'!$D$19+'BP Financier'!$E$16+'BP Financier'!$E$19+'BP Financier'!$C$22+'BP Financier'!$D$22+'BP Financier'!$E$22+'BP Financier'!$F$22+'BP Financier'!$F$16+'BP Financier'!$F$19+'BP Financier'!$G$16+'BP Financier'!$G$19+'BP Financier'!$G$22))*$V8620*X8620/(1-$W8620)","v":{"v":460.4164571220675,"d":"460"}},{"$f":"'BP Financier'!$G$44*(('BP Financier'!$C$22+'BP Financier'!$D$22+'BP Financier'!$E$22+'BP Financier'!$F$22+'BP Financier'!$G$22)/('BP Financier'!$C$16+'BP Financier'!$C$19+'BP Financier'!$D$16+'BP Financier'!$D$19+'BP Financier'!$E$16+'BP Financier'!$E$19+'BP Financier'!$C$22+'BP Financier'!$D$22+'BP Financier'!$E$22+'BP Financier'!$F$22+'BP Financier'!$F$16+'BP Financier'!$F$19+'BP Financier'!$G$16+'BP Financier'!$G$19+'BP Financier'!$G$22))*$V8620*Y8620/(1-$W8620)","v":{"v":307.7922171921004,"d":"308"}},{"$f":"'BP Financier'!$G$44*(('BP Financier'!$C$22+'BP Financier'!$D$22+'BP Financier'!$E$22+'BP Financier'!$F$22+'BP Financier'!$G$22)/('BP Financier'!$C$16+'BP Financier'!$C$19+'BP Financier'!$D$16+'BP Financier'!$D$19+'BP Financier'!$E$16+'BP Financier'!$E$19+'BP Financier'!$C$22+'BP Financier'!$D$22+'BP Financier'!$E$22+'BP Financier'!$F$22+'BP Financier'!$F$16+'BP Financier'!$F$19+'BP Financier'!$G$16+'BP Financier'!$G$19+'BP Financier'!$G$22))*$V8620*Z8620/(1-$W8620)","v":{"v":2408.9192535613147,"d":"2,409"}},{"$f":"'BP Financier'!$G$44*(('BP Financier'!$C$22+'BP Financier'!$D$22+'BP Financier'!$E$22+'BP Financier'!$F$22+'BP Financier'!$G$22)/('BP Financier'!$C$16+'BP Financier'!$C$19+'BP Financier'!$D$16+'BP Financier'!$D$19+'BP Financier'!$E$16+'BP Financier'!$E$19+'BP Financier'!$C$22+'BP Financier'!$D$22+'BP Financier'!$E$22+'BP Financier'!$F$22+'BP Financier'!$F$16+'BP Financier'!$F$19+'BP Financier'!$G$16+'BP Financier'!$G$19+'BP Financier'!$G$22))*$V8620*AA8620/(1-$W8620)","v":{"v":297.6172678634359,"d":"298"}},{"$f":"'BP Financier'!$G$44*(('BP Financier'!$C$22+'BP Financier'!$D$22+'BP Financier'!$E$22+'BP Financier'!$F$22+'BP Financier'!$G$22)/('BP Financier'!$C$16+'BP Financier'!$C$19+'BP Financier'!$D$16+'BP Financier'!$D$19+'BP Financier'!$E$16+'BP Financier'!$E$19+'BP Financier'!$C$22+'BP Financier'!$D$22+'BP Financier'!$E$22+'BP Financier'!$F$22+'BP Financier'!$F$16+'BP Financier'!$F$19+'BP Financier'!$G$16+'BP Financier'!$G$19+'BP Financier'!$G$22))*$V8620*AB8620/(1-$W8620)","v":{"v":142.44929060130264,"d":"142"}},null,{"v":1E-3,"d":"0.10%"},{"$f":"Actif!$E$28/100","v":{"v":0.28900000000000003,"d":"28.90%"}},{"$f":"Actif!$E$30/100","v":{"v":0.09050000000000001,"d":"9.05%"}},{"$f":"Actif!$E$31/100","v":{"v":0.0605,"d":"6.05%"}},{"$f":"Actif!$E$32/100","v":{"v":0.47350000000000003,"d":"47.35%"}},{"$f":"Actif!$E$33/100","v":{"v":0.0585,"d":"5.85%"}},{"$f":"Actif!$E$29/100","v":{"v":0.027999999999999997,"d":"2.80%"}}]
[null,"#508",70,2029,"H","A_CAPI",{"v":0.44999999999999996,"d":"0.45"},{"v":0.38999999999999996,"d":"0.39"},0.6,0.6,85,0,{"$f":"ROUND(Primes!$Q$10*V8621,2)","v":0.13},0,{"v":3617.194486340221,"d":"3,617"},{"$f":"'BP Financier'!$G$44*(('BP Financier'!$C$22+'BP Financier'!$D$22+'BP Financier'!$E$22+'BP Financier'!$F$22+'BP Financier'!$G$22)/('BP Financier'!$C$16+'BP Financier'!$C$19+'BP Financier'!$D$16+'BP Financier'!$D$19+'BP Financier'!$E$16+'BP Financier'!$E$19+'BP Financier'!$C$22+'BP Financier'!$D$22+'BP Financier'!$E$22+'BP Financier'!$F$22+'BP Financier'!$F$16+'BP Financier'!$F$19+'BP Financier'!$G$16+'BP Financier'!$G$19+'BP Financier'!$G$22))*$V8621*X8621/(1-$W8621)","v":{"v":460.4164571220675,"d":"460"}},{"$f":"'BP Financier'!$G$44*(('BP Financier'!$C$22+'BP Financier'!$D$22+'BP Financier'!$E$22+'BP Financier'!$F$22+'BP Financier'!$G$22)/('BP Financier'!$C$16+'BP Financier'!$C$19+'BP Financier'!$D$16+'BP Financier'!$D$19+'BP Financier'!$E$16+'BP Financier'!$E$19+'BP Financier'!$C$22+'BP Financier'!$D$22+'BP Financier'!$E$22+'BP Financier'!$F$22+'BP Financier'!$F$16+'BP Financier'!$F$19+'BP Financier'!$G$16+'BP Financier'!$G$19+'BP Financier'!$G$22))*$V8621*Y8621/(1-$W8621)","v":{"v":307.7922171921004,"d":"308"}},{"$f":"'BP Financier'!$G$44*(('BP Financier'!$C$22+'BP Financier'!$D$22+'BP Financier'!$E$22+'BP Financier'!$F$22+'BP Financier'!$G$22)/('BP Financier'!$C$16+'BP Financier'!$C$19+'BP Financier'!$D$16+'BP Financier'!$D$19+'BP Financier'!$E$16+'BP Financier'!$E$19+'BP Financier'!$C$22+'BP Financier'!$D$22+'BP Financier'!$E$22+'BP Financier'!$F$22+'BP Financier'!$F$16+'BP Financier'!$F$19+'BP Financier'!$G$16+'BP Financier'!$G$19+'BP Financier'!$G$22))*$V8621*Z8621/(1-$W8621)","v":{"v":2408.9192535613147,"d":"2,409"}},{"$f":"'BP Financier'!$G$44*(('BP Financier'!$C$22+'BP Financier'!$D$22+'BP Financier'!$E$22+'BP Financier'!$F$22+'BP Financier'!$G$22)/('BP Financier'!$C$16+'BP Financier'!$C$19+'BP Financier'!$D$16+'BP Financier'!$D$19+'BP Financier'!$E$16+'BP Financier'!$E$19+'BP Financier'!$C$22+'BP Financier'!$D$22+'BP Financier'!$E$22+'BP Financier'!$F$22+'BP Financier'!$F$16+'BP Financier'!$F$19+'BP Financier'!$G$16+'BP Financier'!$G$19+'BP Financier'!$G$22))*$V8621*AA8621/(1-$W8621)","v":{"v":297.6172678634359,"d":"298"}},{"$f":"'BP Financier'!$G$44*(('BP Financier'!$C$22+'BP Financier'!$D$22+'BP Financier'!$E$22+'BP Financier'!$F$22+'BP Financier'!$G$22)/('BP Financier'!$C$16+'BP Financier'!$C$19+'BP Financier'!$D$16+'BP Financier'!$D$19+'BP Financier'!$E$16+'BP Financier'!$E$19+'BP Financier'!$C$22+'BP Financier'!$D$22+'BP Financier'!$E$22+'BP Financier'!$F$22+'BP Financier'!$F$16+'BP Financier'!$F$19+'BP Financier'!$G$16+'BP Financier'!$G$19+'BP Financier'!$G$22))*$V8621*AB8621/(1-$W8621)","v":{"v":142.44929060130264,"d":"142"}},null,{"v":1E-3,"d":"0.10%"},{"$f":"Actif!$E$28/100","v":{"v":0.28900000000000003,"d":"28.90%"}},{"$f":"Actif!$E$30/100","v":{"v":0.09050000000000001,"d":"9.05%"}},{"$f":"Actif!$E$31/100","v":{"v":0.0605,"d":"6.05%"}},{"$f":"Actif!$E$32/100","v":{"v":0.47350000000000003,"d":"47.35%"}},{"$f":"Actif!$E$33/100","v":{"v":0.0585,"d":"5.85%"}},{"$f":"Actif!$E$29/100","v":{"v":0.027999999999999997,"d":"2.80%"}}]
[null,"#509",70,2030,"H","A_CAPI",{"v":0.44999999999999996,"d":"0.45"},{"v":0.38999999999999996,"d":"0.39"},0.6,0.6,85,0,{"$f":"ROUND(Primes!$Q$10*V8622,2)","v":0.13},0,{"v":3617.194486340221,"d":"3,617"},{"$f":"'BP Financier'!$G$44*(('BP Financier'!$C$22+'BP Financier'!$D$22+'BP Financier'!$E$22+'BP Financier'!$F$22+'BP Financier'!$G$22)/('BP Financier'!$C$16+'BP Financier'!$C$19+'BP Financier'!$D$16+'BP Financier'!$D$19+'BP Financier'!$E$16+'BP Financier'!$E$19+'BP Financier'!$C$22+'BP Financier'!$D$22+'BP Financier'!$E$22+'BP Financier'!$F$22+'BP Financier'!$F$16+'BP Financier'!$F$19+'BP Financier'!$G$16+'BP Financier'!$G$19+'BP Financier'!$G$22))*$V8622*X8622/(1-$W8622)","v":{"v":460.4164571220675,"d":"460"}},{"$f":"'BP Financier'!$G$44*(('BP Financier'!$C$22+'BP Financier'!$D$22+'BP Financier'!$E$22+'BP Financier'!$F$22+'BP Financier'!$G$22)/('BP Financier'!$C$16+'BP Financier'!$C$19+'BP Financier'!$D$16+'BP Financier'!$D$19+'BP Financier'!$E$16+'BP Financier'!$E$19+'BP Financier'!$C$22+'BP Financier'!$D$22+'BP Financier'!$E$22+'BP Financier'!$F$22+'BP Financier'!$F$16+'BP Financier'!$F$19+'BP Financier'!$G$16+'BP Financier'!$G$19+'BP Financier'!$G$22))*$V8622*Y8622/(1-$W8622)","v":{"v":307.7922171921004,"d":"308"}},{"$f":"'BP Financier'!$G$44*(('BP Financier'!$C$22+'BP Financier'!$D$22+'BP Financier'!$E$22+'BP Financier'!$F$22+'BP Financier'!$G$22)/('BP Financier'!$C$16+'BP Financier'!$C$19+'BP Financier'!$D$16+'BP Financier'!$D$19+'BP Financier'!$E$16+'BP Financier'!$E$19+'BP Financier'!$C$22+'BP Financier'!$D$22+'BP Financier'!$E$22+'BP Financier'!$F$22+'BP Financier'!$F$16+'BP Financier'!$F$19+'BP Financier'!$G$16+'BP Financier'!$G$19+'BP Financier'!$G$22))*$V8622*Z8622/(1-$W8622)","v":{"v":2408.9192535613147,"d":"2,409"}},{"$f":"'BP Financier'!$G$44*(('BP Financier'!$C$22+'BP Financier'!$D$22+'BP Financier'!$E$22+'BP Financier'!$F$22+'BP Financier'!$G$22)/('BP Financier'!$C$16+'BP Financier'!$C$19+'BP Financier'!$D$16+'BP Financier'!$D$19+'BP Financier'!$E$16+'BP Financier'!$E$19+'BP Financier'!$C$22+'BP Financier'!$D$22+'BP Financier'!$E$22+'BP Financier'!$F$22+'BP Financier'!$F$16+'BP Financier'!$F$19+'BP Financier'!$G$16+'BP Financier'!$G$19+'BP Financier'!$G$22))*$V8622*AA8622/(1-$W8622)","v":{"v":297.6172678634359,"d":"298"}},{"$f":"'BP Financier'!$G$44*(('BP Financier'!$C$22+'BP Financier'!$D$22+'BP Financier'!$E$22+'BP Financier'!$F$22+'BP Financier'!$G$22)/('BP Financier'!$C$16+'BP Financier'!$C$19+'BP Financier'!$D$16+'BP Financier'!$D$19+'BP Financier'!$E$16+'BP Financier'!$E$19+'BP Financier'!$C$22+'BP Financier'!$D$22+'BP Financier'!$E$22+'BP Financier'!$F$22+'BP Financier'!$F$16+'BP Financier'!$F$19+'BP Financier'!$G$16+'BP Financier'!$G$19+'BP Financier'!$G$22))*$V8622*AB8622/(1-$W8622)","v":{"v":142.44929060130264,"d":"142"}},null,{"v":1E-3,"d":"0.10%"},{"$f":"Actif!$E$28/100","v":{"v":0.28900000000000003,"d":"28.90%"}},{"$f":"Actif!$E$30/100","v":{"v":0.09050000000000001,"d":"9.05%"}},{"$f":"Actif!$E$31/100","v":{"v":0.0605,"d":"6.05%"}},{"$f":"Actif!$E$32/100","v":{"v":0.47350000000000003,"d":"47.35%"}},{"$f":"Actif!$E$33/100","v":{"v":0.0585,"d":"5.85%"}},{"$f":"Actif!$E$29/100","v":{"v":0.027999999999999997,"d":"2.80%"}}]
[null,"#510",70,2031,"H","A_CAPI",{"v":0.44999999999999996,"d":"0.45"},{"v":0.38999999999999996,"d":"0.39"},0.6,0.6,85,0,{"$f":"ROUND(Primes!$Q$10*V8623,2)","v":0.13},0,{"v":3617.194486340221,"d":"3,617"},{"$f":"'BP Financier'!$G$44*(('BP Financier'!$C$22+'BP Financier'!$D$22+'BP Financier'!$E$22+'BP Financier'!$F$22+'BP Financier'!$G$22)/('BP Financier'!$C$16+'BP Financier'!$C$19+'BP Financier'!$D$16+'BP Financier'!$D$19+'BP Financier'!$E$16+'BP Financier'!$E$19+'BP Financier'!$C$22+'BP Financier'!$D$22+'BP Financier'!$E$22+'BP Financier'!$F$22+'BP Financier'!$F$16+'BP Financier'!$F$19+'BP Financier'!$G$16+'BP Financier'!$G$19+'BP Financier'!$G$22))*$V8623*X8623/(1-$W8623)","v":{"v":460.4164571220675,"d":"460"}},{"$f":"'BP Financier'!$G$44*(('BP Financier'!$C$22+'BP Financier'!$D$22+'BP Financier'!$E$22+'BP Financier'!$F$22+'BP Financier'!$G$22)/('BP Financier'!$C$16+'BP Financier'!$C$19+'BP Financier'!$D$16+'BP Financier'!$D$19+'BP Financier'!$E$16+'BP Financier'!$E$19+'BP Financier'!$C$22+'BP Financier'!$D$22+'BP Financier'!$E$22+'BP Financier'!$F$22+'BP Financier'!$F$16+'BP Financier'!$F$19+'BP Financier'!$G$16+'BP Financier'!$G$19+'BP Financier'!$G$22))*$V8623*Y8623/(1-$W8623)","v":{"v":307.7922171921004,"d":"308"}},{"$f":"'BP Financier'!$G$44*(('BP Financier'!$C$22+'BP Financier'!$D$22+'BP Financier'!$E$22+'BP Financier'!$F$22+'BP Financier'!$G$22)/('BP Financier'!$C$16+'BP Financier'!$C$19+'BP Financier'!$D$16+'BP Financier'!$D$19+'BP Financier'!$E$16+'BP Financier'!$E$19+'BP Financier'!$C$22+'BP Financier'!$D$22+'BP Financier'!$E$22+'BP Financier'!$F$22+'BP Financier'!$F$16+'BP Financier'!$F$19+'BP Financier'!$G$16+'BP Financier'!$G$19+'BP Financier'!$G$22))*$V8623*Z8623/(1-$W8623)","v":{"v":2408.9192535613147,"d":"2,409"}},{"$f":"'BP Financier'!$G$44*(('BP Financier'!$C$22+'BP Financier'!$D$22+'BP Financier'!$E$22+'BP Financier'!$F$22+'BP Financier'!$G$22)/('BP Financier'!$C$16+'BP Financier'!$C$19+'BP Financier'!$D$16+'BP Financier'!$D$19+'BP Financier'!$E$16+'BP Financier'!$E$19+'BP Financier'!$C$22+'BP Financier'!$D$22+'BP Financier'!$E$22+'BP Financier'!$F$22+'BP Financier'!$F$16+'BP Financier'!$F$19+'BP Financier'!$G$16+'BP Financier'!$G$19+'BP Financier'!$G$22))*$V8623*AA8623/(1-$W8623)","v":{"v":297.6172678634359,"d":"298"}},{"$f":"'BP Financier'!$G$44*(('BP Financier'!$C$22+'BP Financier'!$D$22+'BP Financier'!$E$22+'BP Financier'!$F$22+'BP Financier'!$G$22)/('BP Financier'!$C$16+'BP Financier'!$C$19+'BP Financier'!$D$16+'BP Financier'!$D$19+'BP Financier'!$E$16+'BP Financier'!$E$19+'BP Financier'!$C$22+'BP Financier'!$D$22+'BP Financier'!$E$22+'BP Financier'!$F$22+'BP Financier'!$F$16+'BP Financier'!$F$19+'BP Financier'!$G$16+'BP Financier'!$G$19+'BP Financier'!$G$22))*$V8623*AB8623/(1-$W8623)","v":{"v":142.44929060130264,"d":"142"}},null,{"v":1E-3,"d":"0.10%"},{"$f":"Actif!$E$28/100","v":{"v":0.28900000000000003,"d":"28.90%"}},{"$f":"Actif!$E$30/100","v":{"v":0.09050000000000001,"d":"9.05%"}},{"$f":"Actif!$E$31/100","v":{"v":0.0605,"d":"6.05%"}},{"$f":"Actif!$E$32/100","v":{"v":0.47350000000000003,"d":"47.35%"}},{"$f":"Actif!$E$33/100","v":{"v":0.0585,"d":"5.85%"}},{"$f":"Actif!$E$29/100","v":{"v":0.027999999999999997,"d":"2.80%"}}]
[null,"#511",75,2026,"H","A_CAPI",{"v":0.44999999999999996,"d":"0.45"},{"v":0.38999999999999996,"d":"0.39"},0.6,0.6,85,0,{"$f":"ROUND(Primes!$Q$10*V8624,2)","v":0.13},0,{"v":3617.194486340221,"d":"3,617"},{"$f":"'BP Financier'!$G$44*(('BP Financier'!$C$22+'BP Financier'!$D$22+'BP Financier'!$E$22+'BP Financier'!$F$22+'BP Financier'!$G$22)/('BP Financier'!$C$16+'BP Financier'!$C$19+'BP Financier'!$D$16+'BP Financier'!$D$19+'BP Financier'!$E$16+'BP Financier'!$E$19+'BP Financier'!$C$22+'BP Financier'!$D$22+'BP Financier'!$E$22+'BP Financier'!$F$22+'BP Financier'!$F$16+'BP Financier'!$F$19+'BP Financier'!$G$16+'BP Financier'!$G$19+'BP Financier'!$G$22))*$V8624*X8624/(1-$W8624)","v":{"v":460.4164571220675,"d":"460"}},{"$f":"'BP Financier'!$G$44*(('BP Financier'!$C$22+'BP Financier'!$D$22+'BP Financier'!$E$22+'BP Financier'!$F$22+'BP Financier'!$G$22)/('BP Financier'!$C$16+'BP Financier'!$C$19+'BP Financier'!$D$16+'BP Financier'!$D$19+'BP Financier'!$E$16+'BP Financier'!$E$19+'BP Financier'!$C$22+'BP Financier'!$D$22+'BP Financier'!$E$22+'BP Financier'!$F$22+'BP Financier'!$F$16+'BP Financier'!$F$19+'BP Financier'!$G$16+'BP Financier'!$G$19+'BP Financier'!$G$22))*$V8624*Y8624/(1-$W8624)","v":{"v":307.7922171921004,"d":"308"}},{"$f":"'BP Financier'!$G$44*(('BP Financier'!$C$22+'BP Financier'!$D$22+'BP Financier'!$E$22+'BP Financier'!$F$22+'BP Financier'!$G$22)/('BP Financier'!$C$16+'BP Financier'!$C$19+'BP Financier'!$D$16+'BP Financier'!$D$19+'BP Financier'!$E$16+'BP Financier'!$E$19+'BP Financier'!$C$22+'BP Financier'!$D$22+'BP Financier'!$E$22+'BP Financier'!$F$22+'BP Financier'!$F$16+'BP Financier'!$F$19+'BP Financier'!$G$16+'BP Financier'!$G$19+'BP Financier'!$G$22))*$V8624*Z8624/(1-$W8624)","v":{"v":2408.9192535613147,"d":"2,409"}},{"$f":"'BP Financier'!$G$44*(('BP Financier'!$C$22+'BP Financier'!$D$22+'BP Financier'!$E$22+'BP Financier'!$F$22+'BP Financier'!$G$22)/('BP Financier'!$C$16+'BP Financier'!$C$19+'BP Financier'!$D$16+'BP Financier'!$D$19+'BP Financier'!$E$16+'BP Financier'!$E$19+'BP Financier'!$C$22+'BP Financier'!$D$22+'BP Financier'!$E$22+'BP Financier'!$F$22+'BP Financier'!$F$16+'BP Financier'!$F$19+'BP Financier'!$G$16+'BP Financier'!$G$19+'BP Financier'!$G$22))*$V8624*AA8624/(1-$W8624)","v":{"v":297.6172678634359,"d":"298"}},{"$f":"'BP Financier'!$G$44*(('BP Financier'!$C$22+'BP Financier'!$D$22+'BP Financier'!$E$22+'BP Financier'!$F$22+'BP Financier'!$G$22)/('BP Financier'!$C$16+'BP Financier'!$C$19+'BP Financier'!$D$16+'BP Financier'!$D$19+'BP Financier'!$E$16+'BP Financier'!$E$19+'BP Financier'!$C$22+'BP Financier'!$D$22+'BP Financier'!$E$22+'BP Financier'!$F$22+'BP Financier'!$F$16+'BP Financier'!$F$19+'BP Financier'!$G$16+'BP Financier'!$G$19+'BP Financier'!$G$22))*$V8624*AB8624/(1-$W8624)","v":{"v":142.44929060130264,"d":"142"}},null,{"v":1E-3,"d":"0.10%"},{"$f":"Actif!$E$28/100","v":{"v":0.28900000000000003,"d":"28.90%"}},{"$f":"Actif!$E$30/100","v":{"v":0.09050000000000001,"d":"9.05%"}},{"$f":"Actif!$E$31/100","v":{"v":0.0605,"d":"6.05%"}},{"$f":"Actif!$E$32/100","v":{"v":0.47350000000000003,"d":"47.35%"}},{"$f":"Actif!$E$33/100","v":{"v":0.0585,"d":"5.85%"}},{"$f":"Actif!$E$29/100","v":{"v":0.027999999999999997,"d":"2.80%"}}]
[null,"#512",75,2028,"H","A_CAPI",{"v":0.44999999999999996,"d":"0.45"},{"v":0.38999999999999996,"d":"0.39"},0.6,0.6,85,0,{"$f":"ROUND(Primes!$Q$10*V8625,2)","v":0.13},0,{"v":3617.194486340221,"d":"3,617"},{"$f":"'BP Financier'!$G$44*(('BP Financier'!$C$22+'BP Financier'!$D$22+'BP Financier'!$E$22+'BP Financier'!$F$22+'BP Financier'!$G$22)/('BP Financier'!$C$16+'BP Financier'!$C$19+'BP Financier'!$D$16+'BP Financier'!$D$19+'BP Financier'!$E$16+'BP Financier'!$E$19+'BP Financier'!$C$22+'BP Financier'!$D$22+'BP Financier'!$E$22+'BP Financier'!$F$22+'BP Financier'!$F$16+'BP Financier'!$F$19+'BP Financier'!$G$16+'BP Financier'!$G$19+'BP Financier'!$G$22))*$V8625*X8625/(1-$W8625)","v":{"v":460.4164571220675,"d":"460"}},{"$f":"'BP Financier'!$G$44*(('BP Financier'!$C$22+'BP Financier'!$D$22+'BP Financier'!$E$22+'BP Financier'!$F$22+'BP Financier'!$G$22)/('BP Financier'!$C$16+'BP Financier'!$C$19+'BP Financier'!$D$16+'BP Financier'!$D$19+'BP Financier'!$E$16+'BP Financier'!$E$19+'BP Financier'!$C$22+'BP Financier'!$D$22+'BP Financier'!$E$22+'BP Financier'!$F$22+'BP Financier'!$F$16+'BP Financier'!$F$19+'BP Financier'!$G$16+'BP Financier'!$G$19+'BP Financier'!$G$22))*$V8625*Y8625/(1-$W8625)","v":{"v":307.7922171921004,"d":"308"}},{"$f":"'BP Financier'!$G$44*(('BP Financier'!$C$22+'BP Financier'!$D$22+'BP Financier'!$E$22+'BP Financier'!$F$22+'BP Financier'!$G$22)/('BP Financier'!$C$16+'BP Financier'!$C$19+'BP Financier'!$D$16+'BP Financier'!$D$19+'BP Financier'!$E$16+'BP Financier'!$E$19+'BP Financier'!$C$22+'BP Financier'!$D$22+'BP Financier'!$E$22+'BP Financier'!$F$22+'BP Financier'!$F$16+'BP Financier'!$F$19+'BP Financier'!$G$16+'BP Financier'!$G$19+'BP Financier'!$G$22))*$V8625*Z8625/(1-$W8625)","v":{"v":2408.9192535613147,"d":"2,409"}},{"$f":"'BP Financier'!$G$44*(('BP Financier'!$C$22+'BP Financier'!$D$22+'BP Financier'!$E$22+'BP Financier'!$F$22+'BP Financier'!$G$22)/('BP Financier'!$C$16+'BP Financier'!$C$19+'BP Financier'!$D$16+'BP Financier'!$D$19+'BP Financier'!$E$16+'BP Financier'!$E$19+'BP Financier'!$C$22+'BP Financier'!$D$22+'BP Financier'!$E$22+'BP Financier'!$F$22+'BP Financier'!$F$16+'BP Financier'!$F$19+'BP Financier'!$G$16+'BP Financier'!$G$19+'BP Financier'!$G$22))*$V8625*AA8625/(1-$W8625)","v":{"v":297.6172678634359,"d":"298"}},{"$f":"'BP Financier'!$G$44*(('BP Financier'!$C$22+'BP Financier'!$D$22+'BP Financier'!$E$22+'BP Financier'!$F$22+'BP Financier'!$G$22)/('BP Financier'!$C$16+'BP Financier'!$C$19+'BP Financier'!$D$16+'BP Financier'!$D$19+'BP Financier'!$E$16+'BP Financier'!$E$19+'BP Financier'!$C$22+'BP Financier'!$D$22+'BP Financier'!$E$22+'BP Financier'!$F$22+'BP Financier'!$F$16+'BP Financier'!$F$19+'BP Financier'!$G$16+'BP Financier'!$G$19+'BP Financier'!$G$22))*$V8625*AB8625/(1-$W8625)","v":{"v":142.44929060130264,"d":"142"}},null,{"v":1E-3,"d":"0.10%"},{"$f":"Actif!$E$28/100","v":{"v":0.28900000000000003,"d":"28.90%"}},{"$f":"Actif!$E$30/100","v":{"v":0.09050000000000001,"d":"9.05%"}},{"$f":"Actif!$E$31/100","v":{"v":0.0605,"d":"6.05%"}},{"$f":"Actif!$E$32/100","v":{"v":0.47350000000000003,"d":"47.35%"}},{"$f":"Actif!$E$33/100","v":{"v":0.0585,"d":"5.85%"}},{"$f":"Actif!$E$29/100","v":{"v":0.027999999999999997,"d":"2.80%"}}]
[null,"#513",75,2029,"H","A_CAPI",{"v":0.44999999999999996,"d":"0.45"},{"v":0.38999999999999996,"d":"0.39"},0.6,0.6,85,0,{"$f":"ROUND(Primes!$Q$10*V8626,2)","v":0.13},0,{"v":3617.194486340221,"d":"3,617"},{"$f":"'BP Financier'!$G$44*(('BP Financier'!$C$22+'BP Financier'!$D$22+'BP Financier'!$E$22+'BP Financier'!$F$22+'BP Financier'!$G$22)/('BP Financier'!$C$16+'BP Financier'!$C$19+'BP Financier'!$D$16+'BP Financier'!$D$19+'BP Financier'!$E$16+'BP Financier'!$E$19+'BP Financier'!$C$22+'BP Financier'!$D$22+'BP Financier'!$E$22+'BP Financier'!$F$22+'BP Financier'!$F$16+'BP Financier'!$F$19+'BP Financier'!$G$16+'BP Financier'!$G$19+'BP Financier'!$G$22))*$V8626*X8626/(1-$W8626)","v":{"v":460.4164571220675,"d":"460"}},{"$f":"'BP Financier'!$G$44*(('BP Financier'!$C$22+'BP Financier'!$D$22+'BP Financier'!$E$22+'BP Financier'!$F$22+'BP Financier'!$G$22)/('BP Financier'!$C$16+'BP Financier'!$C$19+'BP Financier'!$D$16+'BP Financier'!$D$19+'BP Financier'!$E$16+'BP Financier'!$E$19+'BP Financier'!$C$22+'BP Financier'!$D$22+'BP Financier'!$E$22+'BP Financier'!$F$22+'BP Financier'!$F$16+'BP Financier'!$F$19+'BP Financier'!$G$16+'BP Financier'!$G$19+'BP Financier'!$G$22))*$V8626*Y8626/(1-$W8626)","v":{"v":307.7922171921004,"d":"308"}},{"$f":"'BP Financier'!$G$44*(('BP Financier'!$C$22+'BP Financier'!$D$22+'BP Financier'!$E$22+'BP Financier'!$F$22+'BP Financier'!$G$22)/('BP Financier'!$C$16+'BP Financier'!$C$19+'BP Financier'!$D$16+'BP Financier'!$D$19+'BP Financier'!$E$16+'BP Financier'!$E$19+'BP Financier'!$C$22+'BP Financier'!$D$22+'BP Financier'!$E$22+'BP Financier'!$F$22+'BP Financier'!$F$16+'BP Financier'!$F$19+'BP Financier'!$G$16+'BP Financier'!$G$19+'BP Financier'!$G$22))*$V8626*Z8626/(1-$W8626)","v":{"v":2408.9192535613147,"d":"2,409"}},{"$f":"'BP Financier'!$G$44*(('BP Financier'!$C$22+'BP Financier'!$D$22+'BP Financier'!$E$22+'BP Financier'!$F$22+'BP Financier'!$G$22)/('BP Financier'!$C$16+'BP Financier'!$C$19+'BP Financier'!$D$16+'BP Financier'!$D$19+'BP Financier'!$E$16+'BP Financier'!$E$19+'BP Financier'!$C$22+'BP Financier'!$D$22+'BP Financier'!$E$22+'BP Financier'!$F$22+'BP Financier'!$F$16+'BP Financier'!$F$19+'BP Financier'!$G$16+'BP Financier'!$G$19+'BP Financier'!$G$22))*$V8626*AA8626/(1-$W8626)","v":{"v":297.6172678634359,"d":"298"}},{"$f":"'BP Financier'!$G$44*(('BP Financier'!$C$22+'BP Financier'!$D$22+'BP Financier'!$E$22+'BP Financier'!$F$22+'BP Financier'!$G$22)/('BP Financier'!$C$16+'BP Financier'!$C$19+'BP Financier'!$D$16+'BP Financier'!$D$19+'BP Financier'!$E$16+'BP Financier'!$E$19+'BP Financier'!$C$22+'BP Financier'!$D$22+'BP Financier'!$E$22+'BP Financier'!$F$22+'BP Financier'!$F$16+'BP Financier'!$F$19+'BP Financier'!$G$16+'BP Financier'!$G$19+'BP Financier'!$G$22))*$V8626*AB8626/(1-$W8626)","v":{"v":142.44929060130264,"d":"142"}},null,{"v":1E-3,"d":"0.10%"},{"$f":"Actif!$E$28/100","v":{"v":0.28900000000000003,"d":"28.90%"}},{"$f":"Actif!$E$30/100","v":{"v":0.09050000000000001,"d":"9.05%"}},{"$f":"Actif!$E$31/100","v":{"v":0.0605,"d":"6.05%"}},{"$f":"Actif!$E$32/100","v":{"v":0.47350000000000003,"d":"47.35%"}},{"$f":"Actif!$E$33/100","v":{"v":0.0585,"d":"5.85%"}},{"$f":"Actif!$E$29/100","v":{"v":0.027999999999999997,"d":"2.80%"}}]
[null,"#514",75,2030,"H","A_CAPI",{"v":0.44999999999999996,"d":"0.45"},{"v":0.38999999999999996,"d":"0.39"},0.6,0.6,85,0,{"$f":"ROUND(Primes!$Q$10*V8627,2)","v":0.13},0,{"v":3617.194486340221,"d":"3,617"},{"$f":"'BP Financier'!$G$44*(('BP Financier'!$C$22+'BP Financier'!$D$22+'BP Financier'!$E$22+'BP Financier'!$F$22+'BP Financier'!$G$22)/('BP Financier'!$C$16+'BP Financier'!$C$19+'BP Financier'!$D$16+'BP Financier'!$D$19+'BP Financier'!$E$16+'BP Financier'!$E$19+'BP Financier'!$C$22+'BP Financier'!$D$22+'BP Financier'!$E$22+'BP Financier'!$F$22+'BP Financier'!$F$16+'BP Financier'!$F$19+'BP Financier'!$G$16+'BP Financier'!$G$19+'BP Financier'!$G$22))*$V8627*X8627/(1-$W8627)","v":{"v":460.4164571220675,"d":"460"}},{"$f":"'BP Financier'!$G$44*(('BP Financier'!$C$22+'BP Financier'!$D$22+'BP Financier'!$E$22+'BP Financier'!$F$22+'BP Financier'!$G$22)/('BP Financier'!$C$16+'BP Financier'!$C$19+'BP Financier'!$D$16+'BP Financier'!$D$19+'BP Financier'!$E$16+'BP Financier'!$E$19+'BP Financier'!$C$22+'BP Financier'!$D$22+'BP Financier'!$E$22+'BP Financier'!$F$22+'BP Financier'!$F$16+'BP Financier'!$F$19+'BP Financier'!$G$16+'BP Financier'!$G$19+'BP Financier'!$G$22))*$V8627*Y8627/(1-$W8627)","v":{"v":307.7922171921004,"d":"308"}},{"$f":"'BP Financier'!$G$44*(('BP Financier'!$C$22+'BP Financier'!$D$22+'BP Financier'!$E$22+'BP Financier'!$F$22+'BP Financier'!$G$22)/('BP Financier'!$C$16+'BP Financier'!$C$19+'BP Financier'!$D$16+'BP Financier'!$D$19+'BP Financier'!$E$16+'BP Financier'!$E$19+'BP Financier'!$C$22+'BP Financier'!$D$22+'BP Financier'!$E$22+'BP Financier'!$F$22+'BP Financier'!$F$16+'BP Financier'!$F$19+'BP Financier'!$G$16+'BP Financier'!$G$19+'BP Financier'!$G$22))*$V8627*Z8627/(1-$W8627)","v":{"v":2408.9192535613147,"d":"2,409"}},{"$f":"'BP Financier'!$G$44*(('BP Financier'!$C$22+'BP Financier'!$D$22+'BP Financier'!$E$22+'BP Financier'!$F$22+'BP Financier'!$G$22)/('BP Financier'!$C$16+'BP Financier'!$C$19+'BP Financier'!$D$16+'BP Financier'!$D$19+'BP Financier'!$E$16+'BP Financier'!$E$19+'BP Financier'!$C$22+'BP Financier'!$D$22+'BP Financier'!$E$22+'BP Financier'!$F$22+'BP Financier'!$F$16+'BP Financier'!$F$19+'BP Financier'!$G$16+'BP Financier'!$G$19+'BP Financier'!$G$22))*$V8627*AA8627/(1-$W8627)","v":{"v":297.6172678634359,"d":"298"}},{"$f":"'BP Financier'!$G$44*(('BP Financier'!$C$22+'BP Financier'!$D$22+'BP Financier'!$E$22+'BP Financier'!$F$22+'BP Financier'!$G$22)/('BP Financier'!$C$16+'BP Financier'!$C$19+'BP Financier'!$D$16+'BP Financier'!$D$19+'BP Financier'!$E$16+'BP Financier'!$E$19+'BP Financier'!$C$22+'BP Financier'!$D$22+'BP Financier'!$E$22+'BP Financier'!$F$22+'BP Financier'!$F$16+'BP Financier'!$F$19+'BP Financier'!$G$16+'BP Financier'!$G$19+'BP Financier'!$G$22))*$V8627*AB8627/(1-$W8627)","v":{"v":142.44929060130264,"d":"142"}},null,{"v":1E-3,"d":"0.10%"},{"$f":"Actif!$E$28/100","v":{"v":0.28900000000000003,"d":"28.90%"}},{"$f":"Actif!$E$30/100","v":{"v":0.09050000000000001,"d":"9.05%"}},{"$f":"Actif!$E$31/100","v":{"v":0.0605,"d":"6.05%"}},{"$f":"Actif!$E$32/100","v":{"v":0.47350000000000003,"d":"47.35%"}},{"$f":"Actif!$E$33/100","v":{"v":0.0585,"d":"5.85%"}},{"$f":"Actif!$E$29/100","v":{"v":0.027999999999999997,"d":"2.80%"}}]
[null,"#515",75,2031,"H","A_CAPI",{"v":0.44999999999999996,"d":"0.45"},{"v":0.38999999999999996,"d":"0.39"},0.6,0.6,85,0,{"$f":"ROUND(Primes!$Q$10*V8628,2)","v":0.13},0,{"v":3617.194486340221,"d":"3,617"},{"$f":"'BP Financier'!$G$44*(('BP Financier'!$C$22+'BP Financier'!$D$22+'BP Financier'!$E$22+'BP Financier'!$F$22+'BP Financier'!$G$22)/('BP Financier'!$C$16+'BP Financier'!$C$19+'BP Financier'!$D$16+'BP Financier'!$D$19+'BP Financier'!$E$16+'BP Financier'!$E$19+'BP Financier'!$C$22+'BP Financier'!$D$22+'BP Financier'!$E$22+'BP Financier'!$F$22+'BP Financier'!$F$16+'BP Financier'!$F$19+'BP Financier'!$G$16+'BP Financier'!$G$19+'BP Financier'!$G$22))*$V8628*X8628/(1-$W8628)","v":{"v":460.4164571220675,"d":"460"}},{"$f":"'BP Financier'!$G$44*(('BP Financier'!$C$22+'BP Financier'!$D$22+'BP Financier'!$E$22+'BP Financier'!$F$22+'BP Financier'!$G$22)/('BP Financier'!$C$16+'BP Financier'!$C$19+'BP Financier'!$D$16+'BP Financier'!$D$19+'BP Financier'!$E$16+'BP Financier'!$E$19+'BP Financier'!$C$22+'BP Financier'!$D$22+'BP Financier'!$E$22+'BP Financier'!$F$22+'BP Financier'!$F$16+'BP Financier'!$F$19+'BP Financier'!$G$16+'BP Financier'!$G$19+'BP Financier'!$G$22))*$V8628*Y8628/(1-$W8628)","v":{"v":307.7922171921004,"d":"308"}},{"$f":"'BP Financier'!$G$44*(('BP Financier'!$C$22+'BP Financier'!$D$22+'BP Financier'!$E$22+'BP Financier'!$F$22+'BP Financier'!$G$22)/('BP Financier'!$C$16+'BP Financier'!$C$19+'BP Financier'!$D$16+'BP Financier'!$D$19+'BP Financier'!$E$16+'BP Financier'!$E$19+'BP Financier'!$C$22+'BP Financier'!$D$22+'BP Financier'!$E$22+'BP Financier'!$F$22+'BP Financier'!$F$16+'BP Financier'!$F$19+'BP Financier'!$G$16+'BP Financier'!$G$19+'BP Financier'!$G$22))*$V8628*Z8628/(1-$W8628)","v":{"v":2408.9192535613147,"d":"2,409"}},{"$f":"'BP Financier'!$G$44*(('BP Financier'!$C$22+'BP Financier'!$D$22+'BP Financier'!$E$22+'BP Financier'!$F$22+'BP Financier'!$G$22)/('BP Financier'!$C$16+'BP Financier'!$C$19+'BP Financier'!$D$16+'BP Financier'!$D$19+'BP Financier'!$E$16+'BP Financier'!$E$19+'BP Financier'!$C$22+'BP Financier'!$D$22+'BP Financier'!$E$22+'BP Financier'!$F$22+'BP Financier'!$F$16+'BP Financier'!$F$19+'BP Financier'!$G$16+'BP Financier'!$G$19+'BP Financier'!$G$22))*$V8628*AA8628/(1-$W8628)","v":{"v":297.6172678634359,"d":"298"}},{"$f":"'BP Financier'!$G$44*(('BP Financier'!$C$22+'BP Financier'!$D$22+'BP Financier'!$E$22+'BP Financier'!$F$22+'BP Financier'!$G$22)/('BP Financier'!$C$16+'BP Financier'!$C$19+'BP Financier'!$D$16+'BP Financier'!$D$19+'BP Financier'!$E$16+'BP Financier'!$E$19+'BP Financier'!$C$22+'BP Financier'!$D$22+'BP Financier'!$E$22+'BP Financier'!$F$22+'BP Financier'!$F$16+'BP Financier'!$F$19+'BP Financier'!$G$16+'BP Financier'!$G$19+'BP Financier'!$G$22))*$V8628*AB8628/(1-$W8628)","v":{"v":142.44929060130264,"d":"142"}},null,{"v":1E-3,"d":"0.10%"},{"$f":"Actif!$E$28/100","v":{"v":0.28900000000000003,"d":"28.90%"}},{"$f":"Actif!$E$30/100","v":{"v":0.09050000000000001,"d":"9.05%"}},{"$f":"Actif!$E$31/100","v":{"v":0.0605,"d":"6.05%"}},{"$f":"Actif!$E$32/100","v":{"v":0.47350000000000003,"d":"47.35%"}},{"$f":"Actif!$E$33/100","v":{"v":0.0585,"d":"5.85%"}},{"$f":"Actif!$E$29/100","v":{"v":0.027999999999999997,"d":"2.80%"}}]
[null,"#516",80,2026,"F","A_CAPI",{"v":0.44999999999999996,"d":"0.45"},{"v":0.38999999999999996,"d":"0.39"},0.6,0.6,85,0,{"$f":"ROUND(Primes!$Q$10*V8629,2)","v":0.13},0,{"v":3617.194486340221,"d":"3,617"},{"$f":"'BP Financier'!$G$44*(('BP Financier'!$C$22+'BP Financier'!$D$22+'BP Financier'!$E$22+'BP Financier'!$F$22+'BP Financier'!$G$22)/('BP Financier'!$C$16+'BP Financier'!$C$19+'BP Financier'!$D$16+'BP Financier'!$D$19+'BP Financier'!$E$16+'BP Financier'!$E$19+'BP Financier'!$C$22+'BP Financier'!$D$22+'BP Financier'!$E$22+'BP Financier'!$F$22+'BP Financier'!$F$16+'BP Financier'!$F$19+'BP Financier'!$G$16+'BP Financier'!$G$19+'BP Financier'!$G$22))*$V8629*X8629/(1-$W8629)","v":{"v":460.4164571220675,"d":"460"}},{"$f":"'BP Financier'!$G$44*(('BP Financier'!$C$22+'BP Financier'!$D$22+'BP Financier'!$E$22+'BP Financier'!$F$22+'BP Financier'!$G$22)/('BP Financier'!$C$16+'BP Financier'!$C$19+'BP Financier'!$D$16+'BP Financier'!$D$19+'BP Financier'!$E$16+'BP Financier'!$E$19+'BP Financier'!$C$22+'BP Financier'!$D$22+'BP Financier'!$E$22+'BP Financier'!$F$22+'BP Financier'!$F$16+'BP Financier'!$F$19+'BP Financier'!$G$16+'BP Financier'!$G$19+'BP Financier'!$G$22))*$V8629*Y8629/(1-$W8629)","v":{"v":307.7922171921004,"d":"308"}},{"$f":"'BP Financier'!$G$44*(('BP Financier'!$C$22+'BP Financier'!$D$22+'BP Financier'!$E$22+'BP Financier'!$F$22+'BP Financier'!$G$22)/('BP Financier'!$C$16+'BP Financier'!$C$19+'BP Financier'!$D$16+'BP Financier'!$D$19+'BP Financier'!$E$16+'BP Financier'!$E$19+'BP Financier'!$C$22+'BP Financier'!$D$22+'BP Financier'!$E$22+'BP Financier'!$F$22+'BP Financier'!$F$16+'BP Financier'!$F$19+'BP Financier'!$G$16+'BP Financier'!$G$19+'BP Financier'!$G$22))*$V8629*Z8629/(1-$W8629)","v":{"v":2408.9192535613147,"d":"2,409"}},{"$f":"'BP Financier'!$G$44*(('BP Financier'!$C$22+'BP Financier'!$D$22+'BP Financier'!$E$22+'BP Financier'!$F$22+'BP Financier'!$G$22)/('BP Financier'!$C$16+'BP Financier'!$C$19+'BP Financier'!$D$16+'BP Financier'!$D$19+'BP Financier'!$E$16+'BP Financier'!$E$19+'BP Financier'!$C$22+'BP Financier'!$D$22+'BP Financier'!$E$22+'BP Financier'!$F$22+'BP Financier'!$F$16+'BP Financier'!$F$19+'BP Financier'!$G$16+'BP Financier'!$G$19+'BP Financier'!$G$22))*$V8629*AA8629/(1-$W8629)","v":{"v":297.6172678634359,"d":"298"}},{"$f":"'BP Financier'!$G$44*(('BP Financier'!$C$22+'BP Financier'!$D$22+'BP Financier'!$E$22+'BP Financier'!$F$22+'BP Financier'!$G$22)/('BP Financier'!$C$16+'BP Financier'!$C$19+'BP Financier'!$D$16+'BP Financier'!$D$19+'BP Financier'!$E$16+'BP Financier'!$E$19+'BP Financier'!$C$22+'BP Financier'!$D$22+'BP Financier'!$E$22+'BP Financier'!$F$22+'BP Financier'!$F$16+'BP Financier'!$F$19+'BP Financier'!$G$16+'BP Financier'!$G$19+'BP Financier'!$G$22))*$V8629*AB8629/(1-$W8629)","v":{"v":142.44929060130264,"d":"142"}},null,{"v":1E-3,"d":"0.10%"},{"$f":"Actif!$E$28/100","v":{"v":0.28900000000000003,"d":"28.90%"}},{"$f":"Actif!$E$30/100","v":{"v":0.09050000000000001,"d":"9.05%"}},{"$f":"Actif!$E$31/100","v":{"v":0.0605,"d":"6.05%"}},{"$f":"Actif!$E$32/100","v":{"v":0.47350000000000003,"d":"47.35%"}},{"$f":"Actif!$E$33/100","v":{"v":0.0585,"d":"5.85%"}},{"$f":"Actif!$E$29/100","v":{"v":0.027999999999999997,"d":"2.80%"}}]
[null,"#517",80,2028,"F","A_CAPI",{"v":0.44999999999999996,"d":"0.45"},{"v":0.38999999999999996,"d":"0.39"},0.6,0.6,85,0,{"$f":"ROUND(Primes!$Q$10*V8630,2)","v":0.13},0,{"v":3617.194486340221,"d":"3,617"},{"$f":"'BP Financier'!$G$44*(('BP Financier'!$C$22+'BP Financier'!$D$22+'BP Financier'!$E$22+'BP Financier'!$F$22+'BP Financier'!$G$22)/('BP Financier'!$C$16+'BP Financier'!$C$19+'BP Financier'!$D$16+'BP Financier'!$D$19+'BP Financier'!$E$16+'BP Financier'!$E$19+'BP Financier'!$C$22+'BP Financier'!$D$22+'BP Financier'!$E$22+'BP Financier'!$F$22+'BP Financier'!$F$16+'BP Financier'!$F$19+'BP Financier'!$G$16+'BP Financier'!$G$19+'BP Financier'!$G$22))*$V8630*X8630/(1-$W8630)","v":{"v":460.4164571220675,"d":"460"}},{"$f":"'BP Financier'!$G$44*(('BP Financier'!$C$22+'BP Financier'!$D$22+'BP Financier'!$E$22+'BP Financier'!$F$22+'BP Financier'!$G$22)/('BP Financier'!$C$16+'BP Financier'!$C$19+'BP Financier'!$D$16+'BP Financier'!$D$19+'BP Financier'!$E$16+'BP Financier'!$E$19+'BP Financier'!$C$22+'BP Financier'!$D$22+'BP Financier'!$E$22+'BP Financier'!$F$22+'BP Financier'!$F$16+'BP Financier'!$F$19+'BP Financier'!$G$16+'BP Financier'!$G$19+'BP Financier'!$G$22))*$V8630*Y8630/(1-$W8630)","v":{"v":307.7922171921004,"d":"308"}},{"$f":"'BP Financier'!$G$44*(('BP Financier'!$C$22+'BP Financier'!$D$22+'BP Financier'!$E$22+'BP Financier'!$F$22+'BP Financier'!$G$22)/('BP Financier'!$C$16+'BP Financier'!$C$19+'BP Financier'!$D$16+'BP Financier'!$D$19+'BP Financier'!$E$16+'BP Financier'!$E$19+'BP Financier'!$C$22+'BP Financier'!$D$22+'BP Financier'!$E$22+'BP Financier'!$F$22+'BP Financier'!$F$16+'BP Financier'!$F$19+'BP Financier'!$G$16+'BP Financier'!$G$19+'BP Financier'!$G$22))*$V8630*Z8630/(1-$W8630)","v":{"v":2408.9192535613147,"d":"2,409"}},{"$f":"'BP Financier'!$G$44*(('BP Financier'!$C$22+'BP Financier'!$D$22+'BP Financier'!$E$22+'BP Financier'!$F$22+'BP Financier'!$G$22)/('BP Financier'!$C$16+'BP Financier'!$C$19+'BP Financier'!$D$16+'BP Financier'!$D$19+'BP Financier'!$E$16+'BP Financier'!$E$19+'BP Financier'!$C$22+'BP Financier'!$D$22+'BP Financier'!$E$22+'BP Financier'!$F$22+'BP Financier'!$F$16+'BP Financier'!$F$19+'BP Financier'!$G$16+'BP Financier'!$G$19+'BP Financier'!$G$22))*$V8630*AA8630/(1-$W8630)","v":{"v":297.6172678634359,"d":"298"}},{"$f":"'BP Financier'!$G$44*(('BP Financier'!$C$22+'BP Financier'!$D$22+'BP Financier'!$E$22+'BP Financier'!$F$22+'BP Financier'!$G$22)/('BP Financier'!$C$16+'BP Financier'!$C$19+'BP Financier'!$D$16+'BP Financier'!$D$19+'BP Financier'!$E$16+'BP Financier'!$E$19+'BP Financier'!$C$22+'BP Financier'!$D$22+'BP Financier'!$E$22+'BP Financier'!$F$22+'BP Financier'!$F$16+'BP Financier'!$F$19+'BP Financier'!$G$16+'BP Financier'!$G$19+'BP Financier'!$G$22))*$V8630*AB8630/(1-$W8630)","v":{"v":142.44929060130264,"d":"142"}},null,{"v":1E-3,"d":"0.10%"},{"$f":"Actif!$E$28/100","v":{"v":0.28900000000000003,"d":"28.90%"}},{"$f":"Actif!$E$30/100","v":{"v":0.09050000000000001,"d":"9.05%"}},{"$f":"Actif!$E$31/100","v":{"v":0.0605,"d":"6.05%"}},{"$f":"Actif!$E$32/100","v":{"v":0.47350000000000003,"d":"47.35%"}},{"$f":"Actif!$E$33/100","v":{"v":0.0585,"d":"5.85%"}},{"$f":"Actif!$E$29/100","v":{"v":0.027999999999999997,"d":"2.80%"}}]
[null,"#518",80,2029,"F","A_CAPI",{"v":0.44999999999999996,"d":"0.45"},{"v":0.38999999999999996,"d":"0.39"},0.6,0.6,85,0,{"$f":"ROUND(Primes!$Q$10*V8631,2)","v":0.13},0,{"v":3617.194486340221,"d":"3,617"},{"$f":"'BP Financier'!$G$44*(('BP Financier'!$C$22+'BP Financier'!$D$22+'BP Financier'!$E$22+'BP Financier'!$F$22+'BP Financier'!$G$22)/('BP Financier'!$C$16+'BP Financier'!$C$19+'BP Financier'!$D$16+'BP Financier'!$D$19+'BP Financier'!$E$16+'BP Financier'!$E$19+'BP Financier'!$C$22+'BP Financier'!$D$22+'BP Financier'!$E$22+'BP Financier'!$F$22+'BP Financier'!$F$16+'BP Financier'!$F$19+'BP Financier'!$G$16+'BP Financier'!$G$19+'BP Financier'!$G$22))*$V8631*X8631/(1-$W8631)","v":{"v":460.4164571220675,"d":"460"}},{"$f":"'BP Financier'!$G$44*(('BP Financier'!$C$22+'BP Financier'!$D$22+'BP Financier'!$E$22+'BP Financier'!$F$22+'BP Financier'!$G$22)/('BP Financier'!$C$16+'BP Financier'!$C$19+'BP Financier'!$D$16+'BP Financier'!$D$19+'BP Financier'!$E$16+'BP Financier'!$E$19+'BP Financier'!$C$22+'BP Financier'!$D$22+'BP Financier'!$E$22+'BP Financier'!$F$22+'BP Financier'!$F$16+'BP Financier'!$F$19+'BP Financier'!$G$16+'BP Financier'!$G$19+'BP Financier'!$G$22))*$V8631*Y8631/(1-$W8631)","v":{"v":307.7922171921004,"d":"308"}},{"$f":"'BP Financier'!$G$44*(('BP Financier'!$C$22+'BP Financier'!$D$22+'BP Financier'!$E$22+'BP Financier'!$F$22+'BP Financier'!$G$22)/('BP Financier'!$C$16+'BP Financier'!$C$19+'BP Financier'!$D$16+'BP Financier'!$D$19+'BP Financier'!$E$16+'BP Financier'!$E$19+'BP Financier'!$C$22+'BP Financier'!$D$22+'BP Financier'!$E$22+'BP Financier'!$F$22+'BP Financier'!$F$16+'BP Financier'!$F$19+'BP Financier'!$G$16+'BP Financier'!$G$19+'BP Financier'!$G$22))*$V8631*Z8631/(1-$W8631)","v":{"v":2408.9192535613147,"d":"2,409"}},{"$f":"'BP Financier'!$G$44*(('BP Financier'!$C$22+'BP Financier'!$D$22+'BP Financier'!$E$22+'BP Financier'!$F$22+'BP Financier'!$G$22)/('BP Financier'!$C$16+'BP Financier'!$C$19+'BP Financier'!$D$16+'BP Financier'!$D$19+'BP Financier'!$E$16+'BP Financier'!$E$19+'BP Financier'!$C$22+'BP Financier'!$D$22+'BP Financier'!$E$22+'BP Financier'!$F$22+'BP Financier'!$F$16+'BP Financier'!$F$19+'BP Financier'!$G$16+'BP Financier'!$G$19+'BP Financier'!$G$22))*$V8631*AA8631/(1-$W8631)","v":{"v":297.6172678634359,"d":"298"}},{"$f":"'BP Financier'!$G$44*(('BP Financier'!$C$22+'BP Financier'!$D$22+'BP Financier'!$E$22+'BP Financier'!$F$22+'BP Financier'!$G$22)/('BP Financier'!$C$16+'BP Financier'!$C$19+'BP Financier'!$D$16+'BP Financier'!$D$19+'BP Financier'!$E$16+'BP Financier'!$E$19+'BP Financier'!$C$22+'BP Financier'!$D$22+'BP Financier'!$E$22+'BP Financier'!$F$22+'BP Financier'!$F$16+'BP Financier'!$F$19+'BP Financier'!$G$16+'BP Financier'!$G$19+'BP Financier'!$G$22))*$V8631*AB8631/(1-$W8631)","v":{"v":142.44929060130264,"d":"142"}},null,{"v":1E-3,"d":"0.10%"},{"$f":"Actif!$E$28/100","v":{"v":0.28900000000000003,"d":"28.90%"}},{"$f":"Actif!$E$30/100","v":{"v":0.09050000000000001,"d":"9.05%"}},{"$f":"Actif!$E$31/100","v":{"v":0.0605,"d":"6.05%"}},{"$f":"Actif!$E$32/100","v":{"v":0.47350000000000003,"d":"47.35%"}},{"$f":"Actif!$E$33/100","v":{"v":0.0585,"d":"5.85%"}},{"$f":"Actif!$E$29/100","v":{"v":0.027999999999999997,"d":"2.80%"}}]
[null,"#519",80,2030,"F","A_CAPI",{"v":0.44999999999999996,"d":"0.45"},{"v":0.38999999999999996,"d":"0.39"},0.6,0.6,85,0,{"$f":"ROUND(Primes!$Q$10*V8632,2)","v":0.13},0,{"v":3617.194486340221,"d":"3,617"},{"$f":"'BP Financier'!$G$44*(('BP Financier'!$C$22+'BP Financier'!$D$22+'BP Financier'!$E$22+'BP Financier'!$F$22+'BP Financier'!$G$22)/('BP Financier'!$C$16+'BP Financier'!$C$19+'BP Financier'!$D$16+'BP Financier'!$D$19+'BP Financier'!$E$16+'BP Financier'!$E$19+'BP Financier'!$C$22+'BP Financier'!$D$22+'BP Financier'!$E$22+'BP Financier'!$F$22+'BP Financier'!$F$16+'BP Financier'!$F$19+'BP Financier'!$G$16+'BP Financier'!$G$19+'BP Financier'!$G$22))*$V8632*X8632/(1-$W8632)","v":{"v":460.4164571220675,"d":"460"}},{"$f":"'BP Financier'!$G$44*(('BP Financier'!$C$22+'BP Financier'!$D$22+'BP Financier'!$E$22+'BP Financier'!$F$22+'BP Financier'!$G$22)/('BP Financier'!$C$16+'BP Financier'!$C$19+'BP Financier'!$D$16+'BP Financier'!$D$19+'BP Financier'!$E$16+'BP Financier'!$E$19+'BP Financier'!$C$22+'BP Financier'!$D$22+'BP Financier'!$E$22+'BP Financier'!$F$22+'BP Financier'!$F$16+'BP Financier'!$F$19+'BP Financier'!$G$16+'BP Financier'!$G$19+'BP Financier'!$G$22))*$V8632*Y8632/(1-$W8632)","v":{"v":307.7922171921004,"d":"308"}},{"$f":"'BP Financier'!$G$44*(('BP Financier'!$C$22+'BP Financier'!$D$22+'BP Financier'!$E$22+'BP Financier'!$F$22+'BP Financier'!$G$22)/('BP Financier'!$C$16+'BP Financier'!$C$19+'BP Financier'!$D$16+'BP Financier'!$D$19+'BP Financier'!$E$16+'BP Financier'!$E$19+'BP Financier'!$C$22+'BP Financier'!$D$22+'BP Financier'!$E$22+'BP Financier'!$F$22+'BP Financier'!$F$16+'BP Financier'!$F$19+'BP Financier'!$G$16+'BP Financier'!$G$19+'BP Financier'!$G$22))*$V8632*Z8632/(1-$W8632)","v":{"v":2408.9192535613147,"d":"2,409"}},{"$f":"'BP Financier'!$G$44*(('BP Financier'!$C$22+'BP Financier'!$D$22+'BP Financier'!$E$22+'BP Financier'!$F$22+'BP Financier'!$G$22)/('BP Financier'!$C$16+'BP Financier'!$C$19+'BP Financier'!$D$16+'BP Financier'!$D$19+'BP Financier'!$E$16+'BP Financier'!$E$19+'BP Financier'!$C$22+'BP Financier'!$D$22+'BP Financier'!$E$22+'BP Financier'!$F$22+'BP Financier'!$F$16+'BP Financier'!$F$19+'BP Financier'!$G$16+'BP Financier'!$G$19+'BP Financier'!$G$22))*$V8632*AA8632/(1-$W8632)","v":{"v":297.6172678634359,"d":"298"}},{"$f":"'BP Financier'!$G$44*(('BP Financier'!$C$22+'BP Financier'!$D$22+'BP Financier'!$E$22+'BP Financier'!$F$22+'BP Financier'!$G$22)/('BP Financier'!$C$16+'BP Financier'!$C$19+'BP Financier'!$D$16+'BP Financier'!$D$19+'BP Financier'!$E$16+'BP Financier'!$E$19+'BP Financier'!$C$22+'BP Financier'!$D$22+'BP Financier'!$E$22+'BP Financier'!$F$22+'BP Financier'!$F$16+'BP Financier'!$F$19+'BP Financier'!$G$16+'BP Financier'!$G$19+'BP Financier'!$G$22))*$V8632*AB8632/(1-$W8632)","v":{"v":142.44929060130264,"d":"142"}},null,{"v":1E-3,"d":"0.10%"},{"$f":"Actif!$E$28/100","v":{"v":0.28900000000000003,"d":"28.90%"}},{"$f":"Actif!$E$30/100","v":{"v":0.09050000000000001,"d":"9.05%"}},{"$f":"Actif!$E$31/100","v":{"v":0.0605,"d":"6.05%"}},{"$f":"Actif!$E$32/100","v":{"v":0.47350000000000003,"d":"47.35%"}},{"$f":"Actif!$E$33/100","v":{"v":0.0585,"d":"5.85%"}},{"$f":"Actif!$E$29/100","v":{"v":0.027999999999999997,"d":"2.80%"}}]
[null,"#520",80,2031,"F","A_CAPI",{"v":0.44999999999999996,"d":"0.45"},{"v":0.38999999999999996,"d":"0.39"},0.6,0.6,85,0,{"$f":"ROUND(Primes!$Q$10*V8633,2)","v":0.13},0,{"v":3617.194486340221,"d":"3,617"},{"$f":"'BP Financier'!$G$44*(('BP Financier'!$C$22+'BP Financier'!$D$22+'BP Financier'!$E$22+'BP Financier'!$F$22+'BP Financier'!$G$22)/('BP Financier'!$C$16+'BP Financier'!$C$19+'BP Financier'!$D$16+'BP Financier'!$D$19+'BP Financier'!$E$16+'BP Financier'!$E$19+'BP Financier'!$C$22+'BP Financier'!$D$22+'BP Financier'!$E$22+'BP Financier'!$F$22+'BP Financier'!$F$16+'BP Financier'!$F$19+'BP Financier'!$G$16+'BP Financier'!$G$19+'BP Financier'!$G$22))*$V8633*X8633/(1-$W8633)","v":{"v":460.4164571220675,"d":"460"}},{"$f":"'BP Financier'!$G$44*(('BP Financier'!$C$22+'BP Financier'!$D$22+'BP Financier'!$E$22+'BP Financier'!$F$22+'BP Financier'!$G$22)/('BP Financier'!$C$16+'BP Financier'!$C$19+'BP Financier'!$D$16+'BP Financier'!$D$19+'BP Financier'!$E$16+'BP Financier'!$E$19+'BP Financier'!$C$22+'BP Financier'!$D$22+'BP Financier'!$E$22+'BP Financier'!$F$22+'BP Financier'!$F$16+'BP Financier'!$F$19+'BP Financier'!$G$16+'BP Financier'!$G$19+'BP Financier'!$G$22))*$V8633*Y8633/(1-$W8633)","v":{"v":307.7922171921004,"d":"308"}},{"$f":"'BP Financier'!$G$44*(('BP Financier'!$C$22+'BP Financier'!$D$22+'BP Financier'!$E$22+'BP Financier'!$F$22+'BP Financier'!$G$22)/('BP Financier'!$C$16+'BP Financier'!$C$19+'BP Financier'!$D$16+'BP Financier'!$D$19+'BP Financier'!$E$16+'BP Financier'!$E$19+'BP Financier'!$C$22+'BP Financier'!$D$22+'BP Financier'!$E$22+'BP Financier'!$F$22+'BP Financier'!$F$16+'BP Financier'!$F$19+'BP Financier'!$G$16+'BP Financier'!$G$19+'BP Financier'!$G$22))*$V8633*Z8633/(1-$W8633)","v":{"v":2408.9192535613147,"d":"2,409"}},{"$f":"'BP Financier'!$G$44*(('BP Financier'!$C$22+'BP Financier'!$D$22+'BP Financier'!$E$22+'BP Financier'!$F$22+'BP Financier'!$G$22)/('BP Financier'!$C$16+'BP Financier'!$C$19+'BP Financier'!$D$16+'BP Financier'!$D$19+'BP Financier'!$E$16+'BP Financier'!$E$19+'BP Financier'!$C$22+'BP Financier'!$D$22+'BP Financier'!$E$22+'BP Financier'!$F$22+'BP Financier'!$F$16+'BP Financier'!$F$19+'BP Financier'!$G$16+'BP Financier'!$G$19+'BP Financier'!$G$22))*$V8633*AA8633/(1-$W8633)","v":{"v":297.6172678634359,"d":"298"}},{"$f":"'BP Financier'!$G$44*(('BP Financier'!$C$22+'BP Financier'!$D$22+'BP Financier'!$E$22+'BP Financier'!$F$22+'BP Financier'!$G$22)/('BP Financier'!$C$16+'BP Financier'!$C$19+'BP Financier'!$D$16+'BP Financier'!$D$19+'BP Financier'!$E$16+'BP Financier'!$E$19+'BP Financier'!$C$22+'BP Financier'!$D$22+'BP Financier'!$E$22+'BP Financier'!$F$22+'BP Financier'!$F$16+'BP Financier'!$F$19+'BP Financier'!$G$16+'BP Financier'!$G$19+'BP Financier'!$G$22))*$V8633*AB8633/(1-$W8633)","v":{"v":142.44929060130264,"d":"142"}},null,{"v":1E-3,"d":"0.10%"},{"$f":"Actif!$E$28/100","v":{"v":0.28900000000000003,"d":"28.90%"}},{"$f":"Actif!$E$30/100","v":{"v":0.09050000000000001,"d":"9.05%"}},{"$f":"Actif!$E$31/100","v":{"v":0.0605,"d":"6.05%"}},{"$f":"Actif!$E$32/100","v":{"v":0.47350000000000003,"d":"47.35%"}},{"$f":"Actif!$E$33/100","v":{"v":0.0585,"d":"5.85%"}},{"$f":"Actif!$E$29/100","v":{"v":0.027999999999999997,"d":"2.80%"}}]
[null,"#521",85,2026,"H","A_CAPI",{"v":0.44999999999999996,"d":"0.45"},{"v":0.38999999999999996,"d":"0.39"},0.6,0.6,85,0,{"$f":"ROUND(Primes!$Q$10*V8634,2)","v":0.07},0,{"v":1808.5972431701105,"d":"1,809"},{"$f":"'BP Financier'!$G$44*(('BP Financier'!$C$22+'BP Financier'!$D$22+'BP Financier'!$E$22+'BP Financier'!$F$22+'BP Financier'!$G$22)/('BP Financier'!$C$16+'BP Financier'!$C$19+'BP Financier'!$D$16+'BP Financier'!$D$19+'BP Financier'!$E$16+'BP Financier'!$E$19+'BP Financier'!$C$22+'BP Financier'!$D$22+'BP Financier'!$E$22+'BP Financier'!$F$22+'BP Financier'!$F$16+'BP Financier'!$F$19+'BP Financier'!$G$16+'BP Financier'!$G$19+'BP Financier'!$G$22))*$V8634*X8634/(1-$W8634)","v":{"v":230.20822856103376,"d":"230"}},{"$f":"'BP Financier'!$G$44*(('BP Financier'!$C$22+'BP Financier'!$D$22+'BP Financier'!$E$22+'BP Financier'!$F$22+'BP Financier'!$G$22)/('BP Financier'!$C$16+'BP Financier'!$C$19+'BP Financier'!$D$16+'BP Financier'!$D$19+'BP Financier'!$E$16+'BP Financier'!$E$19+'BP Financier'!$C$22+'BP Financier'!$D$22+'BP Financier'!$E$22+'BP Financier'!$F$22+'BP Financier'!$F$16+'BP Financier'!$F$19+'BP Financier'!$G$16+'BP Financier'!$G$19+'BP Financier'!$G$22))*$V8634*Y8634/(1-$W8634)","v":{"v":153.8961085960502,"d":"154"}},{"$f":"'BP Financier'!$G$44*(('BP Financier'!$C$22+'BP Financier'!$D$22+'BP Financier'!$E$22+'BP Financier'!$F$22+'BP Financier'!$G$22)/('BP Financier'!$C$16+'BP Financier'!$C$19+'BP Financier'!$D$16+'BP Financier'!$D$19+'BP Financier'!$E$16+'BP Financier'!$E$19+'BP Financier'!$C$22+'BP Financier'!$D$22+'BP Financier'!$E$22+'BP Financier'!$F$22+'BP Financier'!$F$16+'BP Financier'!$F$19+'BP Financier'!$G$16+'BP Financier'!$G$19+'BP Financier'!$G$22))*$V8634*Z8634/(1-$W8634)","v":{"v":1204.4596267806573,"d":"1,204"}},{"$f":"'BP Financier'!$G$44*(('BP Financier'!$C$22+'BP Financier'!$D$22+'BP Financier'!$E$22+'BP Financier'!$F$22+'BP Financier'!$G$22)/('BP Financier'!$C$16+'BP Financier'!$C$19+'BP Financier'!$D$16+'BP Financier'!$D$19+'BP Financier'!$E$16+'BP Financier'!$E$19+'BP Financier'!$C$22+'BP Financier'!$D$22+'BP Financier'!$E$22+'BP Financier'!$F$22+'BP Financier'!$F$16+'BP Financier'!$F$19+'BP Financier'!$G$16+'BP Financier'!$G$19+'BP Financier'!$G$22))*$V8634*AA8634/(1-$W8634)","v":{"v":148.80863393171796,"d":"149"}},{"$f":"'BP Financier'!$G$44*(('BP Financier'!$C$22+'BP Financier'!$D$22+'BP Financier'!$E$22+'BP Financier'!$F$22+'BP Financier'!$G$22)/('BP Financier'!$C$16+'BP Financier'!$C$19+'BP Financier'!$D$16+'BP Financier'!$D$19+'BP Financier'!$E$16+'BP Financier'!$E$19+'BP Financier'!$C$22+'BP Financier'!$D$22+'BP Financier'!$E$22+'BP Financier'!$F$22+'BP Financier'!$F$16+'BP Financier'!$F$19+'BP Financier'!$G$16+'BP Financier'!$G$19+'BP Financier'!$G$22))*$V8634*AB8634/(1-$W8634)","v":{"v":71.22464530065132,"d":"71"}},null,{"v":0.0005,"d":"0.05%"},{"$f":"Actif!$E$28/100","v":{"v":0.28900000000000003,"d":"28.90%"}},{"$f":"Actif!$E$30/100","v":{"v":0.09050000000000001,"d":"9.05%"}},{"$f":"Actif!$E$31/100","v":{"v":0.0605,"d":"6.05%"}},{"$f":"Actif!$E$32/100","v":{"v":0.47350000000000003,"d":"47.35%"}},{"$f":"Actif!$E$33/100","v":{"v":0.0585,"d":"5.85%"}},{"$f":"Actif!$E$29/100","v":{"v":0.027999999999999997,"d":"2.80%"}}]
[null,"#522",85,2028,"H","A_CAPI",{"v":0.44999999999999996,"d":"0.45"},{"v":0.38999999999999996,"d":"0.39"},0.6,0.6,85,0,{"$f":"ROUND(Primes!$Q$10*V8635,2)","v":0.07},0,{"v":1808.5972431701105,"d":"1,809"},{"$f":"'BP Financier'!$G$44*(('BP Financier'!$C$22+'BP Financier'!$D$22+'BP Financier'!$E$22+'BP Financier'!$F$22+'BP Financier'!$G$22)/('BP Financier'!$C$16+'BP Financier'!$C$19+'BP Financier'!$D$16+'BP Financier'!$D$19+'BP Financier'!$E$16+'BP Financier'!$E$19+'BP Financier'!$C$22+'BP Financier'!$D$22+'BP Financier'!$E$22+'BP Financier'!$F$22+'BP Financier'!$F$16+'BP Financier'!$F$19+'BP Financier'!$G$16+'BP Financier'!$G$19+'BP Financier'!$G$22))*$V8635*X8635/(1-$W8635)","v":{"v":230.20822856103376,"d":"230"}},{"$f":"'BP Financier'!$G$44*(('BP Financier'!$C$22+'BP Financier'!$D$22+'BP Financier'!$E$22+'BP Financier'!$F$22+'BP Financier'!$G$22)/('BP Financier'!$C$16+'BP Financier'!$C$19+'BP Financier'!$D$16+'BP Financier'!$D$19+'BP Financier'!$E$16+'BP Financier'!$E$19+'BP Financier'!$C$22+'BP Financier'!$D$22+'BP Financier'!$E$22+'BP Financier'!$F$22+'BP Financier'!$F$16+'BP Financier'!$F$19+'BP Financier'!$G$16+'BP Financier'!$G$19+'BP Financier'!$G$22))*$V8635*Y8635/(1-$W8635)","v":{"v":153.8961085960502,"d":"154"}},{"$f":"'BP Financier'!$G$44*(('BP Financier'!$C$22+'BP Financier'!$D$22+'BP Financier'!$E$22+'BP Financier'!$F$22+'BP Financier'!$G$22)/('BP Financier'!$C$16+'BP Financier'!$C$19+'BP Financier'!$D$16+'BP Financier'!$D$19+'BP Financier'!$E$16+'BP Financier'!$E$19+'BP Financier'!$C$22+'BP Financier'!$D$22+'BP Financier'!$E$22+'BP Financier'!$F$22+'BP Financier'!$F$16+'BP Financier'!$F$19+'BP Financier'!$G$16+'BP Financier'!$G$19+'BP Financier'!$G$22))*$V8635*Z8635/(1-$W8635)","v":{"v":1204.4596267806573,"d":"1,204"}},{"$f":"'BP Financier'!$G$44*(('BP Financier'!$C$22+'BP Financier'!$D$22+'BP Financier'!$E$22+'BP Financier'!$F$22+'BP Financier'!$G$22)/('BP Financier'!$C$16+'BP Financier'!$C$19+'BP Financier'!$D$16+'BP Financier'!$D$19+'BP Financier'!$E$16+'BP Financier'!$E$19+'BP Financier'!$C$22+'BP Financier'!$D$22+'BP Financier'!$E$22+'BP Financier'!$F$22+'BP Financier'!$F$16+'BP Financier'!$F$19+'BP Financier'!$G$16+'BP Financier'!$G$19+'BP Financier'!$G$22))*$V8635*AA8635/(1-$W8635)","v":{"v":148.80863393171796,"d":"149"}},{"$f":"'BP Financier'!$G$44*(('BP Financier'!$C$22+'BP Financier'!$D$22+'BP Financier'!$E$22+'BP Financier'!$F$22+'BP Financier'!$G$22)/('BP Financier'!$C$16+'BP Financier'!$C$19+'BP Financier'!$D$16+'BP Financier'!$D$19+'BP Financier'!$E$16+'BP Financier'!$E$19+'BP Financier'!$C$22+'BP Financier'!$D$22+'BP Financier'!$E$22+'BP Financier'!$F$22+'BP Financier'!$F$16+'BP Financier'!$F$19+'BP Financier'!$G$16+'BP Financier'!$G$19+'BP Financier'!$G$22))*$V8635*AB8635/(1-$W8635)","v":{"v":71.22464530065132,"d":"71"}},null,{"v":0.0005,"d":"0.05%"},{"$f":"Actif!$E$28/100","v":{"v":0.28900000000000003,"d":"28.90%"}},{"$f":"Actif!$E$30/100","v":{"v":0.09050000000000001,"d":"9.05%"}},{"$f":"Actif!$E$31/100","v":{"v":0.0605,"d":"6.05%"}},{"$f":"Actif!$E$32/100","v":{"v":0.47350000000000003,"d":"47.35%"}},{"$f":"Actif!$E$33/100","v":{"v":0.0585,"d":"5.85%"}},{"$f":"Actif!$E$29/100","v":{"v":0.027999999999999997,"d":"2.80%"}}]
[null,"#523",85,2029,"H","A_CAPI",{"v":0.44999999999999996,"d":"0.45"},{"v":0.38999999999999996,"d":"0.39"},0.6,0.6,85,0,{"$f":"ROUND(Primes!$Q$10*V8636,2)","v":0.07},0,{"v":1808.5972431701105,"d":"1,809"},{"$f":"'BP Financier'!$G$44*(('BP Financier'!$C$22+'BP Financier'!$D$22+'BP Financier'!$E$22+'BP Financier'!$F$22+'BP Financier'!$G$22)/('BP Financier'!$C$16+'BP Financier'!$C$19+'BP Financier'!$D$16+'BP Financier'!$D$19+'BP Financier'!$E$16+'BP Financier'!$E$19+'BP Financier'!$C$22+'BP Financier'!$D$22+'BP Financier'!$E$22+'BP Financier'!$F$22+'BP Financier'!$F$16+'BP Financier'!$F$19+'BP Financier'!$G$16+'BP Financier'!$G$19+'BP Financier'!$G$22))*$V8636*X8636/(1-$W8636)","v":{"v":230.20822856103376,"d":"230"}},{"$f":"'BP Financier'!$G$44*(('BP Financier'!$C$22+'BP Financier'!$D$22+'BP Financier'!$E$22+'BP Financier'!$F$22+'BP Financier'!$G$22)/('BP Financier'!$C$16+'BP Financier'!$C$19+'BP Financier'!$D$16+'BP Financier'!$D$19+'BP Financier'!$E$16+'BP Financier'!$E$19+'BP Financier'!$C$22+'BP Financier'!$D$22+'BP Financier'!$E$22+'BP Financier'!$F$22+'BP Financier'!$F$16+'BP Financier'!$F$19+'BP Financier'!$G$16+'BP Financier'!$G$19+'BP Financier'!$G$22))*$V8636*Y8636/(1-$W8636)","v":{"v":153.8961085960502,"d":"154"}},{"$f":"'BP Financier'!$G$44*(('BP Financier'!$C$22+'BP Financier'!$D$22+'BP Financier'!$E$22+'BP Financier'!$F$22+'BP Financier'!$G$22)/('BP Financier'!$C$16+'BP Financier'!$C$19+'BP Financier'!$D$16+'BP Financier'!$D$19+'BP Financier'!$E$16+'BP Financier'!$E$19+'BP Financier'!$C$22+'BP Financier'!$D$22+'BP Financier'!$E$22+'BP Financier'!$F$22+'BP Financier'!$F$16+'BP Financier'!$F$19+'BP Financier'!$G$16+'BP Financier'!$G$19+'BP Financier'!$G$22))*$V8636*Z8636/(1-$W8636)","v":{"v":1204.4596267806573,"d":"1,204"}},{"$f":"'BP Financier'!$G$44*(('BP Financier'!$C$22+'BP Financier'!$D$22+'BP Financier'!$E$22+'BP Financier'!$F$22+'BP Financier'!$G$22)/('BP Financier'!$C$16+'BP Financier'!$C$19+'BP Financier'!$D$16+'BP Financier'!$D$19+'BP Financier'!$E$16+'BP Financier'!$E$19+'BP Financier'!$C$22+'BP Financier'!$D$22+'BP Financier'!$E$22+'BP Financier'!$F$22+'BP Financier'!$F$16+'BP Financier'!$F$19+'BP Financier'!$G$16+'BP Financier'!$G$19+'BP Financier'!$G$22))*$V8636*AA8636/(1-$W8636)","v":{"v":148.80863393171796,"d":"149"}},{"$f":"'BP Financier'!$G$44*(('BP Financier'!$C$22+'BP Financier'!$D$22+'BP Financier'!$E$22+'BP Financier'!$F$22+'BP Financier'!$G$22)/('BP Financier'!$C$16+'BP Financier'!$C$19+'BP Financier'!$D$16+'BP Financier'!$D$19+'BP Financier'!$E$16+'BP Financier'!$E$19+'BP Financier'!$C$22+'BP Financier'!$D$22+'BP Financier'!$E$22+'BP Financier'!$F$22+'BP Financier'!$F$16+'BP Financier'!$F$19+'BP Financier'!$G$16+'BP Financier'!$G$19+'BP Financier'!$G$22))*$V8636*AB8636/(1-$W8636)","v":{"v":71.22464530065132,"d":"71"}},null,{"v":0.0005,"d":"0.05%"},{"$f":"Actif!$E$28/100","v":{"v":0.28900000000000003,"d":"28.90%"}},{"$f":"Actif!$E$30/100","v":{"v":0.09050000000000001,"d":"9.05%"}},{"$f":"Actif!$E$31/100","v":{"v":0.0605,"d":"6.05%"}},{"$f":"Actif!$E$32/100","v":{"v":0.47350000000000003,"d":"47.35%"}},{"$f":"Actif!$E$33/100","v":{"v":0.0585,"d":"5.85%"}},{"$f":"Actif!$E$29/100","v":{"v":0.027999999999999997,"d":"2.80%"}}]
[null,"#524",85,2030,"H","A_CAPI",{"v":0.44999999999999996,"d":"0.45"},{"v":0.38999999999999996,"d":"0.39"},0.6,0.6,85,0,{"$f":"ROUND(Primes!$Q$10*V8637,2)","v":0.07},0,{"v":1808.5972431701105,"d":"1,809"},{"$f":"'BP Financier'!$G$44*(('BP Financier'!$C$22+'BP Financier'!$D$22+'BP Financier'!$E$22+'BP Financier'!$F$22+'BP Financier'!$G$22)/('BP Financier'!$C$16+'BP Financier'!$C$19+'BP Financier'!$D$16+'BP Financier'!$D$19+'BP Financier'!$E$16+'BP Financier'!$E$19+'BP Financier'!$C$22+'BP Financier'!$D$22+'BP Financier'!$E$22+'BP Financier'!$F$22+'BP Financier'!$F$16+'BP Financier'!$F$19+'BP Financier'!$G$16+'BP Financier'!$G$19+'BP Financier'!$G$22))*$V8637*X8637/(1-$W8637)","v":{"v":230.20822856103376,"d":"230"}},{"$f":"'BP Financier'!$G$44*(('BP Financier'!$C$22+'BP Financier'!$D$22+'BP Financier'!$E$22+'BP Financier'!$F$22+'BP Financier'!$G$22)/('BP Financier'!$C$16+'BP Financier'!$C$19+'BP Financier'!$D$16+'BP Financier'!$D$19+'BP Financier'!$E$16+'BP Financier'!$E$19+'BP Financier'!$C$22+'BP Financier'!$D$22+'BP Financier'!$E$22+'BP Financier'!$F$22+'BP Financier'!$F$16+'BP Financier'!$F$19+'BP Financier'!$G$16+'BP Financier'!$G$19+'BP Financier'!$G$22))*$V8637*Y8637/(1-$W8637)","v":{"v":153.8961085960502,"d":"154"}},{"$f":"'BP Financier'!$G$44*(('BP Financier'!$C$22+'BP Financier'!$D$22+'BP Financier'!$E$22+'BP Financier'!$F$22+'BP Financier'!$G$22)/('BP Financier'!$C$16+'BP Financier'!$C$19+'BP Financier'!$D$16+'BP Financier'!$D$19+'BP Financier'!$E$16+'BP Financier'!$E$19+'BP Financier'!$C$22+'BP Financier'!$D$22+'BP Financier'!$E$22+'BP Financier'!$F$22+'BP Financier'!$F$16+'BP Financier'!$F$19+'BP Financier'!$G$16+'BP Financier'!$G$19+'BP Financier'!$G$22))*$V8637*Z8637/(1-$W8637)","v":{"v":1204.4596267806573,"d":"1,204"}},{"$f":"'BP Financier'!$G$44*(('BP Financier'!$C$22+'BP Financier'!$D$22+'BP Financier'!$E$22+'BP Financier'!$F$22+'BP Financier'!$G$22)/('BP Financier'!$C$16+'BP Financier'!$C$19+'BP Financier'!$D$16+'BP Financier'!$D$19+'BP Financier'!$E$16+'BP Financier'!$E$19+'BP Financier'!$C$22+'BP Financier'!$D$22+'BP Financier'!$E$22+'BP Financier'!$F$22+'BP Financier'!$F$16+'BP Financier'!$F$19+'BP Financier'!$G$16+'BP Financier'!$G$19+'BP Financier'!$G$22))*$V8637*AA8637/(1-$W8637)","v":{"v":148.80863393171796,"d":"149"}},{"$f":"'BP Financier'!$G$44*(('BP Financier'!$C$22+'BP Financier'!$D$22+'BP Financier'!$E$22+'BP Financier'!$F$22+'BP Financier'!$G$22)/('BP Financier'!$C$16+'BP Financier'!$C$19+'BP Financier'!$D$16+'BP Financier'!$D$19+'BP Financier'!$E$16+'BP Financier'!$E$19+'BP Financier'!$C$22+'BP Financier'!$D$22+'BP Financier'!$E$22+'BP Financier'!$F$22+'BP Financier'!$F$16+'BP Financier'!$F$19+'BP Financier'!$G$16+'BP Financier'!$G$19+'BP Financier'!$G$22))*$V8637*AB8637/(1-$W8637)","v":{"v":71.22464530065132,"d":"71"}},null,{"v":0.0005,"d":"0.05%"},{"$f":"Actif!$E$28/100","v":{"v":0.28900000000000003,"d":"28.90%"}},{"$f":"Actif!$E$30/100","v":{"v":0.09050000000000001,"d":"9.05%"}},{"$f":"Actif!$E$31/100","v":{"v":0.0605,"d":"6.05%"}},{"$f":"Actif!$E$32/100","v":{"v":0.47350000000000003,"d":"47.35%"}},{"$f":"Actif!$E$33/100","v":{"v":0.0585,"d":"5.85%"}},{"$f":"Actif!$E$29/100","v":{"v":0.027999999999999997,"d":"2.80%"}}]
[null,"#525",85,2031,"H","A_CAPI",{"v":0.44999999999999996,"d":"0.45"},{"v":0.38999999999999996,"d":"0.39"},0.6,0.6,85,0,{"$f":"ROUND(Primes!$Q$10*V8638,2)","v":0.07},0,{"v":1808.5972431701105,"d":"1,809"},{"$f":"'BP Financier'!$G$44*(('BP Financier'!$C$22+'BP Financier'!$D$22+'BP Financier'!$E$22+'BP Financier'!$F$22+'BP Financier'!$G$22)/('BP Financier'!$C$16+'BP Financier'!$C$19+'BP Financier'!$D$16+'BP Financier'!$D$19+'BP Financier'!$E$16+'BP Financier'!$E$19+'BP Financier'!$C$22+'BP Financier'!$D$22+'BP Financier'!$E$22+'BP Financier'!$F$22+'BP Financier'!$F$16+'BP Financier'!$F$19+'BP Financier'!$G$16+'BP Financier'!$G$19+'BP Financier'!$G$22))*$V8638*X8638/(1-$W8638)","v":{"v":230.20822856103376,"d":"230"}},{"$f":"'BP Financier'!$G$44*(('BP Financier'!$C$22+'BP Financier'!$D$22+'BP Financier'!$E$22+'BP Financier'!$F$22+'BP Financier'!$G$22)/('BP Financier'!$C$16+'BP Financier'!$C$19+'BP Financier'!$D$16+'BP Financier'!$D$19+'BP Financier'!$E$16+'BP Financier'!$E$19+'BP Financier'!$C$22+'BP Financier'!$D$22+'BP Financier'!$E$22+'BP Financier'!$F$22+'BP Financier'!$F$16+'BP Financier'!$F$19+'BP Financier'!$G$16+'BP Financier'!$G$19+'BP Financier'!$G$22))*$V8638*Y8638/(1-$W8638)","v":{"v":153.8961085960502,"d":"154"}},{"$f":"'BP Financier'!$G$44*(('BP Financier'!$C$22+'BP Financier'!$D$22+'BP Financier'!$E$22+'BP Financier'!$F$22+'BP Financier'!$G$22)/('BP Financier'!$C$16+'BP Financier'!$C$19+'BP Financier'!$D$16+'BP Financier'!$D$19+'BP Financier'!$E$16+'BP Financier'!$E$19+'BP Financier'!$C$22+'BP Financier'!$D$22+'BP Financier'!$E$22+'BP Financier'!$F$22+'BP Financier'!$F$16+'BP Financier'!$F$19+'BP Financier'!$G$16+'BP Financier'!$G$19+'BP Financier'!$G$22))*$V8638*Z8638/(1-$W8638)","v":{"v":1204.4596267806573,"d":"1,204"}},{"$f":"'BP Financier'!$G$44*(('BP Financier'!$C$22+'BP Financier'!$D$22+'BP Financier'!$E$22+'BP Financier'!$F$22+'BP Financier'!$G$22)/('BP Financier'!$C$16+'BP Financier'!$C$19+'BP Financier'!$D$16+'BP Financier'!$D$19+'BP Financier'!$E$16+'BP Financier'!$E$19+'BP Financier'!$C$22+'BP Financier'!$D$22+'BP Financier'!$E$22+'BP Financier'!$F$22+'BP Financier'!$F$16+'BP Financier'!$F$19+'BP Financier'!$G$16+'BP Financier'!$G$19+'BP Financier'!$G$22))*$V8638*AA8638/(1-$W8638)","v":{"v":148.80863393171796,"d":"149"}},{"$f":"'BP Financier'!$G$44*(('BP Financier'!$C$22+'BP Financier'!$D$22+'BP Financier'!$E$22+'BP Financier'!$F$22+'BP Financier'!$G$22)/('BP Financier'!$C$16+'BP Financier'!$C$19+'BP Financier'!$D$16+'BP Financier'!$D$19+'BP Financier'!$E$16+'BP Financier'!$E$19+'BP Financier'!$C$22+'BP Financier'!$D$22+'BP Financier'!$E$22+'BP Financier'!$F$22+'BP Financier'!$F$16+'BP Financier'!$F$19+'BP Financier'!$G$16+'BP Financier'!$G$19+'BP Financier'!$G$22))*$V8638*AB8638/(1-$W8638)","v":{"v":71.22464530065132,"d":"71"}},null,{"v":0.0005,"d":"0.05%"},{"$f":"Actif!$E$28/100","v":{"v":0.28900000000000003,"d":"28.90%"}},{"$f":"Actif!$E$30/100","v":{"v":0.09050000000000001,"d":"9.05%"}},{"$f":"Actif!$E$31/100","v":{"v":0.0605,"d":"6.05%"}},{"$f":"Actif!$E$32/100","v":{"v":0.47350000000000003,"d":"47.35%"}},{"$f":"Actif!$E$33/100","v":{"v":0.0585,"d":"5.85%"}},{"$f":"Actif!$E$29/100","v":{"v":0.027999999999999997,"d":"2.80%"}}]
[null,"#526",90,2026,"H","A_CAPI",{"v":0.44999999999999996,"d":"0.45"},{"v":0.38999999999999996,"d":"0.39"},0.6,0.6,85,0,{"$f":"ROUND(Primes!$Q$10*V8639,2)","v":0.07},0,{"v":1808.5972431701105,"d":"1,809"},{"$f":"'BP Financier'!$G$44*(('BP Financier'!$C$22+'BP Financier'!$D$22+'BP Financier'!$E$22+'BP Financier'!$F$22+'BP Financier'!$G$22)/('BP Financier'!$C$16+'BP Financier'!$C$19+'BP Financier'!$D$16+'BP Financier'!$D$19+'BP Financier'!$E$16+'BP Financier'!$E$19+'BP Financier'!$C$22+'BP Financier'!$D$22+'BP Financier'!$E$22+'BP Financier'!$F$22+'BP Financier'!$F$16+'BP Financier'!$F$19+'BP Financier'!$G$16+'BP Financier'!$G$19+'BP Financier'!$G$22))*$V8639*X8639/(1-$W8639)","v":{"v":230.20822856103376,"d":"230"}},{"$f":"'BP Financier'!$G$44*(('BP Financier'!$C$22+'BP Financier'!$D$22+'BP Financier'!$E$22+'BP Financier'!$F$22+'BP Financier'!$G$22)/('BP Financier'!$C$16+'BP Financier'!$C$19+'BP Financier'!$D$16+'BP Financier'!$D$19+'BP Financier'!$E$16+'BP Financier'!$E$19+'BP Financier'!$C$22+'BP Financier'!$D$22+'BP Financier'!$E$22+'BP Financier'!$F$22+'BP Financier'!$F$16+'BP Financier'!$F$19+'BP Financier'!$G$16+'BP Financier'!$G$19+'BP Financier'!$G$22))*$V8639*Y8639/(1-$W8639)","v":{"v":153.8961085960502,"d":"154"}},{"$f":"'BP Financier'!$G$44*(('BP Financier'!$C$22+'BP Financier'!$D$22+'BP Financier'!$E$22+'BP Financier'!$F$22+'BP Financier'!$G$22)/('BP Financier'!$C$16+'BP Financier'!$C$19+'BP Financier'!$D$16+'BP Financier'!$D$19+'BP Financier'!$E$16+'BP Financier'!$E$19+'BP Financier'!$C$22+'BP Financier'!$D$22+'BP Financier'!$E$22+'BP Financier'!$F$22+'BP Financier'!$F$16+'BP Financier'!$F$19+'BP Financier'!$G$16+'BP Financier'!$G$19+'BP Financier'!$G$22))*$V8639*Z8639/(1-$W8639)","v":{"v":1204.4596267806573,"d":"1,204"}},{"$f":"'BP Financier'!$G$44*(('BP Financier'!$C$22+'BP Financier'!$D$22+'BP Financier'!$E$22+'BP Financier'!$F$22+'BP Financier'!$G$22)/('BP Financier'!$C$16+'BP Financier'!$C$19+'BP Financier'!$D$16+'BP Financier'!$D$19+'BP Financier'!$E$16+'BP Financier'!$E$19+'BP Financier'!$C$22+'BP Financier'!$D$22+'BP Financier'!$E$22+'BP Financier'!$F$22+'BP Financier'!$F$16+'BP Financier'!$F$19+'BP Financier'!$G$16+'BP Financier'!$G$19+'BP Financier'!$G$22))*$V8639*AA8639/(1-$W8639)","v":{"v":148.80863393171796,"d":"149"}},{"$f":"'BP Financier'!$G$44*(('BP Financier'!$C$22+'BP Financier'!$D$22+'BP Financier'!$E$22+'BP Financier'!$F$22+'BP Financier'!$G$22)/('BP Financier'!$C$16+'BP Financier'!$C$19+'BP Financier'!$D$16+'BP Financier'!$D$19+'BP Financier'!$E$16+'BP Financier'!$E$19+'BP Financier'!$C$22+'BP Financier'!$D$22+'BP Financier'!$E$22+'BP Financier'!$F$22+'BP Financier'!$F$16+'BP Financier'!$F$19+'BP Financier'!$G$16+'BP Financier'!$G$19+'BP Financier'!$G$22))*$V8639*AB8639/(1-$W8639)","v":{"v":71.22464530065132,"d":"71"}},null,{"v":0.0005,"d":"0.05%"},{"$f":"Actif!$E$28/100","v":{"v":0.28900000000000003,"d":"28.90%"}},{"$f":"Actif!$E$30/100","v":{"v":0.09050000000000001,"d":"9.05%"}},{"$f":"Actif!$E$31/100","v":{"v":0.0605,"d":"6.05%"}},{"$f":"Actif!$E$32/100","v":{"v":0.47350000000000003,"d":"47.35%"}},{"$f":"Actif!$E$33/100","v":{"v":0.0585,"d":"5.85%"}},{"$f":"Actif!$E$29/100","v":{"v":0.027999999999999997,"d":"2.80%"}}]
[null,"#527",90,2028,"H","A_CAPI",{"v":0.44999999999999996,"d":"0.45"},{"v":0.38999999999999996,"d":"0.39"},0.6,0.6,85,0,{"$f":"ROUND(Primes!$Q$10*V8640,2)","v":0.07},0,{"v":1808.5972431701105,"d":"1,809"},{"$f":"'BP Financier'!$G$44*(('BP Financier'!$C$22+'BP Financier'!$D$22+'BP Financier'!$E$22+'BP Financier'!$F$22+'BP Financier'!$G$22)/('BP Financier'!$C$16+'BP Financier'!$C$19+'BP Financier'!$D$16+'BP Financier'!$D$19+'BP Financier'!$E$16+'BP Financier'!$E$19+'BP Financier'!$C$22+'BP Financier'!$D$22+'BP Financier'!$E$22+'BP Financier'!$F$22+'BP Financier'!$F$16+'BP Financier'!$F$19+'BP Financier'!$G$16+'BP Financier'!$G$19+'BP Financier'!$G$22))*$V8640*X8640/(1-$W8640)","v":{"v":230.20822856103376,"d":"230"}},{"$f":"'BP Financier'!$G$44*(('BP Financier'!$C$22+'BP Financier'!$D$22+'BP Financier'!$E$22+'BP Financier'!$F$22+'BP Financier'!$G$22)/('BP Financier'!$C$16+'BP Financier'!$C$19+'BP Financier'!$D$16+'BP Financier'!$D$19+'BP Financier'!$E$16+'BP Financier'!$E$19+'BP Financier'!$C$22+'BP Financier'!$D$22+'BP Financier'!$E$22+'BP Financier'!$F$22+'BP Financier'!$F$16+'BP Financier'!$F$19+'BP Financier'!$G$16+'BP Financier'!$G$19+'BP Financier'!$G$22))*$V8640*Y8640/(1-$W8640)","v":{"v":153.8961085960502,"d":"154"}},{"$f":"'BP Financier'!$G$44*(('BP Financier'!$C$22+'BP Financier'!$D$22+'BP Financier'!$E$22+'BP Financier'!$F$22+'BP Financier'!$G$22)/('BP Financier'!$C$16+'BP Financier'!$C$19+'BP Financier'!$D$16+'BP Financier'!$D$19+'BP Financier'!$E$16+'BP Financier'!$E$19+'BP Financier'!$C$22+'BP Financier'!$D$22+'BP Financier'!$E$22+'BP Financier'!$F$22+'BP Financier'!$F$16+'BP Financier'!$F$19+'BP Financier'!$G$16+'BP Financier'!$G$19+'BP Financier'!$G$22))*$V8640*Z8640/(1-$W8640)","v":{"v":1204.4596267806573,"d":"1,204"}},{"$f":"'BP Financier'!$G$44*(('BP Financier'!$C$22+'BP Financier'!$D$22+'BP Financier'!$E$22+'BP Financier'!$F$22+'BP Financier'!$G$22)/('BP Financier'!$C$16+'BP Financier'!$C$19+'BP Financier'!$D$16+'BP Financier'!$D$19+'BP Financier'!$E$16+'BP Financier'!$E$19+'BP Financier'!$C$22+'BP Financier'!$D$22+'BP Financier'!$E$22+'BP Financier'!$F$22+'BP Financier'!$F$16+'BP Financier'!$F$19+'BP Financier'!$G$16+'BP Financier'!$G$19+'BP Financier'!$G$22))*$V8640*AA8640/(1-$W8640)","v":{"v":148.80863393171796,"d":"149"}},{"$f":"'BP Financier'!$G$44*(('BP Financier'!$C$22+'BP Financier'!$D$22+'BP Financier'!$E$22+'BP Financier'!$F$22+'BP Financier'!$G$22)/('BP Financier'!$C$16+'BP Financier'!$C$19+'BP Financier'!$D$16+'BP Financier'!$D$19+'BP Financier'!$E$16+'BP Financier'!$E$19+'BP Financier'!$C$22+'BP Financier'!$D$22+'BP Financier'!$E$22+'BP Financier'!$F$22+'BP Financier'!$F$16+'BP Financier'!$F$19+'BP Financier'!$G$16+'BP Financier'!$G$19+'BP Financier'!$G$22))*$V8640*AB8640/(1-$W8640)","v":{"v":71.22464530065132,"d":"71"}},null,{"v":0.0005,"d":"0.05%"},{"$f":"Actif!$E$28/100","v":{"v":0.28900000000000003,"d":"28.90%"}},{"$f":"Actif!$E$30/100","v":{"v":0.09050000000000001,"d":"9.05%"}},{"$f":"Actif!$E$31/100","v":{"v":0.0605,"d":"6.05%"}},{"$f":"Actif!$E$32/100","v":{"v":0.47350000000000003,"d":"47.35%"}},{"$f":"Actif!$E$33/100","v":{"v":0.0585,"d":"5.85%"}},{"$f":"Actif!$E$29/100","v":{"v":0.027999999999999997,"d":"2.80%"}}]
[null,"#528",90,2029,"H","A_CAPI",{"v":0.44999999999999996,"d":"0.45"},{"v":0.38999999999999996,"d":"0.39"},0.6,0.6,85,0,{"$f":"ROUND(Primes!$Q$10*V8641,2)","v":0.07},0,{"v":1808.5972431701105,"d":"1,809"},{"$f":"'BP Financier'!$G$44*(('BP Financier'!$C$22+'BP Financier'!$D$22+'BP Financier'!$E$22+'BP Financier'!$F$22+'BP Financier'!$G$22)/('BP Financier'!$C$16+'BP Financier'!$C$19+'BP Financier'!$D$16+'BP Financier'!$D$19+'BP Financier'!$E$16+'BP Financier'!$E$19+'BP Financier'!$C$22+'BP Financier'!$D$22+'BP Financier'!$E$22+'BP Financier'!$F$22+'BP Financier'!$F$16+'BP Financier'!$F$19+'BP Financier'!$G$16+'BP Financier'!$G$19+'BP Financier'!$G$22))*$V8641*X8641/(1-$W8641)","v":{"v":230.20822856103376,"d":"230"}},{"$f":"'BP Financier'!$G$44*(('BP Financier'!$C$22+'BP Financier'!$D$22+'BP Financier'!$E$22+'BP Financier'!$F$22+'BP Financier'!$G$22)/('BP Financier'!$C$16+'BP Financier'!$C$19+'BP Financier'!$D$16+'BP Financier'!$D$19+'BP Financier'!$E$16+'BP Financier'!$E$19+'BP Financier'!$C$22+'BP Financier'!$D$22+'BP Financier'!$E$22+'BP Financier'!$F$22+'BP Financier'!$F$16+'BP Financier'!$F$19+'BP Financier'!$G$16+'BP Financier'!$G$19+'BP Financier'!$G$22))*$V8641*Y8641/(1-$W8641)","v":{"v":153.8961085960502,"d":"154"}},{"$f":"'BP Financier'!$G$44*(('BP Financier'!$C$22+'BP Financier'!$D$22+'BP Financier'!$E$22+'BP Financier'!$F$22+'BP Financier'!$G$22)/('BP Financier'!$C$16+'BP Financier'!$C$19+'BP Financier'!$D$16+'BP Financier'!$D$19+'BP Financier'!$E$16+'BP Financier'!$E$19+'BP Financier'!$C$22+'BP Financier'!$D$22+'BP Financier'!$E$22+'BP Financier'!$F$22+'BP Financier'!$F$16+'BP Financier'!$F$19+'BP Financier'!$G$16+'BP Financier'!$G$19+'BP Financier'!$G$22))*$V8641*Z8641/(1-$W8641)","v":{"v":1204.4596267806573,"d":"1,204"}},{"$f":"'BP Financier'!$G$44*(('BP Financier'!$C$22+'BP Financier'!$D$22+'BP Financier'!$E$22+'BP Financier'!$F$22+'BP Financier'!$G$22)/('BP Financier'!$C$16+'BP Financier'!$C$19+'BP Financier'!$D$16+'BP Financier'!$D$19+'BP Financier'!$E$16+'BP Financier'!$E$19+'BP Financier'!$C$22+'BP Financier'!$D$22+'BP Financier'!$E$22+'BP Financier'!$F$22+'BP Financier'!$F$16+'BP Financier'!$F$19+'BP Financier'!$G$16+'BP Financier'!$G$19+'BP Financier'!$G$22))*$V8641*AA8641/(1-$W8641)","v":{"v":148.80863393171796,"d":"149"}},{"$f":"'BP Financier'!$G$44*(('BP Financier'!$C$22+'BP Financier'!$D$22+'BP Financier'!$E$22+'BP Financier'!$F$22+'BP Financier'!$G$22)/('BP Financier'!$C$16+'BP Financier'!$C$19+'BP Financier'!$D$16+'BP Financier'!$D$19+'BP Financier'!$E$16+'BP Financier'!$E$19+'BP Financier'!$C$22+'BP Financier'!$D$22+'BP Financier'!$E$22+'BP Financier'!$F$22+'BP Financier'!$F$16+'BP Financier'!$F$19+'BP Financier'!$G$16+'BP Financier'!$G$19+'BP Financier'!$G$22))*$V8641*AB8641/(1-$W8641)","v":{"v":71.22464530065132,"d":"71"}},null,{"v":0.0005,"d":"0.05%"},{"$f":"Actif!$E$28/100","v":{"v":0.28900000000000003,"d":"28.90%"}},{"$f":"Actif!$E$30/100","v":{"v":0.09050000000000001,"d":"9.05%"}},{"$f":"Actif!$E$31/100","v":{"v":0.0605,"d":"6.05%"}},{"$f":"Actif!$E$32/100","v":{"v":0.47350000000000003,"d":"47.35%"}},{"$f":"Actif!$E$33/100","v":{"v":0.0585,"d":"5.85%"}},{"$f":"Actif!$E$29/100","v":{"v":0.027999999999999997,"d":"2.80%"}}]
[null,"#529",90,2030,"H","A_CAPI",{"v":0.44999999999999996,"d":"0.45"},{"v":0.38999999999999996,"d":"0.39"},0.6,0.6,85,0,{"$f":"ROUND(Primes!$Q$10*V8642,2)","v":0.07},0,{"v":1808.5972431701105,"d":"1,809"},{"$f":"'BP Financier'!$G$44*(('BP Financier'!$C$22+'BP Financier'!$D$22+'BP Financier'!$E$22+'BP Financier'!$F$22+'BP Financier'!$G$22)/('BP Financier'!$C$16+'BP Financier'!$C$19+'BP Financier'!$D$16+'BP Financier'!$D$19+'BP Financier'!$E$16+'BP Financier'!$E$19+'BP Financier'!$C$22+'BP Financier'!$D$22+'BP Financier'!$E$22+'BP Financier'!$F$22+'BP Financier'!$F$16+'BP Financier'!$F$19+'BP Financier'!$G$16+'BP Financier'!$G$19+'BP Financier'!$G$22))*$V8642*X8642/(1-$W8642)","v":{"v":230.20822856103376,"d":"230"}},{"$f":"'BP Financier'!$G$44*(('BP Financier'!$C$22+'BP Financier'!$D$22+'BP Financier'!$E$22+'BP Financier'!$F$22+'BP Financier'!$G$22)/('BP Financier'!$C$16+'BP Financier'!$C$19+'BP Financier'!$D$16+'BP Financier'!$D$19+'BP Financier'!$E$16+'BP Financier'!$E$19+'BP Financier'!$C$22+'BP Financier'!$D$22+'BP Financier'!$E$22+'BP Financier'!$F$22+'BP Financier'!$F$16+'BP Financier'!$F$19+'BP Financier'!$G$16+'BP Financier'!$G$19+'BP Financier'!$G$22))*$V8642*Y8642/(1-$W8642)","v":{"v":153.8961085960502,"d":"154"}},{"$f":"'BP Financier'!$G$44*(('BP Financier'!$C$22+'BP Financier'!$D$22+'BP Financier'!$E$22+'BP Financier'!$F$22+'BP Financier'!$G$22)/('BP Financier'!$C$16+'BP Financier'!$C$19+'BP Financier'!$D$16+'BP Financier'!$D$19+'BP Financier'!$E$16+'BP Financier'!$E$19+'BP Financier'!$C$22+'BP Financier'!$D$22+'BP Financier'!$E$22+'BP Financier'!$F$22+'BP Financier'!$F$16+'BP Financier'!$F$19+'BP Financier'!$G$16+'BP Financier'!$G$19+'BP Financier'!$G$22))*$V8642*Z8642/(1-$W8642)","v":{"v":1204.4596267806573,"d":"1,204"}},{"$f":"'BP Financier'!$G$44*(('BP Financier'!$C$22+'BP Financier'!$D$22+'BP Financier'!$E$22+'BP Financier'!$F$22+'BP Financier'!$G$22)/('BP Financier'!$C$16+'BP Financier'!$C$19+'BP Financier'!$D$16+'BP Financier'!$D$19+'BP Financier'!$E$16+'BP Financier'!$E$19+'BP Financier'!$C$22+'BP Financier'!$D$22+'BP Financier'!$E$22+'BP Financier'!$F$22+'BP Financier'!$F$16+'BP Financier'!$F$19+'BP Financier'!$G$16+'BP Financier'!$G$19+'BP Financier'!$G$22))*$V8642*AA8642/(1-$W8642)","v":{"v":148.80863393171796,"d":"149"}},{"$f":"'BP Financier'!$G$44*(('BP Financier'!$C$22+'BP Financier'!$D$22+'BP Financier'!$E$22+'BP Financier'!$F$22+'BP Financier'!$G$22)/('BP Financier'!$C$16+'BP Financier'!$C$19+'BP Financier'!$D$16+'BP Financier'!$D$19+'BP Financier'!$E$16+'BP Financier'!$E$19+'BP Financier'!$C$22+'BP Financier'!$D$22+'BP Financier'!$E$22+'BP Financier'!$F$22+'BP Financier'!$F$16+'BP Financier'!$F$19+'BP Financier'!$G$16+'BP Financier'!$G$19+'BP Financier'!$G$22))*$V8642*AB8642/(1-$W8642)","v":{"v":71.22464530065132,"d":"71"}},null,{"v":0.0005,"d":"0.05%"},{"$f":"Actif!$E$28/100","v":{"v":0.28900000000000003,"d":"28.90%"}},{"$f":"Actif!$E$30/100","v":{"v":0.09050000000000001,"d":"9.05%"}},{"$f":"Actif!$E$31/100","v":{"v":0.0605,"d":"6.05%"}},{"$f":"Actif!$E$32/100","v":{"v":0.47350000000000003,"d":"47.35%"}},{"$f":"Actif!$E$33/100","v":{"v":0.0585,"d":"5.85%"}},{"$f":"Actif!$E$29/100","v":{"v":0.027999999999999997,"d":"2.80%"}}]
[null,"#530",90,2031,"H","A_CAPI",{"v":0.44999999999999996,"d":"0.45"},{"v":0.38999999999999996,"d":"0.39"},0.6,0.6,85,0,{"$f":"ROUND(Primes!$Q$10*V8643,2)","v":0.07},0,{"v":1808.5972431701105,"d":"1,809"},{"$f":"'BP Financier'!$G$44*(('BP Financier'!$C$22+'BP Financier'!$D$22+'BP Financier'!$E$22+'BP Financier'!$F$22+'BP Financier'!$G$22)/('BP Financier'!$C$16+'BP Financier'!$C$19+'BP Financier'!$D$16+'BP Financier'!$D$19+'BP Financier'!$E$16+'BP Financier'!$E$19+'BP Financier'!$C$22+'BP Financier'!$D$22+'BP Financier'!$E$22+'BP Financier'!$F$22+'BP Financier'!$F$16+'BP Financier'!$F$19+'BP Financier'!$G$16+'BP Financier'!$G$19+'BP Financier'!$G$22))*$V8643*X8643/(1-$W8643)","v":{"v":230.20822856103376,"d":"230"}},{"$f":"'BP Financier'!$G$44*(('BP Financier'!$C$22+'BP Financier'!$D$22+'BP Financier'!$E$22+'BP Financier'!$F$22+'BP Financier'!$G$22)/('BP Financier'!$C$16+'BP Financier'!$C$19+'BP Financier'!$D$16+'BP Financier'!$D$19+'BP Financier'!$E$16+'BP Financier'!$E$19+'BP Financier'!$C$22+'BP Financier'!$D$22+'BP Financier'!$E$22+'BP Financier'!$F$22+'BP Financier'!$F$16+'BP Financier'!$F$19+'BP Financier'!$G$16+'BP Financier'!$G$19+'BP Financier'!$G$22))*$V8643*Y8643/(1-$W8643)","v":{"v":153.8961085960502,"d":"154"}},{"$f":"'BP Financier'!$G$44*(('BP Financier'!$C$22+'BP Financier'!$D$22+'BP Financier'!$E$22+'BP Financier'!$F$22+'BP Financier'!$G$22)/('BP Financier'!$C$16+'BP Financier'!$C$19+'BP Financier'!$D$16+'BP Financier'!$D$19+'BP Financier'!$E$16+'BP Financier'!$E$19+'BP Financier'!$C$22+'BP Financier'!$D$22+'BP Financier'!$E$22+'BP Financier'!$F$22+'BP Financier'!$F$16+'BP Financier'!$F$19+'BP Financier'!$G$16+'BP Financier'!$G$19+'BP Financier'!$G$22))*$V8643*Z8643/(1-$W8643)","v":{"v":1204.4596267806573,"d":"1,204"}},{"$f":"'BP Financier'!$G$44*(('BP Financier'!$C$22+'BP Financier'!$D$22+'BP Financier'!$E$22+'BP Financier'!$F$22+'BP Financier'!$G$22)/('BP Financier'!$C$16+'BP Financier'!$C$19+'BP Financier'!$D$16+'BP Financier'!$D$19+'BP Financier'!$E$16+'BP Financier'!$E$19+'BP Financier'!$C$22+'BP Financier'!$D$22+'BP Financier'!$E$22+'BP Financier'!$F$22+'BP Financier'!$F$16+'BP Financier'!$F$19+'BP Financier'!$G$16+'BP Financier'!$G$19+'BP Financier'!$G$22))*$V8643*AA8643/(1-$W8643)","v":{"v":148.80863393171796,"d":"149"}},{"$f":"'BP Financier'!$G$44*(('BP Financier'!$C$22+'BP Financier'!$D$22+'BP Financier'!$E$22+'BP Financier'!$F$22+'BP Financier'!$G$22)/('BP Financier'!$C$16+'BP Financier'!$C$19+'BP Financier'!$D$16+'BP Financier'!$D$19+'BP Financier'!$E$16+'BP Financier'!$E$19+'BP Financier'!$C$22+'BP Financier'!$D$22+'BP Financier'!$E$22+'BP Financier'!$F$22+'BP Financier'!$F$16+'BP Financier'!$F$19+'BP Financier'!$G$16+'BP Financier'!$G$19+'BP Financier'!$G$22))*$V8643*AB8643/(1-$W8643)","v":{"v":71.22464530065132,"d":"71"}},null,{"v":0.0005,"d":"0.05%"},{"$f":"Actif!$E$28/100","v":{"v":0.28900000000000003,"d":"28.90%"}},{"$f":"Actif!$E$30/100","v":{"v":0.09050000000000001,"d":"9.05%"}},{"$f":"Actif!$E$31/100","v":{"v":0.0605,"d":"6.05%"}},{"$f":"Actif!$E$32/100","v":{"v":0.47350000000000003,"d":"47.35%"}},{"$f":"Actif!$E$33/100","v":{"v":0.0585,"d":"5.85%"}},{"$f":"Actif!$E$29/100","v":{"v":0.027999999999999997,"d":"2.80%"}}]
[null,"#531"]
[null,"#532"]
[null,"#533"]
[null,"#534"]
[null,"#535"]
[null,"#536"]
[null,"#537"]
[null,"#538"]
[null,"#539"]
[null,"#540"]
[null,"#541"]
[null,"#542"]
[null,"#543"]
[null,"#544"]
[null,"#545"]
[null,"#546"]
[null,"#547"]
[null,"#548"]
[null,"#549"]
[null,"#550"]
[null,"#551"]
[null,"#552"]
[null,"#553"]
[null,"#554"]
[null,"#555"]
[null,"#556"]
[null,"#557"]
[null,"#558"]
[null,"#559"]
[null,"#560"]
[null,"#561"]
[null,"#562"]
[null,"#563"]
[null,"#564"]
[null,"#565"]
[null,"#566"]
[null,"#567"]
[null,"#568"]
[null,"#569"]
[null,"#570"]
[null,"#571"]
[null,"#572"]
[null,"#573"]
[null,"#574"]
[null,"#575"]
[null,"#576"]
[null,"#577"]
[null,"#578"]
[null,"#579"]
[null,"#580"]
[null,"#581"]
[null,"#582"]
[null,"#583"]
[null,"#584"]
[null,"#585"]
[null,"#586"]
[null,"#587"]
[null,"#588"]
[null,"#589"]
[null,"#590"]
[null,"#591"]
[null,"#592"]
[null,"#593"]
[null,"#594"]
[null,"#595"]
[null,"#596"]
[null,"#597"]
[null,"#598"]
[null,"#599"]
[null,"#600"]
[null,"#601"]
[null,"#602"]
[null,"#603"]
[null,"#604"]
[null,"#605"]
[null,"#606"]
[null,"#607"]
[null,"#608"]
[null,"#609"]
[null,"#610"]
[null,"#611"]
[null,"#612"]
[null,"#613"]
[null,"#614"]
[null,"#615"]
[null,"#616"]
[null,"#617"]
[null,"#618"]
[null,"#619"]
[null,"#620"]
[null,"#621"]
[null,"#622"]
[null,"#623"]
[null,"#624"]
[null,"#625"]
[null,"#626"]
[null,"#627"]
[null,"#628"]
[null,"#629"]
[null,"#630"]
[null,"#631"]
[null,"#632"]
[null,"#633"]
[null,"#634"]
[null,"#635"]
[null,"#636"]
[null,"#637"]
[null,"#638"]
[null,"#639"]
[null,"#640"]
[null,"#641"]
[null,"#642"]
[null,"#643"]
[null,"#644"]
[null,"#645"]
[null,"#646"]
[null,"#647"]
[null,"#648"]
[null,"#649"]
[null,"#650"]
[null,"#651"]
[null,"#652"]
[null,"#653"]
[null,"#654"]
[null,"#655"]
[null,"#656"]
[null,"#657"]
[null,"#658"]
[null,"#659"]
[null,"#660"]
[null,"#661"]
[null,"#662"]
[null,"#663"]
[null,"#664"]
[null,"#665"]
[null,"#666"]
[null,"#667"]
[null,"#668"]
[null,"#669"]
[null,"#670"]
[null,"#671"]
[null,"#672"]
[null,"#673"]
[null,"#674"]
[null,"#675"]
[null,"#676"]
[null,"#677"]
[null,"#678"]
[null,"#679"]
[null,"#680"]
[null,"#681"]
[null,"#682"]
[null,"#683"]
[null,"#684"]
[null,"#685"]
[null,"#686"]
[null,"#687"]
[null,"#688"]
[null,"#689"]
[null,"#690"]
[null,"#691"]
[null,"#692"]
[null,"#693"]
[null,"#694"]
[null,"#695"]
[null,"#696"]
[null,"#697"]
[null,"#698"]
[null,"#699"]
[null,"#700"]
[null,"#701"]
[null,"#702"]
[null,"#703"]
[null,"#704"]
[null,"#705"]
[null,"#706"]
[null,"#707"]
[null,"#708"]
[null,"#709"]
[null,"#710"]
[null,"#711"]
[null,"#712"]
[null,"#713"]
[null,"#714"]
[null,"#715"]
[null,"#716"]
[null,"#717"]
[null,"#718"]
[null,"#719"]
[null,"#720"]
[null,"#721"]
[null,"#722"]
[null,"#723"]
[null,"#724"]
[null,"#725"]
[null,"#726"]
[null,"#727"]
[null,"#728"]
[null,"#729"]
[null,"#730"]
[null,"#731"]
[null,"#732"]
[null,"#733"]
[null,"#734"]
[null,"#735"]
[null,"#736"]
[null,"#737"]
[null,"#738"]
[null,"#739"]
[null,"#740"]
[null,"#741"]
[null,"#742"]
[null,"#743"]
[null,"#744"]
[null,"#745"]
[null,"#746"]
[null,"#747"]
[null,"#748"]
[null,"#749"]
[null,"#750"]
[null,"#751"]
[null,"#752"]
[null,"#753"]
[null,"#754"]
[null,"#755"]
[null,"#756"]
[null,"#757"]
[null,"#758"]
[null,"#759"]
[null,"#760"]
[null,"#761"]
[null,"#762"]
[null,"#763"]
[null,"#764"]
[null,"#765"]
[null,"#766"]
[null,"#767"]
[null,"#768"]
[null,"#769"]
[null,"#770"]
[null,"#771"]
[null,"#772"]
[null,"#773"]
[null,"#774"]
[null,"#775"]
[null,"#776"]
[null,"#777"]
[null,"#778"]
[null,"#779"]
[null,"#780"]
[null,"#781"]
[null,"#782"]
[null,"#783"]
[null,"#784"]
[null,"#785"]
[null,"#786"]
[null,"#787"]
[null,"#788"]
[null,"#789"]
[null,"#790"]
[null,"#791"]
[null,"#792"]
[null,"#793"]
[null,"#794"]
[null,"#795"]
[null,"#796"]
[null,"#797"]
[null,"#798"]
[null,"#799"]
[null,"#800"]
[null,"#801"]
[null,"#802"]
[null,"#803"]
[null,"#804"]
[null,"#805"]
[null,"#806"]
[null,"#807"]
[null,"#808"]
[null,"#809"]
[null,"#810"]
[null,"#811"]
[null,"#812"]
[null,"#813"]
[null,"#814"]
[null,"#815"]
[null,"#816"]
[null,"#817"]
[null,"#818"]
[null,"#819"]
[null,"#820"]
[null,"#821"]
[null,"#822"]
[null,"#823"]
[null,"#824"]
[null,"#825"]
[null,"#826"]
[null,"#827"]
[null,"#828"]
[null,"#829"]
[null,"#830"]
[null,"#831"]
[null,"#832"]
[null,"#833"]
[null,"#834"]
[null,"#835"]
[null,"#836"]
[null,"#837"]
[null,"#838"]
[null,"#839"]
[null,"#840"]
[null,"#841"]
[null,"#842"]
[null,"#843"]
[null,"#844"]
[null,"#845"]
[null,"#846"]
[null,"#847"]
[null,"#848"]
[null,"#849"]
[null,"#850"]
[null,"#851"]
[null,"#852"]
[null,"#853"]
[null,"#854"]
[null,"#855"]
[null,"#856"]
[null,"#857"]
[null,"#858"]
[null,"#859"]
[null,"#860"]
[null,"#861"]
[null,"#862"]
[null,"#863"]
[null,"#864"]
[null,"#865"]
[null,"#866"]
[null,"#867"]
[null,"#868"]
[null,"#869"]
[null,"#870"]
[null,"#871"]
[null,"#872"]
[null,"#873"]
[null,"#874"]
[null,"#875"]
[null,"#876"]
[null,"#877"]
[null,"#878"]
[null,"#879"]
[null,"#880"]
[null,"#881"]
[null,"#882"]
[null,"#883"]
[null,"#884"]
[null,"#885"]
[null,"#886"]
[null,"#887"]
[null,"#888"]
[null,"#889"]
[null,"#890"]
[null,"#891"]
[null,"#892"]
[null,"#893"]
[null,"#894"]
[null,"#895"]
[null,"#896"]
[null,"#897"]
[null,"#898"]
[null,"#899"]
[null,"#900"]
[null,"#901"]
[null,"#902"]
[null,"#903"]
[null,"#904"]
[null,"#905"]
[null,"#906"]
[null,"#907"]
[null,"#908"]
[null,"#909"]
[null,"#910"]
[null,"#911"]
[null,"#912"]
[null,"#913"]
[null,"#914"]
[null,"#915"]
[null,"#916"]
[null,"#917"]
[null,"#918"]
[null,"#919"]
[null,"#920"]
[null,"#921"]
[null,"#922"]
[null,"#923"]
[null,"#924"]
[null,"#925"]
[null,"#926"]
[null,"#927"]
[null,"#928"]
[null,"#929"]
[null,"#930"]
[null,"#931"]
[null,"#932"]
[null,"#933"]
[null,"#934"]
[null,"#935"]
[null,"#936"]
[null,"#937"]
[null,"#938"]
[null,"#939"]
[null,"#940"]
[null,"#941"]
[null,"#942"]
[null,"#943"]
[null,"#944"]
[null,"#945"]
[null,"#946"]
[null,"#947"]
[null,"#948"]
[null,"#949"]
[null,"#950"]
[null,"#951"]
[null,"#952"]
[null,"#953"]
[null,"#954"]
[null,"#955"]
[null,"#956"]
[null,"#957"]
[null,"#958"]
[null,"#959"]
[null,"#960"]
[null,"#961"]
[null,"#962"]
[null,"#963"]
[null,"#964"]
[null,"#965"]
[null,"#966"]
[null,"#967"]
[null,"#968"]
[null,"#969"]
[null,"#970"]
[null,"#971"]
[null,"#972"]
[null,"#973"]
[null,"#974"]
[null,"#975"]
[null,"#976"]
[null,"#977"]
[null,"#978"]
[null,"#979"]
[null,"#980"]
[null,"#981"]
[null,"#982"]
[null,"#983"]
[null,"#984"]
[null,"#985"]
[null,"#986"]
[null,"#987"]
[null,"#988"]
[null,"#989"]
[null,"#990"]
[null,"#991"]
[null,"#992"]
[null,"#993"]
[null,"#994"]
[null,"#995"]
[null,"#996"]
[null,"#997"]
[null,"#998"]
[null,"#999"]
[null,"#1000"]
[]
[null,"PER","Euro - UC","2031-12-31",{"$nulls":19},"Obligation","Dette Privée","Action","Private Equity","Obligation CT"]
[null,"ID","AGE","SOUSCRIPTION_YR","SEXE","PDT","CHGT_GEST_EURO_PC","CHGT_GEST_UC_PC","COMM_DIST_EURO_PC","COMM_DIST_UC_PC","CLAUSE_PB_PC","TMG_PC","NO_POLS","PM_EURO","PM_UC_TOT","PM_UC_1","PM_UC_2","PM_UC_3","PM_UC_4","PM_UC_5",null,"Pondération","%Euro","%UC1","%UC2","%UC3","%UC4","%UC5"]
[null,"#1",18,2026,"H","A_PER",{"$f":"frais_gestion_Euro*100","v":{"v":0.44999999999999996,"d":"0.45"}},{"$f":"frais_gestion_UC*100","v":{"v":0.38999999999999996,"d":"0.39"}},{"$f":"frais_distribution_FG*100","v":0.6},{"$f":"frais_distribution_UC*100","v":0.6},85,0,{"$f":"ROUND(Primes!$Q$7*V9117,0)","v":1},{"$f":"'BP Financier'!$G$33*(('BP Financier'!$C$19+'BP Financier'!$D$19+'BP Financier'!$E$19+'BP Financier'!$F$19+'BP Financier'!$G$19)/('BP Financier'!$C$16+'BP Financier'!$C$19+'BP Financier'!$D$16+'BP Financier'!$D$19+'BP Financier'!$E$16+'BP Financier'!$E$19+'BP Financier'!$F$16+'BP Financier'!$F$19+'BP Financier'!$G$16+'BP Financier'!$G$19))*V9117","v":{"v":56955.057223727745,"d":"56,955"}},{"$f":"SUM(P9117:T9117)","v":{"v":32688.472908904525,"d":"32,688"}},{"$f":"'BP Financier'!$G$44*(('BP Financier'!$C$19+'BP Financier'!$D$19+'BP Financier'!$E$19+'BP Financier'!$F$19+'BP Financier'!$G$19)/('BP Financier'!$C$16+'BP Financier'!$C$19+'BP Financier'!$D$16+'BP Financier'!$D$19+'BP Financier'!$E$16+'BP Financier'!$E$19+'BP Financier'!$C$22+'BP Financier'!$D$22+'BP Financier'!$E$22+'BP Financier'!$F$22+'BP Financier'!$F$19+'BP Financier'!$F$16+'BP Financier'!$G$22+'BP Financier'!$G$19+'BP Financier'!$G$16))*$V9117*X9117/(1-$W9117)","v":{"v":4160.769055212179,"d":"4,161"}},{"$f":"'BP Financier'!$G$44*(('BP Financier'!$C$19+'BP Financier'!$D$19+'BP Financier'!$E$19+'BP Financier'!$F$19+'BP Financier'!$G$19)/('BP Financier'!$C$16+'BP Financier'!$C$19+'BP Financier'!$D$16+'BP Financier'!$D$19+'BP Financier'!$E$16+'BP Financier'!$E$19+'BP Financier'!$C$22+'BP Financier'!$D$22+'BP Financier'!$E$22+'BP Financier'!$F$22+'BP Financier'!$F$19+'BP Financier'!$F$16+'BP Financier'!$G$22+'BP Financier'!$G$19+'BP Financier'!$G$16))*$V9117*Y9117/(1-$W9117)","v":{"v":2781.5085949208483,"d":"2,782"}},{"$f":"'BP Financier'!$G$44*(('BP Financier'!$C$19+'BP Financier'!$D$19+'BP Financier'!$E$19+'BP Financier'!$F$19+'BP Financier'!$G$19)/('BP Financier'!$C$16+'BP Financier'!$C$19+'BP Financier'!$D$16+'BP Financier'!$D$19+'BP Financier'!$E$16+'BP Financier'!$E$19+'BP Financier'!$C$22+'BP Financier'!$D$22+'BP Financier'!$E$22+'BP Financier'!$F$22+'BP Financier'!$F$19+'BP Financier'!$F$16+'BP Financier'!$G$22+'BP Financier'!$G$19+'BP Financier'!$G$16))*$V9117*Z9117/(1-$W9117)","v":{"v":21769.327598264827,"d":"21,769"}},{"$f":"'BP Financier'!$G$44*(('BP Financier'!$C$19+'BP Financier'!$D$19+'BP Financier'!$E$19+'BP Financier'!$F$19+'BP Financier'!$G$19)/('BP Financier'!$C$16+'BP Financier'!$C$19+'BP Financier'!$D$16+'BP Financier'!$D$19+'BP Financier'!$E$16+'BP Financier'!$E$19+'BP Financier'!$C$22+'BP Financier'!$D$22+'BP Financier'!$E$22+'BP Financier'!$F$22+'BP Financier'!$F$19+'BP Financier'!$F$16+'BP Financier'!$G$22+'BP Financier'!$G$19+'BP Financier'!$G$16))*$V9117*AA9117/(1-$W9117)","v":{"v":2689.5578975680937,"d":"2,690"}},{"$f":"'BP Financier'!$G$44*(('BP Financier'!$C$19+'BP Financier'!$D$19+'BP Financier'!$E$19+'BP Financier'!$F$19+'BP Financier'!$G$19)/('BP Financier'!$C$16+'BP Financier'!$C$19+'BP Financier'!$D$16+'BP Financier'!$D$19+'BP Financier'!$E$16+'BP Financier'!$E$19+'BP Financier'!$C$22+'BP Financier'!$D$22+'BP Financier'!$E$22+'BP Financier'!$F$22+'BP Financier'!$F$19+'BP Financier'!$F$16+'BP Financier'!$G$22+'BP Financier'!$G$19+'BP Financier'!$G$16))*$V9117*AB9117/(1-$W9117)","v":{"v":1287.3097629385745,"d":"1,287"}},null,{"v":1E-3,"d":"0.10%"},{"$f":"Actif!$E$28/100","v":{"v":0.28900000000000003,"d":"28.90%"}},{"$f":"Actif!$E$30/100","v":{"v":0.09050000000000001,"d":"9.05%"}},{"$f":"Actif!$E$31/100","v":{"v":0.0605,"d":"6.05%"}},{"$f":"Actif!$E$32/100","v":{"v":0.47350000000000003,"d":"47.35%"}},{"$f":"Actif!$E$33/100","v":{"v":0.0585,"d":"5.85%"}},{"$f":"Actif!$E$29/100","v":{"v":0.027999999999999997,"d":"2.80%"}}]
[null,"#2",18,2028,"H","A_PER",{"v":0.44999999999999996,"d":"0.45"},{"v":0.38999999999999996,"d":"0.39"},0.6,0.6,85,0,{"$f":"ROUND(Primes!$Q$7*V9118,0)","v":1},{"$f":"'BP Financier'!$G$33*(('BP Financier'!$C$19+'BP Financier'!$D$19+'BP Financier'!$E$19+'BP Financier'!$F$19+'BP Financier'!$G$19)/('BP Financier'!$C$16+'BP Financier'!$C$19+'BP Financier'!$D$16+'BP Financier'!$D$19+'BP Financier'!$E$16+'BP Financier'!$E$19+'BP Financier'!$F$16+'BP Financier'!$F$19+'BP Financier'!$G$16+'BP Financier'!$G$19))*V9118","v":{"v":56955.057223727745,"d":"56,955"}},{"$f":"SUM(P9118:T9118)","v":{"v":32688.472908904525,"d":"32,688"}},{"$f":"'BP Financier'!$G$44*(('BP Financier'!$C$19+'BP Financier'!$D$19+'BP Financier'!$E$19+'BP Financier'!$F$19+'BP Financier'!$G$19)/('BP Financier'!$C$16+'BP Financier'!$C$19+'BP Financier'!$D$16+'BP Financier'!$D$19+'BP Financier'!$E$16+'BP Financier'!$E$19+'BP Financier'!$C$22+'BP Financier'!$D$22+'BP Financier'!$E$22+'BP Financier'!$F$22+'BP Financier'!$F$19+'BP Financier'!$F$16+'BP Financier'!$G$22+'BP Financier'!$G$19+'BP Financier'!$G$16))*$V9118*X9118/(1-$W9118)","v":{"v":4160.769055212179,"d":"4,161"}},{"$f":"'BP Financier'!$G$44*(('BP Financier'!$C$19+'BP Financier'!$D$19+'BP Financier'!$E$19+'BP Financier'!$F$19+'BP Financier'!$G$19)/('BP Financier'!$C$16+'BP Financier'!$C$19+'BP Financier'!$D$16+'BP Financier'!$D$19+'BP Financier'!$E$16+'BP Financier'!$E$19+'BP Financier'!$C$22+'BP Financier'!$D$22+'BP Financier'!$E$22+'BP Financier'!$F$22+'BP Financier'!$F$19+'BP Financier'!$F$16+'BP Financier'!$G$22+'BP Financier'!$G$19+'BP Financier'!$G$16))*$V9118*Y9118/(1-$W9118)","v":{"v":2781.5085949208483,"d":"2,782"}},{"$f":"'BP Financier'!$G$44*(('BP Financier'!$C$19+'BP Financier'!$D$19+'BP Financier'!$E$19+'BP Financier'!$F$19+'BP Financier'!$G$19)/('BP Financier'!$C$16+'BP Financier'!$C$19+'BP Financier'!$D$16+'BP Financier'!$D$19+'BP Financier'!$E$16+'BP Financier'!$E$19+'BP Financier'!$C$22+'BP Financier'!$D$22+'BP Financier'!$E$22+'BP Financier'!$F$22+'BP Financier'!$F$19+'BP Financier'!$F$16+'BP Financier'!$G$22+'BP Financier'!$G$19+'BP Financier'!$G$16))*$V9118*Z9118/(1-$W9118)","v":{"v":21769.327598264827,"d":"21,769"}},{"$f":"'BP Financier'!$G$44*(('BP Financier'!$C$19+'BP Financier'!$D$19+'BP Financier'!$E$19+'BP Financier'!$F$19+'BP Financier'!$G$19)/('BP Financier'!$C$16+'BP Financier'!$C$19+'BP Financier'!$D$16+'BP Financier'!$D$19+'BP Financier'!$E$16+'BP Financier'!$E$19+'BP Financier'!$C$22+'BP Financier'!$D$22+'BP Financier'!$E$22+'BP Financier'!$F$22+'BP Financier'!$F$19+'BP Financier'!$F$16+'BP Financier'!$G$22+'BP Financier'!$G$19+'BP Financier'!$G$16))*$V9118*AA9118/(1-$W9118)","v":{"v":2689.5578975680937,"d":"2,690"}},{"$f":"'BP Financier'!$G$44*(('BP Financier'!$C$19+'BP Financier'!$D$19+'BP Financier'!$E$19+'BP Financier'!$F$19+'BP Financier'!$G$19)/('BP Financier'!$C$16+'BP Financier'!$C$19+'BP Financier'!$D$16+'BP Financier'!$D$19+'BP Financier'!$E$16+'BP Financier'!$E$19+'BP Financier'!$C$22+'BP Financier'!$D$22+'BP Financier'!$E$22+'BP Financier'!$F$22+'BP Financier'!$F$19+'BP Financier'!$F$16+'BP Financier'!$G$22+'BP Financier'!$G$19+'BP Financier'!$G$16))*$V9118*AB9118/(1-$W9118)","v":{"v":1287.3097629385745,"d":"1,287"}},null,{"v":1E-3,"d":"0.10%"},{"$f":"Actif!$E$28/100","v":{"v":0.28900000000000003,"d":"28.90%"}},{"$f":"Actif!$E$30/100","v":{"v":0.09050000000000001,"d":"9.05%"}},{"$f":"Actif!$E$31/100","v":{"v":0.0605,"d":"6.05%"}},{"$f":"Actif!$E$32/100","v":{"v":0.47350000000000003,"d":"47.35%"}},{"$f":"Actif!$E$33/100","v":{"v":0.0585,"d":"5.85%"}},{"$f":"Actif!$E$29/100","v":{"v":0.027999999999999997,"d":"2.80%"}}]
[null,"#3",18,2029,"H","A_PER",{"v":0.44999999999999996,"d":"0.45"},{"v":0.38999999999999996,"d":"0.39"},0.6,0.6,85,0,{"$f":"ROUND(Primes!$Q$7*V9119,0)","v":1},{"$f":"'BP Financier'!$G$33*(('BP Financier'!$C$19+'BP Financier'!$D$19+'BP Financier'!$E$19+'BP Financier'!$F$19+'BP Financier'!$G$19)/('BP Financier'!$C$16+'BP Financier'!$C$19+'BP Financier'!$D$16+'BP Financier'!$D$19+'BP Financier'!$E$16+'BP Financier'!$E$19+'BP Financier'!$F$16+'BP Financier'!$F$19+'BP Financier'!$G$16+'BP Financier'!$G$19))*V9119","v":{"v":56955.057223727745,"d":"56,955"}},{"v":32688.472908904525,"d":"32,688"},{"$f":"'BP Financier'!$G$44*(('BP Financier'!$C$19+'BP Financier'!$D$19+'BP Financier'!$E$19+'BP Financier'!$F$19+'BP Financier'!$G$19)/('BP Financier'!$C$16+'BP Financier'!$C$19+'BP Financier'!$D$16+'BP Financier'!$D$19+'BP Financier'!$E$16+'BP Financier'!$E$19+'BP Financier'!$C$22+'BP Financier'!$D$22+'BP Financier'!$E$22+'BP Financier'!$F$22+'BP Financier'!$F$19+'BP Financier'!$F$16+'BP Financier'!$G$22+'BP Financier'!$G$19+'BP Financier'!$G$16))*$V9119*X9119/(1-$W9119)","v":{"v":4160.769055212179,"d":"4,161"}},{"$f":"'BP Financier'!$G$44*(('BP Financier'!$C$19+'BP Financier'!$D$19+'BP Financier'!$E$19+'BP Financier'!$F$19+'BP Financier'!$G$19)/('BP Financier'!$C$16+'BP Financier'!$C$19+'BP Financier'!$D$16+'BP Financier'!$D$19+'BP Financier'!$E$16+'BP Financier'!$E$19+'BP Financier'!$C$22+'BP Financier'!$D$22+'BP Financier'!$E$22+'BP Financier'!$F$22+'BP Financier'!$F$19+'BP Financier'!$F$16+'BP Financier'!$G$22+'BP Financier'!$G$19+'BP Financier'!$G$16))*$V9119*Y9119/(1-$W9119)","v":{"v":2781.5085949208483,"d":"2,782"}},{"$f":"'BP Financier'!$G$44*(('BP Financier'!$C$19+'BP Financier'!$D$19+'BP Financier'!$E$19+'BP Financier'!$F$19+'BP Financier'!$G$19)/('BP Financier'!$C$16+'BP Financier'!$C$19+'BP Financier'!$D$16+'BP Financier'!$D$19+'BP Financier'!$E$16+'BP Financier'!$E$19+'BP Financier'!$C$22+'BP Financier'!$D$22+'BP Financier'!$E$22+'BP Financier'!$F$22+'BP Financier'!$F$19+'BP Financier'!$F$16+'BP Financier'!$G$22+'BP Financier'!$G$19+'BP Financier'!$G$16))*$V9119*Z9119/(1-$W9119)","v":{"v":21769.327598264827,"d":"21,769"}},{"$f":"'BP Financier'!$G$44*(('BP Financier'!$C$19+'BP Financier'!$D$19+'BP Financier'!$E$19+'BP Financier'!$F$19+'BP Financier'!$G$19)/('BP Financier'!$C$16+'BP Financier'!$C$19+'BP Financier'!$D$16+'BP Financier'!$D$19+'BP Financier'!$E$16+'BP Financier'!$E$19+'BP Financier'!$C$22+'BP Financier'!$D$22+'BP Financier'!$E$22+'BP Financier'!$F$22+'BP Financier'!$F$19+'BP Financier'!$F$16+'BP Financier'!$G$22+'BP Financier'!$G$19+'BP Financier'!$G$16))*$V9119*AA9119/(1-$W9119)","v":{"v":2689.5578975680937,"d":"2,690"}},{"$f":"'BP Financier'!$G$44*(('BP Financier'!$C$19+'BP Financier'!$D$19+'BP Financier'!$E$19+'BP Financier'!$F$19+'BP Financier'!$G$19)/('BP Financier'!$C$16+'BP Financier'!$C$19+'BP Financier'!$D$16+'BP Financier'!$D$19+'BP Financier'!$E$16+'BP Financier'!$E$19+'BP Financier'!$C$22+'BP Financier'!$D$22+'BP Financier'!$E$22+'BP Financier'!$F$22+'BP Financier'!$F$19+'BP Financier'!$F$16+'BP Financier'!$G$22+'BP Financier'!$G$19+'BP Financier'!$G$16))*$V9119*AB9119/(1-$W9119)","v":{"v":1287.3097629385745,"d":"1,287"}},null,{"v":1E-3,"d":"0.10%"},{"$f":"Actif!$E$28/100","v":{"v":0.28900000000000003,"d":"28.90%"}},{"$f":"Actif!$E$30/100","v":{"v":0.09050000000000001,"d":"9.05%"}},{"$f":"Actif!$E$31/100","v":{"v":0.0605,"d":"6.05%"}},{"$f":"Actif!$E$32/100","v":{"v":0.47350000000000003,"d":"47.35%"}},{"$f":"Actif!$E$33/100","v":{"v":0.0585,"d":"5.85%"}},{"$f":"Actif!$E$29/100","v":{"v":0.027999999999999997,"d":"2.80%"}}]
[null,"#4",18,2030,"H","A_PER",{"v":0.44999999999999996,"d":"0.45"},{"v":0.38999999999999996,"d":"0.39"},0.6,0.6,85,0,{"$f":"ROUND(Primes!$Q$7*V9120,0)","v":1},{"$f":"'BP Financier'!$G$33*(('BP Financier'!$C$19+'BP Financier'!$D$19+'BP Financier'!$E$19+'BP Financier'!$F$19+'BP Financier'!$G$19)/('BP Financier'!$C$16+'BP Financier'!$C$19+'BP Financier'!$D$16+'BP Financier'!$D$19+'BP Financier'!$E$16+'BP Financier'!$E$19+'BP Financier'!$F$16+'BP Financier'!$F$19+'BP Financier'!$G$16+'BP Financier'!$G$19))*V9120","v":{"v":56955.057223727745,"d":"56,955"}},{"v":32688.472908904525,"d":"32,688"},{"$f":"'BP Financier'!$G$44*(('BP Financier'!$C$19+'BP Financier'!$D$19+'BP Financier'!$E$19+'BP Financier'!$F$19+'BP Financier'!$G$19)/('BP Financier'!$C$16+'BP Financier'!$C$19+'BP Financier'!$D$16+'BP Financier'!$D$19+'BP Financier'!$E$16+'BP Financier'!$E$19+'BP Financier'!$C$22+'BP Financier'!$D$22+'BP Financier'!$E$22+'BP Financier'!$F$22+'BP Financier'!$F$19+'BP Financier'!$F$16+'BP Financier'!$G$22+'BP Financier'!$G$19+'BP Financier'!$G$16))*$V9120*X9120/(1-$W9120)","v":{"v":4160.769055212179,"d":"4,161"}},{"$f":"'BP Financier'!$G$44*(('BP Financier'!$C$19+'BP Financier'!$D$19+'BP Financier'!$E$19+'BP Financier'!$F$19+'BP Financier'!$G$19)/('BP Financier'!$C$16+'BP Financier'!$C$19+'BP Financier'!$D$16+'BP Financier'!$D$19+'BP Financier'!$E$16+'BP Financier'!$E$19+'BP Financier'!$C$22+'BP Financier'!$D$22+'BP Financier'!$E$22+'BP Financier'!$F$22+'BP Financier'!$F$19+'BP Financier'!$F$16+'BP Financier'!$G$22+'BP Financier'!$G$19+'BP Financier'!$G$16))*$V9120*Y9120/(1-$W9120)","v":{"v":2781.5085949208483,"d":"2,782"}},{"$f":"'BP Financier'!$G$44*(('BP Financier'!$C$19+'BP Financier'!$D$19+'BP Financier'!$E$19+'BP Financier'!$F$19+'BP Financier'!$G$19)/('BP Financier'!$C$16+'BP Financier'!$C$19+'BP Financier'!$D$16+'BP Financier'!$D$19+'BP Financier'!$E$16+'BP Financier'!$E$19+'BP Financier'!$C$22+'BP Financier'!$D$22+'BP Financier'!$E$22+'BP Financier'!$F$22+'BP Financier'!$F$19+'BP Financier'!$F$16+'BP Financier'!$G$22+'BP Financier'!$G$19+'BP Financier'!$G$16))*$V9120*Z9120/(1-$W9120)","v":{"v":21769.327598264827,"d":"21,769"}},{"$f":"'BP Financier'!$G$44*(('BP Financier'!$C$19+'BP Financier'!$D$19+'BP Financier'!$E$19+'BP Financier'!$F$19+'BP Financier'!$G$19)/('BP Financier'!$C$16+'BP Financier'!$C$19+'BP Financier'!$D$16+'BP Financier'!$D$19+'BP Financier'!$E$16+'BP Financier'!$E$19+'BP Financier'!$C$22+'BP Financier'!$D$22+'BP Financier'!$E$22+'BP Financier'!$F$22+'BP Financier'!$F$19+'BP Financier'!$F$16+'BP Financier'!$G$22+'BP Financier'!$G$19+'BP Financier'!$G$16))*$V9120*AA9120/(1-$W9120)","v":{"v":2689.5578975680937,"d":"2,690"}},{"$f":"'BP Financier'!$G$44*(('BP Financier'!$C$19+'BP Financier'!$D$19+'BP Financier'!$E$19+'BP Financier'!$F$19+'BP Financier'!$G$19)/('BP Financier'!$C$16+'BP Financier'!$C$19+'BP Financier'!$D$16+'BP Financier'!$D$19+'BP Financier'!$E$16+'BP Financier'!$E$19+'BP Financier'!$C$22+'BP Financier'!$D$22+'BP Financier'!$E$22+'BP Financier'!$F$22+'BP Financier'!$F$19+'BP Financier'!$F$16+'BP Financier'!$G$22+'BP Financier'!$G$19+'BP Financier'!$G$16))*$V9120*AB9120/(1-$W9120)","v":{"v":1287.3097629385745,"d":"1,287"}},null,{"v":1E-3,"d":"0.10%"},{"$f":"Actif!$E$28/100","v":{"v":0.28900000000000003,"d":"28.90%"}},{"$f":"Actif!$E$30/100","v":{"v":0.09050000000000001,"d":"9.05%"}},{"$f":"Actif!$E$31/100","v":{"v":0.0605,"d":"6.05%"}},{"$f":"Actif!$E$32/100","v":{"v":0.47350000000000003,"d":"47.35%"}},{"$f":"Actif!$E$33/100","v":{"v":0.0585,"d":"5.85%"}},{"$f":"Actif!$E$29/100","v":{"v":0.027999999999999997,"d":"2.80%"}}]
[null,"#5",18,2031,"H","A_PER",{"v":0.44999999999999996,"d":"0.45"},{"v":0.38999999999999996,"d":"0.39"},0.6,0.6,85,0,{"$f":"ROUND(Primes!$Q$7*V9121,0)","v":1},{"$f":"'BP Financier'!$G$33*(('BP Financier'!$C$19+'BP Financier'!$D$19+'BP Financier'!$E$19+'BP Financier'!$F$19+'BP Financier'!$G$19)/('BP Financier'!$C$16+'BP Financier'!$C$19+'BP Financier'!$D$16+'BP Financier'!$D$19+'BP Financier'!$E$16+'BP Financier'!$E$19+'BP Financier'!$F$16+'BP Financier'!$F$19+'BP Financier'!$G$16+'BP Financier'!$G$19))*V9121","v":{"v":56955.057223727745,"d":"56,955"}},{"v":32688.472908904525,"d":"32,688"},{"$f":"'BP Financier'!$G$44*(('BP Financier'!$C$19+'BP Financier'!$D$19+'BP Financier'!$E$19+'BP Financier'!$F$19+'BP Financier'!$G$19)/('BP Financier'!$C$16+'BP Financier'!$C$19+'BP Financier'!$D$16+'BP Financier'!$D$19+'BP Financier'!$E$16+'BP Financier'!$E$19+'BP Financier'!$C$22+'BP Financier'!$D$22+'BP Financier'!$E$22+'BP Financier'!$F$22+'BP Financier'!$F$19+'BP Financier'!$F$16+'BP Financier'!$G$22+'BP Financier'!$G$19+'BP Financier'!$G$16))*$V9121*X9121/(1-$W9121)","v":{"v":4160.769055212179,"d":"4,161"}},{"$f":"'BP Financier'!$G$44*(('BP Financier'!$C$19+'BP Financier'!$D$19+'BP Financier'!$E$19+'BP Financier'!$F$19+'BP Financier'!$G$19)/('BP Financier'!$C$16+'BP Financier'!$C$19+'BP Financier'!$D$16+'BP Financier'!$D$19+'BP Financier'!$E$16+'BP Financier'!$E$19+'BP Financier'!$C$22+'BP Financier'!$D$22+'BP Financier'!$E$22+'BP Financier'!$F$22+'BP Financier'!$F$19+'BP Financier'!$F$16+'BP Financier'!$G$22+'BP Financier'!$G$19+'BP Financier'!$G$16))*$V9121*Y9121/(1-$W9121)","v":{"v":2781.5085949208483,"d":"2,782"}},{"$f":"'BP Financier'!$G$44*(('BP Financier'!$C$19+'BP Financier'!$D$19+'BP Financier'!$E$19+'BP Financier'!$F$19+'BP Financier'!$G$19)/('BP Financier'!$C$16+'BP Financier'!$C$19+'BP Financier'!$D$16+'BP Financier'!$D$19+'BP Financier'!$E$16+'BP Financier'!$E$19+'BP Financier'!$C$22+'BP Financier'!$D$22+'BP Financier'!$E$22+'BP Financier'!$F$22+'BP Financier'!$F$19+'BP Financier'!$F$16+'BP Financier'!$G$22+'BP Financier'!$G$19+'BP Financier'!$G$16))*$V9121*Z9121/(1-$W9121)","v":{"v":21769.327598264827,"d":"21,769"}},{"$f":"'BP Financier'!$G$44*(('BP Financier'!$C$19+'BP Financier'!$D$19+'BP Financier'!$E$19+'BP Financier'!$F$19+'BP Financier'!$G$19)/('BP Financier'!$C$16+'BP Financier'!$C$19+'BP Financier'!$D$16+'BP Financier'!$D$19+'BP Financier'!$E$16+'BP Financier'!$E$19+'BP Financier'!$C$22+'BP Financier'!$D$22+'BP Financier'!$E$22+'BP Financier'!$F$22+'BP Financier'!$F$19+'BP Financier'!$F$16+'BP Financier'!$G$22+'BP Financier'!$G$19+'BP Financier'!$G$16))*$V9121*AA9121/(1-$W9121)","v":{"v":2689.5578975680937,"d":"2,690"}},{"$f":"'BP Financier'!$G$44*(('BP Financier'!$C$19+'BP Financier'!$D$19+'BP Financier'!$E$19+'BP Financier'!$F$19+'BP Financier'!$G$19)/('BP Financier'!$C$16+'BP Financier'!$C$19+'BP Financier'!$D$16+'BP Financier'!$D$19+'BP Financier'!$E$16+'BP Financier'!$E$19+'BP Financier'!$C$22+'BP Financier'!$D$22+'BP Financier'!$E$22+'BP Financier'!$F$22+'BP Financier'!$F$19+'BP Financier'!$F$16+'BP Financier'!$G$22+'BP Financier'!$G$19+'BP Financier'!$G$16))*$V9121*AB9121/(1-$W9121)","v":{"v":1287.3097629385745,"d":"1,287"}},null,{"v":1E-3,"d":"0.10%"},{"$f":"Actif!$E$28/100","v":{"v":0.28900000000000003,"d":"28.90%"}},{"$f":"Actif!$E$30/100","v":{"v":0.09050000000000001,"d":"9.05%"}},{"$f":"Actif!$E$31/100","v":{"v":0.0605,"d":"6.05%"}},{"$f":"Actif!$E$32/100","v":{"v":0.47350000000000003,"d":"47.35%"}},{"$f":"Actif!$E$33/100","v":{"v":0.0585,"d":"5.85%"}},{"$f":"Actif!$E$29/100","v":{"v":0.027999999999999997,"d":"2.80%"}}]
[null,"#6",19,2026,"H","A_PER",{"v":0.44999999999999996,"d":"0.45"},{"v":0.38999999999999996,"d":"0.39"},0.6,0.6,85,0,{"$f":"ROUND(Primes!$Q$7*V9122,0)","v":1},{"$f":"'BP Financier'!$G$33*(('BP Financier'!$C$19+'BP Financier'!$D$19+'BP Financier'!$E$19+'BP Financier'!$F$19+'BP Financier'!$G$19)/('BP Financier'!$C$16+'BP Financier'!$C$19+'BP Financier'!$D$16+'BP Financier'!$D$19+'BP Financier'!$E$16+'BP Financier'!$E$19+'BP Financier'!$F$16+'BP Financier'!$F$19+'BP Financier'!$G$16+'BP Financier'!$G$19))*V9122","v":{"v":56955.057223727745,"d":"56,955"}},{"v":32688.472908904525,"d":"32,688"},{"$f":"'BP Financier'!$G$44*(('BP Financier'!$C$19+'BP Financier'!$D$19+'BP Financier'!$E$19+'BP Financier'!$F$19+'BP Financier'!$G$19)/('BP Financier'!$C$16+'BP Financier'!$C$19+'BP Financier'!$D$16+'BP Financier'!$D$19+'BP Financier'!$E$16+'BP Financier'!$E$19+'BP Financier'!$C$22+'BP Financier'!$D$22+'BP Financier'!$E$22+'BP Financier'!$F$22+'BP Financier'!$F$19+'BP Financier'!$F$16+'BP Financier'!$G$22+'BP Financier'!$G$19+'BP Financier'!$G$16))*$V9122*X9122/(1-$W9122)","v":{"v":4160.769055212179,"d":"4,161"}},{"$f":"'BP Financier'!$G$44*(('BP Financier'!$C$19+'BP Financier'!$D$19+'BP Financier'!$E$19+'BP Financier'!$F$19+'BP Financier'!$G$19)/('BP Financier'!$C$16+'BP Financier'!$C$19+'BP Financier'!$D$16+'BP Financier'!$D$19+'BP Financier'!$E$16+'BP Financier'!$E$19+'BP Financier'!$C$22+'BP Financier'!$D$22+'BP Financier'!$E$22+'BP Financier'!$F$22+'BP Financier'!$F$19+'BP Financier'!$F$16+'BP Financier'!$G$22+'BP Financier'!$G$19+'BP Financier'!$G$16))*$V9122*Y9122/(1-$W9122)","v":{"v":2781.5085949208483,"d":"2,782"}},{"$f":"'BP Financier'!$G$44*(('BP Financier'!$C$19+'BP Financier'!$D$19+'BP Financier'!$E$19+'BP Financier'!$F$19+'BP Financier'!$G$19)/('BP Financier'!$C$16+'BP Financier'!$C$19+'BP Financier'!$D$16+'BP Financier'!$D$19+'BP Financier'!$E$16+'BP Financier'!$E$19+'BP Financier'!$C$22+'BP Financier'!$D$22+'BP Financier'!$E$22+'BP Financier'!$F$22+'BP Financier'!$F$19+'BP Financier'!$F$16+'BP Financier'!$G$22+'BP Financier'!$G$19+'BP Financier'!$G$16))*$V9122*Z9122/(1-$W9122)","v":{"v":21769.327598264827,"d":"21,769"}},{"$f":"'BP Financier'!$G$44*(('BP Financier'!$C$19+'BP Financier'!$D$19+'BP Financier'!$E$19+'BP Financier'!$F$19+'BP Financier'!$G$19)/('BP Financier'!$C$16+'BP Financier'!$C$19+'BP Financier'!$D$16+'BP Financier'!$D$19+'BP Financier'!$E$16+'BP Financier'!$E$19+'BP Financier'!$C$22+'BP Financier'!$D$22+'BP Financier'!$E$22+'BP Financier'!$F$22+'BP Financier'!$F$19+'BP Financier'!$F$16+'BP Financier'!$G$22+'BP Financier'!$G$19+'BP Financier'!$G$16))*$V9122*AA9122/(1-$W9122)","v":{"v":2689.5578975680937,"d":"2,690"}},{"$f":"'BP Financier'!$G$44*(('BP Financier'!$C$19+'BP Financier'!$D$19+'BP Financier'!$E$19+'BP Financier'!$F$19+'BP Financier'!$G$19)/('BP Financier'!$C$16+'BP Financier'!$C$19+'BP Financier'!$D$16+'BP Financier'!$D$19+'BP Financier'!$E$16+'BP Financier'!$E$19+'BP Financier'!$C$22+'BP Financier'!$D$22+'BP Financier'!$E$22+'BP Financier'!$F$22+'BP Financier'!$F$19+'BP Financier'!$F$16+'BP Financier'!$G$22+'BP Financier'!$G$19+'BP Financier'!$G$16))*$V9122*AB9122/(1-$W9122)","v":{"v":1287.3097629385745,"d":"1,287"}},null,{"v":1E-3,"d":"0.10%"},{"$f":"Actif!$E$28/100","v":{"v":0.28900000000000003,"d":"28.90%"}},{"$f":"Actif!$E$30/100","v":{"v":0.09050000000000001,"d":"9.05%"}},{"$f":"Actif!$E$31/100","v":{"v":0.0605,"d":"6.05%"}},{"$f":"Actif!$E$32/100","v":{"v":0.47350000000000003,"d":"47.35%"}},{"$f":"Actif!$E$33/100","v":{"v":0.0585,"d":"5.85%"}},{"$f":"Actif!$E$29/100","v":{"v":0.027999999999999997,"d":"2.80%"}}]
[null,"#7",19,2028,"H","A_PER",{"v":0.44999999999999996,"d":"0.45"},{"v":0.38999999999999996,"d":"0.39"},0.6,0.6,85,0,{"$f":"ROUND(Primes!$Q$7*V9123,0)","v":1},{"$f":"'BP Financier'!$G$33*(('BP Financier'!$C$19+'BP Financier'!$D$19+'BP Financier'!$E$19+'BP Financier'!$F$19+'BP Financier'!$G$19)/('BP Financier'!$C$16+'BP Financier'!$C$19+'BP Financier'!$D$16+'BP Financier'!$D$19+'BP Financier'!$E$16+'BP Financier'!$E$19+'BP Financier'!$F$16+'BP Financier'!$F$19+'BP Financier'!$G$16+'BP Financier'!$G$19))*V9123","v":{"v":56955.057223727745,"d":"56,955"}},{"v":32688.472908904525,"d":"32,688"},{"$f":"'BP Financier'!$G$44*(('BP Financier'!$C$19+'BP Financier'!$D$19+'BP Financier'!$E$19+'BP Financier'!$F$19+'BP Financier'!$G$19)/('BP Financier'!$C$16+'BP Financier'!$C$19+'BP Financier'!$D$16+'BP Financier'!$D$19+'BP Financier'!$E$16+'BP Financier'!$E$19+'BP Financier'!$C$22+'BP Financier'!$D$22+'BP Financier'!$E$22+'BP Financier'!$F$22+'BP Financier'!$F$19+'BP Financier'!$F$16+'BP Financier'!$G$22+'BP Financier'!$G$19+'BP Financier'!$G$16))*$V9123*X9123/(1-$W9123)","v":{"v":4160.769055212179,"d":"4,161"}},{"$f":"'BP Financier'!$G$44*(('BP Financier'!$C$19+'BP Financier'!$D$19+'BP Financier'!$E$19+'BP Financier'!$F$19+'BP Financier'!$G$19)/('BP Financier'!$C$16+'BP Financier'!$C$19+'BP Financier'!$D$16+'BP Financier'!$D$19+'BP Financier'!$E$16+'BP Financier'!$E$19+'BP Financier'!$C$22+'BP Financier'!$D$22+'BP Financier'!$E$22+'BP Financier'!$F$22+'BP Financier'!$F$19+'BP Financier'!$F$16+'BP Financier'!$G$22+'BP Financier'!$G$19+'BP Financier'!$G$16))*$V9123*Y9123/(1-$W9123)","v":{"v":2781.5085949208483,"d":"2,782"}},{"$f":"'BP Financier'!$G$44*(('BP Financier'!$C$19+'BP Financier'!$D$19+'BP Financier'!$E$19+'BP Financier'!$F$19+'BP Financier'!$G$19)/('BP Financier'!$C$16+'BP Financier'!$C$19+'BP Financier'!$D$16+'BP Financier'!$D$19+'BP Financier'!$E$16+'BP Financier'!$E$19+'BP Financier'!$C$22+'BP Financier'!$D$22+'BP Financier'!$E$22+'BP Financier'!$F$22+'BP Financier'!$F$19+'BP Financier'!$F$16+'BP Financier'!$G$22+'BP Financier'!$G$19+'BP Financier'!$G$16))*$V9123*Z9123/(1-$W9123)","v":{"v":21769.327598264827,"d":"21,769"}},{"$f":"'BP Financier'!$G$44*(('BP Financier'!$C$19+'BP Financier'!$D$19+'BP Financier'!$E$19+'BP Financier'!$F$19+'BP Financier'!$G$19)/('BP Financier'!$C$16+'BP Financier'!$C$19+'BP Financier'!$D$16+'BP Financier'!$D$19+'BP Financier'!$E$16+'BP Financier'!$E$19+'BP Financier'!$C$22+'BP Financier'!$D$22+'BP Financier'!$E$22+'BP Financier'!$F$22+'BP Financier'!$F$19+'BP Financier'!$F$16+'BP Financier'!$G$22+'BP Financier'!$G$19+'BP Financier'!$G$16))*$V9123*AA9123/(1-$W9123)","v":{"v":2689.5578975680937,"d":"2,690"}},{"$f":"'BP Financier'!$G$44*(('BP Financier'!$C$19+'BP Financier'!$D$19+'BP Financier'!$E$19+'BP Financier'!$F$19+'BP Financier'!$G$19)/('BP Financier'!$C$16+'BP Financier'!$C$19+'BP Financier'!$D$16+'BP Financier'!$D$19+'BP Financier'!$E$16+'BP Financier'!$E$19+'BP Financier'!$C$22+'BP Financier'!$D$22+'BP Financier'!$E$22+'BP Financier'!$F$22+'BP Financier'!$F$19+'BP Financier'!$F$16+'BP Financier'!$G$22+'BP Financier'!$G$19+'BP Financier'!$G$16))*$V9123*AB9123/(1-$W9123)","v":{"v":1287.3097629385745,"d":"1,287"}},null,{"v":1E-3,"d":"0.10%"},{"$f":"Actif!$E$28/100","v":{"v":0.28900000000000003,"d":"28.90%"}},{"$f":"Actif!$E$30/100","v":{"v":0.09050000000000001,"d":"9.05%"}},{"$f":"Actif!$E$31/100","v":{"v":0.0605,"d":"6.05%"}},{"$f":"Actif!$E$32/100","v":{"v":0.47350000000000003,"d":"47.35%"}},{"$f":"Actif!$E$33/100","v":{"v":0.0585,"d":"5.85%"}},{"$f":"Actif!$E$29/100","v":{"v":0.027999999999999997,"d":"2.80%"}}]
[null,"#8",19,2029,"H","A_PER",{"v":0.44999999999999996,"d":"0.45"},{"v":0.38999999999999996,"d":"0.39"},0.6,0.6,85,0,{"$f":"ROUND(Primes!$Q$7*V9124,0)","v":1},{"$f":"'BP Financier'!$G$33*(('BP Financier'!$C$19+'BP Financier'!$D$19+'BP Financier'!$E$19+'BP Financier'!$F$19+'BP Financier'!$G$19)/('BP Financier'!$C$16+'BP Financier'!$C$19+'BP Financier'!$D$16+'BP Financier'!$D$19+'BP Financier'!$E$16+'BP Financier'!$E$19+'BP Financier'!$F$16+'BP Financier'!$F$19+'BP Financier'!$G$16+'BP Financier'!$G$19))*V9124","v":{"v":56955.057223727745,"d":"56,955"}},{"v":32688.472908904525,"d":"32,688"},{"$f":"'BP Financier'!$G$44*(('BP Financier'!$C$19+'BP Financier'!$D$19+'BP Financier'!$E$19+'BP Financier'!$F$19+'BP Financier'!$G$19)/('BP Financier'!$C$16+'BP Financier'!$C$19+'BP Financier'!$D$16+'BP Financier'!$D$19+'BP Financier'!$E$16+'BP Financier'!$E$19+'BP Financier'!$C$22+'BP Financier'!$D$22+'BP Financier'!$E$22+'BP Financier'!$F$22+'BP Financier'!$F$19+'BP Financier'!$F$16+'BP Financier'!$G$22+'BP Financier'!$G$19+'BP Financier'!$G$16))*$V9124*X9124/(1-$W9124)","v":{"v":4160.769055212179,"d":"4,161"}},{"$f":"'BP Financier'!$G$44*(('BP Financier'!$C$19+'BP Financier'!$D$19+'BP Financier'!$E$19+'BP Financier'!$F$19+'BP Financier'!$G$19)/('BP Financier'!$C$16+'BP Financier'!$C$19+'BP Financier'!$D$16+'BP Financier'!$D$19+'BP Financier'!$E$16+'BP Financier'!$E$19+'BP Financier'!$C$22+'BP Financier'!$D$22+'BP Financier'!$E$22+'BP Financier'!$F$22+'BP Financier'!$F$19+'BP Financier'!$F$16+'BP Financier'!$G$22+'BP Financier'!$G$19+'BP Financier'!$G$16))*$V9124*Y9124/(1-$W9124)","v":{"v":2781.5085949208483,"d":"2,782"}},{"$f":"'BP Financier'!$G$44*(('BP Financier'!$C$19+'BP Financier'!$D$19+'BP Financier'!$E$19+'BP Financier'!$F$19+'BP Financier'!$G$19)/('BP Financier'!$C$16+'BP Financier'!$C$19+'BP Financier'!$D$16+'BP Financier'!$D$19+'BP Financier'!$E$16+'BP Financier'!$E$19+'BP Financier'!$C$22+'BP Financier'!$D$22+'BP Financier'!$E$22+'BP Financier'!$F$22+'BP Financier'!$F$19+'BP Financier'!$F$16+'BP Financier'!$G$22+'BP Financier'!$G$19+'BP Financier'!$G$16))*$V9124*Z9124/(1-$W9124)","v":{"v":21769.327598264827,"d":"21,769"}},{"$f":"'BP Financier'!$G$44*(('BP Financier'!$C$19+'BP Financier'!$D$19+'BP Financier'!$E$19+'BP Financier'!$F$19+'BP Financier'!$G$19)/('BP Financier'!$C$16+'BP Financier'!$C$19+'BP Financier'!$D$16+'BP Financier'!$D$19+'BP Financier'!$E$16+'BP Financier'!$E$19+'BP Financier'!$C$22+'BP Financier'!$D$22+'BP Financier'!$E$22+'BP Financier'!$F$22+'BP Financier'!$F$19+'BP Financier'!$F$16+'BP Financier'!$G$22+'BP Financier'!$G$19+'BP Financier'!$G$16))*$V9124*AA9124/(1-$W9124)","v":{"v":2689.5578975680937,"d":"2,690"}},{"$f":"'BP Financier'!$G$44*(('BP Financier'!$C$19+'BP Financier'!$D$19+'BP Financier'!$E$19+'BP Financier'!$F$19+'BP Financier'!$G$19)/('BP Financier'!$C$16+'BP Financier'!$C$19+'BP Financier'!$D$16+'BP Financier'!$D$19+'BP Financier'!$E$16+'BP Financier'!$E$19+'BP Financier'!$C$22+'BP Financier'!$D$22+'BP Financier'!$E$22+'BP Financier'!$F$22+'BP Financier'!$F$19+'BP Financier'!$F$16+'BP Financier'!$G$22+'BP Financier'!$G$19+'BP Financier'!$G$16))*$V9124*AB9124/(1-$W9124)","v":{"v":1287.3097629385745,"d":"1,287"}},null,{"v":1E-3,"d":"0.10%"},{"$f":"Actif!$E$28/100","v":{"v":0.28900000000000003,"d":"28.90%"}},{"$f":"Actif!$E$30/100","v":{"v":0.09050000000000001,"d":"9.05%"}},{"$f":"Actif!$E$31/100","v":{"v":0.0605,"d":"6.05%"}},{"$f":"Actif!$E$32/100","v":{"v":0.47350000000000003,"d":"47.35%"}},{"$f":"Actif!$E$33/100","v":{"v":0.0585,"d":"5.85%"}},{"$f":"Actif!$E$29/100","v":{"v":0.027999999999999997,"d":"2.80%"}}]
[null,"#9",19,2030,"H","A_PER",{"v":0.44999999999999996,"d":"0.45"},{"v":0.38999999999999996,"d":"0.39"},0.6,0.6,85,0,{"$f":"ROUND(Primes!$Q$7*V9125,0)","v":1},{"$f":"'BP Financier'!$G$33*(('BP Financier'!$C$19+'BP Financier'!$D$19+'BP Financier'!$E$19+'BP Financier'!$F$19+'BP Financier'!$G$19)/('BP Financier'!$C$16+'BP Financier'!$C$19+'BP Financier'!$D$16+'BP Financier'!$D$19+'BP Financier'!$E$16+'BP Financier'!$E$19+'BP Financier'!$F$16+'BP Financier'!$F$19+'BP Financier'!$G$16+'BP Financier'!$G$19))*V9125","v":{"v":56955.057223727745,"d":"56,955"}},{"v":32688.472908904525,"d":"32,688"},{"$f":"'BP Financier'!$G$44*(('BP Financier'!$C$19+'BP Financier'!$D$19+'BP Financier'!$E$19+'BP Financier'!$F$19+'BP Financier'!$G$19)/('BP Financier'!$C$16+'BP Financier'!$C$19+'BP Financier'!$D$16+'BP Financier'!$D$19+'BP Financier'!$E$16+'BP Financier'!$E$19+'BP Financier'!$C$22+'BP Financier'!$D$22+'BP Financier'!$E$22+'BP Financier'!$F$22+'BP Financier'!$F$19+'BP Financier'!$F$16+'BP Financier'!$G$22+'BP Financier'!$G$19+'BP Financier'!$G$16))*$V9125*X9125/(1-$W9125)","v":{"v":4160.769055212179,"d":"4,161"}},{"$f":"'BP Financier'!$G$44*(('BP Financier'!$C$19+'BP Financier'!$D$19+'BP Financier'!$E$19+'BP Financier'!$F$19+'BP Financier'!$G$19)/('BP Financier'!$C$16+'BP Financier'!$C$19+'BP Financier'!$D$16+'BP Financier'!$D$19+'BP Financier'!$E$16+'BP Financier'!$E$19+'BP Financier'!$C$22+'BP Financier'!$D$22+'BP Financier'!$E$22+'BP Financier'!$F$22+'BP Financier'!$F$19+'BP Financier'!$F$16+'BP Financier'!$G$22+'BP Financier'!$G$19+'BP Financier'!$G$16))*$V9125*Y9125/(1-$W9125)","v":{"v":2781.5085949208483,"d":"2,782"}},{"$f":"'BP Financier'!$G$44*(('BP Financier'!$C$19+'BP Financier'!$D$19+'BP Financier'!$E$19+'BP Financier'!$F$19+'BP Financier'!$G$19)/('BP Financier'!$C$16+'BP Financier'!$C$19+'BP Financier'!$D$16+'BP Financier'!$D$19+'BP Financier'!$E$16+'BP Financier'!$E$19+'BP Financier'!$C$22+'BP Financier'!$D$22+'BP Financier'!$E$22+'BP Financier'!$F$22+'BP Financier'!$F$19+'BP Financier'!$F$16+'BP Financier'!$G$22+'BP Financier'!$G$19+'BP Financier'!$G$16))*$V9125*Z9125/(1-$W9125)","v":{"v":21769.327598264827,"d":"21,769"}},{"$f":"'BP Financier'!$G$44*(('BP Financier'!$C$19+'BP Financier'!$D$19+'BP Financier'!$E$19+'BP Financier'!$F$19+'BP Financier'!$G$19)/('BP Financier'!$C$16+'BP Financier'!$C$19+'BP Financier'!$D$16+'BP Financier'!$D$19+'BP Financier'!$E$16+'BP Financier'!$E$19+'BP Financier'!$C$22+'BP Financier'!$D$22+'BP Financier'!$E$22+'BP Financier'!$F$22+'BP Financier'!$F$19+'BP Financier'!$F$16+'BP Financier'!$G$22+'BP Financier'!$G$19+'BP Financier'!$G$16))*$V9125*AA9125/(1-$W9125)","v":{"v":2689.5578975680937,"d":"2,690"}},{"$f":"'BP Financier'!$G$44*(('BP Financier'!$C$19+'BP Financier'!$D$19+'BP Financier'!$E$19+'BP Financier'!$F$19+'BP Financier'!$G$19)/('BP Financier'!$C$16+'BP Financier'!$C$19+'BP Financier'!$D$16+'BP Financier'!$D$19+'BP Financier'!$E$16+'BP Financier'!$E$19+'BP Financier'!$C$22+'BP Financier'!$D$22+'BP Financier'!$E$22+'BP Financier'!$F$22+'BP Financier'!$F$19+'BP Financier'!$F$16+'BP Financier'!$G$22+'BP Financier'!$G$19+'BP Financier'!$G$16))*$V9125*AB9125/(1-$W9125)","v":{"v":1287.3097629385745,"d":"1,287"}},null,{"v":1E-3,"d":"0.10%"},{"$f":"Actif!$E$28/100","v":{"v":0.28900000000000003,"d":"28.90%"}},{"$f":"Actif!$E$30/100","v":{"v":0.09050000000000001,"d":"9.05%"}},{"$f":"Actif!$E$31/100","v":{"v":0.0605,"d":"6.05%"}},{"$f":"Actif!$E$32/100","v":{"v":0.47350000000000003,"d":"47.35%"}},{"$f":"Actif!$E$33/100","v":{"v":0.0585,"d":"5.85%"}},{"$f":"Actif!$E$29/100","v":{"v":0.027999999999999997,"d":"2.80%"}}]
[null,"#10",19,2031,"H","A_PER",{"v":0.44999999999999996,"d":"0.45"},{"v":0.38999999999999996,"d":"0.39"},0.6,0.6,85,0,{"$f":"ROUND(Primes!$Q$7*V9126,0)","v":1},{"$f":"'BP Financier'!$G$33*(('BP Financier'!$C$19+'BP Financier'!$D$19+'BP Financier'!$E$19+'BP Financier'!$F$19+'BP Financier'!$G$19)/('BP Financier'!$C$16+'BP Financier'!$C$19+'BP Financier'!$D$16+'BP Financier'!$D$19+'BP Financier'!$E$16+'BP Financier'!$E$19+'BP Financier'!$F$16+'BP Financier'!$F$19+'BP Financier'!$G$16+'BP Financier'!$G$19))*V9126","v":{"v":56955.057223727745,"d":"56,955"}},{"v":32688.472908904525,"d":"32,688"},{"$f":"'BP Financier'!$G$44*(('BP Financier'!$C$19+'BP Financier'!$D$19+'BP Financier'!$E$19+'BP Financier'!$F$19+'BP Financier'!$G$19)/('BP Financier'!$C$16+'BP Financier'!$C$19+'BP Financier'!$D$16+'BP Financier'!$D$19+'BP Financier'!$E$16+'BP Financier'!$E$19+'BP Financier'!$C$22+'BP Financier'!$D$22+'BP Financier'!$E$22+'BP Financier'!$F$22+'BP Financier'!$F$19+'BP Financier'!$F$16+'BP Financier'!$G$22+'BP Financier'!$G$19+'BP Financier'!$G$16))*$V9126*X9126/(1-$W9126)","v":{"v":4160.769055212179,"d":"4,161"}},{"$f":"'BP Financier'!$G$44*(('BP Financier'!$C$19+'BP Financier'!$D$19+'BP Financier'!$E$19+'BP Financier'!$F$19+'BP Financier'!$G$19)/('BP Financier'!$C$16+'BP Financier'!$C$19+'BP Financier'!$D$16+'BP Financier'!$D$19+'BP Financier'!$E$16+'BP Financier'!$E$19+'BP Financier'!$C$22+'BP Financier'!$D$22+'BP Financier'!$E$22+'BP Financier'!$F$22+'BP Financier'!$F$19+'BP Financier'!$F$16+'BP Financier'!$G$22+'BP Financier'!$G$19+'BP Financier'!$G$16))*$V9126*Y9126/(1-$W9126)","v":{"v":2781.5085949208483,"d":"2,782"}},{"$f":"'BP Financier'!$G$44*(('BP Financier'!$C$19+'BP Financier'!$D$19+'BP Financier'!$E$19+'BP Financier'!$F$19+'BP Financier'!$G$19)/('BP Financier'!$C$16+'BP Financier'!$C$19+'BP Financier'!$D$16+'BP Financier'!$D$19+'BP Financier'!$E$16+'BP Financier'!$E$19+'BP Financier'!$C$22+'BP Financier'!$D$22+'BP Financier'!$E$22+'BP Financier'!$F$22+'BP Financier'!$F$19+'BP Financier'!$F$16+'BP Financier'!$G$22+'BP Financier'!$G$19+'BP Financier'!$G$16))*$V9126*Z9126/(1-$W9126)","v":{"v":21769.327598264827,"d":"21,769"}},{"$f":"'BP Financier'!$G$44*(('BP Financier'!$C$19+'BP Financier'!$D$19+'BP Financier'!$E$19+'BP Financier'!$F$19+'BP Financier'!$G$19)/('BP Financier'!$C$16+'BP Financier'!$C$19+'BP Financier'!$D$16+'BP Financier'!$D$19+'BP Financier'!$E$16+'BP Financier'!$E$19+'BP Financier'!$C$22+'BP Financier'!$D$22+'BP Financier'!$E$22+'BP Financier'!$F$22+'BP Financier'!$F$19+'BP Financier'!$F$16+'BP Financier'!$G$22+'BP Financier'!$G$19+'BP Financier'!$G$16))*$V9126*AA9126/(1-$W9126)","v":{"v":2689.5578975680937,"d":"2,690"}},{"$f":"'BP Financier'!$G$44*(('BP Financier'!$C$19+'BP Financier'!$D$19+'BP Financier'!$E$19+'BP Financier'!$F$19+'BP Financier'!$G$19)/('BP Financier'!$C$16+'BP Financier'!$C$19+'BP Financier'!$D$16+'BP Financier'!$D$19+'BP Financier'!$E$16+'BP Financier'!$E$19+'BP Financier'!$C$22+'BP Financier'!$D$22+'BP Financier'!$E$22+'BP Financier'!$F$22+'BP Financier'!$F$19+'BP Financier'!$F$16+'BP Financier'!$G$22+'BP Financier'!$G$19+'BP Financier'!$G$16))*$V9126*AB9126/(1-$W9126)","v":{"v":1287.3097629385745,"d":"1,287"}},null,{"v":1E-3,"d":"0.10%"},{"$f":"Actif!$E$28/100","v":{"v":0.28900000000000003,"d":"28.90%"}},{"$f":"Actif!$E$30/100","v":{"v":0.09050000000000001,"d":"9.05%"}},{"$f":"Actif!$E$31/100","v":{"v":0.0605,"d":"6.05%"}},{"$f":"Actif!$E$32/100","v":{"v":0.47350000000000003,"d":"47.35%"}},{"$f":"Actif!$E$33/100","v":{"v":0.0585,"d":"5.85%"}},{"$f":"Actif!$E$29/100","v":{"v":0.027999999999999997,"d":"2.80%"}}]
[null,"#11",20,2026,"F","A_PER",{"v":0.44999999999999996,"d":"0.45"},{"v":0.38999999999999996,"d":"0.39"},0.6,0.6,85,0,{"$f":"ROUND(Primes!$Q$7*V9127,0)","v":1},{"$f":"'BP Financier'!$G$33*(('BP Financier'!$C$19+'BP Financier'!$D$19+'BP Financier'!$E$19+'BP Financier'!$F$19+'BP Financier'!$G$19)/('BP Financier'!$C$16+'BP Financier'!$C$19+'BP Financier'!$D$16+'BP Financier'!$D$19+'BP Financier'!$E$16+'BP Financier'!$E$19+'BP Financier'!$F$16+'BP Financier'!$F$19+'BP Financier'!$G$16+'BP Financier'!$G$19))*V9127","v":{"v":56955.057223727745,"d":"56,955"}},{"v":32688.472908904525,"d":"32,688"},{"$f":"'BP Financier'!$G$44*(('BP Financier'!$C$19+'BP Financier'!$D$19+'BP Financier'!$E$19+'BP Financier'!$F$19+'BP Financier'!$G$19)/('BP Financier'!$C$16+'BP Financier'!$C$19+'BP Financier'!$D$16+'BP Financier'!$D$19+'BP Financier'!$E$16+'BP Financier'!$E$19+'BP Financier'!$C$22+'BP Financier'!$D$22+'BP Financier'!$E$22+'BP Financier'!$F$22+'BP Financier'!$F$19+'BP Financier'!$F$16+'BP Financier'!$G$22+'BP Financier'!$G$19+'BP Financier'!$G$16))*$V9127*X9127/(1-$W9127)","v":{"v":4160.769055212179,"d":"4,161"}},{"$f":"'BP Financier'!$G$44*(('BP Financier'!$C$19+'BP Financier'!$D$19+'BP Financier'!$E$19+'BP Financier'!$F$19+'BP Financier'!$G$19)/('BP Financier'!$C$16+'BP Financier'!$C$19+'BP Financier'!$D$16+'BP Financier'!$D$19+'BP Financier'!$E$16+'BP Financier'!$E$19+'BP Financier'!$C$22+'BP Financier'!$D$22+'BP Financier'!$E$22+'BP Financier'!$F$22+'BP Financier'!$F$19+'BP Financier'!$F$16+'BP Financier'!$G$22+'BP Financier'!$G$19+'BP Financier'!$G$16))*$V9127*Y9127/(1-$W9127)","v":{"v":2781.5085949208483,"d":"2,782"}},{"$f":"'BP Financier'!$G$44*(('BP Financier'!$C$19+'BP Financier'!$D$19+'BP Financier'!$E$19+'BP Financier'!$F$19+'BP Financier'!$G$19)/('BP Financier'!$C$16+'BP Financier'!$C$19+'BP Financier'!$D$16+'BP Financier'!$D$19+'BP Financier'!$E$16+'BP Financier'!$E$19+'BP Financier'!$C$22+'BP Financier'!$D$22+'BP Financier'!$E$22+'BP Financier'!$F$22+'BP Financier'!$F$19+'BP Financier'!$F$16+'BP Financier'!$G$22+'BP Financier'!$G$19+'BP Financier'!$G$16))*$V9127*Z9127/(1-$W9127)","v":{"v":21769.327598264827,"d":"21,769"}},{"$f":"'BP Financier'!$G$44*(('BP Financier'!$C$19+'BP Financier'!$D$19+'BP Financier'!$E$19+'BP Financier'!$F$19+'BP Financier'!$G$19)/('BP Financier'!$C$16+'BP Financier'!$C$19+'BP Financier'!$D$16+'BP Financier'!$D$19+'BP Financier'!$E$16+'BP Financier'!$E$19+'BP Financier'!$C$22+'BP Financier'!$D$22+'BP Financier'!$E$22+'BP Financier'!$F$22+'BP Financier'!$F$19+'BP Financier'!$F$16+'BP Financier'!$G$22+'BP Financier'!$G$19+'BP Financier'!$G$16))*$V9127*AA9127/(1-$W9127)","v":{"v":2689.5578975680937,"d":"2,690"}},{"$f":"'BP Financier'!$G$44*(('BP Financier'!$C$19+'BP Financier'!$D$19+'BP Financier'!$E$19+'BP Financier'!$F$19+'BP Financier'!$G$19)/('BP Financier'!$C$16+'BP Financier'!$C$19+'BP Financier'!$D$16+'BP Financier'!$D$19+'BP Financier'!$E$16+'BP Financier'!$E$19+'BP Financier'!$C$22+'BP Financier'!$D$22+'BP Financier'!$E$22+'BP Financier'!$F$22+'BP Financier'!$F$19+'BP Financier'!$F$16+'BP Financier'!$G$22+'BP Financier'!$G$19+'BP Financier'!$G$16))*$V9127*AB9127/(1-$W9127)","v":{"v":1287.3097629385745,"d":"1,287"}},null,{"v":1E-3,"d":"0.10%"},{"$f":"Actif!$E$28/100","v":{"v":0.28900000000000003,"d":"28.90%"}},{"$f":"Actif!$E$30/100","v":{"v":0.09050000000000001,"d":"9.05%"}},{"$f":"Actif!$E$31/100","v":{"v":0.0605,"d":"6.05%"}},{"$f":"Actif!$E$32/100","v":{"v":0.47350000000000003,"d":"47.35%"}},{"$f":"Actif!$E$33/100","v":{"v":0.0585,"d":"5.85%"}},{"$f":"Actif!$E$29/100","v":{"v":0.027999999999999997,"d":"2.80%"}}]
[null,"#12",20,2028,"F","A_PER",{"v":0.44999999999999996,"d":"0.45"},{"v":0.38999999999999996,"d":"0.39"},0.6,0.6,85,0,{"$f":"ROUND(Primes!$Q$7*V9128,0)","v":1},{"$f":"'BP Financier'!$G$33*(('BP Financier'!$C$19+'BP Financier'!$D$19+'BP Financier'!$E$19+'BP Financier'!$F$19+'BP Financier'!$G$19)/('BP Financier'!$C$16+'BP Financier'!$C$19+'BP Financier'!$D$16+'BP Financier'!$D$19+'BP Financier'!$E$16+'BP Financier'!$E$19+'BP Financier'!$F$16+'BP Financier'!$F$19+'BP Financier'!$G$16+'BP Financier'!$G$19))*V9128","v":{"v":56955.057223727745,"d":"56,955"}},{"v":32688.472908904525,"d":"32,688"},{"$f":"'BP Financier'!$G$44*(('BP Financier'!$C$19+'BP Financier'!$D$19+'BP Financier'!$E$19+'BP Financier'!$F$19+'BP Financier'!$G$19)/('BP Financier'!$C$16+'BP Financier'!$C$19+'BP Financier'!$D$16+'BP Financier'!$D$19+'BP Financier'!$E$16+'BP Financier'!$E$19+'BP Financier'!$C$22+'BP Financier'!$D$22+'BP Financier'!$E$22+'BP Financier'!$F$22+'BP Financier'!$F$19+'BP Financier'!$F$16+'BP Financier'!$G$22+'BP Financier'!$G$19+'BP Financier'!$G$16))*$V9128*X9128/(1-$W9128)","v":{"v":4160.769055212179,"d":"4,161"}},{"$f":"'BP Financier'!$G$44*(('BP Financier'!$C$19+'BP Financier'!$D$19+'BP Financier'!$E$19+'BP Financier'!$F$19+'BP Financier'!$G$19)/('BP Financier'!$C$16+'BP Financier'!$C$19+'BP Financier'!$D$16+'BP Financier'!$D$19+'BP Financier'!$E$16+'BP Financier'!$E$19+'BP Financier'!$C$22+'BP Financier'!$D$22+'BP Financier'!$E$22+'BP Financier'!$F$22+'BP Financier'!$F$19+'BP Financier'!$F$16+'BP Financier'!$G$22+'BP Financier'!$G$19+'BP Financier'!$G$16))*$V9128*Y9128/(1-$W9128)","v":{"v":2781.5085949208483,"d":"2,782"}},{"$f":"'BP Financier'!$G$44*(('BP Financier'!$C$19+'BP Financier'!$D$19+'BP Financier'!$E$19+'BP Financier'!$F$19+'BP Financier'!$G$19)/('BP Financier'!$C$16+'BP Financier'!$C$19+'BP Financier'!$D$16+'BP Financier'!$D$19+'BP Financier'!$E$16+'BP Financier'!$E$19+'BP Financier'!$C$22+'BP Financier'!$D$22+'BP Financier'!$E$22+'BP Financier'!$F$22+'BP Financier'!$F$19+'BP Financier'!$F$16+'BP Financier'!$G$22+'BP Financier'!$G$19+'BP Financier'!$G$16))*$V9128*Z9128/(1-$W9128)","v":{"v":21769.327598264827,"d":"21,769"}},{"$f":"'BP Financier'!$G$44*(('BP Financier'!$C$19+'BP Financier'!$D$19+'BP Financier'!$E$19+'BP Financier'!$F$19+'BP Financier'!$G$19)/('BP Financier'!$C$16+'BP Financier'!$C$19+'BP Financier'!$D$16+'BP Financier'!$D$19+'BP Financier'!$E$16+'BP Financier'!$E$19+'BP Financier'!$C$22+'BP Financier'!$D$22+'BP Financier'!$E$22+'BP Financier'!$F$22+'BP Financier'!$F$19+'BP Financier'!$F$16+'BP Financier'!$G$22+'BP Financier'!$G$19+'BP Financier'!$G$16))*$V9128*AA9128/(1-$W9128)","v":{"v":2689.5578975680937,"d":"2,690"}},{"$f":"'BP Financier'!$G$44*(('BP Financier'!$C$19+'BP Financier'!$D$19+'BP Financier'!$E$19+'BP Financier'!$F$19+'BP Financier'!$G$19)/('BP Financier'!$C$16+'BP Financier'!$C$19+'BP Financier'!$D$16+'BP Financier'!$D$19+'BP Financier'!$E$16+'BP Financier'!$E$19+'BP Financier'!$C$22+'BP Financier'!$D$22+'BP Financier'!$E$22+'BP Financier'!$F$22+'BP Financier'!$F$19+'BP Financier'!$F$16+'BP Financier'!$G$22+'BP Financier'!$G$19+'BP Financier'!$G$16))*$V9128*AB9128/(1-$W9128)","v":{"v":1287.3097629385745,"d":"1,287"}},null,{"v":1E-3,"d":"0.10%"},{"$f":"Actif!$E$28/100","v":{"v":0.28900000000000003,"d":"28.90%"}},{"$f":"Actif!$E$30/100","v":{"v":0.09050000000000001,"d":"9.05%"}},{"$f":"Actif!$E$31/100","v":{"v":0.0605,"d":"6.05%"}},{"$f":"Actif!$E$32/100","v":{"v":0.47350000000000003,"d":"47.35%"}},{"$f":"Actif!$E$33/100","v":{"v":0.0585,"d":"5.85%"}},{"$f":"Actif!$E$29/100","v":{"v":0.027999999999999997,"d":"2.80%"}}]
[null,"#13",20,2029,"F","A_PER",{"v":0.44999999999999996,"d":"0.45"},{"v":0.38999999999999996,"d":"0.39"},0.6,0.6,85,0,{"$f":"ROUND(Primes!$Q$7*V9129,0)","v":1},{"$f":"'BP Financier'!$G$33*(('BP Financier'!$C$19+'BP Financier'!$D$19+'BP Financier'!$E$19+'BP Financier'!$F$19+'BP Financier'!$G$19)/('BP Financier'!$C$16+'BP Financier'!$C$19+'BP Financier'!$D$16+'BP Financier'!$D$19+'BP Financier'!$E$16+'BP Financier'!$E$19+'BP Financier'!$F$16+'BP Financier'!$F$19+'BP Financier'!$G$16+'BP Financier'!$G$19))*V9129","v":{"v":56955.057223727745,"d":"56,955"}},{"v":32688.472908904525,"d":"32,688"},{"$f":"'BP Financier'!$G$44*(('BP Financier'!$C$19+'BP Financier'!$D$19+'BP Financier'!$E$19+'BP Financier'!$F$19+'BP Financier'!$G$19)/('BP Financier'!$C$16+'BP Financier'!$C$19+'BP Financier'!$D$16+'BP Financier'!$D$19+'BP Financier'!$E$16+'BP Financier'!$E$19+'BP Financier'!$C$22+'BP Financier'!$D$22+'BP Financier'!$E$22+'BP Financier'!$F$22+'BP Financier'!$F$19+'BP Financier'!$F$16+'BP Financier'!$G$22+'BP Financier'!$G$19+'BP Financier'!$G$16))*$V9129*X9129/(1-$W9129)","v":{"v":4160.769055212179,"d":"4,161"}},{"$f":"'BP Financier'!$G$44*(('BP Financier'!$C$19+'BP Financier'!$D$19+'BP Financier'!$E$19+'BP Financier'!$F$19+'BP Financier'!$G$19)/('BP Financier'!$C$16+'BP Financier'!$C$19+'BP Financier'!$D$16+'BP Financier'!$D$19+'BP Financier'!$E$16+'BP Financier'!$E$19+'BP Financier'!$C$22+'BP Financier'!$D$22+'BP Financier'!$E$22+'BP Financier'!$F$22+'BP Financier'!$F$19+'BP Financier'!$F$16+'BP Financier'!$G$22+'BP Financier'!$G$19+'BP Financier'!$G$16))*$V9129*Y9129/(1-$W9129)","v":{"v":2781.5085949208483,"d":"2,782"}},{"$f":"'BP Financier'!$G$44*(('BP Financier'!$C$19+'BP Financier'!$D$19+'BP Financier'!$E$19+'BP Financier'!$F$19+'BP Financier'!$G$19)/('BP Financier'!$C$16+'BP Financier'!$C$19+'BP Financier'!$D$16+'BP Financier'!$D$19+'BP Financier'!$E$16+'BP Financier'!$E$19+'BP Financier'!$C$22+'BP Financier'!$D$22+'BP Financier'!$E$22+'BP Financier'!$F$22+'BP Financier'!$F$19+'BP Financier'!$F$16+'BP Financier'!$G$22+'BP Financier'!$G$19+'BP Financier'!$G$16))*$V9129*Z9129/(1-$W9129)","v":{"v":21769.327598264827,"d":"21,769"}},{"$f":"'BP Financier'!$G$44*(('BP Financier'!$C$19+'BP Financier'!$D$19+'BP Financier'!$E$19+'BP Financier'!$F$19+'BP Financier'!$G$19)/('BP Financier'!$C$16+'BP Financier'!$C$19+'BP Financier'!$D$16+'BP Financier'!$D$19+'BP Financier'!$E$16+'BP Financier'!$E$19+'BP Financier'!$C$22+'BP Financier'!$D$22+'BP Financier'!$E$22+'BP Financier'!$F$22+'BP Financier'!$F$19+'BP Financier'!$F$16+'BP Financier'!$G$22+'BP Financier'!$G$19+'BP Financier'!$G$16))*$V9129*AA9129/(1-$W9129)","v":{"v":2689.5578975680937,"d":"2,690"}},{"$f":"'BP Financier'!$G$44*(('BP Financier'!$C$19+'BP Financier'!$D$19+'BP Financier'!$E$19+'BP Financier'!$F$19+'BP Financier'!$G$19)/('BP Financier'!$C$16+'BP Financier'!$C$19+'BP Financier'!$D$16+'BP Financier'!$D$19+'BP Financier'!$E$16+'BP Financier'!$E$19+'BP Financier'!$C$22+'BP Financier'!$D$22+'BP Financier'!$E$22+'BP Financier'!$F$22+'BP Financier'!$F$19+'BP Financier'!$F$16+'BP Financier'!$G$22+'BP Financier'!$G$19+'BP Financier'!$G$16))*$V9129*AB9129/(1-$W9129)","v":{"v":1287.3097629385745,"d":"1,287"}},null,{"v":1E-3,"d":"0.10%"},{"$f":"Actif!$E$28/100","v":{"v":0.28900000000000003,"d":"28.90%"}},{"$f":"Actif!$E$30/100","v":{"v":0.09050000000000001,"d":"9.05%"}},{"$f":"Actif!$E$31/100","v":{"v":0.0605,"d":"6.05%"}},{"$f":"Actif!$E$32/100","v":{"v":0.47350000000000003,"d":"47.35%"}},{"$f":"Actif!$E$33/100","v":{"v":0.0585,"d":"5.85%"}},{"$f":"Actif!$E$29/100","v":{"v":0.027999999999999997,"d":"2.80%"}}]
[null,"#14",20,2030,"F","A_PER",{"v":0.44999999999999996,"d":"0.45"},{"v":0.38999999999999996,"d":"0.39"},0.6,0.6,85,0,{"$f":"ROUND(Primes!$Q$7*V9130,0)","v":1},{"$f":"'BP Financier'!$G$33*(('BP Financier'!$C$19+'BP Financier'!$D$19+'BP Financier'!$E$19+'BP Financier'!$F$19+'BP Financier'!$G$19)/('BP Financier'!$C$16+'BP Financier'!$C$19+'BP Financier'!$D$16+'BP Financier'!$D$19+'BP Financier'!$E$16+'BP Financier'!$E$19+'BP Financier'!$F$16+'BP Financier'!$F$19+'BP Financier'!$G$16+'BP Financier'!$G$19))*V9130","v":{"v":56955.057223727745,"d":"56,955"}},{"v":32688.472908904525,"d":"32,688"},{"$f":"'BP Financier'!$G$44*(('BP Financier'!$C$19+'BP Financier'!$D$19+'BP Financier'!$E$19+'BP Financier'!$F$19+'BP Financier'!$G$19)/('BP Financier'!$C$16+'BP Financier'!$C$19+'BP Financier'!$D$16+'BP Financier'!$D$19+'BP Financier'!$E$16+'BP Financier'!$E$19+'BP Financier'!$C$22+'BP Financier'!$D$22+'BP Financier'!$E$22+'BP Financier'!$F$22+'BP Financier'!$F$19+'BP Financier'!$F$16+'BP Financier'!$G$22+'BP Financier'!$G$19+'BP Financier'!$G$16))*$V9130*X9130/(1-$W9130)","v":{"v":4160.769055212179,"d":"4,161"}},{"$f":"'BP Financier'!$G$44*(('BP Financier'!$C$19+'BP Financier'!$D$19+'BP Financier'!$E$19+'BP Financier'!$F$19+'BP Financier'!$G$19)/('BP Financier'!$C$16+'BP Financier'!$C$19+'BP Financier'!$D$16+'BP Financier'!$D$19+'BP Financier'!$E$16+'BP Financier'!$E$19+'BP Financier'!$C$22+'BP Financier'!$D$22+'BP Financier'!$E$22+'BP Financier'!$F$22+'BP Financier'!$F$19+'BP Financier'!$F$16+'BP Financier'!$G$22+'BP Financier'!$G$19+'BP Financier'!$G$16))*$V9130*Y9130/(1-$W9130)","v":{"v":2781.5085949208483,"d":"2,782"}},{"$f":"'BP Financier'!$G$44*(('BP Financier'!$C$19+'BP Financier'!$D$19+'BP Financier'!$E$19+'BP Financier'!$F$19+'BP Financier'!$G$19)/('BP Financier'!$C$16+'BP Financier'!$C$19+'BP Financier'!$D$16+'BP Financier'!$D$19+'BP Financier'!$E$16+'BP Financier'!$E$19+'BP Financier'!$C$22+'BP Financier'!$D$22+'BP Financier'!$E$22+'BP Financier'!$F$22+'BP Financier'!$F$19+'BP Financier'!$F$16+'BP Financier'!$G$22+'BP Financier'!$G$19+'BP Financier'!$G$16))*$V9130*Z9130/(1-$W9130)","v":{"v":21769.327598264827,"d":"21,769"}},{"$f":"'BP Financier'!$G$44*(('BP Financier'!$C$19+'BP Financier'!$D$19+'BP Financier'!$E$19+'BP Financier'!$F$19+'BP Financier'!$G$19)/('BP Financier'!$C$16+'BP Financier'!$C$19+'BP Financier'!$D$16+'BP Financier'!$D$19+'BP Financier'!$E$16+'BP Financier'!$E$19+'BP Financier'!$C$22+'BP Financier'!$D$22+'BP Financier'!$E$22+'BP Financier'!$F$22+'BP Financier'!$F$19+'BP Financier'!$F$16+'BP Financier'!$G$22+'BP Financier'!$G$19+'BP Financier'!$G$16))*$V9130*AA9130/(1-$W9130)","v":{"v":2689.5578975680937,"d":"2,690"}},{"$f":"'BP Financier'!$G$44*(('BP Financier'!$C$19+'BP Financier'!$D$19+'BP Financier'!$E$19+'BP Financier'!$F$19+'BP Financier'!$G$19)/('BP Financier'!$C$16+'BP Financier'!$C$19+'BP Financier'!$D$16+'BP Financier'!$D$19+'BP Financier'!$E$16+'BP Financier'!$E$19+'BP Financier'!$C$22+'BP Financier'!$D$22+'BP Financier'!$E$22+'BP Financier'!$F$22+'BP Financier'!$F$19+'BP Financier'!$F$16+'BP Financier'!$G$22+'BP Financier'!$G$19+'BP Financier'!$G$16))*$V9130*AB9130/(1-$W9130)","v":{"v":1287.3097629385745,"d":"1,287"}},null,{"v":1E-3,"d":"0.10%"},{"$f":"Actif!$E$28/100","v":{"v":0.28900000000000003,"d":"28.90%"}},{"$f":"Actif!$E$30/100","v":{"v":0.09050000000000001,"d":"9.05%"}},{"$f":"Actif!$E$31/100","v":{"v":0.0605,"d":"6.05%"}},{"$f":"Actif!$E$32/100","v":{"v":0.47350000000000003,"d":"47.35%"}},{"$f":"Actif!$E$33/100","v":{"v":0.0585,"d":"5.85%"}},{"$f":"Actif!$E$29/100","v":{"v":0.027999999999999997,"d":"2.80%"}}]
[null,"#15",20,2031,"F","A_PER",{"v":0.44999999999999996,"d":"0.45"},{"v":0.38999999999999996,"d":"0.39"},0.6,0.6,85,0,{"$f":"ROUND(Primes!$Q$7*V9131,0)","v":1},{"$f":"'BP Financier'!$G$33*(('BP Financier'!$C$19+'BP Financier'!$D$19+'BP Financier'!$E$19+'BP Financier'!$F$19+'BP Financier'!$G$19)/('BP Financier'!$C$16+'BP Financier'!$C$19+'BP Financier'!$D$16+'BP Financier'!$D$19+'BP Financier'!$E$16+'BP Financier'!$E$19+'BP Financier'!$F$16+'BP Financier'!$F$19+'BP Financier'!$G$16+'BP Financier'!$G$19))*V9131","v":{"v":56955.057223727745,"d":"56,955"}},{"v":32688.472908904525,"d":"32,688"},{"$f":"'BP Financier'!$G$44*(('BP Financier'!$C$19+'BP Financier'!$D$19+'BP Financier'!$E$19+'BP Financier'!$F$19+'BP Financier'!$G$19)/('BP Financier'!$C$16+'BP Financier'!$C$19+'BP Financier'!$D$16+'BP Financier'!$D$19+'BP Financier'!$E$16+'BP Financier'!$E$19+'BP Financier'!$C$22+'BP Financier'!$D$22+'BP Financier'!$E$22+'BP Financier'!$F$22+'BP Financier'!$F$19+'BP Financier'!$F$16+'BP Financier'!$G$22+'BP Financier'!$G$19+'BP Financier'!$G$16))*$V9131*X9131/(1-$W9131)","v":{"v":4160.769055212179,"d":"4,161"}},{"$f":"'BP Financier'!$G$44*(('BP Financier'!$C$19+'BP Financier'!$D$19+'BP Financier'!$E$19+'BP Financier'!$F$19+'BP Financier'!$G$19)/('BP Financier'!$C$16+'BP Financier'!$C$19+'BP Financier'!$D$16+'BP Financier'!$D$19+'BP Financier'!$E$16+'BP Financier'!$E$19+'BP Financier'!$C$22+'BP Financier'!$D$22+'BP Financier'!$E$22+'BP Financier'!$F$22+'BP Financier'!$F$19+'BP Financier'!$F$16+'BP Financier'!$G$22+'BP Financier'!$G$19+'BP Financier'!$G$16))*$V9131*Y9131/(1-$W9131)","v":{"v":2781.5085949208483,"d":"2,782"}},{"$f":"'BP Financier'!$G$44*(('BP Financier'!$C$19+'BP Financier'!$D$19+'BP Financier'!$E$19+'BP Financier'!$F$19+'BP Financier'!$G$19)/('BP Financier'!$C$16+'BP Financier'!$C$19+'BP Financier'!$D$16+'BP Financier'!$D$19+'BP Financier'!$E$16+'BP Financier'!$E$19+'BP Financier'!$C$22+'BP Financier'!$D$22+'BP Financier'!$E$22+'BP Financier'!$F$22+'BP Financier'!$F$19+'BP Financier'!$F$16+'BP Financier'!$G$22+'BP Financier'!$G$19+'BP Financier'!$G$16))*$V9131*Z9131/(1-$W9131)","v":{"v":21769.327598264827,"d":"21,769"}},{"$f":"'BP Financier'!$G$44*(('BP Financier'!$C$19+'BP Financier'!$D$19+'BP Financier'!$E$19+'BP Financier'!$F$19+'BP Financier'!$G$19)/('BP Financier'!$C$16+'BP Financier'!$C$19+'BP Financier'!$D$16+'BP Financier'!$D$19+'BP Financier'!$E$16+'BP Financier'!$E$19+'BP Financier'!$C$22+'BP Financier'!$D$22+'BP Financier'!$E$22+'BP Financier'!$F$22+'BP Financier'!$F$19+'BP Financier'!$F$16+'BP Financier'!$G$22+'BP Financier'!$G$19+'BP Financier'!$G$16))*$V9131*AA9131/(1-$W9131)","v":{"v":2689.5578975680937,"d":"2,690"}},{"$f":"'BP Financier'!$G$44*(('BP Financier'!$C$19+'BP Financier'!$D$19+'BP Financier'!$E$19+'BP Financier'!$F$19+'BP Financier'!$G$19)/('BP Financier'!$C$16+'BP Financier'!$C$19+'BP Financier'!$D$16+'BP Financier'!$D$19+'BP Financier'!$E$16+'BP Financier'!$E$19+'BP Financier'!$C$22+'BP Financier'!$D$22+'BP Financier'!$E$22+'BP Financier'!$F$22+'BP Financier'!$F$19+'BP Financier'!$F$16+'BP Financier'!$G$22+'BP Financier'!$G$19+'BP Financier'!$G$16))*$V9131*AB9131/(1-$W9131)","v":{"v":1287.3097629385745,"d":"1,287"}},null,{"v":1E-3,"d":"0.10%"},{"$f":"Actif!$E$28/100","v":{"v":0.28900000000000003,"d":"28.90%"}},{"$f":"Actif!$E$30/100","v":{"v":0.09050000000000001,"d":"9.05%"}},{"$f":"Actif!$E$31/100","v":{"v":0.0605,"d":"6.05%"}},{"$f":"Actif!$E$32/100","v":{"v":0.47350000000000003,"d":"47.35%"}},{"$f":"Actif!$E$33/100","v":{"v":0.0585,"d":"5.85%"}},{"$f":"Actif!$E$29/100","v":{"v":0.027999999999999997,"d":"2.80%"}}]
[null,"#16",21,2026,"H","A_PER",{"v":0.44999999999999996,"d":"0.45"},{"v":0.38999999999999996,"d":"0.39"},0.6,0.6,85,0,{"$f":"ROUND(Primes!$Q$7*V9132,0)","v":1},{"$f":"'BP Financier'!$G$33*(('BP Financier'!$C$19+'BP Financier'!$D$19+'BP Financier'!$E$19+'BP Financier'!$F$19+'BP Financier'!$G$19)/('BP Financier'!$C$16+'BP Financier'!$C$19+'BP Financier'!$D$16+'BP Financier'!$D$19+'BP Financier'!$E$16+'BP Financier'!$E$19+'BP Financier'!$F$16+'BP Financier'!$F$19+'BP Financier'!$G$16+'BP Financier'!$G$19))*V9132","v":{"v":56955.057223727745,"d":"56,955"}},{"v":32688.472908904525,"d":"32,688"},{"$f":"'BP Financier'!$G$44*(('BP Financier'!$C$19+'BP Financier'!$D$19+'BP Financier'!$E$19+'BP Financier'!$F$19+'BP Financier'!$G$19)/('BP Financier'!$C$16+'BP Financier'!$C$19+'BP Financier'!$D$16+'BP Financier'!$D$19+'BP Financier'!$E$16+'BP Financier'!$E$19+'BP Financier'!$C$22+'BP Financier'!$D$22+'BP Financier'!$E$22+'BP Financier'!$F$22+'BP Financier'!$F$19+'BP Financier'!$F$16+'BP Financier'!$G$22+'BP Financier'!$G$19+'BP Financier'!$G$16))*$V9132*X9132/(1-$W9132)","v":{"v":4160.769055212179,"d":"4,161"}},{"$f":"'BP Financier'!$G$44*(('BP Financier'!$C$19+'BP Financier'!$D$19+'BP Financier'!$E$19+'BP Financier'!$F$19+'BP Financier'!$G$19)/('BP Financier'!$C$16+'BP Financier'!$C$19+'BP Financier'!$D$16+'BP Financier'!$D$19+'BP Financier'!$E$16+'BP Financier'!$E$19+'BP Financier'!$C$22+'BP Financier'!$D$22+'BP Financier'!$E$22+'BP Financier'!$F$22+'BP Financier'!$F$19+'BP Financier'!$F$16+'BP Financier'!$G$22+'BP Financier'!$G$19+'BP Financier'!$G$16))*$V9132*Y9132/(1-$W9132)","v":{"v":2781.5085949208483,"d":"2,782"}},{"$f":"'BP Financier'!$G$44*(('BP Financier'!$C$19+'BP Financier'!$D$19+'BP Financier'!$E$19+'BP Financier'!$F$19+'BP Financier'!$G$19)/('BP Financier'!$C$16+'BP Financier'!$C$19+'BP Financier'!$D$16+'BP Financier'!$D$19+'BP Financier'!$E$16+'BP Financier'!$E$19+'BP Financier'!$C$22+'BP Financier'!$D$22+'BP Financier'!$E$22+'BP Financier'!$F$22+'BP Financier'!$F$19+'BP Financier'!$F$16+'BP Financier'!$G$22+'BP Financier'!$G$19+'BP Financier'!$G$16))*$V9132*Z9132/(1-$W9132)","v":{"v":21769.327598264827,"d":"21,769"}},{"$f":"'BP Financier'!$G$44*(('BP Financier'!$C$19+'BP Financier'!$D$19+'BP Financier'!$E$19+'BP Financier'!$F$19+'BP Financier'!$G$19)/('BP Financier'!$C$16+'BP Financier'!$C$19+'BP Financier'!$D$16+'BP Financier'!$D$19+'BP Financier'!$E$16+'BP Financier'!$E$19+'BP Financier'!$C$22+'BP Financier'!$D$22+'BP Financier'!$E$22+'BP Financier'!$F$22+'BP Financier'!$F$19+'BP Financier'!$F$16+'BP Financier'!$G$22+'BP Financier'!$G$19+'BP Financier'!$G$16))*$V9132*AA9132/(1-$W9132)","v":{"v":2689.5578975680937,"d":"2,690"}},{"$f":"'BP Financier'!$G$44*(('BP Financier'!$C$19+'BP Financier'!$D$19+'BP Financier'!$E$19+'BP Financier'!$F$19+'BP Financier'!$G$19)/('BP Financier'!$C$16+'BP Financier'!$C$19+'BP Financier'!$D$16+'BP Financier'!$D$19+'BP Financier'!$E$16+'BP Financier'!$E$19+'BP Financier'!$C$22+'BP Financier'!$D$22+'BP Financier'!$E$22+'BP Financier'!$F$22+'BP Financier'!$F$19+'BP Financier'!$F$16+'BP Financier'!$G$22+'BP Financier'!$G$19+'BP Financier'!$G$16))*$V9132*AB9132/(1-$W9132)","v":{"v":1287.3097629385745,"d":"1,287"}},null,{"v":1E-3,"d":"0.10%"},{"$f":"Actif!$E$28/100","v":{"v":0.28900000000000003,"d":"28.90%"}},{"$f":"Actif!$E$30/100","v":{"v":0.09050000000000001,"d":"9.05%"}},{"$f":"Actif!$E$31/100","v":{"v":0.0605,"d":"6.05%"}},{"$f":"Actif!$E$32/100","v":{"v":0.47350000000000003,"d":"47.35%"}},{"$f":"Actif!$E$33/100","v":{"v":0.0585,"d":"5.85%"}},{"$f":"Actif!$E$29/100","v":{"v":0.027999999999999997,"d":"2.80%"}}]
[null,"#17",21,2028,"H","A_PER",{"v":0.44999999999999996,"d":"0.45"},{"v":0.38999999999999996,"d":"0.39"},0.6,0.6,85,0,{"$f":"ROUND(Primes!$Q$7*V9133,0)","v":1},{"$f":"'BP Financier'!$G$33*(('BP Financier'!$C$19+'BP Financier'!$D$19+'BP Financier'!$E$19+'BP Financier'!$F$19+'BP Financier'!$G$19)/('BP Financier'!$C$16+'BP Financier'!$C$19+'BP Financier'!$D$16+'BP Financier'!$D$19+'BP Financier'!$E$16+'BP Financier'!$E$19+'BP Financier'!$F$16+'BP Financier'!$F$19+'BP Financier'!$G$16+'BP Financier'!$G$19))*V9133","v":{"v":56955.057223727745,"d":"56,955"}},{"v":32688.472908904525,"d":"32,688"},{"$f":"'BP Financier'!$G$44*(('BP Financier'!$C$19+'BP Financier'!$D$19+'BP Financier'!$E$19+'BP Financier'!$F$19+'BP Financier'!$G$19)/('BP Financier'!$C$16+'BP Financier'!$C$19+'BP Financier'!$D$16+'BP Financier'!$D$19+'BP Financier'!$E$16+'BP Financier'!$E$19+'BP Financier'!$C$22+'BP Financier'!$D$22+'BP Financier'!$E$22+'BP Financier'!$F$22+'BP Financier'!$F$19+'BP Financier'!$F$16+'BP Financier'!$G$22+'BP Financier'!$G$19+'BP Financier'!$G$16))*$V9133*X9133/(1-$W9133)","v":{"v":4160.769055212179,"d":"4,161"}},{"$f":"'BP Financier'!$G$44*(('BP Financier'!$C$19+'BP Financier'!$D$19+'BP Financier'!$E$19+'BP Financier'!$F$19+'BP Financier'!$G$19)/('BP Financier'!$C$16+'BP Financier'!$C$19+'BP Financier'!$D$16+'BP Financier'!$D$19+'BP Financier'!$E$16+'BP Financier'!$E$19+'BP Financier'!$C$22+'BP Financier'!$D$22+'BP Financier'!$E$22+'BP Financier'!$F$22+'BP Financier'!$F$19+'BP Financier'!$F$16+'BP Financier'!$G$22+'BP Financier'!$G$19+'BP Financier'!$G$16))*$V9133*Y9133/(1-$W9133)","v":{"v":2781.5085949208483,"d":"2,782"}},{"$f":"'BP Financier'!$G$44*(('BP Financier'!$C$19+'BP Financier'!$D$19+'BP Financier'!$E$19+'BP Financier'!$F$19+'BP Financier'!$G$19)/('BP Financier'!$C$16+'BP Financier'!$C$19+'BP Financier'!$D$16+'BP Financier'!$D$19+'BP Financier'!$E$16+'BP Financier'!$E$19+'BP Financier'!$C$22+'BP Financier'!$D$22+'BP Financier'!$E$22+'BP Financier'!$F$22+'BP Financier'!$F$19+'BP Financier'!$F$16+'BP Financier'!$G$22+'BP Financier'!$G$19+'BP Financier'!$G$16))*$V9133*Z9133/(1-$W9133)","v":{"v":21769.327598264827,"d":"21,769"}},{"$f":"'BP Financier'!$G$44*(('BP Financier'!$C$19+'BP Financier'!$D$19+'BP Financier'!$E$19+'BP Financier'!$F$19+'BP Financier'!$G$19)/('BP Financier'!$C$16+'BP Financier'!$C$19+'BP Financier'!$D$16+'BP Financier'!$D$19+'BP Financier'!$E$16+'BP Financier'!$E$19+'BP Financier'!$C$22+'BP Financier'!$D$22+'BP Financier'!$E$22+'BP Financier'!$F$22+'BP Financier'!$F$19+'BP Financier'!$F$16+'BP Financier'!$G$22+'BP Financier'!$G$19+'BP Financier'!$G$16))*$V9133*AA9133/(1-$W9133)","v":{"v":2689.5578975680937,"d":"2,690"}},{"$f":"'BP Financier'!$G$44*(('BP Financier'!$C$19+'BP Financier'!$D$19+'BP Financier'!$E$19+'BP Financier'!$F$19+'BP Financier'!$G$19)/('BP Financier'!$C$16+'BP Financier'!$C$19+'BP Financier'!$D$16+'BP Financier'!$D$19+'BP Financier'!$E$16+'BP Financier'!$E$19+'BP Financier'!$C$22+'BP Financier'!$D$22+'BP Financier'!$E$22+'BP Financier'!$F$22+'BP Financier'!$F$19+'BP Financier'!$F$16+'BP Financier'!$G$22+'BP Financier'!$G$19+'BP Financier'!$G$16))*$V9133*AB9133/(1-$W9133)","v":{"v":1287.3097629385745,"d":"1,287"}},null,{"v":1E-3,"d":"0.10%"},{"$f":"Actif!$E$28/100","v":{"v":0.28900000000000003,"d":"28.90%"}},{"$f":"Actif!$E$30/100","v":{"v":0.09050000000000001,"d":"9.05%"}},{"$f":"Actif!$E$31/100","v":{"v":0.0605,"d":"6.05%"}},{"$f":"Actif!$E$32/100","v":{"v":0.47350000000000003,"d":"47.35%"}},{"$f":"Actif!$E$33/100","v":{"v":0.0585,"d":"5.85%"}},{"$f":"Actif!$E$29/100","v":{"v":0.027999999999999997,"d":"2.80%"}}]
[null,"#18",21,2029,"H","A_PER",{"v":0.44999999999999996,"d":"0.45"},{"v":0.38999999999999996,"d":"0.39"},0.6,0.6,85,0,{"$f":"ROUND(Primes!$Q$7*V9134,0)","v":1},{"$f":"'BP Financier'!$G$33*(('BP Financier'!$C$19+'BP Financier'!$D$19+'BP Financier'!$E$19+'BP Financier'!$F$19+'BP Financier'!$G$19)/('BP Financier'!$C$16+'BP Financier'!$C$19+'BP Financier'!$D$16+'BP Financier'!$D$19+'BP Financier'!$E$16+'BP Financier'!$E$19+'BP Financier'!$F$16+'BP Financier'!$F$19+'BP Financier'!$G$16+'BP Financier'!$G$19))*V9134","v":{"v":56955.057223727745,"d":"56,955"}},{"v":32688.472908904525,"d":"32,688"},{"$f":"'BP Financier'!$G$44*(('BP Financier'!$C$19+'BP Financier'!$D$19+'BP Financier'!$E$19+'BP Financier'!$F$19+'BP Financier'!$G$19)/('BP Financier'!$C$16+'BP Financier'!$C$19+'BP Financier'!$D$16+'BP Financier'!$D$19+'BP Financier'!$E$16+'BP Financier'!$E$19+'BP Financier'!$C$22+'BP Financier'!$D$22+'BP Financier'!$E$22+'BP Financier'!$F$22+'BP Financier'!$F$19+'BP Financier'!$F$16+'BP Financier'!$G$22+'BP Financier'!$G$19+'BP Financier'!$G$16))*$V9134*X9134/(1-$W9134)","v":{"v":4160.769055212179,"d":"4,161"}},{"$f":"'BP Financier'!$G$44*(('BP Financier'!$C$19+'BP Financier'!$D$19+'BP Financier'!$E$19+'BP Financier'!$F$19+'BP Financier'!$G$19)/('BP Financier'!$C$16+'BP Financier'!$C$19+'BP Financier'!$D$16+'BP Financier'!$D$19+'BP Financier'!$E$16+'BP Financier'!$E$19+'BP Financier'!$C$22+'BP Financier'!$D$22+'BP Financier'!$E$22+'BP Financier'!$F$22+'BP Financier'!$F$19+'BP Financier'!$F$16+'BP Financier'!$G$22+'BP Financier'!$G$19+'BP Financier'!$G$16))*$V9134*Y9134/(1-$W9134)","v":{"v":2781.5085949208483,"d":"2,782"}},{"$f":"'BP Financier'!$G$44*(('BP Financier'!$C$19+'BP Financier'!$D$19+'BP Financier'!$E$19+'BP Financier'!$F$19+'BP Financier'!$G$19)/('BP Financier'!$C$16+'BP Financier'!$C$19+'BP Financier'!$D$16+'BP Financier'!$D$19+'BP Financier'!$E$16+'BP Financier'!$E$19+'BP Financier'!$C$22+'BP Financier'!$D$22+'BP Financier'!$E$22+'BP Financier'!$F$22+'BP Financier'!$F$19+'BP Financier'!$F$16+'BP Financier'!$G$22+'BP Financier'!$G$19+'BP Financier'!$G$16))*$V9134*Z9134/(1-$W9134)","v":{"v":21769.327598264827,"d":"21,769"}},{"$f":"'BP Financier'!$G$44*(('BP Financier'!$C$19+'BP Financier'!$D$19+'BP Financier'!$E$19+'BP Financier'!$F$19+'BP Financier'!$G$19)/('BP Financier'!$C$16+'BP Financier'!$C$19+'BP Financier'!$D$16+'BP Financier'!$D$19+'BP Financier'!$E$16+'BP Financier'!$E$19+'BP Financier'!$C$22+'BP Financier'!$D$22+'BP Financier'!$E$22+'BP Financier'!$F$22+'BP Financier'!$F$19+'BP Financier'!$F$16+'BP Financier'!$G$22+'BP Financier'!$G$19+'BP Financier'!$G$16))*$V9134*AA9134/(1-$W9134)","v":{"v":2689.5578975680937,"d":"2,690"}},{"$f":"'BP Financier'!$G$44*(('BP Financier'!$C$19+'BP Financier'!$D$19+'BP Financier'!$E$19+'BP Financier'!$F$19+'BP Financier'!$G$19)/('BP Financier'!$C$16+'BP Financier'!$C$19+'BP Financier'!$D$16+'BP Financier'!$D$19+'BP Financier'!$E$16+'BP Financier'!$E$19+'BP Financier'!$C$22+'BP Financier'!$D$22+'BP Financier'!$E$22+'BP Financier'!$F$22+'BP Financier'!$F$19+'BP Financier'!$F$16+'BP Financier'!$G$22+'BP Financier'!$G$19+'BP Financier'!$G$16))*$V9134*AB9134/(1-$W9134)","v":{"v":1287.3097629385745,"d":"1,287"}},null,{"v":1E-3,"d":"0.10%"},{"$f":"Actif!$E$28/100","v":{"v":0.28900000000000003,"d":"28.90%"}},{"$f":"Actif!$E$30/100","v":{"v":0.09050000000000001,"d":"9.05%"}},{"$f":"Actif!$E$31/100","v":{"v":0.0605,"d":"6.05%"}},{"$f":"Actif!$E$32/100","v":{"v":0.47350000000000003,"d":"47.35%"}},{"$f":"Actif!$E$33/100","v":{"v":0.0585,"d":"5.85%"}},{"$f":"Actif!$E$29/100","v":{"v":0.027999999999999997,"d":"2.80%"}}]
[null,"#19",21,2030,"H","A_PER",{"v":0.44999999999999996,"d":"0.45"},{"v":0.38999999999999996,"d":"0.39"},0.6,0.6,85,0,{"$f":"ROUND(Primes!$Q$7*V9135,0)","v":1},{"$f":"'BP Financier'!$G$33*(('BP Financier'!$C$19+'BP Financier'!$D$19+'BP Financier'!$E$19+'BP Financier'!$F$19+'BP Financier'!$G$19)/('BP Financier'!$C$16+'BP Financier'!$C$19+'BP Financier'!$D$16+'BP Financier'!$D$19+'BP Financier'!$E$16+'BP Financier'!$E$19+'BP Financier'!$F$16+'BP Financier'!$F$19+'BP Financier'!$G$16+'BP Financier'!$G$19))*V9135","v":{"v":56955.057223727745,"d":"56,955"}},{"v":32688.472908904525,"d":"32,688"},{"$f":"'BP Financier'!$G$44*(('BP Financier'!$C$19+'BP Financier'!$D$19+'BP Financier'!$E$19+'BP Financier'!$F$19+'BP Financier'!$G$19)/('BP Financier'!$C$16+'BP Financier'!$C$19+'BP Financier'!$D$16+'BP Financier'!$D$19+'BP Financier'!$E$16+'BP Financier'!$E$19+'BP Financier'!$C$22+'BP Financier'!$D$22+'BP Financier'!$E$22+'BP Financier'!$F$22+'BP Financier'!$F$19+'BP Financier'!$F$16+'BP Financier'!$G$22+'BP Financier'!$G$19+'BP Financier'!$G$16))*$V9135*X9135/(1-$W9135)","v":{"v":4160.769055212179,"d":"4,161"}},{"$f":"'BP Financier'!$G$44*(('BP Financier'!$C$19+'BP Financier'!$D$19+'BP Financier'!$E$19+'BP Financier'!$F$19+'BP Financier'!$G$19)/('BP Financier'!$C$16+'BP Financier'!$C$19+'BP Financier'!$D$16+'BP Financier'!$D$19+'BP Financier'!$E$16+'BP Financier'!$E$19+'BP Financier'!$C$22+'BP Financier'!$D$22+'BP Financier'!$E$22+'BP Financier'!$F$22+'BP Financier'!$F$19+'BP Financier'!$F$16+'BP Financier'!$G$22+'BP Financier'!$G$19+'BP Financier'!$G$16))*$V9135*Y9135/(1-$W9135)","v":{"v":2781.5085949208483,"d":"2,782"}},{"$f":"'BP Financier'!$G$44*(('BP Financier'!$C$19+'BP Financier'!$D$19+'BP Financier'!$E$19+'BP Financier'!$F$19+'BP Financier'!$G$19)/('BP Financier'!$C$16+'BP Financier'!$C$19+'BP Financier'!$D$16+'BP Financier'!$D$19+'BP Financier'!$E$16+'BP Financier'!$E$19+'BP Financier'!$C$22+'BP Financier'!$D$22+'BP Financier'!$E$22+'BP Financier'!$F$22+'BP Financier'!$F$19+'BP Financier'!$F$16+'BP Financier'!$G$22+'BP Financier'!$G$19+'BP Financier'!$G$16))*$V9135*Z9135/(1-$W9135)","v":{"v":21769.327598264827,"d":"21,769"}},{"$f":"'BP Financier'!$G$44*(('BP Financier'!$C$19+'BP Financier'!$D$19+'BP Financier'!$E$19+'BP Financier'!$F$19+'BP Financier'!$G$19)/('BP Financier'!$C$16+'BP Financier'!$C$19+'BP Financier'!$D$16+'BP Financier'!$D$19+'BP Financier'!$E$16+'BP Financier'!$E$19+'BP Financier'!$C$22+'BP Financier'!$D$22+'BP Financier'!$E$22+'BP Financier'!$F$22+'BP Financier'!$F$19+'BP Financier'!$F$16+'BP Financier'!$G$22+'BP Financier'!$G$19+'BP Financier'!$G$16))*$V9135*AA9135/(1-$W9135)","v":{"v":2689.5578975680937,"d":"2,690"}},{"$f":"'BP Financier'!$G$44*(('BP Financier'!$C$19+'BP Financier'!$D$19+'BP Financier'!$E$19+'BP Financier'!$F$19+'BP Financier'!$G$19)/('BP Financier'!$C$16+'BP Financier'!$C$19+'BP Financier'!$D$16+'BP Financier'!$D$19+'BP Financier'!$E$16+'BP Financier'!$E$19+'BP Financier'!$C$22+'BP Financier'!$D$22+'BP Financier'!$E$22+'BP Financier'!$F$22+'BP Financier'!$F$19+'BP Financier'!$F$16+'BP Financier'!$G$22+'BP Financier'!$G$19+'BP Financier'!$G$16))*$V9135*AB9135/(1-$W9135)","v":{"v":1287.3097629385745,"d":"1,287"}},null,{"v":1E-3,"d":"0.10%"},{"$f":"Actif!$E$28/100","v":{"v":0.28900000000000003,"d":"28.90%"}},{"$f":"Actif!$E$30/100","v":{"v":0.09050000000000001,"d":"9.05%"}},{"$f":"Actif!$E$31/100","v":{"v":0.0605,"d":"6.05%"}},{"$f":"Actif!$E$32/100","v":{"v":0.47350000000000003,"d":"47.35%"}},{"$f":"Actif!$E$33/100","v":{"v":0.0585,"d":"5.85%"}},{"$f":"Actif!$E$29/100","v":{"v":0.027999999999999997,"d":"2.80%"}}]
[null,"#20",21,2031,"H","A_PER",{"v":0.44999999999999996,"d":"0.45"},{"v":0.38999999999999996,"d":"0.39"},0.6,0.6,85,0,{"$f":"ROUND(Primes!$Q$7*V9136,0)","v":1},{"$f":"'BP Financier'!$G$33*(('BP Financier'!$C$19+'BP Financier'!$D$19+'BP Financier'!$E$19+'BP Financier'!$F$19+'BP Financier'!$G$19)/('BP Financier'!$C$16+'BP Financier'!$C$19+'BP Financier'!$D$16+'BP Financier'!$D$19+'BP Financier'!$E$16+'BP Financier'!$E$19+'BP Financier'!$F$16+'BP Financier'!$F$19+'BP Financier'!$G$16+'BP Financier'!$G$19))*V9136","v":{"v":56955.057223727745,"d":"56,955"}},{"v":32688.472908904525,"d":"32,688"},{"$f":"'BP Financier'!$G$44*(('BP Financier'!$C$19+'BP Financier'!$D$19+'BP Financier'!$E$19+'BP Financier'!$F$19+'BP Financier'!$G$19)/('BP Financier'!$C$16+'BP Financier'!$C$19+'BP Financier'!$D$16+'BP Financier'!$D$19+'BP Financier'!$E$16+'BP Financier'!$E$19+'BP Financier'!$C$22+'BP Financier'!$D$22+'BP Financier'!$E$22+'BP Financier'!$F$22+'BP Financier'!$F$19+'BP Financier'!$F$16+'BP Financier'!$G$22+'BP Financier'!$G$19+'BP Financier'!$G$16))*$V9136*X9136/(1-$W9136)","v":{"v":4160.769055212179,"d":"4,161"}},{"$f":"'BP Financier'!$G$44*(('BP Financier'!$C$19+'BP Financier'!$D$19+'BP Financier'!$E$19+'BP Financier'!$F$19+'BP Financier'!$G$19)/('BP Financier'!$C$16+'BP Financier'!$C$19+'BP Financier'!$D$16+'BP Financier'!$D$19+'BP Financier'!$E$16+'BP Financier'!$E$19+'BP Financier'!$C$22+'BP Financier'!$D$22+'BP Financier'!$E$22+'BP Financier'!$F$22+'BP Financier'!$F$19+'BP Financier'!$F$16+'BP Financier'!$G$22+'BP Financier'!$G$19+'BP Financier'!$G$16))*$V9136*Y9136/(1-$W9136)","v":{"v":2781.5085949208483,"d":"2,782"}},{"$f":"'BP Financier'!$G$44*(('BP Financier'!$C$19+'BP Financier'!$D$19+'BP Financier'!$E$19+'BP Financier'!$F$19+'BP Financier'!$G$19)/('BP Financier'!$C$16+'BP Financier'!$C$19+'BP Financier'!$D$16+'BP Financier'!$D$19+'BP Financier'!$E$16+'BP Financier'!$E$19+'BP Financier'!$C$22+'BP Financier'!$D$22+'BP Financier'!$E$22+'BP Financier'!$F$22+'BP Financier'!$F$19+'BP Financier'!$F$16+'BP Financier'!$G$22+'BP Financier'!$G$19+'BP Financier'!$G$16))*$V9136*Z9136/(1-$W9136)","v":{"v":21769.327598264827,"d":"21,769"}},{"$f":"'BP Financier'!$G$44*(('BP Financier'!$C$19+'BP Financier'!$D$19+'BP Financier'!$E$19+'BP Financier'!$F$19+'BP Financier'!$G$19)/('BP Financier'!$C$16+'BP Financier'!$C$19+'BP Financier'!$D$16+'BP Financier'!$D$19+'BP Financier'!$E$16+'BP Financier'!$E$19+'BP Financier'!$C$22+'BP Financier'!$D$22+'BP Financier'!$E$22+'BP Financier'!$F$22+'BP Financier'!$F$19+'BP Financier'!$F$16+'BP Financier'!$G$22+'BP Financier'!$G$19+'BP Financier'!$G$16))*$V9136*AA9136/(1-$W9136)","v":{"v":2689.5578975680937,"d":"2,690"}},{"$f":"'BP Financier'!$G$44*(('BP Financier'!$C$19+'BP Financier'!$D$19+'BP Financier'!$E$19+'BP Financier'!$F$19+'BP Financier'!$G$19)/('BP Financier'!$C$16+'BP Financier'!$C$19+'BP Financier'!$D$16+'BP Financier'!$D$19+'BP Financier'!$E$16+'BP Financier'!$E$19+'BP Financier'!$C$22+'BP Financier'!$D$22+'BP Financier'!$E$22+'BP Financier'!$F$22+'BP Financier'!$F$19+'BP Financier'!$F$16+'BP Financier'!$G$22+'BP Financier'!$G$19+'BP Financier'!$G$16))*$V9136*AB9136/(1-$W9136)","v":{"v":1287.3097629385745,"d":"1,287"}},null,{"v":1E-3,"d":"0.10%"},{"$f":"Actif!$E$28/100","v":{"v":0.28900000000000003,"d":"28.90%"}},{"$f":"Actif!$E$30/100","v":{"v":0.09050000000000001,"d":"9.05%"}},{"$f":"Actif!$E$31/100","v":{"v":0.0605,"d":"6.05%"}},{"$f":"Actif!$E$32/100","v":{"v":0.47350000000000003,"d":"47.35%"}},{"$f":"Actif!$E$33/100","v":{"v":0.0585,"d":"5.85%"}},{"$f":"Actif!$E$29/100","v":{"v":0.027999999999999997,"d":"2.80%"}}]
[null,"#21",22,2026,"H","A_PER",{"v":0.44999999999999996,"d":"0.45"},{"v":0.38999999999999996,"d":"0.39"},0.6,0.6,85,0,{"$f":"ROUND(Primes!$Q$7*V9137,0)","v":1},{"$f":"'BP Financier'!$G$33*(('BP Financier'!$C$19+'BP Financier'!$D$19+'BP Financier'!$E$19+'BP Financier'!$F$19+'BP Financier'!$G$19)/('BP Financier'!$C$16+'BP Financier'!$C$19+'BP Financier'!$D$16+'BP Financier'!$D$19+'BP Financier'!$E$16+'BP Financier'!$E$19+'BP Financier'!$F$16+'BP Financier'!$F$19+'BP Financier'!$G$16+'BP Financier'!$G$19))*V9137","v":{"v":56955.057223727745,"d":"56,955"}},{"v":32688.472908904525,"d":"32,688"},{"$f":"'BP Financier'!$G$44*(('BP Financier'!$C$19+'BP Financier'!$D$19+'BP Financier'!$E$19+'BP Financier'!$F$19+'BP Financier'!$G$19)/('BP Financier'!$C$16+'BP Financier'!$C$19+'BP Financier'!$D$16+'BP Financier'!$D$19+'BP Financier'!$E$16+'BP Financier'!$E$19+'BP Financier'!$C$22+'BP Financier'!$D$22+'BP Financier'!$E$22+'BP Financier'!$F$22+'BP Financier'!$F$19+'BP Financier'!$F$16+'BP Financier'!$G$22+'BP Financier'!$G$19+'BP Financier'!$G$16))*$V9137*X9137/(1-$W9137)","v":{"v":4160.769055212179,"d":"4,161"}},{"$f":"'BP Financier'!$G$44*(('BP Financier'!$C$19+'BP Financier'!$D$19+'BP Financier'!$E$19+'BP Financier'!$F$19+'BP Financier'!$G$19)/('BP Financier'!$C$16+'BP Financier'!$C$19+'BP Financier'!$D$16+'BP Financier'!$D$19+'BP Financier'!$E$16+'BP Financier'!$E$19+'BP Financier'!$C$22+'BP Financier'!$D$22+'BP Financier'!$E$22+'BP Financier'!$F$22+'BP Financier'!$F$19+'BP Financier'!$F$16+'BP Financier'!$G$22+'BP Financier'!$G$19+'BP Financier'!$G$16))*$V9137*Y9137/(1-$W9137)","v":{"v":2781.5085949208483,"d":"2,782"}},{"$f":"'BP Financier'!$G$44*(('BP Financier'!$C$19+'BP Financier'!$D$19+'BP Financier'!$E$19+'BP Financier'!$F$19+'BP Financier'!$G$19)/('BP Financier'!$C$16+'BP Financier'!$C$19+'BP Financier'!$D$16+'BP Financier'!$D$19+'BP Financier'!$E$16+'BP Financier'!$E$19+'BP Financier'!$C$22+'BP Financier'!$D$22+'BP Financier'!$E$22+'BP Financier'!$F$22+'BP Financier'!$F$19+'BP Financier'!$F$16+'BP Financier'!$G$22+'BP Financier'!$G$19+'BP Financier'!$G$16))*$V9137*Z9137/(1-$W9137)","v":{"v":21769.327598264827,"d":"21,769"}},{"$f":"'BP Financier'!$G$44*(('BP Financier'!$C$19+'BP Financier'!$D$19+'BP Financier'!$E$19+'BP Financier'!$F$19+'BP Financier'!$G$19)/('BP Financier'!$C$16+'BP Financier'!$C$19+'BP Financier'!$D$16+'BP Financier'!$D$19+'BP Financier'!$E$16+'BP Financier'!$E$19+'BP Financier'!$C$22+'BP Financier'!$D$22+'BP Financier'!$E$22+'BP Financier'!$F$22+'BP Financier'!$F$19+'BP Financier'!$F$16+'BP Financier'!$G$22+'BP Financier'!$G$19+'BP Financier'!$G$16))*$V9137*AA9137/(1-$W9137)","v":{"v":2689.5578975680937,"d":"2,690"}},{"$f":"'BP Financier'!$G$44*(('BP Financier'!$C$19+'BP Financier'!$D$19+'BP Financier'!$E$19+'BP Financier'!$F$19+'BP Financier'!$G$19)/('BP Financier'!$C$16+'BP Financier'!$C$19+'BP Financier'!$D$16+'BP Financier'!$D$19+'BP Financier'!$E$16+'BP Financier'!$E$19+'BP Financier'!$C$22+'BP Financier'!$D$22+'BP Financier'!$E$22+'BP Financier'!$F$22+'BP Financier'!$F$19+'BP Financier'!$F$16+'BP Financier'!$G$22+'BP Financier'!$G$19+'BP Financier'!$G$16))*$V9137*AB9137/(1-$W9137)","v":{"v":1287.3097629385745,"d":"1,287"}},null,{"v":1E-3,"d":"0.10%"},{"$f":"Actif!$E$28/100","v":{"v":0.28900000000000003,"d":"28.90%"}},{"$f":"Actif!$E$30/100","v":{"v":0.09050000000000001,"d":"9.05%"}},{"$f":"Actif!$E$31/100","v":{"v":0.0605,"d":"6.05%"}},{"$f":"Actif!$E$32/100","v":{"v":0.47350000000000003,"d":"47.35%"}},{"$f":"Actif!$E$33/100","v":{"v":0.0585,"d":"5.85%"}},{"$f":"Actif!$E$29/100","v":{"v":0.027999999999999997,"d":"2.80%"}}]
[null,"#22",22,2028,"H","A_PER",{"v":0.44999999999999996,"d":"0.45"},{"v":0.38999999999999996,"d":"0.39"},0.6,0.6,85,0,{"$f":"ROUND(Primes!$Q$7*V9138,0)","v":1},{"$f":"'BP Financier'!$G$33*(('BP Financier'!$C$19+'BP Financier'!$D$19+'BP Financier'!$E$19+'BP Financier'!$F$19+'BP Financier'!$G$19)/('BP Financier'!$C$16+'BP Financier'!$C$19+'BP Financier'!$D$16+'BP Financier'!$D$19+'BP Financier'!$E$16+'BP Financier'!$E$19+'BP Financier'!$F$16+'BP Financier'!$F$19+'BP Financier'!$G$16+'BP Financier'!$G$19))*V9138","v":{"v":56955.057223727745,"d":"56,955"}},{"v":32688.472908904525,"d":"32,688"},{"$f":"'BP Financier'!$G$44*(('BP Financier'!$C$19+'BP Financier'!$D$19+'BP Financier'!$E$19+'BP Financier'!$F$19+'BP Financier'!$G$19)/('BP Financier'!$C$16+'BP Financier'!$C$19+'BP Financier'!$D$16+'BP Financier'!$D$19+'BP Financier'!$E$16+'BP Financier'!$E$19+'BP Financier'!$C$22+'BP Financier'!$D$22+'BP Financier'!$E$22+'BP Financier'!$F$22+'BP Financier'!$F$19+'BP Financier'!$F$16+'BP Financier'!$G$22+'BP Financier'!$G$19+'BP Financier'!$G$16))*$V9138*X9138/(1-$W9138)","v":{"v":4160.769055212179,"d":"4,161"}},{"$f":"'BP Financier'!$G$44*(('BP Financier'!$C$19+'BP Financier'!$D$19+'BP Financier'!$E$19+'BP Financier'!$F$19+'BP Financier'!$G$19)/('BP Financier'!$C$16+'BP Financier'!$C$19+'BP Financier'!$D$16+'BP Financier'!$D$19+'BP Financier'!$E$16+'BP Financier'!$E$19+'BP Financier'!$C$22+'BP Financier'!$D$22+'BP Financier'!$E$22+'BP Financier'!$F$22+'BP Financier'!$F$19+'BP Financier'!$F$16+'BP Financier'!$G$22+'BP Financier'!$G$19+'BP Financier'!$G$16))*$V9138*Y9138/(1-$W9138)","v":{"v":2781.5085949208483,"d":"2,782"}},{"$f":"'BP Financier'!$G$44*(('BP Financier'!$C$19+'BP Financier'!$D$19+'BP Financier'!$E$19+'BP Financier'!$F$19+'BP Financier'!$G$19)/('BP Financier'!$C$16+'BP Financier'!$C$19+'BP Financier'!$D$16+'BP Financier'!$D$19+'BP Financier'!$E$16+'BP Financier'!$E$19+'BP Financier'!$C$22+'BP Financier'!$D$22+'BP Financier'!$E$22+'BP Financier'!$F$22+'BP Financier'!$F$19+'BP Financier'!$F$16+'BP Financier'!$G$22+'BP Financier'!$G$19+'BP Financier'!$G$16))*$V9138*Z9138/(1-$W9138)","v":{"v":21769.327598264827,"d":"21,769"}},{"$f":"'BP Financier'!$G$44*(('BP Financier'!$C$19+'BP Financier'!$D$19+'BP Financier'!$E$19+'BP Financier'!$F$19+'BP Financier'!$G$19)/('BP Financier'!$C$16+'BP Financier'!$C$19+'BP Financier'!$D$16+'BP Financier'!$D$19+'BP Financier'!$E$16+'BP Financier'!$E$19+'BP Financier'!$C$22+'BP Financier'!$D$22+'BP Financier'!$E$22+'BP Financier'!$F$22+'BP Financier'!$F$19+'BP Financier'!$F$16+'BP Financier'!$G$22+'BP Financier'!$G$19+'BP Financier'!$G$16))*$V9138*AA9138/(1-$W9138)","v":{"v":2689.5578975680937,"d":"2,690"}},{"$f":"'BP Financier'!$G$44*(('BP Financier'!$C$19+'BP Financier'!$D$19+'BP Financier'!$E$19+'BP Financier'!$F$19+'BP Financier'!$G$19)/('BP Financier'!$C$16+'BP Financier'!$C$19+'BP Financier'!$D$16+'BP Financier'!$D$19+'BP Financier'!$E$16+'BP Financier'!$E$19+'BP Financier'!$C$22+'BP Financier'!$D$22+'BP Financier'!$E$22+'BP Financier'!$F$22+'BP Financier'!$F$19+'BP Financier'!$F$16+'BP Financier'!$G$22+'BP Financier'!$G$19+'BP Financier'!$G$16))*$V9138*AB9138/(1-$W9138)","v":{"v":1287.3097629385745,"d":"1,287"}},null,{"v":1E-3,"d":"0.10%"},{"$f":"Actif!$E$28/100","v":{"v":0.28900000000000003,"d":"28.90%"}},{"$f":"Actif!$E$30/100","v":{"v":0.09050000000000001,"d":"9.05%"}},{"$f":"Actif!$E$31/100","v":{"v":0.0605,"d":"6.05%"}},{"$f":"Actif!$E$32/100","v":{"v":0.47350000000000003,"d":"47.35%"}},{"$f":"Actif!$E$33/100","v":{"v":0.0585,"d":"5.85%"}},{"$f":"Actif!$E$29/100","v":{"v":0.027999999999999997,"d":"2.80%"}}]
[null,"#23",22,2029,"H","A_PER",{"v":0.44999999999999996,"d":"0.45"},{"v":0.38999999999999996,"d":"0.39"},0.6,0.6,85,0,{"$f":"ROUND(Primes!$Q$7*V9139,0)","v":1},{"$f":"'BP Financier'!$G$33*(('BP Financier'!$C$19+'BP Financier'!$D$19+'BP Financier'!$E$19+'BP Financier'!$F$19+'BP Financier'!$G$19)/('BP Financier'!$C$16+'BP Financier'!$C$19+'BP Financier'!$D$16+'BP Financier'!$D$19+'BP Financier'!$E$16+'BP Financier'!$E$19+'BP Financier'!$F$16+'BP Financier'!$F$19+'BP Financier'!$G$16+'BP Financier'!$G$19))*V9139","v":{"v":56955.057223727745,"d":"56,955"}},{"v":32688.472908904525,"d":"32,688"},{"$f":"'BP Financier'!$G$44*(('BP Financier'!$C$19+'BP Financier'!$D$19+'BP Financier'!$E$19+'BP Financier'!$F$19+'BP Financier'!$G$19)/('BP Financier'!$C$16+'BP Financier'!$C$19+'BP Financier'!$D$16+'BP Financier'!$D$19+'BP Financier'!$E$16+'BP Financier'!$E$19+'BP Financier'!$C$22+'BP Financier'!$D$22+'BP Financier'!$E$22+'BP Financier'!$F$22+'BP Financier'!$F$19+'BP Financier'!$F$16+'BP Financier'!$G$22+'BP Financier'!$G$19+'BP Financier'!$G$16))*$V9139*X9139/(1-$W9139)","v":{"v":4160.769055212179,"d":"4,161"}},{"$f":"'BP Financier'!$G$44*(('BP Financier'!$C$19+'BP Financier'!$D$19+'BP Financier'!$E$19+'BP Financier'!$F$19+'BP Financier'!$G$19)/('BP Financier'!$C$16+'BP Financier'!$C$19+'BP Financier'!$D$16+'BP Financier'!$D$19+'BP Financier'!$E$16+'BP Financier'!$E$19+'BP Financier'!$C$22+'BP Financier'!$D$22+'BP Financier'!$E$22+'BP Financier'!$F$22+'BP Financier'!$F$19+'BP Financier'!$F$16+'BP Financier'!$G$22+'BP Financier'!$G$19+'BP Financier'!$G$16))*$V9139*Y9139/(1-$W9139)","v":{"v":2781.5085949208483,"d":"2,782"}},{"$f":"'BP Financier'!$G$44*(('BP Financier'!$C$19+'BP Financier'!$D$19+'BP Financier'!$E$19+'BP Financier'!$F$19+'BP Financier'!$G$19)/('BP Financier'!$C$16+'BP Financier'!$C$19+'BP Financier'!$D$16+'BP Financier'!$D$19+'BP Financier'!$E$16+'BP Financier'!$E$19+'BP Financier'!$C$22+'BP Financier'!$D$22+'BP Financier'!$E$22+'BP Financier'!$F$22+'BP Financier'!$F$19+'BP Financier'!$F$16+'BP Financier'!$G$22+'BP Financier'!$G$19+'BP Financier'!$G$16))*$V9139*Z9139/(1-$W9139)","v":{"v":21769.327598264827,"d":"21,769"}},{"$f":"'BP Financier'!$G$44*(('BP Financier'!$C$19+'BP Financier'!$D$19+'BP Financier'!$E$19+'BP Financier'!$F$19+'BP Financier'!$G$19)/('BP Financier'!$C$16+'BP Financier'!$C$19+'BP Financier'!$D$16+'BP Financier'!$D$19+'BP Financier'!$E$16+'BP Financier'!$E$19+'BP Financier'!$C$22+'BP Financier'!$D$22+'BP Financier'!$E$22+'BP Financier'!$F$22+'BP Financier'!$F$19+'BP Financier'!$F$16+'BP Financier'!$G$22+'BP Financier'!$G$19+'BP Financier'!$G$16))*$V9139*AA9139/(1-$W9139)","v":{"v":2689.5578975680937,"d":"2,690"}},{"$f":"'BP Financier'!$G$44*(('BP Financier'!$C$19+'BP Financier'!$D$19+'BP Financier'!$E$19+'BP Financier'!$F$19+'BP Financier'!$G$19)/('BP Financier'!$C$16+'BP Financier'!$C$19+'BP Financier'!$D$16+'BP Financier'!$D$19+'BP Financier'!$E$16+'BP Financier'!$E$19+'BP Financier'!$C$22+'BP Financier'!$D$22+'BP Financier'!$E$22+'BP Financier'!$F$22+'BP Financier'!$F$19+'BP Financier'!$F$16+'BP Financier'!$G$22+'BP Financier'!$G$19+'BP Financier'!$G$16))*$V9139*AB9139/(1-$W9139)","v":{"v":1287.3097629385745,"d":"1,287"}},null,{"v":1E-3,"d":"0.10%"},{"$f":"Actif!$E$28/100","v":{"v":0.28900000000000003,"d":"28.90%"}},{"$f":"Actif!$E$30/100","v":{"v":0.09050000000000001,"d":"9.05%"}},{"$f":"Actif!$E$31/100","v":{"v":0.0605,"d":"6.05%"}},{"$f":"Actif!$E$32/100","v":{"v":0.47350000000000003,"d":"47.35%"}},{"$f":"Actif!$E$33/100","v":{"v":0.0585,"d":"5.85%"}},{"$f":"Actif!$E$29/100","v":{"v":0.027999999999999997,"d":"2.80%"}}]
[null,"#24",22,2030,"H","A_PER",{"v":0.44999999999999996,"d":"0.45"},{"v":0.38999999999999996,"d":"0.39"},0.6,0.6,85,0,{"$f":"ROUND(Primes!$Q$7*V9140,0)","v":1},{"$f":"'BP Financier'!$G$33*(('BP Financier'!$C$19+'BP Financier'!$D$19+'BP Financier'!$E$19+'BP Financier'!$F$19+'BP Financier'!$G$19)/('BP Financier'!$C$16+'BP Financier'!$C$19+'BP Financier'!$D$16+'BP Financier'!$D$19+'BP Financier'!$E$16+'BP Financier'!$E$19+'BP Financier'!$F$16+'BP Financier'!$F$19+'BP Financier'!$G$16+'BP Financier'!$G$19))*V9140","v":{"v":56955.057223727745,"d":"56,955"}},{"v":32688.472908904525,"d":"32,688"},{"$f":"'BP Financier'!$G$44*(('BP Financier'!$C$19+'BP Financier'!$D$19+'BP Financier'!$E$19+'BP Financier'!$F$19+'BP Financier'!$G$19)/('BP Financier'!$C$16+'BP Financier'!$C$19+'BP Financier'!$D$16+'BP Financier'!$D$19+'BP Financier'!$E$16+'BP Financier'!$E$19+'BP Financier'!$C$22+'BP Financier'!$D$22+'BP Financier'!$E$22+'BP Financier'!$F$22+'BP Financier'!$F$19+'BP Financier'!$F$16+'BP Financier'!$G$22+'BP Financier'!$G$19+'BP Financier'!$G$16))*$V9140*X9140/(1-$W9140)","v":{"v":4160.769055212179,"d":"4,161"}},{"$f":"'BP Financier'!$G$44*(('BP Financier'!$C$19+'BP Financier'!$D$19+'BP Financier'!$E$19+'BP Financier'!$F$19+'BP Financier'!$G$19)/('BP Financier'!$C$16+'BP Financier'!$C$19+'BP Financier'!$D$16+'BP Financier'!$D$19+'BP Financier'!$E$16+'BP Financier'!$E$19+'BP Financier'!$C$22+'BP Financier'!$D$22+'BP Financier'!$E$22+'BP Financier'!$F$22+'BP Financier'!$F$19+'BP Financier'!$F$16+'BP Financier'!$G$22+'BP Financier'!$G$19+'BP Financier'!$G$16))*$V9140*Y9140/(1-$W9140)","v":{"v":2781.5085949208483,"d":"2,782"}},{"$f":"'BP Financier'!$G$44*(('BP Financier'!$C$19+'BP Financier'!$D$19+'BP Financier'!$E$19+'BP Financier'!$F$19+'BP Financier'!$G$19)/('BP Financier'!$C$16+'BP Financier'!$C$19+'BP Financier'!$D$16+'BP Financier'!$D$19+'BP Financier'!$E$16+'BP Financier'!$E$19+'BP Financier'!$C$22+'BP Financier'!$D$22+'BP Financier'!$E$22+'BP Financier'!$F$22+'BP Financier'!$F$19+'BP Financier'!$F$16+'BP Financier'!$G$22+'BP Financier'!$G$19+'BP Financier'!$G$16))*$V9140*Z9140/(1-$W9140)","v":{"v":21769.327598264827,"d":"21,769"}},{"$f":"'BP Financier'!$G$44*(('BP Financier'!$C$19+'BP Financier'!$D$19+'BP Financier'!$E$19+'BP Financier'!$F$19+'BP Financier'!$G$19)/('BP Financier'!$C$16+'BP Financier'!$C$19+'BP Financier'!$D$16+'BP Financier'!$D$19+'BP Financier'!$E$16+'BP Financier'!$E$19+'BP Financier'!$C$22+'BP Financier'!$D$22+'BP Financier'!$E$22+'BP Financier'!$F$22+'BP Financier'!$F$19+'BP Financier'!$F$16+'BP Financier'!$G$22+'BP Financier'!$G$19+'BP Financier'!$G$16))*$V9140*AA9140/(1-$W9140)","v":{"v":2689.5578975680937,"d":"2,690"}},{"$f":"'BP Financier'!$G$44*(('BP Financier'!$C$19+'BP Financier'!$D$19+'BP Financier'!$E$19+'BP Financier'!$F$19+'BP Financier'!$G$19)/('BP Financier'!$C$16+'BP Financier'!$C$19+'BP Financier'!$D$16+'BP Financier'!$D$19+'BP Financier'!$E$16+'BP Financier'!$E$19+'BP Financier'!$C$22+'BP Financier'!$D$22+'BP Financier'!$E$22+'BP Financier'!$F$22+'BP Financier'!$F$19+'BP Financier'!$F$16+'BP Financier'!$G$22+'BP Financier'!$G$19+'BP Financier'!$G$16))*$V9140*AB9140/(1-$W9140)","v":{"v":1287.3097629385745,"d":"1,287"}},null,{"v":1E-3,"d":"0.10%"},{"$f":"Actif!$E$28/100","v":{"v":0.28900000000000003,"d":"28.90%"}},{"$f":"Actif!$E$30/100","v":{"v":0.09050000000000001,"d":"9.05%"}},{"$f":"Actif!$E$31/100","v":{"v":0.0605,"d":"6.05%"}},{"$f":"Actif!$E$32/100","v":{"v":0.47350000000000003,"d":"47.35%"}},{"$f":"Actif!$E$33/100","v":{"v":0.0585,"d":"5.85%"}},{"$f":"Actif!$E$29/100","v":{"v":0.027999999999999997,"d":"2.80%"}}]
[null,"#25",22,2031,"H","A_PER",{"v":0.44999999999999996,"d":"0.45"},{"v":0.38999999999999996,"d":"0.39"},0.6,0.6,85,0,{"$f":"ROUND(Primes!$Q$7*V9141,0)","v":1},{"$f":"'BP Financier'!$G$33*(('BP Financier'!$C$19+'BP Financier'!$D$19+'BP Financier'!$E$19+'BP Financier'!$F$19+'BP Financier'!$G$19)/('BP Financier'!$C$16+'BP Financier'!$C$19+'BP Financier'!$D$16+'BP Financier'!$D$19+'BP Financier'!$E$16+'BP Financier'!$E$19+'BP Financier'!$F$16+'BP Financier'!$F$19+'BP Financier'!$G$16+'BP Financier'!$G$19))*V9141","v":{"v":56955.057223727745,"d":"56,955"}},{"v":32688.472908904525,"d":"32,688"},{"$f":"'BP Financier'!$G$44*(('BP Financier'!$C$19+'BP Financier'!$D$19+'BP Financier'!$E$19+'BP Financier'!$F$19+'BP Financier'!$G$19)/('BP Financier'!$C$16+'BP Financier'!$C$19+'BP Financier'!$D$16+'BP Financier'!$D$19+'BP Financier'!$E$16+'BP Financier'!$E$19+'BP Financier'!$C$22+'BP Financier'!$D$22+'BP Financier'!$E$22+'BP Financier'!$F$22+'BP Financier'!$F$19+'BP Financier'!$F$16+'BP Financier'!$G$22+'BP Financier'!$G$19+'BP Financier'!$G$16))*$V9141*X9141/(1-$W9141)","v":{"v":4160.769055212179,"d":"4,161"}},{"$f":"'BP Financier'!$G$44*(('BP Financier'!$C$19+'BP Financier'!$D$19+'BP Financier'!$E$19+'BP Financier'!$F$19+'BP Financier'!$G$19)/('BP Financier'!$C$16+'BP Financier'!$C$19+'BP Financier'!$D$16+'BP Financier'!$D$19+'BP Financier'!$E$16+'BP Financier'!$E$19+'BP Financier'!$C$22+'BP Financier'!$D$22+'BP Financier'!$E$22+'BP Financier'!$F$22+'BP Financier'!$F$19+'BP Financier'!$F$16+'BP Financier'!$G$22+'BP Financier'!$G$19+'BP Financier'!$G$16))*$V9141*Y9141/(1-$W9141)","v":{"v":2781.5085949208483,"d":"2,782"}},{"$f":"'BP Financier'!$G$44*(('BP Financier'!$C$19+'BP Financier'!$D$19+'BP Financier'!$E$19+'BP Financier'!$F$19+'BP Financier'!$G$19)/('BP Financier'!$C$16+'BP Financier'!$C$19+'BP Financier'!$D$16+'BP Financier'!$D$19+'BP Financier'!$E$16+'BP Financier'!$E$19+'BP Financier'!$C$22+'BP Financier'!$D$22+'BP Financier'!$E$22+'BP Financier'!$F$22+'BP Financier'!$F$19+'BP Financier'!$F$16+'BP Financier'!$G$22+'BP Financier'!$G$19+'BP Financier'!$G$16))*$V9141*Z9141/(1-$W9141)","v":{"v":21769.327598264827,"d":"21,769"}},{"$f":"'BP Financier'!$G$44*(('BP Financier'!$C$19+'BP Financier'!$D$19+'BP Financier'!$E$19+'BP Financier'!$F$19+'BP Financier'!$G$19)/('BP Financier'!$C$16+'BP Financier'!$C$19+'BP Financier'!$D$16+'BP Financier'!$D$19+'BP Financier'!$E$16+'BP Financier'!$E$19+'BP Financier'!$C$22+'BP Financier'!$D$22+'BP Financier'!$E$22+'BP Financier'!$F$22+'BP Financier'!$F$19+'BP Financier'!$F$16+'BP Financier'!$G$22+'BP Financier'!$G$19+'BP Financier'!$G$16))*$V9141*AA9141/(1-$W9141)","v":{"v":2689.5578975680937,"d":"2,690"}},{"$f":"'BP Financier'!$G$44*(('BP Financier'!$C$19+'BP Financier'!$D$19+'BP Financier'!$E$19+'BP Financier'!$F$19+'BP Financier'!$G$19)/('BP Financier'!$C$16+'BP Financier'!$C$19+'BP Financier'!$D$16+'BP Financier'!$D$19+'BP Financier'!$E$16+'BP Financier'!$E$19+'BP Financier'!$C$22+'BP Financier'!$D$22+'BP Financier'!$E$22+'BP Financier'!$F$22+'BP Financier'!$F$19+'BP Financier'!$F$16+'BP Financier'!$G$22+'BP Financier'!$G$19+'BP Financier'!$G$16))*$V9141*AB9141/(1-$W9141)","v":{"v":1287.3097629385745,"d":"1,287"}},null,{"v":1E-3,"d":"0.10%"},{"$f":"Actif!$E$28/100","v":{"v":0.28900000000000003,"d":"28.90%"}},{"$f":"Actif!$E$30/100","v":{"v":0.09050000000000001,"d":"9.05%"}},{"$f":"Actif!$E$31/100","v":{"v":0.0605,"d":"6.05%"}},{"$f":"Actif!$E$32/100","v":{"v":0.47350000000000003,"d":"47.35%"}},{"$f":"Actif!$E$33/100","v":{"v":0.0585,"d":"5.85%"}},{"$f":"Actif!$E$29/100","v":{"v":0.027999999999999997,"d":"2.80%"}}]
[null,"#26",23,2026,"F","A_PER",{"v":0.44999999999999996,"d":"0.45"},{"v":0.38999999999999996,"d":"0.39"},0.6,0.6,85,0,{"$f":"ROUND(Primes!$Q$7*V9142,0)","v":1},{"$f":"'BP Financier'!$G$33*(('BP Financier'!$C$19+'BP Financier'!$D$19+'BP Financier'!$E$19+'BP Financier'!$F$19+'BP Financier'!$G$19)/('BP Financier'!$C$16+'BP Financier'!$C$19+'BP Financier'!$D$16+'BP Financier'!$D$19+'BP Financier'!$E$16+'BP Financier'!$E$19+'BP Financier'!$F$16+'BP Financier'!$F$19+'BP Financier'!$G$16+'BP Financier'!$G$19))*V9142","v":{"v":56955.057223727745,"d":"56,955"}},{"v":32688.472908904525,"d":"32,688"},{"$f":"'BP Financier'!$G$44*(('BP Financier'!$C$19+'BP Financier'!$D$19+'BP Financier'!$E$19+'BP Financier'!$F$19+'BP Financier'!$G$19)/('BP Financier'!$C$16+'BP Financier'!$C$19+'BP Financier'!$D$16+'BP Financier'!$D$19+'BP Financier'!$E$16+'BP Financier'!$E$19+'BP Financier'!$C$22+'BP Financier'!$D$22+'BP Financier'!$E$22+'BP Financier'!$F$22+'BP Financier'!$F$19+'BP Financier'!$F$16+'BP Financier'!$G$22+'BP Financier'!$G$19+'BP Financier'!$G$16))*$V9142*X9142/(1-$W9142)","v":{"v":4160.769055212179,"d":"4,161"}},{"$f":"'BP Financier'!$G$44*(('BP Financier'!$C$19+'BP Financier'!$D$19+'BP Financier'!$E$19+'BP Financier'!$F$19+'BP Financier'!$G$19)/('BP Financier'!$C$16+'BP Financier'!$C$19+'BP Financier'!$D$16+'BP Financier'!$D$19+'BP Financier'!$E$16+'BP Financier'!$E$19+'BP Financier'!$C$22+'BP Financier'!$D$22+'BP Financier'!$E$22+'BP Financier'!$F$22+'BP Financier'!$F$19+'BP Financier'!$F$16+'BP Financier'!$G$22+'BP Financier'!$G$19+'BP Financier'!$G$16))*$V9142*Y9142/(1-$W9142)","v":{"v":2781.5085949208483,"d":"2,782"}},{"$f":"'BP Financier'!$G$44*(('BP Financier'!$C$19+'BP Financier'!$D$19+'BP Financier'!$E$19+'BP Financier'!$F$19+'BP Financier'!$G$19)/('BP Financier'!$C$16+'BP Financier'!$C$19+'BP Financier'!$D$16+'BP Financier'!$D$19+'BP Financier'!$E$16+'BP Financier'!$E$19+'BP Financier'!$C$22+'BP Financier'!$D$22+'BP Financier'!$E$22+'BP Financier'!$F$22+'BP Financier'!$F$19+'BP Financier'!$F$16+'BP Financier'!$G$22+'BP Financier'!$G$19+'BP Financier'!$G$16))*$V9142*Z9142/(1-$W9142)","v":{"v":21769.327598264827,"d":"21,769"}},{"$f":"'BP Financier'!$G$44*(('BP Financier'!$C$19+'BP Financier'!$D$19+'BP Financier'!$E$19+'BP Financier'!$F$19+'BP Financier'!$G$19)/('BP Financier'!$C$16+'BP Financier'!$C$19+'BP Financier'!$D$16+'BP Financier'!$D$19+'BP Financier'!$E$16+'BP Financier'!$E$19+'BP Financier'!$C$22+'BP Financier'!$D$22+'BP Financier'!$E$22+'BP Financier'!$F$22+'BP Financier'!$F$19+'BP Financier'!$F$16+'BP Financier'!$G$22+'BP Financier'!$G$19+'BP Financier'!$G$16))*$V9142*AA9142/(1-$W9142)","v":{"v":2689.5578975680937,"d":"2,690"}},{"$f":"'BP Financier'!$G$44*(('BP Financier'!$C$19+'BP Financier'!$D$19+'BP Financier'!$E$19+'BP Financier'!$F$19+'BP Financier'!$G$19)/('BP Financier'!$C$16+'BP Financier'!$C$19+'BP Financier'!$D$16+'BP Financier'!$D$19+'BP Financier'!$E$16+'BP Financier'!$E$19+'BP Financier'!$C$22+'BP Financier'!$D$22+'BP Financier'!$E$22+'BP Financier'!$F$22+'BP Financier'!$F$19+'BP Financier'!$F$16+'BP Financier'!$G$22+'BP Financier'!$G$19+'BP Financier'!$G$16))*$V9142*AB9142/(1-$W9142)","v":{"v":1287.3097629385745,"d":"1,287"}},null,{"v":1E-3,"d":"0.10%"},{"$f":"Actif!$E$28/100","v":{"v":0.28900000000000003,"d":"28.90%"}},{"$f":"Actif!$E$30/100","v":{"v":0.09050000000000001,"d":"9.05%"}},{"$f":"Actif!$E$31/100","v":{"v":0.0605,"d":"6.05%"}},{"$f":"Actif!$E$32/100","v":{"v":0.47350000000000003,"d":"47.35%"}},{"$f":"Actif!$E$33/100","v":{"v":0.0585,"d":"5.85%"}},{"$f":"Actif!$E$29/100","v":{"v":0.027999999999999997,"d":"2.80%"}}]
[null,"#27",23,2028,"F","A_PER",{"v":0.44999999999999996,"d":"0.45"},{"v":0.38999999999999996,"d":"0.39"},0.6,0.6,85,0,{"$f":"ROUND(Primes!$Q$7*V9143,0)","v":1},{"$f":"'BP Financier'!$G$33*(('BP Financier'!$C$19+'BP Financier'!$D$19+'BP Financier'!$E$19+'BP Financier'!$F$19+'BP Financier'!$G$19)/('BP Financier'!$C$16+'BP Financier'!$C$19+'BP Financier'!$D$16+'BP Financier'!$D$19+'BP Financier'!$E$16+'BP Financier'!$E$19+'BP Financier'!$F$16+'BP Financier'!$F$19+'BP Financier'!$G$16+'BP Financier'!$G$19))*V9143","v":{"v":56955.057223727745,"d":"56,955"}},{"v":32688.472908904525,"d":"32,688"},{"$f":"'BP Financier'!$G$44*(('BP Financier'!$C$19+'BP Financier'!$D$19+'BP Financier'!$E$19+'BP Financier'!$F$19+'BP Financier'!$G$19)/('BP Financier'!$C$16+'BP Financier'!$C$19+'BP Financier'!$D$16+'BP Financier'!$D$19+'BP Financier'!$E$16+'BP Financier'!$E$19+'BP Financier'!$C$22+'BP Financier'!$D$22+'BP Financier'!$E$22+'BP Financier'!$F$22+'BP Financier'!$F$19+'BP Financier'!$F$16+'BP Financier'!$G$22+'BP Financier'!$G$19+'BP Financier'!$G$16))*$V9143*X9143/(1-$W9143)","v":{"v":4160.769055212179,"d":"4,161"}},{"$f":"'BP Financier'!$G$44*(('BP Financier'!$C$19+'BP Financier'!$D$19+'BP Financier'!$E$19+'BP Financier'!$F$19+'BP Financier'!$G$19)/('BP Financier'!$C$16+'BP Financier'!$C$19+'BP Financier'!$D$16+'BP Financier'!$D$19+'BP Financier'!$E$16+'BP Financier'!$E$19+'BP Financier'!$C$22+'BP Financier'!$D$22+'BP Financier'!$E$22+'BP Financier'!$F$22+'BP Financier'!$F$19+'BP Financier'!$F$16+'BP Financier'!$G$22+'BP Financier'!$G$19+'BP Financier'!$G$16))*$V9143*Y9143/(1-$W9143)","v":{"v":2781.5085949208483,"d":"2,782"}},{"$f":"'BP Financier'!$G$44*(('BP Financier'!$C$19+'BP Financier'!$D$19+'BP Financier'!$E$19+'BP Financier'!$F$19+'BP Financier'!$G$19)/('BP Financier'!$C$16+'BP Financier'!$C$19+'BP Financier'!$D$16+'BP Financier'!$D$19+'BP Financier'!$E$16+'BP Financier'!$E$19+'BP Financier'!$C$22+'BP Financier'!$D$22+'BP Financier'!$E$22+'BP Financier'!$F$22+'BP Financier'!$F$19+'BP Financier'!$F$16+'BP Financier'!$G$22+'BP Financier'!$G$19+'BP Financier'!$G$16))*$V9143*Z9143/(1-$W9143)","v":{"v":21769.327598264827,"d":"21,769"}},{"$f":"'BP Financier'!$G$44*(('BP Financier'!$C$19+'BP Financier'!$D$19+'BP Financier'!$E$19+'BP Financier'!$F$19+'BP Financier'!$G$19)/('BP Financier'!$C$16+'BP Financier'!$C$19+'BP Financier'!$D$16+'BP Financier'!$D$19+'BP Financier'!$E$16+'BP Financier'!$E$19+'BP Financier'!$C$22+'BP Financier'!$D$22+'BP Financier'!$E$22+'BP Financier'!$F$22+'BP Financier'!$F$19+'BP Financier'!$F$16+'BP Financier'!$G$22+'BP Financier'!$G$19+'BP Financier'!$G$16))*$V9143*AA9143/(1-$W9143)","v":{"v":2689.5578975680937,"d":"2,690"}},{"$f":"'BP Financier'!$G$44*(('BP Financier'!$C$19+'BP Financier'!$D$19+'BP Financier'!$E$19+'BP Financier'!$F$19+'BP Financier'!$G$19)/('BP Financier'!$C$16+'BP Financier'!$C$19+'BP Financier'!$D$16+'BP Financier'!$D$19+'BP Financier'!$E$16+'BP Financier'!$E$19+'BP Financier'!$C$22+'BP Financier'!$D$22+'BP Financier'!$E$22+'BP Financier'!$F$22+'BP Financier'!$F$19+'BP Financier'!$F$16+'BP Financier'!$G$22+'BP Financier'!$G$19+'BP Financier'!$G$16))*$V9143*AB9143/(1-$W9143)","v":{"v":1287.3097629385745,"d":"1,287"}},null,{"v":1E-3,"d":"0.10%"},{"$f":"Actif!$E$28/100","v":{"v":0.28900000000000003,"d":"28.90%"}},{"$f":"Actif!$E$30/100","v":{"v":0.09050000000000001,"d":"9.05%"}},{"$f":"Actif!$E$31/100","v":{"v":0.0605,"d":"6.05%"}},{"$f":"Actif!$E$32/100","v":{"v":0.47350000000000003,"d":"47.35%"}},{"$f":"Actif!$E$33/100","v":{"v":0.0585,"d":"5.85%"}},{"$f":"Actif!$E$29/100","v":{"v":0.027999999999999997,"d":"2.80%"}}]
[null,"#28",23,2029,"F","A_PER",{"v":0.44999999999999996,"d":"0.45"},{"v":0.38999999999999996,"d":"0.39"},0.6,0.6,85,0,{"$f":"ROUND(Primes!$Q$7*V9144,0)","v":1},{"$f":"'BP Financier'!$G$33*(('BP Financier'!$C$19+'BP Financier'!$D$19+'BP Financier'!$E$19+'BP Financier'!$F$19+'BP Financier'!$G$19)/('BP Financier'!$C$16+'BP Financier'!$C$19+'BP Financier'!$D$16+'BP Financier'!$D$19+'BP Financier'!$E$16+'BP Financier'!$E$19+'BP Financier'!$F$16+'BP Financier'!$F$19+'BP Financier'!$G$16+'BP Financier'!$G$19))*V9144","v":{"v":56955.057223727745,"d":"56,955"}},{"v":32688.472908904525,"d":"32,688"},{"$f":"'BP Financier'!$G$44*(('BP Financier'!$C$19+'BP Financier'!$D$19+'BP Financier'!$E$19+'BP Financier'!$F$19+'BP Financier'!$G$19)/('BP Financier'!$C$16+'BP Financier'!$C$19+'BP Financier'!$D$16+'BP Financier'!$D$19+'BP Financier'!$E$16+'BP Financier'!$E$19+'BP Financier'!$C$22+'BP Financier'!$D$22+'BP Financier'!$E$22+'BP Financier'!$F$22+'BP Financier'!$F$19+'BP Financier'!$F$16+'BP Financier'!$G$22+'BP Financier'!$G$19+'BP Financier'!$G$16))*$V9144*X9144/(1-$W9144)","v":{"v":4160.769055212179,"d":"4,161"}},{"$f":"'BP Financier'!$G$44*(('BP Financier'!$C$19+'BP Financier'!$D$19+'BP Financier'!$E$19+'BP Financier'!$F$19+'BP Financier'!$G$19)/('BP Financier'!$C$16+'BP Financier'!$C$19+'BP Financier'!$D$16+'BP Financier'!$D$19+'BP Financier'!$E$16+'BP Financier'!$E$19+'BP Financier'!$C$22+'BP Financier'!$D$22+'BP Financier'!$E$22+'BP Financier'!$F$22+'BP Financier'!$F$19+'BP Financier'!$F$16+'BP Financier'!$G$22+'BP Financier'!$G$19+'BP Financier'!$G$16))*$V9144*Y9144/(1-$W9144)","v":{"v":2781.5085949208483,"d":"2,782"}},{"$f":"'BP Financier'!$G$44*(('BP Financier'!$C$19+'BP Financier'!$D$19+'BP Financier'!$E$19+'BP Financier'!$F$19+'BP Financier'!$G$19)/('BP Financier'!$C$16+'BP Financier'!$C$19+'BP Financier'!$D$16+'BP Financier'!$D$19+'BP Financier'!$E$16+'BP Financier'!$E$19+'BP Financier'!$C$22+'BP Financier'!$D$22+'BP Financier'!$E$22+'BP Financier'!$F$22+'BP Financier'!$F$19+'BP Financier'!$F$16+'BP Financier'!$G$22+'BP Financier'!$G$19+'BP Financier'!$G$16))*$V9144*Z9144/(1-$W9144)","v":{"v":21769.327598264827,"d":"21,769"}},{"$f":"'BP Financier'!$G$44*(('BP Financier'!$C$19+'BP Financier'!$D$19+'BP Financier'!$E$19+'BP Financier'!$F$19+'BP Financier'!$G$19)/('BP Financier'!$C$16+'BP Financier'!$C$19+'BP Financier'!$D$16+'BP Financier'!$D$19+'BP Financier'!$E$16+'BP Financier'!$E$19+'BP Financier'!$C$22+'BP Financier'!$D$22+'BP Financier'!$E$22+'BP Financier'!$F$22+'BP Financier'!$F$19+'BP Financier'!$F$16+'BP Financier'!$G$22+'BP Financier'!$G$19+'BP Financier'!$G$16))*$V9144*AA9144/(1-$W9144)","v":{"v":2689.5578975680937,"d":"2,690"}},{"$f":"'BP Financier'!$G$44*(('BP Financier'!$C$19+'BP Financier'!$D$19+'BP Financier'!$E$19+'BP Financier'!$F$19+'BP Financier'!$G$19)/('BP Financier'!$C$16+'BP Financier'!$C$19+'BP Financier'!$D$16+'BP Financier'!$D$19+'BP Financier'!$E$16+'BP Financier'!$E$19+'BP Financier'!$C$22+'BP Financier'!$D$22+'BP Financier'!$E$22+'BP Financier'!$F$22+'BP Financier'!$F$19+'BP Financier'!$F$16+'BP Financier'!$G$22+'BP Financier'!$G$19+'BP Financier'!$G$16))*$V9144*AB9144/(1-$W9144)","v":{"v":1287.3097629385745,"d":"1,287"}},null,{"v":1E-3,"d":"0.10%"},{"$f":"Actif!$E$28/100","v":{"v":0.28900000000000003,"d":"28.90%"}},{"$f":"Actif!$E$30/100","v":{"v":0.09050000000000001,"d":"9.05%"}},{"$f":"Actif!$E$31/100","v":{"v":0.0605,"d":"6.05%"}},{"$f":"Actif!$E$32/100","v":{"v":0.47350000000000003,"d":"47.35%"}},{"$f":"Actif!$E$33/100","v":{"v":0.0585,"d":"5.85%"}},{"$f":"Actif!$E$29/100","v":{"v":0.027999999999999997,"d":"2.80%"}}]
[null,"#29",23,2030,"F","A_PER",{"v":0.44999999999999996,"d":"0.45"},{"v":0.38999999999999996,"d":"0.39"},0.6,0.6,85,0,{"$f":"ROUND(Primes!$Q$7*V9145,0)","v":1},{"$f":"'BP Financier'!$G$33*(('BP Financier'!$C$19+'BP Financier'!$D$19+'BP Financier'!$E$19+'BP Financier'!$F$19+'BP Financier'!$G$19)/('BP Financier'!$C$16+'BP Financier'!$C$19+'BP Financier'!$D$16+'BP Financier'!$D$19+'BP Financier'!$E$16+'BP Financier'!$E$19+'BP Financier'!$F$16+'BP Financier'!$F$19+'BP Financier'!$G$16+'BP Financier'!$G$19))*V9145","v":{"v":56955.057223727745,"d":"56,955"}},{"v":32688.472908904525,"d":"32,688"},{"$f":"'BP Financier'!$G$44*(('BP Financier'!$C$19+'BP Financier'!$D$19+'BP Financier'!$E$19+'BP Financier'!$F$19+'BP Financier'!$G$19)/('BP Financier'!$C$16+'BP Financier'!$C$19+'BP Financier'!$D$16+'BP Financier'!$D$19+'BP Financier'!$E$16+'BP Financier'!$E$19+'BP Financier'!$C$22+'BP Financier'!$D$22+'BP Financier'!$E$22+'BP Financier'!$F$22+'BP Financier'!$F$19+'BP Financier'!$F$16+'BP Financier'!$G$22+'BP Financier'!$G$19+'BP Financier'!$G$16))*$V9145*X9145/(1-$W9145)","v":{"v":4160.769055212179,"d":"4,161"}},{"$f":"'BP Financier'!$G$44*(('BP Financier'!$C$19+'BP Financier'!$D$19+'BP Financier'!$E$19+'BP Financier'!$F$19+'BP Financier'!$G$19)/('BP Financier'!$C$16+'BP Financier'!$C$19+'BP Financier'!$D$16+'BP Financier'!$D$19+'BP Financier'!$E$16+'BP Financier'!$E$19+'BP Financier'!$C$22+'BP Financier'!$D$22+'BP Financier'!$E$22+'BP Financier'!$F$22+'BP Financier'!$F$19+'BP Financier'!$F$16+'BP Financier'!$G$22+'BP Financier'!$G$19+'BP Financier'!$G$16))*$V9145*Y9145/(1-$W9145)","v":{"v":2781.5085949208483,"d":"2,782"}},{"$f":"'BP Financier'!$G$44*(('BP Financier'!$C$19+'BP Financier'!$D$19+'BP Financier'!$E$19+'BP Financier'!$F$19+'BP Financier'!$G$19)/('BP Financier'!$C$16+'BP Financier'!$C$19+'BP Financier'!$D$16+'BP Financier'!$D$19+'BP Financier'!$E$16+'BP Financier'!$E$19+'BP Financier'!$C$22+'BP Financier'!$D$22+'BP Financier'!$E$22+'BP Financier'!$F$22+'BP Financier'!$F$19+'BP Financier'!$F$16+'BP Financier'!$G$22+'BP Financier'!$G$19+'BP Financier'!$G$16))*$V9145*Z9145/(1-$W9145)","v":{"v":21769.327598264827,"d":"21,769"}},{"$f":"'BP Financier'!$G$44*(('BP Financier'!$C$19+'BP Financier'!$D$19+'BP Financier'!$E$19+'BP Financier'!$F$19+'BP Financier'!$G$19)/('BP Financier'!$C$16+'BP Financier'!$C$19+'BP Financier'!$D$16+'BP Financier'!$D$19+'BP Financier'!$E$16+'BP Financier'!$E$19+'BP Financier'!$C$22+'BP Financier'!$D$22+'BP Financier'!$E$22+'BP Financier'!$F$22+'BP Financier'!$F$19+'BP Financier'!$F$16+'BP Financier'!$G$22+'BP Financier'!$G$19+'BP Financier'!$G$16))*$V9145*AA9145/(1-$W9145)","v":{"v":2689.5578975680937,"d":"2,690"}},{"$f":"'BP Financier'!$G$44*(('BP Financier'!$C$19+'BP Financier'!$D$19+'BP Financier'!$E$19+'BP Financier'!$F$19+'BP Financier'!$G$19)/('BP Financier'!$C$16+'BP Financier'!$C$19+'BP Financier'!$D$16+'BP Financier'!$D$19+'BP Financier'!$E$16+'BP Financier'!$E$19+'BP Financier'!$C$22+'BP Financier'!$D$22+'BP Financier'!$E$22+'BP Financier'!$F$22+'BP Financier'!$F$19+'BP Financier'!$F$16+'BP Financier'!$G$22+'BP Financier'!$G$19+'BP Financier'!$G$16))*$V9145*AB9145/(1-$W9145)","v":{"v":1287.3097629385745,"d":"1,287"}},null,{"v":1E-3,"d":"0.10%"},{"$f":"Actif!$E$28/100","v":{"v":0.28900000000000003,"d":"28.90%"}},{"$f":"Actif!$E$30/100","v":{"v":0.09050000000000001,"d":"9.05%"}},{"$f":"Actif!$E$31/100","v":{"v":0.0605,"d":"6.05%"}},{"$f":"Actif!$E$32/100","v":{"v":0.47350000000000003,"d":"47.35%"}},{"$f":"Actif!$E$33/100","v":{"v":0.0585,"d":"5.85%"}},{"$f":"Actif!$E$29/100","v":{"v":0.027999999999999997,"d":"2.80%"}}]
[null,"#30",23,2031,"F","A_PER",{"v":0.44999999999999996,"d":"0.45"},{"v":0.38999999999999996,"d":"0.39"},0.6,0.6,85,0,{"$f":"ROUND(Primes!$Q$7*V9146,0)","v":1},{"$f":"'BP Financier'!$G$33*(('BP Financier'!$C$19+'BP Financier'!$D$19+'BP Financier'!$E$19+'BP Financier'!$F$19+'BP Financier'!$G$19)/('BP Financier'!$C$16+'BP Financier'!$C$19+'BP Financier'!$D$16+'BP Financier'!$D$19+'BP Financier'!$E$16+'BP Financier'!$E$19+'BP Financier'!$F$16+'BP Financier'!$F$19+'BP Financier'!$G$16+'BP Financier'!$G$19))*V9146","v":{"v":56955.057223727745,"d":"56,955"}},{"v":32688.472908904525,"d":"32,688"},{"$f":"'BP Financier'!$G$44*(('BP Financier'!$C$19+'BP Financier'!$D$19+'BP Financier'!$E$19+'BP Financier'!$F$19+'BP Financier'!$G$19)/('BP Financier'!$C$16+'BP Financier'!$C$19+'BP Financier'!$D$16+'BP Financier'!$D$19+'BP Financier'!$E$16+'BP Financier'!$E$19+'BP Financier'!$C$22+'BP Financier'!$D$22+'BP Financier'!$E$22+'BP Financier'!$F$22+'BP Financier'!$F$19+'BP Financier'!$F$16+'BP Financier'!$G$22+'BP Financier'!$G$19+'BP Financier'!$G$16))*$V9146*X9146/(1-$W9146)","v":{"v":4160.769055212179,"d":"4,161"}},{"$f":"'BP Financier'!$G$44*(('BP Financier'!$C$19+'BP Financier'!$D$19+'BP Financier'!$E$19+'BP Financier'!$F$19+'BP Financier'!$G$19)/('BP Financier'!$C$16+'BP Financier'!$C$19+'BP Financier'!$D$16+'BP Financier'!$D$19+'BP Financier'!$E$16+'BP Financier'!$E$19+'BP Financier'!$C$22+'BP Financier'!$D$22+'BP Financier'!$E$22+'BP Financier'!$F$22+'BP Financier'!$F$19+'BP Financier'!$F$16+'BP Financier'!$G$22+'BP Financier'!$G$19+'BP Financier'!$G$16))*$V9146*Y9146/(1-$W9146)","v":{"v":2781.5085949208483,"d":"2,782"}},{"$f":"'BP Financier'!$G$44*(('BP Financier'!$C$19+'BP Financier'!$D$19+'BP Financier'!$E$19+'BP Financier'!$F$19+'BP Financier'!$G$19)/('BP Financier'!$C$16+'BP Financier'!$C$19+'BP Financier'!$D$16+'BP Financier'!$D$19+'BP Financier'!$E$16+'BP Financier'!$E$19+'BP Financier'!$C$22+'BP Financier'!$D$22+'BP Financier'!$E$22+'BP Financier'!$F$22+'BP Financier'!$F$19+'BP Financier'!$F$16+'BP Financier'!$G$22+'BP Financier'!$G$19+'BP Financier'!$G$16))*$V9146*Z9146/(1-$W9146)","v":{"v":21769.327598264827,"d":"21,769"}},{"$f":"'BP Financier'!$G$44*(('BP Financier'!$C$19+'BP Financier'!$D$19+'BP Financier'!$E$19+'BP Financier'!$F$19+'BP Financier'!$G$19)/('BP Financier'!$C$16+'BP Financier'!$C$19+'BP Financier'!$D$16+'BP Financier'!$D$19+'BP Financier'!$E$16+'BP Financier'!$E$19+'BP Financier'!$C$22+'BP Financier'!$D$22+'BP Financier'!$E$22+'BP Financier'!$F$22+'BP Financier'!$F$19+'BP Financier'!$F$16+'BP Financier'!$G$22+'BP Financier'!$G$19+'BP Financier'!$G$16))*$V9146*AA9146/(1-$W9146)","v":{"v":2689.5578975680937,"d":"2,690"}},{"$f":"'BP Financier'!$G$44*(('BP Financier'!$C$19+'BP Financier'!$D$19+'BP Financier'!$E$19+'BP Financier'!$F$19+'BP Financier'!$G$19)/('BP Financier'!$C$16+'BP Financier'!$C$19+'BP Financier'!$D$16+'BP Financier'!$D$19+'BP Financier'!$E$16+'BP Financier'!$E$19+'BP Financier'!$C$22+'BP Financier'!$D$22+'BP Financier'!$E$22+'BP Financier'!$F$22+'BP Financier'!$F$19+'BP Financier'!$F$16+'BP Financier'!$G$22+'BP Financier'!$G$19+'BP Financier'!$G$16))*$V9146*AB9146/(1-$W9146)","v":{"v":1287.3097629385745,"d":"1,287"}},null,{"v":1E-3,"d":"0.10%"},{"$f":"Actif!$E$28/100","v":{"v":0.28900000000000003,"d":"28.90%"}},{"$f":"Actif!$E$30/100","v":{"v":0.09050000000000001,"d":"9.05%"}},{"$f":"Actif!$E$31/100","v":{"v":0.0605,"d":"6.05%"}},{"$f":"Actif!$E$32/100","v":{"v":0.47350000000000003,"d":"47.35%"}},{"$f":"Actif!$E$33/100","v":{"v":0.0585,"d":"5.85%"}},{"$f":"Actif!$E$29/100","v":{"v":0.027999999999999997,"d":"2.80%"}}]
[null,"#31",24,2026,"H","A_PER",{"v":0.44999999999999996,"d":"0.45"},{"v":0.38999999999999996,"d":"0.39"},0.6,0.6,85,0,{"$f":"ROUND(Primes!$Q$7*V9147,0)","v":1},{"$f":"'BP Financier'!$G$33*(('BP Financier'!$C$19+'BP Financier'!$D$19+'BP Financier'!$E$19+'BP Financier'!$F$19+'BP Financier'!$G$19)/('BP Financier'!$C$16+'BP Financier'!$C$19+'BP Financier'!$D$16+'BP Financier'!$D$19+'BP Financier'!$E$16+'BP Financier'!$E$19+'BP Financier'!$F$16+'BP Financier'!$F$19+'BP Financier'!$G$16+'BP Financier'!$G$19))*V9147","v":{"v":56955.057223727745,"d":"56,955"}},{"v":32688.472908904525,"d":"32,688"},{"$f":"'BP Financier'!$G$44*(('BP Financier'!$C$19+'BP Financier'!$D$19+'BP Financier'!$E$19+'BP Financier'!$F$19+'BP Financier'!$G$19)/('BP Financier'!$C$16+'BP Financier'!$C$19+'BP Financier'!$D$16+'BP Financier'!$D$19+'BP Financier'!$E$16+'BP Financier'!$E$19+'BP Financier'!$C$22+'BP Financier'!$D$22+'BP Financier'!$E$22+'BP Financier'!$F$22+'BP Financier'!$F$19+'BP Financier'!$F$16+'BP Financier'!$G$22+'BP Financier'!$G$19+'BP Financier'!$G$16))*$V9147*X9147/(1-$W9147)","v":{"v":4160.769055212179,"d":"4,161"}},{"$f":"'BP Financier'!$G$44*(('BP Financier'!$C$19+'BP Financier'!$D$19+'BP Financier'!$E$19+'BP Financier'!$F$19+'BP Financier'!$G$19)/('BP Financier'!$C$16+'BP Financier'!$C$19+'BP Financier'!$D$16+'BP Financier'!$D$19+'BP Financier'!$E$16+'BP Financier'!$E$19+'BP Financier'!$C$22+'BP Financier'!$D$22+'BP Financier'!$E$22+'BP Financier'!$F$22+'BP Financier'!$F$19+'BP Financier'!$F$16+'BP Financier'!$G$22+'BP Financier'!$G$19+'BP Financier'!$G$16))*$V9147*Y9147/(1-$W9147)","v":{"v":2781.5085949208483,"d":"2,782"}},{"$f":"'BP Financier'!$G$44*(('BP Financier'!$C$19+'BP Financier'!$D$19+'BP Financier'!$E$19+'BP Financier'!$F$19+'BP Financier'!$G$19)/('BP Financier'!$C$16+'BP Financier'!$C$19+'BP Financier'!$D$16+'BP Financier'!$D$19+'BP Financier'!$E$16+'BP Financier'!$E$19+'BP Financier'!$C$22+'BP Financier'!$D$22+'BP Financier'!$E$22+'BP Financier'!$F$22+'BP Financier'!$F$19+'BP Financier'!$F$16+'BP Financier'!$G$22+'BP Financier'!$G$19+'BP Financier'!$G$16))*$V9147*Z9147/(1-$W9147)","v":{"v":21769.327598264827,"d":"21,769"}},{"$f":"'BP Financier'!$G$44*(('BP Financier'!$C$19+'BP Financier'!$D$19+'BP Financier'!$E$19+'BP Financier'!$F$19+'BP Financier'!$G$19)/('BP Financier'!$C$16+'BP Financier'!$C$19+'BP Financier'!$D$16+'BP Financier'!$D$19+'BP Financier'!$E$16+'BP Financier'!$E$19+'BP Financier'!$C$22+'BP Financier'!$D$22+'BP Financier'!$E$22+'BP Financier'!$F$22+'BP Financier'!$F$19+'BP Financier'!$F$16+'BP Financier'!$G$22+'BP Financier'!$G$19+'BP Financier'!$G$16))*$V9147*AA9147/(1-$W9147)","v":{"v":2689.5578975680937,"d":"2,690"}},{"$f":"'BP Financier'!$G$44*(('BP Financier'!$C$19+'BP Financier'!$D$19+'BP Financier'!$E$19+'BP Financier'!$F$19+'BP Financier'!$G$19)/('BP Financier'!$C$16+'BP Financier'!$C$19+'BP Financier'!$D$16+'BP Financier'!$D$19+'BP Financier'!$E$16+'BP Financier'!$E$19+'BP Financier'!$C$22+'BP Financier'!$D$22+'BP Financier'!$E$22+'BP Financier'!$F$22+'BP Financier'!$F$19+'BP Financier'!$F$16+'BP Financier'!$G$22+'BP Financier'!$G$19+'BP Financier'!$G$16))*$V9147*AB9147/(1-$W9147)","v":{"v":1287.3097629385745,"d":"1,287"}},null,{"v":1E-3,"d":"0.10%"},{"$f":"Actif!$E$28/100","v":{"v":0.28900000000000003,"d":"28.90%"}},{"$f":"Actif!$E$30/100","v":{"v":0.09050000000000001,"d":"9.05%"}},{"$f":"Actif!$E$31/100","v":{"v":0.0605,"d":"6.05%"}},{"$f":"Actif!$E$32/100","v":{"v":0.47350000000000003,"d":"47.35%"}},{"$f":"Actif!$E$33/100","v":{"v":0.0585,"d":"5.85%"}},{"$f":"Actif!$E$29/100","v":{"v":0.027999999999999997,"d":"2.80%"}}]
[null,"#32",24,2028,"H","A_PER",{"v":0.44999999999999996,"d":"0.45"},{"v":0.38999999999999996,"d":"0.39"},0.6,0.6,85,0,{"$f":"ROUND(Primes!$Q$7*V9148,0)","v":1},{"$f":"'BP Financier'!$G$33*(('BP Financier'!$C$19+'BP Financier'!$D$19+'BP Financier'!$E$19+'BP Financier'!$F$19+'BP Financier'!$G$19)/('BP Financier'!$C$16+'BP Financier'!$C$19+'BP Financier'!$D$16+'BP Financier'!$D$19+'BP Financier'!$E$16+'BP Financier'!$E$19+'BP Financier'!$F$16+'BP Financier'!$F$19+'BP Financier'!$G$16+'BP Financier'!$G$19))*V9148","v":{"v":56955.057223727745,"d":"56,955"}},{"v":32688.472908904525,"d":"32,688"},{"$f":"'BP Financier'!$G$44*(('BP Financier'!$C$19+'BP Financier'!$D$19+'BP Financier'!$E$19+'BP Financier'!$F$19+'BP Financier'!$G$19)/('BP Financier'!$C$16+'BP Financier'!$C$19+'BP Financier'!$D$16+'BP Financier'!$D$19+'BP Financier'!$E$16+'BP Financier'!$E$19+'BP Financier'!$C$22+'BP Financier'!$D$22+'BP Financier'!$E$22+'BP Financier'!$F$22+'BP Financier'!$F$19+'BP Financier'!$F$16+'BP Financier'!$G$22+'BP Financier'!$G$19+'BP Financier'!$G$16))*$V9148*X9148/(1-$W9148)","v":{"v":4160.769055212179,"d":"4,161"}},{"$f":"'BP Financier'!$G$44*(('BP Financier'!$C$19+'BP Financier'!$D$19+'BP Financier'!$E$19+'BP Financier'!$F$19+'BP Financier'!$G$19)/('BP Financier'!$C$16+'BP Financier'!$C$19+'BP Financier'!$D$16+'BP Financier'!$D$19+'BP Financier'!$E$16+'BP Financier'!$E$19+'BP Financier'!$C$22+'BP Financier'!$D$22+'BP Financier'!$E$22+'BP Financier'!$F$22+'BP Financier'!$F$19+'BP Financier'!$F$16+'BP Financier'!$G$22+'BP Financier'!$G$19+'BP Financier'!$G$16))*$V9148*Y9148/(1-$W9148)","v":{"v":2781.5085949208483,"d":"2,782"}},{"$f":"'BP Financier'!$G$44*(('BP Financier'!$C$19+'BP Financier'!$D$19+'BP Financier'!$E$19+'BP Financier'!$F$19+'BP Financier'!$G$19)/('BP Financier'!$C$16+'BP Financier'!$C$19+'BP Financier'!$D$16+'BP Financier'!$D$19+'BP Financier'!$E$16+'BP Financier'!$E$19+'BP Financier'!$C$22+'BP Financier'!$D$22+'BP Financier'!$E$22+'BP Financier'!$F$22+'BP Financier'!$F$19+'BP Financier'!$F$16+'BP Financier'!$G$22+'BP Financier'!$G$19+'BP Financier'!$G$16))*$V9148*Z9148/(1-$W9148)","v":{"v":21769.327598264827,"d":"21,769"}},{"$f":"'BP Financier'!$G$44*(('BP Financier'!$C$19+'BP Financier'!$D$19+'BP Financier'!$E$19+'BP Financier'!$F$19+'BP Financier'!$G$19)/('BP Financier'!$C$16+'BP Financier'!$C$19+'BP Financier'!$D$16+'BP Financier'!$D$19+'BP Financier'!$E$16+'BP Financier'!$E$19+'BP Financier'!$C$22+'BP Financier'!$D$22+'BP Financier'!$E$22+'BP Financier'!$F$22+'BP Financier'!$F$19+'BP Financier'!$F$16+'BP Financier'!$G$22+'BP Financier'!$G$19+'BP Financier'!$G$16))*$V9148*AA9148/(1-$W9148)","v":{"v":2689.5578975680937,"d":"2,690"}},{"$f":"'BP Financier'!$G$44*(('BP Financier'!$C$19+'BP Financier'!$D$19+'BP Financier'!$E$19+'BP Financier'!$F$19+'BP Financier'!$G$19)/('BP Financier'!$C$16+'BP Financier'!$C$19+'BP Financier'!$D$16+'BP Financier'!$D$19+'BP Financier'!$E$16+'BP Financier'!$E$19+'BP Financier'!$C$22+'BP Financier'!$D$22+'BP Financier'!$E$22+'BP Financier'!$F$22+'BP Financier'!$F$19+'BP Financier'!$F$16+'BP Financier'!$G$22+'BP Financier'!$G$19+'BP Financier'!$G$16))*$V9148*AB9148/(1-$W9148)","v":{"v":1287.3097629385745,"d":"1,287"}},null,{"v":1E-3,"d":"0.10%"},{"$f":"Actif!$E$28/100","v":{"v":0.28900000000000003,"d":"28.90%"}},{"$f":"Actif!$E$30/100","v":{"v":0.09050000000000001,"d":"9.05%"}},{"$f":"Actif!$E$31/100","v":{"v":0.0605,"d":"6.05%"}},{"$f":"Actif!$E$32/100","v":{"v":0.47350000000000003,"d":"47.35%"}},{"$f":"Actif!$E$33/100","v":{"v":0.0585,"d":"5.85%"}},{"$f":"Actif!$E$29/100","v":{"v":0.027999999999999997,"d":"2.80%"}}]
[null,"#33",24,2029,"H","A_PER",{"v":0.44999999999999996,"d":"0.45"},{"v":0.38999999999999996,"d":"0.39"},0.6,0.6,85,0,{"$f":"ROUND(Primes!$Q$7*V9149,0)","v":1},{"$f":"'BP Financier'!$G$33*(('BP Financier'!$C$19+'BP Financier'!$D$19+'BP Financier'!$E$19+'BP Financier'!$F$19+'BP Financier'!$G$19)/('BP Financier'!$C$16+'BP Financier'!$C$19+'BP Financier'!$D$16+'BP Financier'!$D$19+'BP Financier'!$E$16+'BP Financier'!$E$19+'BP Financier'!$F$16+'BP Financier'!$F$19+'BP Financier'!$G$16+'BP Financier'!$G$19))*V9149","v":{"v":56955.057223727745,"d":"56,955"}},{"v":32688.472908904525,"d":"32,688"},{"$f":"'BP Financier'!$G$44*(('BP Financier'!$C$19+'BP Financier'!$D$19+'BP Financier'!$E$19+'BP Financier'!$F$19+'BP Financier'!$G$19)/('BP Financier'!$C$16+'BP Financier'!$C$19+'BP Financier'!$D$16+'BP Financier'!$D$19+'BP Financier'!$E$16+'BP Financier'!$E$19+'BP Financier'!$C$22+'BP Financier'!$D$22+'BP Financier'!$E$22+'BP Financier'!$F$22+'BP Financier'!$F$19+'BP Financier'!$F$16+'BP Financier'!$G$22+'BP Financier'!$G$19+'BP Financier'!$G$16))*$V9149*X9149/(1-$W9149)","v":{"v":4160.769055212179,"d":"4,161"}},{"$f":"'BP Financier'!$G$44*(('BP Financier'!$C$19+'BP Financier'!$D$19+'BP Financier'!$E$19+'BP Financier'!$F$19+'BP Financier'!$G$19)/('BP Financier'!$C$16+'BP Financier'!$C$19+'BP Financier'!$D$16+'BP Financier'!$D$19+'BP Financier'!$E$16+'BP Financier'!$E$19+'BP Financier'!$C$22+'BP Financier'!$D$22+'BP Financier'!$E$22+'BP Financier'!$F$22+'BP Financier'!$F$19+'BP Financier'!$F$16+'BP Financier'!$G$22+'BP Financier'!$G$19+'BP Financier'!$G$16))*$V9149*Y9149/(1-$W9149)","v":{"v":2781.5085949208483,"d":"2,782"}},{"$f":"'BP Financier'!$G$44*(('BP Financier'!$C$19+'BP Financier'!$D$19+'BP Financier'!$E$19+'BP Financier'!$F$19+'BP Financier'!$G$19)/('BP Financier'!$C$16+'BP Financier'!$C$19+'BP Financier'!$D$16+'BP Financier'!$D$19+'BP Financier'!$E$16+'BP Financier'!$E$19+'BP Financier'!$C$22+'BP Financier'!$D$22+'BP Financier'!$E$22+'BP Financier'!$F$22+'BP Financier'!$F$19+'BP Financier'!$F$16+'BP Financier'!$G$22+'BP Financier'!$G$19+'BP Financier'!$G$16))*$V9149*Z9149/(1-$W9149)","v":{"v":21769.327598264827,"d":"21,769"}},{"$f":"'BP Financier'!$G$44*(('BP Financier'!$C$19+'BP Financier'!$D$19+'BP Financier'!$E$19+'BP Financier'!$F$19+'BP Financier'!$G$19)/('BP Financier'!$C$16+'BP Financier'!$C$19+'BP Financier'!$D$16+'BP Financier'!$D$19+'BP Financier'!$E$16+'BP Financier'!$E$19+'BP Financier'!$C$22+'BP Financier'!$D$22+'BP Financier'!$E$22+'BP Financier'!$F$22+'BP Financier'!$F$19+'BP Financier'!$F$16+'BP Financier'!$G$22+'BP Financier'!$G$19+'BP Financier'!$G$16))*$V9149*AA9149/(1-$W9149)","v":{"v":2689.5578975680937,"d":"2,690"}},{"$f":"'BP Financier'!$G$44*(('BP Financier'!$C$19+'BP Financier'!$D$19+'BP Financier'!$E$19+'BP Financier'!$F$19+'BP Financier'!$G$19)/('BP Financier'!$C$16+'BP Financier'!$C$19+'BP Financier'!$D$16+'BP Financier'!$D$19+'BP Financier'!$E$16+'BP Financier'!$E$19+'BP Financier'!$C$22+'BP Financier'!$D$22+'BP Financier'!$E$22+'BP Financier'!$F$22+'BP Financier'!$F$19+'BP Financier'!$F$16+'BP Financier'!$G$22+'BP Financier'!$G$19+'BP Financier'!$G$16))*$V9149*AB9149/(1-$W9149)","v":{"v":1287.3097629385745,"d":"1,287"}},null,{"v":1E-3,"d":"0.10%"},{"$f":"Actif!$E$28/100","v":{"v":0.28900000000000003,"d":"28.90%"}},{"$f":"Actif!$E$30/100","v":{"v":0.09050000000000001,"d":"9.05%"}},{"$f":"Actif!$E$31/100","v":{"v":0.0605,"d":"6.05%"}},{"$f":"Actif!$E$32/100","v":{"v":0.47350000000000003,"d":"47.35%"}},{"$f":"Actif!$E$33/100","v":{"v":0.0585,"d":"5.85%"}},{"$f":"Actif!$E$29/100","v":{"v":0.027999999999999997,"d":"2.80%"}}]
[null,"#34",24,2030,"H","A_PER",{"v":0.44999999999999996,"d":"0.45"},{"v":0.38999999999999996,"d":"0.39"},0.6,0.6,85,0,{"$f":"ROUND(Primes!$Q$7*V9150,0)","v":1},{"$f":"'BP Financier'!$G$33*(('BP Financier'!$C$19+'BP Financier'!$D$19+'BP Financier'!$E$19+'BP Financier'!$F$19+'BP Financier'!$G$19)/('BP Financier'!$C$16+'BP Financier'!$C$19+'BP Financier'!$D$16+'BP Financier'!$D$19+'BP Financier'!$E$16+'BP Financier'!$E$19+'BP Financier'!$F$16+'BP Financier'!$F$19+'BP Financier'!$G$16+'BP Financier'!$G$19))*V9150","v":{"v":56955.057223727745,"d":"56,955"}},{"v":32688.472908904525,"d":"32,688"},{"$f":"'BP Financier'!$G$44*(('BP Financier'!$C$19+'BP Financier'!$D$19+'BP Financier'!$E$19+'BP Financier'!$F$19+'BP Financier'!$G$19)/('BP Financier'!$C$16+'BP Financier'!$C$19+'BP Financier'!$D$16+'BP Financier'!$D$19+'BP Financier'!$E$16+'BP Financier'!$E$19+'BP Financier'!$C$22+'BP Financier'!$D$22+'BP Financier'!$E$22+'BP Financier'!$F$22+'BP Financier'!$F$19+'BP Financier'!$F$16+'BP Financier'!$G$22+'BP Financier'!$G$19+'BP Financier'!$G$16))*$V9150*X9150/(1-$W9150)","v":{"v":4160.769055212179,"d":"4,161"}},{"$f":"'BP Financier'!$G$44*(('BP Financier'!$C$19+'BP Financier'!$D$19+'BP Financier'!$E$19+'BP Financier'!$F$19+'BP Financier'!$G$19)/('BP Financier'!$C$16+'BP Financier'!$C$19+'BP Financier'!$D$16+'BP Financier'!$D$19+'BP Financier'!$E$16+'BP Financier'!$E$19+'BP Financier'!$C$22+'BP Financier'!$D$22+'BP Financier'!$E$22+'BP Financier'!$F$22+'BP Financier'!$F$19+'BP Financier'!$F$16+'BP Financier'!$G$22+'BP Financier'!$G$19+'BP Financier'!$G$16))*$V9150*Y9150/(1-$W9150)","v":{"v":2781.5085949208483,"d":"2,782"}},{"$f":"'BP Financier'!$G$44*(('BP Financier'!$C$19+'BP Financier'!$D$19+'BP Financier'!$E$19+'BP Financier'!$F$19+'BP Financier'!$G$19)/('BP Financier'!$C$16+'BP Financier'!$C$19+'BP Financier'!$D$16+'BP Financier'!$D$19+'BP Financier'!$E$16+'BP Financier'!$E$19+'BP Financier'!$C$22+'BP Financier'!$D$22+'BP Financier'!$E$22+'BP Financier'!$F$22+'BP Financier'!$F$19+'BP Financier'!$F$16+'BP Financier'!$G$22+'BP Financier'!$G$19+'BP Financier'!$G$16))*$V9150*Z9150/(1-$W9150)","v":{"v":21769.327598264827,"d":"21,769"}},{"$f":"'BP Financier'!$G$44*(('BP Financier'!$C$19+'BP Financier'!$D$19+'BP Financier'!$E$19+'BP Financier'!$F$19+'BP Financier'!$G$19)/('BP Financier'!$C$16+'BP Financier'!$C$19+'BP Financier'!$D$16+'BP Financier'!$D$19+'BP Financier'!$E$16+'BP Financier'!$E$19+'BP Financier'!$C$22+'BP Financier'!$D$22+'BP Financier'!$E$22+'BP Financier'!$F$22+'BP Financier'!$F$19+'BP Financier'!$F$16+'BP Financier'!$G$22+'BP Financier'!$G$19+'BP Financier'!$G$16))*$V9150*AA9150/(1-$W9150)","v":{"v":2689.5578975680937,"d":"2,690"}},{"$f":"'BP Financier'!$G$44*(('BP Financier'!$C$19+'BP Financier'!$D$19+'BP Financier'!$E$19+'BP Financier'!$F$19+'BP Financier'!$G$19)/('BP Financier'!$C$16+'BP Financier'!$C$19+'BP Financier'!$D$16+'BP Financier'!$D$19+'BP Financier'!$E$16+'BP Financier'!$E$19+'BP Financier'!$C$22+'BP Financier'!$D$22+'BP Financier'!$E$22+'BP Financier'!$F$22+'BP Financier'!$F$19+'BP Financier'!$F$16+'BP Financier'!$G$22+'BP Financier'!$G$19+'BP Financier'!$G$16))*$V9150*AB9150/(1-$W9150)","v":{"v":1287.3097629385745,"d":"1,287"}},null,{"v":1E-3,"d":"0.10%"},{"$f":"Actif!$E$28/100","v":{"v":0.28900000000000003,"d":"28.90%"}},{"$f":"Actif!$E$30/100","v":{"v":0.09050000000000001,"d":"9.05%"}},{"$f":"Actif!$E$31/100","v":{"v":0.0605,"d":"6.05%"}},{"$f":"Actif!$E$32/100","v":{"v":0.47350000000000003,"d":"47.35%"}},{"$f":"Actif!$E$33/100","v":{"v":0.0585,"d":"5.85%"}},{"$f":"Actif!$E$29/100","v":{"v":0.027999999999999997,"d":"2.80%"}}]
[null,"#35",24,2031,"H","A_PER",{"v":0.44999999999999996,"d":"0.45"},{"v":0.38999999999999996,"d":"0.39"},0.6,0.6,85,0,{"$f":"ROUND(Primes!$Q$7*V9151,0)","v":1},{"$f":"'BP Financier'!$G$33*(('BP Financier'!$C$19+'BP Financier'!$D$19+'BP Financier'!$E$19+'BP Financier'!$F$19+'BP Financier'!$G$19)/('BP Financier'!$C$16+'BP Financier'!$C$19+'BP Financier'!$D$16+'BP Financier'!$D$19+'BP Financier'!$E$16+'BP Financier'!$E$19+'BP Financier'!$F$16+'BP Financier'!$F$19+'BP Financier'!$G$16+'BP Financier'!$G$19))*V9151","v":{"v":56955.057223727745,"d":"56,955"}},{"v":32688.472908904525,"d":"32,688"},{"$f":"'BP Financier'!$G$44*(('BP Financier'!$C$19+'BP Financier'!$D$19+'BP Financier'!$E$19+'BP Financier'!$F$19+'BP Financier'!$G$19)/('BP Financier'!$C$16+'BP Financier'!$C$19+'BP Financier'!$D$16+'BP Financier'!$D$19+'BP Financier'!$E$16+'BP Financier'!$E$19+'BP Financier'!$C$22+'BP Financier'!$D$22+'BP Financier'!$E$22+'BP Financier'!$F$22+'BP Financier'!$F$19+'BP Financier'!$F$16+'BP Financier'!$G$22+'BP Financier'!$G$19+'BP Financier'!$G$16))*$V9151*X9151/(1-$W9151)","v":{"v":4160.769055212179,"d":"4,161"}},{"$f":"'BP Financier'!$G$44*(('BP Financier'!$C$19+'BP Financier'!$D$19+'BP Financier'!$E$19+'BP Financier'!$F$19+'BP Financier'!$G$19)/('BP Financier'!$C$16+'BP Financier'!$C$19+'BP Financier'!$D$16+'BP Financier'!$D$19+'BP Financier'!$E$16+'BP Financier'!$E$19+'BP Financier'!$C$22+'BP Financier'!$D$22+'BP Financier'!$E$22+'BP Financier'!$F$22+'BP Financier'!$F$19+'BP Financier'!$F$16+'BP Financier'!$G$22+'BP Financier'!$G$19+'BP Financier'!$G$16))*$V9151*Y9151/(1-$W9151)","v":{"v":2781.5085949208483,"d":"2,782"}},{"$f":"'BP Financier'!$G$44*(('BP Financier'!$C$19+'BP Financier'!$D$19+'BP Financier'!$E$19+'BP Financier'!$F$19+'BP Financier'!$G$19)/('BP Financier'!$C$16+'BP Financier'!$C$19+'BP Financier'!$D$16+'BP Financier'!$D$19+'BP Financier'!$E$16+'BP Financier'!$E$19+'BP Financier'!$C$22+'BP Financier'!$D$22+'BP Financier'!$E$22+'BP Financier'!$F$22+'BP Financier'!$F$19+'BP Financier'!$F$16+'BP Financier'!$G$22+'BP Financier'!$G$19+'BP Financier'!$G$16))*$V9151*Z9151/(1-$W9151)","v":{"v":21769.327598264827,"d":"21,769"}},{"$f":"'BP Financier'!$G$44*(('BP Financier'!$C$19+'BP Financier'!$D$19+'BP Financier'!$E$19+'BP Financier'!$F$19+'BP Financier'!$G$19)/('BP Financier'!$C$16+'BP Financier'!$C$19+'BP Financier'!$D$16+'BP Financier'!$D$19+'BP Financier'!$E$16+'BP Financier'!$E$19+'BP Financier'!$C$22+'BP Financier'!$D$22+'BP Financier'!$E$22+'BP Financier'!$F$22+'BP Financier'!$F$19+'BP Financier'!$F$16+'BP Financier'!$G$22+'BP Financier'!$G$19+'BP Financier'!$G$16))*$V9151*AA9151/(1-$W9151)","v":{"v":2689.5578975680937,"d":"2,690"}},{"$f":"'BP Financier'!$G$44*(('BP Financier'!$C$19+'BP Financier'!$D$19+'BP Financier'!$E$19+'BP Financier'!$F$19+'BP Financier'!$G$19)/('BP Financier'!$C$16+'BP Financier'!$C$19+'BP Financier'!$D$16+'BP Financier'!$D$19+'BP Financier'!$E$16+'BP Financier'!$E$19+'BP Financier'!$C$22+'BP Financier'!$D$22+'BP Financier'!$E$22+'BP Financier'!$F$22+'BP Financier'!$F$19+'BP Financier'!$F$16+'BP Financier'!$G$22+'BP Financier'!$G$19+'BP Financier'!$G$16))*$V9151*AB9151/(1-$W9151)","v":{"v":1287.3097629385745,"d":"1,287"}},null,{"v":1E-3,"d":"0.10%"},{"$f":"Actif!$E$28/100","v":{"v":0.28900000000000003,"d":"28.90%"}},{"$f":"Actif!$E$30/100","v":{"v":0.09050000000000001,"d":"9.05%"}},{"$f":"Actif!$E$31/100","v":{"v":0.0605,"d":"6.05%"}},{"$f":"Actif!$E$32/100","v":{"v":0.47350000000000003,"d":"47.35%"}},{"$f":"Actif!$E$33/100","v":{"v":0.0585,"d":"5.85%"}},{"$f":"Actif!$E$29/100","v":{"v":0.027999999999999997,"d":"2.80%"}}]
[null,"#36",25,2026,"H","A_PER",{"v":0.44999999999999996,"d":"0.45"},{"v":0.38999999999999996,"d":"0.39"},0.6,0.6,85,0,{"$f":"ROUND(Primes!$Q$7*V9152,0)","v":1},{"$f":"'BP Financier'!$G$33*(('BP Financier'!$C$19+'BP Financier'!$D$19+'BP Financier'!$E$19+'BP Financier'!$F$19+'BP Financier'!$G$19)/('BP Financier'!$C$16+'BP Financier'!$C$19+'BP Financier'!$D$16+'BP Financier'!$D$19+'BP Financier'!$E$16+'BP Financier'!$E$19+'BP Financier'!$F$16+'BP Financier'!$F$19+'BP Financier'!$G$16+'BP Financier'!$G$19))*V9152","v":{"v":56955.057223727745,"d":"56,955"}},{"v":32688.472908904525,"d":"32,688"},{"$f":"'BP Financier'!$G$44*(('BP Financier'!$C$19+'BP Financier'!$D$19+'BP Financier'!$E$19+'BP Financier'!$F$19+'BP Financier'!$G$19)/('BP Financier'!$C$16+'BP Financier'!$C$19+'BP Financier'!$D$16+'BP Financier'!$D$19+'BP Financier'!$E$16+'BP Financier'!$E$19+'BP Financier'!$C$22+'BP Financier'!$D$22+'BP Financier'!$E$22+'BP Financier'!$F$22+'BP Financier'!$F$19+'BP Financier'!$F$16+'BP Financier'!$G$22+'BP Financier'!$G$19+'BP Financier'!$G$16))*$V9152*X9152/(1-$W9152)","v":{"v":4160.769055212179,"d":"4,161"}},{"$f":"'BP Financier'!$G$44*(('BP Financier'!$C$19+'BP Financier'!$D$19+'BP Financier'!$E$19+'BP Financier'!$F$19+'BP Financier'!$G$19)/('BP Financier'!$C$16+'BP Financier'!$C$19+'BP Financier'!$D$16+'BP Financier'!$D$19+'BP Financier'!$E$16+'BP Financier'!$E$19+'BP Financier'!$C$22+'BP Financier'!$D$22+'BP Financier'!$E$22+'BP Financier'!$F$22+'BP Financier'!$F$19+'BP Financier'!$F$16+'BP Financier'!$G$22+'BP Financier'!$G$19+'BP Financier'!$G$16))*$V9152*Y9152/(1-$W9152)","v":{"v":2781.5085949208483,"d":"2,782"}},{"$f":"'BP Financier'!$G$44*(('BP Financier'!$C$19+'BP Financier'!$D$19+'BP Financier'!$E$19+'BP Financier'!$F$19+'BP Financier'!$G$19)/('BP Financier'!$C$16+'BP Financier'!$C$19+'BP Financier'!$D$16+'BP Financier'!$D$19+'BP Financier'!$E$16+'BP Financier'!$E$19+'BP Financier'!$C$22+'BP Financier'!$D$22+'BP Financier'!$E$22+'BP Financier'!$F$22+'BP Financier'!$F$19+'BP Financier'!$F$16+'BP Financier'!$G$22+'BP Financier'!$G$19+'BP Financier'!$G$16))*$V9152*Z9152/(1-$W9152)","v":{"v":21769.327598264827,"d":"21,769"}},{"$f":"'BP Financier'!$G$44*(('BP Financier'!$C$19+'BP Financier'!$D$19+'BP Financier'!$E$19+'BP Financier'!$F$19+'BP Financier'!$G$19)/('BP Financier'!$C$16+'BP Financier'!$C$19+'BP Financier'!$D$16+'BP Financier'!$D$19+'BP Financier'!$E$16+'BP Financier'!$E$19+'BP Financier'!$C$22+'BP Financier'!$D$22+'BP Financier'!$E$22+'BP Financier'!$F$22+'BP Financier'!$F$19+'BP Financier'!$F$16+'BP Financier'!$G$22+'BP Financier'!$G$19+'BP Financier'!$G$16))*$V9152*AA9152/(1-$W9152)","v":{"v":2689.5578975680937,"d":"2,690"}},{"$f":"'BP Financier'!$G$44*(('BP Financier'!$C$19+'BP Financier'!$D$19+'BP Financier'!$E$19+'BP Financier'!$F$19+'BP Financier'!$G$19)/('BP Financier'!$C$16+'BP Financier'!$C$19+'BP Financier'!$D$16+'BP Financier'!$D$19+'BP Financier'!$E$16+'BP Financier'!$E$19+'BP Financier'!$C$22+'BP Financier'!$D$22+'BP Financier'!$E$22+'BP Financier'!$F$22+'BP Financier'!$F$19+'BP Financier'!$F$16+'BP Financier'!$G$22+'BP Financier'!$G$19+'BP Financier'!$G$16))*$V9152*AB9152/(1-$W9152)","v":{"v":1287.3097629385745,"d":"1,287"}},null,{"v":1E-3,"d":"0.10%"},{"$f":"Actif!$E$28/100","v":{"v":0.28900000000000003,"d":"28.90%"}},{"$f":"Actif!$E$30/100","v":{"v":0.09050000000000001,"d":"9.05%"}},{"$f":"Actif!$E$31/100","v":{"v":0.0605,"d":"6.05%"}},{"$f":"Actif!$E$32/100","v":{"v":0.47350000000000003,"d":"47.35%"}},{"$f":"Actif!$E$33/100","v":{"v":0.0585,"d":"5.85%"}},{"$f":"Actif!$E$29/100","v":{"v":0.027999999999999997,"d":"2.80%"}}]
[null,"#37",25,2028,"H","A_PER",{"v":0.44999999999999996,"d":"0.45"},{"v":0.38999999999999996,"d":"0.39"},0.6,0.6,85,0,{"$f":"ROUND(Primes!$Q$7*V9153,0)","v":1},{"$f":"'BP Financier'!$G$33*(('BP Financier'!$C$19+'BP Financier'!$D$19+'BP Financier'!$E$19+'BP Financier'!$F$19+'BP Financier'!$G$19)/('BP Financier'!$C$16+'BP Financier'!$C$19+'BP Financier'!$D$16+'BP Financier'!$D$19+'BP Financier'!$E$16+'BP Financier'!$E$19+'BP Financier'!$F$16+'BP Financier'!$F$19+'BP Financier'!$G$16+'BP Financier'!$G$19))*V9153","v":{"v":56955.057223727745,"d":"56,955"}},{"v":32688.472908904525,"d":"32,688"},{"$f":"'BP Financier'!$G$44*(('BP Financier'!$C$19+'BP Financier'!$D$19+'BP Financier'!$E$19+'BP Financier'!$F$19+'BP Financier'!$G$19)/('BP Financier'!$C$16+'BP Financier'!$C$19+'BP Financier'!$D$16+'BP Financier'!$D$19+'BP Financier'!$E$16+'BP Financier'!$E$19+'BP Financier'!$C$22+'BP Financier'!$D$22+'BP Financier'!$E$22+'BP Financier'!$F$22+'BP Financier'!$F$19+'BP Financier'!$F$16+'BP Financier'!$G$22+'BP Financier'!$G$19+'BP Financier'!$G$16))*$V9153*X9153/(1-$W9153)","v":{"v":4160.769055212179,"d":"4,161"}},{"$f":"'BP Financier'!$G$44*(('BP Financier'!$C$19+'BP Financier'!$D$19+'BP Financier'!$E$19+'BP Financier'!$F$19+'BP Financier'!$G$19)/('BP Financier'!$C$16+'BP Financier'!$C$19+'BP Financier'!$D$16+'BP Financier'!$D$19+'BP Financier'!$E$16+'BP Financier'!$E$19+'BP Financier'!$C$22+'BP Financier'!$D$22+'BP Financier'!$E$22+'BP Financier'!$F$22+'BP Financier'!$F$19+'BP Financier'!$F$16+'BP Financier'!$G$22+'BP Financier'!$G$19+'BP Financier'!$G$16))*$V9153*Y9153/(1-$W9153)","v":{"v":2781.5085949208483,"d":"2,782"}},{"$f":"'BP Financier'!$G$44*(('BP Financier'!$C$19+'BP Financier'!$D$19+'BP Financier'!$E$19+'BP Financier'!$F$19+'BP Financier'!$G$19)/('BP Financier'!$C$16+'BP Financier'!$C$19+'BP Financier'!$D$16+'BP Financier'!$D$19+'BP Financier'!$E$16+'BP Financier'!$E$19+'BP Financier'!$C$22+'BP Financier'!$D$22+'BP Financier'!$E$22+'BP Financier'!$F$22+'BP Financier'!$F$19+'BP Financier'!$F$16+'BP Financier'!$G$22+'BP Financier'!$G$19+'BP Financier'!$G$16))*$V9153*Z9153/(1-$W9153)","v":{"v":21769.327598264827,"d":"21,769"}},{"$f":"'BP Financier'!$G$44*(('BP Financier'!$C$19+'BP Financier'!$D$19+'BP Financier'!$E$19+'BP Financier'!$F$19+'BP Financier'!$G$19)/('BP Financier'!$C$16+'BP Financier'!$C$19+'BP Financier'!$D$16+'BP Financier'!$D$19+'BP Financier'!$E$16+'BP Financier'!$E$19+'BP Financier'!$C$22+'BP Financier'!$D$22+'BP Financier'!$E$22+'BP Financier'!$F$22+'BP Financier'!$F$19+'BP Financier'!$F$16+'BP Financier'!$G$22+'BP Financier'!$G$19+'BP Financier'!$G$16))*$V9153*AA9153/(1-$W9153)","v":{"v":2689.5578975680937,"d":"2,690"}},{"$f":"'BP Financier'!$G$44*(('BP Financier'!$C$19+'BP Financier'!$D$19+'BP Financier'!$E$19+'BP Financier'!$F$19+'BP Financier'!$G$19)/('BP Financier'!$C$16+'BP Financier'!$C$19+'BP Financier'!$D$16+'BP Financier'!$D$19+'BP Financier'!$E$16+'BP Financier'!$E$19+'BP Financier'!$C$22+'BP Financier'!$D$22+'BP Financier'!$E$22+'BP Financier'!$F$22+'BP Financier'!$F$19+'BP Financier'!$F$16+'BP Financier'!$G$22+'BP Financier'!$G$19+'BP Financier'!$G$16))*$V9153*AB9153/(1-$W9153)","v":{"v":1287.3097629385745,"d":"1,287"}},null,{"v":1E-3,"d":"0.10%"},{"$f":"Actif!$E$28/100","v":{"v":0.28900000000000003,"d":"28.90%"}},{"$f":"Actif!$E$30/100","v":{"v":0.09050000000000001,"d":"9.05%"}},{"$f":"Actif!$E$31/100","v":{"v":0.0605,"d":"6.05%"}},{"$f":"Actif!$E$32/100","v":{"v":0.47350000000000003,"d":"47.35%"}},{"$f":"Actif!$E$33/100","v":{"v":0.0585,"d":"5.85%"}},{"$f":"Actif!$E$29/100","v":{"v":0.027999999999999997,"d":"2.80%"}}]
[null,"#38",25,2029,"H","A_PER",{"v":0.44999999999999996,"d":"0.45"},{"v":0.38999999999999996,"d":"0.39"},0.6,0.6,85,0,{"$f":"ROUND(Primes!$Q$7*V9154,0)","v":1},{"$f":"'BP Financier'!$G$33*(('BP Financier'!$C$19+'BP Financier'!$D$19+'BP Financier'!$E$19+'BP Financier'!$F$19+'BP Financier'!$G$19)/('BP Financier'!$C$16+'BP Financier'!$C$19+'BP Financier'!$D$16+'BP Financier'!$D$19+'BP Financier'!$E$16+'BP Financier'!$E$19+'BP Financier'!$F$16+'BP Financier'!$F$19+'BP Financier'!$G$16+'BP Financier'!$G$19))*V9154","v":{"v":56955.057223727745,"d":"56,955"}},{"v":32688.472908904525,"d":"32,688"},{"$f":"'BP Financier'!$G$44*(('BP Financier'!$C$19+'BP Financier'!$D$19+'BP Financier'!$E$19+'BP Financier'!$F$19+'BP Financier'!$G$19)/('BP Financier'!$C$16+'BP Financier'!$C$19+'BP Financier'!$D$16+'BP Financier'!$D$19+'BP Financier'!$E$16+'BP Financier'!$E$19+'BP Financier'!$C$22+'BP Financier'!$D$22+'BP Financier'!$E$22+'BP Financier'!$F$22+'BP Financier'!$F$19+'BP Financier'!$F$16+'BP Financier'!$G$22+'BP Financier'!$G$19+'BP Financier'!$G$16))*$V9154*X9154/(1-$W9154)","v":{"v":4160.769055212179,"d":"4,161"}},{"$f":"'BP Financier'!$G$44*(('BP Financier'!$C$19+'BP Financier'!$D$19+'BP Financier'!$E$19+'BP Financier'!$F$19+'BP Financier'!$G$19)/('BP Financier'!$C$16+'BP Financier'!$C$19+'BP Financier'!$D$16+'BP Financier'!$D$19+'BP Financier'!$E$16+'BP Financier'!$E$19+'BP Financier'!$C$22+'BP Financier'!$D$22+'BP Financier'!$E$22+'BP Financier'!$F$22+'BP Financier'!$F$19+'BP Financier'!$F$16+'BP Financier'!$G$22+'BP Financier'!$G$19+'BP Financier'!$G$16))*$V9154*Y9154/(1-$W9154)","v":{"v":2781.5085949208483,"d":"2,782"}},{"$f":"'BP Financier'!$G$44*(('BP Financier'!$C$19+'BP Financier'!$D$19+'BP Financier'!$E$19+'BP Financier'!$F$19+'BP Financier'!$G$19)/('BP Financier'!$C$16+'BP Financier'!$C$19+'BP Financier'!$D$16+'BP Financier'!$D$19+'BP Financier'!$E$16+'BP Financier'!$E$19+'BP Financier'!$C$22+'BP Financier'!$D$22+'BP Financier'!$E$22+'BP Financier'!$F$22+'BP Financier'!$F$19+'BP Financier'!$F$16+'BP Financier'!$G$22+'BP Financier'!$G$19+'BP Financier'!$G$16))*$V9154*Z9154/(1-$W9154)","v":{"v":21769.327598264827,"d":"21,769"}},{"$f":"'BP Financier'!$G$44*(('BP Financier'!$C$19+'BP Financier'!$D$19+'BP Financier'!$E$19+'BP Financier'!$F$19+'BP Financier'!$G$19)/('BP Financier'!$C$16+'BP Financier'!$C$19+'BP Financier'!$D$16+'BP Financier'!$D$19+'BP Financier'!$E$16+'BP Financier'!$E$19+'BP Financier'!$C$22+'BP Financier'!$D$22+'BP Financier'!$E$22+'BP Financier'!$F$22+'BP Financier'!$F$19+'BP Financier'!$F$16+'BP Financier'!$G$22+'BP Financier'!$G$19+'BP Financier'!$G$16))*$V9154*AA9154/(1-$W9154)","v":{"v":2689.5578975680937,"d":"2,690"}},{"$f":"'BP Financier'!$G$44*(('BP Financier'!$C$19+'BP Financier'!$D$19+'BP Financier'!$E$19+'BP Financier'!$F$19+'BP Financier'!$G$19)/('BP Financier'!$C$16+'BP Financier'!$C$19+'BP Financier'!$D$16+'BP Financier'!$D$19+'BP Financier'!$E$16+'BP Financier'!$E$19+'BP Financier'!$C$22+'BP Financier'!$D$22+'BP Financier'!$E$22+'BP Financier'!$F$22+'BP Financier'!$F$19+'BP Financier'!$F$16+'BP Financier'!$G$22+'BP Financier'!$G$19+'BP Financier'!$G$16))*$V9154*AB9154/(1-$W9154)","v":{"v":1287.3097629385745,"d":"1,287"}},null,{"v":1E-3,"d":"0.10%"},{"$f":"Actif!$E$28/100","v":{"v":0.28900000000000003,"d":"28.90%"}},{"$f":"Actif!$E$30/100","v":{"v":0.09050000000000001,"d":"9.05%"}},{"$f":"Actif!$E$31/100","v":{"v":0.0605,"d":"6.05%"}},{"$f":"Actif!$E$32/100","v":{"v":0.47350000000000003,"d":"47.35%"}},{"$f":"Actif!$E$33/100","v":{"v":0.0585,"d":"5.85%"}},{"$f":"Actif!$E$29/100","v":{"v":0.027999999999999997,"d":"2.80%"}}]
[null,"#39",25,2030,"H","A_PER",{"v":0.44999999999999996,"d":"0.45"},{"v":0.38999999999999996,"d":"0.39"},0.6,0.6,85,0,{"$f":"ROUND(Primes!$Q$7*V9155,0)","v":1},{"$f":"'BP Financier'!$G$33*(('BP Financier'!$C$19+'BP Financier'!$D$19+'BP Financier'!$E$19+'BP Financier'!$F$19+'BP Financier'!$G$19)/('BP Financier'!$C$16+'BP Financier'!$C$19+'BP Financier'!$D$16+'BP Financier'!$D$19+'BP Financier'!$E$16+'BP Financier'!$E$19+'BP Financier'!$F$16+'BP Financier'!$F$19+'BP Financier'!$G$16+'BP Financier'!$G$19))*V9155","v":{"v":56955.057223727745,"d":"56,955"}},{"v":32688.472908904525,"d":"32,688"},{"$f":"'BP Financier'!$G$44*(('BP Financier'!$C$19+'BP Financier'!$D$19+'BP Financier'!$E$19+'BP Financier'!$F$19+'BP Financier'!$G$19)/('BP Financier'!$C$16+'BP Financier'!$C$19+'BP Financier'!$D$16+'BP Financier'!$D$19+'BP Financier'!$E$16+'BP Financier'!$E$19+'BP Financier'!$C$22+'BP Financier'!$D$22+'BP Financier'!$E$22+'BP Financier'!$F$22+'BP Financier'!$F$19+'BP Financier'!$F$16+'BP Financier'!$G$22+'BP Financier'!$G$19+'BP Financier'!$G$16))*$V9155*X9155/(1-$W9155)","v":{"v":4160.769055212179,"d":"4,161"}},{"$f":"'BP Financier'!$G$44*(('BP Financier'!$C$19+'BP Financier'!$D$19+'BP Financier'!$E$19+'BP Financier'!$F$19+'BP Financier'!$G$19)/('BP Financier'!$C$16+'BP Financier'!$C$19+'BP Financier'!$D$16+'BP Financier'!$D$19+'BP Financier'!$E$16+'BP Financier'!$E$19+'BP Financier'!$C$22+'BP Financier'!$D$22+'BP Financier'!$E$22+'BP Financier'!$F$22+'BP Financier'!$F$19+'BP Financier'!$F$16+'BP Financier'!$G$22+'BP Financier'!$G$19+'BP Financier'!$G$16))*$V9155*Y9155/(1-$W9155)","v":{"v":2781.5085949208483,"d":"2,782"}},{"$f":"'BP Financier'!$G$44*(('BP Financier'!$C$19+'BP Financier'!$D$19+'BP Financier'!$E$19+'BP Financier'!$F$19+'BP Financier'!$G$19)/('BP Financier'!$C$16+'BP Financier'!$C$19+'BP Financier'!$D$16+'BP Financier'!$D$19+'BP Financier'!$E$16+'BP Financier'!$E$19+'BP Financier'!$C$22+'BP Financier'!$D$22+'BP Financier'!$E$22+'BP Financier'!$F$22+'BP Financier'!$F$19+'BP Financier'!$F$16+'BP Financier'!$G$22+'BP Financier'!$G$19+'BP Financier'!$G$16))*$V9155*Z9155/(1-$W9155)","v":{"v":21769.327598264827,"d":"21,769"}},{"$f":"'BP Financier'!$G$44*(('BP Financier'!$C$19+'BP Financier'!$D$19+'BP Financier'!$E$19+'BP Financier'!$F$19+'BP Financier'!$G$19)/('BP Financier'!$C$16+'BP Financier'!$C$19+'BP Financier'!$D$16+'BP Financier'!$D$19+'BP Financier'!$E$16+'BP Financier'!$E$19+'BP Financier'!$C$22+'BP Financier'!$D$22+'BP Financier'!$E$22+'BP Financier'!$F$22+'BP Financier'!$F$19+'BP Financier'!$F$16+'BP Financier'!$G$22+'BP Financier'!$G$19+'BP Financier'!$G$16))*$V9155*AA9155/(1-$W9155)","v":{"v":2689.5578975680937,"d":"2,690"}},{"$f":"'BP Financier'!$G$44*(('BP Financier'!$C$19+'BP Financier'!$D$19+'BP Financier'!$E$19+'BP Financier'!$F$19+'BP Financier'!$G$19)/('BP Financier'!$C$16+'BP Financier'!$C$19+'BP Financier'!$D$16+'BP Financier'!$D$19+'BP Financier'!$E$16+'BP Financier'!$E$19+'BP Financier'!$C$22+'BP Financier'!$D$22+'BP Financier'!$E$22+'BP Financier'!$F$22+'BP Financier'!$F$19+'BP Financier'!$F$16+'BP Financier'!$G$22+'BP Financier'!$G$19+'BP Financier'!$G$16))*$V9155*AB9155/(1-$W9155)","v":{"v":1287.3097629385745,"d":"1,287"}},null,{"v":1E-3,"d":"0.10%"},{"$f":"Actif!$E$28/100","v":{"v":0.28900000000000003,"d":"28.90%"}},{"$f":"Actif!$E$30/100","v":{"v":0.09050000000000001,"d":"9.05%"}},{"$f":"Actif!$E$31/100","v":{"v":0.0605,"d":"6.05%"}},{"$f":"Actif!$E$32/100","v":{"v":0.47350000000000003,"d":"47.35%"}},{"$f":"Actif!$E$33/100","v":{"v":0.0585,"d":"5.85%"}},{"$f":"Actif!$E$29/100","v":{"v":0.027999999999999997,"d":"2.80%"}}]
[null,"#40",25,2031,"H","A_PER",{"v":0.44999999999999996,"d":"0.45"},{"v":0.38999999999999996,"d":"0.39"},0.6,0.6,85,0,{"$f":"ROUND(Primes!$Q$7*V9156,0)","v":1},{"$f":"'BP Financier'!$G$33*(('BP Financier'!$C$19+'BP Financier'!$D$19+'BP Financier'!$E$19+'BP Financier'!$F$19+'BP Financier'!$G$19)/('BP Financier'!$C$16+'BP Financier'!$C$19+'BP Financier'!$D$16+'BP Financier'!$D$19+'BP Financier'!$E$16+'BP Financier'!$E$19+'BP Financier'!$F$16+'BP Financier'!$F$19+'BP Financier'!$G$16+'BP Financier'!$G$19))*V9156","v":{"v":56955.057223727745,"d":"56,955"}},{"v":32688.472908904525,"d":"32,688"},{"$f":"'BP Financier'!$G$44*(('BP Financier'!$C$19+'BP Financier'!$D$19+'BP Financier'!$E$19+'BP Financier'!$F$19+'BP Financier'!$G$19)/('BP Financier'!$C$16+'BP Financier'!$C$19+'BP Financier'!$D$16+'BP Financier'!$D$19+'BP Financier'!$E$16+'BP Financier'!$E$19+'BP Financier'!$C$22+'BP Financier'!$D$22+'BP Financier'!$E$22+'BP Financier'!$F$22+'BP Financier'!$F$19+'BP Financier'!$F$16+'BP Financier'!$G$22+'BP Financier'!$G$19+'BP Financier'!$G$16))*$V9156*X9156/(1-$W9156)","v":{"v":4160.769055212179,"d":"4,161"}},{"$f":"'BP Financier'!$G$44*(('BP Financier'!$C$19+'BP Financier'!$D$19+'BP Financier'!$E$19+'BP Financier'!$F$19+'BP Financier'!$G$19)/('BP Financier'!$C$16+'BP Financier'!$C$19+'BP Financier'!$D$16+'BP Financier'!$D$19+'BP Financier'!$E$16+'BP Financier'!$E$19+'BP Financier'!$C$22+'BP Financier'!$D$22+'BP Financier'!$E$22+'BP Financier'!$F$22+'BP Financier'!$F$19+'BP Financier'!$F$16+'BP Financier'!$G$22+'BP Financier'!$G$19+'BP Financier'!$G$16))*$V9156*Y9156/(1-$W9156)","v":{"v":2781.5085949208483,"d":"2,782"}},{"$f":"'BP Financier'!$G$44*(('BP Financier'!$C$19+'BP Financier'!$D$19+'BP Financier'!$E$19+'BP Financier'!$F$19+'BP Financier'!$G$19)/('BP Financier'!$C$16+'BP Financier'!$C$19+'BP Financier'!$D$16+'BP Financier'!$D$19+'BP Financier'!$E$16+'BP Financier'!$E$19+'BP Financier'!$C$22+'BP Financier'!$D$22+'BP Financier'!$E$22+'BP Financier'!$F$22+'BP Financier'!$F$19+'BP Financier'!$F$16+'BP Financier'!$G$22+'BP Financier'!$G$19+'BP Financier'!$G$16))*$V9156*Z9156/(1-$W9156)","v":{"v":21769.327598264827,"d":"21,769"}},{"$f":"'BP Financier'!$G$44*(('BP Financier'!$C$19+'BP Financier'!$D$19+'BP Financier'!$E$19+'BP Financier'!$F$19+'BP Financier'!$G$19)/('BP Financier'!$C$16+'BP Financier'!$C$19+'BP Financier'!$D$16+'BP Financier'!$D$19+'BP Financier'!$E$16+'BP Financier'!$E$19+'BP Financier'!$C$22+'BP Financier'!$D$22+'BP Financier'!$E$22+'BP Financier'!$F$22+'BP Financier'!$F$19+'BP Financier'!$F$16+'BP Financier'!$G$22+'BP Financier'!$G$19+'BP Financier'!$G$16))*$V9156*AA9156/(1-$W9156)","v":{"v":2689.5578975680937,"d":"2,690"}},{"$f":"'BP Financier'!$G$44*(('BP Financier'!$C$19+'BP Financier'!$D$19+'BP Financier'!$E$19+'BP Financier'!$F$19+'BP Financier'!$G$19)/('BP Financier'!$C$16+'BP Financier'!$C$19+'BP Financier'!$D$16+'BP Financier'!$D$19+'BP Financier'!$E$16+'BP Financier'!$E$19+'BP Financier'!$C$22+'BP Financier'!$D$22+'BP Financier'!$E$22+'BP Financier'!$F$22+'BP Financier'!$F$19+'BP Financier'!$F$16+'BP Financier'!$G$22+'BP Financier'!$G$19+'BP Financier'!$G$16))*$V9156*AB9156/(1-$W9156)","v":{"v":1287.3097629385745,"d":"1,287"}},null,{"v":1E-3,"d":"0.10%"},{"$f":"Actif!$E$28/100","v":{"v":0.28900000000000003,"d":"28.90%"}},{"$f":"Actif!$E$30/100","v":{"v":0.09050000000000001,"d":"9.05%"}},{"$f":"Actif!$E$31/100","v":{"v":0.0605,"d":"6.05%"}},{"$f":"Actif!$E$32/100","v":{"v":0.47350000000000003,"d":"47.35%"}},{"$f":"Actif!$E$33/100","v":{"v":0.0585,"d":"5.85%"}},{"$f":"Actif!$E$29/100","v":{"v":0.027999999999999997,"d":"2.80%"}}]
[null,"#41",26,2026,"F","A_PER",{"v":0.44999999999999996,"d":"0.45"},{"v":0.38999999999999996,"d":"0.39"},0.6,0.6,85,0,{"$f":"ROUND(Primes!$Q$7*V9157,0)","v":4},{"$f":"'BP Financier'!$G$33*(('BP Financier'!$C$19+'BP Financier'!$D$19+'BP Financier'!$E$19+'BP Financier'!$F$19+'BP Financier'!$G$19)/('BP Financier'!$C$16+'BP Financier'!$C$19+'BP Financier'!$D$16+'BP Financier'!$D$19+'BP Financier'!$E$16+'BP Financier'!$E$19+'BP Financier'!$F$16+'BP Financier'!$F$19+'BP Financier'!$G$16+'BP Financier'!$G$19))*V9157","v":{"v":170865.17167118323,"d":"170,865"}},{"v":98065.41872671354,"d":"98,065"},{"$f":"'BP Financier'!$G$44*(('BP Financier'!$C$19+'BP Financier'!$D$19+'BP Financier'!$E$19+'BP Financier'!$F$19+'BP Financier'!$G$19)/('BP Financier'!$C$16+'BP Financier'!$C$19+'BP Financier'!$D$16+'BP Financier'!$D$19+'BP Financier'!$E$16+'BP Financier'!$E$19+'BP Financier'!$C$22+'BP Financier'!$D$22+'BP Financier'!$E$22+'BP Financier'!$F$22+'BP Financier'!$F$19+'BP Financier'!$F$16+'BP Financier'!$G$22+'BP Financier'!$G$19+'BP Financier'!$G$16))*$V9157*X9157/(1-$W9157)","v":{"v":12482.307165636536,"d":"12,482"}},{"$f":"'BP Financier'!$G$44*(('BP Financier'!$C$19+'BP Financier'!$D$19+'BP Financier'!$E$19+'BP Financier'!$F$19+'BP Financier'!$G$19)/('BP Financier'!$C$16+'BP Financier'!$C$19+'BP Financier'!$D$16+'BP Financier'!$D$19+'BP Financier'!$E$16+'BP Financier'!$E$19+'BP Financier'!$C$22+'BP Financier'!$D$22+'BP Financier'!$E$22+'BP Financier'!$F$22+'BP Financier'!$F$19+'BP Financier'!$F$16+'BP Financier'!$G$22+'BP Financier'!$G$19+'BP Financier'!$G$16))*$V9157*Y9157/(1-$W9157)","v":{"v":8344.525784762545,"d":"8,345"}},{"$f":"'BP Financier'!$G$44*(('BP Financier'!$C$19+'BP Financier'!$D$19+'BP Financier'!$E$19+'BP Financier'!$F$19+'BP Financier'!$G$19)/('BP Financier'!$C$16+'BP Financier'!$C$19+'BP Financier'!$D$16+'BP Financier'!$D$19+'BP Financier'!$E$16+'BP Financier'!$E$19+'BP Financier'!$C$22+'BP Financier'!$D$22+'BP Financier'!$E$22+'BP Financier'!$F$22+'BP Financier'!$F$19+'BP Financier'!$F$16+'BP Financier'!$G$22+'BP Financier'!$G$19+'BP Financier'!$G$16))*$V9157*Z9157/(1-$W9157)","v":{"v":65307.982794794465,"d":"65,308"}},{"$f":"'BP Financier'!$G$44*(('BP Financier'!$C$19+'BP Financier'!$D$19+'BP Financier'!$E$19+'BP Financier'!$F$19+'BP Financier'!$G$19)/('BP Financier'!$C$16+'BP Financier'!$C$19+'BP Financier'!$D$16+'BP Financier'!$D$19+'BP Financier'!$E$16+'BP Financier'!$E$19+'BP Financier'!$C$22+'BP Financier'!$D$22+'BP Financier'!$E$22+'BP Financier'!$F$22+'BP Financier'!$F$19+'BP Financier'!$F$16+'BP Financier'!$G$22+'BP Financier'!$G$19+'BP Financier'!$G$16))*$V9157*AA9157/(1-$W9157)","v":{"v":8068.673692704279,"d":"8,069"}},{"$f":"'BP Financier'!$G$44*(('BP Financier'!$C$19+'BP Financier'!$D$19+'BP Financier'!$E$19+'BP Financier'!$F$19+'BP Financier'!$G$19)/('BP Financier'!$C$16+'BP Financier'!$C$19+'BP Financier'!$D$16+'BP Financier'!$D$19+'BP Financier'!$E$16+'BP Financier'!$E$19+'BP Financier'!$C$22+'BP Financier'!$D$22+'BP Financier'!$E$22+'BP Financier'!$F$22+'BP Financier'!$F$19+'BP Financier'!$F$16+'BP Financier'!$G$22+'BP Financier'!$G$19+'BP Financier'!$G$16))*$V9157*AB9157/(1-$W9157)","v":{"v":3861.929288815723,"d":"3,862"}},null,{"v":0.003,"d":"0.30%"},{"$f":"Actif!$E$28/100","v":{"v":0.28900000000000003,"d":"28.90%"}},{"$f":"Actif!$E$30/100","v":{"v":0.09050000000000001,"d":"9.05%"}},{"$f":"Actif!$E$31/100","v":{"v":0.0605,"d":"6.05%"}},{"$f":"Actif!$E$32/100","v":{"v":0.47350000000000003,"d":"47.35%"}},{"$f":"Actif!$E$33/100","v":{"v":0.0585,"d":"5.85%"}},{"$f":"Actif!$E$29/100","v":{"v":0.027999999999999997,"d":"2.80%"}}]
[null,"#42",26,2028,"F","A_PER",{"v":0.44999999999999996,"d":"0.45"},{"v":0.38999999999999996,"d":"0.39"},0.6,0.6,85,0,{"$f":"ROUND(Primes!$Q$7*V9158,0)","v":4},{"$f":"'BP Financier'!$G$33*(('BP Financier'!$C$19+'BP Financier'!$D$19+'BP Financier'!$E$19+'BP Financier'!$F$19+'BP Financier'!$G$19)/('BP Financier'!$C$16+'BP Financier'!$C$19+'BP Financier'!$D$16+'BP Financier'!$D$19+'BP Financier'!$E$16+'BP Financier'!$E$19+'BP Financier'!$F$16+'BP Financier'!$F$19+'BP Financier'!$G$16+'BP Financier'!$G$19))*V9158","v":{"v":170865.17167118323,"d":"170,865"}},{"v":98065.41872671354,"d":"98,065"},{"$f":"'BP Financier'!$G$44*(('BP Financier'!$C$19+'BP Financier'!$D$19+'BP Financier'!$E$19+'BP Financier'!$F$19+'BP Financier'!$G$19)/('BP Financier'!$C$16+'BP Financier'!$C$19+'BP Financier'!$D$16+'BP Financier'!$D$19+'BP Financier'!$E$16+'BP Financier'!$E$19+'BP Financier'!$C$22+'BP Financier'!$D$22+'BP Financier'!$E$22+'BP Financier'!$F$22+'BP Financier'!$F$19+'BP Financier'!$F$16+'BP Financier'!$G$22+'BP Financier'!$G$19+'BP Financier'!$G$16))*$V9158*X9158/(1-$W9158)","v":{"v":12482.307165636536,"d":"12,482"}},{"$f":"'BP Financier'!$G$44*(('BP Financier'!$C$19+'BP Financier'!$D$19+'BP Financier'!$E$19+'BP Financier'!$F$19+'BP Financier'!$G$19)/('BP Financier'!$C$16+'BP Financier'!$C$19+'BP Financier'!$D$16+'BP Financier'!$D$19+'BP Financier'!$E$16+'BP Financier'!$E$19+'BP Financier'!$C$22+'BP Financier'!$D$22+'BP Financier'!$E$22+'BP Financier'!$F$22+'BP Financier'!$F$19+'BP Financier'!$F$16+'BP Financier'!$G$22+'BP Financier'!$G$19+'BP Financier'!$G$16))*$V9158*Y9158/(1-$W9158)","v":{"v":8344.525784762545,"d":"8,345"}},{"$f":"'BP Financier'!$G$44*(('BP Financier'!$C$19+'BP Financier'!$D$19+'BP Financier'!$E$19+'BP Financier'!$F$19+'BP Financier'!$G$19)/('BP Financier'!$C$16+'BP Financier'!$C$19+'BP Financier'!$D$16+'BP Financier'!$D$19+'BP Financier'!$E$16+'BP Financier'!$E$19+'BP Financier'!$C$22+'BP Financier'!$D$22+'BP Financier'!$E$22+'BP Financier'!$F$22+'BP Financier'!$F$19+'BP Financier'!$F$16+'BP Financier'!$G$22+'BP Financier'!$G$19+'BP Financier'!$G$16))*$V9158*Z9158/(1-$W9158)","v":{"v":65307.982794794465,"d":"65,308"}},{"$f":"'BP Financier'!$G$44*(('BP Financier'!$C$19+'BP Financier'!$D$19+'BP Financier'!$E$19+'BP Financier'!$F$19+'BP Financier'!$G$19)/('BP Financier'!$C$16+'BP Financier'!$C$19+'BP Financier'!$D$16+'BP Financier'!$D$19+'BP Financier'!$E$16+'BP Financier'!$E$19+'BP Financier'!$C$22+'BP Financier'!$D$22+'BP Financier'!$E$22+'BP Financier'!$F$22+'BP Financier'!$F$19+'BP Financier'!$F$16+'BP Financier'!$G$22+'BP Financier'!$G$19+'BP Financier'!$G$16))*$V9158*AA9158/(1-$W9158)","v":{"v":8068.673692704279,"d":"8,069"}},{"$f":"'BP Financier'!$G$44*(('BP Financier'!$C$19+'BP Financier'!$D$19+'BP Financier'!$E$19+'BP Financier'!$F$19+'BP Financier'!$G$19)/('BP Financier'!$C$16+'BP Financier'!$C$19+'BP Financier'!$D$16+'BP Financier'!$D$19+'BP Financier'!$E$16+'BP Financier'!$E$19+'BP Financier'!$C$22+'BP Financier'!$D$22+'BP Financier'!$E$22+'BP Financier'!$F$22+'BP Financier'!$F$19+'BP Financier'!$F$16+'BP Financier'!$G$22+'BP Financier'!$G$19+'BP Financier'!$G$16))*$V9158*AB9158/(1-$W9158)","v":{"v":3861.929288815723,"d":"3,862"}},null,{"v":0.003,"d":"0.30%"},{"$f":"Actif!$E$28/100","v":{"v":0.28900000000000003,"d":"28.90%"}},{"$f":"Actif!$E$30/100","v":{"v":0.09050000000000001,"d":"9.05%"}},{"$f":"Actif!$E$31/100","v":{"v":0.0605,"d":"6.05%"}},{"$f":"Actif!$E$32/100","v":{"v":0.47350000000000003,"d":"47.35%"}},{"$f":"Actif!$E$33/100","v":{"v":0.0585,"d":"5.85%"}},{"$f":"Actif!$E$29/100","v":{"v":0.027999999999999997,"d":"2.80%"}}]
[null,"#43",26,2029,"F","A_PER",{"v":0.44999999999999996,"d":"0.45"},{"v":0.38999999999999996,"d":"0.39"},0.6,0.6,85,0,{"$f":"ROUND(Primes!$Q$7*V9159,0)","v":4},{"$f":"'BP Financier'!$G$33*(('BP Financier'!$C$19+'BP Financier'!$D$19+'BP Financier'!$E$19+'BP Financier'!$F$19+'BP Financier'!$G$19)/('BP Financier'!$C$16+'BP Financier'!$C$19+'BP Financier'!$D$16+'BP Financier'!$D$19+'BP Financier'!$E$16+'BP Financier'!$E$19+'BP Financier'!$F$16+'BP Financier'!$F$19+'BP Financier'!$G$16+'BP Financier'!$G$19))*V9159","v":{"v":170865.17167118323,"d":"170,865"}},{"v":98065.41872671354,"d":"98,065"},{"$f":"'BP Financier'!$G$44*(('BP Financier'!$C$19+'BP Financier'!$D$19+'BP Financier'!$E$19+'BP Financier'!$F$19+'BP Financier'!$G$19)/('BP Financier'!$C$16+'BP Financier'!$C$19+'BP Financier'!$D$16+'BP Financier'!$D$19+'BP Financier'!$E$16+'BP Financier'!$E$19+'BP Financier'!$C$22+'BP Financier'!$D$22+'BP Financier'!$E$22+'BP Financier'!$F$22+'BP Financier'!$F$19+'BP Financier'!$F$16+'BP Financier'!$G$22+'BP Financier'!$G$19+'BP Financier'!$G$16))*$V9159*X9159/(1-$W9159)","v":{"v":12482.307165636536,"d":"12,482"}},{"$f":"'BP Financier'!$G$44*(('BP Financier'!$C$19+'BP Financier'!$D$19+'BP Financier'!$E$19+'BP Financier'!$F$19+'BP Financier'!$G$19)/('BP Financier'!$C$16+'BP Financier'!$C$19+'BP Financier'!$D$16+'BP Financier'!$D$19+'BP Financier'!$E$16+'BP Financier'!$E$19+'BP Financier'!$C$22+'BP Financier'!$D$22+'BP Financier'!$E$22+'BP Financier'!$F$22+'BP Financier'!$F$19+'BP Financier'!$F$16+'BP Financier'!$G$22+'BP Financier'!$G$19+'BP Financier'!$G$16))*$V9159*Y9159/(1-$W9159)","v":{"v":8344.525784762545,"d":"8,345"}},{"$f":"'BP Financier'!$G$44*(('BP Financier'!$C$19+'BP Financier'!$D$19+'BP Financier'!$E$19+'BP Financier'!$F$19+'BP Financier'!$G$19)/('BP Financier'!$C$16+'BP Financier'!$C$19+'BP Financier'!$D$16+'BP Financier'!$D$19+'BP Financier'!$E$16+'BP Financier'!$E$19+'BP Financier'!$C$22+'BP Financier'!$D$22+'BP Financier'!$E$22+'BP Financier'!$F$22+'BP Financier'!$F$19+'BP Financier'!$F$16+'BP Financier'!$G$22+'BP Financier'!$G$19+'BP Financier'!$G$16))*$V9159*Z9159/(1-$W9159)","v":{"v":65307.982794794465,"d":"65,308"}},{"$f":"'BP Financier'!$G$44*(('BP Financier'!$C$19+'BP Financier'!$D$19+'BP Financier'!$E$19+'BP Financier'!$F$19+'BP Financier'!$G$19)/('BP Financier'!$C$16+'BP Financier'!$C$19+'BP Financier'!$D$16+'BP Financier'!$D$19+'BP Financier'!$E$16+'BP Financier'!$E$19+'BP Financier'!$C$22+'BP Financier'!$D$22+'BP Financier'!$E$22+'BP Financier'!$F$22+'BP Financier'!$F$19+'BP Financier'!$F$16+'BP Financier'!$G$22+'BP Financier'!$G$19+'BP Financier'!$G$16))*$V9159*AA9159/(1-$W9159)","v":{"v":8068.673692704279,"d":"8,069"}},{"$f":"'BP Financier'!$G$44*(('BP Financier'!$C$19+'BP Financier'!$D$19+'BP Financier'!$E$19+'BP Financier'!$F$19+'BP Financier'!$G$19)/('BP Financier'!$C$16+'BP Financier'!$C$19+'BP Financier'!$D$16+'BP Financier'!$D$19+'BP Financier'!$E$16+'BP Financier'!$E$19+'BP Financier'!$C$22+'BP Financier'!$D$22+'BP Financier'!$E$22+'BP Financier'!$F$22+'BP Financier'!$F$19+'BP Financier'!$F$16+'BP Financier'!$G$22+'BP Financier'!$G$19+'BP Financier'!$G$16))*$V9159*AB9159/(1-$W9159)","v":{"v":3861.929288815723,"d":"3,862"}},null,{"v":0.003,"d":"0.30%"},{"$f":"Actif!$E$28/100","v":{"v":0.28900000000000003,"d":"28.90%"}},{"$f":"Actif!$E$30/100","v":{"v":0.09050000000000001,"d":"9.05%"}},{"$f":"Actif!$E$31/100","v":{"v":0.0605,"d":"6.05%"}},{"$f":"Actif!$E$32/100","v":{"v":0.47350000000000003,"d":"47.35%"}},{"$f":"Actif!$E$33/100","v":{"v":0.0585,"d":"5.85%"}},{"$f":"Actif!$E$29/100","v":{"v":0.027999999999999997,"d":"2.80%"}}]
[null,"#44",26,2030,"F","A_PER",{"v":0.44999999999999996,"d":"0.45"},{"v":0.38999999999999996,"d":"0.39"},0.6,0.6,85,0,{"$f":"ROUND(Primes!$Q$7*V9160,0)","v":4},{"$f":"'BP Financier'!$G$33*(('BP Financier'!$C$19+'BP Financier'!$D$19+'BP Financier'!$E$19+'BP Financier'!$F$19+'BP Financier'!$G$19)/('BP Financier'!$C$16+'BP Financier'!$C$19+'BP Financier'!$D$16+'BP Financier'!$D$19+'BP Financier'!$E$16+'BP Financier'!$E$19+'BP Financier'!$F$16+'BP Financier'!$F$19+'BP Financier'!$G$16+'BP Financier'!$G$19))*V9160","v":{"v":170865.17167118323,"d":"170,865"}},{"v":98065.41872671354,"d":"98,065"},{"$f":"'BP Financier'!$G$44*(('BP Financier'!$C$19+'BP Financier'!$D$19+'BP Financier'!$E$19+'BP Financier'!$F$19+'BP Financier'!$G$19)/('BP Financier'!$C$16+'BP Financier'!$C$19+'BP Financier'!$D$16+'BP Financier'!$D$19+'BP Financier'!$E$16+'BP Financier'!$E$19+'BP Financier'!$C$22+'BP Financier'!$D$22+'BP Financier'!$E$22+'BP Financier'!$F$22+'BP Financier'!$F$19+'BP Financier'!$F$16+'BP Financier'!$G$22+'BP Financier'!$G$19+'BP Financier'!$G$16))*$V9160*X9160/(1-$W9160)","v":{"v":12482.307165636536,"d":"12,482"}},{"$f":"'BP Financier'!$G$44*(('BP Financier'!$C$19+'BP Financier'!$D$19+'BP Financier'!$E$19+'BP Financier'!$F$19+'BP Financier'!$G$19)/('BP Financier'!$C$16+'BP Financier'!$C$19+'BP Financier'!$D$16+'BP Financier'!$D$19+'BP Financier'!$E$16+'BP Financier'!$E$19+'BP Financier'!$C$22+'BP Financier'!$D$22+'BP Financier'!$E$22+'BP Financier'!$F$22+'BP Financier'!$F$19+'BP Financier'!$F$16+'BP Financier'!$G$22+'BP Financier'!$G$19+'BP Financier'!$G$16))*$V9160*Y9160/(1-$W9160)","v":{"v":8344.525784762545,"d":"8,345"}},{"$f":"'BP Financier'!$G$44*(('BP Financier'!$C$19+'BP Financier'!$D$19+'BP Financier'!$E$19+'BP Financier'!$F$19+'BP Financier'!$G$19)/('BP Financier'!$C$16+'BP Financier'!$C$19+'BP Financier'!$D$16+'BP Financier'!$D$19+'BP Financier'!$E$16+'BP Financier'!$E$19+'BP Financier'!$C$22+'BP Financier'!$D$22+'BP Financier'!$E$22+'BP Financier'!$F$22+'BP Financier'!$F$19+'BP Financier'!$F$16+'BP Financier'!$G$22+'BP Financier'!$G$19+'BP Financier'!$G$16))*$V9160*Z9160/(1-$W9160)","v":{"v":65307.982794794465,"d":"65,308"}},{"$f":"'BP Financier'!$G$44*(('BP Financier'!$C$19+'BP Financier'!$D$19+'BP Financier'!$E$19+'BP Financier'!$F$19+'BP Financier'!$G$19)/('BP Financier'!$C$16+'BP Financier'!$C$19+'BP Financier'!$D$16+'BP Financier'!$D$19+'BP Financier'!$E$16+'BP Financier'!$E$19+'BP Financier'!$C$22+'BP Financier'!$D$22+'BP Financier'!$E$22+'BP Financier'!$F$22+'BP Financier'!$F$19+'BP Financier'!$F$16+'BP Financier'!$G$22+'BP Financier'!$G$19+'BP Financier'!$G$16))*$V9160*AA9160/(1-$W9160)","v":{"v":8068.673692704279,"d":"8,069"}},{"$f":"'BP Financier'!$G$44*(('BP Financier'!$C$19+'BP Financier'!$D$19+'BP Financier'!$E$19+'BP Financier'!$F$19+'BP Financier'!$G$19)/('BP Financier'!$C$16+'BP Financier'!$C$19+'BP Financier'!$D$16+'BP Financier'!$D$19+'BP Financier'!$E$16+'BP Financier'!$E$19+'BP Financier'!$C$22+'BP Financier'!$D$22+'BP Financier'!$E$22+'BP Financier'!$F$22+'BP Financier'!$F$19+'BP Financier'!$F$16+'BP Financier'!$G$22+'BP Financier'!$G$19+'BP Financier'!$G$16))*$V9160*AB9160/(1-$W9160)","v":{"v":3861.929288815723,"d":"3,862"}},null,{"v":0.003,"d":"0.30%"},{"$f":"Actif!$E$28/100","v":{"v":0.28900000000000003,"d":"28.90%"}},{"$f":"Actif!$E$30/100","v":{"v":0.09050000000000001,"d":"9.05%"}},{"$f":"Actif!$E$31/100","v":{"v":0.0605,"d":"6.05%"}},{"$f":"Actif!$E$32/100","v":{"v":0.47350000000000003,"d":"47.35%"}},{"$f":"Actif!$E$33/100","v":{"v":0.0585,"d":"5.85%"}},{"$f":"Actif!$E$29/100","v":{"v":0.027999999999999997,"d":"2.80%"}}]
[null,"#45",26,2031,"F","A_PER",{"v":0.44999999999999996,"d":"0.45"},{"v":0.38999999999999996,"d":"0.39"},0.6,0.6,85,0,{"$f":"ROUND(Primes!$Q$7*V9161,0)","v":4},{"$f":"'BP Financier'!$G$33*(('BP Financier'!$C$19+'BP Financier'!$D$19+'BP Financier'!$E$19+'BP Financier'!$F$19+'BP Financier'!$G$19)/('BP Financier'!$C$16+'BP Financier'!$C$19+'BP Financier'!$D$16+'BP Financier'!$D$19+'BP Financier'!$E$16+'BP Financier'!$E$19+'BP Financier'!$F$16+'BP Financier'!$F$19+'BP Financier'!$G$16+'BP Financier'!$G$19))*V9161","v":{"v":170865.17167118323,"d":"170,865"}},{"v":98065.41872671354,"d":"98,065"},{"$f":"'BP Financier'!$G$44*(('BP Financier'!$C$19+'BP Financier'!$D$19+'BP Financier'!$E$19+'BP Financier'!$F$19+'BP Financier'!$G$19)/('BP Financier'!$C$16+'BP Financier'!$C$19+'BP Financier'!$D$16+'BP Financier'!$D$19+'BP Financier'!$E$16+'BP Financier'!$E$19+'BP Financier'!$C$22+'BP Financier'!$D$22+'BP Financier'!$E$22+'BP Financier'!$F$22+'BP Financier'!$F$19+'BP Financier'!$F$16+'BP Financier'!$G$22+'BP Financier'!$G$19+'BP Financier'!$G$16))*$V9161*X9161/(1-$W9161)","v":{"v":12482.307165636536,"d":"12,482"}},{"$f":"'BP Financier'!$G$44*(('BP Financier'!$C$19+'BP Financier'!$D$19+'BP Financier'!$E$19+'BP Financier'!$F$19+'BP Financier'!$G$19)/('BP Financier'!$C$16+'BP Financier'!$C$19+'BP Financier'!$D$16+'BP Financier'!$D$19+'BP Financier'!$E$16+'BP Financier'!$E$19+'BP Financier'!$C$22+'BP Financier'!$D$22+'BP Financier'!$E$22+'BP Financier'!$F$22+'BP Financier'!$F$19+'BP Financier'!$F$16+'BP Financier'!$G$22+'BP Financier'!$G$19+'BP Financier'!$G$16))*$V9161*Y9161/(1-$W9161)","v":{"v":8344.525784762545,"d":"8,345"}},{"$f":"'BP Financier'!$G$44*(('BP Financier'!$C$19+'BP Financier'!$D$19+'BP Financier'!$E$19+'BP Financier'!$F$19+'BP Financier'!$G$19)/('BP Financier'!$C$16+'BP Financier'!$C$19+'BP Financier'!$D$16+'BP Financier'!$D$19+'BP Financier'!$E$16+'BP Financier'!$E$19+'BP Financier'!$C$22+'BP Financier'!$D$22+'BP Financier'!$E$22+'BP Financier'!$F$22+'BP Financier'!$F$19+'BP Financier'!$F$16+'BP Financier'!$G$22+'BP Financier'!$G$19+'BP Financier'!$G$16))*$V9161*Z9161/(1-$W9161)","v":{"v":65307.982794794465,"d":"65,308"}},{"$f":"'BP Financier'!$G$44*(('BP Financier'!$C$19+'BP Financier'!$D$19+'BP Financier'!$E$19+'BP Financier'!$F$19+'BP Financier'!$G$19)/('BP Financier'!$C$16+'BP Financier'!$C$19+'BP Financier'!$D$16+'BP Financier'!$D$19+'BP Financier'!$E$16+'BP Financier'!$E$19+'BP Financier'!$C$22+'BP Financier'!$D$22+'BP Financier'!$E$22+'BP Financier'!$F$22+'BP Financier'!$F$19+'BP Financier'!$F$16+'BP Financier'!$G$22+'BP Financier'!$G$19+'BP Financier'!$G$16))*$V9161*AA9161/(1-$W9161)","v":{"v":8068.673692704279,"d":"8,069"}},{"$f":"'BP Financier'!$G$44*(('BP Financier'!$C$19+'BP Financier'!$D$19+'BP Financier'!$E$19+'BP Financier'!$F$19+'BP Financier'!$G$19)/('BP Financier'!$C$16+'BP Financier'!$C$19+'BP Financier'!$D$16+'BP Financier'!$D$19+'BP Financier'!$E$16+'BP Financier'!$E$19+'BP Financier'!$C$22+'BP Financier'!$D$22+'BP Financier'!$E$22+'BP Financier'!$F$22+'BP Financier'!$F$19+'BP Financier'!$F$16+'BP Financier'!$G$22+'BP Financier'!$G$19+'BP Financier'!$G$16))*$V9161*AB9161/(1-$W9161)","v":{"v":3861.929288815723,"d":"3,862"}},null,{"v":0.003,"d":"0.30%"},{"$f":"Actif!$E$28/100","v":{"v":0.28900000000000003,"d":"28.90%"}},{"$f":"Actif!$E$30/100","v":{"v":0.09050000000000001,"d":"9.05%"}},{"$f":"Actif!$E$31/100","v":{"v":0.0605,"d":"6.05%"}},{"$f":"Actif!$E$32/100","v":{"v":0.47350000000000003,"d":"47.35%"}},{"$f":"Actif!$E$33/100","v":{"v":0.0585,"d":"5.85%"}},{"$f":"Actif!$E$29/100","v":{"v":0.027999999999999997,"d":"2.80%"}}]
[null,"#46",27,2026,"H","A_PER",{"v":0.44999999999999996,"d":"0.45"},{"v":0.38999999999999996,"d":"0.39"},0.6,0.6,85,0,{"$f":"ROUND(Primes!$Q$7*V9162,0)","v":4},{"$f":"'BP Financier'!$G$33*(('BP Financier'!$C$19+'BP Financier'!$D$19+'BP Financier'!$E$19+'BP Financier'!$F$19+'BP Financier'!$G$19)/('BP Financier'!$C$16+'BP Financier'!$C$19+'BP Financier'!$D$16+'BP Financier'!$D$19+'BP Financier'!$E$16+'BP Financier'!$E$19+'BP Financier'!$F$16+'BP Financier'!$F$19+'BP Financier'!$G$16+'BP Financier'!$G$19))*V9162","v":{"v":170865.17167118323,"d":"170,865"}},{"v":98065.41872671354,"d":"98,065"},{"$f":"'BP Financier'!$G$44*(('BP Financier'!$C$19+'BP Financier'!$D$19+'BP Financier'!$E$19+'BP Financier'!$F$19+'BP Financier'!$G$19)/('BP Financier'!$C$16+'BP Financier'!$C$19+'BP Financier'!$D$16+'BP Financier'!$D$19+'BP Financier'!$E$16+'BP Financier'!$E$19+'BP Financier'!$C$22+'BP Financier'!$D$22+'BP Financier'!$E$22+'BP Financier'!$F$22+'BP Financier'!$F$19+'BP Financier'!$F$16+'BP Financier'!$G$22+'BP Financier'!$G$19+'BP Financier'!$G$16))*$V9162*X9162/(1-$W9162)","v":{"v":12482.307165636536,"d":"12,482"}},{"$f":"'BP Financier'!$G$44*(('BP Financier'!$C$19+'BP Financier'!$D$19+'BP Financier'!$E$19+'BP Financier'!$F$19+'BP Financier'!$G$19)/('BP Financier'!$C$16+'BP Financier'!$C$19+'BP Financier'!$D$16+'BP Financier'!$D$19+'BP Financier'!$E$16+'BP Financier'!$E$19+'BP Financier'!$C$22+'BP Financier'!$D$22+'BP Financier'!$E$22+'BP Financier'!$F$22+'BP Financier'!$F$19+'BP Financier'!$F$16+'BP Financier'!$G$22+'BP Financier'!$G$19+'BP Financier'!$G$16))*$V9162*Y9162/(1-$W9162)","v":{"v":8344.525784762545,"d":"8,345"}},{"$f":"'BP Financier'!$G$44*(('BP Financier'!$C$19+'BP Financier'!$D$19+'BP Financier'!$E$19+'BP Financier'!$F$19+'BP Financier'!$G$19)/('BP Financier'!$C$16+'BP Financier'!$C$19+'BP Financier'!$D$16+'BP Financier'!$D$19+'BP Financier'!$E$16+'BP Financier'!$E$19+'BP Financier'!$C$22+'BP Financier'!$D$22+'BP Financier'!$E$22+'BP Financier'!$F$22+'BP Financier'!$F$19+'BP Financier'!$F$16+'BP Financier'!$G$22+'BP Financier'!$G$19+'BP Financier'!$G$16))*$V9162*Z9162/(1-$W9162)","v":{"v":65307.982794794465,"d":"65,308"}},{"$f":"'BP Financier'!$G$44*(('BP Financier'!$C$19+'BP Financier'!$D$19+'BP Financier'!$E$19+'BP Financier'!$F$19+'BP Financier'!$G$19)/('BP Financier'!$C$16+'BP Financier'!$C$19+'BP Financier'!$D$16+'BP Financier'!$D$19+'BP Financier'!$E$16+'BP Financier'!$E$19+'BP Financier'!$C$22+'BP Financier'!$D$22+'BP Financier'!$E$22+'BP Financier'!$F$22+'BP Financier'!$F$19+'BP Financier'!$F$16+'BP Financier'!$G$22+'BP Financier'!$G$19+'BP Financier'!$G$16))*$V9162*AA9162/(1-$W9162)","v":{"v":8068.673692704279,"d":"8,069"}},{"$f":"'BP Financier'!$G$44*(('BP Financier'!$C$19+'BP Financier'!$D$19+'BP Financier'!$E$19+'BP Financier'!$F$19+'BP Financier'!$G$19)/('BP Financier'!$C$16+'BP Financier'!$C$19+'BP Financier'!$D$16+'BP Financier'!$D$19+'BP Financier'!$E$16+'BP Financier'!$E$19+'BP Financier'!$C$22+'BP Financier'!$D$22+'BP Financier'!$E$22+'BP Financier'!$F$22+'BP Financier'!$F$19+'BP Financier'!$F$16+'BP Financier'!$G$22+'BP Financier'!$G$19+'BP Financier'!$G$16))*$V9162*AB9162/(1-$W9162)","v":{"v":3861.929288815723,"d":"3,862"}},null,{"v":0.003,"d":"0.30%"},{"$f":"Actif!$E$28/100","v":{"v":0.28900000000000003,"d":"28.90%"}},{"$f":"Actif!$E$30/100","v":{"v":0.09050000000000001,"d":"9.05%"}},{"$f":"Actif!$E$31/100","v":{"v":0.0605,"d":"6.05%"}},{"$f":"Actif!$E$32/100","v":{"v":0.47350000000000003,"d":"47.35%"}},{"$f":"Actif!$E$33/100","v":{"v":0.0585,"d":"5.85%"}},{"$f":"Actif!$E$29/100","v":{"v":0.027999999999999997,"d":"2.80%"}}]
[null,"#47",27,2028,"H","A_PER",{"v":0.44999999999999996,"d":"0.45"},{"v":0.38999999999999996,"d":"0.39"},0.6,0.6,85,0,{"$f":"ROUND(Primes!$Q$7*V9163,0)","v":4},{"$f":"'BP Financier'!$G$33*(('BP Financier'!$C$19+'BP Financier'!$D$19+'BP Financier'!$E$19+'BP Financier'!$F$19+'BP Financier'!$G$19)/('BP Financier'!$C$16+'BP Financier'!$C$19+'BP Financier'!$D$16+'BP Financier'!$D$19+'BP Financier'!$E$16+'BP Financier'!$E$19+'BP Financier'!$F$16+'BP Financier'!$F$19+'BP Financier'!$G$16+'BP Financier'!$G$19))*V9163","v":{"v":170865.17167118323,"d":"170,865"}},{"v":98065.41872671354,"d":"98,065"},{"$f":"'BP Financier'!$G$44*(('BP Financier'!$C$19+'BP Financier'!$D$19+'BP Financier'!$E$19+'BP Financier'!$F$19+'BP Financier'!$G$19)/('BP Financier'!$C$16+'BP Financier'!$C$19+'BP Financier'!$D$16+'BP Financier'!$D$19+'BP Financier'!$E$16+'BP Financier'!$E$19+'BP Financier'!$C$22+'BP Financier'!$D$22+'BP Financier'!$E$22+'BP Financier'!$F$22+'BP Financier'!$F$19+'BP Financier'!$F$16+'BP Financier'!$G$22+'BP Financier'!$G$19+'BP Financier'!$G$16))*$V9163*X9163/(1-$W9163)","v":{"v":12482.307165636536,"d":"12,482"}},{"$f":"'BP Financier'!$G$44*(('BP Financier'!$C$19+'BP Financier'!$D$19+'BP Financier'!$E$19+'BP Financier'!$F$19+'BP Financier'!$G$19)/('BP Financier'!$C$16+'BP Financier'!$C$19+'BP Financier'!$D$16+'BP Financier'!$D$19+'BP Financier'!$E$16+'BP Financier'!$E$19+'BP Financier'!$C$22+'BP Financier'!$D$22+'BP Financier'!$E$22+'BP Financier'!$F$22+'BP Financier'!$F$19+'BP Financier'!$F$16+'BP Financier'!$G$22+'BP Financier'!$G$19+'BP Financier'!$G$16))*$V9163*Y9163/(1-$W9163)","v":{"v":8344.525784762545,"d":"8,345"}},{"$f":"'BP Financier'!$G$44*(('BP Financier'!$C$19+'BP Financier'!$D$19+'BP Financier'!$E$19+'BP Financier'!$F$19+'BP Financier'!$G$19)/('BP Financier'!$C$16+'BP Financier'!$C$19+'BP Financier'!$D$16+'BP Financier'!$D$19+'BP Financier'!$E$16+'BP Financier'!$E$19+'BP Financier'!$C$22+'BP Financier'!$D$22+'BP Financier'!$E$22+'BP Financier'!$F$22+'BP Financier'!$F$19+'BP Financier'!$F$16+'BP Financier'!$G$22+'BP Financier'!$G$19+'BP Financier'!$G$16))*$V9163*Z9163/(1-$W9163)","v":{"v":65307.982794794465,"d":"65,308"}},{"$f":"'BP Financier'!$G$44*(('BP Financier'!$C$19+'BP Financier'!$D$19+'BP Financier'!$E$19+'BP Financier'!$F$19+'BP Financier'!$G$19)/('BP Financier'!$C$16+'BP Financier'!$C$19+'BP Financier'!$D$16+'BP Financier'!$D$19+'BP Financier'!$E$16+'BP Financier'!$E$19+'BP Financier'!$C$22+'BP Financier'!$D$22+'BP Financier'!$E$22+'BP Financier'!$F$22+'BP Financier'!$F$19+'BP Financier'!$F$16+'BP Financier'!$G$22+'BP Financier'!$G$19+'BP Financier'!$G$16))*$V9163*AA9163/(1-$W9163)","v":{"v":8068.673692704279,"d":"8,069"}},{"$f":"'BP Financier'!$G$44*(('BP Financier'!$C$19+'BP Financier'!$D$19+'BP Financier'!$E$19+'BP Financier'!$F$19+'BP Financier'!$G$19)/('BP Financier'!$C$16+'BP Financier'!$C$19+'BP Financier'!$D$16+'BP Financier'!$D$19+'BP Financier'!$E$16+'BP Financier'!$E$19+'BP Financier'!$C$22+'BP Financier'!$D$22+'BP Financier'!$E$22+'BP Financier'!$F$22+'BP Financier'!$F$19+'BP Financier'!$F$16+'BP Financier'!$G$22+'BP Financier'!$G$19+'BP Financier'!$G$16))*$V9163*AB9163/(1-$W9163)","v":{"v":3861.929288815723,"d":"3,862"}},null,{"v":0.003,"d":"0.30%"},{"$f":"Actif!$E$28/100","v":{"v":0.28900000000000003,"d":"28.90%"}},{"$f":"Actif!$E$30/100","v":{"v":0.09050000000000001,"d":"9.05%"}},{"$f":"Actif!$E$31/100","v":{"v":0.0605,"d":"6.05%"}},{"$f":"Actif!$E$32/100","v":{"v":0.47350000000000003,"d":"47.35%"}},{"$f":"Actif!$E$33/100","v":{"v":0.0585,"d":"5.85%"}},{"$f":"Actif!$E$29/100","v":{"v":0.027999999999999997,"d":"2.80%"}}]
[null,"#48",27,2029,"H","A_PER",{"v":0.44999999999999996,"d":"0.45"},{"v":0.38999999999999996,"d":"0.39"},0.6,0.6,85,0,{"$f":"ROUND(Primes!$Q$7*V9164,0)","v":4},{"$f":"'BP Financier'!$G$33*(('BP Financier'!$C$19+'BP Financier'!$D$19+'BP Financier'!$E$19+'BP Financier'!$F$19+'BP Financier'!$G$19)/('BP Financier'!$C$16+'BP Financier'!$C$19+'BP Financier'!$D$16+'BP Financier'!$D$19+'BP Financier'!$E$16+'BP Financier'!$E$19+'BP Financier'!$F$16+'BP Financier'!$F$19+'BP Financier'!$G$16+'BP Financier'!$G$19))*V9164","v":{"v":170865.17167118323,"d":"170,865"}},{"v":98065.41872671354,"d":"98,065"},{"$f":"'BP Financier'!$G$44*(('BP Financier'!$C$19+'BP Financier'!$D$19+'BP Financier'!$E$19+'BP Financier'!$F$19+'BP Financier'!$G$19)/('BP Financier'!$C$16+'BP Financier'!$C$19+'BP Financier'!$D$16+'BP Financier'!$D$19+'BP Financier'!$E$16+'BP Financier'!$E$19+'BP Financier'!$C$22+'BP Financier'!$D$22+'BP Financier'!$E$22+'BP Financier'!$F$22+'BP Financier'!$F$19+'BP Financier'!$F$16+'BP Financier'!$G$22+'BP Financier'!$G$19+'BP Financier'!$G$16))*$V9164*X9164/(1-$W9164)","v":{"v":12482.307165636536,"d":"12,482"}},{"$f":"'BP Financier'!$G$44*(('BP Financier'!$C$19+'BP Financier'!$D$19+'BP Financier'!$E$19+'BP Financier'!$F$19+'BP Financier'!$G$19)/('BP Financier'!$C$16+'BP Financier'!$C$19+'BP Financier'!$D$16+'BP Financier'!$D$19+'BP Financier'!$E$16+'BP Financier'!$E$19+'BP Financier'!$C$22+'BP Financier'!$D$22+'BP Financier'!$E$22+'BP Financier'!$F$22+'BP Financier'!$F$19+'BP Financier'!$F$16+'BP Financier'!$G$22+'BP Financier'!$G$19+'BP Financier'!$G$16))*$V9164*Y9164/(1-$W9164)","v":{"v":8344.525784762545,"d":"8,345"}},{"$f":"'BP Financier'!$G$44*(('BP Financier'!$C$19+'BP Financier'!$D$19+'BP Financier'!$E$19+'BP Financier'!$F$19+'BP Financier'!$G$19)/('BP Financier'!$C$16+'BP Financier'!$C$19+'BP Financier'!$D$16+'BP Financier'!$D$19+'BP Financier'!$E$16+'BP Financier'!$E$19+'BP Financier'!$C$22+'BP Financier'!$D$22+'BP Financier'!$E$22+'BP Financier'!$F$22+'BP Financier'!$F$19+'BP Financier'!$F$16+'BP Financier'!$G$22+'BP Financier'!$G$19+'BP Financier'!$G$16))*$V9164*Z9164/(1-$W9164)","v":{"v":65307.982794794465,"d":"65,308"}},{"$f":"'BP Financier'!$G$44*(('BP Financier'!$C$19+'BP Financier'!$D$19+'BP Financier'!$E$19+'BP Financier'!$F$19+'BP Financier'!$G$19)/('BP Financier'!$C$16+'BP Financier'!$C$19+'BP Financier'!$D$16+'BP Financier'!$D$19+'BP Financier'!$E$16+'BP Financier'!$E$19+'BP Financier'!$C$22+'BP Financier'!$D$22+'BP Financier'!$E$22+'BP Financier'!$F$22+'BP Financier'!$F$19+'BP Financier'!$F$16+'BP Financier'!$G$22+'BP Financier'!$G$19+'BP Financier'!$G$16))*$V9164*AA9164/(1-$W9164)","v":{"v":8068.673692704279,"d":"8,069"}},{"$f":"'BP Financier'!$G$44*(('BP Financier'!$C$19+'BP Financier'!$D$19+'BP Financier'!$E$19+'BP Financier'!$F$19+'BP Financier'!$G$19)/('BP Financier'!$C$16+'BP Financier'!$C$19+'BP Financier'!$D$16+'BP Financier'!$D$19+'BP Financier'!$E$16+'BP Financier'!$E$19+'BP Financier'!$C$22+'BP Financier'!$D$22+'BP Financier'!$E$22+'BP Financier'!$F$22+'BP Financier'!$F$19+'BP Financier'!$F$16+'BP Financier'!$G$22+'BP Financier'!$G$19+'BP Financier'!$G$16))*$V9164*AB9164/(1-$W9164)","v":{"v":3861.929288815723,"d":"3,862"}},null,{"v":0.003,"d":"0.30%"},{"$f":"Actif!$E$28/100","v":{"v":0.28900000000000003,"d":"28.90%"}},{"$f":"Actif!$E$30/100","v":{"v":0.09050000000000001,"d":"9.05%"}},{"$f":"Actif!$E$31/100","v":{"v":0.0605,"d":"6.05%"}},{"$f":"Actif!$E$32/100","v":{"v":0.47350000000000003,"d":"47.35%"}},{"$f":"Actif!$E$33/100","v":{"v":0.0585,"d":"5.85%"}},{"$f":"Actif!$E$29/100","v":{"v":0.027999999999999997,"d":"2.80%"}}]
[null,"#49",27,2030,"H","A_PER",{"v":0.44999999999999996,"d":"0.45"},{"v":0.38999999999999996,"d":"0.39"},0.6,0.6,85,0,{"$f":"ROUND(Primes!$Q$7*V9165,0)","v":4},{"$f":"'BP Financier'!$G$33*(('BP Financier'!$C$19+'BP Financier'!$D$19+'BP Financier'!$E$19+'BP Financier'!$F$19+'BP Financier'!$G$19)/('BP Financier'!$C$16+'BP Financier'!$C$19+'BP Financier'!$D$16+'BP Financier'!$D$19+'BP Financier'!$E$16+'BP Financier'!$E$19+'BP Financier'!$F$16+'BP Financier'!$F$19+'BP Financier'!$G$16+'BP Financier'!$G$19))*V9165","v":{"v":170865.17167118323,"d":"170,865"}},{"v":98065.41872671354,"d":"98,065"},{"$f":"'BP Financier'!$G$44*(('BP Financier'!$C$19+'BP Financier'!$D$19+'BP Financier'!$E$19+'BP Financier'!$F$19+'BP Financier'!$G$19)/('BP Financier'!$C$16+'BP Financier'!$C$19+'BP Financier'!$D$16+'BP Financier'!$D$19+'BP Financier'!$E$16+'BP Financier'!$E$19+'BP Financier'!$C$22+'BP Financier'!$D$22+'BP Financier'!$E$22+'BP Financier'!$F$22+'BP Financier'!$F$19+'BP Financier'!$F$16+'BP Financier'!$G$22+'BP Financier'!$G$19+'BP Financier'!$G$16))*$V9165*X9165/(1-$W9165)","v":{"v":12482.307165636536,"d":"12,482"}},{"$f":"'BP Financier'!$G$44*(('BP Financier'!$C$19+'BP Financier'!$D$19+'BP Financier'!$E$19+'BP Financier'!$F$19+'BP Financier'!$G$19)/('BP Financier'!$C$16+'BP Financier'!$C$19+'BP Financier'!$D$16+'BP Financier'!$D$19+'BP Financier'!$E$16+'BP Financier'!$E$19+'BP Financier'!$C$22+'BP Financier'!$D$22+'BP Financier'!$E$22+'BP Financier'!$F$22+'BP Financier'!$F$19+'BP Financier'!$F$16+'BP Financier'!$G$22+'BP Financier'!$G$19+'BP Financier'!$G$16))*$V9165*Y9165/(1-$W9165)","v":{"v":8344.525784762545,"d":"8,345"}},{"$f":"'BP Financier'!$G$44*(('BP Financier'!$C$19+'BP Financier'!$D$19+'BP Financier'!$E$19+'BP Financier'!$F$19+'BP Financier'!$G$19)/('BP Financier'!$C$16+'BP Financier'!$C$19+'BP Financier'!$D$16+'BP Financier'!$D$19+'BP Financier'!$E$16+'BP Financier'!$E$19+'BP Financier'!$C$22+'BP Financier'!$D$22+'BP Financier'!$E$22+'BP Financier'!$F$22+'BP Financier'!$F$19+'BP Financier'!$F$16+'BP Financier'!$G$22+'BP Financier'!$G$19+'BP Financier'!$G$16))*$V9165*Z9165/(1-$W9165)","v":{"v":65307.982794794465,"d":"65,308"}},{"$f":"'BP Financier'!$G$44*(('BP Financier'!$C$19+'BP Financier'!$D$19+'BP Financier'!$E$19+'BP Financier'!$F$19+'BP Financier'!$G$19)/('BP Financier'!$C$16+'BP Financier'!$C$19+'BP Financier'!$D$16+'BP Financier'!$D$19+'BP Financier'!$E$16+'BP Financier'!$E$19+'BP Financier'!$C$22+'BP Financier'!$D$22+'BP Financier'!$E$22+'BP Financier'!$F$22+'BP Financier'!$F$19+'BP Financier'!$F$16+'BP Financier'!$G$22+'BP Financier'!$G$19+'BP Financier'!$G$16))*$V9165*AA9165/(1-$W9165)","v":{"v":8068.673692704279,"d":"8,069"}},{"$f":"'BP Financier'!$G$44*(('BP Financier'!$C$19+'BP Financier'!$D$19+'BP Financier'!$E$19+'BP Financier'!$F$19+'BP Financier'!$G$19)/('BP Financier'!$C$16+'BP Financier'!$C$19+'BP Financier'!$D$16+'BP Financier'!$D$19+'BP Financier'!$E$16+'BP Financier'!$E$19+'BP Financier'!$C$22+'BP Financier'!$D$22+'BP Financier'!$E$22+'BP Financier'!$F$22+'BP Financier'!$F$19+'BP Financier'!$F$16+'BP Financier'!$G$22+'BP Financier'!$G$19+'BP Financier'!$G$16))*$V9165*AB9165/(1-$W9165)","v":{"v":3861.929288815723,"d":"3,862"}},null,{"v":0.003,"d":"0.30%"},{"$f":"Actif!$E$28/100","v":{"v":0.28900000000000003,"d":"28.90%"}},{"$f":"Actif!$E$30/100","v":{"v":0.09050000000000001,"d":"9.05%"}},{"$f":"Actif!$E$31/100","v":{"v":0.0605,"d":"6.05%"}},{"$f":"Actif!$E$32/100","v":{"v":0.47350000000000003,"d":"47.35%"}},{"$f":"Actif!$E$33/100","v":{"v":0.0585,"d":"5.85%"}},{"$f":"Actif!$E$29/100","v":{"v":0.027999999999999997,"d":"2.80%"}}]
[null,"#50",27,2031,"H","A_PER",{"v":0.44999999999999996,"d":"0.45"},{"v":0.38999999999999996,"d":"0.39"},0.6,0.6,85,0,{"$f":"ROUND(Primes!$Q$7*V9166,0)","v":4},{"$f":"'BP Financier'!$G$33*(('BP Financier'!$C$19+'BP Financier'!$D$19+'BP Financier'!$E$19+'BP Financier'!$F$19+'BP Financier'!$G$19)/('BP Financier'!$C$16+'BP Financier'!$C$19+'BP Financier'!$D$16+'BP Financier'!$D$19+'BP Financier'!$E$16+'BP Financier'!$E$19+'BP Financier'!$F$16+'BP Financier'!$F$19+'BP Financier'!$G$16+'BP Financier'!$G$19))*V9166","v":{"v":170865.17167118323,"d":"170,865"}},{"v":98065.41872671354,"d":"98,065"},{"$f":"'BP Financier'!$G$44*(('BP Financier'!$C$19+'BP Financier'!$D$19+'BP Financier'!$E$19+'BP Financier'!$F$19+'BP Financier'!$G$19)/('BP Financier'!$C$16+'BP Financier'!$C$19+'BP Financier'!$D$16+'BP Financier'!$D$19+'BP Financier'!$E$16+'BP Financier'!$E$19+'BP Financier'!$C$22+'BP Financier'!$D$22+'BP Financier'!$E$22+'BP Financier'!$F$22+'BP Financier'!$F$19+'BP Financier'!$F$16+'BP Financier'!$G$22+'BP Financier'!$G$19+'BP Financier'!$G$16))*$V9166*X9166/(1-$W9166)","v":{"v":12482.307165636536,"d":"12,482"}},{"$f":"'BP Financier'!$G$44*(('BP Financier'!$C$19+'BP Financier'!$D$19+'BP Financier'!$E$19+'BP Financier'!$F$19+'BP Financier'!$G$19)/('BP Financier'!$C$16+'BP Financier'!$C$19+'BP Financier'!$D$16+'BP Financier'!$D$19+'BP Financier'!$E$16+'BP Financier'!$E$19+'BP Financier'!$C$22+'BP Financier'!$D$22+'BP Financier'!$E$22+'BP Financier'!$F$22+'BP Financier'!$F$19+'BP Financier'!$F$16+'BP Financier'!$G$22+'BP Financier'!$G$19+'BP Financier'!$G$16))*$V9166*Y9166/(1-$W9166)","v":{"v":8344.525784762545,"d":"8,345"}},{"$f":"'BP Financier'!$G$44*(('BP Financier'!$C$19+'BP Financier'!$D$19+'BP Financier'!$E$19+'BP Financier'!$F$19+'BP Financier'!$G$19)/('BP Financier'!$C$16+'BP Financier'!$C$19+'BP Financier'!$D$16+'BP Financier'!$D$19+'BP Financier'!$E$16+'BP Financier'!$E$19+'BP Financier'!$C$22+'BP Financier'!$D$22+'BP Financier'!$E$22+'BP Financier'!$F$22+'BP Financier'!$F$19+'BP Financier'!$F$16+'BP Financier'!$G$22+'BP Financier'!$G$19+'BP Financier'!$G$16))*$V9166*Z9166/(1-$W9166)","v":{"v":65307.982794794465,"d":"65,308"}},{"$f":"'BP Financier'!$G$44*(('BP Financier'!$C$19+'BP Financier'!$D$19+'BP Financier'!$E$19+'BP Financier'!$F$19+'BP Financier'!$G$19)/('BP Financier'!$C$16+'BP Financier'!$C$19+'BP Financier'!$D$16+'BP Financier'!$D$19+'BP Financier'!$E$16+'BP Financier'!$E$19+'BP Financier'!$C$22+'BP Financier'!$D$22+'BP Financier'!$E$22+'BP Financier'!$F$22+'BP Financier'!$F$19+'BP Financier'!$F$16+'BP Financier'!$G$22+'BP Financier'!$G$19+'BP Financier'!$G$16))*$V9166*AA9166/(1-$W9166)","v":{"v":8068.673692704279,"d":"8,069"}},{"$f":"'BP Financier'!$G$44*(('BP Financier'!$C$19+'BP Financier'!$D$19+'BP Financier'!$E$19+'BP Financier'!$F$19+'BP Financier'!$G$19)/('BP Financier'!$C$16+'BP Financier'!$C$19+'BP Financier'!$D$16+'BP Financier'!$D$19+'BP Financier'!$E$16+'BP Financier'!$E$19+'BP Financier'!$C$22+'BP Financier'!$D$22+'BP Financier'!$E$22+'BP Financier'!$F$22+'BP Financier'!$F$19+'BP Financier'!$F$16+'BP Financier'!$G$22+'BP Financier'!$G$19+'BP Financier'!$G$16))*$V9166*AB9166/(1-$W9166)","v":{"v":3861.929288815723,"d":"3,862"}},null,{"v":0.003,"d":"0.30%"},{"$f":"Actif!$E$28/100","v":{"v":0.28900000000000003,"d":"28.90%"}},{"$f":"Actif!$E$30/100","v":{"v":0.09050000000000001,"d":"9.05%"}},{"$f":"Actif!$E$31/100","v":{"v":0.0605,"d":"6.05%"}},{"$f":"Actif!$E$32/100","v":{"v":0.47350000000000003,"d":"47.35%"}},{"$f":"Actif!$E$33/100","v":{"v":0.0585,"d":"5.85%"}},{"$f":"Actif!$E$29/100","v":{"v":0.027999999999999997,"d":"2.80%"}}]
[null,"#51",28,2026,"H","A_PER",{"v":0.44999999999999996,"d":"0.45"},{"v":0.38999999999999996,"d":"0.39"},0.6,0.6,85,0,{"$f":"ROUND(Primes!$Q$7*V9167,0)","v":4},{"$f":"'BP Financier'!$G$33*(('BP Financier'!$C$19+'BP Financier'!$D$19+'BP Financier'!$E$19+'BP Financier'!$F$19+'BP Financier'!$G$19)/('BP Financier'!$C$16+'BP Financier'!$C$19+'BP Financier'!$D$16+'BP Financier'!$D$19+'BP Financier'!$E$16+'BP Financier'!$E$19+'BP Financier'!$F$16+'BP Financier'!$F$19+'BP Financier'!$G$16+'BP Financier'!$G$19))*V9167","v":{"v":170865.17167118323,"d":"170,865"}},{"v":98065.41872671354,"d":"98,065"},{"$f":"'BP Financier'!$G$44*(('BP Financier'!$C$19+'BP Financier'!$D$19+'BP Financier'!$E$19+'BP Financier'!$F$19+'BP Financier'!$G$19)/('BP Financier'!$C$16+'BP Financier'!$C$19+'BP Financier'!$D$16+'BP Financier'!$D$19+'BP Financier'!$E$16+'BP Financier'!$E$19+'BP Financier'!$C$22+'BP Financier'!$D$22+'BP Financier'!$E$22+'BP Financier'!$F$22+'BP Financier'!$F$19+'BP Financier'!$F$16+'BP Financier'!$G$22+'BP Financier'!$G$19+'BP Financier'!$G$16))*$V9167*X9167/(1-$W9167)","v":{"v":12482.307165636536,"d":"12,482"}},{"$f":"'BP Financier'!$G$44*(('BP Financier'!$C$19+'BP Financier'!$D$19+'BP Financier'!$E$19+'BP Financier'!$F$19+'BP Financier'!$G$19)/('BP Financier'!$C$16+'BP Financier'!$C$19+'BP Financier'!$D$16+'BP Financier'!$D$19+'BP Financier'!$E$16+'BP Financier'!$E$19+'BP Financier'!$C$22+'BP Financier'!$D$22+'BP Financier'!$E$22+'BP Financier'!$F$22+'BP Financier'!$F$19+'BP Financier'!$F$16+'BP Financier'!$G$22+'BP Financier'!$G$19+'BP Financier'!$G$16))*$V9167*Y9167/(1-$W9167)","v":{"v":8344.525784762545,"d":"8,345"}},{"$f":"'BP Financier'!$G$44*(('BP Financier'!$C$19+'BP Financier'!$D$19+'BP Financier'!$E$19+'BP Financier'!$F$19+'BP Financier'!$G$19)/('BP Financier'!$C$16+'BP Financier'!$C$19+'BP Financier'!$D$16+'BP Financier'!$D$19+'BP Financier'!$E$16+'BP Financier'!$E$19+'BP Financier'!$C$22+'BP Financier'!$D$22+'BP Financier'!$E$22+'BP Financier'!$F$22+'BP Financier'!$F$19+'BP Financier'!$F$16+'BP Financier'!$G$22+'BP Financier'!$G$19+'BP Financier'!$G$16))*$V9167*Z9167/(1-$W9167)","v":{"v":65307.982794794465,"d":"65,308"}},{"$f":"'BP Financier'!$G$44*(('BP Financier'!$C$19+'BP Financier'!$D$19+'BP Financier'!$E$19+'BP Financier'!$F$19+'BP Financier'!$G$19)/('BP Financier'!$C$16+'BP Financier'!$C$19+'BP Financier'!$D$16+'BP Financier'!$D$19+'BP Financier'!$E$16+'BP Financier'!$E$19+'BP Financier'!$C$22+'BP Financier'!$D$22+'BP Financier'!$E$22+'BP Financier'!$F$22+'BP Financier'!$F$19+'BP Financier'!$F$16+'BP Financier'!$G$22+'BP Financier'!$G$19+'BP Financier'!$G$16))*$V9167*AA9167/(1-$W9167)","v":{"v":8068.673692704279,"d":"8,069"}},{"$f":"'BP Financier'!$G$44*(('BP Financier'!$C$19+'BP Financier'!$D$19+'BP Financier'!$E$19+'BP Financier'!$F$19+'BP Financier'!$G$19)/('BP Financier'!$C$16+'BP Financier'!$C$19+'BP Financier'!$D$16+'BP Financier'!$D$19+'BP Financier'!$E$16+'BP Financier'!$E$19+'BP Financier'!$C$22+'BP Financier'!$D$22+'BP Financier'!$E$22+'BP Financier'!$F$22+'BP Financier'!$F$19+'BP Financier'!$F$16+'BP Financier'!$G$22+'BP Financier'!$G$19+'BP Financier'!$G$16))*$V9167*AB9167/(1-$W9167)","v":{"v":3861.929288815723,"d":"3,862"}},null,{"v":0.003,"d":"0.30%"},{"$f":"Actif!$E$28/100","v":{"v":0.28900000000000003,"d":"28.90%"}},{"$f":"Actif!$E$30/100","v":{"v":0.09050000000000001,"d":"9.05%"}},{"$f":"Actif!$E$31/100","v":{"v":0.0605,"d":"6.05%"}},{"$f":"Actif!$E$32/100","v":{"v":0.47350000000000003,"d":"47.35%"}},{"$f":"Actif!$E$33/100","v":{"v":0.0585,"d":"5.85%"}},{"$f":"Actif!$E$29/100","v":{"v":0.027999999999999997,"d":"2.80%"}}]
[null,"#52",28,2028,"H","A_PER",{"v":0.44999999999999996,"d":"0.45"},{"v":0.38999999999999996,"d":"0.39"},0.6,0.6,85,0,{"$f":"ROUND(Primes!$Q$7*V9168,0)","v":4},{"$f":"'BP Financier'!$G$33*(('BP Financier'!$C$19+'BP Financier'!$D$19+'BP Financier'!$E$19+'BP Financier'!$F$19+'BP Financier'!$G$19)/('BP Financier'!$C$16+'BP Financier'!$C$19+'BP Financier'!$D$16+'BP Financier'!$D$19+'BP Financier'!$E$16+'BP Financier'!$E$19+'BP Financier'!$F$16+'BP Financier'!$F$19+'BP Financier'!$G$16+'BP Financier'!$G$19))*V9168","v":{"v":170865.17167118323,"d":"170,865"}},{"v":98065.41872671354,"d":"98,065"},{"$f":"'BP Financier'!$G$44*(('BP Financier'!$C$19+'BP Financier'!$D$19+'BP Financier'!$E$19+'BP Financier'!$F$19+'BP Financier'!$G$19)/('BP Financier'!$C$16+'BP Financier'!$C$19+'BP Financier'!$D$16+'BP Financier'!$D$19+'BP Financier'!$E$16+'BP Financier'!$E$19+'BP Financier'!$C$22+'BP Financier'!$D$22+'BP Financier'!$E$22+'BP Financier'!$F$22+'BP Financier'!$F$19+'BP Financier'!$F$16+'BP Financier'!$G$22+'BP Financier'!$G$19+'BP Financier'!$G$16))*$V9168*X9168/(1-$W9168)","v":{"v":12482.307165636536,"d":"12,482"}},{"$f":"'BP Financier'!$G$44*(('BP Financier'!$C$19+'BP Financier'!$D$19+'BP Financier'!$E$19+'BP Financier'!$F$19+'BP Financier'!$G$19)/('BP Financier'!$C$16+'BP Financier'!$C$19+'BP Financier'!$D$16+'BP Financier'!$D$19+'BP Financier'!$E$16+'BP Financier'!$E$19+'BP Financier'!$C$22+'BP Financier'!$D$22+'BP Financier'!$E$22+'BP Financier'!$F$22+'BP Financier'!$F$19+'BP Financier'!$F$16+'BP Financier'!$G$22+'BP Financier'!$G$19+'BP Financier'!$G$16))*$V9168*Y9168/(1-$W9168)","v":{"v":8344.525784762545,"d":"8,345"}},{"$f":"'BP Financier'!$G$44*(('BP Financier'!$C$19+'BP Financier'!$D$19+'BP Financier'!$E$19+'BP Financier'!$F$19+'BP Financier'!$G$19)/('BP Financier'!$C$16+'BP Financier'!$C$19+'BP Financier'!$D$16+'BP Financier'!$D$19+'BP Financier'!$E$16+'BP Financier'!$E$19+'BP Financier'!$C$22+'BP Financier'!$D$22+'BP Financier'!$E$22+'BP Financier'!$F$22+'BP Financier'!$F$19+'BP Financier'!$F$16+'BP Financier'!$G$22+'BP Financier'!$G$19+'BP Financier'!$G$16))*$V9168*Z9168/(1-$W9168)","v":{"v":65307.982794794465,"d":"65,308"}},{"$f":"'BP Financier'!$G$44*(('BP Financier'!$C$19+'BP Financier'!$D$19+'BP Financier'!$E$19+'BP Financier'!$F$19+'BP Financier'!$G$19)/('BP Financier'!$C$16+'BP Financier'!$C$19+'BP Financier'!$D$16+'BP Financier'!$D$19+'BP Financier'!$E$16+'BP Financier'!$E$19+'BP Financier'!$C$22+'BP Financier'!$D$22+'BP Financier'!$E$22+'BP Financier'!$F$22+'BP Financier'!$F$19+'BP Financier'!$F$16+'BP Financier'!$G$22+'BP Financier'!$G$19+'BP Financier'!$G$16))*$V9168*AA9168/(1-$W9168)","v":{"v":8068.673692704279,"d":"8,069"}},{"$f":"'BP Financier'!$G$44*(('BP Financier'!$C$19+'BP Financier'!$D$19+'BP Financier'!$E$19+'BP Financier'!$F$19+'BP Financier'!$G$19)/('BP Financier'!$C$16+'BP Financier'!$C$19+'BP Financier'!$D$16+'BP Financier'!$D$19+'BP Financier'!$E$16+'BP Financier'!$E$19+'BP Financier'!$C$22+'BP Financier'!$D$22+'BP Financier'!$E$22+'BP Financier'!$F$22+'BP Financier'!$F$19+'BP Financier'!$F$16+'BP Financier'!$G$22+'BP Financier'!$G$19+'BP Financier'!$G$16))*$V9168*AB9168/(1-$W9168)","v":{"v":3861.929288815723,"d":"3,862"}},null,{"v":0.003,"d":"0.30%"},{"$f":"Actif!$E$28/100","v":{"v":0.28900000000000003,"d":"28.90%"}},{"$f":"Actif!$E$30/100","v":{"v":0.09050000000000001,"d":"9.05%"}},{"$f":"Actif!$E$31/100","v":{"v":0.0605,"d":"6.05%"}},{"$f":"Actif!$E$32/100","v":{"v":0.47350000000000003,"d":"47.35%"}},{"$f":"Actif!$E$33/100","v":{"v":0.0585,"d":"5.85%"}},{"$f":"Actif!$E$29/100","v":{"v":0.027999999999999997,"d":"2.80%"}}]
[null,"#53",28,2029,"H","A_PER",{"v":0.44999999999999996,"d":"0.45"},{"v":0.38999999999999996,"d":"0.39"},0.6,0.6,85,0,{"$f":"ROUND(Primes!$Q$7*V9169,0)","v":4},{"$f":"'BP Financier'!$G$33*(('BP Financier'!$C$19+'BP Financier'!$D$19+'BP Financier'!$E$19+'BP Financier'!$F$19+'BP Financier'!$G$19)/('BP Financier'!$C$16+'BP Financier'!$C$19+'BP Financier'!$D$16+'BP Financier'!$D$19+'BP Financier'!$E$16+'BP Financier'!$E$19+'BP Financier'!$F$16+'BP Financier'!$F$19+'BP Financier'!$G$16+'BP Financier'!$G$19))*V9169","v":{"v":170865.17167118323,"d":"170,865"}},{"v":98065.41872671354,"d":"98,065"},{"$f":"'BP Financier'!$G$44*(('BP Financier'!$C$19+'BP Financier'!$D$19+'BP Financier'!$E$19+'BP Financier'!$F$19+'BP Financier'!$G$19)/('BP Financier'!$C$16+'BP Financier'!$C$19+'BP Financier'!$D$16+'BP Financier'!$D$19+'BP Financier'!$E$16+'BP Financier'!$E$19+'BP Financier'!$C$22+'BP Financier'!$D$22+'BP Financier'!$E$22+'BP Financier'!$F$22+'BP Financier'!$F$19+'BP Financier'!$F$16+'BP Financier'!$G$22+'BP Financier'!$G$19+'BP Financier'!$G$16))*$V9169*X9169/(1-$W9169)","v":{"v":12482.307165636536,"d":"12,482"}},{"$f":"'BP Financier'!$G$44*(('BP Financier'!$C$19+'BP Financier'!$D$19+'BP Financier'!$E$19+'BP Financier'!$F$19+'BP Financier'!$G$19)/('BP Financier'!$C$16+'BP Financier'!$C$19+'BP Financier'!$D$16+'BP Financier'!$D$19+'BP Financier'!$E$16+'BP Financier'!$E$19+'BP Financier'!$C$22+'BP Financier'!$D$22+'BP Financier'!$E$22+'BP Financier'!$F$22+'BP Financier'!$F$19+'BP Financier'!$F$16+'BP Financier'!$G$22+'BP Financier'!$G$19+'BP Financier'!$G$16))*$V9169*Y9169/(1-$W9169)","v":{"v":8344.525784762545,"d":"8,345"}},{"$f":"'BP Financier'!$G$44*(('BP Financier'!$C$19+'BP Financier'!$D$19+'BP Financier'!$E$19+'BP Financier'!$F$19+'BP Financier'!$G$19)/('BP Financier'!$C$16+'BP Financier'!$C$19+'BP Financier'!$D$16+'BP Financier'!$D$19+'BP Financier'!$E$16+'BP Financier'!$E$19+'BP Financier'!$C$22+'BP Financier'!$D$22+'BP Financier'!$E$22+'BP Financier'!$F$22+'BP Financier'!$F$19+'BP Financier'!$F$16+'BP Financier'!$G$22+'BP Financier'!$G$19+'BP Financier'!$G$16))*$V9169*Z9169/(1-$W9169)","v":{"v":65307.982794794465,"d":"65,308"}},{"$f":"'BP Financier'!$G$44*(('BP Financier'!$C$19+'BP Financier'!$D$19+'BP Financier'!$E$19+'BP Financier'!$F$19+'BP Financier'!$G$19)/('BP Financier'!$C$16+'BP Financier'!$C$19+'BP Financier'!$D$16+'BP Financier'!$D$19+'BP Financier'!$E$16+'BP Financier'!$E$19+'BP Financier'!$C$22+'BP Financier'!$D$22+'BP Financier'!$E$22+'BP Financier'!$F$22+'BP Financier'!$F$19+'BP Financier'!$F$16+'BP Financier'!$G$22+'BP Financier'!$G$19+'BP Financier'!$G$16))*$V9169*AA9169/(1-$W9169)","v":{"v":8068.673692704279,"d":"8,069"}},{"$f":"'BP Financier'!$G$44*(('BP Financier'!$C$19+'BP Financier'!$D$19+'BP Financier'!$E$19+'BP Financier'!$F$19+'BP Financier'!$G$19)/('BP Financier'!$C$16+'BP Financier'!$C$19+'BP Financier'!$D$16+'BP Financier'!$D$19+'BP Financier'!$E$16+'BP Financier'!$E$19+'BP Financier'!$C$22+'BP Financier'!$D$22+'BP Financier'!$E$22+'BP Financier'!$F$22+'BP Financier'!$F$19+'BP Financier'!$F$16+'BP Financier'!$G$22+'BP Financier'!$G$19+'BP Financier'!$G$16))*$V9169*AB9169/(1-$W9169)","v":{"v":3861.929288815723,"d":"3,862"}},null,{"v":0.003,"d":"0.30%"},{"$f":"Actif!$E$28/100","v":{"v":0.28900000000000003,"d":"28.90%"}},{"$f":"Actif!$E$30/100","v":{"v":0.09050000000000001,"d":"9.05%"}},{"$f":"Actif!$E$31/100","v":{"v":0.0605,"d":"6.05%"}},{"$f":"Actif!$E$32/100","v":{"v":0.47350000000000003,"d":"47.35%"}},{"$f":"Actif!$E$33/100","v":{"v":0.0585,"d":"5.85%"}},{"$f":"Actif!$E$29/100","v":{"v":0.027999999999999997,"d":"2.80%"}}]
[null,"#54",28,2030,"H","A_PER",{"v":0.44999999999999996,"d":"0.45"},{"v":0.38999999999999996,"d":"0.39"},0.6,0.6,85,0,{"$f":"ROUND(Primes!$Q$7*V9170,0)","v":4},{"$f":"'BP Financier'!$G$33*(('BP Financier'!$C$19+'BP Financier'!$D$19+'BP Financier'!$E$19+'BP Financier'!$F$19+'BP Financier'!$G$19)/('BP Financier'!$C$16+'BP Financier'!$C$19+'BP Financier'!$D$16+'BP Financier'!$D$19+'BP Financier'!$E$16+'BP Financier'!$E$19+'BP Financier'!$F$16+'BP Financier'!$F$19+'BP Financier'!$G$16+'BP Financier'!$G$19))*V9170","v":{"v":170865.17167118323,"d":"170,865"}},{"v":98065.41872671354,"d":"98,065"},{"$f":"'BP Financier'!$G$44*(('BP Financier'!$C$19+'BP Financier'!$D$19+'BP Financier'!$E$19+'BP Financier'!$F$19+'BP Financier'!$G$19)/('BP Financier'!$C$16+'BP Financier'!$C$19+'BP Financier'!$D$16+'BP Financier'!$D$19+'BP Financier'!$E$16+'BP Financier'!$E$19+'BP Financier'!$C$22+'BP Financier'!$D$22+'BP Financier'!$E$22+'BP Financier'!$F$22+'BP Financier'!$F$19+'BP Financier'!$F$16+'BP Financier'!$G$22+'BP Financier'!$G$19+'BP Financier'!$G$16))*$V9170*X9170/(1-$W9170)","v":{"v":12482.307165636536,"d":"12,482"}},{"$f":"'BP Financier'!$G$44*(('BP Financier'!$C$19+'BP Financier'!$D$19+'BP Financier'!$E$19+'BP Financier'!$F$19+'BP Financier'!$G$19)/('BP Financier'!$C$16+'BP Financier'!$C$19+'BP Financier'!$D$16+'BP Financier'!$D$19+'BP Financier'!$E$16+'BP Financier'!$E$19+'BP Financier'!$C$22+'BP Financier'!$D$22+'BP Financier'!$E$22+'BP Financier'!$F$22+'BP Financier'!$F$19+'BP Financier'!$F$16+'BP Financier'!$G$22+'BP Financier'!$G$19+'BP Financier'!$G$16))*$V9170*Y9170/(1-$W9170)","v":{"v":8344.525784762545,"d":"8,345"}},{"$f":"'BP Financier'!$G$44*(('BP Financier'!$C$19+'BP Financier'!$D$19+'BP Financier'!$E$19+'BP Financier'!$F$19+'BP Financier'!$G$19)/('BP Financier'!$C$16+'BP Financier'!$C$19+'BP Financier'!$D$16+'BP Financier'!$D$19+'BP Financier'!$E$16+'BP Financier'!$E$19+'BP Financier'!$C$22+'BP Financier'!$D$22+'BP Financier'!$E$22+'BP Financier'!$F$22+'BP Financier'!$F$19+'BP Financier'!$F$16+'BP Financier'!$G$22+'BP Financier'!$G$19+'BP Financier'!$G$16))*$V9170*Z9170/(1-$W9170)","v":{"v":65307.982794794465,"d":"65,308"}},{"$f":"'BP Financier'!$G$44*(('BP Financier'!$C$19+'BP Financier'!$D$19+'BP Financier'!$E$19+'BP Financier'!$F$19+'BP Financier'!$G$19)/('BP Financier'!$C$16+'BP Financier'!$C$19+'BP Financier'!$D$16+'BP Financier'!$D$19+'BP Financier'!$E$16+'BP Financier'!$E$19+'BP Financier'!$C$22+'BP Financier'!$D$22+'BP Financier'!$E$22+'BP Financier'!$F$22+'BP Financier'!$F$19+'BP Financier'!$F$16+'BP Financier'!$G$22+'BP Financier'!$G$19+'BP Financier'!$G$16))*$V9170*AA9170/(1-$W9170)","v":{"v":8068.673692704279,"d":"8,069"}},{"$f":"'BP Financier'!$G$44*(('BP Financier'!$C$19+'BP Financier'!$D$19+'BP Financier'!$E$19+'BP Financier'!$F$19+'BP Financier'!$G$19)/('BP Financier'!$C$16+'BP Financier'!$C$19+'BP Financier'!$D$16+'BP Financier'!$D$19+'BP Financier'!$E$16+'BP Financier'!$E$19+'BP Financier'!$C$22+'BP Financier'!$D$22+'BP Financier'!$E$22+'BP Financier'!$F$22+'BP Financier'!$F$19+'BP Financier'!$F$16+'BP Financier'!$G$22+'BP Financier'!$G$19+'BP Financier'!$G$16))*$V9170*AB9170/(1-$W9170)","v":{"v":3861.929288815723,"d":"3,862"}},null,{"v":0.003,"d":"0.30%"},{"$f":"Actif!$E$28/100","v":{"v":0.28900000000000003,"d":"28.90%"}},{"$f":"Actif!$E$30/100","v":{"v":0.09050000000000001,"d":"9.05%"}},{"$f":"Actif!$E$31/100","v":{"v":0.0605,"d":"6.05%"}},{"$f":"Actif!$E$32/100","v":{"v":0.47350000000000003,"d":"47.35%"}},{"$f":"Actif!$E$33/100","v":{"v":0.0585,"d":"5.85%"}},{"$f":"Actif!$E$29/100","v":{"v":0.027999999999999997,"d":"2.80%"}}]
[null,"#55",28,2031,"H","A_PER",{"v":0.44999999999999996,"d":"0.45"},{"v":0.38999999999999996,"d":"0.39"},0.6,0.6,85,0,{"$f":"ROUND(Primes!$Q$7*V9171,0)","v":4},{"$f":"'BP Financier'!$G$33*(('BP Financier'!$C$19+'BP Financier'!$D$19+'BP Financier'!$E$19+'BP Financier'!$F$19+'BP Financier'!$G$19)/('BP Financier'!$C$16+'BP Financier'!$C$19+'BP Financier'!$D$16+'BP Financier'!$D$19+'BP Financier'!$E$16+'BP Financier'!$E$19+'BP Financier'!$F$16+'BP Financier'!$F$19+'BP Financier'!$G$16+'BP Financier'!$G$19))*V9171","v":{"v":170865.17167118323,"d":"170,865"}},{"v":98065.41872671354,"d":"98,065"},{"$f":"'BP Financier'!$G$44*(('BP Financier'!$C$19+'BP Financier'!$D$19+'BP Financier'!$E$19+'BP Financier'!$F$19+'BP Financier'!$G$19)/('BP Financier'!$C$16+'BP Financier'!$C$19+'BP Financier'!$D$16+'BP Financier'!$D$19+'BP Financier'!$E$16+'BP Financier'!$E$19+'BP Financier'!$C$22+'BP Financier'!$D$22+'BP Financier'!$E$22+'BP Financier'!$F$22+'BP Financier'!$F$19+'BP Financier'!$F$16+'BP Financier'!$G$22+'BP Financier'!$G$19+'BP Financier'!$G$16))*$V9171*X9171/(1-$W9171)","v":{"v":12482.307165636536,"d":"12,482"}},{"$f":"'BP Financier'!$G$44*(('BP Financier'!$C$19+'BP Financier'!$D$19+'BP Financier'!$E$19+'BP Financier'!$F$19+'BP Financier'!$G$19)/('BP Financier'!$C$16+'BP Financier'!$C$19+'BP Financier'!$D$16+'BP Financier'!$D$19+'BP Financier'!$E$16+'BP Financier'!$E$19+'BP Financier'!$C$22+'BP Financier'!$D$22+'BP Financier'!$E$22+'BP Financier'!$F$22+'BP Financier'!$F$19+'BP Financier'!$F$16+'BP Financier'!$G$22+'BP Financier'!$G$19+'BP Financier'!$G$16))*$V9171*Y9171/(1-$W9171)","v":{"v":8344.525784762545,"d":"8,345"}},{"$f":"'BP Financier'!$G$44*(('BP Financier'!$C$19+'BP Financier'!$D$19+'BP Financier'!$E$19+'BP Financier'!$F$19+'BP Financier'!$G$19)/('BP Financier'!$C$16+'BP Financier'!$C$19+'BP Financier'!$D$16+'BP Financier'!$D$19+'BP Financier'!$E$16+'BP Financier'!$E$19+'BP Financier'!$C$22+'BP Financier'!$D$22+'BP Financier'!$E$22+'BP Financier'!$F$22+'BP Financier'!$F$19+'BP Financier'!$F$16+'BP Financier'!$G$22+'BP Financier'!$G$19+'BP Financier'!$G$16))*$V9171*Z9171/(1-$W9171)","v":{"v":65307.982794794465,"d":"65,308"}},{"$f":"'BP Financier'!$G$44*(('BP Financier'!$C$19+'BP Financier'!$D$19+'BP Financier'!$E$19+'BP Financier'!$F$19+'BP Financier'!$G$19)/('BP Financier'!$C$16+'BP Financier'!$C$19+'BP Financier'!$D$16+'BP Financier'!$D$19+'BP Financier'!$E$16+'BP Financier'!$E$19+'BP Financier'!$C$22+'BP Financier'!$D$22+'BP Financier'!$E$22+'BP Financier'!$F$22+'BP Financier'!$F$19+'BP Financier'!$F$16+'BP Financier'!$G$22+'BP Financier'!$G$19+'BP Financier'!$G$16))*$V9171*AA9171/(1-$W9171)","v":{"v":8068.673692704279,"d":"8,069"}},{"$f":"'BP Financier'!$G$44*(('BP Financier'!$C$19+'BP Financier'!$D$19+'BP Financier'!$E$19+'BP Financier'!$F$19+'BP Financier'!$G$19)/('BP Financier'!$C$16+'BP Financier'!$C$19+'BP Financier'!$D$16+'BP Financier'!$D$19+'BP Financier'!$E$16+'BP Financier'!$E$19+'BP Financier'!$C$22+'BP Financier'!$D$22+'BP Financier'!$E$22+'BP Financier'!$F$22+'BP Financier'!$F$19+'BP Financier'!$F$16+'BP Financier'!$G$22+'BP Financier'!$G$19+'BP Financier'!$G$16))*$V9171*AB9171/(1-$W9171)","v":{"v":3861.929288815723,"d":"3,862"}},null,{"v":0.003,"d":"0.30%"},{"$f":"Actif!$E$28/100","v":{"v":0.28900000000000003,"d":"28.90%"}},{"$f":"Actif!$E$30/100","v":{"v":0.09050000000000001,"d":"9.05%"}},{"$f":"Actif!$E$31/100","v":{"v":0.0605,"d":"6.05%"}},{"$f":"Actif!$E$32/100","v":{"v":0.47350000000000003,"d":"47.35%"}},{"$f":"Actif!$E$33/100","v":{"v":0.0585,"d":"5.85%"}},{"$f":"Actif!$E$29/100","v":{"v":0.027999999999999997,"d":"2.80%"}}]
[null,"#56",29,2026,"F","A_PER",{"v":0.44999999999999996,"d":"0.45"},{"v":0.38999999999999996,"d":"0.39"},0.6,0.6,85,0,{"$f":"ROUND(Primes!$Q$7*V9172,0)","v":4},{"$f":"'BP Financier'!$G$33*(('BP Financier'!$C$19+'BP Financier'!$D$19+'BP Financier'!$E$19+'BP Financier'!$F$19+'BP Financier'!$G$19)/('BP Financier'!$C$16+'BP Financier'!$C$19+'BP Financier'!$D$16+'BP Financier'!$D$19+'BP Financier'!$E$16+'BP Financier'!$E$19+'BP Financier'!$F$16+'BP Financier'!$F$19+'BP Financier'!$G$16+'BP Financier'!$G$19))*V9172","v":{"v":170865.17167118323,"d":"170,865"}},{"v":98065.41872671354,"d":"98,065"},{"$f":"'BP Financier'!$G$44*(('BP Financier'!$C$19+'BP Financier'!$D$19+'BP Financier'!$E$19+'BP Financier'!$F$19+'BP Financier'!$G$19)/('BP Financier'!$C$16+'BP Financier'!$C$19+'BP Financier'!$D$16+'BP Financier'!$D$19+'BP Financier'!$E$16+'BP Financier'!$E$19+'BP Financier'!$C$22+'BP Financier'!$D$22+'BP Financier'!$E$22+'BP Financier'!$F$22+'BP Financier'!$F$19+'BP Financier'!$F$16+'BP Financier'!$G$22+'BP Financier'!$G$19+'BP Financier'!$G$16))*$V9172*X9172/(1-$W9172)","v":{"v":12482.307165636536,"d":"12,482"}},{"$f":"'BP Financier'!$G$44*(('BP Financier'!$C$19+'BP Financier'!$D$19+'BP Financier'!$E$19+'BP Financier'!$F$19+'BP Financier'!$G$19)/('BP Financier'!$C$16+'BP Financier'!$C$19+'BP Financier'!$D$16+'BP Financier'!$D$19+'BP Financier'!$E$16+'BP Financier'!$E$19+'BP Financier'!$C$22+'BP Financier'!$D$22+'BP Financier'!$E$22+'BP Financier'!$F$22+'BP Financier'!$F$19+'BP Financier'!$F$16+'BP Financier'!$G$22+'BP Financier'!$G$19+'BP Financier'!$G$16))*$V9172*Y9172/(1-$W9172)","v":{"v":8344.525784762545,"d":"8,345"}},{"$f":"'BP Financier'!$G$44*(('BP Financier'!$C$19+'BP Financier'!$D$19+'BP Financier'!$E$19+'BP Financier'!$F$19+'BP Financier'!$G$19)/('BP Financier'!$C$16+'BP Financier'!$C$19+'BP Financier'!$D$16+'BP Financier'!$D$19+'BP Financier'!$E$16+'BP Financier'!$E$19+'BP Financier'!$C$22+'BP Financier'!$D$22+'BP Financier'!$E$22+'BP Financier'!$F$22+'BP Financier'!$F$19+'BP Financier'!$F$16+'BP Financier'!$G$22+'BP Financier'!$G$19+'BP Financier'!$G$16))*$V9172*Z9172/(1-$W9172)","v":{"v":65307.982794794465,"d":"65,308"}},{"$f":"'BP Financier'!$G$44*(('BP Financier'!$C$19+'BP Financier'!$D$19+'BP Financier'!$E$19+'BP Financier'!$F$19+'BP Financier'!$G$19)/('BP Financier'!$C$16+'BP Financier'!$C$19+'BP Financier'!$D$16+'BP Financier'!$D$19+'BP Financier'!$E$16+'BP Financier'!$E$19+'BP Financier'!$C$22+'BP Financier'!$D$22+'BP Financier'!$E$22+'BP Financier'!$F$22+'BP Financier'!$F$19+'BP Financier'!$F$16+'BP Financier'!$G$22+'BP Financier'!$G$19+'BP Financier'!$G$16))*$V9172*AA9172/(1-$W9172)","v":{"v":8068.673692704279,"d":"8,069"}},{"$f":"'BP Financier'!$G$44*(('BP Financier'!$C$19+'BP Financier'!$D$19+'BP Financier'!$E$19+'BP Financier'!$F$19+'BP Financier'!$G$19)/('BP Financier'!$C$16+'BP Financier'!$C$19+'BP Financier'!$D$16+'BP Financier'!$D$19+'BP Financier'!$E$16+'BP Financier'!$E$19+'BP Financier'!$C$22+'BP Financier'!$D$22+'BP Financier'!$E$22+'BP Financier'!$F$22+'BP Financier'!$F$19+'BP Financier'!$F$16+'BP Financier'!$G$22+'BP Financier'!$G$19+'BP Financier'!$G$16))*$V9172*AB9172/(1-$W9172)","v":{"v":3861.929288815723,"d":"3,862"}},null,{"v":0.003,"d":"0.30%"},{"$f":"Actif!$E$28/100","v":{"v":0.28900000000000003,"d":"28.90%"}},{"$f":"Actif!$E$30/100","v":{"v":0.09050000000000001,"d":"9.05%"}},{"$f":"Actif!$E$31/100","v":{"v":0.0605,"d":"6.05%"}},{"$f":"Actif!$E$32/100","v":{"v":0.47350000000000003,"d":"47.35%"}},{"$f":"Actif!$E$33/100","v":{"v":0.0585,"d":"5.85%"}},{"$f":"Actif!$E$29/100","v":{"v":0.027999999999999997,"d":"2.80%"}}]
[null,"#57",29,2028,"F","A_PER",{"v":0.44999999999999996,"d":"0.45"},{"v":0.38999999999999996,"d":"0.39"},0.6,0.6,85,0,{"$f":"ROUND(Primes!$Q$7*V9173,0)","v":4},{"$f":"'BP Financier'!$G$33*(('BP Financier'!$C$19+'BP Financier'!$D$19+'BP Financier'!$E$19+'BP Financier'!$F$19+'BP Financier'!$G$19)/('BP Financier'!$C$16+'BP Financier'!$C$19+'BP Financier'!$D$16+'BP Financier'!$D$19+'BP Financier'!$E$16+'BP Financier'!$E$19+'BP Financier'!$F$16+'BP Financier'!$F$19+'BP Financier'!$G$16+'BP Financier'!$G$19))*V9173","v":{"v":170865.17167118323,"d":"170,865"}},{"v":98065.41872671354,"d":"98,065"},{"$f":"'BP Financier'!$G$44*(('BP Financier'!$C$19+'BP Financier'!$D$19+'BP Financier'!$E$19+'BP Financier'!$F$19+'BP Financier'!$G$19)/('BP Financier'!$C$16+'BP Financier'!$C$19+'BP Financier'!$D$16+'BP Financier'!$D$19+'BP Financier'!$E$16+'BP Financier'!$E$19+'BP Financier'!$C$22+'BP Financier'!$D$22+'BP Financier'!$E$22+'BP Financier'!$F$22+'BP Financier'!$F$19+'BP Financier'!$F$16+'BP Financier'!$G$22+'BP Financier'!$G$19+'BP Financier'!$G$16))*$V9173*X9173/(1-$W9173)","v":{"v":12482.307165636536,"d":"12,482"}},{"$f":"'BP Financier'!$G$44*(('BP Financier'!$C$19+'BP Financier'!$D$19+'BP Financier'!$E$19+'BP Financier'!$F$19+'BP Financier'!$G$19)/('BP Financier'!$C$16+'BP Financier'!$C$19+'BP Financier'!$D$16+'BP Financier'!$D$19+'BP Financier'!$E$16+'BP Financier'!$E$19+'BP Financier'!$C$22+'BP Financier'!$D$22+'BP Financier'!$E$22+'BP Financier'!$F$22+'BP Financier'!$F$19+'BP Financier'!$F$16+'BP Financier'!$G$22+'BP Financier'!$G$19+'BP Financier'!$G$16))*$V9173*Y9173/(1-$W9173)","v":{"v":8344.525784762545,"d":"8,345"}},{"$f":"'BP Financier'!$G$44*(('BP Financier'!$C$19+'BP Financier'!$D$19+'BP Financier'!$E$19+'BP Financier'!$F$19+'BP Financier'!$G$19)/('BP Financier'!$C$16+'BP Financier'!$C$19+'BP Financier'!$D$16+'BP Financier'!$D$19+'BP Financier'!$E$16+'BP Financier'!$E$19+'BP Financier'!$C$22+'BP Financier'!$D$22+'BP Financier'!$E$22+'BP Financier'!$F$22+'BP Financier'!$F$19+'BP Financier'!$F$16+'BP Financier'!$G$22+'BP Financier'!$G$19+'BP Financier'!$G$16))*$V9173*Z9173/(1-$W9173)","v":{"v":65307.982794794465,"d":"65,308"}},{"$f":"'BP Financier'!$G$44*(('BP Financier'!$C$19+'BP Financier'!$D$19+'BP Financier'!$E$19+'BP Financier'!$F$19+'BP Financier'!$G$19)/('BP Financier'!$C$16+'BP Financier'!$C$19+'BP Financier'!$D$16+'BP Financier'!$D$19+'BP Financier'!$E$16+'BP Financier'!$E$19+'BP Financier'!$C$22+'BP Financier'!$D$22+'BP Financier'!$E$22+'BP Financier'!$F$22+'BP Financier'!$F$19+'BP Financier'!$F$16+'BP Financier'!$G$22+'BP Financier'!$G$19+'BP Financier'!$G$16))*$V9173*AA9173/(1-$W9173)","v":{"v":8068.673692704279,"d":"8,069"}},{"$f":"'BP Financier'!$G$44*(('BP Financier'!$C$19+'BP Financier'!$D$19+'BP Financier'!$E$19+'BP Financier'!$F$19+'BP Financier'!$G$19)/('BP Financier'!$C$16+'BP Financier'!$C$19+'BP Financier'!$D$16+'BP Financier'!$D$19+'BP Financier'!$E$16+'BP Financier'!$E$19+'BP Financier'!$C$22+'BP Financier'!$D$22+'BP Financier'!$E$22+'BP Financier'!$F$22+'BP Financier'!$F$19+'BP Financier'!$F$16+'BP Financier'!$G$22+'BP Financier'!$G$19+'BP Financier'!$G$16))*$V9173*AB9173/(1-$W9173)","v":{"v":3861.929288815723,"d":"3,862"}},null,{"v":0.003,"d":"0.30%"},{"$f":"Actif!$E$28/100","v":{"v":0.28900000000000003,"d":"28.90%"}},{"$f":"Actif!$E$30/100","v":{"v":0.09050000000000001,"d":"9.05%"}},{"$f":"Actif!$E$31/100","v":{"v":0.0605,"d":"6.05%"}},{"$f":"Actif!$E$32/100","v":{"v":0.47350000000000003,"d":"47.35%"}},{"$f":"Actif!$E$33/100","v":{"v":0.0585,"d":"5.85%"}},{"$f":"Actif!$E$29/100","v":{"v":0.027999999999999997,"d":"2.80%"}}]
[null,"#58",29,2029,"F","A_PER",{"v":0.44999999999999996,"d":"0.45"},{"v":0.38999999999999996,"d":"0.39"},0.6,0.6,85,0,{"$f":"ROUND(Primes!$Q$7*V9174,0)","v":4},{"$f":"'BP Financier'!$G$33*(('BP Financier'!$C$19+'BP Financier'!$D$19+'BP Financier'!$E$19+'BP Financier'!$F$19+'BP Financier'!$G$19)/('BP Financier'!$C$16+'BP Financier'!$C$19+'BP Financier'!$D$16+'BP Financier'!$D$19+'BP Financier'!$E$16+'BP Financier'!$E$19+'BP Financier'!$F$16+'BP Financier'!$F$19+'BP Financier'!$G$16+'BP Financier'!$G$19))*V9174","v":{"v":170865.17167118323,"d":"170,865"}},{"v":98065.41872671354,"d":"98,065"},{"$f":"'BP Financier'!$G$44*(('BP Financier'!$C$19+'BP Financier'!$D$19+'BP Financier'!$E$19+'BP Financier'!$F$19+'BP Financier'!$G$19)/('BP Financier'!$C$16+'BP Financier'!$C$19+'BP Financier'!$D$16+'BP Financier'!$D$19+'BP Financier'!$E$16+'BP Financier'!$E$19+'BP Financier'!$C$22+'BP Financier'!$D$22+'BP Financier'!$E$22+'BP Financier'!$F$22+'BP Financier'!$F$19+'BP Financier'!$F$16+'BP Financier'!$G$22+'BP Financier'!$G$19+'BP Financier'!$G$16))*$V9174*X9174/(1-$W9174)","v":{"v":12482.307165636536,"d":"12,482"}},{"$f":"'BP Financier'!$G$44*(('BP Financier'!$C$19+'BP Financier'!$D$19+'BP Financier'!$E$19+'BP Financier'!$F$19+'BP Financier'!$G$19)/('BP Financier'!$C$16+'BP Financier'!$C$19+'BP Financier'!$D$16+'BP Financier'!$D$19+'BP Financier'!$E$16+'BP Financier'!$E$19+'BP Financier'!$C$22+'BP Financier'!$D$22+'BP Financier'!$E$22+'BP Financier'!$F$22+'BP Financier'!$F$19+'BP Financier'!$F$16+'BP Financier'!$G$22+'BP Financier'!$G$19+'BP Financier'!$G$16))*$V9174*Y9174/(1-$W9174)","v":{"v":8344.525784762545,"d":"8,345"}},{"$f":"'BP Financier'!$G$44*(('BP Financier'!$C$19+'BP Financier'!$D$19+'BP Financier'!$E$19+'BP Financier'!$F$19+'BP Financier'!$G$19)/('BP Financier'!$C$16+'BP Financier'!$C$19+'BP Financier'!$D$16+'BP Financier'!$D$19+'BP Financier'!$E$16+'BP Financier'!$E$19+'BP Financier'!$C$22+'BP Financier'!$D$22+'BP Financier'!$E$22+'BP Financier'!$F$22+'BP Financier'!$F$19+'BP Financier'!$F$16+'BP Financier'!$G$22+'BP Financier'!$G$19+'BP Financier'!$G$16))*$V9174*Z9174/(1-$W9174)","v":{"v":65307.982794794465,"d":"65,308"}},{"$f":"'BP Financier'!$G$44*(('BP Financier'!$C$19+'BP Financier'!$D$19+'BP Financier'!$E$19+'BP Financier'!$F$19+'BP Financier'!$G$19)/('BP Financier'!$C$16+'BP Financier'!$C$19+'BP Financier'!$D$16+'BP Financier'!$D$19+'BP Financier'!$E$16+'BP Financier'!$E$19+'BP Financier'!$C$22+'BP Financier'!$D$22+'BP Financier'!$E$22+'BP Financier'!$F$22+'BP Financier'!$F$19+'BP Financier'!$F$16+'BP Financier'!$G$22+'BP Financier'!$G$19+'BP Financier'!$G$16))*$V9174*AA9174/(1-$W9174)","v":{"v":8068.673692704279,"d":"8,069"}},{"$f":"'BP Financier'!$G$44*(('BP Financier'!$C$19+'BP Financier'!$D$19+'BP Financier'!$E$19+'BP Financier'!$F$19+'BP Financier'!$G$19)/('BP Financier'!$C$16+'BP Financier'!$C$19+'BP Financier'!$D$16+'BP Financier'!$D$19+'BP Financier'!$E$16+'BP Financier'!$E$19+'BP Financier'!$C$22+'BP Financier'!$D$22+'BP Financier'!$E$22+'BP Financier'!$F$22+'BP Financier'!$F$19+'BP Financier'!$F$16+'BP Financier'!$G$22+'BP Financier'!$G$19+'BP Financier'!$G$16))*$V9174*AB9174/(1-$W9174)","v":{"v":3861.929288815723,"d":"3,862"}},null,{"v":0.003,"d":"0.30%"},{"$f":"Actif!$E$28/100","v":{"v":0.28900000000000003,"d":"28.90%"}},{"$f":"Actif!$E$30/100","v":{"v":0.09050000000000001,"d":"9.05%"}},{"$f":"Actif!$E$31/100","v":{"v":0.0605,"d":"6.05%"}},{"$f":"Actif!$E$32/100","v":{"v":0.47350000000000003,"d":"47.35%"}},{"$f":"Actif!$E$33/100","v":{"v":0.0585,"d":"5.85%"}},{"$f":"Actif!$E$29/100","v":{"v":0.027999999999999997,"d":"2.80%"}}]
[null,"#59",29,2030,"F","A_PER",{"v":0.44999999999999996,"d":"0.45"},{"v":0.38999999999999996,"d":"0.39"},0.6,0.6,85,0,{"$f":"ROUND(Primes!$Q$7*V9175,0)","v":4},{"$f":"'BP Financier'!$G$33*(('BP Financier'!$C$19+'BP Financier'!$D$19+'BP Financier'!$E$19+'BP Financier'!$F$19+'BP Financier'!$G$19)/('BP Financier'!$C$16+'BP Financier'!$C$19+'BP Financier'!$D$16+'BP Financier'!$D$19+'BP Financier'!$E$16+'BP Financier'!$E$19+'BP Financier'!$F$16+'BP Financier'!$F$19+'BP Financier'!$G$16+'BP Financier'!$G$19))*V9175","v":{"v":170865.17167118323,"d":"170,865"}},{"v":98065.41872671354,"d":"98,065"},{"$f":"'BP Financier'!$G$44*(('BP Financier'!$C$19+'BP Financier'!$D$19+'BP Financier'!$E$19+'BP Financier'!$F$19+'BP Financier'!$G$19)/('BP Financier'!$C$16+'BP Financier'!$C$19+'BP Financier'!$D$16+'BP Financier'!$D$19+'BP Financier'!$E$16+'BP Financier'!$E$19+'BP Financier'!$C$22+'BP Financier'!$D$22+'BP Financier'!$E$22+'BP Financier'!$F$22+'BP Financier'!$F$19+'BP Financier'!$F$16+'BP Financier'!$G$22+'BP Financier'!$G$19+'BP Financier'!$G$16))*$V9175*X9175/(1-$W9175)","v":{"v":12482.307165636536,"d":"12,482"}},{"$f":"'BP Financier'!$G$44*(('BP Financier'!$C$19+'BP Financier'!$D$19+'BP Financier'!$E$19+'BP Financier'!$F$19+'BP Financier'!$G$19)/('BP Financier'!$C$16+'BP Financier'!$C$19+'BP Financier'!$D$16+'BP Financier'!$D$19+'BP Financier'!$E$16+'BP Financier'!$E$19+'BP Financier'!$C$22+'BP Financier'!$D$22+'BP Financier'!$E$22+'BP Financier'!$F$22+'BP Financier'!$F$19+'BP Financier'!$F$16+'BP Financier'!$G$22+'BP Financier'!$G$19+'BP Financier'!$G$16))*$V9175*Y9175/(1-$W9175)","v":{"v":8344.525784762545,"d":"8,345"}},{"$f":"'BP Financier'!$G$44*(('BP Financier'!$C$19+'BP Financier'!$D$19+'BP Financier'!$E$19+'BP Financier'!$F$19+'BP Financier'!$G$19)/('BP Financier'!$C$16+'BP Financier'!$C$19+'BP Financier'!$D$16+'BP Financier'!$D$19+'BP Financier'!$E$16+'BP Financier'!$E$19+'BP Financier'!$C$22+'BP Financier'!$D$22+'BP Financier'!$E$22+'BP Financier'!$F$22+'BP Financier'!$F$19+'BP Financier'!$F$16+'BP Financier'!$G$22+'BP Financier'!$G$19+'BP Financier'!$G$16))*$V9175*Z9175/(1-$W9175)","v":{"v":65307.982794794465,"d":"65,308"}},{"$f":"'BP Financier'!$G$44*(('BP Financier'!$C$19+'BP Financier'!$D$19+'BP Financier'!$E$19+'BP Financier'!$F$19+'BP Financier'!$G$19)/('BP Financier'!$C$16+'BP Financier'!$C$19+'BP Financier'!$D$16+'BP Financier'!$D$19+'BP Financier'!$E$16+'BP Financier'!$E$19+'BP Financier'!$C$22+'BP Financier'!$D$22+'BP Financier'!$E$22+'BP Financier'!$F$22+'BP Financier'!$F$19+'BP Financier'!$F$16+'BP Financier'!$G$22+'BP Financier'!$G$19+'BP Financier'!$G$16))*$V9175*AA9175/(1-$W9175)","v":{"v":8068.673692704279,"d":"8,069"}},{"$f":"'BP Financier'!$G$44*(('BP Financier'!$C$19+'BP Financier'!$D$19+'BP Financier'!$E$19+'BP Financier'!$F$19+'BP Financier'!$G$19)/('BP Financier'!$C$16+'BP Financier'!$C$19+'BP Financier'!$D$16+'BP Financier'!$D$19+'BP Financier'!$E$16+'BP Financier'!$E$19+'BP Financier'!$C$22+'BP Financier'!$D$22+'BP Financier'!$E$22+'BP Financier'!$F$22+'BP Financier'!$F$19+'BP Financier'!$F$16+'BP Financier'!$G$22+'BP Financier'!$G$19+'BP Financier'!$G$16))*$V9175*AB9175/(1-$W9175)","v":{"v":3861.929288815723,"d":"3,862"}},null,{"v":0.003,"d":"0.30%"},{"$f":"Actif!$E$28/100","v":{"v":0.28900000000000003,"d":"28.90%"}},{"$f":"Actif!$E$30/100","v":{"v":0.09050000000000001,"d":"9.05%"}},{"$f":"Actif!$E$31/100","v":{"v":0.0605,"d":"6.05%"}},{"$f":"Actif!$E$32/100","v":{"v":0.47350000000000003,"d":"47.35%"}},{"$f":"Actif!$E$33/100","v":{"v":0.0585,"d":"5.85%"}},{"$f":"Actif!$E$29/100","v":{"v":0.027999999999999997,"d":"2.80%"}}]
[null,"#60",29,2031,"F","A_PER",{"v":0.44999999999999996,"d":"0.45"},{"v":0.38999999999999996,"d":"0.39"},0.6,0.6,85,0,{"$f":"ROUND(Primes!$Q$7*V9176,0)","v":4},{"$f":"'BP Financier'!$G$33*(('BP Financier'!$C$19+'BP Financier'!$D$19+'BP Financier'!$E$19+'BP Financier'!$F$19+'BP Financier'!$G$19)/('BP Financier'!$C$16+'BP Financier'!$C$19+'BP Financier'!$D$16+'BP Financier'!$D$19+'BP Financier'!$E$16+'BP Financier'!$E$19+'BP Financier'!$F$16+'BP Financier'!$F$19+'BP Financier'!$G$16+'BP Financier'!$G$19))*V9176","v":{"v":170865.17167118323,"d":"170,865"}},{"v":98065.41872671354,"d":"98,065"},{"$f":"'BP Financier'!$G$44*(('BP Financier'!$C$19+'BP Financier'!$D$19+'BP Financier'!$E$19+'BP Financier'!$F$19+'BP Financier'!$G$19)/('BP Financier'!$C$16+'BP Financier'!$C$19+'BP Financier'!$D$16+'BP Financier'!$D$19+'BP Financier'!$E$16+'BP Financier'!$E$19+'BP Financier'!$C$22+'BP Financier'!$D$22+'BP Financier'!$E$22+'BP Financier'!$F$22+'BP Financier'!$F$19+'BP Financier'!$F$16+'BP Financier'!$G$22+'BP Financier'!$G$19+'BP Financier'!$G$16))*$V9176*X9176/(1-$W9176)","v":{"v":12482.307165636536,"d":"12,482"}},{"$f":"'BP Financier'!$G$44*(('BP Financier'!$C$19+'BP Financier'!$D$19+'BP Financier'!$E$19+'BP Financier'!$F$19+'BP Financier'!$G$19)/('BP Financier'!$C$16+'BP Financier'!$C$19+'BP Financier'!$D$16+'BP Financier'!$D$19+'BP Financier'!$E$16+'BP Financier'!$E$19+'BP Financier'!$C$22+'BP Financier'!$D$22+'BP Financier'!$E$22+'BP Financier'!$F$22+'BP Financier'!$F$19+'BP Financier'!$F$16+'BP Financier'!$G$22+'BP Financier'!$G$19+'BP Financier'!$G$16))*$V9176*Y9176/(1-$W9176)","v":{"v":8344.525784762545,"d":"8,345"}},{"$f":"'BP Financier'!$G$44*(('BP Financier'!$C$19+'BP Financier'!$D$19+'BP Financier'!$E$19+'BP Financier'!$F$19+'BP Financier'!$G$19)/('BP Financier'!$C$16+'BP Financier'!$C$19+'BP Financier'!$D$16+'BP Financier'!$D$19+'BP Financier'!$E$16+'BP Financier'!$E$19+'BP Financier'!$C$22+'BP Financier'!$D$22+'BP Financier'!$E$22+'BP Financier'!$F$22+'BP Financier'!$F$19+'BP Financier'!$F$16+'BP Financier'!$G$22+'BP Financier'!$G$19+'BP Financier'!$G$16))*$V9176*Z9176/(1-$W9176)","v":{"v":65307.982794794465,"d":"65,308"}},{"$f":"'BP Financier'!$G$44*(('BP Financier'!$C$19+'BP Financier'!$D$19+'BP Financier'!$E$19+'BP Financier'!$F$19+'BP Financier'!$G$19)/('BP Financier'!$C$16+'BP Financier'!$C$19+'BP Financier'!$D$16+'BP Financier'!$D$19+'BP Financier'!$E$16+'BP Financier'!$E$19+'BP Financier'!$C$22+'BP Financier'!$D$22+'BP Financier'!$E$22+'BP Financier'!$F$22+'BP Financier'!$F$19+'BP Financier'!$F$16+'BP Financier'!$G$22+'BP Financier'!$G$19+'BP Financier'!$G$16))*$V9176*AA9176/(1-$W9176)","v":{"v":8068.673692704279,"d":"8,069"}},{"$f":"'BP Financier'!$G$44*(('BP Financier'!$C$19+'BP Financier'!$D$19+'BP Financier'!$E$19+'BP Financier'!$F$19+'BP Financier'!$G$19)/('BP Financier'!$C$16+'BP Financier'!$C$19+'BP Financier'!$D$16+'BP Financier'!$D$19+'BP Financier'!$E$16+'BP Financier'!$E$19+'BP Financier'!$C$22+'BP Financier'!$D$22+'BP Financier'!$E$22+'BP Financier'!$F$22+'BP Financier'!$F$19+'BP Financier'!$F$16+'BP Financier'!$G$22+'BP Financier'!$G$19+'BP Financier'!$G$16))*$V9176*AB9176/(1-$W9176)","v":{"v":3861.929288815723,"d":"3,862"}},null,{"v":0.003,"d":"0.30%"},{"$f":"Actif!$E$28/100","v":{"v":0.28900000000000003,"d":"28.90%"}},{"$f":"Actif!$E$30/100","v":{"v":0.09050000000000001,"d":"9.05%"}},{"$f":"Actif!$E$31/100","v":{"v":0.0605,"d":"6.05%"}},{"$f":"Actif!$E$32/100","v":{"v":0.47350000000000003,"d":"47.35%"}},{"$f":"Actif!$E$33/100","v":{"v":0.0585,"d":"5.85%"}},{"$f":"Actif!$E$29/100","v":{"v":0.027999999999999997,"d":"2.80%"}}]
[null,"#61",30,2026,"H","A_PER",{"v":0.44999999999999996,"d":"0.45"},{"v":0.38999999999999996,"d":"0.39"},0.6,0.6,85,0,{"$f":"ROUND(Primes!$Q$7*V9177,0)","v":4},{"$f":"'BP Financier'!$G$33*(('BP Financier'!$C$19+'BP Financier'!$D$19+'BP Financier'!$E$19+'BP Financier'!$F$19+'BP Financier'!$G$19)/('BP Financier'!$C$16+'BP Financier'!$C$19+'BP Financier'!$D$16+'BP Financier'!$D$19+'BP Financier'!$E$16+'BP Financier'!$E$19+'BP Financier'!$F$16+'BP Financier'!$F$19+'BP Financier'!$G$16+'BP Financier'!$G$19))*V9177","v":{"v":170865.17167118323,"d":"170,865"}},{"v":98065.41872671354,"d":"98,065"},{"$f":"'BP Financier'!$G$44*(('BP Financier'!$C$19+'BP Financier'!$D$19+'BP Financier'!$E$19+'BP Financier'!$F$19+'BP Financier'!$G$19)/('BP Financier'!$C$16+'BP Financier'!$C$19+'BP Financier'!$D$16+'BP Financier'!$D$19+'BP Financier'!$E$16+'BP Financier'!$E$19+'BP Financier'!$C$22+'BP Financier'!$D$22+'BP Financier'!$E$22+'BP Financier'!$F$22+'BP Financier'!$F$19+'BP Financier'!$F$16+'BP Financier'!$G$22+'BP Financier'!$G$19+'BP Financier'!$G$16))*$V9177*X9177/(1-$W9177)","v":{"v":12482.307165636536,"d":"12,482"}},{"$f":"'BP Financier'!$G$44*(('BP Financier'!$C$19+'BP Financier'!$D$19+'BP Financier'!$E$19+'BP Financier'!$F$19+'BP Financier'!$G$19)/('BP Financier'!$C$16+'BP Financier'!$C$19+'BP Financier'!$D$16+'BP Financier'!$D$19+'BP Financier'!$E$16+'BP Financier'!$E$19+'BP Financier'!$C$22+'BP Financier'!$D$22+'BP Financier'!$E$22+'BP Financier'!$F$22+'BP Financier'!$F$19+'BP Financier'!$F$16+'BP Financier'!$G$22+'BP Financier'!$G$19+'BP Financier'!$G$16))*$V9177*Y9177/(1-$W9177)","v":{"v":8344.525784762545,"d":"8,345"}},{"$f":"'BP Financier'!$G$44*(('BP Financier'!$C$19+'BP Financier'!$D$19+'BP Financier'!$E$19+'BP Financier'!$F$19+'BP Financier'!$G$19)/('BP Financier'!$C$16+'BP Financier'!$C$19+'BP Financier'!$D$16+'BP Financier'!$D$19+'BP Financier'!$E$16+'BP Financier'!$E$19+'BP Financier'!$C$22+'BP Financier'!$D$22+'BP Financier'!$E$22+'BP Financier'!$F$22+'BP Financier'!$F$19+'BP Financier'!$F$16+'BP Financier'!$G$22+'BP Financier'!$G$19+'BP Financier'!$G$16))*$V9177*Z9177/(1-$W9177)","v":{"v":65307.982794794465,"d":"65,308"}},{"$f":"'BP Financier'!$G$44*(('BP Financier'!$C$19+'BP Financier'!$D$19+'BP Financier'!$E$19+'BP Financier'!$F$19+'BP Financier'!$G$19)/('BP Financier'!$C$16+'BP Financier'!$C$19+'BP Financier'!$D$16+'BP Financier'!$D$19+'BP Financier'!$E$16+'BP Financier'!$E$19+'BP Financier'!$C$22+'BP Financier'!$D$22+'BP Financier'!$E$22+'BP Financier'!$F$22+'BP Financier'!$F$19+'BP Financier'!$F$16+'BP Financier'!$G$22+'BP Financier'!$G$19+'BP Financier'!$G$16))*$V9177*AA9177/(1-$W9177)","v":{"v":8068.673692704279,"d":"8,069"}},{"$f":"'BP Financier'!$G$44*(('BP Financier'!$C$19+'BP Financier'!$D$19+'BP Financier'!$E$19+'BP Financier'!$F$19+'BP Financier'!$G$19)/('BP Financier'!$C$16+'BP Financier'!$C$19+'BP Financier'!$D$16+'BP Financier'!$D$19+'BP Financier'!$E$16+'BP Financier'!$E$19+'BP Financier'!$C$22+'BP Financier'!$D$22+'BP Financier'!$E$22+'BP Financier'!$F$22+'BP Financier'!$F$19+'BP Financier'!$F$16+'BP Financier'!$G$22+'BP Financier'!$G$19+'BP Financier'!$G$16))*$V9177*AB9177/(1-$W9177)","v":{"v":3861.929288815723,"d":"3,862"}},null,{"v":0.003,"d":"0.30%"},{"$f":"Actif!$E$28/100","v":{"v":0.28900000000000003,"d":"28.90%"}},{"$f":"Actif!$E$30/100","v":{"v":0.09050000000000001,"d":"9.05%"}},{"$f":"Actif!$E$31/100","v":{"v":0.0605,"d":"6.05%"}},{"$f":"Actif!$E$32/100","v":{"v":0.47350000000000003,"d":"47.35%"}},{"$f":"Actif!$E$33/100","v":{"v":0.0585,"d":"5.85%"}},{"$f":"Actif!$E$29/100","v":{"v":0.027999999999999997,"d":"2.80%"}}]
[null,"#62",30,2028,"H","A_PER",{"v":0.44999999999999996,"d":"0.45"},{"v":0.38999999999999996,"d":"0.39"},0.6,0.6,85,0,{"$f":"ROUND(Primes!$Q$7*V9178,0)","v":4},{"$f":"'BP Financier'!$G$33*(('BP Financier'!$C$19+'BP Financier'!$D$19+'BP Financier'!$E$19+'BP Financier'!$F$19+'BP Financier'!$G$19)/('BP Financier'!$C$16+'BP Financier'!$C$19+'BP Financier'!$D$16+'BP Financier'!$D$19+'BP Financier'!$E$16+'BP Financier'!$E$19+'BP Financier'!$F$16+'BP Financier'!$F$19+'BP Financier'!$G$16+'BP Financier'!$G$19))*V9178","v":{"v":170865.17167118323,"d":"170,865"}},{"v":98065.41872671354,"d":"98,065"},{"$f":"'BP Financier'!$G$44*(('BP Financier'!$C$19+'BP Financier'!$D$19+'BP Financier'!$E$19+'BP Financier'!$F$19+'BP Financier'!$G$19)/('BP Financier'!$C$16+'BP Financier'!$C$19+'BP Financier'!$D$16+'BP Financier'!$D$19+'BP Financier'!$E$16+'BP Financier'!$E$19+'BP Financier'!$C$22+'BP Financier'!$D$22+'BP Financier'!$E$22+'BP Financier'!$F$22+'BP Financier'!$F$19+'BP Financier'!$F$16+'BP Financier'!$G$22+'BP Financier'!$G$19+'BP Financier'!$G$16))*$V9178*X9178/(1-$W9178)","v":{"v":12482.307165636536,"d":"12,482"}},{"$f":"'BP Financier'!$G$44*(('BP Financier'!$C$19+'BP Financier'!$D$19+'BP Financier'!$E$19+'BP Financier'!$F$19+'BP Financier'!$G$19)/('BP Financier'!$C$16+'BP Financier'!$C$19+'BP Financier'!$D$16+'BP Financier'!$D$19+'BP Financier'!$E$16+'BP Financier'!$E$19+'BP Financier'!$C$22+'BP Financier'!$D$22+'BP Financier'!$E$22+'BP Financier'!$F$22+'BP Financier'!$F$19+'BP Financier'!$F$16+'BP Financier'!$G$22+'BP Financier'!$G$19+'BP Financier'!$G$16))*$V9178*Y9178/(1-$W9178)","v":{"v":8344.525784762545,"d":"8,345"}},{"$f":"'BP Financier'!$G$44*(('BP Financier'!$C$19+'BP Financier'!$D$19+'BP Financier'!$E$19+'BP Financier'!$F$19+'BP Financier'!$G$19)/('BP Financier'!$C$16+'BP Financier'!$C$19+'BP Financier'!$D$16+'BP Financier'!$D$19+'BP Financier'!$E$16+'BP Financier'!$E$19+'BP Financier'!$C$22+'BP Financier'!$D$22+'BP Financier'!$E$22+'BP Financier'!$F$22+'BP Financier'!$F$19+'BP Financier'!$F$16+'BP Financier'!$G$22+'BP Financier'!$G$19+'BP Financier'!$G$16))*$V9178*Z9178/(1-$W9178)","v":{"v":65307.982794794465,"d":"65,308"}},{"$f":"'BP Financier'!$G$44*(('BP Financier'!$C$19+'BP Financier'!$D$19+'BP Financier'!$E$19+'BP Financier'!$F$19+'BP Financier'!$G$19)/('BP Financier'!$C$16+'BP Financier'!$C$19+'BP Financier'!$D$16+'BP Financier'!$D$19+'BP Financier'!$E$16+'BP Financier'!$E$19+'BP Financier'!$C$22+'BP Financier'!$D$22+'BP Financier'!$E$22+'BP Financier'!$F$22+'BP Financier'!$F$19+'BP Financier'!$F$16+'BP Financier'!$G$22+'BP Financier'!$G$19+'BP Financier'!$G$16))*$V9178*AA9178/(1-$W9178)","v":{"v":8068.673692704279,"d":"8,069"}},{"$f":"'BP Financier'!$G$44*(('BP Financier'!$C$19+'BP Financier'!$D$19+'BP Financier'!$E$19+'BP Financier'!$F$19+'BP Financier'!$G$19)/('BP Financier'!$C$16+'BP Financier'!$C$19+'BP Financier'!$D$16+'BP Financier'!$D$19+'BP Financier'!$E$16+'BP Financier'!$E$19+'BP Financier'!$C$22+'BP Financier'!$D$22+'BP Financier'!$E$22+'BP Financier'!$F$22+'BP Financier'!$F$19+'BP Financier'!$F$16+'BP Financier'!$G$22+'BP Financier'!$G$19+'BP Financier'!$G$16))*$V9178*AB9178/(1-$W9178)","v":{"v":3861.929288815723,"d":"3,862"}},null,{"v":0.003,"d":"0.30%"},{"$f":"Actif!$E$28/100","v":{"v":0.28900000000000003,"d":"28.90%"}},{"$f":"Actif!$E$30/100","v":{"v":0.09050000000000001,"d":"9.05%"}},{"$f":"Actif!$E$31/100","v":{"v":0.0605,"d":"6.05%"}},{"$f":"Actif!$E$32/100","v":{"v":0.47350000000000003,"d":"47.35%"}},{"$f":"Actif!$E$33/100","v":{"v":0.0585,"d":"5.85%"}},{"$f":"Actif!$E$29/100","v":{"v":0.027999999999999997,"d":"2.80%"}}]
[null,"#63",30,2029,"H","A_PER",{"v":0.44999999999999996,"d":"0.45"},{"v":0.38999999999999996,"d":"0.39"},0.6,0.6,85,0,{"$f":"ROUND(Primes!$Q$7*V9179,0)","v":4},{"$f":"'BP Financier'!$G$33*(('BP Financier'!$C$19+'BP Financier'!$D$19+'BP Financier'!$E$19+'BP Financier'!$F$19+'BP Financier'!$G$19)/('BP Financier'!$C$16+'BP Financier'!$C$19+'BP Financier'!$D$16+'BP Financier'!$D$19+'BP Financier'!$E$16+'BP Financier'!$E$19+'BP Financier'!$F$16+'BP Financier'!$F$19+'BP Financier'!$G$16+'BP Financier'!$G$19))*V9179","v":{"v":170865.17167118323,"d":"170,865"}},{"v":98065.41872671354,"d":"98,065"},{"$f":"'BP Financier'!$G$44*(('BP Financier'!$C$19+'BP Financier'!$D$19+'BP Financier'!$E$19+'BP Financier'!$F$19+'BP Financier'!$G$19)/('BP Financier'!$C$16+'BP Financier'!$C$19+'BP Financier'!$D$16+'BP Financier'!$D$19+'BP Financier'!$E$16+'BP Financier'!$E$19+'BP Financier'!$C$22+'BP Financier'!$D$22+'BP Financier'!$E$22+'BP Financier'!$F$22+'BP Financier'!$F$19+'BP Financier'!$F$16+'BP Financier'!$G$22+'BP Financier'!$G$19+'BP Financier'!$G$16))*$V9179*X9179/(1-$W9179)","v":{"v":12482.307165636536,"d":"12,482"}},{"$f":"'BP Financier'!$G$44*(('BP Financier'!$C$19+'BP Financier'!$D$19+'BP Financier'!$E$19+'BP Financier'!$F$19+'BP Financier'!$G$19)/('BP Financier'!$C$16+'BP Financier'!$C$19+'BP Financier'!$D$16+'BP Financier'!$D$19+'BP Financier'!$E$16+'BP Financier'!$E$19+'BP Financier'!$C$22+'BP Financier'!$D$22+'BP Financier'!$E$22+'BP Financier'!$F$22+'BP Financier'!$F$19+'BP Financier'!$F$16+'BP Financier'!$G$22+'BP Financier'!$G$19+'BP Financier'!$G$16))*$V9179*Y9179/(1-$W9179)","v":{"v":8344.525784762545,"d":"8,345"}},{"$f":"'BP Financier'!$G$44*(('BP Financier'!$C$19+'BP Financier'!$D$19+'BP Financier'!$E$19+'BP Financier'!$F$19+'BP Financier'!$G$19)/('BP Financier'!$C$16+'BP Financier'!$C$19+'BP Financier'!$D$16+'BP Financier'!$D$19+'BP Financier'!$E$16+'BP Financier'!$E$19+'BP Financier'!$C$22+'BP Financier'!$D$22+'BP Financier'!$E$22+'BP Financier'!$F$22+'BP Financier'!$F$19+'BP Financier'!$F$16+'BP Financier'!$G$22+'BP Financier'!$G$19+'BP Financier'!$G$16))*$V9179*Z9179/(1-$W9179)","v":{"v":65307.982794794465,"d":"65,308"}},{"$f":"'BP Financier'!$G$44*(('BP Financier'!$C$19+'BP Financier'!$D$19+'BP Financier'!$E$19+'BP Financier'!$F$19+'BP Financier'!$G$19)/('BP Financier'!$C$16+'BP Financier'!$C$19+'BP Financier'!$D$16+'BP Financier'!$D$19+'BP Financier'!$E$16+'BP Financier'!$E$19+'BP Financier'!$C$22+'BP Financier'!$D$22+'BP Financier'!$E$22+'BP Financier'!$F$22+'BP Financier'!$F$19+'BP Financier'!$F$16+'BP Financier'!$G$22+'BP Financier'!$G$19+'BP Financier'!$G$16))*$V9179*AA9179/(1-$W9179)","v":{"v":8068.673692704279,"d":"8,069"}},{"$f":"'BP Financier'!$G$44*(('BP Financier'!$C$19+'BP Financier'!$D$19+'BP Financier'!$E$19+'BP Financier'!$F$19+'BP Financier'!$G$19)/('BP Financier'!$C$16+'BP Financier'!$C$19+'BP Financier'!$D$16+'BP Financier'!$D$19+'BP Financier'!$E$16+'BP Financier'!$E$19+'BP Financier'!$C$22+'BP Financier'!$D$22+'BP Financier'!$E$22+'BP Financier'!$F$22+'BP Financier'!$F$19+'BP Financier'!$F$16+'BP Financier'!$G$22+'BP Financier'!$G$19+'BP Financier'!$G$16))*$V9179*AB9179/(1-$W9179)","v":{"v":3861.929288815723,"d":"3,862"}},null,{"v":0.003,"d":"0.30%"},{"$f":"Actif!$E$28/100","v":{"v":0.28900000000000003,"d":"28.90%"}},{"$f":"Actif!$E$30/100","v":{"v":0.09050000000000001,"d":"9.05%"}},{"$f":"Actif!$E$31/100","v":{"v":0.0605,"d":"6.05%"}},{"$f":"Actif!$E$32/100","v":{"v":0.47350000000000003,"d":"47.35%"}},{"$f":"Actif!$E$33/100","v":{"v":0.0585,"d":"5.85%"}},{"$f":"Actif!$E$29/100","v":{"v":0.027999999999999997,"d":"2.80%"}}]
[null,"#64",30,2030,"H","A_PER",{"v":0.44999999999999996,"d":"0.45"},{"v":0.38999999999999996,"d":"0.39"},0.6,0.6,85,0,{"$f":"ROUND(Primes!$Q$7*V9180,0)","v":4},{"$f":"'BP Financier'!$G$33*(('BP Financier'!$C$19+'BP Financier'!$D$19+'BP Financier'!$E$19+'BP Financier'!$F$19+'BP Financier'!$G$19)/('BP Financier'!$C$16+'BP Financier'!$C$19+'BP Financier'!$D$16+'BP Financier'!$D$19+'BP Financier'!$E$16+'BP Financier'!$E$19+'BP Financier'!$F$16+'BP Financier'!$F$19+'BP Financier'!$G$16+'BP Financier'!$G$19))*V9180","v":{"v":170865.17167118323,"d":"170,865"}},{"v":98065.41872671354,"d":"98,065"},{"$f":"'BP Financier'!$G$44*(('BP Financier'!$C$19+'BP Financier'!$D$19+'BP Financier'!$E$19+'BP Financier'!$F$19+'BP Financier'!$G$19)/('BP Financier'!$C$16+'BP Financier'!$C$19+'BP Financier'!$D$16+'BP Financier'!$D$19+'BP Financier'!$E$16+'BP Financier'!$E$19+'BP Financier'!$C$22+'BP Financier'!$D$22+'BP Financier'!$E$22+'BP Financier'!$F$22+'BP Financier'!$F$19+'BP Financier'!$F$16+'BP Financier'!$G$22+'BP Financier'!$G$19+'BP Financier'!$G$16))*$V9180*X9180/(1-$W9180)","v":{"v":12482.307165636536,"d":"12,482"}},{"$f":"'BP Financier'!$G$44*(('BP Financier'!$C$19+'BP Financier'!$D$19+'BP Financier'!$E$19+'BP Financier'!$F$19+'BP Financier'!$G$19)/('BP Financier'!$C$16+'BP Financier'!$C$19+'BP Financier'!$D$16+'BP Financier'!$D$19+'BP Financier'!$E$16+'BP Financier'!$E$19+'BP Financier'!$C$22+'BP Financier'!$D$22+'BP Financier'!$E$22+'BP Financier'!$F$22+'BP Financier'!$F$19+'BP Financier'!$F$16+'BP Financier'!$G$22+'BP Financier'!$G$19+'BP Financier'!$G$16))*$V9180*Y9180/(1-$W9180)","v":{"v":8344.525784762545,"d":"8,345"}},{"$f":"'BP Financier'!$G$44*(('BP Financier'!$C$19+'BP Financier'!$D$19+'BP Financier'!$E$19+'BP Financier'!$F$19+'BP Financier'!$G$19)/('BP Financier'!$C$16+'BP Financier'!$C$19+'BP Financier'!$D$16+'BP Financier'!$D$19+'BP Financier'!$E$16+'BP Financier'!$E$19+'BP Financier'!$C$22+'BP Financier'!$D$22+'BP Financier'!$E$22+'BP Financier'!$F$22+'BP Financier'!$F$19+'BP Financier'!$F$16+'BP Financier'!$G$22+'BP Financier'!$G$19+'BP Financier'!$G$16))*$V9180*Z9180/(1-$W9180)","v":{"v":65307.982794794465,"d":"65,308"}},{"$f":"'BP Financier'!$G$44*(('BP Financier'!$C$19+'BP Financier'!$D$19+'BP Financier'!$E$19+'BP Financier'!$F$19+'BP Financier'!$G$19)/('BP Financier'!$C$16+'BP Financier'!$C$19+'BP Financier'!$D$16+'BP Financier'!$D$19+'BP Financier'!$E$16+'BP Financier'!$E$19+'BP Financier'!$C$22+'BP Financier'!$D$22+'BP Financier'!$E$22+'BP Financier'!$F$22+'BP Financier'!$F$19+'BP Financier'!$F$16+'BP Financier'!$G$22+'BP Financier'!$G$19+'BP Financier'!$G$16))*$V9180*AA9180/(1-$W9180)","v":{"v":8068.673692704279,"d":"8,069"}},{"$f":"'BP Financier'!$G$44*(('BP Financier'!$C$19+'BP Financier'!$D$19+'BP Financier'!$E$19+'BP Financier'!$F$19+'BP Financier'!$G$19)/('BP Financier'!$C$16+'BP Financier'!$C$19+'BP Financier'!$D$16+'BP Financier'!$D$19+'BP Financier'!$E$16+'BP Financier'!$E$19+'BP Financier'!$C$22+'BP Financier'!$D$22+'BP Financier'!$E$22+'BP Financier'!$F$22+'BP Financier'!$F$19+'BP Financier'!$F$16+'BP Financier'!$G$22+'BP Financier'!$G$19+'BP Financier'!$G$16))*$V9180*AB9180/(1-$W9180)","v":{"v":3861.929288815723,"d":"3,862"}},null,{"v":0.003,"d":"0.30%"},{"$f":"Actif!$E$28/100","v":{"v":0.28900000000000003,"d":"28.90%"}},{"$f":"Actif!$E$30/100","v":{"v":0.09050000000000001,"d":"9.05%"}},{"$f":"Actif!$E$31/100","v":{"v":0.0605,"d":"6.05%"}},{"$f":"Actif!$E$32/100","v":{"v":0.47350000000000003,"d":"47.35%"}},{"$f":"Actif!$E$33/100","v":{"v":0.0585,"d":"5.85%"}},{"$f":"Actif!$E$29/100","v":{"v":0.027999999999999997,"d":"2.80%"}}]
[null,"#65",30,2031,"H","A_PER",{"v":0.44999999999999996,"d":"0.45"},{"v":0.38999999999999996,"d":"0.39"},0.6,0.6,85,0,{"$f":"ROUND(Primes!$Q$7*V9181,0)","v":4},{"$f":"'BP Financier'!$G$33*(('BP Financier'!$C$19+'BP Financier'!$D$19+'BP Financier'!$E$19+'BP Financier'!$F$19+'BP Financier'!$G$19)/('BP Financier'!$C$16+'BP Financier'!$C$19+'BP Financier'!$D$16+'BP Financier'!$D$19+'BP Financier'!$E$16+'BP Financier'!$E$19+'BP Financier'!$F$16+'BP Financier'!$F$19+'BP Financier'!$G$16+'BP Financier'!$G$19))*V9181","v":{"v":170865.17167118323,"d":"170,865"}},{"v":98065.41872671354,"d":"98,065"},{"$f":"'BP Financier'!$G$44*(('BP Financier'!$C$19+'BP Financier'!$D$19+'BP Financier'!$E$19+'BP Financier'!$F$19+'BP Financier'!$G$19)/('BP Financier'!$C$16+'BP Financier'!$C$19+'BP Financier'!$D$16+'BP Financier'!$D$19+'BP Financier'!$E$16+'BP Financier'!$E$19+'BP Financier'!$C$22+'BP Financier'!$D$22+'BP Financier'!$E$22+'BP Financier'!$F$22+'BP Financier'!$F$19+'BP Financier'!$F$16+'BP Financier'!$G$22+'BP Financier'!$G$19+'BP Financier'!$G$16))*$V9181*X9181/(1-$W9181)","v":{"v":12482.307165636536,"d":"12,482"}},{"$f":"'BP Financier'!$G$44*(('BP Financier'!$C$19+'BP Financier'!$D$19+'BP Financier'!$E$19+'BP Financier'!$F$19+'BP Financier'!$G$19)/('BP Financier'!$C$16+'BP Financier'!$C$19+'BP Financier'!$D$16+'BP Financier'!$D$19+'BP Financier'!$E$16+'BP Financier'!$E$19+'BP Financier'!$C$22+'BP Financier'!$D$22+'BP Financier'!$E$22+'BP Financier'!$F$22+'BP Financier'!$F$19+'BP Financier'!$F$16+'BP Financier'!$G$22+'BP Financier'!$G$19+'BP Financier'!$G$16))*$V9181*Y9181/(1-$W9181)","v":{"v":8344.525784762545,"d":"8,345"}},{"$f":"'BP Financier'!$G$44*(('BP Financier'!$C$19+'BP Financier'!$D$19+'BP Financier'!$E$19+'BP Financier'!$F$19+'BP Financier'!$G$19)/('BP Financier'!$C$16+'BP Financier'!$C$19+'BP Financier'!$D$16+'BP Financier'!$D$19+'BP Financier'!$E$16+'BP Financier'!$E$19+'BP Financier'!$C$22+'BP Financier'!$D$22+'BP Financier'!$E$22+'BP Financier'!$F$22+'BP Financier'!$F$19+'BP Financier'!$F$16+'BP Financier'!$G$22+'BP Financier'!$G$19+'BP Financier'!$G$16))*$V9181*Z9181/(1-$W9181)","v":{"v":65307.982794794465,"d":"65,308"}},{"$f":"'BP Financier'!$G$44*(('BP Financier'!$C$19+'BP Financier'!$D$19+'BP Financier'!$E$19+'BP Financier'!$F$19+'BP Financier'!$G$19)/('BP Financier'!$C$16+'BP Financier'!$C$19+'BP Financier'!$D$16+'BP Financier'!$D$19+'BP Financier'!$E$16+'BP Financier'!$E$19+'BP Financier'!$C$22+'BP Financier'!$D$22+'BP Financier'!$E$22+'BP Financier'!$F$22+'BP Financier'!$F$19+'BP Financier'!$F$16+'BP Financier'!$G$22+'BP Financier'!$G$19+'BP Financier'!$G$16))*$V9181*AA9181/(1-$W9181)","v":{"v":8068.673692704279,"d":"8,069"}},{"$f":"'BP Financier'!$G$44*(('BP Financier'!$C$19+'BP Financier'!$D$19+'BP Financier'!$E$19+'BP Financier'!$F$19+'BP Financier'!$G$19)/('BP Financier'!$C$16+'BP Financier'!$C$19+'BP Financier'!$D$16+'BP Financier'!$D$19+'BP Financier'!$E$16+'BP Financier'!$E$19+'BP Financier'!$C$22+'BP Financier'!$D$22+'BP Financier'!$E$22+'BP Financier'!$F$22+'BP Financier'!$F$19+'BP Financier'!$F$16+'BP Financier'!$G$22+'BP Financier'!$G$19+'BP Financier'!$G$16))*$V9181*AB9181/(1-$W9181)","v":{"v":3861.929288815723,"d":"3,862"}},null,{"v":0.003,"d":"0.30%"},{"$f":"Actif!$E$28/100","v":{"v":0.28900000000000003,"d":"28.90%"}},{"$f":"Actif!$E$30/100","v":{"v":0.09050000000000001,"d":"9.05%"}},{"$f":"Actif!$E$31/100","v":{"v":0.0605,"d":"6.05%"}},{"$f":"Actif!$E$32/100","v":{"v":0.47350000000000003,"d":"47.35%"}},{"$f":"Actif!$E$33/100","v":{"v":0.0585,"d":"5.85%"}},{"$f":"Actif!$E$29/100","v":{"v":0.027999999999999997,"d":"2.80%"}}]
[null,"#66",31,2026,"H","A_PER",{"v":0.44999999999999996,"d":"0.45"},{"v":0.38999999999999996,"d":"0.39"},0.6,0.6,85,0,{"$f":"ROUND(Primes!$Q$7*V9182,0)","v":4},{"$f":"'BP Financier'!$G$33*(('BP Financier'!$C$19+'BP Financier'!$D$19+'BP Financier'!$E$19+'BP Financier'!$F$19+'BP Financier'!$G$19)/('BP Financier'!$C$16+'BP Financier'!$C$19+'BP Financier'!$D$16+'BP Financier'!$D$19+'BP Financier'!$E$16+'BP Financier'!$E$19+'BP Financier'!$F$16+'BP Financier'!$F$19+'BP Financier'!$G$16+'BP Financier'!$G$19))*V9182","v":{"v":170865.17167118323,"d":"170,865"}},{"v":98065.41872671354,"d":"98,065"},{"$f":"'BP Financier'!$G$44*(('BP Financier'!$C$19+'BP Financier'!$D$19+'BP Financier'!$E$19+'BP Financier'!$F$19+'BP Financier'!$G$19)/('BP Financier'!$C$16+'BP Financier'!$C$19+'BP Financier'!$D$16+'BP Financier'!$D$19+'BP Financier'!$E$16+'BP Financier'!$E$19+'BP Financier'!$C$22+'BP Financier'!$D$22+'BP Financier'!$E$22+'BP Financier'!$F$22+'BP Financier'!$F$19+'BP Financier'!$F$16+'BP Financier'!$G$22+'BP Financier'!$G$19+'BP Financier'!$G$16))*$V9182*X9182/(1-$W9182)","v":{"v":12482.307165636536,"d":"12,482"}},{"$f":"'BP Financier'!$G$44*(('BP Financier'!$C$19+'BP Financier'!$D$19+'BP Financier'!$E$19+'BP Financier'!$F$19+'BP Financier'!$G$19)/('BP Financier'!$C$16+'BP Financier'!$C$19+'BP Financier'!$D$16+'BP Financier'!$D$19+'BP Financier'!$E$16+'BP Financier'!$E$19+'BP Financier'!$C$22+'BP Financier'!$D$22+'BP Financier'!$E$22+'BP Financier'!$F$22+'BP Financier'!$F$19+'BP Financier'!$F$16+'BP Financier'!$G$22+'BP Financier'!$G$19+'BP Financier'!$G$16))*$V9182*Y9182/(1-$W9182)","v":{"v":8344.525784762545,"d":"8,345"}},{"$f":"'BP Financier'!$G$44*(('BP Financier'!$C$19+'BP Financier'!$D$19+'BP Financier'!$E$19+'BP Financier'!$F$19+'BP Financier'!$G$19)/('BP Financier'!$C$16+'BP Financier'!$C$19+'BP Financier'!$D$16+'BP Financier'!$D$19+'BP Financier'!$E$16+'BP Financier'!$E$19+'BP Financier'!$C$22+'BP Financier'!$D$22+'BP Financier'!$E$22+'BP Financier'!$F$22+'BP Financier'!$F$19+'BP Financier'!$F$16+'BP Financier'!$G$22+'BP Financier'!$G$19+'BP Financier'!$G$16))*$V9182*Z9182/(1-$W9182)","v":{"v":65307.982794794465,"d":"65,308"}},{"$f":"'BP Financier'!$G$44*(('BP Financier'!$C$19+'BP Financier'!$D$19+'BP Financier'!$E$19+'BP Financier'!$F$19+'BP Financier'!$G$19)/('BP Financier'!$C$16+'BP Financier'!$C$19+'BP Financier'!$D$16+'BP Financier'!$D$19+'BP Financier'!$E$16+'BP Financier'!$E$19+'BP Financier'!$C$22+'BP Financier'!$D$22+'BP Financier'!$E$22+'BP Financier'!$F$22+'BP Financier'!$F$19+'BP Financier'!$F$16+'BP Financier'!$G$22+'BP Financier'!$G$19+'BP Financier'!$G$16))*$V9182*AA9182/(1-$W9182)","v":{"v":8068.673692704279,"d":"8,069"}},{"$f":"'BP Financier'!$G$44*(('BP Financier'!$C$19+'BP Financier'!$D$19+'BP Financier'!$E$19+'BP Financier'!$F$19+'BP Financier'!$G$19)/('BP Financier'!$C$16+'BP Financier'!$C$19+'BP Financier'!$D$16+'BP Financier'!$D$19+'BP Financier'!$E$16+'BP Financier'!$E$19+'BP Financier'!$C$22+'BP Financier'!$D$22+'BP Financier'!$E$22+'BP Financier'!$F$22+'BP Financier'!$F$19+'BP Financier'!$F$16+'BP Financier'!$G$22+'BP Financier'!$G$19+'BP Financier'!$G$16))*$V9182*AB9182/(1-$W9182)","v":{"v":3861.929288815723,"d":"3,862"}},null,{"v":0.003,"d":"0.30%"},{"$f":"Actif!$E$28/100","v":{"v":0.28900000000000003,"d":"28.90%"}},{"$f":"Actif!$E$30/100","v":{"v":0.09050000000000001,"d":"9.05%"}},{"$f":"Actif!$E$31/100","v":{"v":0.0605,"d":"6.05%"}},{"$f":"Actif!$E$32/100","v":{"v":0.47350000000000003,"d":"47.35%"}},{"$f":"Actif!$E$33/100","v":{"v":0.0585,"d":"5.85%"}},{"$f":"Actif!$E$29/100","v":{"v":0.027999999999999997,"d":"2.80%"}}]
[null,"#67",31,2028,"H","A_PER",{"v":0.44999999999999996,"d":"0.45"},{"v":0.38999999999999996,"d":"0.39"},0.6,0.6,85,0,{"$f":"ROUND(Primes!$Q$7*V9183,0)","v":4},{"$f":"'BP Financier'!$G$33*(('BP Financier'!$C$19+'BP Financier'!$D$19+'BP Financier'!$E$19+'BP Financier'!$F$19+'BP Financier'!$G$19)/('BP Financier'!$C$16+'BP Financier'!$C$19+'BP Financier'!$D$16+'BP Financier'!$D$19+'BP Financier'!$E$16+'BP Financier'!$E$19+'BP Financier'!$F$16+'BP Financier'!$F$19+'BP Financier'!$G$16+'BP Financier'!$G$19))*V9183","v":{"v":170865.17167118323,"d":"170,865"}},{"v":98065.41872671354,"d":"98,065"},{"$f":"'BP Financier'!$G$44*(('BP Financier'!$C$19+'BP Financier'!$D$19+'BP Financier'!$E$19+'BP Financier'!$F$19+'BP Financier'!$G$19)/('BP Financier'!$C$16+'BP Financier'!$C$19+'BP Financier'!$D$16+'BP Financier'!$D$19+'BP Financier'!$E$16+'BP Financier'!$E$19+'BP Financier'!$C$22+'BP Financier'!$D$22+'BP Financier'!$E$22+'BP Financier'!$F$22+'BP Financier'!$F$19+'BP Financier'!$F$16+'BP Financier'!$G$22+'BP Financier'!$G$19+'BP Financier'!$G$16))*$V9183*X9183/(1-$W9183)","v":{"v":12482.307165636536,"d":"12,482"}},{"$f":"'BP Financier'!$G$44*(('BP Financier'!$C$19+'BP Financier'!$D$19+'BP Financier'!$E$19+'BP Financier'!$F$19+'BP Financier'!$G$19)/('BP Financier'!$C$16+'BP Financier'!$C$19+'BP Financier'!$D$16+'BP Financier'!$D$19+'BP Financier'!$E$16+'BP Financier'!$E$19+'BP Financier'!$C$22+'BP Financier'!$D$22+'BP Financier'!$E$22+'BP Financier'!$F$22+'BP Financier'!$F$19+'BP Financier'!$F$16+'BP Financier'!$G$22+'BP Financier'!$G$19+'BP Financier'!$G$16))*$V9183*Y9183/(1-$W9183)","v":{"v":8344.525784762545,"d":"8,345"}},{"$f":"'BP Financier'!$G$44*(('BP Financier'!$C$19+'BP Financier'!$D$19+'BP Financier'!$E$19+'BP Financier'!$F$19+'BP Financier'!$G$19)/('BP Financier'!$C$16+'BP Financier'!$C$19+'BP Financier'!$D$16+'BP Financier'!$D$19+'BP Financier'!$E$16+'BP Financier'!$E$19+'BP Financier'!$C$22+'BP Financier'!$D$22+'BP Financier'!$E$22+'BP Financier'!$F$22+'BP Financier'!$F$19+'BP Financier'!$F$16+'BP Financier'!$G$22+'BP Financier'!$G$19+'BP Financier'!$G$16))*$V9183*Z9183/(1-$W9183)","v":{"v":65307.982794794465,"d":"65,308"}},{"$f":"'BP Financier'!$G$44*(('BP Financier'!$C$19+'BP Financier'!$D$19+'BP Financier'!$E$19+'BP Financier'!$F$19+'BP Financier'!$G$19)/('BP Financier'!$C$16+'BP Financier'!$C$19+'BP Financier'!$D$16+'BP Financier'!$D$19+'BP Financier'!$E$16+'BP Financier'!$E$19+'BP Financier'!$C$22+'BP Financier'!$D$22+'BP Financier'!$E$22+'BP Financier'!$F$22+'BP Financier'!$F$19+'BP Financier'!$F$16+'BP Financier'!$G$22+'BP Financier'!$G$19+'BP Financier'!$G$16))*$V9183*AA9183/(1-$W9183)","v":{"v":8068.673692704279,"d":"8,069"}},{"$f":"'BP Financier'!$G$44*(('BP Financier'!$C$19+'BP Financier'!$D$19+'BP Financier'!$E$19+'BP Financier'!$F$19+'BP Financier'!$G$19)/('BP Financier'!$C$16+'BP Financier'!$C$19+'BP Financier'!$D$16+'BP Financier'!$D$19+'BP Financier'!$E$16+'BP Financier'!$E$19+'BP Financier'!$C$22+'BP Financier'!$D$22+'BP Financier'!$E$22+'BP Financier'!$F$22+'BP Financier'!$F$19+'BP Financier'!$F$16+'BP Financier'!$G$22+'BP Financier'!$G$19+'BP Financier'!$G$16))*$V9183*AB9183/(1-$W9183)","v":{"v":3861.929288815723,"d":"3,862"}},null,{"v":0.003,"d":"0.30%"},{"$f":"Actif!$E$28/100","v":{"v":0.28900000000000003,"d":"28.90%"}},{"$f":"Actif!$E$30/100","v":{"v":0.09050000000000001,"d":"9.05%"}},{"$f":"Actif!$E$31/100","v":{"v":0.0605,"d":"6.05%"}},{"$f":"Actif!$E$32/100","v":{"v":0.47350000000000003,"d":"47.35%"}},{"$f":"Actif!$E$33/100","v":{"v":0.0585,"d":"5.85%"}},{"$f":"Actif!$E$29/100","v":{"v":0.027999999999999997,"d":"2.80%"}}]
[null,"#68",31,2029,"H","A_PER",{"v":0.44999999999999996,"d":"0.45"},{"v":0.38999999999999996,"d":"0.39"},0.6,0.6,85,0,{"$f":"ROUND(Primes!$Q$7*V9184,0)","v":4},{"$f":"'BP Financier'!$G$33*(('BP Financier'!$C$19+'BP Financier'!$D$19+'BP Financier'!$E$19+'BP Financier'!$F$19+'BP Financier'!$G$19)/('BP Financier'!$C$16+'BP Financier'!$C$19+'BP Financier'!$D$16+'BP Financier'!$D$19+'BP Financier'!$E$16+'BP Financier'!$E$19+'BP Financier'!$F$16+'BP Financier'!$F$19+'BP Financier'!$G$16+'BP Financier'!$G$19))*V9184","v":{"v":170865.17167118323,"d":"170,865"}},{"v":98065.41872671354,"d":"98,065"},{"$f":"'BP Financier'!$G$44*(('BP Financier'!$C$19+'BP Financier'!$D$19+'BP Financier'!$E$19+'BP Financier'!$F$19+'BP Financier'!$G$19)/('BP Financier'!$C$16+'BP Financier'!$C$19+'BP Financier'!$D$16+'BP Financier'!$D$19+'BP Financier'!$E$16+'BP Financier'!$E$19+'BP Financier'!$C$22+'BP Financier'!$D$22+'BP Financier'!$E$22+'BP Financier'!$F$22+'BP Financier'!$F$19+'BP Financier'!$F$16+'BP Financier'!$G$22+'BP Financier'!$G$19+'BP Financier'!$G$16))*$V9184*X9184/(1-$W9184)","v":{"v":12482.307165636536,"d":"12,482"}},{"$f":"'BP Financier'!$G$44*(('BP Financier'!$C$19+'BP Financier'!$D$19+'BP Financier'!$E$19+'BP Financier'!$F$19+'BP Financier'!$G$19)/('BP Financier'!$C$16+'BP Financier'!$C$19+'BP Financier'!$D$16+'BP Financier'!$D$19+'BP Financier'!$E$16+'BP Financier'!$E$19+'BP Financier'!$C$22+'BP Financier'!$D$22+'BP Financier'!$E$22+'BP Financier'!$F$22+'BP Financier'!$F$19+'BP Financier'!$F$16+'BP Financier'!$G$22+'BP Financier'!$G$19+'BP Financier'!$G$16))*$V9184*Y9184/(1-$W9184)","v":{"v":8344.525784762545,"d":"8,345"}},{"$f":"'BP Financier'!$G$44*(('BP Financier'!$C$19+'BP Financier'!$D$19+'BP Financier'!$E$19+'BP Financier'!$F$19+'BP Financier'!$G$19)/('BP Financier'!$C$16+'BP Financier'!$C$19+'BP Financier'!$D$16+'BP Financier'!$D$19+'BP Financier'!$E$16+'BP Financier'!$E$19+'BP Financier'!$C$22+'BP Financier'!$D$22+'BP Financier'!$E$22+'BP Financier'!$F$22+'BP Financier'!$F$19+'BP Financier'!$F$16+'BP Financier'!$G$22+'BP Financier'!$G$19+'BP Financier'!$G$16))*$V9184*Z9184/(1-$W9184)","v":{"v":65307.982794794465,"d":"65,308"}},{"$f":"'BP Financier'!$G$44*(('BP Financier'!$C$19+'BP Financier'!$D$19+'BP Financier'!$E$19+'BP Financier'!$F$19+'BP Financier'!$G$19)/('BP Financier'!$C$16+'BP Financier'!$C$19+'BP Financier'!$D$16+'BP Financier'!$D$19+'BP Financier'!$E$16+'BP Financier'!$E$19+'BP Financier'!$C$22+'BP Financier'!$D$22+'BP Financier'!$E$22+'BP Financier'!$F$22+'BP Financier'!$F$19+'BP Financier'!$F$16+'BP Financier'!$G$22+'BP Financier'!$G$19+'BP Financier'!$G$16))*$V9184*AA9184/(1-$W9184)","v":{"v":8068.673692704279,"d":"8,069"}},{"$f":"'BP Financier'!$G$44*(('BP Financier'!$C$19+'BP Financier'!$D$19+'BP Financier'!$E$19+'BP Financier'!$F$19+'BP Financier'!$G$19)/('BP Financier'!$C$16+'BP Financier'!$C$19+'BP Financier'!$D$16+'BP Financier'!$D$19+'BP Financier'!$E$16+'BP Financier'!$E$19+'BP Financier'!$C$22+'BP Financier'!$D$22+'BP Financier'!$E$22+'BP Financier'!$F$22+'BP Financier'!$F$19+'BP Financier'!$F$16+'BP Financier'!$G$22+'BP Financier'!$G$19+'BP Financier'!$G$16))*$V9184*AB9184/(1-$W9184)","v":{"v":3861.929288815723,"d":"3,862"}},null,{"v":0.003,"d":"0.30%"},{"$f":"Actif!$E$28/100","v":{"v":0.28900000000000003,"d":"28.90%"}},{"$f":"Actif!$E$30/100","v":{"v":0.09050000000000001,"d":"9.05%"}},{"$f":"Actif!$E$31/100","v":{"v":0.0605,"d":"6.05%"}},{"$f":"Actif!$E$32/100","v":{"v":0.47350000000000003,"d":"47.35%"}},{"$f":"Actif!$E$33/100","v":{"v":0.0585,"d":"5.85%"}},{"$f":"Actif!$E$29/100","v":{"v":0.027999999999999997,"d":"2.80%"}}]
[null,"#69",31,2030,"H","A_PER",{"v":0.44999999999999996,"d":"0.45"},{"v":0.38999999999999996,"d":"0.39"},0.6,0.6,85,0,{"$f":"ROUND(Primes!$Q$7*V9185,0)","v":4},{"$f":"'BP Financier'!$G$33*(('BP Financier'!$C$19+'BP Financier'!$D$19+'BP Financier'!$E$19+'BP Financier'!$F$19+'BP Financier'!$G$19)/('BP Financier'!$C$16+'BP Financier'!$C$19+'BP Financier'!$D$16+'BP Financier'!$D$19+'BP Financier'!$E$16+'BP Financier'!$E$19+'BP Financier'!$F$16+'BP Financier'!$F$19+'BP Financier'!$G$16+'BP Financier'!$G$19))*V9185","v":{"v":170865.17167118323,"d":"170,865"}},{"v":98065.41872671354,"d":"98,065"},{"$f":"'BP Financier'!$G$44*(('BP Financier'!$C$19+'BP Financier'!$D$19+'BP Financier'!$E$19+'BP Financier'!$F$19+'BP Financier'!$G$19)/('BP Financier'!$C$16+'BP Financier'!$C$19+'BP Financier'!$D$16+'BP Financier'!$D$19+'BP Financier'!$E$16+'BP Financier'!$E$19+'BP Financier'!$C$22+'BP Financier'!$D$22+'BP Financier'!$E$22+'BP Financier'!$F$22+'BP Financier'!$F$19+'BP Financier'!$F$16+'BP Financier'!$G$22+'BP Financier'!$G$19+'BP Financier'!$G$16))*$V9185*X9185/(1-$W9185)","v":{"v":12482.307165636536,"d":"12,482"}},{"$f":"'BP Financier'!$G$44*(('BP Financier'!$C$19+'BP Financier'!$D$19+'BP Financier'!$E$19+'BP Financier'!$F$19+'BP Financier'!$G$19)/('BP Financier'!$C$16+'BP Financier'!$C$19+'BP Financier'!$D$16+'BP Financier'!$D$19+'BP Financier'!$E$16+'BP Financier'!$E$19+'BP Financier'!$C$22+'BP Financier'!$D$22+'BP Financier'!$E$22+'BP Financier'!$F$22+'BP Financier'!$F$19+'BP Financier'!$F$16+'BP Financier'!$G$22+'BP Financier'!$G$19+'BP Financier'!$G$16))*$V9185*Y9185/(1-$W9185)","v":{"v":8344.525784762545,"d":"8,345"}},{"$f":"'BP Financier'!$G$44*(('BP Financier'!$C$19+'BP Financier'!$D$19+'BP Financier'!$E$19+'BP Financier'!$F$19+'BP Financier'!$G$19)/('BP Financier'!$C$16+'BP Financier'!$C$19+'BP Financier'!$D$16+'BP Financier'!$D$19+'BP Financier'!$E$16+'BP Financier'!$E$19+'BP Financier'!$C$22+'BP Financier'!$D$22+'BP Financier'!$E$22+'BP Financier'!$F$22+'BP Financier'!$F$19+'BP Financier'!$F$16+'BP Financier'!$G$22+'BP Financier'!$G$19+'BP Financier'!$G$16))*$V9185*Z9185/(1-$W9185)","v":{"v":65307.982794794465,"d":"65,308"}},{"$f":"'BP Financier'!$G$44*(('BP Financier'!$C$19+'BP Financier'!$D$19+'BP Financier'!$E$19+'BP Financier'!$F$19+'BP Financier'!$G$19)/('BP Financier'!$C$16+'BP Financier'!$C$19+'BP Financier'!$D$16+'BP Financier'!$D$19+'BP Financier'!$E$16+'BP Financier'!$E$19+'BP Financier'!$C$22+'BP Financier'!$D$22+'BP Financier'!$E$22+'BP Financier'!$F$22+'BP Financier'!$F$19+'BP Financier'!$F$16+'BP Financier'!$G$22+'BP Financier'!$G$19+'BP Financier'!$G$16))*$V9185*AA9185/(1-$W9185)","v":{"v":8068.673692704279,"d":"8,069"}},{"$f":"'BP Financier'!$G$44*(('BP Financier'!$C$19+'BP Financier'!$D$19+'BP Financier'!$E$19+'BP Financier'!$F$19+'BP Financier'!$G$19)/('BP Financier'!$C$16+'BP Financier'!$C$19+'BP Financier'!$D$16+'BP Financier'!$D$19+'BP Financier'!$E$16+'BP Financier'!$E$19+'BP Financier'!$C$22+'BP Financier'!$D$22+'BP Financier'!$E$22+'BP Financier'!$F$22+'BP Financier'!$F$19+'BP Financier'!$F$16+'BP Financier'!$G$22+'BP Financier'!$G$19+'BP Financier'!$G$16))*$V9185*AB9185/(1-$W9185)","v":{"v":3861.929288815723,"d":"3,862"}},null,{"v":0.003,"d":"0.30%"},{"$f":"Actif!$E$28/100","v":{"v":0.28900000000000003,"d":"28.90%"}},{"$f":"Actif!$E$30/100","v":{"v":0.09050000000000001,"d":"9.05%"}},{"$f":"Actif!$E$31/100","v":{"v":0.0605,"d":"6.05%"}},{"$f":"Actif!$E$32/100","v":{"v":0.47350000000000003,"d":"47.35%"}},{"$f":"Actif!$E$33/100","v":{"v":0.0585,"d":"5.85%"}},{"$f":"Actif!$E$29/100","v":{"v":0.027999999999999997,"d":"2.80%"}}]
[null,"#70",31,2031,"H","A_PER",{"v":0.44999999999999996,"d":"0.45"},{"v":0.38999999999999996,"d":"0.39"},0.6,0.6,85,0,{"$f":"ROUND(Primes!$Q$7*V9186,0)","v":4},{"$f":"'BP Financier'!$G$33*(('BP Financier'!$C$19+'BP Financier'!$D$19+'BP Financier'!$E$19+'BP Financier'!$F$19+'BP Financier'!$G$19)/('BP Financier'!$C$16+'BP Financier'!$C$19+'BP Financier'!$D$16+'BP Financier'!$D$19+'BP Financier'!$E$16+'BP Financier'!$E$19+'BP Financier'!$F$16+'BP Financier'!$F$19+'BP Financier'!$G$16+'BP Financier'!$G$19))*V9186","v":{"v":170865.17167118323,"d":"170,865"}},{"v":98065.41872671354,"d":"98,065"},{"$f":"'BP Financier'!$G$44*(('BP Financier'!$C$19+'BP Financier'!$D$19+'BP Financier'!$E$19+'BP Financier'!$F$19+'BP Financier'!$G$19)/('BP Financier'!$C$16+'BP Financier'!$C$19+'BP Financier'!$D$16+'BP Financier'!$D$19+'BP Financier'!$E$16+'BP Financier'!$E$19+'BP Financier'!$C$22+'BP Financier'!$D$22+'BP Financier'!$E$22+'BP Financier'!$F$22+'BP Financier'!$F$19+'BP Financier'!$F$16+'BP Financier'!$G$22+'BP Financier'!$G$19+'BP Financier'!$G$16))*$V9186*X9186/(1-$W9186)","v":{"v":12482.307165636536,"d":"12,482"}},{"$f":"'BP Financier'!$G$44*(('BP Financier'!$C$19+'BP Financier'!$D$19+'BP Financier'!$E$19+'BP Financier'!$F$19+'BP Financier'!$G$19)/('BP Financier'!$C$16+'BP Financier'!$C$19+'BP Financier'!$D$16+'BP Financier'!$D$19+'BP Financier'!$E$16+'BP Financier'!$E$19+'BP Financier'!$C$22+'BP Financier'!$D$22+'BP Financier'!$E$22+'BP Financier'!$F$22+'BP Financier'!$F$19+'BP Financier'!$F$16+'BP Financier'!$G$22+'BP Financier'!$G$19+'BP Financier'!$G$16))*$V9186*Y9186/(1-$W9186)","v":{"v":8344.525784762545,"d":"8,345"}},{"$f":"'BP Financier'!$G$44*(('BP Financier'!$C$19+'BP Financier'!$D$19+'BP Financier'!$E$19+'BP Financier'!$F$19+'BP Financier'!$G$19)/('BP Financier'!$C$16+'BP Financier'!$C$19+'BP Financier'!$D$16+'BP Financier'!$D$19+'BP Financier'!$E$16+'BP Financier'!$E$19+'BP Financier'!$C$22+'BP Financier'!$D$22+'BP Financier'!$E$22+'BP Financier'!$F$22+'BP Financier'!$F$19+'BP Financier'!$F$16+'BP Financier'!$G$22+'BP Financier'!$G$19+'BP Financier'!$G$16))*$V9186*Z9186/(1-$W9186)","v":{"v":65307.982794794465,"d":"65,308"}},{"$f":"'BP Financier'!$G$44*(('BP Financier'!$C$19+'BP Financier'!$D$19+'BP Financier'!$E$19+'BP Financier'!$F$19+'BP Financier'!$G$19)/('BP Financier'!$C$16+'BP Financier'!$C$19+'BP Financier'!$D$16+'BP Financier'!$D$19+'BP Financier'!$E$16+'BP Financier'!$E$19+'BP Financier'!$C$22+'BP Financier'!$D$22+'BP Financier'!$E$22+'BP Financier'!$F$22+'BP Financier'!$F$19+'BP Financier'!$F$16+'BP Financier'!$G$22+'BP Financier'!$G$19+'BP Financier'!$G$16))*$V9186*AA9186/(1-$W9186)","v":{"v":8068.673692704279,"d":"8,069"}},{"$f":"'BP Financier'!$G$44*(('BP Financier'!$C$19+'BP Financier'!$D$19+'BP Financier'!$E$19+'BP Financier'!$F$19+'BP Financier'!$G$19)/('BP Financier'!$C$16+'BP Financier'!$C$19+'BP Financier'!$D$16+'BP Financier'!$D$19+'BP Financier'!$E$16+'BP Financier'!$E$19+'BP Financier'!$C$22+'BP Financier'!$D$22+'BP Financier'!$E$22+'BP Financier'!$F$22+'BP Financier'!$F$19+'BP Financier'!$F$16+'BP Financier'!$G$22+'BP Financier'!$G$19+'BP Financier'!$G$16))*$V9186*AB9186/(1-$W9186)","v":{"v":3861.929288815723,"d":"3,862"}},null,{"v":0.003,"d":"0.30%"},{"$f":"Actif!$E$28/100","v":{"v":0.28900000000000003,"d":"28.90%"}},{"$f":"Actif!$E$30/100","v":{"v":0.09050000000000001,"d":"9.05%"}},{"$f":"Actif!$E$31/100","v":{"v":0.0605,"d":"6.05%"}},{"$f":"Actif!$E$32/100","v":{"v":0.47350000000000003,"d":"47.35%"}},{"$f":"Actif!$E$33/100","v":{"v":0.0585,"d":"5.85%"}},{"$f":"Actif!$E$29/100","v":{"v":0.027999999999999997,"d":"2.80%"}}]
[null,"#71",32,2026,"F","A_PER",{"v":0.44999999999999996,"d":"0.45"},{"v":0.38999999999999996,"d":"0.39"},0.6,0.6,85,0,{"$f":"ROUND(Primes!$Q$7*V9187,0)","v":4},{"$f":"'BP Financier'!$G$33*(('BP Financier'!$C$19+'BP Financier'!$D$19+'BP Financier'!$E$19+'BP Financier'!$F$19+'BP Financier'!$G$19)/('BP Financier'!$C$16+'BP Financier'!$C$19+'BP Financier'!$D$16+'BP Financier'!$D$19+'BP Financier'!$E$16+'BP Financier'!$E$19+'BP Financier'!$F$16+'BP Financier'!$F$19+'BP Financier'!$G$16+'BP Financier'!$G$19))*V9187","v":{"v":170865.17167118323,"d":"170,865"}},{"v":98065.41872671354,"d":"98,065"},{"$f":"'BP Financier'!$G$44*(('BP Financier'!$C$19+'BP Financier'!$D$19+'BP Financier'!$E$19+'BP Financier'!$F$19+'BP Financier'!$G$19)/('BP Financier'!$C$16+'BP Financier'!$C$19+'BP Financier'!$D$16+'BP Financier'!$D$19+'BP Financier'!$E$16+'BP Financier'!$E$19+'BP Financier'!$C$22+'BP Financier'!$D$22+'BP Financier'!$E$22+'BP Financier'!$F$22+'BP Financier'!$F$19+'BP Financier'!$F$16+'BP Financier'!$G$22+'BP Financier'!$G$19+'BP Financier'!$G$16))*$V9187*X9187/(1-$W9187)","v":{"v":12482.307165636536,"d":"12,482"}},{"$f":"'BP Financier'!$G$44*(('BP Financier'!$C$19+'BP Financier'!$D$19+'BP Financier'!$E$19+'BP Financier'!$F$19+'BP Financier'!$G$19)/('BP Financier'!$C$16+'BP Financier'!$C$19+'BP Financier'!$D$16+'BP Financier'!$D$19+'BP Financier'!$E$16+'BP Financier'!$E$19+'BP Financier'!$C$22+'BP Financier'!$D$22+'BP Financier'!$E$22+'BP Financier'!$F$22+'BP Financier'!$F$19+'BP Financier'!$F$16+'BP Financier'!$G$22+'BP Financier'!$G$19+'BP Financier'!$G$16))*$V9187*Y9187/(1-$W9187)","v":{"v":8344.525784762545,"d":"8,345"}},{"$f":"'BP Financier'!$G$44*(('BP Financier'!$C$19+'BP Financier'!$D$19+'BP Financier'!$E$19+'BP Financier'!$F$19+'BP Financier'!$G$19)/('BP Financier'!$C$16+'BP Financier'!$C$19+'BP Financier'!$D$16+'BP Financier'!$D$19+'BP Financier'!$E$16+'BP Financier'!$E$19+'BP Financier'!$C$22+'BP Financier'!$D$22+'BP Financier'!$E$22+'BP Financier'!$F$22+'BP Financier'!$F$19+'BP Financier'!$F$16+'BP Financier'!$G$22+'BP Financier'!$G$19+'BP Financier'!$G$16))*$V9187*Z9187/(1-$W9187)","v":{"v":65307.982794794465,"d":"65,308"}},{"$f":"'BP Financier'!$G$44*(('BP Financier'!$C$19+'BP Financier'!$D$19+'BP Financier'!$E$19+'BP Financier'!$F$19+'BP Financier'!$G$19)/('BP Financier'!$C$16+'BP Financier'!$C$19+'BP Financier'!$D$16+'BP Financier'!$D$19+'BP Financier'!$E$16+'BP Financier'!$E$19+'BP Financier'!$C$22+'BP Financier'!$D$22+'BP Financier'!$E$22+'BP Financier'!$F$22+'BP Financier'!$F$19+'BP Financier'!$F$16+'BP Financier'!$G$22+'BP Financier'!$G$19+'BP Financier'!$G$16))*$V9187*AA9187/(1-$W9187)","v":{"v":8068.673692704279,"d":"8,069"}},{"$f":"'BP Financier'!$G$44*(('BP Financier'!$C$19+'BP Financier'!$D$19+'BP Financier'!$E$19+'BP Financier'!$F$19+'BP Financier'!$G$19)/('BP Financier'!$C$16+'BP Financier'!$C$19+'BP Financier'!$D$16+'BP Financier'!$D$19+'BP Financier'!$E$16+'BP Financier'!$E$19+'BP Financier'!$C$22+'BP Financier'!$D$22+'BP Financier'!$E$22+'BP Financier'!$F$22+'BP Financier'!$F$19+'BP Financier'!$F$16+'BP Financier'!$G$22+'BP Financier'!$G$19+'BP Financier'!$G$16))*$V9187*AB9187/(1-$W9187)","v":{"v":3861.929288815723,"d":"3,862"}},null,{"v":0.003,"d":"0.30%"},{"$f":"Actif!$E$28/100","v":{"v":0.28900000000000003,"d":"28.90%"}},{"$f":"Actif!$E$30/100","v":{"v":0.09050000000000001,"d":"9.05%"}},{"$f":"Actif!$E$31/100","v":{"v":0.0605,"d":"6.05%"}},{"$f":"Actif!$E$32/100","v":{"v":0.47350000000000003,"d":"47.35%"}},{"$f":"Actif!$E$33/100","v":{"v":0.0585,"d":"5.85%"}},{"$f":"Actif!$E$29/100","v":{"v":0.027999999999999997,"d":"2.80%"}}]
[null,"#72",32,2028,"F","A_PER",{"v":0.44999999999999996,"d":"0.45"},{"v":0.38999999999999996,"d":"0.39"},0.6,0.6,85,0,{"$f":"ROUND(Primes!$Q$7*V9188,0)","v":4},{"$f":"'BP Financier'!$G$33*(('BP Financier'!$C$19+'BP Financier'!$D$19+'BP Financier'!$E$19+'BP Financier'!$F$19+'BP Financier'!$G$19)/('BP Financier'!$C$16+'BP Financier'!$C$19+'BP Financier'!$D$16+'BP Financier'!$D$19+'BP Financier'!$E$16+'BP Financier'!$E$19+'BP Financier'!$F$16+'BP Financier'!$F$19+'BP Financier'!$G$16+'BP Financier'!$G$19))*V9188","v":{"v":170865.17167118323,"d":"170,865"}},{"v":98065.41872671354,"d":"98,065"},{"$f":"'BP Financier'!$G$44*(('BP Financier'!$C$19+'BP Financier'!$D$19+'BP Financier'!$E$19+'BP Financier'!$F$19+'BP Financier'!$G$19)/('BP Financier'!$C$16+'BP Financier'!$C$19+'BP Financier'!$D$16+'BP Financier'!$D$19+'BP Financier'!$E$16+'BP Financier'!$E$19+'BP Financier'!$C$22+'BP Financier'!$D$22+'BP Financier'!$E$22+'BP Financier'!$F$22+'BP Financier'!$F$19+'BP Financier'!$F$16+'BP Financier'!$G$22+'BP Financier'!$G$19+'BP Financier'!$G$16))*$V9188*X9188/(1-$W9188)","v":{"v":12482.307165636536,"d":"12,482"}},{"$f":"'BP Financier'!$G$44*(('BP Financier'!$C$19+'BP Financier'!$D$19+'BP Financier'!$E$19+'BP Financier'!$F$19+'BP Financier'!$G$19)/('BP Financier'!$C$16+'BP Financier'!$C$19+'BP Financier'!$D$16+'BP Financier'!$D$19+'BP Financier'!$E$16+'BP Financier'!$E$19+'BP Financier'!$C$22+'BP Financier'!$D$22+'BP Financier'!$E$22+'BP Financier'!$F$22+'BP Financier'!$F$19+'BP Financier'!$F$16+'BP Financier'!$G$22+'BP Financier'!$G$19+'BP Financier'!$G$16))*$V9188*Y9188/(1-$W9188)","v":{"v":8344.525784762545,"d":"8,345"}},{"$f":"'BP Financier'!$G$44*(('BP Financier'!$C$19+'BP Financier'!$D$19+'BP Financier'!$E$19+'BP Financier'!$F$19+'BP Financier'!$G$19)/('BP Financier'!$C$16+'BP Financier'!$C$19+'BP Financier'!$D$16+'BP Financier'!$D$19+'BP Financier'!$E$16+'BP Financier'!$E$19+'BP Financier'!$C$22+'BP Financier'!$D$22+'BP Financier'!$E$22+'BP Financier'!$F$22+'BP Financier'!$F$19+'BP Financier'!$F$16+'BP Financier'!$G$22+'BP Financier'!$G$19+'BP Financier'!$G$16))*$V9188*Z9188/(1-$W9188)","v":{"v":65307.982794794465,"d":"65,308"}},{"$f":"'BP Financier'!$G$44*(('BP Financier'!$C$19+'BP Financier'!$D$19+'BP Financier'!$E$19+'BP Financier'!$F$19+'BP Financier'!$G$19)/('BP Financier'!$C$16+'BP Financier'!$C$19+'BP Financier'!$D$16+'BP Financier'!$D$19+'BP Financier'!$E$16+'BP Financier'!$E$19+'BP Financier'!$C$22+'BP Financier'!$D$22+'BP Financier'!$E$22+'BP Financier'!$F$22+'BP Financier'!$F$19+'BP Financier'!$F$16+'BP Financier'!$G$22+'BP Financier'!$G$19+'BP Financier'!$G$16))*$V9188*AA9188/(1-$W9188)","v":{"v":8068.673692704279,"d":"8,069"}},{"$f":"'BP Financier'!$G$44*(('BP Financier'!$C$19+'BP Financier'!$D$19+'BP Financier'!$E$19+'BP Financier'!$F$19+'BP Financier'!$G$19)/('BP Financier'!$C$16+'BP Financier'!$C$19+'BP Financier'!$D$16+'BP Financier'!$D$19+'BP Financier'!$E$16+'BP Financier'!$E$19+'BP Financier'!$C$22+'BP Financier'!$D$22+'BP Financier'!$E$22+'BP Financier'!$F$22+'BP Financier'!$F$19+'BP Financier'!$F$16+'BP Financier'!$G$22+'BP Financier'!$G$19+'BP Financier'!$G$16))*$V9188*AB9188/(1-$W9188)","v":{"v":3861.929288815723,"d":"3,862"}},null,{"v":0.003,"d":"0.30%"},{"$f":"Actif!$E$28/100","v":{"v":0.28900000000000003,"d":"28.90%"}},{"$f":"Actif!$E$30/100","v":{"v":0.09050000000000001,"d":"9.05%"}},{"$f":"Actif!$E$31/100","v":{"v":0.0605,"d":"6.05%"}},{"$f":"Actif!$E$32/100","v":{"v":0.47350000000000003,"d":"47.35%"}},{"$f":"Actif!$E$33/100","v":{"v":0.0585,"d":"5.85%"}},{"$f":"Actif!$E$29/100","v":{"v":0.027999999999999997,"d":"2.80%"}}]
[null,"#73",32,2029,"F","A_PER",{"v":0.44999999999999996,"d":"0.45"},{"v":0.38999999999999996,"d":"0.39"},0.6,0.6,85,0,{"$f":"ROUND(Primes!$Q$7*V9189,0)","v":4},{"$f":"'BP Financier'!$G$33*(('BP Financier'!$C$19+'BP Financier'!$D$19+'BP Financier'!$E$19+'BP Financier'!$F$19+'BP Financier'!$G$19)/('BP Financier'!$C$16+'BP Financier'!$C$19+'BP Financier'!$D$16+'BP Financier'!$D$19+'BP Financier'!$E$16+'BP Financier'!$E$19+'BP Financier'!$F$16+'BP Financier'!$F$19+'BP Financier'!$G$16+'BP Financier'!$G$19))*V9189","v":{"v":170865.17167118323,"d":"170,865"}},{"v":98065.41872671354,"d":"98,065"},{"$f":"'BP Financier'!$G$44*(('BP Financier'!$C$19+'BP Financier'!$D$19+'BP Financier'!$E$19+'BP Financier'!$F$19+'BP Financier'!$G$19)/('BP Financier'!$C$16+'BP Financier'!$C$19+'BP Financier'!$D$16+'BP Financier'!$D$19+'BP Financier'!$E$16+'BP Financier'!$E$19+'BP Financier'!$C$22+'BP Financier'!$D$22+'BP Financier'!$E$22+'BP Financier'!$F$22+'BP Financier'!$F$19+'BP Financier'!$F$16+'BP Financier'!$G$22+'BP Financier'!$G$19+'BP Financier'!$G$16))*$V9189*X9189/(1-$W9189)","v":{"v":12482.307165636536,"d":"12,482"}},{"$f":"'BP Financier'!$G$44*(('BP Financier'!$C$19+'BP Financier'!$D$19+'BP Financier'!$E$19+'BP Financier'!$F$19+'BP Financier'!$G$19)/('BP Financier'!$C$16+'BP Financier'!$C$19+'BP Financier'!$D$16+'BP Financier'!$D$19+'BP Financier'!$E$16+'BP Financier'!$E$19+'BP Financier'!$C$22+'BP Financier'!$D$22+'BP Financier'!$E$22+'BP Financier'!$F$22+'BP Financier'!$F$19+'BP Financier'!$F$16+'BP Financier'!$G$22+'BP Financier'!$G$19+'BP Financier'!$G$16))*$V9189*Y9189/(1-$W9189)","v":{"v":8344.525784762545,"d":"8,345"}},{"$f":"'BP Financier'!$G$44*(('BP Financier'!$C$19+'BP Financier'!$D$19+'BP Financier'!$E$19+'BP Financier'!$F$19+'BP Financier'!$G$19)/('BP Financier'!$C$16+'BP Financier'!$C$19+'BP Financier'!$D$16+'BP Financier'!$D$19+'BP Financier'!$E$16+'BP Financier'!$E$19+'BP Financier'!$C$22+'BP Financier'!$D$22+'BP Financier'!$E$22+'BP Financier'!$F$22+'BP Financier'!$F$19+'BP Financier'!$F$16+'BP Financier'!$G$22+'BP Financier'!$G$19+'BP Financier'!$G$16))*$V9189*Z9189/(1-$W9189)","v":{"v":65307.982794794465,"d":"65,308"}},{"$f":"'BP Financier'!$G$44*(('BP Financier'!$C$19+'BP Financier'!$D$19+'BP Financier'!$E$19+'BP Financier'!$F$19+'BP Financier'!$G$19)/('BP Financier'!$C$16+'BP Financier'!$C$19+'BP Financier'!$D$16+'BP Financier'!$D$19+'BP Financier'!$E$16+'BP Financier'!$E$19+'BP Financier'!$C$22+'BP Financier'!$D$22+'BP Financier'!$E$22+'BP Financier'!$F$22+'BP Financier'!$F$19+'BP Financier'!$F$16+'BP Financier'!$G$22+'BP Financier'!$G$19+'BP Financier'!$G$16))*$V9189*AA9189/(1-$W9189)","v":{"v":8068.673692704279,"d":"8,069"}},{"$f":"'BP Financier'!$G$44*(('BP Financier'!$C$19+'BP Financier'!$D$19+'BP Financier'!$E$19+'BP Financier'!$F$19+'BP Financier'!$G$19)/('BP Financier'!$C$16+'BP Financier'!$C$19+'BP Financier'!$D$16+'BP Financier'!$D$19+'BP Financier'!$E$16+'BP Financier'!$E$19+'BP Financier'!$C$22+'BP Financier'!$D$22+'BP Financier'!$E$22+'BP Financier'!$F$22+'BP Financier'!$F$19+'BP Financier'!$F$16+'BP Financier'!$G$22+'BP Financier'!$G$19+'BP Financier'!$G$16))*$V9189*AB9189/(1-$W9189)","v":{"v":3861.929288815723,"d":"3,862"}},null,{"v":0.003,"d":"0.30%"},{"$f":"Actif!$E$28/100","v":{"v":0.28900000000000003,"d":"28.90%"}},{"$f":"Actif!$E$30/100","v":{"v":0.09050000000000001,"d":"9.05%"}},{"$f":"Actif!$E$31/100","v":{"v":0.0605,"d":"6.05%"}},{"$f":"Actif!$E$32/100","v":{"v":0.47350000000000003,"d":"47.35%"}},{"$f":"Actif!$E$33/100","v":{"v":0.0585,"d":"5.85%"}},{"$f":"Actif!$E$29/100","v":{"v":0.027999999999999997,"d":"2.80%"}}]
[null,"#74",32,2030,"F","A_PER",{"v":0.44999999999999996,"d":"0.45"},{"v":0.38999999999999996,"d":"0.39"},0.6,0.6,85,0,{"$f":"ROUND(Primes!$Q$7*V9190,0)","v":4},{"$f":"'BP Financier'!$G$33*(('BP Financier'!$C$19+'BP Financier'!$D$19+'BP Financier'!$E$19+'BP Financier'!$F$19+'BP Financier'!$G$19)/('BP Financier'!$C$16+'BP Financier'!$C$19+'BP Financier'!$D$16+'BP Financier'!$D$19+'BP Financier'!$E$16+'BP Financier'!$E$19+'BP Financier'!$F$16+'BP Financier'!$F$19+'BP Financier'!$G$16+'BP Financier'!$G$19))*V9190","v":{"v":170865.17167118323,"d":"170,865"}},{"v":98065.41872671354,"d":"98,065"},{"$f":"'BP Financier'!$G$44*(('BP Financier'!$C$19+'BP Financier'!$D$19+'BP Financier'!$E$19+'BP Financier'!$F$19+'BP Financier'!$G$19)/('BP Financier'!$C$16+'BP Financier'!$C$19+'BP Financier'!$D$16+'BP Financier'!$D$19+'BP Financier'!$E$16+'BP Financier'!$E$19+'BP Financier'!$C$22+'BP Financier'!$D$22+'BP Financier'!$E$22+'BP Financier'!$F$22+'BP Financier'!$F$19+'BP Financier'!$F$16+'BP Financier'!$G$22+'BP Financier'!$G$19+'BP Financier'!$G$16))*$V9190*X9190/(1-$W9190)","v":{"v":12482.307165636536,"d":"12,482"}},{"$f":"'BP Financier'!$G$44*(('BP Financier'!$C$19+'BP Financier'!$D$19+'BP Financier'!$E$19+'BP Financier'!$F$19+'BP Financier'!$G$19)/('BP Financier'!$C$16+'BP Financier'!$C$19+'BP Financier'!$D$16+'BP Financier'!$D$19+'BP Financier'!$E$16+'BP Financier'!$E$19+'BP Financier'!$C$22+'BP Financier'!$D$22+'BP Financier'!$E$22+'BP Financier'!$F$22+'BP Financier'!$F$19+'BP Financier'!$F$16+'BP Financier'!$G$22+'BP Financier'!$G$19+'BP Financier'!$G$16))*$V9190*Y9190/(1-$W9190)","v":{"v":8344.525784762545,"d":"8,345"}},{"$f":"'BP Financier'!$G$44*(('BP Financier'!$C$19+'BP Financier'!$D$19+'BP Financier'!$E$19+'BP Financier'!$F$19+'BP Financier'!$G$19)/('BP Financier'!$C$16+'BP Financier'!$C$19+'BP Financier'!$D$16+'BP Financier'!$D$19+'BP Financier'!$E$16+'BP Financier'!$E$19+'BP Financier'!$C$22+'BP Financier'!$D$22+'BP Financier'!$E$22+'BP Financier'!$F$22+'BP Financier'!$F$19+'BP Financier'!$F$16+'BP Financier'!$G$22+'BP Financier'!$G$19+'BP Financier'!$G$16))*$V9190*Z9190/(1-$W9190)","v":{"v":65307.982794794465,"d":"65,308"}},{"$f":"'BP Financier'!$G$44*(('BP Financier'!$C$19+'BP Financier'!$D$19+'BP Financier'!$E$19+'BP Financier'!$F$19+'BP Financier'!$G$19)/('BP Financier'!$C$16+'BP Financier'!$C$19+'BP Financier'!$D$16+'BP Financier'!$D$19+'BP Financier'!$E$16+'BP Financier'!$E$19+'BP Financier'!$C$22+'BP Financier'!$D$22+'BP Financier'!$E$22+'BP Financier'!$F$22+'BP Financier'!$F$19+'BP Financier'!$F$16+'BP Financier'!$G$22+'BP Financier'!$G$19+'BP Financier'!$G$16))*$V9190*AA9190/(1-$W9190)","v":{"v":8068.673692704279,"d":"8,069"}},{"$f":"'BP Financier'!$G$44*(('BP Financier'!$C$19+'BP Financier'!$D$19+'BP Financier'!$E$19+'BP Financier'!$F$19+'BP Financier'!$G$19)/('BP Financier'!$C$16+'BP Financier'!$C$19+'BP Financier'!$D$16+'BP Financier'!$D$19+'BP Financier'!$E$16+'BP Financier'!$E$19+'BP Financier'!$C$22+'BP Financier'!$D$22+'BP Financier'!$E$22+'BP Financier'!$F$22+'BP Financier'!$F$19+'BP Financier'!$F$16+'BP Financier'!$G$22+'BP Financier'!$G$19+'BP Financier'!$G$16))*$V9190*AB9190/(1-$W9190)","v":{"v":3861.929288815723,"d":"3,862"}},null,{"v":0.003,"d":"0.30%"},{"$f":"Actif!$E$28/100","v":{"v":0.28900000000000003,"d":"28.90%"}},{"$f":"Actif!$E$30/100","v":{"v":0.09050000000000001,"d":"9.05%"}},{"$f":"Actif!$E$31/100","v":{"v":0.0605,"d":"6.05%"}},{"$f":"Actif!$E$32/100","v":{"v":0.47350000000000003,"d":"47.35%"}},{"$f":"Actif!$E$33/100","v":{"v":0.0585,"d":"5.85%"}},{"$f":"Actif!$E$29/100","v":{"v":0.027999999999999997,"d":"2.80%"}}]
[null,"#75",32,2031,"F","A_PER",{"v":0.44999999999999996,"d":"0.45"},{"v":0.38999999999999996,"d":"0.39"},0.6,0.6,85,0,{"$f":"ROUND(Primes!$Q$7*V9191,0)","v":4},{"$f":"'BP Financier'!$G$33*(('BP Financier'!$C$19+'BP Financier'!$D$19+'BP Financier'!$E$19+'BP Financier'!$F$19+'BP Financier'!$G$19)/('BP Financier'!$C$16+'BP Financier'!$C$19+'BP Financier'!$D$16+'BP Financier'!$D$19+'BP Financier'!$E$16+'BP Financier'!$E$19+'BP Financier'!$F$16+'BP Financier'!$F$19+'BP Financier'!$G$16+'BP Financier'!$G$19))*V9191","v":{"v":170865.17167118323,"d":"170,865"}},{"v":98065.41872671354,"d":"98,065"},{"$f":"'BP Financier'!$G$44*(('BP Financier'!$C$19+'BP Financier'!$D$19+'BP Financier'!$E$19+'BP Financier'!$F$19+'BP Financier'!$G$19)/('BP Financier'!$C$16+'BP Financier'!$C$19+'BP Financier'!$D$16+'BP Financier'!$D$19+'BP Financier'!$E$16+'BP Financier'!$E$19+'BP Financier'!$C$22+'BP Financier'!$D$22+'BP Financier'!$E$22+'BP Financier'!$F$22+'BP Financier'!$F$19+'BP Financier'!$F$16+'BP Financier'!$G$22+'BP Financier'!$G$19+'BP Financier'!$G$16))*$V9191*X9191/(1-$W9191)","v":{"v":12482.307165636536,"d":"12,482"}},{"$f":"'BP Financier'!$G$44*(('BP Financier'!$C$19+'BP Financier'!$D$19+'BP Financier'!$E$19+'BP Financier'!$F$19+'BP Financier'!$G$19)/('BP Financier'!$C$16+'BP Financier'!$C$19+'BP Financier'!$D$16+'BP Financier'!$D$19+'BP Financier'!$E$16+'BP Financier'!$E$19+'BP Financier'!$C$22+'BP Financier'!$D$22+'BP Financier'!$E$22+'BP Financier'!$F$22+'BP Financier'!$F$19+'BP Financier'!$F$16+'BP Financier'!$G$22+'BP Financier'!$G$19+'BP Financier'!$G$16))*$V9191*Y9191/(1-$W9191)","v":{"v":8344.525784762545,"d":"8,345"}},{"$f":"'BP Financier'!$G$44*(('BP Financier'!$C$19+'BP Financier'!$D$19+'BP Financier'!$E$19+'BP Financier'!$F$19+'BP Financier'!$G$19)/('BP Financier'!$C$16+'BP Financier'!$C$19+'BP Financier'!$D$16+'BP Financier'!$D$19+'BP Financier'!$E$16+'BP Financier'!$E$19+'BP Financier'!$C$22+'BP Financier'!$D$22+'BP Financier'!$E$22+'BP Financier'!$F$22+'BP Financier'!$F$19+'BP Financier'!$F$16+'BP Financier'!$G$22+'BP Financier'!$G$19+'BP Financier'!$G$16))*$V9191*Z9191/(1-$W9191)","v":{"v":65307.982794794465,"d":"65,308"}},{"$f":"'BP Financier'!$G$44*(('BP Financier'!$C$19+'BP Financier'!$D$19+'BP Financier'!$E$19+'BP Financier'!$F$19+'BP Financier'!$G$19)/('BP Financier'!$C$16+'BP Financier'!$C$19+'BP Financier'!$D$16+'BP Financier'!$D$19+'BP Financier'!$E$16+'BP Financier'!$E$19+'BP Financier'!$C$22+'BP Financier'!$D$22+'BP Financier'!$E$22+'BP Financier'!$F$22+'BP Financier'!$F$19+'BP Financier'!$F$16+'BP Financier'!$G$22+'BP Financier'!$G$19+'BP Financier'!$G$16))*$V9191*AA9191/(1-$W9191)","v":{"v":8068.673692704279,"d":"8,069"}},{"$f":"'BP Financier'!$G$44*(('BP Financier'!$C$19+'BP Financier'!$D$19+'BP Financier'!$E$19+'BP Financier'!$F$19+'BP Financier'!$G$19)/('BP Financier'!$C$16+'BP Financier'!$C$19+'BP Financier'!$D$16+'BP Financier'!$D$19+'BP Financier'!$E$16+'BP Financier'!$E$19+'BP Financier'!$C$22+'BP Financier'!$D$22+'BP Financier'!$E$22+'BP Financier'!$F$22+'BP Financier'!$F$19+'BP Financier'!$F$16+'BP Financier'!$G$22+'BP Financier'!$G$19+'BP Financier'!$G$16))*$V9191*AB9191/(1-$W9191)","v":{"v":3861.929288815723,"d":"3,862"}},null,{"v":0.003,"d":"0.30%"},{"$f":"Actif!$E$28/100","v":{"v":0.28900000000000003,"d":"28.90%"}},{"$f":"Actif!$E$30/100","v":{"v":0.09050000000000001,"d":"9.05%"}},{"$f":"Actif!$E$31/100","v":{"v":0.0605,"d":"6.05%"}},{"$f":"Actif!$E$32/100","v":{"v":0.47350000000000003,"d":"47.35%"}},{"$f":"Actif!$E$33/100","v":{"v":0.0585,"d":"5.85%"}},{"$f":"Actif!$E$29/100","v":{"v":0.027999999999999997,"d":"2.80%"}}]
[null,"#76",33,2026,"H","A_PER",{"v":0.44999999999999996,"d":"0.45"},{"v":0.38999999999999996,"d":"0.39"},0.6,0.6,85,0,{"$f":"ROUND(Primes!$Q$7*V9192,0)","v":4},{"$f":"'BP Financier'!$G$33*(('BP Financier'!$C$19+'BP Financier'!$D$19+'BP Financier'!$E$19+'BP Financier'!$F$19+'BP Financier'!$G$19)/('BP Financier'!$C$16+'BP Financier'!$C$19+'BP Financier'!$D$16+'BP Financier'!$D$19+'BP Financier'!$E$16+'BP Financier'!$E$19+'BP Financier'!$F$16+'BP Financier'!$F$19+'BP Financier'!$G$16+'BP Financier'!$G$19))*V9192","v":{"v":170865.17167118323,"d":"170,865"}},{"v":98065.41872671354,"d":"98,065"},{"$f":"'BP Financier'!$G$44*(('BP Financier'!$C$19+'BP Financier'!$D$19+'BP Financier'!$E$19+'BP Financier'!$F$19+'BP Financier'!$G$19)/('BP Financier'!$C$16+'BP Financier'!$C$19+'BP Financier'!$D$16+'BP Financier'!$D$19+'BP Financier'!$E$16+'BP Financier'!$E$19+'BP Financier'!$C$22+'BP Financier'!$D$22+'BP Financier'!$E$22+'BP Financier'!$F$22+'BP Financier'!$F$19+'BP Financier'!$F$16+'BP Financier'!$G$22+'BP Financier'!$G$19+'BP Financier'!$G$16))*$V9192*X9192/(1-$W9192)","v":{"v":12482.307165636536,"d":"12,482"}},{"$f":"'BP Financier'!$G$44*(('BP Financier'!$C$19+'BP Financier'!$D$19+'BP Financier'!$E$19+'BP Financier'!$F$19+'BP Financier'!$G$19)/('BP Financier'!$C$16+'BP Financier'!$C$19+'BP Financier'!$D$16+'BP Financier'!$D$19+'BP Financier'!$E$16+'BP Financier'!$E$19+'BP Financier'!$C$22+'BP Financier'!$D$22+'BP Financier'!$E$22+'BP Financier'!$F$22+'BP Financier'!$F$19+'BP Financier'!$F$16+'BP Financier'!$G$22+'BP Financier'!$G$19+'BP Financier'!$G$16))*$V9192*Y9192/(1-$W9192)","v":{"v":8344.525784762545,"d":"8,345"}},{"$f":"'BP Financier'!$G$44*(('BP Financier'!$C$19+'BP Financier'!$D$19+'BP Financier'!$E$19+'BP Financier'!$F$19+'BP Financier'!$G$19)/('BP Financier'!$C$16+'BP Financier'!$C$19+'BP Financier'!$D$16+'BP Financier'!$D$19+'BP Financier'!$E$16+'BP Financier'!$E$19+'BP Financier'!$C$22+'BP Financier'!$D$22+'BP Financier'!$E$22+'BP Financier'!$F$22+'BP Financier'!$F$19+'BP Financier'!$F$16+'BP Financier'!$G$22+'BP Financier'!$G$19+'BP Financier'!$G$16))*$V9192*Z9192/(1-$W9192)","v":{"v":65307.982794794465,"d":"65,308"}},{"$f":"'BP Financier'!$G$44*(('BP Financier'!$C$19+'BP Financier'!$D$19+'BP Financier'!$E$19+'BP Financier'!$F$19+'BP Financier'!$G$19)/('BP Financier'!$C$16+'BP Financier'!$C$19+'BP Financier'!$D$16+'BP Financier'!$D$19+'BP Financier'!$E$16+'BP Financier'!$E$19+'BP Financier'!$C$22+'BP Financier'!$D$22+'BP Financier'!$E$22+'BP Financier'!$F$22+'BP Financier'!$F$19+'BP Financier'!$F$16+'BP Financier'!$G$22+'BP Financier'!$G$19+'BP Financier'!$G$16))*$V9192*AA9192/(1-$W9192)","v":{"v":8068.673692704279,"d":"8,069"}},{"$f":"'BP Financier'!$G$44*(('BP Financier'!$C$19+'BP Financier'!$D$19+'BP Financier'!$E$19+'BP Financier'!$F$19+'BP Financier'!$G$19)/('BP Financier'!$C$16+'BP Financier'!$C$19+'BP Financier'!$D$16+'BP Financier'!$D$19+'BP Financier'!$E$16+'BP Financier'!$E$19+'BP Financier'!$C$22+'BP Financier'!$D$22+'BP Financier'!$E$22+'BP Financier'!$F$22+'BP Financier'!$F$19+'BP Financier'!$F$16+'BP Financier'!$G$22+'BP Financier'!$G$19+'BP Financier'!$G$16))*$V9192*AB9192/(1-$W9192)","v":{"v":3861.929288815723,"d":"3,862"}},null,{"v":0.003,"d":"0.30%"},{"$f":"Actif!$E$28/100","v":{"v":0.28900000000000003,"d":"28.90%"}},{"$f":"Actif!$E$30/100","v":{"v":0.09050000000000001,"d":"9.05%"}},{"$f":"Actif!$E$31/100","v":{"v":0.0605,"d":"6.05%"}},{"$f":"Actif!$E$32/100","v":{"v":0.47350000000000003,"d":"47.35%"}},{"$f":"Actif!$E$33/100","v":{"v":0.0585,"d":"5.85%"}},{"$f":"Actif!$E$29/100","v":{"v":0.027999999999999997,"d":"2.80%"}}]
[null,"#77",33,2028,"H","A_PER",{"v":0.44999999999999996,"d":"0.45"},{"v":0.38999999999999996,"d":"0.39"},0.6,0.6,85,0,{"$f":"ROUND(Primes!$Q$7*V9193,0)","v":4},{"$f":"'BP Financier'!$G$33*(('BP Financier'!$C$19+'BP Financier'!$D$19+'BP Financier'!$E$19+'BP Financier'!$F$19+'BP Financier'!$G$19)/('BP Financier'!$C$16+'BP Financier'!$C$19+'BP Financier'!$D$16+'BP Financier'!$D$19+'BP Financier'!$E$16+'BP Financier'!$E$19+'BP Financier'!$F$16+'BP Financier'!$F$19+'BP Financier'!$G$16+'BP Financier'!$G$19))*V9193","v":{"v":170865.17167118323,"d":"170,865"}},{"v":98065.41872671354,"d":"98,065"},{"$f":"'BP Financier'!$G$44*(('BP Financier'!$C$19+'BP Financier'!$D$19+'BP Financier'!$E$19+'BP Financier'!$F$19+'BP Financier'!$G$19)/('BP Financier'!$C$16+'BP Financier'!$C$19+'BP Financier'!$D$16+'BP Financier'!$D$19+'BP Financier'!$E$16+'BP Financier'!$E$19+'BP Financier'!$C$22+'BP Financier'!$D$22+'BP Financier'!$E$22+'BP Financier'!$F$22+'BP Financier'!$F$19+'BP Financier'!$F$16+'BP Financier'!$G$22+'BP Financier'!$G$19+'BP Financier'!$G$16))*$V9193*X9193/(1-$W9193)","v":{"v":12482.307165636536,"d":"12,482"}},{"$f":"'BP Financier'!$G$44*(('BP Financier'!$C$19+'BP Financier'!$D$19+'BP Financier'!$E$19+'BP Financier'!$F$19+'BP Financier'!$G$19)/('BP Financier'!$C$16+'BP Financier'!$C$19+'BP Financier'!$D$16+'BP Financier'!$D$19+'BP Financier'!$E$16+'BP Financier'!$E$19+'BP Financier'!$C$22+'BP Financier'!$D$22+'BP Financier'!$E$22+'BP Financier'!$F$22+'BP Financier'!$F$19+'BP Financier'!$F$16+'BP Financier'!$G$22+'BP Financier'!$G$19+'BP Financier'!$G$16))*$V9193*Y9193/(1-$W9193)","v":{"v":8344.525784762545,"d":"8,345"}},{"$f":"'BP Financier'!$G$44*(('BP Financier'!$C$19+'BP Financier'!$D$19+'BP Financier'!$E$19+'BP Financier'!$F$19+'BP Financier'!$G$19)/('BP Financier'!$C$16+'BP Financier'!$C$19+'BP Financier'!$D$16+'BP Financier'!$D$19+'BP Financier'!$E$16+'BP Financier'!$E$19+'BP Financier'!$C$22+'BP Financier'!$D$22+'BP Financier'!$E$22+'BP Financier'!$F$22+'BP Financier'!$F$19+'BP Financier'!$F$16+'BP Financier'!$G$22+'BP Financier'!$G$19+'BP Financier'!$G$16))*$V9193*Z9193/(1-$W9193)","v":{"v":65307.982794794465,"d":"65,308"}},{"$f":"'BP Financier'!$G$44*(('BP Financier'!$C$19+'BP Financier'!$D$19+'BP Financier'!$E$19+'BP Financier'!$F$19+'BP Financier'!$G$19)/('BP Financier'!$C$16+'BP Financier'!$C$19+'BP Financier'!$D$16+'BP Financier'!$D$19+'BP Financier'!$E$16+'BP Financier'!$E$19+'BP Financier'!$C$22+'BP Financier'!$D$22+'BP Financier'!$E$22+'BP Financier'!$F$22+'BP Financier'!$F$19+'BP Financier'!$F$16+'BP Financier'!$G$22+'BP Financier'!$G$19+'BP Financier'!$G$16))*$V9193*AA9193/(1-$W9193)","v":{"v":8068.673692704279,"d":"8,069"}},{"$f":"'BP Financier'!$G$44*(('BP Financier'!$C$19+'BP Financier'!$D$19+'BP Financier'!$E$19+'BP Financier'!$F$19+'BP Financier'!$G$19)/('BP Financier'!$C$16+'BP Financier'!$C$19+'BP Financier'!$D$16+'BP Financier'!$D$19+'BP Financier'!$E$16+'BP Financier'!$E$19+'BP Financier'!$C$22+'BP Financier'!$D$22+'BP Financier'!$E$22+'BP Financier'!$F$22+'BP Financier'!$F$19+'BP Financier'!$F$16+'BP Financier'!$G$22+'BP Financier'!$G$19+'BP Financier'!$G$16))*$V9193*AB9193/(1-$W9193)","v":{"v":3861.929288815723,"d":"3,862"}},null,{"v":0.003,"d":"0.30%"},{"$f":"Actif!$E$28/100","v":{"v":0.28900000000000003,"d":"28.90%"}},{"$f":"Actif!$E$30/100","v":{"v":0.09050000000000001,"d":"9.05%"}},{"$f":"Actif!$E$31/100","v":{"v":0.0605,"d":"6.05%"}},{"$f":"Actif!$E$32/100","v":{"v":0.47350000000000003,"d":"47.35%"}},{"$f":"Actif!$E$33/100","v":{"v":0.0585,"d":"5.85%"}},{"$f":"Actif!$E$29/100","v":{"v":0.027999999999999997,"d":"2.80%"}}]
[null,"#78",33,2029,"H","A_PER",{"v":0.44999999999999996,"d":"0.45"},{"v":0.38999999999999996,"d":"0.39"},0.6,0.6,85,0,{"$f":"ROUND(Primes!$Q$7*V9194,0)","v":4},{"$f":"'BP Financier'!$G$33*(('BP Financier'!$C$19+'BP Financier'!$D$19+'BP Financier'!$E$19+'BP Financier'!$F$19+'BP Financier'!$G$19)/('BP Financier'!$C$16+'BP Financier'!$C$19+'BP Financier'!$D$16+'BP Financier'!$D$19+'BP Financier'!$E$16+'BP Financier'!$E$19+'BP Financier'!$F$16+'BP Financier'!$F$19+'BP Financier'!$G$16+'BP Financier'!$G$19))*V9194","v":{"v":170865.17167118323,"d":"170,865"}},{"v":98065.41872671354,"d":"98,065"},{"$f":"'BP Financier'!$G$44*(('BP Financier'!$C$19+'BP Financier'!$D$19+'BP Financier'!$E$19+'BP Financier'!$F$19+'BP Financier'!$G$19)/('BP Financier'!$C$16+'BP Financier'!$C$19+'BP Financier'!$D$16+'BP Financier'!$D$19+'BP Financier'!$E$16+'BP Financier'!$E$19+'BP Financier'!$C$22+'BP Financier'!$D$22+'BP Financier'!$E$22+'BP Financier'!$F$22+'BP Financier'!$F$19+'BP Financier'!$F$16+'BP Financier'!$G$22+'BP Financier'!$G$19+'BP Financier'!$G$16))*$V9194*X9194/(1-$W9194)","v":{"v":12482.307165636536,"d":"12,482"}},{"$f":"'BP Financier'!$G$44*(('BP Financier'!$C$19+'BP Financier'!$D$19+'BP Financier'!$E$19+'BP Financier'!$F$19+'BP Financier'!$G$19)/('BP Financier'!$C$16+'BP Financier'!$C$19+'BP Financier'!$D$16+'BP Financier'!$D$19+'BP Financier'!$E$16+'BP Financier'!$E$19+'BP Financier'!$C$22+'BP Financier'!$D$22+'BP Financier'!$E$22+'BP Financier'!$F$22+'BP Financier'!$F$19+'BP Financier'!$F$16+'BP Financier'!$G$22+'BP Financier'!$G$19+'BP Financier'!$G$16))*$V9194*Y9194/(1-$W9194)","v":{"v":8344.525784762545,"d":"8,345"}},{"$f":"'BP Financier'!$G$44*(('BP Financier'!$C$19+'BP Financier'!$D$19+'BP Financier'!$E$19+'BP Financier'!$F$19+'BP Financier'!$G$19)/('BP Financier'!$C$16+'BP Financier'!$C$19+'BP Financier'!$D$16+'BP Financier'!$D$19+'BP Financier'!$E$16+'BP Financier'!$E$19+'BP Financier'!$C$22+'BP Financier'!$D$22+'BP Financier'!$E$22+'BP Financier'!$F$22+'BP Financier'!$F$19+'BP Financier'!$F$16+'BP Financier'!$G$22+'BP Financier'!$G$19+'BP Financier'!$G$16))*$V9194*Z9194/(1-$W9194)","v":{"v":65307.982794794465,"d":"65,308"}},{"$f":"'BP Financier'!$G$44*(('BP Financier'!$C$19+'BP Financier'!$D$19+'BP Financier'!$E$19+'BP Financier'!$F$19+'BP Financier'!$G$19)/('BP Financier'!$C$16+'BP Financier'!$C$19+'BP Financier'!$D$16+'BP Financier'!$D$19+'BP Financier'!$E$16+'BP Financier'!$E$19+'BP Financier'!$C$22+'BP Financier'!$D$22+'BP Financier'!$E$22+'BP Financier'!$F$22+'BP Financier'!$F$19+'BP Financier'!$F$16+'BP Financier'!$G$22+'BP Financier'!$G$19+'BP Financier'!$G$16))*$V9194*AA9194/(1-$W9194)","v":{"v":8068.673692704279,"d":"8,069"}},{"$f":"'BP Financier'!$G$44*(('BP Financier'!$C$19+'BP Financier'!$D$19+'BP Financier'!$E$19+'BP Financier'!$F$19+'BP Financier'!$G$19)/('BP Financier'!$C$16+'BP Financier'!$C$19+'BP Financier'!$D$16+'BP Financier'!$D$19+'BP Financier'!$E$16+'BP Financier'!$E$19+'BP Financier'!$C$22+'BP Financier'!$D$22+'BP Financier'!$E$22+'BP Financier'!$F$22+'BP Financier'!$F$19+'BP Financier'!$F$16+'BP Financier'!$G$22+'BP Financier'!$G$19+'BP Financier'!$G$16))*$V9194*AB9194/(1-$W9194)","v":{"v":3861.929288815723,"d":"3,862"}},null,{"v":0.003,"d":"0.30%"},{"$f":"Actif!$E$28/100","v":{"v":0.28900000000000003,"d":"28.90%"}},{"$f":"Actif!$E$30/100","v":{"v":0.09050000000000001,"d":"9.05%"}},{"$f":"Actif!$E$31/100","v":{"v":0.0605,"d":"6.05%"}},{"$f":"Actif!$E$32/100","v":{"v":0.47350000000000003,"d":"47.35%"}},{"$f":"Actif!$E$33/100","v":{"v":0.0585,"d":"5.85%"}},{"$f":"Actif!$E$29/100","v":{"v":0.027999999999999997,"d":"2.80%"}}]
[null,"#79",33,2030,"H","A_PER",{"v":0.44999999999999996,"d":"0.45"},{"v":0.38999999999999996,"d":"0.39"},0.6,0.6,85,0,{"$f":"ROUND(Primes!$Q$7*V9195,0)","v":4},{"$f":"'BP Financier'!$G$33*(('BP Financier'!$C$19+'BP Financier'!$D$19+'BP Financier'!$E$19+'BP Financier'!$F$19+'BP Financier'!$G$19)/('BP Financier'!$C$16+'BP Financier'!$C$19+'BP Financier'!$D$16+'BP Financier'!$D$19+'BP Financier'!$E$16+'BP Financier'!$E$19+'BP Financier'!$F$16+'BP Financier'!$F$19+'BP Financier'!$G$16+'BP Financier'!$G$19))*V9195","v":{"v":170865.17167118323,"d":"170,865"}},{"v":98065.41872671354,"d":"98,065"},{"$f":"'BP Financier'!$G$44*(('BP Financier'!$C$19+'BP Financier'!$D$19+'BP Financier'!$E$19+'BP Financier'!$F$19+'BP Financier'!$G$19)/('BP Financier'!$C$16+'BP Financier'!$C$19+'BP Financier'!$D$16+'BP Financier'!$D$19+'BP Financier'!$E$16+'BP Financier'!$E$19+'BP Financier'!$C$22+'BP Financier'!$D$22+'BP Financier'!$E$22+'BP Financier'!$F$22+'BP Financier'!$F$19+'BP Financier'!$F$16+'BP Financier'!$G$22+'BP Financier'!$G$19+'BP Financier'!$G$16))*$V9195*X9195/(1-$W9195)","v":{"v":12482.307165636536,"d":"12,482"}},{"$f":"'BP Financier'!$G$44*(('BP Financier'!$C$19+'BP Financier'!$D$19+'BP Financier'!$E$19+'BP Financier'!$F$19+'BP Financier'!$G$19)/('BP Financier'!$C$16+'BP Financier'!$C$19+'BP Financier'!$D$16+'BP Financier'!$D$19+'BP Financier'!$E$16+'BP Financier'!$E$19+'BP Financier'!$C$22+'BP Financier'!$D$22+'BP Financier'!$E$22+'BP Financier'!$F$22+'BP Financier'!$F$19+'BP Financier'!$F$16+'BP Financier'!$G$22+'BP Financier'!$G$19+'BP Financier'!$G$16))*$V9195*Y9195/(1-$W9195)","v":{"v":8344.525784762545,"d":"8,345"}},{"$f":"'BP Financier'!$G$44*(('BP Financier'!$C$19+'BP Financier'!$D$19+'BP Financier'!$E$19+'BP Financier'!$F$19+'BP Financier'!$G$19)/('BP Financier'!$C$16+'BP Financier'!$C$19+'BP Financier'!$D$16+'BP Financier'!$D$19+'BP Financier'!$E$16+'BP Financier'!$E$19+'BP Financier'!$C$22+'BP Financier'!$D$22+'BP Financier'!$E$22+'BP Financier'!$F$22+'BP Financier'!$F$19+'BP Financier'!$F$16+'BP Financier'!$G$22+'BP Financier'!$G$19+'BP Financier'!$G$16))*$V9195*Z9195/(1-$W9195)","v":{"v":65307.982794794465,"d":"65,308"}},{"$f":"'BP Financier'!$G$44*(('BP Financier'!$C$19+'BP Financier'!$D$19+'BP Financier'!$E$19+'BP Financier'!$F$19+'BP Financier'!$G$19)/('BP Financier'!$C$16+'BP Financier'!$C$19+'BP Financier'!$D$16+'BP Financier'!$D$19+'BP Financier'!$E$16+'BP Financier'!$E$19+'BP Financier'!$C$22+'BP Financier'!$D$22+'BP Financier'!$E$22+'BP Financier'!$F$22+'BP Financier'!$F$19+'BP Financier'!$F$16+'BP Financier'!$G$22+'BP Financier'!$G$19+'BP Financier'!$G$16))*$V9195*AA9195/(1-$W9195)","v":{"v":8068.673692704279,"d":"8,069"}},{"$f":"'BP Financier'!$G$44*(('BP Financier'!$C$19+'BP Financier'!$D$19+'BP Financier'!$E$19+'BP Financier'!$F$19+'BP Financier'!$G$19)/('BP Financier'!$C$16+'BP Financier'!$C$19+'BP Financier'!$D$16+'BP Financier'!$D$19+'BP Financier'!$E$16+'BP Financier'!$E$19+'BP Financier'!$C$22+'BP Financier'!$D$22+'BP Financier'!$E$22+'BP Financier'!$F$22+'BP Financier'!$F$19+'BP Financier'!$F$16+'BP Financier'!$G$22+'BP Financier'!$G$19+'BP Financier'!$G$16))*$V9195*AB9195/(1-$W9195)","v":{"v":3861.929288815723,"d":"3,862"}},null,{"v":0.003,"d":"0.30%"},{"$f":"Actif!$E$28/100","v":{"v":0.28900000000000003,"d":"28.90%"}},{"$f":"Actif!$E$30/100","v":{"v":0.09050000000000001,"d":"9.05%"}},{"$f":"Actif!$E$31/100","v":{"v":0.0605,"d":"6.05%"}},{"$f":"Actif!$E$32/100","v":{"v":0.47350000000000003,"d":"47.35%"}},{"$f":"Actif!$E$33/100","v":{"v":0.0585,"d":"5.85%"}},{"$f":"Actif!$E$29/100","v":{"v":0.027999999999999997,"d":"2.80%"}}]
[null,"#80",33,2031,"H","A_PER",{"v":0.44999999999999996,"d":"0.45"},{"v":0.38999999999999996,"d":"0.39"},0.6,0.6,85,0,{"$f":"ROUND(Primes!$Q$7*V9196,0)","v":4},{"$f":"'BP Financier'!$G$33*(('BP Financier'!$C$19+'BP Financier'!$D$19+'BP Financier'!$E$19+'BP Financier'!$F$19+'BP Financier'!$G$19)/('BP Financier'!$C$16+'BP Financier'!$C$19+'BP Financier'!$D$16+'BP Financier'!$D$19+'BP Financier'!$E$16+'BP Financier'!$E$19+'BP Financier'!$F$16+'BP Financier'!$F$19+'BP Financier'!$G$16+'BP Financier'!$G$19))*V9196","v":{"v":170865.17167118323,"d":"170,865"}},{"v":98065.41872671354,"d":"98,065"},{"$f":"'BP Financier'!$G$44*(('BP Financier'!$C$19+'BP Financier'!$D$19+'BP Financier'!$E$19+'BP Financier'!$F$19+'BP Financier'!$G$19)/('BP Financier'!$C$16+'BP Financier'!$C$19+'BP Financier'!$D$16+'BP Financier'!$D$19+'BP Financier'!$E$16+'BP Financier'!$E$19+'BP Financier'!$C$22+'BP Financier'!$D$22+'BP Financier'!$E$22+'BP Financier'!$F$22+'BP Financier'!$F$19+'BP Financier'!$F$16+'BP Financier'!$G$22+'BP Financier'!$G$19+'BP Financier'!$G$16))*$V9196*X9196/(1-$W9196)","v":{"v":12482.307165636536,"d":"12,482"}},{"$f":"'BP Financier'!$G$44*(('BP Financier'!$C$19+'BP Financier'!$D$19+'BP Financier'!$E$19+'BP Financier'!$F$19+'BP Financier'!$G$19)/('BP Financier'!$C$16+'BP Financier'!$C$19+'BP Financier'!$D$16+'BP Financier'!$D$19+'BP Financier'!$E$16+'BP Financier'!$E$19+'BP Financier'!$C$22+'BP Financier'!$D$22+'BP Financier'!$E$22+'BP Financier'!$F$22+'BP Financier'!$F$19+'BP Financier'!$F$16+'BP Financier'!$G$22+'BP Financier'!$G$19+'BP Financier'!$G$16))*$V9196*Y9196/(1-$W9196)","v":{"v":8344.525784762545,"d":"8,345"}},{"$f":"'BP Financier'!$G$44*(('BP Financier'!$C$19+'BP Financier'!$D$19+'BP Financier'!$E$19+'BP Financier'!$F$19+'BP Financier'!$G$19)/('BP Financier'!$C$16+'BP Financier'!$C$19+'BP Financier'!$D$16+'BP Financier'!$D$19+'BP Financier'!$E$16+'BP Financier'!$E$19+'BP Financier'!$C$22+'BP Financier'!$D$22+'BP Financier'!$E$22+'BP Financier'!$F$22+'BP Financier'!$F$19+'BP Financier'!$F$16+'BP Financier'!$G$22+'BP Financier'!$G$19+'BP Financier'!$G$16))*$V9196*Z9196/(1-$W9196)","v":{"v":65307.982794794465,"d":"65,308"}},{"$f":"'BP Financier'!$G$44*(('BP Financier'!$C$19+'BP Financier'!$D$19+'BP Financier'!$E$19+'BP Financier'!$F$19+'BP Financier'!$G$19)/('BP Financier'!$C$16+'BP Financier'!$C$19+'BP Financier'!$D$16+'BP Financier'!$D$19+'BP Financier'!$E$16+'BP Financier'!$E$19+'BP Financier'!$C$22+'BP Financier'!$D$22+'BP Financier'!$E$22+'BP Financier'!$F$22+'BP Financier'!$F$19+'BP Financier'!$F$16+'BP Financier'!$G$22+'BP Financier'!$G$19+'BP Financier'!$G$16))*$V9196*AA9196/(1-$W9196)","v":{"v":8068.673692704279,"d":"8,069"}},{"$f":"'BP Financier'!$G$44*(('BP Financier'!$C$19+'BP Financier'!$D$19+'BP Financier'!$E$19+'BP Financier'!$F$19+'BP Financier'!$G$19)/('BP Financier'!$C$16+'BP Financier'!$C$19+'BP Financier'!$D$16+'BP Financier'!$D$19+'BP Financier'!$E$16+'BP Financier'!$E$19+'BP Financier'!$C$22+'BP Financier'!$D$22+'BP Financier'!$E$22+'BP Financier'!$F$22+'BP Financier'!$F$19+'BP Financier'!$F$16+'BP Financier'!$G$22+'BP Financier'!$G$19+'BP Financier'!$G$16))*$V9196*AB9196/(1-$W9196)","v":{"v":3861.929288815723,"d":"3,862"}},null,{"v":0.003,"d":"0.30%"},{"$f":"Actif!$E$28/100","v":{"v":0.28900000000000003,"d":"28.90%"}},{"$f":"Actif!$E$30/100","v":{"v":0.09050000000000001,"d":"9.05%"}},{"$f":"Actif!$E$31/100","v":{"v":0.0605,"d":"6.05%"}},{"$f":"Actif!$E$32/100","v":{"v":0.47350000000000003,"d":"47.35%"}},{"$f":"Actif!$E$33/100","v":{"v":0.0585,"d":"5.85%"}},{"$f":"Actif!$E$29/100","v":{"v":0.027999999999999997,"d":"2.80%"}}]
[null,"#81",34,2026,"H","A_PER",{"v":0.44999999999999996,"d":"0.45"},{"v":0.38999999999999996,"d":"0.39"},0.6,0.6,85,0,{"$f":"ROUND(Primes!$Q$7*V9197,0)","v":4},{"$f":"'BP Financier'!$G$33*(('BP Financier'!$C$19+'BP Financier'!$D$19+'BP Financier'!$E$19+'BP Financier'!$F$19+'BP Financier'!$G$19)/('BP Financier'!$C$16+'BP Financier'!$C$19+'BP Financier'!$D$16+'BP Financier'!$D$19+'BP Financier'!$E$16+'BP Financier'!$E$19+'BP Financier'!$F$16+'BP Financier'!$F$19+'BP Financier'!$G$16+'BP Financier'!$G$19))*V9197","v":{"v":170865.17167118323,"d":"170,865"}},{"v":98065.41872671354,"d":"98,065"},{"$f":"'BP Financier'!$G$44*(('BP Financier'!$C$19+'BP Financier'!$D$19+'BP Financier'!$E$19+'BP Financier'!$F$19+'BP Financier'!$G$19)/('BP Financier'!$C$16+'BP Financier'!$C$19+'BP Financier'!$D$16+'BP Financier'!$D$19+'BP Financier'!$E$16+'BP Financier'!$E$19+'BP Financier'!$C$22+'BP Financier'!$D$22+'BP Financier'!$E$22+'BP Financier'!$F$22+'BP Financier'!$F$19+'BP Financier'!$F$16+'BP Financier'!$G$22+'BP Financier'!$G$19+'BP Financier'!$G$16))*$V9197*X9197/(1-$W9197)","v":{"v":12482.307165636536,"d":"12,482"}},{"$f":"'BP Financier'!$G$44*(('BP Financier'!$C$19+'BP Financier'!$D$19+'BP Financier'!$E$19+'BP Financier'!$F$19+'BP Financier'!$G$19)/('BP Financier'!$C$16+'BP Financier'!$C$19+'BP Financier'!$D$16+'BP Financier'!$D$19+'BP Financier'!$E$16+'BP Financier'!$E$19+'BP Financier'!$C$22+'BP Financier'!$D$22+'BP Financier'!$E$22+'BP Financier'!$F$22+'BP Financier'!$F$19+'BP Financier'!$F$16+'BP Financier'!$G$22+'BP Financier'!$G$19+'BP Financier'!$G$16))*$V9197*Y9197/(1-$W9197)","v":{"v":8344.525784762545,"d":"8,345"}},{"$f":"'BP Financier'!$G$44*(('BP Financier'!$C$19+'BP Financier'!$D$19+'BP Financier'!$E$19+'BP Financier'!$F$19+'BP Financier'!$G$19)/('BP Financier'!$C$16+'BP Financier'!$C$19+'BP Financier'!$D$16+'BP Financier'!$D$19+'BP Financier'!$E$16+'BP Financier'!$E$19+'BP Financier'!$C$22+'BP Financier'!$D$22+'BP Financier'!$E$22+'BP Financier'!$F$22+'BP Financier'!$F$19+'BP Financier'!$F$16+'BP Financier'!$G$22+'BP Financier'!$G$19+'BP Financier'!$G$16))*$V9197*Z9197/(1-$W9197)","v":{"v":65307.982794794465,"d":"65,308"}},{"$f":"'BP Financier'!$G$44*(('BP Financier'!$C$19+'BP Financier'!$D$19+'BP Financier'!$E$19+'BP Financier'!$F$19+'BP Financier'!$G$19)/('BP Financier'!$C$16+'BP Financier'!$C$19+'BP Financier'!$D$16+'BP Financier'!$D$19+'BP Financier'!$E$16+'BP Financier'!$E$19+'BP Financier'!$C$22+'BP Financier'!$D$22+'BP Financier'!$E$22+'BP Financier'!$F$22+'BP Financier'!$F$19+'BP Financier'!$F$16+'BP Financier'!$G$22+'BP Financier'!$G$19+'BP Financier'!$G$16))*$V9197*AA9197/(1-$W9197)","v":{"v":8068.673692704279,"d":"8,069"}},{"$f":"'BP Financier'!$G$44*(('BP Financier'!$C$19+'BP Financier'!$D$19+'BP Financier'!$E$19+'BP Financier'!$F$19+'BP Financier'!$G$19)/('BP Financier'!$C$16+'BP Financier'!$C$19+'BP Financier'!$D$16+'BP Financier'!$D$19+'BP Financier'!$E$16+'BP Financier'!$E$19+'BP Financier'!$C$22+'BP Financier'!$D$22+'BP Financier'!$E$22+'BP Financier'!$F$22+'BP Financier'!$F$19+'BP Financier'!$F$16+'BP Financier'!$G$22+'BP Financier'!$G$19+'BP Financier'!$G$16))*$V9197*AB9197/(1-$W9197)","v":{"v":3861.929288815723,"d":"3,862"}},null,{"v":0.003,"d":"0.30%"},{"$f":"Actif!$E$28/100","v":{"v":0.28900000000000003,"d":"28.90%"}},{"$f":"Actif!$E$30/100","v":{"v":0.09050000000000001,"d":"9.05%"}},{"$f":"Actif!$E$31/100","v":{"v":0.0605,"d":"6.05%"}},{"$f":"Actif!$E$32/100","v":{"v":0.47350000000000003,"d":"47.35%"}},{"$f":"Actif!$E$33/100","v":{"v":0.0585,"d":"5.85%"}},{"$f":"Actif!$E$29/100","v":{"v":0.027999999999999997,"d":"2.80%"}}]
[null,"#82",34,2028,"H","A_PER",{"v":0.44999999999999996,"d":"0.45"},{"v":0.38999999999999996,"d":"0.39"},0.6,0.6,85,0,{"$f":"ROUND(Primes!$Q$7*V9198,0)","v":4},{"$f":"'BP Financier'!$G$33*(('BP Financier'!$C$19+'BP Financier'!$D$19+'BP Financier'!$E$19+'BP Financier'!$F$19+'BP Financier'!$G$19)/('BP Financier'!$C$16+'BP Financier'!$C$19+'BP Financier'!$D$16+'BP Financier'!$D$19+'BP Financier'!$E$16+'BP Financier'!$E$19+'BP Financier'!$F$16+'BP Financier'!$F$19+'BP Financier'!$G$16+'BP Financier'!$G$19))*V9198","v":{"v":170865.17167118323,"d":"170,865"}},{"$f":"SUM(P9198:T9198)","v":{"v":98065.41872671354,"d":"98,065"}},{"$f":"'BP Financier'!$G$44*(('BP Financier'!$C$19+'BP Financier'!$D$19+'BP Financier'!$E$19+'BP Financier'!$F$19+'BP Financier'!$G$19)/('BP Financier'!$C$16+'BP Financier'!$C$19+'BP Financier'!$D$16+'BP Financier'!$D$19+'BP Financier'!$E$16+'BP Financier'!$E$19+'BP Financier'!$C$22+'BP Financier'!$D$22+'BP Financier'!$E$22+'BP Financier'!$F$22+'BP Financier'!$F$19+'BP Financier'!$F$16+'BP Financier'!$G$22+'BP Financier'!$G$19+'BP Financier'!$G$16))*$V9198*X9198/(1-$W9198)","v":{"v":12482.307165636536,"d":"12,482"}},{"$f":"'BP Financier'!$G$44*(('BP Financier'!$C$19+'BP Financier'!$D$19+'BP Financier'!$E$19+'BP Financier'!$F$19+'BP Financier'!$G$19)/('BP Financier'!$C$16+'BP Financier'!$C$19+'BP Financier'!$D$16+'BP Financier'!$D$19+'BP Financier'!$E$16+'BP Financier'!$E$19+'BP Financier'!$C$22+'BP Financier'!$D$22+'BP Financier'!$E$22+'BP Financier'!$F$22+'BP Financier'!$F$19+'BP Financier'!$F$16+'BP Financier'!$G$22+'BP Financier'!$G$19+'BP Financier'!$G$16))*$V9198*Y9198/(1-$W9198)","v":{"v":8344.525784762545,"d":"8,345"}},{"$f":"'BP Financier'!$G$44*(('BP Financier'!$C$19+'BP Financier'!$D$19+'BP Financier'!$E$19+'BP Financier'!$F$19+'BP Financier'!$G$19)/('BP Financier'!$C$16+'BP Financier'!$C$19+'BP Financier'!$D$16+'BP Financier'!$D$19+'BP Financier'!$E$16+'BP Financier'!$E$19+'BP Financier'!$C$22+'BP Financier'!$D$22+'BP Financier'!$E$22+'BP Financier'!$F$22+'BP Financier'!$F$19+'BP Financier'!$F$16+'BP Financier'!$G$22+'BP Financier'!$G$19+'BP Financier'!$G$16))*$V9198*Z9198/(1-$W9198)","v":{"v":65307.982794794465,"d":"65,308"}},{"$f":"'BP Financier'!$G$44*(('BP Financier'!$C$19+'BP Financier'!$D$19+'BP Financier'!$E$19+'BP Financier'!$F$19+'BP Financier'!$G$19)/('BP Financier'!$C$16+'BP Financier'!$C$19+'BP Financier'!$D$16+'BP Financier'!$D$19+'BP Financier'!$E$16+'BP Financier'!$E$19+'BP Financier'!$C$22+'BP Financier'!$D$22+'BP Financier'!$E$22+'BP Financier'!$F$22+'BP Financier'!$F$19+'BP Financier'!$F$16+'BP Financier'!$G$22+'BP Financier'!$G$19+'BP Financier'!$G$16))*$V9198*AA9198/(1-$W9198)","v":{"v":8068.673692704279,"d":"8,069"}},{"$f":"'BP Financier'!$G$44*(('BP Financier'!$C$19+'BP Financier'!$D$19+'BP Financier'!$E$19+'BP Financier'!$F$19+'BP Financier'!$G$19)/('BP Financier'!$C$16+'BP Financier'!$C$19+'BP Financier'!$D$16+'BP Financier'!$D$19+'BP Financier'!$E$16+'BP Financier'!$E$19+'BP Financier'!$C$22+'BP Financier'!$D$22+'BP Financier'!$E$22+'BP Financier'!$F$22+'BP Financier'!$F$19+'BP Financier'!$F$16+'BP Financier'!$G$22+'BP Financier'!$G$19+'BP Financier'!$G$16))*$V9198*AB9198/(1-$W9198)","v":{"v":3861.929288815723,"d":"3,862"}},null,{"v":0.003,"d":"0.30%"},{"$f":"Actif!$E$28/100","v":{"v":0.28900000000000003,"d":"28.90%"}},{"$f":"Actif!$E$30/100","v":{"v":0.09050000000000001,"d":"9.05%"}},{"$f":"Actif!$E$31/100","v":{"v":0.0605,"d":"6.05%"}},{"$f":"Actif!$E$32/100","v":{"v":0.47350000000000003,"d":"47.35%"}},{"$f":"Actif!$E$33/100","v":{"v":0.0585,"d":"5.85%"}},{"$f":"Actif!$E$29/100","v":{"v":0.027999999999999997,"d":"2.80%"}}]
[null,"#83",34,2029,"H","A_PER",{"v":0.44999999999999996,"d":"0.45"},{"v":0.38999999999999996,"d":"0.39"},0.6,0.6,85,0,{"$f":"ROUND(Primes!$Q$7*V9199,0)","v":4},{"$f":"'BP Financier'!$G$33*(('BP Financier'!$C$19+'BP Financier'!$D$19+'BP Financier'!$E$19+'BP Financier'!$F$19+'BP Financier'!$G$19)/('BP Financier'!$C$16+'BP Financier'!$C$19+'BP Financier'!$D$16+'BP Financier'!$D$19+'BP Financier'!$E$16+'BP Financier'!$E$19+'BP Financier'!$F$16+'BP Financier'!$F$19+'BP Financier'!$G$16+'BP Financier'!$G$19))*V9199","v":{"v":170865.17167118323,"d":"170,865"}},{"v":98065.41872671354,"d":"98,065"},{"$f":"'BP Financier'!$G$44*(('BP Financier'!$C$19+'BP Financier'!$D$19+'BP Financier'!$E$19+'BP Financier'!$F$19+'BP Financier'!$G$19)/('BP Financier'!$C$16+'BP Financier'!$C$19+'BP Financier'!$D$16+'BP Financier'!$D$19+'BP Financier'!$E$16+'BP Financier'!$E$19+'BP Financier'!$C$22+'BP Financier'!$D$22+'BP Financier'!$E$22+'BP Financier'!$F$22+'BP Financier'!$F$19+'BP Financier'!$F$16+'BP Financier'!$G$22+'BP Financier'!$G$19+'BP Financier'!$G$16))*$V9199*X9199/(1-$W9199)","v":{"v":12482.307165636536,"d":"12,482"}},{"$f":"'BP Financier'!$G$44*(('BP Financier'!$C$19+'BP Financier'!$D$19+'BP Financier'!$E$19+'BP Financier'!$F$19+'BP Financier'!$G$19)/('BP Financier'!$C$16+'BP Financier'!$C$19+'BP Financier'!$D$16+'BP Financier'!$D$19+'BP Financier'!$E$16+'BP Financier'!$E$19+'BP Financier'!$C$22+'BP Financier'!$D$22+'BP Financier'!$E$22+'BP Financier'!$F$22+'BP Financier'!$F$19+'BP Financier'!$F$16+'BP Financier'!$G$22+'BP Financier'!$G$19+'BP Financier'!$G$16))*$V9199*Y9199/(1-$W9199)","v":{"v":8344.525784762545,"d":"8,345"}},{"$f":"'BP Financier'!$G$44*(('BP Financier'!$C$19+'BP Financier'!$D$19+'BP Financier'!$E$19+'BP Financier'!$F$19+'BP Financier'!$G$19)/('BP Financier'!$C$16+'BP Financier'!$C$19+'BP Financier'!$D$16+'BP Financier'!$D$19+'BP Financier'!$E$16+'BP Financier'!$E$19+'BP Financier'!$C$22+'BP Financier'!$D$22+'BP Financier'!$E$22+'BP Financier'!$F$22+'BP Financier'!$F$19+'BP Financier'!$F$16+'BP Financier'!$G$22+'BP Financier'!$G$19+'BP Financier'!$G$16))*$V9199*Z9199/(1-$W9199)","v":{"v":65307.982794794465,"d":"65,308"}},{"$f":"'BP Financier'!$G$44*(('BP Financier'!$C$19+'BP Financier'!$D$19+'BP Financier'!$E$19+'BP Financier'!$F$19+'BP Financier'!$G$19)/('BP Financier'!$C$16+'BP Financier'!$C$19+'BP Financier'!$D$16+'BP Financier'!$D$19+'BP Financier'!$E$16+'BP Financier'!$E$19+'BP Financier'!$C$22+'BP Financier'!$D$22+'BP Financier'!$E$22+'BP Financier'!$F$22+'BP Financier'!$F$19+'BP Financier'!$F$16+'BP Financier'!$G$22+'BP Financier'!$G$19+'BP Financier'!$G$16))*$V9199*AA9199/(1-$W9199)","v":{"v":8068.673692704279,"d":"8,069"}},{"$f":"'BP Financier'!$G$44*(('BP Financier'!$C$19+'BP Financier'!$D$19+'BP Financier'!$E$19+'BP Financier'!$F$19+'BP Financier'!$G$19)/('BP Financier'!$C$16+'BP Financier'!$C$19+'BP Financier'!$D$16+'BP Financier'!$D$19+'BP Financier'!$E$16+'BP Financier'!$E$19+'BP Financier'!$C$22+'BP Financier'!$D$22+'BP Financier'!$E$22+'BP Financier'!$F$22+'BP Financier'!$F$19+'BP Financier'!$F$16+'BP Financier'!$G$22+'BP Financier'!$G$19+'BP Financier'!$G$16))*$V9199*AB9199/(1-$W9199)","v":{"v":3861.929288815723,"d":"3,862"}},null,{"v":0.003,"d":"0.30%"},{"$f":"Actif!$E$28/100","v":{"v":0.28900000000000003,"d":"28.90%"}},{"$f":"Actif!$E$30/100","v":{"v":0.09050000000000001,"d":"9.05%"}},{"$f":"Actif!$E$31/100","v":{"v":0.0605,"d":"6.05%"}},{"$f":"Actif!$E$32/100","v":{"v":0.47350000000000003,"d":"47.35%"}},{"$f":"Actif!$E$33/100","v":{"v":0.0585,"d":"5.85%"}},{"$f":"Actif!$E$29/100","v":{"v":0.027999999999999997,"d":"2.80%"}}]
[null,"#84",34,2030,"H","A_PER",{"v":0.44999999999999996,"d":"0.45"},{"v":0.38999999999999996,"d":"0.39"},0.6,0.6,85,0,{"$f":"ROUND(Primes!$Q$7*V9200,0)","v":4},{"$f":"'BP Financier'!$G$33*(('BP Financier'!$C$19+'BP Financier'!$D$19+'BP Financier'!$E$19+'BP Financier'!$F$19+'BP Financier'!$G$19)/('BP Financier'!$C$16+'BP Financier'!$C$19+'BP Financier'!$D$16+'BP Financier'!$D$19+'BP Financier'!$E$16+'BP Financier'!$E$19+'BP Financier'!$F$16+'BP Financier'!$F$19+'BP Financier'!$G$16+'BP Financier'!$G$19))*V9200","v":{"v":170865.17167118323,"d":"170,865"}},{"v":98065.41872671354,"d":"98,065"},{"$f":"'BP Financier'!$G$44*(('BP Financier'!$C$19+'BP Financier'!$D$19+'BP Financier'!$E$19+'BP Financier'!$F$19+'BP Financier'!$G$19)/('BP Financier'!$C$16+'BP Financier'!$C$19+'BP Financier'!$D$16+'BP Financier'!$D$19+'BP Financier'!$E$16+'BP Financier'!$E$19+'BP Financier'!$C$22+'BP Financier'!$D$22+'BP Financier'!$E$22+'BP Financier'!$F$22+'BP Financier'!$F$19+'BP Financier'!$F$16+'BP Financier'!$G$22+'BP Financier'!$G$19+'BP Financier'!$G$16))*$V9200*X9200/(1-$W9200)","v":{"v":12482.307165636536,"d":"12,482"}},{"$f":"'BP Financier'!$G$44*(('BP Financier'!$C$19+'BP Financier'!$D$19+'BP Financier'!$E$19+'BP Financier'!$F$19+'BP Financier'!$G$19)/('BP Financier'!$C$16+'BP Financier'!$C$19+'BP Financier'!$D$16+'BP Financier'!$D$19+'BP Financier'!$E$16+'BP Financier'!$E$19+'BP Financier'!$C$22+'BP Financier'!$D$22+'BP Financier'!$E$22+'BP Financier'!$F$22+'BP Financier'!$F$19+'BP Financier'!$F$16+'BP Financier'!$G$22+'BP Financier'!$G$19+'BP Financier'!$G$16))*$V9200*Y9200/(1-$W9200)","v":{"v":8344.525784762545,"d":"8,345"}},{"$f":"'BP Financier'!$G$44*(('BP Financier'!$C$19+'BP Financier'!$D$19+'BP Financier'!$E$19+'BP Financier'!$F$19+'BP Financier'!$G$19)/('BP Financier'!$C$16+'BP Financier'!$C$19+'BP Financier'!$D$16+'BP Financier'!$D$19+'BP Financier'!$E$16+'BP Financier'!$E$19+'BP Financier'!$C$22+'BP Financier'!$D$22+'BP Financier'!$E$22+'BP Financier'!$F$22+'BP Financier'!$F$19+'BP Financier'!$F$16+'BP Financier'!$G$22+'BP Financier'!$G$19+'BP Financier'!$G$16))*$V9200*Z9200/(1-$W9200)","v":{"v":65307.982794794465,"d":"65,308"}},{"$f":"'BP Financier'!$G$44*(('BP Financier'!$C$19+'BP Financier'!$D$19+'BP Financier'!$E$19+'BP Financier'!$F$19+'BP Financier'!$G$19)/('BP Financier'!$C$16+'BP Financier'!$C$19+'BP Financier'!$D$16+'BP Financier'!$D$19+'BP Financier'!$E$16+'BP Financier'!$E$19+'BP Financier'!$C$22+'BP Financier'!$D$22+'BP Financier'!$E$22+'BP Financier'!$F$22+'BP Financier'!$F$19+'BP Financier'!$F$16+'BP Financier'!$G$22+'BP Financier'!$G$19+'BP Financier'!$G$16))*$V9200*AA9200/(1-$W9200)","v":{"v":8068.673692704279,"d":"8,069"}},{"$f":"'BP Financier'!$G$44*(('BP Financier'!$C$19+'BP Financier'!$D$19+'BP Financier'!$E$19+'BP Financier'!$F$19+'BP Financier'!$G$19)/('BP Financier'!$C$16+'BP Financier'!$C$19+'BP Financier'!$D$16+'BP Financier'!$D$19+'BP Financier'!$E$16+'BP Financier'!$E$19+'BP Financier'!$C$22+'BP Financier'!$D$22+'BP Financier'!$E$22+'BP Financier'!$F$22+'BP Financier'!$F$19+'BP Financier'!$F$16+'BP Financier'!$G$22+'BP Financier'!$G$19+'BP Financier'!$G$16))*$V9200*AB9200/(1-$W9200)","v":{"v":3861.929288815723,"d":"3,862"}},null,{"v":0.003,"d":"0.30%"},{"$f":"Actif!$E$28/100","v":{"v":0.28900000000000003,"d":"28.90%"}},{"$f":"Actif!$E$30/100","v":{"v":0.09050000000000001,"d":"9.05%"}},{"$f":"Actif!$E$31/100","v":{"v":0.0605,"d":"6.05%"}},{"$f":"Actif!$E$32/100","v":{"v":0.47350000000000003,"d":"47.35%"}},{"$f":"Actif!$E$33/100","v":{"v":0.0585,"d":"5.85%"}},{"$f":"Actif!$E$29/100","v":{"v":0.027999999999999997,"d":"2.80%"}}]
[null,"#85",34,2031,"H","A_PER",{"v":0.44999999999999996,"d":"0.45"},{"v":0.38999999999999996,"d":"0.39"},0.6,0.6,85,0,{"$f":"ROUND(Primes!$Q$7*V9201,0)","v":4},{"$f":"'BP Financier'!$G$33*(('BP Financier'!$C$19+'BP Financier'!$D$19+'BP Financier'!$E$19+'BP Financier'!$F$19+'BP Financier'!$G$19)/('BP Financier'!$C$16+'BP Financier'!$C$19+'BP Financier'!$D$16+'BP Financier'!$D$19+'BP Financier'!$E$16+'BP Financier'!$E$19+'BP Financier'!$F$16+'BP Financier'!$F$19+'BP Financier'!$G$16+'BP Financier'!$G$19))*V9201","v":{"v":170865.17167118323,"d":"170,865"}},{"v":98065.41872671354,"d":"98,065"},{"$f":"'BP Financier'!$G$44*(('BP Financier'!$C$19+'BP Financier'!$D$19+'BP Financier'!$E$19+'BP Financier'!$F$19+'BP Financier'!$G$19)/('BP Financier'!$C$16+'BP Financier'!$C$19+'BP Financier'!$D$16+'BP Financier'!$D$19+'BP Financier'!$E$16+'BP Financier'!$E$19+'BP Financier'!$C$22+'BP Financier'!$D$22+'BP Financier'!$E$22+'BP Financier'!$F$22+'BP Financier'!$F$19+'BP Financier'!$F$16+'BP Financier'!$G$22+'BP Financier'!$G$19+'BP Financier'!$G$16))*$V9201*X9201/(1-$W9201)","v":{"v":12482.307165636536,"d":"12,482"}},{"$f":"'BP Financier'!$G$44*(('BP Financier'!$C$19+'BP Financier'!$D$19+'BP Financier'!$E$19+'BP Financier'!$F$19+'BP Financier'!$G$19)/('BP Financier'!$C$16+'BP Financier'!$C$19+'BP Financier'!$D$16+'BP Financier'!$D$19+'BP Financier'!$E$16+'BP Financier'!$E$19+'BP Financier'!$C$22+'BP Financier'!$D$22+'BP Financier'!$E$22+'BP Financier'!$F$22+'BP Financier'!$F$19+'BP Financier'!$F$16+'BP Financier'!$G$22+'BP Financier'!$G$19+'BP Financier'!$G$16))*$V9201*Y9201/(1-$W9201)","v":{"v":8344.525784762545,"d":"8,345"}},{"$f":"'BP Financier'!$G$44*(('BP Financier'!$C$19+'BP Financier'!$D$19+'BP Financier'!$E$19+'BP Financier'!$F$19+'BP Financier'!$G$19)/('BP Financier'!$C$16+'BP Financier'!$C$19+'BP Financier'!$D$16+'BP Financier'!$D$19+'BP Financier'!$E$16+'BP Financier'!$E$19+'BP Financier'!$C$22+'BP Financier'!$D$22+'BP Financier'!$E$22+'BP Financier'!$F$22+'BP Financier'!$F$19+'BP Financier'!$F$16+'BP Financier'!$G$22+'BP Financier'!$G$19+'BP Financier'!$G$16))*$V9201*Z9201/(1-$W9201)","v":{"v":65307.982794794465,"d":"65,308"}},{"$f":"'BP Financier'!$G$44*(('BP Financier'!$C$19+'BP Financier'!$D$19+'BP Financier'!$E$19+'BP Financier'!$F$19+'BP Financier'!$G$19)/('BP Financier'!$C$16+'BP Financier'!$C$19+'BP Financier'!$D$16+'BP Financier'!$D$19+'BP Financier'!$E$16+'BP Financier'!$E$19+'BP Financier'!$C$22+'BP Financier'!$D$22+'BP Financier'!$E$22+'BP Financier'!$F$22+'BP Financier'!$F$19+'BP Financier'!$F$16+'BP Financier'!$G$22+'BP Financier'!$G$19+'BP Financier'!$G$16))*$V9201*AA9201/(1-$W9201)","v":{"v":8068.673692704279,"d":"8,069"}},{"$f":"'BP Financier'!$G$44*(('BP Financier'!$C$19+'BP Financier'!$D$19+'BP Financier'!$E$19+'BP Financier'!$F$19+'BP Financier'!$G$19)/('BP Financier'!$C$16+'BP Financier'!$C$19+'BP Financier'!$D$16+'BP Financier'!$D$19+'BP Financier'!$E$16+'BP Financier'!$E$19+'BP Financier'!$C$22+'BP Financier'!$D$22+'BP Financier'!$E$22+'BP Financier'!$F$22+'BP Financier'!$F$19+'BP Financier'!$F$16+'BP Financier'!$G$22+'BP Financier'!$G$19+'BP Financier'!$G$16))*$V9201*AB9201/(1-$W9201)","v":{"v":3861.929288815723,"d":"3,862"}},null,{"v":0.003,"d":"0.30%"},{"$f":"Actif!$E$28/100","v":{"v":0.28900000000000003,"d":"28.90%"}},{"$f":"Actif!$E$30/100","v":{"v":0.09050000000000001,"d":"9.05%"}},{"$f":"Actif!$E$31/100","v":{"v":0.0605,"d":"6.05%"}},{"$f":"Actif!$E$32/100","v":{"v":0.47350000000000003,"d":"47.35%"}},{"$f":"Actif!$E$33/100","v":{"v":0.0585,"d":"5.85%"}},{"$f":"Actif!$E$29/100","v":{"v":0.027999999999999997,"d":"2.80%"}}]
[null,"#86",35,2026,"F","A_PER",{"v":0.44999999999999996,"d":"0.45"},{"v":0.38999999999999996,"d":"0.39"},0.6,0.6,85,0,{"$f":"ROUND(Primes!$Q$7*V9202,0)","v":4},{"$f":"'BP Financier'!$G$33*(('BP Financier'!$C$19+'BP Financier'!$D$19+'BP Financier'!$E$19+'BP Financier'!$F$19+'BP Financier'!$G$19)/('BP Financier'!$C$16+'BP Financier'!$C$19+'BP Financier'!$D$16+'BP Financier'!$D$19+'BP Financier'!$E$16+'BP Financier'!$E$19+'BP Financier'!$F$16+'BP Financier'!$F$19+'BP Financier'!$G$16+'BP Financier'!$G$19))*V9202","v":{"v":170865.17167118323,"d":"170,865"}},{"v":98065.41872671354,"d":"98,065"},{"$f":"'BP Financier'!$G$44*(('BP Financier'!$C$19+'BP Financier'!$D$19+'BP Financier'!$E$19+'BP Financier'!$F$19+'BP Financier'!$G$19)/('BP Financier'!$C$16+'BP Financier'!$C$19+'BP Financier'!$D$16+'BP Financier'!$D$19+'BP Financier'!$E$16+'BP Financier'!$E$19+'BP Financier'!$C$22+'BP Financier'!$D$22+'BP Financier'!$E$22+'BP Financier'!$F$22+'BP Financier'!$F$19+'BP Financier'!$F$16+'BP Financier'!$G$22+'BP Financier'!$G$19+'BP Financier'!$G$16))*$V9202*X9202/(1-$W9202)","v":{"v":12482.307165636536,"d":"12,482"}},{"$f":"'BP Financier'!$G$44*(('BP Financier'!$C$19+'BP Financier'!$D$19+'BP Financier'!$E$19+'BP Financier'!$F$19+'BP Financier'!$G$19)/('BP Financier'!$C$16+'BP Financier'!$C$19+'BP Financier'!$D$16+'BP Financier'!$D$19+'BP Financier'!$E$16+'BP Financier'!$E$19+'BP Financier'!$C$22+'BP Financier'!$D$22+'BP Financier'!$E$22+'BP Financier'!$F$22+'BP Financier'!$F$19+'BP Financier'!$F$16+'BP Financier'!$G$22+'BP Financier'!$G$19+'BP Financier'!$G$16))*$V9202*Y9202/(1-$W9202)","v":{"v":8344.525784762545,"d":"8,345"}},{"$f":"'BP Financier'!$G$44*(('BP Financier'!$C$19+'BP Financier'!$D$19+'BP Financier'!$E$19+'BP Financier'!$F$19+'BP Financier'!$G$19)/('BP Financier'!$C$16+'BP Financier'!$C$19+'BP Financier'!$D$16+'BP Financier'!$D$19+'BP Financier'!$E$16+'BP Financier'!$E$19+'BP Financier'!$C$22+'BP Financier'!$D$22+'BP Financier'!$E$22+'BP Financier'!$F$22+'BP Financier'!$F$19+'BP Financier'!$F$16+'BP Financier'!$G$22+'BP Financier'!$G$19+'BP Financier'!$G$16))*$V9202*Z9202/(1-$W9202)","v":{"v":65307.982794794465,"d":"65,308"}},{"$f":"'BP Financier'!$G$44*(('BP Financier'!$C$19+'BP Financier'!$D$19+'BP Financier'!$E$19+'BP Financier'!$F$19+'BP Financier'!$G$19)/('BP Financier'!$C$16+'BP Financier'!$C$19+'BP Financier'!$D$16+'BP Financier'!$D$19+'BP Financier'!$E$16+'BP Financier'!$E$19+'BP Financier'!$C$22+'BP Financier'!$D$22+'BP Financier'!$E$22+'BP Financier'!$F$22+'BP Financier'!$F$19+'BP Financier'!$F$16+'BP Financier'!$G$22+'BP Financier'!$G$19+'BP Financier'!$G$16))*$V9202*AA9202/(1-$W9202)","v":{"v":8068.673692704279,"d":"8,069"}},{"$f":"'BP Financier'!$G$44*(('BP Financier'!$C$19+'BP Financier'!$D$19+'BP Financier'!$E$19+'BP Financier'!$F$19+'BP Financier'!$G$19)/('BP Financier'!$C$16+'BP Financier'!$C$19+'BP Financier'!$D$16+'BP Financier'!$D$19+'BP Financier'!$E$16+'BP Financier'!$E$19+'BP Financier'!$C$22+'BP Financier'!$D$22+'BP Financier'!$E$22+'BP Financier'!$F$22+'BP Financier'!$F$19+'BP Financier'!$F$16+'BP Financier'!$G$22+'BP Financier'!$G$19+'BP Financier'!$G$16))*$V9202*AB9202/(1-$W9202)","v":{"v":3861.929288815723,"d":"3,862"}},null,{"v":0.003,"d":"0.30%"},{"$f":"Actif!$E$28/100","v":{"v":0.28900000000000003,"d":"28.90%"}},{"$f":"Actif!$E$30/100","v":{"v":0.09050000000000001,"d":"9.05%"}},{"$f":"Actif!$E$31/100","v":{"v":0.0605,"d":"6.05%"}},{"$f":"Actif!$E$32/100","v":{"v":0.47350000000000003,"d":"47.35%"}},{"$f":"Actif!$E$33/100","v":{"v":0.0585,"d":"5.85%"}},{"$f":"Actif!$E$29/100","v":{"v":0.027999999999999997,"d":"2.80%"}}]
[null,"#87",35,2028,"F","A_PER",{"v":0.44999999999999996,"d":"0.45"},{"v":0.38999999999999996,"d":"0.39"},0.6,0.6,85,0,{"$f":"ROUND(Primes!$Q$7*V9203,0)","v":4},{"$f":"'BP Financier'!$G$33*(('BP Financier'!$C$19+'BP Financier'!$D$19+'BP Financier'!$E$19+'BP Financier'!$F$19+'BP Financier'!$G$19)/('BP Financier'!$C$16+'BP Financier'!$C$19+'BP Financier'!$D$16+'BP Financier'!$D$19+'BP Financier'!$E$16+'BP Financier'!$E$19+'BP Financier'!$F$16+'BP Financier'!$F$19+'BP Financier'!$G$16+'BP Financier'!$G$19))*V9203","v":{"v":170865.17167118323,"d":"170,865"}},{"v":98065.41872671354,"d":"98,065"},{"$f":"'BP Financier'!$G$44*(('BP Financier'!$C$19+'BP Financier'!$D$19+'BP Financier'!$E$19+'BP Financier'!$F$19+'BP Financier'!$G$19)/('BP Financier'!$C$16+'BP Financier'!$C$19+'BP Financier'!$D$16+'BP Financier'!$D$19+'BP Financier'!$E$16+'BP Financier'!$E$19+'BP Financier'!$C$22+'BP Financier'!$D$22+'BP Financier'!$E$22+'BP Financier'!$F$22+'BP Financier'!$F$19+'BP Financier'!$F$16+'BP Financier'!$G$22+'BP Financier'!$G$19+'BP Financier'!$G$16))*$V9203*X9203/(1-$W9203)","v":{"v":12482.307165636536,"d":"12,482"}},{"$f":"'BP Financier'!$G$44*(('BP Financier'!$C$19+'BP Financier'!$D$19+'BP Financier'!$E$19+'BP Financier'!$F$19+'BP Financier'!$G$19)/('BP Financier'!$C$16+'BP Financier'!$C$19+'BP Financier'!$D$16+'BP Financier'!$D$19+'BP Financier'!$E$16+'BP Financier'!$E$19+'BP Financier'!$C$22+'BP Financier'!$D$22+'BP Financier'!$E$22+'BP Financier'!$F$22+'BP Financier'!$F$19+'BP Financier'!$F$16+'BP Financier'!$G$22+'BP Financier'!$G$19+'BP Financier'!$G$16))*$V9203*Y9203/(1-$W9203)","v":{"v":8344.525784762545,"d":"8,345"}},{"$f":"'BP Financier'!$G$44*(('BP Financier'!$C$19+'BP Financier'!$D$19+'BP Financier'!$E$19+'BP Financier'!$F$19+'BP Financier'!$G$19)/('BP Financier'!$C$16+'BP Financier'!$C$19+'BP Financier'!$D$16+'BP Financier'!$D$19+'BP Financier'!$E$16+'BP Financier'!$E$19+'BP Financier'!$C$22+'BP Financier'!$D$22+'BP Financier'!$E$22+'BP Financier'!$F$22+'BP Financier'!$F$19+'BP Financier'!$F$16+'BP Financier'!$G$22+'BP Financier'!$G$19+'BP Financier'!$G$16))*$V9203*Z9203/(1-$W9203)","v":{"v":65307.982794794465,"d":"65,308"}},{"$f":"'BP Financier'!$G$44*(('BP Financier'!$C$19+'BP Financier'!$D$19+'BP Financier'!$E$19+'BP Financier'!$F$19+'BP Financier'!$G$19)/('BP Financier'!$C$16+'BP Financier'!$C$19+'BP Financier'!$D$16+'BP Financier'!$D$19+'BP Financier'!$E$16+'BP Financier'!$E$19+'BP Financier'!$C$22+'BP Financier'!$D$22+'BP Financier'!$E$22+'BP Financier'!$F$22+'BP Financier'!$F$19+'BP Financier'!$F$16+'BP Financier'!$G$22+'BP Financier'!$G$19+'BP Financier'!$G$16))*$V9203*AA9203/(1-$W9203)","v":{"v":8068.673692704279,"d":"8,069"}},{"$f":"'BP Financier'!$G$44*(('BP Financier'!$C$19+'BP Financier'!$D$19+'BP Financier'!$E$19+'BP Financier'!$F$19+'BP Financier'!$G$19)/('BP Financier'!$C$16+'BP Financier'!$C$19+'BP Financier'!$D$16+'BP Financier'!$D$19+'BP Financier'!$E$16+'BP Financier'!$E$19+'BP Financier'!$C$22+'BP Financier'!$D$22+'BP Financier'!$E$22+'BP Financier'!$F$22+'BP Financier'!$F$19+'BP Financier'!$F$16+'BP Financier'!$G$22+'BP Financier'!$G$19+'BP Financier'!$G$16))*$V9203*AB9203/(1-$W9203)","v":{"v":3861.929288815723,"d":"3,862"}},null,{"v":0.003,"d":"0.30%"},{"$f":"Actif!$E$28/100","v":{"v":0.28900000000000003,"d":"28.90%"}},{"$f":"Actif!$E$30/100","v":{"v":0.09050000000000001,"d":"9.05%"}},{"$f":"Actif!$E$31/100","v":{"v":0.0605,"d":"6.05%"}},{"$f":"Actif!$E$32/100","v":{"v":0.47350000000000003,"d":"47.35%"}},{"$f":"Actif!$E$33/100","v":{"v":0.0585,"d":"5.85%"}},{"$f":"Actif!$E$29/100","v":{"v":0.027999999999999997,"d":"2.80%"}}]
[null,"#88",35,2029,"F","A_PER",{"v":0.44999999999999996,"d":"0.45"},{"v":0.38999999999999996,"d":"0.39"},0.6,0.6,85,0,{"$f":"ROUND(Primes!$Q$7*V9204,0)","v":4},{"$f":"'BP Financier'!$G$33*(('BP Financier'!$C$19+'BP Financier'!$D$19+'BP Financier'!$E$19+'BP Financier'!$F$19+'BP Financier'!$G$19)/('BP Financier'!$C$16+'BP Financier'!$C$19+'BP Financier'!$D$16+'BP Financier'!$D$19+'BP Financier'!$E$16+'BP Financier'!$E$19+'BP Financier'!$F$16+'BP Financier'!$F$19+'BP Financier'!$G$16+'BP Financier'!$G$19))*V9204","v":{"v":170865.17167118323,"d":"170,865"}},{"v":98065.41872671354,"d":"98,065"},{"$f":"'BP Financier'!$G$44*(('BP Financier'!$C$19+'BP Financier'!$D$19+'BP Financier'!$E$19+'BP Financier'!$F$19+'BP Financier'!$G$19)/('BP Financier'!$C$16+'BP Financier'!$C$19+'BP Financier'!$D$16+'BP Financier'!$D$19+'BP Financier'!$E$16+'BP Financier'!$E$19+'BP Financier'!$C$22+'BP Financier'!$D$22+'BP Financier'!$E$22+'BP Financier'!$F$22+'BP Financier'!$F$19+'BP Financier'!$F$16+'BP Financier'!$G$22+'BP Financier'!$G$19+'BP Financier'!$G$16))*$V9204*X9204/(1-$W9204)","v":{"v":12482.307165636536,"d":"12,482"}},{"$f":"'BP Financier'!$G$44*(('BP Financier'!$C$19+'BP Financier'!$D$19+'BP Financier'!$E$19+'BP Financier'!$F$19+'BP Financier'!$G$19)/('BP Financier'!$C$16+'BP Financier'!$C$19+'BP Financier'!$D$16+'BP Financier'!$D$19+'BP Financier'!$E$16+'BP Financier'!$E$19+'BP Financier'!$C$22+'BP Financier'!$D$22+'BP Financier'!$E$22+'BP Financier'!$F$22+'BP Financier'!$F$19+'BP Financier'!$F$16+'BP Financier'!$G$22+'BP Financier'!$G$19+'BP Financier'!$G$16))*$V9204*Y9204/(1-$W9204)","v":{"v":8344.525784762545,"d":"8,345"}},{"$f":"'BP Financier'!$G$44*(('BP Financier'!$C$19+'BP Financier'!$D$19+'BP Financier'!$E$19+'BP Financier'!$F$19+'BP Financier'!$G$19)/('BP Financier'!$C$16+'BP Financier'!$C$19+'BP Financier'!$D$16+'BP Financier'!$D$19+'BP Financier'!$E$16+'BP Financier'!$E$19+'BP Financier'!$C$22+'BP Financier'!$D$22+'BP Financier'!$E$22+'BP Financier'!$F$22+'BP Financier'!$F$19+'BP Financier'!$F$16+'BP Financier'!$G$22+'BP Financier'!$G$19+'BP Financier'!$G$16))*$V9204*Z9204/(1-$W9204)","v":{"v":65307.982794794465,"d":"65,308"}},{"$f":"'BP Financier'!$G$44*(('BP Financier'!$C$19+'BP Financier'!$D$19+'BP Financier'!$E$19+'BP Financier'!$F$19+'BP Financier'!$G$19)/('BP Financier'!$C$16+'BP Financier'!$C$19+'BP Financier'!$D$16+'BP Financier'!$D$19+'BP Financier'!$E$16+'BP Financier'!$E$19+'BP Financier'!$C$22+'BP Financier'!$D$22+'BP Financier'!$E$22+'BP Financier'!$F$22+'BP Financier'!$F$19+'BP Financier'!$F$16+'BP Financier'!$G$22+'BP Financier'!$G$19+'BP Financier'!$G$16))*$V9204*AA9204/(1-$W9204)","v":{"v":8068.673692704279,"d":"8,069"}},{"$f":"'BP Financier'!$G$44*(('BP Financier'!$C$19+'BP Financier'!$D$19+'BP Financier'!$E$19+'BP Financier'!$F$19+'BP Financier'!$G$19)/('BP Financier'!$C$16+'BP Financier'!$C$19+'BP Financier'!$D$16+'BP Financier'!$D$19+'BP Financier'!$E$16+'BP Financier'!$E$19+'BP Financier'!$C$22+'BP Financier'!$D$22+'BP Financier'!$E$22+'BP Financier'!$F$22+'BP Financier'!$F$19+'BP Financier'!$F$16+'BP Financier'!$G$22+'BP Financier'!$G$19+'BP Financier'!$G$16))*$V9204*AB9204/(1-$W9204)","v":{"v":3861.929288815723,"d":"3,862"}},null,{"v":0.003,"d":"0.30%"},{"$f":"Actif!$E$28/100","v":{"v":0.28900000000000003,"d":"28.90%"}},{"$f":"Actif!$E$30/100","v":{"v":0.09050000000000001,"d":"9.05%"}},{"$f":"Actif!$E$31/100","v":{"v":0.0605,"d":"6.05%"}},{"$f":"Actif!$E$32/100","v":{"v":0.47350000000000003,"d":"47.35%"}},{"$f":"Actif!$E$33/100","v":{"v":0.0585,"d":"5.85%"}},{"$f":"Actif!$E$29/100","v":{"v":0.027999999999999997,"d":"2.80%"}}]
[null,"#89",35,2030,"F","A_PER",{"v":0.44999999999999996,"d":"0.45"},{"v":0.38999999999999996,"d":"0.39"},0.6,0.6,85,0,{"$f":"ROUND(Primes!$Q$7*V9205,0)","v":4},{"$f":"'BP Financier'!$G$33*(('BP Financier'!$C$19+'BP Financier'!$D$19+'BP Financier'!$E$19+'BP Financier'!$F$19+'BP Financier'!$G$19)/('BP Financier'!$C$16+'BP Financier'!$C$19+'BP Financier'!$D$16+'BP Financier'!$D$19+'BP Financier'!$E$16+'BP Financier'!$E$19+'BP Financier'!$F$16+'BP Financier'!$F$19+'BP Financier'!$G$16+'BP Financier'!$G$19))*V9205","v":{"v":170865.17167118323,"d":"170,865"}},{"v":98065.41872671354,"d":"98,065"},{"$f":"'BP Financier'!$G$44*(('BP Financier'!$C$19+'BP Financier'!$D$19+'BP Financier'!$E$19+'BP Financier'!$F$19+'BP Financier'!$G$19)/('BP Financier'!$C$16+'BP Financier'!$C$19+'BP Financier'!$D$16+'BP Financier'!$D$19+'BP Financier'!$E$16+'BP Financier'!$E$19+'BP Financier'!$C$22+'BP Financier'!$D$22+'BP Financier'!$E$22+'BP Financier'!$F$22+'BP Financier'!$F$19+'BP Financier'!$F$16+'BP Financier'!$G$22+'BP Financier'!$G$19+'BP Financier'!$G$16))*$V9205*X9205/(1-$W9205)","v":{"v":12482.307165636536,"d":"12,482"}},{"$f":"'BP Financier'!$G$44*(('BP Financier'!$C$19+'BP Financier'!$D$19+'BP Financier'!$E$19+'BP Financier'!$F$19+'BP Financier'!$G$19)/('BP Financier'!$C$16+'BP Financier'!$C$19+'BP Financier'!$D$16+'BP Financier'!$D$19+'BP Financier'!$E$16+'BP Financier'!$E$19+'BP Financier'!$C$22+'BP Financier'!$D$22+'BP Financier'!$E$22+'BP Financier'!$F$22+'BP Financier'!$F$19+'BP Financier'!$F$16+'BP Financier'!$G$22+'BP Financier'!$G$19+'BP Financier'!$G$16))*$V9205*Y9205/(1-$W9205)","v":{"v":8344.525784762545,"d":"8,345"}},{"$f":"'BP Financier'!$G$44*(('BP Financier'!$C$19+'BP Financier'!$D$19+'BP Financier'!$E$19+'BP Financier'!$F$19+'BP Financier'!$G$19)/('BP Financier'!$C$16+'BP Financier'!$C$19+'BP Financier'!$D$16+'BP Financier'!$D$19+'BP Financier'!$E$16+'BP Financier'!$E$19+'BP Financier'!$C$22+'BP Financier'!$D$22+'BP Financier'!$E$22+'BP Financier'!$F$22+'BP Financier'!$F$19+'BP Financier'!$F$16+'BP Financier'!$G$22+'BP Financier'!$G$19+'BP Financier'!$G$16))*$V9205*Z9205/(1-$W9205)","v":{"v":65307.982794794465,"d":"65,308"}},{"$f":"'BP Financier'!$G$44*(('BP Financier'!$C$19+'BP Financier'!$D$19+'BP Financier'!$E$19+'BP Financier'!$F$19+'BP Financier'!$G$19)/('BP Financier'!$C$16+'BP Financier'!$C$19+'BP Financier'!$D$16+'BP Financier'!$D$19+'BP Financier'!$E$16+'BP Financier'!$E$19+'BP Financier'!$C$22+'BP Financier'!$D$22+'BP Financier'!$E$22+'BP Financier'!$F$22+'BP Financier'!$F$19+'BP Financier'!$F$16+'BP Financier'!$G$22+'BP Financier'!$G$19+'BP Financier'!$G$16))*$V9205*AA9205/(1-$W9205)","v":{"v":8068.673692704279,"d":"8,069"}},{"$f":"'BP Financier'!$G$44*(('BP Financier'!$C$19+'BP Financier'!$D$19+'BP Financier'!$E$19+'BP Financier'!$F$19+'BP Financier'!$G$19)/('BP Financier'!$C$16+'BP Financier'!$C$19+'BP Financier'!$D$16+'BP Financier'!$D$19+'BP Financier'!$E$16+'BP Financier'!$E$19+'BP Financier'!$C$22+'BP Financier'!$D$22+'BP Financier'!$E$22+'BP Financier'!$F$22+'BP Financier'!$F$19+'BP Financier'!$F$16+'BP Financier'!$G$22+'BP Financier'!$G$19+'BP Financier'!$G$16))*$V9205*AB9205/(1-$W9205)","v":{"v":3861.929288815723,"d":"3,862"}},null,{"v":0.003,"d":"0.30%"},{"$f":"Actif!$E$28/100","v":{"v":0.28900000000000003,"d":"28.90%"}},{"$f":"Actif!$E$30/100","v":{"v":0.09050000000000001,"d":"9.05%"}},{"$f":"Actif!$E$31/100","v":{"v":0.0605,"d":"6.05%"}},{"$f":"Actif!$E$32/100","v":{"v":0.47350000000000003,"d":"47.35%"}},{"$f":"Actif!$E$33/100","v":{"v":0.0585,"d":"5.85%"}},{"$f":"Actif!$E$29/100","v":{"v":0.027999999999999997,"d":"2.80%"}}]
[null,"#90",35,2031,"F","A_PER",{"v":0.44999999999999996,"d":"0.45"},{"v":0.38999999999999996,"d":"0.39"},0.6,0.6,85,0,{"$f":"ROUND(Primes!$Q$7*V9206,0)","v":4},{"$f":"'BP Financier'!$G$33*(('BP Financier'!$C$19+'BP Financier'!$D$19+'BP Financier'!$E$19+'BP Financier'!$F$19+'BP Financier'!$G$19)/('BP Financier'!$C$16+'BP Financier'!$C$19+'BP Financier'!$D$16+'BP Financier'!$D$19+'BP Financier'!$E$16+'BP Financier'!$E$19+'BP Financier'!$F$16+'BP Financier'!$F$19+'BP Financier'!$G$16+'BP Financier'!$G$19))*V9206","v":{"v":170865.17167118323,"d":"170,865"}},{"v":98065.41872671354,"d":"98,065"},{"$f":"'BP Financier'!$G$44*(('BP Financier'!$C$19+'BP Financier'!$D$19+'BP Financier'!$E$19+'BP Financier'!$F$19+'BP Financier'!$G$19)/('BP Financier'!$C$16+'BP Financier'!$C$19+'BP Financier'!$D$16+'BP Financier'!$D$19+'BP Financier'!$E$16+'BP Financier'!$E$19+'BP Financier'!$C$22+'BP Financier'!$D$22+'BP Financier'!$E$22+'BP Financier'!$F$22+'BP Financier'!$F$19+'BP Financier'!$F$16+'BP Financier'!$G$22+'BP Financier'!$G$19+'BP Financier'!$G$16))*$V9206*X9206/(1-$W9206)","v":{"v":12482.307165636536,"d":"12,482"}},{"$f":"'BP Financier'!$G$44*(('BP Financier'!$C$19+'BP Financier'!$D$19+'BP Financier'!$E$19+'BP Financier'!$F$19+'BP Financier'!$G$19)/('BP Financier'!$C$16+'BP Financier'!$C$19+'BP Financier'!$D$16+'BP Financier'!$D$19+'BP Financier'!$E$16+'BP Financier'!$E$19+'BP Financier'!$C$22+'BP Financier'!$D$22+'BP Financier'!$E$22+'BP Financier'!$F$22+'BP Financier'!$F$19+'BP Financier'!$F$16+'BP Financier'!$G$22+'BP Financier'!$G$19+'BP Financier'!$G$16))*$V9206*Y9206/(1-$W9206)","v":{"v":8344.525784762545,"d":"8,345"}},{"$f":"'BP Financier'!$G$44*(('BP Financier'!$C$19+'BP Financier'!$D$19+'BP Financier'!$E$19+'BP Financier'!$F$19+'BP Financier'!$G$19)/('BP Financier'!$C$16+'BP Financier'!$C$19+'BP Financier'!$D$16+'BP Financier'!$D$19+'BP Financier'!$E$16+'BP Financier'!$E$19+'BP Financier'!$C$22+'BP Financier'!$D$22+'BP Financier'!$E$22+'BP Financier'!$F$22+'BP Financier'!$F$19+'BP Financier'!$F$16+'BP Financier'!$G$22+'BP Financier'!$G$19+'BP Financier'!$G$16))*$V9206*Z9206/(1-$W9206)","v":{"v":65307.982794794465,"d":"65,308"}},{"$f":"'BP Financier'!$G$44*(('BP Financier'!$C$19+'BP Financier'!$D$19+'BP Financier'!$E$19+'BP Financier'!$F$19+'BP Financier'!$G$19)/('BP Financier'!$C$16+'BP Financier'!$C$19+'BP Financier'!$D$16+'BP Financier'!$D$19+'BP Financier'!$E$16+'BP Financier'!$E$19+'BP Financier'!$C$22+'BP Financier'!$D$22+'BP Financier'!$E$22+'BP Financier'!$F$22+'BP Financier'!$F$19+'BP Financier'!$F$16+'BP Financier'!$G$22+'BP Financier'!$G$19+'BP Financier'!$G$16))*$V9206*AA9206/(1-$W9206)","v":{"v":8068.673692704279,"d":"8,069"}},{"$f":"'BP Financier'!$G$44*(('BP Financier'!$C$19+'BP Financier'!$D$19+'BP Financier'!$E$19+'BP Financier'!$F$19+'BP Financier'!$G$19)/('BP Financier'!$C$16+'BP Financier'!$C$19+'BP Financier'!$D$16+'BP Financier'!$D$19+'BP Financier'!$E$16+'BP Financier'!$E$19+'BP Financier'!$C$22+'BP Financier'!$D$22+'BP Financier'!$E$22+'BP Financier'!$F$22+'BP Financier'!$F$19+'BP Financier'!$F$16+'BP Financier'!$G$22+'BP Financier'!$G$19+'BP Financier'!$G$16))*$V9206*AB9206/(1-$W9206)","v":{"v":3861.929288815723,"d":"3,862"}},null,{"v":0.003,"d":"0.30%"},{"$f":"Actif!$E$28/100","v":{"v":0.28900000000000003,"d":"28.90%"}},{"$f":"Actif!$E$30/100","v":{"v":0.09050000000000001,"d":"9.05%"}},{"$f":"Actif!$E$31/100","v":{"v":0.0605,"d":"6.05%"}},{"$f":"Actif!$E$32/100","v":{"v":0.47350000000000003,"d":"47.35%"}},{"$f":"Actif!$E$33/100","v":{"v":0.0585,"d":"5.85%"}},{"$f":"Actif!$E$29/100","v":{"v":0.027999999999999997,"d":"2.80%"}}]
[null,"#91",36,2026,"H","A_PER",{"v":0.44999999999999996,"d":"0.45"},{"v":0.38999999999999996,"d":"0.39"},0.6,0.6,85,0,{"$f":"ROUND(Primes!$Q$7*V9207,0)","v":4},{"$f":"'BP Financier'!$G$33*(('BP Financier'!$C$19+'BP Financier'!$D$19+'BP Financier'!$E$19+'BP Financier'!$F$19+'BP Financier'!$G$19)/('BP Financier'!$C$16+'BP Financier'!$C$19+'BP Financier'!$D$16+'BP Financier'!$D$19+'BP Financier'!$E$16+'BP Financier'!$E$19+'BP Financier'!$F$16+'BP Financier'!$F$19+'BP Financier'!$G$16+'BP Financier'!$G$19))*V9207","v":{"v":170865.17167118323,"d":"170,865"}},{"v":98065.41872671354,"d":"98,065"},{"$f":"'BP Financier'!$G$44*(('BP Financier'!$C$19+'BP Financier'!$D$19+'BP Financier'!$E$19+'BP Financier'!$F$19+'BP Financier'!$G$19)/('BP Financier'!$C$16+'BP Financier'!$C$19+'BP Financier'!$D$16+'BP Financier'!$D$19+'BP Financier'!$E$16+'BP Financier'!$E$19+'BP Financier'!$C$22+'BP Financier'!$D$22+'BP Financier'!$E$22+'BP Financier'!$F$22+'BP Financier'!$F$19+'BP Financier'!$F$16+'BP Financier'!$G$22+'BP Financier'!$G$19+'BP Financier'!$G$16))*$V9207*X9207/(1-$W9207)","v":{"v":12482.307165636536,"d":"12,482"}},{"$f":"'BP Financier'!$G$44*(('BP Financier'!$C$19+'BP Financier'!$D$19+'BP Financier'!$E$19+'BP Financier'!$F$19+'BP Financier'!$G$19)/('BP Financier'!$C$16+'BP Financier'!$C$19+'BP Financier'!$D$16+'BP Financier'!$D$19+'BP Financier'!$E$16+'BP Financier'!$E$19+'BP Financier'!$C$22+'BP Financier'!$D$22+'BP Financier'!$E$22+'BP Financier'!$F$22+'BP Financier'!$F$19+'BP Financier'!$F$16+'BP Financier'!$G$22+'BP Financier'!$G$19+'BP Financier'!$G$16))*$V9207*Y9207/(1-$W9207)","v":{"v":8344.525784762545,"d":"8,345"}},{"$f":"'BP Financier'!$G$44*(('BP Financier'!$C$19+'BP Financier'!$D$19+'BP Financier'!$E$19+'BP Financier'!$F$19+'BP Financier'!$G$19)/('BP Financier'!$C$16+'BP Financier'!$C$19+'BP Financier'!$D$16+'BP Financier'!$D$19+'BP Financier'!$E$16+'BP Financier'!$E$19+'BP Financier'!$C$22+'BP Financier'!$D$22+'BP Financier'!$E$22+'BP Financier'!$F$22+'BP Financier'!$F$19+'BP Financier'!$F$16+'BP Financier'!$G$22+'BP Financier'!$G$19+'BP Financier'!$G$16))*$V9207*Z9207/(1-$W9207)","v":{"v":65307.982794794465,"d":"65,308"}},{"$f":"'BP Financier'!$G$44*(('BP Financier'!$C$19+'BP Financier'!$D$19+'BP Financier'!$E$19+'BP Financier'!$F$19+'BP Financier'!$G$19)/('BP Financier'!$C$16+'BP Financier'!$C$19+'BP Financier'!$D$16+'BP Financier'!$D$19+'BP Financier'!$E$16+'BP Financier'!$E$19+'BP Financier'!$C$22+'BP Financier'!$D$22+'BP Financier'!$E$22+'BP Financier'!$F$22+'BP Financier'!$F$19+'BP Financier'!$F$16+'BP Financier'!$G$22+'BP Financier'!$G$19+'BP Financier'!$G$16))*$V9207*AA9207/(1-$W9207)","v":{"v":8068.673692704279,"d":"8,069"}},{"$f":"'BP Financier'!$G$44*(('BP Financier'!$C$19+'BP Financier'!$D$19+'BP Financier'!$E$19+'BP Financier'!$F$19+'BP Financier'!$G$19)/('BP Financier'!$C$16+'BP Financier'!$C$19+'BP Financier'!$D$16+'BP Financier'!$D$19+'BP Financier'!$E$16+'BP Financier'!$E$19+'BP Financier'!$C$22+'BP Financier'!$D$22+'BP Financier'!$E$22+'BP Financier'!$F$22+'BP Financier'!$F$19+'BP Financier'!$F$16+'BP Financier'!$G$22+'BP Financier'!$G$19+'BP Financier'!$G$16))*$V9207*AB9207/(1-$W9207)","v":{"v":3861.929288815723,"d":"3,862"}},null,{"v":0.003,"d":"0.30%"},{"$f":"Actif!$E$28/100","v":{"v":0.28900000000000003,"d":"28.90%"}},{"$f":"Actif!$E$30/100","v":{"v":0.09050000000000001,"d":"9.05%"}},{"$f":"Actif!$E$31/100","v":{"v":0.0605,"d":"6.05%"}},{"$f":"Actif!$E$32/100","v":{"v":0.47350000000000003,"d":"47.35%"}},{"$f":"Actif!$E$33/100","v":{"v":0.0585,"d":"5.85%"}},{"$f":"Actif!$E$29/100","v":{"v":0.027999999999999997,"d":"2.80%"}}]
[null,"#92",36,2028,"H","A_PER",{"v":0.44999999999999996,"d":"0.45"},{"v":0.38999999999999996,"d":"0.39"},0.6,0.6,85,0,{"$f":"ROUND(Primes!$Q$7*V9208,0)","v":4},{"$f":"'BP Financier'!$G$33*(('BP Financier'!$C$19+'BP Financier'!$D$19+'BP Financier'!$E$19+'BP Financier'!$F$19+'BP Financier'!$G$19)/('BP Financier'!$C$16+'BP Financier'!$C$19+'BP Financier'!$D$16+'BP Financier'!$D$19+'BP Financier'!$E$16+'BP Financier'!$E$19+'BP Financier'!$F$16+'BP Financier'!$F$19+'BP Financier'!$G$16+'BP Financier'!$G$19))*V9208","v":{"v":170865.17167118323,"d":"170,865"}},{"v":98065.41872671354,"d":"98,065"},{"$f":"'BP Financier'!$G$44*(('BP Financier'!$C$19+'BP Financier'!$D$19+'BP Financier'!$E$19+'BP Financier'!$F$19+'BP Financier'!$G$19)/('BP Financier'!$C$16+'BP Financier'!$C$19+'BP Financier'!$D$16+'BP Financier'!$D$19+'BP Financier'!$E$16+'BP Financier'!$E$19+'BP Financier'!$C$22+'BP Financier'!$D$22+'BP Financier'!$E$22+'BP Financier'!$F$22+'BP Financier'!$F$19+'BP Financier'!$F$16+'BP Financier'!$G$22+'BP Financier'!$G$19+'BP Financier'!$G$16))*$V9208*X9208/(1-$W9208)","v":{"v":12482.307165636536,"d":"12,482"}},{"$f":"'BP Financier'!$G$44*(('BP Financier'!$C$19+'BP Financier'!$D$19+'BP Financier'!$E$19+'BP Financier'!$F$19+'BP Financier'!$G$19)/('BP Financier'!$C$16+'BP Financier'!$C$19+'BP Financier'!$D$16+'BP Financier'!$D$19+'BP Financier'!$E$16+'BP Financier'!$E$19+'BP Financier'!$C$22+'BP Financier'!$D$22+'BP Financier'!$E$22+'BP Financier'!$F$22+'BP Financier'!$F$19+'BP Financier'!$F$16+'BP Financier'!$G$22+'BP Financier'!$G$19+'BP Financier'!$G$16))*$V9208*Y9208/(1-$W9208)","v":{"v":8344.525784762545,"d":"8,345"}},{"$f":"'BP Financier'!$G$44*(('BP Financier'!$C$19+'BP Financier'!$D$19+'BP Financier'!$E$19+'BP Financier'!$F$19+'BP Financier'!$G$19)/('BP Financier'!$C$16+'BP Financier'!$C$19+'BP Financier'!$D$16+'BP Financier'!$D$19+'BP Financier'!$E$16+'BP Financier'!$E$19+'BP Financier'!$C$22+'BP Financier'!$D$22+'BP Financier'!$E$22+'BP Financier'!$F$22+'BP Financier'!$F$19+'BP Financier'!$F$16+'BP Financier'!$G$22+'BP Financier'!$G$19+'BP Financier'!$G$16))*$V9208*Z9208/(1-$W9208)","v":{"v":65307.982794794465,"d":"65,308"}},{"$f":"'BP Financier'!$G$44*(('BP Financier'!$C$19+'BP Financier'!$D$19+'BP Financier'!$E$19+'BP Financier'!$F$19+'BP Financier'!$G$19)/('BP Financier'!$C$16+'BP Financier'!$C$19+'BP Financier'!$D$16+'BP Financier'!$D$19+'BP Financier'!$E$16+'BP Financier'!$E$19+'BP Financier'!$C$22+'BP Financier'!$D$22+'BP Financier'!$E$22+'BP Financier'!$F$22+'BP Financier'!$F$19+'BP Financier'!$F$16+'BP Financier'!$G$22+'BP Financier'!$G$19+'BP Financier'!$G$16))*$V9208*AA9208/(1-$W9208)","v":{"v":8068.673692704279,"d":"8,069"}},{"$f":"'BP Financier'!$G$44*(('BP Financier'!$C$19+'BP Financier'!$D$19+'BP Financier'!$E$19+'BP Financier'!$F$19+'BP Financier'!$G$19)/('BP Financier'!$C$16+'BP Financier'!$C$19+'BP Financier'!$D$16+'BP Financier'!$D$19+'BP Financier'!$E$16+'BP Financier'!$E$19+'BP Financier'!$C$22+'BP Financier'!$D$22+'BP Financier'!$E$22+'BP Financier'!$F$22+'BP Financier'!$F$19+'BP Financier'!$F$16+'BP Financier'!$G$22+'BP Financier'!$G$19+'BP Financier'!$G$16))*$V9208*AB9208/(1-$W9208)","v":{"v":3861.929288815723,"d":"3,862"}},null,{"v":0.003,"d":"0.30%"},{"$f":"Actif!$E$28/100","v":{"v":0.28900000000000003,"d":"28.90%"}},{"$f":"Actif!$E$30/100","v":{"v":0.09050000000000001,"d":"9.05%"}},{"$f":"Actif!$E$31/100","v":{"v":0.0605,"d":"6.05%"}},{"$f":"Actif!$E$32/100","v":{"v":0.47350000000000003,"d":"47.35%"}},{"$f":"Actif!$E$33/100","v":{"v":0.0585,"d":"5.85%"}},{"$f":"Actif!$E$29/100","v":{"v":0.027999999999999997,"d":"2.80%"}}]
[null,"#93",36,2029,"H","A_PER",{"v":0.44999999999999996,"d":"0.45"},{"v":0.38999999999999996,"d":"0.39"},0.6,0.6,85,0,{"$f":"ROUND(Primes!$Q$7*V9209,0)","v":4},{"$f":"'BP Financier'!$G$33*(('BP Financier'!$C$19+'BP Financier'!$D$19+'BP Financier'!$E$19+'BP Financier'!$F$19+'BP Financier'!$G$19)/('BP Financier'!$C$16+'BP Financier'!$C$19+'BP Financier'!$D$16+'BP Financier'!$D$19+'BP Financier'!$E$16+'BP Financier'!$E$19+'BP Financier'!$F$16+'BP Financier'!$F$19+'BP Financier'!$G$16+'BP Financier'!$G$19))*V9209","v":{"v":170865.17167118323,"d":"170,865"}},{"v":98065.41872671354,"d":"98,065"},{"$f":"'BP Financier'!$G$44*(('BP Financier'!$C$19+'BP Financier'!$D$19+'BP Financier'!$E$19+'BP Financier'!$F$19+'BP Financier'!$G$19)/('BP Financier'!$C$16+'BP Financier'!$C$19+'BP Financier'!$D$16+'BP Financier'!$D$19+'BP Financier'!$E$16+'BP Financier'!$E$19+'BP Financier'!$C$22+'BP Financier'!$D$22+'BP Financier'!$E$22+'BP Financier'!$F$22+'BP Financier'!$F$19+'BP Financier'!$F$16+'BP Financier'!$G$22+'BP Financier'!$G$19+'BP Financier'!$G$16))*$V9209*X9209/(1-$W9209)","v":{"v":12482.307165636536,"d":"12,482"}},{"$f":"'BP Financier'!$G$44*(('BP Financier'!$C$19+'BP Financier'!$D$19+'BP Financier'!$E$19+'BP Financier'!$F$19+'BP Financier'!$G$19)/('BP Financier'!$C$16+'BP Financier'!$C$19+'BP Financier'!$D$16+'BP Financier'!$D$19+'BP Financier'!$E$16+'BP Financier'!$E$19+'BP Financier'!$C$22+'BP Financier'!$D$22+'BP Financier'!$E$22+'BP Financier'!$F$22+'BP Financier'!$F$19+'BP Financier'!$F$16+'BP Financier'!$G$22+'BP Financier'!$G$19+'BP Financier'!$G$16))*$V9209*Y9209/(1-$W9209)","v":{"v":8344.525784762545,"d":"8,345"}},{"$f":"'BP Financier'!$G$44*(('BP Financier'!$C$19+'BP Financier'!$D$19+'BP Financier'!$E$19+'BP Financier'!$F$19+'BP Financier'!$G$19)/('BP Financier'!$C$16+'BP Financier'!$C$19+'BP Financier'!$D$16+'BP Financier'!$D$19+'BP Financier'!$E$16+'BP Financier'!$E$19+'BP Financier'!$C$22+'BP Financier'!$D$22+'BP Financier'!$E$22+'BP Financier'!$F$22+'BP Financier'!$F$19+'BP Financier'!$F$16+'BP Financier'!$G$22+'BP Financier'!$G$19+'BP Financier'!$G$16))*$V9209*Z9209/(1-$W9209)","v":{"v":65307.982794794465,"d":"65,308"}},{"$f":"'BP Financier'!$G$44*(('BP Financier'!$C$19+'BP Financier'!$D$19+'BP Financier'!$E$19+'BP Financier'!$F$19+'BP Financier'!$G$19)/('BP Financier'!$C$16+'BP Financier'!$C$19+'BP Financier'!$D$16+'BP Financier'!$D$19+'BP Financier'!$E$16+'BP Financier'!$E$19+'BP Financier'!$C$22+'BP Financier'!$D$22+'BP Financier'!$E$22+'BP Financier'!$F$22+'BP Financier'!$F$19+'BP Financier'!$F$16+'BP Financier'!$G$22+'BP Financier'!$G$19+'BP Financier'!$G$16))*$V9209*AA9209/(1-$W9209)","v":{"v":8068.673692704279,"d":"8,069"}},{"$f":"'BP Financier'!$G$44*(('BP Financier'!$C$19+'BP Financier'!$D$19+'BP Financier'!$E$19+'BP Financier'!$F$19+'BP Financier'!$G$19)/('BP Financier'!$C$16+'BP Financier'!$C$19+'BP Financier'!$D$16+'BP Financier'!$D$19+'BP Financier'!$E$16+'BP Financier'!$E$19+'BP Financier'!$C$22+'BP Financier'!$D$22+'BP Financier'!$E$22+'BP Financier'!$F$22+'BP Financier'!$F$19+'BP Financier'!$F$16+'BP Financier'!$G$22+'BP Financier'!$G$19+'BP Financier'!$G$16))*$V9209*AB9209/(1-$W9209)","v":{"v":3861.929288815723,"d":"3,862"}},null,{"v":0.003,"d":"0.30%"},{"$f":"Actif!$E$28/100","v":{"v":0.28900000000000003,"d":"28.90%"}},{"$f":"Actif!$E$30/100","v":{"v":0.09050000000000001,"d":"9.05%"}},{"$f":"Actif!$E$31/100","v":{"v":0.0605,"d":"6.05%"}},{"$f":"Actif!$E$32/100","v":{"v":0.47350000000000003,"d":"47.35%"}},{"$f":"Actif!$E$33/100","v":{"v":0.0585,"d":"5.85%"}},{"$f":"Actif!$E$29/100","v":{"v":0.027999999999999997,"d":"2.80%"}}]
[null,"#94",36,2030,"H","A_PER",{"v":0.44999999999999996,"d":"0.45"},{"v":0.38999999999999996,"d":"0.39"},0.6,0.6,85,0,{"$f":"ROUND(Primes!$Q$7*V9210,0)","v":4},{"$f":"'BP Financier'!$G$33*(('BP Financier'!$C$19+'BP Financier'!$D$19+'BP Financier'!$E$19+'BP Financier'!$F$19+'BP Financier'!$G$19)/('BP Financier'!$C$16+'BP Financier'!$C$19+'BP Financier'!$D$16+'BP Financier'!$D$19+'BP Financier'!$E$16+'BP Financier'!$E$19+'BP Financier'!$F$16+'BP Financier'!$F$19+'BP Financier'!$G$16+'BP Financier'!$G$19))*V9210","v":{"v":170865.17167118323,"d":"170,865"}},{"v":98065.41872671354,"d":"98,065"},{"$f":"'BP Financier'!$G$44*(('BP Financier'!$C$19+'BP Financier'!$D$19+'BP Financier'!$E$19+'BP Financier'!$F$19+'BP Financier'!$G$19)/('BP Financier'!$C$16+'BP Financier'!$C$19+'BP Financier'!$D$16+'BP Financier'!$D$19+'BP Financier'!$E$16+'BP Financier'!$E$19+'BP Financier'!$C$22+'BP Financier'!$D$22+'BP Financier'!$E$22+'BP Financier'!$F$22+'BP Financier'!$F$19+'BP Financier'!$F$16+'BP Financier'!$G$22+'BP Financier'!$G$19+'BP Financier'!$G$16))*$V9210*X9210/(1-$W9210)","v":{"v":12482.307165636536,"d":"12,482"}},{"$f":"'BP Financier'!$G$44*(('BP Financier'!$C$19+'BP Financier'!$D$19+'BP Financier'!$E$19+'BP Financier'!$F$19+'BP Financier'!$G$19)/('BP Financier'!$C$16+'BP Financier'!$C$19+'BP Financier'!$D$16+'BP Financier'!$D$19+'BP Financier'!$E$16+'BP Financier'!$E$19+'BP Financier'!$C$22+'BP Financier'!$D$22+'BP Financier'!$E$22+'BP Financier'!$F$22+'BP Financier'!$F$19+'BP Financier'!$F$16+'BP Financier'!$G$22+'BP Financier'!$G$19+'BP Financier'!$G$16))*$V9210*Y9210/(1-$W9210)","v":{"v":8344.525784762545,"d":"8,345"}},{"$f":"'BP Financier'!$G$44*(('BP Financier'!$C$19+'BP Financier'!$D$19+'BP Financier'!$E$19+'BP Financier'!$F$19+'BP Financier'!$G$19)/('BP Financier'!$C$16+'BP Financier'!$C$19+'BP Financier'!$D$16+'BP Financier'!$D$19+'BP Financier'!$E$16+'BP Financier'!$E$19+'BP Financier'!$C$22+'BP Financier'!$D$22+'BP Financier'!$E$22+'BP Financier'!$F$22+'BP Financier'!$F$19+'BP Financier'!$F$16+'BP Financier'!$G$22+'BP Financier'!$G$19+'BP Financier'!$G$16))*$V9210*Z9210/(1-$W9210)","v":{"v":65307.982794794465,"d":"65,308"}},{"$f":"'BP Financier'!$G$44*(('BP Financier'!$C$19+'BP Financier'!$D$19+'BP Financier'!$E$19+'BP Financier'!$F$19+'BP Financier'!$G$19)/('BP Financier'!$C$16+'BP Financier'!$C$19+'BP Financier'!$D$16+'BP Financier'!$D$19+'BP Financier'!$E$16+'BP Financier'!$E$19+'BP Financier'!$C$22+'BP Financier'!$D$22+'BP Financier'!$E$22+'BP Financier'!$F$22+'BP Financier'!$F$19+'BP Financier'!$F$16+'BP Financier'!$G$22+'BP Financier'!$G$19+'BP Financier'!$G$16))*$V9210*AA9210/(1-$W9210)","v":{"v":8068.673692704279,"d":"8,069"}},{"$f":"'BP Financier'!$G$44*(('BP Financier'!$C$19+'BP Financier'!$D$19+'BP Financier'!$E$19+'BP Financier'!$F$19+'BP Financier'!$G$19)/('BP Financier'!$C$16+'BP Financier'!$C$19+'BP Financier'!$D$16+'BP Financier'!$D$19+'BP Financier'!$E$16+'BP Financier'!$E$19+'BP Financier'!$C$22+'BP Financier'!$D$22+'BP Financier'!$E$22+'BP Financier'!$F$22+'BP Financier'!$F$19+'BP Financier'!$F$16+'BP Financier'!$G$22+'BP Financier'!$G$19+'BP Financier'!$G$16))*$V9210*AB9210/(1-$W9210)","v":{"v":3861.929288815723,"d":"3,862"}},null,{"v":0.003,"d":"0.30%"},{"$f":"Actif!$E$28/100","v":{"v":0.28900000000000003,"d":"28.90%"}},{"$f":"Actif!$E$30/100","v":{"v":0.09050000000000001,"d":"9.05%"}},{"$f":"Actif!$E$31/100","v":{"v":0.0605,"d":"6.05%"}},{"$f":"Actif!$E$32/100","v":{"v":0.47350000000000003,"d":"47.35%"}},{"$f":"Actif!$E$33/100","v":{"v":0.0585,"d":"5.85%"}},{"$f":"Actif!$E$29/100","v":{"v":0.027999999999999997,"d":"2.80%"}}]
[null,"#95",36,2031,"H","A_PER",{"v":0.44999999999999996,"d":"0.45"},{"v":0.38999999999999996,"d":"0.39"},0.6,0.6,85,0,{"$f":"ROUND(Primes!$Q$7*V9211,0)","v":4},{"$f":"'BP Financier'!$G$33*(('BP Financier'!$C$19+'BP Financier'!$D$19+'BP Financier'!$E$19+'BP Financier'!$F$19+'BP Financier'!$G$19)/('BP Financier'!$C$16+'BP Financier'!$C$19+'BP Financier'!$D$16+'BP Financier'!$D$19+'BP Financier'!$E$16+'BP Financier'!$E$19+'BP Financier'!$F$16+'BP Financier'!$F$19+'BP Financier'!$G$16+'BP Financier'!$G$19))*V9211","v":{"v":170865.17167118323,"d":"170,865"}},{"v":98065.41872671354,"d":"98,065"},{"$f":"'BP Financier'!$G$44*(('BP Financier'!$C$19+'BP Financier'!$D$19+'BP Financier'!$E$19+'BP Financier'!$F$19+'BP Financier'!$G$19)/('BP Financier'!$C$16+'BP Financier'!$C$19+'BP Financier'!$D$16+'BP Financier'!$D$19+'BP Financier'!$E$16+'BP Financier'!$E$19+'BP Financier'!$C$22+'BP Financier'!$D$22+'BP Financier'!$E$22+'BP Financier'!$F$22+'BP Financier'!$F$19+'BP Financier'!$F$16+'BP Financier'!$G$22+'BP Financier'!$G$19+'BP Financier'!$G$16))*$V9211*X9211/(1-$W9211)","v":{"v":12482.307165636536,"d":"12,482"}},{"$f":"'BP Financier'!$G$44*(('BP Financier'!$C$19+'BP Financier'!$D$19+'BP Financier'!$E$19+'BP Financier'!$F$19+'BP Financier'!$G$19)/('BP Financier'!$C$16+'BP Financier'!$C$19+'BP Financier'!$D$16+'BP Financier'!$D$19+'BP Financier'!$E$16+'BP Financier'!$E$19+'BP Financier'!$C$22+'BP Financier'!$D$22+'BP Financier'!$E$22+'BP Financier'!$F$22+'BP Financier'!$F$19+'BP Financier'!$F$16+'BP Financier'!$G$22+'BP Financier'!$G$19+'BP Financier'!$G$16))*$V9211*Y9211/(1-$W9211)","v":{"v":8344.525784762545,"d":"8,345"}},{"$f":"'BP Financier'!$G$44*(('BP Financier'!$C$19+'BP Financier'!$D$19+'BP Financier'!$E$19+'BP Financier'!$F$19+'BP Financier'!$G$19)/('BP Financier'!$C$16+'BP Financier'!$C$19+'BP Financier'!$D$16+'BP Financier'!$D$19+'BP Financier'!$E$16+'BP Financier'!$E$19+'BP Financier'!$C$22+'BP Financier'!$D$22+'BP Financier'!$E$22+'BP Financier'!$F$22+'BP Financier'!$F$19+'BP Financier'!$F$16+'BP Financier'!$G$22+'BP Financier'!$G$19+'BP Financier'!$G$16))*$V9211*Z9211/(1-$W9211)","v":{"v":65307.982794794465,"d":"65,308"}},{"$f":"'BP Financier'!$G$44*(('BP Financier'!$C$19+'BP Financier'!$D$19+'BP Financier'!$E$19+'BP Financier'!$F$19+'BP Financier'!$G$19)/('BP Financier'!$C$16+'BP Financier'!$C$19+'BP Financier'!$D$16+'BP Financier'!$D$19+'BP Financier'!$E$16+'BP Financier'!$E$19+'BP Financier'!$C$22+'BP Financier'!$D$22+'BP Financier'!$E$22+'BP Financier'!$F$22+'BP Financier'!$F$19+'BP Financier'!$F$16+'BP Financier'!$G$22+'BP Financier'!$G$19+'BP Financier'!$G$16))*$V9211*AA9211/(1-$W9211)","v":{"v":8068.673692704279,"d":"8,069"}},{"$f":"'BP Financier'!$G$44*(('BP Financier'!$C$19+'BP Financier'!$D$19+'BP Financier'!$E$19+'BP Financier'!$F$19+'BP Financier'!$G$19)/('BP Financier'!$C$16+'BP Financier'!$C$19+'BP Financier'!$D$16+'BP Financier'!$D$19+'BP Financier'!$E$16+'BP Financier'!$E$19+'BP Financier'!$C$22+'BP Financier'!$D$22+'BP Financier'!$E$22+'BP Financier'!$F$22+'BP Financier'!$F$19+'BP Financier'!$F$16+'BP Financier'!$G$22+'BP Financier'!$G$19+'BP Financier'!$G$16))*$V9211*AB9211/(1-$W9211)","v":{"v":3861.929288815723,"d":"3,862"}},null,{"v":0.003,"d":"0.30%"},{"$f":"Actif!$E$28/100","v":{"v":0.28900000000000003,"d":"28.90%"}},{"$f":"Actif!$E$30/100","v":{"v":0.09050000000000001,"d":"9.05%"}},{"$f":"Actif!$E$31/100","v":{"v":0.0605,"d":"6.05%"}},{"$f":"Actif!$E$32/100","v":{"v":0.47350000000000003,"d":"47.35%"}},{"$f":"Actif!$E$33/100","v":{"v":0.0585,"d":"5.85%"}},{"$f":"Actif!$E$29/100","v":{"v":0.027999999999999997,"d":"2.80%"}}]
[null,"#96",37,2026,"H","A_PER",{"v":0.44999999999999996,"d":"0.45"},{"v":0.38999999999999996,"d":"0.39"},0.6,0.6,85,0,{"$f":"ROUND(Primes!$Q$7*V9212,0)","v":4},{"$f":"'BP Financier'!$G$33*(('BP Financier'!$C$19+'BP Financier'!$D$19+'BP Financier'!$E$19+'BP Financier'!$F$19+'BP Financier'!$G$19)/('BP Financier'!$C$16+'BP Financier'!$C$19+'BP Financier'!$D$16+'BP Financier'!$D$19+'BP Financier'!$E$16+'BP Financier'!$E$19+'BP Financier'!$F$16+'BP Financier'!$F$19+'BP Financier'!$G$16+'BP Financier'!$G$19))*V9212","v":{"v":170865.17167118323,"d":"170,865"}},{"v":98065.41872671354,"d":"98,065"},{"$f":"'BP Financier'!$G$44*(('BP Financier'!$C$19+'BP Financier'!$D$19+'BP Financier'!$E$19+'BP Financier'!$F$19+'BP Financier'!$G$19)/('BP Financier'!$C$16+'BP Financier'!$C$19+'BP Financier'!$D$16+'BP Financier'!$D$19+'BP Financier'!$E$16+'BP Financier'!$E$19+'BP Financier'!$C$22+'BP Financier'!$D$22+'BP Financier'!$E$22+'BP Financier'!$F$22+'BP Financier'!$F$19+'BP Financier'!$F$16+'BP Financier'!$G$22+'BP Financier'!$G$19+'BP Financier'!$G$16))*$V9212*X9212/(1-$W9212)","v":{"v":12482.307165636536,"d":"12,482"}},{"$f":"'BP Financier'!$G$44*(('BP Financier'!$C$19+'BP Financier'!$D$19+'BP Financier'!$E$19+'BP Financier'!$F$19+'BP Financier'!$G$19)/('BP Financier'!$C$16+'BP Financier'!$C$19+'BP Financier'!$D$16+'BP Financier'!$D$19+'BP Financier'!$E$16+'BP Financier'!$E$19+'BP Financier'!$C$22+'BP Financier'!$D$22+'BP Financier'!$E$22+'BP Financier'!$F$22+'BP Financier'!$F$19+'BP Financier'!$F$16+'BP Financier'!$G$22+'BP Financier'!$G$19+'BP Financier'!$G$16))*$V9212*Y9212/(1-$W9212)","v":{"v":8344.525784762545,"d":"8,345"}},{"$f":"'BP Financier'!$G$44*(('BP Financier'!$C$19+'BP Financier'!$D$19+'BP Financier'!$E$19+'BP Financier'!$F$19+'BP Financier'!$G$19)/('BP Financier'!$C$16+'BP Financier'!$C$19+'BP Financier'!$D$16+'BP Financier'!$D$19+'BP Financier'!$E$16+'BP Financier'!$E$19+'BP Financier'!$C$22+'BP Financier'!$D$22+'BP Financier'!$E$22+'BP Financier'!$F$22+'BP Financier'!$F$19+'BP Financier'!$F$16+'BP Financier'!$G$22+'BP Financier'!$G$19+'BP Financier'!$G$16))*$V9212*Z9212/(1-$W9212)","v":{"v":65307.982794794465,"d":"65,308"}},{"$f":"'BP Financier'!$G$44*(('BP Financier'!$C$19+'BP Financier'!$D$19+'BP Financier'!$E$19+'BP Financier'!$F$19+'BP Financier'!$G$19)/('BP Financier'!$C$16+'BP Financier'!$C$19+'BP Financier'!$D$16+'BP Financier'!$D$19+'BP Financier'!$E$16+'BP Financier'!$E$19+'BP Financier'!$C$22+'BP Financier'!$D$22+'BP Financier'!$E$22+'BP Financier'!$F$22+'BP Financier'!$F$19+'BP Financier'!$F$16+'BP Financier'!$G$22+'BP Financier'!$G$19+'BP Financier'!$G$16))*$V9212*AA9212/(1-$W9212)","v":{"v":8068.673692704279,"d":"8,069"}},{"$f":"'BP Financier'!$G$44*(('BP Financier'!$C$19+'BP Financier'!$D$19+'BP Financier'!$E$19+'BP Financier'!$F$19+'BP Financier'!$G$19)/('BP Financier'!$C$16+'BP Financier'!$C$19+'BP Financier'!$D$16+'BP Financier'!$D$19+'BP Financier'!$E$16+'BP Financier'!$E$19+'BP Financier'!$C$22+'BP Financier'!$D$22+'BP Financier'!$E$22+'BP Financier'!$F$22+'BP Financier'!$F$19+'BP Financier'!$F$16+'BP Financier'!$G$22+'BP Financier'!$G$19+'BP Financier'!$G$16))*$V9212*AB9212/(1-$W9212)","v":{"v":3861.929288815723,"d":"3,862"}},null,{"v":0.003,"d":"0.30%"},{"$f":"Actif!$E$28/100","v":{"v":0.28900000000000003,"d":"28.90%"}},{"$f":"Actif!$E$30/100","v":{"v":0.09050000000000001,"d":"9.05%"}},{"$f":"Actif!$E$31/100","v":{"v":0.0605,"d":"6.05%"}},{"$f":"Actif!$E$32/100","v":{"v":0.47350000000000003,"d":"47.35%"}},{"$f":"Actif!$E$33/100","v":{"v":0.0585,"d":"5.85%"}},{"$f":"Actif!$E$29/100","v":{"v":0.027999999999999997,"d":"2.80%"}}]
[null,"#97",37,2028,"H","A_PER",{"v":0.44999999999999996,"d":"0.45"},{"v":0.38999999999999996,"d":"0.39"},0.6,0.6,85,0,{"$f":"ROUND(Primes!$Q$7*V9213,0)","v":4},{"$f":"'BP Financier'!$G$33*(('BP Financier'!$C$19+'BP Financier'!$D$19+'BP Financier'!$E$19+'BP Financier'!$F$19+'BP Financier'!$G$19)/('BP Financier'!$C$16+'BP Financier'!$C$19+'BP Financier'!$D$16+'BP Financier'!$D$19+'BP Financier'!$E$16+'BP Financier'!$E$19+'BP Financier'!$F$16+'BP Financier'!$F$19+'BP Financier'!$G$16+'BP Financier'!$G$19))*V9213","v":{"v":170865.17167118323,"d":"170,865"}},{"v":98065.41872671354,"d":"98,065"},{"$f":"'BP Financier'!$G$44*(('BP Financier'!$C$19+'BP Financier'!$D$19+'BP Financier'!$E$19+'BP Financier'!$F$19+'BP Financier'!$G$19)/('BP Financier'!$C$16+'BP Financier'!$C$19+'BP Financier'!$D$16+'BP Financier'!$D$19+'BP Financier'!$E$16+'BP Financier'!$E$19+'BP Financier'!$C$22+'BP Financier'!$D$22+'BP Financier'!$E$22+'BP Financier'!$F$22+'BP Financier'!$F$19+'BP Financier'!$F$16+'BP Financier'!$G$22+'BP Financier'!$G$19+'BP Financier'!$G$16))*$V9213*X9213/(1-$W9213)","v":{"v":12482.307165636536,"d":"12,482"}},{"$f":"'BP Financier'!$G$44*(('BP Financier'!$C$19+'BP Financier'!$D$19+'BP Financier'!$E$19+'BP Financier'!$F$19+'BP Financier'!$G$19)/('BP Financier'!$C$16+'BP Financier'!$C$19+'BP Financier'!$D$16+'BP Financier'!$D$19+'BP Financier'!$E$16+'BP Financier'!$E$19+'BP Financier'!$C$22+'BP Financier'!$D$22+'BP Financier'!$E$22+'BP Financier'!$F$22+'BP Financier'!$F$19+'BP Financier'!$F$16+'BP Financier'!$G$22+'BP Financier'!$G$19+'BP Financier'!$G$16))*$V9213*Y9213/(1-$W9213)","v":{"v":8344.525784762545,"d":"8,345"}},{"$f":"'BP Financier'!$G$44*(('BP Financier'!$C$19+'BP Financier'!$D$19+'BP Financier'!$E$19+'BP Financier'!$F$19+'BP Financier'!$G$19)/('BP Financier'!$C$16+'BP Financier'!$C$19+'BP Financier'!$D$16+'BP Financier'!$D$19+'BP Financier'!$E$16+'BP Financier'!$E$19+'BP Financier'!$C$22+'BP Financier'!$D$22+'BP Financier'!$E$22+'BP Financier'!$F$22+'BP Financier'!$F$19+'BP Financier'!$F$16+'BP Financier'!$G$22+'BP Financier'!$G$19+'BP Financier'!$G$16))*$V9213*Z9213/(1-$W9213)","v":{"v":65307.982794794465,"d":"65,308"}},{"$f":"'BP Financier'!$G$44*(('BP Financier'!$C$19+'BP Financier'!$D$19+'BP Financier'!$E$19+'BP Financier'!$F$19+'BP Financier'!$G$19)/('BP Financier'!$C$16+'BP Financier'!$C$19+'BP Financier'!$D$16+'BP Financier'!$D$19+'BP Financier'!$E$16+'BP Financier'!$E$19+'BP Financier'!$C$22+'BP Financier'!$D$22+'BP Financier'!$E$22+'BP Financier'!$F$22+'BP Financier'!$F$19+'BP Financier'!$F$16+'BP Financier'!$G$22+'BP Financier'!$G$19+'BP Financier'!$G$16))*$V9213*AA9213/(1-$W9213)","v":{"v":8068.673692704279,"d":"8,069"}},{"$f":"'BP Financier'!$G$44*(('BP Financier'!$C$19+'BP Financier'!$D$19+'BP Financier'!$E$19+'BP Financier'!$F$19+'BP Financier'!$G$19)/('BP Financier'!$C$16+'BP Financier'!$C$19+'BP Financier'!$D$16+'BP Financier'!$D$19+'BP Financier'!$E$16+'BP Financier'!$E$19+'BP Financier'!$C$22+'BP Financier'!$D$22+'BP Financier'!$E$22+'BP Financier'!$F$22+'BP Financier'!$F$19+'BP Financier'!$F$16+'BP Financier'!$G$22+'BP Financier'!$G$19+'BP Financier'!$G$16))*$V9213*AB9213/(1-$W9213)","v":{"v":3861.929288815723,"d":"3,862"}},null,{"v":0.003,"d":"0.30%"},{"$f":"Actif!$E$28/100","v":{"v":0.28900000000000003,"d":"28.90%"}},{"$f":"Actif!$E$30/100","v":{"v":0.09050000000000001,"d":"9.05%"}},{"$f":"Actif!$E$31/100","v":{"v":0.0605,"d":"6.05%"}},{"$f":"Actif!$E$32/100","v":{"v":0.47350000000000003,"d":"47.35%"}},{"$f":"Actif!$E$33/100","v":{"v":0.0585,"d":"5.85%"}},{"$f":"Actif!$E$29/100","v":{"v":0.027999999999999997,"d":"2.80%"}}]
[null,"#98",37,2029,"H","A_PER",{"v":0.44999999999999996,"d":"0.45"},{"v":0.38999999999999996,"d":"0.39"},0.6,0.6,85,0,{"$f":"ROUND(Primes!$Q$7*V9214,0)","v":4},{"$f":"'BP Financier'!$G$33*(('BP Financier'!$C$19+'BP Financier'!$D$19+'BP Financier'!$E$19+'BP Financier'!$F$19+'BP Financier'!$G$19)/('BP Financier'!$C$16+'BP Financier'!$C$19+'BP Financier'!$D$16+'BP Financier'!$D$19+'BP Financier'!$E$16+'BP Financier'!$E$19+'BP Financier'!$F$16+'BP Financier'!$F$19+'BP Financier'!$G$16+'BP Financier'!$G$19))*V9214","v":{"v":170865.17167118323,"d":"170,865"}},{"v":98065.41872671354,"d":"98,065"},{"$f":"'BP Financier'!$G$44*(('BP Financier'!$C$19+'BP Financier'!$D$19+'BP Financier'!$E$19+'BP Financier'!$F$19+'BP Financier'!$G$19)/('BP Financier'!$C$16+'BP Financier'!$C$19+'BP Financier'!$D$16+'BP Financier'!$D$19+'BP Financier'!$E$16+'BP Financier'!$E$19+'BP Financier'!$C$22+'BP Financier'!$D$22+'BP Financier'!$E$22+'BP Financier'!$F$22+'BP Financier'!$F$19+'BP Financier'!$F$16+'BP Financier'!$G$22+'BP Financier'!$G$19+'BP Financier'!$G$16))*$V9214*X9214/(1-$W9214)","v":{"v":12482.307165636536,"d":"12,482"}},{"$f":"'BP Financier'!$G$44*(('BP Financier'!$C$19+'BP Financier'!$D$19+'BP Financier'!$E$19+'BP Financier'!$F$19+'BP Financier'!$G$19)/('BP Financier'!$C$16+'BP Financier'!$C$19+'BP Financier'!$D$16+'BP Financier'!$D$19+'BP Financier'!$E$16+'BP Financier'!$E$19+'BP Financier'!$C$22+'BP Financier'!$D$22+'BP Financier'!$E$22+'BP Financier'!$F$22+'BP Financier'!$F$19+'BP Financier'!$F$16+'BP Financier'!$G$22+'BP Financier'!$G$19+'BP Financier'!$G$16))*$V9214*Y9214/(1-$W9214)","v":{"v":8344.525784762545,"d":"8,345"}},{"$f":"'BP Financier'!$G$44*(('BP Financier'!$C$19+'BP Financier'!$D$19+'BP Financier'!$E$19+'BP Financier'!$F$19+'BP Financier'!$G$19)/('BP Financier'!$C$16+'BP Financier'!$C$19+'BP Financier'!$D$16+'BP Financier'!$D$19+'BP Financier'!$E$16+'BP Financier'!$E$19+'BP Financier'!$C$22+'BP Financier'!$D$22+'BP Financier'!$E$22+'BP Financier'!$F$22+'BP Financier'!$F$19+'BP Financier'!$F$16+'BP Financier'!$G$22+'BP Financier'!$G$19+'BP Financier'!$G$16))*$V9214*Z9214/(1-$W9214)","v":{"v":65307.982794794465,"d":"65,308"}},{"$f":"'BP Financier'!$G$44*(('BP Financier'!$C$19+'BP Financier'!$D$19+'BP Financier'!$E$19+'BP Financier'!$F$19+'BP Financier'!$G$19)/('BP Financier'!$C$16+'BP Financier'!$C$19+'BP Financier'!$D$16+'BP Financier'!$D$19+'BP Financier'!$E$16+'BP Financier'!$E$19+'BP Financier'!$C$22+'BP Financier'!$D$22+'BP Financier'!$E$22+'BP Financier'!$F$22+'BP Financier'!$F$19+'BP Financier'!$F$16+'BP Financier'!$G$22+'BP Financier'!$G$19+'BP Financier'!$G$16))*$V9214*AA9214/(1-$W9214)","v":{"v":8068.673692704279,"d":"8,069"}},{"$f":"'BP Financier'!$G$44*(('BP Financier'!$C$19+'BP Financier'!$D$19+'BP Financier'!$E$19+'BP Financier'!$F$19+'BP Financier'!$G$19)/('BP Financier'!$C$16+'BP Financier'!$C$19+'BP Financier'!$D$16+'BP Financier'!$D$19+'BP Financier'!$E$16+'BP Financier'!$E$19+'BP Financier'!$C$22+'BP Financier'!$D$22+'BP Financier'!$E$22+'BP Financier'!$F$22+'BP Financier'!$F$19+'BP Financier'!$F$16+'BP Financier'!$G$22+'BP Financier'!$G$19+'BP Financier'!$G$16))*$V9214*AB9214/(1-$W9214)","v":{"v":3861.929288815723,"d":"3,862"}},null,{"v":0.003,"d":"0.30%"},{"$f":"Actif!$E$28/100","v":{"v":0.28900000000000003,"d":"28.90%"}},{"$f":"Actif!$E$30/100","v":{"v":0.09050000000000001,"d":"9.05%"}},{"$f":"Actif!$E$31/100","v":{"v":0.0605,"d":"6.05%"}},{"$f":"Actif!$E$32/100","v":{"v":0.47350000000000003,"d":"47.35%"}},{"$f":"Actif!$E$33/100","v":{"v":0.0585,"d":"5.85%"}},{"$f":"Actif!$E$29/100","v":{"v":0.027999999999999997,"d":"2.80%"}}]
[null,"#99",37,2030,"H","A_PER",{"v":0.44999999999999996,"d":"0.45"},{"v":0.38999999999999996,"d":"0.39"},0.6,0.6,85,0,{"$f":"ROUND(Primes!$Q$7*V9215,0)","v":4},{"$f":"'BP Financier'!$G$33*(('BP Financier'!$C$19+'BP Financier'!$D$19+'BP Financier'!$E$19+'BP Financier'!$F$19+'BP Financier'!$G$19)/('BP Financier'!$C$16+'BP Financier'!$C$19+'BP Financier'!$D$16+'BP Financier'!$D$19+'BP Financier'!$E$16+'BP Financier'!$E$19+'BP Financier'!$F$16+'BP Financier'!$F$19+'BP Financier'!$G$16+'BP Financier'!$G$19))*V9215","v":{"v":170865.17167118323,"d":"170,865"}},{"v":98065.41872671354,"d":"98,065"},{"$f":"'BP Financier'!$G$44*(('BP Financier'!$C$19+'BP Financier'!$D$19+'BP Financier'!$E$19+'BP Financier'!$F$19+'BP Financier'!$G$19)/('BP Financier'!$C$16+'BP Financier'!$C$19+'BP Financier'!$D$16+'BP Financier'!$D$19+'BP Financier'!$E$16+'BP Financier'!$E$19+'BP Financier'!$C$22+'BP Financier'!$D$22+'BP Financier'!$E$22+'BP Financier'!$F$22+'BP Financier'!$F$19+'BP Financier'!$F$16+'BP Financier'!$G$22+'BP Financier'!$G$19+'BP Financier'!$G$16))*$V9215*X9215/(1-$W9215)","v":{"v":12482.307165636536,"d":"12,482"}},{"$f":"'BP Financier'!$G$44*(('BP Financier'!$C$19+'BP Financier'!$D$19+'BP Financier'!$E$19+'BP Financier'!$F$19+'BP Financier'!$G$19)/('BP Financier'!$C$16+'BP Financier'!$C$19+'BP Financier'!$D$16+'BP Financier'!$D$19+'BP Financier'!$E$16+'BP Financier'!$E$19+'BP Financier'!$C$22+'BP Financier'!$D$22+'BP Financier'!$E$22+'BP Financier'!$F$22+'BP Financier'!$F$19+'BP Financier'!$F$16+'BP Financier'!$G$22+'BP Financier'!$G$19+'BP Financier'!$G$16))*$V9215*Y9215/(1-$W9215)","v":{"v":8344.525784762545,"d":"8,345"}},{"$f":"'BP Financier'!$G$44*(('BP Financier'!$C$19+'BP Financier'!$D$19+'BP Financier'!$E$19+'BP Financier'!$F$19+'BP Financier'!$G$19)/('BP Financier'!$C$16+'BP Financier'!$C$19+'BP Financier'!$D$16+'BP Financier'!$D$19+'BP Financier'!$E$16+'BP Financier'!$E$19+'BP Financier'!$C$22+'BP Financier'!$D$22+'BP Financier'!$E$22+'BP Financier'!$F$22+'BP Financier'!$F$19+'BP Financier'!$F$16+'BP Financier'!$G$22+'BP Financier'!$G$19+'BP Financier'!$G$16))*$V9215*Z9215/(1-$W9215)","v":{"v":65307.982794794465,"d":"65,308"}},{"$f":"'BP Financier'!$G$44*(('BP Financier'!$C$19+'BP Financier'!$D$19+'BP Financier'!$E$19+'BP Financier'!$F$19+'BP Financier'!$G$19)/('BP Financier'!$C$16+'BP Financier'!$C$19+'BP Financier'!$D$16+'BP Financier'!$D$19+'BP Financier'!$E$16+'BP Financier'!$E$19+'BP Financier'!$C$22+'BP Financier'!$D$22+'BP Financier'!$E$22+'BP Financier'!$F$22+'BP Financier'!$F$19+'BP Financier'!$F$16+'BP Financier'!$G$22+'BP Financier'!$G$19+'BP Financier'!$G$16))*$V9215*AA9215/(1-$W9215)","v":{"v":8068.673692704279,"d":"8,069"}},{"$f":"'BP Financier'!$G$44*(('BP Financier'!$C$19+'BP Financier'!$D$19+'BP Financier'!$E$19+'BP Financier'!$F$19+'BP Financier'!$G$19)/('BP Financier'!$C$16+'BP Financier'!$C$19+'BP Financier'!$D$16+'BP Financier'!$D$19+'BP Financier'!$E$16+'BP Financier'!$E$19+'BP Financier'!$C$22+'BP Financier'!$D$22+'BP Financier'!$E$22+'BP Financier'!$F$22+'BP Financier'!$F$19+'BP Financier'!$F$16+'BP Financier'!$G$22+'BP Financier'!$G$19+'BP Financier'!$G$16))*$V9215*AB9215/(1-$W9215)","v":{"v":3861.929288815723,"d":"3,862"}},null,{"v":0.003,"d":"0.30%"},{"$f":"Actif!$E$28/100","v":{"v":0.28900000000000003,"d":"28.90%"}},{"$f":"Actif!$E$30/100","v":{"v":0.09050000000000001,"d":"9.05%"}},{"$f":"Actif!$E$31/100","v":{"v":0.0605,"d":"6.05%"}},{"$f":"Actif!$E$32/100","v":{"v":0.47350000000000003,"d":"47.35%"}},{"$f":"Actif!$E$33/100","v":{"v":0.0585,"d":"5.85%"}},{"$f":"Actif!$E$29/100","v":{"v":0.027999999999999997,"d":"2.80%"}}]
[null,"#100",37,2031,"H","A_PER",{"v":0.44999999999999996,"d":"0.45"},{"v":0.38999999999999996,"d":"0.39"},0.6,0.6,85,0,{"$f":"ROUND(Primes!$Q$7*V9216,0)","v":4},{"$f":"'BP Financier'!$G$33*(('BP Financier'!$C$19+'BP Financier'!$D$19+'BP Financier'!$E$19+'BP Financier'!$F$19+'BP Financier'!$G$19)/('BP Financier'!$C$16+'BP Financier'!$C$19+'BP Financier'!$D$16+'BP Financier'!$D$19+'BP Financier'!$E$16+'BP Financier'!$E$19+'BP Financier'!$F$16+'BP Financier'!$F$19+'BP Financier'!$G$16+'BP Financier'!$G$19))*V9216","v":{"v":170865.17167118323,"d":"170,865"}},{"v":98065.41872671354,"d":"98,065"},{"$f":"'BP Financier'!$G$44*(('BP Financier'!$C$19+'BP Financier'!$D$19+'BP Financier'!$E$19+'BP Financier'!$F$19+'BP Financier'!$G$19)/('BP Financier'!$C$16+'BP Financier'!$C$19+'BP Financier'!$D$16+'BP Financier'!$D$19+'BP Financier'!$E$16+'BP Financier'!$E$19+'BP Financier'!$C$22+'BP Financier'!$D$22+'BP Financier'!$E$22+'BP Financier'!$F$22+'BP Financier'!$F$19+'BP Financier'!$F$16+'BP Financier'!$G$22+'BP Financier'!$G$19+'BP Financier'!$G$16))*$V9216*X9216/(1-$W9216)","v":{"v":12482.307165636536,"d":"12,482"}},{"$f":"'BP Financier'!$G$44*(('BP Financier'!$C$19+'BP Financier'!$D$19+'BP Financier'!$E$19+'BP Financier'!$F$19+'BP Financier'!$G$19)/('BP Financier'!$C$16+'BP Financier'!$C$19+'BP Financier'!$D$16+'BP Financier'!$D$19+'BP Financier'!$E$16+'BP Financier'!$E$19+'BP Financier'!$C$22+'BP Financier'!$D$22+'BP Financier'!$E$22+'BP Financier'!$F$22+'BP Financier'!$F$19+'BP Financier'!$F$16+'BP Financier'!$G$22+'BP Financier'!$G$19+'BP Financier'!$G$16))*$V9216*Y9216/(1-$W9216)","v":{"v":8344.525784762545,"d":"8,345"}},{"$f":"'BP Financier'!$G$44*(('BP Financier'!$C$19+'BP Financier'!$D$19+'BP Financier'!$E$19+'BP Financier'!$F$19+'BP Financier'!$G$19)/('BP Financier'!$C$16+'BP Financier'!$C$19+'BP Financier'!$D$16+'BP Financier'!$D$19+'BP Financier'!$E$16+'BP Financier'!$E$19+'BP Financier'!$C$22+'BP Financier'!$D$22+'BP Financier'!$E$22+'BP Financier'!$F$22+'BP Financier'!$F$19+'BP Financier'!$F$16+'BP Financier'!$G$22+'BP Financier'!$G$19+'BP Financier'!$G$16))*$V9216*Z9216/(1-$W9216)","v":{"v":65307.982794794465,"d":"65,308"}},{"$f":"'BP Financier'!$G$44*(('BP Financier'!$C$19+'BP Financier'!$D$19+'BP Financier'!$E$19+'BP Financier'!$F$19+'BP Financier'!$G$19)/('BP Financier'!$C$16+'BP Financier'!$C$19+'BP Financier'!$D$16+'BP Financier'!$D$19+'BP Financier'!$E$16+'BP Financier'!$E$19+'BP Financier'!$C$22+'BP Financier'!$D$22+'BP Financier'!$E$22+'BP Financier'!$F$22+'BP Financier'!$F$19+'BP Financier'!$F$16+'BP Financier'!$G$22+'BP Financier'!$G$19+'BP Financier'!$G$16))*$V9216*AA9216/(1-$W9216)","v":{"v":8068.673692704279,"d":"8,069"}},{"$f":"'BP Financier'!$G$44*(('BP Financier'!$C$19+'BP Financier'!$D$19+'BP Financier'!$E$19+'BP Financier'!$F$19+'BP Financier'!$G$19)/('BP Financier'!$C$16+'BP Financier'!$C$19+'BP Financier'!$D$16+'BP Financier'!$D$19+'BP Financier'!$E$16+'BP Financier'!$E$19+'BP Financier'!$C$22+'BP Financier'!$D$22+'BP Financier'!$E$22+'BP Financier'!$F$22+'BP Financier'!$F$19+'BP Financier'!$F$16+'BP Financier'!$G$22+'BP Financier'!$G$19+'BP Financier'!$G$16))*$V9216*AB9216/(1-$W9216)","v":{"v":3861.929288815723,"d":"3,862"}},null,{"v":0.003,"d":"0.30%"},{"$f":"Actif!$E$28/100","v":{"v":0.28900000000000003,"d":"28.90%"}},{"$f":"Actif!$E$30/100","v":{"v":0.09050000000000001,"d":"9.05%"}},{"$f":"Actif!$E$31/100","v":{"v":0.0605,"d":"6.05%"}},{"$f":"Actif!$E$32/100","v":{"v":0.47350000000000003,"d":"47.35%"}},{"$f":"Actif!$E$33/100","v":{"v":0.0585,"d":"5.85%"}},{"$f":"Actif!$E$29/100","v":{"v":0.027999999999999997,"d":"2.80%"}}]
[null,"#101",38,2026,"F","A_PER",{"v":0.44999999999999996,"d":"0.45"},{"v":0.38999999999999996,"d":"0.39"},0.6,0.6,85,0,{"$f":"ROUND(Primes!$Q$7*V9217,0)","v":8},{"$f":"'BP Financier'!$G$33*(('BP Financier'!$C$19+'BP Financier'!$D$19+'BP Financier'!$E$19+'BP Financier'!$F$19+'BP Financier'!$G$19)/('BP Financier'!$C$16+'BP Financier'!$C$19+'BP Financier'!$D$16+'BP Financier'!$D$19+'BP Financier'!$E$16+'BP Financier'!$E$19+'BP Financier'!$F$16+'BP Financier'!$F$19+'BP Financier'!$G$16+'BP Financier'!$G$19))*V9217","v":{"v":341730.34334236645,"d":"341,730"}},{"v":196130.83745342708,"d":"196,131"},{"$f":"'BP Financier'!$G$44*(('BP Financier'!$C$19+'BP Financier'!$D$19+'BP Financier'!$E$19+'BP Financier'!$F$19+'BP Financier'!$G$19)/('BP Financier'!$C$16+'BP Financier'!$C$19+'BP Financier'!$D$16+'BP Financier'!$D$19+'BP Financier'!$E$16+'BP Financier'!$E$19+'BP Financier'!$C$22+'BP Financier'!$D$22+'BP Financier'!$E$22+'BP Financier'!$F$22+'BP Financier'!$F$19+'BP Financier'!$F$16+'BP Financier'!$G$22+'BP Financier'!$G$19+'BP Financier'!$G$16))*$V9217*X9217/(1-$W9217)","v":{"v":24964.61433127307,"d":"24,965"}},{"$f":"'BP Financier'!$G$44*(('BP Financier'!$C$19+'BP Financier'!$D$19+'BP Financier'!$E$19+'BP Financier'!$F$19+'BP Financier'!$G$19)/('BP Financier'!$C$16+'BP Financier'!$C$19+'BP Financier'!$D$16+'BP Financier'!$D$19+'BP Financier'!$E$16+'BP Financier'!$E$19+'BP Financier'!$C$22+'BP Financier'!$D$22+'BP Financier'!$E$22+'BP Financier'!$F$22+'BP Financier'!$F$19+'BP Financier'!$F$16+'BP Financier'!$G$22+'BP Financier'!$G$19+'BP Financier'!$G$16))*$V9217*Y9217/(1-$W9217)","v":{"v":16689.05156952509,"d":"16,689"}},{"$f":"'BP Financier'!$G$44*(('BP Financier'!$C$19+'BP Financier'!$D$19+'BP Financier'!$E$19+'BP Financier'!$F$19+'BP Financier'!$G$19)/('BP Financier'!$C$16+'BP Financier'!$C$19+'BP Financier'!$D$16+'BP Financier'!$D$19+'BP Financier'!$E$16+'BP Financier'!$E$19+'BP Financier'!$C$22+'BP Financier'!$D$22+'BP Financier'!$E$22+'BP Financier'!$F$22+'BP Financier'!$F$19+'BP Financier'!$F$16+'BP Financier'!$G$22+'BP Financier'!$G$19+'BP Financier'!$G$16))*$V9217*Z9217/(1-$W9217)","v":{"v":130615.96558958893,"d":"130,616"}},{"$f":"'BP Financier'!$G$44*(('BP Financier'!$C$19+'BP Financier'!$D$19+'BP Financier'!$E$19+'BP Financier'!$F$19+'BP Financier'!$G$19)/('BP Financier'!$C$16+'BP Financier'!$C$19+'BP Financier'!$D$16+'BP Financier'!$D$19+'BP Financier'!$E$16+'BP Financier'!$E$19+'BP Financier'!$C$22+'BP Financier'!$D$22+'BP Financier'!$E$22+'BP Financier'!$F$22+'BP Financier'!$F$19+'BP Financier'!$F$16+'BP Financier'!$G$22+'BP Financier'!$G$19+'BP Financier'!$G$16))*$V9217*AA9217/(1-$W9217)","v":{"v":16137.347385408559,"d":"16,137"}},{"$f":"'BP Financier'!$G$44*(('BP Financier'!$C$19+'BP Financier'!$D$19+'BP Financier'!$E$19+'BP Financier'!$F$19+'BP Financier'!$G$19)/('BP Financier'!$C$16+'BP Financier'!$C$19+'BP Financier'!$D$16+'BP Financier'!$D$19+'BP Financier'!$E$16+'BP Financier'!$E$19+'BP Financier'!$C$22+'BP Financier'!$D$22+'BP Financier'!$E$22+'BP Financier'!$F$22+'BP Financier'!$F$19+'BP Financier'!$F$16+'BP Financier'!$G$22+'BP Financier'!$G$19+'BP Financier'!$G$16))*$V9217*AB9217/(1-$W9217)","v":{"v":7723.858577631446,"d":"7,724"}},null,{"v":0.006,"d":"0.60%"},{"$f":"Actif!$E$28/100","v":{"v":0.28900000000000003,"d":"28.90%"}},{"$f":"Actif!$E$30/100","v":{"v":0.09050000000000001,"d":"9.05%"}},{"$f":"Actif!$E$31/100","v":{"v":0.0605,"d":"6.05%"}},{"$f":"Actif!$E$32/100","v":{"v":0.47350000000000003,"d":"47.35%"}},{"$f":"Actif!$E$33/100","v":{"v":0.0585,"d":"5.85%"}},{"$f":"Actif!$E$29/100","v":{"v":0.027999999999999997,"d":"2.80%"}}]
[null,"#102",38,2028,"F","A_PER",{"v":0.44999999999999996,"d":"0.45"},{"v":0.38999999999999996,"d":"0.39"},0.6,0.6,85,0,{"$f":"ROUND(Primes!$Q$7*V9218,0)","v":8},{"$f":"'BP Financier'!$G$33*(('BP Financier'!$C$19+'BP Financier'!$D$19+'BP Financier'!$E$19+'BP Financier'!$F$19+'BP Financier'!$G$19)/('BP Financier'!$C$16+'BP Financier'!$C$19+'BP Financier'!$D$16+'BP Financier'!$D$19+'BP Financier'!$E$16+'BP Financier'!$E$19+'BP Financier'!$F$16+'BP Financier'!$F$19+'BP Financier'!$G$16+'BP Financier'!$G$19))*V9218","v":{"v":341730.34334236645,"d":"341,730"}},{"v":196130.83745342708,"d":"196,131"},{"$f":"'BP Financier'!$G$44*(('BP Financier'!$C$19+'BP Financier'!$D$19+'BP Financier'!$E$19+'BP Financier'!$F$19+'BP Financier'!$G$19)/('BP Financier'!$C$16+'BP Financier'!$C$19+'BP Financier'!$D$16+'BP Financier'!$D$19+'BP Financier'!$E$16+'BP Financier'!$E$19+'BP Financier'!$C$22+'BP Financier'!$D$22+'BP Financier'!$E$22+'BP Financier'!$F$22+'BP Financier'!$F$19+'BP Financier'!$F$16+'BP Financier'!$G$22+'BP Financier'!$G$19+'BP Financier'!$G$16))*$V9218*X9218/(1-$W9218)","v":{"v":24964.61433127307,"d":"24,965"}},{"$f":"'BP Financier'!$G$44*(('BP Financier'!$C$19+'BP Financier'!$D$19+'BP Financier'!$E$19+'BP Financier'!$F$19+'BP Financier'!$G$19)/('BP Financier'!$C$16+'BP Financier'!$C$19+'BP Financier'!$D$16+'BP Financier'!$D$19+'BP Financier'!$E$16+'BP Financier'!$E$19+'BP Financier'!$C$22+'BP Financier'!$D$22+'BP Financier'!$E$22+'BP Financier'!$F$22+'BP Financier'!$F$19+'BP Financier'!$F$16+'BP Financier'!$G$22+'BP Financier'!$G$19+'BP Financier'!$G$16))*$V9218*Y9218/(1-$W9218)","v":{"v":16689.05156952509,"d":"16,689"}},{"$f":"'BP Financier'!$G$44*(('BP Financier'!$C$19+'BP Financier'!$D$19+'BP Financier'!$E$19+'BP Financier'!$F$19+'BP Financier'!$G$19)/('BP Financier'!$C$16+'BP Financier'!$C$19+'BP Financier'!$D$16+'BP Financier'!$D$19+'BP Financier'!$E$16+'BP Financier'!$E$19+'BP Financier'!$C$22+'BP Financier'!$D$22+'BP Financier'!$E$22+'BP Financier'!$F$22+'BP Financier'!$F$19+'BP Financier'!$F$16+'BP Financier'!$G$22+'BP Financier'!$G$19+'BP Financier'!$G$16))*$V9218*Z9218/(1-$W9218)","v":{"v":130615.96558958893,"d":"130,616"}},{"$f":"'BP Financier'!$G$44*(('BP Financier'!$C$19+'BP Financier'!$D$19+'BP Financier'!$E$19+'BP Financier'!$F$19+'BP Financier'!$G$19)/('BP Financier'!$C$16+'BP Financier'!$C$19+'BP Financier'!$D$16+'BP Financier'!$D$19+'BP Financier'!$E$16+'BP Financier'!$E$19+'BP Financier'!$C$22+'BP Financier'!$D$22+'BP Financier'!$E$22+'BP Financier'!$F$22+'BP Financier'!$F$19+'BP Financier'!$F$16+'BP Financier'!$G$22+'BP Financier'!$G$19+'BP Financier'!$G$16))*$V9218*AA9218/(1-$W9218)","v":{"v":16137.347385408559,"d":"16,137"}},{"$f":"'BP Financier'!$G$44*(('BP Financier'!$C$19+'BP Financier'!$D$19+'BP Financier'!$E$19+'BP Financier'!$F$19+'BP Financier'!$G$19)/('BP Financier'!$C$16+'BP Financier'!$C$19+'BP Financier'!$D$16+'BP Financier'!$D$19+'BP Financier'!$E$16+'BP Financier'!$E$19+'BP Financier'!$C$22+'BP Financier'!$D$22+'BP Financier'!$E$22+'BP Financier'!$F$22+'BP Financier'!$F$19+'BP Financier'!$F$16+'BP Financier'!$G$22+'BP Financier'!$G$19+'BP Financier'!$G$16))*$V9218*AB9218/(1-$W9218)","v":{"v":7723.858577631446,"d":"7,724"}},null,{"v":0.006,"d":"0.60%"},{"$f":"Actif!$E$28/100","v":{"v":0.28900000000000003,"d":"28.90%"}},{"$f":"Actif!$E$30/100","v":{"v":0.09050000000000001,"d":"9.05%"}},{"$f":"Actif!$E$31/100","v":{"v":0.0605,"d":"6.05%"}},{"$f":"Actif!$E$32/100","v":{"v":0.47350000000000003,"d":"47.35%"}},{"$f":"Actif!$E$33/100","v":{"v":0.0585,"d":"5.85%"}},{"$f":"Actif!$E$29/100","v":{"v":0.027999999999999997,"d":"2.80%"}}]
[null,"#103",38,2029,"F","A_PER",{"v":0.44999999999999996,"d":"0.45"},{"v":0.38999999999999996,"d":"0.39"},0.6,0.6,85,0,{"$f":"ROUND(Primes!$Q$7*V9219,0)","v":8},{"$f":"'BP Financier'!$G$33*(('BP Financier'!$C$19+'BP Financier'!$D$19+'BP Financier'!$E$19+'BP Financier'!$F$19+'BP Financier'!$G$19)/('BP Financier'!$C$16+'BP Financier'!$C$19+'BP Financier'!$D$16+'BP Financier'!$D$19+'BP Financier'!$E$16+'BP Financier'!$E$19+'BP Financier'!$F$16+'BP Financier'!$F$19+'BP Financier'!$G$16+'BP Financier'!$G$19))*V9219","v":{"v":341730.34334236645,"d":"341,730"}},{"v":196130.83745342708,"d":"196,131"},{"$f":"'BP Financier'!$G$44*(('BP Financier'!$C$19+'BP Financier'!$D$19+'BP Financier'!$E$19+'BP Financier'!$F$19+'BP Financier'!$G$19)/('BP Financier'!$C$16+'BP Financier'!$C$19+'BP Financier'!$D$16+'BP Financier'!$D$19+'BP Financier'!$E$16+'BP Financier'!$E$19+'BP Financier'!$C$22+'BP Financier'!$D$22+'BP Financier'!$E$22+'BP Financier'!$F$22+'BP Financier'!$F$19+'BP Financier'!$F$16+'BP Financier'!$G$22+'BP Financier'!$G$19+'BP Financier'!$G$16))*$V9219*X9219/(1-$W9219)","v":{"v":24964.61433127307,"d":"24,965"}},{"$f":"'BP Financier'!$G$44*(('BP Financier'!$C$19+'BP Financier'!$D$19+'BP Financier'!$E$19+'BP Financier'!$F$19+'BP Financier'!$G$19)/('BP Financier'!$C$16+'BP Financier'!$C$19+'BP Financier'!$D$16+'BP Financier'!$D$19+'BP Financier'!$E$16+'BP Financier'!$E$19+'BP Financier'!$C$22+'BP Financier'!$D$22+'BP Financier'!$E$22+'BP Financier'!$F$22+'BP Financier'!$F$19+'BP Financier'!$F$16+'BP Financier'!$G$22+'BP Financier'!$G$19+'BP Financier'!$G$16))*$V9219*Y9219/(1-$W9219)","v":{"v":16689.05156952509,"d":"16,689"}},{"$f":"'BP Financier'!$G$44*(('BP Financier'!$C$19+'BP Financier'!$D$19+'BP Financier'!$E$19+'BP Financier'!$F$19+'BP Financier'!$G$19)/('BP Financier'!$C$16+'BP Financier'!$C$19+'BP Financier'!$D$16+'BP Financier'!$D$19+'BP Financier'!$E$16+'BP Financier'!$E$19+'BP Financier'!$C$22+'BP Financier'!$D$22+'BP Financier'!$E$22+'BP Financier'!$F$22+'BP Financier'!$F$19+'BP Financier'!$F$16+'BP Financier'!$G$22+'BP Financier'!$G$19+'BP Financier'!$G$16))*$V9219*Z9219/(1-$W9219)","v":{"v":130615.96558958893,"d":"130,616"}},{"$f":"'BP Financier'!$G$44*(('BP Financier'!$C$19+'BP Financier'!$D$19+'BP Financier'!$E$19+'BP Financier'!$F$19+'BP Financier'!$G$19)/('BP Financier'!$C$16+'BP Financier'!$C$19+'BP Financier'!$D$16+'BP Financier'!$D$19+'BP Financier'!$E$16+'BP Financier'!$E$19+'BP Financier'!$C$22+'BP Financier'!$D$22+'BP Financier'!$E$22+'BP Financier'!$F$22+'BP Financier'!$F$19+'BP Financier'!$F$16+'BP Financier'!$G$22+'BP Financier'!$G$19+'BP Financier'!$G$16))*$V9219*AA9219/(1-$W9219)","v":{"v":16137.347385408559,"d":"16,137"}},{"$f":"'BP Financier'!$G$44*(('BP Financier'!$C$19+'BP Financier'!$D$19+'BP Financier'!$E$19+'BP Financier'!$F$19+'BP Financier'!$G$19)/('BP Financier'!$C$16+'BP Financier'!$C$19+'BP Financier'!$D$16+'BP Financier'!$D$19+'BP Financier'!$E$16+'BP Financier'!$E$19+'BP Financier'!$C$22+'BP Financier'!$D$22+'BP Financier'!$E$22+'BP Financier'!$F$22+'BP Financier'!$F$19+'BP Financier'!$F$16+'BP Financier'!$G$22+'BP Financier'!$G$19+'BP Financier'!$G$16))*$V9219*AB9219/(1-$W9219)","v":{"v":7723.858577631446,"d":"7,724"}},null,{"v":0.006,"d":"0.60%"},{"$f":"Actif!$E$28/100","v":{"v":0.28900000000000003,"d":"28.90%"}},{"$f":"Actif!$E$30/100","v":{"v":0.09050000000000001,"d":"9.05%"}},{"$f":"Actif!$E$31/100","v":{"v":0.0605,"d":"6.05%"}},{"$f":"Actif!$E$32/100","v":{"v":0.47350000000000003,"d":"47.35%"}},{"$f":"Actif!$E$33/100","v":{"v":0.0585,"d":"5.85%"}},{"$f":"Actif!$E$29/100","v":{"v":0.027999999999999997,"d":"2.80%"}}]
[null,"#104",38,2030,"F","A_PER",{"v":0.44999999999999996,"d":"0.45"},{"v":0.38999999999999996,"d":"0.39"},0.6,0.6,85,0,{"$f":"ROUND(Primes!$Q$7*V9220,0)","v":8},{"$f":"'BP Financier'!$G$33*(('BP Financier'!$C$19+'BP Financier'!$D$19+'BP Financier'!$E$19+'BP Financier'!$F$19+'BP Financier'!$G$19)/('BP Financier'!$C$16+'BP Financier'!$C$19+'BP Financier'!$D$16+'BP Financier'!$D$19+'BP Financier'!$E$16+'BP Financier'!$E$19+'BP Financier'!$F$16+'BP Financier'!$F$19+'BP Financier'!$G$16+'BP Financier'!$G$19))*V9220","v":{"v":341730.34334236645,"d":"341,730"}},{"v":196130.83745342708,"d":"196,131"},{"$f":"'BP Financier'!$G$44*(('BP Financier'!$C$19+'BP Financier'!$D$19+'BP Financier'!$E$19+'BP Financier'!$F$19+'BP Financier'!$G$19)/('BP Financier'!$C$16+'BP Financier'!$C$19+'BP Financier'!$D$16+'BP Financier'!$D$19+'BP Financier'!$E$16+'BP Financier'!$E$19+'BP Financier'!$C$22+'BP Financier'!$D$22+'BP Financier'!$E$22+'BP Financier'!$F$22+'BP Financier'!$F$19+'BP Financier'!$F$16+'BP Financier'!$G$22+'BP Financier'!$G$19+'BP Financier'!$G$16))*$V9220*X9220/(1-$W9220)","v":{"v":24964.61433127307,"d":"24,965"}},{"$f":"'BP Financier'!$G$44*(('BP Financier'!$C$19+'BP Financier'!$D$19+'BP Financier'!$E$19+'BP Financier'!$F$19+'BP Financier'!$G$19)/('BP Financier'!$C$16+'BP Financier'!$C$19+'BP Financier'!$D$16+'BP Financier'!$D$19+'BP Financier'!$E$16+'BP Financier'!$E$19+'BP Financier'!$C$22+'BP Financier'!$D$22+'BP Financier'!$E$22+'BP Financier'!$F$22+'BP Financier'!$F$19+'BP Financier'!$F$16+'BP Financier'!$G$22+'BP Financier'!$G$19+'BP Financier'!$G$16))*$V9220*Y9220/(1-$W9220)","v":{"v":16689.05156952509,"d":"16,689"}},{"$f":"'BP Financier'!$G$44*(('BP Financier'!$C$19+'BP Financier'!$D$19+'BP Financier'!$E$19+'BP Financier'!$F$19+'BP Financier'!$G$19)/('BP Financier'!$C$16+'BP Financier'!$C$19+'BP Financier'!$D$16+'BP Financier'!$D$19+'BP Financier'!$E$16+'BP Financier'!$E$19+'BP Financier'!$C$22+'BP Financier'!$D$22+'BP Financier'!$E$22+'BP Financier'!$F$22+'BP Financier'!$F$19+'BP Financier'!$F$16+'BP Financier'!$G$22+'BP Financier'!$G$19+'BP Financier'!$G$16))*$V9220*Z9220/(1-$W9220)","v":{"v":130615.96558958893,"d":"130,616"}},{"$f":"'BP Financier'!$G$44*(('BP Financier'!$C$19+'BP Financier'!$D$19+'BP Financier'!$E$19+'BP Financier'!$F$19+'BP Financier'!$G$19)/('BP Financier'!$C$16+'BP Financier'!$C$19+'BP Financier'!$D$16+'BP Financier'!$D$19+'BP Financier'!$E$16+'BP Financier'!$E$19+'BP Financier'!$C$22+'BP Financier'!$D$22+'BP Financier'!$E$22+'BP Financier'!$F$22+'BP Financier'!$F$19+'BP Financier'!$F$16+'BP Financier'!$G$22+'BP Financier'!$G$19+'BP Financier'!$G$16))*$V9220*AA9220/(1-$W9220)","v":{"v":16137.347385408559,"d":"16,137"}},{"$f":"'BP Financier'!$G$44*(('BP Financier'!$C$19+'BP Financier'!$D$19+'BP Financier'!$E$19+'BP Financier'!$F$19+'BP Financier'!$G$19)/('BP Financier'!$C$16+'BP Financier'!$C$19+'BP Financier'!$D$16+'BP Financier'!$D$19+'BP Financier'!$E$16+'BP Financier'!$E$19+'BP Financier'!$C$22+'BP Financier'!$D$22+'BP Financier'!$E$22+'BP Financier'!$F$22+'BP Financier'!$F$19+'BP Financier'!$F$16+'BP Financier'!$G$22+'BP Financier'!$G$19+'BP Financier'!$G$16))*$V9220*AB9220/(1-$W9220)","v":{"v":7723.858577631446,"d":"7,724"}},null,{"v":0.006,"d":"0.60%"},{"$f":"Actif!$E$28/100","v":{"v":0.28900000000000003,"d":"28.90%"}},{"$f":"Actif!$E$30/100","v":{"v":0.09050000000000001,"d":"9.05%"}},{"$f":"Actif!$E$31/100","v":{"v":0.0605,"d":"6.05%"}},{"$f":"Actif!$E$32/100","v":{"v":0.47350000000000003,"d":"47.35%"}},{"$f":"Actif!$E$33/100","v":{"v":0.0585,"d":"5.85%"}},{"$f":"Actif!$E$29/100","v":{"v":0.027999999999999997,"d":"2.80%"}}]
[null,"#105",38,2031,"F","A_PER",{"v":0.44999999999999996,"d":"0.45"},{"v":0.38999999999999996,"d":"0.39"},0.6,0.6,85,0,{"$f":"ROUND(Primes!$Q$7*V9221,0)","v":8},{"$f":"'BP Financier'!$G$33*(('BP Financier'!$C$19+'BP Financier'!$D$19+'BP Financier'!$E$19+'BP Financier'!$F$19+'BP Financier'!$G$19)/('BP Financier'!$C$16+'BP Financier'!$C$19+'BP Financier'!$D$16+'BP Financier'!$D$19+'BP Financier'!$E$16+'BP Financier'!$E$19+'BP Financier'!$F$16+'BP Financier'!$F$19+'BP Financier'!$G$16+'BP Financier'!$G$19))*V9221","v":{"v":341730.34334236645,"d":"341,730"}},{"v":196130.83745342708,"d":"196,131"},{"$f":"'BP Financier'!$G$44*(('BP Financier'!$C$19+'BP Financier'!$D$19+'BP Financier'!$E$19+'BP Financier'!$F$19+'BP Financier'!$G$19)/('BP Financier'!$C$16+'BP Financier'!$C$19+'BP Financier'!$D$16+'BP Financier'!$D$19+'BP Financier'!$E$16+'BP Financier'!$E$19+'BP Financier'!$C$22+'BP Financier'!$D$22+'BP Financier'!$E$22+'BP Financier'!$F$22+'BP Financier'!$F$19+'BP Financier'!$F$16+'BP Financier'!$G$22+'BP Financier'!$G$19+'BP Financier'!$G$16))*$V9221*X9221/(1-$W9221)","v":{"v":24964.61433127307,"d":"24,965"}},{"$f":"'BP Financier'!$G$44*(('BP Financier'!$C$19+'BP Financier'!$D$19+'BP Financier'!$E$19+'BP Financier'!$F$19+'BP Financier'!$G$19)/('BP Financier'!$C$16+'BP Financier'!$C$19+'BP Financier'!$D$16+'BP Financier'!$D$19+'BP Financier'!$E$16+'BP Financier'!$E$19+'BP Financier'!$C$22+'BP Financier'!$D$22+'BP Financier'!$E$22+'BP Financier'!$F$22+'BP Financier'!$F$19+'BP Financier'!$F$16+'BP Financier'!$G$22+'BP Financier'!$G$19+'BP Financier'!$G$16))*$V9221*Y9221/(1-$W9221)","v":{"v":16689.05156952509,"d":"16,689"}},{"$f":"'BP Financier'!$G$44*(('BP Financier'!$C$19+'BP Financier'!$D$19+'BP Financier'!$E$19+'BP Financier'!$F$19+'BP Financier'!$G$19)/('BP Financier'!$C$16+'BP Financier'!$C$19+'BP Financier'!$D$16+'BP Financier'!$D$19+'BP Financier'!$E$16+'BP Financier'!$E$19+'BP Financier'!$C$22+'BP Financier'!$D$22+'BP Financier'!$E$22+'BP Financier'!$F$22+'BP Financier'!$F$19+'BP Financier'!$F$16+'BP Financier'!$G$22+'BP Financier'!$G$19+'BP Financier'!$G$16))*$V9221*Z9221/(1-$W9221)","v":{"v":130615.96558958893,"d":"130,616"}},{"$f":"'BP Financier'!$G$44*(('BP Financier'!$C$19+'BP Financier'!$D$19+'BP Financier'!$E$19+'BP Financier'!$F$19+'BP Financier'!$G$19)/('BP Financier'!$C$16+'BP Financier'!$C$19+'BP Financier'!$D$16+'BP Financier'!$D$19+'BP Financier'!$E$16+'BP Financier'!$E$19+'BP Financier'!$C$22+'BP Financier'!$D$22+'BP Financier'!$E$22+'BP Financier'!$F$22+'BP Financier'!$F$19+'BP Financier'!$F$16+'BP Financier'!$G$22+'BP Financier'!$G$19+'BP Financier'!$G$16))*$V9221*AA9221/(1-$W9221)","v":{"v":16137.347385408559,"d":"16,137"}},{"$f":"'BP Financier'!$G$44*(('BP Financier'!$C$19+'BP Financier'!$D$19+'BP Financier'!$E$19+'BP Financier'!$F$19+'BP Financier'!$G$19)/('BP Financier'!$C$16+'BP Financier'!$C$19+'BP Financier'!$D$16+'BP Financier'!$D$19+'BP Financier'!$E$16+'BP Financier'!$E$19+'BP Financier'!$C$22+'BP Financier'!$D$22+'BP Financier'!$E$22+'BP Financier'!$F$22+'BP Financier'!$F$19+'BP Financier'!$F$16+'BP Financier'!$G$22+'BP Financier'!$G$19+'BP Financier'!$G$16))*$V9221*AB9221/(1-$W9221)","v":{"v":7723.858577631446,"d":"7,724"}},null,{"v":0.006,"d":"0.60%"},{"$f":"Actif!$E$28/100","v":{"v":0.28900000000000003,"d":"28.90%"}},{"$f":"Actif!$E$30/100","v":{"v":0.09050000000000001,"d":"9.05%"}},{"$f":"Actif!$E$31/100","v":{"v":0.0605,"d":"6.05%"}},{"$f":"Actif!$E$32/100","v":{"v":0.47350000000000003,"d":"47.35%"}},{"$f":"Actif!$E$33/100","v":{"v":0.0585,"d":"5.85%"}},{"$f":"Actif!$E$29/100","v":{"v":0.027999999999999997,"d":"2.80%"}}]
[null,"#106",39,2026,"H","A_PER",{"v":0.44999999999999996,"d":"0.45"},{"v":0.38999999999999996,"d":"0.39"},0.6,0.6,85,0,{"$f":"ROUND(Primes!$Q$7*V9222,0)","v":8},{"$f":"'BP Financier'!$G$33*(('BP Financier'!$C$19+'BP Financier'!$D$19+'BP Financier'!$E$19+'BP Financier'!$F$19+'BP Financier'!$G$19)/('BP Financier'!$C$16+'BP Financier'!$C$19+'BP Financier'!$D$16+'BP Financier'!$D$19+'BP Financier'!$E$16+'BP Financier'!$E$19+'BP Financier'!$F$16+'BP Financier'!$F$19+'BP Financier'!$G$16+'BP Financier'!$G$19))*V9222","v":{"v":341730.34334236645,"d":"341,730"}},{"v":196130.83745342708,"d":"196,131"},{"$f":"'BP Financier'!$G$44*(('BP Financier'!$C$19+'BP Financier'!$D$19+'BP Financier'!$E$19+'BP Financier'!$F$19+'BP Financier'!$G$19)/('BP Financier'!$C$16+'BP Financier'!$C$19+'BP Financier'!$D$16+'BP Financier'!$D$19+'BP Financier'!$E$16+'BP Financier'!$E$19+'BP Financier'!$C$22+'BP Financier'!$D$22+'BP Financier'!$E$22+'BP Financier'!$F$22+'BP Financier'!$F$19+'BP Financier'!$F$16+'BP Financier'!$G$22+'BP Financier'!$G$19+'BP Financier'!$G$16))*$V9222*X9222/(1-$W9222)","v":{"v":24964.61433127307,"d":"24,965"}},{"$f":"'BP Financier'!$G$44*(('BP Financier'!$C$19+'BP Financier'!$D$19+'BP Financier'!$E$19+'BP Financier'!$F$19+'BP Financier'!$G$19)/('BP Financier'!$C$16+'BP Financier'!$C$19+'BP Financier'!$D$16+'BP Financier'!$D$19+'BP Financier'!$E$16+'BP Financier'!$E$19+'BP Financier'!$C$22+'BP Financier'!$D$22+'BP Financier'!$E$22+'BP Financier'!$F$22+'BP Financier'!$F$19+'BP Financier'!$F$16+'BP Financier'!$G$22+'BP Financier'!$G$19+'BP Financier'!$G$16))*$V9222*Y9222/(1-$W9222)","v":{"v":16689.05156952509,"d":"16,689"}},{"$f":"'BP Financier'!$G$44*(('BP Financier'!$C$19+'BP Financier'!$D$19+'BP Financier'!$E$19+'BP Financier'!$F$19+'BP Financier'!$G$19)/('BP Financier'!$C$16+'BP Financier'!$C$19+'BP Financier'!$D$16+'BP Financier'!$D$19+'BP Financier'!$E$16+'BP Financier'!$E$19+'BP Financier'!$C$22+'BP Financier'!$D$22+'BP Financier'!$E$22+'BP Financier'!$F$22+'BP Financier'!$F$19+'BP Financier'!$F$16+'BP Financier'!$G$22+'BP Financier'!$G$19+'BP Financier'!$G$16))*$V9222*Z9222/(1-$W9222)","v":{"v":130615.96558958893,"d":"130,616"}},{"$f":"'BP Financier'!$G$44*(('BP Financier'!$C$19+'BP Financier'!$D$19+'BP Financier'!$E$19+'BP Financier'!$F$19+'BP Financier'!$G$19)/('BP Financier'!$C$16+'BP Financier'!$C$19+'BP Financier'!$D$16+'BP Financier'!$D$19+'BP Financier'!$E$16+'BP Financier'!$E$19+'BP Financier'!$C$22+'BP Financier'!$D$22+'BP Financier'!$E$22+'BP Financier'!$F$22+'BP Financier'!$F$19+'BP Financier'!$F$16+'BP Financier'!$G$22+'BP Financier'!$G$19+'BP Financier'!$G$16))*$V9222*AA9222/(1-$W9222)","v":{"v":16137.347385408559,"d":"16,137"}},{"$f":"'BP Financier'!$G$44*(('BP Financier'!$C$19+'BP Financier'!$D$19+'BP Financier'!$E$19+'BP Financier'!$F$19+'BP Financier'!$G$19)/('BP Financier'!$C$16+'BP Financier'!$C$19+'BP Financier'!$D$16+'BP Financier'!$D$19+'BP Financier'!$E$16+'BP Financier'!$E$19+'BP Financier'!$C$22+'BP Financier'!$D$22+'BP Financier'!$E$22+'BP Financier'!$F$22+'BP Financier'!$F$19+'BP Financier'!$F$16+'BP Financier'!$G$22+'BP Financier'!$G$19+'BP Financier'!$G$16))*$V9222*AB9222/(1-$W9222)","v":{"v":7723.858577631446,"d":"7,724"}},null,{"v":0.006,"d":"0.60%"},{"$f":"Actif!$E$28/100","v":{"v":0.28900000000000003,"d":"28.90%"}},{"$f":"Actif!$E$30/100","v":{"v":0.09050000000000001,"d":"9.05%"}},{"$f":"Actif!$E$31/100","v":{"v":0.0605,"d":"6.05%"}},{"$f":"Actif!$E$32/100","v":{"v":0.47350000000000003,"d":"47.35%"}},{"$f":"Actif!$E$33/100","v":{"v":0.0585,"d":"5.85%"}},{"$f":"Actif!$E$29/100","v":{"v":0.027999999999999997,"d":"2.80%"}}]
[null,"#107",39,2028,"H","A_PER",{"$f":"frais_gestion_Euro*100","v":{"v":0.44999999999999996,"d":"0.45"}},{"$f":"frais_gestion_UC*100","v":{"v":0.38999999999999996,"d":"0.39"}},{"$f":"frais_distribution_FG*100","v":0.6},{"$f":"frais_distribution_UC*100","v":0.6},85,0,{"$f":"ROUND(Primes!$Q$7*V9223,0)","v":8},{"$f":"'BP Financier'!$G$33*(('BP Financier'!$C$19+'BP Financier'!$D$19+'BP Financier'!$E$19+'BP Financier'!$F$19+'BP Financier'!$G$19)/('BP Financier'!$C$16+'BP Financier'!$C$19+'BP Financier'!$D$16+'BP Financier'!$D$19+'BP Financier'!$E$16+'BP Financier'!$E$19+'BP Financier'!$F$16+'BP Financier'!$F$19+'BP Financier'!$G$16+'BP Financier'!$G$19))*V9223","v":{"v":341730.34334236645,"d":"341,730"}},{"v":196130.83745342708,"d":"196,131"},{"$f":"'BP Financier'!$G$44*(('BP Financier'!$C$19+'BP Financier'!$D$19+'BP Financier'!$E$19+'BP Financier'!$F$19+'BP Financier'!$G$19)/('BP Financier'!$C$16+'BP Financier'!$C$19+'BP Financier'!$D$16+'BP Financier'!$D$19+'BP Financier'!$E$16+'BP Financier'!$E$19+'BP Financier'!$C$22+'BP Financier'!$D$22+'BP Financier'!$E$22+'BP Financier'!$F$22+'BP Financier'!$F$19+'BP Financier'!$F$16+'BP Financier'!$G$22+'BP Financier'!$G$19+'BP Financier'!$G$16))*$V9223*X9223/(1-$W9223)","v":{"v":24964.61433127307,"d":"24,965"}},{"$f":"'BP Financier'!$G$44*(('BP Financier'!$C$19+'BP Financier'!$D$19+'BP Financier'!$E$19+'BP Financier'!$F$19+'BP Financier'!$G$19)/('BP Financier'!$C$16+'BP Financier'!$C$19+'BP Financier'!$D$16+'BP Financier'!$D$19+'BP Financier'!$E$16+'BP Financier'!$E$19+'BP Financier'!$C$22+'BP Financier'!$D$22+'BP Financier'!$E$22+'BP Financier'!$F$22+'BP Financier'!$F$19+'BP Financier'!$F$16+'BP Financier'!$G$22+'BP Financier'!$G$19+'BP Financier'!$G$16))*$V9223*Y9223/(1-$W9223)","v":{"v":16689.05156952509,"d":"16,689"}},{"$f":"'BP Financier'!$G$44*(('BP Financier'!$C$19+'BP Financier'!$D$19+'BP Financier'!$E$19+'BP Financier'!$F$19+'BP Financier'!$G$19)/('BP Financier'!$C$16+'BP Financier'!$C$19+'BP Financier'!$D$16+'BP Financier'!$D$19+'BP Financier'!$E$16+'BP Financier'!$E$19+'BP Financier'!$C$22+'BP Financier'!$D$22+'BP Financier'!$E$22+'BP Financier'!$F$22+'BP Financier'!$F$19+'BP Financier'!$F$16+'BP Financier'!$G$22+'BP Financier'!$G$19+'BP Financier'!$G$16))*$V9223*Z9223/(1-$W9223)","v":{"v":130615.96558958893,"d":"130,616"}},{"$f":"'BP Financier'!$G$44*(('BP Financier'!$C$19+'BP Financier'!$D$19+'BP Financier'!$E$19+'BP Financier'!$F$19+'BP Financier'!$G$19)/('BP Financier'!$C$16+'BP Financier'!$C$19+'BP Financier'!$D$16+'BP Financier'!$D$19+'BP Financier'!$E$16+'BP Financier'!$E$19+'BP Financier'!$C$22+'BP Financier'!$D$22+'BP Financier'!$E$22+'BP Financier'!$F$22+'BP Financier'!$F$19+'BP Financier'!$F$16+'BP Financier'!$G$22+'BP Financier'!$G$19+'BP Financier'!$G$16))*$V9223*AA9223/(1-$W9223)","v":{"v":16137.347385408559,"d":"16,137"}},{"$f":"'BP Financier'!$G$44*(('BP Financier'!$C$19+'BP Financier'!$D$19+'BP Financier'!$E$19+'BP Financier'!$F$19+'BP Financier'!$G$19)/('BP Financier'!$C$16+'BP Financier'!$C$19+'BP Financier'!$D$16+'BP Financier'!$D$19+'BP Financier'!$E$16+'BP Financier'!$E$19+'BP Financier'!$C$22+'BP Financier'!$D$22+'BP Financier'!$E$22+'BP Financier'!$F$22+'BP Financier'!$F$19+'BP Financier'!$F$16+'BP Financier'!$G$22+'BP Financier'!$G$19+'BP Financier'!$G$16))*$V9223*AB9223/(1-$W9223)","v":{"v":7723.858577631446,"d":"7,724"}},null,{"v":0.006,"d":"0.60%"},{"$f":"Actif!$E$28/100","v":{"v":0.28900000000000003,"d":"28.90%"}},{"$f":"Actif!$E$30/100","v":{"v":0.09050000000000001,"d":"9.05%"}},{"$f":"Actif!$E$31/100","v":{"v":0.0605,"d":"6.05%"}},{"$f":"Actif!$E$32/100","v":{"v":0.47350000000000003,"d":"47.35%"}},{"$f":"Actif!$E$33/100","v":{"v":0.0585,"d":"5.85%"}},{"$f":"Actif!$E$29/100","v":{"v":0.027999999999999997,"d":"2.80%"}}]
[null,"#108",39,2029,"H","A_PER",{"v":0.44999999999999996,"d":"0.45"},{"v":0.38999999999999996,"d":"0.39"},0.6,0.6,85,0,{"$f":"ROUND(Primes!$Q$7*V9224,0)","v":8},{"$f":"'BP Financier'!$G$33*(('BP Financier'!$C$19+'BP Financier'!$D$19+'BP Financier'!$E$19+'BP Financier'!$F$19+'BP Financier'!$G$19)/('BP Financier'!$C$16+'BP Financier'!$C$19+'BP Financier'!$D$16+'BP Financier'!$D$19+'BP Financier'!$E$16+'BP Financier'!$E$19+'BP Financier'!$F$16+'BP Financier'!$F$19+'BP Financier'!$G$16+'BP Financier'!$G$19))*V9224","v":{"v":341730.34334236645,"d":"341,730"}},{"v":196130.83745342708,"d":"196,131"},{"$f":"'BP Financier'!$G$44*(('BP Financier'!$C$19+'BP Financier'!$D$19+'BP Financier'!$E$19+'BP Financier'!$F$19+'BP Financier'!$G$19)/('BP Financier'!$C$16+'BP Financier'!$C$19+'BP Financier'!$D$16+'BP Financier'!$D$19+'BP Financier'!$E$16+'BP Financier'!$E$19+'BP Financier'!$C$22+'BP Financier'!$D$22+'BP Financier'!$E$22+'BP Financier'!$F$22+'BP Financier'!$F$19+'BP Financier'!$F$16+'BP Financier'!$G$22+'BP Financier'!$G$19+'BP Financier'!$G$16))*$V9224*X9224/(1-$W9224)","v":{"v":24964.61433127307,"d":"24,965"}},{"$f":"'BP Financier'!$G$44*(('BP Financier'!$C$19+'BP Financier'!$D$19+'BP Financier'!$E$19+'BP Financier'!$F$19+'BP Financier'!$G$19)/('BP Financier'!$C$16+'BP Financier'!$C$19+'BP Financier'!$D$16+'BP Financier'!$D$19+'BP Financier'!$E$16+'BP Financier'!$E$19+'BP Financier'!$C$22+'BP Financier'!$D$22+'BP Financier'!$E$22+'BP Financier'!$F$22+'BP Financier'!$F$19+'BP Financier'!$F$16+'BP Financier'!$G$22+'BP Financier'!$G$19+'BP Financier'!$G$16))*$V9224*Y9224/(1-$W9224)","v":{"v":16689.05156952509,"d":"16,689"}},{"$f":"'BP Financier'!$G$44*(('BP Financier'!$C$19+'BP Financier'!$D$19+'BP Financier'!$E$19+'BP Financier'!$F$19+'BP Financier'!$G$19)/('BP Financier'!$C$16+'BP Financier'!$C$19+'BP Financier'!$D$16+'BP Financier'!$D$19+'BP Financier'!$E$16+'BP Financier'!$E$19+'BP Financier'!$C$22+'BP Financier'!$D$22+'BP Financier'!$E$22+'BP Financier'!$F$22+'BP Financier'!$F$19+'BP Financier'!$F$16+'BP Financier'!$G$22+'BP Financier'!$G$19+'BP Financier'!$G$16))*$V9224*Z9224/(1-$W9224)","v":{"v":130615.96558958893,"d":"130,616"}},{"$f":"'BP Financier'!$G$44*(('BP Financier'!$C$19+'BP Financier'!$D$19+'BP Financier'!$E$19+'BP Financier'!$F$19+'BP Financier'!$G$19)/('BP Financier'!$C$16+'BP Financier'!$C$19+'BP Financier'!$D$16+'BP Financier'!$D$19+'BP Financier'!$E$16+'BP Financier'!$E$19+'BP Financier'!$C$22+'BP Financier'!$D$22+'BP Financier'!$E$22+'BP Financier'!$F$22+'BP Financier'!$F$19+'BP Financier'!$F$16+'BP Financier'!$G$22+'BP Financier'!$G$19+'BP Financier'!$G$16))*$V9224*AA9224/(1-$W9224)","v":{"v":16137.347385408559,"d":"16,137"}},{"$f":"'BP Financier'!$G$44*(('BP Financier'!$C$19+'BP Financier'!$D$19+'BP Financier'!$E$19+'BP Financier'!$F$19+'BP Financier'!$G$19)/('BP Financier'!$C$16+'BP Financier'!$C$19+'BP Financier'!$D$16+'BP Financier'!$D$19+'BP Financier'!$E$16+'BP Financier'!$E$19+'BP Financier'!$C$22+'BP Financier'!$D$22+'BP Financier'!$E$22+'BP Financier'!$F$22+'BP Financier'!$F$19+'BP Financier'!$F$16+'BP Financier'!$G$22+'BP Financier'!$G$19+'BP Financier'!$G$16))*$V9224*AB9224/(1-$W9224)","v":{"v":7723.858577631446,"d":"7,724"}},null,{"v":0.006,"d":"0.60%"},{"$f":"Actif!$E$28/100","v":{"v":0.28900000000000003,"d":"28.90%"}},{"$f":"Actif!$E$30/100","v":{"v":0.09050000000000001,"d":"9.05%"}},{"$f":"Actif!$E$31/100","v":{"v":0.0605,"d":"6.05%"}},{"$f":"Actif!$E$32/100","v":{"v":0.47350000000000003,"d":"47.35%"}},{"$f":"Actif!$E$33/100","v":{"v":0.0585,"d":"5.85%"}},{"$f":"Actif!$E$29/100","v":{"v":0.027999999999999997,"d":"2.80%"}}]
[null,"#109",39,2030,"H","A_PER",{"v":0.44999999999999996,"d":"0.45"},{"v":0.38999999999999996,"d":"0.39"},0.6,0.6,85,0,{"$f":"ROUND(Primes!$Q$7*V9225,0)","v":8},{"$f":"'BP Financier'!$G$33*(('BP Financier'!$C$19+'BP Financier'!$D$19+'BP Financier'!$E$19+'BP Financier'!$F$19+'BP Financier'!$G$19)/('BP Financier'!$C$16+'BP Financier'!$C$19+'BP Financier'!$D$16+'BP Financier'!$D$19+'BP Financier'!$E$16+'BP Financier'!$E$19+'BP Financier'!$F$16+'BP Financier'!$F$19+'BP Financier'!$G$16+'BP Financier'!$G$19))*V9225","v":{"v":341730.34334236645,"d":"341,730"}},{"v":196130.83745342708,"d":"196,131"},{"$f":"'BP Financier'!$G$44*(('BP Financier'!$C$19+'BP Financier'!$D$19+'BP Financier'!$E$19+'BP Financier'!$F$19+'BP Financier'!$G$19)/('BP Financier'!$C$16+'BP Financier'!$C$19+'BP Financier'!$D$16+'BP Financier'!$D$19+'BP Financier'!$E$16+'BP Financier'!$E$19+'BP Financier'!$C$22+'BP Financier'!$D$22+'BP Financier'!$E$22+'BP Financier'!$F$22+'BP Financier'!$F$19+'BP Financier'!$F$16+'BP Financier'!$G$22+'BP Financier'!$G$19+'BP Financier'!$G$16))*$V9225*X9225/(1-$W9225)","v":{"v":24964.61433127307,"d":"24,965"}},{"$f":"'BP Financier'!$G$44*(('BP Financier'!$C$19+'BP Financier'!$D$19+'BP Financier'!$E$19+'BP Financier'!$F$19+'BP Financier'!$G$19)/('BP Financier'!$C$16+'BP Financier'!$C$19+'BP Financier'!$D$16+'BP Financier'!$D$19+'BP Financier'!$E$16+'BP Financier'!$E$19+'BP Financier'!$C$22+'BP Financier'!$D$22+'BP Financier'!$E$22+'BP Financier'!$F$22+'BP Financier'!$F$19+'BP Financier'!$F$16+'BP Financier'!$G$22+'BP Financier'!$G$19+'BP Financier'!$G$16))*$V9225*Y9225/(1-$W9225)","v":{"v":16689.05156952509,"d":"16,689"}},{"$f":"'BP Financier'!$G$44*(('BP Financier'!$C$19+'BP Financier'!$D$19+'BP Financier'!$E$19+'BP Financier'!$F$19+'BP Financier'!$G$19)/('BP Financier'!$C$16+'BP Financier'!$C$19+'BP Financier'!$D$16+'BP Financier'!$D$19+'BP Financier'!$E$16+'BP Financier'!$E$19+'BP Financier'!$C$22+'BP Financier'!$D$22+'BP Financier'!$E$22+'BP Financier'!$F$22+'BP Financier'!$F$19+'BP Financier'!$F$16+'BP Financier'!$G$22+'BP Financier'!$G$19+'BP Financier'!$G$16))*$V9225*Z9225/(1-$W9225)","v":{"v":130615.96558958893,"d":"130,616"}},{"$f":"'BP Financier'!$G$44*(('BP Financier'!$C$19+'BP Financier'!$D$19+'BP Financier'!$E$19+'BP Financier'!$F$19+'BP Financier'!$G$19)/('BP Financier'!$C$16+'BP Financier'!$C$19+'BP Financier'!$D$16+'BP Financier'!$D$19+'BP Financier'!$E$16+'BP Financier'!$E$19+'BP Financier'!$C$22+'BP Financier'!$D$22+'BP Financier'!$E$22+'BP Financier'!$F$22+'BP Financier'!$F$19+'BP Financier'!$F$16+'BP Financier'!$G$22+'BP Financier'!$G$19+'BP Financier'!$G$16))*$V9225*AA9225/(1-$W9225)","v":{"v":16137.347385408559,"d":"16,137"}},{"$f":"'BP Financier'!$G$44*(('BP Financier'!$C$19+'BP Financier'!$D$19+'BP Financier'!$E$19+'BP Financier'!$F$19+'BP Financier'!$G$19)/('BP Financier'!$C$16+'BP Financier'!$C$19+'BP Financier'!$D$16+'BP Financier'!$D$19+'BP Financier'!$E$16+'BP Financier'!$E$19+'BP Financier'!$C$22+'BP Financier'!$D$22+'BP Financier'!$E$22+'BP Financier'!$F$22+'BP Financier'!$F$19+'BP Financier'!$F$16+'BP Financier'!$G$22+'BP Financier'!$G$19+'BP Financier'!$G$16))*$V9225*AB9225/(1-$W9225)","v":{"v":7723.858577631446,"d":"7,724"}},null,{"v":0.006,"d":"0.60%"},{"$f":"Actif!$E$28/100","v":{"v":0.28900000000000003,"d":"28.90%"}},{"$f":"Actif!$E$30/100","v":{"v":0.09050000000000001,"d":"9.05%"}},{"$f":"Actif!$E$31/100","v":{"v":0.0605,"d":"6.05%"}},{"$f":"Actif!$E$32/100","v":{"v":0.47350000000000003,"d":"47.35%"}},{"$f":"Actif!$E$33/100","v":{"v":0.0585,"d":"5.85%"}},{"$f":"Actif!$E$29/100","v":{"v":0.027999999999999997,"d":"2.80%"}}]
[null,"#110",39,2031,"H","A_PER",{"v":0.44999999999999996,"d":"0.45"},{"v":0.38999999999999996,"d":"0.39"},0.6,0.6,85,0,{"$f":"ROUND(Primes!$Q$7*V9226,0)","v":8},{"$f":"'BP Financier'!$G$33*(('BP Financier'!$C$19+'BP Financier'!$D$19+'BP Financier'!$E$19+'BP Financier'!$F$19+'BP Financier'!$G$19)/('BP Financier'!$C$16+'BP Financier'!$C$19+'BP Financier'!$D$16+'BP Financier'!$D$19+'BP Financier'!$E$16+'BP Financier'!$E$19+'BP Financier'!$F$16+'BP Financier'!$F$19+'BP Financier'!$G$16+'BP Financier'!$G$19))*V9226","v":{"v":341730.34334236645,"d":"341,730"}},{"v":196130.83745342708,"d":"196,131"},{"$f":"'BP Financier'!$G$44*(('BP Financier'!$C$19+'BP Financier'!$D$19+'BP Financier'!$E$19+'BP Financier'!$F$19+'BP Financier'!$G$19)/('BP Financier'!$C$16+'BP Financier'!$C$19+'BP Financier'!$D$16+'BP Financier'!$D$19+'BP Financier'!$E$16+'BP Financier'!$E$19+'BP Financier'!$C$22+'BP Financier'!$D$22+'BP Financier'!$E$22+'BP Financier'!$F$22+'BP Financier'!$F$19+'BP Financier'!$F$16+'BP Financier'!$G$22+'BP Financier'!$G$19+'BP Financier'!$G$16))*$V9226*X9226/(1-$W9226)","v":{"v":24964.61433127307,"d":"24,965"}},{"$f":"'BP Financier'!$G$44*(('BP Financier'!$C$19+'BP Financier'!$D$19+'BP Financier'!$E$19+'BP Financier'!$F$19+'BP Financier'!$G$19)/('BP Financier'!$C$16+'BP Financier'!$C$19+'BP Financier'!$D$16+'BP Financier'!$D$19+'BP Financier'!$E$16+'BP Financier'!$E$19+'BP Financier'!$C$22+'BP Financier'!$D$22+'BP Financier'!$E$22+'BP Financier'!$F$22+'BP Financier'!$F$19+'BP Financier'!$F$16+'BP Financier'!$G$22+'BP Financier'!$G$19+'BP Financier'!$G$16))*$V9226*Y9226/(1-$W9226)","v":{"v":16689.05156952509,"d":"16,689"}},{"$f":"'BP Financier'!$G$44*(('BP Financier'!$C$19+'BP Financier'!$D$19+'BP Financier'!$E$19+'BP Financier'!$F$19+'BP Financier'!$G$19)/('BP Financier'!$C$16+'BP Financier'!$C$19+'BP Financier'!$D$16+'BP Financier'!$D$19+'BP Financier'!$E$16+'BP Financier'!$E$19+'BP Financier'!$C$22+'BP Financier'!$D$22+'BP Financier'!$E$22+'BP Financier'!$F$22+'BP Financier'!$F$19+'BP Financier'!$F$16+'BP Financier'!$G$22+'BP Financier'!$G$19+'BP Financier'!$G$16))*$V9226*Z9226/(1-$W9226)","v":{"v":130615.96558958893,"d":"130,616"}},{"$f":"'BP Financier'!$G$44*(('BP Financier'!$C$19+'BP Financier'!$D$19+'BP Financier'!$E$19+'BP Financier'!$F$19+'BP Financier'!$G$19)/('BP Financier'!$C$16+'BP Financier'!$C$19+'BP Financier'!$D$16+'BP Financier'!$D$19+'BP Financier'!$E$16+'BP Financier'!$E$19+'BP Financier'!$C$22+'BP Financier'!$D$22+'BP Financier'!$E$22+'BP Financier'!$F$22+'BP Financier'!$F$19+'BP Financier'!$F$16+'BP Financier'!$G$22+'BP Financier'!$G$19+'BP Financier'!$G$16))*$V9226*AA9226/(1-$W9226)","v":{"v":16137.347385408559,"d":"16,137"}},{"$f":"'BP Financier'!$G$44*(('BP Financier'!$C$19+'BP Financier'!$D$19+'BP Financier'!$E$19+'BP Financier'!$F$19+'BP Financier'!$G$19)/('BP Financier'!$C$16+'BP Financier'!$C$19+'BP Financier'!$D$16+'BP Financier'!$D$19+'BP Financier'!$E$16+'BP Financier'!$E$19+'BP Financier'!$C$22+'BP Financier'!$D$22+'BP Financier'!$E$22+'BP Financier'!$F$22+'BP Financier'!$F$19+'BP Financier'!$F$16+'BP Financier'!$G$22+'BP Financier'!$G$19+'BP Financier'!$G$16))*$V9226*AB9226/(1-$W9226)","v":{"v":7723.858577631446,"d":"7,724"}},null,{"v":0.006,"d":"0.60%"},{"$f":"Actif!$E$28/100","v":{"v":0.28900000000000003,"d":"28.90%"}},{"$f":"Actif!$E$30/100","v":{"v":0.09050000000000001,"d":"9.05%"}},{"$f":"Actif!$E$31/100","v":{"v":0.0605,"d":"6.05%"}},{"$f":"Actif!$E$32/100","v":{"v":0.47350000000000003,"d":"47.35%"}},{"$f":"Actif!$E$33/100","v":{"v":0.0585,"d":"5.85%"}},{"$f":"Actif!$E$29/100","v":{"v":0.027999999999999997,"d":"2.80%"}}]
[null,"#111",40,2026,"H","A_PER",{"v":0.44999999999999996,"d":"0.45"},{"v":0.38999999999999996,"d":"0.39"},0.6,0.6,85,0,{"$f":"ROUND(Primes!$Q$7*V9227,0)","v":8},{"$f":"'BP Financier'!$G$33*(('BP Financier'!$C$19+'BP Financier'!$D$19+'BP Financier'!$E$19+'BP Financier'!$F$19+'BP Financier'!$G$19)/('BP Financier'!$C$16+'BP Financier'!$C$19+'BP Financier'!$D$16+'BP Financier'!$D$19+'BP Financier'!$E$16+'BP Financier'!$E$19+'BP Financier'!$F$16+'BP Financier'!$F$19+'BP Financier'!$G$16+'BP Financier'!$G$19))*V9227","v":{"v":341730.34334236645,"d":"341,730"}},{"v":196130.83745342708,"d":"196,131"},{"$f":"'BP Financier'!$G$44*(('BP Financier'!$C$19+'BP Financier'!$D$19+'BP Financier'!$E$19+'BP Financier'!$F$19+'BP Financier'!$G$19)/('BP Financier'!$C$16+'BP Financier'!$C$19+'BP Financier'!$D$16+'BP Financier'!$D$19+'BP Financier'!$E$16+'BP Financier'!$E$19+'BP Financier'!$C$22+'BP Financier'!$D$22+'BP Financier'!$E$22+'BP Financier'!$F$22+'BP Financier'!$F$19+'BP Financier'!$F$16+'BP Financier'!$G$22+'BP Financier'!$G$19+'BP Financier'!$G$16))*$V9227*X9227/(1-$W9227)","v":{"v":24964.61433127307,"d":"24,965"}},{"$f":"'BP Financier'!$G$44*(('BP Financier'!$C$19+'BP Financier'!$D$19+'BP Financier'!$E$19+'BP Financier'!$F$19+'BP Financier'!$G$19)/('BP Financier'!$C$16+'BP Financier'!$C$19+'BP Financier'!$D$16+'BP Financier'!$D$19+'BP Financier'!$E$16+'BP Financier'!$E$19+'BP Financier'!$C$22+'BP Financier'!$D$22+'BP Financier'!$E$22+'BP Financier'!$F$22+'BP Financier'!$F$19+'BP Financier'!$F$16+'BP Financier'!$G$22+'BP Financier'!$G$19+'BP Financier'!$G$16))*$V9227*Y9227/(1-$W9227)","v":{"v":16689.05156952509,"d":"16,689"}},{"$f":"'BP Financier'!$G$44*(('BP Financier'!$C$19+'BP Financier'!$D$19+'BP Financier'!$E$19+'BP Financier'!$F$19+'BP Financier'!$G$19)/('BP Financier'!$C$16+'BP Financier'!$C$19+'BP Financier'!$D$16+'BP Financier'!$D$19+'BP Financier'!$E$16+'BP Financier'!$E$19+'BP Financier'!$C$22+'BP Financier'!$D$22+'BP Financier'!$E$22+'BP Financier'!$F$22+'BP Financier'!$F$19+'BP Financier'!$F$16+'BP Financier'!$G$22+'BP Financier'!$G$19+'BP Financier'!$G$16))*$V9227*Z9227/(1-$W9227)","v":{"v":130615.96558958893,"d":"130,616"}},{"$f":"'BP Financier'!$G$44*(('BP Financier'!$C$19+'BP Financier'!$D$19+'BP Financier'!$E$19+'BP Financier'!$F$19+'BP Financier'!$G$19)/('BP Financier'!$C$16+'BP Financier'!$C$19+'BP Financier'!$D$16+'BP Financier'!$D$19+'BP Financier'!$E$16+'BP Financier'!$E$19+'BP Financier'!$C$22+'BP Financier'!$D$22+'BP Financier'!$E$22+'BP Financier'!$F$22+'BP Financier'!$F$19+'BP Financier'!$F$16+'BP Financier'!$G$22+'BP Financier'!$G$19+'BP Financier'!$G$16))*$V9227*AA9227/(1-$W9227)","v":{"v":16137.347385408559,"d":"16,137"}},{"$f":"'BP Financier'!$G$44*(('BP Financier'!$C$19+'BP Financier'!$D$19+'BP Financier'!$E$19+'BP Financier'!$F$19+'BP Financier'!$G$19)/('BP Financier'!$C$16+'BP Financier'!$C$19+'BP Financier'!$D$16+'BP Financier'!$D$19+'BP Financier'!$E$16+'BP Financier'!$E$19+'BP Financier'!$C$22+'BP Financier'!$D$22+'BP Financier'!$E$22+'BP Financier'!$F$22+'BP Financier'!$F$19+'BP Financier'!$F$16+'BP Financier'!$G$22+'BP Financier'!$G$19+'BP Financier'!$G$16))*$V9227*AB9227/(1-$W9227)","v":{"v":7723.858577631446,"d":"7,724"}},null,{"v":0.006,"d":"0.60%"},{"$f":"Actif!$E$28/100","v":{"v":0.28900000000000003,"d":"28.90%"}},{"$f":"Actif!$E$30/100","v":{"v":0.09050000000000001,"d":"9.05%"}},{"$f":"Actif!$E$31/100","v":{"v":0.0605,"d":"6.05%"}},{"$f":"Actif!$E$32/100","v":{"v":0.47350000000000003,"d":"47.35%"}},{"$f":"Actif!$E$33/100","v":{"v":0.0585,"d":"5.85%"}},{"$f":"Actif!$E$29/100","v":{"v":0.027999999999999997,"d":"2.80%"}}]
[null,"#112",40,2028,"H","A_PER",{"v":0.44999999999999996,"d":"0.45"},{"v":0.38999999999999996,"d":"0.39"},0.6,0.6,85,0,{"$f":"ROUND(Primes!$Q$7*V9228,0)","v":8},{"$f":"'BP Financier'!$G$33*(('BP Financier'!$C$19+'BP Financier'!$D$19+'BP Financier'!$E$19+'BP Financier'!$F$19+'BP Financier'!$G$19)/('BP Financier'!$C$16+'BP Financier'!$C$19+'BP Financier'!$D$16+'BP Financier'!$D$19+'BP Financier'!$E$16+'BP Financier'!$E$19+'BP Financier'!$F$16+'BP Financier'!$F$19+'BP Financier'!$G$16+'BP Financier'!$G$19))*V9228","v":{"v":341730.34334236645,"d":"341,730"}},{"v":196130.83745342708,"d":"196,131"},{"$f":"'BP Financier'!$G$44*(('BP Financier'!$C$19+'BP Financier'!$D$19+'BP Financier'!$E$19+'BP Financier'!$F$19+'BP Financier'!$G$19)/('BP Financier'!$C$16+'BP Financier'!$C$19+'BP Financier'!$D$16+'BP Financier'!$D$19+'BP Financier'!$E$16+'BP Financier'!$E$19+'BP Financier'!$C$22+'BP Financier'!$D$22+'BP Financier'!$E$22+'BP Financier'!$F$22+'BP Financier'!$F$19+'BP Financier'!$F$16+'BP Financier'!$G$22+'BP Financier'!$G$19+'BP Financier'!$G$16))*$V9228*X9228/(1-$W9228)","v":{"v":24964.61433127307,"d":"24,965"}},{"$f":"'BP Financier'!$G$44*(('BP Financier'!$C$19+'BP Financier'!$D$19+'BP Financier'!$E$19+'BP Financier'!$F$19+'BP Financier'!$G$19)/('BP Financier'!$C$16+'BP Financier'!$C$19+'BP Financier'!$D$16+'BP Financier'!$D$19+'BP Financier'!$E$16+'BP Financier'!$E$19+'BP Financier'!$C$22+'BP Financier'!$D$22+'BP Financier'!$E$22+'BP Financier'!$F$22+'BP Financier'!$F$19+'BP Financier'!$F$16+'BP Financier'!$G$22+'BP Financier'!$G$19+'BP Financier'!$G$16))*$V9228*Y9228/(1-$W9228)","v":{"v":16689.05156952509,"d":"16,689"}},{"$f":"'BP Financier'!$G$44*(('BP Financier'!$C$19+'BP Financier'!$D$19+'BP Financier'!$E$19+'BP Financier'!$F$19+'BP Financier'!$G$19)/('BP Financier'!$C$16+'BP Financier'!$C$19+'BP Financier'!$D$16+'BP Financier'!$D$19+'BP Financier'!$E$16+'BP Financier'!$E$19+'BP Financier'!$C$22+'BP Financier'!$D$22+'BP Financier'!$E$22+'BP Financier'!$F$22+'BP Financier'!$F$19+'BP Financier'!$F$16+'BP Financier'!$G$22+'BP Financier'!$G$19+'BP Financier'!$G$16))*$V9228*Z9228/(1-$W9228)","v":{"v":130615.96558958893,"d":"130,616"}},{"$f":"'BP Financier'!$G$44*(('BP Financier'!$C$19+'BP Financier'!$D$19+'BP Financier'!$E$19+'BP Financier'!$F$19+'BP Financier'!$G$19)/('BP Financier'!$C$16+'BP Financier'!$C$19+'BP Financier'!$D$16+'BP Financier'!$D$19+'BP Financier'!$E$16+'BP Financier'!$E$19+'BP Financier'!$C$22+'BP Financier'!$D$22+'BP Financier'!$E$22+'BP Financier'!$F$22+'BP Financier'!$F$19+'BP Financier'!$F$16+'BP Financier'!$G$22+'BP Financier'!$G$19+'BP Financier'!$G$16))*$V9228*AA9228/(1-$W9228)","v":{"v":16137.347385408559,"d":"16,137"}},{"$f":"'BP Financier'!$G$44*(('BP Financier'!$C$19+'BP Financier'!$D$19+'BP Financier'!$E$19+'BP Financier'!$F$19+'BP Financier'!$G$19)/('BP Financier'!$C$16+'BP Financier'!$C$19+'BP Financier'!$D$16+'BP Financier'!$D$19+'BP Financier'!$E$16+'BP Financier'!$E$19+'BP Financier'!$C$22+'BP Financier'!$D$22+'BP Financier'!$E$22+'BP Financier'!$F$22+'BP Financier'!$F$19+'BP Financier'!$F$16+'BP Financier'!$G$22+'BP Financier'!$G$19+'BP Financier'!$G$16))*$V9228*AB9228/(1-$W9228)","v":{"v":7723.858577631446,"d":"7,724"}},null,{"v":0.006,"d":"0.60%"},{"$f":"Actif!$E$28/100","v":{"v":0.28900000000000003,"d":"28.90%"}},{"$f":"Actif!$E$30/100","v":{"v":0.09050000000000001,"d":"9.05%"}},{"$f":"Actif!$E$31/100","v":{"v":0.0605,"d":"6.05%"}},{"$f":"Actif!$E$32/100","v":{"v":0.47350000000000003,"d":"47.35%"}},{"$f":"Actif!$E$33/100","v":{"v":0.0585,"d":"5.85%"}},{"$f":"Actif!$E$29/100","v":{"v":0.027999999999999997,"d":"2.80%"}}]
[null,"#113",40,2029,"H","A_PER",{"v":0.44999999999999996,"d":"0.45"},{"v":0.38999999999999996,"d":"0.39"},0.6,0.6,85,0,{"$f":"ROUND(Primes!$Q$7*V9229,0)","v":8},{"$f":"'BP Financier'!$G$33*(('BP Financier'!$C$19+'BP Financier'!$D$19+'BP Financier'!$E$19+'BP Financier'!$F$19+'BP Financier'!$G$19)/('BP Financier'!$C$16+'BP Financier'!$C$19+'BP Financier'!$D$16+'BP Financier'!$D$19+'BP Financier'!$E$16+'BP Financier'!$E$19+'BP Financier'!$F$16+'BP Financier'!$F$19+'BP Financier'!$G$16+'BP Financier'!$G$19))*V9229","v":{"v":341730.34334236645,"d":"341,730"}},{"v":196130.83745342708,"d":"196,131"},{"$f":"'BP Financier'!$G$44*(('BP Financier'!$C$19+'BP Financier'!$D$19+'BP Financier'!$E$19+'BP Financier'!$F$19+'BP Financier'!$G$19)/('BP Financier'!$C$16+'BP Financier'!$C$19+'BP Financier'!$D$16+'BP Financier'!$D$19+'BP Financier'!$E$16+'BP Financier'!$E$19+'BP Financier'!$C$22+'BP Financier'!$D$22+'BP Financier'!$E$22+'BP Financier'!$F$22+'BP Financier'!$F$19+'BP Financier'!$F$16+'BP Financier'!$G$22+'BP Financier'!$G$19+'BP Financier'!$G$16))*$V9229*X9229/(1-$W9229)","v":{"v":24964.61433127307,"d":"24,965"}},{"$f":"'BP Financier'!$G$44*(('BP Financier'!$C$19+'BP Financier'!$D$19+'BP Financier'!$E$19+'BP Financier'!$F$19+'BP Financier'!$G$19)/('BP Financier'!$C$16+'BP Financier'!$C$19+'BP Financier'!$D$16+'BP Financier'!$D$19+'BP Financier'!$E$16+'BP Financier'!$E$19+'BP Financier'!$C$22+'BP Financier'!$D$22+'BP Financier'!$E$22+'BP Financier'!$F$22+'BP Financier'!$F$19+'BP Financier'!$F$16+'BP Financier'!$G$22+'BP Financier'!$G$19+'BP Financier'!$G$16))*$V9229*Y9229/(1-$W9229)","v":{"v":16689.05156952509,"d":"16,689"}},{"$f":"'BP Financier'!$G$44*(('BP Financier'!$C$19+'BP Financier'!$D$19+'BP Financier'!$E$19+'BP Financier'!$F$19+'BP Financier'!$G$19)/('BP Financier'!$C$16+'BP Financier'!$C$19+'BP Financier'!$D$16+'BP Financier'!$D$19+'BP Financier'!$E$16+'BP Financier'!$E$19+'BP Financier'!$C$22+'BP Financier'!$D$22+'BP Financier'!$E$22+'BP Financier'!$F$22+'BP Financier'!$F$19+'BP Financier'!$F$16+'BP Financier'!$G$22+'BP Financier'!$G$19+'BP Financier'!$G$16))*$V9229*Z9229/(1-$W9229)","v":{"v":130615.96558958893,"d":"130,616"}},{"$f":"'BP Financier'!$G$44*(('BP Financier'!$C$19+'BP Financier'!$D$19+'BP Financier'!$E$19+'BP Financier'!$F$19+'BP Financier'!$G$19)/('BP Financier'!$C$16+'BP Financier'!$C$19+'BP Financier'!$D$16+'BP Financier'!$D$19+'BP Financier'!$E$16+'BP Financier'!$E$19+'BP Financier'!$C$22+'BP Financier'!$D$22+'BP Financier'!$E$22+'BP Financier'!$F$22+'BP Financier'!$F$19+'BP Financier'!$F$16+'BP Financier'!$G$22+'BP Financier'!$G$19+'BP Financier'!$G$16))*$V9229*AA9229/(1-$W9229)","v":{"v":16137.347385408559,"d":"16,137"}},{"$f":"'BP Financier'!$G$44*(('BP Financier'!$C$19+'BP Financier'!$D$19+'BP Financier'!$E$19+'BP Financier'!$F$19+'BP Financier'!$G$19)/('BP Financier'!$C$16+'BP Financier'!$C$19+'BP Financier'!$D$16+'BP Financier'!$D$19+'BP Financier'!$E$16+'BP Financier'!$E$19+'BP Financier'!$C$22+'BP Financier'!$D$22+'BP Financier'!$E$22+'BP Financier'!$F$22+'BP Financier'!$F$19+'BP Financier'!$F$16+'BP Financier'!$G$22+'BP Financier'!$G$19+'BP Financier'!$G$16))*$V9229*AB9229/(1-$W9229)","v":{"v":7723.858577631446,"d":"7,724"}},null,{"v":0.006,"d":"0.60%"},{"$f":"Actif!$E$28/100","v":{"v":0.28900000000000003,"d":"28.90%"}},{"$f":"Actif!$E$30/100","v":{"v":0.09050000000000001,"d":"9.05%"}},{"$f":"Actif!$E$31/100","v":{"v":0.0605,"d":"6.05%"}},{"$f":"Actif!$E$32/100","v":{"v":0.47350000000000003,"d":"47.35%"}},{"$f":"Actif!$E$33/100","v":{"v":0.0585,"d":"5.85%"}},{"$f":"Actif!$E$29/100","v":{"v":0.027999999999999997,"d":"2.80%"}}]
[null,"#114",40,2030,"H","A_PER",{"v":0.44999999999999996,"d":"0.45"},{"v":0.38999999999999996,"d":"0.39"},0.6,0.6,85,0,{"$f":"ROUND(Primes!$Q$7*V9230,0)","v":8},{"$f":"'BP Financier'!$G$33*(('BP Financier'!$C$19+'BP Financier'!$D$19+'BP Financier'!$E$19+'BP Financier'!$F$19+'BP Financier'!$G$19)/('BP Financier'!$C$16+'BP Financier'!$C$19+'BP Financier'!$D$16+'BP Financier'!$D$19+'BP Financier'!$E$16+'BP Financier'!$E$19+'BP Financier'!$F$16+'BP Financier'!$F$19+'BP Financier'!$G$16+'BP Financier'!$G$19))*V9230","v":{"v":341730.34334236645,"d":"341,730"}},{"v":196130.83745342708,"d":"196,131"},{"$f":"'BP Financier'!$G$44*(('BP Financier'!$C$19+'BP Financier'!$D$19+'BP Financier'!$E$19+'BP Financier'!$F$19+'BP Financier'!$G$19)/('BP Financier'!$C$16+'BP Financier'!$C$19+'BP Financier'!$D$16+'BP Financier'!$D$19+'BP Financier'!$E$16+'BP Financier'!$E$19+'BP Financier'!$C$22+'BP Financier'!$D$22+'BP Financier'!$E$22+'BP Financier'!$F$22+'BP Financier'!$F$19+'BP Financier'!$F$16+'BP Financier'!$G$22+'BP Financier'!$G$19+'BP Financier'!$G$16))*$V9230*X9230/(1-$W9230)","v":{"v":24964.61433127307,"d":"24,965"}},{"$f":"'BP Financier'!$G$44*(('BP Financier'!$C$19+'BP Financier'!$D$19+'BP Financier'!$E$19+'BP Financier'!$F$19+'BP Financier'!$G$19)/('BP Financier'!$C$16+'BP Financier'!$C$19+'BP Financier'!$D$16+'BP Financier'!$D$19+'BP Financier'!$E$16+'BP Financier'!$E$19+'BP Financier'!$C$22+'BP Financier'!$D$22+'BP Financier'!$E$22+'BP Financier'!$F$22+'BP Financier'!$F$19+'BP Financier'!$F$16+'BP Financier'!$G$22+'BP Financier'!$G$19+'BP Financier'!$G$16))*$V9230*Y9230/(1-$W9230)","v":{"v":16689.05156952509,"d":"16,689"}},{"$f":"'BP Financier'!$G$44*(('BP Financier'!$C$19+'BP Financier'!$D$19+'BP Financier'!$E$19+'BP Financier'!$F$19+'BP Financier'!$G$19)/('BP Financier'!$C$16+'BP Financier'!$C$19+'BP Financier'!$D$16+'BP Financier'!$D$19+'BP Financier'!$E$16+'BP Financier'!$E$19+'BP Financier'!$C$22+'BP Financier'!$D$22+'BP Financier'!$E$22+'BP Financier'!$F$22+'BP Financier'!$F$19+'BP Financier'!$F$16+'BP Financier'!$G$22+'BP Financier'!$G$19+'BP Financier'!$G$16))*$V9230*Z9230/(1-$W9230)","v":{"v":130615.96558958893,"d":"130,616"}},{"$f":"'BP Financier'!$G$44*(('BP Financier'!$C$19+'BP Financier'!$D$19+'BP Financier'!$E$19+'BP Financier'!$F$19+'BP Financier'!$G$19)/('BP Financier'!$C$16+'BP Financier'!$C$19+'BP Financier'!$D$16+'BP Financier'!$D$19+'BP Financier'!$E$16+'BP Financier'!$E$19+'BP Financier'!$C$22+'BP Financier'!$D$22+'BP Financier'!$E$22+'BP Financier'!$F$22+'BP Financier'!$F$19+'BP Financier'!$F$16+'BP Financier'!$G$22+'BP Financier'!$G$19+'BP Financier'!$G$16))*$V9230*AA9230/(1-$W9230)","v":{"v":16137.347385408559,"d":"16,137"}},{"$f":"'BP Financier'!$G$44*(('BP Financier'!$C$19+'BP Financier'!$D$19+'BP Financier'!$E$19+'BP Financier'!$F$19+'BP Financier'!$G$19)/('BP Financier'!$C$16+'BP Financier'!$C$19+'BP Financier'!$D$16+'BP Financier'!$D$19+'BP Financier'!$E$16+'BP Financier'!$E$19+'BP Financier'!$C$22+'BP Financier'!$D$22+'BP Financier'!$E$22+'BP Financier'!$F$22+'BP Financier'!$F$19+'BP Financier'!$F$16+'BP Financier'!$G$22+'BP Financier'!$G$19+'BP Financier'!$G$16))*$V9230*AB9230/(1-$W9230)","v":{"v":7723.858577631446,"d":"7,724"}},null,{"v":0.006,"d":"0.60%"},{"$f":"Actif!$E$28/100","v":{"v":0.28900000000000003,"d":"28.90%"}},{"$f":"Actif!$E$30/100","v":{"v":0.09050000000000001,"d":"9.05%"}},{"$f":"Actif!$E$31/100","v":{"v":0.0605,"d":"6.05%"}},{"$f":"Actif!$E$32/100","v":{"v":0.47350000000000003,"d":"47.35%"}},{"$f":"Actif!$E$33/100","v":{"v":0.0585,"d":"5.85%"}},{"$f":"Actif!$E$29/100","v":{"v":0.027999999999999997,"d":"2.80%"}}]
[null,"#115",40,2031,"H","A_PER",{"v":0.44999999999999996,"d":"0.45"},{"v":0.38999999999999996,"d":"0.39"},0.6,0.6,85,0,{"$f":"ROUND(Primes!$Q$7*V9231,0)","v":8},{"$f":"'BP Financier'!$G$33*(('BP Financier'!$C$19+'BP Financier'!$D$19+'BP Financier'!$E$19+'BP Financier'!$F$19+'BP Financier'!$G$19)/('BP Financier'!$C$16+'BP Financier'!$C$19+'BP Financier'!$D$16+'BP Financier'!$D$19+'BP Financier'!$E$16+'BP Financier'!$E$19+'BP Financier'!$F$16+'BP Financier'!$F$19+'BP Financier'!$G$16+'BP Financier'!$G$19))*V9231","v":{"v":341730.34334236645,"d":"341,730"}},{"v":196130.83745342708,"d":"196,131"},{"$f":"'BP Financier'!$G$44*(('BP Financier'!$C$19+'BP Financier'!$D$19+'BP Financier'!$E$19+'BP Financier'!$F$19+'BP Financier'!$G$19)/('BP Financier'!$C$16+'BP Financier'!$C$19+'BP Financier'!$D$16+'BP Financier'!$D$19+'BP Financier'!$E$16+'BP Financier'!$E$19+'BP Financier'!$C$22+'BP Financier'!$D$22+'BP Financier'!$E$22+'BP Financier'!$F$22+'BP Financier'!$F$19+'BP Financier'!$F$16+'BP Financier'!$G$22+'BP Financier'!$G$19+'BP Financier'!$G$16))*$V9231*X9231/(1-$W9231)","v":{"v":24964.61433127307,"d":"24,965"}},{"$f":"'BP Financier'!$G$44*(('BP Financier'!$C$19+'BP Financier'!$D$19+'BP Financier'!$E$19+'BP Financier'!$F$19+'BP Financier'!$G$19)/('BP Financier'!$C$16+'BP Financier'!$C$19+'BP Financier'!$D$16+'BP Financier'!$D$19+'BP Financier'!$E$16+'BP Financier'!$E$19+'BP Financier'!$C$22+'BP Financier'!$D$22+'BP Financier'!$E$22+'BP Financier'!$F$22+'BP Financier'!$F$19+'BP Financier'!$F$16+'BP Financier'!$G$22+'BP Financier'!$G$19+'BP Financier'!$G$16))*$V9231*Y9231/(1-$W9231)","v":{"v":16689.05156952509,"d":"16,689"}},{"$f":"'BP Financier'!$G$44*(('BP Financier'!$C$19+'BP Financier'!$D$19+'BP Financier'!$E$19+'BP Financier'!$F$19+'BP Financier'!$G$19)/('BP Financier'!$C$16+'BP Financier'!$C$19+'BP Financier'!$D$16+'BP Financier'!$D$19+'BP Financier'!$E$16+'BP Financier'!$E$19+'BP Financier'!$C$22+'BP Financier'!$D$22+'BP Financier'!$E$22+'BP Financier'!$F$22+'BP Financier'!$F$19+'BP Financier'!$F$16+'BP Financier'!$G$22+'BP Financier'!$G$19+'BP Financier'!$G$16))*$V9231*Z9231/(1-$W9231)","v":{"v":130615.96558958893,"d":"130,616"}},{"$f":"'BP Financier'!$G$44*(('BP Financier'!$C$19+'BP Financier'!$D$19+'BP Financier'!$E$19+'BP Financier'!$F$19+'BP Financier'!$G$19)/('BP Financier'!$C$16+'BP Financier'!$C$19+'BP Financier'!$D$16+'BP Financier'!$D$19+'BP Financier'!$E$16+'BP Financier'!$E$19+'BP Financier'!$C$22+'BP Financier'!$D$22+'BP Financier'!$E$22+'BP Financier'!$F$22+'BP Financier'!$F$19+'BP Financier'!$F$16+'BP Financier'!$G$22+'BP Financier'!$G$19+'BP Financier'!$G$16))*$V9231*AA9231/(1-$W9231)","v":{"v":16137.347385408559,"d":"16,137"}},{"$f":"'BP Financier'!$G$44*(('BP Financier'!$C$19+'BP Financier'!$D$19+'BP Financier'!$E$19+'BP Financier'!$F$19+'BP Financier'!$G$19)/('BP Financier'!$C$16+'BP Financier'!$C$19+'BP Financier'!$D$16+'BP Financier'!$D$19+'BP Financier'!$E$16+'BP Financier'!$E$19+'BP Financier'!$C$22+'BP Financier'!$D$22+'BP Financier'!$E$22+'BP Financier'!$F$22+'BP Financier'!$F$19+'BP Financier'!$F$16+'BP Financier'!$G$22+'BP Financier'!$G$19+'BP Financier'!$G$16))*$V9231*AB9231/(1-$W9231)","v":{"v":7723.858577631446,"d":"7,724"}},null,{"v":0.006,"d":"0.60%"},{"$f":"Actif!$E$28/100","v":{"v":0.28900000000000003,"d":"28.90%"}},{"$f":"Actif!$E$30/100","v":{"v":0.09050000000000001,"d":"9.05%"}},{"$f":"Actif!$E$31/100","v":{"v":0.0605,"d":"6.05%"}},{"$f":"Actif!$E$32/100","v":{"v":0.47350000000000003,"d":"47.35%"}},{"$f":"Actif!$E$33/100","v":{"v":0.0585,"d":"5.85%"}},{"$f":"Actif!$E$29/100","v":{"v":0.027999999999999997,"d":"2.80%"}}]
[null,"#116",41,2026,"F","A_PER",{"v":0.44999999999999996,"d":"0.45"},{"v":0.38999999999999996,"d":"0.39"},0.6,0.6,85,0,{"$f":"ROUND(Primes!$Q$7*V9232,0)","v":11},{"$f":"'BP Financier'!$G$33*(('BP Financier'!$C$19+'BP Financier'!$D$19+'BP Financier'!$E$19+'BP Financier'!$F$19+'BP Financier'!$G$19)/('BP Financier'!$C$16+'BP Financier'!$C$19+'BP Financier'!$D$16+'BP Financier'!$D$19+'BP Financier'!$E$16+'BP Financier'!$E$19+'BP Financier'!$F$16+'BP Financier'!$F$19+'BP Financier'!$G$16+'BP Financier'!$G$19))*V9232","v":{"v":455640.45778982196,"d":"455,640"}},{"v":261507.7832712362,"d":"261,508"},{"$f":"'BP Financier'!$G$44*(('BP Financier'!$C$19+'BP Financier'!$D$19+'BP Financier'!$E$19+'BP Financier'!$F$19+'BP Financier'!$G$19)/('BP Financier'!$C$16+'BP Financier'!$C$19+'BP Financier'!$D$16+'BP Financier'!$D$19+'BP Financier'!$E$16+'BP Financier'!$E$19+'BP Financier'!$C$22+'BP Financier'!$D$22+'BP Financier'!$E$22+'BP Financier'!$F$22+'BP Financier'!$F$19+'BP Financier'!$F$16+'BP Financier'!$G$22+'BP Financier'!$G$19+'BP Financier'!$G$16))*$V9232*X9232/(1-$W9232)","v":{"v":33286.152441697435,"d":"33,286"}},{"$f":"'BP Financier'!$G$44*(('BP Financier'!$C$19+'BP Financier'!$D$19+'BP Financier'!$E$19+'BP Financier'!$F$19+'BP Financier'!$G$19)/('BP Financier'!$C$16+'BP Financier'!$C$19+'BP Financier'!$D$16+'BP Financier'!$D$19+'BP Financier'!$E$16+'BP Financier'!$E$19+'BP Financier'!$C$22+'BP Financier'!$D$22+'BP Financier'!$E$22+'BP Financier'!$F$22+'BP Financier'!$F$19+'BP Financier'!$F$16+'BP Financier'!$G$22+'BP Financier'!$G$19+'BP Financier'!$G$16))*$V9232*Y9232/(1-$W9232)","v":{"v":22252.068759366786,"d":"22,252"}},{"$f":"'BP Financier'!$G$44*(('BP Financier'!$C$19+'BP Financier'!$D$19+'BP Financier'!$E$19+'BP Financier'!$F$19+'BP Financier'!$G$19)/('BP Financier'!$C$16+'BP Financier'!$C$19+'BP Financier'!$D$16+'BP Financier'!$D$19+'BP Financier'!$E$16+'BP Financier'!$E$19+'BP Financier'!$C$22+'BP Financier'!$D$22+'BP Financier'!$E$22+'BP Financier'!$F$22+'BP Financier'!$F$19+'BP Financier'!$F$16+'BP Financier'!$G$22+'BP Financier'!$G$19+'BP Financier'!$G$16))*$V9232*Z9232/(1-$W9232)","v":{"v":174154.6207861186,"d":"174,155"}},{"$f":"'BP Financier'!$G$44*(('BP Financier'!$C$19+'BP Financier'!$D$19+'BP Financier'!$E$19+'BP Financier'!$F$19+'BP Financier'!$G$19)/('BP Financier'!$C$16+'BP Financier'!$C$19+'BP Financier'!$D$16+'BP Financier'!$D$19+'BP Financier'!$E$16+'BP Financier'!$E$19+'BP Financier'!$C$22+'BP Financier'!$D$22+'BP Financier'!$E$22+'BP Financier'!$F$22+'BP Financier'!$F$19+'BP Financier'!$F$16+'BP Financier'!$G$22+'BP Financier'!$G$19+'BP Financier'!$G$16))*$V9232*AA9232/(1-$W9232)","v":{"v":21516.46318054475,"d":"21,516"}},{"$f":"'BP Financier'!$G$44*(('BP Financier'!$C$19+'BP Financier'!$D$19+'BP Financier'!$E$19+'BP Financier'!$F$19+'BP Financier'!$G$19)/('BP Financier'!$C$16+'BP Financier'!$C$19+'BP Financier'!$D$16+'BP Financier'!$D$19+'BP Financier'!$E$16+'BP Financier'!$E$19+'BP Financier'!$C$22+'BP Financier'!$D$22+'BP Financier'!$E$22+'BP Financier'!$F$22+'BP Financier'!$F$19+'BP Financier'!$F$16+'BP Financier'!$G$22+'BP Financier'!$G$19+'BP Financier'!$G$16))*$V9232*AB9232/(1-$W9232)","v":{"v":10298.478103508596,"d":"10,298"}},null,{"v":0.008,"d":"0.80%"},{"$f":"Actif!$E$28/100","v":{"v":0.28900000000000003,"d":"28.90%"}},{"$f":"Actif!$E$30/100","v":{"v":0.09050000000000001,"d":"9.05%"}},{"$f":"Actif!$E$31/100","v":{"v":0.0605,"d":"6.05%"}},{"$f":"Actif!$E$32/100","v":{"v":0.47350000000000003,"d":"47.35%"}},{"$f":"Actif!$E$33/100","v":{"v":0.0585,"d":"5.85%"}},{"$f":"Actif!$E$29/100","v":{"v":0.027999999999999997,"d":"2.80%"}}]
[null,"#117",41,2028,"F","A_PER",{"v":0.44999999999999996,"d":"0.45"},{"v":0.38999999999999996,"d":"0.39"},0.6,0.6,85,0,{"$f":"ROUND(Primes!$Q$7*V9233,0)","v":11},{"$f":"'BP Financier'!$G$33*(('BP Financier'!$C$19+'BP Financier'!$D$19+'BP Financier'!$E$19+'BP Financier'!$F$19+'BP Financier'!$G$19)/('BP Financier'!$C$16+'BP Financier'!$C$19+'BP Financier'!$D$16+'BP Financier'!$D$19+'BP Financier'!$E$16+'BP Financier'!$E$19+'BP Financier'!$F$16+'BP Financier'!$F$19+'BP Financier'!$G$16+'BP Financier'!$G$19))*V9233","v":{"v":455640.45778982196,"d":"455,640"}},{"v":261507.7832712362,"d":"261,508"},{"$f":"'BP Financier'!$G$44*(('BP Financier'!$C$19+'BP Financier'!$D$19+'BP Financier'!$E$19+'BP Financier'!$F$19+'BP Financier'!$G$19)/('BP Financier'!$C$16+'BP Financier'!$C$19+'BP Financier'!$D$16+'BP Financier'!$D$19+'BP Financier'!$E$16+'BP Financier'!$E$19+'BP Financier'!$C$22+'BP Financier'!$D$22+'BP Financier'!$E$22+'BP Financier'!$F$22+'BP Financier'!$F$19+'BP Financier'!$F$16+'BP Financier'!$G$22+'BP Financier'!$G$19+'BP Financier'!$G$16))*$V9233*X9233/(1-$W9233)","v":{"v":33286.152441697435,"d":"33,286"}},{"$f":"'BP Financier'!$G$44*(('BP Financier'!$C$19+'BP Financier'!$D$19+'BP Financier'!$E$19+'BP Financier'!$F$19+'BP Financier'!$G$19)/('BP Financier'!$C$16+'BP Financier'!$C$19+'BP Financier'!$D$16+'BP Financier'!$D$19+'BP Financier'!$E$16+'BP Financier'!$E$19+'BP Financier'!$C$22+'BP Financier'!$D$22+'BP Financier'!$E$22+'BP Financier'!$F$22+'BP Financier'!$F$19+'BP Financier'!$F$16+'BP Financier'!$G$22+'BP Financier'!$G$19+'BP Financier'!$G$16))*$V9233*Y9233/(1-$W9233)","v":{"v":22252.068759366786,"d":"22,252"}},{"$f":"'BP Financier'!$G$44*(('BP Financier'!$C$19+'BP Financier'!$D$19+'BP Financier'!$E$19+'BP Financier'!$F$19+'BP Financier'!$G$19)/('BP Financier'!$C$16+'BP Financier'!$C$19+'BP Financier'!$D$16+'BP Financier'!$D$19+'BP Financier'!$E$16+'BP Financier'!$E$19+'BP Financier'!$C$22+'BP Financier'!$D$22+'BP Financier'!$E$22+'BP Financier'!$F$22+'BP Financier'!$F$19+'BP Financier'!$F$16+'BP Financier'!$G$22+'BP Financier'!$G$19+'BP Financier'!$G$16))*$V9233*Z9233/(1-$W9233)","v":{"v":174154.6207861186,"d":"174,155"}},{"$f":"'BP Financier'!$G$44*(('BP Financier'!$C$19+'BP Financier'!$D$19+'BP Financier'!$E$19+'BP Financier'!$F$19+'BP Financier'!$G$19)/('BP Financier'!$C$16+'BP Financier'!$C$19+'BP Financier'!$D$16+'BP Financier'!$D$19+'BP Financier'!$E$16+'BP Financier'!$E$19+'BP Financier'!$C$22+'BP Financier'!$D$22+'BP Financier'!$E$22+'BP Financier'!$F$22+'BP Financier'!$F$19+'BP Financier'!$F$16+'BP Financier'!$G$22+'BP Financier'!$G$19+'BP Financier'!$G$16))*$V9233*AA9233/(1-$W9233)","v":{"v":21516.46318054475,"d":"21,516"}},{"$f":"'BP Financier'!$G$44*(('BP Financier'!$C$19+'BP Financier'!$D$19+'BP Financier'!$E$19+'BP Financier'!$F$19+'BP Financier'!$G$19)/('BP Financier'!$C$16+'BP Financier'!$C$19+'BP Financier'!$D$16+'BP Financier'!$D$19+'BP Financier'!$E$16+'BP Financier'!$E$19+'BP Financier'!$C$22+'BP Financier'!$D$22+'BP Financier'!$E$22+'BP Financier'!$F$22+'BP Financier'!$F$19+'BP Financier'!$F$16+'BP Financier'!$G$22+'BP Financier'!$G$19+'BP Financier'!$G$16))*$V9233*AB9233/(1-$W9233)","v":{"v":10298.478103508596,"d":"10,298"}},null,{"v":0.008,"d":"0.80%"},{"$f":"Actif!$E$28/100","v":{"v":0.28900000000000003,"d":"28.90%"}},{"$f":"Actif!$E$30/100","v":{"v":0.09050000000000001,"d":"9.05%"}},{"$f":"Actif!$E$31/100","v":{"v":0.0605,"d":"6.05%"}},{"$f":"Actif!$E$32/100","v":{"v":0.47350000000000003,"d":"47.35%"}},{"$f":"Actif!$E$33/100","v":{"v":0.0585,"d":"5.85%"}},{"$f":"Actif!$E$29/100","v":{"v":0.027999999999999997,"d":"2.80%"}}]
[null,"#118",41,2029,"F","A_PER",{"v":0.44999999999999996,"d":"0.45"},{"v":0.38999999999999996,"d":"0.39"},0.6,0.6,85,0,{"$f":"ROUND(Primes!$Q$7*V9234,0)","v":11},{"$f":"'BP Financier'!$G$33*(('BP Financier'!$C$19+'BP Financier'!$D$19+'BP Financier'!$E$19+'BP Financier'!$F$19+'BP Financier'!$G$19)/('BP Financier'!$C$16+'BP Financier'!$C$19+'BP Financier'!$D$16+'BP Financier'!$D$19+'BP Financier'!$E$16+'BP Financier'!$E$19+'BP Financier'!$F$16+'BP Financier'!$F$19+'BP Financier'!$G$16+'BP Financier'!$G$19))*V9234","v":{"v":455640.45778982196,"d":"455,640"}},{"v":261507.7832712362,"d":"261,508"},{"$f":"'BP Financier'!$G$44*(('BP Financier'!$C$19+'BP Financier'!$D$19+'BP Financier'!$E$19+'BP Financier'!$F$19+'BP Financier'!$G$19)/('BP Financier'!$C$16+'BP Financier'!$C$19+'BP Financier'!$D$16+'BP Financier'!$D$19+'BP Financier'!$E$16+'BP Financier'!$E$19+'BP Financier'!$C$22+'BP Financier'!$D$22+'BP Financier'!$E$22+'BP Financier'!$F$22+'BP Financier'!$F$19+'BP Financier'!$F$16+'BP Financier'!$G$22+'BP Financier'!$G$19+'BP Financier'!$G$16))*$V9234*X9234/(1-$W9234)","v":{"v":33286.152441697435,"d":"33,286"}},{"$f":"'BP Financier'!$G$44*(('BP Financier'!$C$19+'BP Financier'!$D$19+'BP Financier'!$E$19+'BP Financier'!$F$19+'BP Financier'!$G$19)/('BP Financier'!$C$16+'BP Financier'!$C$19+'BP Financier'!$D$16+'BP Financier'!$D$19+'BP Financier'!$E$16+'BP Financier'!$E$19+'BP Financier'!$C$22+'BP Financier'!$D$22+'BP Financier'!$E$22+'BP Financier'!$F$22+'BP Financier'!$F$19+'BP Financier'!$F$16+'BP Financier'!$G$22+'BP Financier'!$G$19+'BP Financier'!$G$16))*$V9234*Y9234/(1-$W9234)","v":{"v":22252.068759366786,"d":"22,252"}},{"$f":"'BP Financier'!$G$44*(('BP Financier'!$C$19+'BP Financier'!$D$19+'BP Financier'!$E$19+'BP Financier'!$F$19+'BP Financier'!$G$19)/('BP Financier'!$C$16+'BP Financier'!$C$19+'BP Financier'!$D$16+'BP Financier'!$D$19+'BP Financier'!$E$16+'BP Financier'!$E$19+'BP Financier'!$C$22+'BP Financier'!$D$22+'BP Financier'!$E$22+'BP Financier'!$F$22+'BP Financier'!$F$19+'BP Financier'!$F$16+'BP Financier'!$G$22+'BP Financier'!$G$19+'BP Financier'!$G$16))*$V9234*Z9234/(1-$W9234)","v":{"v":174154.6207861186,"d":"174,155"}},{"$f":"'BP Financier'!$G$44*(('BP Financier'!$C$19+'BP Financier'!$D$19+'BP Financier'!$E$19+'BP Financier'!$F$19+'BP Financier'!$G$19)/('BP Financier'!$C$16+'BP Financier'!$C$19+'BP Financier'!$D$16+'BP Financier'!$D$19+'BP Financier'!$E$16+'BP Financier'!$E$19+'BP Financier'!$C$22+'BP Financier'!$D$22+'BP Financier'!$E$22+'BP Financier'!$F$22+'BP Financier'!$F$19+'BP Financier'!$F$16+'BP Financier'!$G$22+'BP Financier'!$G$19+'BP Financier'!$G$16))*$V9234*AA9234/(1-$W9234)","v":{"v":21516.46318054475,"d":"21,516"}},{"$f":"'BP Financier'!$G$44*(('BP Financier'!$C$19+'BP Financier'!$D$19+'BP Financier'!$E$19+'BP Financier'!$F$19+'BP Financier'!$G$19)/('BP Financier'!$C$16+'BP Financier'!$C$19+'BP Financier'!$D$16+'BP Financier'!$D$19+'BP Financier'!$E$16+'BP Financier'!$E$19+'BP Financier'!$C$22+'BP Financier'!$D$22+'BP Financier'!$E$22+'BP Financier'!$F$22+'BP Financier'!$F$19+'BP Financier'!$F$16+'BP Financier'!$G$22+'BP Financier'!$G$19+'BP Financier'!$G$16))*$V9234*AB9234/(1-$W9234)","v":{"v":10298.478103508596,"d":"10,298"}},null,{"v":0.008,"d":"0.80%"},{"$f":"Actif!$E$28/100","v":{"v":0.28900000000000003,"d":"28.90%"}},{"$f":"Actif!$E$30/100","v":{"v":0.09050000000000001,"d":"9.05%"}},{"$f":"Actif!$E$31/100","v":{"v":0.0605,"d":"6.05%"}},{"$f":"Actif!$E$32/100","v":{"v":0.47350000000000003,"d":"47.35%"}},{"$f":"Actif!$E$33/100","v":{"v":0.0585,"d":"5.85%"}},{"$f":"Actif!$E$29/100","v":{"v":0.027999999999999997,"d":"2.80%"}}]
[null,"#119",41,2030,"F","A_PER",{"v":0.44999999999999996,"d":"0.45"},{"v":0.38999999999999996,"d":"0.39"},0.6,0.6,85,0,{"$f":"ROUND(Primes!$Q$7*V9235,0)","v":11},{"$f":"'BP Financier'!$G$33*(('BP Financier'!$C$19+'BP Financier'!$D$19+'BP Financier'!$E$19+'BP Financier'!$F$19+'BP Financier'!$G$19)/('BP Financier'!$C$16+'BP Financier'!$C$19+'BP Financier'!$D$16+'BP Financier'!$D$19+'BP Financier'!$E$16+'BP Financier'!$E$19+'BP Financier'!$F$16+'BP Financier'!$F$19+'BP Financier'!$G$16+'BP Financier'!$G$19))*V9235","v":{"v":455640.45778982196,"d":"455,640"}},{"v":261507.7832712362,"d":"261,508"},{"$f":"'BP Financier'!$G$44*(('BP Financier'!$C$19+'BP Financier'!$D$19+'BP Financier'!$E$19+'BP Financier'!$F$19+'BP Financier'!$G$19)/('BP Financier'!$C$16+'BP Financier'!$C$19+'BP Financier'!$D$16+'BP Financier'!$D$19+'BP Financier'!$E$16+'BP Financier'!$E$19+'BP Financier'!$C$22+'BP Financier'!$D$22+'BP Financier'!$E$22+'BP Financier'!$F$22+'BP Financier'!$F$19+'BP Financier'!$F$16+'BP Financier'!$G$22+'BP Financier'!$G$19+'BP Financier'!$G$16))*$V9235*X9235/(1-$W9235)","v":{"v":33286.152441697435,"d":"33,286"}},{"$f":"'BP Financier'!$G$44*(('BP Financier'!$C$19+'BP Financier'!$D$19+'BP Financier'!$E$19+'BP Financier'!$F$19+'BP Financier'!$G$19)/('BP Financier'!$C$16+'BP Financier'!$C$19+'BP Financier'!$D$16+'BP Financier'!$D$19+'BP Financier'!$E$16+'BP Financier'!$E$19+'BP Financier'!$C$22+'BP Financier'!$D$22+'BP Financier'!$E$22+'BP Financier'!$F$22+'BP Financier'!$F$19+'BP Financier'!$F$16+'BP Financier'!$G$22+'BP Financier'!$G$19+'BP Financier'!$G$16))*$V9235*Y9235/(1-$W9235)","v":{"v":22252.068759366786,"d":"22,252"}},{"$f":"'BP Financier'!$G$44*(('BP Financier'!$C$19+'BP Financier'!$D$19+'BP Financier'!$E$19+'BP Financier'!$F$19+'BP Financier'!$G$19)/('BP Financier'!$C$16+'BP Financier'!$C$19+'BP Financier'!$D$16+'BP Financier'!$D$19+'BP Financier'!$E$16+'BP Financier'!$E$19+'BP Financier'!$C$22+'BP Financier'!$D$22+'BP Financier'!$E$22+'BP Financier'!$F$22+'BP Financier'!$F$19+'BP Financier'!$F$16+'BP Financier'!$G$22+'BP Financier'!$G$19+'BP Financier'!$G$16))*$V9235*Z9235/(1-$W9235)","v":{"v":174154.6207861186,"d":"174,155"}},{"$f":"'BP Financier'!$G$44*(('BP Financier'!$C$19+'BP Financier'!$D$19+'BP Financier'!$E$19+'BP Financier'!$F$19+'BP Financier'!$G$19)/('BP Financier'!$C$16+'BP Financier'!$C$19+'BP Financier'!$D$16+'BP Financier'!$D$19+'BP Financier'!$E$16+'BP Financier'!$E$19+'BP Financier'!$C$22+'BP Financier'!$D$22+'BP Financier'!$E$22+'BP Financier'!$F$22+'BP Financier'!$F$19+'BP Financier'!$F$16+'BP Financier'!$G$22+'BP Financier'!$G$19+'BP Financier'!$G$16))*$V9235*AA9235/(1-$W9235)","v":{"v":21516.46318054475,"d":"21,516"}},{"$f":"'BP Financier'!$G$44*(('BP Financier'!$C$19+'BP Financier'!$D$19+'BP Financier'!$E$19+'BP Financier'!$F$19+'BP Financier'!$G$19)/('BP Financier'!$C$16+'BP Financier'!$C$19+'BP Financier'!$D$16+'BP Financier'!$D$19+'BP Financier'!$E$16+'BP Financier'!$E$19+'BP Financier'!$C$22+'BP Financier'!$D$22+'BP Financier'!$E$22+'BP Financier'!$F$22+'BP Financier'!$F$19+'BP Financier'!$F$16+'BP Financier'!$G$22+'BP Financier'!$G$19+'BP Financier'!$G$16))*$V9235*AB9235/(1-$W9235)","v":{"v":10298.478103508596,"d":"10,298"}},null,{"v":0.008,"d":"0.80%"},{"$f":"Actif!$E$28/100","v":{"v":0.28900000000000003,"d":"28.90%"}},{"$f":"Actif!$E$30/100","v":{"v":0.09050000000000001,"d":"9.05%"}},{"$f":"Actif!$E$31/100","v":{"v":0.0605,"d":"6.05%"}},{"$f":"Actif!$E$32/100","v":{"v":0.47350000000000003,"d":"47.35%"}},{"$f":"Actif!$E$33/100","v":{"v":0.0585,"d":"5.85%"}},{"$f":"Actif!$E$29/100","v":{"v":0.027999999999999997,"d":"2.80%"}}]
[null,"#120",41,2031,"F","A_PER",{"v":0.44999999999999996,"d":"0.45"},{"v":0.38999999999999996,"d":"0.39"},0.6,0.6,85,0,{"$f":"ROUND(Primes!$Q$7*V9236,0)","v":11},{"$f":"'BP Financier'!$G$33*(('BP Financier'!$C$19+'BP Financier'!$D$19+'BP Financier'!$E$19+'BP Financier'!$F$19+'BP Financier'!$G$19)/('BP Financier'!$C$16+'BP Financier'!$C$19+'BP Financier'!$D$16+'BP Financier'!$D$19+'BP Financier'!$E$16+'BP Financier'!$E$19+'BP Financier'!$F$16+'BP Financier'!$F$19+'BP Financier'!$G$16+'BP Financier'!$G$19))*V9236","v":{"v":455640.45778982196,"d":"455,640"}},{"v":261507.7832712362,"d":"261,508"},{"$f":"'BP Financier'!$G$44*(('BP Financier'!$C$19+'BP Financier'!$D$19+'BP Financier'!$E$19+'BP Financier'!$F$19+'BP Financier'!$G$19)/('BP Financier'!$C$16+'BP Financier'!$C$19+'BP Financier'!$D$16+'BP Financier'!$D$19+'BP Financier'!$E$16+'BP Financier'!$E$19+'BP Financier'!$C$22+'BP Financier'!$D$22+'BP Financier'!$E$22+'BP Financier'!$F$22+'BP Financier'!$F$19+'BP Financier'!$F$16+'BP Financier'!$G$22+'BP Financier'!$G$19+'BP Financier'!$G$16))*$V9236*X9236/(1-$W9236)","v":{"v":33286.152441697435,"d":"33,286"}},{"$f":"'BP Financier'!$G$44*(('BP Financier'!$C$19+'BP Financier'!$D$19+'BP Financier'!$E$19+'BP Financier'!$F$19+'BP Financier'!$G$19)/('BP Financier'!$C$16+'BP Financier'!$C$19+'BP Financier'!$D$16+'BP Financier'!$D$19+'BP Financier'!$E$16+'BP Financier'!$E$19+'BP Financier'!$C$22+'BP Financier'!$D$22+'BP Financier'!$E$22+'BP Financier'!$F$22+'BP Financier'!$F$19+'BP Financier'!$F$16+'BP Financier'!$G$22+'BP Financier'!$G$19+'BP Financier'!$G$16))*$V9236*Y9236/(1-$W9236)","v":{"v":22252.068759366786,"d":"22,252"}},{"$f":"'BP Financier'!$G$44*(('BP Financier'!$C$19+'BP Financier'!$D$19+'BP Financier'!$E$19+'BP Financier'!$F$19+'BP Financier'!$G$19)/('BP Financier'!$C$16+'BP Financier'!$C$19+'BP Financier'!$D$16+'BP Financier'!$D$19+'BP Financier'!$E$16+'BP Financier'!$E$19+'BP Financier'!$C$22+'BP Financier'!$D$22+'BP Financier'!$E$22+'BP Financier'!$F$22+'BP Financier'!$F$19+'BP Financier'!$F$16+'BP Financier'!$G$22+'BP Financier'!$G$19+'BP Financier'!$G$16))*$V9236*Z9236/(1-$W9236)","v":{"v":174154.6207861186,"d":"174,155"}},{"$f":"'BP Financier'!$G$44*(('BP Financier'!$C$19+'BP Financier'!$D$19+'BP Financier'!$E$19+'BP Financier'!$F$19+'BP Financier'!$G$19)/('BP Financier'!$C$16+'BP Financier'!$C$19+'BP Financier'!$D$16+'BP Financier'!$D$19+'BP Financier'!$E$16+'BP Financier'!$E$19+'BP Financier'!$C$22+'BP Financier'!$D$22+'BP Financier'!$E$22+'BP Financier'!$F$22+'BP Financier'!$F$19+'BP Financier'!$F$16+'BP Financier'!$G$22+'BP Financier'!$G$19+'BP Financier'!$G$16))*$V9236*AA9236/(1-$W9236)","v":{"v":21516.46318054475,"d":"21,516"}},{"$f":"'BP Financier'!$G$44*(('BP Financier'!$C$19+'BP Financier'!$D$19+'BP Financier'!$E$19+'BP Financier'!$F$19+'BP Financier'!$G$19)/('BP Financier'!$C$16+'BP Financier'!$C$19+'BP Financier'!$D$16+'BP Financier'!$D$19+'BP Financier'!$E$16+'BP Financier'!$E$19+'BP Financier'!$C$22+'BP Financier'!$D$22+'BP Financier'!$E$22+'BP Financier'!$F$22+'BP Financier'!$F$19+'BP Financier'!$F$16+'BP Financier'!$G$22+'BP Financier'!$G$19+'BP Financier'!$G$16))*$V9236*AB9236/(1-$W9236)","v":{"v":10298.478103508596,"d":"10,298"}},null,{"v":0.008,"d":"0.80%"},{"$f":"Actif!$E$28/100","v":{"v":0.28900000000000003,"d":"28.90%"}},{"$f":"Actif!$E$30/100","v":{"v":0.09050000000000001,"d":"9.05%"}},{"$f":"Actif!$E$31/100","v":{"v":0.0605,"d":"6.05%"}},{"$f":"Actif!$E$32/100","v":{"v":0.47350000000000003,"d":"47.35%"}},{"$f":"Actif!$E$33/100","v":{"v":0.0585,"d":"5.85%"}},{"$f":"Actif!$E$29/100","v":{"v":0.027999999999999997,"d":"2.80%"}}]
[null,"#121",42,2026,"H","A_PER",{"v":0.44999999999999996,"d":"0.45"},{"v":0.38999999999999996,"d":"0.39"},0.6,0.6,85,0,{"$f":"ROUND(Primes!$Q$7*V9237,0)","v":11},{"$f":"'BP Financier'!$G$33*(('BP Financier'!$C$19+'BP Financier'!$D$19+'BP Financier'!$E$19+'BP Financier'!$F$19+'BP Financier'!$G$19)/('BP Financier'!$C$16+'BP Financier'!$C$19+'BP Financier'!$D$16+'BP Financier'!$D$19+'BP Financier'!$E$16+'BP Financier'!$E$19+'BP Financier'!$F$16+'BP Financier'!$F$19+'BP Financier'!$G$16+'BP Financier'!$G$19))*V9237","v":{"v":455640.45778982196,"d":"455,640"}},{"v":261507.7832712362,"d":"261,508"},{"$f":"'BP Financier'!$G$44*(('BP Financier'!$C$19+'BP Financier'!$D$19+'BP Financier'!$E$19+'BP Financier'!$F$19+'BP Financier'!$G$19)/('BP Financier'!$C$16+'BP Financier'!$C$19+'BP Financier'!$D$16+'BP Financier'!$D$19+'BP Financier'!$E$16+'BP Financier'!$E$19+'BP Financier'!$C$22+'BP Financier'!$D$22+'BP Financier'!$E$22+'BP Financier'!$F$22+'BP Financier'!$F$19+'BP Financier'!$F$16+'BP Financier'!$G$22+'BP Financier'!$G$19+'BP Financier'!$G$16))*$V9237*X9237/(1-$W9237)","v":{"v":33286.152441697435,"d":"33,286"}},{"$f":"'BP Financier'!$G$44*(('BP Financier'!$C$19+'BP Financier'!$D$19+'BP Financier'!$E$19+'BP Financier'!$F$19+'BP Financier'!$G$19)/('BP Financier'!$C$16+'BP Financier'!$C$19+'BP Financier'!$D$16+'BP Financier'!$D$19+'BP Financier'!$E$16+'BP Financier'!$E$19+'BP Financier'!$C$22+'BP Financier'!$D$22+'BP Financier'!$E$22+'BP Financier'!$F$22+'BP Financier'!$F$19+'BP Financier'!$F$16+'BP Financier'!$G$22+'BP Financier'!$G$19+'BP Financier'!$G$16))*$V9237*Y9237/(1-$W9237)","v":{"v":22252.068759366786,"d":"22,252"}},{"$f":"'BP Financier'!$G$44*(('BP Financier'!$C$19+'BP Financier'!$D$19+'BP Financier'!$E$19+'BP Financier'!$F$19+'BP Financier'!$G$19)/('BP Financier'!$C$16+'BP Financier'!$C$19+'BP Financier'!$D$16+'BP Financier'!$D$19+'BP Financier'!$E$16+'BP Financier'!$E$19+'BP Financier'!$C$22+'BP Financier'!$D$22+'BP Financier'!$E$22+'BP Financier'!$F$22+'BP Financier'!$F$19+'BP Financier'!$F$16+'BP Financier'!$G$22+'BP Financier'!$G$19+'BP Financier'!$G$16))*$V9237*Z9237/(1-$W9237)","v":{"v":174154.6207861186,"d":"174,155"}},{"$f":"'BP Financier'!$G$44*(('BP Financier'!$C$19+'BP Financier'!$D$19+'BP Financier'!$E$19+'BP Financier'!$F$19+'BP Financier'!$G$19)/('BP Financier'!$C$16+'BP Financier'!$C$19+'BP Financier'!$D$16+'BP Financier'!$D$19+'BP Financier'!$E$16+'BP Financier'!$E$19+'BP Financier'!$C$22+'BP Financier'!$D$22+'BP Financier'!$E$22+'BP Financier'!$F$22+'BP Financier'!$F$19+'BP Financier'!$F$16+'BP Financier'!$G$22+'BP Financier'!$G$19+'BP Financier'!$G$16))*$V9237*AA9237/(1-$W9237)","v":{"v":21516.46318054475,"d":"21,516"}},{"$f":"'BP Financier'!$G$44*(('BP Financier'!$C$19+'BP Financier'!$D$19+'BP Financier'!$E$19+'BP Financier'!$F$19+'BP Financier'!$G$19)/('BP Financier'!$C$16+'BP Financier'!$C$19+'BP Financier'!$D$16+'BP Financier'!$D$19+'BP Financier'!$E$16+'BP Financier'!$E$19+'BP Financier'!$C$22+'BP Financier'!$D$22+'BP Financier'!$E$22+'BP Financier'!$F$22+'BP Financier'!$F$19+'BP Financier'!$F$16+'BP Financier'!$G$22+'BP Financier'!$G$19+'BP Financier'!$G$16))*$V9237*AB9237/(1-$W9237)","v":{"v":10298.478103508596,"d":"10,298"}},null,{"v":0.008,"d":"0.80%"},{"$f":"Actif!$E$28/100","v":{"v":0.28900000000000003,"d":"28.90%"}},{"$f":"Actif!$E$30/100","v":{"v":0.09050000000000001,"d":"9.05%"}},{"$f":"Actif!$E$31/100","v":{"v":0.0605,"d":"6.05%"}},{"$f":"Actif!$E$32/100","v":{"v":0.47350000000000003,"d":"47.35%"}},{"$f":"Actif!$E$33/100","v":{"v":0.0585,"d":"5.85%"}},{"$f":"Actif!$E$29/100","v":{"v":0.027999999999999997,"d":"2.80%"}}]
[null,"#122",42,2028,"H","A_PER",{"v":0.44999999999999996,"d":"0.45"},{"v":0.38999999999999996,"d":"0.39"},0.6,0.6,85,0,{"$f":"ROUND(Primes!$Q$7*V9238,0)","v":11},{"$f":"'BP Financier'!$G$33*(('BP Financier'!$C$19+'BP Financier'!$D$19+'BP Financier'!$E$19+'BP Financier'!$F$19+'BP Financier'!$G$19)/('BP Financier'!$C$16+'BP Financier'!$C$19+'BP Financier'!$D$16+'BP Financier'!$D$19+'BP Financier'!$E$16+'BP Financier'!$E$19+'BP Financier'!$F$16+'BP Financier'!$F$19+'BP Financier'!$G$16+'BP Financier'!$G$19))*V9238","v":{"v":455640.45778982196,"d":"455,640"}},{"v":261507.7832712362,"d":"261,508"},{"$f":"'BP Financier'!$G$44*(('BP Financier'!$C$19+'BP Financier'!$D$19+'BP Financier'!$E$19+'BP Financier'!$F$19+'BP Financier'!$G$19)/('BP Financier'!$C$16+'BP Financier'!$C$19+'BP Financier'!$D$16+'BP Financier'!$D$19+'BP Financier'!$E$16+'BP Financier'!$E$19+'BP Financier'!$C$22+'BP Financier'!$D$22+'BP Financier'!$E$22+'BP Financier'!$F$22+'BP Financier'!$F$19+'BP Financier'!$F$16+'BP Financier'!$G$22+'BP Financier'!$G$19+'BP Financier'!$G$16))*$V9238*X9238/(1-$W9238)","v":{"v":33286.152441697435,"d":"33,286"}},{"$f":"'BP Financier'!$G$44*(('BP Financier'!$C$19+'BP Financier'!$D$19+'BP Financier'!$E$19+'BP Financier'!$F$19+'BP Financier'!$G$19)/('BP Financier'!$C$16+'BP Financier'!$C$19+'BP Financier'!$D$16+'BP Financier'!$D$19+'BP Financier'!$E$16+'BP Financier'!$E$19+'BP Financier'!$C$22+'BP Financier'!$D$22+'BP Financier'!$E$22+'BP Financier'!$F$22+'BP Financier'!$F$19+'BP Financier'!$F$16+'BP Financier'!$G$22+'BP Financier'!$G$19+'BP Financier'!$G$16))*$V9238*Y9238/(1-$W9238)","v":{"v":22252.068759366786,"d":"22,252"}},{"$f":"'BP Financier'!$G$44*(('BP Financier'!$C$19+'BP Financier'!$D$19+'BP Financier'!$E$19+'BP Financier'!$F$19+'BP Financier'!$G$19)/('BP Financier'!$C$16+'BP Financier'!$C$19+'BP Financier'!$D$16+'BP Financier'!$D$19+'BP Financier'!$E$16+'BP Financier'!$E$19+'BP Financier'!$C$22+'BP Financier'!$D$22+'BP Financier'!$E$22+'BP Financier'!$F$22+'BP Financier'!$F$19+'BP Financier'!$F$16+'BP Financier'!$G$22+'BP Financier'!$G$19+'BP Financier'!$G$16))*$V9238*Z9238/(1-$W9238)","v":{"v":174154.6207861186,"d":"174,155"}},{"$f":"'BP Financier'!$G$44*(('BP Financier'!$C$19+'BP Financier'!$D$19+'BP Financier'!$E$19+'BP Financier'!$F$19+'BP Financier'!$G$19)/('BP Financier'!$C$16+'BP Financier'!$C$19+'BP Financier'!$D$16+'BP Financier'!$D$19+'BP Financier'!$E$16+'BP Financier'!$E$19+'BP Financier'!$C$22+'BP Financier'!$D$22+'BP Financier'!$E$22+'BP Financier'!$F$22+'BP Financier'!$F$19+'BP Financier'!$F$16+'BP Financier'!$G$22+'BP Financier'!$G$19+'BP Financier'!$G$16))*$V9238*AA9238/(1-$W9238)","v":{"v":21516.46318054475,"d":"21,516"}},{"$f":"'BP Financier'!$G$44*(('BP Financier'!$C$19+'BP Financier'!$D$19+'BP Financier'!$E$19+'BP Financier'!$F$19+'BP Financier'!$G$19)/('BP Financier'!$C$16+'BP Financier'!$C$19+'BP Financier'!$D$16+'BP Financier'!$D$19+'BP Financier'!$E$16+'BP Financier'!$E$19+'BP Financier'!$C$22+'BP Financier'!$D$22+'BP Financier'!$E$22+'BP Financier'!$F$22+'BP Financier'!$F$19+'BP Financier'!$F$16+'BP Financier'!$G$22+'BP Financier'!$G$19+'BP Financier'!$G$16))*$V9238*AB9238/(1-$W9238)","v":{"v":10298.478103508596,"d":"10,298"}},null,{"v":0.008,"d":"0.80%"},{"$f":"Actif!$E$28/100","v":{"v":0.28900000000000003,"d":"28.90%"}},{"$f":"Actif!$E$30/100","v":{"v":0.09050000000000001,"d":"9.05%"}},{"$f":"Actif!$E$31/100","v":{"v":0.0605,"d":"6.05%"}},{"$f":"Actif!$E$32/100","v":{"v":0.47350000000000003,"d":"47.35%"}},{"$f":"Actif!$E$33/100","v":{"v":0.0585,"d":"5.85%"}},{"$f":"Actif!$E$29/100","v":{"v":0.027999999999999997,"d":"2.80%"}}]
[null,"#123",42,2029,"H","A_PER",{"v":0.44999999999999996,"d":"0.45"},{"v":0.38999999999999996,"d":"0.39"},0.6,0.6,85,0,{"$f":"ROUND(Primes!$Q$7*V9239,0)","v":11},{"$f":"'BP Financier'!$G$33*(('BP Financier'!$C$19+'BP Financier'!$D$19+'BP Financier'!$E$19+'BP Financier'!$F$19+'BP Financier'!$G$19)/('BP Financier'!$C$16+'BP Financier'!$C$19+'BP Financier'!$D$16+'BP Financier'!$D$19+'BP Financier'!$E$16+'BP Financier'!$E$19+'BP Financier'!$F$16+'BP Financier'!$F$19+'BP Financier'!$G$16+'BP Financier'!$G$19))*V9239","v":{"v":455640.45778982196,"d":"455,640"}},{"v":261507.7832712362,"d":"261,508"},{"$f":"'BP Financier'!$G$44*(('BP Financier'!$C$19+'BP Financier'!$D$19+'BP Financier'!$E$19+'BP Financier'!$F$19+'BP Financier'!$G$19)/('BP Financier'!$C$16+'BP Financier'!$C$19+'BP Financier'!$D$16+'BP Financier'!$D$19+'BP Financier'!$E$16+'BP Financier'!$E$19+'BP Financier'!$C$22+'BP Financier'!$D$22+'BP Financier'!$E$22+'BP Financier'!$F$22+'BP Financier'!$F$19+'BP Financier'!$F$16+'BP Financier'!$G$22+'BP Financier'!$G$19+'BP Financier'!$G$16))*$V9239*X9239/(1-$W9239)","v":{"v":33286.152441697435,"d":"33,286"}},{"$f":"'BP Financier'!$G$44*(('BP Financier'!$C$19+'BP Financier'!$D$19+'BP Financier'!$E$19+'BP Financier'!$F$19+'BP Financier'!$G$19)/('BP Financier'!$C$16+'BP Financier'!$C$19+'BP Financier'!$D$16+'BP Financier'!$D$19+'BP Financier'!$E$16+'BP Financier'!$E$19+'BP Financier'!$C$22+'BP Financier'!$D$22+'BP Financier'!$E$22+'BP Financier'!$F$22+'BP Financier'!$F$19+'BP Financier'!$F$16+'BP Financier'!$G$22+'BP Financier'!$G$19+'BP Financier'!$G$16))*$V9239*Y9239/(1-$W9239)","v":{"v":22252.068759366786,"d":"22,252"}},{"$f":"'BP Financier'!$G$44*(('BP Financier'!$C$19+'BP Financier'!$D$19+'BP Financier'!$E$19+'BP Financier'!$F$19+'BP Financier'!$G$19)/('BP Financier'!$C$16+'BP Financier'!$C$19+'BP Financier'!$D$16+'BP Financier'!$D$19+'BP Financier'!$E$16+'BP Financier'!$E$19+'BP Financier'!$C$22+'BP Financier'!$D$22+'BP Financier'!$E$22+'BP Financier'!$F$22+'BP Financier'!$F$19+'BP Financier'!$F$16+'BP Financier'!$G$22+'BP Financier'!$G$19+'BP Financier'!$G$16))*$V9239*Z9239/(1-$W9239)","v":{"v":174154.6207861186,"d":"174,155"}},{"$f":"'BP Financier'!$G$44*(('BP Financier'!$C$19+'BP Financier'!$D$19+'BP Financier'!$E$19+'BP Financier'!$F$19+'BP Financier'!$G$19)/('BP Financier'!$C$16+'BP Financier'!$C$19+'BP Financier'!$D$16+'BP Financier'!$D$19+'BP Financier'!$E$16+'BP Financier'!$E$19+'BP Financier'!$C$22+'BP Financier'!$D$22+'BP Financier'!$E$22+'BP Financier'!$F$22+'BP Financier'!$F$19+'BP Financier'!$F$16+'BP Financier'!$G$22+'BP Financier'!$G$19+'BP Financier'!$G$16))*$V9239*AA9239/(1-$W9239)","v":{"v":21516.46318054475,"d":"21,516"}},{"$f":"'BP Financier'!$G$44*(('BP Financier'!$C$19+'BP Financier'!$D$19+'BP Financier'!$E$19+'BP Financier'!$F$19+'BP Financier'!$G$19)/('BP Financier'!$C$16+'BP Financier'!$C$19+'BP Financier'!$D$16+'BP Financier'!$D$19+'BP Financier'!$E$16+'BP Financier'!$E$19+'BP Financier'!$C$22+'BP Financier'!$D$22+'BP Financier'!$E$22+'BP Financier'!$F$22+'BP Financier'!$F$19+'BP Financier'!$F$16+'BP Financier'!$G$22+'BP Financier'!$G$19+'BP Financier'!$G$16))*$V9239*AB9239/(1-$W9239)","v":{"v":10298.478103508596,"d":"10,298"}},null,{"v":0.008,"d":"0.80%"},{"$f":"Actif!$E$28/100","v":{"v":0.28900000000000003,"d":"28.90%"}},{"$f":"Actif!$E$30/100","v":{"v":0.09050000000000001,"d":"9.05%"}},{"$f":"Actif!$E$31/100","v":{"v":0.0605,"d":"6.05%"}},{"$f":"Actif!$E$32/100","v":{"v":0.47350000000000003,"d":"47.35%"}},{"$f":"Actif!$E$33/100","v":{"v":0.0585,"d":"5.85%"}},{"$f":"Actif!$E$29/100","v":{"v":0.027999999999999997,"d":"2.80%"}}]
[null,"#124",42,2030,"H","A_PER",{"v":0.44999999999999996,"d":"0.45"},{"v":0.38999999999999996,"d":"0.39"},0.6,0.6,85,0,{"$f":"ROUND(Primes!$Q$7*V9240,0)","v":11},{"$f":"'BP Financier'!$G$33*(('BP Financier'!$C$19+'BP Financier'!$D$19+'BP Financier'!$E$19+'BP Financier'!$F$19+'BP Financier'!$G$19)/('BP Financier'!$C$16+'BP Financier'!$C$19+'BP Financier'!$D$16+'BP Financier'!$D$19+'BP Financier'!$E$16+'BP Financier'!$E$19+'BP Financier'!$F$16+'BP Financier'!$F$19+'BP Financier'!$G$16+'BP Financier'!$G$19))*V9240","v":{"v":455640.45778982196,"d":"455,640"}},{"v":261507.7832712362,"d":"261,508"},{"$f":"'BP Financier'!$G$44*(('BP Financier'!$C$19+'BP Financier'!$D$19+'BP Financier'!$E$19+'BP Financier'!$F$19+'BP Financier'!$G$19)/('BP Financier'!$C$16+'BP Financier'!$C$19+'BP Financier'!$D$16+'BP Financier'!$D$19+'BP Financier'!$E$16+'BP Financier'!$E$19+'BP Financier'!$C$22+'BP Financier'!$D$22+'BP Financier'!$E$22+'BP Financier'!$F$22+'BP Financier'!$F$19+'BP Financier'!$F$16+'BP Financier'!$G$22+'BP Financier'!$G$19+'BP Financier'!$G$16))*$V9240*X9240/(1-$W9240)","v":{"v":33286.152441697435,"d":"33,286"}},{"$f":"'BP Financier'!$G$44*(('BP Financier'!$C$19+'BP Financier'!$D$19+'BP Financier'!$E$19+'BP Financier'!$F$19+'BP Financier'!$G$19)/('BP Financier'!$C$16+'BP Financier'!$C$19+'BP Financier'!$D$16+'BP Financier'!$D$19+'BP Financier'!$E$16+'BP Financier'!$E$19+'BP Financier'!$C$22+'BP Financier'!$D$22+'BP Financier'!$E$22+'BP Financier'!$F$22+'BP Financier'!$F$19+'BP Financier'!$F$16+'BP Financier'!$G$22+'BP Financier'!$G$19+'BP Financier'!$G$16))*$V9240*Y9240/(1-$W9240)","v":{"v":22252.068759366786,"d":"22,252"}},{"$f":"'BP Financier'!$G$44*(('BP Financier'!$C$19+'BP Financier'!$D$19+'BP Financier'!$E$19+'BP Financier'!$F$19+'BP Financier'!$G$19)/('BP Financier'!$C$16+'BP Financier'!$C$19+'BP Financier'!$D$16+'BP Financier'!$D$19+'BP Financier'!$E$16+'BP Financier'!$E$19+'BP Financier'!$C$22+'BP Financier'!$D$22+'BP Financier'!$E$22+'BP Financier'!$F$22+'BP Financier'!$F$19+'BP Financier'!$F$16+'BP Financier'!$G$22+'BP Financier'!$G$19+'BP Financier'!$G$16))*$V9240*Z9240/(1-$W9240)","v":{"v":174154.6207861186,"d":"174,155"}},{"$f":"'BP Financier'!$G$44*(('BP Financier'!$C$19+'BP Financier'!$D$19+'BP Financier'!$E$19+'BP Financier'!$F$19+'BP Financier'!$G$19)/('BP Financier'!$C$16+'BP Financier'!$C$19+'BP Financier'!$D$16+'BP Financier'!$D$19+'BP Financier'!$E$16+'BP Financier'!$E$19+'BP Financier'!$C$22+'BP Financier'!$D$22+'BP Financier'!$E$22+'BP Financier'!$F$22+'BP Financier'!$F$19+'BP Financier'!$F$16+'BP Financier'!$G$22+'BP Financier'!$G$19+'BP Financier'!$G$16))*$V9240*AA9240/(1-$W9240)","v":{"v":21516.46318054475,"d":"21,516"}},{"$f":"'BP Financier'!$G$44*(('BP Financier'!$C$19+'BP Financier'!$D$19+'BP Financier'!$E$19+'BP Financier'!$F$19+'BP Financier'!$G$19)/('BP Financier'!$C$16+'BP Financier'!$C$19+'BP Financier'!$D$16+'BP Financier'!$D$19+'BP Financier'!$E$16+'BP Financier'!$E$19+'BP Financier'!$C$22+'BP Financier'!$D$22+'BP Financier'!$E$22+'BP Financier'!$F$22+'BP Financier'!$F$19+'BP Financier'!$F$16+'BP Financier'!$G$22+'BP Financier'!$G$19+'BP Financier'!$G$16))*$V9240*AB9240/(1-$W9240)","v":{"v":10298.478103508596,"d":"10,298"}},null,{"v":0.008,"d":"0.80%"},{"$f":"Actif!$E$28/100","v":{"v":0.28900000000000003,"d":"28.90%"}},{"$f":"Actif!$E$30/100","v":{"v":0.09050000000000001,"d":"9.05%"}},{"$f":"Actif!$E$31/100","v":{"v":0.0605,"d":"6.05%"}},{"$f":"Actif!$E$32/100","v":{"v":0.47350000000000003,"d":"47.35%"}},{"$f":"Actif!$E$33/100","v":{"v":0.0585,"d":"5.85%"}},{"$f":"Actif!$E$29/100","v":{"v":0.027999999999999997,"d":"2.80%"}}]
[null,"#125",42,2031,"H","A_PER",{"v":0.44999999999999996,"d":"0.45"},{"v":0.38999999999999996,"d":"0.39"},0.6,0.6,85,0,{"$f":"ROUND(Primes!$Q$7*V9241,0)","v":11},{"$f":"'BP Financier'!$G$33*(('BP Financier'!$C$19+'BP Financier'!$D$19+'BP Financier'!$E$19+'BP Financier'!$F$19+'BP Financier'!$G$19)/('BP Financier'!$C$16+'BP Financier'!$C$19+'BP Financier'!$D$16+'BP Financier'!$D$19+'BP Financier'!$E$16+'BP Financier'!$E$19+'BP Financier'!$F$16+'BP Financier'!$F$19+'BP Financier'!$G$16+'BP Financier'!$G$19))*V9241","v":{"v":455640.45778982196,"d":"455,640"}},{"v":261507.7832712362,"d":"261,508"},{"$f":"'BP Financier'!$G$44*(('BP Financier'!$C$19+'BP Financier'!$D$19+'BP Financier'!$E$19+'BP Financier'!$F$19+'BP Financier'!$G$19)/('BP Financier'!$C$16+'BP Financier'!$C$19+'BP Financier'!$D$16+'BP Financier'!$D$19+'BP Financier'!$E$16+'BP Financier'!$E$19+'BP Financier'!$C$22+'BP Financier'!$D$22+'BP Financier'!$E$22+'BP Financier'!$F$22+'BP Financier'!$F$19+'BP Financier'!$F$16+'BP Financier'!$G$22+'BP Financier'!$G$19+'BP Financier'!$G$16))*$V9241*X9241/(1-$W9241)","v":{"v":33286.152441697435,"d":"33,286"}},{"$f":"'BP Financier'!$G$44*(('BP Financier'!$C$19+'BP Financier'!$D$19+'BP Financier'!$E$19+'BP Financier'!$F$19+'BP Financier'!$G$19)/('BP Financier'!$C$16+'BP Financier'!$C$19+'BP Financier'!$D$16+'BP Financier'!$D$19+'BP Financier'!$E$16+'BP Financier'!$E$19+'BP Financier'!$C$22+'BP Financier'!$D$22+'BP Financier'!$E$22+'BP Financier'!$F$22+'BP Financier'!$F$19+'BP Financier'!$F$16+'BP Financier'!$G$22+'BP Financier'!$G$19+'BP Financier'!$G$16))*$V9241*Y9241/(1-$W9241)","v":{"v":22252.068759366786,"d":"22,252"}},{"$f":"'BP Financier'!$G$44*(('BP Financier'!$C$19+'BP Financier'!$D$19+'BP Financier'!$E$19+'BP Financier'!$F$19+'BP Financier'!$G$19)/('BP Financier'!$C$16+'BP Financier'!$C$19+'BP Financier'!$D$16+'BP Financier'!$D$19+'BP Financier'!$E$16+'BP Financier'!$E$19+'BP Financier'!$C$22+'BP Financier'!$D$22+'BP Financier'!$E$22+'BP Financier'!$F$22+'BP Financier'!$F$19+'BP Financier'!$F$16+'BP Financier'!$G$22+'BP Financier'!$G$19+'BP Financier'!$G$16))*$V9241*Z9241/(1-$W9241)","v":{"v":174154.6207861186,"d":"174,155"}},{"$f":"'BP Financier'!$G$44*(('BP Financier'!$C$19+'BP Financier'!$D$19+'BP Financier'!$E$19+'BP Financier'!$F$19+'BP Financier'!$G$19)/('BP Financier'!$C$16+'BP Financier'!$C$19+'BP Financier'!$D$16+'BP Financier'!$D$19+'BP Financier'!$E$16+'BP Financier'!$E$19+'BP Financier'!$C$22+'BP Financier'!$D$22+'BP Financier'!$E$22+'BP Financier'!$F$22+'BP Financier'!$F$19+'BP Financier'!$F$16+'BP Financier'!$G$22+'BP Financier'!$G$19+'BP Financier'!$G$16))*$V9241*AA9241/(1-$W9241)","v":{"v":21516.46318054475,"d":"21,516"}},{"$f":"'BP Financier'!$G$44*(('BP Financier'!$C$19+'BP Financier'!$D$19+'BP Financier'!$E$19+'BP Financier'!$F$19+'BP Financier'!$G$19)/('BP Financier'!$C$16+'BP Financier'!$C$19+'BP Financier'!$D$16+'BP Financier'!$D$19+'BP Financier'!$E$16+'BP Financier'!$E$19+'BP Financier'!$C$22+'BP Financier'!$D$22+'BP Financier'!$E$22+'BP Financier'!$F$22+'BP Financier'!$F$19+'BP Financier'!$F$16+'BP Financier'!$G$22+'BP Financier'!$G$19+'BP Financier'!$G$16))*$V9241*AB9241/(1-$W9241)","v":{"v":10298.478103508596,"d":"10,298"}},null,{"v":0.008,"d":"0.80%"},{"$f":"Actif!$E$28/100","v":{"v":0.28900000000000003,"d":"28.90%"}},{"$f":"Actif!$E$30/100","v":{"v":0.09050000000000001,"d":"9.05%"}},{"$f":"Actif!$E$31/100","v":{"v":0.0605,"d":"6.05%"}},{"$f":"Actif!$E$32/100","v":{"v":0.47350000000000003,"d":"47.35%"}},{"$f":"Actif!$E$33/100","v":{"v":0.0585,"d":"5.85%"}},{"$f":"Actif!$E$29/100","v":{"v":0.027999999999999997,"d":"2.80%"}}]
[null,"#126",43,2026,"H","A_PER",{"v":0.44999999999999996,"d":"0.45"},{"v":0.38999999999999996,"d":"0.39"},0.6,0.6,85,0,{"$f":"ROUND(Primes!$Q$7*V9242,0)","v":11},{"$f":"'BP Financier'!$G$33*(('BP Financier'!$C$19+'BP Financier'!$D$19+'BP Financier'!$E$19+'BP Financier'!$F$19+'BP Financier'!$G$19)/('BP Financier'!$C$16+'BP Financier'!$C$19+'BP Financier'!$D$16+'BP Financier'!$D$19+'BP Financier'!$E$16+'BP Financier'!$E$19+'BP Financier'!$F$16+'BP Financier'!$F$19+'BP Financier'!$G$16+'BP Financier'!$G$19))*V9242","v":{"v":455640.45778982196,"d":"455,640"}},{"v":261507.7832712362,"d":"261,508"},{"$f":"'BP Financier'!$G$44*(('BP Financier'!$C$19+'BP Financier'!$D$19+'BP Financier'!$E$19+'BP Financier'!$F$19+'BP Financier'!$G$19)/('BP Financier'!$C$16+'BP Financier'!$C$19+'BP Financier'!$D$16+'BP Financier'!$D$19+'BP Financier'!$E$16+'BP Financier'!$E$19+'BP Financier'!$C$22+'BP Financier'!$D$22+'BP Financier'!$E$22+'BP Financier'!$F$22+'BP Financier'!$F$19+'BP Financier'!$F$16+'BP Financier'!$G$22+'BP Financier'!$G$19+'BP Financier'!$G$16))*$V9242*X9242/(1-$W9242)","v":{"v":33286.152441697435,"d":"33,286"}},{"$f":"'BP Financier'!$G$44*(('BP Financier'!$C$19+'BP Financier'!$D$19+'BP Financier'!$E$19+'BP Financier'!$F$19+'BP Financier'!$G$19)/('BP Financier'!$C$16+'BP Financier'!$C$19+'BP Financier'!$D$16+'BP Financier'!$D$19+'BP Financier'!$E$16+'BP Financier'!$E$19+'BP Financier'!$C$22+'BP Financier'!$D$22+'BP Financier'!$E$22+'BP Financier'!$F$22+'BP Financier'!$F$19+'BP Financier'!$F$16+'BP Financier'!$G$22+'BP Financier'!$G$19+'BP Financier'!$G$16))*$V9242*Y9242/(1-$W9242)","v":{"v":22252.068759366786,"d":"22,252"}},{"$f":"'BP Financier'!$G$44*(('BP Financier'!$C$19+'BP Financier'!$D$19+'BP Financier'!$E$19+'BP Financier'!$F$19+'BP Financier'!$G$19)/('BP Financier'!$C$16+'BP Financier'!$C$19+'BP Financier'!$D$16+'BP Financier'!$D$19+'BP Financier'!$E$16+'BP Financier'!$E$19+'BP Financier'!$C$22+'BP Financier'!$D$22+'BP Financier'!$E$22+'BP Financier'!$F$22+'BP Financier'!$F$19+'BP Financier'!$F$16+'BP Financier'!$G$22+'BP Financier'!$G$19+'BP Financier'!$G$16))*$V9242*Z9242/(1-$W9242)","v":{"v":174154.6207861186,"d":"174,155"}},{"$f":"'BP Financier'!$G$44*(('BP Financier'!$C$19+'BP Financier'!$D$19+'BP Financier'!$E$19+'BP Financier'!$F$19+'BP Financier'!$G$19)/('BP Financier'!$C$16+'BP Financier'!$C$19+'BP Financier'!$D$16+'BP Financier'!$D$19+'BP Financier'!$E$16+'BP Financier'!$E$19+'BP Financier'!$C$22+'BP Financier'!$D$22+'BP Financier'!$E$22+'BP Financier'!$F$22+'BP Financier'!$F$19+'BP Financier'!$F$16+'BP Financier'!$G$22+'BP Financier'!$G$19+'BP Financier'!$G$16))*$V9242*AA9242/(1-$W9242)","v":{"v":21516.46318054475,"d":"21,516"}},{"$f":"'BP Financier'!$G$44*(('BP Financier'!$C$19+'BP Financier'!$D$19+'BP Financier'!$E$19+'BP Financier'!$F$19+'BP Financier'!$G$19)/('BP Financier'!$C$16+'BP Financier'!$C$19+'BP Financier'!$D$16+'BP Financier'!$D$19+'BP Financier'!$E$16+'BP Financier'!$E$19+'BP Financier'!$C$22+'BP Financier'!$D$22+'BP Financier'!$E$22+'BP Financier'!$F$22+'BP Financier'!$F$19+'BP Financier'!$F$16+'BP Financier'!$G$22+'BP Financier'!$G$19+'BP Financier'!$G$16))*$V9242*AB9242/(1-$W9242)","v":{"v":10298.478103508596,"d":"10,298"}},null,{"v":0.008,"d":"0.80%"},{"$f":"Actif!$E$28/100","v":{"v":0.28900000000000003,"d":"28.90%"}},{"$f":"Actif!$E$30/100","v":{"v":0.09050000000000001,"d":"9.05%"}},{"$f":"Actif!$E$31/100","v":{"v":0.0605,"d":"6.05%"}},{"$f":"Actif!$E$32/100","v":{"v":0.47350000000000003,"d":"47.35%"}},{"$f":"Actif!$E$33/100","v":{"v":0.0585,"d":"5.85%"}},{"$f":"Actif!$E$29/100","v":{"v":0.027999999999999997,"d":"2.80%"}}]
[null,"#127",43,2028,"H","A_PER",{"v":0.44999999999999996,"d":"0.45"},{"v":0.38999999999999996,"d":"0.39"},0.6,0.6,85,0,{"$f":"ROUND(Primes!$Q$7*V9243,0)","v":11},{"$f":"'BP Financier'!$G$33*(('BP Financier'!$C$19+'BP Financier'!$D$19+'BP Financier'!$E$19+'BP Financier'!$F$19+'BP Financier'!$G$19)/('BP Financier'!$C$16+'BP Financier'!$C$19+'BP Financier'!$D$16+'BP Financier'!$D$19+'BP Financier'!$E$16+'BP Financier'!$E$19+'BP Financier'!$F$16+'BP Financier'!$F$19+'BP Financier'!$G$16+'BP Financier'!$G$19))*V9243","v":{"v":455640.45778982196,"d":"455,640"}},{"v":261507.7832712362,"d":"261,508"},{"$f":"'BP Financier'!$G$44*(('BP Financier'!$C$19+'BP Financier'!$D$19+'BP Financier'!$E$19+'BP Financier'!$F$19+'BP Financier'!$G$19)/('BP Financier'!$C$16+'BP Financier'!$C$19+'BP Financier'!$D$16+'BP Financier'!$D$19+'BP Financier'!$E$16+'BP Financier'!$E$19+'BP Financier'!$C$22+'BP Financier'!$D$22+'BP Financier'!$E$22+'BP Financier'!$F$22+'BP Financier'!$F$19+'BP Financier'!$F$16+'BP Financier'!$G$22+'BP Financier'!$G$19+'BP Financier'!$G$16))*$V9243*X9243/(1-$W9243)","v":{"v":33286.152441697435,"d":"33,286"}},{"$f":"'BP Financier'!$G$44*(('BP Financier'!$C$19+'BP Financier'!$D$19+'BP Financier'!$E$19+'BP Financier'!$F$19+'BP Financier'!$G$19)/('BP Financier'!$C$16+'BP Financier'!$C$19+'BP Financier'!$D$16+'BP Financier'!$D$19+'BP Financier'!$E$16+'BP Financier'!$E$19+'BP Financier'!$C$22+'BP Financier'!$D$22+'BP Financier'!$E$22+'BP Financier'!$F$22+'BP Financier'!$F$19+'BP Financier'!$F$16+'BP Financier'!$G$22+'BP Financier'!$G$19+'BP Financier'!$G$16))*$V9243*Y9243/(1-$W9243)","v":{"v":22252.068759366786,"d":"22,252"}},{"$f":"'BP Financier'!$G$44*(('BP Financier'!$C$19+'BP Financier'!$D$19+'BP Financier'!$E$19+'BP Financier'!$F$19+'BP Financier'!$G$19)/('BP Financier'!$C$16+'BP Financier'!$C$19+'BP Financier'!$D$16+'BP Financier'!$D$19+'BP Financier'!$E$16+'BP Financier'!$E$19+'BP Financier'!$C$22+'BP Financier'!$D$22+'BP Financier'!$E$22+'BP Financier'!$F$22+'BP Financier'!$F$19+'BP Financier'!$F$16+'BP Financier'!$G$22+'BP Financier'!$G$19+'BP Financier'!$G$16))*$V9243*Z9243/(1-$W9243)","v":{"v":174154.6207861186,"d":"174,155"}},{"$f":"'BP Financier'!$G$44*(('BP Financier'!$C$19+'BP Financier'!$D$19+'BP Financier'!$E$19+'BP Financier'!$F$19+'BP Financier'!$G$19)/('BP Financier'!$C$16+'BP Financier'!$C$19+'BP Financier'!$D$16+'BP Financier'!$D$19+'BP Financier'!$E$16+'BP Financier'!$E$19+'BP Financier'!$C$22+'BP Financier'!$D$22+'BP Financier'!$E$22+'BP Financier'!$F$22+'BP Financier'!$F$19+'BP Financier'!$F$16+'BP Financier'!$G$22+'BP Financier'!$G$19+'BP Financier'!$G$16))*$V9243*AA9243/(1-$W9243)","v":{"v":21516.46318054475,"d":"21,516"}},{"$f":"'BP Financier'!$G$44*(('BP Financier'!$C$19+'BP Financier'!$D$19+'BP Financier'!$E$19+'BP Financier'!$F$19+'BP Financier'!$G$19)/('BP Financier'!$C$16+'BP Financier'!$C$19+'BP Financier'!$D$16+'BP Financier'!$D$19+'BP Financier'!$E$16+'BP Financier'!$E$19+'BP Financier'!$C$22+'BP Financier'!$D$22+'BP Financier'!$E$22+'BP Financier'!$F$22+'BP Financier'!$F$19+'BP Financier'!$F$16+'BP Financier'!$G$22+'BP Financier'!$G$19+'BP Financier'!$G$16))*$V9243*AB9243/(1-$W9243)","v":{"v":10298.478103508596,"d":"10,298"}},null,{"v":0.008,"d":"0.80%"},{"$f":"Actif!$E$28/100","v":{"v":0.28900000000000003,"d":"28.90%"}},{"$f":"Actif!$E$30/100","v":{"v":0.09050000000000001,"d":"9.05%"}},{"$f":"Actif!$E$31/100","v":{"v":0.0605,"d":"6.05%"}},{"$f":"Actif!$E$32/100","v":{"v":0.47350000000000003,"d":"47.35%"}},{"$f":"Actif!$E$33/100","v":{"v":0.0585,"d":"5.85%"}},{"$f":"Actif!$E$29/100","v":{"v":0.027999999999999997,"d":"2.80%"}}]
[null,"#128",43,2029,"H","A_PER",{"v":0.44999999999999996,"d":"0.45"},{"v":0.38999999999999996,"d":"0.39"},0.6,0.6,85,0,{"$f":"ROUND(Primes!$Q$7*V9244,0)","v":11},{"$f":"'BP Financier'!$G$33*(('BP Financier'!$C$19+'BP Financier'!$D$19+'BP Financier'!$E$19+'BP Financier'!$F$19+'BP Financier'!$G$19)/('BP Financier'!$C$16+'BP Financier'!$C$19+'BP Financier'!$D$16+'BP Financier'!$D$19+'BP Financier'!$E$16+'BP Financier'!$E$19+'BP Financier'!$F$16+'BP Financier'!$F$19+'BP Financier'!$G$16+'BP Financier'!$G$19))*V9244","v":{"v":455640.45778982196,"d":"455,640"}},{"v":261507.7832712362,"d":"261,508"},{"$f":"'BP Financier'!$G$44*(('BP Financier'!$C$19+'BP Financier'!$D$19+'BP Financier'!$E$19+'BP Financier'!$F$19+'BP Financier'!$G$19)/('BP Financier'!$C$16+'BP Financier'!$C$19+'BP Financier'!$D$16+'BP Financier'!$D$19+'BP Financier'!$E$16+'BP Financier'!$E$19+'BP Financier'!$C$22+'BP Financier'!$D$22+'BP Financier'!$E$22+'BP Financier'!$F$22+'BP Financier'!$F$19+'BP Financier'!$F$16+'BP Financier'!$G$22+'BP Financier'!$G$19+'BP Financier'!$G$16))*$V9244*X9244/(1-$W9244)","v":{"v":33286.152441697435,"d":"33,286"}},{"$f":"'BP Financier'!$G$44*(('BP Financier'!$C$19+'BP Financier'!$D$19+'BP Financier'!$E$19+'BP Financier'!$F$19+'BP Financier'!$G$19)/('BP Financier'!$C$16+'BP Financier'!$C$19+'BP Financier'!$D$16+'BP Financier'!$D$19+'BP Financier'!$E$16+'BP Financier'!$E$19+'BP Financier'!$C$22+'BP Financier'!$D$22+'BP Financier'!$E$22+'BP Financier'!$F$22+'BP Financier'!$F$19+'BP Financier'!$F$16+'BP Financier'!$G$22+'BP Financier'!$G$19+'BP Financier'!$G$16))*$V9244*Y9244/(1-$W9244)","v":{"v":22252.068759366786,"d":"22,252"}},{"$f":"'BP Financier'!$G$44*(('BP Financier'!$C$19+'BP Financier'!$D$19+'BP Financier'!$E$19+'BP Financier'!$F$19+'BP Financier'!$G$19)/('BP Financier'!$C$16+'BP Financier'!$C$19+'BP Financier'!$D$16+'BP Financier'!$D$19+'BP Financier'!$E$16+'BP Financier'!$E$19+'BP Financier'!$C$22+'BP Financier'!$D$22+'BP Financier'!$E$22+'BP Financier'!$F$22+'BP Financier'!$F$19+'BP Financier'!$F$16+'BP Financier'!$G$22+'BP Financier'!$G$19+'BP Financier'!$G$16))*$V9244*Z9244/(1-$W9244)","v":{"v":174154.6207861186,"d":"174,155"}},{"$f":"'BP Financier'!$G$44*(('BP Financier'!$C$19+'BP Financier'!$D$19+'BP Financier'!$E$19+'BP Financier'!$F$19+'BP Financier'!$G$19)/('BP Financier'!$C$16+'BP Financier'!$C$19+'BP Financier'!$D$16+'BP Financier'!$D$19+'BP Financier'!$E$16+'BP Financier'!$E$19+'BP Financier'!$C$22+'BP Financier'!$D$22+'BP Financier'!$E$22+'BP Financier'!$F$22+'BP Financier'!$F$19+'BP Financier'!$F$16+'BP Financier'!$G$22+'BP Financier'!$G$19+'BP Financier'!$G$16))*$V9244*AA9244/(1-$W9244)","v":{"v":21516.46318054475,"d":"21,516"}},{"$f":"'BP Financier'!$G$44*(('BP Financier'!$C$19+'BP Financier'!$D$19+'BP Financier'!$E$19+'BP Financier'!$F$19+'BP Financier'!$G$19)/('BP Financier'!$C$16+'BP Financier'!$C$19+'BP Financier'!$D$16+'BP Financier'!$D$19+'BP Financier'!$E$16+'BP Financier'!$E$19+'BP Financier'!$C$22+'BP Financier'!$D$22+'BP Financier'!$E$22+'BP Financier'!$F$22+'BP Financier'!$F$19+'BP Financier'!$F$16+'BP Financier'!$G$22+'BP Financier'!$G$19+'BP Financier'!$G$16))*$V9244*AB9244/(1-$W9244)","v":{"v":10298.478103508596,"d":"10,298"}},null,{"v":0.008,"d":"0.80%"},{"$f":"Actif!$E$28/100","v":{"v":0.28900000000000003,"d":"28.90%"}},{"$f":"Actif!$E$30/100","v":{"v":0.09050000000000001,"d":"9.05%"}},{"$f":"Actif!$E$31/100","v":{"v":0.0605,"d":"6.05%"}},{"$f":"Actif!$E$32/100","v":{"v":0.47350000000000003,"d":"47.35%"}},{"$f":"Actif!$E$33/100","v":{"v":0.0585,"d":"5.85%"}},{"$f":"Actif!$E$29/100","v":{"v":0.027999999999999997,"d":"2.80%"}}]
[null,"#129",43,2030,"H","A_PER",{"v":0.44999999999999996,"d":"0.45"},{"v":0.38999999999999996,"d":"0.39"},0.6,0.6,85,0,{"$f":"ROUND(Primes!$Q$7*V9245,0)","v":11},{"$f":"'BP Financier'!$G$33*(('BP Financier'!$C$19+'BP Financier'!$D$19+'BP Financier'!$E$19+'BP Financier'!$F$19+'BP Financier'!$G$19)/('BP Financier'!$C$16+'BP Financier'!$C$19+'BP Financier'!$D$16+'BP Financier'!$D$19+'BP Financier'!$E$16+'BP Financier'!$E$19+'BP Financier'!$F$16+'BP Financier'!$F$19+'BP Financier'!$G$16+'BP Financier'!$G$19))*V9245","v":{"v":455640.45778982196,"d":"455,640"}},{"v":261507.7832712362,"d":"261,508"},{"$f":"'BP Financier'!$G$44*(('BP Financier'!$C$19+'BP Financier'!$D$19+'BP Financier'!$E$19+'BP Financier'!$F$19+'BP Financier'!$G$19)/('BP Financier'!$C$16+'BP Financier'!$C$19+'BP Financier'!$D$16+'BP Financier'!$D$19+'BP Financier'!$E$16+'BP Financier'!$E$19+'BP Financier'!$C$22+'BP Financier'!$D$22+'BP Financier'!$E$22+'BP Financier'!$F$22+'BP Financier'!$F$19+'BP Financier'!$F$16+'BP Financier'!$G$22+'BP Financier'!$G$19+'BP Financier'!$G$16))*$V9245*X9245/(1-$W9245)","v":{"v":33286.152441697435,"d":"33,286"}},{"$f":"'BP Financier'!$G$44*(('BP Financier'!$C$19+'BP Financier'!$D$19+'BP Financier'!$E$19+'BP Financier'!$F$19+'BP Financier'!$G$19)/('BP Financier'!$C$16+'BP Financier'!$C$19+'BP Financier'!$D$16+'BP Financier'!$D$19+'BP Financier'!$E$16+'BP Financier'!$E$19+'BP Financier'!$C$22+'BP Financier'!$D$22+'BP Financier'!$E$22+'BP Financier'!$F$22+'BP Financier'!$F$19+'BP Financier'!$F$16+'BP Financier'!$G$22+'BP Financier'!$G$19+'BP Financier'!$G$16))*$V9245*Y9245/(1-$W9245)","v":{"v":22252.068759366786,"d":"22,252"}},{"$f":"'BP Financier'!$G$44*(('BP Financier'!$C$19+'BP Financier'!$D$19+'BP Financier'!$E$19+'BP Financier'!$F$19+'BP Financier'!$G$19)/('BP Financier'!$C$16+'BP Financier'!$C$19+'BP Financier'!$D$16+'BP Financier'!$D$19+'BP Financier'!$E$16+'BP Financier'!$E$19+'BP Financier'!$C$22+'BP Financier'!$D$22+'BP Financier'!$E$22+'BP Financier'!$F$22+'BP Financier'!$F$19+'BP Financier'!$F$16+'BP Financier'!$G$22+'BP Financier'!$G$19+'BP Financier'!$G$16))*$V9245*Z9245/(1-$W9245)","v":{"v":174154.6207861186,"d":"174,155"}},{"$f":"'BP Financier'!$G$44*(('BP Financier'!$C$19+'BP Financier'!$D$19+'BP Financier'!$E$19+'BP Financier'!$F$19+'BP Financier'!$G$19)/('BP Financier'!$C$16+'BP Financier'!$C$19+'BP Financier'!$D$16+'BP Financier'!$D$19+'BP Financier'!$E$16+'BP Financier'!$E$19+'BP Financier'!$C$22+'BP Financier'!$D$22+'BP Financier'!$E$22+'BP Financier'!$F$22+'BP Financier'!$F$19+'BP Financier'!$F$16+'BP Financier'!$G$22+'BP Financier'!$G$19+'BP Financier'!$G$16))*$V9245*AA9245/(1-$W9245)","v":{"v":21516.46318054475,"d":"21,516"}},{"$f":"'BP Financier'!$G$44*(('BP Financier'!$C$19+'BP Financier'!$D$19+'BP Financier'!$E$19+'BP Financier'!$F$19+'BP Financier'!$G$19)/('BP Financier'!$C$16+'BP Financier'!$C$19+'BP Financier'!$D$16+'BP Financier'!$D$19+'BP Financier'!$E$16+'BP Financier'!$E$19+'BP Financier'!$C$22+'BP Financier'!$D$22+'BP Financier'!$E$22+'BP Financier'!$F$22+'BP Financier'!$F$19+'BP Financier'!$F$16+'BP Financier'!$G$22+'BP Financier'!$G$19+'BP Financier'!$G$16))*$V9245*AB9245/(1-$W9245)","v":{"v":10298.478103508596,"d":"10,298"}},null,{"v":0.008,"d":"0.80%"},{"$f":"Actif!$E$28/100","v":{"v":0.28900000000000003,"d":"28.90%"}},{"$f":"Actif!$E$30/100","v":{"v":0.09050000000000001,"d":"9.05%"}},{"$f":"Actif!$E$31/100","v":{"v":0.0605,"d":"6.05%"}},{"$f":"Actif!$E$32/100","v":{"v":0.47350000000000003,"d":"47.35%"}},{"$f":"Actif!$E$33/100","v":{"v":0.0585,"d":"5.85%"}},{"$f":"Actif!$E$29/100","v":{"v":0.027999999999999997,"d":"2.80%"}}]
[null,"#130",43,2031,"H","A_PER",{"v":0.44999999999999996,"d":"0.45"},{"v":0.38999999999999996,"d":"0.39"},0.6,0.6,85,0,{"$f":"ROUND(Primes!$Q$7*V9246,0)","v":11},{"$f":"'BP Financier'!$G$33*(('BP Financier'!$C$19+'BP Financier'!$D$19+'BP Financier'!$E$19+'BP Financier'!$F$19+'BP Financier'!$G$19)/('BP Financier'!$C$16+'BP Financier'!$C$19+'BP Financier'!$D$16+'BP Financier'!$D$19+'BP Financier'!$E$16+'BP Financier'!$E$19+'BP Financier'!$F$16+'BP Financier'!$F$19+'BP Financier'!$G$16+'BP Financier'!$G$19))*V9246","v":{"v":455640.45778982196,"d":"455,640"}},{"v":261507.7832712362,"d":"261,508"},{"$f":"'BP Financier'!$G$44*(('BP Financier'!$C$19+'BP Financier'!$D$19+'BP Financier'!$E$19+'BP Financier'!$F$19+'BP Financier'!$G$19)/('BP Financier'!$C$16+'BP Financier'!$C$19+'BP Financier'!$D$16+'BP Financier'!$D$19+'BP Financier'!$E$16+'BP Financier'!$E$19+'BP Financier'!$C$22+'BP Financier'!$D$22+'BP Financier'!$E$22+'BP Financier'!$F$22+'BP Financier'!$F$19+'BP Financier'!$F$16+'BP Financier'!$G$22+'BP Financier'!$G$19+'BP Financier'!$G$16))*$V9246*X9246/(1-$W9246)","v":{"v":33286.152441697435,"d":"33,286"}},{"$f":"'BP Financier'!$G$44*(('BP Financier'!$C$19+'BP Financier'!$D$19+'BP Financier'!$E$19+'BP Financier'!$F$19+'BP Financier'!$G$19)/('BP Financier'!$C$16+'BP Financier'!$C$19+'BP Financier'!$D$16+'BP Financier'!$D$19+'BP Financier'!$E$16+'BP Financier'!$E$19+'BP Financier'!$C$22+'BP Financier'!$D$22+'BP Financier'!$E$22+'BP Financier'!$F$22+'BP Financier'!$F$19+'BP Financier'!$F$16+'BP Financier'!$G$22+'BP Financier'!$G$19+'BP Financier'!$G$16))*$V9246*Y9246/(1-$W9246)","v":{"v":22252.068759366786,"d":"22,252"}},{"$f":"'BP Financier'!$G$44*(('BP Financier'!$C$19+'BP Financier'!$D$19+'BP Financier'!$E$19+'BP Financier'!$F$19+'BP Financier'!$G$19)/('BP Financier'!$C$16+'BP Financier'!$C$19+'BP Financier'!$D$16+'BP Financier'!$D$19+'BP Financier'!$E$16+'BP Financier'!$E$19+'BP Financier'!$C$22+'BP Financier'!$D$22+'BP Financier'!$E$22+'BP Financier'!$F$22+'BP Financier'!$F$19+'BP Financier'!$F$16+'BP Financier'!$G$22+'BP Financier'!$G$19+'BP Financier'!$G$16))*$V9246*Z9246/(1-$W9246)","v":{"v":174154.6207861186,"d":"174,155"}},{"$f":"'BP Financier'!$G$44*(('BP Financier'!$C$19+'BP Financier'!$D$19+'BP Financier'!$E$19+'BP Financier'!$F$19+'BP Financier'!$G$19)/('BP Financier'!$C$16+'BP Financier'!$C$19+'BP Financier'!$D$16+'BP Financier'!$D$19+'BP Financier'!$E$16+'BP Financier'!$E$19+'BP Financier'!$C$22+'BP Financier'!$D$22+'BP Financier'!$E$22+'BP Financier'!$F$22+'BP Financier'!$F$19+'BP Financier'!$F$16+'BP Financier'!$G$22+'BP Financier'!$G$19+'BP Financier'!$G$16))*$V9246*AA9246/(1-$W9246)","v":{"v":21516.46318054475,"d":"21,516"}},{"$f":"'BP Financier'!$G$44*(('BP Financier'!$C$19+'BP Financier'!$D$19+'BP Financier'!$E$19+'BP Financier'!$F$19+'BP Financier'!$G$19)/('BP Financier'!$C$16+'BP Financier'!$C$19+'BP Financier'!$D$16+'BP Financier'!$D$19+'BP Financier'!$E$16+'BP Financier'!$E$19+'BP Financier'!$C$22+'BP Financier'!$D$22+'BP Financier'!$E$22+'BP Financier'!$F$22+'BP Financier'!$F$19+'BP Financier'!$F$16+'BP Financier'!$G$22+'BP Financier'!$G$19+'BP Financier'!$G$16))*$V9246*AB9246/(1-$W9246)","v":{"v":10298.478103508596,"d":"10,298"}},null,{"v":0.008,"d":"0.80%"},{"$f":"Actif!$E$28/100","v":{"v":0.28900000000000003,"d":"28.90%"}},{"$f":"Actif!$E$30/100","v":{"v":0.09050000000000001,"d":"9.05%"}},{"$f":"Actif!$E$31/100","v":{"v":0.0605,"d":"6.05%"}},{"$f":"Actif!$E$32/100","v":{"v":0.47350000000000003,"d":"47.35%"}},{"$f":"Actif!$E$33/100","v":{"v":0.0585,"d":"5.85%"}},{"$f":"Actif!$E$29/100","v":{"v":0.027999999999999997,"d":"2.80%"}}]
[null,"#131",44,2026,"F","A_PER",{"v":0.44999999999999996,"d":"0.45"},{"v":0.38999999999999996,"d":"0.39"},0.6,0.6,85,0,{"$f":"ROUND(Primes!$Q$7*V9247,0)","v":13},{"$f":"'BP Financier'!$G$33*(('BP Financier'!$C$19+'BP Financier'!$D$19+'BP Financier'!$E$19+'BP Financier'!$F$19+'BP Financier'!$G$19)/('BP Financier'!$C$16+'BP Financier'!$C$19+'BP Financier'!$D$16+'BP Financier'!$D$19+'BP Financier'!$E$16+'BP Financier'!$E$19+'BP Financier'!$F$16+'BP Financier'!$F$19+'BP Financier'!$G$16+'BP Financier'!$G$19))*V9247","v":{"v":569550.5722372774,"d":"569,551"}},{"v":326884.7290890452,"d":"326,885"},{"$f":"'BP Financier'!$G$44*(('BP Financier'!$C$19+'BP Financier'!$D$19+'BP Financier'!$E$19+'BP Financier'!$F$19+'BP Financier'!$G$19)/('BP Financier'!$C$16+'BP Financier'!$C$19+'BP Financier'!$D$16+'BP Financier'!$D$19+'BP Financier'!$E$16+'BP Financier'!$E$19+'BP Financier'!$C$22+'BP Financier'!$D$22+'BP Financier'!$E$22+'BP Financier'!$F$22+'BP Financier'!$F$19+'BP Financier'!$F$16+'BP Financier'!$G$22+'BP Financier'!$G$19+'BP Financier'!$G$16))*$V9247*X9247/(1-$W9247)","v":{"v":41607.69055212179,"d":"41,608"}},{"$f":"'BP Financier'!$G$44*(('BP Financier'!$C$19+'BP Financier'!$D$19+'BP Financier'!$E$19+'BP Financier'!$F$19+'BP Financier'!$G$19)/('BP Financier'!$C$16+'BP Financier'!$C$19+'BP Financier'!$D$16+'BP Financier'!$D$19+'BP Financier'!$E$16+'BP Financier'!$E$19+'BP Financier'!$C$22+'BP Financier'!$D$22+'BP Financier'!$E$22+'BP Financier'!$F$22+'BP Financier'!$F$19+'BP Financier'!$F$16+'BP Financier'!$G$22+'BP Financier'!$G$19+'BP Financier'!$G$16))*$V9247*Y9247/(1-$W9247)","v":{"v":27815.085949208482,"d":"27,815"}},{"$f":"'BP Financier'!$G$44*(('BP Financier'!$C$19+'BP Financier'!$D$19+'BP Financier'!$E$19+'BP Financier'!$F$19+'BP Financier'!$G$19)/('BP Financier'!$C$16+'BP Financier'!$C$19+'BP Financier'!$D$16+'BP Financier'!$D$19+'BP Financier'!$E$16+'BP Financier'!$E$19+'BP Financier'!$C$22+'BP Financier'!$D$22+'BP Financier'!$E$22+'BP Financier'!$F$22+'BP Financier'!$F$19+'BP Financier'!$F$16+'BP Financier'!$G$22+'BP Financier'!$G$19+'BP Financier'!$G$16))*$V9247*Z9247/(1-$W9247)","v":{"v":217693.27598264822,"d":"217,693"}},{"$f":"'BP Financier'!$G$44*(('BP Financier'!$C$19+'BP Financier'!$D$19+'BP Financier'!$E$19+'BP Financier'!$F$19+'BP Financier'!$G$19)/('BP Financier'!$C$16+'BP Financier'!$C$19+'BP Financier'!$D$16+'BP Financier'!$D$19+'BP Financier'!$E$16+'BP Financier'!$E$19+'BP Financier'!$C$22+'BP Financier'!$D$22+'BP Financier'!$E$22+'BP Financier'!$F$22+'BP Financier'!$F$19+'BP Financier'!$F$16+'BP Financier'!$G$22+'BP Financier'!$G$19+'BP Financier'!$G$16))*$V9247*AA9247/(1-$W9247)","v":{"v":26895.578975680935,"d":"26,896"}},{"$f":"'BP Financier'!$G$44*(('BP Financier'!$C$19+'BP Financier'!$D$19+'BP Financier'!$E$19+'BP Financier'!$F$19+'BP Financier'!$G$19)/('BP Financier'!$C$16+'BP Financier'!$C$19+'BP Financier'!$D$16+'BP Financier'!$D$19+'BP Financier'!$E$16+'BP Financier'!$E$19+'BP Financier'!$C$22+'BP Financier'!$D$22+'BP Financier'!$E$22+'BP Financier'!$F$22+'BP Financier'!$F$19+'BP Financier'!$F$16+'BP Financier'!$G$22+'BP Financier'!$G$19+'BP Financier'!$G$16))*$V9247*AB9247/(1-$W9247)","v":{"v":12873.097629385744,"d":"12,873"}},null,{"v":0.01,"d":"1.00%"},{"$f":"Actif!$E$28/100","v":{"v":0.28900000000000003,"d":"28.90%"}},{"$f":"Actif!$E$30/100","v":{"v":0.09050000000000001,"d":"9.05%"}},{"$f":"Actif!$E$31/100","v":{"v":0.0605,"d":"6.05%"}},{"$f":"Actif!$E$32/100","v":{"v":0.47350000000000003,"d":"47.35%"}},{"$f":"Actif!$E$33/100","v":{"v":0.0585,"d":"5.85%"}},{"$f":"Actif!$E$29/100","v":{"v":0.027999999999999997,"d":"2.80%"}}]
[null,"#132",44,2028,"F","A_PER",{"v":0.44999999999999996,"d":"0.45"},{"v":0.38999999999999996,"d":"0.39"},0.6,0.6,85,0,{"$f":"ROUND(Primes!$Q$7*V9248,0)","v":13},{"$f":"'BP Financier'!$G$33*(('BP Financier'!$C$19+'BP Financier'!$D$19+'BP Financier'!$E$19+'BP Financier'!$F$19+'BP Financier'!$G$19)/('BP Financier'!$C$16+'BP Financier'!$C$19+'BP Financier'!$D$16+'BP Financier'!$D$19+'BP Financier'!$E$16+'BP Financier'!$E$19+'BP Financier'!$F$16+'BP Financier'!$F$19+'BP Financier'!$G$16+'BP Financier'!$G$19))*V9248","v":{"v":569550.5722372774,"d":"569,551"}},{"v":326884.7290890452,"d":"326,885"},{"$f":"'BP Financier'!$G$44*(('BP Financier'!$C$19+'BP Financier'!$D$19+'BP Financier'!$E$19+'BP Financier'!$F$19+'BP Financier'!$G$19)/('BP Financier'!$C$16+'BP Financier'!$C$19+'BP Financier'!$D$16+'BP Financier'!$D$19+'BP Financier'!$E$16+'BP Financier'!$E$19+'BP Financier'!$C$22+'BP Financier'!$D$22+'BP Financier'!$E$22+'BP Financier'!$F$22+'BP Financier'!$F$19+'BP Financier'!$F$16+'BP Financier'!$G$22+'BP Financier'!$G$19+'BP Financier'!$G$16))*$V9248*X9248/(1-$W9248)","v":{"v":41607.69055212179,"d":"41,608"}},{"$f":"'BP Financier'!$G$44*(('BP Financier'!$C$19+'BP Financier'!$D$19+'BP Financier'!$E$19+'BP Financier'!$F$19+'BP Financier'!$G$19)/('BP Financier'!$C$16+'BP Financier'!$C$19+'BP Financier'!$D$16+'BP Financier'!$D$19+'BP Financier'!$E$16+'BP Financier'!$E$19+'BP Financier'!$C$22+'BP Financier'!$D$22+'BP Financier'!$E$22+'BP Financier'!$F$22+'BP Financier'!$F$19+'BP Financier'!$F$16+'BP Financier'!$G$22+'BP Financier'!$G$19+'BP Financier'!$G$16))*$V9248*Y9248/(1-$W9248)","v":{"v":27815.085949208482,"d":"27,815"}},{"$f":"'BP Financier'!$G$44*(('BP Financier'!$C$19+'BP Financier'!$D$19+'BP Financier'!$E$19+'BP Financier'!$F$19+'BP Financier'!$G$19)/('BP Financier'!$C$16+'BP Financier'!$C$19+'BP Financier'!$D$16+'BP Financier'!$D$19+'BP Financier'!$E$16+'BP Financier'!$E$19+'BP Financier'!$C$22+'BP Financier'!$D$22+'BP Financier'!$E$22+'BP Financier'!$F$22+'BP Financier'!$F$19+'BP Financier'!$F$16+'BP Financier'!$G$22+'BP Financier'!$G$19+'BP Financier'!$G$16))*$V9248*Z9248/(1-$W9248)","v":{"v":217693.27598264822,"d":"217,693"}},{"$f":"'BP Financier'!$G$44*(('BP Financier'!$C$19+'BP Financier'!$D$19+'BP Financier'!$E$19+'BP Financier'!$F$19+'BP Financier'!$G$19)/('BP Financier'!$C$16+'BP Financier'!$C$19+'BP Financier'!$D$16+'BP Financier'!$D$19+'BP Financier'!$E$16+'BP Financier'!$E$19+'BP Financier'!$C$22+'BP Financier'!$D$22+'BP Financier'!$E$22+'BP Financier'!$F$22+'BP Financier'!$F$19+'BP Financier'!$F$16+'BP Financier'!$G$22+'BP Financier'!$G$19+'BP Financier'!$G$16))*$V9248*AA9248/(1-$W9248)","v":{"v":26895.578975680935,"d":"26,896"}},{"$f":"'BP Financier'!$G$44*(('BP Financier'!$C$19+'BP Financier'!$D$19+'BP Financier'!$E$19+'BP Financier'!$F$19+'BP Financier'!$G$19)/('BP Financier'!$C$16+'BP Financier'!$C$19+'BP Financier'!$D$16+'BP Financier'!$D$19+'BP Financier'!$E$16+'BP Financier'!$E$19+'BP Financier'!$C$22+'BP Financier'!$D$22+'BP Financier'!$E$22+'BP Financier'!$F$22+'BP Financier'!$F$19+'BP Financier'!$F$16+'BP Financier'!$G$22+'BP Financier'!$G$19+'BP Financier'!$G$16))*$V9248*AB9248/(1-$W9248)","v":{"v":12873.097629385744,"d":"12,873"}},null,{"v":0.01,"d":"1.00%"},{"$f":"Actif!$E$28/100","v":{"v":0.28900000000000003,"d":"28.90%"}},{"$f":"Actif!$E$30/100","v":{"v":0.09050000000000001,"d":"9.05%"}},{"$f":"Actif!$E$31/100","v":{"v":0.0605,"d":"6.05%"}},{"$f":"Actif!$E$32/100","v":{"v":0.47350000000000003,"d":"47.35%"}},{"$f":"Actif!$E$33/100","v":{"v":0.0585,"d":"5.85%"}},{"$f":"Actif!$E$29/100","v":{"v":0.027999999999999997,"d":"2.80%"}}]
[null,"#133",44,2029,"F","A_PER",{"v":0.44999999999999996,"d":"0.45"},{"v":0.38999999999999996,"d":"0.39"},0.6,0.6,85,0,{"$f":"ROUND(Primes!$Q$7*V9249,0)","v":13},{"$f":"'BP Financier'!$G$33*(('BP Financier'!$C$19+'BP Financier'!$D$19+'BP Financier'!$E$19+'BP Financier'!$F$19+'BP Financier'!$G$19)/('BP Financier'!$C$16+'BP Financier'!$C$19+'BP Financier'!$D$16+'BP Financier'!$D$19+'BP Financier'!$E$16+'BP Financier'!$E$19+'BP Financier'!$F$16+'BP Financier'!$F$19+'BP Financier'!$G$16+'BP Financier'!$G$19))*V9249","v":{"v":569550.5722372774,"d":"569,551"}},{"v":326884.7290890452,"d":"326,885"},{"$f":"'BP Financier'!$G$44*(('BP Financier'!$C$19+'BP Financier'!$D$19+'BP Financier'!$E$19+'BP Financier'!$F$19+'BP Financier'!$G$19)/('BP Financier'!$C$16+'BP Financier'!$C$19+'BP Financier'!$D$16+'BP Financier'!$D$19+'BP Financier'!$E$16+'BP Financier'!$E$19+'BP Financier'!$C$22+'BP Financier'!$D$22+'BP Financier'!$E$22+'BP Financier'!$F$22+'BP Financier'!$F$19+'BP Financier'!$F$16+'BP Financier'!$G$22+'BP Financier'!$G$19+'BP Financier'!$G$16))*$V9249*X9249/(1-$W9249)","v":{"v":41607.69055212179,"d":"41,608"}},{"$f":"'BP Financier'!$G$44*(('BP Financier'!$C$19+'BP Financier'!$D$19+'BP Financier'!$E$19+'BP Financier'!$F$19+'BP Financier'!$G$19)/('BP Financier'!$C$16+'BP Financier'!$C$19+'BP Financier'!$D$16+'BP Financier'!$D$19+'BP Financier'!$E$16+'BP Financier'!$E$19+'BP Financier'!$C$22+'BP Financier'!$D$22+'BP Financier'!$E$22+'BP Financier'!$F$22+'BP Financier'!$F$19+'BP Financier'!$F$16+'BP Financier'!$G$22+'BP Financier'!$G$19+'BP Financier'!$G$16))*$V9249*Y9249/(1-$W9249)","v":{"v":27815.085949208482,"d":"27,815"}},{"$f":"'BP Financier'!$G$44*(('BP Financier'!$C$19+'BP Financier'!$D$19+'BP Financier'!$E$19+'BP Financier'!$F$19+'BP Financier'!$G$19)/('BP Financier'!$C$16+'BP Financier'!$C$19+'BP Financier'!$D$16+'BP Financier'!$D$19+'BP Financier'!$E$16+'BP Financier'!$E$19+'BP Financier'!$C$22+'BP Financier'!$D$22+'BP Financier'!$E$22+'BP Financier'!$F$22+'BP Financier'!$F$19+'BP Financier'!$F$16+'BP Financier'!$G$22+'BP Financier'!$G$19+'BP Financier'!$G$16))*$V9249*Z9249/(1-$W9249)","v":{"v":217693.27598264822,"d":"217,693"}},{"$f":"'BP Financier'!$G$44*(('BP Financier'!$C$19+'BP Financier'!$D$19+'BP Financier'!$E$19+'BP Financier'!$F$19+'BP Financier'!$G$19)/('BP Financier'!$C$16+'BP Financier'!$C$19+'BP Financier'!$D$16+'BP Financier'!$D$19+'BP Financier'!$E$16+'BP Financier'!$E$19+'BP Financier'!$C$22+'BP Financier'!$D$22+'BP Financier'!$E$22+'BP Financier'!$F$22+'BP Financier'!$F$19+'BP Financier'!$F$16+'BP Financier'!$G$22+'BP Financier'!$G$19+'BP Financier'!$G$16))*$V9249*AA9249/(1-$W9249)","v":{"v":26895.578975680935,"d":"26,896"}},{"$f":"'BP Financier'!$G$44*(('BP Financier'!$C$19+'BP Financier'!$D$19+'BP Financier'!$E$19+'BP Financier'!$F$19+'BP Financier'!$G$19)/('BP Financier'!$C$16+'BP Financier'!$C$19+'BP Financier'!$D$16+'BP Financier'!$D$19+'BP Financier'!$E$16+'BP Financier'!$E$19+'BP Financier'!$C$22+'BP Financier'!$D$22+'BP Financier'!$E$22+'BP Financier'!$F$22+'BP Financier'!$F$19+'BP Financier'!$F$16+'BP Financier'!$G$22+'BP Financier'!$G$19+'BP Financier'!$G$16))*$V9249*AB9249/(1-$W9249)","v":{"v":12873.097629385744,"d":"12,873"}},null,{"v":0.01,"d":"1.00%"},{"$f":"Actif!$E$28/100","v":{"v":0.28900000000000003,"d":"28.90%"}},{"$f":"Actif!$E$30/100","v":{"v":0.09050000000000001,"d":"9.05%"}},{"$f":"Actif!$E$31/100","v":{"v":0.0605,"d":"6.05%"}},{"$f":"Actif!$E$32/100","v":{"v":0.47350000000000003,"d":"47.35%"}},{"$f":"Actif!$E$33/100","v":{"v":0.0585,"d":"5.85%"}},{"$f":"Actif!$E$29/100","v":{"v":0.027999999999999997,"d":"2.80%"}}]
[null,"#134",44,2030,"F","A_PER",{"v":0.44999999999999996,"d":"0.45"},{"v":0.38999999999999996,"d":"0.39"},0.6,0.6,85,0,{"$f":"ROUND(Primes!$Q$7*V9250,0)","v":13},{"$f":"'BP Financier'!$G$33*(('BP Financier'!$C$19+'BP Financier'!$D$19+'BP Financier'!$E$19+'BP Financier'!$F$19+'BP Financier'!$G$19)/('BP Financier'!$C$16+'BP Financier'!$C$19+'BP Financier'!$D$16+'BP Financier'!$D$19+'BP Financier'!$E$16+'BP Financier'!$E$19+'BP Financier'!$F$16+'BP Financier'!$F$19+'BP Financier'!$G$16+'BP Financier'!$G$19))*V9250","v":{"v":569550.5722372774,"d":"569,551"}},{"v":326884.7290890452,"d":"326,885"},{"$f":"'BP Financier'!$G$44*(('BP Financier'!$C$19+'BP Financier'!$D$19+'BP Financier'!$E$19+'BP Financier'!$F$19+'BP Financier'!$G$19)/('BP Financier'!$C$16+'BP Financier'!$C$19+'BP Financier'!$D$16+'BP Financier'!$D$19+'BP Financier'!$E$16+'BP Financier'!$E$19+'BP Financier'!$C$22+'BP Financier'!$D$22+'BP Financier'!$E$22+'BP Financier'!$F$22+'BP Financier'!$F$19+'BP Financier'!$F$16+'BP Financier'!$G$22+'BP Financier'!$G$19+'BP Financier'!$G$16))*$V9250*X9250/(1-$W9250)","v":{"v":41607.69055212179,"d":"41,608"}},{"$f":"'BP Financier'!$G$44*(('BP Financier'!$C$19+'BP Financier'!$D$19+'BP Financier'!$E$19+'BP Financier'!$F$19+'BP Financier'!$G$19)/('BP Financier'!$C$16+'BP Financier'!$C$19+'BP Financier'!$D$16+'BP Financier'!$D$19+'BP Financier'!$E$16+'BP Financier'!$E$19+'BP Financier'!$C$22+'BP Financier'!$D$22+'BP Financier'!$E$22+'BP Financier'!$F$22+'BP Financier'!$F$19+'BP Financier'!$F$16+'BP Financier'!$G$22+'BP Financier'!$G$19+'BP Financier'!$G$16))*$V9250*Y9250/(1-$W9250)","v":{"v":27815.085949208482,"d":"27,815"}},{"$f":"'BP Financier'!$G$44*(('BP Financier'!$C$19+'BP Financier'!$D$19+'BP Financier'!$E$19+'BP Financier'!$F$19+'BP Financier'!$G$19)/('BP Financier'!$C$16+'BP Financier'!$C$19+'BP Financier'!$D$16+'BP Financier'!$D$19+'BP Financier'!$E$16+'BP Financier'!$E$19+'BP Financier'!$C$22+'BP Financier'!$D$22+'BP Financier'!$E$22+'BP Financier'!$F$22+'BP Financier'!$F$19+'BP Financier'!$F$16+'BP Financier'!$G$22+'BP Financier'!$G$19+'BP Financier'!$G$16))*$V9250*Z9250/(1-$W9250)","v":{"v":217693.27598264822,"d":"217,693"}},{"$f":"'BP Financier'!$G$44*(('BP Financier'!$C$19+'BP Financier'!$D$19+'BP Financier'!$E$19+'BP Financier'!$F$19+'BP Financier'!$G$19)/('BP Financier'!$C$16+'BP Financier'!$C$19+'BP Financier'!$D$16+'BP Financier'!$D$19+'BP Financier'!$E$16+'BP Financier'!$E$19+'BP Financier'!$C$22+'BP Financier'!$D$22+'BP Financier'!$E$22+'BP Financier'!$F$22+'BP Financier'!$F$19+'BP Financier'!$F$16+'BP Financier'!$G$22+'BP Financier'!$G$19+'BP Financier'!$G$16))*$V9250*AA9250/(1-$W9250)","v":{"v":26895.578975680935,"d":"26,896"}},{"$f":"'BP Financier'!$G$44*(('BP Financier'!$C$19+'BP Financier'!$D$19+'BP Financier'!$E$19+'BP Financier'!$F$19+'BP Financier'!$G$19)/('BP Financier'!$C$16+'BP Financier'!$C$19+'BP Financier'!$D$16+'BP Financier'!$D$19+'BP Financier'!$E$16+'BP Financier'!$E$19+'BP Financier'!$C$22+'BP Financier'!$D$22+'BP Financier'!$E$22+'BP Financier'!$F$22+'BP Financier'!$F$19+'BP Financier'!$F$16+'BP Financier'!$G$22+'BP Financier'!$G$19+'BP Financier'!$G$16))*$V9250*AB9250/(1-$W9250)","v":{"v":12873.097629385744,"d":"12,873"}},null,{"v":0.01,"d":"1.00%"},{"$f":"Actif!$E$28/100","v":{"v":0.28900000000000003,"d":"28.90%"}},{"$f":"Actif!$E$30/100","v":{"v":0.09050000000000001,"d":"9.05%"}},{"$f":"Actif!$E$31/100","v":{"v":0.0605,"d":"6.05%"}},{"$f":"Actif!$E$32/100","v":{"v":0.47350000000000003,"d":"47.35%"}},{"$f":"Actif!$E$33/100","v":{"v":0.0585,"d":"5.85%"}},{"$f":"Actif!$E$29/100","v":{"v":0.027999999999999997,"d":"2.80%"}}]
[null,"#135",44,2031,"F","A_PER",{"v":0.44999999999999996,"d":"0.45"},{"v":0.38999999999999996,"d":"0.39"},0.6,0.6,85,0,{"$f":"ROUND(Primes!$Q$7*V9251,0)","v":13},{"$f":"'BP Financier'!$G$33*(('BP Financier'!$C$19+'BP Financier'!$D$19+'BP Financier'!$E$19+'BP Financier'!$F$19+'BP Financier'!$G$19)/('BP Financier'!$C$16+'BP Financier'!$C$19+'BP Financier'!$D$16+'BP Financier'!$D$19+'BP Financier'!$E$16+'BP Financier'!$E$19+'BP Financier'!$F$16+'BP Financier'!$F$19+'BP Financier'!$G$16+'BP Financier'!$G$19))*V9251","v":{"v":569550.5722372774,"d":"569,551"}},{"v":326884.7290890452,"d":"326,885"},{"$f":"'BP Financier'!$G$44*(('BP Financier'!$C$19+'BP Financier'!$D$19+'BP Financier'!$E$19+'BP Financier'!$F$19+'BP Financier'!$G$19)/('BP Financier'!$C$16+'BP Financier'!$C$19+'BP Financier'!$D$16+'BP Financier'!$D$19+'BP Financier'!$E$16+'BP Financier'!$E$19+'BP Financier'!$C$22+'BP Financier'!$D$22+'BP Financier'!$E$22+'BP Financier'!$F$22+'BP Financier'!$F$19+'BP Financier'!$F$16+'BP Financier'!$G$22+'BP Financier'!$G$19+'BP Financier'!$G$16))*$V9251*X9251/(1-$W9251)","v":{"v":41607.69055212179,"d":"41,608"}},{"$f":"'BP Financier'!$G$44*(('BP Financier'!$C$19+'BP Financier'!$D$19+'BP Financier'!$E$19+'BP Financier'!$F$19+'BP Financier'!$G$19)/('BP Financier'!$C$16+'BP Financier'!$C$19+'BP Financier'!$D$16+'BP Financier'!$D$19+'BP Financier'!$E$16+'BP Financier'!$E$19+'BP Financier'!$C$22+'BP Financier'!$D$22+'BP Financier'!$E$22+'BP Financier'!$F$22+'BP Financier'!$F$19+'BP Financier'!$F$16+'BP Financier'!$G$22+'BP Financier'!$G$19+'BP Financier'!$G$16))*$V9251*Y9251/(1-$W9251)","v":{"v":27815.085949208482,"d":"27,815"}},{"$f":"'BP Financier'!$G$44*(('BP Financier'!$C$19+'BP Financier'!$D$19+'BP Financier'!$E$19+'BP Financier'!$F$19+'BP Financier'!$G$19)/('BP Financier'!$C$16+'BP Financier'!$C$19+'BP Financier'!$D$16+'BP Financier'!$D$19+'BP Financier'!$E$16+'BP Financier'!$E$19+'BP Financier'!$C$22+'BP Financier'!$D$22+'BP Financier'!$E$22+'BP Financier'!$F$22+'BP Financier'!$F$19+'BP Financier'!$F$16+'BP Financier'!$G$22+'BP Financier'!$G$19+'BP Financier'!$G$16))*$V9251*Z9251/(1-$W9251)","v":{"v":217693.27598264822,"d":"217,693"}},{"$f":"'BP Financier'!$G$44*(('BP Financier'!$C$19+'BP Financier'!$D$19+'BP Financier'!$E$19+'BP Financier'!$F$19+'BP Financier'!$G$19)/('BP Financier'!$C$16+'BP Financier'!$C$19+'BP Financier'!$D$16+'BP Financier'!$D$19+'BP Financier'!$E$16+'BP Financier'!$E$19+'BP Financier'!$C$22+'BP Financier'!$D$22+'BP Financier'!$E$22+'BP Financier'!$F$22+'BP Financier'!$F$19+'BP Financier'!$F$16+'BP Financier'!$G$22+'BP Financier'!$G$19+'BP Financier'!$G$16))*$V9251*AA9251/(1-$W9251)","v":{"v":26895.578975680935,"d":"26,896"}},{"$f":"'BP Financier'!$G$44*(('BP Financier'!$C$19+'BP Financier'!$D$19+'BP Financier'!$E$19+'BP Financier'!$F$19+'BP Financier'!$G$19)/('BP Financier'!$C$16+'BP Financier'!$C$19+'BP Financier'!$D$16+'BP Financier'!$D$19+'BP Financier'!$E$16+'BP Financier'!$E$19+'BP Financier'!$C$22+'BP Financier'!$D$22+'BP Financier'!$E$22+'BP Financier'!$F$22+'BP Financier'!$F$19+'BP Financier'!$F$16+'BP Financier'!$G$22+'BP Financier'!$G$19+'BP Financier'!$G$16))*$V9251*AB9251/(1-$W9251)","v":{"v":12873.097629385744,"d":"12,873"}},null,{"v":0.01,"d":"1.00%"},{"$f":"Actif!$E$28/100","v":{"v":0.28900000000000003,"d":"28.90%"}},{"$f":"Actif!$E$30/100","v":{"v":0.09050000000000001,"d":"9.05%"}},{"$f":"Actif!$E$31/100","v":{"v":0.0605,"d":"6.05%"}},{"$f":"Actif!$E$32/100","v":{"v":0.47350000000000003,"d":"47.35%"}},{"$f":"Actif!$E$33/100","v":{"v":0.0585,"d":"5.85%"}},{"$f":"Actif!$E$29/100","v":{"v":0.027999999999999997,"d":"2.80%"}}]
[null,"#136",45,2026,"H","A_PER",{"v":0.44999999999999996,"d":"0.45"},{"v":0.38999999999999996,"d":"0.39"},0.6,0.6,85,0,{"$f":"ROUND(Primes!$Q$7*V9252,0)","v":13},{"$f":"'BP Financier'!$G$33*(('BP Financier'!$C$19+'BP Financier'!$D$19+'BP Financier'!$E$19+'BP Financier'!$F$19+'BP Financier'!$G$19)/('BP Financier'!$C$16+'BP Financier'!$C$19+'BP Financier'!$D$16+'BP Financier'!$D$19+'BP Financier'!$E$16+'BP Financier'!$E$19+'BP Financier'!$F$16+'BP Financier'!$F$19+'BP Financier'!$G$16+'BP Financier'!$G$19))*V9252","v":{"v":569550.5722372774,"d":"569,551"}},{"v":326884.7290890452,"d":"326,885"},{"$f":"'BP Financier'!$G$44*(('BP Financier'!$C$19+'BP Financier'!$D$19+'BP Financier'!$E$19+'BP Financier'!$F$19+'BP Financier'!$G$19)/('BP Financier'!$C$16+'BP Financier'!$C$19+'BP Financier'!$D$16+'BP Financier'!$D$19+'BP Financier'!$E$16+'BP Financier'!$E$19+'BP Financier'!$C$22+'BP Financier'!$D$22+'BP Financier'!$E$22+'BP Financier'!$F$22+'BP Financier'!$F$19+'BP Financier'!$F$16+'BP Financier'!$G$22+'BP Financier'!$G$19+'BP Financier'!$G$16))*$V9252*X9252/(1-$W9252)","v":{"v":41607.69055212179,"d":"41,608"}},{"$f":"'BP Financier'!$G$44*(('BP Financier'!$C$19+'BP Financier'!$D$19+'BP Financier'!$E$19+'BP Financier'!$F$19+'BP Financier'!$G$19)/('BP Financier'!$C$16+'BP Financier'!$C$19+'BP Financier'!$D$16+'BP Financier'!$D$19+'BP Financier'!$E$16+'BP Financier'!$E$19+'BP Financier'!$C$22+'BP Financier'!$D$22+'BP Financier'!$E$22+'BP Financier'!$F$22+'BP Financier'!$F$19+'BP Financier'!$F$16+'BP Financier'!$G$22+'BP Financier'!$G$19+'BP Financier'!$G$16))*$V9252*Y9252/(1-$W9252)","v":{"v":27815.085949208482,"d":"27,815"}},{"$f":"'BP Financier'!$G$44*(('BP Financier'!$C$19+'BP Financier'!$D$19+'BP Financier'!$E$19+'BP Financier'!$F$19+'BP Financier'!$G$19)/('BP Financier'!$C$16+'BP Financier'!$C$19+'BP Financier'!$D$16+'BP Financier'!$D$19+'BP Financier'!$E$16+'BP Financier'!$E$19+'BP Financier'!$C$22+'BP Financier'!$D$22+'BP Financier'!$E$22+'BP Financier'!$F$22+'BP Financier'!$F$19+'BP Financier'!$F$16+'BP Financier'!$G$22+'BP Financier'!$G$19+'BP Financier'!$G$16))*$V9252*Z9252/(1-$W9252)","v":{"v":217693.27598264822,"d":"217,693"}},{"$f":"'BP Financier'!$G$44*(('BP Financier'!$C$19+'BP Financier'!$D$19+'BP Financier'!$E$19+'BP Financier'!$F$19+'BP Financier'!$G$19)/('BP Financier'!$C$16+'BP Financier'!$C$19+'BP Financier'!$D$16+'BP Financier'!$D$19+'BP Financier'!$E$16+'BP Financier'!$E$19+'BP Financier'!$C$22+'BP Financier'!$D$22+'BP Financier'!$E$22+'BP Financier'!$F$22+'BP Financier'!$F$19+'BP Financier'!$F$16+'BP Financier'!$G$22+'BP Financier'!$G$19+'BP Financier'!$G$16))*$V9252*AA9252/(1-$W9252)","v":{"v":26895.578975680935,"d":"26,896"}},{"$f":"'BP Financier'!$G$44*(('BP Financier'!$C$19+'BP Financier'!$D$19+'BP Financier'!$E$19+'BP Financier'!$F$19+'BP Financier'!$G$19)/('BP Financier'!$C$16+'BP Financier'!$C$19+'BP Financier'!$D$16+'BP Financier'!$D$19+'BP Financier'!$E$16+'BP Financier'!$E$19+'BP Financier'!$C$22+'BP Financier'!$D$22+'BP Financier'!$E$22+'BP Financier'!$F$22+'BP Financier'!$F$19+'BP Financier'!$F$16+'BP Financier'!$G$22+'BP Financier'!$G$19+'BP Financier'!$G$16))*$V9252*AB9252/(1-$W9252)","v":{"v":12873.097629385744,"d":"12,873"}},null,{"v":0.01,"d":"1.00%"},{"$f":"Actif!$E$28/100","v":{"v":0.28900000000000003,"d":"28.90%"}},{"$f":"Actif!$E$30/100","v":{"v":0.09050000000000001,"d":"9.05%"}},{"$f":"Actif!$E$31/100","v":{"v":0.0605,"d":"6.05%"}},{"$f":"Actif!$E$32/100","v":{"v":0.47350000000000003,"d":"47.35%"}},{"$f":"Actif!$E$33/100","v":{"v":0.0585,"d":"5.85%"}},{"$f":"Actif!$E$29/100","v":{"v":0.027999999999999997,"d":"2.80%"}}]
[null,"#137",45,2028,"H","A_PER",{"v":0.44999999999999996,"d":"0.45"},{"v":0.38999999999999996,"d":"0.39"},0.6,0.6,85,0,{"$f":"ROUND(Primes!$Q$7*V9253,0)","v":13},{"$f":"'BP Financier'!$G$33*(('BP Financier'!$C$19+'BP Financier'!$D$19+'BP Financier'!$E$19+'BP Financier'!$F$19+'BP Financier'!$G$19)/('BP Financier'!$C$16+'BP Financier'!$C$19+'BP Financier'!$D$16+'BP Financier'!$D$19+'BP Financier'!$E$16+'BP Financier'!$E$19+'BP Financier'!$F$16+'BP Financier'!$F$19+'BP Financier'!$G$16+'BP Financier'!$G$19))*V9253","v":{"v":569550.5722372774,"d":"569,551"}},{"v":326884.7290890452,"d":"326,885"},{"$f":"'BP Financier'!$G$44*(('BP Financier'!$C$19+'BP Financier'!$D$19+'BP Financier'!$E$19+'BP Financier'!$F$19+'BP Financier'!$G$19)/('BP Financier'!$C$16+'BP Financier'!$C$19+'BP Financier'!$D$16+'BP Financier'!$D$19+'BP Financier'!$E$16+'BP Financier'!$E$19+'BP Financier'!$C$22+'BP Financier'!$D$22+'BP Financier'!$E$22+'BP Financier'!$F$22+'BP Financier'!$F$19+'BP Financier'!$F$16+'BP Financier'!$G$22+'BP Financier'!$G$19+'BP Financier'!$G$16))*$V9253*X9253/(1-$W9253)","v":{"v":41607.69055212179,"d":"41,608"}},{"$f":"'BP Financier'!$G$44*(('BP Financier'!$C$19+'BP Financier'!$D$19+'BP Financier'!$E$19+'BP Financier'!$F$19+'BP Financier'!$G$19)/('BP Financier'!$C$16+'BP Financier'!$C$19+'BP Financier'!$D$16+'BP Financier'!$D$19+'BP Financier'!$E$16+'BP Financier'!$E$19+'BP Financier'!$C$22+'BP Financier'!$D$22+'BP Financier'!$E$22+'BP Financier'!$F$22+'BP Financier'!$F$19+'BP Financier'!$F$16+'BP Financier'!$G$22+'BP Financier'!$G$19+'BP Financier'!$G$16))*$V9253*Y9253/(1-$W9253)","v":{"v":27815.085949208482,"d":"27,815"}},{"$f":"'BP Financier'!$G$44*(('BP Financier'!$C$19+'BP Financier'!$D$19+'BP Financier'!$E$19+'BP Financier'!$F$19+'BP Financier'!$G$19)/('BP Financier'!$C$16+'BP Financier'!$C$19+'BP Financier'!$D$16+'BP Financier'!$D$19+'BP Financier'!$E$16+'BP Financier'!$E$19+'BP Financier'!$C$22+'BP Financier'!$D$22+'BP Financier'!$E$22+'BP Financier'!$F$22+'BP Financier'!$F$19+'BP Financier'!$F$16+'BP Financier'!$G$22+'BP Financier'!$G$19+'BP Financier'!$G$16))*$V9253*Z9253/(1-$W9253)","v":{"v":217693.27598264822,"d":"217,693"}},{"$f":"'BP Financier'!$G$44*(('BP Financier'!$C$19+'BP Financier'!$D$19+'BP Financier'!$E$19+'BP Financier'!$F$19+'BP Financier'!$G$19)/('BP Financier'!$C$16+'BP Financier'!$C$19+'BP Financier'!$D$16+'BP Financier'!$D$19+'BP Financier'!$E$16+'BP Financier'!$E$19+'BP Financier'!$C$22+'BP Financier'!$D$22+'BP Financier'!$E$22+'BP Financier'!$F$22+'BP Financier'!$F$19+'BP Financier'!$F$16+'BP Financier'!$G$22+'BP Financier'!$G$19+'BP Financier'!$G$16))*$V9253*AA9253/(1-$W9253)","v":{"v":26895.578975680935,"d":"26,896"}},{"$f":"'BP Financier'!$G$44*(('BP Financier'!$C$19+'BP Financier'!$D$19+'BP Financier'!$E$19+'BP Financier'!$F$19+'BP Financier'!$G$19)/('BP Financier'!$C$16+'BP Financier'!$C$19+'BP Financier'!$D$16+'BP Financier'!$D$19+'BP Financier'!$E$16+'BP Financier'!$E$19+'BP Financier'!$C$22+'BP Financier'!$D$22+'BP Financier'!$E$22+'BP Financier'!$F$22+'BP Financier'!$F$19+'BP Financier'!$F$16+'BP Financier'!$G$22+'BP Financier'!$G$19+'BP Financier'!$G$16))*$V9253*AB9253/(1-$W9253)","v":{"v":12873.097629385744,"d":"12,873"}},null,{"v":0.01,"d":"1.00%"},{"$f":"Actif!$E$28/100","v":{"v":0.28900000000000003,"d":"28.90%"}},{"$f":"Actif!$E$30/100","v":{"v":0.09050000000000001,"d":"9.05%"}},{"$f":"Actif!$E$31/100","v":{"v":0.0605,"d":"6.05%"}},{"$f":"Actif!$E$32/100","v":{"v":0.47350000000000003,"d":"47.35%"}},{"$f":"Actif!$E$33/100","v":{"v":0.0585,"d":"5.85%"}},{"$f":"Actif!$E$29/100","v":{"v":0.027999999999999997,"d":"2.80%"}}]
[null,"#138",45,2029,"H","A_PER",{"v":0.44999999999999996,"d":"0.45"},{"v":0.38999999999999996,"d":"0.39"},0.6,0.6,85,0,{"$f":"ROUND(Primes!$Q$7*V9254,0)","v":13},{"$f":"'BP Financier'!$G$33*(('BP Financier'!$C$19+'BP Financier'!$D$19+'BP Financier'!$E$19+'BP Financier'!$F$19+'BP Financier'!$G$19)/('BP Financier'!$C$16+'BP Financier'!$C$19+'BP Financier'!$D$16+'BP Financier'!$D$19+'BP Financier'!$E$16+'BP Financier'!$E$19+'BP Financier'!$F$16+'BP Financier'!$F$19+'BP Financier'!$G$16+'BP Financier'!$G$19))*V9254","v":{"v":569550.5722372774,"d":"569,551"}},{"v":326884.7290890452,"d":"326,885"},{"$f":"'BP Financier'!$G$44*(('BP Financier'!$C$19+'BP Financier'!$D$19+'BP Financier'!$E$19+'BP Financier'!$F$19+'BP Financier'!$G$19)/('BP Financier'!$C$16+'BP Financier'!$C$19+'BP Financier'!$D$16+'BP Financier'!$D$19+'BP Financier'!$E$16+'BP Financier'!$E$19+'BP Financier'!$C$22+'BP Financier'!$D$22+'BP Financier'!$E$22+'BP Financier'!$F$22+'BP Financier'!$F$19+'BP Financier'!$F$16+'BP Financier'!$G$22+'BP Financier'!$G$19+'BP Financier'!$G$16))*$V9254*X9254/(1-$W9254)","v":{"v":41607.69055212179,"d":"41,608"}},{"$f":"'BP Financier'!$G$44*(('BP Financier'!$C$19+'BP Financier'!$D$19+'BP Financier'!$E$19+'BP Financier'!$F$19+'BP Financier'!$G$19)/('BP Financier'!$C$16+'BP Financier'!$C$19+'BP Financier'!$D$16+'BP Financier'!$D$19+'BP Financier'!$E$16+'BP Financier'!$E$19+'BP Financier'!$C$22+'BP Financier'!$D$22+'BP Financier'!$E$22+'BP Financier'!$F$22+'BP Financier'!$F$19+'BP Financier'!$F$16+'BP Financier'!$G$22+'BP Financier'!$G$19+'BP Financier'!$G$16))*$V9254*Y9254/(1-$W9254)","v":{"v":27815.085949208482,"d":"27,815"}},{"$f":"'BP Financier'!$G$44*(('BP Financier'!$C$19+'BP Financier'!$D$19+'BP Financier'!$E$19+'BP Financier'!$F$19+'BP Financier'!$G$19)/('BP Financier'!$C$16+'BP Financier'!$C$19+'BP Financier'!$D$16+'BP Financier'!$D$19+'BP Financier'!$E$16+'BP Financier'!$E$19+'BP Financier'!$C$22+'BP Financier'!$D$22+'BP Financier'!$E$22+'BP Financier'!$F$22+'BP Financier'!$F$19+'BP Financier'!$F$16+'BP Financier'!$G$22+'BP Financier'!$G$19+'BP Financier'!$G$16))*$V9254*Z9254/(1-$W9254)","v":{"v":217693.27598264822,"d":"217,693"}},{"$f":"'BP Financier'!$G$44*(('BP Financier'!$C$19+'BP Financier'!$D$19+'BP Financier'!$E$19+'BP Financier'!$F$19+'BP Financier'!$G$19)/('BP Financier'!$C$16+'BP Financier'!$C$19+'BP Financier'!$D$16+'BP Financier'!$D$19+'BP Financier'!$E$16+'BP Financier'!$E$19+'BP Financier'!$C$22+'BP Financier'!$D$22+'BP Financier'!$E$22+'BP Financier'!$F$22+'BP Financier'!$F$19+'BP Financier'!$F$16+'BP Financier'!$G$22+'BP Financier'!$G$19+'BP Financier'!$G$16))*$V9254*AA9254/(1-$W9254)","v":{"v":26895.578975680935,"d":"26,896"}},{"$f":"'BP Financier'!$G$44*(('BP Financier'!$C$19+'BP Financier'!$D$19+'BP Financier'!$E$19+'BP Financier'!$F$19+'BP Financier'!$G$19)/('BP Financier'!$C$16+'BP Financier'!$C$19+'BP Financier'!$D$16+'BP Financier'!$D$19+'BP Financier'!$E$16+'BP Financier'!$E$19+'BP Financier'!$C$22+'BP Financier'!$D$22+'BP Financier'!$E$22+'BP Financier'!$F$22+'BP Financier'!$F$19+'BP Financier'!$F$16+'BP Financier'!$G$22+'BP Financier'!$G$19+'BP Financier'!$G$16))*$V9254*AB9254/(1-$W9254)","v":{"v":12873.097629385744,"d":"12,873"}},null,{"v":0.01,"d":"1.00%"},{"$f":"Actif!$E$28/100","v":{"v":0.28900000000000003,"d":"28.90%"}},{"$f":"Actif!$E$30/100","v":{"v":0.09050000000000001,"d":"9.05%"}},{"$f":"Actif!$E$31/100","v":{"v":0.0605,"d":"6.05%"}},{"$f":"Actif!$E$32/100","v":{"v":0.47350000000000003,"d":"47.35%"}},{"$f":"Actif!$E$33/100","v":{"v":0.0585,"d":"5.85%"}},{"$f":"Actif!$E$29/100","v":{"v":0.027999999999999997,"d":"2.80%"}}]
[null,"#139",45,2030,"H","A_PER",{"v":0.44999999999999996,"d":"0.45"},{"v":0.38999999999999996,"d":"0.39"},0.6,0.6,85,0,{"$f":"ROUND(Primes!$Q$7*V9255,0)","v":13},{"$f":"'BP Financier'!$G$33*(('BP Financier'!$C$19+'BP Financier'!$D$19+'BP Financier'!$E$19+'BP Financier'!$F$19+'BP Financier'!$G$19)/('BP Financier'!$C$16+'BP Financier'!$C$19+'BP Financier'!$D$16+'BP Financier'!$D$19+'BP Financier'!$E$16+'BP Financier'!$E$19+'BP Financier'!$F$16+'BP Financier'!$F$19+'BP Financier'!$G$16+'BP Financier'!$G$19))*V9255","v":{"v":569550.5722372774,"d":"569,551"}},{"v":326884.7290890452,"d":"326,885"},{"$f":"'BP Financier'!$G$44*(('BP Financier'!$C$19+'BP Financier'!$D$19+'BP Financier'!$E$19+'BP Financier'!$F$19+'BP Financier'!$G$19)/('BP Financier'!$C$16+'BP Financier'!$C$19+'BP Financier'!$D$16+'BP Financier'!$D$19+'BP Financier'!$E$16+'BP Financier'!$E$19+'BP Financier'!$C$22+'BP Financier'!$D$22+'BP Financier'!$E$22+'BP Financier'!$F$22+'BP Financier'!$F$19+'BP Financier'!$F$16+'BP Financier'!$G$22+'BP Financier'!$G$19+'BP Financier'!$G$16))*$V9255*X9255/(1-$W9255)","v":{"v":41607.69055212179,"d":"41,608"}},{"$f":"'BP Financier'!$G$44*(('BP Financier'!$C$19+'BP Financier'!$D$19+'BP Financier'!$E$19+'BP Financier'!$F$19+'BP Financier'!$G$19)/('BP Financier'!$C$16+'BP Financier'!$C$19+'BP Financier'!$D$16+'BP Financier'!$D$19+'BP Financier'!$E$16+'BP Financier'!$E$19+'BP Financier'!$C$22+'BP Financier'!$D$22+'BP Financier'!$E$22+'BP Financier'!$F$22+'BP Financier'!$F$19+'BP Financier'!$F$16+'BP Financier'!$G$22+'BP Financier'!$G$19+'BP Financier'!$G$16))*$V9255*Y9255/(1-$W9255)","v":{"v":27815.085949208482,"d":"27,815"}},{"$f":"'BP Financier'!$G$44*(('BP Financier'!$C$19+'BP Financier'!$D$19+'BP Financier'!$E$19+'BP Financier'!$F$19+'BP Financier'!$G$19)/('BP Financier'!$C$16+'BP Financier'!$C$19+'BP Financier'!$D$16+'BP Financier'!$D$19+'BP Financier'!$E$16+'BP Financier'!$E$19+'BP Financier'!$C$22+'BP Financier'!$D$22+'BP Financier'!$E$22+'BP Financier'!$F$22+'BP Financier'!$F$19+'BP Financier'!$F$16+'BP Financier'!$G$22+'BP Financier'!$G$19+'BP Financier'!$G$16))*$V9255*Z9255/(1-$W9255)","v":{"v":217693.27598264822,"d":"217,693"}},{"$f":"'BP Financier'!$G$44*(('BP Financier'!$C$19+'BP Financier'!$D$19+'BP Financier'!$E$19+'BP Financier'!$F$19+'BP Financier'!$G$19)/('BP Financier'!$C$16+'BP Financier'!$C$19+'BP Financier'!$D$16+'BP Financier'!$D$19+'BP Financier'!$E$16+'BP Financier'!$E$19+'BP Financier'!$C$22+'BP Financier'!$D$22+'BP Financier'!$E$22+'BP Financier'!$F$22+'BP Financier'!$F$19+'BP Financier'!$F$16+'BP Financier'!$G$22+'BP Financier'!$G$19+'BP Financier'!$G$16))*$V9255*AA9255/(1-$W9255)","v":{"v":26895.578975680935,"d":"26,896"}},{"$f":"'BP Financier'!$G$44*(('BP Financier'!$C$19+'BP Financier'!$D$19+'BP Financier'!$E$19+'BP Financier'!$F$19+'BP Financier'!$G$19)/('BP Financier'!$C$16+'BP Financier'!$C$19+'BP Financier'!$D$16+'BP Financier'!$D$19+'BP Financier'!$E$16+'BP Financier'!$E$19+'BP Financier'!$C$22+'BP Financier'!$D$22+'BP Financier'!$E$22+'BP Financier'!$F$22+'BP Financier'!$F$19+'BP Financier'!$F$16+'BP Financier'!$G$22+'BP Financier'!$G$19+'BP Financier'!$G$16))*$V9255*AB9255/(1-$W9255)","v":{"v":12873.097629385744,"d":"12,873"}},null,{"v":0.01,"d":"1.00%"},{"$f":"Actif!$E$28/100","v":{"v":0.28900000000000003,"d":"28.90%"}},{"$f":"Actif!$E$30/100","v":{"v":0.09050000000000001,"d":"9.05%"}},{"$f":"Actif!$E$31/100","v":{"v":0.0605,"d":"6.05%"}},{"$f":"Actif!$E$32/100","v":{"v":0.47350000000000003,"d":"47.35%"}},{"$f":"Actif!$E$33/100","v":{"v":0.0585,"d":"5.85%"}},{"$f":"Actif!$E$29/100","v":{"v":0.027999999999999997,"d":"2.80%"}}]
[null,"#140",45,2031,"H","A_PER",{"v":0.44999999999999996,"d":"0.45"},{"v":0.38999999999999996,"d":"0.39"},0.6,0.6,85,0,{"$f":"ROUND(Primes!$Q$7*V9256,0)","v":13},{"$f":"'BP Financier'!$G$33*(('BP Financier'!$C$19+'BP Financier'!$D$19+'BP Financier'!$E$19+'BP Financier'!$F$19+'BP Financier'!$G$19)/('BP Financier'!$C$16+'BP Financier'!$C$19+'BP Financier'!$D$16+'BP Financier'!$D$19+'BP Financier'!$E$16+'BP Financier'!$E$19+'BP Financier'!$F$16+'BP Financier'!$F$19+'BP Financier'!$G$16+'BP Financier'!$G$19))*V9256","v":{"v":569550.5722372774,"d":"569,551"}},{"v":326884.7290890452,"d":"326,885"},{"$f":"'BP Financier'!$G$44*(('BP Financier'!$C$19+'BP Financier'!$D$19+'BP Financier'!$E$19+'BP Financier'!$F$19+'BP Financier'!$G$19)/('BP Financier'!$C$16+'BP Financier'!$C$19+'BP Financier'!$D$16+'BP Financier'!$D$19+'BP Financier'!$E$16+'BP Financier'!$E$19+'BP Financier'!$C$22+'BP Financier'!$D$22+'BP Financier'!$E$22+'BP Financier'!$F$22+'BP Financier'!$F$19+'BP Financier'!$F$16+'BP Financier'!$G$22+'BP Financier'!$G$19+'BP Financier'!$G$16))*$V9256*X9256/(1-$W9256)","v":{"v":41607.69055212179,"d":"41,608"}},{"$f":"'BP Financier'!$G$44*(('BP Financier'!$C$19+'BP Financier'!$D$19+'BP Financier'!$E$19+'BP Financier'!$F$19+'BP Financier'!$G$19)/('BP Financier'!$C$16+'BP Financier'!$C$19+'BP Financier'!$D$16+'BP Financier'!$D$19+'BP Financier'!$E$16+'BP Financier'!$E$19+'BP Financier'!$C$22+'BP Financier'!$D$22+'BP Financier'!$E$22+'BP Financier'!$F$22+'BP Financier'!$F$19+'BP Financier'!$F$16+'BP Financier'!$G$22+'BP Financier'!$G$19+'BP Financier'!$G$16))*$V9256*Y9256/(1-$W9256)","v":{"v":27815.085949208482,"d":"27,815"}},{"$f":"'BP Financier'!$G$44*(('BP Financier'!$C$19+'BP Financier'!$D$19+'BP Financier'!$E$19+'BP Financier'!$F$19+'BP Financier'!$G$19)/('BP Financier'!$C$16+'BP Financier'!$C$19+'BP Financier'!$D$16+'BP Financier'!$D$19+'BP Financier'!$E$16+'BP Financier'!$E$19+'BP Financier'!$C$22+'BP Financier'!$D$22+'BP Financier'!$E$22+'BP Financier'!$F$22+'BP Financier'!$F$19+'BP Financier'!$F$16+'BP Financier'!$G$22+'BP Financier'!$G$19+'BP Financier'!$G$16))*$V9256*Z9256/(1-$W9256)","v":{"v":217693.27598264822,"d":"217,693"}},{"$f":"'BP Financier'!$G$44*(('BP Financier'!$C$19+'BP Financier'!$D$19+'BP Financier'!$E$19+'BP Financier'!$F$19+'BP Financier'!$G$19)/('BP Financier'!$C$16+'BP Financier'!$C$19+'BP Financier'!$D$16+'BP Financier'!$D$19+'BP Financier'!$E$16+'BP Financier'!$E$19+'BP Financier'!$C$22+'BP Financier'!$D$22+'BP Financier'!$E$22+'BP Financier'!$F$22+'BP Financier'!$F$19+'BP Financier'!$F$16+'BP Financier'!$G$22+'BP Financier'!$G$19+'BP Financier'!$G$16))*$V9256*AA9256/(1-$W9256)","v":{"v":26895.578975680935,"d":"26,896"}},{"$f":"'BP Financier'!$G$44*(('BP Financier'!$C$19+'BP Financier'!$D$19+'BP Financier'!$E$19+'BP Financier'!$F$19+'BP Financier'!$G$19)/('BP Financier'!$C$16+'BP Financier'!$C$19+'BP Financier'!$D$16+'BP Financier'!$D$19+'BP Financier'!$E$16+'BP Financier'!$E$19+'BP Financier'!$C$22+'BP Financier'!$D$22+'BP Financier'!$E$22+'BP Financier'!$F$22+'BP Financier'!$F$19+'BP Financier'!$F$16+'BP Financier'!$G$22+'BP Financier'!$G$19+'BP Financier'!$G$16))*$V9256*AB9256/(1-$W9256)","v":{"v":12873.097629385744,"d":"12,873"}},null,{"v":0.01,"d":"1.00%"},{"$f":"Actif!$E$28/100","v":{"v":0.28900000000000003,"d":"28.90%"}},{"$f":"Actif!$E$30/100","v":{"v":0.09050000000000001,"d":"9.05%"}},{"$f":"Actif!$E$31/100","v":{"v":0.0605,"d":"6.05%"}},{"$f":"Actif!$E$32/100","v":{"v":0.47350000000000003,"d":"47.35%"}},{"$f":"Actif!$E$33/100","v":{"v":0.0585,"d":"5.85%"}},{"$f":"Actif!$E$29/100","v":{"v":0.027999999999999997,"d":"2.80%"}}]
[null,"#141",46,2026,"H","A_PER",{"v":0.44999999999999996,"d":"0.45"},{"v":0.38999999999999996,"d":"0.39"},0.6,0.6,85,0,{"$f":"ROUND(Primes!$Q$7*V9257,0)","v":13},{"$f":"'BP Financier'!$G$33*(('BP Financier'!$C$19+'BP Financier'!$D$19+'BP Financier'!$E$19+'BP Financier'!$F$19+'BP Financier'!$G$19)/('BP Financier'!$C$16+'BP Financier'!$C$19+'BP Financier'!$D$16+'BP Financier'!$D$19+'BP Financier'!$E$16+'BP Financier'!$E$19+'BP Financier'!$F$16+'BP Financier'!$F$19+'BP Financier'!$G$16+'BP Financier'!$G$19))*V9257","v":{"v":569550.5722372774,"d":"569,551"}},{"v":326884.7290890452,"d":"326,885"},{"$f":"'BP Financier'!$G$44*(('BP Financier'!$C$19+'BP Financier'!$D$19+'BP Financier'!$E$19+'BP Financier'!$F$19+'BP Financier'!$G$19)/('BP Financier'!$C$16+'BP Financier'!$C$19+'BP Financier'!$D$16+'BP Financier'!$D$19+'BP Financier'!$E$16+'BP Financier'!$E$19+'BP Financier'!$C$22+'BP Financier'!$D$22+'BP Financier'!$E$22+'BP Financier'!$F$22+'BP Financier'!$F$19+'BP Financier'!$F$16+'BP Financier'!$G$22+'BP Financier'!$G$19+'BP Financier'!$G$16))*$V9257*X9257/(1-$W9257)","v":{"v":41607.69055212179,"d":"41,608"}},{"$f":"'BP Financier'!$G$44*(('BP Financier'!$C$19+'BP Financier'!$D$19+'BP Financier'!$E$19+'BP Financier'!$F$19+'BP Financier'!$G$19)/('BP Financier'!$C$16+'BP Financier'!$C$19+'BP Financier'!$D$16+'BP Financier'!$D$19+'BP Financier'!$E$16+'BP Financier'!$E$19+'BP Financier'!$C$22+'BP Financier'!$D$22+'BP Financier'!$E$22+'BP Financier'!$F$22+'BP Financier'!$F$19+'BP Financier'!$F$16+'BP Financier'!$G$22+'BP Financier'!$G$19+'BP Financier'!$G$16))*$V9257*Y9257/(1-$W9257)","v":{"v":27815.085949208482,"d":"27,815"}},{"$f":"'BP Financier'!$G$44*(('BP Financier'!$C$19+'BP Financier'!$D$19+'BP Financier'!$E$19+'BP Financier'!$F$19+'BP Financier'!$G$19)/('BP Financier'!$C$16+'BP Financier'!$C$19+'BP Financier'!$D$16+'BP Financier'!$D$19+'BP Financier'!$E$16+'BP Financier'!$E$19+'BP Financier'!$C$22+'BP Financier'!$D$22+'BP Financier'!$E$22+'BP Financier'!$F$22+'BP Financier'!$F$19+'BP Financier'!$F$16+'BP Financier'!$G$22+'BP Financier'!$G$19+'BP Financier'!$G$16))*$V9257*Z9257/(1-$W9257)","v":{"v":217693.27598264822,"d":"217,693"}},{"$f":"'BP Financier'!$G$44*(('BP Financier'!$C$19+'BP Financier'!$D$19+'BP Financier'!$E$19+'BP Financier'!$F$19+'BP Financier'!$G$19)/('BP Financier'!$C$16+'BP Financier'!$C$19+'BP Financier'!$D$16+'BP Financier'!$D$19+'BP Financier'!$E$16+'BP Financier'!$E$19+'BP Financier'!$C$22+'BP Financier'!$D$22+'BP Financier'!$E$22+'BP Financier'!$F$22+'BP Financier'!$F$19+'BP Financier'!$F$16+'BP Financier'!$G$22+'BP Financier'!$G$19+'BP Financier'!$G$16))*$V9257*AA9257/(1-$W9257)","v":{"v":26895.578975680935,"d":"26,896"}},{"$f":"'BP Financier'!$G$44*(('BP Financier'!$C$19+'BP Financier'!$D$19+'BP Financier'!$E$19+'BP Financier'!$F$19+'BP Financier'!$G$19)/('BP Financier'!$C$16+'BP Financier'!$C$19+'BP Financier'!$D$16+'BP Financier'!$D$19+'BP Financier'!$E$16+'BP Financier'!$E$19+'BP Financier'!$C$22+'BP Financier'!$D$22+'BP Financier'!$E$22+'BP Financier'!$F$22+'BP Financier'!$F$19+'BP Financier'!$F$16+'BP Financier'!$G$22+'BP Financier'!$G$19+'BP Financier'!$G$16))*$V9257*AB9257/(1-$W9257)","v":{"v":12873.097629385744,"d":"12,873"}},null,{"v":0.01,"d":"1.00%"},{"$f":"Actif!$E$28/100","v":{"v":0.28900000000000003,"d":"28.90%"}},{"$f":"Actif!$E$30/100","v":{"v":0.09050000000000001,"d":"9.05%"}},{"$f":"Actif!$E$31/100","v":{"v":0.0605,"d":"6.05%"}},{"$f":"Actif!$E$32/100","v":{"v":0.47350000000000003,"d":"47.35%"}},{"$f":"Actif!$E$33/100","v":{"v":0.0585,"d":"5.85%"}},{"$f":"Actif!$E$29/100","v":{"v":0.027999999999999997,"d":"2.80%"}}]
[null,"#142",46,2028,"H","A_PER",{"v":0.44999999999999996,"d":"0.45"},{"v":0.38999999999999996,"d":"0.39"},0.6,0.6,85,0,{"$f":"ROUND(Primes!$Q$7*V9258,0)","v":13},{"$f":"'BP Financier'!$G$33*(('BP Financier'!$C$19+'BP Financier'!$D$19+'BP Financier'!$E$19+'BP Financier'!$F$19+'BP Financier'!$G$19)/('BP Financier'!$C$16+'BP Financier'!$C$19+'BP Financier'!$D$16+'BP Financier'!$D$19+'BP Financier'!$E$16+'BP Financier'!$E$19+'BP Financier'!$F$16+'BP Financier'!$F$19+'BP Financier'!$G$16+'BP Financier'!$G$19))*V9258","v":{"v":569550.5722372774,"d":"569,551"}},{"v":326884.7290890452,"d":"326,885"},{"$f":"'BP Financier'!$G$44*(('BP Financier'!$C$19+'BP Financier'!$D$19+'BP Financier'!$E$19+'BP Financier'!$F$19+'BP Financier'!$G$19)/('BP Financier'!$C$16+'BP Financier'!$C$19+'BP Financier'!$D$16+'BP Financier'!$D$19+'BP Financier'!$E$16+'BP Financier'!$E$19+'BP Financier'!$C$22+'BP Financier'!$D$22+'BP Financier'!$E$22+'BP Financier'!$F$22+'BP Financier'!$F$19+'BP Financier'!$F$16+'BP Financier'!$G$22+'BP Financier'!$G$19+'BP Financier'!$G$16))*$V9258*X9258/(1-$W9258)","v":{"v":41607.69055212179,"d":"41,608"}},{"$f":"'BP Financier'!$G$44*(('BP Financier'!$C$19+'BP Financier'!$D$19+'BP Financier'!$E$19+'BP Financier'!$F$19+'BP Financier'!$G$19)/('BP Financier'!$C$16+'BP Financier'!$C$19+'BP Financier'!$D$16+'BP Financier'!$D$19+'BP Financier'!$E$16+'BP Financier'!$E$19+'BP Financier'!$C$22+'BP Financier'!$D$22+'BP Financier'!$E$22+'BP Financier'!$F$22+'BP Financier'!$F$19+'BP Financier'!$F$16+'BP Financier'!$G$22+'BP Financier'!$G$19+'BP Financier'!$G$16))*$V9258*Y9258/(1-$W9258)","v":{"v":27815.085949208482,"d":"27,815"}},{"$f":"'BP Financier'!$G$44*(('BP Financier'!$C$19+'BP Financier'!$D$19+'BP Financier'!$E$19+'BP Financier'!$F$19+'BP Financier'!$G$19)/('BP Financier'!$C$16+'BP Financier'!$C$19+'BP Financier'!$D$16+'BP Financier'!$D$19+'BP Financier'!$E$16+'BP Financier'!$E$19+'BP Financier'!$C$22+'BP Financier'!$D$22+'BP Financier'!$E$22+'BP Financier'!$F$22+'BP Financier'!$F$19+'BP Financier'!$F$16+'BP Financier'!$G$22+'BP Financier'!$G$19+'BP Financier'!$G$16))*$V9258*Z9258/(1-$W9258)","v":{"v":217693.27598264822,"d":"217,693"}},{"$f":"'BP Financier'!$G$44*(('BP Financier'!$C$19+'BP Financier'!$D$19+'BP Financier'!$E$19+'BP Financier'!$F$19+'BP Financier'!$G$19)/('BP Financier'!$C$16+'BP Financier'!$C$19+'BP Financier'!$D$16+'BP Financier'!$D$19+'BP Financier'!$E$16+'BP Financier'!$E$19+'BP Financier'!$C$22+'BP Financier'!$D$22+'BP Financier'!$E$22+'BP Financier'!$F$22+'BP Financier'!$F$19+'BP Financier'!$F$16+'BP Financier'!$G$22+'BP Financier'!$G$19+'BP Financier'!$G$16))*$V9258*AA9258/(1-$W9258)","v":{"v":26895.578975680935,"d":"26,896"}},{"$f":"'BP Financier'!$G$44*(('BP Financier'!$C$19+'BP Financier'!$D$19+'BP Financier'!$E$19+'BP Financier'!$F$19+'BP Financier'!$G$19)/('BP Financier'!$C$16+'BP Financier'!$C$19+'BP Financier'!$D$16+'BP Financier'!$D$19+'BP Financier'!$E$16+'BP Financier'!$E$19+'BP Financier'!$C$22+'BP Financier'!$D$22+'BP Financier'!$E$22+'BP Financier'!$F$22+'BP Financier'!$F$19+'BP Financier'!$F$16+'BP Financier'!$G$22+'BP Financier'!$G$19+'BP Financier'!$G$16))*$V9258*AB9258/(1-$W9258)","v":{"v":12873.097629385744,"d":"12,873"}},null,{"v":0.01,"d":"1.00%"},{"$f":"Actif!$E$28/100","v":{"v":0.28900000000000003,"d":"28.90%"}},{"$f":"Actif!$E$30/100","v":{"v":0.09050000000000001,"d":"9.05%"}},{"$f":"Actif!$E$31/100","v":{"v":0.0605,"d":"6.05%"}},{"$f":"Actif!$E$32/100","v":{"v":0.47350000000000003,"d":"47.35%"}},{"$f":"Actif!$E$33/100","v":{"v":0.0585,"d":"5.85%"}},{"$f":"Actif!$E$29/100","v":{"v":0.027999999999999997,"d":"2.80%"}}]
[null,"#143",46,2029,"H","A_PER",{"v":0.44999999999999996,"d":"0.45"},{"v":0.38999999999999996,"d":"0.39"},0.6,0.6,85,0,{"$f":"ROUND(Primes!$Q$7*V9259,0)","v":13},{"$f":"'BP Financier'!$G$33*(('BP Financier'!$C$19+'BP Financier'!$D$19+'BP Financier'!$E$19+'BP Financier'!$F$19+'BP Financier'!$G$19)/('BP Financier'!$C$16+'BP Financier'!$C$19+'BP Financier'!$D$16+'BP Financier'!$D$19+'BP Financier'!$E$16+'BP Financier'!$E$19+'BP Financier'!$F$16+'BP Financier'!$F$19+'BP Financier'!$G$16+'BP Financier'!$G$19))*V9259","v":{"v":569550.5722372774,"d":"569,551"}},{"v":326884.7290890452,"d":"326,885"},{"$f":"'BP Financier'!$G$44*(('BP Financier'!$C$19+'BP Financier'!$D$19+'BP Financier'!$E$19+'BP Financier'!$F$19+'BP Financier'!$G$19)/('BP Financier'!$C$16+'BP Financier'!$C$19+'BP Financier'!$D$16+'BP Financier'!$D$19+'BP Financier'!$E$16+'BP Financier'!$E$19+'BP Financier'!$C$22+'BP Financier'!$D$22+'BP Financier'!$E$22+'BP Financier'!$F$22+'BP Financier'!$F$19+'BP Financier'!$F$16+'BP Financier'!$G$22+'BP Financier'!$G$19+'BP Financier'!$G$16))*$V9259*X9259/(1-$W9259)","v":{"v":41607.69055212179,"d":"41,608"}},{"$f":"'BP Financier'!$G$44*(('BP Financier'!$C$19+'BP Financier'!$D$19+'BP Financier'!$E$19+'BP Financier'!$F$19+'BP Financier'!$G$19)/('BP Financier'!$C$16+'BP Financier'!$C$19+'BP Financier'!$D$16+'BP Financier'!$D$19+'BP Financier'!$E$16+'BP Financier'!$E$19+'BP Financier'!$C$22+'BP Financier'!$D$22+'BP Financier'!$E$22+'BP Financier'!$F$22+'BP Financier'!$F$19+'BP Financier'!$F$16+'BP Financier'!$G$22+'BP Financier'!$G$19+'BP Financier'!$G$16))*$V9259*Y9259/(1-$W9259)","v":{"v":27815.085949208482,"d":"27,815"}},{"$f":"'BP Financier'!$G$44*(('BP Financier'!$C$19+'BP Financier'!$D$19+'BP Financier'!$E$19+'BP Financier'!$F$19+'BP Financier'!$G$19)/('BP Financier'!$C$16+'BP Financier'!$C$19+'BP Financier'!$D$16+'BP Financier'!$D$19+'BP Financier'!$E$16+'BP Financier'!$E$19+'BP Financier'!$C$22+'BP Financier'!$D$22+'BP Financier'!$E$22+'BP Financier'!$F$22+'BP Financier'!$F$19+'BP Financier'!$F$16+'BP Financier'!$G$22+'BP Financier'!$G$19+'BP Financier'!$G$16))*$V9259*Z9259/(1-$W9259)","v":{"v":217693.27598264822,"d":"217,693"}},{"$f":"'BP Financier'!$G$44*(('BP Financier'!$C$19+'BP Financier'!$D$19+'BP Financier'!$E$19+'BP Financier'!$F$19+'BP Financier'!$G$19)/('BP Financier'!$C$16+'BP Financier'!$C$19+'BP Financier'!$D$16+'BP Financier'!$D$19+'BP Financier'!$E$16+'BP Financier'!$E$19+'BP Financier'!$C$22+'BP Financier'!$D$22+'BP Financier'!$E$22+'BP Financier'!$F$22+'BP Financier'!$F$19+'BP Financier'!$F$16+'BP Financier'!$G$22+'BP Financier'!$G$19+'BP Financier'!$G$16))*$V9259*AA9259/(1-$W9259)","v":{"v":26895.578975680935,"d":"26,896"}},{"$f":"'BP Financier'!$G$44*(('BP Financier'!$C$19+'BP Financier'!$D$19+'BP Financier'!$E$19+'BP Financier'!$F$19+'BP Financier'!$G$19)/('BP Financier'!$C$16+'BP Financier'!$C$19+'BP Financier'!$D$16+'BP Financier'!$D$19+'BP Financier'!$E$16+'BP Financier'!$E$19+'BP Financier'!$C$22+'BP Financier'!$D$22+'BP Financier'!$E$22+'BP Financier'!$F$22+'BP Financier'!$F$19+'BP Financier'!$F$16+'BP Financier'!$G$22+'BP Financier'!$G$19+'BP Financier'!$G$16))*$V9259*AB9259/(1-$W9259)","v":{"v":12873.097629385744,"d":"12,873"}},null,{"v":0.01,"d":"1.00%"},{"$f":"Actif!$E$28/100","v":{"v":0.28900000000000003,"d":"28.90%"}},{"$f":"Actif!$E$30/100","v":{"v":0.09050000000000001,"d":"9.05%"}},{"$f":"Actif!$E$31/100","v":{"v":0.0605,"d":"6.05%"}},{"$f":"Actif!$E$32/100","v":{"v":0.47350000000000003,"d":"47.35%"}},{"$f":"Actif!$E$33/100","v":{"v":0.0585,"d":"5.85%"}},{"$f":"Actif!$E$29/100","v":{"v":0.027999999999999997,"d":"2.80%"}}]
[null,"#144",46,2030,"H","A_PER",{"v":0.44999999999999996,"d":"0.45"},{"v":0.38999999999999996,"d":"0.39"},0.6,0.6,85,0,{"$f":"ROUND(Primes!$Q$7*V9260,0)","v":13},{"$f":"'BP Financier'!$G$33*(('BP Financier'!$C$19+'BP Financier'!$D$19+'BP Financier'!$E$19+'BP Financier'!$F$19+'BP Financier'!$G$19)/('BP Financier'!$C$16+'BP Financier'!$C$19+'BP Financier'!$D$16+'BP Financier'!$D$19+'BP Financier'!$E$16+'BP Financier'!$E$19+'BP Financier'!$F$16+'BP Financier'!$F$19+'BP Financier'!$G$16+'BP Financier'!$G$19))*V9260","v":{"v":569550.5722372774,"d":"569,551"}},{"v":326884.7290890452,"d":"326,885"},{"$f":"'BP Financier'!$G$44*(('BP Financier'!$C$19+'BP Financier'!$D$19+'BP Financier'!$E$19+'BP Financier'!$F$19+'BP Financier'!$G$19)/('BP Financier'!$C$16+'BP Financier'!$C$19+'BP Financier'!$D$16+'BP Financier'!$D$19+'BP Financier'!$E$16+'BP Financier'!$E$19+'BP Financier'!$C$22+'BP Financier'!$D$22+'BP Financier'!$E$22+'BP Financier'!$F$22+'BP Financier'!$F$19+'BP Financier'!$F$16+'BP Financier'!$G$22+'BP Financier'!$G$19+'BP Financier'!$G$16))*$V9260*X9260/(1-$W9260)","v":{"v":41607.69055212179,"d":"41,608"}},{"$f":"'BP Financier'!$G$44*(('BP Financier'!$C$19+'BP Financier'!$D$19+'BP Financier'!$E$19+'BP Financier'!$F$19+'BP Financier'!$G$19)/('BP Financier'!$C$16+'BP Financier'!$C$19+'BP Financier'!$D$16+'BP Financier'!$D$19+'BP Financier'!$E$16+'BP Financier'!$E$19+'BP Financier'!$C$22+'BP Financier'!$D$22+'BP Financier'!$E$22+'BP Financier'!$F$22+'BP Financier'!$F$19+'BP Financier'!$F$16+'BP Financier'!$G$22+'BP Financier'!$G$19+'BP Financier'!$G$16))*$V9260*Y9260/(1-$W9260)","v":{"v":27815.085949208482,"d":"27,815"}},{"$f":"'BP Financier'!$G$44*(('BP Financier'!$C$19+'BP Financier'!$D$19+'BP Financier'!$E$19+'BP Financier'!$F$19+'BP Financier'!$G$19)/('BP Financier'!$C$16+'BP Financier'!$C$19+'BP Financier'!$D$16+'BP Financier'!$D$19+'BP Financier'!$E$16+'BP Financier'!$E$19+'BP Financier'!$C$22+'BP Financier'!$D$22+'BP Financier'!$E$22+'BP Financier'!$F$22+'BP Financier'!$F$19+'BP Financier'!$F$16+'BP Financier'!$G$22+'BP Financier'!$G$19+'BP Financier'!$G$16))*$V9260*Z9260/(1-$W9260)","v":{"v":217693.27598264822,"d":"217,693"}},{"$f":"'BP Financier'!$G$44*(('BP Financier'!$C$19+'BP Financier'!$D$19+'BP Financier'!$E$19+'BP Financier'!$F$19+'BP Financier'!$G$19)/('BP Financier'!$C$16+'BP Financier'!$C$19+'BP Financier'!$D$16+'BP Financier'!$D$19+'BP Financier'!$E$16+'BP Financier'!$E$19+'BP Financier'!$C$22+'BP Financier'!$D$22+'BP Financier'!$E$22+'BP Financier'!$F$22+'BP Financier'!$F$19+'BP Financier'!$F$16+'BP Financier'!$G$22+'BP Financier'!$G$19+'BP Financier'!$G$16))*$V9260*AA9260/(1-$W9260)","v":{"v":26895.578975680935,"d":"26,896"}},{"$f":"'BP Financier'!$G$44*(('BP Financier'!$C$19+'BP Financier'!$D$19+'BP Financier'!$E$19+'BP Financier'!$F$19+'BP Financier'!$G$19)/('BP Financier'!$C$16+'BP Financier'!$C$19+'BP Financier'!$D$16+'BP Financier'!$D$19+'BP Financier'!$E$16+'BP Financier'!$E$19+'BP Financier'!$C$22+'BP Financier'!$D$22+'BP Financier'!$E$22+'BP Financier'!$F$22+'BP Financier'!$F$19+'BP Financier'!$F$16+'BP Financier'!$G$22+'BP Financier'!$G$19+'BP Financier'!$G$16))*$V9260*AB9260/(1-$W9260)","v":{"v":12873.097629385744,"d":"12,873"}},null,{"v":0.01,"d":"1.00%"},{"$f":"Actif!$E$28/100","v":{"v":0.28900000000000003,"d":"28.90%"}},{"$f":"Actif!$E$30/100","v":{"v":0.09050000000000001,"d":"9.05%"}},{"$f":"Actif!$E$31/100","v":{"v":0.0605,"d":"6.05%"}},{"$f":"Actif!$E$32/100","v":{"v":0.47350000000000003,"d":"47.35%"}},{"$f":"Actif!$E$33/100","v":{"v":0.0585,"d":"5.85%"}},{"$f":"Actif!$E$29/100","v":{"v":0.027999999999999997,"d":"2.80%"}}]
[null,"#145",46,2031,"H","A_PER",{"v":0.44999999999999996,"d":"0.45"},{"v":0.38999999999999996,"d":"0.39"},0.6,0.6,85,0,{"$f":"ROUND(Primes!$Q$7*V9261,0)","v":13},{"$f":"'BP Financier'!$G$33*(('BP Financier'!$C$19+'BP Financier'!$D$19+'BP Financier'!$E$19+'BP Financier'!$F$19+'BP Financier'!$G$19)/('BP Financier'!$C$16+'BP Financier'!$C$19+'BP Financier'!$D$16+'BP Financier'!$D$19+'BP Financier'!$E$16+'BP Financier'!$E$19+'BP Financier'!$F$16+'BP Financier'!$F$19+'BP Financier'!$G$16+'BP Financier'!$G$19))*V9261","v":{"v":569550.5722372774,"d":"569,551"}},{"v":326884.7290890452,"d":"326,885"},{"$f":"'BP Financier'!$G$44*(('BP Financier'!$C$19+'BP Financier'!$D$19+'BP Financier'!$E$19+'BP Financier'!$F$19+'BP Financier'!$G$19)/('BP Financier'!$C$16+'BP Financier'!$C$19+'BP Financier'!$D$16+'BP Financier'!$D$19+'BP Financier'!$E$16+'BP Financier'!$E$19+'BP Financier'!$C$22+'BP Financier'!$D$22+'BP Financier'!$E$22+'BP Financier'!$F$22+'BP Financier'!$F$19+'BP Financier'!$F$16+'BP Financier'!$G$22+'BP Financier'!$G$19+'BP Financier'!$G$16))*$V9261*X9261/(1-$W9261)","v":{"v":41607.69055212179,"d":"41,608"}},{"$f":"'BP Financier'!$G$44*(('BP Financier'!$C$19+'BP Financier'!$D$19+'BP Financier'!$E$19+'BP Financier'!$F$19+'BP Financier'!$G$19)/('BP Financier'!$C$16+'BP Financier'!$C$19+'BP Financier'!$D$16+'BP Financier'!$D$19+'BP Financier'!$E$16+'BP Financier'!$E$19+'BP Financier'!$C$22+'BP Financier'!$D$22+'BP Financier'!$E$22+'BP Financier'!$F$22+'BP Financier'!$F$19+'BP Financier'!$F$16+'BP Financier'!$G$22+'BP Financier'!$G$19+'BP Financier'!$G$16))*$V9261*Y9261/(1-$W9261)","v":{"v":27815.085949208482,"d":"27,815"}},{"$f":"'BP Financier'!$G$44*(('BP Financier'!$C$19+'BP Financier'!$D$19+'BP Financier'!$E$19+'BP Financier'!$F$19+'BP Financier'!$G$19)/('BP Financier'!$C$16+'BP Financier'!$C$19+'BP Financier'!$D$16+'BP Financier'!$D$19+'BP Financier'!$E$16+'BP Financier'!$E$19+'BP Financier'!$C$22+'BP Financier'!$D$22+'BP Financier'!$E$22+'BP Financier'!$F$22+'BP Financier'!$F$19+'BP Financier'!$F$16+'BP Financier'!$G$22+'BP Financier'!$G$19+'BP Financier'!$G$16))*$V9261*Z9261/(1-$W9261)","v":{"v":217693.27598264822,"d":"217,693"}},{"$f":"'BP Financier'!$G$44*(('BP Financier'!$C$19+'BP Financier'!$D$19+'BP Financier'!$E$19+'BP Financier'!$F$19+'BP Financier'!$G$19)/('BP Financier'!$C$16+'BP Financier'!$C$19+'BP Financier'!$D$16+'BP Financier'!$D$19+'BP Financier'!$E$16+'BP Financier'!$E$19+'BP Financier'!$C$22+'BP Financier'!$D$22+'BP Financier'!$E$22+'BP Financier'!$F$22+'BP Financier'!$F$19+'BP Financier'!$F$16+'BP Financier'!$G$22+'BP Financier'!$G$19+'BP Financier'!$G$16))*$V9261*AA9261/(1-$W9261)","v":{"v":26895.578975680935,"d":"26,896"}},{"$f":"'BP Financier'!$G$44*(('BP Financier'!$C$19+'BP Financier'!$D$19+'BP Financier'!$E$19+'BP Financier'!$F$19+'BP Financier'!$G$19)/('BP Financier'!$C$16+'BP Financier'!$C$19+'BP Financier'!$D$16+'BP Financier'!$D$19+'BP Financier'!$E$16+'BP Financier'!$E$19+'BP Financier'!$C$22+'BP Financier'!$D$22+'BP Financier'!$E$22+'BP Financier'!$F$22+'BP Financier'!$F$19+'BP Financier'!$F$16+'BP Financier'!$G$22+'BP Financier'!$G$19+'BP Financier'!$G$16))*$V9261*AB9261/(1-$W9261)","v":{"v":12873.097629385744,"d":"12,873"}},null,{"v":0.01,"d":"1.00%"},{"$f":"Actif!$E$28/100","v":{"v":0.28900000000000003,"d":"28.90%"}},{"$f":"Actif!$E$30/100","v":{"v":0.09050000000000001,"d":"9.05%"}},{"$f":"Actif!$E$31/100","v":{"v":0.0605,"d":"6.05%"}},{"$f":"Actif!$E$32/100","v":{"v":0.47350000000000003,"d":"47.35%"}},{"$f":"Actif!$E$33/100","v":{"v":0.0585,"d":"5.85%"}},{"$f":"Actif!$E$29/100","v":{"v":0.027999999999999997,"d":"2.80%"}}]
[null,"#146",47,2026,"F","A_PER",{"v":0.44999999999999996,"d":"0.45"},{"v":0.38999999999999996,"d":"0.39"},0.6,0.6,85,0,{"$f":"ROUND(Primes!$Q$7*V9262,0)","v":11},{"$f":"'BP Financier'!$G$33*(('BP Financier'!$C$19+'BP Financier'!$D$19+'BP Financier'!$E$19+'BP Financier'!$F$19+'BP Financier'!$G$19)/('BP Financier'!$C$16+'BP Financier'!$C$19+'BP Financier'!$D$16+'BP Financier'!$D$19+'BP Financier'!$E$16+'BP Financier'!$E$19+'BP Financier'!$F$16+'BP Financier'!$F$19+'BP Financier'!$G$16+'BP Financier'!$G$19))*V9262","v":{"v":455640.45778982196,"d":"455,640"}},{"v":261507.7832712362,"d":"261,508"},{"$f":"'BP Financier'!$G$44*(('BP Financier'!$C$19+'BP Financier'!$D$19+'BP Financier'!$E$19+'BP Financier'!$F$19+'BP Financier'!$G$19)/('BP Financier'!$C$16+'BP Financier'!$C$19+'BP Financier'!$D$16+'BP Financier'!$D$19+'BP Financier'!$E$16+'BP Financier'!$E$19+'BP Financier'!$C$22+'BP Financier'!$D$22+'BP Financier'!$E$22+'BP Financier'!$F$22+'BP Financier'!$F$19+'BP Financier'!$F$16+'BP Financier'!$G$22+'BP Financier'!$G$19+'BP Financier'!$G$16))*$V9262*X9262/(1-$W9262)","v":{"v":33286.152441697435,"d":"33,286"}},{"$f":"'BP Financier'!$G$44*(('BP Financier'!$C$19+'BP Financier'!$D$19+'BP Financier'!$E$19+'BP Financier'!$F$19+'BP Financier'!$G$19)/('BP Financier'!$C$16+'BP Financier'!$C$19+'BP Financier'!$D$16+'BP Financier'!$D$19+'BP Financier'!$E$16+'BP Financier'!$E$19+'BP Financier'!$C$22+'BP Financier'!$D$22+'BP Financier'!$E$22+'BP Financier'!$F$22+'BP Financier'!$F$19+'BP Financier'!$F$16+'BP Financier'!$G$22+'BP Financier'!$G$19+'BP Financier'!$G$16))*$V9262*Y9262/(1-$W9262)","v":{"v":22252.068759366786,"d":"22,252"}},{"$f":"'BP Financier'!$G$44*(('BP Financier'!$C$19+'BP Financier'!$D$19+'BP Financier'!$E$19+'BP Financier'!$F$19+'BP Financier'!$G$19)/('BP Financier'!$C$16+'BP Financier'!$C$19+'BP Financier'!$D$16+'BP Financier'!$D$19+'BP Financier'!$E$16+'BP Financier'!$E$19+'BP Financier'!$C$22+'BP Financier'!$D$22+'BP Financier'!$E$22+'BP Financier'!$F$22+'BP Financier'!$F$19+'BP Financier'!$F$16+'BP Financier'!$G$22+'BP Financier'!$G$19+'BP Financier'!$G$16))*$V9262*Z9262/(1-$W9262)","v":{"v":174154.6207861186,"d":"174,155"}},{"$f":"'BP Financier'!$G$44*(('BP Financier'!$C$19+'BP Financier'!$D$19+'BP Financier'!$E$19+'BP Financier'!$F$19+'BP Financier'!$G$19)/('BP Financier'!$C$16+'BP Financier'!$C$19+'BP Financier'!$D$16+'BP Financier'!$D$19+'BP Financier'!$E$16+'BP Financier'!$E$19+'BP Financier'!$C$22+'BP Financier'!$D$22+'BP Financier'!$E$22+'BP Financier'!$F$22+'BP Financier'!$F$19+'BP Financier'!$F$16+'BP Financier'!$G$22+'BP Financier'!$G$19+'BP Financier'!$G$16))*$V9262*AA9262/(1-$W9262)","v":{"v":21516.46318054475,"d":"21,516"}},{"$f":"'BP Financier'!$G$44*(('BP Financier'!$C$19+'BP Financier'!$D$19+'BP Financier'!$E$19+'BP Financier'!$F$19+'BP Financier'!$G$19)/('BP Financier'!$C$16+'BP Financier'!$C$19+'BP Financier'!$D$16+'BP Financier'!$D$19+'BP Financier'!$E$16+'BP Financier'!$E$19+'BP Financier'!$C$22+'BP Financier'!$D$22+'BP Financier'!$E$22+'BP Financier'!$F$22+'BP Financier'!$F$19+'BP Financier'!$F$16+'BP Financier'!$G$22+'BP Financier'!$G$19+'BP Financier'!$G$16))*$V9262*AB9262/(1-$W9262)","v":{"v":10298.478103508596,"d":"10,298"}},null,{"v":0.008,"d":"0.80%"},{"$f":"Actif!$E$28/100","v":{"v":0.28900000000000003,"d":"28.90%"}},{"$f":"Actif!$E$30/100","v":{"v":0.09050000000000001,"d":"9.05%"}},{"$f":"Actif!$E$31/100","v":{"v":0.0605,"d":"6.05%"}},{"$f":"Actif!$E$32/100","v":{"v":0.47350000000000003,"d":"47.35%"}},{"$f":"Actif!$E$33/100","v":{"v":0.0585,"d":"5.85%"}},{"$f":"Actif!$E$29/100","v":{"v":0.027999999999999997,"d":"2.80%"}}]
[null,"#147",47,2028,"F","A_PER",{"v":0.44999999999999996,"d":"0.45"},{"v":0.38999999999999996,"d":"0.39"},0.6,0.6,85,0,{"$f":"ROUND(Primes!$Q$7*V9263,0)","v":11},{"$f":"'BP Financier'!$G$33*(('BP Financier'!$C$19+'BP Financier'!$D$19+'BP Financier'!$E$19+'BP Financier'!$F$19+'BP Financier'!$G$19)/('BP Financier'!$C$16+'BP Financier'!$C$19+'BP Financier'!$D$16+'BP Financier'!$D$19+'BP Financier'!$E$16+'BP Financier'!$E$19+'BP Financier'!$F$16+'BP Financier'!$F$19+'BP Financier'!$G$16+'BP Financier'!$G$19))*V9263","v":{"v":455640.45778982196,"d":"455,640"}},{"v":261507.7832712362,"d":"261,508"},{"$f":"'BP Financier'!$G$44*(('BP Financier'!$C$19+'BP Financier'!$D$19+'BP Financier'!$E$19+'BP Financier'!$F$19+'BP Financier'!$G$19)/('BP Financier'!$C$16+'BP Financier'!$C$19+'BP Financier'!$D$16+'BP Financier'!$D$19+'BP Financier'!$E$16+'BP Financier'!$E$19+'BP Financier'!$C$22+'BP Financier'!$D$22+'BP Financier'!$E$22+'BP Financier'!$F$22+'BP Financier'!$F$19+'BP Financier'!$F$16+'BP Financier'!$G$22+'BP Financier'!$G$19+'BP Financier'!$G$16))*$V9263*X9263/(1-$W9263)","v":{"v":33286.152441697435,"d":"33,286"}},{"$f":"'BP Financier'!$G$44*(('BP Financier'!$C$19+'BP Financier'!$D$19+'BP Financier'!$E$19+'BP Financier'!$F$19+'BP Financier'!$G$19)/('BP Financier'!$C$16+'BP Financier'!$C$19+'BP Financier'!$D$16+'BP Financier'!$D$19+'BP Financier'!$E$16+'BP Financier'!$E$19+'BP Financier'!$C$22+'BP Financier'!$D$22+'BP Financier'!$E$22+'BP Financier'!$F$22+'BP Financier'!$F$19+'BP Financier'!$F$16+'BP Financier'!$G$22+'BP Financier'!$G$19+'BP Financier'!$G$16))*$V9263*Y9263/(1-$W9263)","v":{"v":22252.068759366786,"d":"22,252"}},{"$f":"'BP Financier'!$G$44*(('BP Financier'!$C$19+'BP Financier'!$D$19+'BP Financier'!$E$19+'BP Financier'!$F$19+'BP Financier'!$G$19)/('BP Financier'!$C$16+'BP Financier'!$C$19+'BP Financier'!$D$16+'BP Financier'!$D$19+'BP Financier'!$E$16+'BP Financier'!$E$19+'BP Financier'!$C$22+'BP Financier'!$D$22+'BP Financier'!$E$22+'BP Financier'!$F$22+'BP Financier'!$F$19+'BP Financier'!$F$16+'BP Financier'!$G$22+'BP Financier'!$G$19+'BP Financier'!$G$16))*$V9263*Z9263/(1-$W9263)","v":{"v":174154.6207861186,"d":"174,155"}},{"$f":"'BP Financier'!$G$44*(('BP Financier'!$C$19+'BP Financier'!$D$19+'BP Financier'!$E$19+'BP Financier'!$F$19+'BP Financier'!$G$19)/('BP Financier'!$C$16+'BP Financier'!$C$19+'BP Financier'!$D$16+'BP Financier'!$D$19+'BP Financier'!$E$16+'BP Financier'!$E$19+'BP Financier'!$C$22+'BP Financier'!$D$22+'BP Financier'!$E$22+'BP Financier'!$F$22+'BP Financier'!$F$19+'BP Financier'!$F$16+'BP Financier'!$G$22+'BP Financier'!$G$19+'BP Financier'!$G$16))*$V9263*AA9263/(1-$W9263)","v":{"v":21516.46318054475,"d":"21,516"}},{"$f":"'BP Financier'!$G$44*(('BP Financier'!$C$19+'BP Financier'!$D$19+'BP Financier'!$E$19+'BP Financier'!$F$19+'BP Financier'!$G$19)/('BP Financier'!$C$16+'BP Financier'!$C$19+'BP Financier'!$D$16+'BP Financier'!$D$19+'BP Financier'!$E$16+'BP Financier'!$E$19+'BP Financier'!$C$22+'BP Financier'!$D$22+'BP Financier'!$E$22+'BP Financier'!$F$22+'BP Financier'!$F$19+'BP Financier'!$F$16+'BP Financier'!$G$22+'BP Financier'!$G$19+'BP Financier'!$G$16))*$V9263*AB9263/(1-$W9263)","v":{"v":10298.478103508596,"d":"10,298"}},null,{"v":0.008,"d":"0.80%"},{"$f":"Actif!$E$28/100","v":{"v":0.28900000000000003,"d":"28.90%"}},{"$f":"Actif!$E$30/100","v":{"v":0.09050000000000001,"d":"9.05%"}},{"$f":"Actif!$E$31/100","v":{"v":0.0605,"d":"6.05%"}},{"$f":"Actif!$E$32/100","v":{"v":0.47350000000000003,"d":"47.35%"}},{"$f":"Actif!$E$33/100","v":{"v":0.0585,"d":"5.85%"}},{"$f":"Actif!$E$29/100","v":{"v":0.027999999999999997,"d":"2.80%"}}]
[null,"#148",47,2029,"F","A_PER",{"v":0.44999999999999996,"d":"0.45"},{"v":0.38999999999999996,"d":"0.39"},0.6,0.6,85,0,{"$f":"ROUND(Primes!$Q$7*V9264,0)","v":11},{"$f":"'BP Financier'!$G$33*(('BP Financier'!$C$19+'BP Financier'!$D$19+'BP Financier'!$E$19+'BP Financier'!$F$19+'BP Financier'!$G$19)/('BP Financier'!$C$16+'BP Financier'!$C$19+'BP Financier'!$D$16+'BP Financier'!$D$19+'BP Financier'!$E$16+'BP Financier'!$E$19+'BP Financier'!$F$16+'BP Financier'!$F$19+'BP Financier'!$G$16+'BP Financier'!$G$19))*V9264","v":{"v":455640.45778982196,"d":"455,640"}},{"v":261507.7832712362,"d":"261,508"},{"$f":"'BP Financier'!$G$44*(('BP Financier'!$C$19+'BP Financier'!$D$19+'BP Financier'!$E$19+'BP Financier'!$F$19+'BP Financier'!$G$19)/('BP Financier'!$C$16+'BP Financier'!$C$19+'BP Financier'!$D$16+'BP Financier'!$D$19+'BP Financier'!$E$16+'BP Financier'!$E$19+'BP Financier'!$C$22+'BP Financier'!$D$22+'BP Financier'!$E$22+'BP Financier'!$F$22+'BP Financier'!$F$19+'BP Financier'!$F$16+'BP Financier'!$G$22+'BP Financier'!$G$19+'BP Financier'!$G$16))*$V9264*X9264/(1-$W9264)","v":{"v":33286.152441697435,"d":"33,286"}},{"$f":"'BP Financier'!$G$44*(('BP Financier'!$C$19+'BP Financier'!$D$19+'BP Financier'!$E$19+'BP Financier'!$F$19+'BP Financier'!$G$19)/('BP Financier'!$C$16+'BP Financier'!$C$19+'BP Financier'!$D$16+'BP Financier'!$D$19+'BP Financier'!$E$16+'BP Financier'!$E$19+'BP Financier'!$C$22+'BP Financier'!$D$22+'BP Financier'!$E$22+'BP Financier'!$F$22+'BP Financier'!$F$19+'BP Financier'!$F$16+'BP Financier'!$G$22+'BP Financier'!$G$19+'BP Financier'!$G$16))*$V9264*Y9264/(1-$W9264)","v":{"v":22252.068759366786,"d":"22,252"}},{"$f":"'BP Financier'!$G$44*(('BP Financier'!$C$19+'BP Financier'!$D$19+'BP Financier'!$E$19+'BP Financier'!$F$19+'BP Financier'!$G$19)/('BP Financier'!$C$16+'BP Financier'!$C$19+'BP Financier'!$D$16+'BP Financier'!$D$19+'BP Financier'!$E$16+'BP Financier'!$E$19+'BP Financier'!$C$22+'BP Financier'!$D$22+'BP Financier'!$E$22+'BP Financier'!$F$22+'BP Financier'!$F$19+'BP Financier'!$F$16+'BP Financier'!$G$22+'BP Financier'!$G$19+'BP Financier'!$G$16))*$V9264*Z9264/(1-$W9264)","v":{"v":174154.6207861186,"d":"174,155"}},{"$f":"'BP Financier'!$G$44*(('BP Financier'!$C$19+'BP Financier'!$D$19+'BP Financier'!$E$19+'BP Financier'!$F$19+'BP Financier'!$G$19)/('BP Financier'!$C$16+'BP Financier'!$C$19+'BP Financier'!$D$16+'BP Financier'!$D$19+'BP Financier'!$E$16+'BP Financier'!$E$19+'BP Financier'!$C$22+'BP Financier'!$D$22+'BP Financier'!$E$22+'BP Financier'!$F$22+'BP Financier'!$F$19+'BP Financier'!$F$16+'BP Financier'!$G$22+'BP Financier'!$G$19+'BP Financier'!$G$16))*$V9264*AA9264/(1-$W9264)","v":{"v":21516.46318054475,"d":"21,516"}},{"$f":"'BP Financier'!$G$44*(('BP Financier'!$C$19+'BP Financier'!$D$19+'BP Financier'!$E$19+'BP Financier'!$F$19+'BP Financier'!$G$19)/('BP Financier'!$C$16+'BP Financier'!$C$19+'BP Financier'!$D$16+'BP Financier'!$D$19+'BP Financier'!$E$16+'BP Financier'!$E$19+'BP Financier'!$C$22+'BP Financier'!$D$22+'BP Financier'!$E$22+'BP Financier'!$F$22+'BP Financier'!$F$19+'BP Financier'!$F$16+'BP Financier'!$G$22+'BP Financier'!$G$19+'BP Financier'!$G$16))*$V9264*AB9264/(1-$W9264)","v":{"v":10298.478103508596,"d":"10,298"}},null,{"v":0.008,"d":"0.80%"},{"$f":"Actif!$E$28/100","v":{"v":0.28900000000000003,"d":"28.90%"}},{"$f":"Actif!$E$30/100","v":{"v":0.09050000000000001,"d":"9.05%"}},{"$f":"Actif!$E$31/100","v":{"v":0.0605,"d":"6.05%"}},{"$f":"Actif!$E$32/100","v":{"v":0.47350000000000003,"d":"47.35%"}},{"$f":"Actif!$E$33/100","v":{"v":0.0585,"d":"5.85%"}},{"$f":"Actif!$E$29/100","v":{"v":0.027999999999999997,"d":"2.80%"}}]
[null,"#149",47,2030,"F","A_PER",{"v":0.44999999999999996,"d":"0.45"},{"v":0.38999999999999996,"d":"0.39"},0.6,0.6,85,0,{"$f":"ROUND(Primes!$Q$7*V9265,0)","v":11},{"$f":"'BP Financier'!$G$33*(('BP Financier'!$C$19+'BP Financier'!$D$19+'BP Financier'!$E$19+'BP Financier'!$F$19+'BP Financier'!$G$19)/('BP Financier'!$C$16+'BP Financier'!$C$19+'BP Financier'!$D$16+'BP Financier'!$D$19+'BP Financier'!$E$16+'BP Financier'!$E$19+'BP Financier'!$F$16+'BP Financier'!$F$19+'BP Financier'!$G$16+'BP Financier'!$G$19))*V9265","v":{"v":455640.45778982196,"d":"455,640"}},{"v":261507.7832712362,"d":"261,508"},{"$f":"'BP Financier'!$G$44*(('BP Financier'!$C$19+'BP Financier'!$D$19+'BP Financier'!$E$19+'BP Financier'!$F$19+'BP Financier'!$G$19)/('BP Financier'!$C$16+'BP Financier'!$C$19+'BP Financier'!$D$16+'BP Financier'!$D$19+'BP Financier'!$E$16+'BP Financier'!$E$19+'BP Financier'!$C$22+'BP Financier'!$D$22+'BP Financier'!$E$22+'BP Financier'!$F$22+'BP Financier'!$F$19+'BP Financier'!$F$16+'BP Financier'!$G$22+'BP Financier'!$G$19+'BP Financier'!$G$16))*$V9265*X9265/(1-$W9265)","v":{"v":33286.152441697435,"d":"33,286"}},{"$f":"'BP Financier'!$G$44*(('BP Financier'!$C$19+'BP Financier'!$D$19+'BP Financier'!$E$19+'BP Financier'!$F$19+'BP Financier'!$G$19)/('BP Financier'!$C$16+'BP Financier'!$C$19+'BP Financier'!$D$16+'BP Financier'!$D$19+'BP Financier'!$E$16+'BP Financier'!$E$19+'BP Financier'!$C$22+'BP Financier'!$D$22+'BP Financier'!$E$22+'BP Financier'!$F$22+'BP Financier'!$F$19+'BP Financier'!$F$16+'BP Financier'!$G$22+'BP Financier'!$G$19+'BP Financier'!$G$16))*$V9265*Y9265/(1-$W9265)","v":{"v":22252.068759366786,"d":"22,252"}},{"$f":"'BP Financier'!$G$44*(('BP Financier'!$C$19+'BP Financier'!$D$19+'BP Financier'!$E$19+'BP Financier'!$F$19+'BP Financier'!$G$19)/('BP Financier'!$C$16+'BP Financier'!$C$19+'BP Financier'!$D$16+'BP Financier'!$D$19+'BP Financier'!$E$16+'BP Financier'!$E$19+'BP Financier'!$C$22+'BP Financier'!$D$22+'BP Financier'!$E$22+'BP Financier'!$F$22+'BP Financier'!$F$19+'BP Financier'!$F$16+'BP Financier'!$G$22+'BP Financier'!$G$19+'BP Financier'!$G$16))*$V9265*Z9265/(1-$W9265)","v":{"v":174154.6207861186,"d":"174,155"}},{"$f":"'BP Financier'!$G$44*(('BP Financier'!$C$19+'BP Financier'!$D$19+'BP Financier'!$E$19+'BP Financier'!$F$19+'BP Financier'!$G$19)/('BP Financier'!$C$16+'BP Financier'!$C$19+'BP Financier'!$D$16+'BP Financier'!$D$19+'BP Financier'!$E$16+'BP Financier'!$E$19+'BP Financier'!$C$22+'BP Financier'!$D$22+'BP Financier'!$E$22+'BP Financier'!$F$22+'BP Financier'!$F$19+'BP Financier'!$F$16+'BP Financier'!$G$22+'BP Financier'!$G$19+'BP Financier'!$G$16))*$V9265*AA9265/(1-$W9265)","v":{"v":21516.46318054475,"d":"21,516"}},{"$f":"'BP Financier'!$G$44*(('BP Financier'!$C$19+'BP Financier'!$D$19+'BP Financier'!$E$19+'BP Financier'!$F$19+'BP Financier'!$G$19)/('BP Financier'!$C$16+'BP Financier'!$C$19+'BP Financier'!$D$16+'BP Financier'!$D$19+'BP Financier'!$E$16+'BP Financier'!$E$19+'BP Financier'!$C$22+'BP Financier'!$D$22+'BP Financier'!$E$22+'BP Financier'!$F$22+'BP Financier'!$F$19+'BP Financier'!$F$16+'BP Financier'!$G$22+'BP Financier'!$G$19+'BP Financier'!$G$16))*$V9265*AB9265/(1-$W9265)","v":{"v":10298.478103508596,"d":"10,298"}},null,{"v":0.008,"d":"0.80%"},{"$f":"Actif!$E$28/100","v":{"v":0.28900000000000003,"d":"28.90%"}},{"$f":"Actif!$E$30/100","v":{"v":0.09050000000000001,"d":"9.05%"}},{"$f":"Actif!$E$31/100","v":{"v":0.0605,"d":"6.05%"}},{"$f":"Actif!$E$32/100","v":{"v":0.47350000000000003,"d":"47.35%"}},{"$f":"Actif!$E$33/100","v":{"v":0.0585,"d":"5.85%"}},{"$f":"Actif!$E$29/100","v":{"v":0.027999999999999997,"d":"2.80%"}}]
[null,"#150",47,2031,"F","A_PER",{"v":0.44999999999999996,"d":"0.45"},{"v":0.38999999999999996,"d":"0.39"},0.6,0.6,85,0,{"$f":"ROUND(Primes!$Q$7*V9266,0)","v":11},{"$f":"'BP Financier'!$G$33*(('BP Financier'!$C$19+'BP Financier'!$D$19+'BP Financier'!$E$19+'BP Financier'!$F$19+'BP Financier'!$G$19)/('BP Financier'!$C$16+'BP Financier'!$C$19+'BP Financier'!$D$16+'BP Financier'!$D$19+'BP Financier'!$E$16+'BP Financier'!$E$19+'BP Financier'!$F$16+'BP Financier'!$F$19+'BP Financier'!$G$16+'BP Financier'!$G$19))*V9266","v":{"v":455640.45778982196,"d":"455,640"}},{"v":261507.7832712362,"d":"261,508"},{"$f":"'BP Financier'!$G$44*(('BP Financier'!$C$19+'BP Financier'!$D$19+'BP Financier'!$E$19+'BP Financier'!$F$19+'BP Financier'!$G$19)/('BP Financier'!$C$16+'BP Financier'!$C$19+'BP Financier'!$D$16+'BP Financier'!$D$19+'BP Financier'!$E$16+'BP Financier'!$E$19+'BP Financier'!$C$22+'BP Financier'!$D$22+'BP Financier'!$E$22+'BP Financier'!$F$22+'BP Financier'!$F$19+'BP Financier'!$F$16+'BP Financier'!$G$22+'BP Financier'!$G$19+'BP Financier'!$G$16))*$V9266*X9266/(1-$W9266)","v":{"v":33286.152441697435,"d":"33,286"}},{"$f":"'BP Financier'!$G$44*(('BP Financier'!$C$19+'BP Financier'!$D$19+'BP Financier'!$E$19+'BP Financier'!$F$19+'BP Financier'!$G$19)/('BP Financier'!$C$16+'BP Financier'!$C$19+'BP Financier'!$D$16+'BP Financier'!$D$19+'BP Financier'!$E$16+'BP Financier'!$E$19+'BP Financier'!$C$22+'BP Financier'!$D$22+'BP Financier'!$E$22+'BP Financier'!$F$22+'BP Financier'!$F$19+'BP Financier'!$F$16+'BP Financier'!$G$22+'BP Financier'!$G$19+'BP Financier'!$G$16))*$V9266*Y9266/(1-$W9266)","v":{"v":22252.068759366786,"d":"22,252"}},{"$f":"'BP Financier'!$G$44*(('BP Financier'!$C$19+'BP Financier'!$D$19+'BP Financier'!$E$19+'BP Financier'!$F$19+'BP Financier'!$G$19)/('BP Financier'!$C$16+'BP Financier'!$C$19+'BP Financier'!$D$16+'BP Financier'!$D$19+'BP Financier'!$E$16+'BP Financier'!$E$19+'BP Financier'!$C$22+'BP Financier'!$D$22+'BP Financier'!$E$22+'BP Financier'!$F$22+'BP Financier'!$F$19+'BP Financier'!$F$16+'BP Financier'!$G$22+'BP Financier'!$G$19+'BP Financier'!$G$16))*$V9266*Z9266/(1-$W9266)","v":{"v":174154.6207861186,"d":"174,155"}},{"$f":"'BP Financier'!$G$44*(('BP Financier'!$C$19+'BP Financier'!$D$19+'BP Financier'!$E$19+'BP Financier'!$F$19+'BP Financier'!$G$19)/('BP Financier'!$C$16+'BP Financier'!$C$19+'BP Financier'!$D$16+'BP Financier'!$D$19+'BP Financier'!$E$16+'BP Financier'!$E$19+'BP Financier'!$C$22+'BP Financier'!$D$22+'BP Financier'!$E$22+'BP Financier'!$F$22+'BP Financier'!$F$19+'BP Financier'!$F$16+'BP Financier'!$G$22+'BP Financier'!$G$19+'BP Financier'!$G$16))*$V9266*AA9266/(1-$W9266)","v":{"v":21516.46318054475,"d":"21,516"}},{"$f":"'BP Financier'!$G$44*(('BP Financier'!$C$19+'BP Financier'!$D$19+'BP Financier'!$E$19+'BP Financier'!$F$19+'BP Financier'!$G$19)/('BP Financier'!$C$16+'BP Financier'!$C$19+'BP Financier'!$D$16+'BP Financier'!$D$19+'BP Financier'!$E$16+'BP Financier'!$E$19+'BP Financier'!$C$22+'BP Financier'!$D$22+'BP Financier'!$E$22+'BP Financier'!$F$22+'BP Financier'!$F$19+'BP Financier'!$F$16+'BP Financier'!$G$22+'BP Financier'!$G$19+'BP Financier'!$G$16))*$V9266*AB9266/(1-$W9266)","v":{"v":10298.478103508596,"d":"10,298"}},null,{"v":0.008,"d":"0.80%"},{"$f":"Actif!$E$28/100","v":{"v":0.28900000000000003,"d":"28.90%"}},{"$f":"Actif!$E$30/100","v":{"v":0.09050000000000001,"d":"9.05%"}},{"$f":"Actif!$E$31/100","v":{"v":0.0605,"d":"6.05%"}},{"$f":"Actif!$E$32/100","v":{"v":0.47350000000000003,"d":"47.35%"}},{"$f":"Actif!$E$33/100","v":{"v":0.0585,"d":"5.85%"}},{"$f":"Actif!$E$29/100","v":{"v":0.027999999999999997,"d":"2.80%"}}]
[null,"#151",48,2026,"H","A_PER",{"v":0.44999999999999996,"d":"0.45"},{"v":0.38999999999999996,"d":"0.39"},0.6,0.6,85,0,{"$f":"ROUND(Primes!$Q$7*V9267,0)","v":11},{"$f":"'BP Financier'!$G$33*(('BP Financier'!$C$19+'BP Financier'!$D$19+'BP Financier'!$E$19+'BP Financier'!$F$19+'BP Financier'!$G$19)/('BP Financier'!$C$16+'BP Financier'!$C$19+'BP Financier'!$D$16+'BP Financier'!$D$19+'BP Financier'!$E$16+'BP Financier'!$E$19+'BP Financier'!$F$16+'BP Financier'!$F$19+'BP Financier'!$G$16+'BP Financier'!$G$19))*V9267","v":{"v":455640.45778982196,"d":"455,640"}},{"v":261507.7832712362,"d":"261,508"},{"$f":"'BP Financier'!$G$44*(('BP Financier'!$C$19+'BP Financier'!$D$19+'BP Financier'!$E$19+'BP Financier'!$F$19+'BP Financier'!$G$19)/('BP Financier'!$C$16+'BP Financier'!$C$19+'BP Financier'!$D$16+'BP Financier'!$D$19+'BP Financier'!$E$16+'BP Financier'!$E$19+'BP Financier'!$C$22+'BP Financier'!$D$22+'BP Financier'!$E$22+'BP Financier'!$F$22+'BP Financier'!$F$19+'BP Financier'!$F$16+'BP Financier'!$G$22+'BP Financier'!$G$19+'BP Financier'!$G$16))*$V9267*X9267/(1-$W9267)","v":{"v":33286.152441697435,"d":"33,286"}},{"$f":"'BP Financier'!$G$44*(('BP Financier'!$C$19+'BP Financier'!$D$19+'BP Financier'!$E$19+'BP Financier'!$F$19+'BP Financier'!$G$19)/('BP Financier'!$C$16+'BP Financier'!$C$19+'BP Financier'!$D$16+'BP Financier'!$D$19+'BP Financier'!$E$16+'BP Financier'!$E$19+'BP Financier'!$C$22+'BP Financier'!$D$22+'BP Financier'!$E$22+'BP Financier'!$F$22+'BP Financier'!$F$19+'BP Financier'!$F$16+'BP Financier'!$G$22+'BP Financier'!$G$19+'BP Financier'!$G$16))*$V9267*Y9267/(1-$W9267)","v":{"v":22252.068759366786,"d":"22,252"}},{"$f":"'BP Financier'!$G$44*(('BP Financier'!$C$19+'BP Financier'!$D$19+'BP Financier'!$E$19+'BP Financier'!$F$19+'BP Financier'!$G$19)/('BP Financier'!$C$16+'BP Financier'!$C$19+'BP Financier'!$D$16+'BP Financier'!$D$19+'BP Financier'!$E$16+'BP Financier'!$E$19+'BP Financier'!$C$22+'BP Financier'!$D$22+'BP Financier'!$E$22+'BP Financier'!$F$22+'BP Financier'!$F$19+'BP Financier'!$F$16+'BP Financier'!$G$22+'BP Financier'!$G$19+'BP Financier'!$G$16))*$V9267*Z9267/(1-$W9267)","v":{"v":174154.6207861186,"d":"174,155"}},{"$f":"'BP Financier'!$G$44*(('BP Financier'!$C$19+'BP Financier'!$D$19+'BP Financier'!$E$19+'BP Financier'!$F$19+'BP Financier'!$G$19)/('BP Financier'!$C$16+'BP Financier'!$C$19+'BP Financier'!$D$16+'BP Financier'!$D$19+'BP Financier'!$E$16+'BP Financier'!$E$19+'BP Financier'!$C$22+'BP Financier'!$D$22+'BP Financier'!$E$22+'BP Financier'!$F$22+'BP Financier'!$F$19+'BP Financier'!$F$16+'BP Financier'!$G$22+'BP Financier'!$G$19+'BP Financier'!$G$16))*$V9267*AA9267/(1-$W9267)","v":{"v":21516.46318054475,"d":"21,516"}},{"$f":"'BP Financier'!$G$44*(('BP Financier'!$C$19+'BP Financier'!$D$19+'BP Financier'!$E$19+'BP Financier'!$F$19+'BP Financier'!$G$19)/('BP Financier'!$C$16+'BP Financier'!$C$19+'BP Financier'!$D$16+'BP Financier'!$D$19+'BP Financier'!$E$16+'BP Financier'!$E$19+'BP Financier'!$C$22+'BP Financier'!$D$22+'BP Financier'!$E$22+'BP Financier'!$F$22+'BP Financier'!$F$19+'BP Financier'!$F$16+'BP Financier'!$G$22+'BP Financier'!$G$19+'BP Financier'!$G$16))*$V9267*AB9267/(1-$W9267)","v":{"v":10298.478103508596,"d":"10,298"}},null,{"v":0.008,"d":"0.80%"},{"$f":"Actif!$E$28/100","v":{"v":0.28900000000000003,"d":"28.90%"}},{"$f":"Actif!$E$30/100","v":{"v":0.09050000000000001,"d":"9.05%"}},{"$f":"Actif!$E$31/100","v":{"v":0.0605,"d":"6.05%"}},{"$f":"Actif!$E$32/100","v":{"v":0.47350000000000003,"d":"47.35%"}},{"$f":"Actif!$E$33/100","v":{"v":0.0585,"d":"5.85%"}},{"$f":"Actif!$E$29/100","v":{"v":0.027999999999999997,"d":"2.80%"}}]
[null,"#152",48,2028,"H","A_PER",{"v":0.44999999999999996,"d":"0.45"},{"v":0.38999999999999996,"d":"0.39"},0.6,0.6,85,0,{"$f":"ROUND(Primes!$Q$7*V9268,0)","v":11},{"$f":"'BP Financier'!$G$33*(('BP Financier'!$C$19+'BP Financier'!$D$19+'BP Financier'!$E$19+'BP Financier'!$F$19+'BP Financier'!$G$19)/('BP Financier'!$C$16+'BP Financier'!$C$19+'BP Financier'!$D$16+'BP Financier'!$D$19+'BP Financier'!$E$16+'BP Financier'!$E$19+'BP Financier'!$F$16+'BP Financier'!$F$19+'BP Financier'!$G$16+'BP Financier'!$G$19))*V9268","v":{"v":455640.45778982196,"d":"455,640"}},{"v":261507.7832712362,"d":"261,508"},{"$f":"'BP Financier'!$G$44*(('BP Financier'!$C$19+'BP Financier'!$D$19+'BP Financier'!$E$19+'BP Financier'!$F$19+'BP Financier'!$G$19)/('BP Financier'!$C$16+'BP Financier'!$C$19+'BP Financier'!$D$16+'BP Financier'!$D$19+'BP Financier'!$E$16+'BP Financier'!$E$19+'BP Financier'!$C$22+'BP Financier'!$D$22+'BP Financier'!$E$22+'BP Financier'!$F$22+'BP Financier'!$F$19+'BP Financier'!$F$16+'BP Financier'!$G$22+'BP Financier'!$G$19+'BP Financier'!$G$16))*$V9268*X9268/(1-$W9268)","v":{"v":33286.152441697435,"d":"33,286"}},{"$f":"'BP Financier'!$G$44*(('BP Financier'!$C$19+'BP Financier'!$D$19+'BP Financier'!$E$19+'BP Financier'!$F$19+'BP Financier'!$G$19)/('BP Financier'!$C$16+'BP Financier'!$C$19+'BP Financier'!$D$16+'BP Financier'!$D$19+'BP Financier'!$E$16+'BP Financier'!$E$19+'BP Financier'!$C$22+'BP Financier'!$D$22+'BP Financier'!$E$22+'BP Financier'!$F$22+'BP Financier'!$F$19+'BP Financier'!$F$16+'BP Financier'!$G$22+'BP Financier'!$G$19+'BP Financier'!$G$16))*$V9268*Y9268/(1-$W9268)","v":{"v":22252.068759366786,"d":"22,252"}},{"$f":"'BP Financier'!$G$44*(('BP Financier'!$C$19+'BP Financier'!$D$19+'BP Financier'!$E$19+'BP Financier'!$F$19+'BP Financier'!$G$19)/('BP Financier'!$C$16+'BP Financier'!$C$19+'BP Financier'!$D$16+'BP Financier'!$D$19+'BP Financier'!$E$16+'BP Financier'!$E$19+'BP Financier'!$C$22+'BP Financier'!$D$22+'BP Financier'!$E$22+'BP Financier'!$F$22+'BP Financier'!$F$19+'BP Financier'!$F$16+'BP Financier'!$G$22+'BP Financier'!$G$19+'BP Financier'!$G$16))*$V9268*Z9268/(1-$W9268)","v":{"v":174154.6207861186,"d":"174,155"}},{"$f":"'BP Financier'!$G$44*(('BP Financier'!$C$19+'BP Financier'!$D$19+'BP Financier'!$E$19+'BP Financier'!$F$19+'BP Financier'!$G$19)/('BP Financier'!$C$16+'BP Financier'!$C$19+'BP Financier'!$D$16+'BP Financier'!$D$19+'BP Financier'!$E$16+'BP Financier'!$E$19+'BP Financier'!$C$22+'BP Financier'!$D$22+'BP Financier'!$E$22+'BP Financier'!$F$22+'BP Financier'!$F$19+'BP Financier'!$F$16+'BP Financier'!$G$22+'BP Financier'!$G$19+'BP Financier'!$G$16))*$V9268*AA9268/(1-$W9268)","v":{"v":21516.46318054475,"d":"21,516"}},{"$f":"'BP Financier'!$G$44*(('BP Financier'!$C$19+'BP Financier'!$D$19+'BP Financier'!$E$19+'BP Financier'!$F$19+'BP Financier'!$G$19)/('BP Financier'!$C$16+'BP Financier'!$C$19+'BP Financier'!$D$16+'BP Financier'!$D$19+'BP Financier'!$E$16+'BP Financier'!$E$19+'BP Financier'!$C$22+'BP Financier'!$D$22+'BP Financier'!$E$22+'BP Financier'!$F$22+'BP Financier'!$F$19+'BP Financier'!$F$16+'BP Financier'!$G$22+'BP Financier'!$G$19+'BP Financier'!$G$16))*$V9268*AB9268/(1-$W9268)","v":{"v":10298.478103508596,"d":"10,298"}},null,{"v":0.008,"d":"0.80%"},{"$f":"Actif!$E$28/100","v":{"v":0.28900000000000003,"d":"28.90%"}},{"$f":"Actif!$E$30/100","v":{"v":0.09050000000000001,"d":"9.05%"}},{"$f":"Actif!$E$31/100","v":{"v":0.0605,"d":"6.05%"}},{"$f":"Actif!$E$32/100","v":{"v":0.47350000000000003,"d":"47.35%"}},{"$f":"Actif!$E$33/100","v":{"v":0.0585,"d":"5.85%"}},{"$f":"Actif!$E$29/100","v":{"v":0.027999999999999997,"d":"2.80%"}}]
[null,"#153",48,2029,"H","A_PER",{"v":0.44999999999999996,"d":"0.45"},{"v":0.38999999999999996,"d":"0.39"},0.6,0.6,85,0,{"$f":"ROUND(Primes!$Q$7*V9269,0)","v":11},{"$f":"'BP Financier'!$G$33*(('BP Financier'!$C$19+'BP Financier'!$D$19+'BP Financier'!$E$19+'BP Financier'!$F$19+'BP Financier'!$G$19)/('BP Financier'!$C$16+'BP Financier'!$C$19+'BP Financier'!$D$16+'BP Financier'!$D$19+'BP Financier'!$E$16+'BP Financier'!$E$19+'BP Financier'!$F$16+'BP Financier'!$F$19+'BP Financier'!$G$16+'BP Financier'!$G$19))*V9269","v":{"v":455640.45778982196,"d":"455,640"}},{"v":261507.7832712362,"d":"261,508"},{"$f":"'BP Financier'!$G$44*(('BP Financier'!$C$19+'BP Financier'!$D$19+'BP Financier'!$E$19+'BP Financier'!$F$19+'BP Financier'!$G$19)/('BP Financier'!$C$16+'BP Financier'!$C$19+'BP Financier'!$D$16+'BP Financier'!$D$19+'BP Financier'!$E$16+'BP Financier'!$E$19+'BP Financier'!$C$22+'BP Financier'!$D$22+'BP Financier'!$E$22+'BP Financier'!$F$22+'BP Financier'!$F$19+'BP Financier'!$F$16+'BP Financier'!$G$22+'BP Financier'!$G$19+'BP Financier'!$G$16))*$V9269*X9269/(1-$W9269)","v":{"v":33286.152441697435,"d":"33,286"}},{"$f":"'BP Financier'!$G$44*(('BP Financier'!$C$19+'BP Financier'!$D$19+'BP Financier'!$E$19+'BP Financier'!$F$19+'BP Financier'!$G$19)/('BP Financier'!$C$16+'BP Financier'!$C$19+'BP Financier'!$D$16+'BP Financier'!$D$19+'BP Financier'!$E$16+'BP Financier'!$E$19+'BP Financier'!$C$22+'BP Financier'!$D$22+'BP Financier'!$E$22+'BP Financier'!$F$22+'BP Financier'!$F$19+'BP Financier'!$F$16+'BP Financier'!$G$22+'BP Financier'!$G$19+'BP Financier'!$G$16))*$V9269*Y9269/(1-$W9269)","v":{"v":22252.068759366786,"d":"22,252"}},{"$f":"'BP Financier'!$G$44*(('BP Financier'!$C$19+'BP Financier'!$D$19+'BP Financier'!$E$19+'BP Financier'!$F$19+'BP Financier'!$G$19)/('BP Financier'!$C$16+'BP Financier'!$C$19+'BP Financier'!$D$16+'BP Financier'!$D$19+'BP Financier'!$E$16+'BP Financier'!$E$19+'BP Financier'!$C$22+'BP Financier'!$D$22+'BP Financier'!$E$22+'BP Financier'!$F$22+'BP Financier'!$F$19+'BP Financier'!$F$16+'BP Financier'!$G$22+'BP Financier'!$G$19+'BP Financier'!$G$16))*$V9269*Z9269/(1-$W9269)","v":{"v":174154.6207861186,"d":"174,155"}},{"$f":"'BP Financier'!$G$44*(('BP Financier'!$C$19+'BP Financier'!$D$19+'BP Financier'!$E$19+'BP Financier'!$F$19+'BP Financier'!$G$19)/('BP Financier'!$C$16+'BP Financier'!$C$19+'BP Financier'!$D$16+'BP Financier'!$D$19+'BP Financier'!$E$16+'BP Financier'!$E$19+'BP Financier'!$C$22+'BP Financier'!$D$22+'BP Financier'!$E$22+'BP Financier'!$F$22+'BP Financier'!$F$19+'BP Financier'!$F$16+'BP Financier'!$G$22+'BP Financier'!$G$19+'BP Financier'!$G$16))*$V9269*AA9269/(1-$W9269)","v":{"v":21516.46318054475,"d":"21,516"}},{"$f":"'BP Financier'!$G$44*(('BP Financier'!$C$19+'BP Financier'!$D$19+'BP Financier'!$E$19+'BP Financier'!$F$19+'BP Financier'!$G$19)/('BP Financier'!$C$16+'BP Financier'!$C$19+'BP Financier'!$D$16+'BP Financier'!$D$19+'BP Financier'!$E$16+'BP Financier'!$E$19+'BP Financier'!$C$22+'BP Financier'!$D$22+'BP Financier'!$E$22+'BP Financier'!$F$22+'BP Financier'!$F$19+'BP Financier'!$F$16+'BP Financier'!$G$22+'BP Financier'!$G$19+'BP Financier'!$G$16))*$V9269*AB9269/(1-$W9269)","v":{"v":10298.478103508596,"d":"10,298"}},null,{"v":0.008,"d":"0.80%"},{"$f":"Actif!$E$28/100","v":{"v":0.28900000000000003,"d":"28.90%"}},{"$f":"Actif!$E$30/100","v":{"v":0.09050000000000001,"d":"9.05%"}},{"$f":"Actif!$E$31/100","v":{"v":0.0605,"d":"6.05%"}},{"$f":"Actif!$E$32/100","v":{"v":0.47350000000000003,"d":"47.35%"}},{"$f":"Actif!$E$33/100","v":{"v":0.0585,"d":"5.85%"}},{"$f":"Actif!$E$29/100","v":{"v":0.027999999999999997,"d":"2.80%"}}]
[null,"#154",48,2030,"H","A_PER",{"v":0.44999999999999996,"d":"0.45"},{"v":0.38999999999999996,"d":"0.39"},0.6,0.6,85,0,{"$f":"ROUND(Primes!$Q$7*V9270,0)","v":11},{"$f":"'BP Financier'!$G$33*(('BP Financier'!$C$19+'BP Financier'!$D$19+'BP Financier'!$E$19+'BP Financier'!$F$19+'BP Financier'!$G$19)/('BP Financier'!$C$16+'BP Financier'!$C$19+'BP Financier'!$D$16+'BP Financier'!$D$19+'BP Financier'!$E$16+'BP Financier'!$E$19+'BP Financier'!$F$16+'BP Financier'!$F$19+'BP Financier'!$G$16+'BP Financier'!$G$19))*V9270","v":{"v":455640.45778982196,"d":"455,640"}},{"v":261507.7832712362,"d":"261,508"},{"$f":"'BP Financier'!$G$44*(('BP Financier'!$C$19+'BP Financier'!$D$19+'BP Financier'!$E$19+'BP Financier'!$F$19+'BP Financier'!$G$19)/('BP Financier'!$C$16+'BP Financier'!$C$19+'BP Financier'!$D$16+'BP Financier'!$D$19+'BP Financier'!$E$16+'BP Financier'!$E$19+'BP Financier'!$C$22+'BP Financier'!$D$22+'BP Financier'!$E$22+'BP Financier'!$F$22+'BP Financier'!$F$19+'BP Financier'!$F$16+'BP Financier'!$G$22+'BP Financier'!$G$19+'BP Financier'!$G$16))*$V9270*X9270/(1-$W9270)","v":{"v":33286.152441697435,"d":"33,286"}},{"$f":"'BP Financier'!$G$44*(('BP Financier'!$C$19+'BP Financier'!$D$19+'BP Financier'!$E$19+'BP Financier'!$F$19+'BP Financier'!$G$19)/('BP Financier'!$C$16+'BP Financier'!$C$19+'BP Financier'!$D$16+'BP Financier'!$D$19+'BP Financier'!$E$16+'BP Financier'!$E$19+'BP Financier'!$C$22+'BP Financier'!$D$22+'BP Financier'!$E$22+'BP Financier'!$F$22+'BP Financier'!$F$19+'BP Financier'!$F$16+'BP Financier'!$G$22+'BP Financier'!$G$19+'BP Financier'!$G$16))*$V9270*Y9270/(1-$W9270)","v":{"v":22252.068759366786,"d":"22,252"}},{"$f":"'BP Financier'!$G$44*(('BP Financier'!$C$19+'BP Financier'!$D$19+'BP Financier'!$E$19+'BP Financier'!$F$19+'BP Financier'!$G$19)/('BP Financier'!$C$16+'BP Financier'!$C$19+'BP Financier'!$D$16+'BP Financier'!$D$19+'BP Financier'!$E$16+'BP Financier'!$E$19+'BP Financier'!$C$22+'BP Financier'!$D$22+'BP Financier'!$E$22+'BP Financier'!$F$22+'BP Financier'!$F$19+'BP Financier'!$F$16+'BP Financier'!$G$22+'BP Financier'!$G$19+'BP Financier'!$G$16))*$V9270*Z9270/(1-$W9270)","v":{"v":174154.6207861186,"d":"174,155"}},{"$f":"'BP Financier'!$G$44*(('BP Financier'!$C$19+'BP Financier'!$D$19+'BP Financier'!$E$19+'BP Financier'!$F$19+'BP Financier'!$G$19)/('BP Financier'!$C$16+'BP Financier'!$C$19+'BP Financier'!$D$16+'BP Financier'!$D$19+'BP Financier'!$E$16+'BP Financier'!$E$19+'BP Financier'!$C$22+'BP Financier'!$D$22+'BP Financier'!$E$22+'BP Financier'!$F$22+'BP Financier'!$F$19+'BP Financier'!$F$16+'BP Financier'!$G$22+'BP Financier'!$G$19+'BP Financier'!$G$16))*$V9270*AA9270/(1-$W9270)","v":{"v":21516.46318054475,"d":"21,516"}},{"$f":"'BP Financier'!$G$44*(('BP Financier'!$C$19+'BP Financier'!$D$19+'BP Financier'!$E$19+'BP Financier'!$F$19+'BP Financier'!$G$19)/('BP Financier'!$C$16+'BP Financier'!$C$19+'BP Financier'!$D$16+'BP Financier'!$D$19+'BP Financier'!$E$16+'BP Financier'!$E$19+'BP Financier'!$C$22+'BP Financier'!$D$22+'BP Financier'!$E$22+'BP Financier'!$F$22+'BP Financier'!$F$19+'BP Financier'!$F$16+'BP Financier'!$G$22+'BP Financier'!$G$19+'BP Financier'!$G$16))*$V9270*AB9270/(1-$W9270)","v":{"v":10298.478103508596,"d":"10,298"}},null,{"v":0.008,"d":"0.80%"},{"$f":"Actif!$E$28/100","v":{"v":0.28900000000000003,"d":"28.90%"}},{"$f":"Actif!$E$30/100","v":{"v":0.09050000000000001,"d":"9.05%"}},{"$f":"Actif!$E$31/100","v":{"v":0.0605,"d":"6.05%"}},{"$f":"Actif!$E$32/100","v":{"v":0.47350000000000003,"d":"47.35%"}},{"$f":"Actif!$E$33/100","v":{"v":0.0585,"d":"5.85%"}},{"$f":"Actif!$E$29/100","v":{"v":0.027999999999999997,"d":"2.80%"}}]
[null,"#155",48,2031,"H","A_PER",{"v":0.44999999999999996,"d":"0.45"},{"v":0.38999999999999996,"d":"0.39"},0.6,0.6,85,0,{"$f":"ROUND(Primes!$Q$7*V9271,0)","v":11},{"$f":"'BP Financier'!$G$33*(('BP Financier'!$C$19+'BP Financier'!$D$19+'BP Financier'!$E$19+'BP Financier'!$F$19+'BP Financier'!$G$19)/('BP Financier'!$C$16+'BP Financier'!$C$19+'BP Financier'!$D$16+'BP Financier'!$D$19+'BP Financier'!$E$16+'BP Financier'!$E$19+'BP Financier'!$F$16+'BP Financier'!$F$19+'BP Financier'!$G$16+'BP Financier'!$G$19))*V9271","v":{"v":455640.45778982196,"d":"455,640"}},{"v":261507.7832712362,"d":"261,508"},{"$f":"'BP Financier'!$G$44*(('BP Financier'!$C$19+'BP Financier'!$D$19+'BP Financier'!$E$19+'BP Financier'!$F$19+'BP Financier'!$G$19)/('BP Financier'!$C$16+'BP Financier'!$C$19+'BP Financier'!$D$16+'BP Financier'!$D$19+'BP Financier'!$E$16+'BP Financier'!$E$19+'BP Financier'!$C$22+'BP Financier'!$D$22+'BP Financier'!$E$22+'BP Financier'!$F$22+'BP Financier'!$F$19+'BP Financier'!$F$16+'BP Financier'!$G$22+'BP Financier'!$G$19+'BP Financier'!$G$16))*$V9271*X9271/(1-$W9271)","v":{"v":33286.152441697435,"d":"33,286"}},{"$f":"'BP Financier'!$G$44*(('BP Financier'!$C$19+'BP Financier'!$D$19+'BP Financier'!$E$19+'BP Financier'!$F$19+'BP Financier'!$G$19)/('BP Financier'!$C$16+'BP Financier'!$C$19+'BP Financier'!$D$16+'BP Financier'!$D$19+'BP Financier'!$E$16+'BP Financier'!$E$19+'BP Financier'!$C$22+'BP Financier'!$D$22+'BP Financier'!$E$22+'BP Financier'!$F$22+'BP Financier'!$F$19+'BP Financier'!$F$16+'BP Financier'!$G$22+'BP Financier'!$G$19+'BP Financier'!$G$16))*$V9271*Y9271/(1-$W9271)","v":{"v":22252.068759366786,"d":"22,252"}},{"$f":"'BP Financier'!$G$44*(('BP Financier'!$C$19+'BP Financier'!$D$19+'BP Financier'!$E$19+'BP Financier'!$F$19+'BP Financier'!$G$19)/('BP Financier'!$C$16+'BP Financier'!$C$19+'BP Financier'!$D$16+'BP Financier'!$D$19+'BP Financier'!$E$16+'BP Financier'!$E$19+'BP Financier'!$C$22+'BP Financier'!$D$22+'BP Financier'!$E$22+'BP Financier'!$F$22+'BP Financier'!$F$19+'BP Financier'!$F$16+'BP Financier'!$G$22+'BP Financier'!$G$19+'BP Financier'!$G$16))*$V9271*Z9271/(1-$W9271)","v":{"v":174154.6207861186,"d":"174,155"}},{"$f":"'BP Financier'!$G$44*(('BP Financier'!$C$19+'BP Financier'!$D$19+'BP Financier'!$E$19+'BP Financier'!$F$19+'BP Financier'!$G$19)/('BP Financier'!$C$16+'BP Financier'!$C$19+'BP Financier'!$D$16+'BP Financier'!$D$19+'BP Financier'!$E$16+'BP Financier'!$E$19+'BP Financier'!$C$22+'BP Financier'!$D$22+'BP Financier'!$E$22+'BP Financier'!$F$22+'BP Financier'!$F$19+'BP Financier'!$F$16+'BP Financier'!$G$22+'BP Financier'!$G$19+'BP Financier'!$G$16))*$V9271*AA9271/(1-$W9271)","v":{"v":21516.46318054475,"d":"21,516"}},{"$f":"'BP Financier'!$G$44*(('BP Financier'!$C$19+'BP Financier'!$D$19+'BP Financier'!$E$19+'BP Financier'!$F$19+'BP Financier'!$G$19)/('BP Financier'!$C$16+'BP Financier'!$C$19+'BP Financier'!$D$16+'BP Financier'!$D$19+'BP Financier'!$E$16+'BP Financier'!$E$19+'BP Financier'!$C$22+'BP Financier'!$D$22+'BP Financier'!$E$22+'BP Financier'!$F$22+'BP Financier'!$F$19+'BP Financier'!$F$16+'BP Financier'!$G$22+'BP Financier'!$G$19+'BP Financier'!$G$16))*$V9271*AB9271/(1-$W9271)","v":{"v":10298.478103508596,"d":"10,298"}},null,{"v":0.008,"d":"0.80%"},{"$f":"Actif!$E$28/100","v":{"v":0.28900000000000003,"d":"28.90%"}},{"$f":"Actif!$E$30/100","v":{"v":0.09050000000000001,"d":"9.05%"}},{"$f":"Actif!$E$31/100","v":{"v":0.0605,"d":"6.05%"}},{"$f":"Actif!$E$32/100","v":{"v":0.47350000000000003,"d":"47.35%"}},{"$f":"Actif!$E$33/100","v":{"v":0.0585,"d":"5.85%"}},{"$f":"Actif!$E$29/100","v":{"v":0.027999999999999997,"d":"2.80%"}}]
[null,"#156",49,2026,"H","A_PER",{"v":0.44999999999999996,"d":"0.45"},{"v":0.38999999999999996,"d":"0.39"},0.6,0.6,85,0,{"$f":"ROUND(Primes!$Q$7*V9272,0)","v":11},{"$f":"'BP Financier'!$G$33*(('BP Financier'!$C$19+'BP Financier'!$D$19+'BP Financier'!$E$19+'BP Financier'!$F$19+'BP Financier'!$G$19)/('BP Financier'!$C$16+'BP Financier'!$C$19+'BP Financier'!$D$16+'BP Financier'!$D$19+'BP Financier'!$E$16+'BP Financier'!$E$19+'BP Financier'!$F$16+'BP Financier'!$F$19+'BP Financier'!$G$16+'BP Financier'!$G$19))*V9272","v":{"v":455640.45778982196,"d":"455,640"}},{"v":261507.7832712362,"d":"261,508"},{"$f":"'BP Financier'!$G$44*(('BP Financier'!$C$19+'BP Financier'!$D$19+'BP Financier'!$E$19+'BP Financier'!$F$19+'BP Financier'!$G$19)/('BP Financier'!$C$16+'BP Financier'!$C$19+'BP Financier'!$D$16+'BP Financier'!$D$19+'BP Financier'!$E$16+'BP Financier'!$E$19+'BP Financier'!$C$22+'BP Financier'!$D$22+'BP Financier'!$E$22+'BP Financier'!$F$22+'BP Financier'!$F$19+'BP Financier'!$F$16+'BP Financier'!$G$22+'BP Financier'!$G$19+'BP Financier'!$G$16))*$V9272*X9272/(1-$W9272)","v":{"v":33286.152441697435,"d":"33,286"}},{"$f":"'BP Financier'!$G$44*(('BP Financier'!$C$19+'BP Financier'!$D$19+'BP Financier'!$E$19+'BP Financier'!$F$19+'BP Financier'!$G$19)/('BP Financier'!$C$16+'BP Financier'!$C$19+'BP Financier'!$D$16+'BP Financier'!$D$19+'BP Financier'!$E$16+'BP Financier'!$E$19+'BP Financier'!$C$22+'BP Financier'!$D$22+'BP Financier'!$E$22+'BP Financier'!$F$22+'BP Financier'!$F$19+'BP Financier'!$F$16+'BP Financier'!$G$22+'BP Financier'!$G$19+'BP Financier'!$G$16))*$V9272*Y9272/(1-$W9272)","v":{"v":22252.068759366786,"d":"22,252"}},{"$f":"'BP Financier'!$G$44*(('BP Financier'!$C$19+'BP Financier'!$D$19+'BP Financier'!$E$19+'BP Financier'!$F$19+'BP Financier'!$G$19)/('BP Financier'!$C$16+'BP Financier'!$C$19+'BP Financier'!$D$16+'BP Financier'!$D$19+'BP Financier'!$E$16+'BP Financier'!$E$19+'BP Financier'!$C$22+'BP Financier'!$D$22+'BP Financier'!$E$22+'BP Financier'!$F$22+'BP Financier'!$F$19+'BP Financier'!$F$16+'BP Financier'!$G$22+'BP Financier'!$G$19+'BP Financier'!$G$16))*$V9272*Z9272/(1-$W9272)","v":{"v":174154.6207861186,"d":"174,155"}},{"$f":"'BP Financier'!$G$44*(('BP Financier'!$C$19+'BP Financier'!$D$19+'BP Financier'!$E$19+'BP Financier'!$F$19+'BP Financier'!$G$19)/('BP Financier'!$C$16+'BP Financier'!$C$19+'BP Financier'!$D$16+'BP Financier'!$D$19+'BP Financier'!$E$16+'BP Financier'!$E$19+'BP Financier'!$C$22+'BP Financier'!$D$22+'BP Financier'!$E$22+'BP Financier'!$F$22+'BP Financier'!$F$19+'BP Financier'!$F$16+'BP Financier'!$G$22+'BP Financier'!$G$19+'BP Financier'!$G$16))*$V9272*AA9272/(1-$W9272)","v":{"v":21516.46318054475,"d":"21,516"}},{"$f":"'BP Financier'!$G$44*(('BP Financier'!$C$19+'BP Financier'!$D$19+'BP Financier'!$E$19+'BP Financier'!$F$19+'BP Financier'!$G$19)/('BP Financier'!$C$16+'BP Financier'!$C$19+'BP Financier'!$D$16+'BP Financier'!$D$19+'BP Financier'!$E$16+'BP Financier'!$E$19+'BP Financier'!$C$22+'BP Financier'!$D$22+'BP Financier'!$E$22+'BP Financier'!$F$22+'BP Financier'!$F$19+'BP Financier'!$F$16+'BP Financier'!$G$22+'BP Financier'!$G$19+'BP Financier'!$G$16))*$V9272*AB9272/(1-$W9272)","v":{"v":10298.478103508596,"d":"10,298"}},null,{"v":0.008,"d":"0.80%"},{"$f":"Actif!$E$28/100","v":{"v":0.28900000000000003,"d":"28.90%"}},{"$f":"Actif!$E$30/100","v":{"v":0.09050000000000001,"d":"9.05%"}},{"$f":"Actif!$E$31/100","v":{"v":0.0605,"d":"6.05%"}},{"$f":"Actif!$E$32/100","v":{"v":0.47350000000000003,"d":"47.35%"}},{"$f":"Actif!$E$33/100","v":{"v":0.0585,"d":"5.85%"}},{"$f":"Actif!$E$29/100","v":{"v":0.027999999999999997,"d":"2.80%"}}]
[null,"#157",49,2028,"H","A_PER",{"v":0.44999999999999996,"d":"0.45"},{"v":0.38999999999999996,"d":"0.39"},0.6,0.6,85,0,{"$f":"ROUND(Primes!$Q$7*V9273,0)","v":11},{"$f":"'BP Financier'!$G$33*(('BP Financier'!$C$19+'BP Financier'!$D$19+'BP Financier'!$E$19+'BP Financier'!$F$19+'BP Financier'!$G$19)/('BP Financier'!$C$16+'BP Financier'!$C$19+'BP Financier'!$D$16+'BP Financier'!$D$19+'BP Financier'!$E$16+'BP Financier'!$E$19+'BP Financier'!$F$16+'BP Financier'!$F$19+'BP Financier'!$G$16+'BP Financier'!$G$19))*V9273","v":{"v":455640.45778982196,"d":"455,640"}},{"v":261507.7832712362,"d":"261,508"},{"$f":"'BP Financier'!$G$44*(('BP Financier'!$C$19+'BP Financier'!$D$19+'BP Financier'!$E$19+'BP Financier'!$F$19+'BP Financier'!$G$19)/('BP Financier'!$C$16+'BP Financier'!$C$19+'BP Financier'!$D$16+'BP Financier'!$D$19+'BP Financier'!$E$16+'BP Financier'!$E$19+'BP Financier'!$C$22+'BP Financier'!$D$22+'BP Financier'!$E$22+'BP Financier'!$F$22+'BP Financier'!$F$19+'BP Financier'!$F$16+'BP Financier'!$G$22+'BP Financier'!$G$19+'BP Financier'!$G$16))*$V9273*X9273/(1-$W9273)","v":{"v":33286.152441697435,"d":"33,286"}},{"$f":"'BP Financier'!$G$44*(('BP Financier'!$C$19+'BP Financier'!$D$19+'BP Financier'!$E$19+'BP Financier'!$F$19+'BP Financier'!$G$19)/('BP Financier'!$C$16+'BP Financier'!$C$19+'BP Financier'!$D$16+'BP Financier'!$D$19+'BP Financier'!$E$16+'BP Financier'!$E$19+'BP Financier'!$C$22+'BP Financier'!$D$22+'BP Financier'!$E$22+'BP Financier'!$F$22+'BP Financier'!$F$19+'BP Financier'!$F$16+'BP Financier'!$G$22+'BP Financier'!$G$19+'BP Financier'!$G$16))*$V9273*Y9273/(1-$W9273)","v":{"v":22252.068759366786,"d":"22,252"}},{"$f":"'BP Financier'!$G$44*(('BP Financier'!$C$19+'BP Financier'!$D$19+'BP Financier'!$E$19+'BP Financier'!$F$19+'BP Financier'!$G$19)/('BP Financier'!$C$16+'BP Financier'!$C$19+'BP Financier'!$D$16+'BP Financier'!$D$19+'BP Financier'!$E$16+'BP Financier'!$E$19+'BP Financier'!$C$22+'BP Financier'!$D$22+'BP Financier'!$E$22+'BP Financier'!$F$22+'BP Financier'!$F$19+'BP Financier'!$F$16+'BP Financier'!$G$22+'BP Financier'!$G$19+'BP Financier'!$G$16))*$V9273*Z9273/(1-$W9273)","v":{"v":174154.6207861186,"d":"174,155"}},{"$f":"'BP Financier'!$G$44*(('BP Financier'!$C$19+'BP Financier'!$D$19+'BP Financier'!$E$19+'BP Financier'!$F$19+'BP Financier'!$G$19)/('BP Financier'!$C$16+'BP Financier'!$C$19+'BP Financier'!$D$16+'BP Financier'!$D$19+'BP Financier'!$E$16+'BP Financier'!$E$19+'BP Financier'!$C$22+'BP Financier'!$D$22+'BP Financier'!$E$22+'BP Financier'!$F$22+'BP Financier'!$F$19+'BP Financier'!$F$16+'BP Financier'!$G$22+'BP Financier'!$G$19+'BP Financier'!$G$16))*$V9273*AA9273/(1-$W9273)","v":{"v":21516.46318054475,"d":"21,516"}},{"$f":"'BP Financier'!$G$44*(('BP Financier'!$C$19+'BP Financier'!$D$19+'BP Financier'!$E$19+'BP Financier'!$F$19+'BP Financier'!$G$19)/('BP Financier'!$C$16+'BP Financier'!$C$19+'BP Financier'!$D$16+'BP Financier'!$D$19+'BP Financier'!$E$16+'BP Financier'!$E$19+'BP Financier'!$C$22+'BP Financier'!$D$22+'BP Financier'!$E$22+'BP Financier'!$F$22+'BP Financier'!$F$19+'BP Financier'!$F$16+'BP Financier'!$G$22+'BP Financier'!$G$19+'BP Financier'!$G$16))*$V9273*AB9273/(1-$W9273)","v":{"v":10298.478103508596,"d":"10,298"}},null,{"v":0.008,"d":"0.80%"},{"$f":"Actif!$E$28/100","v":{"v":0.28900000000000003,"d":"28.90%"}},{"$f":"Actif!$E$30/100","v":{"v":0.09050000000000001,"d":"9.05%"}},{"$f":"Actif!$E$31/100","v":{"v":0.0605,"d":"6.05%"}},{"$f":"Actif!$E$32/100","v":{"v":0.47350000000000003,"d":"47.35%"}},{"$f":"Actif!$E$33/100","v":{"v":0.0585,"d":"5.85%"}},{"$f":"Actif!$E$29/100","v":{"v":0.027999999999999997,"d":"2.80%"}}]
[null,"#158",49,2029,"H","A_PER",{"v":0.44999999999999996,"d":"0.45"},{"v":0.38999999999999996,"d":"0.39"},0.6,0.6,85,0,{"$f":"ROUND(Primes!$Q$7*V9274,0)","v":11},{"$f":"'BP Financier'!$G$33*(('BP Financier'!$C$19+'BP Financier'!$D$19+'BP Financier'!$E$19+'BP Financier'!$F$19+'BP Financier'!$G$19)/('BP Financier'!$C$16+'BP Financier'!$C$19+'BP Financier'!$D$16+'BP Financier'!$D$19+'BP Financier'!$E$16+'BP Financier'!$E$19+'BP Financier'!$F$16+'BP Financier'!$F$19+'BP Financier'!$G$16+'BP Financier'!$G$19))*V9274","v":{"v":455640.45778982196,"d":"455,640"}},{"v":261507.7832712362,"d":"261,508"},{"$f":"'BP Financier'!$G$44*(('BP Financier'!$C$19+'BP Financier'!$D$19+'BP Financier'!$E$19+'BP Financier'!$F$19+'BP Financier'!$G$19)/('BP Financier'!$C$16+'BP Financier'!$C$19+'BP Financier'!$D$16+'BP Financier'!$D$19+'BP Financier'!$E$16+'BP Financier'!$E$19+'BP Financier'!$C$22+'BP Financier'!$D$22+'BP Financier'!$E$22+'BP Financier'!$F$22+'BP Financier'!$F$19+'BP Financier'!$F$16+'BP Financier'!$G$22+'BP Financier'!$G$19+'BP Financier'!$G$16))*$V9274*X9274/(1-$W9274)","v":{"v":33286.152441697435,"d":"33,286"}},{"$f":"'BP Financier'!$G$44*(('BP Financier'!$C$19+'BP Financier'!$D$19+'BP Financier'!$E$19+'BP Financier'!$F$19+'BP Financier'!$G$19)/('BP Financier'!$C$16+'BP Financier'!$C$19+'BP Financier'!$D$16+'BP Financier'!$D$19+'BP Financier'!$E$16+'BP Financier'!$E$19+'BP Financier'!$C$22+'BP Financier'!$D$22+'BP Financier'!$E$22+'BP Financier'!$F$22+'BP Financier'!$F$19+'BP Financier'!$F$16+'BP Financier'!$G$22+'BP Financier'!$G$19+'BP Financier'!$G$16))*$V9274*Y9274/(1-$W9274)","v":{"v":22252.068759366786,"d":"22,252"}},{"$f":"'BP Financier'!$G$44*(('BP Financier'!$C$19+'BP Financier'!$D$19+'BP Financier'!$E$19+'BP Financier'!$F$19+'BP Financier'!$G$19)/('BP Financier'!$C$16+'BP Financier'!$C$19+'BP Financier'!$D$16+'BP Financier'!$D$19+'BP Financier'!$E$16+'BP Financier'!$E$19+'BP Financier'!$C$22+'BP Financier'!$D$22+'BP Financier'!$E$22+'BP Financier'!$F$22+'BP Financier'!$F$19+'BP Financier'!$F$16+'BP Financier'!$G$22+'BP Financier'!$G$19+'BP Financier'!$G$16))*$V9274*Z9274/(1-$W9274)","v":{"v":174154.6207861186,"d":"174,155"}},{"$f":"'BP Financier'!$G$44*(('BP Financier'!$C$19+'BP Financier'!$D$19+'BP Financier'!$E$19+'BP Financier'!$F$19+'BP Financier'!$G$19)/('BP Financier'!$C$16+'BP Financier'!$C$19+'BP Financier'!$D$16+'BP Financier'!$D$19+'BP Financier'!$E$16+'BP Financier'!$E$19+'BP Financier'!$C$22+'BP Financier'!$D$22+'BP Financier'!$E$22+'BP Financier'!$F$22+'BP Financier'!$F$19+'BP Financier'!$F$16+'BP Financier'!$G$22+'BP Financier'!$G$19+'BP Financier'!$G$16))*$V9274*AA9274/(1-$W9274)","v":{"v":21516.46318054475,"d":"21,516"}},{"$f":"'BP Financier'!$G$44*(('BP Financier'!$C$19+'BP Financier'!$D$19+'BP Financier'!$E$19+'BP Financier'!$F$19+'BP Financier'!$G$19)/('BP Financier'!$C$16+'BP Financier'!$C$19+'BP Financier'!$D$16+'BP Financier'!$D$19+'BP Financier'!$E$16+'BP Financier'!$E$19+'BP Financier'!$C$22+'BP Financier'!$D$22+'BP Financier'!$E$22+'BP Financier'!$F$22+'BP Financier'!$F$19+'BP Financier'!$F$16+'BP Financier'!$G$22+'BP Financier'!$G$19+'BP Financier'!$G$16))*$V9274*AB9274/(1-$W9274)","v":{"v":10298.478103508596,"d":"10,298"}},null,{"v":0.008,"d":"0.80%"},{"$f":"Actif!$E$28/100","v":{"v":0.28900000000000003,"d":"28.90%"}},{"$f":"Actif!$E$30/100","v":{"v":0.09050000000000001,"d":"9.05%"}},{"$f":"Actif!$E$31/100","v":{"v":0.0605,"d":"6.05%"}},{"$f":"Actif!$E$32/100","v":{"v":0.47350000000000003,"d":"47.35%"}},{"$f":"Actif!$E$33/100","v":{"v":0.0585,"d":"5.85%"}},{"$f":"Actif!$E$29/100","v":{"v":0.027999999999999997,"d":"2.80%"}}]
[null,"#159",49,2030,"H","A_PER",{"v":0.44999999999999996,"d":"0.45"},{"v":0.38999999999999996,"d":"0.39"},0.6,0.6,85,0,{"$f":"ROUND(Primes!$Q$7*V9275,0)","v":11},{"$f":"'BP Financier'!$G$33*(('BP Financier'!$C$19+'BP Financier'!$D$19+'BP Financier'!$E$19+'BP Financier'!$F$19+'BP Financier'!$G$19)/('BP Financier'!$C$16+'BP Financier'!$C$19+'BP Financier'!$D$16+'BP Financier'!$D$19+'BP Financier'!$E$16+'BP Financier'!$E$19+'BP Financier'!$F$16+'BP Financier'!$F$19+'BP Financier'!$G$16+'BP Financier'!$G$19))*V9275","v":{"v":455640.45778982196,"d":"455,640"}},{"v":261507.7832712362,"d":"261,508"},{"$f":"'BP Financier'!$G$44*(('BP Financier'!$C$19+'BP Financier'!$D$19+'BP Financier'!$E$19+'BP Financier'!$F$19+'BP Financier'!$G$19)/('BP Financier'!$C$16+'BP Financier'!$C$19+'BP Financier'!$D$16+'BP Financier'!$D$19+'BP Financier'!$E$16+'BP Financier'!$E$19+'BP Financier'!$C$22+'BP Financier'!$D$22+'BP Financier'!$E$22+'BP Financier'!$F$22+'BP Financier'!$F$19+'BP Financier'!$F$16+'BP Financier'!$G$22+'BP Financier'!$G$19+'BP Financier'!$G$16))*$V9275*X9275/(1-$W9275)","v":{"v":33286.152441697435,"d":"33,286"}},{"$f":"'BP Financier'!$G$44*(('BP Financier'!$C$19+'BP Financier'!$D$19+'BP Financier'!$E$19+'BP Financier'!$F$19+'BP Financier'!$G$19)/('BP Financier'!$C$16+'BP Financier'!$C$19+'BP Financier'!$D$16+'BP Financier'!$D$19+'BP Financier'!$E$16+'BP Financier'!$E$19+'BP Financier'!$C$22+'BP Financier'!$D$22+'BP Financier'!$E$22+'BP Financier'!$F$22+'BP Financier'!$F$19+'BP Financier'!$F$16+'BP Financier'!$G$22+'BP Financier'!$G$19+'BP Financier'!$G$16))*$V9275*Y9275/(1-$W9275)","v":{"v":22252.068759366786,"d":"22,252"}},{"$f":"'BP Financier'!$G$44*(('BP Financier'!$C$19+'BP Financier'!$D$19+'BP Financier'!$E$19+'BP Financier'!$F$19+'BP Financier'!$G$19)/('BP Financier'!$C$16+'BP Financier'!$C$19+'BP Financier'!$D$16+'BP Financier'!$D$19+'BP Financier'!$E$16+'BP Financier'!$E$19+'BP Financier'!$C$22+'BP Financier'!$D$22+'BP Financier'!$E$22+'BP Financier'!$F$22+'BP Financier'!$F$19+'BP Financier'!$F$16+'BP Financier'!$G$22+'BP Financier'!$G$19+'BP Financier'!$G$16))*$V9275*Z9275/(1-$W9275)","v":{"v":174154.6207861186,"d":"174,155"}},{"$f":"'BP Financier'!$G$44*(('BP Financier'!$C$19+'BP Financier'!$D$19+'BP Financier'!$E$19+'BP Financier'!$F$19+'BP Financier'!$G$19)/('BP Financier'!$C$16+'BP Financier'!$C$19+'BP Financier'!$D$16+'BP Financier'!$D$19+'BP Financier'!$E$16+'BP Financier'!$E$19+'BP Financier'!$C$22+'BP Financier'!$D$22+'BP Financier'!$E$22+'BP Financier'!$F$22+'BP Financier'!$F$19+'BP Financier'!$F$16+'BP Financier'!$G$22+'BP Financier'!$G$19+'BP Financier'!$G$16))*$V9275*AA9275/(1-$W9275)","v":{"v":21516.46318054475,"d":"21,516"}},{"$f":"'BP Financier'!$G$44*(('BP Financier'!$C$19+'BP Financier'!$D$19+'BP Financier'!$E$19+'BP Financier'!$F$19+'BP Financier'!$G$19)/('BP Financier'!$C$16+'BP Financier'!$C$19+'BP Financier'!$D$16+'BP Financier'!$D$19+'BP Financier'!$E$16+'BP Financier'!$E$19+'BP Financier'!$C$22+'BP Financier'!$D$22+'BP Financier'!$E$22+'BP Financier'!$F$22+'BP Financier'!$F$19+'BP Financier'!$F$16+'BP Financier'!$G$22+'BP Financier'!$G$19+'BP Financier'!$G$16))*$V9275*AB9275/(1-$W9275)","v":{"v":10298.478103508596,"d":"10,298"}},null,{"v":0.008,"d":"0.80%"},{"$f":"Actif!$E$28/100","v":{"v":0.28900000000000003,"d":"28.90%"}},{"$f":"Actif!$E$30/100","v":{"v":0.09050000000000001,"d":"9.05%"}},{"$f":"Actif!$E$31/100","v":{"v":0.0605,"d":"6.05%"}},{"$f":"Actif!$E$32/100","v":{"v":0.47350000000000003,"d":"47.35%"}},{"$f":"Actif!$E$33/100","v":{"v":0.0585,"d":"5.85%"}},{"$f":"Actif!$E$29/100","v":{"v":0.027999999999999997,"d":"2.80%"}}]
[null,"#160",49,2031,"H","A_PER",{"v":0.44999999999999996,"d":"0.45"},{"v":0.38999999999999996,"d":"0.39"},0.6,0.6,85,0,{"$f":"ROUND(Primes!$Q$7*V9276,0)","v":11},{"$f":"'BP Financier'!$G$33*(('BP Financier'!$C$19+'BP Financier'!$D$19+'BP Financier'!$E$19+'BP Financier'!$F$19+'BP Financier'!$G$19)/('BP Financier'!$C$16+'BP Financier'!$C$19+'BP Financier'!$D$16+'BP Financier'!$D$19+'BP Financier'!$E$16+'BP Financier'!$E$19+'BP Financier'!$F$16+'BP Financier'!$F$19+'BP Financier'!$G$16+'BP Financier'!$G$19))*V9276","v":{"v":455640.45778982196,"d":"455,640"}},{"v":261507.7832712362,"d":"261,508"},{"$f":"'BP Financier'!$G$44*(('BP Financier'!$C$19+'BP Financier'!$D$19+'BP Financier'!$E$19+'BP Financier'!$F$19+'BP Financier'!$G$19)/('BP Financier'!$C$16+'BP Financier'!$C$19+'BP Financier'!$D$16+'BP Financier'!$D$19+'BP Financier'!$E$16+'BP Financier'!$E$19+'BP Financier'!$C$22+'BP Financier'!$D$22+'BP Financier'!$E$22+'BP Financier'!$F$22+'BP Financier'!$F$19+'BP Financier'!$F$16+'BP Financier'!$G$22+'BP Financier'!$G$19+'BP Financier'!$G$16))*$V9276*X9276/(1-$W9276)","v":{"v":33286.152441697435,"d":"33,286"}},{"$f":"'BP Financier'!$G$44*(('BP Financier'!$C$19+'BP Financier'!$D$19+'BP Financier'!$E$19+'BP Financier'!$F$19+'BP Financier'!$G$19)/('BP Financier'!$C$16+'BP Financier'!$C$19+'BP Financier'!$D$16+'BP Financier'!$D$19+'BP Financier'!$E$16+'BP Financier'!$E$19+'BP Financier'!$C$22+'BP Financier'!$D$22+'BP Financier'!$E$22+'BP Financier'!$F$22+'BP Financier'!$F$19+'BP Financier'!$F$16+'BP Financier'!$G$22+'BP Financier'!$G$19+'BP Financier'!$G$16))*$V9276*Y9276/(1-$W9276)","v":{"v":22252.068759366786,"d":"22,252"}},{"$f":"'BP Financier'!$G$44*(('BP Financier'!$C$19+'BP Financier'!$D$19+'BP Financier'!$E$19+'BP Financier'!$F$19+'BP Financier'!$G$19)/('BP Financier'!$C$16+'BP Financier'!$C$19+'BP Financier'!$D$16+'BP Financier'!$D$19+'BP Financier'!$E$16+'BP Financier'!$E$19+'BP Financier'!$C$22+'BP Financier'!$D$22+'BP Financier'!$E$22+'BP Financier'!$F$22+'BP Financier'!$F$19+'BP Financier'!$F$16+'BP Financier'!$G$22+'BP Financier'!$G$19+'BP Financier'!$G$16))*$V9276*Z9276/(1-$W9276)","v":{"v":174154.6207861186,"d":"174,155"}},{"$f":"'BP Financier'!$G$44*(('BP Financier'!$C$19+'BP Financier'!$D$19+'BP Financier'!$E$19+'BP Financier'!$F$19+'BP Financier'!$G$19)/('BP Financier'!$C$16+'BP Financier'!$C$19+'BP Financier'!$D$16+'BP Financier'!$D$19+'BP Financier'!$E$16+'BP Financier'!$E$19+'BP Financier'!$C$22+'BP Financier'!$D$22+'BP Financier'!$E$22+'BP Financier'!$F$22+'BP Financier'!$F$19+'BP Financier'!$F$16+'BP Financier'!$G$22+'BP Financier'!$G$19+'BP Financier'!$G$16))*$V9276*AA9276/(1-$W9276)","v":{"v":21516.46318054475,"d":"21,516"}},{"$f":"'BP Financier'!$G$44*(('BP Financier'!$C$19+'BP Financier'!$D$19+'BP Financier'!$E$19+'BP Financier'!$F$19+'BP Financier'!$G$19)/('BP Financier'!$C$16+'BP Financier'!$C$19+'BP Financier'!$D$16+'BP Financier'!$D$19+'BP Financier'!$E$16+'BP Financier'!$E$19+'BP Financier'!$C$22+'BP Financier'!$D$22+'BP Financier'!$E$22+'BP Financier'!$F$22+'BP Financier'!$F$19+'BP Financier'!$F$16+'BP Financier'!$G$22+'BP Financier'!$G$19+'BP Financier'!$G$16))*$V9276*AB9276/(1-$W9276)","v":{"v":10298.478103508596,"d":"10,298"}},null,{"v":0.008,"d":"0.80%"},{"$f":"Actif!$E$28/100","v":{"v":0.28900000000000003,"d":"28.90%"}},{"$f":"Actif!$E$30/100","v":{"v":0.09050000000000001,"d":"9.05%"}},{"$f":"Actif!$E$31/100","v":{"v":0.0605,"d":"6.05%"}},{"$f":"Actif!$E$32/100","v":{"v":0.47350000000000003,"d":"47.35%"}},{"$f":"Actif!$E$33/100","v":{"v":0.0585,"d":"5.85%"}},{"$f":"Actif!$E$29/100","v":{"v":0.027999999999999997,"d":"2.80%"}}]
[null,"#161",50,2026,"F","A_PER",{"v":0.44999999999999996,"d":"0.45"},{"v":0.38999999999999996,"d":"0.39"},0.6,0.6,85,0,{"$f":"ROUND(Primes!$Q$7*V9277,0)","v":11},{"$f":"'BP Financier'!$G$33*(('BP Financier'!$C$19+'BP Financier'!$D$19+'BP Financier'!$E$19+'BP Financier'!$F$19+'BP Financier'!$G$19)/('BP Financier'!$C$16+'BP Financier'!$C$19+'BP Financier'!$D$16+'BP Financier'!$D$19+'BP Financier'!$E$16+'BP Financier'!$E$19+'BP Financier'!$F$16+'BP Financier'!$F$19+'BP Financier'!$G$16+'BP Financier'!$G$19))*V9277","v":{"v":455640.45778982196,"d":"455,640"}},{"v":261507.7832712362,"d":"261,508"},{"$f":"'BP Financier'!$G$44*(('BP Financier'!$C$19+'BP Financier'!$D$19+'BP Financier'!$E$19+'BP Financier'!$F$19+'BP Financier'!$G$19)/('BP Financier'!$C$16+'BP Financier'!$C$19+'BP Financier'!$D$16+'BP Financier'!$D$19+'BP Financier'!$E$16+'BP Financier'!$E$19+'BP Financier'!$C$22+'BP Financier'!$D$22+'BP Financier'!$E$22+'BP Financier'!$F$22+'BP Financier'!$F$19+'BP Financier'!$F$16+'BP Financier'!$G$22+'BP Financier'!$G$19+'BP Financier'!$G$16))*$V9277*X9277/(1-$W9277)","v":{"v":33286.152441697435,"d":"33,286"}},{"$f":"'BP Financier'!$G$44*(('BP Financier'!$C$19+'BP Financier'!$D$19+'BP Financier'!$E$19+'BP Financier'!$F$19+'BP Financier'!$G$19)/('BP Financier'!$C$16+'BP Financier'!$C$19+'BP Financier'!$D$16+'BP Financier'!$D$19+'BP Financier'!$E$16+'BP Financier'!$E$19+'BP Financier'!$C$22+'BP Financier'!$D$22+'BP Financier'!$E$22+'BP Financier'!$F$22+'BP Financier'!$F$19+'BP Financier'!$F$16+'BP Financier'!$G$22+'BP Financier'!$G$19+'BP Financier'!$G$16))*$V9277*Y9277/(1-$W9277)","v":{"v":22252.068759366786,"d":"22,252"}},{"$f":"'BP Financier'!$G$44*(('BP Financier'!$C$19+'BP Financier'!$D$19+'BP Financier'!$E$19+'BP Financier'!$F$19+'BP Financier'!$G$19)/('BP Financier'!$C$16+'BP Financier'!$C$19+'BP Financier'!$D$16+'BP Financier'!$D$19+'BP Financier'!$E$16+'BP Financier'!$E$19+'BP Financier'!$C$22+'BP Financier'!$D$22+'BP Financier'!$E$22+'BP Financier'!$F$22+'BP Financier'!$F$19+'BP Financier'!$F$16+'BP Financier'!$G$22+'BP Financier'!$G$19+'BP Financier'!$G$16))*$V9277*Z9277/(1-$W9277)","v":{"v":174154.6207861186,"d":"174,155"}},{"$f":"'BP Financier'!$G$44*(('BP Financier'!$C$19+'BP Financier'!$D$19+'BP Financier'!$E$19+'BP Financier'!$F$19+'BP Financier'!$G$19)/('BP Financier'!$C$16+'BP Financier'!$C$19+'BP Financier'!$D$16+'BP Financier'!$D$19+'BP Financier'!$E$16+'BP Financier'!$E$19+'BP Financier'!$C$22+'BP Financier'!$D$22+'BP Financier'!$E$22+'BP Financier'!$F$22+'BP Financier'!$F$19+'BP Financier'!$F$16+'BP Financier'!$G$22+'BP Financier'!$G$19+'BP Financier'!$G$16))*$V9277*AA9277/(1-$W9277)","v":{"v":21516.46318054475,"d":"21,516"}},{"$f":"'BP Financier'!$G$44*(('BP Financier'!$C$19+'BP Financier'!$D$19+'BP Financier'!$E$19+'BP Financier'!$F$19+'BP Financier'!$G$19)/('BP Financier'!$C$16+'BP Financier'!$C$19+'BP Financier'!$D$16+'BP Financier'!$D$19+'BP Financier'!$E$16+'BP Financier'!$E$19+'BP Financier'!$C$22+'BP Financier'!$D$22+'BP Financier'!$E$22+'BP Financier'!$F$22+'BP Financier'!$F$19+'BP Financier'!$F$16+'BP Financier'!$G$22+'BP Financier'!$G$19+'BP Financier'!$G$16))*$V9277*AB9277/(1-$W9277)","v":{"v":10298.478103508596,"d":"10,298"}},null,{"v":0.008,"d":"0.80%"},{"$f":"Actif!$E$28/100","v":{"v":0.28900000000000003,"d":"28.90%"}},{"$f":"Actif!$E$30/100","v":{"v":0.09050000000000001,"d":"9.05%"}},{"$f":"Actif!$E$31/100","v":{"v":0.0605,"d":"6.05%"}},{"$f":"Actif!$E$32/100","v":{"v":0.47350000000000003,"d":"47.35%"}},{"$f":"Actif!$E$33/100","v":{"v":0.0585,"d":"5.85%"}},{"$f":"Actif!$E$29/100","v":{"v":0.027999999999999997,"d":"2.80%"}}]
[null,"#162",50,2028,"F","A_PER",{"v":0.44999999999999996,"d":"0.45"},{"v":0.38999999999999996,"d":"0.39"},0.6,0.6,85,0,{"$f":"ROUND(Primes!$Q$7*V9278,0)","v":11},{"$f":"'BP Financier'!$G$33*(('BP Financier'!$C$19+'BP Financier'!$D$19+'BP Financier'!$E$19+'BP Financier'!$F$19+'BP Financier'!$G$19)/('BP Financier'!$C$16+'BP Financier'!$C$19+'BP Financier'!$D$16+'BP Financier'!$D$19+'BP Financier'!$E$16+'BP Financier'!$E$19+'BP Financier'!$F$16+'BP Financier'!$F$19+'BP Financier'!$G$16+'BP Financier'!$G$19))*V9278","v":{"v":455640.45778982196,"d":"455,640"}},{"$f":"SUM(P9278:T9278)","v":{"v":261507.7832712362,"d":"261,508"}},{"$f":"'BP Financier'!$G$44*(('BP Financier'!$C$19+'BP Financier'!$D$19+'BP Financier'!$E$19+'BP Financier'!$F$19+'BP Financier'!$G$19)/('BP Financier'!$C$16+'BP Financier'!$C$19+'BP Financier'!$D$16+'BP Financier'!$D$19+'BP Financier'!$E$16+'BP Financier'!$E$19+'BP Financier'!$C$22+'BP Financier'!$D$22+'BP Financier'!$E$22+'BP Financier'!$F$22+'BP Financier'!$F$19+'BP Financier'!$F$16+'BP Financier'!$G$22+'BP Financier'!$G$19+'BP Financier'!$G$16))*$V9278*X9278/(1-$W9278)","v":{"v":33286.152441697435,"d":"33,286"}},{"$f":"'BP Financier'!$G$44*(('BP Financier'!$C$19+'BP Financier'!$D$19+'BP Financier'!$E$19+'BP Financier'!$F$19+'BP Financier'!$G$19)/('BP Financier'!$C$16+'BP Financier'!$C$19+'BP Financier'!$D$16+'BP Financier'!$D$19+'BP Financier'!$E$16+'BP Financier'!$E$19+'BP Financier'!$C$22+'BP Financier'!$D$22+'BP Financier'!$E$22+'BP Financier'!$F$22+'BP Financier'!$F$19+'BP Financier'!$F$16+'BP Financier'!$G$22+'BP Financier'!$G$19+'BP Financier'!$G$16))*$V9278*Y9278/(1-$W9278)","v":{"v":22252.068759366786,"d":"22,252"}},{"$f":"'BP Financier'!$G$44*(('BP Financier'!$C$19+'BP Financier'!$D$19+'BP Financier'!$E$19+'BP Financier'!$F$19+'BP Financier'!$G$19)/('BP Financier'!$C$16+'BP Financier'!$C$19+'BP Financier'!$D$16+'BP Financier'!$D$19+'BP Financier'!$E$16+'BP Financier'!$E$19+'BP Financier'!$C$22+'BP Financier'!$D$22+'BP Financier'!$E$22+'BP Financier'!$F$22+'BP Financier'!$F$19+'BP Financier'!$F$16+'BP Financier'!$G$22+'BP Financier'!$G$19+'BP Financier'!$G$16))*$V9278*Z9278/(1-$W9278)","v":{"v":174154.6207861186,"d":"174,155"}},{"$f":"'BP Financier'!$G$44*(('BP Financier'!$C$19+'BP Financier'!$D$19+'BP Financier'!$E$19+'BP Financier'!$F$19+'BP Financier'!$G$19)/('BP Financier'!$C$16+'BP Financier'!$C$19+'BP Financier'!$D$16+'BP Financier'!$D$19+'BP Financier'!$E$16+'BP Financier'!$E$19+'BP Financier'!$C$22+'BP Financier'!$D$22+'BP Financier'!$E$22+'BP Financier'!$F$22+'BP Financier'!$F$19+'BP Financier'!$F$16+'BP Financier'!$G$22+'BP Financier'!$G$19+'BP Financier'!$G$16))*$V9278*AA9278/(1-$W9278)","v":{"v":21516.46318054475,"d":"21,516"}},{"$f":"'BP Financier'!$G$44*(('BP Financier'!$C$19+'BP Financier'!$D$19+'BP Financier'!$E$19+'BP Financier'!$F$19+'BP Financier'!$G$19)/('BP Financier'!$C$16+'BP Financier'!$C$19+'BP Financier'!$D$16+'BP Financier'!$D$19+'BP Financier'!$E$16+'BP Financier'!$E$19+'BP Financier'!$C$22+'BP Financier'!$D$22+'BP Financier'!$E$22+'BP Financier'!$F$22+'BP Financier'!$F$19+'BP Financier'!$F$16+'BP Financier'!$G$22+'BP Financier'!$G$19+'BP Financier'!$G$16))*$V9278*AB9278/(1-$W9278)","v":{"v":10298.478103508596,"d":"10,298"}},null,{"v":0.008,"d":"0.80%"},{"$f":"Actif!$E$28/100","v":{"v":0.28900000000000003,"d":"28.90%"}},{"$f":"Actif!$E$30/100","v":{"v":0.09050000000000001,"d":"9.05%"}},{"$f":"Actif!$E$31/100","v":{"v":0.0605,"d":"6.05%"}},{"$f":"Actif!$E$32/100","v":{"v":0.47350000000000003,"d":"47.35%"}},{"$f":"Actif!$E$33/100","v":{"v":0.0585,"d":"5.85%"}},{"$f":"Actif!$E$29/100","v":{"v":0.027999999999999997,"d":"2.80%"}}]
[null,"#163",50,2029,"F","A_PER",{"v":0.44999999999999996,"d":"0.45"},{"v":0.38999999999999996,"d":"0.39"},0.6,0.6,85,0,{"$f":"ROUND(Primes!$Q$7*V9279,0)","v":11},{"$f":"'BP Financier'!$G$33*(('BP Financier'!$C$19+'BP Financier'!$D$19+'BP Financier'!$E$19+'BP Financier'!$F$19+'BP Financier'!$G$19)/('BP Financier'!$C$16+'BP Financier'!$C$19+'BP Financier'!$D$16+'BP Financier'!$D$19+'BP Financier'!$E$16+'BP Financier'!$E$19+'BP Financier'!$F$16+'BP Financier'!$F$19+'BP Financier'!$G$16+'BP Financier'!$G$19))*V9279","v":{"v":455640.45778982196,"d":"455,640"}},{"v":261507.7832712362,"d":"261,508"},{"$f":"'BP Financier'!$G$44*(('BP Financier'!$C$19+'BP Financier'!$D$19+'BP Financier'!$E$19+'BP Financier'!$F$19+'BP Financier'!$G$19)/('BP Financier'!$C$16+'BP Financier'!$C$19+'BP Financier'!$D$16+'BP Financier'!$D$19+'BP Financier'!$E$16+'BP Financier'!$E$19+'BP Financier'!$C$22+'BP Financier'!$D$22+'BP Financier'!$E$22+'BP Financier'!$F$22+'BP Financier'!$F$19+'BP Financier'!$F$16+'BP Financier'!$G$22+'BP Financier'!$G$19+'BP Financier'!$G$16))*$V9279*X9279/(1-$W9279)","v":{"v":33286.152441697435,"d":"33,286"}},{"$f":"'BP Financier'!$G$44*(('BP Financier'!$C$19+'BP Financier'!$D$19+'BP Financier'!$E$19+'BP Financier'!$F$19+'BP Financier'!$G$19)/('BP Financier'!$C$16+'BP Financier'!$C$19+'BP Financier'!$D$16+'BP Financier'!$D$19+'BP Financier'!$E$16+'BP Financier'!$E$19+'BP Financier'!$C$22+'BP Financier'!$D$22+'BP Financier'!$E$22+'BP Financier'!$F$22+'BP Financier'!$F$19+'BP Financier'!$F$16+'BP Financier'!$G$22+'BP Financier'!$G$19+'BP Financier'!$G$16))*$V9279*Y9279/(1-$W9279)","v":{"v":22252.068759366786,"d":"22,252"}},{"$f":"'BP Financier'!$G$44*(('BP Financier'!$C$19+'BP Financier'!$D$19+'BP Financier'!$E$19+'BP Financier'!$F$19+'BP Financier'!$G$19)/('BP Financier'!$C$16+'BP Financier'!$C$19+'BP Financier'!$D$16+'BP Financier'!$D$19+'BP Financier'!$E$16+'BP Financier'!$E$19+'BP Financier'!$C$22+'BP Financier'!$D$22+'BP Financier'!$E$22+'BP Financier'!$F$22+'BP Financier'!$F$19+'BP Financier'!$F$16+'BP Financier'!$G$22+'BP Financier'!$G$19+'BP Financier'!$G$16))*$V9279*Z9279/(1-$W9279)","v":{"v":174154.6207861186,"d":"174,155"}},{"$f":"'BP Financier'!$G$44*(('BP Financier'!$C$19+'BP Financier'!$D$19+'BP Financier'!$E$19+'BP Financier'!$F$19+'BP Financier'!$G$19)/('BP Financier'!$C$16+'BP Financier'!$C$19+'BP Financier'!$D$16+'BP Financier'!$D$19+'BP Financier'!$E$16+'BP Financier'!$E$19+'BP Financier'!$C$22+'BP Financier'!$D$22+'BP Financier'!$E$22+'BP Financier'!$F$22+'BP Financier'!$F$19+'BP Financier'!$F$16+'BP Financier'!$G$22+'BP Financier'!$G$19+'BP Financier'!$G$16))*$V9279*AA9279/(1-$W9279)","v":{"v":21516.46318054475,"d":"21,516"}},{"$f":"'BP Financier'!$G$44*(('BP Financier'!$C$19+'BP Financier'!$D$19+'BP Financier'!$E$19+'BP Financier'!$F$19+'BP Financier'!$G$19)/('BP Financier'!$C$16+'BP Financier'!$C$19+'BP Financier'!$D$16+'BP Financier'!$D$19+'BP Financier'!$E$16+'BP Financier'!$E$19+'BP Financier'!$C$22+'BP Financier'!$D$22+'BP Financier'!$E$22+'BP Financier'!$F$22+'BP Financier'!$F$19+'BP Financier'!$F$16+'BP Financier'!$G$22+'BP Financier'!$G$19+'BP Financier'!$G$16))*$V9279*AB9279/(1-$W9279)","v":{"v":10298.478103508596,"d":"10,298"}},null,{"v":0.008,"d":"0.80%"},{"$f":"Actif!$E$28/100","v":{"v":0.28900000000000003,"d":"28.90%"}},{"$f":"Actif!$E$30/100","v":{"v":0.09050000000000001,"d":"9.05%"}},{"$f":"Actif!$E$31/100","v":{"v":0.0605,"d":"6.05%"}},{"$f":"Actif!$E$32/100","v":{"v":0.47350000000000003,"d":"47.35%"}},{"$f":"Actif!$E$33/100","v":{"v":0.0585,"d":"5.85%"}},{"$f":"Actif!$E$29/100","v":{"v":0.027999999999999997,"d":"2.80%"}}]
[null,"#164",50,2030,"F","A_PER",{"v":0.44999999999999996,"d":"0.45"},{"v":0.38999999999999996,"d":"0.39"},0.6,0.6,85,0,{"$f":"ROUND(Primes!$Q$7*V9280,0)","v":11},{"$f":"'BP Financier'!$G$33*(('BP Financier'!$C$19+'BP Financier'!$D$19+'BP Financier'!$E$19+'BP Financier'!$F$19+'BP Financier'!$G$19)/('BP Financier'!$C$16+'BP Financier'!$C$19+'BP Financier'!$D$16+'BP Financier'!$D$19+'BP Financier'!$E$16+'BP Financier'!$E$19+'BP Financier'!$F$16+'BP Financier'!$F$19+'BP Financier'!$G$16+'BP Financier'!$G$19))*V9280","v":{"v":455640.45778982196,"d":"455,640"}},{"v":261507.7832712362,"d":"261,508"},{"$f":"'BP Financier'!$G$44*(('BP Financier'!$C$19+'BP Financier'!$D$19+'BP Financier'!$E$19+'BP Financier'!$F$19+'BP Financier'!$G$19)/('BP Financier'!$C$16+'BP Financier'!$C$19+'BP Financier'!$D$16+'BP Financier'!$D$19+'BP Financier'!$E$16+'BP Financier'!$E$19+'BP Financier'!$C$22+'BP Financier'!$D$22+'BP Financier'!$E$22+'BP Financier'!$F$22+'BP Financier'!$F$19+'BP Financier'!$F$16+'BP Financier'!$G$22+'BP Financier'!$G$19+'BP Financier'!$G$16))*$V9280*X9280/(1-$W9280)","v":{"v":33286.152441697435,"d":"33,286"}},{"$f":"'BP Financier'!$G$44*(('BP Financier'!$C$19+'BP Financier'!$D$19+'BP Financier'!$E$19+'BP Financier'!$F$19+'BP Financier'!$G$19)/('BP Financier'!$C$16+'BP Financier'!$C$19+'BP Financier'!$D$16+'BP Financier'!$D$19+'BP Financier'!$E$16+'BP Financier'!$E$19+'BP Financier'!$C$22+'BP Financier'!$D$22+'BP Financier'!$E$22+'BP Financier'!$F$22+'BP Financier'!$F$19+'BP Financier'!$F$16+'BP Financier'!$G$22+'BP Financier'!$G$19+'BP Financier'!$G$16))*$V9280*Y9280/(1-$W9280)","v":{"v":22252.068759366786,"d":"22,252"}},{"$f":"'BP Financier'!$G$44*(('BP Financier'!$C$19+'BP Financier'!$D$19+'BP Financier'!$E$19+'BP Financier'!$F$19+'BP Financier'!$G$19)/('BP Financier'!$C$16+'BP Financier'!$C$19+'BP Financier'!$D$16+'BP Financier'!$D$19+'BP Financier'!$E$16+'BP Financier'!$E$19+'BP Financier'!$C$22+'BP Financier'!$D$22+'BP Financier'!$E$22+'BP Financier'!$F$22+'BP Financier'!$F$19+'BP Financier'!$F$16+'BP Financier'!$G$22+'BP Financier'!$G$19+'BP Financier'!$G$16))*$V9280*Z9280/(1-$W9280)","v":{"v":174154.6207861186,"d":"174,155"}},{"$f":"'BP Financier'!$G$44*(('BP Financier'!$C$19+'BP Financier'!$D$19+'BP Financier'!$E$19+'BP Financier'!$F$19+'BP Financier'!$G$19)/('BP Financier'!$C$16+'BP Financier'!$C$19+'BP Financier'!$D$16+'BP Financier'!$D$19+'BP Financier'!$E$16+'BP Financier'!$E$19+'BP Financier'!$C$22+'BP Financier'!$D$22+'BP Financier'!$E$22+'BP Financier'!$F$22+'BP Financier'!$F$19+'BP Financier'!$F$16+'BP Financier'!$G$22+'BP Financier'!$G$19+'BP Financier'!$G$16))*$V9280*AA9280/(1-$W9280)","v":{"v":21516.46318054475,"d":"21,516"}},{"$f":"'BP Financier'!$G$44*(('BP Financier'!$C$19+'BP Financier'!$D$19+'BP Financier'!$E$19+'BP Financier'!$F$19+'BP Financier'!$G$19)/('BP Financier'!$C$16+'BP Financier'!$C$19+'BP Financier'!$D$16+'BP Financier'!$D$19+'BP Financier'!$E$16+'BP Financier'!$E$19+'BP Financier'!$C$22+'BP Financier'!$D$22+'BP Financier'!$E$22+'BP Financier'!$F$22+'BP Financier'!$F$19+'BP Financier'!$F$16+'BP Financier'!$G$22+'BP Financier'!$G$19+'BP Financier'!$G$16))*$V9280*AB9280/(1-$W9280)","v":{"v":10298.478103508596,"d":"10,298"}},null,{"v":0.008,"d":"0.80%"},{"$f":"Actif!$E$28/100","v":{"v":0.28900000000000003,"d":"28.90%"}},{"$f":"Actif!$E$30/100","v":{"v":0.09050000000000001,"d":"9.05%"}},{"$f":"Actif!$E$31/100","v":{"v":0.0605,"d":"6.05%"}},{"$f":"Actif!$E$32/100","v":{"v":0.47350000000000003,"d":"47.35%"}},{"$f":"Actif!$E$33/100","v":{"v":0.0585,"d":"5.85%"}},{"$f":"Actif!$E$29/100","v":{"v":0.027999999999999997,"d":"2.80%"}}]
[null,"#165",50,2031,"F","A_PER",{"v":0.44999999999999996,"d":"0.45"},{"v":0.38999999999999996,"d":"0.39"},0.6,0.6,85,0,{"$f":"ROUND(Primes!$Q$7*V9281,0)","v":11},{"$f":"'BP Financier'!$G$33*(('BP Financier'!$C$19+'BP Financier'!$D$19+'BP Financier'!$E$19+'BP Financier'!$F$19+'BP Financier'!$G$19)/('BP Financier'!$C$16+'BP Financier'!$C$19+'BP Financier'!$D$16+'BP Financier'!$D$19+'BP Financier'!$E$16+'BP Financier'!$E$19+'BP Financier'!$F$16+'BP Financier'!$F$19+'BP Financier'!$G$16+'BP Financier'!$G$19))*V9281","v":{"v":455640.45778982196,"d":"455,640"}},{"v":261507.7832712362,"d":"261,508"},{"$f":"'BP Financier'!$G$44*(('BP Financier'!$C$19+'BP Financier'!$D$19+'BP Financier'!$E$19+'BP Financier'!$F$19+'BP Financier'!$G$19)/('BP Financier'!$C$16+'BP Financier'!$C$19+'BP Financier'!$D$16+'BP Financier'!$D$19+'BP Financier'!$E$16+'BP Financier'!$E$19+'BP Financier'!$C$22+'BP Financier'!$D$22+'BP Financier'!$E$22+'BP Financier'!$F$22+'BP Financier'!$F$19+'BP Financier'!$F$16+'BP Financier'!$G$22+'BP Financier'!$G$19+'BP Financier'!$G$16))*$V9281*X9281/(1-$W9281)","v":{"v":33286.152441697435,"d":"33,286"}},{"$f":"'BP Financier'!$G$44*(('BP Financier'!$C$19+'BP Financier'!$D$19+'BP Financier'!$E$19+'BP Financier'!$F$19+'BP Financier'!$G$19)/('BP Financier'!$C$16+'BP Financier'!$C$19+'BP Financier'!$D$16+'BP Financier'!$D$19+'BP Financier'!$E$16+'BP Financier'!$E$19+'BP Financier'!$C$22+'BP Financier'!$D$22+'BP Financier'!$E$22+'BP Financier'!$F$22+'BP Financier'!$F$19+'BP Financier'!$F$16+'BP Financier'!$G$22+'BP Financier'!$G$19+'BP Financier'!$G$16))*$V9281*Y9281/(1-$W9281)","v":{"v":22252.068759366786,"d":"22,252"}},{"$f":"'BP Financier'!$G$44*(('BP Financier'!$C$19+'BP Financier'!$D$19+'BP Financier'!$E$19+'BP Financier'!$F$19+'BP Financier'!$G$19)/('BP Financier'!$C$16+'BP Financier'!$C$19+'BP Financier'!$D$16+'BP Financier'!$D$19+'BP Financier'!$E$16+'BP Financier'!$E$19+'BP Financier'!$C$22+'BP Financier'!$D$22+'BP Financier'!$E$22+'BP Financier'!$F$22+'BP Financier'!$F$19+'BP Financier'!$F$16+'BP Financier'!$G$22+'BP Financier'!$G$19+'BP Financier'!$G$16))*$V9281*Z9281/(1-$W9281)","v":{"v":174154.6207861186,"d":"174,155"}},{"$f":"'BP Financier'!$G$44*(('BP Financier'!$C$19+'BP Financier'!$D$19+'BP Financier'!$E$19+'BP Financier'!$F$19+'BP Financier'!$G$19)/('BP Financier'!$C$16+'BP Financier'!$C$19+'BP Financier'!$D$16+'BP Financier'!$D$19+'BP Financier'!$E$16+'BP Financier'!$E$19+'BP Financier'!$C$22+'BP Financier'!$D$22+'BP Financier'!$E$22+'BP Financier'!$F$22+'BP Financier'!$F$19+'BP Financier'!$F$16+'BP Financier'!$G$22+'BP Financier'!$G$19+'BP Financier'!$G$16))*$V9281*AA9281/(1-$W9281)","v":{"v":21516.46318054475,"d":"21,516"}},{"$f":"'BP Financier'!$G$44*(('BP Financier'!$C$19+'BP Financier'!$D$19+'BP Financier'!$E$19+'BP Financier'!$F$19+'BP Financier'!$G$19)/('BP Financier'!$C$16+'BP Financier'!$C$19+'BP Financier'!$D$16+'BP Financier'!$D$19+'BP Financier'!$E$16+'BP Financier'!$E$19+'BP Financier'!$C$22+'BP Financier'!$D$22+'BP Financier'!$E$22+'BP Financier'!$F$22+'BP Financier'!$F$19+'BP Financier'!$F$16+'BP Financier'!$G$22+'BP Financier'!$G$19+'BP Financier'!$G$16))*$V9281*AB9281/(1-$W9281)","v":{"v":10298.478103508596,"d":"10,298"}},null,{"v":0.008,"d":"0.80%"},{"$f":"Actif!$E$28/100","v":{"v":0.28900000000000003,"d":"28.90%"}},{"$f":"Actif!$E$30/100","v":{"v":0.09050000000000001,"d":"9.05%"}},{"$f":"Actif!$E$31/100","v":{"v":0.0605,"d":"6.05%"}},{"$f":"Actif!$E$32/100","v":{"v":0.47350000000000003,"d":"47.35%"}},{"$f":"Actif!$E$33/100","v":{"v":0.0585,"d":"5.85%"}},{"$f":"Actif!$E$29/100","v":{"v":0.027999999999999997,"d":"2.80%"}}]
[null,"#166",51,2026,"H","A_PER",{"v":0.44999999999999996,"d":"0.45"},{"v":0.38999999999999996,"d":"0.39"},0.6,0.6,85,0,{"$f":"ROUND(Primes!$Q$7*V9282,0)","v":11},{"$f":"'BP Financier'!$G$33*(('BP Financier'!$C$19+'BP Financier'!$D$19+'BP Financier'!$E$19+'BP Financier'!$F$19+'BP Financier'!$G$19)/('BP Financier'!$C$16+'BP Financier'!$C$19+'BP Financier'!$D$16+'BP Financier'!$D$19+'BP Financier'!$E$16+'BP Financier'!$E$19+'BP Financier'!$F$16+'BP Financier'!$F$19+'BP Financier'!$G$16+'BP Financier'!$G$19))*V9282","v":{"v":455640.45778982196,"d":"455,640"}},{"v":261507.7832712362,"d":"261,508"},{"$f":"'BP Financier'!$G$44*(('BP Financier'!$C$19+'BP Financier'!$D$19+'BP Financier'!$E$19+'BP Financier'!$F$19+'BP Financier'!$G$19)/('BP Financier'!$C$16+'BP Financier'!$C$19+'BP Financier'!$D$16+'BP Financier'!$D$19+'BP Financier'!$E$16+'BP Financier'!$E$19+'BP Financier'!$C$22+'BP Financier'!$D$22+'BP Financier'!$E$22+'BP Financier'!$F$22+'BP Financier'!$F$19+'BP Financier'!$F$16+'BP Financier'!$G$22+'BP Financier'!$G$19+'BP Financier'!$G$16))*$V9282*X9282/(1-$W9282)","v":{"v":33286.152441697435,"d":"33,286"}},{"$f":"'BP Financier'!$G$44*(('BP Financier'!$C$19+'BP Financier'!$D$19+'BP Financier'!$E$19+'BP Financier'!$F$19+'BP Financier'!$G$19)/('BP Financier'!$C$16+'BP Financier'!$C$19+'BP Financier'!$D$16+'BP Financier'!$D$19+'BP Financier'!$E$16+'BP Financier'!$E$19+'BP Financier'!$C$22+'BP Financier'!$D$22+'BP Financier'!$E$22+'BP Financier'!$F$22+'BP Financier'!$F$19+'BP Financier'!$F$16+'BP Financier'!$G$22+'BP Financier'!$G$19+'BP Financier'!$G$16))*$V9282*Y9282/(1-$W9282)","v":{"v":22252.068759366786,"d":"22,252"}},{"$f":"'BP Financier'!$G$44*(('BP Financier'!$C$19+'BP Financier'!$D$19+'BP Financier'!$E$19+'BP Financier'!$F$19+'BP Financier'!$G$19)/('BP Financier'!$C$16+'BP Financier'!$C$19+'BP Financier'!$D$16+'BP Financier'!$D$19+'BP Financier'!$E$16+'BP Financier'!$E$19+'BP Financier'!$C$22+'BP Financier'!$D$22+'BP Financier'!$E$22+'BP Financier'!$F$22+'BP Financier'!$F$19+'BP Financier'!$F$16+'BP Financier'!$G$22+'BP Financier'!$G$19+'BP Financier'!$G$16))*$V9282*Z9282/(1-$W9282)","v":{"v":174154.6207861186,"d":"174,155"}},{"$f":"'BP Financier'!$G$44*(('BP Financier'!$C$19+'BP Financier'!$D$19+'BP Financier'!$E$19+'BP Financier'!$F$19+'BP Financier'!$G$19)/('BP Financier'!$C$16+'BP Financier'!$C$19+'BP Financier'!$D$16+'BP Financier'!$D$19+'BP Financier'!$E$16+'BP Financier'!$E$19+'BP Financier'!$C$22+'BP Financier'!$D$22+'BP Financier'!$E$22+'BP Financier'!$F$22+'BP Financier'!$F$19+'BP Financier'!$F$16+'BP Financier'!$G$22+'BP Financier'!$G$19+'BP Financier'!$G$16))*$V9282*AA9282/(1-$W9282)","v":{"v":21516.46318054475,"d":"21,516"}},{"$f":"'BP Financier'!$G$44*(('BP Financier'!$C$19+'BP Financier'!$D$19+'BP Financier'!$E$19+'BP Financier'!$F$19+'BP Financier'!$G$19)/('BP Financier'!$C$16+'BP Financier'!$C$19+'BP Financier'!$D$16+'BP Financier'!$D$19+'BP Financier'!$E$16+'BP Financier'!$E$19+'BP Financier'!$C$22+'BP Financier'!$D$22+'BP Financier'!$E$22+'BP Financier'!$F$22+'BP Financier'!$F$19+'BP Financier'!$F$16+'BP Financier'!$G$22+'BP Financier'!$G$19+'BP Financier'!$G$16))*$V9282*AB9282/(1-$W9282)","v":{"v":10298.478103508596,"d":"10,298"}},null,{"v":0.008,"d":"0.80%"},{"$f":"Actif!$E$28/100","v":{"v":0.28900000000000003,"d":"28.90%"}},{"$f":"Actif!$E$30/100","v":{"v":0.09050000000000001,"d":"9.05%"}},{"$f":"Actif!$E$31/100","v":{"v":0.0605,"d":"6.05%"}},{"$f":"Actif!$E$32/100","v":{"v":0.47350000000000003,"d":"47.35%"}},{"$f":"Actif!$E$33/100","v":{"v":0.0585,"d":"5.85%"}},{"$f":"Actif!$E$29/100","v":{"v":0.027999999999999997,"d":"2.80%"}}]
[null,"#167",51,2028,"H","A_PER",{"v":0.44999999999999996,"d":"0.45"},{"v":0.38999999999999996,"d":"0.39"},0.6,0.6,85,0,{"$f":"ROUND(Primes!$Q$7*V9283,0)","v":11},{"$f":"'BP Financier'!$G$33*(('BP Financier'!$C$19+'BP Financier'!$D$19+'BP Financier'!$E$19+'BP Financier'!$F$19+'BP Financier'!$G$19)/('BP Financier'!$C$16+'BP Financier'!$C$19+'BP Financier'!$D$16+'BP Financier'!$D$19+'BP Financier'!$E$16+'BP Financier'!$E$19+'BP Financier'!$F$16+'BP Financier'!$F$19+'BP Financier'!$G$16+'BP Financier'!$G$19))*V9283","v":{"v":455640.45778982196,"d":"455,640"}},{"v":261507.7832712362,"d":"261,508"},{"$f":"'BP Financier'!$G$44*(('BP Financier'!$C$19+'BP Financier'!$D$19+'BP Financier'!$E$19+'BP Financier'!$F$19+'BP Financier'!$G$19)/('BP Financier'!$C$16+'BP Financier'!$C$19+'BP Financier'!$D$16+'BP Financier'!$D$19+'BP Financier'!$E$16+'BP Financier'!$E$19+'BP Financier'!$C$22+'BP Financier'!$D$22+'BP Financier'!$E$22+'BP Financier'!$F$22+'BP Financier'!$F$19+'BP Financier'!$F$16+'BP Financier'!$G$22+'BP Financier'!$G$19+'BP Financier'!$G$16))*$V9283*X9283/(1-$W9283)","v":{"v":33286.152441697435,"d":"33,286"}},{"$f":"'BP Financier'!$G$44*(('BP Financier'!$C$19+'BP Financier'!$D$19+'BP Financier'!$E$19+'BP Financier'!$F$19+'BP Financier'!$G$19)/('BP Financier'!$C$16+'BP Financier'!$C$19+'BP Financier'!$D$16+'BP Financier'!$D$19+'BP Financier'!$E$16+'BP Financier'!$E$19+'BP Financier'!$C$22+'BP Financier'!$D$22+'BP Financier'!$E$22+'BP Financier'!$F$22+'BP Financier'!$F$19+'BP Financier'!$F$16+'BP Financier'!$G$22+'BP Financier'!$G$19+'BP Financier'!$G$16))*$V9283*Y9283/(1-$W9283)","v":{"v":22252.068759366786,"d":"22,252"}},{"$f":"'BP Financier'!$G$44*(('BP Financier'!$C$19+'BP Financier'!$D$19+'BP Financier'!$E$19+'BP Financier'!$F$19+'BP Financier'!$G$19)/('BP Financier'!$C$16+'BP Financier'!$C$19+'BP Financier'!$D$16+'BP Financier'!$D$19+'BP Financier'!$E$16+'BP Financier'!$E$19+'BP Financier'!$C$22+'BP Financier'!$D$22+'BP Financier'!$E$22+'BP Financier'!$F$22+'BP Financier'!$F$19+'BP Financier'!$F$16+'BP Financier'!$G$22+'BP Financier'!$G$19+'BP Financier'!$G$16))*$V9283*Z9283/(1-$W9283)","v":{"v":174154.6207861186,"d":"174,155"}},{"$f":"'BP Financier'!$G$44*(('BP Financier'!$C$19+'BP Financier'!$D$19+'BP Financier'!$E$19+'BP Financier'!$F$19+'BP Financier'!$G$19)/('BP Financier'!$C$16+'BP Financier'!$C$19+'BP Financier'!$D$16+'BP Financier'!$D$19+'BP Financier'!$E$16+'BP Financier'!$E$19+'BP Financier'!$C$22+'BP Financier'!$D$22+'BP Financier'!$E$22+'BP Financier'!$F$22+'BP Financier'!$F$19+'BP Financier'!$F$16+'BP Financier'!$G$22+'BP Financier'!$G$19+'BP Financier'!$G$16))*$V9283*AA9283/(1-$W9283)","v":{"v":21516.46318054475,"d":"21,516"}},{"$f":"'BP Financier'!$G$44*(('BP Financier'!$C$19+'BP Financier'!$D$19+'BP Financier'!$E$19+'BP Financier'!$F$19+'BP Financier'!$G$19)/('BP Financier'!$C$16+'BP Financier'!$C$19+'BP Financier'!$D$16+'BP Financier'!$D$19+'BP Financier'!$E$16+'BP Financier'!$E$19+'BP Financier'!$C$22+'BP Financier'!$D$22+'BP Financier'!$E$22+'BP Financier'!$F$22+'BP Financier'!$F$19+'BP Financier'!$F$16+'BP Financier'!$G$22+'BP Financier'!$G$19+'BP Financier'!$G$16))*$V9283*AB9283/(1-$W9283)","v":{"v":10298.478103508596,"d":"10,298"}},null,{"v":0.008,"d":"0.80%"},{"$f":"Actif!$E$28/100","v":{"v":0.28900000000000003,"d":"28.90%"}},{"$f":"Actif!$E$30/100","v":{"v":0.09050000000000001,"d":"9.05%"}},{"$f":"Actif!$E$31/100","v":{"v":0.0605,"d":"6.05%"}},{"$f":"Actif!$E$32/100","v":{"v":0.47350000000000003,"d":"47.35%"}},{"$f":"Actif!$E$33/100","v":{"v":0.0585,"d":"5.85%"}},{"$f":"Actif!$E$29/100","v":{"v":0.027999999999999997,"d":"2.80%"}}]
[null,"#168",51,2029,"H","A_PER",{"v":0.44999999999999996,"d":"0.45"},{"v":0.38999999999999996,"d":"0.39"},0.6,0.6,85,0,{"$f":"ROUND(Primes!$Q$7*V9284,0)","v":11},{"$f":"'BP Financier'!$G$33*(('BP Financier'!$C$19+'BP Financier'!$D$19+'BP Financier'!$E$19+'BP Financier'!$F$19+'BP Financier'!$G$19)/('BP Financier'!$C$16+'BP Financier'!$C$19+'BP Financier'!$D$16+'BP Financier'!$D$19+'BP Financier'!$E$16+'BP Financier'!$E$19+'BP Financier'!$F$16+'BP Financier'!$F$19+'BP Financier'!$G$16+'BP Financier'!$G$19))*V9284","v":{"v":455640.45778982196,"d":"455,640"}},{"v":261507.7832712362,"d":"261,508"},{"$f":"'BP Financier'!$G$44*(('BP Financier'!$C$19+'BP Financier'!$D$19+'BP Financier'!$E$19+'BP Financier'!$F$19+'BP Financier'!$G$19)/('BP Financier'!$C$16+'BP Financier'!$C$19+'BP Financier'!$D$16+'BP Financier'!$D$19+'BP Financier'!$E$16+'BP Financier'!$E$19+'BP Financier'!$C$22+'BP Financier'!$D$22+'BP Financier'!$E$22+'BP Financier'!$F$22+'BP Financier'!$F$19+'BP Financier'!$F$16+'BP Financier'!$G$22+'BP Financier'!$G$19+'BP Financier'!$G$16))*$V9284*X9284/(1-$W9284)","v":{"v":33286.152441697435,"d":"33,286"}},{"$f":"'BP Financier'!$G$44*(('BP Financier'!$C$19+'BP Financier'!$D$19+'BP Financier'!$E$19+'BP Financier'!$F$19+'BP Financier'!$G$19)/('BP Financier'!$C$16+'BP Financier'!$C$19+'BP Financier'!$D$16+'BP Financier'!$D$19+'BP Financier'!$E$16+'BP Financier'!$E$19+'BP Financier'!$C$22+'BP Financier'!$D$22+'BP Financier'!$E$22+'BP Financier'!$F$22+'BP Financier'!$F$19+'BP Financier'!$F$16+'BP Financier'!$G$22+'BP Financier'!$G$19+'BP Financier'!$G$16))*$V9284*Y9284/(1-$W9284)","v":{"v":22252.068759366786,"d":"22,252"}},{"$f":"'BP Financier'!$G$44*(('BP Financier'!$C$19+'BP Financier'!$D$19+'BP Financier'!$E$19+'BP Financier'!$F$19+'BP Financier'!$G$19)/('BP Financier'!$C$16+'BP Financier'!$C$19+'BP Financier'!$D$16+'BP Financier'!$D$19+'BP Financier'!$E$16+'BP Financier'!$E$19+'BP Financier'!$C$22+'BP Financier'!$D$22+'BP Financier'!$E$22+'BP Financier'!$F$22+'BP Financier'!$F$19+'BP Financier'!$F$16+'BP Financier'!$G$22+'BP Financier'!$G$19+'BP Financier'!$G$16))*$V9284*Z9284/(1-$W9284)","v":{"v":174154.6207861186,"d":"174,155"}},{"$f":"'BP Financier'!$G$44*(('BP Financier'!$C$19+'BP Financier'!$D$19+'BP Financier'!$E$19+'BP Financier'!$F$19+'BP Financier'!$G$19)/('BP Financier'!$C$16+'BP Financier'!$C$19+'BP Financier'!$D$16+'BP Financier'!$D$19+'BP Financier'!$E$16+'BP Financier'!$E$19+'BP Financier'!$C$22+'BP Financier'!$D$22+'BP Financier'!$E$22+'BP Financier'!$F$22+'BP Financier'!$F$19+'BP Financier'!$F$16+'BP Financier'!$G$22+'BP Financier'!$G$19+'BP Financier'!$G$16))*$V9284*AA9284/(1-$W9284)","v":{"v":21516.46318054475,"d":"21,516"}},{"$f":"'BP Financier'!$G$44*(('BP Financier'!$C$19+'BP Financier'!$D$19+'BP Financier'!$E$19+'BP Financier'!$F$19+'BP Financier'!$G$19)/('BP Financier'!$C$16+'BP Financier'!$C$19+'BP Financier'!$D$16+'BP Financier'!$D$19+'BP Financier'!$E$16+'BP Financier'!$E$19+'BP Financier'!$C$22+'BP Financier'!$D$22+'BP Financier'!$E$22+'BP Financier'!$F$22+'BP Financier'!$F$19+'BP Financier'!$F$16+'BP Financier'!$G$22+'BP Financier'!$G$19+'BP Financier'!$G$16))*$V9284*AB9284/(1-$W9284)","v":{"v":10298.478103508596,"d":"10,298"}},null,{"v":0.008,"d":"0.80%"},{"$f":"Actif!$E$28/100","v":{"v":0.28900000000000003,"d":"28.90%"}},{"$f":"Actif!$E$30/100","v":{"v":0.09050000000000001,"d":"9.05%"}},{"$f":"Actif!$E$31/100","v":{"v":0.0605,"d":"6.05%"}},{"$f":"Actif!$E$32/100","v":{"v":0.47350000000000003,"d":"47.35%"}},{"$f":"Actif!$E$33/100","v":{"v":0.0585,"d":"5.85%"}},{"$f":"Actif!$E$29/100","v":{"v":0.027999999999999997,"d":"2.80%"}}]
[null,"#169",51,2030,"H","A_PER",{"v":0.44999999999999996,"d":"0.45"},{"v":0.38999999999999996,"d":"0.39"},0.6,0.6,85,0,{"$f":"ROUND(Primes!$Q$7*V9285,0)","v":11},{"$f":"'BP Financier'!$G$33*(('BP Financier'!$C$19+'BP Financier'!$D$19+'BP Financier'!$E$19+'BP Financier'!$F$19+'BP Financier'!$G$19)/('BP Financier'!$C$16+'BP Financier'!$C$19+'BP Financier'!$D$16+'BP Financier'!$D$19+'BP Financier'!$E$16+'BP Financier'!$E$19+'BP Financier'!$F$16+'BP Financier'!$F$19+'BP Financier'!$G$16+'BP Financier'!$G$19))*V9285","v":{"v":455640.45778982196,"d":"455,640"}},{"v":261507.7832712362,"d":"261,508"},{"$f":"'BP Financier'!$G$44*(('BP Financier'!$C$19+'BP Financier'!$D$19+'BP Financier'!$E$19+'BP Financier'!$F$19+'BP Financier'!$G$19)/('BP Financier'!$C$16+'BP Financier'!$C$19+'BP Financier'!$D$16+'BP Financier'!$D$19+'BP Financier'!$E$16+'BP Financier'!$E$19+'BP Financier'!$C$22+'BP Financier'!$D$22+'BP Financier'!$E$22+'BP Financier'!$F$22+'BP Financier'!$F$19+'BP Financier'!$F$16+'BP Financier'!$G$22+'BP Financier'!$G$19+'BP Financier'!$G$16))*$V9285*X9285/(1-$W9285)","v":{"v":33286.152441697435,"d":"33,286"}},{"$f":"'BP Financier'!$G$44*(('BP Financier'!$C$19+'BP Financier'!$D$19+'BP Financier'!$E$19+'BP Financier'!$F$19+'BP Financier'!$G$19)/('BP Financier'!$C$16+'BP Financier'!$C$19+'BP Financier'!$D$16+'BP Financier'!$D$19+'BP Financier'!$E$16+'BP Financier'!$E$19+'BP Financier'!$C$22+'BP Financier'!$D$22+'BP Financier'!$E$22+'BP Financier'!$F$22+'BP Financier'!$F$19+'BP Financier'!$F$16+'BP Financier'!$G$22+'BP Financier'!$G$19+'BP Financier'!$G$16))*$V9285*Y9285/(1-$W9285)","v":{"v":22252.068759366786,"d":"22,252"}},{"$f":"'BP Financier'!$G$44*(('BP Financier'!$C$19+'BP Financier'!$D$19+'BP Financier'!$E$19+'BP Financier'!$F$19+'BP Financier'!$G$19)/('BP Financier'!$C$16+'BP Financier'!$C$19+'BP Financier'!$D$16+'BP Financier'!$D$19+'BP Financier'!$E$16+'BP Financier'!$E$19+'BP Financier'!$C$22+'BP Financier'!$D$22+'BP Financier'!$E$22+'BP Financier'!$F$22+'BP Financier'!$F$19+'BP Financier'!$F$16+'BP Financier'!$G$22+'BP Financier'!$G$19+'BP Financier'!$G$16))*$V9285*Z9285/(1-$W9285)","v":{"v":174154.6207861186,"d":"174,155"}},{"$f":"'BP Financier'!$G$44*(('BP Financier'!$C$19+'BP Financier'!$D$19+'BP Financier'!$E$19+'BP Financier'!$F$19+'BP Financier'!$G$19)/('BP Financier'!$C$16+'BP Financier'!$C$19+'BP Financier'!$D$16+'BP Financier'!$D$19+'BP Financier'!$E$16+'BP Financier'!$E$19+'BP Financier'!$C$22+'BP Financier'!$D$22+'BP Financier'!$E$22+'BP Financier'!$F$22+'BP Financier'!$F$19+'BP Financier'!$F$16+'BP Financier'!$G$22+'BP Financier'!$G$19+'BP Financier'!$G$16))*$V9285*AA9285/(1-$W9285)","v":{"v":21516.46318054475,"d":"21,516"}},{"$f":"'BP Financier'!$G$44*(('BP Financier'!$C$19+'BP Financier'!$D$19+'BP Financier'!$E$19+'BP Financier'!$F$19+'BP Financier'!$G$19)/('BP Financier'!$C$16+'BP Financier'!$C$19+'BP Financier'!$D$16+'BP Financier'!$D$19+'BP Financier'!$E$16+'BP Financier'!$E$19+'BP Financier'!$C$22+'BP Financier'!$D$22+'BP Financier'!$E$22+'BP Financier'!$F$22+'BP Financier'!$F$19+'BP Financier'!$F$16+'BP Financier'!$G$22+'BP Financier'!$G$19+'BP Financier'!$G$16))*$V9285*AB9285/(1-$W9285)","v":{"v":10298.478103508596,"d":"10,298"}},null,{"v":0.008,"d":"0.80%"},{"$f":"Actif!$E$28/100","v":{"v":0.28900000000000003,"d":"28.90%"}},{"$f":"Actif!$E$30/100","v":{"v":0.09050000000000001,"d":"9.05%"}},{"$f":"Actif!$E$31/100","v":{"v":0.0605,"d":"6.05%"}},{"$f":"Actif!$E$32/100","v":{"v":0.47350000000000003,"d":"47.35%"}},{"$f":"Actif!$E$33/100","v":{"v":0.0585,"d":"5.85%"}},{"$f":"Actif!$E$29/100","v":{"v":0.027999999999999997,"d":"2.80%"}}]
[null,"#170",51,2031,"H","A_PER",{"v":0.44999999999999996,"d":"0.45"},{"v":0.38999999999999996,"d":"0.39"},0.6,0.6,85,0,{"$f":"ROUND(Primes!$Q$7*V9286,0)","v":11},{"$f":"'BP Financier'!$G$33*(('BP Financier'!$C$19+'BP Financier'!$D$19+'BP Financier'!$E$19+'BP Financier'!$F$19+'BP Financier'!$G$19)/('BP Financier'!$C$16+'BP Financier'!$C$19+'BP Financier'!$D$16+'BP Financier'!$D$19+'BP Financier'!$E$16+'BP Financier'!$E$19+'BP Financier'!$F$16+'BP Financier'!$F$19+'BP Financier'!$G$16+'BP Financier'!$G$19))*V9286","v":{"v":455640.45778982196,"d":"455,640"}},{"v":261507.7832712362,"d":"261,508"},{"$f":"'BP Financier'!$G$44*(('BP Financier'!$C$19+'BP Financier'!$D$19+'BP Financier'!$E$19+'BP Financier'!$F$19+'BP Financier'!$G$19)/('BP Financier'!$C$16+'BP Financier'!$C$19+'BP Financier'!$D$16+'BP Financier'!$D$19+'BP Financier'!$E$16+'BP Financier'!$E$19+'BP Financier'!$C$22+'BP Financier'!$D$22+'BP Financier'!$E$22+'BP Financier'!$F$22+'BP Financier'!$F$19+'BP Financier'!$F$16+'BP Financier'!$G$22+'BP Financier'!$G$19+'BP Financier'!$G$16))*$V9286*X9286/(1-$W9286)","v":{"v":33286.152441697435,"d":"33,286"}},{"$f":"'BP Financier'!$G$44*(('BP Financier'!$C$19+'BP Financier'!$D$19+'BP Financier'!$E$19+'BP Financier'!$F$19+'BP Financier'!$G$19)/('BP Financier'!$C$16+'BP Financier'!$C$19+'BP Financier'!$D$16+'BP Financier'!$D$19+'BP Financier'!$E$16+'BP Financier'!$E$19+'BP Financier'!$C$22+'BP Financier'!$D$22+'BP Financier'!$E$22+'BP Financier'!$F$22+'BP Financier'!$F$19+'BP Financier'!$F$16+'BP Financier'!$G$22+'BP Financier'!$G$19+'BP Financier'!$G$16))*$V9286*Y9286/(1-$W9286)","v":{"v":22252.068759366786,"d":"22,252"}},{"$f":"'BP Financier'!$G$44*(('BP Financier'!$C$19+'BP Financier'!$D$19+'BP Financier'!$E$19+'BP Financier'!$F$19+'BP Financier'!$G$19)/('BP Financier'!$C$16+'BP Financier'!$C$19+'BP Financier'!$D$16+'BP Financier'!$D$19+'BP Financier'!$E$16+'BP Financier'!$E$19+'BP Financier'!$C$22+'BP Financier'!$D$22+'BP Financier'!$E$22+'BP Financier'!$F$22+'BP Financier'!$F$19+'BP Financier'!$F$16+'BP Financier'!$G$22+'BP Financier'!$G$19+'BP Financier'!$G$16))*$V9286*Z9286/(1-$W9286)","v":{"v":174154.6207861186,"d":"174,155"}},{"$f":"'BP Financier'!$G$44*(('BP Financier'!$C$19+'BP Financier'!$D$19+'BP Financier'!$E$19+'BP Financier'!$F$19+'BP Financier'!$G$19)/('BP Financier'!$C$16+'BP Financier'!$C$19+'BP Financier'!$D$16+'BP Financier'!$D$19+'BP Financier'!$E$16+'BP Financier'!$E$19+'BP Financier'!$C$22+'BP Financier'!$D$22+'BP Financier'!$E$22+'BP Financier'!$F$22+'BP Financier'!$F$19+'BP Financier'!$F$16+'BP Financier'!$G$22+'BP Financier'!$G$19+'BP Financier'!$G$16))*$V9286*AA9286/(1-$W9286)","v":{"v":21516.46318054475,"d":"21,516"}},{"$f":"'BP Financier'!$G$44*(('BP Financier'!$C$19+'BP Financier'!$D$19+'BP Financier'!$E$19+'BP Financier'!$F$19+'BP Financier'!$G$19)/('BP Financier'!$C$16+'BP Financier'!$C$19+'BP Financier'!$D$16+'BP Financier'!$D$19+'BP Financier'!$E$16+'BP Financier'!$E$19+'BP Financier'!$C$22+'BP Financier'!$D$22+'BP Financier'!$E$22+'BP Financier'!$F$22+'BP Financier'!$F$19+'BP Financier'!$F$16+'BP Financier'!$G$22+'BP Financier'!$G$19+'BP Financier'!$G$16))*$V9286*AB9286/(1-$W9286)","v":{"v":10298.478103508596,"d":"10,298"}},null,{"v":0.008,"d":"0.80%"},{"$f":"Actif!$E$28/100","v":{"v":0.28900000000000003,"d":"28.90%"}},{"$f":"Actif!$E$30/100","v":{"v":0.09050000000000001,"d":"9.05%"}},{"$f":"Actif!$E$31/100","v":{"v":0.0605,"d":"6.05%"}},{"$f":"Actif!$E$32/100","v":{"v":0.47350000000000003,"d":"47.35%"}},{"$f":"Actif!$E$33/100","v":{"v":0.0585,"d":"5.85%"}},{"$f":"Actif!$E$29/100","v":{"v":0.027999999999999997,"d":"2.80%"}}]
[null,"#171",52,2026,"H","A_PER",{"v":0.44999999999999996,"d":"0.45"},{"v":0.38999999999999996,"d":"0.39"},0.6,0.6,85,0,{"$f":"ROUND(Primes!$Q$7*V9287,0)","v":11},{"$f":"'BP Financier'!$G$33*(('BP Financier'!$C$19+'BP Financier'!$D$19+'BP Financier'!$E$19+'BP Financier'!$F$19+'BP Financier'!$G$19)/('BP Financier'!$C$16+'BP Financier'!$C$19+'BP Financier'!$D$16+'BP Financier'!$D$19+'BP Financier'!$E$16+'BP Financier'!$E$19+'BP Financier'!$F$16+'BP Financier'!$F$19+'BP Financier'!$G$16+'BP Financier'!$G$19))*V9287","v":{"v":455640.45778982196,"d":"455,640"}},{"v":261507.7832712362,"d":"261,508"},{"$f":"'BP Financier'!$G$44*(('BP Financier'!$C$19+'BP Financier'!$D$19+'BP Financier'!$E$19+'BP Financier'!$F$19+'BP Financier'!$G$19)/('BP Financier'!$C$16+'BP Financier'!$C$19+'BP Financier'!$D$16+'BP Financier'!$D$19+'BP Financier'!$E$16+'BP Financier'!$E$19+'BP Financier'!$C$22+'BP Financier'!$D$22+'BP Financier'!$E$22+'BP Financier'!$F$22+'BP Financier'!$F$19+'BP Financier'!$F$16+'BP Financier'!$G$22+'BP Financier'!$G$19+'BP Financier'!$G$16))*$V9287*X9287/(1-$W9287)","v":{"v":33286.152441697435,"d":"33,286"}},{"$f":"'BP Financier'!$G$44*(('BP Financier'!$C$19+'BP Financier'!$D$19+'BP Financier'!$E$19+'BP Financier'!$F$19+'BP Financier'!$G$19)/('BP Financier'!$C$16+'BP Financier'!$C$19+'BP Financier'!$D$16+'BP Financier'!$D$19+'BP Financier'!$E$16+'BP Financier'!$E$19+'BP Financier'!$C$22+'BP Financier'!$D$22+'BP Financier'!$E$22+'BP Financier'!$F$22+'BP Financier'!$F$19+'BP Financier'!$F$16+'BP Financier'!$G$22+'BP Financier'!$G$19+'BP Financier'!$G$16))*$V9287*Y9287/(1-$W9287)","v":{"v":22252.068759366786,"d":"22,252"}},{"$f":"'BP Financier'!$G$44*(('BP Financier'!$C$19+'BP Financier'!$D$19+'BP Financier'!$E$19+'BP Financier'!$F$19+'BP Financier'!$G$19)/('BP Financier'!$C$16+'BP Financier'!$C$19+'BP Financier'!$D$16+'BP Financier'!$D$19+'BP Financier'!$E$16+'BP Financier'!$E$19+'BP Financier'!$C$22+'BP Financier'!$D$22+'BP Financier'!$E$22+'BP Financier'!$F$22+'BP Financier'!$F$19+'BP Financier'!$F$16+'BP Financier'!$G$22+'BP Financier'!$G$19+'BP Financier'!$G$16))*$V9287*Z9287/(1-$W9287)","v":{"v":174154.6207861186,"d":"174,155"}},{"$f":"'BP Financier'!$G$44*(('BP Financier'!$C$19+'BP Financier'!$D$19+'BP Financier'!$E$19+'BP Financier'!$F$19+'BP Financier'!$G$19)/('BP Financier'!$C$16+'BP Financier'!$C$19+'BP Financier'!$D$16+'BP Financier'!$D$19+'BP Financier'!$E$16+'BP Financier'!$E$19+'BP Financier'!$C$22+'BP Financier'!$D$22+'BP Financier'!$E$22+'BP Financier'!$F$22+'BP Financier'!$F$19+'BP Financier'!$F$16+'BP Financier'!$G$22+'BP Financier'!$G$19+'BP Financier'!$G$16))*$V9287*AA9287/(1-$W9287)","v":{"v":21516.46318054475,"d":"21,516"}},{"$f":"'BP Financier'!$G$44*(('BP Financier'!$C$19+'BP Financier'!$D$19+'BP Financier'!$E$19+'BP Financier'!$F$19+'BP Financier'!$G$19)/('BP Financier'!$C$16+'BP Financier'!$C$19+'BP Financier'!$D$16+'BP Financier'!$D$19+'BP Financier'!$E$16+'BP Financier'!$E$19+'BP Financier'!$C$22+'BP Financier'!$D$22+'BP Financier'!$E$22+'BP Financier'!$F$22+'BP Financier'!$F$19+'BP Financier'!$F$16+'BP Financier'!$G$22+'BP Financier'!$G$19+'BP Financier'!$G$16))*$V9287*AB9287/(1-$W9287)","v":{"v":10298.478103508596,"d":"10,298"}},null,{"v":0.008,"d":"0.80%"},{"$f":"Actif!$E$28/100","v":{"v":0.28900000000000003,"d":"28.90%"}},{"$f":"Actif!$E$30/100","v":{"v":0.09050000000000001,"d":"9.05%"}},{"$f":"Actif!$E$31/100","v":{"v":0.0605,"d":"6.05%"}},{"$f":"Actif!$E$32/100","v":{"v":0.47350000000000003,"d":"47.35%"}},{"$f":"Actif!$E$33/100","v":{"v":0.0585,"d":"5.85%"}},{"$f":"Actif!$E$29/100","v":{"v":0.027999999999999997,"d":"2.80%"}}]
[null,"#172",52,2028,"H","A_PER",{"v":0.44999999999999996,"d":"0.45"},{"v":0.38999999999999996,"d":"0.39"},0.6,0.6,85,0,{"$f":"ROUND(Primes!$Q$7*V9288,0)","v":11},{"$f":"'BP Financier'!$G$33*(('BP Financier'!$C$19+'BP Financier'!$D$19+'BP Financier'!$E$19+'BP Financier'!$F$19+'BP Financier'!$G$19)/('BP Financier'!$C$16+'BP Financier'!$C$19+'BP Financier'!$D$16+'BP Financier'!$D$19+'BP Financier'!$E$16+'BP Financier'!$E$19+'BP Financier'!$F$16+'BP Financier'!$F$19+'BP Financier'!$G$16+'BP Financier'!$G$19))*V9288","v":{"v":455640.45778982196,"d":"455,640"}},{"v":261507.7832712362,"d":"261,508"},{"$f":"'BP Financier'!$G$44*(('BP Financier'!$C$19+'BP Financier'!$D$19+'BP Financier'!$E$19+'BP Financier'!$F$19+'BP Financier'!$G$19)/('BP Financier'!$C$16+'BP Financier'!$C$19+'BP Financier'!$D$16+'BP Financier'!$D$19+'BP Financier'!$E$16+'BP Financier'!$E$19+'BP Financier'!$C$22+'BP Financier'!$D$22+'BP Financier'!$E$22+'BP Financier'!$F$22+'BP Financier'!$F$19+'BP Financier'!$F$16+'BP Financier'!$G$22+'BP Financier'!$G$19+'BP Financier'!$G$16))*$V9288*X9288/(1-$W9288)","v":{"v":33286.152441697435,"d":"33,286"}},{"$f":"'BP Financier'!$G$44*(('BP Financier'!$C$19+'BP Financier'!$D$19+'BP Financier'!$E$19+'BP Financier'!$F$19+'BP Financier'!$G$19)/('BP Financier'!$C$16+'BP Financier'!$C$19+'BP Financier'!$D$16+'BP Financier'!$D$19+'BP Financier'!$E$16+'BP Financier'!$E$19+'BP Financier'!$C$22+'BP Financier'!$D$22+'BP Financier'!$E$22+'BP Financier'!$F$22+'BP Financier'!$F$19+'BP Financier'!$F$16+'BP Financier'!$G$22+'BP Financier'!$G$19+'BP Financier'!$G$16))*$V9288*Y9288/(1-$W9288)","v":{"v":22252.068759366786,"d":"22,252"}},{"$f":"'BP Financier'!$G$44*(('BP Financier'!$C$19+'BP Financier'!$D$19+'BP Financier'!$E$19+'BP Financier'!$F$19+'BP Financier'!$G$19)/('BP Financier'!$C$16+'BP Financier'!$C$19+'BP Financier'!$D$16+'BP Financier'!$D$19+'BP Financier'!$E$16+'BP Financier'!$E$19+'BP Financier'!$C$22+'BP Financier'!$D$22+'BP Financier'!$E$22+'BP Financier'!$F$22+'BP Financier'!$F$19+'BP Financier'!$F$16+'BP Financier'!$G$22+'BP Financier'!$G$19+'BP Financier'!$G$16))*$V9288*Z9288/(1-$W9288)","v":{"v":174154.6207861186,"d":"174,155"}},{"$f":"'BP Financier'!$G$44*(('BP Financier'!$C$19+'BP Financier'!$D$19+'BP Financier'!$E$19+'BP Financier'!$F$19+'BP Financier'!$G$19)/('BP Financier'!$C$16+'BP Financier'!$C$19+'BP Financier'!$D$16+'BP Financier'!$D$19+'BP Financier'!$E$16+'BP Financier'!$E$19+'BP Financier'!$C$22+'BP Financier'!$D$22+'BP Financier'!$E$22+'BP Financier'!$F$22+'BP Financier'!$F$19+'BP Financier'!$F$16+'BP Financier'!$G$22+'BP Financier'!$G$19+'BP Financier'!$G$16))*$V9288*AA9288/(1-$W9288)","v":{"v":21516.46318054475,"d":"21,516"}},{"$f":"'BP Financier'!$G$44*(('BP Financier'!$C$19+'BP Financier'!$D$19+'BP Financier'!$E$19+'BP Financier'!$F$19+'BP Financier'!$G$19)/('BP Financier'!$C$16+'BP Financier'!$C$19+'BP Financier'!$D$16+'BP Financier'!$D$19+'BP Financier'!$E$16+'BP Financier'!$E$19+'BP Financier'!$C$22+'BP Financier'!$D$22+'BP Financier'!$E$22+'BP Financier'!$F$22+'BP Financier'!$F$19+'BP Financier'!$F$16+'BP Financier'!$G$22+'BP Financier'!$G$19+'BP Financier'!$G$16))*$V9288*AB9288/(1-$W9288)","v":{"v":10298.478103508596,"d":"10,298"}},null,{"v":0.008,"d":"0.80%"},{"$f":"Actif!$E$28/100","v":{"v":0.28900000000000003,"d":"28.90%"}},{"$f":"Actif!$E$30/100","v":{"v":0.09050000000000001,"d":"9.05%"}},{"$f":"Actif!$E$31/100","v":{"v":0.0605,"d":"6.05%"}},{"$f":"Actif!$E$32/100","v":{"v":0.47350000000000003,"d":"47.35%"}},{"$f":"Actif!$E$33/100","v":{"v":0.0585,"d":"5.85%"}},{"$f":"Actif!$E$29/100","v":{"v":0.027999999999999997,"d":"2.80%"}}]
[null,"#173",52,2029,"H","A_PER",{"v":0.44999999999999996,"d":"0.45"},{"v":0.38999999999999996,"d":"0.39"},0.6,0.6,85,0,{"$f":"ROUND(Primes!$Q$7*V9289,0)","v":11},{"$f":"'BP Financier'!$G$33*(('BP Financier'!$C$19+'BP Financier'!$D$19+'BP Financier'!$E$19+'BP Financier'!$F$19+'BP Financier'!$G$19)/('BP Financier'!$C$16+'BP Financier'!$C$19+'BP Financier'!$D$16+'BP Financier'!$D$19+'BP Financier'!$E$16+'BP Financier'!$E$19+'BP Financier'!$F$16+'BP Financier'!$F$19+'BP Financier'!$G$16+'BP Financier'!$G$19))*V9289","v":{"v":455640.45778982196,"d":"455,640"}},{"v":261507.7832712362,"d":"261,508"},{"$f":"'BP Financier'!$G$44*(('BP Financier'!$C$19+'BP Financier'!$D$19+'BP Financier'!$E$19+'BP Financier'!$F$19+'BP Financier'!$G$19)/('BP Financier'!$C$16+'BP Financier'!$C$19+'BP Financier'!$D$16+'BP Financier'!$D$19+'BP Financier'!$E$16+'BP Financier'!$E$19+'BP Financier'!$C$22+'BP Financier'!$D$22+'BP Financier'!$E$22+'BP Financier'!$F$22+'BP Financier'!$F$19+'BP Financier'!$F$16+'BP Financier'!$G$22+'BP Financier'!$G$19+'BP Financier'!$G$16))*$V9289*X9289/(1-$W9289)","v":{"v":33286.152441697435,"d":"33,286"}},{"$f":"'BP Financier'!$G$44*(('BP Financier'!$C$19+'BP Financier'!$D$19+'BP Financier'!$E$19+'BP Financier'!$F$19+'BP Financier'!$G$19)/('BP Financier'!$C$16+'BP Financier'!$C$19+'BP Financier'!$D$16+'BP Financier'!$D$19+'BP Financier'!$E$16+'BP Financier'!$E$19+'BP Financier'!$C$22+'BP Financier'!$D$22+'BP Financier'!$E$22+'BP Financier'!$F$22+'BP Financier'!$F$19+'BP Financier'!$F$16+'BP Financier'!$G$22+'BP Financier'!$G$19+'BP Financier'!$G$16))*$V9289*Y9289/(1-$W9289)","v":{"v":22252.068759366786,"d":"22,252"}},{"$f":"'BP Financier'!$G$44*(('BP Financier'!$C$19+'BP Financier'!$D$19+'BP Financier'!$E$19+'BP Financier'!$F$19+'BP Financier'!$G$19)/('BP Financier'!$C$16+'BP Financier'!$C$19+'BP Financier'!$D$16+'BP Financier'!$D$19+'BP Financier'!$E$16+'BP Financier'!$E$19+'BP Financier'!$C$22+'BP Financier'!$D$22+'BP Financier'!$E$22+'BP Financier'!$F$22+'BP Financier'!$F$19+'BP Financier'!$F$16+'BP Financier'!$G$22+'BP Financier'!$G$19+'BP Financier'!$G$16))*$V9289*Z9289/(1-$W9289)","v":{"v":174154.6207861186,"d":"174,155"}},{"$f":"'BP Financier'!$G$44*(('BP Financier'!$C$19+'BP Financier'!$D$19+'BP Financier'!$E$19+'BP Financier'!$F$19+'BP Financier'!$G$19)/('BP Financier'!$C$16+'BP Financier'!$C$19+'BP Financier'!$D$16+'BP Financier'!$D$19+'BP Financier'!$E$16+'BP Financier'!$E$19+'BP Financier'!$C$22+'BP Financier'!$D$22+'BP Financier'!$E$22+'BP Financier'!$F$22+'BP Financier'!$F$19+'BP Financier'!$F$16+'BP Financier'!$G$22+'BP Financier'!$G$19+'BP Financier'!$G$16))*$V9289*AA9289/(1-$W9289)","v":{"v":21516.46318054475,"d":"21,516"}},{"$f":"'BP Financier'!$G$44*(('BP Financier'!$C$19+'BP Financier'!$D$19+'BP Financier'!$E$19+'BP Financier'!$F$19+'BP Financier'!$G$19)/('BP Financier'!$C$16+'BP Financier'!$C$19+'BP Financier'!$D$16+'BP Financier'!$D$19+'BP Financier'!$E$16+'BP Financier'!$E$19+'BP Financier'!$C$22+'BP Financier'!$D$22+'BP Financier'!$E$22+'BP Financier'!$F$22+'BP Financier'!$F$19+'BP Financier'!$F$16+'BP Financier'!$G$22+'BP Financier'!$G$19+'BP Financier'!$G$16))*$V9289*AB9289/(1-$W9289)","v":{"v":10298.478103508596,"d":"10,298"}},null,{"v":0.008,"d":"0.80%"},{"$f":"Actif!$E$28/100","v":{"v":0.28900000000000003,"d":"28.90%"}},{"$f":"Actif!$E$30/100","v":{"v":0.09050000000000001,"d":"9.05%"}},{"$f":"Actif!$E$31/100","v":{"v":0.0605,"d":"6.05%"}},{"$f":"Actif!$E$32/100","v":{"v":0.47350000000000003,"d":"47.35%"}},{"$f":"Actif!$E$33/100","v":{"v":0.0585,"d":"5.85%"}},{"$f":"Actif!$E$29/100","v":{"v":0.027999999999999997,"d":"2.80%"}}]
[null,"#174",52,2030,"H","A_PER",{"v":0.44999999999999996,"d":"0.45"},{"v":0.38999999999999996,"d":"0.39"},0.6,0.6,85,0,{"$f":"ROUND(Primes!$Q$7*V9290,0)","v":11},{"$f":"'BP Financier'!$G$33*(('BP Financier'!$C$19+'BP Financier'!$D$19+'BP Financier'!$E$19+'BP Financier'!$F$19+'BP Financier'!$G$19)/('BP Financier'!$C$16+'BP Financier'!$C$19+'BP Financier'!$D$16+'BP Financier'!$D$19+'BP Financier'!$E$16+'BP Financier'!$E$19+'BP Financier'!$F$16+'BP Financier'!$F$19+'BP Financier'!$G$16+'BP Financier'!$G$19))*V9290","v":{"v":455640.45778982196,"d":"455,640"}},{"v":261507.7832712362,"d":"261,508"},{"$f":"'BP Financier'!$G$44*(('BP Financier'!$C$19+'BP Financier'!$D$19+'BP Financier'!$E$19+'BP Financier'!$F$19+'BP Financier'!$G$19)/('BP Financier'!$C$16+'BP Financier'!$C$19+'BP Financier'!$D$16+'BP Financier'!$D$19+'BP Financier'!$E$16+'BP Financier'!$E$19+'BP Financier'!$C$22+'BP Financier'!$D$22+'BP Financier'!$E$22+'BP Financier'!$F$22+'BP Financier'!$F$19+'BP Financier'!$F$16+'BP Financier'!$G$22+'BP Financier'!$G$19+'BP Financier'!$G$16))*$V9290*X9290/(1-$W9290)","v":{"v":33286.152441697435,"d":"33,286"}},{"$f":"'BP Financier'!$G$44*(('BP Financier'!$C$19+'BP Financier'!$D$19+'BP Financier'!$E$19+'BP Financier'!$F$19+'BP Financier'!$G$19)/('BP Financier'!$C$16+'BP Financier'!$C$19+'BP Financier'!$D$16+'BP Financier'!$D$19+'BP Financier'!$E$16+'BP Financier'!$E$19+'BP Financier'!$C$22+'BP Financier'!$D$22+'BP Financier'!$E$22+'BP Financier'!$F$22+'BP Financier'!$F$19+'BP Financier'!$F$16+'BP Financier'!$G$22+'BP Financier'!$G$19+'BP Financier'!$G$16))*$V9290*Y9290/(1-$W9290)","v":{"v":22252.068759366786,"d":"22,252"}},{"$f":"'BP Financier'!$G$44*(('BP Financier'!$C$19+'BP Financier'!$D$19+'BP Financier'!$E$19+'BP Financier'!$F$19+'BP Financier'!$G$19)/('BP Financier'!$C$16+'BP Financier'!$C$19+'BP Financier'!$D$16+'BP Financier'!$D$19+'BP Financier'!$E$16+'BP Financier'!$E$19+'BP Financier'!$C$22+'BP Financier'!$D$22+'BP Financier'!$E$22+'BP Financier'!$F$22+'BP Financier'!$F$19+'BP Financier'!$F$16+'BP Financier'!$G$22+'BP Financier'!$G$19+'BP Financier'!$G$16))*$V9290*Z9290/(1-$W9290)","v":{"v":174154.6207861186,"d":"174,155"}},{"$f":"'BP Financier'!$G$44*(('BP Financier'!$C$19+'BP Financier'!$D$19+'BP Financier'!$E$19+'BP Financier'!$F$19+'BP Financier'!$G$19)/('BP Financier'!$C$16+'BP Financier'!$C$19+'BP Financier'!$D$16+'BP Financier'!$D$19+'BP Financier'!$E$16+'BP Financier'!$E$19+'BP Financier'!$C$22+'BP Financier'!$D$22+'BP Financier'!$E$22+'BP Financier'!$F$22+'BP Financier'!$F$19+'BP Financier'!$F$16+'BP Financier'!$G$22+'BP Financier'!$G$19+'BP Financier'!$G$16))*$V9290*AA9290/(1-$W9290)","v":{"v":21516.46318054475,"d":"21,516"}},{"$f":"'BP Financier'!$G$44*(('BP Financier'!$C$19+'BP Financier'!$D$19+'BP Financier'!$E$19+'BP Financier'!$F$19+'BP Financier'!$G$19)/('BP Financier'!$C$16+'BP Financier'!$C$19+'BP Financier'!$D$16+'BP Financier'!$D$19+'BP Financier'!$E$16+'BP Financier'!$E$19+'BP Financier'!$C$22+'BP Financier'!$D$22+'BP Financier'!$E$22+'BP Financier'!$F$22+'BP Financier'!$F$19+'BP Financier'!$F$16+'BP Financier'!$G$22+'BP Financier'!$G$19+'BP Financier'!$G$16))*$V9290*AB9290/(1-$W9290)","v":{"v":10298.478103508596,"d":"10,298"}},null,{"v":0.008,"d":"0.80%"},{"$f":"Actif!$E$28/100","v":{"v":0.28900000000000003,"d":"28.90%"}},{"$f":"Actif!$E$30/100","v":{"v":0.09050000000000001,"d":"9.05%"}},{"$f":"Actif!$E$31/100","v":{"v":0.0605,"d":"6.05%"}},{"$f":"Actif!$E$32/100","v":{"v":0.47350000000000003,"d":"47.35%"}},{"$f":"Actif!$E$33/100","v":{"v":0.0585,"d":"5.85%"}},{"$f":"Actif!$E$29/100","v":{"v":0.027999999999999997,"d":"2.80%"}}]
[null,"#175",52,2031,"H","A_PER",{"v":0.44999999999999996,"d":"0.45"},{"v":0.38999999999999996,"d":"0.39"},0.6,0.6,85,0,{"$f":"ROUND(Primes!$Q$7*V9291,0)","v":11},{"$f":"'BP Financier'!$G$33*(('BP Financier'!$C$19+'BP Financier'!$D$19+'BP Financier'!$E$19+'BP Financier'!$F$19+'BP Financier'!$G$19)/('BP Financier'!$C$16+'BP Financier'!$C$19+'BP Financier'!$D$16+'BP Financier'!$D$19+'BP Financier'!$E$16+'BP Financier'!$E$19+'BP Financier'!$F$16+'BP Financier'!$F$19+'BP Financier'!$G$16+'BP Financier'!$G$19))*V9291","v":{"v":455640.45778982196,"d":"455,640"}},{"v":261507.7832712362,"d":"261,508"},{"$f":"'BP Financier'!$G$44*(('BP Financier'!$C$19+'BP Financier'!$D$19+'BP Financier'!$E$19+'BP Financier'!$F$19+'BP Financier'!$G$19)/('BP Financier'!$C$16+'BP Financier'!$C$19+'BP Financier'!$D$16+'BP Financier'!$D$19+'BP Financier'!$E$16+'BP Financier'!$E$19+'BP Financier'!$C$22+'BP Financier'!$D$22+'BP Financier'!$E$22+'BP Financier'!$F$22+'BP Financier'!$F$19+'BP Financier'!$F$16+'BP Financier'!$G$22+'BP Financier'!$G$19+'BP Financier'!$G$16))*$V9291*X9291/(1-$W9291)","v":{"v":33286.152441697435,"d":"33,286"}},{"$f":"'BP Financier'!$G$44*(('BP Financier'!$C$19+'BP Financier'!$D$19+'BP Financier'!$E$19+'BP Financier'!$F$19+'BP Financier'!$G$19)/('BP Financier'!$C$16+'BP Financier'!$C$19+'BP Financier'!$D$16+'BP Financier'!$D$19+'BP Financier'!$E$16+'BP Financier'!$E$19+'BP Financier'!$C$22+'BP Financier'!$D$22+'BP Financier'!$E$22+'BP Financier'!$F$22+'BP Financier'!$F$19+'BP Financier'!$F$16+'BP Financier'!$G$22+'BP Financier'!$G$19+'BP Financier'!$G$16))*$V9291*Y9291/(1-$W9291)","v":{"v":22252.068759366786,"d":"22,252"}},{"$f":"'BP Financier'!$G$44*(('BP Financier'!$C$19+'BP Financier'!$D$19+'BP Financier'!$E$19+'BP Financier'!$F$19+'BP Financier'!$G$19)/('BP Financier'!$C$16+'BP Financier'!$C$19+'BP Financier'!$D$16+'BP Financier'!$D$19+'BP Financier'!$E$16+'BP Financier'!$E$19+'BP Financier'!$C$22+'BP Financier'!$D$22+'BP Financier'!$E$22+'BP Financier'!$F$22+'BP Financier'!$F$19+'BP Financier'!$F$16+'BP Financier'!$G$22+'BP Financier'!$G$19+'BP Financier'!$G$16))*$V9291*Z9291/(1-$W9291)","v":{"v":174154.6207861186,"d":"174,155"}},{"$f":"'BP Financier'!$G$44*(('BP Financier'!$C$19+'BP Financier'!$D$19+'BP Financier'!$E$19+'BP Financier'!$F$19+'BP Financier'!$G$19)/('BP Financier'!$C$16+'BP Financier'!$C$19+'BP Financier'!$D$16+'BP Financier'!$D$19+'BP Financier'!$E$16+'BP Financier'!$E$19+'BP Financier'!$C$22+'BP Financier'!$D$22+'BP Financier'!$E$22+'BP Financier'!$F$22+'BP Financier'!$F$19+'BP Financier'!$F$16+'BP Financier'!$G$22+'BP Financier'!$G$19+'BP Financier'!$G$16))*$V9291*AA9291/(1-$W9291)","v":{"v":21516.46318054475,"d":"21,516"}},{"$f":"'BP Financier'!$G$44*(('BP Financier'!$C$19+'BP Financier'!$D$19+'BP Financier'!$E$19+'BP Financier'!$F$19+'BP Financier'!$G$19)/('BP Financier'!$C$16+'BP Financier'!$C$19+'BP Financier'!$D$16+'BP Financier'!$D$19+'BP Financier'!$E$16+'BP Financier'!$E$19+'BP Financier'!$C$22+'BP Financier'!$D$22+'BP Financier'!$E$22+'BP Financier'!$F$22+'BP Financier'!$F$19+'BP Financier'!$F$16+'BP Financier'!$G$22+'BP Financier'!$G$19+'BP Financier'!$G$16))*$V9291*AB9291/(1-$W9291)","v":{"v":10298.478103508596,"d":"10,298"}},null,{"v":0.008,"d":"0.80%"},{"$f":"Actif!$E$28/100","v":{"v":0.28900000000000003,"d":"28.90%"}},{"$f":"Actif!$E$30/100","v":{"v":0.09050000000000001,"d":"9.05%"}},{"$f":"Actif!$E$31/100","v":{"v":0.0605,"d":"6.05%"}},{"$f":"Actif!$E$32/100","v":{"v":0.47350000000000003,"d":"47.35%"}},{"$f":"Actif!$E$33/100","v":{"v":0.0585,"d":"5.85%"}},{"$f":"Actif!$E$29/100","v":{"v":0.027999999999999997,"d":"2.80%"}}]
[null,"#176",53,2026,"F","A_PER",{"v":0.44999999999999996,"d":"0.45"},{"v":0.38999999999999996,"d":"0.39"},0.6,0.6,85,0,{"$f":"ROUND(Primes!$Q$7*V9292,0)","v":11},{"$f":"'BP Financier'!$G$33*(('BP Financier'!$C$19+'BP Financier'!$D$19+'BP Financier'!$E$19+'BP Financier'!$F$19+'BP Financier'!$G$19)/('BP Financier'!$C$16+'BP Financier'!$C$19+'BP Financier'!$D$16+'BP Financier'!$D$19+'BP Financier'!$E$16+'BP Financier'!$E$19+'BP Financier'!$F$16+'BP Financier'!$F$19+'BP Financier'!$G$16+'BP Financier'!$G$19))*V9292","v":{"v":455640.45778982196,"d":"455,640"}},{"v":261507.7832712362,"d":"261,508"},{"$f":"'BP Financier'!$G$44*(('BP Financier'!$C$19+'BP Financier'!$D$19+'BP Financier'!$E$19+'BP Financier'!$F$19+'BP Financier'!$G$19)/('BP Financier'!$C$16+'BP Financier'!$C$19+'BP Financier'!$D$16+'BP Financier'!$D$19+'BP Financier'!$E$16+'BP Financier'!$E$19+'BP Financier'!$C$22+'BP Financier'!$D$22+'BP Financier'!$E$22+'BP Financier'!$F$22+'BP Financier'!$F$19+'BP Financier'!$F$16+'BP Financier'!$G$22+'BP Financier'!$G$19+'BP Financier'!$G$16))*$V9292*X9292/(1-$W9292)","v":{"v":33286.152441697435,"d":"33,286"}},{"$f":"'BP Financier'!$G$44*(('BP Financier'!$C$19+'BP Financier'!$D$19+'BP Financier'!$E$19+'BP Financier'!$F$19+'BP Financier'!$G$19)/('BP Financier'!$C$16+'BP Financier'!$C$19+'BP Financier'!$D$16+'BP Financier'!$D$19+'BP Financier'!$E$16+'BP Financier'!$E$19+'BP Financier'!$C$22+'BP Financier'!$D$22+'BP Financier'!$E$22+'BP Financier'!$F$22+'BP Financier'!$F$19+'BP Financier'!$F$16+'BP Financier'!$G$22+'BP Financier'!$G$19+'BP Financier'!$G$16))*$V9292*Y9292/(1-$W9292)","v":{"v":22252.068759366786,"d":"22,252"}},{"$f":"'BP Financier'!$G$44*(('BP Financier'!$C$19+'BP Financier'!$D$19+'BP Financier'!$E$19+'BP Financier'!$F$19+'BP Financier'!$G$19)/('BP Financier'!$C$16+'BP Financier'!$C$19+'BP Financier'!$D$16+'BP Financier'!$D$19+'BP Financier'!$E$16+'BP Financier'!$E$19+'BP Financier'!$C$22+'BP Financier'!$D$22+'BP Financier'!$E$22+'BP Financier'!$F$22+'BP Financier'!$F$19+'BP Financier'!$F$16+'BP Financier'!$G$22+'BP Financier'!$G$19+'BP Financier'!$G$16))*$V9292*Z9292/(1-$W9292)","v":{"v":174154.6207861186,"d":"174,155"}},{"$f":"'BP Financier'!$G$44*(('BP Financier'!$C$19+'BP Financier'!$D$19+'BP Financier'!$E$19+'BP Financier'!$F$19+'BP Financier'!$G$19)/('BP Financier'!$C$16+'BP Financier'!$C$19+'BP Financier'!$D$16+'BP Financier'!$D$19+'BP Financier'!$E$16+'BP Financier'!$E$19+'BP Financier'!$C$22+'BP Financier'!$D$22+'BP Financier'!$E$22+'BP Financier'!$F$22+'BP Financier'!$F$19+'BP Financier'!$F$16+'BP Financier'!$G$22+'BP Financier'!$G$19+'BP Financier'!$G$16))*$V9292*AA9292/(1-$W9292)","v":{"v":21516.46318054475,"d":"21,516"}},{"$f":"'BP Financier'!$G$44*(('BP Financier'!$C$19+'BP Financier'!$D$19+'BP Financier'!$E$19+'BP Financier'!$F$19+'BP Financier'!$G$19)/('BP Financier'!$C$16+'BP Financier'!$C$19+'BP Financier'!$D$16+'BP Financier'!$D$19+'BP Financier'!$E$16+'BP Financier'!$E$19+'BP Financier'!$C$22+'BP Financier'!$D$22+'BP Financier'!$E$22+'BP Financier'!$F$22+'BP Financier'!$F$19+'BP Financier'!$F$16+'BP Financier'!$G$22+'BP Financier'!$G$19+'BP Financier'!$G$16))*$V9292*AB9292/(1-$W9292)","v":{"v":10298.478103508596,"d":"10,298"}},null,{"v":0.008,"d":"0.80%"},{"$f":"Actif!$E$28/100","v":{"v":0.28900000000000003,"d":"28.90%"}},{"$f":"Actif!$E$30/100","v":{"v":0.09050000000000001,"d":"9.05%"}},{"$f":"Actif!$E$31/100","v":{"v":0.0605,"d":"6.05%"}},{"$f":"Actif!$E$32/100","v":{"v":0.47350000000000003,"d":"47.35%"}},{"$f":"Actif!$E$33/100","v":{"v":0.0585,"d":"5.85%"}},{"$f":"Actif!$E$29/100","v":{"v":0.027999999999999997,"d":"2.80%"}}]
[null,"#177",53,2028,"F","A_PER",{"v":0.44999999999999996,"d":"0.45"},{"v":0.38999999999999996,"d":"0.39"},0.6,0.6,85,0,{"$f":"ROUND(Primes!$Q$7*V9293,0)","v":11},{"$f":"'BP Financier'!$G$33*(('BP Financier'!$C$19+'BP Financier'!$D$19+'BP Financier'!$E$19+'BP Financier'!$F$19+'BP Financier'!$G$19)/('BP Financier'!$C$16+'BP Financier'!$C$19+'BP Financier'!$D$16+'BP Financier'!$D$19+'BP Financier'!$E$16+'BP Financier'!$E$19+'BP Financier'!$F$16+'BP Financier'!$F$19+'BP Financier'!$G$16+'BP Financier'!$G$19))*V9293","v":{"v":455640.45778982196,"d":"455,640"}},{"v":261507.7832712362,"d":"261,508"},{"$f":"'BP Financier'!$G$44*(('BP Financier'!$C$19+'BP Financier'!$D$19+'BP Financier'!$E$19+'BP Financier'!$F$19+'BP Financier'!$G$19)/('BP Financier'!$C$16+'BP Financier'!$C$19+'BP Financier'!$D$16+'BP Financier'!$D$19+'BP Financier'!$E$16+'BP Financier'!$E$19+'BP Financier'!$C$22+'BP Financier'!$D$22+'BP Financier'!$E$22+'BP Financier'!$F$22+'BP Financier'!$F$19+'BP Financier'!$F$16+'BP Financier'!$G$22+'BP Financier'!$G$19+'BP Financier'!$G$16))*$V9293*X9293/(1-$W9293)","v":{"v":33286.152441697435,"d":"33,286"}},{"$f":"'BP Financier'!$G$44*(('BP Financier'!$C$19+'BP Financier'!$D$19+'BP Financier'!$E$19+'BP Financier'!$F$19+'BP Financier'!$G$19)/('BP Financier'!$C$16+'BP Financier'!$C$19+'BP Financier'!$D$16+'BP Financier'!$D$19+'BP Financier'!$E$16+'BP Financier'!$E$19+'BP Financier'!$C$22+'BP Financier'!$D$22+'BP Financier'!$E$22+'BP Financier'!$F$22+'BP Financier'!$F$19+'BP Financier'!$F$16+'BP Financier'!$G$22+'BP Financier'!$G$19+'BP Financier'!$G$16))*$V9293*Y9293/(1-$W9293)","v":{"v":22252.068759366786,"d":"22,252"}},{"$f":"'BP Financier'!$G$44*(('BP Financier'!$C$19+'BP Financier'!$D$19+'BP Financier'!$E$19+'BP Financier'!$F$19+'BP Financier'!$G$19)/('BP Financier'!$C$16+'BP Financier'!$C$19+'BP Financier'!$D$16+'BP Financier'!$D$19+'BP Financier'!$E$16+'BP Financier'!$E$19+'BP Financier'!$C$22+'BP Financier'!$D$22+'BP Financier'!$E$22+'BP Financier'!$F$22+'BP Financier'!$F$19+'BP Financier'!$F$16+'BP Financier'!$G$22+'BP Financier'!$G$19+'BP Financier'!$G$16))*$V9293*Z9293/(1-$W9293)","v":{"v":174154.6207861186,"d":"174,155"}},{"$f":"'BP Financier'!$G$44*(('BP Financier'!$C$19+'BP Financier'!$D$19+'BP Financier'!$E$19+'BP Financier'!$F$19+'BP Financier'!$G$19)/('BP Financier'!$C$16+'BP Financier'!$C$19+'BP Financier'!$D$16+'BP Financier'!$D$19+'BP Financier'!$E$16+'BP Financier'!$E$19+'BP Financier'!$C$22+'BP Financier'!$D$22+'BP Financier'!$E$22+'BP Financier'!$F$22+'BP Financier'!$F$19+'BP Financier'!$F$16+'BP Financier'!$G$22+'BP Financier'!$G$19+'BP Financier'!$G$16))*$V9293*AA9293/(1-$W9293)","v":{"v":21516.46318054475,"d":"21,516"}},{"$f":"'BP Financier'!$G$44*(('BP Financier'!$C$19+'BP Financier'!$D$19+'BP Financier'!$E$19+'BP Financier'!$F$19+'BP Financier'!$G$19)/('BP Financier'!$C$16+'BP Financier'!$C$19+'BP Financier'!$D$16+'BP Financier'!$D$19+'BP Financier'!$E$16+'BP Financier'!$E$19+'BP Financier'!$C$22+'BP Financier'!$D$22+'BP Financier'!$E$22+'BP Financier'!$F$22+'BP Financier'!$F$19+'BP Financier'!$F$16+'BP Financier'!$G$22+'BP Financier'!$G$19+'BP Financier'!$G$16))*$V9293*AB9293/(1-$W9293)","v":{"v":10298.478103508596,"d":"10,298"}},null,{"v":0.008,"d":"0.80%"},{"$f":"Actif!$E$28/100","v":{"v":0.28900000000000003,"d":"28.90%"}},{"$f":"Actif!$E$30/100","v":{"v":0.09050000000000001,"d":"9.05%"}},{"$f":"Actif!$E$31/100","v":{"v":0.0605,"d":"6.05%"}},{"$f":"Actif!$E$32/100","v":{"v":0.47350000000000003,"d":"47.35%"}},{"$f":"Actif!$E$33/100","v":{"v":0.0585,"d":"5.85%"}},{"$f":"Actif!$E$29/100","v":{"v":0.027999999999999997,"d":"2.80%"}}]
[null,"#178",53,2029,"F","A_PER",{"v":0.44999999999999996,"d":"0.45"},{"v":0.38999999999999996,"d":"0.39"},0.6,0.6,85,0,{"$f":"ROUND(Primes!$Q$7*V9294,0)","v":11},{"$f":"'BP Financier'!$G$33*(('BP Financier'!$C$19+'BP Financier'!$D$19+'BP Financier'!$E$19+'BP Financier'!$F$19+'BP Financier'!$G$19)/('BP Financier'!$C$16+'BP Financier'!$C$19+'BP Financier'!$D$16+'BP Financier'!$D$19+'BP Financier'!$E$16+'BP Financier'!$E$19+'BP Financier'!$F$16+'BP Financier'!$F$19+'BP Financier'!$G$16+'BP Financier'!$G$19))*V9294","v":{"v":455640.45778982196,"d":"455,640"}},{"v":261507.7832712362,"d":"261,508"},{"$f":"'BP Financier'!$G$44*(('BP Financier'!$C$19+'BP Financier'!$D$19+'BP Financier'!$E$19+'BP Financier'!$F$19+'BP Financier'!$G$19)/('BP Financier'!$C$16+'BP Financier'!$C$19+'BP Financier'!$D$16+'BP Financier'!$D$19+'BP Financier'!$E$16+'BP Financier'!$E$19+'BP Financier'!$C$22+'BP Financier'!$D$22+'BP Financier'!$E$22+'BP Financier'!$F$22+'BP Financier'!$F$19+'BP Financier'!$F$16+'BP Financier'!$G$22+'BP Financier'!$G$19+'BP Financier'!$G$16))*$V9294*X9294/(1-$W9294)","v":{"v":33286.152441697435,"d":"33,286"}},{"$f":"'BP Financier'!$G$44*(('BP Financier'!$C$19+'BP Financier'!$D$19+'BP Financier'!$E$19+'BP Financier'!$F$19+'BP Financier'!$G$19)/('BP Financier'!$C$16+'BP Financier'!$C$19+'BP Financier'!$D$16+'BP Financier'!$D$19+'BP Financier'!$E$16+'BP Financier'!$E$19+'BP Financier'!$C$22+'BP Financier'!$D$22+'BP Financier'!$E$22+'BP Financier'!$F$22+'BP Financier'!$F$19+'BP Financier'!$F$16+'BP Financier'!$G$22+'BP Financier'!$G$19+'BP Financier'!$G$16))*$V9294*Y9294/(1-$W9294)","v":{"v":22252.068759366786,"d":"22,252"}},{"$f":"'BP Financier'!$G$44*(('BP Financier'!$C$19+'BP Financier'!$D$19+'BP Financier'!$E$19+'BP Financier'!$F$19+'BP Financier'!$G$19)/('BP Financier'!$C$16+'BP Financier'!$C$19+'BP Financier'!$D$16+'BP Financier'!$D$19+'BP Financier'!$E$16+'BP Financier'!$E$19+'BP Financier'!$C$22+'BP Financier'!$D$22+'BP Financier'!$E$22+'BP Financier'!$F$22+'BP Financier'!$F$19+'BP Financier'!$F$16+'BP Financier'!$G$22+'BP Financier'!$G$19+'BP Financier'!$G$16))*$V9294*Z9294/(1-$W9294)","v":{"v":174154.6207861186,"d":"174,155"}},{"$f":"'BP Financier'!$G$44*(('BP Financier'!$C$19+'BP Financier'!$D$19+'BP Financier'!$E$19+'BP Financier'!$F$19+'BP Financier'!$G$19)/('BP Financier'!$C$16+'BP Financier'!$C$19+'BP Financier'!$D$16+'BP Financier'!$D$19+'BP Financier'!$E$16+'BP Financier'!$E$19+'BP Financier'!$C$22+'BP Financier'!$D$22+'BP Financier'!$E$22+'BP Financier'!$F$22+'BP Financier'!$F$19+'BP Financier'!$F$16+'BP Financier'!$G$22+'BP Financier'!$G$19+'BP Financier'!$G$16))*$V9294*AA9294/(1-$W9294)","v":{"v":21516.46318054475,"d":"21,516"}},{"$f":"'BP Financier'!$G$44*(('BP Financier'!$C$19+'BP Financier'!$D$19+'BP Financier'!$E$19+'BP Financier'!$F$19+'BP Financier'!$G$19)/('BP Financier'!$C$16+'BP Financier'!$C$19+'BP Financier'!$D$16+'BP Financier'!$D$19+'BP Financier'!$E$16+'BP Financier'!$E$19+'BP Financier'!$C$22+'BP Financier'!$D$22+'BP Financier'!$E$22+'BP Financier'!$F$22+'BP Financier'!$F$19+'BP Financier'!$F$16+'BP Financier'!$G$22+'BP Financier'!$G$19+'BP Financier'!$G$16))*$V9294*AB9294/(1-$W9294)","v":{"v":10298.478103508596,"d":"10,298"}},null,{"v":0.008,"d":"0.80%"},{"$f":"Actif!$E$28/100","v":{"v":0.28900000000000003,"d":"28.90%"}},{"$f":"Actif!$E$30/100","v":{"v":0.09050000000000001,"d":"9.05%"}},{"$f":"Actif!$E$31/100","v":{"v":0.0605,"d":"6.05%"}},{"$f":"Actif!$E$32/100","v":{"v":0.47350000000000003,"d":"47.35%"}},{"$f":"Actif!$E$33/100","v":{"v":0.0585,"d":"5.85%"}},{"$f":"Actif!$E$29/100","v":{"v":0.027999999999999997,"d":"2.80%"}}]
[null,"#179",53,2030,"F","A_PER",{"v":0.44999999999999996,"d":"0.45"},{"v":0.38999999999999996,"d":"0.39"},0.6,0.6,85,0,{"$f":"ROUND(Primes!$Q$7*V9295,0)","v":11},{"$f":"'BP Financier'!$G$33*(('BP Financier'!$C$19+'BP Financier'!$D$19+'BP Financier'!$E$19+'BP Financier'!$F$19+'BP Financier'!$G$19)/('BP Financier'!$C$16+'BP Financier'!$C$19+'BP Financier'!$D$16+'BP Financier'!$D$19+'BP Financier'!$E$16+'BP Financier'!$E$19+'BP Financier'!$F$16+'BP Financier'!$F$19+'BP Financier'!$G$16+'BP Financier'!$G$19))*V9295","v":{"v":455640.45778982196,"d":"455,640"}},{"v":261507.7832712362,"d":"261,508"},{"$f":"'BP Financier'!$G$44*(('BP Financier'!$C$19+'BP Financier'!$D$19+'BP Financier'!$E$19+'BP Financier'!$F$19+'BP Financier'!$G$19)/('BP Financier'!$C$16+'BP Financier'!$C$19+'BP Financier'!$D$16+'BP Financier'!$D$19+'BP Financier'!$E$16+'BP Financier'!$E$19+'BP Financier'!$C$22+'BP Financier'!$D$22+'BP Financier'!$E$22+'BP Financier'!$F$22+'BP Financier'!$F$19+'BP Financier'!$F$16+'BP Financier'!$G$22+'BP Financier'!$G$19+'BP Financier'!$G$16))*$V9295*X9295/(1-$W9295)","v":{"v":33286.152441697435,"d":"33,286"}},{"$f":"'BP Financier'!$G$44*(('BP Financier'!$C$19+'BP Financier'!$D$19+'BP Financier'!$E$19+'BP Financier'!$F$19+'BP Financier'!$G$19)/('BP Financier'!$C$16+'BP Financier'!$C$19+'BP Financier'!$D$16+'BP Financier'!$D$19+'BP Financier'!$E$16+'BP Financier'!$E$19+'BP Financier'!$C$22+'BP Financier'!$D$22+'BP Financier'!$E$22+'BP Financier'!$F$22+'BP Financier'!$F$19+'BP Financier'!$F$16+'BP Financier'!$G$22+'BP Financier'!$G$19+'BP Financier'!$G$16))*$V9295*Y9295/(1-$W9295)","v":{"v":22252.068759366786,"d":"22,252"}},{"$f":"'BP Financier'!$G$44*(('BP Financier'!$C$19+'BP Financier'!$D$19+'BP Financier'!$E$19+'BP Financier'!$F$19+'BP Financier'!$G$19)/('BP Financier'!$C$16+'BP Financier'!$C$19+'BP Financier'!$D$16+'BP Financier'!$D$19+'BP Financier'!$E$16+'BP Financier'!$E$19+'BP Financier'!$C$22+'BP Financier'!$D$22+'BP Financier'!$E$22+'BP Financier'!$F$22+'BP Financier'!$F$19+'BP Financier'!$F$16+'BP Financier'!$G$22+'BP Financier'!$G$19+'BP Financier'!$G$16))*$V9295*Z9295/(1-$W9295)","v":{"v":174154.6207861186,"d":"174,155"}},{"$f":"'BP Financier'!$G$44*(('BP Financier'!$C$19+'BP Financier'!$D$19+'BP Financier'!$E$19+'BP Financier'!$F$19+'BP Financier'!$G$19)/('BP Financier'!$C$16+'BP Financier'!$C$19+'BP Financier'!$D$16+'BP Financier'!$D$19+'BP Financier'!$E$16+'BP Financier'!$E$19+'BP Financier'!$C$22+'BP Financier'!$D$22+'BP Financier'!$E$22+'BP Financier'!$F$22+'BP Financier'!$F$19+'BP Financier'!$F$16+'BP Financier'!$G$22+'BP Financier'!$G$19+'BP Financier'!$G$16))*$V9295*AA9295/(1-$W9295)","v":{"v":21516.46318054475,"d":"21,516"}},{"$f":"'BP Financier'!$G$44*(('BP Financier'!$C$19+'BP Financier'!$D$19+'BP Financier'!$E$19+'BP Financier'!$F$19+'BP Financier'!$G$19)/('BP Financier'!$C$16+'BP Financier'!$C$19+'BP Financier'!$D$16+'BP Financier'!$D$19+'BP Financier'!$E$16+'BP Financier'!$E$19+'BP Financier'!$C$22+'BP Financier'!$D$22+'BP Financier'!$E$22+'BP Financier'!$F$22+'BP Financier'!$F$19+'BP Financier'!$F$16+'BP Financier'!$G$22+'BP Financier'!$G$19+'BP Financier'!$G$16))*$V9295*AB9295/(1-$W9295)","v":{"v":10298.478103508596,"d":"10,298"}},null,{"v":0.008,"d":"0.80%"},{"$f":"Actif!$E$28/100","v":{"v":0.28900000000000003,"d":"28.90%"}},{"$f":"Actif!$E$30/100","v":{"v":0.09050000000000001,"d":"9.05%"}},{"$f":"Actif!$E$31/100","v":{"v":0.0605,"d":"6.05%"}},{"$f":"Actif!$E$32/100","v":{"v":0.47350000000000003,"d":"47.35%"}},{"$f":"Actif!$E$33/100","v":{"v":0.0585,"d":"5.85%"}},{"$f":"Actif!$E$29/100","v":{"v":0.027999999999999997,"d":"2.80%"}}]
[null,"#180",53,2031,"F","A_PER",{"v":0.44999999999999996,"d":"0.45"},{"v":0.38999999999999996,"d":"0.39"},0.6,0.6,85,0,{"$f":"ROUND(Primes!$Q$7*V9296,0)","v":11},{"$f":"'BP Financier'!$G$33*(('BP Financier'!$C$19+'BP Financier'!$D$19+'BP Financier'!$E$19+'BP Financier'!$F$19+'BP Financier'!$G$19)/('BP Financier'!$C$16+'BP Financier'!$C$19+'BP Financier'!$D$16+'BP Financier'!$D$19+'BP Financier'!$E$16+'BP Financier'!$E$19+'BP Financier'!$F$16+'BP Financier'!$F$19+'BP Financier'!$G$16+'BP Financier'!$G$19))*V9296","v":{"v":455640.45778982196,"d":"455,640"}},{"v":261507.7832712362,"d":"261,508"},{"$f":"'BP Financier'!$G$44*(('BP Financier'!$C$19+'BP Financier'!$D$19+'BP Financier'!$E$19+'BP Financier'!$F$19+'BP Financier'!$G$19)/('BP Financier'!$C$16+'BP Financier'!$C$19+'BP Financier'!$D$16+'BP Financier'!$D$19+'BP Financier'!$E$16+'BP Financier'!$E$19+'BP Financier'!$C$22+'BP Financier'!$D$22+'BP Financier'!$E$22+'BP Financier'!$F$22+'BP Financier'!$F$19+'BP Financier'!$F$16+'BP Financier'!$G$22+'BP Financier'!$G$19+'BP Financier'!$G$16))*$V9296*X9296/(1-$W9296)","v":{"v":33286.152441697435,"d":"33,286"}},{"$f":"'BP Financier'!$G$44*(('BP Financier'!$C$19+'BP Financier'!$D$19+'BP Financier'!$E$19+'BP Financier'!$F$19+'BP Financier'!$G$19)/('BP Financier'!$C$16+'BP Financier'!$C$19+'BP Financier'!$D$16+'BP Financier'!$D$19+'BP Financier'!$E$16+'BP Financier'!$E$19+'BP Financier'!$C$22+'BP Financier'!$D$22+'BP Financier'!$E$22+'BP Financier'!$F$22+'BP Financier'!$F$19+'BP Financier'!$F$16+'BP Financier'!$G$22+'BP Financier'!$G$19+'BP Financier'!$G$16))*$V9296*Y9296/(1-$W9296)","v":{"v":22252.068759366786,"d":"22,252"}},{"$f":"'BP Financier'!$G$44*(('BP Financier'!$C$19+'BP Financier'!$D$19+'BP Financier'!$E$19+'BP Financier'!$F$19+'BP Financier'!$G$19)/('BP Financier'!$C$16+'BP Financier'!$C$19+'BP Financier'!$D$16+'BP Financier'!$D$19+'BP Financier'!$E$16+'BP Financier'!$E$19+'BP Financier'!$C$22+'BP Financier'!$D$22+'BP Financier'!$E$22+'BP Financier'!$F$22+'BP Financier'!$F$19+'BP Financier'!$F$16+'BP Financier'!$G$22+'BP Financier'!$G$19+'BP Financier'!$G$16))*$V9296*Z9296/(1-$W9296)","v":{"v":174154.6207861186,"d":"174,155"}},{"$f":"'BP Financier'!$G$44*(('BP Financier'!$C$19+'BP Financier'!$D$19+'BP Financier'!$E$19+'BP Financier'!$F$19+'BP Financier'!$G$19)/('BP Financier'!$C$16+'BP Financier'!$C$19+'BP Financier'!$D$16+'BP Financier'!$D$19+'BP Financier'!$E$16+'BP Financier'!$E$19+'BP Financier'!$C$22+'BP Financier'!$D$22+'BP Financier'!$E$22+'BP Financier'!$F$22+'BP Financier'!$F$19+'BP Financier'!$F$16+'BP Financier'!$G$22+'BP Financier'!$G$19+'BP Financier'!$G$16))*$V9296*AA9296/(1-$W9296)","v":{"v":21516.46318054475,"d":"21,516"}},{"$f":"'BP Financier'!$G$44*(('BP Financier'!$C$19+'BP Financier'!$D$19+'BP Financier'!$E$19+'BP Financier'!$F$19+'BP Financier'!$G$19)/('BP Financier'!$C$16+'BP Financier'!$C$19+'BP Financier'!$D$16+'BP Financier'!$D$19+'BP Financier'!$E$16+'BP Financier'!$E$19+'BP Financier'!$C$22+'BP Financier'!$D$22+'BP Financier'!$E$22+'BP Financier'!$F$22+'BP Financier'!$F$19+'BP Financier'!$F$16+'BP Financier'!$G$22+'BP Financier'!$G$19+'BP Financier'!$G$16))*$V9296*AB9296/(1-$W9296)","v":{"v":10298.478103508596,"d":"10,298"}},null,{"v":0.008,"d":"0.80%"},{"$f":"Actif!$E$28/100","v":{"v":0.28900000000000003,"d":"28.90%"}},{"$f":"Actif!$E$30/100","v":{"v":0.09050000000000001,"d":"9.05%"}},{"$f":"Actif!$E$31/100","v":{"v":0.0605,"d":"6.05%"}},{"$f":"Actif!$E$32/100","v":{"v":0.47350000000000003,"d":"47.35%"}},{"$f":"Actif!$E$33/100","v":{"v":0.0585,"d":"5.85%"}},{"$f":"Actif!$E$29/100","v":{"v":0.027999999999999997,"d":"2.80%"}}]
[null,"#181",54,2026,"H","A_PER",{"v":0.44999999999999996,"d":"0.45"},{"v":0.38999999999999996,"d":"0.39"},0.6,0.6,85,0,{"$f":"ROUND(Primes!$Q$7*V9297,0)","v":11},{"$f":"'BP Financier'!$G$33*(('BP Financier'!$C$19+'BP Financier'!$D$19+'BP Financier'!$E$19+'BP Financier'!$F$19+'BP Financier'!$G$19)/('BP Financier'!$C$16+'BP Financier'!$C$19+'BP Financier'!$D$16+'BP Financier'!$D$19+'BP Financier'!$E$16+'BP Financier'!$E$19+'BP Financier'!$F$16+'BP Financier'!$F$19+'BP Financier'!$G$16+'BP Financier'!$G$19))*V9297","v":{"v":455640.45778982196,"d":"455,640"}},{"v":261507.7832712362,"d":"261,508"},{"$f":"'BP Financier'!$G$44*(('BP Financier'!$C$19+'BP Financier'!$D$19+'BP Financier'!$E$19+'BP Financier'!$F$19+'BP Financier'!$G$19)/('BP Financier'!$C$16+'BP Financier'!$C$19+'BP Financier'!$D$16+'BP Financier'!$D$19+'BP Financier'!$E$16+'BP Financier'!$E$19+'BP Financier'!$C$22+'BP Financier'!$D$22+'BP Financier'!$E$22+'BP Financier'!$F$22+'BP Financier'!$F$19+'BP Financier'!$F$16+'BP Financier'!$G$22+'BP Financier'!$G$19+'BP Financier'!$G$16))*$V9297*X9297/(1-$W9297)","v":{"v":33286.152441697435,"d":"33,286"}},{"$f":"'BP Financier'!$G$44*(('BP Financier'!$C$19+'BP Financier'!$D$19+'BP Financier'!$E$19+'BP Financier'!$F$19+'BP Financier'!$G$19)/('BP Financier'!$C$16+'BP Financier'!$C$19+'BP Financier'!$D$16+'BP Financier'!$D$19+'BP Financier'!$E$16+'BP Financier'!$E$19+'BP Financier'!$C$22+'BP Financier'!$D$22+'BP Financier'!$E$22+'BP Financier'!$F$22+'BP Financier'!$F$19+'BP Financier'!$F$16+'BP Financier'!$G$22+'BP Financier'!$G$19+'BP Financier'!$G$16))*$V9297*Y9297/(1-$W9297)","v":{"v":22252.068759366786,"d":"22,252"}},{"$f":"'BP Financier'!$G$44*(('BP Financier'!$C$19+'BP Financier'!$D$19+'BP Financier'!$E$19+'BP Financier'!$F$19+'BP Financier'!$G$19)/('BP Financier'!$C$16+'BP Financier'!$C$19+'BP Financier'!$D$16+'BP Financier'!$D$19+'BP Financier'!$E$16+'BP Financier'!$E$19+'BP Financier'!$C$22+'BP Financier'!$D$22+'BP Financier'!$E$22+'BP Financier'!$F$22+'BP Financier'!$F$19+'BP Financier'!$F$16+'BP Financier'!$G$22+'BP Financier'!$G$19+'BP Financier'!$G$16))*$V9297*Z9297/(1-$W9297)","v":{"v":174154.6207861186,"d":"174,155"}},{"$f":"'BP Financier'!$G$44*(('BP Financier'!$C$19+'BP Financier'!$D$19+'BP Financier'!$E$19+'BP Financier'!$F$19+'BP Financier'!$G$19)/('BP Financier'!$C$16+'BP Financier'!$C$19+'BP Financier'!$D$16+'BP Financier'!$D$19+'BP Financier'!$E$16+'BP Financier'!$E$19+'BP Financier'!$C$22+'BP Financier'!$D$22+'BP Financier'!$E$22+'BP Financier'!$F$22+'BP Financier'!$F$19+'BP Financier'!$F$16+'BP Financier'!$G$22+'BP Financier'!$G$19+'BP Financier'!$G$16))*$V9297*AA9297/(1-$W9297)","v":{"v":21516.46318054475,"d":"21,516"}},{"$f":"'BP Financier'!$G$44*(('BP Financier'!$C$19+'BP Financier'!$D$19+'BP Financier'!$E$19+'BP Financier'!$F$19+'BP Financier'!$G$19)/('BP Financier'!$C$16+'BP Financier'!$C$19+'BP Financier'!$D$16+'BP Financier'!$D$19+'BP Financier'!$E$16+'BP Financier'!$E$19+'BP Financier'!$C$22+'BP Financier'!$D$22+'BP Financier'!$E$22+'BP Financier'!$F$22+'BP Financier'!$F$19+'BP Financier'!$F$16+'BP Financier'!$G$22+'BP Financier'!$G$19+'BP Financier'!$G$16))*$V9297*AB9297/(1-$W9297)","v":{"v":10298.478103508596,"d":"10,298"}},null,{"v":0.008,"d":"0.80%"},{"$f":"Actif!$E$28/100","v":{"v":0.28900000000000003,"d":"28.90%"}},{"$f":"Actif!$E$30/100","v":{"v":0.09050000000000001,"d":"9.05%"}},{"$f":"Actif!$E$31/100","v":{"v":0.0605,"d":"6.05%"}},{"$f":"Actif!$E$32/100","v":{"v":0.47350000000000003,"d":"47.35%"}},{"$f":"Actif!$E$33/100","v":{"v":0.0585,"d":"5.85%"}},{"$f":"Actif!$E$29/100","v":{"v":0.027999999999999997,"d":"2.80%"}}]
[null,"#182",54,2028,"H","A_PER",{"v":0.44999999999999996,"d":"0.45"},{"v":0.38999999999999996,"d":"0.39"},0.6,0.6,85,0,{"$f":"ROUND(Primes!$Q$7*V9298,0)","v":11},{"$f":"'BP Financier'!$G$33*(('BP Financier'!$C$19+'BP Financier'!$D$19+'BP Financier'!$E$19+'BP Financier'!$F$19+'BP Financier'!$G$19)/('BP Financier'!$C$16+'BP Financier'!$C$19+'BP Financier'!$D$16+'BP Financier'!$D$19+'BP Financier'!$E$16+'BP Financier'!$E$19+'BP Financier'!$F$16+'BP Financier'!$F$19+'BP Financier'!$G$16+'BP Financier'!$G$19))*V9298","v":{"v":455640.45778982196,"d":"455,640"}},{"v":261507.7832712362,"d":"261,508"},{"$f":"'BP Financier'!$G$44*(('BP Financier'!$C$19+'BP Financier'!$D$19+'BP Financier'!$E$19+'BP Financier'!$F$19+'BP Financier'!$G$19)/('BP Financier'!$C$16+'BP Financier'!$C$19+'BP Financier'!$D$16+'BP Financier'!$D$19+'BP Financier'!$E$16+'BP Financier'!$E$19+'BP Financier'!$C$22+'BP Financier'!$D$22+'BP Financier'!$E$22+'BP Financier'!$F$22+'BP Financier'!$F$19+'BP Financier'!$F$16+'BP Financier'!$G$22+'BP Financier'!$G$19+'BP Financier'!$G$16))*$V9298*X9298/(1-$W9298)","v":{"v":33286.152441697435,"d":"33,286"}},{"$f":"'BP Financier'!$G$44*(('BP Financier'!$C$19+'BP Financier'!$D$19+'BP Financier'!$E$19+'BP Financier'!$F$19+'BP Financier'!$G$19)/('BP Financier'!$C$16+'BP Financier'!$C$19+'BP Financier'!$D$16+'BP Financier'!$D$19+'BP Financier'!$E$16+'BP Financier'!$E$19+'BP Financier'!$C$22+'BP Financier'!$D$22+'BP Financier'!$E$22+'BP Financier'!$F$22+'BP Financier'!$F$19+'BP Financier'!$F$16+'BP Financier'!$G$22+'BP Financier'!$G$19+'BP Financier'!$G$16))*$V9298*Y9298/(1-$W9298)","v":{"v":22252.068759366786,"d":"22,252"}},{"$f":"'BP Financier'!$G$44*(('BP Financier'!$C$19+'BP Financier'!$D$19+'BP Financier'!$E$19+'BP Financier'!$F$19+'BP Financier'!$G$19)/('BP Financier'!$C$16+'BP Financier'!$C$19+'BP Financier'!$D$16+'BP Financier'!$D$19+'BP Financier'!$E$16+'BP Financier'!$E$19+'BP Financier'!$C$22+'BP Financier'!$D$22+'BP Financier'!$E$22+'BP Financier'!$F$22+'BP Financier'!$F$19+'BP Financier'!$F$16+'BP Financier'!$G$22+'BP Financier'!$G$19+'BP Financier'!$G$16))*$V9298*Z9298/(1-$W9298)","v":{"v":174154.6207861186,"d":"174,155"}},{"$f":"'BP Financier'!$G$44*(('BP Financier'!$C$19+'BP Financier'!$D$19+'BP Financier'!$E$19+'BP Financier'!$F$19+'BP Financier'!$G$19)/('BP Financier'!$C$16+'BP Financier'!$C$19+'BP Financier'!$D$16+'BP Financier'!$D$19+'BP Financier'!$E$16+'BP Financier'!$E$19+'BP Financier'!$C$22+'BP Financier'!$D$22+'BP Financier'!$E$22+'BP Financier'!$F$22+'BP Financier'!$F$19+'BP Financier'!$F$16+'BP Financier'!$G$22+'BP Financier'!$G$19+'BP Financier'!$G$16))*$V9298*AA9298/(1-$W9298)","v":{"v":21516.46318054475,"d":"21,516"}},{"$f":"'BP Financier'!$G$44*(('BP Financier'!$C$19+'BP Financier'!$D$19+'BP Financier'!$E$19+'BP Financier'!$F$19+'BP Financier'!$G$19)/('BP Financier'!$C$16+'BP Financier'!$C$19+'BP Financier'!$D$16+'BP Financier'!$D$19+'BP Financier'!$E$16+'BP Financier'!$E$19+'BP Financier'!$C$22+'BP Financier'!$D$22+'BP Financier'!$E$22+'BP Financier'!$F$22+'BP Financier'!$F$19+'BP Financier'!$F$16+'BP Financier'!$G$22+'BP Financier'!$G$19+'BP Financier'!$G$16))*$V9298*AB9298/(1-$W9298)","v":{"v":10298.478103508596,"d":"10,298"}},null,{"v":0.008,"d":"0.80%"},{"$f":"Actif!$E$28/100","v":{"v":0.28900000000000003,"d":"28.90%"}},{"$f":"Actif!$E$30/100","v":{"v":0.09050000000000001,"d":"9.05%"}},{"$f":"Actif!$E$31/100","v":{"v":0.0605,"d":"6.05%"}},{"$f":"Actif!$E$32/100","v":{"v":0.47350000000000003,"d":"47.35%"}},{"$f":"Actif!$E$33/100","v":{"v":0.0585,"d":"5.85%"}},{"$f":"Actif!$E$29/100","v":{"v":0.027999999999999997,"d":"2.80%"}}]
[null,"#183",54,2029,"H","A_PER",{"v":0.44999999999999996,"d":"0.45"},{"v":0.38999999999999996,"d":"0.39"},0.6,0.6,85,0,{"$f":"ROUND(Primes!$Q$7*V9299,0)","v":11},{"$f":"'BP Financier'!$G$33*(('BP Financier'!$C$19+'BP Financier'!$D$19+'BP Financier'!$E$19+'BP Financier'!$F$19+'BP Financier'!$G$19)/('BP Financier'!$C$16+'BP Financier'!$C$19+'BP Financier'!$D$16+'BP Financier'!$D$19+'BP Financier'!$E$16+'BP Financier'!$E$19+'BP Financier'!$F$16+'BP Financier'!$F$19+'BP Financier'!$G$16+'BP Financier'!$G$19))*V9299","v":{"v":455640.45778982196,"d":"455,640"}},{"v":261507.7832712362,"d":"261,508"},{"$f":"'BP Financier'!$G$44*(('BP Financier'!$C$19+'BP Financier'!$D$19+'BP Financier'!$E$19+'BP Financier'!$F$19+'BP Financier'!$G$19)/('BP Financier'!$C$16+'BP Financier'!$C$19+'BP Financier'!$D$16+'BP Financier'!$D$19+'BP Financier'!$E$16+'BP Financier'!$E$19+'BP Financier'!$C$22+'BP Financier'!$D$22+'BP Financier'!$E$22+'BP Financier'!$F$22+'BP Financier'!$F$19+'BP Financier'!$F$16+'BP Financier'!$G$22+'BP Financier'!$G$19+'BP Financier'!$G$16))*$V9299*X9299/(1-$W9299)","v":{"v":33286.152441697435,"d":"33,286"}},{"$f":"'BP Financier'!$G$44*(('BP Financier'!$C$19+'BP Financier'!$D$19+'BP Financier'!$E$19+'BP Financier'!$F$19+'BP Financier'!$G$19)/('BP Financier'!$C$16+'BP Financier'!$C$19+'BP Financier'!$D$16+'BP Financier'!$D$19+'BP Financier'!$E$16+'BP Financier'!$E$19+'BP Financier'!$C$22+'BP Financier'!$D$22+'BP Financier'!$E$22+'BP Financier'!$F$22+'BP Financier'!$F$19+'BP Financier'!$F$16+'BP Financier'!$G$22+'BP Financier'!$G$19+'BP Financier'!$G$16))*$V9299*Y9299/(1-$W9299)","v":{"v":22252.068759366786,"d":"22,252"}},{"$f":"'BP Financier'!$G$44*(('BP Financier'!$C$19+'BP Financier'!$D$19+'BP Financier'!$E$19+'BP Financier'!$F$19+'BP Financier'!$G$19)/('BP Financier'!$C$16+'BP Financier'!$C$19+'BP Financier'!$D$16+'BP Financier'!$D$19+'BP Financier'!$E$16+'BP Financier'!$E$19+'BP Financier'!$C$22+'BP Financier'!$D$22+'BP Financier'!$E$22+'BP Financier'!$F$22+'BP Financier'!$F$19+'BP Financier'!$F$16+'BP Financier'!$G$22+'BP Financier'!$G$19+'BP Financier'!$G$16))*$V9299*Z9299/(1-$W9299)","v":{"v":174154.6207861186,"d":"174,155"}},{"$f":"'BP Financier'!$G$44*(('BP Financier'!$C$19+'BP Financier'!$D$19+'BP Financier'!$E$19+'BP Financier'!$F$19+'BP Financier'!$G$19)/('BP Financier'!$C$16+'BP Financier'!$C$19+'BP Financier'!$D$16+'BP Financier'!$D$19+'BP Financier'!$E$16+'BP Financier'!$E$19+'BP Financier'!$C$22+'BP Financier'!$D$22+'BP Financier'!$E$22+'BP Financier'!$F$22+'BP Financier'!$F$19+'BP Financier'!$F$16+'BP Financier'!$G$22+'BP Financier'!$G$19+'BP Financier'!$G$16))*$V9299*AA9299/(1-$W9299)","v":{"v":21516.46318054475,"d":"21,516"}},{"$f":"'BP Financier'!$G$44*(('BP Financier'!$C$19+'BP Financier'!$D$19+'BP Financier'!$E$19+'BP Financier'!$F$19+'BP Financier'!$G$19)/('BP Financier'!$C$16+'BP Financier'!$C$19+'BP Financier'!$D$16+'BP Financier'!$D$19+'BP Financier'!$E$16+'BP Financier'!$E$19+'BP Financier'!$C$22+'BP Financier'!$D$22+'BP Financier'!$E$22+'BP Financier'!$F$22+'BP Financier'!$F$19+'BP Financier'!$F$16+'BP Financier'!$G$22+'BP Financier'!$G$19+'BP Financier'!$G$16))*$V9299*AB9299/(1-$W9299)","v":{"v":10298.478103508596,"d":"10,298"}},null,{"v":0.008,"d":"0.80%"},{"$f":"Actif!$E$28/100","v":{"v":0.28900000000000003,"d":"28.90%"}},{"$f":"Actif!$E$30/100","v":{"v":0.09050000000000001,"d":"9.05%"}},{"$f":"Actif!$E$31/100","v":{"v":0.0605,"d":"6.05%"}},{"$f":"Actif!$E$32/100","v":{"v":0.47350000000000003,"d":"47.35%"}},{"$f":"Actif!$E$33/100","v":{"v":0.0585,"d":"5.85%"}},{"$f":"Actif!$E$29/100","v":{"v":0.027999999999999997,"d":"2.80%"}}]
[null,"#184",54,2030,"H","A_PER",{"v":0.44999999999999996,"d":"0.45"},{"v":0.38999999999999996,"d":"0.39"},0.6,0.6,85,0,{"$f":"ROUND(Primes!$Q$7*V9300,0)","v":11},{"$f":"'BP Financier'!$G$33*(('BP Financier'!$C$19+'BP Financier'!$D$19+'BP Financier'!$E$19+'BP Financier'!$F$19+'BP Financier'!$G$19)/('BP Financier'!$C$16+'BP Financier'!$C$19+'BP Financier'!$D$16+'BP Financier'!$D$19+'BP Financier'!$E$16+'BP Financier'!$E$19+'BP Financier'!$F$16+'BP Financier'!$F$19+'BP Financier'!$G$16+'BP Financier'!$G$19))*V9300","v":{"v":455640.45778982196,"d":"455,640"}},{"v":261507.7832712362,"d":"261,508"},{"$f":"'BP Financier'!$G$44*(('BP Financier'!$C$19+'BP Financier'!$D$19+'BP Financier'!$E$19+'BP Financier'!$F$19+'BP Financier'!$G$19)/('BP Financier'!$C$16+'BP Financier'!$C$19+'BP Financier'!$D$16+'BP Financier'!$D$19+'BP Financier'!$E$16+'BP Financier'!$E$19+'BP Financier'!$C$22+'BP Financier'!$D$22+'BP Financier'!$E$22+'BP Financier'!$F$22+'BP Financier'!$F$19+'BP Financier'!$F$16+'BP Financier'!$G$22+'BP Financier'!$G$19+'BP Financier'!$G$16))*$V9300*X9300/(1-$W9300)","v":{"v":33286.152441697435,"d":"33,286"}},{"$f":"'BP Financier'!$G$44*(('BP Financier'!$C$19+'BP Financier'!$D$19+'BP Financier'!$E$19+'BP Financier'!$F$19+'BP Financier'!$G$19)/('BP Financier'!$C$16+'BP Financier'!$C$19+'BP Financier'!$D$16+'BP Financier'!$D$19+'BP Financier'!$E$16+'BP Financier'!$E$19+'BP Financier'!$C$22+'BP Financier'!$D$22+'BP Financier'!$E$22+'BP Financier'!$F$22+'BP Financier'!$F$19+'BP Financier'!$F$16+'BP Financier'!$G$22+'BP Financier'!$G$19+'BP Financier'!$G$16))*$V9300*Y9300/(1-$W9300)","v":{"v":22252.068759366786,"d":"22,252"}},{"$f":"'BP Financier'!$G$44*(('BP Financier'!$C$19+'BP Financier'!$D$19+'BP Financier'!$E$19+'BP Financier'!$F$19+'BP Financier'!$G$19)/('BP Financier'!$C$16+'BP Financier'!$C$19+'BP Financier'!$D$16+'BP Financier'!$D$19+'BP Financier'!$E$16+'BP Financier'!$E$19+'BP Financier'!$C$22+'BP Financier'!$D$22+'BP Financier'!$E$22+'BP Financier'!$F$22+'BP Financier'!$F$19+'BP Financier'!$F$16+'BP Financier'!$G$22+'BP Financier'!$G$19+'BP Financier'!$G$16))*$V9300*Z9300/(1-$W9300)","v":{"v":174154.6207861186,"d":"174,155"}},{"$f":"'BP Financier'!$G$44*(('BP Financier'!$C$19+'BP Financier'!$D$19+'BP Financier'!$E$19+'BP Financier'!$F$19+'BP Financier'!$G$19)/('BP Financier'!$C$16+'BP Financier'!$C$19+'BP Financier'!$D$16+'BP Financier'!$D$19+'BP Financier'!$E$16+'BP Financier'!$E$19+'BP Financier'!$C$22+'BP Financier'!$D$22+'BP Financier'!$E$22+'BP Financier'!$F$22+'BP Financier'!$F$19+'BP Financier'!$F$16+'BP Financier'!$G$22+'BP Financier'!$G$19+'BP Financier'!$G$16))*$V9300*AA9300/(1-$W9300)","v":{"v":21516.46318054475,"d":"21,516"}},{"$f":"'BP Financier'!$G$44*(('BP Financier'!$C$19+'BP Financier'!$D$19+'BP Financier'!$E$19+'BP Financier'!$F$19+'BP Financier'!$G$19)/('BP Financier'!$C$16+'BP Financier'!$C$19+'BP Financier'!$D$16+'BP Financier'!$D$19+'BP Financier'!$E$16+'BP Financier'!$E$19+'BP Financier'!$C$22+'BP Financier'!$D$22+'BP Financier'!$E$22+'BP Financier'!$F$22+'BP Financier'!$F$19+'BP Financier'!$F$16+'BP Financier'!$G$22+'BP Financier'!$G$19+'BP Financier'!$G$16))*$V9300*AB9300/(1-$W9300)","v":{"v":10298.478103508596,"d":"10,298"}},null,{"v":0.008,"d":"0.80%"},{"$f":"Actif!$E$28/100","v":{"v":0.28900000000000003,"d":"28.90%"}},{"$f":"Actif!$E$30/100","v":{"v":0.09050000000000001,"d":"9.05%"}},{"$f":"Actif!$E$31/100","v":{"v":0.0605,"d":"6.05%"}},{"$f":"Actif!$E$32/100","v":{"v":0.47350000000000003,"d":"47.35%"}},{"$f":"Actif!$E$33/100","v":{"v":0.0585,"d":"5.85%"}},{"$f":"Actif!$E$29/100","v":{"v":0.027999999999999997,"d":"2.80%"}}]
[null,"#185",54,2031,"H","A_PER",{"v":0.44999999999999996,"d":"0.45"},{"v":0.38999999999999996,"d":"0.39"},0.6,0.6,85,0,{"$f":"ROUND(Primes!$Q$7*V9301,0)","v":11},{"$f":"'BP Financier'!$G$33*(('BP Financier'!$C$19+'BP Financier'!$D$19+'BP Financier'!$E$19+'BP Financier'!$F$19+'BP Financier'!$G$19)/('BP Financier'!$C$16+'BP Financier'!$C$19+'BP Financier'!$D$16+'BP Financier'!$D$19+'BP Financier'!$E$16+'BP Financier'!$E$19+'BP Financier'!$F$16+'BP Financier'!$F$19+'BP Financier'!$G$16+'BP Financier'!$G$19))*V9301","v":{"v":455640.45778982196,"d":"455,640"}},{"v":261507.7832712362,"d":"261,508"},{"$f":"'BP Financier'!$G$44*(('BP Financier'!$C$19+'BP Financier'!$D$19+'BP Financier'!$E$19+'BP Financier'!$F$19+'BP Financier'!$G$19)/('BP Financier'!$C$16+'BP Financier'!$C$19+'BP Financier'!$D$16+'BP Financier'!$D$19+'BP Financier'!$E$16+'BP Financier'!$E$19+'BP Financier'!$C$22+'BP Financier'!$D$22+'BP Financier'!$E$22+'BP Financier'!$F$22+'BP Financier'!$F$19+'BP Financier'!$F$16+'BP Financier'!$G$22+'BP Financier'!$G$19+'BP Financier'!$G$16))*$V9301*X9301/(1-$W9301)","v":{"v":33286.152441697435,"d":"33,286"}},{"$f":"'BP Financier'!$G$44*(('BP Financier'!$C$19+'BP Financier'!$D$19+'BP Financier'!$E$19+'BP Financier'!$F$19+'BP Financier'!$G$19)/('BP Financier'!$C$16+'BP Financier'!$C$19+'BP Financier'!$D$16+'BP Financier'!$D$19+'BP Financier'!$E$16+'BP Financier'!$E$19+'BP Financier'!$C$22+'BP Financier'!$D$22+'BP Financier'!$E$22+'BP Financier'!$F$22+'BP Financier'!$F$19+'BP Financier'!$F$16+'BP Financier'!$G$22+'BP Financier'!$G$19+'BP Financier'!$G$16))*$V9301*Y9301/(1-$W9301)","v":{"v":22252.068759366786,"d":"22,252"}},{"$f":"'BP Financier'!$G$44*(('BP Financier'!$C$19+'BP Financier'!$D$19+'BP Financier'!$E$19+'BP Financier'!$F$19+'BP Financier'!$G$19)/('BP Financier'!$C$16+'BP Financier'!$C$19+'BP Financier'!$D$16+'BP Financier'!$D$19+'BP Financier'!$E$16+'BP Financier'!$E$19+'BP Financier'!$C$22+'BP Financier'!$D$22+'BP Financier'!$E$22+'BP Financier'!$F$22+'BP Financier'!$F$19+'BP Financier'!$F$16+'BP Financier'!$G$22+'BP Financier'!$G$19+'BP Financier'!$G$16))*$V9301*Z9301/(1-$W9301)","v":{"v":174154.6207861186,"d":"174,155"}},{"$f":"'BP Financier'!$G$44*(('BP Financier'!$C$19+'BP Financier'!$D$19+'BP Financier'!$E$19+'BP Financier'!$F$19+'BP Financier'!$G$19)/('BP Financier'!$C$16+'BP Financier'!$C$19+'BP Financier'!$D$16+'BP Financier'!$D$19+'BP Financier'!$E$16+'BP Financier'!$E$19+'BP Financier'!$C$22+'BP Financier'!$D$22+'BP Financier'!$E$22+'BP Financier'!$F$22+'BP Financier'!$F$19+'BP Financier'!$F$16+'BP Financier'!$G$22+'BP Financier'!$G$19+'BP Financier'!$G$16))*$V9301*AA9301/(1-$W9301)","v":{"v":21516.46318054475,"d":"21,516"}},{"$f":"'BP Financier'!$G$44*(('BP Financier'!$C$19+'BP Financier'!$D$19+'BP Financier'!$E$19+'BP Financier'!$F$19+'BP Financier'!$G$19)/('BP Financier'!$C$16+'BP Financier'!$C$19+'BP Financier'!$D$16+'BP Financier'!$D$19+'BP Financier'!$E$16+'BP Financier'!$E$19+'BP Financier'!$C$22+'BP Financier'!$D$22+'BP Financier'!$E$22+'BP Financier'!$F$22+'BP Financier'!$F$19+'BP Financier'!$F$16+'BP Financier'!$G$22+'BP Financier'!$G$19+'BP Financier'!$G$16))*$V9301*AB9301/(1-$W9301)","v":{"v":10298.478103508596,"d":"10,298"}},null,{"v":0.008,"d":"0.80%"},{"$f":"Actif!$E$28/100","v":{"v":0.28900000000000003,"d":"28.90%"}},{"$f":"Actif!$E$30/100","v":{"v":0.09050000000000001,"d":"9.05%"}},{"$f":"Actif!$E$31/100","v":{"v":0.0605,"d":"6.05%"}},{"$f":"Actif!$E$32/100","v":{"v":0.47350000000000003,"d":"47.35%"}},{"$f":"Actif!$E$33/100","v":{"v":0.0585,"d":"5.85%"}},{"$f":"Actif!$E$29/100","v":{"v":0.027999999999999997,"d":"2.80%"}}]
[null,"#186",55,2026,"H","A_PER",{"v":0.44999999999999996,"d":"0.45"},{"v":0.38999999999999996,"d":"0.39"},0.6,0.6,85,0,{"$f":"ROUND(Primes!$Q$7*V9302,0)","v":11},{"$f":"'BP Financier'!$G$33*(('BP Financier'!$C$19+'BP Financier'!$D$19+'BP Financier'!$E$19+'BP Financier'!$F$19+'BP Financier'!$G$19)/('BP Financier'!$C$16+'BP Financier'!$C$19+'BP Financier'!$D$16+'BP Financier'!$D$19+'BP Financier'!$E$16+'BP Financier'!$E$19+'BP Financier'!$F$16+'BP Financier'!$F$19+'BP Financier'!$G$16+'BP Financier'!$G$19))*V9302","v":{"v":455640.45778982196,"d":"455,640"}},{"v":261507.7832712362,"d":"261,508"},{"$f":"'BP Financier'!$G$44*(('BP Financier'!$C$19+'BP Financier'!$D$19+'BP Financier'!$E$19+'BP Financier'!$F$19+'BP Financier'!$G$19)/('BP Financier'!$C$16+'BP Financier'!$C$19+'BP Financier'!$D$16+'BP Financier'!$D$19+'BP Financier'!$E$16+'BP Financier'!$E$19+'BP Financier'!$C$22+'BP Financier'!$D$22+'BP Financier'!$E$22+'BP Financier'!$F$22+'BP Financier'!$F$19+'BP Financier'!$F$16+'BP Financier'!$G$22+'BP Financier'!$G$19+'BP Financier'!$G$16))*$V9302*X9302/(1-$W9302)","v":{"v":33286.152441697435,"d":"33,286"}},{"$f":"'BP Financier'!$G$44*(('BP Financier'!$C$19+'BP Financier'!$D$19+'BP Financier'!$E$19+'BP Financier'!$F$19+'BP Financier'!$G$19)/('BP Financier'!$C$16+'BP Financier'!$C$19+'BP Financier'!$D$16+'BP Financier'!$D$19+'BP Financier'!$E$16+'BP Financier'!$E$19+'BP Financier'!$C$22+'BP Financier'!$D$22+'BP Financier'!$E$22+'BP Financier'!$F$22+'BP Financier'!$F$19+'BP Financier'!$F$16+'BP Financier'!$G$22+'BP Financier'!$G$19+'BP Financier'!$G$16))*$V9302*Y9302/(1-$W9302)","v":{"v":22252.068759366786,"d":"22,252"}},{"$f":"'BP Financier'!$G$44*(('BP Financier'!$C$19+'BP Financier'!$D$19+'BP Financier'!$E$19+'BP Financier'!$F$19+'BP Financier'!$G$19)/('BP Financier'!$C$16+'BP Financier'!$C$19+'BP Financier'!$D$16+'BP Financier'!$D$19+'BP Financier'!$E$16+'BP Financier'!$E$19+'BP Financier'!$C$22+'BP Financier'!$D$22+'BP Financier'!$E$22+'BP Financier'!$F$22+'BP Financier'!$F$19+'BP Financier'!$F$16+'BP Financier'!$G$22+'BP Financier'!$G$19+'BP Financier'!$G$16))*$V9302*Z9302/(1-$W9302)","v":{"v":174154.6207861186,"d":"174,155"}},{"$f":"'BP Financier'!$G$44*(('BP Financier'!$C$19+'BP Financier'!$D$19+'BP Financier'!$E$19+'BP Financier'!$F$19+'BP Financier'!$G$19)/('BP Financier'!$C$16+'BP Financier'!$C$19+'BP Financier'!$D$16+'BP Financier'!$D$19+'BP Financier'!$E$16+'BP Financier'!$E$19+'BP Financier'!$C$22+'BP Financier'!$D$22+'BP Financier'!$E$22+'BP Financier'!$F$22+'BP Financier'!$F$19+'BP Financier'!$F$16+'BP Financier'!$G$22+'BP Financier'!$G$19+'BP Financier'!$G$16))*$V9302*AA9302/(1-$W9302)","v":{"v":21516.46318054475,"d":"21,516"}},{"$f":"'BP Financier'!$G$44*(('BP Financier'!$C$19+'BP Financier'!$D$19+'BP Financier'!$E$19+'BP Financier'!$F$19+'BP Financier'!$G$19)/('BP Financier'!$C$16+'BP Financier'!$C$19+'BP Financier'!$D$16+'BP Financier'!$D$19+'BP Financier'!$E$16+'BP Financier'!$E$19+'BP Financier'!$C$22+'BP Financier'!$D$22+'BP Financier'!$E$22+'BP Financier'!$F$22+'BP Financier'!$F$19+'BP Financier'!$F$16+'BP Financier'!$G$22+'BP Financier'!$G$19+'BP Financier'!$G$16))*$V9302*AB9302/(1-$W9302)","v":{"v":10298.478103508596,"d":"10,298"}},null,{"v":0.008,"d":"0.80%"},{"$f":"Actif!$E$28/100","v":{"v":0.28900000000000003,"d":"28.90%"}},{"$f":"Actif!$E$30/100","v":{"v":0.09050000000000001,"d":"9.05%"}},{"$f":"Actif!$E$31/100","v":{"v":0.0605,"d":"6.05%"}},{"$f":"Actif!$E$32/100","v":{"v":0.47350000000000003,"d":"47.35%"}},{"$f":"Actif!$E$33/100","v":{"v":0.0585,"d":"5.85%"}},{"$f":"Actif!$E$29/100","v":{"v":0.027999999999999997,"d":"2.80%"}}]
[null,"#187",55,2028,"H","A_PER",{"v":0.44999999999999996,"d":"0.45"},{"v":0.38999999999999996,"d":"0.39"},0.6,0.6,85,0,{"$f":"ROUND(Primes!$Q$7*V9303,0)","v":11},{"$f":"'BP Financier'!$G$33*(('BP Financier'!$C$19+'BP Financier'!$D$19+'BP Financier'!$E$19+'BP Financier'!$F$19+'BP Financier'!$G$19)/('BP Financier'!$C$16+'BP Financier'!$C$19+'BP Financier'!$D$16+'BP Financier'!$D$19+'BP Financier'!$E$16+'BP Financier'!$E$19+'BP Financier'!$F$16+'BP Financier'!$F$19+'BP Financier'!$G$16+'BP Financier'!$G$19))*V9303","v":{"v":455640.45778982196,"d":"455,640"}},{"v":261507.7832712362,"d":"261,508"},{"$f":"'BP Financier'!$G$44*(('BP Financier'!$C$19+'BP Financier'!$D$19+'BP Financier'!$E$19+'BP Financier'!$F$19+'BP Financier'!$G$19)/('BP Financier'!$C$16+'BP Financier'!$C$19+'BP Financier'!$D$16+'BP Financier'!$D$19+'BP Financier'!$E$16+'BP Financier'!$E$19+'BP Financier'!$C$22+'BP Financier'!$D$22+'BP Financier'!$E$22+'BP Financier'!$F$22+'BP Financier'!$F$19+'BP Financier'!$F$16+'BP Financier'!$G$22+'BP Financier'!$G$19+'BP Financier'!$G$16))*$V9303*X9303/(1-$W9303)","v":{"v":33286.152441697435,"d":"33,286"}},{"$f":"'BP Financier'!$G$44*(('BP Financier'!$C$19+'BP Financier'!$D$19+'BP Financier'!$E$19+'BP Financier'!$F$19+'BP Financier'!$G$19)/('BP Financier'!$C$16+'BP Financier'!$C$19+'BP Financier'!$D$16+'BP Financier'!$D$19+'BP Financier'!$E$16+'BP Financier'!$E$19+'BP Financier'!$C$22+'BP Financier'!$D$22+'BP Financier'!$E$22+'BP Financier'!$F$22+'BP Financier'!$F$19+'BP Financier'!$F$16+'BP Financier'!$G$22+'BP Financier'!$G$19+'BP Financier'!$G$16))*$V9303*Y9303/(1-$W9303)","v":{"v":22252.068759366786,"d":"22,252"}},{"$f":"'BP Financier'!$G$44*(('BP Financier'!$C$19+'BP Financier'!$D$19+'BP Financier'!$E$19+'BP Financier'!$F$19+'BP Financier'!$G$19)/('BP Financier'!$C$16+'BP Financier'!$C$19+'BP Financier'!$D$16+'BP Financier'!$D$19+'BP Financier'!$E$16+'BP Financier'!$E$19+'BP Financier'!$C$22+'BP Financier'!$D$22+'BP Financier'!$E$22+'BP Financier'!$F$22+'BP Financier'!$F$19+'BP Financier'!$F$16+'BP Financier'!$G$22+'BP Financier'!$G$19+'BP Financier'!$G$16))*$V9303*Z9303/(1-$W9303)","v":{"v":174154.6207861186,"d":"174,155"}},{"$f":"'BP Financier'!$G$44*(('BP Financier'!$C$19+'BP Financier'!$D$19+'BP Financier'!$E$19+'BP Financier'!$F$19+'BP Financier'!$G$19)/('BP Financier'!$C$16+'BP Financier'!$C$19+'BP Financier'!$D$16+'BP Financier'!$D$19+'BP Financier'!$E$16+'BP Financier'!$E$19+'BP Financier'!$C$22+'BP Financier'!$D$22+'BP Financier'!$E$22+'BP Financier'!$F$22+'BP Financier'!$F$19+'BP Financier'!$F$16+'BP Financier'!$G$22+'BP Financier'!$G$19+'BP Financier'!$G$16))*$V9303*AA9303/(1-$W9303)","v":{"v":21516.46318054475,"d":"21,516"}},{"$f":"'BP Financier'!$G$44*(('BP Financier'!$C$19+'BP Financier'!$D$19+'BP Financier'!$E$19+'BP Financier'!$F$19+'BP Financier'!$G$19)/('BP Financier'!$C$16+'BP Financier'!$C$19+'BP Financier'!$D$16+'BP Financier'!$D$19+'BP Financier'!$E$16+'BP Financier'!$E$19+'BP Financier'!$C$22+'BP Financier'!$D$22+'BP Financier'!$E$22+'BP Financier'!$F$22+'BP Financier'!$F$19+'BP Financier'!$F$16+'BP Financier'!$G$22+'BP Financier'!$G$19+'BP Financier'!$G$16))*$V9303*AB9303/(1-$W9303)","v":{"v":10298.478103508596,"d":"10,298"}},null,{"v":0.008,"d":"0.80%"},{"$f":"Actif!$E$28/100","v":{"v":0.28900000000000003,"d":"28.90%"}},{"$f":"Actif!$E$30/100","v":{"v":0.09050000000000001,"d":"9.05%"}},{"$f":"Actif!$E$31/100","v":{"v":0.0605,"d":"6.05%"}},{"$f":"Actif!$E$32/100","v":{"v":0.47350000000000003,"d":"47.35%"}},{"$f":"Actif!$E$33/100","v":{"v":0.0585,"d":"5.85%"}},{"$f":"Actif!$E$29/100","v":{"v":0.027999999999999997,"d":"2.80%"}}]
[null,"#188",55,2029,"H","A_PER",{"v":0.44999999999999996,"d":"0.45"},{"v":0.38999999999999996,"d":"0.39"},0.6,0.6,85,0,{"$f":"ROUND(Primes!$Q$7*V9304,0)","v":11},{"$f":"'BP Financier'!$G$33*(('BP Financier'!$C$19+'BP Financier'!$D$19+'BP Financier'!$E$19+'BP Financier'!$F$19+'BP Financier'!$G$19)/('BP Financier'!$C$16+'BP Financier'!$C$19+'BP Financier'!$D$16+'BP Financier'!$D$19+'BP Financier'!$E$16+'BP Financier'!$E$19+'BP Financier'!$F$16+'BP Financier'!$F$19+'BP Financier'!$G$16+'BP Financier'!$G$19))*V9304","v":{"v":455640.45778982196,"d":"455,640"}},{"v":261507.7832712362,"d":"261,508"},{"$f":"'BP Financier'!$G$44*(('BP Financier'!$C$19+'BP Financier'!$D$19+'BP Financier'!$E$19+'BP Financier'!$F$19+'BP Financier'!$G$19)/('BP Financier'!$C$16+'BP Financier'!$C$19+'BP Financier'!$D$16+'BP Financier'!$D$19+'BP Financier'!$E$16+'BP Financier'!$E$19+'BP Financier'!$C$22+'BP Financier'!$D$22+'BP Financier'!$E$22+'BP Financier'!$F$22+'BP Financier'!$F$19+'BP Financier'!$F$16+'BP Financier'!$G$22+'BP Financier'!$G$19+'BP Financier'!$G$16))*$V9304*X9304/(1-$W9304)","v":{"v":33286.152441697435,"d":"33,286"}},{"$f":"'BP Financier'!$G$44*(('BP Financier'!$C$19+'BP Financier'!$D$19+'BP Financier'!$E$19+'BP Financier'!$F$19+'BP Financier'!$G$19)/('BP Financier'!$C$16+'BP Financier'!$C$19+'BP Financier'!$D$16+'BP Financier'!$D$19+'BP Financier'!$E$16+'BP Financier'!$E$19+'BP Financier'!$C$22+'BP Financier'!$D$22+'BP Financier'!$E$22+'BP Financier'!$F$22+'BP Financier'!$F$19+'BP Financier'!$F$16+'BP Financier'!$G$22+'BP Financier'!$G$19+'BP Financier'!$G$16))*$V9304*Y9304/(1-$W9304)","v":{"v":22252.068759366786,"d":"22,252"}},{"$f":"'BP Financier'!$G$44*(('BP Financier'!$C$19+'BP Financier'!$D$19+'BP Financier'!$E$19+'BP Financier'!$F$19+'BP Financier'!$G$19)/('BP Financier'!$C$16+'BP Financier'!$C$19+'BP Financier'!$D$16+'BP Financier'!$D$19+'BP Financier'!$E$16+'BP Financier'!$E$19+'BP Financier'!$C$22+'BP Financier'!$D$22+'BP Financier'!$E$22+'BP Financier'!$F$22+'BP Financier'!$F$19+'BP Financier'!$F$16+'BP Financier'!$G$22+'BP Financier'!$G$19+'BP Financier'!$G$16))*$V9304*Z9304/(1-$W9304)","v":{"v":174154.6207861186,"d":"174,155"}},{"$f":"'BP Financier'!$G$44*(('BP Financier'!$C$19+'BP Financier'!$D$19+'BP Financier'!$E$19+'BP Financier'!$F$19+'BP Financier'!$G$19)/('BP Financier'!$C$16+'BP Financier'!$C$19+'BP Financier'!$D$16+'BP Financier'!$D$19+'BP Financier'!$E$16+'BP Financier'!$E$19+'BP Financier'!$C$22+'BP Financier'!$D$22+'BP Financier'!$E$22+'BP Financier'!$F$22+'BP Financier'!$F$19+'BP Financier'!$F$16+'BP Financier'!$G$22+'BP Financier'!$G$19+'BP Financier'!$G$16))*$V9304*AA9304/(1-$W9304)","v":{"v":21516.46318054475,"d":"21,516"}},{"$f":"'BP Financier'!$G$44*(('BP Financier'!$C$19+'BP Financier'!$D$19+'BP Financier'!$E$19+'BP Financier'!$F$19+'BP Financier'!$G$19)/('BP Financier'!$C$16+'BP Financier'!$C$19+'BP Financier'!$D$16+'BP Financier'!$D$19+'BP Financier'!$E$16+'BP Financier'!$E$19+'BP Financier'!$C$22+'BP Financier'!$D$22+'BP Financier'!$E$22+'BP Financier'!$F$22+'BP Financier'!$F$19+'BP Financier'!$F$16+'BP Financier'!$G$22+'BP Financier'!$G$19+'BP Financier'!$G$16))*$V9304*AB9304/(1-$W9304)","v":{"v":10298.478103508596,"d":"10,298"}},null,{"v":0.008,"d":"0.80%"},{"$f":"Actif!$E$28/100","v":{"v":0.28900000000000003,"d":"28.90%"}},{"$f":"Actif!$E$30/100","v":{"v":0.09050000000000001,"d":"9.05%"}},{"$f":"Actif!$E$31/100","v":{"v":0.0605,"d":"6.05%"}},{"$f":"Actif!$E$32/100","v":{"v":0.47350000000000003,"d":"47.35%"}},{"$f":"Actif!$E$33/100","v":{"v":0.0585,"d":"5.85%"}},{"$f":"Actif!$E$29/100","v":{"v":0.027999999999999997,"d":"2.80%"}}]
[null,"#189",55,2030,"H","A_PER",{"v":0.44999999999999996,"d":"0.45"},{"v":0.38999999999999996,"d":"0.39"},0.6,0.6,85,0,{"$f":"ROUND(Primes!$Q$7*V9305,0)","v":11},{"$f":"'BP Financier'!$G$33*(('BP Financier'!$C$19+'BP Financier'!$D$19+'BP Financier'!$E$19+'BP Financier'!$F$19+'BP Financier'!$G$19)/('BP Financier'!$C$16+'BP Financier'!$C$19+'BP Financier'!$D$16+'BP Financier'!$D$19+'BP Financier'!$E$16+'BP Financier'!$E$19+'BP Financier'!$F$16+'BP Financier'!$F$19+'BP Financier'!$G$16+'BP Financier'!$G$19))*V9305","v":{"v":455640.45778982196,"d":"455,640"}},{"v":261507.7832712362,"d":"261,508"},{"$f":"'BP Financier'!$G$44*(('BP Financier'!$C$19+'BP Financier'!$D$19+'BP Financier'!$E$19+'BP Financier'!$F$19+'BP Financier'!$G$19)/('BP Financier'!$C$16+'BP Financier'!$C$19+'BP Financier'!$D$16+'BP Financier'!$D$19+'BP Financier'!$E$16+'BP Financier'!$E$19+'BP Financier'!$C$22+'BP Financier'!$D$22+'BP Financier'!$E$22+'BP Financier'!$F$22+'BP Financier'!$F$19+'BP Financier'!$F$16+'BP Financier'!$G$22+'BP Financier'!$G$19+'BP Financier'!$G$16))*$V9305*X9305/(1-$W9305)","v":{"v":33286.152441697435,"d":"33,286"}},{"$f":"'BP Financier'!$G$44*(('BP Financier'!$C$19+'BP Financier'!$D$19+'BP Financier'!$E$19+'BP Financier'!$F$19+'BP Financier'!$G$19)/('BP Financier'!$C$16+'BP Financier'!$C$19+'BP Financier'!$D$16+'BP Financier'!$D$19+'BP Financier'!$E$16+'BP Financier'!$E$19+'BP Financier'!$C$22+'BP Financier'!$D$22+'BP Financier'!$E$22+'BP Financier'!$F$22+'BP Financier'!$F$19+'BP Financier'!$F$16+'BP Financier'!$G$22+'BP Financier'!$G$19+'BP Financier'!$G$16))*$V9305*Y9305/(1-$W9305)","v":{"v":22252.068759366786,"d":"22,252"}},{"$f":"'BP Financier'!$G$44*(('BP Financier'!$C$19+'BP Financier'!$D$19+'BP Financier'!$E$19+'BP Financier'!$F$19+'BP Financier'!$G$19)/('BP Financier'!$C$16+'BP Financier'!$C$19+'BP Financier'!$D$16+'BP Financier'!$D$19+'BP Financier'!$E$16+'BP Financier'!$E$19+'BP Financier'!$C$22+'BP Financier'!$D$22+'BP Financier'!$E$22+'BP Financier'!$F$22+'BP Financier'!$F$19+'BP Financier'!$F$16+'BP Financier'!$G$22+'BP Financier'!$G$19+'BP Financier'!$G$16))*$V9305*Z9305/(1-$W9305)","v":{"v":174154.6207861186,"d":"174,155"}},{"$f":"'BP Financier'!$G$44*(('BP Financier'!$C$19+'BP Financier'!$D$19+'BP Financier'!$E$19+'BP Financier'!$F$19+'BP Financier'!$G$19)/('BP Financier'!$C$16+'BP Financier'!$C$19+'BP Financier'!$D$16+'BP Financier'!$D$19+'BP Financier'!$E$16+'BP Financier'!$E$19+'BP Financier'!$C$22+'BP Financier'!$D$22+'BP Financier'!$E$22+'BP Financier'!$F$22+'BP Financier'!$F$19+'BP Financier'!$F$16+'BP Financier'!$G$22+'BP Financier'!$G$19+'BP Financier'!$G$16))*$V9305*AA9305/(1-$W9305)","v":{"v":21516.46318054475,"d":"21,516"}},{"$f":"'BP Financier'!$G$44*(('BP Financier'!$C$19+'BP Financier'!$D$19+'BP Financier'!$E$19+'BP Financier'!$F$19+'BP Financier'!$G$19)/('BP Financier'!$C$16+'BP Financier'!$C$19+'BP Financier'!$D$16+'BP Financier'!$D$19+'BP Financier'!$E$16+'BP Financier'!$E$19+'BP Financier'!$C$22+'BP Financier'!$D$22+'BP Financier'!$E$22+'BP Financier'!$F$22+'BP Financier'!$F$19+'BP Financier'!$F$16+'BP Financier'!$G$22+'BP Financier'!$G$19+'BP Financier'!$G$16))*$V9305*AB9305/(1-$W9305)","v":{"v":10298.478103508596,"d":"10,298"}},null,{"v":0.008,"d":"0.80%"},{"$f":"Actif!$E$28/100","v":{"v":0.28900000000000003,"d":"28.90%"}},{"$f":"Actif!$E$30/100","v":{"v":0.09050000000000001,"d":"9.05%"}},{"$f":"Actif!$E$31/100","v":{"v":0.0605,"d":"6.05%"}},{"$f":"Actif!$E$32/100","v":{"v":0.47350000000000003,"d":"47.35%"}},{"$f":"Actif!$E$33/100","v":{"v":0.0585,"d":"5.85%"}},{"$f":"Actif!$E$29/100","v":{"v":0.027999999999999997,"d":"2.80%"}}]
[null,"#190",55,2031,"H","A_PER",{"v":0.44999999999999996,"d":"0.45"},{"v":0.38999999999999996,"d":"0.39"},0.6,0.6,85,0,{"$f":"ROUND(Primes!$Q$7*V9306,0)","v":11},{"$f":"'BP Financier'!$G$33*(('BP Financier'!$C$19+'BP Financier'!$D$19+'BP Financier'!$E$19+'BP Financier'!$F$19+'BP Financier'!$G$19)/('BP Financier'!$C$16+'BP Financier'!$C$19+'BP Financier'!$D$16+'BP Financier'!$D$19+'BP Financier'!$E$16+'BP Financier'!$E$19+'BP Financier'!$F$16+'BP Financier'!$F$19+'BP Financier'!$G$16+'BP Financier'!$G$19))*V9306","v":{"v":455640.45778982196,"d":"455,640"}},{"v":261507.7832712362,"d":"261,508"},{"$f":"'BP Financier'!$G$44*(('BP Financier'!$C$19+'BP Financier'!$D$19+'BP Financier'!$E$19+'BP Financier'!$F$19+'BP Financier'!$G$19)/('BP Financier'!$C$16+'BP Financier'!$C$19+'BP Financier'!$D$16+'BP Financier'!$D$19+'BP Financier'!$E$16+'BP Financier'!$E$19+'BP Financier'!$C$22+'BP Financier'!$D$22+'BP Financier'!$E$22+'BP Financier'!$F$22+'BP Financier'!$F$19+'BP Financier'!$F$16+'BP Financier'!$G$22+'BP Financier'!$G$19+'BP Financier'!$G$16))*$V9306*X9306/(1-$W9306)","v":{"v":33286.152441697435,"d":"33,286"}},{"$f":"'BP Financier'!$G$44*(('BP Financier'!$C$19+'BP Financier'!$D$19+'BP Financier'!$E$19+'BP Financier'!$F$19+'BP Financier'!$G$19)/('BP Financier'!$C$16+'BP Financier'!$C$19+'BP Financier'!$D$16+'BP Financier'!$D$19+'BP Financier'!$E$16+'BP Financier'!$E$19+'BP Financier'!$C$22+'BP Financier'!$D$22+'BP Financier'!$E$22+'BP Financier'!$F$22+'BP Financier'!$F$19+'BP Financier'!$F$16+'BP Financier'!$G$22+'BP Financier'!$G$19+'BP Financier'!$G$16))*$V9306*Y9306/(1-$W9306)","v":{"v":22252.068759366786,"d":"22,252"}},{"$f":"'BP Financier'!$G$44*(('BP Financier'!$C$19+'BP Financier'!$D$19+'BP Financier'!$E$19+'BP Financier'!$F$19+'BP Financier'!$G$19)/('BP Financier'!$C$16+'BP Financier'!$C$19+'BP Financier'!$D$16+'BP Financier'!$D$19+'BP Financier'!$E$16+'BP Financier'!$E$19+'BP Financier'!$C$22+'BP Financier'!$D$22+'BP Financier'!$E$22+'BP Financier'!$F$22+'BP Financier'!$F$19+'BP Financier'!$F$16+'BP Financier'!$G$22+'BP Financier'!$G$19+'BP Financier'!$G$16))*$V9306*Z9306/(1-$W9306)","v":{"v":174154.6207861186,"d":"174,155"}},{"$f":"'BP Financier'!$G$44*(('BP Financier'!$C$19+'BP Financier'!$D$19+'BP Financier'!$E$19+'BP Financier'!$F$19+'BP Financier'!$G$19)/('BP Financier'!$C$16+'BP Financier'!$C$19+'BP Financier'!$D$16+'BP Financier'!$D$19+'BP Financier'!$E$16+'BP Financier'!$E$19+'BP Financier'!$C$22+'BP Financier'!$D$22+'BP Financier'!$E$22+'BP Financier'!$F$22+'BP Financier'!$F$19+'BP Financier'!$F$16+'BP Financier'!$G$22+'BP Financier'!$G$19+'BP Financier'!$G$16))*$V9306*AA9306/(1-$W9306)","v":{"v":21516.46318054475,"d":"21,516"}},{"$f":"'BP Financier'!$G$44*(('BP Financier'!$C$19+'BP Financier'!$D$19+'BP Financier'!$E$19+'BP Financier'!$F$19+'BP Financier'!$G$19)/('BP Financier'!$C$16+'BP Financier'!$C$19+'BP Financier'!$D$16+'BP Financier'!$D$19+'BP Financier'!$E$16+'BP Financier'!$E$19+'BP Financier'!$C$22+'BP Financier'!$D$22+'BP Financier'!$E$22+'BP Financier'!$F$22+'BP Financier'!$F$19+'BP Financier'!$F$16+'BP Financier'!$G$22+'BP Financier'!$G$19+'BP Financier'!$G$16))*$V9306*AB9306/(1-$W9306)","v":{"v":10298.478103508596,"d":"10,298"}},null,{"v":0.008,"d":"0.80%"},{"$f":"Actif!$E$28/100","v":{"v":0.28900000000000003,"d":"28.90%"}},{"$f":"Actif!$E$30/100","v":{"v":0.09050000000000001,"d":"9.05%"}},{"$f":"Actif!$E$31/100","v":{"v":0.0605,"d":"6.05%"}},{"$f":"Actif!$E$32/100","v":{"v":0.47350000000000003,"d":"47.35%"}},{"$f":"Actif!$E$33/100","v":{"v":0.0585,"d":"5.85%"}},{"$f":"Actif!$E$29/100","v":{"v":0.027999999999999997,"d":"2.80%"}}]
[null,"#191",56,2026,"F","A_PER",{"v":0.44999999999999996,"d":"0.45"},{"v":0.38999999999999996,"d":"0.39"},0.6,0.6,85,0,{"$f":"ROUND(Primes!$Q$7*V9307,0)","v":5},{"$f":"'BP Financier'!$G$33*(('BP Financier'!$C$19+'BP Financier'!$D$19+'BP Financier'!$E$19+'BP Financier'!$F$19+'BP Financier'!$G$19)/('BP Financier'!$C$16+'BP Financier'!$C$19+'BP Financier'!$D$16+'BP Financier'!$D$19+'BP Financier'!$E$16+'BP Financier'!$E$19+'BP Financier'!$F$16+'BP Financier'!$F$19+'BP Financier'!$G$16+'BP Financier'!$G$19))*V9307","v":{"v":227820.22889491098,"d":"227,820"}},{"v":130753.8916356181,"d":"130,754"},{"$f":"'BP Financier'!$G$44*(('BP Financier'!$C$19+'BP Financier'!$D$19+'BP Financier'!$E$19+'BP Financier'!$F$19+'BP Financier'!$G$19)/('BP Financier'!$C$16+'BP Financier'!$C$19+'BP Financier'!$D$16+'BP Financier'!$D$19+'BP Financier'!$E$16+'BP Financier'!$E$19+'BP Financier'!$C$22+'BP Financier'!$D$22+'BP Financier'!$E$22+'BP Financier'!$F$22+'BP Financier'!$F$19+'BP Financier'!$F$16+'BP Financier'!$G$22+'BP Financier'!$G$19+'BP Financier'!$G$16))*$V9307*X9307/(1-$W9307)","v":{"v":16643.076220848718,"d":"16,643"}},{"$f":"'BP Financier'!$G$44*(('BP Financier'!$C$19+'BP Financier'!$D$19+'BP Financier'!$E$19+'BP Financier'!$F$19+'BP Financier'!$G$19)/('BP Financier'!$C$16+'BP Financier'!$C$19+'BP Financier'!$D$16+'BP Financier'!$D$19+'BP Financier'!$E$16+'BP Financier'!$E$19+'BP Financier'!$C$22+'BP Financier'!$D$22+'BP Financier'!$E$22+'BP Financier'!$F$22+'BP Financier'!$F$19+'BP Financier'!$F$16+'BP Financier'!$G$22+'BP Financier'!$G$19+'BP Financier'!$G$16))*$V9307*Y9307/(1-$W9307)","v":{"v":11126.034379683393,"d":"11,126"}},{"$f":"'BP Financier'!$G$44*(('BP Financier'!$C$19+'BP Financier'!$D$19+'BP Financier'!$E$19+'BP Financier'!$F$19+'BP Financier'!$G$19)/('BP Financier'!$C$16+'BP Financier'!$C$19+'BP Financier'!$D$16+'BP Financier'!$D$19+'BP Financier'!$E$16+'BP Financier'!$E$19+'BP Financier'!$C$22+'BP Financier'!$D$22+'BP Financier'!$E$22+'BP Financier'!$F$22+'BP Financier'!$F$19+'BP Financier'!$F$16+'BP Financier'!$G$22+'BP Financier'!$G$19+'BP Financier'!$G$16))*$V9307*Z9307/(1-$W9307)","v":{"v":87077.3103930593,"d":"87,077"}},{"$f":"'BP Financier'!$G$44*(('BP Financier'!$C$19+'BP Financier'!$D$19+'BP Financier'!$E$19+'BP Financier'!$F$19+'BP Financier'!$G$19)/('BP Financier'!$C$16+'BP Financier'!$C$19+'BP Financier'!$D$16+'BP Financier'!$D$19+'BP Financier'!$E$16+'BP Financier'!$E$19+'BP Financier'!$C$22+'BP Financier'!$D$22+'BP Financier'!$E$22+'BP Financier'!$F$22+'BP Financier'!$F$19+'BP Financier'!$F$16+'BP Financier'!$G$22+'BP Financier'!$G$19+'BP Financier'!$G$16))*$V9307*AA9307/(1-$W9307)","v":{"v":10758.231590272375,"d":"10,758"}},{"$f":"'BP Financier'!$G$44*(('BP Financier'!$C$19+'BP Financier'!$D$19+'BP Financier'!$E$19+'BP Financier'!$F$19+'BP Financier'!$G$19)/('BP Financier'!$C$16+'BP Financier'!$C$19+'BP Financier'!$D$16+'BP Financier'!$D$19+'BP Financier'!$E$16+'BP Financier'!$E$19+'BP Financier'!$C$22+'BP Financier'!$D$22+'BP Financier'!$E$22+'BP Financier'!$F$22+'BP Financier'!$F$19+'BP Financier'!$F$16+'BP Financier'!$G$22+'BP Financier'!$G$19+'BP Financier'!$G$16))*$V9307*AB9307/(1-$W9307)","v":{"v":5149.239051754298,"d":"5,149"}},null,{"v":0.004,"d":"0.40%"},{"$f":"Actif!$E$28/100","v":{"v":0.28900000000000003,"d":"28.90%"}},{"$f":"Actif!$E$30/100","v":{"v":0.09050000000000001,"d":"9.05%"}},{"$f":"Actif!$E$31/100","v":{"v":0.0605,"d":"6.05%"}},{"$f":"Actif!$E$32/100","v":{"v":0.47350000000000003,"d":"47.35%"}},{"$f":"Actif!$E$33/100","v":{"v":0.0585,"d":"5.85%"}},{"$f":"Actif!$E$29/100","v":{"v":0.027999999999999997,"d":"2.80%"}}]
[null,"#192",56,2028,"F","A_PER",{"v":0.44999999999999996,"d":"0.45"},{"v":0.38999999999999996,"d":"0.39"},0.6,0.6,85,0,{"$f":"ROUND(Primes!$Q$7*V9308,0)","v":5},{"$f":"'BP Financier'!$G$33*(('BP Financier'!$C$19+'BP Financier'!$D$19+'BP Financier'!$E$19+'BP Financier'!$F$19+'BP Financier'!$G$19)/('BP Financier'!$C$16+'BP Financier'!$C$19+'BP Financier'!$D$16+'BP Financier'!$D$19+'BP Financier'!$E$16+'BP Financier'!$E$19+'BP Financier'!$F$16+'BP Financier'!$F$19+'BP Financier'!$G$16+'BP Financier'!$G$19))*V9308","v":{"v":227820.22889491098,"d":"227,820"}},{"v":130753.8916356181,"d":"130,754"},{"$f":"'BP Financier'!$G$44*(('BP Financier'!$C$19+'BP Financier'!$D$19+'BP Financier'!$E$19+'BP Financier'!$F$19+'BP Financier'!$G$19)/('BP Financier'!$C$16+'BP Financier'!$C$19+'BP Financier'!$D$16+'BP Financier'!$D$19+'BP Financier'!$E$16+'BP Financier'!$E$19+'BP Financier'!$C$22+'BP Financier'!$D$22+'BP Financier'!$E$22+'BP Financier'!$F$22+'BP Financier'!$F$19+'BP Financier'!$F$16+'BP Financier'!$G$22+'BP Financier'!$G$19+'BP Financier'!$G$16))*$V9308*X9308/(1-$W9308)","v":{"v":16643.076220848718,"d":"16,643"}},{"$f":"'BP Financier'!$G$44*(('BP Financier'!$C$19+'BP Financier'!$D$19+'BP Financier'!$E$19+'BP Financier'!$F$19+'BP Financier'!$G$19)/('BP Financier'!$C$16+'BP Financier'!$C$19+'BP Financier'!$D$16+'BP Financier'!$D$19+'BP Financier'!$E$16+'BP Financier'!$E$19+'BP Financier'!$C$22+'BP Financier'!$D$22+'BP Financier'!$E$22+'BP Financier'!$F$22+'BP Financier'!$F$19+'BP Financier'!$F$16+'BP Financier'!$G$22+'BP Financier'!$G$19+'BP Financier'!$G$16))*$V9308*Y9308/(1-$W9308)","v":{"v":11126.034379683393,"d":"11,126"}},{"$f":"'BP Financier'!$G$44*(('BP Financier'!$C$19+'BP Financier'!$D$19+'BP Financier'!$E$19+'BP Financier'!$F$19+'BP Financier'!$G$19)/('BP Financier'!$C$16+'BP Financier'!$C$19+'BP Financier'!$D$16+'BP Financier'!$D$19+'BP Financier'!$E$16+'BP Financier'!$E$19+'BP Financier'!$C$22+'BP Financier'!$D$22+'BP Financier'!$E$22+'BP Financier'!$F$22+'BP Financier'!$F$19+'BP Financier'!$F$16+'BP Financier'!$G$22+'BP Financier'!$G$19+'BP Financier'!$G$16))*$V9308*Z9308/(1-$W9308)","v":{"v":87077.3103930593,"d":"87,077"}},{"$f":"'BP Financier'!$G$44*(('BP Financier'!$C$19+'BP Financier'!$D$19+'BP Financier'!$E$19+'BP Financier'!$F$19+'BP Financier'!$G$19)/('BP Financier'!$C$16+'BP Financier'!$C$19+'BP Financier'!$D$16+'BP Financier'!$D$19+'BP Financier'!$E$16+'BP Financier'!$E$19+'BP Financier'!$C$22+'BP Financier'!$D$22+'BP Financier'!$E$22+'BP Financier'!$F$22+'BP Financier'!$F$19+'BP Financier'!$F$16+'BP Financier'!$G$22+'BP Financier'!$G$19+'BP Financier'!$G$16))*$V9308*AA9308/(1-$W9308)","v":{"v":10758.231590272375,"d":"10,758"}},{"$f":"'BP Financier'!$G$44*(('BP Financier'!$C$19+'BP Financier'!$D$19+'BP Financier'!$E$19+'BP Financier'!$F$19+'BP Financier'!$G$19)/('BP Financier'!$C$16+'BP Financier'!$C$19+'BP Financier'!$D$16+'BP Financier'!$D$19+'BP Financier'!$E$16+'BP Financier'!$E$19+'BP Financier'!$C$22+'BP Financier'!$D$22+'BP Financier'!$E$22+'BP Financier'!$F$22+'BP Financier'!$F$19+'BP Financier'!$F$16+'BP Financier'!$G$22+'BP Financier'!$G$19+'BP Financier'!$G$16))*$V9308*AB9308/(1-$W9308)","v":{"v":5149.239051754298,"d":"5,149"}},null,{"v":0.004,"d":"0.40%"},{"$f":"Actif!$E$28/100","v":{"v":0.28900000000000003,"d":"28.90%"}},{"$f":"Actif!$E$30/100","v":{"v":0.09050000000000001,"d":"9.05%"}},{"$f":"Actif!$E$31/100","v":{"v":0.0605,"d":"6.05%"}},{"$f":"Actif!$E$32/100","v":{"v":0.47350000000000003,"d":"47.35%"}},{"$f":"Actif!$E$33/100","v":{"v":0.0585,"d":"5.85%"}},{"$f":"Actif!$E$29/100","v":{"v":0.027999999999999997,"d":"2.80%"}}]
[null,"#193",56,2029,"F","A_PER",{"v":0.44999999999999996,"d":"0.45"},{"v":0.38999999999999996,"d":"0.39"},0.6,0.6,85,0,{"$f":"ROUND(Primes!$Q$7*V9309,0)","v":5},{"$f":"'BP Financier'!$G$33*(('BP Financier'!$C$19+'BP Financier'!$D$19+'BP Financier'!$E$19+'BP Financier'!$F$19+'BP Financier'!$G$19)/('BP Financier'!$C$16+'BP Financier'!$C$19+'BP Financier'!$D$16+'BP Financier'!$D$19+'BP Financier'!$E$16+'BP Financier'!$E$19+'BP Financier'!$F$16+'BP Financier'!$F$19+'BP Financier'!$G$16+'BP Financier'!$G$19))*V9309","v":{"v":227820.22889491098,"d":"227,820"}},{"v":130753.8916356181,"d":"130,754"},{"$f":"'BP Financier'!$G$44*(('BP Financier'!$C$19+'BP Financier'!$D$19+'BP Financier'!$E$19+'BP Financier'!$F$19+'BP Financier'!$G$19)/('BP Financier'!$C$16+'BP Financier'!$C$19+'BP Financier'!$D$16+'BP Financier'!$D$19+'BP Financier'!$E$16+'BP Financier'!$E$19+'BP Financier'!$C$22+'BP Financier'!$D$22+'BP Financier'!$E$22+'BP Financier'!$F$22+'BP Financier'!$F$19+'BP Financier'!$F$16+'BP Financier'!$G$22+'BP Financier'!$G$19+'BP Financier'!$G$16))*$V9309*X9309/(1-$W9309)","v":{"v":16643.076220848718,"d":"16,643"}},{"$f":"'BP Financier'!$G$44*(('BP Financier'!$C$19+'BP Financier'!$D$19+'BP Financier'!$E$19+'BP Financier'!$F$19+'BP Financier'!$G$19)/('BP Financier'!$C$16+'BP Financier'!$C$19+'BP Financier'!$D$16+'BP Financier'!$D$19+'BP Financier'!$E$16+'BP Financier'!$E$19+'BP Financier'!$C$22+'BP Financier'!$D$22+'BP Financier'!$E$22+'BP Financier'!$F$22+'BP Financier'!$F$19+'BP Financier'!$F$16+'BP Financier'!$G$22+'BP Financier'!$G$19+'BP Financier'!$G$16))*$V9309*Y9309/(1-$W9309)","v":{"v":11126.034379683393,"d":"11,126"}},{"$f":"'BP Financier'!$G$44*(('BP Financier'!$C$19+'BP Financier'!$D$19+'BP Financier'!$E$19+'BP Financier'!$F$19+'BP Financier'!$G$19)/('BP Financier'!$C$16+'BP Financier'!$C$19+'BP Financier'!$D$16+'BP Financier'!$D$19+'BP Financier'!$E$16+'BP Financier'!$E$19+'BP Financier'!$C$22+'BP Financier'!$D$22+'BP Financier'!$E$22+'BP Financier'!$F$22+'BP Financier'!$F$19+'BP Financier'!$F$16+'BP Financier'!$G$22+'BP Financier'!$G$19+'BP Financier'!$G$16))*$V9309*Z9309/(1-$W9309)","v":{"v":87077.3103930593,"d":"87,077"}},{"$f":"'BP Financier'!$G$44*(('BP Financier'!$C$19+'BP Financier'!$D$19+'BP Financier'!$E$19+'BP Financier'!$F$19+'BP Financier'!$G$19)/('BP Financier'!$C$16+'BP Financier'!$C$19+'BP Financier'!$D$16+'BP Financier'!$D$19+'BP Financier'!$E$16+'BP Financier'!$E$19+'BP Financier'!$C$22+'BP Financier'!$D$22+'BP Financier'!$E$22+'BP Financier'!$F$22+'BP Financier'!$F$19+'BP Financier'!$F$16+'BP Financier'!$G$22+'BP Financier'!$G$19+'BP Financier'!$G$16))*$V9309*AA9309/(1-$W9309)","v":{"v":10758.231590272375,"d":"10,758"}},{"$f":"'BP Financier'!$G$44*(('BP Financier'!$C$19+'BP Financier'!$D$19+'BP Financier'!$E$19+'BP Financier'!$F$19+'BP Financier'!$G$19)/('BP Financier'!$C$16+'BP Financier'!$C$19+'BP Financier'!$D$16+'BP Financier'!$D$19+'BP Financier'!$E$16+'BP Financier'!$E$19+'BP Financier'!$C$22+'BP Financier'!$D$22+'BP Financier'!$E$22+'BP Financier'!$F$22+'BP Financier'!$F$19+'BP Financier'!$F$16+'BP Financier'!$G$22+'BP Financier'!$G$19+'BP Financier'!$G$16))*$V9309*AB9309/(1-$W9309)","v":{"v":5149.239051754298,"d":"5,149"}},null,{"v":0.004,"d":"0.40%"},{"$f":"Actif!$E$28/100","v":{"v":0.28900000000000003,"d":"28.90%"}},{"$f":"Actif!$E$30/100","v":{"v":0.09050000000000001,"d":"9.05%"}},{"$f":"Actif!$E$31/100","v":{"v":0.0605,"d":"6.05%"}},{"$f":"Actif!$E$32/100","v":{"v":0.47350000000000003,"d":"47.35%"}},{"$f":"Actif!$E$33/100","v":{"v":0.0585,"d":"5.85%"}},{"$f":"Actif!$E$29/100","v":{"v":0.027999999999999997,"d":"2.80%"}}]
[null,"#194",56,2030,"F","A_PER",{"v":0.44999999999999996,"d":"0.45"},{"v":0.38999999999999996,"d":"0.39"},0.6,0.6,85,0,{"$f":"ROUND(Primes!$Q$7*V9310,0)","v":5},{"$f":"'BP Financier'!$G$33*(('BP Financier'!$C$19+'BP Financier'!$D$19+'BP Financier'!$E$19+'BP Financier'!$F$19+'BP Financier'!$G$19)/('BP Financier'!$C$16+'BP Financier'!$C$19+'BP Financier'!$D$16+'BP Financier'!$D$19+'BP Financier'!$E$16+'BP Financier'!$E$19+'BP Financier'!$F$16+'BP Financier'!$F$19+'BP Financier'!$G$16+'BP Financier'!$G$19))*V9310","v":{"v":227820.22889491098,"d":"227,820"}},{"v":130753.8916356181,"d":"130,754"},{"$f":"'BP Financier'!$G$44*(('BP Financier'!$C$19+'BP Financier'!$D$19+'BP Financier'!$E$19+'BP Financier'!$F$19+'BP Financier'!$G$19)/('BP Financier'!$C$16+'BP Financier'!$C$19+'BP Financier'!$D$16+'BP Financier'!$D$19+'BP Financier'!$E$16+'BP Financier'!$E$19+'BP Financier'!$C$22+'BP Financier'!$D$22+'BP Financier'!$E$22+'BP Financier'!$F$22+'BP Financier'!$F$19+'BP Financier'!$F$16+'BP Financier'!$G$22+'BP Financier'!$G$19+'BP Financier'!$G$16))*$V9310*X9310/(1-$W9310)","v":{"v":16643.076220848718,"d":"16,643"}},{"$f":"'BP Financier'!$G$44*(('BP Financier'!$C$19+'BP Financier'!$D$19+'BP Financier'!$E$19+'BP Financier'!$F$19+'BP Financier'!$G$19)/('BP Financier'!$C$16+'BP Financier'!$C$19+'BP Financier'!$D$16+'BP Financier'!$D$19+'BP Financier'!$E$16+'BP Financier'!$E$19+'BP Financier'!$C$22+'BP Financier'!$D$22+'BP Financier'!$E$22+'BP Financier'!$F$22+'BP Financier'!$F$19+'BP Financier'!$F$16+'BP Financier'!$G$22+'BP Financier'!$G$19+'BP Financier'!$G$16))*$V9310*Y9310/(1-$W9310)","v":{"v":11126.034379683393,"d":"11,126"}},{"$f":"'BP Financier'!$G$44*(('BP Financier'!$C$19+'BP Financier'!$D$19+'BP Financier'!$E$19+'BP Financier'!$F$19+'BP Financier'!$G$19)/('BP Financier'!$C$16+'BP Financier'!$C$19+'BP Financier'!$D$16+'BP Financier'!$D$19+'BP Financier'!$E$16+'BP Financier'!$E$19+'BP Financier'!$C$22+'BP Financier'!$D$22+'BP Financier'!$E$22+'BP Financier'!$F$22+'BP Financier'!$F$19+'BP Financier'!$F$16+'BP Financier'!$G$22+'BP Financier'!$G$19+'BP Financier'!$G$16))*$V9310*Z9310/(1-$W9310)","v":{"v":87077.3103930593,"d":"87,077"}},{"$f":"'BP Financier'!$G$44*(('BP Financier'!$C$19+'BP Financier'!$D$19+'BP Financier'!$E$19+'BP Financier'!$F$19+'BP Financier'!$G$19)/('BP Financier'!$C$16+'BP Financier'!$C$19+'BP Financier'!$D$16+'BP Financier'!$D$19+'BP Financier'!$E$16+'BP Financier'!$E$19+'BP Financier'!$C$22+'BP Financier'!$D$22+'BP Financier'!$E$22+'BP Financier'!$F$22+'BP Financier'!$F$19+'BP Financier'!$F$16+'BP Financier'!$G$22+'BP Financier'!$G$19+'BP Financier'!$G$16))*$V9310*AA9310/(1-$W9310)","v":{"v":10758.231590272375,"d":"10,758"}},{"$f":"'BP Financier'!$G$44*(('BP Financier'!$C$19+'BP Financier'!$D$19+'BP Financier'!$E$19+'BP Financier'!$F$19+'BP Financier'!$G$19)/('BP Financier'!$C$16+'BP Financier'!$C$19+'BP Financier'!$D$16+'BP Financier'!$D$19+'BP Financier'!$E$16+'BP Financier'!$E$19+'BP Financier'!$C$22+'BP Financier'!$D$22+'BP Financier'!$E$22+'BP Financier'!$F$22+'BP Financier'!$F$19+'BP Financier'!$F$16+'BP Financier'!$G$22+'BP Financier'!$G$19+'BP Financier'!$G$16))*$V9310*AB9310/(1-$W9310)","v":{"v":5149.239051754298,"d":"5,149"}},null,{"v":0.004,"d":"0.40%"},{"$f":"Actif!$E$28/100","v":{"v":0.28900000000000003,"d":"28.90%"}},{"$f":"Actif!$E$30/100","v":{"v":0.09050000000000001,"d":"9.05%"}},{"$f":"Actif!$E$31/100","v":{"v":0.0605,"d":"6.05%"}},{"$f":"Actif!$E$32/100","v":{"v":0.47350000000000003,"d":"47.35%"}},{"$f":"Actif!$E$33/100","v":{"v":0.0585,"d":"5.85%"}},{"$f":"Actif!$E$29/100","v":{"v":0.027999999999999997,"d":"2.80%"}}]
[null,"#195",56,2031,"F","A_PER",{"v":0.44999999999999996,"d":"0.45"},{"v":0.38999999999999996,"d":"0.39"},0.6,0.6,85,0,{"$f":"ROUND(Primes!$Q$7*V9311,0)","v":5},{"$f":"'BP Financier'!$G$33*(('BP Financier'!$C$19+'BP Financier'!$D$19+'BP Financier'!$E$19+'BP Financier'!$F$19+'BP Financier'!$G$19)/('BP Financier'!$C$16+'BP Financier'!$C$19+'BP Financier'!$D$16+'BP Financier'!$D$19+'BP Financier'!$E$16+'BP Financier'!$E$19+'BP Financier'!$F$16+'BP Financier'!$F$19+'BP Financier'!$G$16+'BP Financier'!$G$19))*V9311","v":{"v":227820.22889491098,"d":"227,820"}},{"v":130753.8916356181,"d":"130,754"},{"$f":"'BP Financier'!$G$44*(('BP Financier'!$C$19+'BP Financier'!$D$19+'BP Financier'!$E$19+'BP Financier'!$F$19+'BP Financier'!$G$19)/('BP Financier'!$C$16+'BP Financier'!$C$19+'BP Financier'!$D$16+'BP Financier'!$D$19+'BP Financier'!$E$16+'BP Financier'!$E$19+'BP Financier'!$C$22+'BP Financier'!$D$22+'BP Financier'!$E$22+'BP Financier'!$F$22+'BP Financier'!$F$19+'BP Financier'!$F$16+'BP Financier'!$G$22+'BP Financier'!$G$19+'BP Financier'!$G$16))*$V9311*X9311/(1-$W9311)","v":{"v":16643.076220848718,"d":"16,643"}},{"$f":"'BP Financier'!$G$44*(('BP Financier'!$C$19+'BP Financier'!$D$19+'BP Financier'!$E$19+'BP Financier'!$F$19+'BP Financier'!$G$19)/('BP Financier'!$C$16+'BP Financier'!$C$19+'BP Financier'!$D$16+'BP Financier'!$D$19+'BP Financier'!$E$16+'BP Financier'!$E$19+'BP Financier'!$C$22+'BP Financier'!$D$22+'BP Financier'!$E$22+'BP Financier'!$F$22+'BP Financier'!$F$19+'BP Financier'!$F$16+'BP Financier'!$G$22+'BP Financier'!$G$19+'BP Financier'!$G$16))*$V9311*Y9311/(1-$W9311)","v":{"v":11126.034379683393,"d":"11,126"}},{"$f":"'BP Financier'!$G$44*(('BP Financier'!$C$19+'BP Financier'!$D$19+'BP Financier'!$E$19+'BP Financier'!$F$19+'BP Financier'!$G$19)/('BP Financier'!$C$16+'BP Financier'!$C$19+'BP Financier'!$D$16+'BP Financier'!$D$19+'BP Financier'!$E$16+'BP Financier'!$E$19+'BP Financier'!$C$22+'BP Financier'!$D$22+'BP Financier'!$E$22+'BP Financier'!$F$22+'BP Financier'!$F$19+'BP Financier'!$F$16+'BP Financier'!$G$22+'BP Financier'!$G$19+'BP Financier'!$G$16))*$V9311*Z9311/(1-$W9311)","v":{"v":87077.3103930593,"d":"87,077"}},{"$f":"'BP Financier'!$G$44*(('BP Financier'!$C$19+'BP Financier'!$D$19+'BP Financier'!$E$19+'BP Financier'!$F$19+'BP Financier'!$G$19)/('BP Financier'!$C$16+'BP Financier'!$C$19+'BP Financier'!$D$16+'BP Financier'!$D$19+'BP Financier'!$E$16+'BP Financier'!$E$19+'BP Financier'!$C$22+'BP Financier'!$D$22+'BP Financier'!$E$22+'BP Financier'!$F$22+'BP Financier'!$F$19+'BP Financier'!$F$16+'BP Financier'!$G$22+'BP Financier'!$G$19+'BP Financier'!$G$16))*$V9311*AA9311/(1-$W9311)","v":{"v":10758.231590272375,"d":"10,758"}},{"$f":"'BP Financier'!$G$44*(('BP Financier'!$C$19+'BP Financier'!$D$19+'BP Financier'!$E$19+'BP Financier'!$F$19+'BP Financier'!$G$19)/('BP Financier'!$C$16+'BP Financier'!$C$19+'BP Financier'!$D$16+'BP Financier'!$D$19+'BP Financier'!$E$16+'BP Financier'!$E$19+'BP Financier'!$C$22+'BP Financier'!$D$22+'BP Financier'!$E$22+'BP Financier'!$F$22+'BP Financier'!$F$19+'BP Financier'!$F$16+'BP Financier'!$G$22+'BP Financier'!$G$19+'BP Financier'!$G$16))*$V9311*AB9311/(1-$W9311)","v":{"v":5149.239051754298,"d":"5,149"}},null,{"v":0.004,"d":"0.40%"},{"$f":"Actif!$E$28/100","v":{"v":0.28900000000000003,"d":"28.90%"}},{"$f":"Actif!$E$30/100","v":{"v":0.09050000000000001,"d":"9.05%"}},{"$f":"Actif!$E$31/100","v":{"v":0.0605,"d":"6.05%"}},{"$f":"Actif!$E$32/100","v":{"v":0.47350000000000003,"d":"47.35%"}},{"$f":"Actif!$E$33/100","v":{"v":0.0585,"d":"5.85%"}},{"$f":"Actif!$E$29/100","v":{"v":0.027999999999999997,"d":"2.80%"}}]
[null,"#196",57,2026,"H","A_PER",{"v":0.44999999999999996,"d":"0.45"},{"v":0.38999999999999996,"d":"0.39"},0.6,0.6,85,0,{"$f":"ROUND(Primes!$Q$7*V9312,0)","v":3},{"$f":"'BP Financier'!$G$33*(('BP Financier'!$C$19+'BP Financier'!$D$19+'BP Financier'!$E$19+'BP Financier'!$F$19+'BP Financier'!$G$19)/('BP Financier'!$C$16+'BP Financier'!$C$19+'BP Financier'!$D$16+'BP Financier'!$D$19+'BP Financier'!$E$16+'BP Financier'!$E$19+'BP Financier'!$F$16+'BP Financier'!$F$19+'BP Financier'!$G$16+'BP Financier'!$G$19))*V9312","v":{"v":113910.11444745549,"d":"113,910"}},{"v":65376.94581780905,"d":"65,377"},{"$f":"'BP Financier'!$G$44*(('BP Financier'!$C$19+'BP Financier'!$D$19+'BP Financier'!$E$19+'BP Financier'!$F$19+'BP Financier'!$G$19)/('BP Financier'!$C$16+'BP Financier'!$C$19+'BP Financier'!$D$16+'BP Financier'!$D$19+'BP Financier'!$E$16+'BP Financier'!$E$19+'BP Financier'!$C$22+'BP Financier'!$D$22+'BP Financier'!$E$22+'BP Financier'!$F$22+'BP Financier'!$F$19+'BP Financier'!$F$16+'BP Financier'!$G$22+'BP Financier'!$G$19+'BP Financier'!$G$16))*$V9312*X9312/(1-$W9312)","v":{"v":8321.538110424359,"d":"8,322"}},{"$f":"'BP Financier'!$G$44*(('BP Financier'!$C$19+'BP Financier'!$D$19+'BP Financier'!$E$19+'BP Financier'!$F$19+'BP Financier'!$G$19)/('BP Financier'!$C$16+'BP Financier'!$C$19+'BP Financier'!$D$16+'BP Financier'!$D$19+'BP Financier'!$E$16+'BP Financier'!$E$19+'BP Financier'!$C$22+'BP Financier'!$D$22+'BP Financier'!$E$22+'BP Financier'!$F$22+'BP Financier'!$F$19+'BP Financier'!$F$16+'BP Financier'!$G$22+'BP Financier'!$G$19+'BP Financier'!$G$16))*$V9312*Y9312/(1-$W9312)","v":{"v":5563.017189841697,"d":"5,563"}},{"$f":"'BP Financier'!$G$44*(('BP Financier'!$C$19+'BP Financier'!$D$19+'BP Financier'!$E$19+'BP Financier'!$F$19+'BP Financier'!$G$19)/('BP Financier'!$C$16+'BP Financier'!$C$19+'BP Financier'!$D$16+'BP Financier'!$D$19+'BP Financier'!$E$16+'BP Financier'!$E$19+'BP Financier'!$C$22+'BP Financier'!$D$22+'BP Financier'!$E$22+'BP Financier'!$F$22+'BP Financier'!$F$19+'BP Financier'!$F$16+'BP Financier'!$G$22+'BP Financier'!$G$19+'BP Financier'!$G$16))*$V9312*Z9312/(1-$W9312)","v":{"v":43538.65519652965,"d":"43,539"}},{"$f":"'BP Financier'!$G$44*(('BP Financier'!$C$19+'BP Financier'!$D$19+'BP Financier'!$E$19+'BP Financier'!$F$19+'BP Financier'!$G$19)/('BP Financier'!$C$16+'BP Financier'!$C$19+'BP Financier'!$D$16+'BP Financier'!$D$19+'BP Financier'!$E$16+'BP Financier'!$E$19+'BP Financier'!$C$22+'BP Financier'!$D$22+'BP Financier'!$E$22+'BP Financier'!$F$22+'BP Financier'!$F$19+'BP Financier'!$F$16+'BP Financier'!$G$22+'BP Financier'!$G$19+'BP Financier'!$G$16))*$V9312*AA9312/(1-$W9312)","v":{"v":5379.115795136187,"d":"5,379"}},{"$f":"'BP Financier'!$G$44*(('BP Financier'!$C$19+'BP Financier'!$D$19+'BP Financier'!$E$19+'BP Financier'!$F$19+'BP Financier'!$G$19)/('BP Financier'!$C$16+'BP Financier'!$C$19+'BP Financier'!$D$16+'BP Financier'!$D$19+'BP Financier'!$E$16+'BP Financier'!$E$19+'BP Financier'!$C$22+'BP Financier'!$D$22+'BP Financier'!$E$22+'BP Financier'!$F$22+'BP Financier'!$F$19+'BP Financier'!$F$16+'BP Financier'!$G$22+'BP Financier'!$G$19+'BP Financier'!$G$16))*$V9312*AB9312/(1-$W9312)","v":{"v":2574.619525877149,"d":"2,575"}},null,{"v":2E-3,"d":"0.20%"},{"$f":"Actif!$E$28/100","v":{"v":0.28900000000000003,"d":"28.90%"}},{"$f":"Actif!$E$30/100","v":{"v":0.09050000000000001,"d":"9.05%"}},{"$f":"Actif!$E$31/100","v":{"v":0.0605,"d":"6.05%"}},{"$f":"Actif!$E$32/100","v":{"v":0.47350000000000003,"d":"47.35%"}},{"$f":"Actif!$E$33/100","v":{"v":0.0585,"d":"5.85%"}},{"$f":"Actif!$E$29/100","v":{"v":0.027999999999999997,"d":"2.80%"}}]
[null,"#197",57,2028,"H","A_PER",{"v":0.44999999999999996,"d":"0.45"},{"v":0.38999999999999996,"d":"0.39"},0.6,0.6,85,0,{"$f":"ROUND(Primes!$Q$7*V9313,0)","v":3},{"$f":"'BP Financier'!$G$33*(('BP Financier'!$C$19+'BP Financier'!$D$19+'BP Financier'!$E$19+'BP Financier'!$F$19+'BP Financier'!$G$19)/('BP Financier'!$C$16+'BP Financier'!$C$19+'BP Financier'!$D$16+'BP Financier'!$D$19+'BP Financier'!$E$16+'BP Financier'!$E$19+'BP Financier'!$F$16+'BP Financier'!$F$19+'BP Financier'!$G$16+'BP Financier'!$G$19))*V9313","v":{"v":113910.11444745549,"d":"113,910"}},{"v":65376.94581780905,"d":"65,377"},{"$f":"'BP Financier'!$G$44*(('BP Financier'!$C$19+'BP Financier'!$D$19+'BP Financier'!$E$19+'BP Financier'!$F$19+'BP Financier'!$G$19)/('BP Financier'!$C$16+'BP Financier'!$C$19+'BP Financier'!$D$16+'BP Financier'!$D$19+'BP Financier'!$E$16+'BP Financier'!$E$19+'BP Financier'!$C$22+'BP Financier'!$D$22+'BP Financier'!$E$22+'BP Financier'!$F$22+'BP Financier'!$F$19+'BP Financier'!$F$16+'BP Financier'!$G$22+'BP Financier'!$G$19+'BP Financier'!$G$16))*$V9313*X9313/(1-$W9313)","v":{"v":8321.538110424359,"d":"8,322"}},{"$f":"'BP Financier'!$G$44*(('BP Financier'!$C$19+'BP Financier'!$D$19+'BP Financier'!$E$19+'BP Financier'!$F$19+'BP Financier'!$G$19)/('BP Financier'!$C$16+'BP Financier'!$C$19+'BP Financier'!$D$16+'BP Financier'!$D$19+'BP Financier'!$E$16+'BP Financier'!$E$19+'BP Financier'!$C$22+'BP Financier'!$D$22+'BP Financier'!$E$22+'BP Financier'!$F$22+'BP Financier'!$F$19+'BP Financier'!$F$16+'BP Financier'!$G$22+'BP Financier'!$G$19+'BP Financier'!$G$16))*$V9313*Y9313/(1-$W9313)","v":{"v":5563.017189841697,"d":"5,563"}},{"$f":"'BP Financier'!$G$44*(('BP Financier'!$C$19+'BP Financier'!$D$19+'BP Financier'!$E$19+'BP Financier'!$F$19+'BP Financier'!$G$19)/('BP Financier'!$C$16+'BP Financier'!$C$19+'BP Financier'!$D$16+'BP Financier'!$D$19+'BP Financier'!$E$16+'BP Financier'!$E$19+'BP Financier'!$C$22+'BP Financier'!$D$22+'BP Financier'!$E$22+'BP Financier'!$F$22+'BP Financier'!$F$19+'BP Financier'!$F$16+'BP Financier'!$G$22+'BP Financier'!$G$19+'BP Financier'!$G$16))*$V9313*Z9313/(1-$W9313)","v":{"v":43538.65519652965,"d":"43,539"}},{"$f":"'BP Financier'!$G$44*(('BP Financier'!$C$19+'BP Financier'!$D$19+'BP Financier'!$E$19+'BP Financier'!$F$19+'BP Financier'!$G$19)/('BP Financier'!$C$16+'BP Financier'!$C$19+'BP Financier'!$D$16+'BP Financier'!$D$19+'BP Financier'!$E$16+'BP Financier'!$E$19+'BP Financier'!$C$22+'BP Financier'!$D$22+'BP Financier'!$E$22+'BP Financier'!$F$22+'BP Financier'!$F$19+'BP Financier'!$F$16+'BP Financier'!$G$22+'BP Financier'!$G$19+'BP Financier'!$G$16))*$V9313*AA9313/(1-$W9313)","v":{"v":5379.115795136187,"d":"5,379"}},{"$f":"'BP Financier'!$G$44*(('BP Financier'!$C$19+'BP Financier'!$D$19+'BP Financier'!$E$19+'BP Financier'!$F$19+'BP Financier'!$G$19)/('BP Financier'!$C$16+'BP Financier'!$C$19+'BP Financier'!$D$16+'BP Financier'!$D$19+'BP Financier'!$E$16+'BP Financier'!$E$19+'BP Financier'!$C$22+'BP Financier'!$D$22+'BP Financier'!$E$22+'BP Financier'!$F$22+'BP Financier'!$F$19+'BP Financier'!$F$16+'BP Financier'!$G$22+'BP Financier'!$G$19+'BP Financier'!$G$16))*$V9313*AB9313/(1-$W9313)","v":{"v":2574.619525877149,"d":"2,575"}},null,{"v":2E-3,"d":"0.20%"},{"$f":"Actif!$E$28/100","v":{"v":0.28900000000000003,"d":"28.90%"}},{"$f":"Actif!$E$30/100","v":{"v":0.09050000000000001,"d":"9.05%"}},{"$f":"Actif!$E$31/100","v":{"v":0.0605,"d":"6.05%"}},{"$f":"Actif!$E$32/100","v":{"v":0.47350000000000003,"d":"47.35%"}},{"$f":"Actif!$E$33/100","v":{"v":0.0585,"d":"5.85%"}},{"$f":"Actif!$E$29/100","v":{"v":0.027999999999999997,"d":"2.80%"}}]
[null,"#198",57,2029,"H","A_PER",{"v":0.44999999999999996,"d":"0.45"},{"v":0.38999999999999996,"d":"0.39"},0.6,0.6,85,0,{"$f":"ROUND(Primes!$Q$7*V9314,0)","v":3},{"$f":"'BP Financier'!$G$33*(('BP Financier'!$C$19+'BP Financier'!$D$19+'BP Financier'!$E$19+'BP Financier'!$F$19+'BP Financier'!$G$19)/('BP Financier'!$C$16+'BP Financier'!$C$19+'BP Financier'!$D$16+'BP Financier'!$D$19+'BP Financier'!$E$16+'BP Financier'!$E$19+'BP Financier'!$F$16+'BP Financier'!$F$19+'BP Financier'!$G$16+'BP Financier'!$G$19))*V9314","v":{"v":113910.11444745549,"d":"113,910"}},{"v":65376.94581780905,"d":"65,377"},{"$f":"'BP Financier'!$G$44*(('BP Financier'!$C$19+'BP Financier'!$D$19+'BP Financier'!$E$19+'BP Financier'!$F$19+'BP Financier'!$G$19)/('BP Financier'!$C$16+'BP Financier'!$C$19+'BP Financier'!$D$16+'BP Financier'!$D$19+'BP Financier'!$E$16+'BP Financier'!$E$19+'BP Financier'!$C$22+'BP Financier'!$D$22+'BP Financier'!$E$22+'BP Financier'!$F$22+'BP Financier'!$F$19+'BP Financier'!$F$16+'BP Financier'!$G$22+'BP Financier'!$G$19+'BP Financier'!$G$16))*$V9314*X9314/(1-$W9314)","v":{"v":8321.538110424359,"d":"8,322"}},{"$f":"'BP Financier'!$G$44*(('BP Financier'!$C$19+'BP Financier'!$D$19+'BP Financier'!$E$19+'BP Financier'!$F$19+'BP Financier'!$G$19)/('BP Financier'!$C$16+'BP Financier'!$C$19+'BP Financier'!$D$16+'BP Financier'!$D$19+'BP Financier'!$E$16+'BP Financier'!$E$19+'BP Financier'!$C$22+'BP Financier'!$D$22+'BP Financier'!$E$22+'BP Financier'!$F$22+'BP Financier'!$F$19+'BP Financier'!$F$16+'BP Financier'!$G$22+'BP Financier'!$G$19+'BP Financier'!$G$16))*$V9314*Y9314/(1-$W9314)","v":{"v":5563.017189841697,"d":"5,563"}},{"$f":"'BP Financier'!$G$44*(('BP Financier'!$C$19+'BP Financier'!$D$19+'BP Financier'!$E$19+'BP Financier'!$F$19+'BP Financier'!$G$19)/('BP Financier'!$C$16+'BP Financier'!$C$19+'BP Financier'!$D$16+'BP Financier'!$D$19+'BP Financier'!$E$16+'BP Financier'!$E$19+'BP Financier'!$C$22+'BP Financier'!$D$22+'BP Financier'!$E$22+'BP Financier'!$F$22+'BP Financier'!$F$19+'BP Financier'!$F$16+'BP Financier'!$G$22+'BP Financier'!$G$19+'BP Financier'!$G$16))*$V9314*Z9314/(1-$W9314)","v":{"v":43538.65519652965,"d":"43,539"}},{"$f":"'BP Financier'!$G$44*(('BP Financier'!$C$19+'BP Financier'!$D$19+'BP Financier'!$E$19+'BP Financier'!$F$19+'BP Financier'!$G$19)/('BP Financier'!$C$16+'BP Financier'!$C$19+'BP Financier'!$D$16+'BP Financier'!$D$19+'BP Financier'!$E$16+'BP Financier'!$E$19+'BP Financier'!$C$22+'BP Financier'!$D$22+'BP Financier'!$E$22+'BP Financier'!$F$22+'BP Financier'!$F$19+'BP Financier'!$F$16+'BP Financier'!$G$22+'BP Financier'!$G$19+'BP Financier'!$G$16))*$V9314*AA9314/(1-$W9314)","v":{"v":5379.115795136187,"d":"5,379"}},{"$f":"'BP Financier'!$G$44*(('BP Financier'!$C$19+'BP Financier'!$D$19+'BP Financier'!$E$19+'BP Financier'!$F$19+'BP Financier'!$G$19)/('BP Financier'!$C$16+'BP Financier'!$C$19+'BP Financier'!$D$16+'BP Financier'!$D$19+'BP Financier'!$E$16+'BP Financier'!$E$19+'BP Financier'!$C$22+'BP Financier'!$D$22+'BP Financier'!$E$22+'BP Financier'!$F$22+'BP Financier'!$F$19+'BP Financier'!$F$16+'BP Financier'!$G$22+'BP Financier'!$G$19+'BP Financier'!$G$16))*$V9314*AB9314/(1-$W9314)","v":{"v":2574.619525877149,"d":"2,575"}},null,{"v":2E-3,"d":"0.20%"},{"$f":"Actif!$E$28/100","v":{"v":0.28900000000000003,"d":"28.90%"}},{"$f":"Actif!$E$30/100","v":{"v":0.09050000000000001,"d":"9.05%"}},{"$f":"Actif!$E$31/100","v":{"v":0.0605,"d":"6.05%"}},{"$f":"Actif!$E$32/100","v":{"v":0.47350000000000003,"d":"47.35%"}},{"$f":"Actif!$E$33/100","v":{"v":0.0585,"d":"5.85%"}},{"$f":"Actif!$E$29/100","v":{"v":0.027999999999999997,"d":"2.80%"}}]
[null,"#199",57,2030,"H","A_PER",{"v":0.44999999999999996,"d":"0.45"},{"v":0.38999999999999996,"d":"0.39"},0.6,0.6,85,0,{"$f":"ROUND(Primes!$Q$7*V9315,0)","v":3},{"$f":"'BP Financier'!$G$33*(('BP Financier'!$C$19+'BP Financier'!$D$19+'BP Financier'!$E$19+'BP Financier'!$F$19+'BP Financier'!$G$19)/('BP Financier'!$C$16+'BP Financier'!$C$19+'BP Financier'!$D$16+'BP Financier'!$D$19+'BP Financier'!$E$16+'BP Financier'!$E$19+'BP Financier'!$F$16+'BP Financier'!$F$19+'BP Financier'!$G$16+'BP Financier'!$G$19))*V9315","v":{"v":113910.11444745549,"d":"113,910"}},{"v":65376.94581780905,"d":"65,377"},{"$f":"'BP Financier'!$G$44*(('BP Financier'!$C$19+'BP Financier'!$D$19+'BP Financier'!$E$19+'BP Financier'!$F$19+'BP Financier'!$G$19)/('BP Financier'!$C$16+'BP Financier'!$C$19+'BP Financier'!$D$16+'BP Financier'!$D$19+'BP Financier'!$E$16+'BP Financier'!$E$19+'BP Financier'!$C$22+'BP Financier'!$D$22+'BP Financier'!$E$22+'BP Financier'!$F$22+'BP Financier'!$F$19+'BP Financier'!$F$16+'BP Financier'!$G$22+'BP Financier'!$G$19+'BP Financier'!$G$16))*$V9315*X9315/(1-$W9315)","v":{"v":8321.538110424359,"d":"8,322"}},{"$f":"'BP Financier'!$G$44*(('BP Financier'!$C$19+'BP Financier'!$D$19+'BP Financier'!$E$19+'BP Financier'!$F$19+'BP Financier'!$G$19)/('BP Financier'!$C$16+'BP Financier'!$C$19+'BP Financier'!$D$16+'BP Financier'!$D$19+'BP Financier'!$E$16+'BP Financier'!$E$19+'BP Financier'!$C$22+'BP Financier'!$D$22+'BP Financier'!$E$22+'BP Financier'!$F$22+'BP Financier'!$F$19+'BP Financier'!$F$16+'BP Financier'!$G$22+'BP Financier'!$G$19+'BP Financier'!$G$16))*$V9315*Y9315/(1-$W9315)","v":{"v":5563.017189841697,"d":"5,563"}},{"$f":"'BP Financier'!$G$44*(('BP Financier'!$C$19+'BP Financier'!$D$19+'BP Financier'!$E$19+'BP Financier'!$F$19+'BP Financier'!$G$19)/('BP Financier'!$C$16+'BP Financier'!$C$19+'BP Financier'!$D$16+'BP Financier'!$D$19+'BP Financier'!$E$16+'BP Financier'!$E$19+'BP Financier'!$C$22+'BP Financier'!$D$22+'BP Financier'!$E$22+'BP Financier'!$F$22+'BP Financier'!$F$19+'BP Financier'!$F$16+'BP Financier'!$G$22+'BP Financier'!$G$19+'BP Financier'!$G$16))*$V9315*Z9315/(1-$W9315)","v":{"v":43538.65519652965,"d":"43,539"}},{"$f":"'BP Financier'!$G$44*(('BP Financier'!$C$19+'BP Financier'!$D$19+'BP Financier'!$E$19+'BP Financier'!$F$19+'BP Financier'!$G$19)/('BP Financier'!$C$16+'BP Financier'!$C$19+'BP Financier'!$D$16+'BP Financier'!$D$19+'BP Financier'!$E$16+'BP Financier'!$E$19+'BP Financier'!$C$22+'BP Financier'!$D$22+'BP Financier'!$E$22+'BP Financier'!$F$22+'BP Financier'!$F$19+'BP Financier'!$F$16+'BP Financier'!$G$22+'BP Financier'!$G$19+'BP Financier'!$G$16))*$V9315*AA9315/(1-$W9315)","v":{"v":5379.115795136187,"d":"5,379"}},{"$f":"'BP Financier'!$G$44*(('BP Financier'!$C$19+'BP Financier'!$D$19+'BP Financier'!$E$19+'BP Financier'!$F$19+'BP Financier'!$G$19)/('BP Financier'!$C$16+'BP Financier'!$C$19+'BP Financier'!$D$16+'BP Financier'!$D$19+'BP Financier'!$E$16+'BP Financier'!$E$19+'BP Financier'!$C$22+'BP Financier'!$D$22+'BP Financier'!$E$22+'BP Financier'!$F$22+'BP Financier'!$F$19+'BP Financier'!$F$16+'BP Financier'!$G$22+'BP Financier'!$G$19+'BP Financier'!$G$16))*$V9315*AB9315/(1-$W9315)","v":{"v":2574.619525877149,"d":"2,575"}},null,{"v":2E-3,"d":"0.20%"},{"$f":"Actif!$E$28/100","v":{"v":0.28900000000000003,"d":"28.90%"}},{"$f":"Actif!$E$30/100","v":{"v":0.09050000000000001,"d":"9.05%"}},{"$f":"Actif!$E$31/100","v":{"v":0.0605,"d":"6.05%"}},{"$f":"Actif!$E$32/100","v":{"v":0.47350000000000003,"d":"47.35%"}},{"$f":"Actif!$E$33/100","v":{"v":0.0585,"d":"5.85%"}},{"$f":"Actif!$E$29/100","v":{"v":0.027999999999999997,"d":"2.80%"}}]
[null,"#200",57,2031,"H","A_PER",{"v":0.44999999999999996,"d":"0.45"},{"v":0.38999999999999996,"d":"0.39"},0.6,0.6,85,0,{"$f":"ROUND(Primes!$Q$7*V9316,0)","v":3},{"$f":"'BP Financier'!$G$33*(('BP Financier'!$C$19+'BP Financier'!$D$19+'BP Financier'!$E$19+'BP Financier'!$F$19+'BP Financier'!$G$19)/('BP Financier'!$C$16+'BP Financier'!$C$19+'BP Financier'!$D$16+'BP Financier'!$D$19+'BP Financier'!$E$16+'BP Financier'!$E$19+'BP Financier'!$F$16+'BP Financier'!$F$19+'BP Financier'!$G$16+'BP Financier'!$G$19))*V9316","v":{"v":113910.11444745549,"d":"113,910"}},{"v":65376.94581780905,"d":"65,377"},{"$f":"'BP Financier'!$G$44*(('BP Financier'!$C$19+'BP Financier'!$D$19+'BP Financier'!$E$19+'BP Financier'!$F$19+'BP Financier'!$G$19)/('BP Financier'!$C$16+'BP Financier'!$C$19+'BP Financier'!$D$16+'BP Financier'!$D$19+'BP Financier'!$E$16+'BP Financier'!$E$19+'BP Financier'!$C$22+'BP Financier'!$D$22+'BP Financier'!$E$22+'BP Financier'!$F$22+'BP Financier'!$F$19+'BP Financier'!$F$16+'BP Financier'!$G$22+'BP Financier'!$G$19+'BP Financier'!$G$16))*$V9316*X9316/(1-$W9316)","v":{"v":8321.538110424359,"d":"8,322"}},{"$f":"'BP Financier'!$G$44*(('BP Financier'!$C$19+'BP Financier'!$D$19+'BP Financier'!$E$19+'BP Financier'!$F$19+'BP Financier'!$G$19)/('BP Financier'!$C$16+'BP Financier'!$C$19+'BP Financier'!$D$16+'BP Financier'!$D$19+'BP Financier'!$E$16+'BP Financier'!$E$19+'BP Financier'!$C$22+'BP Financier'!$D$22+'BP Financier'!$E$22+'BP Financier'!$F$22+'BP Financier'!$F$19+'BP Financier'!$F$16+'BP Financier'!$G$22+'BP Financier'!$G$19+'BP Financier'!$G$16))*$V9316*Y9316/(1-$W9316)","v":{"v":5563.017189841697,"d":"5,563"}},{"$f":"'BP Financier'!$G$44*(('BP Financier'!$C$19+'BP Financier'!$D$19+'BP Financier'!$E$19+'BP Financier'!$F$19+'BP Financier'!$G$19)/('BP Financier'!$C$16+'BP Financier'!$C$19+'BP Financier'!$D$16+'BP Financier'!$D$19+'BP Financier'!$E$16+'BP Financier'!$E$19+'BP Financier'!$C$22+'BP Financier'!$D$22+'BP Financier'!$E$22+'BP Financier'!$F$22+'BP Financier'!$F$19+'BP Financier'!$F$16+'BP Financier'!$G$22+'BP Financier'!$G$19+'BP Financier'!$G$16))*$V9316*Z9316/(1-$W9316)","v":{"v":43538.65519652965,"d":"43,539"}},{"$f":"'BP Financier'!$G$44*(('BP Financier'!$C$19+'BP Financier'!$D$19+'BP Financier'!$E$19+'BP Financier'!$F$19+'BP Financier'!$G$19)/('BP Financier'!$C$16+'BP Financier'!$C$19+'BP Financier'!$D$16+'BP Financier'!$D$19+'BP Financier'!$E$16+'BP Financier'!$E$19+'BP Financier'!$C$22+'BP Financier'!$D$22+'BP Financier'!$E$22+'BP Financier'!$F$22+'BP Financier'!$F$19+'BP Financier'!$F$16+'BP Financier'!$G$22+'BP Financier'!$G$19+'BP Financier'!$G$16))*$V9316*AA9316/(1-$W9316)","v":{"v":5379.115795136187,"d":"5,379"}},{"$f":"'BP Financier'!$G$44*(('BP Financier'!$C$19+'BP Financier'!$D$19+'BP Financier'!$E$19+'BP Financier'!$F$19+'BP Financier'!$G$19)/('BP Financier'!$C$16+'BP Financier'!$C$19+'BP Financier'!$D$16+'BP Financier'!$D$19+'BP Financier'!$E$16+'BP Financier'!$E$19+'BP Financier'!$C$22+'BP Financier'!$D$22+'BP Financier'!$E$22+'BP Financier'!$F$22+'BP Financier'!$F$19+'BP Financier'!$F$16+'BP Financier'!$G$22+'BP Financier'!$G$19+'BP Financier'!$G$16))*$V9316*AB9316/(1-$W9316)","v":{"v":2574.619525877149,"d":"2,575"}},null,{"v":2E-3,"d":"0.20%"},{"$f":"Actif!$E$28/100","v":{"v":0.28900000000000003,"d":"28.90%"}},{"$f":"Actif!$E$30/100","v":{"v":0.09050000000000001,"d":"9.05%"}},{"$f":"Actif!$E$31/100","v":{"v":0.0605,"d":"6.05%"}},{"$f":"Actif!$E$32/100","v":{"v":0.47350000000000003,"d":"47.35%"}},{"$f":"Actif!$E$33/100","v":{"v":0.0585,"d":"5.85%"}},{"$f":"Actif!$E$29/100","v":{"v":0.027999999999999997,"d":"2.80%"}}]
[null,"#201",58,2026,"H","A_PER",{"v":0.44999999999999996,"d":"0.45"},{"v":0.38999999999999996,"d":"0.39"},0.6,0.6,85,0,{"$f":"ROUND(Primes!$Q$7*V9317,0)","v":3},{"$f":"'BP Financier'!$G$33*(('BP Financier'!$C$19+'BP Financier'!$D$19+'BP Financier'!$E$19+'BP Financier'!$F$19+'BP Financier'!$G$19)/('BP Financier'!$C$16+'BP Financier'!$C$19+'BP Financier'!$D$16+'BP Financier'!$D$19+'BP Financier'!$E$16+'BP Financier'!$E$19+'BP Financier'!$F$16+'BP Financier'!$F$19+'BP Financier'!$G$16+'BP Financier'!$G$19))*V9317","v":{"v":113910.11444745549,"d":"113,910"}},{"v":65376.94581780905,"d":"65,377"},{"$f":"'BP Financier'!$G$44*(('BP Financier'!$C$19+'BP Financier'!$D$19+'BP Financier'!$E$19+'BP Financier'!$F$19+'BP Financier'!$G$19)/('BP Financier'!$C$16+'BP Financier'!$C$19+'BP Financier'!$D$16+'BP Financier'!$D$19+'BP Financier'!$E$16+'BP Financier'!$E$19+'BP Financier'!$C$22+'BP Financier'!$D$22+'BP Financier'!$E$22+'BP Financier'!$F$22+'BP Financier'!$F$19+'BP Financier'!$F$16+'BP Financier'!$G$22+'BP Financier'!$G$19+'BP Financier'!$G$16))*$V9317*X9317/(1-$W9317)","v":{"v":8321.538110424359,"d":"8,322"}},{"$f":"'BP Financier'!$G$44*(('BP Financier'!$C$19+'BP Financier'!$D$19+'BP Financier'!$E$19+'BP Financier'!$F$19+'BP Financier'!$G$19)/('BP Financier'!$C$16+'BP Financier'!$C$19+'BP Financier'!$D$16+'BP Financier'!$D$19+'BP Financier'!$E$16+'BP Financier'!$E$19+'BP Financier'!$C$22+'BP Financier'!$D$22+'BP Financier'!$E$22+'BP Financier'!$F$22+'BP Financier'!$F$19+'BP Financier'!$F$16+'BP Financier'!$G$22+'BP Financier'!$G$19+'BP Financier'!$G$16))*$V9317*Y9317/(1-$W9317)","v":{"v":5563.017189841697,"d":"5,563"}},{"$f":"'BP Financier'!$G$44*(('BP Financier'!$C$19+'BP Financier'!$D$19+'BP Financier'!$E$19+'BP Financier'!$F$19+'BP Financier'!$G$19)/('BP Financier'!$C$16+'BP Financier'!$C$19+'BP Financier'!$D$16+'BP Financier'!$D$19+'BP Financier'!$E$16+'BP Financier'!$E$19+'BP Financier'!$C$22+'BP Financier'!$D$22+'BP Financier'!$E$22+'BP Financier'!$F$22+'BP Financier'!$F$19+'BP Financier'!$F$16+'BP Financier'!$G$22+'BP Financier'!$G$19+'BP Financier'!$G$16))*$V9317*Z9317/(1-$W9317)","v":{"v":43538.65519652965,"d":"43,539"}},{"$f":"'BP Financier'!$G$44*(('BP Financier'!$C$19+'BP Financier'!$D$19+'BP Financier'!$E$19+'BP Financier'!$F$19+'BP Financier'!$G$19)/('BP Financier'!$C$16+'BP Financier'!$C$19+'BP Financier'!$D$16+'BP Financier'!$D$19+'BP Financier'!$E$16+'BP Financier'!$E$19+'BP Financier'!$C$22+'BP Financier'!$D$22+'BP Financier'!$E$22+'BP Financier'!$F$22+'BP Financier'!$F$19+'BP Financier'!$F$16+'BP Financier'!$G$22+'BP Financier'!$G$19+'BP Financier'!$G$16))*$V9317*AA9317/(1-$W9317)","v":{"v":5379.115795136187,"d":"5,379"}},{"$f":"'BP Financier'!$G$44*(('BP Financier'!$C$19+'BP Financier'!$D$19+'BP Financier'!$E$19+'BP Financier'!$F$19+'BP Financier'!$G$19)/('BP Financier'!$C$16+'BP Financier'!$C$19+'BP Financier'!$D$16+'BP Financier'!$D$19+'BP Financier'!$E$16+'BP Financier'!$E$19+'BP Financier'!$C$22+'BP Financier'!$D$22+'BP Financier'!$E$22+'BP Financier'!$F$22+'BP Financier'!$F$19+'BP Financier'!$F$16+'BP Financier'!$G$22+'BP Financier'!$G$19+'BP Financier'!$G$16))*$V9317*AB9317/(1-$W9317)","v":{"v":2574.619525877149,"d":"2,575"}},null,{"v":2E-3,"d":"0.20%"},{"$f":"Actif!$E$28/100","v":{"v":0.28900000000000003,"d":"28.90%"}},{"$f":"Actif!$E$30/100","v":{"v":0.09050000000000001,"d":"9.05%"}},{"$f":"Actif!$E$31/100","v":{"v":0.0605,"d":"6.05%"}},{"$f":"Actif!$E$32/100","v":{"v":0.47350000000000003,"d":"47.35%"}},{"$f":"Actif!$E$33/100","v":{"v":0.0585,"d":"5.85%"}},{"$f":"Actif!$E$29/100","v":{"v":0.027999999999999997,"d":"2.80%"}}]
[null,"#202",58,2028,"H","A_PER",{"v":0.44999999999999996,"d":"0.45"},{"v":0.38999999999999996,"d":"0.39"},0.6,0.6,85,0,{"$f":"ROUND(Primes!$Q$7*V9318,0)","v":3},{"$f":"'BP Financier'!$G$33*(('BP Financier'!$C$19+'BP Financier'!$D$19+'BP Financier'!$E$19+'BP Financier'!$F$19+'BP Financier'!$G$19)/('BP Financier'!$C$16+'BP Financier'!$C$19+'BP Financier'!$D$16+'BP Financier'!$D$19+'BP Financier'!$E$16+'BP Financier'!$E$19+'BP Financier'!$F$16+'BP Financier'!$F$19+'BP Financier'!$G$16+'BP Financier'!$G$19))*V9318","v":{"v":113910.11444745549,"d":"113,910"}},{"v":65376.94581780905,"d":"65,377"},{"$f":"'BP Financier'!$G$44*(('BP Financier'!$C$19+'BP Financier'!$D$19+'BP Financier'!$E$19+'BP Financier'!$F$19+'BP Financier'!$G$19)/('BP Financier'!$C$16+'BP Financier'!$C$19+'BP Financier'!$D$16+'BP Financier'!$D$19+'BP Financier'!$E$16+'BP Financier'!$E$19+'BP Financier'!$C$22+'BP Financier'!$D$22+'BP Financier'!$E$22+'BP Financier'!$F$22+'BP Financier'!$F$19+'BP Financier'!$F$16+'BP Financier'!$G$22+'BP Financier'!$G$19+'BP Financier'!$G$16))*$V9318*X9318/(1-$W9318)","v":{"v":8321.538110424359,"d":"8,322"}},{"$f":"'BP Financier'!$G$44*(('BP Financier'!$C$19+'BP Financier'!$D$19+'BP Financier'!$E$19+'BP Financier'!$F$19+'BP Financier'!$G$19)/('BP Financier'!$C$16+'BP Financier'!$C$19+'BP Financier'!$D$16+'BP Financier'!$D$19+'BP Financier'!$E$16+'BP Financier'!$E$19+'BP Financier'!$C$22+'BP Financier'!$D$22+'BP Financier'!$E$22+'BP Financier'!$F$22+'BP Financier'!$F$19+'BP Financier'!$F$16+'BP Financier'!$G$22+'BP Financier'!$G$19+'BP Financier'!$G$16))*$V9318*Y9318/(1-$W9318)","v":{"v":5563.017189841697,"d":"5,563"}},{"$f":"'BP Financier'!$G$44*(('BP Financier'!$C$19+'BP Financier'!$D$19+'BP Financier'!$E$19+'BP Financier'!$F$19+'BP Financier'!$G$19)/('BP Financier'!$C$16+'BP Financier'!$C$19+'BP Financier'!$D$16+'BP Financier'!$D$19+'BP Financier'!$E$16+'BP Financier'!$E$19+'BP Financier'!$C$22+'BP Financier'!$D$22+'BP Financier'!$E$22+'BP Financier'!$F$22+'BP Financier'!$F$19+'BP Financier'!$F$16+'BP Financier'!$G$22+'BP Financier'!$G$19+'BP Financier'!$G$16))*$V9318*Z9318/(1-$W9318)","v":{"v":43538.65519652965,"d":"43,539"}},{"$f":"'BP Financier'!$G$44*(('BP Financier'!$C$19+'BP Financier'!$D$19+'BP Financier'!$E$19+'BP Financier'!$F$19+'BP Financier'!$G$19)/('BP Financier'!$C$16+'BP Financier'!$C$19+'BP Financier'!$D$16+'BP Financier'!$D$19+'BP Financier'!$E$16+'BP Financier'!$E$19+'BP Financier'!$C$22+'BP Financier'!$D$22+'BP Financier'!$E$22+'BP Financier'!$F$22+'BP Financier'!$F$19+'BP Financier'!$F$16+'BP Financier'!$G$22+'BP Financier'!$G$19+'BP Financier'!$G$16))*$V9318*AA9318/(1-$W9318)","v":{"v":5379.115795136187,"d":"5,379"}},{"$f":"'BP Financier'!$G$44*(('BP Financier'!$C$19+'BP Financier'!$D$19+'BP Financier'!$E$19+'BP Financier'!$F$19+'BP Financier'!$G$19)/('BP Financier'!$C$16+'BP Financier'!$C$19+'BP Financier'!$D$16+'BP Financier'!$D$19+'BP Financier'!$E$16+'BP Financier'!$E$19+'BP Financier'!$C$22+'BP Financier'!$D$22+'BP Financier'!$E$22+'BP Financier'!$F$22+'BP Financier'!$F$19+'BP Financier'!$F$16+'BP Financier'!$G$22+'BP Financier'!$G$19+'BP Financier'!$G$16))*$V9318*AB9318/(1-$W9318)","v":{"v":2574.619525877149,"d":"2,575"}},null,{"v":2E-3,"d":"0.20%"},{"$f":"Actif!$E$28/100","v":{"v":0.28900000000000003,"d":"28.90%"}},{"$f":"Actif!$E$30/100","v":{"v":0.09050000000000001,"d":"9.05%"}},{"$f":"Actif!$E$31/100","v":{"v":0.0605,"d":"6.05%"}},{"$f":"Actif!$E$32/100","v":{"v":0.47350000000000003,"d":"47.35%"}},{"$f":"Actif!$E$33/100","v":{"v":0.0585,"d":"5.85%"}},{"$f":"Actif!$E$29/100","v":{"v":0.027999999999999997,"d":"2.80%"}}]
[null,"#203",58,2029,"H","A_PER",{"v":0.44999999999999996,"d":"0.45"},{"v":0.38999999999999996,"d":"0.39"},0.6,0.6,85,0,{"$f":"ROUND(Primes!$Q$7*V9319,0)","v":3},{"$f":"'BP Financier'!$G$33*(('BP Financier'!$C$19+'BP Financier'!$D$19+'BP Financier'!$E$19+'BP Financier'!$F$19+'BP Financier'!$G$19)/('BP Financier'!$C$16+'BP Financier'!$C$19+'BP Financier'!$D$16+'BP Financier'!$D$19+'BP Financier'!$E$16+'BP Financier'!$E$19+'BP Financier'!$F$16+'BP Financier'!$F$19+'BP Financier'!$G$16+'BP Financier'!$G$19))*V9319","v":{"v":113910.11444745549,"d":"113,910"}},{"v":65376.94581780905,"d":"65,377"},{"$f":"'BP Financier'!$G$44*(('BP Financier'!$C$19+'BP Financier'!$D$19+'BP Financier'!$E$19+'BP Financier'!$F$19+'BP Financier'!$G$19)/('BP Financier'!$C$16+'BP Financier'!$C$19+'BP Financier'!$D$16+'BP Financier'!$D$19+'BP Financier'!$E$16+'BP Financier'!$E$19+'BP Financier'!$C$22+'BP Financier'!$D$22+'BP Financier'!$E$22+'BP Financier'!$F$22+'BP Financier'!$F$19+'BP Financier'!$F$16+'BP Financier'!$G$22+'BP Financier'!$G$19+'BP Financier'!$G$16))*$V9319*X9319/(1-$W9319)","v":{"v":8321.538110424359,"d":"8,322"}},{"$f":"'BP Financier'!$G$44*(('BP Financier'!$C$19+'BP Financier'!$D$19+'BP Financier'!$E$19+'BP Financier'!$F$19+'BP Financier'!$G$19)/('BP Financier'!$C$16+'BP Financier'!$C$19+'BP Financier'!$D$16+'BP Financier'!$D$19+'BP Financier'!$E$16+'BP Financier'!$E$19+'BP Financier'!$C$22+'BP Financier'!$D$22+'BP Financier'!$E$22+'BP Financier'!$F$22+'BP Financier'!$F$19+'BP Financier'!$F$16+'BP Financier'!$G$22+'BP Financier'!$G$19+'BP Financier'!$G$16))*$V9319*Y9319/(1-$W9319)","v":{"v":5563.017189841697,"d":"5,563"}},{"$f":"'BP Financier'!$G$44*(('BP Financier'!$C$19+'BP Financier'!$D$19+'BP Financier'!$E$19+'BP Financier'!$F$19+'BP Financier'!$G$19)/('BP Financier'!$C$16+'BP Financier'!$C$19+'BP Financier'!$D$16+'BP Financier'!$D$19+'BP Financier'!$E$16+'BP Financier'!$E$19+'BP Financier'!$C$22+'BP Financier'!$D$22+'BP Financier'!$E$22+'BP Financier'!$F$22+'BP Financier'!$F$19+'BP Financier'!$F$16+'BP Financier'!$G$22+'BP Financier'!$G$19+'BP Financier'!$G$16))*$V9319*Z9319/(1-$W9319)","v":{"v":43538.65519652965,"d":"43,539"}},{"$f":"'BP Financier'!$G$44*(('BP Financier'!$C$19+'BP Financier'!$D$19+'BP Financier'!$E$19+'BP Financier'!$F$19+'BP Financier'!$G$19)/('BP Financier'!$C$16+'BP Financier'!$C$19+'BP Financier'!$D$16+'BP Financier'!$D$19+'BP Financier'!$E$16+'BP Financier'!$E$19+'BP Financier'!$C$22+'BP Financier'!$D$22+'BP Financier'!$E$22+'BP Financier'!$F$22+'BP Financier'!$F$19+'BP Financier'!$F$16+'BP Financier'!$G$22+'BP Financier'!$G$19+'BP Financier'!$G$16))*$V9319*AA9319/(1-$W9319)","v":{"v":5379.115795136187,"d":"5,379"}},{"$f":"'BP Financier'!$G$44*(('BP Financier'!$C$19+'BP Financier'!$D$19+'BP Financier'!$E$19+'BP Financier'!$F$19+'BP Financier'!$G$19)/('BP Financier'!$C$16+'BP Financier'!$C$19+'BP Financier'!$D$16+'BP Financier'!$D$19+'BP Financier'!$E$16+'BP Financier'!$E$19+'BP Financier'!$C$22+'BP Financier'!$D$22+'BP Financier'!$E$22+'BP Financier'!$F$22+'BP Financier'!$F$19+'BP Financier'!$F$16+'BP Financier'!$G$22+'BP Financier'!$G$19+'BP Financier'!$G$16))*$V9319*AB9319/(1-$W9319)","v":{"v":2574.619525877149,"d":"2,575"}},null,{"v":2E-3,"d":"0.20%"},{"$f":"Actif!$E$28/100","v":{"v":0.28900000000000003,"d":"28.90%"}},{"$f":"Actif!$E$30/100","v":{"v":0.09050000000000001,"d":"9.05%"}},{"$f":"Actif!$E$31/100","v":{"v":0.0605,"d":"6.05%"}},{"$f":"Actif!$E$32/100","v":{"v":0.47350000000000003,"d":"47.35%"}},{"$f":"Actif!$E$33/100","v":{"v":0.0585,"d":"5.85%"}},{"$f":"Actif!$E$29/100","v":{"v":0.027999999999999997,"d":"2.80%"}}]
[null,"#204",58,2030,"H","A_PER",{"v":0.44999999999999996,"d":"0.45"},{"v":0.38999999999999996,"d":"0.39"},0.6,0.6,85,0,{"$f":"ROUND(Primes!$Q$7*V9320,0)","v":3},{"$f":"'BP Financier'!$G$33*(('BP Financier'!$C$19+'BP Financier'!$D$19+'BP Financier'!$E$19+'BP Financier'!$F$19+'BP Financier'!$G$19)/('BP Financier'!$C$16+'BP Financier'!$C$19+'BP Financier'!$D$16+'BP Financier'!$D$19+'BP Financier'!$E$16+'BP Financier'!$E$19+'BP Financier'!$F$16+'BP Financier'!$F$19+'BP Financier'!$G$16+'BP Financier'!$G$19))*V9320","v":{"v":113910.11444745549,"d":"113,910"}},{"v":65376.94581780905,"d":"65,377"},{"$f":"'BP Financier'!$G$44*(('BP Financier'!$C$19+'BP Financier'!$D$19+'BP Financier'!$E$19+'BP Financier'!$F$19+'BP Financier'!$G$19)/('BP Financier'!$C$16+'BP Financier'!$C$19+'BP Financier'!$D$16+'BP Financier'!$D$19+'BP Financier'!$E$16+'BP Financier'!$E$19+'BP Financier'!$C$22+'BP Financier'!$D$22+'BP Financier'!$E$22+'BP Financier'!$F$22+'BP Financier'!$F$19+'BP Financier'!$F$16+'BP Financier'!$G$22+'BP Financier'!$G$19+'BP Financier'!$G$16))*$V9320*X9320/(1-$W9320)","v":{"v":8321.538110424359,"d":"8,322"}},{"$f":"'BP Financier'!$G$44*(('BP Financier'!$C$19+'BP Financier'!$D$19+'BP Financier'!$E$19+'BP Financier'!$F$19+'BP Financier'!$G$19)/('BP Financier'!$C$16+'BP Financier'!$C$19+'BP Financier'!$D$16+'BP Financier'!$D$19+'BP Financier'!$E$16+'BP Financier'!$E$19+'BP Financier'!$C$22+'BP Financier'!$D$22+'BP Financier'!$E$22+'BP Financier'!$F$22+'BP Financier'!$F$19+'BP Financier'!$F$16+'BP Financier'!$G$22+'BP Financier'!$G$19+'BP Financier'!$G$16))*$V9320*Y9320/(1-$W9320)","v":{"v":5563.017189841697,"d":"5,563"}},{"$f":"'BP Financier'!$G$44*(('BP Financier'!$C$19+'BP Financier'!$D$19+'BP Financier'!$E$19+'BP Financier'!$F$19+'BP Financier'!$G$19)/('BP Financier'!$C$16+'BP Financier'!$C$19+'BP Financier'!$D$16+'BP Financier'!$D$19+'BP Financier'!$E$16+'BP Financier'!$E$19+'BP Financier'!$C$22+'BP Financier'!$D$22+'BP Financier'!$E$22+'BP Financier'!$F$22+'BP Financier'!$F$19+'BP Financier'!$F$16+'BP Financier'!$G$22+'BP Financier'!$G$19+'BP Financier'!$G$16))*$V9320*Z9320/(1-$W9320)","v":{"v":43538.65519652965,"d":"43,539"}},{"$f":"'BP Financier'!$G$44*(('BP Financier'!$C$19+'BP Financier'!$D$19+'BP Financier'!$E$19+'BP Financier'!$F$19+'BP Financier'!$G$19)/('BP Financier'!$C$16+'BP Financier'!$C$19+'BP Financier'!$D$16+'BP Financier'!$D$19+'BP Financier'!$E$16+'BP Financier'!$E$19+'BP Financier'!$C$22+'BP Financier'!$D$22+'BP Financier'!$E$22+'BP Financier'!$F$22+'BP Financier'!$F$19+'BP Financier'!$F$16+'BP Financier'!$G$22+'BP Financier'!$G$19+'BP Financier'!$G$16))*$V9320*AA9320/(1-$W9320)","v":{"v":5379.115795136187,"d":"5,379"}},{"$f":"'BP Financier'!$G$44*(('BP Financier'!$C$19+'BP Financier'!$D$19+'BP Financier'!$E$19+'BP Financier'!$F$19+'BP Financier'!$G$19)/('BP Financier'!$C$16+'BP Financier'!$C$19+'BP Financier'!$D$16+'BP Financier'!$D$19+'BP Financier'!$E$16+'BP Financier'!$E$19+'BP Financier'!$C$22+'BP Financier'!$D$22+'BP Financier'!$E$22+'BP Financier'!$F$22+'BP Financier'!$F$19+'BP Financier'!$F$16+'BP Financier'!$G$22+'BP Financier'!$G$19+'BP Financier'!$G$16))*$V9320*AB9320/(1-$W9320)","v":{"v":2574.619525877149,"d":"2,575"}},null,{"v":2E-3,"d":"0.20%"},{"$f":"Actif!$E$28/100","v":{"v":0.28900000000000003,"d":"28.90%"}},{"$f":"Actif!$E$30/100","v":{"v":0.09050000000000001,"d":"9.05%"}},{"$f":"Actif!$E$31/100","v":{"v":0.0605,"d":"6.05%"}},{"$f":"Actif!$E$32/100","v":{"v":0.47350000000000003,"d":"47.35%"}},{"$f":"Actif!$E$33/100","v":{"v":0.0585,"d":"5.85%"}},{"$f":"Actif!$E$29/100","v":{"v":0.027999999999999997,"d":"2.80%"}}]
[null,"#205",58,2031,"H","A_PER",{"v":0.44999999999999996,"d":"0.45"},{"v":0.38999999999999996,"d":"0.39"},0.6,0.6,85,0,{"$f":"ROUND(Primes!$Q$7*V9321,0)","v":3},{"$f":"'BP Financier'!$G$33*(('BP Financier'!$C$19+'BP Financier'!$D$19+'BP Financier'!$E$19+'BP Financier'!$F$19+'BP Financier'!$G$19)/('BP Financier'!$C$16+'BP Financier'!$C$19+'BP Financier'!$D$16+'BP Financier'!$D$19+'BP Financier'!$E$16+'BP Financier'!$E$19+'BP Financier'!$F$16+'BP Financier'!$F$19+'BP Financier'!$G$16+'BP Financier'!$G$19))*V9321","v":{"v":113910.11444745549,"d":"113,910"}},{"v":65376.94581780905,"d":"65,377"},{"$f":"'BP Financier'!$G$44*(('BP Financier'!$C$19+'BP Financier'!$D$19+'BP Financier'!$E$19+'BP Financier'!$F$19+'BP Financier'!$G$19)/('BP Financier'!$C$16+'BP Financier'!$C$19+'BP Financier'!$D$16+'BP Financier'!$D$19+'BP Financier'!$E$16+'BP Financier'!$E$19+'BP Financier'!$C$22+'BP Financier'!$D$22+'BP Financier'!$E$22+'BP Financier'!$F$22+'BP Financier'!$F$19+'BP Financier'!$F$16+'BP Financier'!$G$22+'BP Financier'!$G$19+'BP Financier'!$G$16))*$V9321*X9321/(1-$W9321)","v":{"v":8321.538110424359,"d":"8,322"}},{"$f":"'BP Financier'!$G$44*(('BP Financier'!$C$19+'BP Financier'!$D$19+'BP Financier'!$E$19+'BP Financier'!$F$19+'BP Financier'!$G$19)/('BP Financier'!$C$16+'BP Financier'!$C$19+'BP Financier'!$D$16+'BP Financier'!$D$19+'BP Financier'!$E$16+'BP Financier'!$E$19+'BP Financier'!$C$22+'BP Financier'!$D$22+'BP Financier'!$E$22+'BP Financier'!$F$22+'BP Financier'!$F$19+'BP Financier'!$F$16+'BP Financier'!$G$22+'BP Financier'!$G$19+'BP Financier'!$G$16))*$V9321*Y9321/(1-$W9321)","v":{"v":5563.017189841697,"d":"5,563"}},{"$f":"'BP Financier'!$G$44*(('BP Financier'!$C$19+'BP Financier'!$D$19+'BP Financier'!$E$19+'BP Financier'!$F$19+'BP Financier'!$G$19)/('BP Financier'!$C$16+'BP Financier'!$C$19+'BP Financier'!$D$16+'BP Financier'!$D$19+'BP Financier'!$E$16+'BP Financier'!$E$19+'BP Financier'!$C$22+'BP Financier'!$D$22+'BP Financier'!$E$22+'BP Financier'!$F$22+'BP Financier'!$F$19+'BP Financier'!$F$16+'BP Financier'!$G$22+'BP Financier'!$G$19+'BP Financier'!$G$16))*$V9321*Z9321/(1-$W9321)","v":{"v":43538.65519652965,"d":"43,539"}},{"$f":"'BP Financier'!$G$44*(('BP Financier'!$C$19+'BP Financier'!$D$19+'BP Financier'!$E$19+'BP Financier'!$F$19+'BP Financier'!$G$19)/('BP Financier'!$C$16+'BP Financier'!$C$19+'BP Financier'!$D$16+'BP Financier'!$D$19+'BP Financier'!$E$16+'BP Financier'!$E$19+'BP Financier'!$C$22+'BP Financier'!$D$22+'BP Financier'!$E$22+'BP Financier'!$F$22+'BP Financier'!$F$19+'BP Financier'!$F$16+'BP Financier'!$G$22+'BP Financier'!$G$19+'BP Financier'!$G$16))*$V9321*AA9321/(1-$W9321)","v":{"v":5379.115795136187,"d":"5,379"}},{"$f":"'BP Financier'!$G$44*(('BP Financier'!$C$19+'BP Financier'!$D$19+'BP Financier'!$E$19+'BP Financier'!$F$19+'BP Financier'!$G$19)/('BP Financier'!$C$16+'BP Financier'!$C$19+'BP Financier'!$D$16+'BP Financier'!$D$19+'BP Financier'!$E$16+'BP Financier'!$E$19+'BP Financier'!$C$22+'BP Financier'!$D$22+'BP Financier'!$E$22+'BP Financier'!$F$22+'BP Financier'!$F$19+'BP Financier'!$F$16+'BP Financier'!$G$22+'BP Financier'!$G$19+'BP Financier'!$G$16))*$V9321*AB9321/(1-$W9321)","v":{"v":2574.619525877149,"d":"2,575"}},null,{"v":2E-3,"d":"0.20%"},{"$f":"Actif!$E$28/100","v":{"v":0.28900000000000003,"d":"28.90%"}},{"$f":"Actif!$E$30/100","v":{"v":0.09050000000000001,"d":"9.05%"}},{"$f":"Actif!$E$31/100","v":{"v":0.0605,"d":"6.05%"}},{"$f":"Actif!$E$32/100","v":{"v":0.47350000000000003,"d":"47.35%"}},{"$f":"Actif!$E$33/100","v":{"v":0.0585,"d":"5.85%"}},{"$f":"Actif!$E$29/100","v":{"v":0.027999999999999997,"d":"2.80%"}}]
[null,"#206",59,2026,"F","A_PER",{"v":0.44999999999999996,"d":"0.45"},{"v":0.38999999999999996,"d":"0.39"},0.6,0.6,85,0,{"$f":"ROUND(Primes!$Q$7*V9322,0)","v":3},{"$f":"'BP Financier'!$G$33*(('BP Financier'!$C$19+'BP Financier'!$D$19+'BP Financier'!$E$19+'BP Financier'!$F$19+'BP Financier'!$G$19)/('BP Financier'!$C$16+'BP Financier'!$C$19+'BP Financier'!$D$16+'BP Financier'!$D$19+'BP Financier'!$E$16+'BP Financier'!$E$19+'BP Financier'!$F$16+'BP Financier'!$F$19+'BP Financier'!$G$16+'BP Financier'!$G$19))*V9322","v":{"v":113910.11444745549,"d":"113,910"}},{"v":65376.94581780905,"d":"65,377"},{"$f":"'BP Financier'!$G$44*(('BP Financier'!$C$19+'BP Financier'!$D$19+'BP Financier'!$E$19+'BP Financier'!$F$19+'BP Financier'!$G$19)/('BP Financier'!$C$16+'BP Financier'!$C$19+'BP Financier'!$D$16+'BP Financier'!$D$19+'BP Financier'!$E$16+'BP Financier'!$E$19+'BP Financier'!$C$22+'BP Financier'!$D$22+'BP Financier'!$E$22+'BP Financier'!$F$22+'BP Financier'!$F$19+'BP Financier'!$F$16+'BP Financier'!$G$22+'BP Financier'!$G$19+'BP Financier'!$G$16))*$V9322*X9322/(1-$W9322)","v":{"v":8321.538110424359,"d":"8,322"}},{"$f":"'BP Financier'!$G$44*(('BP Financier'!$C$19+'BP Financier'!$D$19+'BP Financier'!$E$19+'BP Financier'!$F$19+'BP Financier'!$G$19)/('BP Financier'!$C$16+'BP Financier'!$C$19+'BP Financier'!$D$16+'BP Financier'!$D$19+'BP Financier'!$E$16+'BP Financier'!$E$19+'BP Financier'!$C$22+'BP Financier'!$D$22+'BP Financier'!$E$22+'BP Financier'!$F$22+'BP Financier'!$F$19+'BP Financier'!$F$16+'BP Financier'!$G$22+'BP Financier'!$G$19+'BP Financier'!$G$16))*$V9322*Y9322/(1-$W9322)","v":{"v":5563.017189841697,"d":"5,563"}},{"$f":"'BP Financier'!$G$44*(('BP Financier'!$C$19+'BP Financier'!$D$19+'BP Financier'!$E$19+'BP Financier'!$F$19+'BP Financier'!$G$19)/('BP Financier'!$C$16+'BP Financier'!$C$19+'BP Financier'!$D$16+'BP Financier'!$D$19+'BP Financier'!$E$16+'BP Financier'!$E$19+'BP Financier'!$C$22+'BP Financier'!$D$22+'BP Financier'!$E$22+'BP Financier'!$F$22+'BP Financier'!$F$19+'BP Financier'!$F$16+'BP Financier'!$G$22+'BP Financier'!$G$19+'BP Financier'!$G$16))*$V9322*Z9322/(1-$W9322)","v":{"v":43538.65519652965,"d":"43,539"}},{"$f":"'BP Financier'!$G$44*(('BP Financier'!$C$19+'BP Financier'!$D$19+'BP Financier'!$E$19+'BP Financier'!$F$19+'BP Financier'!$G$19)/('BP Financier'!$C$16+'BP Financier'!$C$19+'BP Financier'!$D$16+'BP Financier'!$D$19+'BP Financier'!$E$16+'BP Financier'!$E$19+'BP Financier'!$C$22+'BP Financier'!$D$22+'BP Financier'!$E$22+'BP Financier'!$F$22+'BP Financier'!$F$19+'BP Financier'!$F$16+'BP Financier'!$G$22+'BP Financier'!$G$19+'BP Financier'!$G$16))*$V9322*AA9322/(1-$W9322)","v":{"v":5379.115795136187,"d":"5,379"}},{"$f":"'BP Financier'!$G$44*(('BP Financier'!$C$19+'BP Financier'!$D$19+'BP Financier'!$E$19+'BP Financier'!$F$19+'BP Financier'!$G$19)/('BP Financier'!$C$16+'BP Financier'!$C$19+'BP Financier'!$D$16+'BP Financier'!$D$19+'BP Financier'!$E$16+'BP Financier'!$E$19+'BP Financier'!$C$22+'BP Financier'!$D$22+'BP Financier'!$E$22+'BP Financier'!$F$22+'BP Financier'!$F$19+'BP Financier'!$F$16+'BP Financier'!$G$22+'BP Financier'!$G$19+'BP Financier'!$G$16))*$V9322*AB9322/(1-$W9322)","v":{"v":2574.619525877149,"d":"2,575"}},null,{"v":2E-3,"d":"0.20%"},{"$f":"Actif!$E$28/100","v":{"v":0.28900000000000003,"d":"28.90%"}},{"$f":"Actif!$E$30/100","v":{"v":0.09050000000000001,"d":"9.05%"}},{"$f":"Actif!$E$31/100","v":{"v":0.0605,"d":"6.05%"}},{"$f":"Actif!$E$32/100","v":{"v":0.47350000000000003,"d":"47.35%"}},{"$f":"Actif!$E$33/100","v":{"v":0.0585,"d":"5.85%"}},{"$f":"Actif!$E$29/100","v":{"v":0.027999999999999997,"d":"2.80%"}}]
[null,"#207",59,2028,"F","A_PER",{"v":0.44999999999999996,"d":"0.45"},{"v":0.38999999999999996,"d":"0.39"},0.6,0.6,85,0,{"$f":"ROUND(Primes!$Q$7*V9323,0)","v":3},{"$f":"'BP Financier'!$G$33*(('BP Financier'!$C$19+'BP Financier'!$D$19+'BP Financier'!$E$19+'BP Financier'!$F$19+'BP Financier'!$G$19)/('BP Financier'!$C$16+'BP Financier'!$C$19+'BP Financier'!$D$16+'BP Financier'!$D$19+'BP Financier'!$E$16+'BP Financier'!$E$19+'BP Financier'!$F$16+'BP Financier'!$F$19+'BP Financier'!$G$16+'BP Financier'!$G$19))*V9323","v":{"v":113910.11444745549,"d":"113,910"}},{"v":65376.94581780905,"d":"65,377"},{"$f":"'BP Financier'!$G$44*(('BP Financier'!$C$19+'BP Financier'!$D$19+'BP Financier'!$E$19+'BP Financier'!$F$19+'BP Financier'!$G$19)/('BP Financier'!$C$16+'BP Financier'!$C$19+'BP Financier'!$D$16+'BP Financier'!$D$19+'BP Financier'!$E$16+'BP Financier'!$E$19+'BP Financier'!$C$22+'BP Financier'!$D$22+'BP Financier'!$E$22+'BP Financier'!$F$22+'BP Financier'!$F$19+'BP Financier'!$F$16+'BP Financier'!$G$22+'BP Financier'!$G$19+'BP Financier'!$G$16))*$V9323*X9323/(1-$W9323)","v":{"v":8321.538110424359,"d":"8,322"}},{"$f":"'BP Financier'!$G$44*(('BP Financier'!$C$19+'BP Financier'!$D$19+'BP Financier'!$E$19+'BP Financier'!$F$19+'BP Financier'!$G$19)/('BP Financier'!$C$16+'BP Financier'!$C$19+'BP Financier'!$D$16+'BP Financier'!$D$19+'BP Financier'!$E$16+'BP Financier'!$E$19+'BP Financier'!$C$22+'BP Financier'!$D$22+'BP Financier'!$E$22+'BP Financier'!$F$22+'BP Financier'!$F$19+'BP Financier'!$F$16+'BP Financier'!$G$22+'BP Financier'!$G$19+'BP Financier'!$G$16))*$V9323*Y9323/(1-$W9323)","v":{"v":5563.017189841697,"d":"5,563"}},{"$f":"'BP Financier'!$G$44*(('BP Financier'!$C$19+'BP Financier'!$D$19+'BP Financier'!$E$19+'BP Financier'!$F$19+'BP Financier'!$G$19)/('BP Financier'!$C$16+'BP Financier'!$C$19+'BP Financier'!$D$16+'BP Financier'!$D$19+'BP Financier'!$E$16+'BP Financier'!$E$19+'BP Financier'!$C$22+'BP Financier'!$D$22+'BP Financier'!$E$22+'BP Financier'!$F$22+'BP Financier'!$F$19+'BP Financier'!$F$16+'BP Financier'!$G$22+'BP Financier'!$G$19+'BP Financier'!$G$16))*$V9323*Z9323/(1-$W9323)","v":{"v":43538.65519652965,"d":"43,539"}},{"$f":"'BP Financier'!$G$44*(('BP Financier'!$C$19+'BP Financier'!$D$19+'BP Financier'!$E$19+'BP Financier'!$F$19+'BP Financier'!$G$19)/('BP Financier'!$C$16+'BP Financier'!$C$19+'BP Financier'!$D$16+'BP Financier'!$D$19+'BP Financier'!$E$16+'BP Financier'!$E$19+'BP Financier'!$C$22+'BP Financier'!$D$22+'BP Financier'!$E$22+'BP Financier'!$F$22+'BP Financier'!$F$19+'BP Financier'!$F$16+'BP Financier'!$G$22+'BP Financier'!$G$19+'BP Financier'!$G$16))*$V9323*AA9323/(1-$W9323)","v":{"v":5379.115795136187,"d":"5,379"}},{"$f":"'BP Financier'!$G$44*(('BP Financier'!$C$19+'BP Financier'!$D$19+'BP Financier'!$E$19+'BP Financier'!$F$19+'BP Financier'!$G$19)/('BP Financier'!$C$16+'BP Financier'!$C$19+'BP Financier'!$D$16+'BP Financier'!$D$19+'BP Financier'!$E$16+'BP Financier'!$E$19+'BP Financier'!$C$22+'BP Financier'!$D$22+'BP Financier'!$E$22+'BP Financier'!$F$22+'BP Financier'!$F$19+'BP Financier'!$F$16+'BP Financier'!$G$22+'BP Financier'!$G$19+'BP Financier'!$G$16))*$V9323*AB9323/(1-$W9323)","v":{"v":2574.619525877149,"d":"2,575"}},null,{"v":2E-3,"d":"0.20%"},{"$f":"Actif!$E$28/100","v":{"v":0.28900000000000003,"d":"28.90%"}},{"$f":"Actif!$E$30/100","v":{"v":0.09050000000000001,"d":"9.05%"}},{"$f":"Actif!$E$31/100","v":{"v":0.0605,"d":"6.05%"}},{"$f":"Actif!$E$32/100","v":{"v":0.47350000000000003,"d":"47.35%"}},{"$f":"Actif!$E$33/100","v":{"v":0.0585,"d":"5.85%"}},{"$f":"Actif!$E$29/100","v":{"v":0.027999999999999997,"d":"2.80%"}}]
[null,"#208",59,2029,"F","A_PER",{"v":0.44999999999999996,"d":"0.45"},{"v":0.38999999999999996,"d":"0.39"},0.6,0.6,85,0,{"$f":"ROUND(Primes!$Q$7*V9324,0)","v":3},{"$f":"'BP Financier'!$G$33*(('BP Financier'!$C$19+'BP Financier'!$D$19+'BP Financier'!$E$19+'BP Financier'!$F$19+'BP Financier'!$G$19)/('BP Financier'!$C$16+'BP Financier'!$C$19+'BP Financier'!$D$16+'BP Financier'!$D$19+'BP Financier'!$E$16+'BP Financier'!$E$19+'BP Financier'!$F$16+'BP Financier'!$F$19+'BP Financier'!$G$16+'BP Financier'!$G$19))*V9324","v":{"v":113910.11444745549,"d":"113,910"}},{"v":65376.94581780905,"d":"65,377"},{"$f":"'BP Financier'!$G$44*(('BP Financier'!$C$19+'BP Financier'!$D$19+'BP Financier'!$E$19+'BP Financier'!$F$19+'BP Financier'!$G$19)/('BP Financier'!$C$16+'BP Financier'!$C$19+'BP Financier'!$D$16+'BP Financier'!$D$19+'BP Financier'!$E$16+'BP Financier'!$E$19+'BP Financier'!$C$22+'BP Financier'!$D$22+'BP Financier'!$E$22+'BP Financier'!$F$22+'BP Financier'!$F$19+'BP Financier'!$F$16+'BP Financier'!$G$22+'BP Financier'!$G$19+'BP Financier'!$G$16))*$V9324*X9324/(1-$W9324)","v":{"v":8321.538110424359,"d":"8,322"}},{"$f":"'BP Financier'!$G$44*(('BP Financier'!$C$19+'BP Financier'!$D$19+'BP Financier'!$E$19+'BP Financier'!$F$19+'BP Financier'!$G$19)/('BP Financier'!$C$16+'BP Financier'!$C$19+'BP Financier'!$D$16+'BP Financier'!$D$19+'BP Financier'!$E$16+'BP Financier'!$E$19+'BP Financier'!$C$22+'BP Financier'!$D$22+'BP Financier'!$E$22+'BP Financier'!$F$22+'BP Financier'!$F$19+'BP Financier'!$F$16+'BP Financier'!$G$22+'BP Financier'!$G$19+'BP Financier'!$G$16))*$V9324*Y9324/(1-$W9324)","v":{"v":5563.017189841697,"d":"5,563"}},{"$f":"'BP Financier'!$G$44*(('BP Financier'!$C$19+'BP Financier'!$D$19+'BP Financier'!$E$19+'BP Financier'!$F$19+'BP Financier'!$G$19)/('BP Financier'!$C$16+'BP Financier'!$C$19+'BP Financier'!$D$16+'BP Financier'!$D$19+'BP Financier'!$E$16+'BP Financier'!$E$19+'BP Financier'!$C$22+'BP Financier'!$D$22+'BP Financier'!$E$22+'BP Financier'!$F$22+'BP Financier'!$F$19+'BP Financier'!$F$16+'BP Financier'!$G$22+'BP Financier'!$G$19+'BP Financier'!$G$16))*$V9324*Z9324/(1-$W9324)","v":{"v":43538.65519652965,"d":"43,539"}},{"$f":"'BP Financier'!$G$44*(('BP Financier'!$C$19+'BP Financier'!$D$19+'BP Financier'!$E$19+'BP Financier'!$F$19+'BP Financier'!$G$19)/('BP Financier'!$C$16+'BP Financier'!$C$19+'BP Financier'!$D$16+'BP Financier'!$D$19+'BP Financier'!$E$16+'BP Financier'!$E$19+'BP Financier'!$C$22+'BP Financier'!$D$22+'BP Financier'!$E$22+'BP Financier'!$F$22+'BP Financier'!$F$19+'BP Financier'!$F$16+'BP Financier'!$G$22+'BP Financier'!$G$19+'BP Financier'!$G$16))*$V9324*AA9324/(1-$W9324)","v":{"v":5379.115795136187,"d":"5,379"}},{"$f":"'BP Financier'!$G$44*(('BP Financier'!$C$19+'BP Financier'!$D$19+'BP Financier'!$E$19+'BP Financier'!$F$19+'BP Financier'!$G$19)/('BP Financier'!$C$16+'BP Financier'!$C$19+'BP Financier'!$D$16+'BP Financier'!$D$19+'BP Financier'!$E$16+'BP Financier'!$E$19+'BP Financier'!$C$22+'BP Financier'!$D$22+'BP Financier'!$E$22+'BP Financier'!$F$22+'BP Financier'!$F$19+'BP Financier'!$F$16+'BP Financier'!$G$22+'BP Financier'!$G$19+'BP Financier'!$G$16))*$V9324*AB9324/(1-$W9324)","v":{"v":2574.619525877149,"d":"2,575"}},null,{"v":2E-3,"d":"0.20%"},{"$f":"Actif!$E$28/100","v":{"v":0.28900000000000003,"d":"28.90%"}},{"$f":"Actif!$E$30/100","v":{"v":0.09050000000000001,"d":"9.05%"}},{"$f":"Actif!$E$31/100","v":{"v":0.0605,"d":"6.05%"}},{"$f":"Actif!$E$32/100","v":{"v":0.47350000000000003,"d":"47.35%"}},{"$f":"Actif!$E$33/100","v":{"v":0.0585,"d":"5.85%"}},{"$f":"Actif!$E$29/100","v":{"v":0.027999999999999997,"d":"2.80%"}}]
[null,"#209",59,2030,"F","A_PER",{"v":0.44999999999999996,"d":"0.45"},{"v":0.38999999999999996,"d":"0.39"},0.6,0.6,85,0,{"$f":"ROUND(Primes!$Q$7*V9325,0)","v":3},{"$f":"'BP Financier'!$G$33*(('BP Financier'!$C$19+'BP Financier'!$D$19+'BP Financier'!$E$19+'BP Financier'!$F$19+'BP Financier'!$G$19)/('BP Financier'!$C$16+'BP Financier'!$C$19+'BP Financier'!$D$16+'BP Financier'!$D$19+'BP Financier'!$E$16+'BP Financier'!$E$19+'BP Financier'!$F$16+'BP Financier'!$F$19+'BP Financier'!$G$16+'BP Financier'!$G$19))*V9325","v":{"v":113910.11444745549,"d":"113,910"}},{"v":65376.94581780905,"d":"65,377"},{"$f":"'BP Financier'!$G$44*(('BP Financier'!$C$19+'BP Financier'!$D$19+'BP Financier'!$E$19+'BP Financier'!$F$19+'BP Financier'!$G$19)/('BP Financier'!$C$16+'BP Financier'!$C$19+'BP Financier'!$D$16+'BP Financier'!$D$19+'BP Financier'!$E$16+'BP Financier'!$E$19+'BP Financier'!$C$22+'BP Financier'!$D$22+'BP Financier'!$E$22+'BP Financier'!$F$22+'BP Financier'!$F$19+'BP Financier'!$F$16+'BP Financier'!$G$22+'BP Financier'!$G$19+'BP Financier'!$G$16))*$V9325*X9325/(1-$W9325)","v":{"v":8321.538110424359,"d":"8,322"}},{"$f":"'BP Financier'!$G$44*(('BP Financier'!$C$19+'BP Financier'!$D$19+'BP Financier'!$E$19+'BP Financier'!$F$19+'BP Financier'!$G$19)/('BP Financier'!$C$16+'BP Financier'!$C$19+'BP Financier'!$D$16+'BP Financier'!$D$19+'BP Financier'!$E$16+'BP Financier'!$E$19+'BP Financier'!$C$22+'BP Financier'!$D$22+'BP Financier'!$E$22+'BP Financier'!$F$22+'BP Financier'!$F$19+'BP Financier'!$F$16+'BP Financier'!$G$22+'BP Financier'!$G$19+'BP Financier'!$G$16))*$V9325*Y9325/(1-$W9325)","v":{"v":5563.017189841697,"d":"5,563"}},{"$f":"'BP Financier'!$G$44*(('BP Financier'!$C$19+'BP Financier'!$D$19+'BP Financier'!$E$19+'BP Financier'!$F$19+'BP Financier'!$G$19)/('BP Financier'!$C$16+'BP Financier'!$C$19+'BP Financier'!$D$16+'BP Financier'!$D$19+'BP Financier'!$E$16+'BP Financier'!$E$19+'BP Financier'!$C$22+'BP Financier'!$D$22+'BP Financier'!$E$22+'BP Financier'!$F$22+'BP Financier'!$F$19+'BP Financier'!$F$16+'BP Financier'!$G$22+'BP Financier'!$G$19+'BP Financier'!$G$16))*$V9325*Z9325/(1-$W9325)","v":{"v":43538.65519652965,"d":"43,539"}},{"$f":"'BP Financier'!$G$44*(('BP Financier'!$C$19+'BP Financier'!$D$19+'BP Financier'!$E$19+'BP Financier'!$F$19+'BP Financier'!$G$19)/('BP Financier'!$C$16+'BP Financier'!$C$19+'BP Financier'!$D$16+'BP Financier'!$D$19+'BP Financier'!$E$16+'BP Financier'!$E$19+'BP Financier'!$C$22+'BP Financier'!$D$22+'BP Financier'!$E$22+'BP Financier'!$F$22+'BP Financier'!$F$19+'BP Financier'!$F$16+'BP Financier'!$G$22+'BP Financier'!$G$19+'BP Financier'!$G$16))*$V9325*AA9325/(1-$W9325)","v":{"v":5379.115795136187,"d":"5,379"}},{"$f":"'BP Financier'!$G$44*(('BP Financier'!$C$19+'BP Financier'!$D$19+'BP Financier'!$E$19+'BP Financier'!$F$19+'BP Financier'!$G$19)/('BP Financier'!$C$16+'BP Financier'!$C$19+'BP Financier'!$D$16+'BP Financier'!$D$19+'BP Financier'!$E$16+'BP Financier'!$E$19+'BP Financier'!$C$22+'BP Financier'!$D$22+'BP Financier'!$E$22+'BP Financier'!$F$22+'BP Financier'!$F$19+'BP Financier'!$F$16+'BP Financier'!$G$22+'BP Financier'!$G$19+'BP Financier'!$G$16))*$V9325*AB9325/(1-$W9325)","v":{"v":2574.619525877149,"d":"2,575"}},null,{"v":2E-3,"d":"0.20%"},{"$f":"Actif!$E$28/100","v":{"v":0.28900000000000003,"d":"28.90%"}},{"$f":"Actif!$E$30/100","v":{"v":0.09050000000000001,"d":"9.05%"}},{"$f":"Actif!$E$31/100","v":{"v":0.0605,"d":"6.05%"}},{"$f":"Actif!$E$32/100","v":{"v":0.47350000000000003,"d":"47.35%"}},{"$f":"Actif!$E$33/100","v":{"v":0.0585,"d":"5.85%"}},{"$f":"Actif!$E$29/100","v":{"v":0.027999999999999997,"d":"2.80%"}}]
[null,"#210",59,2031,"F","A_PER",{"v":0.44999999999999996,"d":"0.45"},{"v":0.38999999999999996,"d":"0.39"},0.6,0.6,85,0,{"$f":"ROUND(Primes!$Q$7*V9326,0)","v":3},{"$f":"'BP Financier'!$G$33*(('BP Financier'!$C$19+'BP Financier'!$D$19+'BP Financier'!$E$19+'BP Financier'!$F$19+'BP Financier'!$G$19)/('BP Financier'!$C$16+'BP Financier'!$C$19+'BP Financier'!$D$16+'BP Financier'!$D$19+'BP Financier'!$E$16+'BP Financier'!$E$19+'BP Financier'!$F$16+'BP Financier'!$F$19+'BP Financier'!$G$16+'BP Financier'!$G$19))*V9326","v":{"v":113910.11444745549,"d":"113,910"}},{"v":65376.94581780905,"d":"65,377"},{"$f":"'BP Financier'!$G$44*(('BP Financier'!$C$19+'BP Financier'!$D$19+'BP Financier'!$E$19+'BP Financier'!$F$19+'BP Financier'!$G$19)/('BP Financier'!$C$16+'BP Financier'!$C$19+'BP Financier'!$D$16+'BP Financier'!$D$19+'BP Financier'!$E$16+'BP Financier'!$E$19+'BP Financier'!$C$22+'BP Financier'!$D$22+'BP Financier'!$E$22+'BP Financier'!$F$22+'BP Financier'!$F$19+'BP Financier'!$F$16+'BP Financier'!$G$22+'BP Financier'!$G$19+'BP Financier'!$G$16))*$V9326*X9326/(1-$W9326)","v":{"v":8321.538110424359,"d":"8,322"}},{"$f":"'BP Financier'!$G$44*(('BP Financier'!$C$19+'BP Financier'!$D$19+'BP Financier'!$E$19+'BP Financier'!$F$19+'BP Financier'!$G$19)/('BP Financier'!$C$16+'BP Financier'!$C$19+'BP Financier'!$D$16+'BP Financier'!$D$19+'BP Financier'!$E$16+'BP Financier'!$E$19+'BP Financier'!$C$22+'BP Financier'!$D$22+'BP Financier'!$E$22+'BP Financier'!$F$22+'BP Financier'!$F$19+'BP Financier'!$F$16+'BP Financier'!$G$22+'BP Financier'!$G$19+'BP Financier'!$G$16))*$V9326*Y9326/(1-$W9326)","v":{"v":5563.017189841697,"d":"5,563"}},{"$f":"'BP Financier'!$G$44*(('BP Financier'!$C$19+'BP Financier'!$D$19+'BP Financier'!$E$19+'BP Financier'!$F$19+'BP Financier'!$G$19)/('BP Financier'!$C$16+'BP Financier'!$C$19+'BP Financier'!$D$16+'BP Financier'!$D$19+'BP Financier'!$E$16+'BP Financier'!$E$19+'BP Financier'!$C$22+'BP Financier'!$D$22+'BP Financier'!$E$22+'BP Financier'!$F$22+'BP Financier'!$F$19+'BP Financier'!$F$16+'BP Financier'!$G$22+'BP Financier'!$G$19+'BP Financier'!$G$16))*$V9326*Z9326/(1-$W9326)","v":{"v":43538.65519652965,"d":"43,539"}},{"$f":"'BP Financier'!$G$44*(('BP Financier'!$C$19+'BP Financier'!$D$19+'BP Financier'!$E$19+'BP Financier'!$F$19+'BP Financier'!$G$19)/('BP Financier'!$C$16+'BP Financier'!$C$19+'BP Financier'!$D$16+'BP Financier'!$D$19+'BP Financier'!$E$16+'BP Financier'!$E$19+'BP Financier'!$C$22+'BP Financier'!$D$22+'BP Financier'!$E$22+'BP Financier'!$F$22+'BP Financier'!$F$19+'BP Financier'!$F$16+'BP Financier'!$G$22+'BP Financier'!$G$19+'BP Financier'!$G$16))*$V9326*AA9326/(1-$W9326)","v":{"v":5379.115795136187,"d":"5,379"}},{"$f":"'BP Financier'!$G$44*(('BP Financier'!$C$19+'BP Financier'!$D$19+'BP Financier'!$E$19+'BP Financier'!$F$19+'BP Financier'!$G$19)/('BP Financier'!$C$16+'BP Financier'!$C$19+'BP Financier'!$D$16+'BP Financier'!$D$19+'BP Financier'!$E$16+'BP Financier'!$E$19+'BP Financier'!$C$22+'BP Financier'!$D$22+'BP Financier'!$E$22+'BP Financier'!$F$22+'BP Financier'!$F$19+'BP Financier'!$F$16+'BP Financier'!$G$22+'BP Financier'!$G$19+'BP Financier'!$G$16))*$V9326*AB9326/(1-$W9326)","v":{"v":2574.619525877149,"d":"2,575"}},null,{"v":2E-3,"d":"0.20%"},{"$f":"Actif!$E$28/100","v":{"v":0.28900000000000003,"d":"28.90%"}},{"$f":"Actif!$E$30/100","v":{"v":0.09050000000000001,"d":"9.05%"}},{"$f":"Actif!$E$31/100","v":{"v":0.0605,"d":"6.05%"}},{"$f":"Actif!$E$32/100","v":{"v":0.47350000000000003,"d":"47.35%"}},{"$f":"Actif!$E$33/100","v":{"v":0.0585,"d":"5.85%"}},{"$f":"Actif!$E$29/100","v":{"v":0.027999999999999997,"d":"2.80%"}}]
[null,"#211",60,2026,"H","A_PER",{"v":0.44999999999999996,"d":"0.45"},{"v":0.38999999999999996,"d":"0.39"},0.6,0.6,85,0,{"$f":"ROUND(Primes!$Q$7*V9327,0)","v":3},{"$f":"'BP Financier'!$G$33*(('BP Financier'!$C$19+'BP Financier'!$D$19+'BP Financier'!$E$19+'BP Financier'!$F$19+'BP Financier'!$G$19)/('BP Financier'!$C$16+'BP Financier'!$C$19+'BP Financier'!$D$16+'BP Financier'!$D$19+'BP Financier'!$E$16+'BP Financier'!$E$19+'BP Financier'!$F$16+'BP Financier'!$F$19+'BP Financier'!$G$16+'BP Financier'!$G$19))*V9327","v":{"v":113910.11444745549,"d":"113,910"}},{"v":65376.94581780905,"d":"65,377"},{"$f":"'BP Financier'!$G$44*(('BP Financier'!$C$19+'BP Financier'!$D$19+'BP Financier'!$E$19+'BP Financier'!$F$19+'BP Financier'!$G$19)/('BP Financier'!$C$16+'BP Financier'!$C$19+'BP Financier'!$D$16+'BP Financier'!$D$19+'BP Financier'!$E$16+'BP Financier'!$E$19+'BP Financier'!$C$22+'BP Financier'!$D$22+'BP Financier'!$E$22+'BP Financier'!$F$22+'BP Financier'!$F$19+'BP Financier'!$F$16+'BP Financier'!$G$22+'BP Financier'!$G$19+'BP Financier'!$G$16))*$V9327*X9327/(1-$W9327)","v":{"v":8321.538110424359,"d":"8,322"}},{"$f":"'BP Financier'!$G$44*(('BP Financier'!$C$19+'BP Financier'!$D$19+'BP Financier'!$E$19+'BP Financier'!$F$19+'BP Financier'!$G$19)/('BP Financier'!$C$16+'BP Financier'!$C$19+'BP Financier'!$D$16+'BP Financier'!$D$19+'BP Financier'!$E$16+'BP Financier'!$E$19+'BP Financier'!$C$22+'BP Financier'!$D$22+'BP Financier'!$E$22+'BP Financier'!$F$22+'BP Financier'!$F$19+'BP Financier'!$F$16+'BP Financier'!$G$22+'BP Financier'!$G$19+'BP Financier'!$G$16))*$V9327*Y9327/(1-$W9327)","v":{"v":5563.017189841697,"d":"5,563"}},{"$f":"'BP Financier'!$G$44*(('BP Financier'!$C$19+'BP Financier'!$D$19+'BP Financier'!$E$19+'BP Financier'!$F$19+'BP Financier'!$G$19)/('BP Financier'!$C$16+'BP Financier'!$C$19+'BP Financier'!$D$16+'BP Financier'!$D$19+'BP Financier'!$E$16+'BP Financier'!$E$19+'BP Financier'!$C$22+'BP Financier'!$D$22+'BP Financier'!$E$22+'BP Financier'!$F$22+'BP Financier'!$F$19+'BP Financier'!$F$16+'BP Financier'!$G$22+'BP Financier'!$G$19+'BP Financier'!$G$16))*$V9327*Z9327/(1-$W9327)","v":{"v":43538.65519652965,"d":"43,539"}},{"$f":"'BP Financier'!$G$44*(('BP Financier'!$C$19+'BP Financier'!$D$19+'BP Financier'!$E$19+'BP Financier'!$F$19+'BP Financier'!$G$19)/('BP Financier'!$C$16+'BP Financier'!$C$19+'BP Financier'!$D$16+'BP Financier'!$D$19+'BP Financier'!$E$16+'BP Financier'!$E$19+'BP Financier'!$C$22+'BP Financier'!$D$22+'BP Financier'!$E$22+'BP Financier'!$F$22+'BP Financier'!$F$19+'BP Financier'!$F$16+'BP Financier'!$G$22+'BP Financier'!$G$19+'BP Financier'!$G$16))*$V9327*AA9327/(1-$W9327)","v":{"v":5379.115795136187,"d":"5,379"}},{"$f":"'BP Financier'!$G$44*(('BP Financier'!$C$19+'BP Financier'!$D$19+'BP Financier'!$E$19+'BP Financier'!$F$19+'BP Financier'!$G$19)/('BP Financier'!$C$16+'BP Financier'!$C$19+'BP Financier'!$D$16+'BP Financier'!$D$19+'BP Financier'!$E$16+'BP Financier'!$E$19+'BP Financier'!$C$22+'BP Financier'!$D$22+'BP Financier'!$E$22+'BP Financier'!$F$22+'BP Financier'!$F$19+'BP Financier'!$F$16+'BP Financier'!$G$22+'BP Financier'!$G$19+'BP Financier'!$G$16))*$V9327*AB9327/(1-$W9327)","v":{"v":2574.619525877149,"d":"2,575"}},null,{"v":2E-3,"d":"0.20%"},{"$f":"Actif!$E$28/100","v":{"v":0.28900000000000003,"d":"28.90%"}},{"$f":"Actif!$E$30/100","v":{"v":0.09050000000000001,"d":"9.05%"}},{"$f":"Actif!$E$31/100","v":{"v":0.0605,"d":"6.05%"}},{"$f":"Actif!$E$32/100","v":{"v":0.47350000000000003,"d":"47.35%"}},{"$f":"Actif!$E$33/100","v":{"v":0.0585,"d":"5.85%"}},{"$f":"Actif!$E$29/100","v":{"v":0.027999999999999997,"d":"2.80%"}}]
[null,"#212",60,2028,"H","A_PER",{"v":0.44999999999999996,"d":"0.45"},{"v":0.38999999999999996,"d":"0.39"},0.6,0.6,85,0,{"$f":"ROUND(Primes!$Q$7*V9328,0)","v":3},{"$f":"'BP Financier'!$G$33*(('BP Financier'!$C$19+'BP Financier'!$D$19+'BP Financier'!$E$19+'BP Financier'!$F$19+'BP Financier'!$G$19)/('BP Financier'!$C$16+'BP Financier'!$C$19+'BP Financier'!$D$16+'BP Financier'!$D$19+'BP Financier'!$E$16+'BP Financier'!$E$19+'BP Financier'!$F$16+'BP Financier'!$F$19+'BP Financier'!$G$16+'BP Financier'!$G$19))*V9328","v":{"v":113910.11444745549,"d":"113,910"}},{"v":65376.94581780905,"d":"65,377"},{"$f":"'BP Financier'!$G$44*(('BP Financier'!$C$19+'BP Financier'!$D$19+'BP Financier'!$E$19+'BP Financier'!$F$19+'BP Financier'!$G$19)/('BP Financier'!$C$16+'BP Financier'!$C$19+'BP Financier'!$D$16+'BP Financier'!$D$19+'BP Financier'!$E$16+'BP Financier'!$E$19+'BP Financier'!$C$22+'BP Financier'!$D$22+'BP Financier'!$E$22+'BP Financier'!$F$22+'BP Financier'!$F$19+'BP Financier'!$F$16+'BP Financier'!$G$22+'BP Financier'!$G$19+'BP Financier'!$G$16))*$V9328*X9328/(1-$W9328)","v":{"v":8321.538110424359,"d":"8,322"}},{"$f":"'BP Financier'!$G$44*(('BP Financier'!$C$19+'BP Financier'!$D$19+'BP Financier'!$E$19+'BP Financier'!$F$19+'BP Financier'!$G$19)/('BP Financier'!$C$16+'BP Financier'!$C$19+'BP Financier'!$D$16+'BP Financier'!$D$19+'BP Financier'!$E$16+'BP Financier'!$E$19+'BP Financier'!$C$22+'BP Financier'!$D$22+'BP Financier'!$E$22+'BP Financier'!$F$22+'BP Financier'!$F$19+'BP Financier'!$F$16+'BP Financier'!$G$22+'BP Financier'!$G$19+'BP Financier'!$G$16))*$V9328*Y9328/(1-$W9328)","v":{"v":5563.017189841697,"d":"5,563"}},{"$f":"'BP Financier'!$G$44*(('BP Financier'!$C$19+'BP Financier'!$D$19+'BP Financier'!$E$19+'BP Financier'!$F$19+'BP Financier'!$G$19)/('BP Financier'!$C$16+'BP Financier'!$C$19+'BP Financier'!$D$16+'BP Financier'!$D$19+'BP Financier'!$E$16+'BP Financier'!$E$19+'BP Financier'!$C$22+'BP Financier'!$D$22+'BP Financier'!$E$22+'BP Financier'!$F$22+'BP Financier'!$F$19+'BP Financier'!$F$16+'BP Financier'!$G$22+'BP Financier'!$G$19+'BP Financier'!$G$16))*$V9328*Z9328/(1-$W9328)","v":{"v":43538.65519652965,"d":"43,539"}},{"$f":"'BP Financier'!$G$44*(('BP Financier'!$C$19+'BP Financier'!$D$19+'BP Financier'!$E$19+'BP Financier'!$F$19+'BP Financier'!$G$19)/('BP Financier'!$C$16+'BP Financier'!$C$19+'BP Financier'!$D$16+'BP Financier'!$D$19+'BP Financier'!$E$16+'BP Financier'!$E$19+'BP Financier'!$C$22+'BP Financier'!$D$22+'BP Financier'!$E$22+'BP Financier'!$F$22+'BP Financier'!$F$19+'BP Financier'!$F$16+'BP Financier'!$G$22+'BP Financier'!$G$19+'BP Financier'!$G$16))*$V9328*AA9328/(1-$W9328)","v":{"v":5379.115795136187,"d":"5,379"}},{"$f":"'BP Financier'!$G$44*(('BP Financier'!$C$19+'BP Financier'!$D$19+'BP Financier'!$E$19+'BP Financier'!$F$19+'BP Financier'!$G$19)/('BP Financier'!$C$16+'BP Financier'!$C$19+'BP Financier'!$D$16+'BP Financier'!$D$19+'BP Financier'!$E$16+'BP Financier'!$E$19+'BP Financier'!$C$22+'BP Financier'!$D$22+'BP Financier'!$E$22+'BP Financier'!$F$22+'BP Financier'!$F$19+'BP Financier'!$F$16+'BP Financier'!$G$22+'BP Financier'!$G$19+'BP Financier'!$G$16))*$V9328*AB9328/(1-$W9328)","v":{"v":2574.619525877149,"d":"2,575"}},null,{"v":2E-3,"d":"0.20%"},{"$f":"Actif!$E$28/100","v":{"v":0.28900000000000003,"d":"28.90%"}},{"$f":"Actif!$E$30/100","v":{"v":0.09050000000000001,"d":"9.05%"}},{"$f":"Actif!$E$31/100","v":{"v":0.0605,"d":"6.05%"}},{"$f":"Actif!$E$32/100","v":{"v":0.47350000000000003,"d":"47.35%"}},{"$f":"Actif!$E$33/100","v":{"v":0.0585,"d":"5.85%"}},{"$f":"Actif!$E$29/100","v":{"v":0.027999999999999997,"d":"2.80%"}}]
[null,"#213",60,2029,"H","A_PER",{"$f":"frais_gestion_Euro*100","v":{"v":0.44999999999999996,"d":"0.45"}},{"$f":"frais_gestion_UC*100","v":{"v":0.38999999999999996,"d":"0.39"}},{"$f":"frais_distribution_FG*100","v":0.6},{"$f":"frais_distribution_UC*100","v":0.6},85,0,{"$f":"ROUND(Primes!$Q$7*V9329,0)","v":3},{"$f":"'BP Financier'!$G$33*(('BP Financier'!$C$19+'BP Financier'!$D$19+'BP Financier'!$E$19+'BP Financier'!$F$19+'BP Financier'!$G$19)/('BP Financier'!$C$16+'BP Financier'!$C$19+'BP Financier'!$D$16+'BP Financier'!$D$19+'BP Financier'!$E$16+'BP Financier'!$E$19+'BP Financier'!$F$16+'BP Financier'!$F$19+'BP Financier'!$G$16+'BP Financier'!$G$19))*V9329","v":{"v":113910.11444745549,"d":"113,910"}},{"v":65376.94581780905,"d":"65,377"},{"$f":"'BP Financier'!$G$44*(('BP Financier'!$C$19+'BP Financier'!$D$19+'BP Financier'!$E$19+'BP Financier'!$F$19+'BP Financier'!$G$19)/('BP Financier'!$C$16+'BP Financier'!$C$19+'BP Financier'!$D$16+'BP Financier'!$D$19+'BP Financier'!$E$16+'BP Financier'!$E$19+'BP Financier'!$C$22+'BP Financier'!$D$22+'BP Financier'!$E$22+'BP Financier'!$F$22+'BP Financier'!$F$19+'BP Financier'!$F$16+'BP Financier'!$G$22+'BP Financier'!$G$19+'BP Financier'!$G$16))*$V9329*X9329/(1-$W9329)","v":{"v":8321.538110424359,"d":"8,322"}},{"$f":"'BP Financier'!$G$44*(('BP Financier'!$C$19+'BP Financier'!$D$19+'BP Financier'!$E$19+'BP Financier'!$F$19+'BP Financier'!$G$19)/('BP Financier'!$C$16+'BP Financier'!$C$19+'BP Financier'!$D$16+'BP Financier'!$D$19+'BP Financier'!$E$16+'BP Financier'!$E$19+'BP Financier'!$C$22+'BP Financier'!$D$22+'BP Financier'!$E$22+'BP Financier'!$F$22+'BP Financier'!$F$19+'BP Financier'!$F$16+'BP Financier'!$G$22+'BP Financier'!$G$19+'BP Financier'!$G$16))*$V9329*Y9329/(1-$W9329)","v":{"v":5563.017189841697,"d":"5,563"}},{"$f":"'BP Financier'!$G$44*(('BP Financier'!$C$19+'BP Financier'!$D$19+'BP Financier'!$E$19+'BP Financier'!$F$19+'BP Financier'!$G$19)/('BP Financier'!$C$16+'BP Financier'!$C$19+'BP Financier'!$D$16+'BP Financier'!$D$19+'BP Financier'!$E$16+'BP Financier'!$E$19+'BP Financier'!$C$22+'BP Financier'!$D$22+'BP Financier'!$E$22+'BP Financier'!$F$22+'BP Financier'!$F$19+'BP Financier'!$F$16+'BP Financier'!$G$22+'BP Financier'!$G$19+'BP Financier'!$G$16))*$V9329*Z9329/(1-$W9329)","v":{"v":43538.65519652965,"d":"43,539"}},{"$f":"'BP Financier'!$G$44*(('BP Financier'!$C$19+'BP Financier'!$D$19+'BP Financier'!$E$19+'BP Financier'!$F$19+'BP Financier'!$G$19)/('BP Financier'!$C$16+'BP Financier'!$C$19+'BP Financier'!$D$16+'BP Financier'!$D$19+'BP Financier'!$E$16+'BP Financier'!$E$19+'BP Financier'!$C$22+'BP Financier'!$D$22+'BP Financier'!$E$22+'BP Financier'!$F$22+'BP Financier'!$F$19+'BP Financier'!$F$16+'BP Financier'!$G$22+'BP Financier'!$G$19+'BP Financier'!$G$16))*$V9329*AA9329/(1-$W9329)","v":{"v":5379.115795136187,"d":"5,379"}},{"$f":"'BP Financier'!$G$44*(('BP Financier'!$C$19+'BP Financier'!$D$19+'BP Financier'!$E$19+'BP Financier'!$F$19+'BP Financier'!$G$19)/('BP Financier'!$C$16+'BP Financier'!$C$19+'BP Financier'!$D$16+'BP Financier'!$D$19+'BP Financier'!$E$16+'BP Financier'!$E$19+'BP Financier'!$C$22+'BP Financier'!$D$22+'BP Financier'!$E$22+'BP Financier'!$F$22+'BP Financier'!$F$19+'BP Financier'!$F$16+'BP Financier'!$G$22+'BP Financier'!$G$19+'BP Financier'!$G$16))*$V9329*AB9329/(1-$W9329)","v":{"v":2574.619525877149,"d":"2,575"}},null,{"v":2E-3,"d":"0.20%"},{"$f":"Actif!$E$28/100","v":{"v":0.28900000000000003,"d":"28.90%"}},{"$f":"Actif!$E$30/100","v":{"v":0.09050000000000001,"d":"9.05%"}},{"$f":"Actif!$E$31/100","v":{"v":0.0605,"d":"6.05%"}},{"$f":"Actif!$E$32/100","v":{"v":0.47350000000000003,"d":"47.35%"}},{"$f":"Actif!$E$33/100","v":{"v":0.0585,"d":"5.85%"}},{"$f":"Actif!$E$29/100","v":{"v":0.027999999999999997,"d":"2.80%"}}]
[null,"#214",60,2030,"H","A_PER",{"v":0.44999999999999996,"d":"0.45"},{"v":0.38999999999999996,"d":"0.39"},0.6,0.6,85,0,{"$f":"ROUND(Primes!$Q$7*V9330,0)","v":3},{"$f":"'BP Financier'!$G$33*(('BP Financier'!$C$19+'BP Financier'!$D$19+'BP Financier'!$E$19+'BP Financier'!$F$19+'BP Financier'!$G$19)/('BP Financier'!$C$16+'BP Financier'!$C$19+'BP Financier'!$D$16+'BP Financier'!$D$19+'BP Financier'!$E$16+'BP Financier'!$E$19+'BP Financier'!$F$16+'BP Financier'!$F$19+'BP Financier'!$G$16+'BP Financier'!$G$19))*V9330","v":{"v":113910.11444745549,"d":"113,910"}},{"v":65376.94581780905,"d":"65,377"},{"$f":"'BP Financier'!$G$44*(('BP Financier'!$C$19+'BP Financier'!$D$19+'BP Financier'!$E$19+'BP Financier'!$F$19+'BP Financier'!$G$19)/('BP Financier'!$C$16+'BP Financier'!$C$19+'BP Financier'!$D$16+'BP Financier'!$D$19+'BP Financier'!$E$16+'BP Financier'!$E$19+'BP Financier'!$C$22+'BP Financier'!$D$22+'BP Financier'!$E$22+'BP Financier'!$F$22+'BP Financier'!$F$19+'BP Financier'!$F$16+'BP Financier'!$G$22+'BP Financier'!$G$19+'BP Financier'!$G$16))*$V9330*X9330/(1-$W9330)","v":{"v":8321.538110424359,"d":"8,322"}},{"$f":"'BP Financier'!$G$44*(('BP Financier'!$C$19+'BP Financier'!$D$19+'BP Financier'!$E$19+'BP Financier'!$F$19+'BP Financier'!$G$19)/('BP Financier'!$C$16+'BP Financier'!$C$19+'BP Financier'!$D$16+'BP Financier'!$D$19+'BP Financier'!$E$16+'BP Financier'!$E$19+'BP Financier'!$C$22+'BP Financier'!$D$22+'BP Financier'!$E$22+'BP Financier'!$F$22+'BP Financier'!$F$19+'BP Financier'!$F$16+'BP Financier'!$G$22+'BP Financier'!$G$19+'BP Financier'!$G$16))*$V9330*Y9330/(1-$W9330)","v":{"v":5563.017189841697,"d":"5,563"}},{"$f":"'BP Financier'!$G$44*(('BP Financier'!$C$19+'BP Financier'!$D$19+'BP Financier'!$E$19+'BP Financier'!$F$19+'BP Financier'!$G$19)/('BP Financier'!$C$16+'BP Financier'!$C$19+'BP Financier'!$D$16+'BP Financier'!$D$19+'BP Financier'!$E$16+'BP Financier'!$E$19+'BP Financier'!$C$22+'BP Financier'!$D$22+'BP Financier'!$E$22+'BP Financier'!$F$22+'BP Financier'!$F$19+'BP Financier'!$F$16+'BP Financier'!$G$22+'BP Financier'!$G$19+'BP Financier'!$G$16))*$V9330*Z9330/(1-$W9330)","v":{"v":43538.65519652965,"d":"43,539"}},{"$f":"'BP Financier'!$G$44*(('BP Financier'!$C$19+'BP Financier'!$D$19+'BP Financier'!$E$19+'BP Financier'!$F$19+'BP Financier'!$G$19)/('BP Financier'!$C$16+'BP Financier'!$C$19+'BP Financier'!$D$16+'BP Financier'!$D$19+'BP Financier'!$E$16+'BP Financier'!$E$19+'BP Financier'!$C$22+'BP Financier'!$D$22+'BP Financier'!$E$22+'BP Financier'!$F$22+'BP Financier'!$F$19+'BP Financier'!$F$16+'BP Financier'!$G$22+'BP Financier'!$G$19+'BP Financier'!$G$16))*$V9330*AA9330/(1-$W9330)","v":{"v":5379.115795136187,"d":"5,379"}},{"$f":"'BP Financier'!$G$44*(('BP Financier'!$C$19+'BP Financier'!$D$19+'BP Financier'!$E$19+'BP Financier'!$F$19+'BP Financier'!$G$19)/('BP Financier'!$C$16+'BP Financier'!$C$19+'BP Financier'!$D$16+'BP Financier'!$D$19+'BP Financier'!$E$16+'BP Financier'!$E$19+'BP Financier'!$C$22+'BP Financier'!$D$22+'BP Financier'!$E$22+'BP Financier'!$F$22+'BP Financier'!$F$19+'BP Financier'!$F$16+'BP Financier'!$G$22+'BP Financier'!$G$19+'BP Financier'!$G$16))*$V9330*AB9330/(1-$W9330)","v":{"v":2574.619525877149,"d":"2,575"}},null,{"v":2E-3,"d":"0.20%"},{"$f":"Actif!$E$28/100","v":{"v":0.28900000000000003,"d":"28.90%"}},{"$f":"Actif!$E$30/100","v":{"v":0.09050000000000001,"d":"9.05%"}},{"$f":"Actif!$E$31/100","v":{"v":0.0605,"d":"6.05%"}},{"$f":"Actif!$E$32/100","v":{"v":0.47350000000000003,"d":"47.35%"}},{"$f":"Actif!$E$33/100","v":{"v":0.0585,"d":"5.85%"}},{"$f":"Actif!$E$29/100","v":{"v":0.027999999999999997,"d":"2.80%"}}]
[null,"#215",60,2031,"H","A_PER",{"v":0.44999999999999996,"d":"0.45"},{"v":0.38999999999999996,"d":"0.39"},0.6,0.6,85,0,{"$f":"ROUND(Primes!$Q$7*V9331,0)","v":3},{"$f":"'BP Financier'!$G$33*(('BP Financier'!$C$19+'BP Financier'!$D$19+'BP Financier'!$E$19+'BP Financier'!$F$19+'BP Financier'!$G$19)/('BP Financier'!$C$16+'BP Financier'!$C$19+'BP Financier'!$D$16+'BP Financier'!$D$19+'BP Financier'!$E$16+'BP Financier'!$E$19+'BP Financier'!$F$16+'BP Financier'!$F$19+'BP Financier'!$G$16+'BP Financier'!$G$19))*V9331","v":{"v":113910.11444745549,"d":"113,910"}},{"v":65376.94581780905,"d":"65,377"},{"$f":"'BP Financier'!$G$44*(('BP Financier'!$C$19+'BP Financier'!$D$19+'BP Financier'!$E$19+'BP Financier'!$F$19+'BP Financier'!$G$19)/('BP Financier'!$C$16+'BP Financier'!$C$19+'BP Financier'!$D$16+'BP Financier'!$D$19+'BP Financier'!$E$16+'BP Financier'!$E$19+'BP Financier'!$C$22+'BP Financier'!$D$22+'BP Financier'!$E$22+'BP Financier'!$F$22+'BP Financier'!$F$19+'BP Financier'!$F$16+'BP Financier'!$G$22+'BP Financier'!$G$19+'BP Financier'!$G$16))*$V9331*X9331/(1-$W9331)","v":{"v":8321.538110424359,"d":"8,322"}},{"$f":"'BP Financier'!$G$44*(('BP Financier'!$C$19+'BP Financier'!$D$19+'BP Financier'!$E$19+'BP Financier'!$F$19+'BP Financier'!$G$19)/('BP Financier'!$C$16+'BP Financier'!$C$19+'BP Financier'!$D$16+'BP Financier'!$D$19+'BP Financier'!$E$16+'BP Financier'!$E$19+'BP Financier'!$C$22+'BP Financier'!$D$22+'BP Financier'!$E$22+'BP Financier'!$F$22+'BP Financier'!$F$19+'BP Financier'!$F$16+'BP Financier'!$G$22+'BP Financier'!$G$19+'BP Financier'!$G$16))*$V9331*Y9331/(1-$W9331)","v":{"v":5563.017189841697,"d":"5,563"}},{"$f":"'BP Financier'!$G$44*(('BP Financier'!$C$19+'BP Financier'!$D$19+'BP Financier'!$E$19+'BP Financier'!$F$19+'BP Financier'!$G$19)/('BP Financier'!$C$16+'BP Financier'!$C$19+'BP Financier'!$D$16+'BP Financier'!$D$19+'BP Financier'!$E$16+'BP Financier'!$E$19+'BP Financier'!$C$22+'BP Financier'!$D$22+'BP Financier'!$E$22+'BP Financier'!$F$22+'BP Financier'!$F$19+'BP Financier'!$F$16+'BP Financier'!$G$22+'BP Financier'!$G$19+'BP Financier'!$G$16))*$V9331*Z9331/(1-$W9331)","v":{"v":43538.65519652965,"d":"43,539"}},{"$f":"'BP Financier'!$G$44*(('BP Financier'!$C$19+'BP Financier'!$D$19+'BP Financier'!$E$19+'BP Financier'!$F$19+'BP Financier'!$G$19)/('BP Financier'!$C$16+'BP Financier'!$C$19+'BP Financier'!$D$16+'BP Financier'!$D$19+'BP Financier'!$E$16+'BP Financier'!$E$19+'BP Financier'!$C$22+'BP Financier'!$D$22+'BP Financier'!$E$22+'BP Financier'!$F$22+'BP Financier'!$F$19+'BP Financier'!$F$16+'BP Financier'!$G$22+'BP Financier'!$G$19+'BP Financier'!$G$16))*$V9331*AA9331/(1-$W9331)","v":{"v":5379.115795136187,"d":"5,379"}},{"$f":"'BP Financier'!$G$44*(('BP Financier'!$C$19+'BP Financier'!$D$19+'BP Financier'!$E$19+'BP Financier'!$F$19+'BP Financier'!$G$19)/('BP Financier'!$C$16+'BP Financier'!$C$19+'BP Financier'!$D$16+'BP Financier'!$D$19+'BP Financier'!$E$16+'BP Financier'!$E$19+'BP Financier'!$C$22+'BP Financier'!$D$22+'BP Financier'!$E$22+'BP Financier'!$F$22+'BP Financier'!$F$19+'BP Financier'!$F$16+'BP Financier'!$G$22+'BP Financier'!$G$19+'BP Financier'!$G$16))*$V9331*AB9331/(1-$W9331)","v":{"v":2574.619525877149,"d":"2,575"}},null,{"v":2E-3,"d":"0.20%"},{"$f":"Actif!$E$28/100","v":{"v":0.28900000000000003,"d":"28.90%"}},{"$f":"Actif!$E$30/100","v":{"v":0.09050000000000001,"d":"9.05%"}},{"$f":"Actif!$E$31/100","v":{"v":0.0605,"d":"6.05%"}},{"$f":"Actif!$E$32/100","v":{"v":0.47350000000000003,"d":"47.35%"}},{"$f":"Actif!$E$33/100","v":{"v":0.0585,"d":"5.85%"}},{"$f":"Actif!$E$29/100","v":{"v":0.027999999999999997,"d":"2.80%"}}]
[null,"#216"]
[null,"#217"]
[null,"#218"]
[null,"#219"]
[null,"#220"]
[null,"#221"]
[null,"#222"]
[null,"#223"]
[null,"#224"]
[null,"#225"]
[null,"#226"]
[null,"#227"]
[null,"#228"]
[null,"#229"]
[null,"#230"]
[null,"#231"]
[null,"#232"]
[null,"#233"]
[null,"#234"]
[null,"#235"]
[null,"#236"]
[null,"#237"]
[null,"#238"]
[null,"#239"]
[null,"#240"]
[null,"#241"]
[null,"#242"]
[null,"#243"]
[null,"#244"]
[null,"#245"]
[null,"#246"]
[null,"#247"]
[null,"#248"]
[null,"#249"]
[null,"#250"]
[null,"#251"]
[null,"#252"]
[null,"#253"]
[null,"#254"]
[null,"#255"]
[null,"#256"]
[null,"#257"]
[null,"#258"]
[null,"#259"]
[null,"#260"]
[null,"#261"]
[null,"#262"]
[null,"#263"]
[null,"#264"]
[null,"#265"]
[null,"#266"]
[null,"#267"]
[null,"#268"]
[null,"#269"]
[null,"#270"]
[null,"#271"]
[null,"#272"]
[null,"#273"]
[null,"#274"]
[null,"#275"]
[null,"#276"]
[null,"#277"]
[null,"#278"]
[null,"#279"]
[null,"#280"]
[null,"#281"]
[null,"#282"]
[null,"#283"]
[null,"#284"]
[null,"#285"]
[null,"#286"]
[null,"#287"]
[null,"#288"]
[null,"#289"]
[null,"#290"]
[null,"#291"]
[null,"#292"]
[null,"#293"]
[null,"#294"]
[null,"#295"]
[null,"#296"]
[null,"#297"]
[null,"#298"]
[null,"#299"]
[null,"#300"]
[null,"#301"]
[null,"#302"]
[null,"#303"]
[null,"#304"]
[null,"#305"]
[null,"#306"]
[null,"#307"]
[null,"#308"]
[null,"#309"]
[null,"#310"]
[null,"#311"]
[null,"#312"]
[null,"#313"]
[null,"#314"]
[null,"#315"]
[null,"#316"]
[null,"#317"]
[null,"#318"]
[null,"#319"]
[null,"#320"]
[null,"#321"]
[null,"#322"]
[null,"#323"]
[null,"#324"]
[null,"#325"]
[null,"#326"]
[null,"#327"]
[null,"#328"]
[null,"#329"]
[null,"#330"]
[null,"#331"]
[null,"#332"]
[null,"#333"]
[null,"#334"]
[null,"#335"]
[null,"#336"]
[null,"#337"]
[null,"#338"]
[null,"#339"]
[null,"#340"]
[null,"#341"]
[null,"#342"]
[null,"#343"]
[null,"#344"]
[null,"#345"]
[null,"#346"]
[null,"#347"]
[null,"#348"]
[null,"#349"]
[null,"#350"]
[null,"#351"]
[null,"#352"]
[null,"#353"]
[null,"#354"]
[null,"#355"]
[null,"#356"]
[null,"#357"]
[null,"#358"]
[null,"#359"]
[null,"#360"]
[null,"#361"]
[null,"#362"]
[null,"#363"]
[null,"#364"]
[null,"#365"]
[null,"#366"]
[null,"#367"]
[null,"#368"]
[null,"#369"]
[null,"#370"]
[null,"#371"]
[null,"#372"]
[null,"#373"]
[null,"#374"]
[null,"#375"]
[null,"#376"]
[null,"#377"]
[null,"#378"]
[null,"#379"]
[null,"#380"]
[null,"#381"]
[null,"#382"]
[null,"#383"]
[null,"#384"]
[null,"#385"]
[null,"#386"]
[null,"#387"]
[null,"#388"]
[null,"#389"]
[null,"#390"]
[null,"#391"]
[null,"#392"]
[null,"#393"]
[null,"#394"]
[null,"#395"]
[null,"#396"]
[null,"#397"]
[null,"#398"]
[null,"#399"]
[null,"#400"]
[null,"#401"]
[null,"#402"]
[null,"#403"]
[null,"#404"]
[null,"#405"]
[null,"#406"]
[null,"#407"]
[null,"#408"]
[null,"#409"]
[null,"#410"]
[null,"#411"]
[null,"#412"]
[null,"#413"]
[null,"#414"]
[null,"#415"]
[null,"#416"]
[null,"#417"]
[null,"#418"]
[null,"#419"]
[null,"#420"]
[null,"#421"]
[null,"#422"]
[null,"#423"]
[null,"#424"]
[null,"#425"]
[null,"#426"]
[null,"#427"]
[null,"#428"]
[null,"#429"]
[null,"#430"]
[null,"#431"]
[null,"#432"]
[null,"#433"]
[null,"#434"]
[null,"#435"]
[null,"#436"]
[null,"#437"]
[null,"#438"]
[null,"#439"]
[null,"#440"]
[null,"#441"]
[null,"#442"]
[null,"#443"]
[null,"#444"]
[null,"#445"]
[null,"#446"]
[null,"#447"]
[null,"#448"]
[null,"#449"]
[null,"#450"]
[null,"#451"]
[null,"#452"]
[null,"#453"]
[null,"#454"]
[null,"#455"]
[null,"#456"]
[null,"#457"]
[null,"#458"]
[null,"#459"]
[null,"#460"]
[null,"#461"]
[null,"#462"]
[null,"#463"]
[null,"#464"]
[null,"#465"]
[null,"#466"]
[null,"#467"]
[null,"#468"]
[null,"#469"]
[null,"#470"]
[null,"#471"]
[null,"#472"]
[null,"#473"]
[null,"#474"]
[null,"#475"]
[null,"#476"]
[null,"#477"]
[null,"#478"]
[null,"#479"]
[null,"#480"]
[null,"#481"]
[null,"#482"]
[null,"#483"]
[null,"#484"]
[null,"#485"]
[null,"#486"]
[null,"#487"]
[null,"#488"]
[null,"#489"]
[null,"#490"]
[null,"#491"]
[null,"#492"]
[null,"#493"]
[null,"#494"]
[null,"#495"]
[null,"#496"]
[null,"#497"]
[null,"#498"]
[null,"#499"]
[null,"#500"]
[null,"#501"]
[null,"#502"]
[null,"#503"]
[null,"#504"]
[null,"#505"]
[null,"#506"]
[null,"#507"]
[null,"#508"]
[null,"#509"]
[null,"#510"]
[null,"#511"]
[null,"#512"]
[null,"#513"]
[null,"#514"]
[null,"#515"]
[null,"#516"]
[null,"#517"]
[null,"#518"]
[null,"#519"]
[null,"#520"]
[null,"#521"]
[null,"#522"]
[null,"#523"]
[null,"#524"]
[null,"#525"]
[null,"#526"]
[null,"#527"]
[null,"#528"]
[null,"#529"]
[null,"#530"]
[null,"#531"]
[null,"#532"]
[null,"#533"]
[null,"#534"]
[null,"#535"]
[null,"#536"]
[null,"#537"]
[null,"#538"]
[null,"#539"]
[null,"#540"]
[null,"#541"]
[null,"#542"]
[null,"#543"]
[null,"#544"]
[null,"#545"]
[null,"#546"]
[null,"#547"]
[null,"#548"]
[null,"#549"]
[null,"#550"]
[null,"#551"]
[null,"#552"]
[null,"#553"]
[null,"#554"]
[null,"#555"]
[null,"#556"]
[null,"#557"]
[null,"#558"]
[null,"#559"]
[null,"#560"]
[null,"#561"]
[null,"#562"]
[null,"#563"]
[null,"#564"]
[null,"#565"]
[null,"#566"]
[null,"#567"]
[null,"#568"]
[null,"#569"]
[null,"#570"]
[null,"#571"]
[null,"#572"]
[null,"#573"]
[null,"#574"]
[null,"#575"]
[null,"#576"]
[null,"#577"]
[null,"#578"]
[null,"#579"]
[null,"#580"]
[null,"#581"]
[null,"#582"]
[null,"#583"]
[null,"#584"]
[null,"#585"]
[null,"#586"]
[null,"#587"]
[null,"#588"]
[null,"#589"]
[null,"#590"]
[null,"#591"]
[null,"#592"]
[null,"#593"]
[null,"#594"]
[null,"#595"]
[null,"#596"]
[null,"#597"]
[null,"#598"]
[null,"#599"]
[null,"#600"]
[null,"#601"]
[null,"#602"]
[null,"#603"]
[null,"#604"]
[null,"#605"]
[null,"#606"]
[null,"#607"]
[null,"#608"]
[null,"#609"]
[null,"#610"]
[null,"#611"]
[null,"#612"]
[null,"#613"]
[null,"#614"]
[null,"#615"]
[null,"#616"]
[null,"#617"]
[null,"#618"]
[null,"#619"]
[null,"#620"]
[null,"#621"]
[null,"#622"]
[null,"#623"]
[null,"#624"]
[null,"#625"]
[null,"#626"]
[null,"#627"]
[null,"#628"]
[null,"#629"]
[null,"#630"]
[null,"#631"]
[null,"#632"]
[null,"#633"]
[null,"#634"]
[null,"#635"]
[null,"#636"]
[null,"#637"]
[null,"#638"]
[null,"#639"]
[null,"#640"]
[null,"#641"]
[null,"#642"]
[null,"#643"]
[null,"#644"]
[null,"#645"]
[null,"#646"]
[null,"#647"]
[null,"#648"]
[null,"#649"]
[null,"#650"]
[null,"#651"]
[null,"#652"]
[null,"#653"]
[null,"#654"]
[null,"#655"]
[null,"#656"]
[null,"#657"]
[null,"#658"]
[null,"#659"]
[null,"#660"]
[null,"#661"]
[null,"#662"]
[null,"#663"]
[null,"#664"]
[null,"#665"]
[null,"#666"]
[null,"#667"]
[null,"#668"]
[null,"#669"]
[null,"#670"]
[null,"#671"]
[null,"#672"]
[null,"#673"]
[null,"#674"]
[null,"#675"]
[null,"#676"]
[null,"#677"]
[null,"#678"]
[null,"#679"]
[null,"#680"]
[null,"#681"]
[null,"#682"]
[null,"#683"]
[null,"#684"]
[null,"#685"]
[null,"#686"]
[null,"#687"]
[null,"#688"]
[null,"#689"]
[null,"#690"]
[null,"#691"]
[null,"#692"]
[null,"#693"]
[null,"#694"]
[null,"#695"]
[null,"#696"]
[null,"#697"]
[null,"#698"]
[null,"#699"]
[null,"#700"]
[null,"#701"]
[null,"#702"]
[null,"#703"]
[null,"#704"]
[null,"#705"]
[null,"#706"]
[null,"#707"]
[null,"#708"]
[null,"#709"]
[null,"#710"]
[null,"#711"]
[null,"#712"]
[null,"#713"]
[null,"#714"]
[null,"#715"]
[null,"#716"]
[null,"#717"]
[null,"#718"]
[null,"#719"]
[null,"#720"]
[null,"#721"]
[null,"#722"]
[null,"#723"]
[null,"#724"]
[null,"#725"]
[null,"#726"]
[null,"#727"]
[null,"#728"]
[null,"#729"]
[null,"#730"]
[null,"#731"]
[null,"#732"]
[null,"#733"]
[null,"#734"]
[null,"#735"]
[null,"#736"]
[null,"#737"]
[null,"#738"]
[null,"#739"]
[null,"#740"]
[null,"#741"]
[null,"#742"]
[null,"#743"]
[null,"#744"]
[null,"#745"]
[null,"#746"]
[null,"#747"]
[null,"#748"]
[null,"#749"]
[null,"#750"]
[null,"#751"]
[null,"#752"]
[null,"#753"]
[null,"#754"]
[null,"#755"]
[null,"#756"]
[null,"#757"]
[null,"#758"]
[null,"#759"]
[null,"#760"]
[null,"#761"]
[null,"#762"]
[null,"#763"]
[null,"#764"]
[null,"#765"]
[null,"#766"]
[null,"#767"]
[null,"#768"]
[null,"#769"]
[null,"#770"]
[null,"#771"]
[null,"#772"]
[null,"#773"]
[null,"#774"]
[null,"#775"]
[null,"#776"]
[null,"#777"]
[null,"#778"]
[null,"#779"]
[null,"#780"]
[null,"#781"]
[null,"#782"]
[null,"#783"]
[null,"#784"]
[null,"#785"]
[null,"#786"]
[null,"#787"]
[null,"#788"]
[null,"#789"]
[null,"#790"]
[null,"#791"]
[null,"#792"]
[null,"#793"]
[null,"#794"]
[null,"#795"]
[null,"#796"]
[null,"#797"]
[null,"#798"]
[null,"#799"]
[null,"#800"]
[null,"#801"]
[null,"#802"]
[null,"#803"]
[null,"#804"]
[null,"#805"]
[null,"#806"]
[null,"#807"]
[null,"#808"]
[null,"#809"]
[null,"#810"]
[null,"#811"]
[null,"#812"]
[null,"#813"]
[null,"#814"]
[null,"#815"]
[null,"#816"]
[null,"#817"]
[null,"#818"]
[null,"#819"]
[null,"#820"]
[null,"#821"]
[null,"#822"]
[null,"#823"]
[null,"#824"]
[null,"#825"]
[null,"#826"]
[null,"#827"]
[null,"#828"]
[null,"#829"]
[null,"#830"]
[null,"#831"]
[null,"#832"]
[null,"#833"]
[null,"#834"]
[null,"#835"]
[null,"#836"]
[null,"#837"]
[null,"#838"]
[null,"#839"]
[null,"#840"]
[null,"#841"]
[null,"#842"]
[null,"#843"]
[null,"#844"]
[null,"#845"]
[null,"#846"]
[null,"#847"]
[null,"#848"]
[null,"#849"]
[null,"#850"]
[null,"#851"]
[null,"#852"]
[null,"#853"]
[null,"#854"]
[null,"#855"]
[null,"#856"]
[null,"#857"]
[null,"#858"]
[null,"#859"]
[null,"#860"]
[null,"#861"]
[null,"#862"]
[null,"#863"]
[null,"#864"]
[null,"#865"]
[null,"#866"]
[null,"#867"]
[null,"#868"]
[null,"#869"]
[null,"#870"]
[null,"#871"]
[null,"#872"]
[null,"#873"]
[null,"#874"]
[null,"#875"]
[null,"#876"]
[null,"#877"]
[null,"#878"]
[null,"#879"]
[null,"#880"]
[null,"#881"]
[null,"#882"]
[null,"#883"]
[null,"#884"]
[null,"#885"]
[null,"#886"]
[null,"#887"]
[null,"#888"]
[null,"#889"]
[null,"#890"]
[null,"#891"]
[null,"#892"]
[null,"#893"]
[null,"#894"]
[null,"#895"]
[null,"#896"]
[null,"#897"]
[null,"#898"]
[null,"#899"]
[null,"#900"]
[null,"#901"]
[null,"#902"]
[null,"#903"]
[null,"#904"]
[null,"#905"]
[null,"#906"]
[null,"#907"]
[null,"#908"]
[null,"#909"]
[null,"#910"]
[null,"#911"]
[null,"#912"]
[null,"#913"]
[null,"#914"]
[null,"#915"]
[null,"#916"]
[null,"#917"]
[null,"#918"]
[null,"#919"]
[null,"#920"]
[null,"#921"]
[null,"#922"]
[null,"#923"]
[null,"#924"]
[null,"#925"]
[null,"#926"]
[null,"#927"]
[null,"#928"]
[null,"#929"]
[null,"#930"]
[null,"#931"]
[null,"#932"]
[null,"#933"]
[null,"#934"]
[null,"#935"]
[null,"#936"]
[null,"#937"]
[null,"#938"]
[null,"#939"]
[null,"#940"]
[null,"#941"]
[null,"#942"]
[null,"#943"]
[null,"#944"]
[null,"#945"]
[null,"#946"]
[null,"#947"]
[null,"#948"]
[null,"#949"]
[null,"#950"]
[null,"#951"]
[null,"#952"]
[null,"#953"]
[null,"#954"]
[null,"#955"]
[null,"#956"]
[null,"#957"]
[null,"#958"]
[null,"#959"]
[null,"#960"]
[null,"#961"]
[null,"#962"]
[null,"#963"]
[null,"#964"]
[null,"#965"]
[null,"#966"]
[null,"#967"]
[null,"#968"]
[null,"#969"]
[null,"#970"]
[null,"#971"]
[null,"#972"]
[null,"#973"]
[null,"#974"]
[null,"#975"]
[null,"#976"]
[null,"#977"]
[null,"#978"]
[null,"#979"]
[null,"#980"]
[null,"#981"]
[null,"#982"]
[null,"#983"]
[null,"#984"]
[null,"#985"]
[null,"#986"]
[null,"#987"]
[null,"#988"]
[null,"#989"]
[null,"#990"]
[null,"#991"]
[null,"#992"]
[null,"#993"]
[null,"#994"]
[null,"#995"]
[null,"#996"]
[null,"#997"]
[null,"#998"]
[null,"#999"]
[null,"#1000"]

{"sheet":"SCR_Op","index":27,"n_rows":93,"n_cols":16,"rows_kept":93,"merged":[[1,1,1,8]]}
[]
[null,"I) Inputs pour SCR Opérationnel"]
[]
[{"$nulls":11},{"$f":"SUM(L6:L8)","v":{"v":1,"d":"100.0%"}},{"$f":"SUM(M6:M8)","v":{"v":1,"d":"100.0%"}},{"v":1,"d":"100.0%"},{"v":1,"d":"100.0%"},{"v":1,"d":"100.0%"}]
[null,"AVIE + CAPI + PER",null,"2027-12-31",{"$nulls":6},"UC",2027,2028,2029,2030,2031]
[null,"Flux","Euro","UC",{"$nulls":6},"Poids AVIE (primes)",{"$f":"(Primes!$M$6/Primes!$M$15)","v":{"v":0.9250561568307126,"d":"92.5%"}},{"$f":"((Primes!$M$6+Primes!$N$6)/(Primes!$M$15+Primes!$N$15))","v":{"v":0.9219074844074844,"d":"92.2%"}},{"$f":"((Primes!$M$6+Primes!$N$6+Primes!$O$6)/(Primes!$M$15+Primes!$N$15+Primes!$O$15))","v":{"v":0.9142981272723115,"d":"91.4%"}},{"$f":"((Primes!$M$6+Primes!$N$6+Primes!$O$6+Primes!$P$6)/(Primes!$M$15+Primes!$N$15+Primes!$O$15+Primes!$P$15))","v":{"v":0.9069518569840986,"d":"90.7%"}},{"$f":"((Primes!$M$6+Primes!$N$6+Primes!$O$6+Primes!$P$6+Primes!$Q$6)/(Primes!$M$15+Primes!$N$15+Primes!$O$15+Primes!$P$15+Primes!$Q$15))","v":{"v":0.9001517032133499,"d":"90.0%"}}]
[null,"Primes acquises pour les 12 derniers mois VIE UC (N) - Earn life-ul","-",{"$f":"(Primes!$M$6)*(1-Actif!$E$28/100)+Primes!$M$12+D16","v":{"v":69756720,"d":"69,756,720"}},{"$nulls":6},"Poids PER (primes)",{"$f":"(Primes!$M$9/Primes!$M$15)","v":{"v":0.07065550336940984,"d":"7.1%"}},{"$f":"((Primes!$M$9+Primes!$N$9)/(Primes!$M$15+Primes!$N$15))","v":{"v":0.0738911988911989,"d":"7.4%"}},{"$f":"((Primes!$M$9+Primes!$N$9+Primes!$O$9)/(Primes!$M$15+Primes!$N$15+Primes!$O$15))","v":{"v":0.07971097340680951,"d":"8.0%"}},{"$f":"((Primes!$M$9+Primes!$N$9+Primes!$O$9+Primes!$P$9)/(Primes!$M$15+Primes!$N$15+Primes!$O$15+Primes!$P$15))","v":{"v":0.08492598131354014,"d":"8.5%"}},{"$f":"((Primes!$M$9+Primes!$N$9+Primes!$O$9+Primes!$P$9+Primes!$Q$9)/(Primes!$M$15+Primes!$N$15+Primes!$O$15+Primes!$P$15+Primes!$Q$15))","v":{"v":0.08990024364455478,"d":"9.0%"}}]
[null,"Primes acquises pour les 12 derniers mois VIE Euros (N) - Earn life",{"$f":"Primes!$M$6*(Actif!$E$28/100)+C17","v":{"v":28183280.000000004,"d":"28,183,280"}},"-",{"$nulls":6},"Poids CAPI (primes)",{"$f":"(Primes!$M$12/Primes!$M$15)","v":{"v":0.004288339799877476,"d":"0.4%"}},{"$f":"((Primes!$M$12+Primes!$N$12)/(Primes!$M$15+Primes!$N$15))","v":{"v":4.201316701316701E-3,"d":"0.4%"}},{"$f":"((Primes!$M$12+Primes!$N$12+Primes!$O$12)/(Primes!$M$15+Primes!$N$15+Primes!$O$15))","v":{"v":0.00599089932087897,"d":"0.6%"}},{"$f":"((Primes!$M$12+Primes!$N$12+Primes!$O$12+Primes!$P$12)/(Primes!$M$15+Primes!$N$15+Primes!$O$15+Primes!$P$15))","v":{"v":0.00812216170236119,"d":"0.8%"}},{"$f":"((Primes!$M$12+Primes!$N$12+Primes!$O$12+Primes!$P$12+Primes!$Q$12)/(Primes!$M$15+Primes!$N$15+Primes!$O$15+Primes!$P$15+Primes!$Q$15))","v":{"v":0.009948053142095343,"d":"1.0%"}}]
[null,"Primes acquises sur les 12 mois précédents les 12 derniers mois VIE UC (N-1) - pEarn life-ul","-",0]
[null,"Primes acquises sur les 12 mois précédents les 12 derniers mois VIE Euros (N-1) - pEarn life",0,"-",{"$nulls":7},{"$f":"SUM(L12:L14)","v":{"v":1,"d":"100.0%"}},{"$f":"SUM(M12:M14)","v":{"v":1,"d":"100.0%"}},{"$f":"SUM(N12:N14)","v":{"v":1,"d":"100.0%"}},{"$f":"SUM(O12:O14)","v":{"v":1,"d":"100.0%"}},{"$f":"SUM(P12:P14)","v":{"v":1,"d":"100.0%"}}]
[null,"Montant de frais engagé au titre des contrats UC (12 derniers mois) (Expul)","-",{"$f":"((-'BP Assurance'!$B$24)*$L$12+(-'BP Assurance'!$B$27-'BP Assurance'!$B$32)*$L$12-'BP Assurance'!$B$17*$L$12)*(1-Actif!$E$28/100)+D20","v":{"v":1615660.2171574603,"d":"1,615,660"}},"répartition au regard du mix Euro / UC (idem split collecte) - yc comm distribution",{"$nulls":5},"EURO",2027,2028,2029,2030,2031]
[null,"Montant de frais engagé au titre des contrats euros (12 derniers mois)",{"$f":"((-'BP Assurance'!$B$24)*$L$12+(-'BP Assurance'!$B$27-'BP Assurance'!$B$32)*$L$12-'BP Assurance'!$B$17*$L$12)*(Actif!$E$28/100)+C21","v":{"v":656717.0221638624,"d":"656,717"}},"-","répartition au regard du mix Euro / UC (idem split collecte) - yc comm distribution",{"$nulls":5},"Poids AVIE (primes)",{"$f":"(Primes!$M$6/(Primes!$M$15-Primes!$M$12))","v":{"v":0.9290401968826907,"d":"92.9%"}},{"$f":"((Primes!$M$6+Primes!$N$6)/(Primes!$M$15+Primes!$N$15-Primes!$M$12-Primes!$N$12))","v":{"v":0.9257970510199643,"d":"92.6%"}},{"$f":"((Primes!$M$6+Primes!$N$6+Primes!$O$6)/(Primes!$M$15+Primes!$N$15+Primes!$O$15-Primes!$M$12-Primes!$N$12-Primes!$O$12))","v":{"v":0.9198086080375423,"d":"92.0%"}},{"$f":"((Primes!$M$6+Primes!$N$6+Primes!$O$6+Primes!$P$6)/(Primes!$M$15+Primes!$N$15+Primes!$O$15+Primes!$P$15-Primes!$M$12-Primes!$N$12-Primes!$O$12-Primes!$P$12))","v":{"v":0.9143785877308251,"d":"91.4%"}},{"$f":"((Primes!$M$6+Primes!$N$6+Primes!$O$6+Primes!$P$6+Primes!$Q$6)/(Primes!$M$15+Primes!$N$15+Primes!$O$15+Primes!$P$15+Primes!$Q$15-Primes!$M$12-Primes!$N$12-Primes!$O$12-Primes!$P$12-Primes!$Q$12))","v":{"v":0.9091964376921148,"d":"90.9%"}}]
[{"$nulls":10},"Poids PER (primes)",{"$f":"(Primes!$M$9/(Primes!$M$15-Primes!$M$12))","v":{"v":0.07095980311730928,"d":"7.1%"}},{"$f":"((Primes!$M$9+Primes!$N$9)/(Primes!$M$15+Primes!$N$15-Primes!$M$12-Primes!$N$12))","v":{"v":0.07420294898003567,"d":"7.4%"}},{"$f":"((Primes!$M$9+Primes!$N$9+Primes!$O$9)/(Primes!$M$15+Primes!$N$15+Primes!$O$15-Primes!$M$12-Primes!$N$12-Primes!$O$12))","v":{"v":0.08019139196245773,"d":"8.0%"}},{"$f":"((Primes!$M$9+Primes!$N$9+Primes!$O$9+Primes!$P$9)/(Primes!$M$15+Primes!$N$15+Primes!$O$15+Primes!$P$15-Primes!$M$12-Primes!$N$12-Primes!$O$12-Primes!$P$12))","v":{"v":0.08562141226917491,"d":"8.6%"}},{"$f":"((Primes!$M$9+Primes!$N$9+Primes!$O$9+Primes!$P$9+Primes!$Q$9)/(Primes!$M$15+Primes!$N$15+Primes!$O$15+Primes!$P$15+Primes!$Q$15-Primes!$M$12-Primes!$N$12-Primes!$O$12-Primes!$P$12-Primes!$Q$12))","v":{"v":0.09080356230788518,"d":"9.1%"}}]
[null,"PER isolé",null,"2027-12-31",{"$nulls":6},"Poids CAPI (primes)"]
[null,"Flux","Euro","UC"]
[null,"Primes acquises pour les 12 derniers mois VIE UC (N) - Earn life-ul","-",{"$f":"Primes!$M$9*(1-Actif!$E$28/100)","v":{"v":4920120,"d":"4,920,120"}}]
[null,"Primes acquises pour les 12 derniers mois VIE Euros (N) - Earn life",{"$f":"Primes!$M$9*(Actif!$E$28/100)","v":{"v":1999880.0000000002,"d":"1,999,880"}},"-"]
[null,"Primes acquises sur les 12 mois précédents les 12 derniers mois VIE UC (N-1) - pEarn life-ul","-",0]
[null,"Primes acquises sur les 12 mois précédents les 12 derniers mois VIE Euros (N-1) - pEarn life",0,"-"]
[null,"Montant de frais engagé au titre des contrats UC (12 derniers mois) (Expul)","-",{"$f":"((-'BP Assurance'!$B$24)*$L$13+(-'BP Assurance'!$B$27-'BP Assurance'!$B$32)*$L$13-'BP Assurance'!$B$17*$L$13)*(1-Actif!$E$28/100)","v":{"v":114646.93091396254,"d":"114,647"}},"répartition au regard du mix Euro / UC (idem split collecte) - yc comm distribution + il manque les FGSI"]
[null,"Montant de frais engagé au titre des contrats euros (12 derniers mois)",{"$f":"((-'BP Assurance'!$B$24)*$L$13+(-'BP Assurance'!$B$27-'BP Assurance'!$B$32)*$L$13-'BP Assurance'!$B$17*$L$13)*(Actif!$E$28/100)","v":{"v":46600.510596533306,"d":"46,601"}},"-","répartition au regard du mix Euro / UC (idem split collecte) - yc comm distribution + il manque les FGSI"]
[]
[null,"AVIE + CAPI + PER",null,"2028-12-31"]
[null,"Flux","Euro","UC"]
[null,"Primes acquises pour les 12 derniers mois VIE UC (N) - Earn life-ul","-",{"$f":"Primes!$N$6*(1-Actif!$E$28/100)+Primes!$N$12+D34","v":{"v":94679290,"d":"94,679,290"}}]
[null,"Primes acquises pour les 12 derniers mois VIE Euros (N) - Earn life",{"$f":"Primes!$N$6*(Actif!$E$28/100)+C35","v":{"v":38260710.00000001,"d":"38,260,710"}},"-"]
[null,"Primes acquises sur les 12 mois précédents les 12 derniers mois VIE UC (N-1) - pEarn life-ul","-",{"$f":"D7","v":{"v":69756720,"d":"69,756,720"}}]
[null,"Primes acquises sur les 12 mois précédents les 12 derniers mois VIE Euros (N-1) - pEarn life",{"$f":"C8","v":{"v":28183280.000000004,"d":"28,183,280"}},"-"]
[null,"Montant de frais engagé au titre des contrats UC (12 derniers mois) (Expul)","-",{"$f":"((-'BP Assurance'!$C$24)*$M$12+(-'BP Assurance'!$C$27-'BP Assurance'!$C$32)*$M$12-'BP Assurance'!$C$17*$M$12)*(1-Actif!$E$28/100)+D38","v":{"v":2054585.2920159304,"d":"2,054,585"}},"répartition au regard du mix Euro / UC (idem split collecte) - yc comm distribution"]
[null,"Montant de frais engagé au titre des contrats euros (12 derniers mois)",{"$f":"((-'BP Assurance'!$C$24)*$M$12+(-'BP Assurance'!$C$27-'BP Assurance'!$C$32)*$M$12-'BP Assurance'!$C$17*$M$12)*(Actif!$E$28/100)+C39","v":{"v":835126.7923946611,"d":"835,127"}},"-","répartition au regard du mix Euro / UC (idem split collecte) - yc comm distribution"]
[]
[null,"PER isolé",null,"2028-12-31"]
[null,"Flux","Euro","UC"]
[null,"Primes acquises pour les 12 derniers mois VIE UC (N) - Earn life-ul","-",{"$f":"Primes!$N$9*(1-Actif!$E$28/100)","v":{"v":7209540,"d":"7,209,540"}}]
[null,"Primes acquises pour les 12 derniers mois VIE Euros (N) - Earn life",{"$f":"Primes!$N$9*(Actif!$E$28/100)","v":{"v":2930460.0000000005,"d":"2,930,460"}},"-"]
[null,"Primes acquises sur les 12 mois précédents les 12 derniers mois VIE UC (N-1) - pEarn life-ul","-",{"$f":"D16","v":{"v":4920120,"d":"4,920,120"}}]
[null,"Primes acquises sur les 12 mois précédents les 12 derniers mois VIE Euros (N-1) - pEarn life",{"$f":"C17","v":{"v":1999880.0000000002,"d":"1,999,880"}},"-"]
[null,"Montant de frais engagé au titre des contrats UC (12 derniers mois) (Expul)","-",{"$f":"((-'BP Assurance'!$C$24)*$M$13+(-'BP Assurance'!$C$27-'BP Assurance'!$C$32)*$M$13-'BP Assurance'!$C$17*$M$13)*(1-Actif!$E$28/100)","v":{"v":152456.28759858976,"d":"152,456"}},"répartition au regard du mix Euro / UC (idem split collecte) - yc comm distribution + il manque les FGSI"]
[null,"Montant de frais engagé au titre des contrats euros (12 derniers mois)",{"$f":"((-'BP Assurance'!$C$24)*$M$13+(-'BP Assurance'!$C$27-'BP Assurance'!$C$32)*$M$13-'BP Assurance'!$C$17*$M$13)*(Actif!$E$28/100)","v":{"v":61968.870767921864,"d":"61,969"}},"-","répartition au regard du mix Euro / UC (idem split collecte) - yc comm distribution + il manque les FGSI"]
[]
[null,"AVIE + CAPI + PER",null,"2029-12-31"]
[null,"Flux","Euro","UC"]
[null,"Primes acquises pour les 12 derniers mois VIE UC (N) - Earn life-ul","-",{"$f":"Primes!$O$6*(1-Actif!$E$28/100)+Primes!$O$12+D52","v":{"v":147262800,"d":"147,262,800"}}]
[null,"Primes acquises pour les 12 derniers mois VIE Euros (N) - Earn life",{"$f":"Primes!$O$6*(Actif!$E$28/100)+C53","v":{"v":59187200.00000001,"d":"59,187,200"}},"-"]
[null,"Primes acquises sur les 12 mois précédents les 12 derniers mois VIE UC (N-1) - pEarn life-ul","-",{"$f":"D25","v":{"v":94679290,"d":"94,679,290"}}]
[null,"Primes acquises sur les 12 mois précédents les 12 derniers mois VIE Euros (N-1) - pEarn life",{"$f":"C26","v":{"v":38260710.00000001,"d":"38,260,710"}},"-"]
[null,"Montant de frais engagé au titre des contrats UC (12 derniers mois) (Expul)","-",{"$f":"((-'BP Assurance'!$D$24)*$N$12+(-'BP Assurance'!$D$27-'BP Assurance'!$D$32)*$N$12-'BP Assurance'!$D$17*$N$12)*(1-Actif!$E$28/100)+D56","v":{"v":3055284.4882321623,"d":"3,055,284"}}]
[null,"Montant de frais engagé au titre des contrats euros (12 derniers mois)",{"$f":"((-'BP Assurance'!$D$24)*$N$12+(-'BP Assurance'!$D$27-'BP Assurance'!$D$32)*$N$12-'BP Assurance'!$D$17*$N$12)*(Actif!$E$28/100)+C57","v":{"v":1241880.7554136356,"d":"1,241,881"}},"-"]
[]
[null,"PER isolé",null,"2029-12-31"]
[null,"Flux","Euro","UC"]
[null,"Primes acquises pour les 12 derniers mois VIE UC (N) - Earn life-ul","-",{"$f":"Primes!$O$9*(1-Actif!$E$28/100)","v":{"v":12655800,"d":"12,655,800"}}]
[null,"Primes acquises pour les 12 derniers mois VIE Euros (N) - Earn life",{"$f":"Primes!$O$9*(Actif!$E$28/100)","v":{"v":5144200.000000001,"d":"5,144,200"}},"-"]
[null,"Primes acquises sur les 12 mois précédents les 12 derniers mois VIE UC (N-1) - pEarn life-ul","-",{"$f":"D34","v":{"v":7209540,"d":"7,209,540"}}]
[null,"Primes acquises sur les 12 mois précédents les 12 derniers mois VIE Euros (N-1) - pEarn life",{"$f":"C35","v":{"v":2930460.0000000005,"d":"2,930,460"}},"-"]
[null,"Montant de frais engagé au titre des contrats UC (12 derniers mois) (Expul)","-",{"$f":"((-'BP Assurance'!$D$24)*$N$13+(-'BP Assurance'!$D$27-'BP Assurance'!$D$32)*$N$13-'BP Assurance'!$D$17*$N$13)*(1-Actif!$E$28/100)","v":{"v":245007.5159526424,"d":"245,008"}}]
[null,"Montant de frais engagé au titre des contrats euros (12 derniers mois)",{"$f":"((-'BP Assurance'!$D$24)*$N$13+(-'BP Assurance'!$D$27-'BP Assurance'!$D$32)*$N$13-'BP Assurance'!$D$17*$N$13)*(Actif!$E$28/100)","v":{"v":99588.14642800797,"d":"99,588"}},"-"]
[]
[null,"AVIE + CAPI + PER",null,"2030-12-31"]
[null,"Flux","Euro","UC"]
[null,"Primes acquises pour les 12 derniers mois VIE UC (N) - Earn life-ul","-",{"$f":"Primes!$P$6*(1-Actif!$E$28/100)+Primes!$P$12+D70","v":{"v":208238640,"d":"208,238,640"}}]
[null,"Primes acquises pour les 12 derniers mois VIE Euros (N) - Earn life",{"$f":"Primes!$P$6*(Actif!$E$28/100)+C71","v":{"v":83301360.00000001,"d":"83,301,360"}},"-"]
[null,"Primes acquises sur les 12 mois précédents les 12 derniers mois VIE UC (N-1) - pEarn life-ul","-",{"$f":"D43","v":{"v":147262800,"d":"147,262,800"}}]
[null,"Primes acquises sur les 12 mois précédents les 12 derniers mois VIE Euros (N-1) - pEarn life",{"$f":"C44","v":{"v":59187200.00000001,"d":"59,187,200"}},"-"]
[null,"Montant de frais engagé au titre des contrats UC (12 derniers mois) (Expul)","-",{"$f":"((-'BP Assurance'!$E$24)*$N$12+(-'BP Assurance'!$E$27-'BP Assurance'!$E$32)*$N$12-'BP Assurance'!$E$17*$N$12)*(1-Actif!$E$28/100)+D74","v":{"v":4509000.363623065,"d":"4,509,000"}}]
[null,"Montant de frais engagé au titre des contrats euros (12 derniers mois)",{"$f":"((-'BP Assurance'!$E$24)*$N$12+(-'BP Assurance'!$E$27-'BP Assurance'!$E$32)*$N$12-'BP Assurance'!$E$17*$N$12)*(Actif!$E$28/100)+C75","v":{"v":1832772.2997005149,"d":"1,832,772"}},"-"]
[]
[null,"PER isolé",null,"2030-12-31"]
[null,"Flux","Euro","UC"]
[null,"Primes acquises pour les 12 derniers mois VIE UC (N) - Earn life-ul","-",{"$f":"Primes!$P$9*(1-Actif!$E$28/100)","v":{"v":19225440,"d":"19,225,440"}}]
[null,"Primes acquises pour les 12 derniers mois VIE Euros (N) - Earn life",{"$f":"Primes!$P$9*(Actif!$E$28/100)","v":{"v":7814560.000000001,"d":"7,814,560"}},"-"]
[null,"Primes acquises sur les 12 mois précédents les 12 derniers mois VIE UC (N-1) - pEarn life-ul","-",{"$f":"D52","v":{"v":12655800,"d":"12,655,800"}}]
[null,"Primes acquises sur les 12 mois précédents les 12 derniers mois VIE Euros (N-1) - pEarn life",{"$f":"C53","v":{"v":5144200.000000001,"d":"5,144,200"}},"-"]
[null,"Montant de frais engagé au titre des contrats UC (12 derniers mois) (Expul)","-",{"$f":"((-'BP Assurance'!$E$24)*$N$13+(-'BP Assurance'!$E$27-'BP Assurance'!$E$32)*$N$13-'BP Assurance'!$E$17*$N$13)*(1-Actif!$E$28/100)","v":{"v":361583.01551816164,"d":"361,583"}}]
[null,"Montant de frais engagé au titre des contrats euros (12 derniers mois)",{"$f":"((-'BP Assurance'!$E$24)*$N$13+(-'BP Assurance'!$E$27-'BP Assurance'!$E$32)*$N$13-'BP Assurance'!$E$17*$N$13)*(Actif!$E$28/100)","v":{"v":146972.56186321902,"d":"146,973"}},"-"]
[]
[null,"AVIE + CAPI + PER",null,"2031-12-31"]
[null,"Flux","Euro","UC"]
[null,"Primes acquises pour les 12 derniers mois VIE UC (N) - Earn life-ul","-",{"$f":"Primes!$Q$6*(1-Actif!$E$28/100)+Primes!$Q$12+D88","v":{"v":256508680,"d":"256,508,680"}}]
[null,"Primes acquises pour les 12 derniers mois VIE Euros (N) - Earn life",{"$f":"Primes!$Q$6*(Actif!$E$28/100)+C89","v":{"v":102271320.00000001,"d":"102,271,320"}},"-"]
[null,"Primes acquises sur les 12 mois précédents les 12 derniers mois VIE UC (N-1) - pEarn life-ul","-",{"$f":"D61","v":{"v":208238640,"d":"208,238,640"}}]
[null,"Primes acquises sur les 12 mois précédents les 12 derniers mois VIE Euros (N-1) - pEarn life",{"$f":"C62","v":{"v":83301360.00000001,"d":"83,301,360"}},"-"]
[null,"Montant de frais engagé au titre des contrats UC (12 derniers mois) (Expul)","-",{"$f":"((-'BP Assurance'!$F$24)*$N$12+(-'BP Assurance'!$F$27-'BP Assurance'!$F$32)*$N$12-'BP Assurance'!$F$17*$N$12)*(1-Actif!$E$28/100)+D92","v":{"v":5884516.68535357,"d":"5,884,517"}}]
[null,"Montant de frais engagé au titre des contrats euros (12 derniers mois)",{"$f":"((-'BP Assurance'!$F$24)*$N$12+(-'BP Assurance'!$F$27-'BP Assurance'!$F$32)*$N$12-'BP Assurance'!$F$17*$N$12)*(Actif!$E$28/100)+C93","v":{"v":2391878.0901085543,"d":"2,391,878"}},"-"]
[]
[null,"PER isolé",null,"2031-12-31"]
[null,"Flux","Euro","UC"]
[null,"Primes acquises pour les 12 derniers mois VIE UC (N) - Earn life-ul","-",{"$f":"Primes!$Q$9*(1-Actif!$E$28/100)","v":{"v":25510680,"d":"25,510,680"}}]
[null,"Primes acquises pour les 12 derniers mois VIE Euros (N) - Earn life",{"$f":"Primes!$Q$9*(Actif!$E$28/100)","v":{"v":10369320.000000002,"d":"10,369,320"}},"-"]
[null,"Primes acquises sur les 12 mois précédents les 12 derniers mois VIE UC (N-1) - pEarn life-ul","-",{"$f":"D70","v":{"v":19225440,"d":"19,225,440"}}]
[null,"Primes acquises sur les 12 mois précédents les 12 derniers mois VIE Euros (N-1) - pEarn life",{"$f":"C71","v":{"v":7814560.000000001,"d":"7,814,560"}},"-"]
[null,"Montant de frais engagé au titre des contrats UC (12 derniers mois) (Expul)","-",{"$f":"((-'BP Assurance'!$F$24)*$N$13+(-'BP Assurance'!$F$27-'BP Assurance'!$F$32)*$N$13-'BP Assurance'!$F$17*$N$13)*(1-Actif!$E$28/100)","v":{"v":471887.58402481064,"d":"471,888"}}]
[null,"Montant de frais engagé au titre des contrats euros (12 derniers mois)",{"$f":"((-'BP Assurance'!$F$24)*$N$13+(-'BP Assurance'!$F$27-'BP Assurance'!$F$32)*$N$13-'BP Assurance'!$F$17*$N$13)*(Actif!$E$28/100)","v":{"v":191808.03345030983,"d":"191,808"}},"-"]

{"sheet":"Output-->","index":28,"n_rows":0,"n_cols":0,"rows_kept":0,"hidden":true}

{"sheet":"BPI_Annexe Technique (B)","index":29,"n_rows":84,"n_cols":38,"rows_kept":84,"hidden":true,"merged":[[6,2,6,37],[9,2,9,9],[9,10,9,37],[10,2,10,9],[10,10,10,15],[11,2,11,9],[11,10,11,15],[13,14,13,37],[16,2,16,13],[17,2,17,13],[18,2,18,13],[20,2,20,9],[20,10,20,37],[22,2,22,9],[22,10,22,37],[24,2,24,37],[25,2,25,37],[25,40,25,57],[26,2,26,37],[26,40,26,57],[27,2,27,37],[27,40,27,57],[28,2,28,37],[28,40,28,57],[29,2,29,37],[29,40,29,57],[30,2,30,37],[30,40,30,57],[31,2,31,37],[31,40,31,57],[32,2,32,37],[32,40,32,57],[33,2,33,37],[33,40,33,57],[34,2,34,37],[34,40,34,57],[35,2,35,37],[35,40,35,57],[36,2,36,37],[36,40,36,57],[37,2,37,37],[37,40,37,57],[38,2,38,37],[38,40,38,57],[39,2,39,37],[39,40,39,57],[40,2,40,37],[40,40,40,57],[41,2,41,37],[41,40,41,57],[42,2,42,37],[42,40,42,57],[43,2,43,37],[43,40,43,57],[45,2,45,37],[46,2,46,37],[47,2,47,37],[48,2,48,37],[49,2,49,37],[50,2,50,37],[51,2,51,37],[52,2,52,37],[53,2,53,37],[54,2,54,37],[55,2,55,37],[56,2,56,37],[57,2,57,37],[58,2,58,37],[59,2,59,37],[60,2,60,37],[61,2,61,37],[62,2,62,37],[63,2,63,37],[64,2,64,37],[65,2,65,37],[66,2,66,37],[67,2,67,37],[68,2,68,37],[69,2,69,37],[70,2,70,37],[71,2,71,37],[72,2,72,37],[73,2,73,37],[74,2,74,37],[75,2,75,37],[76,2,76,37],[77,2,77,37],[78,2,78,37],[79,2,79,37],[80,2,80,37],[81,2,81,37],[82,2,82,37],[83,2,83,37],[84,2,84,37],[85,2,85,37],[86,2,86,37],[87,2,87,37]]}
["Home"]
[]
[{"$nulls":9},"  B :  Présentation du programme de Recherche, Développement et Innovation - Annexe Technique "]
[]
[]
[null,null,"Merci de joindre en annexe les études préalables disponibles (techniques, commerciales, autres)."]
[null,null,"Merci de joindre, s’il y a lieu, les propositions commerciales des prestataires et sous-traitants qui interviendront dans le cadre de ce programme de recherche, développement et innovation, pour lequel un soutien de Bpifrance Financement est demandé."]
[null,null,"Si un cahier des charges/roadmap R&D récent a déjà été constitué, il n'est pas nécessaire de le réécrire, il peut être transmis après avoir été complété par les informations qui n'y figurent pas."]
[]
[null,null,"Objet du Programme d'Innovation",{"$nulls":7},"Développement d'un système d'information \"digital native\" pour l'assurance vie et produits d'épargne assimilés."]
[null,null,"Date de Démarrage",{"$nulls":7},"2025-07-01"]
[null,null,"Duré du Programme en mois",{"$nulls":7},12]
[]
[{"$nulls":14},"Planning Projet"]
[]
[{"$nulls":14},"M1","M2 ","M3","M4","M5","M6","M7","M8","M9","M10","M11","M12","M13","M14","M15","M16","M17","M18","M19","M20","M21","M22","M23","M24"]
[null,null,"T1 Conception fonctionnelle"]
[null,null,"T2 Développement, test et déploiement"]
[null,null,"T3 Audits de sécurité et ouverture de service"]
[]
[null,null,"Description programme d'innovation",{"$nulls":7},"Création d'un système d'information assurantiel \"digital native\" :\n- Création de plusieurs API (Application Programming Interfaces) à destination des distributeurs d'assurance vie\n- Création de frontaux Web à destination des assureurs\n- Création de frontaux Web à destination des assurés (obligation réglementaire)"]
[]
[null,null,"Caractère innovant et état de l'art",{"$nulls":7},"A ce jour, les assureurs proposant ces produits sont de grandes structures (Axa, SwissLife, Generali…), dont le système d'information existe depuis des décennies. Ce passé est en fait un passif, puisqu'il se traduit concrètement par :\n- Des technologies vieillissantes telles que l'AS400 d'IBM, que presque plus personne sur le marché du développement ne connaît ni ne maîtrise (par opposition à JavaScript/TypeScript, durablement implantée) ;\n- Des méthodologies en cascade (Cycle en V), supplantées depuis par l'Agilité ;\n- Des organisations rigides, qui empêchent l'innovation ;\n- La nécessité d'interfacer tout nouveau développement informatique avec le \"legacy\" de ces organisations.\n\nPar contraste, B Life propose de s'affranchir de ces contraintes en partant de la page blanche et en construisant à l'état de l'art (méthodologies, architectures, technologies…), avec les meilleurs talents tech du marché européen.\n\nPanorama des architectures / méthodologies / technologies qui seront utilisées :\n- Démarche UX et Agile (Product Discovery, POCs, Walking Skeleton, MVP, Example Mapping, User Story Mapping) + pratiques de l'Artisanat logiciel (Pair/Mob Programming, Domain-Driven Design, Test-Driven Development, Trunk-Based Development, Refactoring en continu, Programmation fonctionnelle, Living Documentation) + DevSecOps\n- Architecture client/serveur via HTTP, API REST, SPA/SSR\n- JavaScript, TypeScript, PostgreSQL, Docker\n- Blockchain pour la gestion du passif"]
[]
[null,null,"T1 : Conception fonctionnelle"]
[null,null,"Découpage de la Tâche"]
[null,null,"T1.1 Discovery"]
[null,null,"T1.2 Modularisation fonctionnelle"]
[null,null,"T1.3 Conception fonctionnelle et rédaction des tests d'acceptation"]
[null,null,"T1.4 Amélioration continue (rétrospectives périodiques et résolution de problème selon besoins)"]
[]
[null,null,"Développements et Enjeux Techniques Associés"]
[null,null,"- Discovery : détermination et qualification des problèmes à résoudre, afin de produire du logiciel utile pour ses utilisateurs ;\n- Modularisation fonctionnelle du système d'information à l'aide des heuristiques du Domain-Driven Design afin de lui permettre d'évoluer facilement sur le long terme (éviter les couplages à grande échelle) ;\n- Détermination du macro-périmètre fonctionnel du MVP, à affiner au fur et à mesure de la conception fonctionnelle ;\n- Conception fonctionnelle : ateliers d'Example Mapping (règles de gestion + exemples/tests d'acceptation), découpage et priorisation en continu."]
[null,null,"Partenariats, sous-traitance et prestations externes envisagés"]
[null,null,"- Sous-traitance : Hubvizory (conception fonctionnelle), en appui rédactionnel de B-life, qui conserve la compétence décisionnelle ;\n- Sous-traitance : Ludotech, pour la participation à la conception fonctionnelle et à la définition des tests ;\n- Sous-traitance : FeverToken pour le cadrage stratégique, fonctionnel et technique d'un plateforme de tokenisation ;\n- Sous-traitance : TwoFortyFive, conseil technique indépendant, afin de veiller aux intérêts de B-life dans le cadre de ces contrats de sous-traitance ;\n- Partenariats : Advize, fournisseur d'outillage pour les distributeurs d'Assurance Vie, pour la mise en place de frontaux à destination des distributeurs et des assurés."]
[null,null,"Conditions et facteurs clé de succès / Risques identifiés / Verrous technologiques identifiés"]
[null,null,"- Facteur clé de succès : parfaite connaissance du domaine assurantiel, portée par les 3 fondateurs\n- Risques : délai court pour mise en place du MVP (la clé pour amoindrir ce risque étant un découpage fonctionnel fin)\n- Risques : obtention de l'agrément ACPR\n- Risques : sous-traitance partielle de la conception fonctionnelle à Hubvizory\n- Pas de verrou technologique en tant que tel"]
[null,null,"Propriété intellectuelle, Obligations réglementaires"]
[null,null,"- ACPR : respect des contraintes réglementaires dont les directives DORA et RGPD\n- La propriété intellectuelle reste la propriété de B-Life (revue des contrats par un cabinet d'avocat spécialisé IP)"]
[null,null,"Livrables"]
[null,null,"L1.1 Carte des modules fonctionnels (\"bounded contexts\")"]
[null,null,"L1.2 Backlog produit et vision dynamique via User Story Mapping"]
[null,null,"L1.3 User Stories dans GitHub (règles + exemples/tests d'acceptation), au fur et à mesure de la production"]
[null,null,"L1.4 Schéma technique de tokenisation"]
[]
[null,null,"T2 : Développement, test et déploiement"]
[null,null,"Découpage de la Tâche"]
[null,null,"T2.1 Mise en place d'un Walking Skeleton, puis conception technique au fur et à mesure des User Stories"]
[null,null,"T2.2 Mise en place de la pipeline de CI/CD (intégration et déploiement continus des développements) avant démarrage des développements"]
[null,null,"T2.3 Développement guidé par les tests (Test-Driven Development) ou Développement puis tests (Test-After)"]
[null,null,"T2.4 Amélioration continue (rétrospectives périodiques et résolution de problème selon besoins)"]
[]
[null,null,"Développements et Enjeux Techniques Associés"]
[null,null,"- L'enjeu principal est la qualité : il est facile de produire rapidement du code qui fonctionne, mais produire du code qui sera en mesure d'évoluer dans le temps pour ajouter de nouvelles fonctionnalités requiert beaucoup de savoir-faire. En la matière, on cherchera donc à limiter la dette technique.\n- Mise en place d'un Walking Skeleton, c'est-à-dire d'une première fonctionnalité qui va permettre de traverser toutes les couches, de la base de données jusqu'au navigateur, et de poser les bases architecturales et méthodologiques pour produire du code \"production ready\". Un Walking Skeleton permet de développer à pleine puissance jusqu'au MVP en minimisant la dette technique."]
[null,null,"Partenariats, sous-traitance et prestations externes envisagés"]
[null,null,"- Sous-traitance : Ludotech (développements informatiques), avec transfert de connaissance en vue d'une ré-internalisation dès obtention de l'agrément ACPR ;\n- Sous-traitance : Hubvizory (conception fonctionnelle), pour la recette des développements, en particulier les tests d'acceptation ;\n- Sous-traitance : 1 conseiller technique indépendant, afin de veiller aux intérêts de B-life dans le cadre de ces contrats de sous-traitance ;\n- Partenariats : Advize, fournisseur d'outillage pour les distributeurs d'Assurance Vie, pour la mise en place de frontaux à destination des distributeurs et des assurés."]
[null,null,"Conditions et facteurs clé de succès / Risques identifiés"]
[null,null,"- Facteurs clés de succès : recours à des équipes d'excellent niveau (Ludotech) + voix contradictoire du conseiller technique indépendant.\n- Facteurs clés de succès : anticipation au maximum afin de ne pas accumuler de dette sur le sujet.\n- Risques : hébergement par un Cloud Provider non soumis au CLOUD Act, donc européen a minima et idéalement français, Sec Num Cloud.\n- Risques : parce que recruter des développeurs avant obtention de l'agrément ACPR est un risque que nous ne souhaitons pas prendre, nous faisons appel à de la sous-traitance (Ludotech). Cette sous-traitance conduit elle-même au risque de ne pas acquérir la compétence de développement en interne (B-life). Ce risque est atténué par le fait de travailler sur des architectures et technologies standard (API REST, SPA/SSR, JavaScript/TypeScript) ainsi que la mise en place d'un biseau pour un transfert de connaissance progressif et le lancement des premiers recrutements dans les mois qui précèdent l'agrément.\n- Risques : le partenariat avec Advize permet une intégration verticale (Assureur + Distributeur). Néanmoins, cette intégration étant recherchée au travers d'un partenariat avec un tiers, elle est hors de la zone de contrôle de B-life. Pour cette raison, cette intégration verticale est considérée comme une simple opportunité et non comme le cœur de la proposition de valeur de B-life."]
[null,null,"Propriété intellectuelle, Obligations réglementaires"]
[null,null,"- ACPR : respect des contraintes réglementaires dont les directives DORA et RGPD\n- La propriété intellectuelle reste la propriété de B-Life (revue des contrats par un cabinet d'avocat spécialisé IP)"]
[null,null,"Livrables"]
[null,null,"L2.1 Walking Skeleton"]
[null,null,"L2.2 Code source, tests automatisés, configuration de l'hébergement et documentation versionnés"]
[null,null,"L2.3 Déploiement en continu sur environnement de staging ou de pré-production"]
[]
[null,null,"T3 : Audits de sécurité et ouverture de service"]
[null,null,"Découpage de la Tâche"]
[null,null,"T3.1 Audit de sécurité lors de la mise en place du Walking Skeleton"]
[null,null,"T3.2 Audit de sécurité à mi-chemin du MVP pour s'assurer du suivi des bonnes pratiques"]
[null,null,"T3.3 Tests d'intrusion (\"pentests\") en pré-production"]
[null,null,"T3.4 Ouverture de service"]
[]
[null,null,"Développements et Enjeux Techniques Associés"]
[null,null,"- Lors du Walking Skeleton :\n1/ Poser les bases de la sécurité (authentification, gestion des droits applicatifs, gestion des secrets, architecture réseau, politique de gestion des dépendances, scan des dépendances, logging/monitoring)\n2/ Formation des équipes de développement à la conformité RGPD et au Top 10 OWASP\n3/ Mise en place d'outils de SAST (Static Application Security Testing) et DAST (Dynamic Application Security Testing)\n- Tests d'intrusion en environnement de pré-production"]
[null,null,"Partenariats, sous-traitance et prestations externes envisagés"]
[null,null,"- Sous-traitance : recours à un expert en sécurité informatique (à identifier rapidement)\n- Sous-traitance : Ludotech (développements informatiques), avec transfert de connaissance en vue d'une ré-internalisation dès obtention de l'agrément ACPR ;\n- Sous-traitance : 1 conseiller technique indépendant, afin de veiller aux intérêts de B-life dans le cadre de ces contrats de sous-traitance ;"]
[null,null,"Conditions et facteurs clé de succès / Risques identifiés"]
[null,null,"- Facteurs clés de succès : recours à un expert en sécurité informatique.\n- Facteurs clés de succès : anticipation au maximum afin de ne pas accumuler de dette sur le sujet."]
[null,null,"Propriété intellectuelle, Obligations réglementaires"]
[null,null,"- ACPR\n- RGPD"]
[null,null,"Livrables"]
[null,null,"L3.1 Walking Skeleton"]
[null,null,"L3.2 Rapport d'audit à mi-chemin du MVP"]
[null,null,"L3.3 Rapport des tests de pénétration"]

{"sheet":"BPI_CR (D)","index":30,"n_rows":64,"n_cols":7,"rows_kept":64,"hidden":true,"merged":[[2,2,2,6],[3,4,3,6],[4,4,4,6],[7,1,7,2],[9,1,9,2],[10,1,10,2],[11,1,11,2],[12,1,12,2],[13,1,13,2],[14,1,14,2],[15,1,15,2],[16,1,16,2],[17,1,17,2],[18,1,18,2],[19,1,19,2],[20,1,20,2],[21,1,21,2],[22,1,22,2],[23,1,23,2],[24,1,24,2],[25,1,25,2],[26,1,26,2],[27,1,27,2],[28,1,28,2],[29,1,29,2],[30,1,30,2],[31,1,31,2],[32,1,32,2],[33,1,33,2],[34,1,34,2],[35,1,35,2],[37,1,37,2],[38,1,38,2],[39,1,39,2],[41,1,41,2],[44,4,44,6],[46,1,46,2],[47,1,47,2],[48,1,48,2],[51,1,51,2],[52,1,52,2],[53,1,53,2],[54,1,54,2],[55,1,55,2],[56,1,56,2],[57,1,58,1],[59,1,59,2],[60,1,60,2],[61,1,61,2],[62,1,62,2],[63,1,63,2]]}
[]
[]
[null,null,"    D :  Comptes de résultats prévisionnels de l'entreprise"]
[]
[{"$nulls":4},"MONTANTS EN MILLIERS D'EUROS"]
[]
[]
[{"$nulls":3},"2025-2026","2026-2027",2028,2029]
[{"$nulls":3},"18 mois","18 mois","12 mois","12 mois"]
[null,"Chiffre d'affaires (HT) total de l'entreprise",null,null,{"$f":"'BP Financier'!C23","v":{"v":97940000,"d":"97,940,000"}},{"$f":"'BP Financier'!D23","v":{"v":132940000,"d":"132,940,000"}},{"$f":"'BP Financier'!E23","v":{"v":206450000,"d":"206,450,000"}}]
[null,"     dont chiffre d'affaires généré par les résultats du programme",null,null,{"$f":"E10","v":{"v":97940000,"d":"97,940,000"}},{"v":132940000,"d":"132,940,000"},{"v":206450000,"d":"206,450,000"}]
[null,"     dont ventes à l'exportation"]
[null," + production immobilisée",null,{"$f":"'BPI_Annexe financière'!M53","v":{"v":1160836,"d":"1,160,836 "}},{"$f":"'BP Financier'!C77","v":0},{"$f":"'BP Financier'!D77","v":0},{"$f":"'BP Financier'!E77","v":0}]
[null," + production stockée"]
[null,"A. TOTAL DES PRODUITS D'EXPLOITATION",null,{"$f":"D10+D13+D14","v":{"v":1160836,"d":"1,160,836 "}},{"v":97940000,"d":"97,940,000 "},{"v":132940000,"d":"132,940,000 "},{"v":206450000,"d":"206,450,000 "}]
[null,"Achat de matières premières et marchandises"]
[null,"+/- Variation de stock de matières et marchandises"]
[null,"+ Autres achats et charges externes",null,{"$f":"SUM('BPI_Plan de trésorerie (F)'!D72:F72)","v":{"v":1568728,"d":"1,568,728 "}},{"$f":"'BP Financier'!C32+'BP Financier'!C43+SUM('BP Financier'!C108:C119)-'BP Financier'!C110+SUM('BP Financier'!C87:C92)-'BP Financier'!C90-'BP Financier'!C28-'BP Financier'!C39","v":{"v":99697540.72535647,"d":"99,697,541 "}},{"$f":"'BP Financier'!D32+'BP Financier'!D43+SUM('BP Financier'!D108:D119)-'BP Financier'!D110+SUM('BP Financier'!D87:D92)-'BP Financier'!D90-'BP Financier'!D28-'BP Financier'!D39","v":{"v":137759600.85013008,"d":"137,759,601 "}},{"$f":"'BP Financier'!E32+'BP Financier'!E43+SUM('BP Financier'!E108:E119)-'BP Financier'!E110+SUM('BP Financier'!E87:E92)-'BP Financier'!E90-'BP Financier'!E28-'BP Financier'!E39","v":{"v":215676293.7030463,"d":"215,676,294 "}}]
[null,"     dont sous traitance"]
[null,"     dont crédit bail - redevances"]
[null,"B. TOTAL CONSOMMATION EN PROVENANCE DE TIERS",null,{"$f":"D16+D17+D18","v":{"v":1568728,"d":"1,568,728 "}},{"v":99697540.72535647,"d":"99,697,541 "},{"$f":"SUM(F16:F18)","v":{"v":137759600.85013008,"d":"137,759,601 "}},{"v":215676293.7030463,"d":"215,676,294 "}]
[null,"C. VALEUR AJOUTEE (A-B)",null,{"$f":"D15-D21","v":{"v":-407892,"d":"-407,892 "}},{"v":-1757540.7253564745,"d":"-1,757,541 "},{"v":-4819600.850130081,"d":"-4,819,601 "},{"v":-9226293.703046292,"d":"-9,226,294 "}]
[null,"+ Subvention d'exploitation"]
[null,"- Impôts et taxes",null,null,{"$f":"SUM('BP Financier'!C93:C97)","v":{"v":30576.2,"d":"30,576 "}},{"$f":"SUM('BP Financier'!D93:D97)","v":{"v":229787.5,"d":"229,788 "}},{"$f":"SUM('BP Financier'!E93:E97)","v":{"v":366974.2,"d":"366,974 "}}]
[null,"- Charges de personnel",null,null,{"$f":"'BP Financier'!C104","v":{"v":1713112.4449315069,"d":"1,713,112 "}},{"$f":"'BP Financier'!D104","v":{"v":1374241,"d":"1,374,241 "}},{"$f":"'BP Financier'!E104","v":{"v":1656241,"d":"1,656,241 "}}]
[null,"D. EXCEDENT BRUT D'EXPLOITATION",null,{"$f":"D22+D23-D24-D25","v":{"v":-407892,"d":"-407,892 "}},{"v":-3501229.3702879813,"d":"-3,501,229 "},{"v":-6423629.350130081,"d":"-6,423,629 "},{"v":-11249508.903046291,"d":"-11,249,509 "}]
[null,"- Dotation aux amortissements",null,null,{"$f":"'BP Financier'!C138","v":0},{"$f":"-'BP Financier'!D138","v":0},{"$f":"-'BP Financier'!E138","v":0}]
[null,"E. RESULTAT D'EXPLOITATION",null,{"$f":"D26-D27","v":{"v":-407892,"d":"-407,892 "}},{"v":-3501229.3702879813,"d":"-3,501,229 "},{"v":-6423629.350130081,"d":"-6,423,629 "},{"v":-11249508.903046291,"d":"-11,249,509 "}]
[null,"+ Produits financiers",null,null,{"$f":"'BP Financier'!C57+'BP Financier'!C69+'BP Financier'!C70+'BP Financier'!C75+'BP Financier'!C76+'BP Financier'!C40","v":{"v":2059576.242727899,"d":"2,059,576 "}},{"$f":"'BP Financier'!D57+'BP Financier'!D69+'BP Financier'!D70++'BP Financier'!D75+'BP Financier'!D76+'BP Financier'!D40","v":{"v":5773526.920794763,"d":"5,773,527 "}},{"$f":"'BP Financier'!E57+'BP Financier'!E69+'BP Financier'!E70+'BP Financier'!E75+'BP Financier'!E76+'BP Financier'!E40","v":{"v":11637193.13973751,"d":"11,637,193 "}}]
[null,"- Charges financières",null,null,{"$f":"'BP Financier'!C90+'BP Financier'!C110+'BP Financier'!C86","v":{"v":143270.5850552466,"d":"143,271 "}},{"$f":"'BP Financier'!D90+'BP Financier'!D110+'BP Financier'!D86","v":{"v":145391.39889066864,"d":"145,391 "}},{"$f":"'BP Financier'!E110+'BP Financier'!E90+'BP Financier'!E86","v":{"v":148804.96409650787,"d":"148,805 "}}]
[null,"F. RESULTAT COURANT AVANT IMPOTS",null,{"$f":"D28+D29-D30","v":{"v":-407892,"d":"-407,892 "}},{"v":-1584923.7126153288,"d":"-1,584,924 "},{"v":-795493.8282259871,"d":"-795,494 "},{"v":238879.27259471,"d":"238,879 "}]
[null,"+ Produits exceptionnels"]
[null,"- Charges exceptionnelles"]
[null,"- Participation des salariés"]
[null,"- Impôts sur les bénéfices"]
[null,"G. RESULTAT DE L'EXERCICE",null,{"$f":"D31+D32-D33-D34-D35","v":{"v":-407892,"d":"-407,892 "}},{"v":-1584923.7126153288,"d":"-1,584,924 "},{"v":-795493.8282259871,"d":"-795,494 "},{"v":238879.27259471,"d":"238,879 "}]
[]
[null,"Effectifs",null,null,{"$f":"'BP Financier'!C105","v":{"v":12.5,"d":"13 "}},{"$f":"'BP Financier'!D105","v":{"v":14.5,"d":"15 "}},{"$f":"'BP Financier'!E105","v":{"v":17.5,"d":"18 "}}]
[null,"CAPACITE D'AUTOFINANCEMENT\n(G + amortissements + ou - résultats exceptionnels)",null,{"$f":"D36+D27+D33-D32","v":{"v":-407892,"d":"-407,892"}},{"v":-1584923.7126153288,"d":"-1,584,924"},{"v":-795493.8282259871,"d":"-795,494 "},{"v":238879.27259471,"d":"238,879 "}]
[null,"Montant du programme de RDI passé en charges d'exploitation"]
[]
[null,"(1)  Exercice suivant le dernier bilan produit au dossier."]
[]
[]
[{"$nulls":4},"MONTANTS EN MILLIERS D'EUROS"]
[]
[{"$nulls":3},"Exercice en cours (1)",{"$f":"E8","v":"2026-2027"},2028,2029]
[null,"Production Immobilisée",null,{"$f":"D13","v":{"v":1160836,"d":"1,160,836 "}},0,0,0]
[null,"Investissements courants"]
[null,"Besoin en fonds","Augmentation (+)"]
[null,"de roulement (5)","Diminution (-)"]
[null,"Remboursement de crédit"]
[null,"Divers (dont distribution de dividendes)"]
[null,"TOTAL DES BESOINS",null,{"$f":"SUM(D48:D53)","v":{"v":1160836,"d":"1,160,836 "}},0,0,0]
[null,"Augmentation de capital"]
[null,"Apports en comptes courants"]
[null,"Capacité d'autofinancement"]
[null,"Emprunts ","Déjà négociés"]
[null,null,"A négocier"]
[null,"Aide Bpifrance envisageable"]
[null,"Autres aides publiques prévues"]
[null,"TOTAL DES RESSOURCES",null,{"$f":"SUM(D55:D61)","v":0},0,0,0]
[null,"SOLDE DE TRESORERIE",null,{"$f":"D62-D54","v":{"v":-1160836,"d":"-1,160,836 "}},0,0,0]
[null,"CUMUL DE TRESORERIE ",{"$nulls":3},{"$f":"E64+F63","v":0},0]

{"sheet":"BPI_Plan de trésorerie (F)","index":31,"n_rows":86,"n_cols":28,"rows_kept":86,"hidden":true}
[]
[{"$nulls":3},"F :  Plan de trésorerie prévisionnel (sur 24 mois)"]
[]
[]
[{"$nulls":3},"MONTANTS EN EUROS"]
[]
[{"$nulls":3},"T0 (dépôt du dossier)","2025-07-01","2025-08-01","2025-09-01","2025-10-01","2025-11-01","2025-12-01","2026-01-01","2026-02-01","2026-03-01","2026-04-01","2026-05-01","2026-06-01","2026-07-01","2026-08-01","2026-09-01","2026-10-01","2026-11-01","2026-12-01"]
[null,"Exploitation"]
[null,null,"Ventes",null,"-   €","-   €","-   €","-   €","-   €","-   €","-   €","-   €","-   €","-   €","-   €","-   €","-   €","-   €","-   €","-   €","-   €","-   €","-   €","-   €","-   €","-   €","-   €","-   €"]
[null,null,"Revenus publicitaires",null,"-   €","-   €","-   €","-   €","-   €","-   €","-   €","-   €","-   €","-   €","-   €","-   €","-   €","-   €","-   €","-   €","-   €","-   €","-   €","-   €","-   €","-   €","-   €","-   €"]
[null,null,"Abonnements",null,"-   €","-   €","-   €","-   €","-   €","-   €","-   €","-   €","-   €","-   €","-   €","-   €","-   €","-   €","-   €","-   €","-   €","-   €","-   €","-   €","-   €","-   €","-   €","-   €"]
[null,null,"Remboursement de TVA",null,"-   €","-   €","-   €","-   €","-   €","-   €","-   €","-   €","-   €","-   €","-   €","-   €","-   €","-   €","-   €","-   €","-   €","-   €","-   €","-   €","-   €","-   €","-   €","-   €"]
[null,null,"CIR",null,"-   €","-   €","-   €","-   €","-   €","-   €","-   €","-   €","-   €","-   €","-   €","-   €","-   €","-   €","-   €","-   €","-   €","-   €","-   €","-   €","-   €","-   €","-   €","-   €"]
[null,"Hors exploitation"]
[null,null,"Levée de fonds/Augmentation de capital",{"$nulls":3},{"v":1024800,"d":"1,024,800.00 €"},null,null,{"v":500000,"d":"500,000.00 €"},{"$nulls":6},{"v":20000000,"d":"20,000,000.00 €"}]
[null,null,"Apports en compte courant",null,{"v":5000,"d":"5,000.00 €"},null,{"v":-5000,"d":"-5,000.00 €"}]
[null,null,"Emprunts (hors Bpifrance)"]
[null,null,"Aides publiques (hors Bpifrance)"]
[null,null,"Emprunts Bpifrance : PA, PAI, PI"]
[null,null,"Aides remboursables Bpifrance : AR, PI R&D,…",{"$nulls":6},{"v":500000,"d":"500,000.00 €"}]
[null,null,"Subventions Bpifrance : BFT, Innovup,..."]
[null,"TOTAL DES ENCAISSEMENTS",null,null,{"v":5000,"d":"5,000 €"},"-   €",{"v":1019800,"d":"1,019,800 €"},"-   €","-   €",{"v":1000000,"d":"1,000,000 €"},"-   €","-   €","-   €","-   €","-   €","-   €",{"v":20000000,"d":"20,000,000 €"},"-   €","-   €","-   €","-   €","-   €","-   €","-   €","-   €","-   €","-   €","-   €"]
[]
[null,"Exploitation"]
[null,null,"Prestataires externes (R&D)",null,{"v":4522.62,"d":"4,522.62 €"},{"v":109.62,"d":"109.62 €"},{"v":6806.28,"d":"6,806.28 €"},{"v":27095.79,"d":"27,095.79 €"},{"v":69730,"d":"69,730.00 €"},{"v":158600,"d":"158,600.00 €"},{"v":58000,"d":"58,000.00 €"},{"v":48000,"d":"48,000.00 €"},{"v":108000,"d":"108,000.00 €"},{"v":48000,"d":"48,000.00 €"},{"v":48000,"d":"48,000.00 €"},{"v":168000,"d":"168,000.00 €"},{"v":48000,"d":"48,000.00 €"},{"v":48000,"d":"48,000.00 €"},{"v":48000,"d":"48,000.00 €"},{"v":8000,"d":"8,000.00 €"},{"v":8000,"d":"8,000.00 €"},{"v":8000,"d":"8,000.00 €"},"-   €","-   €","-   €","-   €","-   €","-   €"]
[null,null,"Frais de personnel dont charges sociales (R&D)",null,"-   €","-   €","-   €","-   €","-   €","-   €","-   €","-   €","-   €","-   €","-   €","-   €","-   €","-   €","-   €","-   €","-   €","-   €","-   €","-   €","-   €","-   €","-   €","-   €"]
[null,null,"Prestataires externes (hors R&D)",null,{"v":960,"d":"960.00 €"},"-   €",{"v":58900,"d":"58,900.00 €"},{"v":22200,"d":"22,200.00 €"},{"v":91800,"d":"91,800.00 €"},{"v":35200,"d":"35,200.00 €"},{"v":36640,"d":"36,640.00 €"},{"v":61820,"d":"61,820.00 €"},{"v":27800,"d":"27,800.00 €"},{"v":27800,"d":"27,800.00 €"},{"v":50800,"d":"50,800.00 €"},{"v":42400,"d":"42,400.00 €"},{"v":18400,"d":"18,400.00 €"},{"v":2400,"d":"2,400.00 €"},{"v":2400,"d":"2,400.00 €"},{"v":2400,"d":"2,400.00 €"},{"v":2400,"d":"2,400.00 €"},{"v":2400,"d":"2,400.00 €"},"-   €","-   €","-   €","-   €","-   €","-   €"]
[null,null,"Frais de personnel dont charges sociales (hors R&D)",null,"-   €","-   €","-   €","-   €","-   €","-   €","-   €","-   €","-   €","-   €","-   €","-   €","-   €","-   €","-   €","-   €","-   €","-   €","-   €","-   €","-   €","-   €","-   €","-   €"]
[null,null,"Achat de matière première",null,"-   €","-   €","-   €","-   €","-   €","-   €","-   €","-   €","-   €","-   €","-   €","-   €","-   €","-   €","-   €","-   €","-   €","-   €","-   €","-   €","-   €","-   €","-   €","-   €"]
[null,null,"Impôts et taxes",null,"-   €","-   €","-   €","-   €","-   €","-   €","-   €","-   €","-   €","-   €","-   €","-   €","-   €","-   €","-   €","-   €","-   €","-   €","-   €","-   €","-   €","-   €","-   €","-   €"]
[null,null,"TVA reversée",null,"-   €","-   €","-   €","-   €","-   €","-   €","-   €","-   €","-   €","-   €","-   €","-   €","-   €","-   €","-   €","-   €","-   €","-   €","-   €","-   €","-   €","-   €","-   €","-   €"]
[null,null,"Frais juridiques et administratifs",null,{"v":941.6,"d":"941.60 €"},"-   €",{"v":9051.5,"d":"9,051.50 €"},{"v":8550,"d":"8,550.00 €"},{"v":55486.48,"d":"55,486.48 €"},{"v":36000,"d":"36,000.00 €"},{"v":8100,"d":"8,100.00 €"},{"v":4100,"d":"4,100.00 €"},{"v":3500,"d":"3,500.00 €"},{"v":3500,"d":"3,500.00 €"},{"v":3500,"d":"3,500.00 €"},{"v":3500,"d":"3,500.00 €"},{"v":3500,"d":"3,500.00 €"},{"v":3500,"d":"3,500.00 €"},{"v":3500,"d":"3,500.00 €"},{"v":3500,"d":"3,500.00 €"},{"v":3500,"d":"3,500.00 €"},{"v":3500,"d":"3,500.00 €"},"-   €","-   €","-   €","-   €","-   €","-   €"]
[null,null,"Loyers",null,"-   €","-   €","-   €","-   €","-   €","-   €","-   €","-   €","-   €","-   €","-   €","-   €","-   €","-   €","-   €","-   €","-   €","-   €","-   €","-   €","-   €","-   €","-   €","-   €"]
[null,null,"Frais généraux",null,{"v":178.8,"d":"178.80 €"},{"v":178.8,"d":"178.80 €"},{"v":7041.74,"d":"7,041.74 €"},{"v":808.76,"d":"808.76 €"},{"v":179,"d":"179.00 €"},{"v":779,"d":"779.00 €"},{"v":179,"d":"179.00 €"},{"v":179,"d":"179.00 €"},{"v":179,"d":"179.00 €"},{"v":179,"d":"179.00 €"},{"v":779,"d":"779.00 €"},{"v":179,"d":"179.00 €"},{"v":179,"d":"179.00 €"},{"v":179,"d":"179.00 €"},{"v":179,"d":"179.00 €"},{"v":179,"d":"179.00 €"},{"v":179,"d":"179.00 €"},{"v":179,"d":"179.00 €"},"-   €","-   €","-   €","-   €","-   €","-   €"]
[null,null,"Marketing / Communication",null,"-   €","-   €","-   €","-   €","-   €","-   €","-   €","-   €","-   €","-   €","-   €","-   €","-   €","-   €","-   €","-   €","-   €","-   €","-   €","-   €","-   €","-   €","-   €","-   €"]
[null,null,"Accompagnement incubateur",null,"-   €","-   €","-   €","-   €","-   €","-   €","-   €","-   €","-   €","-   €","-   €","-   €","-   €","-   €","-   €","-   €","-   €","-   €","-   €","-   €","-   €","-   €","-   €","-   €"]
[null,null,"Loyers sur crédit bail",null,"-   €","-   €","-   €","-   €","-   €","-   €","-   €","-   €","-   €","-   €","-   €","-   €","-   €","-   €","-   €","-   €","-   €","-   €","-   €","-   €","-   €","-   €","-   €","-   €"]
[null,null,"Charges financières sur financements Bpifrance anciens et nouveaux",null,"-   €","-   €","-   €","-   €","-   €","-   €","-   €","-   €","-   €","-   €","-   €","-   €","-   €","-   €","-   €","-   €","-   €","-   €","-   €","-   €","-   €","-   €","-   €","-   €"]
[null,null,"Charges financières sur financements hors Bpifrance anciens et nouveaux",null,"-   €","-   €","-   €","-   €","-   €","-   €","-   €","-   €","-   €","-   €","-   €","-   €","-   €","-   €","-   €","-   €","-   €","-   €","-   €","-   €","-   €","-   €","-   €","-   €"]
[]
[null,"Hors exploitation"]
[null,null,"Investissements",null,"-   €","-   €","-   €","-   €","-   €","-   €","-   €","-   €","-   €","-   €","-   €","-   €","-   €","-   €","-   €","-   €","-   €","-   €","-   €","-   €","-   €","-   €","-   €","-   €"]
[null,null,"Remboursement d'emprunts Bpifrance",null,"-   €","-   €","-   €","-   €","-   €","-   €","-   €","-   €","-   €","-   €","-   €","-   €","-   €","-   €","-   €","-   €","-   €","-   €","-   €","-   €","-   €","-   €","-   €","-   €"]
[null,null,"Remboursement d'emprunts hors Bpifrance",null,"-   €","-   €","-   €","-   €","-   €","-   €","-   €","-   €","-   €","-   €","-   €","-   €","-   €","-   €","-   €","-   €","-   €","-   €","-   €","-   €","-   €","-   €","-   €","-   €"]
[null,null,"Remboursement de CCA",null,"-   €","-   €","-   €","-   €","-   €","-   €","-   €","-   €","-   €","-   €","-   €","-   €","-   €","-   €","-   €","-   €","-   €","-   €","-   €","-   €","-   €","-   €","-   €","-   €"]
[null,null,"Autres",null,"-   €","-   €","-   €","-   €","-   €","-   €","-   €","-   €","-   €","-   €","-   €","-   €","-   €","-   €","-   €","-   €","-   €","-   €","-   €","-   €","-   €","-   €","-   €","-   €"]
[null,"TOTAL DES DECAISSEMENTS",null,null,{"v":6603,"d":"6,603 €"},{"v":288,"d":"288 €"},{"v":81800,"d":"81,800 €"},{"v":58655,"d":"58,655 €"},{"v":217195,"d":"217,195 €"},{"v":230579,"d":"230,579 €"},{"v":102919,"d":"102,919 €"},{"v":114099,"d":"114,099 €"},{"v":139479,"d":"139,479 €"},{"v":79479,"d":"79,479 €"},{"v":103079,"d":"103,079 €"},{"v":214079,"d":"214,079 €"},{"v":70079,"d":"70,079 €"},{"v":54079,"d":"54,079 €"},{"v":54079,"d":"54,079 €"},{"v":14079,"d":"14,079 €"},{"v":14079,"d":"14,079 €"},{"v":14079,"d":"14,079 €"},"-   €","-   €","-   €","-   €","-   €","-   €"]
[]
[null,"SOLDE DE TRESORERIE INITIAL (dernier relevé bancaire mensuel)",null,{"v":4265,"d":"4,265 €"}]
[null,"CUMUL DE TRESORERIE",null,null,{"v":2662,"d":"2,662 €"},{"v":2373,"d":"2,373 €"},{"v":940374,"d":"940,374 €"},{"v":881719,"d":"881,719 €"},{"v":664524,"d":"664,524 €"},{"v":1433945,"d":"1,433,945 €"},{"v":1331026,"d":"1,331,026 €"},{"v":1216927,"d":"1,216,927 €"},{"v":1077448,"d":"1,077,448 €"},{"v":997969,"d":"997,969 €"},{"v":894890,"d":"894,890 €"},{"v":680811,"d":"680,811 €"},{"v":20610732,"d":"20,610,732 €"},{"v":20556653,"d":"20,556,653 €"},{"v":20502574,"d":"20,502,574 €"},{"v":20488495,"d":"20,488,495 €"},{"v":20474416,"d":"20,474,416 €"},{"v":20460337,"d":"20,460,337 €"},{"v":20460337,"d":"20,460,337 €"},{"v":20460337,"d":"20,460,337 €"},{"v":20460337,"d":"20,460,337 €"},{"v":20460337,"d":"20,460,337 €"},{"v":20460337,"d":"20,460,337 €"},{"v":20460337,"d":"20,460,337 €"}]
[]
[null,"Ces informations sont constituées en un fichier informatisé destiné à l'usage interne de Bpifrance Financement. Il fait l'objet d'une déclaration auprès de la Cnil, conformément à la législation en vigueur."]
[]
[]
[]
[null,null,"PLAN DE TRÉSORERIE"]
[null,null,"K€ TTC, tous les montants doivent être ≥0","Aujourd'hui à 6 mois","6 à 12 mois","12 à 18 mois","18 à 24 mois"]
[null,null,"Trésorerie en début de période *",{"v":4265,"d":"4,265 "},{"v":1433945,"d":"1,433,945 "},{"v":680811,"d":"680,811 "},{"v":20460337,"d":"20,460,337 "}]
[null,null,"Encaissements",{"v":2024800,"d":"2,024,800 "},"-",{"v":20000000,"d":"20,000,000 "},"-"]
[null,null,"Encaissements d'exploitation *","-","-","-","-"]
[null,null,"Dont encaissements sur ventes","-","-","-","-"]
[null,null,"Dont autres produits d'exploitation (CIR/CII, TVA et autres produits)","-","-","-","-"]
[null,null,"Encaissements hors exploitation *",{"v":2024800,"d":"2,024,800 "},"-",{"v":20000000,"d":"20,000,000 "},"-"]
[null,null,"Dont levées de fonds",{"v":1524800,"d":"1,524,800 "},"-",{"v":20000000,"d":"20,000,000 "},"-"]
[null,null,"Dont apports en compte courant","-","-","-","-"]
[null,null,"Dont prêts bancaires","-","-","-","-"]
[null,null,"Dont financements Bpifrance",{"v":500000,"d":"500,000 "},"-","-","-"]
[null,null,"Dont prêt et crédit-bail","-","-","-","-"]
[null,null,"Dont aides remboursables : AR, PTZI,…",{"v":500000,"d":"500,000 "},"-","-","-"]
[null,null,"Dont subvention","-","-","-","-"]
[null,null,"Dont autres encaissements hors exploitation","-","-","-","-"]
[null,null,"Décaissements",{"v":595120,"d":"595,120 "},{"v":753134,"d":"753,134 "},{"v":220474,"d":"220,474 "},"-"]
[null,null,"Décaissements d’exploitation (charges variables, achats et charges externes, impôts, taxes, charges de personnel, …) *",{"v":595120,"d":"595,120 "},{"v":753134,"d":"753,134 "},{"v":220474,"d":"220,474 "},"-"]
[null,null,"Dont dépenses de R&D",{"v":266864,"d":"266,864 "},{"v":478000,"d":"478,000 "},{"v":168000,"d":"168,000 "},"-"]
[null,null,"Dont intérêts sur financements Bpifrance anciens et nouveaux","-","-","-","-"]
[null,null,"Dont intérêts sur financements hors Bpifrance anciens et nouveaux","-","-","-","-"]
[null,null,"Dont loyers sur crédit-bail anciens et nouveaux","-","-","-","-"]
[null,null,"Dont autres décaissements d'exploitation",{"v":328256,"d":"328,256 "},{"v":275134,"d":"275,134 "},{"v":52474,"d":"52,474 "},"-"]
[null,null,"Décaissements hors exploitation (remboursements, prélèvements, investissements, …) *","-","-","-","-"]
[null,null,"Dont investissements corporels et incorporels","-","-","-","-"]
[null,null,"Dont remboursements financements Bpifrance anciens et nouveaux (en capital)","-","-","-","-"]
[null,null,"Dont remboursements financements hors Bpifrance anciens et nouveaux (en capital)","-","-","-","-"]
[null,null,"Dont remboursements de compte courant","-","-","-","-"]
[null,null,"Dont autres décaissements hors exploitation","-","-","-","-"]
[null,null,"Solde de trésorerie en fin de période",{"v":1429680,"d":"1,429,680 "},{"v":-753134,"d":"-753,134 "},{"v":19779526,"d":"19,779,526 "},"-"]
[null,null,"Solde cumulé de trésorerie en fin de période",{"v":1433945,"d":"1,433,945 "},{"v":680811,"d":"680,811 "},{"v":20460337,"d":"20,460,337 "},{"v":20460337,"d":"20,460,337 "}]

{"sheet":"BPI_Fiche de demande (I)","index":32,"n_rows":54,"n_cols":32,"rows_kept":54,"hidden":true,"merged":[[2,9,2,31],[3,5,3,7],[4,8,4,23],[11,9,11,22],[12,15,12,32],[14,1,14,32],[15,1,15,32],[16,1,16,8],[16,9,16,23],[16,25,16,32],[18,1,18,8],[20,1,20,13],[20,15,20,32],[21,12,21,24],[21,25,21,32],[24,1,24,32],[28,19,28,32],[30,1,30,32],[31,11,31,18],[31,19,31,29],[31,30,31,32],[32,1,32,32],[36,1,36,32],[37,1,37,30],[38,1,38,15],[38,16,38,32],[41,1,41,32],[43,1,43,5],[43,7,46,32],[47,7,47,32],[48,7,48,20],[48,21,48,32],[50,7,50,32],[53,1,53,32]]}
[]
[]
[{"$nulls":5}," ",{"$nulls":3}," I :  Fiche de demande d'aide"]
[]
[{"$nulls":8},"A REMPLIR PAR Bpifrance Financement"]
[]
[null,"Demande  n° ",{"$nulls":19},"Catégorie particulière"]
[]
[null,"Date de dépôt",{"$nulls":14},"Chargé d'affaires :"]
[]
[]
[{"$nulls":9},"A REMPLIR PAR LE DEMANDEUR"]
[null,"LE DEMANDEUR"]
[]
[null,"Raison sociale : B Life Holding SAS"]
[null,"Adresse du siège social : 16 rue Vignon, 75009 Paris"]
[{"$nulls":25},"Effectifs : 0"]
[]
[null,"Code APE : Gestion de fonds (66.30Z)",{"$nulls":7},"N° Siret du siège social :",{"$nulls":8},9,4,2,8,3,5,7,2,9,0,0,0,1,6]
[]
[null,"Capital social actuel (en €) : 20 000,00 € (fixe)"]
[null,"Appartenance à un groupe : ",{"$nulls":4},"Non",{"$nulls":5},"Si oui, lequel ?",{"$nulls":12},"Effectifs du groupe :"]
[null,"Responsables dirigeants :",{"$nulls":3},"M","ROBERT",{"$nulls":4},"Fonction :",null,null,"Président",{"$nulls":5},"Tél. :",{"$nulls":7},"Mél :",null,"ferreol.robert@b-life.io"]
[{"$nulls":5},"M","PEISSE",{"$nulls":4},"Fonction :",null,null,"DG",{"$nulls":5},"Tél. :",null,"06.10.39.53.05",{"$nulls":5},"Mél :",null,"alexandre.peisse@b-life.io"]
[]
[]
[null,"L'ETABLISSEMENT PRINCIPALEMENT CHARGE DE L'EXECUTION DU PROGRAMME (si autre que le siège social)"]
[]
[null,"N° Siret  :"]
[]
[null,"Adresse de cet établissement : "]
[null,"Responsable technique du maître d'œuvre :",{"$nulls":9},"M",{"$nulls":7},"Fonction :",{"$nulls":10},"Tél. :"]
[]
[]
[null,"LE PROGRAMME DE RECHERCHE, DEVELOPPEMENT ET INNOVATION"]
[]
[null,"Objet du programme : "]
[null,"Montant HT du programme (en €) : "]
[null,"Durée prévue en mois : 12 mois",{"$nulls":14},"A partir du : 01/07/2025"]
[null,"Montant du financement public estimé nécessaire : ",{"$nulls":14},"€ 500 k "]
[null,"Type de financement demandé : ",{"$nulls":14},"Financement R&D Innov"]
[]
[]
[null,"Cachet de l'entreprise",{"$nulls":5},"Le soussigné certifie que le demandeur est en situation régulière au regard de ses obligations fiscales et sociales, et demande à Bpifrance Financement d’examiner le dossier joint pour l’obtention d’une aide à l’innovation, selon la procédure instituée par le décret n° 97-682 du 31 mai 1997 pour le programme ci-dessus, dont il est maître d’œuvre."]
[]
[]
[]
[{"$nulls":7},"Le DEMANDEUR autorise Bpifrance Financement à transmettre aux autres sociétés du groupe Bpifrance, à l'Etat et aux Collectivités Territoriales, et de manière générale à tout bailleur de fonds susceptible d'intervenir directement ou indirectement au financement du présent projet, les informations relatives au DEMANDEUR, au programme faisant l'objet de la demande et au montant de l'aide demandée.      "]
[{"$nulls":7},"Fait à Paris",{"$nulls":13},"Le 08/07/2025"]
[{"$nulls":7},"Nom et qualité du signataire des présentes ayant pouvoir de contracter :"]
[{"$nulls":7},"Alexandre Peisse, Directeur Général"]
[{"$nulls":7},"Signature :"]
[]
[null,"Ces informations sont constituées en un fichier informatisé destiné à l'usage interne de Bpifrance Financement. Il fait l'objet d'une déclaration auprès de la Cnil, conformément à la législation en vigueur."]

{"sheet":"BPI_Annexe financière","index":33,"n_rows":58,"n_cols":58,"rows_kept":58,"hidden":true,"merged":[[19,12,20,12],[21,3,21,5],[21,6,21,8],[21,9,21,11]]}
[]
[]
[null,null,"Annexe financière"]
[null,null,"(dépenses à engager dans le cadre du programme)"]
[]
[null,"Raison sociale entreprise bénéficiaire :","B Life Holding SAS"]
[]
[null,"Réservé Bpifrance"]
[null,"Numéro DC :"]
[null,"Durée du programme \n(délai complémentaire inclus) : ",null,null,"mois"]
[null,"Montant de l'aide accordée :"]
[null,"Type de l'aide :"]
[]
[]
[null,"MONTANTS EN EUROS HORS TAXES"]
[]
[{"$nulls":13},"RESERVE BPIFRANCE",{"$nulls":18},"A RENSEIGNER PAR L'ENTREPRISE",{"$nulls":20},"RERSERVE BPIFRANCE"]
[{"$nulls":3},"DEMANDE DE L'ENTREPRISE",{"$nulls":9},"RETENU PAR BPIFRANCE",{"$nulls":18},"DEPENSES ACQUITTES (2)"]
[{"$nulls":13},"ETAPE 1",{"$nulls":5},"ETAPE 2",{"$nulls":5},"ETAPE 3",{"$nulls":6},"ETAPE 1 bis",{"$nulls":5},"ETAPE 2 Bis",{"$nulls":5},"ETAPE 3 Bis",{"$nulls":5},"TOTAL\nDépenses Aquittées","Ecart en %","Explication des écarts","Dépenses retenues","Commentaires"]
[null,"Nature des dépenses","Détail complémentaire","1-Période du","2025-07-01",null,"1-Période du","2026-01-01",null,"1-Période du","2026-08-01",null,"TOTAL\nEntreprise",null,"2-Période du",{"$nulls":5},"4-Période du",{"$nulls":5},"5-Période du",{"$nulls":4},"TOTAL BPIFRANCE",null,"2-Période du",{"$nulls":5},"4-Période du",{"$nulls":5},"5-Période du"]
[{"$nulls":3},"1- au","2025-12-31",null,"1- au","2026-07-31",null,"1- au","2027-02-28",{"$nulls":3},"2- au",{"$nulls":5},"4- au",{"$nulls":5},"5- au",{"$nulls":6},"2- au",{"$nulls":5},"4- au",{"$nulls":5},"5- au"]
[{"$nulls":3},"Conception fonctionnelle",null,null,"Développement, test et déploiement",null,null,"Audits de sécurité et ouverture de service",{"$nulls":3},"RI",null,null,"DE",null,null,"RI",null,null,"DE",null,null,"RI",null,null,"DE",{"$nulls":3},"RI",null,null,"DE",null,null,"RI",null,null,"DE",null,null,"RI",null,null,"DE"]
[{"$nulls":3},"Prix de l'heure (1)","Nb H.","Montant","Prix de l'heure (1)","Nb H.","Montant","Prix de l'heure (1)","Nb H.","Montant",null,"Prix de l'heure (1)","Nb H.","Montant","Prix de l'heure (1)","Nb H.","Montant","Prix de l'heure (1)","Nb H.","Montant","Prix de l'heure (1)","Nb H.","Montant","Prix de l'heure (1)","Nb H.","Montant","Prix de l'heure (1)","Nb H.","Montant",null,"Prix de l'heure (1)","Nb H.","Montant","Prix de l'heure (1)","Nb H.","Montant","Prix de l'heure (1)","Nb H.","Montant","Prix de l'heure (1)","Nb H.","Montant","Prix de l'heure (1)","Nb H.","Montant","Prix de l'heure (1)","Nb H.","Montant"]
[null,"Frais de personnel existant:",{"$nulls":55},"Aide au remplissage :"]
[null,"Directeur technique","DGE - CTO/CPO",{"v":90.7,"d":"90.70 "},{"v":485,"d":"485 "},{"v":44000,"d":"44,000 "},{"v":90.7,"d":"90.70 "},{"v":1111,"d":"1,111 "},{"v":100800,"d":"100,800 "},{"v":90.7,"d":"90.70 "},{"v":794,"d":"794 "},{"v":72000,"d":"72,000 "},{"v":216800,"d":"216,800 "},null,null,"-",{"v":91,"d":"91 "},{"v":485,"d":"485 "},{"v":44000,"d":"44,000 "},null,null,"-",null,null,"-",null,null,"-",null,null,"-",{"v":44000,"d":"44,000 "},null,null,"-",null,null,"-",null,null,"-",null,null,"-",null,null,"-",null,null,"-","-",{"v":-1,"d":"-100.00%"},null,"-",null,null,"1.","Renseigner votre Raison Sociale dans l'encadré prévu à cet effet (Cellule C6)"]
[{"$nulls":5},"-",null,null,"-",null,null,"-","-",null,null,"-",null,null,"-",null,null,"-",null,null,"-",null,null,"-",null,null,"-","-",null,null,"-",null,null,"-",null,null,"-",null,null,"-",null,null,"-",null,null,"-","-",null,null,"-",null,null,"6.","Lister s'il y a lieu les prestations et frais de sous traitance envisagés dans le cadre du programme à partir du menu déroulant en indiquant le montant associé HT."]
[null,"Frais de personnel recruté pour le projet:",{"$nulls":10},"-",{"$nulls":44},"Points d'attention lors du remplissage :"]
[null,"Développeur","Lead Dev - Septembre 2026",null,null,"-",null,null,"-",null,null,"-","-",null,null,"-",null,null,"-",null,null,"-",null,null,"-",null,null,"-",null,null,"-","-",null,null,"-",null,null,"-",null,null,"-",null,null,"-",null,null,"-",null,null,"-","-",null,null,"-",{"$nulls":3},"- Les montants sont à saisir en HT"]
[null,"Développeur","DevOps Senior 1 - Septembre 2026",null,null,"-",null,null,"-",null,null,"-","-",null,null,"-",null,null,"-",null,null,"-",null,null,"-",null,null,"-",null,null,"-","-",null,null,"-",null,null,"-",null,null,"-",null,null,"-",null,null,"-",null,null,"-","-",null,null,"-",{"$nulls":3},"- Le calcul du taux horraire se fait sur la base de 1720 heures par an à partir du salaire brut annuel et des charges patronales annuelles. A noter que le salaire brut correspond à l'intégralité des sommes perçues par le salarié (dont primes) au titre de son contrat de travail avant toute déduction de cotisations obligatoires."]
[null,"Développeur","DevOps Senior 2 - Septembre 2027",null,null,"-",null,null,"-",null,null,"-","-",null,null,"-",null,null,"-",null,null,"-",null,null,"-",null,null,"-",null,null,"-","-",null,null,"-",null,null,"-",null,null,"-",null,null,"-",null,null,"-",null,null,"-","-",null,null,"-",{"$nulls":3},"- Les onglets contiennent différents liens et formules nécessaires aux calculs demandés, veillez à ne pas les supprimer ni les modifier."]
[null,"Développeur","DevOps Senior 3 - Septembre 2028",null,null,"-",null,null,"-",null,null,"-","-",null,null,"-",null,null,"-",null,null,"-",null,null,"-",null,null,"-",null,null,"-","-",null,null,"-",null,null,"-",null,null,"-",null,null,"-",null,null,"-",null,null,"-","-",null,null,"-"]
[null,"Autres personnels d'appui au projet"]
[null,"S/T FRAIS DE PERSONNEL",{"$nulls":3},{"v":44000,"d":"44,000 "},null,null,{"v":100800,"d":"100,800 "},null,null,{"v":72000,"d":"72,000 "},{"v":216800,"d":"216,800 "},null,null,"-",null,null,{"v":44000,"d":"44,000 "},null,null,"-",null,null,"-",null,null,"-",null,null,"-",{"v":44000,"d":"44,000 "},null,null,"-",null,null,"-",null,null,"-",null,null,"-",null,null,"-",null,null,"-","-",{"v":-1,"d":"-100.00%"},null,"-"]
[null,"Frais généraux forfaitaires (20% des frais de personnel)",{"$nulls":3},{"v":8800,"d":"8,800 "},null,null,{"v":20160,"d":"20,160 "},null,null,{"v":14400,"d":"14,400 "},{"v":43360,"d":"43,360 "},null,null,"-",null,null,{"v":8800,"d":"8,800 "},null,null,"-",{"$nulls":5},"-",null,null,"-",{"v":8800,"d":"8,800 "},null,null,"-",null,null,"-",null,null,"-",null,null,"-",null,null,"-",null,null,"-","-",{"v":-1,"d":"-100.00%"},null,"-"]
[{"$nulls":12},"-",{"$nulls":18},"-",{"$nulls":18},"-",null,null,"-"]
[null,"S/T FRAIS GEN. + ACHATS",{"$nulls":3},{"v":8800,"d":"8,800 "},null,null,{"v":20160,"d":"20,160 "},null,null,{"v":14400,"d":"14,400 "},{"v":43360,"d":"43,360 "},null,null,"-",null,null,{"v":8800,"d":"8,800 "},null,null,"-",null,null,"-",null,null,"-",null,null,"-",{"v":8800,"d":"8,800 "},null,null,"-",null,null,"-",null,null,"-",null,null,"-",null,null,"-",null,null,"-","-",{"v":-1,"d":"-100.00%"},null,"-"]
[null,"Autres prestations et sous-traitance (sur justificatif)","Agence CTO",null,null,{"v":49660,"d":"49,660 "},null,null,{"v":280000,"d":"280,000 "},null,null,{"v":80000,"d":"80,000 "},{"v":409660,"d":"409,660 "},{"$nulls":5},{"v":49660,"d":"49,660 "},{"$nulls":12},{"v":49660,"d":"49,660 "},{"$nulls":18},"-",{"v":-1,"d":"-100.00%"},null,"-"]
[null,"Autres prestations et sous-traitance (sur justificatif)","Qualité Logiciel",null,null,{"v":73956,"d":"73,956 "},null,null,"-",null,null,"-",{"v":73956,"d":"73,956 "},{"$nulls":5},{"v":73956,"d":"73,956 "},{"$nulls":12},{"v":73956,"d":"73,956 "},{"$nulls":18},"-",{"v":-1,"d":"-100.00%"},null,"-"]
[null,"Autres prestations et sous-traitance (sur justificatif)","Expert-comptables (conseil)",null,null,{"v":24000,"d":"24,000 "},null,null,"-",null,null,"-",{"v":24000,"d":"24,000 "},{"$nulls":5},{"v":24000,"d":"24,000 "},{"$nulls":12},{"v":24000,"d":"24,000 "},{"$nulls":18},"-",{"v":-1,"d":"-100.00%"},null,"-"]
[null,"Autres prestations et sous-traitance (sur justificatif)","PMS",null,null,{"v":60000,"d":"60,000 "},null,null,{"v":180000,"d":"180,000 "},null,null,"-",{"v":240000,"d":"240,000 "},{"$nulls":5},{"v":60000,"d":"60,000 "},{"$nulls":12},{"v":60000,"d":"60,000 "},{"$nulls":18},"-",{"v":-1,"d":"-100.00%"},null,"-"]
[null,"Autres prestations et sous-traitance (sur justificatif)","Product Management",null,null,{"v":10000,"d":"10,000 "},null,null,{"v":35000,"d":"35,000 "},null,null,{"v":25000,"d":"25,000 "},{"v":70000,"d":"70,000 "},{"$nulls":5},{"v":10000,"d":"10,000 "},{"$nulls":12},{"v":10000,"d":"10,000 "},{"$nulls":18},"-",{"v":-1,"d":"-100.00%"},null,"-"]
[null,"Autres prestations et sous-traitance (sur justificatif)","UX",null,null,{"v":21060,"d":"21,060 "},null,null,"-",null,null,"-",{"v":21060,"d":"21,060 "},{"$nulls":5},{"v":21060,"d":"21,060 "},{"$nulls":12},{"v":21060,"d":"21,060 "},{"$nulls":18},"-",{"v":-1,"d":"-100.00%"},null,"-"]
[null,"Autres prestations et sous-traitance (sur justificatif)","Assistance PO",null,null,{"v":8000,"d":"8,000 "},null,null,"-",null,null,"-",{"v":8000,"d":"8,000 "},{"$nulls":5},{"v":8000,"d":"8,000 "},{"$nulls":12},{"v":8000,"d":"8,000 "},{"$nulls":18},"-",{"v":-1,"d":"-100.00%"},null,"-"]
[null,"Autres prestations et sous-traitance (sur justificatif)","DevSecOps",null,null,{"v":20000,"d":"20,000 "},null,null,{"v":10000,"d":"10,000 "},null,null,"-",{"v":30000,"d":"30,000 "},{"$nulls":5},{"v":20000,"d":"20,000 "},{"$nulls":12},{"v":20000,"d":"20,000 "},{"$nulls":18},"-",{"v":-1,"d":"-100.00%"},null,"-"]
[null,"Autres prestations et sous-traitance (sur justificatif)","Espace de gestion",null,null,"-",null,null,{"v":14000,"d":"14,000 "},null,null,{"v":10000,"d":"10,000 "},{"v":24000,"d":"24,000 "},{"$nulls":5},"-",{"$nulls":12},"-",{"$nulls":18},"-",null,null,"-"]
[null,"Autres prestations et sous-traitance (sur justificatif)","Autres",null,null,"-",null,null,"-",null,null,"-","-",{"$nulls":5},"-",{"$nulls":12},"-",{"$nulls":18},"-",null,null,"-"]
[null,"Autres prestations et sous-traitance"]
[null,"S/T PREST. ET S/TRAITANCE",{"$nulls":3},{"v":266676,"d":"266,676 "},null,null,{"v":519000,"d":"519,000 "},null,null,{"v":115000,"d":"115,000 "},{"v":900676,"d":"900,676 "},null,null,"-",null,null,{"v":266676,"d":"266,676 "},null,null,"-",null,null,"-",null,null,"-",null,null,"-",{"v":266676,"d":"266,676 "},null,null,"-",null,null,"-",null,null,"-",null,null,"-",null,null,"-",null,null,"-","-",{"v":-1,"d":"-100.00%"},null,"-"]
[{"$nulls":12},"-",{"$nulls":18},"-",{"$nulls":18},"-",null,null,"-"]
[null,"Amortissements des investissements récupérables (sur durée du programme)",{"$nulls":10},"-",{"$nulls":18},"-",{"$nulls":18},"-",null,null,"-"]
[null,"Autres frais spécifiques (sur justificatifs)",{"$nulls":10},"-",{"$nulls":18},"-",{"$nulls":18},"-",null,null,"-"]
[null,"S/T INVEST.+ AMORT.+ AUTRES",{"$nulls":3},"-",null,null,"-",null,null,"-","-",null,null,"-",null,null,"-",null,null,"-",null,null,"-",null,null,"-",null,null,"-","-",null,null,"-",null,null,"-",null,null,"-",null,null,"-",null,null,"-",null,null,"-","-",null,null,"-"]
[null,"TOTAL GENERAL",{"$nulls":3},{"v":319476,"d":"319,476 "},null,null,{"v":639960,"d":"639,960 "},null,null,{"v":201400,"d":"201,400 "},{"v":1160836,"d":"1,160,836 "},null,null,"-",null,null,{"v":319476,"d":"319,476 "},null,null,"-",null,null,"-",null,null,"-",null,null,"-",{"v":319476,"d":"319,476 "},null,null,"-",null,null,"-",null,null,"-",null,null,"-",null,null,"-",null,null,"-","-",{"v":-1,"d":"-100.00%"},null,"-"]
[]
[null,null,0]
[null,"(1) : Taux horaire direct = (Salaires bruts annuels + charges patronales annuelles) / 1 720 heures. Le salaire brut correspond à l'intégralité des sommes perçues par le salarié (dont primes) au titre de son contrat de travail avant toute déduction de cotisations obligatoires."]
[null,"Ces informations sont constituées en un fichier informatisé destiné à l'usage interne de Bpifrance Financement."]
[null,"Il fait l'objet d'une déclaration auprès de la Cnil, conformément à la législation en vigueur."]

{"sheet":"BPI_Param","index":34,"n_rows":14,"n_cols":8,"rows_kept":14,"hidden":true}
[]
[]
[null,"Postes Personnel",null,"Postes Prestations",null,"Poste Frais + Achats",null,"Type aide"]
[null,"Chercheur",null,"Analyse de la valeur",null,"Produits consommables",null,"Avance Récupérable"]
[null,"Designer",null,"Bureau d'étude",null,"Entretien du matériel",null,"Subvention"]
[null,"Développeur",null,"Design",null,"Fluides et énergie",null,"Avance Récupérable & Subvention "]
[null,"Directeur technique",null,"Etude de faisabilité",null,"Autres frais généraux et achats",null,"Prêt à Taux Zéro / Prêt à Taux Zéro +"]
[null,"Docteur",null,"Etude de marché",{"$nulls":3},"Prêt Innovation Recherche & Développement"]
[null,"Ingénieur",null,"Laboratoires ou centres techniques"]
[null,"Ouvrier",null,"Mise aux normes (française et étrangères)"]
[null,"Post doctorant ",null,"Prestation juridique"]
[null,"Technicien",null,"Propriété intellectuelle"]
[null,"Autres personnels d'appui au projet",null,"Recherche de partenaires (France, Europe, etc.)"]
[{"$nulls":3},"Autres prestations et sous-traitance (sur justificatif)"]

{"sheet":"Copie de Primes","index":35,"n_rows":130,"n_cols":38,"rows_kept":130,"hidden":true,"merged":[[15,14,15,19],[15,20,15,25],[16,14,16,15],[16,16,16,17],[16,18,16,19],[16,20,16,21],[16,22,16,23],[16,24,16,25]]}
["Primes brutes - France"]
[{"$nulls":6},"Données marché","Assurance-vie ind.","Epargne retraite PERin","Contrats de capitalisation"]
[{"$nulls":6},"Primes 2023",{"v":123700000000,"d":"123,700,000,000 €"},{"v":8729000000,"d":"8,729,000,000 €"},{"v":8114000000,"d":"8,114,000,000 €"}]
[{"$nulls":6},"Stock contrats",46465000,3534000,878000]
[{"$nulls":6},"Nouveaux contrats 2023",2534000,633000,35000]
[{"$nulls":6},"Panier moyen 2023",{"$f":"H3/H4","v":{"v":2662.218874421608,"d":"2,662 €"}},{"v":2470.005659309564,"d":"2,470 €"},{"v":9241.457858769932,"d":"9,241 €"}]
[]
[{"$nulls":6},"Nombre de contrats / an","Assurance-vie","Epargne retraite","Contrats de capitalisation"]
[{"$nulls":6},"Courtiers",{"v":10000,"d":"10,000"},{"v":1500,"d":"1,500"},50]
[{"$nulls":6},"CGP/CIF ",{"v":1000,"d":"1,000"},150,75]
[]
[{"$nulls":6},"Paniers moyens B_Life","Assurance-vie","Epargne retraite","Contrats de capitalisation"]
[{"$nulls":6},"Courtiers",{"v":30000,"d":"30,000"},{"v":10000,"d":"10,000"},{"v":10000,"d":"10,000"}]
[{"$f":"Scenarii!A37","v":0},{"$f":"Scenarii!B37","v":0},{"$nulls":4},"CGP/CIF ",{"v":100000,"d":"100,000"},{"v":50000,"d":"50,000"},{"v":50000,"d":"50,000"}]
[]
[{"$nulls":14},"Courtiers",{"$nulls":5},"CGP/FO/CIF"]
[null,null,"Total",null,null,"Total Assurance Vie",null,null,"Total PER",null,null,"Total Contrat de Capi",null,null,"Assurance Vie",null,"PER",null,"Capi",null,"Assurance Vie",null,"PER",null,"Capi"]
["Année","Stress Contrat","Nb Contrat","Prime","Encours cumulé","Nb Contrat","Prime","Encours cumulé","Nb Contrat","Prime","Encours cumulé","Nb Contrat","Prime","Encours cumulé","Nb Contrat","Prime","Nb Contrat","Prime","Nb Contrat","Prime","Nb Contrat","Prime","Nb Contrat","Prime","Nb Contrat","Prime","Name","Description of Activity","Assets under Management (€m, 2024)","2024 Net Inflows (€m)","Partner Insurers"]
[1,{"$f":"Scenarii!B42","v":{"v":0,"d":"0%"}},{"$f":"SUM(F19,I19,L19)","v":0},0,0,{"$f":"SUM(O19,U19)*B19","v":0},{"$f":"SUM(P19,V19)*B19","v":0},{"$f":"G19","v":0},{"$f":"SUM(Q19,W19)*B19","v":0},{"$f":"SUM(R19,X19)*B19","v":0},{"$f":"J19","v":0},{"$f":"SUM(S19,Y19)*B19","v":0},{"$f":"SUM(T19,Z19)*B19","v":0},{"$f":"M19","v":0},{"v":2000,"d":"2,000"},{"$f":"O19*'Copie de Primes'!panier_moyen_AV_courtier","v":{"v":60000000,"d":"60,000,000"}},300,{"$f":"Q19*'Copie de Primes'!panier_moyen_PER_courtier","v":{"v":3000000,"d":"3,000,000"}},1,{"$f":"S19*'Copie de Primes'!panier_moyen_Capi_courtier","v":{"v":10000,"d":"10,000"}},10,{"$f":"U19*'Copie de Primes'!panier_moyen_AV_CGP","v":{"v":1000000,"d":"1,000,000"}},{"$f":"U19","v":10},{"$f":"W19*'Copie de Primes'!panier_moyen_PER_CGP","v":{"v":500000,"d":"500,000"}},5,{"$f":"Y19*'Copie de Primes'!panier_moyen_Capi_CGP","v":{"v":250000,"d":"250,000"}},"Yomoni","Fintech specialized in discretionary ETF-based portfolio management",1.5,360,"Suravenir (main partner)"]
[2,{"$f":"Scenarii!B43","v":0},{"$f":"SUM(F20,I20,L20)","v":0},0,0,0,0,0,0,0,0,0,0,0,{"v":4000,"d":"4,000"},{"$f":"O20*'Copie de Primes'!panier_moyen_AV_courtier","v":{"v":120000000,"d":"120,000,000"}},600,{"$f":"Q20*'Copie de Primes'!panier_moyen_PER_courtier","v":{"v":6000000,"d":"6,000,000"}},5,{"$f":"S20*'Copie de Primes'!panier_moyen_Capi_courtier","v":{"v":50000,"d":"50,000"}},40,{"$f":"U20*'Copie de Primes'!panier_moyen_AV_CGP","v":{"v":4000000,"d":"4,000,000"}},40,{"$f":"W20*'Copie de Primes'!panier_moyen_PER_CGP","v":{"v":2000000,"d":"2,000,000"}},10,{"$f":"Y20*'Copie de Primes'!panier_moyen_Capi_CGP","v":{"v":500000,"d":"500,000"}},"eToro","Social trading and investment platform entering the French market in 2025","N/A (launch May 2025)","N/A","Generali (100%)"]
[3,{"$f":"Scenarii!B44","v":"Progression collecte en% du tableau pivot"},{"$f":"SUM(F21,I21,L21)","v":{"$error":"#VALUE!"}},{"$error":"#VALUE!"},{"$error":"#VALUE!"},{"$error":"#VALUE!"},{"$error":"#VALUE!"},{"$error":"#VALUE!"},{"$error":"#VALUE!"},{"$error":"#VALUE!"},{"$error":"#VALUE!"},{"$error":"#VALUE!"},{"$error":"#VALUE!"},{"$error":"#VALUE!"},{"v":7000,"d":"7,000"},{"$f":"O21*'Copie de Primes'!panier_moyen_AV_courtier","v":{"v":210000000,"d":"210,000,000"}},{"v":1000,"d":"1,000"},{"$f":"Q21*'Copie de Primes'!panier_moyen_PER_courtier","v":{"v":10000000,"d":"10,000,000"}},15,{"$f":"S21*'Copie de Primes'!panier_moyen_Capi_courtier","v":{"v":150000,"d":"150,000"}},80,{"$f":"U21*'Copie de Primes'!panier_moyen_AV_CGP","v":{"v":8000000,"d":"8,000,000"}},80,{"$f":"W21*'Copie de Primes'!panier_moyen_PER_CGP","v":{"v":4000000,"d":"4,000,000"}},30,{"$f":"Y21*'Copie de Primes'!panier_moyen_Capi_CGP","v":{"v":1500000,"d":"1,500,000"}},"Linxea","Low-cost online broker offering self-directed and managed life-insurance portfolios",4,1,"Swiss Life, Suravenir, Spirica, Apicil"]
[4,{"$f":"Scenarii!B45","v":{"v":1,"d":"100%"}},{"$f":"SUM(F22,I22,L22)","v":{"v":11850,"d":"11,850"}},{"v":337800000,"d":"337,800,000"},{"v":337800000,"d":"337,800,000"},{"v":10130,"d":"10,130"},{"v":313000000,"d":"313,000,000"},{"v":313000000,"d":"313,000,000"},{"v":1630,"d":"1,630"},{"v":21500000,"d":"21,500,000"},{"v":21500000,"d":"21,500,000"},90,{"v":3300000,"d":"3,300,000"},{"v":3300000,"d":"3,300,000"},{"v":10000,"d":"10,000"},{"$f":"O22*'Copie de Primes'!panier_moyen_AV_courtier","v":{"v":300000000,"d":"300,000,000"}},{"v":1500,"d":"1,500"},{"$f":"Q22*'Copie de Primes'!panier_moyen_PER_courtier","v":{"v":15000000,"d":"15,000,000"}},30,{"$f":"S22*'Copie de Primes'!panier_moyen_Capi_courtier","v":{"v":300000,"d":"300,000"}},130,{"$f":"U22*'Copie de Primes'!panier_moyen_AV_CGP","v":{"v":13000000,"d":"13,000,000"}},130,{"$f":"W22*'Copie de Primes'!panier_moyen_PER_CGP","v":{"v":6500000,"d":"6,500,000"}},60,{"$f":"Y22*'Copie de Primes'!panier_moyen_Capi_CGP","v":{"v":3000000,"d":"3,000,000"}},"AltaProfits","Pioneer of online life insurance, no entry fees",1.7,"Not disclosed","Generali, Swiss Life, Suravenir"]
[5,{"$f":"Scenarii!B46","v":{"v":1,"d":"100%"}},{"$f":"SUM(F23,I23,L23)","v":{"v":14590,"d":"14,590"}},{"v":412900000,"d":"412,900,000"},{"v":412900000,"d":"412,900,000"},{"v":12180,"d":"12,180"},{"v":378000000,"d":"378,000,000"},{"v":378000000,"d":"378,000,000"},{"v":2280,"d":"2,280"},{"v":30000000,"d":"30,000,000"},{"v":30000000,"d":"30,000,000"},130,{"v":4900000,"d":"4,900,000"},{"v":4900000,"d":"4,900,000"},{"v":12000,"d":"12,000"},{"$f":"O23*'Copie de Primes'!panier_moyen_AV_courtier","v":{"v":360000000,"d":"360,000,000"}},{"v":2100,"d":"2,100"},{"$f":"Q23*'Copie de Primes'!panier_moyen_PER_courtier","v":{"v":21000000,"d":"21,000,000"}},40,{"$f":"S23*'Copie de Primes'!panier_moyen_Capi_courtier","v":{"v":400000,"d":"400,000"}},180,{"$f":"U23*'Copie de Primes'!panier_moyen_AV_CGP","v":{"v":18000000,"d":"18,000,000"}},180,{"$f":"W23*'Copie de Primes'!panier_moyen_PER_CGP","v":{"v":9000000,"d":"9,000,000"}},90,{"$f":"Y23*'Copie de Primes'!panier_moyen_Capi_CGP","v":{"v":4500000,"d":"4,500,000"}},"Meilleurtaux Placement","Multi-product broker with managed portfolios and boosted fund offers",5,1,"Generali (Netissima), Suravenir, Spirica"]
[6,{"$f":"Scenarii!B47","v":{"v":1,"d":"100%"}},{"$f":"SUM(F24,I24,L24)","v":{"v":14600,"d":"14,600"}},{"v":413400000,"d":"413,400,000"},{"v":413400000,"d":"413,400,000"},{"v":12180,"d":"12,180"},{"v":378000000,"d":"378,000,000"},{"v":378000000,"d":"378,000,000"},{"v":2280,"d":"2,280"},{"v":30000000,"d":"30,000,000"},{"v":30000000,"d":"30,000,000"},140,{"v":5400000,"d":"5,400,000"},{"v":5400000,"d":"5,400,000"},{"v":12000,"d":"12,000"},{"$f":"O24*'Copie de Primes'!panier_moyen_AV_courtier","v":{"v":360000000,"d":"360,000,000"}},{"v":2100,"d":"2,100"},{"$f":"Q24*'Copie de Primes'!panier_moyen_PER_courtier","v":{"v":21000000,"d":"21,000,000"}},40,{"$f":"S24*'Copie de Primes'!panier_moyen_Capi_courtier","v":{"v":400000,"d":"400,000"}},180,{"$f":"U24*'Copie de Primes'!panier_moyen_AV_CGP","v":{"v":18000000,"d":"18,000,000"}},180,{"$f":"W24*'Copie de Primes'!panier_moyen_PER_CGP","v":{"v":9000000,"d":"9,000,000"}},100,{"$f":"Y24*'Copie de Primes'!panier_moyen_Capi_CGP","v":{"v":5000000,"d":"5,000,000"}},"Indexa Capital","Robo-advisor offering fully automated portfolio management",3.4,1,"Insurer not disclosed (award-winning contract 2024)"]
[7,{"$f":"Scenarii!B48","v":{"v":1,"d":"100%"}},{"$f":"SUM(F25,I25,L25)","v":{"v":14600,"d":"14,600"}},{"v":413400000,"d":"413,400,000"},{"v":413400000,"d":"413,400,000"},{"v":12180,"d":"12,180"},{"v":378000000,"d":"378,000,000"},{"v":378000000,"d":"378,000,000"},{"v":2280,"d":"2,280"},{"v":30000000,"d":"30,000,000"},{"v":30000000,"d":"30,000,000"},140,{"v":5400000,"d":"5,400,000"},{"v":5400000,"d":"5,400,000"},{"v":12000,"d":"12,000"},{"$f":"O25*'Copie de Primes'!panier_moyen_AV_courtier","v":{"v":360000000,"d":"360,000,000"}},{"v":2100,"d":"2,100"},{"$f":"Q25*'Copie de Primes'!panier_moyen_PER_courtier","v":{"v":21000000,"d":"21,000,000"}},40,{"$f":"S25*'Copie de Primes'!panier_moyen_Capi_courtier","v":{"v":400000,"d":"400,000"}},180,{"$f":"U25*'Copie de Primes'!panier_moyen_AV_CGP","v":{"v":18000000,"d":"18,000,000"}},180,{"$f":"W25*'Copie de Primes'!panier_moyen_PER_CGP","v":{"v":9000000,"d":"9,000,000"}},100,{"$f":"Y25*'Copie de Primes'!panier_moyen_Capi_CGP","v":{"v":5000000,"d":"5,000,000"}},"Mon Petit Placement","Investment platform targeting young professionals",200,60,"Insurer not disclosed"]
[8,{"$f":"Scenarii!B49","v":{"v":1,"d":"100%"}},{"$f":"SUM(F26,I26,L26)","v":{"v":14600,"d":"14,600"}},{"v":413400000,"d":"413,400,000"},{"v":413400000,"d":"413,400,000"},{"v":12180,"d":"12,180"},{"v":378000000,"d":"378,000,000"},{"v":378000000,"d":"378,000,000"},{"v":2280,"d":"2,280"},{"v":30000000,"d":"30,000,000"},{"v":30000000,"d":"30,000,000"},140,{"v":5400000,"d":"5,400,000"},{"v":5400000,"d":"5,400,000"},{"v":12000,"d":"12,000"},{"$f":"O26*'Copie de Primes'!panier_moyen_AV_courtier","v":{"v":360000000,"d":"360,000,000"}},{"v":2100,"d":"2,100"},{"$f":"Q26*'Copie de Primes'!panier_moyen_PER_courtier","v":{"v":21000000,"d":"21,000,000"}},40,{"$f":"S26*'Copie de Primes'!panier_moyen_Capi_courtier","v":{"v":400000,"d":"400,000"}},180,{"$f":"U26*'Copie de Primes'!panier_moyen_AV_CGP","v":{"v":18000000,"d":"18,000,000"}},180,{"$f":"W26*'Copie de Primes'!panier_moyen_PER_CGP","v":{"v":9000000,"d":"9,000,000"}},100,{"$f":"Y26*'Copie de Primes'!panier_moyen_Capi_CGP","v":{"v":5000000,"d":"5,000,000"}},"Cyrus Herez","Generalist brokerage firm serving individuals and professionals",20,1.7,"Not disclosed"]
[9,{"$f":"Scenarii!B50","v":{"v":1,"d":"100%"}},{"$f":"SUM(F27,I27,L27)","v":{"v":14600,"d":"14,600"}},{"v":413400000,"d":"413,400,000"},{"v":413400000,"d":"413,400,000"},{"v":12180,"d":"12,180"},{"v":378000000,"d":"378,000,000"},{"v":378000000,"d":"378,000,000"},{"v":2280,"d":"2,280"},{"v":30000000,"d":"30,000,000"},{"v":30000000,"d":"30,000,000"},140,{"v":5400000,"d":"5,400,000"},{"v":5400000,"d":"5,400,000"},{"v":12000,"d":"12,000"},{"$f":"O27*'Copie de Primes'!panier_moyen_AV_courtier","v":{"v":360000000,"d":"360,000,000"}},{"v":2100,"d":"2,100"},{"$f":"Q27*'Copie de Primes'!panier_moyen_PER_courtier","v":{"v":21000000,"d":"21,000,000"}},40,{"$f":"S27*'Copie de Primes'!panier_moyen_Capi_courtier","v":{"v":400000,"d":"400,000"}},180,{"$f":"U27*'Copie de Primes'!panier_moyen_AV_CGP","v":{"v":18000000,"d":"18,000,000"}},180,{"$f":"W27*'Copie de Primes'!panier_moyen_PER_CGP","v":{"v":9000000,"d":"9,000,000"}},100,{"$f":"Y27*'Copie de Primes'!panier_moyen_Capi_CGP","v":{"v":5000000,"d":"5,000,000"}},"DLPK","B2B platform for independent financial advisors and banking networks",13.5,1.8,"Not disclosed"]
[10,{"$f":"Scenarii!B51","v":{"v":1,"d":"100%"}},{"$f":"SUM(F28,I28,L28)","v":{"v":14600,"d":"14,600"}},{"v":413400000,"d":"413,400,000"},{"v":413400000,"d":"413,400,000"},{"v":12180,"d":"12,180"},{"v":378000000,"d":"378,000,000"},{"v":378000000,"d":"378,000,000"},{"v":2280,"d":"2,280"},{"v":30000000,"d":"30,000,000"},{"v":30000000,"d":"30,000,000"},140,{"v":5400000,"d":"5,400,000"},{"v":5400000,"d":"5,400,000"},{"v":12000,"d":"12,000"},{"$f":"O28*'Copie de Primes'!panier_moyen_AV_courtier","v":{"v":360000000,"d":"360,000,000"}},{"v":2100,"d":"2,100"},{"$f":"Q28*'Copie de Primes'!panier_moyen_PER_courtier","v":{"v":21000000,"d":"21,000,000"}},40,{"$f":"S28*'Copie de Primes'!panier_moyen_Capi_courtier","v":{"v":400000,"d":"400,000"}},180,{"$f":"U28*'Copie de Primes'!panier_moyen_AV_CGP","v":{"v":18000000,"d":"18,000,000"}},180,{"$f":"W28*'Copie de Primes'!panier_moyen_PER_CGP","v":{"v":9000000,"d":"9,000,000"}},100,{"$f":"Y28*'Copie de Primes'!panier_moyen_Capi_CGP","v":{"v":5000000,"d":"5,000,000"}},"ERES (Crystal)","Specialist in employee savings and retirement products",7,300,"Not disclosed"]
[{"$nulls":26},"Placement Direct","Online broker, subsidiary of Swiss Life",900,250,"Swiss Life"]
[{"$nulls":26},"Nalo","100% online multi-project ETF-based portfolio management platform",450,100,"Generali, Apicil",null,"Year","Revenues (€)","Notes"]
[{"$nulls":26},"Goodvest","100% online ESG and carbon-neutral investment platform",180,65,"Generali",null,2027,"50 000","Internal beta-client phase"]
[{"$nulls":26},"Belermain","Personalized financial advisory, discretionary or advised management","Not disclosed","Not disclosed","Generali, Spirica, Suravenir",null,2028,"100 000","MVP scaling"]
[{"$nulls":26},"Ramify","Raised €11m in Series A (Summer 2024), exclusive and premium offer","Not disclosed",130,"Apicil",null,2029,"200 000","Platform commercialization readiness"]
[{"$nulls":32},2030,"375 000","Full SaaS model rollout"]
[]
[]
[null,null,"Faire un tableau des synthèse bien formatté à copier/coller en slide 20 du Master pour présenter lec hiffres clefs de nos distributeurs cibles "]
[]
[null,null,"Tableau de synthèse des distributeurs d'assurance vie (2025)",{"$nulls":10},"Alta Profit €1md 5k nouveaux clients/an",{"$nulls":19},"Area","Scope / Objective"]
[{"$nulls":33},"Digital Innovation","Joint review of digital innovation use cases and customer pain points (front and back-office)."]
[null,null,"Nom","Description de l'activité","Encours en Million € (2024)","Collecte 2024 en Million €","Assureurs distribués","Projection nouveaux contrats 2025","Nombre de contrats estimé","Panier moyen estimé en €","Année Creation","linxea : 20k nouveaux clients pour 700M de collecte en 2023",{"$nulls":21},"Distributor Onboarding","Sharing best practices and compliance processes for digital distributor onboarding."]
[null,null,"Yomoni","Fintech spécialisée en gestion pilotée et ETF",1500,360,"Suravenir (principal)","10 000 (objectif B2B via Althéis)",70000,21000,2014,"CGP : 100k par client / 60M€ par cabinet / turn over de 10% / 4000 CGP en tout / 5% soit 200 GCP avec 10 contrats/an",{"$nulls":21},"Asset Management (GenAm)","Evaluation of using Generali Asset Management for B Life’s general account investments and potential BPO (Back-Office Process Outsourcing) schemes."]
[null,null,"eToro","Plateforme d’investissement social, entrée sur le marché français en 2025","N/A (lancement en mai 2025)","N/A","Generali (100%)","Phase de lancement","N/A France; 40M monde","N/A",{"$nulls":23},"IZNES Integration","Collaboration with IZNES administrator and UC Director on fund order routing via IZNES blockchain infrastructure."]
[null,null,"Linxea","Courtier en ligne à frais réduits, gestion libre ou pilotée",4000,1000,"Swiss Life, Suravenir, Spirica, Apicil","Non communiqué",140000,28000,null,"Corum",{"$nulls":21},"Unit-Linked Factory (“Usine UC”)","Co-development of efficient UC fund onboarding and validation processes, including:\n– Fund referencing and validation workflows\n– Retrocession management (through their Cogit V6 tool)\n– Middle/back-office reconciliation and matching processes"]
[null,null,"AltaProfits","Pionnier de l’assurance vie en ligne, contrats sans frais d’entrée",1700,"Non-communiqué","Generali, Swiss Life, Suravenir","Non communiqué",60000,28000,null,"Leur projection de collecte présenté à l’ACPR",{"$nulls":21},"Reinsurance & Risk Transfer","Alignment on reinsurance programs for B Life’s GMDB, led by Generali’s actuarial and reinsurance teams."]
[null,null,"Meilleurtaux Placement","Courtier multi-produits avec gestion pilotée et fonds boostés",5000,1000,"Generali (Netissima), Suravenir, Spirica","Non communiqué",65000,77000,null,"N+1 : 100M EUR",{"$nulls":21},"Credit Lombard","Exploration of a Lombard loan product partnership between Generali and B Life, enabling policyholders to borrow against life-insurance portfolios."]
[null,null,"Indexa Capital","Robot-conseiller avec gestion automatisée",3400,1000,"Assureur non précisé (contrat primé en 2024)","Non communiqué",112000,30000,null,"N+2 : 300M EUR"]
[null,null,"Mon Petit Placement","Plateforme d’investissement pour jeunes actifs",200,60,"Assureur non précisé","Non communiqué",25000,8000,null,"N+3 : 400M EUR",{"$nulls":21},"Partner","Profile / Scope"]
[null,null,"Cyrus Herez","Courtier généraliste pour particuliers et professionnels",20000,1700,"Non communiqué","Non communiqué","Non communiqué","Non communiqué",null,"En 2022, les encours sont de 80M EUR (pas la collecte)",{"$nulls":21},"eToro (link)","Exploring life insurance wrappers for crypto investors seeking safer long-term saving products."]
[null,null,"DLPK","Plateforme B2B pour CGP et réseaux bancaires",13500,1800,"Non communiqué","Non communiqué",70000,26000,null,"En 2023, les primes sont de €162M, 268M EUR (AuM )",{"$nulls":21},"Advize (link)","Wealth management tech integrator for IFAs (CGP network) offering access to B Life’s life insurance contracts."]
[null,null,"ERES (Crystal)","Spécialiste de l’épargne salariale et retraite",7000,300,"Non communiqué","Non communiqué",70000,100000,null,"En 2024, primes €205",{"$nulls":21},"Gustav (link)","Fintech app helping younger savers manage budgets and access savings products."]
[null,null,"Placement Direct","Courtier en ligne, filiale de SwissLife",900,250,"SwissLife","Non communiqué",30000,30000,{"$nulls":4},"Volumes Y+5",{"$nulls":18},"Indexa Capital (link)","Spanish–Belgian robo-advisor entering the French market. B Life positioned as a life insurance partner."]
[null,null,"Nalo","Gestion Multiprojet, ETF, 100% en ligne et personnalisée",450,100,"Generali, Apicil","Non communiqué",20000,22500]
[null,null,"Goodvest","Placement 100% en ligne et ESG et net carbon",180,65,"Generali","Non communiqué",15000,12000,{"$nulls":25},"Category","Amount (€m)","Purpose"]
[null,null,"Belermain","Conseil personanlisé, gestion sous mandat ou conseillée sur mesure","Non communiqué","Non-communiqué","Generali, Spirica, Suravenir","Non communiqué","Non communiqué","Non communiqué",{"$nulls":25},"Regulatory Capital (ACPR Requirement)","15 equity + 5 T1 debt","To meet minimum solvency and capitalization thresholds for license approval"]
[null,null,"Ramify","Levé 11M€ en Série A été 2024, offre exclusive et premium","Non communiqué",130,"Apicil","Non communiqué","(+)3000",{"$nulls":26},"Operating Expenditure (Growth Capital)",3,"To fund development, recruitment, and go-to-market initiatives until breakeven"]
[]
[]
[null,null,"Sources principales",{"$nulls":10},"22,000 contrats en 2025"]
[{"$nulls":13},"€600M d'encours"]
[null,null,"Yomoni :"]
[{"$nulls":13},"Organisation cible "]
[null,null,"Bilan 2024 et perspectives 2025",{"$nulls":10},"16 ETP"]
[null,null,"https://www.newsassetpro.com/collecte-yomoni-double-sa-livraison-en-2024/016928576",{"$nulls":10},"Président directoire"]
[null,null,"Lancement d'Althéis by Yomoni",{"$nulls":10},"DG"]
[{"$nulls":13},"4 RFC dont 1 audit interne à temps plein"]
[null,null,"70 000 clients en 2025YomoniFunds Magazine+2La Tribune de l'assurance+2La Tribune de l'assurance+2France Transactions+1France Transactions+1",{"$nulls":10},"2 comptables"]
[{"$nulls":13},"1 controleur interne"]
[null,null,"eToro :",{"$nulls":10},"2 conformité car ils ne peuvent pas s'appuyer sur les distributeurs"]
[{"$nulls":13},"4 gestion clients car ils ne peuvent pas s'appuyer sur les distributeurs"]
[null,null,"Partenariat avec Generali"]
[null,null,"https://www.etoro.com/fr/news-and-analysis/etoro-updates/etoro-ameliore-son-offre-dinvestissement-a-long-terme-avec-le-lancement-de-la-fonctionnalite-dinvestissement-recurrent/#:~:text=Fond%C3%A9e%20en%202007%20avec%20la,utilisateurs%20inscrits%20dans%2075%20pays."]
[null,null,"Lancement de l'offre en mai 2025Zonebourse+6eToro+6vyntor.com+6Boursier+1Boursier+1"]
[]
[null,null,"Linxea :"]
[]
[null,null,"Collecte de près d’un milliard en 2024"]
[null,null,"https://www.linxea.com/decouvrir-linxea/les-medias/"]
[null,null,"130 000 clients en 2025notreassurance.comFrance Transactions+3assurancevie.info+3France Transactions+3"]
[]
[null,null,"AltaProfits :"]
[]
[null,null,"Rendements 2024 des contrats"]
[null,null,"https://www.altaprofits.com/sites/default/files/cp-cosevad-altaprofits-alliance-capitalistique.pdf"]
[null,null,"Partenaires assureursLe Monde+1Meilleurtaux Placement+1Le Progrès+20mon-epargne.com+20France Transactions+20Le Progrès+2Finance Héros+2Connect Banque+2"]
[]
[null,null,"Meilleurtaux Placement :"]
[null,null,"https://placement.meilleurtaux.com/"]
[null,null,"Comparatif des meilleures assurances vie 2025Meilleurtaux Placement+5Meilleurtaux Placement+5Meilleurtaux Placement+5Linxea+7Meilleurtaux Placement+7Meilleurtaux Placement+7"]
[null,null,"https://bourse.lefigaro.fr/fonds/meilleurtaux-placement-va-proposer-un-service-de-gestion-privee-en-avril-20250311"]
[null,null,"Indexa Capital :"]
[]
[null,null,"Statistiques d'Indexa Capital"]
[]
[null,null,"9 ans en faits marquants et en donnéesTraders Union+7indexacapital.com+7leblog.indexacapital.com+7leblog.indexacapital.com"]
[]
[null,null,"Mon Petit Placement :"]
[null,null,"https://www.monpetitplacement.fr/espace-presse",null,"https://www.lassuranceenmouvement.com/2025/03/12/mon-petit-placement-annonce-une-annee-2024-exceptionnelle/"]
[null,null,"Rendement des fonds euros en 2025monpetitplacement.fr+1Meilleurtaux Placement+1"]
[null,null,"https://lyondecideurs.com/2025/02/actu/mon-petit-placement-thomas-perret-realise-une-annee-2024-record/#:~:text=Avec%20une%20collecte%20nette%20record,euros%20d'encours%20sous%20gestion."]
[null,null,"Sirius :"]
[null,null,"https://www.cfnews.net/L-actualite/Build-up/Cyrus-Herez-accroit-ses-actifs-dans-l-Est-510344",{"$nulls":3},"https://www.cyrus-herez.fr/decouvrir-cyrus-herez/"]
[null,null,"Présentation de l'entreprisesirius-assurances.com",null,"https://www.h24finance.com/news/19-milliards-d-euros-en-encours-conseilles-par-cyrus.html"]
[null,null,"🧩 Observations complémentaires"]
[]
[null,null,"Yomoni se distingue par une gestion pilotée axée sur les ETF, avec une forte orientation vers les unités de compte (98% de l'encours).Yomoni+2Meilleurtaux Placement+2assurancevie.info+2"]
[]
[null,null,"eToro fait son entrée sur le marché français de l'assurance vie en 2025, en partenariat exclusif avec Generali, visant à intégrer l'assurance vie dans son écosystème d'investissement social.financialcommission.org+3vyntor.com+3Assurance en Mouvement+3"]
[]
[null,null,"Linxea continue de renforcer sa position avec une offre diversifiée et des frais réduits, attirant une clientèle croissante."]
[]
[null,null,"AltaProfits propose des contrats sans frais d'entrée, collaborant avec plusieurs assureurs renommés, ce qui en fait un acteur compétitif sur le marché en ligne.Meilleurtaux Placement+3Connect Banque+3Meilleurtaux Placement+3"]
[]
[null,null,"Indexa Capital offre une gestion automatisée avec des frais compétitifs, ayant reçu des distinctions pour ses contrats d'assurance vie."]
[]
[]
[null,null,"Placement Direct","https://www.placement-direct.fr/","https://www.placement-direct.fr/actualites/retrospective-2024-une-annee-exceptionnelle-grace-a-vous","https://www.moneyvox.fr/epargne/placement-direct#:~:text=Placement%2Ddirect.fr%20en%20quelques,sur%205%20est%20un%20PER."]
[null,null,"Nalo","https://www.argusdelassurance.com/epargne/epargne-nalo-vise-la-rentabilite-d-ici-a-trois-ou-quatre-ans.231639",null,null,"https://tribune-assurance.optionfinance.fr/depeches/d/2024-05-29-nalo-veut-financer-les-projets-de-vie-de-ses-clients.html"]
[]
[null,null,"Goodvest","https://www.goodvest.fr/nous-sommes-une-entreprise-a-mission","https://www.mind.eu.com/fintech/investissement/goodvest-vise-250-millions-dencours-dici-fin-2025/"]
[{"$nulls":3},"https://www.planet-fintech.com/Goodvest-franchit-le-cap-des-50-M-d-actifs-sous-gestion-en-deux-ans_a4822.html",null,null,"https://www.comparateurbanque.com/meilleurs-placements/assurance-vie/goodvest-65me-collectes-en-6-mois/"]
[]
[null,null,"Belermain","https://www.belermain.com/"]
[]
[]
[null,null,"DLPK","https://www.dlpk.fr/chiffres.html","https://www.nortia.fr/la-societe/"]
[]
[null,null,"Eres","https://www.eres-group.com/"]
[]
[null,null,"Ramify","https://investir.lesechos.fr/budget/banque-assurance/que-valent-ces-nouvelles-banques-privees-en-ligne-qui-proposent-de-gerer-votre-patrimoine-2146901"]